{"text_format":"3","workbook":"xlsx","n_sheets":19,"sheets":["Intro","Graphs","Inputs","Statistical Moments","Trial 1","Trial 2","Trial 3","Trial 4","Trial 5","Trial 6","Trial 7","Trial 8","Formulas","(Intermediate Computations)","(Other Computations)","Labels","ZZZ__FnCalls","ZZZ_Ranges","ZZZ_Import"],"not_rendered":{"charts":5,"images":2,"defined_names":223,"comments":12},"read":"whole","date_system":"1900"}

{"sheet":"Intro","index":0,"n_rows":207,"n_cols":1,"rows_kept":207}
[]
[]
["Monte Carlo Dynamic Simulation of an Economy"]
[]
["You can customize this template by filling in a simple form, without editing a spreadsheet."]
["This is a small and somewhat simplified working sample of the template."]
[]
["A customized template is a flexible model that you can adapt to your situation by filling in a simple form, without editing a spreadsheet or its formulas. For example, you can specify time range and time grain; number and names of items in a dimension (such as your products and product families); and include or exclude major features. The resulting spreadsheet matches your needs better than any standard template."]
["Get a customized version of this template on our website."]
[]
["ModelSheet provides you with customized templates in three ways."]
[]
["1. Order a customized version of this template."]
["Click \"+\" for more information."]
["• You can specify custom features by filling out a simple form. (Click on \"+\" for more information.)"]
["Precise customizations vary from template to template. Examples:"]
["− Specify the starting time, time range, time grain and rollup time grains (such as annual sums)."]
["− Specify the items in a dimension and levels of hierarchy (such as product families and products)."]
["− Include or exclude entire sub-models in the template."]
["− These features address the most serious problem with conventional spreadsheet templates: You can\n   customize a template in many ways without having to interpret and edit numerous cell formulas."]
[]
["• You can edit many aspects of your Excel template after receiving it. (Click on \"+\" for more information.)"]
["− Edit input data in clearly marked input cells."]
["− Edit the model start date of a template, so your template is not out of date when the start date changes."]
["− Edit names of dimension items in once place (such as products, departments, expense accounts)."]
[]
["• ModelSheet Excel templates are easier to understand. (Click on \"+\" for more information.)"]
["− Each table has an Excel comment that provides a variable name and explains the variable. "]
["− Worksheet \"Formulas\" expresses the entire model with named variables and symbolic formulas. Although\n   the symbolic formulas are not executable in Excel, they are what the model is made from in ModelSheet."]
["− You never need to read inscrutable cell formulas to understand a ModelSheet customized template."]
["Click \"+\" for more information."]
["Explore our customized templates."]
[]
["2. If you want more customizations, retain ModelSheet Software to build them for you."]
["Click \"+\" for more information."]
["• Our staff has extensive experience in many areas of business and engineering analysis."]
["• ModelSheet technology enables us to offer you more value for your consulting dollar."]
["Click \"+\" for more information."]
["Learn more about consulting services."]
[]
["3. Use the ModelSheet Authoring Environment to build and customize your spreadsheet models."]
[]
["The ModelSheet Authoring Environment is a SaaS application for developing and maintaining business models and delivering them in conventional spreadsheets."]
["Click \"+\" to learn more about ModelSheet technology that makes customized template possible."]
[]
["This Excel workbook was generated using ModelSheet, a revolutionary new spreadsheet technology. ModelSheet allows you to develop business models using readable formulas, while avoiding the details of cell addresses and hard-to-change sheet layouts. The end result is a conventional Excel workbook just like this one. We built ModelSheet because we believe that spreadsheets are a great way of communicating results but we think it's just too hard to use them to develop reliable, maintainable, expressive and collaborative models."]
[]
["You'll get a glimpse of ModelSheet's advantages when you take a look at the \"Formulas\" tab and realize how few separate, readable formulas are needed to produce all of the other worksheets. In addition to formulas, ModelSheet knows about the \"dimensions\" in your model (e.g., products, locations, departments) as well as the time series that you're using (e.g., 5 years in quarters.) ModelSheet raises the level of thinking and acting from individual cells to natural modeling concepts. It enhances model reliabilty, auditability and maintainability; it enables you to build models that better reflect your intentions; it allows easier collaboration between modelers, developers, and report users; and it improves productivity, especially when making changes to a model."]
[]
["The ModelSheet authoring environment raises the level of thinking and acting from individual cells to natural modeling concepts like variables, dimensions, time series and accounting types. It enhances model reliabilty, auditability and maintainability; it enables you to build models that better reflect your intentions; it allows easier collaboration between modelers, developers, and report users; and it improves productivity, especially when making changes to a model."]
[]
["We have more to tell you about ModelSheet and we'd like to hear about your needs for templates and models."]
["Please visit our website at www.modelsheetsoft.com"]
["or contact us at info@modelsheetsoft.com."]
[]
[]
[]
["Description of the Macro-Economic Model"]
[]
["This model perfroms Monte Carlo simulation to a dynamic macro-economic model of a national economy. It reports mean and standard deviation over time for economic variables, and optionally the values of the variables for each Monte Carlo trial."]
[]
["It uses one of four economic models of increasing complexity in \"A Dynamic Synthesis of Basic Macroeconomic Theory: Implications for Stabilization and Policy Analysis,\" by Nathan B. Forrester, thesis at M.I.T. Sloan School of Management, 1982."]
[]
["ModelSheet Software is solely responsible for any errors in this derivative work."]
[]
["The second model extends the first macro-economic model by adding a rudimentary financial market to the production economy. It has a variable interest rate and a variable demand for capital.  The financial market model is based on the IS-LM model presented by Hicks in 1937."]
[]
["The third model extends the second model by adding a variable price level with a constant money supply to the production and financial markets. It is based on the aggregate supply aggregate demand model."]
[]
["This fourth model adds an inventory adjustment mechanism. Adjustment of inventory is a significant factor in short-term business cycles.  Meltzer outlined early macroeconomic inventory adjustment models in 1941. "]
["This model also includes a lagged unemployment variable which does not affect the rest of the model and is used only for analysis."]
[]
["As you explore the model, we suggest that you"]
["• Read some of the Excel comments that are attached to Analysis Variables throughout the workbook.\n  These comments also appear in ModelSheet in convenient places."]
["• View worksheet \"Formulas\" which shows the named variables and symbolic formulas of the model\n   in a compact and readable form. The symbolic formulas are not active in this Excel workbook, but they\n   give you some idea how the model works, and how it looks in ModelSheet."]
[]
["Suggestions for using this model"]
[]
["1. Use this workbook as-is, if it fits your situation. You can change the data in the dark blue input  cells. You can\n    change the display names of dimension items and variables in dark blue cells on worksheet \"Labels.\""]
[]
["2. Customize this Excel workbook to make a job evaluation model that fits your needs."]
[]
["3. Use ModelSheet Authoring to edit the formulas in this model, using named variables, symbolic formulas\n    (and far fewer formulas), segmentation dimensions and time series, without ever touching a cell address -- \n    and end up with a conventional Excel workbook."]
["Please contact us for access to ModelSheet Authoring."]
[]
[]
[]
["Technical notes: Overview of Modified Multiplier-Accelerator Model"]
[]
["Purple indicates a change in the second model compared to the first model."]
["Green indicates a change in the third model compared to the second model."]
["Red indicates a change in the fourth model compared to the third model."]
[]
["1. Ten time-evolution variables"]
[]
["employment(t)"]
["demand_expected_short(t)"]
["income_permanent(t)"]
["demand_expected_long(t)"]
["capital(t)"]
["demand_expected_long(t)"]
["output_average(t)"]
["prices(t)"]
["money_supply(t)"]
["inventory(t)"]
["unemployment_rate_lagged(t)"]
[]
["2. Ten time-evolution equations"]
[]
["• d employment(t) /dt = (employment_desired(t) - employment(t)) / time_adjust_employment"]
["• d demand_expected_short(t) / dt \n    = (demand_aggregate(t) - demand_expected_short(t)) / time_smooth_short_demand"]
["• d income_permanent(t) / dt =\n    (income_current_disposable(t) - income_permanent(t) )/ time_smooth_income"]
["• Δ capital(t)  = capital_investment(t) - capital_depreciation(t)"]
["• d demand_expected_long(t) / dt =\n    (demand_aggregate(t) - demand_expected_long(t) ) / time_smooth_long_demand"]
["• d output_average(t) / dt = (output(t) - output_average(t) ) / time_smooth_output_average"]
["• d prices(t) / dt = prices(t)* Phillips_slope * (unemployment_rate_natural / unemployment_rate(t) - 1)"]
["• d money_supply(t) / dt = 0"]
["• Δ inventory(t)  = output(t) - final_sales(t)"]
["• d unemployment_rate_lagged(t) / dt =\n    (unemployment_rate(t) - unemployment_rate_lagged(t)) / time_smooth_unemployment"]
[]
["3. Five types of auxiliary functions appear in the evolution equations"]
[]
["• Output"]
["output(t) := output_potential(t) * (1-flexibility_capacity_utilization) + demand_expected_short(t) *\n     flexibility_capacity_utilization + output_noise(t)"]
["output_potential(t):= \n    output_equilib * (employment(t) / employment_equilib) ^ (1-capital_expon) *\n     (capital / capital_equilib) ^ capital_expon"]
["desired inventory(t) := natural_inventory_coverage * long_expected_demand"]
["desired inventory_investment(t) := (desired inventory - inventory) / time_adjust_inventory"]
["The inventory variables are added in this fourth Forrester model."]
["• Labor Market"]
["employment_desired(t) :=\n     (1-capital_expon) * demand_expected_short(t) / real_wage"]
["unemployment_rate(t):= (employment_equilib / (1 – unemployment_rate_natural) - employment) /\n     (employment)equilib / (1 – unemployment_rate_natural))"]
["• Demand"]
["demand_aggregate(t):= final_sales(t) + desired_inventory_investment(t) + demand_aggregate_noise(t)"]
["Aggregate demand is altered to include desired inventory investment in this fourth Forrester model."]
["final_sales(t) :=consumption(t) + capital_invest(t) + gov_spending(t)"]
["consumption(t) := consumption_avg_propensity * income_permanent"]
["income_current_disposable(t):=output(t) - ( tax(t) - gov_transfers(t) )"]
["• Capital Investment "]
["interest_rate(t) := interest_rate_long *\n   ( (output / output_average) ^ (- money_income_elasticity) ) ^ (1/money_interest_elasticity)"]
["The time-varying interest rate is added in the second Forrester model."]
["interest_rate(t) := interest_rate_long *\n   ( money_supply * (money_equilib_velocity/output_equilib/prices )\n   * ( (output_equilib / output_average) ^ money_income_elasticity ) ^ (1/money_interest_elasticity)"]
["The time-varying interest rate is changed in the third model to use prices and money supply."]
["capital_investment(t) :=capital_depreciation(t) + ( capital_desired(t) – capital(t) ) / time_adjust_capital"]
["capital_depreciation(t) := capital / capital_avg_life"]
["capital_desired(t) := \n    capital_expon * demand_expected_long(t) / (1/capital_avg_life + interest_rate)"]
["Desired capital is changed in the second Forrester model to use time-varying interest rate."]
["• Government Sector"]
["tax(t) := tax_rate * output(t)"]
["gov_transfers(t) := gov_transfers_equilib"]
["gov_spending(t) := gov_spend_equilib"]
[]
["4. Numerical parameters"]
[]
["• Demand"]
["Average propensity to consume: consumption_avg_propensity = 0.78"]
["Time to smooth income: time_smooth_income = 2.5"]
["Time to smooth short run demand: time_smooth_short_demand : 0.5"]
["Time to smooth long run demand: time_smooth_long_demand : 3.0"]
["• Labor"]
["Expected labor (million man-years per year): employment_equilib = 100"]
["Real wage $ million per million-man-year (set so that wages are 75% of national income):\n real_wage = 0.75 * output_equilib / employment_equilib"]
["Time to adjust employment : time_adjust_employment = 0.4"]
["Time to smooth unemployment: time_smooth_unemployment = 1.0"]
["Time to smooth unemployment is added in this fourth Forrester model."]
["• Capital Investment"]
["Exponent on capital in the production function: capital_expon = 0.25"]
["long run interest rate: interest_rate_long = 3.0%"]
["Average life of capital: capital_avg_life = 14.0"]
["Equilibrium capital: capital_equilib =\n    capital_expon * output_equilib / (1/capital_avg_life + interest_rate_long)"]
["Time to adjust capital: time_adjust_capital = 3.0"]
["Flexibility of capacity utilization: flexibility_capacity_utilization = 3.0"]
["Income elasticity of money demand: demand_income_elasticity  = 0.7 "]
["Interest elasticity of money: money_interest_elasticity  = -1.0"]
["• Output"]
["Annual equilibrium national output: output_equilib = $ 14.0 * 10^6 millions"]
["Time to smooth average output: time_smooth_output_average = 3.0"]
["(Added in the second Forrester model)"]
["Ratio of inventory to sales: net_inventory_coverage = 0.3"]
["Time to adjust inventory: time_adjust_inventory = 0.4"]
["• Government Spending"]
["Equilibrium government spending pct:  gov_spend_equilib_pct = 20% (gov_spend_equilib : 0.2 * output_equilib)"]
["Equilibrium government transfers pct: gov_transfers_equilib_pct  = 10% (gov_transfers_equilib : 0.1 * output_equilib)"]
["Tax rate (set to cover government spending and transfers with no surplus or deficit): \n   tax_rate : (equilibrium_govt_spend+equilibrium_govt_transfers) / output_equilib"]
["• Prices and Money"]
["natural rate of unemployment: unemployment_rate_natural = 5%"]
["slope of the Phillips curve: phillips_slope = 0.175"]
["equilibrium income velocity of money: equilib_velocity_money = 6.0"]
["The equilibrium price level determines the ratio of the money to output: prices_equilib = 1.0"]
[]
["5. Initial conditions"]
[]
["Average output: output_average(t=0) = output_equilib"]
["output_average was added in the second Forrester model."]
["Employment: employment(t=0) = employment_equilib"]
["Short run equilibrium demand:  demand_expected_short(t=0) = output_equilib"]
["Permanent income:   income_permanent(t=0) = output_equilib - equilibrium_govt_spend"]
["Capital:  capital(t=0) = capital_expon * output_equilib * (1/capital_avg_life +interest_rate_long)"]
["The initial condition for capital is changed to include the interest rate in the second Forrester model."]
["Long run equilibrium demand:  demand_expected_long(t=0) = output_equilib"]
["Prices: prices(t=0) = prices_equilib"]
["Money supply: money(t=0) = income_equilib * prices_equilib / equilib_velocity_money"]
["Inventory: inventory(t=0) = output_equilib * net_inventory_coverage"]
[]
["This Excel workbook was generated by ModelSheet on January 22, 2010, except for this worksheet of comments."]
[]
["Copyright © 2009, 2010 ModelSheet Software, LLC"]
["ModelSheet and the ModelSheet logo are registered trademarks of ModelSheet Software, LLC."]

{"sheet":"Graphs","index":1,"n_rows":0,"n_cols":0,"rows_kept":0}

{"sheet":"Inputs","index":2,"n_rows":58,"n_cols":2,"rows_kept":58,"merged":[[0,0,0,2],[1,0,1,2],[2,0,2,2],[3,0,3,2],[4,0,4,2],[5,0,5,4],[6,0,6,4],[43,0,43,1],[54,0,54,1],[55,0,55,1]]}
[{"$f":"\"Equilibrium Economy with Shocks\"","v":"Equilibrium Economy with Shocks"}]
[{"$f":"\"Model: \"&B8","v":"Model: Test Model"}]
[{"$f":"\"$ millions\"","v":"$ millions"}]
[{"$f":"\"Inputs\"","v":"Inputs"}]
[{"$f":"\"\"","v":""}]
[{"$f":"\"Shaded cells are input cells. You can enter data in them.\"","v":"Shaded cells are input cells. You can enter data in them."}]
[{"$f":"\"Excel formulas in shaded cells are starting suggestions. You can overwrite them.\"","v":"Excel formulas in shaded cells are starting suggestions. You can overwrite them."}]
[{"$f":"Labels!B63","v":"Model Name"},"Test Model"]
[]
[]
[{"$f":"\"Demand\"","v":"Demand"}]
[{"$f":"\" \"","v":" "}]
[{"$f":"Labels!B91","v":"Time Smooth Long Demand"},{"v":3,"d":"3.00"}]
[{"$f":"Labels!B92","v":"Time Smooth Short Demand"},{"v":0.5,"d":"0.50"}]
[]
[]
[{"$f":"\"Capital\"","v":"Capital"}]
[{"$f":"\" \"","v":" "}]
[{"$f":"Labels!B10","v":"Avg Life Capital"},{"v":14,"d":"14.00"}]
[{"$f":"Labels!B18","v":"Capital Exponent"},0.25]
[{"$f":"Labels!B48","v":"Flexibility Capacity Utilization"},{"v":0.5,"d":"0.50"}]
[{"$f":"Labels!B88","v":"Time Adjust Capital"},{"v":3,"d":"3.00"}]
[]
[]
[{"$f":"\"Employment\"","v":"Employment"}]
[{"$f":"\" \"","v":" "}]
[{"$f":"Labels!B42","v":"Equilibrium Employment"},{"v":140,"d":"140.00"}]
[{"$f":"Labels!B89","v":"Time Adjust Employment"},{"v":0.4,"d":"0.40"}]
[{"$f":"Labels!B73","v":"Equilibrium Real Wage %"},{"v":0.75,"d":"75%"}]
[]
[]
[{"$f":"\"Income\"","v":"Income"}]
[{"$f":"\" \"","v":" "}]
[{"$f":"Labels!B25","v":"Avg Propensity Consume"},{"v":0.78,"d":"78%"}]
[{"$f":"Labels!B90","v":"Time Smooth Income"},{"v":2.5,"d":"2.50"}]
[]
[]
[{"$f":"\"Output\"","v":"Output"}]
[{"$f":"\" \"","v":" "}]
[{"$f":"Labels!B66","v":"Equilibrium Annual Output"},{"$f":"14*10^6","v":{"v":14000000,"d":"$14,000,000"}}]
[]
[]
[{"$f":"\"Money and Prices\"","v":"Money and Prices"}]
[{"$f":"\" \"","v":" "}]
[{"$f":"Labels!B62","v":"Long Annual Interest Rate"},{"v":0.03,"d":"3.0%"}]
[]
[]
[{"$f":"\"Government\"","v":"Government"}]
[{"$f":"\" \"","v":" "}]
[{"$f":"Labels!B50","v":"Equilibrium Gov Spend %"},{"v":0.2,"d":"20%"}]
[{"$f":"Labels!B54","v":"Equilibrium Gov Transfers %"},{"v":0.1,"d":"10%"}]
[{"$f":"Labels!B85","v":"Tax Rate"},{"$f":"('(Other Computations)'!B11+'(Other Computations)'!B14)/'(Other Computations)'!B8","v":{"v":0.30000000000000004,"d":"30%"}}]
[]
[]
[{"$f":"\"Stochastic Shocks\"","v":"Stochastic Shocks"}]
[{"$f":"\" \"","v":" "}]
[{"$f":"Labels!B82","v":"Shock Std Deviation %"},{"v":0.1,"d":"10%"}]
[{"$f":"Labels!B77","v":"Shock_Cutoff"},{"v":0.03,"d":"3.0%"}]

{"sheet":"Statistical Moments","index":3,"n_rows":81,"n_cols":144,"rows_kept":81,"merged":[[0,0,0,2],[1,0,1,2],[2,0,2,2],[3,0,3,2],[4,0,4,2],[5,0,5,2],[6,0,6,2]]}
[{"$f":"\"Equilibrium Economy with Shocks\"","v":"Equilibrium Economy with Shocks"}]
[{"$f":"\"Model: \"&Inputs!B8","v":"Model: Test Model"}]
[{"$f":"\"$ millions\"","v":"$ millions"}]
[{"$f":"\"Statistical Moments\"","v":"Statistical Moments"}]
[{"$f":"\"\"","v":""}]
[{"$f":"\"Mean followed by standard deviation for each variable\"","v":"Mean followed by standard deviation for each variable"}]
[{"$f":"\" \"","v":" "}]
[]
[{"$f":"\"Demand\"","v":"Demand"}]
[{"$f":"\" \"","v":" "}]
[null,{"$f":"ZZZ__FnCalls!F7","v":"Jan 2010"},{"$f":"ZZZ__FnCalls!F8","v":"Feb 2010"},{"$f":"ZZZ__FnCalls!F9","v":"Mar 2010"},{"$f":"ZZZ__FnCalls!F10","v":"Apr 2010"},{"$f":"ZZZ__FnCalls!F11","v":"May 2010"},{"$f":"ZZZ__FnCalls!F12","v":"Jun 2010"},{"$f":"ZZZ__FnCalls!F13","v":"Jul 2010"},{"$f":"ZZZ__FnCalls!F14","v":"Aug 2010"},{"$f":"ZZZ__FnCalls!F15","v":"Sep 2010"},{"$f":"ZZZ__FnCalls!F16","v":"Oct 2010"},{"$f":"ZZZ__FnCalls!F17","v":"Nov 2010"},{"$f":"ZZZ__FnCalls!F18","v":"Dec 2010"},{"$f":"ZZZ__FnCalls!H7","v":"2010"},{"$f":"ZZZ__FnCalls!F19","v":"Jan 2011"},{"$f":"ZZZ__FnCalls!F20","v":"Feb 2011"},{"$f":"ZZZ__FnCalls!F21","v":"Mar 2011"},{"$f":"ZZZ__FnCalls!F22","v":"Apr 2011"},{"$f":"ZZZ__FnCalls!F23","v":"May 2011"},{"$f":"ZZZ__FnCalls!F24","v":"Jun 2011"},{"$f":"ZZZ__FnCalls!F25","v":"Jul 2011"},{"$f":"ZZZ__FnCalls!F26","v":"Aug 2011"},{"$f":"ZZZ__FnCalls!F27","v":"Sep 2011"},{"$f":"ZZZ__FnCalls!F28","v":"Oct 2011"},{"$f":"ZZZ__FnCalls!F29","v":"Nov 2011"},{"$f":"ZZZ__FnCalls!F30","v":"Dec 2011"},{"$f":"ZZZ__FnCalls!H19","v":"2011"},{"$f":"ZZZ__FnCalls!F31","v":"Jan 2012"},{"$f":"ZZZ__FnCalls!F32","v":"Feb 2012"},{"$f":"ZZZ__FnCalls!F33","v":"Mar 2012"},{"$f":"ZZZ__FnCalls!F34","v":"Apr 2012"},{"$f":"ZZZ__FnCalls!F35","v":"May 2012"},{"$f":"ZZZ__FnCalls!F36","v":"Jun 2012"},{"$f":"ZZZ__FnCalls!F37","v":"Jul 2012"},{"$f":"ZZZ__FnCalls!F38","v":"Aug 2012"},{"$f":"ZZZ__FnCalls!F39","v":"Sep 2012"},{"$f":"ZZZ__FnCalls!F40","v":"Oct 2012"},{"$f":"ZZZ__FnCalls!F41","v":"Nov 2012"},{"$f":"ZZZ__FnCalls!F42","v":"Dec 2012"},{"$f":"ZZZ__FnCalls!H31","v":"2012"},{"$f":"ZZZ__FnCalls!F43","v":"Jan 2013"},{"$f":"ZZZ__FnCalls!F44","v":"Feb 2013"},{"$f":"ZZZ__FnCalls!F45","v":"Mar 2013"},{"$f":"ZZZ__FnCalls!F46","v":"Apr 2013"},{"$f":"ZZZ__FnCalls!F47","v":"May 2013"},{"$f":"ZZZ__FnCalls!F48","v":"Jun 2013"},{"$f":"ZZZ__FnCalls!F49","v":"Jul 2013"},{"$f":"ZZZ__FnCalls!F50","v":"Aug 2013"},{"$f":"ZZZ__FnCalls!F51","v":"Sep 2013"},{"$f":"ZZZ__FnCalls!F52","v":"Oct 2013"},{"$f":"ZZZ__FnCalls!F53","v":"Nov 2013"},{"$f":"ZZZ__FnCalls!F54","v":"Dec 2013"},{"$f":"ZZZ__FnCalls!H43","v":"2013"},{"$f":"ZZZ__FnCalls!F55","v":"Jan 2014"},{"$f":"ZZZ__FnCalls!F56","v":"Feb 2014"},{"$f":"ZZZ__FnCalls!F57","v":"Mar 2014"},{"$f":"ZZZ__FnCalls!F58","v":"Apr 2014"},{"$f":"ZZZ__FnCalls!F59","v":"May 2014"},{"$f":"ZZZ__FnCalls!F60","v":"Jun 2014"},{"$f":"ZZZ__FnCalls!F61","v":"Jul 2014"},{"$f":"ZZZ__FnCalls!F62","v":"Aug 2014"},{"$f":"ZZZ__FnCalls!F63","v":"Sep 2014"},{"$f":"ZZZ__FnCalls!F64","v":"Oct 2014"},{"$f":"ZZZ__FnCalls!F65","v":"Nov 2014"},{"$f":"ZZZ__FnCalls!F66","v":"Dec 2014"},{"$f":"ZZZ__FnCalls!H55","v":"2014"},{"$f":"ZZZ__FnCalls!F67","v":"Jan 2015"},{"$f":"ZZZ__FnCalls!F68","v":"Feb 2015"},{"$f":"ZZZ__FnCalls!F69","v":"Mar 2015"},{"$f":"ZZZ__FnCalls!F70","v":"Apr 2015"},{"$f":"ZZZ__FnCalls!F71","v":"May 2015"},{"$f":"ZZZ__FnCalls!F72","v":"Jun 2015"},{"$f":"ZZZ__FnCalls!F73","v":"Jul 2015"},{"$f":"ZZZ__FnCalls!F74","v":"Aug 2015"},{"$f":"ZZZ__FnCalls!F75","v":"Sep 2015"},{"$f":"ZZZ__FnCalls!F76","v":"Oct 2015"},{"$f":"ZZZ__FnCalls!F77","v":"Nov 2015"},{"$f":"ZZZ__FnCalls!F78","v":"Dec 2015"},{"$f":"ZZZ__FnCalls!H67","v":"2015"},{"$f":"ZZZ__FnCalls!F79","v":"Jan 2016"},{"$f":"ZZZ__FnCalls!F80","v":"Feb 2016"},{"$f":"ZZZ__FnCalls!F81","v":"Mar 2016"},{"$f":"ZZZ__FnCalls!F82","v":"Apr 2016"},{"$f":"ZZZ__FnCalls!F83","v":"May 2016"},{"$f":"ZZZ__FnCalls!F84","v":"Jun 2016"},{"$f":"ZZZ__FnCalls!F85","v":"Jul 2016"},{"$f":"ZZZ__FnCalls!F86","v":"Aug 2016"},{"$f":"ZZZ__FnCalls!F87","v":"Sep 2016"},{"$f":"ZZZ__FnCalls!F88","v":"Oct 2016"},{"$f":"ZZZ__FnCalls!F89","v":"Nov 2016"},{"$f":"ZZZ__FnCalls!F90","v":"Dec 2016"},{"$f":"ZZZ__FnCalls!H79","v":"2016"},{"$f":"ZZZ__FnCalls!F91","v":"Jan 2017"},{"$f":"ZZZ__FnCalls!F92","v":"Feb 2017"},{"$f":"ZZZ__FnCalls!F93","v":"Mar 2017"},{"$f":"ZZZ__FnCalls!F94","v":"Apr 2017"},{"$f":"ZZZ__FnCalls!F95","v":"May 2017"},{"$f":"ZZZ__FnCalls!F96","v":"Jun 2017"},{"$f":"ZZZ__FnCalls!F97","v":"Jul 2017"},{"$f":"ZZZ__FnCalls!F98","v":"Aug 2017"},{"$f":"ZZZ__FnCalls!F99","v":"Sep 2017"},{"$f":"ZZZ__FnCalls!F100","v":"Oct 2017"},{"$f":"ZZZ__FnCalls!F101","v":"Nov 2017"},{"$f":"ZZZ__FnCalls!F102","v":"Dec 2017"},{"$f":"ZZZ__FnCalls!H91","v":"2017"},{"$f":"ZZZ__FnCalls!F103","v":"Jan 2018"},{"$f":"ZZZ__FnCalls!F104","v":"Feb 2018"},{"$f":"ZZZ__FnCalls!F105","v":"Mar 2018"},{"$f":"ZZZ__FnCalls!F106","v":"Apr 2018"},{"$f":"ZZZ__FnCalls!F107","v":"May 2018"},{"$f":"ZZZ__FnCalls!F108","v":"Jun 2018"},{"$f":"ZZZ__FnCalls!F109","v":"Jul 2018"},{"$f":"ZZZ__FnCalls!F110","v":"Aug 2018"},{"$f":"ZZZ__FnCalls!F111","v":"Sep 2018"},{"$f":"ZZZ__FnCalls!F112","v":"Oct 2018"},{"$f":"ZZZ__FnCalls!F113","v":"Nov 2018"},{"$f":"ZZZ__FnCalls!F114","v":"Dec 2018"},{"$f":"ZZZ__FnCalls!H103","v":"2018"},{"$f":"ZZZ__FnCalls!F115","v":"Jan 2019"},{"$f":"ZZZ__FnCalls!F116","v":"Feb 2019"},{"$f":"ZZZ__FnCalls!F117","v":"Mar 2019"},{"$f":"ZZZ__FnCalls!F118","v":"Apr 2019"},{"$f":"ZZZ__FnCalls!F119","v":"May 2019"},{"$f":"ZZZ__FnCalls!F120","v":"Jun 2019"},{"$f":"ZZZ__FnCalls!F121","v":"Jul 2019"},{"$f":"ZZZ__FnCalls!F122","v":"Aug 2019"},{"$f":"ZZZ__FnCalls!F123","v":"Sep 2019"},{"$f":"ZZZ__FnCalls!F124","v":"Oct 2019"},{"$f":"ZZZ__FnCalls!F125","v":"Nov 2019"},{"$f":"ZZZ__FnCalls!F126","v":"Dec 2019"},{"$f":"ZZZ__FnCalls!H115","v":"2019"},{"$f":"ZZZ__FnCalls!F127","v":"Jan 2020"},{"$f":"ZZZ__FnCalls!F128","v":"Feb 2020"},{"$f":"ZZZ__FnCalls!F129","v":"Mar 2020"},{"$f":"ZZZ__FnCalls!F130","v":"Apr 2020"},{"$f":"ZZZ__FnCalls!F131","v":"May 2020"},{"$f":"ZZZ__FnCalls!F132","v":"Jun 2020"},{"$f":"ZZZ__FnCalls!F133","v":"Jul 2020"},{"$f":"ZZZ__FnCalls!F134","v":"Aug 2020"},{"$f":"ZZZ__FnCalls!F135","v":"Sep 2020"},{"$f":"ZZZ__FnCalls!F136","v":"Oct 2020"},{"$f":"ZZZ__FnCalls!F137","v":"Nov 2020"},{"$f":"ZZZ__FnCalls!F138","v":"Dec 2020"},{"$f":"ZZZ__FnCalls!H127","v":"2020"}]
[{"$f":"Labels!B29","v":"Aggregate Demand"},{"$f":"AVERAGE('Trial 1'!B9,'Trial 2'!B9,'Trial 3'!B9,'Trial 4'!B9,'Trial 5'!B9,'Trial 6'!B9,'Trial 7'!B9,'Trial 8'!B9)","v":{"v":936684.1795910058,"d":"$936,684"}},{"$f":"AVERAGE('Trial 1'!C9,'Trial 2'!C9,'Trial 3'!C9,'Trial 4'!C9,'Trial 5'!C9,'Trial 6'!C9,'Trial 7'!C9,'Trial 8'!C9)","v":{"v":951065.5769176772,"d":"$951,066"}},{"$f":"AVERAGE('Trial 1'!D9,'Trial 2'!D9,'Trial 3'!D9,'Trial 4'!D9,'Trial 5'!D9,'Trial 6'!D9,'Trial 7'!D9,'Trial 8'!D9)","v":{"v":969875.8323850736,"d":"$969,876"}},{"$f":"AVERAGE('Trial 1'!E9,'Trial 2'!E9,'Trial 3'!E9,'Trial 4'!E9,'Trial 5'!E9,'Trial 6'!E9,'Trial 7'!E9,'Trial 8'!E9)","v":{"v":977310.2263275094,"d":"$977,310"}},{"$f":"AVERAGE('Trial 1'!F9,'Trial 2'!F9,'Trial 3'!F9,'Trial 4'!F9,'Trial 5'!F9,'Trial 6'!F9,'Trial 7'!F9,'Trial 8'!F9)","v":{"v":987073.7121110882,"d":"$987,074"}},{"$f":"AVERAGE('Trial 1'!G9,'Trial 2'!G9,'Trial 3'!G9,'Trial 4'!G9,'Trial 5'!G9,'Trial 6'!G9,'Trial 7'!G9,'Trial 8'!G9)","v":{"v":973198.5247249942,"d":"$973,199"}},{"$f":"AVERAGE('Trial 1'!H9,'Trial 2'!H9,'Trial 3'!H9,'Trial 4'!H9,'Trial 5'!H9,'Trial 6'!H9,'Trial 7'!H9,'Trial 8'!H9)","v":{"v":954530.0229416194,"d":"$954,530"}},{"$f":"AVERAGE('Trial 1'!I9,'Trial 2'!I9,'Trial 3'!I9,'Trial 4'!I9,'Trial 5'!I9,'Trial 6'!I9,'Trial 7'!I9,'Trial 8'!I9)","v":{"v":962727.0253495164,"d":"$962,727"}},{"$f":"AVERAGE('Trial 1'!J9,'Trial 2'!J9,'Trial 3'!J9,'Trial 4'!J9,'Trial 5'!J9,'Trial 6'!J9,'Trial 7'!J9,'Trial 8'!J9)","v":{"v":963765.3008919148,"d":"$963,765"}},{"$f":"AVERAGE('Trial 1'!K9,'Trial 2'!K9,'Trial 3'!K9,'Trial 4'!K9,'Trial 5'!K9,'Trial 6'!K9,'Trial 7'!K9,'Trial 8'!K9)","v":{"v":963435.4164903747,"d":"$963,435"}},{"$f":"AVERAGE('Trial 1'!L9,'Trial 2'!L9,'Trial 3'!L9,'Trial 4'!L9,'Trial 5'!L9,'Trial 6'!L9,'Trial 7'!L9,'Trial 8'!L9)","v":{"v":960918.0492051082,"d":"$960,918"}},{"$f":"AVERAGE('Trial 1'!M9,'Trial 2'!M9,'Trial 3'!M9,'Trial 4'!M9,'Trial 5'!M9,'Trial 6'!M9,'Trial 7'!M9,'Trial 8'!M9)","v":{"v":954429.7555651193,"d":"$954,430"}},{"$f":"SUM(B12:M12)","v":{"v":11555013.622501,"d":"$11,555,014"}},{"$f":"AVERAGE('Trial 1'!O9,'Trial 2'!O9,'Trial 3'!O9,'Trial 4'!O9,'Trial 5'!O9,'Trial 6'!O9,'Trial 7'!O9,'Trial 8'!O9)","v":{"v":965513.8386800769,"d":"$965,514"}},{"$f":"AVERAGE('Trial 1'!P9,'Trial 2'!P9,'Trial 3'!P9,'Trial 4'!P9,'Trial 5'!P9,'Trial 6'!P9,'Trial 7'!P9,'Trial 8'!P9)","v":{"v":961765.5226264244,"d":"$961,766"}},{"$f":"AVERAGE('Trial 1'!Q9,'Trial 2'!Q9,'Trial 3'!Q9,'Trial 4'!Q9,'Trial 5'!Q9,'Trial 6'!Q9,'Trial 7'!Q9,'Trial 8'!Q9)","v":{"v":965809.2120917377,"d":"$965,809"}},{"$f":"AVERAGE('Trial 1'!R9,'Trial 2'!R9,'Trial 3'!R9,'Trial 4'!R9,'Trial 5'!R9,'Trial 6'!R9,'Trial 7'!R9,'Trial 8'!R9)","v":{"v":969968.3202368849,"d":"$969,968"}},{"$f":"AVERAGE('Trial 1'!S9,'Trial 2'!S9,'Trial 3'!S9,'Trial 4'!S9,'Trial 5'!S9,'Trial 6'!S9,'Trial 7'!S9,'Trial 8'!S9)","v":{"v":930744.0642282142,"d":"$930,744"}},{"$f":"AVERAGE('Trial 1'!T9,'Trial 2'!T9,'Trial 3'!T9,'Trial 4'!T9,'Trial 5'!T9,'Trial 6'!T9,'Trial 7'!T9,'Trial 8'!T9)","v":{"v":963284.0927163173,"d":"$963,284"}},{"$f":"AVERAGE('Trial 1'!U9,'Trial 2'!U9,'Trial 3'!U9,'Trial 4'!U9,'Trial 5'!U9,'Trial 6'!U9,'Trial 7'!U9,'Trial 8'!U9)","v":{"v":939672.5179396513,"d":"$939,673"}},{"$f":"AVERAGE('Trial 1'!V9,'Trial 2'!V9,'Trial 3'!V9,'Trial 4'!V9,'Trial 5'!V9,'Trial 6'!V9,'Trial 7'!V9,'Trial 8'!V9)","v":{"v":941982.068873345,"d":"$941,982"}},{"$f":"AVERAGE('Trial 1'!W9,'Trial 2'!W9,'Trial 3'!W9,'Trial 4'!W9,'Trial 5'!W9,'Trial 6'!W9,'Trial 7'!W9,'Trial 8'!W9)","v":{"v":968805.1183620363,"d":"$968,805"}},{"$f":"AVERAGE('Trial 1'!X9,'Trial 2'!X9,'Trial 3'!X9,'Trial 4'!X9,'Trial 5'!X9,'Trial 6'!X9,'Trial 7'!X9,'Trial 8'!X9)","v":{"v":946562.3323678274,"d":"$946,562"}},{"$f":"AVERAGE('Trial 1'!Y9,'Trial 2'!Y9,'Trial 3'!Y9,'Trial 4'!Y9,'Trial 5'!Y9,'Trial 6'!Y9,'Trial 7'!Y9,'Trial 8'!Y9)","v":{"v":948060.7601766348,"d":"$948,061"}},{"$f":"AVERAGE('Trial 1'!Z9,'Trial 2'!Z9,'Trial 3'!Z9,'Trial 4'!Z9,'Trial 5'!Z9,'Trial 6'!Z9,'Trial 7'!Z9,'Trial 8'!Z9)","v":{"v":925669.0386969738,"d":"$925,669"}},{"$f":"SUM(O12:Z12)","v":{"v":11427836.886996126,"d":"$11,427,837"}},{"$f":"AVERAGE('Trial 1'!AB9,'Trial 2'!AB9,'Trial 3'!AB9,'Trial 4'!AB9,'Trial 5'!AB9,'Trial 6'!AB9,'Trial 7'!AB9,'Trial 8'!AB9)","v":{"v":950528.434991239,"d":"$950,528"}},{"$f":"AVERAGE('Trial 1'!AC9,'Trial 2'!AC9,'Trial 3'!AC9,'Trial 4'!AC9,'Trial 5'!AC9,'Trial 6'!AC9,'Trial 7'!AC9,'Trial 8'!AC9)","v":{"v":959859.5248802459,"d":"$959,860"}},{"$f":"AVERAGE('Trial 1'!AD9,'Trial 2'!AD9,'Trial 3'!AD9,'Trial 4'!AD9,'Trial 5'!AD9,'Trial 6'!AD9,'Trial 7'!AD9,'Trial 8'!AD9)","v":{"v":952271.5687168156,"d":"$952,272"}},{"$f":"AVERAGE('Trial 1'!AE9,'Trial 2'!AE9,'Trial 3'!AE9,'Trial 4'!AE9,'Trial 5'!AE9,'Trial 6'!AE9,'Trial 7'!AE9,'Trial 8'!AE9)","v":{"v":948633.6520666349,"d":"$948,634"}},{"$f":"AVERAGE('Trial 1'!AF9,'Trial 2'!AF9,'Trial 3'!AF9,'Trial 4'!AF9,'Trial 5'!AF9,'Trial 6'!AF9,'Trial 7'!AF9,'Trial 8'!AF9)","v":{"v":931960.2980298412,"d":"$931,960"}},{"$f":"AVERAGE('Trial 1'!AG9,'Trial 2'!AG9,'Trial 3'!AG9,'Trial 4'!AG9,'Trial 5'!AG9,'Trial 6'!AG9,'Trial 7'!AG9,'Trial 8'!AG9)","v":{"v":954085.5695273769,"d":"$954,086"}},{"$f":"AVERAGE('Trial 1'!AH9,'Trial 2'!AH9,'Trial 3'!AH9,'Trial 4'!AH9,'Trial 5'!AH9,'Trial 6'!AH9,'Trial 7'!AH9,'Trial 8'!AH9)","v":{"v":962943.0447774406,"d":"$962,943"}},{"$f":"AVERAGE('Trial 1'!AI9,'Trial 2'!AI9,'Trial 3'!AI9,'Trial 4'!AI9,'Trial 5'!AI9,'Trial 6'!AI9,'Trial 7'!AI9,'Trial 8'!AI9)","v":{"v":929365.5361682782,"d":"$929,366"}},{"$f":"AVERAGE('Trial 1'!AJ9,'Trial 2'!AJ9,'Trial 3'!AJ9,'Trial 4'!AJ9,'Trial 5'!AJ9,'Trial 6'!AJ9,'Trial 7'!AJ9,'Trial 8'!AJ9)","v":{"v":948924.5935027299,"d":"$948,925"}},{"$f":"AVERAGE('Trial 1'!AK9,'Trial 2'!AK9,'Trial 3'!AK9,'Trial 4'!AK9,'Trial 5'!AK9,'Trial 6'!AK9,'Trial 7'!AK9,'Trial 8'!AK9)","v":{"v":953002.7232092486,"d":"$953,003"}},{"$f":"AVERAGE('Trial 1'!AL9,'Trial 2'!AL9,'Trial 3'!AL9,'Trial 4'!AL9,'Trial 5'!AL9,'Trial 6'!AL9,'Trial 7'!AL9,'Trial 8'!AL9)","v":{"v":956207.1480294332,"d":"$956,207"}},{"$f":"AVERAGE('Trial 1'!AM9,'Trial 2'!AM9,'Trial 3'!AM9,'Trial 4'!AM9,'Trial 5'!AM9,'Trial 6'!AM9,'Trial 7'!AM9,'Trial 8'!AM9)","v":{"v":934719.595930171,"d":"$934,720"}},{"$f":"SUM(AB12:AM12)","v":{"v":11382501.689829456,"d":"$11,382,502"}},{"$f":"AVERAGE('Trial 1'!AO9,'Trial 2'!AO9,'Trial 3'!AO9,'Trial 4'!AO9,'Trial 5'!AO9,'Trial 6'!AO9,'Trial 7'!AO9,'Trial 8'!AO9)","v":{"v":945565.2775006059,"d":"$945,565"}},{"$f":"AVERAGE('Trial 1'!AP9,'Trial 2'!AP9,'Trial 3'!AP9,'Trial 4'!AP9,'Trial 5'!AP9,'Trial 6'!AP9,'Trial 7'!AP9,'Trial 8'!AP9)","v":{"v":957817.8057990074,"d":"$957,818"}},{"$f":"AVERAGE('Trial 1'!AQ9,'Trial 2'!AQ9,'Trial 3'!AQ9,'Trial 4'!AQ9,'Trial 5'!AQ9,'Trial 6'!AQ9,'Trial 7'!AQ9,'Trial 8'!AQ9)","v":{"v":934101.9416644556,"d":"$934,102"}},{"$f":"AVERAGE('Trial 1'!AR9,'Trial 2'!AR9,'Trial 3'!AR9,'Trial 4'!AR9,'Trial 5'!AR9,'Trial 6'!AR9,'Trial 7'!AR9,'Trial 8'!AR9)","v":{"v":941674.6373297774,"d":"$941,675"}},{"$f":"AVERAGE('Trial 1'!AS9,'Trial 2'!AS9,'Trial 3'!AS9,'Trial 4'!AS9,'Trial 5'!AS9,'Trial 6'!AS9,'Trial 7'!AS9,'Trial 8'!AS9)","v":{"v":954509.3346523442,"d":"$954,509"}},{"$f":"AVERAGE('Trial 1'!AT9,'Trial 2'!AT9,'Trial 3'!AT9,'Trial 4'!AT9,'Trial 5'!AT9,'Trial 6'!AT9,'Trial 7'!AT9,'Trial 8'!AT9)","v":{"v":940976.1012022123,"d":"$940,976"}},{"$f":"AVERAGE('Trial 1'!AU9,'Trial 2'!AU9,'Trial 3'!AU9,'Trial 4'!AU9,'Trial 5'!AU9,'Trial 6'!AU9,'Trial 7'!AU9,'Trial 8'!AU9)","v":{"v":936757.6446874797,"d":"$936,758"}},{"$f":"AVERAGE('Trial 1'!AV9,'Trial 2'!AV9,'Trial 3'!AV9,'Trial 4'!AV9,'Trial 5'!AV9,'Trial 6'!AV9,'Trial 7'!AV9,'Trial 8'!AV9)","v":{"v":942535.6229063715,"d":"$942,536"}},{"$f":"AVERAGE('Trial 1'!AW9,'Trial 2'!AW9,'Trial 3'!AW9,'Trial 4'!AW9,'Trial 5'!AW9,'Trial 6'!AW9,'Trial 7'!AW9,'Trial 8'!AW9)","v":{"v":927621.0734806113,"d":"$927,621"}},{"$f":"AVERAGE('Trial 1'!AX9,'Trial 2'!AX9,'Trial 3'!AX9,'Trial 4'!AX9,'Trial 5'!AX9,'Trial 6'!AX9,'Trial 7'!AX9,'Trial 8'!AX9)","v":{"v":935671.0796549628,"d":"$935,671"}},{"$f":"AVERAGE('Trial 1'!AY9,'Trial 2'!AY9,'Trial 3'!AY9,'Trial 4'!AY9,'Trial 5'!AY9,'Trial 6'!AY9,'Trial 7'!AY9,'Trial 8'!AY9)","v":{"v":941392.7963841053,"d":"$941,393"}},{"$f":"AVERAGE('Trial 1'!AZ9,'Trial 2'!AZ9,'Trial 3'!AZ9,'Trial 4'!AZ9,'Trial 5'!AZ9,'Trial 6'!AZ9,'Trial 7'!AZ9,'Trial 8'!AZ9)","v":{"v":922583.3405784119,"d":"$922,583"}},{"$f":"SUM(AO12:AZ12)","v":{"v":11281206.655840345,"d":"$11,281,207"}},{"$f":"AVERAGE('Trial 1'!BB9,'Trial 2'!BB9,'Trial 3'!BB9,'Trial 4'!BB9,'Trial 5'!BB9,'Trial 6'!BB9,'Trial 7'!BB9,'Trial 8'!BB9)","v":{"v":924391.1416640636,"d":"$924,391"}},{"$f":"AVERAGE('Trial 1'!BC9,'Trial 2'!BC9,'Trial 3'!BC9,'Trial 4'!BC9,'Trial 5'!BC9,'Trial 6'!BC9,'Trial 7'!BC9,'Trial 8'!BC9)","v":{"v":933777.2668153542,"d":"$933,777"}},{"$f":"AVERAGE('Trial 1'!BD9,'Trial 2'!BD9,'Trial 3'!BD9,'Trial 4'!BD9,'Trial 5'!BD9,'Trial 6'!BD9,'Trial 7'!BD9,'Trial 8'!BD9)","v":{"v":937571.9313695487,"d":"$937,572"}},{"$f":"AVERAGE('Trial 1'!BE9,'Trial 2'!BE9,'Trial 3'!BE9,'Trial 4'!BE9,'Trial 5'!BE9,'Trial 6'!BE9,'Trial 7'!BE9,'Trial 8'!BE9)","v":{"v":933117.2849982342,"d":"$933,117"}},{"$f":"AVERAGE('Trial 1'!BF9,'Trial 2'!BF9,'Trial 3'!BF9,'Trial 4'!BF9,'Trial 5'!BF9,'Trial 6'!BF9,'Trial 7'!BF9,'Trial 8'!BF9)","v":{"v":941233.5752898123,"d":"$941,234"}},{"$f":"AVERAGE('Trial 1'!BG9,'Trial 2'!BG9,'Trial 3'!BG9,'Trial 4'!BG9,'Trial 5'!BG9,'Trial 6'!BG9,'Trial 7'!BG9,'Trial 8'!BG9)","v":{"v":940776.3547736562,"d":"$940,776"}},{"$f":"AVERAGE('Trial 1'!BH9,'Trial 2'!BH9,'Trial 3'!BH9,'Trial 4'!BH9,'Trial 5'!BH9,'Trial 6'!BH9,'Trial 7'!BH9,'Trial 8'!BH9)","v":{"v":920360.65714905,"d":"$920,361"}},{"$f":"AVERAGE('Trial 1'!BI9,'Trial 2'!BI9,'Trial 3'!BI9,'Trial 4'!BI9,'Trial 5'!BI9,'Trial 6'!BI9,'Trial 7'!BI9,'Trial 8'!BI9)","v":{"v":928098.0451811933,"d":"$928,098"}},{"$f":"AVERAGE('Trial 1'!BJ9,'Trial 2'!BJ9,'Trial 3'!BJ9,'Trial 4'!BJ9,'Trial 5'!BJ9,'Trial 6'!BJ9,'Trial 7'!BJ9,'Trial 8'!BJ9)","v":{"v":941473.2354506741,"d":"$941,473"}},{"$f":"AVERAGE('Trial 1'!BK9,'Trial 2'!BK9,'Trial 3'!BK9,'Trial 4'!BK9,'Trial 5'!BK9,'Trial 6'!BK9,'Trial 7'!BK9,'Trial 8'!BK9)","v":{"v":929883.6771244695,"d":"$929,884"}},{"$f":"AVERAGE('Trial 1'!BL9,'Trial 2'!BL9,'Trial 3'!BL9,'Trial 4'!BL9,'Trial 5'!BL9,'Trial 6'!BL9,'Trial 7'!BL9,'Trial 8'!BL9)","v":{"v":940902.4884359788,"d":"$940,902"}},{"$f":"AVERAGE('Trial 1'!BM9,'Trial 2'!BM9,'Trial 3'!BM9,'Trial 4'!BM9,'Trial 5'!BM9,'Trial 6'!BM9,'Trial 7'!BM9,'Trial 8'!BM9)","v":{"v":930850.2015261502,"d":"$930,850"}},{"$f":"SUM(BB12:BM12)","v":{"v":11202435.859778186,"d":"$11,202,436"}},{"$f":"AVERAGE('Trial 1'!BO9,'Trial 2'!BO9,'Trial 3'!BO9,'Trial 4'!BO9,'Trial 5'!BO9,'Trial 6'!BO9,'Trial 7'!BO9,'Trial 8'!BO9)","v":{"v":929321.0076345783,"d":"$929,321"}},{"$f":"AVERAGE('Trial 1'!BP9,'Trial 2'!BP9,'Trial 3'!BP9,'Trial 4'!BP9,'Trial 5'!BP9,'Trial 6'!BP9,'Trial 7'!BP9,'Trial 8'!BP9)","v":{"v":935234.2911714142,"d":"$935,234"}},{"$f":"AVERAGE('Trial 1'!BQ9,'Trial 2'!BQ9,'Trial 3'!BQ9,'Trial 4'!BQ9,'Trial 5'!BQ9,'Trial 6'!BQ9,'Trial 7'!BQ9,'Trial 8'!BQ9)","v":{"v":945365.7284910777,"d":"$945,366"}},{"$f":"AVERAGE('Trial 1'!BR9,'Trial 2'!BR9,'Trial 3'!BR9,'Trial 4'!BR9,'Trial 5'!BR9,'Trial 6'!BR9,'Trial 7'!BR9,'Trial 8'!BR9)","v":{"v":941539.0408748457,"d":"$941,539"}},{"$f":"AVERAGE('Trial 1'!BS9,'Trial 2'!BS9,'Trial 3'!BS9,'Trial 4'!BS9,'Trial 5'!BS9,'Trial 6'!BS9,'Trial 7'!BS9,'Trial 8'!BS9)","v":{"v":924218.3575030024,"d":"$924,218"}},{"$f":"AVERAGE('Trial 1'!BT9,'Trial 2'!BT9,'Trial 3'!BT9,'Trial 4'!BT9,'Trial 5'!BT9,'Trial 6'!BT9,'Trial 7'!BT9,'Trial 8'!BT9)","v":{"v":949323.7703810995,"d":"$949,324"}},{"$f":"AVERAGE('Trial 1'!BU9,'Trial 2'!BU9,'Trial 3'!BU9,'Trial 4'!BU9,'Trial 5'!BU9,'Trial 6'!BU9,'Trial 7'!BU9,'Trial 8'!BU9)","v":{"v":921852.579081735,"d":"$921,853"}},{"$f":"AVERAGE('Trial 1'!BV9,'Trial 2'!BV9,'Trial 3'!BV9,'Trial 4'!BV9,'Trial 5'!BV9,'Trial 6'!BV9,'Trial 7'!BV9,'Trial 8'!BV9)","v":{"v":927894.2291991905,"d":"$927,894"}},{"$f":"AVERAGE('Trial 1'!BW9,'Trial 2'!BW9,'Trial 3'!BW9,'Trial 4'!BW9,'Trial 5'!BW9,'Trial 6'!BW9,'Trial 7'!BW9,'Trial 8'!BW9)","v":{"v":944173.7604552447,"d":"$944,174"}},{"$f":"AVERAGE('Trial 1'!BX9,'Trial 2'!BX9,'Trial 3'!BX9,'Trial 4'!BX9,'Trial 5'!BX9,'Trial 6'!BX9,'Trial 7'!BX9,'Trial 8'!BX9)","v":{"v":919593.6758617752,"d":"$919,594"}},{"$f":"AVERAGE('Trial 1'!BY9,'Trial 2'!BY9,'Trial 3'!BY9,'Trial 4'!BY9,'Trial 5'!BY9,'Trial 6'!BY9,'Trial 7'!BY9,'Trial 8'!BY9)","v":{"v":940724.2610055457,"d":"$940,724"}},{"$f":"AVERAGE('Trial 1'!BZ9,'Trial 2'!BZ9,'Trial 3'!BZ9,'Trial 4'!BZ9,'Trial 5'!BZ9,'Trial 6'!BZ9,'Trial 7'!BZ9,'Trial 8'!BZ9)","v":{"v":929556.3938848831,"d":"$929,556"}},{"$f":"SUM(BO12:BZ12)","v":{"v":11208797.09554439,"d":"$11,208,797"}},{"$f":"AVERAGE('Trial 1'!CB9,'Trial 2'!CB9,'Trial 3'!CB9,'Trial 4'!CB9,'Trial 5'!CB9,'Trial 6'!CB9,'Trial 7'!CB9,'Trial 8'!CB9)","v":{"v":925901.4260901478,"d":"$925,901"}},{"$f":"AVERAGE('Trial 1'!CC9,'Trial 2'!CC9,'Trial 3'!CC9,'Trial 4'!CC9,'Trial 5'!CC9,'Trial 6'!CC9,'Trial 7'!CC9,'Trial 8'!CC9)","v":{"v":923253.1669720379,"d":"$923,253"}},{"$f":"AVERAGE('Trial 1'!CD9,'Trial 2'!CD9,'Trial 3'!CD9,'Trial 4'!CD9,'Trial 5'!CD9,'Trial 6'!CD9,'Trial 7'!CD9,'Trial 8'!CD9)","v":{"v":934441.0330233488,"d":"$934,441"}},{"$f":"AVERAGE('Trial 1'!CE9,'Trial 2'!CE9,'Trial 3'!CE9,'Trial 4'!CE9,'Trial 5'!CE9,'Trial 6'!CE9,'Trial 7'!CE9,'Trial 8'!CE9)","v":{"v":916311.1044082881,"d":"$916,311"}},{"$f":"AVERAGE('Trial 1'!CF9,'Trial 2'!CF9,'Trial 3'!CF9,'Trial 4'!CF9,'Trial 5'!CF9,'Trial 6'!CF9,'Trial 7'!CF9,'Trial 8'!CF9)","v":{"v":924970.7317267632,"d":"$924,971"}},{"$f":"AVERAGE('Trial 1'!CG9,'Trial 2'!CG9,'Trial 3'!CG9,'Trial 4'!CG9,'Trial 5'!CG9,'Trial 6'!CG9,'Trial 7'!CG9,'Trial 8'!CG9)","v":{"v":953825.0826721269,"d":"$953,825"}},{"$f":"AVERAGE('Trial 1'!CH9,'Trial 2'!CH9,'Trial 3'!CH9,'Trial 4'!CH9,'Trial 5'!CH9,'Trial 6'!CH9,'Trial 7'!CH9,'Trial 8'!CH9)","v":{"v":929649.8067344904,"d":"$929,650"}},{"$f":"AVERAGE('Trial 1'!CI9,'Trial 2'!CI9,'Trial 3'!CI9,'Trial 4'!CI9,'Trial 5'!CI9,'Trial 6'!CI9,'Trial 7'!CI9,'Trial 8'!CI9)","v":{"v":935000.5453881549,"d":"$935,001"}},{"$f":"AVERAGE('Trial 1'!CJ9,'Trial 2'!CJ9,'Trial 3'!CJ9,'Trial 4'!CJ9,'Trial 5'!CJ9,'Trial 6'!CJ9,'Trial 7'!CJ9,'Trial 8'!CJ9)","v":{"v":930435.6957737833,"d":"$930,436"}},{"$f":"AVERAGE('Trial 1'!CK9,'Trial 2'!CK9,'Trial 3'!CK9,'Trial 4'!CK9,'Trial 5'!CK9,'Trial 6'!CK9,'Trial 7'!CK9,'Trial 8'!CK9)","v":{"v":943655.9675704903,"d":"$943,656"}},{"$f":"AVERAGE('Trial 1'!CL9,'Trial 2'!CL9,'Trial 3'!CL9,'Trial 4'!CL9,'Trial 5'!CL9,'Trial 6'!CL9,'Trial 7'!CL9,'Trial 8'!CL9)","v":{"v":922283.7009274177,"d":"$922,284"}},{"$f":"AVERAGE('Trial 1'!CM9,'Trial 2'!CM9,'Trial 3'!CM9,'Trial 4'!CM9,'Trial 5'!CM9,'Trial 6'!CM9,'Trial 7'!CM9,'Trial 8'!CM9)","v":{"v":940494.8010391735,"d":"$940,495"}},{"$f":"SUM(CB12:CM12)","v":{"v":11180223.062326223,"d":"$11,180,223"}},{"$f":"AVERAGE('Trial 1'!CO9,'Trial 2'!CO9,'Trial 3'!CO9,'Trial 4'!CO9,'Trial 5'!CO9,'Trial 6'!CO9,'Trial 7'!CO9,'Trial 8'!CO9)","v":{"v":931542.7118366954,"d":"$931,543"}},{"$f":"AVERAGE('Trial 1'!CP9,'Trial 2'!CP9,'Trial 3'!CP9,'Trial 4'!CP9,'Trial 5'!CP9,'Trial 6'!CP9,'Trial 7'!CP9,'Trial 8'!CP9)","v":{"v":931879.6542507672,"d":"$931,880"}},{"$f":"AVERAGE('Trial 1'!CQ9,'Trial 2'!CQ9,'Trial 3'!CQ9,'Trial 4'!CQ9,'Trial 5'!CQ9,'Trial 6'!CQ9,'Trial 7'!CQ9,'Trial 8'!CQ9)","v":{"v":929951.8412784707,"d":"$929,952"}},{"$f":"AVERAGE('Trial 1'!CR9,'Trial 2'!CR9,'Trial 3'!CR9,'Trial 4'!CR9,'Trial 5'!CR9,'Trial 6'!CR9,'Trial 7'!CR9,'Trial 8'!CR9)","v":{"v":923777.1172299235,"d":"$923,777"}},{"$f":"AVERAGE('Trial 1'!CS9,'Trial 2'!CS9,'Trial 3'!CS9,'Trial 4'!CS9,'Trial 5'!CS9,'Trial 6'!CS9,'Trial 7'!CS9,'Trial 8'!CS9)","v":{"v":901131.4283376606,"d":"$901,131"}},{"$f":"AVERAGE('Trial 1'!CT9,'Trial 2'!CT9,'Trial 3'!CT9,'Trial 4'!CT9,'Trial 5'!CT9,'Trial 6'!CT9,'Trial 7'!CT9,'Trial 8'!CT9)","v":{"v":911038.4457875164,"d":"$911,038"}},{"$f":"AVERAGE('Trial 1'!CU9,'Trial 2'!CU9,'Trial 3'!CU9,'Trial 4'!CU9,'Trial 5'!CU9,'Trial 6'!CU9,'Trial 7'!CU9,'Trial 8'!CU9)","v":{"v":944840.8428681069,"d":"$944,841"}},{"$f":"AVERAGE('Trial 1'!CV9,'Trial 2'!CV9,'Trial 3'!CV9,'Trial 4'!CV9,'Trial 5'!CV9,'Trial 6'!CV9,'Trial 7'!CV9,'Trial 8'!CV9)","v":{"v":917068.1892866715,"d":"$917,068"}},{"$f":"AVERAGE('Trial 1'!CW9,'Trial 2'!CW9,'Trial 3'!CW9,'Trial 4'!CW9,'Trial 5'!CW9,'Trial 6'!CW9,'Trial 7'!CW9,'Trial 8'!CW9)","v":{"v":918620.5130734203,"d":"$918,621"}},{"$f":"AVERAGE('Trial 1'!CX9,'Trial 2'!CX9,'Trial 3'!CX9,'Trial 4'!CX9,'Trial 5'!CX9,'Trial 6'!CX9,'Trial 7'!CX9,'Trial 8'!CX9)","v":{"v":913937.0022630336,"d":"$913,937"}},{"$f":"AVERAGE('Trial 1'!CY9,'Trial 2'!CY9,'Trial 3'!CY9,'Trial 4'!CY9,'Trial 5'!CY9,'Trial 6'!CY9,'Trial 7'!CY9,'Trial 8'!CY9)","v":{"v":926859.4406253026,"d":"$926,859"}},{"$f":"AVERAGE('Trial 1'!CZ9,'Trial 2'!CZ9,'Trial 3'!CZ9,'Trial 4'!CZ9,'Trial 5'!CZ9,'Trial 6'!CZ9,'Trial 7'!CZ9,'Trial 8'!CZ9)","v":{"v":914770.6968415948,"d":"$914,771"}},{"$f":"SUM(CO12:CZ12)","v":{"v":11065417.883679163,"d":"$11,065,418"}},{"$f":"AVERAGE('Trial 1'!DB9,'Trial 2'!DB9,'Trial 3'!DB9,'Trial 4'!DB9,'Trial 5'!DB9,'Trial 6'!DB9,'Trial 7'!DB9,'Trial 8'!DB9)","v":{"v":928251.4400514043,"d":"$928,251"}},{"$f":"AVERAGE('Trial 1'!DC9,'Trial 2'!DC9,'Trial 3'!DC9,'Trial 4'!DC9,'Trial 5'!DC9,'Trial 6'!DC9,'Trial 7'!DC9,'Trial 8'!DC9)","v":{"v":906240.5333397244,"d":"$906,241"}},{"$f":"AVERAGE('Trial 1'!DD9,'Trial 2'!DD9,'Trial 3'!DD9,'Trial 4'!DD9,'Trial 5'!DD9,'Trial 6'!DD9,'Trial 7'!DD9,'Trial 8'!DD9)","v":{"v":912894.3973253702,"d":"$912,894"}},{"$f":"AVERAGE('Trial 1'!DE9,'Trial 2'!DE9,'Trial 3'!DE9,'Trial 4'!DE9,'Trial 5'!DE9,'Trial 6'!DE9,'Trial 7'!DE9,'Trial 8'!DE9)","v":{"v":924374.700370115,"d":"$924,375"}},{"$f":"AVERAGE('Trial 1'!DF9,'Trial 2'!DF9,'Trial 3'!DF9,'Trial 4'!DF9,'Trial 5'!DF9,'Trial 6'!DF9,'Trial 7'!DF9,'Trial 8'!DF9)","v":{"v":916644.9086969255,"d":"$916,645"}},{"$f":"AVERAGE('Trial 1'!DG9,'Trial 2'!DG9,'Trial 3'!DG9,'Trial 4'!DG9,'Trial 5'!DG9,'Trial 6'!DG9,'Trial 7'!DG9,'Trial 8'!DG9)","v":{"v":912995.7447485721,"d":"$912,996"}},{"$f":"AVERAGE('Trial 1'!DH9,'Trial 2'!DH9,'Trial 3'!DH9,'Trial 4'!DH9,'Trial 5'!DH9,'Trial 6'!DH9,'Trial 7'!DH9,'Trial 8'!DH9)","v":{"v":910383.763122502,"d":"$910,384"}},{"$f":"AVERAGE('Trial 1'!DI9,'Trial 2'!DI9,'Trial 3'!DI9,'Trial 4'!DI9,'Trial 5'!DI9,'Trial 6'!DI9,'Trial 7'!DI9,'Trial 8'!DI9)","v":{"v":906696.0203934539,"d":"$906,696"}},{"$f":"AVERAGE('Trial 1'!DJ9,'Trial 2'!DJ9,'Trial 3'!DJ9,'Trial 4'!DJ9,'Trial 5'!DJ9,'Trial 6'!DJ9,'Trial 7'!DJ9,'Trial 8'!DJ9)","v":{"v":914945.2676099403,"d":"$914,945"}},{"$f":"AVERAGE('Trial 1'!DK9,'Trial 2'!DK9,'Trial 3'!DK9,'Trial 4'!DK9,'Trial 5'!DK9,'Trial 6'!DK9,'Trial 7'!DK9,'Trial 8'!DK9)","v":{"v":912183.861473771,"d":"$912,184"}},{"$f":"AVERAGE('Trial 1'!DL9,'Trial 2'!DL9,'Trial 3'!DL9,'Trial 4'!DL9,'Trial 5'!DL9,'Trial 6'!DL9,'Trial 7'!DL9,'Trial 8'!DL9)","v":{"v":904450.4134348409,"d":"$904,450"}},{"$f":"AVERAGE('Trial 1'!DM9,'Trial 2'!DM9,'Trial 3'!DM9,'Trial 4'!DM9,'Trial 5'!DM9,'Trial 6'!DM9,'Trial 7'!DM9,'Trial 8'!DM9)","v":{"v":907079.0906581954,"d":"$907,079"}},{"$f":"SUM(DB12:DM12)","v":{"v":10957140.141224815,"d":"$10,957,140"}},{"$f":"AVERAGE('Trial 1'!DO9,'Trial 2'!DO9,'Trial 3'!DO9,'Trial 4'!DO9,'Trial 5'!DO9,'Trial 6'!DO9,'Trial 7'!DO9,'Trial 8'!DO9)","v":{"v":923024.7093719998,"d":"$923,025"}},{"$f":"AVERAGE('Trial 1'!DP9,'Trial 2'!DP9,'Trial 3'!DP9,'Trial 4'!DP9,'Trial 5'!DP9,'Trial 6'!DP9,'Trial 7'!DP9,'Trial 8'!DP9)","v":{"v":906691.2539575677,"d":"$906,691"}},{"$f":"AVERAGE('Trial 1'!DQ9,'Trial 2'!DQ9,'Trial 3'!DQ9,'Trial 4'!DQ9,'Trial 5'!DQ9,'Trial 6'!DQ9,'Trial 7'!DQ9,'Trial 8'!DQ9)","v":{"v":927149.5725572938,"d":"$927,150"}},{"$f":"AVERAGE('Trial 1'!DR9,'Trial 2'!DR9,'Trial 3'!DR9,'Trial 4'!DR9,'Trial 5'!DR9,'Trial 6'!DR9,'Trial 7'!DR9,'Trial 8'!DR9)","v":{"v":914370.7130012822,"d":"$914,371"}},{"$f":"AVERAGE('Trial 1'!DS9,'Trial 2'!DS9,'Trial 3'!DS9,'Trial 4'!DS9,'Trial 5'!DS9,'Trial 6'!DS9,'Trial 7'!DS9,'Trial 8'!DS9)","v":{"v":912291.7391138636,"d":"$912,292"}},{"$f":"AVERAGE('Trial 1'!DT9,'Trial 2'!DT9,'Trial 3'!DT9,'Trial 4'!DT9,'Trial 5'!DT9,'Trial 6'!DT9,'Trial 7'!DT9,'Trial 8'!DT9)","v":{"v":924875.2733042908,"d":"$924,875"}},{"$f":"AVERAGE('Trial 1'!DU9,'Trial 2'!DU9,'Trial 3'!DU9,'Trial 4'!DU9,'Trial 5'!DU9,'Trial 6'!DU9,'Trial 7'!DU9,'Trial 8'!DU9)","v":{"v":915931.2543989666,"d":"$915,931"}},{"$f":"AVERAGE('Trial 1'!DV9,'Trial 2'!DV9,'Trial 3'!DV9,'Trial 4'!DV9,'Trial 5'!DV9,'Trial 6'!DV9,'Trial 7'!DV9,'Trial 8'!DV9)","v":{"v":919330.1880341365,"d":"$919,330"}},{"$f":"AVERAGE('Trial 1'!DW9,'Trial 2'!DW9,'Trial 3'!DW9,'Trial 4'!DW9,'Trial 5'!DW9,'Trial 6'!DW9,'Trial 7'!DW9,'Trial 8'!DW9)","v":{"v":913334.544282031,"d":"$913,335"}},{"$f":"AVERAGE('Trial 1'!DX9,'Trial 2'!DX9,'Trial 3'!DX9,'Trial 4'!DX9,'Trial 5'!DX9,'Trial 6'!DX9,'Trial 7'!DX9,'Trial 8'!DX9)","v":{"v":910833.4158068191,"d":"$910,833"}},{"$f":"AVERAGE('Trial 1'!DY9,'Trial 2'!DY9,'Trial 3'!DY9,'Trial 4'!DY9,'Trial 5'!DY9,'Trial 6'!DY9,'Trial 7'!DY9,'Trial 8'!DY9)","v":{"v":911585.7380532031,"d":"$911,586"}},{"$f":"AVERAGE('Trial 1'!DZ9,'Trial 2'!DZ9,'Trial 3'!DZ9,'Trial 4'!DZ9,'Trial 5'!DZ9,'Trial 6'!DZ9,'Trial 7'!DZ9,'Trial 8'!DZ9)","v":{"v":894123.9257917233,"d":"$894,124"}},{"$f":"SUM(DO12:DZ12)","v":{"v":10973542.327673178,"d":"$10,973,542"}},{"$f":"AVERAGE('Trial 1'!EB9,'Trial 2'!EB9,'Trial 3'!EB9,'Trial 4'!EB9,'Trial 5'!EB9,'Trial 6'!EB9,'Trial 7'!EB9,'Trial 8'!EB9)","v":{"v":915252.3476055778,"d":"$915,252"}},{"$f":"AVERAGE('Trial 1'!EC9,'Trial 2'!EC9,'Trial 3'!EC9,'Trial 4'!EC9,'Trial 5'!EC9,'Trial 6'!EC9,'Trial 7'!EC9,'Trial 8'!EC9)","v":{"v":894997.5337407824,"d":"$894,998"}},{"$f":"AVERAGE('Trial 1'!ED9,'Trial 2'!ED9,'Trial 3'!ED9,'Trial 4'!ED9,'Trial 5'!ED9,'Trial 6'!ED9,'Trial 7'!ED9,'Trial 8'!ED9)","v":{"v":900599.6865617539,"d":"$900,600"}},{"$f":"AVERAGE('Trial 1'!EE9,'Trial 2'!EE9,'Trial 3'!EE9,'Trial 4'!EE9,'Trial 5'!EE9,'Trial 6'!EE9,'Trial 7'!EE9,'Trial 8'!EE9)","v":{"v":909354.0629359649,"d":"$909,354"}},{"$f":"AVERAGE('Trial 1'!EF9,'Trial 2'!EF9,'Trial 3'!EF9,'Trial 4'!EF9,'Trial 5'!EF9,'Trial 6'!EF9,'Trial 7'!EF9,'Trial 8'!EF9)","v":{"v":910726.7038606228,"d":"$910,727"}},{"$f":"AVERAGE('Trial 1'!EG9,'Trial 2'!EG9,'Trial 3'!EG9,'Trial 4'!EG9,'Trial 5'!EG9,'Trial 6'!EG9,'Trial 7'!EG9,'Trial 8'!EG9)","v":{"v":896604.8693361133,"d":"$896,605"}},{"$f":"AVERAGE('Trial 1'!EH9,'Trial 2'!EH9,'Trial 3'!EH9,'Trial 4'!EH9,'Trial 5'!EH9,'Trial 6'!EH9,'Trial 7'!EH9,'Trial 8'!EH9)","v":{"v":900369.9043964987,"d":"$900,370"}},{"$f":"AVERAGE('Trial 1'!EI9,'Trial 2'!EI9,'Trial 3'!EI9,'Trial 4'!EI9,'Trial 5'!EI9,'Trial 6'!EI9,'Trial 7'!EI9,'Trial 8'!EI9)","v":{"v":881391.1645037476,"d":"$881,391"}},{"$f":"AVERAGE('Trial 1'!EJ9,'Trial 2'!EJ9,'Trial 3'!EJ9,'Trial 4'!EJ9,'Trial 5'!EJ9,'Trial 6'!EJ9,'Trial 7'!EJ9,'Trial 8'!EJ9)","v":{"v":899764.4846489519,"d":"$899,764"}},{"$f":"AVERAGE('Trial 1'!EK9,'Trial 2'!EK9,'Trial 3'!EK9,'Trial 4'!EK9,'Trial 5'!EK9,'Trial 6'!EK9,'Trial 7'!EK9,'Trial 8'!EK9)","v":{"v":910378.0346562839,"d":"$910,378"}},{"$f":"AVERAGE('Trial 1'!EL9,'Trial 2'!EL9,'Trial 3'!EL9,'Trial 4'!EL9,'Trial 5'!EL9,'Trial 6'!EL9,'Trial 7'!EL9,'Trial 8'!EL9)","v":{"v":896488.4281232945,"d":"$896,488"}},{"$f":"AVERAGE('Trial 1'!EM9,'Trial 2'!EM9,'Trial 3'!EM9,'Trial 4'!EM9,'Trial 5'!EM9,'Trial 6'!EM9,'Trial 7'!EM9,'Trial 8'!EM9)","v":{"v":908113.2126987822,"d":"$908,113"}},{"$f":"SUM(EB12:EM12)","v":{"v":10824040.433068374,"d":"$10,824,040"}}]
[{"$f":"Labels!B30","v":"Aggregate Demand std dev"},{"$f":"STDEV('Trial 1'!B9,'Trial 2'!B9,'Trial 3'!B9,'Trial 4'!B9,'Trial 5'!B9,'Trial 6'!B9,'Trial 7'!B9,'Trial 8'!B9)","v":{"v":20429.028223053818,"d":"$20,429"}},{"$f":"STDEV('Trial 1'!C9,'Trial 2'!C9,'Trial 3'!C9,'Trial 4'!C9,'Trial 5'!C9,'Trial 6'!C9,'Trial 7'!C9,'Trial 8'!C9)","v":{"v":33244.71720103393,"d":"$33,245"}},{"$f":"STDEV('Trial 1'!D9,'Trial 2'!D9,'Trial 3'!D9,'Trial 4'!D9,'Trial 5'!D9,'Trial 6'!D9,'Trial 7'!D9,'Trial 8'!D9)","v":{"v":24422.612546285975,"d":"$24,423"}},{"$f":"STDEV('Trial 1'!E9,'Trial 2'!E9,'Trial 3'!E9,'Trial 4'!E9,'Trial 5'!E9,'Trial 6'!E9,'Trial 7'!E9,'Trial 8'!E9)","v":{"v":36623.145504324515,"d":"$36,623"}},{"$f":"STDEV('Trial 1'!F9,'Trial 2'!F9,'Trial 3'!F9,'Trial 4'!F9,'Trial 5'!F9,'Trial 6'!F9,'Trial 7'!F9,'Trial 8'!F9)","v":{"v":24638.11245152905,"d":"$24,638"}},{"$f":"STDEV('Trial 1'!G9,'Trial 2'!G9,'Trial 3'!G9,'Trial 4'!G9,'Trial 5'!G9,'Trial 6'!G9,'Trial 7'!G9,'Trial 8'!G9)","v":{"v":31338.661293788537,"d":"$31,339"}},{"$f":"STDEV('Trial 1'!H9,'Trial 2'!H9,'Trial 3'!H9,'Trial 4'!H9,'Trial 5'!H9,'Trial 6'!H9,'Trial 7'!H9,'Trial 8'!H9)","v":{"v":20812.663980070494,"d":"$20,813"}},{"$f":"STDEV('Trial 1'!I9,'Trial 2'!I9,'Trial 3'!I9,'Trial 4'!I9,'Trial 5'!I9,'Trial 6'!I9,'Trial 7'!I9,'Trial 8'!I9)","v":{"v":29936.54931066537,"d":"$29,937"}},{"$f":"STDEV('Trial 1'!J9,'Trial 2'!J9,'Trial 3'!J9,'Trial 4'!J9,'Trial 5'!J9,'Trial 6'!J9,'Trial 7'!J9,'Trial 8'!J9)","v":{"v":32892.588031922765,"d":"$32,893"}},{"$f":"STDEV('Trial 1'!K9,'Trial 2'!K9,'Trial 3'!K9,'Trial 4'!K9,'Trial 5'!K9,'Trial 6'!K9,'Trial 7'!K9,'Trial 8'!K9)","v":{"v":27869.60294702979,"d":"$27,870"}},{"$f":"STDEV('Trial 1'!L9,'Trial 2'!L9,'Trial 3'!L9,'Trial 4'!L9,'Trial 5'!L9,'Trial 6'!L9,'Trial 7'!L9,'Trial 8'!L9)","v":{"v":34138.32915590337,"d":"$34,138"}},{"$f":"STDEV('Trial 1'!M9,'Trial 2'!M9,'Trial 3'!M9,'Trial 4'!M9,'Trial 5'!M9,'Trial 6'!M9,'Trial 7'!M9,'Trial 8'!M9)","v":{"v":25186.272946618436,"d":"$25,186"}},{"v":341532.28359222604,"d":"$341,532"},{"$f":"STDEV('Trial 1'!O9,'Trial 2'!O9,'Trial 3'!O9,'Trial 4'!O9,'Trial 5'!O9,'Trial 6'!O9,'Trial 7'!O9,'Trial 8'!O9)","v":{"v":24625.85207438102,"d":"$24,626"}},{"$f":"STDEV('Trial 1'!P9,'Trial 2'!P9,'Trial 3'!P9,'Trial 4'!P9,'Trial 5'!P9,'Trial 6'!P9,'Trial 7'!P9,'Trial 8'!P9)","v":{"v":21873.45104873955,"d":"$21,873"}},{"$f":"STDEV('Trial 1'!Q9,'Trial 2'!Q9,'Trial 3'!Q9,'Trial 4'!Q9,'Trial 5'!Q9,'Trial 6'!Q9,'Trial 7'!Q9,'Trial 8'!Q9)","v":{"v":43037.24878740334,"d":"$43,037"}},{"$f":"STDEV('Trial 1'!R9,'Trial 2'!R9,'Trial 3'!R9,'Trial 4'!R9,'Trial 5'!R9,'Trial 6'!R9,'Trial 7'!R9,'Trial 8'!R9)","v":{"v":12789.569307650148,"d":"$12,790"}},{"$f":"STDEV('Trial 1'!S9,'Trial 2'!S9,'Trial 3'!S9,'Trial 4'!S9,'Trial 5'!S9,'Trial 6'!S9,'Trial 7'!S9,'Trial 8'!S9)","v":{"v":29166.14975431546,"d":"$29,166"}},{"$f":"STDEV('Trial 1'!T9,'Trial 2'!T9,'Trial 3'!T9,'Trial 4'!T9,'Trial 5'!T9,'Trial 6'!T9,'Trial 7'!T9,'Trial 8'!T9)","v":{"v":32950.11463908816,"d":"$32,950"}},{"$f":"STDEV('Trial 1'!U9,'Trial 2'!U9,'Trial 3'!U9,'Trial 4'!U9,'Trial 5'!U9,'Trial 6'!U9,'Trial 7'!U9,'Trial 8'!U9)","v":{"v":29599.764902240677,"d":"$29,600"}},{"$f":"STDEV('Trial 1'!V9,'Trial 2'!V9,'Trial 3'!V9,'Trial 4'!V9,'Trial 5'!V9,'Trial 6'!V9,'Trial 7'!V9,'Trial 8'!V9)","v":{"v":23740.754511396393,"d":"$23,741"}},{"$f":"STDEV('Trial 1'!W9,'Trial 2'!W9,'Trial 3'!W9,'Trial 4'!W9,'Trial 5'!W9,'Trial 6'!W9,'Trial 7'!W9,'Trial 8'!W9)","v":{"v":30698.272433168113,"d":"$30,698"}},{"$f":"STDEV('Trial 1'!X9,'Trial 2'!X9,'Trial 3'!X9,'Trial 4'!X9,'Trial 5'!X9,'Trial 6'!X9,'Trial 7'!X9,'Trial 8'!X9)","v":{"v":21541.038972194005,"d":"$21,541"}},{"$f":"STDEV('Trial 1'!Y9,'Trial 2'!Y9,'Trial 3'!Y9,'Trial 4'!Y9,'Trial 5'!Y9,'Trial 6'!Y9,'Trial 7'!Y9,'Trial 8'!Y9)","v":{"v":44511.2769372796,"d":"$44,511"}},{"$f":"STDEV('Trial 1'!Z9,'Trial 2'!Z9,'Trial 3'!Z9,'Trial 4'!Z9,'Trial 5'!Z9,'Trial 6'!Z9,'Trial 7'!Z9,'Trial 8'!Z9)","v":{"v":22609.196148019597,"d":"$22,609"}},{"v":337142.68951587606,"d":"$337,143"},{"$f":"STDEV('Trial 1'!AB9,'Trial 2'!AB9,'Trial 3'!AB9,'Trial 4'!AB9,'Trial 5'!AB9,'Trial 6'!AB9,'Trial 7'!AB9,'Trial 8'!AB9)","v":{"v":27182.2052203406,"d":"$27,182"}},{"$f":"STDEV('Trial 1'!AC9,'Trial 2'!AC9,'Trial 3'!AC9,'Trial 4'!AC9,'Trial 5'!AC9,'Trial 6'!AC9,'Trial 7'!AC9,'Trial 8'!AC9)","v":{"v":23957.795280104125,"d":"$23,958"}},{"$f":"STDEV('Trial 1'!AD9,'Trial 2'!AD9,'Trial 3'!AD9,'Trial 4'!AD9,'Trial 5'!AD9,'Trial 6'!AD9,'Trial 7'!AD9,'Trial 8'!AD9)","v":{"v":29843.378573208465,"d":"$29,843"}},{"$f":"STDEV('Trial 1'!AE9,'Trial 2'!AE9,'Trial 3'!AE9,'Trial 4'!AE9,'Trial 5'!AE9,'Trial 6'!AE9,'Trial 7'!AE9,'Trial 8'!AE9)","v":{"v":41098.04796596239,"d":"$41,098"}},{"$f":"STDEV('Trial 1'!AF9,'Trial 2'!AF9,'Trial 3'!AF9,'Trial 4'!AF9,'Trial 5'!AF9,'Trial 6'!AF9,'Trial 7'!AF9,'Trial 8'!AF9)","v":{"v":30293.98740683914,"d":"$30,294"}},{"$f":"STDEV('Trial 1'!AG9,'Trial 2'!AG9,'Trial 3'!AG9,'Trial 4'!AG9,'Trial 5'!AG9,'Trial 6'!AG9,'Trial 7'!AG9,'Trial 8'!AG9)","v":{"v":23263.433877028034,"d":"$23,263"}},{"$f":"STDEV('Trial 1'!AH9,'Trial 2'!AH9,'Trial 3'!AH9,'Trial 4'!AH9,'Trial 5'!AH9,'Trial 6'!AH9,'Trial 7'!AH9,'Trial 8'!AH9)","v":{"v":8865.719461508537,"d":"$8,866"}},{"$f":"STDEV('Trial 1'!AI9,'Trial 2'!AI9,'Trial 3'!AI9,'Trial 4'!AI9,'Trial 5'!AI9,'Trial 6'!AI9,'Trial 7'!AI9,'Trial 8'!AI9)","v":{"v":20158.688956548813,"d":"$20,159"}},{"$f":"STDEV('Trial 1'!AJ9,'Trial 2'!AJ9,'Trial 3'!AJ9,'Trial 4'!AJ9,'Trial 5'!AJ9,'Trial 6'!AJ9,'Trial 7'!AJ9,'Trial 8'!AJ9)","v":{"v":24295.891599861487,"d":"$24,296"}},{"$f":"STDEV('Trial 1'!AK9,'Trial 2'!AK9,'Trial 3'!AK9,'Trial 4'!AK9,'Trial 5'!AK9,'Trial 6'!AK9,'Trial 7'!AK9,'Trial 8'!AK9)","v":{"v":21026.428478800197,"d":"$21,026"}},{"$f":"STDEV('Trial 1'!AL9,'Trial 2'!AL9,'Trial 3'!AL9,'Trial 4'!AL9,'Trial 5'!AL9,'Trial 6'!AL9,'Trial 7'!AL9,'Trial 8'!AL9)","v":{"v":25594.7622838962,"d":"$25,595"}},{"$f":"STDEV('Trial 1'!AM9,'Trial 2'!AM9,'Trial 3'!AM9,'Trial 4'!AM9,'Trial 5'!AM9,'Trial 6'!AM9,'Trial 7'!AM9,'Trial 8'!AM9)","v":{"v":36103.566203191134,"d":"$36,104"}},{"v":311683.9053072891,"d":"$311,684"},{"$f":"STDEV('Trial 1'!AO9,'Trial 2'!AO9,'Trial 3'!AO9,'Trial 4'!AO9,'Trial 5'!AO9,'Trial 6'!AO9,'Trial 7'!AO9,'Trial 8'!AO9)","v":{"v":23585.26829048315,"d":"$23,585"}},{"$f":"STDEV('Trial 1'!AP9,'Trial 2'!AP9,'Trial 3'!AP9,'Trial 4'!AP9,'Trial 5'!AP9,'Trial 6'!AP9,'Trial 7'!AP9,'Trial 8'!AP9)","v":{"v":24490.03423864375,"d":"$24,490"}},{"$f":"STDEV('Trial 1'!AQ9,'Trial 2'!AQ9,'Trial 3'!AQ9,'Trial 4'!AQ9,'Trial 5'!AQ9,'Trial 6'!AQ9,'Trial 7'!AQ9,'Trial 8'!AQ9)","v":{"v":25105.636391085274,"d":"$25,106"}},{"$f":"STDEV('Trial 1'!AR9,'Trial 2'!AR9,'Trial 3'!AR9,'Trial 4'!AR9,'Trial 5'!AR9,'Trial 6'!AR9,'Trial 7'!AR9,'Trial 8'!AR9)","v":{"v":25760.892522089624,"d":"$25,761"}},{"$f":"STDEV('Trial 1'!AS9,'Trial 2'!AS9,'Trial 3'!AS9,'Trial 4'!AS9,'Trial 5'!AS9,'Trial 6'!AS9,'Trial 7'!AS9,'Trial 8'!AS9)","v":{"v":24862.769324532655,"d":"$24,863"}},{"$f":"STDEV('Trial 1'!AT9,'Trial 2'!AT9,'Trial 3'!AT9,'Trial 4'!AT9,'Trial 5'!AT9,'Trial 6'!AT9,'Trial 7'!AT9,'Trial 8'!AT9)","v":{"v":22416.545880234065,"d":"$22,417"}},{"$f":"STDEV('Trial 1'!AU9,'Trial 2'!AU9,'Trial 3'!AU9,'Trial 4'!AU9,'Trial 5'!AU9,'Trial 6'!AU9,'Trial 7'!AU9,'Trial 8'!AU9)","v":{"v":24660.832405719644,"d":"$24,661"}},{"$f":"STDEV('Trial 1'!AV9,'Trial 2'!AV9,'Trial 3'!AV9,'Trial 4'!AV9,'Trial 5'!AV9,'Trial 6'!AV9,'Trial 7'!AV9,'Trial 8'!AV9)","v":{"v":10908.774360102325,"d":"$10,909"}},{"$f":"STDEV('Trial 1'!AW9,'Trial 2'!AW9,'Trial 3'!AW9,'Trial 4'!AW9,'Trial 5'!AW9,'Trial 6'!AW9,'Trial 7'!AW9,'Trial 8'!AW9)","v":{"v":22816.90087403827,"d":"$22,817"}},{"$f":"STDEV('Trial 1'!AX9,'Trial 2'!AX9,'Trial 3'!AX9,'Trial 4'!AX9,'Trial 5'!AX9,'Trial 6'!AX9,'Trial 7'!AX9,'Trial 8'!AX9)","v":{"v":31471.135714320582,"d":"$31,471"}},{"$f":"STDEV('Trial 1'!AY9,'Trial 2'!AY9,'Trial 3'!AY9,'Trial 4'!AY9,'Trial 5'!AY9,'Trial 6'!AY9,'Trial 7'!AY9,'Trial 8'!AY9)","v":{"v":26000.87383917151,"d":"$26,001"}},{"$f":"STDEV('Trial 1'!AZ9,'Trial 2'!AZ9,'Trial 3'!AZ9,'Trial 4'!AZ9,'Trial 5'!AZ9,'Trial 6'!AZ9,'Trial 7'!AZ9,'Trial 8'!AZ9)","v":{"v":33383.89789433816,"d":"$33,384"}},{"v":295463.561734759,"d":"$295,464"},{"$f":"STDEV('Trial 1'!BB9,'Trial 2'!BB9,'Trial 3'!BB9,'Trial 4'!BB9,'Trial 5'!BB9,'Trial 6'!BB9,'Trial 7'!BB9,'Trial 8'!BB9)","v":{"v":31819.721675622706,"d":"$31,820"}},{"$f":"STDEV('Trial 1'!BC9,'Trial 2'!BC9,'Trial 3'!BC9,'Trial 4'!BC9,'Trial 5'!BC9,'Trial 6'!BC9,'Trial 7'!BC9,'Trial 8'!BC9)","v":{"v":35889.225590700575,"d":"$35,889"}},{"$f":"STDEV('Trial 1'!BD9,'Trial 2'!BD9,'Trial 3'!BD9,'Trial 4'!BD9,'Trial 5'!BD9,'Trial 6'!BD9,'Trial 7'!BD9,'Trial 8'!BD9)","v":{"v":36326.589114963026,"d":"$36,327"}},{"$f":"STDEV('Trial 1'!BE9,'Trial 2'!BE9,'Trial 3'!BE9,'Trial 4'!BE9,'Trial 5'!BE9,'Trial 6'!BE9,'Trial 7'!BE9,'Trial 8'!BE9)","v":{"v":28440.919011790716,"d":"$28,441"}},{"$f":"STDEV('Trial 1'!BF9,'Trial 2'!BF9,'Trial 3'!BF9,'Trial 4'!BF9,'Trial 5'!BF9,'Trial 6'!BF9,'Trial 7'!BF9,'Trial 8'!BF9)","v":{"v":19658.04893033269,"d":"$19,658"}},{"$f":"STDEV('Trial 1'!BG9,'Trial 2'!BG9,'Trial 3'!BG9,'Trial 4'!BG9,'Trial 5'!BG9,'Trial 6'!BG9,'Trial 7'!BG9,'Trial 8'!BG9)","v":{"v":32898.274646095364,"d":"$32,898"}},{"$f":"STDEV('Trial 1'!BH9,'Trial 2'!BH9,'Trial 3'!BH9,'Trial 4'!BH9,'Trial 5'!BH9,'Trial 6'!BH9,'Trial 7'!BH9,'Trial 8'!BH9)","v":{"v":26571.013361218564,"d":"$26,571"}},{"$f":"STDEV('Trial 1'!BI9,'Trial 2'!BI9,'Trial 3'!BI9,'Trial 4'!BI9,'Trial 5'!BI9,'Trial 6'!BI9,'Trial 7'!BI9,'Trial 8'!BI9)","v":{"v":18703.05838965422,"d":"$18,703"}},{"$f":"STDEV('Trial 1'!BJ9,'Trial 2'!BJ9,'Trial 3'!BJ9,'Trial 4'!BJ9,'Trial 5'!BJ9,'Trial 6'!BJ9,'Trial 7'!BJ9,'Trial 8'!BJ9)","v":{"v":35250.2160543116,"d":"$35,250"}},{"$f":"STDEV('Trial 1'!BK9,'Trial 2'!BK9,'Trial 3'!BK9,'Trial 4'!BK9,'Trial 5'!BK9,'Trial 6'!BK9,'Trial 7'!BK9,'Trial 8'!BK9)","v":{"v":27047.087335300497,"d":"$27,047"}},{"$f":"STDEV('Trial 1'!BL9,'Trial 2'!BL9,'Trial 3'!BL9,'Trial 4'!BL9,'Trial 5'!BL9,'Trial 6'!BL9,'Trial 7'!BL9,'Trial 8'!BL9)","v":{"v":27199.625122285153,"d":"$27,200"}},{"$f":"STDEV('Trial 1'!BM9,'Trial 2'!BM9,'Trial 3'!BM9,'Trial 4'!BM9,'Trial 5'!BM9,'Trial 6'!BM9,'Trial 7'!BM9,'Trial 8'!BM9)","v":{"v":25924.13120350563,"d":"$25,924"}},{"v":345727.9104357807,"d":"$345,728"},{"$f":"STDEV('Trial 1'!BO9,'Trial 2'!BO9,'Trial 3'!BO9,'Trial 4'!BO9,'Trial 5'!BO9,'Trial 6'!BO9,'Trial 7'!BO9,'Trial 8'!BO9)","v":{"v":37159.795228770876,"d":"$37,160"}},{"$f":"STDEV('Trial 1'!BP9,'Trial 2'!BP9,'Trial 3'!BP9,'Trial 4'!BP9,'Trial 5'!BP9,'Trial 6'!BP9,'Trial 7'!BP9,'Trial 8'!BP9)","v":{"v":37441.13990689559,"d":"$37,441"}},{"$f":"STDEV('Trial 1'!BQ9,'Trial 2'!BQ9,'Trial 3'!BQ9,'Trial 4'!BQ9,'Trial 5'!BQ9,'Trial 6'!BQ9,'Trial 7'!BQ9,'Trial 8'!BQ9)","v":{"v":33558.86870546955,"d":"$33,559"}},{"$f":"STDEV('Trial 1'!BR9,'Trial 2'!BR9,'Trial 3'!BR9,'Trial 4'!BR9,'Trial 5'!BR9,'Trial 6'!BR9,'Trial 7'!BR9,'Trial 8'!BR9)","v":{"v":31432.44723061421,"d":"$31,432"}},{"$f":"STDEV('Trial 1'!BS9,'Trial 2'!BS9,'Trial 3'!BS9,'Trial 4'!BS9,'Trial 5'!BS9,'Trial 6'!BS9,'Trial 7'!BS9,'Trial 8'!BS9)","v":{"v":35464.52008603572,"d":"$35,465"}},{"$f":"STDEV('Trial 1'!BT9,'Trial 2'!BT9,'Trial 3'!BT9,'Trial 4'!BT9,'Trial 5'!BT9,'Trial 6'!BT9,'Trial 7'!BT9,'Trial 8'!BT9)","v":{"v":33721.556567793385,"d":"$33,722"}},{"$f":"STDEV('Trial 1'!BU9,'Trial 2'!BU9,'Trial 3'!BU9,'Trial 4'!BU9,'Trial 5'!BU9,'Trial 6'!BU9,'Trial 7'!BU9,'Trial 8'!BU9)","v":{"v":22838.04514105354,"d":"$22,838"}},{"$f":"STDEV('Trial 1'!BV9,'Trial 2'!BV9,'Trial 3'!BV9,'Trial 4'!BV9,'Trial 5'!BV9,'Trial 6'!BV9,'Trial 7'!BV9,'Trial 8'!BV9)","v":{"v":26538.928325741803,"d":"$26,539"}},{"$f":"STDEV('Trial 1'!BW9,'Trial 2'!BW9,'Trial 3'!BW9,'Trial 4'!BW9,'Trial 5'!BW9,'Trial 6'!BW9,'Trial 7'!BW9,'Trial 8'!BW9)","v":{"v":25206.6682058917,"d":"$25,207"}},{"$f":"STDEV('Trial 1'!BX9,'Trial 2'!BX9,'Trial 3'!BX9,'Trial 4'!BX9,'Trial 5'!BX9,'Trial 6'!BX9,'Trial 7'!BX9,'Trial 8'!BX9)","v":{"v":36698.977764106865,"d":"$36,699"}},{"$f":"STDEV('Trial 1'!BY9,'Trial 2'!BY9,'Trial 3'!BY9,'Trial 4'!BY9,'Trial 5'!BY9,'Trial 6'!BY9,'Trial 7'!BY9,'Trial 8'!BY9)","v":{"v":41803.022064508696,"d":"$41,803"}},{"$f":"STDEV('Trial 1'!BZ9,'Trial 2'!BZ9,'Trial 3'!BZ9,'Trial 4'!BZ9,'Trial 5'!BZ9,'Trial 6'!BZ9,'Trial 7'!BZ9,'Trial 8'!BZ9)","v":{"v":36135.85747347556,"d":"$36,136"}},{"v":397999.8267003575,"d":"$398,000"},{"$f":"STDEV('Trial 1'!CB9,'Trial 2'!CB9,'Trial 3'!CB9,'Trial 4'!CB9,'Trial 5'!CB9,'Trial 6'!CB9,'Trial 7'!CB9,'Trial 8'!CB9)","v":{"v":16278.325994704632,"d":"$16,278"}},{"$f":"STDEV('Trial 1'!CC9,'Trial 2'!CC9,'Trial 3'!CC9,'Trial 4'!CC9,'Trial 5'!CC9,'Trial 6'!CC9,'Trial 7'!CC9,'Trial 8'!CC9)","v":{"v":20115.273304168717,"d":"$20,115"}},{"$f":"STDEV('Trial 1'!CD9,'Trial 2'!CD9,'Trial 3'!CD9,'Trial 4'!CD9,'Trial 5'!CD9,'Trial 6'!CD9,'Trial 7'!CD9,'Trial 8'!CD9)","v":{"v":29216.066396852126,"d":"$29,216"}},{"$f":"STDEV('Trial 1'!CE9,'Trial 2'!CE9,'Trial 3'!CE9,'Trial 4'!CE9,'Trial 5'!CE9,'Trial 6'!CE9,'Trial 7'!CE9,'Trial 8'!CE9)","v":{"v":28275.48455731176,"d":"$28,275"}},{"$f":"STDEV('Trial 1'!CF9,'Trial 2'!CF9,'Trial 3'!CF9,'Trial 4'!CF9,'Trial 5'!CF9,'Trial 6'!CF9,'Trial 7'!CF9,'Trial 8'!CF9)","v":{"v":10627.294189979475,"d":"$10,627"}},{"$f":"STDEV('Trial 1'!CG9,'Trial 2'!CG9,'Trial 3'!CG9,'Trial 4'!CG9,'Trial 5'!CG9,'Trial 6'!CG9,'Trial 7'!CG9,'Trial 8'!CG9)","v":{"v":24030.11352454266,"d":"$24,030"}},{"$f":"STDEV('Trial 1'!CH9,'Trial 2'!CH9,'Trial 3'!CH9,'Trial 4'!CH9,'Trial 5'!CH9,'Trial 6'!CH9,'Trial 7'!CH9,'Trial 8'!CH9)","v":{"v":36635.795283769374,"d":"$36,636"}},{"$f":"STDEV('Trial 1'!CI9,'Trial 2'!CI9,'Trial 3'!CI9,'Trial 4'!CI9,'Trial 5'!CI9,'Trial 6'!CI9,'Trial 7'!CI9,'Trial 8'!CI9)","v":{"v":31846.07820690893,"d":"$31,846"}},{"$f":"STDEV('Trial 1'!CJ9,'Trial 2'!CJ9,'Trial 3'!CJ9,'Trial 4'!CJ9,'Trial 5'!CJ9,'Trial 6'!CJ9,'Trial 7'!CJ9,'Trial 8'!CJ9)","v":{"v":28000.956797517487,"d":"$28,001"}},{"$f":"STDEV('Trial 1'!CK9,'Trial 2'!CK9,'Trial 3'!CK9,'Trial 4'!CK9,'Trial 5'!CK9,'Trial 6'!CK9,'Trial 7'!CK9,'Trial 8'!CK9)","v":{"v":33375.91292181954,"d":"$33,376"}},{"$f":"STDEV('Trial 1'!CL9,'Trial 2'!CL9,'Trial 3'!CL9,'Trial 4'!CL9,'Trial 5'!CL9,'Trial 6'!CL9,'Trial 7'!CL9,'Trial 8'!CL9)","v":{"v":32978.13285103935,"d":"$32,978"}},{"$f":"STDEV('Trial 1'!CM9,'Trial 2'!CM9,'Trial 3'!CM9,'Trial 4'!CM9,'Trial 5'!CM9,'Trial 6'!CM9,'Trial 7'!CM9,'Trial 8'!CM9)","v":{"v":24985.438345871647,"d":"$24,985"}},{"v":316364.8723744857,"d":"$316,365"},{"$f":"STDEV('Trial 1'!CO9,'Trial 2'!CO9,'Trial 3'!CO9,'Trial 4'!CO9,'Trial 5'!CO9,'Trial 6'!CO9,'Trial 7'!CO9,'Trial 8'!CO9)","v":{"v":34519.552768341986,"d":"$34,520"}},{"$f":"STDEV('Trial 1'!CP9,'Trial 2'!CP9,'Trial 3'!CP9,'Trial 4'!CP9,'Trial 5'!CP9,'Trial 6'!CP9,'Trial 7'!CP9,'Trial 8'!CP9)","v":{"v":21849.061205282134,"d":"$21,849"}},{"$f":"STDEV('Trial 1'!CQ9,'Trial 2'!CQ9,'Trial 3'!CQ9,'Trial 4'!CQ9,'Trial 5'!CQ9,'Trial 6'!CQ9,'Trial 7'!CQ9,'Trial 8'!CQ9)","v":{"v":31943.010844174183,"d":"$31,943"}},{"$f":"STDEV('Trial 1'!CR9,'Trial 2'!CR9,'Trial 3'!CR9,'Trial 4'!CR9,'Trial 5'!CR9,'Trial 6'!CR9,'Trial 7'!CR9,'Trial 8'!CR9)","v":{"v":16706.650178555923,"d":"$16,707"}},{"$f":"STDEV('Trial 1'!CS9,'Trial 2'!CS9,'Trial 3'!CS9,'Trial 4'!CS9,'Trial 5'!CS9,'Trial 6'!CS9,'Trial 7'!CS9,'Trial 8'!CS9)","v":{"v":26319.37905388566,"d":"$26,319"}},{"$f":"STDEV('Trial 1'!CT9,'Trial 2'!CT9,'Trial 3'!CT9,'Trial 4'!CT9,'Trial 5'!CT9,'Trial 6'!CT9,'Trial 7'!CT9,'Trial 8'!CT9)","v":{"v":23356.98531734327,"d":"$23,357"}},{"$f":"STDEV('Trial 1'!CU9,'Trial 2'!CU9,'Trial 3'!CU9,'Trial 4'!CU9,'Trial 5'!CU9,'Trial 6'!CU9,'Trial 7'!CU9,'Trial 8'!CU9)","v":{"v":29807.20509922915,"d":"$29,807"}},{"$f":"STDEV('Trial 1'!CV9,'Trial 2'!CV9,'Trial 3'!CV9,'Trial 4'!CV9,'Trial 5'!CV9,'Trial 6'!CV9,'Trial 7'!CV9,'Trial 8'!CV9)","v":{"v":14197.298417610207,"d":"$14,197"}},{"$f":"STDEV('Trial 1'!CW9,'Trial 2'!CW9,'Trial 3'!CW9,'Trial 4'!CW9,'Trial 5'!CW9,'Trial 6'!CW9,'Trial 7'!CW9,'Trial 8'!CW9)","v":{"v":39475.36545810772,"d":"$39,475"}},{"$f":"STDEV('Trial 1'!CX9,'Trial 2'!CX9,'Trial 3'!CX9,'Trial 4'!CX9,'Trial 5'!CX9,'Trial 6'!CX9,'Trial 7'!CX9,'Trial 8'!CX9)","v":{"v":42377.43983451213,"d":"$42,377"}},{"$f":"STDEV('Trial 1'!CY9,'Trial 2'!CY9,'Trial 3'!CY9,'Trial 4'!CY9,'Trial 5'!CY9,'Trial 6'!CY9,'Trial 7'!CY9,'Trial 8'!CY9)","v":{"v":35445.47049097309,"d":"$35,445"}},{"$f":"STDEV('Trial 1'!CZ9,'Trial 2'!CZ9,'Trial 3'!CZ9,'Trial 4'!CZ9,'Trial 5'!CZ9,'Trial 6'!CZ9,'Trial 7'!CZ9,'Trial 8'!CZ9)","v":{"v":34755.28832006793,"d":"$34,755"}},{"v":350752.7069880834,"d":"$350,753"},{"$f":"STDEV('Trial 1'!DB9,'Trial 2'!DB9,'Trial 3'!DB9,'Trial 4'!DB9,'Trial 5'!DB9,'Trial 6'!DB9,'Trial 7'!DB9,'Trial 8'!DB9)","v":{"v":33714.9344160359,"d":"$33,715"}},{"$f":"STDEV('Trial 1'!DC9,'Trial 2'!DC9,'Trial 3'!DC9,'Trial 4'!DC9,'Trial 5'!DC9,'Trial 6'!DC9,'Trial 7'!DC9,'Trial 8'!DC9)","v":{"v":34642.896343320106,"d":"$34,643"}},{"$f":"STDEV('Trial 1'!DD9,'Trial 2'!DD9,'Trial 3'!DD9,'Trial 4'!DD9,'Trial 5'!DD9,'Trial 6'!DD9,'Trial 7'!DD9,'Trial 8'!DD9)","v":{"v":16902.855726556976,"d":"$16,903"}},{"$f":"STDEV('Trial 1'!DE9,'Trial 2'!DE9,'Trial 3'!DE9,'Trial 4'!DE9,'Trial 5'!DE9,'Trial 6'!DE9,'Trial 7'!DE9,'Trial 8'!DE9)","v":{"v":16382.635734393378,"d":"$16,383"}},{"$f":"STDEV('Trial 1'!DF9,'Trial 2'!DF9,'Trial 3'!DF9,'Trial 4'!DF9,'Trial 5'!DF9,'Trial 6'!DF9,'Trial 7'!DF9,'Trial 8'!DF9)","v":{"v":24835.95267813987,"d":"$24,836"}},{"$f":"STDEV('Trial 1'!DG9,'Trial 2'!DG9,'Trial 3'!DG9,'Trial 4'!DG9,'Trial 5'!DG9,'Trial 6'!DG9,'Trial 7'!DG9,'Trial 8'!DG9)","v":{"v":22176.34890653247,"d":"$22,176"}},{"$f":"STDEV('Trial 1'!DH9,'Trial 2'!DH9,'Trial 3'!DH9,'Trial 4'!DH9,'Trial 5'!DH9,'Trial 6'!DH9,'Trial 7'!DH9,'Trial 8'!DH9)","v":{"v":33693.23701605134,"d":"$33,693"}},{"$f":"STDEV('Trial 1'!DI9,'Trial 2'!DI9,'Trial 3'!DI9,'Trial 4'!DI9,'Trial 5'!DI9,'Trial 6'!DI9,'Trial 7'!DI9,'Trial 8'!DI9)","v":{"v":23611.1976269622,"d":"$23,611"}},{"$f":"STDEV('Trial 1'!DJ9,'Trial 2'!DJ9,'Trial 3'!DJ9,'Trial 4'!DJ9,'Trial 5'!DJ9,'Trial 6'!DJ9,'Trial 7'!DJ9,'Trial 8'!DJ9)","v":{"v":36553.07996494195,"d":"$36,553"}},{"$f":"STDEV('Trial 1'!DK9,'Trial 2'!DK9,'Trial 3'!DK9,'Trial 4'!DK9,'Trial 5'!DK9,'Trial 6'!DK9,'Trial 7'!DK9,'Trial 8'!DK9)","v":{"v":28996.43221376383,"d":"$28,996"}},{"$f":"STDEV('Trial 1'!DL9,'Trial 2'!DL9,'Trial 3'!DL9,'Trial 4'!DL9,'Trial 5'!DL9,'Trial 6'!DL9,'Trial 7'!DL9,'Trial 8'!DL9)","v":{"v":36022.34642502789,"d":"$36,022"}},{"$f":"STDEV('Trial 1'!DM9,'Trial 2'!DM9,'Trial 3'!DM9,'Trial 4'!DM9,'Trial 5'!DM9,'Trial 6'!DM9,'Trial 7'!DM9,'Trial 8'!DM9)","v":{"v":15883.246939746306,"d":"$15,883"}},{"v":323415.1639914722,"d":"$323,415"},{"$f":"STDEV('Trial 1'!DO9,'Trial 2'!DO9,'Trial 3'!DO9,'Trial 4'!DO9,'Trial 5'!DO9,'Trial 6'!DO9,'Trial 7'!DO9,'Trial 8'!DO9)","v":{"v":34787.63294306401,"d":"$34,788"}},{"$f":"STDEV('Trial 1'!DP9,'Trial 2'!DP9,'Trial 3'!DP9,'Trial 4'!DP9,'Trial 5'!DP9,'Trial 6'!DP9,'Trial 7'!DP9,'Trial 8'!DP9)","v":{"v":32923.09408636744,"d":"$32,923"}},{"$f":"STDEV('Trial 1'!DQ9,'Trial 2'!DQ9,'Trial 3'!DQ9,'Trial 4'!DQ9,'Trial 5'!DQ9,'Trial 6'!DQ9,'Trial 7'!DQ9,'Trial 8'!DQ9)","v":{"v":34538.22923714352,"d":"$34,538"}},{"$f":"STDEV('Trial 1'!DR9,'Trial 2'!DR9,'Trial 3'!DR9,'Trial 4'!DR9,'Trial 5'!DR9,'Trial 6'!DR9,'Trial 7'!DR9,'Trial 8'!DR9)","v":{"v":35370.27012736645,"d":"$35,370"}},{"$f":"STDEV('Trial 1'!DS9,'Trial 2'!DS9,'Trial 3'!DS9,'Trial 4'!DS9,'Trial 5'!DS9,'Trial 6'!DS9,'Trial 7'!DS9,'Trial 8'!DS9)","v":{"v":26015.965960076654,"d":"$26,016"}},{"$f":"STDEV('Trial 1'!DT9,'Trial 2'!DT9,'Trial 3'!DT9,'Trial 4'!DT9,'Trial 5'!DT9,'Trial 6'!DT9,'Trial 7'!DT9,'Trial 8'!DT9)","v":{"v":25526.838811186528,"d":"$25,527"}},{"$f":"STDEV('Trial 1'!DU9,'Trial 2'!DU9,'Trial 3'!DU9,'Trial 4'!DU9,'Trial 5'!DU9,'Trial 6'!DU9,'Trial 7'!DU9,'Trial 8'!DU9)","v":{"v":25294.21680687585,"d":"$25,294"}},{"$f":"STDEV('Trial 1'!DV9,'Trial 2'!DV9,'Trial 3'!DV9,'Trial 4'!DV9,'Trial 5'!DV9,'Trial 6'!DV9,'Trial 7'!DV9,'Trial 8'!DV9)","v":{"v":23893.979212025642,"d":"$23,894"}},{"$f":"STDEV('Trial 1'!DW9,'Trial 2'!DW9,'Trial 3'!DW9,'Trial 4'!DW9,'Trial 5'!DW9,'Trial 6'!DW9,'Trial 7'!DW9,'Trial 8'!DW9)","v":{"v":41516.66692564221,"d":"$41,517"}},{"$f":"STDEV('Trial 1'!DX9,'Trial 2'!DX9,'Trial 3'!DX9,'Trial 4'!DX9,'Trial 5'!DX9,'Trial 6'!DX9,'Trial 7'!DX9,'Trial 8'!DX9)","v":{"v":33989.335364245795,"d":"$33,989"}},{"$f":"STDEV('Trial 1'!DY9,'Trial 2'!DY9,'Trial 3'!DY9,'Trial 4'!DY9,'Trial 5'!DY9,'Trial 6'!DY9,'Trial 7'!DY9,'Trial 8'!DY9)","v":{"v":18629.746074863266,"d":"$18,630"}},{"$f":"STDEV('Trial 1'!DZ9,'Trial 2'!DZ9,'Trial 3'!DZ9,'Trial 4'!DZ9,'Trial 5'!DZ9,'Trial 6'!DZ9,'Trial 7'!DZ9,'Trial 8'!DZ9)","v":{"v":29254.15088598828,"d":"$29,254"}},{"v":361740.1264348456,"d":"$361,740"},{"$f":"STDEV('Trial 1'!EB9,'Trial 2'!EB9,'Trial 3'!EB9,'Trial 4'!EB9,'Trial 5'!EB9,'Trial 6'!EB9,'Trial 7'!EB9,'Trial 8'!EB9)","v":{"v":27431.215854322596,"d":"$27,431"}},{"$f":"STDEV('Trial 1'!EC9,'Trial 2'!EC9,'Trial 3'!EC9,'Trial 4'!EC9,'Trial 5'!EC9,'Trial 6'!EC9,'Trial 7'!EC9,'Trial 8'!EC9)","v":{"v":32297.353471269475,"d":"$32,297"}},{"$f":"STDEV('Trial 1'!ED9,'Trial 2'!ED9,'Trial 3'!ED9,'Trial 4'!ED9,'Trial 5'!ED9,'Trial 6'!ED9,'Trial 7'!ED9,'Trial 8'!ED9)","v":{"v":24661.288310423846,"d":"$24,661"}},{"$f":"STDEV('Trial 1'!EE9,'Trial 2'!EE9,'Trial 3'!EE9,'Trial 4'!EE9,'Trial 5'!EE9,'Trial 6'!EE9,'Trial 7'!EE9,'Trial 8'!EE9)","v":{"v":25897.97559891172,"d":"$25,898"}},{"$f":"STDEV('Trial 1'!EF9,'Trial 2'!EF9,'Trial 3'!EF9,'Trial 4'!EF9,'Trial 5'!EF9,'Trial 6'!EF9,'Trial 7'!EF9,'Trial 8'!EF9)","v":{"v":28941.561791486663,"d":"$28,942"}},{"$f":"STDEV('Trial 1'!EG9,'Trial 2'!EG9,'Trial 3'!EG9,'Trial 4'!EG9,'Trial 5'!EG9,'Trial 6'!EG9,'Trial 7'!EG9,'Trial 8'!EG9)","v":{"v":28395.241006436176,"d":"$28,395"}},{"$f":"STDEV('Trial 1'!EH9,'Trial 2'!EH9,'Trial 3'!EH9,'Trial 4'!EH9,'Trial 5'!EH9,'Trial 6'!EH9,'Trial 7'!EH9,'Trial 8'!EH9)","v":{"v":34072.939418483715,"d":"$34,073"}},{"$f":"STDEV('Trial 1'!EI9,'Trial 2'!EI9,'Trial 3'!EI9,'Trial 4'!EI9,'Trial 5'!EI9,'Trial 6'!EI9,'Trial 7'!EI9,'Trial 8'!EI9)","v":{"v":24647.53048042175,"d":"$24,648"}},{"$f":"STDEV('Trial 1'!EJ9,'Trial 2'!EJ9,'Trial 3'!EJ9,'Trial 4'!EJ9,'Trial 5'!EJ9,'Trial 6'!EJ9,'Trial 7'!EJ9,'Trial 8'!EJ9)","v":{"v":33255.91273819746,"d":"$33,256"}},{"$f":"STDEV('Trial 1'!EK9,'Trial 2'!EK9,'Trial 3'!EK9,'Trial 4'!EK9,'Trial 5'!EK9,'Trial 6'!EK9,'Trial 7'!EK9,'Trial 8'!EK9)","v":{"v":33206.32810697167,"d":"$33,206"}},{"$f":"STDEV('Trial 1'!EL9,'Trial 2'!EL9,'Trial 3'!EL9,'Trial 4'!EL9,'Trial 5'!EL9,'Trial 6'!EL9,'Trial 7'!EL9,'Trial 8'!EL9)","v":{"v":29772.506597294174,"d":"$29,773"}},{"$f":"STDEV('Trial 1'!EM9,'Trial 2'!EM9,'Trial 3'!EM9,'Trial 4'!EM9,'Trial 5'!EM9,'Trial 6'!EM9,'Trial 7'!EM9,'Trial 8'!EM9)","v":{"v":25504.732414286012,"d":"$25,505"}},{"v":348084.58578850527,"d":"$348,085"}]
[{"$f":"Labels!B35","v":"Short Expected Demand"},{"$f":"AVERAGE('Trial 1'!B11,'Trial 2'!B11,'Trial 3'!B11,'Trial 4'!B11,'Trial 5'!B11,'Trial 6'!B11,'Trial 7'!B11,'Trial 8'!B11)","v":{"v":1166666.6666666667,"d":"$1,166,667"}},{"$f":"AVERAGE('Trial 1'!C11,'Trial 2'!C11,'Trial 3'!C11,'Trial 4'!C11,'Trial 5'!C11,'Trial 6'!C11,'Trial 7'!C11,'Trial 8'!C11)","v":{"v":1163472.4654572825,"d":"$1,163,472"}},{"$f":"AVERAGE('Trial 1'!D11,'Trial 2'!D11,'Trial 3'!D11,'Trial 4'!D11,'Trial 5'!D11,'Trial 6'!D11,'Trial 7'!D11,'Trial 8'!D11)","v":{"v":1160522.3697831214,"d":"$1,160,522"}},{"$f":"AVERAGE('Trial 1'!E11,'Trial 2'!E11,'Trial 3'!E11,'Trial 4'!E11,'Trial 5'!E11,'Trial 6'!E11,'Trial 7'!E11,'Trial 8'!E11)","v":{"v":1157874.5012081484,"d":"$1,157,875"}},{"$f":"AVERAGE('Trial 1'!F11,'Trial 2'!F11,'Trial 3'!F11,'Trial 4'!F11,'Trial 5'!F11,'Trial 6'!F11,'Trial 7'!F11,'Trial 8'!F11)","v":{"v":1155366.6640570285,"d":"$1,155,367"}},{"$f":"AVERAGE('Trial 1'!G11,'Trial 2'!G11,'Trial 3'!G11,'Trial 4'!G11,'Trial 5'!G11,'Trial 6'!G11,'Trial 7'!G11,'Trial 8'!G11)","v":{"v":1153029.2619466684,"d":"$1,153,029"}},{"$f":"AVERAGE('Trial 1'!H11,'Trial 2'!H11,'Trial 3'!H11,'Trial 4'!H11,'Trial 5'!H11,'Trial 6'!H11,'Trial 7'!H11,'Trial 8'!H11)","v":{"v":1150531.6128185894,"d":"$1,150,532"}},{"$f":"AVERAGE('Trial 1'!I11,'Trial 2'!I11,'Trial 3'!I11,'Trial 4'!I11,'Trial 5'!I11,'Trial 6'!I11,'Trial 7'!I11,'Trial 8'!I11)","v":{"v":1147809.3685147427,"d":"$1,147,809"}},{"$f":"AVERAGE('Trial 1'!J11,'Trial 2'!J11,'Trial 3'!J11,'Trial 4'!J11,'Trial 5'!J11,'Trial 6'!J11,'Trial 7'!J11,'Trial 8'!J11)","v":{"v":1145238.7804152255,"d":"$1,145,239"}},{"$f":"AVERAGE('Trial 1'!K11,'Trial 2'!K11,'Trial 3'!K11,'Trial 4'!K11,'Trial 5'!K11,'Trial 6'!K11,'Trial 7'!K11,'Trial 8'!K11)","v":{"v":1142718.3154218465,"d":"$1,142,718"}},{"$f":"AVERAGE('Trial 1'!L11,'Trial 2'!L11,'Trial 3'!L11,'Trial 4'!L11,'Trial 5'!L11,'Trial 6'!L11,'Trial 7'!L11,'Trial 8'!L11)","v":{"v":1140228.2751589091,"d":"$1,140,228"}},{"$f":"AVERAGE('Trial 1'!M11,'Trial 2'!M11,'Trial 3'!M11,'Trial 4'!M11,'Trial 5'!M11,'Trial 6'!M11,'Trial 7'!M11,'Trial 8'!M11)","v":{"v":1137737.8553539952,"d":"$1,137,738"}},{"v":13821196.136802223,"d":"$13,821,196"},{"$f":"AVERAGE('Trial 1'!O11,'Trial 2'!O11,'Trial 3'!O11,'Trial 4'!O11,'Trial 5'!O11,'Trial 6'!O11,'Trial 7'!O11,'Trial 8'!O11)","v":{"v":1135191.9095235942,"d":"$1,135,192"}},{"$f":"AVERAGE('Trial 1'!P11,'Trial 2'!P11,'Trial 3'!P11,'Trial 4'!P11,'Trial 5'!P11,'Trial 6'!P11,'Trial 7'!P11,'Trial 8'!P11)","v":{"v":1132835.2696507676,"d":"$1,132,835"}},{"$f":"AVERAGE('Trial 1'!Q11,'Trial 2'!Q11,'Trial 3'!Q11,'Trial 4'!Q11,'Trial 5'!Q11,'Trial 6'!Q11,'Trial 7'!Q11,'Trial 8'!Q11)","v":{"v":1130459.3009420962,"d":"$1,130,459"}},{"$f":"AVERAGE('Trial 1'!R11,'Trial 2'!R11,'Trial 3'!R11,'Trial 4'!R11,'Trial 5'!R11,'Trial 6'!R11,'Trial 7'!R11,'Trial 8'!R11)","v":{"v":1128172.494152508,"d":"$1,128,172"}},{"$f":"AVERAGE('Trial 1'!S11,'Trial 2'!S11,'Trial 3'!S11,'Trial 4'!S11,'Trial 5'!S11,'Trial 6'!S11,'Trial 7'!S11,'Trial 8'!S11)","v":{"v":1125975.2139592355,"d":"$1,125,975"}},{"$f":"AVERAGE('Trial 1'!T11,'Trial 2'!T11,'Trial 3'!T11,'Trial 4'!T11,'Trial 5'!T11,'Trial 6'!T11,'Trial 7'!T11,'Trial 8'!T11)","v":{"v":1123263.670212971,"d":"$1,123,264"}},{"$f":"AVERAGE('Trial 1'!U11,'Trial 2'!U11,'Trial 3'!U11,'Trial 4'!U11,'Trial 5'!U11,'Trial 6'!U11,'Trial 7'!U11,'Trial 8'!U11)","v":{"v":1121041.7316366287,"d":"$1,121,042"}},{"$f":"AVERAGE('Trial 1'!V11,'Trial 2'!V11,'Trial 3'!V11,'Trial 4'!V11,'Trial 5'!V11,'Trial 6'!V11,'Trial 7'!V11,'Trial 8'!V11)","v":{"v":1118522.7147797262,"d":"$1,118,523"}},{"$f":"AVERAGE('Trial 1'!W11,'Trial 2'!W11,'Trial 3'!W11,'Trial 4'!W11,'Trial 5'!W11,'Trial 6'!W11,'Trial 7'!W11,'Trial 8'!W11)","v":{"v":1116070.7613643599,"d":"$1,116,071"}},{"$f":"AVERAGE('Trial 1'!X11,'Trial 2'!X11,'Trial 3'!X11,'Trial 4'!X11,'Trial 5'!X11,'Trial 6'!X11,'Trial 7'!X11,'Trial 8'!X11)","v":{"v":1114025.4052115497,"d":"$1,114,025"}},{"$f":"AVERAGE('Trial 1'!Y11,'Trial 2'!Y11,'Trial 3'!Y11,'Trial 4'!Y11,'Trial 5'!Y11,'Trial 6'!Y11,'Trial 7'!Y11,'Trial 8'!Y11)","v":{"v":1111699.5291998314,"d":"$1,111,700"}},{"$f":"AVERAGE('Trial 1'!Z11,'Trial 2'!Z11,'Trial 3'!Z11,'Trial 4'!Z11,'Trial 5'!Z11,'Trial 6'!Z11,'Trial 7'!Z11,'Trial 8'!Z11)","v":{"v":1109426.7685189538,"d":"$1,109,427"}},{"v":13466684.76915222,"d":"$13,466,685"},{"$f":"AVERAGE('Trial 1'!AB11,'Trial 2'!AB11,'Trial 3'!AB11,'Trial 4'!AB11,'Trial 5'!AB11,'Trial 6'!AB11,'Trial 7'!AB11,'Trial 8'!AB11)","v":{"v":1106874.577826982,"d":"$1,106,875"}},{"$f":"AVERAGE('Trial 1'!AC11,'Trial 2'!AC11,'Trial 3'!AC11,'Trial 4'!AC11,'Trial 5'!AC11,'Trial 6'!AC11,'Trial 7'!AC11,'Trial 8'!AC11)","v":{"v":1104703.1036209299,"d":"$1,104,703"}},{"$f":"AVERAGE('Trial 1'!AD11,'Trial 2'!AD11,'Trial 3'!AD11,'Trial 4'!AD11,'Trial 5'!AD11,'Trial 6'!AD11,'Trial 7'!AD11,'Trial 8'!AD11)","v":{"v":1102691.3872495315,"d":"$1,102,691"}},{"$f":"AVERAGE('Trial 1'!AE11,'Trial 2'!AE11,'Trial 3'!AE11,'Trial 4'!AE11,'Trial 5'!AE11,'Trial 6'!AE11,'Trial 7'!AE11,'Trial 8'!AE11)","v":{"v":1100602.2231032439,"d":"$1,100,602"}},{"$f":"AVERAGE('Trial 1'!AF11,'Trial 2'!AF11,'Trial 3'!AF11,'Trial 4'!AF11,'Trial 5'!AF11,'Trial 6'!AF11,'Trial 7'!AF11,'Trial 8'!AF11)","v":{"v":1098491.548505513,"d":"$1,098,492"}},{"$f":"AVERAGE('Trial 1'!AG11,'Trial 2'!AG11,'Trial 3'!AG11,'Trial 4'!AG11,'Trial 5'!AG11,'Trial 6'!AG11,'Trial 7'!AG11,'Trial 8'!AG11)","v":{"v":1096178.614471129,"d":"$1,096,179"}},{"$f":"AVERAGE('Trial 1'!AH11,'Trial 2'!AH11,'Trial 3'!AH11,'Trial 4'!AH11,'Trial 5'!AH11,'Trial 6'!AH11,'Trial 7'!AH11,'Trial 8'!AH11)","v":{"v":1094205.0999580212,"d":"$1,094,205"}},{"$f":"AVERAGE('Trial 1'!AI11,'Trial 2'!AI11,'Trial 3'!AI11,'Trial 4'!AI11,'Trial 5'!AI11,'Trial 6'!AI11,'Trial 7'!AI11,'Trial 8'!AI11)","v":{"v":1092382.0158582907,"d":"$1,092,382"}},{"$f":"AVERAGE('Trial 1'!AJ11,'Trial 2'!AJ11,'Trial 3'!AJ11,'Trial 4'!AJ11,'Trial 5'!AJ11,'Trial 6'!AJ11,'Trial 7'!AJ11,'Trial 8'!AJ11)","v":{"v":1090117.8980848184,"d":"$1,090,118"}},{"$f":"AVERAGE('Trial 1'!AK11,'Trial 2'!AK11,'Trial 3'!AK11,'Trial 4'!AK11,'Trial 5'!AK11,'Trial 6'!AK11,'Trial 7'!AK11,'Trial 8'!AK11)","v":{"v":1088156.8799656227,"d":"$1,088,157"}},{"$f":"AVERAGE('Trial 1'!AL11,'Trial 2'!AL11,'Trial 3'!AL11,'Trial 4'!AL11,'Trial 5'!AL11,'Trial 6'!AL11,'Trial 7'!AL11,'Trial 8'!AL11)","v":{"v":1086279.738899562,"d":"$1,086,280"}},{"$f":"AVERAGE('Trial 1'!AM11,'Trial 2'!AM11,'Trial 3'!AM11,'Trial 4'!AM11,'Trial 5'!AM11,'Trial 6'!AM11,'Trial 7'!AM11,'Trial 8'!AM11)","v":{"v":1084473.175137477,"d":"$1,084,473"}},{"v":13145156.262681121,"d":"$13,145,156"},{"$f":"AVERAGE('Trial 1'!AO11,'Trial 2'!AO11,'Trial 3'!AO11,'Trial 4'!AO11,'Trial 5'!AO11,'Trial 6'!AO11,'Trial 7'!AO11,'Trial 8'!AO11)","v":{"v":1082393.2643151532,"d":"$1,082,393"}},{"$f":"AVERAGE('Trial 1'!AP11,'Trial 2'!AP11,'Trial 3'!AP11,'Trial 4'!AP11,'Trial 5'!AP11,'Trial 6'!AP11,'Trial 7'!AP11,'Trial 8'!AP11)","v":{"v":1080492.8756093956,"d":"$1,080,493"}},{"$f":"AVERAGE('Trial 1'!AQ11,'Trial 2'!AQ11,'Trial 3'!AQ11,'Trial 4'!AQ11,'Trial 5'!AQ11,'Trial 6'!AQ11,'Trial 7'!AQ11,'Trial 8'!AQ11)","v":{"v":1078789.0551953623,"d":"$1,078,789"}},{"$f":"AVERAGE('Trial 1'!AR11,'Trial 2'!AR11,'Trial 3'!AR11,'Trial 4'!AR11,'Trial 5'!AR11,'Trial 6'!AR11,'Trial 7'!AR11,'Trial 8'!AR11)","v":{"v":1076779.5119518775,"d":"$1,076,780"}},{"$f":"AVERAGE('Trial 1'!AS11,'Trial 2'!AS11,'Trial 3'!AS11,'Trial 4'!AS11,'Trial 5'!AS11,'Trial 6'!AS11,'Trial 7'!AS11,'Trial 8'!AS11)","v":{"v":1074903.055359904,"d":"$1,074,903"}},{"$f":"AVERAGE('Trial 1'!AT11,'Trial 2'!AT11,'Trial 3'!AT11,'Trial 4'!AT11,'Trial 5'!AT11,'Trial 6'!AT11,'Trial 7'!AT11,'Trial 8'!AT11)","v":{"v":1073230.9203500766,"d":"$1,073,231"}},{"$f":"AVERAGE('Trial 1'!AU11,'Trial 2'!AU11,'Trial 3'!AU11,'Trial 4'!AU11,'Trial 5'!AU11,'Trial 6'!AU11,'Trial 7'!AU11,'Trial 8'!AU11)","v":{"v":1071394.0478619118,"d":"$1,071,394"}},{"$f":"AVERAGE('Trial 1'!AV11,'Trial 2'!AV11,'Trial 3'!AV11,'Trial 4'!AV11,'Trial 5'!AV11,'Trial 6'!AV11,'Trial 7'!AV11,'Trial 8'!AV11)","v":{"v":1069524.0978178226,"d":"$1,069,524"}},{"$f":"AVERAGE('Trial 1'!AW11,'Trial 2'!AW11,'Trial 3'!AW11,'Trial 4'!AW11,'Trial 5'!AW11,'Trial 6'!AW11,'Trial 7'!AW11,'Trial 8'!AW11)","v":{"v":1067760.3689996079,"d":"$1,067,760"}},{"$f":"AVERAGE('Trial 1'!AX11,'Trial 2'!AX11,'Trial 3'!AX11,'Trial 4'!AX11,'Trial 5'!AX11,'Trial 6'!AX11,'Trial 7'!AX11,'Trial 8'!AX11)","v":{"v":1065813.9898951775,"d":"$1,065,814"}},{"$f":"AVERAGE('Trial 1'!AY11,'Trial 2'!AY11,'Trial 3'!AY11,'Trial 4'!AY11,'Trial 5'!AY11,'Trial 6'!AY11,'Trial 7'!AY11,'Trial 8'!AY11)","v":{"v":1064006.4494751745,"d":"$1,064,006"}},{"$f":"AVERAGE('Trial 1'!AZ11,'Trial 2'!AZ11,'Trial 3'!AZ11,'Trial 4'!AZ11,'Trial 5'!AZ11,'Trial 6'!AZ11,'Trial 7'!AZ11,'Trial 8'!AZ11)","v":{"v":1062303.482071132,"d":"$1,062,303"}},{"v":12867391.118902596,"d":"$12,867,391"},{"$f":"AVERAGE('Trial 1'!BB11,'Trial 2'!BB11,'Trial 3'!BB11,'Trial 4'!BB11,'Trial 5'!BB11,'Trial 6'!BB11,'Trial 7'!BB11,'Trial 8'!BB11)","v":{"v":1060362.9245503996,"d":"$1,060,363"}},{"$f":"AVERAGE('Trial 1'!BC11,'Trial 2'!BC11,'Trial 3'!BC11,'Trial 4'!BC11,'Trial 5'!BC11,'Trial 6'!BC11,'Trial 7'!BC11,'Trial 8'!BC11)","v":{"v":1058474.427565867,"d":"$1,058,474"}},{"$f":"AVERAGE('Trial 1'!BD11,'Trial 2'!BD11,'Trial 3'!BD11,'Trial 4'!BD11,'Trial 5'!BD11,'Trial 6'!BD11,'Trial 7'!BD11,'Trial 8'!BD11)","v":{"v":1056742.5225554435,"d":"$1,056,743"}},{"$f":"AVERAGE('Trial 1'!BE11,'Trial 2'!BE11,'Trial 3'!BE11,'Trial 4'!BE11,'Trial 5'!BE11,'Trial 6'!BE11,'Trial 7'!BE11,'Trial 8'!BE11)","v":{"v":1055087.3754556393,"d":"$1,055,087"}},{"$f":"AVERAGE('Trial 1'!BF11,'Trial 2'!BF11,'Trial 3'!BF11,'Trial 4'!BF11,'Trial 5'!BF11,'Trial 6'!BF11,'Trial 7'!BF11,'Trial 8'!BF11)","v":{"v":1053393.3464215088,"d":"$1,053,393"}},{"$f":"AVERAGE('Trial 1'!BG11,'Trial 2'!BG11,'Trial 3'!BG11,'Trial 4'!BG11,'Trial 5'!BG11,'Trial 6'!BG11,'Trial 7'!BG11,'Trial 8'!BG11)","v":{"v":1051835.5718224575,"d":"$1,051,836"}},{"$f":"AVERAGE('Trial 1'!BH11,'Trial 2'!BH11,'Trial 3'!BH11,'Trial 4'!BH11,'Trial 5'!BH11,'Trial 6'!BH11,'Trial 7'!BH11,'Trial 8'!BH11)","v":{"v":1050293.0826967796,"d":"$1,050,293"}},{"$f":"AVERAGE('Trial 1'!BI11,'Trial 2'!BI11,'Trial 3'!BI11,'Trial 4'!BI11,'Trial 5'!BI11,'Trial 6'!BI11,'Trial 7'!BI11,'Trial 8'!BI11)","v":{"v":1048488.4656752835,"d":"$1,048,488"}},{"$f":"AVERAGE('Trial 1'!BJ11,'Trial 2'!BJ11,'Trial 3'!BJ11,'Trial 4'!BJ11,'Trial 5'!BJ11,'Trial 6'!BJ11,'Trial 7'!BJ11,'Trial 8'!BJ11)","v":{"v":1046816.3765017544,"d":"$1,046,816"}},{"$f":"AVERAGE('Trial 1'!BK11,'Trial 2'!BK11,'Trial 3'!BK11,'Trial 4'!BK11,'Trial 5'!BK11,'Trial 6'!BK11,'Trial 7'!BK11,'Trial 8'!BK11)","v":{"v":1045353.2773204893,"d":"$1,045,353"}},{"$f":"AVERAGE('Trial 1'!BL11,'Trial 2'!BL11,'Trial 3'!BL11,'Trial 4'!BL11,'Trial 5'!BL11,'Trial 6'!BL11,'Trial 7'!BL11,'Trial 8'!BL11)","v":{"v":1043749.5328733224,"d":"$1,043,750"}},{"$f":"AVERAGE('Trial 1'!BM11,'Trial 2'!BM11,'Trial 3'!BM11,'Trial 4'!BM11,'Trial 5'!BM11,'Trial 6'!BM11,'Trial 7'!BM11,'Trial 8'!BM11)","v":{"v":1042321.1017005816,"d":"$1,042,321"}},{"v":12612918.005139528,"d":"$12,612,918"},{"$f":"AVERAGE('Trial 1'!BO11,'Trial 2'!BO11,'Trial 3'!BO11,'Trial 4'!BO11,'Trial 5'!BO11,'Trial 6'!BO11,'Trial 7'!BO11,'Trial 8'!BO11)","v":{"v":1040772.8947537144,"d":"$1,040,773"}},{"$f":"AVERAGE('Trial 1'!BP11,'Trial 2'!BP11,'Trial 3'!BP11,'Trial 4'!BP11,'Trial 5'!BP11,'Trial 6'!BP11,'Trial 7'!BP11,'Trial 8'!BP11)","v":{"v":1039224.9518770598,"d":"$1,039,225"}},{"$f":"AVERAGE('Trial 1'!BQ11,'Trial 2'!BQ11,'Trial 3'!BQ11,'Trial 4'!BQ11,'Trial 5'!BQ11,'Trial 6'!BQ11,'Trial 7'!BQ11,'Trial 8'!BQ11)","v":{"v":1037780.637145037,"d":"$1,037,781"}},{"$f":"AVERAGE('Trial 1'!BR11,'Trial 2'!BR11,'Trial 3'!BR11,'Trial 4'!BR11,'Trial 5'!BR11,'Trial 6'!BR11,'Trial 7'!BR11,'Trial 8'!BR11)","v":{"v":1036497.0967470652,"d":"$1,036,497"}},{"$f":"AVERAGE('Trial 1'!BS11,'Trial 2'!BS11,'Trial 3'!BS11,'Trial 4'!BS11,'Trial 5'!BS11,'Trial 6'!BS11,'Trial 7'!BS11,'Trial 8'!BS11)","v":{"v":1035178.2348599512,"d":"$1,035,178"}},{"$f":"AVERAGE('Trial 1'!BT11,'Trial 2'!BT11,'Trial 3'!BT11,'Trial 4'!BT11,'Trial 5'!BT11,'Trial 6'!BT11,'Trial 7'!BT11,'Trial 8'!BT11)","v":{"v":1033637.1254522157,"d":"$1,033,637"}},{"$f":"AVERAGE('Trial 1'!BU11,'Trial 2'!BU11,'Trial 3'!BU11,'Trial 4'!BU11,'Trial 5'!BU11,'Trial 6'!BU11,'Trial 7'!BU11,'Trial 8'!BU11)","v":{"v":1032466.1066317835,"d":"$1,032,466"}},{"$f":"AVERAGE('Trial 1'!BV11,'Trial 2'!BV11,'Trial 3'!BV11,'Trial 4'!BV11,'Trial 5'!BV11,'Trial 6'!BV11,'Trial 7'!BV11,'Trial 8'!BV11)","v":{"v":1030929.807638033,"d":"$1,030,930"}},{"$f":"AVERAGE('Trial 1'!BW11,'Trial 2'!BW11,'Trial 3'!BW11,'Trial 4'!BW11,'Trial 5'!BW11,'Trial 6'!BW11,'Trial 7'!BW11,'Trial 8'!BW11)","v":{"v":1029498.7579374934,"d":"$1,029,499"}},{"$f":"AVERAGE('Trial 1'!BX11,'Trial 2'!BX11,'Trial 3'!BX11,'Trial 4'!BX11,'Trial 5'!BX11,'Trial 6'!BX11,'Trial 7'!BX11,'Trial 8'!BX11)","v":{"v":1028313.6885280177,"d":"$1,028,314"}},{"$f":"AVERAGE('Trial 1'!BY11,'Trial 2'!BY11,'Trial 3'!BY11,'Trial 4'!BY11,'Trial 5'!BY11,'Trial 6'!BY11,'Trial 7'!BY11,'Trial 8'!BY11)","v":{"v":1026803.6883520976,"d":"$1,026,804"}},{"$f":"AVERAGE('Trial 1'!BZ11,'Trial 2'!BZ11,'Trial 3'!BZ11,'Trial 4'!BZ11,'Trial 5'!BZ11,'Trial 6'!BZ11,'Trial 7'!BZ11,'Trial 8'!BZ11)","v":{"v":1025608.1407500622,"d":"$1,025,608"}},{"v":12396711.13067253,"d":"$12,396,711"},{"$f":"AVERAGE('Trial 1'!CB11,'Trial 2'!CB11,'Trial 3'!CB11,'Trial 4'!CB11,'Trial 5'!CB11,'Trial 6'!CB11,'Trial 7'!CB11,'Trial 8'!CB11)","v":{"v":1024274.088710268,"d":"$1,024,274"}},{"$f":"AVERAGE('Trial 1'!CC11,'Trial 2'!CC11,'Trial 3'!CC11,'Trial 4'!CC11,'Trial 5'!CC11,'Trial 6'!CC11,'Trial 7'!CC11,'Trial 8'!CC11)","v":{"v":1022907.8017294331,"d":"$1,022,908"}},{"$f":"AVERAGE('Trial 1'!CD11,'Trial 2'!CD11,'Trial 3'!CD11,'Trial 4'!CD11,'Trial 5'!CD11,'Trial 6'!CD11,'Trial 7'!CD11,'Trial 8'!CD11)","v":{"v":1021523.7095800248,"d":"$1,021,524"}},{"$f":"AVERAGE('Trial 1'!CE11,'Trial 2'!CE11,'Trial 3'!CE11,'Trial 4'!CE11,'Trial 5'!CE11,'Trial 6'!CE11,'Trial 7'!CE11,'Trial 8'!CE11)","v":{"v":1020314.2279611821,"d":"$1,020,314"}},{"$f":"AVERAGE('Trial 1'!CF11,'Trial 2'!CF11,'Trial 3'!CF11,'Trial 4'!CF11,'Trial 5'!CF11,'Trial 6'!CF11,'Trial 7'!CF11,'Trial 8'!CF11)","v":{"v":1018869.7401340588,"d":"$1,018,870"}},{"$f":"AVERAGE('Trial 1'!CG11,'Trial 2'!CG11,'Trial 3'!CG11,'Trial 4'!CG11,'Trial 5'!CG11,'Trial 6'!CG11,'Trial 7'!CG11,'Trial 8'!CG11)","v":{"v":1017565.5872395128,"d":"$1,017,566"}},{"$f":"AVERAGE('Trial 1'!CH11,'Trial 2'!CH11,'Trial 3'!CH11,'Trial 4'!CH11,'Trial 5'!CH11,'Trial 6'!CH11,'Trial 7'!CH11,'Trial 8'!CH11)","v":{"v":1016680.3024538547,"d":"$1,016,680"}},{"$f":"AVERAGE('Trial 1'!CI11,'Trial 2'!CI11,'Trial 3'!CI11,'Trial 4'!CI11,'Trial 5'!CI11,'Trial 6'!CI11,'Trial 7'!CI11,'Trial 8'!CI11)","v":{"v":1015471.5455688635,"d":"$1,015,472"}},{"$f":"AVERAGE('Trial 1'!CJ11,'Trial 2'!CJ11,'Trial 3'!CJ11,'Trial 4'!CJ11,'Trial 5'!CJ11,'Trial 6'!CJ11,'Trial 7'!CJ11,'Trial 8'!CJ11)","v":{"v":1014353.8927885761,"d":"$1,014,354"}},{"$f":"AVERAGE('Trial 1'!CK11,'Trial 2'!CK11,'Trial 3'!CK11,'Trial 4'!CK11,'Trial 5'!CK11,'Trial 6'!CK11,'Trial 7'!CK11,'Trial 8'!CK11)","v":{"v":1013188.3622744814,"d":"$1,013,188"}},{"$f":"AVERAGE('Trial 1'!CL11,'Trial 2'!CL11,'Trial 3'!CL11,'Trial 4'!CL11,'Trial 5'!CL11,'Trial 6'!CL11,'Trial 7'!CL11,'Trial 8'!CL11)","v":{"v":1012222.6345702595,"d":"$1,012,223"}},{"$f":"AVERAGE('Trial 1'!CM11,'Trial 2'!CM11,'Trial 3'!CM11,'Trial 4'!CM11,'Trial 5'!CM11,'Trial 6'!CM11,'Trial 7'!CM11,'Trial 8'!CM11)","v":{"v":1010973.4827141089,"d":"$1,010,973"}},{"v":12208345.375724625,"d":"$12,208,345"},{"$f":"AVERAGE('Trial 1'!CO11,'Trial 2'!CO11,'Trial 3'!CO11,'Trial 4'!CO11,'Trial 5'!CO11,'Trial 6'!CO11,'Trial 7'!CO11,'Trial 8'!CO11)","v":{"v":1009994.6121352902,"d":"$1,009,995"}},{"$f":"AVERAGE('Trial 1'!CP11,'Trial 2'!CP11,'Trial 3'!CP11,'Trial 4'!CP11,'Trial 5'!CP11,'Trial 6'!CP11,'Trial 7'!CP11,'Trial 8'!CP11)","v":{"v":1008905.0024089209,"d":"$1,008,905"}},{"$f":"AVERAGE('Trial 1'!CQ11,'Trial 2'!CQ11,'Trial 3'!CQ11,'Trial 4'!CQ11,'Trial 5'!CQ11,'Trial 6'!CQ11,'Trial 7'!CQ11,'Trial 8'!CQ11)","v":{"v":1007835.2059067243,"d":"$1,007,835"}},{"$f":"AVERAGE('Trial 1'!CR11,'Trial 2'!CR11,'Trial 3'!CR11,'Trial 4'!CR11,'Trial 5'!CR11,'Trial 6'!CR11,'Trial 7'!CR11,'Trial 8'!CR11)","v":{"v":1006753.4925091097,"d":"$1,006,753"}},{"$f":"AVERAGE('Trial 1'!CS11,'Trial 2'!CS11,'Trial 3'!CS11,'Trial 4'!CS11,'Trial 5'!CS11,'Trial 6'!CS11,'Trial 7'!CS11,'Trial 8'!CS11)","v":{"v":1005601.0428524544,"d":"$1,005,601"}},{"$f":"AVERAGE('Trial 1'!CT11,'Trial 2'!CT11,'Trial 3'!CT11,'Trial 4'!CT11,'Trial 5'!CT11,'Trial 6'!CT11,'Trial 7'!CT11,'Trial 8'!CT11)","v":{"v":1004150.0759841934,"d":"$1,004,150"}},{"$f":"AVERAGE('Trial 1'!CU11,'Trial 2'!CU11,'Trial 3'!CU11,'Trial 4'!CU11,'Trial 5'!CU11,'Trial 6'!CU11,'Trial 7'!CU11,'Trial 8'!CU11)","v":{"v":1002856.8588981284,"d":"$1,002,857"}},{"$f":"AVERAGE('Trial 1'!CV11,'Trial 2'!CV11,'Trial 3'!CV11,'Trial 4'!CV11,'Trial 5'!CV11,'Trial 6'!CV11,'Trial 7'!CV11,'Trial 8'!CV11)","v":{"v":1002051.0808977115,"d":"$1,002,051"}},{"$f":"AVERAGE('Trial 1'!CW11,'Trial 2'!CW11,'Trial 3'!CW11,'Trial 4'!CW11,'Trial 5'!CW11,'Trial 6'!CW11,'Trial 7'!CW11,'Trial 8'!CW11)","v":{"v":1000870.7629586691,"d":"$1,000,871"}},{"$f":"AVERAGE('Trial 1'!CX11,'Trial 2'!CX11,'Trial 3'!CX11,'Trial 4'!CX11,'Trial 5'!CX11,'Trial 6'!CX11,'Trial 7'!CX11,'Trial 8'!CX11)","v":{"v":999728.3983769296,"d":"$999,728"}},{"$f":"AVERAGE('Trial 1'!CY11,'Trial 2'!CY11,'Trial 3'!CY11,'Trial 4'!CY11,'Trial 5'!CY11,'Trial 6'!CY11,'Trial 7'!CY11,'Trial 8'!CY11)","v":{"v":998536.8512086811,"d":"$998,537"}},{"$f":"AVERAGE('Trial 1'!CZ11,'Trial 2'!CZ11,'Trial 3'!CZ11,'Trial 4'!CZ11,'Trial 5'!CZ11,'Trial 6'!CZ11,'Trial 7'!CZ11,'Trial 8'!CZ11)","v":{"v":997541.3316172452,"d":"$997,541"}},{"v":12044824.715754058,"d":"$12,044,825"},{"$f":"AVERAGE('Trial 1'!DB11,'Trial 2'!DB11,'Trial 3'!DB11,'Trial 4'!DB11,'Trial 5'!DB11,'Trial 6'!DB11,'Trial 7'!DB11,'Trial 8'!DB11)","v":{"v":996391.7394675836,"d":"$996,392"}},{"$f":"AVERAGE('Trial 1'!DC11,'Trial 2'!DC11,'Trial 3'!DC11,'Trial 4'!DC11,'Trial 5'!DC11,'Trial 6'!DC11,'Trial 7'!DC11,'Trial 8'!DC11)","v":{"v":995445.3464201365,"d":"$995,445"}},{"$f":"AVERAGE('Trial 1'!DD11,'Trial 2'!DD11,'Trial 3'!DD11,'Trial 4'!DD11,'Trial 5'!DD11,'Trial 6'!DD11,'Trial 7'!DD11,'Trial 8'!DD11)","v":{"v":994206.3906829086,"d":"$994,206"}},{"$f":"AVERAGE('Trial 1'!DE11,'Trial 2'!DE11,'Trial 3'!DE11,'Trial 4'!DE11,'Trial 5'!DE11,'Trial 6'!DE11,'Trial 7'!DE11,'Trial 8'!DE11)","v":{"v":993077.0574418316,"d":"$993,077"}},{"$f":"AVERAGE('Trial 1'!DF11,'Trial 2'!DF11,'Trial 3'!DF11,'Trial 4'!DF11,'Trial 5'!DF11,'Trial 6'!DF11,'Trial 7'!DF11,'Trial 8'!DF11)","v":{"v":992122.8580380579,"d":"$992,123"}},{"$f":"AVERAGE('Trial 1'!DG11,'Trial 2'!DG11,'Trial 3'!DG11,'Trial 4'!DG11,'Trial 5'!DG11,'Trial 6'!DG11,'Trial 7'!DG11,'Trial 8'!DG11)","v":{"v":991074.5531860976,"d":"$991,075"}},{"$f":"AVERAGE('Trial 1'!DH11,'Trial 2'!DH11,'Trial 3'!DH11,'Trial 4'!DH11,'Trial 5'!DH11,'Trial 6'!DH11,'Trial 7'!DH11,'Trial 8'!DH11)","v":{"v":989990.125291132,"d":"$989,990"}},{"$f":"AVERAGE('Trial 1'!DI11,'Trial 2'!DI11,'Trial 3'!DI11,'Trial 4'!DI11,'Trial 5'!DI11,'Trial 6'!DI11,'Trial 7'!DI11,'Trial 8'!DI11)","v":{"v":988884.4813721232,"d":"$988,884"}},{"$f":"AVERAGE('Trial 1'!DJ11,'Trial 2'!DJ11,'Trial 3'!DJ11,'Trial 4'!DJ11,'Trial 5'!DJ11,'Trial 6'!DJ11,'Trial 7'!DJ11,'Trial 8'!DJ11)","v":{"v":987742.9749696418,"d":"$987,743"}},{"$f":"AVERAGE('Trial 1'!DK11,'Trial 2'!DK11,'Trial 3'!DK11,'Trial 4'!DK11,'Trial 5'!DK11,'Trial 6'!DK11,'Trial 7'!DK11,'Trial 8'!DK11)","v":{"v":986731.8957007569,"d":"$986,732"}},{"$f":"AVERAGE('Trial 1'!DL11,'Trial 2'!DL11,'Trial 3'!DL11,'Trial 4'!DL11,'Trial 5'!DL11,'Trial 6'!DL11,'Trial 7'!DL11,'Trial 8'!DL11)","v":{"v":985696.5063364933,"d":"$985,697"}},{"$f":"AVERAGE('Trial 1'!DM11,'Trial 2'!DM11,'Trial 3'!DM11,'Trial 4'!DM11,'Trial 5'!DM11,'Trial 6'!DM11,'Trial 7'!DM11,'Trial 8'!DM11)","v":{"v":984568.0883795258,"d":"$984,568"}},{"v":11885932.01728629,"d":"$11,885,932"},{"$f":"AVERAGE('Trial 1'!DO11,'Trial 2'!DO11,'Trial 3'!DO11,'Trial 4'!DO11,'Trial 5'!DO11,'Trial 6'!DO11,'Trial 7'!DO11,'Trial 8'!DO11)","v":{"v":983491.8523000629,"d":"$983,492"}},{"$f":"AVERAGE('Trial 1'!DP11,'Trial 2'!DP11,'Trial 3'!DP11,'Trial 4'!DP11,'Trial 5'!DP11,'Trial 6'!DP11,'Trial 7'!DP11,'Trial 8'!DP11)","v":{"v":982652.0308705065,"d":"$982,652"}},{"$f":"AVERAGE('Trial 1'!DQ11,'Trial 2'!DQ11,'Trial 3'!DQ11,'Trial 4'!DQ11,'Trial 5'!DQ11,'Trial 6'!DQ11,'Trial 7'!DQ11,'Trial 8'!DQ11)","v":{"v":981597.020080049,"d":"$981,597"}},{"$f":"AVERAGE('Trial 1'!DR11,'Trial 2'!DR11,'Trial 3'!DR11,'Trial 4'!DR11,'Trial 5'!DR11,'Trial 6'!DR11,'Trial 7'!DR11,'Trial 8'!DR11)","v":{"v":980840.8055311218,"d":"$980,841"}},{"$f":"AVERAGE('Trial 1'!DS11,'Trial 2'!DS11,'Trial 3'!DS11,'Trial 4'!DS11,'Trial 5'!DS11,'Trial 6'!DS11,'Trial 7'!DS11,'Trial 8'!DS11)","v":{"v":979917.6098015407,"d":"$979,918"}},{"$f":"AVERAGE('Trial 1'!DT11,'Trial 2'!DT11,'Trial 3'!DT11,'Trial 4'!DT11,'Trial 5'!DT11,'Trial 6'!DT11,'Trial 7'!DT11,'Trial 8'!DT11)","v":{"v":978978.3615975452,"d":"$978,978"}},{"$f":"AVERAGE('Trial 1'!DU11,'Trial 2'!DU11,'Trial 3'!DU11,'Trial 4'!DU11,'Trial 5'!DU11,'Trial 6'!DU11,'Trial 7'!DU11,'Trial 8'!DU11)","v":{"v":978226.9298156946,"d":"$978,227"}},{"$f":"AVERAGE('Trial 1'!DV11,'Trial 2'!DV11,'Trial 3'!DV11,'Trial 4'!DV11,'Trial 5'!DV11,'Trial 6'!DV11,'Trial 7'!DV11,'Trial 8'!DV11)","v":{"v":977361.7121015734,"d":"$977,362"}},{"$f":"AVERAGE('Trial 1'!DW11,'Trial 2'!DW11,'Trial 3'!DW11,'Trial 4'!DW11,'Trial 5'!DW11,'Trial 6'!DW11,'Trial 7'!DW11,'Trial 8'!DW11)","v":{"v":976555.7187117478,"d":"$976,556"}},{"$f":"AVERAGE('Trial 1'!DX11,'Trial 2'!DX11,'Trial 3'!DX11,'Trial 4'!DX11,'Trial 5'!DX11,'Trial 6'!DX11,'Trial 7'!DX11,'Trial 8'!DX11)","v":{"v":975677.6468446684,"d":"$975,678"}},{"$f":"AVERAGE('Trial 1'!DY11,'Trial 2'!DY11,'Trial 3'!DY11,'Trial 4'!DY11,'Trial 5'!DY11,'Trial 6'!DY11,'Trial 7'!DY11,'Trial 8'!DY11)","v":{"v":974777.0325246982,"d":"$974,777"}},{"$f":"AVERAGE('Trial 1'!DZ11,'Trial 2'!DZ11,'Trial 3'!DZ11,'Trial 4'!DZ11,'Trial 5'!DZ11,'Trial 6'!DZ11,'Trial 7'!DZ11,'Trial 8'!DZ11)","v":{"v":973899.3756570386,"d":"$973,899"}},{"v":11743976.095836246,"d":"$11,743,976"},{"$f":"AVERAGE('Trial 1'!EB11,'Trial 2'!EB11,'Trial 3'!EB11,'Trial 4'!EB11,'Trial 5'!EB11,'Trial 6'!EB11,'Trial 7'!EB11,'Trial 8'!EB11)","v":{"v":972791.3832977981,"d":"$972,791"}},{"$f":"AVERAGE('Trial 1'!EC11,'Trial 2'!EC11,'Trial 3'!EC11,'Trial 4'!EC11,'Trial 5'!EC11,'Trial 6'!EC11,'Trial 7'!EC11,'Trial 8'!EC11)","v":{"v":971992.230024295,"d":"$971,992"}},{"$f":"AVERAGE('Trial 1'!ED11,'Trial 2'!ED11,'Trial 3'!ED11,'Trial 4'!ED11,'Trial 5'!ED11,'Trial 6'!ED11,'Trial 7'!ED11,'Trial 8'!ED11)","v":{"v":970922.8592425796,"d":"$970,923"}},{"$f":"AVERAGE('Trial 1'!EE11,'Trial 2'!EE11,'Trial 3'!EE11,'Trial 4'!EE11,'Trial 5'!EE11,'Trial 6'!EE11,'Trial 7'!EE11,'Trial 8'!EE11)","v":{"v":969946.1485109014,"d":"$969,946"}},{"$f":"AVERAGE('Trial 1'!EF11,'Trial 2'!EF11,'Trial 3'!EF11,'Trial 4'!EF11,'Trial 5'!EF11,'Trial 6'!EF11,'Trial 7'!EF11,'Trial 8'!EF11)","v":{"v":969104.591766805,"d":"$969,105"}},{"$f":"AVERAGE('Trial 1'!EG11,'Trial 2'!EG11,'Trial 3'!EG11,'Trial 4'!EG11,'Trial 5'!EG11,'Trial 6'!EG11,'Trial 7'!EG11,'Trial 8'!EG11)","v":{"v":968293.7877681083,"d":"$968,294"}},{"$f":"AVERAGE('Trial 1'!EH11,'Trial 2'!EH11,'Trial 3'!EH11,'Trial 4'!EH11,'Trial 5'!EH11,'Trial 6'!EH11,'Trial 7'!EH11,'Trial 8'!EH11)","v":{"v":967298.1083454415,"d":"$967,298"}},{"$f":"AVERAGE('Trial 1'!EI11,'Trial 2'!EI11,'Trial 3'!EI11,'Trial 4'!EI11,'Trial 5'!EI11,'Trial 6'!EI11,'Trial 7'!EI11,'Trial 8'!EI11)","v":{"v":966368.5499572617,"d":"$966,369"}},{"$f":"AVERAGE('Trial 1'!EJ11,'Trial 2'!EJ11,'Trial 3'!EJ11,'Trial 4'!EJ11,'Trial 5'!EJ11,'Trial 6'!EJ11,'Trial 7'!EJ11,'Trial 8'!EJ11)","v":{"v":965188.3084926297,"d":"$965,188"}},{"$f":"AVERAGE('Trial 1'!EK11,'Trial 2'!EK11,'Trial 3'!EK11,'Trial 4'!EK11,'Trial 5'!EK11,'Trial 6'!EK11,'Trial 7'!EK11,'Trial 8'!EK11)","v":{"v":964279.6442725786,"d":"$964,280"}},{"$f":"AVERAGE('Trial 1'!EL11,'Trial 2'!EL11,'Trial 3'!EL11,'Trial 4'!EL11,'Trial 5'!EL11,'Trial 6'!EL11,'Trial 7'!EL11,'Trial 8'!EL11)","v":{"v":963531.0108056855,"d":"$963,531"}},{"$f":"AVERAGE('Trial 1'!EM11,'Trial 2'!EM11,'Trial 3'!EM11,'Trial 4'!EM11,'Trial 5'!EM11,'Trial 6'!EM11,'Trial 7'!EM11,'Trial 8'!EM11)","v":{"v":962599.8638239858,"d":"$962,600"}},{"v":11612316.48630807,"d":"$11,612,316"}]
[{"$f":"Labels!B36","v":"Short Expected Demand std dev"},{"$f":"STDEV('Trial 1'!B11,'Trial 2'!B11,'Trial 3'!B11,'Trial 4'!B11,'Trial 5'!B11,'Trial 6'!B11,'Trial 7'!B11,'Trial 8'!B11)","v":{"v":0,"d":"$0"}},{"$f":"STDEV('Trial 1'!C11,'Trial 2'!C11,'Trial 3'!C11,'Trial 4'!C11,'Trial 5'!C11,'Trial 6'!C11,'Trial 7'!C11,'Trial 8'!C11)","v":{"v":283.7365030979665,"d":"$284"}},{"$f":"STDEV('Trial 1'!D11,'Trial 2'!D11,'Trial 3'!D11,'Trial 4'!D11,'Trial 5'!D11,'Trial 6'!D11,'Trial 7'!D11,'Trial 8'!D11)","v":{"v":400.05916912139463,"d":"$400"}},{"$f":"STDEV('Trial 1'!E11,'Trial 2'!E11,'Trial 3'!E11,'Trial 4'!E11,'Trial 5'!E11,'Trial 6'!E11,'Trial 7'!E11,'Trial 8'!E11)","v":{"v":523.079830256535,"d":"$523"}},{"$f":"STDEV('Trial 1'!F11,'Trial 2'!F11,'Trial 3'!F11,'Trial 4'!F11,'Trial 5'!F11,'Trial 6'!F11,'Trial 7'!F11,'Trial 8'!F11)","v":{"v":576.7427385395644,"d":"$577"}},{"$f":"STDEV('Trial 1'!G11,'Trial 2'!G11,'Trial 3'!G11,'Trial 4'!G11,'Trial 5'!G11,'Trial 6'!G11,'Trial 7'!G11,'Trial 8'!G11)","v":{"v":762.0103967390627,"d":"$762"}},{"$f":"STDEV('Trial 1'!H11,'Trial 2'!H11,'Trial 3'!H11,'Trial 4'!H11,'Trial 5'!H11,'Trial 6'!H11,'Trial 7'!H11,'Trial 8'!H11)","v":{"v":929.704876853681,"d":"$930"}},{"$f":"STDEV('Trial 1'!I11,'Trial 2'!I11,'Trial 3'!I11,'Trial 4'!I11,'Trial 5'!I11,'Trial 6'!I11,'Trial 7'!I11,'Trial 8'!I11)","v":{"v":951.3158876814849,"d":"$951"}},{"$f":"STDEV('Trial 1'!J11,'Trial 2'!J11,'Trial 3'!J11,'Trial 4'!J11,'Trial 5'!J11,'Trial 6'!J11,'Trial 7'!J11,'Trial 8'!J11)","v":{"v":1050.8721246254775,"d":"$1,051"}},{"$f":"STDEV('Trial 1'!K11,'Trial 2'!K11,'Trial 3'!K11,'Trial 4'!K11,'Trial 5'!K11,'Trial 6'!K11,'Trial 7'!K11,'Trial 8'!K11)","v":{"v":873.0342427181854,"d":"$873"}},{"$f":"STDEV('Trial 1'!L11,'Trial 2'!L11,'Trial 3'!L11,'Trial 4'!L11,'Trial 5'!L11,'Trial 6'!L11,'Trial 7'!L11,'Trial 8'!L11)","v":{"v":1051.8174562863446,"d":"$1,052"}},{"$f":"STDEV('Trial 1'!M11,'Trial 2'!M11,'Trial 3'!M11,'Trial 4'!M11,'Trial 5'!M11,'Trial 6'!M11,'Trial 7'!M11,'Trial 8'!M11)","v":{"v":1305.5100628285147,"d":"$1,306"}},{"v":8707.883288748211,"d":"$8,708"},{"$f":"STDEV('Trial 1'!O11,'Trial 2'!O11,'Trial 3'!O11,'Trial 4'!O11,'Trial 5'!O11,'Trial 6'!O11,'Trial 7'!O11,'Trial 8'!O11)","v":{"v":1419.3167275339604,"d":"$1,419"}},{"$f":"STDEV('Trial 1'!P11,'Trial 2'!P11,'Trial 3'!P11,'Trial 4'!P11,'Trial 5'!P11,'Trial 6'!P11,'Trial 7'!P11,'Trial 8'!P11)","v":{"v":1457.4336048656176,"d":"$1,457"}},{"$f":"STDEV('Trial 1'!Q11,'Trial 2'!Q11,'Trial 3'!Q11,'Trial 4'!Q11,'Trial 5'!Q11,'Trial 6'!Q11,'Trial 7'!Q11,'Trial 8'!Q11)","v":{"v":1441.873681131355,"d":"$1,442"}},{"$f":"STDEV('Trial 1'!R11,'Trial 2'!R11,'Trial 3'!R11,'Trial 4'!R11,'Trial 5'!R11,'Trial 6'!R11,'Trial 7'!R11,'Trial 8'!R11)","v":{"v":1387.1265743077145,"d":"$1,387"}},{"$f":"STDEV('Trial 1'!S11,'Trial 2'!S11,'Trial 3'!S11,'Trial 4'!S11,'Trial 5'!S11,'Trial 6'!S11,'Trial 7'!S11,'Trial 8'!S11)","v":{"v":1492.284107492312,"d":"$1,492"}},{"$f":"STDEV('Trial 1'!T11,'Trial 2'!T11,'Trial 3'!T11,'Trial 4'!T11,'Trial 5'!T11,'Trial 6'!T11,'Trial 7'!T11,'Trial 8'!T11)","v":{"v":1564.8060844890495,"d":"$1,565"}},{"$f":"STDEV('Trial 1'!U11,'Trial 2'!U11,'Trial 3'!U11,'Trial 4'!U11,'Trial 5'!U11,'Trial 6'!U11,'Trial 7'!U11,'Trial 8'!U11)","v":{"v":1440.2243340149291,"d":"$1,440"}},{"$f":"STDEV('Trial 1'!V11,'Trial 2'!V11,'Trial 3'!V11,'Trial 4'!V11,'Trial 5'!V11,'Trial 6'!V11,'Trial 7'!V11,'Trial 8'!V11)","v":{"v":1402.4524813071257,"d":"$1,402"}},{"$f":"STDEV('Trial 1'!W11,'Trial 2'!W11,'Trial 3'!W11,'Trial 4'!W11,'Trial 5'!W11,'Trial 6'!W11,'Trial 7'!W11,'Trial 8'!W11)","v":{"v":1531.8682677134084,"d":"$1,532"}},{"$f":"STDEV('Trial 1'!X11,'Trial 2'!X11,'Trial 3'!X11,'Trial 4'!X11,'Trial 5'!X11,'Trial 6'!X11,'Trial 7'!X11,'Trial 8'!X11)","v":{"v":1604.2061829507775,"d":"$1,604"}},{"$f":"STDEV('Trial 1'!Y11,'Trial 2'!Y11,'Trial 3'!Y11,'Trial 4'!Y11,'Trial 5'!Y11,'Trial 6'!Y11,'Trial 7'!Y11,'Trial 8'!Y11)","v":{"v":1808.3437660704003,"d":"$1,808"}},{"$f":"STDEV('Trial 1'!Z11,'Trial 2'!Z11,'Trial 3'!Z11,'Trial 4'!Z11,'Trial 5'!Z11,'Trial 6'!Z11,'Trial 7'!Z11,'Trial 8'!Z11)","v":{"v":1928.7455869754335,"d":"$1,929"}},{"v":18478.68139885208,"d":"$18,479"},{"$f":"STDEV('Trial 1'!AB11,'Trial 2'!AB11,'Trial 3'!AB11,'Trial 4'!AB11,'Trial 5'!AB11,'Trial 6'!AB11,'Trial 7'!AB11,'Trial 8'!AB11)","v":{"v":1744.2878287982771,"d":"$1,744"}},{"$f":"STDEV('Trial 1'!AC11,'Trial 2'!AC11,'Trial 3'!AC11,'Trial 4'!AC11,'Trial 5'!AC11,'Trial 6'!AC11,'Trial 7'!AC11,'Trial 8'!AC11)","v":{"v":1532.3122758985578,"d":"$1,532"}},{"$f":"STDEV('Trial 1'!AD11,'Trial 2'!AD11,'Trial 3'!AD11,'Trial 4'!AD11,'Trial 5'!AD11,'Trial 6'!AD11,'Trial 7'!AD11,'Trial 8'!AD11)","v":{"v":1572.3273525587852,"d":"$1,572"}},{"$f":"STDEV('Trial 1'!AE11,'Trial 2'!AE11,'Trial 3'!AE11,'Trial 4'!AE11,'Trial 5'!AE11,'Trial 6'!AE11,'Trial 7'!AE11,'Trial 8'!AE11)","v":{"v":1732.8236835954553,"d":"$1,733"}},{"$f":"STDEV('Trial 1'!AF11,'Trial 2'!AF11,'Trial 3'!AF11,'Trial 4'!AF11,'Trial 5'!AF11,'Trial 6'!AF11,'Trial 7'!AF11,'Trial 8'!AF11)","v":{"v":1869.149737492268,"d":"$1,869"}},{"$f":"STDEV('Trial 1'!AG11,'Trial 2'!AG11,'Trial 3'!AG11,'Trial 4'!AG11,'Trial 5'!AG11,'Trial 6'!AG11,'Trial 7'!AG11,'Trial 8'!AG11)","v":{"v":2060.235491986884,"d":"$2,060"}},{"$f":"STDEV('Trial 1'!AH11,'Trial 2'!AH11,'Trial 3'!AH11,'Trial 4'!AH11,'Trial 5'!AH11,'Trial 6'!AH11,'Trial 7'!AH11,'Trial 8'!AH11)","v":{"v":2040.785187543905,"d":"$2,041"}},{"$f":"STDEV('Trial 1'!AI11,'Trial 2'!AI11,'Trial 3'!AI11,'Trial 4'!AI11,'Trial 5'!AI11,'Trial 6'!AI11,'Trial 7'!AI11,'Trial 8'!AI11)","v":{"v":2103.6420830491993,"d":"$2,104"}},{"$f":"STDEV('Trial 1'!AJ11,'Trial 2'!AJ11,'Trial 3'!AJ11,'Trial 4'!AJ11,'Trial 5'!AJ11,'Trial 6'!AJ11,'Trial 7'!AJ11,'Trial 8'!AJ11)","v":{"v":2053.58914686416,"d":"$2,054"}},{"$f":"STDEV('Trial 1'!AK11,'Trial 2'!AK11,'Trial 3'!AK11,'Trial 4'!AK11,'Trial 5'!AK11,'Trial 6'!AK11,'Trial 7'!AK11,'Trial 8'!AK11)","v":{"v":1993.5363226315,"d":"$1,994"}},{"$f":"STDEV('Trial 1'!AL11,'Trial 2'!AL11,'Trial 3'!AL11,'Trial 4'!AL11,'Trial 5'!AL11,'Trial 6'!AL11,'Trial 7'!AL11,'Trial 8'!AL11)","v":{"v":1961.281818421411,"d":"$1,961"}},{"$f":"STDEV('Trial 1'!AM11,'Trial 2'!AM11,'Trial 3'!AM11,'Trial 4'!AM11,'Trial 5'!AM11,'Trial 6'!AM11,'Trial 7'!AM11,'Trial 8'!AM11)","v":{"v":2048.849323874287,"d":"$2,049"}},{"v":22712.82025271469,"d":"$22,713"},{"$f":"STDEV('Trial 1'!AO11,'Trial 2'!AO11,'Trial 3'!AO11,'Trial 4'!AO11,'Trial 5'!AO11,'Trial 6'!AO11,'Trial 7'!AO11,'Trial 8'!AO11)","v":{"v":2333.4001696605446,"d":"$2,333"}},{"$f":"STDEV('Trial 1'!AP11,'Trial 2'!AP11,'Trial 3'!AP11,'Trial 4'!AP11,'Trial 5'!AP11,'Trial 6'!AP11,'Trial 7'!AP11,'Trial 8'!AP11)","v":{"v":2249.55002451364,"d":"$2,250"}},{"$f":"STDEV('Trial 1'!AQ11,'Trial 2'!AQ11,'Trial 3'!AQ11,'Trial 4'!AQ11,'Trial 5'!AQ11,'Trial 6'!AQ11,'Trial 7'!AQ11,'Trial 8'!AQ11)","v":{"v":2180.7287947933805,"d":"$2,181"}},{"$f":"STDEV('Trial 1'!AR11,'Trial 2'!AR11,'Trial 3'!AR11,'Trial 4'!AR11,'Trial 5'!AR11,'Trial 6'!AR11,'Trial 7'!AR11,'Trial 8'!AR11)","v":{"v":2230.8419847189284,"d":"$2,231"}},{"$f":"STDEV('Trial 1'!AS11,'Trial 2'!AS11,'Trial 3'!AS11,'Trial 4'!AS11,'Trial 5'!AS11,'Trial 6'!AS11,'Trial 7'!AS11,'Trial 8'!AS11)","v":{"v":2360.2574082376977,"d":"$2,360"}},{"$f":"STDEV('Trial 1'!AT11,'Trial 2'!AT11,'Trial 3'!AT11,'Trial 4'!AT11,'Trial 5'!AT11,'Trial 6'!AT11,'Trial 7'!AT11,'Trial 8'!AT11)","v":{"v":2349.2505555850294,"d":"$2,349"}},{"$f":"STDEV('Trial 1'!AU11,'Trial 2'!AU11,'Trial 3'!AU11,'Trial 4'!AU11,'Trial 5'!AU11,'Trial 6'!AU11,'Trial 7'!AU11,'Trial 8'!AU11)","v":{"v":2206.8649903283554,"d":"$2,207"}},{"$f":"STDEV('Trial 1'!AV11,'Trial 2'!AV11,'Trial 3'!AV11,'Trial 4'!AV11,'Trial 5'!AV11,'Trial 6'!AV11,'Trial 7'!AV11,'Trial 8'!AV11)","v":{"v":2016.5956353528798,"d":"$2,017"}},{"$f":"STDEV('Trial 1'!AW11,'Trial 2'!AW11,'Trial 3'!AW11,'Trial 4'!AW11,'Trial 5'!AW11,'Trial 6'!AW11,'Trial 7'!AW11,'Trial 8'!AW11)","v":{"v":1964.275251363971,"d":"$1,964"}},{"$f":"STDEV('Trial 1'!AX11,'Trial 2'!AX11,'Trial 3'!AX11,'Trial 4'!AX11,'Trial 5'!AX11,'Trial 6'!AX11,'Trial 7'!AX11,'Trial 8'!AX11)","v":{"v":1850.955811732724,"d":"$1,851"}},{"$f":"STDEV('Trial 1'!AY11,'Trial 2'!AY11,'Trial 3'!AY11,'Trial 4'!AY11,'Trial 5'!AY11,'Trial 6'!AY11,'Trial 7'!AY11,'Trial 8'!AY11)","v":{"v":1776.6419716440064,"d":"$1,777"}},{"$f":"STDEV('Trial 1'!AZ11,'Trial 2'!AZ11,'Trial 3'!AZ11,'Trial 4'!AZ11,'Trial 5'!AZ11,'Trial 6'!AZ11,'Trial 7'!AZ11,'Trial 8'!AZ11)","v":{"v":1883.9833066206586,"d":"$1,884"}},{"v":25403.345904551818,"d":"$25,403"},{"$f":"STDEV('Trial 1'!BB11,'Trial 2'!BB11,'Trial 3'!BB11,'Trial 4'!BB11,'Trial 5'!BB11,'Trial 6'!BB11,'Trial 7'!BB11,'Trial 8'!BB11)","v":{"v":2082.559260510404,"d":"$2,083"}},{"$f":"STDEV('Trial 1'!BC11,'Trial 2'!BC11,'Trial 3'!BC11,'Trial 4'!BC11,'Trial 5'!BC11,'Trial 6'!BC11,'Trial 7'!BC11,'Trial 8'!BC11)","v":{"v":1719.065719731403,"d":"$1,719"}},{"$f":"STDEV('Trial 1'!BD11,'Trial 2'!BD11,'Trial 3'!BD11,'Trial 4'!BD11,'Trial 5'!BD11,'Trial 6'!BD11,'Trial 7'!BD11,'Trial 8'!BD11)","v":{"v":1748.8556209604417,"d":"$1,749"}},{"$f":"STDEV('Trial 1'!BE11,'Trial 2'!BE11,'Trial 3'!BE11,'Trial 4'!BE11,'Trial 5'!BE11,'Trial 6'!BE11,'Trial 7'!BE11,'Trial 8'!BE11)","v":{"v":1953.162251995567,"d":"$1,953"}},{"$f":"STDEV('Trial 1'!BF11,'Trial 2'!BF11,'Trial 3'!BF11,'Trial 4'!BF11,'Trial 5'!BF11,'Trial 6'!BF11,'Trial 7'!BF11,'Trial 8'!BF11)","v":{"v":2050.748781386044,"d":"$2,051"}},{"$f":"STDEV('Trial 1'!BG11,'Trial 2'!BG11,'Trial 3'!BG11,'Trial 4'!BG11,'Trial 5'!BG11,'Trial 6'!BG11,'Trial 7'!BG11,'Trial 8'!BG11)","v":{"v":2201.1526174577984,"d":"$2,201"}},{"$f":"STDEV('Trial 1'!BH11,'Trial 2'!BH11,'Trial 3'!BH11,'Trial 4'!BH11,'Trial 5'!BH11,'Trial 6'!BH11,'Trial 7'!BH11,'Trial 8'!BH11)","v":{"v":2379.9136417923964,"d":"$2,380"}},{"$f":"STDEV('Trial 1'!BI11,'Trial 2'!BI11,'Trial 3'!BI11,'Trial 4'!BI11,'Trial 5'!BI11,'Trial 6'!BI11,'Trial 7'!BI11,'Trial 8'!BI11)","v":{"v":2562.1303240499496,"d":"$2,562"}},{"$f":"STDEV('Trial 1'!BJ11,'Trial 2'!BJ11,'Trial 3'!BJ11,'Trial 4'!BJ11,'Trial 5'!BJ11,'Trial 6'!BJ11,'Trial 7'!BJ11,'Trial 8'!BJ11)","v":{"v":2414.3162155169475,"d":"$2,414"}},{"$f":"STDEV('Trial 1'!BK11,'Trial 2'!BK11,'Trial 3'!BK11,'Trial 4'!BK11,'Trial 5'!BK11,'Trial 6'!BK11,'Trial 7'!BK11,'Trial 8'!BK11)","v":{"v":2495.8590077930103,"d":"$2,496"}},{"$f":"STDEV('Trial 1'!BL11,'Trial 2'!BL11,'Trial 3'!BL11,'Trial 4'!BL11,'Trial 5'!BL11,'Trial 6'!BL11,'Trial 7'!BL11,'Trial 8'!BL11)","v":{"v":2351.9015463363,"d":"$2,352"}},{"$f":"STDEV('Trial 1'!BM11,'Trial 2'!BM11,'Trial 3'!BM11,'Trial 4'!BM11,'Trial 5'!BM11,'Trial 6'!BM11,'Trial 7'!BM11,'Trial 8'!BM11)","v":{"v":2140.0292549503956,"d":"$2,140"}},{"v":26099.694242480655,"d":"$26,100"},{"$f":"STDEV('Trial 1'!BO11,'Trial 2'!BO11,'Trial 3'!BO11,'Trial 4'!BO11,'Trial 5'!BO11,'Trial 6'!BO11,'Trial 7'!BO11,'Trial 8'!BO11)","v":{"v":2013.4136846606027,"d":"$2,013"}},{"$f":"STDEV('Trial 1'!BP11,'Trial 2'!BP11,'Trial 3'!BP11,'Trial 4'!BP11,'Trial 5'!BP11,'Trial 6'!BP11,'Trial 7'!BP11,'Trial 8'!BP11)","v":{"v":1960.4602058549558,"d":"$1,960"}},{"$f":"STDEV('Trial 1'!BQ11,'Trial 2'!BQ11,'Trial 3'!BQ11,'Trial 4'!BQ11,'Trial 5'!BQ11,'Trial 6'!BQ11,'Trial 7'!BQ11,'Trial 8'!BQ11)","v":{"v":1972.5996672746362,"d":"$1,973"}},{"$f":"STDEV('Trial 1'!BR11,'Trial 2'!BR11,'Trial 3'!BR11,'Trial 4'!BR11,'Trial 5'!BR11,'Trial 6'!BR11,'Trial 7'!BR11,'Trial 8'!BR11)","v":{"v":2237.213433355734,"d":"$2,237"}},{"$f":"STDEV('Trial 1'!BS11,'Trial 2'!BS11,'Trial 3'!BS11,'Trial 4'!BS11,'Trial 5'!BS11,'Trial 6'!BS11,'Trial 7'!BS11,'Trial 8'!BS11)","v":{"v":2393.179274894914,"d":"$2,393"}},{"$f":"STDEV('Trial 1'!BT11,'Trial 2'!BT11,'Trial 3'!BT11,'Trial 4'!BT11,'Trial 5'!BT11,'Trial 6'!BT11,'Trial 7'!BT11,'Trial 8'!BT11)","v":{"v":2526.154260061538,"d":"$2,526"}},{"$f":"STDEV('Trial 1'!BU11,'Trial 2'!BU11,'Trial 3'!BU11,'Trial 4'!BU11,'Trial 5'!BU11,'Trial 6'!BU11,'Trial 7'!BU11,'Trial 8'!BU11)","v":{"v":2399.143738280796,"d":"$2,399"}},{"$f":"STDEV('Trial 1'!BV11,'Trial 2'!BV11,'Trial 3'!BV11,'Trial 4'!BV11,'Trial 5'!BV11,'Trial 6'!BV11,'Trial 7'!BV11,'Trial 8'!BV11)","v":{"v":2506.4524881653056,"d":"$2,506"}},{"$f":"STDEV('Trial 1'!BW11,'Trial 2'!BW11,'Trial 3'!BW11,'Trial 4'!BW11,'Trial 5'!BW11,'Trial 6'!BW11,'Trial 7'!BW11,'Trial 8'!BW11)","v":{"v":2705.2909821392404,"d":"$2,705"}},{"$f":"STDEV('Trial 1'!BX11,'Trial 2'!BX11,'Trial 3'!BX11,'Trial 4'!BX11,'Trial 5'!BX11,'Trial 6'!BX11,'Trial 7'!BX11,'Trial 8'!BX11)","v":{"v":2876.1807916363173,"d":"$2,876"}},{"$f":"STDEV('Trial 1'!BY11,'Trial 2'!BY11,'Trial 3'!BY11,'Trial 4'!BY11,'Trial 5'!BY11,'Trial 6'!BY11,'Trial 7'!BY11,'Trial 8'!BY11)","v":{"v":3015.861459521408,"d":"$3,016"}},{"$f":"STDEV('Trial 1'!BZ11,'Trial 2'!BZ11,'Trial 3'!BZ11,'Trial 4'!BZ11,'Trial 5'!BZ11,'Trial 6'!BZ11,'Trial 7'!BZ11,'Trial 8'!BZ11)","v":{"v":2786.417071750368,"d":"$2,786"}},{"v":29392.36705759582,"d":"$29,392"},{"$f":"STDEV('Trial 1'!CB11,'Trial 2'!CB11,'Trial 3'!CB11,'Trial 4'!CB11,'Trial 5'!CB11,'Trial 6'!CB11,'Trial 7'!CB11,'Trial 8'!CB11)","v":{"v":2641.5901118602546,"d":"$2,642"}},{"$f":"STDEV('Trial 1'!CC11,'Trial 2'!CC11,'Trial 3'!CC11,'Trial 4'!CC11,'Trial 5'!CC11,'Trial 6'!CC11,'Trial 7'!CC11,'Trial 8'!CC11)","v":{"v":2562.8542831505124,"d":"$2,563"}},{"$f":"STDEV('Trial 1'!CD11,'Trial 2'!CD11,'Trial 3'!CD11,'Trial 4'!CD11,'Trial 5'!CD11,'Trial 6'!CD11,'Trial 7'!CD11,'Trial 8'!CD11)","v":{"v":2530.7590846362145,"d":"$2,531"}},{"$f":"STDEV('Trial 1'!CE11,'Trial 2'!CE11,'Trial 3'!CE11,'Trial 4'!CE11,'Trial 5'!CE11,'Trial 6'!CE11,'Trial 7'!CE11,'Trial 8'!CE11)","v":{"v":2467.8520161049287,"d":"$2,468"}},{"$f":"STDEV('Trial 1'!CF11,'Trial 2'!CF11,'Trial 3'!CF11,'Trial 4'!CF11,'Trial 5'!CF11,'Trial 6'!CF11,'Trial 7'!CF11,'Trial 8'!CF11)","v":{"v":2431.8468726364117,"d":"$2,432"}},{"$f":"STDEV('Trial 1'!CG11,'Trial 2'!CG11,'Trial 3'!CG11,'Trial 4'!CG11,'Trial 5'!CG11,'Trial 6'!CG11,'Trial 7'!CG11,'Trial 8'!CG11)","v":{"v":2379.3975755986025,"d":"$2,379"}},{"$f":"STDEV('Trial 1'!CH11,'Trial 2'!CH11,'Trial 3'!CH11,'Trial 4'!CH11,'Trial 5'!CH11,'Trial 6'!CH11,'Trial 7'!CH11,'Trial 8'!CH11)","v":{"v":2611.990498079961,"d":"$2,612"}},{"$f":"STDEV('Trial 1'!CI11,'Trial 2'!CI11,'Trial 3'!CI11,'Trial 4'!CI11,'Trial 5'!CI11,'Trial 6'!CI11,'Trial 7'!CI11,'Trial 8'!CI11)","v":{"v":2431.326843478862,"d":"$2,431"}},{"$f":"STDEV('Trial 1'!CJ11,'Trial 2'!CJ11,'Trial 3'!CJ11,'Trial 4'!CJ11,'Trial 5'!CJ11,'Trial 6'!CJ11,'Trial 7'!CJ11,'Trial 8'!CJ11)","v":{"v":2242.140006307145,"d":"$2,242"}},{"$f":"STDEV('Trial 1'!CK11,'Trial 2'!CK11,'Trial 3'!CK11,'Trial 4'!CK11,'Trial 5'!CK11,'Trial 6'!CK11,'Trial 7'!CK11,'Trial 8'!CK11)","v":{"v":2232.5289801310864,"d":"$2,233"}},{"$f":"STDEV('Trial 1'!CL11,'Trial 2'!CL11,'Trial 3'!CL11,'Trial 4'!CL11,'Trial 5'!CL11,'Trial 6'!CL11,'Trial 7'!CL11,'Trial 8'!CL11)","v":{"v":2262.7255694420373,"d":"$2,263"}},{"$f":"STDEV('Trial 1'!CM11,'Trial 2'!CM11,'Trial 3'!CM11,'Trial 4'!CM11,'Trial 5'!CM11,'Trial 6'!CM11,'Trial 7'!CM11,'Trial 8'!CM11)","v":{"v":2099.18346778633,"d":"$2,099"}},{"v":28894.195309212348,"d":"$28,894"},{"$f":"STDEV('Trial 1'!CO11,'Trial 2'!CO11,'Trial 3'!CO11,'Trial 4'!CO11,'Trial 5'!CO11,'Trial 6'!CO11,'Trial 7'!CO11,'Trial 8'!CO11)","v":{"v":2262.144535032595,"d":"$2,262"}},{"$f":"STDEV('Trial 1'!CP11,'Trial 2'!CP11,'Trial 3'!CP11,'Trial 4'!CP11,'Trial 5'!CP11,'Trial 6'!CP11,'Trial 7'!CP11,'Trial 8'!CP11)","v":{"v":2457.156580002537,"d":"$2,457"}},{"$f":"STDEV('Trial 1'!CQ11,'Trial 2'!CQ11,'Trial 3'!CQ11,'Trial 4'!CQ11,'Trial 5'!CQ11,'Trial 6'!CQ11,'Trial 7'!CQ11,'Trial 8'!CQ11)","v":{"v":2425.7733662108276,"d":"$2,426"}},{"$f":"STDEV('Trial 1'!CR11,'Trial 2'!CR11,'Trial 3'!CR11,'Trial 4'!CR11,'Trial 5'!CR11,'Trial 6'!CR11,'Trial 7'!CR11,'Trial 8'!CR11)","v":{"v":2534.139590900525,"d":"$2,534"}},{"$f":"STDEV('Trial 1'!CS11,'Trial 2'!CS11,'Trial 3'!CS11,'Trial 4'!CS11,'Trial 5'!CS11,'Trial 6'!CS11,'Trial 7'!CS11,'Trial 8'!CS11)","v":{"v":2578.580947608541,"d":"$2,579"}},{"$f":"STDEV('Trial 1'!CT11,'Trial 2'!CT11,'Trial 3'!CT11,'Trial 4'!CT11,'Trial 5'!CT11,'Trial 6'!CT11,'Trial 7'!CT11,'Trial 8'!CT11)","v":{"v":2369.186622744893,"d":"$2,369"}},{"$f":"STDEV('Trial 1'!CU11,'Trial 2'!CU11,'Trial 3'!CU11,'Trial 4'!CU11,'Trial 5'!CU11,'Trial 6'!CU11,'Trial 7'!CU11,'Trial 8'!CU11)","v":{"v":2415.6231339551073,"d":"$2,416"}},{"$f":"STDEV('Trial 1'!CV11,'Trial 2'!CV11,'Trial 3'!CV11,'Trial 4'!CV11,'Trial 5'!CV11,'Trial 6'!CV11,'Trial 7'!CV11,'Trial 8'!CV11)","v":{"v":2534.8367241898986,"d":"$2,535"}},{"$f":"STDEV('Trial 1'!CW11,'Trial 2'!CW11,'Trial 3'!CW11,'Trial 4'!CW11,'Trial 5'!CW11,'Trial 6'!CW11,'Trial 7'!CW11,'Trial 8'!CW11)","v":{"v":2413.9212544894917,"d":"$2,414"}},{"$f":"STDEV('Trial 1'!CX11,'Trial 2'!CX11,'Trial 3'!CX11,'Trial 4'!CX11,'Trial 5'!CX11,'Trial 6'!CX11,'Trial 7'!CX11,'Trial 8'!CX11)","v":{"v":2409.4114475797583,"d":"$2,409"}},{"$f":"STDEV('Trial 1'!CY11,'Trial 2'!CY11,'Trial 3'!CY11,'Trial 4'!CY11,'Trial 5'!CY11,'Trial 6'!CY11,'Trial 7'!CY11,'Trial 8'!CY11)","v":{"v":2518.9263045910247,"d":"$2,519"}},{"$f":"STDEV('Trial 1'!CZ11,'Trial 2'!CZ11,'Trial 3'!CZ11,'Trial 4'!CZ11,'Trial 5'!CZ11,'Trial 6'!CZ11,'Trial 7'!CZ11,'Trial 8'!CZ11)","v":{"v":2521.5837657718157,"d":"$2,522"}},{"v":29441.284273077013,"d":"$29,441"},{"$f":"STDEV('Trial 1'!DB11,'Trial 2'!DB11,'Trial 3'!DB11,'Trial 4'!DB11,'Trial 5'!DB11,'Trial 6'!DB11,'Trial 7'!DB11,'Trial 8'!DB11)","v":{"v":2443.7892253950226,"d":"$2,444"}},{"$f":"STDEV('Trial 1'!DC11,'Trial 2'!DC11,'Trial 3'!DC11,'Trial 4'!DC11,'Trial 5'!DC11,'Trial 6'!DC11,'Trial 7'!DC11,'Trial 8'!DC11)","v":{"v":2760.74353007984,"d":"$2,761"}},{"$f":"STDEV('Trial 1'!DD11,'Trial 2'!DD11,'Trial 3'!DD11,'Trial 4'!DD11,'Trial 5'!DD11,'Trial 6'!DD11,'Trial 7'!DD11,'Trial 8'!DD11)","v":{"v":2653.0794606456757,"d":"$2,653"}},{"$f":"STDEV('Trial 1'!DE11,'Trial 2'!DE11,'Trial 3'!DE11,'Trial 4'!DE11,'Trial 5'!DE11,'Trial 6'!DE11,'Trial 7'!DE11,'Trial 8'!DE11)","v":{"v":2480.4423643370255,"d":"$2,480"}},{"$f":"STDEV('Trial 1'!DF11,'Trial 2'!DF11,'Trial 3'!DF11,'Trial 4'!DF11,'Trial 5'!DF11,'Trial 6'!DF11,'Trial 7'!DF11,'Trial 8'!DF11)","v":{"v":2299.8686711783394,"d":"$2,300"}},{"$f":"STDEV('Trial 1'!DG11,'Trial 2'!DG11,'Trial 3'!DG11,'Trial 4'!DG11,'Trial 5'!DG11,'Trial 6'!DG11,'Trial 7'!DG11,'Trial 8'!DG11)","v":{"v":2141.678744505591,"d":"$2,142"}},{"$f":"STDEV('Trial 1'!DH11,'Trial 2'!DH11,'Trial 3'!DH11,'Trial 4'!DH11,'Trial 5'!DH11,'Trial 6'!DH11,'Trial 7'!DH11,'Trial 8'!DH11)","v":{"v":1977.0838694525241,"d":"$1,977"}},{"$f":"STDEV('Trial 1'!DI11,'Trial 2'!DI11,'Trial 3'!DI11,'Trial 4'!DI11,'Trial 5'!DI11,'Trial 6'!DI11,'Trial 7'!DI11,'Trial 8'!DI11)","v":{"v":1920.7271167485164,"d":"$1,921"}},{"$f":"STDEV('Trial 1'!DJ11,'Trial 2'!DJ11,'Trial 3'!DJ11,'Trial 4'!DJ11,'Trial 5'!DJ11,'Trial 6'!DJ11,'Trial 7'!DJ11,'Trial 8'!DJ11)","v":{"v":1743.0936996440807,"d":"$1,743"}},{"$f":"STDEV('Trial 1'!DK11,'Trial 2'!DK11,'Trial 3'!DK11,'Trial 4'!DK11,'Trial 5'!DK11,'Trial 6'!DK11,'Trial 7'!DK11,'Trial 8'!DK11)","v":{"v":1914.988841869885,"d":"$1,915"}},{"$f":"STDEV('Trial 1'!DL11,'Trial 2'!DL11,'Trial 3'!DL11,'Trial 4'!DL11,'Trial 5'!DL11,'Trial 6'!DL11,'Trial 7'!DL11,'Trial 8'!DL11)","v":{"v":1738.7321130564978,"d":"$1,739"}},{"$f":"STDEV('Trial 1'!DM11,'Trial 2'!DM11,'Trial 3'!DM11,'Trial 4'!DM11,'Trial 5'!DM11,'Trial 6'!DM11,'Trial 7'!DM11,'Trial 8'!DM11)","v":{"v":2012.2092387713035,"d":"$2,012"}},{"v":26086.4368756843,"d":"$26,086"},{"$f":"STDEV('Trial 1'!DO11,'Trial 2'!DO11,'Trial 3'!DO11,'Trial 4'!DO11,'Trial 5'!DO11,'Trial 6'!DO11,'Trial 7'!DO11,'Trial 8'!DO11)","v":{"v":2014.9603766330317,"d":"$2,015"}},{"$f":"STDEV('Trial 1'!DP11,'Trial 2'!DP11,'Trial 3'!DP11,'Trial 4'!DP11,'Trial 5'!DP11,'Trial 6'!DP11,'Trial 7'!DP11,'Trial 8'!DP11)","v":{"v":1627.6936459054675,"d":"$1,628"}},{"$f":"STDEV('Trial 1'!DQ11,'Trial 2'!DQ11,'Trial 3'!DQ11,'Trial 4'!DQ11,'Trial 5'!DQ11,'Trial 6'!DQ11,'Trial 7'!DQ11,'Trial 8'!DQ11)","v":{"v":1575.2509257508993,"d":"$1,575"}},{"$f":"STDEV('Trial 1'!DR11,'Trial 2'!DR11,'Trial 3'!DR11,'Trial 4'!DR11,'Trial 5'!DR11,'Trial 6'!DR11,'Trial 7'!DR11,'Trial 8'!DR11)","v":{"v":1793.2249483430626,"d":"$1,793"}},{"$f":"STDEV('Trial 1'!DS11,'Trial 2'!DS11,'Trial 3'!DS11,'Trial 4'!DS11,'Trial 5'!DS11,'Trial 6'!DS11,'Trial 7'!DS11,'Trial 8'!DS11)","v":{"v":2043.217626291714,"d":"$2,043"}},{"$f":"STDEV('Trial 1'!DT11,'Trial 2'!DT11,'Trial 3'!DT11,'Trial 4'!DT11,'Trial 5'!DT11,'Trial 6'!DT11,'Trial 7'!DT11,'Trial 8'!DT11)","v":{"v":2105.921361782548,"d":"$2,106"}},{"$f":"STDEV('Trial 1'!DU11,'Trial 2'!DU11,'Trial 3'!DU11,'Trial 4'!DU11,'Trial 5'!DU11,'Trial 6'!DU11,'Trial 7'!DU11,'Trial 8'!DU11)","v":{"v":2314.2207543305317,"d":"$2,314"}},{"$f":"STDEV('Trial 1'!DV11,'Trial 2'!DV11,'Trial 3'!DV11,'Trial 4'!DV11,'Trial 5'!DV11,'Trial 6'!DV11,'Trial 7'!DV11,'Trial 8'!DV11)","v":{"v":2339.1987755116315,"d":"$2,339"}},{"$f":"STDEV('Trial 1'!DW11,'Trial 2'!DW11,'Trial 3'!DW11,'Trial 4'!DW11,'Trial 5'!DW11,'Trial 6'!DW11,'Trial 7'!DW11,'Trial 8'!DW11)","v":{"v":2276.2611838387247,"d":"$2,276"}},{"$f":"STDEV('Trial 1'!DX11,'Trial 2'!DX11,'Trial 3'!DX11,'Trial 4'!DX11,'Trial 5'!DX11,'Trial 6'!DX11,'Trial 7'!DX11,'Trial 8'!DX11)","v":{"v":2380.0304065041596,"d":"$2,380"}},{"$f":"STDEV('Trial 1'!DY11,'Trial 2'!DY11,'Trial 3'!DY11,'Trial 4'!DY11,'Trial 5'!DY11,'Trial 6'!DY11,'Trial 7'!DY11,'Trial 8'!DY11)","v":{"v":2111.5470220932334,"d":"$2,112"}},{"$f":"STDEV('Trial 1'!DZ11,'Trial 2'!DZ11,'Trial 3'!DZ11,'Trial 4'!DZ11,'Trial 5'!DZ11,'Trial 6'!DZ11,'Trial 7'!DZ11,'Trial 8'!DZ11)","v":{"v":2171.937166400794,"d":"$2,172"}},{"v":24753.4641933858,"d":"$24,753"},{"$f":"STDEV('Trial 1'!EB11,'Trial 2'!EB11,'Trial 3'!EB11,'Trial 4'!EB11,'Trial 5'!EB11,'Trial 6'!EB11,'Trial 7'!EB11,'Trial 8'!EB11)","v":{"v":2386.4299472171647,"d":"$2,386"}},{"$f":"STDEV('Trial 1'!EC11,'Trial 2'!EC11,'Trial 3'!EC11,'Trial 4'!EC11,'Trial 5'!EC11,'Trial 6'!EC11,'Trial 7'!EC11,'Trial 8'!EC11)","v":{"v":2036.1407855859848,"d":"$2,036"}},{"$f":"STDEV('Trial 1'!ED11,'Trial 2'!ED11,'Trial 3'!ED11,'Trial 4'!ED11,'Trial 5'!ED11,'Trial 6'!ED11,'Trial 7'!ED11,'Trial 8'!ED11)","v":{"v":1833.534033134758,"d":"$1,834"}},{"$f":"STDEV('Trial 1'!EE11,'Trial 2'!EE11,'Trial 3'!EE11,'Trial 4'!EE11,'Trial 5'!EE11,'Trial 6'!EE11,'Trial 7'!EE11,'Trial 8'!EE11)","v":{"v":2001.3384536405915,"d":"$2,001"}},{"$f":"STDEV('Trial 1'!EF11,'Trial 2'!EF11,'Trial 3'!EF11,'Trial 4'!EF11,'Trial 5'!EF11,'Trial 6'!EF11,'Trial 7'!EF11,'Trial 8'!EF11)","v":{"v":2049.3785230588846,"d":"$2,049"}},{"$f":"STDEV('Trial 1'!EG11,'Trial 2'!EG11,'Trial 3'!EG11,'Trial 4'!EG11,'Trial 5'!EG11,'Trial 6'!EG11,'Trial 7'!EG11,'Trial 8'!EG11)","v":{"v":1985.5801301602294,"d":"$1,986"}},{"$f":"STDEV('Trial 1'!EH11,'Trial 2'!EH11,'Trial 3'!EH11,'Trial 4'!EH11,'Trial 5'!EH11,'Trial 6'!EH11,'Trial 7'!EH11,'Trial 8'!EH11)","v":{"v":2232.1326128808178,"d":"$2,232"}},{"$f":"STDEV('Trial 1'!EI11,'Trial 2'!EI11,'Trial 3'!EI11,'Trial 4'!EI11,'Trial 5'!EI11,'Trial 6'!EI11,'Trial 7'!EI11,'Trial 8'!EI11)","v":{"v":2515.339472342722,"d":"$2,515"}},{"$f":"STDEV('Trial 1'!EJ11,'Trial 2'!EJ11,'Trial 3'!EJ11,'Trial 4'!EJ11,'Trial 5'!EJ11,'Trial 6'!EJ11,'Trial 7'!EJ11,'Trial 8'!EJ11)","v":{"v":2427.5555362487935,"d":"$2,428"}},{"$f":"STDEV('Trial 1'!EK11,'Trial 2'!EK11,'Trial 3'!EK11,'Trial 4'!EK11,'Trial 5'!EK11,'Trial 6'!EK11,'Trial 7'!EK11,'Trial 8'!EK11)","v":{"v":2360.941444309083,"d":"$2,361"}},{"$f":"STDEV('Trial 1'!EL11,'Trial 2'!EL11,'Trial 3'!EL11,'Trial 4'!EL11,'Trial 5'!EL11,'Trial 6'!EL11,'Trial 7'!EL11,'Trial 8'!EL11)","v":{"v":2414.01363866201,"d":"$2,414"}},{"$f":"STDEV('Trial 1'!EM11,'Trial 2'!EM11,'Trial 3'!EM11,'Trial 4'!EM11,'Trial 5'!EM11,'Trial 6'!EM11,'Trial 7'!EM11,'Trial 8'!EM11)","v":{"v":2163.2399538507525,"d":"$2,163"}},{"v":26405.624531091795,"d":"$26,406"}]
[{"$f":"Labels!B32","v":"Long Expected Demand"},{"$f":"AVERAGE('Trial 1'!B10,'Trial 2'!B10,'Trial 3'!B10,'Trial 4'!B10,'Trial 5'!B10,'Trial 6'!B10,'Trial 7'!B10,'Trial 8'!B10)","v":{"v":1166666.6666666667,"d":"$1,166,667"}},{"$f":"AVERAGE('Trial 1'!C10,'Trial 2'!C10,'Trial 3'!C10,'Trial 4'!C10,'Trial 5'!C10,'Trial 6'!C10,'Trial 7'!C10,'Trial 8'!C10)","v":{"v":1166134.299798436,"d":"$1,166,134"}},{"$f":"AVERAGE('Trial 1'!D10,'Trial 2'!D10,'Trial 3'!D10,'Trial 4'!D10,'Trial 5'!D10,'Trial 6'!D10,'Trial 7'!D10,'Trial 8'!D10)","v":{"v":1165636.4555325084,"d":"$1,165,636"}},{"$f":"AVERAGE('Trial 1'!E10,'Trial 2'!E10,'Trial 3'!E10,'Trial 4'!E10,'Trial 5'!E10,'Trial 6'!E10,'Trial 7'!E10,'Trial 8'!E10)","v":{"v":1165183.3059418895,"d":"$1,165,183"}},{"$f":"AVERAGE('Trial 1'!F10,'Trial 2'!F10,'Trial 3'!F10,'Trial 4'!F10,'Trial 5'!F10,'Trial 6'!F10,'Trial 7'!F10,'Trial 8'!F10)","v":{"v":1164748.4145538933,"d":"$1,164,748"}},{"$f":"AVERAGE('Trial 1'!G10,'Trial 2'!G10,'Trial 3'!G10,'Trial 4'!G10,'Trial 5'!G10,'Trial 6'!G10,'Trial 7'!G10,'Trial 8'!G10)","v":{"v":1164337.1305204607,"d":"$1,164,337"}},{"$f":"AVERAGE('Trial 1'!H10,'Trial 2'!H10,'Trial 3'!H10,'Trial 4'!H10,'Trial 5'!H10,'Trial 6'!H10,'Trial 7'!H10,'Trial 8'!H10)","v":{"v":1163894.6800440822,"d":"$1,163,895"}},{"$f":"AVERAGE('Trial 1'!I10,'Trial 2'!I10,'Trial 3'!I10,'Trial 4'!I10,'Trial 5'!I10,'Trial 6'!I10,'Trial 7'!I10,'Trial 8'!I10)","v":{"v":1163410.039634123,"d":"$1,163,410"}},{"$f":"AVERAGE('Trial 1'!J10,'Trial 2'!J10,'Trial 3'!J10,'Trial 4'!J10,'Trial 5'!J10,'Trial 6'!J10,'Trial 7'!J10,'Trial 8'!J10)","v":{"v":1162945.4956195753,"d":"$1,162,945"}},{"$f":"AVERAGE('Trial 1'!K10,'Trial 2'!K10,'Trial 3'!K10,'Trial 4'!K10,'Trial 5'!K10,'Trial 6'!K10,'Trial 7'!K10,'Trial 8'!K10)","v":{"v":1162484.430354002,"d":"$1,162,484"}},{"$f":"AVERAGE('Trial 1'!L10,'Trial 2'!L10,'Trial 3'!L10,'Trial 4'!L10,'Trial 5'!L10,'Trial 6'!L10,'Trial 7'!L10,'Trial 8'!L10)","v":{"v":1162023.6687478363,"d":"$1,162,024"}},{"$f":"AVERAGE('Trial 1'!M10,'Trial 2'!M10,'Trial 3'!M10,'Trial 4'!M10,'Trial 5'!M10,'Trial 6'!M10,'Trial 7'!M10,'Trial 8'!M10)","v":{"v":1161558.1464803764,"d":"$1,161,558"}},{"v":13969022.733893849,"d":"$13,969,023"},{"$f":"AVERAGE('Trial 1'!O10,'Trial 2'!O10,'Trial 3'!O10,'Trial 4'!O10,'Trial 5'!O10,'Trial 6'!O10,'Trial 7'!O10,'Trial 8'!O10)","v":{"v":1161078.682612517,"d":"$1,161,079"}},{"$f":"AVERAGE('Trial 1'!P10,'Trial 2'!P10,'Trial 3'!P10,'Trial 4'!P10,'Trial 5'!P10,'Trial 6'!P10,'Trial 7'!P10,'Trial 8'!P10)","v":{"v":1160625.986214525,"d":"$1,160,626"}},{"$f":"AVERAGE('Trial 1'!Q10,'Trial 2'!Q10,'Trial 3'!Q10,'Trial 4'!Q10,'Trial 5'!Q10,'Trial 6'!Q10,'Trial 7'!Q10,'Trial 8'!Q10)","v":{"v":1160165.6610673305,"d":"$1,160,166"}},{"$f":"AVERAGE('Trial 1'!R10,'Trial 2'!R10,'Trial 3'!R10,'Trial 4'!R10,'Trial 5'!R10,'Trial 6'!R10,'Trial 7'!R10,'Trial 8'!R10)","v":{"v":1159715.761879887,"d":"$1,159,716"}},{"$f":"AVERAGE('Trial 1'!S10,'Trial 2'!S10,'Trial 3'!S10,'Trial 4'!S10,'Trial 5'!S10,'Trial 6'!S10,'Trial 7'!S10,'Trial 8'!S10)","v":{"v":1159276.5316908984,"d":"$1,159,277"}},{"$f":"AVERAGE('Trial 1'!T10,'Trial 2'!T10,'Trial 3'!T10,'Trial 4'!T10,'Trial 5'!T10,'Trial 6'!T10,'Trial 7'!T10,'Trial 8'!T10)","v":{"v":1158747.5213495495,"d":"$1,158,748"}},{"$f":"AVERAGE('Trial 1'!U10,'Trial 2'!U10,'Trial 3'!U10,'Trial 4'!U10,'Trial 5'!U10,'Trial 6'!U10,'Trial 7'!U10,'Trial 8'!U10)","v":{"v":1158295.059709195,"d":"$1,158,295"}},{"$f":"AVERAGE('Trial 1'!V10,'Trial 2'!V10,'Trial 3'!V10,'Trial 4'!V10,'Trial 5'!V10,'Trial 6'!V10,'Trial 7'!V10,'Trial 8'!V10)","v":{"v":1157788.9890106542,"d":"$1,157,789"}},{"$f":"AVERAGE('Trial 1'!W10,'Trial 2'!W10,'Trial 3'!W10,'Trial 4'!W10,'Trial 5'!W10,'Trial 6'!W10,'Trial 7'!W10,'Trial 8'!W10)","v":{"v":1157289.4359547808,"d":"$1,157,289"}},{"$f":"AVERAGE('Trial 1'!X10,'Trial 2'!X10,'Trial 3'!X10,'Trial 4'!X10,'Trial 5'!X10,'Trial 6'!X10,'Trial 7'!X10,'Trial 8'!X10)","v":{"v":1156853.129664057,"d":"$1,156,853"}},{"$f":"AVERAGE('Trial 1'!Y10,'Trial 2'!Y10,'Trial 3'!Y10,'Trial 4'!Y10,'Trial 5'!Y10,'Trial 6'!Y10,'Trial 7'!Y10,'Trial 8'!Y10)","v":{"v":1156366.3454110562,"d":"$1,156,366"}},{"$f":"AVERAGE('Trial 1'!Z10,'Trial 2'!Z10,'Trial 3'!Z10,'Trial 4'!Z10,'Trial 5'!Z10,'Trial 6'!Z10,'Trial 7'!Z10,'Trial 8'!Z10)","v":{"v":1155884.156556347,"d":"$1,155,884"}},{"v":13902087.261120796,"d":"$13,902,087"},{"$f":"AVERAGE('Trial 1'!AB10,'Trial 2'!AB10,'Trial 3'!AB10,'Trial 4'!AB10,'Trial 5'!AB10,'Trial 6'!AB10,'Trial 7'!AB10,'Trial 8'!AB10)","v":{"v":1155351.2511909318,"d":"$1,155,351"}},{"$f":"AVERAGE('Trial 1'!AC10,'Trial 2'!AC10,'Trial 3'!AC10,'Trial 4'!AC10,'Trial 5'!AC10,'Trial 6'!AC10,'Trial 7'!AC10,'Trial 8'!AC10)","v":{"v":1154877.1243015807,"d":"$1,154,877"}},{"$f":"AVERAGE('Trial 1'!AD10,'Trial 2'!AD10,'Trial 3'!AD10,'Trial 4'!AD10,'Trial 5'!AD10,'Trial 6'!AD10,'Trial 7'!AD10,'Trial 8'!AD10)","v":{"v":1154425.6946732905,"d":"$1,154,426"}},{"$f":"AVERAGE('Trial 1'!AE10,'Trial 2'!AE10,'Trial 3'!AE10,'Trial 4'!AE10,'Trial 5'!AE10,'Trial 6'!AE10,'Trial 7'!AE10,'Trial 8'!AE10)","v":{"v":1153957.7453076506,"d":"$1,153,958"}},{"$f":"AVERAGE('Trial 1'!AF10,'Trial 2'!AF10,'Trial 3'!AF10,'Trial 4'!AF10,'Trial 5'!AF10,'Trial 6'!AF10,'Trial 7'!AF10,'Trial 8'!AF10)","v":{"v":1153482.4580547782,"d":"$1,153,482"}},{"$f":"AVERAGE('Trial 1'!AG10,'Trial 2'!AG10,'Trial 3'!AG10,'Trial 4'!AG10,'Trial 5'!AG10,'Trial 6'!AG10,'Trial 7'!AG10,'Trial 8'!AG10)","v":{"v":1152969.6752769426,"d":"$1,152,970"}},{"$f":"AVERAGE('Trial 1'!AH10,'Trial 2'!AH10,'Trial 3'!AH10,'Trial 4'!AH10,'Trial 5'!AH10,'Trial 6'!AH10,'Trial 7'!AH10,'Trial 8'!AH10)","v":{"v":1152509.2954025222,"d":"$1,152,509"}},{"$f":"AVERAGE('Trial 1'!AI10,'Trial 2'!AI10,'Trial 3'!AI10,'Trial 4'!AI10,'Trial 5'!AI10,'Trial 6'!AI10,'Trial 7'!AI10,'Trial 8'!AI10)","v":{"v":1152070.4846371864,"d":"$1,152,070"}},{"$f":"AVERAGE('Trial 1'!AJ10,'Trial 2'!AJ10,'Trial 3'!AJ10,'Trial 4'!AJ10,'Trial 5'!AJ10,'Trial 6'!AJ10,'Trial 7'!AJ10,'Trial 8'!AJ10)","v":{"v":1151554.963923138,"d":"$1,151,555"}},{"$f":"AVERAGE('Trial 1'!AK10,'Trial 2'!AK10,'Trial 3'!AK10,'Trial 4'!AK10,'Trial 5'!AK10,'Trial 6'!AK10,'Trial 7'!AK10,'Trial 8'!AK10)","v":{"v":1151085.9121397575,"d":"$1,151,086"}},{"$f":"AVERAGE('Trial 1'!AL10,'Trial 2'!AL10,'Trial 3'!AL10,'Trial 4'!AL10,'Trial 5'!AL10,'Trial 6'!AL10,'Trial 7'!AL10,'Trial 8'!AL10)","v":{"v":1150627.3862394553,"d":"$1,150,627"}},{"$f":"AVERAGE('Trial 1'!AM10,'Trial 2'!AM10,'Trial 3'!AM10,'Trial 4'!AM10,'Trial 5'!AM10,'Trial 6'!AM10,'Trial 7'!AM10,'Trial 8'!AM10)","v":{"v":1150177.339391747,"d":"$1,150,177"}},{"v":13833089.33053898,"d":"$13,833,089"},{"$f":"AVERAGE('Trial 1'!AO10,'Trial 2'!AO10,'Trial 3'!AO10,'Trial 4'!AO10,'Trial 5'!AO10,'Trial 6'!AO10,'Trial 7'!AO10,'Trial 8'!AO10)","v":{"v":1149678.5946152154,"d":"$1,149,679"}},{"$f":"AVERAGE('Trial 1'!AP10,'Trial 2'!AP10,'Trial 3'!AP10,'Trial 4'!AP10,'Trial 5'!AP10,'Trial 6'!AP10,'Trial 7'!AP10,'Trial 8'!AP10)","v":{"v":1149206.1100848576,"d":"$1,149,206"}},{"$f":"AVERAGE('Trial 1'!AQ10,'Trial 2'!AQ10,'Trial 3'!AQ10,'Trial 4'!AQ10,'Trial 5'!AQ10,'Trial 6'!AQ10,'Trial 7'!AQ10,'Trial 8'!AQ10)","v":{"v":1148763.0816027145,"d":"$1,148,763"}},{"$f":"AVERAGE('Trial 1'!AR10,'Trial 2'!AR10,'Trial 3'!AR10,'Trial 4'!AR10,'Trial 5'!AR10,'Trial 6'!AR10,'Trial 7'!AR10,'Trial 8'!AR10)","v":{"v":1148266.1808158203,"d":"$1,148,266"}},{"$f":"AVERAGE('Trial 1'!AS10,'Trial 2'!AS10,'Trial 3'!AS10,'Trial 4'!AS10,'Trial 5'!AS10,'Trial 6'!AS10,'Trial 7'!AS10,'Trial 8'!AS10)","v":{"v":1147787.9596503433,"d":"$1,147,788"}},{"$f":"AVERAGE('Trial 1'!AT10,'Trial 2'!AT10,'Trial 3'!AT10,'Trial 4'!AT10,'Trial 5'!AT10,'Trial 6'!AT10,'Trial 7'!AT10,'Trial 8'!AT10)","v":{"v":1147340.555425811,"d":"$1,147,341"}},{"$f":"AVERAGE('Trial 1'!AU10,'Trial 2'!AU10,'Trial 3'!AU10,'Trial 4'!AU10,'Trial 5'!AU10,'Trial 6'!AU10,'Trial 7'!AU10,'Trial 8'!AU10)","v":{"v":1146862.859929923,"d":"$1,146,863"}},{"$f":"AVERAGE('Trial 1'!AV10,'Trial 2'!AV10,'Trial 3'!AV10,'Trial 4'!AV10,'Trial 5'!AV10,'Trial 6'!AV10,'Trial 7'!AV10,'Trial 8'!AV10)","v":{"v":1146376.50526501,"d":"$1,146,377"}},{"$f":"AVERAGE('Trial 1'!AW10,'Trial 2'!AW10,'Trial 3'!AW10,'Trial 4'!AW10,'Trial 5'!AW10,'Trial 6'!AW10,'Trial 7'!AW10,'Trial 8'!AW10)","v":{"v":1145904.6513706613,"d":"$1,145,905"}},{"$f":"AVERAGE('Trial 1'!AX10,'Trial 2'!AX10,'Trial 3'!AX10,'Trial 4'!AX10,'Trial 5'!AX10,'Trial 6'!AX10,'Trial 7'!AX10,'Trial 8'!AX10)","v":{"v":1145399.3653107306,"d":"$1,145,399"}},{"$f":"AVERAGE('Trial 1'!AY10,'Trial 2'!AY10,'Trial 3'!AY10,'Trial 4'!AY10,'Trial 5'!AY10,'Trial 6'!AY10,'Trial 7'!AY10,'Trial 8'!AY10)","v":{"v":1144913.883168009,"d":"$1,144,914"}},{"$f":"AVERAGE('Trial 1'!AZ10,'Trial 2'!AZ10,'Trial 3'!AZ10,'Trial 4'!AZ10,'Trial 5'!AZ10,'Trial 6'!AZ10,'Trial 7'!AZ10,'Trial 8'!AZ10)","v":{"v":1144442.7695411944,"d":"$1,144,443"}},{"v":13764942.516780293,"d":"$13,764,943"},{"$f":"AVERAGE('Trial 1'!BB10,'Trial 2'!BB10,'Trial 3'!BB10,'Trial 4'!BB10,'Trial 5'!BB10,'Trial 6'!BB10,'Trial 7'!BB10,'Trial 8'!BB10)","v":{"v":1143929.206048225,"d":"$1,143,929"}},{"$f":"AVERAGE('Trial 1'!BC10,'Trial 2'!BC10,'Trial 3'!BC10,'Trial 4'!BC10,'Trial 5'!BC10,'Trial 6'!BC10,'Trial 7'!BC10,'Trial 8'!BC10)","v":{"v":1143421.0160843728,"d":"$1,143,421"}},{"$f":"AVERAGE('Trial 1'!BD10,'Trial 2'!BD10,'Trial 3'!BD10,'Trial 4'!BD10,'Trial 5'!BD10,'Trial 6'!BD10,'Trial 7'!BD10,'Trial 8'!BD10)","v":{"v":1142935.7296277315,"d":"$1,142,936"}},{"$f":"AVERAGE('Trial 1'!BE10,'Trial 2'!BE10,'Trial 3'!BE10,'Trial 4'!BE10,'Trial 5'!BE10,'Trial 6'!BE10,'Trial 7'!BE10,'Trial 8'!BE10)","v":{"v":1142460.3504650965,"d":"$1,142,460"}},{"$f":"AVERAGE('Trial 1'!BF10,'Trial 2'!BF10,'Trial 3'!BF10,'Trial 4'!BF10,'Trial 5'!BF10,'Trial 6'!BF10,'Trial 7'!BF10,'Trial 8'!BF10)","v":{"v":1141975.7600357754,"d":"$1,141,976"}},{"$f":"AVERAGE('Trial 1'!BG10,'Trial 2'!BG10,'Trial 3'!BG10,'Trial 4'!BG10,'Trial 5'!BG10,'Trial 6'!BG10,'Trial 7'!BG10,'Trial 8'!BG10)","v":{"v":1141511.079052567,"d":"$1,141,511"}},{"$f":"AVERAGE('Trial 1'!BH10,'Trial 2'!BH10,'Trial 3'!BH10,'Trial 4'!BH10,'Trial 5'!BH10,'Trial 6'!BH10,'Trial 7'!BH10,'Trial 8'!BH10)","v":{"v":1141046.4153389584,"d":"$1,141,046"}},{"$f":"AVERAGE('Trial 1'!BI10,'Trial 2'!BI10,'Trial 3'!BI10,'Trial 4'!BI10,'Trial 5'!BI10,'Trial 6'!BI10,'Trial 7'!BI10,'Trial 8'!BI10)","v":{"v":1140535.568676482,"d":"$1,140,536"}},{"$f":"AVERAGE('Trial 1'!BJ10,'Trial 2'!BJ10,'Trial 3'!BJ10,'Trial 4'!BJ10,'Trial 5'!BJ10,'Trial 6'!BJ10,'Trial 7'!BJ10,'Trial 8'!BJ10)","v":{"v":1140043.8151498723,"d":"$1,140,044"}},{"$f":"AVERAGE('Trial 1'!BK10,'Trial 2'!BK10,'Trial 3'!BK10,'Trial 4'!BK10,'Trial 5'!BK10,'Trial 6'!BK10,'Trial 7'!BK10,'Trial 8'!BK10)","v":{"v":1139584.1610301982,"d":"$1,139,584"}},{"$f":"AVERAGE('Trial 1'!BL10,'Trial 2'!BL10,'Trial 3'!BL10,'Trial 4'!BL10,'Trial 5'!BL10,'Trial 6'!BL10,'Trial 7'!BL10,'Trial 8'!BL10)","v":{"v":1139098.7432433793,"d":"$1,139,099"}},{"$f":"AVERAGE('Trial 1'!BM10,'Trial 2'!BM10,'Trial 3'!BM10,'Trial 4'!BM10,'Trial 5'!BM10,'Trial 6'!BM10,'Trial 7'!BM10,'Trial 8'!BM10)","v":{"v":1138639.9556165102,"d":"$1,138,640"}},{"v":13695181.800369168,"d":"$13,695,182"},{"$f":"AVERAGE('Trial 1'!BO10,'Trial 2'!BO10,'Trial 3'!BO10,'Trial 4'!BO10,'Trial 5'!BO10,'Trial 6'!BO10,'Trial 7'!BO10,'Trial 8'!BO10)","v":{"v":1138158.9608153752,"d":"$1,138,159"}},{"$f":"AVERAGE('Trial 1'!BP10,'Trial 2'!BP10,'Trial 3'!BP10,'Trial 4'!BP10,'Trial 5'!BP10,'Trial 6'!BP10,'Trial 7'!BP10,'Trial 8'!BP10)","v":{"v":1137675.5396274568,"d":"$1,137,676"}},{"$f":"AVERAGE('Trial 1'!BQ10,'Trial 2'!BQ10,'Trial 3'!BQ10,'Trial 4'!BQ10,'Trial 5'!BQ10,'Trial 6'!BQ10,'Trial 7'!BQ10,'Trial 8'!BQ10)","v":{"v":1137206.9256264013,"d":"$1,137,207"}},{"$f":"AVERAGE('Trial 1'!BR10,'Trial 2'!BR10,'Trial 3'!BR10,'Trial 4'!BR10,'Trial 5'!BR10,'Trial 6'!BR10,'Trial 7'!BR10,'Trial 8'!BR10)","v":{"v":1136762.8487811806,"d":"$1,136,763"}},{"$f":"AVERAGE('Trial 1'!BS10,'Trial 2'!BS10,'Trial 3'!BS10,'Trial 4'!BS10,'Trial 5'!BS10,'Trial 6'!BS10,'Trial 7'!BS10,'Trial 8'!BS10)","v":{"v":1136310.9418184343,"d":"$1,136,311"}},{"$f":"AVERAGE('Trial 1'!BT10,'Trial 2'!BT10,'Trial 3'!BT10,'Trial 4'!BT10,'Trial 5'!BT10,'Trial 6'!BT10,'Trial 7'!BT10,'Trial 8'!BT10)","v":{"v":1135819.9867621486,"d":"$1,135,820"}},{"$f":"AVERAGE('Trial 1'!BU10,'Trial 2'!BU10,'Trial 3'!BU10,'Trial 4'!BU10,'Trial 5'!BU10,'Trial 6'!BU10,'Trial 7'!BU10,'Trial 8'!BU10)","v":{"v":1135388.2825575627,"d":"$1,135,388"}},{"$f":"AVERAGE('Trial 1'!BV10,'Trial 2'!BV10,'Trial 3'!BV10,'Trial 4'!BV10,'Trial 5'!BV10,'Trial 6'!BV10,'Trial 7'!BV10,'Trial 8'!BV10)","v":{"v":1134893.986947665,"d":"$1,134,894"}},{"$f":"AVERAGE('Trial 1'!BW10,'Trial 2'!BW10,'Trial 3'!BW10,'Trial 4'!BW10,'Trial 5'!BW10,'Trial 6'!BW10,'Trial 7'!BW10,'Trial 8'!BW10)","v":{"v":1134414.8208417657,"d":"$1,134,415"}},{"$f":"AVERAGE('Trial 1'!BX10,'Trial 2'!BX10,'Trial 3'!BX10,'Trial 4'!BX10,'Trial 5'!BX10,'Trial 6'!BX10,'Trial 7'!BX10,'Trial 8'!BX10)","v":{"v":1133974.448016797,"d":"$1,133,974"}},{"$f":"AVERAGE('Trial 1'!BY10,'Trial 2'!BY10,'Trial 3'!BY10,'Trial 4'!BY10,'Trial 5'!BY10,'Trial 6'!BY10,'Trial 7'!BY10,'Trial 8'!BY10)","v":{"v":1133478.1962294013,"d":"$1,133,478"}},{"$f":"AVERAGE('Trial 1'!BZ10,'Trial 2'!BZ10,'Trial 3'!BZ10,'Trial 4'!BZ10,'Trial 5'!BZ10,'Trial 6'!BZ10,'Trial 7'!BZ10,'Trial 8'!BZ10)","v":{"v":1133032.0065645312,"d":"$1,133,032"}},{"v":13627116.944588719,"d":"$13,627,117"},{"$f":"AVERAGE('Trial 1'!CB10,'Trial 2'!CB10,'Trial 3'!CB10,'Trial 4'!CB10,'Trial 5'!CB10,'Trial 6'!CB10,'Trial 7'!CB10,'Trial 8'!CB10)","v":{"v":1132560.9982018468,"d":"$1,132,561"}},{"$f":"AVERAGE('Trial 1'!CC10,'Trial 2'!CC10,'Trial 3'!CC10,'Trial 4'!CC10,'Trial 5'!CC10,'Trial 6'!CC10,'Trial 7'!CC10,'Trial 8'!CC10)","v":{"v":1132082.6195626992,"d":"$1,132,083"}},{"$f":"AVERAGE('Trial 1'!CD10,'Trial 2'!CD10,'Trial 3'!CD10,'Trial 4'!CD10,'Trial 5'!CD10,'Trial 6'!CD10,'Trial 7'!CD10,'Trial 8'!CD10)","v":{"v":1131599.218052073,"d":"$1,131,599"}},{"$f":"AVERAGE('Trial 1'!CE10,'Trial 2'!CE10,'Trial 3'!CE10,'Trial 4'!CE10,'Trial 5'!CE10,'Trial 6'!CE10,'Trial 7'!CE10,'Trial 8'!CE10)","v":{"v":1131142.8333645063,"d":"$1,131,143"}},{"$f":"AVERAGE('Trial 1'!CF10,'Trial 2'!CF10,'Trial 3'!CF10,'Trial 4'!CF10,'Trial 5'!CF10,'Trial 6'!CF10,'Trial 7'!CF10,'Trial 8'!CF10)","v":{"v":1130645.5376956263,"d":"$1,130,646"}},{"$f":"AVERAGE('Trial 1'!CG10,'Trial 2'!CG10,'Trial 3'!CG10,'Trial 4'!CG10,'Trial 5'!CG10,'Trial 6'!CG10,'Trial 7'!CG10,'Trial 8'!CG10)","v":{"v":1130169.438607735,"d":"$1,130,169"}},{"$f":"AVERAGE('Trial 1'!CH10,'Trial 2'!CH10,'Trial 3'!CH10,'Trial 4'!CH10,'Trial 5'!CH10,'Trial 6'!CH10,'Trial 7'!CH10,'Trial 8'!CH10)","v":{"v":1129761.2340801065,"d":"$1,129,761"}},{"$f":"AVERAGE('Trial 1'!CI10,'Trial 2'!CI10,'Trial 3'!CI10,'Trial 4'!CI10,'Trial 5'!CI10,'Trial 6'!CI10,'Trial 7'!CI10,'Trial 8'!CI10)","v":{"v":1129298.0131834731,"d":"$1,129,298"}},{"$f":"AVERAGE('Trial 1'!CJ10,'Trial 2'!CJ10,'Trial 3'!CJ10,'Trial 4'!CJ10,'Trial 5'!CJ10,'Trial 6'!CJ10,'Trial 7'!CJ10,'Trial 8'!CJ10)","v":{"v":1128848.2505265397,"d":"$1,128,848"}},{"$f":"AVERAGE('Trial 1'!CK10,'Trial 2'!CK10,'Trial 3'!CK10,'Trial 4'!CK10,'Trial 5'!CK10,'Trial 6'!CK10,'Trial 7'!CK10,'Trial 8'!CK10)","v":{"v":1128388.9622053527,"d":"$1,128,389"}},{"$f":"AVERAGE('Trial 1'!CL10,'Trial 2'!CL10,'Trial 3'!CL10,'Trial 4'!CL10,'Trial 5'!CL10,'Trial 6'!CL10,'Trial 7'!CL10,'Trial 8'!CL10)","v":{"v":1127961.3395325867,"d":"$1,127,961"}},{"$f":"AVERAGE('Trial 1'!CM10,'Trial 2'!CM10,'Trial 3'!CM10,'Trial 4'!CM10,'Trial 5'!CM10,'Trial 6'!CM10,'Trial 7'!CM10,'Trial 8'!CM10)","v":{"v":1127485.2338876673,"d":"$1,127,485"}},{"v":13559943.67890021,"d":"$13,559,944"},{"$f":"AVERAGE('Trial 1'!CO10,'Trial 2'!CO10,'Trial 3'!CO10,'Trial 4'!CO10,'Trial 5'!CO10,'Trial 6'!CO10,'Trial 7'!CO10,'Trial 8'!CO10)","v":{"v":1127052.385663481,"d":"$1,127,052"}},{"$f":"AVERAGE('Trial 1'!CP10,'Trial 2'!CP10,'Trial 3'!CP10,'Trial 4'!CP10,'Trial 5'!CP10,'Trial 6'!CP10,'Trial 7'!CP10,'Trial 8'!CP10)","v":{"v":1126599.8169740671,"d":"$1,126,600"}},{"$f":"AVERAGE('Trial 1'!CQ10,'Trial 2'!CQ10,'Trial 3'!CQ10,'Trial 4'!CQ10,'Trial 5'!CQ10,'Trial 6'!CQ10,'Trial 7'!CQ10,'Trial 8'!CQ10)","v":{"v":1126149.075856652,"d":"$1,126,149"}},{"$f":"AVERAGE('Trial 1'!CR10,'Trial 2'!CR10,'Trial 3'!CR10,'Trial 4'!CR10,'Trial 5'!CR10,'Trial 6'!CR10,'Trial 7'!CR10,'Trial 8'!CR10)","v":{"v":1125694.9155914248,"d":"$1,125,695"}},{"$f":"AVERAGE('Trial 1'!CS10,'Trial 2'!CS10,'Trial 3'!CS10,'Trial 4'!CS10,'Trial 5'!CS10,'Trial 6'!CS10,'Trial 7'!CS10,'Trial 8'!CS10)","v":{"v":1125227.5132804029,"d":"$1,125,228"}},{"$f":"AVERAGE('Trial 1'!CT10,'Trial 2'!CT10,'Trial 3'!CT10,'Trial 4'!CT10,'Trial 5'!CT10,'Trial 6'!CT10,'Trial 7'!CT10,'Trial 8'!CT10)","v":{"v":1124708.7723430353,"d":"$1,124,709"}},{"$f":"AVERAGE('Trial 1'!CU10,'Trial 2'!CU10,'Trial 3'!CU10,'Trial 4'!CU10,'Trial 5'!CU10,'Trial 6'!CU10,'Trial 7'!CU10,'Trial 8'!CU10)","v":{"v":1124214.1651056383,"d":"$1,124,214"}},{"$f":"AVERAGE('Trial 1'!CV10,'Trial 2'!CV10,'Trial 3'!CV10,'Trial 4'!CV10,'Trial 5'!CV10,'Trial 6'!CV10,'Trial 7'!CV10,'Trial 8'!CV10)","v":{"v":1123798.9490819403,"d":"$1,123,799"}},{"$f":"AVERAGE('Trial 1'!CW10,'Trial 2'!CW10,'Trial 3'!CW10,'Trial 4'!CW10,'Trial 5'!CW10,'Trial 6'!CW10,'Trial 7'!CW10,'Trial 8'!CW10)","v":{"v":1123320.4056564881,"d":"$1,123,320"}},{"$f":"AVERAGE('Trial 1'!CX10,'Trial 2'!CX10,'Trial 3'!CX10,'Trial 4'!CX10,'Trial 5'!CX10,'Trial 6'!CX10,'Trial 7'!CX10,'Trial 8'!CX10)","v":{"v":1122846.563312546,"d":"$1,122,847"}},{"$f":"AVERAGE('Trial 1'!CY10,'Trial 2'!CY10,'Trial 3'!CY10,'Trial 4'!CY10,'Trial 5'!CY10,'Trial 6'!CY10,'Trial 7'!CY10,'Trial 8'!CY10)","v":{"v":1122362.9763656722,"d":"$1,122,363"}},{"$f":"AVERAGE('Trial 1'!CZ10,'Trial 2'!CZ10,'Trial 3'!CZ10,'Trial 4'!CZ10,'Trial 5'!CZ10,'Trial 6'!CZ10,'Trial 7'!CZ10,'Trial 8'!CZ10)","v":{"v":1121910.4218847917,"d":"$1,121,910"}},{"v":13493885.961116139,"d":"$13,493,886"},{"$f":"AVERAGE('Trial 1'!DB10,'Trial 2'!DB10,'Trial 3'!DB10,'Trial 4'!DB10,'Trial 5'!DB10,'Trial 6'!DB10,'Trial 7'!DB10,'Trial 8'!DB10)","v":{"v":1121430.931780525,"d":"$1,121,431"}},{"$f":"AVERAGE('Trial 1'!DC10,'Trial 2'!DC10,'Trial 3'!DC10,'Trial 4'!DC10,'Trial 5'!DC10,'Trial 6'!DC10,'Trial 7'!DC10,'Trial 8'!DC10)","v":{"v":1120983.757031152,"d":"$1,120,984"}},{"$f":"AVERAGE('Trial 1'!DD10,'Trial 2'!DD10,'Trial 3'!DD10,'Trial 4'!DD10,'Trial 5'!DD10,'Trial 6'!DD10,'Trial 7'!DD10,'Trial 8'!DD10)","v":{"v":1120486.6662355703,"d":"$1,120,487"}},{"$f":"AVERAGE('Trial 1'!DE10,'Trial 2'!DE10,'Trial 3'!DE10,'Trial 4'!DE10,'Trial 5'!DE10,'Trial 6'!DE10,'Trial 7'!DE10,'Trial 8'!DE10)","v":{"v":1120006.1285760556,"d":"$1,120,006"}},{"$f":"AVERAGE('Trial 1'!DF10,'Trial 2'!DF10,'Trial 3'!DF10,'Trial 4'!DF10,'Trial 5'!DF10,'Trial 6'!DF10,'Trial 7'!DF10,'Trial 8'!DF10)","v":{"v":1119553.2780478012,"d":"$1,119,553"}},{"$f":"AVERAGE('Trial 1'!DG10,'Trial 2'!DG10,'Trial 3'!DG10,'Trial 4'!DG10,'Trial 5'!DG10,'Trial 6'!DG10,'Trial 7'!DG10,'Trial 8'!DG10)","v":{"v":1119083.582748378,"d":"$1,119,084"}},{"$f":"AVERAGE('Trial 1'!DH10,'Trial 2'!DH10,'Trial 3'!DH10,'Trial 4'!DH10,'Trial 5'!DH10,'Trial 6'!DH10,'Trial 7'!DH10,'Trial 8'!DH10)","v":{"v":1118606.5275678227,"d":"$1,118,607"}},{"$f":"AVERAGE('Trial 1'!DI10,'Trial 2'!DI10,'Trial 3'!DI10,'Trial 4'!DI10,'Trial 5'!DI10,'Trial 6'!DI10,'Trial 7'!DI10,'Trial 8'!DI10)","v":{"v":1118124.5304279032,"d":"$1,118,125"}},{"$f":"AVERAGE('Trial 1'!DJ10,'Trial 2'!DJ10,'Trial 3'!DJ10,'Trial 4'!DJ10,'Trial 5'!DJ10,'Trial 6'!DJ10,'Trial 7'!DJ10,'Trial 8'!DJ10)","v":{"v":1117635.1125806011,"d":"$1,117,635"}},{"$f":"AVERAGE('Trial 1'!DK10,'Trial 2'!DK10,'Trial 3'!DK10,'Trial 4'!DK10,'Trial 5'!DK10,'Trial 6'!DK10,'Trial 7'!DK10,'Trial 8'!DK10)","v":{"v":1117165.9231246505,"d":"$1,117,166"}},{"$f":"AVERAGE('Trial 1'!DL10,'Trial 2'!DL10,'Trial 3'!DL10,'Trial 4'!DL10,'Trial 5'!DL10,'Trial 6'!DL10,'Trial 7'!DL10,'Trial 8'!DL10)","v":{"v":1116691.4276115699,"d":"$1,116,691"}},{"$f":"AVERAGE('Trial 1'!DM10,'Trial 2'!DM10,'Trial 3'!DM10,'Trial 4'!DM10,'Trial 5'!DM10,'Trial 6'!DM10,'Trial 7'!DM10,'Trial 8'!DM10)","v":{"v":1116200.128967642,"d":"$1,116,200"}},{"v":13425967.994699672,"d":"$13,425,968"},{"$f":"AVERAGE('Trial 1'!DO10,'Trial 2'!DO10,'Trial 3'!DO10,'Trial 4'!DO10,'Trial 5'!DO10,'Trial 6'!DO10,'Trial 7'!DO10,'Trial 8'!DO10)","v":{"v":1115716.052490074,"d":"$1,115,716"}},{"$f":"AVERAGE('Trial 1'!DP10,'Trial 2'!DP10,'Trial 3'!DP10,'Trial 4'!DP10,'Trial 5'!DP10,'Trial 6'!DP10,'Trial 7'!DP10,'Trial 8'!DP10)","v":{"v":1115270.0077143377,"d":"$1,115,270"}},{"$f":"AVERAGE('Trial 1'!DQ10,'Trial 2'!DQ10,'Trial 3'!DQ10,'Trial 4'!DQ10,'Trial 5'!DQ10,'Trial 6'!DQ10,'Trial 7'!DQ10,'Trial 8'!DQ10)","v":{"v":1114787.186525086,"d":"$1,114,787"}},{"$f":"AVERAGE('Trial 1'!DR10,'Trial 2'!DR10,'Trial 3'!DR10,'Trial 4'!DR10,'Trial 5'!DR10,'Trial 6'!DR10,'Trial 7'!DR10,'Trial 8'!DR10)","v":{"v":1114352.8401964568,"d":"$1,114,353"}},{"$f":"AVERAGE('Trial 1'!DS10,'Trial 2'!DS10,'Trial 3'!DS10,'Trial 4'!DS10,'Trial 5'!DS10,'Trial 6'!DS10,'Trial 7'!DS10,'Trial 8'!DS10)","v":{"v":1113889.9186057271,"d":"$1,113,890"}},{"$f":"AVERAGE('Trial 1'!DT10,'Trial 2'!DT10,'Trial 3'!DT10,'Trial 4'!DT10,'Trial 5'!DT10,'Trial 6'!DT10,'Trial 7'!DT10,'Trial 8'!DT10)","v":{"v":1113423.2561531996,"d":"$1,113,423"}},{"$f":"AVERAGE('Trial 1'!DU10,'Trial 2'!DU10,'Trial 3'!DU10,'Trial 4'!DU10,'Trial 5'!DU10,'Trial 6'!DU10,'Trial 7'!DU10,'Trial 8'!DU10)","v":{"v":1112986.8024891978,"d":"$1,112,987"}},{"$f":"AVERAGE('Trial 1'!DV10,'Trial 2'!DV10,'Trial 3'!DV10,'Trial 4'!DV10,'Trial 5'!DV10,'Trial 6'!DV10,'Trial 7'!DV10,'Trial 8'!DV10)","v":{"v":1112530.6553871369,"d":"$1,112,531"}},{"$f":"AVERAGE('Trial 1'!DW10,'Trial 2'!DW10,'Trial 3'!DW10,'Trial 4'!DW10,'Trial 5'!DW10,'Trial 6'!DW10,'Trial 7'!DW10,'Trial 8'!DW10)","v":{"v":1112083.4320830791,"d":"$1,112,083"}},{"$f":"AVERAGE('Trial 1'!DX10,'Trial 2'!DX10,'Trial 3'!DX10,'Trial 4'!DX10,'Trial 5'!DX10,'Trial 6'!DX10,'Trial 7'!DX10,'Trial 8'!DX10)","v":{"v":1111623.3652131693,"d":"$1,111,623"}},{"$f":"AVERAGE('Trial 1'!DY10,'Trial 2'!DY10,'Trial 3'!DY10,'Trial 4'!DY10,'Trial 5'!DY10,'Trial 6'!DY10,'Trial 7'!DY10,'Trial 8'!DY10)","v":{"v":1111158.5736636175,"d":"$1,111,159"}},{"$f":"AVERAGE('Trial 1'!DZ10,'Trial 2'!DZ10,'Trial 3'!DZ10,'Trial 4'!DZ10,'Trial 5'!DZ10,'Trial 6'!DZ10,'Trial 7'!DZ10,'Trial 8'!DZ10)","v":{"v":1110696.5995071118,"d":"$1,110,697"}},{"v":13358518.690028194,"d":"$13,358,519"},{"$f":"AVERAGE('Trial 1'!EB10,'Trial 2'!EB10,'Trial 3'!EB10,'Trial 4'!EB10,'Trial 5'!EB10,'Trial 6'!EB10,'Trial 7'!EB10,'Trial 8'!EB10)","v":{"v":1110195.2738735112,"d":"$1,110,195"}},{"$f":"AVERAGE('Trial 1'!EC10,'Trial 2'!EC10,'Trial 3'!EC10,'Trial 4'!EC10,'Trial 5'!EC10,'Trial 6'!EC10,'Trial 7'!EC10,'Trial 8'!EC10)","v":{"v":1109744.017099743,"d":"$1,109,744"}},{"$f":"AVERAGE('Trial 1'!ED10,'Trial 2'!ED10,'Trial 3'!ED10,'Trial 4'!ED10,'Trial 5'!ED10,'Trial 6'!ED10,'Trial 7'!ED10,'Trial 8'!ED10)","v":{"v":1109246.9187586345,"d":"$1,109,247"}},{"$f":"AVERAGE('Trial 1'!EE10,'Trial 2'!EE10,'Trial 3'!EE10,'Trial 4'!EE10,'Trial 5'!EE10,'Trial 6'!EE10,'Trial 7'!EE10,'Trial 8'!EE10)","v":{"v":1108763.939054475,"d":"$1,108,764"}},{"$f":"AVERAGE('Trial 1'!EF10,'Trial 2'!EF10,'Trial 3'!EF10,'Trial 4'!EF10,'Trial 5'!EF10,'Trial 6'!EF10,'Trial 7'!EF10,'Trial 8'!EF10)","v":{"v":1108302.3421190153,"d":"$1,108,302"}},{"$f":"AVERAGE('Trial 1'!EG10,'Trial 2'!EG10,'Trial 3'!EG10,'Trial 4'!EG10,'Trial 5'!EG10,'Trial 6'!EG10,'Trial 7'!EG10,'Trial 8'!EG10)","v":{"v":1107844.9911045283,"d":"$1,107,845"}},{"$f":"AVERAGE('Trial 1'!EH10,'Trial 2'!EH10,'Trial 3'!EH10,'Trial 4'!EH10,'Trial 5'!EH10,'Trial 6'!EH10,'Trial 7'!EH10,'Trial 8'!EH10)","v":{"v":1107356.0093411754,"d":"$1,107,356"}},{"$f":"AVERAGE('Trial 1'!EI10,'Trial 2'!EI10,'Trial 3'!EI10,'Trial 4'!EI10,'Trial 5'!EI10,'Trial 6'!EI10,'Trial 7'!EI10,'Trial 8'!EI10)","v":{"v":1106876.874838989,"d":"$1,106,877"}},{"$f":"AVERAGE('Trial 1'!EJ10,'Trial 2'!EJ10,'Trial 3'!EJ10,'Trial 4'!EJ10,'Trial 5'!EJ10,'Trial 6'!EJ10,'Trial 7'!EJ10,'Trial 8'!EJ10)","v":{"v":1106354.9171761756,"d":"$1,106,355"}},{"$f":"AVERAGE('Trial 1'!EK10,'Trial 2'!EK10,'Trial 3'!EK10,'Trial 4'!EK10,'Trial 5'!EK10,'Trial 6'!EK10,'Trial 7'!EK10,'Trial 8'!EK10)","v":{"v":1105876.6985823626,"d":"$1,105,877"}},{"$f":"AVERAGE('Trial 1'!EL10,'Trial 2'!EL10,'Trial 3'!EL10,'Trial 4'!EL10,'Trial 5'!EL10,'Trial 6'!EL10,'Trial 7'!EL10,'Trial 8'!EL10)","v":{"v":1105424.1553788302,"d":"$1,105,424"}},{"$f":"AVERAGE('Trial 1'!EM10,'Trial 2'!EM10,'Trial 3'!EM10,'Trial 4'!EM10,'Trial 5'!EM10,'Trial 6'!EM10,'Trial 7'!EM10,'Trial 8'!EM10)","v":{"v":1104940.5078620347,"d":"$1,104,941"}},{"v":13290926.645189475,"d":"$13,290,927"}]
[{"$f":"Labels!B33","v":"Long Expected Demand std dev"},{"$f":"STDEV('Trial 1'!B10,'Trial 2'!B10,'Trial 3'!B10,'Trial 4'!B10,'Trial 5'!B10,'Trial 6'!B10,'Trial 7'!B10,'Trial 8'!B10)","v":{"v":0,"d":"$0.0"}},{"$f":"STDEV('Trial 1'!C10,'Trial 2'!C10,'Trial 3'!C10,'Trial 4'!C10,'Trial 5'!C10,'Trial 6'!C10,'Trial 7'!C10,'Trial 8'!C10)","v":{"v":47.289417182975626,"d":"$47.3"}},{"$f":"STDEV('Trial 1'!D10,'Trial 2'!D10,'Trial 3'!D10,'Trial 4'!D10,'Trial 5'!D10,'Trial 6'!D10,'Trial 7'!D10,'Trial 8'!D10)","v":{"v":66.74019928681241,"d":"$66.7"}},{"$f":"STDEV('Trial 1'!E10,'Trial 2'!E10,'Trial 3'!E10,'Trial 4'!E10,'Trial 5'!E10,'Trial 6'!E10,'Trial 7'!E10,'Trial 8'!E10)","v":{"v":87.95059233552026,"d":"$88.0"}},{"$f":"STDEV('Trial 1'!F10,'Trial 2'!F10,'Trial 3'!F10,'Trial 4'!F10,'Trial 5'!F10,'Trial 6'!F10,'Trial 7'!F10,'Trial 8'!F10)","v":{"v":97.50151541882079,"d":"$97.5"}},{"$f":"STDEV('Trial 1'!G10,'Trial 2'!G10,'Trial 3'!G10,'Trial 4'!G10,'Trial 5'!G10,'Trial 6'!G10,'Trial 7'!G10,'Trial 8'!G10)","v":{"v":129.30098587241028,"d":"$129.3"}},{"$f":"STDEV('Trial 1'!H10,'Trial 2'!H10,'Trial 3'!H10,'Trial 4'!H10,'Trial 5'!H10,'Trial 6'!H10,'Trial 7'!H10,'Trial 8'!H10)","v":{"v":158.08175598421715,"d":"$158.1"}},{"$f":"STDEV('Trial 1'!I10,'Trial 2'!I10,'Trial 3'!I10,'Trial 4'!I10,'Trial 5'!I10,'Trial 6'!I10,'Trial 7'!I10,'Trial 8'!I10)","v":{"v":163.55655263708059,"d":"$163.6"}},{"$f":"STDEV('Trial 1'!J10,'Trial 2'!J10,'Trial 3'!J10,'Trial 4'!J10,'Trial 5'!J10,'Trial 6'!J10,'Trial 7'!J10,'Trial 8'!J10)","v":{"v":180.9467267545437,"d":"$180.9"}},{"$f":"STDEV('Trial 1'!K10,'Trial 2'!K10,'Trial 3'!K10,'Trial 4'!K10,'Trial 5'!K10,'Trial 6'!K10,'Trial 7'!K10,'Trial 8'!K10)","v":{"v":153.30925627494793,"d":"$153.3"}},{"$f":"STDEV('Trial 1'!L10,'Trial 2'!L10,'Trial 3'!L10,'Trial 4'!L10,'Trial 5'!L10,'Trial 6'!L10,'Trial 7'!L10,'Trial 8'!L10)","v":{"v":184.99705499473788,"d":"$185.0"}},{"$f":"STDEV('Trial 1'!M10,'Trial 2'!M10,'Trial 3'!M10,'Trial 4'!M10,'Trial 5'!M10,'Trial 6'!M10,'Trial 7'!M10,'Trial 8'!M10)","v":{"v":228.79120159133757,"d":"$228.8"}},{"v":1498.465258333404,"d":"$1,498.5"},{"$f":"STDEV('Trial 1'!O10,'Trial 2'!O10,'Trial 3'!O10,'Trial 4'!O10,'Trial 5'!O10,'Trial 6'!O10,'Trial 7'!O10,'Trial 8'!O10)","v":{"v":250.00543536577652,"d":"$250.0"}},{"$f":"STDEV('Trial 1'!P10,'Trial 2'!P10,'Trial 3'!P10,'Trial 4'!P10,'Trial 5'!P10,'Trial 6'!P10,'Trial 7'!P10,'Trial 8'!P10)","v":{"v":258.69968011205907,"d":"$258.7"}},{"$f":"STDEV('Trial 1'!Q10,'Trial 2'!Q10,'Trial 3'!Q10,'Trial 4'!Q10,'Trial 5'!Q10,'Trial 6'!Q10,'Trial 7'!Q10,'Trial 8'!Q10)","v":{"v":259.55748263867474,"d":"$259.6"}},{"$f":"STDEV('Trial 1'!R10,'Trial 2'!R10,'Trial 3'!R10,'Trial 4'!R10,'Trial 5'!R10,'Trial 6'!R10,'Trial 7'!R10,'Trial 8'!R10)","v":{"v":251.6362388916896,"d":"$251.6"}},{"$f":"STDEV('Trial 1'!S10,'Trial 2'!S10,'Trial 3'!S10,'Trial 4'!S10,'Trial 5'!S10,'Trial 6'!S10,'Trial 7'!S10,'Trial 8'!S10)","v":{"v":271.7445894445003,"d":"$271.7"}},{"$f":"STDEV('Trial 1'!T10,'Trial 2'!T10,'Trial 3'!T10,'Trial 4'!T10,'Trial 5'!T10,'Trial 6'!T10,'Trial 7'!T10,'Trial 8'!T10)","v":{"v":285.94808569934935,"d":"$285.9"}},{"$f":"STDEV('Trial 1'!U10,'Trial 2'!U10,'Trial 3'!U10,'Trial 4'!U10,'Trial 5'!U10,'Trial 6'!U10,'Trial 7'!U10,'Trial 8'!U10)","v":{"v":265.9195537750691,"d":"$265.9"}},{"$f":"STDEV('Trial 1'!V10,'Trial 2'!V10,'Trial 3'!V10,'Trial 4'!V10,'Trial 5'!V10,'Trial 6'!V10,'Trial 7'!V10,'Trial 8'!V10)","v":{"v":260.0785466593811,"d":"$260.1"}},{"$f":"STDEV('Trial 1'!W10,'Trial 2'!W10,'Trial 3'!W10,'Trial 4'!W10,'Trial 5'!W10,'Trial 6'!W10,'Trial 7'!W10,'Trial 8'!W10)","v":{"v":281.14388090681564,"d":"$281.1"}},{"$f":"STDEV('Trial 1'!X10,'Trial 2'!X10,'Trial 3'!X10,'Trial 4'!X10,'Trial 5'!X10,'Trial 6'!X10,'Trial 7'!X10,'Trial 8'!X10)","v":{"v":292.5483142098799,"d":"$292.5"}},{"$f":"STDEV('Trial 1'!Y10,'Trial 2'!Y10,'Trial 3'!Y10,'Trial 4'!Y10,'Trial 5'!Y10,'Trial 6'!Y10,'Trial 7'!Y10,'Trial 8'!Y10)","v":{"v":330.87866901056384,"d":"$330.9"}},{"$f":"STDEV('Trial 1'!Z10,'Trial 2'!Z10,'Trial 3'!Z10,'Trial 4'!Z10,'Trial 5'!Z10,'Trial 6'!Z10,'Trial 7'!Z10,'Trial 8'!Z10)","v":{"v":354.55107886688364,"d":"$354.6"}},{"v":3362.7115555806427,"d":"$3,362.7"},{"$f":"STDEV('Trial 1'!AB10,'Trial 2'!AB10,'Trial 3'!AB10,'Trial 4'!AB10,'Trial 5'!AB10,'Trial 6'!AB10,'Trial 7'!AB10,'Trial 8'!AB10)","v":{"v":327.74012989845323,"d":"$327.7"}},{"$f":"STDEV('Trial 1'!AC10,'Trial 2'!AC10,'Trial 3'!AC10,'Trial 4'!AC10,'Trial 5'!AC10,'Trial 6'!AC10,'Trial 7'!AC10,'Trial 8'!AC10)","v":{"v":295.62192511963804,"d":"$295.6"}},{"$f":"STDEV('Trial 1'!AD10,'Trial 2'!AD10,'Trial 3'!AD10,'Trial 4'!AD10,'Trial 5'!AD10,'Trial 6'!AD10,'Trial 7'!AD10,'Trial 8'!AD10)","v":{"v":306.83057683653857,"d":"$306.8"}},{"$f":"STDEV('Trial 1'!AE10,'Trial 2'!AE10,'Trial 3'!AE10,'Trial 4'!AE10,'Trial 5'!AE10,'Trial 6'!AE10,'Trial 7'!AE10,'Trial 8'!AE10)","v":{"v":332.0003400392201,"d":"$332.0"}},{"$f":"STDEV('Trial 1'!AF10,'Trial 2'!AF10,'Trial 3'!AF10,'Trial 4'!AF10,'Trial 5'!AF10,'Trial 6'!AF10,'Trial 7'!AF10,'Trial 8'!AF10)","v":{"v":360.45977532763277,"d":"$360.5"}},{"$f":"STDEV('Trial 1'!AG10,'Trial 2'!AG10,'Trial 3'!AG10,'Trial 4'!AG10,'Trial 5'!AG10,'Trial 6'!AG10,'Trial 7'!AG10,'Trial 8'!AG10)","v":{"v":395.5619448454726,"d":"$395.6"}},{"$f":"STDEV('Trial 1'!AH10,'Trial 2'!AH10,'Trial 3'!AH10,'Trial 4'!AH10,'Trial 5'!AH10,'Trial 6'!AH10,'Trial 7'!AH10,'Trial 8'!AH10)","v":{"v":396.8325003439961,"d":"$396.8"}},{"$f":"STDEV('Trial 1'!AI10,'Trial 2'!AI10,'Trial 3'!AI10,'Trial 4'!AI10,'Trial 5'!AI10,'Trial 6'!AI10,'Trial 7'!AI10,'Trial 8'!AI10)","v":{"v":410.9307949255596,"d":"$410.9"}},{"$f":"STDEV('Trial 1'!AJ10,'Trial 2'!AJ10,'Trial 3'!AJ10,'Trial 4'!AJ10,'Trial 5'!AJ10,'Trial 6'!AJ10,'Trial 7'!AJ10,'Trial 8'!AJ10)","v":{"v":406.75428512626564,"d":"$406.8"}},{"$f":"STDEV('Trial 1'!AK10,'Trial 2'!AK10,'Trial 3'!AK10,'Trial 4'!AK10,'Trial 5'!AK10,'Trial 6'!AK10,'Trial 7'!AK10,'Trial 8'!AK10)","v":{"v":401.92232823976525,"d":"$401.9"}},{"$f":"STDEV('Trial 1'!AL10,'Trial 2'!AL10,'Trial 3'!AL10,'Trial 4'!AL10,'Trial 5'!AL10,'Trial 6'!AL10,'Trial 7'!AL10,'Trial 8'!AL10)","v":{"v":400.3638697709337,"d":"$400.4"}},{"$f":"STDEV('Trial 1'!AM10,'Trial 2'!AM10,'Trial 3'!AM10,'Trial 4'!AM10,'Trial 5'!AM10,'Trial 6'!AM10,'Trial 7'!AM10,'Trial 8'!AM10)","v":{"v":417.03823929739343,"d":"$417.0"}},{"v":4452.056709770869,"d":"$4,452.1"},{"$f":"STDEV('Trial 1'!AO10,'Trial 2'!AO10,'Trial 3'!AO10,'Trial 4'!AO10,'Trial 5'!AO10,'Trial 6'!AO10,'Trial 7'!AO10,'Trial 8'!AO10)","v":{"v":465.6203163782962,"d":"$465.6"}},{"$f":"STDEV('Trial 1'!AP10,'Trial 2'!AP10,'Trial 3'!AP10,'Trial 4'!AP10,'Trial 5'!AP10,'Trial 6'!AP10,'Trial 7'!AP10,'Trial 8'!AP10)","v":{"v":452.92640115187135,"d":"$452.9"}},{"$f":"STDEV('Trial 1'!AQ10,'Trial 2'!AQ10,'Trial 3'!AQ10,'Trial 4'!AQ10,'Trial 5'!AQ10,'Trial 6'!AQ10,'Trial 7'!AQ10,'Trial 8'!AQ10)","v":{"v":446.4660101331512,"d":"$446.5"}},{"$f":"STDEV('Trial 1'!AR10,'Trial 2'!AR10,'Trial 3'!AR10,'Trial 4'!AR10,'Trial 5'!AR10,'Trial 6'!AR10,'Trial 7'!AR10,'Trial 8'!AR10)","v":{"v":459.216041611828,"d":"$459.2"}},{"$f":"STDEV('Trial 1'!AS10,'Trial 2'!AS10,'Trial 3'!AS10,'Trial 4'!AS10,'Trial 5'!AS10,'Trial 6'!AS10,'Trial 7'!AS10,'Trial 8'!AS10)","v":{"v":486.9642107311272,"d":"$487.0"}},{"$f":"STDEV('Trial 1'!AT10,'Trial 2'!AT10,'Trial 3'!AT10,'Trial 4'!AT10,'Trial 5'!AT10,'Trial 6'!AT10,'Trial 7'!AT10,'Trial 8'!AT10)","v":{"v":490.7427719263745,"d":"$490.7"}},{"$f":"STDEV('Trial 1'!AU10,'Trial 2'!AU10,'Trial 3'!AU10,'Trial 4'!AU10,'Trial 5'!AU10,'Trial 6'!AU10,'Trial 7'!AU10,'Trial 8'!AU10)","v":{"v":471.17426514421743,"d":"$471.2"}},{"$f":"STDEV('Trial 1'!AV10,'Trial 2'!AV10,'Trial 3'!AV10,'Trial 4'!AV10,'Trial 5'!AV10,'Trial 6'!AV10,'Trial 7'!AV10,'Trial 8'!AV10)","v":{"v":442.56814927386836,"d":"$442.6"}},{"$f":"STDEV('Trial 1'!AW10,'Trial 2'!AW10,'Trial 3'!AW10,'Trial 4'!AW10,'Trial 5'!AW10,'Trial 6'!AW10,'Trial 7'!AW10,'Trial 8'!AW10)","v":{"v":437.1776071650671,"d":"$437.2"}},{"$f":"STDEV('Trial 1'!AX10,'Trial 2'!AX10,'Trial 3'!AX10,'Trial 4'!AX10,'Trial 5'!AX10,'Trial 6'!AX10,'Trial 7'!AX10,'Trial 8'!AX10)","v":{"v":422.78894827282045,"d":"$422.8"}},{"$f":"STDEV('Trial 1'!AY10,'Trial 2'!AY10,'Trial 3'!AY10,'Trial 4'!AY10,'Trial 5'!AY10,'Trial 6'!AY10,'Trial 7'!AY10,'Trial 8'!AY10)","v":{"v":412.33348955893473,"d":"$412.3"}},{"$f":"STDEV('Trial 1'!AZ10,'Trial 2'!AZ10,'Trial 3'!AZ10,'Trial 4'!AZ10,'Trial 5'!AZ10,'Trial 6'!AZ10,'Trial 7'!AZ10,'Trial 8'!AZ10)","v":{"v":428.84039858616796,"d":"$428.8"}},{"v":5416.818609933725,"d":"$5,416.8"},{"$f":"STDEV('Trial 1'!BB10,'Trial 2'!BB10,'Trial 3'!BB10,'Trial 4'!BB10,'Trial 5'!BB10,'Trial 6'!BB10,'Trial 7'!BB10,'Trial 8'!BB10)","v":{"v":461.1451420358866,"d":"$461.1"}},{"$f":"STDEV('Trial 1'!BC10,'Trial 2'!BC10,'Trial 3'!BC10,'Trial 4'!BC10,'Trial 5'!BC10,'Trial 6'!BC10,'Trial 7'!BC10,'Trial 8'!BC10)","v":{"v":406.33366721617165,"d":"$406.3"}},{"$f":"STDEV('Trial 1'!BD10,'Trial 2'!BD10,'Trial 3'!BD10,'Trial 4'!BD10,'Trial 5'!BD10,'Trial 6'!BD10,'Trial 7'!BD10,'Trial 8'!BD10)","v":{"v":405.58758695378185,"d":"$405.6"}},{"$f":"STDEV('Trial 1'!BE10,'Trial 2'!BE10,'Trial 3'!BE10,'Trial 4'!BE10,'Trial 5'!BE10,'Trial 6'!BE10,'Trial 7'!BE10,'Trial 8'!BE10)","v":{"v":439.38599250895095,"d":"$439.4"}},{"$f":"STDEV('Trial 1'!BF10,'Trial 2'!BF10,'Trial 3'!BF10,'Trial 4'!BF10,'Trial 5'!BF10,'Trial 6'!BF10,'Trial 7'!BF10,'Trial 8'!BF10)","v":{"v":452.9815259283855,"d":"$453.0"}},{"$f":"STDEV('Trial 1'!BG10,'Trial 2'!BG10,'Trial 3'!BG10,'Trial 4'!BG10,'Trial 5'!BG10,'Trial 6'!BG10,'Trial 7'!BG10,'Trial 8'!BG10)","v":{"v":481.4766129991568,"d":"$481.5"}},{"$f":"STDEV('Trial 1'!BH10,'Trial 2'!BH10,'Trial 3'!BH10,'Trial 4'!BH10,'Trial 5'!BH10,'Trial 6'!BH10,'Trial 7'!BH10,'Trial 8'!BH10)","v":{"v":514.256676762626,"d":"$514.3"}},{"$f":"STDEV('Trial 1'!BI10,'Trial 2'!BI10,'Trial 3'!BI10,'Trial 4'!BI10,'Trial 5'!BI10,'Trial 6'!BI10,'Trial 7'!BI10,'Trial 8'!BI10)","v":{"v":550.7491626301247,"d":"$550.7"}},{"$f":"STDEV('Trial 1'!BJ10,'Trial 2'!BJ10,'Trial 3'!BJ10,'Trial 4'!BJ10,'Trial 5'!BJ10,'Trial 6'!BJ10,'Trial 7'!BJ10,'Trial 8'!BJ10)","v":{"v":531.4135005621778,"d":"$531.4"}},{"$f":"STDEV('Trial 1'!BK10,'Trial 2'!BK10,'Trial 3'!BK10,'Trial 4'!BK10,'Trial 5'!BK10,'Trial 6'!BK10,'Trial 7'!BK10,'Trial 8'!BK10)","v":{"v":549.069986544564,"d":"$549.1"}},{"$f":"STDEV('Trial 1'!BL10,'Trial 2'!BL10,'Trial 3'!BL10,'Trial 4'!BL10,'Trial 5'!BL10,'Trial 6'!BL10,'Trial 7'!BL10,'Trial 8'!BL10)","v":{"v":523.2977502661527,"d":"$523.3"}},{"$f":"STDEV('Trial 1'!BM10,'Trial 2'!BM10,'Trial 3'!BM10,'Trial 4'!BM10,'Trial 5'!BM10,'Trial 6'!BM10,'Trial 7'!BM10,'Trial 8'!BM10)","v":{"v":484.7804701506286,"d":"$484.8"}},{"v":5800.478074558607,"d":"$5,800.5"},{"$f":"STDEV('Trial 1'!BO10,'Trial 2'!BO10,'Trial 3'!BO10,'Trial 4'!BO10,'Trial 5'!BO10,'Trial 6'!BO10,'Trial 7'!BO10,'Trial 8'!BO10)","v":{"v":469.9077815452599,"d":"$469.9"}},{"$f":"STDEV('Trial 1'!BP10,'Trial 2'!BP10,'Trial 3'!BP10,'Trial 4'!BP10,'Trial 5'!BP10,'Trial 6'!BP10,'Trial 7'!BP10,'Trial 8'!BP10)","v":{"v":450.267536698899,"d":"$450.3"}},{"$f":"STDEV('Trial 1'!BQ10,'Trial 2'!BQ10,'Trial 3'!BQ10,'Trial 4'!BQ10,'Trial 5'!BQ10,'Trial 6'!BQ10,'Trial 7'!BQ10,'Trial 8'!BQ10)","v":{"v":431.03230879405385,"d":"$431.0"}},{"$f":"STDEV('Trial 1'!BR10,'Trial 2'!BR10,'Trial 3'!BR10,'Trial 4'!BR10,'Trial 5'!BR10,'Trial 6'!BR10,'Trial 7'!BR10,'Trial 8'!BR10)","v":{"v":473.1220498649781,"d":"$473.1"}},{"$f":"STDEV('Trial 1'!BS10,'Trial 2'!BS10,'Trial 3'!BS10,'Trial 4'!BS10,'Trial 5'!BS10,'Trial 6'!BS10,'Trial 7'!BS10,'Trial 8'!BS10)","v":{"v":502.5962325816477,"d":"$502.6"}},{"$f":"STDEV('Trial 1'!BT10,'Trial 2'!BT10,'Trial 3'!BT10,'Trial 4'!BT10,'Trial 5'!BT10,'Trial 6'!BT10,'Trial 7'!BT10,'Trial 8'!BT10)","v":{"v":526.5044347618148,"d":"$526.5"}},{"$f":"STDEV('Trial 1'!BU10,'Trial 2'!BU10,'Trial 3'!BU10,'Trial 4'!BU10,'Trial 5'!BU10,'Trial 6'!BU10,'Trial 7'!BU10,'Trial 8'!BU10)","v":{"v":510.2168150483862,"d":"$510.2"}},{"$f":"STDEV('Trial 1'!BV10,'Trial 2'!BV10,'Trial 3'!BV10,'Trial 4'!BV10,'Trial 5'!BV10,'Trial 6'!BV10,'Trial 7'!BV10,'Trial 8'!BV10)","v":{"v":538.0004644364618,"d":"$538.0"}},{"$f":"STDEV('Trial 1'!BW10,'Trial 2'!BW10,'Trial 3'!BW10,'Trial 4'!BW10,'Trial 5'!BW10,'Trial 6'!BW10,'Trial 7'!BW10,'Trial 8'!BW10)","v":{"v":573.3031446684718,"d":"$573.3"}},{"$f":"STDEV('Trial 1'!BX10,'Trial 2'!BX10,'Trial 3'!BX10,'Trial 4'!BX10,'Trial 5'!BX10,'Trial 6'!BX10,'Trial 7'!BX10,'Trial 8'!BX10)","v":{"v":613.8041069397069,"d":"$613.8"}},{"$f":"STDEV('Trial 1'!BY10,'Trial 2'!BY10,'Trial 3'!BY10,'Trial 4'!BY10,'Trial 5'!BY10,'Trial 6'!BY10,'Trial 7'!BY10,'Trial 8'!BY10)","v":{"v":626.7491584411847,"d":"$626.7"}},{"$f":"STDEV('Trial 1'!BZ10,'Trial 2'!BZ10,'Trial 3'!BZ10,'Trial 4'!BZ10,'Trial 5'!BZ10,'Trial 6'!BZ10,'Trial 7'!BZ10,'Trial 8'!BZ10)","v":{"v":586.9055242369443,"d":"$586.9"}},{"v":6302.409558017808,"d":"$6,302.4"},{"$f":"STDEV('Trial 1'!CB10,'Trial 2'!CB10,'Trial 3'!CB10,'Trial 4'!CB10,'Trial 5'!CB10,'Trial 6'!CB10,'Trial 7'!CB10,'Trial 8'!CB10)","v":{"v":561.572192620838,"d":"$561.6"}},{"$f":"STDEV('Trial 1'!CC10,'Trial 2'!CC10,'Trial 3'!CC10,'Trial 4'!CC10,'Trial 5'!CC10,'Trial 6'!CC10,'Trial 7'!CC10,'Trial 8'!CC10)","v":{"v":555.6279362238708,"d":"$555.6"}},{"$f":"STDEV('Trial 1'!CD10,'Trial 2'!CD10,'Trial 3'!CD10,'Trial 4'!CD10,'Trial 5'!CD10,'Trial 6'!CD10,'Trial 7'!CD10,'Trial 8'!CD10)","v":{"v":553.3724850620555,"d":"$553.4"}},{"$f":"STDEV('Trial 1'!CE10,'Trial 2'!CE10,'Trial 3'!CE10,'Trial 4'!CE10,'Trial 5'!CE10,'Trial 6'!CE10,'Trial 7'!CE10,'Trial 8'!CE10)","v":{"v":561.3594444576119,"d":"$561.4"}},{"$f":"STDEV('Trial 1'!CF10,'Trial 2'!CF10,'Trial 3'!CF10,'Trial 4'!CF10,'Trial 5'!CF10,'Trial 6'!CF10,'Trial 7'!CF10,'Trial 8'!CF10)","v":{"v":551.6287729329056,"d":"$551.6"}},{"$f":"STDEV('Trial 1'!CG10,'Trial 2'!CG10,'Trial 3'!CG10,'Trial 4'!CG10,'Trial 5'!CG10,'Trial 6'!CG10,'Trial 7'!CG10,'Trial 8'!CG10)","v":{"v":542.0778759611879,"d":"$542.1"}},{"$f":"STDEV('Trial 1'!CH10,'Trial 2'!CH10,'Trial 3'!CH10,'Trial 4'!CH10,'Trial 5'!CH10,'Trial 6'!CH10,'Trial 7'!CH10,'Trial 8'!CH10)","v":{"v":579.2940706898313,"d":"$579.3"}},{"$f":"STDEV('Trial 1'!CI10,'Trial 2'!CI10,'Trial 3'!CI10,'Trial 4'!CI10,'Trial 5'!CI10,'Trial 6'!CI10,'Trial 7'!CI10,'Trial 8'!CI10)","v":{"v":542.859008694393,"d":"$542.9"}},{"$f":"STDEV('Trial 1'!CJ10,'Trial 2'!CJ10,'Trial 3'!CJ10,'Trial 4'!CJ10,'Trial 5'!CJ10,'Trial 6'!CJ10,'Trial 7'!CJ10,'Trial 8'!CJ10)","v":{"v":511.14845784788616,"d":"$511.1"}},{"$f":"STDEV('Trial 1'!CK10,'Trial 2'!CK10,'Trial 3'!CK10,'Trial 4'!CK10,'Trial 5'!CK10,'Trial 6'!CK10,'Trial 7'!CK10,'Trial 8'!CK10)","v":{"v":525.9211824253739,"d":"$525.9"}},{"$f":"STDEV('Trial 1'!CL10,'Trial 2'!CL10,'Trial 3'!CL10,'Trial 4'!CL10,'Trial 5'!CL10,'Trial 6'!CL10,'Trial 7'!CL10,'Trial 8'!CL10)","v":{"v":526.2840731632449,"d":"$526.3"}},{"$f":"STDEV('Trial 1'!CM10,'Trial 2'!CM10,'Trial 3'!CM10,'Trial 4'!CM10,'Trial 5'!CM10,'Trial 6'!CM10,'Trial 7'!CM10,'Trial 8'!CM10)","v":{"v":509.84348812687904,"d":"$509.8"}},{"v":6520.988988206078,"d":"$6,521.0"},{"$f":"STDEV('Trial 1'!CO10,'Trial 2'!CO10,'Trial 3'!CO10,'Trial 4'!CO10,'Trial 5'!CO10,'Trial 6'!CO10,'Trial 7'!CO10,'Trial 8'!CO10)","v":{"v":539.8047538477095,"d":"$539.8"}},{"$f":"STDEV('Trial 1'!CP10,'Trial 2'!CP10,'Trial 3'!CP10,'Trial 4'!CP10,'Trial 5'!CP10,'Trial 6'!CP10,'Trial 7'!CP10,'Trial 8'!CP10)","v":{"v":576.1928100358821,"d":"$576.2"}},{"$f":"STDEV('Trial 1'!CQ10,'Trial 2'!CQ10,'Trial 3'!CQ10,'Trial 4'!CQ10,'Trial 5'!CQ10,'Trial 6'!CQ10,'Trial 7'!CQ10,'Trial 8'!CQ10)","v":{"v":579.1965760268716,"d":"$579.2"}},{"$f":"STDEV('Trial 1'!CR10,'Trial 2'!CR10,'Trial 3'!CR10,'Trial 4'!CR10,'Trial 5'!CR10,'Trial 6'!CR10,'Trial 7'!CR10,'Trial 8'!CR10)","v":{"v":588.385917183472,"d":"$588.4"}},{"$f":"STDEV('Trial 1'!CS10,'Trial 2'!CS10,'Trial 3'!CS10,'Trial 4'!CS10,'Trial 5'!CS10,'Trial 6'!CS10,'Trial 7'!CS10,'Trial 8'!CS10)","v":{"v":602.9821988354938,"d":"$603.0"}},{"$f":"STDEV('Trial 1'!CT10,'Trial 2'!CT10,'Trial 3'!CT10,'Trial 4'!CT10,'Trial 5'!CT10,'Trial 6'!CT10,'Trial 7'!CT10,'Trial 8'!CT10)","v":{"v":572.3340670526728,"d":"$572.3"}},{"$f":"STDEV('Trial 1'!CU10,'Trial 2'!CU10,'Trial 3'!CU10,'Trial 4'!CU10,'Trial 5'!CU10,'Trial 6'!CU10,'Trial 7'!CU10,'Trial 8'!CU10)","v":{"v":585.6681579623455,"d":"$585.7"}},{"$f":"STDEV('Trial 1'!CV10,'Trial 2'!CV10,'Trial 3'!CV10,'Trial 4'!CV10,'Trial 5'!CV10,'Trial 6'!CV10,'Trial 7'!CV10,'Trial 8'!CV10)","v":{"v":600.4267996488433,"d":"$600.4"}},{"$f":"STDEV('Trial 1'!CW10,'Trial 2'!CW10,'Trial 3'!CW10,'Trial 4'!CW10,'Trial 5'!CW10,'Trial 6'!CW10,'Trial 7'!CW10,'Trial 8'!CW10)","v":{"v":583.5191429239993,"d":"$583.5"}},{"$f":"STDEV('Trial 1'!CX10,'Trial 2'!CX10,'Trial 3'!CX10,'Trial 4'!CX10,'Trial 5'!CX10,'Trial 6'!CX10,'Trial 7'!CX10,'Trial 8'!CX10)","v":{"v":577.8264294056056,"d":"$577.8"}},{"$f":"STDEV('Trial 1'!CY10,'Trial 2'!CY10,'Trial 3'!CY10,'Trial 4'!CY10,'Trial 5'!CY10,'Trial 6'!CY10,'Trial 7'!CY10,'Trial 8'!CY10)","v":{"v":604.5961459479782,"d":"$604.6"}},{"$f":"STDEV('Trial 1'!CZ10,'Trial 2'!CZ10,'Trial 3'!CZ10,'Trial 4'!CZ10,'Trial 5'!CZ10,'Trial 6'!CZ10,'Trial 7'!CZ10,'Trial 8'!CZ10)","v":{"v":611.0355974345948,"d":"$611.0"}},{"v":7021.968596305469,"d":"$7,022.0"},{"$f":"STDEV('Trial 1'!DB10,'Trial 2'!DB10,'Trial 3'!DB10,'Trial 4'!DB10,'Trial 5'!DB10,'Trial 6'!DB10,'Trial 7'!DB10,'Trial 8'!DB10)","v":{"v":594.375348868677,"d":"$594.4"}},{"$f":"STDEV('Trial 1'!DC10,'Trial 2'!DC10,'Trial 3'!DC10,'Trial 4'!DC10,'Trial 5'!DC10,'Trial 6'!DC10,'Trial 7'!DC10,'Trial 8'!DC10)","v":{"v":660.4636804662966,"d":"$660.5"}},{"$f":"STDEV('Trial 1'!DD10,'Trial 2'!DD10,'Trial 3'!DD10,'Trial 4'!DD10,'Trial 5'!DD10,'Trial 6'!DD10,'Trial 7'!DD10,'Trial 8'!DD10)","v":{"v":660.3000544406791,"d":"$660.3"}},{"$f":"STDEV('Trial 1'!DE10,'Trial 2'!DE10,'Trial 3'!DE10,'Trial 4'!DE10,'Trial 5'!DE10,'Trial 6'!DE10,'Trial 7'!DE10,'Trial 8'!DE10)","v":{"v":634.097092378026,"d":"$634.1"}},{"$f":"STDEV('Trial 1'!DF10,'Trial 2'!DF10,'Trial 3'!DF10,'Trial 4'!DF10,'Trial 5'!DF10,'Trial 6'!DF10,'Trial 7'!DF10,'Trial 8'!DF10)","v":{"v":612.8971509735903,"d":"$612.9"}},{"$f":"STDEV('Trial 1'!DG10,'Trial 2'!DG10,'Trial 3'!DG10,'Trial 4'!DG10,'Trial 5'!DG10,'Trial 6'!DG10,'Trial 7'!DG10,'Trial 8'!DG10)","v":{"v":593.7379566254668,"d":"$593.7"}},{"$f":"STDEV('Trial 1'!DH10,'Trial 2'!DH10,'Trial 3'!DH10,'Trial 4'!DH10,'Trial 5'!DH10,'Trial 6'!DH10,'Trial 7'!DH10,'Trial 8'!DH10)","v":{"v":561.6634056457127,"d":"$561.7"}},{"$f":"STDEV('Trial 1'!DI10,'Trial 2'!DI10,'Trial 3'!DI10,'Trial 4'!DI10,'Trial 5'!DI10,'Trial 6'!DI10,'Trial 7'!DI10,'Trial 8'!DI10)","v":{"v":548.0117204499774,"d":"$548.0"}},{"$f":"STDEV('Trial 1'!DJ10,'Trial 2'!DJ10,'Trial 3'!DJ10,'Trial 4'!DJ10,'Trial 5'!DJ10,'Trial 6'!DJ10,'Trial 7'!DJ10,'Trial 8'!DJ10)","v":{"v":510.5028751844289,"d":"$510.5"}},{"$f":"STDEV('Trial 1'!DK10,'Trial 2'!DK10,'Trial 3'!DK10,'Trial 4'!DK10,'Trial 5'!DK10,'Trial 6'!DK10,'Trial 7'!DK10,'Trial 8'!DK10)","v":{"v":538.72210049958,"d":"$538.7"}},{"$f":"STDEV('Trial 1'!DL10,'Trial 2'!DL10,'Trial 3'!DL10,'Trial 4'!DL10,'Trial 5'!DL10,'Trial 6'!DL10,'Trial 7'!DL10,'Trial 8'!DL10)","v":{"v":512.717992870656,"d":"$512.7"}},{"$f":"STDEV('Trial 1'!DM10,'Trial 2'!DM10,'Trial 3'!DM10,'Trial 4'!DM10,'Trial 5'!DM10,'Trial 6'!DM10,'Trial 7'!DM10,'Trial 8'!DM10)","v":{"v":548.9135892613787,"d":"$548.9"}},{"v":6976.402967664469,"d":"$6,976.4"},{"$f":"STDEV('Trial 1'!DO10,'Trial 2'!DO10,'Trial 3'!DO10,'Trial 4'!DO10,'Trial 5'!DO10,'Trial 6'!DO10,'Trial 7'!DO10,'Trial 8'!DO10)","v":{"v":552.8239934224771,"d":"$552.8"}},{"$f":"STDEV('Trial 1'!DP10,'Trial 2'!DP10,'Trial 3'!DP10,'Trial 4'!DP10,'Trial 5'!DP10,'Trial 6'!DP10,'Trial 7'!DP10,'Trial 8'!DP10)","v":{"v":494.3072335682119,"d":"$494.3"}},{"$f":"STDEV('Trial 1'!DQ10,'Trial 2'!DQ10,'Trial 3'!DQ10,'Trial 4'!DQ10,'Trial 5'!DQ10,'Trial 6'!DQ10,'Trial 7'!DQ10,'Trial 8'!DQ10)","v":{"v":461.5480545353933,"d":"$461.5"}},{"$f":"STDEV('Trial 1'!DR10,'Trial 2'!DR10,'Trial 3'!DR10,'Trial 4'!DR10,'Trial 5'!DR10,'Trial 6'!DR10,'Trial 7'!DR10,'Trial 8'!DR10)","v":{"v":486.63631461743375,"d":"$486.6"}},{"$f":"STDEV('Trial 1'!DS10,'Trial 2'!DS10,'Trial 3'!DS10,'Trial 4'!DS10,'Trial 5'!DS10,'Trial 6'!DS10,'Trial 7'!DS10,'Trial 8'!DS10)","v":{"v":521.1669780974353,"d":"$521.2"}},{"$f":"STDEV('Trial 1'!DT10,'Trial 2'!DT10,'Trial 3'!DT10,'Trial 4'!DT10,'Trial 5'!DT10,'Trial 6'!DT10,'Trial 7'!DT10,'Trial 8'!DT10)","v":{"v":519.5588663843309,"d":"$519.6"}},{"$f":"STDEV('Trial 1'!DU10,'Trial 2'!DU10,'Trial 3'!DU10,'Trial 4'!DU10,'Trial 5'!DU10,'Trial 6'!DU10,'Trial 7'!DU10,'Trial 8'!DU10)","v":{"v":542.5934028051466,"d":"$542.6"}},{"$f":"STDEV('Trial 1'!DV10,'Trial 2'!DV10,'Trial 3'!DV10,'Trial 4'!DV10,'Trial 5'!DV10,'Trial 6'!DV10,'Trial 7'!DV10,'Trial 8'!DV10)","v":{"v":565.4107030945289,"d":"$565.4"}},{"$f":"STDEV('Trial 1'!DW10,'Trial 2'!DW10,'Trial 3'!DW10,'Trial 4'!DW10,'Trial 5'!DW10,'Trial 6'!DW10,'Trial 7'!DW10,'Trial 8'!DW10)","v":{"v":565.0423221379694,"d":"$565.0"}},{"$f":"STDEV('Trial 1'!DX10,'Trial 2'!DX10,'Trial 3'!DX10,'Trial 4'!DX10,'Trial 5'!DX10,'Trial 6'!DX10,'Trial 7'!DX10,'Trial 8'!DX10)","v":{"v":597.9916029083744,"d":"$598.0"}},{"$f":"STDEV('Trial 1'!DY10,'Trial 2'!DY10,'Trial 3'!DY10,'Trial 4'!DY10,'Trial 5'!DY10,'Trial 6'!DY10,'Trial 7'!DY10,'Trial 8'!DY10)","v":{"v":550.4061868886083,"d":"$550.4"}},{"$f":"STDEV('Trial 1'!DZ10,'Trial 2'!DZ10,'Trial 3'!DZ10,'Trial 4'!DZ10,'Trial 5'!DZ10,'Trial 6'!DZ10,'Trial 7'!DZ10,'Trial 8'!DZ10)","v":{"v":556.5698141154743,"d":"$556.6"}},{"v":6414.055472575385,"d":"$6,414.1"},{"$f":"STDEV('Trial 1'!EB10,'Trial 2'!EB10,'Trial 3'!EB10,'Trial 4'!EB10,'Trial 5'!EB10,'Trial 6'!EB10,'Trial 7'!EB10,'Trial 8'!EB10)","v":{"v":581.1783617523697,"d":"$581.2"}},{"$f":"STDEV('Trial 1'!EC10,'Trial 2'!EC10,'Trial 3'!EC10,'Trial 4'!EC10,'Trial 5'!EC10,'Trial 6'!EC10,'Trial 7'!EC10,'Trial 8'!EC10)","v":{"v":538.3261379241659,"d":"$538.3"}},{"$f":"STDEV('Trial 1'!ED10,'Trial 2'!ED10,'Trial 3'!ED10,'Trial 4'!ED10,'Trial 5'!ED10,'Trial 6'!ED10,'Trial 7'!ED10,'Trial 8'!ED10)","v":{"v":514.4147780417953,"d":"$514.4"}},{"$f":"STDEV('Trial 1'!EE10,'Trial 2'!EE10,'Trial 3'!EE10,'Trial 4'!EE10,'Trial 5'!EE10,'Trial 6'!EE10,'Trial 7'!EE10,'Trial 8'!EE10)","v":{"v":549.0922416735565,"d":"$549.1"}},{"$f":"STDEV('Trial 1'!EF10,'Trial 2'!EF10,'Trial 3'!EF10,'Trial 4'!EF10,'Trial 5'!EF10,'Trial 6'!EF10,'Trial 7'!EF10,'Trial 8'!EF10)","v":{"v":546.0963280553758,"d":"$546.1"}},{"$f":"STDEV('Trial 1'!EG10,'Trial 2'!EG10,'Trial 3'!EG10,'Trial 4'!EG10,'Trial 5'!EG10,'Trial 6'!EG10,'Trial 7'!EG10,'Trial 8'!EG10)","v":{"v":515.7545813937336,"d":"$515.8"}},{"$f":"STDEV('Trial 1'!EH10,'Trial 2'!EH10,'Trial 3'!EH10,'Trial 4'!EH10,'Trial 5'!EH10,'Trial 6'!EH10,'Trial 7'!EH10,'Trial 8'!EH10)","v":{"v":548.6888136313246,"d":"$548.7"}},{"$f":"STDEV('Trial 1'!EI10,'Trial 2'!EI10,'Trial 3'!EI10,'Trial 4'!EI10,'Trial 5'!EI10,'Trial 6'!EI10,'Trial 7'!EI10,'Trial 8'!EI10)","v":{"v":588.0708097676328,"d":"$588.1"}},{"$f":"STDEV('Trial 1'!EJ10,'Trial 2'!EJ10,'Trial 3'!EJ10,'Trial 4'!EJ10,'Trial 5'!EJ10,'Trial 6'!EJ10,'Trial 7'!EJ10,'Trial 8'!EJ10)","v":{"v":597.8737025147351,"d":"$597.9"}},{"$f":"STDEV('Trial 1'!EK10,'Trial 2'!EK10,'Trial 3'!EK10,'Trial 4'!EK10,'Trial 5'!EK10,'Trial 6'!EK10,'Trial 7'!EK10,'Trial 8'!EK10)","v":{"v":618.5574511464089,"d":"$618.6"}},{"$f":"STDEV('Trial 1'!EL10,'Trial 2'!EL10,'Trial 3'!EL10,'Trial 4'!EL10,'Trial 5'!EL10,'Trial 6'!EL10,'Trial 7'!EL10,'Trial 8'!EL10)","v":{"v":609.9773699284777,"d":"$610.0"}},{"$f":"STDEV('Trial 1'!EM10,'Trial 2'!EM10,'Trial 3'!EM10,'Trial 4'!EM10,'Trial 5'!EM10,'Trial 6'!EM10,'Trial 7'!EM10,'Trial 8'!EM10)","v":{"v":575.2242892106259,"d":"$575.2"}},{"v":6783.254865040202,"d":"$6,783.3"}]
[{"$f":"Labels!B26","v":"Consumption"},{"$f":"AVERAGE('Trial 1'!B12,'Trial 2'!B12,'Trial 3'!B12,'Trial 4'!B12,'Trial 5'!B12,'Trial 6'!B12,'Trial 7'!B12,'Trial 8'!B12)","v":{"v":728000,"d":"$728,000"}},{"$f":"AVERAGE('Trial 1'!C12,'Trial 2'!C12,'Trial 3'!C12,'Trial 4'!C12,'Trial 5'!C12,'Trial 6'!C12,'Trial 7'!C12,'Trial 8'!C12)","v":{"v":727800.7123496904,"d":"$727,801"}},{"$f":"AVERAGE('Trial 1'!D12,'Trial 2'!D12,'Trial 3'!D12,'Trial 4'!D12,'Trial 5'!D12,'Trial 6'!D12,'Trial 7'!D12,'Trial 8'!D12)","v":{"v":727582.4440852882,"d":"$727,582"}},{"$f":"AVERAGE('Trial 1'!E12,'Trial 2'!E12,'Trial 3'!E12,'Trial 4'!E12,'Trial 5'!E12,'Trial 6'!E12,'Trial 7'!E12,'Trial 8'!E12)","v":{"v":727362.7200188412,"d":"$727,363"}},{"$f":"AVERAGE('Trial 1'!F12,'Trial 2'!F12,'Trial 3'!F12,'Trial 4'!F12,'Trial 5'!F12,'Trial 6'!F12,'Trial 7'!F12,'Trial 8'!F12)","v":{"v":727116.0199523218,"d":"$727,116"}},{"$f":"AVERAGE('Trial 1'!G12,'Trial 2'!G12,'Trial 3'!G12,'Trial 4'!G12,'Trial 5'!G12,'Trial 6'!G12,'Trial 7'!G12,'Trial 8'!G12)","v":{"v":726871.259877423,"d":"$726,871"}},{"$f":"AVERAGE('Trial 1'!H12,'Trial 2'!H12,'Trial 3'!H12,'Trial 4'!H12,'Trial 5'!H12,'Trial 6'!H12,'Trial 7'!H12,'Trial 8'!H12)","v":{"v":726636.287861942,"d":"$726,636"}},{"$f":"AVERAGE('Trial 1'!I12,'Trial 2'!I12,'Trial 3'!I12,'Trial 4'!I12,'Trial 5'!I12,'Trial 6'!I12,'Trial 7'!I12,'Trial 8'!I12)","v":{"v":726440.2495438296,"d":"$726,440"}},{"$f":"AVERAGE('Trial 1'!J12,'Trial 2'!J12,'Trial 3'!J12,'Trial 4'!J12,'Trial 5'!J12,'Trial 6'!J12,'Trial 7'!J12,'Trial 8'!J12)","v":{"v":726207.1439031675,"d":"$726,207"}},{"$f":"AVERAGE('Trial 1'!K12,'Trial 2'!K12,'Trial 3'!K12,'Trial 4'!K12,'Trial 5'!K12,'Trial 6'!K12,'Trial 7'!K12,'Trial 8'!K12)","v":{"v":725997.9923168216,"d":"$725,998"}},{"$f":"AVERAGE('Trial 1'!L12,'Trial 2'!L12,'Trial 3'!L12,'Trial 4'!L12,'Trial 5'!L12,'Trial 6'!L12,'Trial 7'!L12,'Trial 8'!L12)","v":{"v":725756.177899149,"d":"$725,756"}},{"$f":"AVERAGE('Trial 1'!M12,'Trial 2'!M12,'Trial 3'!M12,'Trial 4'!M12,'Trial 5'!M12,'Trial 6'!M12,'Trial 7'!M12,'Trial 8'!M12)","v":{"v":725536.5233561283,"d":"$725,537"}},{"v":8721307.531164603,"d":"$8,721,308"},{"$f":"AVERAGE('Trial 1'!O12,'Trial 2'!O12,'Trial 3'!O12,'Trial 4'!O12,'Trial 5'!O12,'Trial 6'!O12,'Trial 7'!O12,'Trial 8'!O12)","v":{"v":725314.7738187597,"d":"$725,315"}},{"$f":"AVERAGE('Trial 1'!P12,'Trial 2'!P12,'Trial 3'!P12,'Trial 4'!P12,'Trial 5'!P12,'Trial 6'!P12,'Trial 7'!P12,'Trial 8'!P12)","v":{"v":725066.1258779757,"d":"$725,066"}},{"$f":"AVERAGE('Trial 1'!Q12,'Trial 2'!Q12,'Trial 3'!Q12,'Trial 4'!Q12,'Trial 5'!Q12,'Trial 6'!Q12,'Trial 7'!Q12,'Trial 8'!Q12)","v":{"v":724836.8835156768,"d":"$724,837"}},{"$f":"AVERAGE('Trial 1'!R12,'Trial 2'!R12,'Trial 3'!R12,'Trial 4'!R12,'Trial 5'!R12,'Trial 6'!R12,'Trial 7'!R12,'Trial 8'!R12)","v":{"v":724625.4771069966,"d":"$724,625"}},{"$f":"AVERAGE('Trial 1'!S12,'Trial 2'!S12,'Trial 3'!S12,'Trial 4'!S12,'Trial 5'!S12,'Trial 6'!S12,'Trial 7'!S12,'Trial 8'!S12)","v":{"v":724391.5246313968,"d":"$724,392"}},{"$f":"AVERAGE('Trial 1'!T12,'Trial 2'!T12,'Trial 3'!T12,'Trial 4'!T12,'Trial 5'!T12,'Trial 6'!T12,'Trial 7'!T12,'Trial 8'!T12)","v":{"v":724161.1561394188,"d":"$724,161"}},{"$f":"AVERAGE('Trial 1'!U12,'Trial 2'!U12,'Trial 3'!U12,'Trial 4'!U12,'Trial 5'!U12,'Trial 6'!U12,'Trial 7'!U12,'Trial 8'!U12)","v":{"v":723922.4554800983,"d":"$723,922"}},{"$f":"AVERAGE('Trial 1'!V12,'Trial 2'!V12,'Trial 3'!V12,'Trial 4'!V12,'Trial 5'!V12,'Trial 6'!V12,'Trial 7'!V12,'Trial 8'!V12)","v":{"v":723668.6964044013,"d":"$723,669"}},{"$f":"AVERAGE('Trial 1'!W12,'Trial 2'!W12,'Trial 3'!W12,'Trial 4'!W12,'Trial 5'!W12,'Trial 6'!W12,'Trial 7'!W12,'Trial 8'!W12)","v":{"v":723435.3503976171,"d":"$723,435"}},{"$f":"AVERAGE('Trial 1'!X12,'Trial 2'!X12,'Trial 3'!X12,'Trial 4'!X12,'Trial 5'!X12,'Trial 6'!X12,'Trial 7'!X12,'Trial 8'!X12)","v":{"v":723181.8250135919,"d":"$723,182"}},{"$f":"AVERAGE('Trial 1'!Y12,'Trial 2'!Y12,'Trial 3'!Y12,'Trial 4'!Y12,'Trial 5'!Y12,'Trial 6'!Y12,'Trial 7'!Y12,'Trial 8'!Y12)","v":{"v":722939.3260512995,"d":"$722,939"}},{"$f":"AVERAGE('Trial 1'!Z12,'Trial 2'!Z12,'Trial 3'!Z12,'Trial 4'!Z12,'Trial 5'!Z12,'Trial 6'!Z12,'Trial 7'!Z12,'Trial 8'!Z12)","v":{"v":722674.5135189146,"d":"$722,675"}},{"v":8688218.107956147,"d":"$8,688,218"},{"$f":"AVERAGE('Trial 1'!AB12,'Trial 2'!AB12,'Trial 3'!AB12,'Trial 4'!AB12,'Trial 5'!AB12,'Trial 6'!AB12,'Trial 7'!AB12,'Trial 8'!AB12)","v":{"v":722434.4655767641,"d":"$722,434"}},{"$f":"AVERAGE('Trial 1'!AC12,'Trial 2'!AC12,'Trial 3'!AC12,'Trial 4'!AC12,'Trial 5'!AC12,'Trial 6'!AC12,'Trial 7'!AC12,'Trial 8'!AC12)","v":{"v":722165.0161110087,"d":"$722,165"}},{"$f":"AVERAGE('Trial 1'!AD12,'Trial 2'!AD12,'Trial 3'!AD12,'Trial 4'!AD12,'Trial 5'!AD12,'Trial 6'!AD12,'Trial 7'!AD12,'Trial 8'!AD12)","v":{"v":721904.4990202046,"d":"$721,904"}},{"$f":"AVERAGE('Trial 1'!AE12,'Trial 2'!AE12,'Trial 3'!AE12,'Trial 4'!AE12,'Trial 5'!AE12,'Trial 6'!AE12,'Trial 7'!AE12,'Trial 8'!AE12)","v":{"v":721673.0355145236,"d":"$721,673"}},{"$f":"AVERAGE('Trial 1'!AF12,'Trial 2'!AF12,'Trial 3'!AF12,'Trial 4'!AF12,'Trial 5'!AF12,'Trial 6'!AF12,'Trial 7'!AF12,'Trial 8'!AF12)","v":{"v":721388.6833553142,"d":"$721,389"}},{"$f":"AVERAGE('Trial 1'!AG12,'Trial 2'!AG12,'Trial 3'!AG12,'Trial 4'!AG12,'Trial 5'!AG12,'Trial 6'!AG12,'Trial 7'!AG12,'Trial 8'!AG12)","v":{"v":721131.6357207587,"d":"$721,132"}},{"$f":"AVERAGE('Trial 1'!AH12,'Trial 2'!AH12,'Trial 3'!AH12,'Trial 4'!AH12,'Trial 5'!AH12,'Trial 6'!AH12,'Trial 7'!AH12,'Trial 8'!AH12)","v":{"v":720875.2692993308,"d":"$720,875"}},{"$f":"AVERAGE('Trial 1'!AI12,'Trial 2'!AI12,'Trial 3'!AI12,'Trial 4'!AI12,'Trial 5'!AI12,'Trial 6'!AI12,'Trial 7'!AI12,'Trial 8'!AI12)","v":{"v":720624.7744628737,"d":"$720,625"}},{"$f":"AVERAGE('Trial 1'!AJ12,'Trial 2'!AJ12,'Trial 3'!AJ12,'Trial 4'!AJ12,'Trial 5'!AJ12,'Trial 6'!AJ12,'Trial 7'!AJ12,'Trial 8'!AJ12)","v":{"v":720331.0538070984,"d":"$720,331"}},{"$f":"AVERAGE('Trial 1'!AK12,'Trial 2'!AK12,'Trial 3'!AK12,'Trial 4'!AK12,'Trial 5'!AK12,'Trial 6'!AK12,'Trial 7'!AK12,'Trial 8'!AK12)","v":{"v":720070.0714104436,"d":"$720,070"}},{"$f":"AVERAGE('Trial 1'!AL12,'Trial 2'!AL12,'Trial 3'!AL12,'Trial 4'!AL12,'Trial 5'!AL12,'Trial 6'!AL12,'Trial 7'!AL12,'Trial 8'!AL12)","v":{"v":719812.4575272608,"d":"$719,812"}},{"$f":"AVERAGE('Trial 1'!AM12,'Trial 2'!AM12,'Trial 3'!AM12,'Trial 4'!AM12,'Trial 5'!AM12,'Trial 6'!AM12,'Trial 7'!AM12,'Trial 8'!AM12)","v":{"v":719534.6272359039,"d":"$719,535"}},{"v":8651945.589041486,"d":"$8,651,946"},{"$f":"AVERAGE('Trial 1'!AO12,'Trial 2'!AO12,'Trial 3'!AO12,'Trial 4'!AO12,'Trial 5'!AO12,'Trial 6'!AO12,'Trial 7'!AO12,'Trial 8'!AO12)","v":{"v":719278.140620868,"d":"$719,278"}},{"$f":"AVERAGE('Trial 1'!AP12,'Trial 2'!AP12,'Trial 3'!AP12,'Trial 4'!AP12,'Trial 5'!AP12,'Trial 6'!AP12,'Trial 7'!AP12,'Trial 8'!AP12)","v":{"v":718976.7165510196,"d":"$718,977"}},{"$f":"AVERAGE('Trial 1'!AQ12,'Trial 2'!AQ12,'Trial 3'!AQ12,'Trial 4'!AQ12,'Trial 5'!AQ12,'Trial 6'!AQ12,'Trial 7'!AQ12,'Trial 8'!AQ12)","v":{"v":718685.3911928067,"d":"$718,685"}},{"$f":"AVERAGE('Trial 1'!AR12,'Trial 2'!AR12,'Trial 3'!AR12,'Trial 4'!AR12,'Trial 5'!AR12,'Trial 6'!AR12,'Trial 7'!AR12,'Trial 8'!AR12)","v":{"v":718427.535395639,"d":"$718,428"}},{"$f":"AVERAGE('Trial 1'!AS12,'Trial 2'!AS12,'Trial 3'!AS12,'Trial 4'!AS12,'Trial 5'!AS12,'Trial 6'!AS12,'Trial 7'!AS12,'Trial 8'!AS12)","v":{"v":718151.4281146605,"d":"$718,151"}},{"$f":"AVERAGE('Trial 1'!AT12,'Trial 2'!AT12,'Trial 3'!AT12,'Trial 4'!AT12,'Trial 5'!AT12,'Trial 6'!AT12,'Trial 7'!AT12,'Trial 8'!AT12)","v":{"v":717843.3141440724,"d":"$717,843"}},{"$f":"AVERAGE('Trial 1'!AU12,'Trial 2'!AU12,'Trial 3'!AU12,'Trial 4'!AU12,'Trial 5'!AU12,'Trial 6'!AU12,'Trial 7'!AU12,'Trial 8'!AU12)","v":{"v":717534.9857641238,"d":"$717,535"}},{"$f":"AVERAGE('Trial 1'!AV12,'Trial 2'!AV12,'Trial 3'!AV12,'Trial 4'!AV12,'Trial 5'!AV12,'Trial 6'!AV12,'Trial 7'!AV12,'Trial 8'!AV12)","v":{"v":717273.72079949,"d":"$717,274"}},{"$f":"AVERAGE('Trial 1'!AW12,'Trial 2'!AW12,'Trial 3'!AW12,'Trial 4'!AW12,'Trial 5'!AW12,'Trial 6'!AW12,'Trial 7'!AW12,'Trial 8'!AW12)","v":{"v":717012.3424688856,"d":"$717,012"}},{"$f":"AVERAGE('Trial 1'!AX12,'Trial 2'!AX12,'Trial 3'!AX12,'Trial 4'!AX12,'Trial 5'!AX12,'Trial 6'!AX12,'Trial 7'!AX12,'Trial 8'!AX12)","v":{"v":716715.5635761365,"d":"$716,716"}},{"$f":"AVERAGE('Trial 1'!AY12,'Trial 2'!AY12,'Trial 3'!AY12,'Trial 4'!AY12,'Trial 5'!AY12,'Trial 6'!AY12,'Trial 7'!AY12,'Trial 8'!AY12)","v":{"v":716437.658975695,"d":"$716,438"}},{"$f":"AVERAGE('Trial 1'!AZ12,'Trial 2'!AZ12,'Trial 3'!AZ12,'Trial 4'!AZ12,'Trial 5'!AZ12,'Trial 6'!AZ12,'Trial 7'!AZ12,'Trial 8'!AZ12)","v":{"v":716144.3483492634,"d":"$716,144"}},{"v":8612481.14595266,"d":"$8,612,481"},{"$f":"AVERAGE('Trial 1'!BB12,'Trial 2'!BB12,'Trial 3'!BB12,'Trial 4'!BB12,'Trial 5'!BB12,'Trial 6'!BB12,'Trial 7'!BB12,'Trial 8'!BB12)","v":{"v":715860.4484609849,"d":"$715,860"}},{"$f":"AVERAGE('Trial 1'!BC12,'Trial 2'!BC12,'Trial 3'!BC12,'Trial 4'!BC12,'Trial 5'!BC12,'Trial 6'!BC12,'Trial 7'!BC12,'Trial 8'!BC12)","v":{"v":715568.3868998257,"d":"$715,568"}},{"$f":"AVERAGE('Trial 1'!BD12,'Trial 2'!BD12,'Trial 3'!BD12,'Trial 4'!BD12,'Trial 5'!BD12,'Trial 6'!BD12,'Trial 7'!BD12,'Trial 8'!BD12)","v":{"v":715300.8701945222,"d":"$715,301"}},{"$f":"AVERAGE('Trial 1'!BE12,'Trial 2'!BE12,'Trial 3'!BE12,'Trial 4'!BE12,'Trial 5'!BE12,'Trial 6'!BE12,'Trial 7'!BE12,'Trial 8'!BE12)","v":{"v":715040.7270922003,"d":"$715,041"}},{"$f":"AVERAGE('Trial 1'!BF12,'Trial 2'!BF12,'Trial 3'!BF12,'Trial 4'!BF12,'Trial 5'!BF12,'Trial 6'!BF12,'Trial 7'!BF12,'Trial 8'!BF12)","v":{"v":714755.8436335239,"d":"$714,756"}},{"$f":"AVERAGE('Trial 1'!BG12,'Trial 2'!BG12,'Trial 3'!BG12,'Trial 4'!BG12,'Trial 5'!BG12,'Trial 6'!BG12,'Trial 7'!BG12,'Trial 8'!BG12)","v":{"v":714456.3619126849,"d":"$714,456"}},{"$f":"AVERAGE('Trial 1'!BH12,'Trial 2'!BH12,'Trial 3'!BH12,'Trial 4'!BH12,'Trial 5'!BH12,'Trial 6'!BH12,'Trial 7'!BH12,'Trial 8'!BH12)","v":{"v":714153.9935828637,"d":"$714,154"}},{"$f":"AVERAGE('Trial 1'!BI12,'Trial 2'!BI12,'Trial 3'!BI12,'Trial 4'!BI12,'Trial 5'!BI12,'Trial 6'!BI12,'Trial 7'!BI12,'Trial 8'!BI12)","v":{"v":713883.5109766076,"d":"$713,884"}},{"$f":"AVERAGE('Trial 1'!BJ12,'Trial 2'!BJ12,'Trial 3'!BJ12,'Trial 4'!BJ12,'Trial 5'!BJ12,'Trial 6'!BJ12,'Trial 7'!BJ12,'Trial 8'!BJ12)","v":{"v":713578.2246789221,"d":"$713,578"}},{"$f":"AVERAGE('Trial 1'!BK12,'Trial 2'!BK12,'Trial 3'!BK12,'Trial 4'!BK12,'Trial 5'!BK12,'Trial 6'!BK12,'Trial 7'!BK12,'Trial 8'!BK12)","v":{"v":713282.6116283406,"d":"$713,283"}},{"$f":"AVERAGE('Trial 1'!BL12,'Trial 2'!BL12,'Trial 3'!BL12,'Trial 4'!BL12,'Trial 5'!BL12,'Trial 6'!BL12,'Trial 7'!BL12,'Trial 8'!BL12)","v":{"v":712987.7176741263,"d":"$712,988"}},{"$f":"AVERAGE('Trial 1'!BM12,'Trial 2'!BM12,'Trial 3'!BM12,'Trial 4'!BM12,'Trial 5'!BM12,'Trial 6'!BM12,'Trial 7'!BM12,'Trial 8'!BM12)","v":{"v":712679.9948326761,"d":"$712,680"}},{"v":8571548.691567278,"d":"$8,571,549"},{"$f":"AVERAGE('Trial 1'!BO12,'Trial 2'!BO12,'Trial 3'!BO12,'Trial 4'!BO12,'Trial 5'!BO12,'Trial 6'!BO12,'Trial 7'!BO12,'Trial 8'!BO12)","v":{"v":712365.558929696,"d":"$712,366"}},{"$f":"AVERAGE('Trial 1'!BP12,'Trial 2'!BP12,'Trial 3'!BP12,'Trial 4'!BP12,'Trial 5'!BP12,'Trial 6'!BP12,'Trial 7'!BP12,'Trial 8'!BP12)","v":{"v":712033.1770834926,"d":"$712,033"}},{"$f":"AVERAGE('Trial 1'!BQ12,'Trial 2'!BQ12,'Trial 3'!BQ12,'Trial 4'!BQ12,'Trial 5'!BQ12,'Trial 6'!BQ12,'Trial 7'!BQ12,'Trial 8'!BQ12)","v":{"v":711749.047431031,"d":"$711,749"}},{"$f":"AVERAGE('Trial 1'!BR12,'Trial 2'!BR12,'Trial 3'!BR12,'Trial 4'!BR12,'Trial 5'!BR12,'Trial 6'!BR12,'Trial 7'!BR12,'Trial 8'!BR12)","v":{"v":711438.3597297922,"d":"$711,438"}},{"$f":"AVERAGE('Trial 1'!BS12,'Trial 2'!BS12,'Trial 3'!BS12,'Trial 4'!BS12,'Trial 5'!BS12,'Trial 6'!BS12,'Trial 7'!BS12,'Trial 8'!BS12)","v":{"v":711167.3935221498,"d":"$711,167"}},{"$f":"AVERAGE('Trial 1'!BT12,'Trial 2'!BT12,'Trial 3'!BT12,'Trial 4'!BT12,'Trial 5'!BT12,'Trial 6'!BT12,'Trial 7'!BT12,'Trial 8'!BT12)","v":{"v":710860.7440344957,"d":"$710,861"}},{"$f":"AVERAGE('Trial 1'!BU12,'Trial 2'!BU12,'Trial 3'!BU12,'Trial 4'!BU12,'Trial 5'!BU12,'Trial 6'!BU12,'Trial 7'!BU12,'Trial 8'!BU12)","v":{"v":710568.781015389,"d":"$710,569"}},{"$f":"AVERAGE('Trial 1'!BV12,'Trial 2'!BV12,'Trial 3'!BV12,'Trial 4'!BV12,'Trial 5'!BV12,'Trial 6'!BV12,'Trial 7'!BV12,'Trial 8'!BV12)","v":{"v":710248.8900689058,"d":"$710,249"}},{"$f":"AVERAGE('Trial 1'!BW12,'Trial 2'!BW12,'Trial 3'!BW12,'Trial 4'!BW12,'Trial 5'!BW12,'Trial 6'!BW12,'Trial 7'!BW12,'Trial 8'!BW12)","v":{"v":709926.2703622803,"d":"$709,926"}},{"$f":"AVERAGE('Trial 1'!BX12,'Trial 2'!BX12,'Trial 3'!BX12,'Trial 4'!BX12,'Trial 5'!BX12,'Trial 6'!BX12,'Trial 7'!BX12,'Trial 8'!BX12)","v":{"v":709642.2443355691,"d":"$709,642"}},{"$f":"AVERAGE('Trial 1'!BY12,'Trial 2'!BY12,'Trial 3'!BY12,'Trial 4'!BY12,'Trial 5'!BY12,'Trial 6'!BY12,'Trial 7'!BY12,'Trial 8'!BY12)","v":{"v":709307.2892431028,"d":"$709,307"}},{"$f":"AVERAGE('Trial 1'!BZ12,'Trial 2'!BZ12,'Trial 3'!BZ12,'Trial 4'!BZ12,'Trial 5'!BZ12,'Trial 6'!BZ12,'Trial 7'!BZ12,'Trial 8'!BZ12)","v":{"v":709005.9294185683,"d":"$709,006"}},{"v":8528313.685174473,"d":"$8,528,314"},{"$f":"AVERAGE('Trial 1'!CB12,'Trial 2'!CB12,'Trial 3'!CB12,'Trial 4'!CB12,'Trial 5'!CB12,'Trial 6'!CB12,'Trial 7'!CB12,'Trial 8'!CB12)","v":{"v":708697.3465081593,"d":"$708,697"}},{"$f":"AVERAGE('Trial 1'!CC12,'Trial 2'!CC12,'Trial 3'!CC12,'Trial 4'!CC12,'Trial 5'!CC12,'Trial 6'!CC12,'Trial 7'!CC12,'Trial 8'!CC12)","v":{"v":708384.4633180042,"d":"$708,384"}},{"$f":"AVERAGE('Trial 1'!CD12,'Trial 2'!CD12,'Trial 3'!CD12,'Trial 4'!CD12,'Trial 5'!CD12,'Trial 6'!CD12,'Trial 7'!CD12,'Trial 8'!CD12)","v":{"v":708072.2583211806,"d":"$708,072"}},{"$f":"AVERAGE('Trial 1'!CE12,'Trial 2'!CE12,'Trial 3'!CE12,'Trial 4'!CE12,'Trial 5'!CE12,'Trial 6'!CE12,'Trial 7'!CE12,'Trial 8'!CE12)","v":{"v":707731.214511697,"d":"$707,731"}},{"$f":"AVERAGE('Trial 1'!CF12,'Trial 2'!CF12,'Trial 3'!CF12,'Trial 4'!CF12,'Trial 5'!CF12,'Trial 6'!CF12,'Trial 7'!CF12,'Trial 8'!CF12)","v":{"v":707395.2756546568,"d":"$707,395"}},{"$f":"AVERAGE('Trial 1'!CG12,'Trial 2'!CG12,'Trial 3'!CG12,'Trial 4'!CG12,'Trial 5'!CG12,'Trial 6'!CG12,'Trial 7'!CG12,'Trial 8'!CG12)","v":{"v":707071.581187184,"d":"$707,072"}},{"$f":"AVERAGE('Trial 1'!CH12,'Trial 2'!CH12,'Trial 3'!CH12,'Trial 4'!CH12,'Trial 5'!CH12,'Trial 6'!CH12,'Trial 7'!CH12,'Trial 8'!CH12)","v":{"v":706754.8191051749,"d":"$706,755"}},{"$f":"AVERAGE('Trial 1'!CI12,'Trial 2'!CI12,'Trial 3'!CI12,'Trial 4'!CI12,'Trial 5'!CI12,'Trial 6'!CI12,'Trial 7'!CI12,'Trial 8'!CI12)","v":{"v":706418.3128632524,"d":"$706,418"}},{"$f":"AVERAGE('Trial 1'!CJ12,'Trial 2'!CJ12,'Trial 3'!CJ12,'Trial 4'!CJ12,'Trial 5'!CJ12,'Trial 6'!CJ12,'Trial 7'!CJ12,'Trial 8'!CJ12)","v":{"v":706092.0669914432,"d":"$706,092"}},{"$f":"AVERAGE('Trial 1'!CK12,'Trial 2'!CK12,'Trial 3'!CK12,'Trial 4'!CK12,'Trial 5'!CK12,'Trial 6'!CK12,'Trial 7'!CK12,'Trial 8'!CK12)","v":{"v":705795.1623623876,"d":"$705,795"}},{"$f":"AVERAGE('Trial 1'!CL12,'Trial 2'!CL12,'Trial 3'!CL12,'Trial 4'!CL12,'Trial 5'!CL12,'Trial 6'!CL12,'Trial 7'!CL12,'Trial 8'!CL12)","v":{"v":705475.4310022373,"d":"$705,475"}},{"$f":"AVERAGE('Trial 1'!CM12,'Trial 2'!CM12,'Trial 3'!CM12,'Trial 4'!CM12,'Trial 5'!CM12,'Trial 6'!CM12,'Trial 7'!CM12,'Trial 8'!CM12)","v":{"v":705142.4768614583,"d":"$705,142"}},{"v":8483030.408686835,"d":"$8,483,030"},{"$f":"AVERAGE('Trial 1'!CO12,'Trial 2'!CO12,'Trial 3'!CO12,'Trial 4'!CO12,'Trial 5'!CO12,'Trial 6'!CO12,'Trial 7'!CO12,'Trial 8'!CO12)","v":{"v":704784.5627324845,"d":"$704,785"}},{"$f":"AVERAGE('Trial 1'!CP12,'Trial 2'!CP12,'Trial 3'!CP12,'Trial 4'!CP12,'Trial 5'!CP12,'Trial 6'!CP12,'Trial 7'!CP12,'Trial 8'!CP12)","v":{"v":704453.0520187833,"d":"$704,453"}},{"$f":"AVERAGE('Trial 1'!CQ12,'Trial 2'!CQ12,'Trial 3'!CQ12,'Trial 4'!CQ12,'Trial 5'!CQ12,'Trial 6'!CQ12,'Trial 7'!CQ12,'Trial 8'!CQ12)","v":{"v":704114.1428390461,"d":"$704,114"}},{"$f":"AVERAGE('Trial 1'!CR12,'Trial 2'!CR12,'Trial 3'!CR12,'Trial 4'!CR12,'Trial 5'!CR12,'Trial 6'!CR12,'Trial 7'!CR12,'Trial 8'!CR12)","v":{"v":703791.7719348022,"d":"$703,792"}},{"$f":"AVERAGE('Trial 1'!CS12,'Trial 2'!CS12,'Trial 3'!CS12,'Trial 4'!CS12,'Trial 5'!CS12,'Trial 6'!CS12,'Trial 7'!CS12,'Trial 8'!CS12)","v":{"v":703456.0042121932,"d":"$703,456"}},{"$f":"AVERAGE('Trial 1'!CT12,'Trial 2'!CT12,'Trial 3'!CT12,'Trial 4'!CT12,'Trial 5'!CT12,'Trial 6'!CT12,'Trial 7'!CT12,'Trial 8'!CT12)","v":{"v":703132.2754412111,"d":"$703,132"}},{"$f":"AVERAGE('Trial 1'!CU12,'Trial 2'!CU12,'Trial 3'!CU12,'Trial 4'!CU12,'Trial 5'!CU12,'Trial 6'!CU12,'Trial 7'!CU12,'Trial 8'!CU12)","v":{"v":702795.7449556916,"d":"$702,796"}},{"$f":"AVERAGE('Trial 1'!CV12,'Trial 2'!CV12,'Trial 3'!CV12,'Trial 4'!CV12,'Trial 5'!CV12,'Trial 6'!CV12,'Trial 7'!CV12,'Trial 8'!CV12)","v":{"v":702475.7733011559,"d":"$702,476"}},{"$f":"AVERAGE('Trial 1'!CW12,'Trial 2'!CW12,'Trial 3'!CW12,'Trial 4'!CW12,'Trial 5'!CW12,'Trial 6'!CW12,'Trial 7'!CW12,'Trial 8'!CW12)","v":{"v":702143.5398685419,"d":"$702,144"}},{"$f":"AVERAGE('Trial 1'!CX12,'Trial 2'!CX12,'Trial 3'!CX12,'Trial 4'!CX12,'Trial 5'!CX12,'Trial 6'!CX12,'Trial 7'!CX12,'Trial 8'!CX12)","v":{"v":701790.8124744918,"d":"$701,791"}},{"$f":"AVERAGE('Trial 1'!CY12,'Trial 2'!CY12,'Trial 3'!CY12,'Trial 4'!CY12,'Trial 5'!CY12,'Trial 6'!CY12,'Trial 7'!CY12,'Trial 8'!CY12)","v":{"v":701469.086619325,"d":"$701,469"}},{"$f":"AVERAGE('Trial 1'!CZ12,'Trial 2'!CZ12,'Trial 3'!CZ12,'Trial 4'!CZ12,'Trial 5'!CZ12,'Trial 6'!CZ12,'Trial 7'!CZ12,'Trial 8'!CZ12)","v":{"v":701152.4018590387,"d":"$701,152"}},{"v":8435559.168256765,"d":"$8,435,559"},{"$f":"AVERAGE('Trial 1'!DB12,'Trial 2'!DB12,'Trial 3'!DB12,'Trial 4'!DB12,'Trial 5'!DB12,'Trial 6'!DB12,'Trial 7'!DB12,'Trial 8'!DB12)","v":{"v":700841.926153955,"d":"$700,842"}},{"$f":"AVERAGE('Trial 1'!DC12,'Trial 2'!DC12,'Trial 3'!DC12,'Trial 4'!DC12,'Trial 5'!DC12,'Trial 6'!DC12,'Trial 7'!DC12,'Trial 8'!DC12)","v":{"v":700498.0859181304,"d":"$700,498"}},{"$f":"AVERAGE('Trial 1'!DD12,'Trial 2'!DD12,'Trial 3'!DD12,'Trial 4'!DD12,'Trial 5'!DD12,'Trial 6'!DD12,'Trial 7'!DD12,'Trial 8'!DD12)","v":{"v":700158.3218206435,"d":"$700,158"}},{"$f":"AVERAGE('Trial 1'!DE12,'Trial 2'!DE12,'Trial 3'!DE12,'Trial 4'!DE12,'Trial 5'!DE12,'Trial 6'!DE12,'Trial 7'!DE12,'Trial 8'!DE12)","v":{"v":699817.1729665193,"d":"$699,817"}},{"$f":"AVERAGE('Trial 1'!DF12,'Trial 2'!DF12,'Trial 3'!DF12,'Trial 4'!DF12,'Trial 5'!DF12,'Trial 6'!DF12,'Trial 7'!DF12,'Trial 8'!DF12)","v":{"v":699494.9038858438,"d":"$699,495"}},{"$f":"AVERAGE('Trial 1'!DG12,'Trial 2'!DG12,'Trial 3'!DG12,'Trial 4'!DG12,'Trial 5'!DG12,'Trial 6'!DG12,'Trial 7'!DG12,'Trial 8'!DG12)","v":{"v":699163.289607698,"d":"$699,163"}},{"$f":"AVERAGE('Trial 1'!DH12,'Trial 2'!DH12,'Trial 3'!DH12,'Trial 4'!DH12,'Trial 5'!DH12,'Trial 6'!DH12,'Trial 7'!DH12,'Trial 8'!DH12)","v":{"v":698806.5373187145,"d":"$698,807"}},{"$f":"AVERAGE('Trial 1'!DI12,'Trial 2'!DI12,'Trial 3'!DI12,'Trial 4'!DI12,'Trial 5'!DI12,'Trial 6'!DI12,'Trial 7'!DI12,'Trial 8'!DI12)","v":{"v":698478.7337396822,"d":"$698,479"}},{"$f":"AVERAGE('Trial 1'!DJ12,'Trial 2'!DJ12,'Trial 3'!DJ12,'Trial 4'!DJ12,'Trial 5'!DJ12,'Trial 6'!DJ12,'Trial 7'!DJ12,'Trial 8'!DJ12)","v":{"v":698140.0557992512,"d":"$698,140"}},{"$f":"AVERAGE('Trial 1'!DK12,'Trial 2'!DK12,'Trial 3'!DK12,'Trial 4'!DK12,'Trial 5'!DK12,'Trial 6'!DK12,'Trial 7'!DK12,'Trial 8'!DK12)","v":{"v":697816.3125983675,"d":"$697,816"}},{"$f":"AVERAGE('Trial 1'!DL12,'Trial 2'!DL12,'Trial 3'!DL12,'Trial 4'!DL12,'Trial 5'!DL12,'Trial 6'!DL12,'Trial 7'!DL12,'Trial 8'!DL12)","v":{"v":697485.5820814322,"d":"$697,486"}},{"$f":"AVERAGE('Trial 1'!DM12,'Trial 2'!DM12,'Trial 3'!DM12,'Trial 4'!DM12,'Trial 5'!DM12,'Trial 6'!DM12,'Trial 7'!DM12,'Trial 8'!DM12)","v":{"v":697128.6943708502,"d":"$697,129"}},{"v":8387829.616261088,"d":"$8,387,830"},{"$f":"AVERAGE('Trial 1'!DO12,'Trial 2'!DO12,'Trial 3'!DO12,'Trial 4'!DO12,'Trial 5'!DO12,'Trial 6'!DO12,'Trial 7'!DO12,'Trial 8'!DO12)","v":{"v":696803.0550274279,"d":"$696,803"}},{"$f":"AVERAGE('Trial 1'!DP12,'Trial 2'!DP12,'Trial 3'!DP12,'Trial 4'!DP12,'Trial 5'!DP12,'Trial 6'!DP12,'Trial 7'!DP12,'Trial 8'!DP12)","v":{"v":696476.0143487848,"d":"$696,476"}},{"$f":"AVERAGE('Trial 1'!DQ12,'Trial 2'!DQ12,'Trial 3'!DQ12,'Trial 4'!DQ12,'Trial 5'!DQ12,'Trial 6'!DQ12,'Trial 7'!DQ12,'Trial 8'!DQ12)","v":{"v":696127.0268472577,"d":"$696,127"}},{"$f":"AVERAGE('Trial 1'!DR12,'Trial 2'!DR12,'Trial 3'!DR12,'Trial 4'!DR12,'Trial 5'!DR12,'Trial 6'!DR12,'Trial 7'!DR12,'Trial 8'!DR12)","v":{"v":695793.1443574538,"d":"$695,793"}},{"$f":"AVERAGE('Trial 1'!DS12,'Trial 2'!DS12,'Trial 3'!DS12,'Trial 4'!DS12,'Trial 5'!DS12,'Trial 6'!DS12,'Trial 7'!DS12,'Trial 8'!DS12)","v":{"v":695445.9777356562,"d":"$695,446"}},{"$f":"AVERAGE('Trial 1'!DT12,'Trial 2'!DT12,'Trial 3'!DT12,'Trial 4'!DT12,'Trial 5'!DT12,'Trial 6'!DT12,'Trial 7'!DT12,'Trial 8'!DT12)","v":{"v":695113.1923308298,"d":"$695,113"}},{"$f":"AVERAGE('Trial 1'!DU12,'Trial 2'!DU12,'Trial 3'!DU12,'Trial 4'!DU12,'Trial 5'!DU12,'Trial 6'!DU12,'Trial 7'!DU12,'Trial 8'!DU12)","v":{"v":694760.2429695901,"d":"$694,760"}},{"$f":"AVERAGE('Trial 1'!DV12,'Trial 2'!DV12,'Trial 3'!DV12,'Trial 4'!DV12,'Trial 5'!DV12,'Trial 6'!DV12,'Trial 7'!DV12,'Trial 8'!DV12)","v":{"v":694424.8160677108,"d":"$694,425"}},{"$f":"AVERAGE('Trial 1'!DW12,'Trial 2'!DW12,'Trial 3'!DW12,'Trial 4'!DW12,'Trial 5'!DW12,'Trial 6'!DW12,'Trial 7'!DW12,'Trial 8'!DW12)","v":{"v":694048.2218543922,"d":"$694,048"}},{"$f":"AVERAGE('Trial 1'!DX12,'Trial 2'!DX12,'Trial 3'!DX12,'Trial 4'!DX12,'Trial 5'!DX12,'Trial 6'!DX12,'Trial 7'!DX12,'Trial 8'!DX12)","v":{"v":693719.5937698265,"d":"$693,720"}},{"$f":"AVERAGE('Trial 1'!DY12,'Trial 2'!DY12,'Trial 3'!DY12,'Trial 4'!DY12,'Trial 5'!DY12,'Trial 6'!DY12,'Trial 7'!DY12,'Trial 8'!DY12)","v":{"v":693370.4622373345,"d":"$693,370"}},{"$f":"AVERAGE('Trial 1'!DZ12,'Trial 2'!DZ12,'Trial 3'!DZ12,'Trial 4'!DZ12,'Trial 5'!DZ12,'Trial 6'!DZ12,'Trial 7'!DZ12,'Trial 8'!DZ12)","v":{"v":693030.7524458382,"d":"$693,031"}},{"v":8339112.499992102,"d":"$8,339,112"},{"$f":"AVERAGE('Trial 1'!EB12,'Trial 2'!EB12,'Trial 3'!EB12,'Trial 4'!EB12,'Trial 5'!EB12,'Trial 6'!EB12,'Trial 7'!EB12,'Trial 8'!EB12)","v":{"v":692678.946127899,"d":"$692,679"}},{"$f":"AVERAGE('Trial 1'!EC12,'Trial 2'!EC12,'Trial 3'!EC12,'Trial 4'!EC12,'Trial 5'!EC12,'Trial 6'!EC12,'Trial 7'!EC12,'Trial 8'!EC12)","v":{"v":692348.0022499972,"d":"$692,348"}},{"$f":"AVERAGE('Trial 1'!ED12,'Trial 2'!ED12,'Trial 3'!ED12,'Trial 4'!ED12,'Trial 5'!ED12,'Trial 6'!ED12,'Trial 7'!ED12,'Trial 8'!ED12)","v":{"v":692013.7325849422,"d":"$692,014"}},{"$f":"AVERAGE('Trial 1'!EE12,'Trial 2'!EE12,'Trial 3'!EE12,'Trial 4'!EE12,'Trial 5'!EE12,'Trial 6'!EE12,'Trial 7'!EE12,'Trial 8'!EE12)","v":{"v":691633.4239585643,"d":"$691,633"}},{"$f":"AVERAGE('Trial 1'!EF12,'Trial 2'!EF12,'Trial 3'!EF12,'Trial 4'!EF12,'Trial 5'!EF12,'Trial 6'!EF12,'Trial 7'!EF12,'Trial 8'!EF12)","v":{"v":691288.9783956995,"d":"$691,289"}},{"$f":"AVERAGE('Trial 1'!EG12,'Trial 2'!EG12,'Trial 3'!EG12,'Trial 4'!EG12,'Trial 5'!EG12,'Trial 6'!EG12,'Trial 7'!EG12,'Trial 8'!EG12)","v":{"v":690937.4786395014,"d":"$690,937"}},{"$f":"AVERAGE('Trial 1'!EH12,'Trial 2'!EH12,'Trial 3'!EH12,'Trial 4'!EH12,'Trial 5'!EH12,'Trial 6'!EH12,'Trial 7'!EH12,'Trial 8'!EH12)","v":{"v":690583.9743285367,"d":"$690,584"}},{"$f":"AVERAGE('Trial 1'!EI12,'Trial 2'!EI12,'Trial 3'!EI12,'Trial 4'!EI12,'Trial 5'!EI12,'Trial 6'!EI12,'Trial 7'!EI12,'Trial 8'!EI12)","v":{"v":690239.0399622844,"d":"$690,239"}},{"$f":"AVERAGE('Trial 1'!EJ12,'Trial 2'!EJ12,'Trial 3'!EJ12,'Trial 4'!EJ12,'Trial 5'!EJ12,'Trial 6'!EJ12,'Trial 7'!EJ12,'Trial 8'!EJ12)","v":{"v":689889.9554993217,"d":"$689,890"}},{"$f":"AVERAGE('Trial 1'!EK12,'Trial 2'!EK12,'Trial 3'!EK12,'Trial 4'!EK12,'Trial 5'!EK12,'Trial 6'!EK12,'Trial 7'!EK12,'Trial 8'!EK12)","v":{"v":689544.6279246763,"d":"$689,545"}},{"$f":"AVERAGE('Trial 1'!EL12,'Trial 2'!EL12,'Trial 3'!EL12,'Trial 4'!EL12,'Trial 5'!EL12,'Trial 6'!EL12,'Trial 7'!EL12,'Trial 8'!EL12)","v":{"v":689179.3453595592,"d":"$689,179"}},{"$f":"AVERAGE('Trial 1'!EM12,'Trial 2'!EM12,'Trial 3'!EM12,'Trial 4'!EM12,'Trial 5'!EM12,'Trial 6'!EM12,'Trial 7'!EM12,'Trial 8'!EM12)","v":{"v":688828.9000941879,"d":"$688,829"}},{"v":8289166.405125168,"d":"$8,289,166"}]
[{"$f":"Labels!B27","v":"Consumption std dev"},{"$f":"STDEV('Trial 1'!B12,'Trial 2'!B12,'Trial 3'!B12,'Trial 4'!B12,'Trial 5'!B12,'Trial 6'!B12,'Trial 7'!B12,'Trial 8'!B12)","v":{"v":0,"d":"$0"}},{"$f":"STDEV('Trial 1'!C12,'Trial 2'!C12,'Trial 3'!C12,'Trial 4'!C12,'Trial 5'!C12,'Trial 6'!C12,'Trial 7'!C12,'Trial 8'!C12)","v":{"v":32.33529606086942,"d":"$32"}},{"$f":"STDEV('Trial 1'!D12,'Trial 2'!D12,'Trial 3'!D12,'Trial 4'!D12,'Trial 5'!D12,'Trial 6'!D12,'Trial 7'!D12,'Trial 8'!D12)","v":{"v":89.24570156576942,"d":"$89"}},{"$f":"STDEV('Trial 1'!E12,'Trial 2'!E12,'Trial 3'!E12,'Trial 4'!E12,'Trial 5'!E12,'Trial 6'!E12,'Trial 7'!E12,'Trial 8'!E12)","v":{"v":86.6107463102038,"d":"$87"}},{"$f":"STDEV('Trial 1'!F12,'Trial 2'!F12,'Trial 3'!F12,'Trial 4'!F12,'Trial 5'!F12,'Trial 6'!F12,'Trial 7'!F12,'Trial 8'!F12)","v":{"v":81.26013048222903,"d":"$81"}},{"$f":"STDEV('Trial 1'!G12,'Trial 2'!G12,'Trial 3'!G12,'Trial 4'!G12,'Trial 5'!G12,'Trial 6'!G12,'Trial 7'!G12,'Trial 8'!G12)","v":{"v":92.81529837098076,"d":"$93"}},{"$f":"STDEV('Trial 1'!H12,'Trial 2'!H12,'Trial 3'!H12,'Trial 4'!H12,'Trial 5'!H12,'Trial 6'!H12,'Trial 7'!H12,'Trial 8'!H12)","v":{"v":122.3505583762839,"d":"$122"}},{"$f":"STDEV('Trial 1'!I12,'Trial 2'!I12,'Trial 3'!I12,'Trial 4'!I12,'Trial 5'!I12,'Trial 6'!I12,'Trial 7'!I12,'Trial 8'!I12)","v":{"v":127.55586144213535,"d":"$128"}},{"$f":"STDEV('Trial 1'!J12,'Trial 2'!J12,'Trial 3'!J12,'Trial 4'!J12,'Trial 5'!J12,'Trial 6'!J12,'Trial 7'!J12,'Trial 8'!J12)","v":{"v":126.79642958657777,"d":"$127"}},{"$f":"STDEV('Trial 1'!K12,'Trial 2'!K12,'Trial 3'!K12,'Trial 4'!K12,'Trial 5'!K12,'Trial 6'!K12,'Trial 7'!K12,'Trial 8'!K12)","v":{"v":141.47280531979177,"d":"$141"}},{"$f":"STDEV('Trial 1'!L12,'Trial 2'!L12,'Trial 3'!L12,'Trial 4'!L12,'Trial 5'!L12,'Trial 6'!L12,'Trial 7'!L12,'Trial 8'!L12)","v":{"v":127.82368113429118,"d":"$128"}},{"$f":"STDEV('Trial 1'!M12,'Trial 2'!M12,'Trial 3'!M12,'Trial 4'!M12,'Trial 5'!M12,'Trial 6'!M12,'Trial 7'!M12,'Trial 8'!M12)","v":{"v":121.81342136944616,"d":"$122"}},{"v":1150.0799300185786,"d":"$1,150"},{"$f":"STDEV('Trial 1'!O12,'Trial 2'!O12,'Trial 3'!O12,'Trial 4'!O12,'Trial 5'!O12,'Trial 6'!O12,'Trial 7'!O12,'Trial 8'!O12)","v":{"v":147.48538195977616,"d":"$147"}},{"$f":"STDEV('Trial 1'!P12,'Trial 2'!P12,'Trial 3'!P12,'Trial 4'!P12,'Trial 5'!P12,'Trial 6'!P12,'Trial 7'!P12,'Trial 8'!P12)","v":{"v":154.92987144452465,"d":"$155"}},{"$f":"STDEV('Trial 1'!Q12,'Trial 2'!Q12,'Trial 3'!Q12,'Trial 4'!Q12,'Trial 5'!Q12,'Trial 6'!Q12,'Trial 7'!Q12,'Trial 8'!Q12)","v":{"v":135.13185121343352,"d":"$135"}},{"$f":"STDEV('Trial 1'!R12,'Trial 2'!R12,'Trial 3'!R12,'Trial 4'!R12,'Trial 5'!R12,'Trial 6'!R12,'Trial 7'!R12,'Trial 8'!R12)","v":{"v":144.44925449498768,"d":"$144"}},{"$f":"STDEV('Trial 1'!S12,'Trial 2'!S12,'Trial 3'!S12,'Trial 4'!S12,'Trial 5'!S12,'Trial 6'!S12,'Trial 7'!S12,'Trial 8'!S12)","v":{"v":169.57900570541355,"d":"$170"}},{"$f":"STDEV('Trial 1'!T12,'Trial 2'!T12,'Trial 3'!T12,'Trial 4'!T12,'Trial 5'!T12,'Trial 6'!T12,'Trial 7'!T12,'Trial 8'!T12)","v":{"v":192.4088460452401,"d":"$192"}},{"$f":"STDEV('Trial 1'!U12,'Trial 2'!U12,'Trial 3'!U12,'Trial 4'!U12,'Trial 5'!U12,'Trial 6'!U12,'Trial 7'!U12,'Trial 8'!U12)","v":{"v":140.13040771084377,"d":"$140"}},{"$f":"STDEV('Trial 1'!V12,'Trial 2'!V12,'Trial 3'!V12,'Trial 4'!V12,'Trial 5'!V12,'Trial 6'!V12,'Trial 7'!V12,'Trial 8'!V12)","v":{"v":132.6951059937648,"d":"$133"}},{"$f":"STDEV('Trial 1'!W12,'Trial 2'!W12,'Trial 3'!W12,'Trial 4'!W12,'Trial 5'!W12,'Trial 6'!W12,'Trial 7'!W12,'Trial 8'!W12)","v":{"v":134.03246600873342,"d":"$134"}},{"$f":"STDEV('Trial 1'!X12,'Trial 2'!X12,'Trial 3'!X12,'Trial 4'!X12,'Trial 5'!X12,'Trial 6'!X12,'Trial 7'!X12,'Trial 8'!X12)","v":{"v":133.83067556946415,"d":"$134"}},{"$f":"STDEV('Trial 1'!Y12,'Trial 2'!Y12,'Trial 3'!Y12,'Trial 4'!Y12,'Trial 5'!Y12,'Trial 6'!Y12,'Trial 7'!Y12,'Trial 8'!Y12)","v":{"v":148.90678099107583,"d":"$149"}},{"$f":"STDEV('Trial 1'!Z12,'Trial 2'!Z12,'Trial 3'!Z12,'Trial 4'!Z12,'Trial 5'!Z12,'Trial 6'!Z12,'Trial 7'!Z12,'Trial 8'!Z12)","v":{"v":148.85507438042725,"d":"$149"}},{"v":1782.434721517685,"d":"$1,782"},{"$f":"STDEV('Trial 1'!AB12,'Trial 2'!AB12,'Trial 3'!AB12,'Trial 4'!AB12,'Trial 5'!AB12,'Trial 6'!AB12,'Trial 7'!AB12,'Trial 8'!AB12)","v":{"v":142.61909457914388,"d":"$143"}},{"$f":"STDEV('Trial 1'!AC12,'Trial 2'!AC12,'Trial 3'!AC12,'Trial 4'!AC12,'Trial 5'!AC12,'Trial 6'!AC12,'Trial 7'!AC12,'Trial 8'!AC12)","v":{"v":164.1598786056562,"d":"$164"}},{"$f":"STDEV('Trial 1'!AD12,'Trial 2'!AD12,'Trial 3'!AD12,'Trial 4'!AD12,'Trial 5'!AD12,'Trial 6'!AD12,'Trial 7'!AD12,'Trial 8'!AD12)","v":{"v":163.65941131289878,"d":"$164"}},{"$f":"STDEV('Trial 1'!AE12,'Trial 2'!AE12,'Trial 3'!AE12,'Trial 4'!AE12,'Trial 5'!AE12,'Trial 6'!AE12,'Trial 7'!AE12,'Trial 8'!AE12)","v":{"v":146.48925783242188,"d":"$146"}},{"$f":"STDEV('Trial 1'!AF12,'Trial 2'!AF12,'Trial 3'!AF12,'Trial 4'!AF12,'Trial 5'!AF12,'Trial 6'!AF12,'Trial 7'!AF12,'Trial 8'!AF12)","v":{"v":148.1236284394394,"d":"$148"}},{"$f":"STDEV('Trial 1'!AG12,'Trial 2'!AG12,'Trial 3'!AG12,'Trial 4'!AG12,'Trial 5'!AG12,'Trial 6'!AG12,'Trial 7'!AG12,'Trial 8'!AG12)","v":{"v":183.0530704714972,"d":"$183"}},{"$f":"STDEV('Trial 1'!AH12,'Trial 2'!AH12,'Trial 3'!AH12,'Trial 4'!AH12,'Trial 5'!AH12,'Trial 6'!AH12,'Trial 7'!AH12,'Trial 8'!AH12)","v":{"v":182.32974387941957,"d":"$182"}},{"$f":"STDEV('Trial 1'!AI12,'Trial 2'!AI12,'Trial 3'!AI12,'Trial 4'!AI12,'Trial 5'!AI12,'Trial 6'!AI12,'Trial 7'!AI12,'Trial 8'!AI12)","v":{"v":182.3664320070848,"d":"$182"}},{"$f":"STDEV('Trial 1'!AJ12,'Trial 2'!AJ12,'Trial 3'!AJ12,'Trial 4'!AJ12,'Trial 5'!AJ12,'Trial 6'!AJ12,'Trial 7'!AJ12,'Trial 8'!AJ12)","v":{"v":175.49625544784223,"d":"$175"}},{"$f":"STDEV('Trial 1'!AK12,'Trial 2'!AK12,'Trial 3'!AK12,'Trial 4'!AK12,'Trial 5'!AK12,'Trial 6'!AK12,'Trial 7'!AK12,'Trial 8'!AK12)","v":{"v":140.90378265356125,"d":"$141"}},{"$f":"STDEV('Trial 1'!AL12,'Trial 2'!AL12,'Trial 3'!AL12,'Trial 4'!AL12,'Trial 5'!AL12,'Trial 6'!AL12,'Trial 7'!AL12,'Trial 8'!AL12)","v":{"v":123.6670379777387,"d":"$124"}},{"$f":"STDEV('Trial 1'!AM12,'Trial 2'!AM12,'Trial 3'!AM12,'Trial 4'!AM12,'Trial 5'!AM12,'Trial 6'!AM12,'Trial 7'!AM12,'Trial 8'!AM12)","v":{"v":118.09840774779244,"d":"$118"}},{"v":1870.9660009544964,"d":"$1,871"},{"$f":"STDEV('Trial 1'!AO12,'Trial 2'!AO12,'Trial 3'!AO12,'Trial 4'!AO12,'Trial 5'!AO12,'Trial 6'!AO12,'Trial 7'!AO12,'Trial 8'!AO12)","v":{"v":127.83106711259725,"d":"$128"}},{"$f":"STDEV('Trial 1'!AP12,'Trial 2'!AP12,'Trial 3'!AP12,'Trial 4'!AP12,'Trial 5'!AP12,'Trial 6'!AP12,'Trial 7'!AP12,'Trial 8'!AP12)","v":{"v":107.45828811802632,"d":"$107"}},{"$f":"STDEV('Trial 1'!AQ12,'Trial 2'!AQ12,'Trial 3'!AQ12,'Trial 4'!AQ12,'Trial 5'!AQ12,'Trial 6'!AQ12,'Trial 7'!AQ12,'Trial 8'!AQ12)","v":{"v":112.23047896367873,"d":"$112"}},{"$f":"STDEV('Trial 1'!AR12,'Trial 2'!AR12,'Trial 3'!AR12,'Trial 4'!AR12,'Trial 5'!AR12,'Trial 6'!AR12,'Trial 7'!AR12,'Trial 8'!AR12)","v":{"v":132.7441480398686,"d":"$133"}},{"$f":"STDEV('Trial 1'!AS12,'Trial 2'!AS12,'Trial 3'!AS12,'Trial 4'!AS12,'Trial 5'!AS12,'Trial 6'!AS12,'Trial 7'!AS12,'Trial 8'!AS12)","v":{"v":111.81676105685067,"d":"$112"}},{"$f":"STDEV('Trial 1'!AT12,'Trial 2'!AT12,'Trial 3'!AT12,'Trial 4'!AT12,'Trial 5'!AT12,'Trial 6'!AT12,'Trial 7'!AT12,'Trial 8'!AT12)","v":{"v":127.0724703486592,"d":"$127"}},{"$f":"STDEV('Trial 1'!AU12,'Trial 2'!AU12,'Trial 3'!AU12,'Trial 4'!AU12,'Trial 5'!AU12,'Trial 6'!AU12,'Trial 7'!AU12,'Trial 8'!AU12)","v":{"v":136.2428913887102,"d":"$136"}},{"$f":"STDEV('Trial 1'!AV12,'Trial 2'!AV12,'Trial 3'!AV12,'Trial 4'!AV12,'Trial 5'!AV12,'Trial 6'!AV12,'Trial 7'!AV12,'Trial 8'!AV12)","v":{"v":140.64986888628394,"d":"$141"}},{"$f":"STDEV('Trial 1'!AW12,'Trial 2'!AW12,'Trial 3'!AW12,'Trial 4'!AW12,'Trial 5'!AW12,'Trial 6'!AW12,'Trial 7'!AW12,'Trial 8'!AW12)","v":{"v":147.05335669243516,"d":"$147"}},{"$f":"STDEV('Trial 1'!AX12,'Trial 2'!AX12,'Trial 3'!AX12,'Trial 4'!AX12,'Trial 5'!AX12,'Trial 6'!AX12,'Trial 7'!AX12,'Trial 8'!AX12)","v":{"v":139.69500457281575,"d":"$140"}},{"$f":"STDEV('Trial 1'!AY12,'Trial 2'!AY12,'Trial 3'!AY12,'Trial 4'!AY12,'Trial 5'!AY12,'Trial 6'!AY12,'Trial 7'!AY12,'Trial 8'!AY12)","v":{"v":177.70313102730745,"d":"$178"}},{"$f":"STDEV('Trial 1'!AZ12,'Trial 2'!AZ12,'Trial 3'!AZ12,'Trial 4'!AZ12,'Trial 5'!AZ12,'Trial 6'!AZ12,'Trial 7'!AZ12,'Trial 8'!AZ12)","v":{"v":174.5603795486065,"d":"$175"}},{"v":1635.0578457558397,"d":"$1,635"},{"$f":"STDEV('Trial 1'!BB12,'Trial 2'!BB12,'Trial 3'!BB12,'Trial 4'!BB12,'Trial 5'!BB12,'Trial 6'!BB12,'Trial 7'!BB12,'Trial 8'!BB12)","v":{"v":161.40664612597755,"d":"$161"}},{"$f":"STDEV('Trial 1'!BC12,'Trial 2'!BC12,'Trial 3'!BC12,'Trial 4'!BC12,'Trial 5'!BC12,'Trial 6'!BC12,'Trial 7'!BC12,'Trial 8'!BC12)","v":{"v":188.82520703093826,"d":"$189"}},{"$f":"STDEV('Trial 1'!BD12,'Trial 2'!BD12,'Trial 3'!BD12,'Trial 4'!BD12,'Trial 5'!BD12,'Trial 6'!BD12,'Trial 7'!BD12,'Trial 8'!BD12)","v":{"v":207.45929190394102,"d":"$207"}},{"$f":"STDEV('Trial 1'!BE12,'Trial 2'!BE12,'Trial 3'!BE12,'Trial 4'!BE12,'Trial 5'!BE12,'Trial 6'!BE12,'Trial 7'!BE12,'Trial 8'!BE12)","v":{"v":201.91518566727746,"d":"$202"}},{"$f":"STDEV('Trial 1'!BF12,'Trial 2'!BF12,'Trial 3'!BF12,'Trial 4'!BF12,'Trial 5'!BF12,'Trial 6'!BF12,'Trial 7'!BF12,'Trial 8'!BF12)","v":{"v":207.50409073290604,"d":"$208"}},{"$f":"STDEV('Trial 1'!BG12,'Trial 2'!BG12,'Trial 3'!BG12,'Trial 4'!BG12,'Trial 5'!BG12,'Trial 6'!BG12,'Trial 7'!BG12,'Trial 8'!BG12)","v":{"v":204.7710300661745,"d":"$205"}},{"$f":"STDEV('Trial 1'!BH12,'Trial 2'!BH12,'Trial 3'!BH12,'Trial 4'!BH12,'Trial 5'!BH12,'Trial 6'!BH12,'Trial 7'!BH12,'Trial 8'!BH12)","v":{"v":215.34584240901285,"d":"$215"}},{"$f":"STDEV('Trial 1'!BI12,'Trial 2'!BI12,'Trial 3'!BI12,'Trial 4'!BI12,'Trial 5'!BI12,'Trial 6'!BI12,'Trial 7'!BI12,'Trial 8'!BI12)","v":{"v":225.5425195219659,"d":"$226"}},{"$f":"STDEV('Trial 1'!BJ12,'Trial 2'!BJ12,'Trial 3'!BJ12,'Trial 4'!BJ12,'Trial 5'!BJ12,'Trial 6'!BJ12,'Trial 7'!BJ12,'Trial 8'!BJ12)","v":{"v":241.48884153461373,"d":"$241"}},{"$f":"STDEV('Trial 1'!BK12,'Trial 2'!BK12,'Trial 3'!BK12,'Trial 4'!BK12,'Trial 5'!BK12,'Trial 6'!BK12,'Trial 7'!BK12,'Trial 8'!BK12)","v":{"v":227.39782215214112,"d":"$227"}},{"$f":"STDEV('Trial 1'!BL12,'Trial 2'!BL12,'Trial 3'!BL12,'Trial 4'!BL12,'Trial 5'!BL12,'Trial 6'!BL12,'Trial 7'!BL12,'Trial 8'!BL12)","v":{"v":224.25106520024167,"d":"$224"}},{"$f":"STDEV('Trial 1'!BM12,'Trial 2'!BM12,'Trial 3'!BM12,'Trial 4'!BM12,'Trial 5'!BM12,'Trial 6'!BM12,'Trial 7'!BM12,'Trial 8'!BM12)","v":{"v":257.68144744640574,"d":"$258"}},{"v":2563.588989791596,"d":"$2,564"},{"$f":"STDEV('Trial 1'!BO12,'Trial 2'!BO12,'Trial 3'!BO12,'Trial 4'!BO12,'Trial 5'!BO12,'Trial 6'!BO12,'Trial 7'!BO12,'Trial 8'!BO12)","v":{"v":218.84901429162375,"d":"$219"}},{"$f":"STDEV('Trial 1'!BP12,'Trial 2'!BP12,'Trial 3'!BP12,'Trial 4'!BP12,'Trial 5'!BP12,'Trial 6'!BP12,'Trial 7'!BP12,'Trial 8'!BP12)","v":{"v":245.0816913937451,"d":"$245"}},{"$f":"STDEV('Trial 1'!BQ12,'Trial 2'!BQ12,'Trial 3'!BQ12,'Trial 4'!BQ12,'Trial 5'!BQ12,'Trial 6'!BQ12,'Trial 7'!BQ12,'Trial 8'!BQ12)","v":{"v":261.5027628608851,"d":"$262"}},{"$f":"STDEV('Trial 1'!BR12,'Trial 2'!BR12,'Trial 3'!BR12,'Trial 4'!BR12,'Trial 5'!BR12,'Trial 6'!BR12,'Trial 7'!BR12,'Trial 8'!BR12)","v":{"v":272.0722248113782,"d":"$272"}},{"$f":"STDEV('Trial 1'!BS12,'Trial 2'!BS12,'Trial 3'!BS12,'Trial 4'!BS12,'Trial 5'!BS12,'Trial 6'!BS12,'Trial 7'!BS12,'Trial 8'!BS12)","v":{"v":274.34127362527653,"d":"$274"}},{"$f":"STDEV('Trial 1'!BT12,'Trial 2'!BT12,'Trial 3'!BT12,'Trial 4'!BT12,'Trial 5'!BT12,'Trial 6'!BT12,'Trial 7'!BT12,'Trial 8'!BT12)","v":{"v":278.9982563205331,"d":"$279"}},{"$f":"STDEV('Trial 1'!BU12,'Trial 2'!BU12,'Trial 3'!BU12,'Trial 4'!BU12,'Trial 5'!BU12,'Trial 6'!BU12,'Trial 7'!BU12,'Trial 8'!BU12)","v":{"v":306.2604817354701,"d":"$306"}},{"$f":"STDEV('Trial 1'!BV12,'Trial 2'!BV12,'Trial 3'!BV12,'Trial 4'!BV12,'Trial 5'!BV12,'Trial 6'!BV12,'Trial 7'!BV12,'Trial 8'!BV12)","v":{"v":297.59247281416214,"d":"$298"}},{"$f":"STDEV('Trial 1'!BW12,'Trial 2'!BW12,'Trial 3'!BW12,'Trial 4'!BW12,'Trial 5'!BW12,'Trial 6'!BW12,'Trial 7'!BW12,'Trial 8'!BW12)","v":{"v":294.244304621195,"d":"$294"}},{"$f":"STDEV('Trial 1'!BX12,'Trial 2'!BX12,'Trial 3'!BX12,'Trial 4'!BX12,'Trial 5'!BX12,'Trial 6'!BX12,'Trial 7'!BX12,'Trial 8'!BX12)","v":{"v":309.5197778974288,"d":"$310"}},{"$f":"STDEV('Trial 1'!BY12,'Trial 2'!BY12,'Trial 3'!BY12,'Trial 4'!BY12,'Trial 5'!BY12,'Trial 6'!BY12,'Trial 7'!BY12,'Trial 8'!BY12)","v":{"v":312.04541882591604,"d":"$312"}},{"$f":"STDEV('Trial 1'!BZ12,'Trial 2'!BZ12,'Trial 3'!BZ12,'Trial 4'!BZ12,'Trial 5'!BZ12,'Trial 6'!BZ12,'Trial 7'!BZ12,'Trial 8'!BZ12)","v":{"v":299.8285362115654,"d":"$300"}},{"v":3370.336215409179,"d":"$3,370"},{"$f":"STDEV('Trial 1'!CB12,'Trial 2'!CB12,'Trial 3'!CB12,'Trial 4'!CB12,'Trial 5'!CB12,'Trial 6'!CB12,'Trial 7'!CB12,'Trial 8'!CB12)","v":{"v":292.5949783475521,"d":"$293"}},{"$f":"STDEV('Trial 1'!CC12,'Trial 2'!CC12,'Trial 3'!CC12,'Trial 4'!CC12,'Trial 5'!CC12,'Trial 6'!CC12,'Trial 7'!CC12,'Trial 8'!CC12)","v":{"v":261.2878672863892,"d":"$261"}},{"$f":"STDEV('Trial 1'!CD12,'Trial 2'!CD12,'Trial 3'!CD12,'Trial 4'!CD12,'Trial 5'!CD12,'Trial 6'!CD12,'Trial 7'!CD12,'Trial 8'!CD12)","v":{"v":257.4065423337463,"d":"$257"}},{"$f":"STDEV('Trial 1'!CE12,'Trial 2'!CE12,'Trial 3'!CE12,'Trial 4'!CE12,'Trial 5'!CE12,'Trial 6'!CE12,'Trial 7'!CE12,'Trial 8'!CE12)","v":{"v":259.12489340231656,"d":"$259"}},{"$f":"STDEV('Trial 1'!CF12,'Trial 2'!CF12,'Trial 3'!CF12,'Trial 4'!CF12,'Trial 5'!CF12,'Trial 6'!CF12,'Trial 7'!CF12,'Trial 8'!CF12)","v":{"v":269.8791125776547,"d":"$270"}},{"$f":"STDEV('Trial 1'!CG12,'Trial 2'!CG12,'Trial 3'!CG12,'Trial 4'!CG12,'Trial 5'!CG12,'Trial 6'!CG12,'Trial 7'!CG12,'Trial 8'!CG12)","v":{"v":280.0736097708775,"d":"$280"}},{"$f":"STDEV('Trial 1'!CH12,'Trial 2'!CH12,'Trial 3'!CH12,'Trial 4'!CH12,'Trial 5'!CH12,'Trial 6'!CH12,'Trial 7'!CH12,'Trial 8'!CH12)","v":{"v":265.4082328793286,"d":"$265"}},{"$f":"STDEV('Trial 1'!CI12,'Trial 2'!CI12,'Trial 3'!CI12,'Trial 4'!CI12,'Trial 5'!CI12,'Trial 6'!CI12,'Trial 7'!CI12,'Trial 8'!CI12)","v":{"v":250.73504033884038,"d":"$251"}},{"$f":"STDEV('Trial 1'!CJ12,'Trial 2'!CJ12,'Trial 3'!CJ12,'Trial 4'!CJ12,'Trial 5'!CJ12,'Trial 6'!CJ12,'Trial 7'!CJ12,'Trial 8'!CJ12)","v":{"v":234.65839031193715,"d":"$235"}},{"$f":"STDEV('Trial 1'!CK12,'Trial 2'!CK12,'Trial 3'!CK12,'Trial 4'!CK12,'Trial 5'!CK12,'Trial 6'!CK12,'Trial 7'!CK12,'Trial 8'!CK12)","v":{"v":222.67919406216586,"d":"$223"}},{"$f":"STDEV('Trial 1'!CL12,'Trial 2'!CL12,'Trial 3'!CL12,'Trial 4'!CL12,'Trial 5'!CL12,'Trial 6'!CL12,'Trial 7'!CL12,'Trial 8'!CL12)","v":{"v":234.68742556584002,"d":"$235"}},{"$f":"STDEV('Trial 1'!CM12,'Trial 2'!CM12,'Trial 3'!CM12,'Trial 4'!CM12,'Trial 5'!CM12,'Trial 6'!CM12,'Trial 7'!CM12,'Trial 8'!CM12)","v":{"v":243.22683363076757,"d":"$243"}},{"v":3071.762120507416,"d":"$3,072"},{"$f":"STDEV('Trial 1'!CO12,'Trial 2'!CO12,'Trial 3'!CO12,'Trial 4'!CO12,'Trial 5'!CO12,'Trial 6'!CO12,'Trial 7'!CO12,'Trial 8'!CO12)","v":{"v":230.76716994842118,"d":"$231"}},{"$f":"STDEV('Trial 1'!CP12,'Trial 2'!CP12,'Trial 3'!CP12,'Trial 4'!CP12,'Trial 5'!CP12,'Trial 6'!CP12,'Trial 7'!CP12,'Trial 8'!CP12)","v":{"v":230.13893762331114,"d":"$230"}},{"$f":"STDEV('Trial 1'!CQ12,'Trial 2'!CQ12,'Trial 3'!CQ12,'Trial 4'!CQ12,'Trial 5'!CQ12,'Trial 6'!CQ12,'Trial 7'!CQ12,'Trial 8'!CQ12)","v":{"v":228.30928045172809,"d":"$228"}},{"$f":"STDEV('Trial 1'!CR12,'Trial 2'!CR12,'Trial 3'!CR12,'Trial 4'!CR12,'Trial 5'!CR12,'Trial 6'!CR12,'Trial 7'!CR12,'Trial 8'!CR12)","v":{"v":241.09610719725214,"d":"$241"}},{"$f":"STDEV('Trial 1'!CS12,'Trial 2'!CS12,'Trial 3'!CS12,'Trial 4'!CS12,'Trial 5'!CS12,'Trial 6'!CS12,'Trial 7'!CS12,'Trial 8'!CS12)","v":{"v":231.10198246620737,"d":"$231"}},{"$f":"STDEV('Trial 1'!CT12,'Trial 2'!CT12,'Trial 3'!CT12,'Trial 4'!CT12,'Trial 5'!CT12,'Trial 6'!CT12,'Trial 7'!CT12,'Trial 8'!CT12)","v":{"v":227.04197285604766,"d":"$227"}},{"$f":"STDEV('Trial 1'!CU12,'Trial 2'!CU12,'Trial 3'!CU12,'Trial 4'!CU12,'Trial 5'!CU12,'Trial 6'!CU12,'Trial 7'!CU12,'Trial 8'!CU12)","v":{"v":249.90242547807938,"d":"$250"}},{"$f":"STDEV('Trial 1'!CV12,'Trial 2'!CV12,'Trial 3'!CV12,'Trial 4'!CV12,'Trial 5'!CV12,'Trial 6'!CV12,'Trial 7'!CV12,'Trial 8'!CV12)","v":{"v":249.7325294102306,"d":"$250"}},{"$f":"STDEV('Trial 1'!CW12,'Trial 2'!CW12,'Trial 3'!CW12,'Trial 4'!CW12,'Trial 5'!CW12,'Trial 6'!CW12,'Trial 7'!CW12,'Trial 8'!CW12)","v":{"v":264.22421354371005,"d":"$264"}},{"$f":"STDEV('Trial 1'!CX12,'Trial 2'!CX12,'Trial 3'!CX12,'Trial 4'!CX12,'Trial 5'!CX12,'Trial 6'!CX12,'Trial 7'!CX12,'Trial 8'!CX12)","v":{"v":234.59707877371213,"d":"$235"}},{"$f":"STDEV('Trial 1'!CY12,'Trial 2'!CY12,'Trial 3'!CY12,'Trial 4'!CY12,'Trial 5'!CY12,'Trial 6'!CY12,'Trial 7'!CY12,'Trial 8'!CY12)","v":{"v":237.17886895034962,"d":"$237"}},{"$f":"STDEV('Trial 1'!CZ12,'Trial 2'!CZ12,'Trial 3'!CZ12,'Trial 4'!CZ12,'Trial 5'!CZ12,'Trial 6'!CZ12,'Trial 7'!CZ12,'Trial 8'!CZ12)","v":{"v":240.95399969358826,"d":"$241"}},{"v":2865.044566392637,"d":"$2,865"},{"$f":"STDEV('Trial 1'!DB12,'Trial 2'!DB12,'Trial 3'!DB12,'Trial 4'!DB12,'Trial 5'!DB12,'Trial 6'!DB12,'Trial 7'!DB12,'Trial 8'!DB12)","v":{"v":256.505374405033,"d":"$257"}},{"$f":"STDEV('Trial 1'!DC12,'Trial 2'!DC12,'Trial 3'!DC12,'Trial 4'!DC12,'Trial 5'!DC12,'Trial 6'!DC12,'Trial 7'!DC12,'Trial 8'!DC12)","v":{"v":260.7006039744992,"d":"$261"}},{"$f":"STDEV('Trial 1'!DD12,'Trial 2'!DD12,'Trial 3'!DD12,'Trial 4'!DD12,'Trial 5'!DD12,'Trial 6'!DD12,'Trial 7'!DD12,'Trial 8'!DD12)","v":{"v":259.06109091945984,"d":"$259"}},{"$f":"STDEV('Trial 1'!DE12,'Trial 2'!DE12,'Trial 3'!DE12,'Trial 4'!DE12,'Trial 5'!DE12,'Trial 6'!DE12,'Trial 7'!DE12,'Trial 8'!DE12)","v":{"v":269.3475224294249,"d":"$269"}},{"$f":"STDEV('Trial 1'!DF12,'Trial 2'!DF12,'Trial 3'!DF12,'Trial 4'!DF12,'Trial 5'!DF12,'Trial 6'!DF12,'Trial 7'!DF12,'Trial 8'!DF12)","v":{"v":291.0572924315278,"d":"$291"}},{"$f":"STDEV('Trial 1'!DG12,'Trial 2'!DG12,'Trial 3'!DG12,'Trial 4'!DG12,'Trial 5'!DG12,'Trial 6'!DG12,'Trial 7'!DG12,'Trial 8'!DG12)","v":{"v":262.82466061102593,"d":"$263"}},{"$f":"STDEV('Trial 1'!DH12,'Trial 2'!DH12,'Trial 3'!DH12,'Trial 4'!DH12,'Trial 5'!DH12,'Trial 6'!DH12,'Trial 7'!DH12,'Trial 8'!DH12)","v":{"v":266.4723764259026,"d":"$266"}},{"$f":"STDEV('Trial 1'!DI12,'Trial 2'!DI12,'Trial 3'!DI12,'Trial 4'!DI12,'Trial 5'!DI12,'Trial 6'!DI12,'Trial 7'!DI12,'Trial 8'!DI12)","v":{"v":289.6218096333547,"d":"$290"}},{"$f":"STDEV('Trial 1'!DJ12,'Trial 2'!DJ12,'Trial 3'!DJ12,'Trial 4'!DJ12,'Trial 5'!DJ12,'Trial 6'!DJ12,'Trial 7'!DJ12,'Trial 8'!DJ12)","v":{"v":281.74421302274266,"d":"$282"}},{"$f":"STDEV('Trial 1'!DK12,'Trial 2'!DK12,'Trial 3'!DK12,'Trial 4'!DK12,'Trial 5'!DK12,'Trial 6'!DK12,'Trial 7'!DK12,'Trial 8'!DK12)","v":{"v":322.5632016314057,"d":"$323"}},{"$f":"STDEV('Trial 1'!DL12,'Trial 2'!DL12,'Trial 3'!DL12,'Trial 4'!DL12,'Trial 5'!DL12,'Trial 6'!DL12,'Trial 7'!DL12,'Trial 8'!DL12)","v":{"v":337.35526678053657,"d":"$337"}},{"$f":"STDEV('Trial 1'!DM12,'Trial 2'!DM12,'Trial 3'!DM12,'Trial 4'!DM12,'Trial 5'!DM12,'Trial 6'!DM12,'Trial 7'!DM12,'Trial 8'!DM12)","v":{"v":350.29092457636705,"d":"$350"}},{"v":3447.5443368412807,"d":"$3,448"},{"$f":"STDEV('Trial 1'!DO12,'Trial 2'!DO12,'Trial 3'!DO12,'Trial 4'!DO12,'Trial 5'!DO12,'Trial 6'!DO12,'Trial 7'!DO12,'Trial 8'!DO12)","v":{"v":364.57804229249143,"d":"$365"}},{"$f":"STDEV('Trial 1'!DP12,'Trial 2'!DP12,'Trial 3'!DP12,'Trial 4'!DP12,'Trial 5'!DP12,'Trial 6'!DP12,'Trial 7'!DP12,'Trial 8'!DP12)","v":{"v":359.3345154958146,"d":"$359"}},{"$f":"STDEV('Trial 1'!DQ12,'Trial 2'!DQ12,'Trial 3'!DQ12,'Trial 4'!DQ12,'Trial 5'!DQ12,'Trial 6'!DQ12,'Trial 7'!DQ12,'Trial 8'!DQ12)","v":{"v":354.939452649002,"d":"$355"}},{"$f":"STDEV('Trial 1'!DR12,'Trial 2'!DR12,'Trial 3'!DR12,'Trial 4'!DR12,'Trial 5'!DR12,'Trial 6'!DR12,'Trial 7'!DR12,'Trial 8'!DR12)","v":{"v":377.91379672284904,"d":"$378"}},{"$f":"STDEV('Trial 1'!DS12,'Trial 2'!DS12,'Trial 3'!DS12,'Trial 4'!DS12,'Trial 5'!DS12,'Trial 6'!DS12,'Trial 7'!DS12,'Trial 8'!DS12)","v":{"v":387.83851747698867,"d":"$388"}},{"$f":"STDEV('Trial 1'!DT12,'Trial 2'!DT12,'Trial 3'!DT12,'Trial 4'!DT12,'Trial 5'!DT12,'Trial 6'!DT12,'Trial 7'!DT12,'Trial 8'!DT12)","v":{"v":406.30866409926,"d":"$406"}},{"$f":"STDEV('Trial 1'!DU12,'Trial 2'!DU12,'Trial 3'!DU12,'Trial 4'!DU12,'Trial 5'!DU12,'Trial 6'!DU12,'Trial 7'!DU12,'Trial 8'!DU12)","v":{"v":419.381417440614,"d":"$419"}},{"$f":"STDEV('Trial 1'!DV12,'Trial 2'!DV12,'Trial 3'!DV12,'Trial 4'!DV12,'Trial 5'!DV12,'Trial 6'!DV12,'Trial 7'!DV12,'Trial 8'!DV12)","v":{"v":433.4986826526988,"d":"$433"}},{"$f":"STDEV('Trial 1'!DW12,'Trial 2'!DW12,'Trial 3'!DW12,'Trial 4'!DW12,'Trial 5'!DW12,'Trial 6'!DW12,'Trial 7'!DW12,'Trial 8'!DW12)","v":{"v":432.5467779268212,"d":"$433"}},{"$f":"STDEV('Trial 1'!DX12,'Trial 2'!DX12,'Trial 3'!DX12,'Trial 4'!DX12,'Trial 5'!DX12,'Trial 6'!DX12,'Trial 7'!DX12,'Trial 8'!DX12)","v":{"v":423.4599179481706,"d":"$423"}},{"$f":"STDEV('Trial 1'!DY12,'Trial 2'!DY12,'Trial 3'!DY12,'Trial 4'!DY12,'Trial 5'!DY12,'Trial 6'!DY12,'Trial 7'!DY12,'Trial 8'!DY12)","v":{"v":431.88548381058695,"d":"$432"}},{"$f":"STDEV('Trial 1'!DZ12,'Trial 2'!DZ12,'Trial 3'!DZ12,'Trial 4'!DZ12,'Trial 5'!DZ12,'Trial 6'!DZ12,'Trial 7'!DZ12,'Trial 8'!DZ12)","v":{"v":470.92999481289115,"d":"$471"}},{"v":4862.615263328188,"d":"$4,863"},{"$f":"STDEV('Trial 1'!EB12,'Trial 2'!EB12,'Trial 3'!EB12,'Trial 4'!EB12,'Trial 5'!EB12,'Trial 6'!EB12,'Trial 7'!EB12,'Trial 8'!EB12)","v":{"v":471.38424443860515,"d":"$471"}},{"$f":"STDEV('Trial 1'!EC12,'Trial 2'!EC12,'Trial 3'!EC12,'Trial 4'!EC12,'Trial 5'!EC12,'Trial 6'!EC12,'Trial 7'!EC12,'Trial 8'!EC12)","v":{"v":482.5102602874338,"d":"$483"}},{"$f":"STDEV('Trial 1'!ED12,'Trial 2'!ED12,'Trial 3'!ED12,'Trial 4'!ED12,'Trial 5'!ED12,'Trial 6'!ED12,'Trial 7'!ED12,'Trial 8'!ED12)","v":{"v":457.284836985804,"d":"$457"}},{"$f":"STDEV('Trial 1'!EE12,'Trial 2'!EE12,'Trial 3'!EE12,'Trial 4'!EE12,'Trial 5'!EE12,'Trial 6'!EE12,'Trial 7'!EE12,'Trial 8'!EE12)","v":{"v":461.9209619551268,"d":"$462"}},{"$f":"STDEV('Trial 1'!EF12,'Trial 2'!EF12,'Trial 3'!EF12,'Trial 4'!EF12,'Trial 5'!EF12,'Trial 6'!EF12,'Trial 7'!EF12,'Trial 8'!EF12)","v":{"v":457.29996126751985,"d":"$457"}},{"$f":"STDEV('Trial 1'!EG12,'Trial 2'!EG12,'Trial 3'!EG12,'Trial 4'!EG12,'Trial 5'!EG12,'Trial 6'!EG12,'Trial 7'!EG12,'Trial 8'!EG12)","v":{"v":468.73543377929025,"d":"$469"}},{"$f":"STDEV('Trial 1'!EH12,'Trial 2'!EH12,'Trial 3'!EH12,'Trial 4'!EH12,'Trial 5'!EH12,'Trial 6'!EH12,'Trial 7'!EH12,'Trial 8'!EH12)","v":{"v":473.17022191626955,"d":"$473"}},{"$f":"STDEV('Trial 1'!EI12,'Trial 2'!EI12,'Trial 3'!EI12,'Trial 4'!EI12,'Trial 5'!EI12,'Trial 6'!EI12,'Trial 7'!EI12,'Trial 8'!EI12)","v":{"v":456.55447019317523,"d":"$457"}},{"$f":"STDEV('Trial 1'!EJ12,'Trial 2'!EJ12,'Trial 3'!EJ12,'Trial 4'!EJ12,'Trial 5'!EJ12,'Trial 6'!EJ12,'Trial 7'!EJ12,'Trial 8'!EJ12)","v":{"v":470.62732519246305,"d":"$471"}},{"$f":"STDEV('Trial 1'!EK12,'Trial 2'!EK12,'Trial 3'!EK12,'Trial 4'!EK12,'Trial 5'!EK12,'Trial 6'!EK12,'Trial 7'!EK12,'Trial 8'!EK12)","v":{"v":459.3465046083257,"d":"$459"}},{"$f":"STDEV('Trial 1'!EL12,'Trial 2'!EL12,'Trial 3'!EL12,'Trial 4'!EL12,'Trial 5'!EL12,'Trial 6'!EL12,'Trial 7'!EL12,'Trial 8'!EL12)","v":{"v":474.6533187229048,"d":"$475"}},{"$f":"STDEV('Trial 1'!EM12,'Trial 2'!EM12,'Trial 3'!EM12,'Trial 4'!EM12,'Trial 5'!EM12,'Trial 6'!EM12,'Trial 7'!EM12,'Trial 8'!EM12)","v":{"v":453.74733641195627,"d":"$454"}},{"v":5587.234875758874,"d":"$5,587"}]
[]
[]
[{"$f":"\"Capital\"","v":"Capital"}]
[{"$f":"\" \"","v":" "}]
[null,{"$f":"ZZZ__FnCalls!F7","v":"Jan 2010"},{"$f":"ZZZ__FnCalls!F8","v":"Feb 2010"},{"$f":"ZZZ__FnCalls!F9","v":"Mar 2010"},{"$f":"ZZZ__FnCalls!F10","v":"Apr 2010"},{"$f":"ZZZ__FnCalls!F11","v":"May 2010"},{"$f":"ZZZ__FnCalls!F12","v":"Jun 2010"},{"$f":"ZZZ__FnCalls!F13","v":"Jul 2010"},{"$f":"ZZZ__FnCalls!F14","v":"Aug 2010"},{"$f":"ZZZ__FnCalls!F15","v":"Sep 2010"},{"$f":"ZZZ__FnCalls!F16","v":"Oct 2010"},{"$f":"ZZZ__FnCalls!F17","v":"Nov 2010"},{"$f":"ZZZ__FnCalls!F18","v":"Dec 2010"},{"$f":"ZZZ__FnCalls!H7","v":"2010"},{"$f":"ZZZ__FnCalls!F19","v":"Jan 2011"},{"$f":"ZZZ__FnCalls!F20","v":"Feb 2011"},{"$f":"ZZZ__FnCalls!F21","v":"Mar 2011"},{"$f":"ZZZ__FnCalls!F22","v":"Apr 2011"},{"$f":"ZZZ__FnCalls!F23","v":"May 2011"},{"$f":"ZZZ__FnCalls!F24","v":"Jun 2011"},{"$f":"ZZZ__FnCalls!F25","v":"Jul 2011"},{"$f":"ZZZ__FnCalls!F26","v":"Aug 2011"},{"$f":"ZZZ__FnCalls!F27","v":"Sep 2011"},{"$f":"ZZZ__FnCalls!F28","v":"Oct 2011"},{"$f":"ZZZ__FnCalls!F29","v":"Nov 2011"},{"$f":"ZZZ__FnCalls!F30","v":"Dec 2011"},{"$f":"ZZZ__FnCalls!H19","v":"2011"},{"$f":"ZZZ__FnCalls!F31","v":"Jan 2012"},{"$f":"ZZZ__FnCalls!F32","v":"Feb 2012"},{"$f":"ZZZ__FnCalls!F33","v":"Mar 2012"},{"$f":"ZZZ__FnCalls!F34","v":"Apr 2012"},{"$f":"ZZZ__FnCalls!F35","v":"May 2012"},{"$f":"ZZZ__FnCalls!F36","v":"Jun 2012"},{"$f":"ZZZ__FnCalls!F37","v":"Jul 2012"},{"$f":"ZZZ__FnCalls!F38","v":"Aug 2012"},{"$f":"ZZZ__FnCalls!F39","v":"Sep 2012"},{"$f":"ZZZ__FnCalls!F40","v":"Oct 2012"},{"$f":"ZZZ__FnCalls!F41","v":"Nov 2012"},{"$f":"ZZZ__FnCalls!F42","v":"Dec 2012"},{"$f":"ZZZ__FnCalls!H31","v":"2012"},{"$f":"ZZZ__FnCalls!F43","v":"Jan 2013"},{"$f":"ZZZ__FnCalls!F44","v":"Feb 2013"},{"$f":"ZZZ__FnCalls!F45","v":"Mar 2013"},{"$f":"ZZZ__FnCalls!F46","v":"Apr 2013"},{"$f":"ZZZ__FnCalls!F47","v":"May 2013"},{"$f":"ZZZ__FnCalls!F48","v":"Jun 2013"},{"$f":"ZZZ__FnCalls!F49","v":"Jul 2013"},{"$f":"ZZZ__FnCalls!F50","v":"Aug 2013"},{"$f":"ZZZ__FnCalls!F51","v":"Sep 2013"},{"$f":"ZZZ__FnCalls!F52","v":"Oct 2013"},{"$f":"ZZZ__FnCalls!F53","v":"Nov 2013"},{"$f":"ZZZ__FnCalls!F54","v":"Dec 2013"},{"$f":"ZZZ__FnCalls!H43","v":"2013"},{"$f":"ZZZ__FnCalls!F55","v":"Jan 2014"},{"$f":"ZZZ__FnCalls!F56","v":"Feb 2014"},{"$f":"ZZZ__FnCalls!F57","v":"Mar 2014"},{"$f":"ZZZ__FnCalls!F58","v":"Apr 2014"},{"$f":"ZZZ__FnCalls!F59","v":"May 2014"},{"$f":"ZZZ__FnCalls!F60","v":"Jun 2014"},{"$f":"ZZZ__FnCalls!F61","v":"Jul 2014"},{"$f":"ZZZ__FnCalls!F62","v":"Aug 2014"},{"$f":"ZZZ__FnCalls!F63","v":"Sep 2014"},{"$f":"ZZZ__FnCalls!F64","v":"Oct 2014"},{"$f":"ZZZ__FnCalls!F65","v":"Nov 2014"},{"$f":"ZZZ__FnCalls!F66","v":"Dec 2014"},{"$f":"ZZZ__FnCalls!H55","v":"2014"},{"$f":"ZZZ__FnCalls!F67","v":"Jan 2015"},{"$f":"ZZZ__FnCalls!F68","v":"Feb 2015"},{"$f":"ZZZ__FnCalls!F69","v":"Mar 2015"},{"$f":"ZZZ__FnCalls!F70","v":"Apr 2015"},{"$f":"ZZZ__FnCalls!F71","v":"May 2015"},{"$f":"ZZZ__FnCalls!F72","v":"Jun 2015"},{"$f":"ZZZ__FnCalls!F73","v":"Jul 2015"},{"$f":"ZZZ__FnCalls!F74","v":"Aug 2015"},{"$f":"ZZZ__FnCalls!F75","v":"Sep 2015"},{"$f":"ZZZ__FnCalls!F76","v":"Oct 2015"},{"$f":"ZZZ__FnCalls!F77","v":"Nov 2015"},{"$f":"ZZZ__FnCalls!F78","v":"Dec 2015"},{"$f":"ZZZ__FnCalls!H67","v":"2015"},{"$f":"ZZZ__FnCalls!F79","v":"Jan 2016"},{"$f":"ZZZ__FnCalls!F80","v":"Feb 2016"},{"$f":"ZZZ__FnCalls!F81","v":"Mar 2016"},{"$f":"ZZZ__FnCalls!F82","v":"Apr 2016"},{"$f":"ZZZ__FnCalls!F83","v":"May 2016"},{"$f":"ZZZ__FnCalls!F84","v":"Jun 2016"},{"$f":"ZZZ__FnCalls!F85","v":"Jul 2016"},{"$f":"ZZZ__FnCalls!F86","v":"Aug 2016"},{"$f":"ZZZ__FnCalls!F87","v":"Sep 2016"},{"$f":"ZZZ__FnCalls!F88","v":"Oct 2016"},{"$f":"ZZZ__FnCalls!F89","v":"Nov 2016"},{"$f":"ZZZ__FnCalls!F90","v":"Dec 2016"},{"$f":"ZZZ__FnCalls!H79","v":"2016"},{"$f":"ZZZ__FnCalls!F91","v":"Jan 2017"},{"$f":"ZZZ__FnCalls!F92","v":"Feb 2017"},{"$f":"ZZZ__FnCalls!F93","v":"Mar 2017"},{"$f":"ZZZ__FnCalls!F94","v":"Apr 2017"},{"$f":"ZZZ__FnCalls!F95","v":"May 2017"},{"$f":"ZZZ__FnCalls!F96","v":"Jun 2017"},{"$f":"ZZZ__FnCalls!F97","v":"Jul 2017"},{"$f":"ZZZ__FnCalls!F98","v":"Aug 2017"},{"$f":"ZZZ__FnCalls!F99","v":"Sep 2017"},{"$f":"ZZZ__FnCalls!F100","v":"Oct 2017"},{"$f":"ZZZ__FnCalls!F101","v":"Nov 2017"},{"$f":"ZZZ__FnCalls!F102","v":"Dec 2017"},{"$f":"ZZZ__FnCalls!H91","v":"2017"},{"$f":"ZZZ__FnCalls!F103","v":"Jan 2018"},{"$f":"ZZZ__FnCalls!F104","v":"Feb 2018"},{"$f":"ZZZ__FnCalls!F105","v":"Mar 2018"},{"$f":"ZZZ__FnCalls!F106","v":"Apr 2018"},{"$f":"ZZZ__FnCalls!F107","v":"May 2018"},{"$f":"ZZZ__FnCalls!F108","v":"Jun 2018"},{"$f":"ZZZ__FnCalls!F109","v":"Jul 2018"},{"$f":"ZZZ__FnCalls!F110","v":"Aug 2018"},{"$f":"ZZZ__FnCalls!F111","v":"Sep 2018"},{"$f":"ZZZ__FnCalls!F112","v":"Oct 2018"},{"$f":"ZZZ__FnCalls!F113","v":"Nov 2018"},{"$f":"ZZZ__FnCalls!F114","v":"Dec 2018"},{"$f":"ZZZ__FnCalls!H103","v":"2018"},{"$f":"ZZZ__FnCalls!F115","v":"Jan 2019"},{"$f":"ZZZ__FnCalls!F116","v":"Feb 2019"},{"$f":"ZZZ__FnCalls!F117","v":"Mar 2019"},{"$f":"ZZZ__FnCalls!F118","v":"Apr 2019"},{"$f":"ZZZ__FnCalls!F119","v":"May 2019"},{"$f":"ZZZ__FnCalls!F120","v":"Jun 2019"},{"$f":"ZZZ__FnCalls!F121","v":"Jul 2019"},{"$f":"ZZZ__FnCalls!F122","v":"Aug 2019"},{"$f":"ZZZ__FnCalls!F123","v":"Sep 2019"},{"$f":"ZZZ__FnCalls!F124","v":"Oct 2019"},{"$f":"ZZZ__FnCalls!F125","v":"Nov 2019"},{"$f":"ZZZ__FnCalls!F126","v":"Dec 2019"},{"$f":"ZZZ__FnCalls!H115","v":"2019"},{"$f":"ZZZ__FnCalls!F127","v":"Jan 2020"},{"$f":"ZZZ__FnCalls!F128","v":"Feb 2020"},{"$f":"ZZZ__FnCalls!F129","v":"Mar 2020"},{"$f":"ZZZ__FnCalls!F130","v":"Apr 2020"},{"$f":"ZZZ__FnCalls!F131","v":"May 2020"},{"$f":"ZZZ__FnCalls!F132","v":"Jun 2020"},{"$f":"ZZZ__FnCalls!F133","v":"Jul 2020"},{"$f":"ZZZ__FnCalls!F134","v":"Aug 2020"},{"$f":"ZZZ__FnCalls!F135","v":"Sep 2020"},{"$f":"ZZZ__FnCalls!F136","v":"Oct 2020"},{"$f":"ZZZ__FnCalls!F137","v":"Nov 2020"},{"$f":"ZZZ__FnCalls!F138","v":"Dec 2020"},{"$f":"ZZZ__FnCalls!H127","v":"2020"}]
[{"$f":"Labels!B22","v":"Capital"},{"$f":"AVERAGE('Trial 1'!B19,'Trial 2'!B19,'Trial 3'!B19,'Trial 4'!B19,'Trial 5'!B19,'Trial 6'!B19,'Trial 7'!B19,'Trial 8'!B19)","v":{"v":34645298.421926446,"d":"$34,645,298"}},{"$f":"AVERAGE('Trial 1'!C19,'Trial 2'!C19,'Trial 3'!C19,'Trial 4'!C19,'Trial 5'!C19,'Trial 6'!C19,'Trial 7'!C19,'Trial 8'!C19)","v":{"v":34645298.421926446,"d":"$34,645,298"}},{"$f":"AVERAGE('Trial 1'!D19,'Trial 2'!D19,'Trial 3'!D19,'Trial 4'!D19,'Trial 5'!D19,'Trial 6'!D19,'Trial 7'!D19,'Trial 8'!D19)","v":{"v":34644859.278854564,"d":"$34,644,859"}},{"$f":"AVERAGE('Trial 1'!E19,'Trial 2'!E19,'Trial 3'!E19,'Trial 4'!E19,'Trial 5'!E19,'Trial 6'!E19,'Trial 7'!E19,'Trial 8'!E19)","v":{"v":34644021.668411784,"d":"$34,644,022"}},{"$f":"AVERAGE('Trial 1'!F19,'Trial 2'!F19,'Trial 3'!F19,'Trial 4'!F19,'Trial 5'!F19,'Trial 6'!F19,'Trial 7'!F19,'Trial 8'!F19)","v":{"v":34642833.52724011,"d":"$34,642,834"}},{"$f":"AVERAGE('Trial 1'!G19,'Trial 2'!G19,'Trial 3'!G19,'Trial 4'!G19,'Trial 5'!G19,'Trial 6'!G19,'Trial 7'!G19,'Trial 8'!G19)","v":{"v":34641319.65327754,"d":"$34,641,320"}},{"$f":"AVERAGE('Trial 1'!H19,'Trial 2'!H19,'Trial 3'!H19,'Trial 4'!H19,'Trial 5'!H19,'Trial 6'!H19,'Trial 7'!H19,'Trial 8'!H19)","v":{"v":34639508.568082,"d":"$34,639,509"}},{"$f":"AVERAGE('Trial 1'!I19,'Trial 2'!I19,'Trial 3'!I19,'Trial 4'!I19,'Trial 5'!I19,'Trial 6'!I19,'Trial 7'!I19,'Trial 8'!I19)","v":{"v":34637382.818694465,"d":"$34,637,383"}},{"$f":"AVERAGE('Trial 1'!J19,'Trial 2'!J19,'Trial 3'!J19,'Trial 4'!J19,'Trial 5'!J19,'Trial 6'!J19,'Trial 7'!J19,'Trial 8'!J19)","v":{"v":34634916.34381461,"d":"$34,634,916"}},{"$f":"AVERAGE('Trial 1'!K19,'Trial 2'!K19,'Trial 3'!K19,'Trial 4'!K19,'Trial 5'!K19,'Trial 6'!K19,'Trial 7'!K19,'Trial 8'!K19)","v":{"v":34632135.185316004,"d":"$34,632,135"}},{"$f":"AVERAGE('Trial 1'!L19,'Trial 2'!L19,'Trial 3'!L19,'Trial 4'!L19,'Trial 5'!L19,'Trial 6'!L19,'Trial 7'!L19,'Trial 8'!L19)","v":{"v":34629050.95398875,"d":"$34,629,051"}},{"$f":"AVERAGE('Trial 1'!M19,'Trial 2'!M19,'Trial 3'!M19,'Trial 4'!M19,'Trial 5'!M19,'Trial 6'!M19,'Trial 7'!M19,'Trial 8'!M19)","v":{"v":34625672.319007576,"d":"$34,625,672"}},{"$f":"M25","v":{"v":34625672.319007576,"d":"$34,625,672"}},{"$f":"AVERAGE('Trial 1'!O19,'Trial 2'!O19,'Trial 3'!O19,'Trial 4'!O19,'Trial 5'!O19,'Trial 6'!O19,'Trial 7'!O19,'Trial 8'!O19)","v":{"v":34622003.531239085,"d":"$34,622,004"}},{"$f":"AVERAGE('Trial 1'!P19,'Trial 2'!P19,'Trial 3'!P19,'Trial 4'!P19,'Trial 5'!P19,'Trial 6'!P19,'Trial 7'!P19,'Trial 8'!P19)","v":{"v":34618041.15022326,"d":"$34,618,041"}},{"$f":"AVERAGE('Trial 1'!Q19,'Trial 2'!Q19,'Trial 3'!Q19,'Trial 4'!Q19,'Trial 5'!Q19,'Trial 6'!Q19,'Trial 7'!Q19,'Trial 8'!Q19)","v":{"v":34613815.41149432,"d":"$34,613,815"}},{"$f":"AVERAGE('Trial 1'!R19,'Trial 2'!R19,'Trial 3'!R19,'Trial 4'!R19,'Trial 5'!R19,'Trial 6'!R19,'Trial 7'!R19,'Trial 8'!R19)","v":{"v":34609327.33768017,"d":"$34,609,327"}},{"$f":"AVERAGE('Trial 1'!S19,'Trial 2'!S19,'Trial 3'!S19,'Trial 4'!S19,'Trial 5'!S19,'Trial 6'!S19,'Trial 7'!S19,'Trial 8'!S19)","v":{"v":34604592.81611621,"d":"$34,604,593"}},{"$f":"AVERAGE('Trial 1'!T19,'Trial 2'!T19,'Trial 3'!T19,'Trial 4'!T19,'Trial 5'!T19,'Trial 6'!T19,'Trial 7'!T19,'Trial 8'!T19)","v":{"v":34599627.49330267,"d":"$34,599,627"}},{"$f":"AVERAGE('Trial 1'!U19,'Trial 2'!U19,'Trial 3'!U19,'Trial 4'!U19,'Trial 5'!U19,'Trial 6'!U19,'Trial 7'!U19,'Trial 8'!U19)","v":{"v":34594363.72180989,"d":"$34,594,364"}},{"$f":"AVERAGE('Trial 1'!V19,'Trial 2'!V19,'Trial 3'!V19,'Trial 4'!V19,'Trial 5'!V19,'Trial 6'!V19,'Trial 7'!V19,'Trial 8'!V19)","v":{"v":34588872.93598822,"d":"$34,588,873"}},{"$f":"AVERAGE('Trial 1'!W19,'Trial 2'!W19,'Trial 3'!W19,'Trial 4'!W19,'Trial 5'!W19,'Trial 6'!W19,'Trial 7'!W19,'Trial 8'!W19)","v":{"v":34583117.220319375,"d":"$34,583,117"}},{"$f":"AVERAGE('Trial 1'!X19,'Trial 2'!X19,'Trial 3'!X19,'Trial 4'!X19,'Trial 5'!X19,'Trial 6'!X19,'Trial 7'!X19,'Trial 8'!X19)","v":{"v":34577109.310291365,"d":"$34,577,109"}},{"$f":"AVERAGE('Trial 1'!Y19,'Trial 2'!Y19,'Trial 3'!Y19,'Trial 4'!Y19,'Trial 5'!Y19,'Trial 6'!Y19,'Trial 7'!Y19,'Trial 8'!Y19)","v":{"v":34570908.38280433,"d":"$34,570,908"}},{"$f":"AVERAGE('Trial 1'!Z19,'Trial 2'!Z19,'Trial 3'!Z19,'Trial 4'!Z19,'Trial 5'!Z19,'Trial 6'!Z19,'Trial 7'!Z19,'Trial 8'!Z19)","v":{"v":34564478.16078607,"d":"$34,564,478"}},{"$f":"Z25","v":{"v":34564478.16078607,"d":"$34,564,478"}},{"$f":"AVERAGE('Trial 1'!AB19,'Trial 2'!AB19,'Trial 3'!AB19,'Trial 4'!AB19,'Trial 5'!AB19,'Trial 6'!AB19,'Trial 7'!AB19,'Trial 8'!AB19)","v":{"v":34557828.804218315,"d":"$34,557,829"}},{"$f":"AVERAGE('Trial 1'!AC19,'Trial 2'!AC19,'Trial 3'!AC19,'Trial 4'!AC19,'Trial 5'!AC19,'Trial 6'!AC19,'Trial 7'!AC19,'Trial 8'!AC19)","v":{"v":34550924.56472787,"d":"$34,550,925"}},{"$f":"AVERAGE('Trial 1'!AD19,'Trial 2'!AD19,'Trial 3'!AD19,'Trial 4'!AD19,'Trial 5'!AD19,'Trial 6'!AD19,'Trial 7'!AD19,'Trial 8'!AD19)","v":{"v":34543821.00805887,"d":"$34,543,821"}},{"$f":"AVERAGE('Trial 1'!AE19,'Trial 2'!AE19,'Trial 3'!AE19,'Trial 4'!AE19,'Trial 5'!AE19,'Trial 6'!AE19,'Trial 7'!AE19,'Trial 8'!AE19)","v":{"v":34536542.393499196,"d":"$34,536,542"}},{"$f":"AVERAGE('Trial 1'!AF19,'Trial 2'!AF19,'Trial 3'!AF19,'Trial 4'!AF19,'Trial 5'!AF19,'Trial 6'!AF19,'Trial 7'!AF19,'Trial 8'!AF19)","v":{"v":34529079.956833996,"d":"$34,529,080"}},{"$f":"AVERAGE('Trial 1'!AG19,'Trial 2'!AG19,'Trial 3'!AG19,'Trial 4'!AG19,'Trial 5'!AG19,'Trial 6'!AG19,'Trial 7'!AG19,'Trial 8'!AG19)","v":{"v":34521432.751297295,"d":"$34,521,433"}},{"$f":"AVERAGE('Trial 1'!AH19,'Trial 2'!AH19,'Trial 3'!AH19,'Trial 4'!AH19,'Trial 5'!AH19,'Trial 6'!AH19,'Trial 7'!AH19,'Trial 8'!AH19)","v":{"v":34513574.979747005,"d":"$34,513,575"}},{"$f":"AVERAGE('Trial 1'!AI19,'Trial 2'!AI19,'Trial 3'!AI19,'Trial 4'!AI19,'Trial 5'!AI19,'Trial 6'!AI19,'Trial 7'!AI19,'Trial 8'!AI19)","v":{"v":34505555.71776827,"d":"$34,505,556"}},{"$f":"AVERAGE('Trial 1'!AJ19,'Trial 2'!AJ19,'Trial 3'!AJ19,'Trial 4'!AJ19,'Trial 5'!AJ19,'Trial 6'!AJ19,'Trial 7'!AJ19,'Trial 8'!AJ19)","v":{"v":34497397.243306816,"d":"$34,497,397"}},{"$f":"AVERAGE('Trial 1'!AK19,'Trial 2'!AK19,'Trial 3'!AK19,'Trial 4'!AK19,'Trial 5'!AK19,'Trial 6'!AK19,'Trial 7'!AK19,'Trial 8'!AK19)","v":{"v":34489040.14625546,"d":"$34,489,040"}},{"$f":"AVERAGE('Trial 1'!AL19,'Trial 2'!AL19,'Trial 3'!AL19,'Trial 4'!AL19,'Trial 5'!AL19,'Trial 6'!AL19,'Trial 7'!AL19,'Trial 8'!AL19)","v":{"v":34480528.27557434,"d":"$34,480,528"}},{"$f":"AVERAGE('Trial 1'!AM19,'Trial 2'!AM19,'Trial 3'!AM19,'Trial 4'!AM19,'Trial 5'!AM19,'Trial 6'!AM19,'Trial 7'!AM19,'Trial 8'!AM19)","v":{"v":34471874.61320618,"d":"$34,471,875"}},{"$f":"AM25","v":{"v":34471874.61320618,"d":"$34,471,875"}},{"$f":"AVERAGE('Trial 1'!AO19,'Trial 2'!AO19,'Trial 3'!AO19,'Trial 4'!AO19,'Trial 5'!AO19,'Trial 6'!AO19,'Trial 7'!AO19,'Trial 8'!AO19)","v":{"v":34463090.09207817,"d":"$34,463,090"}},{"$f":"AVERAGE('Trial 1'!AP19,'Trial 2'!AP19,'Trial 3'!AP19,'Trial 4'!AP19,'Trial 5'!AP19,'Trial 6'!AP19,'Trial 7'!AP19,'Trial 8'!AP19)","v":{"v":34454138.17681596,"d":"$34,454,138"}},{"$f":"AVERAGE('Trial 1'!AQ19,'Trial 2'!AQ19,'Trial 3'!AQ19,'Trial 4'!AQ19,'Trial 5'!AQ19,'Trial 6'!AQ19,'Trial 7'!AQ19,'Trial 8'!AQ19)","v":{"v":34445045.17902006,"d":"$34,445,045"}},{"$f":"AVERAGE('Trial 1'!AR19,'Trial 2'!AR19,'Trial 3'!AR19,'Trial 4'!AR19,'Trial 5'!AR19,'Trial 6'!AR19,'Trial 7'!AR19,'Trial 8'!AR19)","v":{"v":34435839.31559216,"d":"$34,435,839"}},{"$f":"AVERAGE('Trial 1'!AS19,'Trial 2'!AS19,'Trial 3'!AS19,'Trial 4'!AS19,'Trial 5'!AS19,'Trial 6'!AS19,'Trial 7'!AS19,'Trial 8'!AS19)","v":{"v":34426479.283067845,"d":"$34,426,479"}},{"$f":"AVERAGE('Trial 1'!AT19,'Trial 2'!AT19,'Trial 3'!AT19,'Trial 4'!AT19,'Trial 5'!AT19,'Trial 6'!AT19,'Trial 7'!AT19,'Trial 8'!AT19)","v":{"v":34416984.772518665,"d":"$34,416,985"}},{"$f":"AVERAGE('Trial 1'!AU19,'Trial 2'!AU19,'Trial 3'!AU19,'Trial 4'!AU19,'Trial 5'!AU19,'Trial 6'!AU19,'Trial 7'!AU19,'Trial 8'!AU19)","v":{"v":34407384.939971864,"d":"$34,407,385"}},{"$f":"AVERAGE('Trial 1'!AV19,'Trial 2'!AV19,'Trial 3'!AV19,'Trial 4'!AV19,'Trial 5'!AV19,'Trial 6'!AV19,'Trial 7'!AV19,'Trial 8'!AV19)","v":{"v":34397657.7241305,"d":"$34,397,658"}},{"$f":"AVERAGE('Trial 1'!AW19,'Trial 2'!AW19,'Trial 3'!AW19,'Trial 4'!AW19,'Trial 5'!AW19,'Trial 6'!AW19,'Trial 7'!AW19,'Trial 8'!AW19)","v":{"v":34387799.52057429,"d":"$34,387,800"}},{"$f":"AVERAGE('Trial 1'!AX19,'Trial 2'!AX19,'Trial 3'!AX19,'Trial 4'!AX19,'Trial 5'!AX19,'Trial 6'!AX19,'Trial 7'!AX19,'Trial 8'!AX19)","v":{"v":34377825.92936333,"d":"$34,377,826"}},{"$f":"AVERAGE('Trial 1'!AY19,'Trial 2'!AY19,'Trial 3'!AY19,'Trial 4'!AY19,'Trial 5'!AY19,'Trial 6'!AY19,'Trial 7'!AY19,'Trial 8'!AY19)","v":{"v":34367712.577916145,"d":"$34,367,713"}},{"$f":"AVERAGE('Trial 1'!AZ19,'Trial 2'!AZ19,'Trial 3'!AZ19,'Trial 4'!AZ19,'Trial 5'!AZ19,'Trial 6'!AZ19,'Trial 7'!AZ19,'Trial 8'!AZ19)","v":{"v":34357479.684476316,"d":"$34,357,480"}},{"$f":"AZ25","v":{"v":34357479.684476316,"d":"$34,357,480"}},{"$f":"AVERAGE('Trial 1'!BB19,'Trial 2'!BB19,'Trial 3'!BB19,'Trial 4'!BB19,'Trial 5'!BB19,'Trial 6'!BB19,'Trial 7'!BB19,'Trial 8'!BB19)","v":{"v":34347142.42207191,"d":"$34,347,142"}},{"$f":"AVERAGE('Trial 1'!BC19,'Trial 2'!BC19,'Trial 3'!BC19,'Trial 4'!BC19,'Trial 5'!BC19,'Trial 6'!BC19,'Trial 7'!BC19,'Trial 8'!BC19)","v":{"v":34336668.6734532,"d":"$34,336,669"}},{"$f":"AVERAGE('Trial 1'!BD19,'Trial 2'!BD19,'Trial 3'!BD19,'Trial 4'!BD19,'Trial 5'!BD19,'Trial 6'!BD19,'Trial 7'!BD19,'Trial 8'!BD19)","v":{"v":34326066.66246392,"d":"$34,326,067"}},{"$f":"AVERAGE('Trial 1'!BE19,'Trial 2'!BE19,'Trial 3'!BE19,'Trial 4'!BE19,'Trial 5'!BE19,'Trial 6'!BE19,'Trial 7'!BE19,'Trial 8'!BE19)","v":{"v":34315358.844777256,"d":"$34,315,359"}},{"$f":"AVERAGE('Trial 1'!BF19,'Trial 2'!BF19,'Trial 3'!BF19,'Trial 4'!BF19,'Trial 5'!BF19,'Trial 6'!BF19,'Trial 7'!BF19,'Trial 8'!BF19)","v":{"v":34304556.33187667,"d":"$34,304,556"}},{"$f":"AVERAGE('Trial 1'!BG19,'Trial 2'!BG19,'Trial 3'!BG19,'Trial 4'!BG19,'Trial 5'!BG19,'Trial 6'!BG19,'Trial 7'!BG19,'Trial 8'!BG19)","v":{"v":34293654.15592086,"d":"$34,293,654"}},{"$f":"AVERAGE('Trial 1'!BH19,'Trial 2'!BH19,'Trial 3'!BH19,'Trial 4'!BH19,'Trial 5'!BH19,'Trial 6'!BH19,'Trial 7'!BH19,'Trial 8'!BH19)","v":{"v":34282671.50839238,"d":"$34,282,672"}},{"$f":"AVERAGE('Trial 1'!BI19,'Trial 2'!BI19,'Trial 3'!BI19,'Trial 4'!BI19,'Trial 5'!BI19,'Trial 6'!BI19,'Trial 7'!BI19,'Trial 8'!BI19)","v":{"v":34271610.63885818,"d":"$34,271,611"}},{"$f":"AVERAGE('Trial 1'!BJ19,'Trial 2'!BJ19,'Trial 3'!BJ19,'Trial 4'!BJ19,'Trial 5'!BJ19,'Trial 6'!BJ19,'Trial 7'!BJ19,'Trial 8'!BJ19)","v":{"v":34260435.62438874,"d":"$34,260,436"}},{"$f":"AVERAGE('Trial 1'!BK19,'Trial 2'!BK19,'Trial 3'!BK19,'Trial 4'!BK19,'Trial 5'!BK19,'Trial 6'!BK19,'Trial 7'!BK19,'Trial 8'!BK19)","v":{"v":34249165.38537648,"d":"$34,249,165"}},{"$f":"AVERAGE('Trial 1'!BL19,'Trial 2'!BL19,'Trial 3'!BL19,'Trial 4'!BL19,'Trial 5'!BL19,'Trial 6'!BL19,'Trial 7'!BL19,'Trial 8'!BL19)","v":{"v":34237829.045365036,"d":"$34,237,829"}},{"$f":"AVERAGE('Trial 1'!BM19,'Trial 2'!BM19,'Trial 3'!BM19,'Trial 4'!BM19,'Trial 5'!BM19,'Trial 6'!BM19,'Trial 7'!BM19,'Trial 8'!BM19)","v":{"v":34226407.18835192,"d":"$34,226,407"}},{"$f":"BM25","v":{"v":34226407.18835192,"d":"$34,226,407"}},{"$f":"AVERAGE('Trial 1'!BO19,'Trial 2'!BO19,'Trial 3'!BO19,'Trial 4'!BO19,'Trial 5'!BO19,'Trial 6'!BO19,'Trial 7'!BO19,'Trial 8'!BO19)","v":{"v":34214924.15671031,"d":"$34,214,924"}},{"$f":"AVERAGE('Trial 1'!BP19,'Trial 2'!BP19,'Trial 3'!BP19,'Trial 4'!BP19,'Trial 5'!BP19,'Trial 6'!BP19,'Trial 7'!BP19,'Trial 8'!BP19)","v":{"v":34203363.33130261,"d":"$34,203,363"}},{"$f":"AVERAGE('Trial 1'!BQ19,'Trial 2'!BQ19,'Trial 3'!BQ19,'Trial 4'!BQ19,'Trial 5'!BQ19,'Trial 6'!BQ19,'Trial 7'!BQ19,'Trial 8'!BQ19)","v":{"v":34191724.871569276,"d":"$34,191,725"}},{"$f":"AVERAGE('Trial 1'!BR19,'Trial 2'!BR19,'Trial 3'!BR19,'Trial 4'!BR19,'Trial 5'!BR19,'Trial 6'!BR19,'Trial 7'!BR19,'Trial 8'!BR19)","v":{"v":34180023.148290955,"d":"$34,180,023"}},{"$f":"AVERAGE('Trial 1'!BS19,'Trial 2'!BS19,'Trial 3'!BS19,'Trial 4'!BS19,'Trial 5'!BS19,'Trial 6'!BS19,'Trial 7'!BS19,'Trial 8'!BS19)","v":{"v":34168280.15919517,"d":"$34,168,280"}},{"$f":"AVERAGE('Trial 1'!BT19,'Trial 2'!BT19,'Trial 3'!BT19,'Trial 4'!BT19,'Trial 5'!BT19,'Trial 6'!BT19,'Trial 7'!BT19,'Trial 8'!BT19)","v":{"v":34156490.59158419,"d":"$34,156,491"}},{"$f":"AVERAGE('Trial 1'!BU19,'Trial 2'!BU19,'Trial 3'!BU19,'Trial 4'!BU19,'Trial 5'!BU19,'Trial 6'!BU19,'Trial 7'!BU19,'Trial 8'!BU19)","v":{"v":34144623.52899963,"d":"$34,144,624"}},{"$f":"AVERAGE('Trial 1'!BV19,'Trial 2'!BV19,'Trial 3'!BV19,'Trial 4'!BV19,'Trial 5'!BV19,'Trial 6'!BV19,'Trial 7'!BV19,'Trial 8'!BV19)","v":{"v":34132729.9993996,"d":"$34,132,730"}},{"$f":"AVERAGE('Trial 1'!BW19,'Trial 2'!BW19,'Trial 3'!BW19,'Trial 4'!BW19,'Trial 5'!BW19,'Trial 6'!BW19,'Trial 7'!BW19,'Trial 8'!BW19)","v":{"v":34120759.10707624,"d":"$34,120,759"}},{"$f":"AVERAGE('Trial 1'!BX19,'Trial 2'!BX19,'Trial 3'!BX19,'Trial 4'!BX19,'Trial 5'!BX19,'Trial 6'!BX19,'Trial 7'!BX19,'Trial 8'!BX19)","v":{"v":34108725.48114125,"d":"$34,108,725"}},{"$f":"AVERAGE('Trial 1'!BY19,'Trial 2'!BY19,'Trial 3'!BY19,'Trial 4'!BY19,'Trial 5'!BY19,'Trial 6'!BY19,'Trial 7'!BY19,'Trial 8'!BY19)","v":{"v":34096662.8643091,"d":"$34,096,663"}},{"$f":"AVERAGE('Trial 1'!BZ19,'Trial 2'!BZ19,'Trial 3'!BZ19,'Trial 4'!BZ19,'Trial 5'!BZ19,'Trial 6'!BZ19,'Trial 7'!BZ19,'Trial 8'!BZ19)","v":{"v":34084525.96799372,"d":"$34,084,526"}},{"$f":"BZ25","v":{"v":34084525.96799372,"d":"$34,084,526"}},{"$f":"AVERAGE('Trial 1'!CB19,'Trial 2'!CB19,'Trial 3'!CB19,'Trial 4'!CB19,'Trial 5'!CB19,'Trial 6'!CB19,'Trial 7'!CB19,'Trial 8'!CB19)","v":{"v":34072358.15116109,"d":"$34,072,358"}},{"$f":"AVERAGE('Trial 1'!CC19,'Trial 2'!CC19,'Trial 3'!CC19,'Trial 4'!CC19,'Trial 5'!CC19,'Trial 6'!CC19,'Trial 7'!CC19,'Trial 8'!CC19)","v":{"v":34060139.80006704,"d":"$34,060,140"}},{"$f":"AVERAGE('Trial 1'!CD19,'Trial 2'!CD19,'Trial 3'!CD19,'Trial 4'!CD19,'Trial 5'!CD19,'Trial 6'!CD19,'Trial 7'!CD19,'Trial 8'!CD19)","v":{"v":34047866.23878802,"d":"$34,047,866"}},{"$f":"AVERAGE('Trial 1'!CE19,'Trial 2'!CE19,'Trial 3'!CE19,'Trial 4'!CE19,'Trial 5'!CE19,'Trial 6'!CE19,'Trial 7'!CE19,'Trial 8'!CE19)","v":{"v":34035534.85763357,"d":"$34,035,535"}},{"$f":"AVERAGE('Trial 1'!CF19,'Trial 2'!CF19,'Trial 3'!CF19,'Trial 4'!CF19,'Trial 5'!CF19,'Trial 6'!CF19,'Trial 7'!CF19,'Trial 8'!CF19)","v":{"v":34023169.548566066,"d":"$34,023,170"}},{"$f":"AVERAGE('Trial 1'!CG19,'Trial 2'!CG19,'Trial 3'!CG19,'Trial 4'!CG19,'Trial 5'!CG19,'Trial 6'!CG19,'Trial 7'!CG19,'Trial 8'!CG19)","v":{"v":34010737.507047586,"d":"$34,010,738"}},{"$f":"AVERAGE('Trial 1'!CH19,'Trial 2'!CH19,'Trial 3'!CH19,'Trial 4'!CH19,'Trial 5'!CH19,'Trial 6'!CH19,'Trial 7'!CH19,'Trial 8'!CH19)","v":{"v":33998258.07156387,"d":"$33,998,258"}},{"$f":"AVERAGE('Trial 1'!CI19,'Trial 2'!CI19,'Trial 3'!CI19,'Trial 4'!CI19,'Trial 5'!CI19,'Trial 6'!CI19,'Trial 7'!CI19,'Trial 8'!CI19)","v":{"v":33985788.56402588,"d":"$33,985,789"}},{"$f":"AVERAGE('Trial 1'!CJ19,'Trial 2'!CJ19,'Trial 3'!CJ19,'Trial 4'!CJ19,'Trial 5'!CJ19,'Trial 6'!CJ19,'Trial 7'!CJ19,'Trial 8'!CJ19)","v":{"v":33973283.326311596,"d":"$33,973,283"}},{"$f":"AVERAGE('Trial 1'!CK19,'Trial 2'!CK19,'Trial 3'!CK19,'Trial 4'!CK19,'Trial 5'!CK19,'Trial 6'!CK19,'Trial 7'!CK19,'Trial 8'!CK19)","v":{"v":33960754.45246711,"d":"$33,960,754"}},{"$f":"AVERAGE('Trial 1'!CL19,'Trial 2'!CL19,'Trial 3'!CL19,'Trial 4'!CL19,'Trial 5'!CL19,'Trial 6'!CL19,'Trial 7'!CL19,'Trial 8'!CL19)","v":{"v":33948194.7414449,"d":"$33,948,195"}},{"$f":"AVERAGE('Trial 1'!CM19,'Trial 2'!CM19,'Trial 3'!CM19,'Trial 4'!CM19,'Trial 5'!CM19,'Trial 6'!CM19,'Trial 7'!CM19,'Trial 8'!CM19)","v":{"v":33935631.17044847,"d":"$33,935,631"}},{"$f":"CM25","v":{"v":33935631.17044847,"d":"$33,935,631"}},{"$f":"AVERAGE('Trial 1'!CO19,'Trial 2'!CO19,'Trial 3'!CO19,'Trial 4'!CO19,'Trial 5'!CO19,'Trial 6'!CO19,'Trial 7'!CO19,'Trial 8'!CO19)","v":{"v":33923023.85367459,"d":"$33,923,024"}},{"$f":"AVERAGE('Trial 1'!CP19,'Trial 2'!CP19,'Trial 3'!CP19,'Trial 4'!CP19,'Trial 5'!CP19,'Trial 6'!CP19,'Trial 7'!CP19,'Trial 8'!CP19)","v":{"v":33910409.68881352,"d":"$33,910,410"}},{"$f":"AVERAGE('Trial 1'!CQ19,'Trial 2'!CQ19,'Trial 3'!CQ19,'Trial 4'!CQ19,'Trial 5'!CQ19,'Trial 6'!CQ19,'Trial 7'!CQ19,'Trial 8'!CQ19)","v":{"v":33897772.598913655,"d":"$33,897,773"}},{"$f":"AVERAGE('Trial 1'!CR19,'Trial 2'!CR19,'Trial 3'!CR19,'Trial 4'!CR19,'Trial 5'!CR19,'Trial 6'!CR19,'Trial 7'!CR19,'Trial 8'!CR19)","v":{"v":33885114.728323914,"d":"$33,885,115"}},{"$f":"AVERAGE('Trial 1'!CS19,'Trial 2'!CS19,'Trial 3'!CS19,'Trial 4'!CS19,'Trial 5'!CS19,'Trial 6'!CS19,'Trial 7'!CS19,'Trial 8'!CS19)","v":{"v":33872433.833871506,"d":"$33,872,434"}},{"$f":"AVERAGE('Trial 1'!CT19,'Trial 2'!CT19,'Trial 3'!CT19,'Trial 4'!CT19,'Trial 5'!CT19,'Trial 6'!CT19,'Trial 7'!CT19,'Trial 8'!CT19)","v":{"v":33859719.63190273,"d":"$33,859,720"}},{"$f":"AVERAGE('Trial 1'!CU19,'Trial 2'!CU19,'Trial 3'!CU19,'Trial 4'!CU19,'Trial 5'!CU19,'Trial 6'!CU19,'Trial 7'!CU19,'Trial 8'!CU19)","v":{"v":33846930.699006625,"d":"$33,846,931"}},{"$f":"AVERAGE('Trial 1'!CV19,'Trial 2'!CV19,'Trial 3'!CV19,'Trial 4'!CV19,'Trial 5'!CV19,'Trial 6'!CV19,'Trial 7'!CV19,'Trial 8'!CV19)","v":{"v":33834089.01864315,"d":"$33,834,089"}},{"$f":"AVERAGE('Trial 1'!CW19,'Trial 2'!CW19,'Trial 3'!CW19,'Trial 4'!CW19,'Trial 5'!CW19,'Trial 6'!CW19,'Trial 7'!CW19,'Trial 8'!CW19)","v":{"v":33821261.544883795,"d":"$33,821,262"}},{"$f":"AVERAGE('Trial 1'!CX19,'Trial 2'!CX19,'Trial 3'!CX19,'Trial 4'!CX19,'Trial 5'!CX19,'Trial 6'!CX19,'Trial 7'!CX19,'Trial 8'!CX19)","v":{"v":33808395.64508326,"d":"$33,808,396"}},{"$f":"AVERAGE('Trial 1'!CY19,'Trial 2'!CY19,'Trial 3'!CY19,'Trial 4'!CY19,'Trial 5'!CY19,'Trial 6'!CY19,'Trial 7'!CY19,'Trial 8'!CY19)","v":{"v":33795496.26449756,"d":"$33,795,496"}},{"$f":"AVERAGE('Trial 1'!CZ19,'Trial 2'!CZ19,'Trial 3'!CZ19,'Trial 4'!CZ19,'Trial 5'!CZ19,'Trial 6'!CZ19,'Trial 7'!CZ19,'Trial 8'!CZ19)","v":{"v":33782556.29494192,"d":"$33,782,556"}},{"$f":"CZ25","v":{"v":33782556.29494192,"d":"$33,782,556"}},{"$f":"AVERAGE('Trial 1'!DB19,'Trial 2'!DB19,'Trial 3'!DB19,'Trial 4'!DB19,'Trial 5'!DB19,'Trial 6'!DB19,'Trial 7'!DB19,'Trial 8'!DB19)","v":{"v":33769602.462198325,"d":"$33,769,602"}},{"$f":"AVERAGE('Trial 1'!DC19,'Trial 2'!DC19,'Trial 3'!DC19,'Trial 4'!DC19,'Trial 5'!DC19,'Trial 6'!DC19,'Trial 7'!DC19,'Trial 8'!DC19)","v":{"v":33756612.93248128,"d":"$33,756,613"}},{"$f":"AVERAGE('Trial 1'!DD19,'Trial 2'!DD19,'Trial 3'!DD19,'Trial 4'!DD19,'Trial 5'!DD19,'Trial 6'!DD19,'Trial 7'!DD19,'Trial 8'!DD19)","v":{"v":33743615.3539237,"d":"$33,743,615"}},{"$f":"AVERAGE('Trial 1'!DE19,'Trial 2'!DE19,'Trial 3'!DE19,'Trial 4'!DE19,'Trial 5'!DE19,'Trial 6'!DE19,'Trial 7'!DE19,'Trial 8'!DE19)","v":{"v":33730568.7749541,"d":"$33,730,569"}},{"$f":"AVERAGE('Trial 1'!DF19,'Trial 2'!DF19,'Trial 3'!DF19,'Trial 4'!DF19,'Trial 5'!DF19,'Trial 6'!DF19,'Trial 7'!DF19,'Trial 8'!DF19)","v":{"v":33717488.21117927,"d":"$33,717,488"}},{"$f":"AVERAGE('Trial 1'!DG19,'Trial 2'!DG19,'Trial 3'!DG19,'Trial 4'!DG19,'Trial 5'!DG19,'Trial 6'!DG19,'Trial 7'!DG19,'Trial 8'!DG19)","v":{"v":33704397.445405535,"d":"$33,704,397"}},{"$f":"AVERAGE('Trial 1'!DH19,'Trial 2'!DH19,'Trial 3'!DH19,'Trial 4'!DH19,'Trial 5'!DH19,'Trial 6'!DH19,'Trial 7'!DH19,'Trial 8'!DH19)","v":{"v":33691282.86597116,"d":"$33,691,283"}},{"$f":"AVERAGE('Trial 1'!DI19,'Trial 2'!DI19,'Trial 3'!DI19,'Trial 4'!DI19,'Trial 5'!DI19,'Trial 6'!DI19,'Trial 7'!DI19,'Trial 8'!DI19)","v":{"v":33678139.06328868,"d":"$33,678,139"}},{"$f":"AVERAGE('Trial 1'!DJ19,'Trial 2'!DJ19,'Trial 3'!DJ19,'Trial 4'!DJ19,'Trial 5'!DJ19,'Trial 6'!DJ19,'Trial 7'!DJ19,'Trial 8'!DJ19)","v":{"v":33664962.77255172,"d":"$33,664,963"}},{"$f":"AVERAGE('Trial 1'!DK19,'Trial 2'!DK19,'Trial 3'!DK19,'Trial 4'!DK19,'Trial 5'!DK19,'Trial 6'!DK19,'Trial 7'!DK19,'Trial 8'!DK19)","v":{"v":33651748.77495334,"d":"$33,651,749"}},{"$f":"AVERAGE('Trial 1'!DL19,'Trial 2'!DL19,'Trial 3'!DL19,'Trial 4'!DL19,'Trial 5'!DL19,'Trial 6'!DL19,'Trial 7'!DL19,'Trial 8'!DL19)","v":{"v":33638514.80406481,"d":"$33,638,515"}},{"$f":"AVERAGE('Trial 1'!DM19,'Trial 2'!DM19,'Trial 3'!DM19,'Trial 4'!DM19,'Trial 5'!DM19,'Trial 6'!DM19,'Trial 7'!DM19,'Trial 8'!DM19)","v":{"v":33625257.03779657,"d":"$33,625,257"}},{"$f":"DM25","v":{"v":33625257.03779657,"d":"$33,625,257"}},{"$f":"AVERAGE('Trial 1'!DO19,'Trial 2'!DO19,'Trial 3'!DO19,'Trial 4'!DO19,'Trial 5'!DO19,'Trial 6'!DO19,'Trial 7'!DO19,'Trial 8'!DO19)","v":{"v":33611962.27642945,"d":"$33,611,962"}},{"$f":"AVERAGE('Trial 1'!DP19,'Trial 2'!DP19,'Trial 3'!DP19,'Trial 4'!DP19,'Trial 5'!DP19,'Trial 6'!DP19,'Trial 7'!DP19,'Trial 8'!DP19)","v":{"v":33598637.50508385,"d":"$33,598,638"}},{"$f":"AVERAGE('Trial 1'!DQ19,'Trial 2'!DQ19,'Trial 3'!DQ19,'Trial 4'!DQ19,'Trial 5'!DQ19,'Trial 6'!DQ19,'Trial 7'!DQ19,'Trial 8'!DQ19)","v":{"v":33585314.92926693,"d":"$33,585,315"}},{"$f":"AVERAGE('Trial 1'!DR19,'Trial 2'!DR19,'Trial 3'!DR19,'Trial 4'!DR19,'Trial 5'!DR19,'Trial 6'!DR19,'Trial 7'!DR19,'Trial 8'!DR19)","v":{"v":33571964.15156749,"d":"$33,571,964"}},{"$f":"AVERAGE('Trial 1'!DS19,'Trial 2'!DS19,'Trial 3'!DS19,'Trial 4'!DS19,'Trial 5'!DS19,'Trial 6'!DS19,'Trial 7'!DS19,'Trial 8'!DS19)","v":{"v":33558625.941704765,"d":"$33,558,626"}},{"$f":"AVERAGE('Trial 1'!DT19,'Trial 2'!DT19,'Trial 3'!DT19,'Trial 4'!DT19,'Trial 5'!DT19,'Trial 6'!DT19,'Trial 7'!DT19,'Trial 8'!DT19)","v":{"v":33545276.379179727,"d":"$33,545,276"}},{"$f":"AVERAGE('Trial 1'!DU19,'Trial 2'!DU19,'Trial 3'!DU19,'Trial 4'!DU19,'Trial 5'!DU19,'Trial 6'!DU19,'Trial 7'!DU19,'Trial 8'!DU19)","v":{"v":33531912.69355189,"d":"$33,531,913"}},{"$f":"AVERAGE('Trial 1'!DV19,'Trial 2'!DV19,'Trial 3'!DV19,'Trial 4'!DV19,'Trial 5'!DV19,'Trial 6'!DV19,'Trial 7'!DV19,'Trial 8'!DV19)","v":{"v":33518560.19599856,"d":"$33,518,560"}},{"$f":"AVERAGE('Trial 1'!DW19,'Trial 2'!DW19,'Trial 3'!DW19,'Trial 4'!DW19,'Trial 5'!DW19,'Trial 6'!DW19,'Trial 7'!DW19,'Trial 8'!DW19)","v":{"v":33505202.330858015,"d":"$33,505,202"}},{"$f":"AVERAGE('Trial 1'!DX19,'Trial 2'!DX19,'Trial 3'!DX19,'Trial 4'!DX19,'Trial 5'!DX19,'Trial 6'!DX19,'Trial 7'!DX19,'Trial 8'!DX19)","v":{"v":33491846.608364306,"d":"$33,491,847"}},{"$f":"AVERAGE('Trial 1'!DY19,'Trial 2'!DY19,'Trial 3'!DY19,'Trial 4'!DY19,'Trial 5'!DY19,'Trial 6'!DY19,'Trial 7'!DY19,'Trial 8'!DY19)","v":{"v":33478482.374495365,"d":"$33,478,482"}},{"$f":"AVERAGE('Trial 1'!DZ19,'Trial 2'!DZ19,'Trial 3'!DZ19,'Trial 4'!DZ19,'Trial 5'!DZ19,'Trial 6'!DZ19,'Trial 7'!DZ19,'Trial 8'!DZ19)","v":{"v":33465105.96834648,"d":"$33,465,106"}},{"$f":"DZ25","v":{"v":33465105.96834648,"d":"$33,465,106"}},{"$f":"AVERAGE('Trial 1'!EB19,'Trial 2'!EB19,'Trial 3'!EB19,'Trial 4'!EB19,'Trial 5'!EB19,'Trial 6'!EB19,'Trial 7'!EB19,'Trial 8'!EB19)","v":{"v":33451720.052070413,"d":"$33,451,720"}},{"$f":"AVERAGE('Trial 1'!EC19,'Trial 2'!EC19,'Trial 3'!EC19,'Trial 4'!EC19,'Trial 5'!EC19,'Trial 6'!EC19,'Trial 7'!EC19,'Trial 8'!EC19)","v":{"v":33438292.429273862,"d":"$33,438,292"}},{"$f":"AVERAGE('Trial 1'!ED19,'Trial 2'!ED19,'Trial 3'!ED19,'Trial 4'!ED19,'Trial 5'!ED19,'Trial 6'!ED19,'Trial 7'!ED19,'Trial 8'!ED19)","v":{"v":33424865.559675813,"d":"$33,424,866"}},{"$f":"AVERAGE('Trial 1'!EE19,'Trial 2'!EE19,'Trial 3'!EE19,'Trial 4'!EE19,'Trial 5'!EE19,'Trial 6'!EE19,'Trial 7'!EE19,'Trial 8'!EE19)","v":{"v":33411401.60819264,"d":"$33,411,402"}},{"$f":"AVERAGE('Trial 1'!EF19,'Trial 2'!EF19,'Trial 3'!EF19,'Trial 4'!EF19,'Trial 5'!EF19,'Trial 6'!EF19,'Trial 7'!EF19,'Trial 8'!EF19)","v":{"v":33397913.25117173,"d":"$33,397,913"}},{"$f":"AVERAGE('Trial 1'!EG19,'Trial 2'!EG19,'Trial 3'!EG19,'Trial 4'!EG19,'Trial 5'!EG19,'Trial 6'!EG19,'Trial 7'!EG19,'Trial 8'!EG19)","v":{"v":33384418.80493521,"d":"$33,384,419"}},{"$f":"AVERAGE('Trial 1'!EH19,'Trial 2'!EH19,'Trial 3'!EH19,'Trial 4'!EH19,'Trial 5'!EH19,'Trial 6'!EH19,'Trial 7'!EH19,'Trial 8'!EH19)","v":{"v":33370921.941037472,"d":"$33,370,922"}},{"$f":"AVERAGE('Trial 1'!EI19,'Trial 2'!EI19,'Trial 3'!EI19,'Trial 4'!EI19,'Trial 5'!EI19,'Trial 6'!EI19,'Trial 7'!EI19,'Trial 8'!EI19)","v":{"v":33357396.634808782,"d":"$33,357,397"}},{"$f":"AVERAGE('Trial 1'!EJ19,'Trial 2'!EJ19,'Trial 3'!EJ19,'Trial 4'!EJ19,'Trial 5'!EJ19,'Trial 6'!EJ19,'Trial 7'!EJ19,'Trial 8'!EJ19)","v":{"v":33343851.799202017,"d":"$33,343,852"}},{"$f":"AVERAGE('Trial 1'!EK19,'Trial 2'!EK19,'Trial 3'!EK19,'Trial 4'!EK19,'Trial 5'!EK19,'Trial 6'!EK19,'Trial 7'!EK19,'Trial 8'!EK19)","v":{"v":33330252.65238611,"d":"$33,330,253"}},{"$f":"AVERAGE('Trial 1'!EL19,'Trial 2'!EL19,'Trial 3'!EL19,'Trial 4'!EL19,'Trial 5'!EL19,'Trial 6'!EL19,'Trial 7'!EL19,'Trial 8'!EL19)","v":{"v":33316636.782841437,"d":"$33,316,637"}},{"$f":"AVERAGE('Trial 1'!EM19,'Trial 2'!EM19,'Trial 3'!EM19,'Trial 4'!EM19,'Trial 5'!EM19,'Trial 6'!EM19,'Trial 7'!EM19,'Trial 8'!EM19)","v":{"v":33303025.83441105,"d":"$33,303,026"}},{"$f":"EM25","v":{"v":33303025.83441105,"d":"$33,303,026"}}]
[{"$f":"Labels!B23","v":"Capital std dev"},{"$f":"STDEV('Trial 1'!B19,'Trial 2'!B19,'Trial 3'!B19,'Trial 4'!B19,'Trial 5'!B19,'Trial 6'!B19,'Trial 7'!B19,'Trial 8'!B19)","v":{"v":7.9650056932098984E-9,"d":"$0"}},{"$f":"STDEV('Trial 1'!C19,'Trial 2'!C19,'Trial 3'!C19,'Trial 4'!C19,'Trial 5'!C19,'Trial 6'!C19,'Trial 7'!C19,'Trial 8'!C19)","v":{"v":7.9650056932098984E-9,"d":"$0"}},{"$f":"STDEV('Trial 1'!D19,'Trial 2'!D19,'Trial 3'!D19,'Trial 4'!D19,'Trial 5'!D19,'Trial 6'!D19,'Trial 7'!D19,'Trial 8'!D19)","v":{"v":39.008475487475785,"d":"$39"}},{"$f":"STDEV('Trial 1'!E19,'Trial 2'!E19,'Trial 3'!E19,'Trial 4'!E19,'Trial 5'!E19,'Trial 6'!E19,'Trial 7'!E19,'Trial 8'!E19)","v":{"v":70.5110759424264,"d":"$71"}},{"$f":"STDEV('Trial 1'!F19,'Trial 2'!F19,'Trial 3'!F19,'Trial 4'!F19,'Trial 5'!F19,'Trial 6'!F19,'Trial 7'!F19,'Trial 8'!F19)","v":{"v":133.0697649661099,"d":"$133"}},{"$f":"STDEV('Trial 1'!G19,'Trial 2'!G19,'Trial 3'!G19,'Trial 4'!G19,'Trial 5'!G19,'Trial 6'!G19,'Trial 7'!G19,'Trial 8'!G19)","v":{"v":196.16423673054845,"d":"$196"}},{"$f":"STDEV('Trial 1'!H19,'Trial 2'!H19,'Trial 3'!H19,'Trial 4'!H19,'Trial 5'!H19,'Trial 6'!H19,'Trial 7'!H19,'Trial 8'!H19)","v":{"v":285.3144822905499,"d":"$285"}},{"$f":"STDEV('Trial 1'!I19,'Trial 2'!I19,'Trial 3'!I19,'Trial 4'!I19,'Trial 5'!I19,'Trial 6'!I19,'Trial 7'!I19,'Trial 8'!I19)","v":{"v":387.29293804168213,"d":"$387"}},{"$f":"STDEV('Trial 1'!J19,'Trial 2'!J19,'Trial 3'!J19,'Trial 4'!J19,'Trial 5'!J19,'Trial 6'!J19,'Trial 7'!J19,'Trial 8'!J19)","v":{"v":502.019592365925,"d":"$502"}},{"$f":"STDEV('Trial 1'!K19,'Trial 2'!K19,'Trial 3'!K19,'Trial 4'!K19,'Trial 5'!K19,'Trial 6'!K19,'Trial 7'!K19,'Trial 8'!K19)","v":{"v":615.4416258663592,"d":"$615"}},{"$f":"STDEV('Trial 1'!L19,'Trial 2'!L19,'Trial 3'!L19,'Trial 4'!L19,'Trial 5'!L19,'Trial 6'!L19,'Trial 7'!L19,'Trial 8'!L19)","v":{"v":712.4134722278781,"d":"$712"}},{"$f":"STDEV('Trial 1'!M19,'Trial 2'!M19,'Trial 3'!M19,'Trial 4'!M19,'Trial 5'!M19,'Trial 6'!M19,'Trial 7'!M19,'Trial 8'!M19)","v":{"v":837.3657710874372,"d":"$837"}},{"$f":"M26","v":{"v":837.3657710874372,"d":"$837"}},{"$f":"STDEV('Trial 1'!O19,'Trial 2'!O19,'Trial 3'!O19,'Trial 4'!O19,'Trial 5'!O19,'Trial 6'!O19,'Trial 7'!O19,'Trial 8'!O19)","v":{"v":990.1628409714398,"d":"$990"}},{"$f":"STDEV('Trial 1'!P19,'Trial 2'!P19,'Trial 3'!P19,'Trial 4'!P19,'Trial 5'!P19,'Trial 6'!P19,'Trial 7'!P19,'Trial 8'!P19)","v":{"v":1156.7250234964351,"d":"$1,157"}},{"$f":"STDEV('Trial 1'!Q19,'Trial 2'!Q19,'Trial 3'!Q19,'Trial 4'!Q19,'Trial 5'!Q19,'Trial 6'!Q19,'Trial 7'!Q19,'Trial 8'!Q19)","v":{"v":1325.6531459057328,"d":"$1,326"}},{"$f":"STDEV('Trial 1'!R19,'Trial 2'!R19,'Trial 3'!R19,'Trial 4'!R19,'Trial 5'!R19,'Trial 6'!R19,'Trial 7'!R19,'Trial 8'!R19)","v":{"v":1499.5566898007003,"d":"$1,500"}},{"$f":"STDEV('Trial 1'!S19,'Trial 2'!S19,'Trial 3'!S19,'Trial 4'!S19,'Trial 5'!S19,'Trial 6'!S19,'Trial 7'!S19,'Trial 8'!S19)","v":{"v":1651.2334180266914,"d":"$1,651"}},{"$f":"STDEV('Trial 1'!T19,'Trial 2'!T19,'Trial 3'!T19,'Trial 4'!T19,'Trial 5'!T19,'Trial 6'!T19,'Trial 7'!T19,'Trial 8'!T19)","v":{"v":1817.29489700605,"d":"$1,817"}},{"$f":"STDEV('Trial 1'!U19,'Trial 2'!U19,'Trial 3'!U19,'Trial 4'!U19,'Trial 5'!U19,'Trial 6'!U19,'Trial 7'!U19,'Trial 8'!U19)","v":{"v":1987.69245828591,"d":"$1,988"}},{"$f":"STDEV('Trial 1'!V19,'Trial 2'!V19,'Trial 3'!V19,'Trial 4'!V19,'Trial 5'!V19,'Trial 6'!V19,'Trial 7'!V19,'Trial 8'!V19)","v":{"v":2127.788470153327,"d":"$2,128"}},{"$f":"STDEV('Trial 1'!W19,'Trial 2'!W19,'Trial 3'!W19,'Trial 4'!W19,'Trial 5'!W19,'Trial 6'!W19,'Trial 7'!W19,'Trial 8'!W19)","v":{"v":2251.731699375813,"d":"$2,252"}},{"$f":"STDEV('Trial 1'!X19,'Trial 2'!X19,'Trial 3'!X19,'Trial 4'!X19,'Trial 5'!X19,'Trial 6'!X19,'Trial 7'!X19,'Trial 8'!X19)","v":{"v":2375.1285454993863,"d":"$2,375"}},{"$f":"STDEV('Trial 1'!Y19,'Trial 2'!Y19,'Trial 3'!Y19,'Trial 4'!Y19,'Trial 5'!Y19,'Trial 6'!Y19,'Trial 7'!Y19,'Trial 8'!Y19)","v":{"v":2490.7745737574724,"d":"$2,491"}},{"$f":"STDEV('Trial 1'!Z19,'Trial 2'!Z19,'Trial 3'!Z19,'Trial 4'!Z19,'Trial 5'!Z19,'Trial 6'!Z19,'Trial 7'!Z19,'Trial 8'!Z19)","v":{"v":2644.857673595992,"d":"$2,645"}},{"$f":"Z26","v":{"v":2644.857673595992,"d":"$2,645"}},{"$f":"STDEV('Trial 1'!AB19,'Trial 2'!AB19,'Trial 3'!AB19,'Trial 4'!AB19,'Trial 5'!AB19,'Trial 6'!AB19,'Trial 7'!AB19,'Trial 8'!AB19)","v":{"v":2820.735177927785,"d":"$2,821"}},{"$f":"STDEV('Trial 1'!AC19,'Trial 2'!AC19,'Trial 3'!AC19,'Trial 4'!AC19,'Trial 5'!AC19,'Trial 6'!AC19,'Trial 7'!AC19,'Trial 8'!AC19)","v":{"v":2981.419125070171,"d":"$2,981"}},{"$f":"STDEV('Trial 1'!AD19,'Trial 2'!AD19,'Trial 3'!AD19,'Trial 4'!AD19,'Trial 5'!AD19,'Trial 6'!AD19,'Trial 7'!AD19,'Trial 8'!AD19)","v":{"v":3118.6319936283758,"d":"$3,119"}},{"$f":"STDEV('Trial 1'!AE19,'Trial 2'!AE19,'Trial 3'!AE19,'Trial 4'!AE19,'Trial 5'!AE19,'Trial 6'!AE19,'Trial 7'!AE19,'Trial 8'!AE19)","v":{"v":3269.578781812573,"d":"$3,270"}},{"$f":"STDEV('Trial 1'!AF19,'Trial 2'!AF19,'Trial 3'!AF19,'Trial 4'!AF19,'Trial 5'!AF19,'Trial 6'!AF19,'Trial 7'!AF19,'Trial 8'!AF19)","v":{"v":3419.852954275891,"d":"$3,420"}},{"$f":"STDEV('Trial 1'!AG19,'Trial 2'!AG19,'Trial 3'!AG19,'Trial 4'!AG19,'Trial 5'!AG19,'Trial 6'!AG19,'Trial 7'!AG19,'Trial 8'!AG19)","v":{"v":3601.7505623777024,"d":"$3,602"}},{"$f":"STDEV('Trial 1'!AH19,'Trial 2'!AH19,'Trial 3'!AH19,'Trial 4'!AH19,'Trial 5'!AH19,'Trial 6'!AH19,'Trial 7'!AH19,'Trial 8'!AH19)","v":{"v":3806.866529545866,"d":"$3,807"}},{"$f":"STDEV('Trial 1'!AI19,'Trial 2'!AI19,'Trial 3'!AI19,'Trial 4'!AI19,'Trial 5'!AI19,'Trial 6'!AI19,'Trial 7'!AI19,'Trial 8'!AI19)","v":{"v":4013.11827140755,"d":"$4,013"}},{"$f":"STDEV('Trial 1'!AJ19,'Trial 2'!AJ19,'Trial 3'!AJ19,'Trial 4'!AJ19,'Trial 5'!AJ19,'Trial 6'!AJ19,'Trial 7'!AJ19,'Trial 8'!AJ19)","v":{"v":4226.325914777574,"d":"$4,226"}},{"$f":"STDEV('Trial 1'!AK19,'Trial 2'!AK19,'Trial 3'!AK19,'Trial 4'!AK19,'Trial 5'!AK19,'Trial 6'!AK19,'Trial 7'!AK19,'Trial 8'!AK19)","v":{"v":4433.088255060201,"d":"$4,433"}},{"$f":"STDEV('Trial 1'!AL19,'Trial 2'!AL19,'Trial 3'!AL19,'Trial 4'!AL19,'Trial 5'!AL19,'Trial 6'!AL19,'Trial 7'!AL19,'Trial 8'!AL19)","v":{"v":4635.8674138011875,"d":"$4,636"}},{"$f":"STDEV('Trial 1'!AM19,'Trial 2'!AM19,'Trial 3'!AM19,'Trial 4'!AM19,'Trial 5'!AM19,'Trial 6'!AM19,'Trial 7'!AM19,'Trial 8'!AM19)","v":{"v":4832.166592769931,"d":"$4,832"}},{"$f":"AM26","v":{"v":4832.166592769931,"d":"$4,832"}},{"$f":"STDEV('Trial 1'!AO19,'Trial 2'!AO19,'Trial 3'!AO19,'Trial 4'!AO19,'Trial 5'!AO19,'Trial 6'!AO19,'Trial 7'!AO19,'Trial 8'!AO19)","v":{"v":5032.3087796790805,"d":"$5,032"}},{"$f":"STDEV('Trial 1'!AP19,'Trial 2'!AP19,'Trial 3'!AP19,'Trial 4'!AP19,'Trial 5'!AP19,'Trial 6'!AP19,'Trial 7'!AP19,'Trial 8'!AP19)","v":{"v":5258.106365409052,"d":"$5,258"}},{"$f":"STDEV('Trial 1'!AQ19,'Trial 2'!AQ19,'Trial 3'!AQ19,'Trial 4'!AQ19,'Trial 5'!AQ19,'Trial 6'!AQ19,'Trial 7'!AQ19,'Trial 8'!AQ19)","v":{"v":5460.329225391675,"d":"$5,460"}},{"$f":"STDEV('Trial 1'!AR19,'Trial 2'!AR19,'Trial 3'!AR19,'Trial 4'!AR19,'Trial 5'!AR19,'Trial 6'!AR19,'Trial 7'!AR19,'Trial 8'!AR19)","v":{"v":5656.83848934592,"d":"$5,657"}},{"$f":"STDEV('Trial 1'!AS19,'Trial 2'!AS19,'Trial 3'!AS19,'Trial 4'!AS19,'Trial 5'!AS19,'Trial 6'!AS19,'Trial 7'!AS19,'Trial 8'!AS19)","v":{"v":5861.742652561319,"d":"$5,862"}},{"$f":"STDEV('Trial 1'!AT19,'Trial 2'!AT19,'Trial 3'!AT19,'Trial 4'!AT19,'Trial 5'!AT19,'Trial 6'!AT19,'Trial 7'!AT19,'Trial 8'!AT19)","v":{"v":6090.970903097862,"d":"$6,091"}},{"$f":"STDEV('Trial 1'!AU19,'Trial 2'!AU19,'Trial 3'!AU19,'Trial 4'!AU19,'Trial 5'!AU19,'Trial 6'!AU19,'Trial 7'!AU19,'Trial 8'!AU19)","v":{"v":6321.451466327158,"d":"$6,321"}},{"$f":"STDEV('Trial 1'!AV19,'Trial 2'!AV19,'Trial 3'!AV19,'Trial 4'!AV19,'Trial 5'!AV19,'Trial 6'!AV19,'Trial 7'!AV19,'Trial 8'!AV19)","v":{"v":6529.241667369705,"d":"$6,529"}},{"$f":"STDEV('Trial 1'!AW19,'Trial 2'!AW19,'Trial 3'!AW19,'Trial 4'!AW19,'Trial 5'!AW19,'Trial 6'!AW19,'Trial 7'!AW19,'Trial 8'!AW19)","v":{"v":6706.149210511623,"d":"$6,706"}},{"$f":"STDEV('Trial 1'!AX19,'Trial 2'!AX19,'Trial 3'!AX19,'Trial 4'!AX19,'Trial 5'!AX19,'Trial 6'!AX19,'Trial 7'!AX19,'Trial 8'!AX19)","v":{"v":6874.154742388922,"d":"$6,874"}},{"$f":"STDEV('Trial 1'!AY19,'Trial 2'!AY19,'Trial 3'!AY19,'Trial 4'!AY19,'Trial 5'!AY19,'Trial 6'!AY19,'Trial 7'!AY19,'Trial 8'!AY19)","v":{"v":7028.170856974633,"d":"$7,028"}},{"$f":"STDEV('Trial 1'!AZ19,'Trial 2'!AZ19,'Trial 3'!AZ19,'Trial 4'!AZ19,'Trial 5'!AZ19,'Trial 6'!AZ19,'Trial 7'!AZ19,'Trial 8'!AZ19)","v":{"v":7166.262614511534,"d":"$7,166"}},{"$f":"AZ26","v":{"v":7166.262614511534,"d":"$7,166"}},{"$f":"STDEV('Trial 1'!BB19,'Trial 2'!BB19,'Trial 3'!BB19,'Trial 4'!BB19,'Trial 5'!BB19,'Trial 6'!BB19,'Trial 7'!BB19,'Trial 8'!BB19)","v":{"v":7306.052773174261,"d":"$7,306"}},{"$f":"STDEV('Trial 1'!BC19,'Trial 2'!BC19,'Trial 3'!BC19,'Trial 4'!BC19,'Trial 5'!BC19,'Trial 6'!BC19,'Trial 7'!BC19,'Trial 8'!BC19)","v":{"v":7460.8110516956285,"d":"$7,461"}},{"$f":"STDEV('Trial 1'!BD19,'Trial 2'!BD19,'Trial 3'!BD19,'Trial 4'!BD19,'Trial 5'!BD19,'Trial 6'!BD19,'Trial 7'!BD19,'Trial 8'!BD19)","v":{"v":7574.641732533732,"d":"$7,575"}},{"$f":"STDEV('Trial 1'!BE19,'Trial 2'!BE19,'Trial 3'!BE19,'Trial 4'!BE19,'Trial 5'!BE19,'Trial 6'!BE19,'Trial 7'!BE19,'Trial 8'!BE19)","v":{"v":7670.58792373566,"d":"$7,671"}},{"$f":"STDEV('Trial 1'!BF19,'Trial 2'!BF19,'Trial 3'!BF19,'Trial 4'!BF19,'Trial 5'!BF19,'Trial 6'!BF19,'Trial 7'!BF19,'Trial 8'!BF19)","v":{"v":7784.415294515889,"d":"$7,784"}},{"$f":"STDEV('Trial 1'!BG19,'Trial 2'!BG19,'Trial 3'!BG19,'Trial 4'!BG19,'Trial 5'!BG19,'Trial 6'!BG19,'Trial 7'!BG19,'Trial 8'!BG19)","v":{"v":7896.161291290406,"d":"$7,896"}},{"$f":"STDEV('Trial 1'!BH19,'Trial 2'!BH19,'Trial 3'!BH19,'Trial 4'!BH19,'Trial 5'!BH19,'Trial 6'!BH19,'Trial 7'!BH19,'Trial 8'!BH19)","v":{"v":8028.0571343817855,"d":"$8,028"}},{"$f":"STDEV('Trial 1'!BI19,'Trial 2'!BI19,'Trial 3'!BI19,'Trial 4'!BI19,'Trial 5'!BI19,'Trial 6'!BI19,'Trial 7'!BI19,'Trial 8'!BI19)","v":{"v":8181.364408178037,"d":"$8,181"}},{"$f":"STDEV('Trial 1'!BJ19,'Trial 2'!BJ19,'Trial 3'!BJ19,'Trial 4'!BJ19,'Trial 5'!BJ19,'Trial 6'!BJ19,'Trial 7'!BJ19,'Trial 8'!BJ19)","v":{"v":8364.986874674765,"d":"$8,365"}},{"$f":"STDEV('Trial 1'!BK19,'Trial 2'!BK19,'Trial 3'!BK19,'Trial 4'!BK19,'Trial 5'!BK19,'Trial 6'!BK19,'Trial 7'!BK19,'Trial 8'!BK19)","v":{"v":8534.51445231449,"d":"$8,535"}},{"$f":"STDEV('Trial 1'!BL19,'Trial 2'!BL19,'Trial 3'!BL19,'Trial 4'!BL19,'Trial 5'!BL19,'Trial 6'!BL19,'Trial 7'!BL19,'Trial 8'!BL19)","v":{"v":8716.012881076551,"d":"$8,716"}},{"$f":"STDEV('Trial 1'!BM19,'Trial 2'!BM19,'Trial 3'!BM19,'Trial 4'!BM19,'Trial 5'!BM19,'Trial 6'!BM19,'Trial 7'!BM19,'Trial 8'!BM19)","v":{"v":8865.196264736496,"d":"$8,865"}},{"$f":"BM26","v":{"v":8865.196264736496,"d":"$8,865"}},{"$f":"STDEV('Trial 1'!BO19,'Trial 2'!BO19,'Trial 3'!BO19,'Trial 4'!BO19,'Trial 5'!BO19,'Trial 6'!BO19,'Trial 7'!BO19,'Trial 8'!BO19)","v":{"v":8973.720721335072,"d":"$8,974"}},{"$f":"STDEV('Trial 1'!BP19,'Trial 2'!BP19,'Trial 3'!BP19,'Trial 4'!BP19,'Trial 5'!BP19,'Trial 6'!BP19,'Trial 7'!BP19,'Trial 8'!BP19)","v":{"v":9075.545766973208,"d":"$9,076"}},{"$f":"STDEV('Trial 1'!BQ19,'Trial 2'!BQ19,'Trial 3'!BQ19,'Trial 4'!BQ19,'Trial 5'!BQ19,'Trial 6'!BQ19,'Trial 7'!BQ19,'Trial 8'!BQ19)","v":{"v":9141.573486570927,"d":"$9,142"}},{"$f":"STDEV('Trial 1'!BR19,'Trial 2'!BR19,'Trial 3'!BR19,'Trial 4'!BR19,'Trial 5'!BR19,'Trial 6'!BR19,'Trial 7'!BR19,'Trial 8'!BR19)","v":{"v":9160.9678222171,"d":"$9,161"}},{"$f":"STDEV('Trial 1'!BS19,'Trial 2'!BS19,'Trial 3'!BS19,'Trial 4'!BS19,'Trial 5'!BS19,'Trial 6'!BS19,'Trial 7'!BS19,'Trial 8'!BS19)","v":{"v":9199.686941978258,"d":"$9,200"}},{"$f":"STDEV('Trial 1'!BT19,'Trial 2'!BT19,'Trial 3'!BT19,'Trial 4'!BT19,'Trial 5'!BT19,'Trial 6'!BT19,'Trial 7'!BT19,'Trial 8'!BT19)","v":{"v":9260.11575463199,"d":"$9,260"}},{"$f":"STDEV('Trial 1'!BU19,'Trial 2'!BU19,'Trial 3'!BU19,'Trial 4'!BU19,'Trial 5'!BU19,'Trial 6'!BU19,'Trial 7'!BU19,'Trial 8'!BU19)","v":{"v":9333.359547227212,"d":"$9,333"}},{"$f":"STDEV('Trial 1'!BV19,'Trial 2'!BV19,'Trial 3'!BV19,'Trial 4'!BV19,'Trial 5'!BV19,'Trial 6'!BV19,'Trial 7'!BV19,'Trial 8'!BV19)","v":{"v":9404.130957948191,"d":"$9,404"}},{"$f":"STDEV('Trial 1'!BW19,'Trial 2'!BW19,'Trial 3'!BW19,'Trial 4'!BW19,'Trial 5'!BW19,'Trial 6'!BW19,'Trial 7'!BW19,'Trial 8'!BW19)","v":{"v":9505.554516570162,"d":"$9,506"}},{"$f":"STDEV('Trial 1'!BX19,'Trial 2'!BX19,'Trial 3'!BX19,'Trial 4'!BX19,'Trial 5'!BX19,'Trial 6'!BX19,'Trial 7'!BX19,'Trial 8'!BX19)","v":{"v":9629.732834232223,"d":"$9,630"}},{"$f":"STDEV('Trial 1'!BY19,'Trial 2'!BY19,'Trial 3'!BY19,'Trial 4'!BY19,'Trial 5'!BY19,'Trial 6'!BY19,'Trial 7'!BY19,'Trial 8'!BY19)","v":{"v":9796.578098678347,"d":"$9,797"}},{"$f":"STDEV('Trial 1'!BZ19,'Trial 2'!BZ19,'Trial 3'!BZ19,'Trial 4'!BZ19,'Trial 5'!BZ19,'Trial 6'!BZ19,'Trial 7'!BZ19,'Trial 8'!BZ19)","v":{"v":9944.234774328284,"d":"$9,944"}},{"$f":"BZ26","v":{"v":9944.234774328284,"d":"$9,944"}},{"$f":"STDEV('Trial 1'!CB19,'Trial 2'!CB19,'Trial 3'!CB19,'Trial 4'!CB19,'Trial 5'!CB19,'Trial 6'!CB19,'Trial 7'!CB19,'Trial 8'!CB19)","v":{"v":10058.738503793082,"d":"$10,059"}},{"$f":"STDEV('Trial 1'!CC19,'Trial 2'!CC19,'Trial 3'!CC19,'Trial 4'!CC19,'Trial 5'!CC19,'Trial 6'!CC19,'Trial 7'!CC19,'Trial 8'!CC19)","v":{"v":10152.02545107801,"d":"$10,152"}},{"$f":"STDEV('Trial 1'!CD19,'Trial 2'!CD19,'Trial 3'!CD19,'Trial 4'!CD19,'Trial 5'!CD19,'Trial 6'!CD19,'Trial 7'!CD19,'Trial 8'!CD19)","v":{"v":10249.623662117141,"d":"$10,250"}},{"$f":"STDEV('Trial 1'!CE19,'Trial 2'!CE19,'Trial 3'!CE19,'Trial 4'!CE19,'Trial 5'!CE19,'Trial 6'!CE19,'Trial 7'!CE19,'Trial 8'!CE19)","v":{"v":10346.606570717227,"d":"$10,347"}},{"$f":"STDEV('Trial 1'!CF19,'Trial 2'!CF19,'Trial 3'!CF19,'Trial 4'!CF19,'Trial 5'!CF19,'Trial 6'!CF19,'Trial 7'!CF19,'Trial 8'!CF19)","v":{"v":10471.112367913835,"d":"$10,471"}},{"$f":"STDEV('Trial 1'!CG19,'Trial 2'!CG19,'Trial 3'!CG19,'Trial 4'!CG19,'Trial 5'!CG19,'Trial 6'!CG19,'Trial 7'!CG19,'Trial 8'!CG19)","v":{"v":10578.758193588035,"d":"$10,579"}},{"$f":"STDEV('Trial 1'!CH19,'Trial 2'!CH19,'Trial 3'!CH19,'Trial 4'!CH19,'Trial 5'!CH19,'Trial 6'!CH19,'Trial 7'!CH19,'Trial 8'!CH19)","v":{"v":10674.625988432952,"d":"$10,675"}},{"$f":"STDEV('Trial 1'!CI19,'Trial 2'!CI19,'Trial 3'!CI19,'Trial 4'!CI19,'Trial 5'!CI19,'Trial 6'!CI19,'Trial 7'!CI19,'Trial 8'!CI19)","v":{"v":10788.208432596588,"d":"$10,788"}},{"$f":"STDEV('Trial 1'!CJ19,'Trial 2'!CJ19,'Trial 3'!CJ19,'Trial 4'!CJ19,'Trial 5'!CJ19,'Trial 6'!CJ19,'Trial 7'!CJ19,'Trial 8'!CJ19)","v":{"v":10865.253975381456,"d":"$10,865"}},{"$f":"STDEV('Trial 1'!CK19,'Trial 2'!CK19,'Trial 3'!CK19,'Trial 4'!CK19,'Trial 5'!CK19,'Trial 6'!CK19,'Trial 7'!CK19,'Trial 8'!CK19)","v":{"v":10917.774396864192,"d":"$10,918"}},{"$f":"STDEV('Trial 1'!CL19,'Trial 2'!CL19,'Trial 3'!CL19,'Trial 4'!CL19,'Trial 5'!CL19,'Trial 6'!CL19,'Trial 7'!CL19,'Trial 8'!CL19)","v":{"v":10998.613926142682,"d":"$10,999"}},{"$f":"STDEV('Trial 1'!CM19,'Trial 2'!CM19,'Trial 3'!CM19,'Trial 4'!CM19,'Trial 5'!CM19,'Trial 6'!CM19,'Trial 7'!CM19,'Trial 8'!CM19)","v":{"v":11070.096944453564,"d":"$11,070"}},{"$f":"CM26","v":{"v":11070.096944453564,"d":"$11,070"}},{"$f":"STDEV('Trial 1'!CO19,'Trial 2'!CO19,'Trial 3'!CO19,'Trial 4'!CO19,'Trial 5'!CO19,'Trial 6'!CO19,'Trial 7'!CO19,'Trial 8'!CO19)","v":{"v":11138.190600439553,"d":"$11,138"}},{"$f":"STDEV('Trial 1'!CP19,'Trial 2'!CP19,'Trial 3'!CP19,'Trial 4'!CP19,'Trial 5'!CP19,'Trial 6'!CP19,'Trial 7'!CP19,'Trial 8'!CP19)","v":{"v":11225.242038923336,"d":"$11,225"}},{"$f":"STDEV('Trial 1'!CQ19,'Trial 2'!CQ19,'Trial 3'!CQ19,'Trial 4'!CQ19,'Trial 5'!CQ19,'Trial 6'!CQ19,'Trial 7'!CQ19,'Trial 8'!CQ19)","v":{"v":11337.920564758559,"d":"$11,338"}},{"$f":"STDEV('Trial 1'!CR19,'Trial 2'!CR19,'Trial 3'!CR19,'Trial 4'!CR19,'Trial 5'!CR19,'Trial 6'!CR19,'Trial 7'!CR19,'Trial 8'!CR19)","v":{"v":11457.026116942108,"d":"$11,457"}},{"$f":"STDEV('Trial 1'!CS19,'Trial 2'!CS19,'Trial 3'!CS19,'Trial 4'!CS19,'Trial 5'!CS19,'Trial 6'!CS19,'Trial 7'!CS19,'Trial 8'!CS19)","v":{"v":11566.544683525179,"d":"$11,567"}},{"$f":"STDEV('Trial 1'!CT19,'Trial 2'!CT19,'Trial 3'!CT19,'Trial 4'!CT19,'Trial 5'!CT19,'Trial 6'!CT19,'Trial 7'!CT19,'Trial 8'!CT19)","v":{"v":11689.44456193932,"d":"$11,689"}},{"$f":"STDEV('Trial 1'!CU19,'Trial 2'!CU19,'Trial 3'!CU19,'Trial 4'!CU19,'Trial 5'!CU19,'Trial 6'!CU19,'Trial 7'!CU19,'Trial 8'!CU19)","v":{"v":11789.77116033651,"d":"$11,790"}},{"$f":"STDEV('Trial 1'!CV19,'Trial 2'!CV19,'Trial 3'!CV19,'Trial 4'!CV19,'Trial 5'!CV19,'Trial 6'!CV19,'Trial 7'!CV19,'Trial 8'!CV19)","v":{"v":11902.061368464923,"d":"$11,902"}},{"$f":"STDEV('Trial 1'!CW19,'Trial 2'!CW19,'Trial 3'!CW19,'Trial 4'!CW19,'Trial 5'!CW19,'Trial 6'!CW19,'Trial 7'!CW19,'Trial 8'!CW19)","v":{"v":12012.125783426676,"d":"$12,012"}},{"$f":"STDEV('Trial 1'!CX19,'Trial 2'!CX19,'Trial 3'!CX19,'Trial 4'!CX19,'Trial 5'!CX19,'Trial 6'!CX19,'Trial 7'!CX19,'Trial 8'!CX19)","v":{"v":12110.648554872729,"d":"$12,111"}},{"$f":"STDEV('Trial 1'!CY19,'Trial 2'!CY19,'Trial 3'!CY19,'Trial 4'!CY19,'Trial 5'!CY19,'Trial 6'!CY19,'Trial 7'!CY19,'Trial 8'!CY19)","v":{"v":12193.744997871534,"d":"$12,194"}},{"$f":"STDEV('Trial 1'!CZ19,'Trial 2'!CZ19,'Trial 3'!CZ19,'Trial 4'!CZ19,'Trial 5'!CZ19,'Trial 6'!CZ19,'Trial 7'!CZ19,'Trial 8'!CZ19)","v":{"v":12302.91523025562,"d":"$12,303"}},{"$f":"CZ26","v":{"v":12302.91523025562,"d":"$12,303"}},{"$f":"STDEV('Trial 1'!DB19,'Trial 2'!DB19,'Trial 3'!DB19,'Trial 4'!DB19,'Trial 5'!DB19,'Trial 6'!DB19,'Trial 7'!DB19,'Trial 8'!DB19)","v":{"v":12422.45095330782,"d":"$12,422"}},{"$f":"STDEV('Trial 1'!DC19,'Trial 2'!DC19,'Trial 3'!DC19,'Trial 4'!DC19,'Trial 5'!DC19,'Trial 6'!DC19,'Trial 7'!DC19,'Trial 8'!DC19)","v":{"v":12518.124943686395,"d":"$12,518"}},{"$f":"STDEV('Trial 1'!DD19,'Trial 2'!DD19,'Trial 3'!DD19,'Trial 4'!DD19,'Trial 5'!DD19,'Trial 6'!DD19,'Trial 7'!DD19,'Trial 8'!DD19)","v":{"v":12671.97148610417,"d":"$12,672"}},{"$f":"STDEV('Trial 1'!DE19,'Trial 2'!DE19,'Trial 3'!DE19,'Trial 4'!DE19,'Trial 5'!DE19,'Trial 6'!DE19,'Trial 7'!DE19,'Trial 8'!DE19)","v":{"v":12839.654506358658,"d":"$12,840"}},{"$f":"STDEV('Trial 1'!DF19,'Trial 2'!DF19,'Trial 3'!DF19,'Trial 4'!DF19,'Trial 5'!DF19,'Trial 6'!DF19,'Trial 7'!DF19,'Trial 8'!DF19)","v":{"v":12982.224722404053,"d":"$12,982"}},{"$f":"STDEV('Trial 1'!DG19,'Trial 2'!DG19,'Trial 3'!DG19,'Trial 4'!DG19,'Trial 5'!DG19,'Trial 6'!DG19,'Trial 7'!DG19,'Trial 8'!DG19)","v":{"v":13109.71167161186,"d":"$13,110"}},{"$f":"STDEV('Trial 1'!DH19,'Trial 2'!DH19,'Trial 3'!DH19,'Trial 4'!DH19,'Trial 5'!DH19,'Trial 6'!DH19,'Trial 7'!DH19,'Trial 8'!DH19)","v":{"v":13221.86545860692,"d":"$13,222"}},{"$f":"STDEV('Trial 1'!DI19,'Trial 2'!DI19,'Trial 3'!DI19,'Trial 4'!DI19,'Trial 5'!DI19,'Trial 6'!DI19,'Trial 7'!DI19,'Trial 8'!DI19)","v":{"v":13302.519178570255,"d":"$13,303"}},{"$f":"STDEV('Trial 1'!DJ19,'Trial 2'!DJ19,'Trial 3'!DJ19,'Trial 4'!DJ19,'Trial 5'!DJ19,'Trial 6'!DJ19,'Trial 7'!DJ19,'Trial 8'!DJ19)","v":{"v":13367.527184709461,"d":"$13,368"}},{"$f":"STDEV('Trial 1'!DK19,'Trial 2'!DK19,'Trial 3'!DK19,'Trial 4'!DK19,'Trial 5'!DK19,'Trial 6'!DK19,'Trial 7'!DK19,'Trial 8'!DK19)","v":{"v":13395.990234978432,"d":"$13,396"}},{"$f":"STDEV('Trial 1'!DL19,'Trial 2'!DL19,'Trial 3'!DL19,'Trial 4'!DL19,'Trial 5'!DL19,'Trial 6'!DL19,'Trial 7'!DL19,'Trial 8'!DL19)","v":{"v":13441.374041896092,"d":"$13,441"}},{"$f":"STDEV('Trial 1'!DM19,'Trial 2'!DM19,'Trial 3'!DM19,'Trial 4'!DM19,'Trial 5'!DM19,'Trial 6'!DM19,'Trial 7'!DM19,'Trial 8'!DM19)","v":{"v":13469.035378854482,"d":"$13,469"}},{"$f":"DM26","v":{"v":13469.035378854482,"d":"$13,469"}},{"$f":"STDEV('Trial 1'!DO19,'Trial 2'!DO19,'Trial 3'!DO19,'Trial 4'!DO19,'Trial 5'!DO19,'Trial 6'!DO19,'Trial 7'!DO19,'Trial 8'!DO19)","v":{"v":13513.626107935328,"d":"$13,514"}},{"$f":"STDEV('Trial 1'!DP19,'Trial 2'!DP19,'Trial 3'!DP19,'Trial 4'!DP19,'Trial 5'!DP19,'Trial 6'!DP19,'Trial 7'!DP19,'Trial 8'!DP19)","v":{"v":13561.052203669129,"d":"$13,561"}},{"$f":"STDEV('Trial 1'!DQ19,'Trial 2'!DQ19,'Trial 3'!DQ19,'Trial 4'!DQ19,'Trial 5'!DQ19,'Trial 6'!DQ19,'Trial 7'!DQ19,'Trial 8'!DQ19)","v":{"v":13568.824346327508,"d":"$13,569"}},{"$f":"STDEV('Trial 1'!DR19,'Trial 2'!DR19,'Trial 3'!DR19,'Trial 4'!DR19,'Trial 5'!DR19,'Trial 6'!DR19,'Trial 7'!DR19,'Trial 8'!DR19)","v":{"v":13537.754910554635,"d":"$13,538"}},{"$f":"STDEV('Trial 1'!DS19,'Trial 2'!DS19,'Trial 3'!DS19,'Trial 4'!DS19,'Trial 5'!DS19,'Trial 6'!DS19,'Trial 7'!DS19,'Trial 8'!DS19)","v":{"v":13516.6467683992,"d":"$13,517"}},{"$f":"STDEV('Trial 1'!DT19,'Trial 2'!DT19,'Trial 3'!DT19,'Trial 4'!DT19,'Trial 5'!DT19,'Trial 6'!DT19,'Trial 7'!DT19,'Trial 8'!DT19)","v":{"v":13513.601045747282,"d":"$13,514"}},{"$f":"STDEV('Trial 1'!DU19,'Trial 2'!DU19,'Trial 3'!DU19,'Trial 4'!DU19,'Trial 5'!DU19,'Trial 6'!DU19,'Trial 7'!DU19,'Trial 8'!DU19)","v":{"v":13499.475540661635,"d":"$13,499"}},{"$f":"STDEV('Trial 1'!DV19,'Trial 2'!DV19,'Trial 3'!DV19,'Trial 4'!DV19,'Trial 5'!DV19,'Trial 6'!DV19,'Trial 7'!DV19,'Trial 8'!DV19)","v":{"v":13490.465680251826,"d":"$13,490"}},{"$f":"STDEV('Trial 1'!DW19,'Trial 2'!DW19,'Trial 3'!DW19,'Trial 4'!DW19,'Trial 5'!DW19,'Trial 6'!DW19,'Trial 7'!DW19,'Trial 8'!DW19)","v":{"v":13513.081350480756,"d":"$13,513"}},{"$f":"STDEV('Trial 1'!DX19,'Trial 2'!DX19,'Trial 3'!DX19,'Trial 4'!DX19,'Trial 5'!DX19,'Trial 6'!DX19,'Trial 7'!DX19,'Trial 8'!DX19)","v":{"v":13545.139376514584,"d":"$13,545"}},{"$f":"STDEV('Trial 1'!DY19,'Trial 2'!DY19,'Trial 3'!DY19,'Trial 4'!DY19,'Trial 5'!DY19,'Trial 6'!DY19,'Trial 7'!DY19,'Trial 8'!DY19)","v":{"v":13610.865809877425,"d":"$13,611"}},{"$f":"STDEV('Trial 1'!DZ19,'Trial 2'!DZ19,'Trial 3'!DZ19,'Trial 4'!DZ19,'Trial 5'!DZ19,'Trial 6'!DZ19,'Trial 7'!DZ19,'Trial 8'!DZ19)","v":{"v":13640.787637810457,"d":"$13,641"}},{"$f":"DZ26","v":{"v":13640.787637810457,"d":"$13,641"}},{"$f":"STDEV('Trial 1'!EB19,'Trial 2'!EB19,'Trial 3'!EB19,'Trial 4'!EB19,'Trial 5'!EB19,'Trial 6'!EB19,'Trial 7'!EB19,'Trial 8'!EB19)","v":{"v":13670.546571434246,"d":"$13,671"}},{"$f":"STDEV('Trial 1'!EC19,'Trial 2'!EC19,'Trial 3'!EC19,'Trial 4'!EC19,'Trial 5'!EC19,'Trial 6'!EC19,'Trial 7'!EC19,'Trial 8'!EC19)","v":{"v":13704.343888607522,"d":"$13,704"}},{"$f":"STDEV('Trial 1'!ED19,'Trial 2'!ED19,'Trial 3'!ED19,'Trial 4'!ED19,'Trial 5'!ED19,'Trial 6'!ED19,'Trial 7'!ED19,'Trial 8'!ED19)","v":{"v":13722.167658566814,"d":"$13,722"}},{"$f":"STDEV('Trial 1'!EE19,'Trial 2'!EE19,'Trial 3'!EE19,'Trial 4'!EE19,'Trial 5'!EE19,'Trial 6'!EE19,'Trial 7'!EE19,'Trial 8'!EE19)","v":{"v":13731.538491063413,"d":"$13,732"}},{"$f":"STDEV('Trial 1'!EF19,'Trial 2'!EF19,'Trial 3'!EF19,'Trial 4'!EF19,'Trial 5'!EF19,'Trial 6'!EF19,'Trial 7'!EF19,'Trial 8'!EF19)","v":{"v":13767.472234231496,"d":"$13,767"}},{"$f":"STDEV('Trial 1'!EG19,'Trial 2'!EG19,'Trial 3'!EG19,'Trial 4'!EG19,'Trial 5'!EG19,'Trial 6'!EG19,'Trial 7'!EG19,'Trial 8'!EG19)","v":{"v":13791.585552947527,"d":"$13,792"}},{"$f":"STDEV('Trial 1'!EH19,'Trial 2'!EH19,'Trial 3'!EH19,'Trial 4'!EH19,'Trial 5'!EH19,'Trial 6'!EH19,'Trial 7'!EH19,'Trial 8'!EH19)","v":{"v":13781.46073117703,"d":"$13,781"}},{"$f":"STDEV('Trial 1'!EI19,'Trial 2'!EI19,'Trial 3'!EI19,'Trial 4'!EI19,'Trial 5'!EI19,'Trial 6'!EI19,'Trial 7'!EI19,'Trial 8'!EI19)","v":{"v":13785.706621785162,"d":"$13,786"}},{"$f":"STDEV('Trial 1'!EJ19,'Trial 2'!EJ19,'Trial 3'!EJ19,'Trial 4'!EJ19,'Trial 5'!EJ19,'Trial 6'!EJ19,'Trial 7'!EJ19,'Trial 8'!EJ19)","v":{"v":13806.19955267777,"d":"$13,806"}},{"$f":"STDEV('Trial 1'!EK19,'Trial 2'!EK19,'Trial 3'!EK19,'Trial 4'!EK19,'Trial 5'!EK19,'Trial 6'!EK19,'Trial 7'!EK19,'Trial 8'!EK19)","v":{"v":13853.512812288653,"d":"$13,854"}},{"$f":"STDEV('Trial 1'!EL19,'Trial 2'!EL19,'Trial 3'!EL19,'Trial 4'!EL19,'Trial 5'!EL19,'Trial 6'!EL19,'Trial 7'!EL19,'Trial 8'!EL19)","v":{"v":13937.792609466278,"d":"$13,938"}},{"$f":"STDEV('Trial 1'!EM19,'Trial 2'!EM19,'Trial 3'!EM19,'Trial 4'!EM19,'Trial 5'!EM19,'Trial 6'!EM19,'Trial 7'!EM19,'Trial 8'!EM19)","v":{"v":13995.431888502417,"d":"$13,995"}},{"$f":"EM26","v":{"v":13995.431888502417,"d":"$13,995"}}]
[{"$f":"Labels!B20","v":"Capital Investment"},{"$f":"AVERAGE('Trial 1'!B21,'Trial 2'!B21,'Trial 3'!B21,'Trial 4'!B21,'Trial 5'!B21,'Trial 6'!B21,'Trial 7'!B21,'Trial 8'!B21)","v":{"v":206222.01441622892,"d":"$206,222"}},{"$f":"AVERAGE('Trial 1'!C21,'Trial 2'!C21,'Trial 3'!C21,'Trial 4'!C21,'Trial 5'!C21,'Trial 6'!C21,'Trial 7'!C21,'Trial 8'!C21)","v":{"v":205782.87134432892,"d":"$205,783"}},{"$f":"AVERAGE('Trial 1'!D21,'Trial 2'!D21,'Trial 3'!D21,'Trial 4'!D21,'Trial 5'!D21,'Trial 6'!D21,'Trial 7'!D21,'Trial 8'!D21)","v":{"v":205384.403973452,"d":"$205,384"}},{"$f":"AVERAGE('Trial 1'!E21,'Trial 2'!E21,'Trial 3'!E21,'Trial 4'!E21,'Trial 5'!E21,'Trial 6'!E21,'Trial 7'!E21,'Trial 8'!E21)","v":{"v":205031.25929770182,"d":"$205,031"}},{"$f":"AVERAGE('Trial 1'!F21,'Trial 2'!F21,'Trial 3'!F21,'Trial 4'!F21,'Trial 5'!F21,'Trial 6'!F21,'Trial 7'!F21,'Trial 8'!F21)","v":{"v":204700.5407303526,"d":"$204,701"}},{"$f":"AVERAGE('Trial 1'!G21,'Trial 2'!G21,'Trial 3'!G21,'Trial 4'!G21,'Trial 5'!G21,'Trial 6'!G21,'Trial 7'!G21,'Trial 8'!G21)","v":{"v":204396.25722850295,"d":"$204,396"}},{"$f":"AVERAGE('Trial 1'!H21,'Trial 2'!H21,'Trial 3'!H21,'Trial 4'!H21,'Trial 5'!H21,'Trial 6'!H21,'Trial 7'!H21,'Trial 8'!H21)","v":{"v":204072.58188198955,"d":"$204,073"}},{"$f":"AVERAGE('Trial 1'!I21,'Trial 2'!I21,'Trial 3'!I21,'Trial 4'!I21,'Trial 5'!I21,'Trial 6'!I21,'Trial 7'!I21,'Trial 8'!I21)","v":{"v":203721.0761206289,"d":"$203,721"}},{"$f":"AVERAGE('Trial 1'!J21,'Trial 2'!J21,'Trial 3'!J21,'Trial 4'!J21,'Trial 5'!J21,'Trial 6'!J21,'Trial 7'!J21,'Trial 8'!J21)","v":{"v":203393.7392317122,"d":"$203,394"}},{"$f":"AVERAGE('Trial 1'!K21,'Trial 2'!K21,'Trial 3'!K21,'Trial 4'!K21,'Trial 5'!K21,'Trial 6'!K21,'Trial 7'!K21,'Trial 8'!K21)","v":{"v":203075.9850049815,"d":"$203,076"}},{"$f":"AVERAGE('Trial 1'!L21,'Trial 2'!L21,'Trial 3'!L21,'Trial 4'!L21,'Trial 5'!L21,'Trial 6'!L21,'Trial 7'!L21,'Trial 8'!L21)","v":{"v":202765.02683617568,"d":"$202,765"}},{"$f":"AVERAGE('Trial 1'!M21,'Trial 2'!M21,'Trial 3'!M21,'Trial 4'!M21,'Trial 5'!M21,'Trial 6'!M21,'Trial 7'!M21,'Trial 8'!M21)","v":{"v":202456.51552906533,"d":"$202,457"}},{"$f":"SUM(B27:M27)","v":{"v":2451002.2715951204,"d":"$2,451,002"}},{"$f":"AVERAGE('Trial 1'!O21,'Trial 2'!O21,'Trial 3'!O21,'Trial 4'!O21,'Trial 5'!O21,'Trial 6'!O21,'Trial 7'!O21,'Trial 8'!O21)","v":{"v":202142.81135922612,"d":"$202,143"}},{"$f":"AVERAGE('Trial 1'!P21,'Trial 2'!P21,'Trial 3'!P21,'Trial 4'!P21,'Trial 5'!P21,'Trial 6'!P21,'Trial 7'!P21,'Trial 8'!P21)","v":{"v":201857.61562367168,"d":"$201,858"}},{"$f":"AVERAGE('Trial 1'!Q21,'Trial 2'!Q21,'Trial 3'!Q21,'Trial 4'!Q21,'Trial 5'!Q21,'Trial 6'!Q21,'Trial 7'!Q21,'Trial 8'!Q21)","v":{"v":201571.69493718282,"d":"$201,572"}},{"$f":"AVERAGE('Trial 1'!R21,'Trial 2'!R21,'Trial 3'!R21,'Trial 4'!R21,'Trial 5'!R21,'Trial 6'!R21,'Trial 7'!R21,'Trial 8'!R21)","v":{"v":201300.0939806473,"d":"$201,300"}},{"$f":"AVERAGE('Trial 1'!S21,'Trial 2'!S21,'Trial 3'!S21,'Trial 4'!S21,'Trial 5'!S21,'Trial 6'!S21,'Trial 7'!S21,'Trial 8'!S21)","v":{"v":201042.57800598844,"d":"$201,043"}},{"$f":"AVERAGE('Trial 1'!T21,'Trial 2'!T21,'Trial 3'!T21,'Trial 4'!T21,'Trial 5'!T21,'Trial 6'!T21,'Trial 7'!T21,'Trial 8'!T21)","v":{"v":200715.94765076198,"d":"$200,716"}},{"$f":"AVERAGE('Trial 1'!U21,'Trial 2'!U21,'Trial 3'!U21,'Trial 4'!U21,'Trial 5'!U21,'Trial 6'!U21,'Trial 7'!U21,'Trial 8'!U21)","v":{"v":200459.37782894378,"d":"$200,459"}},{"$f":"AVERAGE('Trial 1'!V21,'Trial 2'!V21,'Trial 3'!V21,'Trial 4'!V21,'Trial 5'!V21,'Trial 6'!V21,'Trial 7'!V21,'Trial 8'!V21)","v":{"v":200163.11600859178,"d":"$200,163"}},{"$f":"AVERAGE('Trial 1'!W21,'Trial 2'!W21,'Trial 3'!W21,'Trial 4'!W21,'Trial 5'!W21,'Trial 6'!W21,'Trial 7'!W21,'Trial 8'!W21)","v":{"v":199878.2384004946,"d":"$199,878"}},{"$f":"AVERAGE('Trial 1'!X21,'Trial 2'!X21,'Trial 3'!X21,'Trial 4'!X21,'Trial 5'!X21,'Trial 6'!X21,'Trial 7'!X21,'Trial 8'!X21)","v":{"v":199650.96072914466,"d":"$199,651"}},{"$f":"AVERAGE('Trial 1'!Y21,'Trial 2'!Y21,'Trial 3'!Y21,'Trial 4'!Y21,'Trial 5'!Y21,'Trial 6'!Y21,'Trial 7'!Y21,'Trial 8'!Y21)","v":{"v":199385.904828722,"d":"$199,386"}},{"$f":"AVERAGE('Trial 1'!Z21,'Trial 2'!Z21,'Trial 3'!Z21,'Trial 4'!Z21,'Trial 5'!Z21,'Trial 6'!Z21,'Trial 7'!Z21,'Trial 8'!Z21)","v":{"v":199129.859996557,"d":"$199,130"}},{"$f":"SUM(O27:Z27)","v":{"v":2407298.1993499324,"d":"$2,407,298"}},{"$f":"AVERAGE('Trial 1'!AB21,'Trial 2'!AB21,'Trial 3'!AB21,'Trial 4'!AB21,'Trial 5'!AB21,'Trial 6'!AB21,'Trial 7'!AB21,'Trial 8'!AB21)","v":{"v":198836.70194280372,"d":"$198,837"}},{"$f":"AVERAGE('Trial 1'!AC21,'Trial 2'!AC21,'Trial 3'!AC21,'Trial 4'!AC21,'Trial 5'!AC21,'Trial 6'!AC21,'Trial 7'!AC21,'Trial 8'!AC21)","v":{"v":198597.80526087084,"d":"$198,598"}},{"$f":"AVERAGE('Trial 1'!AD21,'Trial 2'!AD21,'Trial 3'!AD21,'Trial 4'!AD21,'Trial 5'!AD21,'Trial 6'!AD21,'Trial 7'!AD21,'Trial 8'!AD21)","v":{"v":198381.65070656795,"d":"$198,382"}},{"$f":"AVERAGE('Trial 1'!AE21,'Trial 2'!AE21,'Trial 3'!AE21,'Trial 4'!AE21,'Trial 5'!AE21,'Trial 6'!AE21,'Trial 7'!AE21,'Trial 8'!AE21)","v":{"v":198155.54552561752,"d":"$198,156"}},{"$f":"AVERAGE('Trial 1'!AF21,'Trial 2'!AF21,'Trial 3'!AF21,'Trial 4'!AF21,'Trial 5'!AF21,'Trial 6'!AF21,'Trial 7'!AF21,'Trial 8'!AF21)","v":{"v":197927.45156746468,"d":"$197,927"}},{"$f":"AVERAGE('Trial 1'!AG21,'Trial 2'!AG21,'Trial 3'!AG21,'Trial 4'!AG21,'Trial 5'!AG21,'Trial 6'!AG21,'Trial 7'!AG21,'Trial 8'!AG21)","v":{"v":197672.4662880071,"d":"$197,672"}},{"$f":"AVERAGE('Trial 1'!AH21,'Trial 2'!AH21,'Trial 3'!AH21,'Trial 4'!AH21,'Trial 5'!AH21,'Trial 6'!AH21,'Trial 7'!AH21,'Trial 8'!AH21)","v":{"v":197465.4567789854,"d":"$197,465"}},{"$f":"AVERAGE('Trial 1'!AI21,'Trial 2'!AI21,'Trial 3'!AI21,'Trial 4'!AI21,'Trial 5'!AI21,'Trial 6'!AI21,'Trial 7'!AI21,'Trial 8'!AI21)","v":{"v":197279.47184656808,"d":"$197,279"}},{"$f":"AVERAGE('Trial 1'!AJ21,'Trial 2'!AJ21,'Trial 3'!AJ21,'Trial 4'!AJ21,'Trial 5'!AJ21,'Trial 6'!AJ21,'Trial 7'!AJ21,'Trial 8'!AJ21)","v":{"v":197033.11555441216,"d":"$197,033"}},{"$f":"AVERAGE('Trial 1'!AK21,'Trial 2'!AK21,'Trial 3'!AK21,'Trial 4'!AK21,'Trial 5'!AK21,'Trial 6'!AK21,'Trial 7'!AK21,'Trial 8'!AK21)","v":{"v":196829.77957665,"d":"$196,830"}},{"$f":"AVERAGE('Trial 1'!AL21,'Trial 2'!AL21,'Trial 3'!AL21,'Trial 4'!AL21,'Trial 5'!AL21,'Trial 6'!AL21,'Trial 7'!AL21,'Trial 8'!AL21)","v":{"v":196638.2432643086,"d":"$196,638"}},{"$f":"AVERAGE('Trial 1'!AM21,'Trial 2'!AM21,'Trial 3'!AM21,'Trial 4'!AM21,'Trial 5'!AM21,'Trial 6'!AM21,'Trial 7'!AM21,'Trial 8'!AM21)","v":{"v":196456.71860755957,"d":"$196,457"}},{"$f":"SUM(AB27:AM27)","v":{"v":2371274.4069198156,"d":"$2,371,274"}},{"$f":"AVERAGE('Trial 1'!AO21,'Trial 2'!AO21,'Trial 3'!AO21,'Trial 4'!AO21,'Trial 5'!AO21,'Trial 6'!AO21,'Trial 7'!AO21,'Trial 8'!AO21)","v":{"v":196237.8145783053,"d":"$196,238"}},{"$f":"AVERAGE('Trial 1'!AP21,'Trial 2'!AP21,'Trial 3'!AP21,'Trial 4'!AP21,'Trial 5'!AP21,'Trial 6'!AP21,'Trial 7'!AP21,'Trial 8'!AP21)","v":{"v":196044.44322838265,"d":"$196,044"}},{"$f":"AVERAGE('Trial 1'!AQ21,'Trial 2'!AQ21,'Trial 3'!AQ21,'Trial 4'!AQ21,'Trial 5'!AQ21,'Trial 6'!AQ21,'Trial 7'!AQ21,'Trial 8'!AQ21)","v":{"v":195878.2923864714,"d":"$195,878"}},{"$f":"AVERAGE('Trial 1'!AR21,'Trial 2'!AR21,'Trial 3'!AR21,'Trial 4'!AR21,'Trial 5'!AR21,'Trial 6'!AR21,'Trial 7'!AR21,'Trial 8'!AR21)","v":{"v":195669.99830319095,"d":"$195,670"}},{"$f":"AVERAGE('Trial 1'!AS21,'Trial 2'!AS21,'Trial 3'!AS21,'Trial 4'!AS21,'Trial 5'!AS21,'Trial 6'!AS21,'Trial 7'!AS21,'Trial 8'!AS21)","v":{"v":195480.72347220097,"d":"$195,481"}},{"$f":"AVERAGE('Trial 1'!AT21,'Trial 2'!AT21,'Trial 3'!AT21,'Trial 4'!AT21,'Trial 5'!AT21,'Trial 6'!AT21,'Trial 7'!AT21,'Trial 8'!AT21)","v":{"v":195319.68699526793,"d":"$195,320"}},{"$f":"AVERAGE('Trial 1'!AU21,'Trial 2'!AU21,'Trial 3'!AU21,'Trial 4'!AU21,'Trial 5'!AU21,'Trial 6'!AU21,'Trial 7'!AU21,'Trial 8'!AU21)","v":{"v":195135.78875695338,"d":"$195,136"}},{"$f":"AVERAGE('Trial 1'!AV21,'Trial 2'!AV21,'Trial 3'!AV21,'Trial 4'!AV21,'Trial 5'!AV21,'Trial 6'!AV21,'Trial 7'!AV21,'Trial 8'!AV21)","v":{"v":194947.65918171752,"d":"$194,948"}},{"$f":"AVERAGE('Trial 1'!AW21,'Trial 2'!AW21,'Trial 3'!AW21,'Trial 4'!AW21,'Trial 5'!AW21,'Trial 6'!AW21,'Trial 7'!AW21,'Trial 8'!AW21)","v":{"v":194774.37143268518,"d":"$194,774"}},{"$f":"AVERAGE('Trial 1'!AX21,'Trial 2'!AX21,'Trial 3'!AX21,'Trial 4'!AX21,'Trial 5'!AX21,'Trial 6'!AX21,'Trial 7'!AX21,'Trial 8'!AX21)","v":{"v":194575.93141337528,"d":"$194,576"}},{"$f":"AVERAGE('Trial 1'!AY21,'Trial 2'!AY21,'Trial 3'!AY21,'Trial 4'!AY21,'Trial 5'!AY21,'Trial 6'!AY21,'Trial 7'!AY21,'Trial 8'!AY21)","v":{"v":194397.02280637214,"d":"$194,397"}},{"$f":"AVERAGE('Trial 1'!AZ21,'Trial 2'!AZ21,'Trial 3'!AZ21,'Trial 4'!AZ21,'Trial 5'!AZ21,'Trial 6'!AZ21,'Trial 7'!AZ21,'Trial 8'!AZ21)","v":{"v":194232.45532128614,"d":"$194,232"}},{"$f":"SUM(AO27:AZ27)","v":{"v":2342694.1878762087,"d":"$2,342,694"}},{"$f":"AVERAGE('Trial 1'!BB21,'Trial 2'!BB21,'Trial 3'!BB21,'Trial 4'!BB21,'Trial 5'!BB21,'Trial 6'!BB21,'Trial 7'!BB21,'Trial 8'!BB21)","v":{"v":194035.05902698406,"d":"$194,035"}},{"$f":"AVERAGE('Trial 1'!BC21,'Trial 2'!BC21,'Trial 3'!BC21,'Trial 4'!BC21,'Trial 5'!BC21,'Trial 6'!BC21,'Trial 7'!BC21,'Trial 8'!BC21)","v":{"v":193845.26533257225,"d":"$193,845"}},{"$f":"AVERAGE('Trial 1'!BD21,'Trial 2'!BD21,'Trial 3'!BD21,'Trial 4'!BD21,'Trial 5'!BD21,'Trial 6'!BD21,'Trial 7'!BD21,'Trial 8'!BD21)","v":{"v":193677.11489342214,"d":"$193,677"}},{"$f":"AVERAGE('Trial 1'!BE21,'Trial 2'!BE21,'Trial 3'!BE21,'Trial 4'!BE21,'Trial 5'!BE21,'Trial 6'!BE21,'Trial 7'!BE21,'Trial 8'!BE21)","v":{"v":193519.3124712173,"d":"$193,519"}},{"$f":"AVERAGE('Trial 1'!BF21,'Trial 2'!BF21,'Trial 3'!BF21,'Trial 4'!BF21,'Trial 5'!BF21,'Trial 6'!BF21,'Trial 7'!BF21,'Trial 8'!BF21)","v":{"v":193355.91240596597,"d":"$193,356"}},{"$f":"AVERAGE('Trial 1'!BG21,'Trial 2'!BG21,'Trial 3'!BG21,'Trial 4'!BG21,'Trial 5'!BG21,'Trial 6'!BG21,'Trial 7'!BG21,'Trial 8'!BG21)","v":{"v":193211.1401612607,"d":"$193,211"}},{"$f":"AVERAGE('Trial 1'!BH21,'Trial 2'!BH21,'Trial 3'!BH21,'Trial 4'!BH21,'Trial 5'!BH21,'Trial 6'!BH21,'Trial 7'!BH21,'Trial 8'!BH21)","v":{"v":193068.02425103384,"d":"$193,068"}},{"$f":"AVERAGE('Trial 1'!BI21,'Trial 2'!BI21,'Trial 3'!BI21,'Trial 4'!BI21,'Trial 5'!BI21,'Trial 6'!BI21,'Trial 7'!BI21,'Trial 8'!BI21)","v":{"v":192888.5064138539,"d":"$192,889"}},{"$f":"AVERAGE('Trial 1'!BJ21,'Trial 2'!BJ21,'Trial 3'!BJ21,'Trial 4'!BJ21,'Trial 5'!BJ21,'Trial 6'!BJ21,'Trial 7'!BJ21,'Trial 8'!BJ21)","v":{"v":192727.44336190226,"d":"$192,727"}},{"$f":"AVERAGE('Trial 1'!BK21,'Trial 2'!BK21,'Trial 3'!BK21,'Trial 4'!BK21,'Trial 5'!BK21,'Trial 6'!BK21,'Trial 7'!BK21,'Trial 8'!BK21)","v":{"v":192594.82441944105,"d":"$192,595"}},{"$f":"AVERAGE('Trial 1'!BL21,'Trial 2'!BL21,'Trial 3'!BL21,'Trial 4'!BL21,'Trial 5'!BL21,'Trial 6'!BL21,'Trial 7'!BL21,'Trial 8'!BL21)","v":{"v":192442.222661742,"d":"$192,442"}},{"$f":"AVERAGE('Trial 1'!BM21,'Trial 2'!BM21,'Trial 3'!BM21,'Trial 4'!BM21,'Trial 5'!BM21,'Trial 6'!BM21,'Trial 7'!BM21,'Trial 8'!BM21)","v":{"v":192313.5698188994,"d":"$192,314"}},{"$f":"SUM(BB27:BM27)","v":{"v":2317678.395218295,"d":"$2,317,678"}},{"$f":"AVERAGE('Trial 1'!BO21,'Trial 2'!BO21,'Trial 3'!BO21,'Trial 4'!BO21,'Trial 5'!BO21,'Trial 6'!BO21,'Trial 7'!BO21,'Trial 8'!BO21)","v":{"v":192167.7888086742,"d":"$192,168"}},{"$f":"AVERAGE('Trial 1'!BP21,'Trial 2'!BP21,'Trial 3'!BP21,'Trial 4'!BP21,'Trial 5'!BP21,'Trial 6'!BP21,'Trial 7'!BP21,'Trial 8'!BP21)","v":{"v":192021.80310422188,"d":"$192,022"}},{"$f":"AVERAGE('Trial 1'!BQ21,'Trial 2'!BQ21,'Trial 3'!BQ21,'Trial 4'!BQ21,'Trial 5'!BQ21,'Trial 6'!BQ21,'Trial 7'!BQ21,'Trial 8'!BQ21)","v":{"v":191889.72512229424,"d":"$191,890"}},{"$f":"AVERAGE('Trial 1'!BR21,'Trial 2'!BR21,'Trial 3'!BR21,'Trial 4'!BR21,'Trial 5'!BR21,'Trial 6'!BR21,'Trial 7'!BR21,'Trial 8'!BR21)","v":{"v":191779.1827587965,"d":"$191,779"}},{"$f":"AVERAGE('Trial 1'!BS21,'Trial 2'!BS21,'Trial 3'!BS21,'Trial 4'!BS21,'Trial 5'!BS21,'Trial 6'!BS21,'Trial 7'!BS21,'Trial 8'!BS21)","v":{"v":191662.95112884915,"d":"$191,663"}},{"$f":"AVERAGE('Trial 1'!BT21,'Trial 2'!BT21,'Trial 3'!BT21,'Trial 4'!BT21,'Trial 5'!BT21,'Trial 6'!BT21,'Trial 7'!BT21,'Trial 8'!BT21)","v":{"v":191515.55741064498,"d":"$191,516"}},{"$f":"AVERAGE('Trial 1'!BU21,'Trial 2'!BU21,'Trial 3'!BU21,'Trial 4'!BU21,'Trial 5'!BU21,'Trial 6'!BU21,'Trial 7'!BU21,'Trial 8'!BU21)","v":{"v":191418.91439750307,"d":"$191,419"}},{"$f":"AVERAGE('Trial 1'!BV21,'Trial 2'!BV21,'Trial 3'!BV21,'Trial 4'!BV21,'Trial 5'!BV21,'Trial 6'!BV21,'Trial 7'!BV21,'Trial 8'!BV21)","v":{"v":191270.914396876,"d":"$191,271"}},{"$f":"AVERAGE('Trial 1'!BW21,'Trial 2'!BW21,'Trial 3'!BW21,'Trial 4'!BW21,'Trial 5'!BW21,'Trial 6'!BW21,'Trial 7'!BW21,'Trial 8'!BW21)","v":{"v":191137.3859661942,"d":"$191,137"}},{"$f":"AVERAGE('Trial 1'!BX21,'Trial 2'!BX21,'Trial 3'!BX21,'Trial 4'!BX21,'Trial 5'!BX21,'Trial 6'!BX21,'Trial 7'!BX21,'Trial 8'!BX21)","v":{"v":191037.13975759185,"d":"$191,037"}},{"$f":"AVERAGE('Trial 1'!BY21,'Trial 2'!BY21,'Trial 3'!BY21,'Trial 4'!BY21,'Trial 5'!BY21,'Trial 6'!BY21,'Trial 7'!BY21,'Trial 8'!BY21)","v":{"v":190891.23154855255,"d":"$190,891"}},{"$f":"AVERAGE('Trial 1'!BZ21,'Trial 2'!BZ21,'Trial 3'!BZ21,'Trial 4'!BZ21,'Trial 5'!BZ21,'Trial 6'!BZ21,'Trial 7'!BZ21,'Trial 8'!BZ21)","v":{"v":190788.50974064076,"d":"$190,789"}},{"$f":"SUM(BO27:BZ27)","v":{"v":2297581.104140839,"d":"$2,297,581"}},{"$f":"AVERAGE('Trial 1'!CB21,'Trial 2'!CB21,'Trial 3'!CB21,'Trial 4'!CB21,'Trial 5'!CB21,'Trial 6'!CB21,'Trial 7'!CB21,'Trial 8'!CB21)","v":{"v":190665.73204877085,"d":"$190,666"}},{"$f":"AVERAGE('Trial 1'!CC21,'Trial 2'!CC21,'Trial 3'!CC21,'Trial 4'!CC21,'Trial 5'!CC21,'Trial 6'!CC21,'Trial 7'!CC21,'Trial 8'!CC21)","v":{"v":190538.09438265092,"d":"$190,538"}},{"$f":"AVERAGE('Trial 1'!CD21,'Trial 2'!CD21,'Trial 3'!CD21,'Trial 4'!CD21,'Trial 5'!CD21,'Trial 6'!CD21,'Trial 7'!CD21,'Trial 8'!CD21)","v":{"v":190407.54622690688,"d":"$190,408"}},{"$f":"AVERAGE('Trial 1'!CE21,'Trial 2'!CE21,'Trial 3'!CE21,'Trial 4'!CE21,'Trial 5'!CE21,'Trial 6'!CE21,'Trial 7'!CE21,'Trial 8'!CE21)","v":{"v":190300.56140145825,"d":"$190,301"}},{"$f":"AVERAGE('Trial 1'!CF21,'Trial 2'!CF21,'Trial 3'!CF21,'Trial 4'!CF21,'Trial 5'!CF21,'Trial 6'!CF21,'Trial 7'!CF21,'Trial 8'!CF21)","v":{"v":190160.42787220134,"d":"$190,160"}},{"$f":"AVERAGE('Trial 1'!CG21,'Trial 2'!CG21,'Trial 3'!CG21,'Trial 4'!CG21,'Trial 5'!CG21,'Trial 6'!CG21,'Trial 7'!CG21,'Trial 8'!CG21)","v":{"v":190039.4308767954,"d":"$190,039"}},{"$f":"AVERAGE('Trial 1'!CH21,'Trial 2'!CH21,'Trial 3'!CH21,'Trial 4'!CH21,'Trial 5'!CH21,'Trial 6'!CH21,'Trial 7'!CH21,'Trial 8'!CH21)","v":{"v":189975.35857539476,"d":"$189,975"}},{"$f":"AVERAGE('Trial 1'!CI21,'Trial 2'!CI21,'Trial 3'!CI21,'Trial 4'!CI21,'Trial 5'!CI21,'Trial 6'!CI21,'Trial 7'!CI21,'Trial 8'!CI21)","v":{"v":189865.34604501975,"d":"$189,865"}},{"$f":"AVERAGE('Trial 1'!CJ21,'Trial 2'!CJ21,'Trial 3'!CJ21,'Trial 4'!CJ21,'Trial 5'!CJ21,'Trial 6'!CJ21,'Trial 7'!CJ21,'Trial 8'!CJ21)","v":{"v":189767.4866556627,"d":"$189,767"}},{"$f":"AVERAGE('Trial 1'!CK21,'Trial 2'!CK21,'Trial 3'!CK21,'Trial 4'!CK21,'Trial 5'!CK21,'Trial 6'!CK21,'Trial 7'!CK21,'Trial 8'!CK21)","v":{"v":189662.2135391732,"d":"$189,662"}},{"$f":"AVERAGE('Trial 1'!CL21,'Trial 2'!CL21,'Trial 3'!CL21,'Trial 4'!CL21,'Trial 5'!CL21,'Trial 6'!CL21,'Trial 7'!CL21,'Trial 8'!CL21)","v":{"v":189583.77693492305,"d":"$189,584"}},{"$f":"AVERAGE('Trial 1'!CM21,'Trial 2'!CM21,'Trial 3'!CM21,'Trial 4'!CM21,'Trial 5'!CM21,'Trial 6'!CM21,'Trial 7'!CM21,'Trial 8'!CM21)","v":{"v":189465.27097282035,"d":"$189,465"}},{"$f":"SUM(CB27:CM27)","v":{"v":2280431.2455317774,"d":"$2,280,431"}},{"$f":"AVERAGE('Trial 1'!CO21,'Trial 2'!CO21,'Trial 3'!CO21,'Trial 4'!CO21,'Trial 5'!CO21,'Trial 6'!CO21,'Trial 7'!CO21,'Trial 8'!CO21)","v":{"v":189383.63972493328,"d":"$189,384"}},{"$f":"AVERAGE('Trial 1'!CP21,'Trial 2'!CP21,'Trial 3'!CP21,'Trial 4'!CP21,'Trial 5'!CP21,'Trial 6'!CP21,'Trial 7'!CP21,'Trial 8'!CP21)","v":{"v":189285.6711339003,"d":"$189,286"}},{"$f":"AVERAGE('Trial 1'!CQ21,'Trial 2'!CQ21,'Trial 3'!CQ21,'Trial 4'!CQ21,'Trial 5'!CQ21,'Trial 6'!CQ21,'Trial 7'!CQ21,'Trial 8'!CQ21)","v":{"v":189189.80612939343,"d":"$189,190"}},{"$f":"AVERAGE('Trial 1'!CR21,'Trial 2'!CR21,'Trial 3'!CR21,'Trial 4'!CR21,'Trial 5'!CR21,'Trial 6'!CR21,'Trial 7'!CR21,'Trial 8'!CR21)","v":{"v":189091.56149350945,"d":"$189,092"}},{"$f":"AVERAGE('Trial 1'!CS21,'Trial 2'!CS21,'Trial 3'!CS21,'Trial 4'!CS21,'Trial 5'!CS21,'Trial 6'!CS21,'Trial 7'!CS21,'Trial 8'!CS21)","v":{"v":188982.90950934877,"d":"$188,983"}},{"$f":"AVERAGE('Trial 1'!CT21,'Trial 2'!CT21,'Trial 3'!CT21,'Trial 4'!CT21,'Trial 5'!CT21,'Trial 6'!CT21,'Trial 7'!CT21,'Trial 8'!CT21)","v":{"v":188832.69706740513,"d":"$188,833"}},{"$f":"AVERAGE('Trial 1'!CU21,'Trial 2'!CU21,'Trial 3'!CU21,'Trial 4'!CU21,'Trial 5'!CU21,'Trial 6'!CU21,'Trial 7'!CU21,'Trial 8'!CU21)","v":{"v":188704.2698264212,"d":"$188,704"}},{"$f":"AVERAGE('Trial 1'!CV21,'Trial 2'!CV21,'Trial 3'!CV21,'Trial 4'!CV21,'Trial 5'!CV21,'Trial 6'!CV21,'Trial 7'!CV21,'Trial 8'!CV21)","v":{"v":188642.35182997942,"d":"$188,642"}},{"$f":"AVERAGE('Trial 1'!CW21,'Trial 2'!CW21,'Trial 3'!CW21,'Trial 4'!CW21,'Trial 5'!CW21,'Trial 6'!CW21,'Trial 7'!CW21,'Trial 8'!CW21)","v":{"v":188527.4872151953,"d":"$188,527"}},{"$f":"AVERAGE('Trial 1'!CX21,'Trial 2'!CX21,'Trial 3'!CX21,'Trial 4'!CX21,'Trial 5'!CX21,'Trial 6'!CX21,'Trial 7'!CX21,'Trial 8'!CX21)","v":{"v":188417.65241955954,"d":"$188,418"}},{"$f":"AVERAGE('Trial 1'!CY21,'Trial 2'!CY21,'Trial 3'!CY21,'Trial 4'!CY21,'Trial 5'!CY21,'Trial 6'!CY21,'Trial 7'!CY21,'Trial 8'!CY21)","v":{"v":188300.48071271324,"d":"$188,300"}},{"$f":"AVERAGE('Trial 1'!CZ21,'Trial 2'!CZ21,'Trial 3'!CZ21,'Trial 4'!CZ21,'Trial 5'!CZ21,'Trial 6'!CZ21,'Trial 7'!CZ21,'Trial 8'!CZ21)","v":{"v":188209.83549746417,"d":"$188,210"}},{"$f":"SUM(CO27:CZ27)","v":{"v":2265568.3625598233,"d":"$2,265,568"}},{"$f":"AVERAGE('Trial 1'!DB21,'Trial 2'!DB21,'Trial 3'!DB21,'Trial 4'!DB21,'Trial 5'!DB21,'Trial 6'!DB21,'Trial 7'!DB21,'Trial 8'!DB21)","v":{"v":188097.1148957007,"d":"$188,097"}},{"$f":"AVERAGE('Trial 1'!DC21,'Trial 2'!DC21,'Trial 3'!DC21,'Trial 4'!DC21,'Trial 5'!DC21,'Trial 6'!DC21,'Trial 7'!DC21,'Trial 8'!DC21)","v":{"v":188011.95990788835,"d":"$188,012"}},{"$f":"AVERAGE('Trial 1'!DD21,'Trial 2'!DD21,'Trial 3'!DD21,'Trial 4'!DD21,'Trial 5'!DD21,'Trial 6'!DD21,'Trial 7'!DD21,'Trial 8'!DD21)","v":{"v":187885.64086659104,"d":"$187,886"}},{"$f":"AVERAGE('Trial 1'!DE21,'Trial 2'!DE21,'Trial 3'!DE21,'Trial 4'!DE21,'Trial 5'!DE21,'Trial 6'!DE21,'Trial 7'!DE21,'Trial 8'!DE21)","v":{"v":187774.28952234413,"d":"$187,774"}},{"$f":"AVERAGE('Trial 1'!DF21,'Trial 2'!DF21,'Trial 3'!DF21,'Trial 4'!DF21,'Trial 5'!DF21,'Trial 6'!DF21,'Trial 7'!DF21,'Trial 8'!DF21)","v":{"v":187686.42931527243,"d":"$187,686"}},{"$f":"AVERAGE('Trial 1'!DG21,'Trial 2'!DG21,'Trial 3'!DG21,'Trial 4'!DG21,'Trial 5'!DG21,'Trial 6'!DG21,'Trial 7'!DG21,'Trial 8'!DG21)","v":{"v":187584.75515598105,"d":"$187,585"}},{"$f":"AVERAGE('Trial 1'!DH21,'Trial 2'!DH21,'Trial 3'!DH21,'Trial 4'!DH21,'Trial 5'!DH21,'Trial 6'!DH21,'Trial 7'!DH21,'Trial 8'!DH21)","v":{"v":187477.61068302716,"d":"$187,478"}},{"$f":"AVERAGE('Trial 1'!DI21,'Trial 2'!DI21,'Trial 3'!DI21,'Trial 4'!DI21,'Trial 5'!DI21,'Trial 6'!DI21,'Trial 7'!DI21,'Trial 8'!DI21)","v":{"v":187367.05965572398,"d":"$187,367"}},{"$f":"AVERAGE('Trial 1'!DJ21,'Trial 2'!DJ21,'Trial 3'!DJ21,'Trial 4'!DJ21,'Trial 5'!DJ21,'Trial 6'!DJ21,'Trial 7'!DJ21,'Trial 8'!DJ21)","v":{"v":187251.11587357416,"d":"$187,251"}},{"$f":"AVERAGE('Trial 1'!DK21,'Trial 2'!DK21,'Trial 3'!DK21,'Trial 4'!DK21,'Trial 5'!DK21,'Trial 6'!DK21,'Trial 7'!DK21,'Trial 8'!DK21)","v":{"v":187152.71228141643,"d":"$187,153"}},{"$f":"AVERAGE('Trial 1'!DL21,'Trial 2'!DL21,'Trial 3'!DL21,'Trial 4'!DL21,'Trial 5'!DL21,'Trial 6'!DL21,'Trial 7'!DL21,'Trial 8'!DL21)","v":{"v":187050.26215411047,"d":"$187,050"}},{"$f":"AVERAGE('Trial 1'!DM21,'Trial 2'!DM21,'Trial 3'!DM21,'Trial 4'!DM21,'Trial 5'!DM21,'Trial 6'!DM21,'Trial 7'!DM21,'Trial 8'!DM21)","v":{"v":186934.49341897495,"d":"$186,934"}},{"$f":"SUM(DB27:DM27)","v":{"v":2250273.443730605,"d":"$2,250,273"}},{"$f":"AVERAGE('Trial 1'!DO21,'Trial 2'!DO21,'Trial 3'!DO21,'Trial 4'!DO21,'Trial 5'!DO21,'Trial 6'!DO21,'Trial 7'!DO21,'Trial 8'!DO21)","v":{"v":186825.56816509092,"d":"$186,826"}},{"$f":"AVERAGE('Trial 1'!DP21,'Trial 2'!DP21,'Trial 3'!DP21,'Trial 4'!DP21,'Trial 5'!DP21,'Trial 6'!DP21,'Trial 7'!DP21,'Trial 8'!DP21)","v":{"v":186748.628209452,"d":"$186,749"}},{"$f":"AVERAGE('Trial 1'!DQ21,'Trial 2'!DQ21,'Trial 3'!DQ21,'Trial 4'!DQ21,'Trial 5'!DQ21,'Trial 6'!DQ21,'Trial 7'!DQ21,'Trial 8'!DQ21)","v":{"v":186641.11221176805,"d":"$186,641"}},{"$f":"AVERAGE('Trial 1'!DR21,'Trial 2'!DR21,'Trial 3'!DR21,'Trial 4'!DR21,'Trial 5'!DR21,'Trial 6'!DR21,'Trial 7'!DR21,'Trial 8'!DR21)","v":{"v":186574.37900195768,"d":"$186,574"}},{"$f":"AVERAGE('Trial 1'!DS21,'Trial 2'!DS21,'Trial 3'!DS21,'Trial 4'!DS21,'Trial 5'!DS21,'Trial 6'!DS21,'Trial 7'!DS21,'Trial 8'!DS21)","v":{"v":186483.55742477218,"d":"$186,484"}},{"$f":"AVERAGE('Trial 1'!DT21,'Trial 2'!DT21,'Trial 3'!DT21,'Trial 4'!DT21,'Trial 5'!DT21,'Trial 6'!DT21,'Trial 7'!DT21,'Trial 8'!DT21)","v":{"v":186390.0402156469,"d":"$186,390"}},{"$f":"AVERAGE('Trial 1'!DU21,'Trial 2'!DU21,'Trial 3'!DU21,'Trial 4'!DU21,'Trial 5'!DU21,'Trial 6'!DU21,'Trial 7'!DU21,'Trial 8'!DU21)","v":{"v":186321.76660845292,"d":"$186,322"}},{"$f":"AVERAGE('Trial 1'!DV21,'Trial 2'!DV21,'Trial 3'!DV21,'Trial 4'!DV21,'Trial 5'!DV21,'Trial 6'!DV21,'Trial 7'!DV21,'Trial 8'!DV21)","v":{"v":186236.8532734546,"d":"$186,237"}},{"$f":"AVERAGE('Trial 1'!DW21,'Trial 2'!DW21,'Trial 3'!DW21,'Trial 4'!DW21,'Trial 5'!DW21,'Trial 6'!DW21,'Trial 7'!DW21,'Trial 8'!DW21)","v":{"v":186159.51676818426,"d":"$186,160"}},{"$f":"AVERAGE('Trial 1'!DX21,'Trial 2'!DX21,'Trial 3'!DX21,'Trial 4'!DX21,'Trial 5'!DX21,'Trial 6'!DX21,'Trial 7'!DX21,'Trial 8'!DX21)","v":{"v":186071.49429093325,"d":"$186,071"}},{"$f":"AVERAGE('Trial 1'!DY21,'Trial 2'!DY21,'Trial 3'!DY21,'Trial 4'!DY21,'Trial 5'!DY21,'Trial 6'!DY21,'Trial 7'!DY21,'Trial 8'!DY21)","v":{"v":185979.82366280915,"d":"$185,980"}},{"$f":"AVERAGE('Trial 1'!DZ21,'Trial 2'!DZ21,'Trial 3'!DZ21,'Trial 4'!DZ21,'Trial 5'!DZ21,'Trial 6'!DZ21,'Trial 7'!DZ21,'Trial 8'!DZ21)","v":{"v":185890.7645245022,"d":"$185,891"}},{"$f":"SUM(DO27:DZ27)","v":{"v":2236323.504357024,"d":"$2,236,324"}},{"$f":"AVERAGE('Trial 1'!EB21,'Trial 2'!EB21,'Trial 3'!EB21,'Trial 4'!EB21,'Trial 5'!EB21,'Trial 6'!EB21,'Trial 7'!EB21,'Trial 8'!EB21)","v":{"v":185769.4365388405,"d":"$185,769"}},{"$f":"AVERAGE('Trial 1'!EC21,'Trial 2'!EC21,'Trial 3'!EC21,'Trial 4'!EC21,'Trial 5'!EC21,'Trial 6'!EC21,'Trial 7'!EC21,'Trial 8'!EC21)","v":{"v":185690.51166427333,"d":"$185,691"}},{"$f":"AVERAGE('Trial 1'!ED21,'Trial 2'!ED21,'Trial 3'!ED21,'Trial 4'!ED21,'Trial 5'!ED21,'Trial 6'!ED21,'Trial 7'!ED21,'Trial 8'!ED21)","v":{"v":185573.50345298357,"d":"$185,574"}},{"$f":"AVERAGE('Trial 1'!EE21,'Trial 2'!EE21,'Trial 3'!EE21,'Trial 4'!EE21,'Trial 5'!EE21,'Trial 6'!EE21,'Trial 7'!EE21,'Trial 8'!EE21)","v":{"v":185469.17607239264,"d":"$185,469"}},{"$f":"AVERAGE('Trial 1'!EF21,'Trial 2'!EF21,'Trial 3'!EF21,'Trial 4'!EF21,'Trial 5'!EF21,'Trial 6'!EF21,'Trial 7'!EF21,'Trial 8'!EF21)","v":{"v":185382.94428843947,"d":"$185,383"}},{"$f":"AVERAGE('Trial 1'!EG21,'Trial 2'!EG21,'Trial 3'!EG21,'Trial 4'!EG21,'Trial 5'!EG21,'Trial 6'!EG21,'Trial 7'!EG21,'Trial 8'!EG21)","v":{"v":185300.23878781014,"d":"$185,300"}},{"$f":"AVERAGE('Trial 1'!EH21,'Trial 2'!EH21,'Trial 3'!EH21,'Trial 4'!EH21,'Trial 5'!EH21,'Trial 6'!EH21,'Trial 7'!EH21,'Trial 8'!EH21)","v":{"v":185191.47237211152,"d":"$185,191"}},{"$f":"AVERAGE('Trial 1'!EI21,'Trial 2'!EI21,'Trial 3'!EI21,'Trial 4'!EI21,'Trial 5'!EI21,'Trial 6'!EI21,'Trial 7'!EI21,'Trial 8'!EI21)","v":{"v":185091.60451845772,"d":"$185,092"}},{"$f":"AVERAGE('Trial 1'!EJ21,'Trial 2'!EJ21,'Trial 3'!EJ21,'Trial 4'!EJ21,'Trial 5'!EJ21,'Trial 6'!EJ21,'Trial 7'!EJ21,'Trial 8'!EJ21)","v":{"v":184956.78553414697,"d":"$184,957"}},{"$f":"AVERAGE('Trial 1'!EK21,'Trial 2'!EK21,'Trial 3'!EK21,'Trial 4'!EK21,'Trial 5'!EK21,'Trial 6'!EK21,'Trial 7'!EK21,'Trial 8'!EK21)","v":{"v":184859.43878390803,"d":"$184,859"}},{"$f":"AVERAGE('Trial 1'!EL21,'Trial 2'!EL21,'Trial 3'!EL21,'Trial 4'!EL21,'Trial 5'!EL21,'Trial 6'!EL21,'Trial 7'!EL21,'Trial 8'!EL21)","v":{"v":184783.41259572413,"d":"$184,783"}},{"$f":"AVERAGE('Trial 1'!EM21,'Trial 2'!EM21,'Trial 3'!EM21,'Trial 4'!EM21,'Trial 5'!EM21,'Trial 6'!EM21,'Trial 7'!EM21,'Trial 8'!EM21)","v":{"v":184681.49259331665,"d":"$184,681"}},{"$f":"SUM(EB27:EM27)","v":{"v":2222750.017202405,"d":"$2,222,750"}}]
[{"$f":"Labels!B21","v":"Capital Investment std dev"},{"$f":"STDEV('Trial 1'!B21,'Trial 2'!B21,'Trial 3'!B21,'Trial 4'!B21,'Trial 5'!B21,'Trial 6'!B21,'Trial 7'!B21,'Trial 8'!B21)","v":{"v":3.1113303489101166E-11,"d":"$0"}},{"$f":"STDEV('Trial 1'!C21,'Trial 2'!C21,'Trial 3'!C21,'Trial 4'!C21,'Trial 5'!C21,'Trial 6'!C21,'Trial 7'!C21,'Trial 8'!C21)","v":{"v":39.00847548814966,"d":"$39"}},{"$f":"STDEV('Trial 1'!D21,'Trial 2'!D21,'Trial 3'!D21,'Trial 4'!D21,'Trial 5'!D21,'Trial 6'!D21,'Trial 7'!D21,'Trial 8'!D21)","v":{"v":54.93329162959779,"d":"$55"}},{"$f":"STDEV('Trial 1'!E21,'Trial 2'!E21,'Trial 3'!E21,'Trial 4'!E21,'Trial 5'!E21,'Trial 6'!E21,'Trial 7'!E21,'Trial 8'!E21)","v":{"v":71.11087398754626,"d":"$71"}},{"$f":"STDEV('Trial 1'!F21,'Trial 2'!F21,'Trial 3'!F21,'Trial 4'!F21,'Trial 5'!F21,'Trial 6'!F21,'Trial 7'!F21,'Trial 8'!F21)","v":{"v":78.08651499409929,"d":"$78"}},{"$f":"STDEV('Trial 1'!G21,'Trial 2'!G21,'Trial 3'!G21,'Trial 4'!G21,'Trial 5'!G21,'Trial 6'!G21,'Trial 7'!G21,'Trial 8'!G21)","v":{"v":102.7265336327157,"d":"$103"}},{"$f":"STDEV('Trial 1'!H21,'Trial 2'!H21,'Trial 3'!H21,'Trial 4'!H21,'Trial 5'!H21,'Trial 6'!H21,'Trial 7'!H21,'Trial 8'!H21)","v":{"v":125.09963574101859,"d":"$125"}},{"$f":"STDEV('Trial 1'!I21,'Trial 2'!I21,'Trial 3'!I21,'Trial 4'!I21,'Trial 5'!I21,'Trial 6'!I21,'Trial 7'!I21,'Trial 8'!I21)","v":{"v":126.60631924412864,"d":"$127"}},{"$f":"STDEV('Trial 1'!J21,'Trial 2'!J21,'Trial 3'!J21,'Trial 4'!J21,'Trial 5'!J21,'Trial 6'!J21,'Trial 7'!J21,'Trial 8'!J21)","v":{"v":139.8299686086493,"d":"$140"}},{"$f":"STDEV('Trial 1'!K21,'Trial 2'!K21,'Trial 3'!K21,'Trial 4'!K21,'Trial 5'!K21,'Trial 6'!K21,'Trial 7'!K21,'Trial 8'!K21)","v":{"v":114.0562743996561,"d":"$114"}},{"$f":"STDEV('Trial 1'!L21,'Trial 2'!L21,'Trial 3'!L21,'Trial 4'!L21,'Trial 5'!L21,'Trial 6'!L21,'Trial 7'!L21,'Trial 8'!L21)","v":{"v":137.5162105584692,"d":"$138"}},{"$f":"STDEV('Trial 1'!M21,'Trial 2'!M21,'Trial 3'!M21,'Trial 4'!M21,'Trial 5'!M21,'Trial 6'!M21,'Trial 7'!M21,'Trial 8'!M21)","v":{"v":171.3570260378949,"d":"$171"}},{"$f":"SUM(B28:M28)","v":{"v":1160.3311243219564,"d":"$1,160"}},{"$f":"STDEV('Trial 1'!O21,'Trial 2'!O21,'Trial 3'!O21,'Trial 4'!O21,'Trial 5'!O21,'Trial 6'!O21,'Trial 7'!O21,'Trial 8'!O21)","v":{"v":185.36153827173965,"d":"$185"}},{"$f":"STDEV('Trial 1'!P21,'Trial 2'!P21,'Trial 3'!P21,'Trial 4'!P21,'Trial 5'!P21,'Trial 6'!P21,'Trial 7'!P21,'Trial 8'!P21)","v":{"v":189.05956030366963,"d":"$189"}},{"$f":"STDEV('Trial 1'!Q21,'Trial 2'!Q21,'Trial 3'!Q21,'Trial 4'!Q21,'Trial 5'!Q21,'Trial 6'!Q21,'Trial 7'!Q21,'Trial 8'!Q21)","v":{"v":184.72362179961152,"d":"$185"}},{"$f":"STDEV('Trial 1'!R21,'Trial 2'!R21,'Trial 3'!R21,'Trial 4'!R21,'Trial 5'!R21,'Trial 6'!R21,'Trial 7'!R21,'Trial 8'!R21)","v":{"v":176.9016788485984,"d":"$177"}},{"$f":"STDEV('Trial 1'!S21,'Trial 2'!S21,'Trial 3'!S21,'Trial 4'!S21,'Trial 5'!S21,'Trial 6'!S21,'Trial 7'!S21,'Trial 8'!S21)","v":{"v":189.75630777825117,"d":"$190"}},{"$f":"STDEV('Trial 1'!T21,'Trial 2'!T21,'Trial 3'!T21,'Trial 4'!T21,'Trial 5'!T21,'Trial 6'!T21,'Trial 7'!T21,'Trial 8'!T21)","v":{"v":198.5671172818612,"d":"$199"}},{"$f":"STDEV('Trial 1'!U21,'Trial 2'!U21,'Trial 3'!U21,'Trial 4'!U21,'Trial 5'!U21,'Trial 6'!U21,'Trial 7'!U21,'Trial 8'!U21)","v":{"v":181.34416339424612,"d":"$181"}},{"$f":"STDEV('Trial 1'!V21,'Trial 2'!V21,'Trial 3'!V21,'Trial 4'!V21,'Trial 5'!V21,'Trial 6'!V21,'Trial 7'!V21,'Trial 8'!V21)","v":{"v":176.39490342934252,"d":"$176"}},{"$f":"STDEV('Trial 1'!W21,'Trial 2'!W21,'Trial 3'!W21,'Trial 4'!W21,'Trial 5'!W21,'Trial 6'!W21,'Trial 7'!W21,'Trial 8'!W21)","v":{"v":194.8560039083485,"d":"$195"}},{"$f":"STDEV('Trial 1'!X21,'Trial 2'!X21,'Trial 3'!X21,'Trial 4'!X21,'Trial 5'!X21,'Trial 6'!X21,'Trial 7'!X21,'Trial 8'!X21)","v":{"v":205.46713455548988,"d":"$205"}},{"$f":"STDEV('Trial 1'!Y21,'Trial 2'!Y21,'Trial 3'!Y21,'Trial 4'!Y21,'Trial 5'!Y21,'Trial 6'!Y21,'Trial 7'!Y21,'Trial 8'!Y21)","v":{"v":230.63073125579422,"d":"$231"}},{"$f":"STDEV('Trial 1'!Z21,'Trial 2'!Z21,'Trial 3'!Z21,'Trial 4'!Z21,'Trial 5'!Z21,'Trial 6'!Z21,'Trial 7'!Z21,'Trial 8'!Z21)","v":{"v":244.95086546470327,"d":"$245"}},{"$f":"SUM(O28:Z28)","v":{"v":2358.0136262916562,"d":"$2,358"}},{"$f":"STDEV('Trial 1'!AB21,'Trial 2'!AB21,'Trial 3'!AB21,'Trial 4'!AB21,'Trial 5'!AB21,'Trial 6'!AB21,'Trial 7'!AB21,'Trial 8'!AB21)","v":{"v":217.26841096469167,"d":"$217"}},{"$f":"STDEV('Trial 1'!AC21,'Trial 2'!AC21,'Trial 3'!AC21,'Trial 4'!AC21,'Trial 5'!AC21,'Trial 6'!AC21,'Trial 7'!AC21,'Trial 8'!AC21)","v":{"v":186.72713125701534,"d":"$187"}},{"$f":"STDEV('Trial 1'!AD21,'Trial 2'!AD21,'Trial 3'!AD21,'Trial 4'!AD21,'Trial 5'!AD21,'Trial 6'!AD21,'Trial 7'!AD21,'Trial 8'!AD21)","v":{"v":190.11455675453018,"d":"$190"}},{"$f":"STDEV('Trial 1'!AE21,'Trial 2'!AE21,'Trial 3'!AE21,'Trial 4'!AE21,'Trial 5'!AE21,'Trial 6'!AE21,'Trial 7'!AE21,'Trial 8'!AE21)","v":{"v":213.60429365975352,"d":"$214"}},{"$f":"STDEV('Trial 1'!AF21,'Trial 2'!AF21,'Trial 3'!AF21,'Trial 4'!AF21,'Trial 5'!AF21,'Trial 6'!AF21,'Trial 7'!AF21,'Trial 8'!AF21)","v":{"v":228.92133831499117,"d":"$229"}},{"$f":"STDEV('Trial 1'!AG21,'Trial 2'!AG21,'Trial 3'!AG21,'Trial 4'!AG21,'Trial 5'!AG21,'Trial 6'!AG21,'Trial 7'!AG21,'Trial 8'!AG21)","v":{"v":253.6558424607848,"d":"$254"}},{"$f":"STDEV('Trial 1'!AH21,'Trial 2'!AH21,'Trial 3'!AH21,'Trial 4'!AH21,'Trial 5'!AH21,'Trial 6'!AH21,'Trial 7'!AH21,'Trial 8'!AH21)","v":{"v":248.48375887437567,"d":"$248"}},{"$f":"STDEV('Trial 1'!AI21,'Trial 2'!AI21,'Trial 3'!AI21,'Trial 4'!AI21,'Trial 5'!AI21,'Trial 6'!AI21,'Trial 7'!AI21,'Trial 8'!AI21)","v":{"v":255.36589311622845,"d":"$255"}},{"$f":"STDEV('Trial 1'!AJ21,'Trial 2'!AJ21,'Trial 3'!AJ21,'Trial 4'!AJ21,'Trial 5'!AJ21,'Trial 6'!AJ21,'Trial 7'!AJ21,'Trial 8'!AJ21)","v":{"v":246.51875436301938,"d":"$247"}},{"$f":"STDEV('Trial 1'!AK21,'Trial 2'!AK21,'Trial 3'!AK21,'Trial 4'!AK21,'Trial 5'!AK21,'Trial 6'!AK21,'Trial 7'!AK21,'Trial 8'!AK21)","v":{"v":235.96238171706474,"d":"$236"}},{"$f":"STDEV('Trial 1'!AL21,'Trial 2'!AL21,'Trial 3'!AL21,'Trial 4'!AL21,'Trial 5'!AL21,'Trial 6'!AL21,'Trial 7'!AL21,'Trial 8'!AL21)","v":{"v":230.27821530795515,"d":"$230"}},{"$f":"STDEV('Trial 1'!AM21,'Trial 2'!AM21,'Trial 3'!AM21,'Trial 4'!AM21,'Trial 5'!AM21,'Trial 6'!AM21,'Trial 7'!AM21,'Trial 8'!AM21)","v":{"v":241.87501116780345,"d":"$242"}},{"$f":"SUM(AB28:AM28)","v":{"v":2748.7755879582137,"d":"$2,749"}},{"$f":"STDEV('Trial 1'!AO21,'Trial 2'!AO21,'Trial 3'!AO21,'Trial 4'!AO21,'Trial 5'!AO21,'Trial 6'!AO21,'Trial 7'!AO21,'Trial 8'!AO21)","v":{"v":280.85279938452686,"d":"$281"}},{"$f":"STDEV('Trial 1'!AP21,'Trial 2'!AP21,'Trial 3'!AP21,'Trial 4'!AP21,'Trial 5'!AP21,'Trial 6'!AP21,'Trial 7'!AP21,'Trial 8'!AP21)","v":{"v":269.10392514550813,"d":"$269"}},{"$f":"STDEV('Trial 1'!AQ21,'Trial 2'!AQ21,'Trial 3'!AQ21,'Trial 4'!AQ21,'Trial 5'!AQ21,'Trial 6'!AQ21,'Trial 7'!AQ21,'Trial 8'!AQ21)","v":{"v":257.74810782769663,"d":"$258"}},{"$f":"STDEV('Trial 1'!AR21,'Trial 2'!AR21,'Trial 3'!AR21,'Trial 4'!AR21,'Trial 5'!AR21,'Trial 6'!AR21,'Trial 7'!AR21,'Trial 8'!AR21)","v":{"v":262.5038060380195,"d":"$263"}},{"$f":"STDEV('Trial 1'!AS21,'Trial 2'!AS21,'Trial 3'!AS21,'Trial 4'!AS21,'Trial 5'!AS21,'Trial 6'!AS21,'Trial 7'!AS21,'Trial 8'!AS21)","v":{"v":277.1714358974366,"d":"$277"}},{"$f":"STDEV('Trial 1'!AT21,'Trial 2'!AT21,'Trial 3'!AT21,'Trial 4'!AT21,'Trial 5'!AT21,'Trial 6'!AT21,'Trial 7'!AT21,'Trial 8'!AT21)","v":{"v":273.1058047634403,"d":"$273"}},{"$f":"STDEV('Trial 1'!AU21,'Trial 2'!AU21,'Trial 3'!AU21,'Trial 4'!AU21,'Trial 5'!AU21,'Trial 6'!AU21,'Trial 7'!AU21,'Trial 8'!AU21)","v":{"v":252.36063341476563,"d":"$252"}},{"$f":"STDEV('Trial 1'!AV21,'Trial 2'!AV21,'Trial 3'!AV21,'Trial 4'!AV21,'Trial 5'!AV21,'Trial 6'!AV21,'Trial 7'!AV21,'Trial 8'!AV21)","v":{"v":225.8422828911762,"d":"$226"}},{"$f":"STDEV('Trial 1'!AW21,'Trial 2'!AW21,'Trial 3'!AW21,'Trial 4'!AW21,'Trial 5'!AW21,'Trial 6'!AW21,'Trial 7'!AW21,'Trial 8'!AW21)","v":{"v":217.64829574200309,"d":"$218"}},{"$f":"STDEV('Trial 1'!AX21,'Trial 2'!AX21,'Trial 3'!AX21,'Trial 4'!AX21,'Trial 5'!AX21,'Trial 6'!AX21,'Trial 7'!AX21,'Trial 8'!AX21)","v":{"v":200.66210662716009,"d":"$201"}},{"$f":"STDEV('Trial 1'!AY21,'Trial 2'!AY21,'Trial 3'!AY21,'Trial 4'!AY21,'Trial 5'!AY21,'Trial 6'!AY21,'Trial 7'!AY21,'Trial 8'!AY21)","v":{"v":191.59992842398793,"d":"$192"}},{"$f":"STDEV('Trial 1'!AZ21,'Trial 2'!AZ21,'Trial 3'!AZ21,'Trial 4'!AZ21,'Trial 5'!AZ21,'Trial 6'!AZ21,'Trial 7'!AZ21,'Trial 8'!AZ21)","v":{"v":208.4609060434132,"d":"$208"}},{"$f":"SUM(AO28:AZ28)","v":{"v":2917.060032199134,"d":"$2,917"}},{"$f":"STDEV('Trial 1'!BB21,'Trial 2'!BB21,'Trial 3'!BB21,'Trial 4'!BB21,'Trial 5'!BB21,'Trial 6'!BB21,'Trial 7'!BB21,'Trial 8'!BB21)","v":{"v":236.53907362135442,"d":"$237"}},{"$f":"STDEV('Trial 1'!BC21,'Trial 2'!BC21,'Trial 3'!BC21,'Trial 4'!BC21,'Trial 5'!BC21,'Trial 6'!BC21,'Trial 7'!BC21,'Trial 8'!BC21)","v":{"v":184.58078635012924,"d":"$185"}},{"$f":"STDEV('Trial 1'!BD21,'Trial 2'!BD21,'Trial 3'!BD21,'Trial 4'!BD21,'Trial 5'!BD21,'Trial 6'!BD21,'Trial 7'!BD21,'Trial 8'!BD21)","v":{"v":195.05227570709675,"d":"$195"}},{"$f":"STDEV('Trial 1'!BE21,'Trial 2'!BE21,'Trial 3'!BE21,'Trial 4'!BE21,'Trial 5'!BE21,'Trial 6'!BE21,'Trial 7'!BE21,'Trial 8'!BE21)","v":{"v":223.76625068808752,"d":"$224"}},{"$f":"STDEV('Trial 1'!BF21,'Trial 2'!BF21,'Trial 3'!BF21,'Trial 4'!BF21,'Trial 5'!BF21,'Trial 6'!BF21,'Trial 7'!BF21,'Trial 8'!BF21)","v":{"v":239.19918967114432,"d":"$239"}},{"$f":"STDEV('Trial 1'!BG21,'Trial 2'!BG21,'Trial 3'!BG21,'Trial 4'!BG21,'Trial 5'!BG21,'Trial 6'!BG21,'Trial 7'!BG21,'Trial 8'!BG21)","v":{"v":257.896153593985,"d":"$258"}},{"$f":"STDEV('Trial 1'!BH21,'Trial 2'!BH21,'Trial 3'!BH21,'Trial 4'!BH21,'Trial 5'!BH21,'Trial 6'!BH21,'Trial 7'!BH21,'Trial 8'!BH21)","v":{"v":280.88952937627556,"d":"$281"}},{"$f":"STDEV('Trial 1'!BI21,'Trial 2'!BI21,'Trial 3'!BI21,'Trial 4'!BI21,'Trial 5'!BI21,'Trial 6'!BI21,'Trial 7'!BI21,'Trial 8'!BI21)","v":{"v":302.5002534542576,"d":"$303"}},{"$f":"STDEV('Trial 1'!BJ21,'Trial 2'!BJ21,'Trial 3'!BJ21,'Trial 4'!BJ21,'Trial 5'!BJ21,'Trial 6'!BJ21,'Trial 7'!BJ21,'Trial 8'!BJ21)","v":{"v":280.2566879717972,"d":"$280"}},{"$f":"STDEV('Trial 1'!BK21,'Trial 2'!BK21,'Trial 3'!BK21,'Trial 4'!BK21,'Trial 5'!BK21,'Trial 6'!BK21,'Trial 7'!BK21,'Trial 8'!BK21)","v":{"v":289.4139199773205,"d":"$289"}},{"$f":"STDEV('Trial 1'!BL21,'Trial 2'!BL21,'Trial 3'!BL21,'Trial 4'!BL21,'Trial 5'!BL21,'Trial 6'!BL21,'Trial 7'!BL21,'Trial 8'!BL21)","v":{"v":271.26469900112005,"d":"$271"}},{"$f":"STDEV('Trial 1'!BM21,'Trial 2'!BM21,'Trial 3'!BM21,'Trial 4'!BM21,'Trial 5'!BM21,'Trial 6'!BM21,'Trial 7'!BM21,'Trial 8'!BM21)","v":{"v":245.22175848335522,"d":"$245"}},{"$f":"SUM(BB28:BM28)","v":{"v":3006.580577895923,"d":"$3,007"}},{"$f":"STDEV('Trial 1'!BO21,'Trial 2'!BO21,'Trial 3'!BO21,'Trial 4'!BO21,'Trial 5'!BO21,'Trial 6'!BO21,'Trial 7'!BO21,'Trial 8'!BO21)","v":{"v":226.11972036812696,"d":"$226"}},{"$f":"STDEV('Trial 1'!BP21,'Trial 2'!BP21,'Trial 3'!BP21,'Trial 4'!BP21,'Trial 5'!BP21,'Trial 6'!BP21,'Trial 7'!BP21,'Trial 8'!BP21)","v":{"v":226.87590936087932,"d":"$227"}},{"$f":"STDEV('Trial 1'!BQ21,'Trial 2'!BQ21,'Trial 3'!BQ21,'Trial 4'!BQ21,'Trial 5'!BQ21,'Trial 6'!BQ21,'Trial 7'!BQ21,'Trial 8'!BQ21)","v":{"v":240.28346171785657,"d":"$240"}},{"$f":"STDEV('Trial 1'!BR21,'Trial 2'!BR21,'Trial 3'!BR21,'Trial 4'!BR21,'Trial 5'!BR21,'Trial 6'!BR21,'Trial 7'!BR21,'Trial 8'!BR21)","v":{"v":275.3402782345172,"d":"$275"}},{"$f":"STDEV('Trial 1'!BS21,'Trial 2'!BS21,'Trial 3'!BS21,'Trial 4'!BS21,'Trial 5'!BS21,'Trial 6'!BS21,'Trial 7'!BS21,'Trial 8'!BS21)","v":{"v":293.33140257572614,"d":"$293"}},{"$f":"STDEV('Trial 1'!BT21,'Trial 2'!BT21,'Trial 3'!BT21,'Trial 4'!BT21,'Trial 5'!BT21,'Trial 6'!BT21,'Trial 7'!BT21,'Trial 8'!BT21)","v":{"v":310.9313018213506,"d":"$311"}},{"$f":"STDEV('Trial 1'!BU21,'Trial 2'!BU21,'Trial 3'!BU21,'Trial 4'!BU21,'Trial 5'!BU21,'Trial 6'!BU21,'Trial 7'!BU21,'Trial 8'!BU21)","v":{"v":291.0593326491195,"d":"$291"}},{"$f":"STDEV('Trial 1'!BV21,'Trial 2'!BV21,'Trial 3'!BV21,'Trial 4'!BV21,'Trial 5'!BV21,'Trial 6'!BV21,'Trial 7'!BV21,'Trial 8'!BV21)","v":{"v":301.21972037621566,"d":"$301"}},{"$f":"STDEV('Trial 1'!BW21,'Trial 2'!BW21,'Trial 3'!BW21,'Trial 4'!BW21,'Trial 5'!BW21,'Trial 6'!BW21,'Trial 7'!BW21,'Trial 8'!BW21)","v":{"v":325.8596681343994,"d":"$326"}},{"$f":"STDEV('Trial 1'!BX21,'Trial 2'!BX21,'Trial 3'!BX21,'Trial 4'!BX21,'Trial 5'!BX21,'Trial 6'!BX21,'Trial 7'!BX21,'Trial 8'!BX21)","v":{"v":343.93263855911016,"d":"$344"}},{"$f":"STDEV('Trial 1'!BY21,'Trial 2'!BY21,'Trial 3'!BY21,'Trial 4'!BY21,'Trial 5'!BY21,'Trial 6'!BY21,'Trial 7'!BY21,'Trial 8'!BY21)","v":{"v":366.30623200251495,"d":"$366"}},{"$f":"STDEV('Trial 1'!BZ21,'Trial 2'!BZ21,'Trial 3'!BZ21,'Trial 4'!BZ21,'Trial 5'!BZ21,'Trial 6'!BZ21,'Trial 7'!BZ21,'Trial 8'!BZ21)","v":{"v":335.244689443569,"d":"$335"}},{"$f":"SUM(BO28:BZ28)","v":{"v":3536.5043552433854,"d":"$3,537"}},{"$f":"STDEV('Trial 1'!CB21,'Trial 2'!CB21,'Trial 3'!CB21,'Trial 4'!CB21,'Trial 5'!CB21,'Trial 6'!CB21,'Trial 7'!CB21,'Trial 8'!CB21)","v":{"v":315.7477952697904,"d":"$316"}},{"$f":"STDEV('Trial 1'!CC21,'Trial 2'!CC21,'Trial 3'!CC21,'Trial 4'!CC21,'Trial 5'!CC21,'Trial 6'!CC21,'Trial 7'!CC21,'Trial 8'!CC21)","v":{"v":302.3076242173418,"d":"$302"}},{"$f":"STDEV('Trial 1'!CD21,'Trial 2'!CD21,'Trial 3'!CD21,'Trial 4'!CD21,'Trial 5'!CD21,'Trial 6'!CD21,'Trial 7'!CD21,'Trial 8'!CD21)","v":{"v":296.78515005821976,"d":"$297"}},{"$f":"STDEV('Trial 1'!CE21,'Trial 2'!CE21,'Trial 3'!CE21,'Trial 4'!CE21,'Trial 5'!CE21,'Trial 6'!CE21,'Trial 7'!CE21,'Trial 8'!CE21)","v":{"v":282.01313672049827,"d":"$282"}},{"$f":"STDEV('Trial 1'!CF21,'Trial 2'!CF21,'Trial 3'!CF21,'Trial 4'!CF21,'Trial 5'!CF21,'Trial 6'!CF21,'Trial 7'!CF21,'Trial 8'!CF21)","v":{"v":278.2324435813447,"d":"$278"}},{"$f":"STDEV('Trial 1'!CG21,'Trial 2'!CG21,'Trial 3'!CG21,'Trial 4'!CG21,'Trial 5'!CG21,'Trial 6'!CG21,'Trial 7'!CG21,'Trial 8'!CG21)","v":{"v":271.2565727664424,"d":"$271"}},{"$f":"STDEV('Trial 1'!CH21,'Trial 2'!CH21,'Trial 3'!CH21,'Trial 4'!CH21,'Trial 5'!CH21,'Trial 6'!CH21,'Trial 7'!CH21,'Trial 8'!CH21)","v":{"v":303.3600359438732,"d":"$303"}},{"$f":"STDEV('Trial 1'!CI21,'Trial 2'!CI21,'Trial 3'!CI21,'Trial 4'!CI21,'Trial 5'!CI21,'Trial 6'!CI21,'Trial 7'!CI21,'Trial 8'!CI21)","v":{"v":281.038679362366,"d":"$281"}},{"$f":"STDEV('Trial 1'!CJ21,'Trial 2'!CJ21,'Trial 3'!CJ21,'Trial 4'!CJ21,'Trial 5'!CJ21,'Trial 6'!CJ21,'Trial 7'!CJ21,'Trial 8'!CJ21)","v":{"v":257.6248423191415,"d":"$258"}},{"$f":"STDEV('Trial 1'!CK21,'Trial 2'!CK21,'Trial 3'!CK21,'Trial 4'!CK21,'Trial 5'!CK21,'Trial 6'!CK21,'Trial 7'!CK21,'Trial 8'!CK21)","v":{"v":249.39102272409886,"d":"$249"}},{"$f":"STDEV('Trial 1'!CL21,'Trial 2'!CL21,'Trial 3'!CL21,'Trial 4'!CL21,'Trial 5'!CL21,'Trial 6'!CL21,'Trial 7'!CL21,'Trial 8'!CL21)","v":{"v":255.91171202782533,"d":"$256"}},{"$f":"STDEV('Trial 1'!CM21,'Trial 2'!CM21,'Trial 3'!CM21,'Trial 4'!CM21,'Trial 5'!CM21,'Trial 6'!CM21,'Trial 7'!CM21,'Trial 8'!CM21)","v":{"v":232.3078046662491,"d":"$232"}},{"$f":"SUM(CB28:CM28)","v":{"v":3325.9768196571913,"d":"$3,326"}},{"$f":"STDEV('Trial 1'!CO21,'Trial 2'!CO21,'Trial 3'!CO21,'Trial 4'!CO21,'Trial 5'!CO21,'Trial 6'!CO21,'Trial 7'!CO21,'Trial 8'!CO21)","v":{"v":254.86805824650057,"d":"$255"}},{"$f":"STDEV('Trial 1'!CP21,'Trial 2'!CP21,'Trial 3'!CP21,'Trial 4'!CP21,'Trial 5'!CP21,'Trial 6'!CP21,'Trial 7'!CP21,'Trial 8'!CP21)","v":{"v":279.75071205891817,"d":"$280"}},{"$f":"STDEV('Trial 1'!CQ21,'Trial 2'!CQ21,'Trial 3'!CQ21,'Trial 4'!CQ21,'Trial 5'!CQ21,'Trial 6'!CQ21,'Trial 7'!CQ21,'Trial 8'!CQ21)","v":{"v":273.52882464284914,"d":"$274"}},{"$f":"STDEV('Trial 1'!CR21,'Trial 2'!CR21,'Trial 3'!CR21,'Trial 4'!CR21,'Trial 5'!CR21,'Trial 6'!CR21,'Trial 7'!CR21,'Trial 8'!CR21)","v":{"v":290.768138991535,"d":"$291"}},{"$f":"STDEV('Trial 1'!CS21,'Trial 2'!CS21,'Trial 3'!CS21,'Trial 4'!CS21,'Trial 5'!CS21,'Trial 6'!CS21,'Trial 7'!CS21,'Trial 8'!CS21)","v":{"v":295.1453026337808,"d":"$295"}},{"$f":"STDEV('Trial 1'!CT21,'Trial 2'!CT21,'Trial 3'!CT21,'Trial 4'!CT21,'Trial 5'!CT21,'Trial 6'!CT21,'Trial 7'!CT21,'Trial 8'!CT21)","v":{"v":266.93393739416234,"d":"$267"}},{"$f":"STDEV('Trial 1'!CU21,'Trial 2'!CU21,'Trial 3'!CU21,'Trial 4'!CU21,'Trial 5'!CU21,'Trial 6'!CU21,'Trial 7'!CU21,'Trial 8'!CU21)","v":{"v":271.0498441577074,"d":"$271"}},{"$f":"STDEV('Trial 1'!CV21,'Trial 2'!CV21,'Trial 3'!CV21,'Trial 4'!CV21,'Trial 5'!CV21,'Trial 6'!CV21,'Trial 7'!CV21,'Trial 8'!CV21)","v":{"v":290.1809003965748,"d":"$290"}},{"$f":"STDEV('Trial 1'!CW21,'Trial 2'!CW21,'Trial 3'!CW21,'Trial 4'!CW21,'Trial 5'!CW21,'Trial 6'!CW21,'Trial 7'!CW21,'Trial 8'!CW21)","v":{"v":272.0410231020224,"d":"$272"}},{"$f":"STDEV('Trial 1'!CX21,'Trial 2'!CX21,'Trial 3'!CX21,'Trial 4'!CX21,'Trial 5'!CX21,'Trial 6'!CX21,'Trial 7'!CX21,'Trial 8'!CX21)","v":{"v":275.1339376404156,"d":"$275"}},{"$f":"STDEV('Trial 1'!CY21,'Trial 2'!CY21,'Trial 3'!CY21,'Trial 4'!CY21,'Trial 5'!CY21,'Trial 6'!CY21,'Trial 7'!CY21,'Trial 8'!CY21)","v":{"v":285.4577914812147,"d":"$285"}},{"$f":"STDEV('Trial 1'!CZ21,'Trial 2'!CZ21,'Trial 3'!CZ21,'Trial 4'!CZ21,'Trial 5'!CZ21,'Trial 6'!CZ21,'Trial 7'!CZ21,'Trial 8'!CZ21)","v":{"v":280.3321370395623,"d":"$280"}},{"$f":"SUM(CO28:CZ28)","v":{"v":3335.1906077852436,"d":"$3,335"}},{"$f":"STDEV('Trial 1'!DB21,'Trial 2'!DB21,'Trial 3'!DB21,'Trial 4'!DB21,'Trial 5'!DB21,'Trial 6'!DB21,'Trial 7'!DB21,'Trial 8'!DB21)","v":{"v":274.202474402129,"d":"$274"}},{"$f":"STDEV('Trial 1'!DC21,'Trial 2'!DC21,'Trial 3'!DC21,'Trial 4'!DC21,'Trial 5'!DC21,'Trial 6'!DC21,'Trial 7'!DC21,'Trial 8'!DC21)","v":{"v":312.39069099987415,"d":"$312"}},{"$f":"STDEV('Trial 1'!DD21,'Trial 2'!DD21,'Trial 3'!DD21,'Trial 4'!DD21,'Trial 5'!DD21,'Trial 6'!DD21,'Trial 7'!DD21,'Trial 8'!DD21)","v":{"v":292.3074674802652,"d":"$292"}},{"$f":"STDEV('Trial 1'!DE21,'Trial 2'!DE21,'Trial 3'!DE21,'Trial 4'!DE21,'Trial 5'!DE21,'Trial 6'!DE21,'Trial 7'!DE21,'Trial 8'!DE21)","v":{"v":268.5622357493787,"d":"$269"}},{"$f":"STDEV('Trial 1'!DF21,'Trial 2'!DF21,'Trial 3'!DF21,'Trial 4'!DF21,'Trial 5'!DF21,'Trial 6'!DF21,'Trial 7'!DF21,'Trial 8'!DF21)","v":{"v":243.06025873015966,"d":"$243"}},{"$f":"STDEV('Trial 1'!DG21,'Trial 2'!DG21,'Trial 3'!DG21,'Trial 4'!DG21,'Trial 5'!DG21,'Trial 6'!DG21,'Trial 7'!DG21,'Trial 8'!DG21)","v":{"v":221.36311978430476,"d":"$221"}},{"$f":"STDEV('Trial 1'!DH21,'Trial 2'!DH21,'Trial 3'!DH21,'Trial 4'!DH21,'Trial 5'!DH21,'Trial 6'!DH21,'Trial 7'!DH21,'Trial 8'!DH21)","v":{"v":198.37737295560794,"d":"$198"}},{"$f":"STDEV('Trial 1'!DI21,'Trial 2'!DI21,'Trial 3'!DI21,'Trial 4'!DI21,'Trial 5'!DI21,'Trial 6'!DI21,'Trial 7'!DI21,'Trial 8'!DI21)","v":{"v":190.7416143306889,"d":"$191"}},{"$f":"STDEV('Trial 1'!DJ21,'Trial 2'!DJ21,'Trial 3'!DJ21,'Trial 4'!DJ21,'Trial 5'!DJ21,'Trial 6'!DJ21,'Trial 7'!DJ21,'Trial 8'!DJ21)","v":{"v":171.13784642507594,"d":"$171"}},{"$f":"STDEV('Trial 1'!DK21,'Trial 2'!DK21,'Trial 3'!DK21,'Trial 4'!DK21,'Trial 5'!DK21,'Trial 6'!DK21,'Trial 7'!DK21,'Trial 8'!DK21)","v":{"v":197.70574293463483,"d":"$198"}},{"$f":"STDEV('Trial 1'!DL21,'Trial 2'!DL21,'Trial 3'!DL21,'Trial 4'!DL21,'Trial 5'!DL21,'Trial 6'!DL21,'Trial 7'!DL21,'Trial 8'!DL21)","v":{"v":172.48825058525898,"d":"$172"}},{"$f":"STDEV('Trial 1'!DM21,'Trial 2'!DM21,'Trial 3'!DM21,'Trial 4'!DM21,'Trial 5'!DM21,'Trial 6'!DM21,'Trial 7'!DM21,'Trial 8'!DM21)","v":{"v":213.56309003835153,"d":"$214"}},{"$f":"SUM(DB28:DM28)","v":{"v":2755.9001644157297,"d":"$2,756"}},{"$f":"STDEV('Trial 1'!DO21,'Trial 2'!DO21,'Trial 3'!DO21,'Trial 4'!DO21,'Trial 5'!DO21,'Trial 6'!DO21,'Trial 7'!DO21,'Trial 8'!DO21)","v":{"v":213.94001332028694,"d":"$214"}},{"$f":"STDEV('Trial 1'!DP21,'Trial 2'!DP21,'Trial 3'!DP21,'Trial 4'!DP21,'Trial 5'!DP21,'Trial 6'!DP21,'Trial 7'!DP21,'Trial 8'!DP21)","v":{"v":162.37840742262762,"d":"$162"}},{"$f":"STDEV('Trial 1'!DQ21,'Trial 2'!DQ21,'Trial 3'!DQ21,'Trial 4'!DQ21,'Trial 5'!DQ21,'Trial 6'!DQ21,'Trial 7'!DQ21,'Trial 8'!DQ21)","v":{"v":167.70566071488966,"d":"$168"}},{"$f":"STDEV('Trial 1'!DR21,'Trial 2'!DR21,'Trial 3'!DR21,'Trial 4'!DR21,'Trial 5'!DR21,'Trial 6'!DR21,'Trial 7'!DR21,'Trial 8'!DR21)","v":{"v":197.88287856473397,"d":"$198"}},{"$f":"STDEV('Trial 1'!DS21,'Trial 2'!DS21,'Trial 3'!DS21,'Trial 4'!DS21,'Trial 5'!DS21,'Trial 6'!DS21,'Trial 7'!DS21,'Trial 8'!DS21)","v":{"v":229.5581932317981,"d":"$230"}},{"$f":"STDEV('Trial 1'!DT21,'Trial 2'!DT21,'Trial 3'!DT21,'Trial 4'!DT21,'Trial 5'!DT21,'Trial 6'!DT21,'Trial 7'!DT21,'Trial 8'!DT21)","v":{"v":241.1934479196055,"d":"$241"}},{"$f":"STDEV('Trial 1'!DU21,'Trial 2'!DU21,'Trial 3'!DU21,'Trial 4'!DU21,'Trial 5'!DU21,'Trial 6'!DU21,'Trial 7'!DU21,'Trial 8'!DU21)","v":{"v":268.8133830741023,"d":"$269"}},{"$f":"STDEV('Trial 1'!DV21,'Trial 2'!DV21,'Trial 3'!DV21,'Trial 4'!DV21,'Trial 5'!DV21,'Trial 6'!DV21,'Trial 7'!DV21,'Trial 8'!DV21)","v":{"v":266.1216156405852,"d":"$266"}},{"$f":"STDEV('Trial 1'!DW21,'Trial 2'!DW21,'Trial 3'!DW21,'Trial 4'!DW21,'Trial 5'!DW21,'Trial 6'!DW21,'Trial 7'!DW21,'Trial 8'!DW21)","v":{"v":253.69921422356595,"d":"$254"}},{"$f":"STDEV('Trial 1'!DX21,'Trial 2'!DX21,'Trial 3'!DX21,'Trial 4'!DX21,'Trial 5'!DX21,'Trial 6'!DX21,'Trial 7'!DX21,'Trial 8'!DX21)","v":{"v":264.26990266355665,"d":"$264"}},{"$f":"STDEV('Trial 1'!DY21,'Trial 2'!DY21,'Trial 3'!DY21,'Trial 4'!DY21,'Trial 5'!DY21,'Trial 6'!DY21,'Trial 7'!DY21,'Trial 8'!DY21)","v":{"v":228.62075516618918,"d":"$229"}},{"$f":"STDEV('Trial 1'!DZ21,'Trial 2'!DZ21,'Trial 3'!DZ21,'Trial 4'!DZ21,'Trial 5'!DZ21,'Trial 6'!DZ21,'Trial 7'!DZ21,'Trial 8'!DZ21)","v":{"v":237.73692924896093,"d":"$238"}},{"$f":"SUM(DO28:DZ28)","v":{"v":2731.9204011909023,"d":"$2,732"}},{"$f":"STDEV('Trial 1'!EB21,'Trial 2'!EB21,'Trial 3'!EB21,'Trial 4'!EB21,'Trial 5'!EB21,'Trial 6'!EB21,'Trial 7'!EB21,'Trial 8'!EB21)","v":{"v":269.7252281903313,"d":"$270"}},{"$f":"STDEV('Trial 1'!EC21,'Trial 2'!EC21,'Trial 3'!EC21,'Trial 4'!EC21,'Trial 5'!EC21,'Trial 6'!EC21,'Trial 7'!EC21,'Trial 8'!EC21)","v":{"v":220.25354123996848,"d":"$220"}},{"$f":"STDEV('Trial 1'!ED21,'Trial 2'!ED21,'Trial 3'!ED21,'Trial 4'!ED21,'Trial 5'!ED21,'Trial 6'!ED21,'Trial 7'!ED21,'Trial 8'!ED21)","v":{"v":189.8605069394672,"d":"$190"}},{"$f":"STDEV('Trial 1'!EE21,'Trial 2'!EE21,'Trial 3'!EE21,'Trial 4'!EE21,'Trial 5'!EE21,'Trial 6'!EE21,'Trial 7'!EE21,'Trial 8'!EE21)","v":{"v":212.45786504903162,"d":"$212"}},{"$f":"STDEV('Trial 1'!EF21,'Trial 2'!EF21,'Trial 3'!EF21,'Trial 4'!EF21,'Trial 5'!EF21,'Trial 6'!EF21,'Trial 7'!EF21,'Trial 8'!EF21)","v":{"v":222.00543802413944,"d":"$222"}},{"$f":"STDEV('Trial 1'!EG21,'Trial 2'!EG21,'Trial 3'!EG21,'Trial 4'!EG21,'Trial 5'!EG21,'Trial 6'!EG21,'Trial 7'!EG21,'Trial 8'!EG21)","v":{"v":217.97299531939188,"d":"$218"}},{"$f":"STDEV('Trial 1'!EH21,'Trial 2'!EH21,'Trial 3'!EH21,'Trial 4'!EH21,'Trial 5'!EH21,'Trial 6'!EH21,'Trial 7'!EH21,'Trial 8'!EH21)","v":{"v":251.28595010712397,"d":"$251"}},{"$f":"STDEV('Trial 1'!EI21,'Trial 2'!EI21,'Trial 3'!EI21,'Trial 4'!EI21,'Trial 5'!EI21,'Trial 6'!EI21,'Trial 7'!EI21,'Trial 8'!EI21)","v":{"v":289.7229899257227,"d":"$290"}},{"$f":"STDEV('Trial 1'!EJ21,'Trial 2'!EJ21,'Trial 3'!EJ21,'Trial 4'!EJ21,'Trial 5'!EJ21,'Trial 6'!EJ21,'Trial 7'!EJ21,'Trial 8'!EJ21)","v":{"v":273.6148213617636,"d":"$274"}},{"$f":"STDEV('Trial 1'!EK21,'Trial 2'!EK21,'Trial 3'!EK21,'Trial 4'!EK21,'Trial 5'!EK21,'Trial 6'!EK21,'Trial 7'!EK21,'Trial 8'!EK21)","v":{"v":261.38704115280086,"d":"$261"}},{"$f":"STDEV('Trial 1'!EL21,'Trial 2'!EL21,'Trial 3'!EL21,'Trial 4'!EL21,'Trial 5'!EL21,'Trial 6'!EL21,'Trial 7'!EL21,'Trial 8'!EL21)","v":{"v":275.00721375095605,"d":"$275"}},{"$f":"STDEV('Trial 1'!EM21,'Trial 2'!EM21,'Trial 3'!EM21,'Trial 4'!EM21,'Trial 5'!EM21,'Trial 6'!EM21,'Trial 7'!EM21,'Trial 8'!EM21)","v":{"v":239.0473391416016,"d":"$239"}},{"$f":"SUM(EB28:EM28)","v":{"v":2922.3409302022988,"d":"$2,922"}}]
[{"$f":"Labels!B12","v":"Capital Depreciation"},{"$f":"AVERAGE('Trial 1'!B20,'Trial 2'!B20,'Trial 3'!B20,'Trial 4'!B20,'Trial 5'!B20,'Trial 6'!B20,'Trial 7'!B20,'Trial 8'!B20)","v":{"v":206222.01441622892,"d":"$206,222"}},{"$f":"AVERAGE('Trial 1'!C20,'Trial 2'!C20,'Trial 3'!C20,'Trial 4'!C20,'Trial 5'!C20,'Trial 6'!C20,'Trial 7'!C20,'Trial 8'!C20)","v":{"v":206222.01441622892,"d":"$206,222"}},{"$f":"AVERAGE('Trial 1'!D20,'Trial 2'!D20,'Trial 3'!D20,'Trial 4'!D20,'Trial 5'!D20,'Trial 6'!D20,'Trial 7'!D20,'Trial 8'!D20)","v":{"v":206222.01441622892,"d":"$206,222"}},{"$f":"AVERAGE('Trial 1'!E20,'Trial 2'!E20,'Trial 3'!E20,'Trial 4'!E20,'Trial 5'!E20,'Trial 6'!E20,'Trial 7'!E20,'Trial 8'!E20)","v":{"v":206219.40046937234,"d":"$206,219"}},{"$f":"AVERAGE('Trial 1'!F20,'Trial 2'!F20,'Trial 3'!F20,'Trial 4'!F20,'Trial 5'!F20,'Trial 6'!F20,'Trial 7'!F20,'Trial 8'!F20)","v":{"v":206214.41469292727,"d":"$206,214"}},{"$f":"AVERAGE('Trial 1'!G20,'Trial 2'!G20,'Trial 3'!G20,'Trial 4'!G20,'Trial 5'!G20,'Trial 6'!G20,'Trial 7'!G20,'Trial 8'!G20)","v":{"v":206207.3424240483,"d":"$206,207"}},{"$f":"AVERAGE('Trial 1'!H20,'Trial 2'!H20,'Trial 3'!H20,'Trial 4'!H20,'Trial 5'!H20,'Trial 6'!H20,'Trial 7'!H20,'Trial 8'!H20)","v":{"v":206198.33126950913,"d":"$206,198"}},{"$f":"AVERAGE('Trial 1'!I20,'Trial 2'!I20,'Trial 3'!I20,'Trial 4'!I20,'Trial 5'!I20,'Trial 6'!I20,'Trial 7'!I20,'Trial 8'!I20)","v":{"v":206187.55100048802,"d":"$206,188"}},{"$f":"AVERAGE('Trial 1'!J20,'Trial 2'!J20,'Trial 3'!J20,'Trial 4'!J20,'Trial 5'!J20,'Trial 6'!J20,'Trial 7'!J20,'Trial 8'!J20)","v":{"v":206174.89773032424,"d":"$206,175"}},{"$f":"AVERAGE('Trial 1'!K20,'Trial 2'!K20,'Trial 3'!K20,'Trial 4'!K20,'Trial 5'!K20,'Trial 6'!K20,'Trial 7'!K20,'Trial 8'!K20)","v":{"v":206160.21633222984,"d":"$206,160"}},{"$f":"AVERAGE('Trial 1'!L20,'Trial 2'!L20,'Trial 3'!L20,'Trial 4'!L20,'Trial 5'!L20,'Trial 6'!L20,'Trial 7'!L20,'Trial 8'!L20)","v":{"v":206143.66181735715,"d":"$206,144"}},{"$f":"AVERAGE('Trial 1'!M20,'Trial 2'!M20,'Trial 3'!M20,'Trial 4'!M20,'Trial 5'!M20,'Trial 6'!M20,'Trial 7'!M20,'Trial 8'!M20)","v":{"v":206125.30329755208,"d":"$206,125"}},{"$f":"SUM(B29:M29)","v":{"v":2474297.162282495,"d":"$2,474,297"}},{"$f":"AVERAGE('Trial 1'!O20,'Trial 2'!O20,'Trial 3'!O20,'Trial 4'!O20,'Trial 5'!O20,'Trial 6'!O20,'Trial 7'!O20,'Trial 8'!O20)","v":{"v":206105.19237504504,"d":"$206,105"}},{"$f":"AVERAGE('Trial 1'!P20,'Trial 2'!P20,'Trial 3'!P20,'Trial 4'!P20,'Trial 5'!P20,'Trial 6'!P20,'Trial 7'!P20,'Trial 8'!P20)","v":{"v":206083.35435261362,"d":"$206,083"}},{"$f":"AVERAGE('Trial 1'!Q20,'Trial 2'!Q20,'Trial 3'!Q20,'Trial 4'!Q20,'Trial 5'!Q20,'Trial 6'!Q20,'Trial 7'!Q20,'Trial 8'!Q20)","v":{"v":206059.76875132896,"d":"$206,060"}},{"$f":"AVERAGE('Trial 1'!R20,'Trial 2'!R20,'Trial 3'!R20,'Trial 4'!R20,'Trial 5'!R20,'Trial 6'!R20,'Trial 7'!R20,'Trial 8'!R20)","v":{"v":206034.61554460903,"d":"$206,035"}},{"$f":"AVERAGE('Trial 1'!S20,'Trial 2'!S20,'Trial 3'!S20,'Trial 4'!S20,'Trial 5'!S20,'Trial 6'!S20,'Trial 7'!S20,'Trial 8'!S20)","v":{"v":206007.90081952483,"d":"$206,008"}},{"$f":"AVERAGE('Trial 1'!T20,'Trial 2'!T20,'Trial 3'!T20,'Trial 4'!T20,'Trial 5'!T20,'Trial 6'!T20,'Trial 7'!T20,'Trial 8'!T20)","v":{"v":205979.71914354886,"d":"$205,980"}},{"$f":"AVERAGE('Trial 1'!U20,'Trial 2'!U20,'Trial 3'!U20,'Trial 4'!U20,'Trial 5'!U20,'Trial 6'!U20,'Trial 7'!U20,'Trial 8'!U20)","v":{"v":205950.16365061115,"d":"$205,950"}},{"$f":"AVERAGE('Trial 1'!V20,'Trial 2'!V20,'Trial 3'!V20,'Trial 4'!V20,'Trial 5'!V20,'Trial 6'!V20,'Trial 7'!V20,'Trial 8'!V20)","v":{"v":205918.83167743983,"d":"$205,919"}},{"$f":"AVERAGE('Trial 1'!W20,'Trial 2'!W20,'Trial 3'!W20,'Trial 4'!W20,'Trial 5'!W20,'Trial 6'!W20,'Trial 7'!W20,'Trial 8'!W20)","v":{"v":205886.14842850133,"d":"$205,886"}},{"$f":"AVERAGE('Trial 1'!X20,'Trial 2'!X20,'Trial 3'!X20,'Trial 4'!X20,'Trial 5'!X20,'Trial 6'!X20,'Trial 7'!X20,'Trial 8'!X20)","v":{"v":205851.88821618675,"d":"$205,852"}},{"$f":"AVERAGE('Trial 1'!Y20,'Trial 2'!Y20,'Trial 3'!Y20,'Trial 4'!Y20,'Trial 5'!Y20,'Trial 6'!Y20,'Trial 7'!Y20,'Trial 8'!Y20)","v":{"v":205816.12684697242,"d":"$205,816"}},{"$f":"AVERAGE('Trial 1'!Z20,'Trial 2'!Z20,'Trial 3'!Z20,'Trial 4'!Z20,'Trial 5'!Z20,'Trial 6'!Z20,'Trial 7'!Z20,'Trial 8'!Z20)","v":{"v":205779.21656431147,"d":"$205,779"}},{"$f":"SUM(O29:Z29)","v":{"v":2471472.926370694,"d":"$2,471,473"}},{"$f":"AVERAGE('Trial 1'!AB20,'Trial 2'!AB20,'Trial 3'!AB20,'Trial 4'!AB20,'Trial 5'!AB20,'Trial 6'!AB20,'Trial 7'!AB20,'Trial 8'!AB20)","v":{"v":205740.94143325044,"d":"$205,741"}},{"$f":"AVERAGE('Trial 1'!AC20,'Trial 2'!AC20,'Trial 3'!AC20,'Trial 4'!AC20,'Trial 5'!AC20,'Trial 6'!AC20,'Trial 7'!AC20,'Trial 8'!AC20)","v":{"v":205701.36192987094,"d":"$205,701"}},{"$f":"AVERAGE('Trial 1'!AD20,'Trial 2'!AD20,'Trial 3'!AD20,'Trial 4'!AD20,'Trial 5'!AD20,'Trial 6'!AD20,'Trial 7'!AD20,'Trial 8'!AD20)","v":{"v":205660.26526623734,"d":"$205,660"}},{"$f":"AVERAGE('Trial 1'!AE20,'Trial 2'!AE20,'Trial 3'!AE20,'Trial 4'!AE20,'Trial 5'!AE20,'Trial 6'!AE20,'Trial 7'!AE20,'Trial 8'!AE20)","v":{"v":205617.9821908266,"d":"$205,618"}},{"$f":"AVERAGE('Trial 1'!AF20,'Trial 2'!AF20,'Trial 3'!AF20,'Trial 4'!AF20,'Trial 5'!AF20,'Trial 6'!AF20,'Trial 7'!AF20,'Trial 8'!AF20)","v":{"v":205574.6571041619,"d":"$205,575"}},{"$f":"AVERAGE('Trial 1'!AG20,'Trial 2'!AG20,'Trial 3'!AG20,'Trial 4'!AG20,'Trial 5'!AG20,'Trial 6'!AG20,'Trial 7'!AG20,'Trial 8'!AG20)","v":{"v":205530.23783829756,"d":"$205,530"}},{"$f":"AVERAGE('Trial 1'!AH20,'Trial 2'!AH20,'Trial 3'!AH20,'Trial 4'!AH20,'Trial 5'!AH20,'Trial 6'!AH20,'Trial 7'!AH20,'Trial 8'!AH20)","v":{"v":205484.718757722,"d":"$205,485"}},{"$f":"AVERAGE('Trial 1'!AI20,'Trial 2'!AI20,'Trial 3'!AI20,'Trial 4'!AI20,'Trial 5'!AI20,'Trial 6'!AI20,'Trial 7'!AI20,'Trial 8'!AI20)","v":{"v":205437.94630801785,"d":"$205,438"}},{"$f":"AVERAGE('Trial 1'!AJ20,'Trial 2'!AJ20,'Trial 3'!AJ20,'Trial 4'!AJ20,'Trial 5'!AJ20,'Trial 6'!AJ20,'Trial 7'!AJ20,'Trial 8'!AJ20)","v":{"v":205390.2126057635,"d":"$205,390"}},{"$f":"AVERAGE('Trial 1'!AK20,'Trial 2'!AK20,'Trial 3'!AK20,'Trial 4'!AK20,'Trial 5'!AK20,'Trial 6'!AK20,'Trial 7'!AK20,'Trial 8'!AK20)","v":{"v":205341.65025777867,"d":"$205,342"}},{"$f":"AVERAGE('Trial 1'!AL20,'Trial 2'!AL20,'Trial 3'!AL20,'Trial 4'!AL20,'Trial 5'!AL20,'Trial 6'!AL20,'Trial 7'!AL20,'Trial 8'!AL20)","v":{"v":205291.905632473,"d":"$205,292"}},{"$f":"AVERAGE('Trial 1'!AM20,'Trial 2'!AM20,'Trial 3'!AM20,'Trial 4'!AM20,'Trial 5'!AM20,'Trial 6'!AM20,'Trial 7'!AM20,'Trial 8'!AM20)","v":{"v":205241.23973556154,"d":"$205,241"}},{"$f":"SUM(AB29:AM29)","v":{"v":2466013.1190599613,"d":"$2,466,013"}},{"$f":"AVERAGE('Trial 1'!AO20,'Trial 2'!AO20,'Trial 3'!AO20,'Trial 4'!AO20,'Trial 5'!AO20,'Trial 6'!AO20,'Trial 7'!AO20,'Trial 8'!AO20)","v":{"v":205189.7298405129,"d":"$205,190"}},{"$f":"AVERAGE('Trial 1'!AP20,'Trial 2'!AP20,'Trial 3'!AP20,'Trial 4'!AP20,'Trial 5'!AP20,'Trial 6'!AP20,'Trial 7'!AP20,'Trial 8'!AP20)","v":{"v":205137.44102427483,"d":"$205,137"}},{"$f":"AVERAGE('Trial 1'!AQ20,'Trial 2'!AQ20,'Trial 3'!AQ20,'Trial 4'!AQ20,'Trial 5'!AQ20,'Trial 6'!AQ20,'Trial 7'!AQ20,'Trial 8'!AQ20)","v":{"v":205084.1558143807,"d":"$205,084"}},{"$f":"AVERAGE('Trial 1'!AR20,'Trial 2'!AR20,'Trial 3'!AR20,'Trial 4'!AR20,'Trial 5'!AR20,'Trial 6'!AR20,'Trial 7'!AR20,'Trial 8'!AR20)","v":{"v":205030.0308275004,"d":"$205,030"}},{"$f":"AVERAGE('Trial 1'!AS20,'Trial 2'!AS20,'Trial 3'!AS20,'Trial 4'!AS20,'Trial 5'!AS20,'Trial 6'!AS20,'Trial 7'!AS20,'Trial 8'!AS20)","v":{"v":204975.2340213819,"d":"$204,975"}},{"$f":"AVERAGE('Trial 1'!AT20,'Trial 2'!AT20,'Trial 3'!AT20,'Trial 4'!AT20,'Trial 5'!AT20,'Trial 6'!AT20,'Trial 7'!AT20,'Trial 8'!AT20)","v":{"v":204919.5195420705,"d":"$204,920"}},{"$f":"AVERAGE('Trial 1'!AU20,'Trial 2'!AU20,'Trial 3'!AU20,'Trial 4'!AU20,'Trial 5'!AU20,'Trial 6'!AU20,'Trial 7'!AU20,'Trial 8'!AU20)","v":{"v":204863.00459832544,"d":"$204,863"}},{"$f":"AVERAGE('Trial 1'!AV20,'Trial 2'!AV20,'Trial 3'!AV20,'Trial 4'!AV20,'Trial 5'!AV20,'Trial 6'!AV20,'Trial 7'!AV20,'Trial 8'!AV20)","v":{"v":204805.86273792776,"d":"$204,806"}},{"$f":"AVERAGE('Trial 1'!AW20,'Trial 2'!AW20,'Trial 3'!AW20,'Trial 4'!AW20,'Trial 5'!AW20,'Trial 6'!AW20,'Trial 7'!AW20,'Trial 8'!AW20)","v":{"v":204747.9626436339,"d":"$204,748"}},{"$f":"AVERAGE('Trial 1'!AX20,'Trial 2'!AX20,'Trial 3'!AX20,'Trial 4'!AX20,'Trial 5'!AX20,'Trial 6'!AX20,'Trial 7'!AX20,'Trial 8'!AX20)","v":{"v":204689.2828605612,"d":"$204,689"}},{"$f":"AVERAGE('Trial 1'!AY20,'Trial 2'!AY20,'Trial 3'!AY20,'Trial 4'!AY20,'Trial 5'!AY20,'Trial 6'!AY20,'Trial 7'!AY20,'Trial 8'!AY20)","v":{"v":204629.91624621034,"d":"$204,630"}},{"$f":"AVERAGE('Trial 1'!AZ20,'Trial 2'!AZ20,'Trial 3'!AZ20,'Trial 4'!AZ20,'Trial 5'!AZ20,'Trial 6'!AZ20,'Trial 7'!AZ20,'Trial 8'!AZ20)","v":{"v":204569.71772569136,"d":"$204,570"}},{"$f":"SUM(AO29:AZ29)","v":{"v":2458641.8578824713,"d":"$2,458,642"}},{"$f":"AVERAGE('Trial 1'!BB20,'Trial 2'!BB20,'Trial 3'!BB20,'Trial 4'!BB20,'Trial 5'!BB20,'Trial 6'!BB20,'Trial 7'!BB20,'Trial 8'!BB20)","v":{"v":204508.80764569232,"d":"$204,509"}},{"$f":"AVERAGE('Trial 1'!BC20,'Trial 2'!BC20,'Trial 3'!BC20,'Trial 4'!BC20,'Trial 5'!BC20,'Trial 6'!BC20,'Trial 7'!BC20,'Trial 8'!BC20)","v":{"v":204447.27632185657,"d":"$204,447"}},{"$f":"AVERAGE('Trial 1'!BD20,'Trial 2'!BD20,'Trial 3'!BD20,'Trial 4'!BD20,'Trial 5'!BD20,'Trial 6'!BD20,'Trial 7'!BD20,'Trial 8'!BD20)","v":{"v":204384.93258007854,"d":"$204,385"}},{"$f":"AVERAGE('Trial 1'!BE20,'Trial 2'!BE20,'Trial 3'!BE20,'Trial 4'!BE20,'Trial 5'!BE20,'Trial 6'!BE20,'Trial 7'!BE20,'Trial 8'!BE20)","v":{"v":204321.825371809,"d":"$204,322"}},{"$f":"AVERAGE('Trial 1'!BF20,'Trial 2'!BF20,'Trial 3'!BF20,'Trial 4'!BF20,'Trial 5'!BF20,'Trial 6'!BF20,'Trial 7'!BF20,'Trial 8'!BF20)","v":{"v":204258.08836176942,"d":"$204,258"}},{"$f":"AVERAGE('Trial 1'!BG20,'Trial 2'!BG20,'Trial 3'!BG20,'Trial 4'!BG20,'Trial 5'!BG20,'Trial 6'!BG20,'Trial 7'!BG20,'Trial 8'!BG20)","v":{"v":204193.78768974208,"d":"$204,194"}},{"$f":"AVERAGE('Trial 1'!BH20,'Trial 2'!BH20,'Trial 3'!BH20,'Trial 4'!BH20,'Trial 5'!BH20,'Trial 6'!BH20,'Trial 7'!BH20,'Trial 8'!BH20)","v":{"v":204128.89378524324,"d":"$204,129"}},{"$f":"AVERAGE('Trial 1'!BI20,'Trial 2'!BI20,'Trial 3'!BI20,'Trial 4'!BI20,'Trial 5'!BI20,'Trial 6'!BI20,'Trial 7'!BI20,'Trial 8'!BI20)","v":{"v":204063.52088328797,"d":"$204,064"}},{"$f":"AVERAGE('Trial 1'!BJ20,'Trial 2'!BJ20,'Trial 3'!BJ20,'Trial 4'!BJ20,'Trial 5'!BJ20,'Trial 6'!BJ20,'Trial 7'!BJ20,'Trial 8'!BJ20)","v":{"v":203997.6823741558,"d":"$203,998"}},{"$f":"AVERAGE('Trial 1'!BK20,'Trial 2'!BK20,'Trial 3'!BK20,'Trial 4'!BK20,'Trial 5'!BK20,'Trial 6'!BK20,'Trial 7'!BK20,'Trial 8'!BK20)","v":{"v":203931.16443088534,"d":"$203,931"}},{"$f":"AVERAGE('Trial 1'!BL20,'Trial 2'!BL20,'Trial 3'!BL20,'Trial 4'!BL20,'Trial 5'!BL20,'Trial 6'!BL20,'Trial 7'!BL20,'Trial 8'!BL20)","v":{"v":203864.07967486,"d":"$203,864"}},{"$f":"AVERAGE('Trial 1'!BM20,'Trial 2'!BM20,'Trial 3'!BM20,'Trial 4'!BM20,'Trial 5'!BM20,'Trial 6'!BM20,'Trial 7'!BM20,'Trial 8'!BM20)","v":{"v":203796.60146050618,"d":"$203,797"}},{"$f":"SUM(BB29:BM29)","v":{"v":2449896.6605798868,"d":"$2,449,897"}},{"$f":"AVERAGE('Trial 1'!BO20,'Trial 2'!BO20,'Trial 3'!BO20,'Trial 4'!BO20,'Trial 5'!BO20,'Trial 6'!BO20,'Trial 7'!BO20,'Trial 8'!BO20)","v":{"v":203728.61421638046,"d":"$203,729"}},{"$f":"AVERAGE('Trial 1'!BP20,'Trial 2'!BP20,'Trial 3'!BP20,'Trial 4'!BP20,'Trial 5'!BP20,'Trial 6'!BP20,'Trial 7'!BP20,'Trial 8'!BP20)","v":{"v":203660.26283756137,"d":"$203,660"}},{"$f":"AVERAGE('Trial 1'!BQ20,'Trial 2'!BQ20,'Trial 3'!BQ20,'Trial 4'!BQ20,'Trial 5'!BQ20,'Trial 6'!BQ20,'Trial 7'!BQ20,'Trial 8'!BQ20)","v":{"v":203591.4484006108,"d":"$203,591"}},{"$f":"AVERAGE('Trial 1'!BR20,'Trial 2'!BR20,'Trial 3'!BR20,'Trial 4'!BR20,'Trial 5'!BR20,'Trial 6'!BR20,'Trial 7'!BR20,'Trial 8'!BR20)","v":{"v":203522.17185457898,"d":"$203,522"}},{"$f":"AVERAGE('Trial 1'!BS20,'Trial 2'!BS20,'Trial 3'!BS20,'Trial 4'!BS20,'Trial 5'!BS20,'Trial 6'!BS20,'Trial 7'!BS20,'Trial 8'!BS20)","v":{"v":203452.5187398271,"d":"$203,453"}},{"$f":"AVERAGE('Trial 1'!BT20,'Trial 2'!BT20,'Trial 3'!BT20,'Trial 4'!BT20,'Trial 5'!BT20,'Trial 6'!BT20,'Trial 7'!BT20,'Trial 8'!BT20)","v":{"v":203382.61999520933,"d":"$203,383"}},{"$f":"AVERAGE('Trial 1'!BU20,'Trial 2'!BU20,'Trial 3'!BU20,'Trial 4'!BU20,'Trial 5'!BU20,'Trial 6'!BU20,'Trial 7'!BU20,'Trial 8'!BU20)","v":{"v":203312.44399752497,"d":"$203,312"}},{"$f":"AVERAGE('Trial 1'!BV20,'Trial 2'!BV20,'Trial 3'!BV20,'Trial 4'!BV20,'Trial 5'!BV20,'Trial 6'!BV20,'Trial 7'!BV20,'Trial 8'!BV20)","v":{"v":203241.80672023588,"d":"$203,242"}},{"$f":"AVERAGE('Trial 1'!BW20,'Trial 2'!BW20,'Trial 3'!BW20,'Trial 4'!BW20,'Trial 5'!BW20,'Trial 6'!BW20,'Trial 7'!BW20,'Trial 8'!BW20)","v":{"v":203171.01190118815,"d":"$203,171"}},{"$f":"AVERAGE('Trial 1'!BX20,'Trial 2'!BX20,'Trial 3'!BX20,'Trial 4'!BX20,'Trial 5'!BX20,'Trial 6'!BX20,'Trial 7'!BX20,'Trial 8'!BX20)","v":{"v":203099.75658973955,"d":"$203,100"}},{"$f":"AVERAGE('Trial 1'!BY20,'Trial 2'!BY20,'Trial 3'!BY20,'Trial 4'!BY20,'Trial 5'!BY20,'Trial 6'!BY20,'Trial 7'!BY20,'Trial 8'!BY20)","v":{"v":203028.127863936,"d":"$203,028"}},{"$f":"AVERAGE('Trial 1'!BZ20,'Trial 2'!BZ20,'Trial 3'!BZ20,'Trial 4'!BZ20,'Trial 5'!BZ20,'Trial 6'!BZ20,'Trial 7'!BZ20,'Trial 8'!BZ20)","v":{"v":202956.32657326845,"d":"$202,956"}},{"$f":"SUM(BO29:BZ29)","v":{"v":2440147.1096900613,"d":"$2,440,147"}},{"$f":"AVERAGE('Trial 1'!CB20,'Trial 2'!CB20,'Trial 3'!CB20,'Trial 4'!CB20,'Trial 5'!CB20,'Trial 6'!CB20,'Trial 7'!CB20,'Trial 8'!CB20)","v":{"v":202884.08314281976,"d":"$202,884"}},{"$f":"AVERAGE('Trial 1'!CC20,'Trial 2'!CC20,'Trial 3'!CC20,'Trial 4'!CC20,'Trial 5'!CC20,'Trial 6'!CC20,'Trial 7'!CC20,'Trial 8'!CC20)","v":{"v":202811.6556616732,"d":"$202,812"}},{"$f":"AVERAGE('Trial 1'!CD20,'Trial 2'!CD20,'Trial 3'!CD20,'Trial 4'!CD20,'Trial 5'!CD20,'Trial 6'!CD20,'Trial 7'!CD20,'Trial 8'!CD20)","v":{"v":202738.92738135144,"d":"$202,739"}},{"$f":"AVERAGE('Trial 1'!CE20,'Trial 2'!CE20,'Trial 3'!CE20,'Trial 4'!CE20,'Trial 5'!CE20,'Trial 6'!CE20,'Trial 7'!CE20,'Trial 8'!CE20)","v":{"v":202665.8704689763,"d":"$202,666"}},{"$f":"AVERAGE('Trial 1'!CF20,'Trial 2'!CF20,'Trial 3'!CF20,'Trial 4'!CF20,'Trial 5'!CF20,'Trial 6'!CF20,'Trial 7'!CF20,'Trial 8'!CF20)","v":{"v":202592.46939067607,"d":"$202,592"}},{"$f":"AVERAGE('Trial 1'!CG20,'Trial 2'!CG20,'Trial 3'!CG20,'Trial 4'!CG20,'Trial 5'!CG20,'Trial 6'!CG20,'Trial 7'!CG20,'Trial 8'!CG20)","v":{"v":202518.86636051224,"d":"$202,519"}},{"$f":"AVERAGE('Trial 1'!CH20,'Trial 2'!CH20,'Trial 3'!CH20,'Trial 4'!CH20,'Trial 5'!CH20,'Trial 6'!CH20,'Trial 7'!CH20,'Trial 8'!CH20)","v":{"v":202444.8661133785,"d":"$202,445"}},{"$f":"AVERAGE('Trial 1'!CI20,'Trial 2'!CI20,'Trial 3'!CI20,'Trial 4'!CI20,'Trial 5'!CI20,'Trial 6'!CI20,'Trial 7'!CI20,'Trial 8'!CI20)","v":{"v":202370.58375930873,"d":"$202,371"}},{"$f":"AVERAGE('Trial 1'!CJ20,'Trial 2'!CJ20,'Trial 3'!CJ20,'Trial 4'!CJ20,'Trial 5'!CJ20,'Trial 6'!CJ20,'Trial 7'!CJ20,'Trial 8'!CJ20)","v":{"v":202296.3605001541,"d":"$202,296"}},{"$f":"AVERAGE('Trial 1'!CK20,'Trial 2'!CK20,'Trial 3'!CK20,'Trial 4'!CK20,'Trial 5'!CK20,'Trial 6'!CK20,'Trial 7'!CK20,'Trial 8'!CK20)","v":{"v":202221.92456137855,"d":"$202,222"}},{"$f":"AVERAGE('Trial 1'!CL20,'Trial 2'!CL20,'Trial 3'!CL20,'Trial 4'!CL20,'Trial 5'!CL20,'Trial 6'!CL20,'Trial 7'!CL20,'Trial 8'!CL20)","v":{"v":202147.3479313518,"d":"$202,147"}},{"$f":"AVERAGE('Trial 1'!CM20,'Trial 2'!CM20,'Trial 3'!CM20,'Trial 4'!CM20,'Trial 5'!CM20,'Trial 6'!CM20,'Trial 7'!CM20,'Trial 8'!CM20)","v":{"v":202072.58774669582,"d":"$202,073"}},{"$f":"SUM(CB29:CM29)","v":{"v":2429765.5430182763,"d":"$2,429,766"}},{"$f":"AVERAGE('Trial 1'!CO20,'Trial 2'!CO20,'Trial 3'!CO20,'Trial 4'!CO20,'Trial 5'!CO20,'Trial 6'!CO20,'Trial 7'!CO20,'Trial 8'!CO20)","v":{"v":201997.80458600278,"d":"$201,998"}},{"$f":"AVERAGE('Trial 1'!CP20,'Trial 2'!CP20,'Trial 3'!CP20,'Trial 4'!CP20,'Trial 5'!CP20,'Trial 6'!CP20,'Trial 7'!CP20,'Trial 8'!CP20)","v":{"v":201922.76103377735,"d":"$201,923"}},{"$f":"AVERAGE('Trial 1'!CQ20,'Trial 2'!CQ20,'Trial 3'!CQ20,'Trial 4'!CQ20,'Trial 5'!CQ20,'Trial 6'!CQ20,'Trial 7'!CQ20,'Trial 8'!CQ20)","v":{"v":201847.67671912815,"d":"$201,848"}},{"$f":"AVERAGE('Trial 1'!CR20,'Trial 2'!CR20,'Trial 3'!CR20,'Trial 4'!CR20,'Trial 5'!CR20,'Trial 6'!CR20,'Trial 7'!CR20,'Trial 8'!CR20)","v":{"v":201772.45594591458,"d":"$201,772"}},{"$f":"AVERAGE('Trial 1'!CS20,'Trial 2'!CS20,'Trial 3'!CS20,'Trial 4'!CS20,'Trial 5'!CS20,'Trial 6'!CS20,'Trial 7'!CS20,'Trial 8'!CS20)","v":{"v":201697.1114781185,"d":"$201,697"}},{"$f":"AVERAGE('Trial 1'!CT20,'Trial 2'!CT20,'Trial 3'!CT20,'Trial 4'!CT20,'Trial 5'!CT20,'Trial 6'!CT20,'Trial 7'!CT20,'Trial 8'!CT20)","v":{"v":201621.62996352086,"d":"$201,622"}},{"$f":"AVERAGE('Trial 1'!CU20,'Trial 2'!CU20,'Trial 3'!CU20,'Trial 4'!CU20,'Trial 5'!CU20,'Trial 6'!CU20,'Trial 7'!CU20,'Trial 8'!CU20)","v":{"v":201545.95018989727,"d":"$201,546"}},{"$f":"AVERAGE('Trial 1'!CV20,'Trial 2'!CV20,'Trial 3'!CV20,'Trial 4'!CV20,'Trial 5'!CV20,'Trial 6'!CV20,'Trial 7'!CV20,'Trial 8'!CV20)","v":{"v":201469.82558932513,"d":"$201,470"}},{"$f":"AVERAGE('Trial 1'!CW20,'Trial 2'!CW20,'Trial 3'!CW20,'Trial 4'!CW20,'Trial 5'!CW20,'Trial 6'!CW20,'Trial 7'!CW20,'Trial 8'!CW20)","v":{"v":201393.387015733,"d":"$201,393"}},{"$f":"AVERAGE('Trial 1'!CX20,'Trial 2'!CX20,'Trial 3'!CX20,'Trial 4'!CX20,'Trial 5'!CX20,'Trial 6'!CX20,'Trial 7'!CX20,'Trial 8'!CX20)","v":{"v":201317.0330052607,"d":"$201,317"}},{"$f":"AVERAGE('Trial 1'!CY20,'Trial 2'!CY20,'Trial 3'!CY20,'Trial 4'!CY20,'Trial 5'!CY20,'Trial 6'!CY20,'Trial 7'!CY20,'Trial 8'!CY20)","v":{"v":201240.45026835272,"d":"$201,240"}},{"$f":"AVERAGE('Trial 1'!CZ20,'Trial 2'!CZ20,'Trial 3'!CZ20,'Trial 4'!CZ20,'Trial 5'!CZ20,'Trial 6'!CZ20,'Trial 7'!CZ20,'Trial 8'!CZ20)","v":{"v":201163.66824105688,"d":"$201,164"}},{"$f":"SUM(CO29:CZ29)","v":{"v":2418989.754036088,"d":"$2,418,990"}},{"$f":"AVERAGE('Trial 1'!DB20,'Trial 2'!DB20,'Trial 3'!DB20,'Trial 4'!DB20,'Trial 5'!DB20,'Trial 6'!DB20,'Trial 7'!DB20,'Trial 8'!DB20)","v":{"v":201086.64461274951,"d":"$201,087"}},{"$f":"AVERAGE('Trial 1'!DC20,'Trial 2'!DC20,'Trial 3'!DC20,'Trial 4'!DC20,'Trial 5'!DC20,'Trial 6'!DC20,'Trial 7'!DC20,'Trial 8'!DC20)","v":{"v":201009.53846546623,"d":"$201,010"}},{"$f":"AVERAGE('Trial 1'!DD20,'Trial 2'!DD20,'Trial 3'!DD20,'Trial 4'!DD20,'Trial 5'!DD20,'Trial 6'!DD20,'Trial 7'!DD20,'Trial 8'!DD20)","v":{"v":200932.21983619808,"d":"$200,932"}},{"$f":"AVERAGE('Trial 1'!DE20,'Trial 2'!DE20,'Trial 3'!DE20,'Trial 4'!DE20,'Trial 5'!DE20,'Trial 6'!DE20,'Trial 7'!DE20,'Trial 8'!DE20)","v":{"v":200854.8532971649,"d":"$200,855"}},{"$f":"AVERAGE('Trial 1'!DF20,'Trial 2'!DF20,'Trial 3'!DF20,'Trial 4'!DF20,'Trial 5'!DF20,'Trial 6'!DF20,'Trial 7'!DF20,'Trial 8'!DF20)","v":{"v":200777.1950890125,"d":"$200,777"}},{"$f":"AVERAGE('Trial 1'!DG20,'Trial 2'!DG20,'Trial 3'!DG20,'Trial 4'!DG20,'Trial 5'!DG20,'Trial 6'!DG20,'Trial 7'!DG20,'Trial 8'!DG20)","v":{"v":200699.3345903528,"d":"$200,699"}},{"$f":"AVERAGE('Trial 1'!DH20,'Trial 2'!DH20,'Trial 3'!DH20,'Trial 4'!DH20,'Trial 5'!DH20,'Trial 6'!DH20,'Trial 7'!DH20,'Trial 8'!DH20)","v":{"v":200621.41336550916,"d":"$200,621"}},{"$f":"AVERAGE('Trial 1'!DI20,'Trial 2'!DI20,'Trial 3'!DI20,'Trial 4'!DI20,'Trial 5'!DI20,'Trial 6'!DI20,'Trial 7'!DI20,'Trial 8'!DI20)","v":{"v":200543.3503926855,"d":"$200,543"}},{"$f":"AVERAGE('Trial 1'!DJ20,'Trial 2'!DJ20,'Trial 3'!DJ20,'Trial 4'!DJ20,'Trial 5'!DJ20,'Trial 6'!DJ20,'Trial 7'!DJ20,'Trial 8'!DJ20)","v":{"v":200465.11347195646,"d":"$200,465"}},{"$f":"AVERAGE('Trial 1'!DK20,'Trial 2'!DK20,'Trial 3'!DK20,'Trial 4'!DK20,'Trial 5'!DK20,'Trial 6'!DK20,'Trial 7'!DK20,'Trial 8'!DK20)","v":{"v":200386.6831699507,"d":"$200,387"}},{"$f":"AVERAGE('Trial 1'!DL20,'Trial 2'!DL20,'Trial 3'!DL20,'Trial 4'!DL20,'Trial 5'!DL20,'Trial 6'!DL20,'Trial 7'!DL20,'Trial 8'!DL20)","v":{"v":200308.0284223413,"d":"$200,308"}},{"$f":"AVERAGE('Trial 1'!DM20,'Trial 2'!DM20,'Trial 3'!DM20,'Trial 4'!DM20,'Trial 5'!DM20,'Trial 6'!DM20,'Trial 7'!DM20,'Trial 8'!DM20)","v":{"v":200229.25478610006,"d":"$200,229"}},{"$f":"SUM(DB29:DM29)","v":{"v":2407913.6294994876,"d":"$2,407,914"}},{"$f":"AVERAGE('Trial 1'!DO20,'Trial 2'!DO20,'Trial 3'!DO20,'Trial 4'!DO20,'Trial 5'!DO20,'Trial 6'!DO20,'Trial 7'!DO20,'Trial 8'!DO20)","v":{"v":200150.3395106939,"d":"$200,150"}},{"$f":"AVERAGE('Trial 1'!DP20,'Trial 2'!DP20,'Trial 3'!DP20,'Trial 4'!DP20,'Trial 5'!DP20,'Trial 6'!DP20,'Trial 7'!DP20,'Trial 8'!DP20)","v":{"v":200071.20402636577,"d":"$200,071"}},{"$f":"AVERAGE('Trial 1'!DQ20,'Trial 2'!DQ20,'Trial 3'!DQ20,'Trial 4'!DQ20,'Trial 5'!DQ20,'Trial 6'!DQ20,'Trial 7'!DQ20,'Trial 8'!DQ20)","v":{"v":199991.8899112134,"d":"$199,992"}},{"$f":"AVERAGE('Trial 1'!DR20,'Trial 2'!DR20,'Trial 3'!DR20,'Trial 4'!DR20,'Trial 5'!DR20,'Trial 6'!DR20,'Trial 7'!DR20,'Trial 8'!DR20)","v":{"v":199912.58886468413,"d":"$199,913"}},{"$f":"AVERAGE('Trial 1'!DS20,'Trial 2'!DS20,'Trial 3'!DS20,'Trial 4'!DS20,'Trial 5'!DS20,'Trial 6'!DS20,'Trial 7'!DS20,'Trial 8'!DS20)","v":{"v":199833.11994980645,"d":"$199,833"}},{"$f":"AVERAGE('Trial 1'!DT20,'Trial 2'!DT20,'Trial 3'!DT20,'Trial 4'!DT20,'Trial 5'!DT20,'Trial 6'!DT20,'Trial 7'!DT20,'Trial 8'!DT20)","v":{"v":199753.72584348073,"d":"$199,754"}},{"$f":"AVERAGE('Trial 1'!DU20,'Trial 2'!DU20,'Trial 3'!DU20,'Trial 4'!DU20,'Trial 5'!DU20,'Trial 6'!DU20,'Trial 7'!DU20,'Trial 8'!DU20)","v":{"v":199674.26416178406,"d":"$199,674"}},{"$f":"AVERAGE('Trial 1'!DV20,'Trial 2'!DV20,'Trial 3'!DV20,'Trial 4'!DV20,'Trial 5'!DV20,'Trial 6'!DV20,'Trial 7'!DV20,'Trial 8'!DV20)","v":{"v":199594.71841399936,"d":"$199,595"}},{"$f":"AVERAGE('Trial 1'!DW20,'Trial 2'!DW20,'Trial 3'!DW20,'Trial 4'!DW20,'Trial 5'!DW20,'Trial 6'!DW20,'Trial 7'!DW20,'Trial 8'!DW20)","v":{"v":199515.2392618962,"d":"$199,515"}},{"$f":"AVERAGE('Trial 1'!DX20,'Trial 2'!DX20,'Trial 3'!DX20,'Trial 4'!DX20,'Trial 5'!DX20,'Trial 6'!DX20,'Trial 7'!DX20,'Trial 8'!DX20)","v":{"v":199435.72815986912,"d":"$199,436"}},{"$f":"AVERAGE('Trial 1'!DY20,'Trial 2'!DY20,'Trial 3'!DY20,'Trial 4'!DY20,'Trial 5'!DY20,'Trial 6'!DY20,'Trial 7'!DY20,'Trial 8'!DY20)","v":{"v":199356.2298116923,"d":"$199,356"}},{"$f":"AVERAGE('Trial 1'!DZ20,'Trial 2'!DZ20,'Trial 3'!DZ20,'Trial 4'!DZ20,'Trial 5'!DZ20,'Trial 6'!DZ20,'Trial 7'!DZ20,'Trial 8'!DZ20)","v":{"v":199276.68080056767,"d":"$199,277"}},{"$f":"SUM(DO29:DZ29)","v":{"v":2396565.728716053,"d":"$2,396,566"}},{"$f":"AVERAGE('Trial 1'!EB20,'Trial 2'!EB20,'Trial 3'!EB20,'Trial 4'!EB20,'Trial 5'!EB20,'Trial 6'!EB20,'Trial 7'!EB20,'Trial 8'!EB20)","v":{"v":199197.05933539575,"d":"$199,197"}},{"$f":"AVERAGE('Trial 1'!EC20,'Trial 2'!EC20,'Trial 3'!EC20,'Trial 4'!EC20,'Trial 5'!EC20,'Trial 6'!EC20,'Trial 7'!EC20,'Trial 8'!EC20)","v":{"v":199117.3812623239,"d":"$199,117"}},{"$f":"AVERAGE('Trial 1'!ED20,'Trial 2'!ED20,'Trial 3'!ED20,'Trial 4'!ED20,'Trial 5'!ED20,'Trial 6'!ED20,'Trial 7'!ED20,'Trial 8'!ED20)","v":{"v":199037.45493615392,"d":"$199,037"}},{"$f":"AVERAGE('Trial 1'!EE20,'Trial 2'!EE20,'Trial 3'!EE20,'Trial 4'!EE20,'Trial 5'!EE20,'Trial 6'!EE20,'Trial 7'!EE20,'Trial 8'!EE20)","v":{"v":198957.5330933084,"d":"$198,958"}},{"$f":"AVERAGE('Trial 1'!EF20,'Trial 2'!EF20,'Trial 3'!EF20,'Trial 4'!EF20,'Trial 5'!EF20,'Trial 6'!EF20,'Trial 7'!EF20,'Trial 8'!EF20)","v":{"v":198877.39052495622,"d":"$198,877"}},{"$f":"AVERAGE('Trial 1'!EG20,'Trial 2'!EG20,'Trial 3'!EG20,'Trial 4'!EG20,'Trial 5'!EG20,'Trial 6'!EG20,'Trial 7'!EG20,'Trial 8'!EG20)","v":{"v":198797.10268554598,"d":"$198,797"}},{"$f":"AVERAGE('Trial 1'!EH20,'Trial 2'!EH20,'Trial 3'!EH20,'Trial 4'!EH20,'Trial 5'!EH20,'Trial 6'!EH20,'Trial 7'!EH20,'Trial 8'!EH20)","v":{"v":198716.7786008048,"d":"$198,717"}},{"$f":"AVERAGE('Trial 1'!EI20,'Trial 2'!EI20,'Trial 3'!EI20,'Trial 4'!EI20,'Trial 5'!EI20,'Trial 6'!EI20,'Trial 7'!EI20,'Trial 8'!EI20)","v":{"v":198636.44012522307,"d":"$198,636"}},{"$f":"AVERAGE('Trial 1'!EJ20,'Trial 2'!EJ20,'Trial 3'!EJ20,'Trial 4'!EJ20,'Trial 5'!EJ20,'Trial 6'!EJ20,'Trial 7'!EJ20,'Trial 8'!EJ20)","v":{"v":198555.93235005226,"d":"$198,556"}},{"$f":"AVERAGE('Trial 1'!EK20,'Trial 2'!EK20,'Trial 3'!EK20,'Trial 4'!EK20,'Trial 5'!EK20,'Trial 6'!EK20,'Trial 7'!EK20,'Trial 8'!EK20)","v":{"v":198475.30832858343,"d":"$198,475"}},{"$f":"AVERAGE('Trial 1'!EL20,'Trial 2'!EL20,'Trial 3'!EL20,'Trial 4'!EL20,'Trial 5'!EL20,'Trial 6'!EL20,'Trial 7'!EL20,'Trial 8'!EL20)","v":{"v":198394.3610261078,"d":"$198,394"}},{"$f":"AVERAGE('Trial 1'!EM20,'Trial 2'!EM20,'Trial 3'!EM20,'Trial 4'!EM20,'Trial 5'!EM20,'Trial 6'!EM20,'Trial 7'!EM20,'Trial 8'!EM20)","v":{"v":198313.31418357996,"d":"$198,313"}},{"$f":"SUM(EB29:EM29)","v":{"v":2385076.056452035,"d":"$2,385,076"}}]
[{"$f":"Labels!B13","v":"Capital Depreciation std dev"},{"$f":"STDEV('Trial 1'!B20,'Trial 2'!B20,'Trial 3'!B20,'Trial 4'!B20,'Trial 5'!B20,'Trial 6'!B20,'Trial 7'!B20,'Trial 8'!B20)","v":{"v":3.1113303489101166E-11,"d":"$0"}},{"$f":"STDEV('Trial 1'!C20,'Trial 2'!C20,'Trial 3'!C20,'Trial 4'!C20,'Trial 5'!C20,'Trial 6'!C20,'Trial 7'!C20,'Trial 8'!C20)","v":{"v":3.1113303489101166E-11,"d":"$0"}},{"$f":"STDEV('Trial 1'!D20,'Trial 2'!D20,'Trial 3'!D20,'Trial 4'!D20,'Trial 5'!D20,'Trial 6'!D20,'Trial 7'!D20,'Trial 8'!D20)","v":{"v":3.1113303489101166E-11,"d":"$0"}},{"$f":"STDEV('Trial 1'!E20,'Trial 2'!E20,'Trial 3'!E20,'Trial 4'!E20,'Trial 5'!E20,'Trial 6'!E20,'Trial 7'!E20,'Trial 8'!E20)","v":{"v":0.23219330647514783,"d":"$0"}},{"$f":"STDEV('Trial 1'!F20,'Trial 2'!F20,'Trial 3'!F20,'Trial 4'!F20,'Trial 5'!F20,'Trial 6'!F20,'Trial 7'!F20,'Trial 8'!F20)","v":{"v":0.41970878536497364,"d":"$0"}},{"$f":"STDEV('Trial 1'!G20,'Trial 2'!G20,'Trial 3'!G20,'Trial 4'!G20,'Trial 5'!G20,'Trial 6'!G20,'Trial 7'!G20,'Trial 8'!G20)","v":{"v":0.7920819343062641,"d":"$1"}},{"$f":"STDEV('Trial 1'!H20,'Trial 2'!H20,'Trial 3'!H20,'Trial 4'!H20,'Trial 5'!H20,'Trial 6'!H20,'Trial 7'!H20,'Trial 8'!H20)","v":{"v":1.1676442662477466,"d":"$1"}},{"$f":"STDEV('Trial 1'!I20,'Trial 2'!I20,'Trial 3'!I20,'Trial 4'!I20,'Trial 5'!I20,'Trial 6'!I20,'Trial 7'!I20,'Trial 8'!I20)","v":{"v":1.6983004898315948,"d":"$2"}},{"$f":"STDEV('Trial 1'!J20,'Trial 2'!J20,'Trial 3'!J20,'Trial 4'!J20,'Trial 5'!J20,'Trial 6'!J20,'Trial 7'!J20,'Trial 8'!J20)","v":{"v":2.3053151073883997,"d":"$2"}},{"$f":"STDEV('Trial 1'!K20,'Trial 2'!K20,'Trial 3'!K20,'Trial 4'!K20,'Trial 5'!K20,'Trial 6'!K20,'Trial 7'!K20,'Trial 8'!K20)","v":{"v":2.988211859327908,"d":"$3"}},{"$f":"STDEV('Trial 1'!L20,'Trial 2'!L20,'Trial 3'!L20,'Trial 4'!L20,'Trial 5'!L20,'Trial 6'!L20,'Trial 7'!L20,'Trial 8'!L20)","v":{"v":3.6633430111069916,"d":"$4"}},{"$f":"STDEV('Trial 1'!M20,'Trial 2'!M20,'Trial 3'!M20,'Trial 4'!M20,'Trial 5'!M20,'Trial 6'!M20,'Trial 7'!M20,'Trial 8'!M20)","v":{"v":4.240556382306691,"d":"$4"}},{"$f":"SUM(B30:M30)","v":{"v":17.507355142449057,"d":"$18"}},{"$f":"STDEV('Trial 1'!O20,'Trial 2'!O20,'Trial 3'!O20,'Trial 4'!O20,'Trial 5'!O20,'Trial 6'!O20,'Trial 7'!O20,'Trial 8'!O20)","v":{"v":4.984320065995426,"d":"$5"}},{"$f":"STDEV('Trial 1'!P20,'Trial 2'!P20,'Trial 3'!P20,'Trial 4'!P20,'Trial 5'!P20,'Trial 6'!P20,'Trial 7'!P20,'Trial 8'!P20)","v":{"v":5.89382643434768,"d":"$6"}},{"$f":"STDEV('Trial 1'!Q20,'Trial 2'!Q20,'Trial 3'!Q20,'Trial 4'!Q20,'Trial 5'!Q20,'Trial 6'!Q20,'Trial 7'!Q20,'Trial 8'!Q20)","v":{"v":6.885267996996268,"d":"$7"}},{"$f":"STDEV('Trial 1'!R20,'Trial 2'!R20,'Trial 3'!R20,'Trial 4'!R20,'Trial 5'!R20,'Trial 6'!R20,'Trial 7'!R20,'Trial 8'!R20)","v":{"v":7.890792535149422,"d":"$8"}},{"$f":"STDEV('Trial 1'!S20,'Trial 2'!S20,'Trial 3'!S20,'Trial 4'!S20,'Trial 5'!S20,'Trial 6'!S20,'Trial 7'!S20,'Trial 8'!S20)","v":{"v":8.925932677390607,"d":"$9"}},{"$f":"STDEV('Trial 1'!T20,'Trial 2'!T20,'Trial 3'!T20,'Trial 4'!T20,'Trial 5'!T20,'Trial 6'!T20,'Trial 7'!T20,'Trial 8'!T20)","v":{"v":9.828770345398503,"d":"$10"}},{"$f":"STDEV('Trial 1'!U20,'Trial 2'!U20,'Trial 3'!U20,'Trial 4'!U20,'Trial 5'!U20,'Trial 6'!U20,'Trial 7'!U20,'Trial 8'!U20)","v":{"v":10.817231529806852,"d":"$11"}},{"$f":"STDEV('Trial 1'!V20,'Trial 2'!V20,'Trial 3'!V20,'Trial 4'!V20,'Trial 5'!V20,'Trial 6'!V20,'Trial 7'!V20,'Trial 8'!V20)","v":{"v":11.831502727904981,"d":"$12"}},{"$f":"STDEV('Trial 1'!W20,'Trial 2'!W20,'Trial 3'!W20,'Trial 4'!W20,'Trial 5'!W20,'Trial 6'!W20,'Trial 7'!W20,'Trial 8'!W20)","v":{"v":12.665407560438553,"d":"$13"}},{"$f":"STDEV('Trial 1'!X20,'Trial 2'!X20,'Trial 3'!X20,'Trial 4'!X20,'Trial 5'!X20,'Trial 6'!X20,'Trial 7'!X20,'Trial 8'!X20)","v":{"v":13.403164877244635,"d":"$13"}},{"$f":"STDEV('Trial 1'!Y20,'Trial 2'!Y20,'Trial 3'!Y20,'Trial 4'!Y20,'Trial 5'!Y20,'Trial 6'!Y20,'Trial 7'!Y20,'Trial 8'!Y20)","v":{"v":14.137669913685912,"d":"$14"}},{"$f":"STDEV('Trial 1'!Z20,'Trial 2'!Z20,'Trial 3'!Z20,'Trial 4'!Z20,'Trial 5'!Z20,'Trial 6'!Z20,'Trial 7'!Z20,'Trial 8'!Z20)","v":{"v":14.826039129507599,"d":"$15"}},{"$f":"SUM(O30:Z30)","v":{"v":122.08992579386643,"d":"$122"}},{"$f":"STDEV('Trial 1'!AB20,'Trial 2'!AB20,'Trial 3'!AB20,'Trial 4'!AB20,'Trial 5'!AB20,'Trial 6'!AB20,'Trial 7'!AB20,'Trial 8'!AB20)","v":{"v":15.743200438082665,"d":"$16"}},{"$f":"STDEV('Trial 1'!AC20,'Trial 2'!AC20,'Trial 3'!AC20,'Trial 4'!AC20,'Trial 5'!AC20,'Trial 6'!AC20,'Trial 7'!AC20,'Trial 8'!AC20)","v":{"v":16.790090344807865,"d":"$17"}},{"$f":"STDEV('Trial 1'!AD20,'Trial 2'!AD20,'Trial 3'!AD20,'Trial 4'!AD20,'Trial 5'!AD20,'Trial 6'!AD20,'Trial 7'!AD20,'Trial 8'!AD20)","v":{"v":17.746542411131323,"d":"$18"}},{"$f":"STDEV('Trial 1'!AE20,'Trial 2'!AE20,'Trial 3'!AE20,'Trial 4'!AE20,'Trial 5'!AE20,'Trial 6'!AE20,'Trial 7'!AE20,'Trial 8'!AE20)","v":{"v":18.56328567636408,"d":"$19"}},{"$f":"STDEV('Trial 1'!AF20,'Trial 2'!AF20,'Trial 3'!AF20,'Trial 4'!AF20,'Trial 5'!AF20,'Trial 6'!AF20,'Trial 7'!AF20,'Trial 8'!AF20)","v":{"v":19.461778463178835,"d":"$19"}},{"$f":"STDEV('Trial 1'!AG20,'Trial 2'!AG20,'Trial 3'!AG20,'Trial 4'!AG20,'Trial 5'!AG20,'Trial 6'!AG20,'Trial 7'!AG20,'Trial 8'!AG20)","v":{"v":20.356267584973626,"d":"$20"}},{"$f":"STDEV('Trial 1'!AH20,'Trial 2'!AH20,'Trial 3'!AH20,'Trial 4'!AH20,'Trial 5'!AH20,'Trial 6'!AH20,'Trial 7'!AH20,'Trial 8'!AH20)","v":{"v":21.438991442721566,"d":"$21"}},{"$f":"STDEV('Trial 1'!AI20,'Trial 2'!AI20,'Trial 3'!AI20,'Trial 4'!AI20,'Trial 5'!AI20,'Trial 6'!AI20,'Trial 7'!AI20,'Trial 8'!AI20)","v":{"v":22.65991981872472,"d":"$23"}},{"$f":"STDEV('Trial 1'!AJ20,'Trial 2'!AJ20,'Trial 3'!AJ20,'Trial 4'!AJ20,'Trial 5'!AJ20,'Trial 6'!AJ20,'Trial 7'!AJ20,'Trial 8'!AJ20)","v":{"v":23.88760875838424,"d":"$24"}},{"$f":"STDEV('Trial 1'!AK20,'Trial 2'!AK20,'Trial 3'!AK20,'Trial 4'!AK20,'Trial 5'!AK20,'Trial 6'!AK20,'Trial 7'!AK20,'Trial 8'!AK20)","v":{"v":25.156701873676283,"d":"$25"}},{"$f":"STDEV('Trial 1'!AL20,'Trial 2'!AL20,'Trial 3'!AL20,'Trial 4'!AL20,'Trial 5'!AL20,'Trial 6'!AL20,'Trial 7'!AL20,'Trial 8'!AL20)","v":{"v":26.387430089642294,"d":"$26"}},{"$f":"STDEV('Trial 1'!AM20,'Trial 2'!AM20,'Trial 3'!AM20,'Trial 4'!AM20,'Trial 5'!AM20,'Trial 6'!AM20,'Trial 7'!AM20,'Trial 8'!AM20)","v":{"v":27.59444889168271,"d":"$28"}},{"$f":"SUM(AB30:AM30)","v":{"v":255.7862657933702,"d":"$256"}},{"$f":"STDEV('Trial 1'!AO20,'Trial 2'!AO20,'Trial 3'!AO20,'Trial 4'!AO20,'Trial 5'!AO20,'Trial 6'!AO20,'Trial 7'!AO20,'Trial 8'!AO20)","v":{"v":28.762896385537125,"d":"$29"}},{"$f":"STDEV('Trial 1'!AP20,'Trial 2'!AP20,'Trial 3'!AP20,'Trial 4'!AP20,'Trial 5'!AP20,'Trial 6'!AP20,'Trial 7'!AP20,'Trial 8'!AP20)","v":{"v":29.954218926660744,"d":"$30"}},{"$f":"STDEV('Trial 1'!AQ20,'Trial 2'!AQ20,'Trial 3'!AQ20,'Trial 4'!AQ20,'Trial 5'!AQ20,'Trial 6'!AQ20,'Trial 7'!AQ20,'Trial 8'!AQ20)","v":{"v":31.29825217506185,"d":"$31"}},{"$f":"STDEV('Trial 1'!AR20,'Trial 2'!AR20,'Trial 3'!AR20,'Trial 4'!AR20,'Trial 5'!AR20,'Trial 6'!AR20,'Trial 7'!AR20,'Trial 8'!AR20)","v":{"v":32.501959674961725,"d":"$33"}},{"$f":"STDEV('Trial 1'!AS20,'Trial 2'!AS20,'Trial 3'!AS20,'Trial 4'!AS20,'Trial 5'!AS20,'Trial 6'!AS20,'Trial 7'!AS20,'Trial 8'!AS20)","v":{"v":33.67165767467443,"d":"$34"}},{"$f":"STDEV('Trial 1'!AT20,'Trial 2'!AT20,'Trial 3'!AT20,'Trial 4'!AT20,'Trial 5'!AT20,'Trial 6'!AT20,'Trial 7'!AT20,'Trial 8'!AT20)","v":{"v":34.89132531286348,"d":"$35"}},{"$f":"STDEV('Trial 1'!AU20,'Trial 2'!AU20,'Trial 3'!AU20,'Trial 4'!AU20,'Trial 5'!AU20,'Trial 6'!AU20,'Trial 7'!AU20,'Trial 8'!AU20)","v":{"v":36.25577918510953,"d":"$36"}},{"$f":"STDEV('Trial 1'!AV20,'Trial 2'!AV20,'Trial 3'!AV20,'Trial 4'!AV20,'Trial 5'!AV20,'Trial 6'!AV20,'Trial 7'!AV20,'Trial 8'!AV20)","v":{"v":37.62768729957305,"d":"$38"}},{"$f":"STDEV('Trial 1'!AW20,'Trial 2'!AW20,'Trial 3'!AW20,'Trial 4'!AW20,'Trial 5'!AW20,'Trial 6'!AW20,'Trial 7'!AW20,'Trial 8'!AW20)","v":{"v":38.86453373433961,"d":"$39"}},{"$f":"STDEV('Trial 1'!AX20,'Trial 2'!AX20,'Trial 3'!AX20,'Trial 4'!AX20,'Trial 5'!AX20,'Trial 6'!AX20,'Trial 7'!AX20,'Trial 8'!AX20)","v":{"v":39.91755482447442,"d":"$40"}},{"$f":"STDEV('Trial 1'!AY20,'Trial 2'!AY20,'Trial 3'!AY20,'Trial 4'!AY20,'Trial 5'!AY20,'Trial 6'!AY20,'Trial 7'!AY20,'Trial 8'!AY20)","v":{"v":40.91758775232268,"d":"$41"}},{"$f":"STDEV('Trial 1'!AZ20,'Trial 2'!AZ20,'Trial 3'!AZ20,'Trial 4'!AZ20,'Trial 5'!AZ20,'Trial 6'!AZ20,'Trial 7'!AZ20,'Trial 8'!AZ20)","v":{"v":41.83435033913651,"d":"$42"}},{"$f":"SUM(AO30:AZ30)","v":{"v":426.4978032847152,"d":"$426"}},{"$f":"STDEV('Trial 1'!BB20,'Trial 2'!BB20,'Trial 3'!BB20,'Trial 4'!BB20,'Trial 5'!BB20,'Trial 6'!BB20,'Trial 7'!BB20,'Trial 8'!BB20)","v":{"v":42.65632508638271,"d":"$43"}},{"$f":"STDEV('Trial 1'!BC20,'Trial 2'!BC20,'Trial 3'!BC20,'Trial 4'!BC20,'Trial 5'!BC20,'Trial 6'!BC20,'Trial 7'!BC20,'Trial 8'!BC20)","v":{"v":43.488409364126426,"d":"$43"}},{"$f":"STDEV('Trial 1'!BD20,'Trial 2'!BD20,'Trial 3'!BD20,'Trial 4'!BD20,'Trial 5'!BD20,'Trial 6'!BD20,'Trial 7'!BD20,'Trial 8'!BD20)","v":{"v":44.409589593436955,"d":"$44"}},{"$f":"STDEV('Trial 1'!BE20,'Trial 2'!BE20,'Trial 3'!BE20,'Trial 4'!BE20,'Trial 5'!BE20,'Trial 6'!BE20,'Trial 7'!BE20,'Trial 8'!BE20)","v":{"v":45.087153169852435,"d":"$45"}},{"$f":"STDEV('Trial 1'!BF20,'Trial 2'!BF20,'Trial 3'!BF20,'Trial 4'!BF20,'Trial 5'!BF20,'Trial 6'!BF20,'Trial 7'!BF20,'Trial 8'!BF20)","v":{"v":45.658261450818465,"d":"$46"}},{"$f":"STDEV('Trial 1'!BG20,'Trial 2'!BG20,'Trial 3'!BG20,'Trial 4'!BG20,'Trial 5'!BG20,'Trial 6'!BG20,'Trial 7'!BG20,'Trial 8'!BG20)","v":{"v":46.335805324502886,"d":"$46"}},{"$f":"STDEV('Trial 1'!BH20,'Trial 2'!BH20,'Trial 3'!BH20,'Trial 4'!BH20,'Trial 5'!BH20,'Trial 6'!BH20,'Trial 7'!BH20,'Trial 8'!BH20)","v":{"v":47.000960067200424,"d":"$47"}},{"$f":"STDEV('Trial 1'!BI20,'Trial 2'!BI20,'Trial 3'!BI20,'Trial 4'!BI20,'Trial 5'!BI20,'Trial 6'!BI20,'Trial 7'!BI20,'Trial 8'!BI20)","v":{"v":47.78605437132223,"d":"$48"}},{"$f":"STDEV('Trial 1'!BJ20,'Trial 2'!BJ20,'Trial 3'!BJ20,'Trial 4'!BJ20,'Trial 5'!BJ20,'Trial 6'!BJ20,'Trial 7'!BJ20,'Trial 8'!BJ20)","v":{"v":48.69859766773128,"d":"$49"}},{"$f":"STDEV('Trial 1'!BK20,'Trial 2'!BK20,'Trial 3'!BK20,'Trial 4'!BK20,'Trial 5'!BK20,'Trial 6'!BK20,'Trial 7'!BK20,'Trial 8'!BK20)","v":{"v":49.791588539722916,"d":"$50"}},{"$f":"STDEV('Trial 1'!BL20,'Trial 2'!BL20,'Trial 3'!BL20,'Trial 4'!BL20,'Trial 5'!BL20,'Trial 6'!BL20,'Trial 7'!BL20,'Trial 8'!BL20)","v":{"v":50.80068126378203,"d":"$51"}},{"$f":"STDEV('Trial 1'!BM20,'Trial 2'!BM20,'Trial 3'!BM20,'Trial 4'!BM20,'Trial 5'!BM20,'Trial 6'!BM20,'Trial 7'!BM20,'Trial 8'!BM20)","v":{"v":51.881029054032105,"d":"$52"}},{"$f":"SUM(BB30:BM30)","v":{"v":563.5944549529108,"d":"$564"}},{"$f":"STDEV('Trial 1'!BO20,'Trial 2'!BO20,'Trial 3'!BO20,'Trial 4'!BO20,'Trial 5'!BO20,'Trial 6'!BO20,'Trial 7'!BO20,'Trial 8'!BO20)","v":{"v":52.76902538532874,"d":"$53"}},{"$f":"STDEV('Trial 1'!BP20,'Trial 2'!BP20,'Trial 3'!BP20,'Trial 4'!BP20,'Trial 5'!BP20,'Trial 6'!BP20,'Trial 7'!BP20,'Trial 8'!BP20)","v":{"v":53.4150042936555,"d":"$53"}},{"$f":"STDEV('Trial 1'!BQ20,'Trial 2'!BQ20,'Trial 3'!BQ20,'Trial 4'!BQ20,'Trial 5'!BQ20,'Trial 6'!BQ20,'Trial 7'!BQ20,'Trial 8'!BQ20)","v":{"v":54.02110575579221,"d":"$54"}},{"$f":"STDEV('Trial 1'!BR20,'Trial 2'!BR20,'Trial 3'!BR20,'Trial 4'!BR20,'Trial 5'!BR20,'Trial 6'!BR20,'Trial 7'!BR20,'Trial 8'!BR20)","v":{"v":54.41412789626095,"d":"$54"}},{"$f":"STDEV('Trial 1'!BS20,'Trial 2'!BS20,'Trial 3'!BS20,'Trial 4'!BS20,'Trial 5'!BS20,'Trial 6'!BS20,'Trial 7'!BS20,'Trial 8'!BS20)","v":{"v":54.52957037034002,"d":"$55"}},{"$f":"STDEV('Trial 1'!BT20,'Trial 2'!BT20,'Trial 3'!BT20,'Trial 4'!BT20,'Trial 5'!BT20,'Trial 6'!BT20,'Trial 7'!BT20,'Trial 8'!BT20)","v":{"v":54.7600413212984,"d":"$55"}},{"$f":"STDEV('Trial 1'!BU20,'Trial 2'!BU20,'Trial 3'!BU20,'Trial 4'!BU20,'Trial 5'!BU20,'Trial 6'!BU20,'Trial 7'!BU20,'Trial 8'!BU20)","v":{"v":55.11973663470214,"d":"$55"}},{"$f":"STDEV('Trial 1'!BV20,'Trial 2'!BV20,'Trial 3'!BV20,'Trial 4'!BV20,'Trial 5'!BV20,'Trial 6'!BV20,'Trial 7'!BV20,'Trial 8'!BV20)","v":{"v":55.555711590646695,"d":"$56"}},{"$f":"STDEV('Trial 1'!BW20,'Trial 2'!BW20,'Trial 3'!BW20,'Trial 4'!BW20,'Trial 5'!BW20,'Trial 6'!BW20,'Trial 7'!BW20,'Trial 8'!BW20)","v":{"v":55.97696998778314,"d":"$56"}},{"$f":"STDEV('Trial 1'!BX20,'Trial 2'!BX20,'Trial 3'!BX20,'Trial 4'!BX20,'Trial 5'!BX20,'Trial 6'!BX20,'Trial 7'!BX20,'Trial 8'!BX20)","v":{"v":56.58068164625385,"d":"$57"}},{"$f":"STDEV('Trial 1'!BY20,'Trial 2'!BY20,'Trial 3'!BY20,'Trial 4'!BY20,'Trial 5'!BY20,'Trial 6'!BY20,'Trial 7'!BY20,'Trial 8'!BY20)","v":{"v":57.31983829900269,"d":"$57"}},{"$f":"STDEV('Trial 1'!BZ20,'Trial 2'!BZ20,'Trial 3'!BZ20,'Trial 4'!BZ20,'Trial 5'!BZ20,'Trial 6'!BZ20,'Trial 7'!BZ20,'Trial 8'!BZ20)","v":{"v":58.3129648730868,"d":"$58"}},{"$f":"SUM(BO30:BZ30)","v":{"v":662.774778054151,"d":"$663"}},{"$f":"STDEV('Trial 1'!CB20,'Trial 2'!CB20,'Trial 3'!CB20,'Trial 4'!CB20,'Trial 5'!CB20,'Trial 6'!CB20,'Trial 7'!CB20,'Trial 8'!CB20)","v":{"v":59.19187365671002,"d":"$59"}},{"$f":"STDEV('Trial 1'!CC20,'Trial 2'!CC20,'Trial 3'!CC20,'Trial 4'!CC20,'Trial 5'!CC20,'Trial 6'!CC20,'Trial 7'!CC20,'Trial 8'!CC20)","v":{"v":59.873443474953994,"d":"$60"}},{"$f":"STDEV('Trial 1'!CD20,'Trial 2'!CD20,'Trial 3'!CD20,'Trial 4'!CD20,'Trial 5'!CD20,'Trial 6'!CD20,'Trial 7'!CD20,'Trial 8'!CD20)","v":{"v":60.428722923082574,"d":"$60"}},{"$f":"STDEV('Trial 1'!CE20,'Trial 2'!CE20,'Trial 3'!CE20,'Trial 4'!CE20,'Trial 5'!CE20,'Trial 6'!CE20,'Trial 7'!CE20,'Trial 8'!CE20)","v":{"v":61.00966465546329,"d":"$61"}},{"$f":"STDEV('Trial 1'!CF20,'Trial 2'!CF20,'Trial 3'!CF20,'Trial 4'!CF20,'Trial 5'!CF20,'Trial 6'!CF20,'Trial 7'!CF20,'Trial 8'!CF20)","v":{"v":61.58694387332277,"d":"$62"}},{"$f":"STDEV('Trial 1'!CG20,'Trial 2'!CG20,'Trial 3'!CG20,'Trial 4'!CG20,'Trial 5'!CG20,'Trial 6'!CG20,'Trial 7'!CG20,'Trial 8'!CG20)","v":{"v":62.32804980900887,"d":"$62"}},{"$f":"STDEV('Trial 1'!CH20,'Trial 2'!CH20,'Trial 3'!CH20,'Trial 4'!CH20,'Trial 5'!CH20,'Trial 6'!CH20,'Trial 7'!CH20,'Trial 8'!CH20)","v":{"v":62.96879877135629,"d":"$63"}},{"$f":"STDEV('Trial 1'!CI20,'Trial 2'!CI20,'Trial 3'!CI20,'Trial 4'!CI20,'Trial 5'!CI20,'Trial 6'!CI20,'Trial 7'!CI20,'Trial 8'!CI20)","v":{"v":63.539440407338525,"d":"$64"}},{"$f":"STDEV('Trial 1'!CJ20,'Trial 2'!CJ20,'Trial 3'!CJ20,'Trial 4'!CJ20,'Trial 5'!CJ20,'Trial 6'!CJ20,'Trial 7'!CJ20,'Trial 8'!CJ20)","v":{"v":64.21552638450542,"d":"$64"}},{"$f":"STDEV('Trial 1'!CK20,'Trial 2'!CK20,'Trial 3'!CK20,'Trial 4'!CK20,'Trial 5'!CK20,'Trial 6'!CK20,'Trial 7'!CK20,'Trial 8'!CK20)","v":{"v":64.67413080584457,"d":"$65"}},{"$f":"STDEV('Trial 1'!CL20,'Trial 2'!CL20,'Trial 3'!CL20,'Trial 4'!CL20,'Trial 5'!CL20,'Trial 6'!CL20,'Trial 7'!CL20,'Trial 8'!CL20)","v":{"v":64.98675236228786,"d":"$65"}},{"$f":"STDEV('Trial 1'!CM20,'Trial 2'!CM20,'Trial 3'!CM20,'Trial 4'!CM20,'Trial 5'!CM20,'Trial 6'!CM20,'Trial 7'!CM20,'Trial 8'!CM20)","v":{"v":65.4679400365594,"d":"$65"}},{"$f":"SUM(CB30:CM30)","v":{"v":750.2712871604335,"d":"$750"}},{"$f":"STDEV('Trial 1'!CO20,'Trial 2'!CO20,'Trial 3'!CO20,'Trial 4'!CO20,'Trial 5'!CO20,'Trial 6'!CO20,'Trial 7'!CO20,'Trial 8'!CO20)","v":{"v":65.89343419318872,"d":"$66"}},{"$f":"STDEV('Trial 1'!CP20,'Trial 2'!CP20,'Trial 3'!CP20,'Trial 4'!CP20,'Trial 5'!CP20,'Trial 6'!CP20,'Trial 7'!CP20,'Trial 8'!CP20)","v":{"v":66.29875357404342,"d":"$66"}},{"$f":"STDEV('Trial 1'!CQ20,'Trial 2'!CQ20,'Trial 3'!CQ20,'Trial 4'!CQ20,'Trial 5'!CQ20,'Trial 6'!CQ20,'Trial 7'!CQ20,'Trial 8'!CQ20)","v":{"v":66.81691689834678,"d":"$67"}},{"$f":"STDEV('Trial 1'!CR20,'Trial 2'!CR20,'Trial 3'!CR20,'Trial 4'!CR20,'Trial 5'!CR20,'Trial 6'!CR20,'Trial 7'!CR20,'Trial 8'!CR20)","v":{"v":67.48762240927421,"d":"$67"}},{"$f":"STDEV('Trial 1'!CS20,'Trial 2'!CS20,'Trial 3'!CS20,'Trial 4'!CS20,'Trial 5'!CS20,'Trial 6'!CS20,'Trial 7'!CS20,'Trial 8'!CS20)","v":{"v":68.19658402941283,"d":"$68"}},{"$f":"STDEV('Trial 1'!CT20,'Trial 2'!CT20,'Trial 3'!CT20,'Trial 4'!CT20,'Trial 5'!CT20,'Trial 6'!CT20,'Trial 7'!CT20,'Trial 8'!CT20)","v":{"v":68.84848025908862,"d":"$69"}},{"$f":"STDEV('Trial 1'!CU20,'Trial 2'!CU20,'Trial 3'!CU20,'Trial 4'!CU20,'Trial 5'!CU20,'Trial 6'!CU20,'Trial 7'!CU20,'Trial 8'!CU20)","v":{"v":69.58002715440158,"d":"$70"}},{"$f":"STDEV('Trial 1'!CV20,'Trial 2'!CV20,'Trial 3'!CV20,'Trial 4'!CV20,'Trial 5'!CV20,'Trial 6'!CV20,'Trial 7'!CV20,'Trial 8'!CV20)","v":{"v":70.17720928771352,"d":"$70"}},{"$f":"STDEV('Trial 1'!CW20,'Trial 2'!CW20,'Trial 3'!CW20,'Trial 4'!CW20,'Trial 5'!CW20,'Trial 6'!CW20,'Trial 7'!CW20,'Trial 8'!CW20)","v":{"v":70.84560338371053,"d":"$71"}},{"$f":"STDEV('Trial 1'!CX20,'Trial 2'!CX20,'Trial 3'!CX20,'Trial 4'!CX20,'Trial 5'!CX20,'Trial 6'!CX20,'Trial 7'!CX20,'Trial 8'!CX20)","v":{"v":71.5007487108777,"d":"$72"}},{"$f":"STDEV('Trial 1'!CY20,'Trial 2'!CY20,'Trial 3'!CY20,'Trial 4'!CY20,'Trial 5'!CY20,'Trial 6'!CY20,'Trial 7'!CY20,'Trial 8'!CY20)","v":{"v":72.08719377899102,"d":"$72"}},{"$f":"STDEV('Trial 1'!CZ20,'Trial 2'!CZ20,'Trial 3'!CZ20,'Trial 4'!CZ20,'Trial 5'!CZ20,'Trial 6'!CZ20,'Trial 7'!CZ20,'Trial 8'!CZ20)","v":{"v":72.58181546352313,"d":"$73"}},{"$f":"SUM(CO30:CZ30)","v":{"v":830.314389142572,"d":"$830"}},{"$f":"STDEV('Trial 1'!DB20,'Trial 2'!DB20,'Trial 3'!DB20,'Trial 4'!DB20,'Trial 5'!DB20,'Trial 6'!DB20,'Trial 7'!DB20,'Trial 8'!DB20)","v":{"v":73.23163827532888,"d":"$73"}},{"$f":"STDEV('Trial 1'!DC20,'Trial 2'!DC20,'Trial 3'!DC20,'Trial 4'!DC20,'Trial 5'!DC20,'Trial 6'!DC20,'Trial 7'!DC20,'Trial 8'!DC20)","v":{"v":73.94316043636483,"d":"$74"}},{"$f":"STDEV('Trial 1'!DD20,'Trial 2'!DD20,'Trial 3'!DD20,'Trial 4'!DD20,'Trial 5'!DD20,'Trial 6'!DD20,'Trial 7'!DD20,'Trial 8'!DD20)","v":{"v":74.5126484743207,"d":"$75"}},{"$f":"STDEV('Trial 1'!DE20,'Trial 2'!DE20,'Trial 3'!DE20,'Trial 4'!DE20,'Trial 5'!DE20,'Trial 6'!DE20,'Trial 7'!DE20,'Trial 8'!DE20)","v":{"v":75.4284017030018,"d":"$75"}},{"$f":"STDEV('Trial 1'!DF20,'Trial 2'!DF20,'Trial 3'!DF20,'Trial 4'!DF20,'Trial 5'!DF20,'Trial 6'!DF20,'Trial 7'!DF20,'Trial 8'!DF20)","v":{"v":76.42651491879009,"d":"$76"}},{"$f":"STDEV('Trial 1'!DG20,'Trial 2'!DG20,'Trial 3'!DG20,'Trial 4'!DG20,'Trial 5'!DG20,'Trial 6'!DG20,'Trial 7'!DG20,'Trial 8'!DG20)","v":{"v":77.27514715717015,"d":"$77"}},{"$f":"STDEV('Trial 1'!DH20,'Trial 2'!DH20,'Trial 3'!DH20,'Trial 4'!DH20,'Trial 5'!DH20,'Trial 6'!DH20,'Trial 7'!DH20,'Trial 8'!DH20)","v":{"v":78.03399804531355,"d":"$78"}},{"$f":"STDEV('Trial 1'!DI20,'Trial 2'!DI20,'Trial 3'!DI20,'Trial 4'!DI20,'Trial 5'!DI20,'Trial 6'!DI20,'Trial 7'!DI20,'Trial 8'!DI20)","v":{"v":78.70158011076336,"d":"$79"}},{"$f":"STDEV('Trial 1'!DJ20,'Trial 2'!DJ20,'Trial 3'!DJ20,'Trial 4'!DJ20,'Trial 5'!DJ20,'Trial 6'!DJ20,'Trial 7'!DJ20,'Trial 8'!DJ20)","v":{"v":79.18166177720913,"d":"$79"}},{"$f":"STDEV('Trial 1'!DK20,'Trial 2'!DK20,'Trial 3'!DK20,'Trial 4'!DK20,'Trial 5'!DK20,'Trial 6'!DK20,'Trial 7'!DK20,'Trial 8'!DK20)","v":{"v":79.5686141946997,"d":"$80"}},{"$f":"STDEV('Trial 1'!DL20,'Trial 2'!DL20,'Trial 3'!DL20,'Trial 4'!DL20,'Trial 5'!DL20,'Trial 6'!DL20,'Trial 7'!DL20,'Trial 8'!DL20)","v":{"v":79.7380371129594,"d":"$80"}},{"$f":"STDEV('Trial 1'!DM20,'Trial 2'!DM20,'Trial 3'!DM20,'Trial 4'!DM20,'Trial 5'!DM20,'Trial 6'!DM20,'Trial 7'!DM20,'Trial 8'!DM20)","v":{"v":80.0081788208082,"d":"$80"}},{"$f":"SUM(DB30:DM30)","v":{"v":926.0495810267298,"d":"$926"}},{"$f":"STDEV('Trial 1'!DO20,'Trial 2'!DO20,'Trial 3'!DO20,'Trial 4'!DO20,'Trial 5'!DO20,'Trial 6'!DO20,'Trial 7'!DO20,'Trial 8'!DO20)","v":{"v":80.17282963604028,"d":"$80"}},{"$f":"STDEV('Trial 1'!DP20,'Trial 2'!DP20,'Trial 3'!DP20,'Trial 4'!DP20,'Trial 5'!DP20,'Trial 6'!DP20,'Trial 7'!DP20,'Trial 8'!DP20)","v":{"v":80.43825064247086,"d":"$80"}},{"$f":"STDEV('Trial 1'!DQ20,'Trial 2'!DQ20,'Trial 3'!DQ20,'Trial 4'!DQ20,'Trial 5'!DQ20,'Trial 6'!DQ20,'Trial 7'!DQ20,'Trial 8'!DQ20)","v":{"v":80.72054883136502,"d":"$81"}},{"$f":"STDEV('Trial 1'!DR20,'Trial 2'!DR20,'Trial 3'!DR20,'Trial 4'!DR20,'Trial 5'!DR20,'Trial 6'!DR20,'Trial 7'!DR20,'Trial 8'!DR20)","v":{"v":80.7668115852924,"d":"$81"}},{"$f":"STDEV('Trial 1'!DS20,'Trial 2'!DS20,'Trial 3'!DS20,'Trial 4'!DS20,'Trial 5'!DS20,'Trial 6'!DS20,'Trial 7'!DS20,'Trial 8'!DS20)","v":{"v":80.58187446759437,"d":"$81"}},{"$f":"STDEV('Trial 1'!DT20,'Trial 2'!DT20,'Trial 3'!DT20,'Trial 4'!DT20,'Trial 5'!DT20,'Trial 6'!DT20,'Trial 7'!DT20,'Trial 8'!DT20)","v":{"v":80.45623076428528,"d":"$80"}},{"$f":"STDEV('Trial 1'!DU20,'Trial 2'!DU20,'Trial 3'!DU20,'Trial 4'!DU20,'Trial 5'!DU20,'Trial 6'!DU20,'Trial 7'!DU20,'Trial 8'!DU20)","v":{"v":80.43810146277777,"d":"$80"}},{"$f":"STDEV('Trial 1'!DV20,'Trial 2'!DV20,'Trial 3'!DV20,'Trial 4'!DV20,'Trial 5'!DV20,'Trial 6'!DV20,'Trial 7'!DV20,'Trial 8'!DV20)","v":{"v":80.3540210753727,"d":"$80"}},{"$f":"STDEV('Trial 1'!DW20,'Trial 2'!DW20,'Trial 3'!DW20,'Trial 4'!DW20,'Trial 5'!DW20,'Trial 6'!DW20,'Trial 7'!DW20,'Trial 8'!DW20)","v":{"v":80.30039095387576,"d":"$80"}},{"$f":"STDEV('Trial 1'!DX20,'Trial 2'!DX20,'Trial 3'!DX20,'Trial 4'!DX20,'Trial 5'!DX20,'Trial 6'!DX20,'Trial 7'!DX20,'Trial 8'!DX20)","v":{"v":80.43500803857486,"d":"$80"}},{"$f":"STDEV('Trial 1'!DY20,'Trial 2'!DY20,'Trial 3'!DY20,'Trial 4'!DY20,'Trial 5'!DY20,'Trial 6'!DY20,'Trial 7'!DY20,'Trial 8'!DY20)","v":{"v":80.62582962211735,"d":"$81"}},{"$f":"STDEV('Trial 1'!DZ20,'Trial 2'!DZ20,'Trial 3'!DZ20,'Trial 4'!DZ20,'Trial 5'!DZ20,'Trial 6'!DZ20,'Trial 7'!DZ20,'Trial 8'!DZ20)","v":{"v":81.0170583921224,"d":"$81"}},{"$f":"SUM(DO30:DZ30)","v":{"v":966.3069554718891,"d":"$966"}},{"$f":"STDEV('Trial 1'!EB20,'Trial 2'!EB20,'Trial 3'!EB20,'Trial 4'!EB20,'Trial 5'!EB20,'Trial 6'!EB20,'Trial 7'!EB20,'Trial 8'!EB20)","v":{"v":81.19516451077519,"d":"$81"}},{"$f":"STDEV('Trial 1'!EC20,'Trial 2'!EC20,'Trial 3'!EC20,'Trial 4'!EC20,'Trial 5'!EC20,'Trial 6'!EC20,'Trial 7'!EC20,'Trial 8'!EC20)","v":{"v":81.37230102044074,"d":"$81"}},{"$f":"STDEV('Trial 1'!ED20,'Trial 2'!ED20,'Trial 3'!ED20,'Trial 4'!ED20,'Trial 5'!ED20,'Trial 6'!ED20,'Trial 7'!ED20,'Trial 8'!ED20)","v":{"v":81.57347552743296,"d":"$82"}},{"$f":"STDEV('Trial 1'!EE20,'Trial 2'!EE20,'Trial 3'!EE20,'Trial 4'!EE20,'Trial 5'!EE20,'Trial 6'!EE20,'Trial 7'!EE20,'Trial 8'!EE20)","v":{"v":81.67956939623355,"d":"$82"}},{"$f":"STDEV('Trial 1'!EF20,'Trial 2'!EF20,'Trial 3'!EF20,'Trial 4'!EF20,'Trial 5'!EF20,'Trial 6'!EF20,'Trial 7'!EF20,'Trial 8'!EF20)","v":{"v":81.73534816109121,"d":"$82"}},{"$f":"STDEV('Trial 1'!EG20,'Trial 2'!EG20,'Trial 3'!EG20,'Trial 4'!EG20,'Trial 5'!EG20,'Trial 6'!EG20,'Trial 7'!EG20,'Trial 8'!EG20)","v":{"v":81.94923948947081,"d":"$82"}},{"$f":"STDEV('Trial 1'!EH20,'Trial 2'!EH20,'Trial 3'!EH20,'Trial 4'!EH20,'Trial 5'!EH20,'Trial 6'!EH20,'Trial 7'!EH20,'Trial 8'!EH20)","v":{"v":82.09277114849641,"d":"$82"}},{"$f":"STDEV('Trial 1'!EI20,'Trial 2'!EI20,'Trial 3'!EI20,'Trial 4'!EI20,'Trial 5'!EI20,'Trial 6'!EI20,'Trial 7'!EI20,'Trial 8'!EI20)","v":{"v":82.03250435223771,"d":"$82"}},{"$f":"STDEV('Trial 1'!EJ20,'Trial 2'!EJ20,'Trial 3'!EJ20,'Trial 4'!EJ20,'Trial 5'!EJ20,'Trial 6'!EJ20,'Trial 7'!EJ20,'Trial 8'!EJ20)","v":{"v":82.05777751062732,"d":"$82"}},{"$f":"STDEV('Trial 1'!EK20,'Trial 2'!EK20,'Trial 3'!EK20,'Trial 4'!EK20,'Trial 5'!EK20,'Trial 6'!EK20,'Trial 7'!EK20,'Trial 8'!EK20)","v":{"v":82.17975924213104,"d":"$82"}},{"$f":"STDEV('Trial 1'!EL20,'Trial 2'!EL20,'Trial 3'!EL20,'Trial 4'!EL20,'Trial 5'!EL20,'Trial 6'!EL20,'Trial 7'!EL20,'Trial 8'!EL20)","v":{"v":82.46138578742527,"d":"$82"}},{"$f":"STDEV('Trial 1'!EM20,'Trial 2'!EM20,'Trial 3'!EM20,'Trial 4'!EM20,'Trial 5'!EM20,'Trial 6'!EM20,'Trial 7'!EM20,'Trial 8'!EM20)","v":{"v":82.9630512468253,"d":"$83"}},{"$f":"SUM(EB30:EM30)","v":{"v":983.2923473931876,"d":"$983"}}]
[]
[{"$f":"Labels!B15","v":"Desired Capital"},{"$f":"AVERAGE('Trial 1'!B22,'Trial 2'!B22,'Trial 3'!B22,'Trial 4'!B22,'Trial 5'!B22,'Trial 6'!B22,'Trial 7'!B22,'Trial 8'!B22)","v":{"v":34645298.421926446,"d":"$34,645,298"}},{"$f":"AVERAGE('Trial 1'!C22,'Trial 2'!C22,'Trial 3'!C22,'Trial 4'!C22,'Trial 5'!C22,'Trial 6'!C22,'Trial 7'!C22,'Trial 8'!C22)","v":{"v":34629489.27133805,"d":"$34,629,489"}},{"$f":"AVERAGE('Trial 1'!D22,'Trial 2'!D22,'Trial 3'!D22,'Trial 4'!D22,'Trial 5'!D22,'Trial 6'!D22,'Trial 7'!D22,'Trial 8'!D22)","v":{"v":34614705.30291459,"d":"$34,614,705"}},{"$f":"AVERAGE('Trial 1'!E22,'Trial 2'!E22,'Trial 3'!E22,'Trial 4'!E22,'Trial 5'!E22,'Trial 6'!E22,'Trial 7'!E22,'Trial 8'!E22)","v":{"v":34601248.58623164,"d":"$34,601,249"}},{"$f":"AVERAGE('Trial 1'!F22,'Trial 2'!F22,'Trial 3'!F22,'Trial 4'!F22,'Trial 5'!F22,'Trial 6'!F22,'Trial 7'!F22,'Trial 8'!F22)","v":{"v":34588334.06458742,"d":"$34,588,334"}},{"$f":"AVERAGE('Trial 1'!G22,'Trial 2'!G22,'Trial 3'!G22,'Trial 4'!G22,'Trial 5'!G22,'Trial 6'!G22,'Trial 7'!G22,'Trial 8'!G22)","v":{"v":34576120.5862379,"d":"$34,576,121"}},{"$f":"AVERAGE('Trial 1'!H22,'Trial 2'!H22,'Trial 3'!H22,'Trial 4'!H22,'Trial 5'!H22,'Trial 6'!H22,'Trial 7'!H22,'Trial 8'!H22)","v":{"v":34562981.59013129,"d":"$34,562,982"}},{"$f":"AVERAGE('Trial 1'!I22,'Trial 2'!I22,'Trial 3'!I22,'Trial 4'!I22,'Trial 5'!I22,'Trial 6'!I22,'Trial 7'!I22,'Trial 8'!I22)","v":{"v":34548589.72301954,"d":"$34,548,590"}},{"$f":"AVERAGE('Trial 1'!J22,'Trial 2'!J22,'Trial 3'!J22,'Trial 4'!J22,'Trial 5'!J22,'Trial 6'!J22,'Trial 7'!J22,'Trial 8'!J22)","v":{"v":34534794.637864575,"d":"$34,534,795"}},{"$f":"AVERAGE('Trial 1'!K22,'Trial 2'!K22,'Trial 3'!K22,'Trial 4'!K22,'Trial 5'!K22,'Trial 6'!K22,'Trial 7'!K22,'Trial 8'!K22)","v":{"v":34521102.85753506,"d":"$34,521,103"}},{"$f":"AVERAGE('Trial 1'!L22,'Trial 2'!L22,'Trial 3'!L22,'Trial 4'!L22,'Trial 5'!L22,'Trial 6'!L22,'Trial 7'!L22,'Trial 8'!L22)","v":{"v":34507420.09466622,"d":"$34,507,420"}},{"$f":"AVERAGE('Trial 1'!M22,'Trial 2'!M22,'Trial 3'!M22,'Trial 4'!M22,'Trial 5'!M22,'Trial 6'!M22,'Trial 7'!M22,'Trial 8'!M22)","v":{"v":34493595.95934205,"d":"$34,493,596"}},{"$f":"M32","v":{"v":34493595.95934205,"d":"$34,493,596"}},{"$f":"AVERAGE('Trial 1'!O22,'Trial 2'!O22,'Trial 3'!O22,'Trial 4'!O22,'Trial 5'!O22,'Trial 6'!O22,'Trial 7'!O22,'Trial 8'!O22)","v":{"v":34479357.8146696,"d":"$34,479,358"}},{"$f":"AVERAGE('Trial 1'!P22,'Trial 2'!P22,'Trial 3'!P22,'Trial 4'!P22,'Trial 5'!P22,'Trial 6'!P22,'Trial 7'!P22,'Trial 8'!P22)","v":{"v":34465914.55598135,"d":"$34,465,915"}},{"$f":"AVERAGE('Trial 1'!Q22,'Trial 2'!Q22,'Trial 3'!Q22,'Trial 4'!Q22,'Trial 5'!Q22,'Trial 6'!Q22,'Trial 7'!Q22,'Trial 8'!Q22)","v":{"v":34452244.75418506,"d":"$34,452,245"}},{"$f":"AVERAGE('Trial 1'!R22,'Trial 2'!R22,'Trial 3'!R22,'Trial 4'!R22,'Trial 5'!R22,'Trial 6'!R22,'Trial 7'!R22,'Trial 8'!R22)","v":{"v":34438884.561377555,"d":"$34,438,885"}},{"$f":"AVERAGE('Trial 1'!S22,'Trial 2'!S22,'Trial 3'!S22,'Trial 4'!S22,'Trial 5'!S22,'Trial 6'!S22,'Trial 7'!S22,'Trial 8'!S22)","v":{"v":34425841.1948289,"d":"$34,425,841"}},{"$f":"AVERAGE('Trial 1'!T22,'Trial 2'!T22,'Trial 3'!T22,'Trial 4'!T22,'Trial 5'!T22,'Trial 6'!T22,'Trial 7'!T22,'Trial 8'!T22)","v":{"v":34410131.719562344,"d":"$34,410,132"}},{"$f":"AVERAGE('Trial 1'!U22,'Trial 2'!U22,'Trial 3'!U22,'Trial 4'!U22,'Trial 5'!U22,'Trial 6'!U22,'Trial 7'!U22,'Trial 8'!U22)","v":{"v":34396695.43222986,"d":"$34,396,695"}},{"$f":"AVERAGE('Trial 1'!V22,'Trial 2'!V22,'Trial 3'!V22,'Trial 4'!V22,'Trial 5'!V22,'Trial 6'!V22,'Trial 7'!V22,'Trial 8'!V22)","v":{"v":34381667.1719097,"d":"$34,381,667"}},{"$f":"AVERAGE('Trial 1'!W22,'Trial 2'!W22,'Trial 3'!W22,'Trial 4'!W22,'Trial 5'!W22,'Trial 6'!W22,'Trial 7'!W22,'Trial 8'!W22)","v":{"v":34366832.459311135,"d":"$34,366,832"}},{"$f":"AVERAGE('Trial 1'!X22,'Trial 2'!X22,'Trial 3'!X22,'Trial 4'!X22,'Trial 5'!X22,'Trial 6'!X22,'Trial 7'!X22,'Trial 8'!X22)","v":{"v":34353875.92075785,"d":"$34,353,876"}},{"$f":"AVERAGE('Trial 1'!Y22,'Trial 2'!Y22,'Trial 3'!Y22,'Trial 4'!Y22,'Trial 5'!Y22,'Trial 6'!Y22,'Trial 7'!Y22,'Trial 8'!Y22)","v":{"v":34339420.39014731,"d":"$34,339,420"}},{"$f":"AVERAGE('Trial 1'!Z22,'Trial 2'!Z22,'Trial 3'!Z22,'Trial 4'!Z22,'Trial 5'!Z22,'Trial 6'!Z22,'Trial 7'!Z22,'Trial 8'!Z22)","v":{"v":34325101.32434691,"d":"$34,325,101"}},{"$f":"Z32","v":{"v":34325101.32434691,"d":"$34,325,101"}},{"$f":"AVERAGE('Trial 1'!AB22,'Trial 2'!AB22,'Trial 3'!AB22,'Trial 4'!AB22,'Trial 5'!AB22,'Trial 6'!AB22,'Trial 7'!AB22,'Trial 8'!AB22)","v":{"v":34309276.18256224,"d":"$34,309,276"}},{"$f":"AVERAGE('Trial 1'!AC22,'Trial 2'!AC22,'Trial 3'!AC22,'Trial 4'!AC22,'Trial 5'!AC22,'Trial 6'!AC22,'Trial 7'!AC22,'Trial 8'!AC22)","v":{"v":34295196.524643876,"d":"$34,295,197"}},{"$f":"AVERAGE('Trial 1'!AD22,'Trial 2'!AD22,'Trial 3'!AD22,'Trial 4'!AD22,'Trial 5'!AD22,'Trial 6'!AD22,'Trial 7'!AD22,'Trial 8'!AD22)","v":{"v":34281790.88391077,"d":"$34,281,791"}},{"$f":"AVERAGE('Trial 1'!AE22,'Trial 2'!AE22,'Trial 3'!AE22,'Trial 4'!AE22,'Trial 5'!AE22,'Trial 6'!AE22,'Trial 7'!AE22,'Trial 8'!AE22)","v":{"v":34267894.67355168,"d":"$34,267,895"}},{"$f":"AVERAGE('Trial 1'!AF22,'Trial 2'!AF22,'Trial 3'!AF22,'Trial 4'!AF22,'Trial 5'!AF22,'Trial 6'!AF22,'Trial 7'!AF22,'Trial 8'!AF22)","v":{"v":34253780.557512894,"d":"$34,253,781"}},{"$f":"AVERAGE('Trial 1'!AG22,'Trial 2'!AG22,'Trial 3'!AG22,'Trial 4'!AG22,'Trial 5'!AG22,'Trial 6'!AG22,'Trial 7'!AG22,'Trial 8'!AG22)","v":{"v":34238552.97548683,"d":"$34,238,553"}},{"$f":"AVERAGE('Trial 1'!AH22,'Trial 2'!AH22,'Trial 3'!AH22,'Trial 4'!AH22,'Trial 5'!AH22,'Trial 6'!AH22,'Trial 7'!AH22,'Trial 8'!AH22)","v":{"v":34224881.54851249,"d":"$34,224,882"}},{"$f":"AVERAGE('Trial 1'!AI22,'Trial 2'!AI22,'Trial 3'!AI22,'Trial 4'!AI22,'Trial 5'!AI22,'Trial 6'!AI22,'Trial 7'!AI22,'Trial 8'!AI22)","v":{"v":34211850.63715608,"d":"$34,211,851"}},{"$f":"AVERAGE('Trial 1'!AJ22,'Trial 2'!AJ22,'Trial 3'!AJ22,'Trial 4'!AJ22,'Trial 5'!AJ22,'Trial 6'!AJ22,'Trial 7'!AJ22,'Trial 8'!AJ22)","v":{"v":34196541.749458164,"d":"$34,196,542"}},{"$f":"AVERAGE('Trial 1'!AK22,'Trial 2'!AK22,'Trial 3'!AK22,'Trial 4'!AK22,'Trial 5'!AK22,'Trial 6'!AK22,'Trial 7'!AK22,'Trial 8'!AK22)","v":{"v":34182612.801734835,"d":"$34,182,613"}},{"$f":"AVERAGE('Trial 1'!AL22,'Trial 2'!AL22,'Trial 3'!AL22,'Trial 4'!AL22,'Trial 5'!AL22,'Trial 6'!AL22,'Trial 7'!AL22,'Trial 8'!AL22)","v":{"v":34168996.43032042,"d":"$34,168,996"}},{"$f":"AVERAGE('Trial 1'!AM22,'Trial 2'!AM22,'Trial 3'!AM22,'Trial 4'!AM22,'Trial 5'!AM22,'Trial 6'!AM22,'Trial 7'!AM22,'Trial 8'!AM22)","v":{"v":34155631.8525981,"d":"$34,155,632"}},{"$f":"AM32","v":{"v":34155631.8525981,"d":"$34,155,632"}},{"$f":"AVERAGE('Trial 1'!AO22,'Trial 2'!AO22,'Trial 3'!AO22,'Trial 4'!AO22,'Trial 5'!AO22,'Trial 6'!AO22,'Trial 7'!AO22,'Trial 8'!AO22)","v":{"v":34140821.1426387,"d":"$34,140,821"}},{"$f":"AVERAGE('Trial 1'!AP22,'Trial 2'!AP22,'Trial 3'!AP22,'Trial 4'!AP22,'Trial 5'!AP22,'Trial 6'!AP22,'Trial 7'!AP22,'Trial 8'!AP22)","v":{"v":34126790.25616384,"d":"$34,126,790"}},{"$f":"AVERAGE('Trial 1'!AQ22,'Trial 2'!AQ22,'Trial 3'!AQ22,'Trial 4'!AQ22,'Trial 5'!AQ22,'Trial 6'!AQ22,'Trial 7'!AQ22,'Trial 8'!AQ22)","v":{"v":34113634.095615335,"d":"$34,113,634"}},{"$f":"AVERAGE('Trial 1'!AR22,'Trial 2'!AR22,'Trial 3'!AR22,'Trial 4'!AR22,'Trial 5'!AR22,'Trial 6'!AR22,'Trial 7'!AR22,'Trial 8'!AR22)","v":{"v":34098878.14471702,"d":"$34,098,878"}},{"$f":"AVERAGE('Trial 1'!AS22,'Trial 2'!AS22,'Trial 3'!AS22,'Trial 4'!AS22,'Trial 5'!AS22,'Trial 6'!AS22,'Trial 7'!AS22,'Trial 8'!AS22)","v":{"v":34084676.903297335,"d":"$34,084,677"}},{"$f":"AVERAGE('Trial 1'!AT22,'Trial 2'!AT22,'Trial 3'!AT22,'Trial 4'!AT22,'Trial 5'!AT22,'Trial 6'!AT22,'Trial 7'!AT22,'Trial 8'!AT22)","v":{"v":34071390.80083377,"d":"$34,071,391"}},{"$f":"AVERAGE('Trial 1'!AU22,'Trial 2'!AU22,'Trial 3'!AU22,'Trial 4'!AU22,'Trial 5'!AU22,'Trial 6'!AU22,'Trial 7'!AU22,'Trial 8'!AU22)","v":{"v":34057205.16968247,"d":"$34,057,205"}},{"$f":"AVERAGE('Trial 1'!AV22,'Trial 2'!AV22,'Trial 3'!AV22,'Trial 4'!AV22,'Trial 5'!AV22,'Trial 6'!AV22,'Trial 7'!AV22,'Trial 8'!AV22)","v":{"v":34042762.39610692,"d":"$34,042,762"}},{"$f":"AVERAGE('Trial 1'!AW22,'Trial 2'!AW22,'Trial 3'!AW22,'Trial 4'!AW22,'Trial 5'!AW22,'Trial 6'!AW22,'Trial 7'!AW22,'Trial 8'!AW22)","v":{"v":34028750.23698013,"d":"$34,028,750"}},{"$f":"AVERAGE('Trial 1'!AX22,'Trial 2'!AX22,'Trial 3'!AX22,'Trial 4'!AX22,'Trial 5'!AX22,'Trial 6'!AX22,'Trial 7'!AX22,'Trial 8'!AX22)","v":{"v":34013745.27726464,"d":"$34,013,745"}},{"$f":"AVERAGE('Trial 1'!AY22,'Trial 2'!AY22,'Trial 3'!AY22,'Trial 4'!AY22,'Trial 5'!AY22,'Trial 6'!AY22,'Trial 7'!AY22,'Trial 8'!AY22)","v":{"v":33999328.414081976,"d":"$33,999,328"}},{"$f":"AVERAGE('Trial 1'!AZ22,'Trial 2'!AZ22,'Trial 3'!AZ22,'Trial 4'!AZ22,'Trial 5'!AZ22,'Trial 6'!AZ22,'Trial 7'!AZ22,'Trial 8'!AZ22)","v":{"v":33985338.23791772,"d":"$33,985,338"}},{"$f":"AZ32","v":{"v":33985338.23791772,"d":"$33,985,338"}},{"$f":"AVERAGE('Trial 1'!BB22,'Trial 2'!BB22,'Trial 3'!BB22,'Trial 4'!BB22,'Trial 5'!BB22,'Trial 6'!BB22,'Trial 7'!BB22,'Trial 8'!BB22)","v":{"v":33970087.471798405,"d":"$33,970,087"}},{"$f":"AVERAGE('Trial 1'!BC22,'Trial 2'!BC22,'Trial 3'!BC22,'Trial 4'!BC22,'Trial 5'!BC22,'Trial 6'!BC22,'Trial 7'!BC22,'Trial 8'!BC22)","v":{"v":33954996.27783896,"d":"$33,954,996"}},{"$f":"AVERAGE('Trial 1'!BD22,'Trial 2'!BD22,'Trial 3'!BD22,'Trial 4'!BD22,'Trial 5'!BD22,'Trial 6'!BD22,'Trial 7'!BD22,'Trial 8'!BD22)","v":{"v":33940585.22574428,"d":"$33,940,585"}},{"$f":"AVERAGE('Trial 1'!BE22,'Trial 2'!BE22,'Trial 3'!BE22,'Trial 4'!BE22,'Trial 5'!BE22,'Trial 6'!BE22,'Trial 7'!BE22,'Trial 8'!BE22)","v":{"v":33926468.38035596,"d":"$33,926,468"}},{"$f":"AVERAGE('Trial 1'!BF22,'Trial 2'!BF22,'Trial 3'!BF22,'Trial 4'!BF22,'Trial 5'!BF22,'Trial 6'!BF22,'Trial 7'!BF22,'Trial 8'!BF22)","v":{"v":33912077.99746775,"d":"$33,912,078"}},{"$f":"AVERAGE('Trial 1'!BG22,'Trial 2'!BG22,'Trial 3'!BG22,'Trial 4'!BG22,'Trial 5'!BG22,'Trial 6'!BG22,'Trial 7'!BG22,'Trial 8'!BG22)","v":{"v":33898278.844895534,"d":"$33,898,279"}},{"$f":"AVERAGE('Trial 1'!BH22,'Trial 2'!BH22,'Trial 3'!BH22,'Trial 4'!BH22,'Trial 5'!BH22,'Trial 6'!BH22,'Trial 7'!BH22,'Trial 8'!BH22)","v":{"v":33884480.20516084,"d":"$33,884,480"}},{"$f":"AVERAGE('Trial 1'!BI22,'Trial 2'!BI22,'Trial 3'!BI22,'Trial 4'!BI22,'Trial 5'!BI22,'Trial 6'!BI22,'Trial 7'!BI22,'Trial 8'!BI22)","v":{"v":33869310.117958546,"d":"$33,869,310"}},{"$f":"AVERAGE('Trial 1'!BJ22,'Trial 2'!BJ22,'Trial 3'!BJ22,'Trial 4'!BJ22,'Trial 5'!BJ22,'Trial 6'!BJ22,'Trial 7'!BJ22,'Trial 8'!BJ22)","v":{"v":33854707.01994761,"d":"$33,854,707"}},{"$f":"AVERAGE('Trial 1'!BK22,'Trial 2'!BK22,'Trial 3'!BK22,'Trial 4'!BK22,'Trial 5'!BK22,'Trial 6'!BK22,'Trial 7'!BK22,'Trial 8'!BK22)","v":{"v":33841057.144964494,"d":"$33,841,057"}},{"$f":"AVERAGE('Trial 1'!BL22,'Trial 2'!BL22,'Trial 3'!BL22,'Trial 4'!BL22,'Trial 5'!BL22,'Trial 6'!BL22,'Trial 7'!BL22,'Trial 8'!BL22)","v":{"v":33826642.19289279,"d":"$33,826,642"}},{"$f":"AVERAGE('Trial 1'!BM22,'Trial 2'!BM22,'Trial 3'!BM22,'Trial 4'!BM22,'Trial 5'!BM22,'Trial 6'!BM22,'Trial 7'!BM22,'Trial 8'!BM22)","v":{"v":33813018.049254075,"d":"$33,813,018"}},{"$f":"BM32","v":{"v":33813018.049254075,"d":"$33,813,018"}},{"$f":"AVERAGE('Trial 1'!BO22,'Trial 2'!BO22,'Trial 3'!BO22,'Trial 4'!BO22,'Trial 5'!BO22,'Trial 6'!BO22,'Trial 7'!BO22,'Trial 8'!BO22)","v":{"v":33798734.44203289,"d":"$33,798,734"}},{"$f":"AVERAGE('Trial 1'!BP22,'Trial 2'!BP22,'Trial 3'!BP22,'Trial 4'!BP22,'Trial 5'!BP22,'Trial 6'!BP22,'Trial 7'!BP22,'Trial 8'!BP22)","v":{"v":33784378.780902386,"d":"$33,784,379"}},{"$f":"AVERAGE('Trial 1'!BQ22,'Trial 2'!BQ22,'Trial 3'!BQ22,'Trial 4'!BQ22,'Trial 5'!BQ22,'Trial 6'!BQ22,'Trial 7'!BQ22,'Trial 8'!BQ22)","v":{"v":33770462.83354987,"d":"$33,770,463"}},{"$f":"AVERAGE('Trial 1'!BR22,'Trial 2'!BR22,'Trial 3'!BR22,'Trial 4'!BR22,'Trial 5'!BR22,'Trial 6'!BR22,'Trial 7'!BR22,'Trial 8'!BR22)","v":{"v":33757275.54084278,"d":"$33,757,276"}},{"$f":"AVERAGE('Trial 1'!BS22,'Trial 2'!BS22,'Trial 3'!BS22,'Trial 4'!BS22,'Trial 5'!BS22,'Trial 6'!BS22,'Trial 7'!BS22,'Trial 8'!BS22)","v":{"v":33743855.72519996,"d":"$33,743,856"}},{"$f":"AVERAGE('Trial 1'!BT22,'Trial 2'!BT22,'Trial 3'!BT22,'Trial 4'!BT22,'Trial 5'!BT22,'Trial 6'!BT22,'Trial 7'!BT22,'Trial 8'!BT22)","v":{"v":33729276.338539876,"d":"$33,729,276"}},{"$f":"AVERAGE('Trial 1'!BU22,'Trial 2'!BU22,'Trial 3'!BU22,'Trial 4'!BU22,'Trial 5'!BU22,'Trial 6'!BU22,'Trial 7'!BU22,'Trial 8'!BU22)","v":{"v":33716456.463398844,"d":"$33,716,456"}},{"$f":"AVERAGE('Trial 1'!BV22,'Trial 2'!BV22,'Trial 3'!BV22,'Trial 4'!BV22,'Trial 5'!BV22,'Trial 6'!BV22,'Trial 7'!BV22,'Trial 8'!BV22)","v":{"v":33701777.87575865,"d":"$33,701,778"}},{"$f":"AVERAGE('Trial 1'!BW22,'Trial 2'!BW22,'Trial 3'!BW22,'Trial 4'!BW22,'Trial 5'!BW22,'Trial 6'!BW22,'Trial 7'!BW22,'Trial 8'!BW22)","v":{"v":33687548.573416464,"d":"$33,687,549"}},{"$f":"AVERAGE('Trial 1'!BX22,'Trial 2'!BX22,'Trial 3'!BX22,'Trial 4'!BX22,'Trial 5'!BX22,'Trial 6'!BX22,'Trial 7'!BX22,'Trial 8'!BX22)","v":{"v":33674471.27518393,"d":"$33,674,471"}},{"$f":"AVERAGE('Trial 1'!BY22,'Trial 2'!BY22,'Trial 3'!BY22,'Trial 4'!BY22,'Trial 5'!BY22,'Trial 6'!BY22,'Trial 7'!BY22,'Trial 8'!BY22)","v":{"v":33659734.5969553,"d":"$33,659,735"}},{"$f":"AVERAGE('Trial 1'!BZ22,'Trial 2'!BZ22,'Trial 3'!BZ22,'Trial 4'!BZ22,'Trial 5'!BZ22,'Trial 6'!BZ22,'Trial 7'!BZ22,'Trial 8'!BZ22)","v":{"v":33646484.562019125,"d":"$33,646,485"}},{"$f":"BZ32","v":{"v":33646484.562019125,"d":"$33,646,485"}},{"$f":"AVERAGE('Trial 1'!CB22,'Trial 2'!CB22,'Trial 3'!CB22,'Trial 4'!CB22,'Trial 5'!CB22,'Trial 6'!CB22,'Trial 7'!CB22,'Trial 8'!CB22)","v":{"v":33632497.51177533,"d":"$33,632,498"}},{"$f":"AVERAGE('Trial 1'!CC22,'Trial 2'!CC22,'Trial 3'!CC22,'Trial 4'!CC22,'Trial 5'!CC22,'Trial 6'!CC22,'Trial 7'!CC22,'Trial 8'!CC22)","v":{"v":33618291.594022244,"d":"$33,618,292"}},{"$f":"AVERAGE('Trial 1'!CD22,'Trial 2'!CD22,'Trial 3'!CD22,'Trial 4'!CD22,'Trial 5'!CD22,'Trial 6'!CD22,'Trial 7'!CD22,'Trial 8'!CD22)","v":{"v":33603936.517228015,"d":"$33,603,937"}},{"$f":"AVERAGE('Trial 1'!CE22,'Trial 2'!CE22,'Trial 3'!CE22,'Trial 4'!CE22,'Trial 5'!CE22,'Trial 6'!CE22,'Trial 7'!CE22,'Trial 8'!CE22)","v":{"v":33590383.73120292,"d":"$33,590,384"}},{"$f":"AVERAGE('Trial 1'!CF22,'Trial 2'!CF22,'Trial 3'!CF22,'Trial 4'!CF22,'Trial 5'!CF22,'Trial 6'!CF22,'Trial 7'!CF22,'Trial 8'!CF22)","v":{"v":33575616.053900965,"d":"$33,575,616"}},{"$f":"AVERAGE('Trial 1'!CG22,'Trial 2'!CG22,'Trial 3'!CG22,'Trial 4'!CG22,'Trial 5'!CG22,'Trial 6'!CG22,'Trial 7'!CG22,'Trial 8'!CG22)","v":{"v":33561477.82963378,"d":"$33,561,478"}},{"$f":"AVERAGE('Trial 1'!CH22,'Trial 2'!CH22,'Trial 3'!CH22,'Trial 4'!CH22,'Trial 5'!CH22,'Trial 6'!CH22,'Trial 7'!CH22,'Trial 8'!CH22)","v":{"v":33549355.800196454,"d":"$33,549,356"}},{"$f":"AVERAGE('Trial 1'!CI22,'Trial 2'!CI22,'Trial 3'!CI22,'Trial 4'!CI22,'Trial 5'!CI22,'Trial 6'!CI22,'Trial 7'!CI22,'Trial 8'!CI22)","v":{"v":33535600.00631148,"d":"$33,535,600"}},{"$f":"AVERAGE('Trial 1'!CJ22,'Trial 2'!CJ22,'Trial 3'!CJ22,'Trial 4'!CJ22,'Trial 5'!CJ22,'Trial 6'!CJ22,'Trial 7'!CJ22,'Trial 8'!CJ22)","v":{"v":33522243.867909905,"d":"$33,522,244"}},{"$f":"AVERAGE('Trial 1'!CK22,'Trial 2'!CK22,'Trial 3'!CK22,'Trial 4'!CK22,'Trial 5'!CK22,'Trial 6'!CK22,'Trial 7'!CK22,'Trial 8'!CK22)","v":{"v":33508604.85566771,"d":"$33,508,605"}},{"$f":"AVERAGE('Trial 1'!CL22,'Trial 2'!CL22,'Trial 3'!CL22,'Trial 4'!CL22,'Trial 5'!CL22,'Trial 6'!CL22,'Trial 7'!CL22,'Trial 8'!CL22)","v":{"v":33495906.185573462,"d":"$33,495,906"}},{"$f":"AVERAGE('Trial 1'!CM22,'Trial 2'!CM22,'Trial 3'!CM22,'Trial 4'!CM22,'Trial 5'!CM22,'Trial 6'!CM22,'Trial 7'!CM22,'Trial 8'!CM22)","v":{"v":33481767.766588952,"d":"$33,481,768"}},{"$f":"CM32","v":{"v":33481767.766588952,"d":"$33,481,768"}},{"$f":"AVERAGE('Trial 1'!CO22,'Trial 2'!CO22,'Trial 3'!CO22,'Trial 4'!CO22,'Trial 5'!CO22,'Trial 6'!CO22,'Trial 7'!CO22,'Trial 8'!CO22)","v":{"v":33468913.918676093,"d":"$33,468,914"}},{"$f":"AVERAGE('Trial 1'!CP22,'Trial 2'!CP22,'Trial 3'!CP22,'Trial 4'!CP22,'Trial 5'!CP22,'Trial 6'!CP22,'Trial 7'!CP22,'Trial 8'!CP22)","v":{"v":33455474.45241795,"d":"$33,455,474"}},{"$f":"AVERAGE('Trial 1'!CQ22,'Trial 2'!CQ22,'Trial 3'!CQ22,'Trial 4'!CQ22,'Trial 5'!CQ22,'Trial 6'!CQ22,'Trial 7'!CQ22,'Trial 8'!CQ22)","v":{"v":33442089.2576832,"d":"$33,442,089"}},{"$f":"AVERAGE('Trial 1'!CR22,'Trial 2'!CR22,'Trial 3'!CR22,'Trial 4'!CR22,'Trial 5'!CR22,'Trial 6'!CR22,'Trial 7'!CR22,'Trial 8'!CR22)","v":{"v":33428602.528037332,"d":"$33,428,603"}},{"$f":"AVERAGE('Trial 1'!CS22,'Trial 2'!CS22,'Trial 3'!CS22,'Trial 4'!CS22,'Trial 5'!CS22,'Trial 6'!CS22,'Trial 7'!CS22,'Trial 8'!CS22)","v":{"v":33414722.56299579,"d":"$33,414,723"}},{"$f":"AVERAGE('Trial 1'!CT22,'Trial 2'!CT22,'Trial 3'!CT22,'Trial 4'!CT22,'Trial 5'!CT22,'Trial 6'!CT22,'Trial 7'!CT22,'Trial 8'!CT22)","v":{"v":33399318.047642566,"d":"$33,399,318"}},{"$f":"AVERAGE('Trial 1'!CU22,'Trial 2'!CU22,'Trial 3'!CU22,'Trial 4'!CU22,'Trial 5'!CU22,'Trial 6'!CU22,'Trial 7'!CU22,'Trial 8'!CU22)","v":{"v":33384630.205921486,"d":"$33,384,630"}},{"$f":"AVERAGE('Trial 1'!CV22,'Trial 2'!CV22,'Trial 3'!CV22,'Trial 4'!CV22,'Trial 5'!CV22,'Trial 6'!CV22,'Trial 7'!CV22,'Trial 8'!CV22)","v":{"v":33372299.963306695,"d":"$33,372,300"}},{"$f":"AVERAGE('Trial 1'!CW22,'Trial 2'!CW22,'Trial 3'!CW22,'Trial 4'!CW22,'Trial 5'!CW22,'Trial 6'!CW22,'Trial 7'!CW22,'Trial 8'!CW22)","v":{"v":33358089.15206444,"d":"$33,358,089"}},{"$f":"AVERAGE('Trial 1'!CX22,'Trial 2'!CX22,'Trial 3'!CX22,'Trial 4'!CX22,'Trial 5'!CX22,'Trial 6'!CX22,'Trial 7'!CX22,'Trial 8'!CX22)","v":{"v":33344017.943998016,"d":"$33,344,018"}},{"$f":"AVERAGE('Trial 1'!CY22,'Trial 2'!CY22,'Trial 3'!CY22,'Trial 4'!CY22,'Trial 5'!CY22,'Trial 6'!CY22,'Trial 7'!CY22,'Trial 8'!CY22)","v":{"v":33329657.360494535,"d":"$33,329,657"}},{"$f":"AVERAGE('Trial 1'!CZ22,'Trial 2'!CZ22,'Trial 3'!CZ22,'Trial 4'!CZ22,'Trial 5'!CZ22,'Trial 6'!CZ22,'Trial 7'!CZ22,'Trial 8'!CZ22)","v":{"v":33316218.31617259,"d":"$33,316,218"}},{"$f":"CZ32","v":{"v":33316218.31617259,"d":"$33,316,218"}},{"$f":"AVERAGE('Trial 1'!DB22,'Trial 2'!DB22,'Trial 3'!DB22,'Trial 4'!DB22,'Trial 5'!DB22,'Trial 6'!DB22,'Trial 7'!DB22,'Trial 8'!DB22)","v":{"v":33301979.392384574,"d":"$33,301,979"}},{"$f":"AVERAGE('Trial 1'!DC22,'Trial 2'!DC22,'Trial 3'!DC22,'Trial 4'!DC22,'Trial 5'!DC22,'Trial 6'!DC22,'Trial 7'!DC22,'Trial 8'!DC22)","v":{"v":33288700.104408477,"d":"$33,288,700"}},{"$f":"AVERAGE('Trial 1'!DD22,'Trial 2'!DD22,'Trial 3'!DD22,'Trial 4'!DD22,'Trial 5'!DD22,'Trial 6'!DD22,'Trial 7'!DD22,'Trial 8'!DD22)","v":{"v":33273938.51101785,"d":"$33,273,939"}},{"$f":"AVERAGE('Trial 1'!DE22,'Trial 2'!DE22,'Trial 3'!DE22,'Trial 4'!DE22,'Trial 5'!DE22,'Trial 6'!DE22,'Trial 7'!DE22,'Trial 8'!DE22)","v":{"v":33259668.479060553,"d":"$33,259,668"}},{"$f":"AVERAGE('Trial 1'!DF22,'Trial 2'!DF22,'Trial 3'!DF22,'Trial 4'!DF22,'Trial 5'!DF22,'Trial 6'!DF22,'Trial 7'!DF22,'Trial 8'!DF22)","v":{"v":33246220.643324632,"d":"$33,246,221"}},{"$f":"AVERAGE('Trial 1'!DG22,'Trial 2'!DG22,'Trial 3'!DG22,'Trial 4'!DG22,'Trial 5'!DG22,'Trial 6'!DG22,'Trial 7'!DG22,'Trial 8'!DG22)","v":{"v":33232272.585768152,"d":"$33,232,273"}},{"$f":"AVERAGE('Trial 1'!DH22,'Trial 2'!DH22,'Trial 3'!DH22,'Trial 4'!DH22,'Trial 5'!DH22,'Trial 6'!DH22,'Trial 7'!DH22,'Trial 8'!DH22)","v":{"v":33218105.969401814,"d":"$33,218,106"}},{"$f":"AVERAGE('Trial 1'!DI22,'Trial 2'!DI22,'Trial 3'!DI22,'Trial 4'!DI22,'Trial 5'!DI22,'Trial 6'!DI22,'Trial 7'!DI22,'Trial 8'!DI22)","v":{"v":33203792.596758068,"d":"$33,203,793"}},{"$f":"AVERAGE('Trial 1'!DJ22,'Trial 2'!DJ22,'Trial 3'!DJ22,'Trial 4'!DJ22,'Trial 5'!DJ22,'Trial 6'!DJ22,'Trial 7'!DJ22,'Trial 8'!DJ22)","v":{"v":33189258.859009963,"d":"$33,189,259"}},{"$f":"AVERAGE('Trial 1'!DK22,'Trial 2'!DK22,'Trial 3'!DK22,'Trial 4'!DK22,'Trial 5'!DK22,'Trial 6'!DK22,'Trial 7'!DK22,'Trial 8'!DK22)","v":{"v":33175325.822966106,"d":"$33,175,326"}},{"$f":"AVERAGE('Trial 1'!DL22,'Trial 2'!DL22,'Trial 3'!DL22,'Trial 4'!DL22,'Trial 5'!DL22,'Trial 6'!DL22,'Trial 7'!DL22,'Trial 8'!DL22)","v":{"v":33161235.218408495,"d":"$33,161,235"}},{"$f":"AVERAGE('Trial 1'!DM22,'Trial 2'!DM22,'Trial 3'!DM22,'Trial 4'!DM22,'Trial 5'!DM22,'Trial 6'!DM22,'Trial 7'!DM22,'Trial 8'!DM22)","v":{"v":33146645.628580075,"d":"$33,146,646"}},{"$f":"DM32","v":{"v":33146645.628580075,"d":"$33,146,646"}},{"$f":"AVERAGE('Trial 1'!DO22,'Trial 2'!DO22,'Trial 3'!DO22,'Trial 4'!DO22,'Trial 5'!DO22,'Trial 6'!DO22,'Trial 7'!DO22,'Trial 8'!DO22)","v":{"v":33132270.507987745,"d":"$33,132,271"}},{"$f":"AVERAGE('Trial 1'!DP22,'Trial 2'!DP22,'Trial 3'!DP22,'Trial 4'!DP22,'Trial 5'!DP22,'Trial 6'!DP22,'Trial 7'!DP22,'Trial 8'!DP22)","v":{"v":33119024.77567495,"d":"$33,119,025"}},{"$f":"AVERAGE('Trial 1'!DQ22,'Trial 2'!DQ22,'Trial 3'!DQ22,'Trial 4'!DQ22,'Trial 5'!DQ22,'Trial 6'!DQ22,'Trial 7'!DQ22,'Trial 8'!DQ22)","v":{"v":33104686.9320869,"d":"$33,104,687"}},{"$f":"AVERAGE('Trial 1'!DR22,'Trial 2'!DR22,'Trial 3'!DR22,'Trial 4'!DR22,'Trial 5'!DR22,'Trial 6'!DR22,'Trial 7'!DR22,'Trial 8'!DR22)","v":{"v":33091788.596509337,"d":"$33,091,789"}},{"$f":"AVERAGE('Trial 1'!DS22,'Trial 2'!DS22,'Trial 3'!DS22,'Trial 4'!DS22,'Trial 5'!DS22,'Trial 6'!DS22,'Trial 7'!DS22,'Trial 8'!DS22)","v":{"v":33078041.690803528,"d":"$33,078,042"}},{"$f":"AVERAGE('Trial 1'!DT22,'Trial 2'!DT22,'Trial 3'!DT22,'Trial 4'!DT22,'Trial 5'!DT22,'Trial 6'!DT22,'Trial 7'!DT22,'Trial 8'!DT22)","v":{"v":33064183.69657771,"d":"$33,064,184"}},{"$f":"AVERAGE('Trial 1'!DU22,'Trial 2'!DU22,'Trial 3'!DU22,'Trial 4'!DU22,'Trial 5'!DU22,'Trial 6'!DU22,'Trial 7'!DU22,'Trial 8'!DU22)","v":{"v":33051222.781631973,"d":"$33,051,223"}},{"$f":"AVERAGE('Trial 1'!DV22,'Trial 2'!DV22,'Trial 3'!DV22,'Trial 4'!DV22,'Trial 5'!DV22,'Trial 6'!DV22,'Trial 7'!DV22,'Trial 8'!DV22)","v":{"v":33037677.05093895,"d":"$33,037,677"}},{"$f":"AVERAGE('Trial 1'!DW22,'Trial 2'!DW22,'Trial 3'!DW22,'Trial 4'!DW22,'Trial 5'!DW22,'Trial 6'!DW22,'Trial 7'!DW22,'Trial 8'!DW22)","v":{"v":33024396.321084384,"d":"$33,024,396"}},{"$f":"AVERAGE('Trial 1'!DX22,'Trial 2'!DX22,'Trial 3'!DX22,'Trial 4'!DX22,'Trial 5'!DX22,'Trial 6'!DX22,'Trial 7'!DX22,'Trial 8'!DX22)","v":{"v":33010734.18908261,"d":"$33,010,734"}},{"$f":"AVERAGE('Trial 1'!DY22,'Trial 2'!DY22,'Trial 3'!DY22,'Trial 4'!DY22,'Trial 5'!DY22,'Trial 6'!DY22,'Trial 7'!DY22,'Trial 8'!DY22)","v":{"v":32996931.753135573,"d":"$32,996,932"}},{"$f":"AVERAGE('Trial 1'!DZ22,'Trial 2'!DZ22,'Trial 3'!DZ22,'Trial 4'!DZ22,'Trial 5'!DZ22,'Trial 6'!DZ22,'Trial 7'!DZ22,'Trial 8'!DZ22)","v":{"v":32983212.98240813,"d":"$32,983,213"}},{"$f":"DZ32","v":{"v":32983212.98240813,"d":"$32,983,213"}},{"$f":"AVERAGE('Trial 1'!EB22,'Trial 2'!EB22,'Trial 3'!EB22,'Trial 4'!EB22,'Trial 5'!EB22,'Trial 6'!EB22,'Trial 7'!EB22,'Trial 8'!EB22)","v":{"v":32968325.63139443,"d":"$32,968,326"}},{"$f":"AVERAGE('Trial 1'!EC22,'Trial 2'!EC22,'Trial 3'!EC22,'Trial 4'!EC22,'Trial 5'!EC22,'Trial 6'!EC22,'Trial 7'!EC22,'Trial 8'!EC22)","v":{"v":32954925.12374404,"d":"$32,954,925"}},{"$f":"AVERAGE('Trial 1'!ED22,'Trial 2'!ED22,'Trial 3'!ED22,'Trial 4'!ED22,'Trial 5'!ED22,'Trial 6'!ED22,'Trial 7'!ED22,'Trial 8'!ED22)","v":{"v":32940163.306281675,"d":"$32,940,163"}},{"$f":"AVERAGE('Trial 1'!EE22,'Trial 2'!EE22,'Trial 3'!EE22,'Trial 4'!EE22,'Trial 5'!EE22,'Trial 6'!EE22,'Trial 7'!EE22,'Trial 8'!EE22)","v":{"v":32925820.755439673,"d":"$32,925,821"}},{"$f":"AVERAGE('Trial 1'!EF22,'Trial 2'!EF22,'Trial 3'!EF22,'Trial 4'!EF22,'Trial 5'!EF22,'Trial 6'!EF22,'Trial 7'!EF22,'Trial 8'!EF22)","v":{"v":32912113.186657123,"d":"$32,912,113"}},{"$f":"AVERAGE('Trial 1'!EG22,'Trial 2'!EG22,'Trial 3'!EG22,'Trial 4'!EG22,'Trial 5'!EG22,'Trial 6'!EG22,'Trial 7'!EG22,'Trial 8'!EG22)","v":{"v":32898531.704616718,"d":"$32,898,532"}},{"$f":"AVERAGE('Trial 1'!EH22,'Trial 2'!EH22,'Trial 3'!EH22,'Trial 4'!EH22,'Trial 5'!EH22,'Trial 6'!EH22,'Trial 7'!EH22,'Trial 8'!EH22)","v":{"v":32884010.916804515,"d":"$32,884,011"}},{"$f":"AVERAGE('Trial 1'!EI22,'Trial 2'!EI22,'Trial 3'!EI22,'Trial 4'!EI22,'Trial 5'!EI22,'Trial 6'!EI22,'Trial 7'!EI22,'Trial 8'!EI22)","v":{"v":32869782.552965228,"d":"$32,869,783"}},{"$f":"AVERAGE('Trial 1'!EJ22,'Trial 2'!EJ22,'Trial 3'!EJ22,'Trial 4'!EJ22,'Trial 5'!EJ22,'Trial 6'!EJ22,'Trial 7'!EJ22,'Trial 8'!EJ22)","v":{"v":32854282.51382942,"d":"$32,854,283"}},{"$f":"AVERAGE('Trial 1'!EK22,'Trial 2'!EK22,'Trial 3'!EK22,'Trial 4'!EK22,'Trial 5'!EK22,'Trial 6'!EK22,'Trial 7'!EK22,'Trial 8'!EK22)","v":{"v":32840081.348777797,"d":"$32,840,081"}},{"$f":"AVERAGE('Trial 1'!EL22,'Trial 2'!EL22,'Trial 3'!EL22,'Trial 4'!EL22,'Trial 5'!EL22,'Trial 6'!EL22,'Trial 7'!EL22,'Trial 8'!EL22)","v":{"v":32826642.63934762,"d":"$32,826,643"}},{"$f":"AVERAGE('Trial 1'!EM22,'Trial 2'!EM22,'Trial 3'!EM22,'Trial 4'!EM22,'Trial 5'!EM22,'Trial 6'!EM22,'Trial 7'!EM22,'Trial 8'!EM22)","v":{"v":32812280.257161573,"d":"$32,812,280"}},{"$f":"EM32","v":{"v":32812280.257161573,"d":"$32,812,280"}}]
[{"$f":"Labels!B16","v":"Desired Capital std dev"},{"$f":"STDEV('Trial 1'!B22,'Trial 2'!B22,'Trial 3'!B22,'Trial 4'!B22,'Trial 5'!B22,'Trial 6'!B22,'Trial 7'!B22,'Trial 8'!B22)","v":{"v":7.9650056932098984E-9,"d":"$0"}},{"$f":"STDEV('Trial 1'!C22,'Trial 2'!C22,'Trial 3'!C22,'Trial 4'!C22,'Trial 5'!C22,'Trial 6'!C22,'Trial 7'!C22,'Trial 8'!C22)","v":{"v":1404.3051175733958,"d":"$1,404"}},{"$f":"STDEV('Trial 1'!D22,'Trial 2'!D22,'Trial 3'!D22,'Trial 4'!D22,'Trial 5'!D22,'Trial 6'!D22,'Trial 7'!D22,'Trial 8'!D22)","v":{"v":1981.9149608844639,"d":"$1,982"}},{"$f":"STDEV('Trial 1'!E22,'Trial 2'!E22,'Trial 3'!E22,'Trial 4'!E22,'Trial 5'!E22,'Trial 6'!E22,'Trial 7'!E22,'Trial 8'!E22)","v":{"v":2611.7781581581758,"d":"$2,612"}},{"$f":"STDEV('Trial 1'!F22,'Trial 2'!F22,'Trial 3'!F22,'Trial 4'!F22,'Trial 5'!F22,'Trial 6'!F22,'Trial 7'!F22,'Trial 8'!F22)","v":{"v":2895.4020842364394,"d":"$2,895"}},{"$f":"STDEV('Trial 1'!G22,'Trial 2'!G22,'Trial 3'!G22,'Trial 4'!G22,'Trial 5'!G22,'Trial 6'!G22,'Trial 7'!G22,'Trial 8'!G22)","v":{"v":3839.718207256217,"d":"$3,840"}},{"$f":"STDEV('Trial 1'!H22,'Trial 2'!H22,'Trial 3'!H22,'Trial 4'!H22,'Trial 5'!H22,'Trial 6'!H22,'Trial 7'!H22,'Trial 8'!H22)","v":{"v":4694.391095258154,"d":"$4,694"}},{"$f":"STDEV('Trial 1'!I22,'Trial 2'!I22,'Trial 3'!I22,'Trial 4'!I22,'Trial 5'!I22,'Trial 6'!I22,'Trial 7'!I22,'Trial 8'!I22)","v":{"v":4856.970492835085,"d":"$4,857"}},{"$f":"STDEV('Trial 1'!J22,'Trial 2'!J22,'Trial 3'!J22,'Trial 4'!J22,'Trial 5'!J22,'Trial 6'!J22,'Trial 7'!J22,'Trial 8'!J22)","v":{"v":5373.388583040883,"d":"$5,373"}},{"$f":"STDEV('Trial 1'!K22,'Trial 2'!K22,'Trial 3'!K22,'Trial 4'!K22,'Trial 5'!K22,'Trial 6'!K22,'Trial 7'!K22,'Trial 8'!K22)","v":{"v":4552.66708670663,"d":"$4,553"}},{"$f":"STDEV('Trial 1'!L22,'Trial 2'!L22,'Trial 3'!L22,'Trial 4'!L22,'Trial 5'!L22,'Trial 6'!L22,'Trial 7'!L22,'Trial 8'!L22)","v":{"v":5493.667009260315,"d":"$5,494"}},{"$f":"STDEV('Trial 1'!M22,'Trial 2'!M22,'Trial 3'!M22,'Trial 4'!M22,'Trial 5'!M22,'Trial 6'!M22,'Trial 7'!M22,'Trial 8'!M22)","v":{"v":6794.1766760948885,"d":"$6,794"}},{"$f":"M33","v":{"v":6794.1766760948885,"d":"$6,794"}},{"$f":"STDEV('Trial 1'!O22,'Trial 2'!O22,'Trial 3'!O22,'Trial 4'!O22,'Trial 5'!O22,'Trial 6'!O22,'Trial 7'!O22,'Trial 8'!O22)","v":{"v":7424.153927443079,"d":"$7,424"}},{"$f":"STDEV('Trial 1'!P22,'Trial 2'!P22,'Trial 3'!P22,'Trial 4'!P22,'Trial 5'!P22,'Trial 6'!P22,'Trial 7'!P22,'Trial 8'!P22)","v":{"v":7682.337959262187,"d":"$7,682"}},{"$f":"STDEV('Trial 1'!Q22,'Trial 2'!Q22,'Trial 3'!Q22,'Trial 4'!Q22,'Trial 5'!Q22,'Trial 6'!Q22,'Trial 7'!Q22,'Trial 8'!Q22)","v":{"v":7707.811237423816,"d":"$7,708"}},{"$f":"STDEV('Trial 1'!R22,'Trial 2'!R22,'Trial 3'!R22,'Trial 4'!R22,'Trial 5'!R22,'Trial 6'!R22,'Trial 7'!R22,'Trial 8'!R22)","v":{"v":7472.582220148569,"d":"$7,473"}},{"$f":"STDEV('Trial 1'!S22,'Trial 2'!S22,'Trial 3'!S22,'Trial 4'!S22,'Trial 5'!S22,'Trial 6'!S22,'Trial 7'!S22,'Trial 8'!S22)","v":{"v":8069.71919644121,"d":"$8,070"}},{"$f":"STDEV('Trial 1'!T22,'Trial 2'!T22,'Trial 3'!T22,'Trial 4'!T22,'Trial 5'!T22,'Trial 6'!T22,'Trial 7'!T22,'Trial 8'!T22)","v":{"v":8491.505796200147,"d":"$8,492"}},{"$f":"STDEV('Trial 1'!U22,'Trial 2'!U22,'Trial 3'!U22,'Trial 4'!U22,'Trial 5'!U22,'Trial 6'!U22,'Trial 7'!U22,'Trial 8'!U22)","v":{"v":7896.7391115093305,"d":"$7,897"}},{"$f":"STDEV('Trial 1'!V22,'Trial 2'!V22,'Trial 3'!V22,'Trial 4'!V22,'Trial 5'!V22,'Trial 6'!V22,'Trial 7'!V22,'Trial 8'!V22)","v":{"v":7723.284738990731,"d":"$7,723"}},{"$f":"STDEV('Trial 1'!W22,'Trial 2'!W22,'Trial 3'!W22,'Trial 4'!W22,'Trial 5'!W22,'Trial 6'!W22,'Trial 7'!W22,'Trial 8'!W22)","v":{"v":8348.840274442571,"d":"$8,349"}},{"$f":"STDEV('Trial 1'!X22,'Trial 2'!X22,'Trial 3'!X22,'Trial 4'!X22,'Trial 5'!X22,'Trial 6'!X22,'Trial 7'!X22,'Trial 8'!X22)","v":{"v":8687.50598454338,"d":"$8,688"}},{"$f":"STDEV('Trial 1'!Y22,'Trial 2'!Y22,'Trial 3'!Y22,'Trial 4'!Y22,'Trial 5'!Y22,'Trial 6'!Y22,'Trial 7'!Y22,'Trial 8'!Y22)","v":{"v":9825.763053703015,"d":"$9,826"}},{"$f":"STDEV('Trial 1'!Z22,'Trial 2'!Z22,'Trial 3'!Z22,'Trial 4'!Z22,'Trial 5'!Z22,'Trial 6'!Z22,'Trial 7'!Z22,'Trial 8'!Z22)","v":{"v":10528.738228421542,"d":"$10,529"}},{"$f":"Z33","v":{"v":10528.738228421542,"d":"$10,529"}},{"$f":"STDEV('Trial 1'!AB22,'Trial 2'!AB22,'Trial 3'!AB22,'Trial 4'!AB22,'Trial 5'!AB22,'Trial 6'!AB22,'Trial 7'!AB22,'Trial 8'!AB22)","v":{"v":9732.561090147694,"d":"$9,733"}},{"$f":"STDEV('Trial 1'!AC22,'Trial 2'!AC22,'Trial 3'!AC22,'Trial 4'!AC22,'Trial 5'!AC22,'Trial 6'!AC22,'Trial 7'!AC22,'Trial 8'!AC22)","v":{"v":8778.77984214392,"d":"$8,779"}},{"$f":"STDEV('Trial 1'!AD22,'Trial 2'!AD22,'Trial 3'!AD22,'Trial 4'!AD22,'Trial 5'!AD22,'Trial 6'!AD22,'Trial 7'!AD22,'Trial 8'!AD22)","v":{"v":9111.63162811988,"d":"$9,112"}},{"$f":"STDEV('Trial 1'!AE22,'Trial 2'!AE22,'Trial 3'!AE22,'Trial 4'!AE22,'Trial 5'!AE22,'Trial 6'!AE22,'Trial 7'!AE22,'Trial 8'!AE22)","v":{"v":9859.072163003995,"d":"$9,859"}},{"$f":"STDEV('Trial 1'!AF22,'Trial 2'!AF22,'Trial 3'!AF22,'Trial 4'!AF22,'Trial 5'!AF22,'Trial 6'!AF22,'Trial 7'!AF22,'Trial 8'!AF22)","v":{"v":10704.202701707822,"d":"$10,704"}},{"$f":"STDEV('Trial 1'!AG22,'Trial 2'!AG22,'Trial 3'!AG22,'Trial 4'!AG22,'Trial 5'!AG22,'Trial 6'!AG22,'Trial 7'!AG22,'Trial 8'!AG22)","v":{"v":11746.595677309495,"d":"$11,747"}},{"$f":"STDEV('Trial 1'!AH22,'Trial 2'!AH22,'Trial 3'!AH22,'Trial 4'!AH22,'Trial 5'!AH22,'Trial 6'!AH22,'Trial 7'!AH22,'Trial 8'!AH22)","v":{"v":11784.3260553744,"d":"$11,784"}},{"$f":"STDEV('Trial 1'!AI22,'Trial 2'!AI22,'Trial 3'!AI22,'Trial 4'!AI22,'Trial 5'!AI22,'Trial 6'!AI22,'Trial 7'!AI22,'Trial 8'!AI22)","v":{"v":12202.988589389426,"d":"$12,203"}},{"$f":"STDEV('Trial 1'!AJ22,'Trial 2'!AJ22,'Trial 3'!AJ22,'Trial 4'!AJ22,'Trial 5'!AJ22,'Trial 6'!AJ22,'Trial 7'!AJ22,'Trial 8'!AJ22)","v":{"v":12078.963079367875,"d":"$12,079"}},{"$f":"STDEV('Trial 1'!AK22,'Trial 2'!AK22,'Trial 3'!AK22,'Trial 4'!AK22,'Trial 5'!AK22,'Trial 6'!AK22,'Trial 7'!AK22,'Trial 8'!AK22)","v":{"v":11935.473432259585,"d":"$11,935"}},{"$f":"STDEV('Trial 1'!AL22,'Trial 2'!AL22,'Trial 3'!AL22,'Trial 4'!AL22,'Trial 5'!AL22,'Trial 6'!AL22,'Trial 7'!AL22,'Trial 8'!AL22)","v":{"v":11889.193496204296,"d":"$11,889"}},{"$f":"STDEV('Trial 1'!AM22,'Trial 2'!AM22,'Trial 3'!AM22,'Trial 4'!AM22,'Trial 5'!AM22,'Trial 6'!AM22,'Trial 7'!AM22,'Trial 8'!AM22)","v":{"v":12384.35507469697,"d":"$12,384"}},{"$f":"AM33","v":{"v":12384.35507469697,"d":"$12,384"}},{"$f":"STDEV('Trial 1'!AO22,'Trial 2'!AO22,'Trial 3'!AO22,'Trial 4'!AO22,'Trial 5'!AO22,'Trial 6'!AO22,'Trial 7'!AO22,'Trial 8'!AO22)","v":{"v":13827.046981918793,"d":"$13,827"}},{"$f":"STDEV('Trial 1'!AP22,'Trial 2'!AP22,'Trial 3'!AP22,'Trial 4'!AP22,'Trial 5'!AP22,'Trial 6'!AP22,'Trial 7'!AP22,'Trial 8'!AP22)","v":{"v":13450.088855208283,"d":"$13,450"}},{"$f":"STDEV('Trial 1'!AQ22,'Trial 2'!AQ22,'Trial 3'!AQ22,'Trial 4'!AQ22,'Trial 5'!AQ22,'Trial 6'!AQ22,'Trial 7'!AQ22,'Trial 8'!AQ22)","v":{"v":13258.241276837363,"d":"$13,258"}},{"$f":"STDEV('Trial 1'!AR22,'Trial 2'!AR22,'Trial 3'!AR22,'Trial 4'!AR22,'Trial 5'!AR22,'Trial 6'!AR22,'Trial 7'!AR22,'Trial 8'!AR22)","v":{"v":13636.865830093962,"d":"$13,637"}},{"$f":"STDEV('Trial 1'!AS22,'Trial 2'!AS22,'Trial 3'!AS22,'Trial 4'!AS22,'Trial 5'!AS22,'Trial 6'!AS22,'Trial 7'!AS22,'Trial 8'!AS22)","v":{"v":14460.874629925394,"d":"$14,461"}},{"$f":"STDEV('Trial 1'!AT22,'Trial 2'!AT22,'Trial 3'!AT22,'Trial 4'!AT22,'Trial 5'!AT22,'Trial 6'!AT22,'Trial 7'!AT22,'Trial 8'!AT22)","v":{"v":14573.082670108346,"d":"$14,573"}},{"$f":"STDEV('Trial 1'!AU22,'Trial 2'!AU22,'Trial 3'!AU22,'Trial 4'!AU22,'Trial 5'!AU22,'Trial 6'!AU22,'Trial 7'!AU22,'Trial 8'!AU22)","v":{"v":13991.97687827466,"d":"$13,992"}},{"$f":"STDEV('Trial 1'!AV22,'Trial 2'!AV22,'Trial 3'!AV22,'Trial 4'!AV22,'Trial 5'!AV22,'Trial 6'!AV22,'Trial 7'!AV22,'Trial 8'!AV22)","v":{"v":13142.490517399825,"d":"$13,142"}},{"$f":"STDEV('Trial 1'!AW22,'Trial 2'!AW22,'Trial 3'!AW22,'Trial 4'!AW22,'Trial 5'!AW22,'Trial 6'!AW22,'Trial 7'!AW22,'Trial 8'!AW22)","v":{"v":12982.413140243727,"d":"$12,982"}},{"$f":"STDEV('Trial 1'!AX22,'Trial 2'!AX22,'Trial 3'!AX22,'Trial 4'!AX22,'Trial 5'!AX22,'Trial 6'!AX22,'Trial 7'!AX22,'Trial 8'!AX22)","v":{"v":12555.127956346585,"d":"$12,555"}},{"$f":"STDEV('Trial 1'!AY22,'Trial 2'!AY22,'Trial 3'!AY22,'Trial 4'!AY22,'Trial 5'!AY22,'Trial 6'!AY22,'Trial 7'!AY22,'Trial 8'!AY22)","v":{"v":12244.642967248928,"d":"$12,245"}},{"$f":"STDEV('Trial 1'!AZ22,'Trial 2'!AZ22,'Trial 3'!AZ22,'Trial 4'!AZ22,'Trial 5'!AZ22,'Trial 6'!AZ22,'Trial 7'!AZ22,'Trial 8'!AZ22)","v":{"v":12734.83164376842,"d":"$12,735"}},{"$f":"AZ33","v":{"v":12734.83164376842,"d":"$12,735"}},{"$f":"STDEV('Trial 1'!BB22,'Trial 2'!BB22,'Trial 3'!BB22,'Trial 4'!BB22,'Trial 5'!BB22,'Trial 6'!BB22,'Trial 7'!BB22,'Trial 8'!BB22)","v":{"v":13694.152338561427,"d":"$13,694"}},{"$f":"STDEV('Trial 1'!BC22,'Trial 2'!BC22,'Trial 3'!BC22,'Trial 4'!BC22,'Trial 5'!BC22,'Trial 6'!BC22,'Trial 7'!BC22,'Trial 8'!BC22)","v":{"v":12066.472422498642,"d":"$12,066"}},{"$f":"STDEV('Trial 1'!BD22,'Trial 2'!BD22,'Trial 3'!BD22,'Trial 4'!BD22,'Trial 5'!BD22,'Trial 6'!BD22,'Trial 7'!BD22,'Trial 8'!BD22)","v":{"v":12044.316845350011,"d":"$12,044"}},{"$f":"STDEV('Trial 1'!BE22,'Trial 2'!BE22,'Trial 3'!BE22,'Trial 4'!BE22,'Trial 5'!BE22,'Trial 6'!BE22,'Trial 7'!BE22,'Trial 8'!BE22)","v":{"v":13047.993285332104,"d":"$13,048"}},{"$f":"STDEV('Trial 1'!BF22,'Trial 2'!BF22,'Trial 3'!BF22,'Trial 4'!BF22,'Trial 5'!BF22,'Trial 6'!BF22,'Trial 7'!BF22,'Trial 8'!BF22)","v":{"v":13451.725838921231,"d":"$13,452"}},{"$f":"STDEV('Trial 1'!BG22,'Trial 2'!BG22,'Trial 3'!BG22,'Trial 4'!BG22,'Trial 5'!BG22,'Trial 6'!BG22,'Trial 7'!BG22,'Trial 8'!BG22)","v":{"v":14297.915091887606,"d":"$14,298"}},{"$f":"STDEV('Trial 1'!BH22,'Trial 2'!BH22,'Trial 3'!BH22,'Trial 4'!BH22,'Trial 5'!BH22,'Trial 6'!BH22,'Trial 7'!BH22,'Trial 8'!BH22)","v":{"v":15271.35088449503,"d":"$15,271"}},{"$f":"STDEV('Trial 1'!BI22,'Trial 2'!BI22,'Trial 3'!BI22,'Trial 4'!BI22,'Trial 5'!BI22,'Trial 6'!BI22,'Trial 7'!BI22,'Trial 8'!BI22)","v":{"v":16355.030652810332,"d":"$16,355"}},{"$f":"STDEV('Trial 1'!BJ22,'Trial 2'!BJ22,'Trial 3'!BJ22,'Trial 4'!BJ22,'Trial 5'!BJ22,'Trial 6'!BJ22,'Trial 7'!BJ22,'Trial 8'!BJ22)","v":{"v":15780.839410641851,"d":"$15,781"}},{"$f":"STDEV('Trial 1'!BK22,'Trial 2'!BK22,'Trial 3'!BK22,'Trial 4'!BK22,'Trial 5'!BK22,'Trial 6'!BK22,'Trial 7'!BK22,'Trial 8'!BK22)","v":{"v":16305.165890022487,"d":"$16,305"}},{"$f":"STDEV('Trial 1'!BL22,'Trial 2'!BL22,'Trial 3'!BL22,'Trial 4'!BL22,'Trial 5'!BL22,'Trial 6'!BL22,'Trial 7'!BL22,'Trial 8'!BL22)","v":{"v":15539.834332710354,"d":"$15,540"}},{"$f":"STDEV('Trial 1'!BM22,'Trial 2'!BM22,'Trial 3'!BM22,'Trial 4'!BM22,'Trial 5'!BM22,'Trial 6'!BM22,'Trial 7'!BM22,'Trial 8'!BM22)","v":{"v":14396.026334992574,"d":"$14,396"}},{"$f":"BM33","v":{"v":14396.026334992574,"d":"$14,396"}},{"$f":"STDEV('Trial 1'!BO22,'Trial 2'!BO22,'Trial 3'!BO22,'Trial 4'!BO22,'Trial 5'!BO22,'Trial 6'!BO22,'Trial 7'!BO22,'Trial 8'!BO22)","v":{"v":13954.367419217479,"d":"$13,954"}},{"$f":"STDEV('Trial 1'!BP22,'Trial 2'!BP22,'Trial 3'!BP22,'Trial 4'!BP22,'Trial 5'!BP22,'Trial 6'!BP22,'Trial 7'!BP22,'Trial 8'!BP22)","v":{"v":13371.131295976347,"d":"$13,371"}},{"$f":"STDEV('Trial 1'!BQ22,'Trial 2'!BQ22,'Trial 3'!BQ22,'Trial 4'!BQ22,'Trial 5'!BQ22,'Trial 6'!BQ22,'Trial 7'!BQ22,'Trial 8'!BQ22)","v":{"v":12799.922543709443,"d":"$12,800"}},{"$f":"STDEV('Trial 1'!BR22,'Trial 2'!BR22,'Trial 3'!BR22,'Trial 4'!BR22,'Trial 5'!BR22,'Trial 6'!BR22,'Trial 7'!BR22,'Trial 8'!BR22)","v":{"v":14049.818235056742,"d":"$14,050"}},{"$f":"STDEV('Trial 1'!BS22,'Trial 2'!BS22,'Trial 3'!BS22,'Trial 4'!BS22,'Trial 5'!BS22,'Trial 6'!BS22,'Trial 7'!BS22,'Trial 8'!BS22)","v":{"v":14925.082683023742,"d":"$14,925"}},{"$f":"STDEV('Trial 1'!BT22,'Trial 2'!BT22,'Trial 3'!BT22,'Trial 4'!BT22,'Trial 5'!BT22,'Trial 6'!BT22,'Trial 7'!BT22,'Trial 8'!BT22)","v":{"v":15635.059939534312,"d":"$15,635"}},{"$f":"STDEV('Trial 1'!BU22,'Trial 2'!BU22,'Trial 3'!BU22,'Trial 4'!BU22,'Trial 5'!BU22,'Trial 6'!BU22,'Trial 7'!BU22,'Trial 8'!BU22)","v":{"v":15151.383271915762,"d":"$15,151"}},{"$f":"STDEV('Trial 1'!BV22,'Trial 2'!BV22,'Trial 3'!BV22,'Trial 4'!BV22,'Trial 5'!BV22,'Trial 6'!BV22,'Trial 7'!BV22,'Trial 8'!BV22)","v":{"v":15976.445692745156,"d":"$15,976"}},{"$f":"STDEV('Trial 1'!BW22,'Trial 2'!BW22,'Trial 3'!BW22,'Trial 4'!BW22,'Trial 5'!BW22,'Trial 6'!BW22,'Trial 7'!BW22,'Trial 8'!BW22)","v":{"v":17024.793028516066,"d":"$17,025"}},{"$f":"STDEV('Trial 1'!BX22,'Trial 2'!BX22,'Trial 3'!BX22,'Trial 4'!BX22,'Trial 5'!BX22,'Trial 6'!BX22,'Trial 7'!BX22,'Trial 8'!BX22)","v":{"v":18227.50839216903,"d":"$18,228"}},{"$f":"STDEV('Trial 1'!BY22,'Trial 2'!BY22,'Trial 3'!BY22,'Trial 4'!BY22,'Trial 5'!BY22,'Trial 6'!BY22,'Trial 7'!BY22,'Trial 8'!BY22)","v":{"v":18611.924254188114,"d":"$18,612"}},{"$f":"STDEV('Trial 1'!BZ22,'Trial 2'!BZ22,'Trial 3'!BZ22,'Trial 4'!BZ22,'Trial 5'!BZ22,'Trial 6'!BZ22,'Trial 7'!BZ22,'Trial 8'!BZ22)","v":{"v":17428.72888514267,"d":"$17,429"}},{"$f":"BZ33","v":{"v":17428.72888514267,"d":"$17,429"}},{"$f":"STDEV('Trial 1'!CB22,'Trial 2'!CB22,'Trial 3'!CB22,'Trial 4'!CB22,'Trial 5'!CB22,'Trial 6'!CB22,'Trial 7'!CB22,'Trial 8'!CB22)","v":{"v":16676.431027547784,"d":"$16,676"}},{"$f":"STDEV('Trial 1'!CC22,'Trial 2'!CC22,'Trial 3'!CC22,'Trial 4'!CC22,'Trial 5'!CC22,'Trial 6'!CC22,'Trial 7'!CC22,'Trial 8'!CC22)","v":{"v":16499.910567460076,"d":"$16,500"}},{"$f":"STDEV('Trial 1'!CD22,'Trial 2'!CD22,'Trial 3'!CD22,'Trial 4'!CD22,'Trial 5'!CD22,'Trial 6'!CD22,'Trial 7'!CD22,'Trial 8'!CD22)","v":{"v":16432.932757248305,"d":"$16,433"}},{"$f":"STDEV('Trial 1'!CE22,'Trial 2'!CE22,'Trial 3'!CE22,'Trial 4'!CE22,'Trial 5'!CE22,'Trial 6'!CE22,'Trial 7'!CE22,'Trial 8'!CE22)","v":{"v":16670.11326445737,"d":"$16,670"}},{"$f":"STDEV('Trial 1'!CF22,'Trial 2'!CF22,'Trial 3'!CF22,'Trial 4'!CF22,'Trial 5'!CF22,'Trial 6'!CF22,'Trial 7'!CF22,'Trial 8'!CF22)","v":{"v":16381.151534041146,"d":"$16,381"}},{"$f":"STDEV('Trial 1'!CG22,'Trial 2'!CG22,'Trial 3'!CG22,'Trial 4'!CG22,'Trial 5'!CG22,'Trial 6'!CG22,'Trial 7'!CG22,'Trial 8'!CG22)","v":{"v":16097.528383370767,"d":"$16,098"}},{"$f":"STDEV('Trial 1'!CH22,'Trial 2'!CH22,'Trial 3'!CH22,'Trial 4'!CH22,'Trial 5'!CH22,'Trial 6'!CH22,'Trial 7'!CH22,'Trial 8'!CH22)","v":{"v":17202.699388373323,"d":"$17,203"}},{"$f":"STDEV('Trial 1'!CI22,'Trial 2'!CI22,'Trial 3'!CI22,'Trial 4'!CI22,'Trial 5'!CI22,'Trial 6'!CI22,'Trial 7'!CI22,'Trial 8'!CI22)","v":{"v":16120.72487764151,"d":"$16,121"}},{"$f":"STDEV('Trial 1'!CJ22,'Trial 2'!CJ22,'Trial 3'!CJ22,'Trial 4'!CJ22,'Trial 5'!CJ22,'Trial 6'!CJ22,'Trial 7'!CJ22,'Trial 8'!CJ22)","v":{"v":15179.049308611624,"d":"$15,179"}},{"$f":"STDEV('Trial 1'!CK22,'Trial 2'!CK22,'Trial 3'!CK22,'Trial 4'!CK22,'Trial 5'!CK22,'Trial 6'!CK22,'Trial 7'!CK22,'Trial 8'!CK22)","v":{"v":15617.739695605203,"d":"$15,618"}},{"$f":"STDEV('Trial 1'!CL22,'Trial 2'!CL22,'Trial 3'!CL22,'Trial 4'!CL22,'Trial 5'!CL22,'Trial 6'!CL22,'Trial 7'!CL22,'Trial 8'!CL22)","v":{"v":15628.516088097917,"d":"$15,629"}},{"$f":"STDEV('Trial 1'!CM22,'Trial 2'!CM22,'Trial 3'!CM22,'Trial 4'!CM22,'Trial 5'!CM22,'Trial 6'!CM22,'Trial 7'!CM22,'Trial 8'!CM22)","v":{"v":15140.296966827598,"d":"$15,140"}},{"$f":"CM33","v":{"v":15140.296966827598,"d":"$15,140"}},{"$f":"STDEV('Trial 1'!CO22,'Trial 2'!CO22,'Trial 3'!CO22,'Trial 4'!CO22,'Trial 5'!CO22,'Trial 6'!CO22,'Trial 7'!CO22,'Trial 8'!CO22)","v":{"v":16030.02581710981,"d":"$16,030"}},{"$f":"STDEV('Trial 1'!CP22,'Trial 2'!CP22,'Trial 3'!CP22,'Trial 4'!CP22,'Trial 5'!CP22,'Trial 6'!CP22,'Trial 7'!CP22,'Trial 8'!CP22)","v":{"v":17110.604444795394,"d":"$17,111"}},{"$f":"STDEV('Trial 1'!CQ22,'Trial 2'!CQ22,'Trial 3'!CQ22,'Trial 4'!CQ22,'Trial 5'!CQ22,'Trial 6'!CQ22,'Trial 7'!CQ22,'Trial 8'!CQ22)","v":{"v":17199.804189779145,"d":"$17,200"}},{"$f":"STDEV('Trial 1'!CR22,'Trial 2'!CR22,'Trial 3'!CR22,'Trial 4'!CR22,'Trial 5'!CR22,'Trial 6'!CR22,'Trial 7'!CR22,'Trial 8'!CR22)","v":{"v":17472.690589783037,"d":"$17,473"}},{"$f":"STDEV('Trial 1'!CS22,'Trial 2'!CS22,'Trial 3'!CS22,'Trial 4'!CS22,'Trial 5'!CS22,'Trial 6'!CS22,'Trial 7'!CS22,'Trial 8'!CS22)","v":{"v":17906.14133294121,"d":"$17,906"}},{"$f":"STDEV('Trial 1'!CT22,'Trial 2'!CT22,'Trial 3'!CT22,'Trial 4'!CT22,'Trial 5'!CT22,'Trial 6'!CT22,'Trial 7'!CT22,'Trial 8'!CT22)","v":{"v":16996.01532863618,"d":"$16,996"}},{"$f":"STDEV('Trial 1'!CU22,'Trial 2'!CU22,'Trial 3'!CU22,'Trial 4'!CU22,'Trial 5'!CU22,'Trial 6'!CU22,'Trial 7'!CU22,'Trial 8'!CU22)","v":{"v":17391.98409327916,"d":"$17,392"}},{"$f":"STDEV('Trial 1'!CV22,'Trial 2'!CV22,'Trial 3'!CV22,'Trial 4'!CV22,'Trial 5'!CV22,'Trial 6'!CV22,'Trial 7'!CV22,'Trial 8'!CV22)","v":{"v":17830.256275161933,"d":"$17,830"}},{"$f":"STDEV('Trial 1'!CW22,'Trial 2'!CW22,'Trial 3'!CW22,'Trial 4'!CW22,'Trial 5'!CW22,'Trial 6'!CW22,'Trial 7'!CW22,'Trial 8'!CW22)","v":{"v":17328.1670070073,"d":"$17,328"}},{"$f":"STDEV('Trial 1'!CX22,'Trial 2'!CX22,'Trial 3'!CX22,'Trial 4'!CX22,'Trial 5'!CX22,'Trial 6'!CX22,'Trial 7'!CX22,'Trial 8'!CX22)","v":{"v":17159.116356713792,"d":"$17,159"}},{"$f":"STDEV('Trial 1'!CY22,'Trial 2'!CY22,'Trial 3'!CY22,'Trial 4'!CY22,'Trial 5'!CY22,'Trial 6'!CY22,'Trial 7'!CY22,'Trial 8'!CY22)","v":{"v":17954.06905809762,"d":"$17,954"}},{"$f":"STDEV('Trial 1'!CZ22,'Trial 2'!CZ22,'Trial 3'!CZ22,'Trial 4'!CZ22,'Trial 5'!CZ22,'Trial 6'!CZ22,'Trial 7'!CZ22,'Trial 8'!CZ22)","v":{"v":18145.29481675027,"d":"$18,145"}},{"$f":"CZ33","v":{"v":18145.29481675027,"d":"$18,145"}},{"$f":"STDEV('Trial 1'!DB22,'Trial 2'!DB22,'Trial 3'!DB22,'Trial 4'!DB22,'Trial 5'!DB22,'Trial 6'!DB22,'Trial 7'!DB22,'Trial 8'!DB22)","v":{"v":17650.55257387956,"d":"$17,651"}},{"$f":"STDEV('Trial 1'!DC22,'Trial 2'!DC22,'Trial 3'!DC22,'Trial 4'!DC22,'Trial 5'!DC22,'Trial 6'!DC22,'Trial 7'!DC22,'Trial 8'!DC22)","v":{"v":19613.109691370188,"d":"$19,613"}},{"$f":"STDEV('Trial 1'!DD22,'Trial 2'!DD22,'Trial 3'!DD22,'Trial 4'!DD22,'Trial 5'!DD22,'Trial 6'!DD22,'Trial 7'!DD22,'Trial 8'!DD22)","v":{"v":19608.250657809873,"d":"$19,608"}},{"$f":"STDEV('Trial 1'!DE22,'Trial 2'!DE22,'Trial 3'!DE22,'Trial 4'!DE22,'Trial 5'!DE22,'Trial 6'!DE22,'Trial 7'!DE22,'Trial 8'!DE22)","v":{"v":18830.1282804967,"d":"$18,830"}},{"$f":"STDEV('Trial 1'!DF22,'Trial 2'!DF22,'Trial 3'!DF22,'Trial 4'!DF22,'Trial 5'!DF22,'Trial 6'!DF22,'Trial 7'!DF22,'Trial 8'!DF22)","v":{"v":18200.5754549385,"d":"$18,201"}},{"$f":"STDEV('Trial 1'!DG22,'Trial 2'!DG22,'Trial 3'!DG22,'Trial 4'!DG22,'Trial 5'!DG22,'Trial 6'!DG22,'Trial 7'!DG22,'Trial 8'!DG22)","v":{"v":17631.624592897126,"d":"$17,632"}},{"$f":"STDEV('Trial 1'!DH22,'Trial 2'!DH22,'Trial 3'!DH22,'Trial 4'!DH22,'Trial 5'!DH22,'Trial 6'!DH22,'Trial 7'!DH22,'Trial 8'!DH22)","v":{"v":16679.13968680407,"d":"$16,679"}},{"$f":"STDEV('Trial 1'!DI22,'Trial 2'!DI22,'Trial 3'!DI22,'Trial 4'!DI22,'Trial 5'!DI22,'Trial 6'!DI22,'Trial 7'!DI22,'Trial 8'!DI22)","v":{"v":16273.739651745003,"d":"$16,274"}},{"$f":"STDEV('Trial 1'!DJ22,'Trial 2'!DJ22,'Trial 3'!DJ22,'Trial 4'!DJ22,'Trial 5'!DJ22,'Trial 6'!DJ22,'Trial 7'!DJ22,'Trial 8'!DJ22)","v":{"v":15159.8781051569,"d":"$15,160"}},{"$f":"STDEV('Trial 1'!DK22,'Trial 2'!DK22,'Trial 3'!DK22,'Trial 4'!DK22,'Trial 5'!DK22,'Trial 6'!DK22,'Trial 7'!DK22,'Trial 8'!DK22)","v":{"v":15997.875375681228,"d":"$15,998"}},{"$f":"STDEV('Trial 1'!DL22,'Trial 2'!DL22,'Trial 3'!DL22,'Trial 4'!DL22,'Trial 5'!DL22,'Trial 6'!DL22,'Trial 7'!DL22,'Trial 8'!DL22)","v":{"v":15225.65817368143,"d":"$15,226"}},{"$f":"STDEV('Trial 1'!DM22,'Trial 2'!DM22,'Trial 3'!DM22,'Trial 4'!DM22,'Trial 5'!DM22,'Trial 6'!DM22,'Trial 7'!DM22,'Trial 8'!DM22)","v":{"v":16300.52152098151,"d":"$16,301"}},{"$f":"DM33","v":{"v":16300.52152098151,"d":"$16,301"}},{"$f":"STDEV('Trial 1'!DO22,'Trial 2'!DO22,'Trial 3'!DO22,'Trial 4'!DO22,'Trial 5'!DO22,'Trial 6'!DO22,'Trial 7'!DO22,'Trial 8'!DO22)","v":{"v":16416.644765933783,"d":"$16,417"}},{"$f":"STDEV('Trial 1'!DP22,'Trial 2'!DP22,'Trial 3'!DP22,'Trial 4'!DP22,'Trial 5'!DP22,'Trial 6'!DP22,'Trial 7'!DP22,'Trial 8'!DP22)","v":{"v":14678.932816360782,"d":"$14,679"}},{"$f":"STDEV('Trial 1'!DQ22,'Trial 2'!DQ22,'Trial 3'!DQ22,'Trial 4'!DQ22,'Trial 5'!DQ22,'Trial 6'!DQ22,'Trial 7'!DQ22,'Trial 8'!DQ22)","v":{"v":13706.117216090519,"d":"$13,706"}},{"$f":"STDEV('Trial 1'!DR22,'Trial 2'!DR22,'Trial 3'!DR22,'Trial 4'!DR22,'Trial 5'!DR22,'Trial 6'!DR22,'Trial 7'!DR22,'Trial 8'!DR22)","v":{"v":14451.13743674272,"d":"$14,451"}},{"$f":"STDEV('Trial 1'!DS22,'Trial 2'!DS22,'Trial 3'!DS22,'Trial 4'!DS22,'Trial 5'!DS22,'Trial 6'!DS22,'Trial 7'!DS22,'Trial 8'!DS22)","v":{"v":15476.558986148451,"d":"$15,477"}},{"$f":"STDEV('Trial 1'!DT22,'Trial 2'!DT22,'Trial 3'!DT22,'Trial 4'!DT22,'Trial 5'!DT22,'Trial 6'!DT22,'Trial 7'!DT22,'Trial 8'!DT22)","v":{"v":15428.80454883705,"d":"$15,429"}},{"$f":"STDEV('Trial 1'!DU22,'Trial 2'!DU22,'Trial 3'!DU22,'Trial 4'!DU22,'Trial 5'!DU22,'Trial 6'!DU22,'Trial 7'!DU22,'Trial 8'!DU22)","v":{"v":16112.837453102888,"d":"$16,113"}},{"$f":"STDEV('Trial 1'!DV22,'Trial 2'!DV22,'Trial 3'!DV22,'Trial 4'!DV22,'Trial 5'!DV22,'Trial 6'!DV22,'Trial 7'!DV22,'Trial 8'!DV22)","v":{"v":16790.4193197093,"d":"$16,790"}},{"$f":"STDEV('Trial 1'!DW22,'Trial 2'!DW22,'Trial 3'!DW22,'Trial 4'!DW22,'Trial 5'!DW22,'Trial 6'!DW22,'Trial 7'!DW22,'Trial 8'!DW22)","v":{"v":16779.47988984661,"d":"$16,779"}},{"$f":"STDEV('Trial 1'!DX22,'Trial 2'!DX22,'Trial 3'!DX22,'Trial 4'!DX22,'Trial 5'!DX22,'Trial 6'!DX22,'Trial 7'!DX22,'Trial 8'!DX22)","v":{"v":17757.940745628643,"d":"$17,758"}},{"$f":"STDEV('Trial 1'!DY22,'Trial 2'!DY22,'Trial 3'!DY22,'Trial 4'!DY22,'Trial 5'!DY22,'Trial 6'!DY22,'Trial 7'!DY22,'Trial 8'!DY22)","v":{"v":16344.845655454797,"d":"$16,345"}},{"$f":"STDEV('Trial 1'!DZ22,'Trial 2'!DZ22,'Trial 3'!DZ22,'Trial 4'!DZ22,'Trial 5'!DZ22,'Trial 6'!DZ22,'Trial 7'!DZ22,'Trial 8'!DZ22)","v":{"v":16527.880545143482,"d":"$16,528"}},{"$f":"DZ33","v":{"v":16527.880545143482,"d":"$16,528"}},{"$f":"STDEV('Trial 1'!EB22,'Trial 2'!EB22,'Trial 3'!EB22,'Trial 4'!EB22,'Trial 5'!EB22,'Trial 6'!EB22,'Trial 7'!EB22,'Trial 8'!EB22)","v":{"v":17258.655239380514,"d":"$17,259"}},{"$f":"STDEV('Trial 1'!EC22,'Trial 2'!EC22,'Trial 3'!EC22,'Trial 4'!EC22,'Trial 5'!EC22,'Trial 6'!EC22,'Trial 7'!EC22,'Trial 8'!EC22)","v":{"v":15986.11688289082,"d":"$15,986"}},{"$f":"STDEV('Trial 1'!ED22,'Trial 2'!ED22,'Trial 3'!ED22,'Trial 4'!ED22,'Trial 5'!ED22,'Trial 6'!ED22,'Trial 7'!ED22,'Trial 8'!ED22)","v":{"v":15276.04585534862,"d":"$15,276"}},{"$f":"STDEV('Trial 1'!EE22,'Trial 2'!EE22,'Trial 3'!EE22,'Trial 4'!EE22,'Trial 5'!EE22,'Trial 6'!EE22,'Trial 7'!EE22,'Trial 8'!EE22)","v":{"v":16305.82677766709,"d":"$16,306"}},{"$f":"STDEV('Trial 1'!EF22,'Trial 2'!EF22,'Trial 3'!EF22,'Trial 4'!EF22,'Trial 5'!EF22,'Trial 6'!EF22,'Trial 7'!EF22,'Trial 8'!EF22)","v":{"v":16216.860216511704,"d":"$16,217"}},{"$f":"STDEV('Trial 1'!EG22,'Trial 2'!EG22,'Trial 3'!EG22,'Trial 4'!EG22,'Trial 5'!EG22,'Trial 6'!EG22,'Trial 7'!EG22,'Trial 8'!EG22)","v":{"v":15315.832615595775,"d":"$15,316"}},{"$f":"STDEV('Trial 1'!EH22,'Trial 2'!EH22,'Trial 3'!EH22,'Trial 4'!EH22,'Trial 5'!EH22,'Trial 6'!EH22,'Trial 7'!EH22,'Trial 8'!EH22)","v":{"v":16293.84659059721,"d":"$16,294"}},{"$f":"STDEV('Trial 1'!EI22,'Trial 2'!EI22,'Trial 3'!EI22,'Trial 4'!EI22,'Trial 5'!EI22,'Trial 6'!EI22,'Trial 7'!EI22,'Trial 8'!EI22)","v":{"v":17463.333169391186,"d":"$17,463"}},{"$f":"STDEV('Trial 1'!EJ22,'Trial 2'!EJ22,'Trial 3'!EJ22,'Trial 4'!EJ22,'Trial 5'!EJ22,'Trial 6'!EJ22,'Trial 7'!EJ22,'Trial 8'!EJ22)","v":{"v":17754.439579067013,"d":"$17,754"}},{"$f":"STDEV('Trial 1'!EK22,'Trial 2'!EK22,'Trial 3'!EK22,'Trial 4'!EK22,'Trial 5'!EK22,'Trial 6'!EK22,'Trial 7'!EK22,'Trial 8'!EK22)","v":{"v":18368.66355949115,"d":"$18,369"}},{"$f":"STDEV('Trial 1'!EL22,'Trial 2'!EL22,'Trial 3'!EL22,'Trial 4'!EL22,'Trial 5'!EL22,'Trial 6'!EL22,'Trial 7'!EL22,'Trial 8'!EL22)","v":{"v":18113.86972439434,"d":"$18,114"}},{"$f":"STDEV('Trial 1'!EM22,'Trial 2'!EM22,'Trial 3'!EM22,'Trial 4'!EM22,'Trial 5'!EM22,'Trial 6'!EM22,'Trial 7'!EM22,'Trial 8'!EM22)","v":{"v":17081.843279350884,"d":"$17,082"}},{"$f":"EM33","v":{"v":17081.843279350884,"d":"$17,082"}}]
[]
[]
[{"$f":"\"Employment\"","v":"Employment"}]
[{"$f":"\" \"","v":" "}]
[null,{"$f":"ZZZ__FnCalls!F7","v":"Jan 2010"},{"$f":"ZZZ__FnCalls!F8","v":"Feb 2010"},{"$f":"ZZZ__FnCalls!F9","v":"Mar 2010"},{"$f":"ZZZ__FnCalls!F10","v":"Apr 2010"},{"$f":"ZZZ__FnCalls!F11","v":"May 2010"},{"$f":"ZZZ__FnCalls!F12","v":"Jun 2010"},{"$f":"ZZZ__FnCalls!F13","v":"Jul 2010"},{"$f":"ZZZ__FnCalls!F14","v":"Aug 2010"},{"$f":"ZZZ__FnCalls!F15","v":"Sep 2010"},{"$f":"ZZZ__FnCalls!F16","v":"Oct 2010"},{"$f":"ZZZ__FnCalls!F17","v":"Nov 2010"},{"$f":"ZZZ__FnCalls!F18","v":"Dec 2010"},{"$f":"ZZZ__FnCalls!H7","v":"2010"},{"$f":"ZZZ__FnCalls!F19","v":"Jan 2011"},{"$f":"ZZZ__FnCalls!F20","v":"Feb 2011"},{"$f":"ZZZ__FnCalls!F21","v":"Mar 2011"},{"$f":"ZZZ__FnCalls!F22","v":"Apr 2011"},{"$f":"ZZZ__FnCalls!F23","v":"May 2011"},{"$f":"ZZZ__FnCalls!F24","v":"Jun 2011"},{"$f":"ZZZ__FnCalls!F25","v":"Jul 2011"},{"$f":"ZZZ__FnCalls!F26","v":"Aug 2011"},{"$f":"ZZZ__FnCalls!F27","v":"Sep 2011"},{"$f":"ZZZ__FnCalls!F28","v":"Oct 2011"},{"$f":"ZZZ__FnCalls!F29","v":"Nov 2011"},{"$f":"ZZZ__FnCalls!F30","v":"Dec 2011"},{"$f":"ZZZ__FnCalls!H19","v":"2011"},{"$f":"ZZZ__FnCalls!F31","v":"Jan 2012"},{"$f":"ZZZ__FnCalls!F32","v":"Feb 2012"},{"$f":"ZZZ__FnCalls!F33","v":"Mar 2012"},{"$f":"ZZZ__FnCalls!F34","v":"Apr 2012"},{"$f":"ZZZ__FnCalls!F35","v":"May 2012"},{"$f":"ZZZ__FnCalls!F36","v":"Jun 2012"},{"$f":"ZZZ__FnCalls!F37","v":"Jul 2012"},{"$f":"ZZZ__FnCalls!F38","v":"Aug 2012"},{"$f":"ZZZ__FnCalls!F39","v":"Sep 2012"},{"$f":"ZZZ__FnCalls!F40","v":"Oct 2012"},{"$f":"ZZZ__FnCalls!F41","v":"Nov 2012"},{"$f":"ZZZ__FnCalls!F42","v":"Dec 2012"},{"$f":"ZZZ__FnCalls!H31","v":"2012"},{"$f":"ZZZ__FnCalls!F43","v":"Jan 2013"},{"$f":"ZZZ__FnCalls!F44","v":"Feb 2013"},{"$f":"ZZZ__FnCalls!F45","v":"Mar 2013"},{"$f":"ZZZ__FnCalls!F46","v":"Apr 2013"},{"$f":"ZZZ__FnCalls!F47","v":"May 2013"},{"$f":"ZZZ__FnCalls!F48","v":"Jun 2013"},{"$f":"ZZZ__FnCalls!F49","v":"Jul 2013"},{"$f":"ZZZ__FnCalls!F50","v":"Aug 2013"},{"$f":"ZZZ__FnCalls!F51","v":"Sep 2013"},{"$f":"ZZZ__FnCalls!F52","v":"Oct 2013"},{"$f":"ZZZ__FnCalls!F53","v":"Nov 2013"},{"$f":"ZZZ__FnCalls!F54","v":"Dec 2013"},{"$f":"ZZZ__FnCalls!H43","v":"2013"},{"$f":"ZZZ__FnCalls!F55","v":"Jan 2014"},{"$f":"ZZZ__FnCalls!F56","v":"Feb 2014"},{"$f":"ZZZ__FnCalls!F57","v":"Mar 2014"},{"$f":"ZZZ__FnCalls!F58","v":"Apr 2014"},{"$f":"ZZZ__FnCalls!F59","v":"May 2014"},{"$f":"ZZZ__FnCalls!F60","v":"Jun 2014"},{"$f":"ZZZ__FnCalls!F61","v":"Jul 2014"},{"$f":"ZZZ__FnCalls!F62","v":"Aug 2014"},{"$f":"ZZZ__FnCalls!F63","v":"Sep 2014"},{"$f":"ZZZ__FnCalls!F64","v":"Oct 2014"},{"$f":"ZZZ__FnCalls!F65","v":"Nov 2014"},{"$f":"ZZZ__FnCalls!F66","v":"Dec 2014"},{"$f":"ZZZ__FnCalls!H55","v":"2014"},{"$f":"ZZZ__FnCalls!F67","v":"Jan 2015"},{"$f":"ZZZ__FnCalls!F68","v":"Feb 2015"},{"$f":"ZZZ__FnCalls!F69","v":"Mar 2015"},{"$f":"ZZZ__FnCalls!F70","v":"Apr 2015"},{"$f":"ZZZ__FnCalls!F71","v":"May 2015"},{"$f":"ZZZ__FnCalls!F72","v":"Jun 2015"},{"$f":"ZZZ__FnCalls!F73","v":"Jul 2015"},{"$f":"ZZZ__FnCalls!F74","v":"Aug 2015"},{"$f":"ZZZ__FnCalls!F75","v":"Sep 2015"},{"$f":"ZZZ__FnCalls!F76","v":"Oct 2015"},{"$f":"ZZZ__FnCalls!F77","v":"Nov 2015"},{"$f":"ZZZ__FnCalls!F78","v":"Dec 2015"},{"$f":"ZZZ__FnCalls!H67","v":"2015"},{"$f":"ZZZ__FnCalls!F79","v":"Jan 2016"},{"$f":"ZZZ__FnCalls!F80","v":"Feb 2016"},{"$f":"ZZZ__FnCalls!F81","v":"Mar 2016"},{"$f":"ZZZ__FnCalls!F82","v":"Apr 2016"},{"$f":"ZZZ__FnCalls!F83","v":"May 2016"},{"$f":"ZZZ__FnCalls!F84","v":"Jun 2016"},{"$f":"ZZZ__FnCalls!F85","v":"Jul 2016"},{"$f":"ZZZ__FnCalls!F86","v":"Aug 2016"},{"$f":"ZZZ__FnCalls!F87","v":"Sep 2016"},{"$f":"ZZZ__FnCalls!F88","v":"Oct 2016"},{"$f":"ZZZ__FnCalls!F89","v":"Nov 2016"},{"$f":"ZZZ__FnCalls!F90","v":"Dec 2016"},{"$f":"ZZZ__FnCalls!H79","v":"2016"},{"$f":"ZZZ__FnCalls!F91","v":"Jan 2017"},{"$f":"ZZZ__FnCalls!F92","v":"Feb 2017"},{"$f":"ZZZ__FnCalls!F93","v":"Mar 2017"},{"$f":"ZZZ__FnCalls!F94","v":"Apr 2017"},{"$f":"ZZZ__FnCalls!F95","v":"May 2017"},{"$f":"ZZZ__FnCalls!F96","v":"Jun 2017"},{"$f":"ZZZ__FnCalls!F97","v":"Jul 2017"},{"$f":"ZZZ__FnCalls!F98","v":"Aug 2017"},{"$f":"ZZZ__FnCalls!F99","v":"Sep 2017"},{"$f":"ZZZ__FnCalls!F100","v":"Oct 2017"},{"$f":"ZZZ__FnCalls!F101","v":"Nov 2017"},{"$f":"ZZZ__FnCalls!F102","v":"Dec 2017"},{"$f":"ZZZ__FnCalls!H91","v":"2017"},{"$f":"ZZZ__FnCalls!F103","v":"Jan 2018"},{"$f":"ZZZ__FnCalls!F104","v":"Feb 2018"},{"$f":"ZZZ__FnCalls!F105","v":"Mar 2018"},{"$f":"ZZZ__FnCalls!F106","v":"Apr 2018"},{"$f":"ZZZ__FnCalls!F107","v":"May 2018"},{"$f":"ZZZ__FnCalls!F108","v":"Jun 2018"},{"$f":"ZZZ__FnCalls!F109","v":"Jul 2018"},{"$f":"ZZZ__FnCalls!F110","v":"Aug 2018"},{"$f":"ZZZ__FnCalls!F111","v":"Sep 2018"},{"$f":"ZZZ__FnCalls!F112","v":"Oct 2018"},{"$f":"ZZZ__FnCalls!F113","v":"Nov 2018"},{"$f":"ZZZ__FnCalls!F114","v":"Dec 2018"},{"$f":"ZZZ__FnCalls!H103","v":"2018"},{"$f":"ZZZ__FnCalls!F115","v":"Jan 2019"},{"$f":"ZZZ__FnCalls!F116","v":"Feb 2019"},{"$f":"ZZZ__FnCalls!F117","v":"Mar 2019"},{"$f":"ZZZ__FnCalls!F118","v":"Apr 2019"},{"$f":"ZZZ__FnCalls!F119","v":"May 2019"},{"$f":"ZZZ__FnCalls!F120","v":"Jun 2019"},{"$f":"ZZZ__FnCalls!F121","v":"Jul 2019"},{"$f":"ZZZ__FnCalls!F122","v":"Aug 2019"},{"$f":"ZZZ__FnCalls!F123","v":"Sep 2019"},{"$f":"ZZZ__FnCalls!F124","v":"Oct 2019"},{"$f":"ZZZ__FnCalls!F125","v":"Nov 2019"},{"$f":"ZZZ__FnCalls!F126","v":"Dec 2019"},{"$f":"ZZZ__FnCalls!H115","v":"2019"},{"$f":"ZZZ__FnCalls!F127","v":"Jan 2020"},{"$f":"ZZZ__FnCalls!F128","v":"Feb 2020"},{"$f":"ZZZ__FnCalls!F129","v":"Mar 2020"},{"$f":"ZZZ__FnCalls!F130","v":"Apr 2020"},{"$f":"ZZZ__FnCalls!F131","v":"May 2020"},{"$f":"ZZZ__FnCalls!F132","v":"Jun 2020"},{"$f":"ZZZ__FnCalls!F133","v":"Jul 2020"},{"$f":"ZZZ__FnCalls!F134","v":"Aug 2020"},{"$f":"ZZZ__FnCalls!F135","v":"Sep 2020"},{"$f":"ZZZ__FnCalls!F136","v":"Oct 2020"},{"$f":"ZZZ__FnCalls!F137","v":"Nov 2020"},{"$f":"ZZZ__FnCalls!F138","v":"Dec 2020"},{"$f":"ZZZ__FnCalls!H127","v":"2020"}]
[{"$f":"Labels!B43","v":"Employment"},{"$f":"AVERAGE('Trial 1'!B28,'Trial 2'!B28,'Trial 3'!B28,'Trial 4'!B28,'Trial 5'!B28,'Trial 6'!B28,'Trial 7'!B28,'Trial 8'!B28)","v":{"v":140,"d":"140.00"}},{"$f":"AVERAGE('Trial 1'!C28,'Trial 2'!C28,'Trial 3'!C28,'Trial 4'!C28,'Trial 5'!C28,'Trial 6'!C28,'Trial 7'!C28,'Trial 8'!C28)","v":{"v":140,"d":"140.00"}},{"$f":"AVERAGE('Trial 1'!D28,'Trial 2'!D28,'Trial 3'!D28,'Trial 4'!D28,'Trial 5'!D28,'Trial 6'!D28,'Trial 7'!D28,'Trial 8'!D28)","v":{"v":139.99334541414711,"d":"139.99"}},{"$f":"AVERAGE('Trial 1'!E28,'Trial 2'!E28,'Trial 3'!E28,'Trial 4'!E28,'Trial 5'!E28,'Trial 6'!E28,'Trial 7'!E28,'Trial 8'!E28)","v":{"v":139.9806603266441,"d":"139.98"}},{"$f":"AVERAGE('Trial 1'!F28,'Trial 2'!F28,'Trial 3'!F28,'Trial 4'!F28,'Trial 5'!F28,'Trial 6'!F28,'Trial 7'!F28,'Trial 8'!F28)","v":{"v":139.9626790734902,"d":"139.96"}},{"$f":"AVERAGE('Trial 1'!G28,'Trial 2'!G28,'Trial 3'!G28,'Trial 4'!G28,'Trial 5'!G28,'Trial 6'!G28,'Trial 7'!G28,'Trial 8'!G28)","v":{"v":139.9397853341387,"d":"139.94"}},{"$f":"AVERAGE('Trial 1'!H28,'Trial 2'!H28,'Trial 3'!H28,'Trial 4'!H28,'Trial 5'!H28,'Trial 6'!H28,'Trial 7'!H28,'Trial 8'!H28)","v":{"v":139.9124194678099,"d":"139.91"}},{"$f":"AVERAGE('Trial 1'!I28,'Trial 2'!I28,'Trial 3'!I28,'Trial 4'!I28,'Trial 5'!I28,'Trial 6'!I28,'Trial 7'!I28,'Trial 8'!I28)","v":{"v":139.8803252676436,"d":"139.88"}},{"$f":"AVERAGE('Trial 1'!J28,'Trial 2'!J28,'Trial 3'!J28,'Trial 4'!J28,'Trial 5'!J28,'Trial 6'!J28,'Trial 7'!J28,'Trial 8'!J28)","v":{"v":139.84311691615272,"d":"139.84"}},{"$f":"AVERAGE('Trial 1'!K28,'Trial 2'!K28,'Trial 3'!K28,'Trial 4'!K28,'Trial 5'!K28,'Trial 6'!K28,'Trial 7'!K28,'Trial 8'!K28)","v":{"v":139.80119915111234,"d":"139.80"}},{"$f":"AVERAGE('Trial 1'!L28,'Trial 2'!L28,'Trial 3'!L28,'Trial 4'!L28,'Trial 5'!L28,'Trial 6'!L28,'Trial 7'!L28,'Trial 8'!L28)","v":{"v":139.75475815631216,"d":"139.75"}},{"$f":"AVERAGE('Trial 1'!M28,'Trial 2'!M28,'Trial 3'!M28,'Trial 4'!M28,'Trial 5'!M28,'Trial 6'!M28,'Trial 7'!M28,'Trial 8'!M28)","v":{"v":139.7039358449017,"d":"139.70"}},{"$f":"M39","v":{"v":139.7039358449017,"d":"139.70"}},{"$f":"AVERAGE('Trial 1'!O28,'Trial 2'!O28,'Trial 3'!O28,'Trial 4'!O28,'Trial 5'!O28,'Trial 6'!O28,'Trial 7'!O28,'Trial 8'!O28)","v":{"v":139.64880749069295,"d":"139.65"}},{"$f":"AVERAGE('Trial 1'!P28,'Trial 2'!P28,'Trial 3'!P28,'Trial 4'!P28,'Trial 5'!P28,'Trial 6'!P28,'Trial 7'!P28,'Trial 8'!P28)","v":{"v":139.58933217215372,"d":"139.59"}},{"$f":"AVERAGE('Trial 1'!Q28,'Trial 2'!Q28,'Trial 3'!Q28,'Trial 4'!Q28,'Trial 5'!Q28,'Trial 6'!Q28,'Trial 7'!Q28,'Trial 8'!Q28)","v":{"v":139.52597974482626,"d":"139.53"}},{"$f":"AVERAGE('Trial 1'!R28,'Trial 2'!R28,'Trial 3'!R28,'Trial 4'!R28,'Trial 5'!R28,'Trial 6'!R28,'Trial 7'!R28,'Trial 8'!R28)","v":{"v":139.45877725121903,"d":"139.46"}},{"$f":"AVERAGE('Trial 1'!S28,'Trial 2'!S28,'Trial 3'!S28,'Trial 4'!S28,'Trial 5'!S28,'Trial 6'!S28,'Trial 7'!S28,'Trial 8'!S28)","v":{"v":139.38797728675866,"d":"139.39"}},{"$f":"AVERAGE('Trial 1'!T28,'Trial 2'!T28,'Trial 3'!T28,'Trial 4'!T28,'Trial 5'!T28,'Trial 6'!T28,'Trial 7'!T28,'Trial 8'!T28)","v":{"v":139.31382882127863,"d":"139.31"}},{"$f":"AVERAGE('Trial 1'!U28,'Trial 2'!U28,'Trial 3'!U28,'Trial 4'!U28,'Trial 5'!U28,'Trial 6'!U28,'Trial 7'!U28,'Trial 8'!U28)","v":{"v":139.23531860607514,"d":"139.24"}},{"$f":"AVERAGE('Trial 1'!V28,'Trial 2'!V28,'Trial 3'!V28,'Trial 4'!V28,'Trial 5'!V28,'Trial 6'!V28,'Trial 7'!V28,'Trial 8'!V28)","v":{"v":139.15354237674038,"d":"139.15"}},{"$f":"AVERAGE('Trial 1'!W28,'Trial 2'!W28,'Trial 3'!W28,'Trial 4'!W28,'Trial 5'!W28,'Trial 6'!W28,'Trial 7'!W28,'Trial 8'!W28)","v":{"v":139.06793792182418,"d":"139.07"}},{"$f":"AVERAGE('Trial 1'!X28,'Trial 2'!X28,'Trial 3'!X28,'Trial 4'!X28,'Trial 5'!X28,'Trial 6'!X28,'Trial 7'!X28,'Trial 8'!X28)","v":{"v":138.97871141907936,"d":"138.98"}},{"$f":"AVERAGE('Trial 1'!Y28,'Trial 2'!Y28,'Trial 3'!Y28,'Trial 4'!Y28,'Trial 5'!Y28,'Trial 6'!Y28,'Trial 7'!Y28,'Trial 8'!Y28)","v":{"v":138.8867728289111,"d":"138.89"}},{"$f":"AVERAGE('Trial 1'!Z28,'Trial 2'!Z28,'Trial 3'!Z28,'Trial 4'!Z28,'Trial 5'!Z28,'Trial 6'!Z28,'Trial 7'!Z28,'Trial 8'!Z28)","v":{"v":138.7915848197977,"d":"138.79"}},{"$f":"Z39","v":{"v":138.7915848197977,"d":"138.79"}},{"$f":"AVERAGE('Trial 1'!AB28,'Trial 2'!AB28,'Trial 3'!AB28,'Trial 4'!AB28,'Trial 5'!AB28,'Trial 6'!AB28,'Trial 7'!AB28,'Trial 8'!AB28)","v":{"v":138.6933144622018,"d":"138.69"}},{"$f":"AVERAGE('Trial 1'!AC28,'Trial 2'!AC28,'Trial 3'!AC28,'Trial 4'!AC28,'Trial 5'!AC28,'Trial 6'!AC28,'Trial 7'!AC28,'Trial 8'!AC28)","v":{"v":138.59143312326148,"d":"138.59"}},{"$f":"AVERAGE('Trial 1'!AD28,'Trial 2'!AD28,'Trial 3'!AD28,'Trial 4'!AD28,'Trial 5'!AD28,'Trial 6'!AD28,'Trial 7'!AD28,'Trial 8'!AD28)","v":{"v":138.4867966529707,"d":"138.49"}},{"$f":"AVERAGE('Trial 1'!AE28,'Trial 2'!AE28,'Trial 3'!AE28,'Trial 4'!AE28,'Trial 5'!AE28,'Trial 6'!AE28,'Trial 7'!AE28,'Trial 8'!AE28)","v":{"v":138.37978571229314,"d":"138.38"}},{"$f":"AVERAGE('Trial 1'!AF28,'Trial 2'!AF28,'Trial 3'!AF28,'Trial 4'!AF28,'Trial 5'!AF28,'Trial 6'!AF28,'Trial 7'!AF28,'Trial 8'!AF28)","v":{"v":138.270280175142,"d":"138.27"}},{"$f":"AVERAGE('Trial 1'!AG28,'Trial 2'!AG28,'Trial 3'!AG28,'Trial 4'!AG28,'Trial 5'!AG28,'Trial 6'!AG28,'Trial 7'!AG28,'Trial 8'!AG28)","v":{"v":138.1582785370434,"d":"138.16"}},{"$f":"AVERAGE('Trial 1'!AH28,'Trial 2'!AH28,'Trial 3'!AH28,'Trial 4'!AH28,'Trial 5'!AH28,'Trial 6'!AH28,'Trial 7'!AH28,'Trial 8'!AH28)","v":{"v":138.04340275925682,"d":"138.04"}},{"$f":"AVERAGE('Trial 1'!AI28,'Trial 2'!AI28,'Trial 3'!AI28,'Trial 4'!AI28,'Trial 5'!AI28,'Trial 6'!AI28,'Trial 7'!AI28,'Trial 8'!AI28)","v":{"v":137.92640986404336,"d":"137.93"}},{"$f":"AVERAGE('Trial 1'!AJ28,'Trial 2'!AJ28,'Trial 3'!AJ28,'Trial 4'!AJ28,'Trial 5'!AJ28,'Trial 6'!AJ28,'Trial 7'!AJ28,'Trial 8'!AJ28)","v":{"v":137.8076500036085,"d":"137.81"}},{"$f":"AVERAGE('Trial 1'!AK28,'Trial 2'!AK28,'Trial 3'!AK28,'Trial 4'!AK28,'Trial 5'!AK28,'Trial 6'!AK28,'Trial 7'!AK28,'Trial 8'!AK28)","v":{"v":137.68623503427813,"d":"137.69"}},{"$f":"AVERAGE('Trial 1'!AL28,'Trial 2'!AL28,'Trial 3'!AL28,'Trial 4'!AL28,'Trial 5'!AL28,'Trial 6'!AL28,'Trial 7'!AL28,'Trial 8'!AL28)","v":{"v":137.56284250930582,"d":"137.56"}},{"$f":"AVERAGE('Trial 1'!AM28,'Trial 2'!AM28,'Trial 3'!AM28,'Trial 4'!AM28,'Trial 5'!AM28,'Trial 6'!AM28,'Trial 7'!AM28,'Trial 8'!AM28)","v":{"v":137.43768150511556,"d":"137.44"}},{"$f":"AM39","v":{"v":137.43768150511556,"d":"137.44"}},{"$f":"AVERAGE('Trial 1'!AO28,'Trial 2'!AO28,'Trial 3'!AO28,'Trial 4'!AO28,'Trial 5'!AO28,'Trial 6'!AO28,'Trial 7'!AO28,'Trial 8'!AO28)","v":{"v":137.3109297605215,"d":"137.31"}},{"$f":"AVERAGE('Trial 1'!AP28,'Trial 2'!AP28,'Trial 3'!AP28,'Trial 4'!AP28,'Trial 5'!AP28,'Trial 6'!AP28,'Trial 7'!AP28,'Trial 8'!AP28)","v":{"v":137.18204541950234,"d":"137.18"}},{"$f":"AVERAGE('Trial 1'!AQ28,'Trial 2'!AQ28,'Trial 3'!AQ28,'Trial 4'!AQ28,'Trial 5'!AQ28,'Trial 6'!AQ28,'Trial 7'!AQ28,'Trial 8'!AQ28)","v":{"v":137.0514395107111,"d":"137.05"}},{"$f":"AVERAGE('Trial 1'!AR28,'Trial 2'!AR28,'Trial 3'!AR28,'Trial 4'!AR28,'Trial 5'!AR28,'Trial 6'!AR28,'Trial 7'!AR28,'Trial 8'!AR28)","v":{"v":136.91955143975161,"d":"136.92"}},{"$f":"AVERAGE('Trial 1'!AS28,'Trial 2'!AS28,'Trial 3'!AS28,'Trial 4'!AS28,'Trial 5'!AS28,'Trial 6'!AS28,'Trial 7'!AS28,'Trial 8'!AS28)","v":{"v":136.78576654382232,"d":"136.79"}},{"$f":"AVERAGE('Trial 1'!AT28,'Trial 2'!AT28,'Trial 3'!AT28,'Trial 4'!AT28,'Trial 5'!AT28,'Trial 6'!AT28,'Trial 7'!AT28,'Trial 8'!AT28)","v":{"v":136.65039501776965,"d":"136.65"}},{"$f":"AVERAGE('Trial 1'!AU28,'Trial 2'!AU28,'Trial 3'!AU28,'Trial 4'!AU28,'Trial 5'!AU28,'Trial 6'!AU28,'Trial 7'!AU28,'Trial 8'!AU28)","v":{"v":136.51389007721826,"d":"136.51"}},{"$f":"AVERAGE('Trial 1'!AV28,'Trial 2'!AV28,'Trial 3'!AV28,'Trial 4'!AV28,'Trial 5'!AV28,'Trial 6'!AV28,'Trial 7'!AV28,'Trial 8'!AV28)","v":{"v":136.3759281964233,"d":"136.38"}},{"$f":"AVERAGE('Trial 1'!AW28,'Trial 2'!AW28,'Trial 3'!AW28,'Trial 4'!AW28,'Trial 5'!AW28,'Trial 6'!AW28,'Trial 7'!AW28,'Trial 8'!AW28)","v":{"v":136.23646575791145,"d":"136.24"}},{"$f":"AVERAGE('Trial 1'!AX28,'Trial 2'!AX28,'Trial 3'!AX28,'Trial 4'!AX28,'Trial 5'!AX28,'Trial 6'!AX28,'Trial 7'!AX28,'Trial 8'!AX28)","v":{"v":136.09575010725246,"d":"136.10"}},{"$f":"AVERAGE('Trial 1'!AY28,'Trial 2'!AY28,'Trial 3'!AY28,'Trial 4'!AY28,'Trial 5'!AY28,'Trial 6'!AY28,'Trial 7'!AY28,'Trial 8'!AY28)","v":{"v":135.95342248017204,"d":"135.95"}},{"$f":"AVERAGE('Trial 1'!AZ28,'Trial 2'!AZ28,'Trial 3'!AZ28,'Trial 4'!AZ28,'Trial 5'!AZ28,'Trial 6'!AZ28,'Trial 7'!AZ28,'Trial 8'!AZ28)","v":{"v":135.80980010963123,"d":"135.81"}},{"$f":"AZ39","v":{"v":135.80980010963123,"d":"135.81"}},{"$f":"AVERAGE('Trial 1'!BB28,'Trial 2'!BB28,'Trial 3'!BB28,'Trial 4'!BB28,'Trial 5'!BB28,'Trial 6'!BB28,'Trial 7'!BB28,'Trial 8'!BB28)","v":{"v":135.665123334265,"d":"135.67"}},{"$f":"AVERAGE('Trial 1'!BC28,'Trial 2'!BC28,'Trial 3'!BC28,'Trial 4'!BC28,'Trial 5'!BC28,'Trial 6'!BC28,'Trial 7'!BC28,'Trial 8'!BC28)","v":{"v":135.51891548030287,"d":"135.52"}},{"$f":"AVERAGE('Trial 1'!BD28,'Trial 2'!BD28,'Trial 3'!BD28,'Trial 4'!BD28,'Trial 5'!BD28,'Trial 6'!BD28,'Trial 7'!BD28,'Trial 8'!BD28)","v":{"v":135.37131158842095,"d":"135.37"}},{"$f":"AVERAGE('Trial 1'!BE28,'Trial 2'!BE28,'Trial 3'!BE28,'Trial 4'!BE28,'Trial 5'!BE28,'Trial 6'!BE28,'Trial 7'!BE28,'Trial 8'!BE28)","v":{"v":135.22266212866805,"d":"135.22"}},{"$f":"AVERAGE('Trial 1'!BF28,'Trial 2'!BF28,'Trial 3'!BF28,'Trial 4'!BF28,'Trial 5'!BF28,'Trial 6'!BF28,'Trial 7'!BF28,'Trial 8'!BF28)","v":{"v":135.07314516557793,"d":"135.07"}},{"$f":"AVERAGE('Trial 1'!BG28,'Trial 2'!BG28,'Trial 3'!BG28,'Trial 4'!BG28,'Trial 5'!BG28,'Trial 6'!BG28,'Trial 7'!BG28,'Trial 8'!BG28)","v":{"v":134.92269475594256,"d":"134.92"}},{"$f":"AVERAGE('Trial 1'!BH28,'Trial 2'!BH28,'Trial 3'!BH28,'Trial 4'!BH28,'Trial 5'!BH28,'Trial 6'!BH28,'Trial 7'!BH28,'Trial 8'!BH28)","v":{"v":134.77161096883754,"d":"134.77"}},{"$f":"AVERAGE('Trial 1'!BI28,'Trial 2'!BI28,'Trial 3'!BI28,'Trial 4'!BI28,'Trial 5'!BI28,'Trial 6'!BI28,'Trial 7'!BI28,'Trial 8'!BI28)","v":{"v":134.61993664513574,"d":"134.62"}},{"$f":"AVERAGE('Trial 1'!BJ28,'Trial 2'!BJ28,'Trial 3'!BJ28,'Trial 4'!BJ28,'Trial 5'!BJ28,'Trial 6'!BJ28,'Trial 7'!BJ28,'Trial 8'!BJ28)","v":{"v":134.46713593742564,"d":"134.47"}},{"$f":"AVERAGE('Trial 1'!BK28,'Trial 2'!BK28,'Trial 3'!BK28,'Trial 4'!BK28,'Trial 5'!BK28,'Trial 6'!BK28,'Trial 7'!BK28,'Trial 8'!BK28)","v":{"v":134.31350450066844,"d":"134.31"}},{"$f":"AVERAGE('Trial 1'!BL28,'Trial 2'!BL28,'Trial 3'!BL28,'Trial 4'!BL28,'Trial 5'!BL28,'Trial 6'!BL28,'Trial 7'!BL28,'Trial 8'!BL28)","v":{"v":134.15949215306063,"d":"134.16"}},{"$f":"AVERAGE('Trial 1'!BM28,'Trial 2'!BM28,'Trial 3'!BM28,'Trial 4'!BM28,'Trial 5'!BM28,'Trial 6'!BM28,'Trial 7'!BM28,'Trial 8'!BM28)","v":{"v":134.00481249666723,"d":"134.00"}},{"$f":"BM39","v":{"v":134.00481249666723,"d":"134.00"}},{"$f":"AVERAGE('Trial 1'!BO28,'Trial 2'!BO28,'Trial 3'!BO28,'Trial 4'!BO28,'Trial 5'!BO28,'Trial 6'!BO28,'Trial 7'!BO28,'Trial 8'!BO28)","v":{"v":133.84984235269852,"d":"133.85"}},{"$f":"AVERAGE('Trial 1'!BP28,'Trial 2'!BP28,'Trial 3'!BP28,'Trial 4'!BP28,'Trial 5'!BP28,'Trial 6'!BP28,'Trial 7'!BP28,'Trial 8'!BP28)","v":{"v":133.69433723147884,"d":"133.69"}},{"$f":"AVERAGE('Trial 1'!BQ28,'Trial 2'!BQ28,'Trial 3'!BQ28,'Trial 4'!BQ28,'Trial 5'!BQ28,'Trial 6'!BQ28,'Trial 7'!BQ28,'Trial 8'!BQ28)","v":{"v":133.53830697095398,"d":"133.54"}},{"$f":"AVERAGE('Trial 1'!BR28,'Trial 2'!BR28,'Trial 3'!BR28,'Trial 4'!BR28,'Trial 5'!BR28,'Trial 6'!BR28,'Trial 7'!BR28,'Trial 8'!BR28)","v":{"v":133.38197658009375,"d":"133.38"}},{"$f":"AVERAGE('Trial 1'!BS28,'Trial 2'!BS28,'Trial 3'!BS28,'Trial 4'!BS28,'Trial 5'!BS28,'Trial 6'!BS28,'Trial 7'!BS28,'Trial 8'!BS28)","v":{"v":133.22568621602352,"d":"133.23"}},{"$f":"AVERAGE('Trial 1'!BT28,'Trial 2'!BT28,'Trial 3'!BT28,'Trial 4'!BT28,'Trial 5'!BT28,'Trial 6'!BT28,'Trial 7'!BT28,'Trial 8'!BT28)","v":{"v":133.069361597398,"d":"133.07"}},{"$f":"AVERAGE('Trial 1'!BU28,'Trial 2'!BU28,'Trial 3'!BU28,'Trial 4'!BU28,'Trial 5'!BU28,'Trial 6'!BU28,'Trial 7'!BU28,'Trial 8'!BU28)","v":{"v":132.91254030324643,"d":"132.91"}},{"$f":"AVERAGE('Trial 1'!BV28,'Trial 2'!BV28,'Trial 3'!BV28,'Trial 4'!BV28,'Trial 5'!BV28,'Trial 6'!BV28,'Trial 7'!BV28,'Trial 8'!BV28)","v":{"v":132.7560019784646,"d":"132.76"}},{"$f":"AVERAGE('Trial 1'!BW28,'Trial 2'!BW28,'Trial 3'!BW28,'Trial 4'!BW28,'Trial 5'!BW28,'Trial 6'!BW28,'Trial 7'!BW28,'Trial 8'!BW28)","v":{"v":132.5989807100288,"d":"132.60"}},{"$f":"AVERAGE('Trial 1'!BX28,'Trial 2'!BX28,'Trial 3'!BX28,'Trial 4'!BX28,'Trial 5'!BX28,'Trial 6'!BX28,'Trial 7'!BX28,'Trial 8'!BX28)","v":{"v":132.44170415173838,"d":"132.44"}},{"$f":"AVERAGE('Trial 1'!BY28,'Trial 2'!BY28,'Trial 3'!BY28,'Trial 4'!BY28,'Trial 5'!BY28,'Trial 6'!BY28,'Trial 7'!BY28,'Trial 8'!BY28)","v":{"v":132.28468919464854,"d":"132.28"}},{"$f":"AVERAGE('Trial 1'!BZ28,'Trial 2'!BZ28,'Trial 3'!BZ28,'Trial 4'!BZ28,'Trial 5'!BZ28,'Trial 6'!BZ28,'Trial 7'!BZ28,'Trial 8'!BZ28)","v":{"v":132.12725435797495,"d":"132.13"}},{"$f":"BZ39","v":{"v":132.12725435797495,"d":"132.13"}},{"$f":"AVERAGE('Trial 1'!CB28,'Trial 2'!CB28,'Trial 3'!CB28,'Trial 4'!CB28,'Trial 5'!CB28,'Trial 6'!CB28,'Trial 7'!CB28,'Trial 8'!CB28)","v":{"v":131.97006204082277,"d":"131.97"}},{"$f":"AVERAGE('Trial 1'!CC28,'Trial 2'!CC28,'Trial 3'!CC28,'Trial 4'!CC28,'Trial 5'!CC28,'Trial 6'!CC28,'Trial 7'!CC28,'Trial 8'!CC28)","v":{"v":131.81281948187151,"d":"131.81"}},{"$f":"AVERAGE('Trial 1'!CD28,'Trial 2'!CD28,'Trial 3'!CD28,'Trial 4'!CD28,'Trial 5'!CD28,'Trial 6'!CD28,'Trial 7'!CD28,'Trial 8'!CD28)","v":{"v":131.65546039724754,"d":"131.66"}},{"$f":"AVERAGE('Trial 1'!CE28,'Trial 2'!CE28,'Trial 3'!CE28,'Trial 4'!CE28,'Trial 5'!CE28,'Trial 6'!CE28,'Trial 7'!CE28,'Trial 8'!CE28)","v":{"v":131.49794971586485,"d":"131.50"}},{"$f":"AVERAGE('Trial 1'!CF28,'Trial 2'!CF28,'Trial 3'!CF28,'Trial 4'!CF28,'Trial 5'!CF28,'Trial 6'!CF28,'Trial 7'!CF28,'Trial 8'!CF28)","v":{"v":131.34065384155022,"d":"131.34"}},{"$f":"AVERAGE('Trial 1'!CG28,'Trial 2'!CG28,'Trial 3'!CG28,'Trial 4'!CG28,'Trial 5'!CG28,'Trial 6'!CG28,'Trial 7'!CG28,'Trial 8'!CG28)","v":{"v":131.18307944874704,"d":"131.18"}},{"$f":"AVERAGE('Trial 1'!CH28,'Trial 2'!CH28,'Trial 3'!CH28,'Trial 4'!CH28,'Trial 5'!CH28,'Trial 6'!CH28,'Trial 7'!CH28,'Trial 8'!CH28)","v":{"v":131.0255237372886,"d":"131.03"}},{"$f":"AVERAGE('Trial 1'!CI28,'Trial 2'!CI28,'Trial 3'!CI28,'Trial 4'!CI28,'Trial 5'!CI28,'Trial 6'!CI28,'Trial 7'!CI28,'Trial 8'!CI28)","v":{"v":130.86885902473955,"d":"130.87"}},{"$f":"AVERAGE('Trial 1'!CJ28,'Trial 2'!CJ28,'Trial 3'!CJ28,'Trial 4'!CJ28,'Trial 5'!CJ28,'Trial 6'!CJ28,'Trial 7'!CJ28,'Trial 8'!CJ28)","v":{"v":130.71239594216183,"d":"130.71"}},{"$f":"AVERAGE('Trial 1'!CK28,'Trial 2'!CK28,'Trial 3'!CK28,'Trial 4'!CK28,'Trial 5'!CK28,'Trial 6'!CK28,'Trial 7'!CK28,'Trial 8'!CK28)","v":{"v":130.55632078925328,"d":"130.56"}},{"$f":"AVERAGE('Trial 1'!CL28,'Trial 2'!CL28,'Trial 3'!CL28,'Trial 4'!CL28,'Trial 5'!CL28,'Trial 6'!CL28,'Trial 7'!CL28,'Trial 8'!CL28)","v":{"v":130.40052708584503,"d":"130.40"}},{"$f":"AVERAGE('Trial 1'!CM28,'Trial 2'!CM28,'Trial 3'!CM28,'Trial 4'!CM28,'Trial 5'!CM28,'Trial 6'!CM28,'Trial 7'!CM28,'Trial 8'!CM28)","v":{"v":130.24542620151493,"d":"130.25"}},{"$f":"CM39","v":{"v":130.24542620151493,"d":"130.25"}},{"$f":"AVERAGE('Trial 1'!CO28,'Trial 2'!CO28,'Trial 3'!CO28,'Trial 4'!CO28,'Trial 5'!CO28,'Trial 6'!CO28,'Trial 7'!CO28,'Trial 8'!CO28)","v":{"v":130.0904156411708,"d":"130.09"}},{"$f":"AVERAGE('Trial 1'!CP28,'Trial 2'!CP28,'Trial 3'!CP28,'Trial 4'!CP28,'Trial 5'!CP28,'Trial 6'!CP28,'Trial 7'!CP28,'Trial 8'!CP28)","v":{"v":129.93605692268233,"d":"129.94"}},{"$f":"AVERAGE('Trial 1'!CQ28,'Trial 2'!CQ28,'Trial 3'!CQ28,'Trial 4'!CQ28,'Trial 5'!CQ28,'Trial 6'!CQ28,'Trial 7'!CQ28,'Trial 8'!CQ28)","v":{"v":129.78210802279327,"d":"129.78"}},{"$f":"AVERAGE('Trial 1'!CR28,'Trial 2'!CR28,'Trial 3'!CR28,'Trial 4'!CR28,'Trial 5'!CR28,'Trial 6'!CR28,'Trial 7'!CR28,'Trial 8'!CR28)","v":{"v":129.62860310414763,"d":"129.63"}},{"$f":"AVERAGE('Trial 1'!CS28,'Trial 2'!CS28,'Trial 3'!CS28,'Trial 4'!CS28,'Trial 5'!CS28,'Trial 6'!CS28,'Trial 7'!CS28,'Trial 8'!CS28)","v":{"v":129.4755096318724,"d":"129.48"}},{"$f":"AVERAGE('Trial 1'!CT28,'Trial 2'!CT28,'Trial 3'!CT28,'Trial 4'!CT28,'Trial 5'!CT28,'Trial 6'!CT28,'Trial 7'!CT28,'Trial 8'!CT28)","v":{"v":129.322673095595,"d":"129.32"}},{"$f":"AVERAGE('Trial 1'!CU28,'Trial 2'!CU28,'Trial 3'!CU28,'Trial 4'!CU28,'Trial 5'!CU28,'Trial 6'!CU28,'Trial 7'!CU28,'Trial 8'!CU28)","v":{"v":129.16946712376355,"d":"129.17"}},{"$f":"AVERAGE('Trial 1'!CV28,'Trial 2'!CV28,'Trial 3'!CV28,'Trial 4'!CV28,'Trial 5'!CV28,'Trial 6'!CV28,'Trial 7'!CV28,'Trial 8'!CV28)","v":{"v":129.01622677556932,"d":"129.02"}},{"$f":"AVERAGE('Trial 1'!CW28,'Trial 2'!CW28,'Trial 3'!CW28,'Trial 4'!CW28,'Trial 5'!CW28,'Trial 6'!CW28,'Trial 7'!CW28,'Trial 8'!CW28)","v":{"v":128.86396814591922,"d":"128.86"}},{"$f":"AVERAGE('Trial 1'!CX28,'Trial 2'!CX28,'Trial 3'!CX28,'Trial 4'!CX28,'Trial 5'!CX28,'Trial 6'!CX28,'Trial 7'!CX28,'Trial 8'!CX28)","v":{"v":128.7118938995498,"d":"128.71"}},{"$f":"AVERAGE('Trial 1'!CY28,'Trial 2'!CY28,'Trial 3'!CY28,'Trial 4'!CY28,'Trial 5'!CY28,'Trial 6'!CY28,'Trial 7'!CY28,'Trial 8'!CY28)","v":{"v":128.56007990485676,"d":"128.56"}},{"$f":"AVERAGE('Trial 1'!CZ28,'Trial 2'!CZ28,'Trial 3'!CZ28,'Trial 4'!CZ28,'Trial 5'!CZ28,'Trial 6'!CZ28,'Trial 7'!CZ28,'Trial 8'!CZ28)","v":{"v":128.40841917986,"d":"128.41"}},{"$f":"CZ39","v":{"v":128.40841917986,"d":"128.41"}},{"$f":"AVERAGE('Trial 1'!DB28,'Trial 2'!DB28,'Trial 3'!DB28,'Trial 4'!DB28,'Trial 5'!DB28,'Trial 6'!DB28,'Trial 7'!DB28,'Trial 8'!DB28)","v":{"v":128.25731745441223,"d":"128.26"}},{"$f":"AVERAGE('Trial 1'!DC28,'Trial 2'!DC28,'Trial 3'!DC28,'Trial 4'!DC28,'Trial 5'!DC28,'Trial 6'!DC28,'Trial 7'!DC28,'Trial 8'!DC28)","v":{"v":128.10644403916396,"d":"128.11"}},{"$f":"AVERAGE('Trial 1'!DD28,'Trial 2'!DD28,'Trial 3'!DD28,'Trial 4'!DD28,'Trial 5'!DD28,'Trial 6'!DD28,'Trial 7'!DD28,'Trial 8'!DD28)","v":{"v":127.95621830185928,"d":"127.96"}},{"$f":"AVERAGE('Trial 1'!DE28,'Trial 2'!DE28,'Trial 3'!DE28,'Trial 4'!DE28,'Trial 5'!DE28,'Trial 6'!DE28,'Trial 7'!DE28,'Trial 8'!DE28)","v":{"v":127.80601949248586,"d":"127.81"}},{"$f":"AVERAGE('Trial 1'!DF28,'Trial 2'!DF28,'Trial 3'!DF28,'Trial 4'!DF28,'Trial 5'!DF28,'Trial 6'!DF28,'Trial 7'!DF28,'Trial 8'!DF28)","v":{"v":127.65607552374512,"d":"127.66"}},{"$f":"AVERAGE('Trial 1'!DG28,'Trial 2'!DG28,'Trial 3'!DG28,'Trial 4'!DG28,'Trial 5'!DG28,'Trial 6'!DG28,'Trial 7'!DG28,'Trial 8'!DG28)","v":{"v":127.50674683348163,"d":"127.51"}},{"$f":"AVERAGE('Trial 1'!DH28,'Trial 2'!DH28,'Trial 3'!DH28,'Trial 4'!DH28,'Trial 5'!DH28,'Trial 6'!DH28,'Trial 7'!DH28,'Trial 8'!DH28)","v":{"v":127.35782668676029,"d":"127.36"}},{"$f":"AVERAGE('Trial 1'!DI28,'Trial 2'!DI28,'Trial 3'!DI28,'Trial 4'!DI28,'Trial 5'!DI28,'Trial 6'!DI28,'Trial 7'!DI28,'Trial 8'!DI28)","v":{"v":127.20923273447167,"d":"127.21"}},{"$f":"AVERAGE('Trial 1'!DJ28,'Trial 2'!DJ28,'Trial 3'!DJ28,'Trial 4'!DJ28,'Trial 5'!DJ28,'Trial 6'!DJ28,'Trial 7'!DJ28,'Trial 8'!DJ28)","v":{"v":127.06091511346789,"d":"127.06"}},{"$f":"AVERAGE('Trial 1'!DK28,'Trial 2'!DK28,'Trial 3'!DK28,'Trial 4'!DK28,'Trial 5'!DK28,'Trial 6'!DK28,'Trial 7'!DK28,'Trial 8'!DK28)","v":{"v":126.9127943128236,"d":"126.91"}},{"$f":"AVERAGE('Trial 1'!DL28,'Trial 2'!DL28,'Trial 3'!DL28,'Trial 4'!DL28,'Trial 5'!DL28,'Trial 6'!DL28,'Trial 7'!DL28,'Trial 8'!DL28)","v":{"v":126.76513863871367,"d":"126.77"}},{"$f":"AVERAGE('Trial 1'!DM28,'Trial 2'!DM28,'Trial 3'!DM28,'Trial 4'!DM28,'Trial 5'!DM28,'Trial 6'!DM28,'Trial 7'!DM28,'Trial 8'!DM28)","v":{"v":126.61788936999257,"d":"126.62"}},{"$f":"DM39","v":{"v":126.61788936999257,"d":"126.62"}},{"$f":"AVERAGE('Trial 1'!DO28,'Trial 2'!DO28,'Trial 3'!DO28,'Trial 4'!DO28,'Trial 5'!DO28,'Trial 6'!DO28,'Trial 7'!DO28,'Trial 8'!DO28)","v":{"v":126.4708456414431,"d":"126.47"}},{"$f":"AVERAGE('Trial 1'!DP28,'Trial 2'!DP28,'Trial 3'!DP28,'Trial 4'!DP28,'Trial 5'!DP28,'Trial 6'!DP28,'Trial 7'!DP28,'Trial 8'!DP28)","v":{"v":126.32411259690429,"d":"126.32"}},{"$f":"AVERAGE('Trial 1'!DQ28,'Trial 2'!DQ28,'Trial 3'!DQ28,'Trial 4'!DQ28,'Trial 5'!DQ28,'Trial 6'!DQ28,'Trial 7'!DQ28,'Trial 8'!DQ28)","v":{"v":126.17817737307716,"d":"126.18"}},{"$f":"AVERAGE('Trial 1'!DR28,'Trial 2'!DR28,'Trial 3'!DR28,'Trial 4'!DR28,'Trial 5'!DR28,'Trial 6'!DR28,'Trial 7'!DR28,'Trial 8'!DR28)","v":{"v":126.0325778077391,"d":"126.03"}},{"$f":"AVERAGE('Trial 1'!DS28,'Trial 2'!DS28,'Trial 3'!DS28,'Trial 4'!DS28,'Trial 5'!DS28,'Trial 6'!DS28,'Trial 7'!DS28,'Trial 8'!DS28)","v":{"v":125.8879305656557,"d":"125.89"}},{"$f":"AVERAGE('Trial 1'!DT28,'Trial 2'!DT28,'Trial 3'!DT28,'Trial 4'!DT28,'Trial 5'!DT28,'Trial 6'!DT28,'Trial 7'!DT28,'Trial 8'!DT28)","v":{"v":125.74387123597738,"d":"125.74"}},{"$f":"AVERAGE('Trial 1'!DU28,'Trial 2'!DU28,'Trial 3'!DU28,'Trial 4'!DU28,'Trial 5'!DU28,'Trial 6'!DU28,'Trial 7'!DU28,'Trial 8'!DU28)","v":{"v":125.60035616923655,"d":"125.60"}},{"$f":"AVERAGE('Trial 1'!DV28,'Trial 2'!DV28,'Trial 3'!DV28,'Trial 4'!DV28,'Trial 5'!DV28,'Trial 6'!DV28,'Trial 7'!DV28,'Trial 8'!DV28)","v":{"v":125.45776720063665,"d":"125.46"}},{"$f":"AVERAGE('Trial 1'!DW28,'Trial 2'!DW28,'Trial 3'!DW28,'Trial 4'!DW28,'Trial 5'!DW28,'Trial 6'!DW28,'Trial 7'!DW28,'Trial 8'!DW28)","v":{"v":125.31585119805945,"d":"125.32"}},{"$f":"AVERAGE('Trial 1'!DX28,'Trial 2'!DX28,'Trial 3'!DX28,'Trial 4'!DX28,'Trial 5'!DX28,'Trial 6'!DX28,'Trial 7'!DX28,'Trial 8'!DX28)","v":{"v":125.17471986207593,"d":"125.17"}},{"$f":"AVERAGE('Trial 1'!DY28,'Trial 2'!DY28,'Trial 3'!DY28,'Trial 4'!DY28,'Trial 5'!DY28,'Trial 6'!DY28,'Trial 7'!DY28,'Trial 8'!DY28)","v":{"v":125.03420940650796,"d":"125.03"}},{"$f":"AVERAGE('Trial 1'!DZ28,'Trial 2'!DZ28,'Trial 3'!DZ28,'Trial 4'!DZ28,'Trial 5'!DZ28,'Trial 6'!DZ28,'Trial 7'!DZ28,'Trial 8'!DZ28)","v":{"v":124.8942620887381,"d":"124.89"}},{"$f":"DZ39","v":{"v":124.8942620887381,"d":"124.89"}},{"$f":"AVERAGE('Trial 1'!EB28,'Trial 2'!EB28,'Trial 3'!EB28,'Trial 4'!EB28,'Trial 5'!EB28,'Trial 6'!EB28,'Trial 7'!EB28,'Trial 8'!EB28)","v":{"v":124.75491596009412,"d":"124.75"}},{"$f":"AVERAGE('Trial 1'!EC28,'Trial 2'!EC28,'Trial 3'!EC28,'Trial 4'!EC28,'Trial 5'!EC28,'Trial 6'!EC28,'Trial 7'!EC28,'Trial 8'!EC28)","v":{"v":124.61568071765733,"d":"124.62"}},{"$f":"AVERAGE('Trial 1'!ED28,'Trial 2'!ED28,'Trial 3'!ED28,'Trial 4'!ED28,'Trial 5'!ED28,'Trial 6'!ED28,'Trial 7'!ED28,'Trial 8'!ED28)","v":{"v":124.47719785108195,"d":"124.48"}},{"$f":"AVERAGE('Trial 1'!EE28,'Trial 2'!EE28,'Trial 3'!EE28,'Trial 4'!EE28,'Trial 5'!EE28,'Trial 6'!EE28,'Trial 7'!EE28,'Trial 8'!EE28)","v":{"v":124.33889134514493,"d":"124.34"}},{"$f":"AVERAGE('Trial 1'!EF28,'Trial 2'!EF28,'Trial 3'!EF28,'Trial 4'!EF28,'Trial 5'!EF28,'Trial 6'!EF28,'Trial 7'!EF28,'Trial 8'!EF28)","v":{"v":124.20095117980055,"d":"124.20"}},{"$f":"AVERAGE('Trial 1'!EG28,'Trial 2'!EG28,'Trial 3'!EG28,'Trial 4'!EG28,'Trial 5'!EG28,'Trial 6'!EG28,'Trial 7'!EG28,'Trial 8'!EG28)","v":{"v":124.06365256577654,"d":"124.06"}},{"$f":"AVERAGE('Trial 1'!EH28,'Trial 2'!EH28,'Trial 3'!EH28,'Trial 4'!EH28,'Trial 5'!EH28,'Trial 6'!EH28,'Trial 7'!EH28,'Trial 8'!EH28)","v":{"v":123.92704843324869,"d":"123.93"}},{"$f":"AVERAGE('Trial 1'!EI28,'Trial 2'!EI28,'Trial 3'!EI28,'Trial 4'!EI28,'Trial 5'!EI28,'Trial 6'!EI28,'Trial 7'!EI28,'Trial 8'!EI28)","v":{"v":123.79074156811335,"d":"123.79"}},{"$f":"AVERAGE('Trial 1'!EJ28,'Trial 2'!EJ28,'Trial 3'!EJ28,'Trial 4'!EJ28,'Trial 5'!EJ28,'Trial 6'!EJ28,'Trial 7'!EJ28,'Trial 8'!EJ28)","v":{"v":123.65486456163346,"d":"123.65"}},{"$f":"AVERAGE('Trial 1'!EK28,'Trial 2'!EK28,'Trial 3'!EK28,'Trial 4'!EK28,'Trial 5'!EK28,'Trial 6'!EK28,'Trial 7'!EK28,'Trial 8'!EK28)","v":{"v":123.51888769457585,"d":"123.52"}},{"$f":"AVERAGE('Trial 1'!EL28,'Trial 2'!EL28,'Trial 3'!EL28,'Trial 4'!EL28,'Trial 5'!EL28,'Trial 6'!EL28,'Trial 7'!EL28,'Trial 8'!EL28)","v":{"v":123.38337848655733,"d":"123.38"}},{"$f":"AVERAGE('Trial 1'!EM28,'Trial 2'!EM28,'Trial 3'!EM28,'Trial 4'!EM28,'Trial 5'!EM28,'Trial 6'!EM28,'Trial 7'!EM28,'Trial 8'!EM28)","v":{"v":123.24866221589977,"d":"123.25"}},{"$f":"EM39","v":{"v":123.24866221589977,"d":"123.25"}}]
[{"$f":"Labels!B44","v":"Employment std dev"},{"$f":"STDEV('Trial 1'!B28,'Trial 2'!B28,'Trial 3'!B28,'Trial 4'!B28,'Trial 5'!B28,'Trial 6'!B28,'Trial 7'!B28,'Trial 8'!B28)","v":{"v":0,"d":"0.00"}},{"$f":"STDEV('Trial 1'!C28,'Trial 2'!C28,'Trial 3'!C28,'Trial 4'!C28,'Trial 5'!C28,'Trial 6'!C28,'Trial 7'!C28,'Trial 8'!C28)","v":{"v":0,"d":"0.00"}},{"$f":"STDEV('Trial 1'!D28,'Trial 2'!D28,'Trial 3'!D28,'Trial 4'!D28,'Trial 5'!D28,'Trial 6'!D28,'Trial 7'!D28,'Trial 8'!D28)","v":{"v":5.9111771478653709E-4,"d":"0.00"}},{"$f":"STDEV('Trial 1'!E28,'Trial 2'!E28,'Trial 3'!E28,'Trial 4'!E28,'Trial 5'!E28,'Trial 6'!E28,'Trial 7'!E28,'Trial 8'!E28)","v":{"v":1.068062464344918E-3,"d":"0.00"}},{"$f":"STDEV('Trial 1'!F28,'Trial 2'!F28,'Trial 3'!F28,'Trial 4'!F28,'Trial 5'!F28,'Trial 6'!F28,'Trial 7'!F28,'Trial 8'!F28)","v":{"v":0.002014930219709678,"d":"0.00"}},{"$f":"STDEV('Trial 1'!G28,'Trial 2'!G28,'Trial 3'!G28,'Trial 4'!G28,'Trial 5'!G28,'Trial 6'!G28,'Trial 7'!G28,'Trial 8'!G28)","v":{"v":2.968527007967842E-3,"d":"0.00"}},{"$f":"STDEV('Trial 1'!H28,'Trial 2'!H28,'Trial 3'!H28,'Trial 4'!H28,'Trial 5'!H28,'Trial 6'!H28,'Trial 7'!H28,'Trial 8'!H28)","v":{"v":0.004315861294986556,"d":"0.00"}},{"$f":"STDEV('Trial 1'!I28,'Trial 2'!I28,'Trial 3'!I28,'Trial 4'!I28,'Trial 5'!I28,'Trial 6'!I28,'Trial 7'!I28,'Trial 8'!I28)","v":{"v":0.005855999485373567,"d":"0.01"}},{"$f":"STDEV('Trial 1'!J28,'Trial 2'!J28,'Trial 3'!J28,'Trial 4'!J28,'Trial 5'!J28,'Trial 6'!J28,'Trial 7'!J28,'Trial 8'!J28)","v":{"v":0.007586994413287442,"d":"0.01"}},{"$f":"STDEV('Trial 1'!K28,'Trial 2'!K28,'Trial 3'!K28,'Trial 4'!K28,'Trial 5'!K28,'Trial 6'!K28,'Trial 7'!K28,'Trial 8'!K28)","v":{"v":0.009295867793995842,"d":"0.01"}},{"$f":"STDEV('Trial 1'!L28,'Trial 2'!L28,'Trial 3'!L28,'Trial 4'!L28,'Trial 5'!L28,'Trial 6'!L28,'Trial 7'!L28,'Trial 8'!L28)","v":{"v":0.010751735161736518,"d":"0.01"}},{"$f":"STDEV('Trial 1'!M28,'Trial 2'!M28,'Trial 3'!M28,'Trial 4'!M28,'Trial 5'!M28,'Trial 6'!M28,'Trial 7'!M28,'Trial 8'!M28)","v":{"v":0.01262886243628564,"d":"0.01"}},{"$f":"M40","v":{"v":0.01262886243628564,"d":"0.01"}},{"$f":"STDEV('Trial 1'!O28,'Trial 2'!O28,'Trial 3'!O28,'Trial 4'!O28,'Trial 5'!O28,'Trial 6'!O28,'Trial 7'!O28,'Trial 8'!O28)","v":{"v":0.01492439053022593,"d":"0.01"}},{"$f":"STDEV('Trial 1'!P28,'Trial 2'!P28,'Trial 3'!P28,'Trial 4'!P28,'Trial 5'!P28,'Trial 6'!P28,'Trial 7'!P28,'Trial 8'!P28)","v":{"v":0.01742455595248652,"d":"0.02"}},{"$f":"STDEV('Trial 1'!Q28,'Trial 2'!Q28,'Trial 3'!Q28,'Trial 4'!Q28,'Trial 5'!Q28,'Trial 6'!Q28,'Trial 7'!Q28,'Trial 8'!Q28)","v":{"v":0.01995638131485522,"d":"0.02"}},{"$f":"STDEV('Trial 1'!R28,'Trial 2'!R28,'Trial 3'!R28,'Trial 4'!R28,'Trial 5'!R28,'Trial 6'!R28,'Trial 7'!R28,'Trial 8'!R28)","v":{"v":0.02255794720095348,"d":"0.02"}},{"$f":"STDEV('Trial 1'!S28,'Trial 2'!S28,'Trial 3'!S28,'Trial 4'!S28,'Trial 5'!S28,'Trial 6'!S28,'Trial 7'!S28,'Trial 8'!S28)","v":{"v":0.02481666276194261,"d":"0.02"}},{"$f":"STDEV('Trial 1'!T28,'Trial 2'!T28,'Trial 3'!T28,'Trial 4'!T28,'Trial 5'!T28,'Trial 6'!T28,'Trial 7'!T28,'Trial 8'!T28)","v":{"v":0.027288722434009795,"d":"0.03"}},{"$f":"STDEV('Trial 1'!U28,'Trial 2'!U28,'Trial 3'!U28,'Trial 4'!U28,'Trial 5'!U28,'Trial 6'!U28,'Trial 7'!U28,'Trial 8'!U28)","v":{"v":0.029821262176536068,"d":"0.03"}},{"$f":"STDEV('Trial 1'!V28,'Trial 2'!V28,'Trial 3'!V28,'Trial 4'!V28,'Trial 5'!V28,'Trial 6'!V28,'Trial 7'!V28,'Trial 8'!V28)","v":{"v":0.03188949992553029,"d":"0.03"}},{"$f":"STDEV('Trial 1'!W28,'Trial 2'!W28,'Trial 3'!W28,'Trial 4'!W28,'Trial 5'!W28,'Trial 6'!W28,'Trial 7'!W28,'Trial 8'!W28)","v":{"v":0.03370797476165954,"d":"0.03"}},{"$f":"STDEV('Trial 1'!X28,'Trial 2'!X28,'Trial 3'!X28,'Trial 4'!X28,'Trial 5'!X28,'Trial 6'!X28,'Trial 7'!X28,'Trial 8'!X28)","v":{"v":0.035514266709270895,"d":"0.04"}},{"$f":"STDEV('Trial 1'!Y28,'Trial 2'!Y28,'Trial 3'!Y28,'Trial 4'!Y28,'Trial 5'!Y28,'Trial 6'!Y28,'Trial 7'!Y28,'Trial 8'!Y28)","v":{"v":0.03719914230138663,"d":"0.04"}},{"$f":"STDEV('Trial 1'!Z28,'Trial 2'!Z28,'Trial 3'!Z28,'Trial 4'!Z28,'Trial 5'!Z28,'Trial 6'!Z28,'Trial 7'!Z28,'Trial 8'!Z28)","v":{"v":0.03946321219643316,"d":"0.04"}},{"$f":"Z40","v":{"v":0.03946321219643316,"d":"0.04"}},{"$f":"STDEV('Trial 1'!AB28,'Trial 2'!AB28,'Trial 3'!AB28,'Trial 4'!AB28,'Trial 5'!AB28,'Trial 6'!AB28,'Trial 7'!AB28,'Trial 8'!AB28)","v":{"v":0.042053120036219575,"d":"0.04"}},{"$f":"STDEV('Trial 1'!AC28,'Trial 2'!AC28,'Trial 3'!AC28,'Trial 4'!AC28,'Trial 5'!AC28,'Trial 6'!AC28,'Trial 7'!AC28,'Trial 8'!AC28)","v":{"v":0.0444055013939222,"d":"0.04"}},{"$f":"STDEV('Trial 1'!AD28,'Trial 2'!AD28,'Trial 3'!AD28,'Trial 4'!AD28,'Trial 5'!AD28,'Trial 6'!AD28,'Trial 7'!AD28,'Trial 8'!AD28)","v":{"v":0.04639494921572967,"d":"0.05"}},{"$f":"STDEV('Trial 1'!AE28,'Trial 2'!AE28,'Trial 3'!AE28,'Trial 4'!AE28,'Trial 5'!AE28,'Trial 6'!AE28,'Trial 7'!AE28,'Trial 8'!AE28)","v":{"v":0.04858278371352872,"d":"0.05"}},{"$f":"STDEV('Trial 1'!AF28,'Trial 2'!AF28,'Trial 3'!AF28,'Trial 4'!AF28,'Trial 5'!AF28,'Trial 6'!AF28,'Trial 7'!AF28,'Trial 8'!AF28)","v":{"v":0.05075772179499166,"d":"0.05"}},{"$f":"STDEV('Trial 1'!AG28,'Trial 2'!AG28,'Trial 3'!AG28,'Trial 4'!AG28,'Trial 5'!AG28,'Trial 6'!AG28,'Trial 7'!AG28,'Trial 8'!AG28)","v":{"v":0.053404373629601536,"d":"0.05"}},{"$f":"STDEV('Trial 1'!AH28,'Trial 2'!AH28,'Trial 3'!AH28,'Trial 4'!AH28,'Trial 5'!AH28,'Trial 6'!AH28,'Trial 7'!AH28,'Trial 8'!AH28)","v":{"v":0.056393141098704455,"d":"0.06"}},{"$f":"STDEV('Trial 1'!AI28,'Trial 2'!AI28,'Trial 3'!AI28,'Trial 4'!AI28,'Trial 5'!AI28,'Trial 6'!AI28,'Trial 7'!AI28,'Trial 8'!AI28)","v":{"v":0.05938998185521823,"d":"0.06"}},{"$f":"STDEV('Trial 1'!AJ28,'Trial 2'!AJ28,'Trial 3'!AJ28,'Trial 4'!AJ28,'Trial 5'!AJ28,'Trial 6'!AJ28,'Trial 7'!AJ28,'Trial 8'!AJ28)","v":{"v":0.0624839688916306,"d":"0.06"}},{"$f":"STDEV('Trial 1'!AK28,'Trial 2'!AK28,'Trial 3'!AK28,'Trial 4'!AK28,'Trial 5'!AK28,'Trial 6'!AK28,'Trial 7'!AK28,'Trial 8'!AK28)","v":{"v":0.06546983809453584,"d":"0.07"}},{"$f":"STDEV('Trial 1'!AL28,'Trial 2'!AL28,'Trial 3'!AL28,'Trial 4'!AL28,'Trial 5'!AL28,'Trial 6'!AL28,'Trial 7'!AL28,'Trial 8'!AL28)","v":{"v":0.06838197134278394,"d":"0.07"}},{"$f":"STDEV('Trial 1'!AM28,'Trial 2'!AM28,'Trial 3'!AM28,'Trial 4'!AM28,'Trial 5'!AM28,'Trial 6'!AM28,'Trial 7'!AM28,'Trial 8'!AM28)","v":{"v":0.07118252695429612,"d":"0.07"}},{"$f":"AM40","v":{"v":0.07118252695429612,"d":"0.07"}},{"$f":"STDEV('Trial 1'!AO28,'Trial 2'!AO28,'Trial 3'!AO28,'Trial 4'!AO28,'Trial 5'!AO28,'Trial 6'!AO28,'Trial 7'!AO28,'Trial 8'!AO28)","v":{"v":0.07403279990250862,"d":"0.07"}},{"$f":"STDEV('Trial 1'!AP28,'Trial 2'!AP28,'Trial 3'!AP28,'Trial 4'!AP28,'Trial 5'!AP28,'Trial 6'!AP28,'Trial 7'!AP28,'Trial 8'!AP28)","v":{"v":0.07726555580845226,"d":"0.08"}},{"$f":"STDEV('Trial 1'!AQ28,'Trial 2'!AQ28,'Trial 3'!AQ28,'Trial 4'!AQ28,'Trial 5'!AQ28,'Trial 6'!AQ28,'Trial 7'!AQ28,'Trial 8'!AQ28)","v":{"v":0.08013318538248283,"d":"0.08"}},{"$f":"STDEV('Trial 1'!AR28,'Trial 2'!AR28,'Trial 3'!AR28,'Trial 4'!AR28,'Trial 5'!AR28,'Trial 6'!AR28,'Trial 7'!AR28,'Trial 8'!AR28)","v":{"v":0.08289955877599768,"d":"0.08"}},{"$f":"STDEV('Trial 1'!AS28,'Trial 2'!AS28,'Trial 3'!AS28,'Trial 4'!AS28,'Trial 5'!AS28,'Trial 6'!AS28,'Trial 7'!AS28,'Trial 8'!AS28)","v":{"v":0.08578588731178635,"d":"0.09"}},{"$f":"STDEV('Trial 1'!AT28,'Trial 2'!AT28,'Trial 3'!AT28,'Trial 4'!AT28,'Trial 5'!AT28,'Trial 6'!AT28,'Trial 7'!AT28,'Trial 8'!AT28)","v":{"v":0.08902984441696364,"d":"0.09"}},{"$f":"STDEV('Trial 1'!AU28,'Trial 2'!AU28,'Trial 3'!AU28,'Trial 4'!AU28,'Trial 5'!AU28,'Trial 6'!AU28,'Trial 7'!AU28,'Trial 8'!AU28)","v":{"v":0.09227999894965747,"d":"0.09"}},{"$f":"STDEV('Trial 1'!AV28,'Trial 2'!AV28,'Trial 3'!AV28,'Trial 4'!AV28,'Trial 5'!AV28,'Trial 6'!AV28,'Trial 7'!AV28,'Trial 8'!AV28)","v":{"v":0.09517045924108382,"d":"0.10"}},{"$f":"STDEV('Trial 1'!AW28,'Trial 2'!AW28,'Trial 3'!AW28,'Trial 4'!AW28,'Trial 5'!AW28,'Trial 6'!AW28,'Trial 7'!AW28,'Trial 8'!AW28)","v":{"v":0.09758016363096224,"d":"0.10"}},{"$f":"STDEV('Trial 1'!AX28,'Trial 2'!AX28,'Trial 3'!AX28,'Trial 4'!AX28,'Trial 5'!AX28,'Trial 6'!AX28,'Trial 7'!AX28,'Trial 8'!AX28)","v":{"v":0.09984650108391784,"d":"0.10"}},{"$f":"STDEV('Trial 1'!AY28,'Trial 2'!AY28,'Trial 3'!AY28,'Trial 4'!AY28,'Trial 5'!AY28,'Trial 6'!AY28,'Trial 7'!AY28,'Trial 8'!AY28)","v":{"v":0.10188821270779705,"d":"0.10"}},{"$f":"STDEV('Trial 1'!AZ28,'Trial 2'!AZ28,'Trial 3'!AZ28,'Trial 4'!AZ28,'Trial 5'!AZ28,'Trial 6'!AZ28,'Trial 7'!AZ28,'Trial 8'!AZ28)","v":{"v":0.10367244048040453,"d":"0.10"}},{"$f":"AZ40","v":{"v":0.10367244048040453,"d":"0.10"}},{"$f":"STDEV('Trial 1'!BB28,'Trial 2'!BB28,'Trial 3'!BB28,'Trial 4'!BB28,'Trial 5'!BB28,'Trial 6'!BB28,'Trial 7'!BB28,'Trial 8'!BB28)","v":{"v":0.10547634018838788,"d":"0.11"}},{"$f":"STDEV('Trial 1'!BC28,'Trial 2'!BC28,'Trial 3'!BC28,'Trial 4'!BC28,'Trial 5'!BC28,'Trial 6'!BC28,'Trial 7'!BC28,'Trial 8'!BC28)","v":{"v":0.10750608435756688,"d":"0.11"}},{"$f":"STDEV('Trial 1'!BD28,'Trial 2'!BD28,'Trial 3'!BD28,'Trial 4'!BD28,'Trial 5'!BD28,'Trial 6'!BD28,'Trial 7'!BD28,'Trial 8'!BD28)","v":{"v":0.10890203260325693,"d":"0.11"}},{"$f":"STDEV('Trial 1'!BE28,'Trial 2'!BE28,'Trial 3'!BE28,'Trial 4'!BE28,'Trial 5'!BE28,'Trial 6'!BE28,'Trial 7'!BE28,'Trial 8'!BE28)","v":{"v":0.11001586238401025,"d":"0.11"}},{"$f":"STDEV('Trial 1'!BF28,'Trial 2'!BF28,'Trial 3'!BF28,'Trial 4'!BF28,'Trial 5'!BF28,'Trial 6'!BF28,'Trial 7'!BF28,'Trial 8'!BF28)","v":{"v":0.11139306551234368,"d":"0.11"}},{"$f":"STDEV('Trial 1'!BG28,'Trial 2'!BG28,'Trial 3'!BG28,'Trial 4'!BG28,'Trial 5'!BG28,'Trial 6'!BG28,'Trial 7'!BG28,'Trial 8'!BG28)","v":{"v":0.11273388533481947,"d":"0.11"}},{"$f":"STDEV('Trial 1'!BH28,'Trial 2'!BH28,'Trial 3'!BH28,'Trial 4'!BH28,'Trial 5'!BH28,'Trial 6'!BH28,'Trial 7'!BH28,'Trial 8'!BH28)","v":{"v":0.11437528585597953,"d":"0.11"}},{"$f":"STDEV('Trial 1'!BI28,'Trial 2'!BI28,'Trial 3'!BI28,'Trial 4'!BI28,'Trial 5'!BI28,'Trial 6'!BI28,'Trial 7'!BI28,'Trial 8'!BI28)","v":{"v":0.11633743662893954,"d":"0.12"}},{"$f":"STDEV('Trial 1'!BJ28,'Trial 2'!BJ28,'Trial 3'!BJ28,'Trial 4'!BJ28,'Trial 5'!BJ28,'Trial 6'!BJ28,'Trial 7'!BJ28,'Trial 8'!BJ28)","v":{"v":0.11875441608947471,"d":"0.12"}},{"$f":"STDEV('Trial 1'!BK28,'Trial 2'!BK28,'Trial 3'!BK28,'Trial 4'!BK28,'Trial 5'!BK28,'Trial 6'!BK28,'Trial 7'!BK28,'Trial 8'!BK28)","v":{"v":0.12094637468712592,"d":"0.12"}},{"$f":"STDEV('Trial 1'!BL28,'Trial 2'!BL28,'Trial 3'!BL28,'Trial 4'!BL28,'Trial 5'!BL28,'Trial 6'!BL28,'Trial 7'!BL28,'Trial 8'!BL28)","v":{"v":0.1233212315727578,"d":"0.12"}},{"$f":"STDEV('Trial 1'!BM28,'Trial 2'!BM28,'Trial 3'!BM28,'Trial 4'!BM28,'Trial 5'!BM28,'Trial 6'!BM28,'Trial 7'!BM28,'Trial 8'!BM28)","v":{"v":0.12520442975277052,"d":"0.13"}},{"$f":"BM40","v":{"v":0.12520442975277052,"d":"0.13"}},{"$f":"STDEV('Trial 1'!BO28,'Trial 2'!BO28,'Trial 3'!BO28,'Trial 4'!BO28,'Trial 5'!BO28,'Trial 6'!BO28,'Trial 7'!BO28,'Trial 8'!BO28)","v":{"v":0.12646588737121195,"d":"0.13"}},{"$f":"STDEV('Trial 1'!BP28,'Trial 2'!BP28,'Trial 3'!BP28,'Trial 4'!BP28,'Trial 5'!BP28,'Trial 6'!BP28,'Trial 7'!BP28,'Trial 8'!BP28)","v":{"v":0.12761301089630703,"d":"0.13"}},{"$f":"STDEV('Trial 1'!BQ28,'Trial 2'!BQ28,'Trial 3'!BQ28,'Trial 4'!BQ28,'Trial 5'!BQ28,'Trial 6'!BQ28,'Trial 7'!BQ28,'Trial 8'!BQ28)","v":{"v":0.12821174066666766,"d":"0.13"}},{"$f":"STDEV('Trial 1'!BR28,'Trial 2'!BR28,'Trial 3'!BR28,'Trial 4'!BR28,'Trial 5'!BR28,'Trial 6'!BR28,'Trial 7'!BR28,'Trial 8'!BR28)","v":{"v":0.12811031951501084,"d":"0.13"}},{"$f":"STDEV('Trial 1'!BS28,'Trial 2'!BS28,'Trial 3'!BS28,'Trial 4'!BS28,'Trial 5'!BS28,'Trial 6'!BS28,'Trial 7'!BS28,'Trial 8'!BS28)","v":{"v":0.128313934911641,"d":"0.13"}},{"$f":"STDEV('Trial 1'!BT28,'Trial 2'!BT28,'Trial 3'!BT28,'Trial 4'!BT28,'Trial 5'!BT28,'Trial 6'!BT28,'Trial 7'!BT28,'Trial 8'!BT28)","v":{"v":0.1288577095810877,"d":"0.13"}},{"$f":"STDEV('Trial 1'!BU28,'Trial 2'!BU28,'Trial 3'!BU28,'Trial 4'!BU28,'Trial 5'!BU28,'Trial 6'!BU28,'Trial 7'!BU28,'Trial 8'!BU28)","v":{"v":0.12959109541198788,"d":"0.13"}},{"$f":"STDEV('Trial 1'!BV28,'Trial 2'!BV28,'Trial 3'!BV28,'Trial 4'!BV28,'Trial 5'!BV28,'Trial 6'!BV28,'Trial 7'!BV28,'Trial 8'!BV28)","v":{"v":0.13029135942141865,"d":"0.13"}},{"$f":"STDEV('Trial 1'!BW28,'Trial 2'!BW28,'Trial 3'!BW28,'Trial 4'!BW28,'Trial 5'!BW28,'Trial 6'!BW28,'Trial 7'!BW28,'Trial 8'!BW28)","v":{"v":0.13145441744719277,"d":"0.13"}},{"$f":"STDEV('Trial 1'!BX28,'Trial 2'!BX28,'Trial 3'!BX28,'Trial 4'!BX28,'Trial 5'!BX28,'Trial 6'!BX28,'Trial 7'!BX28,'Trial 8'!BX28)","v":{"v":0.13298511052965412,"d":"0.13"}},{"$f":"STDEV('Trial 1'!BY28,'Trial 2'!BY28,'Trial 3'!BY28,'Trial 4'!BY28,'Trial 5'!BY28,'Trial 6'!BY28,'Trial 7'!BY28,'Trial 8'!BY28)","v":{"v":0.13515697597880144,"d":"0.14"}},{"$f":"STDEV('Trial 1'!BZ28,'Trial 2'!BZ28,'Trial 3'!BZ28,'Trial 4'!BZ28,'Trial 5'!BZ28,'Trial 6'!BZ28,'Trial 7'!BZ28,'Trial 8'!BZ28)","v":{"v":0.13706570560946638,"d":"0.14"}},{"$f":"BZ40","v":{"v":0.13706570560946638,"d":"0.14"}},{"$f":"STDEV('Trial 1'!CB28,'Trial 2'!CB28,'Trial 3'!CB28,'Trial 4'!CB28,'Trial 5'!CB28,'Trial 6'!CB28,'Trial 7'!CB28,'Trial 8'!CB28)","v":{"v":0.13847460678369697,"d":"0.14"}},{"$f":"STDEV('Trial 1'!CC28,'Trial 2'!CC28,'Trial 3'!CC28,'Trial 4'!CC28,'Trial 5'!CC28,'Trial 6'!CC28,'Trial 7'!CC28,'Trial 8'!CC28)","v":{"v":0.13956674694164925,"d":"0.14"}},{"$f":"STDEV('Trial 1'!CD28,'Trial 2'!CD28,'Trial 3'!CD28,'Trial 4'!CD28,'Trial 5'!CD28,'Trial 6'!CD28,'Trial 7'!CD28,'Trial 8'!CD28)","v":{"v":0.14071505617866342,"d":"0.14"}},{"$f":"STDEV('Trial 1'!CE28,'Trial 2'!CE28,'Trial 3'!CE28,'Trial 4'!CE28,'Trial 5'!CE28,'Trial 6'!CE28,'Trial 7'!CE28,'Trial 8'!CE28)","v":{"v":0.1418513430613571,"d":"0.14"}},{"$f":"STDEV('Trial 1'!CF28,'Trial 2'!CF28,'Trial 3'!CF28,'Trial 4'!CF28,'Trial 5'!CF28,'Trial 6'!CF28,'Trial 7'!CF28,'Trial 8'!CF28)","v":{"v":0.1433665521844824,"d":"0.14"}},{"$f":"STDEV('Trial 1'!CG28,'Trial 2'!CG28,'Trial 3'!CG28,'Trial 4'!CG28,'Trial 5'!CG28,'Trial 6'!CG28,'Trial 7'!CG28,'Trial 8'!CG28)","v":{"v":0.14464063663293328,"d":"0.14"}},{"$f":"STDEV('Trial 1'!CH28,'Trial 2'!CH28,'Trial 3'!CH28,'Trial 4'!CH28,'Trial 5'!CH28,'Trial 6'!CH28,'Trial 7'!CH28,'Trial 8'!CH28)","v":{"v":0.14574060243301543,"d":"0.15"}},{"$f":"STDEV('Trial 1'!CI28,'Trial 2'!CI28,'Trial 3'!CI28,'Trial 4'!CI28,'Trial 5'!CI28,'Trial 6'!CI28,'Trial 7'!CI28,'Trial 8'!CI28)","v":{"v":0.14712893190994075,"d":"0.15"}},{"$f":"STDEV('Trial 1'!CJ28,'Trial 2'!CJ28,'Trial 3'!CJ28,'Trial 4'!CJ28,'Trial 5'!CJ28,'Trial 6'!CJ28,'Trial 7'!CJ28,'Trial 8'!CJ28)","v":{"v":0.14796828042450547,"d":"0.15"}},{"$f":"STDEV('Trial 1'!CK28,'Trial 2'!CK28,'Trial 3'!CK28,'Trial 4'!CK28,'Trial 5'!CK28,'Trial 6'!CK28,'Trial 7'!CK28,'Trial 8'!CK28)","v":{"v":0.14841077973236763,"d":"0.15"}},{"$f":"STDEV('Trial 1'!CL28,'Trial 2'!CL28,'Trial 3'!CL28,'Trial 4'!CL28,'Trial 5'!CL28,'Trial 6'!CL28,'Trial 7'!CL28,'Trial 8'!CL28)","v":{"v":0.14926575385315177,"d":"0.15"}},{"$f":"STDEV('Trial 1'!CM28,'Trial 2'!CM28,'Trial 3'!CM28,'Trial 4'!CM28,'Trial 5'!CM28,'Trial 6'!CM28,'Trial 7'!CM28,'Trial 8'!CM28)","v":{"v":0.14998649517498644,"d":"0.15"}},{"$f":"CM40","v":{"v":0.14998649517498644,"d":"0.15"}},{"$f":"STDEV('Trial 1'!CO28,'Trial 2'!CO28,'Trial 3'!CO28,'Trial 4'!CO28,'Trial 5'!CO28,'Trial 6'!CO28,'Trial 7'!CO28,'Trial 8'!CO28)","v":{"v":0.15060605005429784,"d":"0.15"}},{"$f":"STDEV('Trial 1'!CP28,'Trial 2'!CP28,'Trial 3'!CP28,'Trial 4'!CP28,'Trial 5'!CP28,'Trial 6'!CP28,'Trial 7'!CP28,'Trial 8'!CP28)","v":{"v":0.15150425305076945,"d":"0.15"}},{"$f":"STDEV('Trial 1'!CQ28,'Trial 2'!CQ28,'Trial 3'!CQ28,'Trial 4'!CQ28,'Trial 5'!CQ28,'Trial 6'!CQ28,'Trial 7'!CQ28,'Trial 8'!CQ28)","v":{"v":0.15279766218065002,"d":"0.15"}},{"$f":"STDEV('Trial 1'!CR28,'Trial 2'!CR28,'Trial 3'!CR28,'Trial 4'!CR28,'Trial 5'!CR28,'Trial 6'!CR28,'Trial 7'!CR28,'Trial 8'!CR28)","v":{"v":0.15416171517519076,"d":"0.15"}},{"$f":"STDEV('Trial 1'!CS28,'Trial 2'!CS28,'Trial 3'!CS28,'Trial 4'!CS28,'Trial 5'!CS28,'Trial 6'!CS28,'Trial 7'!CS28,'Trial 8'!CS28)","v":{"v":0.15541569417025275,"d":"0.16"}},{"$f":"STDEV('Trial 1'!CT28,'Trial 2'!CT28,'Trial 3'!CT28,'Trial 4'!CT28,'Trial 5'!CT28,'Trial 6'!CT28,'Trial 7'!CT28,'Trial 8'!CT28)","v":{"v":0.15685152366750316,"d":"0.16"}},{"$f":"STDEV('Trial 1'!CU28,'Trial 2'!CU28,'Trial 3'!CU28,'Trial 4'!CU28,'Trial 5'!CU28,'Trial 6'!CU28,'Trial 7'!CU28,'Trial 8'!CU28)","v":{"v":0.15791129593869788,"d":"0.16"}},{"$f":"STDEV('Trial 1'!CV28,'Trial 2'!CV28,'Trial 3'!CV28,'Trial 4'!CV28,'Trial 5'!CV28,'Trial 6'!CV28,'Trial 7'!CV28,'Trial 8'!CV28)","v":{"v":0.15915113426311484,"d":"0.16"}},{"$f":"STDEV('Trial 1'!CW28,'Trial 2'!CW28,'Trial 3'!CW28,'Trial 4'!CW28,'Trial 5'!CW28,'Trial 6'!CW28,'Trial 7'!CW28,'Trial 8'!CW28)","v":{"v":0.16036279490909483,"d":"0.16"}},{"$f":"STDEV('Trial 1'!CX28,'Trial 2'!CX28,'Trial 3'!CX28,'Trial 4'!CX28,'Trial 5'!CX28,'Trial 6'!CX28,'Trial 7'!CX28,'Trial 8'!CX28)","v":{"v":0.16139855049240756,"d":"0.16"}},{"$f":"STDEV('Trial 1'!CY28,'Trial 2'!CY28,'Trial 3'!CY28,'Trial 4'!CY28,'Trial 5'!CY28,'Trial 6'!CY28,'Trial 7'!CY28,'Trial 8'!CY28)","v":{"v":0.16219332277285425,"d":"0.16"}},{"$f":"STDEV('Trial 1'!CZ28,'Trial 2'!CZ28,'Trial 3'!CZ28,'Trial 4'!CZ28,'Trial 5'!CZ28,'Trial 6'!CZ28,'Trial 7'!CZ28,'Trial 8'!CZ28)","v":{"v":0.16339382012276482,"d":"0.16"}},{"$f":"CZ40","v":{"v":0.16339382012276482,"d":"0.16"}},{"$f":"STDEV('Trial 1'!DB28,'Trial 2'!DB28,'Trial 3'!DB28,'Trial 4'!DB28,'Trial 5'!DB28,'Trial 6'!DB28,'Trial 7'!DB28,'Trial 8'!DB28)","v":{"v":0.1647926304902982,"d":"0.16"}},{"$f":"STDEV('Trial 1'!DC28,'Trial 2'!DC28,'Trial 3'!DC28,'Trial 4'!DC28,'Trial 5'!DC28,'Trial 6'!DC28,'Trial 7'!DC28,'Trial 8'!DC28)","v":{"v":0.16579380094044097,"d":"0.17"}},{"$f":"STDEV('Trial 1'!DD28,'Trial 2'!DD28,'Trial 3'!DD28,'Trial 4'!DD28,'Trial 5'!DD28,'Trial 6'!DD28,'Trial 7'!DD28,'Trial 8'!DD28)","v":{"v":0.1676787215314186,"d":"0.17"}},{"$f":"STDEV('Trial 1'!DE28,'Trial 2'!DE28,'Trial 3'!DE28,'Trial 4'!DE28,'Trial 5'!DE28,'Trial 6'!DE28,'Trial 7'!DE28,'Trial 8'!DE28)","v":{"v":0.16972496810388535,"d":"0.17"}},{"$f":"STDEV('Trial 1'!DF28,'Trial 2'!DF28,'Trial 3'!DF28,'Trial 4'!DF28,'Trial 5'!DF28,'Trial 6'!DF28,'Trial 7'!DF28,'Trial 8'!DF28)","v":{"v":0.17137211380826764,"d":"0.17"}},{"$f":"STDEV('Trial 1'!DG28,'Trial 2'!DG28,'Trial 3'!DG28,'Trial 4'!DG28,'Trial 5'!DG28,'Trial 6'!DG28,'Trial 7'!DG28,'Trial 8'!DG28)","v":{"v":0.17274384517550276,"d":"0.17"}},{"$f":"STDEV('Trial 1'!DH28,'Trial 2'!DH28,'Trial 3'!DH28,'Trial 4'!DH28,'Trial 5'!DH28,'Trial 6'!DH28,'Trial 7'!DH28,'Trial 8'!DH28)","v":{"v":0.17384782920876665,"d":"0.17"}},{"$f":"STDEV('Trial 1'!DI28,'Trial 2'!DI28,'Trial 3'!DI28,'Trial 4'!DI28,'Trial 5'!DI28,'Trial 6'!DI28,'Trial 7'!DI28,'Trial 8'!DI28)","v":{"v":0.17450870561817436,"d":"0.17"}},{"$f":"STDEV('Trial 1'!DJ28,'Trial 2'!DJ28,'Trial 3'!DJ28,'Trial 4'!DJ28,'Trial 5'!DJ28,'Trial 6'!DJ28,'Trial 7'!DJ28,'Trial 8'!DJ28)","v":{"v":0.1749688532151081,"d":"0.17"}},{"$f":"STDEV('Trial 1'!DK28,'Trial 2'!DK28,'Trial 3'!DK28,'Trial 4'!DK28,'Trial 5'!DK28,'Trial 6'!DK28,'Trial 7'!DK28,'Trial 8'!DK28)","v":{"v":0.17487577036517768,"d":"0.17"}},{"$f":"STDEV('Trial 1'!DL28,'Trial 2'!DL28,'Trial 3'!DL28,'Trial 4'!DL28,'Trial 5'!DL28,'Trial 6'!DL28,'Trial 7'!DL28,'Trial 8'!DL28)","v":{"v":0.175039800548153,"d":"0.18"}},{"$f":"STDEV('Trial 1'!DM28,'Trial 2'!DM28,'Trial 3'!DM28,'Trial 4'!DM28,'Trial 5'!DM28,'Trial 6'!DM28,'Trial 7'!DM28,'Trial 8'!DM28)","v":{"v":0.1749266766055141,"d":"0.17"}},{"$f":"DM40","v":{"v":0.1749266766055141,"d":"0.17"}},{"$f":"STDEV('Trial 1'!DO28,'Trial 2'!DO28,'Trial 3'!DO28,'Trial 4'!DO28,'Trial 5'!DO28,'Trial 6'!DO28,'Trial 7'!DO28,'Trial 8'!DO28)","v":{"v":0.1751035701837319,"d":"0.18"}},{"$f":"STDEV('Trial 1'!DP28,'Trial 2'!DP28,'Trial 3'!DP28,'Trial 4'!DP28,'Trial 5'!DP28,'Trial 6'!DP28,'Trial 7'!DP28,'Trial 8'!DP28)","v":{"v":0.1753062940316722,"d":"0.18"}},{"$f":"STDEV('Trial 1'!DQ28,'Trial 2'!DQ28,'Trial 3'!DQ28,'Trial 4'!DQ28,'Trial 5'!DQ28,'Trial 6'!DQ28,'Trial 7'!DQ28,'Trial 8'!DQ28)","v":{"v":0.17485803260325947,"d":"0.17"}},{"$f":"STDEV('Trial 1'!DR28,'Trial 2'!DR28,'Trial 3'!DR28,'Trial 4'!DR28,'Trial 5'!DR28,'Trial 6'!DR28,'Trial 7'!DR28,'Trial 8'!DR28)","v":{"v":0.17384038529113705,"d":"0.17"}},{"$f":"STDEV('Trial 1'!DS28,'Trial 2'!DS28,'Trial 3'!DS28,'Trial 4'!DS28,'Trial 5'!DS28,'Trial 6'!DS28,'Trial 7'!DS28,'Trial 8'!DS28)","v":{"v":0.17303045645881712,"d":"0.17"}},{"$f":"STDEV('Trial 1'!DT28,'Trial 2'!DT28,'Trial 3'!DT28,'Trial 4'!DT28,'Trial 5'!DT28,'Trial 6'!DT28,'Trial 7'!DT28,'Trial 8'!DT28)","v":{"v":0.17257499800512519,"d":"0.17"}},{"$f":"STDEV('Trial 1'!DU28,'Trial 2'!DU28,'Trial 3'!DU28,'Trial 4'!DU28,'Trial 5'!DU28,'Trial 6'!DU28,'Trial 7'!DU28,'Trial 8'!DU28)","v":{"v":0.17198139352817288,"d":"0.17"}},{"$f":"STDEV('Trial 1'!DV28,'Trial 2'!DV28,'Trial 3'!DV28,'Trial 4'!DV28,'Trial 5'!DV28,'Trial 6'!DV28,'Trial 7'!DV28,'Trial 8'!DV28)","v":{"v":0.17155818680688772,"d":"0.17"}},{"$f":"STDEV('Trial 1'!DW28,'Trial 2'!DW28,'Trial 3'!DW28,'Trial 4'!DW28,'Trial 5'!DW28,'Trial 6'!DW28,'Trial 7'!DW28,'Trial 8'!DW28)","v":{"v":0.17160021059288394,"d":"0.17"}},{"$f":"STDEV('Trial 1'!DX28,'Trial 2'!DX28,'Trial 3'!DX28,'Trial 4'!DX28,'Trial 5'!DX28,'Trial 6'!DX28,'Trial 7'!DX28,'Trial 8'!DX28)","v":{"v":0.17177387651790327,"d":"0.17"}},{"$f":"STDEV('Trial 1'!DY28,'Trial 2'!DY28,'Trial 3'!DY28,'Trial 4'!DY28,'Trial 5'!DY28,'Trial 6'!DY28,'Trial 7'!DY28,'Trial 8'!DY28)","v":{"v":0.17242803892723366,"d":"0.17"}},{"$f":"STDEV('Trial 1'!DZ28,'Trial 2'!DZ28,'Trial 3'!DZ28,'Trial 4'!DZ28,'Trial 5'!DZ28,'Trial 6'!DZ28,'Trial 7'!DZ28,'Trial 8'!DZ28)","v":{"v":0.172517122831962,"d":"0.17"}},{"$f":"DZ40","v":{"v":0.172517122831962,"d":"0.17"}},{"$f":"STDEV('Trial 1'!EB28,'Trial 2'!EB28,'Trial 3'!EB28,'Trial 4'!EB28,'Trial 5'!EB28,'Trial 6'!EB28,'Trial 7'!EB28,'Trial 8'!EB28)","v":{"v":0.1726305040245342,"d":"0.17"}},{"$f":"STDEV('Trial 1'!EC28,'Trial 2'!EC28,'Trial 3'!EC28,'Trial 4'!EC28,'Trial 5'!EC28,'Trial 6'!EC28,'Trial 7'!EC28,'Trial 8'!EC28)","v":{"v":0.17285945760076138,"d":"0.17"}},{"$f":"STDEV('Trial 1'!ED28,'Trial 2'!ED28,'Trial 3'!ED28,'Trial 4'!ED28,'Trial 5'!ED28,'Trial 6'!ED28,'Trial 7'!ED28,'Trial 8'!ED28)","v":{"v":0.17274286193400862,"d":"0.17"}},{"$f":"STDEV('Trial 1'!EE28,'Trial 2'!EE28,'Trial 3'!EE28,'Trial 4'!EE28,'Trial 5'!EE28,'Trial 6'!EE28,'Trial 7'!EE28,'Trial 8'!EE28)","v":{"v":0.17247408948525955,"d":"0.17"}},{"$f":"STDEV('Trial 1'!EF28,'Trial 2'!EF28,'Trial 3'!EF28,'Trial 4'!EF28,'Trial 5'!EF28,'Trial 6'!EF28,'Trial 7'!EF28,'Trial 8'!EF28)","v":{"v":0.1725970541267645,"d":"0.17"}},{"$f":"STDEV('Trial 1'!EG28,'Trial 2'!EG28,'Trial 3'!EG28,'Trial 4'!EG28,'Trial 5'!EG28,'Trial 6'!EG28,'Trial 7'!EG28,'Trial 8'!EG28)","v":{"v":0.17257220369795653,"d":"0.17"}},{"$f":"STDEV('Trial 1'!EH28,'Trial 2'!EH28,'Trial 3'!EH28,'Trial 4'!EH28,'Trial 5'!EH28,'Trial 6'!EH28,'Trial 7'!EH28,'Trial 8'!EH28)","v":{"v":0.17207697276591485,"d":"0.17"}},{"$f":"STDEV('Trial 1'!EI28,'Trial 2'!EI28,'Trial 3'!EI28,'Trial 4'!EI28,'Trial 5'!EI28,'Trial 6'!EI28,'Trial 7'!EI28,'Trial 8'!EI28)","v":{"v":0.1718857207437655,"d":"0.17"}},{"$f":"STDEV('Trial 1'!EJ28,'Trial 2'!EJ28,'Trial 3'!EJ28,'Trial 4'!EJ28,'Trial 5'!EJ28,'Trial 6'!EJ28,'Trial 7'!EJ28,'Trial 8'!EJ28)","v":{"v":0.1720225335965253,"d":"0.17"}},{"$f":"STDEV('Trial 1'!EK28,'Trial 2'!EK28,'Trial 3'!EK28,'Trial 4'!EK28,'Trial 5'!EK28,'Trial 6'!EK28,'Trial 7'!EK28,'Trial 8'!EK28)","v":{"v":0.17246956186420248,"d":"0.17"}},{"$f":"STDEV('Trial 1'!EL28,'Trial 2'!EL28,'Trial 3'!EL28,'Trial 4'!EL28,'Trial 5'!EL28,'Trial 6'!EL28,'Trial 7'!EL28,'Trial 8'!EL28)","v":{"v":0.1733337172971975,"d":"0.17"}},{"$f":"STDEV('Trial 1'!EM28,'Trial 2'!EM28,'Trial 3'!EM28,'Trial 4'!EM28,'Trial 5'!EM28,'Trial 6'!EM28,'Trial 7'!EM28,'Trial 8'!EM28)","v":{"v":0.17380348914584623,"d":"0.17"}},{"$f":"EM40","v":{"v":0.17380348914584623,"d":"0.17"}}]
[]
[{"$f":"Labels!B40","v":"Desired Employment"},{"$f":"AVERAGE('Trial 1'!B29,'Trial 2'!B29,'Trial 3'!B29,'Trial 4'!B29,'Trial 5'!B29,'Trial 6'!B29,'Trial 7'!B29,'Trial 8'!B29)","v":{"v":140,"d":"140.00"}},{"$f":"AVERAGE('Trial 1'!C29,'Trial 2'!C29,'Trial 3'!C29,'Trial 4'!C29,'Trial 5'!C29,'Trial 6'!C29,'Trial 7'!C29,'Trial 8'!C29)","v":{"v":139.6166958548739,"d":"139.62"}},{"$f":"AVERAGE('Trial 1'!D29,'Trial 2'!D29,'Trial 3'!D29,'Trial 4'!D29,'Trial 5'!D29,'Trial 6'!D29,'Trial 7'!D29,'Trial 8'!D29)","v":{"v":139.26268437397457,"d":"139.26"}},{"$f":"AVERAGE('Trial 1'!E29,'Trial 2'!E29,'Trial 3'!E29,'Trial 4'!E29,'Trial 5'!E29,'Trial 6'!E29,'Trial 7'!E29,'Trial 8'!E29)","v":{"v":138.94494014497783,"d":"138.94"}},{"$f":"AVERAGE('Trial 1'!F29,'Trial 2'!F29,'Trial 3'!F29,'Trial 4'!F29,'Trial 5'!F29,'Trial 6'!F29,'Trial 7'!F29,'Trial 8'!F29)","v":{"v":138.64399968684342,"d":"138.64"}},{"$f":"AVERAGE('Trial 1'!G29,'Trial 2'!G29,'Trial 3'!G29,'Trial 4'!G29,'Trial 5'!G29,'Trial 6'!G29,'Trial 7'!G29,'Trial 8'!G29)","v":{"v":138.3635114336002,"d":"138.36"}},{"$f":"AVERAGE('Trial 1'!H29,'Trial 2'!H29,'Trial 3'!H29,'Trial 4'!H29,'Trial 5'!H29,'Trial 6'!H29,'Trial 7'!H29,'Trial 8'!H29)","v":{"v":138.06379353823073,"d":"138.06"}},{"$f":"AVERAGE('Trial 1'!I29,'Trial 2'!I29,'Trial 3'!I29,'Trial 4'!I29,'Trial 5'!I29,'Trial 6'!I29,'Trial 7'!I29,'Trial 8'!I29)","v":{"v":137.7371242217691,"d":"137.74"}},{"$f":"AVERAGE('Trial 1'!J29,'Trial 2'!J29,'Trial 3'!J29,'Trial 4'!J29,'Trial 5'!J29,'Trial 6'!J29,'Trial 7'!J29,'Trial 8'!J29)","v":{"v":137.42865364982708,"d":"137.43"}},{"$f":"AVERAGE('Trial 1'!K29,'Trial 2'!K29,'Trial 3'!K29,'Trial 4'!K29,'Trial 5'!K29,'Trial 6'!K29,'Trial 7'!K29,'Trial 8'!K29)","v":{"v":137.12619785062157,"d":"137.13"}},{"$f":"AVERAGE('Trial 1'!L29,'Trial 2'!L29,'Trial 3'!L29,'Trial 4'!L29,'Trial 5'!L29,'Trial 6'!L29,'Trial 7'!L29,'Trial 8'!L29)","v":{"v":136.82739301906912,"d":"136.83"}},{"$f":"AVERAGE('Trial 1'!M29,'Trial 2'!M29,'Trial 3'!M29,'Trial 4'!M29,'Trial 5'!M29,'Trial 6'!M29,'Trial 7'!M29,'Trial 8'!M29)","v":{"v":136.52854264247944,"d":"136.53"}},{"$f":"SUM(B42:M42)","v":{"v":1658.543536416267,"d":"1,658.54"}},{"$f":"AVERAGE('Trial 1'!O29,'Trial 2'!O29,'Trial 3'!O29,'Trial 4'!O29,'Trial 5'!O29,'Trial 6'!O29,'Trial 7'!O29,'Trial 8'!O29)","v":{"v":136.2230291428313,"d":"136.22"}},{"$f":"AVERAGE('Trial 1'!P29,'Trial 2'!P29,'Trial 3'!P29,'Trial 4'!P29,'Trial 5'!P29,'Trial 6'!P29,'Trial 7'!P29,'Trial 8'!P29)","v":{"v":135.9402323580921,"d":"135.94"}},{"$f":"AVERAGE('Trial 1'!Q29,'Trial 2'!Q29,'Trial 3'!Q29,'Trial 4'!Q29,'Trial 5'!Q29,'Trial 6'!Q29,'Trial 7'!Q29,'Trial 8'!Q29)","v":{"v":135.65511611305155,"d":"135.66"}},{"$f":"AVERAGE('Trial 1'!R29,'Trial 2'!R29,'Trial 3'!R29,'Trial 4'!R29,'Trial 5'!R29,'Trial 6'!R29,'Trial 7'!R29,'Trial 8'!R29)","v":{"v":135.38069929830095,"d":"135.38"}},{"$f":"AVERAGE('Trial 1'!S29,'Trial 2'!S29,'Trial 3'!S29,'Trial 4'!S29,'Trial 5'!S29,'Trial 6'!S29,'Trial 7'!S29,'Trial 8'!S29)","v":{"v":135.11702567510824,"d":"135.12"}},{"$f":"AVERAGE('Trial 1'!T29,'Trial 2'!T29,'Trial 3'!T29,'Trial 4'!T29,'Trial 5'!T29,'Trial 6'!T29,'Trial 7'!T29,'Trial 8'!T29)","v":{"v":134.79164042555655,"d":"134.79"}},{"$f":"AVERAGE('Trial 1'!U29,'Trial 2'!U29,'Trial 3'!U29,'Trial 4'!U29,'Trial 5'!U29,'Trial 6'!U29,'Trial 7'!U29,'Trial 8'!U29)","v":{"v":134.52500779639544,"d":"134.53"}},{"$f":"AVERAGE('Trial 1'!V29,'Trial 2'!V29,'Trial 3'!V29,'Trial 4'!V29,'Trial 5'!V29,'Trial 6'!V29,'Trial 7'!V29,'Trial 8'!V29)","v":{"v":134.22272577356716,"d":"134.22"}},{"$f":"AVERAGE('Trial 1'!W29,'Trial 2'!W29,'Trial 3'!W29,'Trial 4'!W29,'Trial 5'!W29,'Trial 6'!W29,'Trial 7'!W29,'Trial 8'!W29)","v":{"v":133.9284913637232,"d":"133.93"}},{"$f":"AVERAGE('Trial 1'!X29,'Trial 2'!X29,'Trial 3'!X29,'Trial 4'!X29,'Trial 5'!X29,'Trial 6'!X29,'Trial 7'!X29,'Trial 8'!X29)","v":{"v":133.683048625386,"d":"133.68"}},{"$f":"AVERAGE('Trial 1'!Y29,'Trial 2'!Y29,'Trial 3'!Y29,'Trial 4'!Y29,'Trial 5'!Y29,'Trial 6'!Y29,'Trial 7'!Y29,'Trial 8'!Y29)","v":{"v":133.4039435039798,"d":"133.40"}},{"$f":"AVERAGE('Trial 1'!Z29,'Trial 2'!Z29,'Trial 3'!Z29,'Trial 4'!Z29,'Trial 5'!Z29,'Trial 6'!Z29,'Trial 7'!Z29,'Trial 8'!Z29)","v":{"v":133.13121222227446,"d":"133.13"}},{"$f":"SUM(O42:Z42)","v":{"v":1616.0021722982665,"d":"1,616.00"}},{"$f":"AVERAGE('Trial 1'!AB29,'Trial 2'!AB29,'Trial 3'!AB29,'Trial 4'!AB29,'Trial 5'!AB29,'Trial 6'!AB29,'Trial 7'!AB29,'Trial 8'!AB29)","v":{"v":132.8249493392378,"d":"132.82"}},{"$f":"AVERAGE('Trial 1'!AC29,'Trial 2'!AC29,'Trial 3'!AC29,'Trial 4'!AC29,'Trial 5'!AC29,'Trial 6'!AC29,'Trial 7'!AC29,'Trial 8'!AC29)","v":{"v":132.5643724345116,"d":"132.56"}},{"$f":"AVERAGE('Trial 1'!AD29,'Trial 2'!AD29,'Trial 3'!AD29,'Trial 4'!AD29,'Trial 5'!AD29,'Trial 6'!AD29,'Trial 7'!AD29,'Trial 8'!AD29)","v":{"v":132.32296646994376,"d":"132.32"}},{"$f":"AVERAGE('Trial 1'!AE29,'Trial 2'!AE29,'Trial 3'!AE29,'Trial 4'!AE29,'Trial 5'!AE29,'Trial 6'!AE29,'Trial 7'!AE29,'Trial 8'!AE29)","v":{"v":132.07226677238924,"d":"132.07"}},{"$f":"AVERAGE('Trial 1'!AF29,'Trial 2'!AF29,'Trial 3'!AF29,'Trial 4'!AF29,'Trial 5'!AF29,'Trial 6'!AF29,'Trial 7'!AF29,'Trial 8'!AF29)","v":{"v":131.81898582066157,"d":"131.82"}},{"$f":"AVERAGE('Trial 1'!AG29,'Trial 2'!AG29,'Trial 3'!AG29,'Trial 4'!AG29,'Trial 5'!AG29,'Trial 6'!AG29,'Trial 7'!AG29,'Trial 8'!AG29)","v":{"v":131.54143373653542,"d":"131.54"}},{"$f":"AVERAGE('Trial 1'!AH29,'Trial 2'!AH29,'Trial 3'!AH29,'Trial 4'!AH29,'Trial 5'!AH29,'Trial 6'!AH29,'Trial 7'!AH29,'Trial 8'!AH29)","v":{"v":131.30461199496253,"d":"131.30"}},{"$f":"AVERAGE('Trial 1'!AI29,'Trial 2'!AI29,'Trial 3'!AI29,'Trial 4'!AI29,'Trial 5'!AI29,'Trial 6'!AI29,'Trial 7'!AI29,'Trial 8'!AI29)","v":{"v":131.0858419029949,"d":"131.09"}},{"$f":"AVERAGE('Trial 1'!AJ29,'Trial 2'!AJ29,'Trial 3'!AJ29,'Trial 4'!AJ29,'Trial 5'!AJ29,'Trial 6'!AJ29,'Trial 7'!AJ29,'Trial 8'!AJ29)","v":{"v":130.8141477701782,"d":"130.81"}},{"$f":"AVERAGE('Trial 1'!AK29,'Trial 2'!AK29,'Trial 3'!AK29,'Trial 4'!AK29,'Trial 5'!AK29,'Trial 6'!AK29,'Trial 7'!AK29,'Trial 8'!AK29)","v":{"v":130.57882559587475,"d":"130.58"}},{"$f":"AVERAGE('Trial 1'!AL29,'Trial 2'!AL29,'Trial 3'!AL29,'Trial 4'!AL29,'Trial 5'!AL29,'Trial 6'!AL29,'Trial 7'!AL29,'Trial 8'!AL29)","v":{"v":130.35356866794743,"d":"130.35"}},{"$f":"AVERAGE('Trial 1'!AM29,'Trial 2'!AM29,'Trial 3'!AM29,'Trial 4'!AM29,'Trial 5'!AM29,'Trial 6'!AM29,'Trial 7'!AM29,'Trial 8'!AM29)","v":{"v":130.13678101649722,"d":"130.14"}},{"$f":"SUM(AB42:AM42)","v":{"v":1577.4187515217345,"d":"1,577.42"}},{"$f":"AVERAGE('Trial 1'!AO29,'Trial 2'!AO29,'Trial 3'!AO29,'Trial 4'!AO29,'Trial 5'!AO29,'Trial 6'!AO29,'Trial 7'!AO29,'Trial 8'!AO29)","v":{"v":129.88719171781838,"d":"129.89"}},{"$f":"AVERAGE('Trial 1'!AP29,'Trial 2'!AP29,'Trial 3'!AP29,'Trial 4'!AP29,'Trial 5'!AP29,'Trial 6'!AP29,'Trial 7'!AP29,'Trial 8'!AP29)","v":{"v":129.65914507312746,"d":"129.66"}},{"$f":"AVERAGE('Trial 1'!AQ29,'Trial 2'!AQ29,'Trial 3'!AQ29,'Trial 4'!AQ29,'Trial 5'!AQ29,'Trial 6'!AQ29,'Trial 7'!AQ29,'Trial 8'!AQ29)","v":{"v":129.45468662344348,"d":"129.45"}},{"$f":"AVERAGE('Trial 1'!AR29,'Trial 2'!AR29,'Trial 3'!AR29,'Trial 4'!AR29,'Trial 5'!AR29,'Trial 6'!AR29,'Trial 7'!AR29,'Trial 8'!AR29)","v":{"v":129.2135414342253,"d":"129.21"}},{"$f":"AVERAGE('Trial 1'!AS29,'Trial 2'!AS29,'Trial 3'!AS29,'Trial 4'!AS29,'Trial 5'!AS29,'Trial 6'!AS29,'Trial 7'!AS29,'Trial 8'!AS29)","v":{"v":128.9883666431885,"d":"128.99"}},{"$f":"AVERAGE('Trial 1'!AT29,'Trial 2'!AT29,'Trial 3'!AT29,'Trial 4'!AT29,'Trial 5'!AT29,'Trial 6'!AT29,'Trial 7'!AT29,'Trial 8'!AT29)","v":{"v":128.7877104420092,"d":"128.79"}},{"$f":"AVERAGE('Trial 1'!AU29,'Trial 2'!AU29,'Trial 3'!AU29,'Trial 4'!AU29,'Trial 5'!AU29,'Trial 6'!AU29,'Trial 7'!AU29,'Trial 8'!AU29)","v":{"v":128.56728574342944,"d":"128.57"}},{"$f":"AVERAGE('Trial 1'!AV29,'Trial 2'!AV29,'Trial 3'!AV29,'Trial 4'!AV29,'Trial 5'!AV29,'Trial 6'!AV29,'Trial 7'!AV29,'Trial 8'!AV29)","v":{"v":128.34289173813872,"d":"128.34"}},{"$f":"AVERAGE('Trial 1'!AW29,'Trial 2'!AW29,'Trial 3'!AW29,'Trial 4'!AW29,'Trial 5'!AW29,'Trial 6'!AW29,'Trial 7'!AW29,'Trial 8'!AW29)","v":{"v":128.13124427995297,"d":"128.13"}},{"$f":"AVERAGE('Trial 1'!AX29,'Trial 2'!AX29,'Trial 3'!AX29,'Trial 4'!AX29,'Trial 5'!AX29,'Trial 6'!AX29,'Trial 7'!AX29,'Trial 8'!AX29)","v":{"v":127.89767878742131,"d":"127.90"}},{"$f":"AVERAGE('Trial 1'!AY29,'Trial 2'!AY29,'Trial 3'!AY29,'Trial 4'!AY29,'Trial 5'!AY29,'Trial 6'!AY29,'Trial 7'!AY29,'Trial 8'!AY29)","v":{"v":127.68077393702094,"d":"127.68"}},{"$f":"AVERAGE('Trial 1'!AZ29,'Trial 2'!AZ29,'Trial 3'!AZ29,'Trial 4'!AZ29,'Trial 5'!AZ29,'Trial 6'!AZ29,'Trial 7'!AZ29,'Trial 8'!AZ29)","v":{"v":127.47641784853582,"d":"127.48"}},{"$f":"SUM(AO42:AZ42)","v":{"v":1544.0869342683116,"d":"1,544.09"}},{"$f":"AVERAGE('Trial 1'!BB29,'Trial 2'!BB29,'Trial 3'!BB29,'Trial 4'!BB29,'Trial 5'!BB29,'Trial 6'!BB29,'Trial 7'!BB29,'Trial 8'!BB29)","v":{"v":127.24355094604795,"d":"127.24"}},{"$f":"AVERAGE('Trial 1'!BC29,'Trial 2'!BC29,'Trial 3'!BC29,'Trial 4'!BC29,'Trial 5'!BC29,'Trial 6'!BC29,'Trial 7'!BC29,'Trial 8'!BC29)","v":{"v":127.01693130790406,"d":"127.02"}},{"$f":"AVERAGE('Trial 1'!BD29,'Trial 2'!BD29,'Trial 3'!BD29,'Trial 4'!BD29,'Trial 5'!BD29,'Trial 6'!BD29,'Trial 7'!BD29,'Trial 8'!BD29)","v":{"v":126.8091027066532,"d":"126.81"}},{"$f":"AVERAGE('Trial 1'!BE29,'Trial 2'!BE29,'Trial 3'!BE29,'Trial 4'!BE29,'Trial 5'!BE29,'Trial 6'!BE29,'Trial 7'!BE29,'Trial 8'!BE29)","v":{"v":126.61048505467672,"d":"126.61"}},{"$f":"AVERAGE('Trial 1'!BF29,'Trial 2'!BF29,'Trial 3'!BF29,'Trial 4'!BF29,'Trial 5'!BF29,'Trial 6'!BF29,'Trial 7'!BF29,'Trial 8'!BF29)","v":{"v":126.40720157058104,"d":"126.41"}},{"$f":"AVERAGE('Trial 1'!BG29,'Trial 2'!BG29,'Trial 3'!BG29,'Trial 4'!BG29,'Trial 5'!BG29,'Trial 6'!BG29,'Trial 7'!BG29,'Trial 8'!BG29)","v":{"v":126.22026861869489,"d":"126.22"}},{"$f":"AVERAGE('Trial 1'!BH29,'Trial 2'!BH29,'Trial 3'!BH29,'Trial 4'!BH29,'Trial 5'!BH29,'Trial 6'!BH29,'Trial 7'!BH29,'Trial 8'!BH29)","v":{"v":126.03516992361355,"d":"126.04"}},{"$f":"AVERAGE('Trial 1'!BI29,'Trial 2'!BI29,'Trial 3'!BI29,'Trial 4'!BI29,'Trial 5'!BI29,'Trial 6'!BI29,'Trial 7'!BI29,'Trial 8'!BI29)","v":{"v":125.81861588103399,"d":"125.82"}},{"$f":"AVERAGE('Trial 1'!BJ29,'Trial 2'!BJ29,'Trial 3'!BJ29,'Trial 4'!BJ29,'Trial 5'!BJ29,'Trial 6'!BJ29,'Trial 7'!BJ29,'Trial 8'!BJ29)","v":{"v":125.61796518021053,"d":"125.62"}},{"$f":"AVERAGE('Trial 1'!BK29,'Trial 2'!BK29,'Trial 3'!BK29,'Trial 4'!BK29,'Trial 5'!BK29,'Trial 6'!BK29,'Trial 7'!BK29,'Trial 8'!BK29)","v":{"v":125.44239327845872,"d":"125.44"}},{"$f":"AVERAGE('Trial 1'!BL29,'Trial 2'!BL29,'Trial 3'!BL29,'Trial 4'!BL29,'Trial 5'!BL29,'Trial 6'!BL29,'Trial 7'!BL29,'Trial 8'!BL29)","v":{"v":125.2499439447987,"d":"125.25"}},{"$f":"AVERAGE('Trial 1'!BM29,'Trial 2'!BM29,'Trial 3'!BM29,'Trial 4'!BM29,'Trial 5'!BM29,'Trial 6'!BM29,'Trial 7'!BM29,'Trial 8'!BM29)","v":{"v":125.07853220406979,"d":"125.08"}},{"$f":"SUM(BB42:BM42)","v":{"v":1513.5501606167431,"d":"1,513.55"}},{"$f":"AVERAGE('Trial 1'!BO29,'Trial 2'!BO29,'Trial 3'!BO29,'Trial 4'!BO29,'Trial 5'!BO29,'Trial 6'!BO29,'Trial 7'!BO29,'Trial 8'!BO29)","v":{"v":124.89274737044573,"d":"124.89"}},{"$f":"AVERAGE('Trial 1'!BP29,'Trial 2'!BP29,'Trial 3'!BP29,'Trial 4'!BP29,'Trial 5'!BP29,'Trial 6'!BP29,'Trial 7'!BP29,'Trial 8'!BP29)","v":{"v":124.70699422524716,"d":"124.71"}},{"$f":"AVERAGE('Trial 1'!BQ29,'Trial 2'!BQ29,'Trial 3'!BQ29,'Trial 4'!BQ29,'Trial 5'!BQ29,'Trial 6'!BQ29,'Trial 7'!BQ29,'Trial 8'!BQ29)","v":{"v":124.53367645740443,"d":"124.53"}},{"$f":"AVERAGE('Trial 1'!BR29,'Trial 2'!BR29,'Trial 3'!BR29,'Trial 4'!BR29,'Trial 5'!BR29,'Trial 6'!BR29,'Trial 7'!BR29,'Trial 8'!BR29)","v":{"v":124.37965160964784,"d":"124.38"}},{"$f":"AVERAGE('Trial 1'!BS29,'Trial 2'!BS29,'Trial 3'!BS29,'Trial 4'!BS29,'Trial 5'!BS29,'Trial 6'!BS29,'Trial 7'!BS29,'Trial 8'!BS29)","v":{"v":124.22138818319415,"d":"124.22"}},{"$f":"AVERAGE('Trial 1'!BT29,'Trial 2'!BT29,'Trial 3'!BT29,'Trial 4'!BT29,'Trial 5'!BT29,'Trial 6'!BT29,'Trial 7'!BT29,'Trial 8'!BT29)","v":{"v":124.0364550542659,"d":"124.04"}},{"$f":"AVERAGE('Trial 1'!BU29,'Trial 2'!BU29,'Trial 3'!BU29,'Trial 4'!BU29,'Trial 5'!BU29,'Trial 6'!BU29,'Trial 7'!BU29,'Trial 8'!BU29)","v":{"v":123.89593279581402,"d":"123.90"}},{"$f":"AVERAGE('Trial 1'!BV29,'Trial 2'!BV29,'Trial 3'!BV29,'Trial 4'!BV29,'Trial 5'!BV29,'Trial 6'!BV29,'Trial 7'!BV29,'Trial 8'!BV29)","v":{"v":123.71157691656396,"d":"123.71"}},{"$f":"AVERAGE('Trial 1'!BW29,'Trial 2'!BW29,'Trial 3'!BW29,'Trial 4'!BW29,'Trial 5'!BW29,'Trial 6'!BW29,'Trial 7'!BW29,'Trial 8'!BW29)","v":{"v":123.5398509524992,"d":"123.54"}},{"$f":"AVERAGE('Trial 1'!BX29,'Trial 2'!BX29,'Trial 3'!BX29,'Trial 4'!BX29,'Trial 5'!BX29,'Trial 6'!BX29,'Trial 7'!BX29,'Trial 8'!BX29)","v":{"v":123.39764262336212,"d":"123.40"}},{"$f":"AVERAGE('Trial 1'!BY29,'Trial 2'!BY29,'Trial 3'!BY29,'Trial 4'!BY29,'Trial 5'!BY29,'Trial 6'!BY29,'Trial 7'!BY29,'Trial 8'!BY29)","v":{"v":123.21644260225173,"d":"123.22"}},{"$f":"AVERAGE('Trial 1'!BZ29,'Trial 2'!BZ29,'Trial 3'!BZ29,'Trial 4'!BZ29,'Trial 5'!BZ29,'Trial 6'!BZ29,'Trial 7'!BZ29,'Trial 8'!BZ29)","v":{"v":123.07297689000747,"d":"123.07"}},{"$f":"SUM(BO42:BZ42)","v":{"v":1487.605335680704,"d":"1,487.61"}},{"$f":"AVERAGE('Trial 1'!CB29,'Trial 2'!CB29,'Trial 3'!CB29,'Trial 4'!CB29,'Trial 5'!CB29,'Trial 6'!CB29,'Trial 7'!CB29,'Trial 8'!CB29)","v":{"v":122.91289064523217,"d":"122.91"}},{"$f":"AVERAGE('Trial 1'!CC29,'Trial 2'!CC29,'Trial 3'!CC29,'Trial 4'!CC29,'Trial 5'!CC29,'Trial 6'!CC29,'Trial 7'!CC29,'Trial 8'!CC29)","v":{"v":122.74893620753198,"d":"122.75"}},{"$f":"AVERAGE('Trial 1'!CD29,'Trial 2'!CD29,'Trial 3'!CD29,'Trial 4'!CD29,'Trial 5'!CD29,'Trial 6'!CD29,'Trial 7'!CD29,'Trial 8'!CD29)","v":{"v":122.58284514960297,"d":"122.58"}},{"$f":"AVERAGE('Trial 1'!CE29,'Trial 2'!CE29,'Trial 3'!CE29,'Trial 4'!CE29,'Trial 5'!CE29,'Trial 6'!CE29,'Trial 7'!CE29,'Trial 8'!CE29)","v":{"v":122.43770735534184,"d":"122.44"}},{"$f":"AVERAGE('Trial 1'!CF29,'Trial 2'!CF29,'Trial 3'!CF29,'Trial 4'!CF29,'Trial 5'!CF29,'Trial 6'!CF29,'Trial 7'!CF29,'Trial 8'!CF29)","v":{"v":122.26436881608703,"d":"122.26"}},{"$f":"AVERAGE('Trial 1'!CG29,'Trial 2'!CG29,'Trial 3'!CG29,'Trial 4'!CG29,'Trial 5'!CG29,'Trial 6'!CG29,'Trial 7'!CG29,'Trial 8'!CG29)","v":{"v":122.10787046874154,"d":"122.11"}},{"$f":"AVERAGE('Trial 1'!CH29,'Trial 2'!CH29,'Trial 3'!CH29,'Trial 4'!CH29,'Trial 5'!CH29,'Trial 6'!CH29,'Trial 7'!CH29,'Trial 8'!CH29)","v":{"v":122.00163629446259,"d":"122.00"}},{"$f":"AVERAGE('Trial 1'!CI29,'Trial 2'!CI29,'Trial 3'!CI29,'Trial 4'!CI29,'Trial 5'!CI29,'Trial 6'!CI29,'Trial 7'!CI29,'Trial 8'!CI29)","v":{"v":121.85658546826363,"d":"121.86"}},{"$f":"AVERAGE('Trial 1'!CJ29,'Trial 2'!CJ29,'Trial 3'!CJ29,'Trial 4'!CJ29,'Trial 5'!CJ29,'Trial 6'!CJ29,'Trial 7'!CJ29,'Trial 8'!CJ29)","v":{"v":121.72246713462911,"d":"121.72"}},{"$f":"AVERAGE('Trial 1'!CK29,'Trial 2'!CK29,'Trial 3'!CK29,'Trial 4'!CK29,'Trial 5'!CK29,'Trial 6'!CK29,'Trial 7'!CK29,'Trial 8'!CK29)","v":{"v":121.5826034729378,"d":"121.58"}},{"$f":"AVERAGE('Trial 1'!CL29,'Trial 2'!CL29,'Trial 3'!CL29,'Trial 4'!CL29,'Trial 5'!CL29,'Trial 6'!CL29,'Trial 7'!CL29,'Trial 8'!CL29)","v":{"v":121.46671614843115,"d":"121.47"}},{"$f":"AVERAGE('Trial 1'!CM29,'Trial 2'!CM29,'Trial 3'!CM29,'Trial 4'!CM29,'Trial 5'!CM29,'Trial 6'!CM29,'Trial 7'!CM29,'Trial 8'!CM29)","v":{"v":121.31681792569307,"d":"121.32"}},{"$f":"SUM(CB42:CM42)","v":{"v":1465.0014450869548,"d":"1,465.00"}},{"$f":"AVERAGE('Trial 1'!CO29,'Trial 2'!CO29,'Trial 3'!CO29,'Trial 4'!CO29,'Trial 5'!CO29,'Trial 6'!CO29,'Trial 7'!CO29,'Trial 8'!CO29)","v":{"v":121.19935345623483,"d":"121.20"}},{"$f":"AVERAGE('Trial 1'!CP29,'Trial 2'!CP29,'Trial 3'!CP29,'Trial 4'!CP29,'Trial 5'!CP29,'Trial 6'!CP29,'Trial 7'!CP29,'Trial 8'!CP29)","v":{"v":121.06860028907053,"d":"121.07"}},{"$f":"AVERAGE('Trial 1'!CQ29,'Trial 2'!CQ29,'Trial 3'!CQ29,'Trial 4'!CQ29,'Trial 5'!CQ29,'Trial 6'!CQ29,'Trial 7'!CQ29,'Trial 8'!CQ29)","v":{"v":120.94022470880691,"d":"120.94"}},{"$f":"AVERAGE('Trial 1'!CR29,'Trial 2'!CR29,'Trial 3'!CR29,'Trial 4'!CR29,'Trial 5'!CR29,'Trial 6'!CR29,'Trial 7'!CR29,'Trial 8'!CR29)","v":{"v":120.81041910109317,"d":"120.81"}},{"$f":"AVERAGE('Trial 1'!CS29,'Trial 2'!CS29,'Trial 3'!CS29,'Trial 4'!CS29,'Trial 5'!CS29,'Trial 6'!CS29,'Trial 7'!CS29,'Trial 8'!CS29)","v":{"v":120.67212514229453,"d":"120.67"}},{"$f":"AVERAGE('Trial 1'!CT29,'Trial 2'!CT29,'Trial 3'!CT29,'Trial 4'!CT29,'Trial 5'!CT29,'Trial 6'!CT29,'Trial 7'!CT29,'Trial 8'!CT29)","v":{"v":120.4980091181032,"d":"120.50"}},{"$f":"AVERAGE('Trial 1'!CU29,'Trial 2'!CU29,'Trial 3'!CU29,'Trial 4'!CU29,'Trial 5'!CU29,'Trial 6'!CU29,'Trial 7'!CU29,'Trial 8'!CU29)","v":{"v":120.34282306777541,"d":"120.34"}},{"$f":"AVERAGE('Trial 1'!CV29,'Trial 2'!CV29,'Trial 3'!CV29,'Trial 4'!CV29,'Trial 5'!CV29,'Trial 6'!CV29,'Trial 7'!CV29,'Trial 8'!CV29)","v":{"v":120.24612970772537,"d":"120.25"}},{"$f":"AVERAGE('Trial 1'!CW29,'Trial 2'!CW29,'Trial 3'!CW29,'Trial 4'!CW29,'Trial 5'!CW29,'Trial 6'!CW29,'Trial 7'!CW29,'Trial 8'!CW29)","v":{"v":120.10449155504028,"d":"120.10"}},{"$f":"AVERAGE('Trial 1'!CX29,'Trial 2'!CX29,'Trial 3'!CX29,'Trial 4'!CX29,'Trial 5'!CX29,'Trial 6'!CX29,'Trial 7'!CX29,'Trial 8'!CX29)","v":{"v":119.96740780523153,"d":"119.97"}},{"$f":"AVERAGE('Trial 1'!CY29,'Trial 2'!CY29,'Trial 3'!CY29,'Trial 4'!CY29,'Trial 5'!CY29,'Trial 6'!CY29,'Trial 7'!CY29,'Trial 8'!CY29)","v":{"v":119.82442214504172,"d":"119.82"}},{"$f":"AVERAGE('Trial 1'!CZ29,'Trial 2'!CZ29,'Trial 3'!CZ29,'Trial 4'!CZ29,'Trial 5'!CZ29,'Trial 6'!CZ29,'Trial 7'!CZ29,'Trial 8'!CZ29)","v":{"v":119.70495979406944,"d":"119.70"}},{"$f":"SUM(CO42:CZ42)","v":{"v":1445.378965890487,"d":"1,445.38"}},{"$f":"AVERAGE('Trial 1'!DB29,'Trial 2'!DB29,'Trial 3'!DB29,'Trial 4'!DB29,'Trial 5'!DB29,'Trial 6'!DB29,'Trial 7'!DB29,'Trial 8'!DB29)","v":{"v":119.56700873611001,"d":"119.57"}},{"$f":"AVERAGE('Trial 1'!DC29,'Trial 2'!DC29,'Trial 3'!DC29,'Trial 4'!DC29,'Trial 5'!DC29,'Trial 6'!DC29,'Trial 7'!DC29,'Trial 8'!DC29)","v":{"v":119.45344157041639,"d":"119.45"}},{"$f":"AVERAGE('Trial 1'!DD29,'Trial 2'!DD29,'Trial 3'!DD29,'Trial 4'!DD29,'Trial 5'!DD29,'Trial 6'!DD29,'Trial 7'!DD29,'Trial 8'!DD29)","v":{"v":119.30476688194904,"d":"119.30"}},{"$f":"AVERAGE('Trial 1'!DE29,'Trial 2'!DE29,'Trial 3'!DE29,'Trial 4'!DE29,'Trial 5'!DE29,'Trial 6'!DE29,'Trial 7'!DE29,'Trial 8'!DE29)","v":{"v":119.1692468930198,"d":"119.17"}},{"$f":"AVERAGE('Trial 1'!DF29,'Trial 2'!DF29,'Trial 3'!DF29,'Trial 4'!DF29,'Trial 5'!DF29,'Trial 6'!DF29,'Trial 7'!DF29,'Trial 8'!DF29)","v":{"v":119.05474296456693,"d":"119.05"}},{"$f":"AVERAGE('Trial 1'!DG29,'Trial 2'!DG29,'Trial 3'!DG29,'Trial 4'!DG29,'Trial 5'!DG29,'Trial 6'!DG29,'Trial 7'!DG29,'Trial 8'!DG29)","v":{"v":118.92894638233172,"d":"118.93"}},{"$f":"AVERAGE('Trial 1'!DH29,'Trial 2'!DH29,'Trial 3'!DH29,'Trial 4'!DH29,'Trial 5'!DH29,'Trial 6'!DH29,'Trial 7'!DH29,'Trial 8'!DH29)","v":{"v":118.79881503493583,"d":"118.80"}},{"$f":"AVERAGE('Trial 1'!DI29,'Trial 2'!DI29,'Trial 3'!DI29,'Trial 4'!DI29,'Trial 5'!DI29,'Trial 6'!DI29,'Trial 7'!DI29,'Trial 8'!DI29)","v":{"v":118.6661377646548,"d":"118.67"}},{"$f":"AVERAGE('Trial 1'!DJ29,'Trial 2'!DJ29,'Trial 3'!DJ29,'Trial 4'!DJ29,'Trial 5'!DJ29,'Trial 6'!DJ29,'Trial 7'!DJ29,'Trial 8'!DJ29)","v":{"v":118.529156996357,"d":"118.53"}},{"$f":"AVERAGE('Trial 1'!DK29,'Trial 2'!DK29,'Trial 3'!DK29,'Trial 4'!DK29,'Trial 5'!DK29,'Trial 6'!DK29,'Trial 7'!DK29,'Trial 8'!DK29)","v":{"v":118.40782748409083,"d":"118.41"}},{"$f":"AVERAGE('Trial 1'!DL29,'Trial 2'!DL29,'Trial 3'!DL29,'Trial 4'!DL29,'Trial 5'!DL29,'Trial 6'!DL29,'Trial 7'!DL29,'Trial 8'!DL29)","v":{"v":118.2835807603792,"d":"118.28"}},{"$f":"AVERAGE('Trial 1'!DM29,'Trial 2'!DM29,'Trial 3'!DM29,'Trial 4'!DM29,'Trial 5'!DM29,'Trial 6'!DM29,'Trial 7'!DM29,'Trial 8'!DM29)","v":{"v":118.14817060554311,"d":"118.15"}},{"$f":"SUM(DB42:DM42)","v":{"v":1426.3118420743547,"d":"1,426.31"}},{"$f":"AVERAGE('Trial 1'!DO29,'Trial 2'!DO29,'Trial 3'!DO29,'Trial 4'!DO29,'Trial 5'!DO29,'Trial 6'!DO29,'Trial 7'!DO29,'Trial 8'!DO29)","v":{"v":118.01902227600755,"d":"118.02"}},{"$f":"AVERAGE('Trial 1'!DP29,'Trial 2'!DP29,'Trial 3'!DP29,'Trial 4'!DP29,'Trial 5'!DP29,'Trial 6'!DP29,'Trial 7'!DP29,'Trial 8'!DP29)","v":{"v":117.91824370446079,"d":"117.92"}},{"$f":"AVERAGE('Trial 1'!DQ29,'Trial 2'!DQ29,'Trial 3'!DQ29,'Trial 4'!DQ29,'Trial 5'!DQ29,'Trial 6'!DQ29,'Trial 7'!DQ29,'Trial 8'!DQ29)","v":{"v":117.79164240960588,"d":"117.79"}},{"$f":"AVERAGE('Trial 1'!DR29,'Trial 2'!DR29,'Trial 3'!DR29,'Trial 4'!DR29,'Trial 5'!DR29,'Trial 6'!DR29,'Trial 7'!DR29,'Trial 8'!DR29)","v":{"v":117.70089666373462,"d":"117.70"}},{"$f":"AVERAGE('Trial 1'!DS29,'Trial 2'!DS29,'Trial 3'!DS29,'Trial 4'!DS29,'Trial 5'!DS29,'Trial 6'!DS29,'Trial 7'!DS29,'Trial 8'!DS29)","v":{"v":117.59011317618489,"d":"117.59"}},{"$f":"AVERAGE('Trial 1'!DT29,'Trial 2'!DT29,'Trial 3'!DT29,'Trial 4'!DT29,'Trial 5'!DT29,'Trial 6'!DT29,'Trial 7'!DT29,'Trial 8'!DT29)","v":{"v":117.47740339170544,"d":"117.48"}},{"$f":"AVERAGE('Trial 1'!DU29,'Trial 2'!DU29,'Trial 3'!DU29,'Trial 4'!DU29,'Trial 5'!DU29,'Trial 6'!DU29,'Trial 7'!DU29,'Trial 8'!DU29)","v":{"v":117.38723157788334,"d":"117.39"}},{"$f":"AVERAGE('Trial 1'!DV29,'Trial 2'!DV29,'Trial 3'!DV29,'Trial 4'!DV29,'Trial 5'!DV29,'Trial 6'!DV29,'Trial 7'!DV29,'Trial 8'!DV29)","v":{"v":117.2834054521888,"d":"117.28"}},{"$f":"AVERAGE('Trial 1'!DW29,'Trial 2'!DW29,'Trial 3'!DW29,'Trial 4'!DW29,'Trial 5'!DW29,'Trial 6'!DW29,'Trial 7'!DW29,'Trial 8'!DW29)","v":{"v":117.18668624540975,"d":"117.19"}},{"$f":"AVERAGE('Trial 1'!DX29,'Trial 2'!DX29,'Trial 3'!DX29,'Trial 4'!DX29,'Trial 5'!DX29,'Trial 6'!DX29,'Trial 7'!DX29,'Trial 8'!DX29)","v":{"v":117.0813176213602,"d":"117.08"}},{"$f":"AVERAGE('Trial 1'!DY29,'Trial 2'!DY29,'Trial 3'!DY29,'Trial 4'!DY29,'Trial 5'!DY29,'Trial 6'!DY29,'Trial 7'!DY29,'Trial 8'!DY29)","v":{"v":116.97324390296379,"d":"116.97"}},{"$f":"AVERAGE('Trial 1'!DZ29,'Trial 2'!DZ29,'Trial 3'!DZ29,'Trial 4'!DZ29,'Trial 5'!DZ29,'Trial 6'!DZ29,'Trial 7'!DZ29,'Trial 8'!DZ29)","v":{"v":116.8679250788446,"d":"116.87"}},{"$f":"SUM(DO42:DZ42)","v":{"v":1409.2771315003495,"d":"1,409.28"}},{"$f":"AVERAGE('Trial 1'!EB29,'Trial 2'!EB29,'Trial 3'!EB29,'Trial 4'!EB29,'Trial 5'!EB29,'Trial 6'!EB29,'Trial 7'!EB29,'Trial 8'!EB29)","v":{"v":116.73496599573578,"d":"116.73"}},{"$f":"AVERAGE('Trial 1'!EC29,'Trial 2'!EC29,'Trial 3'!EC29,'Trial 4'!EC29,'Trial 5'!EC29,'Trial 6'!EC29,'Trial 7'!EC29,'Trial 8'!EC29)","v":{"v":116.6390676029154,"d":"116.64"}},{"$f":"AVERAGE('Trial 1'!ED29,'Trial 2'!ED29,'Trial 3'!ED29,'Trial 4'!ED29,'Trial 5'!ED29,'Trial 6'!ED29,'Trial 7'!ED29,'Trial 8'!ED29)","v":{"v":116.51074310910954,"d":"116.51"}},{"$f":"AVERAGE('Trial 1'!EE29,'Trial 2'!EE29,'Trial 3'!EE29,'Trial 4'!EE29,'Trial 5'!EE29,'Trial 6'!EE29,'Trial 7'!EE29,'Trial 8'!EE29)","v":{"v":116.39353782130817,"d":"116.39"}},{"$f":"AVERAGE('Trial 1'!EF29,'Trial 2'!EF29,'Trial 3'!EF29,'Trial 4'!EF29,'Trial 5'!EF29,'Trial 6'!EF29,'Trial 7'!EF29,'Trial 8'!EF29)","v":{"v":116.29255101201662,"d":"116.29"}},{"$f":"AVERAGE('Trial 1'!EG29,'Trial 2'!EG29,'Trial 3'!EG29,'Trial 4'!EG29,'Trial 5'!EG29,'Trial 6'!EG29,'Trial 7'!EG29,'Trial 8'!EG29)","v":{"v":116.19525453217297,"d":"116.20"}},{"$f":"AVERAGE('Trial 1'!EH29,'Trial 2'!EH29,'Trial 3'!EH29,'Trial 4'!EH29,'Trial 5'!EH29,'Trial 6'!EH29,'Trial 7'!EH29,'Trial 8'!EH29)","v":{"v":116.07577300145297,"d":"116.08"}},{"$f":"AVERAGE('Trial 1'!EI29,'Trial 2'!EI29,'Trial 3'!EI29,'Trial 4'!EI29,'Trial 5'!EI29,'Trial 6'!EI29,'Trial 7'!EI29,'Trial 8'!EI29)","v":{"v":115.96422599487141,"d":"115.96"}},{"$f":"AVERAGE('Trial 1'!EJ29,'Trial 2'!EJ29,'Trial 3'!EJ29,'Trial 4'!EJ29,'Trial 5'!EJ29,'Trial 6'!EJ29,'Trial 7'!EJ29,'Trial 8'!EJ29)","v":{"v":115.82259701911555,"d":"115.82"}},{"$f":"AVERAGE('Trial 1'!EK29,'Trial 2'!EK29,'Trial 3'!EK29,'Trial 4'!EK29,'Trial 5'!EK29,'Trial 6'!EK29,'Trial 7'!EK29,'Trial 8'!EK29)","v":{"v":115.71355731270941,"d":"115.71"}},{"$f":"AVERAGE('Trial 1'!EL29,'Trial 2'!EL29,'Trial 3'!EL29,'Trial 4'!EL29,'Trial 5'!EL29,'Trial 6'!EL29,'Trial 7'!EL29,'Trial 8'!EL29)","v":{"v":115.62372129668228,"d":"115.62"}},{"$f":"AVERAGE('Trial 1'!EM29,'Trial 2'!EM29,'Trial 3'!EM29,'Trial 4'!EM29,'Trial 5'!EM29,'Trial 6'!EM29,'Trial 7'!EM29,'Trial 8'!EM29)","v":{"v":115.5119836588783,"d":"115.51"}},{"$f":"SUM(EB42:EM42)","v":{"v":1393.4779783569684,"d":"1,393.48"}}]
[{"$f":"Labels!B41","v":"Desired Employment std dev"},{"$f":"STDEV('Trial 1'!B29,'Trial 2'!B29,'Trial 3'!B29,'Trial 4'!B29,'Trial 5'!B29,'Trial 6'!B29,'Trial 7'!B29,'Trial 8'!B29)","v":{"v":0,"d":"0.00"}},{"$f":"STDEV('Trial 1'!C29,'Trial 2'!C29,'Trial 3'!C29,'Trial 4'!C29,'Trial 5'!C29,'Trial 6'!C29,'Trial 7'!C29,'Trial 8'!C29)","v":{"v":0.03404838037176295,"d":"0.03"}},{"$f":"STDEV('Trial 1'!D29,'Trial 2'!D29,'Trial 3'!D29,'Trial 4'!D29,'Trial 5'!D29,'Trial 6'!D29,'Trial 7'!D29,'Trial 8'!D29)","v":{"v":0.048007100294570074,"d":"0.05"}},{"$f":"STDEV('Trial 1'!E29,'Trial 2'!E29,'Trial 3'!E29,'Trial 4'!E29,'Trial 5'!E29,'Trial 6'!E29,'Trial 7'!E29,'Trial 8'!E29)","v":{"v":0.06276957963078089,"d":"0.06"}},{"$f":"STDEV('Trial 1'!F29,'Trial 2'!F29,'Trial 3'!F29,'Trial 4'!F29,'Trial 5'!F29,'Trial 6'!F29,'Trial 7'!F29,'Trial 8'!F29)","v":{"v":0.06920912862475001,"d":"0.07"}},{"$f":"STDEV('Trial 1'!G29,'Trial 2'!G29,'Trial 3'!G29,'Trial 4'!G29,'Trial 5'!G29,'Trial 6'!G29,'Trial 7'!G29,'Trial 8'!G29)","v":{"v":0.0914412476086859,"d":"0.09"}},{"$f":"STDEV('Trial 1'!H29,'Trial 2'!H29,'Trial 3'!H29,'Trial 4'!H29,'Trial 5'!H29,'Trial 6'!H29,'Trial 7'!H29,'Trial 8'!H29)","v":{"v":0.1115645852224395,"d":"0.11"}},{"$f":"STDEV('Trial 1'!I29,'Trial 2'!I29,'Trial 3'!I29,'Trial 4'!I29,'Trial 5'!I29,'Trial 6'!I29,'Trial 7'!I29,'Trial 8'!I29)","v":{"v":0.1141579065217803,"d":"0.11"}},{"$f":"STDEV('Trial 1'!J29,'Trial 2'!J29,'Trial 3'!J29,'Trial 4'!J29,'Trial 5'!J29,'Trial 6'!J29,'Trial 7'!J29,'Trial 8'!J29)","v":{"v":0.12610465495505463,"d":"0.13"}},{"$f":"STDEV('Trial 1'!K29,'Trial 2'!K29,'Trial 3'!K29,'Trial 4'!K29,'Trial 5'!K29,'Trial 6'!K29,'Trial 7'!K29,'Trial 8'!K29)","v":{"v":0.10476410912617878,"d":"0.10"}},{"$f":"STDEV('Trial 1'!L29,'Trial 2'!L29,'Trial 3'!L29,'Trial 4'!L29,'Trial 5'!L29,'Trial 6'!L29,'Trial 7'!L29,'Trial 8'!L29)","v":{"v":0.12621809475436097,"d":"0.13"}},{"$f":"STDEV('Trial 1'!M29,'Trial 2'!M29,'Trial 3'!M29,'Trial 4'!M29,'Trial 5'!M29,'Trial 6'!M29,'Trial 7'!M29,'Trial 8'!M29)","v":{"v":0.15666120753941556,"d":"0.16"}},{"$f":"SUM(B43:M43)","v":{"v":1.0449459946497797,"d":"1.04"}},{"$f":"STDEV('Trial 1'!O29,'Trial 2'!O29,'Trial 3'!O29,'Trial 4'!O29,'Trial 5'!O29,'Trial 6'!O29,'Trial 7'!O29,'Trial 8'!O29)","v":{"v":0.17031800730408234,"d":"0.17"}},{"$f":"STDEV('Trial 1'!P29,'Trial 2'!P29,'Trial 3'!P29,'Trial 4'!P29,'Trial 5'!P29,'Trial 6'!P29,'Trial 7'!P29,'Trial 8'!P29)","v":{"v":0.1748920325838754,"d":"0.17"}},{"$f":"STDEV('Trial 1'!Q29,'Trial 2'!Q29,'Trial 3'!Q29,'Trial 4'!Q29,'Trial 5'!Q29,'Trial 6'!Q29,'Trial 7'!Q29,'Trial 8'!Q29)","v":{"v":0.17302484173576446,"d":"0.17"}},{"$f":"STDEV('Trial 1'!R29,'Trial 2'!R29,'Trial 3'!R29,'Trial 4'!R29,'Trial 5'!R29,'Trial 6'!R29,'Trial 7'!R29,'Trial 8'!R29)","v":{"v":0.16645518891692232,"d":"0.17"}},{"$f":"STDEV('Trial 1'!S29,'Trial 2'!S29,'Trial 3'!S29,'Trial 4'!S29,'Trial 5'!S29,'Trial 6'!S29,'Trial 7'!S29,'Trial 8'!S29)","v":{"v":0.17907409289907492,"d":"0.18"}},{"$f":"STDEV('Trial 1'!T29,'Trial 2'!T29,'Trial 3'!T29,'Trial 4'!T29,'Trial 5'!T29,'Trial 6'!T29,'Trial 7'!T29,'Trial 8'!T29)","v":{"v":0.18777673013868257,"d":"0.19"}},{"$f":"STDEV('Trial 1'!U29,'Trial 2'!U29,'Trial 3'!U29,'Trial 4'!U29,'Trial 5'!U29,'Trial 6'!U29,'Trial 7'!U29,'Trial 8'!U29)","v":{"v":0.1728269200817858,"d":"0.17"}},{"$f":"STDEV('Trial 1'!V29,'Trial 2'!V29,'Trial 3'!V29,'Trial 4'!V29,'Trial 5'!V29,'Trial 6'!V29,'Trial 7'!V29,'Trial 8'!V29)","v":{"v":0.16829429775684765,"d":"0.17"}},{"$f":"STDEV('Trial 1'!W29,'Trial 2'!W29,'Trial 3'!W29,'Trial 4'!W29,'Trial 5'!W29,'Trial 6'!W29,'Trial 7'!W29,'Trial 8'!W29)","v":{"v":0.1838241921256044,"d":"0.18"}},{"$f":"STDEV('Trial 1'!X29,'Trial 2'!X29,'Trial 3'!X29,'Trial 4'!X29,'Trial 5'!X29,'Trial 6'!X29,'Trial 7'!X29,'Trial 8'!X29)","v":{"v":0.19250474195408834,"d":"0.19"}},{"$f":"STDEV('Trial 1'!Y29,'Trial 2'!Y29,'Trial 3'!Y29,'Trial 4'!Y29,'Trial 5'!Y29,'Trial 6'!Y29,'Trial 7'!Y29,'Trial 8'!Y29)","v":{"v":0.21700125192844985,"d":"0.22"}},{"$f":"STDEV('Trial 1'!Z29,'Trial 2'!Z29,'Trial 3'!Z29,'Trial 4'!Z29,'Trial 5'!Z29,'Trial 6'!Z29,'Trial 7'!Z29,'Trial 8'!Z29)","v":{"v":0.23144947043705136,"d":"0.23"}},{"$f":"SUM(O43:Z43)","v":{"v":2.21744176786223,"d":"2.22"}},{"$f":"STDEV('Trial 1'!AB29,'Trial 2'!AB29,'Trial 3'!AB29,'Trial 4'!AB29,'Trial 5'!AB29,'Trial 6'!AB29,'Trial 7'!AB29,'Trial 8'!AB29)","v":{"v":0.20931453945578934,"d":"0.21"}},{"$f":"STDEV('Trial 1'!AC29,'Trial 2'!AC29,'Trial 3'!AC29,'Trial 4'!AC29,'Trial 5'!AC29,'Trial 6'!AC29,'Trial 7'!AC29,'Trial 8'!AC29)","v":{"v":0.18387747310782,"d":"0.18"}},{"$f":"STDEV('Trial 1'!AD29,'Trial 2'!AD29,'Trial 3'!AD29,'Trial 4'!AD29,'Trial 5'!AD29,'Trial 6'!AD29,'Trial 7'!AD29,'Trial 8'!AD29)","v":{"v":0.18867928230705433,"d":"0.19"}},{"$f":"STDEV('Trial 1'!AE29,'Trial 2'!AE29,'Trial 3'!AE29,'Trial 4'!AE29,'Trial 5'!AE29,'Trial 6'!AE29,'Trial 7'!AE29,'Trial 8'!AE29)","v":{"v":0.20793884203145171,"d":"0.21"}},{"$f":"STDEV('Trial 1'!AF29,'Trial 2'!AF29,'Trial 3'!AF29,'Trial 4'!AF29,'Trial 5'!AF29,'Trial 6'!AF29,'Trial 7'!AF29,'Trial 8'!AF29)","v":{"v":0.2242979684990685,"d":"0.22"}},{"$f":"STDEV('Trial 1'!AG29,'Trial 2'!AG29,'Trial 3'!AG29,'Trial 4'!AG29,'Trial 5'!AG29,'Trial 6'!AG29,'Trial 7'!AG29,'Trial 8'!AG29)","v":{"v":0.24722825903843249,"d":"0.25"}},{"$f":"STDEV('Trial 1'!AH29,'Trial 2'!AH29,'Trial 3'!AH29,'Trial 4'!AH29,'Trial 5'!AH29,'Trial 6'!AH29,'Trial 7'!AH29,'Trial 8'!AH29)","v":{"v":0.24489422250527043,"d":"0.24"}},{"$f":"STDEV('Trial 1'!AI29,'Trial 2'!AI29,'Trial 3'!AI29,'Trial 4'!AI29,'Trial 5'!AI29,'Trial 6'!AI29,'Trial 7'!AI29,'Trial 8'!AI29)","v":{"v":0.2524370499659054,"d":"0.25"}},{"$f":"STDEV('Trial 1'!AJ29,'Trial 2'!AJ29,'Trial 3'!AJ29,'Trial 4'!AJ29,'Trial 5'!AJ29,'Trial 6'!AJ29,'Trial 7'!AJ29,'Trial 8'!AJ29)","v":{"v":0.24643069762369663,"d":"0.25"}},{"$f":"STDEV('Trial 1'!AK29,'Trial 2'!AK29,'Trial 3'!AK29,'Trial 4'!AK29,'Trial 5'!AK29,'Trial 6'!AK29,'Trial 7'!AK29,'Trial 8'!AK29)","v":{"v":0.23922435871577802,"d":"0.24"}},{"$f":"STDEV('Trial 1'!AL29,'Trial 2'!AL29,'Trial 3'!AL29,'Trial 4'!AL29,'Trial 5'!AL29,'Trial 6'!AL29,'Trial 7'!AL29,'Trial 8'!AL29)","v":{"v":0.2353538182105709,"d":"0.24"}},{"$f":"STDEV('Trial 1'!AM29,'Trial 2'!AM29,'Trial 3'!AM29,'Trial 4'!AM29,'Trial 5'!AM29,'Trial 6'!AM29,'Trial 7'!AM29,'Trial 8'!AM29)","v":{"v":0.24586191886491415,"d":"0.25"}},{"$f":"SUM(AB43:AM43)","v":{"v":2.7255384303257517,"d":"2.73"}},{"$f":"STDEV('Trial 1'!AO29,'Trial 2'!AO29,'Trial 3'!AO29,'Trial 4'!AO29,'Trial 5'!AO29,'Trial 6'!AO29,'Trial 7'!AO29,'Trial 8'!AO29)","v":{"v":0.28000802035926536,"d":"0.28"}},{"$f":"STDEV('Trial 1'!AP29,'Trial 2'!AP29,'Trial 3'!AP29,'Trial 4'!AP29,'Trial 5'!AP29,'Trial 6'!AP29,'Trial 7'!AP29,'Trial 8'!AP29)","v":{"v":0.2699460029416443,"d":"0.27"}},{"$f":"STDEV('Trial 1'!AQ29,'Trial 2'!AQ29,'Trial 3'!AQ29,'Trial 4'!AQ29,'Trial 5'!AQ29,'Trial 6'!AQ29,'Trial 7'!AQ29,'Trial 8'!AQ29)","v":{"v":0.2616874553752056,"d":"0.26"}},{"$f":"STDEV('Trial 1'!AR29,'Trial 2'!AR29,'Trial 3'!AR29,'Trial 4'!AR29,'Trial 5'!AR29,'Trial 6'!AR29,'Trial 7'!AR29,'Trial 8'!AR29)","v":{"v":0.26770103816626717,"d":"0.27"}},{"$f":"STDEV('Trial 1'!AS29,'Trial 2'!AS29,'Trial 3'!AS29,'Trial 4'!AS29,'Trial 5'!AS29,'Trial 6'!AS29,'Trial 7'!AS29,'Trial 8'!AS29)","v":{"v":0.2832308889885237,"d":"0.28"}},{"$f":"STDEV('Trial 1'!AT29,'Trial 2'!AT29,'Trial 3'!AT29,'Trial 4'!AT29,'Trial 5'!AT29,'Trial 6'!AT29,'Trial 7'!AT29,'Trial 8'!AT29)","v":{"v":0.28191006667020524,"d":"0.28"}},{"$f":"STDEV('Trial 1'!AU29,'Trial 2'!AU29,'Trial 3'!AU29,'Trial 4'!AU29,'Trial 5'!AU29,'Trial 6'!AU29,'Trial 7'!AU29,'Trial 8'!AU29)","v":{"v":0.26482379883939505,"d":"0.26"}},{"$f":"STDEV('Trial 1'!AV29,'Trial 2'!AV29,'Trial 3'!AV29,'Trial 4'!AV29,'Trial 5'!AV29,'Trial 6'!AV29,'Trial 7'!AV29,'Trial 8'!AV29)","v":{"v":0.24199147624235148,"d":"0.24"}},{"$f":"STDEV('Trial 1'!AW29,'Trial 2'!AW29,'Trial 3'!AW29,'Trial 4'!AW29,'Trial 5'!AW29,'Trial 6'!AW29,'Trial 7'!AW29,'Trial 8'!AW29)","v":{"v":0.23571303016368034,"d":"0.24"}},{"$f":"STDEV('Trial 1'!AX29,'Trial 2'!AX29,'Trial 3'!AX29,'Trial 4'!AX29,'Trial 5'!AX29,'Trial 6'!AX29,'Trial 7'!AX29,'Trial 8'!AX29)","v":{"v":0.22211469740792605,"d":"0.22"}},{"$f":"STDEV('Trial 1'!AY29,'Trial 2'!AY29,'Trial 3'!AY29,'Trial 4'!AY29,'Trial 5'!AY29,'Trial 6'!AY29,'Trial 7'!AY29,'Trial 8'!AY29)","v":{"v":0.2131970365972799,"d":"0.21"}},{"$f":"STDEV('Trial 1'!AZ29,'Trial 2'!AZ29,'Trial 3'!AZ29,'Trial 4'!AZ29,'Trial 5'!AZ29,'Trial 6'!AZ29,'Trial 7'!AZ29,'Trial 8'!AZ29)","v":{"v":0.22607799679448076,"d":"0.23"}},{"$f":"SUM(AO43:AZ43)","v":{"v":3.0484015085462253,"d":"3.05"}},{"$f":"STDEV('Trial 1'!BB29,'Trial 2'!BB29,'Trial 3'!BB29,'Trial 4'!BB29,'Trial 5'!BB29,'Trial 6'!BB29,'Trial 7'!BB29,'Trial 8'!BB29)","v":{"v":0.24990711126125034,"d":"0.25"}},{"$f":"STDEV('Trial 1'!BC29,'Trial 2'!BC29,'Trial 3'!BC29,'Trial 4'!BC29,'Trial 5'!BC29,'Trial 6'!BC29,'Trial 7'!BC29,'Trial 8'!BC29)","v":{"v":0.2062878863677657,"d":"0.21"}},{"$f":"STDEV('Trial 1'!BD29,'Trial 2'!BD29,'Trial 3'!BD29,'Trial 4'!BD29,'Trial 5'!BD29,'Trial 6'!BD29,'Trial 7'!BD29,'Trial 8'!BD29)","v":{"v":0.20986267451525278,"d":"0.21"}},{"$f":"STDEV('Trial 1'!BE29,'Trial 2'!BE29,'Trial 3'!BE29,'Trial 4'!BE29,'Trial 5'!BE29,'Trial 6'!BE29,'Trial 7'!BE29,'Trial 8'!BE29)","v":{"v":0.23437947023946745,"d":"0.23"}},{"$f":"STDEV('Trial 1'!BF29,'Trial 2'!BF29,'Trial 3'!BF29,'Trial 4'!BF29,'Trial 5'!BF29,'Trial 6'!BF29,'Trial 7'!BF29,'Trial 8'!BF29)","v":{"v":0.24608985376632647,"d":"0.25"}},{"$f":"STDEV('Trial 1'!BG29,'Trial 2'!BG29,'Trial 3'!BG29,'Trial 4'!BG29,'Trial 5'!BG29,'Trial 6'!BG29,'Trial 7'!BG29,'Trial 8'!BG29)","v":{"v":0.26413831409493604,"d":"0.26"}},{"$f":"STDEV('Trial 1'!BH29,'Trial 2'!BH29,'Trial 3'!BH29,'Trial 4'!BH29,'Trial 5'!BH29,'Trial 6'!BH29,'Trial 7'!BH29,'Trial 8'!BH29)","v":{"v":0.28558963701508927,"d":"0.29"}},{"$f":"STDEV('Trial 1'!BI29,'Trial 2'!BI29,'Trial 3'!BI29,'Trial 4'!BI29,'Trial 5'!BI29,'Trial 6'!BI29,'Trial 7'!BI29,'Trial 8'!BI29)","v":{"v":0.307455638885997,"d":"0.31"}},{"$f":"STDEV('Trial 1'!BJ29,'Trial 2'!BJ29,'Trial 3'!BJ29,'Trial 4'!BJ29,'Trial 5'!BJ29,'Trial 6'!BJ29,'Trial 7'!BJ29,'Trial 8'!BJ29)","v":{"v":0.2897179458620327,"d":"0.29"}},{"$f":"STDEV('Trial 1'!BK29,'Trial 2'!BK29,'Trial 3'!BK29,'Trial 4'!BK29,'Trial 5'!BK29,'Trial 6'!BK29,'Trial 7'!BK29,'Trial 8'!BK29)","v":{"v":0.2995030809351639,"d":"0.30"}},{"$f":"STDEV('Trial 1'!BL29,'Trial 2'!BL29,'Trial 3'!BL29,'Trial 4'!BL29,'Trial 5'!BL29,'Trial 6'!BL29,'Trial 7'!BL29,'Trial 8'!BL29)","v":{"v":0.2822281855603609,"d":"0.28"}},{"$f":"STDEV('Trial 1'!BM29,'Trial 2'!BM29,'Trial 3'!BM29,'Trial 4'!BM29,'Trial 5'!BM29,'Trial 6'!BM29,'Trial 7'!BM29,'Trial 8'!BM29)","v":{"v":0.25680351059404677,"d":"0.26"}},{"$f":"SUM(BB43:BM43)","v":{"v":3.131963309097689,"d":"3.13"}},{"$f":"STDEV('Trial 1'!BO29,'Trial 2'!BO29,'Trial 3'!BO29,'Trial 4'!BO29,'Trial 5'!BO29,'Trial 6'!BO29,'Trial 7'!BO29,'Trial 8'!BO29)","v":{"v":0.24160964215927178,"d":"0.24"}},{"$f":"STDEV('Trial 1'!BP29,'Trial 2'!BP29,'Trial 3'!BP29,'Trial 4'!BP29,'Trial 5'!BP29,'Trial 6'!BP29,'Trial 7'!BP29,'Trial 8'!BP29)","v":{"v":0.23525522470259277,"d":"0.24"}},{"$f":"STDEV('Trial 1'!BQ29,'Trial 2'!BQ29,'Trial 3'!BQ29,'Trial 4'!BQ29,'Trial 5'!BQ29,'Trial 6'!BQ29,'Trial 7'!BQ29,'Trial 8'!BQ29)","v":{"v":0.236711960072961,"d":"0.24"}},{"$f":"STDEV('Trial 1'!BR29,'Trial 2'!BR29,'Trial 3'!BR29,'Trial 4'!BR29,'Trial 5'!BR29,'Trial 6'!BR29,'Trial 7'!BR29,'Trial 8'!BR29)","v":{"v":0.26846561200268954,"d":"0.27"}},{"$f":"STDEV('Trial 1'!BS29,'Trial 2'!BS29,'Trial 3'!BS29,'Trial 4'!BS29,'Trial 5'!BS29,'Trial 6'!BS29,'Trial 7'!BS29,'Trial 8'!BS29)","v":{"v":0.2871815129873897,"d":"0.29"}},{"$f":"STDEV('Trial 1'!BT29,'Trial 2'!BT29,'Trial 3'!BT29,'Trial 4'!BT29,'Trial 5'!BT29,'Trial 6'!BT29,'Trial 7'!BT29,'Trial 8'!BT29)","v":{"v":0.30313851120738544,"d":"0.30"}},{"$f":"STDEV('Trial 1'!BU29,'Trial 2'!BU29,'Trial 3'!BU29,'Trial 4'!BU29,'Trial 5'!BU29,'Trial 6'!BU29,'Trial 7'!BU29,'Trial 8'!BU29)","v":{"v":0.2878972485936912,"d":"0.29"}},{"$f":"STDEV('Trial 1'!BV29,'Trial 2'!BV29,'Trial 3'!BV29,'Trial 4'!BV29,'Trial 5'!BV29,'Trial 6'!BV29,'Trial 7'!BV29,'Trial 8'!BV29)","v":{"v":0.3007742985798358,"d":"0.30"}},{"$f":"STDEV('Trial 1'!BW29,'Trial 2'!BW29,'Trial 3'!BW29,'Trial 4'!BW29,'Trial 5'!BW29,'Trial 6'!BW29,'Trial 7'!BW29,'Trial 8'!BW29)","v":{"v":0.32463491785670995,"d":"0.32"}},{"$f":"STDEV('Trial 1'!BX29,'Trial 2'!BX29,'Trial 3'!BX29,'Trial 4'!BX29,'Trial 5'!BX29,'Trial 6'!BX29,'Trial 7'!BX29,'Trial 8'!BX29)","v":{"v":0.3451416949963582,"d":"0.35"}},{"$f":"STDEV('Trial 1'!BY29,'Trial 2'!BY29,'Trial 3'!BY29,'Trial 4'!BY29,'Trial 5'!BY29,'Trial 6'!BY29,'Trial 7'!BY29,'Trial 8'!BY29)","v":{"v":0.36190337514256715,"d":"0.36"}},{"$f":"STDEV('Trial 1'!BZ29,'Trial 2'!BZ29,'Trial 3'!BZ29,'Trial 4'!BZ29,'Trial 5'!BZ29,'Trial 6'!BZ29,'Trial 7'!BZ29,'Trial 8'!BZ29)","v":{"v":0.3343700486100444,"d":"0.33"}},{"$f":"SUM(BO43:BZ43)","v":{"v":3.527084046911497,"d":"3.53"}},{"$f":"STDEV('Trial 1'!CB29,'Trial 2'!CB29,'Trial 3'!CB29,'Trial 4'!CB29,'Trial 5'!CB29,'Trial 6'!CB29,'Trial 7'!CB29,'Trial 8'!CB29)","v":{"v":0.3169908134232305,"d":"0.32"}},{"$f":"STDEV('Trial 1'!CC29,'Trial 2'!CC29,'Trial 3'!CC29,'Trial 4'!CC29,'Trial 5'!CC29,'Trial 6'!CC29,'Trial 7'!CC29,'Trial 8'!CC29)","v":{"v":0.30754251397805943,"d":"0.31"}},{"$f":"STDEV('Trial 1'!CD29,'Trial 2'!CD29,'Trial 3'!CD29,'Trial 4'!CD29,'Trial 5'!CD29,'Trial 6'!CD29,'Trial 7'!CD29,'Trial 8'!CD29)","v":{"v":0.3036910901563428,"d":"0.30"}},{"$f":"STDEV('Trial 1'!CE29,'Trial 2'!CE29,'Trial 3'!CE29,'Trial 4'!CE29,'Trial 5'!CE29,'Trial 6'!CE29,'Trial 7'!CE29,'Trial 8'!CE29)","v":{"v":0.29614224193258964,"d":"0.30"}},{"$f":"STDEV('Trial 1'!CF29,'Trial 2'!CF29,'Trial 3'!CF29,'Trial 4'!CF29,'Trial 5'!CF29,'Trial 6'!CF29,'Trial 7'!CF29,'Trial 8'!CF29)","v":{"v":0.29182162471637424,"d":"0.29"}},{"$f":"STDEV('Trial 1'!CG29,'Trial 2'!CG29,'Trial 3'!CG29,'Trial 4'!CG29,'Trial 5'!CG29,'Trial 6'!CG29,'Trial 7'!CG29,'Trial 8'!CG29)","v":{"v":0.28552770907183267,"d":"0.29"}},{"$f":"STDEV('Trial 1'!CH29,'Trial 2'!CH29,'Trial 3'!CH29,'Trial 4'!CH29,'Trial 5'!CH29,'Trial 6'!CH29,'Trial 7'!CH29,'Trial 8'!CH29)","v":{"v":0.31343885976959507,"d":"0.31"}},{"$f":"STDEV('Trial 1'!CI29,'Trial 2'!CI29,'Trial 3'!CI29,'Trial 4'!CI29,'Trial 5'!CI29,'Trial 6'!CI29,'Trial 7'!CI29,'Trial 8'!CI29)","v":{"v":0.29175922121746284,"d":"0.29"}},{"$f":"STDEV('Trial 1'!CJ29,'Trial 2'!CJ29,'Trial 3'!CJ29,'Trial 4'!CJ29,'Trial 5'!CJ29,'Trial 6'!CJ29,'Trial 7'!CJ29,'Trial 8'!CJ29)","v":{"v":0.26905680075685473,"d":"0.27"}},{"$f":"STDEV('Trial 1'!CK29,'Trial 2'!CK29,'Trial 3'!CK29,'Trial 4'!CK29,'Trial 5'!CK29,'Trial 6'!CK29,'Trial 7'!CK29,'Trial 8'!CK29)","v":{"v":0.2679034776157277,"d":"0.27"}},{"$f":"STDEV('Trial 1'!CL29,'Trial 2'!CL29,'Trial 3'!CL29,'Trial 4'!CL29,'Trial 5'!CL29,'Trial 6'!CL29,'Trial 7'!CL29,'Trial 8'!CL29)","v":{"v":0.27152706833304335,"d":"0.27"}},{"$f":"STDEV('Trial 1'!CM29,'Trial 2'!CM29,'Trial 3'!CM29,'Trial 4'!CM29,'Trial 5'!CM29,'Trial 6'!CM29,'Trial 7'!CM29,'Trial 8'!CM29)","v":{"v":0.2519020161343582,"d":"0.25"}},{"$f":"SUM(CB43:CM43)","v":{"v":3.467303437105471,"d":"3.47"}},{"$f":"STDEV('Trial 1'!CO29,'Trial 2'!CO29,'Trial 3'!CO29,'Trial 4'!CO29,'Trial 5'!CO29,'Trial 6'!CO29,'Trial 7'!CO29,'Trial 8'!CO29)","v":{"v":0.27145734420390927,"d":"0.27"}},{"$f":"STDEV('Trial 1'!CP29,'Trial 2'!CP29,'Trial 3'!CP29,'Trial 4'!CP29,'Trial 5'!CP29,'Trial 6'!CP29,'Trial 7'!CP29,'Trial 8'!CP29)","v":{"v":0.29485878960030804,"d":"0.29"}},{"$f":"STDEV('Trial 1'!CQ29,'Trial 2'!CQ29,'Trial 3'!CQ29,'Trial 4'!CQ29,'Trial 5'!CQ29,'Trial 6'!CQ29,'Trial 7'!CQ29,'Trial 8'!CQ29)","v":{"v":0.2910928039452948,"d":"0.29"}},{"$f":"STDEV('Trial 1'!CR29,'Trial 2'!CR29,'Trial 3'!CR29,'Trial 4'!CR29,'Trial 5'!CR29,'Trial 6'!CR29,'Trial 7'!CR29,'Trial 8'!CR29)","v":{"v":0.3040967509080632,"d":"0.30"}},{"$f":"STDEV('Trial 1'!CS29,'Trial 2'!CS29,'Trial 3'!CS29,'Trial 4'!CS29,'Trial 5'!CS29,'Trial 6'!CS29,'Trial 7'!CS29,'Trial 8'!CS29)","v":{"v":0.309429713713025,"d":"0.31"}},{"$f":"STDEV('Trial 1'!CT29,'Trial 2'!CT29,'Trial 3'!CT29,'Trial 4'!CT29,'Trial 5'!CT29,'Trial 6'!CT29,'Trial 7'!CT29,'Trial 8'!CT29)","v":{"v":0.2843023947293825,"d":"0.28"}},{"$f":"STDEV('Trial 1'!CU29,'Trial 2'!CU29,'Trial 3'!CU29,'Trial 4'!CU29,'Trial 5'!CU29,'Trial 6'!CU29,'Trial 7'!CU29,'Trial 8'!CU29)","v":{"v":0.289874776074609,"d":"0.29"}},{"$f":"STDEV('Trial 1'!CV29,'Trial 2'!CV29,'Trial 3'!CV29,'Trial 4'!CV29,'Trial 5'!CV29,'Trial 6'!CV29,'Trial 7'!CV29,'Trial 8'!CV29)","v":{"v":0.30418040690278186,"d":"0.30"}},{"$f":"STDEV('Trial 1'!CW29,'Trial 2'!CW29,'Trial 3'!CW29,'Trial 4'!CW29,'Trial 5'!CW29,'Trial 6'!CW29,'Trial 7'!CW29,'Trial 8'!CW29)","v":{"v":0.2896705505387364,"d":"0.29"}},{"$f":"STDEV('Trial 1'!CX29,'Trial 2'!CX29,'Trial 3'!CX29,'Trial 4'!CX29,'Trial 5'!CX29,'Trial 6'!CX29,'Trial 7'!CX29,'Trial 8'!CX29)","v":{"v":0.28912937370956693,"d":"0.29"}},{"$f":"STDEV('Trial 1'!CY29,'Trial 2'!CY29,'Trial 3'!CY29,'Trial 4'!CY29,'Trial 5'!CY29,'Trial 6'!CY29,'Trial 7'!CY29,'Trial 8'!CY29)","v":{"v":0.3022711565509214,"d":"0.30"}},{"$f":"STDEV('Trial 1'!CZ29,'Trial 2'!CZ29,'Trial 3'!CZ29,'Trial 4'!CZ29,'Trial 5'!CZ29,'Trial 6'!CZ29,'Trial 7'!CZ29,'Trial 8'!CZ29)","v":{"v":0.30259005189261673,"d":"0.30"}},{"$f":"SUM(CO43:CZ43)","v":{"v":3.532954112769215,"d":"3.53"}},{"$f":"STDEV('Trial 1'!DB29,'Trial 2'!DB29,'Trial 3'!DB29,'Trial 4'!DB29,'Trial 5'!DB29,'Trial 6'!DB29,'Trial 7'!DB29,'Trial 8'!DB29)","v":{"v":0.2932547070474038,"d":"0.29"}},{"$f":"STDEV('Trial 1'!DC29,'Trial 2'!DC29,'Trial 3'!DC29,'Trial 4'!DC29,'Trial 5'!DC29,'Trial 6'!DC29,'Trial 7'!DC29,'Trial 8'!DC29)","v":{"v":0.3312892236095838,"d":"0.33"}},{"$f":"STDEV('Trial 1'!DD29,'Trial 2'!DD29,'Trial 3'!DD29,'Trial 4'!DD29,'Trial 5'!DD29,'Trial 6'!DD29,'Trial 7'!DD29,'Trial 8'!DD29)","v":{"v":0.3183695352774834,"d":"0.32"}},{"$f":"STDEV('Trial 1'!DE29,'Trial 2'!DE29,'Trial 3'!DE29,'Trial 4'!DE29,'Trial 5'!DE29,'Trial 6'!DE29,'Trial 7'!DE29,'Trial 8'!DE29)","v":{"v":0.297653083720445,"d":"0.30"}},{"$f":"STDEV('Trial 1'!DF29,'Trial 2'!DF29,'Trial 3'!DF29,'Trial 4'!DF29,'Trial 5'!DF29,'Trial 6'!DF29,'Trial 7'!DF29,'Trial 8'!DF29)","v":{"v":0.275984240541402,"d":"0.28"}},{"$f":"STDEV('Trial 1'!DG29,'Trial 2'!DG29,'Trial 3'!DG29,'Trial 4'!DG29,'Trial 5'!DG29,'Trial 6'!DG29,'Trial 7'!DG29,'Trial 8'!DG29)","v":{"v":0.25700144934067043,"d":"0.26"}},{"$f":"STDEV('Trial 1'!DH29,'Trial 2'!DH29,'Trial 3'!DH29,'Trial 4'!DH29,'Trial 5'!DH29,'Trial 6'!DH29,'Trial 7'!DH29,'Trial 8'!DH29)","v":{"v":0.23725006433430124,"d":"0.24"}},{"$f":"STDEV('Trial 1'!DI29,'Trial 2'!DI29,'Trial 3'!DI29,'Trial 4'!DI29,'Trial 5'!DI29,'Trial 6'!DI29,'Trial 7'!DI29,'Trial 8'!DI29)","v":{"v":0.23048725400981576,"d":"0.23"}},{"$f":"STDEV('Trial 1'!DJ29,'Trial 2'!DJ29,'Trial 3'!DJ29,'Trial 4'!DJ29,'Trial 5'!DJ29,'Trial 6'!DJ29,'Trial 7'!DJ29,'Trial 8'!DJ29)","v":{"v":0.2091712439572926,"d":"0.21"}},{"$f":"STDEV('Trial 1'!DK29,'Trial 2'!DK29,'Trial 3'!DK29,'Trial 4'!DK29,'Trial 5'!DK29,'Trial 6'!DK29,'Trial 7'!DK29,'Trial 8'!DK29)","v":{"v":0.22979866102438615,"d":"0.23"}},{"$f":"STDEV('Trial 1'!DL29,'Trial 2'!DL29,'Trial 3'!DL29,'Trial 4'!DL29,'Trial 5'!DL29,'Trial 6'!DL29,'Trial 7'!DL29,'Trial 8'!DL29)","v":{"v":0.20864785356677834,"d":"0.21"}},{"$f":"STDEV('Trial 1'!DM29,'Trial 2'!DM29,'Trial 3'!DM29,'Trial 4'!DM29,'Trial 5'!DM29,'Trial 6'!DM29,'Trial 7'!DM29,'Trial 8'!DM29)","v":{"v":0.2414651086525561,"d":"0.24"}},{"$f":"SUM(DB43:DM43)","v":{"v":3.1303724250821183,"d":"3.13"}},{"$f":"STDEV('Trial 1'!DO29,'Trial 2'!DO29,'Trial 3'!DO29,'Trial 4'!DO29,'Trial 5'!DO29,'Trial 6'!DO29,'Trial 7'!DO29,'Trial 8'!DO29)","v":{"v":0.2417952451959647,"d":"0.24"}},{"$f":"STDEV('Trial 1'!DP29,'Trial 2'!DP29,'Trial 3'!DP29,'Trial 4'!DP29,'Trial 5'!DP29,'Trial 6'!DP29,'Trial 7'!DP29,'Trial 8'!DP29)","v":{"v":0.19532323750865535,"d":"0.20"}},{"$f":"STDEV('Trial 1'!DQ29,'Trial 2'!DQ29,'Trial 3'!DQ29,'Trial 4'!DQ29,'Trial 5'!DQ29,'Trial 6'!DQ29,'Trial 7'!DQ29,'Trial 8'!DQ29)","v":{"v":0.18903011109010992,"d":"0.19"}},{"$f":"STDEV('Trial 1'!DR29,'Trial 2'!DR29,'Trial 3'!DR29,'Trial 4'!DR29,'Trial 5'!DR29,'Trial 6'!DR29,'Trial 7'!DR29,'Trial 8'!DR29)","v":{"v":0.21518699380116751,"d":"0.22"}},{"$f":"STDEV('Trial 1'!DS29,'Trial 2'!DS29,'Trial 3'!DS29,'Trial 4'!DS29,'Trial 5'!DS29,'Trial 6'!DS29,'Trial 7'!DS29,'Trial 8'!DS29)","v":{"v":0.24518611515500408,"d":"0.25"}},{"$f":"STDEV('Trial 1'!DT29,'Trial 2'!DT29,'Trial 3'!DT29,'Trial 4'!DT29,'Trial 5'!DT29,'Trial 6'!DT29,'Trial 7'!DT29,'Trial 8'!DT29)","v":{"v":0.2527105634139037,"d":"0.25"}},{"$f":"STDEV('Trial 1'!DU29,'Trial 2'!DU29,'Trial 3'!DU29,'Trial 4'!DU29,'Trial 5'!DU29,'Trial 6'!DU29,'Trial 7'!DU29,'Trial 8'!DU29)","v":{"v":0.2777064905196618,"d":"0.28"}},{"$f":"STDEV('Trial 1'!DV29,'Trial 2'!DV29,'Trial 3'!DV29,'Trial 4'!DV29,'Trial 5'!DV29,'Trial 6'!DV29,'Trial 7'!DV29,'Trial 8'!DV29)","v":{"v":0.2807038530613941,"d":"0.28"}},{"$f":"STDEV('Trial 1'!DW29,'Trial 2'!DW29,'Trial 3'!DW29,'Trial 4'!DW29,'Trial 5'!DW29,'Trial 6'!DW29,'Trial 7'!DW29,'Trial 8'!DW29)","v":{"v":0.2731513420606415,"d":"0.27"}},{"$f":"STDEV('Trial 1'!DX29,'Trial 2'!DX29,'Trial 3'!DX29,'Trial 4'!DX29,'Trial 5'!DX29,'Trial 6'!DX29,'Trial 7'!DX29,'Trial 8'!DX29)","v":{"v":0.28560364878049593,"d":"0.29"}},{"$f":"STDEV('Trial 1'!DY29,'Trial 2'!DY29,'Trial 3'!DY29,'Trial 4'!DY29,'Trial 5'!DY29,'Trial 6'!DY29,'Trial 7'!DY29,'Trial 8'!DY29)","v":{"v":0.25338564265118635,"d":"0.25"}},{"$f":"STDEV('Trial 1'!DZ29,'Trial 2'!DZ29,'Trial 3'!DZ29,'Trial 4'!DZ29,'Trial 5'!DZ29,'Trial 6'!DZ29,'Trial 7'!DZ29,'Trial 8'!DZ29)","v":{"v":0.2606324599680921,"d":"0.26"}},{"$f":"SUM(DO43:DZ43)","v":{"v":2.9704157032062772,"d":"2.97"}},{"$f":"STDEV('Trial 1'!EB29,'Trial 2'!EB29,'Trial 3'!EB29,'Trial 4'!EB29,'Trial 5'!EB29,'Trial 6'!EB29,'Trial 7'!EB29,'Trial 8'!EB29)","v":{"v":0.28637159366606213,"d":"0.29"}},{"$f":"STDEV('Trial 1'!EC29,'Trial 2'!EC29,'Trial 3'!EC29,'Trial 4'!EC29,'Trial 5'!EC29,'Trial 6'!EC29,'Trial 7'!EC29,'Trial 8'!EC29)","v":{"v":0.24433689427032704,"d":"0.24"}},{"$f":"STDEV('Trial 1'!ED29,'Trial 2'!ED29,'Trial 3'!ED29,'Trial 4'!ED29,'Trial 5'!ED29,'Trial 6'!ED29,'Trial 7'!ED29,'Trial 8'!ED29)","v":{"v":0.22002408397617162,"d":"0.22"}},{"$f":"STDEV('Trial 1'!EE29,'Trial 2'!EE29,'Trial 3'!EE29,'Trial 4'!EE29,'Trial 5'!EE29,'Trial 6'!EE29,'Trial 7'!EE29,'Trial 8'!EE29)","v":{"v":0.24016061443687073,"d":"0.24"}},{"$f":"STDEV('Trial 1'!EF29,'Trial 2'!EF29,'Trial 3'!EF29,'Trial 4'!EF29,'Trial 5'!EF29,'Trial 6'!EF29,'Trial 7'!EF29,'Trial 8'!EF29)","v":{"v":0.24592542276706483,"d":"0.25"}},{"$f":"STDEV('Trial 1'!EG29,'Trial 2'!EG29,'Trial 3'!EG29,'Trial 4'!EG29,'Trial 5'!EG29,'Trial 6'!EG29,'Trial 7'!EG29,'Trial 8'!EG29)","v":{"v":0.23826961561922996,"d":"0.24"}},{"$f":"STDEV('Trial 1'!EH29,'Trial 2'!EH29,'Trial 3'!EH29,'Trial 4'!EH29,'Trial 5'!EH29,'Trial 6'!EH29,'Trial 7'!EH29,'Trial 8'!EH29)","v":{"v":0.26785591354569876,"d":"0.27"}},{"$f":"STDEV('Trial 1'!EI29,'Trial 2'!EI29,'Trial 3'!EI29,'Trial 4'!EI29,'Trial 5'!EI29,'Trial 6'!EI29,'Trial 7'!EI29,'Trial 8'!EI29)","v":{"v":0.30184073668112443,"d":"0.30"}},{"$f":"STDEV('Trial 1'!EJ29,'Trial 2'!EJ29,'Trial 3'!EJ29,'Trial 4'!EJ29,'Trial 5'!EJ29,'Trial 6'!EJ29,'Trial 7'!EJ29,'Trial 8'!EJ29)","v":{"v":0.2913066643498601,"d":"0.29"}},{"$f":"STDEV('Trial 1'!EK29,'Trial 2'!EK29,'Trial 3'!EK29,'Trial 4'!EK29,'Trial 5'!EK29,'Trial 6'!EK29,'Trial 7'!EK29,'Trial 8'!EK29)","v":{"v":0.2833129733170898,"d":"0.28"}},{"$f":"STDEV('Trial 1'!EL29,'Trial 2'!EL29,'Trial 3'!EL29,'Trial 4'!EL29,'Trial 5'!EL29,'Trial 6'!EL29,'Trial 7'!EL29,'Trial 8'!EL29)","v":{"v":0.28968163663944013,"d":"0.29"}},{"$f":"STDEV('Trial 1'!EM29,'Trial 2'!EM29,'Trial 3'!EM29,'Trial 4'!EM29,'Trial 5'!EM29,'Trial 6'!EM29,'Trial 7'!EM29,'Trial 8'!EM29)","v":{"v":0.2595887944620912,"d":"0.26"}},{"$f":"SUM(EB43:EM43)","v":{"v":3.1686749437310304,"d":"3.17"}}]
[]
[]
[{"$f":"\"Income\"","v":"Income"}]
[{"$f":"\" \"","v":" "}]
[null,{"$f":"ZZZ__FnCalls!F7","v":"Jan 2010"},{"$f":"ZZZ__FnCalls!F8","v":"Feb 2010"},{"$f":"ZZZ__FnCalls!F9","v":"Mar 2010"},{"$f":"ZZZ__FnCalls!F10","v":"Apr 2010"},{"$f":"ZZZ__FnCalls!F11","v":"May 2010"},{"$f":"ZZZ__FnCalls!F12","v":"Jun 2010"},{"$f":"ZZZ__FnCalls!F13","v":"Jul 2010"},{"$f":"ZZZ__FnCalls!F14","v":"Aug 2010"},{"$f":"ZZZ__FnCalls!F15","v":"Sep 2010"},{"$f":"ZZZ__FnCalls!F16","v":"Oct 2010"},{"$f":"ZZZ__FnCalls!F17","v":"Nov 2010"},{"$f":"ZZZ__FnCalls!F18","v":"Dec 2010"},{"$f":"ZZZ__FnCalls!H7","v":"2010"},{"$f":"ZZZ__FnCalls!F19","v":"Jan 2011"},{"$f":"ZZZ__FnCalls!F20","v":"Feb 2011"},{"$f":"ZZZ__FnCalls!F21","v":"Mar 2011"},{"$f":"ZZZ__FnCalls!F22","v":"Apr 2011"},{"$f":"ZZZ__FnCalls!F23","v":"May 2011"},{"$f":"ZZZ__FnCalls!F24","v":"Jun 2011"},{"$f":"ZZZ__FnCalls!F25","v":"Jul 2011"},{"$f":"ZZZ__FnCalls!F26","v":"Aug 2011"},{"$f":"ZZZ__FnCalls!F27","v":"Sep 2011"},{"$f":"ZZZ__FnCalls!F28","v":"Oct 2011"},{"$f":"ZZZ__FnCalls!F29","v":"Nov 2011"},{"$f":"ZZZ__FnCalls!F30","v":"Dec 2011"},{"$f":"ZZZ__FnCalls!H19","v":"2011"},{"$f":"ZZZ__FnCalls!F31","v":"Jan 2012"},{"$f":"ZZZ__FnCalls!F32","v":"Feb 2012"},{"$f":"ZZZ__FnCalls!F33","v":"Mar 2012"},{"$f":"ZZZ__FnCalls!F34","v":"Apr 2012"},{"$f":"ZZZ__FnCalls!F35","v":"May 2012"},{"$f":"ZZZ__FnCalls!F36","v":"Jun 2012"},{"$f":"ZZZ__FnCalls!F37","v":"Jul 2012"},{"$f":"ZZZ__FnCalls!F38","v":"Aug 2012"},{"$f":"ZZZ__FnCalls!F39","v":"Sep 2012"},{"$f":"ZZZ__FnCalls!F40","v":"Oct 2012"},{"$f":"ZZZ__FnCalls!F41","v":"Nov 2012"},{"$f":"ZZZ__FnCalls!F42","v":"Dec 2012"},{"$f":"ZZZ__FnCalls!H31","v":"2012"},{"$f":"ZZZ__FnCalls!F43","v":"Jan 2013"},{"$f":"ZZZ__FnCalls!F44","v":"Feb 2013"},{"$f":"ZZZ__FnCalls!F45","v":"Mar 2013"},{"$f":"ZZZ__FnCalls!F46","v":"Apr 2013"},{"$f":"ZZZ__FnCalls!F47","v":"May 2013"},{"$f":"ZZZ__FnCalls!F48","v":"Jun 2013"},{"$f":"ZZZ__FnCalls!F49","v":"Jul 2013"},{"$f":"ZZZ__FnCalls!F50","v":"Aug 2013"},{"$f":"ZZZ__FnCalls!F51","v":"Sep 2013"},{"$f":"ZZZ__FnCalls!F52","v":"Oct 2013"},{"$f":"ZZZ__FnCalls!F53","v":"Nov 2013"},{"$f":"ZZZ__FnCalls!F54","v":"Dec 2013"},{"$f":"ZZZ__FnCalls!H43","v":"2013"},{"$f":"ZZZ__FnCalls!F55","v":"Jan 2014"},{"$f":"ZZZ__FnCalls!F56","v":"Feb 2014"},{"$f":"ZZZ__FnCalls!F57","v":"Mar 2014"},{"$f":"ZZZ__FnCalls!F58","v":"Apr 2014"},{"$f":"ZZZ__FnCalls!F59","v":"May 2014"},{"$f":"ZZZ__FnCalls!F60","v":"Jun 2014"},{"$f":"ZZZ__FnCalls!F61","v":"Jul 2014"},{"$f":"ZZZ__FnCalls!F62","v":"Aug 2014"},{"$f":"ZZZ__FnCalls!F63","v":"Sep 2014"},{"$f":"ZZZ__FnCalls!F64","v":"Oct 2014"},{"$f":"ZZZ__FnCalls!F65","v":"Nov 2014"},{"$f":"ZZZ__FnCalls!F66","v":"Dec 2014"},{"$f":"ZZZ__FnCalls!H55","v":"2014"},{"$f":"ZZZ__FnCalls!F67","v":"Jan 2015"},{"$f":"ZZZ__FnCalls!F68","v":"Feb 2015"},{"$f":"ZZZ__FnCalls!F69","v":"Mar 2015"},{"$f":"ZZZ__FnCalls!F70","v":"Apr 2015"},{"$f":"ZZZ__FnCalls!F71","v":"May 2015"},{"$f":"ZZZ__FnCalls!F72","v":"Jun 2015"},{"$f":"ZZZ__FnCalls!F73","v":"Jul 2015"},{"$f":"ZZZ__FnCalls!F74","v":"Aug 2015"},{"$f":"ZZZ__FnCalls!F75","v":"Sep 2015"},{"$f":"ZZZ__FnCalls!F76","v":"Oct 2015"},{"$f":"ZZZ__FnCalls!F77","v":"Nov 2015"},{"$f":"ZZZ__FnCalls!F78","v":"Dec 2015"},{"$f":"ZZZ__FnCalls!H67","v":"2015"},{"$f":"ZZZ__FnCalls!F79","v":"Jan 2016"},{"$f":"ZZZ__FnCalls!F80","v":"Feb 2016"},{"$f":"ZZZ__FnCalls!F81","v":"Mar 2016"},{"$f":"ZZZ__FnCalls!F82","v":"Apr 2016"},{"$f":"ZZZ__FnCalls!F83","v":"May 2016"},{"$f":"ZZZ__FnCalls!F84","v":"Jun 2016"},{"$f":"ZZZ__FnCalls!F85","v":"Jul 2016"},{"$f":"ZZZ__FnCalls!F86","v":"Aug 2016"},{"$f":"ZZZ__FnCalls!F87","v":"Sep 2016"},{"$f":"ZZZ__FnCalls!F88","v":"Oct 2016"},{"$f":"ZZZ__FnCalls!F89","v":"Nov 2016"},{"$f":"ZZZ__FnCalls!F90","v":"Dec 2016"},{"$f":"ZZZ__FnCalls!H79","v":"2016"},{"$f":"ZZZ__FnCalls!F91","v":"Jan 2017"},{"$f":"ZZZ__FnCalls!F92","v":"Feb 2017"},{"$f":"ZZZ__FnCalls!F93","v":"Mar 2017"},{"$f":"ZZZ__FnCalls!F94","v":"Apr 2017"},{"$f":"ZZZ__FnCalls!F95","v":"May 2017"},{"$f":"ZZZ__FnCalls!F96","v":"Jun 2017"},{"$f":"ZZZ__FnCalls!F97","v":"Jul 2017"},{"$f":"ZZZ__FnCalls!F98","v":"Aug 2017"},{"$f":"ZZZ__FnCalls!F99","v":"Sep 2017"},{"$f":"ZZZ__FnCalls!F100","v":"Oct 2017"},{"$f":"ZZZ__FnCalls!F101","v":"Nov 2017"},{"$f":"ZZZ__FnCalls!F102","v":"Dec 2017"},{"$f":"ZZZ__FnCalls!H91","v":"2017"},{"$f":"ZZZ__FnCalls!F103","v":"Jan 2018"},{"$f":"ZZZ__FnCalls!F104","v":"Feb 2018"},{"$f":"ZZZ__FnCalls!F105","v":"Mar 2018"},{"$f":"ZZZ__FnCalls!F106","v":"Apr 2018"},{"$f":"ZZZ__FnCalls!F107","v":"May 2018"},{"$f":"ZZZ__FnCalls!F108","v":"Jun 2018"},{"$f":"ZZZ__FnCalls!F109","v":"Jul 2018"},{"$f":"ZZZ__FnCalls!F110","v":"Aug 2018"},{"$f":"ZZZ__FnCalls!F111","v":"Sep 2018"},{"$f":"ZZZ__FnCalls!F112","v":"Oct 2018"},{"$f":"ZZZ__FnCalls!F113","v":"Nov 2018"},{"$f":"ZZZ__FnCalls!F114","v":"Dec 2018"},{"$f":"ZZZ__FnCalls!H103","v":"2018"},{"$f":"ZZZ__FnCalls!F115","v":"Jan 2019"},{"$f":"ZZZ__FnCalls!F116","v":"Feb 2019"},{"$f":"ZZZ__FnCalls!F117","v":"Mar 2019"},{"$f":"ZZZ__FnCalls!F118","v":"Apr 2019"},{"$f":"ZZZ__FnCalls!F119","v":"May 2019"},{"$f":"ZZZ__FnCalls!F120","v":"Jun 2019"},{"$f":"ZZZ__FnCalls!F121","v":"Jul 2019"},{"$f":"ZZZ__FnCalls!F122","v":"Aug 2019"},{"$f":"ZZZ__FnCalls!F123","v":"Sep 2019"},{"$f":"ZZZ__FnCalls!F124","v":"Oct 2019"},{"$f":"ZZZ__FnCalls!F125","v":"Nov 2019"},{"$f":"ZZZ__FnCalls!F126","v":"Dec 2019"},{"$f":"ZZZ__FnCalls!H115","v":"2019"},{"$f":"ZZZ__FnCalls!F127","v":"Jan 2020"},{"$f":"ZZZ__FnCalls!F128","v":"Feb 2020"},{"$f":"ZZZ__FnCalls!F129","v":"Mar 2020"},{"$f":"ZZZ__FnCalls!F130","v":"Apr 2020"},{"$f":"ZZZ__FnCalls!F131","v":"May 2020"},{"$f":"ZZZ__FnCalls!F132","v":"Jun 2020"},{"$f":"ZZZ__FnCalls!F133","v":"Jul 2020"},{"$f":"ZZZ__FnCalls!F134","v":"Aug 2020"},{"$f":"ZZZ__FnCalls!F135","v":"Sep 2020"},{"$f":"ZZZ__FnCalls!F136","v":"Oct 2020"},{"$f":"ZZZ__FnCalls!F137","v":"Nov 2020"},{"$f":"ZZZ__FnCalls!F138","v":"Dec 2020"},{"$f":"ZZZ__FnCalls!H127","v":"2020"}]
[{"$f":"Labels!B56","v":"Current Disposable Income"},{"$f":"AVERAGE('Trial 1'!B35,'Trial 2'!B35,'Trial 3'!B35,'Trial 4'!B35,'Trial 5'!B35,'Trial 6'!B35,'Trial 7'!B35,'Trial 8'!B35)","v":{"v":841354.4178057668,"d":"$841,354"}},{"$f":"AVERAGE('Trial 1'!C35,'Trial 2'!C35,'Trial 3'!C35,'Trial 4'!C35,'Trial 5'!C35,'Trial 6'!C35,'Trial 7'!C35,'Trial 8'!C35)","v":{"v":832338.6373909429,"d":"$832,339"}},{"$f":"AVERAGE('Trial 1'!D35,'Trial 2'!D35,'Trial 3'!D35,'Trial 4'!D35,'Trial 5'!D35,'Trial 6'!D35,'Trial 7'!D35,'Trial 8'!D35)","v":{"v":831386.897646623,"d":"$831,387"}},{"$f":"AVERAGE('Trial 1'!E35,'Trial 2'!E35,'Trial 3'!E35,'Trial 4'!E35,'Trial 5'!E35,'Trial 6'!E35,'Trial 7'!E35,'Trial 8'!E35)","v":{"v":818654.7385535685,"d":"$818,655"}},{"$f":"AVERAGE('Trial 1'!F35,'Trial 2'!F35,'Trial 3'!F35,'Trial 4'!F35,'Trial 5'!F35,'Trial 6'!F35,'Trial 7'!F35,'Trial 8'!F35)","v":{"v":819233.837165151,"d":"$819,234"}},{"$f":"AVERAGE('Trial 1'!G35,'Trial 2'!G35,'Trial 3'!G35,'Trial 4'!G35,'Trial 5'!G35,'Trial 6'!G35,'Trial 7'!G35,'Trial 8'!G35)","v":{"v":823437.6080823254,"d":"$823,438"}},{"$f":"AVERAGE('Trial 1'!H35,'Trial 2'!H35,'Trial 3'!H35,'Trial 4'!H35,'Trial 5'!H35,'Trial 6'!H35,'Trial 7'!H35,'Trial 8'!H35)","v":{"v":841105.7606942111,"d":"$841,106"}},{"$f":"AVERAGE('Trial 1'!I35,'Trial 2'!I35,'Trial 3'!I35,'Trial 4'!I35,'Trial 5'!I35,'Trial 6'!I35,'Trial 7'!I35,'Trial 8'!I35)","v":{"v":823746.4344941636,"d":"$823,746"}},{"$f":"AVERAGE('Trial 1'!J35,'Trial 2'!J35,'Trial 3'!J35,'Trial 4'!J35,'Trial 5'!J35,'Trial 6'!J35,'Trial 7'!J35,'Trial 8'!J35)","v":{"v":834503.2984854834,"d":"$834,503"}},{"$f":"AVERAGE('Trial 1'!K35,'Trial 2'!K35,'Trial 3'!K35,'Trial 4'!K35,'Trial 5'!K35,'Trial 6'!K35,'Trial 7'!K35,'Trial 8'!K35)","v":{"v":819160.0025060202,"d":"$819,160"}},{"$f":"AVERAGE('Trial 1'!L35,'Trial 2'!L35,'Trial 3'!L35,'Trial 4'!L35,'Trial 5'!L35,'Trial 6'!L35,'Trial 7'!L35,'Trial 8'!L35)","v":{"v":829077.618476485,"d":"$829,078"}},{"$f":"AVERAGE('Trial 1'!M35,'Trial 2'!M35,'Trial 3'!M35,'Trial 4'!M35,'Trial 5'!M35,'Trial 6'!M35,'Trial 7'!M35,'Trial 8'!M35)","v":{"v":827829.0896197938,"d":"$827,829"}},{"$f":"SUM(B49:M49)","v":{"v":9941828.340920534,"d":"$9,941,828"}},{"$f":"AVERAGE('Trial 1'!O35,'Trial 2'!O35,'Trial 3'!O35,'Trial 4'!O35,'Trial 5'!O35,'Trial 6'!O35,'Trial 7'!O35,'Trial 8'!O35)","v":{"v":815130.147610999,"d":"$815,130"}},{"$f":"AVERAGE('Trial 1'!P35,'Trial 2'!P35,'Trial 3'!P35,'Trial 4'!P35,'Trial 5'!P35,'Trial 6'!P35,'Trial 7'!P35,'Trial 8'!P35)","v":{"v":823767.7890389154,"d":"$823,768"}},{"$f":"AVERAGE('Trial 1'!Q35,'Trial 2'!Q35,'Trial 3'!Q35,'Trial 4'!Q35,'Trial 5'!Q35,'Trial 6'!Q35,'Trial 7'!Q35,'Trial 8'!Q35)","v":{"v":831705.8671676426,"d":"$831,706"}},{"$f":"AVERAGE('Trial 1'!R35,'Trial 2'!R35,'Trial 3'!R35,'Trial 4'!R35,'Trial 5'!R35,'Trial 6'!R35,'Trial 7'!R35,'Trial 8'!R35)","v":{"v":821028.9562705846,"d":"$821,029"}},{"$f":"AVERAGE('Trial 1'!S35,'Trial 2'!S35,'Trial 3'!S35,'Trial 4'!S35,'Trial 5'!S35,'Trial 6'!S35,'Trial 7'!S35,'Trial 8'!S35)","v":{"v":822383.1634863393,"d":"$822,383"}},{"$f":"AVERAGE('Trial 1'!T35,'Trial 2'!T35,'Trial 3'!T35,'Trial 4'!T35,'Trial 5'!T35,'Trial 6'!T35,'Trial 7'!T35,'Trial 8'!T35)","v":{"v":818242.2035692999,"d":"$818,242"}},{"$f":"AVERAGE('Trial 1'!U35,'Trial 2'!U35,'Trial 3'!U35,'Trial 4'!U35,'Trial 5'!U35,'Trial 6'!U35,'Trial 7'!U35,'Trial 8'!U35)","v":{"v":810986.13875532,"d":"$810,986"}},{"$f":"AVERAGE('Trial 1'!V35,'Trial 2'!V35,'Trial 3'!V35,'Trial 4'!V35,'Trial 5'!V35,'Trial 6'!V35,'Trial 7'!V35,'Trial 8'!V35)","v":{"v":820082.2230283489,"d":"$820,082"}},{"$f":"AVERAGE('Trial 1'!W35,'Trial 2'!W35,'Trial 3'!W35,'Trial 4'!W35,'Trial 5'!W35,'Trial 6'!W35,'Trial 7'!W35,'Trial 8'!W35)","v":{"v":810469.5027545285,"d":"$810,470"}},{"$f":"AVERAGE('Trial 1'!X35,'Trial 2'!X35,'Trial 3'!X35,'Trial 4'!X35,'Trial 5'!X35,'Trial 6'!X35,'Trial 7'!X35,'Trial 8'!X35)","v":{"v":815233.5879337615,"d":"$815,234"}},{"$f":"AVERAGE('Trial 1'!Y35,'Trial 2'!Y35,'Trial 3'!Y35,'Trial 4'!Y35,'Trial 5'!Y35,'Trial 6'!Y35,'Trial 7'!Y35,'Trial 8'!Y35)","v":{"v":804624.121016357,"d":"$804,624"}},{"$f":"AVERAGE('Trial 1'!Z35,'Trial 2'!Z35,'Trial 3'!Z35,'Trial 4'!Z35,'Trial 5'!Z35,'Trial 6'!Z35,'Trial 7'!Z35,'Trial 8'!Z35)","v":{"v":815714.4286471204,"d":"$815,714"}},{"$f":"SUM(O49:Z49)","v":{"v":9809368.129279217,"d":"$9,809,368"}},{"$f":"AVERAGE('Trial 1'!AB35,'Trial 2'!AB35,'Trial 3'!AB35,'Trial 4'!AB35,'Trial 5'!AB35,'Trial 6'!AB35,'Trial 7'!AB35,'Trial 8'!AB35)","v":{"v":801836.7409035952,"d":"$801,837"}},{"$f":"AVERAGE('Trial 1'!AC35,'Trial 2'!AC35,'Trial 3'!AC35,'Trial 4'!AC35,'Trial 5'!AC35,'Trial 6'!AC35,'Trial 7'!AC35,'Trial 8'!AC35)","v":{"v":805613.9274634963,"d":"$805,614"}},{"$f":"AVERAGE('Trial 1'!AD35,'Trial 2'!AD35,'Trial 3'!AD35,'Trial 4'!AD35,'Trial 5'!AD35,'Trial 6'!AD35,'Trial 7'!AD35,'Trial 8'!AD35)","v":{"v":818689.2781731401,"d":"$818,689"}},{"$f":"AVERAGE('Trial 1'!AE35,'Trial 2'!AE35,'Trial 3'!AE35,'Trial 4'!AE35,'Trial 5'!AE35,'Trial 6'!AE35,'Trial 7'!AE35,'Trial 8'!AE35)","v":{"v":793982.3823065864,"d":"$793,982"}},{"$f":"AVERAGE('Trial 1'!AF35,'Trial 2'!AF35,'Trial 3'!AF35,'Trial 4'!AF35,'Trial 5'!AF35,'Trial 6'!AF35,'Trial 7'!AF35,'Trial 8'!AF35)","v":{"v":806219.9165581124,"d":"$806,220"}},{"$f":"AVERAGE('Trial 1'!AG35,'Trial 2'!AG35,'Trial 3'!AG35,'Trial 4'!AG35,'Trial 5'!AG35,'Trial 6'!AG35,'Trial 7'!AG35,'Trial 8'!AG35)","v":{"v":806204.7743676082,"d":"$806,205"}},{"$f":"AVERAGE('Trial 1'!AH35,'Trial 2'!AH35,'Trial 3'!AH35,'Trial 4'!AH35,'Trial 5'!AH35,'Trial 6'!AH35,'Trial 7'!AH35,'Trial 8'!AH35)","v":{"v":808586.0617625333,"d":"$808,586"}},{"$f":"AVERAGE('Trial 1'!AI35,'Trial 2'!AI35,'Trial 3'!AI35,'Trial 4'!AI35,'Trial 5'!AI35,'Trial 6'!AI35,'Trial 7'!AI35,'Trial 8'!AI35)","v":{"v":788314.5363894183,"d":"$788,315"}},{"$f":"AVERAGE('Trial 1'!AJ35,'Trial 2'!AJ35,'Trial 3'!AJ35,'Trial 4'!AJ35,'Trial 5'!AJ35,'Trial 6'!AJ35,'Trial 7'!AJ35,'Trial 8'!AJ35)","v":{"v":803047.9371940404,"d":"$803,048"}},{"$f":"AVERAGE('Trial 1'!AK35,'Trial 2'!AK35,'Trial 3'!AK35,'Trial 4'!AK35,'Trial 5'!AK35,'Trial 6'!AK35,'Trial 7'!AK35,'Trial 8'!AK35)","v":{"v":804268.0429034352,"d":"$804,268"}},{"$f":"AVERAGE('Trial 1'!AL35,'Trial 2'!AL35,'Trial 3'!AL35,'Trial 4'!AL35,'Trial 5'!AL35,'Trial 6'!AL35,'Trial 7'!AL35,'Trial 8'!AL35)","v":{"v":794607.1187676721,"d":"$794,607"}},{"$f":"AVERAGE('Trial 1'!AM35,'Trial 2'!AM35,'Trial 3'!AM35,'Trial 4'!AM35,'Trial 5'!AM35,'Trial 6'!AM35,'Trial 7'!AM35,'Trial 8'!AM35)","v":{"v":804101.8536191108,"d":"$804,102"}},{"$f":"SUM(AB49:AM49)","v":{"v":9635472.570408747,"d":"$9,635,473"}},{"$f":"AVERAGE('Trial 1'!AO35,'Trial 2'!AO35,'Trial 3'!AO35,'Trial 4'!AO35,'Trial 5'!AO35,'Trial 6'!AO35,'Trial 7'!AO35,'Trial 8'!AO35)","v":{"v":783032.6608659799,"d":"$783,033"}},{"$f":"AVERAGE('Trial 1'!AP35,'Trial 2'!AP35,'Trial 3'!AP35,'Trial 4'!AP35,'Trial 5'!AP35,'Trial 6'!AP35,'Trial 7'!AP35,'Trial 8'!AP35)","v":{"v":787307.1635825565,"d":"$787,307"}},{"$f":"AVERAGE('Trial 1'!AQ35,'Trial 2'!AQ35,'Trial 3'!AQ35,'Trial 4'!AQ35,'Trial 5'!AQ35,'Trial 6'!AQ35,'Trial 7'!AQ35,'Trial 8'!AQ35)","v":{"v":802381.1592467398,"d":"$802,381"}},{"$f":"AVERAGE('Trial 1'!AR35,'Trial 2'!AR35,'Trial 3'!AR35,'Trial 4'!AR35,'Trial 5'!AR35,'Trial 6'!AR35,'Trial 7'!AR35,'Trial 8'!AR35)","v":{"v":793626.8131326119,"d":"$793,627"}},{"$f":"AVERAGE('Trial 1'!AS35,'Trial 2'!AS35,'Trial 3'!AS35,'Trial 4'!AS35,'Trial 5'!AS35,'Trial 6'!AS35,'Trial 7'!AS35,'Trial 8'!AS35)","v":{"v":778500.5111574568,"d":"$778,501"}},{"$f":"AVERAGE('Trial 1'!AT35,'Trial 2'!AT35,'Trial 3'!AT35,'Trial 4'!AT35,'Trial 5'!AT35,'Trial 6'!AT35,'Trial 7'!AT35,'Trial 8'!AT35)","v":{"v":778006.5350803168,"d":"$778,007"}},{"$f":"AVERAGE('Trial 1'!AU35,'Trial 2'!AU35,'Trial 3'!AU35,'Trial 4'!AU35,'Trial 5'!AU35,'Trial 6'!AU35,'Trial 7'!AU35,'Trial 8'!AU35)","v":{"v":799332.818584517,"d":"$799,333"}},{"$f":"AVERAGE('Trial 1'!AV35,'Trial 2'!AV35,'Trial 3'!AV35,'Trial 4'!AV35,'Trial 5'!AV35,'Trial 6'!AV35,'Trial 7'!AV35,'Trial 8'!AV35)","v":{"v":798945.5407460565,"d":"$798,946"}},{"$f":"AVERAGE('Trial 1'!AW35,'Trial 2'!AW35,'Trial 3'!AW35,'Trial 4'!AW35,'Trial 5'!AW35,'Trial 6'!AW35,'Trial 7'!AW35,'Trial 8'!AW35)","v":{"v":782271.7193322998,"d":"$782,272"}},{"$f":"AVERAGE('Trial 1'!AX35,'Trial 2'!AX35,'Trial 3'!AX35,'Trial 4'!AX35,'Trial 5'!AX35,'Trial 6'!AX35,'Trial 7'!AX35,'Trial 8'!AX35)","v":{"v":790602.4454067072,"d":"$790,602"}},{"$f":"AVERAGE('Trial 1'!AY35,'Trial 2'!AY35,'Trial 3'!AY35,'Trial 4'!AY35,'Trial 5'!AY35,'Trial 6'!AY35,'Trial 7'!AY35,'Trial 8'!AY35)","v":{"v":783135.6839234595,"d":"$783,136"}},{"$f":"AVERAGE('Trial 1'!AZ35,'Trial 2'!AZ35,'Trial 3'!AZ35,'Trial 4'!AZ35,'Trial 5'!AZ35,'Trial 6'!AZ35,'Trial 7'!AZ35,'Trial 8'!AZ35)","v":{"v":787103.0622679569,"d":"$787,103"}},{"$f":"SUM(AO49:AZ49)","v":{"v":9464246.113326658,"d":"$9,464,246"}},{"$f":"AVERAGE('Trial 1'!BB35,'Trial 2'!BB35,'Trial 3'!BB35,'Trial 4'!BB35,'Trial 5'!BB35,'Trial 6'!BB35,'Trial 7'!BB35,'Trial 8'!BB35)","v":{"v":782972.1621073153,"d":"$782,972"}},{"$f":"AVERAGE('Trial 1'!BC35,'Trial 2'!BC35,'Trial 3'!BC35,'Trial 4'!BC35,'Trial 5'!BC35,'Trial 6'!BC35,'Trial 7'!BC35,'Trial 8'!BC35)","v":{"v":793926.1192186634,"d":"$793,926"}},{"$f":"AVERAGE('Trial 1'!BD35,'Trial 2'!BD35,'Trial 3'!BD35,'Trial 4'!BD35,'Trial 5'!BD35,'Trial 6'!BD35,'Trial 7'!BD35,'Trial 8'!BD35)","v":{"v":796986.3504597582,"d":"$796,986"}},{"$f":"AVERAGE('Trial 1'!BE35,'Trial 2'!BE35,'Trial 3'!BE35,'Trial 4'!BE35,'Trial 5'!BE35,'Trial 6'!BE35,'Trial 7'!BE35,'Trial 8'!BE35)","v":{"v":785234.2076521941,"d":"$785,234"}},{"$f":"AVERAGE('Trial 1'!BF35,'Trial 2'!BF35,'Trial 3'!BF35,'Trial 4'!BF35,'Trial 5'!BF35,'Trial 6'!BF35,'Trial 7'!BF35,'Trial 8'!BF35)","v":{"v":778131.312989056,"d":"$778,131"}},{"$f":"AVERAGE('Trial 1'!BG35,'Trial 2'!BG35,'Trial 3'!BG35,'Trial 4'!BG35,'Trial 5'!BG35,'Trial 6'!BG35,'Trial 7'!BG35,'Trial 8'!BG35)","v":{"v":776415.0809962744,"d":"$776,415"}},{"$f":"AVERAGE('Trial 1'!BH35,'Trial 2'!BH35,'Trial 3'!BH35,'Trial 4'!BH35,'Trial 5'!BH35,'Trial 6'!BH35,'Trial 7'!BH35,'Trial 8'!BH35)","v":{"v":790743.9170905573,"d":"$790,744"}},{"$f":"AVERAGE('Trial 1'!BI35,'Trial 2'!BI35,'Trial 3'!BI35,'Trial 4'!BI35,'Trial 5'!BI35,'Trial 6'!BI35,'Trial 7'!BI35,'Trial 8'!BI35)","v":{"v":774333.9023203136,"d":"$774,334"}},{"$f":"AVERAGE('Trial 1'!BJ35,'Trial 2'!BJ35,'Trial 3'!BJ35,'Trial 4'!BJ35,'Trial 5'!BJ35,'Trial 6'!BJ35,'Trial 7'!BJ35,'Trial 8'!BJ35)","v":{"v":778407.0852173371,"d":"$778,407"}},{"$f":"AVERAGE('Trial 1'!BK35,'Trial 2'!BK35,'Trial 3'!BK35,'Trial 4'!BK35,'Trial 5'!BK35,'Trial 6'!BK35,'Trial 7'!BK35,'Trial 8'!BK35)","v":{"v":778359.9847580128,"d":"$778,360"}},{"$f":"AVERAGE('Trial 1'!BL35,'Trial 2'!BL35,'Trial 3'!BL35,'Trial 4'!BL35,'Trial 5'!BL35,'Trial 6'!BL35,'Trial 7'!BL35,'Trial 8'!BL35)","v":{"v":772060.8907077427,"d":"$772,061"}},{"$f":"AVERAGE('Trial 1'!BM35,'Trial 2'!BM35,'Trial 3'!BM35,'Trial 4'!BM35,'Trial 5'!BM35,'Trial 6'!BM35,'Trial 7'!BM35,'Trial 8'!BM35)","v":{"v":768568.0381535902,"d":"$768,568"}},{"$f":"SUM(BB49:BM49)","v":{"v":9376139.051670816,"d":"$9,376,139"}},{"$f":"AVERAGE('Trial 1'!BO35,'Trial 2'!BO35,'Trial 3'!BO35,'Trial 4'!BO35,'Trial 5'!BO35,'Trial 6'!BO35,'Trial 7'!BO35,'Trial 8'!BO35)","v":{"v":759882.1721750029,"d":"$759,882"}},{"$f":"AVERAGE('Trial 1'!BP35,'Trial 2'!BP35,'Trial 3'!BP35,'Trial 4'!BP35,'Trial 5'!BP35,'Trial 6'!BP35,'Trial 7'!BP35,'Trial 8'!BP35)","v":{"v":781726.2848683542,"d":"$781,726"}},{"$f":"AVERAGE('Trial 1'!BQ35,'Trial 2'!BQ35,'Trial 3'!BQ35,'Trial 4'!BQ35,'Trial 5'!BQ35,'Trial 6'!BQ35,'Trial 7'!BQ35,'Trial 8'!BQ35)","v":{"v":769104.4551090504,"d":"$769,104"}},{"$f":"AVERAGE('Trial 1'!BR35,'Trial 2'!BR35,'Trial 3'!BR35,'Trial 4'!BR35,'Trial 5'!BR35,'Trial 6'!BR35,'Trial 7'!BR35,'Trial 8'!BR35)","v":{"v":787039.1345878935,"d":"$787,039"}},{"$f":"AVERAGE('Trial 1'!BS35,'Trial 2'!BS35,'Trial 3'!BS35,'Trial 4'!BS35,'Trial 5'!BS35,'Trial 6'!BS35,'Trial 7'!BS35,'Trial 8'!BS35)","v":{"v":770222.5358546562,"d":"$770,223"}},{"$f":"AVERAGE('Trial 1'!BT35,'Trial 2'!BT35,'Trial 3'!BT35,'Trial 4'!BT35,'Trial 5'!BT35,'Trial 6'!BT35,'Trial 7'!BT35,'Trial 8'!BT35)","v":{"v":776607.7655847849,"d":"$776,608"}},{"$f":"AVERAGE('Trial 1'!BU35,'Trial 2'!BU35,'Trial 3'!BU35,'Trial 4'!BU35,'Trial 5'!BU35,'Trial 6'!BU35,'Trial 7'!BU35,'Trial 8'!BU35)","v":{"v":763343.6413864498,"d":"$763,344"}},{"$f":"AVERAGE('Trial 1'!BV35,'Trial 2'!BV35,'Trial 3'!BV35,'Trial 4'!BV35,'Trial 5'!BV35,'Trial 6'!BV35,'Trial 7'!BV35,'Trial 8'!BV35)","v":{"v":761674.0970303646,"d":"$761,674"}},{"$f":"AVERAGE('Trial 1'!BW35,'Trial 2'!BW35,'Trial 3'!BW35,'Trial 4'!BW35,'Trial 5'!BW35,'Trial 6'!BW35,'Trial 7'!BW35,'Trial 8'!BW35)","v":{"v":779072.9496747527,"d":"$779,073"}},{"$f":"AVERAGE('Trial 1'!BX35,'Trial 2'!BX35,'Trial 3'!BX35,'Trial 4'!BX35,'Trial 5'!BX35,'Trial 6'!BX35,'Trial 7'!BX35,'Trial 8'!BX35)","v":{"v":755203.0910867605,"d":"$755,203"}},{"$f":"AVERAGE('Trial 1'!BY35,'Trial 2'!BY35,'Trial 3'!BY35,'Trial 4'!BY35,'Trial 5'!BY35,'Trial 6'!BY35,'Trial 7'!BY35,'Trial 8'!BY35)","v":{"v":770279.1697572717,"d":"$770,279"}},{"$f":"AVERAGE('Trial 1'!BZ35,'Trial 2'!BZ35,'Trial 3'!BZ35,'Trial 4'!BZ35,'Trial 5'!BZ35,'Trial 6'!BZ35,'Trial 7'!BZ35,'Trial 8'!BZ35)","v":{"v":766559.0790658081,"d":"$766,559"}},{"$f":"SUM(BO49:BZ49)","v":{"v":9240714.376181148,"d":"$9,240,714"}},{"$f":"AVERAGE('Trial 1'!CB35,'Trial 2'!CB35,'Trial 3'!CB35,'Trial 4'!CB35,'Trial 5'!CB35,'Trial 6'!CB35,'Trial 7'!CB35,'Trial 8'!CB35)","v":{"v":764178.7154516856,"d":"$764,179"}},{"$f":"AVERAGE('Trial 1'!CC35,'Trial 2'!CC35,'Trial 3'!CC35,'Trial 4'!CC35,'Trial 5'!CC35,'Trial 6'!CC35,'Trial 7'!CC35,'Trial 8'!CC35)","v":{"v":764090.5954634219,"d":"$764,091"}},{"$f":"AVERAGE('Trial 1'!CD35,'Trial 2'!CD35,'Trial 3'!CD35,'Trial 4'!CD35,'Trial 5'!CD35,'Trial 6'!CD35,'Trial 7'!CD35,'Trial 8'!CD35)","v":{"v":750380.1114192893,"d":"$750,380"}},{"$f":"AVERAGE('Trial 1'!CE35,'Trial 2'!CE35,'Trial 3'!CE35,'Trial 4'!CE35,'Trial 5'!CE35,'Trial 6'!CE35,'Trial 7'!CE35,'Trial 8'!CE35)","v":{"v":752299.0076631994,"d":"$752,299"}},{"$f":"AVERAGE('Trial 1'!CF35,'Trial 2'!CF35,'Trial 3'!CF35,'Trial 4'!CF35,'Trial 5'!CF35,'Trial 6'!CF35,'Trial 7'!CF35,'Trial 8'!CF35)","v":{"v":757519.5735441415,"d":"$757,520"}},{"$f":"AVERAGE('Trial 1'!CG35,'Trial 2'!CG35,'Trial 3'!CG35,'Trial 4'!CG35,'Trial 5'!CG35,'Trial 6'!CG35,'Trial 7'!CG35,'Trial 8'!CG35)","v":{"v":760304.1431588627,"d":"$760,304"}},{"$f":"AVERAGE('Trial 1'!CH35,'Trial 2'!CH35,'Trial 3'!CH35,'Trial 4'!CH35,'Trial 5'!CH35,'Trial 6'!CH35,'Trial 7'!CH35,'Trial 8'!CH35)","v":{"v":750785.3487347059,"d":"$750,785"}},{"$f":"AVERAGE('Trial 1'!CI35,'Trial 2'!CI35,'Trial 3'!CI35,'Trial 4'!CI35,'Trial 5'!CI35,'Trial 6'!CI35,'Trial 7'!CI35,'Trial 8'!CI35)","v":{"v":755089.4859127937,"d":"$755,089"}},{"$f":"AVERAGE('Trial 1'!CJ35,'Trial 2'!CJ35,'Trial 3'!CJ35,'Trial 4'!CJ35,'Trial 5'!CJ35,'Trial 6'!CJ35,'Trial 7'!CJ35,'Trial 8'!CJ35)","v":{"v":768213.3340147072,"d":"$768,213"}},{"$f":"AVERAGE('Trial 1'!CK35,'Trial 2'!CK35,'Trial 3'!CK35,'Trial 4'!CK35,'Trial 5'!CK35,'Trial 6'!CK35,'Trial 7'!CK35,'Trial 8'!CK35)","v":{"v":757297.2727028602,"d":"$757,297"}},{"$f":"AVERAGE('Trial 1'!CL35,'Trial 2'!CL35,'Trial 3'!CL35,'Trial 4'!CL35,'Trial 5'!CL35,'Trial 6'!CL35,'Trial 7'!CL35,'Trial 8'!CL35)","v":{"v":750784.5388740369,"d":"$750,785"}},{"$f":"AVERAGE('Trial 1'!CM35,'Trial 2'!CM35,'Trial 3'!CM35,'Trial 4'!CM35,'Trial 5'!CM35,'Trial 6'!CM35,'Trial 7'!CM35,'Trial 8'!CM35)","v":{"v":738837.6800396962,"d":"$738,838"}},{"$f":"SUM(CB49:CM49)","v":{"v":9069779.8069794,"d":"$9,069,780"}},{"$f":"AVERAGE('Trial 1'!CO35,'Trial 2'!CO35,'Trial 3'!CO35,'Trial 4'!CO35,'Trial 5'!CO35,'Trial 6'!CO35,'Trial 7'!CO35,'Trial 8'!CO35)","v":{"v":750565.007435903,"d":"$750,565"}},{"$f":"AVERAGE('Trial 1'!CP35,'Trial 2'!CP35,'Trial 3'!CP35,'Trial 4'!CP35,'Trial 5'!CP35,'Trial 6'!CP35,'Trial 7'!CP35,'Trial 8'!CP35)","v":{"v":746725.3170685028,"d":"$746,725"}},{"$f":"AVERAGE('Trial 1'!CQ35,'Trial 2'!CQ35,'Trial 3'!CQ35,'Trial 4'!CQ35,'Trial 5'!CQ35,'Trial 6'!CQ35,'Trial 7'!CQ35,'Trial 8'!CQ35)","v":{"v":753923.8683477791,"d":"$753,924"}},{"$f":"AVERAGE('Trial 1'!CR35,'Trial 2'!CR35,'Trial 3'!CR35,'Trial 4'!CR35,'Trial 5'!CR35,'Trial 6'!CR35,'Trial 7'!CR35,'Trial 8'!CR35)","v":{"v":747327.4253789254,"d":"$747,327"}},{"$f":"AVERAGE('Trial 1'!CS35,'Trial 2'!CS35,'Trial 3'!CS35,'Trial 4'!CS35,'Trial 5'!CS35,'Trial 6'!CS35,'Trial 7'!CS35,'Trial 8'!CS35)","v":{"v":752453.3931520696,"d":"$752,453"}},{"$f":"AVERAGE('Trial 1'!CT35,'Trial 2'!CT35,'Trial 3'!CT35,'Trial 4'!CT35,'Trial 5'!CT35,'Trial 6'!CT35,'Trial 7'!CT35,'Trial 8'!CT35)","v":{"v":746129.8726335695,"d":"$746,130"}},{"$f":"AVERAGE('Trial 1'!CU35,'Trial 2'!CU35,'Trial 3'!CU35,'Trial 4'!CU35,'Trial 5'!CU35,'Trial 6'!CU35,'Trial 7'!CU35,'Trial 8'!CU35)","v":{"v":753340.9606702961,"d":"$753,341"}},{"$f":"AVERAGE('Trial 1'!CV35,'Trial 2'!CV35,'Trial 3'!CV35,'Trial 4'!CV35,'Trial 5'!CV35,'Trial 6'!CV35,'Trial 7'!CV35,'Trial 8'!CV35)","v":{"v":747271.4584104088,"d":"$747,271"}},{"$f":"AVERAGE('Trial 1'!CW35,'Trial 2'!CW35,'Trial 3'!CW35,'Trial 4'!CW35,'Trial 5'!CW35,'Trial 6'!CW35,'Trial 7'!CW35,'Trial 8'!CW35)","v":{"v":737386.7666801598,"d":"$737,387"}},{"$f":"AVERAGE('Trial 1'!CX35,'Trial 2'!CX35,'Trial 3'!CX35,'Trial 4'!CX35,'Trial 5'!CX35,'Trial 6'!CX35,'Trial 7'!CX35,'Trial 8'!CX35)","v":{"v":751242.954633903,"d":"$751,243"}},{"$f":"AVERAGE('Trial 1'!CY35,'Trial 2'!CY35,'Trial 3'!CY35,'Trial 4'!CY35,'Trial 5'!CY35,'Trial 6'!CY35,'Trial 7'!CY35,'Trial 8'!CY35)","v":{"v":753157.1447644049,"d":"$753,157"}},{"$f":"AVERAGE('Trial 1'!CZ35,'Trial 2'!CZ35,'Trial 3'!CZ35,'Trial 4'!CZ35,'Trial 5'!CZ35,'Trial 6'!CZ35,'Trial 7'!CZ35,'Trial 8'!CZ35)","v":{"v":755616.8564473431,"d":"$755,617"}},{"$f":"SUM(CO49:CZ49)","v":{"v":8995141.025623266,"d":"$8,995,141"}},{"$f":"AVERAGE('Trial 1'!DB35,'Trial 2'!DB35,'Trial 3'!DB35,'Trial 4'!DB35,'Trial 5'!DB35,'Trial 6'!DB35,'Trial 7'!DB35,'Trial 8'!DB35)","v":{"v":739819.7964834173,"d":"$739,820"}},{"$f":"AVERAGE('Trial 1'!DC35,'Trial 2'!DC35,'Trial 3'!DC35,'Trial 4'!DC35,'Trial 5'!DC35,'Trial 6'!DC35,'Trial 7'!DC35,'Trial 8'!DC35)","v":{"v":741260.270285664,"d":"$741,260"}},{"$f":"AVERAGE('Trial 1'!DD35,'Trial 2'!DD35,'Trial 3'!DD35,'Trial 4'!DD35,'Trial 5'!DD35,'Trial 6'!DD35,'Trial 7'!DD35,'Trial 8'!DD35)","v":{"v":740185.5568409793,"d":"$740,186"}},{"$f":"AVERAGE('Trial 1'!DE35,'Trial 2'!DE35,'Trial 3'!DE35,'Trial 4'!DE35,'Trial 5'!DE35,'Trial 6'!DE35,'Trial 7'!DE35,'Trial 8'!DE35)","v":{"v":748461.9281068735,"d":"$748,462"}},{"$f":"AVERAGE('Trial 1'!DF35,'Trial 2'!DF35,'Trial 3'!DF35,'Trial 4'!DF35,'Trial 5'!DF35,'Trial 6'!DF35,'Trial 7'!DF35,'Trial 8'!DF35)","v":{"v":743735.594555538,"d":"$743,736"}},{"$f":"AVERAGE('Trial 1'!DG35,'Trial 2'!DG35,'Trial 3'!DG35,'Trial 4'!DG35,'Trial 5'!DG35,'Trial 6'!DG35,'Trial 7'!DG35,'Trial 8'!DG35)","v":{"v":731708.2891970492,"d":"$731,708"}},{"$f":"AVERAGE('Trial 1'!DH35,'Trial 2'!DH35,'Trial 3'!DH35,'Trial 4'!DH35,'Trial 5'!DH35,'Trial 6'!DH35,'Trial 7'!DH35,'Trial 8'!DH35)","v":{"v":744611.857521902,"d":"$744,612"}},{"$f":"AVERAGE('Trial 1'!DI35,'Trial 2'!DI35,'Trial 3'!DI35,'Trial 4'!DI35,'Trial 5'!DI35,'Trial 6'!DI35,'Trial 7'!DI35,'Trial 8'!DI35)","v":{"v":739172.6604928715,"d":"$739,173"}},{"$f":"AVERAGE('Trial 1'!DJ35,'Trial 2'!DJ35,'Trial 3'!DJ35,'Trial 4'!DJ35,'Trial 5'!DJ35,'Trial 6'!DJ35,'Trial 7'!DJ35,'Trial 8'!DJ35)","v":{"v":745631.4147194368,"d":"$745,631"}},{"$f":"AVERAGE('Trial 1'!DK35,'Trial 2'!DK35,'Trial 3'!DK35,'Trial 4'!DK35,'Trial 5'!DK35,'Trial 6'!DK35,'Trial 7'!DK35,'Trial 8'!DK35)","v":{"v":741991.4442328848,"d":"$741,991"}},{"$f":"AVERAGE('Trial 1'!DL35,'Trial 2'!DL35,'Trial 3'!DL35,'Trial 4'!DL35,'Trial 5'!DL35,'Trial 6'!DL35,'Trial 7'!DL35,'Trial 8'!DL35)","v":{"v":729494.8798358494,"d":"$729,495"}},{"$f":"AVERAGE('Trial 1'!DM35,'Trial 2'!DM35,'Trial 3'!DM35,'Trial 4'!DM35,'Trial 5'!DM35,'Trial 6'!DM35,'Trial 7'!DM35,'Trial 8'!DM35)","v":{"v":743459.6547932567,"d":"$743,460"}},{"$f":"SUM(DB49:DM49)","v":{"v":8889533.347065723,"d":"$8,889,533"}},{"$f":"AVERAGE('Trial 1'!DO35,'Trial 2'!DO35,'Trial 3'!DO35,'Trial 4'!DO35,'Trial 5'!DO35,'Trial 6'!DO35,'Trial 7'!DO35,'Trial 8'!DO35)","v":{"v":742395.3983538069,"d":"$742,395"}},{"$f":"AVERAGE('Trial 1'!DP35,'Trial 2'!DP35,'Trial 3'!DP35,'Trial 4'!DP35,'Trial 5'!DP35,'Trial 6'!DP35,'Trial 7'!DP35,'Trial 8'!DP35)","v":{"v":731846.8125629011,"d":"$731,847"}},{"$f":"AVERAGE('Trial 1'!DQ35,'Trial 2'!DQ35,'Trial 3'!DQ35,'Trial 4'!DQ35,'Trial 5'!DQ35,'Trial 6'!DQ35,'Trial 7'!DQ35,'Trial 8'!DQ35)","v":{"v":738370.9365613407,"d":"$738,371"}},{"$f":"AVERAGE('Trial 1'!DR35,'Trial 2'!DR35,'Trial 3'!DR35,'Trial 4'!DR35,'Trial 5'!DR35,'Trial 6'!DR35,'Trial 7'!DR35,'Trial 8'!DR35)","v":{"v":731811.744243983,"d":"$731,812"}},{"$f":"AVERAGE('Trial 1'!DS35,'Trial 2'!DS35,'Trial 3'!DS35,'Trial 4'!DS35,'Trial 5'!DS35,'Trial 6'!DS35,'Trial 7'!DS35,'Trial 8'!DS35)","v":{"v":738004.1435873457,"d":"$738,004"}},{"$f":"AVERAGE('Trial 1'!DT35,'Trial 2'!DT35,'Trial 3'!DT35,'Trial 4'!DT35,'Trial 5'!DT35,'Trial 6'!DT35,'Trial 7'!DT35,'Trial 8'!DT35)","v":{"v":728271.0542110051,"d":"$728,271"}},{"$f":"AVERAGE('Trial 1'!DU35,'Trial 2'!DU35,'Trial 3'!DU35,'Trial 4'!DU35,'Trial 5'!DU35,'Trial 6'!DU35,'Trial 7'!DU35,'Trial 8'!DU35)","v":{"v":735905.8439653184,"d":"$735,906"}},{"$f":"AVERAGE('Trial 1'!DV35,'Trial 2'!DV35,'Trial 3'!DV35,'Trial 4'!DV35,'Trial 5'!DV35,'Trial 6'!DV35,'Trial 7'!DV35,'Trial 8'!DV35)","v":{"v":716475.5118885372,"d":"$716,476"}},{"$f":"AVERAGE('Trial 1'!DW35,'Trial 2'!DW35,'Trial 3'!DW35,'Trial 4'!DW35,'Trial 5'!DW35,'Trial 6'!DW35,'Trial 7'!DW35,'Trial 8'!DW35)","v":{"v":738130.9120650236,"d":"$738,131"}},{"$f":"AVERAGE('Trial 1'!DX35,'Trial 2'!DX35,'Trial 3'!DX35,'Trial 4'!DX35,'Trial 5'!DX35,'Trial 6'!DX35,'Trial 7'!DX35,'Trial 8'!DX35)","v":{"v":728246.4641957878,"d":"$728,246"}},{"$f":"AVERAGE('Trial 1'!DY35,'Trial 2'!DY35,'Trial 3'!DY35,'Trial 4'!DY35,'Trial 5'!DY35,'Trial 6'!DY35,'Trial 7'!DY35,'Trial 8'!DY35)","v":{"v":732147.355511092,"d":"$732,147"}},{"$f":"AVERAGE('Trial 1'!DZ35,'Trial 2'!DZ35,'Trial 3'!DZ35,'Trial 4'!DZ35,'Trial 5'!DZ35,'Trial 6'!DZ35,'Trial 7'!DZ35,'Trial 8'!DZ35)","v":{"v":726128.8179329697,"d":"$726,129"}},{"$f":"SUM(DO49:DZ49)","v":{"v":8787734.995079111,"d":"$8,787,735"}},{"$f":"AVERAGE('Trial 1'!EB35,'Trial 2'!EB35,'Trial 3'!EB35,'Trial 4'!EB35,'Trial 5'!EB35,'Trial 6'!EB35,'Trial 7'!EB35,'Trial 8'!EB35)","v":{"v":735306.6026708673,"d":"$735,307"}},{"$f":"AVERAGE('Trial 1'!EC35,'Trial 2'!EC35,'Trial 3'!EC35,'Trial 4'!EC35,'Trial 5'!EC35,'Trial 6'!EC35,'Trial 7'!EC35,'Trial 8'!EC35)","v":{"v":733347.3369617941,"d":"$733,347"}},{"$f":"AVERAGE('Trial 1'!ED35,'Trial 2'!ED35,'Trial 3'!ED35,'Trial 4'!ED35,'Trial 5'!ED35,'Trial 6'!ED35,'Trial 7'!ED35,'Trial 8'!ED35)","v":{"v":711670.0347294335,"d":"$711,670"}},{"$f":"AVERAGE('Trial 1'!EE35,'Trial 2'!EE35,'Trial 3'!EE35,'Trial 4'!EE35,'Trial 5'!EE35,'Trial 6'!EE35,'Trial 7'!EE35,'Trial 8'!EE35)","v":{"v":727734.6427271056,"d":"$727,735"}},{"$f":"AVERAGE('Trial 1'!EF35,'Trial 2'!EF35,'Trial 3'!EF35,'Trial 4'!EF35,'Trial 5'!EF35,'Trial 6'!EF35,'Trial 7'!EF35,'Trial 8'!EF35)","v":{"v":724037.2643133405,"d":"$724,037"}},{"$f":"AVERAGE('Trial 1'!EG35,'Trial 2'!EG35,'Trial 3'!EG35,'Trial 4'!EG35,'Trial 5'!EG35,'Trial 6'!EG35,'Trial 7'!EG35,'Trial 8'!EG35)","v":{"v":722661.4444772452,"d":"$722,661"}},{"$f":"AVERAGE('Trial 1'!EH35,'Trial 2'!EH35,'Trial 3'!EH35,'Trial 4'!EH35,'Trial 5'!EH35,'Trial 6'!EH35,'Trial 7'!EH35,'Trial 8'!EH35)","v":{"v":726163.5929201178,"d":"$726,164"}},{"$f":"AVERAGE('Trial 1'!EI35,'Trial 2'!EI35,'Trial 3'!EI35,'Trial 4'!EI35,'Trial 5'!EI35,'Trial 6'!EI35,'Trial 7'!EI35,'Trial 8'!EI35)","v":{"v":723805.9401227208,"d":"$723,806"}},{"$f":"AVERAGE('Trial 1'!EJ35,'Trial 2'!EJ35,'Trial 3'!EJ35,'Trial 4'!EJ35,'Trial 5'!EJ35,'Trial 6'!EJ35,'Trial 7'!EJ35,'Trial 8'!EJ35)","v":{"v":725092.344393536,"d":"$725,092"}},{"$f":"AVERAGE('Trial 1'!EK35,'Trial 2'!EK35,'Trial 3'!EK35,'Trial 4'!EK35,'Trial 5'!EK35,'Trial 6'!EK35,'Trial 7'!EK35,'Trial 8'!EK35)","v":{"v":715439.6211314132,"d":"$715,440"}},{"$f":"AVERAGE('Trial 1'!EL35,'Trial 2'!EL35,'Trial 3'!EL35,'Trial 4'!EL35,'Trial 5'!EL35,'Trial 6'!EL35,'Trial 7'!EL35,'Trial 8'!EL35)","v":{"v":721819.2946486165,"d":"$721,819"}},{"$f":"AVERAGE('Trial 1'!EM35,'Trial 2'!EM35,'Trial 3'!EM35,'Trial 4'!EM35,'Trial 5'!EM35,'Trial 6'!EM35,'Trial 7'!EM35,'Trial 8'!EM35)","v":{"v":729874.0155119057,"d":"$729,874"}},{"$f":"SUM(EB49:EM49)","v":{"v":8696952.134608096,"d":"$8,696,952"}}]
[{"$f":"Labels!B57","v":"Cur Disposable Income std dev"},{"$f":"STDEV('Trial 1'!B35,'Trial 2'!B35,'Trial 3'!B35,'Trial 4'!B35,'Trial 5'!B35,'Trial 6'!B35,'Trial 7'!B35,'Trial 8'!B35)","v":{"v":14923.982797323237,"d":"$14,924"}},{"$f":"STDEV('Trial 1'!C35,'Trial 2'!C35,'Trial 3'!C35,'Trial 4'!C35,'Trial 5'!C35,'Trial 6'!C35,'Trial 7'!C35,'Trial 8'!C35)","v":{"v":35328.43276577123,"d":"$35,328"}},{"$f":"STDEV('Trial 1'!D35,'Trial 2'!D35,'Trial 3'!D35,'Trial 4'!D35,'Trial 5'!D35,'Trial 6'!D35,'Trial 7'!D35,'Trial 8'!D35)","v":{"v":14960.386199875518,"d":"$14,960"}},{"$f":"STDEV('Trial 1'!E35,'Trial 2'!E35,'Trial 3'!E35,'Trial 4'!E35,'Trial 5'!E35,'Trial 6'!E35,'Trial 7'!E35,'Trial 8'!E35)","v":{"v":14652.55508196153,"d":"$14,653"}},{"$f":"STDEV('Trial 1'!F35,'Trial 2'!F35,'Trial 3'!F35,'Trial 4'!F35,'Trial 5'!F35,'Trial 6'!F35,'Trial 7'!F35,'Trial 8'!F35)","v":{"v":21303.474276769226,"d":"$21,303"}},{"$f":"STDEV('Trial 1'!G35,'Trial 2'!G35,'Trial 3'!G35,'Trial 4'!G35,'Trial 5'!G35,'Trial 6'!G35,'Trial 7'!G35,'Trial 8'!G35)","v":{"v":20012.802471924293,"d":"$20,013"}},{"$f":"STDEV('Trial 1'!H35,'Trial 2'!H35,'Trial 3'!H35,'Trial 4'!H35,'Trial 5'!H35,'Trial 6'!H35,'Trial 7'!H35,'Trial 8'!H35)","v":{"v":17171.144559246888,"d":"$17,171"}},{"$f":"STDEV('Trial 1'!I35,'Trial 2'!I35,'Trial 3'!I35,'Trial 4'!I35,'Trial 5'!I35,'Trial 6'!I35,'Trial 7'!I35,'Trial 8'!I35)","v":{"v":21233.780306027445,"d":"$21,234"}},{"$f":"STDEV('Trial 1'!J35,'Trial 2'!J35,'Trial 3'!J35,'Trial 4'!J35,'Trial 5'!J35,'Trial 6'!J35,'Trial 7'!J35,'Trial 8'!J35)","v":{"v":20212.01988987605,"d":"$20,212"}},{"$f":"STDEV('Trial 1'!K35,'Trial 2'!K35,'Trial 3'!K35,'Trial 4'!K35,'Trial 5'!K35,'Trial 6'!K35,'Trial 7'!K35,'Trial 8'!K35)","v":{"v":16723.349163436633,"d":"$16,723"}},{"$f":"STDEV('Trial 1'!L35,'Trial 2'!L35,'Trial 3'!L35,'Trial 4'!L35,'Trial 5'!L35,'Trial 6'!L35,'Trial 7'!L35,'Trial 8'!L35)","v":{"v":15975.582785635288,"d":"$15,976"}},{"$f":"STDEV('Trial 1'!M35,'Trial 2'!M35,'Trial 3'!M35,'Trial 4'!M35,'Trial 5'!M35,'Trial 6'!M35,'Trial 7'!M35,'Trial 8'!M35)","v":{"v":23191.976182377126,"d":"$23,192"}},{"$f":"SUM(B50:M50)","v":{"v":235689.4864802244,"d":"$235,689"}},{"$f":"STDEV('Trial 1'!O35,'Trial 2'!O35,'Trial 3'!O35,'Trial 4'!O35,'Trial 5'!O35,'Trial 6'!O35,'Trial 7'!O35,'Trial 8'!O35)","v":{"v":16215.005003032551,"d":"$16,215"}},{"$f":"STDEV('Trial 1'!P35,'Trial 2'!P35,'Trial 3'!P35,'Trial 4'!P35,'Trial 5'!P35,'Trial 6'!P35,'Trial 7'!P35,'Trial 8'!P35)","v":{"v":16487.753834645377,"d":"$16,488"}},{"$f":"STDEV('Trial 1'!Q35,'Trial 2'!Q35,'Trial 3'!Q35,'Trial 4'!Q35,'Trial 5'!Q35,'Trial 6'!Q35,'Trial 7'!Q35,'Trial 8'!Q35)","v":{"v":20132.273391591832,"d":"$20,132"}},{"$f":"STDEV('Trial 1'!R35,'Trial 2'!R35,'Trial 3'!R35,'Trial 4'!R35,'Trial 5'!R35,'Trial 6'!R35,'Trial 7'!R35,'Trial 8'!R35)","v":{"v":27870.383136495224,"d":"$27,870"}},{"$f":"STDEV('Trial 1'!S35,'Trial 2'!S35,'Trial 3'!S35,'Trial 4'!S35,'Trial 5'!S35,'Trial 6'!S35,'Trial 7'!S35,'Trial 8'!S35)","v":{"v":22134.706739377863,"d":"$22,135"}},{"$f":"STDEV('Trial 1'!T35,'Trial 2'!T35,'Trial 3'!T35,'Trial 4'!T35,'Trial 5'!T35,'Trial 6'!T35,'Trial 7'!T35,'Trial 8'!T35)","v":{"v":31711.878002853744,"d":"$31,712"}},{"$f":"STDEV('Trial 1'!U35,'Trial 2'!U35,'Trial 3'!U35,'Trial 4'!U35,'Trial 5'!U35,'Trial 6'!U35,'Trial 7'!U35,'Trial 8'!U35)","v":{"v":17183.990031847614,"d":"$17,184"}},{"$f":"STDEV('Trial 1'!V35,'Trial 2'!V35,'Trial 3'!V35,'Trial 4'!V35,'Trial 5'!V35,'Trial 6'!V35,'Trial 7'!V35,'Trial 8'!V35)","v":{"v":16543.712799242126,"d":"$16,544"}},{"$f":"STDEV('Trial 1'!W35,'Trial 2'!W35,'Trial 3'!W35,'Trial 4'!W35,'Trial 5'!W35,'Trial 6'!W35,'Trial 7'!W35,'Trial 8'!W35)","v":{"v":23146.69202957143,"d":"$23,147"}},{"$f":"STDEV('Trial 1'!X35,'Trial 2'!X35,'Trial 3'!X35,'Trial 4'!X35,'Trial 5'!X35,'Trial 6'!X35,'Trial 7'!X35,'Trial 8'!X35)","v":{"v":9221.258887220576,"d":"$9,221"}},{"$f":"STDEV('Trial 1'!Y35,'Trial 2'!Y35,'Trial 3'!Y35,'Trial 4'!Y35,'Trial 5'!Y35,'Trial 6'!Y35,'Trial 7'!Y35,'Trial 8'!Y35)","v":{"v":26473.827845061427,"d":"$26,474"}},{"$f":"STDEV('Trial 1'!Z35,'Trial 2'!Z35,'Trial 3'!Z35,'Trial 4'!Z35,'Trial 5'!Z35,'Trial 6'!Z35,'Trial 7'!Z35,'Trial 8'!Z35)","v":{"v":17306.294473253587,"d":"$17,306"}},{"$f":"SUM(O50:Z50)","v":{"v":244427.77617419336,"d":"$244,428"}},{"$f":"STDEV('Trial 1'!AB35,'Trial 2'!AB35,'Trial 3'!AB35,'Trial 4'!AB35,'Trial 5'!AB35,'Trial 6'!AB35,'Trial 7'!AB35,'Trial 8'!AB35)","v":{"v":18699.777713585197,"d":"$18,700"}},{"$f":"STDEV('Trial 1'!AC35,'Trial 2'!AC35,'Trial 3'!AC35,'Trial 4'!AC35,'Trial 5'!AC35,'Trial 6'!AC35,'Trial 7'!AC35,'Trial 8'!AC35)","v":{"v":22633.994748993395,"d":"$22,634"}},{"$f":"STDEV('Trial 1'!AD35,'Trial 2'!AD35,'Trial 3'!AD35,'Trial 4'!AD35,'Trial 5'!AD35,'Trial 6'!AD35,'Trial 7'!AD35,'Trial 8'!AD35)","v":{"v":15700.142516423532,"d":"$15,700"}},{"$f":"STDEV('Trial 1'!AE35,'Trial 2'!AE35,'Trial 3'!AE35,'Trial 4'!AE35,'Trial 5'!AE35,'Trial 6'!AE35,'Trial 7'!AE35,'Trial 8'!AE35)","v":{"v":12660.642914770413,"d":"$12,661"}},{"$f":"STDEV('Trial 1'!AF35,'Trial 2'!AF35,'Trial 3'!AF35,'Trial 4'!AF35,'Trial 5'!AF35,'Trial 6'!AF35,'Trial 7'!AF35,'Trial 8'!AF35)","v":{"v":29175.122828947526,"d":"$29,175"}},{"$f":"STDEV('Trial 1'!AG35,'Trial 2'!AG35,'Trial 3'!AG35,'Trial 4'!AG35,'Trial 5'!AG35,'Trial 6'!AG35,'Trial 7'!AG35,'Trial 8'!AG35)","v":{"v":13633.970095970386,"d":"$13,634"}},{"$f":"STDEV('Trial 1'!AH35,'Trial 2'!AH35,'Trial 3'!AH35,'Trial 4'!AH35,'Trial 5'!AH35,'Trial 6'!AH35,'Trial 7'!AH35,'Trial 8'!AH35)","v":{"v":18959.54124717386,"d":"$18,960"}},{"$f":"STDEV('Trial 1'!AI35,'Trial 2'!AI35,'Trial 3'!AI35,'Trial 4'!AI35,'Trial 5'!AI35,'Trial 6'!AI35,'Trial 7'!AI35,'Trial 8'!AI35)","v":{"v":11621.89051471296,"d":"$11,622"}},{"$f":"STDEV('Trial 1'!AJ35,'Trial 2'!AJ35,'Trial 3'!AJ35,'Trial 4'!AJ35,'Trial 5'!AJ35,'Trial 6'!AJ35,'Trial 7'!AJ35,'Trial 8'!AJ35)","v":{"v":27350.208499314598,"d":"$27,350"}},{"$f":"STDEV('Trial 1'!AK35,'Trial 2'!AK35,'Trial 3'!AK35,'Trial 4'!AK35,'Trial 5'!AK35,'Trial 6'!AK35,'Trial 7'!AK35,'Trial 8'!AK35)","v":{"v":18727.69188015499,"d":"$18,728"}},{"$f":"STDEV('Trial 1'!AL35,'Trial 2'!AL35,'Trial 3'!AL35,'Trial 4'!AL35,'Trial 5'!AL35,'Trial 6'!AL35,'Trial 7'!AL35,'Trial 8'!AL35)","v":{"v":20428.253544323496,"d":"$20,428"}},{"$f":"STDEV('Trial 1'!AM35,'Trial 2'!AM35,'Trial 3'!AM35,'Trial 4'!AM35,'Trial 5'!AM35,'Trial 6'!AM35,'Trial 7'!AM35,'Trial 8'!AM35)","v":{"v":27419.030020264174,"d":"$27,419"}},{"$f":"SUM(AB50:AM50)","v":{"v":237010.26652463453,"d":"$237,010"}},{"$f":"STDEV('Trial 1'!AO35,'Trial 2'!AO35,'Trial 3'!AO35,'Trial 4'!AO35,'Trial 5'!AO35,'Trial 6'!AO35,'Trial 7'!AO35,'Trial 8'!AO35)","v":{"v":19675.649371013387,"d":"$19,676"}},{"$f":"STDEV('Trial 1'!AP35,'Trial 2'!AP35,'Trial 3'!AP35,'Trial 4'!AP35,'Trial 5'!AP35,'Trial 6'!AP35,'Trial 7'!AP35,'Trial 8'!AP35)","v":{"v":8574.65615302416,"d":"$8,575"}},{"$f":"STDEV('Trial 1'!AQ35,'Trial 2'!AQ35,'Trial 3'!AQ35,'Trial 4'!AQ35,'Trial 5'!AQ35,'Trial 6'!AQ35,'Trial 7'!AQ35,'Trial 8'!AQ35)","v":{"v":19633.655449971542,"d":"$19,634"}},{"$f":"STDEV('Trial 1'!AR35,'Trial 2'!AR35,'Trial 3'!AR35,'Trial 4'!AR35,'Trial 5'!AR35,'Trial 6'!AR35,'Trial 7'!AR35,'Trial 8'!AR35)","v":{"v":25889.363379949176,"d":"$25,889"}},{"$f":"STDEV('Trial 1'!AS35,'Trial 2'!AS35,'Trial 3'!AS35,'Trial 4'!AS35,'Trial 5'!AS35,'Trial 6'!AS35,'Trial 7'!AS35,'Trial 8'!AS35)","v":{"v":16552.825374463337,"d":"$16,553"}},{"$f":"STDEV('Trial 1'!AT35,'Trial 2'!AT35,'Trial 3'!AT35,'Trial 4'!AT35,'Trial 5'!AT35,'Trial 6'!AT35,'Trial 7'!AT35,'Trial 8'!AT35)","v":{"v":17549.862239093054,"d":"$17,550"}},{"$f":"STDEV('Trial 1'!AU35,'Trial 2'!AU35,'Trial 3'!AU35,'Trial 4'!AU35,'Trial 5'!AU35,'Trial 6'!AU35,'Trial 7'!AU35,'Trial 8'!AU35)","v":{"v":14902.558695190864,"d":"$14,903"}},{"$f":"STDEV('Trial 1'!AV35,'Trial 2'!AV35,'Trial 3'!AV35,'Trial 4'!AV35,'Trial 5'!AV35,'Trial 6'!AV35,'Trial 7'!AV35,'Trial 8'!AV35)","v":{"v":11075.346704944352,"d":"$11,075"}},{"$f":"STDEV('Trial 1'!AW35,'Trial 2'!AW35,'Trial 3'!AW35,'Trial 4'!AW35,'Trial 5'!AW35,'Trial 6'!AW35,'Trial 7'!AW35,'Trial 8'!AW35)","v":{"v":23126.856524993254,"d":"$23,127"}},{"$f":"STDEV('Trial 1'!AX35,'Trial 2'!AX35,'Trial 3'!AX35,'Trial 4'!AX35,'Trial 5'!AX35,'Trial 6'!AX35,'Trial 7'!AX35,'Trial 8'!AX35)","v":{"v":23122.70017160981,"d":"$23,123"}},{"$f":"STDEV('Trial 1'!AY35,'Trial 2'!AY35,'Trial 3'!AY35,'Trial 4'!AY35,'Trial 5'!AY35,'Trial 6'!AY35,'Trial 7'!AY35,'Trial 8'!AY35)","v":{"v":19882.45524678498,"d":"$19,882"}},{"$f":"STDEV('Trial 1'!AZ35,'Trial 2'!AZ35,'Trial 3'!AZ35,'Trial 4'!AZ35,'Trial 5'!AZ35,'Trial 6'!AZ35,'Trial 7'!AZ35,'Trial 8'!AZ35)","v":{"v":22427.46446851438,"d":"$22,427"}},{"$f":"SUM(AO50:AZ50)","v":{"v":222413.3937795523,"d":"$222,413"}},{"$f":"STDEV('Trial 1'!BB35,'Trial 2'!BB35,'Trial 3'!BB35,'Trial 4'!BB35,'Trial 5'!BB35,'Trial 6'!BB35,'Trial 7'!BB35,'Trial 8'!BB35)","v":{"v":22464.01198568926,"d":"$22,464"}},{"$f":"STDEV('Trial 1'!BC35,'Trial 2'!BC35,'Trial 3'!BC35,'Trial 4'!BC35,'Trial 5'!BC35,'Trial 6'!BC35,'Trial 7'!BC35,'Trial 8'!BC35)","v":{"v":14055.81755090033,"d":"$14,056"}},{"$f":"STDEV('Trial 1'!BD35,'Trial 2'!BD35,'Trial 3'!BD35,'Trial 4'!BD35,'Trial 5'!BD35,'Trial 6'!BD35,'Trial 7'!BD35,'Trial 8'!BD35)","v":{"v":21274.895885985712,"d":"$21,275"}},{"$f":"STDEV('Trial 1'!BE35,'Trial 2'!BE35,'Trial 3'!BE35,'Trial 4'!BE35,'Trial 5'!BE35,'Trial 6'!BE35,'Trial 7'!BE35,'Trial 8'!BE35)","v":{"v":13440.688885305564,"d":"$13,441"}},{"$f":"STDEV('Trial 1'!BF35,'Trial 2'!BF35,'Trial 3'!BF35,'Trial 4'!BF35,'Trial 5'!BF35,'Trial 6'!BF35,'Trial 7'!BF35,'Trial 8'!BF35)","v":{"v":17053.8589982658,"d":"$17,054"}},{"$f":"STDEV('Trial 1'!BG35,'Trial 2'!BG35,'Trial 3'!BG35,'Trial 4'!BG35,'Trial 5'!BG35,'Trial 6'!BG35,'Trial 7'!BG35,'Trial 8'!BG35)","v":{"v":17464.253770776908,"d":"$17,464"}},{"$f":"STDEV('Trial 1'!BH35,'Trial 2'!BH35,'Trial 3'!BH35,'Trial 4'!BH35,'Trial 5'!BH35,'Trial 6'!BH35,'Trial 7'!BH35,'Trial 8'!BH35)","v":{"v":21120.4812563349,"d":"$21,120"}},{"$f":"STDEV('Trial 1'!BI35,'Trial 2'!BI35,'Trial 3'!BI35,'Trial 4'!BI35,'Trial 5'!BI35,'Trial 6'!BI35,'Trial 7'!BI35,'Trial 8'!BI35)","v":{"v":23861.114082322252,"d":"$23,861"}},{"$f":"STDEV('Trial 1'!BJ35,'Trial 2'!BJ35,'Trial 3'!BJ35,'Trial 4'!BJ35,'Trial 5'!BJ35,'Trial 6'!BJ35,'Trial 7'!BJ35,'Trial 8'!BJ35)","v":{"v":18256.688209001688,"d":"$18,257"}},{"$f":"STDEV('Trial 1'!BK35,'Trial 2'!BK35,'Trial 3'!BK35,'Trial 4'!BK35,'Trial 5'!BK35,'Trial 6'!BK35,'Trial 7'!BK35,'Trial 8'!BK35)","v":{"v":27226.764034902193,"d":"$27,227"}},{"$f":"STDEV('Trial 1'!BL35,'Trial 2'!BL35,'Trial 3'!BL35,'Trial 4'!BL35,'Trial 5'!BL35,'Trial 6'!BL35,'Trial 7'!BL35,'Trial 8'!BL35)","v":{"v":20198.345120408132,"d":"$20,198"}},{"$f":"STDEV('Trial 1'!BM35,'Trial 2'!BM35,'Trial 3'!BM35,'Trial 4'!BM35,'Trial 5'!BM35,'Trial 6'!BM35,'Trial 7'!BM35,'Trial 8'!BM35)","v":{"v":22885.328987425735,"d":"$22,885"}},{"$f":"SUM(BB50:BM50)","v":{"v":239302.24876731847,"d":"$239,302"}},{"$f":"STDEV('Trial 1'!BO35,'Trial 2'!BO35,'Trial 3'!BO35,'Trial 4'!BO35,'Trial 5'!BO35,'Trial 6'!BO35,'Trial 7'!BO35,'Trial 8'!BO35)","v":{"v":20227.763228302385,"d":"$20,228"}},{"$f":"STDEV('Trial 1'!BP35,'Trial 2'!BP35,'Trial 3'!BP35,'Trial 4'!BP35,'Trial 5'!BP35,'Trial 6'!BP35,'Trial 7'!BP35,'Trial 8'!BP35)","v":{"v":18844.474307007713,"d":"$18,844"}},{"$f":"STDEV('Trial 1'!BQ35,'Trial 2'!BQ35,'Trial 3'!BQ35,'Trial 4'!BQ35,'Trial 5'!BQ35,'Trial 6'!BQ35,'Trial 7'!BQ35,'Trial 8'!BQ35)","v":{"v":14534.073438945474,"d":"$14,534"}},{"$f":"STDEV('Trial 1'!BR35,'Trial 2'!BR35,'Trial 3'!BR35,'Trial 4'!BR35,'Trial 5'!BR35,'Trial 6'!BR35,'Trial 7'!BR35,'Trial 8'!BR35)","v":{"v":18605.366230300413,"d":"$18,605"}},{"$f":"STDEV('Trial 1'!BS35,'Trial 2'!BS35,'Trial 3'!BS35,'Trial 4'!BS35,'Trial 5'!BS35,'Trial 6'!BS35,'Trial 7'!BS35,'Trial 8'!BS35)","v":{"v":17195.555402045928,"d":"$17,196"}},{"$f":"STDEV('Trial 1'!BT35,'Trial 2'!BT35,'Trial 3'!BT35,'Trial 4'!BT35,'Trial 5'!BT35,'Trial 6'!BT35,'Trial 7'!BT35,'Trial 8'!BT35)","v":{"v":22803.25356313862,"d":"$22,803"}},{"$f":"STDEV('Trial 1'!BU35,'Trial 2'!BU35,'Trial 3'!BU35,'Trial 4'!BU35,'Trial 5'!BU35,'Trial 6'!BU35,'Trial 7'!BU35,'Trial 8'!BU35)","v":{"v":18317.593078843667,"d":"$18,318"}},{"$f":"STDEV('Trial 1'!BV35,'Trial 2'!BV35,'Trial 3'!BV35,'Trial 4'!BV35,'Trial 5'!BV35,'Trial 6'!BV35,'Trial 7'!BV35,'Trial 8'!BV35)","v":{"v":20848.473938841904,"d":"$20,848"}},{"$f":"STDEV('Trial 1'!BW35,'Trial 2'!BW35,'Trial 3'!BW35,'Trial 4'!BW35,'Trial 5'!BW35,'Trial 6'!BW35,'Trial 7'!BW35,'Trial 8'!BW35)","v":{"v":10435.455929324338,"d":"$10,435"}},{"$f":"STDEV('Trial 1'!BX35,'Trial 2'!BX35,'Trial 3'!BX35,'Trial 4'!BX35,'Trial 5'!BX35,'Trial 6'!BX35,'Trial 7'!BX35,'Trial 8'!BX35)","v":{"v":19650.758151691156,"d":"$19,651"}},{"$f":"STDEV('Trial 1'!BY35,'Trial 2'!BY35,'Trial 3'!BY35,'Trial 4'!BY35,'Trial 5'!BY35,'Trial 6'!BY35,'Trial 7'!BY35,'Trial 8'!BY35)","v":{"v":14191.362222769701,"d":"$14,191"}},{"$f":"STDEV('Trial 1'!BZ35,'Trial 2'!BZ35,'Trial 3'!BZ35,'Trial 4'!BZ35,'Trial 5'!BZ35,'Trial 6'!BZ35,'Trial 7'!BZ35,'Trial 8'!BZ35)","v":{"v":14235.116880504016,"d":"$14,235"}},{"$f":"SUM(BO50:BZ50)","v":{"v":209889.2463717153,"d":"$209,889"}},{"$f":"STDEV('Trial 1'!CB35,'Trial 2'!CB35,'Trial 3'!CB35,'Trial 4'!CB35,'Trial 5'!CB35,'Trial 6'!CB35,'Trial 7'!CB35,'Trial 8'!CB35)","v":{"v":20451.372485541408,"d":"$20,451"}},{"$f":"STDEV('Trial 1'!CC35,'Trial 2'!CC35,'Trial 3'!CC35,'Trial 4'!CC35,'Trial 5'!CC35,'Trial 6'!CC35,'Trial 7'!CC35,'Trial 8'!CC35)","v":{"v":17088.695374319585,"d":"$17,089"}},{"$f":"STDEV('Trial 1'!CD35,'Trial 2'!CD35,'Trial 3'!CD35,'Trial 4'!CD35,'Trial 5'!CD35,'Trial 6'!CD35,'Trial 7'!CD35,'Trial 8'!CD35)","v":{"v":19392.89529671477,"d":"$19,393"}},{"$f":"STDEV('Trial 1'!CE35,'Trial 2'!CE35,'Trial 3'!CE35,'Trial 4'!CE35,'Trial 5'!CE35,'Trial 6'!CE35,'Trial 7'!CE35,'Trial 8'!CE35)","v":{"v":15067.185702677778,"d":"$15,067"}},{"$f":"STDEV('Trial 1'!CF35,'Trial 2'!CF35,'Trial 3'!CF35,'Trial 4'!CF35,'Trial 5'!CF35,'Trial 6'!CF35,'Trial 7'!CF35,'Trial 8'!CF35)","v":{"v":18793.98871523312,"d":"$18,794"}},{"$f":"STDEV('Trial 1'!CG35,'Trial 2'!CG35,'Trial 3'!CG35,'Trial 4'!CG35,'Trial 5'!CG35,'Trial 6'!CG35,'Trial 7'!CG35,'Trial 8'!CG35)","v":{"v":14928.976463857733,"d":"$14,929"}},{"$f":"STDEV('Trial 1'!CH35,'Trial 2'!CH35,'Trial 3'!CH35,'Trial 4'!CH35,'Trial 5'!CH35,'Trial 6'!CH35,'Trial 7'!CH35,'Trial 8'!CH35)","v":{"v":29121.167903759066,"d":"$29,121"}},{"$f":"STDEV('Trial 1'!CI35,'Trial 2'!CI35,'Trial 3'!CI35,'Trial 4'!CI35,'Trial 5'!CI35,'Trial 6'!CI35,'Trial 7'!CI35,'Trial 8'!CI35)","v":{"v":23657.424853184297,"d":"$23,657"}},{"$f":"STDEV('Trial 1'!CJ35,'Trial 2'!CJ35,'Trial 3'!CJ35,'Trial 4'!CJ35,'Trial 5'!CJ35,'Trial 6'!CJ35,'Trial 7'!CJ35,'Trial 8'!CJ35)","v":{"v":20468.368626765412,"d":"$20,468"}},{"$f":"STDEV('Trial 1'!CK35,'Trial 2'!CK35,'Trial 3'!CK35,'Trial 4'!CK35,'Trial 5'!CK35,'Trial 6'!CK35,'Trial 7'!CK35,'Trial 8'!CK35)","v":{"v":18819.411246403022,"d":"$18,819"}},{"$f":"STDEV('Trial 1'!CL35,'Trial 2'!CL35,'Trial 3'!CL35,'Trial 4'!CL35,'Trial 5'!CL35,'Trial 6'!CL35,'Trial 7'!CL35,'Trial 8'!CL35)","v":{"v":17828.348080253738,"d":"$17,828"}},{"$f":"STDEV('Trial 1'!CM35,'Trial 2'!CM35,'Trial 3'!CM35,'Trial 4'!CM35,'Trial 5'!CM35,'Trial 6'!CM35,'Trial 7'!CM35,'Trial 8'!CM35)","v":{"v":19434.193166464098,"d":"$19,434"}},{"$f":"SUM(CB50:CM50)","v":{"v":235052.02791517403,"d":"$235,052"}},{"$f":"STDEV('Trial 1'!CO35,'Trial 2'!CO35,'Trial 3'!CO35,'Trial 4'!CO35,'Trial 5'!CO35,'Trial 6'!CO35,'Trial 7'!CO35,'Trial 8'!CO35)","v":{"v":19064.937260243387,"d":"$19,065"}},{"$f":"STDEV('Trial 1'!CP35,'Trial 2'!CP35,'Trial 3'!CP35,'Trial 4'!CP35,'Trial 5'!CP35,'Trial 6'!CP35,'Trial 7'!CP35,'Trial 8'!CP35)","v":{"v":16263.211513973807,"d":"$16,263"}},{"$f":"STDEV('Trial 1'!CQ35,'Trial 2'!CQ35,'Trial 3'!CQ35,'Trial 4'!CQ35,'Trial 5'!CQ35,'Trial 6'!CQ35,'Trial 7'!CQ35,'Trial 8'!CQ35)","v":{"v":23996.429691206547,"d":"$23,996"}},{"$f":"STDEV('Trial 1'!CR35,'Trial 2'!CR35,'Trial 3'!CR35,'Trial 4'!CR35,'Trial 5'!CR35,'Trial 6'!CR35,'Trial 7'!CR35,'Trial 8'!CR35)","v":{"v":15806.016340518658,"d":"$15,806"}},{"$f":"STDEV('Trial 1'!CS35,'Trial 2'!CS35,'Trial 3'!CS35,'Trial 4'!CS35,'Trial 5'!CS35,'Trial 6'!CS35,'Trial 7'!CS35,'Trial 8'!CS35)","v":{"v":17931.15394415934,"d":"$17,931"}},{"$f":"STDEV('Trial 1'!CT35,'Trial 2'!CT35,'Trial 3'!CT35,'Trial 4'!CT35,'Trial 5'!CT35,'Trial 6'!CT35,'Trial 7'!CT35,'Trial 8'!CT35)","v":{"v":24443.322913340126,"d":"$24,443"}},{"$f":"STDEV('Trial 1'!CU35,'Trial 2'!CU35,'Trial 3'!CU35,'Trial 4'!CU35,'Trial 5'!CU35,'Trial 6'!CU35,'Trial 7'!CU35,'Trial 8'!CU35)","v":{"v":19130.76297046092,"d":"$19,131"}},{"$f":"STDEV('Trial 1'!CV35,'Trial 2'!CV35,'Trial 3'!CV35,'Trial 4'!CV35,'Trial 5'!CV35,'Trial 6'!CV35,'Trial 7'!CV35,'Trial 8'!CV35)","v":{"v":19286.954691350416,"d":"$19,287"}},{"$f":"STDEV('Trial 1'!CW35,'Trial 2'!CW35,'Trial 3'!CW35,'Trial 4'!CW35,'Trial 5'!CW35,'Trial 6'!CW35,'Trial 7'!CW35,'Trial 8'!CW35)","v":{"v":16225.998491462942,"d":"$16,226"}},{"$f":"STDEV('Trial 1'!CX35,'Trial 2'!CX35,'Trial 3'!CX35,'Trial 4'!CX35,'Trial 5'!CX35,'Trial 6'!CX35,'Trial 7'!CX35,'Trial 8'!CX35)","v":{"v":27055.189604252257,"d":"$27,055"}},{"$f":"STDEV('Trial 1'!CY35,'Trial 2'!CY35,'Trial 3'!CY35,'Trial 4'!CY35,'Trial 5'!CY35,'Trial 6'!CY35,'Trial 7'!CY35,'Trial 8'!CY35)","v":{"v":19082.99843817931,"d":"$19,083"}},{"$f":"STDEV('Trial 1'!CZ35,'Trial 2'!CZ35,'Trial 3'!CZ35,'Trial 4'!CZ35,'Trial 5'!CZ35,'Trial 6'!CZ35,'Trial 7'!CZ35,'Trial 8'!CZ35)","v":{"v":15312.662472506441,"d":"$15,313"}},{"$f":"SUM(CO50:CZ50)","v":{"v":233599.63833165416,"d":"$233,600"}},{"$f":"STDEV('Trial 1'!DB35,'Trial 2'!DB35,'Trial 3'!DB35,'Trial 4'!DB35,'Trial 5'!DB35,'Trial 6'!DB35,'Trial 7'!DB35,'Trial 8'!DB35)","v":{"v":18240.776493826383,"d":"$18,241"}},{"$f":"STDEV('Trial 1'!DC35,'Trial 2'!DC35,'Trial 3'!DC35,'Trial 4'!DC35,'Trial 5'!DC35,'Trial 6'!DC35,'Trial 7'!DC35,'Trial 8'!DC35)","v":{"v":21044.417494136527,"d":"$21,044"}},{"$f":"STDEV('Trial 1'!DD35,'Trial 2'!DD35,'Trial 3'!DD35,'Trial 4'!DD35,'Trial 5'!DD35,'Trial 6'!DD35,'Trial 7'!DD35,'Trial 8'!DD35)","v":{"v":12750.277272672432,"d":"$12,750"}},{"$f":"STDEV('Trial 1'!DE35,'Trial 2'!DE35,'Trial 3'!DE35,'Trial 4'!DE35,'Trial 5'!DE35,'Trial 6'!DE35,'Trial 7'!DE35,'Trial 8'!DE35)","v":{"v":23882.41131459649,"d":"$23,882"}},{"$f":"STDEV('Trial 1'!DF35,'Trial 2'!DF35,'Trial 3'!DF35,'Trial 4'!DF35,'Trial 5'!DF35,'Trial 6'!DF35,'Trial 7'!DF35,'Trial 8'!DF35)","v":{"v":19411.36806412387,"d":"$19,411"}},{"$f":"STDEV('Trial 1'!DG35,'Trial 2'!DG35,'Trial 3'!DG35,'Trial 4'!DG35,'Trial 5'!DG35,'Trial 6'!DG35,'Trial 7'!DG35,'Trial 8'!DG35)","v":{"v":12220.500724667438,"d":"$12,221"}},{"$f":"STDEV('Trial 1'!DH35,'Trial 2'!DH35,'Trial 3'!DH35,'Trial 4'!DH35,'Trial 5'!DH35,'Trial 6'!DH35,'Trial 7'!DH35,'Trial 8'!DH35)","v":{"v":18815.76524965993,"d":"$18,816"}},{"$f":"STDEV('Trial 1'!DI35,'Trial 2'!DI35,'Trial 3'!DI35,'Trial 4'!DI35,'Trial 5'!DI35,'Trial 6'!DI35,'Trial 7'!DI35,'Trial 8'!DI35)","v":{"v":14580.750208489815,"d":"$14,581"}},{"$f":"STDEV('Trial 1'!DJ35,'Trial 2'!DJ35,'Trial 3'!DJ35,'Trial 4'!DJ35,'Trial 5'!DJ35,'Trial 6'!DJ35,'Trial 7'!DJ35,'Trial 8'!DJ35)","v":{"v":27422.76074710784,"d":"$27,423"}},{"$f":"STDEV('Trial 1'!DK35,'Trial 2'!DK35,'Trial 3'!DK35,'Trial 4'!DK35,'Trial 5'!DK35,'Trial 6'!DK35,'Trial 7'!DK35,'Trial 8'!DK35)","v":{"v":20055.22657495395,"d":"$20,055"}},{"$f":"STDEV('Trial 1'!DL35,'Trial 2'!DL35,'Trial 3'!DL35,'Trial 4'!DL35,'Trial 5'!DL35,'Trial 6'!DL35,'Trial 7'!DL35,'Trial 8'!DL35)","v":{"v":23535.24999984055,"d":"$23,535"}},{"$f":"STDEV('Trial 1'!DM35,'Trial 2'!DM35,'Trial 3'!DM35,'Trial 4'!DM35,'Trial 5'!DM35,'Trial 6'!DM35,'Trial 7'!DM35,'Trial 8'!DM35)","v":{"v":19433.19786674556,"d":"$19,433"}},{"$f":"SUM(DB50:DM50)","v":{"v":231392.7020108208,"d":"$231,393"}},{"$f":"STDEV('Trial 1'!DO35,'Trial 2'!DO35,'Trial 3'!DO35,'Trial 4'!DO35,'Trial 5'!DO35,'Trial 6'!DO35,'Trial 7'!DO35,'Trial 8'!DO35)","v":{"v":23270.85387734897,"d":"$23,271"}},{"$f":"STDEV('Trial 1'!DP35,'Trial 2'!DP35,'Trial 3'!DP35,'Trial 4'!DP35,'Trial 5'!DP35,'Trial 6'!DP35,'Trial 7'!DP35,'Trial 8'!DP35)","v":{"v":22955.07069194898,"d":"$22,955"}},{"$f":"STDEV('Trial 1'!DQ35,'Trial 2'!DQ35,'Trial 3'!DQ35,'Trial 4'!DQ35,'Trial 5'!DQ35,'Trial 6'!DQ35,'Trial 7'!DQ35,'Trial 8'!DQ35)","v":{"v":18699.63491899898,"d":"$18,700"}},{"$f":"STDEV('Trial 1'!DR35,'Trial 2'!DR35,'Trial 3'!DR35,'Trial 4'!DR35,'Trial 5'!DR35,'Trial 6'!DR35,'Trial 7'!DR35,'Trial 8'!DR35)","v":{"v":20373.2108404641,"d":"$20,373"}},{"$f":"STDEV('Trial 1'!DS35,'Trial 2'!DS35,'Trial 3'!DS35,'Trial 4'!DS35,'Trial 5'!DS35,'Trial 6'!DS35,'Trial 7'!DS35,'Trial 8'!DS35)","v":{"v":18808.94855301141,"d":"$18,809"}},{"$f":"STDEV('Trial 1'!DT35,'Trial 2'!DT35,'Trial 3'!DT35,'Trial 4'!DT35,'Trial 5'!DT35,'Trial 6'!DT35,'Trial 7'!DT35,'Trial 8'!DT35)","v":{"v":20138.209654264498,"d":"$20,138"}},{"$f":"STDEV('Trial 1'!DU35,'Trial 2'!DU35,'Trial 3'!DU35,'Trial 4'!DU35,'Trial 5'!DU35,'Trial 6'!DU35,'Trial 7'!DU35,'Trial 8'!DU35)","v":{"v":22613.42019704105,"d":"$22,613"}},{"$f":"STDEV('Trial 1'!DV35,'Trial 2'!DV35,'Trial 3'!DV35,'Trial 4'!DV35,'Trial 5'!DV35,'Trial 6'!DV35,'Trial 7'!DV35,'Trial 8'!DV35)","v":{"v":20407.434975736098,"d":"$20,407"}},{"$f":"STDEV('Trial 1'!DW35,'Trial 2'!DW35,'Trial 3'!DW35,'Trial 4'!DW35,'Trial 5'!DW35,'Trial 6'!DW35,'Trial 7'!DW35,'Trial 8'!DW35)","v":{"v":16104.821167112781,"d":"$16,105"}},{"$f":"STDEV('Trial 1'!DX35,'Trial 2'!DX35,'Trial 3'!DX35,'Trial 4'!DX35,'Trial 5'!DX35,'Trial 6'!DX35,'Trial 7'!DX35,'Trial 8'!DX35)","v":{"v":19043.3325915609,"d":"$19,043"}},{"$f":"STDEV('Trial 1'!DY35,'Trial 2'!DY35,'Trial 3'!DY35,'Trial 4'!DY35,'Trial 5'!DY35,'Trial 6'!DY35,'Trial 7'!DY35,'Trial 8'!DY35)","v":{"v":25711.58665747231,"d":"$25,712"}},{"$f":"STDEV('Trial 1'!DZ35,'Trial 2'!DZ35,'Trial 3'!DZ35,'Trial 4'!DZ35,'Trial 5'!DZ35,'Trial 6'!DZ35,'Trial 7'!DZ35,'Trial 8'!DZ35)","v":{"v":11452.815829643754,"d":"$11,453"}},{"$f":"SUM(DO50:DZ50)","v":{"v":239579.33995460384,"d":"$239,579"}},{"$f":"STDEV('Trial 1'!EB35,'Trial 2'!EB35,'Trial 3'!EB35,'Trial 4'!EB35,'Trial 5'!EB35,'Trial 6'!EB35,'Trial 7'!EB35,'Trial 8'!EB35)","v":{"v":16321.647820760583,"d":"$16,322"}},{"$f":"STDEV('Trial 1'!EC35,'Trial 2'!EC35,'Trial 3'!EC35,'Trial 4'!EC35,'Trial 5'!EC35,'Trial 6'!EC35,'Trial 7'!EC35,'Trial 8'!EC35)","v":{"v":24331.578006568405,"d":"$24,332"}},{"$f":"STDEV('Trial 1'!ED35,'Trial 2'!ED35,'Trial 3'!ED35,'Trial 4'!ED35,'Trial 5'!ED35,'Trial 6'!ED35,'Trial 7'!ED35,'Trial 8'!ED35)","v":{"v":17334.538502223517,"d":"$17,335"}},{"$f":"STDEV('Trial 1'!EE35,'Trial 2'!EE35,'Trial 3'!EE35,'Trial 4'!EE35,'Trial 5'!EE35,'Trial 6'!EE35,'Trial 7'!EE35,'Trial 8'!EE35)","v":{"v":24062.042602739504,"d":"$24,062"}},{"$f":"STDEV('Trial 1'!EF35,'Trial 2'!EF35,'Trial 3'!EF35,'Trial 4'!EF35,'Trial 5'!EF35,'Trial 6'!EF35,'Trial 7'!EF35,'Trial 8'!EF35)","v":{"v":19842.73876683749,"d":"$19,843"}},{"$f":"STDEV('Trial 1'!EG35,'Trial 2'!EG35,'Trial 3'!EG35,'Trial 4'!EG35,'Trial 5'!EG35,'Trial 6'!EG35,'Trial 7'!EG35,'Trial 8'!EG35)","v":{"v":19105.207898045508,"d":"$19,105"}},{"$f":"STDEV('Trial 1'!EH35,'Trial 2'!EH35,'Trial 3'!EH35,'Trial 4'!EH35,'Trial 5'!EH35,'Trial 6'!EH35,'Trial 7'!EH35,'Trial 8'!EH35)","v":{"v":19994.102746195276,"d":"$19,994"}},{"$f":"STDEV('Trial 1'!EI35,'Trial 2'!EI35,'Trial 3'!EI35,'Trial 4'!EI35,'Trial 5'!EI35,'Trial 6'!EI35,'Trial 7'!EI35,'Trial 8'!EI35)","v":{"v":29236.282124037374,"d":"$29,236"}},{"$f":"STDEV('Trial 1'!EJ35,'Trial 2'!EJ35,'Trial 3'!EJ35,'Trial 4'!EJ35,'Trial 5'!EJ35,'Trial 6'!EJ35,'Trial 7'!EJ35,'Trial 8'!EJ35)","v":{"v":19722.978735317436,"d":"$19,723"}},{"$f":"STDEV('Trial 1'!EK35,'Trial 2'!EK35,'Trial 3'!EK35,'Trial 4'!EK35,'Trial 5'!EK35,'Trial 6'!EK35,'Trial 7'!EK35,'Trial 8'!EK35)","v":{"v":14447.35908927138,"d":"$14,447"}},{"$f":"STDEV('Trial 1'!EL35,'Trial 2'!EL35,'Trial 3'!EL35,'Trial 4'!EL35,'Trial 5'!EL35,'Trial 6'!EL35,'Trial 7'!EL35,'Trial 8'!EL35)","v":{"v":20682.510056539468,"d":"$20,683"}},{"$f":"STDEV('Trial 1'!EM35,'Trial 2'!EM35,'Trial 3'!EM35,'Trial 4'!EM35,'Trial 5'!EM35,'Trial 6'!EM35,'Trial 7'!EM35,'Trial 8'!EM35)","v":{"v":17639.223558801412,"d":"$17,639"}},{"$f":"SUM(EB50:EM50)","v":{"v":242720.20990733735,"d":"$242,720"}}]
[{"$f":"Labels!B46","v":"Final Sales"},{"$f":"AVERAGE('Trial 1'!B36,'Trial 2'!B36,'Trial 3'!B36,'Trial 4'!B36,'Trial 5'!B36,'Trial 6'!B36,'Trial 7'!B36,'Trial 8'!B36)","v":{"v":963388.6810828953,"d":"$963,389"}},{"$f":"AVERAGE('Trial 1'!C36,'Trial 2'!C36,'Trial 3'!C36,'Trial 4'!C36,'Trial 5'!C36,'Trial 6'!C36,'Trial 7'!C36,'Trial 8'!C36)","v":{"v":962750.2503606859,"d":"$962,750"}},{"$f":"AVERAGE('Trial 1'!D36,'Trial 2'!D36,'Trial 3'!D36,'Trial 4'!D36,'Trial 5'!D36,'Trial 6'!D36,'Trial 7'!D36,'Trial 8'!D36)","v":{"v":962133.5147254069,"d":"$962,134"}},{"$f":"AVERAGE('Trial 1'!E36,'Trial 2'!E36,'Trial 3'!E36,'Trial 4'!E36,'Trial 5'!E36,'Trial 6'!E36,'Trial 7'!E36,'Trial 8'!E36)","v":{"v":961560.6459832097,"d":"$961,561"}},{"$f":"AVERAGE('Trial 1'!F36,'Trial 2'!F36,'Trial 3'!F36,'Trial 4'!F36,'Trial 5'!F36,'Trial 6'!F36,'Trial 7'!F36,'Trial 8'!F36)","v":{"v":960983.2273493409,"d":"$960,983"}},{"$f":"AVERAGE('Trial 1'!G36,'Trial 2'!G36,'Trial 3'!G36,'Trial 4'!G36,'Trial 5'!G36,'Trial 6'!G36,'Trial 7'!G36,'Trial 8'!G36)","v":{"v":960434.1837725926,"d":"$960,434"}},{"$f":"AVERAGE('Trial 1'!H36,'Trial 2'!H36,'Trial 3'!H36,'Trial 4'!H36,'Trial 5'!H36,'Trial 6'!H36,'Trial 7'!H36,'Trial 8'!H36)","v":{"v":959875.5364105982,"d":"$959,876"}},{"$f":"AVERAGE('Trial 1'!I36,'Trial 2'!I36,'Trial 3'!I36,'Trial 4'!I36,'Trial 5'!I36,'Trial 6'!I36,'Trial 7'!I36,'Trial 8'!I36)","v":{"v":959327.9923311251,"d":"$959,328"}},{"$f":"AVERAGE('Trial 1'!J36,'Trial 2'!J36,'Trial 3'!J36,'Trial 4'!J36,'Trial 5'!J36,'Trial 6'!J36,'Trial 7'!J36,'Trial 8'!J36)","v":{"v":958767.5498015464,"d":"$958,768"}},{"$f":"AVERAGE('Trial 1'!K36,'Trial 2'!K36,'Trial 3'!K36,'Trial 4'!K36,'Trial 5'!K36,'Trial 6'!K36,'Trial 7'!K36,'Trial 8'!K36)","v":{"v":958240.6439884696,"d":"$958,241"}},{"$f":"AVERAGE('Trial 1'!L36,'Trial 2'!L36,'Trial 3'!L36,'Trial 4'!L36,'Trial 5'!L36,'Trial 6'!L36,'Trial 7'!L36,'Trial 8'!L36)","v":{"v":957687.8714019913,"d":"$957,688"}},{"$f":"AVERAGE('Trial 1'!M36,'Trial 2'!M36,'Trial 3'!M36,'Trial 4'!M36,'Trial 5'!M36,'Trial 6'!M36,'Trial 7'!M36,'Trial 8'!M36)","v":{"v":957159.7055518602,"d":"$957,160"}},{"$f":"SUM(B51:M51)","v":{"v":11522309.802759724,"d":"$11,522,310"}},{"$f":"AVERAGE('Trial 1'!O36,'Trial 2'!O36,'Trial 3'!O36,'Trial 4'!O36,'Trial 5'!O36,'Trial 6'!O36,'Trial 7'!O36,'Trial 8'!O36)","v":{"v":956624.2518446522,"d":"$956,624"}},{"$f":"AVERAGE('Trial 1'!P36,'Trial 2'!P36,'Trial 3'!P36,'Trial 4'!P36,'Trial 5'!P36,'Trial 6'!P36,'Trial 7'!P36,'Trial 8'!P36)","v":{"v":956090.408168314,"d":"$956,090"}},{"$f":"AVERAGE('Trial 1'!Q36,'Trial 2'!Q36,'Trial 3'!Q36,'Trial 4'!Q36,'Trial 5'!Q36,'Trial 6'!Q36,'Trial 7'!Q36,'Trial 8'!Q36)","v":{"v":955575.2451195263,"d":"$955,575"}},{"$f":"AVERAGE('Trial 1'!R36,'Trial 2'!R36,'Trial 3'!R36,'Trial 4'!R36,'Trial 5'!R36,'Trial 6'!R36,'Trial 7'!R36,'Trial 8'!R36)","v":{"v":955092.2377543105,"d":"$955,092"}},{"$f":"AVERAGE('Trial 1'!S36,'Trial 2'!S36,'Trial 3'!S36,'Trial 4'!S36,'Trial 5'!S36,'Trial 6'!S36,'Trial 7'!S36,'Trial 8'!S36)","v":{"v":954600.7693040518,"d":"$954,601"}},{"$f":"AVERAGE('Trial 1'!T36,'Trial 2'!T36,'Trial 3'!T36,'Trial 4'!T36,'Trial 5'!T36,'Trial 6'!T36,'Trial 7'!T36,'Trial 8'!T36)","v":{"v":954043.7704568473,"d":"$954,044"}},{"$f":"AVERAGE('Trial 1'!U36,'Trial 2'!U36,'Trial 3'!U36,'Trial 4'!U36,'Trial 5'!U36,'Trial 6'!U36,'Trial 7'!U36,'Trial 8'!U36)","v":{"v":953548.4999757088,"d":"$953,548"}},{"$f":"AVERAGE('Trial 1'!V36,'Trial 2'!V36,'Trial 3'!V36,'Trial 4'!V36,'Trial 5'!V36,'Trial 6'!V36,'Trial 7'!V36,'Trial 8'!V36)","v":{"v":952998.4790796597,"d":"$952,998"}},{"$f":"AVERAGE('Trial 1'!W36,'Trial 2'!W36,'Trial 3'!W36,'Trial 4'!W36,'Trial 5'!W36,'Trial 6'!W36,'Trial 7'!W36,'Trial 8'!W36)","v":{"v":952480.2554647782,"d":"$952,480"}},{"$f":"AVERAGE('Trial 1'!X36,'Trial 2'!X36,'Trial 3'!X36,'Trial 4'!X36,'Trial 5'!X36,'Trial 6'!X36,'Trial 7'!X36,'Trial 8'!X36)","v":{"v":951999.4524094032,"d":"$951,999"}},{"$f":"AVERAGE('Trial 1'!Y36,'Trial 2'!Y36,'Trial 3'!Y36,'Trial 4'!Y36,'Trial 5'!Y36,'Trial 6'!Y36,'Trial 7'!Y36,'Trial 8'!Y36)","v":{"v":951491.8975466881,"d":"$951,492"}},{"$f":"AVERAGE('Trial 1'!Z36,'Trial 2'!Z36,'Trial 3'!Z36,'Trial 4'!Z36,'Trial 5'!Z36,'Trial 6'!Z36,'Trial 7'!Z36,'Trial 8'!Z36)","v":{"v":950971.0401821383,"d":"$950,971"}},{"$f":"SUM(O51:Z51)","v":{"v":11445516.307306077,"d":"$11,445,516"}},{"$f":"AVERAGE('Trial 1'!AB36,'Trial 2'!AB36,'Trial 3'!AB36,'Trial 4'!AB36,'Trial 5'!AB36,'Trial 6'!AB36,'Trial 7'!AB36,'Trial 8'!AB36)","v":{"v":950437.8341862344,"d":"$950,438"}},{"$f":"AVERAGE('Trial 1'!AC36,'Trial 2'!AC36,'Trial 3'!AC36,'Trial 4'!AC36,'Trial 5'!AC36,'Trial 6'!AC36,'Trial 7'!AC36,'Trial 8'!AC36)","v":{"v":949929.4880385462,"d":"$949,929"}},{"$f":"AVERAGE('Trial 1'!AD36,'Trial 2'!AD36,'Trial 3'!AD36,'Trial 4'!AD36,'Trial 5'!AD36,'Trial 6'!AD36,'Trial 7'!AD36,'Trial 8'!AD36)","v":{"v":949452.8163934392,"d":"$949,453"}},{"$f":"AVERAGE('Trial 1'!AE36,'Trial 2'!AE36,'Trial 3'!AE36,'Trial 4'!AE36,'Trial 5'!AE36,'Trial 6'!AE36,'Trial 7'!AE36,'Trial 8'!AE36)","v":{"v":948995.2477068079,"d":"$948,995"}},{"$f":"AVERAGE('Trial 1'!AF36,'Trial 2'!AF36,'Trial 3'!AF36,'Trial 4'!AF36,'Trial 5'!AF36,'Trial 6'!AF36,'Trial 7'!AF36,'Trial 8'!AF36)","v":{"v":948482.8015894456,"d":"$948,483"}},{"$f":"AVERAGE('Trial 1'!AG36,'Trial 2'!AG36,'Trial 3'!AG36,'Trial 4'!AG36,'Trial 5'!AG36,'Trial 6'!AG36,'Trial 7'!AG36,'Trial 8'!AG36)","v":{"v":947970.7686754323,"d":"$947,971"}},{"$f":"AVERAGE('Trial 1'!AH36,'Trial 2'!AH36,'Trial 3'!AH36,'Trial 4'!AH36,'Trial 5'!AH36,'Trial 6'!AH36,'Trial 7'!AH36,'Trial 8'!AH36)","v":{"v":947507.3927449828,"d":"$947,507"}},{"$f":"AVERAGE('Trial 1'!AI36,'Trial 2'!AI36,'Trial 3'!AI36,'Trial 4'!AI36,'Trial 5'!AI36,'Trial 6'!AI36,'Trial 7'!AI36,'Trial 8'!AI36)","v":{"v":947070.9129761085,"d":"$947,071"}},{"$f":"AVERAGE('Trial 1'!AJ36,'Trial 2'!AJ36,'Trial 3'!AJ36,'Trial 4'!AJ36,'Trial 5'!AJ36,'Trial 6'!AJ36,'Trial 7'!AJ36,'Trial 8'!AJ36)","v":{"v":946530.8360281772,"d":"$946,531"}},{"$f":"AVERAGE('Trial 1'!AK36,'Trial 2'!AK36,'Trial 3'!AK36,'Trial 4'!AK36,'Trial 5'!AK36,'Trial 6'!AK36,'Trial 7'!AK36,'Trial 8'!AK36)","v":{"v":946066.51765376,"d":"$946,067"}},{"$f":"AVERAGE('Trial 1'!AL36,'Trial 2'!AL36,'Trial 3'!AL36,'Trial 4'!AL36,'Trial 5'!AL36,'Trial 6'!AL36,'Trial 7'!AL36,'Trial 8'!AL36)","v":{"v":945617.367458236,"d":"$945,617"}},{"$f":"AVERAGE('Trial 1'!AM36,'Trial 2'!AM36,'Trial 3'!AM36,'Trial 4'!AM36,'Trial 5'!AM36,'Trial 6'!AM36,'Trial 7'!AM36,'Trial 8'!AM36)","v":{"v":945158.0125101301,"d":"$945,158"}},{"$f":"SUM(AB51:AM51)","v":{"v":11373219.9959613,"d":"$11,373,220"}},{"$f":"AVERAGE('Trial 1'!AO36,'Trial 2'!AO36,'Trial 3'!AO36,'Trial 4'!AO36,'Trial 5'!AO36,'Trial 6'!AO36,'Trial 7'!AO36,'Trial 8'!AO36)","v":{"v":944682.6218658398,"d":"$944,683"}},{"$f":"AVERAGE('Trial 1'!AP36,'Trial 2'!AP36,'Trial 3'!AP36,'Trial 4'!AP36,'Trial 5'!AP36,'Trial 6'!AP36,'Trial 7'!AP36,'Trial 8'!AP36)","v":{"v":944187.8264460688,"d":"$944,188"}},{"$f":"AVERAGE('Trial 1'!AQ36,'Trial 2'!AQ36,'Trial 3'!AQ36,'Trial 4'!AQ36,'Trial 5'!AQ36,'Trial 6'!AQ36,'Trial 7'!AQ36,'Trial 8'!AQ36)","v":{"v":943730.3502459447,"d":"$943,730"}},{"$f":"AVERAGE('Trial 1'!AR36,'Trial 2'!AR36,'Trial 3'!AR36,'Trial 4'!AR36,'Trial 5'!AR36,'Trial 6'!AR36,'Trial 7'!AR36,'Trial 8'!AR36)","v":{"v":943264.2003654967,"d":"$943,264"}},{"$f":"AVERAGE('Trial 1'!AS36,'Trial 2'!AS36,'Trial 3'!AS36,'Trial 4'!AS36,'Trial 5'!AS36,'Trial 6'!AS36,'Trial 7'!AS36,'Trial 8'!AS36)","v":{"v":942798.8182535283,"d":"$942,799"}},{"$f":"AVERAGE('Trial 1'!AT36,'Trial 2'!AT36,'Trial 3'!AT36,'Trial 4'!AT36,'Trial 5'!AT36,'Trial 6'!AT36,'Trial 7'!AT36,'Trial 8'!AT36)","v":{"v":942329.6678060069,"d":"$942,330"}},{"$f":"AVERAGE('Trial 1'!AU36,'Trial 2'!AU36,'Trial 3'!AU36,'Trial 4'!AU36,'Trial 5'!AU36,'Trial 6'!AU36,'Trial 7'!AU36,'Trial 8'!AU36)","v":{"v":941837.4411877439,"d":"$941,837"}},{"$f":"AVERAGE('Trial 1'!AV36,'Trial 2'!AV36,'Trial 3'!AV36,'Trial 4'!AV36,'Trial 5'!AV36,'Trial 6'!AV36,'Trial 7'!AV36,'Trial 8'!AV36)","v":{"v":941388.0466478742,"d":"$941,388"}},{"$f":"AVERAGE('Trial 1'!AW36,'Trial 2'!AW36,'Trial 3'!AW36,'Trial 4'!AW36,'Trial 5'!AW36,'Trial 6'!AW36,'Trial 7'!AW36,'Trial 8'!AW36)","v":{"v":940953.3805682374,"d":"$940,953"}},{"$f":"AVERAGE('Trial 1'!AX36,'Trial 2'!AX36,'Trial 3'!AX36,'Trial 4'!AX36,'Trial 5'!AX36,'Trial 6'!AX36,'Trial 7'!AX36,'Trial 8'!AX36)","v":{"v":940458.1616561784,"d":"$940,458"}},{"$f":"AVERAGE('Trial 1'!AY36,'Trial 2'!AY36,'Trial 3'!AY36,'Trial 4'!AY36,'Trial 5'!AY36,'Trial 6'!AY36,'Trial 7'!AY36,'Trial 8'!AY36)","v":{"v":940001.3484487338,"d":"$940,001"}},{"$f":"AVERAGE('Trial 1'!AZ36,'Trial 2'!AZ36,'Trial 3'!AZ36,'Trial 4'!AZ36,'Trial 5'!AZ36,'Trial 6'!AZ36,'Trial 7'!AZ36,'Trial 8'!AZ36)","v":{"v":939543.4703372162,"d":"$939,543"}},{"$f":"SUM(AO51:AZ51)","v":{"v":11305175.33382887,"d":"$11,305,175"}},{"$f":"AVERAGE('Trial 1'!BB36,'Trial 2'!BB36,'Trial 3'!BB36,'Trial 4'!BB36,'Trial 5'!BB36,'Trial 6'!BB36,'Trial 7'!BB36,'Trial 8'!BB36)","v":{"v":939062.1741546355,"d":"$939,062"}},{"$f":"AVERAGE('Trial 1'!BC36,'Trial 2'!BC36,'Trial 3'!BC36,'Trial 4'!BC36,'Trial 5'!BC36,'Trial 6'!BC36,'Trial 7'!BC36,'Trial 8'!BC36)","v":{"v":938580.3188990647,"d":"$938,580"}},{"$f":"AVERAGE('Trial 1'!BD36,'Trial 2'!BD36,'Trial 3'!BD36,'Trial 4'!BD36,'Trial 5'!BD36,'Trial 6'!BD36,'Trial 7'!BD36,'Trial 8'!BD36)","v":{"v":938144.651754611,"d":"$938,145"}},{"$f":"AVERAGE('Trial 1'!BE36,'Trial 2'!BE36,'Trial 3'!BE36,'Trial 4'!BE36,'Trial 5'!BE36,'Trial 6'!BE36,'Trial 7'!BE36,'Trial 8'!BE36)","v":{"v":937726.7062300843,"d":"$937,727"}},{"$f":"AVERAGE('Trial 1'!BF36,'Trial 2'!BF36,'Trial 3'!BF36,'Trial 4'!BF36,'Trial 5'!BF36,'Trial 6'!BF36,'Trial 7'!BF36,'Trial 8'!BF36)","v":{"v":937278.4227061566,"d":"$937,278"}},{"$f":"AVERAGE('Trial 1'!BG36,'Trial 2'!BG36,'Trial 3'!BG36,'Trial 4'!BG36,'Trial 5'!BG36,'Trial 6'!BG36,'Trial 7'!BG36,'Trial 8'!BG36)","v":{"v":936834.1687406122,"d":"$936,834"}},{"$f":"AVERAGE('Trial 1'!BH36,'Trial 2'!BH36,'Trial 3'!BH36,'Trial 4'!BH36,'Trial 5'!BH36,'Trial 6'!BH36,'Trial 7'!BH36,'Trial 8'!BH36)","v":{"v":936388.6845005642,"d":"$936,389"}},{"$f":"AVERAGE('Trial 1'!BI36,'Trial 2'!BI36,'Trial 3'!BI36,'Trial 4'!BI36,'Trial 5'!BI36,'Trial 6'!BI36,'Trial 7'!BI36,'Trial 8'!BI36)","v":{"v":935938.6840571282,"d":"$935,939"}},{"$f":"AVERAGE('Trial 1'!BJ36,'Trial 2'!BJ36,'Trial 3'!BJ36,'Trial 4'!BJ36,'Trial 5'!BJ36,'Trial 6'!BJ36,'Trial 7'!BJ36,'Trial 8'!BJ36)","v":{"v":935472.3347074911,"d":"$935,472"}},{"$f":"AVERAGE('Trial 1'!BK36,'Trial 2'!BK36,'Trial 3'!BK36,'Trial 4'!BK36,'Trial 5'!BK36,'Trial 6'!BK36,'Trial 7'!BK36,'Trial 8'!BK36)","v":{"v":935044.1027144484,"d":"$935,044"}},{"$f":"AVERAGE('Trial 1'!BL36,'Trial 2'!BL36,'Trial 3'!BL36,'Trial 4'!BL36,'Trial 5'!BL36,'Trial 6'!BL36,'Trial 7'!BL36,'Trial 8'!BL36)","v":{"v":934596.607002535,"d":"$934,597"}},{"$f":"AVERAGE('Trial 1'!BM36,'Trial 2'!BM36,'Trial 3'!BM36,'Trial 4'!BM36,'Trial 5'!BM36,'Trial 6'!BM36,'Trial 7'!BM36,'Trial 8'!BM36)","v":{"v":934160.2313182423,"d":"$934,160"}},{"$f":"SUM(BB51:BM51)","v":{"v":11239227.086785575,"d":"$11,239,227"}},{"$f":"AVERAGE('Trial 1'!BO36,'Trial 2'!BO36,'Trial 3'!BO36,'Trial 4'!BO36,'Trial 5'!BO36,'Trial 6'!BO36,'Trial 7'!BO36,'Trial 8'!BO36)","v":{"v":933700.0144050367,"d":"$933,700"}},{"$f":"AVERAGE('Trial 1'!BP36,'Trial 2'!BP36,'Trial 3'!BP36,'Trial 4'!BP36,'Trial 5'!BP36,'Trial 6'!BP36,'Trial 7'!BP36,'Trial 8'!BP36)","v":{"v":933221.6468543811,"d":"$933,222"}},{"$f":"AVERAGE('Trial 1'!BQ36,'Trial 2'!BQ36,'Trial 3'!BQ36,'Trial 4'!BQ36,'Trial 5'!BQ36,'Trial 6'!BQ36,'Trial 7'!BQ36,'Trial 8'!BQ36)","v":{"v":932805.4392199919,"d":"$932,805"}},{"$f":"AVERAGE('Trial 1'!BR36,'Trial 2'!BR36,'Trial 3'!BR36,'Trial 4'!BR36,'Trial 5'!BR36,'Trial 6'!BR36,'Trial 7'!BR36,'Trial 8'!BR36)","v":{"v":932384.2091552553,"d":"$932,384"}},{"$f":"AVERAGE('Trial 1'!BS36,'Trial 2'!BS36,'Trial 3'!BS36,'Trial 4'!BS36,'Trial 5'!BS36,'Trial 6'!BS36,'Trial 7'!BS36,'Trial 8'!BS36)","v":{"v":931997.0113176656,"d":"$931,997"}},{"$f":"AVERAGE('Trial 1'!BT36,'Trial 2'!BT36,'Trial 3'!BT36,'Trial 4'!BT36,'Trial 5'!BT36,'Trial 6'!BT36,'Trial 7'!BT36,'Trial 8'!BT36)","v":{"v":931542.9681118072,"d":"$931,543"}},{"$f":"AVERAGE('Trial 1'!BU36,'Trial 2'!BU36,'Trial 3'!BU36,'Trial 4'!BU36,'Trial 5'!BU36,'Trial 6'!BU36,'Trial 7'!BU36,'Trial 8'!BU36)","v":{"v":931154.3620795588,"d":"$931,154"}},{"$f":"AVERAGE('Trial 1'!BV36,'Trial 2'!BV36,'Trial 3'!BV36,'Trial 4'!BV36,'Trial 5'!BV36,'Trial 6'!BV36,'Trial 7'!BV36,'Trial 8'!BV36)","v":{"v":930686.4711324484,"d":"$930,686"}},{"$f":"AVERAGE('Trial 1'!BW36,'Trial 2'!BW36,'Trial 3'!BW36,'Trial 4'!BW36,'Trial 5'!BW36,'Trial 6'!BW36,'Trial 7'!BW36,'Trial 8'!BW36)","v":{"v":930230.322995141,"d":"$930,230"}},{"$f":"AVERAGE('Trial 1'!BX36,'Trial 2'!BX36,'Trial 3'!BX36,'Trial 4'!BX36,'Trial 5'!BX36,'Trial 6'!BX36,'Trial 7'!BX36,'Trial 8'!BX36)","v":{"v":929846.0507598277,"d":"$929,846"}},{"$f":"AVERAGE('Trial 1'!BY36,'Trial 2'!BY36,'Trial 3'!BY36,'Trial 4'!BY36,'Trial 5'!BY36,'Trial 6'!BY36,'Trial 7'!BY36,'Trial 8'!BY36)","v":{"v":929365.187458322,"d":"$929,365"}},{"$f":"AVERAGE('Trial 1'!BZ36,'Trial 2'!BZ36,'Trial 3'!BZ36,'Trial 4'!BZ36,'Trial 5'!BZ36,'Trial 6'!BZ36,'Trial 7'!BZ36,'Trial 8'!BZ36)","v":{"v":928961.1058258757,"d":"$928,961"}},{"$f":"SUM(BO51:BZ51)","v":{"v":11175894.789315311,"d":"$11,175,895"}},{"$f":"AVERAGE('Trial 1'!CB36,'Trial 2'!CB36,'Trial 3'!CB36,'Trial 4'!CB36,'Trial 5'!CB36,'Trial 6'!CB36,'Trial 7'!CB36,'Trial 8'!CB36)","v":{"v":928529.7452235968,"d":"$928,530"}},{"$f":"AVERAGE('Trial 1'!CC36,'Trial 2'!CC36,'Trial 3'!CC36,'Trial 4'!CC36,'Trial 5'!CC36,'Trial 6'!CC36,'Trial 7'!CC36,'Trial 8'!CC36)","v":{"v":928089.2243673218,"d":"$928,089"}},{"$f":"AVERAGE('Trial 1'!CD36,'Trial 2'!CD36,'Trial 3'!CD36,'Trial 4'!CD36,'Trial 5'!CD36,'Trial 6'!CD36,'Trial 7'!CD36,'Trial 8'!CD36)","v":{"v":927646.471214754,"d":"$927,646"}},{"$f":"AVERAGE('Trial 1'!CE36,'Trial 2'!CE36,'Trial 3'!CE36,'Trial 4'!CE36,'Trial 5'!CE36,'Trial 6'!CE36,'Trial 7'!CE36,'Trial 8'!CE36)","v":{"v":927198.4425798216,"d":"$927,198"}},{"$f":"AVERAGE('Trial 1'!CF36,'Trial 2'!CF36,'Trial 3'!CF36,'Trial 4'!CF36,'Trial 5'!CF36,'Trial 6'!CF36,'Trial 7'!CF36,'Trial 8'!CF36)","v":{"v":926722.3701935249,"d":"$926,722"}},{"$f":"AVERAGE('Trial 1'!CG36,'Trial 2'!CG36,'Trial 3'!CG36,'Trial 4'!CG36,'Trial 5'!CG36,'Trial 6'!CG36,'Trial 7'!CG36,'Trial 8'!CG36)","v":{"v":926277.6787306459,"d":"$926,278"}},{"$f":"AVERAGE('Trial 1'!CH36,'Trial 2'!CH36,'Trial 3'!CH36,'Trial 4'!CH36,'Trial 5'!CH36,'Trial 6'!CH36,'Trial 7'!CH36,'Trial 8'!CH36)","v":{"v":925896.8443472361,"d":"$925,897"}},{"$f":"AVERAGE('Trial 1'!CI36,'Trial 2'!CI36,'Trial 3'!CI36,'Trial 4'!CI36,'Trial 5'!CI36,'Trial 6'!CI36,'Trial 7'!CI36,'Trial 8'!CI36)","v":{"v":925450.3255749387,"d":"$925,450"}},{"$f":"AVERAGE('Trial 1'!CJ36,'Trial 2'!CJ36,'Trial 3'!CJ36,'Trial 4'!CJ36,'Trial 5'!CJ36,'Trial 6'!CJ36,'Trial 7'!CJ36,'Trial 8'!CJ36)","v":{"v":925026.2203137727,"d":"$925,026"}},{"$f":"AVERAGE('Trial 1'!CK36,'Trial 2'!CK36,'Trial 3'!CK36,'Trial 4'!CK36,'Trial 5'!CK36,'Trial 6'!CK36,'Trial 7'!CK36,'Trial 8'!CK36)","v":{"v":924624.0425682277,"d":"$924,624"}},{"$f":"AVERAGE('Trial 1'!CL36,'Trial 2'!CL36,'Trial 3'!CL36,'Trial 4'!CL36,'Trial 5'!CL36,'Trial 6'!CL36,'Trial 7'!CL36,'Trial 8'!CL36)","v":{"v":924225.8746038269,"d":"$924,226"}},{"$f":"AVERAGE('Trial 1'!CM36,'Trial 2'!CM36,'Trial 3'!CM36,'Trial 4'!CM36,'Trial 5'!CM36,'Trial 6'!CM36,'Trial 7'!CM36,'Trial 8'!CM36)","v":{"v":923774.4145009451,"d":"$923,774"}},{"$f":"SUM(CB51:CM51)","v":{"v":11113461.65421861,"d":"$11,113,462"}},{"$f":"AVERAGE('Trial 1'!CO36,'Trial 2'!CO36,'Trial 3'!CO36,'Trial 4'!CO36,'Trial 5'!CO36,'Trial 6'!CO36,'Trial 7'!CO36,'Trial 8'!CO36)","v":{"v":923334.8691240845,"d":"$923,335"}},{"$f":"AVERAGE('Trial 1'!CP36,'Trial 2'!CP36,'Trial 3'!CP36,'Trial 4'!CP36,'Trial 5'!CP36,'Trial 6'!CP36,'Trial 7'!CP36,'Trial 8'!CP36)","v":{"v":922905.3898193502,"d":"$922,905"}},{"$f":"AVERAGE('Trial 1'!CQ36,'Trial 2'!CQ36,'Trial 3'!CQ36,'Trial 4'!CQ36,'Trial 5'!CQ36,'Trial 6'!CQ36,'Trial 7'!CQ36,'Trial 8'!CQ36)","v":{"v":922470.6156351062,"d":"$922,471"}},{"$f":"AVERAGE('Trial 1'!CR36,'Trial 2'!CR36,'Trial 3'!CR36,'Trial 4'!CR36,'Trial 5'!CR36,'Trial 6'!CR36,'Trial 7'!CR36,'Trial 8'!CR36)","v":{"v":922050.0000949785,"d":"$922,050"}},{"$f":"AVERAGE('Trial 1'!CS36,'Trial 2'!CS36,'Trial 3'!CS36,'Trial 4'!CS36,'Trial 5'!CS36,'Trial 6'!CS36,'Trial 7'!CS36,'Trial 8'!CS36)","v":{"v":921605.5803882086,"d":"$921,606"}},{"$f":"AVERAGE('Trial 1'!CT36,'Trial 2'!CT36,'Trial 3'!CT36,'Trial 4'!CT36,'Trial 5'!CT36,'Trial 6'!CT36,'Trial 7'!CT36,'Trial 8'!CT36)","v":{"v":921131.6391752828,"d":"$921,132"}},{"$f":"AVERAGE('Trial 1'!CU36,'Trial 2'!CU36,'Trial 3'!CU36,'Trial 4'!CU36,'Trial 5'!CU36,'Trial 6'!CU36,'Trial 7'!CU36,'Trial 8'!CU36)","v":{"v":920666.6814487794,"d":"$920,667"}},{"$f":"AVERAGE('Trial 1'!CV36,'Trial 2'!CV36,'Trial 3'!CV36,'Trial 4'!CV36,'Trial 5'!CV36,'Trial 6'!CV36,'Trial 7'!CV36,'Trial 8'!CV36)","v":{"v":920284.7917978019,"d":"$920,285"}},{"$f":"AVERAGE('Trial 1'!CW36,'Trial 2'!CW36,'Trial 3'!CW36,'Trial 4'!CW36,'Trial 5'!CW36,'Trial 6'!CW36,'Trial 7'!CW36,'Trial 8'!CW36)","v":{"v":919837.6937504038,"d":"$919,838"}},{"$f":"AVERAGE('Trial 1'!CX36,'Trial 2'!CX36,'Trial 3'!CX36,'Trial 4'!CX36,'Trial 5'!CX36,'Trial 6'!CX36,'Trial 7'!CX36,'Trial 8'!CX36)","v":{"v":919375.1315607181,"d":"$919,375"}},{"$f":"AVERAGE('Trial 1'!CY36,'Trial 2'!CY36,'Trial 3'!CY36,'Trial 4'!CY36,'Trial 5'!CY36,'Trial 6'!CY36,'Trial 7'!CY36,'Trial 8'!CY36)","v":{"v":918936.2339987048,"d":"$918,936"}},{"$f":"AVERAGE('Trial 1'!CZ36,'Trial 2'!CZ36,'Trial 3'!CZ36,'Trial 4'!CZ36,'Trial 5'!CZ36,'Trial 6'!CZ36,'Trial 7'!CZ36,'Trial 8'!CZ36)","v":{"v":918528.9040231694,"d":"$918,529"}},{"$f":"SUM(CO51:CZ51)","v":{"v":11051127.530816587,"d":"$11,051,128"}},{"$f":"AVERAGE('Trial 1'!DB36,'Trial 2'!DB36,'Trial 3'!DB36,'Trial 4'!DB36,'Trial 5'!DB36,'Trial 6'!DB36,'Trial 7'!DB36,'Trial 8'!DB36)","v":{"v":918105.7077163223,"d":"$918,106"}},{"$f":"AVERAGE('Trial 1'!DC36,'Trial 2'!DC36,'Trial 3'!DC36,'Trial 4'!DC36,'Trial 5'!DC36,'Trial 6'!DC36,'Trial 7'!DC36,'Trial 8'!DC36)","v":{"v":917676.7124926853,"d":"$917,677"}},{"$f":"AVERAGE('Trial 1'!DD36,'Trial 2'!DD36,'Trial 3'!DD36,'Trial 4'!DD36,'Trial 5'!DD36,'Trial 6'!DD36,'Trial 7'!DD36,'Trial 8'!DD36)","v":{"v":917210.629353901,"d":"$917,211"}},{"$f":"AVERAGE('Trial 1'!DE36,'Trial 2'!DE36,'Trial 3'!DE36,'Trial 4'!DE36,'Trial 5'!DE36,'Trial 6'!DE36,'Trial 7'!DE36,'Trial 8'!DE36)","v":{"v":916758.12915553,"d":"$916,758"}},{"$f":"AVERAGE('Trial 1'!DF36,'Trial 2'!DF36,'Trial 3'!DF36,'Trial 4'!DF36,'Trial 5'!DF36,'Trial 6'!DF36,'Trial 7'!DF36,'Trial 8'!DF36)","v":{"v":916347.9998677829,"d":"$916,348"}},{"$f":"AVERAGE('Trial 1'!DG36,'Trial 2'!DG36,'Trial 3'!DG36,'Trial 4'!DG36,'Trial 5'!DG36,'Trial 6'!DG36,'Trial 7'!DG36,'Trial 8'!DG36)","v":{"v":915914.7114303457,"d":"$915,915"}},{"$f":"AVERAGE('Trial 1'!DH36,'Trial 2'!DH36,'Trial 3'!DH36,'Trial 4'!DH36,'Trial 5'!DH36,'Trial 6'!DH36,'Trial 7'!DH36,'Trial 8'!DH36)","v":{"v":915450.8146684086,"d":"$915,451"}},{"$f":"AVERAGE('Trial 1'!DI36,'Trial 2'!DI36,'Trial 3'!DI36,'Trial 4'!DI36,'Trial 5'!DI36,'Trial 6'!DI36,'Trial 7'!DI36,'Trial 8'!DI36)","v":{"v":915012.4600620728,"d":"$915,012"}},{"$f":"AVERAGE('Trial 1'!DJ36,'Trial 2'!DJ36,'Trial 3'!DJ36,'Trial 4'!DJ36,'Trial 5'!DJ36,'Trial 6'!DJ36,'Trial 7'!DJ36,'Trial 8'!DJ36)","v":{"v":914557.838339492,"d":"$914,558"}},{"$f":"AVERAGE('Trial 1'!DK36,'Trial 2'!DK36,'Trial 3'!DK36,'Trial 4'!DK36,'Trial 5'!DK36,'Trial 6'!DK36,'Trial 7'!DK36,'Trial 8'!DK36)","v":{"v":914135.6915464505,"d":"$914,136"}},{"$f":"AVERAGE('Trial 1'!DL36,'Trial 2'!DL36,'Trial 3'!DL36,'Trial 4'!DL36,'Trial 5'!DL36,'Trial 6'!DL36,'Trial 7'!DL36,'Trial 8'!DL36)","v":{"v":913702.5109022093,"d":"$913,703"}},{"$f":"AVERAGE('Trial 1'!DM36,'Trial 2'!DM36,'Trial 3'!DM36,'Trial 4'!DM36,'Trial 5'!DM36,'Trial 6'!DM36,'Trial 7'!DM36,'Trial 8'!DM36)","v":{"v":913229.8544564919,"d":"$913,230"}},{"$f":"SUM(DB51:DM51)","v":{"v":10988103.059991693,"d":"$10,988,103"}},{"$f":"AVERAGE('Trial 1'!DO36,'Trial 2'!DO36,'Trial 3'!DO36,'Trial 4'!DO36,'Trial 5'!DO36,'Trial 6'!DO36,'Trial 7'!DO36,'Trial 8'!DO36)","v":{"v":912795.2898591852,"d":"$912,795"}},{"$f":"AVERAGE('Trial 1'!DP36,'Trial 2'!DP36,'Trial 3'!DP36,'Trial 4'!DP36,'Trial 5'!DP36,'Trial 6'!DP36,'Trial 7'!DP36,'Trial 8'!DP36)","v":{"v":912391.3092249036,"d":"$912,391"}},{"$f":"AVERAGE('Trial 1'!DQ36,'Trial 2'!DQ36,'Trial 3'!DQ36,'Trial 4'!DQ36,'Trial 5'!DQ36,'Trial 6'!DQ36,'Trial 7'!DQ36,'Trial 8'!DQ36)","v":{"v":911934.8057256925,"d":"$911,935"}},{"$f":"AVERAGE('Trial 1'!DR36,'Trial 2'!DR36,'Trial 3'!DR36,'Trial 4'!DR36,'Trial 5'!DR36,'Trial 6'!DR36,'Trial 7'!DR36,'Trial 8'!DR36)","v":{"v":911534.1900260783,"d":"$911,534"}},{"$f":"AVERAGE('Trial 1'!DS36,'Trial 2'!DS36,'Trial 3'!DS36,'Trial 4'!DS36,'Trial 5'!DS36,'Trial 6'!DS36,'Trial 7'!DS36,'Trial 8'!DS36)","v":{"v":911096.201827095,"d":"$911,096"}},{"$f":"AVERAGE('Trial 1'!DT36,'Trial 2'!DT36,'Trial 3'!DT36,'Trial 4'!DT36,'Trial 5'!DT36,'Trial 6'!DT36,'Trial 7'!DT36,'Trial 8'!DT36)","v":{"v":910669.8992131434,"d":"$910,670"}},{"$f":"AVERAGE('Trial 1'!DU36,'Trial 2'!DU36,'Trial 3'!DU36,'Trial 4'!DU36,'Trial 5'!DU36,'Trial 6'!DU36,'Trial 7'!DU36,'Trial 8'!DU36)","v":{"v":910248.6762447098,"d":"$910,249"}},{"$f":"AVERAGE('Trial 1'!DV36,'Trial 2'!DV36,'Trial 3'!DV36,'Trial 4'!DV36,'Trial 5'!DV36,'Trial 6'!DV36,'Trial 7'!DV36,'Trial 8'!DV36)","v":{"v":909828.3360078317,"d":"$909,828"}},{"$f":"AVERAGE('Trial 1'!DW36,'Trial 2'!DW36,'Trial 3'!DW36,'Trial 4'!DW36,'Trial 5'!DW36,'Trial 6'!DW36,'Trial 7'!DW36,'Trial 8'!DW36)","v":{"v":909374.4052892431,"d":"$909,374"}},{"$f":"AVERAGE('Trial 1'!DX36,'Trial 2'!DX36,'Trial 3'!DX36,'Trial 4'!DX36,'Trial 5'!DX36,'Trial 6'!DX36,'Trial 7'!DX36,'Trial 8'!DX36)","v":{"v":908957.7547274263,"d":"$908,958"}},{"$f":"AVERAGE('Trial 1'!DY36,'Trial 2'!DY36,'Trial 3'!DY36,'Trial 4'!DY36,'Trial 5'!DY36,'Trial 6'!DY36,'Trial 7'!DY36,'Trial 8'!DY36)","v":{"v":908516.9525668103,"d":"$908,517"}},{"$f":"AVERAGE('Trial 1'!DZ36,'Trial 2'!DZ36,'Trial 3'!DZ36,'Trial 4'!DZ36,'Trial 5'!DZ36,'Trial 6'!DZ36,'Trial 7'!DZ36,'Trial 8'!DZ36)","v":{"v":908088.1836370071,"d":"$908,088"}},{"$f":"SUM(DO51:DZ51)","v":{"v":10925436.004349127,"d":"$10,925,436"}},{"$f":"AVERAGE('Trial 1'!EB36,'Trial 2'!EB36,'Trial 3'!EB36,'Trial 4'!EB36,'Trial 5'!EB36,'Trial 6'!EB36,'Trial 7'!EB36,'Trial 8'!EB36)","v":{"v":907615.0493334059,"d":"$907,615"}},{"$f":"AVERAGE('Trial 1'!EC36,'Trial 2'!EC36,'Trial 3'!EC36,'Trial 4'!EC36,'Trial 5'!EC36,'Trial 6'!EC36,'Trial 7'!EC36,'Trial 8'!EC36)","v":{"v":907205.1805809372,"d":"$907,205"}},{"$f":"AVERAGE('Trial 1'!ED36,'Trial 2'!ED36,'Trial 3'!ED36,'Trial 4'!ED36,'Trial 5'!ED36,'Trial 6'!ED36,'Trial 7'!ED36,'Trial 8'!ED36)","v":{"v":906753.9027045923,"d":"$906,754"}},{"$f":"AVERAGE('Trial 1'!EE36,'Trial 2'!EE36,'Trial 3'!EE36,'Trial 4'!EE36,'Trial 5'!EE36,'Trial 6'!EE36,'Trial 7'!EE36,'Trial 8'!EE36)","v":{"v":906269.2666976237,"d":"$906,269"}},{"$f":"AVERAGE('Trial 1'!EF36,'Trial 2'!EF36,'Trial 3'!EF36,'Trial 4'!EF36,'Trial 5'!EF36,'Trial 6'!EF36,'Trial 7'!EF36,'Trial 8'!EF36)","v":{"v":905838.5893508055,"d":"$905,839"}},{"$f":"AVERAGE('Trial 1'!EG36,'Trial 2'!EG36,'Trial 3'!EG36,'Trial 4'!EG36,'Trial 5'!EG36,'Trial 6'!EG36,'Trial 7'!EG36,'Trial 8'!EG36)","v":{"v":905404.3840939781,"d":"$905,404"}},{"$f":"AVERAGE('Trial 1'!EH36,'Trial 2'!EH36,'Trial 3'!EH36,'Trial 4'!EH36,'Trial 5'!EH36,'Trial 6'!EH36,'Trial 7'!EH36,'Trial 8'!EH36)","v":{"v":904942.1133673148,"d":"$904,942"}},{"$f":"AVERAGE('Trial 1'!EI36,'Trial 2'!EI36,'Trial 3'!EI36,'Trial 4'!EI36,'Trial 5'!EI36,'Trial 6'!EI36,'Trial 7'!EI36,'Trial 8'!EI36)","v":{"v":904497.3111474088,"d":"$904,497"}},{"$f":"AVERAGE('Trial 1'!EJ36,'Trial 2'!EJ36,'Trial 3'!EJ36,'Trial 4'!EJ36,'Trial 5'!EJ36,'Trial 6'!EJ36,'Trial 7'!EJ36,'Trial 8'!EJ36)","v":{"v":904013.4077001354,"d":"$904,013"}},{"$f":"AVERAGE('Trial 1'!EK36,'Trial 2'!EK36,'Trial 3'!EK36,'Trial 4'!EK36,'Trial 5'!EK36,'Trial 6'!EK36,'Trial 7'!EK36,'Trial 8'!EK36)","v":{"v":903570.7333752511,"d":"$903,571"}},{"$f":"AVERAGE('Trial 1'!EL36,'Trial 2'!EL36,'Trial 3'!EL36,'Trial 4'!EL36,'Trial 5'!EL36,'Trial 6'!EL36,'Trial 7'!EL36,'Trial 8'!EL36)","v":{"v":903129.42462195,"d":"$903,129"}},{"$f":"AVERAGE('Trial 1'!EM36,'Trial 2'!EM36,'Trial 3'!EM36,'Trial 4'!EM36,'Trial 5'!EM36,'Trial 6'!EM36,'Trial 7'!EM36,'Trial 8'!EM36)","v":{"v":902677.0593541712,"d":"$902,677"}},{"$f":"SUM(EB51:EM51)","v":{"v":10861916.422327574,"d":"$10,861,916"}}]
[{"$f":"Labels!B47","v":"Final Sales std dev"},{"$f":"STDEV('Trial 1'!B36,'Trial 2'!B36,'Trial 3'!B36,'Trial 4'!B36,'Trial 5'!B36,'Trial 6'!B36,'Trial 7'!B36,'Trial 8'!B36)","v":{"v":2.489064279128093e-10,"d":"$0"}},{"$f":"STDEV('Trial 1'!C36,'Trial 2'!C36,'Trial 3'!C36,'Trial 4'!C36,'Trial 5'!C36,'Trial 6'!C36,'Trial 7'!C36,'Trial 8'!C36)","v":{"v":56.88887383830726,"d":"$57"}},{"$f":"STDEV('Trial 1'!D36,'Trial 2'!D36,'Trial 3'!D36,'Trial 4'!D36,'Trial 5'!D36,'Trial 6'!D36,'Trial 7'!D36,'Trial 8'!D36)","v":{"v":120.79408462209551,"d":"$121"}},{"$f":"STDEV('Trial 1'!E36,'Trial 2'!E36,'Trial 3'!E36,'Trial 4'!E36,'Trial 5'!E36,'Trial 6'!E36,'Trial 7'!E36,'Trial 8'!E36)","v":{"v":111.37041494168572,"d":"$111"}},{"$f":"STDEV('Trial 1'!F36,'Trial 2'!F36,'Trial 3'!F36,'Trial 4'!F36,'Trial 5'!F36,'Trial 6'!F36,'Trial 7'!F36,'Trial 8'!F36)","v":{"v":123.03672896311113,"d":"$123"}},{"$f":"STDEV('Trial 1'!G36,'Trial 2'!G36,'Trial 3'!G36,'Trial 4'!G36,'Trial 5'!G36,'Trial 6'!G36,'Trial 7'!G36,'Trial 8'!G36)","v":{"v":137.65836315844578,"d":"$138"}},{"$f":"STDEV('Trial 1'!H36,'Trial 2'!H36,'Trial 3'!H36,'Trial 4'!H36,'Trial 5'!H36,'Trial 6'!H36,'Trial 7'!H36,'Trial 8'!H36)","v":{"v":183.95383148287334,"d":"$184"}},{"$f":"STDEV('Trial 1'!I36,'Trial 2'!I36,'Trial 3'!I36,'Trial 4'!I36,'Trial 5'!I36,'Trial 6'!I36,'Trial 7'!I36,'Trial 8'!I36)","v":{"v":171.0485022916471,"d":"$171"}},{"$f":"STDEV('Trial 1'!J36,'Trial 2'!J36,'Trial 3'!J36,'Trial 4'!J36,'Trial 5'!J36,'Trial 6'!J36,'Trial 7'!J36,'Trial 8'!J36)","v":{"v":169.0909054601834,"d":"$169"}},{"$f":"STDEV('Trial 1'!K36,'Trial 2'!K36,'Trial 3'!K36,'Trial 4'!K36,'Trial 5'!K36,'Trial 6'!K36,'Trial 7'!K36,'Trial 8'!K36)","v":{"v":160.72260234277834,"d":"$161"}},{"$f":"STDEV('Trial 1'!L36,'Trial 2'!L36,'Trial 3'!L36,'Trial 4'!L36,'Trial 5'!L36,'Trial 6'!L36,'Trial 7'!L36,'Trial 8'!L36)","v":{"v":177.0762405520875,"d":"$177"}},{"$f":"STDEV('Trial 1'!M36,'Trial 2'!M36,'Trial 3'!M36,'Trial 4'!M36,'Trial 5'!M36,'Trial 6'!M36,'Trial 7'!M36,'Trial 8'!M36)","v":{"v":181.96829026348087,"d":"$182"}},{"$f":"SUM(B52:M52)","v":{"v":1593.6088379169448,"d":"$1,594"}},{"$f":"STDEV('Trial 1'!O36,'Trial 2'!O36,'Trial 3'!O36,'Trial 4'!O36,'Trial 5'!O36,'Trial 6'!O36,'Trial 7'!O36,'Trial 8'!O36)","v":{"v":226.6511538683332,"d":"$227"}},{"$f":"STDEV('Trial 1'!P36,'Trial 2'!P36,'Trial 3'!P36,'Trial 4'!P36,'Trial 5'!P36,'Trial 6'!P36,'Trial 7'!P36,'Trial 8'!P36)","v":{"v":199.72640897282608,"d":"$200"}},{"$f":"STDEV('Trial 1'!Q36,'Trial 2'!Q36,'Trial 3'!Q36,'Trial 4'!Q36,'Trial 5'!Q36,'Trial 6'!Q36,'Trial 7'!Q36,'Trial 8'!Q36)","v":{"v":215.91999192745803,"d":"$216"}},{"$f":"STDEV('Trial 1'!R36,'Trial 2'!R36,'Trial 3'!R36,'Trial 4'!R36,'Trial 5'!R36,'Trial 6'!R36,'Trial 7'!R36,'Trial 8'!R36)","v":{"v":212.3966523114863,"d":"$212"}},{"$f":"STDEV('Trial 1'!S36,'Trial 2'!S36,'Trial 3'!S36,'Trial 4'!S36,'Trial 5'!S36,'Trial 6'!S36,'Trial 7'!S36,'Trial 8'!S36)","v":{"v":239.62757395643402,"d":"$240"}},{"$f":"STDEV('Trial 1'!T36,'Trial 2'!T36,'Trial 3'!T36,'Trial 4'!T36,'Trial 5'!T36,'Trial 6'!T36,'Trial 7'!T36,'Trial 8'!T36)","v":{"v":264.2545081918767,"d":"$264"}},{"$f":"STDEV('Trial 1'!U36,'Trial 2'!U36,'Trial 3'!U36,'Trial 4'!U36,'Trial 5'!U36,'Trial 6'!U36,'Trial 7'!U36,'Trial 8'!U36)","v":{"v":196.19549770231478,"d":"$196"}},{"$f":"STDEV('Trial 1'!V36,'Trial 2'!V36,'Trial 3'!V36,'Trial 4'!V36,'Trial 5'!V36,'Trial 6'!V36,'Trial 7'!V36,'Trial 8'!V36)","v":{"v":167.37049165592936,"d":"$167"}},{"$f":"STDEV('Trial 1'!W36,'Trial 2'!W36,'Trial 3'!W36,'Trial 4'!W36,'Trial 5'!W36,'Trial 6'!W36,'Trial 7'!W36,'Trial 8'!W36)","v":{"v":211.40578005862588,"d":"$211"}},{"$f":"STDEV('Trial 1'!X36,'Trial 2'!X36,'Trial 3'!X36,'Trial 4'!X36,'Trial 5'!X36,'Trial 6'!X36,'Trial 7'!X36,'Trial 8'!X36)","v":{"v":213.9232605805049,"d":"$214"}},{"$f":"STDEV('Trial 1'!Y36,'Trial 2'!Y36,'Trial 3'!Y36,'Trial 4'!Y36,'Trial 5'!Y36,'Trial 6'!Y36,'Trial 7'!Y36,'Trial 8'!Y36)","v":{"v":234.94174378503746,"d":"$235"}},{"$f":"STDEV('Trial 1'!Z36,'Trial 2'!Z36,'Trial 3'!Z36,'Trial 4'!Z36,'Trial 5'!Z36,'Trial 6'!Z36,'Trial 7'!Z36,'Trial 8'!Z36)","v":{"v":221.524743446729,"d":"$222"}},{"$f":"SUM(O52:Z52)","v":{"v":2603.937806457556,"d":"$2,604"}},{"$f":"STDEV('Trial 1'!AB36,'Trial 2'!AB36,'Trial 3'!AB36,'Trial 4'!AB36,'Trial 5'!AB36,'Trial 6'!AB36,'Trial 7'!AB36,'Trial 8'!AB36)","v":{"v":215.16075026994835,"d":"$215"}},{"$f":"STDEV('Trial 1'!AC36,'Trial 2'!AC36,'Trial 3'!AC36,'Trial 4'!AC36,'Trial 5'!AC36,'Trial 6'!AC36,'Trial 7'!AC36,'Trial 8'!AC36)","v":{"v":177.19965874803353,"d":"$177"}},{"$f":"STDEV('Trial 1'!AD36,'Trial 2'!AD36,'Trial 3'!AD36,'Trial 4'!AD36,'Trial 5'!AD36,'Trial 6'!AD36,'Trial 7'!AD36,'Trial 8'!AD36)","v":{"v":195.73672715990338,"d":"$196"}},{"$f":"STDEV('Trial 1'!AE36,'Trial 2'!AE36,'Trial 3'!AE36,'Trial 4'!AE36,'Trial 5'!AE36,'Trial 6'!AE36,'Trial 7'!AE36,'Trial 8'!AE36)","v":{"v":205.02604350536603,"d":"$205"}},{"$f":"STDEV('Trial 1'!AF36,'Trial 2'!AF36,'Trial 3'!AF36,'Trial 4'!AF36,'Trial 5'!AF36,'Trial 6'!AF36,'Trial 7'!AF36,'Trial 8'!AF36)","v":{"v":247.52114585729134,"d":"$248"}},{"$f":"STDEV('Trial 1'!AG36,'Trial 2'!AG36,'Trial 3'!AG36,'Trial 4'!AG36,'Trial 5'!AG36,'Trial 6'!AG36,'Trial 7'!AG36,'Trial 8'!AG36)","v":{"v":321.9731836891446,"d":"$322"}},{"$f":"STDEV('Trial 1'!AH36,'Trial 2'!AH36,'Trial 3'!AH36,'Trial 4'!AH36,'Trial 5'!AH36,'Trial 6'!AH36,'Trial 7'!AH36,'Trial 8'!AH36)","v":{"v":340.02731146958234,"d":"$340"}},{"$f":"STDEV('Trial 1'!AI36,'Trial 2'!AI36,'Trial 3'!AI36,'Trial 4'!AI36,'Trial 5'!AI36,'Trial 6'!AI36,'Trial 7'!AI36,'Trial 8'!AI36)","v":{"v":333.31044759669635,"d":"$333"}},{"$f":"STDEV('Trial 1'!AJ36,'Trial 2'!AJ36,'Trial 3'!AJ36,'Trial 4'!AJ36,'Trial 5'!AJ36,'Trial 6'!AJ36,'Trial 7'!AJ36,'Trial 8'!AJ36)","v":{"v":310.962303255573,"d":"$311"}},{"$f":"STDEV('Trial 1'!AK36,'Trial 2'!AK36,'Trial 3'!AK36,'Trial 4'!AK36,'Trial 5'!AK36,'Trial 6'!AK36,'Trial 7'!AK36,'Trial 8'!AK36)","v":{"v":287.1464355244931,"d":"$287"}},{"$f":"STDEV('Trial 1'!AL36,'Trial 2'!AL36,'Trial 3'!AL36,'Trial 4'!AL36,'Trial 5'!AL36,'Trial 6'!AL36,'Trial 7'!AL36,'Trial 8'!AL36)","v":{"v":285.90482740593757,"d":"$286"}},{"$f":"STDEV('Trial 1'!AM36,'Trial 2'!AM36,'Trial 3'!AM36,'Trial 4'!AM36,'Trial 5'!AM36,'Trial 6'!AM36,'Trial 7'!AM36,'Trial 8'!AM36)","v":{"v":285.7466475705727,"d":"$286"}},{"$f":"SUM(AB52:AM52)","v":{"v":3205.7154820525425,"d":"$3,206"}},{"$f":"STDEV('Trial 1'!AO36,'Trial 2'!AO36,'Trial 3'!AO36,'Trial 4'!AO36,'Trial 5'!AO36,'Trial 6'!AO36,'Trial 7'!AO36,'Trial 8'!AO36)","v":{"v":290.7782356011218,"d":"$291"}},{"$f":"STDEV('Trial 1'!AP36,'Trial 2'!AP36,'Trial 3'!AP36,'Trial 4'!AP36,'Trial 5'!AP36,'Trial 6'!AP36,'Trial 7'!AP36,'Trial 8'!AP36)","v":{"v":287.65415513051653,"d":"$288"}},{"$f":"STDEV('Trial 1'!AQ36,'Trial 2'!AQ36,'Trial 3'!AQ36,'Trial 4'!AQ36,'Trial 5'!AQ36,'Trial 6'!AQ36,'Trial 7'!AQ36,'Trial 8'!AQ36)","v":{"v":277.49840887479905,"d":"$277"}},{"$f":"STDEV('Trial 1'!AR36,'Trial 2'!AR36,'Trial 3'!AR36,'Trial 4'!AR36,'Trial 5'!AR36,'Trial 6'!AR36,'Trial 7'!AR36,'Trial 8'!AR36)","v":{"v":303.36383134126714,"d":"$303"}},{"$f":"STDEV('Trial 1'!AS36,'Trial 2'!AS36,'Trial 3'!AS36,'Trial 4'!AS36,'Trial 5'!AS36,'Trial 6'!AS36,'Trial 7'!AS36,'Trial 8'!AS36)","v":{"v":300.30862564052563,"d":"$300"}},{"$f":"STDEV('Trial 1'!AT36,'Trial 2'!AT36,'Trial 3'!AT36,'Trial 4'!AT36,'Trial 5'!AT36,'Trial 6'!AT36,'Trial 7'!AT36,'Trial 8'!AT36)","v":{"v":301.24543421554864,"d":"$301"}},{"$f":"STDEV('Trial 1'!AU36,'Trial 2'!AU36,'Trial 3'!AU36,'Trial 4'!AU36,'Trial 5'!AU36,'Trial 6'!AU36,'Trial 7'!AU36,'Trial 8'!AU36)","v":{"v":272.5413103802794,"d":"$273"}},{"$f":"STDEV('Trial 1'!AV36,'Trial 2'!AV36,'Trial 3'!AV36,'Trial 4'!AV36,'Trial 5'!AV36,'Trial 6'!AV36,'Trial 7'!AV36,'Trial 8'!AV36)","v":{"v":242.34909747887383,"d":"$242"}},{"$f":"STDEV('Trial 1'!AW36,'Trial 2'!AW36,'Trial 3'!AW36,'Trial 4'!AW36,'Trial 5'!AW36,'Trial 6'!AW36,'Trial 7'!AW36,'Trial 8'!AW36)","v":{"v":245.19983983059814,"d":"$245"}},{"$f":"STDEV('Trial 1'!AX36,'Trial 2'!AX36,'Trial 3'!AX36,'Trial 4'!AX36,'Trial 5'!AX36,'Trial 6'!AX36,'Trial 7'!AX36,'Trial 8'!AX36)","v":{"v":243.71379242200825,"d":"$244"}},{"$f":"STDEV('Trial 1'!AY36,'Trial 2'!AY36,'Trial 3'!AY36,'Trial 4'!AY36,'Trial 5'!AY36,'Trial 6'!AY36,'Trial 7'!AY36,'Trial 8'!AY36)","v":{"v":274.5533063655923,"d":"$275"}},{"$f":"STDEV('Trial 1'!AZ36,'Trial 2'!AZ36,'Trial 3'!AZ36,'Trial 4'!AZ36,'Trial 5'!AZ36,'Trial 6'!AZ36,'Trial 7'!AZ36,'Trial 8'!AZ36)","v":{"v":282.56276198922444,"d":"$283"}},{"$f":"SUM(AO52:AZ52)","v":{"v":3321.768799270355,"d":"$3,322"}},{"$f":"STDEV('Trial 1'!BB36,'Trial 2'!BB36,'Trial 3'!BB36,'Trial 4'!BB36,'Trial 5'!BB36,'Trial 6'!BB36,'Trial 7'!BB36,'Trial 8'!BB36)","v":{"v":291.92659617167305,"d":"$292"}},{"$f":"STDEV('Trial 1'!BC36,'Trial 2'!BC36,'Trial 3'!BC36,'Trial 4'!BC36,'Trial 5'!BC36,'Trial 6'!BC36,'Trial 7'!BC36,'Trial 8'!BC36)","v":{"v":263.14043179853667,"d":"$263"}},{"$f":"STDEV('Trial 1'!BD36,'Trial 2'!BD36,'Trial 3'!BD36,'Trial 4'!BD36,'Trial 5'!BD36,'Trial 6'!BD36,'Trial 7'!BD36,'Trial 8'!BD36)","v":{"v":268.26286286930025,"d":"$268"}},{"$f":"STDEV('Trial 1'!BE36,'Trial 2'!BE36,'Trial 3'!BE36,'Trial 4'!BE36,'Trial 5'!BE36,'Trial 6'!BE36,'Trial 7'!BE36,'Trial 8'!BE36)","v":{"v":319.38826708279583,"d":"$319"}},{"$f":"STDEV('Trial 1'!BF36,'Trial 2'!BF36,'Trial 3'!BF36,'Trial 4'!BF36,'Trial 5'!BF36,'Trial 6'!BF36,'Trial 7'!BF36,'Trial 8'!BF36)","v":{"v":295.31925058811777,"d":"$295"}},{"$f":"STDEV('Trial 1'!BG36,'Trial 2'!BG36,'Trial 3'!BG36,'Trial 4'!BG36,'Trial 5'!BG36,'Trial 6'!BG36,'Trial 7'!BG36,'Trial 8'!BG36)","v":{"v":322.0777637217131,"d":"$322"}},{"$f":"STDEV('Trial 1'!BH36,'Trial 2'!BH36,'Trial 3'!BH36,'Trial 4'!BH36,'Trial 5'!BH36,'Trial 6'!BH36,'Trial 7'!BH36,'Trial 8'!BH36)","v":{"v":336.33724326195977,"d":"$336"}},{"$f":"STDEV('Trial 1'!BI36,'Trial 2'!BI36,'Trial 3'!BI36,'Trial 4'!BI36,'Trial 5'!BI36,'Trial 6'!BI36,'Trial 7'!BI36,'Trial 8'!BI36)","v":{"v":339.5929718497153,"d":"$340"}},{"$f":"STDEV('Trial 1'!BJ36,'Trial 2'!BJ36,'Trial 3'!BJ36,'Trial 4'!BJ36,'Trial 5'!BJ36,'Trial 6'!BJ36,'Trial 7'!BJ36,'Trial 8'!BJ36)","v":{"v":364.58801136625027,"d":"$365"}},{"$f":"STDEV('Trial 1'!BK36,'Trial 2'!BK36,'Trial 3'!BK36,'Trial 4'!BK36,'Trial 5'!BK36,'Trial 6'!BK36,'Trial 7'!BK36,'Trial 8'!BK36)","v":{"v":378.6143309125548,"d":"$379"}},{"$f":"STDEV('Trial 1'!BL36,'Trial 2'!BL36,'Trial 3'!BL36,'Trial 4'!BL36,'Trial 5'!BL36,'Trial 6'!BL36,'Trial 7'!BL36,'Trial 8'!BL36)","v":{"v":365.7254596431,"d":"$366"}},{"$f":"STDEV('Trial 1'!BM36,'Trial 2'!BM36,'Trial 3'!BM36,'Trial 4'!BM36,'Trial 5'!BM36,'Trial 6'!BM36,'Trial 7'!BM36,'Trial 8'!BM36)","v":{"v":369.9412849966547,"d":"$370"}},{"$f":"SUM(BB52:BM52)","v":{"v":3914.9144742623716,"d":"$3,915"}},{"$f":"STDEV('Trial 1'!BO36,'Trial 2'!BO36,'Trial 3'!BO36,'Trial 4'!BO36,'Trial 5'!BO36,'Trial 6'!BO36,'Trial 7'!BO36,'Trial 8'!BO36)","v":{"v":338.2904480047821,"d":"$338"}},{"$f":"STDEV('Trial 1'!BP36,'Trial 2'!BP36,'Trial 3'!BP36,'Trial 4'!BP36,'Trial 5'!BP36,'Trial 6'!BP36,'Trial 7'!BP36,'Trial 8'!BP36)","v":{"v":357.80092357560255,"d":"$358"}},{"$f":"STDEV('Trial 1'!BQ36,'Trial 2'!BQ36,'Trial 3'!BQ36,'Trial 4'!BQ36,'Trial 5'!BQ36,'Trial 6'!BQ36,'Trial 7'!BQ36,'Trial 8'!BQ36)","v":{"v":393.02701625324966,"d":"$393"}},{"$f":"STDEV('Trial 1'!BR36,'Trial 2'!BR36,'Trial 3'!BR36,'Trial 4'!BR36,'Trial 5'!BR36,'Trial 6'!BR36,'Trial 7'!BR36,'Trial 8'!BR36)","v":{"v":425.07655976146947,"d":"$425"}},{"$f":"STDEV('Trial 1'!BS36,'Trial 2'!BS36,'Trial 3'!BS36,'Trial 4'!BS36,'Trial 5'!BS36,'Trial 6'!BS36,'Trial 7'!BS36,'Trial 8'!BS36)","v":{"v":456.0526793319255,"d":"$456"}},{"$f":"STDEV('Trial 1'!BT36,'Trial 2'!BT36,'Trial 3'!BT36,'Trial 4'!BT36,'Trial 5'!BT36,'Trial 6'!BT36,'Trial 7'!BT36,'Trial 8'!BT36)","v":{"v":480.09631698079744,"d":"$480"}},{"$f":"STDEV('Trial 1'!BU36,'Trial 2'!BU36,'Trial 3'!BU36,'Trial 4'!BU36,'Trial 5'!BU36,'Trial 6'!BU36,'Trial 7'!BU36,'Trial 8'!BU36)","v":{"v":465.90979407356883,"d":"$466"}},{"$f":"STDEV('Trial 1'!BV36,'Trial 2'!BV36,'Trial 3'!BV36,'Trial 4'!BV36,'Trial 5'!BV36,'Trial 6'!BV36,'Trial 7'!BV36,'Trial 8'!BV36)","v":{"v":484.82090322074305,"d":"$485"}},{"$f":"STDEV('Trial 1'!BW36,'Trial 2'!BW36,'Trial 3'!BW36,'Trial 4'!BW36,'Trial 5'!BW36,'Trial 6'!BW36,'Trial 7'!BW36,'Trial 8'!BW36)","v":{"v":485.727289837634,"d":"$486"}},{"$f":"STDEV('Trial 1'!BX36,'Trial 2'!BX36,'Trial 3'!BX36,'Trial 4'!BX36,'Trial 5'!BX36,'Trial 6'!BX36,'Trial 7'!BX36,'Trial 8'!BX36)","v":{"v":519.3160583174044,"d":"$519"}},{"$f":"STDEV('Trial 1'!BY36,'Trial 2'!BY36,'Trial 3'!BY36,'Trial 4'!BY36,'Trial 5'!BY36,'Trial 6'!BY36,'Trial 7'!BY36,'Trial 8'!BY36)","v":{"v":511.9701482560691,"d":"$512"}},{"$f":"STDEV('Trial 1'!BZ36,'Trial 2'!BZ36,'Trial 3'!BZ36,'Trial 4'!BZ36,'Trial 5'!BZ36,'Trial 6'!BZ36,'Trial 7'!BZ36,'Trial 8'!BZ36)","v":{"v":462.0002511981331,"d":"$462"}},{"$f":"SUM(BO52:BZ52)","v":{"v":5380.088388811379,"d":"$5,380"}},{"$f":"STDEV('Trial 1'!CB36,'Trial 2'!CB36,'Trial 3'!CB36,'Trial 4'!CB36,'Trial 5'!CB36,'Trial 6'!CB36,'Trial 7'!CB36,'Trial 8'!CB36)","v":{"v":446.7746363613361,"d":"$447"}},{"$f":"STDEV('Trial 1'!CC36,'Trial 2'!CC36,'Trial 3'!CC36,'Trial 4'!CC36,'Trial 5'!CC36,'Trial 6'!CC36,'Trial 7'!CC36,'Trial 8'!CC36)","v":{"v":402.01397260824706,"d":"$402"}},{"$f":"STDEV('Trial 1'!CD36,'Trial 2'!CD36,'Trial 3'!CD36,'Trial 4'!CD36,'Trial 5'!CD36,'Trial 6'!CD36,'Trial 7'!CD36,'Trial 8'!CD36)","v":{"v":390.60295432275825,"d":"$391"}},{"$f":"STDEV('Trial 1'!CE36,'Trial 2'!CE36,'Trial 3'!CE36,'Trial 4'!CE36,'Trial 5'!CE36,'Trial 6'!CE36,'Trial 7'!CE36,'Trial 8'!CE36)","v":{"v":394.4464791484732,"d":"$394"}},{"$f":"STDEV('Trial 1'!CF36,'Trial 2'!CF36,'Trial 3'!CF36,'Trial 4'!CF36,'Trial 5'!CF36,'Trial 6'!CF36,'Trial 7'!CF36,'Trial 8'!CF36)","v":{"v":391.39045146515605,"d":"$391"}},{"$f":"STDEV('Trial 1'!CG36,'Trial 2'!CG36,'Trial 3'!CG36,'Trial 4'!CG36,'Trial 5'!CG36,'Trial 6'!CG36,'Trial 7'!CG36,'Trial 8'!CG36)","v":{"v":390.95241759095165,"d":"$391"}},{"$f":"STDEV('Trial 1'!CH36,'Trial 2'!CH36,'Trial 3'!CH36,'Trial 4'!CH36,'Trial 5'!CH36,'Trial 6'!CH36,'Trial 7'!CH36,'Trial 8'!CH36)","v":{"v":404.4974511525706,"d":"$404"}},{"$f":"STDEV('Trial 1'!CI36,'Trial 2'!CI36,'Trial 3'!CI36,'Trial 4'!CI36,'Trial 5'!CI36,'Trial 6'!CI36,'Trial 7'!CI36,'Trial 8'!CI36)","v":{"v":413.2447831867476,"d":"$413"}},{"$f":"STDEV('Trial 1'!CJ36,'Trial 2'!CJ36,'Trial 3'!CJ36,'Trial 4'!CJ36,'Trial 5'!CJ36,'Trial 6'!CJ36,'Trial 7'!CJ36,'Trial 8'!CJ36)","v":{"v":397.04881922699036,"d":"$397"}},{"$f":"STDEV('Trial 1'!CK36,'Trial 2'!CK36,'Trial 3'!CK36,'Trial 4'!CK36,'Trial 5'!CK36,'Trial 6'!CK36,'Trial 7'!CK36,'Trial 8'!CK36)","v":{"v":392.9471091125655,"d":"$393"}},{"$f":"STDEV('Trial 1'!CL36,'Trial 2'!CL36,'Trial 3'!CL36,'Trial 4'!CL36,'Trial 5'!CL36,'Trial 6'!CL36,'Trial 7'!CL36,'Trial 8'!CL36)","v":{"v":371.4441217407805,"d":"$371"}},{"$f":"STDEV('Trial 1'!CM36,'Trial 2'!CM36,'Trial 3'!CM36,'Trial 4'!CM36,'Trial 5'!CM36,'Trial 6'!CM36,'Trial 7'!CM36,'Trial 8'!CM36)","v":{"v":381.1710217914653,"d":"$381"}},{"$f":"SUM(CB52:CM52)","v":{"v":4776.534217708042,"d":"$4,777"}},{"$f":"STDEV('Trial 1'!CO36,'Trial 2'!CO36,'Trial 3'!CO36,'Trial 4'!CO36,'Trial 5'!CO36,'Trial 6'!CO36,'Trial 7'!CO36,'Trial 8'!CO36)","v":{"v":381.03402894270965,"d":"$381"}},{"$f":"STDEV('Trial 1'!CP36,'Trial 2'!CP36,'Trial 3'!CP36,'Trial 4'!CP36,'Trial 5'!CP36,'Trial 6'!CP36,'Trial 7'!CP36,'Trial 8'!CP36)","v":{"v":391.1890832043689,"d":"$391"}},{"$f":"STDEV('Trial 1'!CQ36,'Trial 2'!CQ36,'Trial 3'!CQ36,'Trial 4'!CQ36,'Trial 5'!CQ36,'Trial 6'!CQ36,'Trial 7'!CQ36,'Trial 8'!CQ36)","v":{"v":390.22675122571206,"d":"$390"}},{"$f":"STDEV('Trial 1'!CR36,'Trial 2'!CR36,'Trial 3'!CR36,'Trial 4'!CR36,'Trial 5'!CR36,'Trial 6'!CR36,'Trial 7'!CR36,'Trial 8'!CR36)","v":{"v":385.4846681972258,"d":"$385"}},{"$f":"STDEV('Trial 1'!CS36,'Trial 2'!CS36,'Trial 3'!CS36,'Trial 4'!CS36,'Trial 5'!CS36,'Trial 6'!CS36,'Trial 7'!CS36,'Trial 8'!CS36)","v":{"v":390.71150255377427,"d":"$391"}},{"$f":"STDEV('Trial 1'!CT36,'Trial 2'!CT36,'Trial 3'!CT36,'Trial 4'!CT36,'Trial 5'!CT36,'Trial 6'!CT36,'Trial 7'!CT36,'Trial 8'!CT36)","v":{"v":357.35081345993933,"d":"$357"}},{"$f":"STDEV('Trial 1'!CU36,'Trial 2'!CU36,'Trial 3'!CU36,'Trial 4'!CU36,'Trial 5'!CU36,'Trial 6'!CU36,'Trial 7'!CU36,'Trial 8'!CU36)","v":{"v":391.77672487290283,"d":"$392"}},{"$f":"STDEV('Trial 1'!CV36,'Trial 2'!CV36,'Trial 3'!CV36,'Trial 4'!CV36,'Trial 5'!CV36,'Trial 6'!CV36,'Trial 7'!CV36,'Trial 8'!CV36)","v":{"v":410.7669536005111,"d":"$411"}},{"$f":"STDEV('Trial 1'!CW36,'Trial 2'!CW36,'Trial 3'!CW36,'Trial 4'!CW36,'Trial 5'!CW36,'Trial 6'!CW36,'Trial 7'!CW36,'Trial 8'!CW36)","v":{"v":421.8398050281915,"d":"$422"}},{"$f":"STDEV('Trial 1'!CX36,'Trial 2'!CX36,'Trial 3'!CX36,'Trial 4'!CX36,'Trial 5'!CX36,'Trial 6'!CX36,'Trial 7'!CX36,'Trial 8'!CX36)","v":{"v":366.38728758367563,"d":"$366"}},{"$f":"STDEV('Trial 1'!CY36,'Trial 2'!CY36,'Trial 3'!CY36,'Trial 4'!CY36,'Trial 5'!CY36,'Trial 6'!CY36,'Trial 7'!CY36,'Trial 8'!CY36)","v":{"v":401.32183731928893,"d":"$401"}},{"$f":"STDEV('Trial 1'!CZ36,'Trial 2'!CZ36,'Trial 3'!CZ36,'Trial 4'!CZ36,'Trial 5'!CZ36,'Trial 6'!CZ36,'Trial 7'!CZ36,'Trial 8'!CZ36)","v":{"v":410.3142789049142,"d":"$410"}},{"$f":"SUM(CO52:CZ52)","v":{"v":4698.403734893214,"d":"$4,698"}},{"$f":"STDEV('Trial 1'!DB36,'Trial 2'!DB36,'Trial 3'!DB36,'Trial 4'!DB36,'Trial 5'!DB36,'Trial 6'!DB36,'Trial 7'!DB36,'Trial 8'!DB36)","v":{"v":429.68469999328994,"d":"$430"}},{"$f":"STDEV('Trial 1'!DC36,'Trial 2'!DC36,'Trial 3'!DC36,'Trial 4'!DC36,'Trial 5'!DC36,'Trial 6'!DC36,'Trial 7'!DC36,'Trial 8'!DC36)","v":{"v":482.76273622194526,"d":"$483"}},{"$f":"STDEV('Trial 1'!DD36,'Trial 2'!DD36,'Trial 3'!DD36,'Trial 4'!DD36,'Trial 5'!DD36,'Trial 6'!DD36,'Trial 7'!DD36,'Trial 8'!DD36)","v":{"v":459.6071293435954,"d":"$460"}},{"$f":"STDEV('Trial 1'!DE36,'Trial 2'!DE36,'Trial 3'!DE36,'Trial 4'!DE36,'Trial 5'!DE36,'Trial 6'!DE36,'Trial 7'!DE36,'Trial 8'!DE36)","v":{"v":431.18470577985903,"d":"$431"}},{"$f":"STDEV('Trial 1'!DF36,'Trial 2'!DF36,'Trial 3'!DF36,'Trial 4'!DF36,'Trial 5'!DF36,'Trial 6'!DF36,'Trial 7'!DF36,'Trial 8'!DF36)","v":{"v":441.43031535830517,"d":"$441"}},{"$f":"STDEV('Trial 1'!DG36,'Trial 2'!DG36,'Trial 3'!DG36,'Trial 4'!DG36,'Trial 5'!DG36,'Trial 6'!DG36,'Trial 7'!DG36,'Trial 8'!DG36)","v":{"v":421.1134376915701,"d":"$421"}},{"$f":"STDEV('Trial 1'!DH36,'Trial 2'!DH36,'Trial 3'!DH36,'Trial 4'!DH36,'Trial 5'!DH36,'Trial 6'!DH36,'Trial 7'!DH36,'Trial 8'!DH36)","v":{"v":402.82919571924475,"d":"$403"}},{"$f":"STDEV('Trial 1'!DI36,'Trial 2'!DI36,'Trial 3'!DI36,'Trial 4'!DI36,'Trial 5'!DI36,'Trial 6'!DI36,'Trial 7'!DI36,'Trial 8'!DI36)","v":{"v":402.4197515079129,"d":"$402"}},{"$f":"STDEV('Trial 1'!DJ36,'Trial 2'!DJ36,'Trial 3'!DJ36,'Trial 4'!DJ36,'Trial 5'!DJ36,'Trial 6'!DJ36,'Trial 7'!DJ36,'Trial 8'!DJ36)","v":{"v":358.9523650319524,"d":"$359"}},{"$f":"STDEV('Trial 1'!DK36,'Trial 2'!DK36,'Trial 3'!DK36,'Trial 4'!DK36,'Trial 5'!DK36,'Trial 6'!DK36,'Trial 7'!DK36,'Trial 8'!DK36)","v":{"v":434.3051494866773,"d":"$434"}},{"$f":"STDEV('Trial 1'!DL36,'Trial 2'!DL36,'Trial 3'!DL36,'Trial 4'!DL36,'Trial 5'!DL36,'Trial 6'!DL36,'Trial 7'!DL36,'Trial 8'!DL36)","v":{"v":447.4081581441609,"d":"$447"}},{"$f":"STDEV('Trial 1'!DM36,'Trial 2'!DM36,'Trial 3'!DM36,'Trial 4'!DM36,'Trial 5'!DM36,'Trial 6'!DM36,'Trial 7'!DM36,'Trial 8'!DM36)","v":{"v":491.7867526920739,"d":"$492"}},{"$f":"SUM(DB52:DM52)","v":{"v":5203.484396970587,"d":"$5,203"}},{"$f":"STDEV('Trial 1'!DO36,'Trial 2'!DO36,'Trial 3'!DO36,'Trial 4'!DO36,'Trial 5'!DO36,'Trial 6'!DO36,'Trial 7'!DO36,'Trial 8'!DO36)","v":{"v":509.2558678986047,"d":"$509"}},{"$f":"STDEV('Trial 1'!DP36,'Trial 2'!DP36,'Trial 3'!DP36,'Trial 4'!DP36,'Trial 5'!DP36,'Trial 6'!DP36,'Trial 7'!DP36,'Trial 8'!DP36)","v":{"v":484.6110759269364,"d":"$485"}},{"$f":"STDEV('Trial 1'!DQ36,'Trial 2'!DQ36,'Trial 3'!DQ36,'Trial 4'!DQ36,'Trial 5'!DQ36,'Trial 6'!DQ36,'Trial 7'!DQ36,'Trial 8'!DQ36)","v":{"v":469.0991751600427,"d":"$469"}},{"$f":"STDEV('Trial 1'!DR36,'Trial 2'!DR36,'Trial 3'!DR36,'Trial 4'!DR36,'Trial 5'!DR36,'Trial 6'!DR36,'Trial 7'!DR36,'Trial 8'!DR36)","v":{"v":514.4510403756943,"d":"$514"}},{"$f":"STDEV('Trial 1'!DS36,'Trial 2'!DS36,'Trial 3'!DS36,'Trial 4'!DS36,'Trial 5'!DS36,'Trial 6'!DS36,'Trial 7'!DS36,'Trial 8'!DS36)","v":{"v":530.9000226310546,"d":"$531"}},{"$f":"STDEV('Trial 1'!DT36,'Trial 2'!DT36,'Trial 3'!DT36,'Trial 4'!DT36,'Trial 5'!DT36,'Trial 6'!DT36,'Trial 7'!DT36,'Trial 8'!DT36)","v":{"v":537.377867886199,"d":"$537"}},{"$f":"STDEV('Trial 1'!DU36,'Trial 2'!DU36,'Trial 3'!DU36,'Trial 4'!DU36,'Trial 5'!DU36,'Trial 6'!DU36,'Trial 7'!DU36,'Trial 8'!DU36)","v":{"v":570.376528788728,"d":"$570"}},{"$f":"STDEV('Trial 1'!DV36,'Trial 2'!DV36,'Trial 3'!DV36,'Trial 4'!DV36,'Trial 5'!DV36,'Trial 6'!DV36,'Trial 7'!DV36,'Trial 8'!DV36)","v":{"v":592.7892300584191,"d":"$593"}},{"$f":"STDEV('Trial 1'!DW36,'Trial 2'!DW36,'Trial 3'!DW36,'Trial 4'!DW36,'Trial 5'!DW36,'Trial 6'!DW36,'Trial 7'!DW36,'Trial 8'!DW36)","v":{"v":586.278218233067,"d":"$586"}},{"$f":"STDEV('Trial 1'!DX36,'Trial 2'!DX36,'Trial 3'!DX36,'Trial 4'!DX36,'Trial 5'!DX36,'Trial 6'!DX36,'Trial 7'!DX36,'Trial 8'!DX36)","v":{"v":594.7458466720984,"d":"$595"}},{"$f":"STDEV('Trial 1'!DY36,'Trial 2'!DY36,'Trial 3'!DY36,'Trial 4'!DY36,'Trial 5'!DY36,'Trial 6'!DY36,'Trial 7'!DY36,'Trial 8'!DY36)","v":{"v":571.470613641497,"d":"$571"}},{"$f":"STDEV('Trial 1'!DZ36,'Trial 2'!DZ36,'Trial 3'!DZ36,'Trial 4'!DZ36,'Trial 5'!DZ36,'Trial 6'!DZ36,'Trial 7'!DZ36,'Trial 8'!DZ36)","v":{"v":615.89473775493,"d":"$616"}},{"$f":"SUM(DO52:DZ52)","v":{"v":6577.250225027272,"d":"$6,577"}},{"$f":"STDEV('Trial 1'!EB36,'Trial 2'!EB36,'Trial 3'!EB36,'Trial 4'!EB36,'Trial 5'!EB36,'Trial 6'!EB36,'Trial 7'!EB36,'Trial 8'!EB36)","v":{"v":626.9464335948028,"d":"$627"}},{"$f":"STDEV('Trial 1'!EC36,'Trial 2'!EC36,'Trial 3'!EC36,'Trial 4'!EC36,'Trial 5'!EC36,'Trial 6'!EC36,'Trial 7'!EC36,'Trial 8'!EC36)","v":{"v":600.459600208114,"d":"$600"}},{"$f":"STDEV('Trial 1'!ED36,'Trial 2'!ED36,'Trial 3'!ED36,'Trial 4'!ED36,'Trial 5'!ED36,'Trial 6'!ED36,'Trial 7'!ED36,'Trial 8'!ED36)","v":{"v":545.3157763664942,"d":"$545"}},{"$f":"STDEV('Trial 1'!EE36,'Trial 2'!EE36,'Trial 3'!EE36,'Trial 4'!EE36,'Trial 5'!EE36,'Trial 6'!EE36,'Trial 7'!EE36,'Trial 8'!EE36)","v":{"v":594.0865834548407,"d":"$594"}},{"$f":"STDEV('Trial 1'!EF36,'Trial 2'!EF36,'Trial 3'!EF36,'Trial 4'!EF36,'Trial 5'!EF36,'Trial 6'!EF36,'Trial 7'!EF36,'Trial 8'!EF36)","v":{"v":565.3441083699805,"d":"$565"}},{"$f":"STDEV('Trial 1'!EG36,'Trial 2'!EG36,'Trial 3'!EG36,'Trial 4'!EG36,'Trial 5'!EG36,'Trial 6'!EG36,'Trial 7'!EG36,'Trial 8'!EG36)","v":{"v":547.6327188455039,"d":"$548"}},{"$f":"STDEV('Trial 1'!EH36,'Trial 2'!EH36,'Trial 3'!EH36,'Trial 4'!EH36,'Trial 5'!EH36,'Trial 6'!EH36,'Trial 7'!EH36,'Trial 8'!EH36)","v":{"v":556.7115053752622,"d":"$557"}},{"$f":"STDEV('Trial 1'!EI36,'Trial 2'!EI36,'Trial 3'!EI36,'Trial 4'!EI36,'Trial 5'!EI36,'Trial 6'!EI36,'Trial 7'!EI36,'Trial 8'!EI36)","v":{"v":587.7912252011321,"d":"$588"}},{"$f":"STDEV('Trial 1'!EJ36,'Trial 2'!EJ36,'Trial 3'!EJ36,'Trial 4'!EJ36,'Trial 5'!EJ36,'Trial 6'!EJ36,'Trial 7'!EJ36,'Trial 8'!EJ36)","v":{"v":600.1211851465309,"d":"$600"}},{"$f":"STDEV('Trial 1'!EK36,'Trial 2'!EK36,'Trial 3'!EK36,'Trial 4'!EK36,'Trial 5'!EK36,'Trial 6'!EK36,'Trial 7'!EK36,'Trial 8'!EK36)","v":{"v":608.3577460261379,"d":"$608"}},{"$f":"STDEV('Trial 1'!EL36,'Trial 2'!EL36,'Trial 3'!EL36,'Trial 4'!EL36,'Trial 5'!EL36,'Trial 6'!EL36,'Trial 7'!EL36,'Trial 8'!EL36)","v":{"v":616.1174739849602,"d":"$616"}},{"$f":"STDEV('Trial 1'!EM36,'Trial 2'!EM36,'Trial 3'!EM36,'Trial 4'!EM36,'Trial 5'!EM36,'Trial 6'!EM36,'Trial 7'!EM36,'Trial 8'!EM36)","v":{"v":561.1388670279695,"d":"$561"}},{"$f":"SUM(EB52:EM52)","v":{"v":7010.023223601728,"d":"$7,010"}}]
[]
[{"$f":"Labels!B59","v":"Permanent Income"},{"$f":"AVERAGE('(Other Computations)'!B50:B57)","v":{"v":933333.3333333333,"d":"$933,333"}},{"$f":"AVERAGE('(Other Computations)'!C50:C57)","v":{"v":933077.8363457569,"d":"$933,078"}},{"$f":"AVERAGE('(Other Computations)'!D50:D57)","v":{"v":932798.005237549,"d":"$932,798"}},{"$f":"AVERAGE('(Other Computations)'!E50:E57)","v":{"v":932516.3077164631,"d":"$932,516"}},{"$f":"AVERAGE('(Other Computations)'!F50:F57)","v":{"v":932200.0255798995,"d":"$932,200"}},{"$f":"AVERAGE('(Other Computations)'!G50:G57)","v":{"v":931886.2306120808,"d":"$931,886"}},{"$f":"AVERAGE('(Other Computations)'!H50:H57)","v":{"v":931584.984438387,"d":"$931,585"}},{"$f":"AVERAGE('(Other Computations)'!I50:I57)","v":{"v":931333.6532613199,"d":"$931,334"}},{"$f":"AVERAGE('(Other Computations)'!J50:J57)","v":{"v":931034.7998758556,"d":"$931,035"}},{"$f":"AVERAGE('(Other Computations)'!K50:K57)","v":{"v":930766.6568164378,"d":"$930,767"}},{"$f":"AVERAGE('(Other Computations)'!L50:L57)","v":{"v":930456.6383322421,"d":"$930,457"}},{"$f":"AVERAGE('(Other Computations)'!M50:M57)","v":{"v":930175.029943754,"d":"$930,175"}},{"$f":"SUM(B54:M54)","v":{"v":11181163.501493078,"d":"$11,181,164"}},{"$f":"AVERAGE('(Other Computations)'!O50:O57)","v":{"v":929890.7356650764,"d":"$929,891"}},{"$f":"AVERAGE('(Other Computations)'!P50:P57)","v":{"v":929571.956253815,"d":"$929,572"}},{"$f":"AVERAGE('(Other Computations)'!Q50:Q57)","v":{"v":929278.0557893293,"d":"$929,278"}},{"$f":"AVERAGE('(Other Computations)'!R50:R57)","v":{"v":929007.0219320467,"d":"$929,007"}},{"$f":"AVERAGE('(Other Computations)'!S50:S57)","v":{"v":928707.0828607649,"d":"$928,707"}},{"$f":"AVERAGE('(Other Computations)'!T50:T57)","v":{"v":928411.7386402804,"d":"$928,412"}},{"$f":"AVERAGE('(Other Computations)'!U50:U57)","v":{"v":928105.7121539722,"d":"$928,106"}},{"$f":"AVERAGE('(Other Computations)'!V50:V57)","v":{"v":927780.3800056424,"d":"$927,780"}},{"$f":"AVERAGE('(Other Computations)'!W50:W57)","v":{"v":927481.2184584833,"d":"$927,481"}},{"$f":"AVERAGE('(Other Computations)'!X50:X57)","v":{"v":927156.1859148613,"d":"$927,156"}},{"$f":"AVERAGE('(Other Computations)'!Y50:Y57)","v":{"v":926845.2898093581,"d":"$926,845"}},{"$f":"AVERAGE('(Other Computations)'!Z50:Z57)","v":{"v":926505.7865627111,"d":"$926,506"}},{"$f":"SUM(O54:Z54)","v":{"v":11138741.164046342,"d":"$11,138,741"}},{"$f":"AVERAGE('(Other Computations)'!AB50:AB57)","v":{"v":926198.0327907234,"d":"$926,198"}},{"$f":"AVERAGE('(Other Computations)'!AC50:AC57)","v":{"v":925852.5847577035,"d":"$925,853"}},{"$f":"AVERAGE('(Other Computations)'!AD50:AD57)","v":{"v":925518.5884874418,"d":"$925,519"}},{"$f":"AVERAGE('(Other Computations)'!AE50:AE57)","v":{"v":925221.8404032353,"d":"$925,222"}},{"$f":"AVERAGE('(Other Computations)'!AF50:AF57)","v":{"v":924857.2863529669,"d":"$924,857"}},{"$f":"AVERAGE('(Other Computations)'!AG50:AG57)","v":{"v":924527.7381035367,"d":"$924,528"}},{"$f":"AVERAGE('(Other Computations)'!AH50:AH57)","v":{"v":924199.0632042702,"d":"$924,199"}},{"$f":"AVERAGE('(Other Computations)'!AI50:AI57)","v":{"v":923877.9159780432,"d":"$923,878"}},{"$f":"AVERAGE('(Other Computations)'!AJ50:AJ57)","v":{"v":923501.3510347414,"d":"$923,501"}},{"$f":"AVERAGE('(Other Computations)'!AK50:AK57)","v":{"v":923166.7582185172,"d":"$923,167"}},{"$f":"AVERAGE('(Other Computations)'!AL50:AL57)","v":{"v":922836.4840093087,"d":"$922,836"}},{"$f":"AVERAGE('(Other Computations)'!AM50:AM57)","v":{"v":922480.291328082,"d":"$922,480"}},{"$f":"SUM(AB54:AM54)","v":{"v":11092237.93466857,"d":"$11,092,238"}},{"$f":"AVERAGE('(Other Computations)'!AO50:AO57)","v":{"v":922151.462334446,"d":"$922,151"}},{"$f":"AVERAGE('(Other Computations)'!AP50:AP57)","v":{"v":921765.0212192559,"d":"$921,765"}},{"$f":"AVERAGE('(Other Computations)'!AQ50:AQ57)","v":{"v":921391.5271702649,"d":"$921,392"}},{"$f":"AVERAGE('(Other Computations)'!AR50:AR57)","v":{"v":921060.9428149218,"d":"$921,061"}},{"$f":"AVERAGE('(Other Computations)'!AS50:AS57)","v":{"v":920706.9591213599,"d":"$920,707"}},{"$f":"AVERAGE('(Other Computations)'!AT50:AT57)","v":{"v":920311.941210349,"d":"$920,312"}},{"$f":"AVERAGE('(Other Computations)'!AU50:AU57)","v":{"v":919916.6484155434,"d":"$919,917"}},{"$f":"AVERAGE('(Other Computations)'!AV50:AV57)","v":{"v":919581.6933326793,"d":"$919,582"}},{"$f":"AVERAGE('(Other Computations)'!AW50:AW57)","v":{"v":919246.5929088277,"d":"$919,247"}},{"$f":"AVERAGE('(Other Computations)'!AX50:AX57)","v":{"v":918866.1071488928,"d":"$918,866"}},{"$f":"AVERAGE('(Other Computations)'!AY50:AY57)","v":{"v":918509.8191996091,"d":"$918,510"}},{"$f":"AVERAGE('(Other Computations)'!AZ50:AZ57)","v":{"v":918133.779934953,"d":"$918,134"}},{"$f":"SUM(AO54:AZ54)","v":{"v":11041642.494811103,"d":"$11,041,642"}},{"$f":"AVERAGE('(Other Computations)'!BB50:BB57)","v":{"v":917769.8057192113,"d":"$917,770"}},{"$f":"AVERAGE('(Other Computations)'!BC50:BC57)","v":{"v":917395.3678202895,"d":"$917,395"}},{"$f":"AVERAGE('(Other Computations)'!BD50:BD57)","v":{"v":917052.3976852848,"d":"$917,052"}},{"$f":"AVERAGE('(Other Computations)'!BE50:BE57)","v":{"v":916718.8808874363,"d":"$916,719"}},{"$f":"AVERAGE('(Other Computations)'!BF50:BF57)","v":{"v":916353.6456840051,"d":"$916,354"}},{"$f":"AVERAGE('(Other Computations)'!BG50:BG57)","v":{"v":915969.6947598524,"d":"$915,970"}},{"$f":"AVERAGE('(Other Computations)'!BH50:BH57)","v":{"v":915582.0430549537,"d":"$915,582"}},{"$f":"AVERAGE('(Other Computations)'!BI50:BI57)","v":{"v":915235.2704828304,"d":"$915,235"}},{"$f":"AVERAGE('(Other Computations)'!BJ50:BJ57)","v":{"v":914843.8777934901,"d":"$914,844"}},{"$f":"AVERAGE('(Other Computations)'!BK50:BK57)","v":{"v":914464.8867030008,"d":"$914,465"}},{"$f":"AVERAGE('(Other Computations)'!BL50:BL57)","v":{"v":914086.8175309312,"d":"$914,087"}},{"$f":"AVERAGE('(Other Computations)'!BM50:BM57)","v":{"v":913692.3010675334,"d":"$913,692"}},{"$f":"SUM(BB54:BM54)","v":{"v":10989164.989188818,"d":"$10,989,165"}},{"$f":"AVERAGE('(Other Computations)'!BO50:BO57)","v":{"v":913289.1781149949,"d":"$913,289"}},{"$f":"AVERAGE('(Other Computations)'!BP50:BP57)","v":{"v":912863.0475429392,"d":"$912,863"}},{"$f":"AVERAGE('(Other Computations)'!BQ50:BQ57)","v":{"v":912498.778757732,"d":"$912,499"}},{"$f":"AVERAGE('(Other Computations)'!BR50:BR57)","v":{"v":912100.4611920413,"d":"$912,100"}},{"$f":"AVERAGE('(Other Computations)'!BS50:BS57)","v":{"v":911753.0686181408,"d":"$911,753"}},{"$f":"AVERAGE('(Other Computations)'!BT50:BT57)","v":{"v":911359.9282493533,"d":"$911,360"}},{"$f":"AVERAGE('(Other Computations)'!BU50:BU57)","v":{"v":910985.6166863962,"d":"$910,986"}},{"$f":"AVERAGE('(Other Computations)'!BV50:BV57)","v":{"v":910575.5000883408,"d":"$910,576"}},{"$f":"AVERAGE('(Other Computations)'!BW50:BW57)","v":{"v":910161.8850798465,"d":"$910,162"}},{"$f":"AVERAGE('(Other Computations)'!BX50:BX57)","v":{"v":909797.7491481656,"d":"$909,798"}},{"$f":"AVERAGE('(Other Computations)'!BY50:BY57)","v":{"v":909368.3195424394,"d":"$909,368"}},{"$f":"AVERAGE('(Other Computations)'!BZ50:BZ57)","v":{"v":908981.9607930362,"d":"$908,982"}},{"$f":"SUM(BO54:BZ54)","v":{"v":10933735.493813427,"d":"$10,933,735"}},{"$f":"AVERAGE('(Other Computations)'!CB50:CB57)","v":{"v":908586.3416771273,"d":"$908,586"}},{"$f":"AVERAGE('(Other Computations)'!CC50:CC57)","v":{"v":908185.2093820566,"d":"$908,185"}},{"$f":"AVERAGE('(Other Computations)'!CD50:CD57)","v":{"v":907784.946565616,"d":"$907,785"}},{"$f":"AVERAGE('(Other Computations)'!CE50:CE57)","v":{"v":907347.7109124318,"d":"$907,348"}},{"$f":"AVERAGE('(Other Computations)'!CF50:CF57)","v":{"v":906917.0200700727,"d":"$906,917"}},{"$f":"AVERAGE('(Other Computations)'!CG50:CG57)","v":{"v":906502.0271630562,"d":"$906,502"}},{"$f":"AVERAGE('(Other Computations)'!CH50:CH57)","v":{"v":906095.9219297114,"d":"$906,096"}},{"$f":"AVERAGE('(Other Computations)'!CI50:CI57)","v":{"v":905664.5036708362,"d":"$905,665"}},{"$f":"AVERAGE('(Other Computations)'!CJ50:CJ57)","v":{"v":905246.2397326195,"d":"$905,246"}},{"$f":"AVERAGE('(Other Computations)'!CK50:CK57)","v":{"v":904865.592772292,"d":"$904,866"}},{"$f":"AVERAGE('(Other Computations)'!CL50:CL57)","v":{"v":904455.6807720991,"d":"$904,456"}},{"$f":"AVERAGE('(Other Computations)'!CM50:CM57)","v":{"v":904028.816489049,"d":"$904,029"}},{"$f":"SUM(CB54:CM54)","v":{"v":10875680.011136968,"d":"$10,875,680"}},{"$f":"AVERAGE('(Other Computations)'!CO50:CO57)","v":{"v":903569.952221134,"d":"$903,570"}},{"$f":"AVERAGE('(Other Computations)'!CP50:CP57)","v":{"v":903144.9384856195,"d":"$903,145"}},{"$f":"AVERAGE('(Other Computations)'!CQ50:CQ57)","v":{"v":902710.4395372387,"d":"$902,710"}},{"$f":"AVERAGE('(Other Computations)'!CR50:CR57)","v":{"v":902297.1435061569,"d":"$902,297"}},{"$f":"AVERAGE('(Other Computations)'!CS50:CS57)","v":{"v":901866.6720669145,"d":"$901,867"}},{"$f":"AVERAGE('(Other Computations)'!CT50:CT57)","v":{"v":901451.6351810399,"d":"$901,452"}},{"$f":"AVERAGE('(Other Computations)'!CU50:CU57)","v":{"v":901020.1858406302,"d":"$901,020"}},{"$f":"AVERAGE('(Other Computations)'!CV50:CV57)","v":{"v":900609.9657707126,"d":"$900,610"}},{"$f":"AVERAGE('(Other Computations)'!CW50:CW57)","v":{"v":900184.0254724897,"d":"$900,184"}},{"$f":"AVERAGE('(Other Computations)'!CX50:CX57)","v":{"v":899731.810864733,"d":"$899,732"}},{"$f":"AVERAGE('(Other Computations)'!CY50:CY57)","v":{"v":899319.3418196474,"d":"$899,319"}},{"$f":"AVERAGE('(Other Computations)'!CZ50:CZ57)","v":{"v":898913.3357167162,"d":"$898,913"}},{"$f":"SUM(CO54:CZ54)","v":{"v":10814819.446483035,"d":"$10,814,819"}},{"$f":"AVERAGE('(Other Computations)'!DB50:DB57)","v":{"v":898515.2899409679,"d":"$898,515"}},{"$f":"AVERAGE('(Other Computations)'!DC50:DC57)","v":{"v":898074.469125808,"d":"$898,074"}},{"$f":"AVERAGE('(Other Computations)'!DD50:DD57)","v":{"v":897638.8741290299,"d":"$897,639"}},{"$f":"AVERAGE('(Other Computations)'!DE50:DE57)","v":{"v":897201.5038032299,"d":"$897,202"}},{"$f":"AVERAGE('(Other Computations)'!DF50:DF57)","v":{"v":896788.3383151845,"d":"$896,788"}},{"$f":"AVERAGE('(Other Computations)'!DG50:DG57)","v":{"v":896363.1918047409,"d":"$896,363"}},{"$f":"AVERAGE('(Other Computations)'!DH50:DH57)","v":{"v":895905.8170752751,"d":"$895,906"}},{"$f":"AVERAGE('(Other Computations)'!DI50:DI57)","v":{"v":895485.5560765157,"d":"$895,486"}},{"$f":"AVERAGE('(Other Computations)'!DJ50:DJ57)","v":{"v":895051.3535887834,"d":"$895,051"}},{"$f":"AVERAGE('(Other Computations)'!DK50:DK57)","v":{"v":894636.2982030351,"d":"$894,636"}},{"$f":"AVERAGE('(Other Computations)'!DL50:DL57)","v":{"v":894212.2847197849,"d":"$894,212"}},{"$f":"AVERAGE('(Other Computations)'!DM50:DM57)","v":{"v":893754.736372885,"d":"$893,755"}},{"$f":"SUM(DB54:DM54)","v":{"v":10753627.71315524,"d":"$10,753,628"}},{"$f":"AVERAGE('(Other Computations)'!DO50:DO57)","v":{"v":893337.2500351637,"d":"$893,337"}},{"$f":"AVERAGE('(Other Computations)'!DP50:DP57)","v":{"v":892917.9671138267,"d":"$892,918"}},{"$f":"AVERAGE('(Other Computations)'!DQ50:DQ57)","v":{"v":892470.5472400741,"d":"$892,471"}},{"$f":"AVERAGE('(Other Computations)'!DR50:DR57)","v":{"v":892042.4927659666,"d":"$892,042"}},{"$f":"AVERAGE('(Other Computations)'!DS50:DS57)","v":{"v":891597.4073534055,"d":"$891,597"}},{"$f":"AVERAGE('(Other Computations)'!DT50:DT57)","v":{"v":891170.7593984997,"d":"$891,171"}},{"$f":"AVERAGE('(Other Computations)'!DU50:DU57)","v":{"v":890718.2602174233,"d":"$890,718"}},{"$f":"AVERAGE('(Other Computations)'!DV50:DV57)","v":{"v":890288.2257278343,"d":"$890,288"}},{"$f":"AVERAGE('(Other Computations)'!DW50:DW57)","v":{"v":889805.412633836,"d":"$889,805"}},{"$f":"AVERAGE('(Other Computations)'!DX50:DX57)","v":{"v":889384.0945767006,"d":"$889,384"}},{"$f":"AVERAGE('(Other Computations)'!DY50:DY57)","v":{"v":888936.4900478647,"d":"$888,936"}},{"$f":"AVERAGE('(Other Computations)'!DZ50:DZ57)","v":{"v":888500.9646741515,"d":"$888,501"}},{"$f":"SUM(DO54:DZ54)","v":{"v":10691169.871784747,"d":"$10,691,170"}},{"$f":"AVERAGE('(Other Computations)'!EB50:EB57)","v":{"v":888049.9309332038,"d":"$888,050"}},{"$f":"AVERAGE('(Other Computations)'!EC50:EC57)","v":{"v":887625.6439102527,"d":"$887,626"}},{"$f":"AVERAGE('(Other Computations)'!ED50:ED57)","v":{"v":887197.093057618,"d":"$887,197"}},{"$f":"AVERAGE('(Other Computations)'!EE50:EE57)","v":{"v":886709.5178955955,"d":"$886,710"}},{"$f":"AVERAGE('(Other Computations)'!EF50:EF57)","v":{"v":886267.9210201274,"d":"$886,268"}},{"$f":"AVERAGE('(Other Computations)'!EG50:EG57)","v":{"v":885817.280307053,"d":"$885,817"}},{"$f":"AVERAGE('(Other Computations)'!EH50:EH57)","v":{"v":885364.0696519703,"d":"$885,364"}},{"$f":"AVERAGE('(Other Computations)'!EI50:EI57)","v":{"v":884921.8461054927,"d":"$884,922"}},{"$f":"AVERAGE('(Other Computations)'!EJ50:EJ57)","v":{"v":884474.3019222075,"d":"$884,474"}},{"$f":"AVERAGE('(Other Computations)'!EK50:EK57)","v":{"v":884031.5742624055,"d":"$884,032"}},{"$f":"AVERAGE('(Other Computations)'!EL50:EL57)","v":{"v":883563.263281486,"d":"$883,563"}},{"$f":"AVERAGE('(Other Computations)'!EM50:EM57)","v":{"v":883113.9744797279,"d":"$883,114"}},{"$f":"SUM(EB54:EM54)","v":{"v":10627136.416827139,"d":"$10,627,136"}}]
[{"$f":"Labels!B60","v":"Permanent Income std dev"},{"$f":"STDEV('(Other Computations)'!B50:B57)","v":{"v":1.2445321395640466E-10,"d":"$0"}},{"$f":"STDEV('(Other Computations)'!C50:C57)","v":{"v":41.45550777033323,"d":"$41"}},{"$f":"STDEV('(Other Computations)'!D50:D57)","v":{"v":114.41756610997014,"d":"$114"}},{"$f":"STDEV('(Other Computations)'!E50:E57)","v":{"v":111.0394183464082,"d":"$111"}},{"$f":"STDEV('(Other Computations)'!F50:F57)","v":{"v":104.17965446440736,"d":"$104"}},{"$f":"STDEV('(Other Computations)'!G50:G57)","v":{"v":118.99397227047909,"d":"$119"}},{"$f":"STDEV('(Other Computations)'!H50:H57)","v":{"v":156.85969022598834,"d":"$157"}},{"$f":"STDEV('(Other Computations)'!I50:I57)","v":{"v":163.5331556950461,"d":"$164"}},{"$f":"STDEV('(Other Computations)'!J50:J57)","v":{"v":162.55952511100665,"d":"$163"}},{"$f":"STDEV('(Other Computations)'!K50:K57)","v":{"v":181.3753914356374,"d":"$181"}},{"$f":"STDEV('(Other Computations)'!L50:L57)","v":{"v":163.87651427474478,"d":"$164"}},{"$f":"STDEV('(Other Computations)'!M50:M57)","v":{"v":156.1710530377386,"d":"$156"}},{"$f":"SUM(B55:M55)","v":{"v":1474.4614487418844,"d":"$1,474"}},{"$f":"STDEV('(Other Computations)'!O50:O57)","v":{"v":189.08382302536586,"d":"$189"}},{"$f":"STDEV('(Other Computations)'!P50:P57)","v":{"v":198.62804031349629,"d":"$199"}},{"$f":"STDEV('(Other Computations)'!Q50:Q57)","v":{"v":173.2459630941377,"d":"$173"}},{"$f":"STDEV('(Other Computations)'!R50:R57)","v":{"v":185.19135191667368,"d":"$185"}},{"$f":"STDEV('(Other Computations)'!S50:S57)","v":{"v":217.40898167361132,"d":"$217"}},{"$f":"STDEV('(Other Computations)'!T50:T57)","v":{"v":246.67800775028897,"d":"$247"}},{"$f":"STDEV('(Other Computations)'!U50:U57)","v":{"v":179.65436886003172,"d":"$180"}},{"$f":"STDEV('(Other Computations)'!V50:V57)","v":{"v":170.1219307612429,"d":"$170"}},{"$f":"STDEV('(Other Computations)'!W50:W57)","v":{"v":171.83649488299545,"d":"$172"}},{"$f":"STDEV('(Other Computations)'!X50:X57)","v":{"v":171.57778919162158,"d":"$172"}},{"$f":"STDEV('(Other Computations)'!Y50:Y57)","v":{"v":190.90612947574135,"d":"$191"}},{"$f":"STDEV('(Other Computations)'!Z50:Z57)","v":{"v":190.83983894929995,"d":"$191"}},{"$f":"SUM(O55:Z55)","v":{"v":2285.1727198945073,"d":"$2,285"}},{"$f":"STDEV('(Other Computations)'!AB50:AB57)","v":{"v":182.84499305018764,"d":"$183"}},{"$f":"STDEV('(Other Computations)'!AC50:AC57)","v":{"v":210.46138282777056,"d":"$210"}},{"$f":"STDEV('(Other Computations)'!AD50:AD57)","v":{"v":209.8197580934473,"d":"$210"}},{"$f":"STDEV('(Other Computations)'!AE50:AE57)","v":{"v":187.80674081079178,"d":"$188"}},{"$f":"STDEV('(Other Computations)'!AF50:AF57)","v":{"v":189.90208774288988,"d":"$190"}},{"$f":"STDEV('(Other Computations)'!AG50:AG57)","v":{"v":234.68342368142322,"d":"$235"}},{"$f":"STDEV('(Other Computations)'!AH50:AH57)","v":{"v":233.75608189669737,"d":"$234"}},{"$f":"STDEV('(Other Computations)'!AI50:AI57)","v":{"v":233.80311795779957,"d":"$234"}},{"$f":"STDEV('(Other Computations)'!AJ50:AJ57)","v":{"v":224.99519929210757,"d":"$225"}},{"$f":"STDEV('(Other Computations)'!AK50:AK57)","v":{"v":180.64587519686862,"d":"$181"}},{"$f":"STDEV('(Other Computations)'!AL50:AL57)","v":{"v":158.54748458684955,"d":"$159"}},{"$f":"STDEV('(Other Computations)'!AM50:AM57)","v":{"v":151.40821506125704,"d":"$151"}},{"$f":"SUM(AB55:AM55)","v":{"v":2398.6743601980897,"d":"$2,399"}},{"$f":"STDEV('(Other Computations)'!AO50:AO57)","v":{"v":163.88598347767626,"d":"$164"}},{"$f":"STDEV('(Other Computations)'!AP50:AP57)","v":{"v":137.767036048757,"d":"$138"}},{"$f":"STDEV('(Other Computations)'!AQ50:AQ57)","v":{"v":143.88522944063317,"d":"$144"}},{"$f":"STDEV('(Other Computations)'!AR50:AR57)","v":{"v":170.1848051793232,"d":"$170"}},{"$f":"STDEV('(Other Computations)'!AS50:AS57)","v":{"v":143.3548218677737,"d":"$143"}},{"$f":"STDEV('(Other Computations)'!AT50:AT57)","v":{"v":162.91342352390615,"d":"$163"}},{"$f":"STDEV('(Other Computations)'!AU50:AU57)","v":{"v":174.67037357527877,"d":"$175"}},{"$f":"STDEV('(Other Computations)'!AV50:AV57)","v":{"v":180.32034472601418,"d":"$180"}},{"$f":"STDEV('(Other Computations)'!AW50:AW57)","v":{"v":188.52994447745692,"d":"$189"}},{"$f":"STDEV('(Other Computations)'!AX50:AX57)","v":{"v":179.09615970873529,"d":"$179"}},{"$f":"STDEV('(Other Computations)'!AY50:AY57)","v":{"v":227.8245269581217,"d":"$228"}},{"$f":"STDEV('(Other Computations)'!AZ50:AZ57)","v":{"v":223.79535839566125,"d":"$224"}},{"$f":"SUM(AO55:AZ55)","v":{"v":2096.228007379337,"d":"$2,096"}},{"$f":"STDEV('(Other Computations)'!BB50:BB57)","v":{"v":206.93159759740658,"d":"$207"}},{"$f":"STDEV('(Other Computations)'!BC50:BC57)","v":{"v":242.0835987576204,"d":"$242"}},{"$f":"STDEV('(Other Computations)'!BD50:BD57)","v":{"v":265.9734511589238,"d":"$266"}},{"$f":"STDEV('(Other Computations)'!BE50:BE57)","v":{"v":258.8656226503505,"d":"$259"}},{"$f":"STDEV('(Other Computations)'!BF50:BF57)","v":{"v":266.03088555500915,"d":"$266"}},{"$f":"STDEV('(Other Computations)'!BG50:BG57)","v":{"v":262.52696162331915,"d":"$263"}},{"$f":"STDEV('(Other Computations)'!BH50:BH57)","v":{"v":276.0844133449012,"d":"$276"}},{"$f":"STDEV('(Other Computations)'!BI50:BI57)","v":{"v":289.15707631021553,"d":"$289"}},{"$f":"STDEV('(Other Computations)'!BJ50:BJ57)","v":{"v":309.6010788905379,"d":"$310"}},{"$f":"STDEV('(Other Computations)'!BK50:BK57)","v":{"v":291.5356694258108,"d":"$292"}},{"$f":"STDEV('(Other Computations)'!BL50:BL57)","v":{"v":287.5013656413788,"d":"$288"}},{"$f":"STDEV('(Other Computations)'!BM50:BM57)","v":{"v":330.3608300594905,"d":"$330"}},{"$f":"SUM(BB55:BM55)","v":{"v":3286.6525510149645,"d":"$3,287"}},{"$f":"STDEV('(Other Computations)'!BO50:BO57)","v":{"v":280.5756593482222,"d":"$281"}},{"$f":"STDEV('(Other Computations)'!BP50:BP57)","v":{"v":314.20729665867253,"d":"$314"}},{"$f":"STDEV('(Other Computations)'!BQ50:BQ57)","v":{"v":335.2599523857692,"d":"$335"}},{"$f":"STDEV('(Other Computations)'!BR50:BR57)","v":{"v":348.81054462996883,"d":"$349"}},{"$f":"STDEV('(Other Computations)'!BS50:BS57)","v":{"v":351.7195815708881,"d":"$352"}},{"$f":"STDEV('(Other Computations)'!BT50:BT57)","v":{"v":357.690072205812,"d":"$358"}},{"$f":"STDEV('(Other Computations)'!BU50:BU57)","v":{"v":392.6416432506042,"d":"$393"}},{"$f":"STDEV('(Other Computations)'!BV50:BV57)","v":{"v":381.52881130021547,"d":"$382"}},{"$f":"STDEV('(Other Computations)'!BW50:BW57)","v":{"v":377.23628797589333,"d":"$377"}},{"$f":"STDEV('(Other Computations)'!BX50:BX57)","v":{"v":396.8202280736347,"d":"$397"}},{"$f":"STDEV('(Other Computations)'!BY50:BY57)","v":{"v":400.0582292639988,"d":"$400"}},{"$f":"STDEV('(Other Computations)'!BZ50:BZ57)","v":{"v":384.3955592456223,"d":"$384"}},{"$f":"SUM(BO55:BZ55)","v":{"v":4320.943865909301,"d":"$4,321"}},{"$f":"STDEV('(Other Computations)'!CB50:CB57)","v":{"v":375.1217671122752,"d":"$375"}},{"$f":"STDEV('(Other Computations)'!CC50:CC57)","v":{"v":334.98444523897285,"d":"$335"}},{"$f":"STDEV('(Other Computations)'!CD50:CD57)","v":{"v":330.0083876073715,"d":"$330"}},{"$f":"STDEV('(Other Computations)'!CE50:CE57)","v":{"v":332.2114017978219,"d":"$332"}},{"$f":"STDEV('(Other Computations)'!CF50:CF57)","v":{"v":345.9988622790392,"d":"$346"}},{"$f":"STDEV('(Other Computations)'!CG50:CG57)","v":{"v":359.06873047550306,"d":"$359"}},{"$f":"STDEV('(Other Computations)'!CH50:CH57)","v":{"v":340.26696522991307,"d":"$340"}},{"$f":"STDEV('(Other Computations)'!CI50:CI57)","v":{"v":321.4551799215566,"d":"$321"}},{"$f":"STDEV('(Other Computations)'!CJ50:CJ57)","v":{"v":300.8440901435296,"d":"$301"}},{"$f":"STDEV('(Other Computations)'!CK50:CK57)","v":{"v":285.48614623353063,"d":"$285"}},{"$f":"STDEV('(Other Computations)'!CL50:CL57)","v":{"v":300.8813148280264,"d":"$301"}},{"$f":"STDEV('(Other Computations)'!CM50:CM57)","v":{"v":311.8292738856358,"d":"$312"}},{"$f":"SUM(CB55:CM55)","v":{"v":3938.156564753176,"d":"$3,938"}},{"$f":"STDEV('(Other Computations)'!CO50:CO57)","v":{"v":295.8553460877437,"d":"$296"}},{"$f":"STDEV('(Other Computations)'!CP50:CP57)","v":{"v":295.04992002990275,"d":"$295"}},{"$f":"STDEV('(Other Computations)'!CQ50:CQ57)","v":{"v":292.7042057073333,"d":"$293"}},{"$f":"STDEV('(Other Computations)'!CR50:CR57)","v":{"v":309.09757332979893,"d":"$309"}},{"$f":"STDEV('(Other Computations)'!CS50:CS57)","v":{"v":296.28459290541315,"d":"$296"}},{"$f":"STDEV('(Other Computations)'!CT50:CT57)","v":{"v":291.0794523795495,"d":"$291"}},{"$f":"STDEV('(Other Computations)'!CU50:CU57)","v":{"v":320.3877249719015,"d":"$320"}},{"$f":"STDEV('(Other Computations)'!CV50:CV57)","v":{"v":320.1699095003318,"d":"$320"}},{"$f":"STDEV('(Other Computations)'!CW50:CW57)","v":{"v":338.7489917227194,"d":"$339"}},{"$f":"STDEV('(Other Computations)'!CX50:CX57)","v":{"v":300.76548560730714,"d":"$301"}},{"$f":"STDEV('(Other Computations)'!CY50:CY57)","v":{"v":304.0754730132756,"d":"$304"}},{"$f":"STDEV('(Other Computations)'!CZ50:CZ57)","v":{"v":308.91538422258486,"d":"$309"}},{"$f":"SUM(CO55:CZ55)","v":{"v":3673.134059477862,"d":"$3,673"}},{"$f":"STDEV('(Other Computations)'!DB50:DB57)","v":{"v":328.85304410903325,"d":"$329"}},{"$f":"STDEV('(Other Computations)'!DC50:DC57)","v":{"v":334.23154355706214,"d":"$334"}},{"$f":"STDEV('(Other Computations)'!DD50:DD57)","v":{"v":332.1296037428973,"d":"$332"}},{"$f":"STDEV('(Other Computations)'!DE50:DE57)","v":{"v":345.31733644796276,"d":"$345"}},{"$f":"STDEV('(Other Computations)'!DF50:DF57)","v":{"v":373.15037491222785,"d":"$373"}},{"$f":"STDEV('(Other Computations)'!DG50:DG57)","v":{"v":336.95469309105283,"d":"$337"}},{"$f":"STDEV('(Other Computations)'!DH50:DH57)","v":{"v":341.63125182807585,"d":"$342"}},{"$f":"STDEV('(Other Computations)'!DI50:DI57)","v":{"v":371.310012350417,"d":"$371"}},{"$f":"STDEV('(Other Computations)'!DJ50:DJ57)","v":{"v":361.2105295163429,"d":"$361"}},{"$f":"STDEV('(Other Computations)'!DK50:DK57)","v":{"v":413.5425661941103,"d":"$414"}},{"$f":"STDEV('(Other Computations)'!DL50:DL57)","v":{"v":432.5067522827243,"d":"$433"}},{"$f":"STDEV('(Other Computations)'!DM50:DM57)","v":{"v":449.0909289440781,"d":"$449"}},{"$f":"SUM(DB55:DM55)","v":{"v":4419.928636975985,"d":"$4,420"}},{"$f":"STDEV('(Other Computations)'!DO50:DO57)","v":{"v":467.4077465288297,"d":"$467"}},{"$f":"STDEV('(Other Computations)'!DP50:DP57)","v":{"v":460.68527627670096,"d":"$461"}},{"$f":"STDEV('(Other Computations)'!DQ50:DQ57)","v":{"v":455.05058031921465,"d":"$455"}},{"$f":"STDEV('(Other Computations)'!DR50:DR57)","v":{"v":484.5048675933888,"d":"$485"}},{"$f":"STDEV('(Other Computations)'!DS50:DS57)","v":{"v":497.22886856026673,"d":"$497"}},{"$f":"STDEV('(Other Computations)'!DT50:DT57)","v":{"v":520.9085437169986,"d":"$521"}},{"$f":"STDEV('(Other Computations)'!DU50:DU57)","v":{"v":537.6684838982393,"d":"$538"}},{"$f":"STDEV('(Other Computations)'!DV50:DV57)","v":{"v":555.7675418624103,"d":"$556"}},{"$f":"STDEV('(Other Computations)'!DW50:DW57)","v":{"v":554.5471511882587,"d":"$555"}},{"$f":"STDEV('(Other Computations)'!DX50:DX57)","v":{"v":542.8973307027841,"d":"$543"}},{"$f":"STDEV('(Other Computations)'!DY50:DY57)","v":{"v":553.6993382187029,"d":"$554"}},{"$f":"STDEV('(Other Computations)'!DZ50:DZ57)","v":{"v":603.7564036062329,"d":"$604"}},{"$f":"SUM(DO55:DZ55)","v":{"v":6234.122132472027,"d":"$6,234"}},{"$f":"STDEV('(Other Computations)'!EB50:EB57)","v":{"v":604.3387749212816,"d":"$604"}},{"$f":"STDEV('(Other Computations)'!EC50:EC57)","v":{"v":618.6028978044234,"d":"$619"}},{"$f":"STDEV('(Other Computations)'!ED50:ED57)","v":{"v":586.2626115202524,"d":"$586"}},{"$f":"STDEV('(Other Computations)'!EE50:EE57)","v":{"v":592.2063614809166,"d":"$592"}},{"$f":"STDEV('(Other Computations)'!EF50:EF57)","v":{"v":586.2820016250243,"d":"$586"}},{"$f":"STDEV('(Other Computations)'!EG50:EG57)","v":{"v":600.9428638196083,"d":"$601"}},{"$f":"STDEV('(Other Computations)'!EH50:EH57)","v":{"v":606.6284896362442,"d":"$607"}},{"$f":"STDEV('(Other Computations)'!EI50:EI57)","v":{"v":585.3262438373808,"d":"$585"}},{"$f":"STDEV('(Other Computations)'!EJ50:EJ57)","v":{"v":603.3683656313975,"d":"$603"}},{"$f":"STDEV('(Other Computations)'!EK50:EK57)","v":{"v":588.9057751388877,"d":"$589"}},{"$f":"STDEV('(Other Computations)'!EL50:EL57)","v":{"v":608.5298957985901,"d":"$609"}},{"$f":"STDEV('(Other Computations)'!EM50:EM57)","v":{"v":581.7273543742899,"d":"$582"}},{"$f":"SUM(EB55:EM55)","v":{"v":7163.121635588297,"d":"$7,163"}}]
[]
[]
[{"$f":"\"Output\"","v":"Output"}]
[{"$f":"\" \"","v":" "}]
[null,{"$f":"ZZZ__FnCalls!F7","v":"Jan 2010"},{"$f":"ZZZ__FnCalls!F8","v":"Feb 2010"},{"$f":"ZZZ__FnCalls!F9","v":"Mar 2010"},{"$f":"ZZZ__FnCalls!F10","v":"Apr 2010"},{"$f":"ZZZ__FnCalls!F11","v":"May 2010"},{"$f":"ZZZ__FnCalls!F12","v":"Jun 2010"},{"$f":"ZZZ__FnCalls!F13","v":"Jul 2010"},{"$f":"ZZZ__FnCalls!F14","v":"Aug 2010"},{"$f":"ZZZ__FnCalls!F15","v":"Sep 2010"},{"$f":"ZZZ__FnCalls!F16","v":"Oct 2010"},{"$f":"ZZZ__FnCalls!F17","v":"Nov 2010"},{"$f":"ZZZ__FnCalls!F18","v":"Dec 2010"},{"$f":"ZZZ__FnCalls!H7","v":"2010"},{"$f":"ZZZ__FnCalls!F19","v":"Jan 2011"},{"$f":"ZZZ__FnCalls!F20","v":"Feb 2011"},{"$f":"ZZZ__FnCalls!F21","v":"Mar 2011"},{"$f":"ZZZ__FnCalls!F22","v":"Apr 2011"},{"$f":"ZZZ__FnCalls!F23","v":"May 2011"},{"$f":"ZZZ__FnCalls!F24","v":"Jun 2011"},{"$f":"ZZZ__FnCalls!F25","v":"Jul 2011"},{"$f":"ZZZ__FnCalls!F26","v":"Aug 2011"},{"$f":"ZZZ__FnCalls!F27","v":"Sep 2011"},{"$f":"ZZZ__FnCalls!F28","v":"Oct 2011"},{"$f":"ZZZ__FnCalls!F29","v":"Nov 2011"},{"$f":"ZZZ__FnCalls!F30","v":"Dec 2011"},{"$f":"ZZZ__FnCalls!H19","v":"2011"},{"$f":"ZZZ__FnCalls!F31","v":"Jan 2012"},{"$f":"ZZZ__FnCalls!F32","v":"Feb 2012"},{"$f":"ZZZ__FnCalls!F33","v":"Mar 2012"},{"$f":"ZZZ__FnCalls!F34","v":"Apr 2012"},{"$f":"ZZZ__FnCalls!F35","v":"May 2012"},{"$f":"ZZZ__FnCalls!F36","v":"Jun 2012"},{"$f":"ZZZ__FnCalls!F37","v":"Jul 2012"},{"$f":"ZZZ__FnCalls!F38","v":"Aug 2012"},{"$f":"ZZZ__FnCalls!F39","v":"Sep 2012"},{"$f":"ZZZ__FnCalls!F40","v":"Oct 2012"},{"$f":"ZZZ__FnCalls!F41","v":"Nov 2012"},{"$f":"ZZZ__FnCalls!F42","v":"Dec 2012"},{"$f":"ZZZ__FnCalls!H31","v":"2012"},{"$f":"ZZZ__FnCalls!F43","v":"Jan 2013"},{"$f":"ZZZ__FnCalls!F44","v":"Feb 2013"},{"$f":"ZZZ__FnCalls!F45","v":"Mar 2013"},{"$f":"ZZZ__FnCalls!F46","v":"Apr 2013"},{"$f":"ZZZ__FnCalls!F47","v":"May 2013"},{"$f":"ZZZ__FnCalls!F48","v":"Jun 2013"},{"$f":"ZZZ__FnCalls!F49","v":"Jul 2013"},{"$f":"ZZZ__FnCalls!F50","v":"Aug 2013"},{"$f":"ZZZ__FnCalls!F51","v":"Sep 2013"},{"$f":"ZZZ__FnCalls!F52","v":"Oct 2013"},{"$f":"ZZZ__FnCalls!F53","v":"Nov 2013"},{"$f":"ZZZ__FnCalls!F54","v":"Dec 2013"},{"$f":"ZZZ__FnCalls!H43","v":"2013"},{"$f":"ZZZ__FnCalls!F55","v":"Jan 2014"},{"$f":"ZZZ__FnCalls!F56","v":"Feb 2014"},{"$f":"ZZZ__FnCalls!F57","v":"Mar 2014"},{"$f":"ZZZ__FnCalls!F58","v":"Apr 2014"},{"$f":"ZZZ__FnCalls!F59","v":"May 2014"},{"$f":"ZZZ__FnCalls!F60","v":"Jun 2014"},{"$f":"ZZZ__FnCalls!F61","v":"Jul 2014"},{"$f":"ZZZ__FnCalls!F62","v":"Aug 2014"},{"$f":"ZZZ__FnCalls!F63","v":"Sep 2014"},{"$f":"ZZZ__FnCalls!F64","v":"Oct 2014"},{"$f":"ZZZ__FnCalls!F65","v":"Nov 2014"},{"$f":"ZZZ__FnCalls!F66","v":"Dec 2014"},{"$f":"ZZZ__FnCalls!H55","v":"2014"},{"$f":"ZZZ__FnCalls!F67","v":"Jan 2015"},{"$f":"ZZZ__FnCalls!F68","v":"Feb 2015"},{"$f":"ZZZ__FnCalls!F69","v":"Mar 2015"},{"$f":"ZZZ__FnCalls!F70","v":"Apr 2015"},{"$f":"ZZZ__FnCalls!F71","v":"May 2015"},{"$f":"ZZZ__FnCalls!F72","v":"Jun 2015"},{"$f":"ZZZ__FnCalls!F73","v":"Jul 2015"},{"$f":"ZZZ__FnCalls!F74","v":"Aug 2015"},{"$f":"ZZZ__FnCalls!F75","v":"Sep 2015"},{"$f":"ZZZ__FnCalls!F76","v":"Oct 2015"},{"$f":"ZZZ__FnCalls!F77","v":"Nov 2015"},{"$f":"ZZZ__FnCalls!F78","v":"Dec 2015"},{"$f":"ZZZ__FnCalls!H67","v":"2015"},{"$f":"ZZZ__FnCalls!F79","v":"Jan 2016"},{"$f":"ZZZ__FnCalls!F80","v":"Feb 2016"},{"$f":"ZZZ__FnCalls!F81","v":"Mar 2016"},{"$f":"ZZZ__FnCalls!F82","v":"Apr 2016"},{"$f":"ZZZ__FnCalls!F83","v":"May 2016"},{"$f":"ZZZ__FnCalls!F84","v":"Jun 2016"},{"$f":"ZZZ__FnCalls!F85","v":"Jul 2016"},{"$f":"ZZZ__FnCalls!F86","v":"Aug 2016"},{"$f":"ZZZ__FnCalls!F87","v":"Sep 2016"},{"$f":"ZZZ__FnCalls!F88","v":"Oct 2016"},{"$f":"ZZZ__FnCalls!F89","v":"Nov 2016"},{"$f":"ZZZ__FnCalls!F90","v":"Dec 2016"},{"$f":"ZZZ__FnCalls!H79","v":"2016"},{"$f":"ZZZ__FnCalls!F91","v":"Jan 2017"},{"$f":"ZZZ__FnCalls!F92","v":"Feb 2017"},{"$f":"ZZZ__FnCalls!F93","v":"Mar 2017"},{"$f":"ZZZ__FnCalls!F94","v":"Apr 2017"},{"$f":"ZZZ__FnCalls!F95","v":"May 2017"},{"$f":"ZZZ__FnCalls!F96","v":"Jun 2017"},{"$f":"ZZZ__FnCalls!F97","v":"Jul 2017"},{"$f":"ZZZ__FnCalls!F98","v":"Aug 2017"},{"$f":"ZZZ__FnCalls!F99","v":"Sep 2017"},{"$f":"ZZZ__FnCalls!F100","v":"Oct 2017"},{"$f":"ZZZ__FnCalls!F101","v":"Nov 2017"},{"$f":"ZZZ__FnCalls!F102","v":"Dec 2017"},{"$f":"ZZZ__FnCalls!H91","v":"2017"},{"$f":"ZZZ__FnCalls!F103","v":"Jan 2018"},{"$f":"ZZZ__FnCalls!F104","v":"Feb 2018"},{"$f":"ZZZ__FnCalls!F105","v":"Mar 2018"},{"$f":"ZZZ__FnCalls!F106","v":"Apr 2018"},{"$f":"ZZZ__FnCalls!F107","v":"May 2018"},{"$f":"ZZZ__FnCalls!F108","v":"Jun 2018"},{"$f":"ZZZ__FnCalls!F109","v":"Jul 2018"},{"$f":"ZZZ__FnCalls!F110","v":"Aug 2018"},{"$f":"ZZZ__FnCalls!F111","v":"Sep 2018"},{"$f":"ZZZ__FnCalls!F112","v":"Oct 2018"},{"$f":"ZZZ__FnCalls!F113","v":"Nov 2018"},{"$f":"ZZZ__FnCalls!F114","v":"Dec 2018"},{"$f":"ZZZ__FnCalls!H103","v":"2018"},{"$f":"ZZZ__FnCalls!F115","v":"Jan 2019"},{"$f":"ZZZ__FnCalls!F116","v":"Feb 2019"},{"$f":"ZZZ__FnCalls!F117","v":"Mar 2019"},{"$f":"ZZZ__FnCalls!F118","v":"Apr 2019"},{"$f":"ZZZ__FnCalls!F119","v":"May 2019"},{"$f":"ZZZ__FnCalls!F120","v":"Jun 2019"},{"$f":"ZZZ__FnCalls!F121","v":"Jul 2019"},{"$f":"ZZZ__FnCalls!F122","v":"Aug 2019"},{"$f":"ZZZ__FnCalls!F123","v":"Sep 2019"},{"$f":"ZZZ__FnCalls!F124","v":"Oct 2019"},{"$f":"ZZZ__FnCalls!F125","v":"Nov 2019"},{"$f":"ZZZ__FnCalls!F126","v":"Dec 2019"},{"$f":"ZZZ__FnCalls!H115","v":"2019"},{"$f":"ZZZ__FnCalls!F127","v":"Jan 2020"},{"$f":"ZZZ__FnCalls!F128","v":"Feb 2020"},{"$f":"ZZZ__FnCalls!F129","v":"Mar 2020"},{"$f":"ZZZ__FnCalls!F130","v":"Apr 2020"},{"$f":"ZZZ__FnCalls!F131","v":"May 2020"},{"$f":"ZZZ__FnCalls!F132","v":"Jun 2020"},{"$f":"ZZZ__FnCalls!F133","v":"Jul 2020"},{"$f":"ZZZ__FnCalls!F134","v":"Aug 2020"},{"$f":"ZZZ__FnCalls!F135","v":"Sep 2020"},{"$f":"ZZZ__FnCalls!F136","v":"Oct 2020"},{"$f":"ZZZ__FnCalls!F137","v":"Nov 2020"},{"$f":"ZZZ__FnCalls!F138","v":"Dec 2020"},{"$f":"ZZZ__FnCalls!H127","v":"2020"}]
[{"$f":"Labels!B67","v":"Output"},{"$f":"AVERAGE('Trial 1'!B44,'Trial 2'!B44,'Trial 3'!B44,'Trial 4'!B44,'Trial 5'!B44,'Trial 6'!B44,'Trial 7'!B44,'Trial 8'!B44)","v":{"v":1181101.5492463335,"d":"$1,181,102"}},{"$f":"AVERAGE('Trial 1'!C44,'Trial 2'!C44,'Trial 3'!C44,'Trial 4'!C44,'Trial 5'!C44,'Trial 6'!C44,'Trial 7'!C44,'Trial 8'!C44)","v":{"v":1168221.8629394423,"d":"$1,168,222"}},{"$f":"AVERAGE('Trial 1'!D44,'Trial 2'!D44,'Trial 3'!D44,'Trial 4'!D44,'Trial 5'!D44,'Trial 6'!D44,'Trial 7'!D44,'Trial 8'!D44)","v":{"v":1166862.234733271,"d":"$1,166,862"}},{"$f":"AVERAGE('Trial 1'!E44,'Trial 2'!E44,'Trial 3'!E44,'Trial 4'!E44,'Trial 5'!E44,'Trial 6'!E44,'Trial 7'!E44,'Trial 8'!E44)","v":{"v":1148673.4360289073,"d":"$1,148,673"}},{"$f":"AVERAGE('Trial 1'!F44,'Trial 2'!F44,'Trial 3'!F44,'Trial 4'!F44,'Trial 5'!F44,'Trial 6'!F44,'Trial 7'!F44,'Trial 8'!F44)","v":{"v":1149500.7197597395,"d":"$1,149,501"}},{"$f":"AVERAGE('Trial 1'!G44,'Trial 2'!G44,'Trial 3'!G44,'Trial 4'!G44,'Trial 5'!G44,'Trial 6'!G44,'Trial 7'!G44,'Trial 8'!G44)","v":{"v":1155506.1067842743,"d":"$1,155,506"}},{"$f":"AVERAGE('Trial 1'!H44,'Trial 2'!H44,'Trial 3'!H44,'Trial 4'!H44,'Trial 5'!H44,'Trial 6'!H44,'Trial 7'!H44,'Trial 8'!H44)","v":{"v":1180746.324801254,"d":"$1,180,746"}},{"$f":"AVERAGE('Trial 1'!I44,'Trial 2'!I44,'Trial 3'!I44,'Trial 4'!I44,'Trial 5'!I44,'Trial 6'!I44,'Trial 7'!I44,'Trial 8'!I44)","v":{"v":1155947.2873726145,"d":"$1,155,947"}},{"$f":"AVERAGE('Trial 1'!J44,'Trial 2'!J44,'Trial 3'!J44,'Trial 4'!J44,'Trial 5'!J44,'Trial 6'!J44,'Trial 7'!J44,'Trial 8'!J44)","v":{"v":1171314.2359316428,"d":"$1,171,314"}},{"$f":"AVERAGE('Trial 1'!K44,'Trial 2'!K44,'Trial 3'!K44,'Trial 4'!K44,'Trial 5'!K44,'Trial 6'!K44,'Trial 7'!K44,'Trial 8'!K44)","v":{"v":1149395.241675267,"d":"$1,149,395"}},{"$f":"AVERAGE('Trial 1'!L44,'Trial 2'!L44,'Trial 3'!L44,'Trial 4'!L44,'Trial 5'!L44,'Trial 6'!L44,'Trial 7'!L44,'Trial 8'!L44)","v":{"v":1163563.2644902165,"d":"$1,163,563"}},{"$f":"AVERAGE('Trial 1'!M44,'Trial 2'!M44,'Trial 3'!M44,'Trial 4'!M44,'Trial 5'!M44,'Trial 6'!M44,'Trial 7'!M44,'Trial 8'!M44)","v":{"v":1161779.6518378006,"d":"$1,161,780"}},{"$f":"SUM(B61:M61)","v":{"v":13952611.915600765,"d":"$13,952,612"}},{"$f":"AVERAGE('Trial 1'!O44,'Trial 2'!O44,'Trial 3'!O44,'Trial 4'!O44,'Trial 5'!O44,'Trial 6'!O44,'Trial 7'!O44,'Trial 8'!O44)","v":{"v":1143638.3061109511,"d":"$1,143,638"}},{"$f":"AVERAGE('Trial 1'!P44,'Trial 2'!P44,'Trial 3'!P44,'Trial 4'!P44,'Trial 5'!P44,'Trial 6'!P44,'Trial 7'!P44,'Trial 8'!P44)","v":{"v":1155977.7938651172,"d":"$1,155,978"}},{"$f":"AVERAGE('Trial 1'!Q44,'Trial 2'!Q44,'Trial 3'!Q44,'Trial 4'!Q44,'Trial 5'!Q44,'Trial 6'!Q44,'Trial 7'!Q44,'Trial 8'!Q44)","v":{"v":1167317.9054775846,"d":"$1,167,318"}},{"$f":"AVERAGE('Trial 1'!R44,'Trial 2'!R44,'Trial 3'!R44,'Trial 4'!R44,'Trial 5'!R44,'Trial 6'!R44,'Trial 7'!R44,'Trial 8'!R44)","v":{"v":1152065.175624645,"d":"$1,152,065"}},{"$f":"AVERAGE('Trial 1'!S44,'Trial 2'!S44,'Trial 3'!S44,'Trial 4'!S44,'Trial 5'!S44,'Trial 6'!S44,'Trial 7'!S44,'Trial 8'!S44)","v":{"v":1153999.7573614372,"d":"$1,154,000"}},{"$f":"AVERAGE('Trial 1'!T44,'Trial 2'!T44,'Trial 3'!T44,'Trial 4'!T44,'Trial 5'!T44,'Trial 6'!T44,'Trial 7'!T44,'Trial 8'!T44)","v":{"v":1148084.1003370949,"d":"$1,148,084"}},{"$f":"AVERAGE('Trial 1'!U44,'Trial 2'!U44,'Trial 3'!U44,'Trial 4'!U44,'Trial 5'!U44,'Trial 6'!U44,'Trial 7'!U44,'Trial 8'!U44)","v":{"v":1137718.2934599807,"d":"$1,137,718"}},{"$f":"AVERAGE('Trial 1'!V44,'Trial 2'!V44,'Trial 3'!V44,'Trial 4'!V44,'Trial 5'!V44,'Trial 6'!V44,'Trial 7'!V44,'Trial 8'!V44)","v":{"v":1150712.699564308,"d":"$1,150,713"}},{"$f":"AVERAGE('Trial 1'!W44,'Trial 2'!W44,'Trial 3'!W44,'Trial 4'!W44,'Trial 5'!W44,'Trial 6'!W44,'Trial 7'!W44,'Trial 8'!W44)","v":{"v":1136980.242030279,"d":"$1,136,980"}},{"$f":"AVERAGE('Trial 1'!X44,'Trial 2'!X44,'Trial 3'!X44,'Trial 4'!X44,'Trial 5'!X44,'Trial 6'!X44,'Trial 7'!X44,'Trial 8'!X44)","v":{"v":1143786.0780006119,"d":"$1,143,786"}},{"$f":"AVERAGE('Trial 1'!Y44,'Trial 2'!Y44,'Trial 3'!Y44,'Trial 4'!Y44,'Trial 5'!Y44,'Trial 6'!Y44,'Trial 7'!Y44,'Trial 8'!Y44)","v":{"v":1128629.696690034,"d":"$1,128,630"}},{"$f":"AVERAGE('Trial 1'!Z44,'Trial 2'!Z44,'Trial 3'!Z44,'Trial 4'!Z44,'Trial 5'!Z44,'Trial 6'!Z44,'Trial 7'!Z44,'Trial 8'!Z44)","v":{"v":1144472.9933054103,"d":"$1,144,473"}},{"$f":"SUM(O61:Z61)","v":{"v":13763383.041827455,"d":"$13,763,383"}},{"$f":"AVERAGE('Trial 1'!AB44,'Trial 2'!AB44,'Trial 3'!AB44,'Trial 4'!AB44,'Trial 5'!AB44,'Trial 6'!AB44,'Trial 7'!AB44,'Trial 8'!AB44)","v":{"v":1124647.7251003743,"d":"$1,124,648"}},{"$f":"AVERAGE('Trial 1'!AC44,'Trial 2'!AC44,'Trial 3'!AC44,'Trial 4'!AC44,'Trial 5'!AC44,'Trial 6'!AC44,'Trial 7'!AC44,'Trial 8'!AC44)","v":{"v":1130043.7059002328,"d":"$1,130,044"}},{"$f":"AVERAGE('Trial 1'!AD44,'Trial 2'!AD44,'Trial 3'!AD44,'Trial 4'!AD44,'Trial 5'!AD44,'Trial 6'!AD44,'Trial 7'!AD44,'Trial 8'!AD44)","v":{"v":1148722.7783425811,"d":"$1,148,723"}},{"$f":"AVERAGE('Trial 1'!AE44,'Trial 2'!AE44,'Trial 3'!AE44,'Trial 4'!AE44,'Trial 5'!AE44,'Trial 6'!AE44,'Trial 7'!AE44,'Trial 8'!AE44)","v":{"v":1113427.2128189327,"d":"$1,113,427"}},{"$f":"AVERAGE('Trial 1'!AF44,'Trial 2'!AF44,'Trial 3'!AF44,'Trial 4'!AF44,'Trial 5'!AF44,'Trial 6'!AF44,'Trial 7'!AF44,'Trial 8'!AF44)","v":{"v":1130909.404606827,"d":"$1,130,909"}},{"$f":"AVERAGE('Trial 1'!AG44,'Trial 2'!AG44,'Trial 3'!AG44,'Trial 4'!AG44,'Trial 5'!AG44,'Trial 6'!AG44,'Trial 7'!AG44,'Trial 8'!AG44)","v":{"v":1130887.772906107,"d":"$1,130,888"}},{"$f":"AVERAGE('Trial 1'!AH44,'Trial 2'!AH44,'Trial 3'!AH44,'Trial 4'!AH44,'Trial 5'!AH44,'Trial 6'!AH44,'Trial 7'!AH44,'Trial 8'!AH44)","v":{"v":1134289.6120417141,"d":"$1,134,290"}},{"$f":"AVERAGE('Trial 1'!AI44,'Trial 2'!AI44,'Trial 3'!AI44,'Trial 4'!AI44,'Trial 5'!AI44,'Trial 6'!AI44,'Trial 7'!AI44,'Trial 8'!AI44)","v":{"v":1105330.2900801215,"d":"$1,105,330"}},{"$f":"AVERAGE('Trial 1'!AJ44,'Trial 2'!AJ44,'Trial 3'!AJ44,'Trial 4'!AJ44,'Trial 5'!AJ44,'Trial 6'!AJ44,'Trial 7'!AJ44,'Trial 8'!AJ44)","v":{"v":1126378.0055152958,"d":"$1,126,378"}},{"$f":"AVERAGE('Trial 1'!AK44,'Trial 2'!AK44,'Trial 3'!AK44,'Trial 4'!AK44,'Trial 5'!AK44,'Trial 6'!AK44,'Trial 7'!AK44,'Trial 8'!AK44)","v":{"v":1128121.013671574,"d":"$1,128,121"}},{"$f":"AVERAGE('Trial 1'!AL44,'Trial 2'!AL44,'Trial 3'!AL44,'Trial 4'!AL44,'Trial 5'!AL44,'Trial 6'!AL44,'Trial 7'!AL44,'Trial 8'!AL44)","v":{"v":1114319.693477627,"d":"$1,114,320"}},{"$f":"AVERAGE('Trial 1'!AM44,'Trial 2'!AM44,'Trial 3'!AM44,'Trial 4'!AM44,'Trial 5'!AM44,'Trial 6'!AM44,'Trial 7'!AM44,'Trial 8'!AM44)","v":{"v":1127883.6004082535,"d":"$1,127,884"}},{"$f":"SUM(AB61:AM61)","v":{"v":13514960.81486964,"d":"$13,514,961"}},{"$f":"AVERAGE('Trial 1'!AO44,'Trial 2'!AO44,'Trial 3'!AO44,'Trial 4'!AO44,'Trial 5'!AO44,'Trial 6'!AO44,'Trial 7'!AO44,'Trial 8'!AO44)","v":{"v":1097784.7536180664,"d":"$1,097,785"}},{"$f":"AVERAGE('Trial 1'!AP44,'Trial 2'!AP44,'Trial 3'!AP44,'Trial 4'!AP44,'Trial 5'!AP44,'Trial 6'!AP44,'Trial 7'!AP44,'Trial 8'!AP44)","v":{"v":1103891.1860703188,"d":"$1,103,891"}},{"$f":"AVERAGE('Trial 1'!AQ44,'Trial 2'!AQ44,'Trial 3'!AQ44,'Trial 4'!AQ44,'Trial 5'!AQ44,'Trial 6'!AQ44,'Trial 7'!AQ44,'Trial 8'!AQ44)","v":{"v":1125425.4655905806,"d":"$1,125,425"}},{"$f":"AVERAGE('Trial 1'!AR44,'Trial 2'!AR44,'Trial 3'!AR44,'Trial 4'!AR44,'Trial 5'!AR44,'Trial 6'!AR44,'Trial 7'!AR44,'Trial 8'!AR44)","v":{"v":1112919.2568561123,"d":"$1,112,919"}},{"$f":"AVERAGE('Trial 1'!AS44,'Trial 2'!AS44,'Trial 3'!AS44,'Trial 4'!AS44,'Trial 5'!AS44,'Trial 6'!AS44,'Trial 7'!AS44,'Trial 8'!AS44)","v":{"v":1091310.2540344622,"d":"$1,091,310"}},{"$f":"AVERAGE('Trial 1'!AT44,'Trial 2'!AT44,'Trial 3'!AT44,'Trial 4'!AT44,'Trial 5'!AT44,'Trial 6'!AT44,'Trial 7'!AT44,'Trial 8'!AT44)","v":{"v":1090604.5739242623,"d":"$1,090,605"}},{"$f":"AVERAGE('Trial 1'!AU44,'Trial 2'!AU44,'Trial 3'!AU44,'Trial 4'!AU44,'Trial 5'!AU44,'Trial 6'!AU44,'Trial 7'!AU44,'Trial 8'!AU44)","v":{"v":1121070.6932159767,"d":"$1,121,071"}},{"$f":"AVERAGE('Trial 1'!AV44,'Trial 2'!AV44,'Trial 3'!AV44,'Trial 4'!AV44,'Trial 5'!AV44,'Trial 6'!AV44,'Trial 7'!AV44,'Trial 8'!AV44)","v":{"v":1120517.4391610331,"d":"$1,120,517"}},{"$f":"AVERAGE('Trial 1'!AW44,'Trial 2'!AW44,'Trial 3'!AW44,'Trial 4'!AW44,'Trial 5'!AW44,'Trial 6'!AW44,'Trial 7'!AW44,'Trial 8'!AW44)","v":{"v":1096697.694284238,"d":"$1,096,698"}},{"$f":"AVERAGE('Trial 1'!AX44,'Trial 2'!AX44,'Trial 3'!AX44,'Trial 4'!AX44,'Trial 5'!AX44,'Trial 6'!AX44,'Trial 7'!AX44,'Trial 8'!AX44)","v":{"v":1108598.7315333914,"d":"$1,108,599"}},{"$f":"AVERAGE('Trial 1'!AY44,'Trial 2'!AY44,'Trial 3'!AY44,'Trial 4'!AY44,'Trial 5'!AY44,'Trial 6'!AY44,'Trial 7'!AY44,'Trial 8'!AY44)","v":{"v":1097931.929414466,"d":"$1,097,932"}},{"$f":"AVERAGE('Trial 1'!AZ44,'Trial 2'!AZ44,'Trial 3'!AZ44,'Trial 4'!AZ44,'Trial 5'!AZ44,'Trial 6'!AZ44,'Trial 7'!AZ44,'Trial 8'!AZ44)","v":{"v":1103599.612763748,"d":"$1,103,600"}},{"$f":"SUM(AO61:AZ61)","v":{"v":13270351.590466654,"d":"$13,270,352"}},{"$f":"AVERAGE('Trial 1'!BB44,'Trial 2'!BB44,'Trial 3'!BB44,'Trial 4'!BB44,'Trial 5'!BB44,'Trial 6'!BB44,'Trial 7'!BB44,'Trial 8'!BB44)","v":{"v":1097698.3268199742,"d":"$1,097,698"}},{"$f":"AVERAGE('Trial 1'!BC44,'Trial 2'!BC44,'Trial 3'!BC44,'Trial 4'!BC44,'Trial 5'!BC44,'Trial 6'!BC44,'Trial 7'!BC44,'Trial 8'!BC44)","v":{"v":1113346.836979043,"d":"$1,113,347"}},{"$f":"AVERAGE('Trial 1'!BD44,'Trial 2'!BD44,'Trial 3'!BD44,'Trial 4'!BD44,'Trial 5'!BD44,'Trial 6'!BD44,'Trial 7'!BD44,'Trial 8'!BD44)","v":{"v":1117718.5958948922,"d":"$1,117,719"}},{"$f":"AVERAGE('Trial 1'!BE44,'Trial 2'!BE44,'Trial 3'!BE44,'Trial 4'!BE44,'Trial 5'!BE44,'Trial 6'!BE44,'Trial 7'!BE44,'Trial 8'!BE44)","v":{"v":1100929.8204555155,"d":"$1,100,930"}},{"$f":"AVERAGE('Trial 1'!BF44,'Trial 2'!BF44,'Trial 3'!BF44,'Trial 4'!BF44,'Trial 5'!BF44,'Trial 6'!BF44,'Trial 7'!BF44,'Trial 8'!BF44)","v":{"v":1090782.8280796036,"d":"$1,090,783"}},{"$f":"AVERAGE('Trial 1'!BG44,'Trial 2'!BG44,'Trial 3'!BG44,'Trial 4'!BG44,'Trial 5'!BG44,'Trial 6'!BG44,'Trial 7'!BG44,'Trial 8'!BG44)","v":{"v":1088331.068089916,"d":"$1,088,331"}},{"$f":"AVERAGE('Trial 1'!BH44,'Trial 2'!BH44,'Trial 3'!BH44,'Trial 4'!BH44,'Trial 5'!BH44,'Trial 6'!BH44,'Trial 7'!BH44,'Trial 8'!BH44)","v":{"v":1108800.8339388913,"d":"$1,108,801"}},{"$f":"AVERAGE('Trial 1'!BI44,'Trial 2'!BI44,'Trial 3'!BI44,'Trial 4'!BI44,'Trial 5'!BI44,'Trial 6'!BI44,'Trial 7'!BI44,'Trial 8'!BI44)","v":{"v":1085357.955695686,"d":"$1,085,358"}},{"$f":"AVERAGE('Trial 1'!BJ44,'Trial 2'!BJ44,'Trial 3'!BJ44,'Trial 4'!BJ44,'Trial 5'!BJ44,'Trial 6'!BJ44,'Trial 7'!BJ44,'Trial 8'!BJ44)","v":{"v":1091176.7884057197,"d":"$1,091,177"}},{"$f":"AVERAGE('Trial 1'!BK44,'Trial 2'!BK44,'Trial 3'!BK44,'Trial 4'!BK44,'Trial 5'!BK44,'Trial 6'!BK44,'Trial 7'!BK44,'Trial 8'!BK44)","v":{"v":1091109.5020352565,"d":"$1,091,110"}},{"$f":"AVERAGE('Trial 1'!BL44,'Trial 2'!BL44,'Trial 3'!BL44,'Trial 4'!BL44,'Trial 5'!BL44,'Trial 6'!BL44,'Trial 7'!BL44,'Trial 8'!BL44)","v":{"v":1082110.7962491561,"d":"$1,082,111"}},{"$f":"AVERAGE('Trial 1'!BM44,'Trial 2'!BM44,'Trial 3'!BM44,'Trial 4'!BM44,'Trial 5'!BM44,'Trial 6'!BM44,'Trial 7'!BM44,'Trial 8'!BM44)","v":{"v":1077121.0068860813,"d":"$1,077,121"}},{"$f":"SUM(BB61:BM61)","v":{"v":13144484.359529737,"d":"$13,144,484"}},{"$f":"AVERAGE('Trial 1'!BO44,'Trial 2'!BO44,'Trial 3'!BO44,'Trial 4'!BO44,'Trial 5'!BO44,'Trial 6'!BO44,'Trial 7'!BO44,'Trial 8'!BO44)","v":{"v":1064712.6269166707,"d":"$1,064,713"}},{"$f":"AVERAGE('Trial 1'!BP44,'Trial 2'!BP44,'Trial 3'!BP44,'Trial 4'!BP44,'Trial 5'!BP44,'Trial 6'!BP44,'Trial 7'!BP44,'Trial 8'!BP44)","v":{"v":1095918.502192887,"d":"$1,095,919"}},{"$f":"AVERAGE('Trial 1'!BQ44,'Trial 2'!BQ44,'Trial 3'!BQ44,'Trial 4'!BQ44,'Trial 5'!BQ44,'Trial 6'!BQ44,'Trial 7'!BQ44,'Trial 8'!BQ44)","v":{"v":1077887.3168224532,"d":"$1,077,887"}},{"$f":"AVERAGE('Trial 1'!BR44,'Trial 2'!BR44,'Trial 3'!BR44,'Trial 4'!BR44,'Trial 5'!BR44,'Trial 6'!BR44,'Trial 7'!BR44,'Trial 8'!BR44)","v":{"v":1103508.2875065145,"d":"$1,103,508"}},{"$f":"AVERAGE('Trial 1'!BS44,'Trial 2'!BS44,'Trial 3'!BS44,'Trial 4'!BS44,'Trial 5'!BS44,'Trial 6'!BS44,'Trial 7'!BS44,'Trial 8'!BS44)","v":{"v":1079484.5750304614,"d":"$1,079,485"}},{"$f":"AVERAGE('Trial 1'!BT44,'Trial 2'!BT44,'Trial 3'!BT44,'Trial 4'!BT44,'Trial 5'!BT44,'Trial 6'!BT44,'Trial 7'!BT44,'Trial 8'!BT44)","v":{"v":1088606.3317877878,"d":"$1,088,606"}},{"$f":"AVERAGE('Trial 1'!BU44,'Trial 2'!BU44,'Trial 3'!BU44,'Trial 4'!BU44,'Trial 5'!BU44,'Trial 6'!BU44,'Trial 7'!BU44,'Trial 8'!BU44)","v":{"v":1069657.5829330233,"d":"$1,069,658"}},{"$f":"AVERAGE('Trial 1'!BV44,'Trial 2'!BV44,'Trial 3'!BV44,'Trial 4'!BV44,'Trial 5'!BV44,'Trial 6'!BV44,'Trial 7'!BV44,'Trial 8'!BV44)","v":{"v":1067272.5195671874,"d":"$1,067,273"}},{"$f":"AVERAGE('Trial 1'!BW44,'Trial 2'!BW44,'Trial 3'!BW44,'Trial 4'!BW44,'Trial 5'!BW44,'Trial 6'!BW44,'Trial 7'!BW44,'Trial 8'!BW44)","v":{"v":1092128.0233448846,"d":"$1,092,128"}},{"$f":"AVERAGE('Trial 1'!BX44,'Trial 2'!BX44,'Trial 3'!BX44,'Trial 4'!BX44,'Trial 5'!BX44,'Trial 6'!BX44,'Trial 7'!BX44,'Trial 8'!BX44)","v":{"v":1058028.225362039,"d":"$1,058,028"}},{"$f":"AVERAGE('Trial 1'!BY44,'Trial 2'!BY44,'Trial 3'!BY44,'Trial 4'!BY44,'Trial 5'!BY44,'Trial 6'!BY44,'Trial 7'!BY44,'Trial 8'!BY44)","v":{"v":1079565.480605626,"d":"$1,079,565"}},{"$f":"AVERAGE('Trial 1'!BZ44,'Trial 2'!BZ44,'Trial 3'!BZ44,'Trial 4'!BZ44,'Trial 5'!BZ44,'Trial 6'!BZ44,'Trial 7'!BZ44,'Trial 8'!BZ44)","v":{"v":1074251.0653321068,"d":"$1,074,251"}},{"$f":"SUM(BO61:BZ61)","v":{"v":12951020.537401643,"d":"$12,951,021"}},{"$f":"AVERAGE('Trial 1'!CB44,'Trial 2'!CB44,'Trial 3'!CB44,'Trial 4'!CB44,'Trial 5'!CB44,'Trial 6'!CB44,'Trial 7'!CB44,'Trial 8'!CB44)","v":{"v":1070850.5458833603,"d":"$1,070,851"}},{"$f":"AVERAGE('Trial 1'!CC44,'Trial 2'!CC44,'Trial 3'!CC44,'Trial 4'!CC44,'Trial 5'!CC44,'Trial 6'!CC44,'Trial 7'!CC44,'Trial 8'!CC44)","v":{"v":1070724.660185841,"d":"$1,070,725"}},{"$f":"AVERAGE('Trial 1'!CD44,'Trial 2'!CD44,'Trial 3'!CD44,'Trial 4'!CD44,'Trial 5'!CD44,'Trial 6'!CD44,'Trial 7'!CD44,'Trial 8'!CD44)","v":{"v":1051138.2544085083,"d":"$1,051,138"}},{"$f":"AVERAGE('Trial 1'!CE44,'Trial 2'!CE44,'Trial 3'!CE44,'Trial 4'!CE44,'Trial 5'!CE44,'Trial 6'!CE44,'Trial 7'!CE44,'Trial 8'!CE44)","v":{"v":1053879.5347569515,"d":"$1,053,880"}},{"$f":"AVERAGE('Trial 1'!CF44,'Trial 2'!CF44,'Trial 3'!CF44,'Trial 4'!CF44,'Trial 5'!CF44,'Trial 6'!CF44,'Trial 7'!CF44,'Trial 8'!CF44)","v":{"v":1061337.4860154404,"d":"$1,061,337"}},{"$f":"AVERAGE('Trial 1'!CG44,'Trial 2'!CG44,'Trial 3'!CG44,'Trial 4'!CG44,'Trial 5'!CG44,'Trial 6'!CG44,'Trial 7'!CG44,'Trial 8'!CG44)","v":{"v":1065315.4426078992,"d":"$1,065,315"}},{"$f":"AVERAGE('Trial 1'!CH44,'Trial 2'!CH44,'Trial 3'!CH44,'Trial 4'!CH44,'Trial 5'!CH44,'Trial 6'!CH44,'Trial 7'!CH44,'Trial 8'!CH44)","v":{"v":1051717.164859104,"d":"$1,051,717"}},{"$f":"AVERAGE('Trial 1'!CI44,'Trial 2'!CI44,'Trial 3'!CI44,'Trial 4'!CI44,'Trial 5'!CI44,'Trial 6'!CI44,'Trial 7'!CI44,'Trial 8'!CI44)","v":{"v":1057865.932256372,"d":"$1,057,866"}},{"$f":"AVERAGE('Trial 1'!CJ44,'Trial 2'!CJ44,'Trial 3'!CJ44,'Trial 4'!CJ44,'Trial 5'!CJ44,'Trial 6'!CJ44,'Trial 7'!CJ44,'Trial 8'!CJ44)","v":{"v":1076614.286687677,"d":"$1,076,614"}},{"$f":"AVERAGE('Trial 1'!CK44,'Trial 2'!CK44,'Trial 3'!CK44,'Trial 4'!CK44,'Trial 5'!CK44,'Trial 6'!CK44,'Trial 7'!CK44,'Trial 8'!CK44)","v":{"v":1061019.9133850383,"d":"$1,061,020"}},{"$f":"AVERAGE('Trial 1'!CL44,'Trial 2'!CL44,'Trial 3'!CL44,'Trial 4'!CL44,'Trial 5'!CL44,'Trial 6'!CL44,'Trial 7'!CL44,'Trial 8'!CL44)","v":{"v":1051716.007915291,"d":"$1,051,716"}},{"$f":"AVERAGE('Trial 1'!CM44,'Trial 2'!CM44,'Trial 3'!CM44,'Trial 4'!CM44,'Trial 5'!CM44,'Trial 6'!CM44,'Trial 7'!CM44,'Trial 8'!CM44)","v":{"v":1034649.0667233755,"d":"$1,034,649"}},{"$f":"SUM(CB61:CM61)","v":{"v":12706828.295684861,"d":"$12,706,828"}},{"$f":"AVERAGE('Trial 1'!CO44,'Trial 2'!CO44,'Trial 3'!CO44,'Trial 4'!CO44,'Trial 5'!CO44,'Trial 6'!CO44,'Trial 7'!CO44,'Trial 8'!CO44)","v":{"v":1051402.3915750994,"d":"$1,051,402"}},{"$f":"AVERAGE('Trial 1'!CP44,'Trial 2'!CP44,'Trial 3'!CP44,'Trial 4'!CP44,'Trial 5'!CP44,'Trial 6'!CP44,'Trial 7'!CP44,'Trial 8'!CP44)","v":{"v":1045917.1196216706,"d":"$1,045,917"}},{"$f":"AVERAGE('Trial 1'!CQ44,'Trial 2'!CQ44,'Trial 3'!CQ44,'Trial 4'!CQ44,'Trial 5'!CQ44,'Trial 6'!CQ44,'Trial 7'!CQ44,'Trial 8'!CQ44)","v":{"v":1056200.764306351,"d":"$1,056,201"}},{"$f":"AVERAGE('Trial 1'!CR44,'Trial 2'!CR44,'Trial 3'!CR44,'Trial 4'!CR44,'Trial 5'!CR44,'Trial 6'!CR44,'Trial 7'!CR44,'Trial 8'!CR44)","v":{"v":1046777.274350846,"d":"$1,046,777"}},{"$f":"AVERAGE('Trial 1'!CS44,'Trial 2'!CS44,'Trial 3'!CS44,'Trial 4'!CS44,'Trial 5'!CS44,'Trial 6'!CS44,'Trial 7'!CS44,'Trial 8'!CS44)","v":{"v":1054100.0854553375,"d":"$1,054,100"}},{"$f":"AVERAGE('Trial 1'!CT44,'Trial 2'!CT44,'Trial 3'!CT44,'Trial 4'!CT44,'Trial 5'!CT44,'Trial 6'!CT44,'Trial 7'!CT44,'Trial 8'!CT44)","v":{"v":1045066.4847146232,"d":"$1,045,066"}},{"$f":"AVERAGE('Trial 1'!CU44,'Trial 2'!CU44,'Trial 3'!CU44,'Trial 4'!CU44,'Trial 5'!CU44,'Trial 6'!CU44,'Trial 7'!CU44,'Trial 8'!CU44)","v":{"v":1055368.0390528038,"d":"$1,055,368"}},{"$f":"AVERAGE('Trial 1'!CV44,'Trial 2'!CV44,'Trial 3'!CV44,'Trial 4'!CV44,'Trial 5'!CV44,'Trial 6'!CV44,'Trial 7'!CV44,'Trial 8'!CV44)","v":{"v":1046697.3215386793,"d":"$1,046,697"}},{"$f":"AVERAGE('Trial 1'!CW44,'Trial 2'!CW44,'Trial 3'!CW44,'Trial 4'!CW44,'Trial 5'!CW44,'Trial 6'!CW44,'Trial 7'!CW44,'Trial 8'!CW44)","v":{"v":1032576.3333526092,"d":"$1,032,576"}},{"$f":"AVERAGE('Trial 1'!CX44,'Trial 2'!CX44,'Trial 3'!CX44,'Trial 4'!CX44,'Trial 5'!CX44,'Trial 6'!CX44,'Trial 7'!CX44,'Trial 8'!CX44)","v":{"v":1052370.8875722424,"d":"$1,052,371"}},{"$f":"AVERAGE('Trial 1'!CY44,'Trial 2'!CY44,'Trial 3'!CY44,'Trial 4'!CY44,'Trial 5'!CY44,'Trial 6'!CY44,'Trial 7'!CY44,'Trial 8'!CY44)","v":{"v":1055105.4449015309,"d":"$1,055,105"}},{"$f":"AVERAGE('Trial 1'!CZ44,'Trial 2'!CZ44,'Trial 3'!CZ44,'Trial 4'!CZ44,'Trial 5'!CZ44,'Trial 6'!CZ44,'Trial 7'!CZ44,'Trial 8'!CZ44)","v":{"v":1058619.3187342996,"d":"$1,058,619"}},{"$f":"SUM(CO61:CZ61)","v":{"v":12600201.465176092,"d":"$12,600,201"}},{"$f":"AVERAGE('Trial 1'!DB44,'Trial 2'!DB44,'Trial 3'!DB44,'Trial 4'!DB44,'Trial 5'!DB44,'Trial 6'!DB44,'Trial 7'!DB44,'Trial 8'!DB44)","v":{"v":1036052.0902144057,"d":"$1,036,052"}},{"$f":"AVERAGE('Trial 1'!DC44,'Trial 2'!DC44,'Trial 3'!DC44,'Trial 4'!DC44,'Trial 5'!DC44,'Trial 6'!DC44,'Trial 7'!DC44,'Trial 8'!DC44)","v":{"v":1038109.9099319009,"d":"$1,038,110"}},{"$f":"AVERAGE('Trial 1'!DD44,'Trial 2'!DD44,'Trial 3'!DD44,'Trial 4'!DD44,'Trial 5'!DD44,'Trial 6'!DD44,'Trial 7'!DD44,'Trial 8'!DD44)","v":{"v":1036574.6050109228,"d":"$1,036,575"}},{"$f":"AVERAGE('Trial 1'!DE44,'Trial 2'!DE44,'Trial 3'!DE44,'Trial 4'!DE44,'Trial 5'!DE44,'Trial 6'!DE44,'Trial 7'!DE44,'Trial 8'!DE44)","v":{"v":1048397.9925336291,"d":"$1,048,398"}},{"$f":"AVERAGE('Trial 1'!DF44,'Trial 2'!DF44,'Trial 3'!DF44,'Trial 4'!DF44,'Trial 5'!DF44,'Trial 6'!DF44,'Trial 7'!DF44,'Trial 8'!DF44)","v":{"v":1041646.0874602922,"d":"$1,041,646"}},{"$f":"AVERAGE('Trial 1'!DG44,'Trial 2'!DG44,'Trial 3'!DG44,'Trial 4'!DG44,'Trial 5'!DG44,'Trial 6'!DG44,'Trial 7'!DG44,'Trial 8'!DG44)","v":{"v":1024464.2226624513,"d":"$1,024,464"}},{"$f":"AVERAGE('Trial 1'!DH44,'Trial 2'!DH44,'Trial 3'!DH44,'Trial 4'!DH44,'Trial 5'!DH44,'Trial 6'!DH44,'Trial 7'!DH44,'Trial 8'!DH44)","v":{"v":1042897.8916979553,"d":"$1,042,898"}},{"$f":"AVERAGE('Trial 1'!DI44,'Trial 2'!DI44,'Trial 3'!DI44,'Trial 4'!DI44,'Trial 5'!DI44,'Trial 6'!DI44,'Trial 7'!DI44,'Trial 8'!DI44)","v":{"v":1035127.6102279116,"d":"$1,035,128"}},{"$f":"AVERAGE('Trial 1'!DJ44,'Trial 2'!DJ44,'Trial 3'!DJ44,'Trial 4'!DJ44,'Trial 5'!DJ44,'Trial 6'!DJ44,'Trial 7'!DJ44,'Trial 8'!DJ44)","v":{"v":1044354.4019801478,"d":"$1,044,354"}},{"$f":"AVERAGE('Trial 1'!DK44,'Trial 2'!DK44,'Trial 3'!DK44,'Trial 4'!DK44,'Trial 5'!DK44,'Trial 6'!DK44,'Trial 7'!DK44,'Trial 8'!DK44)","v":{"v":1039154.4441422164,"d":"$1,039,154"}},{"$f":"AVERAGE('Trial 1'!DL44,'Trial 2'!DL44,'Trial 3'!DL44,'Trial 4'!DL44,'Trial 5'!DL44,'Trial 6'!DL44,'Trial 7'!DL44,'Trial 8'!DL44)","v":{"v":1021302.2092893089,"d":"$1,021,302"}},{"$f":"AVERAGE('Trial 1'!DM44,'Trial 2'!DM44,'Trial 3'!DM44,'Trial 4'!DM44,'Trial 5'!DM44,'Trial 6'!DM44,'Trial 7'!DM44,'Trial 8'!DM44)","v":{"v":1041251.8877998906,"d":"$1,041,252"}},{"$f":"SUM(DB61:DM61)","v":{"v":12449333.352951033,"d":"$12,449,333"}},{"$f":"AVERAGE('Trial 1'!DO44,'Trial 2'!DO44,'Trial 3'!DO44,'Trial 4'!DO44,'Trial 5'!DO44,'Trial 6'!DO44,'Trial 7'!DO44,'Trial 8'!DO44)","v":{"v":1039731.5214578196,"d":"$1,039,732"}},{"$f":"AVERAGE('Trial 1'!DP44,'Trial 2'!DP44,'Trial 3'!DP44,'Trial 4'!DP44,'Trial 5'!DP44,'Trial 6'!DP44,'Trial 7'!DP44,'Trial 8'!DP44)","v":{"v":1024662.113185097,"d":"$1,024,662"}},{"$f":"AVERAGE('Trial 1'!DQ44,'Trial 2'!DQ44,'Trial 3'!DQ44,'Trial 4'!DQ44,'Trial 5'!DQ44,'Trial 6'!DQ44,'Trial 7'!DQ44,'Trial 8'!DQ44)","v":{"v":1033982.2903257248,"d":"$1,033,982"}},{"$f":"AVERAGE('Trial 1'!DR44,'Trial 2'!DR44,'Trial 3'!DR44,'Trial 4'!DR44,'Trial 5'!DR44,'Trial 6'!DR44,'Trial 7'!DR44,'Trial 8'!DR44)","v":{"v":1024612.0155866423,"d":"$1,024,612"}},{"$f":"AVERAGE('Trial 1'!DS44,'Trial 2'!DS44,'Trial 3'!DS44,'Trial 4'!DS44,'Trial 5'!DS44,'Trial 6'!DS44,'Trial 7'!DS44,'Trial 8'!DS44)","v":{"v":1033458.3003628751,"d":"$1,033,458"}},{"$f":"AVERAGE('Trial 1'!DT44,'Trial 2'!DT44,'Trial 3'!DT44,'Trial 4'!DT44,'Trial 5'!DT44,'Trial 6'!DT44,'Trial 7'!DT44,'Trial 8'!DT44)","v":{"v":1019553.8869681025,"d":"$1,019,554"}},{"$f":"AVERAGE('Trial 1'!DU44,'Trial 2'!DU44,'Trial 3'!DU44,'Trial 4'!DU44,'Trial 5'!DU44,'Trial 6'!DU44,'Trial 7'!DU44,'Trial 8'!DU44)","v":{"v":1030460.7294742643,"d":"$1,030,461"}},{"$f":"AVERAGE('Trial 1'!DV44,'Trial 2'!DV44,'Trial 3'!DV44,'Trial 4'!DV44,'Trial 5'!DV44,'Trial 6'!DV44,'Trial 7'!DV44,'Trial 8'!DV44)","v":{"v":1002703.1122217198,"d":"$1,002,703"}},{"$f":"AVERAGE('Trial 1'!DW44,'Trial 2'!DW44,'Trial 3'!DW44,'Trial 4'!DW44,'Trial 5'!DW44,'Trial 6'!DW44,'Trial 7'!DW44,'Trial 8'!DW44)","v":{"v":1033639.3981881288,"d":"$1,033,639"}},{"$f":"AVERAGE('Trial 1'!DX44,'Trial 2'!DX44,'Trial 3'!DX44,'Trial 4'!DX44,'Trial 5'!DX44,'Trial 6'!DX44,'Trial 7'!DX44,'Trial 8'!DX44)","v":{"v":1019518.758374935,"d":"$1,019,519"}},{"$f":"AVERAGE('Trial 1'!DY44,'Trial 2'!DY44,'Trial 3'!DY44,'Trial 4'!DY44,'Trial 5'!DY44,'Trial 6'!DY44,'Trial 7'!DY44,'Trial 8'!DY44)","v":{"v":1025091.460253941,"d":"$1,025,091"}},{"$f":"AVERAGE('Trial 1'!DZ44,'Trial 2'!DZ44,'Trial 3'!DZ44,'Trial 4'!DZ44,'Trial 5'!DZ44,'Trial 6'!DZ44,'Trial 7'!DZ44,'Trial 8'!DZ44)","v":{"v":1016493.5494280518,"d":"$1,016,494"}},{"$f":"SUM(DO61:DZ61)","v":{"v":12303907.135827301,"d":"$12,303,907"}},{"$f":"AVERAGE('Trial 1'!EB44,'Trial 2'!EB44,'Trial 3'!EB44,'Trial 4'!EB44,'Trial 5'!EB44,'Trial 6'!EB44,'Trial 7'!EB44,'Trial 8'!EB44)","v":{"v":1029604.6704821916,"d":"$1,029,605"}},{"$f":"AVERAGE('Trial 1'!EC44,'Trial 2'!EC44,'Trial 3'!EC44,'Trial 4'!EC44,'Trial 5'!EC44,'Trial 6'!EC44,'Trial 7'!EC44,'Trial 8'!EC44)","v":{"v":1026805.7194692295,"d":"$1,026,806"}},{"$f":"AVERAGE('Trial 1'!ED44,'Trial 2'!ED44,'Trial 3'!ED44,'Trial 4'!ED44,'Trial 5'!ED44,'Trial 6'!ED44,'Trial 7'!ED44,'Trial 8'!ED44)","v":{"v":995838.1448515716,"d":"$995,838"}},{"$f":"AVERAGE('Trial 1'!EE44,'Trial 2'!EE44,'Trial 3'!EE44,'Trial 4'!EE44,'Trial 5'!EE44,'Trial 6'!EE44,'Trial 7'!EE44,'Trial 8'!EE44)","v":{"v":1018787.584848246,"d":"$1,018,788"}},{"$f":"AVERAGE('Trial 1'!EF44,'Trial 2'!EF44,'Trial 3'!EF44,'Trial 4'!EF44,'Trial 5'!EF44,'Trial 6'!EF44,'Trial 7'!EF44,'Trial 8'!EF44)","v":{"v":1013505.6156857247,"d":"$1,013,506"}},{"$f":"AVERAGE('Trial 1'!EG44,'Trial 2'!EG44,'Trial 3'!EG44,'Trial 4'!EG44,'Trial 5'!EG44,'Trial 6'!EG44,'Trial 7'!EG44,'Trial 8'!EG44)","v":{"v":1011540.1587770169,"d":"$1,011,540"}},{"$f":"AVERAGE('Trial 1'!EH44,'Trial 2'!EH44,'Trial 3'!EH44,'Trial 4'!EH44,'Trial 5'!EH44,'Trial 6'!EH44,'Trial 7'!EH44,'Trial 8'!EH44)","v":{"v":1016543.2279811206,"d":"$1,016,543"}},{"$f":"AVERAGE('Trial 1'!EI44,'Trial 2'!EI44,'Trial 3'!EI44,'Trial 4'!EI44,'Trial 5'!EI44,'Trial 6'!EI44,'Trial 7'!EI44,'Trial 8'!EI44)","v":{"v":1013175.1525562679,"d":"$1,013,175"}},{"$f":"AVERAGE('Trial 1'!EJ44,'Trial 2'!EJ44,'Trial 3'!EJ44,'Trial 4'!EJ44,'Trial 5'!EJ44,'Trial 6'!EJ44,'Trial 7'!EJ44,'Trial 8'!EJ44)","v":{"v":1015012.8729431467,"d":"$1,015,013"}},{"$f":"AVERAGE('Trial 1'!EK44,'Trial 2'!EK44,'Trial 3'!EK44,'Trial 4'!EK44,'Trial 5'!EK44,'Trial 6'!EK44,'Trial 7'!EK44,'Trial 8'!EK44)","v":{"v":1001223.2682829713,"d":"$1,001,223"}},{"$f":"AVERAGE('Trial 1'!EL44,'Trial 2'!EL44,'Trial 3'!EL44,'Trial 4'!EL44,'Trial 5'!EL44,'Trial 6'!EL44,'Trial 7'!EL44,'Trial 8'!EL44)","v":{"v":1010337.0875932617,"d":"$1,010,337"}},{"$f":"AVERAGE('Trial 1'!EM44,'Trial 2'!EM44,'Trial 3'!EM44,'Trial 4'!EM44,'Trial 5'!EM44,'Trial 6'!EM44,'Trial 7'!EM44,'Trial 8'!EM44)","v":{"v":1021843.8316836747,"d":"$1,021,844"}},{"$f":"SUM(EB61:EM61)","v":{"v":12174217.335154423,"d":"$12,174,217"}}]
[{"$f":"Labels!B71","v":"Output std dev"},{"$f":"STDEV('Trial 1'!B44,'Trial 2'!B44,'Trial 3'!B44,'Trial 4'!B44,'Trial 5'!B44,'Trial 6'!B44,'Trial 7'!B44,'Trial 8'!B44)","v":{"v":21319.975424747514,"d":"$21,320"}},{"$f":"STDEV('Trial 1'!C44,'Trial 2'!C44,'Trial 3'!C44,'Trial 4'!C44,'Trial 5'!C44,'Trial 6'!C44,'Trial 7'!C44,'Trial 8'!C44)","v":{"v":50469.189665387494,"d":"$50,469"}},{"$f":"STDEV('Trial 1'!D44,'Trial 2'!D44,'Trial 3'!D44,'Trial 4'!D44,'Trial 5'!D44,'Trial 6'!D44,'Trial 7'!D44,'Trial 8'!D44)","v":{"v":21371.980285536443,"d":"$21,372"}},{"$f":"STDEV('Trial 1'!E44,'Trial 2'!E44,'Trial 3'!E44,'Trial 4'!E44,'Trial 5'!E44,'Trial 6'!E44,'Trial 7'!E44,'Trial 8'!E44)","v":{"v":20932.221545659333,"d":"$20,932"}},{"$f":"STDEV('Trial 1'!F44,'Trial 2'!F44,'Trial 3'!F44,'Trial 4'!F44,'Trial 5'!F44,'Trial 6'!F44,'Trial 7'!F44,'Trial 8'!F44)","v":{"v":30433.53468109891,"d":"$30,434"}},{"$f":"STDEV('Trial 1'!G44,'Trial 2'!G44,'Trial 3'!G44,'Trial 4'!G44,'Trial 5'!G44,'Trial 6'!G44,'Trial 7'!G44,'Trial 8'!G44)","v":{"v":28589.717817034754,"d":"$28,590"}},{"$f":"STDEV('Trial 1'!H44,'Trial 2'!H44,'Trial 3'!H44,'Trial 4'!H44,'Trial 5'!H44,'Trial 6'!H44,'Trial 7'!H44,'Trial 8'!H44)","v":{"v":24530.20651320982,"d":"$24,530"}},{"$f":"STDEV('Trial 1'!I44,'Trial 2'!I44,'Trial 3'!I44,'Trial 4'!I44,'Trial 5'!I44,'Trial 6'!I44,'Trial 7'!I44,'Trial 8'!I44)","v":{"v":30333.97186575351,"d":"$30,334"}},{"$f":"STDEV('Trial 1'!J44,'Trial 2'!J44,'Trial 3'!J44,'Trial 4'!J44,'Trial 5'!J44,'Trial 6'!J44,'Trial 7'!J44,'Trial 8'!J44)","v":{"v":28874.314128394344,"d":"$28,874"}},{"$f":"STDEV('Trial 1'!K44,'Trial 2'!K44,'Trial 3'!K44,'Trial 4'!K44,'Trial 5'!K44,'Trial 6'!K44,'Trial 7'!K44,'Trial 8'!K44)","v":{"v":23890.49880490944,"d":"$23,890"}},{"$f":"STDEV('Trial 1'!L44,'Trial 2'!L44,'Trial 3'!L44,'Trial 4'!L44,'Trial 5'!L44,'Trial 6'!L44,'Trial 7'!L44,'Trial 8'!L44)","v":{"v":22822.261122336095,"d":"$22,822"}},{"$f":"STDEV('Trial 1'!M44,'Trial 2'!M44,'Trial 3'!M44,'Trial 4'!M44,'Trial 5'!M44,'Trial 6'!M44,'Trial 7'!M44,'Trial 8'!M44)","v":{"v":33131.394546253054,"d":"$33,131"}},{"$f":"SUM(B62:M62)","v":{"v":336699.2664003207,"d":"$336,699"}},{"$f":"STDEV('Trial 1'!O44,'Trial 2'!O44,'Trial 3'!O44,'Trial 4'!O44,'Trial 5'!O44,'Trial 6'!O44,'Trial 7'!O44,'Trial 8'!O44)","v":{"v":23164.29286147506,"d":"$23,164"}},{"$f":"STDEV('Trial 1'!P44,'Trial 2'!P44,'Trial 3'!P44,'Trial 4'!P44,'Trial 5'!P44,'Trial 6'!P44,'Trial 7'!P44,'Trial 8'!P44)","v":{"v":23553.93404949341,"d":"$23,554"}},{"$f":"STDEV('Trial 1'!Q44,'Trial 2'!Q44,'Trial 3'!Q44,'Trial 4'!Q44,'Trial 5'!Q44,'Trial 6'!Q44,'Trial 7'!Q44,'Trial 8'!Q44)","v":{"v":28760.390559416905,"d":"$28,760"}},{"$f":"STDEV('Trial 1'!R44,'Trial 2'!R44,'Trial 3'!R44,'Trial 4'!R44,'Trial 5'!R44,'Trial 6'!R44,'Trial 7'!R44,'Trial 8'!R44)","v":{"v":39814.83305213603,"d":"$39,815"}},{"$f":"STDEV('Trial 1'!S44,'Trial 2'!S44,'Trial 3'!S44,'Trial 4'!S44,'Trial 5'!S44,'Trial 6'!S44,'Trial 7'!S44,'Trial 8'!S44)","v":{"v":31621.009627682644,"d":"$31,621"}},{"$f":"STDEV('Trial 1'!T44,'Trial 2'!T44,'Trial 3'!T44,'Trial 4'!T44,'Trial 5'!T44,'Trial 6'!T44,'Trial 7'!T44,'Trial 8'!T44)","v":{"v":45302.68286121964,"d":"$45,303"}},{"$f":"STDEV('Trial 1'!U44,'Trial 2'!U44,'Trial 3'!U44,'Trial 4'!U44,'Trial 5'!U44,'Trial 6'!U44,'Trial 7'!U44,'Trial 8'!U44)","v":{"v":24548.55718835369,"d":"$24,549"}},{"$f":"STDEV('Trial 1'!V44,'Trial 2'!V44,'Trial 3'!V44,'Trial 4'!V44,'Trial 5'!V44,'Trial 6'!V44,'Trial 7'!V44,'Trial 8'!V44)","v":{"v":23633.87542748879,"d":"$23,634"}},{"$f":"STDEV('Trial 1'!W44,'Trial 2'!W44,'Trial 3'!W44,'Trial 4'!W44,'Trial 5'!W44,'Trial 6'!W44,'Trial 7'!W44,'Trial 8'!W44)","v":{"v":33066.70289938777,"d":"$33,067"}},{"$f":"STDEV('Trial 1'!X44,'Trial 2'!X44,'Trial 3'!X44,'Trial 4'!X44,'Trial 5'!X44,'Trial 6'!X44,'Trial 7'!X44,'Trial 8'!X44)","v":{"v":13173.226981743657,"d":"$13,173"}},{"$f":"STDEV('Trial 1'!Y44,'Trial 2'!Y44,'Trial 3'!Y44,'Trial 4'!Y44,'Trial 5'!Y44,'Trial 6'!Y44,'Trial 7'!Y44,'Trial 8'!Y44)","v":{"v":37819.75406437344,"d":"$37,820"}},{"$f":"STDEV('Trial 1'!Z44,'Trial 2'!Z44,'Trial 3'!Z44,'Trial 4'!Z44,'Trial 5'!Z44,'Trial 6'!Z44,'Trial 7'!Z44,'Trial 8'!Z44)","v":{"v":24723.277818933715,"d":"$24,723"}},{"$f":"SUM(O62:Z62)","v":{"v":349182.53739170474,"d":"$349,183"}},{"$f":"STDEV('Trial 1'!AB44,'Trial 2'!AB44,'Trial 3'!AB44,'Trial 4'!AB44,'Trial 5'!AB44,'Trial 6'!AB44,'Trial 7'!AB44,'Trial 8'!AB44)","v":{"v":26713.96816226458,"d":"$26,714"}},{"$f":"STDEV('Trial 1'!AC44,'Trial 2'!AC44,'Trial 3'!AC44,'Trial 4'!AC44,'Trial 5'!AC44,'Trial 6'!AC44,'Trial 7'!AC44,'Trial 8'!AC44)","v":{"v":32334.278212847752,"d":"$32,334"}},{"$f":"STDEV('Trial 1'!AD44,'Trial 2'!AD44,'Trial 3'!AD44,'Trial 4'!AD44,'Trial 5'!AD44,'Trial 6'!AD44,'Trial 7'!AD44,'Trial 8'!AD44)","v":{"v":22428.775023462196,"d":"$22,429"}},{"$f":"STDEV('Trial 1'!AE44,'Trial 2'!AE44,'Trial 3'!AE44,'Trial 4'!AE44,'Trial 5'!AE44,'Trial 6'!AE44,'Trial 7'!AE44,'Trial 8'!AE44)","v":{"v":18086.632735386294,"d":"$18,087"}},{"$f":"STDEV('Trial 1'!AF44,'Trial 2'!AF44,'Trial 3'!AF44,'Trial 4'!AF44,'Trial 5'!AF44,'Trial 6'!AF44,'Trial 7'!AF44,'Trial 8'!AF44)","v":{"v":41678.74689849651,"d":"$41,679"}},{"$f":"STDEV('Trial 1'!AG44,'Trial 2'!AG44,'Trial 3'!AG44,'Trial 4'!AG44,'Trial 5'!AG44,'Trial 6'!AG44,'Trial 7'!AG44,'Trial 8'!AG44)","v":{"v":19477.10013710054,"d":"$19,477"}},{"$f":"STDEV('Trial 1'!AH44,'Trial 2'!AH44,'Trial 3'!AH44,'Trial 4'!AH44,'Trial 5'!AH44,'Trial 6'!AH44,'Trial 7'!AH44,'Trial 8'!AH44)","v":{"v":27085.058924534103,"d":"$27,085"}},{"$f":"STDEV('Trial 1'!AI44,'Trial 2'!AI44,'Trial 3'!AI44,'Trial 4'!AI44,'Trial 5'!AI44,'Trial 6'!AI44,'Trial 7'!AI44,'Trial 8'!AI44)","v":{"v":16602.700735304214,"d":"$16,603"}},{"$f":"STDEV('Trial 1'!AJ44,'Trial 2'!AJ44,'Trial 3'!AJ44,'Trial 4'!AJ44,'Trial 5'!AJ44,'Trial 6'!AJ44,'Trial 7'!AJ44,'Trial 8'!AJ44)","v":{"v":39071.72642759227,"d":"$39,072"}},{"$f":"STDEV('Trial 1'!AK44,'Trial 2'!AK44,'Trial 3'!AK44,'Trial 4'!AK44,'Trial 5'!AK44,'Trial 6'!AK44,'Trial 7'!AK44,'Trial 8'!AK44)","v":{"v":26753.84554307851,"d":"$26,754"}},{"$f":"STDEV('Trial 1'!AL44,'Trial 2'!AL44,'Trial 3'!AL44,'Trial 4'!AL44,'Trial 5'!AL44,'Trial 6'!AL44,'Trial 7'!AL44,'Trial 8'!AL44)","v":{"v":29183.219349033563,"d":"$29,183"}},{"$f":"STDEV('Trial 1'!AM44,'Trial 2'!AM44,'Trial 3'!AM44,'Trial 4'!AM44,'Trial 5'!AM44,'Trial 6'!AM44,'Trial 7'!AM44,'Trial 8'!AM44)","v":{"v":39170.0428860917,"d":"$39,170"}},{"$f":"SUM(AB62:AM62)","v":{"v":338586.0950351922,"d":"$338,586"}},{"$f":"STDEV('Trial 1'!AO44,'Trial 2'!AO44,'Trial 3'!AO44,'Trial 4'!AO44,'Trial 5'!AO44,'Trial 6'!AO44,'Trial 7'!AO44,'Trial 8'!AO44)","v":{"v":28108.070530019137,"d":"$28,108"}},{"$f":"STDEV('Trial 1'!AP44,'Trial 2'!AP44,'Trial 3'!AP44,'Trial 4'!AP44,'Trial 5'!AP44,'Trial 6'!AP44,'Trial 7'!AP44,'Trial 8'!AP44)","v":{"v":12249.508790034564,"d":"$12,250"}},{"$f":"STDEV('Trial 1'!AQ44,'Trial 2'!AQ44,'Trial 3'!AQ44,'Trial 4'!AQ44,'Trial 5'!AQ44,'Trial 6'!AQ44,'Trial 7'!AQ44,'Trial 8'!AQ44)","v":{"v":28048.079214245092,"d":"$28,048"}},{"$f":"STDEV('Trial 1'!AR44,'Trial 2'!AR44,'Trial 3'!AR44,'Trial 4'!AR44,'Trial 5'!AR44,'Trial 6'!AR44,'Trial 7'!AR44,'Trial 8'!AR44)","v":{"v":36984.80482849881,"d":"$36,985"}},{"$f":"STDEV('Trial 1'!AS44,'Trial 2'!AS44,'Trial 3'!AS44,'Trial 4'!AS44,'Trial 5'!AS44,'Trial 6'!AS44,'Trial 7'!AS44,'Trial 8'!AS44)","v":{"v":23646.89339209051,"d":"$23,647"}},{"$f":"STDEV('Trial 1'!AT44,'Trial 2'!AT44,'Trial 3'!AT44,'Trial 4'!AT44,'Trial 5'!AT44,'Trial 6'!AT44,'Trial 7'!AT44,'Trial 8'!AT44)","v":{"v":25071.23177013291,"d":"$25,071"}},{"$f":"STDEV('Trial 1'!AU44,'Trial 2'!AU44,'Trial 3'!AU44,'Trial 4'!AU44,'Trial 5'!AU44,'Trial 6'!AU44,'Trial 7'!AU44,'Trial 8'!AU44)","v":{"v":21289.369564558394,"d":"$21,289"}},{"$f":"STDEV('Trial 1'!AV44,'Trial 2'!AV44,'Trial 3'!AV44,'Trial 4'!AV44,'Trial 5'!AV44,'Trial 6'!AV44,'Trial 7'!AV44,'Trial 8'!AV44)","v":{"v":15821.923864206221,"d":"$15,822"}},{"$f":"STDEV('Trial 1'!AW44,'Trial 2'!AW44,'Trial 3'!AW44,'Trial 4'!AW44,'Trial 5'!AW44,'Trial 6'!AW44,'Trial 7'!AW44,'Trial 8'!AW44)","v":{"v":33038.36646427607,"d":"$33,038"}},{"$f":"STDEV('Trial 1'!AX44,'Trial 2'!AX44,'Trial 3'!AX44,'Trial 4'!AX44,'Trial 5'!AX44,'Trial 6'!AX44,'Trial 7'!AX44,'Trial 8'!AX44)","v":{"v":33032.42881658542,"d":"$33,032"}},{"$f":"STDEV('Trial 1'!AY44,'Trial 2'!AY44,'Trial 3'!AY44,'Trial 4'!AY44,'Trial 5'!AY44,'Trial 6'!AY44,'Trial 7'!AY44,'Trial 8'!AY44)","v":{"v":28403.507495407077,"d":"$28,404"}},{"$f":"STDEV('Trial 1'!AZ44,'Trial 2'!AZ44,'Trial 3'!AZ44,'Trial 4'!AZ44,'Trial 5'!AZ44,'Trial 6'!AZ44,'Trial 7'!AZ44,'Trial 8'!AZ44)","v":{"v":32039.234955020533,"d":"$32,039"}},{"$f":"SUM(AO62:AZ62)","v":{"v":317733.41968507477,"d":"$317,733"}},{"$f":"STDEV('Trial 1'!BB44,'Trial 2'!BB44,'Trial 3'!BB44,'Trial 4'!BB44,'Trial 5'!BB44,'Trial 6'!BB44,'Trial 7'!BB44,'Trial 8'!BB44)","v":{"v":32091.445693841804,"d":"$32,091"}},{"$f":"STDEV('Trial 1'!BC44,'Trial 2'!BC44,'Trial 3'!BC44,'Trial 4'!BC44,'Trial 5'!BC44,'Trial 6'!BC44,'Trial 7'!BC44,'Trial 8'!BC44)","v":{"v":20079.739358429077,"d":"$20,080"}},{"$f":"STDEV('Trial 1'!BD44,'Trial 2'!BD44,'Trial 3'!BD44,'Trial 4'!BD44,'Trial 5'!BD44,'Trial 6'!BD44,'Trial 7'!BD44,'Trial 8'!BD44)","v":{"v":30392.708408550978,"d":"$30,393"}},{"$f":"STDEV('Trial 1'!BE44,'Trial 2'!BE44,'Trial 3'!BE44,'Trial 4'!BE44,'Trial 5'!BE44,'Trial 6'!BE44,'Trial 7'!BE44,'Trial 8'!BE44)","v":{"v":19200.984121865094,"d":"$19,201"}},{"$f":"STDEV('Trial 1'!BF44,'Trial 2'!BF44,'Trial 3'!BF44,'Trial 4'!BF44,'Trial 5'!BF44,'Trial 6'!BF44,'Trial 7'!BF44,'Trial 8'!BF44)","v":{"v":24362.655711808307,"d":"$24,363"}},{"$f":"STDEV('Trial 1'!BG44,'Trial 2'!BG44,'Trial 3'!BG44,'Trial 4'!BG44,'Trial 5'!BG44,'Trial 6'!BG44,'Trial 7'!BG44,'Trial 8'!BG44)","v":{"v":24948.93395825272,"d":"$24,949"}},{"$f":"STDEV('Trial 1'!BH44,'Trial 2'!BH44,'Trial 3'!BH44,'Trial 4'!BH44,'Trial 5'!BH44,'Trial 6'!BH44,'Trial 7'!BH44,'Trial 8'!BH44)","v":{"v":30172.11608047846,"d":"$30,172"}},{"$f":"STDEV('Trial 1'!BI44,'Trial 2'!BI44,'Trial 3'!BI44,'Trial 4'!BI44,'Trial 5'!BI44,'Trial 6'!BI44,'Trial 7'!BI44,'Trial 8'!BI44)","v":{"v":34087.30583188891,"d":"$34,087"}},{"$f":"STDEV('Trial 1'!BJ44,'Trial 2'!BJ44,'Trial 3'!BJ44,'Trial 4'!BJ44,'Trial 5'!BJ44,'Trial 6'!BJ44,'Trial 7'!BJ44,'Trial 8'!BJ44)","v":{"v":26080.983155716658,"d":"$26,081"}},{"$f":"STDEV('Trial 1'!BK44,'Trial 2'!BK44,'Trial 3'!BK44,'Trial 4'!BK44,'Trial 5'!BK44,'Trial 6'!BK44,'Trial 7'!BK44,'Trial 8'!BK44)","v":{"v":38895.37719271741,"d":"$38,895"}},{"$f":"STDEV('Trial 1'!BL44,'Trial 2'!BL44,'Trial 3'!BL44,'Trial 4'!BL44,'Trial 5'!BL44,'Trial 6'!BL44,'Trial 7'!BL44,'Trial 8'!BL44)","v":{"v":28854.778743440173,"d":"$28,855"}},{"$f":"STDEV('Trial 1'!BM44,'Trial 2'!BM44,'Trial 3'!BM44,'Trial 4'!BM44,'Trial 5'!BM44,'Trial 6'!BM44,'Trial 7'!BM44,'Trial 8'!BM44)","v":{"v":32693.327124893873,"d":"$32,693"}},{"$f":"SUM(BB62:BM62)","v":{"v":341860.3553818835,"d":"$341,860"}},{"$f":"STDEV('Trial 1'!BO44,'Trial 2'!BO44,'Trial 3'!BO44,'Trial 4'!BO44,'Trial 5'!BO44,'Trial 6'!BO44,'Trial 7'!BO44,'Trial 8'!BO44)","v":{"v":28896.80461186058,"d":"$28,897"}},{"$f":"STDEV('Trial 1'!BP44,'Trial 2'!BP44,'Trial 3'!BP44,'Trial 4'!BP44,'Trial 5'!BP44,'Trial 6'!BP44,'Trial 7'!BP44,'Trial 8'!BP44)","v":{"v":26920.677581439588,"d":"$26,921"}},{"$f":"STDEV('Trial 1'!BQ44,'Trial 2'!BQ44,'Trial 3'!BQ44,'Trial 4'!BQ44,'Trial 5'!BQ44,'Trial 6'!BQ44,'Trial 7'!BQ44,'Trial 8'!BQ44)","v":{"v":20762.962055636388,"d":"$20,763"}},{"$f":"STDEV('Trial 1'!BR44,'Trial 2'!BR44,'Trial 3'!BR44,'Trial 4'!BR44,'Trial 5'!BR44,'Trial 6'!BR44,'Trial 7'!BR44,'Trial 8'!BR44)","v":{"v":26579.09461471486,"d":"$26,579"}},{"$f":"STDEV('Trial 1'!BS44,'Trial 2'!BS44,'Trial 3'!BS44,'Trial 4'!BS44,'Trial 5'!BS44,'Trial 6'!BS44,'Trial 7'!BS44,'Trial 8'!BS44)","v":{"v":24565.07914577985,"d":"$24,565"}},{"$f":"STDEV('Trial 1'!BT44,'Trial 2'!BT44,'Trial 3'!BT44,'Trial 4'!BT44,'Trial 5'!BT44,'Trial 6'!BT44,'Trial 7'!BT44,'Trial 8'!BT44)","v":{"v":32576.0765187694,"d":"$32,576"}},{"$f":"STDEV('Trial 1'!BU44,'Trial 2'!BU44,'Trial 3'!BU44,'Trial 4'!BU44,'Trial 5'!BU44,'Trial 6'!BU44,'Trial 7'!BU44,'Trial 8'!BU44)","v":{"v":26167.99011263381,"d":"$26,168"}},{"$f":"STDEV('Trial 1'!BV44,'Trial 2'!BV44,'Trial 3'!BV44,'Trial 4'!BV44,'Trial 5'!BV44,'Trial 6'!BV44,'Trial 7'!BV44,'Trial 8'!BV44)","v":{"v":29783.534198345566,"d":"$29,784"}},{"$f":"STDEV('Trial 1'!BW44,'Trial 2'!BW44,'Trial 3'!BW44,'Trial 4'!BW44,'Trial 5'!BW44,'Trial 6'!BW44,'Trial 7'!BW44,'Trial 8'!BW44)","v":{"v":14907.794184749058,"d":"$14,908"}},{"$f":"STDEV('Trial 1'!BX44,'Trial 2'!BX44,'Trial 3'!BX44,'Trial 4'!BX44,'Trial 5'!BX44,'Trial 6'!BX44,'Trial 7'!BX44,'Trial 8'!BX44)","v":{"v":28072.511645273094,"d":"$28,073"}},{"$f":"STDEV('Trial 1'!BY44,'Trial 2'!BY44,'Trial 3'!BY44,'Trial 4'!BY44,'Trial 5'!BY44,'Trial 6'!BY44,'Trial 7'!BY44,'Trial 8'!BY44)","v":{"v":20273.374603956727,"d":"$20,273"}},{"$f":"STDEV('Trial 1'!BZ44,'Trial 2'!BZ44,'Trial 3'!BZ44,'Trial 4'!BZ44,'Trial 5'!BZ44,'Trial 6'!BZ44,'Trial 7'!BZ44,'Trial 8'!BZ44)","v":{"v":20335.881257862868,"d":"$20,336"}},{"$f":"SUM(BO62:BZ62)","v":{"v":299841.78053102177,"d":"$299,842"}},{"$f":"STDEV('Trial 1'!CB44,'Trial 2'!CB44,'Trial 3'!CB44,'Trial 4'!CB44,'Trial 5'!CB44,'Trial 6'!CB44,'Trial 7'!CB44,'Trial 8'!CB44)","v":{"v":29216.246407916322,"d":"$29,216"}},{"$f":"STDEV('Trial 1'!CC44,'Trial 2'!CC44,'Trial 3'!CC44,'Trial 4'!CC44,'Trial 5'!CC44,'Trial 6'!CC44,'Trial 7'!CC44,'Trial 8'!CC44)","v":{"v":24412.42196331368,"d":"$24,412"}},{"$f":"STDEV('Trial 1'!CD44,'Trial 2'!CD44,'Trial 3'!CD44,'Trial 4'!CD44,'Trial 5'!CD44,'Trial 6'!CD44,'Trial 7'!CD44,'Trial 8'!CD44)","v":{"v":27704.13613816392,"d":"$27,704"}},{"$f":"STDEV('Trial 1'!CE44,'Trial 2'!CE44,'Trial 3'!CE44,'Trial 4'!CE44,'Trial 5'!CE44,'Trial 6'!CE44,'Trial 7'!CE44,'Trial 8'!CE44)","v":{"v":21524.55100382539,"d":"$21,525"}},{"$f":"STDEV('Trial 1'!CF44,'Trial 2'!CF44,'Trial 3'!CF44,'Trial 4'!CF44,'Trial 5'!CF44,'Trial 6'!CF44,'Trial 7'!CF44,'Trial 8'!CF44)","v":{"v":26848.555307475923,"d":"$26,849"}},{"$f":"STDEV('Trial 1'!CG44,'Trial 2'!CG44,'Trial 3'!CG44,'Trial 4'!CG44,'Trial 5'!CG44,'Trial 6'!CG44,'Trial 7'!CG44,'Trial 8'!CG44)","v":{"v":21327.10923408253,"d":"$21,327"}},{"$f":"STDEV('Trial 1'!CH44,'Trial 2'!CH44,'Trial 3'!CH44,'Trial 4'!CH44,'Trial 5'!CH44,'Trial 6'!CH44,'Trial 7'!CH44,'Trial 8'!CH44)","v":{"v":41601.66843394155,"d":"$41,602"}},{"$f":"STDEV('Trial 1'!CI44,'Trial 2'!CI44,'Trial 3'!CI44,'Trial 4'!CI44,'Trial 5'!CI44,'Trial 6'!CI44,'Trial 7'!CI44,'Trial 8'!CI44)","v":{"v":33796.32121883473,"d":"$33,796"}},{"$f":"STDEV('Trial 1'!CJ44,'Trial 2'!CJ44,'Trial 3'!CJ44,'Trial 4'!CJ44,'Trial 5'!CJ44,'Trial 6'!CJ44,'Trial 7'!CJ44,'Trial 8'!CJ44)","v":{"v":29240.52660966491,"d":"$29,241"}},{"$f":"STDEV('Trial 1'!CK44,'Trial 2'!CK44,'Trial 3'!CK44,'Trial 4'!CK44,'Trial 5'!CK44,'Trial 6'!CK44,'Trial 7'!CK44,'Trial 8'!CK44)","v":{"v":26884.873209147172,"d":"$26,885"}},{"$f":"STDEV('Trial 1'!CL44,'Trial 2'!CL44,'Trial 3'!CL44,'Trial 4'!CL44,'Trial 5'!CL44,'Trial 6'!CL44,'Trial 7'!CL44,'Trial 8'!CL44)","v":{"v":25469.068686076756,"d":"$25,469"}},{"$f":"STDEV('Trial 1'!CM44,'Trial 2'!CM44,'Trial 3'!CM44,'Trial 4'!CM44,'Trial 5'!CM44,'Trial 6'!CM44,'Trial 7'!CM44,'Trial 8'!CM44)","v":{"v":27763.1330949487,"d":"$27,763"}},{"$f":"SUM(CB62:CM62)","v":{"v":335788.61130739155,"d":"$335,789"}},{"$f":"STDEV('Trial 1'!CO44,'Trial 2'!CO44,'Trial 3'!CO44,'Trial 4'!CO44,'Trial 5'!CO44,'Trial 6'!CO44,'Trial 7'!CO44,'Trial 8'!CO44)","v":{"v":27235.624657490593,"d":"$27,236"}},{"$f":"STDEV('Trial 1'!CP44,'Trial 2'!CP44,'Trial 3'!CP44,'Trial 4'!CP44,'Trial 5'!CP44,'Trial 6'!CP44,'Trial 7'!CP44,'Trial 8'!CP44)","v":{"v":23233.159305676847,"d":"$23,233"}},{"$f":"STDEV('Trial 1'!CQ44,'Trial 2'!CQ44,'Trial 3'!CQ44,'Trial 4'!CQ44,'Trial 5'!CQ44,'Trial 6'!CQ44,'Trial 7'!CQ44,'Trial 8'!CQ44)","v":{"v":34280.61384458074,"d":"$34,281"}},{"$f":"STDEV('Trial 1'!CR44,'Trial 2'!CR44,'Trial 3'!CR44,'Trial 4'!CR44,'Trial 5'!CR44,'Trial 6'!CR44,'Trial 7'!CR44,'Trial 8'!CR44)","v":{"v":22580.023343598074,"d":"$22,580"}},{"$f":"STDEV('Trial 1'!CS44,'Trial 2'!CS44,'Trial 3'!CS44,'Trial 4'!CS44,'Trial 5'!CS44,'Trial 6'!CS44,'Trial 7'!CS44,'Trial 8'!CS44)","v":{"v":25615.934205941907,"d":"$25,616"}},{"$f":"STDEV('Trial 1'!CT44,'Trial 2'!CT44,'Trial 3'!CT44,'Trial 4'!CT44,'Trial 5'!CT44,'Trial 6'!CT44,'Trial 7'!CT44,'Trial 8'!CT44)","v":{"v":34919.032733342996,"d":"$34,919"}},{"$f":"STDEV('Trial 1'!CU44,'Trial 2'!CU44,'Trial 3'!CU44,'Trial 4'!CU44,'Trial 5'!CU44,'Trial 6'!CU44,'Trial 7'!CU44,'Trial 8'!CU44)","v":{"v":27329.66138637273,"d":"$27,330"}},{"$f":"STDEV('Trial 1'!CV44,'Trial 2'!CV44,'Trial 3'!CV44,'Trial 4'!CV44,'Trial 5'!CV44,'Trial 6'!CV44,'Trial 7'!CV44,'Trial 8'!CV44)","v":{"v":27552.79241621489,"d":"$27,553"}},{"$f":"STDEV('Trial 1'!CW44,'Trial 2'!CW44,'Trial 3'!CW44,'Trial 4'!CW44,'Trial 5'!CW44,'Trial 6'!CW44,'Trial 7'!CW44,'Trial 8'!CW44)","v":{"v":23179.99784494706,"d":"$23,180"}},{"$f":"STDEV('Trial 1'!CX44,'Trial 2'!CX44,'Trial 3'!CX44,'Trial 4'!CX44,'Trial 5'!CX44,'Trial 6'!CX44,'Trial 7'!CX44,'Trial 8'!CX44)","v":{"v":38650.270863217505,"d":"$38,650"}},{"$f":"STDEV('Trial 1'!CY44,'Trial 2'!CY44,'Trial 3'!CY44,'Trial 4'!CY44,'Trial 5'!CY44,'Trial 6'!CY44,'Trial 7'!CY44,'Trial 8'!CY44)","v":{"v":27261.426340256177,"d":"$27,261"}},{"$f":"STDEV('Trial 1'!CZ44,'Trial 2'!CZ44,'Trial 3'!CZ44,'Trial 4'!CZ44,'Trial 5'!CZ44,'Trial 6'!CZ44,'Trial 7'!CZ44,'Trial 8'!CZ44)","v":{"v":21875.23210358061,"d":"$21,875"}},{"$f":"SUM(CO62:CZ62)","v":{"v":333713.7690452201,"d":"$333,714"}},{"$f":"STDEV('Trial 1'!DB44,'Trial 2'!DB44,'Trial 3'!DB44,'Trial 4'!DB44,'Trial 5'!DB44,'Trial 6'!DB44,'Trial 7'!DB44,'Trial 8'!DB44)","v":{"v":26058.252134037677,"d":"$26,058"}},{"$f":"STDEV('Trial 1'!DC44,'Trial 2'!DC44,'Trial 3'!DC44,'Trial 4'!DC44,'Trial 5'!DC44,'Trial 6'!DC44,'Trial 7'!DC44,'Trial 8'!DC44)","v":{"v":30063.453563052186,"d":"$30,063"}},{"$f":"STDEV('Trial 1'!DD44,'Trial 2'!DD44,'Trial 3'!DD44,'Trial 4'!DD44,'Trial 5'!DD44,'Trial 6'!DD44,'Trial 7'!DD44,'Trial 8'!DD44)","v":{"v":18214.681818103483,"d":"$18,215"}},{"$f":"STDEV('Trial 1'!DE44,'Trial 2'!DE44,'Trial 3'!DE44,'Trial 4'!DE44,'Trial 5'!DE44,'Trial 6'!DE44,'Trial 7'!DE44,'Trial 8'!DE44)","v":{"v":34117.73044942355,"d":"$34,118"}},{"$f":"STDEV('Trial 1'!DF44,'Trial 2'!DF44,'Trial 3'!DF44,'Trial 4'!DF44,'Trial 5'!DF44,'Trial 6'!DF44,'Trial 7'!DF44,'Trial 8'!DF44)","v":{"v":27730.525805891226,"d":"$27,731"}},{"$f":"STDEV('Trial 1'!DG44,'Trial 2'!DG44,'Trial 3'!DG44,'Trial 4'!DG44,'Trial 5'!DG44,'Trial 6'!DG44,'Trial 7'!DG44,'Trial 8'!DG44)","v":{"v":17457.85817809632,"d":"$17,458"}},{"$f":"STDEV('Trial 1'!DH44,'Trial 2'!DH44,'Trial 3'!DH44,'Trial 4'!DH44,'Trial 5'!DH44,'Trial 6'!DH44,'Trial 7'!DH44,'Trial 8'!DH44)","v":{"v":26879.664642371332,"d":"$26,880"}},{"$f":"STDEV('Trial 1'!DI44,'Trial 2'!DI44,'Trial 3'!DI44,'Trial 4'!DI44,'Trial 5'!DI44,'Trial 6'!DI44,'Trial 7'!DI44,'Trial 8'!DI44)","v":{"v":20829.643154985457,"d":"$20,830"}},{"$f":"STDEV('Trial 1'!DJ44,'Trial 2'!DJ44,'Trial 3'!DJ44,'Trial 4'!DJ44,'Trial 5'!DJ44,'Trial 6'!DJ44,'Trial 7'!DJ44,'Trial 8'!DJ44)","v":{"v":39175.37249586833,"d":"$39,175"}},{"$f":"STDEV('Trial 1'!DK44,'Trial 2'!DK44,'Trial 3'!DK44,'Trial 4'!DK44,'Trial 5'!DK44,'Trial 6'!DK44,'Trial 7'!DK44,'Trial 8'!DK44)","v":{"v":28650.32367850566,"d":"$28,650"}},{"$f":"STDEV('Trial 1'!DL44,'Trial 2'!DL44,'Trial 3'!DL44,'Trial 4'!DL44,'Trial 5'!DL44,'Trial 6'!DL44,'Trial 7'!DL44,'Trial 8'!DL44)","v":{"v":33621.785714057936,"d":"$33,622"}},{"$f":"STDEV('Trial 1'!DM44,'Trial 2'!DM44,'Trial 3'!DM44,'Trial 4'!DM44,'Trial 5'!DM44,'Trial 6'!DM44,'Trial 7'!DM44,'Trial 8'!DM44)","v":{"v":27761.711238207947,"d":"$27,762"}},{"$f":"SUM(DB62:DM62)","v":{"v":330561.00287260104,"d":"$330,561"}},{"$f":"STDEV('Trial 1'!DO44,'Trial 2'!DO44,'Trial 3'!DO44,'Trial 4'!DO44,'Trial 5'!DO44,'Trial 6'!DO44,'Trial 7'!DO44,'Trial 8'!DO44)","v":{"v":33244.07696764136,"d":"$33,244"}},{"$f":"STDEV('Trial 1'!DP44,'Trial 2'!DP44,'Trial 3'!DP44,'Trial 4'!DP44,'Trial 5'!DP44,'Trial 6'!DP44,'Trial 7'!DP44,'Trial 8'!DP44)","v":{"v":32792.95813135568,"d":"$32,793"}},{"$f":"STDEV('Trial 1'!DQ44,'Trial 2'!DQ44,'Trial 3'!DQ44,'Trial 4'!DQ44,'Trial 5'!DQ44,'Trial 6'!DQ44,'Trial 7'!DQ44,'Trial 8'!DQ44)","v":{"v":26713.76416999854,"d":"$26,714"}},{"$f":"STDEV('Trial 1'!DR44,'Trial 2'!DR44,'Trial 3'!DR44,'Trial 4'!DR44,'Trial 5'!DR44,'Trial 6'!DR44,'Trial 7'!DR44,'Trial 8'!DR44)","v":{"v":29104.586914948715,"d":"$29,105"}},{"$f":"STDEV('Trial 1'!DS44,'Trial 2'!DS44,'Trial 3'!DS44,'Trial 4'!DS44,'Trial 5'!DS44,'Trial 6'!DS44,'Trial 7'!DS44,'Trial 8'!DS44)","v":{"v":26869.926504301962,"d":"$26,870"}},{"$f":"STDEV('Trial 1'!DT44,'Trial 2'!DT44,'Trial 3'!DT44,'Trial 4'!DT44,'Trial 5'!DT44,'Trial 6'!DT44,'Trial 7'!DT44,'Trial 8'!DT44)","v":{"v":28768.87093466357,"d":"$28,769"}},{"$f":"STDEV('Trial 1'!DU44,'Trial 2'!DU44,'Trial 3'!DU44,'Trial 4'!DU44,'Trial 5'!DU44,'Trial 6'!DU44,'Trial 7'!DU44,'Trial 8'!DU44)","v":{"v":32304.885995772907,"d":"$32,305"}},{"$f":"STDEV('Trial 1'!DV44,'Trial 2'!DV44,'Trial 3'!DV44,'Trial 4'!DV44,'Trial 5'!DV44,'Trial 6'!DV44,'Trial 7'!DV44,'Trial 8'!DV44)","v":{"v":29153.478536765884,"d":"$29,153"}},{"$f":"STDEV('Trial 1'!DW44,'Trial 2'!DW44,'Trial 3'!DW44,'Trial 4'!DW44,'Trial 5'!DW44,'Trial 6'!DW44,'Trial 7'!DW44,'Trial 8'!DW44)","v":{"v":23006.887381589735,"d":"$23,007"}},{"$f":"STDEV('Trial 1'!DX44,'Trial 2'!DX44,'Trial 3'!DX44,'Trial 4'!DX44,'Trial 5'!DX44,'Trial 6'!DX44,'Trial 7'!DX44,'Trial 8'!DX44)","v":{"v":27204.760845086977,"d":"$27,205"}},{"$f":"STDEV('Trial 1'!DY44,'Trial 2'!DY44,'Trial 3'!DY44,'Trial 4'!DY44,'Trial 5'!DY44,'Trial 6'!DY44,'Trial 7'!DY44,'Trial 8'!DY44)","v":{"v":36730.83808210329,"d":"$36,731"}},{"$f":"STDEV('Trial 1'!DZ44,'Trial 2'!DZ44,'Trial 3'!DZ44,'Trial 4'!DZ44,'Trial 5'!DZ44,'Trial 6'!DZ44,'Trial 7'!DZ44,'Trial 8'!DZ44)","v":{"v":16361.165470919657,"d":"$16,361"}},{"$f":"SUM(DO62:DZ62)","v":{"v":342256.19993514824,"d":"$342,256"}},{"$f":"STDEV('Trial 1'!EB44,'Trial 2'!EB44,'Trial 3'!EB44,'Trial 4'!EB44,'Trial 5'!EB44,'Trial 6'!EB44,'Trial 7'!EB44,'Trial 8'!EB44)","v":{"v":23316.639743943702,"d":"$23,317"}},{"$f":"STDEV('Trial 1'!EC44,'Trial 2'!EC44,'Trial 3'!EC44,'Trial 4'!EC44,'Trial 5'!EC44,'Trial 6'!EC44,'Trial 7'!EC44,'Trial 8'!EC44)","v":{"v":34759.39715224059,"d":"$34,759"}},{"$f":"STDEV('Trial 1'!ED44,'Trial 2'!ED44,'Trial 3'!ED44,'Trial 4'!ED44,'Trial 5'!ED44,'Trial 6'!ED44,'Trial 7'!ED44,'Trial 8'!ED44)","v":{"v":24763.626431747896,"d":"$24,764"}},{"$f":"STDEV('Trial 1'!EE44,'Trial 2'!EE44,'Trial 3'!EE44,'Trial 4'!EE44,'Trial 5'!EE44,'Trial 6'!EE44,'Trial 7'!EE44,'Trial 8'!EE44)","v":{"v":34374.3465753421,"d":"$34,374"}},{"$f":"STDEV('Trial 1'!EF44,'Trial 2'!EF44,'Trial 3'!EF44,'Trial 4'!EF44,'Trial 5'!EF44,'Trial 6'!EF44,'Trial 7'!EF44,'Trial 8'!EF44)","v":{"v":28346.769666910728,"d":"$28,347"}},{"$f":"STDEV('Trial 1'!EG44,'Trial 2'!EG44,'Trial 3'!EG44,'Trial 4'!EG44,'Trial 5'!EG44,'Trial 6'!EG44,'Trial 7'!EG44,'Trial 8'!EG44)","v":{"v":27293.154140065024,"d":"$27,293"}},{"$f":"STDEV('Trial 1'!EH44,'Trial 2'!EH44,'Trial 3'!EH44,'Trial 4'!EH44,'Trial 5'!EH44,'Trial 6'!EH44,'Trial 7'!EH44,'Trial 8'!EH44)","v":{"v":28563.00392313609,"d":"$28,563"}},{"$f":"STDEV('Trial 1'!EI44,'Trial 2'!EI44,'Trial 3'!EI44,'Trial 4'!EI44,'Trial 5'!EI44,'Trial 6'!EI44,'Trial 7'!EI44,'Trial 8'!EI44)","v":{"v":41766.11732005336,"d":"$41,766"}},{"$f":"STDEV('Trial 1'!EJ44,'Trial 2'!EJ44,'Trial 3'!EJ44,'Trial 4'!EJ44,'Trial 5'!EJ44,'Trial 6'!EJ44,'Trial 7'!EJ44,'Trial 8'!EJ44)","v":{"v":28175.683907596318,"d":"$28,176"}},{"$f":"STDEV('Trial 1'!EK44,'Trial 2'!EK44,'Trial 3'!EK44,'Trial 4'!EK44,'Trial 5'!EK44,'Trial 6'!EK44,'Trial 7'!EK44,'Trial 8'!EK44)","v":{"v":20639.0844132449,"d":"$20,639"}},{"$f":"STDEV('Trial 1'!EL44,'Trial 2'!EL44,'Trial 3'!EL44,'Trial 4'!EL44,'Trial 5'!EL44,'Trial 6'!EL44,'Trial 7'!EL44,'Trial 8'!EL44)","v":{"v":29546.442937913504,"d":"$29,546"}},{"$f":"STDEV('Trial 1'!EM44,'Trial 2'!EM44,'Trial 3'!EM44,'Trial 4'!EM44,'Trial 5'!EM44,'Trial 6'!EM44,'Trial 7'!EM44,'Trial 8'!EM44)","v":{"v":25198.890798287703,"d":"$25,199"}},{"$f":"SUM(EB62:EM62)","v":{"v":346743.1570104819,"d":"$346,743"}}]
[]
[{"$f":"Labels!B69","v":"Potential Output"},{"$f":"AVERAGE('Trial 1'!B45,'Trial 2'!B45,'Trial 3'!B45,'Trial 4'!B45,'Trial 5'!B45,'Trial 6'!B45,'Trial 7'!B45,'Trial 8'!B45)","v":{"v":1166666.6666666667,"d":"$1,166,667"}},{"$f":"AVERAGE('Trial 1'!C45,'Trial 2'!C45,'Trial 3'!C45,'Trial 4'!C45,'Trial 5'!C45,'Trial 6'!C45,'Trial 7'!C45,'Trial 8'!C45)","v":{"v":1166666.6666666667,"d":"$1,166,667"}},{"$f":"AVERAGE('Trial 1'!D45,'Trial 2'!D45,'Trial 3'!D45,'Trial 4'!D45,'Trial 5'!D45,'Trial 6'!D45,'Trial 7'!D45,'Trial 8'!D45)","v":{"v":1166621.37837913,"d":"$1,166,621"}},{"$f":"AVERAGE('Trial 1'!E45,'Trial 2'!E45,'Trial 3'!E45,'Trial 4'!E45,'Trial 5'!E45,'Trial 6'!E45,'Trial 7'!E45,'Trial 8'!E45)","v":{"v":1166535.044041092,"d":"$1,166,535"}},{"$f":"AVERAGE('Trial 1'!F45,'Trial 2'!F45,'Trial 3'!F45,'Trial 4'!F45,'Trial 5'!F45,'Trial 6'!F45,'Trial 7'!F45,'Trial 8'!F45)","v":{"v":1166412.6555998365,"d":"$1,166,413"}},{"$f":"AVERAGE('Trial 1'!G45,'Trial 2'!G45,'Trial 3'!G45,'Trial 4'!G45,'Trial 5'!G45,'Trial 6'!G45,'Trial 7'!G45,'Trial 8'!G45)","v":{"v":1166256.8182448721,"d":"$1,166,257"}},{"$f":"AVERAGE('Trial 1'!H45,'Trial 2'!H45,'Trial 3'!H45,'Trial 4'!H45,'Trial 5'!H45,'Trial 6'!H45,'Trial 7'!H45,'Trial 8'!H45)","v":{"v":1166070.5225373115,"d":"$1,166,071"}},{"$f":"AVERAGE('Trial 1'!I45,'Trial 2'!I45,'Trial 3'!I45,'Trial 4'!I45,'Trial 5'!I45,'Trial 6'!I45,'Trial 7'!I45,'Trial 8'!I45)","v":{"v":1165852.01787095,"d":"$1,165,852"}},{"$f":"AVERAGE('Trial 1'!J45,'Trial 2'!J45,'Trial 3'!J45,'Trial 4'!J45,'Trial 5'!J45,'Trial 6'!J45,'Trial 7'!J45,'Trial 8'!J45)","v":{"v":1165598.6703948225,"d":"$1,165,599"}},{"$f":"AVERAGE('Trial 1'!K45,'Trial 2'!K45,'Trial 3'!K45,'Trial 4'!K45,'Trial 5'!K45,'Trial 6'!K45,'Trial 7'!K45,'Trial 8'!K45)","v":{"v":1165313.2260320869,"d":"$1,165,313"}},{"$f":"AVERAGE('Trial 1'!L45,'Trial 2'!L45,'Trial 3'!L45,'Trial 4'!L45,'Trial 5'!L45,'Trial 6'!L45,'Trial 7'!L45,'Trial 8'!L45)","v":{"v":1164996.9429274949,"d":"$1,164,997"}},{"$f":"AVERAGE('Trial 1'!M45,'Trial 2'!M45,'Trial 3'!M45,'Trial 4'!M45,'Trial 5'!M45,'Trial 6'!M45,'Trial 7'!M45,'Trial 8'!M45)","v":{"v":1164650.777471938,"d":"$1,164,651"}},{"$f":"SUM(B64:M64)","v":{"v":13991641.386832869,"d":"$13,991,641"}},{"$f":"AVERAGE('Trial 1'!O45,'Trial 2'!O45,'Trial 3'!O45,'Trial 4'!O45,'Trial 5'!O45,'Trial 6'!O45,'Trial 7'!O45,'Trial 8'!O45)","v":{"v":1164275.232072961,"d":"$1,164,275"}},{"$f":"AVERAGE('Trial 1'!P45,'Trial 2'!P45,'Trial 3'!P45,'Trial 4'!P45,'Trial 5'!P45,'Trial 6'!P45,'Trial 7'!P45,'Trial 8'!P45)","v":{"v":1163870.0176627093,"d":"$1,163,870"}},{"$f":"AVERAGE('Trial 1'!Q45,'Trial 2'!Q45,'Trial 3'!Q45,'Trial 4'!Q45,'Trial 5'!Q45,'Trial 6'!Q45,'Trial 7'!Q45,'Trial 8'!Q45)","v":{"v":1163438.32210435,"d":"$1,163,438"}},{"$f":"AVERAGE('Trial 1'!R45,'Trial 2'!R45,'Trial 3'!R45,'Trial 4'!R45,'Trial 5'!R45,'Trial 6'!R45,'Trial 7'!R45,'Trial 8'!R45)","v":{"v":1162980.3187172767,"d":"$1,162,980"}},{"$f":"AVERAGE('Trial 1'!S45,'Trial 2'!S45,'Trial 3'!S45,'Trial 4'!S45,'Trial 5'!S45,'Trial 6'!S45,'Trial 7'!S45,'Trial 8'!S45)","v":{"v":1162497.716334135,"d":"$1,162,498"}},{"$f":"AVERAGE('Trial 1'!T45,'Trial 2'!T45,'Trial 3'!T45,'Trial 4'!T45,'Trial 5'!T45,'Trial 6'!T45,'Trial 7'!T45,'Trial 8'!T45)","v":{"v":1161992.1991568855,"d":"$1,161,992"}},{"$f":"AVERAGE('Trial 1'!U45,'Trial 2'!U45,'Trial 3'!U45,'Trial 4'!U45,'Trial 5'!U45,'Trial 6'!U45,'Trial 7'!U45,'Trial 8'!U45)","v":{"v":1161456.855822748,"d":"$1,161,457"}},{"$f":"AVERAGE('Trial 1'!V45,'Trial 2'!V45,'Trial 3'!V45,'Trial 4'!V45,'Trial 5'!V45,'Trial 6'!V45,'Trial 7'!V45,'Trial 8'!V45)","v":{"v":1160899.1356113895,"d":"$1,160,899"}},{"$f":"AVERAGE('Trial 1'!W45,'Trial 2'!W45,'Trial 3'!W45,'Trial 4'!W45,'Trial 5'!W45,'Trial 6'!W45,'Trial 7'!W45,'Trial 8'!W45)","v":{"v":1160315.1975825094,"d":"$1,160,315"}},{"$f":"AVERAGE('Trial 1'!X45,'Trial 2'!X45,'Trial 3'!X45,'Trial 4'!X45,'Trial 5'!X45,'Trial 6'!X45,'Trial 7'!X45,'Trial 8'!X45)","v":{"v":1159706.4329539072,"d":"$1,159,706"}},{"$f":"AVERAGE('Trial 1'!Y45,'Trial 2'!Y45,'Trial 3'!Y45,'Trial 4'!Y45,'Trial 5'!Y45,'Trial 6'!Y45,'Trial 7'!Y45,'Trial 8'!Y45)","v":{"v":1159079.0275352944,"d":"$1,159,079"}},{"$f":"AVERAGE('Trial 1'!Z45,'Trial 2'!Z45,'Trial 3'!Z45,'Trial 4'!Z45,'Trial 5'!Z45,'Trial 6'!Z45,'Trial 7'!Z45,'Trial 8'!Z45)","v":{"v":1158429.3091423227,"d":"$1,158,429"}},{"$f":"SUM(O64:Z64)","v":{"v":13938939.764696488,"d":"$13,938,940"}},{"$f":"AVERAGE('Trial 1'!AB45,'Trial 2'!AB45,'Trial 3'!AB45,'Trial 4'!AB45,'Trial 5'!AB45,'Trial 6'!AB45,'Trial 7'!AB45,'Trial 8'!AB45)","v":{"v":1157758.4033603612,"d":"$1,157,758"}},{"$f":"AVERAGE('Trial 1'!AC45,'Trial 2'!AC45,'Trial 3'!AC45,'Trial 4'!AC45,'Trial 5'!AC45,'Trial 6'!AC45,'Trial 7'!AC45,'Trial 8'!AC45)","v":{"v":1157062.695552829,"d":"$1,157,063"}},{"$f":"AVERAGE('Trial 1'!AD45,'Trial 2'!AD45,'Trial 3'!AD45,'Trial 4'!AD45,'Trial 5'!AD45,'Trial 6'!AD45,'Trial 7'!AD45,'Trial 8'!AD45)","v":{"v":1156348.0038761464,"d":"$1,156,348"}},{"$f":"AVERAGE('Trial 1'!AE45,'Trial 2'!AE45,'Trial 3'!AE45,'Trial 4'!AE45,'Trial 5'!AE45,'Trial 6'!AE45,'Trial 7'!AE45,'Trial 8'!AE45)","v":{"v":1155616.9101870607,"d":"$1,155,617"}},{"$f":"AVERAGE('Trial 1'!AF45,'Trial 2'!AF45,'Trial 3'!AF45,'Trial 4'!AF45,'Trial 5'!AF45,'Trial 6'!AF45,'Trial 7'!AF45,'Trial 8'!AF45)","v":{"v":1154868.5842499633,"d":"$1,154,869"}},{"$f":"AVERAGE('Trial 1'!AG45,'Trial 2'!AG45,'Trial 3'!AG45,'Trial 4'!AG45,'Trial 5'!AG45,'Trial 6'!AG45,'Trial 7'!AG45,'Trial 8'!AG45)","v":{"v":1154103.0037373574,"d":"$1,154,103"}},{"$f":"AVERAGE('Trial 1'!AH45,'Trial 2'!AH45,'Trial 3'!AH45,'Trial 4'!AH45,'Trial 5'!AH45,'Trial 6'!AH45,'Trial 7'!AH45,'Trial 8'!AH45)","v":{"v":1153317.5793788945,"d":"$1,153,318"}},{"$f":"AVERAGE('Trial 1'!AI45,'Trial 2'!AI45,'Trial 3'!AI45,'Trial 4'!AI45,'Trial 5'!AI45,'Trial 6'!AI45,'Trial 7'!AI45,'Trial 8'!AI45)","v":{"v":1152517.4594529674,"d":"$1,152,517"}},{"$f":"AVERAGE('Trial 1'!AJ45,'Trial 2'!AJ45,'Trial 3'!AJ45,'Trial 4'!AJ45,'Trial 5'!AJ45,'Trial 6'!AJ45,'Trial 7'!AJ45,'Trial 8'!AJ45)","v":{"v":1151705.0202469807,"d":"$1,151,705"}},{"$f":"AVERAGE('Trial 1'!AK45,'Trial 2'!AK45,'Trial 3'!AK45,'Trial 4'!AK45,'Trial 5'!AK45,'Trial 6'!AK45,'Trial 7'!AK45,'Trial 8'!AK45)","v":{"v":1150874.1947532527,"d":"$1,150,874"}},{"$f":"AVERAGE('Trial 1'!AL45,'Trial 2'!AL45,'Trial 3'!AL45,'Trial 4'!AL45,'Trial 5'!AL45,'Trial 6'!AL45,'Trial 7'!AL45,'Trial 8'!AL45)","v":{"v":1150029.5911350686,"d":"$1,150,030"}},{"$f":"AVERAGE('Trial 1'!AM45,'Trial 2'!AM45,'Trial 3'!AM45,'Trial 4'!AM45,'Trial 5'!AM45,'Trial 6'!AM45,'Trial 7'!AM45,'Trial 8'!AM45)","v":{"v":1149172.624437654,"d":"$1,149,173"}},{"$f":"SUM(AB64:AM64)","v":{"v":13843374.070368534,"d":"$13,843,374"}},{"$f":"AVERAGE('Trial 1'!AO45,'Trial 2'!AO45,'Trial 3'!AO45,'Trial 4'!AO45,'Trial 5'!AO45,'Trial 6'!AO45,'Trial 7'!AO45,'Trial 8'!AO45)","v":{"v":1148304.4965910306,"d":"$1,148,304"}},{"$f":"AVERAGE('Trial 1'!AP45,'Trial 2'!AP45,'Trial 3'!AP45,'Trial 4'!AP45,'Trial 5'!AP45,'Trial 6'!AP45,'Trial 7'!AP45,'Trial 8'!AP45)","v":{"v":1147421.5006055604,"d":"$1,147,422"}},{"$f":"AVERAGE('Trial 1'!AQ45,'Trial 2'!AQ45,'Trial 3'!AQ45,'Trial 4'!AQ45,'Trial 5'!AQ45,'Trial 6'!AQ45,'Trial 7'!AQ45,'Trial 8'!AQ45)","v":{"v":1146526.4297849294,"d":"$1,146,526"}},{"$f":"AVERAGE('Trial 1'!AR45,'Trial 2'!AR45,'Trial 3'!AR45,'Trial 4'!AR45,'Trial 5'!AR45,'Trial 6'!AR45,'Trial 7'!AR45,'Trial 8'!AR45)","v":{"v":1145622.2722052778,"d":"$1,145,622"}},{"$f":"AVERAGE('Trial 1'!AS45,'Trial 2'!AS45,'Trial 3'!AS45,'Trial 4'!AS45,'Trial 5'!AS45,'Trial 6'!AS45,'Trial 7'!AS45,'Trial 8'!AS45)","v":{"v":1144704.8236269574,"d":"$1,144,705"}},{"$f":"AVERAGE('Trial 1'!AT45,'Trial 2'!AT45,'Trial 3'!AT45,'Trial 4'!AT45,'Trial 5'!AT45,'Trial 6'!AT45,'Trial 7'!AT45,'Trial 8'!AT45)","v":{"v":1143776.1903509395,"d":"$1,143,776"}},{"$f":"AVERAGE('Trial 1'!AU45,'Trial 2'!AU45,'Trial 3'!AU45,'Trial 4'!AU45,'Trial 5'!AU45,'Trial 6'!AU45,'Trial 7'!AU45,'Trial 8'!AU45)","v":{"v":1142839.456515132,"d":"$1,142,839"}},{"$f":"AVERAGE('Trial 1'!AV45,'Trial 2'!AV45,'Trial 3'!AV45,'Trial 4'!AV45,'Trial 5'!AV45,'Trial 6'!AV45,'Trial 7'!AV45,'Trial 8'!AV45)","v":{"v":1141892.4049065895,"d":"$1,141,892"}},{"$f":"AVERAGE('Trial 1'!AW45,'Trial 2'!AW45,'Trial 3'!AW45,'Trial 4'!AW45,'Trial 5'!AW45,'Trial 6'!AW45,'Trial 7'!AW45,'Trial 8'!AW45)","v":{"v":1140934.728283146,"d":"$1,140,935"}},{"$f":"AVERAGE('Trial 1'!AX45,'Trial 2'!AX45,'Trial 3'!AX45,'Trial 4'!AX45,'Trial 5'!AX45,'Trial 6'!AX45,'Trial 7'!AX45,'Trial 8'!AX45)","v":{"v":1139968.1060601617,"d":"$1,139,968"}},{"$f":"AVERAGE('Trial 1'!AY45,'Trial 2'!AY45,'Trial 3'!AY45,'Trial 4'!AY45,'Trial 5'!AY45,'Trial 6'!AY45,'Trial 7'!AY45,'Trial 8'!AY45)","v":{"v":1138990.0791129563,"d":"$1,138,990"}},{"$f":"AVERAGE('Trial 1'!AZ45,'Trial 2'!AZ45,'Trial 3'!AZ45,'Trial 4'!AZ45,'Trial 5'!AZ45,'Trial 6'!AZ45,'Trial 7'!AZ45,'Trial 8'!AZ45)","v":{"v":1138002.804578253,"d":"$1,138,003"}},{"$f":"SUM(AO64:AZ64)","v":{"v":13718983.292620935,"d":"$13,718,983"}},{"$f":"AVERAGE('Trial 1'!BB45,'Trial 2'!BB45,'Trial 3'!BB45,'Trial 4'!BB45,'Trial 5'!BB45,'Trial 6'!BB45,'Trial 7'!BB45,'Trial 8'!BB45)","v":{"v":1137007.9154118071,"d":"$1,137,008"}},{"$f":"AVERAGE('Trial 1'!BC45,'Trial 2'!BC45,'Trial 3'!BC45,'Trial 4'!BC45,'Trial 5'!BC45,'Trial 6'!BC45,'Trial 7'!BC45,'Trial 8'!BC45)","v":{"v":1136002.1464735006,"d":"$1,136,002"}},{"$f":"AVERAGE('Trial 1'!BD45,'Trial 2'!BD45,'Trial 3'!BD45,'Trial 4'!BD45,'Trial 5'!BD45,'Trial 6'!BD45,'Trial 7'!BD45,'Trial 8'!BD45)","v":{"v":1134986.4115544965,"d":"$1,134,986"}},{"$f":"AVERAGE('Trial 1'!BE45,'Trial 2'!BE45,'Trial 3'!BE45,'Trial 4'!BE45,'Trial 5'!BE45,'Trial 6'!BE45,'Trial 7'!BE45,'Trial 8'!BE45)","v":{"v":1133963.0967024455,"d":"$1,133,963"}},{"$f":"AVERAGE('Trial 1'!BF45,'Trial 2'!BF45,'Trial 3'!BF45,'Trial 4'!BF45,'Trial 5'!BF45,'Trial 6'!BF45,'Trial 7'!BF45,'Trial 8'!BF45)","v":{"v":1132933.410892067,"d":"$1,132,933"}},{"$f":"AVERAGE('Trial 1'!BG45,'Trial 2'!BG45,'Trial 3'!BG45,'Trial 4'!BG45,'Trial 5'!BG45,'Trial 6'!BG45,'Trial 7'!BG45,'Trial 8'!BG45)","v":{"v":1131896.8962961996,"d":"$1,131,897"}},{"$f":"AVERAGE('Trial 1'!BH45,'Trial 2'!BH45,'Trial 3'!BH45,'Trial 4'!BH45,'Trial 5'!BH45,'Trial 6'!BH45,'Trial 7'!BH45,'Trial 8'!BH45)","v":{"v":1130855.597060017,"d":"$1,130,856"}},{"$f":"AVERAGE('Trial 1'!BI45,'Trial 2'!BI45,'Trial 3'!BI45,'Trial 4'!BI45,'Trial 5'!BI45,'Trial 6'!BI45,'Trial 7'!BI45,'Trial 8'!BI45)","v":{"v":1129809.7998983152,"d":"$1,129,810"}},{"$f":"AVERAGE('Trial 1'!BJ45,'Trial 2'!BJ45,'Trial 3'!BJ45,'Trial 4'!BJ45,'Trial 5'!BJ45,'Trial 6'!BJ45,'Trial 7'!BJ45,'Trial 8'!BJ45)","v":{"v":1128755.8339442373,"d":"$1,128,756"}},{"$f":"AVERAGE('Trial 1'!BK45,'Trial 2'!BK45,'Trial 3'!BK45,'Trial 4'!BK45,'Trial 5'!BK45,'Trial 6'!BK45,'Trial 7'!BK45,'Trial 8'!BK45)","v":{"v":1127695.7142483715,"d":"$1,127,696"}},{"$f":"AVERAGE('Trial 1'!BL45,'Trial 2'!BL45,'Trial 3'!BL45,'Trial 4'!BL45,'Trial 5'!BL45,'Trial 6'!BL45,'Trial 7'!BL45,'Trial 8'!BL45)","v":{"v":1126632.5111690902,"d":"$1,126,633"}},{"$f":"AVERAGE('Trial 1'!BM45,'Trial 2'!BM45,'Trial 3'!BM45,'Trial 4'!BM45,'Trial 5'!BM45,'Trial 6'!BM45,'Trial 7'!BM45,'Trial 8'!BM45)","v":{"v":1125564.2606005038,"d":"$1,125,564"}},{"$f":"SUM(BB64:BM64)","v":{"v":13576103.594251052,"d":"$13,576,104"}},{"$f":"AVERAGE('Trial 1'!BO45,'Trial 2'!BO45,'Trial 3'!BO45,'Trial 4'!BO45,'Trial 5'!BO45,'Trial 6'!BO45,'Trial 7'!BO45,'Trial 8'!BO45)","v":{"v":1124493.5353837013,"d":"$1,124,494"}},{"$f":"AVERAGE('Trial 1'!BP45,'Trial 2'!BP45,'Trial 3'!BP45,'Trial 4'!BP45,'Trial 5'!BP45,'Trial 6'!BP45,'Trial 7'!BP45,'Trial 8'!BP45)","v":{"v":1123418.657410862,"d":"$1,123,419"}},{"$f":"AVERAGE('Trial 1'!BQ45,'Trial 2'!BQ45,'Trial 3'!BQ45,'Trial 4'!BQ45,'Trial 5'!BQ45,'Trial 6'!BQ45,'Trial 7'!BQ45,'Trial 8'!BQ45)","v":{"v":1122339.689120129,"d":"$1,122,340"}},{"$f":"AVERAGE('Trial 1'!BR45,'Trial 2'!BR45,'Trial 3'!BR45,'Trial 4'!BR45,'Trial 5'!BR45,'Trial 6'!BR45,'Trial 7'!BR45,'Trial 8'!BR45)","v":{"v":1121258.1659467854,"d":"$1,121,258"}},{"$f":"AVERAGE('Trial 1'!BS45,'Trial 2'!BS45,'Trial 3'!BS45,'Trial 4'!BS45,'Trial 5'!BS45,'Trial 6'!BS45,'Trial 7'!BS45,'Trial 8'!BS45)","v":{"v":1120176.4120247413,"d":"$1,120,176"}},{"$f":"AVERAGE('Trial 1'!BT45,'Trial 2'!BT45,'Trial 3'!BT45,'Trial 4'!BT45,'Trial 5'!BT45,'Trial 6'!BT45,'Trial 7'!BT45,'Trial 8'!BT45)","v":{"v":1119093.9157793752,"d":"$1,119,094"}},{"$f":"AVERAGE('Trial 1'!BU45,'Trial 2'!BU45,'Trial 3'!BU45,'Trial 4'!BU45,'Trial 5'!BU45,'Trial 6'!BU45,'Trial 7'!BU45,'Trial 8'!BU45)","v":{"v":1118007.5072458822,"d":"$1,118,008"}},{"$f":"AVERAGE('Trial 1'!BV45,'Trial 2'!BV45,'Trial 3'!BV45,'Trial 4'!BV45,'Trial 5'!BV45,'Trial 6'!BV45,'Trial 7'!BV45,'Trial 8'!BV45)","v":{"v":1116922.5225283252,"d":"$1,116,923"}},{"$f":"AVERAGE('Trial 1'!BW45,'Trial 2'!BW45,'Trial 3'!BW45,'Trial 4'!BW45,'Trial 5'!BW45,'Trial 6'!BW45,'Trial 7'!BW45,'Trial 8'!BW45)","v":{"v":1115833.7124529749,"d":"$1,115,834"}},{"$f":"AVERAGE('Trial 1'!BX45,'Trial 2'!BX45,'Trial 3'!BX45,'Trial 4'!BX45,'Trial 5'!BX45,'Trial 6'!BX45,'Trial 7'!BX45,'Trial 8'!BX45)","v":{"v":1114742.6326753611,"d":"$1,114,743"}},{"$f":"AVERAGE('Trial 1'!BY45,'Trial 2'!BY45,'Trial 3'!BY45,'Trial 4'!BY45,'Trial 5'!BY45,'Trial 6'!BY45,'Trial 7'!BY45,'Trial 8'!BY45)","v":{"v":1113652.821786778,"d":"$1,113,653"}},{"$f":"AVERAGE('Trial 1'!BZ45,'Trial 2'!BZ45,'Trial 3'!BZ45,'Trial 4'!BZ45,'Trial 5'!BZ45,'Trial 6'!BZ45,'Trial 7'!BZ45,'Trial 8'!BZ45)","v":{"v":1112559.6083128823,"d":"$1,112,560"}},{"$f":"SUM(BO64:BZ64)","v":{"v":13422499.180667797,"d":"$13,422,499"}},{"$f":"AVERAGE('Trial 1'!CB45,'Trial 2'!CB45,'Trial 3'!CB45,'Trial 4'!CB45,'Trial 5'!CB45,'Trial 6'!CB45,'Trial 7'!CB45,'Trial 8'!CB45)","v":{"v":1111467.5293314354,"d":"$1,111,468"}},{"$f":"AVERAGE('Trial 1'!CC45,'Trial 2'!CC45,'Trial 3'!CC45,'Trial 4'!CC45,'Trial 5'!CC45,'Trial 6'!CC45,'Trial 7'!CC45,'Trial 8'!CC45)","v":{"v":1110374.5763440272,"d":"$1,110,375"}},{"$f":"AVERAGE('Trial 1'!CD45,'Trial 2'!CD45,'Trial 3'!CD45,'Trial 4'!CD45,'Trial 5'!CD45,'Trial 6'!CD45,'Trial 7'!CD45,'Trial 8'!CD45)","v":{"v":1109280.292387057,"d":"$1,109,280"}},{"$f":"AVERAGE('Trial 1'!CE45,'Trial 2'!CE45,'Trial 3'!CE45,'Trial 4'!CE45,'Trial 5'!CE45,'Trial 6'!CE45,'Trial 7'!CE45,'Trial 8'!CE45)","v":{"v":1108184.4346770612,"d":"$1,108,184"}},{"$f":"AVERAGE('Trial 1'!CF45,'Trial 2'!CF45,'Trial 3'!CF45,'Trial 4'!CF45,'Trial 5'!CF45,'Trial 6'!CF45,'Trial 7'!CF45,'Trial 8'!CF45)","v":{"v":1107089.513596755,"d":"$1,107,090"}},{"$f":"AVERAGE('Trial 1'!CG45,'Trial 2'!CG45,'Trial 3'!CG45,'Trial 4'!CG45,'Trial 5'!CG45,'Trial 6'!CG45,'Trial 7'!CG45,'Trial 8'!CG45)","v":{"v":1105992.1446072338,"d":"$1,105,992"}},{"$f":"AVERAGE('Trial 1'!CH45,'Trial 2'!CH45,'Trial 3'!CH45,'Trial 4'!CH45,'Trial 5'!CH45,'Trial 6'!CH45,'Trial 7'!CH45,'Trial 8'!CH45)","v":{"v":1104894.3640284906,"d":"$1,104,894"}},{"$f":"AVERAGE('Trial 1'!CI45,'Trial 2'!CI45,'Trial 3'!CI45,'Trial 4'!CI45,'Trial 5'!CI45,'Trial 6'!CI45,'Trial 7'!CI45,'Trial 8'!CI45)","v":{"v":1103802.1555117776,"d":"$1,103,802"}},{"$f":"AVERAGE('Trial 1'!CJ45,'Trial 2'!CJ45,'Trial 3'!CJ45,'Trial 4'!CJ45,'Trial 5'!CJ45,'Trial 6'!CJ45,'Trial 7'!CJ45,'Trial 8'!CJ45)","v":{"v":1102710.790595593,"d":"$1,102,711"}},{"$f":"AVERAGE('Trial 1'!CK45,'Trial 2'!CK45,'Trial 3'!CK45,'Trial 4'!CK45,'Trial 5'!CK45,'Trial 6'!CK45,'Trial 7'!CK45,'Trial 8'!CK45)","v":{"v":1101621.5472619294,"d":"$1,101,622"}},{"$f":"AVERAGE('Trial 1'!CL45,'Trial 2'!CL45,'Trial 3'!CL45,'Trial 4'!CL45,'Trial 5'!CL45,'Trial 6'!CL45,'Trial 7'!CL45,'Trial 8'!CL45)","v":{"v":1100533.6940510795,"d":"$1,100,534"}},{"$f":"AVERAGE('Trial 1'!CM45,'Trial 2'!CM45,'Trial 3'!CM45,'Trial 4'!CM45,'Trial 5'!CM45,'Trial 6'!CM45,'Trial 7'!CM45,'Trial 8'!CM45)","v":{"v":1099450.0555759193,"d":"$1,099,450"}},{"$f":"SUM(CB64:CM64)","v":{"v":13265401.097968359,"d":"$13,265,401"}},{"$f":"AVERAGE('Trial 1'!CO45,'Trial 2'!CO45,'Trial 3'!CO45,'Trial 4'!CO45,'Trial 5'!CO45,'Trial 6'!CO45,'Trial 7'!CO45,'Trial 8'!CO45)","v":{"v":1098366.4962361264,"d":"$1,098,366"}},{"$f":"AVERAGE('Trial 1'!CP45,'Trial 2'!CP45,'Trial 3'!CP45,'Trial 4'!CP45,'Trial 5'!CP45,'Trial 6'!CP45,'Trial 7'!CP45,'Trial 8'!CP45)","v":{"v":1097286.8713281825,"d":"$1,097,287"}},{"$f":"AVERAGE('Trial 1'!CQ45,'Trial 2'!CQ45,'Trial 3'!CQ45,'Trial 4'!CQ45,'Trial 5'!CQ45,'Trial 6'!CQ45,'Trial 7'!CQ45,'Trial 8'!CQ45)","v":{"v":1096209.5199027753,"d":"$1,096,210"}},{"$f":"AVERAGE('Trial 1'!CR45,'Trial 2'!CR45,'Trial 3'!CR45,'Trial 4'!CR45,'Trial 5'!CR45,'Trial 6'!CR45,'Trial 7'!CR45,'Trial 8'!CR45)","v":{"v":1095134.6776662152,"d":"$1,095,135"}},{"$f":"AVERAGE('Trial 1'!CS45,'Trial 2'!CS45,'Trial 3'!CS45,'Trial 4'!CS45,'Trial 5'!CS45,'Trial 6'!CS45,'Trial 7'!CS45,'Trial 8'!CS45)","v":{"v":1094062.1221812165,"d":"$1,094,062"}},{"$f":"AVERAGE('Trial 1'!CT45,'Trial 2'!CT45,'Trial 3'!CT45,'Trial 4'!CT45,'Trial 5'!CT45,'Trial 6'!CT45,'Trial 7'!CT45,'Trial 8'!CT45)","v":{"v":1092990.7924487346,"d":"$1,092,991"}},{"$f":"AVERAGE('Trial 1'!CU45,'Trial 2'!CU45,'Trial 3'!CU45,'Trial 4'!CU45,'Trial 5'!CU45,'Trial 6'!CU45,'Trial 7'!CU45,'Trial 8'!CU45)","v":{"v":1091916.3848691885,"d":"$1,091,916"}},{"$f":"AVERAGE('Trial 1'!CV45,'Trial 2'!CV45,'Trial 3'!CV45,'Trial 4'!CV45,'Trial 5'!CV45,'Trial 6'!CV45,'Trial 7'!CV45,'Trial 8'!CV45)","v":{"v":1090841.2002258254,"d":"$1,090,841"}},{"$f":"AVERAGE('Trial 1'!CW45,'Trial 2'!CW45,'Trial 3'!CW45,'Trial 4'!CW45,'Trial 5'!CW45,'Trial 6'!CW45,'Trial 7'!CW45,'Trial 8'!CW45)","v":{"v":1089772.2230604086,"d":"$1,089,772"}},{"$f":"AVERAGE('Trial 1'!CX45,'Trial 2'!CX45,'Trial 3'!CX45,'Trial 4'!CX45,'Trial 5'!CX45,'Trial 6'!CX45,'Trial 7'!CX45,'Trial 8'!CX45)","v":{"v":1088703.9748792974,"d":"$1,088,704"}},{"$f":"AVERAGE('Trial 1'!CY45,'Trial 2'!CY45,'Trial 3'!CY45,'Trial 4'!CY45,'Trial 5'!CY45,'Trial 6'!CY45,'Trial 7'!CY45,'Trial 8'!CY45)","v":{"v":1087636.9779095028,"d":"$1,087,637"}},{"$f":"AVERAGE('Trial 1'!CZ45,'Trial 2'!CZ45,'Trial 3'!CZ45,'Trial 4'!CZ45,'Trial 5'!CZ45,'Trial 6'!CZ45,'Trial 7'!CZ45,'Trial 8'!CZ45)","v":{"v":1086570.4966298812,"d":"$1,086,570"}},{"$f":"SUM(CO64:CZ64)","v":{"v":13109491.737337355,"d":"$13,109,492"}},{"$f":"AVERAGE('Trial 1'!DB45,'Trial 2'!DB45,'Trial 3'!DB45,'Trial 4'!DB45,'Trial 5'!DB45,'Trial 6'!DB45,'Trial 7'!DB45,'Trial 8'!DB45)","v":{"v":1085507.3223032958,"d":"$1,085,507"}},{"$f":"AVERAGE('Trial 1'!DC45,'Trial 2'!DC45,'Trial 3'!DC45,'Trial 4'!DC45,'Trial 5'!DC45,'Trial 6'!DC45,'Trial 7'!DC45,'Trial 8'!DC45)","v":{"v":1084445.1826982815,"d":"$1,084,445"}},{"$f":"AVERAGE('Trial 1'!DD45,'Trial 2'!DD45,'Trial 3'!DD45,'Trial 4'!DD45,'Trial 5'!DD45,'Trial 6'!DD45,'Trial 7'!DD45,'Trial 8'!DD45)","v":{"v":1083386.9626313227,"d":"$1,083,387"}},{"$f":"AVERAGE('Trial 1'!DE45,'Trial 2'!DE45,'Trial 3'!DE45,'Trial 4'!DE45,'Trial 5'!DE45,'Trial 6'!DE45,'Trial 7'!DE45,'Trial 8'!DE45)","v":{"v":1082328.3939435205,"d":"$1,082,328"}},{"$f":"AVERAGE('Trial 1'!DF45,'Trial 2'!DF45,'Trial 3'!DF45,'Trial 4'!DF45,'Trial 5'!DF45,'Trial 6'!DF45,'Trial 7'!DF45,'Trial 8'!DF45)","v":{"v":1081271.0459358008,"d":"$1,081,271"}},{"$f":"AVERAGE('Trial 1'!DG45,'Trial 2'!DG45,'Trial 3'!DG45,'Trial 4'!DG45,'Trial 5'!DG45,'Trial 6'!DG45,'Trial 7'!DG45,'Trial 8'!DG45)","v":{"v":1080217.400415312,"d":"$1,080,217"}},{"$f":"AVERAGE('Trial 1'!DH45,'Trial 2'!DH45,'Trial 3'!DH45,'Trial 4'!DH45,'Trial 5'!DH45,'Trial 6'!DH45,'Trial 7'!DH45,'Trial 8'!DH45)","v":{"v":1079166.036724349,"d":"$1,079,166"}},{"$f":"AVERAGE('Trial 1'!DI45,'Trial 2'!DI45,'Trial 3'!DI45,'Trial 4'!DI45,'Trial 5'!DI45,'Trial 6'!DI45,'Trial 7'!DI45,'Trial 8'!DI45)","v":{"v":1078116.3898743235,"d":"$1,078,116"}},{"$f":"AVERAGE('Trial 1'!DJ45,'Trial 2'!DJ45,'Trial 3'!DJ45,'Trial 4'!DJ45,'Trial 5'!DJ45,'Trial 6'!DJ45,'Trial 7'!DJ45,'Trial 8'!DJ45)","v":{"v":1077068.117855563,"d":"$1,077,068"}},{"$f":"AVERAGE('Trial 1'!DK45,'Trial 2'!DK45,'Trial 3'!DK45,'Trial 4'!DK45,'Trial 5'!DK45,'Trial 6'!DK45,'Trial 7'!DK45,'Trial 8'!DK45)","v":{"v":1076020.67494709,"d":"$1,076,021"}},{"$f":"AVERAGE('Trial 1'!DL45,'Trial 2'!DL45,'Trial 3'!DL45,'Trial 4'!DL45,'Trial 5'!DL45,'Trial 6'!DL45,'Trial 7'!DL45,'Trial 8'!DL45)","v":{"v":1074975.9094295641,"d":"$1,074,976"}},{"$f":"AVERAGE('Trial 1'!DM45,'Trial 2'!DM45,'Trial 3'!DM45,'Trial 4'!DM45,'Trial 5'!DM45,'Trial 6'!DM45,'Trial 7'!DM45,'Trial 8'!DM45)","v":{"v":1073933.4195251553,"d":"$1,073,933"}},{"$f":"SUM(DB64:DM64)","v":{"v":12956436.85628358,"d":"$12,956,437"}},{"$f":"AVERAGE('Trial 1'!DO45,'Trial 2'!DO45,'Trial 3'!DO45,'Trial 4'!DO45,'Trial 5'!DO45,'Trial 6'!DO45,'Trial 7'!DO45,'Trial 8'!DO45)","v":{"v":1072891.8228627068,"d":"$1,072,892"}},{"$f":"AVERAGE('Trial 1'!DP45,'Trial 2'!DP45,'Trial 3'!DP45,'Trial 4'!DP45,'Trial 5'!DP45,'Trial 6'!DP45,'Trial 7'!DP45,'Trial 8'!DP45)","v":{"v":1071851.8455536813,"d":"$1,071,852"}},{"$f":"AVERAGE('Trial 1'!DQ45,'Trial 2'!DQ45,'Trial 3'!DQ45,'Trial 4'!DQ45,'Trial 5'!DQ45,'Trial 6'!DQ45,'Trial 7'!DQ45,'Trial 8'!DQ45)","v":{"v":1070816.8468901848,"d":"$1,070,817"}},{"$f":"AVERAGE('Trial 1'!DR45,'Trial 2'!DR45,'Trial 3'!DR45,'Trial 4'!DR45,'Trial 5'!DR45,'Trial 6'!DR45,'Trial 7'!DR45,'Trial 8'!DR45)","v":{"v":1069783.645036544,"d":"$1,069,784"}},{"$f":"AVERAGE('Trial 1'!DS45,'Trial 2'!DS45,'Trial 3'!DS45,'Trial 4'!DS45,'Trial 5'!DS45,'Trial 6'!DS45,'Trial 7'!DS45,'Trial 8'!DS45)","v":{"v":1068756.4916289267,"d":"$1,068,756"}},{"$f":"AVERAGE('Trial 1'!DT45,'Trial 2'!DT45,'Trial 3'!DT45,'Trial 4'!DT45,'Trial 5'!DT45,'Trial 6'!DT45,'Trial 7'!DT45,'Trial 8'!DT45)","v":{"v":1067732.878420567,"d":"$1,067,733"}},{"$f":"AVERAGE('Trial 1'!DU45,'Trial 2'!DU45,'Trial 3'!DU45,'Trial 4'!DU45,'Trial 5'!DU45,'Trial 6'!DU45,'Trial 7'!DU45,'Trial 8'!DU45)","v":{"v":1066712.5078797368,"d":"$1,066,713"}},{"$f":"AVERAGE('Trial 1'!DV45,'Trial 2'!DV45,'Trial 3'!DV45,'Trial 4'!DV45,'Trial 5'!DV45,'Trial 6'!DV45,'Trial 7'!DV45,'Trial 8'!DV45)","v":{"v":1065698.015359618,"d":"$1,065,698"}},{"$f":"AVERAGE('Trial 1'!DW45,'Trial 2'!DW45,'Trial 3'!DW45,'Trial 4'!DW45,'Trial 5'!DW45,'Trial 6'!DW45,'Trial 7'!DW45,'Trial 8'!DW45)","v":{"v":1064687.659007265,"d":"$1,064,688"}},{"$f":"AVERAGE('Trial 1'!DX45,'Trial 2'!DX45,'Trial 3'!DX45,'Trial 4'!DX45,'Trial 5'!DX45,'Trial 6'!DX45,'Trial 7'!DX45,'Trial 8'!DX45)","v":{"v":1063682.2128787334,"d":"$1,063,682"}},{"$f":"AVERAGE('Trial 1'!DY45,'Trial 2'!DY45,'Trial 3'!DY45,'Trial 4'!DY45,'Trial 5'!DY45,'Trial 6'!DY45,'Trial 7'!DY45,'Trial 8'!DY45)","v":{"v":1062680.5505307298,"d":"$1,062,681"}},{"$f":"AVERAGE('Trial 1'!DZ45,'Trial 2'!DZ45,'Trial 3'!DZ45,'Trial 4'!DZ45,'Trial 5'!DZ45,'Trial 6'!DZ45,'Trial 7'!DZ45,'Trial 8'!DZ45)","v":{"v":1061682.27789173,"d":"$1,061,682"}},{"$f":"SUM(DO64:DZ64)","v":{"v":12806976.753940426,"d":"$12,806,977"}},{"$f":"AVERAGE('Trial 1'!EB45,'Trial 2'!EB45,'Trial 3'!EB45,'Trial 4'!EB45,'Trial 5'!EB45,'Trial 6'!EB45,'Trial 7'!EB45,'Trial 8'!EB45)","v":{"v":1060687.6599623135,"d":"$1,060,688"}},{"$f":"AVERAGE('Trial 1'!EC45,'Trial 2'!EC45,'Trial 3'!EC45,'Trial 4'!EC45,'Trial 5'!EC45,'Trial 6'!EC45,'Trial 7'!EC45,'Trial 8'!EC45)","v":{"v":1059693.3164808638,"d":"$1,059,693"}},{"$f":"AVERAGE('Trial 1'!ED45,'Trial 2'!ED45,'Trial 3'!ED45,'Trial 4'!ED45,'Trial 5'!ED45,'Trial 6'!ED45,'Trial 7'!ED45,'Trial 8'!ED45)","v":{"v":1058703.6769062513,"d":"$1,058,704"}},{"$f":"AVERAGE('Trial 1'!EE45,'Trial 2'!EE45,'Trial 3'!EE45,'Trial 4'!EE45,'Trial 5'!EE45,'Trial 6'!EE45,'Trial 7'!EE45,'Trial 8'!EE45)","v":{"v":1057714.7689094036,"d":"$1,057,715"}},{"$f":"AVERAGE('Trial 1'!EF45,'Trial 2'!EF45,'Trial 3'!EF45,'Trial 4'!EF45,'Trial 5'!EF45,'Trial 6'!EF45,'Trial 7'!EF45,'Trial 8'!EF45)","v":{"v":1056727.905348257,"d":"$1,056,728"}},{"$f":"AVERAGE('Trial 1'!EG45,'Trial 2'!EG45,'Trial 3'!EG45,'Trial 4'!EG45,'Trial 5'!EG45,'Trial 6'!EG45,'Trial 7'!EG45,'Trial 8'!EG45)","v":{"v":1055744.9893767512,"d":"$1,055,745"}},{"$f":"AVERAGE('Trial 1'!EH45,'Trial 2'!EH45,'Trial 3'!EH45,'Trial 4'!EH45,'Trial 5'!EH45,'Trial 6'!EH45,'Trial 7'!EH45,'Trial 8'!EH45)","v":{"v":1054766.3902333812,"d":"$1,054,766"}},{"$f":"AVERAGE('Trial 1'!EI45,'Trial 2'!EI45,'Trial 3'!EI45,'Trial 4'!EI45,'Trial 5'!EI45,'Trial 6'!EI45,'Trial 7'!EI45,'Trial 8'!EI45)","v":{"v":1053789.3677036404,"d":"$1,053,789"}},{"$f":"AVERAGE('Trial 1'!EJ45,'Trial 2'!EJ45,'Trial 3'!EJ45,'Trial 4'!EJ45,'Trial 5'!EJ45,'Trial 6'!EJ45,'Trial 7'!EJ45,'Trial 8'!EJ45)","v":{"v":1052814.8399381586,"d":"$1,052,815"}},{"$f":"AVERAGE('Trial 1'!EK45,'Trial 2'!EK45,'Trial 3'!EK45,'Trial 4'!EK45,'Trial 5'!EK45,'Trial 6'!EK45,'Trial 7'!EK45,'Trial 8'!EK45)","v":{"v":1051839.1509220735,"d":"$1,051,839"}},{"$f":"AVERAGE('Trial 1'!EL45,'Trial 2'!EL45,'Trial 3'!EL45,'Trial 4'!EL45,'Trial 5'!EL45,'Trial 6'!EL45,'Trial 7'!EL45,'Trial 8'!EL45)","v":{"v":1050866.2223126153,"d":"$1,050,866"}},{"$f":"AVERAGE('Trial 1'!EM45,'Trial 2'!EM45,'Trial 3'!EM45,'Trial 4'!EM45,'Trial 5'!EM45,'Trial 6'!EM45,'Trial 7'!EM45,'Trial 8'!EM45)","v":{"v":1049898.3051935695,"d":"$1,049,898"}},{"$f":"SUM(EB64:EM64)","v":{"v":12663246.593287278,"d":"$12,663,247"}}]
[{"$f":"Labels!B70","v":"Potential Output std dev"},{"$f":"STDEV('Trial 1'!B45,'Trial 2'!B45,'Trial 3'!B45,'Trial 4'!B45,'Trial 5'!B45,'Trial 6'!B45,'Trial 7'!B45,'Trial 8'!B45)","v":{"v":0,"d":"$0"}},{"$f":"STDEV('Trial 1'!C45,'Trial 2'!C45,'Trial 3'!C45,'Trial 4'!C45,'Trial 5'!C45,'Trial 6'!C45,'Trial 7'!C45,'Trial 8'!C45)","v":{"v":0,"d":"$0"}},{"$f":"STDEV('Trial 1'!D45,'Trial 2'!D45,'Trial 3'!D45,'Trial 4'!D45,'Trial 5'!D45,'Trial 6'!D45,'Trial 7'!D45,'Trial 8'!D45)","v":{"v":4.022907883725507,"d":"$4"}},{"$f":"STDEV('Trial 1'!E45,'Trial 2'!E45,'Trial 3'!E45,'Trial 4'!E45,'Trial 5'!E45,'Trial 6'!E45,'Trial 7'!E45,'Trial 8'!E45)","v":{"v":7.269122217040802,"d":"$7"}},{"$f":"STDEV('Trial 1'!F45,'Trial 2'!F45,'Trial 3'!F45,'Trial 4'!F45,'Trial 5'!F45,'Trial 6'!F45,'Trial 7'!F45,'Trial 8'!F45)","v":{"v":13.714026637998513,"d":"$14"}},{"$f":"STDEV('Trial 1'!G45,'Trial 2'!G45,'Trial 3'!G45,'Trial 4'!G45,'Trial 5'!G45,'Trial 6'!G45,'Trial 7'!G45,'Trial 8'!G45)","v":{"v":20.205795720540657,"d":"$20"}},{"$f":"STDEV('Trial 1'!H45,'Trial 2'!H45,'Trial 3'!H45,'Trial 4'!H45,'Trial 5'!H45,'Trial 6'!H45,'Trial 7'!H45,'Trial 8'!H45)","v":{"v":29.37835769810151,"d":"$29"}},{"$f":"STDEV('Trial 1'!I45,'Trial 2'!I45,'Trial 3'!I45,'Trial 4'!I45,'Trial 5'!I45,'Trial 6'!I45,'Trial 7'!I45,'Trial 8'!I45)","v":{"v":39.86471172403395,"d":"$40"}},{"$f":"STDEV('Trial 1'!J45,'Trial 2'!J45,'Trial 3'!J45,'Trial 4'!J45,'Trial 5'!J45,'Trial 6'!J45,'Trial 7'!J45,'Trial 8'!J45)","v":{"v":51.65226218875439,"d":"$52"}},{"$f":"STDEV('Trial 1'!K45,'Trial 2'!K45,'Trial 3'!K45,'Trial 4'!K45,'Trial 5'!K45,'Trial 6'!K45,'Trial 7'!K45,'Trial 8'!K45)","v":{"v":63.29156212691315,"d":"$63"}},{"$f":"STDEV('Trial 1'!L45,'Trial 2'!L45,'Trial 3'!L45,'Trial 4'!L45,'Trial 5'!L45,'Trial 6'!L45,'Trial 7'!L45,'Trial 8'!L45)","v":{"v":73.21179476588321,"d":"$73"}},{"$f":"STDEV('Trial 1'!M45,'Trial 2'!M45,'Trial 3'!M45,'Trial 4'!M45,'Trial 5'!M45,'Trial 6'!M45,'Trial 7'!M45,'Trial 8'!M45)","v":{"v":86.0023427767988,"d":"$86"}},{"$f":"SUM(B65:M65)","v":{"v":388.6128837397905,"d":"$389"}},{"$f":"STDEV('Trial 1'!O45,'Trial 2'!O45,'Trial 3'!O45,'Trial 4'!O45,'Trial 5'!O45,'Trial 6'!O45,'Trial 7'!O45,'Trial 8'!O45)","v":{"v":101.64469768124314,"d":"$102"}},{"$f":"STDEV('Trial 1'!P45,'Trial 2'!P45,'Trial 3'!P45,'Trial 4'!P45,'Trial 5'!P45,'Trial 6'!P45,'Trial 7'!P45,'Trial 8'!P45)","v":{"v":118.68434280554402,"d":"$119"}},{"$f":"STDEV('Trial 1'!Q45,'Trial 2'!Q45,'Trial 3'!Q45,'Trial 4'!Q45,'Trial 5'!Q45,'Trial 6'!Q45,'Trial 7'!Q45,'Trial 8'!Q45)","v":{"v":135.94416676065853,"d":"$136"}},{"$f":"STDEV('Trial 1'!R45,'Trial 2'!R45,'Trial 3'!R45,'Trial 4'!R45,'Trial 5'!R45,'Trial 6'!R45,'Trial 7'!R45,'Trial 8'!R45)","v":{"v":153.68439001851524,"d":"$154"}},{"$f":"STDEV('Trial 1'!S45,'Trial 2'!S45,'Trial 3'!S45,'Trial 4'!S45,'Trial 5'!S45,'Trial 6'!S45,'Trial 7'!S45,'Trial 8'!S45)","v":{"v":169.09619226701207,"d":"$169"}},{"$f":"STDEV('Trial 1'!T45,'Trial 2'!T45,'Trial 3'!T45,'Trial 4'!T45,'Trial 5'!T45,'Trial 6'!T45,'Trial 7'!T45,'Trial 8'!T45)","v":{"v":185.96582596938674,"d":"$186"}},{"$f":"STDEV('Trial 1'!U45,'Trial 2'!U45,'Trial 3'!U45,'Trial 4'!U45,'Trial 5'!U45,'Trial 6'!U45,'Trial 7'!U45,'Trial 8'!U45)","v":{"v":203.25330448343033,"d":"$203"}},{"$f":"STDEV('Trial 1'!V45,'Trial 2'!V45,'Trial 3'!V45,'Trial 4'!V45,'Trial 5'!V45,'Trial 6'!V45,'Trial 7'!V45,'Trial 8'!V45)","v":{"v":217.3843673756505,"d":"$217"}},{"$f":"STDEV('Trial 1'!W45,'Trial 2'!W45,'Trial 3'!W45,'Trial 4'!W45,'Trial 5'!W45,'Trial 6'!W45,'Trial 7'!W45,'Trial 8'!W45)","v":{"v":229.8197174608685,"d":"$230"}},{"$f":"STDEV('Trial 1'!X45,'Trial 2'!X45,'Trial 3'!X45,'Trial 4'!X45,'Trial 5'!X45,'Trial 6'!X45,'Trial 7'!X45,'Trial 8'!X45)","v":{"v":242.17675506143976,"d":"$242"}},{"$f":"STDEV('Trial 1'!Y45,'Trial 2'!Y45,'Trial 3'!Y45,'Trial 4'!Y45,'Trial 5'!Y45,'Trial 6'!Y45,'Trial 7'!Y45,'Trial 8'!Y45)","v":{"v":253.71124601831116,"d":"$254"}},{"$f":"STDEV('Trial 1'!Z45,'Trial 2'!Z45,'Trial 3'!Z45,'Trial 4'!Z45,'Trial 5'!Z45,'Trial 6'!Z45,'Trial 7'!Z45,'Trial 8'!Z45)","v":{"v":269.1959323845245,"d":"$269"}},{"$f":"SUM(O65:Z65)","v":{"v":2280.5609382865846,"d":"$2,281"}},{"$f":"STDEV('Trial 1'!AB45,'Trial 2'!AB45,'Trial 3'!AB45,'Trial 4'!AB45,'Trial 5'!AB45,'Trial 6'!AB45,'Trial 7'!AB45,'Trial 8'!AB45)","v":{"v":286.90615001031057,"d":"$287"}},{"$f":"STDEV('Trial 1'!AC45,'Trial 2'!AC45,'Trial 3'!AC45,'Trial 4'!AC45,'Trial 5'!AC45,'Trial 6'!AC45,'Trial 7'!AC45,'Trial 8'!AC45)","v":{"v":303.0058818097305,"d":"$303"}},{"$f":"STDEV('Trial 1'!AD45,'Trial 2'!AD45,'Trial 3'!AD45,'Trial 4'!AD45,'Trial 5'!AD45,'Trial 6'!AD45,'Trial 7'!AD45,'Trial 8'!AD45)","v":{"v":316.6401743928326,"d":"$317"}},{"$f":"STDEV('Trial 1'!AE45,'Trial 2'!AE45,'Trial 3'!AE45,'Trial 4'!AE45,'Trial 5'!AE45,'Trial 6'!AE45,'Trial 7'!AE45,'Trial 8'!AE45)","v":{"v":331.63515380016366,"d":"$332"}},{"$f":"STDEV('Trial 1'!AF45,'Trial 2'!AF45,'Trial 3'!AF45,'Trial 4'!AF45,'Trial 5'!AF45,'Trial 6'!AF45,'Trial 7'!AF45,'Trial 8'!AF45)","v":{"v":346.547077012685,"d":"$347"}},{"$f":"STDEV('Trial 1'!AG45,'Trial 2'!AG45,'Trial 3'!AG45,'Trial 4'!AG45,'Trial 5'!AG45,'Trial 6'!AG45,'Trial 7'!AG45,'Trial 8'!AG45)","v":{"v":364.68235908882644,"d":"$365"}},{"$f":"STDEV('Trial 1'!AH45,'Trial 2'!AH45,'Trial 3'!AH45,'Trial 4'!AH45,'Trial 5'!AH45,'Trial 6'!AH45,'Trial 7'!AH45,'Trial 8'!AH45)","v":{"v":385.1599046714466,"d":"$385"}},{"$f":"STDEV('Trial 1'!AI45,'Trial 2'!AI45,'Trial 3'!AI45,'Trial 4'!AI45,'Trial 5'!AI45,'Trial 6'!AI45,'Trial 7'!AI45,'Trial 8'!AI45)","v":{"v":405.7022504618092,"d":"$406"}},{"$f":"STDEV('Trial 1'!AJ45,'Trial 2'!AJ45,'Trial 3'!AJ45,'Trial 4'!AJ45,'Trial 5'!AJ45,'Trial 6'!AJ45,'Trial 7'!AJ45,'Trial 8'!AJ45)","v":{"v":426.9164149834739,"d":"$427"}},{"$f":"STDEV('Trial 1'!AK45,'Trial 2'!AK45,'Trial 3'!AK45,'Trial 4'!AK45,'Trial 5'!AK45,'Trial 6'!AK45,'Trial 7'!AK45,'Trial 8'!AK45)","v":{"v":447.4045619203129,"d":"$447"}},{"$f":"STDEV('Trial 1'!AL45,'Trial 2'!AL45,'Trial 3'!AL45,'Trial 4'!AL45,'Trial 5'!AL45,'Trial 6'!AL45,'Trial 7'!AL45,'Trial 8'!AL45)","v":{"v":467.40252200132875,"d":"$467"}},{"$f":"STDEV('Trial 1'!AM45,'Trial 2'!AM45,'Trial 3'!AM45,'Trial 4'!AM45,'Trial 5'!AM45,'Trial 6'!AM45,'Trial 7'!AM45,'Trial 8'!AM45)","v":{"v":486.651902795301,"d":"$487"}},{"$f":"SUM(AB65:AM65)","v":{"v":4568.6543529482215,"d":"$4,569"}},{"$f":"STDEV('Trial 1'!AO45,'Trial 2'!AO45,'Trial 3'!AO45,'Trial 4'!AO45,'Trial 5'!AO45,'Trial 6'!AO45,'Trial 7'!AO45,'Trial 8'!AO45)","v":{"v":506.25013874633146,"d":"$506"}},{"$f":"STDEV('Trial 1'!AP45,'Trial 2'!AP45,'Trial 3'!AP45,'Trial 4'!AP45,'Trial 5'!AP45,'Trial 6'!AP45,'Trial 7'!AP45,'Trial 8'!AP45)","v":{"v":528.4667929130071,"d":"$528"}},{"$f":"STDEV('Trial 1'!AQ45,'Trial 2'!AQ45,'Trial 3'!AQ45,'Trial 4'!AQ45,'Trial 5'!AQ45,'Trial 6'!AQ45,'Trial 7'!AQ45,'Trial 8'!AQ45)","v":{"v":548.2023578738472,"d":"$548"}},{"$f":"STDEV('Trial 1'!AR45,'Trial 2'!AR45,'Trial 3'!AR45,'Trial 4'!AR45,'Trial 5'!AR45,'Trial 6'!AR45,'Trial 7'!AR45,'Trial 8'!AR45)","v":{"v":567.2604607263642,"d":"$567"}},{"$f":"STDEV('Trial 1'!AS45,'Trial 2'!AS45,'Trial 3'!AS45,'Trial 4'!AS45,'Trial 5'!AS45,'Trial 6'!AS45,'Trial 7'!AS45,'Trial 8'!AS45)","v":{"v":587.1463275271332,"d":"$587"}},{"$f":"STDEV('Trial 1'!AT45,'Trial 2'!AT45,'Trial 3'!AT45,'Trial 4'!AT45,'Trial 5'!AT45,'Trial 6'!AT45,'Trial 7'!AT45,'Trial 8'!AT45)","v":{"v":609.4846909184353,"d":"$609"}},{"$f":"STDEV('Trial 1'!AU45,'Trial 2'!AU45,'Trial 3'!AU45,'Trial 4'!AU45,'Trial 5'!AU45,'Trial 6'!AU45,'Trial 7'!AU45,'Trial 8'!AU45)","v":{"v":631.8780561743689,"d":"$632"}},{"$f":"STDEV('Trial 1'!AV45,'Trial 2'!AV45,'Trial 3'!AV45,'Trial 4'!AV45,'Trial 5'!AV45,'Trial 6'!AV45,'Trial 7'!AV45,'Trial 8'!AV45)","v":{"v":651.8306760727494,"d":"$652"}},{"$f":"STDEV('Trial 1'!AW45,'Trial 2'!AW45,'Trial 3'!AW45,'Trial 4'!AW45,'Trial 5'!AW45,'Trial 6'!AW45,'Trial 7'!AW45,'Trial 8'!AW45)","v":{"v":668.5132750987277,"d":"$669"}},{"$f":"STDEV('Trial 1'!AX45,'Trial 2'!AX45,'Trial 3'!AX45,'Trial 4'!AX45,'Trial 5'!AX45,'Trial 6'!AX45,'Trial 7'!AX45,'Trial 8'!AX45)","v":{"v":684.2261823523172,"d":"$684"}},{"$f":"STDEV('Trial 1'!AY45,'Trial 2'!AY45,'Trial 3'!AY45,'Trial 4'!AY45,'Trial 5'!AY45,'Trial 6'!AY45,'Trial 7'!AY45,'Trial 8'!AY45)","v":{"v":698.41649949753,"d":"$698"}},{"$f":"STDEV('Trial 1'!AZ45,'Trial 2'!AZ45,'Trial 3'!AZ45,'Trial 4'!AZ45,'Trial 5'!AZ45,'Trial 6'!AZ45,'Trial 7'!AZ45,'Trial 8'!AZ45)","v":{"v":710.8617185601312,"d":"$711"}},{"$f":"SUM(AO65:AZ65)","v":{"v":7392.537176460943,"d":"$7,393"}},{"$f":"STDEV('Trial 1'!BB45,'Trial 2'!BB45,'Trial 3'!BB45,'Trial 4'!BB45,'Trial 5'!BB45,'Trial 6'!BB45,'Trial 7'!BB45,'Trial 8'!BB45)","v":{"v":723.4485690174525,"d":"$723"}},{"$f":"STDEV('Trial 1'!BC45,'Trial 2'!BC45,'Trial 3'!BC45,'Trial 4'!BC45,'Trial 5'!BC45,'Trial 6'!BC45,'Trial 7'!BC45,'Trial 8'!BC45)","v":{"v":737.5830943939833,"d":"$738"}},{"$f":"STDEV('Trial 1'!BD45,'Trial 2'!BD45,'Trial 3'!BD45,'Trial 4'!BD45,'Trial 5'!BD45,'Trial 6'!BD45,'Trial 7'!BD45,'Trial 8'!BD45)","v":{"v":747.3981246063461,"d":"$747"}},{"$f":"STDEV('Trial 1'!BE45,'Trial 2'!BE45,'Trial 3'!BE45,'Trial 4'!BE45,'Trial 5'!BE45,'Trial 6'!BE45,'Trial 7'!BE45,'Trial 8'!BE45)","v":{"v":755.2941888314207,"d":"$755"}},{"$f":"STDEV('Trial 1'!BF45,'Trial 2'!BF45,'Trial 3'!BF45,'Trial 4'!BF45,'Trial 5'!BF45,'Trial 6'!BF45,'Trial 7'!BF45,'Trial 8'!BF45)","v":{"v":764.9975991847881,"d":"$765"}},{"$f":"STDEV('Trial 1'!BG45,'Trial 2'!BG45,'Trial 3'!BG45,'Trial 4'!BG45,'Trial 5'!BG45,'Trial 6'!BG45,'Trial 7'!BG45,'Trial 8'!BG45)","v":{"v":774.4578769048434,"d":"$774"}},{"$f":"STDEV('Trial 1'!BH45,'Trial 2'!BH45,'Trial 3'!BH45,'Trial 4'!BH45,'Trial 5'!BH45,'Trial 6'!BH45,'Trial 7'!BH45,'Trial 8'!BH45)","v":{"v":785.9788324883395,"d":"$786"}},{"$f":"STDEV('Trial 1'!BI45,'Trial 2'!BI45,'Trial 3'!BI45,'Trial 4'!BI45,'Trial 5'!BI45,'Trial 6'!BI45,'Trial 7'!BI45,'Trial 8'!BI45)","v":{"v":799.697967270653,"d":"$800"}},{"$f":"STDEV('Trial 1'!BJ45,'Trial 2'!BJ45,'Trial 3'!BJ45,'Trial 4'!BJ45,'Trial 5'!BJ45,'Trial 6'!BJ45,'Trial 7'!BJ45,'Trial 8'!BJ45)","v":{"v":816.5345284581338,"d":"$817"}},{"$f":"STDEV('Trial 1'!BK45,'Trial 2'!BK45,'Trial 3'!BK45,'Trial 4'!BK45,'Trial 5'!BK45,'Trial 6'!BK45,'Trial 7'!BK45,'Trial 8'!BK45)","v":{"v":831.8429313388519,"d":"$832"}},{"$f":"STDEV('Trial 1'!BL45,'Trial 2'!BL45,'Trial 3'!BL45,'Trial 4'!BL45,'Trial 5'!BL45,'Trial 6'!BL45,'Trial 7'!BL45,'Trial 8'!BL45)","v":{"v":848.4058649737327,"d":"$848"}},{"$f":"STDEV('Trial 1'!BM45,'Trial 2'!BM45,'Trial 3'!BM45,'Trial 4'!BM45,'Trial 5'!BM45,'Trial 6'!BM45,'Trial 7'!BM45,'Trial 8'!BM45)","v":{"v":861.6102551649952,"d":"$862"}},{"$f":"SUM(BB65:BM65)","v":{"v":9447.249832633539,"d":"$9,447"}},{"$f":"STDEV('Trial 1'!BO45,'Trial 2'!BO45,'Trial 3'!BO45,'Trial 4'!BO45,'Trial 5'!BO45,'Trial 6'!BO45,'Trial 7'!BO45,'Trial 8'!BO45)","v":{"v":870.566545704327,"d":"$871"}},{"$f":"STDEV('Trial 1'!BP45,'Trial 2'!BP45,'Trial 3'!BP45,'Trial 4'!BP45,'Trial 5'!BP45,'Trial 6'!BP45,'Trial 7'!BP45,'Trial 8'!BP45)","v":{"v":878.7494086473894,"d":"$879"}},{"$f":"STDEV('Trial 1'!BQ45,'Trial 2'!BQ45,'Trial 3'!BQ45,'Trial 4'!BQ45,'Trial 5'!BQ45,'Trial 6'!BQ45,'Trial 7'!BQ45,'Trial 8'!BQ45)","v":{"v":883.1836995948757,"d":"$883"}},{"$f":"STDEV('Trial 1'!BR45,'Trial 2'!BR45,'Trial 3'!BR45,'Trial 4'!BR45,'Trial 5'!BR45,'Trial 6'!BR45,'Trial 7'!BR45,'Trial 8'!BR45)","v":{"v":882.8215209523203,"d":"$883"}},{"$f":"STDEV('Trial 1'!BS45,'Trial 2'!BS45,'Trial 3'!BS45,'Trial 4'!BS45,'Trial 5'!BS45,'Trial 6'!BS45,'Trial 7'!BS45,'Trial 8'!BS45)","v":{"v":884.5400978979957,"d":"$885"}},{"$f":"STDEV('Trial 1'!BT45,'Trial 2'!BT45,'Trial 3'!BT45,'Trial 4'!BT45,'Trial 5'!BT45,'Trial 6'!BT45,'Trial 7'!BT45,'Trial 8'!BT45)","v":{"v":888.581599041592,"d":"$889"}},{"$f":"STDEV('Trial 1'!BU45,'Trial 2'!BU45,'Trial 3'!BU45,'Trial 4'!BU45,'Trial 5'!BU45,'Trial 6'!BU45,'Trial 7'!BU45,'Trial 8'!BU45)","v":{"v":893.9249526915366,"d":"$894"}},{"$f":"STDEV('Trial 1'!BV45,'Trial 2'!BV45,'Trial 3'!BV45,'Trial 4'!BV45,'Trial 5'!BV45,'Trial 6'!BV45,'Trial 7'!BV45,'Trial 8'!BV45)","v":{"v":899.0391044740086,"d":"$899"}},{"$f":"STDEV('Trial 1'!BW45,'Trial 2'!BW45,'Trial 3'!BW45,'Trial 4'!BW45,'Trial 5'!BW45,'Trial 6'!BW45,'Trial 7'!BW45,'Trial 8'!BW45)","v":{"v":907.3257518829471,"d":"$907"}},{"$f":"STDEV('Trial 1'!BX45,'Trial 2'!BX45,'Trial 3'!BX45,'Trial 4'!BX45,'Trial 5'!BX45,'Trial 6'!BX45,'Trial 7'!BX45,'Trial 8'!BX45)","v":{"v":918.1200774477974,"d":"$918"}},{"$f":"STDEV('Trial 1'!BY45,'Trial 2'!BY45,'Trial 3'!BY45,'Trial 4'!BY45,'Trial 5'!BY45,'Trial 6'!BY45,'Trial 7'!BY45,'Trial 8'!BY45)","v":{"v":933.3136859495272,"d":"$933"}},{"$f":"STDEV('Trial 1'!BZ45,'Trial 2'!BZ45,'Trial 3'!BZ45,'Trial 4'!BZ45,'Trial 5'!BZ45,'Trial 6'!BZ45,'Trial 7'!BZ45,'Trial 8'!BZ45)","v":{"v":946.6909522703039,"d":"$947"}},{"$f":"SUM(BO65:BZ65)","v":{"v":10786.857396554622,"d":"$10,787"}},{"$f":"STDEV('Trial 1'!CB45,'Trial 2'!CB45,'Trial 3'!CB45,'Trial 4'!CB45,'Trial 5'!CB45,'Trial 6'!CB45,'Trial 7'!CB45,'Trial 8'!CB45)","v":{"v":956.6431326541436,"d":"$957"}},{"$f":"STDEV('Trial 1'!CC45,'Trial 2'!CC45,'Trial 3'!CC45,'Trial 4'!CC45,'Trial 5'!CC45,'Trial 6'!CC45,'Trial 7'!CC45,'Trial 8'!CC45)","v":{"v":964.422814053997,"d":"$964"}},{"$f":"STDEV('Trial 1'!CD45,'Trial 2'!CD45,'Trial 3'!CD45,'Trial 4'!CD45,'Trial 5'!CD45,'Trial 6'!CD45,'Trial 7'!CD45,'Trial 8'!CD45)","v":{"v":972.5945715143365,"d":"$973"}},{"$f":"STDEV('Trial 1'!CE45,'Trial 2'!CE45,'Trial 3'!CE45,'Trial 4'!CE45,'Trial 5'!CE45,'Trial 6'!CE45,'Trial 7'!CE45,'Trial 8'!CE45)","v":{"v":980.6867107340393,"d":"$981"}},{"$f":"STDEV('Trial 1'!CF45,'Trial 2'!CF45,'Trial 3'!CF45,'Trial 4'!CF45,'Trial 5'!CF45,'Trial 6'!CF45,'Trial 7'!CF45,'Trial 8'!CF45)","v":{"v":991.401982822265,"d":"$991"}},{"$f":"STDEV('Trial 1'!CG45,'Trial 2'!CG45,'Trial 3'!CG45,'Trial 4'!CG45,'Trial 5'!CG45,'Trial 6'!CG45,'Trial 7'!CG45,'Trial 8'!CG45)","v":{"v":1000.4569713856447,"d":"$1,000"}},{"$f":"STDEV('Trial 1'!CH45,'Trial 2'!CH45,'Trial 3'!CH45,'Trial 4'!CH45,'Trial 5'!CH45,'Trial 6'!CH45,'Trial 7'!CH45,'Trial 8'!CH45)","v":{"v":1008.3162721346495,"d":"$1,008"}},{"$f":"STDEV('Trial 1'!CI45,'Trial 2'!CI45,'Trial 3'!CI45,'Trial 4'!CI45,'Trial 5'!CI45,'Trial 6'!CI45,'Trial 7'!CI45,'Trial 8'!CI45)","v":{"v":1018.143375064436,"d":"$1,018"}},{"$f":"STDEV('Trial 1'!CJ45,'Trial 2'!CJ45,'Trial 3'!CJ45,'Trial 4'!CJ45,'Trial 5'!CJ45,'Trial 6'!CJ45,'Trial 7'!CJ45,'Trial 8'!CJ45)","v":{"v":1024.2006037242277,"d":"$1,024"}},{"$f":"STDEV('Trial 1'!CK45,'Trial 2'!CK45,'Trial 3'!CK45,'Trial 4'!CK45,'Trial 5'!CK45,'Trial 6'!CK45,'Trial 7'!CK45,'Trial 8'!CK45)","v":{"v":1027.54845112631,"d":"$1,028"}},{"$f":"STDEV('Trial 1'!CL45,'Trial 2'!CL45,'Trial 3'!CL45,'Trial 4'!CL45,'Trial 5'!CL45,'Trial 6'!CL45,'Trial 7'!CL45,'Trial 8'!CL45)","v":{"v":1033.7376661721291,"d":"$1,034"}},{"$f":"STDEV('Trial 1'!CM45,'Trial 2'!CM45,'Trial 3'!CM45,'Trial 4'!CM45,'Trial 5'!CM45,'Trial 6'!CM45,'Trial 7'!CM45,'Trial 8'!CM45)","v":{"v":1039.0003832904947,"d":"$1,039"}},{"$f":"SUM(CB65:CM65)","v":{"v":12017.152934676673,"d":"$12,017"}},{"$f":"STDEV('Trial 1'!CO45,'Trial 2'!CO45,'Trial 3'!CO45,'Trial 4'!CO45,'Trial 5'!CO45,'Trial 6'!CO45,'Trial 7'!CO45,'Trial 8'!CO45)","v":{"v":1043.5977525524884,"d":"$1,044"}},{"$f":"STDEV('Trial 1'!CP45,'Trial 2'!CP45,'Trial 3'!CP45,'Trial 4'!CP45,'Trial 5'!CP45,'Trial 6'!CP45,'Trial 7'!CP45,'Trial 8'!CP45)","v":{"v":1050.1137552830585,"d":"$1,050"}},{"$f":"STDEV('Trial 1'!CQ45,'Trial 2'!CQ45,'Trial 3'!CQ45,'Trial 4'!CQ45,'Trial 5'!CQ45,'Trial 6'!CQ45,'Trial 7'!CQ45,'Trial 8'!CQ45)","v":{"v":1059.341011004724,"d":"$1,059"}},{"$f":"STDEV('Trial 1'!CR45,'Trial 2'!CR45,'Trial 3'!CR45,'Trial 4'!CR45,'Trial 5'!CR45,'Trial 6'!CR45,'Trial 7'!CR45,'Trial 8'!CR45)","v":{"v":1069.0704918075453,"d":"$1,069"}},{"$f":"STDEV('Trial 1'!CS45,'Trial 2'!CS45,'Trial 3'!CS45,'Trial 4'!CS45,'Trial 5'!CS45,'Trial 6'!CS45,'Trial 7'!CS45,'Trial 8'!CS45)","v":{"v":1078.0237246816532,"d":"$1,078"}},{"$f":"STDEV('Trial 1'!CT45,'Trial 2'!CT45,'Trial 3'!CT45,'Trial 4'!CT45,'Trial 5'!CT45,'Trial 6'!CT45,'Trial 7'!CT45,'Trial 8'!CT45)","v":{"v":1088.2402520590424,"d":"$1,088"}},{"$f":"STDEV('Trial 1'!CU45,'Trial 2'!CU45,'Trial 3'!CU45,'Trial 4'!CU45,'Trial 5'!CU45,'Trial 6'!CU45,'Trial 7'!CU45,'Trial 8'!CU45)","v":{"v":1095.8946043586764,"d":"$1,096"}},{"$f":"STDEV('Trial 1'!CV45,'Trial 2'!CV45,'Trial 3'!CV45,'Trial 4'!CV45,'Trial 5'!CV45,'Trial 6'!CV45,'Trial 7'!CV45,'Trial 8'!CV45)","v":{"v":1104.7891367892794,"d":"$1,105"}},{"$f":"STDEV('Trial 1'!CW45,'Trial 2'!CW45,'Trial 3'!CW45,'Trial 4'!CW45,'Trial 5'!CW45,'Trial 6'!CW45,'Trial 7'!CW45,'Trial 8'!CW45)","v":{"v":1113.4865532213057,"d":"$1,113"}},{"$f":"STDEV('Trial 1'!CX45,'Trial 2'!CX45,'Trial 3'!CX45,'Trial 4'!CX45,'Trial 5'!CX45,'Trial 6'!CX45,'Trial 7'!CX45,'Trial 8'!CX45)","v":{"v":1120.9758289426961,"d":"$1,121"}},{"$f":"STDEV('Trial 1'!CY45,'Trial 2'!CY45,'Trial 3'!CY45,'Trial 4'!CY45,'Trial 5'!CY45,'Trial 6'!CY45,'Trial 7'!CY45,'Trial 8'!CY45)","v":{"v":1126.813410703117,"d":"$1,127"}},{"$f":"STDEV('Trial 1'!CZ45,'Trial 2'!CZ45,'Trial 3'!CZ45,'Trial 4'!CZ45,'Trial 5'!CZ45,'Trial 6'!CZ45,'Trial 7'!CZ45,'Trial 8'!CZ45)","v":{"v":1135.435671738351,"d":"$1,135"}},{"$f":"SUM(CO65:CZ65)","v":{"v":13085.782193141937,"d":"$13,086"}},{"$f":"STDEV('Trial 1'!DB45,'Trial 2'!DB45,'Trial 3'!DB45,'Trial 4'!DB45,'Trial 5'!DB45,'Trial 6'!DB45,'Trial 7'!DB45,'Trial 8'!DB45)","v":{"v":1145.398066938498,"d":"$1,145"}},{"$f":"STDEV('Trial 1'!DC45,'Trial 2'!DC45,'Trial 3'!DC45,'Trial 4'!DC45,'Trial 5'!DC45,'Trial 6'!DC45,'Trial 7'!DC45,'Trial 8'!DC45)","v":{"v":1152.6466019375307,"d":"$1,153"}},{"$f":"STDEV('Trial 1'!DD45,'Trial 2'!DD45,'Trial 3'!DD45,'Trial 4'!DD45,'Trial 5'!DD45,'Trial 6'!DD45,'Trial 7'!DD45,'Trial 8'!DD45)","v":{"v":1165.9766628733578,"d":"$1,166"}},{"$f":"STDEV('Trial 1'!DE45,'Trial 2'!DE45,'Trial 3'!DE45,'Trial 4'!DE45,'Trial 5'!DE45,'Trial 6'!DE45,'Trial 7'!DE45,'Trial 8'!DE45)","v":{"v":1180.4500424212752,"d":"$1,180"}},{"$f":"STDEV('Trial 1'!DF45,'Trial 2'!DF45,'Trial 3'!DF45,'Trial 4'!DF45,'Trial 5'!DF45,'Trial 6'!DF45,'Trial 7'!DF45,'Trial 8'!DF45)","v":{"v":1192.189985706333,"d":"$1,192"}},{"$f":"STDEV('Trial 1'!DG45,'Trial 2'!DG45,'Trial 3'!DG45,'Trial 4'!DG45,'Trial 5'!DG45,'Trial 6'!DG45,'Trial 7'!DG45,'Trial 8'!DG45)","v":{"v":1202.0634116674971,"d":"$1,202"}},{"$f":"STDEV('Trial 1'!DH45,'Trial 2'!DH45,'Trial 3'!DH45,'Trial 4'!DH45,'Trial 5'!DH45,'Trial 6'!DH45,'Trial 7'!DH45,'Trial 8'!DH45)","v":{"v":1210.1155485191314,"d":"$1,210"}},{"$f":"STDEV('Trial 1'!DI45,'Trial 2'!DI45,'Trial 3'!DI45,'Trial 4'!DI45,'Trial 5'!DI45,'Trial 6'!DI45,'Trial 7'!DI45,'Trial 8'!DI45)","v":{"v":1215.0959116858426,"d":"$1,215"}},{"$f":"STDEV('Trial 1'!DJ45,'Trial 2'!DJ45,'Trial 3'!DJ45,'Trial 4'!DJ45,'Trial 5'!DJ45,'Trial 6'!DJ45,'Trial 7'!DJ45,'Trial 8'!DJ45)","v":{"v":1218.6719071215273,"d":"$1,219"}},{"$f":"STDEV('Trial 1'!DK45,'Trial 2'!DK45,'Trial 3'!DK45,'Trial 4'!DK45,'Trial 5'!DK45,'Trial 6'!DK45,'Trial 7'!DK45,'Trial 8'!DK45)","v":{"v":1218.4358022314648,"d":"$1,218"}},{"$f":"STDEV('Trial 1'!DL45,'Trial 2'!DL45,'Trial 3'!DL45,'Trial 4'!DL45,'Trial 5'!DL45,'Trial 6'!DL45,'Trial 7'!DL45,'Trial 8'!DL45)","v":{"v":1219.9685686276346,"d":"$1,220"}},{"$f":"STDEV('Trial 1'!DM45,'Trial 2'!DM45,'Trial 3'!DM45,'Trial 4'!DM45,'Trial 5'!DM45,'Trial 6'!DM45,'Trial 7'!DM45,'Trial 8'!DM45)","v":{"v":1219.5951631854357,"d":"$1,220"}},{"$f":"SUM(DB65:DM65)","v":{"v":14340.607672915528,"d":"$14,341"}},{"$f":"STDEV('Trial 1'!DO45,'Trial 2'!DO45,'Trial 3'!DO45,'Trial 4'!DO45,'Trial 5'!DO45,'Trial 6'!DO45,'Trial 7'!DO45,'Trial 8'!DO45)","v":{"v":1221.1973963953335,"d":"$1,221"}},{"$f":"STDEV('Trial 1'!DP45,'Trial 2'!DP45,'Trial 3'!DP45,'Trial 4'!DP45,'Trial 5'!DP45,'Trial 6'!DP45,'Trial 7'!DP45,'Trial 8'!DP45)","v":{"v":1222.9871175309295,"d":"$1,223"}},{"$f":"STDEV('Trial 1'!DQ45,'Trial 2'!DQ45,'Trial 3'!DQ45,'Trial 4'!DQ45,'Trial 5'!DQ45,'Trial 6'!DQ45,'Trial 7'!DQ45,'Trial 8'!DQ45)","v":{"v":1220.317966661347,"d":"$1,220"}},{"$f":"STDEV('Trial 1'!DR45,'Trial 2'!DR45,'Trial 3'!DR45,'Trial 4'!DR45,'Trial 5'!DR45,'Trial 6'!DR45,'Trial 7'!DR45,'Trial 8'!DR45)","v":{"v":1213.7081943105927,"d":"$1,214"}},{"$f":"STDEV('Trial 1'!DS45,'Trial 2'!DS45,'Trial 3'!DS45,'Trial 4'!DS45,'Trial 5'!DS45,'Trial 6'!DS45,'Trial 7'!DS45,'Trial 8'!DS45)","v":{"v":1208.4914514772347,"d":"$1,208"}},{"$f":"STDEV('Trial 1'!DT45,'Trial 2'!DT45,'Trial 3'!DT45,'Trial 4'!DT45,'Trial 5'!DT45,'Trial 6'!DT45,'Trial 7'!DT45,'Trial 8'!DT45)","v":{"v":1205.6662177642322,"d":"$1,206"}},{"$f":"STDEV('Trial 1'!DU45,'Trial 2'!DU45,'Trial 3'!DU45,'Trial 4'!DU45,'Trial 5'!DU45,'Trial 6'!DU45,'Trial 7'!DU45,'Trial 8'!DU45)","v":{"v":1201.8669954348395,"d":"$1,202"}},{"$f":"STDEV('Trial 1'!DV45,'Trial 2'!DV45,'Trial 3'!DV45,'Trial 4'!DV45,'Trial 5'!DV45,'Trial 6'!DV45,'Trial 7'!DV45,'Trial 8'!DV45)","v":{"v":1199.1821065608156,"d":"$1,199"}},{"$f":"STDEV('Trial 1'!DW45,'Trial 2'!DW45,'Trial 3'!DW45,'Trial 4'!DW45,'Trial 5'!DW45,'Trial 6'!DW45,'Trial 7'!DW45,'Trial 8'!DW45)","v":{"v":1199.7134982155362,"d":"$1,200"}},{"$f":"STDEV('Trial 1'!DX45,'Trial 2'!DX45,'Trial 3'!DX45,'Trial 4'!DX45,'Trial 5'!DX45,'Trial 6'!DX45,'Trial 7'!DX45,'Trial 8'!DX45)","v":{"v":1201.1589011345534,"d":"$1,201"}},{"$f":"STDEV('Trial 1'!DY45,'Trial 2'!DY45,'Trial 3'!DY45,'Trial 4'!DY45,'Trial 5'!DY45,'Trial 6'!DY45,'Trial 7'!DY45,'Trial 8'!DY45)","v":{"v":1205.9388455615394,"d":"$1,206"}},{"$f":"STDEV('Trial 1'!DZ45,'Trial 2'!DZ45,'Trial 3'!DZ45,'Trial 4'!DZ45,'Trial 5'!DZ45,'Trial 6'!DZ45,'Trial 7'!DZ45,'Trial 8'!DZ45)","v":{"v":1206.8311704161436,"d":"$1,207"}},{"$f":"SUM(DO65:DZ65)","v":{"v":14507.059861463098,"d":"$14,507"}},{"$f":"STDEV('Trial 1'!EB45,'Trial 2'!EB45,'Trial 3'!EB45,'Trial 4'!EB45,'Trial 5'!EB45,'Trial 6'!EB45,'Trial 7'!EB45,'Trial 8'!EB45)","v":{"v":1207.8730442351512,"d":"$1,208"}},{"$f":"STDEV('Trial 1'!EC45,'Trial 2'!EC45,'Trial 3'!EC45,'Trial 4'!EC45,'Trial 5'!EC45,'Trial 6'!EC45,'Trial 7'!EC45,'Trial 8'!EC45)","v":{"v":1209.6783303880118,"d":"$1,210"}},{"$f":"STDEV('Trial 1'!ED45,'Trial 2'!ED45,'Trial 3'!ED45,'Trial 4'!ED45,'Trial 5'!ED45,'Trial 6'!ED45,'Trial 7'!ED45,'Trial 8'!ED45)","v":{"v":1209.160666532331,"d":"$1,209"}},{"$f":"STDEV('Trial 1'!EE45,'Trial 2'!EE45,'Trial 3'!EE45,'Trial 4'!EE45,'Trial 5'!EE45,'Trial 6'!EE45,'Trial 7'!EE45,'Trial 8'!EE45)","v":{"v":1207.6060958560797,"d":"$1,208"}},{"$f":"STDEV('Trial 1'!EF45,'Trial 2'!EF45,'Trial 3'!EF45,'Trial 4'!EF45,'Trial 5'!EF45,'Trial 6'!EF45,'Trial 7'!EF45,'Trial 8'!EF45)","v":{"v":1208.763283895228,"d":"$1,209"}},{"$f":"STDEV('Trial 1'!EG45,'Trial 2'!EG45,'Trial 3'!EG45,'Trial 4'!EG45,'Trial 5'!EG45,'Trial 6'!EG45,'Trial 7'!EG45,'Trial 8'!EG45)","v":{"v":1208.8784265070587,"d":"$1,209"}},{"$f":"STDEV('Trial 1'!EH45,'Trial 2'!EH45,'Trial 3'!EH45,'Trial 4'!EH45,'Trial 5'!EH45,'Trial 6'!EH45,'Trial 7'!EH45,'Trial 8'!EH45)","v":{"v":1205.7100939853249,"d":"$1,206"}},{"$f":"STDEV('Trial 1'!EI45,'Trial 2'!EI45,'Trial 3'!EI45,'Trial 4'!EI45,'Trial 5'!EI45,'Trial 6'!EI45,'Trial 7'!EI45,'Trial 8'!EI45)","v":{"v":1204.587449296813,"d":"$1,205"}},{"$f":"STDEV('Trial 1'!EJ45,'Trial 2'!EJ45,'Trial 3'!EJ45,'Trial 4'!EJ45,'Trial 5'!EJ45,'Trial 6'!EJ45,'Trial 7'!EJ45,'Trial 8'!EJ45)","v":{"v":1205.67945244226,"d":"$1,206"}},{"$f":"STDEV('Trial 1'!EK45,'Trial 2'!EK45,'Trial 3'!EK45,'Trial 4'!EK45,'Trial 5'!EK45,'Trial 6'!EK45,'Trial 7'!EK45,'Trial 8'!EK45)","v":{"v":1208.9775548064315,"d":"$1,209"}},{"$f":"STDEV('Trial 1'!EL45,'Trial 2'!EL45,'Trial 3'!EL45,'Trial 4'!EL45,'Trial 5'!EL45,'Trial 6'!EL45,'Trial 7'!EL45,'Trial 8'!EL45)","v":{"v":1215.2506556951619,"d":"$1,215"}},{"$f":"STDEV('Trial 1'!EM45,'Trial 2'!EM45,'Trial 3'!EM45,'Trial 4'!EM45,'Trial 5'!EM45,'Trial 6'!EM45,'Trial 7'!EM45,'Trial 8'!EM45)","v":{"v":1218.7905918682147,"d":"$1,219"}},{"$f":"SUM(EB65:EM65)","v":{"v":14510.955645508066,"d":"$14,511"}}]
[]
[]
[{"$f":"\"Government\"","v":"Government"}]
[{"$f":"\" \"","v":" "}]
[null,{"$f":"ZZZ__FnCalls!F7","v":"Jan 2010"},{"$f":"ZZZ__FnCalls!F8","v":"Feb 2010"},{"$f":"ZZZ__FnCalls!F9","v":"Mar 2010"},{"$f":"ZZZ__FnCalls!F10","v":"Apr 2010"},{"$f":"ZZZ__FnCalls!F11","v":"May 2010"},{"$f":"ZZZ__FnCalls!F12","v":"Jun 2010"},{"$f":"ZZZ__FnCalls!F13","v":"Jul 2010"},{"$f":"ZZZ__FnCalls!F14","v":"Aug 2010"},{"$f":"ZZZ__FnCalls!F15","v":"Sep 2010"},{"$f":"ZZZ__FnCalls!F16","v":"Oct 2010"},{"$f":"ZZZ__FnCalls!F17","v":"Nov 2010"},{"$f":"ZZZ__FnCalls!F18","v":"Dec 2010"},{"$f":"ZZZ__FnCalls!H7","v":"2010"},{"$f":"ZZZ__FnCalls!F19","v":"Jan 2011"},{"$f":"ZZZ__FnCalls!F20","v":"Feb 2011"},{"$f":"ZZZ__FnCalls!F21","v":"Mar 2011"},{"$f":"ZZZ__FnCalls!F22","v":"Apr 2011"},{"$f":"ZZZ__FnCalls!F23","v":"May 2011"},{"$f":"ZZZ__FnCalls!F24","v":"Jun 2011"},{"$f":"ZZZ__FnCalls!F25","v":"Jul 2011"},{"$f":"ZZZ__FnCalls!F26","v":"Aug 2011"},{"$f":"ZZZ__FnCalls!F27","v":"Sep 2011"},{"$f":"ZZZ__FnCalls!F28","v":"Oct 2011"},{"$f":"ZZZ__FnCalls!F29","v":"Nov 2011"},{"$f":"ZZZ__FnCalls!F30","v":"Dec 2011"},{"$f":"ZZZ__FnCalls!H19","v":"2011"},{"$f":"ZZZ__FnCalls!F31","v":"Jan 2012"},{"$f":"ZZZ__FnCalls!F32","v":"Feb 2012"},{"$f":"ZZZ__FnCalls!F33","v":"Mar 2012"},{"$f":"ZZZ__FnCalls!F34","v":"Apr 2012"},{"$f":"ZZZ__FnCalls!F35","v":"May 2012"},{"$f":"ZZZ__FnCalls!F36","v":"Jun 2012"},{"$f":"ZZZ__FnCalls!F37","v":"Jul 2012"},{"$f":"ZZZ__FnCalls!F38","v":"Aug 2012"},{"$f":"ZZZ__FnCalls!F39","v":"Sep 2012"},{"$f":"ZZZ__FnCalls!F40","v":"Oct 2012"},{"$f":"ZZZ__FnCalls!F41","v":"Nov 2012"},{"$f":"ZZZ__FnCalls!F42","v":"Dec 2012"},{"$f":"ZZZ__FnCalls!H31","v":"2012"},{"$f":"ZZZ__FnCalls!F43","v":"Jan 2013"},{"$f":"ZZZ__FnCalls!F44","v":"Feb 2013"},{"$f":"ZZZ__FnCalls!F45","v":"Mar 2013"},{"$f":"ZZZ__FnCalls!F46","v":"Apr 2013"},{"$f":"ZZZ__FnCalls!F47","v":"May 2013"},{"$f":"ZZZ__FnCalls!F48","v":"Jun 2013"},{"$f":"ZZZ__FnCalls!F49","v":"Jul 2013"},{"$f":"ZZZ__FnCalls!F50","v":"Aug 2013"},{"$f":"ZZZ__FnCalls!F51","v":"Sep 2013"},{"$f":"ZZZ__FnCalls!F52","v":"Oct 2013"},{"$f":"ZZZ__FnCalls!F53","v":"Nov 2013"},{"$f":"ZZZ__FnCalls!F54","v":"Dec 2013"},{"$f":"ZZZ__FnCalls!H43","v":"2013"},{"$f":"ZZZ__FnCalls!F55","v":"Jan 2014"},{"$f":"ZZZ__FnCalls!F56","v":"Feb 2014"},{"$f":"ZZZ__FnCalls!F57","v":"Mar 2014"},{"$f":"ZZZ__FnCalls!F58","v":"Apr 2014"},{"$f":"ZZZ__FnCalls!F59","v":"May 2014"},{"$f":"ZZZ__FnCalls!F60","v":"Jun 2014"},{"$f":"ZZZ__FnCalls!F61","v":"Jul 2014"},{"$f":"ZZZ__FnCalls!F62","v":"Aug 2014"},{"$f":"ZZZ__FnCalls!F63","v":"Sep 2014"},{"$f":"ZZZ__FnCalls!F64","v":"Oct 2014"},{"$f":"ZZZ__FnCalls!F65","v":"Nov 2014"},{"$f":"ZZZ__FnCalls!F66","v":"Dec 2014"},{"$f":"ZZZ__FnCalls!H55","v":"2014"},{"$f":"ZZZ__FnCalls!F67","v":"Jan 2015"},{"$f":"ZZZ__FnCalls!F68","v":"Feb 2015"},{"$f":"ZZZ__FnCalls!F69","v":"Mar 2015"},{"$f":"ZZZ__FnCalls!F70","v":"Apr 2015"},{"$f":"ZZZ__FnCalls!F71","v":"May 2015"},{"$f":"ZZZ__FnCalls!F72","v":"Jun 2015"},{"$f":"ZZZ__FnCalls!F73","v":"Jul 2015"},{"$f":"ZZZ__FnCalls!F74","v":"Aug 2015"},{"$f":"ZZZ__FnCalls!F75","v":"Sep 2015"},{"$f":"ZZZ__FnCalls!F76","v":"Oct 2015"},{"$f":"ZZZ__FnCalls!F77","v":"Nov 2015"},{"$f":"ZZZ__FnCalls!F78","v":"Dec 2015"},{"$f":"ZZZ__FnCalls!H67","v":"2015"},{"$f":"ZZZ__FnCalls!F79","v":"Jan 2016"},{"$f":"ZZZ__FnCalls!F80","v":"Feb 2016"},{"$f":"ZZZ__FnCalls!F81","v":"Mar 2016"},{"$f":"ZZZ__FnCalls!F82","v":"Apr 2016"},{"$f":"ZZZ__FnCalls!F83","v":"May 2016"},{"$f":"ZZZ__FnCalls!F84","v":"Jun 2016"},{"$f":"ZZZ__FnCalls!F85","v":"Jul 2016"},{"$f":"ZZZ__FnCalls!F86","v":"Aug 2016"},{"$f":"ZZZ__FnCalls!F87","v":"Sep 2016"},{"$f":"ZZZ__FnCalls!F88","v":"Oct 2016"},{"$f":"ZZZ__FnCalls!F89","v":"Nov 2016"},{"$f":"ZZZ__FnCalls!F90","v":"Dec 2016"},{"$f":"ZZZ__FnCalls!H79","v":"2016"},{"$f":"ZZZ__FnCalls!F91","v":"Jan 2017"},{"$f":"ZZZ__FnCalls!F92","v":"Feb 2017"},{"$f":"ZZZ__FnCalls!F93","v":"Mar 2017"},{"$f":"ZZZ__FnCalls!F94","v":"Apr 2017"},{"$f":"ZZZ__FnCalls!F95","v":"May 2017"},{"$f":"ZZZ__FnCalls!F96","v":"Jun 2017"},{"$f":"ZZZ__FnCalls!F97","v":"Jul 2017"},{"$f":"ZZZ__FnCalls!F98","v":"Aug 2017"},{"$f":"ZZZ__FnCalls!F99","v":"Sep 2017"},{"$f":"ZZZ__FnCalls!F100","v":"Oct 2017"},{"$f":"ZZZ__FnCalls!F101","v":"Nov 2017"},{"$f":"ZZZ__FnCalls!F102","v":"Dec 2017"},{"$f":"ZZZ__FnCalls!H91","v":"2017"},{"$f":"ZZZ__FnCalls!F103","v":"Jan 2018"},{"$f":"ZZZ__FnCalls!F104","v":"Feb 2018"},{"$f":"ZZZ__FnCalls!F105","v":"Mar 2018"},{"$f":"ZZZ__FnCalls!F106","v":"Apr 2018"},{"$f":"ZZZ__FnCalls!F107","v":"May 2018"},{"$f":"ZZZ__FnCalls!F108","v":"Jun 2018"},{"$f":"ZZZ__FnCalls!F109","v":"Jul 2018"},{"$f":"ZZZ__FnCalls!F110","v":"Aug 2018"},{"$f":"ZZZ__FnCalls!F111","v":"Sep 2018"},{"$f":"ZZZ__FnCalls!F112","v":"Oct 2018"},{"$f":"ZZZ__FnCalls!F113","v":"Nov 2018"},{"$f":"ZZZ__FnCalls!F114","v":"Dec 2018"},{"$f":"ZZZ__FnCalls!H103","v":"2018"},{"$f":"ZZZ__FnCalls!F115","v":"Jan 2019"},{"$f":"ZZZ__FnCalls!F116","v":"Feb 2019"},{"$f":"ZZZ__FnCalls!F117","v":"Mar 2019"},{"$f":"ZZZ__FnCalls!F118","v":"Apr 2019"},{"$f":"ZZZ__FnCalls!F119","v":"May 2019"},{"$f":"ZZZ__FnCalls!F120","v":"Jun 2019"},{"$f":"ZZZ__FnCalls!F121","v":"Jul 2019"},{"$f":"ZZZ__FnCalls!F122","v":"Aug 2019"},{"$f":"ZZZ__FnCalls!F123","v":"Sep 2019"},{"$f":"ZZZ__FnCalls!F124","v":"Oct 2019"},{"$f":"ZZZ__FnCalls!F125","v":"Nov 2019"},{"$f":"ZZZ__FnCalls!F126","v":"Dec 2019"},{"$f":"ZZZ__FnCalls!H115","v":"2019"},{"$f":"ZZZ__FnCalls!F127","v":"Jan 2020"},{"$f":"ZZZ__FnCalls!F128","v":"Feb 2020"},{"$f":"ZZZ__FnCalls!F129","v":"Mar 2020"},{"$f":"ZZZ__FnCalls!F130","v":"Apr 2020"},{"$f":"ZZZ__FnCalls!F131","v":"May 2020"},{"$f":"ZZZ__FnCalls!F132","v":"Jun 2020"},{"$f":"ZZZ__FnCalls!F133","v":"Jul 2020"},{"$f":"ZZZ__FnCalls!F134","v":"Aug 2020"},{"$f":"ZZZ__FnCalls!F135","v":"Sep 2020"},{"$f":"ZZZ__FnCalls!F136","v":"Oct 2020"},{"$f":"ZZZ__FnCalls!F137","v":"Nov 2020"},{"$f":"ZZZ__FnCalls!F138","v":"Dec 2020"},{"$f":"ZZZ__FnCalls!H127","v":"2020"}]
[{"$f":"Labels!B84","v":"Tax"},{"$f":"AVERAGE('Trial 1'!B54,'Trial 2'!B54,'Trial 3'!B54,'Trial 4'!B54,'Trial 5'!B54,'Trial 6'!B54,'Trial 7'!B54,'Trial 8'!B54)","v":{"v":354330.46477390005,"d":"$354,330"}},{"$f":"AVERAGE('Trial 1'!C54,'Trial 2'!C54,'Trial 3'!C54,'Trial 4'!C54,'Trial 5'!C54,'Trial 6'!C54,'Trial 7'!C54,'Trial 8'!C54)","v":{"v":350466.55888183275,"d":"$350,467"}},{"$f":"AVERAGE('Trial 1'!D54,'Trial 2'!D54,'Trial 3'!D54,'Trial 4'!D54,'Trial 5'!D54,'Trial 6'!D54,'Trial 7'!D54,'Trial 8'!D54)","v":{"v":350058.6704199814,"d":"$350,059"}},{"$f":"AVERAGE('Trial 1'!E54,'Trial 2'!E54,'Trial 3'!E54,'Trial 4'!E54,'Trial 5'!E54,'Trial 6'!E54,'Trial 7'!E54,'Trial 8'!E54)","v":{"v":344602.03080867225,"d":"$344,602"}},{"$f":"AVERAGE('Trial 1'!F54,'Trial 2'!F54,'Trial 3'!F54,'Trial 4'!F54,'Trial 5'!F54,'Trial 6'!F54,'Trial 7'!F54,'Trial 8'!F54)","v":{"v":344850.21592792193,"d":"$344,850"}},{"$f":"AVERAGE('Trial 1'!G54,'Trial 2'!G54,'Trial 3'!G54,'Trial 4'!G54,'Trial 5'!G54,'Trial 6'!G54,'Trial 7'!G54,'Trial 8'!G54)","v":{"v":346651.83203528245,"d":"$346,652"}},{"$f":"AVERAGE('Trial 1'!H54,'Trial 2'!H54,'Trial 3'!H54,'Trial 4'!H54,'Trial 5'!H54,'Trial 6'!H54,'Trial 7'!H54,'Trial 8'!H54)","v":{"v":354223.8974403762,"d":"$354,224"}},{"$f":"AVERAGE('Trial 1'!I54,'Trial 2'!I54,'Trial 3'!I54,'Trial 4'!I54,'Trial 5'!I54,'Trial 6'!I54,'Trial 7'!I54,'Trial 8'!I54)","v":{"v":346784.18621178437,"d":"$346,784"}},{"$f":"AVERAGE('Trial 1'!J54,'Trial 2'!J54,'Trial 3'!J54,'Trial 4'!J54,'Trial 5'!J54,'Trial 6'!J54,'Trial 7'!J54,'Trial 8'!J54)","v":{"v":351394.2707794929,"d":"$351,394"}},{"$f":"AVERAGE('Trial 1'!K54,'Trial 2'!K54,'Trial 3'!K54,'Trial 4'!K54,'Trial 5'!K54,'Trial 6'!K54,'Trial 7'!K54,'Trial 8'!K54)","v":{"v":344818.5725025801,"d":"$344,819"}},{"$f":"AVERAGE('Trial 1'!L54,'Trial 2'!L54,'Trial 3'!L54,'Trial 4'!L54,'Trial 5'!L54,'Trial 6'!L54,'Trial 7'!L54,'Trial 8'!L54)","v":{"v":349068.97934706503,"d":"$349,069"}},{"$f":"AVERAGE('Trial 1'!M54,'Trial 2'!M54,'Trial 3'!M54,'Trial 4'!M54,'Trial 5'!M54,'Trial 6'!M54,'Trial 7'!M54,'Trial 8'!M54)","v":{"v":348533.8955513402,"d":"$348,534"}},{"$f":"SUM(B71:M71)","v":{"v":4185783.5746802296,"d":"$4,185,784"}},{"$f":"AVERAGE('Trial 1'!O54,'Trial 2'!O54,'Trial 3'!O54,'Trial 4'!O54,'Trial 5'!O54,'Trial 6'!O54,'Trial 7'!O54,'Trial 8'!O54)","v":{"v":343091.4918332854,"d":"$343,091"}},{"$f":"AVERAGE('Trial 1'!P54,'Trial 2'!P54,'Trial 3'!P54,'Trial 4'!P54,'Trial 5'!P54,'Trial 6'!P54,'Trial 7'!P54,'Trial 8'!P54)","v":{"v":346793.33815953525,"d":"$346,793"}},{"$f":"AVERAGE('Trial 1'!Q54,'Trial 2'!Q54,'Trial 3'!Q54,'Trial 4'!Q54,'Trial 5'!Q54,'Trial 6'!Q54,'Trial 7'!Q54,'Trial 8'!Q54)","v":{"v":350195.37164327543,"d":"$350,195"}},{"$f":"AVERAGE('Trial 1'!R54,'Trial 2'!R54,'Trial 3'!R54,'Trial 4'!R54,'Trial 5'!R54,'Trial 6'!R54,'Trial 7'!R54,'Trial 8'!R54)","v":{"v":345619.5526873935,"d":"$345,620"}},{"$f":"AVERAGE('Trial 1'!S54,'Trial 2'!S54,'Trial 3'!S54,'Trial 4'!S54,'Trial 5'!S54,'Trial 6'!S54,'Trial 7'!S54,'Trial 8'!S54)","v":{"v":346199.9272084311,"d":"$346,200"}},{"$f":"AVERAGE('Trial 1'!T54,'Trial 2'!T54,'Trial 3'!T54,'Trial 4'!T54,'Trial 5'!T54,'Trial 6'!T54,'Trial 7'!T54,'Trial 8'!T54)","v":{"v":344425.2301011286,"d":"$344,425"}},{"$f":"AVERAGE('Trial 1'!U54,'Trial 2'!U54,'Trial 3'!U54,'Trial 4'!U54,'Trial 5'!U54,'Trial 6'!U54,'Trial 7'!U54,'Trial 8'!U54)","v":{"v":341315.4880379943,"d":"$341,315"}},{"$f":"AVERAGE('Trial 1'!V54,'Trial 2'!V54,'Trial 3'!V54,'Trial 4'!V54,'Trial 5'!V54,'Trial 6'!V54,'Trial 7'!V54,'Trial 8'!V54)","v":{"v":345213.8098692924,"d":"$345,214"}},{"$f":"AVERAGE('Trial 1'!W54,'Trial 2'!W54,'Trial 3'!W54,'Trial 4'!W54,'Trial 5'!W54,'Trial 6'!W54,'Trial 7'!W54,'Trial 8'!W54)","v":{"v":341094.0726090837,"d":"$341,094"}},{"$f":"AVERAGE('Trial 1'!X54,'Trial 2'!X54,'Trial 3'!X54,'Trial 4'!X54,'Trial 5'!X54,'Trial 6'!X54,'Trial 7'!X54,'Trial 8'!X54)","v":{"v":343135.8234001836,"d":"$343,136"}},{"$f":"AVERAGE('Trial 1'!Y54,'Trial 2'!Y54,'Trial 3'!Y54,'Trial 4'!Y54,'Trial 5'!Y54,'Trial 6'!Y54,'Trial 7'!Y54,'Trial 8'!Y54)","v":{"v":338588.9090070102,"d":"$338,589"}},{"$f":"AVERAGE('Trial 1'!Z54,'Trial 2'!Z54,'Trial 3'!Z54,'Trial 4'!Z54,'Trial 5'!Z54,'Trial 6'!Z54,'Trial 7'!Z54,'Trial 8'!Z54)","v":{"v":343341.8979916231,"d":"$343,342"}},{"$f":"SUM(O71:Z71)","v":{"v":4129014.912548237,"d":"$4,129,015"}},{"$f":"AVERAGE('Trial 1'!AB54,'Trial 2'!AB54,'Trial 3'!AB54,'Trial 4'!AB54,'Trial 5'!AB54,'Trial 6'!AB54,'Trial 7'!AB54,'Trial 8'!AB54)","v":{"v":337394.31753011234,"d":"$337,394"}},{"$f":"AVERAGE('Trial 1'!AC54,'Trial 2'!AC54,'Trial 3'!AC54,'Trial 4'!AC54,'Trial 5'!AC54,'Trial 6'!AC54,'Trial 7'!AC54,'Trial 8'!AC54)","v":{"v":339013.1117700699,"d":"$339,013"}},{"$f":"AVERAGE('Trial 1'!AD54,'Trial 2'!AD54,'Trial 3'!AD54,'Trial 4'!AD54,'Trial 5'!AD54,'Trial 6'!AD54,'Trial 7'!AD54,'Trial 8'!AD54)","v":{"v":344616.83350277436,"d":"$344,617"}},{"$f":"AVERAGE('Trial 1'!AE54,'Trial 2'!AE54,'Trial 3'!AE54,'Trial 4'!AE54,'Trial 5'!AE54,'Trial 6'!AE54,'Trial 7'!AE54,'Trial 8'!AE54)","v":{"v":334028.1638456799,"d":"$334,028"}},{"$f":"AVERAGE('Trial 1'!AF54,'Trial 2'!AF54,'Trial 3'!AF54,'Trial 4'!AF54,'Trial 5'!AF54,'Trial 6'!AF54,'Trial 7'!AF54,'Trial 8'!AF54)","v":{"v":339272.82138204813,"d":"$339,273"}},{"$f":"AVERAGE('Trial 1'!AG54,'Trial 2'!AG54,'Trial 3'!AG54,'Trial 4'!AG54,'Trial 5'!AG54,'Trial 6'!AG54,'Trial 7'!AG54,'Trial 8'!AG54)","v":{"v":339266.3318718321,"d":"$339,266"}},{"$f":"AVERAGE('Trial 1'!AH54,'Trial 2'!AH54,'Trial 3'!AH54,'Trial 4'!AH54,'Trial 5'!AH54,'Trial 6'!AH54,'Trial 7'!AH54,'Trial 8'!AH54)","v":{"v":340286.8836125143,"d":"$340,287"}},{"$f":"AVERAGE('Trial 1'!AI54,'Trial 2'!AI54,'Trial 3'!AI54,'Trial 4'!AI54,'Trial 5'!AI54,'Trial 6'!AI54,'Trial 7'!AI54,'Trial 8'!AI54)","v":{"v":331599.08702403645,"d":"$331,599"}},{"$f":"AVERAGE('Trial 1'!AJ54,'Trial 2'!AJ54,'Trial 3'!AJ54,'Trial 4'!AJ54,'Trial 5'!AJ54,'Trial 6'!AJ54,'Trial 7'!AJ54,'Trial 8'!AJ54)","v":{"v":337913.4016545889,"d":"$337,913"}},{"$f":"AVERAGE('Trial 1'!AK54,'Trial 2'!AK54,'Trial 3'!AK54,'Trial 4'!AK54,'Trial 5'!AK54,'Trial 6'!AK54,'Trial 7'!AK54,'Trial 8'!AK54)","v":{"v":338436.3041014723,"d":"$338,436"}},{"$f":"AVERAGE('Trial 1'!AL54,'Trial 2'!AL54,'Trial 3'!AL54,'Trial 4'!AL54,'Trial 5'!AL54,'Trial 6'!AL54,'Trial 7'!AL54,'Trial 8'!AL54)","v":{"v":334295.9080432881,"d":"$334,296"}},{"$f":"AVERAGE('Trial 1'!AM54,'Trial 2'!AM54,'Trial 3'!AM54,'Trial 4'!AM54,'Trial 5'!AM54,'Trial 6'!AM54,'Trial 7'!AM54,'Trial 8'!AM54)","v":{"v":338365.0801224761,"d":"$338,365"}},{"$f":"SUM(AB71:AM71)","v":{"v":4054488.244460893,"d":"$4,054,488"}},{"$f":"AVERAGE('Trial 1'!AO54,'Trial 2'!AO54,'Trial 3'!AO54,'Trial 4'!AO54,'Trial 5'!AO54,'Trial 6'!AO54,'Trial 7'!AO54,'Trial 8'!AO54)","v":{"v":329335.42608542007,"d":"$329,335"}},{"$f":"AVERAGE('Trial 1'!AP54,'Trial 2'!AP54,'Trial 3'!AP54,'Trial 4'!AP54,'Trial 5'!AP54,'Trial 6'!AP54,'Trial 7'!AP54,'Trial 8'!AP54)","v":{"v":331167.3558210957,"d":"$331,167"}},{"$f":"AVERAGE('Trial 1'!AQ54,'Trial 2'!AQ54,'Trial 3'!AQ54,'Trial 4'!AQ54,'Trial 5'!AQ54,'Trial 6'!AQ54,'Trial 7'!AQ54,'Trial 8'!AQ54)","v":{"v":337627.6396771742,"d":"$337,628"}},{"$f":"AVERAGE('Trial 1'!AR54,'Trial 2'!AR54,'Trial 3'!AR54,'Trial 4'!AR54,'Trial 5'!AR54,'Trial 6'!AR54,'Trial 7'!AR54,'Trial 8'!AR54)","v":{"v":333875.7770568337,"d":"$333,876"}},{"$f":"AVERAGE('Trial 1'!AS54,'Trial 2'!AS54,'Trial 3'!AS54,'Trial 4'!AS54,'Trial 5'!AS54,'Trial 6'!AS54,'Trial 7'!AS54,'Trial 8'!AS54)","v":{"v":327393.0762103387,"d":"$327,393"}},{"$f":"AVERAGE('Trial 1'!AT54,'Trial 2'!AT54,'Trial 3'!AT54,'Trial 4'!AT54,'Trial 5'!AT54,'Trial 6'!AT54,'Trial 7'!AT54,'Trial 8'!AT54)","v":{"v":327181.37217727874,"d":"$327,181"}},{"$f":"AVERAGE('Trial 1'!AU54,'Trial 2'!AU54,'Trial 3'!AU54,'Trial 4'!AU54,'Trial 5'!AU54,'Trial 6'!AU54,'Trial 7'!AU54,'Trial 8'!AU54)","v":{"v":336321.2079647931,"d":"$336,321"}},{"$f":"AVERAGE('Trial 1'!AV54,'Trial 2'!AV54,'Trial 3'!AV54,'Trial 4'!AV54,'Trial 5'!AV54,'Trial 6'!AV54,'Trial 7'!AV54,'Trial 8'!AV54)","v":{"v":336155.2317483099,"d":"$336,155"}},{"$f":"AVERAGE('Trial 1'!AW54,'Trial 2'!AW54,'Trial 3'!AW54,'Trial 4'!AW54,'Trial 5'!AW54,'Trial 6'!AW54,'Trial 7'!AW54,'Trial 8'!AW54)","v":{"v":329009.3082852714,"d":"$329,009"}},{"$f":"AVERAGE('Trial 1'!AX54,'Trial 2'!AX54,'Trial 3'!AX54,'Trial 4'!AX54,'Trial 5'!AX54,'Trial 6'!AX54,'Trial 7'!AX54,'Trial 8'!AX54)","v":{"v":332579.61946001754,"d":"$332,580"}},{"$f":"AVERAGE('Trial 1'!AY54,'Trial 2'!AY54,'Trial 3'!AY54,'Trial 4'!AY54,'Trial 5'!AY54,'Trial 6'!AY54,'Trial 7'!AY54,'Trial 8'!AY54)","v":{"v":329379.5788243398,"d":"$329,380"}},{"$f":"AVERAGE('Trial 1'!AZ54,'Trial 2'!AZ54,'Trial 3'!AZ54,'Trial 4'!AZ54,'Trial 5'!AZ54,'Trial 6'!AZ54,'Trial 7'!AZ54,'Trial 8'!AZ54)","v":{"v":331079.8838291245,"d":"$331,080"}},{"$f":"SUM(AO71:AZ71)","v":{"v":3981105.4771399973,"d":"$3,981,105"}},{"$f":"AVERAGE('Trial 1'!BB54,'Trial 2'!BB54,'Trial 3'!BB54,'Trial 4'!BB54,'Trial 5'!BB54,'Trial 6'!BB54,'Trial 7'!BB54,'Trial 8'!BB54)","v":{"v":329309.49804599234,"d":"$329,309"}},{"$f":"AVERAGE('Trial 1'!BC54,'Trial 2'!BC54,'Trial 3'!BC54,'Trial 4'!BC54,'Trial 5'!BC54,'Trial 6'!BC54,'Trial 7'!BC54,'Trial 8'!BC54)","v":{"v":334004.0510937129,"d":"$334,004"}},{"$f":"AVERAGE('Trial 1'!BD54,'Trial 2'!BD54,'Trial 3'!BD54,'Trial 4'!BD54,'Trial 5'!BD54,'Trial 6'!BD54,'Trial 7'!BD54,'Trial 8'!BD54)","v":{"v":335315.5787684678,"d":"$335,316"}},{"$f":"AVERAGE('Trial 1'!BE54,'Trial 2'!BE54,'Trial 3'!BE54,'Trial 4'!BE54,'Trial 5'!BE54,'Trial 6'!BE54,'Trial 7'!BE54,'Trial 8'!BE54)","v":{"v":330278.94613665465,"d":"$330,279"}},{"$f":"AVERAGE('Trial 1'!BF54,'Trial 2'!BF54,'Trial 3'!BF54,'Trial 4'!BF54,'Trial 5'!BF54,'Trial 6'!BF54,'Trial 7'!BF54,'Trial 8'!BF54)","v":{"v":327234.8484238811,"d":"$327,235"}},{"$f":"AVERAGE('Trial 1'!BG54,'Trial 2'!BG54,'Trial 3'!BG54,'Trial 4'!BG54,'Trial 5'!BG54,'Trial 6'!BG54,'Trial 7'!BG54,'Trial 8'!BG54)","v":{"v":326499.3204269748,"d":"$326,499"}},{"$f":"AVERAGE('Trial 1'!BH54,'Trial 2'!BH54,'Trial 3'!BH54,'Trial 4'!BH54,'Trial 5'!BH54,'Trial 6'!BH54,'Trial 7'!BH54,'Trial 8'!BH54)","v":{"v":332640.25018166745,"d":"$332,640"}},{"$f":"AVERAGE('Trial 1'!BI54,'Trial 2'!BI54,'Trial 3'!BI54,'Trial 4'!BI54,'Trial 5'!BI54,'Trial 6'!BI54,'Trial 7'!BI54,'Trial 8'!BI54)","v":{"v":325607.3867087059,"d":"$325,607"}},{"$f":"AVERAGE('Trial 1'!BJ54,'Trial 2'!BJ54,'Trial 3'!BJ54,'Trial 4'!BJ54,'Trial 5'!BJ54,'Trial 6'!BJ54,'Trial 7'!BJ54,'Trial 8'!BJ54)","v":{"v":327353.0365217159,"d":"$327,353"}},{"$f":"AVERAGE('Trial 1'!BK54,'Trial 2'!BK54,'Trial 3'!BK54,'Trial 4'!BK54,'Trial 5'!BK54,'Trial 6'!BK54,'Trial 7'!BK54,'Trial 8'!BK54)","v":{"v":327332.850610577,"d":"$327,333"}},{"$f":"AVERAGE('Trial 1'!BL54,'Trial 2'!BL54,'Trial 3'!BL54,'Trial 4'!BL54,'Trial 5'!BL54,'Trial 6'!BL54,'Trial 7'!BL54,'Trial 8'!BL54)","v":{"v":324633.2388747469,"d":"$324,633"}},{"$f":"AVERAGE('Trial 1'!BM54,'Trial 2'!BM54,'Trial 3'!BM54,'Trial 4'!BM54,'Trial 5'!BM54,'Trial 6'!BM54,'Trial 7'!BM54,'Trial 8'!BM54)","v":{"v":323136.3020658244,"d":"$323,136"}},{"$f":"SUM(BB71:BM71)","v":{"v":3943345.3078589216,"d":"$3,943,345"}},{"$f":"AVERAGE('Trial 1'!BO54,'Trial 2'!BO54,'Trial 3'!BO54,'Trial 4'!BO54,'Trial 5'!BO54,'Trial 6'!BO54,'Trial 7'!BO54,'Trial 8'!BO54)","v":{"v":319413.78807500127,"d":"$319,414"}},{"$f":"AVERAGE('Trial 1'!BP54,'Trial 2'!BP54,'Trial 3'!BP54,'Trial 4'!BP54,'Trial 5'!BP54,'Trial 6'!BP54,'Trial 7'!BP54,'Trial 8'!BP54)","v":{"v":328775.5506578662,"d":"$328,776"}},{"$f":"AVERAGE('Trial 1'!BQ54,'Trial 2'!BQ54,'Trial 3'!BQ54,'Trial 4'!BQ54,'Trial 5'!BQ54,'Trial 6'!BQ54,'Trial 7'!BQ54,'Trial 8'!BQ54)","v":{"v":323366.195046736,"d":"$323,366"}},{"$f":"AVERAGE('Trial 1'!BR54,'Trial 2'!BR54,'Trial 3'!BR54,'Trial 4'!BR54,'Trial 5'!BR54,'Trial 6'!BR54,'Trial 7'!BR54,'Trial 8'!BR54)","v":{"v":331052.4862519544,"d":"$331,052"}},{"$f":"AVERAGE('Trial 1'!BS54,'Trial 2'!BS54,'Trial 3'!BS54,'Trial 4'!BS54,'Trial 5'!BS54,'Trial 6'!BS54,'Trial 7'!BS54,'Trial 8'!BS54)","v":{"v":323845.3725091384,"d":"$323,845"}},{"$f":"AVERAGE('Trial 1'!BT54,'Trial 2'!BT54,'Trial 3'!BT54,'Trial 4'!BT54,'Trial 5'!BT54,'Trial 6'!BT54,'Trial 7'!BT54,'Trial 8'!BT54)","v":{"v":326581.8995363364,"d":"$326,582"}},{"$f":"AVERAGE('Trial 1'!BU54,'Trial 2'!BU54,'Trial 3'!BU54,'Trial 4'!BU54,'Trial 5'!BU54,'Trial 6'!BU54,'Trial 7'!BU54,'Trial 8'!BU54)","v":{"v":320897.2748799071,"d":"$320,897"}},{"$f":"AVERAGE('Trial 1'!BV54,'Trial 2'!BV54,'Trial 3'!BV54,'Trial 4'!BV54,'Trial 5'!BV54,'Trial 6'!BV54,'Trial 7'!BV54,'Trial 8'!BV54)","v":{"v":320181.7558701563,"d":"$320,182"}},{"$f":"AVERAGE('Trial 1'!BW54,'Trial 2'!BW54,'Trial 3'!BW54,'Trial 4'!BW54,'Trial 5'!BW54,'Trial 6'!BW54,'Trial 7'!BW54,'Trial 8'!BW54)","v":{"v":327638.40700346546,"d":"$327,638"}},{"$f":"AVERAGE('Trial 1'!BX54,'Trial 2'!BX54,'Trial 3'!BX54,'Trial 4'!BX54,'Trial 5'!BX54,'Trial 6'!BX54,'Trial 7'!BX54,'Trial 8'!BX54)","v":{"v":317408.46760861174,"d":"$317,408"}},{"$f":"AVERAGE('Trial 1'!BY54,'Trial 2'!BY54,'Trial 3'!BY54,'Trial 4'!BY54,'Trial 5'!BY54,'Trial 6'!BY54,'Trial 7'!BY54,'Trial 8'!BY54)","v":{"v":323869.6441816878,"d":"$323,870"}},{"$f":"AVERAGE('Trial 1'!BZ54,'Trial 2'!BZ54,'Trial 3'!BZ54,'Trial 4'!BZ54,'Trial 5'!BZ54,'Trial 6'!BZ54,'Trial 7'!BZ54,'Trial 8'!BZ54)","v":{"v":322275.3195996321,"d":"$322,275"}},{"$f":"SUM(BO71:BZ71)","v":{"v":3885306.1612204937,"d":"$3,885,306"}},{"$f":"AVERAGE('Trial 1'!CB54,'Trial 2'!CB54,'Trial 3'!CB54,'Trial 4'!CB54,'Trial 5'!CB54,'Trial 6'!CB54,'Trial 7'!CB54,'Trial 8'!CB54)","v":{"v":321255.16376500815,"d":"$321,255"}},{"$f":"AVERAGE('Trial 1'!CC54,'Trial 2'!CC54,'Trial 3'!CC54,'Trial 4'!CC54,'Trial 5'!CC54,'Trial 6'!CC54,'Trial 7'!CC54,'Trial 8'!CC54)","v":{"v":321217.39805575233,"d":"$321,217"}},{"$f":"AVERAGE('Trial 1'!CD54,'Trial 2'!CD54,'Trial 3'!CD54,'Trial 4'!CD54,'Trial 5'!CD54,'Trial 6'!CD54,'Trial 7'!CD54,'Trial 8'!CD54)","v":{"v":315341.4763225526,"d":"$315,341"}},{"$f":"AVERAGE('Trial 1'!CE54,'Trial 2'!CE54,'Trial 3'!CE54,'Trial 4'!CE54,'Trial 5'!CE54,'Trial 6'!CE54,'Trial 7'!CE54,'Trial 8'!CE54)","v":{"v":316163.86042708554,"d":"$316,164"}},{"$f":"AVERAGE('Trial 1'!CF54,'Trial 2'!CF54,'Trial 3'!CF54,'Trial 4'!CF54,'Trial 5'!CF54,'Trial 6'!CF54,'Trial 7'!CF54,'Trial 8'!CF54)","v":{"v":318401.24580463214,"d":"$318,401"}},{"$f":"AVERAGE('Trial 1'!CG54,'Trial 2'!CG54,'Trial 3'!CG54,'Trial 4'!CG54,'Trial 5'!CG54,'Trial 6'!CG54,'Trial 7'!CG54,'Trial 8'!CG54)","v":{"v":319594.6327823698,"d":"$319,595"}},{"$f":"AVERAGE('Trial 1'!CH54,'Trial 2'!CH54,'Trial 3'!CH54,'Trial 4'!CH54,'Trial 5'!CH54,'Trial 6'!CH54,'Trial 7'!CH54,'Trial 8'!CH54)","v":{"v":315515.1494577312,"d":"$315,515"}},{"$f":"AVERAGE('Trial 1'!CI54,'Trial 2'!CI54,'Trial 3'!CI54,'Trial 4'!CI54,'Trial 5'!CI54,'Trial 6'!CI54,'Trial 7'!CI54,'Trial 8'!CI54)","v":{"v":317359.77967691165,"d":"$317,360"}},{"$f":"AVERAGE('Trial 1'!CJ54,'Trial 2'!CJ54,'Trial 3'!CJ54,'Trial 4'!CJ54,'Trial 5'!CJ54,'Trial 6'!CJ54,'Trial 7'!CJ54,'Trial 8'!CJ54)","v":{"v":322984.28600630315,"d":"$322,984"}},{"$f":"AVERAGE('Trial 1'!CK54,'Trial 2'!CK54,'Trial 3'!CK54,'Trial 4'!CK54,'Trial 5'!CK54,'Trial 6'!CK54,'Trial 7'!CK54,'Trial 8'!CK54)","v":{"v":318305.9740155115,"d":"$318,306"}},{"$f":"AVERAGE('Trial 1'!CL54,'Trial 2'!CL54,'Trial 3'!CL54,'Trial 4'!CL54,'Trial 5'!CL54,'Trial 6'!CL54,'Trial 7'!CL54,'Trial 8'!CL54)","v":{"v":315514.8023745873,"d":"$315,515"}},{"$f":"AVERAGE('Trial 1'!CM54,'Trial 2'!CM54,'Trial 3'!CM54,'Trial 4'!CM54,'Trial 5'!CM54,'Trial 6'!CM54,'Trial 7'!CM54,'Trial 8'!CM54)","v":{"v":310394.72001701273,"d":"$310,395"}},{"$f":"SUM(CB71:CM71)","v":{"v":3812048.488705458,"d":"$3,812,048"}},{"$f":"AVERAGE('Trial 1'!CO54,'Trial 2'!CO54,'Trial 3'!CO54,'Trial 4'!CO54,'Trial 5'!CO54,'Trial 6'!CO54,'Trial 7'!CO54,'Trial 8'!CO54)","v":{"v":315420.7174725299,"d":"$315,421"}},{"$f":"AVERAGE('Trial 1'!CP54,'Trial 2'!CP54,'Trial 3'!CP54,'Trial 4'!CP54,'Trial 5'!CP54,'Trial 6'!CP54,'Trial 7'!CP54,'Trial 8'!CP54)","v":{"v":313775.1358865013,"d":"$313,775"}},{"$f":"AVERAGE('Trial 1'!CQ54,'Trial 2'!CQ54,'Trial 3'!CQ54,'Trial 4'!CQ54,'Trial 5'!CQ54,'Trial 6'!CQ54,'Trial 7'!CQ54,'Trial 8'!CQ54)","v":{"v":316860.2292919054,"d":"$316,860"}},{"$f":"AVERAGE('Trial 1'!CR54,'Trial 2'!CR54,'Trial 3'!CR54,'Trial 4'!CR54,'Trial 5'!CR54,'Trial 6'!CR54,'Trial 7'!CR54,'Trial 8'!CR54)","v":{"v":314033.18230525387,"d":"$314,033"}},{"$f":"AVERAGE('Trial 1'!CS54,'Trial 2'!CS54,'Trial 3'!CS54,'Trial 4'!CS54,'Trial 5'!CS54,'Trial 6'!CS54,'Trial 7'!CS54,'Trial 8'!CS54)","v":{"v":316230.0256366013,"d":"$316,230"}},{"$f":"AVERAGE('Trial 1'!CT54,'Trial 2'!CT54,'Trial 3'!CT54,'Trial 4'!CT54,'Trial 5'!CT54,'Trial 6'!CT54,'Trial 7'!CT54,'Trial 8'!CT54)","v":{"v":313519.945414387,"d":"$313,520"}},{"$f":"AVERAGE('Trial 1'!CU54,'Trial 2'!CU54,'Trial 3'!CU54,'Trial 4'!CU54,'Trial 5'!CU54,'Trial 6'!CU54,'Trial 7'!CU54,'Trial 8'!CU54)","v":{"v":316610.41171584127,"d":"$316,610"}},{"$f":"AVERAGE('Trial 1'!CV54,'Trial 2'!CV54,'Trial 3'!CV54,'Trial 4'!CV54,'Trial 5'!CV54,'Trial 6'!CV54,'Trial 7'!CV54,'Trial 8'!CV54)","v":{"v":314009.19646160386,"d":"$314,009"}},{"$f":"AVERAGE('Trial 1'!CW54,'Trial 2'!CW54,'Trial 3'!CW54,'Trial 4'!CW54,'Trial 5'!CW54,'Trial 6'!CW54,'Trial 7'!CW54,'Trial 8'!CW54)","v":{"v":309772.9000057828,"d":"$309,773"}},{"$f":"AVERAGE('Trial 1'!CX54,'Trial 2'!CX54,'Trial 3'!CX54,'Trial 4'!CX54,'Trial 5'!CX54,'Trial 6'!CX54,'Trial 7'!CX54,'Trial 8'!CX54)","v":{"v":315711.26627167274,"d":"$315,711"}},{"$f":"AVERAGE('Trial 1'!CY54,'Trial 2'!CY54,'Trial 3'!CY54,'Trial 4'!CY54,'Trial 5'!CY54,'Trial 6'!CY54,'Trial 7'!CY54,'Trial 8'!CY54)","v":{"v":316531.63347045926,"d":"$316,532"}},{"$f":"AVERAGE('Trial 1'!CZ54,'Trial 2'!CZ54,'Trial 3'!CZ54,'Trial 4'!CZ54,'Trial 5'!CZ54,'Trial 6'!CZ54,'Trial 7'!CZ54,'Trial 8'!CZ54)","v":{"v":317585.7956202899,"d":"$317,586"}},{"$f":"SUM(CO71:CZ71)","v":{"v":3780060.439552829,"d":"$3,780,060"}},{"$f":"AVERAGE('Trial 1'!DB54,'Trial 2'!DB54,'Trial 3'!DB54,'Trial 4'!DB54,'Trial 5'!DB54,'Trial 6'!DB54,'Trial 7'!DB54,'Trial 8'!DB54)","v":{"v":310815.6270643217,"d":"$310,816"}},{"$f":"AVERAGE('Trial 1'!DC54,'Trial 2'!DC54,'Trial 3'!DC54,'Trial 4'!DC54,'Trial 5'!DC54,'Trial 6'!DC54,'Trial 7'!DC54,'Trial 8'!DC54)","v":{"v":311432.9729795704,"d":"$311,433"}},{"$f":"AVERAGE('Trial 1'!DD54,'Trial 2'!DD54,'Trial 3'!DD54,'Trial 4'!DD54,'Trial 5'!DD54,'Trial 6'!DD54,'Trial 7'!DD54,'Trial 8'!DD54)","v":{"v":310972.3815032769,"d":"$310,972"}},{"$f":"AVERAGE('Trial 1'!DE54,'Trial 2'!DE54,'Trial 3'!DE54,'Trial 4'!DE54,'Trial 5'!DE54,'Trial 6'!DE54,'Trial 7'!DE54,'Trial 8'!DE54)","v":{"v":314519.3977600888,"d":"$314,519"}},{"$f":"AVERAGE('Trial 1'!DF54,'Trial 2'!DF54,'Trial 3'!DF54,'Trial 4'!DF54,'Trial 5'!DF54,'Trial 6'!DF54,'Trial 7'!DF54,'Trial 8'!DF54)","v":{"v":312493.8262380877,"d":"$312,494"}},{"$f":"AVERAGE('Trial 1'!DG54,'Trial 2'!DG54,'Trial 3'!DG54,'Trial 4'!DG54,'Trial 5'!DG54,'Trial 6'!DG54,'Trial 7'!DG54,'Trial 8'!DG54)","v":{"v":307339.2667987355,"d":"$307,339"}},{"$f":"AVERAGE('Trial 1'!DH54,'Trial 2'!DH54,'Trial 3'!DH54,'Trial 4'!DH54,'Trial 5'!DH54,'Trial 6'!DH54,'Trial 7'!DH54,'Trial 8'!DH54)","v":{"v":312869.3675093866,"d":"$312,869"}},{"$f":"AVERAGE('Trial 1'!DI54,'Trial 2'!DI54,'Trial 3'!DI54,'Trial 4'!DI54,'Trial 5'!DI54,'Trial 6'!DI54,'Trial 7'!DI54,'Trial 8'!DI54)","v":{"v":310538.2830683735,"d":"$310,538"}},{"$f":"AVERAGE('Trial 1'!DJ54,'Trial 2'!DJ54,'Trial 3'!DJ54,'Trial 4'!DJ54,'Trial 5'!DJ54,'Trial 6'!DJ54,'Trial 7'!DJ54,'Trial 8'!DJ54)","v":{"v":313306.3205940444,"d":"$313,306"}},{"$f":"AVERAGE('Trial 1'!DK54,'Trial 2'!DK54,'Trial 3'!DK54,'Trial 4'!DK54,'Trial 5'!DK54,'Trial 6'!DK54,'Trial 7'!DK54,'Trial 8'!DK54)","v":{"v":311746.333242665,"d":"$311,746"}},{"$f":"AVERAGE('Trial 1'!DL54,'Trial 2'!DL54,'Trial 3'!DL54,'Trial 4'!DL54,'Trial 5'!DL54,'Trial 6'!DL54,'Trial 7'!DL54,'Trial 8'!DL54)","v":{"v":306390.6627867927,"d":"$306,391"}},{"$f":"AVERAGE('Trial 1'!DM54,'Trial 2'!DM54,'Trial 3'!DM54,'Trial 4'!DM54,'Trial 5'!DM54,'Trial 6'!DM54,'Trial 7'!DM54,'Trial 8'!DM54)","v":{"v":312375.5663399672,"d":"$312,376"}},{"$f":"SUM(DB71:DM71)","v":{"v":3734800.0058853105,"d":"$3,734,800"}},{"$f":"AVERAGE('Trial 1'!DO54,'Trial 2'!DO54,'Trial 3'!DO54,'Trial 4'!DO54,'Trial 5'!DO54,'Trial 6'!DO54,'Trial 7'!DO54,'Trial 8'!DO54)","v":{"v":311919.45643734594,"d":"$311,919"}},{"$f":"AVERAGE('Trial 1'!DP54,'Trial 2'!DP54,'Trial 3'!DP54,'Trial 4'!DP54,'Trial 5'!DP54,'Trial 6'!DP54,'Trial 7'!DP54,'Trial 8'!DP54)","v":{"v":307398.63395552913,"d":"$307,399"}},{"$f":"AVERAGE('Trial 1'!DQ54,'Trial 2'!DQ54,'Trial 3'!DQ54,'Trial 4'!DQ54,'Trial 5'!DQ54,'Trial 6'!DQ54,'Trial 7'!DQ54,'Trial 8'!DQ54)","v":{"v":310194.6870977175,"d":"$310,195"}},{"$f":"AVERAGE('Trial 1'!DR54,'Trial 2'!DR54,'Trial 3'!DR54,'Trial 4'!DR54,'Trial 5'!DR54,'Trial 6'!DR54,'Trial 7'!DR54,'Trial 8'!DR54)","v":{"v":307383.6046759927,"d":"$307,384"}},{"$f":"AVERAGE('Trial 1'!DS54,'Trial 2'!DS54,'Trial 3'!DS54,'Trial 4'!DS54,'Trial 5'!DS54,'Trial 6'!DS54,'Trial 7'!DS54,'Trial 8'!DS54)","v":{"v":310037.4901088625,"d":"$310,037"}},{"$f":"AVERAGE('Trial 1'!DT54,'Trial 2'!DT54,'Trial 3'!DT54,'Trial 4'!DT54,'Trial 5'!DT54,'Trial 6'!DT54,'Trial 7'!DT54,'Trial 8'!DT54)","v":{"v":305866.16609043075,"d":"$305,866"}},{"$f":"AVERAGE('Trial 1'!DU54,'Trial 2'!DU54,'Trial 3'!DU54,'Trial 4'!DU54,'Trial 5'!DU54,'Trial 6'!DU54,'Trial 7'!DU54,'Trial 8'!DU54)","v":{"v":309138.2188422794,"d":"$309,138"}},{"$f":"AVERAGE('Trial 1'!DV54,'Trial 2'!DV54,'Trial 3'!DV54,'Trial 4'!DV54,'Trial 5'!DV54,'Trial 6'!DV54,'Trial 7'!DV54,'Trial 8'!DV54)","v":{"v":300810.933666516,"d":"$300,811"}},{"$f":"AVERAGE('Trial 1'!DW54,'Trial 2'!DW54,'Trial 3'!DW54,'Trial 4'!DW54,'Trial 5'!DW54,'Trial 6'!DW54,'Trial 7'!DW54,'Trial 8'!DW54)","v":{"v":310091.8194564387,"d":"$310,092"}},{"$f":"AVERAGE('Trial 1'!DX54,'Trial 2'!DX54,'Trial 3'!DX54,'Trial 4'!DX54,'Trial 5'!DX54,'Trial 6'!DX54,'Trial 7'!DX54,'Trial 8'!DX54)","v":{"v":305855.62751248054,"d":"$305,856"}},{"$f":"AVERAGE('Trial 1'!DY54,'Trial 2'!DY54,'Trial 3'!DY54,'Trial 4'!DY54,'Trial 5'!DY54,'Trial 6'!DY54,'Trial 7'!DY54,'Trial 8'!DY54)","v":{"v":307527.4380761824,"d":"$307,527"}},{"$f":"AVERAGE('Trial 1'!DZ54,'Trial 2'!DZ54,'Trial 3'!DZ54,'Trial 4'!DZ54,'Trial 5'!DZ54,'Trial 6'!DZ54,'Trial 7'!DZ54,'Trial 8'!DZ54)","v":{"v":304948.0648284156,"d":"$304,948"}},{"$f":"SUM(DO71:DZ71)","v":{"v":3691172.1407481907,"d":"$3,691,172"}},{"$f":"AVERAGE('Trial 1'!EB54,'Trial 2'!EB54,'Trial 3'!EB54,'Trial 4'!EB54,'Trial 5'!EB54,'Trial 6'!EB54,'Trial 7'!EB54,'Trial 8'!EB54)","v":{"v":308881.4011446575,"d":"$308,881"}},{"$f":"AVERAGE('Trial 1'!EC54,'Trial 2'!EC54,'Trial 3'!EC54,'Trial 4'!EC54,'Trial 5'!EC54,'Trial 6'!EC54,'Trial 7'!EC54,'Trial 8'!EC54)","v":{"v":308041.7158407689,"d":"$308,042"}},{"$f":"AVERAGE('Trial 1'!ED54,'Trial 2'!ED54,'Trial 3'!ED54,'Trial 4'!ED54,'Trial 5'!ED54,'Trial 6'!ED54,'Trial 7'!ED54,'Trial 8'!ED54)","v":{"v":298751.4434554715,"d":"$298,751"}},{"$f":"AVERAGE('Trial 1'!EE54,'Trial 2'!EE54,'Trial 3'!EE54,'Trial 4'!EE54,'Trial 5'!EE54,'Trial 6'!EE54,'Trial 7'!EE54,'Trial 8'!EE54)","v":{"v":305636.27545447386,"d":"$305,636"}},{"$f":"AVERAGE('Trial 1'!EF54,'Trial 2'!EF54,'Trial 3'!EF54,'Trial 4'!EF54,'Trial 5'!EF54,'Trial 6'!EF54,'Trial 7'!EF54,'Trial 8'!EF54)","v":{"v":304051.68470571743,"d":"$304,052"}},{"$f":"AVERAGE('Trial 1'!EG54,'Trial 2'!EG54,'Trial 3'!EG54,'Trial 4'!EG54,'Trial 5'!EG54,'Trial 6'!EG54,'Trial 7'!EG54,'Trial 8'!EG54)","v":{"v":303462.04763310513,"d":"$303,462"}},{"$f":"AVERAGE('Trial 1'!EH54,'Trial 2'!EH54,'Trial 3'!EH54,'Trial 4'!EH54,'Trial 5'!EH54,'Trial 6'!EH54,'Trial 7'!EH54,'Trial 8'!EH54)","v":{"v":304962.9683943363,"d":"$304,963"}},{"$f":"AVERAGE('Trial 1'!EI54,'Trial 2'!EI54,'Trial 3'!EI54,'Trial 4'!EI54,'Trial 5'!EI54,'Trial 6'!EI54,'Trial 7'!EI54,'Trial 8'!EI54)","v":{"v":303952.5457668803,"d":"$303,953"}},{"$f":"AVERAGE('Trial 1'!EJ54,'Trial 2'!EJ54,'Trial 3'!EJ54,'Trial 4'!EJ54,'Trial 5'!EJ54,'Trial 6'!EJ54,'Trial 7'!EJ54,'Trial 8'!EJ54)","v":{"v":304503.861882944,"d":"$304,504"}},{"$f":"AVERAGE('Trial 1'!EK54,'Trial 2'!EK54,'Trial 3'!EK54,'Trial 4'!EK54,'Trial 5'!EK54,'Trial 6'!EK54,'Trial 7'!EK54,'Trial 8'!EK54)","v":{"v":300366.98048489145,"d":"$300,367"}},{"$f":"AVERAGE('Trial 1'!EL54,'Trial 2'!EL54,'Trial 3'!EL54,'Trial 4'!EL54,'Trial 5'!EL54,'Trial 6'!EL54,'Trial 7'!EL54,'Trial 8'!EL54)","v":{"v":303101.12627797853,"d":"$303,101"}},{"$f":"AVERAGE('Trial 1'!EM54,'Trial 2'!EM54,'Trial 3'!EM54,'Trial 4'!EM54,'Trial 5'!EM54,'Trial 6'!EM54,'Trial 7'!EM54,'Trial 8'!EM54)","v":{"v":306553.1495051025,"d":"$306,553"}},{"$f":"SUM(EB71:EM71)","v":{"v":3652265.2005463275,"d":"$3,652,265"}}]
[{"$f":"Labels!B86","v":"Tax std dev"},{"$f":"STDEV('Trial 1'!B54,'Trial 2'!B54,'Trial 3'!B54,'Trial 4'!B54,'Trial 5'!B54,'Trial 6'!B54,'Trial 7'!B54,'Trial 8'!B54)","v":{"v":6395.992627424269,"d":"$6,396"}},{"$f":"STDEV('Trial 1'!C54,'Trial 2'!C54,'Trial 3'!C54,'Trial 4'!C54,'Trial 5'!C54,'Trial 6'!C54,'Trial 7'!C54,'Trial 8'!C54)","v":{"v":15140.756899616248,"d":"$15,141"}},{"$f":"STDEV('Trial 1'!D54,'Trial 2'!D54,'Trial 3'!D54,'Trial 4'!D54,'Trial 5'!D54,'Trial 6'!D54,'Trial 7'!D54,'Trial 8'!D54)","v":{"v":6411.5940856609395,"d":"$6,412"}},{"$f":"STDEV('Trial 1'!E54,'Trial 2'!E54,'Trial 3'!E54,'Trial 4'!E54,'Trial 5'!E54,'Trial 6'!E54,'Trial 7'!E54,'Trial 8'!E54)","v":{"v":6279.666463697799,"d":"$6,280"}},{"$f":"STDEV('Trial 1'!F54,'Trial 2'!F54,'Trial 3'!F54,'Trial 4'!F54,'Trial 5'!F54,'Trial 6'!F54,'Trial 7'!F54,'Trial 8'!F54)","v":{"v":9130.060404329673,"d":"$9,130"}},{"$f":"STDEV('Trial 1'!G54,'Trial 2'!G54,'Trial 3'!G54,'Trial 4'!G54,'Trial 5'!G54,'Trial 6'!G54,'Trial 7'!G54,'Trial 8'!G54)","v":{"v":8576.915345110443,"d":"$8,577"}},{"$f":"STDEV('Trial 1'!H54,'Trial 2'!H54,'Trial 3'!H54,'Trial 4'!H54,'Trial 5'!H54,'Trial 6'!H54,'Trial 7'!H54,'Trial 8'!H54)","v":{"v":7359.061953962947,"d":"$7,359"}},{"$f":"STDEV('Trial 1'!I54,'Trial 2'!I54,'Trial 3'!I54,'Trial 4'!I54,'Trial 5'!I54,'Trial 6'!I54,'Trial 7'!I54,'Trial 8'!I54)","v":{"v":9100.191559726063,"d":"$9,100"}},{"$f":"STDEV('Trial 1'!J54,'Trial 2'!J54,'Trial 3'!J54,'Trial 4'!J54,'Trial 5'!J54,'Trial 6'!J54,'Trial 7'!J54,'Trial 8'!J54)","v":{"v":8662.294238518303,"d":"$8,662"}},{"$f":"STDEV('Trial 1'!K54,'Trial 2'!K54,'Trial 3'!K54,'Trial 4'!K54,'Trial 5'!K54,'Trial 6'!K54,'Trial 7'!K54,'Trial 8'!K54)","v":{"v":7167.149641472834,"d":"$7,167"}},{"$f":"STDEV('Trial 1'!L54,'Trial 2'!L54,'Trial 3'!L54,'Trial 4'!L54,'Trial 5'!L54,'Trial 6'!L54,'Trial 7'!L54,'Trial 8'!L54)","v":{"v":6846.678336700823,"d":"$6,847"}},{"$f":"STDEV('Trial 1'!M54,'Trial 2'!M54,'Trial 3'!M54,'Trial 4'!M54,'Trial 5'!M54,'Trial 6'!M54,'Trial 7'!M54,'Trial 8'!M54)","v":{"v":9939.418363875922,"d":"$9,939"}},{"$f":"SUM(B72:M72)","v":{"v":101009.77992009626,"d":"$101,010"}},{"$f":"STDEV('Trial 1'!O54,'Trial 2'!O54,'Trial 3'!O54,'Trial 4'!O54,'Trial 5'!O54,'Trial 6'!O54,'Trial 7'!O54,'Trial 8'!O54)","v":{"v":6949.287858442516,"d":"$6,949"}},{"$f":"STDEV('Trial 1'!P54,'Trial 2'!P54,'Trial 3'!P54,'Trial 4'!P54,'Trial 5'!P54,'Trial 6'!P54,'Trial 7'!P54,'Trial 8'!P54)","v":{"v":7066.18021484802,"d":"$7,066"}},{"$f":"STDEV('Trial 1'!Q54,'Trial 2'!Q54,'Trial 3'!Q54,'Trial 4'!Q54,'Trial 5'!Q54,'Trial 6'!Q54,'Trial 7'!Q54,'Trial 8'!Q54)","v":{"v":8628.117167825067,"d":"$8,628"}},{"$f":"STDEV('Trial 1'!R54,'Trial 2'!R54,'Trial 3'!R54,'Trial 4'!R54,'Trial 5'!R54,'Trial 6'!R54,'Trial 7'!R54,'Trial 8'!R54)","v":{"v":11944.449915640816,"d":"$11,944"}},{"$f":"STDEV('Trial 1'!S54,'Trial 2'!S54,'Trial 3'!S54,'Trial 4'!S54,'Trial 5'!S54,'Trial 6'!S54,'Trial 7'!S54,'Trial 8'!S54)","v":{"v":9486.302888304795,"d":"$9,486"}},{"$f":"STDEV('Trial 1'!T54,'Trial 2'!T54,'Trial 3'!T54,'Trial 4'!T54,'Trial 5'!T54,'Trial 6'!T54,'Trial 7'!T54,'Trial 8'!T54)","v":{"v":13590.804858365893,"d":"$13,591"}},{"$f":"STDEV('Trial 1'!U54,'Trial 2'!U54,'Trial 3'!U54,'Trial 4'!U54,'Trial 5'!U54,'Trial 6'!U54,'Trial 7'!U54,'Trial 8'!U54)","v":{"v":7364.567156506107,"d":"$7,365"}},{"$f":"STDEV('Trial 1'!V54,'Trial 2'!V54,'Trial 3'!V54,'Trial 4'!V54,'Trial 5'!V54,'Trial 6'!V54,'Trial 7'!V54,'Trial 8'!V54)","v":{"v":7090.162628246636,"d":"$7,090"}},{"$f":"STDEV('Trial 1'!W54,'Trial 2'!W54,'Trial 3'!W54,'Trial 4'!W54,'Trial 5'!W54,'Trial 6'!W54,'Trial 7'!W54,'Trial 8'!W54)","v":{"v":9920.010869816337,"d":"$9,920"}},{"$f":"STDEV('Trial 1'!X54,'Trial 2'!X54,'Trial 3'!X54,'Trial 4'!X54,'Trial 5'!X54,'Trial 6'!X54,'Trial 7'!X54,'Trial 8'!X54)","v":{"v":3951.968094523099,"d":"$3,952"}},{"$f":"STDEV('Trial 1'!Y54,'Trial 2'!Y54,'Trial 3'!Y54,'Trial 4'!Y54,'Trial 5'!Y54,'Trial 6'!Y54,'Trial 7'!Y54,'Trial 8'!Y54)","v":{"v":11345.926219312034,"d":"$11,346"}},{"$f":"STDEV('Trial 1'!Z54,'Trial 2'!Z54,'Trial 3'!Z54,'Trial 4'!Z54,'Trial 5'!Z54,'Trial 6'!Z54,'Trial 7'!Z54,'Trial 8'!Z54)","v":{"v":7416.983345680126,"d":"$7,417"}},{"$f":"SUM(O72:Z72)","v":{"v":104754.76121751145,"d":"$104,755"}},{"$f":"STDEV('Trial 1'!AB54,'Trial 2'!AB54,'Trial 3'!AB54,'Trial 4'!AB54,'Trial 5'!AB54,'Trial 6'!AB54,'Trial 7'!AB54,'Trial 8'!AB54)","v":{"v":8014.190448679368,"d":"$8,014"}},{"$f":"STDEV('Trial 1'!AC54,'Trial 2'!AC54,'Trial 3'!AC54,'Trial 4'!AC54,'Trial 5'!AC54,'Trial 6'!AC54,'Trial 7'!AC54,'Trial 8'!AC54)","v":{"v":9700.283463854328,"d":"$9,700"}},{"$f":"STDEV('Trial 1'!AD54,'Trial 2'!AD54,'Trial 3'!AD54,'Trial 4'!AD54,'Trial 5'!AD54,'Trial 6'!AD54,'Trial 7'!AD54,'Trial 8'!AD54)","v":{"v":6728.632507038658,"d":"$6,729"}},{"$f":"STDEV('Trial 1'!AE54,'Trial 2'!AE54,'Trial 3'!AE54,'Trial 4'!AE54,'Trial 5'!AE54,'Trial 6'!AE54,'Trial 7'!AE54,'Trial 8'!AE54)","v":{"v":5425.989820615887,"d":"$5,426"}},{"$f":"STDEV('Trial 1'!AF54,'Trial 2'!AF54,'Trial 3'!AF54,'Trial 4'!AF54,'Trial 5'!AF54,'Trial 6'!AF54,'Trial 7'!AF54,'Trial 8'!AF54)","v":{"v":12503.624069548972,"d":"$12,504"}},{"$f":"STDEV('Trial 1'!AG54,'Trial 2'!AG54,'Trial 3'!AG54,'Trial 4'!AG54,'Trial 5'!AG54,'Trial 6'!AG54,'Trial 7'!AG54,'Trial 8'!AG54)","v":{"v":5843.130041130166,"d":"$5,843"}},{"$f":"STDEV('Trial 1'!AH54,'Trial 2'!AH54,'Trial 3'!AH54,'Trial 4'!AH54,'Trial 5'!AH54,'Trial 6'!AH54,'Trial 7'!AH54,'Trial 8'!AH54)","v":{"v":8125.517677360236,"d":"$8,126"}},{"$f":"STDEV('Trial 1'!AI54,'Trial 2'!AI54,'Trial 3'!AI54,'Trial 4'!AI54,'Trial 5'!AI54,'Trial 6'!AI54,'Trial 7'!AI54,'Trial 8'!AI54)","v":{"v":4980.810220591255,"d":"$4,981"}},{"$f":"STDEV('Trial 1'!AJ54,'Trial 2'!AJ54,'Trial 3'!AJ54,'Trial 4'!AJ54,'Trial 5'!AJ54,'Trial 6'!AJ54,'Trial 7'!AJ54,'Trial 8'!AJ54)","v":{"v":11721.517928277672,"d":"$11,722"}},{"$f":"STDEV('Trial 1'!AK54,'Trial 2'!AK54,'Trial 3'!AK54,'Trial 4'!AK54,'Trial 5'!AK54,'Trial 6'!AK54,'Trial 7'!AK54,'Trial 8'!AK54)","v":{"v":8026.153662923556,"d":"$8,026"}},{"$f":"STDEV('Trial 1'!AL54,'Trial 2'!AL54,'Trial 3'!AL54,'Trial 4'!AL54,'Trial 5'!AL54,'Trial 6'!AL54,'Trial 7'!AL54,'Trial 8'!AL54)","v":{"v":8754.965804710071,"d":"$8,755"}},{"$f":"STDEV('Trial 1'!AM54,'Trial 2'!AM54,'Trial 3'!AM54,'Trial 4'!AM54,'Trial 5'!AM54,'Trial 6'!AM54,'Trial 7'!AM54,'Trial 8'!AM54)","v":{"v":11751.012865827515,"d":"$11,751"}},{"$f":"SUM(AB72:AM72)","v":{"v":101575.82851055768,"d":"$101,576"}},{"$f":"STDEV('Trial 1'!AO54,'Trial 2'!AO54,'Trial 3'!AO54,'Trial 4'!AO54,'Trial 5'!AO54,'Trial 6'!AO54,'Trial 7'!AO54,'Trial 8'!AO54)","v":{"v":8432.421159005738,"d":"$8,432"}},{"$f":"STDEV('Trial 1'!AP54,'Trial 2'!AP54,'Trial 3'!AP54,'Trial 4'!AP54,'Trial 5'!AP54,'Trial 6'!AP54,'Trial 7'!AP54,'Trial 8'!AP54)","v":{"v":3674.8526370103705,"d":"$3,675"}},{"$f":"STDEV('Trial 1'!AQ54,'Trial 2'!AQ54,'Trial 3'!AQ54,'Trial 4'!AQ54,'Trial 5'!AQ54,'Trial 6'!AQ54,'Trial 7'!AQ54,'Trial 8'!AQ54)","v":{"v":8414.42376427353,"d":"$8,414"}},{"$f":"STDEV('Trial 1'!AR54,'Trial 2'!AR54,'Trial 3'!AR54,'Trial 4'!AR54,'Trial 5'!AR54,'Trial 6'!AR54,'Trial 7'!AR54,'Trial 8'!AR54)","v":{"v":11095.441448549644,"d":"$11,095"}},{"$f":"STDEV('Trial 1'!AS54,'Trial 2'!AS54,'Trial 3'!AS54,'Trial 4'!AS54,'Trial 5'!AS54,'Trial 6'!AS54,'Trial 7'!AS54,'Trial 8'!AS54)","v":{"v":7094.068017627159,"d":"$7,094"}},{"$f":"STDEV('Trial 1'!AT54,'Trial 2'!AT54,'Trial 3'!AT54,'Trial 4'!AT54,'Trial 5'!AT54,'Trial 6'!AT54,'Trial 7'!AT54,'Trial 8'!AT54)","v":{"v":7521.369531039867,"d":"$7,521"}},{"$f":"STDEV('Trial 1'!AU54,'Trial 2'!AU54,'Trial 3'!AU54,'Trial 4'!AU54,'Trial 5'!AU54,'Trial 6'!AU54,'Trial 7'!AU54,'Trial 8'!AU54)","v":{"v":6386.810869367518,"d":"$6,387"}},{"$f":"STDEV('Trial 1'!AV54,'Trial 2'!AV54,'Trial 3'!AV54,'Trial 4'!AV54,'Trial 5'!AV54,'Trial 6'!AV54,'Trial 7'!AV54,'Trial 8'!AV54)","v":{"v":4746.577159261866,"d":"$4,747"}},{"$f":"STDEV('Trial 1'!AW54,'Trial 2'!AW54,'Trial 3'!AW54,'Trial 4'!AW54,'Trial 5'!AW54,'Trial 6'!AW54,'Trial 7'!AW54,'Trial 8'!AW54)","v":{"v":9911.509939282827,"d":"$9,912"}},{"$f":"STDEV('Trial 1'!AX54,'Trial 2'!AX54,'Trial 3'!AX54,'Trial 4'!AX54,'Trial 5'!AX54,'Trial 6'!AX54,'Trial 7'!AX54,'Trial 8'!AX54)","v":{"v":9909.728644975627,"d":"$9,910"}},{"$f":"STDEV('Trial 1'!AY54,'Trial 2'!AY54,'Trial 3'!AY54,'Trial 4'!AY54,'Trial 5'!AY54,'Trial 6'!AY54,'Trial 7'!AY54,'Trial 8'!AY54)","v":{"v":8521.052248622123,"d":"$8,521"}},{"$f":"STDEV('Trial 1'!AZ54,'Trial 2'!AZ54,'Trial 3'!AZ54,'Trial 4'!AZ54,'Trial 5'!AZ54,'Trial 6'!AZ54,'Trial 7'!AZ54,'Trial 8'!AZ54)","v":{"v":9611.77048650615,"d":"$9,612"}},{"$f":"SUM(AO72:AZ72)","v":{"v":95320.02590552242,"d":"$95,320"}},{"$f":"STDEV('Trial 1'!BB54,'Trial 2'!BB54,'Trial 3'!BB54,'Trial 4'!BB54,'Trial 5'!BB54,'Trial 6'!BB54,'Trial 7'!BB54,'Trial 8'!BB54)","v":{"v":9627.433708152541,"d":"$9,627"}},{"$f":"STDEV('Trial 1'!BC54,'Trial 2'!BC54,'Trial 3'!BC54,'Trial 4'!BC54,'Trial 5'!BC54,'Trial 6'!BC54,'Trial 7'!BC54,'Trial 8'!BC54)","v":{"v":6023.921807528724,"d":"$6,024"}},{"$f":"STDEV('Trial 1'!BD54,'Trial 2'!BD54,'Trial 3'!BD54,'Trial 4'!BD54,'Trial 5'!BD54,'Trial 6'!BD54,'Trial 7'!BD54,'Trial 8'!BD54)","v":{"v":9117.812522565288,"d":"$9,118"}},{"$f":"STDEV('Trial 1'!BE54,'Trial 2'!BE54,'Trial 3'!BE54,'Trial 4'!BE54,'Trial 5'!BE54,'Trial 6'!BE54,'Trial 7'!BE54,'Trial 8'!BE54)","v":{"v":5760.2952365595165,"d":"$5,760"}},{"$f":"STDEV('Trial 1'!BF54,'Trial 2'!BF54,'Trial 3'!BF54,'Trial 4'!BF54,'Trial 5'!BF54,'Trial 6'!BF54,'Trial 7'!BF54,'Trial 8'!BF54)","v":{"v":7308.796713542495,"d":"$7,309"}},{"$f":"STDEV('Trial 1'!BG54,'Trial 2'!BG54,'Trial 3'!BG54,'Trial 4'!BG54,'Trial 5'!BG54,'Trial 6'!BG54,'Trial 7'!BG54,'Trial 8'!BG54)","v":{"v":7484.680187475815,"d":"$7,485"}},{"$f":"STDEV('Trial 1'!BH54,'Trial 2'!BH54,'Trial 3'!BH54,'Trial 4'!BH54,'Trial 5'!BH54,'Trial 6'!BH54,'Trial 7'!BH54,'Trial 8'!BH54)","v":{"v":9051.634824143548,"d":"$9,052"}},{"$f":"STDEV('Trial 1'!BI54,'Trial 2'!BI54,'Trial 3'!BI54,'Trial 4'!BI54,'Trial 5'!BI54,'Trial 6'!BI54,'Trial 7'!BI54,'Trial 8'!BI54)","v":{"v":10226.191749566675,"d":"$10,226"}},{"$f":"STDEV('Trial 1'!BJ54,'Trial 2'!BJ54,'Trial 3'!BJ54,'Trial 4'!BJ54,'Trial 5'!BJ54,'Trial 6'!BJ54,'Trial 7'!BJ54,'Trial 8'!BJ54)","v":{"v":7824.294946715005,"d":"$7,824"}},{"$f":"STDEV('Trial 1'!BK54,'Trial 2'!BK54,'Trial 3'!BK54,'Trial 4'!BK54,'Trial 5'!BK54,'Trial 6'!BK54,'Trial 7'!BK54,'Trial 8'!BK54)","v":{"v":11668.61315781523,"d":"$11,669"}},{"$f":"STDEV('Trial 1'!BL54,'Trial 2'!BL54,'Trial 3'!BL54,'Trial 4'!BL54,'Trial 5'!BL54,'Trial 6'!BL54,'Trial 7'!BL54,'Trial 8'!BL54)","v":{"v":8656.433623032053,"d":"$8,656"}},{"$f":"STDEV('Trial 1'!BM54,'Trial 2'!BM54,'Trial 3'!BM54,'Trial 4'!BM54,'Trial 5'!BM54,'Trial 6'!BM54,'Trial 7'!BM54,'Trial 8'!BM54)","v":{"v":9807.998137468152,"d":"$9,808"}},{"$f":"SUM(BB72:BM72)","v":{"v":102558.10661456504,"d":"$102,558"}},{"$f":"STDEV('Trial 1'!BO54,'Trial 2'!BO54,'Trial 3'!BO54,'Trial 4'!BO54,'Trial 5'!BO54,'Trial 6'!BO54,'Trial 7'!BO54,'Trial 8'!BO54)","v":{"v":8669.041383558178,"d":"$8,669"}},{"$f":"STDEV('Trial 1'!BP54,'Trial 2'!BP54,'Trial 3'!BP54,'Trial 4'!BP54,'Trial 5'!BP54,'Trial 6'!BP54,'Trial 7'!BP54,'Trial 8'!BP54)","v":{"v":8076.203274431869,"d":"$8,076"}},{"$f":"STDEV('Trial 1'!BQ54,'Trial 2'!BQ54,'Trial 3'!BQ54,'Trial 4'!BQ54,'Trial 5'!BQ54,'Trial 6'!BQ54,'Trial 7'!BQ54,'Trial 8'!BQ54)","v":{"v":6228.888616690907,"d":"$6,229"}},{"$f":"STDEV('Trial 1'!BR54,'Trial 2'!BR54,'Trial 3'!BR54,'Trial 4'!BR54,'Trial 5'!BR54,'Trial 6'!BR54,'Trial 7'!BR54,'Trial 8'!BR54)","v":{"v":7973.72838441445,"d":"$7,974"}},{"$f":"STDEV('Trial 1'!BS54,'Trial 2'!BS54,'Trial 3'!BS54,'Trial 4'!BS54,'Trial 5'!BS54,'Trial 6'!BS54,'Trial 7'!BS54,'Trial 8'!BS54)","v":{"v":7369.523743733953,"d":"$7,370"}},{"$f":"STDEV('Trial 1'!BT54,'Trial 2'!BT54,'Trial 3'!BT54,'Trial 4'!BT54,'Trial 5'!BT54,'Trial 6'!BT54,'Trial 7'!BT54,'Trial 8'!BT54)","v":{"v":9772.822955630823,"d":"$9,773"}},{"$f":"STDEV('Trial 1'!BU54,'Trial 2'!BU54,'Trial 3'!BU54,'Trial 4'!BU54,'Trial 5'!BU54,'Trial 6'!BU54,'Trial 7'!BU54,'Trial 8'!BU54)","v":{"v":7850.397033790136,"d":"$7,850"}},{"$f":"STDEV('Trial 1'!BV54,'Trial 2'!BV54,'Trial 3'!BV54,'Trial 4'!BV54,'Trial 5'!BV54,'Trial 6'!BV54,'Trial 7'!BV54,'Trial 8'!BV54)","v":{"v":8935.060259503663,"d":"$8,935"}},{"$f":"STDEV('Trial 1'!BW54,'Trial 2'!BW54,'Trial 3'!BW54,'Trial 4'!BW54,'Trial 5'!BW54,'Trial 6'!BW54,'Trial 7'!BW54,'Trial 8'!BW54)","v":{"v":4472.338255424716,"d":"$4,472"}},{"$f":"STDEV('Trial 1'!BX54,'Trial 2'!BX54,'Trial 3'!BX54,'Trial 4'!BX54,'Trial 5'!BX54,'Trial 6'!BX54,'Trial 7'!BX54,'Trial 8'!BX54)","v":{"v":8421.753493581942,"d":"$8,422"}},{"$f":"STDEV('Trial 1'!BY54,'Trial 2'!BY54,'Trial 3'!BY54,'Trial 4'!BY54,'Trial 5'!BY54,'Trial 6'!BY54,'Trial 7'!BY54,'Trial 8'!BY54)","v":{"v":6082.01238118701,"d":"$6,082"}},{"$f":"STDEV('Trial 1'!BZ54,'Trial 2'!BZ54,'Trial 3'!BZ54,'Trial 4'!BZ54,'Trial 5'!BZ54,'Trial 6'!BZ54,'Trial 7'!BZ54,'Trial 8'!BZ54)","v":{"v":6100.76437735886,"d":"$6,101"}},{"$f":"SUM(BO72:BZ72)","v":{"v":89952.53415930651,"d":"$89,953"}},{"$f":"STDEV('Trial 1'!CB54,'Trial 2'!CB54,'Trial 3'!CB54,'Trial 4'!CB54,'Trial 5'!CB54,'Trial 6'!CB54,'Trial 7'!CB54,'Trial 8'!CB54)","v":{"v":8764.8739223749,"d":"$8,765"}},{"$f":"STDEV('Trial 1'!CC54,'Trial 2'!CC54,'Trial 3'!CC54,'Trial 4'!CC54,'Trial 5'!CC54,'Trial 6'!CC54,'Trial 7'!CC54,'Trial 8'!CC54)","v":{"v":7323.726588994102,"d":"$7,324"}},{"$f":"STDEV('Trial 1'!CD54,'Trial 2'!CD54,'Trial 3'!CD54,'Trial 4'!CD54,'Trial 5'!CD54,'Trial 6'!CD54,'Trial 7'!CD54,'Trial 8'!CD54)","v":{"v":8311.240841449178,"d":"$8,311"}},{"$f":"STDEV('Trial 1'!CE54,'Trial 2'!CE54,'Trial 3'!CE54,'Trial 4'!CE54,'Trial 5'!CE54,'Trial 6'!CE54,'Trial 7'!CE54,'Trial 8'!CE54)","v":{"v":6457.365301147622,"d":"$6,457"}},{"$f":"STDEV('Trial 1'!CF54,'Trial 2'!CF54,'Trial 3'!CF54,'Trial 4'!CF54,'Trial 5'!CF54,'Trial 6'!CF54,'Trial 7'!CF54,'Trial 8'!CF54)","v":{"v":8054.5665922427825,"d":"$8,055"}},{"$f":"STDEV('Trial 1'!CG54,'Trial 2'!CG54,'Trial 3'!CG54,'Trial 4'!CG54,'Trial 5'!CG54,'Trial 6'!CG54,'Trial 7'!CG54,'Trial 8'!CG54)","v":{"v":6398.132770224758,"d":"$6,398"}},{"$f":"STDEV('Trial 1'!CH54,'Trial 2'!CH54,'Trial 3'!CH54,'Trial 4'!CH54,'Trial 5'!CH54,'Trial 6'!CH54,'Trial 7'!CH54,'Trial 8'!CH54)","v":{"v":12480.500530182471,"d":"$12,481"}},{"$f":"STDEV('Trial 1'!CI54,'Trial 2'!CI54,'Trial 3'!CI54,'Trial 4'!CI54,'Trial 5'!CI54,'Trial 6'!CI54,'Trial 7'!CI54,'Trial 8'!CI54)","v":{"v":10138.89636565042,"d":"$10,139"}},{"$f":"STDEV('Trial 1'!CJ54,'Trial 2'!CJ54,'Trial 3'!CJ54,'Trial 4'!CJ54,'Trial 5'!CJ54,'Trial 6'!CJ54,'Trial 7'!CJ54,'Trial 8'!CJ54)","v":{"v":8772.157982899478,"d":"$8,772"}},{"$f":"STDEV('Trial 1'!CK54,'Trial 2'!CK54,'Trial 3'!CK54,'Trial 4'!CK54,'Trial 5'!CK54,'Trial 6'!CK54,'Trial 7'!CK54,'Trial 8'!CK54)","v":{"v":8065.461962744154,"d":"$8,065"}},{"$f":"STDEV('Trial 1'!CL54,'Trial 2'!CL54,'Trial 3'!CL54,'Trial 4'!CL54,'Trial 5'!CL54,'Trial 6'!CL54,'Trial 7'!CL54,'Trial 8'!CL54)","v":{"v":7640.720605823023,"d":"$7,641"}},{"$f":"STDEV('Trial 1'!CM54,'Trial 2'!CM54,'Trial 3'!CM54,'Trial 4'!CM54,'Trial 5'!CM54,'Trial 6'!CM54,'Trial 7'!CM54,'Trial 8'!CM54)","v":{"v":8328.939928484604,"d":"$8,329"}},{"$f":"SUM(CB72:CM72)","v":{"v":100736.58339221748,"d":"$100,737"}},{"$f":"STDEV('Trial 1'!CO54,'Trial 2'!CO54,'Trial 3'!CO54,'Trial 4'!CO54,'Trial 5'!CO54,'Trial 6'!CO54,'Trial 7'!CO54,'Trial 8'!CO54)","v":{"v":8170.68739724719,"d":"$8,171"}},{"$f":"STDEV('Trial 1'!CP54,'Trial 2'!CP54,'Trial 3'!CP54,'Trial 4'!CP54,'Trial 5'!CP54,'Trial 6'!CP54,'Trial 7'!CP54,'Trial 8'!CP54)","v":{"v":6969.947791703054,"d":"$6,970"}},{"$f":"STDEV('Trial 1'!CQ54,'Trial 2'!CQ54,'Trial 3'!CQ54,'Trial 4'!CQ54,'Trial 5'!CQ54,'Trial 6'!CQ54,'Trial 7'!CQ54,'Trial 8'!CQ54)","v":{"v":10284.184153374223,"d":"$10,284"}},{"$f":"STDEV('Trial 1'!CR54,'Trial 2'!CR54,'Trial 3'!CR54,'Trial 4'!CR54,'Trial 5'!CR54,'Trial 6'!CR54,'Trial 7'!CR54,'Trial 8'!CR54)","v":{"v":6774.0070030794195,"d":"$6,774"}},{"$f":"STDEV('Trial 1'!CS54,'Trial 2'!CS54,'Trial 3'!CS54,'Trial 4'!CS54,'Trial 5'!CS54,'Trial 6'!CS54,'Trial 7'!CS54,'Trial 8'!CS54)","v":{"v":7684.780261782581,"d":"$7,685"}},{"$f":"STDEV('Trial 1'!CT54,'Trial 2'!CT54,'Trial 3'!CT54,'Trial 4'!CT54,'Trial 5'!CT54,'Trial 6'!CT54,'Trial 7'!CT54,'Trial 8'!CT54)","v":{"v":10475.7098200029,"d":"$10,476"}},{"$f":"STDEV('Trial 1'!CU54,'Trial 2'!CU54,'Trial 3'!CU54,'Trial 4'!CU54,'Trial 5'!CU54,'Trial 6'!CU54,'Trial 7'!CU54,'Trial 8'!CU54)","v":{"v":8198.898415911815,"d":"$8,199"}},{"$f":"STDEV('Trial 1'!CV54,'Trial 2'!CV54,'Trial 3'!CV54,'Trial 4'!CV54,'Trial 5'!CV54,'Trial 6'!CV54,'Trial 7'!CV54,'Trial 8'!CV54)","v":{"v":8265.837724864476,"d":"$8,266"}},{"$f":"STDEV('Trial 1'!CW54,'Trial 2'!CW54,'Trial 3'!CW54,'Trial 4'!CW54,'Trial 5'!CW54,'Trial 6'!CW54,'Trial 7'!CW54,'Trial 8'!CW54)","v":{"v":6953.999353484121,"d":"$6,954"}},{"$f":"STDEV('Trial 1'!CX54,'Trial 2'!CX54,'Trial 3'!CX54,'Trial 4'!CX54,'Trial 5'!CX54,'Trial 6'!CX54,'Trial 7'!CX54,'Trial 8'!CX54)","v":{"v":11595.081258965245,"d":"$11,595"}},{"$f":"STDEV('Trial 1'!CY54,'Trial 2'!CY54,'Trial 3'!CY54,'Trial 4'!CY54,'Trial 5'!CY54,'Trial 6'!CY54,'Trial 7'!CY54,'Trial 8'!CY54)","v":{"v":8178.42790207685,"d":"$8,178"}},{"$f":"STDEV('Trial 1'!CZ54,'Trial 2'!CZ54,'Trial 3'!CZ54,'Trial 4'!CZ54,'Trial 5'!CZ54,'Trial 6'!CZ54,'Trial 7'!CZ54,'Trial 8'!CZ54)","v":{"v":6562.569631074179,"d":"$6,563"}},{"$f":"SUM(CO72:CZ72)","v":{"v":100114.13071356606,"d":"$100,114"}},{"$f":"STDEV('Trial 1'!DB54,'Trial 2'!DB54,'Trial 3'!DB54,'Trial 4'!DB54,'Trial 5'!DB54,'Trial 6'!DB54,'Trial 7'!DB54,'Trial 8'!DB54)","v":{"v":7817.4756402113,"d":"$7,817"}},{"$f":"STDEV('Trial 1'!DC54,'Trial 2'!DC54,'Trial 3'!DC54,'Trial 4'!DC54,'Trial 5'!DC54,'Trial 6'!DC54,'Trial 7'!DC54,'Trial 8'!DC54)","v":{"v":9019.036068915662,"d":"$9,019"}},{"$f":"STDEV('Trial 1'!DD54,'Trial 2'!DD54,'Trial 3'!DD54,'Trial 4'!DD54,'Trial 5'!DD54,'Trial 6'!DD54,'Trial 7'!DD54,'Trial 8'!DD54)","v":{"v":5464.404545431052,"d":"$5,464"}},{"$f":"STDEV('Trial 1'!DE54,'Trial 2'!DE54,'Trial 3'!DE54,'Trial 4'!DE54,'Trial 5'!DE54,'Trial 6'!DE54,'Trial 7'!DE54,'Trial 8'!DE54)","v":{"v":10235.319134827063,"d":"$10,235"}},{"$f":"STDEV('Trial 1'!DF54,'Trial 2'!DF54,'Trial 3'!DF54,'Trial 4'!DF54,'Trial 5'!DF54,'Trial 6'!DF54,'Trial 7'!DF54,'Trial 8'!DF54)","v":{"v":8319.157741767363,"d":"$8,319"}},{"$f":"STDEV('Trial 1'!DG54,'Trial 2'!DG54,'Trial 3'!DG54,'Trial 4'!DG54,'Trial 5'!DG54,'Trial 6'!DG54,'Trial 7'!DG54,'Trial 8'!DG54)","v":{"v":5237.357453428904,"d":"$5,237"}},{"$f":"STDEV('Trial 1'!DH54,'Trial 2'!DH54,'Trial 3'!DH54,'Trial 4'!DH54,'Trial 5'!DH54,'Trial 6'!DH54,'Trial 7'!DH54,'Trial 8'!DH54)","v":{"v":8063.899392711398,"d":"$8,064"}},{"$f":"STDEV('Trial 1'!DI54,'Trial 2'!DI54,'Trial 3'!DI54,'Trial 4'!DI54,'Trial 5'!DI54,'Trial 6'!DI54,'Trial 7'!DI54,'Trial 8'!DI54)","v":{"v":6248.892946495631,"d":"$6,249"}},{"$f":"STDEV('Trial 1'!DJ54,'Trial 2'!DJ54,'Trial 3'!DJ54,'Trial 4'!DJ54,'Trial 5'!DJ54,'Trial 6'!DJ54,'Trial 7'!DJ54,'Trial 8'!DJ54)","v":{"v":11752.611748760493,"d":"$11,753"}},{"$f":"STDEV('Trial 1'!DK54,'Trial 2'!DK54,'Trial 3'!DK54,'Trial 4'!DK54,'Trial 5'!DK54,'Trial 6'!DK54,'Trial 7'!DK54,'Trial 8'!DK54)","v":{"v":8595.097103551707,"d":"$8,595"}},{"$f":"STDEV('Trial 1'!DL54,'Trial 2'!DL54,'Trial 3'!DL54,'Trial 4'!DL54,'Trial 5'!DL54,'Trial 6'!DL54,'Trial 7'!DL54,'Trial 8'!DL54)","v":{"v":10086.53571421739,"d":"$10,087"}},{"$f":"STDEV('Trial 1'!DM54,'Trial 2'!DM54,'Trial 3'!DM54,'Trial 4'!DM54,'Trial 5'!DM54,'Trial 6'!DM54,'Trial 7'!DM54,'Trial 8'!DM54)","v":{"v":8328.513371462388,"d":"$8,329"}},{"$f":"SUM(DB72:DM72)","v":{"v":99168.30086178036,"d":"$99,168"}},{"$f":"STDEV('Trial 1'!DO54,'Trial 2'!DO54,'Trial 3'!DO54,'Trial 4'!DO54,'Trial 5'!DO54,'Trial 6'!DO54,'Trial 7'!DO54,'Trial 8'!DO54)","v":{"v":9973.223090292404,"d":"$9,973"}},{"$f":"STDEV('Trial 1'!DP54,'Trial 2'!DP54,'Trial 3'!DP54,'Trial 4'!DP54,'Trial 5'!DP54,'Trial 6'!DP54,'Trial 7'!DP54,'Trial 8'!DP54)","v":{"v":9837.887439406699,"d":"$9,838"}},{"$f":"STDEV('Trial 1'!DQ54,'Trial 2'!DQ54,'Trial 3'!DQ54,'Trial 4'!DQ54,'Trial 5'!DQ54,'Trial 6'!DQ54,'Trial 7'!DQ54,'Trial 8'!DQ54)","v":{"v":8014.129250999561,"d":"$8,014"}},{"$f":"STDEV('Trial 1'!DR54,'Trial 2'!DR54,'Trial 3'!DR54,'Trial 4'!DR54,'Trial 5'!DR54,'Trial 6'!DR54,'Trial 7'!DR54,'Trial 8'!DR54)","v":{"v":8731.37607448462,"d":"$8,731"}},{"$f":"STDEV('Trial 1'!DS54,'Trial 2'!DS54,'Trial 3'!DS54,'Trial 4'!DS54,'Trial 5'!DS54,'Trial 6'!DS54,'Trial 7'!DS54,'Trial 8'!DS54)","v":{"v":8060.977951290579,"d":"$8,061"}},{"$f":"STDEV('Trial 1'!DT54,'Trial 2'!DT54,'Trial 3'!DT54,'Trial 4'!DT54,'Trial 5'!DT54,'Trial 6'!DT54,'Trial 7'!DT54,'Trial 8'!DT54)","v":{"v":8630.66128039907,"d":"$8,631"}},{"$f":"STDEV('Trial 1'!DU54,'Trial 2'!DU54,'Trial 3'!DU54,'Trial 4'!DU54,'Trial 5'!DU54,'Trial 6'!DU54,'Trial 7'!DU54,'Trial 8'!DU54)","v":{"v":9691.465798731879,"d":"$9,691"}},{"$f":"STDEV('Trial 1'!DV54,'Trial 2'!DV54,'Trial 3'!DV54,'Trial 4'!DV54,'Trial 5'!DV54,'Trial 6'!DV54,'Trial 7'!DV54,'Trial 8'!DV54)","v":{"v":8746.043561029774,"d":"$8,746"}},{"$f":"STDEV('Trial 1'!DW54,'Trial 2'!DW54,'Trial 3'!DW54,'Trial 4'!DW54,'Trial 5'!DW54,'Trial 6'!DW54,'Trial 7'!DW54,'Trial 8'!DW54)","v":{"v":6902.066214476921,"d":"$6,902"}},{"$f":"STDEV('Trial 1'!DX54,'Trial 2'!DX54,'Trial 3'!DX54,'Trial 4'!DX54,'Trial 5'!DX54,'Trial 6'!DX54,'Trial 7'!DX54,'Trial 8'!DX54)","v":{"v":8161.428253526085,"d":"$8,161"}},{"$f":"STDEV('Trial 1'!DY54,'Trial 2'!DY54,'Trial 3'!DY54,'Trial 4'!DY54,'Trial 5'!DY54,'Trial 6'!DY54,'Trial 7'!DY54,'Trial 8'!DY54)","v":{"v":11019.251424630993,"d":"$11,019"}},{"$f":"STDEV('Trial 1'!DZ54,'Trial 2'!DZ54,'Trial 3'!DZ54,'Trial 4'!DZ54,'Trial 5'!DZ54,'Trial 6'!DZ54,'Trial 7'!DZ54,'Trial 8'!DZ54)","v":{"v":4908.3496412759105,"d":"$4,908"}},{"$f":"SUM(DO72:DZ72)","v":{"v":102676.8599805445,"d":"$102,677"}},{"$f":"STDEV('Trial 1'!EB54,'Trial 2'!EB54,'Trial 3'!EB54,'Trial 4'!EB54,'Trial 5'!EB54,'Trial 6'!EB54,'Trial 7'!EB54,'Trial 8'!EB54)","v":{"v":6994.991923183107,"d":"$6,995"}},{"$f":"STDEV('Trial 1'!EC54,'Trial 2'!EC54,'Trial 3'!EC54,'Trial 4'!EC54,'Trial 5'!EC54,'Trial 6'!EC54,'Trial 7'!EC54,'Trial 8'!EC54)","v":{"v":10427.819145672167,"d":"$10,428"}},{"$f":"STDEV('Trial 1'!ED54,'Trial 2'!ED54,'Trial 3'!ED54,'Trial 4'!ED54,'Trial 5'!ED54,'Trial 6'!ED54,'Trial 7'!ED54,'Trial 8'!ED54)","v":{"v":7429.087929524362,"d":"$7,429"}},{"$f":"STDEV('Trial 1'!EE54,'Trial 2'!EE54,'Trial 3'!EE54,'Trial 4'!EE54,'Trial 5'!EE54,'Trial 6'!EE54,'Trial 7'!EE54,'Trial 8'!EE54)","v":{"v":10312.303972602618,"d":"$10,312"}},{"$f":"STDEV('Trial 1'!EF54,'Trial 2'!EF54,'Trial 3'!EF54,'Trial 4'!EF54,'Trial 5'!EF54,'Trial 6'!EF54,'Trial 7'!EF54,'Trial 8'!EF54)","v":{"v":8504.030900073221,"d":"$8,504"}},{"$f":"STDEV('Trial 1'!EG54,'Trial 2'!EG54,'Trial 3'!EG54,'Trial 4'!EG54,'Trial 5'!EG54,'Trial 6'!EG54,'Trial 7'!EG54,'Trial 8'!EG54)","v":{"v":8187.946242019505,"d":"$8,188"}},{"$f":"STDEV('Trial 1'!EH54,'Trial 2'!EH54,'Trial 3'!EH54,'Trial 4'!EH54,'Trial 5'!EH54,'Trial 6'!EH54,'Trial 7'!EH54,'Trial 8'!EH54)","v":{"v":8568.90117694083,"d":"$8,569"}},{"$f":"STDEV('Trial 1'!EI54,'Trial 2'!EI54,'Trial 3'!EI54,'Trial 4'!EI54,'Trial 5'!EI54,'Trial 6'!EI54,'Trial 7'!EI54,'Trial 8'!EI54)","v":{"v":12529.835196015998,"d":"$12,530"}},{"$f":"STDEV('Trial 1'!EJ54,'Trial 2'!EJ54,'Trial 3'!EJ54,'Trial 4'!EJ54,'Trial 5'!EJ54,'Trial 6'!EJ54,'Trial 7'!EJ54,'Trial 8'!EJ54)","v":{"v":8452.705172278884,"d":"$8,453"}},{"$f":"STDEV('Trial 1'!EK54,'Trial 2'!EK54,'Trial 3'!EK54,'Trial 4'!EK54,'Trial 5'!EK54,'Trial 6'!EK54,'Trial 7'!EK54,'Trial 8'!EK54)","v":{"v":6191.725323973485,"d":"$6,192"}},{"$f":"STDEV('Trial 1'!EL54,'Trial 2'!EL54,'Trial 3'!EL54,'Trial 4'!EL54,'Trial 5'!EL54,'Trial 6'!EL54,'Trial 7'!EL54,'Trial 8'!EL54)","v":{"v":8863.932881374041,"d":"$8,864"}},{"$f":"STDEV('Trial 1'!EM54,'Trial 2'!EM54,'Trial 3'!EM54,'Trial 4'!EM54,'Trial 5'!EM54,'Trial 6'!EM54,'Trial 7'!EM54,'Trial 8'!EM54)","v":{"v":7559.667239486313,"d":"$7,560"}},{"$f":"SUM(EB72:EM72)","v":{"v":104022.94710314454,"d":"$104,023"}}]
[]
[]
[{"$f":"\"Stochastic Shocks\"","v":"Stochastic Shocks"}]
[{"$f":"\" \"","v":" "}]
[null,{"$f":"ZZZ__FnCalls!F7","v":"Jan 2010"},{"$f":"ZZZ__FnCalls!F8","v":"Feb 2010"},{"$f":"ZZZ__FnCalls!F9","v":"Mar 2010"},{"$f":"ZZZ__FnCalls!F10","v":"Apr 2010"},{"$f":"ZZZ__FnCalls!F11","v":"May 2010"},{"$f":"ZZZ__FnCalls!F12","v":"Jun 2010"},{"$f":"ZZZ__FnCalls!F13","v":"Jul 2010"},{"$f":"ZZZ__FnCalls!F14","v":"Aug 2010"},{"$f":"ZZZ__FnCalls!F15","v":"Sep 2010"},{"$f":"ZZZ__FnCalls!F16","v":"Oct 2010"},{"$f":"ZZZ__FnCalls!F17","v":"Nov 2010"},{"$f":"ZZZ__FnCalls!F18","v":"Dec 2010"},{"$f":"ZZZ__FnCalls!H7","v":"2010"},{"$f":"ZZZ__FnCalls!F19","v":"Jan 2011"},{"$f":"ZZZ__FnCalls!F20","v":"Feb 2011"},{"$f":"ZZZ__FnCalls!F21","v":"Mar 2011"},{"$f":"ZZZ__FnCalls!F22","v":"Apr 2011"},{"$f":"ZZZ__FnCalls!F23","v":"May 2011"},{"$f":"ZZZ__FnCalls!F24","v":"Jun 2011"},{"$f":"ZZZ__FnCalls!F25","v":"Jul 2011"},{"$f":"ZZZ__FnCalls!F26","v":"Aug 2011"},{"$f":"ZZZ__FnCalls!F27","v":"Sep 2011"},{"$f":"ZZZ__FnCalls!F28","v":"Oct 2011"},{"$f":"ZZZ__FnCalls!F29","v":"Nov 2011"},{"$f":"ZZZ__FnCalls!F30","v":"Dec 2011"},{"$f":"ZZZ__FnCalls!H19","v":"2011"},{"$f":"ZZZ__FnCalls!F31","v":"Jan 2012"},{"$f":"ZZZ__FnCalls!F32","v":"Feb 2012"},{"$f":"ZZZ__FnCalls!F33","v":"Mar 2012"},{"$f":"ZZZ__FnCalls!F34","v":"Apr 2012"},{"$f":"ZZZ__FnCalls!F35","v":"May 2012"},{"$f":"ZZZ__FnCalls!F36","v":"Jun 2012"},{"$f":"ZZZ__FnCalls!F37","v":"Jul 2012"},{"$f":"ZZZ__FnCalls!F38","v":"Aug 2012"},{"$f":"ZZZ__FnCalls!F39","v":"Sep 2012"},{"$f":"ZZZ__FnCalls!F40","v":"Oct 2012"},{"$f":"ZZZ__FnCalls!F41","v":"Nov 2012"},{"$f":"ZZZ__FnCalls!F42","v":"Dec 2012"},{"$f":"ZZZ__FnCalls!H31","v":"2012"},{"$f":"ZZZ__FnCalls!F43","v":"Jan 2013"},{"$f":"ZZZ__FnCalls!F44","v":"Feb 2013"},{"$f":"ZZZ__FnCalls!F45","v":"Mar 2013"},{"$f":"ZZZ__FnCalls!F46","v":"Apr 2013"},{"$f":"ZZZ__FnCalls!F47","v":"May 2013"},{"$f":"ZZZ__FnCalls!F48","v":"Jun 2013"},{"$f":"ZZZ__FnCalls!F49","v":"Jul 2013"},{"$f":"ZZZ__FnCalls!F50","v":"Aug 2013"},{"$f":"ZZZ__FnCalls!F51","v":"Sep 2013"},{"$f":"ZZZ__FnCalls!F52","v":"Oct 2013"},{"$f":"ZZZ__FnCalls!F53","v":"Nov 2013"},{"$f":"ZZZ__FnCalls!F54","v":"Dec 2013"},{"$f":"ZZZ__FnCalls!H43","v":"2013"},{"$f":"ZZZ__FnCalls!F55","v":"Jan 2014"},{"$f":"ZZZ__FnCalls!F56","v":"Feb 2014"},{"$f":"ZZZ__FnCalls!F57","v":"Mar 2014"},{"$f":"ZZZ__FnCalls!F58","v":"Apr 2014"},{"$f":"ZZZ__FnCalls!F59","v":"May 2014"},{"$f":"ZZZ__FnCalls!F60","v":"Jun 2014"},{"$f":"ZZZ__FnCalls!F61","v":"Jul 2014"},{"$f":"ZZZ__FnCalls!F62","v":"Aug 2014"},{"$f":"ZZZ__FnCalls!F63","v":"Sep 2014"},{"$f":"ZZZ__FnCalls!F64","v":"Oct 2014"},{"$f":"ZZZ__FnCalls!F65","v":"Nov 2014"},{"$f":"ZZZ__FnCalls!F66","v":"Dec 2014"},{"$f":"ZZZ__FnCalls!H55","v":"2014"},{"$f":"ZZZ__FnCalls!F67","v":"Jan 2015"},{"$f":"ZZZ__FnCalls!F68","v":"Feb 2015"},{"$f":"ZZZ__FnCalls!F69","v":"Mar 2015"},{"$f":"ZZZ__FnCalls!F70","v":"Apr 2015"},{"$f":"ZZZ__FnCalls!F71","v":"May 2015"},{"$f":"ZZZ__FnCalls!F72","v":"Jun 2015"},{"$f":"ZZZ__FnCalls!F73","v":"Jul 2015"},{"$f":"ZZZ__FnCalls!F74","v":"Aug 2015"},{"$f":"ZZZ__FnCalls!F75","v":"Sep 2015"},{"$f":"ZZZ__FnCalls!F76","v":"Oct 2015"},{"$f":"ZZZ__FnCalls!F77","v":"Nov 2015"},{"$f":"ZZZ__FnCalls!F78","v":"Dec 2015"},{"$f":"ZZZ__FnCalls!H67","v":"2015"},{"$f":"ZZZ__FnCalls!F79","v":"Jan 2016"},{"$f":"ZZZ__FnCalls!F80","v":"Feb 2016"},{"$f":"ZZZ__FnCalls!F81","v":"Mar 2016"},{"$f":"ZZZ__FnCalls!F82","v":"Apr 2016"},{"$f":"ZZZ__FnCalls!F83","v":"May 2016"},{"$f":"ZZZ__FnCalls!F84","v":"Jun 2016"},{"$f":"ZZZ__FnCalls!F85","v":"Jul 2016"},{"$f":"ZZZ__FnCalls!F86","v":"Aug 2016"},{"$f":"ZZZ__FnCalls!F87","v":"Sep 2016"},{"$f":"ZZZ__FnCalls!F88","v":"Oct 2016"},{"$f":"ZZZ__FnCalls!F89","v":"Nov 2016"},{"$f":"ZZZ__FnCalls!F90","v":"Dec 2016"},{"$f":"ZZZ__FnCalls!H79","v":"2016"},{"$f":"ZZZ__FnCalls!F91","v":"Jan 2017"},{"$f":"ZZZ__FnCalls!F92","v":"Feb 2017"},{"$f":"ZZZ__FnCalls!F93","v":"Mar 2017"},{"$f":"ZZZ__FnCalls!F94","v":"Apr 2017"},{"$f":"ZZZ__FnCalls!F95","v":"May 2017"},{"$f":"ZZZ__FnCalls!F96","v":"Jun 2017"},{"$f":"ZZZ__FnCalls!F97","v":"Jul 2017"},{"$f":"ZZZ__FnCalls!F98","v":"Aug 2017"},{"$f":"ZZZ__FnCalls!F99","v":"Sep 2017"},{"$f":"ZZZ__FnCalls!F100","v":"Oct 2017"},{"$f":"ZZZ__FnCalls!F101","v":"Nov 2017"},{"$f":"ZZZ__FnCalls!F102","v":"Dec 2017"},{"$f":"ZZZ__FnCalls!H91","v":"2017"},{"$f":"ZZZ__FnCalls!F103","v":"Jan 2018"},{"$f":"ZZZ__FnCalls!F104","v":"Feb 2018"},{"$f":"ZZZ__FnCalls!F105","v":"Mar 2018"},{"$f":"ZZZ__FnCalls!F106","v":"Apr 2018"},{"$f":"ZZZ__FnCalls!F107","v":"May 2018"},{"$f":"ZZZ__FnCalls!F108","v":"Jun 2018"},{"$f":"ZZZ__FnCalls!F109","v":"Jul 2018"},{"$f":"ZZZ__FnCalls!F110","v":"Aug 2018"},{"$f":"ZZZ__FnCalls!F111","v":"Sep 2018"},{"$f":"ZZZ__FnCalls!F112","v":"Oct 2018"},{"$f":"ZZZ__FnCalls!F113","v":"Nov 2018"},{"$f":"ZZZ__FnCalls!F114","v":"Dec 2018"},{"$f":"ZZZ__FnCalls!H103","v":"2018"},{"$f":"ZZZ__FnCalls!F115","v":"Jan 2019"},{"$f":"ZZZ__FnCalls!F116","v":"Feb 2019"},{"$f":"ZZZ__FnCalls!F117","v":"Mar 2019"},{"$f":"ZZZ__FnCalls!F118","v":"Apr 2019"},{"$f":"ZZZ__FnCalls!F119","v":"May 2019"},{"$f":"ZZZ__FnCalls!F120","v":"Jun 2019"},{"$f":"ZZZ__FnCalls!F121","v":"Jul 2019"},{"$f":"ZZZ__FnCalls!F122","v":"Aug 2019"},{"$f":"ZZZ__FnCalls!F123","v":"Sep 2019"},{"$f":"ZZZ__FnCalls!F124","v":"Oct 2019"},{"$f":"ZZZ__FnCalls!F125","v":"Nov 2019"},{"$f":"ZZZ__FnCalls!F126","v":"Dec 2019"},{"$f":"ZZZ__FnCalls!H115","v":"2019"},{"$f":"ZZZ__FnCalls!F127","v":"Jan 2020"},{"$f":"ZZZ__FnCalls!F128","v":"Feb 2020"},{"$f":"ZZZ__FnCalls!F129","v":"Mar 2020"},{"$f":"ZZZ__FnCalls!F130","v":"Apr 2020"},{"$f":"ZZZ__FnCalls!F131","v":"May 2020"},{"$f":"ZZZ__FnCalls!F132","v":"Jun 2020"},{"$f":"ZZZ__FnCalls!F133","v":"Jul 2020"},{"$f":"ZZZ__FnCalls!F134","v":"Aug 2020"},{"$f":"ZZZ__FnCalls!F135","v":"Sep 2020"},{"$f":"ZZZ__FnCalls!F136","v":"Oct 2020"},{"$f":"ZZZ__FnCalls!F137","v":"Nov 2020"},{"$f":"ZZZ__FnCalls!F138","v":"Dec 2020"},{"$f":"ZZZ__FnCalls!H127","v":"2020"}]
[{"$f":"Labels!B75","v":"Aggregate Demand Shock"},{"$f":"AVERAGE('Trial 1'!B13,'Trial 2'!B13,'Trial 3'!B13,'Trial 4'!B13,'Trial 5'!B13,'Trial 6'!B13,'Trial 7'!B13,'Trial 8'!B13)","v":{"v":-26704.501491889856,"d":"($26,705)"}},{"$f":"AVERAGE('Trial 1'!C13,'Trial 2'!C13,'Trial 3'!C13,'Trial 4'!C13,'Trial 5'!C13,'Trial 6'!C13,'Trial 7'!C13,'Trial 8'!C13)","v":{"v":-11684.673443008725,"d":"($11,685)"}},{"$f":"AVERAGE('Trial 1'!D13,'Trial 2'!D13,'Trial 3'!D13,'Trial 4'!D13,'Trial 5'!D13,'Trial 6'!D13,'Trial 7'!D13,'Trial 8'!D13)","v":{"v":7742.317659666768,"d":"$7,742"}},{"$f":"AVERAGE('Trial 1'!E13,'Trial 2'!E13,'Trial 3'!E13,'Trial 4'!E13,'Trial 5'!E13,'Trial 6'!E13,'Trial 7'!E13,'Trial 8'!E13)","v":{"v":15749.580344299764,"d":"$15,750"}},{"$f":"AVERAGE('Trial 1'!F13,'Trial 2'!F13,'Trial 3'!F13,'Trial 4'!F13,'Trial 5'!F13,'Trial 6'!F13,'Trial 7'!F13,'Trial 8'!F13)","v":{"v":26090.48476174724,"d":"$26,090"}},{"$f":"AVERAGE('Trial 1'!G13,'Trial 2'!G13,'Trial 3'!G13,'Trial 4'!G13,'Trial 5'!G13,'Trial 6'!G13,'Trial 7'!G13,'Trial 8'!G13)","v":{"v":12764.340952401542,"d":"$12,764"}},{"$f":"AVERAGE('Trial 1'!H13,'Trial 2'!H13,'Trial 3'!H13,'Trial 4'!H13,'Trial 5'!H13,'Trial 6'!H13,'Trial 7'!H13,'Trial 8'!H13)","v":{"v":-5345.513468978765,"d":"($5,346)"}},{"$f":"AVERAGE('Trial 1'!I13,'Trial 2'!I13,'Trial 3'!I13,'Trial 4'!I13,'Trial 5'!I13,'Trial 6'!I13,'Trial 7'!I13,'Trial 8'!I13)","v":{"v":3399.0330183912483,"d":"$3,399"}},{"$f":"AVERAGE('Trial 1'!J13,'Trial 2'!J13,'Trial 3'!J13,'Trial 4'!J13,'Trial 5'!J13,'Trial 6'!J13,'Trial 7'!J13,'Trial 8'!J13)","v":{"v":4997.751090368529,"d":"$4,998"}},{"$f":"AVERAGE('Trial 1'!K13,'Trial 2'!K13,'Trial 3'!K13,'Trial 4'!K13,'Trial 5'!K13,'Trial 6'!K13,'Trial 7'!K13,'Trial 8'!K13)","v":{"v":5194.7725019050495,"d":"$5,195"}},{"$f":"AVERAGE('Trial 1'!L13,'Trial 2'!L13,'Trial 3'!L13,'Trial 4'!L13,'Trial 5'!L13,'Trial 6'!L13,'Trial 7'!L13,'Trial 8'!L13)","v":{"v":3230.1778031169024,"d":"$3,230"}},{"$f":"AVERAGE('Trial 1'!M13,'Trial 2'!M13,'Trial 3'!M13,'Trial 4'!M13,'Trial 5'!M13,'Trial 6'!M13,'Trial 7'!M13,'Trial 8'!M13)","v":{"v":-2729.9499867407317,"d":"($2,730)"}},{"$f":"SUM(B78:M78)","v":{"v":32703.819741278963,"d":"$32,704"}},{"$f":"AVERAGE('Trial 1'!O13,'Trial 2'!O13,'Trial 3'!O13,'Trial 4'!O13,'Trial 5'!O13,'Trial 6'!O13,'Trial 7'!O13,'Trial 8'!O13)","v":{"v":8889.586835424643,"d":"$8,890"}},{"$f":"AVERAGE('Trial 1'!P13,'Trial 2'!P13,'Trial 3'!P13,'Trial 4'!P13,'Trial 5'!P13,'Trial 6'!P13,'Trial 7'!P13,'Trial 8'!P13)","v":{"v":5675.11445811048,"d":"$5,675"}},{"$f":"AVERAGE('Trial 1'!Q13,'Trial 2'!Q13,'Trial 3'!Q13,'Trial 4'!Q13,'Trial 5'!Q13,'Trial 6'!Q13,'Trial 7'!Q13,'Trial 8'!Q13)","v":{"v":10233.966972211332,"d":"$10,234"}},{"$f":"AVERAGE('Trial 1'!R13,'Trial 2'!R13,'Trial 3'!R13,'Trial 4'!R13,'Trial 5'!R13,'Trial 6'!R13,'Trial 7'!R13,'Trial 8'!R13)","v":{"v":14876.082482574326,"d":"$14,876"}},{"$f":"AVERAGE('Trial 1'!S13,'Trial 2'!S13,'Trial 3'!S13,'Trial 4'!S13,'Trial 5'!S13,'Trial 6'!S13,'Trial 7'!S13,'Trial 8'!S13)","v":{"v":-23856.70507583762,"d":"($23,857)"}},{"$f":"AVERAGE('Trial 1'!T13,'Trial 2'!T13,'Trial 3'!T13,'Trial 4'!T13,'Trial 5'!T13,'Trial 6'!T13,'Trial 7'!T13,'Trial 8'!T13)","v":{"v":9240.322259469864,"d":"$9,240"}},{"$f":"AVERAGE('Trial 1'!U13,'Trial 2'!U13,'Trial 3'!U13,'Trial 4'!U13,'Trial 5'!U13,'Trial 6'!U13,'Trial 7'!U13,'Trial 8'!U13)","v":{"v":-13875.982036057561,"d":"($13,876)"}},{"$f":"AVERAGE('Trial 1'!V13,'Trial 2'!V13,'Trial 3'!V13,'Trial 4'!V13,'Trial 5'!V13,'Trial 6'!V13,'Trial 7'!V13,'Trial 8'!V13)","v":{"v":-11016.410206314551,"d":"($11,016)"}},{"$f":"AVERAGE('Trial 1'!W13,'Trial 2'!W13,'Trial 3'!W13,'Trial 4'!W13,'Trial 5'!W13,'Trial 6'!W13,'Trial 7'!W13,'Trial 8'!W13)","v":{"v":16324.86289725804,"d":"$16,325"}},{"$f":"AVERAGE('Trial 1'!X13,'Trial 2'!X13,'Trial 3'!X13,'Trial 4'!X13,'Trial 5'!X13,'Trial 6'!X13,'Trial 7'!X13,'Trial 8'!X13)","v":{"v":-5437.120041575801,"d":"($5,437)"}},{"$f":"AVERAGE('Trial 1'!Y13,'Trial 2'!Y13,'Trial 3'!Y13,'Trial 4'!Y13,'Trial 5'!Y13,'Trial 6'!Y13,'Trial 7'!Y13,'Trial 8'!Y13)","v":{"v":-3431.137370053285,"d":"($3,431)"}},{"$f":"AVERAGE('Trial 1'!Z13,'Trial 2'!Z13,'Trial 3'!Z13,'Trial 4'!Z13,'Trial 5'!Z13,'Trial 6'!Z13,'Trial 7'!Z13,'Trial 8'!Z13)","v":{"v":-25302.001485164343,"d":"($25,302)"}},{"$f":"SUM(O78:Z78)","v":{"v":-17679.420309954476,"d":"($17,679)"}},{"$f":"AVERAGE('Trial 1'!AB13,'Trial 2'!AB13,'Trial 3'!AB13,'Trial 4'!AB13,'Trial 5'!AB13,'Trial 6'!AB13,'Trial 7'!AB13,'Trial 8'!AB13)","v":{"v":90.6008050045476,"d":"$91"}},{"$f":"AVERAGE('Trial 1'!AC13,'Trial 2'!AC13,'Trial 3'!AC13,'Trial 4'!AC13,'Trial 5'!AC13,'Trial 6'!AC13,'Trial 7'!AC13,'Trial 8'!AC13)","v":{"v":9930.036841699819,"d":"$9,930"}},{"$f":"AVERAGE('Trial 1'!AD13,'Trial 2'!AD13,'Trial 3'!AD13,'Trial 4'!AD13,'Trial 5'!AD13,'Trial 6'!AD13,'Trial 7'!AD13,'Trial 8'!AD13)","v":{"v":2818.7523233763986,"d":"$2,819"}},{"$f":"AVERAGE('Trial 1'!AE13,'Trial 2'!AE13,'Trial 3'!AE13,'Trial 4'!AE13,'Trial 5'!AE13,'Trial 6'!AE13,'Trial 7'!AE13,'Trial 8'!AE13)","v":{"v":-361.5956401728532,"d":"($362)"}},{"$f":"AVERAGE('Trial 1'!AF13,'Trial 2'!AF13,'Trial 3'!AF13,'Trial 4'!AF13,'Trial 5'!AF13,'Trial 6'!AF13,'Trial 7'!AF13,'Trial 8'!AF13)","v":{"v":-16522.503559604433,"d":"($16,523)"}},{"$f":"AVERAGE('Trial 1'!AG13,'Trial 2'!AG13,'Trial 3'!AG13,'Trial 4'!AG13,'Trial 5'!AG13,'Trial 6'!AG13,'Trial 7'!AG13,'Trial 8'!AG13)","v":{"v":6114.800851944586,"d":"$6,115"}},{"$f":"AVERAGE('Trial 1'!AH13,'Trial 2'!AH13,'Trial 3'!AH13,'Trial 4'!AH13,'Trial 5'!AH13,'Trial 6'!AH13,'Trial 7'!AH13,'Trial 8'!AH13)","v":{"v":15435.652032457814,"d":"$15,436"}},{"$f":"AVERAGE('Trial 1'!AI13,'Trial 2'!AI13,'Trial 3'!AI13,'Trial 4'!AI13,'Trial 5'!AI13,'Trial 6'!AI13,'Trial 7'!AI13,'Trial 8'!AI13)","v":{"v":-17705.376807830187,"d":"($17,705)"}},{"$f":"AVERAGE('Trial 1'!AJ13,'Trial 2'!AJ13,'Trial 3'!AJ13,'Trial 4'!AJ13,'Trial 5'!AJ13,'Trial 6'!AJ13,'Trial 7'!AJ13,'Trial 8'!AJ13)","v":{"v":2393.7574745525917,"d":"$2,394"}},{"$f":"AVERAGE('Trial 1'!AK13,'Trial 2'!AK13,'Trial 3'!AK13,'Trial 4'!AK13,'Trial 5'!AK13,'Trial 6'!AK13,'Trial 7'!AK13,'Trial 8'!AK13)","v":{"v":6936.205555488522,"d":"$6,936"}},{"$f":"AVERAGE('Trial 1'!AL13,'Trial 2'!AL13,'Trial 3'!AL13,'Trial 4'!AL13,'Trial 5'!AL13,'Trial 6'!AL13,'Trial 7'!AL13,'Trial 8'!AL13)","v":{"v":10589.78057119713,"d":"$10,590"}},{"$f":"AVERAGE('Trial 1'!AM13,'Trial 2'!AM13,'Trial 3'!AM13,'Trial 4'!AM13,'Trial 5'!AM13,'Trial 6'!AM13,'Trial 7'!AM13,'Trial 8'!AM13)","v":{"v":-10438.416579959177,"d":"($10,438)"}},{"$f":"SUM(AB78:AM78)","v":{"v":9281.693868154756,"d":"$9,282"}},{"$f":"AVERAGE('Trial 1'!AO13,'Trial 2'!AO13,'Trial 3'!AO13,'Trial 4'!AO13,'Trial 5'!AO13,'Trial 6'!AO13,'Trial 7'!AO13,'Trial 8'!AO13)","v":{"v":882.6556347661672,"d":"$883"}},{"$f":"AVERAGE('Trial 1'!AP13,'Trial 2'!AP13,'Trial 3'!AP13,'Trial 4'!AP13,'Trial 5'!AP13,'Trial 6'!AP13,'Trial 7'!AP13,'Trial 8'!AP13)","v":{"v":13629.979352938648,"d":"$13,630"}},{"$f":"AVERAGE('Trial 1'!AQ13,'Trial 2'!AQ13,'Trial 3'!AQ13,'Trial 4'!AQ13,'Trial 5'!AQ13,'Trial 6'!AQ13,'Trial 7'!AQ13,'Trial 8'!AQ13)","v":{"v":-9628.408581489042,"d":"($9,628)"}},{"$f":"AVERAGE('Trial 1'!AR13,'Trial 2'!AR13,'Trial 3'!AR13,'Trial 4'!AR13,'Trial 5'!AR13,'Trial 6'!AR13,'Trial 7'!AR13,'Trial 8'!AR13)","v":{"v":-1589.5630357192185,"d":"($1,590)"}},{"$f":"AVERAGE('Trial 1'!AS13,'Trial 2'!AS13,'Trial 3'!AS13,'Trial 4'!AS13,'Trial 5'!AS13,'Trial 6'!AS13,'Trial 7'!AS13,'Trial 8'!AS13)","v":{"v":11710.516398815726,"d":"$11,711"}},{"$f":"AVERAGE('Trial 1'!AT13,'Trial 2'!AT13,'Trial 3'!AT13,'Trial 4'!AT13,'Trial 5'!AT13,'Trial 6'!AT13,'Trial 7'!AT13,'Trial 8'!AT13)","v":{"v":-1353.566603794588,"d":"($1,354)"}},{"$f":"AVERAGE('Trial 1'!AU13,'Trial 2'!AU13,'Trial 3'!AU13,'Trial 4'!AU13,'Trial 5'!AU13,'Trial 6'!AU13,'Trial 7'!AU13,'Trial 8'!AU13)","v":{"v":-5079.796500264282,"d":"($5,080)"}},{"$f":"AVERAGE('Trial 1'!AV13,'Trial 2'!AV13,'Trial 3'!AV13,'Trial 4'!AV13,'Trial 5'!AV13,'Trial 6'!AV13,'Trial 7'!AV13,'Trial 8'!AV13)","v":{"v":1147.576258497443,"d":"$1,148"}},{"$f":"AVERAGE('Trial 1'!AW13,'Trial 2'!AW13,'Trial 3'!AW13,'Trial 4'!AW13,'Trial 5'!AW13,'Trial 6'!AW13,'Trial 7'!AW13,'Trial 8'!AW13)","v":{"v":-13332.307087626126,"d":"($13,332)"}},{"$f":"AVERAGE('Trial 1'!AX13,'Trial 2'!AX13,'Trial 3'!AX13,'Trial 4'!AX13,'Trial 5'!AX13,'Trial 6'!AX13,'Trial 7'!AX13,'Trial 8'!AX13)","v":{"v":-4787.082001215657,"d":"($4,787)"}},{"$f":"AVERAGE('Trial 1'!AY13,'Trial 2'!AY13,'Trial 3'!AY13,'Trial 4'!AY13,'Trial 5'!AY13,'Trial 6'!AY13,'Trial 7'!AY13,'Trial 8'!AY13)","v":{"v":1391.4479353714628,"d":"$1,391"}},{"$f":"AVERAGE('Trial 1'!AZ13,'Trial 2'!AZ13,'Trial 3'!AZ13,'Trial 4'!AZ13,'Trial 5'!AZ13,'Trial 6'!AZ13,'Trial 7'!AZ13,'Trial 8'!AZ13)","v":{"v":-16960.12975880433,"d":"($16,960)"}},{"$f":"SUM(AO78:AZ78)","v":{"v":-23968.6779885238,"d":"($23,969)"}},{"$f":"AVERAGE('Trial 1'!BB13,'Trial 2'!BB13,'Trial 3'!BB13,'Trial 4'!BB13,'Trial 5'!BB13,'Trial 6'!BB13,'Trial 7'!BB13,'Trial 8'!BB13)","v":{"v":-14671.032490571888,"d":"($14,671)"}},{"$f":"AVERAGE('Trial 1'!BC13,'Trial 2'!BC13,'Trial 3'!BC13,'Trial 4'!BC13,'Trial 5'!BC13,'Trial 6'!BC13,'Trial 7'!BC13,'Trial 8'!BC13)","v":{"v":-4803.052083710407,"d":"($4,803)"}},{"$f":"AVERAGE('Trial 1'!BD13,'Trial 2'!BD13,'Trial 3'!BD13,'Trial 4'!BD13,'Trial 5'!BD13,'Trial 6'!BD13,'Trial 7'!BD13,'Trial 8'!BD13)","v":{"v":-572.7203850623036,"d":"($573)"}},{"$f":"AVERAGE('Trial 1'!BE13,'Trial 2'!BE13,'Trial 3'!BE13,'Trial 4'!BE13,'Trial 5'!BE13,'Trial 6'!BE13,'Trial 7'!BE13,'Trial 8'!BE13)","v":{"v":-4609.421231850051,"d":"($4,609)"}},{"$f":"AVERAGE('Trial 1'!BF13,'Trial 2'!BF13,'Trial 3'!BF13,'Trial 4'!BF13,'Trial 5'!BF13,'Trial 6'!BF13,'Trial 7'!BF13,'Trial 8'!BF13)","v":{"v":3955.1525836557503,"d":"$3,955"}},{"$f":"AVERAGE('Trial 1'!BG13,'Trial 2'!BG13,'Trial 3'!BG13,'Trial 4'!BG13,'Trial 5'!BG13,'Trial 6'!BG13,'Trial 7'!BG13,'Trial 8'!BG13)","v":{"v":3942.1860330440886,"d":"$3,942"}},{"$f":"AVERAGE('Trial 1'!BH13,'Trial 2'!BH13,'Trial 3'!BH13,'Trial 4'!BH13,'Trial 5'!BH13,'Trial 6'!BH13,'Trial 7'!BH13,'Trial 8'!BH13)","v":{"v":-16028.027351514242,"d":"($16,028)"}},{"$f":"AVERAGE('Trial 1'!BI13,'Trial 2'!BI13,'Trial 3'!BI13,'Trial 4'!BI13,'Trial 5'!BI13,'Trial 6'!BI13,'Trial 7'!BI13,'Trial 8'!BI13)","v":{"v":-7840.638875934995,"d":"($7,841)"}},{"$f":"AVERAGE('Trial 1'!BJ13,'Trial 2'!BJ13,'Trial 3'!BJ13,'Trial 4'!BJ13,'Trial 5'!BJ13,'Trial 6'!BJ13,'Trial 7'!BJ13,'Trial 8'!BJ13)","v":{"v":6000.900743182944,"d":"$6,001"}},{"$f":"AVERAGE('Trial 1'!BK13,'Trial 2'!BK13,'Trial 3'!BK13,'Trial 4'!BK13,'Trial 5'!BK13,'Trial 6'!BK13,'Trial 7'!BK13,'Trial 8'!BK13)","v":{"v":-5160.42558997874,"d":"($5,160)"}},{"$f":"AVERAGE('Trial 1'!BL13,'Trial 2'!BL13,'Trial 3'!BL13,'Trial 4'!BL13,'Trial 5'!BL13,'Trial 6'!BL13,'Trial 7'!BL13,'Trial 8'!BL13)","v":{"v":6305.881433443854,"d":"$6,306"}},{"$f":"AVERAGE('Trial 1'!BM13,'Trial 2'!BM13,'Trial 3'!BM13,'Trial 4'!BM13,'Trial 5'!BM13,'Trial 6'!BM13,'Trial 7'!BM13,'Trial 8'!BM13)","v":{"v":-3310.029792092033,"d":"($3,310)"}},{"$f":"SUM(BB78:BM78)","v":{"v":-36791.22700738801,"d":"($36,791)"}},{"$f":"AVERAGE('Trial 1'!BO13,'Trial 2'!BO13,'Trial 3'!BO13,'Trial 4'!BO13,'Trial 5'!BO13,'Trial 6'!BO13,'Trial 7'!BO13,'Trial 8'!BO13)","v":{"v":-4379.0067704585435,"d":"($4,379)"}},{"$f":"AVERAGE('Trial 1'!BP13,'Trial 2'!BP13,'Trial 3'!BP13,'Trial 4'!BP13,'Trial 5'!BP13,'Trial 6'!BP13,'Trial 7'!BP13,'Trial 8'!BP13)","v":{"v":2012.6443170329871,"d":"$2,013"}},{"$f":"AVERAGE('Trial 1'!BQ13,'Trial 2'!BQ13,'Trial 3'!BQ13,'Trial 4'!BQ13,'Trial 5'!BQ13,'Trial 6'!BQ13,'Trial 7'!BQ13,'Trial 8'!BQ13)","v":{"v":12560.289271085867,"d":"$12,560"}},{"$f":"AVERAGE('Trial 1'!BR13,'Trial 2'!BR13,'Trial 3'!BR13,'Trial 4'!BR13,'Trial 5'!BR13,'Trial 6'!BR13,'Trial 7'!BR13,'Trial 8'!BR13)","v":{"v":9154.831719590293,"d":"$9,155"}},{"$f":"AVERAGE('Trial 1'!BS13,'Trial 2'!BS13,'Trial 3'!BS13,'Trial 4'!BS13,'Trial 5'!BS13,'Trial 6'!BS13,'Trial 7'!BS13,'Trial 8'!BS13)","v":{"v":-7778.653814663196,"d":"($7,779)"}},{"$f":"AVERAGE('Trial 1'!BT13,'Trial 2'!BT13,'Trial 3'!BT13,'Trial 4'!BT13,'Trial 5'!BT13,'Trial 6'!BT13,'Trial 7'!BT13,'Trial 8'!BT13)","v":{"v":17780.802269292417,"d":"$17,781"}},{"$f":"AVERAGE('Trial 1'!BU13,'Trial 2'!BU13,'Trial 3'!BU13,'Trial 4'!BU13,'Trial 5'!BU13,'Trial 6'!BU13,'Trial 7'!BU13,'Trial 8'!BU13)","v":{"v":-9301.782997823757,"d":"($9,302)"}},{"$f":"AVERAGE('Trial 1'!BV13,'Trial 2'!BV13,'Trial 3'!BV13,'Trial 4'!BV13,'Trial 5'!BV13,'Trial 6'!BV13,'Trial 7'!BV13,'Trial 8'!BV13)","v":{"v":-2792.2419332578665,"d":"($2,792)"}},{"$f":"AVERAGE('Trial 1'!BW13,'Trial 2'!BW13,'Trial 3'!BW13,'Trial 4'!BW13,'Trial 5'!BW13,'Trial 6'!BW13,'Trial 7'!BW13,'Trial 8'!BW13)","v":{"v":13943.437460103827,"d":"$13,943"}},{"$f":"AVERAGE('Trial 1'!BX13,'Trial 2'!BX13,'Trial 3'!BX13,'Trial 4'!BX13,'Trial 5'!BX13,'Trial 6'!BX13,'Trial 7'!BX13,'Trial 8'!BX13)","v":{"v":-10252.374898052478,"d":"($10,252)"}},{"$f":"AVERAGE('Trial 1'!BY13,'Trial 2'!BY13,'Trial 3'!BY13,'Trial 4'!BY13,'Trial 5'!BY13,'Trial 6'!BY13,'Trial 7'!BY13,'Trial 8'!BY13)","v":{"v":11359.07354722368,"d":"$11,359"}},{"$f":"AVERAGE('Trial 1'!BZ13,'Trial 2'!BZ13,'Trial 3'!BZ13,'Trial 4'!BZ13,'Trial 5'!BZ13,'Trial 6'!BZ13,'Trial 7'!BZ13,'Trial 8'!BZ13)","v":{"v":595.2880590075101,"d":"$595"}},{"$f":"SUM(BO78:BZ78)","v":{"v":32902.30622908074,"d":"$32,902"}},{"$f":"AVERAGE('Trial 1'!CB13,'Trial 2'!CB13,'Trial 3'!CB13,'Trial 4'!CB13,'Trial 5'!CB13,'Trial 6'!CB13,'Trial 7'!CB13,'Trial 8'!CB13)","v":{"v":-2628.319133448911,"d":"($2,628)"}},{"$f":"AVERAGE('Trial 1'!CC13,'Trial 2'!CC13,'Trial 3'!CC13,'Trial 4'!CC13,'Trial 5'!CC13,'Trial 6'!CC13,'Trial 7'!CC13,'Trial 8'!CC13)","v":{"v":-4836.057395284019,"d":"($4,836)"}},{"$f":"AVERAGE('Trial 1'!CD13,'Trial 2'!CD13,'Trial 3'!CD13,'Trial 4'!CD13,'Trial 5'!CD13,'Trial 6'!CD13,'Trial 7'!CD13,'Trial 8'!CD13)","v":{"v":6794.561808594812,"d":"$6,795"}},{"$f":"AVERAGE('Trial 1'!CE13,'Trial 2'!CE13,'Trial 3'!CE13,'Trial 4'!CE13,'Trial 5'!CE13,'Trial 6'!CE13,'Trial 7'!CE13,'Trial 8'!CE13)","v":{"v":-10887.338171533474,"d":"($10,887)"}},{"$f":"AVERAGE('Trial 1'!CF13,'Trial 2'!CF13,'Trial 3'!CF13,'Trial 4'!CF13,'Trial 5'!CF13,'Trial 6'!CF13,'Trial 7'!CF13,'Trial 8'!CF13)","v":{"v":-1751.6384667615569,"d":"($1,752)"}},{"$f":"AVERAGE('Trial 1'!CG13,'Trial 2'!CG13,'Trial 3'!CG13,'Trial 4'!CG13,'Trial 5'!CG13,'Trial 6'!CG13,'Trial 7'!CG13,'Trial 8'!CG13)","v":{"v":27547.403941480938,"d":"$27,547"}},{"$f":"AVERAGE('Trial 1'!CH13,'Trial 2'!CH13,'Trial 3'!CH13,'Trial 4'!CH13,'Trial 5'!CH13,'Trial 6'!CH13,'Trial 7'!CH13,'Trial 8'!CH13)","v":{"v":3752.962387254099,"d":"$3,753"}},{"$f":"AVERAGE('Trial 1'!CI13,'Trial 2'!CI13,'Trial 3'!CI13,'Trial 4'!CI13,'Trial 5'!CI13,'Trial 6'!CI13,'Trial 7'!CI13,'Trial 8'!CI13)","v":{"v":9550.219813216148,"d":"$9,550"}},{"$f":"AVERAGE('Trial 1'!CJ13,'Trial 2'!CJ13,'Trial 3'!CJ13,'Trial 4'!CJ13,'Trial 5'!CJ13,'Trial 6'!CJ13,'Trial 7'!CJ13,'Trial 8'!CJ13)","v":{"v":5409.475460010723,"d":"$5,409"}},{"$f":"AVERAGE('Trial 1'!CK13,'Trial 2'!CK13,'Trial 3'!CK13,'Trial 4'!CK13,'Trial 5'!CK13,'Trial 6'!CK13,'Trial 7'!CK13,'Trial 8'!CK13)","v":{"v":19031.92500226291,"d":"$19,032"}},{"$f":"AVERAGE('Trial 1'!CL13,'Trial 2'!CL13,'Trial 3'!CL13,'Trial 4'!CL13,'Trial 5'!CL13,'Trial 6'!CL13,'Trial 7'!CL13,'Trial 8'!CL13)","v":{"v":-1942.1736764091474,"d":"($1,942)"}},{"$f":"AVERAGE('Trial 1'!CM13,'Trial 2'!CM13,'Trial 3'!CM13,'Trial 4'!CM13,'Trial 5'!CM13,'Trial 6'!CM13,'Trial 7'!CM13,'Trial 8'!CM13)","v":{"v":16720.386538228537,"d":"$16,720"}},{"$f":"SUM(CB78:CM78)","v":{"v":66761.40810761106,"d":"$66,761"}},{"$f":"AVERAGE('Trial 1'!CO13,'Trial 2'!CO13,'Trial 3'!CO13,'Trial 4'!CO13,'Trial 5'!CO13,'Trial 6'!CO13,'Trial 7'!CO13,'Trial 8'!CO13)","v":{"v":8207.842712611135,"d":"$8,208"}},{"$f":"AVERAGE('Trial 1'!CP13,'Trial 2'!CP13,'Trial 3'!CP13,'Trial 4'!CP13,'Trial 5'!CP13,'Trial 6'!CP13,'Trial 7'!CP13,'Trial 8'!CP13)","v":{"v":8974.264431417067,"d":"$8,974"}},{"$f":"AVERAGE('Trial 1'!CQ13,'Trial 2'!CQ13,'Trial 3'!CQ13,'Trial 4'!CQ13,'Trial 5'!CQ13,'Trial 6'!CQ13,'Trial 7'!CQ13,'Trial 8'!CQ13)","v":{"v":7481.225643364503,"d":"$7,481"}},{"$f":"AVERAGE('Trial 1'!CR13,'Trial 2'!CR13,'Trial 3'!CR13,'Trial 4'!CR13,'Trial 5'!CR13,'Trial 6'!CR13,'Trial 7'!CR13,'Trial 8'!CR13)","v":{"v":1727.1171349450024,"d":"$1,727"}},{"$f":"AVERAGE('Trial 1'!CS13,'Trial 2'!CS13,'Trial 3'!CS13,'Trial 4'!CS13,'Trial 5'!CS13,'Trial 6'!CS13,'Trial 7'!CS13,'Trial 8'!CS13)","v":{"v":-20474.152050548077,"d":"($20,474)"}},{"$f":"AVERAGE('Trial 1'!CT13,'Trial 2'!CT13,'Trial 3'!CT13,'Trial 4'!CT13,'Trial 5'!CT13,'Trial 6'!CT13,'Trial 7'!CT13,'Trial 8'!CT13)","v":{"v":-10093.19338776648,"d":"($10,093)"}},{"$f":"AVERAGE('Trial 1'!CU13,'Trial 2'!CU13,'Trial 3'!CU13,'Trial 4'!CU13,'Trial 5'!CU13,'Trial 6'!CU13,'Trial 7'!CU13,'Trial 8'!CU13)","v":{"v":24174.16141932739,"d":"$24,174"}},{"$f":"AVERAGE('Trial 1'!CV13,'Trial 2'!CV13,'Trial 3'!CV13,'Trial 4'!CV13,'Trial 5'!CV13,'Trial 6'!CV13,'Trial 7'!CV13,'Trial 8'!CV13)","v":{"v":-3216.602511130423,"d":"($3,217)"}},{"$f":"AVERAGE('Trial 1'!CW13,'Trial 2'!CW13,'Trial 3'!CW13,'Trial 4'!CW13,'Trial 5'!CW13,'Trial 6'!CW13,'Trial 7'!CW13,'Trial 8'!CW13)","v":{"v":-1217.1806769835985,"d":"($1,217)"}},{"$f":"AVERAGE('Trial 1'!CX13,'Trial 2'!CX13,'Trial 3'!CX13,'Trial 4'!CX13,'Trial 5'!CX13,'Trial 6'!CX13,'Trial 7'!CX13,'Trial 8'!CX13)","v":{"v":-5438.129297684316,"d":"($5,438)"}},{"$f":"AVERAGE('Trial 1'!CY13,'Trial 2'!CY13,'Trial 3'!CY13,'Trial 4'!CY13,'Trial 5'!CY13,'Trial 6'!CY13,'Trial 7'!CY13,'Trial 8'!CY13)","v":{"v":7923.206626597571,"d":"$7,923"}},{"$f":"AVERAGE('Trial 1'!CZ13,'Trial 2'!CZ13,'Trial 3'!CZ13,'Trial 4'!CZ13,'Trial 5'!CZ13,'Trial 6'!CZ13,'Trial 7'!CZ13,'Trial 8'!CZ13)","v":{"v":-3758.207181574753,"d":"($3,758)"}},{"$f":"SUM(CO78:CZ78)","v":{"v":14290.35286257502,"d":"$14,290"}},{"$f":"AVERAGE('Trial 1'!DB13,'Trial 2'!DB13,'Trial 3'!DB13,'Trial 4'!DB13,'Trial 5'!DB13,'Trial 6'!DB13,'Trial 7'!DB13,'Trial 8'!DB13)","v":{"v":10145.732335081962,"d":"$10,146"}},{"$f":"AVERAGE('Trial 1'!DC13,'Trial 2'!DC13,'Trial 3'!DC13,'Trial 4'!DC13,'Trial 5'!DC13,'Trial 6'!DC13,'Trial 7'!DC13,'Trial 8'!DC13)","v":{"v":-11436.179152960935,"d":"($11,436)"}},{"$f":"AVERAGE('Trial 1'!DD13,'Trial 2'!DD13,'Trial 3'!DD13,'Trial 4'!DD13,'Trial 5'!DD13,'Trial 6'!DD13,'Trial 7'!DD13,'Trial 8'!DD13)","v":{"v":-4316.232028530805,"d":"($4,316)"}},{"$f":"AVERAGE('Trial 1'!DE13,'Trial 2'!DE13,'Trial 3'!DE13,'Trial 4'!DE13,'Trial 5'!DE13,'Trial 6'!DE13,'Trial 7'!DE13,'Trial 8'!DE13)","v":{"v":7616.571214585087,"d":"$7,617"}},{"$f":"AVERAGE('Trial 1'!DF13,'Trial 2'!DF13,'Trial 3'!DF13,'Trial 4'!DF13,'Trial 5'!DF13,'Trial 6'!DF13,'Trial 7'!DF13,'Trial 8'!DF13)","v":{"v":296.9088291427981,"d":"$297"}},{"$f":"AVERAGE('Trial 1'!DG13,'Trial 2'!DG13,'Trial 3'!DG13,'Trial 4'!DG13,'Trial 5'!DG13,'Trial 6'!DG13,'Trial 7'!DG13,'Trial 8'!DG13)","v":{"v":-2918.9666817735015,"d":"($2,919)"}},{"$f":"AVERAGE('Trial 1'!DH13,'Trial 2'!DH13,'Trial 3'!DH13,'Trial 4'!DH13,'Trial 5'!DH13,'Trial 6'!DH13,'Trial 7'!DH13,'Trial 8'!DH13)","v":{"v":-5067.051545906285,"d":"($5,067)"}},{"$f":"AVERAGE('Trial 1'!DI13,'Trial 2'!DI13,'Trial 3'!DI13,'Trial 4'!DI13,'Trial 5'!DI13,'Trial 6'!DI13,'Trial 7'!DI13,'Trial 8'!DI13)","v":{"v":-8316.439668619007,"d":"($8,316)"}},{"$f":"AVERAGE('Trial 1'!DJ13,'Trial 2'!DJ13,'Trial 3'!DJ13,'Trial 4'!DJ13,'Trial 5'!DJ13,'Trial 6'!DJ13,'Trial 7'!DJ13,'Trial 8'!DJ13)","v":{"v":387.4292704483705,"d":"$387"}},{"$f":"AVERAGE('Trial 1'!DK13,'Trial 2'!DK13,'Trial 3'!DK13,'Trial 4'!DK13,'Trial 5'!DK13,'Trial 6'!DK13,'Trial 7'!DK13,'Trial 8'!DK13)","v":{"v":-1951.8300726795708,"d":"($1,952)"}},{"$f":"AVERAGE('Trial 1'!DL13,'Trial 2'!DL13,'Trial 3'!DL13,'Trial 4'!DL13,'Trial 5'!DL13,'Trial 6'!DL13,'Trial 7'!DL13,'Trial 8'!DL13)","v":{"v":-9252.097467368403,"d":"($9,252)"}},{"$f":"AVERAGE('Trial 1'!DM13,'Trial 2'!DM13,'Trial 3'!DM13,'Trial 4'!DM13,'Trial 5'!DM13,'Trial 6'!DM13,'Trial 7'!DM13,'Trial 8'!DM13)","v":{"v":-6150.763798296392,"d":"($6,151)"}},{"$f":"SUM(DB78:DM78)","v":{"v":-30962.918766876683,"d":"($30,963)"}},{"$f":"AVERAGE('Trial 1'!DO13,'Trial 2'!DO13,'Trial 3'!DO13,'Trial 4'!DO13,'Trial 5'!DO13,'Trial 6'!DO13,'Trial 7'!DO13,'Trial 8'!DO13)","v":{"v":10229.419512814513,"d":"$10,229"}},{"$f":"AVERAGE('Trial 1'!DP13,'Trial 2'!DP13,'Trial 3'!DP13,'Trial 4'!DP13,'Trial 5'!DP13,'Trial 6'!DP13,'Trial 7'!DP13,'Trial 8'!DP13)","v":{"v":-5700.055267335877,"d":"($5,700)"}},{"$f":"AVERAGE('Trial 1'!DQ13,'Trial 2'!DQ13,'Trial 3'!DQ13,'Trial 4'!DQ13,'Trial 5'!DQ13,'Trial 6'!DQ13,'Trial 7'!DQ13,'Trial 8'!DQ13)","v":{"v":15214.766831601246,"d":"$15,215"}},{"$f":"AVERAGE('Trial 1'!DR13,'Trial 2'!DR13,'Trial 3'!DR13,'Trial 4'!DR13,'Trial 5'!DR13,'Trial 6'!DR13,'Trial 7'!DR13,'Trial 8'!DR13)","v":{"v":2836.5229752038413,"d":"$2,837"}},{"$f":"AVERAGE('Trial 1'!DS13,'Trial 2'!DS13,'Trial 3'!DS13,'Trial 4'!DS13,'Trial 5'!DS13,'Trial 6'!DS13,'Trial 7'!DS13,'Trial 8'!DS13)","v":{"v":1195.537286768572,"d":"$1,196"}},{"$f":"AVERAGE('Trial 1'!DT13,'Trial 2'!DT13,'Trial 3'!DT13,'Trial 4'!DT13,'Trial 5'!DT13,'Trial 6'!DT13,'Trial 7'!DT13,'Trial 8'!DT13)","v":{"v":14205.374091147398,"d":"$14,205"}},{"$f":"AVERAGE('Trial 1'!DU13,'Trial 2'!DU13,'Trial 3'!DU13,'Trial 4'!DU13,'Trial 5'!DU13,'Trial 6'!DU13,'Trial 7'!DU13,'Trial 8'!DU13)","v":{"v":5682.5781542566,"d":"$5,683"}},{"$f":"AVERAGE('Trial 1'!DV13,'Trial 2'!DV13,'Trial 3'!DV13,'Trial 4'!DV13,'Trial 5'!DV13,'Trial 6'!DV13,'Trial 7'!DV13,'Trial 8'!DV13)","v":{"v":9501.852026304687,"d":"$9,502"}},{"$f":"AVERAGE('Trial 1'!DW13,'Trial 2'!DW13,'Trial 3'!DW13,'Trial 4'!DW13,'Trial 5'!DW13,'Trial 6'!DW13,'Trial 7'!DW13,'Trial 8'!DW13)","v":{"v":3960.1389927878586,"d":"$3,960"}},{"$f":"AVERAGE('Trial 1'!DX13,'Trial 2'!DX13,'Trial 3'!DX13,'Trial 4'!DX13,'Trial 5'!DX13,'Trial 6'!DX13,'Trial 7'!DX13,'Trial 8'!DX13)","v":{"v":1875.6610793926384,"d":"$1,876"}},{"$f":"AVERAGE('Trial 1'!DY13,'Trial 2'!DY13,'Trial 3'!DY13,'Trial 4'!DY13,'Trial 5'!DY13,'Trial 6'!DY13,'Trial 7'!DY13,'Trial 8'!DY13)","v":{"v":3068.7854863929097,"d":"$3,069"}},{"$f":"AVERAGE('Trial 1'!DZ13,'Trial 2'!DZ13,'Trial 3'!DZ13,'Trial 4'!DZ13,'Trial 5'!DZ13,'Trial 6'!DZ13,'Trial 7'!DZ13,'Trial 8'!DZ13)","v":{"v":-13964.257845283784,"d":"($13,964)"}},{"$f":"SUM(DO78:DZ78)","v":{"v":48106.3233240506,"d":"$48,106"}},{"$f":"AVERAGE('Trial 1'!EB13,'Trial 2'!EB13,'Trial 3'!EB13,'Trial 4'!EB13,'Trial 5'!EB13,'Trial 6'!EB13,'Trial 7'!EB13,'Trial 8'!EB13)","v":{"v":7637.298272171726,"d":"$7,637"}},{"$f":"AVERAGE('Trial 1'!EC13,'Trial 2'!EC13,'Trial 3'!EC13,'Trial 4'!EC13,'Trial 5'!EC13,'Trial 6'!EC13,'Trial 7'!EC13,'Trial 8'!EC13)","v":{"v":-12207.646840154634,"d":"($12,208)"}},{"$f":"AVERAGE('Trial 1'!ED13,'Trial 2'!ED13,'Trial 3'!ED13,'Trial 4'!ED13,'Trial 5'!ED13,'Trial 6'!ED13,'Trial 7'!ED13,'Trial 8'!ED13)","v":{"v":-6154.216142838457,"d":"($6,154)"}},{"$f":"AVERAGE('Trial 1'!EE13,'Trial 2'!EE13,'Trial 3'!EE13,'Trial 4'!EE13,'Trial 5'!EE13,'Trial 6'!EE13,'Trial 7'!EE13,'Trial 8'!EE13)","v":{"v":3084.796238341262,"d":"$3,085"}},{"$f":"AVERAGE('Trial 1'!EF13,'Trial 2'!EF13,'Trial 3'!EF13,'Trial 4'!EF13,'Trial 5'!EF13,'Trial 6'!EF13,'Trial 7'!EF13,'Trial 8'!EF13)","v":{"v":4888.114509817273,"d":"$4,888"}},{"$f":"AVERAGE('Trial 1'!EG13,'Trial 2'!EG13,'Trial 3'!EG13,'Trial 4'!EG13,'Trial 5'!EG13,'Trial 6'!EG13,'Trial 7'!EG13,'Trial 8'!EG13)","v":{"v":-8799.514757864717,"d":"($8,800)"}},{"$f":"AVERAGE('Trial 1'!EH13,'Trial 2'!EH13,'Trial 3'!EH13,'Trial 4'!EH13,'Trial 5'!EH13,'Trial 6'!EH13,'Trial 7'!EH13,'Trial 8'!EH13)","v":{"v":-4572.208970816297,"d":"($4,572)"}},{"$f":"AVERAGE('Trial 1'!EI13,'Trial 2'!EI13,'Trial 3'!EI13,'Trial 4'!EI13,'Trial 5'!EI13,'Trial 6'!EI13,'Trial 7'!EI13,'Trial 8'!EI13)","v":{"v":-23106.146643661115,"d":"($23,106)"}},{"$f":"AVERAGE('Trial 1'!EJ13,'Trial 2'!EJ13,'Trial 3'!EJ13,'Trial 4'!EJ13,'Trial 5'!EJ13,'Trial 6'!EJ13,'Trial 7'!EJ13,'Trial 8'!EJ13)","v":{"v":-4248.923051183405,"d":"($4,249)"}},{"$f":"AVERAGE('Trial 1'!EK13,'Trial 2'!EK13,'Trial 3'!EK13,'Trial 4'!EK13,'Trial 5'!EK13,'Trial 6'!EK13,'Trial 7'!EK13,'Trial 8'!EK13)","v":{"v":6807.301281032783,"d":"$6,807"}},{"$f":"AVERAGE('Trial 1'!EL13,'Trial 2'!EL13,'Trial 3'!EL13,'Trial 4'!EL13,'Trial 5'!EL13,'Trial 6'!EL13,'Trial 7'!EL13,'Trial 8'!EL13)","v":{"v":-6640.996498655389,"d":"($6,641)"}},{"$f":"AVERAGE('Trial 1'!EM13,'Trial 2'!EM13,'Trial 3'!EM13,'Trial 4'!EM13,'Trial 5'!EM13,'Trial 6'!EM13,'Trial 7'!EM13,'Trial 8'!EM13)","v":{"v":5436.153344611077,"d":"$5,436"}},{"$f":"SUM(EB78:EM78)","v":{"v":-37875.98925919989,"d":"($37,876)"}}]
[{"$f":"Labels!B76","v":"Aggregate Demand Shock std dev"},{"$f":"STDEV('Trial 1'!B13,'Trial 2'!B13,'Trial 3'!B13,'Trial 4'!B13,'Trial 5'!B13,'Trial 6'!B13,'Trial 7'!B13,'Trial 8'!B13)","v":{"v":20429.028223053832,"d":"$20,429"}},{"$f":"STDEV('Trial 1'!C13,'Trial 2'!C13,'Trial 3'!C13,'Trial 4'!C13,'Trial 5'!C13,'Trial 6'!C13,'Trial 7'!C13,'Trial 8'!C13)","v":{"v":33248.72625456326,"d":"$33,249"}},{"$f":"STDEV('Trial 1'!D13,'Trial 2'!D13,'Trial 3'!D13,'Trial 4'!D13,'Trial 5'!D13,'Trial 6'!D13,'Trial 7'!D13,'Trial 8'!D13)","v":{"v":24458.198936294328,"d":"$24,458"}},{"$f":"STDEV('Trial 1'!E13,'Trial 2'!E13,'Trial 3'!E13,'Trial 4'!E13,'Trial 5'!E13,'Trial 6'!E13,'Trial 7'!E13,'Trial 8'!E13)","v":{"v":36633.93123715191,"d":"$36,634"}},{"$f":"STDEV('Trial 1'!F13,'Trial 2'!F13,'Trial 3'!F13,'Trial 4'!F13,'Trial 5'!F13,'Trial 6'!F13,'Trial 7'!F13,'Trial 8'!F13)","v":{"v":24626.932254162573,"d":"$24,627"}},{"$f":"STDEV('Trial 1'!G13,'Trial 2'!G13,'Trial 3'!G13,'Trial 4'!G13,'Trial 5'!G13,'Trial 6'!G13,'Trial 7'!G13,'Trial 8'!G13)","v":{"v":31318.177224312505,"d":"$31,318"}},{"$f":"STDEV('Trial 1'!H13,'Trial 2'!H13,'Trial 3'!H13,'Trial 4'!H13,'Trial 5'!H13,'Trial 6'!H13,'Trial 7'!H13,'Trial 8'!H13)","v":{"v":20864.07505352917,"d":"$20,864"}},{"$f":"STDEV('Trial 1'!I13,'Trial 2'!I13,'Trial 3'!I13,'Trial 4'!I13,'Trial 5'!I13,'Trial 6'!I13,'Trial 7'!I13,'Trial 8'!I13)","v":{"v":30017.843432359663,"d":"$30,018"}},{"$f":"STDEV('Trial 1'!J13,'Trial 2'!J13,'Trial 3'!J13,'Trial 4'!J13,'Trial 5'!J13,'Trial 6'!J13,'Trial 7'!J13,'Trial 8'!J13)","v":{"v":32969.45933505443,"d":"$32,969"}},{"$f":"STDEV('Trial 1'!K13,'Trial 2'!K13,'Trial 3'!K13,'Trial 4'!K13,'Trial 5'!K13,'Trial 6'!K13,'Trial 7'!K13,'Trial 8'!K13)","v":{"v":27818.0518484783,"d":"$27,818"}},{"$f":"STDEV('Trial 1'!L13,'Trial 2'!L13,'Trial 3'!L13,'Trial 4'!L13,'Trial 5'!L13,'Trial 6'!L13,'Trial 7'!L13,'Trial 8'!L13)","v":{"v":34095.2860682206,"d":"$34,095"}},{"$f":"STDEV('Trial 1'!M13,'Trial 2'!M13,'Trial 3'!M13,'Trial 4'!M13,'Trial 5'!M13,'Trial 6'!M13,'Trial 7'!M13,'Trial 8'!M13)","v":{"v":25113.073738845378,"d":"$25,113"}},{"$f":"SUM(B79:M79)","v":{"v":341592.783606026,"d":"$341,593"}},{"$f":"STDEV('Trial 1'!O13,'Trial 2'!O13,'Trial 3'!O13,'Trial 4'!O13,'Trial 5'!O13,'Trial 6'!O13,'Trial 7'!O13,'Trial 8'!O13)","v":{"v":24718.936222589207,"d":"$24,719"}},{"$f":"STDEV('Trial 1'!P13,'Trial 2'!P13,'Trial 3'!P13,'Trial 4'!P13,'Trial 5'!P13,'Trial 6'!P13,'Trial 7'!P13,'Trial 8'!P13)","v":{"v":21827.592451896468,"d":"$21,828"}},{"$f":"STDEV('Trial 1'!Q13,'Trial 2'!Q13,'Trial 3'!Q13,'Trial 4'!Q13,'Trial 5'!Q13,'Trial 6'!Q13,'Trial 7'!Q13,'Trial 8'!Q13)","v":{"v":43107.83311694741,"d":"$43,108"}},{"$f":"STDEV('Trial 1'!R13,'Trial 2'!R13,'Trial 3'!R13,'Trial 4'!R13,'Trial 5'!R13,'Trial 6'!R13,'Trial 7'!R13,'Trial 8'!R13)","v":{"v":12785.168693971023,"d":"$12,785"}},{"$f":"STDEV('Trial 1'!S13,'Trial 2'!S13,'Trial 3'!S13,'Trial 4'!S13,'Trial 5'!S13,'Trial 6'!S13,'Trial 7'!S13,'Trial 8'!S13)","v":{"v":29141.5168758466,"d":"$29,142"}},{"$f":"STDEV('Trial 1'!T13,'Trial 2'!T13,'Trial 3'!T13,'Trial 4'!T13,'Trial 5'!T13,'Trial 6'!T13,'Trial 7'!T13,'Trial 8'!T13)","v":{"v":33121.2598435804,"d":"$33,121"}},{"$f":"STDEV('Trial 1'!U13,'Trial 2'!U13,'Trial 3'!U13,'Trial 4'!U13,'Trial 5'!U13,'Trial 6'!U13,'Trial 7'!U13,'Trial 8'!U13)","v":{"v":29659.140845387727,"d":"$29,659"}},{"$f":"STDEV('Trial 1'!V13,'Trial 2'!V13,'Trial 3'!V13,'Trial 4'!V13,'Trial 5'!V13,'Trial 6'!V13,'Trial 7'!V13,'Trial 8'!V13)","v":{"v":23645.614353932295,"d":"$23,646"}},{"$f":"STDEV('Trial 1'!W13,'Trial 2'!W13,'Trial 3'!W13,'Trial 4'!W13,'Trial 5'!W13,'Trial 6'!W13,'Trial 7'!W13,'Trial 8'!W13)","v":{"v":30591.268683100458,"d":"$30,591"}},{"$f":"STDEV('Trial 1'!X13,'Trial 2'!X13,'Trial 3'!X13,'Trial 4'!X13,'Trial 5'!X13,'Trial 6'!X13,'Trial 7'!X13,'Trial 8'!X13)","v":{"v":21394.84666788479,"d":"$21,395"}},{"$f":"STDEV('Trial 1'!Y13,'Trial 2'!Y13,'Trial 3'!Y13,'Trial 4'!Y13,'Trial 5'!Y13,'Trial 6'!Y13,'Trial 7'!Y13,'Trial 8'!Y13)","v":{"v":44615.775403708285,"d":"$44,616"}},{"$f":"STDEV('Trial 1'!Z13,'Trial 2'!Z13,'Trial 3'!Z13,'Trial 4'!Z13,'Trial 5'!Z13,'Trial 6'!Z13,'Trial 7'!Z13,'Trial 8'!Z13)","v":{"v":22697.797149572445,"d":"$22,698"}},{"$f":"SUM(O79:Z79)","v":{"v":337306.75030841713,"d":"$337,307"}},{"$f":"STDEV('Trial 1'!AB13,'Trial 2'!AB13,'Trial 3'!AB13,'Trial 4'!AB13,'Trial 5'!AB13,'Trial 6'!AB13,'Trial 7'!AB13,'Trial 8'!AB13)","v":{"v":27367.478771904945,"d":"$27,367"}},{"$f":"STDEV('Trial 1'!AC13,'Trial 2'!AC13,'Trial 3'!AC13,'Trial 4'!AC13,'Trial 5'!AC13,'Trial 6'!AC13,'Trial 7'!AC13,'Trial 8'!AC13)","v":{"v":23954.39972158805,"d":"$23,954"}},{"$f":"STDEV('Trial 1'!AD13,'Trial 2'!AD13,'Trial 3'!AD13,'Trial 4'!AD13,'Trial 5'!AD13,'Trial 6'!AD13,'Trial 7'!AD13,'Trial 8'!AD13)","v":{"v":29880.558650090326,"d":"$29,881"}},{"$f":"STDEV('Trial 1'!AE13,'Trial 2'!AE13,'Trial 3'!AE13,'Trial 4'!AE13,'Trial 5'!AE13,'Trial 6'!AE13,'Trial 7'!AE13,'Trial 8'!AE13)","v":{"v":41048.09199581112,"d":"$41,048"}},{"$f":"STDEV('Trial 1'!AF13,'Trial 2'!AF13,'Trial 3'!AF13,'Trial 4'!AF13,'Trial 5'!AF13,'Trial 6'!AF13,'Trial 7'!AF13,'Trial 8'!AF13)","v":{"v":30197.53092742579,"d":"$30,198"}},{"$f":"STDEV('Trial 1'!AG13,'Trial 2'!AG13,'Trial 3'!AG13,'Trial 4'!AG13,'Trial 5'!AG13,'Trial 6'!AG13,'Trial 7'!AG13,'Trial 8'!AG13)","v":{"v":23145.599905505354,"d":"$23,146"}},{"$f":"STDEV('Trial 1'!AH13,'Trial 2'!AH13,'Trial 3'!AH13,'Trial 4'!AH13,'Trial 5'!AH13,'Trial 6'!AH13,'Trial 7'!AH13,'Trial 8'!AH13)","v":{"v":8748.423537252187,"d":"$8,748"}},{"$f":"STDEV('Trial 1'!AI13,'Trial 2'!AI13,'Trial 3'!AI13,'Trial 4'!AI13,'Trial 5'!AI13,'Trial 6'!AI13,'Trial 7'!AI13,'Trial 8'!AI13)","v":{"v":20199.105718169594,"d":"$20,199"}},{"$f":"STDEV('Trial 1'!AJ13,'Trial 2'!AJ13,'Trial 3'!AJ13,'Trial 4'!AJ13,'Trial 5'!AJ13,'Trial 6'!AJ13,'Trial 7'!AJ13,'Trial 8'!AJ13)","v":{"v":24381.240654171936,"d":"$24,381"}},{"$f":"STDEV('Trial 1'!AK13,'Trial 2'!AK13,'Trial 3'!AK13,'Trial 4'!AK13,'Trial 5'!AK13,'Trial 6'!AK13,'Trial 7'!AK13,'Trial 8'!AK13)","v":{"v":20929.412408875334,"d":"$20,929"}},{"$f":"STDEV('Trial 1'!AL13,'Trial 2'!AL13,'Trial 3'!AL13,'Trial 4'!AL13,'Trial 5'!AL13,'Trial 6'!AL13,'Trial 7'!AL13,'Trial 8'!AL13)","v":{"v":25520.03874843323,"d":"$25,520"}},{"$f":"STDEV('Trial 1'!AM13,'Trial 2'!AM13,'Trial 3'!AM13,'Trial 4'!AM13,'Trial 5'!AM13,'Trial 6'!AM13,'Trial 7'!AM13,'Trial 8'!AM13)","v":{"v":36018.53721860873,"d":"$36,019"}},{"$f":"SUM(AB79:AM79)","v":{"v":311390.4182578366,"d":"$311,390"}},{"$f":"STDEV('Trial 1'!AO13,'Trial 2'!AO13,'Trial 3'!AO13,'Trial 4'!AO13,'Trial 5'!AO13,'Trial 6'!AO13,'Trial 7'!AO13,'Trial 8'!AO13)","v":{"v":23665.66375490613,"d":"$23,666"}},{"$f":"STDEV('Trial 1'!AP13,'Trial 2'!AP13,'Trial 3'!AP13,'Trial 4'!AP13,'Trial 5'!AP13,'Trial 6'!AP13,'Trial 7'!AP13,'Trial 8'!AP13)","v":{"v":24554.063752326827,"d":"$24,554"}},{"$f":"STDEV('Trial 1'!AQ13,'Trial 2'!AQ13,'Trial 3'!AQ13,'Trial 4'!AQ13,'Trial 5'!AQ13,'Trial 6'!AQ13,'Trial 7'!AQ13,'Trial 8'!AQ13)","v":{"v":25068.431129010703,"d":"$25,068"}},{"$f":"STDEV('Trial 1'!AR13,'Trial 2'!AR13,'Trial 3'!AR13,'Trial 4'!AR13,'Trial 5'!AR13,'Trial 6'!AR13,'Trial 7'!AR13,'Trial 8'!AR13)","v":{"v":25731.435362430457,"d":"$25,731"}},{"$f":"STDEV('Trial 1'!AS13,'Trial 2'!AS13,'Trial 3'!AS13,'Trial 4'!AS13,'Trial 5'!AS13,'Trial 6'!AS13,'Trial 7'!AS13,'Trial 8'!AS13)","v":{"v":24889.604451525858,"d":"$24,890"}},{"$f":"STDEV('Trial 1'!AT13,'Trial 2'!AT13,'Trial 3'!AT13,'Trial 4'!AT13,'Trial 5'!AT13,'Trial 6'!AT13,'Trial 7'!AT13,'Trial 8'!AT13)","v":{"v":22538.088754943532,"d":"$22,538"}},{"$f":"STDEV('Trial 1'!AU13,'Trial 2'!AU13,'Trial 3'!AU13,'Trial 4'!AU13,'Trial 5'!AU13,'Trial 6'!AU13,'Trial 7'!AU13,'Trial 8'!AU13)","v":{"v":24827.083030232683,"d":"$24,827"}},{"$f":"STDEV('Trial 1'!AV13,'Trial 2'!AV13,'Trial 3'!AV13,'Trial 4'!AV13,'Trial 5'!AV13,'Trial 6'!AV13,'Trial 7'!AV13,'Trial 8'!AV13)","v":{"v":10903.469473655337,"d":"$10,903"}},{"$f":"STDEV('Trial 1'!AW13,'Trial 2'!AW13,'Trial 3'!AW13,'Trial 4'!AW13,'Trial 5'!AW13,'Trial 6'!AW13,'Trial 7'!AW13,'Trial 8'!AW13)","v":{"v":22931.910781705086,"d":"$22,932"}},{"$f":"STDEV('Trial 1'!AX13,'Trial 2'!AX13,'Trial 3'!AX13,'Trial 4'!AX13,'Trial 5'!AX13,'Trial 6'!AX13,'Trial 7'!AX13,'Trial 8'!AX13)","v":{"v":31458.022389171078,"d":"$31,458"}},{"$f":"STDEV('Trial 1'!AY13,'Trial 2'!AY13,'Trial 3'!AY13,'Trial 4'!AY13,'Trial 5'!AY13,'Trial 6'!AY13,'Trial 7'!AY13,'Trial 8'!AY13)","v":{"v":26000.4312920566,"d":"$26,000"}},{"$f":"STDEV('Trial 1'!AZ13,'Trial 2'!AZ13,'Trial 3'!AZ13,'Trial 4'!AZ13,'Trial 5'!AZ13,'Trial 6'!AZ13,'Trial 7'!AZ13,'Trial 8'!AZ13)","v":{"v":33358.739144374515,"d":"$33,359"}},{"$f":"SUM(AO79:AZ79)","v":{"v":295926.9433163388,"d":"$295,927"}},{"$f":"STDEV('Trial 1'!BB13,'Trial 2'!BB13,'Trial 3'!BB13,'Trial 4'!BB13,'Trial 5'!BB13,'Trial 6'!BB13,'Trial 7'!BB13,'Trial 8'!BB13)","v":{"v":32023.692080037516,"d":"$32,024"}},{"$f":"STDEV('Trial 1'!BC13,'Trial 2'!BC13,'Trial 3'!BC13,'Trial 4'!BC13,'Trial 5'!BC13,'Trial 6'!BC13,'Trial 7'!BC13,'Trial 8'!BC13)","v":{"v":35928.56026581694,"d":"$35,929"}},{"$f":"STDEV('Trial 1'!BD13,'Trial 2'!BD13,'Trial 3'!BD13,'Trial 4'!BD13,'Trial 5'!BD13,'Trial 6'!BD13,'Trial 7'!BD13,'Trial 8'!BD13)","v":{"v":36130.03725628256,"d":"$36,130"}},{"$f":"STDEV('Trial 1'!BE13,'Trial 2'!BE13,'Trial 3'!BE13,'Trial 4'!BE13,'Trial 5'!BE13,'Trial 6'!BE13,'Trial 7'!BE13,'Trial 8'!BE13)","v":{"v":28530.974288634763,"d":"$28,531"}},{"$f":"STDEV('Trial 1'!BF13,'Trial 2'!BF13,'Trial 3'!BF13,'Trial 4'!BF13,'Trial 5'!BF13,'Trial 6'!BF13,'Trial 7'!BF13,'Trial 8'!BF13)","v":{"v":19445.01030278914,"d":"$19,445"}},{"$f":"STDEV('Trial 1'!BG13,'Trial 2'!BG13,'Trial 3'!BG13,'Trial 4'!BG13,'Trial 5'!BG13,'Trial 6'!BG13,'Trial 7'!BG13,'Trial 8'!BG13)","v":{"v":32894.90694074054,"d":"$32,895"}},{"$f":"STDEV('Trial 1'!BH13,'Trial 2'!BH13,'Trial 3'!BH13,'Trial 4'!BH13,'Trial 5'!BH13,'Trial 6'!BH13,'Trial 7'!BH13,'Trial 8'!BH13)","v":{"v":26435.40958427513,"d":"$26,435"}},{"$f":"STDEV('Trial 1'!BI13,'Trial 2'!BI13,'Trial 3'!BI13,'Trial 4'!BI13,'Trial 5'!BI13,'Trial 6'!BI13,'Trial 7'!BI13,'Trial 8'!BI13)","v":{"v":18767.111357849128,"d":"$18,767"}},{"$f":"STDEV('Trial 1'!BJ13,'Trial 2'!BJ13,'Trial 3'!BJ13,'Trial 4'!BJ13,'Trial 5'!BJ13,'Trial 6'!BJ13,'Trial 7'!BJ13,'Trial 8'!BJ13)","v":{"v":35237.50524085926,"d":"$35,238"}},{"$f":"STDEV('Trial 1'!BK13,'Trial 2'!BK13,'Trial 3'!BK13,'Trial 4'!BK13,'Trial 5'!BK13,'Trial 6'!BK13,'Trial 7'!BK13,'Trial 8'!BK13)","v":{"v":27210.70928066034,"d":"$27,211"}},{"$f":"STDEV('Trial 1'!BL13,'Trial 2'!BL13,'Trial 3'!BL13,'Trial 4'!BL13,'Trial 5'!BL13,'Trial 6'!BL13,'Trial 7'!BL13,'Trial 8'!BL13)","v":{"v":27353.061676155023,"d":"$27,353"}},{"$f":"STDEV('Trial 1'!BM13,'Trial 2'!BM13,'Trial 3'!BM13,'Trial 4'!BM13,'Trial 5'!BM13,'Trial 6'!BM13,'Trial 7'!BM13,'Trial 8'!BM13)","v":{"v":26000.453121023966,"d":"$26,000"}},{"$f":"SUM(BB79:BM79)","v":{"v":345957.4313951242,"d":"$345,957"}},{"$f":"STDEV('Trial 1'!BO13,'Trial 2'!BO13,'Trial 3'!BO13,'Trial 4'!BO13,'Trial 5'!BO13,'Trial 6'!BO13,'Trial 7'!BO13,'Trial 8'!BO13)","v":{"v":37157.997039966045,"d":"$37,158"}},{"$f":"STDEV('Trial 1'!BP13,'Trial 2'!BP13,'Trial 3'!BP13,'Trial 4'!BP13,'Trial 5'!BP13,'Trial 6'!BP13,'Trial 7'!BP13,'Trial 8'!BP13)","v":{"v":37447.58460550185,"d":"$37,448"}},{"$f":"STDEV('Trial 1'!BQ13,'Trial 2'!BQ13,'Trial 3'!BQ13,'Trial 4'!BQ13,'Trial 5'!BQ13,'Trial 6'!BQ13,'Trial 7'!BQ13,'Trial 8'!BQ13)","v":{"v":33461.66506684914,"d":"$33,462"}},{"$f":"STDEV('Trial 1'!BR13,'Trial 2'!BR13,'Trial 3'!BR13,'Trial 4'!BR13,'Trial 5'!BR13,'Trial 6'!BR13,'Trial 7'!BR13,'Trial 8'!BR13)","v":{"v":31266.962295758458,"d":"$31,267"}},{"$f":"STDEV('Trial 1'!BS13,'Trial 2'!BS13,'Trial 3'!BS13,'Trial 4'!BS13,'Trial 5'!BS13,'Trial 6'!BS13,'Trial 7'!BS13,'Trial 8'!BS13)","v":{"v":35270.57952280292,"d":"$35,271"}},{"$f":"STDEV('Trial 1'!BT13,'Trial 2'!BT13,'Trial 3'!BT13,'Trial 4'!BT13,'Trial 5'!BT13,'Trial 6'!BT13,'Trial 7'!BT13,'Trial 8'!BT13)","v":{"v":34032.49857512733,"d":"$34,032"}},{"$f":"STDEV('Trial 1'!BU13,'Trial 2'!BU13,'Trial 3'!BU13,'Trial 4'!BU13,'Trial 5'!BU13,'Trial 6'!BU13,'Trial 7'!BU13,'Trial 8'!BU13)","v":{"v":22640.854948438613,"d":"$22,641"}},{"$f":"STDEV('Trial 1'!BV13,'Trial 2'!BV13,'Trial 3'!BV13,'Trial 4'!BV13,'Trial 5'!BV13,'Trial 6'!BV13,'Trial 7'!BV13,'Trial 8'!BV13)","v":{"v":26330.017949489826,"d":"$26,330"}},{"$f":"STDEV('Trial 1'!BW13,'Trial 2'!BW13,'Trial 3'!BW13,'Trial 4'!BW13,'Trial 5'!BW13,'Trial 6'!BW13,'Trial 7'!BW13,'Trial 8'!BW13)","v":{"v":24880.23240014649,"d":"$24,880"}},{"$f":"STDEV('Trial 1'!BX13,'Trial 2'!BX13,'Trial 3'!BX13,'Trial 4'!BX13,'Trial 5'!BX13,'Trial 6'!BX13,'Trial 7'!BX13,'Trial 8'!BX13)","v":{"v":36653.340640307084,"d":"$36,653"}},{"$f":"STDEV('Trial 1'!BY13,'Trial 2'!BY13,'Trial 3'!BY13,'Trial 4'!BY13,'Trial 5'!BY13,'Trial 6'!BY13,'Trial 7'!BY13,'Trial 8'!BY13)","v":{"v":42072.837586604175,"d":"$42,073"}},{"$f":"STDEV('Trial 1'!BZ13,'Trial 2'!BZ13,'Trial 3'!BZ13,'Trial 4'!BZ13,'Trial 5'!BZ13,'Trial 6'!BZ13,'Trial 7'!BZ13,'Trial 8'!BZ13)","v":{"v":36270.38963124812,"d":"$36,270"}},{"$f":"SUM(BO79:BZ79)","v":{"v":397484.9602622401,"d":"$397,485"}},{"$f":"STDEV('Trial 1'!CB13,'Trial 2'!CB13,'Trial 3'!CB13,'Trial 4'!CB13,'Trial 5'!CB13,'Trial 6'!CB13,'Trial 7'!CB13,'Trial 8'!CB13)","v":{"v":16398.04222581321,"d":"$16,398"}},{"$f":"STDEV('Trial 1'!CC13,'Trial 2'!CC13,'Trial 3'!CC13,'Trial 4'!CC13,'Trial 5'!CC13,'Trial 6'!CC13,'Trial 7'!CC13,'Trial 8'!CC13)","v":{"v":20216.294268061367,"d":"$20,216"}},{"$f":"STDEV('Trial 1'!CD13,'Trial 2'!CD13,'Trial 3'!CD13,'Trial 4'!CD13,'Trial 5'!CD13,'Trial 6'!CD13,'Trial 7'!CD13,'Trial 8'!CD13)","v":{"v":29180.956855292403,"d":"$29,181"}},{"$f":"STDEV('Trial 1'!CE13,'Trial 2'!CE13,'Trial 3'!CE13,'Trial 4'!CE13,'Trial 5'!CE13,'Trial 6'!CE13,'Trial 7'!CE13,'Trial 8'!CE13)","v":{"v":28333.04328838651,"d":"$28,333"}},{"$f":"STDEV('Trial 1'!CF13,'Trial 2'!CF13,'Trial 3'!CF13,'Trial 4'!CF13,'Trial 5'!CF13,'Trial 6'!CF13,'Trial 7'!CF13,'Trial 8'!CF13)","v":{"v":10808.971664129549,"d":"$10,809"}},{"$f":"STDEV('Trial 1'!CG13,'Trial 2'!CG13,'Trial 3'!CG13,'Trial 4'!CG13,'Trial 5'!CG13,'Trial 6'!CG13,'Trial 7'!CG13,'Trial 8'!CG13)","v":{"v":23888.29874378561,"d":"$23,888"}},{"$f":"STDEV('Trial 1'!CH13,'Trial 2'!CH13,'Trial 3'!CH13,'Trial 4'!CH13,'Trial 5'!CH13,'Trial 6'!CH13,'Trial 7'!CH13,'Trial 8'!CH13)","v":{"v":36674.75267933104,"d":"$36,675"}},{"$f":"STDEV('Trial 1'!CI13,'Trial 2'!CI13,'Trial 3'!CI13,'Trial 4'!CI13,'Trial 5'!CI13,'Trial 6'!CI13,'Trial 7'!CI13,'Trial 8'!CI13)","v":{"v":31918.18325072303,"d":"$31,918"}},{"$f":"STDEV('Trial 1'!CJ13,'Trial 2'!CJ13,'Trial 3'!CJ13,'Trial 4'!CJ13,'Trial 5'!CJ13,'Trial 6'!CJ13,'Trial 7'!CJ13,'Trial 8'!CJ13)","v":{"v":28068.489645286598,"d":"$28,068"}},{"$f":"STDEV('Trial 1'!CK13,'Trial 2'!CK13,'Trial 3'!CK13,'Trial 4'!CK13,'Trial 5'!CK13,'Trial 6'!CK13,'Trial 7'!CK13,'Trial 8'!CK13)","v":{"v":33520.60390497113,"d":"$33,521"}},{"$f":"STDEV('Trial 1'!CL13,'Trial 2'!CL13,'Trial 3'!CL13,'Trial 4'!CL13,'Trial 5'!CL13,'Trial 6'!CL13,'Trial 7'!CL13,'Trial 8'!CL13)","v":{"v":32949.115358894625,"d":"$32,949"}},{"$f":"STDEV('Trial 1'!CM13,'Trial 2'!CM13,'Trial 3'!CM13,'Trial 4'!CM13,'Trial 5'!CM13,'Trial 6'!CM13,'Trial 7'!CM13,'Trial 8'!CM13)","v":{"v":24824.2349424031,"d":"$24,824"}},{"$f":"SUM(CB79:CM79)","v":{"v":316780.98682707816,"d":"$316,781"}},{"$f":"STDEV('Trial 1'!CO13,'Trial 2'!CO13,'Trial 3'!CO13,'Trial 4'!CO13,'Trial 5'!CO13,'Trial 6'!CO13,'Trial 7'!CO13,'Trial 8'!CO13)","v":{"v":34508.9041988726,"d":"$34,509"}},{"$f":"STDEV('Trial 1'!CP13,'Trial 2'!CP13,'Trial 3'!CP13,'Trial 4'!CP13,'Trial 5'!CP13,'Trial 6'!CP13,'Trial 7'!CP13,'Trial 8'!CP13)","v":{"v":21689.90744447345,"d":"$21,690"}},{"$f":"STDEV('Trial 1'!CQ13,'Trial 2'!CQ13,'Trial 3'!CQ13,'Trial 4'!CQ13,'Trial 5'!CQ13,'Trial 6'!CQ13,'Trial 7'!CQ13,'Trial 8'!CQ13)","v":{"v":32037.218559784036,"d":"$32,037"}},{"$f":"STDEV('Trial 1'!CR13,'Trial 2'!CR13,'Trial 3'!CR13,'Trial 4'!CR13,'Trial 5'!CR13,'Trial 6'!CR13,'Trial 7'!CR13,'Trial 8'!CR13)","v":{"v":16549.861921153224,"d":"$16,550"}},{"$f":"STDEV('Trial 1'!CS13,'Trial 2'!CS13,'Trial 3'!CS13,'Trial 4'!CS13,'Trial 5'!CS13,'Trial 6'!CS13,'Trial 7'!CS13,'Trial 8'!CS13)","v":{"v":26641.278586921704,"d":"$26,641"}},{"$f":"STDEV('Trial 1'!CT13,'Trial 2'!CT13,'Trial 3'!CT13,'Trial 4'!CT13,'Trial 5'!CT13,'Trial 6'!CT13,'Trial 7'!CT13,'Trial 8'!CT13)","v":{"v":23283.443243135436,"d":"$23,283"}},{"$f":"STDEV('Trial 1'!CU13,'Trial 2'!CU13,'Trial 3'!CU13,'Trial 4'!CU13,'Trial 5'!CU13,'Trial 6'!CU13,'Trial 7'!CU13,'Trial 8'!CU13)","v":{"v":29793.37083896659,"d":"$29,793"}},{"$f":"STDEV('Trial 1'!CV13,'Trial 2'!CV13,'Trial 3'!CV13,'Trial 4'!CV13,'Trial 5'!CV13,'Trial 6'!CV13,'Trial 7'!CV13,'Trial 8'!CV13)","v":{"v":14305.878688485662,"d":"$14,306"}},{"$f":"STDEV('Trial 1'!CW13,'Trial 2'!CW13,'Trial 3'!CW13,'Trial 4'!CW13,'Trial 5'!CW13,'Trial 6'!CW13,'Trial 7'!CW13,'Trial 8'!CW13)","v":{"v":39673.52692465923,"d":"$39,674"}},{"$f":"STDEV('Trial 1'!CX13,'Trial 2'!CX13,'Trial 3'!CX13,'Trial 4'!CX13,'Trial 5'!CX13,'Trial 6'!CX13,'Trial 7'!CX13,'Trial 8'!CX13)","v":{"v":42205.07972232634,"d":"$42,205"}},{"$f":"STDEV('Trial 1'!CY13,'Trial 2'!CY13,'Trial 3'!CY13,'Trial 4'!CY13,'Trial 5'!CY13,'Trial 6'!CY13,'Trial 7'!CY13,'Trial 8'!CY13)","v":{"v":35370.8011263467,"d":"$35,371"}},{"$f":"STDEV('Trial 1'!CZ13,'Trial 2'!CZ13,'Trial 3'!CZ13,'Trial 4'!CZ13,'Trial 5'!CZ13,'Trial 6'!CZ13,'Trial 7'!CZ13,'Trial 8'!CZ13)","v":{"v":34754.250168657294,"d":"$34,754"}},{"$f":"SUM(CO79:CZ79)","v":{"v":350813.5214237823,"d":"$350,814"}},{"$f":"STDEV('Trial 1'!DB13,'Trial 2'!DB13,'Trial 3'!DB13,'Trial 4'!DB13,'Trial 5'!DB13,'Trial 6'!DB13,'Trial 7'!DB13,'Trial 8'!DB13)","v":{"v":33474.00388083363,"d":"$33,474"}},{"$f":"STDEV('Trial 1'!DC13,'Trial 2'!DC13,'Trial 3'!DC13,'Trial 4'!DC13,'Trial 5'!DC13,'Trial 6'!DC13,'Trial 7'!DC13,'Trial 8'!DC13)","v":{"v":34800.23771807307,"d":"$34,800"}},{"$f":"STDEV('Trial 1'!DD13,'Trial 2'!DD13,'Trial 3'!DD13,'Trial 4'!DD13,'Trial 5'!DD13,'Trial 6'!DD13,'Trial 7'!DD13,'Trial 8'!DD13)","v":{"v":17243.759255194178,"d":"$17,244"}},{"$f":"STDEV('Trial 1'!DE13,'Trial 2'!DE13,'Trial 3'!DE13,'Trial 4'!DE13,'Trial 5'!DE13,'Trial 6'!DE13,'Trial 7'!DE13,'Trial 8'!DE13)","v":{"v":16482.227667183724,"d":"$16,482"}},{"$f":"STDEV('Trial 1'!DF13,'Trial 2'!DF13,'Trial 3'!DF13,'Trial 4'!DF13,'Trial 5'!DF13,'Trial 6'!DF13,'Trial 7'!DF13,'Trial 8'!DF13)","v":{"v":24869.498724678084,"d":"$24,869"}},{"$f":"STDEV('Trial 1'!DG13,'Trial 2'!DG13,'Trial 3'!DG13,'Trial 4'!DG13,'Trial 5'!DG13,'Trial 6'!DG13,'Trial 7'!DG13,'Trial 8'!DG13)","v":{"v":22429.2511684134,"d":"$22,429"}},{"$f":"STDEV('Trial 1'!DH13,'Trial 2'!DH13,'Trial 3'!DH13,'Trial 4'!DH13,'Trial 5'!DH13,'Trial 6'!DH13,'Trial 7'!DH13,'Trial 8'!DH13)","v":{"v":33824.57703725757,"d":"$33,825"}},{"$f":"STDEV('Trial 1'!DI13,'Trial 2'!DI13,'Trial 3'!DI13,'Trial 4'!DI13,'Trial 5'!DI13,'Trial 6'!DI13,'Trial 7'!DI13,'Trial 8'!DI13)","v":{"v":23887.768044920784,"d":"$23,888"}},{"$f":"STDEV('Trial 1'!DJ13,'Trial 2'!DJ13,'Trial 3'!DJ13,'Trial 4'!DJ13,'Trial 5'!DJ13,'Trial 6'!DJ13,'Trial 7'!DJ13,'Trial 8'!DJ13)","v":{"v":36359.46249871196,"d":"$36,359"}},{"$f":"STDEV('Trial 1'!DK13,'Trial 2'!DK13,'Trial 3'!DK13,'Trial 4'!DK13,'Trial 5'!DK13,'Trial 6'!DK13,'Trial 7'!DK13,'Trial 8'!DK13)","v":{"v":29034.12721612247,"d":"$29,034"}},{"$f":"STDEV('Trial 1'!DL13,'Trial 2'!DL13,'Trial 3'!DL13,'Trial 4'!DL13,'Trial 5'!DL13,'Trial 6'!DL13,'Trial 7'!DL13,'Trial 8'!DL13)","v":{"v":35767.58438066483,"d":"$35,768"}},{"$f":"STDEV('Trial 1'!DM13,'Trial 2'!DM13,'Trial 3'!DM13,'Trial 4'!DM13,'Trial 5'!DM13,'Trial 6'!DM13,'Trial 7'!DM13,'Trial 8'!DM13)","v":{"v":15858.256739925468,"d":"$15,858"}},{"$f":"SUM(DB79:DM79)","v":{"v":324030.7543319792,"d":"$324,031"}},{"$f":"STDEV('Trial 1'!DO13,'Trial 2'!DO13,'Trial 3'!DO13,'Trial 4'!DO13,'Trial 5'!DO13,'Trial 6'!DO13,'Trial 7'!DO13,'Trial 8'!DO13)","v":{"v":35005.76954225782,"d":"$35,006"}},{"$f":"STDEV('Trial 1'!DP13,'Trial 2'!DP13,'Trial 3'!DP13,'Trial 4'!DP13,'Trial 5'!DP13,'Trial 6'!DP13,'Trial 7'!DP13,'Trial 8'!DP13)","v":{"v":33070.14704260757,"d":"$33,070"}},{"$f":"STDEV('Trial 1'!DQ13,'Trial 2'!DQ13,'Trial 3'!DQ13,'Trial 4'!DQ13,'Trial 5'!DQ13,'Trial 6'!DQ13,'Trial 7'!DQ13,'Trial 8'!DQ13)","v":{"v":34367.06542906691,"d":"$34,367"}},{"$f":"STDEV('Trial 1'!DR13,'Trial 2'!DR13,'Trial 3'!DR13,'Trial 4'!DR13,'Trial 5'!DR13,'Trial 6'!DR13,'Trial 7'!DR13,'Trial 8'!DR13)","v":{"v":35274.89989724313,"d":"$35,275"}},{"$f":"STDEV('Trial 1'!DS13,'Trial 2'!DS13,'Trial 3'!DS13,'Trial 4'!DS13,'Trial 5'!DS13,'Trial 6'!DS13,'Trial 7'!DS13,'Trial 8'!DS13)","v":{"v":26121.176958457538,"d":"$26,121"}},{"$f":"STDEV('Trial 1'!DT13,'Trial 2'!DT13,'Trial 3'!DT13,'Trial 4'!DT13,'Trial 5'!DT13,'Trial 6'!DT13,'Trial 7'!DT13,'Trial 8'!DT13)","v":{"v":25350.46592822409,"d":"$25,350"}},{"$f":"STDEV('Trial 1'!DU13,'Trial 2'!DU13,'Trial 3'!DU13,'Trial 4'!DU13,'Trial 5'!DU13,'Trial 6'!DU13,'Trial 7'!DU13,'Trial 8'!DU13)","v":{"v":25037.589950849237,"d":"$25,038"}},{"$f":"STDEV('Trial 1'!DV13,'Trial 2'!DV13,'Trial 3'!DV13,'Trial 4'!DV13,'Trial 5'!DV13,'Trial 6'!DV13,'Trial 7'!DV13,'Trial 8'!DV13)","v":{"v":23976.37513685356,"d":"$23,976"}},{"$f":"STDEV('Trial 1'!DW13,'Trial 2'!DW13,'Trial 3'!DW13,'Trial 4'!DW13,'Trial 5'!DW13,'Trial 6'!DW13,'Trial 7'!DW13,'Trial 8'!DW13)","v":{"v":41445.11433306086,"d":"$41,445"}},{"$f":"STDEV('Trial 1'!DX13,'Trial 2'!DX13,'Trial 3'!DX13,'Trial 4'!DX13,'Trial 5'!DX13,'Trial 6'!DX13,'Trial 7'!DX13,'Trial 8'!DX13)","v":{"v":34225.60745712206,"d":"$34,226"}},{"$f":"STDEV('Trial 1'!DY13,'Trial 2'!DY13,'Trial 3'!DY13,'Trial 4'!DY13,'Trial 5'!DY13,'Trial 6'!DY13,'Trial 7'!DY13,'Trial 8'!DY13)","v":{"v":18532.48895651249,"d":"$18,532"}},{"$f":"STDEV('Trial 1'!DZ13,'Trial 2'!DZ13,'Trial 3'!DZ13,'Trial 4'!DZ13,'Trial 5'!DZ13,'Trial 6'!DZ13,'Trial 7'!DZ13,'Trial 8'!DZ13)","v":{"v":29061.85277117114,"d":"$29,062"}},{"$f":"SUM(DO79:DZ79)","v":{"v":361468.5534034264,"d":"$361,469"}},{"$f":"STDEV('Trial 1'!EB13,'Trial 2'!EB13,'Trial 3'!EB13,'Trial 4'!EB13,'Trial 5'!EB13,'Trial 6'!EB13,'Trial 7'!EB13,'Trial 8'!EB13)","v":{"v":27862.749664900944,"d":"$27,863"}},{"$f":"STDEV('Trial 1'!EC13,'Trial 2'!EC13,'Trial 3'!EC13,'Trial 4'!EC13,'Trial 5'!EC13,'Trial 6'!EC13,'Trial 7'!EC13,'Trial 8'!EC13)","v":{"v":32667.4322325974,"d":"$32,667"}},{"$f":"STDEV('Trial 1'!ED13,'Trial 2'!ED13,'Trial 3'!ED13,'Trial 4'!ED13,'Trial 5'!ED13,'Trial 6'!ED13,'Trial 7'!ED13,'Trial 8'!ED13)","v":{"v":24208.956486471612,"d":"$24,209"}},{"$f":"STDEV('Trial 1'!EE13,'Trial 2'!EE13,'Trial 3'!EE13,'Trial 4'!EE13,'Trial 5'!EE13,'Trial 6'!EE13,'Trial 7'!EE13,'Trial 8'!EE13)","v":{"v":25989.779689371753,"d":"$25,990"}},{"$f":"STDEV('Trial 1'!EF13,'Trial 2'!EF13,'Trial 3'!EF13,'Trial 4'!EF13,'Trial 5'!EF13,'Trial 6'!EF13,'Trial 7'!EF13,'Trial 8'!EF13)","v":{"v":29198.96338775952,"d":"$29,199"}},{"$f":"STDEV('Trial 1'!EG13,'Trial 2'!EG13,'Trial 3'!EG13,'Trial 4'!EG13,'Trial 5'!EG13,'Trial 6'!EG13,'Trial 7'!EG13,'Trial 8'!EG13)","v":{"v":28325.391133477868,"d":"$28,325"}},{"$f":"STDEV('Trial 1'!EH13,'Trial 2'!EH13,'Trial 3'!EH13,'Trial 4'!EH13,'Trial 5'!EH13,'Trial 6'!EH13,'Trial 7'!EH13,'Trial 8'!EH13)","v":{"v":33595.93749551719,"d":"$33,596"}},{"$f":"STDEV('Trial 1'!EI13,'Trial 2'!EI13,'Trial 3'!EI13,'Trial 4'!EI13,'Trial 5'!EI13,'Trial 6'!EI13,'Trial 7'!EI13,'Trial 8'!EI13)","v":{"v":24659.922938879747,"d":"$24,660"}},{"$f":"STDEV('Trial 1'!EJ13,'Trial 2'!EJ13,'Trial 3'!EJ13,'Trial 4'!EJ13,'Trial 5'!EJ13,'Trial 6'!EJ13,'Trial 7'!EJ13,'Trial 8'!EJ13)","v":{"v":33237.15673242632,"d":"$33,237"}},{"$f":"STDEV('Trial 1'!EK13,'Trial 2'!EK13,'Trial 3'!EK13,'Trial 4'!EK13,'Trial 5'!EK13,'Trial 6'!EK13,'Trial 7'!EK13,'Trial 8'!EK13)","v":{"v":33266.669033717735,"d":"$33,267"}},{"$f":"STDEV('Trial 1'!EL13,'Trial 2'!EL13,'Trial 3'!EL13,'Trial 4'!EL13,'Trial 5'!EL13,'Trial 6'!EL13,'Trial 7'!EL13,'Trial 8'!EL13)","v":{"v":30063.5801661512,"d":"$30,064"}},{"$f":"STDEV('Trial 1'!EM13,'Trial 2'!EM13,'Trial 3'!EM13,'Trial 4'!EM13,'Trial 5'!EM13,'Trial 6'!EM13,'Trial 7'!EM13,'Trial 8'!EM13)","v":{"v":25292.371573482476,"d":"$25,292"}},{"$f":"SUM(EB79:EM79)","v":{"v":348368.91053475376,"d":"$348,369"}}]
[{"$f":"Labels!B79","v":"Output Shock"},{"$f":"AVERAGE('Trial 1'!B46,'Trial 2'!B46,'Trial 3'!B46,'Trial 4'!B46,'Trial 5'!B46,'Trial 6'!B46,'Trial 7'!B46,'Trial 8'!B46)","v":{"v":14434.882579666702,"d":"$14,435"}},{"$f":"AVERAGE('Trial 1'!C46,'Trial 2'!C46,'Trial 3'!C46,'Trial 4'!C46,'Trial 5'!C46,'Trial 6'!C46,'Trial 7'!C46,'Trial 8'!C46)","v":{"v":3152.2968774677447,"d":"$3,152"}},{"$f":"AVERAGE('Trial 1'!D46,'Trial 2'!D46,'Trial 3'!D46,'Trial 4'!D46,'Trial 5'!D46,'Trial 6'!D46,'Trial 7'!D46,'Trial 8'!D46)","v":{"v":3290.360652145197,"d":"$3,290"}},{"$f":"AVERAGE('Trial 1'!E46,'Trial 2'!E46,'Trial 3'!E46,'Trial 4'!E46,'Trial 5'!E46,'Trial 6'!E46,'Trial 7'!E46,'Trial 8'!E46)","v":{"v":-13531.336595712935,"d":"($13,531)"}},{"$f":"AVERAGE('Trial 1'!F46,'Trial 2'!F46,'Trial 3'!F46,'Trial 4'!F46,'Trial 5'!F46,'Trial 6'!F46,'Trial 7'!F46,'Trial 8'!F46)","v":{"v":-11388.940068693015,"d":"($11,389)"}},{"$f":"AVERAGE('Trial 1'!G46,'Trial 2'!G46,'Trial 3'!G46,'Trial 4'!G46,'Trial 5'!G46,'Trial 6'!G46,'Trial 7'!G46,'Trial 8'!G46)","v":{"v":-4136.933311495796,"d":"($4,137)"}},{"$f":"AVERAGE('Trial 1'!H46,'Trial 2'!H46,'Trial 3'!H46,'Trial 4'!H46,'Trial 5'!H46,'Trial 6'!H46,'Trial 7'!H46,'Trial 8'!H46)","v":{"v":22445.257123303585,"d":"$22,445"}},{"$f":"AVERAGE('Trial 1'!I46,'Trial 2'!I46,'Trial 3'!I46,'Trial 4'!I46,'Trial 5'!I46,'Trial 6'!I46,'Trial 7'!I46,'Trial 8'!I46)","v":{"v":-883.4058202317726,"d":"($883)"}},{"$f":"AVERAGE('Trial 1'!J46,'Trial 2'!J46,'Trial 3'!J46,'Trial 4'!J46,'Trial 5'!J46,'Trial 6'!J46,'Trial 7'!J46,'Trial 8'!J46)","v":{"v":15895.510526618846,"d":"$15,896"}},{"$f":"AVERAGE('Trial 1'!K46,'Trial 2'!K46,'Trial 3'!K46,'Trial 4'!K46,'Trial 5'!K46,'Trial 6'!K46,'Trial 7'!K46,'Trial 8'!K46)","v":{"v":-4620.529051699767,"d":"($4,621)"}},{"$f":"AVERAGE('Trial 1'!L46,'Trial 2'!L46,'Trial 3'!L46,'Trial 4'!L46,'Trial 5'!L46,'Trial 6'!L46,'Trial 7'!L46,'Trial 8'!L46)","v":{"v":10950.655447014522,"d":"$10,951"}},{"$f":"AVERAGE('Trial 1'!M46,'Trial 2'!M46,'Trial 3'!M46,'Trial 4'!M46,'Trial 5'!M46,'Trial 6'!M46,'Trial 7'!M46,'Trial 8'!M46)","v":{"v":10585.33542483395,"d":"$10,585"}},{"$f":"SUM(B80:M80)","v":{"v":46193.15378321726,"d":"$46,193"}},{"$f":"AVERAGE('Trial 1'!O46,'Trial 2'!O46,'Trial 3'!O46,'Trial 4'!O46,'Trial 5'!O46,'Trial 6'!O46,'Trial 7'!O46,'Trial 8'!O46)","v":{"v":-6095.264687326628,"d":"($6,095)"}},{"$f":"AVERAGE('Trial 1'!P46,'Trial 2'!P46,'Trial 3'!P46,'Trial 4'!P46,'Trial 5'!P46,'Trial 6'!P46,'Trial 7'!P46,'Trial 8'!P46)","v":{"v":7625.150208378935,"d":"$7,625"}},{"$f":"AVERAGE('Trial 1'!Q46,'Trial 2'!Q46,'Trial 3'!Q46,'Trial 4'!Q46,'Trial 5'!Q46,'Trial 6'!Q46,'Trial 7'!Q46,'Trial 8'!Q46)","v":{"v":20369.093954361528,"d":"$20,369"}},{"$f":"AVERAGE('Trial 1'!R46,'Trial 2'!R46,'Trial 3'!R46,'Trial 4'!R46,'Trial 5'!R46,'Trial 6'!R46,'Trial 7'!R46,'Trial 8'!R46)","v":{"v":6488.769189752605,"d":"$6,489"}},{"$f":"AVERAGE('Trial 1'!S46,'Trial 2'!S46,'Trial 3'!S46,'Trial 4'!S46,'Trial 5'!S46,'Trial 6'!S46,'Trial 7'!S46,'Trial 8'!S46)","v":{"v":9763.292214751791,"d":"$9,763"}},{"$f":"AVERAGE('Trial 1'!T46,'Trial 2'!T46,'Trial 3'!T46,'Trial 4'!T46,'Trial 5'!T46,'Trial 6'!T46,'Trial 7'!T46,'Trial 8'!T46)","v":{"v":5456.165652166687,"d":"$5,456"}},{"$f":"AVERAGE('Trial 1'!U46,'Trial 2'!U46,'Trial 3'!U46,'Trial 4'!U46,'Trial 5'!U46,'Trial 6'!U46,'Trial 7'!U46,'Trial 8'!U46)","v":{"v":-3531.000269707381,"d":"($3,531)"}},{"$f":"AVERAGE('Trial 1'!V46,'Trial 2'!V46,'Trial 3'!V46,'Trial 4'!V46,'Trial 5'!V46,'Trial 6'!V46,'Trial 7'!V46,'Trial 8'!V46)","v":{"v":11001.774368749933,"d":"$11,002"}},{"$f":"AVERAGE('Trial 1'!W46,'Trial 2'!W46,'Trial 3'!W46,'Trial 4'!W46,'Trial 5'!W46,'Trial 6'!W46,'Trial 7'!W46,'Trial 8'!W46)","v":{"v":-1212.7374431558537,"d":"($1,213)"}},{"$f":"AVERAGE('Trial 1'!X46,'Trial 2'!X46,'Trial 3'!X46,'Trial 4'!X46,'Trial 5'!X46,'Trial 6'!X46,'Trial 7'!X46,'Trial 8'!X46)","v":{"v":6920.15891788312,"d":"$6,920"}},{"$f":"AVERAGE('Trial 1'!Y46,'Trial 2'!Y46,'Trial 3'!Y46,'Trial 4'!Y46,'Trial 5'!Y46,'Trial 6'!Y46,'Trial 7'!Y46,'Trial 8'!Y46)","v":{"v":-6759.581677529138,"d":"($6,760)"}},{"$f":"AVERAGE('Trial 1'!Z46,'Trial 2'!Z46,'Trial 3'!Z46,'Trial 4'!Z46,'Trial 5'!Z46,'Trial 6'!Z46,'Trial 7'!Z46,'Trial 8'!Z46)","v":{"v":10544.95447477192,"d":"$10,545"}},{"$f":"SUM(O80:Z80)","v":{"v":60570.77490309752,"d":"$60,571"}},{"$f":"AVERAGE('Trial 1'!AB46,'Trial 2'!AB46,'Trial 3'!AB46,'Trial 4'!AB46,'Trial 5'!AB46,'Trial 6'!AB46,'Trial 7'!AB46,'Trial 8'!AB46)","v":{"v":-7668.765493297209,"d":"($7,669)"}},{"$f":"AVERAGE('Trial 1'!AC46,'Trial 2'!AC46,'Trial 3'!AC46,'Trial 4'!AC46,'Trial 5'!AC46,'Trial 6'!AC46,'Trial 7'!AC46,'Trial 8'!AC46)","v":{"v":-839.1936866464839,"d":"($839)"}},{"$f":"AVERAGE('Trial 1'!AD46,'Trial 2'!AD46,'Trial 3'!AD46,'Trial 4'!AD46,'Trial 5'!AD46,'Trial 6'!AD46,'Trial 7'!AD46,'Trial 8'!AD46)","v":{"v":19203.08277974217,"d":"$19,203"}},{"$f":"AVERAGE('Trial 1'!AE46,'Trial 2'!AE46,'Trial 3'!AE46,'Trial 4'!AE46,'Trial 5'!AE46,'Trial 6'!AE46,'Trial 7'!AE46,'Trial 8'!AE46)","v":{"v":-14682.353826219409,"d":"($14,682)"}},{"$f":"AVERAGE('Trial 1'!AF46,'Trial 2'!AF46,'Trial 3'!AF46,'Trial 4'!AF46,'Trial 5'!AF46,'Trial 6'!AF46,'Trial 7'!AF46,'Trial 8'!AF46)","v":{"v":4229.338229088956,"d":"$4,229"}},{"$f":"AVERAGE('Trial 1'!AG46,'Trial 2'!AG46,'Trial 3'!AG46,'Trial 4'!AG46,'Trial 5'!AG46,'Trial 6'!AG46,'Trial 7'!AG46,'Trial 8'!AG46)","v":{"v":5746.963801863889,"d":"$5,747"}},{"$f":"AVERAGE('Trial 1'!AH46,'Trial 2'!AH46,'Trial 3'!AH46,'Trial 4'!AH46,'Trial 5'!AH46,'Trial 6'!AH46,'Trial 7'!AH46,'Trial 8'!AH46)","v":{"v":10528.272373256415,"d":"$10,528"}},{"$f":"AVERAGE('Trial 1'!AI46,'Trial 2'!AI46,'Trial 3'!AI46,'Trial 4'!AI46,'Trial 5'!AI46,'Trial 6'!AI46,'Trial 7'!AI46,'Trial 8'!AI46)","v":{"v":-17119.4475755077,"d":"($17,119)"}},{"$f":"AVERAGE('Trial 1'!AJ46,'Trial 2'!AJ46,'Trial 3'!AJ46,'Trial 4'!AJ46,'Trial 5'!AJ46,'Trial 6'!AJ46,'Trial 7'!AJ46,'Trial 8'!AJ46)","v":{"v":5466.546349396492,"d":"$5,467"}},{"$f":"AVERAGE('Trial 1'!AK46,'Trial 2'!AK46,'Trial 3'!AK46,'Trial 4'!AK46,'Trial 5'!AK46,'Trial 6'!AK46,'Trial 7'!AK46,'Trial 8'!AK46)","v":{"v":8605.476312136481,"d":"$8,605"}},{"$f":"AVERAGE('Trial 1'!AL46,'Trial 2'!AL46,'Trial 3'!AL46,'Trial 4'!AL46,'Trial 5'!AL46,'Trial 6'!AL46,'Trial 7'!AL46,'Trial 8'!AL46)","v":{"v":-3834.9715396884158,"d":"($3,835)"}},{"$f":"AVERAGE('Trial 1'!AM46,'Trial 2'!AM46,'Trial 3'!AM46,'Trial 4'!AM46,'Trial 5'!AM46,'Trial 6'!AM46,'Trial 7'!AM46,'Trial 8'!AM46)","v":{"v":11060.700620688141,"d":"$11,061"}},{"$f":"SUM(AB80:AM80)","v":{"v":20695.648344813326,"d":"$20,696"}},{"$f":"AVERAGE('Trial 1'!AO46,'Trial 2'!AO46,'Trial 3'!AO46,'Trial 4'!AO46,'Trial 5'!AO46,'Trial 6'!AO46,'Trial 7'!AO46,'Trial 8'!AO46)","v":{"v":-17564.126835025392,"d":"($17,564)"}},{"$f":"AVERAGE('Trial 1'!AP46,'Trial 2'!AP46,'Trial 3'!AP46,'Trial 4'!AP46,'Trial 5'!AP46,'Trial 6'!AP46,'Trial 7'!AP46,'Trial 8'!AP46)","v":{"v":-10066.002037159016,"d":"($10,066)"}},{"$f":"AVERAGE('Trial 1'!AQ46,'Trial 2'!AQ46,'Trial 3'!AQ46,'Trial 4'!AQ46,'Trial 5'!AQ46,'Trial 6'!AQ46,'Trial 7'!AQ46,'Trial 8'!AQ46)","v":{"v":12767.723100434694,"d":"$12,768"}},{"$f":"AVERAGE('Trial 1'!AR46,'Trial 2'!AR46,'Trial 3'!AR46,'Trial 4'!AR46,'Trial 5'!AR46,'Trial 6'!AR46,'Trial 7'!AR46,'Trial 8'!AR46)","v":{"v":1718.3647775344566,"d":"$1,718"}},{"$f":"AVERAGE('Trial 1'!AS46,'Trial 2'!AS46,'Trial 3'!AS46,'Trial 4'!AS46,'Trial 5'!AS46,'Trial 6'!AS46,'Trial 7'!AS46,'Trial 8'!AS46)","v":{"v":-18493.68545896859,"d":"($18,494)"}},{"$f":"AVERAGE('Trial 1'!AT46,'Trial 2'!AT46,'Trial 3'!AT46,'Trial 4'!AT46,'Trial 5'!AT46,'Trial 6'!AT46,'Trial 7'!AT46,'Trial 8'!AT46)","v":{"v":-17898.981426245904,"d":"($17,899)"}},{"$f":"AVERAGE('Trial 1'!AU46,'Trial 2'!AU46,'Trial 3'!AU46,'Trial 4'!AU46,'Trial 5'!AU46,'Trial 6'!AU46,'Trial 7'!AU46,'Trial 8'!AU46)","v":{"v":13953.94102745474,"d":"$13,954"}},{"$f":"AVERAGE('Trial 1'!AV46,'Trial 2'!AV46,'Trial 3'!AV46,'Trial 4'!AV46,'Trial 5'!AV46,'Trial 6'!AV46,'Trial 7'!AV46,'Trial 8'!AV46)","v":{"v":14809.187798827119,"d":"$14,809"}},{"$f":"AVERAGE('Trial 1'!AW46,'Trial 2'!AW46,'Trial 3'!AW46,'Trial 4'!AW46,'Trial 5'!AW46,'Trial 6'!AW46,'Trial 7'!AW46,'Trial 8'!AW46)","v":{"v":-7649.854357139226,"d":"($7,650)"}},{"$f":"AVERAGE('Trial 1'!AX46,'Trial 2'!AX46,'Trial 3'!AX46,'Trial 4'!AX46,'Trial 5'!AX46,'Trial 6'!AX46,'Trial 7'!AX46,'Trial 8'!AX46)","v":{"v":5707.683555721875,"d":"$5,708"}},{"$f":"AVERAGE('Trial 1'!AY46,'Trial 2'!AY46,'Trial 3'!AY46,'Trial 4'!AY46,'Trial 5'!AY46,'Trial 6'!AY46,'Trial 7'!AY46,'Trial 8'!AY46)","v":{"v":-3566.334879599403,"d":"($3,566)"}},{"$f":"AVERAGE('Trial 1'!AZ46,'Trial 2'!AZ46,'Trial 3'!AZ46,'Trial 4'!AZ46,'Trial 5'!AZ46,'Trial 6'!AZ46,'Trial 7'!AZ46,'Trial 8'!AZ46)","v":{"v":3446.4694390555305,"d":"$3,446"}},{"$f":"SUM(AO80:AZ80)","v":{"v":-22835.61529510912,"d":"($22,836)"}},{"$f":"AVERAGE('Trial 1'!BB46,'Trial 2'!BB46,'Trial 3'!BB46,'Trial 4'!BB46,'Trial 5'!BB46,'Trial 6'!BB46,'Trial 7'!BB46,'Trial 8'!BB46)","v":{"v":-987.0931611291935,"d":"($987)"}},{"$f":"AVERAGE('Trial 1'!BC46,'Trial 2'!BC46,'Trial 3'!BC46,'Trial 4'!BC46,'Trial 5'!BC46,'Trial 6'!BC46,'Trial 7'!BC46,'Trial 8'!BC46)","v":{"v":16108.549959358967,"d":"$16,109"}},{"$f":"AVERAGE('Trial 1'!BD46,'Trial 2'!BD46,'Trial 3'!BD46,'Trial 4'!BD46,'Trial 5'!BD46,'Trial 6'!BD46,'Trial 7'!BD46,'Trial 8'!BD46)","v":{"v":21854.128839922465,"d":"$21,854"}},{"$f":"AVERAGE('Trial 1'!BE46,'Trial 2'!BE46,'Trial 3'!BE46,'Trial 4'!BE46,'Trial 5'!BE46,'Trial 6'!BE46,'Trial 7'!BE46,'Trial 8'!BE46)","v":{"v":6404.584376472953,"d":"$6,405"}},{"$f":"AVERAGE('Trial 1'!BF46,'Trial 2'!BF46,'Trial 3'!BF46,'Trial 4'!BF46,'Trial 5'!BF46,'Trial 6'!BF46,'Trial 7'!BF46,'Trial 8'!BF46)","v":{"v":-2380.550577184166,"d":"($2,381)"}},{"$f":"AVERAGE('Trial 1'!BG46,'Trial 2'!BG46,'Trial 3'!BG46,'Trial 4'!BG46,'Trial 5'!BG46,'Trial 6'!BG46,'Trial 7'!BG46,'Trial 8'!BG46)","v":{"v":-3535.1659694127575,"d":"($3,535)"}},{"$f":"AVERAGE('Trial 1'!BH46,'Trial 2'!BH46,'Trial 3'!BH46,'Trial 4'!BH46,'Trial 5'!BH46,'Trial 6'!BH46,'Trial 7'!BH46,'Trial 8'!BH46)","v":{"v":18226.494060492943,"d":"$18,226"}},{"$f":"AVERAGE('Trial 1'!BI46,'Trial 2'!BI46,'Trial 3'!BI46,'Trial 4'!BI46,'Trial 5'!BI46,'Trial 6'!BI46,'Trial 7'!BI46,'Trial 8'!BI46)","v":{"v":-3791.1770911133003,"d":"($3,791)"}},{"$f":"AVERAGE('Trial 1'!BJ46,'Trial 2'!BJ46,'Trial 3'!BJ46,'Trial 4'!BJ46,'Trial 5'!BJ46,'Trial 6'!BJ46,'Trial 7'!BJ46,'Trial 8'!BJ46)","v":{"v":3390.6831827239107,"d":"$3,391"}},{"$f":"AVERAGE('Trial 1'!BK46,'Trial 2'!BK46,'Trial 3'!BK46,'Trial 4'!BK46,'Trial 5'!BK46,'Trial 6'!BK46,'Trial 7'!BK46,'Trial 8'!BK46)","v":{"v":4585.006250826014,"d":"$4,585"}},{"$f":"AVERAGE('Trial 1'!BL46,'Trial 2'!BL46,'Trial 3'!BL46,'Trial 4'!BL46,'Trial 5'!BL46,'Trial 6'!BL46,'Trial 7'!BL46,'Trial 8'!BL46)","v":{"v":-3080.2257720501707,"d":"($3,080)"}},{"$f":"AVERAGE('Trial 1'!BM46,'Trial 2'!BM46,'Trial 3'!BM46,'Trial 4'!BM46,'Trial 5'!BM46,'Trial 6'!BM46,'Trial 7'!BM46,'Trial 8'!BM46)","v":{"v":-6821.674264461419,"d":"($6,822)"}},{"$f":"SUM(BB80:BM80)","v":{"v":49973.55983444624,"d":"$49,974"}},{"$f":"AVERAGE('Trial 1'!BO46,'Trial 2'!BO46,'Trial 3'!BO46,'Trial 4'!BO46,'Trial 5'!BO46,'Trial 6'!BO46,'Trial 7'!BO46,'Trial 8'!BO46)","v":{"v":-17920.588152037257,"d":"($17,921)"}},{"$f":"AVERAGE('Trial 1'!BP46,'Trial 2'!BP46,'Trial 3'!BP46,'Trial 4'!BP46,'Trial 5'!BP46,'Trial 6'!BP46,'Trial 7'!BP46,'Trial 8'!BP46)","v":{"v":14596.69754892613,"d":"$14,597"}},{"$f":"AVERAGE('Trial 1'!BQ46,'Trial 2'!BQ46,'Trial 3'!BQ46,'Trial 4'!BQ46,'Trial 5'!BQ46,'Trial 6'!BQ46,'Trial 7'!BQ46,'Trial 8'!BQ46)","v":{"v":-2172.846310129823,"d":"($2,173)"}},{"$f":"AVERAGE('Trial 1'!BR46,'Trial 2'!BR46,'Trial 3'!BR46,'Trial 4'!BR46,'Trial 5'!BR46,'Trial 6'!BR46,'Trial 7'!BR46,'Trial 8'!BR46)","v":{"v":24630.656159589285,"d":"$24,631"}},{"$f":"AVERAGE('Trial 1'!BS46,'Trial 2'!BS46,'Trial 3'!BS46,'Trial 4'!BS46,'Trial 5'!BS46,'Trial 6'!BS46,'Trial 7'!BS46,'Trial 8'!BS46)","v":{"v":1807.2515881150396,"d":"$1,807"}},{"$f":"AVERAGE('Trial 1'!BT46,'Trial 2'!BT46,'Trial 3'!BT46,'Trial 4'!BT46,'Trial 5'!BT46,'Trial 6'!BT46,'Trial 7'!BT46,'Trial 8'!BT46)","v":{"v":12240.811171992369,"d":"$12,241"}},{"$f":"AVERAGE('Trial 1'!BU46,'Trial 2'!BU46,'Trial 3'!BU46,'Trial 4'!BU46,'Trial 5'!BU46,'Trial 6'!BU46,'Trial 7'!BU46,'Trial 8'!BU46)","v":{"v":-5579.224005809505,"d":"($5,579)"}},{"$f":"AVERAGE('Trial 1'!BV46,'Trial 2'!BV46,'Trial 3'!BV46,'Trial 4'!BV46,'Trial 5'!BV46,'Trial 6'!BV46,'Trial 7'!BV46,'Trial 8'!BV46)","v":{"v":-6653.6455159915695,"d":"($6,654)"}},{"$f":"AVERAGE('Trial 1'!BW46,'Trial 2'!BW46,'Trial 3'!BW46,'Trial 4'!BW46,'Trial 5'!BW46,'Trial 6'!BW46,'Trial 7'!BW46,'Trial 8'!BW46)","v":{"v":19461.788149650492,"d":"$19,462"}},{"$f":"AVERAGE('Trial 1'!BX46,'Trial 2'!BX46,'Trial 3'!BX46,'Trial 4'!BX46,'Trial 5'!BX46,'Trial 6'!BX46,'Trial 7'!BX46,'Trial 8'!BX46)","v":{"v":-13499.935239650502,"d":"($13,500)"}},{"$f":"AVERAGE('Trial 1'!BY46,'Trial 2'!BY46,'Trial 3'!BY46,'Trial 4'!BY46,'Trial 5'!BY46,'Trial 6'!BY46,'Trial 7'!BY46,'Trial 8'!BY46)","v":{"v":9337.22553618796,"d":"$9,337"}},{"$f":"AVERAGE('Trial 1'!BZ46,'Trial 2'!BZ46,'Trial 3'!BZ46,'Trial 4'!BZ46,'Trial 5'!BZ46,'Trial 6'!BZ46,'Trial 7'!BZ46,'Trial 8'!BZ46)","v":{"v":5167.190800634549,"d":"$5,167"}},{"$f":"SUM(BO80:BZ80)","v":{"v":41415.381731477166,"d":"$41,415"}},{"$f":"AVERAGE('Trial 1'!CB46,'Trial 2'!CB46,'Trial 3'!CB46,'Trial 4'!CB46,'Trial 5'!CB46,'Trial 6'!CB46,'Trial 7'!CB46,'Trial 8'!CB46)","v":{"v":2979.7368625087784,"d":"$2,980"}},{"$f":"AVERAGE('Trial 1'!CC46,'Trial 2'!CC46,'Trial 3'!CC46,'Trial 4'!CC46,'Trial 5'!CC46,'Trial 6'!CC46,'Trial 7'!CC46,'Trial 8'!CC46)","v":{"v":4083.4711491108606,"d":"$4,083"}},{"$f":"AVERAGE('Trial 1'!CD46,'Trial 2'!CD46,'Trial 3'!CD46,'Trial 4'!CD46,'Trial 5'!CD46,'Trial 6'!CD46,'Trial 7'!CD46,'Trial 8'!CD46)","v":{"v":-14263.746575032574,"d":"($14,264)"}},{"$f":"AVERAGE('Trial 1'!CE46,'Trial 2'!CE46,'Trial 3'!CE46,'Trial 4'!CE46,'Trial 5'!CE46,'Trial 6'!CE46,'Trial 7'!CE46,'Trial 8'!CE46)","v":{"v":-10369.796562169888,"d":"($10,370)"}},{"$f":"AVERAGE('Trial 1'!CF46,'Trial 2'!CF46,'Trial 3'!CF46,'Trial 4'!CF46,'Trial 5'!CF46,'Trial 6'!CF46,'Trial 7'!CF46,'Trial 8'!CF46)","v":{"v":-1642.1408499664485,"d":"($1,642)"}},{"$f":"AVERAGE('Trial 1'!CG46,'Trial 2'!CG46,'Trial 3'!CG46,'Trial 4'!CG46,'Trial 5'!CG46,'Trial 6'!CG46,'Trial 7'!CG46,'Trial 8'!CG46)","v":{"v":3536.5766845256803,"d":"$3,537"}},{"$f":"AVERAGE('Trial 1'!CH46,'Trial 2'!CH46,'Trial 3'!CH46,'Trial 4'!CH46,'Trial 5'!CH46,'Trial 6'!CH46,'Trial 7'!CH46,'Trial 8'!CH46)","v":{"v":-9070.16838206871,"d":"($9,070)"}},{"$f":"AVERAGE('Trial 1'!CI46,'Trial 2'!CI46,'Trial 3'!CI46,'Trial 4'!CI46,'Trial 5'!CI46,'Trial 6'!CI46,'Trial 7'!CI46,'Trial 8'!CI46)","v":{"v":-1770.9182839486057,"d":"($1,771)"}},{"$f":"AVERAGE('Trial 1'!CJ46,'Trial 2'!CJ46,'Trial 3'!CJ46,'Trial 4'!CJ46,'Trial 5'!CJ46,'Trial 6'!CJ46,'Trial 7'!CJ46,'Trial 8'!CJ46)","v":{"v":18081.94499559258,"d":"$18,082"}},{"$f":"AVERAGE('Trial 1'!CK46,'Trial 2'!CK46,'Trial 3'!CK46,'Trial 4'!CK46,'Trial 5'!CK46,'Trial 6'!CK46,'Trial 7'!CK46,'Trial 8'!CK46)","v":{"v":3614.9586168328437,"d":"$3,615"}},{"$f":"AVERAGE('Trial 1'!CL46,'Trial 2'!CL46,'Trial 3'!CL46,'Trial 4'!CL46,'Trial 5'!CL46,'Trial 6'!CL46,'Trial 7'!CL46,'Trial 8'!CL46)","v":{"v":-4662.156395378649,"d":"($4,662)"}},{"$f":"AVERAGE('Trial 1'!CM46,'Trial 2'!CM46,'Trial 3'!CM46,'Trial 4'!CM46,'Trial 5'!CM46,'Trial 6'!CM46,'Trial 7'!CM46,'Trial 8'!CM46)","v":{"v":-20562.70242163853,"d":"($20,563)"}},{"$f":"SUM(CB80:CM80)","v":{"v":-30044.941161632658,"d":"($30,045)"}},{"$f":"AVERAGE('Trial 1'!CO46,'Trial 2'!CO46,'Trial 3'!CO46,'Trial 4'!CO46,'Trial 5'!CO46,'Trial 6'!CO46,'Trial 7'!CO46,'Trial 8'!CO46)","v":{"v":-2778.162610608759,"d":"($2,778)"}},{"$f":"AVERAGE('Trial 1'!CP46,'Trial 2'!CP46,'Trial 3'!CP46,'Trial 4'!CP46,'Trial 5'!CP46,'Trial 6'!CP46,'Trial 7'!CP46,'Trial 8'!CP46)","v":{"v":-7178.817246881006,"d":"($7,179)"}},{"$f":"AVERAGE('Trial 1'!CQ46,'Trial 2'!CQ46,'Trial 3'!CQ46,'Trial 4'!CQ46,'Trial 5'!CQ46,'Trial 6'!CQ46,'Trial 7'!CQ46,'Trial 8'!CQ46)","v":{"v":4178.401401601384,"d":"$4,178"}},{"$f":"AVERAGE('Trial 1'!CR46,'Trial 2'!CR46,'Trial 3'!CR46,'Trial 4'!CR46,'Trial 5'!CR46,'Trial 6'!CR46,'Trial 7'!CR46,'Trial 8'!CR46)","v":{"v":-4166.810736816502,"d":"($4,167)"}},{"$f":"AVERAGE('Trial 1'!CS46,'Trial 2'!CS46,'Trial 3'!CS46,'Trial 4'!CS46,'Trial 5'!CS46,'Trial 6'!CS46,'Trial 7'!CS46,'Trial 8'!CS46)","v":{"v":4268.502938502029,"d":"$4,269"}},{"$f":"AVERAGE('Trial 1'!CT46,'Trial 2'!CT46,'Trial 3'!CT46,'Trial 4'!CT46,'Trial 5'!CT46,'Trial 6'!CT46,'Trial 7'!CT46,'Trial 8'!CT46)","v":{"v":-3503.949501840787,"d":"($3,504)"}},{"$f":"AVERAGE('Trial 1'!CU46,'Trial 2'!CU46,'Trial 3'!CU46,'Trial 4'!CU46,'Trial 5'!CU46,'Trial 6'!CU46,'Trial 7'!CU46,'Trial 8'!CU46)","v":{"v":7981.41716914545,"d":"$7,981"}},{"$f":"AVERAGE('Trial 1'!CV46,'Trial 2'!CV46,'Trial 3'!CV46,'Trial 4'!CV46,'Trial 5'!CV46,'Trial 6'!CV46,'Trial 7'!CV46,'Trial 8'!CV46)","v":{"v":251.1809769108736,"d":"$251"}},{"$f":"AVERAGE('Trial 1'!CW46,'Trial 2'!CW46,'Trial 3'!CW46,'Trial 4'!CW46,'Trial 5'!CW46,'Trial 6'!CW46,'Trial 7'!CW46,'Trial 8'!CW46)","v":{"v":-12745.159656929696,"d":"($12,745)"}},{"$f":"AVERAGE('Trial 1'!CX46,'Trial 2'!CX46,'Trial 3'!CX46,'Trial 4'!CX46,'Trial 5'!CX46,'Trial 6'!CX46,'Trial 7'!CX46,'Trial 8'!CX46)","v":{"v":8154.7009441288255,"d":"$8,155"}},{"$f":"AVERAGE('Trial 1'!CY46,'Trial 2'!CY46,'Trial 3'!CY46,'Trial 4'!CY46,'Trial 5'!CY46,'Trial 6'!CY46,'Trial 7'!CY46,'Trial 8'!CY46)","v":{"v":12018.530342438822,"d":"$12,019"}},{"$f":"AVERAGE('Trial 1'!CZ46,'Trial 2'!CZ46,'Trial 3'!CZ46,'Trial 4'!CZ46,'Trial 5'!CZ46,'Trial 6'!CZ46,'Trial 7'!CZ46,'Trial 8'!CZ46)","v":{"v":16563.404610736627,"d":"$16,563"}},{"$f":"SUM(CO80:CZ80)","v":{"v":23043.23863038726,"d":"$23,043"}},{"$f":"AVERAGE('Trial 1'!DB46,'Trial 2'!DB46,'Trial 3'!DB46,'Trial 4'!DB46,'Trial 5'!DB46,'Trial 6'!DB46,'Trial 7'!DB46,'Trial 8'!DB46)","v":{"v":-4897.440671034116,"d":"($4,897)"}},{"$f":"AVERAGE('Trial 1'!DC46,'Trial 2'!DC46,'Trial 3'!DC46,'Trial 4'!DC46,'Trial 5'!DC46,'Trial 6'!DC46,'Trial 7'!DC46,'Trial 8'!DC46)","v":{"v":-1835.354627307993,"d":"($1,835)"}},{"$f":"AVERAGE('Trial 1'!DD46,'Trial 2'!DD46,'Trial 3'!DD46,'Trial 4'!DD46,'Trial 5'!DD46,'Trial 6'!DD46,'Trial 7'!DD46,'Trial 8'!DD46)","v":{"v":-2222.0716461928578,"d":"($2,222)"}},{"$f":"AVERAGE('Trial 1'!DE46,'Trial 2'!DE46,'Trial 3'!DE46,'Trial 4'!DE46,'Trial 5'!DE46,'Trial 6'!DE46,'Trial 7'!DE46,'Trial 8'!DE46)","v":{"v":10695.266840952952,"d":"$10,695"}},{"$f":"AVERAGE('Trial 1'!DF46,'Trial 2'!DF46,'Trial 3'!DF46,'Trial 4'!DF46,'Trial 5'!DF46,'Trial 6'!DF46,'Trial 7'!DF46,'Trial 8'!DF46)","v":{"v":4949.135473362983,"d":"$4,949"}},{"$f":"AVERAGE('Trial 1'!DG46,'Trial 2'!DG46,'Trial 3'!DG46,'Trial 4'!DG46,'Trial 5'!DG46,'Trial 6'!DG46,'Trial 7'!DG46,'Trial 8'!DG46)","v":{"v":-11181.754138253384,"d":"($11,182)"}},{"$f":"AVERAGE('Trial 1'!DH46,'Trial 2'!DH46,'Trial 3'!DH46,'Trial 4'!DH46,'Trial 5'!DH46,'Trial 6'!DH46,'Trial 7'!DH46,'Trial 8'!DH46)","v":{"v":8319.81069021463,"d":"$8,320"}},{"$f":"AVERAGE('Trial 1'!DI46,'Trial 2'!DI46,'Trial 3'!DI46,'Trial 4'!DI46,'Trial 5'!DI46,'Trial 6'!DI46,'Trial 7'!DI46,'Trial 8'!DI46)","v":{"v":1627.1746046882372,"d":"$1,627"}},{"$f":"AVERAGE('Trial 1'!DJ46,'Trial 2'!DJ46,'Trial 3'!DJ46,'Trial 4'!DJ46,'Trial 5'!DJ46,'Trial 6'!DJ46,'Trial 7'!DJ46,'Trial 8'!DJ46)","v":{"v":11948.855567545528,"d":"$11,949"}},{"$f":"AVERAGE('Trial 1'!DK46,'Trial 2'!DK46,'Trial 3'!DK46,'Trial 4'!DK46,'Trial 5'!DK46,'Trial 6'!DK46,'Trial 7'!DK46,'Trial 8'!DK46)","v":{"v":7778.158818292823,"d":"$7,778"}},{"$f":"AVERAGE('Trial 1'!DL46,'Trial 2'!DL46,'Trial 3'!DL46,'Trial 4'!DL46,'Trial 5'!DL46,'Trial 6'!DL46,'Trial 7'!DL46,'Trial 8'!DL46)","v":{"v":-9033.998593719933,"d":"($9,034)"}},{"$f":"AVERAGE('Trial 1'!DM46,'Trial 2'!DM46,'Trial 3'!DM46,'Trial 4'!DM46,'Trial 5'!DM46,'Trial 6'!DM46,'Trial 7'!DM46,'Trial 8'!DM46)","v":{"v":12001.133847549876,"d":"$12,001"}},{"$f":"SUM(DB80:DM80)","v":{"v":28148.91616609875,"d":"$28,149"}},{"$f":"AVERAGE('Trial 1'!DO46,'Trial 2'!DO46,'Trial 3'!DO46,'Trial 4'!DO46,'Trial 5'!DO46,'Trial 6'!DO46,'Trial 7'!DO46,'Trial 8'!DO46)","v":{"v":11539.68387643459,"d":"$11,540"}},{"$f":"AVERAGE('Trial 1'!DP46,'Trial 2'!DP46,'Trial 3'!DP46,'Trial 4'!DP46,'Trial 5'!DP46,'Trial 6'!DP46,'Trial 7'!DP46,'Trial 8'!DP46)","v":{"v":-2589.82502699707,"d":"($2,590)"}},{"$f":"AVERAGE('Trial 1'!DQ46,'Trial 2'!DQ46,'Trial 3'!DQ46,'Trial 4'!DQ46,'Trial 5'!DQ46,'Trial 6'!DQ46,'Trial 7'!DQ46,'Trial 8'!DQ46)","v":{"v":7775.356840607752,"d":"$7,775"}},{"$f":"AVERAGE('Trial 1'!DR46,'Trial 2'!DR46,'Trial 3'!DR46,'Trial 4'!DR46,'Trial 5'!DR46,'Trial 6'!DR46,'Trial 7'!DR46,'Trial 8'!DR46)","v":{"v":-700.209697190679,"d":"($700)"}},{"$f":"AVERAGE('Trial 1'!DS46,'Trial 2'!DS46,'Trial 3'!DS46,'Trial 4'!DS46,'Trial 5'!DS46,'Trial 6'!DS46,'Trial 7'!DS46,'Trial 8'!DS46)","v":{"v":9121.249647641285,"d":"$9,121"}},{"$f":"AVERAGE('Trial 1'!DT46,'Trial 2'!DT46,'Trial 3'!DT46,'Trial 4'!DT46,'Trial 5'!DT46,'Trial 6'!DT46,'Trial 7'!DT46,'Trial 8'!DT46)","v":{"v":-3801.7330409535225,"d":"($3,802)"}},{"$f":"AVERAGE('Trial 1'!DU46,'Trial 2'!DU46,'Trial 3'!DU46,'Trial 4'!DU46,'Trial 5'!DU46,'Trial 6'!DU46,'Trial 7'!DU46,'Trial 8'!DU46)","v":{"v":7991.010626548604,"d":"$7,991"}},{"$f":"AVERAGE('Trial 1'!DV46,'Trial 2'!DV46,'Trial 3'!DV46,'Trial 4'!DV46,'Trial 5'!DV46,'Trial 6'!DV46,'Trial 7'!DV46,'Trial 8'!DV46)","v":{"v":-18826.75150887581,"d":"($18,827)"}},{"$f":"AVERAGE('Trial 1'!DW46,'Trial 2'!DW46,'Trial 3'!DW46,'Trial 4'!DW46,'Trial 5'!DW46,'Trial 6'!DW46,'Trial 7'!DW46,'Trial 8'!DW46)","v":{"v":13017.709328622626,"d":"$13,018"}},{"$f":"AVERAGE('Trial 1'!DX46,'Trial 2'!DX46,'Trial 3'!DX46,'Trial 4'!DX46,'Trial 5'!DX46,'Trial 6'!DX46,'Trial 7'!DX46,'Trial 8'!DX46)","v":{"v":-161.17148676582974,"d":"($161)"}},{"$f":"AVERAGE('Trial 1'!DY46,'Trial 2'!DY46,'Trial 3'!DY46,'Trial 4'!DY46,'Trial 5'!DY46,'Trial 6'!DY46,'Trial 7'!DY46,'Trial 8'!DY46)","v":{"v":6362.668726227021,"d":"$6,363"}},{"$f":"AVERAGE('Trial 1'!DZ46,'Trial 2'!DZ46,'Trial 3'!DZ46,'Trial 4'!DZ46,'Trial 5'!DZ46,'Trial 6'!DZ46,'Trial 7'!DZ46,'Trial 8'!DZ46)","v":{"v":-1297.2773463323465,"d":"($1,297)"}},{"$f":"SUM(DO80:DZ80)","v":{"v":28430.71093896662,"d":"$28,431"}},{"$f":"AVERAGE('Trial 1'!EB46,'Trial 2'!EB46,'Trial 3'!EB46,'Trial 4'!EB46,'Trial 5'!EB46,'Trial 6'!EB46,'Trial 7'!EB46,'Trial 8'!EB46)","v":{"v":12865.148852135797,"d":"$12,865"}},{"$f":"AVERAGE('Trial 1'!EC46,'Trial 2'!EC46,'Trial 3'!EC46,'Trial 4'!EC46,'Trial 5'!EC46,'Trial 6'!EC46,'Trial 7'!EC46,'Trial 8'!EC46)","v":{"v":10962.946216650113,"d":"$10,963"}},{"$f":"AVERAGE('Trial 1'!ED46,'Trial 2'!ED46,'Trial 3'!ED46,'Trial 4'!ED46,'Trial 5'!ED46,'Trial 6'!ED46,'Trial 7'!ED46,'Trial 8'!ED46)","v":{"v":-18975.123222843864,"d":"($18,975)"}},{"$f":"AVERAGE('Trial 1'!EE46,'Trial 2'!EE46,'Trial 3'!EE46,'Trial 4'!EE46,'Trial 5'!EE46,'Trial 6'!EE46,'Trial 7'!EE46,'Trial 8'!EE46)","v":{"v":4957.126138093361,"d":"$4,957"}},{"$f":"AVERAGE('Trial 1'!EF46,'Trial 2'!EF46,'Trial 3'!EF46,'Trial 4'!EF46,'Trial 5'!EF46,'Trial 6'!EF46,'Trial 7'!EF46,'Trial 8'!EF46)","v":{"v":589.367128193664,"d":"$589"}},{"$f":"AVERAGE('Trial 1'!EG46,'Trial 2'!EG46,'Trial 3'!EG46,'Trial 4'!EG46,'Trial 5'!EG46,'Trial 6'!EG46,'Trial 7'!EG46,'Trial 8'!EG46)","v":{"v":-479.2297954127075,"d":"($479)"}},{"$f":"AVERAGE('Trial 1'!EH46,'Trial 2'!EH46,'Trial 3'!EH46,'Trial 4'!EH46,'Trial 5'!EH46,'Trial 6'!EH46,'Trial 7'!EH46,'Trial 8'!EH46)","v":{"v":5510.9786917092015,"d":"$5,511"}},{"$f":"AVERAGE('Trial 1'!EI46,'Trial 2'!EI46,'Trial 3'!EI46,'Trial 4'!EI46,'Trial 5'!EI46,'Trial 6'!EI46,'Trial 7'!EI46,'Trial 8'!EI46)","v":{"v":3096.1937258166995,"d":"$3,096"}},{"$f":"AVERAGE('Trial 1'!EJ46,'Trial 2'!EJ46,'Trial 3'!EJ46,'Trial 4'!EJ46,'Trial 5'!EJ46,'Trial 6'!EJ46,'Trial 7'!EJ46,'Trial 8'!EJ46)","v":{"v":6011.298727752663,"d":"$6,011"}},{"$f":"AVERAGE('Trial 1'!EK46,'Trial 2'!EK46,'Trial 3'!EK46,'Trial 4'!EK46,'Trial 5'!EK46,'Trial 6'!EK46,'Trial 7'!EK46,'Trial 8'!EK46)","v":{"v":-6836.129314354692,"d":"($6,836)"}},{"$f":"AVERAGE('Trial 1'!EL46,'Trial 2'!EL46,'Trial 3'!EL46,'Trial 4'!EL46,'Trial 5'!EL46,'Trial 6'!EL46,'Trial 7'!EL46,'Trial 8'!EL46)","v":{"v":3138.471034111344,"d":"$3,138"}},{"$f":"AVERAGE('Trial 1'!EM46,'Trial 2'!EM46,'Trial 3'!EM46,'Trial 4'!EM46,'Trial 5'!EM46,'Trial 6'!EM46,'Trial 7'!EM46,'Trial 8'!EM46)","v":{"v":15594.747174897027,"d":"$15,595"}},{"$f":"SUM(EB80:EM80)","v":{"v":36435.795356748604,"d":"$36,436"}}]
[{"$f":"Labels!B80","v":"Output Shock std dev"},{"$f":"STDEV('Trial 1'!B46,'Trial 2'!B46,'Trial 3'!B46,'Trial 4'!B46,'Trial 5'!B46,'Trial 6'!B46,'Trial 7'!B46,'Trial 8'!B46)","v":{"v":21319.975424747576,"d":"$21,320"}},{"$f":"STDEV('Trial 1'!C46,'Trial 2'!C46,'Trial 3'!C46,'Trial 4'!C46,'Trial 5'!C46,'Trial 6'!C46,'Trial 7'!C46,'Trial 8'!C46)","v":{"v":50464.41033736318,"d":"$50,464"}},{"$f":"STDEV('Trial 1'!D46,'Trial 2'!D46,'Trial 3'!D46,'Trial 4'!D46,'Trial 5'!D46,'Trial 6'!D46,'Trial 7'!D46,'Trial 8'!D46)","v":{"v":21425.300097491418,"d":"$21,425"}},{"$f":"STDEV('Trial 1'!E46,'Trial 2'!E46,'Trial 3'!E46,'Trial 4'!E46,'Trial 5'!E46,'Trial 6'!E46,'Trial 7'!E46,'Trial 8'!E46)","v":{"v":20890.44879958525,"d":"$20,890"}},{"$f":"STDEV('Trial 1'!F46,'Trial 2'!F46,'Trial 3'!F46,'Trial 4'!F46,'Trial 5'!F46,'Trial 6'!F46,'Trial 7'!F46,'Trial 8'!F46)","v":{"v":30480.93559665718,"d":"$30,481"}},{"$f":"STDEV('Trial 1'!G46,'Trial 2'!G46,'Trial 3'!G46,'Trial 4'!G46,'Trial 5'!G46,'Trial 6'!G46,'Trial 7'!G46,'Trial 8'!G46)","v":{"v":28446.652517053877,"d":"$28,447"}},{"$f":"STDEV('Trial 1'!H46,'Trial 2'!H46,'Trial 3'!H46,'Trial 4'!H46,'Trial 5'!H46,'Trial 6'!H46,'Trial 7'!H46,'Trial 8'!H46)","v":{"v":24675.134643423666,"d":"$24,675"}},{"$f":"STDEV('Trial 1'!I46,'Trial 2'!I46,'Trial 3'!I46,'Trial 4'!I46,'Trial 5'!I46,'Trial 6'!I46,'Trial 7'!I46,'Trial 8'!I46)","v":{"v":30028.80007260216,"d":"$30,029"}},{"$f":"STDEV('Trial 1'!J46,'Trial 2'!J46,'Trial 3'!J46,'Trial 4'!J46,'Trial 5'!J46,'Trial 6'!J46,'Trial 7'!J46,'Trial 8'!J46)","v":{"v":28906.10998700949,"d":"$28,906"}},{"$f":"STDEV('Trial 1'!K46,'Trial 2'!K46,'Trial 3'!K46,'Trial 4'!K46,'Trial 5'!K46,'Trial 6'!K46,'Trial 7'!K46,'Trial 8'!K46)","v":{"v":23926.619267927377,"d":"$23,927"}},{"$f":"STDEV('Trial 1'!L46,'Trial 2'!L46,'Trial 3'!L46,'Trial 4'!L46,'Trial 5'!L46,'Trial 6'!L46,'Trial 7'!L46,'Trial 8'!L46)","v":{"v":23063.81219110449,"d":"$23,064"}},{"$f":"STDEV('Trial 1'!M46,'Trial 2'!M46,'Trial 3'!M46,'Trial 4'!M46,'Trial 5'!M46,'Trial 6'!M46,'Trial 7'!M46,'Trial 8'!M46)","v":{"v":33097.86266756384,"d":"$33,098"}},{"$f":"SUM(B81:M81)","v":{"v":336726.06160252955,"d":"$336,726"}},{"$f":"STDEV('Trial 1'!O46,'Trial 2'!O46,'Trial 3'!O46,'Trial 4'!O46,'Trial 5'!O46,'Trial 6'!O46,'Trial 7'!O46,'Trial 8'!O46)","v":{"v":23511.671833616867,"d":"$23,512"}},{"$f":"STDEV('Trial 1'!P46,'Trial 2'!P46,'Trial 3'!P46,'Trial 4'!P46,'Trial 5'!P46,'Trial 6'!P46,'Trial 7'!P46,'Trial 8'!P46)","v":{"v":23070.49559851609,"d":"$23,070"}},{"$f":"STDEV('Trial 1'!Q46,'Trial 2'!Q46,'Trial 3'!Q46,'Trial 4'!Q46,'Trial 5'!Q46,'Trial 6'!Q46,'Trial 7'!Q46,'Trial 8'!Q46)","v":{"v":28823.892320239363,"d":"$28,824"}},{"$f":"STDEV('Trial 1'!R46,'Trial 2'!R46,'Trial 3'!R46,'Trial 4'!R46,'Trial 5'!R46,'Trial 6'!R46,'Trial 7'!R46,'Trial 8'!R46)","v":{"v":39644.10415587569,"d":"$39,644"}},{"$f":"STDEV('Trial 1'!S46,'Trial 2'!S46,'Trial 3'!S46,'Trial 4'!S46,'Trial 5'!S46,'Trial 6'!S46,'Trial 7'!S46,'Trial 8'!S46)","v":{"v":31675.0716585907,"d":"$31,675"}},{"$f":"STDEV('Trial 1'!T46,'Trial 2'!T46,'Trial 3'!T46,'Trial 4'!T46,'Trial 5'!T46,'Trial 6'!T46,'Trial 7'!T46,'Trial 8'!T46)","v":{"v":45355.825000929166,"d":"$45,356"}},{"$f":"STDEV('Trial 1'!U46,'Trial 2'!U46,'Trial 3'!U46,'Trial 4'!U46,'Trial 5'!U46,'Trial 6'!U46,'Trial 7'!U46,'Trial 8'!U46)","v":{"v":24831.65771997922,"d":"$24,832"}},{"$f":"STDEV('Trial 1'!V46,'Trial 2'!V46,'Trial 3'!V46,'Trial 4'!V46,'Trial 5'!V46,'Trial 6'!V46,'Trial 7'!V46,'Trial 8'!V46)","v":{"v":23247.945846319875,"d":"$23,248"}},{"$f":"STDEV('Trial 1'!W46,'Trial 2'!W46,'Trial 3'!W46,'Trial 4'!W46,'Trial 5'!W46,'Trial 6'!W46,'Trial 7'!W46,'Trial 8'!W46)","v":{"v":33417.48179355259,"d":"$33,417"}},{"$f":"STDEV('Trial 1'!X46,'Trial 2'!X46,'Trial 3'!X46,'Trial 4'!X46,'Trial 5'!X46,'Trial 6'!X46,'Trial 7'!X46,'Trial 8'!X46)","v":{"v":13859.851531254624,"d":"$13,860"}},{"$f":"STDEV('Trial 1'!Y46,'Trial 2'!Y46,'Trial 3'!Y46,'Trial 4'!Y46,'Trial 5'!Y46,'Trial 6'!Y46,'Trial 7'!Y46,'Trial 8'!Y46)","v":{"v":37653.080813425564,"d":"$37,653"}},{"$f":"STDEV('Trial 1'!Z46,'Trial 2'!Z46,'Trial 3'!Z46,'Trial 4'!Z46,'Trial 5'!Z46,'Trial 6'!Z46,'Trial 7'!Z46,'Trial 8'!Z46)","v":{"v":24266.151139325317,"d":"$24,266"}},{"$f":"SUM(O81:Z81)","v":{"v":349357.22941162507,"d":"$349,357"}},{"$f":"STDEV('Trial 1'!AB46,'Trial 2'!AB46,'Trial 3'!AB46,'Trial 4'!AB46,'Trial 5'!AB46,'Trial 6'!AB46,'Trial 7'!AB46,'Trial 8'!AB46)","v":{"v":26861.757623870024,"d":"$26,862"}},{"$f":"STDEV('Trial 1'!AC46,'Trial 2'!AC46,'Trial 3'!AC46,'Trial 4'!AC46,'Trial 5'!AC46,'Trial 6'!AC46,'Trial 7'!AC46,'Trial 8'!AC46)","v":{"v":32073.343146633153,"d":"$32,073"}},{"$f":"STDEV('Trial 1'!AD46,'Trial 2'!AD46,'Trial 3'!AD46,'Trial 4'!AD46,'Trial 5'!AD46,'Trial 6'!AD46,'Trial 7'!AD46,'Trial 8'!AD46)","v":{"v":21882.65360757364,"d":"$21,883"}},{"$f":"STDEV('Trial 1'!AE46,'Trial 2'!AE46,'Trial 3'!AE46,'Trial 4'!AE46,'Trial 5'!AE46,'Trial 6'!AE46,'Trial 7'!AE46,'Trial 8'!AE46)","v":{"v":17787.537210090628,"d":"$17,788"}},{"$f":"STDEV('Trial 1'!AF46,'Trial 2'!AF46,'Trial 3'!AF46,'Trial 4'!AF46,'Trial 5'!AF46,'Trial 6'!AF46,'Trial 7'!AF46,'Trial 8'!AF46)","v":{"v":41079.0222877222,"d":"$41,079"}},{"$f":"STDEV('Trial 1'!AG46,'Trial 2'!AG46,'Trial 3'!AG46,'Trial 4'!AG46,'Trial 5'!AG46,'Trial 6'!AG46,'Trial 7'!AG46,'Trial 8'!AG46)","v":{"v":19303.632556000597,"d":"$19,304"}},{"$f":"STDEV('Trial 1'!AH46,'Trial 2'!AH46,'Trial 3'!AH46,'Trial 4'!AH46,'Trial 5'!AH46,'Trial 6'!AH46,'Trial 7'!AH46,'Trial 8'!AH46)","v":{"v":27468.002215531207,"d":"$27,468"}},{"$f":"STDEV('Trial 1'!AI46,'Trial 2'!AI46,'Trial 3'!AI46,'Trial 4'!AI46,'Trial 5'!AI46,'Trial 6'!AI46,'Trial 7'!AI46,'Trial 8'!AI46)","v":{"v":17254.690029421447,"d":"$17,255"}},{"$f":"STDEV('Trial 1'!AJ46,'Trial 2'!AJ46,'Trial 3'!AJ46,'Trial 4'!AJ46,'Trial 5'!AJ46,'Trial 6'!AJ46,'Trial 7'!AJ46,'Trial 8'!AJ46)","v":{"v":38856.35363496787,"d":"$38,856"}},{"$f":"STDEV('Trial 1'!AK46,'Trial 2'!AK46,'Trial 3'!AK46,'Trial 4'!AK46,'Trial 5'!AK46,'Trial 6'!AK46,'Trial 7'!AK46,'Trial 8'!AK46)","v":{"v":26841.775980947685,"d":"$26,842"}},{"$f":"STDEV('Trial 1'!AL46,'Trial 2'!AL46,'Trial 3'!AL46,'Trial 4'!AL46,'Trial 5'!AL46,'Trial 6'!AL46,'Trial 7'!AL46,'Trial 8'!AL46)","v":{"v":29406.344404693617,"d":"$29,406"}},{"$f":"STDEV('Trial 1'!AM46,'Trial 2'!AM46,'Trial 3'!AM46,'Trial 4'!AM46,'Trial 5'!AM46,'Trial 6'!AM46,'Trial 7'!AM46,'Trial 8'!AM46)","v":{"v":39692.17461647023,"d":"$39,692"}},{"$f":"SUM(AB81:AM81)","v":{"v":338507.28731392237,"d":"$338,507"}},{"$f":"STDEV('Trial 1'!AO46,'Trial 2'!AO46,'Trial 3'!AO46,'Trial 4'!AO46,'Trial 5'!AO46,'Trial 6'!AO46,'Trial 7'!AO46,'Trial 8'!AO46)","v":{"v":27695.517430937532,"d":"$27,696"}},{"$f":"STDEV('Trial 1'!AP46,'Trial 2'!AP46,'Trial 3'!AP46,'Trial 4'!AP46,'Trial 5'!AP46,'Trial 6'!AP46,'Trial 7'!AP46,'Trial 8'!AP46)","v":{"v":12416.026625858778,"d":"$12,416"}},{"$f":"STDEV('Trial 1'!AQ46,'Trial 2'!AQ46,'Trial 3'!AQ46,'Trial 4'!AQ46,'Trial 5'!AQ46,'Trial 6'!AQ46,'Trial 7'!AQ46,'Trial 8'!AQ46)","v":{"v":27592.392263100064,"d":"$27,592"}},{"$f":"STDEV('Trial 1'!AR46,'Trial 2'!AR46,'Trial 3'!AR46,'Trial 4'!AR46,'Trial 5'!AR46,'Trial 6'!AR46,'Trial 7'!AR46,'Trial 8'!AR46)","v":{"v":37053.15172799846,"d":"$37,053"}},{"$f":"STDEV('Trial 1'!AS46,'Trial 2'!AS46,'Trial 3'!AS46,'Trial 4'!AS46,'Trial 5'!AS46,'Trial 6'!AS46,'Trial 7'!AS46,'Trial 8'!AS46)","v":{"v":23528.190483638537,"d":"$23,528"}},{"$f":"STDEV('Trial 1'!AT46,'Trial 2'!AT46,'Trial 3'!AT46,'Trial 4'!AT46,'Trial 5'!AT46,'Trial 6'!AT46,'Trial 7'!AT46,'Trial 8'!AT46)","v":{"v":25631.93796245407,"d":"$25,632"}},{"$f":"STDEV('Trial 1'!AU46,'Trial 2'!AU46,'Trial 3'!AU46,'Trial 4'!AU46,'Trial 5'!AU46,'Trial 6'!AU46,'Trial 7'!AU46,'Trial 8'!AU46)","v":{"v":21320.747975552884,"d":"$21,321"}},{"$f":"STDEV('Trial 1'!AV46,'Trial 2'!AV46,'Trial 3'!AV46,'Trial 4'!AV46,'Trial 5'!AV46,'Trial 6'!AV46,'Trial 7'!AV46,'Trial 8'!AV46)","v":{"v":15740.611443804695,"d":"$15,741"}},{"$f":"STDEV('Trial 1'!AW46,'Trial 2'!AW46,'Trial 3'!AW46,'Trial 4'!AW46,'Trial 5'!AW46,'Trial 6'!AW46,'Trial 7'!AW46,'Trial 8'!AW46)","v":{"v":32407.38761032882,"d":"$32,407"}},{"$f":"STDEV('Trial 1'!AX46,'Trial 2'!AX46,'Trial 3'!AX46,'Trial 4'!AX46,'Trial 5'!AX46,'Trial 6'!AX46,'Trial 7'!AX46,'Trial 8'!AX46)","v":{"v":33012.388977928975,"d":"$33,012"}},{"$f":"STDEV('Trial 1'!AY46,'Trial 2'!AY46,'Trial 3'!AY46,'Trial 4'!AY46,'Trial 5'!AY46,'Trial 6'!AY46,'Trial 7'!AY46,'Trial 8'!AY46)","v":{"v":27960.277249253966,"d":"$27,960"}},{"$f":"STDEV('Trial 1'!AZ46,'Trial 2'!AZ46,'Trial 3'!AZ46,'Trial 4'!AZ46,'Trial 5'!AZ46,'Trial 6'!AZ46,'Trial 7'!AZ46,'Trial 8'!AZ46)","v":{"v":31738.673768398232,"d":"$31,739"}},{"$f":"SUM(AO81:AZ81)","v":{"v":316097.303519255,"d":"$316,097"}},{"$f":"STDEV('Trial 1'!BB46,'Trial 2'!BB46,'Trial 3'!BB46,'Trial 4'!BB46,'Trial 5'!BB46,'Trial 6'!BB46,'Trial 7'!BB46,'Trial 8'!BB46)","v":{"v":32203.603964106613,"d":"$32,204"}},{"$f":"STDEV('Trial 1'!BC46,'Trial 2'!BC46,'Trial 3'!BC46,'Trial 4'!BC46,'Trial 5'!BC46,'Trial 6'!BC46,'Trial 7'!BC46,'Trial 8'!BC46)","v":{"v":20165.066198314922,"d":"$20,165"}},{"$f":"STDEV('Trial 1'!BD46,'Trial 2'!BD46,'Trial 3'!BD46,'Trial 4'!BD46,'Trial 5'!BD46,'Trial 6'!BD46,'Trial 7'!BD46,'Trial 8'!BD46)","v":{"v":29963.493510359815,"d":"$29,963"}},{"$f":"STDEV('Trial 1'!BE46,'Trial 2'!BE46,'Trial 3'!BE46,'Trial 4'!BE46,'Trial 5'!BE46,'Trial 6'!BE46,'Trial 7'!BE46,'Trial 8'!BE46)","v":{"v":19810.29779402091,"d":"$19,810"}},{"$f":"STDEV('Trial 1'!BF46,'Trial 2'!BF46,'Trial 3'!BF46,'Trial 4'!BF46,'Trial 5'!BF46,'Trial 6'!BF46,'Trial 7'!BF46,'Trial 8'!BF46)","v":{"v":24616.19046227195,"d":"$24,616"}},{"$f":"STDEV('Trial 1'!BG46,'Trial 2'!BG46,'Trial 3'!BG46,'Trial 4'!BG46,'Trial 5'!BG46,'Trial 6'!BG46,'Trial 7'!BG46,'Trial 8'!BG46)","v":{"v":24848.20593482256,"d":"$24,848"}},{"$f":"STDEV('Trial 1'!BH46,'Trial 2'!BH46,'Trial 3'!BH46,'Trial 4'!BH46,'Trial 5'!BH46,'Trial 6'!BH46,'Trial 7'!BH46,'Trial 8'!BH46)","v":{"v":31141.597356631966,"d":"$31,142"}},{"$f":"STDEV('Trial 1'!BI46,'Trial 2'!BI46,'Trial 3'!BI46,'Trial 4'!BI46,'Trial 5'!BI46,'Trial 6'!BI46,'Trial 7'!BI46,'Trial 8'!BI46)","v":{"v":33302.266383050555,"d":"$33,302"}},{"$f":"STDEV('Trial 1'!BJ46,'Trial 2'!BJ46,'Trial 3'!BJ46,'Trial 4'!BJ46,'Trial 5'!BJ46,'Trial 6'!BJ46,'Trial 7'!BJ46,'Trial 8'!BJ46)","v":{"v":25067.481577799845,"d":"$25,067"}},{"$f":"STDEV('Trial 1'!BK46,'Trial 2'!BK46,'Trial 3'!BK46,'Trial 4'!BK46,'Trial 5'!BK46,'Trial 6'!BK46,'Trial 7'!BK46,'Trial 8'!BK46)","v":{"v":38317.99362668901,"d":"$38,318"}},{"$f":"STDEV('Trial 1'!BL46,'Trial 2'!BL46,'Trial 3'!BL46,'Trial 4'!BL46,'Trial 5'!BL46,'Trial 6'!BL46,'Trial 7'!BL46,'Trial 8'!BL46)","v":{"v":28333.822303331315,"d":"$28,334"}},{"$f":"STDEV('Trial 1'!BM46,'Trial 2'!BM46,'Trial 3'!BM46,'Trial 4'!BM46,'Trial 5'!BM46,'Trial 6'!BM46,'Trial 7'!BM46,'Trial 8'!BM46)","v":{"v":32751.998841628156,"d":"$32,752"}},{"$f":"SUM(BB81:BM81)","v":{"v":340522.0179530276,"d":"$340,522"}},{"$f":"STDEV('Trial 1'!BO46,'Trial 2'!BO46,'Trial 3'!BO46,'Trial 4'!BO46,'Trial 5'!BO46,'Trial 6'!BO46,'Trial 7'!BO46,'Trial 8'!BO46)","v":{"v":28786.63218341989,"d":"$28,787"}},{"$f":"STDEV('Trial 1'!BP46,'Trial 2'!BP46,'Trial 3'!BP46,'Trial 4'!BP46,'Trial 5'!BP46,'Trial 6'!BP46,'Trial 7'!BP46,'Trial 8'!BP46)","v":{"v":25997.653115774254,"d":"$25,998"}},{"$f":"STDEV('Trial 1'!BQ46,'Trial 2'!BQ46,'Trial 3'!BQ46,'Trial 4'!BQ46,'Trial 5'!BQ46,'Trial 6'!BQ46,'Trial 7'!BQ46,'Trial 8'!BQ46)","v":{"v":20096.516506147076,"d":"$20,097"}},{"$f":"STDEV('Trial 1'!BR46,'Trial 2'!BR46,'Trial 3'!BR46,'Trial 4'!BR46,'Trial 5'!BR46,'Trial 6'!BR46,'Trial 7'!BR46,'Trial 8'!BR46)","v":{"v":26383.99717428786,"d":"$26,384"}},{"$f":"STDEV('Trial 1'!BS46,'Trial 2'!BS46,'Trial 3'!BS46,'Trial 4'!BS46,'Trial 5'!BS46,'Trial 6'!BS46,'Trial 7'!BS46,'Trial 8'!BS46)","v":{"v":24527.900380007923,"d":"$24,528"}},{"$f":"STDEV('Trial 1'!BT46,'Trial 2'!BT46,'Trial 3'!BT46,'Trial 4'!BT46,'Trial 5'!BT46,'Trial 6'!BT46,'Trial 7'!BT46,'Trial 8'!BT46)","v":{"v":32061.164741240522,"d":"$32,061"}},{"$f":"STDEV('Trial 1'!BU46,'Trial 2'!BU46,'Trial 3'!BU46,'Trial 4'!BU46,'Trial 5'!BU46,'Trial 6'!BU46,'Trial 7'!BU46,'Trial 8'!BU46)","v":{"v":25869.571188698297,"d":"$25,870"}},{"$f":"STDEV('Trial 1'!BV46,'Trial 2'!BV46,'Trial 3'!BV46,'Trial 4'!BV46,'Trial 5'!BV46,'Trial 6'!BV46,'Trial 7'!BV46,'Trial 8'!BV46)","v":{"v":30267.92893923659,"d":"$30,268"}},{"$f":"STDEV('Trial 1'!BW46,'Trial 2'!BW46,'Trial 3'!BW46,'Trial 4'!BW46,'Trial 5'!BW46,'Trial 6'!BW46,'Trial 7'!BW46,'Trial 8'!BW46)","v":{"v":15131.746983865816,"d":"$15,132"}},{"$f":"STDEV('Trial 1'!BX46,'Trial 2'!BX46,'Trial 3'!BX46,'Trial 4'!BX46,'Trial 5'!BX46,'Trial 6'!BX46,'Trial 7'!BX46,'Trial 8'!BX46)","v":{"v":28776.866831517058,"d":"$28,777"}},{"$f":"STDEV('Trial 1'!BY46,'Trial 2'!BY46,'Trial 3'!BY46,'Trial 4'!BY46,'Trial 5'!BY46,'Trial 6'!BY46,'Trial 7'!BY46,'Trial 8'!BY46)","v":{"v":19946.100529727773,"d":"$19,946"}},{"$f":"STDEV('Trial 1'!BZ46,'Trial 2'!BZ46,'Trial 3'!BZ46,'Trial 4'!BZ46,'Trial 5'!BZ46,'Trial 6'!BZ46,'Trial 7'!BZ46,'Trial 8'!BZ46)","v":{"v":19587.144908112863,"d":"$19,587"}},{"$f":"SUM(BO81:BZ81)","v":{"v":297433.2234820359,"d":"$297,433"}},{"$f":"STDEV('Trial 1'!CB46,'Trial 2'!CB46,'Trial 3'!CB46,'Trial 4'!CB46,'Trial 5'!CB46,'Trial 6'!CB46,'Trial 7'!CB46,'Trial 8'!CB46)","v":{"v":30091.612105505388,"d":"$30,092"}},{"$f":"STDEV('Trial 1'!CC46,'Trial 2'!CC46,'Trial 3'!CC46,'Trial 4'!CC46,'Trial 5'!CC46,'Trial 6'!CC46,'Trial 7'!CC46,'Trial 8'!CC46)","v":{"v":24442.757514039717,"d":"$24,443"}},{"$f":"STDEV('Trial 1'!CD46,'Trial 2'!CD46,'Trial 3'!CD46,'Trial 4'!CD46,'Trial 5'!CD46,'Trial 6'!CD46,'Trial 7'!CD46,'Trial 8'!CD46)","v":{"v":27599.845245479064,"d":"$27,600"}},{"$f":"STDEV('Trial 1'!CE46,'Trial 2'!CE46,'Trial 3'!CE46,'Trial 4'!CE46,'Trial 5'!CE46,'Trial 6'!CE46,'Trial 7'!CE46,'Trial 8'!CE46)","v":{"v":21266.963269257936,"d":"$21,267"}},{"$f":"STDEV('Trial 1'!CF46,'Trial 2'!CF46,'Trial 3'!CF46,'Trial 4'!CF46,'Trial 5'!CF46,'Trial 6'!CF46,'Trial 7'!CF46,'Trial 8'!CF46)","v":{"v":26835.857538163044,"d":"$26,836"}},{"$f":"STDEV('Trial 1'!CG46,'Trial 2'!CG46,'Trial 3'!CG46,'Trial 4'!CG46,'Trial 5'!CG46,'Trial 6'!CG46,'Trial 7'!CG46,'Trial 8'!CG46)","v":{"v":21072.50332450433,"d":"$21,073"}},{"$f":"STDEV('Trial 1'!CH46,'Trial 2'!CH46,'Trial 3'!CH46,'Trial 4'!CH46,'Trial 5'!CH46,'Trial 6'!CH46,'Trial 7'!CH46,'Trial 8'!CH46)","v":{"v":40948.6335196214,"d":"$40,949"}},{"$f":"STDEV('Trial 1'!CI46,'Trial 2'!CI46,'Trial 3'!CI46,'Trial 4'!CI46,'Trial 5'!CI46,'Trial 6'!CI46,'Trial 7'!CI46,'Trial 8'!CI46)","v":{"v":34312.28932335451,"d":"$34,312"}},{"$f":"STDEV('Trial 1'!CJ46,'Trial 2'!CJ46,'Trial 3'!CJ46,'Trial 4'!CJ46,'Trial 5'!CJ46,'Trial 6'!CJ46,'Trial 7'!CJ46,'Trial 8'!CJ46)","v":{"v":28783.46621426354,"d":"$28,783"}},{"$f":"STDEV('Trial 1'!CK46,'Trial 2'!CK46,'Trial 3'!CK46,'Trial 4'!CK46,'Trial 5'!CK46,'Trial 6'!CK46,'Trial 7'!CK46,'Trial 8'!CK46)","v":{"v":26906.057272178154,"d":"$26,906"}},{"$f":"STDEV('Trial 1'!CL46,'Trial 2'!CL46,'Trial 3'!CL46,'Trial 4'!CL46,'Trial 5'!CL46,'Trial 6'!CL46,'Trial 7'!CL46,'Trial 8'!CL46)","v":{"v":25272.55240794406,"d":"$25,273"}},{"$f":"STDEV('Trial 1'!CM46,'Trial 2'!CM46,'Trial 3'!CM46,'Trial 4'!CM46,'Trial 5'!CM46,'Trial 6'!CM46,'Trial 7'!CM46,'Trial 8'!CM46)","v":{"v":28330.711512563626,"d":"$28,331"}},{"$f":"SUM(CB81:CM81)","v":{"v":335863.24924687477,"d":"$335,863"}},{"$f":"STDEV('Trial 1'!CO46,'Trial 2'!CO46,'Trial 3'!CO46,'Trial 4'!CO46,'Trial 5'!CO46,'Trial 6'!CO46,'Trial 7'!CO46,'Trial 8'!CO46)","v":{"v":27306.290868839198,"d":"$27,306"}},{"$f":"STDEV('Trial 1'!CP46,'Trial 2'!CP46,'Trial 3'!CP46,'Trial 4'!CP46,'Trial 5'!CP46,'Trial 6'!CP46,'Trial 7'!CP46,'Trial 8'!CP46)","v":{"v":24029.412762925265,"d":"$24,029"}},{"$f":"STDEV('Trial 1'!CQ46,'Trial 2'!CQ46,'Trial 3'!CQ46,'Trial 4'!CQ46,'Trial 5'!CQ46,'Trial 6'!CQ46,'Trial 7'!CQ46,'Trial 8'!CQ46)","v":{"v":34065.27925258966,"d":"$34,065"}},{"$f":"STDEV('Trial 1'!CR46,'Trial 2'!CR46,'Trial 3'!CR46,'Trial 4'!CR46,'Trial 5'!CR46,'Trial 6'!CR46,'Trial 7'!CR46,'Trial 8'!CR46)","v":{"v":22398.71241360355,"d":"$22,399"}},{"$f":"STDEV('Trial 1'!CS46,'Trial 2'!CS46,'Trial 3'!CS46,'Trial 4'!CS46,'Trial 5'!CS46,'Trial 6'!CS46,'Trial 7'!CS46,'Trial 8'!CS46)","v":{"v":24839.862657681373,"d":"$24,840"}},{"$f":"STDEV('Trial 1'!CT46,'Trial 2'!CT46,'Trial 3'!CT46,'Trial 4'!CT46,'Trial 5'!CT46,'Trial 6'!CT46,'Trial 7'!CT46,'Trial 8'!CT46)","v":{"v":34653.7876576124,"d":"$34,654"}},{"$f":"STDEV('Trial 1'!CU46,'Trial 2'!CU46,'Trial 3'!CU46,'Trial 4'!CU46,'Trial 5'!CU46,'Trial 6'!CU46,'Trial 7'!CU46,'Trial 8'!CU46)","v":{"v":26483.999926724355,"d":"$26,484"}},{"$f":"STDEV('Trial 1'!CV46,'Trial 2'!CV46,'Trial 3'!CV46,'Trial 4'!CV46,'Trial 5'!CV46,'Trial 6'!CV46,'Trial 7'!CV46,'Trial 8'!CV46)","v":{"v":26975.183658857557,"d":"$26,975"}},{"$f":"STDEV('Trial 1'!CW46,'Trial 2'!CW46,'Trial 3'!CW46,'Trial 4'!CW46,'Trial 5'!CW46,'Trial 6'!CW46,'Trial 7'!CW46,'Trial 8'!CW46)","v":{"v":23757.33905505356,"d":"$23,757"}},{"$f":"STDEV('Trial 1'!CX46,'Trial 2'!CX46,'Trial 3'!CX46,'Trial 4'!CX46,'Trial 5'!CX46,'Trial 6'!CX46,'Trial 7'!CX46,'Trial 8'!CX46)","v":{"v":38857.11517375709,"d":"$38,857"}},{"$f":"STDEV('Trial 1'!CY46,'Trial 2'!CY46,'Trial 3'!CY46,'Trial 4'!CY46,'Trial 5'!CY46,'Trial 6'!CY46,'Trial 7'!CY46,'Trial 8'!CY46)","v":{"v":27506.00531351862,"d":"$27,506"}},{"$f":"STDEV('Trial 1'!CZ46,'Trial 2'!CZ46,'Trial 3'!CZ46,'Trial 4'!CZ46,'Trial 5'!CZ46,'Trial 6'!CZ46,'Trial 7'!CZ46,'Trial 8'!CZ46)","v":{"v":21047.291496816404,"d":"$21,047"}},{"$f":"SUM(CO81:CZ81)","v":{"v":331920.2802379791,"d":"$331,920"}},{"$f":"STDEV('Trial 1'!DB46,'Trial 2'!DB46,'Trial 3'!DB46,'Trial 4'!DB46,'Trial 5'!DB46,'Trial 6'!DB46,'Trial 7'!DB46,'Trial 8'!DB46)","v":{"v":25143.64405573219,"d":"$25,144"}},{"$f":"STDEV('Trial 1'!DC46,'Trial 2'!DC46,'Trial 3'!DC46,'Trial 4'!DC46,'Trial 5'!DC46,'Trial 6'!DC46,'Trial 7'!DC46,'Trial 8'!DC46)","v":{"v":30119.914015198752,"d":"$30,120"}},{"$f":"STDEV('Trial 1'!DD46,'Trial 2'!DD46,'Trial 3'!DD46,'Trial 4'!DD46,'Trial 5'!DD46,'Trial 6'!DD46,'Trial 7'!DD46,'Trial 8'!DD46)","v":{"v":18806.927089653556,"d":"$18,807"}},{"$f":"STDEV('Trial 1'!DE46,'Trial 2'!DE46,'Trial 3'!DE46,'Trial 4'!DE46,'Trial 5'!DE46,'Trial 6'!DE46,'Trial 7'!DE46,'Trial 8'!DE46)","v":{"v":33648.557470640415,"d":"$33,649"}},{"$f":"STDEV('Trial 1'!DF46,'Trial 2'!DF46,'Trial 3'!DF46,'Trial 4'!DF46,'Trial 5'!DF46,'Trial 6'!DF46,'Trial 7'!DF46,'Trial 8'!DF46)","v":{"v":27730.723404275315,"d":"$27,731"}},{"$f":"STDEV('Trial 1'!DG46,'Trial 2'!DG46,'Trial 3'!DG46,'Trial 4'!DG46,'Trial 5'!DG46,'Trial 6'!DG46,'Trial 7'!DG46,'Trial 8'!DG46)","v":{"v":16438.389339757752,"d":"$16,438"}},{"$f":"STDEV('Trial 1'!DH46,'Trial 2'!DH46,'Trial 3'!DH46,'Trial 4'!DH46,'Trial 5'!DH46,'Trial 6'!DH46,'Trial 7'!DH46,'Trial 8'!DH46)","v":{"v":26935.09847425349,"d":"$26,935"}},{"$f":"STDEV('Trial 1'!DI46,'Trial 2'!DI46,'Trial 3'!DI46,'Trial 4'!DI46,'Trial 5'!DI46,'Trial 6'!DI46,'Trial 7'!DI46,'Trial 8'!DI46)","v":{"v":21283.453672280473,"d":"$21,283"}},{"$f":"STDEV('Trial 1'!DJ46,'Trial 2'!DJ46,'Trial 3'!DJ46,'Trial 4'!DJ46,'Trial 5'!DJ46,'Trial 6'!DJ46,'Trial 7'!DJ46,'Trial 8'!DJ46)","v":{"v":38911.13584424678,"d":"$38,911"}},{"$f":"STDEV('Trial 1'!DK46,'Trial 2'!DK46,'Trial 3'!DK46,'Trial 4'!DK46,'Trial 5'!DK46,'Trial 6'!DK46,'Trial 7'!DK46,'Trial 8'!DK46)","v":{"v":28302.7109187507,"d":"$28,303"}},{"$f":"STDEV('Trial 1'!DL46,'Trial 2'!DL46,'Trial 3'!DL46,'Trial 4'!DL46,'Trial 5'!DL46,'Trial 6'!DL46,'Trial 7'!DL46,'Trial 8'!DL46)","v":{"v":33834.71620970185,"d":"$33,835"}},{"$f":"STDEV('Trial 1'!DM46,'Trial 2'!DM46,'Trial 3'!DM46,'Trial 4'!DM46,'Trial 5'!DM46,'Trial 6'!DM46,'Trial 7'!DM46,'Trial 8'!DM46)","v":{"v":27269.825971690847,"d":"$27,270"}},{"$f":"SUM(DB81:DM81)","v":{"v":328425.09646618215,"d":"$328,425"}},{"$f":"STDEV('Trial 1'!DO46,'Trial 2'!DO46,'Trial 3'!DO46,'Trial 4'!DO46,'Trial 5'!DO46,'Trial 6'!DO46,'Trial 7'!DO46,'Trial 8'!DO46)","v":{"v":32709.016249724114,"d":"$32,709"}},{"$f":"STDEV('Trial 1'!DP46,'Trial 2'!DP46,'Trial 3'!DP46,'Trial 4'!DP46,'Trial 5'!DP46,'Trial 6'!DP46,'Trial 7'!DP46,'Trial 8'!DP46)","v":{"v":33117.50525309028,"d":"$33,118"}},{"$f":"STDEV('Trial 1'!DQ46,'Trial 2'!DQ46,'Trial 3'!DQ46,'Trial 4'!DQ46,'Trial 5'!DQ46,'Trial 6'!DQ46,'Trial 7'!DQ46,'Trial 8'!DQ46)","v":{"v":26422.315336399475,"d":"$26,422"}},{"$f":"STDEV('Trial 1'!DR46,'Trial 2'!DR46,'Trial 3'!DR46,'Trial 4'!DR46,'Trial 5'!DR46,'Trial 6'!DR46,'Trial 7'!DR46,'Trial 8'!DR46)","v":{"v":29608.94236025453,"d":"$29,609"}},{"$f":"STDEV('Trial 1'!DS46,'Trial 2'!DS46,'Trial 3'!DS46,'Trial 4'!DS46,'Trial 5'!DS46,'Trial 6'!DS46,'Trial 7'!DS46,'Trial 8'!DS46)","v":{"v":26622.985074537588,"d":"$26,623"}},{"$f":"STDEV('Trial 1'!DT46,'Trial 2'!DT46,'Trial 3'!DT46,'Trial 4'!DT46,'Trial 5'!DT46,'Trial 6'!DT46,'Trial 7'!DT46,'Trial 8'!DT46)","v":{"v":27965.58760113433,"d":"$27,966"}},{"$f":"STDEV('Trial 1'!DU46,'Trial 2'!DU46,'Trial 3'!DU46,'Trial 4'!DU46,'Trial 5'!DU46,'Trial 6'!DU46,'Trial 7'!DU46,'Trial 8'!DU46)","v":{"v":32572.722308653738,"d":"$32,573"}},{"$f":"STDEV('Trial 1'!DV46,'Trial 2'!DV46,'Trial 3'!DV46,'Trial 4'!DV46,'Trial 5'!DV46,'Trial 6'!DV46,'Trial 7'!DV46,'Trial 8'!DV46)","v":{"v":28857.399758517615,"d":"$28,857"}},{"$f":"STDEV('Trial 1'!DW46,'Trial 2'!DW46,'Trial 3'!DW46,'Trial 4'!DW46,'Trial 5'!DW46,'Trial 6'!DW46,'Trial 7'!DW46,'Trial 8'!DW46)","v":{"v":23202.156189290603,"d":"$23,202"}},{"$f":"STDEV('Trial 1'!DX46,'Trial 2'!DX46,'Trial 3'!DX46,'Trial 4'!DX46,'Trial 5'!DX46,'Trial 6'!DX46,'Trial 7'!DX46,'Trial 8'!DX46)","v":{"v":26980.112308090884,"d":"$26,980"}},{"$f":"STDEV('Trial 1'!DY46,'Trial 2'!DY46,'Trial 3'!DY46,'Trial 4'!DY46,'Trial 5'!DY46,'Trial 6'!DY46,'Trial 7'!DY46,'Trial 8'!DY46)","v":{"v":36262.86880615675,"d":"$36,263"}},{"$f":"STDEV('Trial 1'!DZ46,'Trial 2'!DZ46,'Trial 3'!DZ46,'Trial 4'!DZ46,'Trial 5'!DZ46,'Trial 6'!DZ46,'Trial 7'!DZ46,'Trial 8'!DZ46)","v":{"v":16841.81669357298,"d":"$16,842"}},{"$f":"SUM(DO81:DZ81)","v":{"v":341163.4279394229,"d":"$341,163"}},{"$f":"STDEV('Trial 1'!EB46,'Trial 2'!EB46,'Trial 3'!EB46,'Trial 4'!EB46,'Trial 5'!EB46,'Trial 6'!EB46,'Trial 7'!EB46,'Trial 8'!EB46)","v":{"v":23109.443718122533,"d":"$23,109"}},{"$f":"STDEV('Trial 1'!EC46,'Trial 2'!EC46,'Trial 3'!EC46,'Trial 4'!EC46,'Trial 5'!EC46,'Trial 6'!EC46,'Trial 7'!EC46,'Trial 8'!EC46)","v":{"v":34954.314978472226,"d":"$34,954"}},{"$f":"STDEV('Trial 1'!ED46,'Trial 2'!ED46,'Trial 3'!ED46,'Trial 4'!ED46,'Trial 5'!ED46,'Trial 6'!ED46,'Trial 7'!ED46,'Trial 8'!ED46)","v":{"v":24121.143769465638,"d":"$24,121"}},{"$f":"STDEV('Trial 1'!EE46,'Trial 2'!EE46,'Trial 3'!EE46,'Trial 4'!EE46,'Trial 5'!EE46,'Trial 6'!EE46,'Trial 7'!EE46,'Trial 8'!EE46)","v":{"v":35408.422877766956,"d":"$35,408"}},{"$f":"STDEV('Trial 1'!EF46,'Trial 2'!EF46,'Trial 3'!EF46,'Trial 4'!EF46,'Trial 5'!EF46,'Trial 6'!EF46,'Trial 7'!EF46,'Trial 8'!EF46)","v":{"v":27920.72749408594,"d":"$27,921"}},{"$f":"STDEV('Trial 1'!EG46,'Trial 2'!EG46,'Trial 3'!EG46,'Trial 4'!EG46,'Trial 5'!EG46,'Trial 6'!EG46,'Trial 7'!EG46,'Trial 8'!EG46)","v":{"v":27490.89114824924,"d":"$27,491"}},{"$f":"STDEV('Trial 1'!EH46,'Trial 2'!EH46,'Trial 3'!EH46,'Trial 4'!EH46,'Trial 5'!EH46,'Trial 6'!EH46,'Trial 7'!EH46,'Trial 8'!EH46)","v":{"v":29052.15939084453,"d":"$29,052"}},{"$f":"STDEV('Trial 1'!EI46,'Trial 2'!EI46,'Trial 3'!EI46,'Trial 4'!EI46,'Trial 5'!EI46,'Trial 6'!EI46,'Trial 7'!EI46,'Trial 8'!EI46)","v":{"v":41531.296554587425,"d":"$41,531"}},{"$f":"STDEV('Trial 1'!EJ46,'Trial 2'!EJ46,'Trial 3'!EJ46,'Trial 4'!EJ46,'Trial 5'!EJ46,'Trial 6'!EJ46,'Trial 7'!EJ46,'Trial 8'!EJ46)","v":{"v":27039.636371431618,"d":"$27,040"}},{"$f":"STDEV('Trial 1'!EK46,'Trial 2'!EK46,'Trial 3'!EK46,'Trial 4'!EK46,'Trial 5'!EK46,'Trial 6'!EK46,'Trial 7'!EK46,'Trial 8'!EK46)","v":{"v":20232.433293870825,"d":"$20,232"}},{"$f":"STDEV('Trial 1'!EL46,'Trial 2'!EL46,'Trial 3'!EL46,'Trial 4'!EL46,'Trial 5'!EL46,'Trial 6'!EL46,'Trial 7'!EL46,'Trial 8'!EL46)","v":{"v":30722.932981410697,"d":"$30,723"}},{"$f":"STDEV('Trial 1'!EM46,'Trial 2'!EM46,'Trial 3'!EM46,'Trial 4'!EM46,'Trial 5'!EM46,'Trial 6'!EM46,'Trial 7'!EM46,'Trial 8'!EM46)","v":{"v":24629.275287423457,"d":"$24,629"}},{"$f":"SUM(EB81:EM81)","v":{"v":346212.67786573106,"d":"$346,213"}}]

{"sheet":"Trial 1","index":4,"n_rows":61,"n_cols":144,"rows_kept":61,"merged":[[0,0,0,2],[1,0,1,2],[2,0,2,2],[3,0,3,2],[4,0,4,2]]}
[{"$f":"\"Equilibrium Economy with Shocks\"","v":"Equilibrium Economy with Shocks"}]
[{"$f":"\"Model: \"&Inputs!B8","v":"Model: Test Model"}]
[{"$f":"\"$ millions\"","v":"$ millions"}]
[{"$f":"\"Trial 1\"","v":"Trial 1"}]
[{"$f":"\"\"","v":""}]
[{"$f":"\"Demand\"","v":"Demand"}]
[{"$f":"\" \"","v":" "}]
[null,{"$f":"ZZZ__FnCalls!F7","v":"Jan 2010"},{"$f":"ZZZ__FnCalls!F8","v":"Feb 2010"},{"$f":"ZZZ__FnCalls!F9","v":"Mar 2010"},{"$f":"ZZZ__FnCalls!F10","v":"Apr 2010"},{"$f":"ZZZ__FnCalls!F11","v":"May 2010"},{"$f":"ZZZ__FnCalls!F12","v":"Jun 2010"},{"$f":"ZZZ__FnCalls!F13","v":"Jul 2010"},{"$f":"ZZZ__FnCalls!F14","v":"Aug 2010"},{"$f":"ZZZ__FnCalls!F15","v":"Sep 2010"},{"$f":"ZZZ__FnCalls!F16","v":"Oct 2010"},{"$f":"ZZZ__FnCalls!F17","v":"Nov 2010"},{"$f":"ZZZ__FnCalls!F18","v":"Dec 2010"},{"$f":"ZZZ__FnCalls!H7","v":"2010"},{"$f":"ZZZ__FnCalls!F19","v":"Jan 2011"},{"$f":"ZZZ__FnCalls!F20","v":"Feb 2011"},{"$f":"ZZZ__FnCalls!F21","v":"Mar 2011"},{"$f":"ZZZ__FnCalls!F22","v":"Apr 2011"},{"$f":"ZZZ__FnCalls!F23","v":"May 2011"},{"$f":"ZZZ__FnCalls!F24","v":"Jun 2011"},{"$f":"ZZZ__FnCalls!F25","v":"Jul 2011"},{"$f":"ZZZ__FnCalls!F26","v":"Aug 2011"},{"$f":"ZZZ__FnCalls!F27","v":"Sep 2011"},{"$f":"ZZZ__FnCalls!F28","v":"Oct 2011"},{"$f":"ZZZ__FnCalls!F29","v":"Nov 2011"},{"$f":"ZZZ__FnCalls!F30","v":"Dec 2011"},{"$f":"ZZZ__FnCalls!H19","v":"2011"},{"$f":"ZZZ__FnCalls!F31","v":"Jan 2012"},{"$f":"ZZZ__FnCalls!F32","v":"Feb 2012"},{"$f":"ZZZ__FnCalls!F33","v":"Mar 2012"},{"$f":"ZZZ__FnCalls!F34","v":"Apr 2012"},{"$f":"ZZZ__FnCalls!F35","v":"May 2012"},{"$f":"ZZZ__FnCalls!F36","v":"Jun 2012"},{"$f":"ZZZ__FnCalls!F37","v":"Jul 2012"},{"$f":"ZZZ__FnCalls!F38","v":"Aug 2012"},{"$f":"ZZZ__FnCalls!F39","v":"Sep 2012"},{"$f":"ZZZ__FnCalls!F40","v":"Oct 2012"},{"$f":"ZZZ__FnCalls!F41","v":"Nov 2012"},{"$f":"ZZZ__FnCalls!F42","v":"Dec 2012"},{"$f":"ZZZ__FnCalls!H31","v":"2012"},{"$f":"ZZZ__FnCalls!F43","v":"Jan 2013"},{"$f":"ZZZ__FnCalls!F44","v":"Feb 2013"},{"$f":"ZZZ__FnCalls!F45","v":"Mar 2013"},{"$f":"ZZZ__FnCalls!F46","v":"Apr 2013"},{"$f":"ZZZ__FnCalls!F47","v":"May 2013"},{"$f":"ZZZ__FnCalls!F48","v":"Jun 2013"},{"$f":"ZZZ__FnCalls!F49","v":"Jul 2013"},{"$f":"ZZZ__FnCalls!F50","v":"Aug 2013"},{"$f":"ZZZ__FnCalls!F51","v":"Sep 2013"},{"$f":"ZZZ__FnCalls!F52","v":"Oct 2013"},{"$f":"ZZZ__FnCalls!F53","v":"Nov 2013"},{"$f":"ZZZ__FnCalls!F54","v":"Dec 2013"},{"$f":"ZZZ__FnCalls!H43","v":"2013"},{"$f":"ZZZ__FnCalls!F55","v":"Jan 2014"},{"$f":"ZZZ__FnCalls!F56","v":"Feb 2014"},{"$f":"ZZZ__FnCalls!F57","v":"Mar 2014"},{"$f":"ZZZ__FnCalls!F58","v":"Apr 2014"},{"$f":"ZZZ__FnCalls!F59","v":"May 2014"},{"$f":"ZZZ__FnCalls!F60","v":"Jun 2014"},{"$f":"ZZZ__FnCalls!F61","v":"Jul 2014"},{"$f":"ZZZ__FnCalls!F62","v":"Aug 2014"},{"$f":"ZZZ__FnCalls!F63","v":"Sep 2014"},{"$f":"ZZZ__FnCalls!F64","v":"Oct 2014"},{"$f":"ZZZ__FnCalls!F65","v":"Nov 2014"},{"$f":"ZZZ__FnCalls!F66","v":"Dec 2014"},{"$f":"ZZZ__FnCalls!H55","v":"2014"},{"$f":"ZZZ__FnCalls!F67","v":"Jan 2015"},{"$f":"ZZZ__FnCalls!F68","v":"Feb 2015"},{"$f":"ZZZ__FnCalls!F69","v":"Mar 2015"},{"$f":"ZZZ__FnCalls!F70","v":"Apr 2015"},{"$f":"ZZZ__FnCalls!F71","v":"May 2015"},{"$f":"ZZZ__FnCalls!F72","v":"Jun 2015"},{"$f":"ZZZ__FnCalls!F73","v":"Jul 2015"},{"$f":"ZZZ__FnCalls!F74","v":"Aug 2015"},{"$f":"ZZZ__FnCalls!F75","v":"Sep 2015"},{"$f":"ZZZ__FnCalls!F76","v":"Oct 2015"},{"$f":"ZZZ__FnCalls!F77","v":"Nov 2015"},{"$f":"ZZZ__FnCalls!F78","v":"Dec 2015"},{"$f":"ZZZ__FnCalls!H67","v":"2015"},{"$f":"ZZZ__FnCalls!F79","v":"Jan 2016"},{"$f":"ZZZ__FnCalls!F80","v":"Feb 2016"},{"$f":"ZZZ__FnCalls!F81","v":"Mar 2016"},{"$f":"ZZZ__FnCalls!F82","v":"Apr 2016"},{"$f":"ZZZ__FnCalls!F83","v":"May 2016"},{"$f":"ZZZ__FnCalls!F84","v":"Jun 2016"},{"$f":"ZZZ__FnCalls!F85","v":"Jul 2016"},{"$f":"ZZZ__FnCalls!F86","v":"Aug 2016"},{"$f":"ZZZ__FnCalls!F87","v":"Sep 2016"},{"$f":"ZZZ__FnCalls!F88","v":"Oct 2016"},{"$f":"ZZZ__FnCalls!F89","v":"Nov 2016"},{"$f":"ZZZ__FnCalls!F90","v":"Dec 2016"},{"$f":"ZZZ__FnCalls!H79","v":"2016"},{"$f":"ZZZ__FnCalls!F91","v":"Jan 2017"},{"$f":"ZZZ__FnCalls!F92","v":"Feb 2017"},{"$f":"ZZZ__FnCalls!F93","v":"Mar 2017"},{"$f":"ZZZ__FnCalls!F94","v":"Apr 2017"},{"$f":"ZZZ__FnCalls!F95","v":"May 2017"},{"$f":"ZZZ__FnCalls!F96","v":"Jun 2017"},{"$f":"ZZZ__FnCalls!F97","v":"Jul 2017"},{"$f":"ZZZ__FnCalls!F98","v":"Aug 2017"},{"$f":"ZZZ__FnCalls!F99","v":"Sep 2017"},{"$f":"ZZZ__FnCalls!F100","v":"Oct 2017"},{"$f":"ZZZ__FnCalls!F101","v":"Nov 2017"},{"$f":"ZZZ__FnCalls!F102","v":"Dec 2017"},{"$f":"ZZZ__FnCalls!H91","v":"2017"},{"$f":"ZZZ__FnCalls!F103","v":"Jan 2018"},{"$f":"ZZZ__FnCalls!F104","v":"Feb 2018"},{"$f":"ZZZ__FnCalls!F105","v":"Mar 2018"},{"$f":"ZZZ__FnCalls!F106","v":"Apr 2018"},{"$f":"ZZZ__FnCalls!F107","v":"May 2018"},{"$f":"ZZZ__FnCalls!F108","v":"Jun 2018"},{"$f":"ZZZ__FnCalls!F109","v":"Jul 2018"},{"$f":"ZZZ__FnCalls!F110","v":"Aug 2018"},{"$f":"ZZZ__FnCalls!F111","v":"Sep 2018"},{"$f":"ZZZ__FnCalls!F112","v":"Oct 2018"},{"$f":"ZZZ__FnCalls!F113","v":"Nov 2018"},{"$f":"ZZZ__FnCalls!F114","v":"Dec 2018"},{"$f":"ZZZ__FnCalls!H103","v":"2018"},{"$f":"ZZZ__FnCalls!F115","v":"Jan 2019"},{"$f":"ZZZ__FnCalls!F116","v":"Feb 2019"},{"$f":"ZZZ__FnCalls!F117","v":"Mar 2019"},{"$f":"ZZZ__FnCalls!F118","v":"Apr 2019"},{"$f":"ZZZ__FnCalls!F119","v":"May 2019"},{"$f":"ZZZ__FnCalls!F120","v":"Jun 2019"},{"$f":"ZZZ__FnCalls!F121","v":"Jul 2019"},{"$f":"ZZZ__FnCalls!F122","v":"Aug 2019"},{"$f":"ZZZ__FnCalls!F123","v":"Sep 2019"},{"$f":"ZZZ__FnCalls!F124","v":"Oct 2019"},{"$f":"ZZZ__FnCalls!F125","v":"Nov 2019"},{"$f":"ZZZ__FnCalls!F126","v":"Dec 2019"},{"$f":"ZZZ__FnCalls!H115","v":"2019"},{"$f":"ZZZ__FnCalls!F127","v":"Jan 2020"},{"$f":"ZZZ__FnCalls!F128","v":"Feb 2020"},{"$f":"ZZZ__FnCalls!F129","v":"Mar 2020"},{"$f":"ZZZ__FnCalls!F130","v":"Apr 2020"},{"$f":"ZZZ__FnCalls!F131","v":"May 2020"},{"$f":"ZZZ__FnCalls!F132","v":"Jun 2020"},{"$f":"ZZZ__FnCalls!F133","v":"Jul 2020"},{"$f":"ZZZ__FnCalls!F134","v":"Aug 2020"},{"$f":"ZZZ__FnCalls!F135","v":"Sep 2020"},{"$f":"ZZZ__FnCalls!F136","v":"Oct 2020"},{"$f":"ZZZ__FnCalls!F137","v":"Nov 2020"},{"$f":"ZZZ__FnCalls!F138","v":"Dec 2020"},{"$f":"ZZZ__FnCalls!H127","v":"2020"}]
[{"$f":"Labels!B28","v":"Aggregate Demand"},{"$f":"B36+0+B13","v":{"v":940125.3899119024,"d":"$940,125"}},{"v":1000141.3395710142,"d":"$1,000,141"},{"v":982791.9193759349,"d":"$982,792"},{"v":962118.7959621452,"d":"$962,119"},{"v":1011440.1865502738,"d":"$1,011,440"},{"v":979897.3405596861,"d":"$979,897"},{"v":948864.0920766024,"d":"$948,864"},{"v":958458.8920413471,"d":"$958,459"},{"v":975700.2129228406,"d":"$975,700"},{"v":1018334.1762723648,"d":"$1,018,334"},{"v":996220.3651157449,"d":"$996,220"},{"v":979909.5341638682,"d":"$979,910"},{"$f":"SUM(B9:M9)","v":{"v":11754002.244523725,"d":"$11,754,002"}},{"$f":"O36+0+O13","v":{"v":946316.8633855407,"d":"$946,317"}},{"v":963916.057744381,"d":"$963,916"},{"v":898225.2764405463,"d":"$898,225"},{"v":977862.3569379481,"d":"$977,862"},{"v":905770.2656937237,"d":"$905,770"},{"v":925680.773142982,"d":"$925,681"},{"v":910142.0091139528,"d":"$910,142"},{"v":908565.7927859274,"d":"$908,566"},{"v":940270.2868351259,"d":"$940,270"},{"v":948686.025108659,"d":"$948,686"},{"v":996291.6854889346,"d":"$996,292"},{"v":930309.0505843736,"d":"$930,309"},{"$f":"SUM(O9:Z9)","v":{"v":11252036.443262095,"d":"$11,252,036"}},{"$f":"AB36+0+AB13","v":{"v":956338.1793877799,"d":"$956,338"}},{"v":1012652.2568716065,"d":"$1,012,652"},{"v":932432.641230957,"d":"$932,433"},{"v":919439.1224160253,"d":"$919,439"},{"v":949256.7720670281,"d":"$949,257"},{"v":945173.1311751953,"d":"$945,173"},{"v":965241.8362848589,"d":"$965,242"},{"v":935547.8254984007,"d":"$935,548"},{"v":997331.6619646876,"d":"$997,332"},{"v":958095.6980426998,"d":"$958,096"},{"v":937605.8966740393,"d":"$937,606"},{"v":914924.8865556383,"d":"$914,925"},{"$f":"SUM(AB9:AM9)","v":{"v":11424039.908168918,"d":"$11,424,040"}},{"$f":"AO36+0+AO13","v":{"v":914668.6776290223,"d":"$914,669"}},{"v":1006433.3630026117,"d":"$1,006,433"},{"v":907002.5353072948,"d":"$907,003"},{"v":974672.3486358832,"d":"$974,672"},{"v":951481.8109181565,"d":"$951,482"},{"v":971395.9198994696,"d":"$971,396"},{"v":939995.4055413135,"d":"$939,995"},{"v":920853.1579483715,"d":"$920,853"},{"v":941342.364654794,"d":"$941,342"},{"v":984552.4335423515,"d":"$984,552"},{"v":957152.2231405656,"d":"$957,152"},{"v":906989.8242978982,"d":"$906,990"},{"$f":"SUM(AO9:AZ9)","v":{"v":11376540.064517733,"d":"$11,376,540"}},{"$f":"BB36+0+BB13","v":{"v":903271.0668902099,"d":"$903,271"}},{"v":947286.8684523754,"d":"$947,287"},{"v":923370.222545814,"d":"$923,370"},{"v":972365.4310766775,"d":"$972,365"},{"v":952364.2000450919,"d":"$952,364"},{"v":950103.586668661,"d":"$950,104"},{"v":957775.87185367,"d":"$957,776"},{"v":928661.5130431554,"d":"$928,662"},{"v":926593.803590551,"d":"$926,594"},{"v":892696.8250688035,"d":"$892,697"},{"v":947007.0217681534,"d":"$947,007"},{"v":905590.6717314882,"d":"$905,591"},{"$f":"SUM(BB9:BM9)","v":{"v":11207087.082734652,"d":"$11,207,087"}},{"$f":"BO36+0+BO13","v":{"v":952968.5809225461,"d":"$952,969"}},{"v":915298.8978503227,"d":"$915,299"},{"v":987231.2202223833,"d":"$987,231"},{"v":956276.2972818826,"d":"$956,276"},{"v":937803.9802020226,"d":"$937,804"},{"v":887854.0755468025,"d":"$887,854"},{"v":900449.2754376834,"d":"$900,449"},{"v":921516.8702573533,"d":"$921,517"},{"v":961932.7093303478,"d":"$961,933"},{"v":898338.758923451,"d":"$898,339"},{"v":886330.3627270869,"d":"$886,330"},{"v":963197.3842902558,"d":"$963,197"},{"$f":"SUM(BO9:BZ9)","v":{"v":11169198.412992138,"d":"$11,169,198"}},{"$f":"CB36+0+CB13","v":{"v":922323.6705689724,"d":"$922,324"}},{"v":887060.1760112201,"d":"$887,060"},{"v":967081.4644023712,"d":"$967,081"},{"v":896209.2964475453,"d":"$896,209"},{"v":924826.942329824,"d":"$924,827"},{"v":939158.9123262961,"d":"$939,159"},{"v":922940.1762617793,"d":"$922,940"},{"v":933645.8767380554,"d":"$933,646"},{"v":926454.6759154611,"d":"$926,455"},{"v":877149.4233591147,"d":"$877,149"},{"v":952199.612759951,"d":"$952,200"},{"v":924653.5495023878,"d":"$924,654"},{"$f":"SUM(CB9:CM9)","v":{"v":11073703.776622977,"d":"$11,073,704"}},{"$f":"CO36+0+CO13","v":{"v":894558.5354544858,"d":"$894,559"}},{"v":950679.8989268742,"d":"$950,680"},{"v":864462.871958903,"d":"$864,463"},{"v":918046.6081706992,"d":"$918,047"},{"v":871504.539087215,"d":"$871,505"},{"v":930088.0386079936,"d":"$930,088"},{"v":881523.7977704785,"d":"$881,524"},{"v":927215.5767508047,"d":"$927,216"},{"v":873238.0349752179,"d":"$873,238"},{"v":953596.7782686658,"d":"$953,597"},{"v":960901.144200619,"d":"$960,901"},{"v":870483.3711549899,"d":"$870,483"},{"$f":"SUM(CO9:CZ9)","v":{"v":10896299.195326947,"d":"$10,896,299"}},{"$f":"DB36+0+DB13","v":{"v":919617.3015187194,"d":"$919,617"}},{"v":937989.1924500772,"d":"$937,989"},{"v":917671.6570760092,"d":"$917,672"},{"v":942084.445065148,"d":"$942,084"},{"v":939440.9418078044,"d":"$939,441"},{"v":901402.9879495681,"d":"$901,403"},{"v":929993.9776478049,"d":"$929,994"},{"v":884633.6302042124,"d":"$884,634"},{"v":929959.4290459383,"d":"$929,959"},{"v":959970.2324421674,"d":"$959,970"},{"v":876048.8734162782,"d":"$876,049"},{"v":919592.4346487783,"d":"$919,592"},{"$f":"SUM(DB9:DM9)","v":{"v":11058405.103272505,"d":"$11,058,405"}},{"$f":"DO36+0+DO13","v":{"v":957168.8596311109,"d":"$957,169"}},{"v":896679.3854062303,"d":"$896,679"},{"v":924831.7104675786,"d":"$924,832"},{"v":916906.6509978609,"d":"$916,907"},{"v":900955.3980451393,"d":"$900,955"},{"v":898166.0517236693,"d":"$898,166"},{"v":922329.8821568019,"d":"$922,330"},{"v":872833.5102465769,"d":"$872,834"},{"v":883390.9611235718,"d":"$883,391"},{"v":941076.048513611,"d":"$941,076"},{"v":930123.3815468275,"d":"$930,123"},{"v":883751.7231058432,"d":"$883,752"},{"$f":"SUM(DO9:DZ9)","v":{"v":10928213.56296482,"d":"$10,928,214"}},{"$f":"EB36+0+EB13","v":{"v":918982.8541654854,"d":"$918,983"}},{"v":903473.8284540024,"d":"$903,474"},{"v":903569.1708682602,"d":"$903,569"},{"v":860053.2936516732,"d":"$860,053"},{"v":898855.7738666481,"d":"$898,856"},{"v":891421.2982953101,"d":"$891,421"},{"v":897110.0784561489,"d":"$897,110"},{"v":872260.5473787696,"d":"$872,261"},{"v":909375.0628692099,"d":"$909,375"},{"v":893210.9116097902,"d":"$893,211"},{"v":866824.4450355411,"d":"$866,824"},{"v":876822.3431668889,"d":"$876,822"},{"$f":"SUM(EB9:EM9)","v":{"v":10691959.607817728,"d":"$10,691,960"}}]
[{"$f":"Labels!B31","v":"Long Expected Demand"},{"$f":"'(Other Computations)'!B8+'(Other Computations)'!B61*0/Inputs!B13/12","v":{"v":1166666.6666666667,"d":"$1,166,667"}},{"$f":"B10+'(Other Computations)'!B61*(B9-B10)/Inputs!B13/12","v":{"v":1166142.2655630677,"d":"$1,166,142"}},{"$f":"C10+'(Other Computations)'!B61*(C9-C10)/Inputs!B13/12","v":{"v":1165758.0041603083,"d":"$1,165,758"}},{"$f":"D10+'(Other Computations)'!B61*(D9-D10)/Inputs!B13/12","v":{"v":1165334.4715566407,"d":"$1,165,334"}},{"$f":"E10+'(Other Computations)'!B61*(E9-E10)/Inputs!B13/12","v":{"v":1164864.064900172,"d":"$1,164,864"}},{"$f":"F10+'(Other Computations)'!B61*(F9-F10)/Inputs!B13/12","v":{"v":1164508.9170336213,"d":"$1,164,509"}},{"$f":"G10+'(Other Computations)'!B61*(G9-G10)/Inputs!B13/12","v":{"v":1164081.5754214132,"d":"$1,164,082"}},{"$f":"H10+'(Other Computations)'!B61*(H9-H10)/Inputs!B13/12","v":{"v":1163583.3868025595,"d":"$1,163,583"}},{"$f":"I10+'(Other Computations)'!B61*(I9-I10)/Inputs!B13/12","v":{"v":1163108.561583205,"d":"$1,163,109"}},{"$f":"J10+'(Other Computations)'!B61*(J9-J10)/Inputs!B13/12","v":{"v":1162674.745961306,"d":"$1,162,675"}},{"$f":"K10+'(Other Computations)'!B61*(K9-K10)/Inputs!B13/12","v":{"v":1162340.6242722112,"d":"$1,162,341"}},{"$f":"L10+'(Other Computations)'!B61*(L9-L10)/Inputs!B13/12","v":{"v":1161956.086635275,"d":"$1,161,956"}},{"$f":"SUM(B10:M10)","v":{"v":13971019.370556446,"d":"$13,971,019"}},{"$f":"M10+'(Other Computations)'!B61*(M9-M10)/Inputs!B13/12","v":{"v":1161534.6825786282,"d":"$1,161,535"}},{"$f":"O10+'(Other Computations)'!B61*(O9-O10)/Inputs!B13/12","v":{"v":1161036.4931823479,"d":"$1,161,036"}},{"$f":"P10+'(Other Computations)'!B61*(P9-P10)/Inputs!B13/12","v":{"v":1160580.1958780934,"d":"$1,160,580"}},{"$f":"Q10+'(Other Computations)'!B61*(Q9-Q10)/Inputs!B13/12","v":{"v":1159972.8928238398,"d":"$1,159,973"}},{"$f":"R10+'(Other Computations)'!B61*(R9-R10)/Inputs!B13/12","v":{"v":1159551.3406574372,"d":"$1,159,551"}},{"$f":"S10+'(Other Computations)'!B61*(S9-S10)/Inputs!B13/12","v":{"v":1158963.8844653915,"d":"$1,158,964"}},{"$f":"T10+'(Other Computations)'!B61*(T9-T10)/Inputs!B13/12","v":{"v":1158423.8772632563,"d":"$1,158,424"}},{"$f":"U10+'(Other Computations)'!B61*(U9-U10)/Inputs!B13/12","v":{"v":1157849.1507166144,"d":"$1,157,849"}},{"$f":"V10+'(Other Computations)'!B61*(V9-V10)/Inputs!B13/12","v":{"v":1157272.1059065897,"d":"$1,157,272"}},{"$f":"W10+'(Other Computations)'!B61*(W9-W10)/Inputs!B13/12","v":{"v":1156769.7868809612,"d":"$1,156,770"}},{"$f":"X10+'(Other Computations)'!B61*(X9-X10)/Inputs!B13/12","v":{"v":1156288.1115064882,"d":"$1,156,288"}},{"$f":"Y10+'(Other Computations)'!B61*(Y9-Y10)/Inputs!B13/12","v":{"v":1155917.7494092253,"d":"$1,155,918"}},{"$f":"SUM(O10:Z10)","v":{"v":13904160.27126887,"d":"$13,904,160"}},{"$f":"Z10+'(Other Computations)'!B61*(Z9-Z10)/Inputs!B13/12","v":{"v":1155395.5070508344,"d":"$1,155,396"}},{"$f":"AB10+'(Other Computations)'!B61*(AB9-AB10)/Inputs!B13/12","v":{"v":1154934.7261997624,"d":"$1,154,935"}},{"$f":"AC10+'(Other Computations)'!B61*(AC9-AC10)/Inputs!B13/12","v":{"v":1154605.3686318733,"d":"$1,154,605"}},{"$f":"AD10+'(Other Computations)'!B61*(AD9-AD10)/Inputs!B13/12","v":{"v":1154091.0799110378,"d":"$1,154,091"}},{"$f":"AE10+'(Other Computations)'!B61*(AE9-AE10)/Inputs!B13/12","v":{"v":1153547.9040835032,"d":"$1,153,548"}},{"$f":"AF10+'(Other Computations)'!B61*(AF9-AF10)/Inputs!B13/12","v":{"v":1153075.0079445762,"d":"$1,153,075"}},{"$f":"AG10+'(Other Computations)'!B61*(AG9-AG10)/Inputs!B13/12","v":{"v":1152593.7536002027,"d":"$1,152,594"}},{"$f":"AH10+'(Other Computations)'!B61*(AH9-AH10)/Inputs!B13/12","v":{"v":1152160.0686064172,"d":"$1,152,160"}},{"$f":"AI10+'(Other Computations)'!B61*(AI9-AI10)/Inputs!B13/12","v":{"v":1151658.6513770004,"d":"$1,151,659"}},{"$f":"AJ10+'(Other Computations)'!B61*(AJ9-AJ10)/Inputs!B13/12","v":{"v":1151301.412975583,"d":"$1,151,301"}},{"$f":"AK10+'(Other Computations)'!B61*(AK9-AK10)/Inputs!B13/12","v":{"v":1150854.1775243494,"d":"$1,150,854"}},{"$f":"AL10+'(Other Computations)'!B61*(AL9-AL10)/Inputs!B13/12","v":{"v":1150360.5472446033,"d":"$1,150,361"}},{"$f":"SUM(AB10:AM10)","v":{"v":13834578.205149742,"d":"$13,834,578"}},{"$f":"AM10+'(Other Computations)'!B61*(AM9-AM10)/Inputs!B13/12","v":{"v":1149815.5572893047,"d":"$1,149,816"}},{"$f":"AO10+'(Other Computations)'!B61*(AO9-AO10)/Inputs!B13/12","v":{"v":1149271.2358086095,"d":"$1,149,271"}},{"$f":"AP10+'(Other Computations)'!B61*(AP9-AP10)/Inputs!B13/12","v":{"v":1148940.5925845215,"d":"$1,148,941"}},{"$f":"AQ10+'(Other Computations)'!B61*(AQ9-AQ10)/Inputs!B13/12","v":{"v":1148380.5507852687,"d":"$1,148,381"}},{"$f":"AR10+'(Other Computations)'!B61*(AR9-AR10)/Inputs!B13/12","v":{"v":1147978.4484654784,"d":"$1,147,978"}},{"$f":"AS10+'(Other Computations)'!B61*(AS9-AS10)/Inputs!B13/12","v":{"v":1147523.5951378224,"d":"$1,147,524"}},{"$f":"AT10+'(Other Computations)'!B61*(AT9-AT10)/Inputs!B13/12","v":{"v":1147115.8921858817,"d":"$1,147,116"}},{"$f":"AU10+'(Other Computations)'!B61*(AU9-AU10)/Inputs!B13/12","v":{"v":1146636.4466149453,"d":"$1,146,636"}},{"$f":"AV10+'(Other Computations)'!B61*(AV9-AV10)/Inputs!B13/12","v":{"v":1146113.8001134023,"d":"$1,146,114"}},{"$f":"AW10+'(Other Computations)'!B61*(AW9-AW10)/Inputs!B13/12","v":{"v":1145639.7921609518,"d":"$1,145,640"}},{"$f":"AX10+'(Other Computations)'!B61*(AX9-AX10)/Inputs!B13/12","v":{"v":1145266.904756742,"d":"$1,145,267"}},{"$f":"AY10+'(Other Computations)'!B61*(AY9-AY10)/Inputs!B13/12","v":{"v":1144831.4541048529,"d":"$1,144,831"}},{"$f":"SUM(AO10:AZ10)","v":{"v":13767514.270007782,"d":"$13,767,514"}},{"$f":"AZ10+'(Other Computations)'!B61*(AZ9-AZ10)/Inputs!B13/12","v":{"v":1144280.894776596,"d":"$1,144,281"}},{"$f":"BB10+'(Other Computations)'!B61*(BB9-BB10)/Inputs!B13/12","v":{"v":1143723.0016564885,"d":"$1,143,723"}},{"$f":"BC10+'(Other Computations)'!B61*(BC9-BC10)/Inputs!B13/12","v":{"v":1143268.2883851826,"d":"$1,143,268"}},{"$f":"BD10+'(Other Computations)'!B61*(BD9-BD10)/Inputs!B13/12","v":{"v":1142759.2650846285,"d":"$1,142,759"}},{"$f":"BE10+'(Other Computations)'!B61*(BE9-BE10)/Inputs!B13/12","v":{"v":1142364.8349133139,"d":"$1,142,365"}},{"$f":"BF10+'(Other Computations)'!B61*(BF9-BF10)/Inputs!B13/12","v":{"v":1141925.0186288967,"d":"$1,141,925"}},{"$f":"BG10+'(Other Computations)'!B61*(BG9-BG10)/Inputs!B13/12","v":{"v":1141480.9875363961,"d":"$1,141,481"}},{"$f":"BH10+'(Other Computations)'!B61*(BH9-BH10)/Inputs!B13/12","v":{"v":1141055.7442130565,"d":"$1,141,056"}},{"$f":"BI10+'(Other Computations)'!B61*(BI9-BI10)/Inputs!B13/12","v":{"v":1140564.0909001632,"d":"$1,140,564"}},{"$f":"BJ10+'(Other Computations)'!B61*(BJ9-BJ10)/Inputs!B13/12","v":{"v":1140068.7893091687,"d":"$1,140,069"}},{"$f":"BK10+'(Other Computations)'!B61*(BK9-BK10)/Inputs!B13/12","v":{"v":1139496.1690215752,"d":"$1,139,496"}},{"$f":"BL10+'(Other Computations)'!B61*(BL9-BL10)/Inputs!B13/12","v":{"v":1139050.592291822,"d":"$1,139,051"}},{"$f":"SUM(BB10:BM10)","v":{"v":13700037.676717287,"d":"$13,700,038"}},{"$f":"BM10+'(Other Computations)'!B61*(BM9-BM10)/Inputs!B13/12","v":{"v":1138510.1758090435,"d":"$1,138,510"}},{"$f":"BO10+'(Other Computations)'!B61*(BO9-BO10)/Inputs!B13/12","v":{"v":1138080.6813764358,"d":"$1,138,081"}},{"$f":"BP10+'(Other Computations)'!B61*(BP9-BP10)/Inputs!B13/12","v":{"v":1137564.9828034586,"d":"$1,137,565"}},{"$f":"BQ10+'(Other Computations)'!B61*(BQ9-BQ10)/Inputs!B13/12","v":{"v":1137216.9879826691,"d":"$1,137,217"}},{"$f":"BR10+'(Other Computations)'!B61*(BR9-BR10)/Inputs!B13/12","v":{"v":1136798.143791232,"d":"$1,136,798"}},{"$f":"BS10+'(Other Computations)'!B61*(BS9-BS10)/Inputs!B13/12","v":{"v":1136337.5091532941,"d":"$1,136,338"}},{"$f":"BT10+'(Other Computations)'!B61*(BT9-BT10)/Inputs!B13/12","v":{"v":1135762.3160199458,"d":"$1,135,762"}},{"$f":"BU10+'(Other Computations)'!B61*(BU9-BU10)/Inputs!B13/12","v":{"v":1135217.609907487,"d":"$1,135,218"}},{"$f":"BV10+'(Other Computations)'!B61*(BV9-BV10)/Inputs!B13/12","v":{"v":1134722.932269408,"d":"$1,134,723"}},{"$f":"BW10+'(Other Computations)'!B61*(BW9-BW10)/Inputs!B13/12","v":{"v":1134322.9549014934,"d":"$1,134,323"}},{"$f":"BX10+'(Other Computations)'!B61*(BX9-BX10)/Inputs!B13/12","v":{"v":1133776.6951885812,"d":"$1,133,777"}},{"$f":"BY10+'(Other Computations)'!B61*(BY9-BY10)/Inputs!B13/12","v":{"v":1133203.9027523277,"d":"$1,133,204"}},{"$f":"SUM(BO10:BZ10)","v":{"v":13631514.891955376,"d":"$13,631,515"}},{"$f":"BZ10+'(Other Computations)'!B61*(BZ9-BZ10)/Inputs!B13/12","v":{"v":1132810.3691447766,"d":"$1,132,810"}},{"$f":"CB10+'(Other Computations)'!B61*(CB9-CB10)/Inputs!B13/12","v":{"v":1132323.1314165918,"d":"$1,132,323"}},{"$f":"CC10+'(Other Computations)'!B61*(CC9-CC10)/Inputs!B13/12","v":{"v":1131755.3930938942,"d":"$1,131,755"}},{"$f":"CD10+'(Other Computations)'!B61*(CD9-CD10)/Inputs!B13/12","v":{"v":1131374.2034441454,"d":"$1,131,374"}},{"$f":"CE10+'(Other Computations)'!B61*(CE9-CE10)/Inputs!B13/12","v":{"v":1130829.840233505,"d":"$1,130,830"}},{"$f":"CF10+'(Other Computations)'!B61*(CF9-CF10)/Inputs!B13/12","v":{"v":1130352.9816735429,"d":"$1,130,353"}},{"$f":"CG10+'(Other Computations)'!B61*(CG9-CG10)/Inputs!B13/12","v":{"v":1129910.402809313,"d":"$1,129,910"}},{"$f":"CH10+'(Other Computations)'!B61*(CH9-CH10)/Inputs!B13/12","v":{"v":1129431.3050626752,"d":"$1,129,431"}},{"$f":"CI10+'(Other Computations)'!B61*(CI9-CI10)/Inputs!B13/12","v":{"v":1128978.0980526644,"d":"$1,128,978"}},{"$f":"CJ10+'(Other Computations)'!B61*(CJ9-CJ10)/Inputs!B13/12","v":{"v":1128509.2938347543,"d":"$1,128,509"}},{"$f":"CK10+'(Other Computations)'!B61*(CK9-CK10)/Inputs!B13/12","v":{"v":1127927.4422827272,"d":"$1,127,927"}},{"$f":"CL10+'(Other Computations)'!B61*(CL9-CL10)/Inputs!B13/12","v":{"v":1127520.6648995727,"d":"$1,127,521"}},{"$f":"SUM(CB10:CM10)","v":{"v":13561723.125948163,"d":"$13,561,723"}},{"$f":"CM10+'(Other Computations)'!B61*(CM9-CM10)/Inputs!B13/12","v":{"v":1127051.0650954125,"d":"$1,127,051"}},{"$f":"CO10+'(Other Computations)'!B61*(CO9-CO10)/Inputs!B13/12","v":{"v":1126512.887943466,"d":"$1,126,513"}},{"$f":"CP10+'(Other Computations)'!B61*(CP9-CP10)/Inputs!B13/12","v":{"v":1126105.867135557,"d":"$1,126,106"}},{"$f":"CQ10+'(Other Computations)'!B61*(CQ9-CQ10)/Inputs!B13/12","v":{"v":1125500.2120541297,"d":"$1,125,500"}},{"$f":"CR10+'(Other Computations)'!B61*(CR9-CR10)/Inputs!B13/12","v":{"v":1125019.9953784735,"d":"$1,125,020"}},{"$f":"CS10+'(Other Computations)'!B61*(CS9-CS10)/Inputs!B13/12","v":{"v":1124433.154044466,"d":"$1,124,433"}},{"$f":"CT10+'(Other Computations)'!B61*(CT9-CT10)/Inputs!B13/12","v":{"v":1123983.2810920668,"d":"$1,123,983"}},{"$f":"CU10+'(Other Computations)'!B61*(CU9-CU10)/Inputs!B13/12","v":{"v":1123422.0322880817,"d":"$1,123,422"}},{"$f":"CV10+'(Other Computations)'!B61*(CV9-CV10)/Inputs!B13/12","v":{"v":1122967.8506780418,"d":"$1,122,968"}},{"$f":"CW10+'(Other Computations)'!B61*(CW9-CW10)/Inputs!B13/12","v":{"v":1122389.772400952,"d":"$1,122,390"}},{"$f":"CX10+'(Other Computations)'!B61*(CX9-CX10)/Inputs!B13/12","v":{"v":1121999.0478774975,"d":"$1,121,999"}},{"$f":"CY10+'(Other Computations)'!B61*(CY9-CY10)/Inputs!B13/12","v":{"v":1121626.1360634307,"d":"$1,121,626"}},{"$f":"SUM(CO10:CZ10)","v":{"v":13491011.302051578,"d":"$13,491,011"}},{"$f":"CZ10+'(Other Computations)'!B61*(CZ9-CZ10)/Inputs!B13/12","v":{"v":1121044.787070587,"d":"$1,121,045"}},{"$f":"DB10+'(Other Computations)'!B61*(DB9-DB10)/Inputs!B13/12","v":{"v":1120578.5197429208,"d":"$1,120,579"}},{"$f":"DC10+'(Other Computations)'!B61*(DC9-DC10)/Inputs!B13/12","v":{"v":1120155.8592630762,"d":"$1,120,156"}},{"$f":"DD10+'(Other Computations)'!B61*(DD9-DD10)/Inputs!B13/12","v":{"v":1119687.1458320876,"d":"$1,119,687"}},{"$f":"DE10+'(Other Computations)'!B61*(DE9-DE10)/Inputs!B13/12","v":{"v":1119276.0284692012,"d":"$1,119,276"}},{"$f":"DF10+'(Other Computations)'!B61*(DF9-DF10)/Inputs!B13/12","v":{"v":1118859.743546374,"d":"$1,118,860"}},{"$f":"DG10+'(Other Computations)'!B61*(DG9-DG10)/Inputs!B13/12","v":{"v":1118356.371426937,"d":"$1,118,356"}},{"$f":"DH10+'(Other Computations)'!B61*(DH9-DH10)/Inputs!B13/12","v":{"v":1117920.347367263,"d":"$1,117,920"}},{"$f":"DI10+'(Other Computations)'!B61*(DI9-DI10)/Inputs!B13/12","v":{"v":1117380.3318182745,"d":"$1,117,380"}},{"$f":"DJ10+'(Other Computations)'!B61*(DJ9-DJ10)/Inputs!B13/12","v":{"v":1116946.4871359312,"d":"$1,116,946"}},{"$f":"DK10+'(Other Computations)'!B61*(DK9-DK10)/Inputs!B13/12","v":{"v":1116583.116175992,"d":"$1,116,583"}},{"$f":"DL10+'(Other Computations)'!B61*(DL9-DL10)/Inputs!B13/12","v":{"v":1116026.3239473815,"d":"$1,116,026"}},{"$f":"SUM(DB10:DM10)","v":{"v":13422815.061796028,"d":"$13,422,815"}},{"$f":"DM10+'(Other Computations)'!B61*(DM9-DM10)/Inputs!B13/12","v":{"v":1115571.6158703014,"d":"$1,115,572"}},{"$f":"DO10+'(Other Computations)'!B61*(DO9-DO10)/Inputs!B13/12","v":{"v":1115204.9428234515,"d":"$1,115,205"}},{"$f":"DP10+'(Other Computations)'!B61*(DP9-DP10)/Inputs!B13/12","v":{"v":1114699.0966257264,"d":"$1,114,699"}},{"$f":"DQ10+'(Other Computations)'!B61*(DQ9-DQ10)/Inputs!B13/12","v":{"v":1114259.5887873974,"d":"$1,114,260"}},{"$f":"DR10+'(Other Computations)'!B61*(DR9-DR10)/Inputs!B13/12","v":{"v":1113802.753283255,"d":"$1,113,803"}},{"$f":"DS10+'(Other Computations)'!B61*(DS9-DS10)/Inputs!B13/12","v":{"v":1113310.0510720557,"d":"$1,113,310"}},{"$f":"DT10+'(Other Computations)'!B61*(DT9-DT10)/Inputs!B13/12","v":{"v":1112812.0325550456,"d":"$1,112,812"}},{"$f":"DU10+'(Other Computations)'!B61*(DU9-DU10)/Inputs!B13/12","v":{"v":1112371.1016513458,"d":"$1,112,371"}},{"$f":"DV10+'(Other Computations)'!B61*(DV9-DV10)/Inputs!B13/12","v":{"v":1111816.616486057,"d":"$1,111,817"}},{"$f":"DW10+'(Other Computations)'!B61*(DW9-DW10)/Inputs!B13/12","v":{"v":1111287.85339494,"d":"$1,111,288"}},{"$f":"DX10+'(Other Computations)'!B61*(DX9-DX10)/Inputs!B13/12","v":{"v":1110893.8445873444,"d":"$1,110,894"}},{"$f":"DY10+'(Other Computations)'!B61*(DY9-DY10)/Inputs!B13/12","v":{"v":1110475.3944414174,"d":"$1,110,475"}},{"$f":"SUM(DO10:DZ10)","v":{"v":13356504.891578339,"d":"$13,356,505"}},{"$f":"DZ10+'(Other Computations)'!B61*(DZ9-DZ10)/Inputs!B13/12","v":{"v":1109950.5711281407,"d":"$1,109,951"}},{"$f":"EB10+'(Other Computations)'!B61*(EB9-EB10)/Inputs!B13/12","v":{"v":1109508.516227764,"d":"$1,109,509"}},{"$f":"EC10+'(Other Computations)'!B61*(EC9-EC10)/Inputs!B13/12","v":{"v":1109031.5840801396,"d":"$1,109,032"}},{"$f":"ED10+'(Other Computations)'!B61*(ED9-ED10)/Inputs!B13/12","v":{"v":1108555.9766421493,"d":"$1,108,556"}},{"$f":"EE10+'(Other Computations)'!B61*(EE9-EE10)/Inputs!B13/12","v":{"v":1107980.7389500416,"d":"$1,107,981"}},{"$f":"EF10+'(Other Computations)'!B61*(EF9-EF10)/Inputs!B13/12","v":{"v":1107496.653382719,"d":"$1,107,497"}},{"$f":"EG10+'(Other Computations)'!B61*(EG9-EG10)/Inputs!B13/12","v":{"v":1106996.4789496462,"d":"$1,106,996"}},{"$f":"EH10+'(Other Computations)'!B61*(EH9-EH10)/Inputs!B13/12","v":{"v":1106510.6308003557,"d":"$1,106,511"}},{"$f":"EI10+'(Other Computations)'!B61*(EI9-EI10)/Inputs!B13/12","v":{"v":1105968.3852368798,"d":"$1,105,968"}},{"$f":"EJ10+'(Other Computations)'!B61*(EJ9-EJ10)/Inputs!B13/12","v":{"v":1105513.3081017695,"d":"$1,105,513"}},{"$f":"EK10+'(Other Computations)'!B61*(EK9-EK10)/Inputs!B13/12","v":{"v":1105021.867369149,"d":"$1,105,022"}},{"$f":"EL10+'(Other Computations)'!B61*(EL9-EL10)/Inputs!B13/12","v":{"v":1104470.4844470806,"d":"$1,104,470"}},{"$f":"SUM(EB10:EM10)","v":{"v":13287005.195315836,"d":"$13,287,005"}}]
[{"$f":"Labels!B34","v":"Short Expected Demand"},{"$f":"'(Other Computations)'!B8+'(Other Computations)'!B61*0/Inputs!B14/12","v":{"v":1166666.6666666667,"d":"$1,166,667"}},{"$f":"B11+'(Other Computations)'!B61*(B9-B11)/Inputs!B14/12","v":{"v":1163520.2600450728,"d":"$1,163,520"}},{"$f":"C11+'(Other Computations)'!B61*(C9-C11)/Inputs!B14/12","v":{"v":1161251.108371822,"d":"$1,161,251"}},{"$f":"D11+'(Other Computations)'!B61*(D9-D11)/Inputs!B14/12","v":{"v":1158772.5085246568,"d":"$1,158,773"}},{"$f":"E11+'(Other Computations)'!B61*(E9-E11)/Inputs!B14/12","v":{"v":1156041.2069612886,"d":"$1,156,041"}},{"$f":"F11+'(Other Computations)'!B61*(F9-F11)/Inputs!B14/12","v":{"v":1154032.8594555801,"d":"$1,154,033"}},{"$f":"G11+'(Other Computations)'!B61*(G9-G11)/Inputs!B14/12","v":{"v":1151614.3105820261,"d":"$1,151,614"}},{"$f":"H11+'(Other Computations)'!B61*(H9-H11)/Inputs!B14/12","v":{"v":1148798.3353250064,"d":"$1,148,798"}},{"$f":"I11+'(Other Computations)'!B61*(I9-I11)/Inputs!B14/12","v":{"v":1146154.7319460667,"d":"$1,146,155"}},{"$f":"J11+'(Other Computations)'!B61*(J9-J11)/Inputs!B14/12","v":{"v":1143787.3080707442,"d":"$1,143,787"}},{"$f":"K11+'(Other Computations)'!B61*(K9-K11)/Inputs!B14/12","v":{"v":1142044.9034624333,"d":"$1,142,045"}},{"$f":"L11+'(Other Computations)'!B61*(L9-L11)/Inputs!B14/12","v":{"v":1140019.5626520626,"d":"$1,140,020"}},{"$f":"SUM(B11:M11)","v":{"v":13832703.762063425,"d":"$13,832,704"}},{"$f":"M11+'(Other Computations)'!B61*(M9-M11)/Inputs!B14/12","v":{"v":1137795.8122563933,"d":"$1,137,796"}},{"$f":"O11+'(Other Computations)'!B61*(O9-O11)/Inputs!B14/12","v":{"v":1135136.3824109647,"d":"$1,135,136"}},{"$f":"P11+'(Other Computations)'!B61*(P9-P11)/Inputs!B14/12","v":{"v":1132758.322346151,"d":"$1,132,758"}},{"$f":"Q11+'(Other Computations)'!B61*(Q9-Q11)/Inputs!B14/12","v":{"v":1129500.9189307955,"d":"$1,129,501"}},{"$f":"R11+'(Other Computations)'!B61*(R9-R11)/Inputs!B14/12","v":{"v":1127394.827792006,"d":"$1,127,395"}},{"$f":"S11+'(Other Computations)'!B61*(S9-S11)/Inputs!B14/12","v":{"v":1124316.7088739744,"d":"$1,124,317"}},{"$f":"T11+'(Other Computations)'!B61*(T9-T11)/Inputs!B14/12","v":{"v":1121557.876433266,"d":"$1,121,558"}},{"$f":"U11+'(Other Computations)'!B61*(U9-U11)/Inputs!B14/12","v":{"v":1118621.54494272,"d":"$1,118,622"}},{"$f":"V11+'(Other Computations)'!B61*(V9-V11)/Inputs!B14/12","v":{"v":1115704.1039405423,"d":"$1,115,704"}},{"$f":"W11+'(Other Computations)'!B61*(W9-W11)/Inputs!B14/12","v":{"v":1113267.5231474116,"d":"$1,113,268"}},{"$f":"X11+'(Other Computations)'!B61*(X9-X11)/Inputs!B14/12","v":{"v":1110981.6690079845,"d":"$1,110,982"}},{"$f":"Y11+'(Other Computations)'!B61*(Y9-Y11)/Inputs!B14/12","v":{"v":1109388.7525702198,"d":"$1,109,389"}},{"$f":"SUM(O11:Z11)","v":{"v":13476424.442652429,"d":"$13,476,424"}},{"$f":"Z11+'(Other Computations)'!B61*(Z9-Z11)/Inputs!B14/12","v":{"v":1106901.534487083,"d":"$1,106,902"}},{"$f":"AB11+'(Other Computations)'!B61*(AB9-AB11)/Inputs!B14/12","v":{"v":1104810.3767773705,"d":"$1,104,810"}},{"$f":"AC11+'(Other Computations)'!B61*(AC9-AC11)/Inputs!B14/12","v":{"v":1103530.4028897905,"d":"$1,103,530"}},{"$f":"AD11+'(Other Computations)'!B61*(AD9-AD11)/Inputs!B14/12","v":{"v":1101154.0450889734,"d":"$1,101,154"}},{"$f":"AE11+'(Other Computations)'!B61*(AE9-AE11)/Inputs!B14/12","v":{"v":1098630.2267185159,"d":"$1,098,630"}},{"$f":"AF11+'(Other Computations)'!B61*(AF9-AF11)/Inputs!B14/12","v":{"v":1096555.5954039118,"d":"$1,096,556"}},{"$f":"AG11+'(Other Computations)'!B61*(AG9-AG11)/Inputs!B14/12","v":{"v":1094453.0611785129,"d":"$1,094,453"}},{"$f":"AH11+'(Other Computations)'!B61*(AH9-AH11)/Inputs!B14/12","v":{"v":1092658.4608327677,"d":"$1,092,658"}},{"$f":"AI11+'(Other Computations)'!B61*(AI9-AI11)/Inputs!B14/12","v":{"v":1090476.3686753458,"d":"$1,090,476"}},{"$f":"AJ11+'(Other Computations)'!B61*(AJ9-AJ11)/Inputs!B14/12","v":{"v":1089182.6921932532,"d":"$1,089,183"}},{"$f":"AK11+'(Other Computations)'!B61*(AK9-AK11)/Inputs!B14/12","v":{"v":1087362.0394967177,"d":"$1,087,362"}},{"$f":"AL11+'(Other Computations)'!B61*(AL9-AL11)/Inputs!B14/12","v":{"v":1085282.093068625,"d":"$1,085,282"}},{"$f":"SUM(AB11:AM11)","v":{"v":13150996.896810869,"d":"$13,150,997"}},{"$f":"AM11+'(Other Computations)'!B61*(AM9-AM11)/Inputs!B14/12","v":{"v":1082916.0207559448,"d":"$1,082,916"}},{"$f":"AO11+'(Other Computations)'!B61*(AO9-AO11)/Inputs!B14/12","v":{"v":1080579.2521014041,"d":"$1,080,579"}},{"$f":"AP11+'(Other Computations)'!B61*(AP9-AP11)/Inputs!B14/12","v":{"v":1079549.448086143,"d":"$1,079,549"}},{"$f":"AQ11+'(Other Computations)'!B61*(AQ9-AQ11)/Inputs!B14/12","v":{"v":1077152.9631864368,"d":"$1,077,153"}},{"$f":"AR11+'(Other Computations)'!B61*(AR9-AR11)/Inputs!B14/12","v":{"v":1075729.621317679,"d":"$1,075,730"}},{"$f":"AS11+'(Other Computations)'!B61*(AS9-AS11)/Inputs!B14/12","v":{"v":1074003.9572843523,"d":"$1,074,004"}},{"$f":"AT11+'(Other Computations)'!B61*(AT9-AT11)/Inputs!B14/12","v":{"v":1072578.8456540066,"d":"$1,072,579"}},{"$f":"AU11+'(Other Computations)'!B61*(AU9-AU11)/Inputs!B14/12","v":{"v":1070737.4089857747,"d":"$1,070,737"}},{"$f":"AV11+'(Other Computations)'!B61*(AV9-AV11)/Inputs!B14/12","v":{"v":1068655.683276922,"d":"$1,068,656"}},{"$f":"AW11+'(Other Computations)'!B61*(AW9-AW11)/Inputs!B14/12","v":{"v":1066887.4427405035,"d":"$1,066,887"}},{"$f":"AX11+'(Other Computations)'!B61*(AX9-AX11)/Inputs!B14/12","v":{"v":1065743.9009460846,"d":"$1,065,744"}},{"$f":"AY11+'(Other Computations)'!B61*(AY9-AY11)/Inputs!B14/12","v":{"v":1064235.6831987859,"d":"$1,064,236"}},{"$f":"SUM(AO11:AZ11)","v":{"v":12878770.227534037,"d":"$12,878,770"}},{"$f":"AZ11+'(Other Computations)'!B61*(AZ9-AZ11)/Inputs!B14/12","v":{"v":1062051.7129362735,"d":"$1,062,052"}},{"$f":"BB11+'(Other Computations)'!B61*(BB9-BB11)/Inputs!B14/12","v":{"v":1059846.4261856338,"d":"$1,059,846"}},{"$f":"BC11+'(Other Computations)'!B61*(BC9-BC11)/Inputs!B14/12","v":{"v":1058283.098994894,"d":"$1,058,283"}},{"$f":"BD11+'(Other Computations)'!B61*(BD9-BD11)/Inputs!B14/12","v":{"v":1056409.3090442123,"d":"$1,056,409"}},{"$f":"BE11+'(Other Computations)'!B61*(BE9-BE11)/Inputs!B14/12","v":{"v":1055242.03296133,"d":"$1,055,242"}},{"$f":"BF11+'(Other Computations)'!B61*(BF9-BF11)/Inputs!B14/12","v":{"v":1053813.1741708266,"d":"$1,053,813"}},{"$f":"BG11+'(Other Computations)'!B61*(BG9-BG11)/Inputs!B14/12","v":{"v":1052372.7632332966,"d":"$1,052,373"}},{"$f":"BH11+'(Other Computations)'!B61*(BH9-BH11)/Inputs!B14/12","v":{"v":1051058.9175196907,"d":"$1,051,059"}},{"$f":"BI11+'(Other Computations)'!B61*(BI9-BI11)/Inputs!B14/12","v":{"v":1049358.9535686278,"d":"$1,049,359"}},{"$f":"BJ11+'(Other Computations)'!B61*(BJ9-BJ11)/Inputs!B14/12","v":{"v":1047653.8820411545,"d":"$1,047,654"}},{"$f":"BK11+'(Other Computations)'!B61*(BK9-BK11)/Inputs!B14/12","v":{"v":1045501.7006943163,"d":"$1,045,502"}},{"$f":"BL11+'(Other Computations)'!B61*(BL9-BL11)/Inputs!B14/12","v":{"v":1044133.719042564,"d":"$1,044,134"}},{"$f":"SUM(BB11:BM11)","v":{"v":12635725.690392822,"d":"$12,635,726"}},{"$f":"BM11+'(Other Computations)'!B61*(BM9-BM11)/Inputs!B14/12","v":{"v":1042209.5100521324,"d":"$1,042,210"}},{"$f":"BO11+'(Other Computations)'!B61*(BO9-BO11)/Inputs!B14/12","v":{"v":1040970.0527031104,"d":"$1,040,970"}},{"$f":"BP11+'(Other Computations)'!B61*(BP9-BP11)/Inputs!B14/12","v":{"v":1039224.6199968216,"d":"$1,039,225"}},{"$f":"BQ11+'(Other Computations)'!B61*(BQ9-BQ11)/Inputs!B14/12","v":{"v":1038502.4894443989,"d":"$1,038,502"}},{"$f":"BR11+'(Other Computations)'!B61*(BR9-BR11)/Inputs!B14/12","v":{"v":1037360.4589976973,"d":"$1,037,360"}},{"$f":"BS11+'(Other Computations)'!B61*(BS9-BS11)/Inputs!B14/12","v":{"v":1035977.7301255352,"d":"$1,035,978"}},{"$f":"BT11+'(Other Computations)'!B61*(BT9-BT11)/Inputs!B14/12","v":{"v":1033920.457145275,"d":"$1,033,920"}},{"$f":"BU11+'(Other Computations)'!B61*(BU9-BU11)/Inputs!B14/12","v":{"v":1032066.6907326696,"d":"$1,032,067"}},{"$f":"BV11+'(Other Computations)'!B61*(BV9-BV11)/Inputs!B14/12","v":{"v":1030531.2765594013,"d":"$1,030,531"}},{"$f":"BW11+'(Other Computations)'!B61*(BW9-BW11)/Inputs!B14/12","v":{"v":1029578.51868122,"d":"$1,029,579"}},{"$f":"BX11+'(Other Computations)'!B61*(BX9-BX11)/Inputs!B14/12","v":{"v":1027755.7442401398,"d":"$1,027,756"}},{"$f":"BY11+'(Other Computations)'!B61*(BY9-BY11)/Inputs!B14/12","v":{"v":1025791.5028302363,"d":"$1,025,792"}},{"$f":"SUM(BO11:BZ11)","v":{"v":12413889.051508639,"d":"$12,413,889"}},{"$f":"BZ11+'(Other Computations)'!B61*(BZ9-BZ11)/Inputs!B14/12","v":{"v":1024922.1400727367,"d":"$1,024,922"}},{"$f":"CB11+'(Other Computations)'!B61*(CB9-CB11)/Inputs!B14/12","v":{"v":1023497.1613296288,"d":"$1,023,497"}},{"$f":"CC11+'(Other Computations)'!B61*(CC9-CC11)/Inputs!B14/12","v":{"v":1021602.2032002064,"d":"$1,021,602"}},{"$f":"CD11+'(Other Computations)'!B61*(CD9-CD11)/Inputs!B14/12","v":{"v":1020844.9707169031,"d":"$1,020,845"}},{"$f":"CE11+'(Other Computations)'!B61*(CE9-CE11)/Inputs!B14/12","v":{"v":1019113.9196853843,"d":"$1,019,114"}},{"$f":"CF11+'(Other Computations)'!B61*(CF9-CF11)/Inputs!B14/12","v":{"v":1017804.3783332238,"d":"$1,017,804"}},{"$f":"CG11+'(Other Computations)'!B61*(CG9-CG11)/Inputs!B14/12","v":{"v":1016712.0801942387,"d":"$1,016,712"}},{"$f":"CH11+'(Other Computations)'!B61*(CH9-CH11)/Inputs!B14/12","v":{"v":1015409.6926396212,"d":"$1,015,410"}},{"$f":"CI11+'(Other Computations)'!B61*(CI9-CI11)/Inputs!B14/12","v":{"v":1014274.0840854328,"d":"$1,014,274"}},{"$f":"CJ11+'(Other Computations)'!B61*(CJ9-CJ11)/Inputs!B14/12","v":{"v":1013054.3700830721,"d":"$1,013,054"}},{"$f":"CK11+'(Other Computations)'!B61*(CK9-CK11)/Inputs!B14/12","v":{"v":1011166.8013785727,"d":"$1,011,167"}},{"$f":"CL11+'(Other Computations)'!B61*(CL9-CL11)/Inputs!B14/12","v":{"v":1010347.8126477585,"d":"$1,010,348"}},{"$f":"SUM(CB11:CM11)","v":{"v":12208749.614366777,"d":"$12,208,750"}},{"$f":"CM11+'(Other Computations)'!B61*(CM9-CM11)/Inputs!B14/12","v":{"v":1009157.6145485173,"d":"$1,009,158"}},{"$f":"CO11+'(Other Computations)'!B61*(CO9-CO11)/Inputs!B14/12","v":{"v":1007565.9606722113,"d":"$1,007,566"}},{"$f":"CP11+'(Other Computations)'!B61*(CP9-CP11)/Inputs!B14/12","v":{"v":1006775.8764813038,"d":"$1,006,776"}},{"$f":"CQ11+'(Other Computations)'!B61*(CQ9-CQ11)/Inputs!B14/12","v":{"v":1004799.3069740483,"d":"$1,004,799"}},{"$f":"CR11+'(Other Computations)'!B61*(CR9-CR11)/Inputs!B14/12","v":{"v":1003594.4083795573,"d":"$1,003,594"}},{"$f":"CS11+'(Other Computations)'!B61*(CS9-CS11)/Inputs!B14/12","v":{"v":1001759.8268616081,"d":"$1,001,760"}},{"$f":"CT11+'(Other Computations)'!B61*(CT9-CT11)/Inputs!B14/12","v":{"v":1000764.3853580856,"d":"$1,000,764"}},{"$f":"CU11+'(Other Computations)'!B61*(CU9-CU11)/Inputs!B14/12","v":{"v":999108.2660860355,"d":"$999,108"}},{"$f":"CV11+'(Other Computations)'!B61*(CV9-CV11)/Inputs!B14/12","v":{"v":998109.7565119351,"d":"$998,110"}},{"$f":"CW11+'(Other Computations)'!B61*(CW9-CW11)/Inputs!B14/12","v":{"v":996375.4270461474,"d":"$996,375"}},{"$f":"CX11+'(Other Computations)'!B61*(CX9-CX11)/Inputs!B14/12","v":{"v":995781.2791464601,"d":"$995,781"}},{"$f":"CY11+'(Other Computations)'!B61*(CY9-CY11)/Inputs!B14/12","v":{"v":995296.8328277678,"d":"$995,297"}},{"$f":"SUM(CO11:CZ11)","v":{"v":12019088.940893678,"d":"$12,019,089"}},{"$f":"CZ11+'(Other Computations)'!B61*(CZ9-CZ11)/Inputs!B14/12","v":{"v":993563.312526757,"d":"$993,563"}},{"$f":"DB11+'(Other Computations)'!B61*(DB9-DB11)/Inputs!B14/12","v":{"v":992536.2845960899,"d":"$992,536"}},{"$f":"DC11+'(Other Computations)'!B61*(DC9-DC11)/Inputs!B14/12","v":{"v":991778.6860940619,"d":"$991,779"}},{"$f":"DD11+'(Other Computations)'!B61*(DD9-DD11)/Inputs!B14/12","v":{"v":990749.4218021445,"d":"$990,749"}},{"$f":"DE11+'(Other Computations)'!B61*(DE9-DE11)/Inputs!B14/12","v":{"v":990073.519347464,"d":"$990,074"}},{"$f":"DF11+'(Other Computations)'!B61*(DF9-DF11)/Inputs!B14/12","v":{"v":989370.2891038576,"d":"$989,370"}},{"$f":"DG11+'(Other Computations)'!B61*(DG9-DG11)/Inputs!B14/12","v":{"v":988148.5210322703,"d":"$988,149"}},{"$f":"DH11+'(Other Computations)'!B61*(DH9-DH11)/Inputs!B14/12","v":{"v":987340.8190408194,"d":"$987,341"}},{"$f":"DI11+'(Other Computations)'!B61*(DI9-DI11)/Inputs!B14/12","v":{"v":985914.3303069776,"d":"$985,914"}},{"$f":"DJ11+'(Other Computations)'!B61*(DJ9-DJ11)/Inputs!B14/12","v":{"v":985137.1789005743,"d":"$985,137"}},{"$f":"DK11+'(Other Computations)'!B61*(DK9-DK11)/Inputs!B14/12","v":{"v":984787.637977541,"d":"$984,788"}},{"$f":"DL11+'(Other Computations)'!B61*(DL9-DL11)/Inputs!B14/12","v":{"v":983277.3773586345,"d":"$983,277"}},{"$f":"SUM(DB11:DM11)","v":{"v":11862677.378087189,"d":"$11,862,677"}},{"$f":"DM11+'(Other Computations)'!B61*(DM9-DM11)/Inputs!B14/12","v":{"v":982392.864265442,"d":"$982,393"}},{"$f":"DO11+'(Other Computations)'!B61*(DO9-DO11)/Inputs!B14/12","v":{"v":982042.530867743,"d":"$982,043"}},{"$f":"DP11+'(Other Computations)'!B61*(DP9-DP11)/Inputs!B14/12","v":{"v":980856.931625222,"d":"$980,857"}},{"$f":"DQ11+'(Other Computations)'!B61*(DQ9-DQ11)/Inputs!B14/12","v":{"v":980078.803553588,"d":"$980,079"}},{"$f":"DR11+'(Other Computations)'!B61*(DR9-DR11)/Inputs!B14/12","v":{"v":979201.4125458696,"d":"$979,201"}},{"$f":"DS11+'(Other Computations)'!B61*(DS9-DS11)/Inputs!B14/12","v":{"v":978114.6623444705,"d":"$978,115"}},{"$f":"DT11+'(Other Computations)'!B61*(DT9-DT11)/Inputs!B14/12","v":{"v":977004.2649747372,"d":"$977,004"}},{"$f":"DU11+'(Other Computations)'!B61*(DU9-DU11)/Inputs!B14/12","v":{"v":976244.8985467103,"d":"$976,245"}},{"$f":"DV11+'(Other Computations)'!B61*(DV9-DV11)/Inputs!B14/12","v":{"v":974808.629264764,"d":"$974,809"}},{"$f":"DW11+'(Other Computations)'!B61*(DW9-DW11)/Inputs!B14/12","v":{"v":973538.9394294696,"d":"$973,539"}},{"$f":"DX11+'(Other Computations)'!B61*(DX9-DX11)/Inputs!B14/12","v":{"v":973088.0659445272,"d":"$973,088"}},{"$f":"DY11+'(Other Computations)'!B61*(DY9-DY11)/Inputs!B14/12","v":{"v":972491.3342167813,"d":"$972,491"}},{"$f":"SUM(DO11:DZ11)","v":{"v":11729863.337579325,"d":"$11,729,863"}},{"$f":"DZ11+'(Other Computations)'!B61*(DZ9-DZ11)/Inputs!B14/12","v":{"v":971258.8396180182,"d":"$971,259"}},{"$f":"EB11+'(Other Computations)'!B61*(EB9-EB11)/Inputs!B14/12","v":{"v":970532.7842645108,"d":"$970,533"}},{"$f":"EC11+'(Other Computations)'!B61*(EC9-EC11)/Inputs!B14/12","v":{"v":969601.4098782538,"d":"$969,601"}},{"$f":"ED11+'(Other Computations)'!B61*(ED9-ED11)/Inputs!B14/12","v":{"v":968684.2954475594,"d":"$968,684"}},{"$f":"EE11+'(Other Computations)'!B61*(EE9-EE11)/Inputs!B14/12","v":{"v":967175.5315337277,"d":"$967,176"}},{"$f":"EF11+'(Other Computations)'!B61*(EF9-EF11)/Inputs!B14/12","v":{"v":966226.6460105737,"d":"$966,227"}},{"$f":"EG11+'(Other Computations)'!B61*(EG9-EG11)/Inputs!B14/12","v":{"v":965187.6828478618,"d":"$965,188"}},{"$f":"EH11+'(Other Computations)'!B61*(EH9-EH11)/Inputs!B14/12","v":{"v":964242.1605646436,"d":"$964,242"}},{"$f":"EI11+'(Other Computations)'!B61*(EI9-EI11)/Inputs!B14/12","v":{"v":962964.6381592843,"d":"$962,965"}},{"$f":"EJ11+'(Other Computations)'!B61*(EJ9-EJ11)/Inputs!B14/12","v":{"v":962220.3385024776,"d":"$962,220"}},{"$f":"EK11+'(Other Computations)'!B61*(EK9-EK11)/Inputs!B14/12","v":{"v":961261.8742400792,"d":"$961,262"}},{"$f":"EL11+'(Other Computations)'!B61*(EL9-EL11)/Inputs!B14/12","v":{"v":959950.243278905,"d":"$959,950"}},{"$f":"SUM(EB11:EM11)","v":{"v":11589306.444345897,"d":"$11,589,306"}}]
[{"$f":"Labels!B24","v":"Consumption"},{"$f":"Inputs!B34*'(Other Computations)'!B50","v":{"v":728000,"d":"$728,000"}},{"$f":"Inputs!B34*'(Other Computations)'!C50","v":{"v":727832.6492085445,"d":"$727,833"}},{"$f":"Inputs!B34*'(Other Computations)'!D50","v":{"v":727541.2255367488,"d":"$727,541"}},{"$f":"Inputs!B34*'(Other Computations)'!E50","v":{"v":727336.3538515164,"d":"$727,336"}},{"$f":"Inputs!B34*'(Other Computations)'!F50","v":{"v":727093.1956668834,"d":"$727,093"}},{"$f":"Inputs!B34*'(Other Computations)'!G50","v":{"v":726862.8352431082,"d":"$726,863"}},{"$f":"Inputs!B34*'(Other Computations)'!H50","v":{"v":726646.4380292482,"d":"$726,646"}},{"$f":"Inputs!B34*'(Other Computations)'!I50","v":{"v":726469.4787142742,"d":"$726,469"}},{"$f":"Inputs!B34*'(Other Computations)'!J50","v":{"v":726240.7646197481,"d":"$726,241"}},{"$f":"Inputs!B34*'(Other Computations)'!K50","v":{"v":726029.771763871,"d":"$726,030"}},{"$f":"Inputs!B34*'(Other Computations)'!L50","v":{"v":725818.3897609586,"d":"$725,818"}},{"$f":"Inputs!B34*'(Other Computations)'!M50","v":{"v":725590.0040755601,"d":"$725,590"}},{"$f":"SUM(B12:M12)","v":{"v":8721461.106470462,"d":"$8,721,461"}},{"$f":"Inputs!B34*'(Other Computations)'!O50","v":{"v":725413.4623357293,"d":"$725,413"}},{"$f":"Inputs!B34*'(Other Computations)'!P50","v":{"v":725146.8741572894,"d":"$725,147"}},{"$f":"Inputs!B34*'(Other Computations)'!Q50","v":{"v":724953.1027618427,"d":"$724,953"}},{"$f":"Inputs!B34*'(Other Computations)'!R50","v":{"v":724706.1441437142,"d":"$724,706"}},{"$f":"Inputs!B34*'(Other Computations)'!S50","v":{"v":724465.5266565881,"d":"$724,466"}},{"$f":"Inputs!B34*'(Other Computations)'!T50","v":{"v":724198.5994058314,"d":"$724,199"}},{"$f":"Inputs!B34*'(Other Computations)'!U50","v":{"v":723900.1368817012,"d":"$723,900"}},{"$f":"Inputs!B34*'(Other Computations)'!V50","v":{"v":723620.2681331143,"d":"$723,620"}},{"$f":"Inputs!B34*'(Other Computations)'!W50","v":{"v":723369.0431581875,"d":"$723,369"}},{"$f":"Inputs!B34*'(Other Computations)'!X50","v":{"v":723137.4996520058,"d":"$723,137"}},{"$f":"Inputs!B34*'(Other Computations)'!Y50","v":{"v":722890.2736541035,"d":"$722,890"}},{"$f":"Inputs!B34*'(Other Computations)'!Z50","v":{"v":722694.1787039854,"d":"$722,694"}},{"$f":"SUM(O12:Z12)","v":{"v":8688495.109644093,"d":"$8,688,495"}},{"$f":"Inputs!B34*'(Other Computations)'!AB50","v":{"v":722431.1630024448,"d":"$722,431"}},{"$f":"Inputs!B34*'(Other Computations)'!AC50","v":{"v":722163.3175799977,"d":"$722,163"}},{"$f":"Inputs!B34*'(Other Computations)'!AD50","v":{"v":721921.4266295972,"d":"$721,921"}},{"$f":"Inputs!B34*'(Other Computations)'!AE50","v":{"v":721715.001628829,"d":"$721,715"}},{"$f":"Inputs!B34*'(Other Computations)'!AF50","v":{"v":721412.9150669897,"d":"$721,413"}},{"$f":"Inputs!B34*'(Other Computations)'!AG50","v":{"v":721109.8611793566,"d":"$721,110"}},{"$f":"Inputs!B34*'(Other Computations)'!AH50","v":{"v":720857.9932831294,"d":"$720,858"}},{"$f":"Inputs!B34*'(Other Computations)'!AI50","v":{"v":720598.6568898153,"d":"$720,599"}},{"$f":"Inputs!B34*'(Other Computations)'!AJ50","v":{"v":720301.8149476653,"d":"$720,302"}},{"$f":"Inputs!B34*'(Other Computations)'!AK50","v":{"v":719988.0093381293,"d":"$719,988"}},{"$f":"Inputs!B34*'(Other Computations)'!AL50","v":{"v":719732.5860711231,"d":"$719,733"}},{"$f":"Inputs!B34*'(Other Computations)'!AM50","v":{"v":719515.5327477482,"d":"$719,516"}},{"$f":"SUM(AB12:AM12)","v":{"v":8651748.278364826,"d":"$8,651,748"}},{"$f":"Inputs!B34*'(Other Computations)'!AO50","v":{"v":719303.5230903772,"d":"$719,304"}},{"$f":"Inputs!B34*'(Other Computations)'!AP50","v":{"v":718942.1810429587,"d":"$718,942"}},{"$f":"Inputs!B34*'(Other Computations)'!AQ50","v":{"v":718654.4966402063,"d":"$718,654"}},{"$f":"Inputs!B34*'(Other Computations)'!AR50","v":{"v":718436.7788495173,"d":"$718,437"}},{"$f":"Inputs!B34*'(Other Computations)'!AS50","v":{"v":718140.1224980619,"d":"$718,140"}},{"$f":"Inputs!B34*'(Other Computations)'!AT50","v":{"v":717836.4192426656,"d":"$717,836"}},{"$f":"Inputs!B34*'(Other Computations)'!AU50","v":{"v":717526.8578453831,"d":"$717,527"}},{"$f":"Inputs!B34*'(Other Computations)'!AV50","v":{"v":717224.7510476018,"d":"$717,225"}},{"$f":"Inputs!B34*'(Other Computations)'!AW50","v":{"v":716985.417125937,"d":"$716,985"}},{"$f":"Inputs!B34*'(Other Computations)'!AX50","v":{"v":716685.6909681254,"d":"$716,686"}},{"$f":"Inputs!B34*'(Other Computations)'!AY50","v":{"v":716332.4774423817,"d":"$716,332"}},{"$f":"Inputs!B34*'(Other Computations)'!AZ50","v":{"v":716110.4932678768,"d":"$716,110"}},{"$f":"SUM(AO12:AZ12)","v":{"v":8612179.209061092,"d":"$8,612,179"}},{"$f":"Inputs!B34*'(Other Computations)'!BB50","v":{"v":715806.8045392719,"d":"$715,807"}},{"$f":"Inputs!B34*'(Other Computations)'!BC50","v":{"v":715482.3599108452,"d":"$715,482"}},{"$f":"Inputs!B34*'(Other Computations)'!BD50","v":{"v":715206.758816982,"d":"$715,207"}},{"$f":"Inputs!B34*'(Other Computations)'!BE50","v":{"v":714963.4858251271,"d":"$714,963"}},{"$f":"Inputs!B34*'(Other Computations)'!BF50","v":{"v":714700.4580140217,"d":"$714,700"}},{"$f":"Inputs!B34*'(Other Computations)'!BG50","v":{"v":714373.866233242,"d":"$714,374"}},{"$f":"Inputs!B34*'(Other Computations)'!BH50","v":{"v":714114.6532909247,"d":"$714,115"}},{"$f":"Inputs!B34*'(Other Computations)'!BI50","v":{"v":713860.63661446,"d":"$713,861"}},{"$f":"Inputs!B34*'(Other Computations)'!BJ50","v":{"v":713650.2620605121,"d":"$713,650"}},{"$f":"Inputs!B34*'(Other Computations)'!BK50","v":{"v":713414.2777837949,"d":"$713,414"}},{"$f":"Inputs!B34*'(Other Computations)'!BL50","v":{"v":713197.1975028695,"d":"$713,197"}},{"$f":"Inputs!B34*'(Other Computations)'!BM50","v":{"v":712930.1588234778,"d":"$712,930"}},{"$f":"SUM(BB12:BM12)","v":{"v":8571700.919415528,"d":"$8,571,701"}},{"$f":"Inputs!B34*'(Other Computations)'!BO50","v":{"v":712598.3228602847,"d":"$712,598"}},{"$f":"Inputs!B34*'(Other Computations)'!BP50","v":{"v":712350.384895082,"d":"$712,350"}},{"$f":"Inputs!B34*'(Other Computations)'!BQ50","v":{"v":712116.0600039647,"d":"$712,116"}},{"$f":"Inputs!B34*'(Other Computations)'!BR50","v":{"v":711799.8676631018,"d":"$711,800"}},{"$f":"Inputs!B34*'(Other Computations)'!BS50","v":{"v":711489.0795632104,"d":"$711,489"}},{"$f":"Inputs!B34*'(Other Computations)'!BT50","v":{"v":711142.4165757145,"d":"$711,142"}},{"$f":"Inputs!B34*'(Other Computations)'!BU50","v":{"v":710851.75239222,"d":"$710,852"}},{"$f":"Inputs!B34*'(Other Computations)'!BV50","v":{"v":710561.4017719263,"d":"$710,561"}},{"$f":"Inputs!B34*'(Other Computations)'!BW50","v":{"v":710256.7755657935,"d":"$710,257"}},{"$f":"Inputs!B34*'(Other Computations)'!BX50","v":{"v":709998.4297687318,"d":"$709,998"}},{"$f":"Inputs!B34*'(Other Computations)'!BY50","v":{"v":709661.365164572,"d":"$709,661"}},{"$f":"Inputs!B34*'(Other Computations)'!BZ50","v":{"v":709367.5205451878,"d":"$709,368"}},{"$f":"SUM(BO12:BZ12)","v":{"v":8532193.37676979,"d":"$8,532,193"}},{"$f":"Inputs!B34*'(Other Computations)'!CB50","v":{"v":709067.9569514117,"d":"$709,068"}},{"$f":"Inputs!B34*'(Other Computations)'!CC50","v":{"v":708762.1400174904,"d":"$708,762"}},{"$f":"Inputs!B34*'(Other Computations)'!CD50","v":{"v":708417.8122226644,"d":"$708,418"}},{"$f":"Inputs!B34*'(Other Computations)'!CE50","v":{"v":708040.0219465428,"d":"$708,040"}},{"$f":"Inputs!B34*'(Other Computations)'!CF50","v":{"v":707751.119998203,"d":"$707,751"}},{"$f":"Inputs!B34*'(Other Computations)'!CG50","v":{"v":707468.6710254251,"d":"$707,469"}},{"$f":"Inputs!B34*'(Other Computations)'!CH50","v":{"v":707123.4029909574,"d":"$707,123"}},{"$f":"Inputs!B34*'(Other Computations)'!CI50","v":{"v":706838.7274616556,"d":"$706,839"}},{"$f":"Inputs!B34*'(Other Computations)'!CJ50","v":{"v":706456.739011698,"d":"$706,457"}},{"$f":"Inputs!B34*'(Other Computations)'!CK50","v":{"v":706124.6524647055,"d":"$706,125"}},{"$f":"Inputs!B34*'(Other Computations)'!CL50","v":{"v":705840.2369359623,"d":"$705,840"}},{"$f":"Inputs!B34*'(Other Computations)'!CM50","v":{"v":705544.0697088464,"d":"$705,544"}},{"$f":"SUM(CB12:CM12)","v":{"v":8487435.550735563,"d":"$8,487,436"}},{"$f":"Inputs!B34*'(Other Computations)'!CO50","v":{"v":705173.1447743592,"d":"$705,173"}},{"$f":"Inputs!B34*'(Other Computations)'!CP50","v":{"v":704777.3443501838,"d":"$704,777"}},{"$f":"Inputs!B34*'(Other Computations)'!CQ50","v":{"v":704466.9964199982,"d":"$704,467"}},{"$f":"Inputs!B34*'(Other Computations)'!CR50","v":{"v":704183.2442868962,"d":"$704,183"}},{"$f":"Inputs!B34*'(Other Computations)'!CS50","v":{"v":703861.3168346676,"d":"$703,861"}},{"$f":"Inputs!B34*'(Other Computations)'!CT50","v":{"v":703495.4953923519,"d":"$703,495"}},{"$f":"Inputs!B34*'(Other Computations)'!CU50","v":{"v":703129.771688923,"d":"$703,130"}},{"$f":"Inputs!B34*'(Other Computations)'!CV50","v":{"v":702754.9359706977,"d":"$702,755"}},{"$f":"Inputs!B34*'(Other Computations)'!CW50","v":{"v":702411.849416791,"d":"$702,412"}},{"$f":"Inputs!B34*'(Other Computations)'!CX50","v":{"v":702031.2113474907,"d":"$702,031"}},{"$f":"Inputs!B34*'(Other Computations)'!CY50","v":{"v":701636.0165415265,"d":"$701,636"}},{"$f":"Inputs!B34*'(Other Computations)'!CZ50","v":{"v":701340.663276057,"d":"$701,341"}},{"$f":"SUM(CO12:CZ12)","v":{"v":8439261.990299942,"d":"$8,439,262"}},{"$f":"Inputs!B34*'(Other Computations)'!DB50","v":{"v":701041.4002009855,"d":"$701,041"}},{"$f":"Inputs!B34*'(Other Computations)'!DC50","v":{"v":700646.8217840105,"d":"$700,647"}},{"$f":"Inputs!B34*'(Other Computations)'!DD50","v":{"v":700313.7762045995,"d":"$700,314"}},{"$f":"Inputs!B34*'(Other Computations)'!DE50","v":{"v":699991.9991635701,"d":"$699,992"}},{"$f":"Inputs!B34*'(Other Computations)'!DF50","v":{"v":699711.8876986959,"d":"$699,712"}},{"$f":"Inputs!B34*'(Other Computations)'!DG50","v":{"v":699318.2572907339,"d":"$699,318"}},{"$f":"Inputs!B34*'(Other Computations)'!DH50","v":{"v":698957.0063325627,"d":"$698,957"}},{"$f":"Inputs!B34*'(Other Computations)'!DI50","v":{"v":698666.7032392644,"d":"$698,667"}},{"$f":"Inputs!B34*'(Other Computations)'!DJ50","v":{"v":698337.3352231808,"d":"$698,337"}},{"$f":"Inputs!B34*'(Other Computations)'!DK50","v":{"v":698082.5248437176,"d":"$698,083"}},{"$f":"Inputs!B34*'(Other Computations)'!DL50","v":{"v":697746.2595666205,"d":"$697,746"}},{"$f":"Inputs!B34*'(Other Computations)'!DM50","v":{"v":697420.6021969762,"d":"$697,421"}},{"$f":"SUM(DB12:DM12)","v":{"v":8390234.57374492,"d":"$8,390,235"}},{"$f":"Inputs!B34*'(Other Computations)'!DO50","v":{"v":697143.9712240833,"d":"$697,144"}},{"$f":"Inputs!B34*'(Other Computations)'!DP50","v":{"v":696758.076669512,"d":"$696,758"}},{"$f":"Inputs!B34*'(Other Computations)'!DQ50","v":{"v":696372.3916615235,"d":"$696,372"}},{"$f":"Inputs!B34*'(Other Computations)'!DR50","v":{"v":696036.4932746333,"d":"$696,036"}},{"$f":"Inputs!B34*'(Other Computations)'!DS50","v":{"v":695696.3433446363,"d":"$695,696"}},{"$f":"Inputs!B34*'(Other Computations)'!DT50","v":{"v":695332.5950844638,"d":"$695,333"}},{"$f":"Inputs!B34*'(Other Computations)'!DU50","v":{"v":694978.1786282154,"d":"$694,978"}},{"$f":"Inputs!B34*'(Other Computations)'!DV50","v":{"v":694709.9996299236,"d":"$694,710"}},{"$f":"Inputs!B34*'(Other Computations)'!DW50","v":{"v":694406.5526644755,"d":"$694,407"}},{"$f":"Inputs!B34*'(Other Computations)'!DX50","v":{"v":694021.6165584446,"d":"$694,022"}},{"$f":"Inputs!B34*'(Other Computations)'!DY50","v":{"v":693644.1543524982,"d":"$693,644"}},{"$f":"Inputs!B34*'(Other Computations)'!DZ50","v":{"v":693297.0525832518,"d":"$693,297"}},{"$f":"SUM(DO12:DZ12)","v":{"v":8342397.425675661,"d":"$8,342,397"}},{"$f":"Inputs!B34*'(Other Computations)'!EB50","v":{"v":692961.9058783497,"d":"$692,962"}},{"$f":"Inputs!B34*'(Other Computations)'!EC50","v":{"v":692630.9686558668,"d":"$692,631"}},{"$f":"Inputs!B34*'(Other Computations)'!ED50","v":{"v":692241.7657389755,"d":"$692,242"}},{"$f":"Inputs!B34*'(Other Computations)'!EE50","v":{"v":691832.1717229036,"d":"$691,832"}},{"$f":"Inputs!B34*'(Other Computations)'!EF50","v":{"v":691545.5307272105,"d":"$691,546"}},{"$f":"Inputs!B34*'(Other Computations)'!EG50","v":{"v":691165.789000627,"d":"$691,166"}},{"$f":"Inputs!B34*'(Other Computations)'!EH50","v":{"v":690810.5101758918,"d":"$690,811"}},{"$f":"Inputs!B34*'(Other Computations)'!EI50","v":{"v":690509.5684334302,"d":"$690,510"}},{"$f":"Inputs!B34*'(Other Computations)'!EJ50","v":{"v":690120.2439181262,"d":"$690,120"}},{"$f":"Inputs!B34*'(Other Computations)'!EK50","v":{"v":689745.6793565617,"d":"$689,746"}},{"$f":"Inputs!B34*'(Other Computations)'!EL50","v":{"v":689354.654315927,"d":"$689,355"}},{"$f":"Inputs!B34*'(Other Computations)'!EM50","v":{"v":689005.6109411243,"d":"$689,006"}},{"$f":"SUM(EB12:EM12)","v":{"v":8291924.398864995,"d":"$8,291,924"}}]
[{"$f":"Labels!B74","v":"Aggregate Demand Shock"},{"$f":"NORMINV(RAND()*(1-2*Inputs!B58)+Inputs!B58,0,'(Other Computations)'!B208)","v":{"v":-23263.291170993074,"d":"($23,263)"}},{"$f":"NORMINV(RAND()*(1-2*Inputs!B58)+Inputs!B58,0,'(Other Computations)'!B208)","v":{"v":37352.58148735928,"d":"$37,353"}},{"$f":"NORMINV(RAND()*(1-2*Inputs!B58)+Inputs!B58,0,'(Other Computations)'!B208)","v":{"v":20599.54171157301,"d":"$20,600"}},{"$f":"NORMINV(RAND()*(1-2*Inputs!B58)+Inputs!B58,0,'(Other Computations)'!B208)","v":{"v":462.7448889584654,"d":"$463"}},{"$f":"NORMINV(RAND()*(1-2*Inputs!B58)+Inputs!B58,0,'(Other Computations)'!B208)","v":{"v":50390.09407522989,"d":"$50,390"}},{"$f":"NORMINV(RAND()*(1-2*Inputs!B58)+Inputs!B58,0,'(Other Computations)'!B208)","v":{"v":19337.335098716074,"d":"$19,337"}},{"$f":"NORMINV(RAND()*(1-2*Inputs!B58)+Inputs!B58,0,'(Other Computations)'!B208)","v":{"v":-11165.142729841102,"d":"($11,165)"}},{"$f":"NORMINV(RAND()*(1-2*Inputs!B58)+Inputs!B58,0,'(Other Computations)'!B208)","v":{"v":-1027.5579622681478,"d":"($1,028)"}},{"$f":"NORMINV(RAND()*(1-2*Inputs!B58)+Inputs!B58,0,'(Other Computations)'!B208)","v":{"v":16780.966761077627,"d":"$16,781"}},{"$f":"NORMINV(RAND()*(1-2*Inputs!B58)+Inputs!B58,0,'(Other Computations)'!B208)","v":{"v":59923.62802364573,"d":"$59,924"}},{"$f":"NORMINV(RAND()*(1-2*Inputs!B58)+Inputs!B58,0,'(Other Computations)'!B208)","v":{"v":38230.72942219271,"d":"$38,231"}},{"$f":"NORMINV(RAND()*(1-2*Inputs!B58)+Inputs!B58,0,'(Other Computations)'!B208)","v":{"v":22395.71198365138,"d":"$22,396"}},{"$f":"SUM(B13:M13)","v":{"v":230017.34158930182,"d":"$230,017"}},{"$f":"NORMINV(RAND()*(1-2*Inputs!B58)+Inputs!B58,0,'(Other Computations)'!B208)","v":{"v":-10747.810999262085,"d":"($10,748)"}},{"$f":"NORMINV(RAND()*(1-2*Inputs!B58)+Inputs!B58,0,'(Other Computations)'!B208)","v":{"v":7448.232611076895,"d":"$7,448"}},{"$f":"NORMINV(RAND()*(1-2*Inputs!B58)+Inputs!B58,0,'(Other Computations)'!B208)","v":{"v":-57760.17731524175,"d":"($57,760)"}},{"$f":"NORMINV(RAND()*(1-2*Inputs!B58)+Inputs!B58,0,'(Other Computations)'!B208)","v":{"v":22531.4540898322,"d":"$22,531"}},{"$f":"NORMINV(RAND()*(1-2*Inputs!B58)+Inputs!B58,0,'(Other Computations)'!B208)","v":{"v":-49074.732633205014,"d":"($49,075)"}},{"$f":"NORMINV(RAND()*(1-2*Inputs!B58)+Inputs!B58,0,'(Other Computations)'!B208)","v":{"v":-28518.99029125759,"d":"($28,519)"}},{"$f":"NORMINV(RAND()*(1-2*Inputs!B58)+Inputs!B58,0,'(Other Computations)'!B208)","v":{"v":-43428.56296360316,"d":"($43,429)"}},{"$f":"NORMINV(RAND()*(1-2*Inputs!B58)+Inputs!B58,0,'(Other Computations)'!B208)","v":{"v":-44371.84461177123,"d":"($44,372)"}},{"$f":"NORMINV(RAND()*(1-2*Inputs!B58)+Inputs!B58,0,'(Other Computations)'!B208)","v":{"v":-12068.303274313834,"d":"($12,068)"}},{"$f":"NORMINV(RAND()*(1-2*Inputs!B58)+Inputs!B58,0,'(Other Computations)'!B208)","v":{"v":-3141.679384431667,"d":"($3,142)"}},{"$f":"NORMINV(RAND()*(1-2*Inputs!B58)+Inputs!B58,0,'(Other Computations)'!B208)","v":{"v":44968.59421724215,"d":"$44,969"}},{"$f":"NORMINV(RAND()*(1-2*Inputs!B58)+Inputs!B58,0,'(Other Computations)'!B208)","v":{"v":-20657.062741323705,"d":"($20,657)"}},{"$f":"SUM(O13:Z13)","v":{"v":-194820.88329625878,"d":"($194,821)"}},{"$f":"NORMINV(RAND()*(1-2*Inputs!B58)+Inputs!B58,0,'(Other Computations)'!B208)","v":{"v":5919.145050182705,"d":"$5,919"}},{"$f":"NORMINV(RAND()*(1-2*Inputs!B58)+Inputs!B58,0,'(Other Computations)'!B208)","v":{"v":62728.36022843444,"d":"$62,728"}},{"$f":"NORMINV(RAND()*(1-2*Inputs!B58)+Inputs!B58,0,'(Other Computations)'!B208)","v":{"v":-17134.23112582682,"d":"($17,134)"}},{"$f":"NORMINV(RAND()*(1-2*Inputs!B58)+Inputs!B58,0,'(Other Computations)'!B208)","v":{"v":-29654.579796590042,"d":"($29,655)"}},{"$f":"NORMINV(RAND()*(1-2*Inputs!B58)+Inputs!B58,0,'(Other Computations)'!B208)","v":{"v":749.9377631274501,"d":"$750"}},{"$f":"NORMINV(RAND()*(1-2*Inputs!B58)+Inputs!B58,0,'(Other Computations)'!B208)","v":{"v":-2809.2261807088967,"d":"($2,809)"}},{"$f":"NORMINV(RAND()*(1-2*Inputs!B58)+Inputs!B58,0,'(Other Computations)'!B208)","v":{"v":17736.180848201122,"d":"$17,736"}},{"$f":"NORMINV(RAND()*(1-2*Inputs!B58)+Inputs!B58,0,'(Other Computations)'!B208)","v":{"v":-11516.822357939305,"d":"($11,517)"}},{"$f":"NORMINV(RAND()*(1-2*Inputs!B58)+Inputs!B58,0,'(Other Computations)'!B208)","v":{"v":50798.7153098439,"d":"$50,799"}},{"$f":"NORMINV(RAND()*(1-2*Inputs!B58)+Inputs!B58,0,'(Other Computations)'!B208)","v":{"v":11988.090409158405,"d":"$11,988"}},{"$f":"NORMINV(RAND()*(1-2*Inputs!B58)+Inputs!B58,0,'(Other Computations)'!B208)","v":{"v":-8061.152956792395,"d":"($8,061)"}},{"$f":"NORMINV(RAND()*(1-2*Inputs!B58)+Inputs!B58,0,'(Other Computations)'!B208)","v":{"v":-30305.093050000047,"d":"($30,305)"}},{"$f":"SUM(AB13:AM13)","v":{"v":50439.32414109051,"d":"$50,439"}},{"$f":"NORMINV(RAND()*(1-2*Inputs!B58)+Inputs!B58,0,'(Other Computations)'!B208)","v":{"v":-30090.825261952385,"d":"($30,091)"}},{"$f":"NORMINV(RAND()*(1-2*Inputs!B58)+Inputs!B58,0,'(Other Computations)'!B208)","v":{"v":62288.36190749998,"d":"$62,288"}},{"$f":"NORMINV(RAND()*(1-2*Inputs!B58)+Inputs!B58,0,'(Other Computations)'!B208)","v":{"v":-36782.2385670931,"d":"($36,782)"}},{"$f":"NORMINV(RAND()*(1-2*Inputs!B58)+Inputs!B58,0,'(Other Computations)'!B208)","v":{"v":31367.721081554595,"d":"$31,368"}},{"$f":"NORMINV(RAND()*(1-2*Inputs!B58)+Inputs!B58,0,'(Other Computations)'!B208)","v":{"v":8600.319646928558,"d":"$8,600"}},{"$f":"NORMINV(RAND()*(1-2*Inputs!B58)+Inputs!B58,0,'(Other Computations)'!B208)","v":{"v":28987.361992361755,"d":"$28,987"}},{"$f":"NORMINV(RAND()*(1-2*Inputs!B58)+Inputs!B58,0,'(Other Computations)'!B208)","v":{"v":-1975.9811363073043,"d":"($1,976)"}},{"$f":"NORMINV(RAND()*(1-2*Inputs!B58)+Inputs!B58,0,'(Other Computations)'!B208)","v":{"v":-20630.6438355351,"d":"($20,631)"}},{"$f":"NORMINV(RAND()*(1-2*Inputs!B58)+Inputs!B58,0,'(Other Computations)'!B208)","v":{"v":315.8604919395329,"d":"$316"}},{"$f":"NORMINV(RAND()*(1-2*Inputs!B58)+Inputs!B58,0,'(Other Computations)'!B208)","v":{"v":43999.797431950814,"d":"$44,000"}},{"$f":"NORMINV(RAND()*(1-2*Inputs!B58)+Inputs!B58,0,'(Other Computations)'!B208)","v":{"v":17041.258262461153,"d":"$17,041"}},{"$f":"NORMINV(RAND()*(1-2*Inputs!B58)+Inputs!B58,0,'(Other Computations)'!B208)","v":{"v":-32759.220780023545,"d":"($32,759)"}},{"$f":"SUM(AO13:AZ13)","v":{"v":70361.77123378495,"d":"$70,362"}},{"$f":"NORMINV(RAND()*(1-2*Inputs!B58)+Inputs!B58,0,'(Other Computations)'!B208)","v":{"v":-35941.45826663379,"d":"($35,941)"}},{"$f":"NORMINV(RAND()*(1-2*Inputs!B58)+Inputs!B58,0,'(Other Computations)'!B208)","v":{"v":8633.339224207995,"d":"$8,633"}},{"$f":"NORMINV(RAND()*(1-2*Inputs!B58)+Inputs!B58,0,'(Other Computations)'!B208)","v":{"v":-14862.078154496352,"d":"($14,862)"}},{"$f":"NORMINV(RAND()*(1-2*Inputs!B58)+Inputs!B58,0,'(Other Computations)'!B208)","v":{"v":34565.5245722318,"d":"$34,566"}},{"$f":"NORMINV(RAND()*(1-2*Inputs!B58)+Inputs!B58,0,'(Other Computations)'!B208)","v":{"v":14918.8953491542,"d":"$14,919"}},{"$f":"NORMINV(RAND()*(1-2*Inputs!B58)+Inputs!B58,0,'(Other Computations)'!B208)","v":{"v":13113.841820257348,"d":"$13,114"}},{"$f":"NORMINV(RAND()*(1-2*Inputs!B58)+Inputs!B58,0,'(Other Computations)'!B208)","v":{"v":21176.138983951463,"d":"$21,176"}},{"$f":"NORMINV(RAND()*(1-2*Inputs!B58)+Inputs!B58,0,'(Other Computations)'!B208)","v":{"v":-7570.375707656073,"d":"($7,570)"}},{"$f":"NORMINV(RAND()*(1-2*Inputs!B58)+Inputs!B58,0,'(Other Computations)'!B208)","v":{"v":-9260.084016018067,"d":"($9,260)"}},{"$f":"NORMINV(RAND()*(1-2*Inputs!B58)+Inputs!B58,0,'(Other Computations)'!B208)","v":{"v":-42753.010578778936,"d":"($42,753)"}},{"$f":"NORMINV(RAND()*(1-2*Inputs!B58)+Inputs!B58,0,'(Other Computations)'!B208)","v":{"v":12003.858847842217,"d":"$12,004"}},{"$f":"NORMINV(RAND()*(1-2*Inputs!B58)+Inputs!B58,0,'(Other Computations)'!B208)","v":{"v":-29024.6023901376,"d":"($29,025)"}},{"$f":"SUM(BB13:BM13)","v":{"v":-35000.0103160758,"d":"($35,000)"}},{"$f":"NORMINV(RAND()*(1-2*Inputs!B58)+Inputs!B58,0,'(Other Computations)'!B208)","v":{"v":18883.679708387335,"d":"$18,884"}},{"$f":"NORMINV(RAND()*(1-2*Inputs!B58)+Inputs!B58,0,'(Other Computations)'!B208)","v":{"v":-18434.35384088135,"d":"($18,434)"}},{"$f":"NORMINV(RAND()*(1-2*Inputs!B58)+Inputs!B58,0,'(Other Computations)'!B208)","v":{"v":53906.886340206125,"d":"$53,907"}},{"$f":"NORMINV(RAND()*(1-2*Inputs!B58)+Inputs!B58,0,'(Other Computations)'!B208)","v":{"v":23301.67087106113,"d":"$23,302"}},{"$f":"NORMINV(RAND()*(1-2*Inputs!B58)+Inputs!B58,0,'(Other Computations)'!B208)","v":{"v":5233.700950206016,"d":"$5,234"}},{"$f":"NORMINV(RAND()*(1-2*Inputs!B58)+Inputs!B58,0,'(Other Computations)'!B208)","v":{"v":-44242.39940965406,"d":"($44,242)"}},{"$f":"NORMINV(RAND()*(1-2*Inputs!B58)+Inputs!B58,0,'(Other Computations)'!B208)","v":{"v":-31136.37125057403,"d":"($31,136)"}},{"$f":"NORMINV(RAND()*(1-2*Inputs!B58)+Inputs!B58,0,'(Other Computations)'!B208)","v":{"v":-9587.264036205625,"d":"($9,587)"}},{"$f":"NORMINV(RAND()*(1-2*Inputs!B58)+Inputs!B58,0,'(Other Computations)'!B208)","v":{"v":31280.60930285094,"d":"$31,281"}},{"$f":"NORMINV(RAND()*(1-2*Inputs!B58)+Inputs!B58,0,'(Other Computations)'!B208)","v":{"v":-31987.124504165633,"d":"($31,987)"}},{"$f":"NORMINV(RAND()*(1-2*Inputs!B58)+Inputs!B58,0,'(Other Computations)'!B208)","v":{"v":-43469.37514326484,"d":"($43,469)"}},{"$f":"NORMINV(RAND()*(1-2*Inputs!B58)+Inputs!B58,0,'(Other Computations)'!B208)","v":{"v":33899.17017837829,"d":"$33,899"}},{"$f":"SUM(BO13:BZ13)","v":{"v":-12351.170833655706,"d":"($12,351)"}},{"$f":"NORMINV(RAND()*(1-2*Inputs!B58)+Inputs!B58,0,'(Other Computations)'!B208)","v":{"v":-6618.255980651439,"d":"($6,618)"}},{"$f":"NORMINV(RAND()*(1-2*Inputs!B58)+Inputs!B58,0,'(Other Computations)'!B208)","v":{"v":-41440.677453396725,"d":"($41,441)"}},{"$f":"NORMINV(RAND()*(1-2*Inputs!B58)+Inputs!B58,0,'(Other Computations)'!B208)","v":{"v":39124.77401629471,"d":"$39,125"}},{"$f":"NORMINV(RAND()*(1-2*Inputs!B58)+Inputs!B58,0,'(Other Computations)'!B208)","v":{"v":-31326.808770672735,"d":"($31,327)"}},{"$f":"NORMINV(RAND()*(1-2*Inputs!B58)+Inputs!B58,0,'(Other Computations)'!B208)","v":{"v":-2241.2672512096087,"d":"($2,241)"}},{"$f":"NORMINV(RAND()*(1-2*Inputs!B58)+Inputs!B58,0,'(Other Computations)'!B208)","v":{"v":12493.361239254536,"d":"$12,493"}},{"$f":"NORMINV(RAND()*(1-2*Inputs!B58)+Inputs!B58,0,'(Other Computations)'!B208)","v":{"v":-3288.8404851045834,"d":"($3,289)"}},{"$f":"NORMINV(RAND()*(1-2*Inputs!B58)+Inputs!B58,0,'(Other Computations)'!B208)","v":{"v":7822.73203938388,"d":"$7,823"}},{"$f":"NORMINV(RAND()*(1-2*Inputs!B58)+Inputs!B58,0,'(Other Computations)'!B208)","v":{"v":1112.1657396903713,"d":"$1,112"}},{"$f":"NORMINV(RAND()*(1-2*Inputs!B58)+Inputs!B58,0,'(Other Computations)'!B208)","v":{"v":-47749.87602196945,"d":"($47,750)"}},{"$f":"NORMINV(RAND()*(1-2*Inputs!B58)+Inputs!B58,0,'(Other Computations)'!B208)","v":{"v":27788.24303466581,"d":"$27,788"}},{"$f":"NORMINV(RAND()*(1-2*Inputs!B58)+Inputs!B58,0,'(Other Computations)'!B208)","v":{"v":594.0932211648086,"d":"$594"}},{"$f":"SUM(CB13:CM13)","v":{"v":-43730.35667255043,"d":"($43,730)"}},{"$f":"NORMINV(RAND()*(1-2*Inputs!B58)+Inputs!B58,0,'(Other Computations)'!B208)","v":{"v":-29021.11979746154,"d":"($29,021)"}},{"$f":"NORMINV(RAND()*(1-2*Inputs!B58)+Inputs!B58,0,'(Other Computations)'!B208)","v":{"v":27660.461789601013,"d":"$27,660"}},{"$f":"NORMINV(RAND()*(1-2*Inputs!B58)+Inputs!B58,0,'(Other Computations)'!B208)","v":{"v":-58192.250260077555,"d":"($58,192)"}},{"$f":"NORMINV(RAND()*(1-2*Inputs!B58)+Inputs!B58,0,'(Other Computations)'!B208)","v":{"v":-4105.8004943787055,"d":"($4,106)"}},{"$f":"NORMINV(RAND()*(1-2*Inputs!B58)+Inputs!B58,0,'(Other Computations)'!B208)","v":{"v":-50214.53711772717,"d":"($50,215)"}},{"$f":"NORMINV(RAND()*(1-2*Inputs!B58)+Inputs!B58,0,'(Other Computations)'!B208)","v":{"v":8934.021472546425,"d":"$8,934"}},{"$f":"NORMINV(RAND()*(1-2*Inputs!B58)+Inputs!B58,0,'(Other Computations)'!B208)","v":{"v":-39181.41810824992,"d":"($39,181)"}},{"$f":"NORMINV(RAND()*(1-2*Inputs!B58)+Inputs!B58,0,'(Other Computations)'!B208)","v":{"v":7060.7204627593865,"d":"$7,061"}},{"$f":"NORMINV(RAND()*(1-2*Inputs!B58)+Inputs!B58,0,'(Other Computations)'!B208)","v":{"v":-46489.19610146658,"d":"($46,489)"}},{"$f":"NORMINV(RAND()*(1-2*Inputs!B58)+Inputs!B58,0,'(Other Computations)'!B208)","v":{"v":34437.33226227568,"d":"$34,437"}},{"$f":"NORMINV(RAND()*(1-2*Inputs!B58)+Inputs!B58,0,'(Other Computations)'!B208)","v":{"v":42166.52565293827,"d":"$42,167"}},{"$f":"NORMINV(RAND()*(1-2*Inputs!B58)+Inputs!B58,0,'(Other Computations)'!B208)","v":{"v":-47938.93970290097,"d":"($47,939)"}},{"$f":"SUM(CO13:CZ13)","v":{"v":-154884.19994214168,"d":"($154,884)"}},{"$f":"NORMINV(RAND()*(1-2*Inputs!B58)+Inputs!B58,0,'(Other Computations)'!B208)","v":{"v":1684.593019685524,"d":"$1,685"}},{"$f":"NORMINV(RAND()*(1-2*Inputs!B58)+Inputs!B58,0,'(Other Computations)'!B208)","v":{"v":20543.01597310816,"d":"$20,543"}},{"$f":"NORMINV(RAND()*(1-2*Inputs!B58)+Inputs!B58,0,'(Other Computations)'!B208)","v":{"v":614.8092001702029,"d":"$615"}},{"$f":"NORMINV(RAND()*(1-2*Inputs!B58)+Inputs!B58,0,'(Other Computations)'!B208)","v":{"v":25444.371759148722,"d":"$25,444"}},{"$f":"NORMINV(RAND()*(1-2*Inputs!B58)+Inputs!B58,0,'(Other Computations)'!B208)","v":{"v":23127.903649726508,"d":"$23,128"}},{"$f":"NORMINV(RAND()*(1-2*Inputs!B58)+Inputs!B58,0,'(Other Computations)'!B208)","v":{"v":-14464.235489231427,"d":"($14,464)"}},{"$f":"NORMINV(RAND()*(1-2*Inputs!B58)+Inputs!B58,0,'(Other Computations)'!B208)","v":{"v":14612.59570871841,"d":"$14,613"}},{"$f":"NORMINV(RAND()*(1-2*Inputs!B58)+Inputs!B58,0,'(Other Computations)'!B208)","v":{"v":-30389.82957967869,"d":"($30,390)"}},{"$f":"NORMINV(RAND()*(1-2*Inputs!B58)+Inputs!B58,0,'(Other Computations)'!B208)","v":{"v":15419.330951636928,"d":"$15,419"}},{"$f":"NORMINV(RAND()*(1-2*Inputs!B58)+Inputs!B58,0,'(Other Computations)'!B208)","v":{"v":45749.22261787147,"d":"$45,749"}},{"$f":"NORMINV(RAND()*(1-2*Inputs!B58)+Inputs!B58,0,'(Other Computations)'!B208)","v":{"v":-37828.86016708222,"d":"($37,829)"}},{"$f":"NORMINV(RAND()*(1-2*Inputs!B58)+Inputs!B58,0,'(Other Computations)'!B208)","v":{"v":6208.855742729035,"d":"$6,209"}},{"$f":"SUM(DB13:DM13)","v":{"v":70721.77338680261,"d":"$70,722"}},{"$f":"NORMINV(RAND()*(1-2*Inputs!B58)+Inputs!B58,0,'(Other Computations)'!B208)","v":{"v":44143.304696219835,"d":"$44,143"}},{"$f":"NORMINV(RAND()*(1-2*Inputs!B58)+Inputs!B58,0,'(Other Computations)'!B208)","v":{"v":-15951.02806098807,"d":"($15,951)"}},{"$f":"NORMINV(RAND()*(1-2*Inputs!B58)+Inputs!B58,0,'(Other Computations)'!B208)","v":{"v":12713.006971324563,"d":"$12,713"}},{"$f":"NORMINV(RAND()*(1-2*Inputs!B58)+Inputs!B58,0,'(Other Computations)'!B208)","v":{"v":5193.448819872546,"d":"$5,193"}},{"$f":"NORMINV(RAND()*(1-2*Inputs!B58)+Inputs!B58,0,'(Other Computations)'!B208)","v":{"v":-10333.207572547957,"d":"($10,333)"}},{"$f":"NORMINV(RAND()*(1-2*Inputs!B58)+Inputs!B58,0,'(Other Computations)'!B208)","v":{"v":-12644.960720386909,"d":"($12,645)"}},{"$f":"NORMINV(RAND()*(1-2*Inputs!B58)+Inputs!B58,0,'(Other Computations)'!B208)","v":{"v":11990.597165155517,"d":"$11,991"}},{"$f":"NORMINV(RAND()*(1-2*Inputs!B58)+Inputs!B58,0,'(Other Computations)'!B208)","v":{"v":-37168.21508837018,"d":"($37,168)"}},{"$f":"NORMINV(RAND()*(1-2*Inputs!B58)+Inputs!B58,0,'(Other Computations)'!B208)","v":{"v":-26143.74897894463,"d":"($26,144)"}},{"$f":"NORMINV(RAND()*(1-2*Inputs!B58)+Inputs!B58,0,'(Other Computations)'!B208)","v":{"v":32066.24638121834,"d":"$32,066"}},{"$f":"NORMINV(RAND()*(1-2*Inputs!B58)+Inputs!B58,0,'(Other Computations)'!B208)","v":{"v":21518.690726698467,"d":"$21,519"}},{"$f":"NORMINV(RAND()*(1-2*Inputs!B58)+Inputs!B58,0,'(Other Computations)'!B208)","v":{"v":-24456.227249212177,"d":"($24,456)"}},{"$f":"SUM(DO13:DZ13)","v":{"v":927.9070900393344,"d":"$928"}},{"$f":"NORMINV(RAND()*(1-2*Inputs!B58)+Inputs!B58,0,'(Other Computations)'!B208)","v":{"v":11247.990916043049,"d":"$11,248"}},{"$f":"NORMINV(RAND()*(1-2*Inputs!B58)+Inputs!B58,0,'(Other Computations)'!B208)","v":{"v":-3862.208915110595,"d":"($3,862)"}},{"$f":"NORMINV(RAND()*(1-2*Inputs!B58)+Inputs!B58,0,'(Other Computations)'!B208)","v":{"v":-3280.313989787289,"d":"($3,280)"}},{"$f":"NORMINV(RAND()*(1-2*Inputs!B58)+Inputs!B58,0,'(Other Computations)'!B208)","v":{"v":-46290.873977916,"d":"($46,291)"}},{"$f":"NORMINV(RAND()*(1-2*Inputs!B58)+Inputs!B58,0,'(Other Computations)'!B208)","v":{"v":-7024.162966460549,"d":"($7,024)"}},{"$f":"NORMINV(RAND()*(1-2*Inputs!B58)+Inputs!B58,0,'(Other Computations)'!B208)","v":{"v":-13979.095104283842,"d":"($13,979)"}},{"$f":"NORMINV(RAND()*(1-2*Inputs!B58)+Inputs!B58,0,'(Other Computations)'!B208)","v":{"v":-7821.9107235388965,"d":"($7,822)"}},{"$f":"NORMINV(RAND()*(1-2*Inputs!B58)+Inputs!B58,0,'(Other Computations)'!B208)","v":{"v":-32269.957732422896,"d":"($32,270)"}},{"$f":"NORMINV(RAND()*(1-2*Inputs!B58)+Inputs!B58,0,'(Other Computations)'!B208)","v":{"v":5380.6091908657245,"d":"$5,381"}},{"$f":"NORMINV(RAND()*(1-2*Inputs!B58)+Inputs!B58,0,'(Other Computations)'!B208)","v":{"v":-10335.844995003483,"d":"($10,336)"}},{"$f":"NORMINV(RAND()*(1-2*Inputs!B58)+Inputs!B58,0,'(Other Computations)'!B208)","v":{"v":-36227.52712625409,"d":"($36,228)"}},{"$f":"NORMINV(RAND()*(1-2*Inputs!B58)+Inputs!B58,0,'(Other Computations)'!B208)","v":{"v":-25728.02837657519,"d":"($25,728)"}},{"$f":"SUM(EB13:EM13)","v":{"v":-170191.32380044405,"d":"($170,191)"}}]
[]
[]
[{"$f":"\"Capital\"","v":"Capital"}]
[{"$f":"\" \"","v":" "}]
[null,{"$f":"ZZZ__FnCalls!F7","v":"Jan 2010"},{"$f":"ZZZ__FnCalls!F8","v":"Feb 2010"},{"$f":"ZZZ__FnCalls!F9","v":"Mar 2010"},{"$f":"ZZZ__FnCalls!F10","v":"Apr 2010"},{"$f":"ZZZ__FnCalls!F11","v":"May 2010"},{"$f":"ZZZ__FnCalls!F12","v":"Jun 2010"},{"$f":"ZZZ__FnCalls!F13","v":"Jul 2010"},{"$f":"ZZZ__FnCalls!F14","v":"Aug 2010"},{"$f":"ZZZ__FnCalls!F15","v":"Sep 2010"},{"$f":"ZZZ__FnCalls!F16","v":"Oct 2010"},{"$f":"ZZZ__FnCalls!F17","v":"Nov 2010"},{"$f":"ZZZ__FnCalls!F18","v":"Dec 2010"},{"$f":"ZZZ__FnCalls!H7","v":"2010"},{"$f":"ZZZ__FnCalls!F19","v":"Jan 2011"},{"$f":"ZZZ__FnCalls!F20","v":"Feb 2011"},{"$f":"ZZZ__FnCalls!F21","v":"Mar 2011"},{"$f":"ZZZ__FnCalls!F22","v":"Apr 2011"},{"$f":"ZZZ__FnCalls!F23","v":"May 2011"},{"$f":"ZZZ__FnCalls!F24","v":"Jun 2011"},{"$f":"ZZZ__FnCalls!F25","v":"Jul 2011"},{"$f":"ZZZ__FnCalls!F26","v":"Aug 2011"},{"$f":"ZZZ__FnCalls!F27","v":"Sep 2011"},{"$f":"ZZZ__FnCalls!F28","v":"Oct 2011"},{"$f":"ZZZ__FnCalls!F29","v":"Nov 2011"},{"$f":"ZZZ__FnCalls!F30","v":"Dec 2011"},{"$f":"ZZZ__FnCalls!H19","v":"2011"},{"$f":"ZZZ__FnCalls!F31","v":"Jan 2012"},{"$f":"ZZZ__FnCalls!F32","v":"Feb 2012"},{"$f":"ZZZ__FnCalls!F33","v":"Mar 2012"},{"$f":"ZZZ__FnCalls!F34","v":"Apr 2012"},{"$f":"ZZZ__FnCalls!F35","v":"May 2012"},{"$f":"ZZZ__FnCalls!F36","v":"Jun 2012"},{"$f":"ZZZ__FnCalls!F37","v":"Jul 2012"},{"$f":"ZZZ__FnCalls!F38","v":"Aug 2012"},{"$f":"ZZZ__FnCalls!F39","v":"Sep 2012"},{"$f":"ZZZ__FnCalls!F40","v":"Oct 2012"},{"$f":"ZZZ__FnCalls!F41","v":"Nov 2012"},{"$f":"ZZZ__FnCalls!F42","v":"Dec 2012"},{"$f":"ZZZ__FnCalls!H31","v":"2012"},{"$f":"ZZZ__FnCalls!F43","v":"Jan 2013"},{"$f":"ZZZ__FnCalls!F44","v":"Feb 2013"},{"$f":"ZZZ__FnCalls!F45","v":"Mar 2013"},{"$f":"ZZZ__FnCalls!F46","v":"Apr 2013"},{"$f":"ZZZ__FnCalls!F47","v":"May 2013"},{"$f":"ZZZ__FnCalls!F48","v":"Jun 2013"},{"$f":"ZZZ__FnCalls!F49","v":"Jul 2013"},{"$f":"ZZZ__FnCalls!F50","v":"Aug 2013"},{"$f":"ZZZ__FnCalls!F51","v":"Sep 2013"},{"$f":"ZZZ__FnCalls!F52","v":"Oct 2013"},{"$f":"ZZZ__FnCalls!F53","v":"Nov 2013"},{"$f":"ZZZ__FnCalls!F54","v":"Dec 2013"},{"$f":"ZZZ__FnCalls!H43","v":"2013"},{"$f":"ZZZ__FnCalls!F55","v":"Jan 2014"},{"$f":"ZZZ__FnCalls!F56","v":"Feb 2014"},{"$f":"ZZZ__FnCalls!F57","v":"Mar 2014"},{"$f":"ZZZ__FnCalls!F58","v":"Apr 2014"},{"$f":"ZZZ__FnCalls!F59","v":"May 2014"},{"$f":"ZZZ__FnCalls!F60","v":"Jun 2014"},{"$f":"ZZZ__FnCalls!F61","v":"Jul 2014"},{"$f":"ZZZ__FnCalls!F62","v":"Aug 2014"},{"$f":"ZZZ__FnCalls!F63","v":"Sep 2014"},{"$f":"ZZZ__FnCalls!F64","v":"Oct 2014"},{"$f":"ZZZ__FnCalls!F65","v":"Nov 2014"},{"$f":"ZZZ__FnCalls!F66","v":"Dec 2014"},{"$f":"ZZZ__FnCalls!H55","v":"2014"},{"$f":"ZZZ__FnCalls!F67","v":"Jan 2015"},{"$f":"ZZZ__FnCalls!F68","v":"Feb 2015"},{"$f":"ZZZ__FnCalls!F69","v":"Mar 2015"},{"$f":"ZZZ__FnCalls!F70","v":"Apr 2015"},{"$f":"ZZZ__FnCalls!F71","v":"May 2015"},{"$f":"ZZZ__FnCalls!F72","v":"Jun 2015"},{"$f":"ZZZ__FnCalls!F73","v":"Jul 2015"},{"$f":"ZZZ__FnCalls!F74","v":"Aug 2015"},{"$f":"ZZZ__FnCalls!F75","v":"Sep 2015"},{"$f":"ZZZ__FnCalls!F76","v":"Oct 2015"},{"$f":"ZZZ__FnCalls!F77","v":"Nov 2015"},{"$f":"ZZZ__FnCalls!F78","v":"Dec 2015"},{"$f":"ZZZ__FnCalls!H67","v":"2015"},{"$f":"ZZZ__FnCalls!F79","v":"Jan 2016"},{"$f":"ZZZ__FnCalls!F80","v":"Feb 2016"},{"$f":"ZZZ__FnCalls!F81","v":"Mar 2016"},{"$f":"ZZZ__FnCalls!F82","v":"Apr 2016"},{"$f":"ZZZ__FnCalls!F83","v":"May 2016"},{"$f":"ZZZ__FnCalls!F84","v":"Jun 2016"},{"$f":"ZZZ__FnCalls!F85","v":"Jul 2016"},{"$f":"ZZZ__FnCalls!F86","v":"Aug 2016"},{"$f":"ZZZ__FnCalls!F87","v":"Sep 2016"},{"$f":"ZZZ__FnCalls!F88","v":"Oct 2016"},{"$f":"ZZZ__FnCalls!F89","v":"Nov 2016"},{"$f":"ZZZ__FnCalls!F90","v":"Dec 2016"},{"$f":"ZZZ__FnCalls!H79","v":"2016"},{"$f":"ZZZ__FnCalls!F91","v":"Jan 2017"},{"$f":"ZZZ__FnCalls!F92","v":"Feb 2017"},{"$f":"ZZZ__FnCalls!F93","v":"Mar 2017"},{"$f":"ZZZ__FnCalls!F94","v":"Apr 2017"},{"$f":"ZZZ__FnCalls!F95","v":"May 2017"},{"$f":"ZZZ__FnCalls!F96","v":"Jun 2017"},{"$f":"ZZZ__FnCalls!F97","v":"Jul 2017"},{"$f":"ZZZ__FnCalls!F98","v":"Aug 2017"},{"$f":"ZZZ__FnCalls!F99","v":"Sep 2017"},{"$f":"ZZZ__FnCalls!F100","v":"Oct 2017"},{"$f":"ZZZ__FnCalls!F101","v":"Nov 2017"},{"$f":"ZZZ__FnCalls!F102","v":"Dec 2017"},{"$f":"ZZZ__FnCalls!H91","v":"2017"},{"$f":"ZZZ__FnCalls!F103","v":"Jan 2018"},{"$f":"ZZZ__FnCalls!F104","v":"Feb 2018"},{"$f":"ZZZ__FnCalls!F105","v":"Mar 2018"},{"$f":"ZZZ__FnCalls!F106","v":"Apr 2018"},{"$f":"ZZZ__FnCalls!F107","v":"May 2018"},{"$f":"ZZZ__FnCalls!F108","v":"Jun 2018"},{"$f":"ZZZ__FnCalls!F109","v":"Jul 2018"},{"$f":"ZZZ__FnCalls!F110","v":"Aug 2018"},{"$f":"ZZZ__FnCalls!F111","v":"Sep 2018"},{"$f":"ZZZ__FnCalls!F112","v":"Oct 2018"},{"$f":"ZZZ__FnCalls!F113","v":"Nov 2018"},{"$f":"ZZZ__FnCalls!F114","v":"Dec 2018"},{"$f":"ZZZ__FnCalls!H103","v":"2018"},{"$f":"ZZZ__FnCalls!F115","v":"Jan 2019"},{"$f":"ZZZ__FnCalls!F116","v":"Feb 2019"},{"$f":"ZZZ__FnCalls!F117","v":"Mar 2019"},{"$f":"ZZZ__FnCalls!F118","v":"Apr 2019"},{"$f":"ZZZ__FnCalls!F119","v":"May 2019"},{"$f":"ZZZ__FnCalls!F120","v":"Jun 2019"},{"$f":"ZZZ__FnCalls!F121","v":"Jul 2019"},{"$f":"ZZZ__FnCalls!F122","v":"Aug 2019"},{"$f":"ZZZ__FnCalls!F123","v":"Sep 2019"},{"$f":"ZZZ__FnCalls!F124","v":"Oct 2019"},{"$f":"ZZZ__FnCalls!F125","v":"Nov 2019"},{"$f":"ZZZ__FnCalls!F126","v":"Dec 2019"},{"$f":"ZZZ__FnCalls!H115","v":"2019"},{"$f":"ZZZ__FnCalls!F127","v":"Jan 2020"},{"$f":"ZZZ__FnCalls!F128","v":"Feb 2020"},{"$f":"ZZZ__FnCalls!F129","v":"Mar 2020"},{"$f":"ZZZ__FnCalls!F130","v":"Apr 2020"},{"$f":"ZZZ__FnCalls!F131","v":"May 2020"},{"$f":"ZZZ__FnCalls!F132","v":"Jun 2020"},{"$f":"ZZZ__FnCalls!F133","v":"Jul 2020"},{"$f":"ZZZ__FnCalls!F134","v":"Aug 2020"},{"$f":"ZZZ__FnCalls!F135","v":"Sep 2020"},{"$f":"ZZZ__FnCalls!F136","v":"Oct 2020"},{"$f":"ZZZ__FnCalls!F137","v":"Nov 2020"},{"$f":"ZZZ__FnCalls!F138","v":"Dec 2020"},{"$f":"ZZZ__FnCalls!H127","v":"2020"}]
[{"$f":"Labels!B9","v":"Capital"},{"$f":"Inputs!B20*'(Other Computations)'!B8/(1/Inputs!B19/12+'(Other Computations)'!B144)","v":{"v":34645298.42192645,"d":"$34,645,298"}},{"$f":"B19+B21-B20","v":{"v":34645298.42192645,"d":"$34,645,298"}},{"v":34644865.849718675,"d":"$34,644,866"},{"v":34644128.320763394,"d":"$34,644,128"},{"v":34643061.911736734,"d":"$34,643,062"},{"v":34641637.09234987,"d":"$34,641,637"},{"v":34639958.89404549,"d":"$34,639,959"},{"v":34637974.803368226,"d":"$34,637,975"},{"v":34635634.876478724,"d":"$34,635,635"},{"v":34632968.269905455,"d":"$34,632,968"},{"v":34630017.886411265,"d":"$34,630,018"},{"v":34626873.845023,"d":"$34,626,874"},{"$f":"M19","v":{"v":34626873.845023,"d":"$34,626,874"}},{"$f":"M19+M21-M20","v":{"v":34623499.9376133,"d":"$34,623,500"}},{"$f":"O19+O21-O20","v":{"v":34619872.1386801,"d":"$34,619,872"}},{"v":34615934.16145604,"d":"$34,615,934"},{"v":34611729.17829118,"d":"$34,611,729"},{"v":34607140.043177396,"d":"$34,607,140"},{"v":34602330.65069124,"d":"$34,602,331"},{"v":34597170.266843595,"d":"$34,597,170"},{"v":34591707.781499624,"d":"$34,591,708"},{"v":34585922.9467949,"d":"$34,585,923"},{"v":34579822.804570556,"d":"$34,579,823"},{"v":34573477.75377596,"d":"$34,573,478"},{"v":34566911.62612825,"d":"$34,566,912"},{"$f":"Z19","v":{"v":34566911.62612825,"d":"$34,566,912"}},{"$f":"Z19+Z21-Z20","v":{"v":34560222.38364415,"d":"$34,560,222"}},{"$f":"AB19+AB21-AB20","v":{"v":34553288.16196663,"d":"$34,553,288"}},{"v":34546166.46493668,"d":"$34,546,166"},{"v":34538970.90969978,"d":"$34,538,971"},{"v":34531551.00037324,"d":"$34,531,551"},{"v":34523889.14038574,"d":"$34,523,889"},{"v":34516050.02346483,"d":"$34,516,050"},{"v":34508031.67883035,"d":"$34,508,032"},{"v":34499878.3244191,"d":"$34,499,878"},{"v":34491537.83899039,"d":"$34,491,538"},{"v":34483134.3520214,"d":"$34,483,134"},{"v":34474595.37606332,"d":"$34,474,595"},{"$f":"AM19","v":{"v":34474595.37606332,"d":"$34,474,595"}},{"$f":"AM19+AM21-AM20","v":{"v":34465886.40415917,"d":"$34,465,886"}},{"$f":"AO19+AO21-AO20","v":{"v":34456969.79243559,"d":"$34,456,970"}},{"v":34447851.86008202,"d":"$34,447,852"},{"v":34438714.45998028,"d":"$34,438,714"},{"v":34429368.90475603,"d":"$34,429,369"},{"v":34419951.25888646,"d":"$34,419,951"},{"v":34410420.011213064,"d":"$34,410,420"},{"v":34400817.211123355,"d":"$34,400,817"},{"v":34391085.666554816,"d":"$34,391,086"},{"v":34381193.317811236,"d":"$34,381,193"},{"v":34371184.75303354,"d":"$34,371,185"},{"v":34361146.61357753,"d":"$34,361,147"},{"$f":"AZ19","v":{"v":34361146.61357753,"d":"$34,361,147"}},{"$f":"AZ19+AZ21-AZ20","v":{"v":34351028.11328618,"d":"$34,351,028"}},{"$f":"BB19+BB21-BB20","v":{"v":34340736.53263246,"d":"$34,340,737"}},{"v":34330270.62984689,"d":"$34,330,271"},{"v":34319720.35903598,"d":"$34,319,720"},{"v":34309043.26406145,"d":"$34,309,043"},{"v":34298337.39432053,"d":"$34,298,337"},{"v":34287566.11064961,"d":"$34,287,566"},{"v":34276727.75335745,"d":"$34,276,728"},{"v":34265839.6834066,"d":"$34,265,840"},{"v":34254848.50089695,"d":"$34,254,849"},{"v":34243754.06064523,"d":"$34,243,754"},{"v":34232495.45165257,"d":"$34,232,495"},{"$f":"BM19","v":{"v":34232495.45165257,"d":"$34,232,495"}},{"$f":"BM19+BM21-BM20","v":{"v":34221182.03087545,"d":"$34,221,182"}},{"$f":"BO19+BO21-BO20","v":{"v":34209737.08868378,"d":"$34,209,737"}},{"v":34198255.77672469,"d":"$34,198,256"},{"v":34186667.99650359,"d":"$34,186,668"},{"v":34175115.04229462,"d":"$34,175,115"},{"v":34163537.503908806,"d":"$34,163,538"},{"v":34151901.5917997,"d":"$34,151,902"},{"v":34140114.429524854,"d":"$34,140,114"},{"v":34128205.3668572,"d":"$34,128,205"},{"v":34116219.05780982,"d":"$34,116,219"},{"v":34104235.76523741,"d":"$34,104,236"},{"v":34092134.738789566,"d":"$34,092,135"},{"$f":"BZ19","v":{"v":34092134.738789566,"d":"$34,092,135"}},{"$f":"BZ19+BZ21-BZ20","v":{"v":34079897.36232508,"d":"$34,079,897"}},{"$f":"CB19+CB21-CB20","v":{"v":34067675.29181145,"d":"$34,067,675"}},{"v":34055390.80667331,"d":"$34,055,391"},{"v":34042979.23667118,"d":"$34,042,979"},{"v":34030597.993712656,"d":"$34,030,598"},{"v":34018111.635458164,"d":"$34,018,112"},{"v":34005578.7655572,"d":"$34,005,579"},{"v":33993028.95291159,"d":"$33,993,029"},{"v":33980432.54416315,"d":"$33,980,433"},{"v":33967812.19060751,"d":"$33,967,812"},{"v":33955155.69142768,"d":"$33,955,156"},{"v":33942370.79927291,"d":"$33,942,371"},{"$f":"CM19","v":{"v":33942370.79927291,"d":"$33,942,371"}},{"$f":"CM19+CM21-CM20","v":{"v":33929605.49720584,"d":"$33,929,605"}},{"$f":"CO19+CO21-CO20","v":{"v":33916807.41959252,"d":"$33,916,807"}},{"v":33903920.908229575,"d":"$33,903,921"},{"v":33891056.60891193,"d":"$33,891,057"},{"v":33878050.05359827,"d":"$33,878,050"},{"v":33865008.66648693,"d":"$33,865,009"},{"v":33851845.46172051,"d":"$33,851,845"},{"v":33838676.806705035,"d":"$33,838,677"},{"v":33825410.98022643,"d":"$33,825,411"},{"v":33812138.99994165,"d":"$33,812,139"},{"v":33798758.835908726,"d":"$33,798,759"},{"v":33785428.039105706,"d":"$33,785,428"},{"$f":"CZ19","v":{"v":33785428.039105706,"d":"$33,785,428"}},{"$f":"CZ19+CZ21-CZ20","v":{"v":33772159.93171189,"d":"$33,772,160"}},{"$f":"DB19+DB21-DB20","v":{"v":33758780.83501526,"d":"$33,758,781"}},{"v":33745388.76154327,"d":"$33,745,389"},{"v":33732020.042529896,"d":"$33,732,020"},{"v":33718636.040710755,"d":"$33,718,636"},{"v":33705284.690916985,"d":"$33,705,285"},{"v":33691960.82348939,"d":"$33,691,961"},{"v":33678591.83784045,"d":"$33,678,592"},{"v":33665234.54186431,"d":"$33,665,235"},{"v":33651802.82951019,"d":"$33,651,803"},{"v":33638386.34697967,"d":"$33,638,386"},{"v":33625042.80415409,"d":"$33,625,043"},{"$f":"DM19","v":{"v":33625042.80415409,"d":"$33,625,043"}},{"$f":"DM19+DM21-DM20","v":{"v":33611610.6240359,"d":"$33,611,611"}},{"$f":"DO19+DO21-DO20","v":{"v":33598176.476769604,"d":"$33,598,176"}},{"v":33584813.03604329,"d":"$33,584,813"},{"v":33571403.53551629,"d":"$33,571,404"},{"v":33558003.97634796,"d":"$33,558,004"},{"v":33544599.789004844,"d":"$33,544,600"},{"v":33531161.51602903,"d":"$33,531,162"},{"v":33517685.718886483,"d":"$33,517,686"},{"v":33504220.53080562,"d":"$33,504,221"},{"v":33490671.987536002,"d":"$33,490,672"},{"v":33477063.622331347,"d":"$33,477,064"},{"v":33463508.254111268,"d":"$33,463,508"},{"$f":"DZ19","v":{"v":33463508.254111268,"d":"$33,463,508"}},{"$f":"DZ19+DZ21-DZ20","v":{"v":33449984.249369193,"d":"$33,449,984"}},{"$f":"EB19+EB21-EB20","v":{"v":33436402.990942005,"d":"$33,436,403"}},{"v":33422834.3438852,"d":"$33,422,834"},{"v":33409249.18805819,"d":"$33,409,249"},{"v":33395649.07477508,"d":"$33,395,649"},{"v":33381952.235713966,"d":"$33,381,952"},{"v":33368236.548001178,"d":"$33,368,237"},{"v":33354489.263697155,"d":"$33,354,489"},{"v":33340723.078065388,"d":"$33,340,723"},{"v":33326891.994589314,"d":"$33,326,892"},{"v":33313069.720182396,"d":"$33,313,070"},{"v":33299226.01425095,"d":"$33,299,226"},{"$f":"EM19","v":{"v":33299226.01425095,"d":"$33,299,226"}}]
[{"$f":"Labels!B11","v":"Capital Depreciation"},{"$f":"B22/Inputs!B19/12","v":{"v":206222.0144162289,"d":"$206,222"}},{"$f":"B19/Inputs!B19/12","v":{"v":206222.0144162289,"d":"$206,222"}},{"$f":"C19/Inputs!B19/12","v":{"v":206222.0144162289,"d":"$206,222"}},{"$f":"D19/Inputs!B19/12","v":{"v":206219.43958165878,"d":"$206,219"}},{"$f":"E19/Inputs!B19/12","v":{"v":206215.04952835353,"d":"$206,215"}},{"$f":"F19/Inputs!B19/12","v":{"v":206208.70185557578,"d":"$206,209"}},{"$f":"G19/Inputs!B19/12","v":{"v":206200.22078779686,"d":"$206,200"}},{"$f":"H19/Inputs!B19/12","v":{"v":206190.23151217552,"d":"$206,190"}},{"$f":"I19/Inputs!B19/12","v":{"v":206178.4214486204,"d":"$206,178"}},{"$f":"J19/Inputs!B19/12","v":{"v":206164.49331237338,"d":"$206,164"}},{"$f":"K19/Inputs!B19/12","v":{"v":206148.62065419916,"d":"$206,149"}},{"$f":"L19/Inputs!B19/12","v":{"v":206131.05884768607,"d":"$206,131"}},{"$f":"SUM(B20:M20)","v":{"v":2474322.2807771266,"d":"$2,474,322"}},{"$f":"M19/Inputs!B19/12","v":{"v":206112.34431561307,"d":"$206,112"}},{"$f":"O19/Inputs!B19/12","v":{"v":206092.2615334125,"d":"$206,092"}},{"$f":"P19/Inputs!B19/12","v":{"v":206070.66749214346,"d":"$206,071"}},{"$f":"Q19/Inputs!B19/12","v":{"v":206047.22715152404,"d":"$206,047"}},{"$f":"R19/Inputs!B19/12","v":{"v":206022.19748982845,"d":"$206,022"}},{"$f":"S19/Inputs!B19/12","v":{"v":205994.88120938928,"d":"$205,995"}},{"$f":"T19/Inputs!B19/12","v":{"v":205966.25387316218,"d":"$205,966"}},{"$f":"U19/Inputs!B19/12","v":{"v":205935.53730264047,"d":"$205,936"}},{"$f":"V19/Inputs!B19/12","v":{"v":205903.02250892634,"d":"$205,903"}},{"$f":"W19/Inputs!B19/12","v":{"v":205868.58896901726,"d":"$205,869"}},{"$f":"X19/Inputs!B19/12","v":{"v":205832.27859863426,"d":"$205,832"}},{"$f":"Y19/Inputs!B19/12","v":{"v":205794.5104391426,"d":"$205,795"}},{"$f":"SUM(O20:Z20)","v":{"v":2471639.770883434,"d":"$2,471,640"}},{"$f":"Z19/Inputs!B19/12","v":{"v":205755.42634600148,"d":"$205,755"}},{"$f":"AB19/Inputs!B19/12","v":{"v":205715.60942645327,"d":"$205,716"}},{"$f":"AC19/Inputs!B19/12","v":{"v":205674.33429742043,"d":"$205,674"}},{"$f":"AD19/Inputs!B19/12","v":{"v":205631.9432436707,"d":"$205,632"}},{"$f":"AE19/Inputs!B19/12","v":{"v":205589.1125577368,"d":"$205,589"}},{"$f":"AF19/Inputs!B19/12","v":{"v":205544.94643079306,"d":"$205,545"}},{"$f":"AG19/Inputs!B19/12","v":{"v":205499.3401213437,"d":"$205,499"}},{"$f":"AH19/Inputs!B19/12","v":{"v":205452.67871110016,"d":"$205,453"}},{"$f":"AI19/Inputs!B19/12","v":{"v":205404.95046922824,"d":"$205,405"}},{"$f":"AJ19/Inputs!B19/12","v":{"v":205356.41859773276,"d":"$205,356"}},{"$f":"AK19/Inputs!B19/12","v":{"v":205306.77285113328,"d":"$205,307"}},{"$f":"AL19/Inputs!B19/12","v":{"v":205256.75209536552,"d":"$205,257"}},{"$f":"SUM(AB20:AM20)","v":{"v":2466188.2851479794,"d":"$2,466,188"}},{"$f":"AM19/Inputs!B19/12","v":{"v":205205.92485751977,"d":"$205,206"}},{"$f":"AO19/Inputs!B19/12","v":{"v":205154.0857390427,"d":"$205,154"}},{"$f":"AP19/Inputs!B19/12","v":{"v":205101.01066925944,"d":"$205,101"}},{"$f":"AQ19/Inputs!B19/12","v":{"v":205046.737262393,"d":"$205,047"}},{"$f":"AR19/Inputs!B19/12","v":{"v":204992.34797607307,"d":"$204,992"}},{"$f":"AS19/Inputs!B19/12","v":{"v":204936.71967116685,"d":"$204,937"}},{"$f":"AT19/Inputs!B19/12","v":{"v":204880.66225527655,"d":"$204,881"}},{"$f":"AU19/Inputs!B19/12","v":{"v":204823.928638173,"d":"$204,824"}},{"$f":"AV19/Inputs!B19/12","v":{"v":204766.76911382948,"d":"$204,767"}},{"$f":"AW19/Inputs!B19/12","v":{"v":204708.84325330248,"d":"$204,709"}},{"$f":"AX19/Inputs!B19/12","v":{"v":204649.96022506687,"d":"$204,650"}},{"$f":"AY19/Inputs!B19/12","v":{"v":204590.38543472346,"d":"$204,590"}},{"$f":"SUM(AO20:AZ20)","v":{"v":2458857.3750958266,"d":"$2,458,857"}},{"$f":"AZ19/Inputs!B19/12","v":{"v":204530.63460462817,"d":"$204,531"}},{"$f":"BB19/Inputs!B19/12","v":{"v":204470.4054362273,"d":"$204,470"}},{"$f":"BC19/Inputs!B19/12","v":{"v":204409.1460275742,"d":"$204,409"}},{"$f":"BD19/Inputs!B19/12","v":{"v":204346.84898718388,"d":"$204,347"}},{"$f":"BE19/Inputs!B19/12","v":{"v":204284.04975616655,"d":"$204,284"}},{"$f":"BF19/Inputs!B19/12","v":{"v":204220.4956194134,"d":"$204,220"}},{"$f":"BG19/Inputs!B19/12","v":{"v":204156.77020428888,"d":"$204,157"}},{"$f":"BH19/Inputs!B19/12","v":{"v":204092.65542053338,"d":"$204,093"}},{"$f":"BI19/Inputs!B19/12","v":{"v":204028.14138903245,"d":"$204,028"}},{"$f":"BJ19/Inputs!B19/12","v":{"v":203963.3314488488,"d":"$203,963"}},{"$f":"BK19/Inputs!B19/12","v":{"v":203897.90774343422,"d":"$203,898"}},{"$f":"BL19/Inputs!B19/12","v":{"v":203831.86940860256,"d":"$203,832"}},{"$f":"SUM(BB20:BM20)","v":{"v":2450232.2560459333,"d":"$2,450,232"}},{"$f":"BM19/Inputs!B19/12","v":{"v":203764.85387888434,"d":"$203,765"}},{"$f":"BO19/Inputs!B19/12","v":{"v":203697.51208854435,"d":"$203,698"}},{"$f":"BP19/Inputs!B19/12","v":{"v":203629.38743264155,"d":"$203,629"}},{"$f":"BQ19/Inputs!B19/12","v":{"v":203561.0462900279,"d":"$203,561"}},{"$f":"BR19/Inputs!B19/12","v":{"v":203492.07140775947,"d":"$203,492"}},{"$f":"BS19/Inputs!B19/12","v":{"v":203423.30382318227,"d":"$203,423"}},{"$f":"BT19/Inputs!B19/12","v":{"v":203354.38990421908,"d":"$203,354"}},{"$f":"BU19/Inputs!B19/12","v":{"v":203285.12852261725,"d":"$203,285"}},{"$f":"BV19/Inputs!B19/12","v":{"v":203214.96684240983,"d":"$203,215"}},{"$f":"BW19/Inputs!B19/12","v":{"v":203144.0795646262,"d":"$203,144"}},{"$f":"BX19/Inputs!B19/12","v":{"v":203072.73248696324,"d":"$203,073"}},{"$f":"BY19/Inputs!B19/12","v":{"v":203001.4033645084,"d":"$203,001"}},{"$f":"SUM(BO20:BZ20)","v":{"v":2440640.875606384,"d":"$2,440,641"}},{"$f":"BZ19/Inputs!B19/12","v":{"v":202929.37344517597,"d":"$202,929"}},{"$f":"CB19/Inputs!B19/12","v":{"v":202856.5319186017,"d":"$202,857"}},{"$f":"CC19/Inputs!B19/12","v":{"v":202783.78149887768,"d":"$202,784"}},{"$f":"CD19/Inputs!B19/12","v":{"v":202710.6595635316,"d":"$202,711"}},{"$f":"CE19/Inputs!B19/12","v":{"v":202636.7811706618,"d":"$202,637"}},{"$f":"CF19/Inputs!B19/12","v":{"v":202563.08329590867,"d":"$202,563"}},{"$f":"CG19/Inputs!B19/12","v":{"v":202488.75973487002,"d":"$202,489"}},{"$f":"CH19/Inputs!B19/12","v":{"v":202414.15931879287,"d":"$202,414"}},{"$f":"CI19/Inputs!B19/12","v":{"v":202339.4580530452,"d":"$202,339"}},{"$f":"CJ19/Inputs!B19/12","v":{"v":202264.47942954258,"d":"$202,264"}},{"$f":"CK19/Inputs!B19/12","v":{"v":202189.35827742566,"d":"$202,189"}},{"$f":"CL19/Inputs!B19/12","v":{"v":202114.0219727838,"d":"$202,114"}},{"$f":"SUM(CB20:CM20)","v":{"v":2430290.4476792174,"d":"$2,430,290"}},{"$f":"CM19/Inputs!B19/12","v":{"v":202037.9214242435,"d":"$202,038"}},{"$f":"CO19/Inputs!B19/12","v":{"v":201961.9374833681,"d":"$201,962"}},{"$f":"CP19/Inputs!B19/12","v":{"v":201885.7584499555,"d":"$201,886"}},{"$f":"CQ19/Inputs!B19/12","v":{"v":201809.05302517605,"d":"$201,809"}},{"$f":"CR19/Inputs!B19/12","v":{"v":201732.47981495198,"d":"$201,732"}},{"$f":"CS19/Inputs!B19/12","v":{"v":201655.05984284685,"d":"$201,655"}},{"$f":"CT19/Inputs!B19/12","v":{"v":201577.43253861266,"d":"$201,577"}},{"$f":"CU19/Inputs!B19/12","v":{"v":201499.08012928875,"d":"$201,499"}},{"$f":"CV19/Inputs!B19/12","v":{"v":201420.69527800617,"d":"$201,421"}},{"$f":"CW19/Inputs!B19/12","v":{"v":201341.7320251573,"d":"$201,342"}},{"$f":"CX19/Inputs!B19/12","v":{"v":201262.7321425098,"d":"$201,263"}},{"$f":"CY19/Inputs!B19/12","v":{"v":201183.08830898048,"d":"$201,183"}},{"$f":"SUM(CO20:CZ20)","v":{"v":2419366.9704630976,"d":"$2,419,367"}},{"$f":"CZ19/Inputs!B19/12","v":{"v":201103.73832801016,"d":"$201,104"}},{"$f":"DB19/Inputs!B19/12","v":{"v":201024.76149828508,"d":"$201,025"}},{"$f":"DC19/Inputs!B19/12","v":{"v":200945.12401794796,"d":"$200,945"}},{"$f":"DD19/Inputs!B19/12","v":{"v":200865.4092949004,"d":"$200,865"}},{"$f":"DE19/Inputs!B19/12","v":{"v":200785.83358648748,"d":"$200,786"}},{"$f":"DF19/Inputs!B19/12","v":{"v":200706.16690899257,"d":"$200,706"}},{"$f":"DG19/Inputs!B19/12","v":{"v":200626.69458879158,"d":"$200,627"}},{"$f":"DH19/Inputs!B19/12","v":{"v":200547.38585410352,"d":"$200,547"}},{"$f":"DI19/Inputs!B19/12","v":{"v":200467.80855857415,"d":"$200,468"}},{"$f":"DJ19/Inputs!B19/12","v":{"v":200388.30084443043,"d":"$200,388"}},{"$f":"DK19/Inputs!B19/12","v":{"v":200308.35017565588,"d":"$200,308"}},{"$f":"DL19/Inputs!B19/12","v":{"v":200228.49016059327,"d":"$200,228"}},{"$f":"SUM(DB20:DM20)","v":{"v":2407998.0638167723,"d":"$2,407,998"}},{"$f":"DM19/Inputs!B19/12","v":{"v":200149.06431044103,"d":"$200,149"}},{"$f":"DO19/Inputs!B19/12","v":{"v":200069.11085735657,"d":"$200,069"}},{"$f":"DP19/Inputs!B19/12","v":{"v":199989.14569505714,"d":"$199,989"}},{"$f":"DQ19/Inputs!B19/12","v":{"v":199909.60140501955,"d":"$199,910"}},{"$f":"DR19/Inputs!B19/12","v":{"v":199829.78294950174,"d":"$199,830"}},{"$f":"DS19/Inputs!B19/12","v":{"v":199750.02366873785,"d":"$199,750"}},{"$f":"DT19/Inputs!B19/12","v":{"v":199670.23683931454,"d":"$199,670"}},{"$f":"DU19/Inputs!B19/12","v":{"v":199590.2471192204,"d":"$199,590"}},{"$f":"DV19/Inputs!B19/12","v":{"v":199510.03404099098,"d":"$199,510"}},{"$f":"DW19/Inputs!B19/12","v":{"v":199429.8841119382,"d":"$199,430"}},{"$f":"DX19/Inputs!B19/12","v":{"v":199349.23802104764,"d":"$199,349"}},{"$f":"DY19/Inputs!B19/12","v":{"v":199268.2358472104,"d":"$199,268"}},{"$f":"SUM(DO20:DZ20)","v":{"v":2396514.6048658364,"d":"$2,396,515"}},{"$f":"DZ19/Inputs!B19/12","v":{"v":199187.5491316147,"d":"$199,188"}},{"$f":"EB19/Inputs!B19/12","v":{"v":199107.04910338807,"d":"$199,107"}},{"$f":"EC19/Inputs!B19/12","v":{"v":199026.2082794167,"d":"$199,026"}},{"$f":"ED19/Inputs!B19/12","v":{"v":198945.44252312617,"d":"$198,945"}},{"$f":"EE19/Inputs!B19/12","v":{"v":198864.57850034637,"d":"$198,865"}},{"$f":"EF19/Inputs!B19/12","v":{"v":198783.62544508977,"d":"$198,784"}},{"$f":"EG19/Inputs!B19/12","v":{"v":198702.09664115458,"d":"$198,702"}},{"$f":"EH19/Inputs!B19/12","v":{"v":198620.45564286414,"d":"$198,620"}},{"$f":"EI19/Inputs!B19/12","v":{"v":198538.62656962592,"d":"$198,539"}},{"$f":"EJ19/Inputs!B19/12","v":{"v":198456.68498848446,"d":"$198,457"}},{"$f":"EK19/Inputs!B19/12","v":{"v":198374.35711065066,"d":"$198,374"}},{"$f":"EL19/Inputs!B19/12","v":{"v":198292.08166775235,"d":"$198,292"}},{"$f":"SUM(EB20:EM20)","v":{"v":2384898.7556035137,"d":"$2,384,899"}}]
[{"$f":"Labels!B19","v":"Capital Investment"},{"$f":"B20+(B22-B19)/Inputs!B22/12","v":{"v":206222.0144162289,"d":"$206,222"}},{"$f":"C20+(C22-C19)/Inputs!B22/12","v":{"v":205789.4422084438,"d":"$205,789"}},{"$f":"D20+(D22-D19)/Inputs!B22/12","v":{"v":205484.48546094645,"d":"$205,484"}},{"$f":"E20+(E22-E19)/Inputs!B22/12","v":{"v":205153.03055500373,"d":"$205,153"}},{"$f":"F20+(F22-F19)/Inputs!B22/12","v":{"v":204790.230141494,"d":"$204,790"}},{"$f":"G20+(G22-G19)/Inputs!B22/12","v":{"v":204530.50355119517,"d":"$204,531"}},{"$f":"H20+(H22-H19)/Inputs!B22/12","v":{"v":204216.13011052867,"d":"$204,216"}},{"$f":"I20+(I22-I19)/Inputs!B22/12","v":{"v":203850.30462267442,"d":"$203,850"}},{"$f":"J20+(J22-J19)/Inputs!B22/12","v":{"v":203511.8148753483,"d":"$203,512"}},{"$f":"K20+(K22-K19)/Inputs!B22/12","v":{"v":203214.10981818146,"d":"$203,214"}},{"$f":"L20+(L22-L19)/Inputs!B22/12","v":{"v":203004.57926592696,"d":"$203,005"}},{"$f":"M20+(M22-M19)/Inputs!B22/12","v":{"v":202757.15143798996,"d":"$202,757"}},{"$f":"SUM(B21:M21)","v":{"v":2452523.7964639612,"d":"$2,452,524"}},{"$f":"O20+(O22-O19)/Inputs!B22/12","v":{"v":202484.54538240674,"d":"$202,485"}},{"$f":"P20+(P22-P19)/Inputs!B22/12","v":{"v":202154.28430934812,"d":"$202,154"}},{"$f":"Q20+(Q22-Q19)/Inputs!B22/12","v":{"v":201865.68432727875,"d":"$201,866"}},{"$f":"R20+(R22-R19)/Inputs!B22/12","v":{"v":201458.09203773507,"d":"$201,458"}},{"$f":"S20+(S22-S19)/Inputs!B22/12","v":{"v":201212.80500367403,"d":"$201,213"}},{"$f":"T20+(T22-T19)/Inputs!B22/12","v":{"v":200834.4973617416,"d":"$200,834"}},{"$f":"U20+(U22-U19)/Inputs!B22/12","v":{"v":200503.7685291881,"d":"$200,504"}},{"$f":"V20+(V22-V19)/Inputs!B22/12","v":{"v":200150.70259791767,"d":"$200,151"}},{"$f":"W20+(W22-W19)/Inputs!B22/12","v":{"v":199802.88028458552,"d":"$199,803"}},{"$f":"X20+(X22-X19)/Inputs!B22/12","v":{"v":199523.5381744183,"d":"$199,524"}},{"$f":"Y20+(Y22-Y19)/Inputs!B22/12","v":{"v":199266.15095092225,"d":"$199,266"}},{"$f":"Z20+(Z22-Z19)/Inputs!B22/12","v":{"v":199105.26795504536,"d":"$199,105"}},{"$f":"SUM(O21:Z21)","v":{"v":2408362.216914261,"d":"$2,408,362"}},{"$f":"AB20+(AB22-AB19)/Inputs!B22/12","v":{"v":198821.20466848582,"d":"$198,821"}},{"$f":"AC20+(AC22-AC19)/Inputs!B22/12","v":{"v":198593.91239650772,"d":"$198,594"}},{"$f":"AD20+(AD22-AD19)/Inputs!B22/12","v":{"v":198478.77906052,"d":"$198,479"}},{"$f":"AE20+(AE22-AE19)/Inputs!B22/12","v":{"v":198212.03391711964,"d":"$198,212"}},{"$f":"AF20+(AF22-AF19)/Inputs!B22/12","v":{"v":197927.25257024425,"d":"$197,927"}},{"$f":"AG20+(AG22-AG19)/Inputs!B22/12","v":{"v":197705.82950988103,"d":"$197,706"}},{"$f":"AH20+(AH22-AH19)/Inputs!B22/12","v":{"v":197480.99548686168,"d":"$197,481"}},{"$f":"AI20+(AI22-AI19)/Inputs!B22/12","v":{"v":197299.32429985804,"d":"$197,299"}},{"$f":"AJ20+(AJ22-AJ19)/Inputs!B22/12","v":{"v":197064.46504051186,"d":"$197,064"}},{"$f":"AK20+(AK22-AK19)/Inputs!B22/12","v":{"v":196952.93162874546,"d":"$196,953"}},{"$f":"AL20+(AL22-AL19)/Inputs!B22/12","v":{"v":196767.79689304196,"d":"$196,768"}},{"$f":"AM20+(AM22-AM19)/Inputs!B22/12","v":{"v":196547.7801912235,"d":"$196,548"}},{"$f":"SUM(AB21:AM21)","v":{"v":2371852.3056630013,"d":"$2,371,852"}},{"$f":"AO20+(AO22-AO19)/Inputs!B22/12","v":{"v":196289.3131339308,"d":"$196,289"}},{"$f":"AP20+(AP22-AP19)/Inputs!B22/12","v":{"v":196036.15338548634,"d":"$196,036"}},{"$f":"AQ20+(AQ22-AQ19)/Inputs!B22/12","v":{"v":195963.610567515,"d":"$195,964"}},{"$f":"AR20+(AR22-AR19)/Inputs!B22/12","v":{"v":195701.18203814467,"d":"$195,701"}},{"$f":"AS20+(AS22-AS19)/Inputs!B22/12","v":{"v":195574.7021064995,"d":"$195,575"}},{"$f":"AT20+(AT22-AT19)/Inputs!B22/12","v":{"v":195405.4719977756,"d":"$195,405"}},{"$f":"AU20+(AU22-AU19)/Inputs!B22/12","v":{"v":195277.86216557102,"d":"$195,278"}},{"$f":"AV20+(AV22-AV19)/Inputs!B22/12","v":{"v":195092.38406963806,"d":"$195,092"}},{"$f":"AW20+(AW22-AW19)/Inputs!B22/12","v":{"v":194874.42037025085,"d":"$194,874"}},{"$f":"AX20+(AX22-AX19)/Inputs!B22/12","v":{"v":194700.27847560865,"d":"$194,700"}},{"$f":"AY20+(AY22-AY19)/Inputs!B22/12","v":{"v":194611.82076905612,"d":"$194,612"}},{"$f":"AZ20+(AZ22-AZ19)/Inputs!B22/12","v":{"v":194471.88514337823,"d":"$194,472"}},{"$f":"SUM(AO21:AZ21)","v":{"v":2343999.084222855,"d":"$2,343,999"}},{"$f":"BB20+(BB22-BB19)/Inputs!B22/12","v":{"v":194239.05395090525,"d":"$194,239"}},{"$f":"BC20+(BC22-BC19)/Inputs!B22/12","v":{"v":194004.5026506556,"d":"$194,005"}},{"$f":"BD20+(BD22-BD19)/Inputs!B22/12","v":{"v":193858.87521666172,"d":"$193,859"}},{"$f":"BE20+(BE22-BE19)/Inputs!B22/12","v":{"v":193669.75401265197,"d":"$193,670"}},{"$f":"BF20+(BF22-BF19)/Inputs!B22/12","v":{"v":193578.18001524932,"d":"$193,578"}},{"$f":"BG20+(BG22-BG19)/Inputs!B22/12","v":{"v":193449.211948495,"d":"$193,449"}},{"$f":"BH20+(BH22-BH19)/Inputs!B22/12","v":{"v":193318.41291212724,"d":"$193,318"}},{"$f":"BI20+(BI22-BI19)/Inputs!B22/12","v":{"v":193204.58546968477,"d":"$193,205"}},{"$f":"BJ20+(BJ22-BJ19)/Inputs!B22/12","v":{"v":193036.95887939035,"d":"$193,037"}},{"$f":"BK20+(BK22-BK19)/Inputs!B22/12","v":{"v":192868.8911971209,"d":"$192,869"}},{"$f":"BL20+(BL22-BL19)/Inputs!B22/12","v":{"v":192639.29875077505,"d":"$192,639"}},{"$f":"BM20+(BM22-BM19)/Inputs!B22/12","v":{"v":192518.4486314814,"d":"$192,518"}},{"$f":"SUM(BB21:BM21)","v":{"v":2320386.1736351983,"d":"$2,320,386"}},{"$f":"BO20+(BO22-BO19)/Inputs!B22/12","v":{"v":192319.91168720738,"d":"$192,320"}},{"$f":"BP20+(BP22-BP19)/Inputs!B22/12","v":{"v":192216.20012945545,"d":"$192,216"}},{"$f":"BQ20+(BQ22-BQ19)/Inputs!B22/12","v":{"v":192041.60721154584,"d":"$192,042"}},{"$f":"BR20+(BR22-BR19)/Inputs!B22/12","v":{"v":192008.09208105307,"d":"$192,008"}},{"$f":"BS20+(BS22-BS19)/Inputs!B22/12","v":{"v":191914.53302193963,"d":"$191,915"}},{"$f":"BT20+(BT22-BT19)/Inputs!B22/12","v":{"v":191787.3917140755,"d":"$191,787"}},{"$f":"BU20+(BU22-BU19)/Inputs!B22/12","v":{"v":191567.2276293708,"d":"$191,567"}},{"$f":"BV20+(BV22-BV19)/Inputs!B22/12","v":{"v":191376.06585496594,"d":"$191,376"}},{"$f":"BW20+(BW22-BW19)/Inputs!B22/12","v":{"v":191228.65779503682,"d":"$191,229"}},{"$f":"BX20+(BX22-BX19)/Inputs!B22/12","v":{"v":191160.7869922181,"d":"$191,161"}},{"$f":"BY20+(BY22-BY19)/Inputs!B22/12","v":{"v":190971.70603911308,"d":"$190,972"}},{"$f":"BZ20+(BZ22-BZ19)/Inputs!B22/12","v":{"v":190764.0269000231,"d":"$190,764"}},{"$f":"SUM(BO21:BZ21)","v":{"v":2299356.207056005,"d":"$2,299,356"}},{"$f":"CB20+(CB22-CB19)/Inputs!B22/12","v":{"v":190707.30293154548,"d":"$190,707"}},{"$f":"CC20+(CC22-CC19)/Inputs!B22/12","v":{"v":190572.04678045982,"d":"$190,572"}},{"$f":"CD20+(CD22-CD19)/Inputs!B22/12","v":{"v":190372.21149674547,"d":"$190,372"}},{"$f":"CE20+(CE22-CE19)/Inputs!B22/12","v":{"v":190329.41660500868,"d":"$190,329"}},{"$f":"CF20+(CF22-CF19)/Inputs!B22/12","v":{"v":190150.42291616392,"d":"$190,150"}},{"$f":"CG20+(CG22-CG19)/Inputs!B22/12","v":{"v":190030.21339494985,"d":"$190,030"}},{"$f":"CH20+(CH22-CH19)/Inputs!B22/12","v":{"v":189938.9470892598,"d":"$189,939"}},{"$f":"CI20+(CI22-CI19)/Inputs!B22/12","v":{"v":189817.7505703493,"d":"$189,818"}},{"$f":"CJ20+(CJ22-CJ19)/Inputs!B22/12","v":{"v":189719.10449740605,"d":"$189,719"}},{"$f":"CK20+(CK22-CK19)/Inputs!B22/12","v":{"v":189607.980249712,"d":"$189,608"}},{"$f":"CL20+(CL22-CL19)/Inputs!B22/12","v":{"v":189404.46612265622,"d":"$189,404"}},{"$f":"CM20+(CM22-CM19)/Inputs!B22/12","v":{"v":189348.71990571002,"d":"$189,349"}},{"$f":"SUM(CB21:CM21)","v":{"v":2279998.5825599665,"d":"$2,279,999"}},{"$f":"CO20+(CO22-CO19)/Inputs!B22/12","v":{"v":189239.84381092156,"d":"$189,240"}},{"$f":"CP20+(CP22-CP19)/Inputs!B22/12","v":{"v":189075.42612042263,"d":"$189,075"}},{"$f":"CQ20+(CQ22-CQ19)/Inputs!B22/12","v":{"v":189021.45913231577,"d":"$189,021"}},{"$f":"CR20+(CR22-CR19)/Inputs!B22/12","v":{"v":188802.49771151508,"d":"$188,802"}},{"$f":"CS20+(CS22-CS19)/Inputs!B22/12","v":{"v":188691.09270360792,"d":"$188,691"}},{"$f":"CT20+(CT22-CT19)/Inputs!B22/12","v":{"v":188491.8550764288,"d":"$188,492"}},{"$f":"CU20+(CU22-CU19)/Inputs!B22/12","v":{"v":188408.7775231388,"d":"$188,409"}},{"$f":"CV20+(CV22-CV19)/Inputs!B22/12","v":{"v":188233.253650681,"d":"$188,233"}},{"$f":"CW20+(CW22-CW19)/Inputs!B22/12","v":{"v":188148.71499322684,"d":"$188,149"}},{"$f":"CX20+(CX22-CX19)/Inputs!B22/12","v":{"v":187961.5679922327,"d":"$187,962"}},{"$f":"CY20+(CY22-CY19)/Inputs!B22/12","v":{"v":187931.93533948748,"d":"$187,932"}},{"$f":"CZ20+(CZ22-CZ19)/Inputs!B22/12","v":{"v":187914.98091516728,"d":"$187,915"}},{"$f":"SUM(CO21:CZ21)","v":{"v":2261921.4049691455,"d":"$2,261,921"}},{"$f":"DB20+(DB22-DB19)/Inputs!B22/12","v":{"v":187724.6416313818,"d":"$187,725"}},{"$f":"DC20+(DC22-DC19)/Inputs!B22/12","v":{"v":187632.68802629187,"d":"$187,633"}},{"$f":"DD20+(DD22-DD19)/Inputs!B22/12","v":{"v":187576.40500457285,"d":"$187,576"}},{"$f":"DE20+(DE22-DE19)/Inputs!B22/12","v":{"v":187481.4074757625,"d":"$187,481"}},{"$f":"DF20+(DF22-DF19)/Inputs!B22/12","v":{"v":187434.4837927154,"d":"$187,434"}},{"$f":"DG20+(DG22-DG19)/Inputs!B22/12","v":{"v":187382.29948139907,"d":"$187,382"}},{"$f":"DH20+(DH22-DH19)/Inputs!B22/12","v":{"v":187257.70893985726,"d":"$187,258"}},{"$f":"DI20+(DI22-DI19)/Inputs!B22/12","v":{"v":187190.08987796007,"d":"$187,190"}},{"$f":"DJ20+(DJ22-DJ19)/Inputs!B22/12","v":{"v":187036.09620445396,"d":"$187,036"}},{"$f":"DK20+(DK22-DK19)/Inputs!B22/12","v":{"v":186971.81831391167,"d":"$186,972"}},{"$f":"DL20+(DL22-DL19)/Inputs!B22/12","v":{"v":186964.80735007324,"d":"$186,965"}},{"$f":"DM20+(DM22-DM19)/Inputs!B22/12","v":{"v":186796.31004240646,"d":"$186,796"}},{"$f":"SUM(DB21:DM21)","v":{"v":2247448.756140786,"d":"$2,247,449"}},{"$f":"DO20+(DO22-DO19)/Inputs!B22/12","v":{"v":186714.91704414116,"d":"$186,715"}},{"$f":"DP20+(DP22-DP19)/Inputs!B22/12","v":{"v":186705.67013103983,"d":"$186,706"}},{"$f":"DQ20+(DQ22-DQ19)/Inputs!B22/12","v":{"v":186579.64516806393,"d":"$186,580"}},{"$f":"DR20+(DR22-DR19)/Inputs!B22/12","v":{"v":186510.04223668843,"d":"$186,510"}},{"$f":"DS20+(DS22-DS19)/Inputs!B22/12","v":{"v":186425.59560638436,"d":"$186,426"}},{"$f":"DT20+(DT22-DT19)/Inputs!B22/12","v":{"v":186311.7506929258,"d":"$186,312"}},{"$f":"DU20+(DU22-DU19)/Inputs!B22/12","v":{"v":186194.4396967642,"d":"$186,194"}},{"$f":"DV20+(DV22-DV19)/Inputs!B22/12","v":{"v":186125.0590383568,"d":"$186,125"}},{"$f":"DW20+(DW22-DW19)/Inputs!B22/12","v":{"v":185961.49077137432,"d":"$185,961"}},{"$f":"DX20+(DX22-DX19)/Inputs!B22/12","v":{"v":185821.5189072814,"d":"$185,822"}},{"$f":"DY20+(DY22-DY19)/Inputs!B22/12","v":{"v":185793.8698009641,"d":"$185,794"}},{"$f":"DZ20+(DZ22-DZ19)/Inputs!B22/12","v":{"v":185744.2311051369,"d":"$185,744"}},{"$f":"SUM(DO21:DZ21)","v":{"v":2234888.230199121,"d":"$2,234,888"}},{"$f":"EB20+(EB22-EB19)/Inputs!B22/12","v":{"v":185606.29070442598,"d":"$185,606"}},{"$f":"EC20+(EC22-EC19)/Inputs!B22/12","v":{"v":185538.4020465795,"d":"$185,538"}},{"$f":"ED20+(ED22-ED19)/Inputs!B22/12","v":{"v":185441.0524524053,"d":"$185,441"}},{"$f":"EE20+(EE22-EE19)/Inputs!B22/12","v":{"v":185345.329240019,"d":"$185,345"}},{"$f":"EF20+(EF22-EF19)/Inputs!B22/12","v":{"v":185167.73943923163,"d":"$185,168"}},{"$f":"EG20+(EG22-EG19)/Inputs!B22/12","v":{"v":185067.93773230037,"d":"$185,068"}},{"$f":"EH20+(EH22-EH19)/Inputs!B22/12","v":{"v":184954.8123371294,"d":"$184,955"}},{"$f":"EI20+(EI22-EI19)/Inputs!B22/12","v":{"v":184854.27001109568,"d":"$184,854"}},{"$f":"EJ20+(EJ22-EJ19)/Inputs!B22/12","v":{"v":184707.54309355127,"d":"$184,708"}},{"$f":"EK20+(EK22-EK19)/Inputs!B22/12","v":{"v":184634.4105815652,"d":"$184,634"}},{"$f":"EL20+(EL22-EL19)/Inputs!B22/12","v":{"v":184530.65117920155,"d":"$184,531"}},{"$f":"EM20+(EM22-EM19)/Inputs!B22/12","v":{"v":184378.09393567327,"d":"$184,378"}},{"$f":"SUM(EB21:EM21)","v":{"v":2220226.532753178,"d":"$2,220,227"}}]
[{"$f":"Labels!B14","v":"Desired Capital"},{"$f":"Inputs!B20*B10/(1/Inputs!B19/12+'(Other Computations)'!B144)","v":{"v":34645298.42192645,"d":"$34,645,298"}},{"$f":"Inputs!B20*C10/(1/Inputs!B19/12+'(Other Computations)'!B144)","v":{"v":34629725.82244619,"d":"$34,629,726"}},{"$f":"Inputs!B20*D10/(1/Inputs!B19/12+'(Other Computations)'!B144)","v":{"v":34618314.80732851,"d":"$34,618,315"}},{"$f":"Inputs!B20*E10/(1/Inputs!B19/12+'(Other Computations)'!B144)","v":{"v":34605737.59580381,"d":"$34,605,738"}},{"$f":"Inputs!B20*F10/(1/Inputs!B19/12+'(Other Computations)'!B144)","v":{"v":34591768.41380979,"d":"$34,591,768"}},{"$f":"Inputs!B20*G10/(1/Inputs!B19/12+'(Other Computations)'!B144)","v":{"v":34581221.95339217,"d":"$34,581,222"}},{"$f":"Inputs!B20*H10/(1/Inputs!B19/12+'(Other Computations)'!B144)","v":{"v":34568531.62966383,"d":"$34,568,532"}},{"$f":"Inputs!B20*I10/(1/Inputs!B19/12+'(Other Computations)'!B144)","v":{"v":34553737.435346186,"d":"$34,553,737"}},{"$f":"Inputs!B20*J10/(1/Inputs!B19/12+'(Other Computations)'!B144)","v":{"v":34539637.03984093,"d":"$34,539,637"}},{"$f":"Inputs!B20*K10/(1/Inputs!B19/12+'(Other Computations)'!B144)","v":{"v":34526754.46411455,"d":"$34,526,754"}},{"$f":"Inputs!B20*L10/(1/Inputs!B19/12+'(Other Computations)'!B144)","v":{"v":34516832.396433465,"d":"$34,516,832"}},{"$f":"Inputs!B20*M10/(1/Inputs!B19/12+'(Other Computations)'!B144)","v":{"v":34505413.17827394,"d":"$34,505,413"}},{"$f":"M22","v":{"v":34505413.17827394,"d":"$34,505,413"}},{"$f":"Inputs!B20*O10/(1/Inputs!B19/12+'(Other Computations)'!B144)","v":{"v":34492899.17601787,"d":"$34,492,899"}},{"$f":"Inputs!B20*P10/(1/Inputs!B19/12+'(Other Computations)'!B144)","v":{"v":34478104.95861378,"d":"$34,478,105"}},{"$f":"Inputs!B20*Q10/(1/Inputs!B19/12+'(Other Computations)'!B144)","v":{"v":34464554.76752091,"d":"$34,464,555"}},{"$f":"Inputs!B20*R10/(1/Inputs!B19/12+'(Other Computations)'!B144)","v":{"v":34446520.314194776,"d":"$34,446,520"}},{"$f":"Inputs!B20*S10/(1/Inputs!B19/12+'(Other Computations)'!B144)","v":{"v":34434001.91367584,"d":"$34,434,002"}},{"$f":"Inputs!B20*T10/(1/Inputs!B19/12+'(Other Computations)'!B144)","v":{"v":34416556.832175925,"d":"$34,416,557"}},{"$f":"Inputs!B20*U10/(1/Inputs!B19/12+'(Other Computations)'!B144)","v":{"v":34400520.79446053,"d":"$34,400,521"}},{"$f":"Inputs!B20*V10/(1/Inputs!B19/12+'(Other Computations)'!B144)","v":{"v":34383453.7321296,"d":"$34,383,454"}},{"$f":"Inputs!B20*W10/(1/Inputs!B19/12+'(Other Computations)'!B144)","v":{"v":34366317.82671863,"d":"$34,366,318"}},{"$f":"Inputs!B20*X10/(1/Inputs!B19/12+'(Other Computations)'!B144)","v":{"v":34351400.97596499,"d":"$34,351,401"}},{"$f":"Inputs!B20*Y10/(1/Inputs!B19/12+'(Other Computations)'!B144)","v":{"v":34337097.15845833,"d":"$34,337,097"}},{"$f":"Inputs!B20*Z10/(1/Inputs!B19/12+'(Other Computations)'!B144)","v":{"v":34326098.89670075,"d":"$34,326,099"}},{"$f":"Z22","v":{"v":34326098.89670075,"d":"$34,326,099"}},{"$f":"Inputs!B20*AB10/(1/Inputs!B19/12+'(Other Computations)'!B144)","v":{"v":34310590.403253585,"d":"$34,310,590"}},{"$f":"Inputs!B20*AC10/(1/Inputs!B19/12+'(Other Computations)'!B144)","v":{"v":34296907.06888859,"d":"$34,296,907"}},{"$f":"Inputs!B20*AD10/(1/Inputs!B19/12+'(Other Computations)'!B144)","v":{"v":34287126.476408266,"d":"$34,287,126"}},{"$f":"Inputs!B20*AE10/(1/Inputs!B19/12+'(Other Computations)'!B144)","v":{"v":34271854.173943944,"d":"$34,271,854"}},{"$f":"Inputs!B20*AF10/(1/Inputs!B19/12+'(Other Computations)'!B144)","v":{"v":34255724.040823504,"d":"$34,255,724"}},{"$f":"Inputs!B20*AG10/(1/Inputs!B19/12+'(Other Computations)'!B144)","v":{"v":34241680.93123291,"d":"$34,241,681"}},{"$f":"Inputs!B20*AH10/(1/Inputs!B19/12+'(Other Computations)'!B144)","v":{"v":34227389.616623476,"d":"$34,227,390"}},{"$f":"Inputs!B20*AI10/(1/Inputs!B19/12+'(Other Computations)'!B144)","v":{"v":34214510.92002563,"d":"$34,214,511"}},{"$f":"Inputs!B20*AJ10/(1/Inputs!B19/12+'(Other Computations)'!B144)","v":{"v":34199620.848985314,"d":"$34,199,621"}},{"$f":"Inputs!B20*AK10/(1/Inputs!B19/12+'(Other Computations)'!B144)","v":{"v":34189012.30810685,"d":"$34,189,012"}},{"$f":"Inputs!B20*AL10/(1/Inputs!B19/12+'(Other Computations)'!B144)","v":{"v":34175731.21753012,"d":"$34,175,731"}},{"$f":"Inputs!B20*AM10/(1/Inputs!B19/12+'(Other Computations)'!B144)","v":{"v":34161072.387514204,"d":"$34,161,072"}},{"$f":"AM22","v":{"v":34161072.387514204,"d":"$34,161,072"}},{"$f":"Inputs!B20*AO10/(1/Inputs!B19/12+'(Other Computations)'!B144)","v":{"v":34144888.38210997,"d":"$34,144,888"}},{"$f":"Inputs!B20*AP10/(1/Inputs!B19/12+'(Other Computations)'!B144)","v":{"v":34128724.22770756,"d":"$34,128,724"}},{"$f":"Inputs!B20*AQ10/(1/Inputs!B19/12+'(Other Computations)'!B144)","v":{"v":34118905.45641922,"d":"$34,118,905"}},{"$f":"Inputs!B20*AR10/(1/Inputs!B19/12+'(Other Computations)'!B144)","v":{"v":34102274.47190734,"d":"$34,102,274"}},{"$f":"Inputs!B20*AS10/(1/Inputs!B19/12+'(Other Computations)'!B144)","v":{"v":34090333.65345138,"d":"$34,090,334"}},{"$f":"Inputs!B20*AT10/(1/Inputs!B19/12+'(Other Computations)'!B144)","v":{"v":34076826.34264437,"d":"$34,076,826"}},{"$f":"Inputs!B20*AU10/(1/Inputs!B19/12+'(Other Computations)'!B144)","v":{"v":34064719.207983665,"d":"$34,064,719"}},{"$f":"Inputs!B20*AV10/(1/Inputs!B19/12+'(Other Computations)'!B144)","v":{"v":34050481.6066561,"d":"$34,050,482"}},{"$f":"Inputs!B20*AW10/(1/Inputs!B19/12+'(Other Computations)'!B144)","v":{"v":34034961.111785986,"d":"$34,034,961"}},{"$f":"Inputs!B20*AX10/(1/Inputs!B19/12+'(Other Computations)'!B144)","v":{"v":34020884.98581426,"d":"$34,020,885"}},{"$f":"Inputs!B20*AY10/(1/Inputs!B19/12+'(Other Computations)'!B144)","v":{"v":34009811.732617155,"d":"$34,009,812"}},{"$f":"Inputs!B20*AZ10/(1/Inputs!B19/12+'(Other Computations)'!B144)","v":{"v":33996880.6030891,"d":"$33,996,881"}},{"$f":"AZ22","v":{"v":33996880.6030891,"d":"$33,996,881"}},{"$f":"Inputs!B20*BB10/(1/Inputs!B19/12+'(Other Computations)'!B144)","v":{"v":33980531.20975216,"d":"$33,980,531"}},{"$f":"Inputs!B20*BC10/(1/Inputs!B19/12+'(Other Computations)'!B144)","v":{"v":33963964.03235188,"d":"$33,963,964"}},{"$f":"Inputs!B20*BD10/(1/Inputs!B19/12+'(Other Computations)'!B144)","v":{"v":33950460.880654044,"d":"$33,950,461"}},{"$f":"Inputs!B20*BE10/(1/Inputs!B19/12+'(Other Computations)'!B144)","v":{"v":33935344.939952835,"d":"$33,935,345"}},{"$f":"Inputs!B20*BF10/(1/Inputs!B19/12+'(Other Computations)'!B144)","v":{"v":33923631.95338843,"d":"$33,923,632"}},{"$f":"Inputs!B20*BG10/(1/Inputs!B19/12+'(Other Computations)'!B144)","v":{"v":33910571.18216747,"d":"$33,910,571"}},{"$f":"Inputs!B20*BH10/(1/Inputs!B19/12+'(Other Computations)'!B144)","v":{"v":33897385.24813179,"d":"$33,897,385"}},{"$f":"Inputs!B20*BI10/(1/Inputs!B19/12+'(Other Computations)'!B144)","v":{"v":33884757.2351269,"d":"$33,884,757"}},{"$f":"Inputs!B20*BJ10/(1/Inputs!B19/12+'(Other Computations)'!B144)","v":{"v":33870157.11305948,"d":"$33,870,157"}},{"$f":"Inputs!B20*BK10/(1/Inputs!B19/12+'(Other Computations)'!B144)","v":{"v":33855448.65183475,"d":"$33,855,449"}},{"$f":"Inputs!B20*BL10/(1/Inputs!B19/12+'(Other Computations)'!B144)","v":{"v":33838444.1369095,"d":"$33,838,444"}},{"$f":"Inputs!B20*BM10/(1/Inputs!B19/12+'(Other Computations)'!B144)","v":{"v":33825212.30367621,"d":"$33,825,212"}},{"$f":"BM22","v":{"v":33825212.30367621,"d":"$33,825,212"}},{"$f":"Inputs!B20*BO10/(1/Inputs!B19/12+'(Other Computations)'!B144)","v":{"v":33809164.11197508,"d":"$33,809,164"}},{"$f":"Inputs!B20*BP10/(1/Inputs!B19/12+'(Other Computations)'!B144)","v":{"v":33796409.85815658,"d":"$33,796,410"}},{"$f":"Inputs!B20*BQ10/(1/Inputs!B19/12+'(Other Computations)'!B144)","v":{"v":33781095.68876524,"d":"$33,781,096"}},{"$f":"Inputs!B20*BR10/(1/Inputs!B19/12+'(Other Computations)'!B144)","v":{"v":33770761.6449805,"d":"$33,770,762"}},{"$f":"Inputs!B20*BS10/(1/Inputs!B19/12+'(Other Computations)'!B144)","v":{"v":33758323.66040511,"d":"$33,758,324"}},{"$f":"Inputs!B20*BT10/(1/Inputs!B19/12+'(Other Computations)'!B144)","v":{"v":33744644.66798096,"d":"$33,744,645"}},{"$f":"Inputs!B20*BU10/(1/Inputs!B19/12+'(Other Computations)'!B144)","v":{"v":33727563.74990516,"d":"$33,727,564"}},{"$f":"Inputs!B20*BV10/(1/Inputs!B19/12+'(Other Computations)'!B144)","v":{"v":33711388.17348941,"d":"$33,711,388"}},{"$f":"Inputs!B20*BW10/(1/Inputs!B19/12+'(Other Computations)'!B144)","v":{"v":33696698.24115177,"d":"$33,696,698"}},{"$f":"Inputs!B20*BX10/(1/Inputs!B19/12+'(Other Computations)'!B144)","v":{"v":33684820.52520313,"d":"$33,684,821"}},{"$f":"Inputs!B20*BY10/(1/Inputs!B19/12+'(Other Computations)'!B144)","v":{"v":33668598.81311481,"d":"$33,668,599"}},{"$f":"Inputs!B20*BZ10/(1/Inputs!B19/12+'(Other Computations)'!B144)","v":{"v":33651589.186068095,"d":"$33,651,589"}},{"$f":"BZ22","v":{"v":33651589.186068095,"d":"$33,651,589"}},{"$f":"Inputs!B20*CB10/(1/Inputs!B19/12+'(Other Computations)'!B144)","v":{"v":33639902.82383438,"d":"$33,639,903"}},{"$f":"Inputs!B20*CC10/(1/Inputs!B19/12+'(Other Computations)'!B144)","v":{"v":33625433.826838344,"d":"$33,625,434"}},{"$f":"Inputs!B20*CD10/(1/Inputs!B19/12+'(Other Computations)'!B144)","v":{"v":33608574.28659655,"d":"$33,608,574"}},{"$f":"Inputs!B20*CE10/(1/Inputs!B19/12+'(Other Computations)'!B144)","v":{"v":33597254.490164354,"d":"$33,597,254"}},{"$f":"Inputs!B20*CF10/(1/Inputs!B19/12+'(Other Computations)'!B144)","v":{"v":33581089.09655073,"d":"$33,581,089"}},{"$f":"Inputs!B20*CG10/(1/Inputs!B19/12+'(Other Computations)'!B144)","v":{"v":33566928.31902365,"d":"$33,566,928"}},{"$f":"Inputs!B20*CH10/(1/Inputs!B19/12+'(Other Computations)'!B144)","v":{"v":33553785.510315232,"d":"$33,553,786"}},{"$f":"Inputs!B20*CI10/(1/Inputs!B19/12+'(Other Computations)'!B144)","v":{"v":33539558.237967625,"d":"$33,539,558"}},{"$f":"Inputs!B20*CJ10/(1/Inputs!B19/12+'(Other Computations)'!B144)","v":{"v":33526099.816160142,"d":"$33,526,100"}},{"$f":"Inputs!B20*CK10/(1/Inputs!B19/12+'(Other Computations)'!B144)","v":{"v":33512178.22013361,"d":"$33,512,178"}},{"$f":"Inputs!B20*CL10/(1/Inputs!B19/12+'(Other Computations)'!B144)","v":{"v":33494899.573855978,"d":"$33,494,900"}},{"$f":"Inputs!B20*CM10/(1/Inputs!B19/12+'(Other Computations)'!B144)","v":{"v":33482819.924858253,"d":"$33,482,820"}},{"$f":"CM22","v":{"v":33482819.924858253,"d":"$33,482,820"}},{"$f":"Inputs!B20*CO10/(1/Inputs!B19/12+'(Other Computations)'!B144)","v":{"v":33468874.703126248,"d":"$33,468,875"}},{"$f":"Inputs!B20*CP10/(1/Inputs!B19/12+'(Other Computations)'!B144)","v":{"v":33452893.010526486,"d":"$33,452,893"}},{"$f":"Inputs!B20*CQ10/(1/Inputs!B19/12+'(Other Computations)'!B144)","v":{"v":33440806.132794544,"d":"$33,440,806"}},{"$f":"Inputs!B20*CR10/(1/Inputs!B19/12+'(Other Computations)'!B144)","v":{"v":33422820.617620137,"d":"$33,422,821"}},{"$f":"Inputs!B20*CS10/(1/Inputs!B19/12+'(Other Computations)'!B144)","v":{"v":33408560.117589884,"d":"$33,408,560"}},{"$f":"Inputs!B20*CT10/(1/Inputs!B19/12+'(Other Computations)'!B144)","v":{"v":33391133.294895876,"d":"$33,391,133"}},{"$f":"Inputs!B20*CU10/(1/Inputs!B19/12+'(Other Computations)'!B144)","v":{"v":33377773.88116345,"d":"$33,377,774"}},{"$f":"Inputs!B20*CV10/(1/Inputs!B19/12+'(Other Computations)'!B144)","v":{"v":33361107.053475156,"d":"$33,361,107"}},{"$f":"Inputs!B20*CW10/(1/Inputs!B19/12+'(Other Computations)'!B144)","v":{"v":33347619.68997437,"d":"$33,347,620"}},{"$f":"Inputs!B20*CX10/(1/Inputs!B19/12+'(Other Computations)'!B144)","v":{"v":33330453.09475636,"d":"$33,330,453"}},{"$f":"Inputs!B20*CY10/(1/Inputs!B19/12+'(Other Computations)'!B144)","v":{"v":33318850.150999922,"d":"$33,318,850"}},{"$f":"Inputs!B20*CZ10/(1/Inputs!B19/12+'(Other Computations)'!B144)","v":{"v":33307776.17292843,"d":"$33,307,776"}},{"$f":"CZ22","v":{"v":33307776.17292843,"d":"$33,307,776"}},{"$f":"Inputs!B20*DB10/(1/Inputs!B19/12+'(Other Computations)'!B144)","v":{"v":33290512.45063327,"d":"$33,290,512"}},{"$f":"Inputs!B20*DC10/(1/Inputs!B19/12+'(Other Computations)'!B144)","v":{"v":33276666.190023504,"d":"$33,276,666"}},{"$f":"Inputs!B20*DD10/(1/Inputs!B19/12+'(Other Computations)'!B144)","v":{"v":33264114.877061762,"d":"$33,264,115"}},{"$f":"Inputs!B20*DE10/(1/Inputs!B19/12+'(Other Computations)'!B144)","v":{"v":33250195.97704093,"d":"$33,250,196"}},{"$f":"Inputs!B20*DF10/(1/Inputs!B19/12+'(Other Computations)'!B144)","v":{"v":33237987.44813496,"d":"$33,237,987"}},{"$f":"Inputs!B20*DG10/(1/Inputs!B19/12+'(Other Computations)'!B144)","v":{"v":33225625.46352362,"d":"$33,225,625"}},{"$f":"Inputs!B20*DH10/(1/Inputs!B19/12+'(Other Computations)'!B144)","v":{"v":33210677.340127755,"d":"$33,210,677"}},{"$f":"Inputs!B20*DI10/(1/Inputs!B19/12+'(Other Computations)'!B144)","v":{"v":33197729.18269929,"d":"$33,197,729"}},{"$f":"Inputs!B20*DJ10/(1/Inputs!B19/12+'(Other Computations)'!B144)","v":{"v":33181692.897115987,"d":"$33,181,693"}},{"$f":"Inputs!B20*DK10/(1/Inputs!B19/12+'(Other Computations)'!B144)","v":{"v":33168809.458411515,"d":"$33,168,809"}},{"$f":"Inputs!B20*DL10/(1/Inputs!B19/12+'(Other Computations)'!B144)","v":{"v":33158018.805258695,"d":"$33,158,019"}},{"$f":"Inputs!B20*DM10/(1/Inputs!B19/12+'(Other Computations)'!B144)","v":{"v":33141484.319899365,"d":"$33,141,484"}},{"$f":"DM22","v":{"v":33141484.319899365,"d":"$33,141,484"}},{"$f":"Inputs!B20*DO10/(1/Inputs!B19/12+'(Other Computations)'!B144)","v":{"v":33127981.322449107,"d":"$33,127,981"}},{"$f":"Inputs!B20*DP10/(1/Inputs!B19/12+'(Other Computations)'!B144)","v":{"v":33117092.6106222,"d":"$33,117,093"}},{"$f":"Inputs!B20*DQ10/(1/Inputs!B19/12+'(Other Computations)'!B144)","v":{"v":33102071.01707153,"d":"$33,102,071"}},{"$f":"Inputs!B20*DR10/(1/Inputs!B19/12+'(Other Computations)'!B144)","v":{"v":33089019.40545637,"d":"$33,089,019"}},{"$f":"Inputs!B20*DS10/(1/Inputs!B19/12+'(Other Computations)'!B144)","v":{"v":33075453.231995735,"d":"$33,075,453"}},{"$f":"Inputs!B20*DT10/(1/Inputs!B19/12+'(Other Computations)'!B144)","v":{"v":33060821.96187561,"d":"$33,060,822"}},{"$f":"Inputs!B20*DU10/(1/Inputs!B19/12+'(Other Computations)'!B144)","v":{"v":33046032.818897218,"d":"$33,046,033"}},{"$f":"Inputs!B20*DV10/(1/Inputs!B19/12+'(Other Computations)'!B144)","v":{"v":33032938.947975393,"d":"$33,032,939"}},{"$f":"Inputs!B20*DW10/(1/Inputs!B19/12+'(Other Computations)'!B144)","v":{"v":33016472.97309942,"d":"$33,016,473"}},{"$f":"Inputs!B20*DX10/(1/Inputs!B19/12+'(Other Computations)'!B144)","v":{"v":33000770.840168357,"d":"$33,000,771"}},{"$f":"Inputs!B20*DY10/(1/Inputs!B19/12+'(Other Computations)'!B144)","v":{"v":32989070.36640834,"d":"$32,989,070"}},{"$f":"Inputs!B20*DZ10/(1/Inputs!B19/12+'(Other Computations)'!B144)","v":{"v":32976644.08339662,"d":"$32,976,644"}},{"$f":"DZ22","v":{"v":32976644.08339662,"d":"$32,976,644"}},{"$f":"Inputs!B20*EB10/(1/Inputs!B19/12+'(Other Computations)'!B144)","v":{"v":32961058.9459904,"d":"$32,961,059"}},{"$f":"Inputs!B20*EC10/(1/Inputs!B19/12+'(Other Computations)'!B144)","v":{"v":32947931.696896896,"d":"$32,947,932"}},{"$f":"Inputs!B20*ED10/(1/Inputs!B19/12+'(Other Computations)'!B144)","v":{"v":32933768.734112788,"d":"$32,933,769"}},{"$f":"Inputs!B20*EE10/(1/Inputs!B19/12+'(Other Computations)'!B144)","v":{"v":32919645.109866332,"d":"$32,919,645"}},{"$f":"Inputs!B20*EF10/(1/Inputs!B19/12+'(Other Computations)'!B144)","v":{"v":32902562.86857495,"d":"$32,902,563"}},{"$f":"Inputs!B20*EG10/(1/Inputs!B19/12+'(Other Computations)'!B144)","v":{"v":32888187.478053547,"d":"$32,888,187"}},{"$f":"Inputs!B20*EH10/(1/Inputs!B19/12+'(Other Computations)'!B144)","v":{"v":32873334.31305627,"d":"$32,873,334"}},{"$f":"Inputs!B20*EI10/(1/Inputs!B19/12+'(Other Computations)'!B144)","v":{"v":32858906.58095349,"d":"$32,858,907"}},{"$f":"Inputs!B20*EJ10/(1/Inputs!B19/12+'(Other Computations)'!B144)","v":{"v":32842804.0729267,"d":"$32,842,804"}},{"$f":"Inputs!B20*EK10/(1/Inputs!B19/12+'(Other Computations)'!B144)","v":{"v":32829290.11594022,"d":"$32,829,290"}},{"$f":"Inputs!B20*EL10/(1/Inputs!B19/12+'(Other Computations)'!B144)","v":{"v":32814696.30665023,"d":"$32,814,696"}},{"$f":"Inputs!B20*EM10/(1/Inputs!B19/12+'(Other Computations)'!B144)","v":{"v":32798322.455896102,"d":"$32,798,322"}},{"$f":"EM22","v":{"v":32798322.455896102,"d":"$32,798,322"}}]
[]
[]
[{"$f":"\"Employment\"","v":"Employment"}]
[{"$f":"\" \"","v":" "}]
[null,{"$f":"ZZZ__FnCalls!F7","v":"Jan 2010"},{"$f":"ZZZ__FnCalls!F8","v":"Feb 2010"},{"$f":"ZZZ__FnCalls!F9","v":"Mar 2010"},{"$f":"ZZZ__FnCalls!F10","v":"Apr 2010"},{"$f":"ZZZ__FnCalls!F11","v":"May 2010"},{"$f":"ZZZ__FnCalls!F12","v":"Jun 2010"},{"$f":"ZZZ__FnCalls!F13","v":"Jul 2010"},{"$f":"ZZZ__FnCalls!F14","v":"Aug 2010"},{"$f":"ZZZ__FnCalls!F15","v":"Sep 2010"},{"$f":"ZZZ__FnCalls!F16","v":"Oct 2010"},{"$f":"ZZZ__FnCalls!F17","v":"Nov 2010"},{"$f":"ZZZ__FnCalls!F18","v":"Dec 2010"},{"$f":"ZZZ__FnCalls!H7","v":"2010"},{"$f":"ZZZ__FnCalls!F19","v":"Jan 2011"},{"$f":"ZZZ__FnCalls!F20","v":"Feb 2011"},{"$f":"ZZZ__FnCalls!F21","v":"Mar 2011"},{"$f":"ZZZ__FnCalls!F22","v":"Apr 2011"},{"$f":"ZZZ__FnCalls!F23","v":"May 2011"},{"$f":"ZZZ__FnCalls!F24","v":"Jun 2011"},{"$f":"ZZZ__FnCalls!F25","v":"Jul 2011"},{"$f":"ZZZ__FnCalls!F26","v":"Aug 2011"},{"$f":"ZZZ__FnCalls!F27","v":"Sep 2011"},{"$f":"ZZZ__FnCalls!F28","v":"Oct 2011"},{"$f":"ZZZ__FnCalls!F29","v":"Nov 2011"},{"$f":"ZZZ__FnCalls!F30","v":"Dec 2011"},{"$f":"ZZZ__FnCalls!H19","v":"2011"},{"$f":"ZZZ__FnCalls!F31","v":"Jan 2012"},{"$f":"ZZZ__FnCalls!F32","v":"Feb 2012"},{"$f":"ZZZ__FnCalls!F33","v":"Mar 2012"},{"$f":"ZZZ__FnCalls!F34","v":"Apr 2012"},{"$f":"ZZZ__FnCalls!F35","v":"May 2012"},{"$f":"ZZZ__FnCalls!F36","v":"Jun 2012"},{"$f":"ZZZ__FnCalls!F37","v":"Jul 2012"},{"$f":"ZZZ__FnCalls!F38","v":"Aug 2012"},{"$f":"ZZZ__FnCalls!F39","v":"Sep 2012"},{"$f":"ZZZ__FnCalls!F40","v":"Oct 2012"},{"$f":"ZZZ__FnCalls!F41","v":"Nov 2012"},{"$f":"ZZZ__FnCalls!F42","v":"Dec 2012"},{"$f":"ZZZ__FnCalls!H31","v":"2012"},{"$f":"ZZZ__FnCalls!F43","v":"Jan 2013"},{"$f":"ZZZ__FnCalls!F44","v":"Feb 2013"},{"$f":"ZZZ__FnCalls!F45","v":"Mar 2013"},{"$f":"ZZZ__FnCalls!F46","v":"Apr 2013"},{"$f":"ZZZ__FnCalls!F47","v":"May 2013"},{"$f":"ZZZ__FnCalls!F48","v":"Jun 2013"},{"$f":"ZZZ__FnCalls!F49","v":"Jul 2013"},{"$f":"ZZZ__FnCalls!F50","v":"Aug 2013"},{"$f":"ZZZ__FnCalls!F51","v":"Sep 2013"},{"$f":"ZZZ__FnCalls!F52","v":"Oct 2013"},{"$f":"ZZZ__FnCalls!F53","v":"Nov 2013"},{"$f":"ZZZ__FnCalls!F54","v":"Dec 2013"},{"$f":"ZZZ__FnCalls!H43","v":"2013"},{"$f":"ZZZ__FnCalls!F55","v":"Jan 2014"},{"$f":"ZZZ__FnCalls!F56","v":"Feb 2014"},{"$f":"ZZZ__FnCalls!F57","v":"Mar 2014"},{"$f":"ZZZ__FnCalls!F58","v":"Apr 2014"},{"$f":"ZZZ__FnCalls!F59","v":"May 2014"},{"$f":"ZZZ__FnCalls!F60","v":"Jun 2014"},{"$f":"ZZZ__FnCalls!F61","v":"Jul 2014"},{"$f":"ZZZ__FnCalls!F62","v":"Aug 2014"},{"$f":"ZZZ__FnCalls!F63","v":"Sep 2014"},{"$f":"ZZZ__FnCalls!F64","v":"Oct 2014"},{"$f":"ZZZ__FnCalls!F65","v":"Nov 2014"},{"$f":"ZZZ__FnCalls!F66","v":"Dec 2014"},{"$f":"ZZZ__FnCalls!H55","v":"2014"},{"$f":"ZZZ__FnCalls!F67","v":"Jan 2015"},{"$f":"ZZZ__FnCalls!F68","v":"Feb 2015"},{"$f":"ZZZ__FnCalls!F69","v":"Mar 2015"},{"$f":"ZZZ__FnCalls!F70","v":"Apr 2015"},{"$f":"ZZZ__FnCalls!F71","v":"May 2015"},{"$f":"ZZZ__FnCalls!F72","v":"Jun 2015"},{"$f":"ZZZ__FnCalls!F73","v":"Jul 2015"},{"$f":"ZZZ__FnCalls!F74","v":"Aug 2015"},{"$f":"ZZZ__FnCalls!F75","v":"Sep 2015"},{"$f":"ZZZ__FnCalls!F76","v":"Oct 2015"},{"$f":"ZZZ__FnCalls!F77","v":"Nov 2015"},{"$f":"ZZZ__FnCalls!F78","v":"Dec 2015"},{"$f":"ZZZ__FnCalls!H67","v":"2015"},{"$f":"ZZZ__FnCalls!F79","v":"Jan 2016"},{"$f":"ZZZ__FnCalls!F80","v":"Feb 2016"},{"$f":"ZZZ__FnCalls!F81","v":"Mar 2016"},{"$f":"ZZZ__FnCalls!F82","v":"Apr 2016"},{"$f":"ZZZ__FnCalls!F83","v":"May 2016"},{"$f":"ZZZ__FnCalls!F84","v":"Jun 2016"},{"$f":"ZZZ__FnCalls!F85","v":"Jul 2016"},{"$f":"ZZZ__FnCalls!F86","v":"Aug 2016"},{"$f":"ZZZ__FnCalls!F87","v":"Sep 2016"},{"$f":"ZZZ__FnCalls!F88","v":"Oct 2016"},{"$f":"ZZZ__FnCalls!F89","v":"Nov 2016"},{"$f":"ZZZ__FnCalls!F90","v":"Dec 2016"},{"$f":"ZZZ__FnCalls!H79","v":"2016"},{"$f":"ZZZ__FnCalls!F91","v":"Jan 2017"},{"$f":"ZZZ__FnCalls!F92","v":"Feb 2017"},{"$f":"ZZZ__FnCalls!F93","v":"Mar 2017"},{"$f":"ZZZ__FnCalls!F94","v":"Apr 2017"},{"$f":"ZZZ__FnCalls!F95","v":"May 2017"},{"$f":"ZZZ__FnCalls!F96","v":"Jun 2017"},{"$f":"ZZZ__FnCalls!F97","v":"Jul 2017"},{"$f":"ZZZ__FnCalls!F98","v":"Aug 2017"},{"$f":"ZZZ__FnCalls!F99","v":"Sep 2017"},{"$f":"ZZZ__FnCalls!F100","v":"Oct 2017"},{"$f":"ZZZ__FnCalls!F101","v":"Nov 2017"},{"$f":"ZZZ__FnCalls!F102","v":"Dec 2017"},{"$f":"ZZZ__FnCalls!H91","v":"2017"},{"$f":"ZZZ__FnCalls!F103","v":"Jan 2018"},{"$f":"ZZZ__FnCalls!F104","v":"Feb 2018"},{"$f":"ZZZ__FnCalls!F105","v":"Mar 2018"},{"$f":"ZZZ__FnCalls!F106","v":"Apr 2018"},{"$f":"ZZZ__FnCalls!F107","v":"May 2018"},{"$f":"ZZZ__FnCalls!F108","v":"Jun 2018"},{"$f":"ZZZ__FnCalls!F109","v":"Jul 2018"},{"$f":"ZZZ__FnCalls!F110","v":"Aug 2018"},{"$f":"ZZZ__FnCalls!F111","v":"Sep 2018"},{"$f":"ZZZ__FnCalls!F112","v":"Oct 2018"},{"$f":"ZZZ__FnCalls!F113","v":"Nov 2018"},{"$f":"ZZZ__FnCalls!F114","v":"Dec 2018"},{"$f":"ZZZ__FnCalls!H103","v":"2018"},{"$f":"ZZZ__FnCalls!F115","v":"Jan 2019"},{"$f":"ZZZ__FnCalls!F116","v":"Feb 2019"},{"$f":"ZZZ__FnCalls!F117","v":"Mar 2019"},{"$f":"ZZZ__FnCalls!F118","v":"Apr 2019"},{"$f":"ZZZ__FnCalls!F119","v":"May 2019"},{"$f":"ZZZ__FnCalls!F120","v":"Jun 2019"},{"$f":"ZZZ__FnCalls!F121","v":"Jul 2019"},{"$f":"ZZZ__FnCalls!F122","v":"Aug 2019"},{"$f":"ZZZ__FnCalls!F123","v":"Sep 2019"},{"$f":"ZZZ__FnCalls!F124","v":"Oct 2019"},{"$f":"ZZZ__FnCalls!F125","v":"Nov 2019"},{"$f":"ZZZ__FnCalls!F126","v":"Dec 2019"},{"$f":"ZZZ__FnCalls!H115","v":"2019"},{"$f":"ZZZ__FnCalls!F127","v":"Jan 2020"},{"$f":"ZZZ__FnCalls!F128","v":"Feb 2020"},{"$f":"ZZZ__FnCalls!F129","v":"Mar 2020"},{"$f":"ZZZ__FnCalls!F130","v":"Apr 2020"},{"$f":"ZZZ__FnCalls!F131","v":"May 2020"},{"$f":"ZZZ__FnCalls!F132","v":"Jun 2020"},{"$f":"ZZZ__FnCalls!F133","v":"Jul 2020"},{"$f":"ZZZ__FnCalls!F134","v":"Aug 2020"},{"$f":"ZZZ__FnCalls!F135","v":"Sep 2020"},{"$f":"ZZZ__FnCalls!F136","v":"Oct 2020"},{"$f":"ZZZ__FnCalls!F137","v":"Nov 2020"},{"$f":"ZZZ__FnCalls!F138","v":"Dec 2020"},{"$f":"ZZZ__FnCalls!H127","v":"2020"}]
[{"$f":"Labels!B38","v":"Employment"},{"$f":"Inputs!B27+'(Other Computations)'!B61*0/Inputs!B28/12","v":{"v":140,"d":"140.00"}},{"$f":"B28+'(Other Computations)'!B61*(B29-B28)/Inputs!B28/12","v":{"v":140,"d":"140.00"}},{"$f":"C28+'(Other Computations)'!B61*(C29-C28)/Inputs!B28/12","v":{"v":139.99344498620502,"d":"139.99"}},{"$f":"D28+'(Other Computations)'!B61*(D29-D28)/Inputs!B28/12","v":{"v":139.9822763754136,"d":"139.98"}},{"$f":"E28+'(Other Computations)'!B61*(E29-E28)/Inputs!B28/12","v":{"v":139.96613791443346,"d":"139.97"}},{"$f":"F28+'(Other Computations)'!B61*(F29-F28)/Inputs!B28/12","v":{"v":139.94458942347723,"d":"139.94"}},{"$f":"G28+'(Other Computations)'!B61*(G29-G28)/Inputs!B28/12","v":{"v":139.9192309809632,"d":"139.92"}},{"$f":"H28+'(Other Computations)'!B61*(H29-H28)/Inputs!B28/12","v":{"v":139.88927414570068,"d":"139.89"}},{"$f":"I28+'(Other Computations)'!B61*(I29-I28)/Inputs!B28/12","v":{"v":139.85397077926493,"d":"139.85"}},{"$f":"J28+'(Other Computations)'!B61*(J29-J28)/Inputs!B28/12","v":{"v":139.813772811457,"d":"139.81"}},{"$f":"K28+'(Other Computations)'!B61*(K29-K28)/Inputs!B28/12","v":{"v":139.76934059196103,"d":"139.77"}},{"$f":"L28+'(Other Computations)'!B61*(L29-L28)/Inputs!B28/12","v":{"v":139.722049755564,"d":"139.72"}},{"$f":"M28","v":{"v":139.722049755564,"d":"139.72"}},{"$f":"M28+'(Other Computations)'!B61*(M29-M28)/Inputs!B28/12","v":{"v":139.6713604806106,"d":"139.67"}},{"$f":"O28+'(Other Computations)'!B61*(O29-O28)/Inputs!B28/12","v":{"v":139.61691841446748,"d":"139.62"}},{"$f":"P28+'(Other Computations)'!B61*(P29-P28)/Inputs!B28/12","v":{"v":139.55788104423914,"d":"139.56"}},{"$f":"Q28+'(Other Computations)'!B61*(Q29-Q28)/Inputs!B28/12","v":{"v":139.49491433655336,"d":"139.49"}},{"$f":"R28+'(Other Computations)'!B61*(R29-R28)/Inputs!B28/12","v":{"v":139.4262545437607,"d":"139.43"}},{"$f":"S28+'(Other Computations)'!B61*(S29-S28)/Inputs!B28/12","v":{"v":139.3543990713871,"d":"139.35"}},{"$f":"T28+'(Other Computations)'!B61*(T29-T28)/Inputs!B28/12","v":{"v":139.2773783421074,"d":"139.28"}},{"$f":"U28+'(Other Computations)'!B61*(U29-U28)/Inputs!B28/12","v":{"v":139.1959472106818,"d":"139.20"}},{"$f":"V28+'(Other Computations)'!B61*(V29-V28)/Inputs!B28/12","v":{"v":139.1098124569048,"d":"139.11"}},{"$f":"W28+'(Other Computations)'!B61*(W29-W28)/Inputs!B28/12","v":{"v":139.01909509607077,"d":"139.02"}},{"$f":"X28+'(Other Computations)'!B61*(X29-X28)/Inputs!B28/12","v":{"v":138.9248764794322,"d":"138.92"}},{"$f":"Y28+'(Other Computations)'!B61*(Y29-Y28)/Inputs!B28/12","v":{"v":138.82753140654205,"d":"138.83"}},{"$f":"Z28","v":{"v":138.82753140654205,"d":"138.83"}},{"$f":"Z28+'(Other Computations)'!B61*(Z29-Z28)/Inputs!B28/12","v":{"v":138.72855777636644,"d":"138.73"}},{"$f":"AB28+'(Other Computations)'!B61*(AB29-AB28)/Inputs!B28/12","v":{"v":138.6261207340415,"d":"138.63"}},{"$f":"AC28+'(Other Computations)'!B61*(AC29-AC28)/Inputs!B28/12","v":{"v":138.52110553402835,"d":"138.52"}},{"$f":"AD28+'(Other Computations)'!B61*(AD29-AD28)/Inputs!B28/12","v":{"v":138.4152469023052,"d":"138.42"}},{"$f":"AE28+'(Other Computations)'!B61*(AE29-AE28)/Inputs!B28/12","v":{"v":138.3062753486311,"d":"138.31"}},{"$f":"AF28+'(Other Computations)'!B61*(AF29-AF28)/Inputs!B28/12","v":{"v":138.1939377072698,"d":"138.19"}},{"$f":"AG28+'(Other Computations)'!B61*(AG29-AG28)/Inputs!B28/12","v":{"v":138.07922822361007,"d":"138.08"}},{"$f":"AH28+'(Other Computations)'!B61*(AH29-AH28)/Inputs!B28/12","v":{"v":137.9621299444054,"d":"137.96"}},{"$f":"AI28+'(Other Computations)'!B61*(AI29-AI28)/Inputs!B28/12","v":{"v":137.84332587071663,"d":"137.84"}},{"$f":"AJ28+'(Other Computations)'!B61*(AJ29-AJ28)/Inputs!B28/12","v":{"v":137.72203834242364,"d":"137.72"}},{"$f":"AK28+'(Other Computations)'!B61*(AK29-AK28)/Inputs!B28/12","v":{"v":137.60016134104808,"d":"137.60"}},{"$f":"AL28+'(Other Computations)'!B61*(AL29-AL28)/Inputs!B28/12","v":{"v":137.47660723338416,"d":"137.48"}},{"$f":"AM28","v":{"v":137.47660723338416,"d":"137.48"}},{"$f":"AM28+'(Other Computations)'!B61*(AM29-AM28)/Inputs!B28/12","v":{"v":137.35086494058643,"d":"137.35"}},{"$f":"AO28+'(Other Computations)'!B61*(AO29-AO28)/Inputs!B28/12","v":{"v":137.22237635638726,"d":"137.22"}},{"$f":"AP28+'(Other Computations)'!B61*(AP29-AP28)/Inputs!B28/12","v":{"v":137.09125020874458,"d":"137.09"}},{"$f":"AQ28+'(Other Computations)'!B61*(AQ29-AQ28)/Inputs!B28/12","v":{"v":136.9602551316889,"d":"136.96"}},{"$f":"AR28+'(Other Computations)'!B61*(AR29-AR28)/Inputs!B28/12","v":{"v":136.8265415978466,"d":"136.83"}},{"$f":"AS28+'(Other Computations)'!B61*(AS29-AS28)/Inputs!B28/12","v":{"v":136.6921841839625,"d":"136.69"}},{"$f":"AT28+'(Other Computations)'!B61*(AT29-AT28)/Inputs!B28/12","v":{"v":136.55656423066665,"d":"136.56"}},{"$f":"AU28+'(Other Computations)'!B61*(AU29-AU28)/Inputs!B28/12","v":{"v":136.42032980788565,"d":"136.42"}},{"$f":"AV28+'(Other Computations)'!B61*(AV29-AV28)/Inputs!B28/12","v":{"v":136.28262423966356,"d":"136.28"}},{"$f":"AW28+'(Other Computations)'!B61*(AW29-AW28)/Inputs!B28/12","v":{"v":136.1429724645519,"d":"136.14"}},{"$f":"AX28+'(Other Computations)'!B61*(AX29-AX28)/Inputs!B28/12","v":{"v":136.0020613649739,"d":"136.00"}},{"$f":"AY28+'(Other Computations)'!B61*(AY29-AY28)/Inputs!B28/12","v":{"v":135.86121425991414,"d":"135.86"}},{"$f":"AZ28","v":{"v":135.86121425991414,"d":"135.86"}},{"$f":"AZ28+'(Other Computations)'!B61*(AZ29-AZ28)/Inputs!B28/12","v":{"v":135.7196702967881,"d":"135.72"}},{"$f":"BB28+'(Other Computations)'!B61*(BB29-BB28)/Inputs!B28/12","v":{"v":135.5760337560861,"d":"135.58"}},{"$f":"BC28+'(Other Computations)'!B61*(BC29-BC28)/Inputs!B28/12","v":{"v":135.4302965579297,"d":"135.43"}},{"$f":"BD28+'(Other Computations)'!B61*(BD29-BD28)/Inputs!B28/12","v":{"v":135.2838325878161,"d":"135.28"}},{"$f":"BE28+'(Other Computations)'!B61*(BE29-BE28)/Inputs!B28/12","v":{"v":135.13600766589752,"d":"135.14"}},{"$f":"BF28+'(Other Computations)'!B61*(BF29-BF28)/Inputs!B28/12","v":{"v":134.98831732370067,"d":"134.99"}},{"$f":"BG28+'(Other Computations)'!B61*(BG29-BG28)/Inputs!B28/12","v":{"v":134.84021426079786,"d":"134.84"}},{"$f":"BH28+'(Other Computations)'!B61*(BH29-BH28)/Inputs!B28/12","v":{"v":134.69168157550615,"d":"134.69"}},{"$f":"BI28+'(Other Computations)'!B61*(BI29-BI28)/Inputs!B28/12","v":{"v":134.54299040409742,"d":"134.54"}},{"$f":"BJ28+'(Other Computations)'!B61*(BJ29-BJ28)/Inputs!B28/12","v":{"v":134.39333908507203,"d":"134.39"}},{"$f":"BK28+'(Other Computations)'!B61*(BK29-BK28)/Inputs!B28/12","v":{"v":134.24273364687528,"d":"134.24"}},{"$f":"BL28+'(Other Computations)'!B61*(BL29-BL28)/Inputs!B28/12","v":{"v":134.09025917528575,"d":"134.09"}},{"$f":"BM28","v":{"v":134.09025917528575,"d":"134.09"}},{"$f":"BM28+'(Other Computations)'!B61*(BM29-BM28)/Inputs!B28/12","v":{"v":133.9375818681646,"d":"133.94"}},{"$f":"BO28+'(Other Computations)'!B61*(BO29-BO28)/Inputs!B28/12","v":{"v":133.7835464400065,"d":"133.78"}},{"$f":"BP28+'(Other Computations)'!B61*(BP29-BP28)/Inputs!B28/12","v":{"v":133.62960303522118,"d":"133.63"}},{"$f":"BQ28+'(Other Computations)'!B61*(BQ29-BQ28)/Inputs!B28/12","v":{"v":133.47469594085308,"d":"133.47"}},{"$f":"BR28+'(Other Computations)'!B61*(BR29-BR28)/Inputs!B28/12","v":{"v":133.32097376711133,"d":"133.32"}},{"$f":"BS28+'(Other Computations)'!B61*(BS29-BS28)/Inputs!B28/12","v":{"v":133.16754115101085,"d":"133.17"}},{"$f":"BT28+'(Other Computations)'!B61*(BT29-BT28)/Inputs!B28/12","v":{"v":133.01389161045623,"d":"133.01"}},{"$f":"BU28+'(Other Computations)'!B61*(BU29-BU28)/Inputs!B28/12","v":{"v":132.8586236112718,"d":"132.86"}},{"$f":"BV28+'(Other Computations)'!B61*(BV29-BV28)/Inputs!B28/12","v":{"v":132.70218922371362,"d":"132.70"}},{"$f":"BW28+'(Other Computations)'!B61*(BW29-BW28)/Inputs!B28/12","v":{"v":132.54527193141178,"d":"132.55"}},{"$f":"BX28+'(Other Computations)'!B61*(BX29-BX28)/Inputs!B28/12","v":{"v":132.38909398541065,"d":"132.39"}},{"$f":"BY28+'(Other Computations)'!B61*(BY29-BY28)/Inputs!B28/12","v":{"v":132.2318300153309,"d":"132.23"}},{"$f":"BZ28","v":{"v":132.2318300153309,"d":"132.23"}},{"$f":"BZ28+'(Other Computations)'!B61*(BZ29-BZ28)/Inputs!B28/12","v":{"v":132.0732041529055,"d":"132.07"}},{"$f":"CB28+'(Other Computations)'!B61*(CB29-CB28)/Inputs!B28/12","v":{"v":131.91552103929132,"d":"131.92"}},{"$f":"CC28+'(Other Computations)'!B61*(CC29-CC28)/Inputs!B28/12","v":{"v":131.75760677401811,"d":"131.76"}},{"$f":"CD28+'(Other Computations)'!B61*(CD29-CD28)/Inputs!B28/12","v":{"v":131.59848624641407,"d":"131.60"}},{"$f":"CE28+'(Other Computations)'!B61*(CE29-CE28)/Inputs!B28/12","v":{"v":131.44055066029625,"d":"131.44"}},{"$f":"CF28+'(Other Computations)'!B61*(CF29-CF28)/Inputs!B28/12","v":{"v":131.28175065512178,"d":"131.28"}},{"$f":"CG28+'(Other Computations)'!B61*(CG29-CG28)/Inputs!B28/12","v":{"v":131.12297938333126,"d":"131.12"}},{"$f":"CH28+'(Other Computations)'!B61*(CH29-CH28)/Inputs!B28/12","v":{"v":130.96468893610864,"d":"130.96"}},{"$f":"CI28+'(Other Computations)'!B61*(CI29-CI28)/Inputs!B28/12","v":{"v":130.80643327952262,"d":"130.81"}},{"$f":"CJ28+'(Other Computations)'!B61*(CJ29-CJ28)/Inputs!B28/12","v":{"v":130.64855926582,"d":"130.65"}},{"$f":"CK28+'(Other Computations)'!B61*(CK29-CK28)/Inputs!B28/12","v":{"v":130.4908850495726,"d":"130.49"}},{"$f":"CL28+'(Other Computations)'!B61*(CL29-CL28)/Inputs!B28/12","v":{"v":130.33201579811177,"d":"130.33"}},{"$f":"CM28","v":{"v":130.33201579811177,"d":"130.33"}},{"$f":"CM28+'(Other Computations)'!B61*(CM29-CM28)/Inputs!B28/12","v":{"v":130.17419846685516,"d":"130.17"}},{"$f":"CO28+'(Other Computations)'!B61*(CO29-CO28)/Inputs!B28/12","v":{"v":130.01664144044832,"d":"130.02"}},{"$f":"CP28+'(Other Computations)'!B61*(CP29-CP28)/Inputs!B28/12","v":{"v":129.85850383350765,"d":"129.86"}},{"$f":"CQ28+'(Other Computations)'!B61*(CQ29-CQ28)/Inputs!B28/12","v":{"v":129.70146566240086,"d":"129.70"}},{"$f":"CR28+'(Other Computations)'!B61*(CR29-CR28)/Inputs!B28/12","v":{"v":129.54303599529123,"d":"129.54"}},{"$f":"CS28+'(Other Computations)'!B61*(CS29-CS28)/Inputs!B28/12","v":{"v":129.3848466378304,"d":"129.38"}},{"$f":"CT28+'(Other Computations)'!B61*(CT29-CT28)/Inputs!B28/12","v":{"v":129.22558157855198,"d":"129.23"}},{"$f":"CU28+'(Other Computations)'!B61*(CU29-CU28)/Inputs!B28/12","v":{"v":129.06700770119812,"d":"129.07"}},{"$f":"CV28+'(Other Computations)'!B61*(CV29-CV28)/Inputs!B28/12","v":{"v":128.9077365940649,"d":"128.91"}},{"$f":"CW28+'(Other Computations)'!B61*(CW29-CW28)/Inputs!B28/12","v":{"v":128.74915038204,"d":"128.75"}},{"$f":"CX28+'(Other Computations)'!B61*(CX29-CX28)/Inputs!B28/12","v":{"v":128.58970421647572,"d":"128.59"}},{"$f":"CY28+'(Other Computations)'!B61*(CY29-CY28)/Inputs!B28/12","v":{"v":128.4317884053837,"d":"128.43"}},{"$f":"CZ28","v":{"v":128.4317884053837,"d":"128.43"}},{"$f":"CZ28+'(Other Computations)'!B61*(CZ29-CZ28)/Inputs!B28/12","v":{"v":128.27560492507033,"d":"128.28"}},{"$f":"DB28+'(Other Computations)'!B61*(DB29-DB28)/Inputs!B28/12","v":{"v":128.11852146288527,"d":"128.12"}},{"$f":"DC28+'(Other Computations)'!B61*(DC29-DC28)/Inputs!B28/12","v":{"v":127.9620255026187,"d":"127.96"}},{"$f":"DD28+'(Other Computations)'!B61*(DD29-DD28)/Inputs!B28/12","v":{"v":127.8066681558942,"d":"127.81"}},{"$f":"DE28+'(Other Computations)'!B61*(DE29-DE28)/Inputs!B28/12","v":{"v":127.65186368471996,"d":"127.65"}},{"$f":"DF28+'(Other Computations)'!B61*(DF29-DF28)/Inputs!B28/12","v":{"v":127.49833866105634,"d":"127.50"}},{"$f":"DG28+'(Other Computations)'!B61*(DG29-DG28)/Inputs!B28/12","v":{"v":127.34601393937936,"d":"127.35"}},{"$f":"DH28+'(Other Computations)'!B61*(DH29-DH28)/Inputs!B28/12","v":{"v":127.19378839397126,"d":"127.19"}},{"$f":"DI28+'(Other Computations)'!B61*(DI29-DI28)/Inputs!B28/12","v":{"v":127.04252294068874,"d":"127.04"}},{"$f":"DJ28+'(Other Computations)'!B61*(DJ29-DJ28)/Inputs!B28/12","v":{"v":126.8909117722191,"d":"126.89"}},{"$f":"DK28+'(Other Computations)'!B61*(DK29-DK28)/Inputs!B28/12","v":{"v":126.74031367666093,"d":"126.74"}},{"$f":"DL28+'(Other Computations)'!B61*(DL29-DL28)/Inputs!B28/12","v":{"v":126.59160192111656,"d":"126.59"}},{"$f":"DM28","v":{"v":126.59160192111656,"d":"126.59"}},{"$f":"DM28+'(Other Computations)'!B61*(DM29-DM28)/Inputs!B28/12","v":{"v":126.44232559059434,"d":"126.44"}},{"$f":"DO28+'(Other Computations)'!B61*(DO29-DO28)/Inputs!B28/12","v":{"v":126.29379812742174,"d":"126.29"}},{"$f":"DP28+'(Other Computations)'!B61*(DP29-DP28)/Inputs!B28/12","v":{"v":126.14711940479513,"d":"126.15"}},{"$f":"DQ28+'(Other Computations)'!B61*(DQ29-DQ28)/Inputs!B28/12","v":{"v":126.00051718934776,"d":"126.00"}},{"$f":"DR28+'(Other Computations)'!B61*(DR29-DR28)/Inputs!B28/12","v":{"v":125.85483905110267,"d":"125.85"}},{"$f":"DS28+'(Other Computations)'!B61*(DS29-DS28)/Inputs!B28/12","v":{"v":125.70986214926937,"d":"125.71"}},{"$f":"DT28+'(Other Computations)'!B61*(DT29-DT28)/Inputs!B28/12","v":{"v":125.56513814461776,"d":"125.57"}},{"$f":"DU28+'(Other Computations)'!B61*(DU29-DU28)/Inputs!B28/12","v":{"v":125.42061338163774,"d":"125.42"}},{"$f":"DV28+'(Other Computations)'!B61*(DV29-DV28)/Inputs!B28/12","v":{"v":125.2770157157344,"d":"125.28"}},{"$f":"DW28+'(Other Computations)'!B61*(DW29-DW28)/Inputs!B28/12","v":{"v":125.13291883719337,"d":"125.13"}},{"$f":"DX28+'(Other Computations)'!B61*(DX29-DX28)/Inputs!B28/12","v":{"v":124.98867845341461,"d":"124.99"}},{"$f":"DY28+'(Other Computations)'!B61*(DY29-DY28)/Inputs!B28/12","v":{"v":124.84600292320503,"d":"124.85"}},{"$f":"DZ28","v":{"v":124.84600292320503,"d":"124.85"}},{"$f":"DZ28+'(Other Computations)'!B61*(DZ29-DZ28)/Inputs!B28/12","v":{"v":124.7045612076288,"d":"124.70"}},{"$f":"EB28+'(Other Computations)'!B61*(EB29-EB28)/Inputs!B28/12","v":{"v":124.56300738031167,"d":"124.56"}},{"$f":"EC28+'(Other Computations)'!B61*(EC29-EC28)/Inputs!B28/12","v":{"v":124.422398469399,"d":"124.42"}},{"$f":"ED28+'(Other Computations)'!B61*(ED29-ED28)/Inputs!B28/12","v":{"v":124.28229032210719,"d":"124.28"}},{"$f":"EE28+'(Other Computations)'!B61*(EE29-EE28)/Inputs!B28/12","v":{"v":124.14270395286412,"d":"124.14"}},{"$f":"EF28+'(Other Computations)'!B61*(EF29-EF28)/Inputs!B28/12","v":{"v":124.00239769993328,"d":"124.00"}},{"$f":"EG28+'(Other Computations)'!B61*(EG29-EG28)/Inputs!B28/12","v":{"v":123.86255047460925,"d":"123.86"}},{"$f":"EH28+'(Other Computations)'!B61*(EH29-EH28)/Inputs!B28/12","v":{"v":123.72296664591366,"d":"123.72"}},{"$f":"EI28+'(Other Computations)'!B61*(EI29-EI28)/Inputs!B28/12","v":{"v":123.58383630948732,"d":"123.58"}},{"$f":"EJ28+'(Other Computations)'!B61*(EJ29-EJ28)/Inputs!B28/12","v":{"v":123.44445992527946,"d":"123.44"}},{"$f":"EK28+'(Other Computations)'!B61*(EK29-EK28)/Inputs!B28/12","v":{"v":123.30595264567907,"d":"123.31"}},{"$f":"EL28+'(Other Computations)'!B61*(EL29-EL28)/Inputs!B28/12","v":{"v":123.16785320580286,"d":"123.17"}},{"$f":"EM28","v":{"v":123.16785320580286,"d":"123.17"}}]
[{"$f":"Labels!B39","v":"Desired Employment"},{"$f":"(1-Inputs!B20)*B11/'(Other Computations)'!B130","v":{"v":140,"d":"140.00"}},{"$f":"(1-Inputs!B20)*C11/'(Other Computations)'!B130","v":{"v":139.62243120540873,"d":"139.62"}},{"$f":"(1-Inputs!B20)*D11/'(Other Computations)'!B130","v":{"v":139.3501330046186,"d":"139.35"}},{"$f":"(1-Inputs!B20)*E11/'(Other Computations)'!B130","v":{"v":139.05270102295881,"d":"139.05"}},{"$f":"(1-Inputs!B20)*F11/'(Other Computations)'!B130","v":{"v":138.72494483535462,"d":"138.72"}},{"$f":"(1-Inputs!B20)*G11/'(Other Computations)'!B130","v":{"v":138.48394313466963,"d":"138.48"}},{"$f":"(1-Inputs!B20)*H11/'(Other Computations)'!B130","v":{"v":138.19371726984315,"d":"138.19"}},{"$f":"(1-Inputs!B20)*I11/'(Other Computations)'!B130","v":{"v":137.85580023900076,"d":"137.86"}},{"$f":"(1-Inputs!B20)*J11/'(Other Computations)'!B130","v":{"v":137.538567833528,"d":"137.54"}},{"$f":"(1-Inputs!B20)*K11/'(Other Computations)'!B130","v":{"v":137.25447696848929,"d":"137.25"}},{"$f":"(1-Inputs!B20)*L11/'(Other Computations)'!B130","v":{"v":137.045388415492,"d":"137.05"}},{"$f":"(1-Inputs!B20)*M11/'(Other Computations)'!B130","v":{"v":136.8023475182475,"d":"136.80"}},{"$f":"SUM(B29:M29)","v":{"v":1659.924451447611,"d":"1,659.92"}},{"$f":"(1-Inputs!B20)*O11/'(Other Computations)'!B130","v":{"v":136.5354974707672,"d":"136.54"}},{"$f":"(1-Inputs!B20)*P11/'(Other Computations)'!B130","v":{"v":136.21636588931577,"d":"136.22"}},{"$f":"(1-Inputs!B20)*Q11/'(Other Computations)'!B130","v":{"v":135.93099868153814,"d":"135.93"}},{"$f":"(1-Inputs!B20)*R11/'(Other Computations)'!B130","v":{"v":135.54011027169545,"d":"135.54"}},{"$f":"(1-Inputs!B20)*S11/'(Other Computations)'!B130","v":{"v":135.28737933504073,"d":"135.29"}},{"$f":"(1-Inputs!B20)*T11/'(Other Computations)'!B130","v":{"v":134.91800506487692,"d":"134.92"}},{"$f":"(1-Inputs!B20)*U11/'(Other Computations)'!B130","v":{"v":134.5869451719919,"d":"134.59"}},{"$f":"(1-Inputs!B20)*V11/'(Other Computations)'!B130","v":{"v":134.23458539312642,"d":"134.23"}},{"$f":"(1-Inputs!B20)*W11/'(Other Computations)'!B130","v":{"v":133.88449247286508,"d":"133.88"}},{"$f":"(1-Inputs!B20)*X11/'(Other Computations)'!B130","v":{"v":133.5921027776894,"d":"133.59"}},{"$f":"(1-Inputs!B20)*Y11/'(Other Computations)'!B130","v":{"v":133.31780028095812,"d":"133.32"}},{"$f":"(1-Inputs!B20)*Z11/'(Other Computations)'!B130","v":{"v":133.12665030842638,"d":"133.13"}},{"$f":"SUM(O29:Z29)","v":{"v":1617.1709331182917,"d":"1,617.17"}},{"$f":"(1-Inputs!B20)*AB11/'(Other Computations)'!B130","v":{"v":132.82818413844998,"d":"132.83"}},{"$f":"(1-Inputs!B20)*AC11/'(Other Computations)'!B130","v":{"v":132.57724521328444,"d":"132.58"}},{"$f":"(1-Inputs!B20)*AD11/'(Other Computations)'!B130","v":{"v":132.42364834677485,"d":"132.42"}},{"$f":"(1-Inputs!B20)*AE11/'(Other Computations)'!B130","v":{"v":132.1384854106768,"d":"132.14"}},{"$f":"(1-Inputs!B20)*AF11/'(Other Computations)'!B130","v":{"v":131.8356272062219,"d":"131.84"}},{"$f":"(1-Inputs!B20)*AG11/'(Other Computations)'!B130","v":{"v":131.58667144846942,"d":"131.59"}},{"$f":"(1-Inputs!B20)*AH11/'(Other Computations)'!B130","v":{"v":131.33436734142154,"d":"131.33"}},{"$f":"(1-Inputs!B20)*AI11/'(Other Computations)'!B130","v":{"v":131.11901529993213,"d":"131.12"}},{"$f":"(1-Inputs!B20)*AJ11/'(Other Computations)'!B130","v":{"v":130.85716424104152,"d":"130.86"}},{"$f":"(1-Inputs!B20)*AK11/'(Other Computations)'!B130","v":{"v":130.7019230631904,"d":"130.70"}},{"$f":"(1-Inputs!B20)*AL11/'(Other Computations)'!B130","v":{"v":130.4834447396061,"d":"130.48"}},{"$f":"(1-Inputs!B20)*AM11/'(Other Computations)'!B130","v":{"v":130.23385116823502,"d":"130.23"}},{"$f":"SUM(AB29:AM29)","v":{"v":1578.119627617304,"d":"1,578.12"}},{"$f":"(1-Inputs!B20)*AO11/'(Other Computations)'!B130","v":{"v":129.94992249071336,"d":"129.95"}},{"$f":"(1-Inputs!B20)*AP11/'(Other Computations)'!B130","v":{"v":129.6695102521685,"d":"129.67"}},{"$f":"(1-Inputs!B20)*AQ11/'(Other Computations)'!B130","v":{"v":129.54593377033717,"d":"129.55"}},{"$f":"(1-Inputs!B20)*AR11/'(Other Computations)'!B130","v":{"v":129.25835558237242,"d":"129.26"}},{"$f":"(1-Inputs!B20)*AS11/'(Other Computations)'!B130","v":{"v":129.0875545581215,"d":"129.09"}},{"$f":"(1-Inputs!B20)*AT11/'(Other Computations)'!B130","v":{"v":128.88047487412229,"d":"128.88"}},{"$f":"(1-Inputs!B20)*AU11/'(Other Computations)'!B130","v":{"v":128.7094614784808,"d":"128.71"}},{"$f":"(1-Inputs!B20)*AV11/'(Other Computations)'!B130","v":{"v":128.48848907829296,"d":"128.49"}},{"$f":"(1-Inputs!B20)*AW11/'(Other Computations)'!B130","v":{"v":128.23868199323064,"d":"128.24"}},{"$f":"(1-Inputs!B20)*AX11/'(Other Computations)'!B130","v":{"v":128.0264931288604,"d":"128.03"}},{"$f":"(1-Inputs!B20)*AY11/'(Other Computations)'!B130","v":{"v":127.88926811353016,"d":"127.89"}},{"$f":"(1-Inputs!B20)*AZ11/'(Other Computations)'!B130","v":{"v":127.7082819838543,"d":"127.71"}},{"$f":"SUM(AO29:AZ29)","v":{"v":1545.4524273040843,"d":"1,545.45"}},{"$f":"(1-Inputs!B20)*BB11/'(Other Computations)'!B130","v":{"v":127.44620555235282,"d":"127.45"}},{"$f":"(1-Inputs!B20)*BC11/'(Other Computations)'!B130","v":{"v":127.18157114227604,"d":"127.18"}},{"$f":"(1-Inputs!B20)*BD11/'(Other Computations)'!B130","v":{"v":126.99397187938727,"d":"126.99"}},{"$f":"(1-Inputs!B20)*BE11/'(Other Computations)'!B130","v":{"v":126.7691170853055,"d":"126.77"}},{"$f":"(1-Inputs!B20)*BF11/'(Other Computations)'!B130","v":{"v":126.62904395535959,"d":"126.63"}},{"$f":"(1-Inputs!B20)*BG11/'(Other Computations)'!B130","v":{"v":126.45758090049918,"d":"126.46"}},{"$f":"(1-Inputs!B20)*BH11/'(Other Computations)'!B130","v":{"v":126.2847315879956,"d":"126.28"}},{"$f":"(1-Inputs!B20)*BI11/'(Other Computations)'!B130","v":{"v":126.1270701023629,"d":"126.13"}},{"$f":"(1-Inputs!B20)*BJ11/'(Other Computations)'!B130","v":{"v":125.92307442823532,"d":"125.92"}},{"$f":"(1-Inputs!B20)*BK11/'(Other Computations)'!B130","v":{"v":125.71846584493855,"d":"125.72"}},{"$f":"(1-Inputs!B20)*BL11/'(Other Computations)'!B130","v":{"v":125.46020408331796,"d":"125.46"}},{"$f":"(1-Inputs!B20)*BM11/'(Other Computations)'!B130","v":{"v":125.29604628510769,"d":"125.30"}},{"$f":"SUM(BB29:BM29)","v":{"v":1516.2870828471382,"d":"1,516.29"}},{"$f":"(1-Inputs!B20)*BO11/'(Other Computations)'!B130","v":{"v":125.06514120625589,"d":"125.07"}},{"$f":"(1-Inputs!B20)*BP11/'(Other Computations)'!B130","v":{"v":124.91640632437324,"d":"124.92"}},{"$f":"(1-Inputs!B20)*BQ11/'(Other Computations)'!B130","v":{"v":124.7069543996186,"d":"124.71"}},{"$f":"(1-Inputs!B20)*BR11/'(Other Computations)'!B130","v":{"v":124.62029873332787,"d":"124.62"}},{"$f":"(1-Inputs!B20)*BS11/'(Other Computations)'!B130","v":{"v":124.48325507972368,"d":"124.48"}},{"$f":"(1-Inputs!B20)*BT11/'(Other Computations)'!B130","v":{"v":124.31732761506422,"d":"124.32"}},{"$f":"(1-Inputs!B20)*BU11/'(Other Computations)'!B130","v":{"v":124.07045485743299,"d":"124.07"}},{"$f":"(1-Inputs!B20)*BV11/'(Other Computations)'!B130","v":{"v":123.84800288792034,"d":"123.85"}},{"$f":"(1-Inputs!B20)*BW11/'(Other Computations)'!B130","v":{"v":123.66375318712815,"d":"123.66"}},{"$f":"(1-Inputs!B20)*BX11/'(Other Computations)'!B130","v":{"v":123.54942224174641,"d":"123.55"}},{"$f":"(1-Inputs!B20)*BY11/'(Other Computations)'!B130","v":{"v":123.33068930881679,"d":"123.33"}},{"$f":"(1-Inputs!B20)*BZ11/'(Other Computations)'!B130","v":{"v":123.09498033962836,"d":"123.09"}},{"$f":"SUM(BO29:BZ29)","v":{"v":1489.6666861810365,"d":"1,489.67"}},{"$f":"(1-Inputs!B20)*CB11/'(Other Computations)'!B130","v":{"v":122.99065680872839,"d":"122.99"}},{"$f":"(1-Inputs!B20)*CC11/'(Other Computations)'!B130","v":{"v":122.81965935955544,"d":"122.82"}},{"$f":"(1-Inputs!B20)*CD11/'(Other Computations)'!B130","v":{"v":122.59226438402477,"d":"122.59"}},{"$f":"(1-Inputs!B20)*CE11/'(Other Computations)'!B130","v":{"v":122.50139648602838,"d":"122.50"}},{"$f":"(1-Inputs!B20)*CF11/'(Other Computations)'!B130","v":{"v":122.29367036224612,"d":"122.29"}},{"$f":"(1-Inputs!B20)*CG11/'(Other Computations)'!B130","v":{"v":122.13652539998684,"d":"122.14"}},{"$f":"(1-Inputs!B20)*CH11/'(Other Computations)'!B130","v":{"v":122.00544962330865,"d":"122.01"}},{"$f":"(1-Inputs!B20)*CI11/'(Other Computations)'!B130","v":{"v":121.84916311675455,"d":"121.85"}},{"$f":"(1-Inputs!B20)*CJ11/'(Other Computations)'!B130","v":{"v":121.71289009025193,"d":"121.71"}},{"$f":"(1-Inputs!B20)*CK11/'(Other Computations)'!B130","v":{"v":121.56652440996865,"d":"121.57"}},{"$f":"(1-Inputs!B20)*CL11/'(Other Computations)'!B130","v":{"v":121.34001616542872,"d":"121.34"}},{"$f":"(1-Inputs!B20)*CM11/'(Other Computations)'!B130","v":{"v":121.24173751773102,"d":"121.24"}},{"$f":"SUM(CB29:CM29)","v":{"v":1465.0499537240137,"d":"1,465.05"}},{"$f":"(1-Inputs!B20)*CO11/'(Other Computations)'!B130","v":{"v":121.09891374582207,"d":"121.10"}},{"$f":"(1-Inputs!B20)*CP11/'(Other Computations)'!B130","v":{"v":120.90791528066535,"d":"120.91"}},{"$f":"(1-Inputs!B20)*CQ11/'(Other Computations)'!B130","v":{"v":120.81310517775646,"d":"120.81"}},{"$f":"(1-Inputs!B20)*CR11/'(Other Computations)'!B130","v":{"v":120.5759168368858,"d":"120.58"}},{"$f":"(1-Inputs!B20)*CS11/'(Other Computations)'!B130","v":{"v":120.43132900554687,"d":"120.43"}},{"$f":"(1-Inputs!B20)*CT11/'(Other Computations)'!B130","v":{"v":120.21117922339297,"d":"120.21"}},{"$f":"(1-Inputs!B20)*CU11/'(Other Computations)'!B130","v":{"v":120.09172624297027,"d":"120.09"}},{"$f":"(1-Inputs!B20)*CV11/'(Other Computations)'!B130","v":{"v":119.89299193032427,"d":"119.89"}},{"$f":"(1-Inputs!B20)*CW11/'(Other Computations)'!B130","v":{"v":119.77317078143223,"d":"119.77"}},{"$f":"(1-Inputs!B20)*CX11/'(Other Computations)'!B130","v":{"v":119.5650512455377,"d":"119.57"}},{"$f":"(1-Inputs!B20)*CY11/'(Other Computations)'!B130","v":{"v":119.49375349757523,"d":"119.49"}},{"$f":"(1-Inputs!B20)*CZ11/'(Other Computations)'!B130","v":{"v":119.43561993933214,"d":"119.44"}},{"$f":"SUM(CO29:CZ29)","v":{"v":1442.2906729072413,"d":"1,442.29"}},{"$f":"(1-Inputs!B20)*DB11/'(Other Computations)'!B130","v":{"v":119.22759750321084,"d":"119.23"}},{"$f":"(1-Inputs!B20)*DC11/'(Other Computations)'!B130","v":{"v":119.10435415153079,"d":"119.10"}},{"$f":"(1-Inputs!B20)*DD11/'(Other Computations)'!B130","v":{"v":119.01344233128744,"d":"119.01"}},{"$f":"(1-Inputs!B20)*DE11/'(Other Computations)'!B130","v":{"v":118.88993061625735,"d":"118.89"}},{"$f":"(1-Inputs!B20)*DF11/'(Other Computations)'!B130","v":{"v":118.80882232169569,"d":"118.81"}},{"$f":"(1-Inputs!B20)*DG11/'(Other Computations)'!B130","v":{"v":118.7244346924629,"d":"118.72"}},{"$f":"(1-Inputs!B20)*DH11/'(Other Computations)'!B130","v":{"v":118.57782252387244,"d":"118.58"}},{"$f":"(1-Inputs!B20)*DI11/'(Other Computations)'!B130","v":{"v":118.48089828489833,"d":"118.48"}},{"$f":"(1-Inputs!B20)*DJ11/'(Other Computations)'!B130","v":{"v":118.30971963683731,"d":"118.31"}},{"$f":"(1-Inputs!B20)*DK11/'(Other Computations)'!B130","v":{"v":118.21646146806891,"d":"118.22"}},{"$f":"(1-Inputs!B20)*DL11/'(Other Computations)'!B130","v":{"v":118.17451655730491,"d":"118.17"}},{"$f":"(1-Inputs!B20)*DM11/'(Other Computations)'!B130","v":{"v":117.99328528303614,"d":"117.99"}},{"$f":"SUM(DB29:DM29)","v":{"v":1423.5212853704631,"d":"1,423.52"}},{"$f":"(1-Inputs!B20)*DO11/'(Other Computations)'!B130","v":{"v":117.88714371185304,"d":"117.89"}},{"$f":"(1-Inputs!B20)*DP11/'(Other Computations)'!B130","v":{"v":117.84510370412916,"d":"117.85"}},{"$f":"(1-Inputs!B20)*DQ11/'(Other Computations)'!B130","v":{"v":117.70283179502664,"d":"117.70"}},{"$f":"(1-Inputs!B20)*DR11/'(Other Computations)'!B130","v":{"v":117.60945642643057,"d":"117.61"}},{"$f":"(1-Inputs!B20)*DS11/'(Other Computations)'!B130","v":{"v":117.50416950550435,"d":"117.50"}},{"$f":"(1-Inputs!B20)*DT11/'(Other Computations)'!B130","v":{"v":117.37375948133645,"d":"117.37"}},{"$f":"(1-Inputs!B20)*DU11/'(Other Computations)'!B130","v":{"v":117.24051179696846,"d":"117.24"}},{"$f":"(1-Inputs!B20)*DV11/'(Other Computations)'!B130","v":{"v":117.14938782560523,"d":"117.15"}},{"$f":"(1-Inputs!B20)*DW11/'(Other Computations)'!B130","v":{"v":116.97703551177169,"d":"116.98"}},{"$f":"(1-Inputs!B20)*DX11/'(Other Computations)'!B130","v":{"v":116.82467273153637,"d":"116.82"}},{"$f":"(1-Inputs!B20)*DY11/'(Other Computations)'!B130","v":{"v":116.77056791334326,"d":"116.77"}},{"$f":"(1-Inputs!B20)*DZ11/'(Other Computations)'!B130","v":{"v":116.69896010601376,"d":"116.70"}},{"$f":"SUM(DO29:DZ29)","v":{"v":1407.583600509519,"d":"1,407.58"}},{"$f":"(1-Inputs!B20)*EB11/'(Other Computations)'!B130","v":{"v":116.55106075416218,"d":"116.55"}},{"$f":"(1-Inputs!B20)*EC11/'(Other Computations)'!B130","v":{"v":116.4639341117413,"d":"116.46"}},{"$f":"(1-Inputs!B20)*ED11/'(Other Computations)'!B130","v":{"v":116.35216918539045,"d":"116.35"}},{"$f":"(1-Inputs!B20)*EE11/'(Other Computations)'!B130","v":{"v":116.24211545370713,"d":"116.24"}},{"$f":"(1-Inputs!B20)*EF11/'(Other Computations)'!B130","v":{"v":116.06106378404733,"d":"116.06"}},{"$f":"(1-Inputs!B20)*EG11/'(Other Computations)'!B130","v":{"v":115.94719752126883,"d":"115.95"}},{"$f":"(1-Inputs!B20)*EH11/'(Other Computations)'!B130","v":{"v":115.82252194174342,"d":"115.82"}},{"$f":"(1-Inputs!B20)*EI11/'(Other Computations)'!B130","v":{"v":115.70905926775724,"d":"115.71"}},{"$f":"(1-Inputs!B20)*EJ11/'(Other Computations)'!B130","v":{"v":115.5557565791141,"d":"115.56"}},{"$f":"(1-Inputs!B20)*EK11/'(Other Computations)'!B130","v":{"v":115.4664406202973,"d":"115.47"}},{"$f":"(1-Inputs!B20)*EL11/'(Other Computations)'!B130","v":{"v":115.35142490880952,"d":"115.35"}},{"$f":"(1-Inputs!B20)*EM11/'(Other Computations)'!B130","v":{"v":115.19402919346861,"d":"115.19"}},{"$f":"SUM(EB29:EM29)","v":{"v":1390.7167733215074,"d":"1,390.72"}}]
[]
[]
[{"$f":"\"Income\"","v":"Income"}]
[{"$f":"\" \"","v":" "}]
[null,{"$f":"ZZZ__FnCalls!F7","v":"Jan 2010"},{"$f":"ZZZ__FnCalls!F8","v":"Feb 2010"},{"$f":"ZZZ__FnCalls!F9","v":"Mar 2010"},{"$f":"ZZZ__FnCalls!F10","v":"Apr 2010"},{"$f":"ZZZ__FnCalls!F11","v":"May 2010"},{"$f":"ZZZ__FnCalls!F12","v":"Jun 2010"},{"$f":"ZZZ__FnCalls!F13","v":"Jul 2010"},{"$f":"ZZZ__FnCalls!F14","v":"Aug 2010"},{"$f":"ZZZ__FnCalls!F15","v":"Sep 2010"},{"$f":"ZZZ__FnCalls!F16","v":"Oct 2010"},{"$f":"ZZZ__FnCalls!F17","v":"Nov 2010"},{"$f":"ZZZ__FnCalls!F18","v":"Dec 2010"},{"$f":"ZZZ__FnCalls!H7","v":"2010"},{"$f":"ZZZ__FnCalls!F19","v":"Jan 2011"},{"$f":"ZZZ__FnCalls!F20","v":"Feb 2011"},{"$f":"ZZZ__FnCalls!F21","v":"Mar 2011"},{"$f":"ZZZ__FnCalls!F22","v":"Apr 2011"},{"$f":"ZZZ__FnCalls!F23","v":"May 2011"},{"$f":"ZZZ__FnCalls!F24","v":"Jun 2011"},{"$f":"ZZZ__FnCalls!F25","v":"Jul 2011"},{"$f":"ZZZ__FnCalls!F26","v":"Aug 2011"},{"$f":"ZZZ__FnCalls!F27","v":"Sep 2011"},{"$f":"ZZZ__FnCalls!F28","v":"Oct 2011"},{"$f":"ZZZ__FnCalls!F29","v":"Nov 2011"},{"$f":"ZZZ__FnCalls!F30","v":"Dec 2011"},{"$f":"ZZZ__FnCalls!H19","v":"2011"},{"$f":"ZZZ__FnCalls!F31","v":"Jan 2012"},{"$f":"ZZZ__FnCalls!F32","v":"Feb 2012"},{"$f":"ZZZ__FnCalls!F33","v":"Mar 2012"},{"$f":"ZZZ__FnCalls!F34","v":"Apr 2012"},{"$f":"ZZZ__FnCalls!F35","v":"May 2012"},{"$f":"ZZZ__FnCalls!F36","v":"Jun 2012"},{"$f":"ZZZ__FnCalls!F37","v":"Jul 2012"},{"$f":"ZZZ__FnCalls!F38","v":"Aug 2012"},{"$f":"ZZZ__FnCalls!F39","v":"Sep 2012"},{"$f":"ZZZ__FnCalls!F40","v":"Oct 2012"},{"$f":"ZZZ__FnCalls!F41","v":"Nov 2012"},{"$f":"ZZZ__FnCalls!F42","v":"Dec 2012"},{"$f":"ZZZ__FnCalls!H31","v":"2012"},{"$f":"ZZZ__FnCalls!F43","v":"Jan 2013"},{"$f":"ZZZ__FnCalls!F44","v":"Feb 2013"},{"$f":"ZZZ__FnCalls!F45","v":"Mar 2013"},{"$f":"ZZZ__FnCalls!F46","v":"Apr 2013"},{"$f":"ZZZ__FnCalls!F47","v":"May 2013"},{"$f":"ZZZ__FnCalls!F48","v":"Jun 2013"},{"$f":"ZZZ__FnCalls!F49","v":"Jul 2013"},{"$f":"ZZZ__FnCalls!F50","v":"Aug 2013"},{"$f":"ZZZ__FnCalls!F51","v":"Sep 2013"},{"$f":"ZZZ__FnCalls!F52","v":"Oct 2013"},{"$f":"ZZZ__FnCalls!F53","v":"Nov 2013"},{"$f":"ZZZ__FnCalls!F54","v":"Dec 2013"},{"$f":"ZZZ__FnCalls!H43","v":"2013"},{"$f":"ZZZ__FnCalls!F55","v":"Jan 2014"},{"$f":"ZZZ__FnCalls!F56","v":"Feb 2014"},{"$f":"ZZZ__FnCalls!F57","v":"Mar 2014"},{"$f":"ZZZ__FnCalls!F58","v":"Apr 2014"},{"$f":"ZZZ__FnCalls!F59","v":"May 2014"},{"$f":"ZZZ__FnCalls!F60","v":"Jun 2014"},{"$f":"ZZZ__FnCalls!F61","v":"Jul 2014"},{"$f":"ZZZ__FnCalls!F62","v":"Aug 2014"},{"$f":"ZZZ__FnCalls!F63","v":"Sep 2014"},{"$f":"ZZZ__FnCalls!F64","v":"Oct 2014"},{"$f":"ZZZ__FnCalls!F65","v":"Nov 2014"},{"$f":"ZZZ__FnCalls!F66","v":"Dec 2014"},{"$f":"ZZZ__FnCalls!H55","v":"2014"},{"$f":"ZZZ__FnCalls!F67","v":"Jan 2015"},{"$f":"ZZZ__FnCalls!F68","v":"Feb 2015"},{"$f":"ZZZ__FnCalls!F69","v":"Mar 2015"},{"$f":"ZZZ__FnCalls!F70","v":"Apr 2015"},{"$f":"ZZZ__FnCalls!F71","v":"May 2015"},{"$f":"ZZZ__FnCalls!F72","v":"Jun 2015"},{"$f":"ZZZ__FnCalls!F73","v":"Jul 2015"},{"$f":"ZZZ__FnCalls!F74","v":"Aug 2015"},{"$f":"ZZZ__FnCalls!F75","v":"Sep 2015"},{"$f":"ZZZ__FnCalls!F76","v":"Oct 2015"},{"$f":"ZZZ__FnCalls!F77","v":"Nov 2015"},{"$f":"ZZZ__FnCalls!F78","v":"Dec 2015"},{"$f":"ZZZ__FnCalls!H67","v":"2015"},{"$f":"ZZZ__FnCalls!F79","v":"Jan 2016"},{"$f":"ZZZ__FnCalls!F80","v":"Feb 2016"},{"$f":"ZZZ__FnCalls!F81","v":"Mar 2016"},{"$f":"ZZZ__FnCalls!F82","v":"Apr 2016"},{"$f":"ZZZ__FnCalls!F83","v":"May 2016"},{"$f":"ZZZ__FnCalls!F84","v":"Jun 2016"},{"$f":"ZZZ__FnCalls!F85","v":"Jul 2016"},{"$f":"ZZZ__FnCalls!F86","v":"Aug 2016"},{"$f":"ZZZ__FnCalls!F87","v":"Sep 2016"},{"$f":"ZZZ__FnCalls!F88","v":"Oct 2016"},{"$f":"ZZZ__FnCalls!F89","v":"Nov 2016"},{"$f":"ZZZ__FnCalls!F90","v":"Dec 2016"},{"$f":"ZZZ__FnCalls!H79","v":"2016"},{"$f":"ZZZ__FnCalls!F91","v":"Jan 2017"},{"$f":"ZZZ__FnCalls!F92","v":"Feb 2017"},{"$f":"ZZZ__FnCalls!F93","v":"Mar 2017"},{"$f":"ZZZ__FnCalls!F94","v":"Apr 2017"},{"$f":"ZZZ__FnCalls!F95","v":"May 2017"},{"$f":"ZZZ__FnCalls!F96","v":"Jun 2017"},{"$f":"ZZZ__FnCalls!F97","v":"Jul 2017"},{"$f":"ZZZ__FnCalls!F98","v":"Aug 2017"},{"$f":"ZZZ__FnCalls!F99","v":"Sep 2017"},{"$f":"ZZZ__FnCalls!F100","v":"Oct 2017"},{"$f":"ZZZ__FnCalls!F101","v":"Nov 2017"},{"$f":"ZZZ__FnCalls!F102","v":"Dec 2017"},{"$f":"ZZZ__FnCalls!H91","v":"2017"},{"$f":"ZZZ__FnCalls!F103","v":"Jan 2018"},{"$f":"ZZZ__FnCalls!F104","v":"Feb 2018"},{"$f":"ZZZ__FnCalls!F105","v":"Mar 2018"},{"$f":"ZZZ__FnCalls!F106","v":"Apr 2018"},{"$f":"ZZZ__FnCalls!F107","v":"May 2018"},{"$f":"ZZZ__FnCalls!F108","v":"Jun 2018"},{"$f":"ZZZ__FnCalls!F109","v":"Jul 2018"},{"$f":"ZZZ__FnCalls!F110","v":"Aug 2018"},{"$f":"ZZZ__FnCalls!F111","v":"Sep 2018"},{"$f":"ZZZ__FnCalls!F112","v":"Oct 2018"},{"$f":"ZZZ__FnCalls!F113","v":"Nov 2018"},{"$f":"ZZZ__FnCalls!F114","v":"Dec 2018"},{"$f":"ZZZ__FnCalls!H103","v":"2018"},{"$f":"ZZZ__FnCalls!F115","v":"Jan 2019"},{"$f":"ZZZ__FnCalls!F116","v":"Feb 2019"},{"$f":"ZZZ__FnCalls!F117","v":"Mar 2019"},{"$f":"ZZZ__FnCalls!F118","v":"Apr 2019"},{"$f":"ZZZ__FnCalls!F119","v":"May 2019"},{"$f":"ZZZ__FnCalls!F120","v":"Jun 2019"},{"$f":"ZZZ__FnCalls!F121","v":"Jul 2019"},{"$f":"ZZZ__FnCalls!F122","v":"Aug 2019"},{"$f":"ZZZ__FnCalls!F123","v":"Sep 2019"},{"$f":"ZZZ__FnCalls!F124","v":"Oct 2019"},{"$f":"ZZZ__FnCalls!F125","v":"Nov 2019"},{"$f":"ZZZ__FnCalls!F126","v":"Dec 2019"},{"$f":"ZZZ__FnCalls!H115","v":"2019"},{"$f":"ZZZ__FnCalls!F127","v":"Jan 2020"},{"$f":"ZZZ__FnCalls!F128","v":"Feb 2020"},{"$f":"ZZZ__FnCalls!F129","v":"Mar 2020"},{"$f":"ZZZ__FnCalls!F130","v":"Apr 2020"},{"$f":"ZZZ__FnCalls!F131","v":"May 2020"},{"$f":"ZZZ__FnCalls!F132","v":"Jun 2020"},{"$f":"ZZZ__FnCalls!F133","v":"Jul 2020"},{"$f":"ZZZ__FnCalls!F134","v":"Aug 2020"},{"$f":"ZZZ__FnCalls!F135","v":"Sep 2020"},{"$f":"ZZZ__FnCalls!F136","v":"Oct 2020"},{"$f":"ZZZ__FnCalls!F137","v":"Nov 2020"},{"$f":"ZZZ__FnCalls!F138","v":"Dec 2020"},{"$f":"ZZZ__FnCalls!H127","v":"2020"}]
[{"$f":"Labels!B55","v":"Current Disposable Income"},{"$f":"B44-B54+B38","v":{"v":856094.50650769,"d":"$856,095"}},{"v":798615.5479001122,"d":"$798,616"},{"v":838188.9985295675,"d":"$838,189"},{"v":820255.6504918513,"d":"$820,256"},{"v":825850.5680869435,"d":"$825,851"},{"v":831999.7926326884,"d":"$832,000"},{"v":849924.4674854004,"d":"$849,924"},{"v":825810.7752369939,"d":"$825,811"},{"v":833696.5852615488,"d":"$833,697"},{"v":833246.4752762147,"d":"$833,246"},{"v":825127.6192531639,"d":"$825,128"},{"v":848762.7919698409,"d":"$848,763"},{"$f":"SUM(B35:M35)","v":{"v":9987573.778632017,"d":"$9,987,574"}},{"$f":"O44-O54+O38","v":{"v":806976.5616632713,"d":"$806,977"}},{"v":840242.5279441848,"d":"$840,243"},{"v":815446.1541481734,"d":"$815,446"},{"v":818056.2163824551,"d":"$818,056"},{"v":805604.7645951052,"d":"$805,605"},{"v":790707.8086140425,"d":"$790,708"},{"v":798906.9069108533,"d":"$798,907"},{"v":811768.3040505677,"d":"$811,768"},{"v":820529.975554833,"d":"$820,530"},{"v":812995.0518040854,"d":"$812,995"},{"v":836277.0405276549,"d":"$836,277"},{"v":805139.1360889733,"d":"$805,139"},{"$f":"SUM(O35:Z35)","v":{"v":9762650.4482842,"d":"$9,762,650"}},{"$f":"AB44-AB54+AB38","v":{"v":802572.8345147391,"d":"$802,573"}},{"v":814208.4300458914,"d":"$814,208"},{"v":830267.2132731696,"d":"$830,267"},{"v":785851.0761111706,"d":"$785,851"},{"v":785017.3275885208,"d":"$785,017"},{"v":808253.1006892126,"d":"$808,253"},{"v":804483.1944744554,"d":"$804,483"},{"v":786840.4586100356,"d":"$786,840"},{"v":778630.5070700848,"d":"$778,631"},{"v":805173.8887383475,"d":"$805,174"},{"v":822555.627764312,"d":"$822,556"},{"v":824605.2001207498,"d":"$824,605"},{"$f":"SUM(AB35:AM35)","v":{"v":9648458.859000688,"d":"$9,648,459"}},{"$f":"AO44-AO54+AO38","v":{"v":755410.7513073303,"d":"$755,411"}},{"v":788943.3282719059,"d":"$788,943"},{"v":820866.7846053763,"d":"$820,867"},{"v":784154.4773404506,"d":"$784,154"},{"v":780521.7314812654,"d":"$780,522"},{"v":777428.6105397206,"d":"$777,429"},{"v":780472.3213385456,"d":"$780,472"},{"v":809057.1016003564,"d":"$809,057"},{"v":780876.9234791884,"d":"$780,877"},{"v":755806.1816671524,"d":"$755,806"},{"v":815920.7366931586,"d":"$815,921"},{"v":777926.3473975911,"d":"$777,926"},{"$f":"SUM(AO35:AZ35)","v":{"v":9427385.295722041,"d":"$9,427,385"}},{"$f":"BB44-BB54+BB38","v":{"v":767957.3568020767,"d":"$767,957"}},{"v":790084.5719488935,"d":"$790,085"},{"v":804651.899678487,"d":"$804,652"},{"v":795222.4023425184,"d":"$795,222"},{"v":765547.9704273258,"d":"$765,548"},{"v":796227.1884603015,"d":"$796,227"},{"v":798293.1407226392,"d":"$798,293"},{"v":818109.9964015353,"d":"$818,110"},{"v":806020.4133876042,"d":"$806,020"},{"v":814442.7905777843,"d":"$814,443"},{"v":791106.7601561841,"d":"$791,107"},{"v":760857.9641973778,"d":"$760,858"},{"$f":"SUM(BB35:BM35)","v":{"v":9508522.455102729,"d":"$9,508,522"}},{"$f":"BO44-BO54+BO38","v":{"v":799154.6863939514,"d":"$799,155"}},{"v":805119.7744780538,"d":"$805,120"},{"v":767034.3811452627,"d":"$767,034"},{"v":769123.2714130876,"d":"$769,123"},{"v":752167.1846983122,"d":"$752,167"},{"v":777568.3468175886,"d":"$777,568"},{"v":777340.4219057552,"d":"$777,340"},{"v":770379.4455950322,"d":"$770,379"},{"v":791349.0879789296,"d":"$791,349"},{"v":754686.1182964564,"d":"$754,686"},{"v":774201.669469554,"d":"$774,202"},{"v":771185.4189561275,"d":"$771,185"},{"$f":"SUM(BO35:BZ35)","v":{"v":9309309.80714811,"d":"$9,309,310"}},{"$f":"CB44-CB54+CB38","v":{"v":767915.2060766115,"d":"$767,915"}},{"v":749748.8895898659,"d":"$749,749"},{"v":733863.2215626935,"d":"$733,863"},{"v":774404.2571079824,"d":"$774,404"},{"v":777012.1664078786,"d":"$777,012"},{"v":747656.639252626,"d":"$747,657"},{"v":775179.7595414269,"d":"$775,180"},{"v":729901.1352268738,"d":"$729,901"},{"v":752443.0539671454,"d":"$752,443"},{"v":774019.3104066491,"d":"$774,019"},{"v":768230.8143259437,"d":"$768,231"},{"v":733347.5555044216,"d":"$733,348"},{"$f":"SUM(CB35:CM35)","v":{"v":9083722.008970117,"d":"$9,083,722"}},{"$f":"CO44-CO54+CO38","v":{"v":721391.0154759273,"d":"$721,391"}},{"v":760323.1916453559,"d":"$760,323"},{"v":772200.2929529148,"d":"$772,200"},{"v":754217.1301084646,"d":"$754,217"},{"v":733545.6379500173,"d":"$733,546"},{"v":733121.7463563565,"d":"$733,122"},{"v":728447.3245228449,"d":"$728,447"},{"v":742620.226364463,"d":"$742,620"},{"v":724848.9031649654,"d":"$724,849"},{"v":717642.4117953753,"d":"$717,642"},{"v":763216.4627852361,"d":"$763,216"},{"v":761033.277243991,"d":"$761,033"},{"$f":"SUM(CO35:CZ35)","v":{"v":8912607.62036591,"d":"$8,912,608"}},{"$f":"DB44-DB54+DB38","v":{"v":716657.9103718017,"d":"$716,658"}},{"v":744551.8117898089,"d":"$744,552"},{"v":749325.6941461476,"d":"$749,326"},{"v":768143.4253959119,"d":"$768,143"},{"v":715390.9497851316,"d":"$715,391"},{"v":729830.656857804,"d":"$729,831"},{"v":762112.6830066661,"d":"$762,113"},{"v":743710.5351912844,"d":"$743,711"},{"v":777699.4854056528,"d":"$777,699"},{"v":739778.2372932648,"d":"$739,778"},{"v":744243.0852496052,"d":"$744,243"},{"v":766453.1435327294,"d":"$766,453"},{"$f":"SUM(DB35:DM35)","v":{"v":8957897.61802581,"d":"$8,957,898"}},{"$f":"DO44-DO54+DO38","v":{"v":715669.1430492428,"d":"$715,669"}},{"v":715271.1202482855,"d":"$715,271"},{"v":737755.092796245,"d":"$737,755"},{"v":735362.2031739502,"d":"$735,362"},{"v":724034.576516102,"d":"$724,035"},{"v":727875.2190192796,"d":"$727,875"},{"v":767222.7426194357,"d":"$767,223"},{"v":750601.4000879778,"d":"$750,601"},{"v":712601.9929401038,"d":"$712,602"},{"v":715557.9774586959,"d":"$715,558"},{"v":729086.5607997376,"d":"$729,087"},{"v":734159.280536499,"d":"$734,159"},{"$f":"SUM(DO35:DZ35)","v":{"v":8765197.309245555,"d":"$8,765,197"}},{"$f":"EB44-EB54+EB38","v":{"v":735672.4433134863,"d":"$735,672"}},{"v":708356.3058653934,"d":"$708,356"},{"v":698446.0512219226,"d":"$698,446"},{"v":754668.478555538,"d":"$754,668"},{"v":711331.4219964243,"d":"$711,331"},{"v":722135.1437127416,"d":"$722,135"},{"v":746758.3113970025,"d":"$746,758"},{"v":705580.4396461834,"d":"$705,580"},{"v":711893.5919935121,"d":"$711,894"},{"v":703816.236830819,"d":"$703,816"},{"v":722691.0761371701,"d":"$722,691"},{"v":710436.5638030702,"d":"$710,437"},{"$f":"SUM(EB35:EM35)","v":{"v":8631786.064473264,"d":"$8,631,786"}}]
[{"$f":"Labels!B45","v":"Final Sales"},{"$f":"B12+B21+B37","v":{"v":963388.6810828955,"d":"$963,389"}},{"v":962788.7580836549,"d":"$962,789"},{"v":962192.3776643618,"d":"$962,192"},{"v":961656.0510731867,"d":"$961,656"},{"v":961050.092475044,"d":"$961,050"},{"v":960560.00546097,"d":"$960,560"},{"v":960029.2348064434,"d":"$960,029"},{"v":959486.4500036152,"d":"$959,486"},{"v":958919.246161763,"d":"$958,919"},{"v":958410.5482487191,"d":"$958,411"},{"v":957989.6356935522,"d":"$957,990"},{"v":957513.8221802168,"d":"$957,514"},{"$f":"SUM(B36:M36)","v":{"v":11523984.902934425,"d":"$11,523,985"}},{"$f":"O12+O21+O37","v":{"v":957064.6743848027,"d":"$957,065"}},{"v":956467.8251333041,"d":"$956,468"},{"v":955985.453755788,"d":"$955,985"},{"v":955330.9028481159,"d":"$955,331"},{"v":954844.9983269287,"d":"$954,845"},{"v":954199.7634342397,"d":"$954,200"},{"v":953570.5720775559,"d":"$953,571"},{"v":952937.6373976986,"d":"$952,938"},{"v":952338.5901094397,"d":"$952,339"},{"v":951827.7044930907,"d":"$951,828"},{"v":951323.0912716924,"d":"$951,323"},{"v":950966.1133256974,"d":"$950,966"},{"$f":"SUM(O36:Z36)","v":{"v":11446857.326558352,"d":"$11,446,857"}},{"$f":"AB12+AB21+AB37","v":{"v":950419.0343375972,"d":"$950,419"}},{"v":949923.896643172,"d":"$949,924"},{"v":949566.8723567838,"d":"$949,567"},{"v":949093.7022126153,"d":"$949,094"},{"v":948506.8343039006,"d":"$948,507"},{"v":947982.3573559042,"d":"$947,982"},{"v":947505.6554366577,"d":"$947,506"},{"v":947064.64785634,"d":"$947,065"},{"v":946532.9466548437,"d":"$946,533"},{"v":946107.6076335415,"d":"$946,108"},{"v":945667.0496308317,"d":"$945,667"},{"v":945229.9796056383,"d":"$945,230"},{"$f":"SUM(AB36:AM36)","v":{"v":11373600.584027825,"d":"$11,373,601"}},{"$f":"AO12+AO21+AO37","v":{"v":944759.5028909746,"d":"$944,760"}},{"v":944145.0010951117,"d":"$944,145"},{"v":943784.773874388,"d":"$943,785"},{"v":943304.6275543286,"d":"$943,305"},{"v":942881.491271228,"d":"$942,881"},{"v":942408.5579071079,"d":"$942,409"},{"v":941971.3866776208,"d":"$941,971"},{"v":941483.8017839065,"d":"$941,484"},{"v":941026.5041628544,"d":"$941,027"},{"v":940552.6361104007,"d":"$940,553"},{"v":940110.9648781044,"d":"$940,111"},{"v":939749.0450779217,"d":"$939,749"},{"$f":"SUM(AO36:AZ36)","v":{"v":11306178.293283947,"d":"$11,306,178"}},{"$f":"BB12+BB21+BB37","v":{"v":939212.5251568437,"d":"$939,213"}},{"v":938653.5292281674,"d":"$938,654"},{"v":938232.3007003104,"d":"$938,232"},{"v":937799.9065044457,"d":"$937,800"},{"v":937445.3046959377,"d":"$937,445"},{"v":936989.7448484036,"d":"$936,990"},{"v":936599.7328697186,"d":"$936,600"},{"v":936231.8887508115,"d":"$936,232"},{"v":935853.8876065691,"d":"$935,854"},{"v":935449.8356475824,"d":"$935,450"},{"v":935003.1629203112,"d":"$935,003"},{"v":934615.2741216258,"d":"$934,615"},{"$f":"SUM(BB36:BM36)","v":{"v":11242087.093050728,"d":"$11,242,087"}},{"$f":"BO12+BO21+BO37","v":{"v":934084.9012141587,"d":"$934,085"}},{"v":933733.251691204,"d":"$933,733"},{"v":933324.3338821771,"d":"$933,324"},{"v":932974.6264108215,"d":"$932,975"},{"v":932570.2792518166,"d":"$932,570"},{"v":932096.4749564566,"d":"$932,096"},{"v":931585.6466882575,"d":"$931,586"},{"v":931104.1342935589,"d":"$931,104"},{"v":930652.1000274969,"d":"$930,652"},{"v":930325.8834276166,"d":"$930,326"},{"v":929799.7378703518,"d":"$929,800"},{"v":929298.2141118775,"d":"$929,298"},{"$f":"SUM(BO36:BZ36)","v":{"v":11181549.583825793,"d":"$11,181,550"}},{"$f":"CB12+CB21+CB37","v":{"v":928941.9265496238,"d":"$928,942"}},{"v":928500.8534646168,"d":"$928,501"},{"v":927956.6903860765,"d":"$927,957"},{"v":927536.105218218,"d":"$927,536"},{"v":927068.2095810336,"d":"$927,068"},{"v":926665.5510870415,"d":"$926,666"},{"v":926229.0167468839,"d":"$926,229"},{"v":925823.1446986715,"d":"$925,823"},{"v":925342.5101757707,"d":"$925,343"},{"v":924899.2993810842,"d":"$924,899"},{"v":924411.3697252852,"d":"$924,411"},{"v":924059.456281223,"d":"$924,059"},{"$f":"SUM(CB36:CM36)","v":{"v":11117434.133295529,"d":"$11,117,434"}},{"$f":"CO12+CO21+CO37","v":{"v":923579.6552519473,"d":"$923,580"}},{"v":923019.4371372731,"d":"$923,019"},{"v":922655.1222189806,"d":"$922,655"},{"v":922152.4086650779,"d":"$922,152"},{"v":921719.0762049422,"d":"$921,719"},{"v":921154.0171354472,"d":"$921,154"},{"v":920705.2158787284,"d":"$920,705"},{"v":920154.8562880453,"d":"$920,155"},{"v":919727.2310766844,"d":"$919,727"},{"v":919159.44600639,"d":"$919,159"},{"v":918734.6185476807,"d":"$918,735"},{"v":918422.3108578909,"d":"$918,422"},{"$f":"SUM(CO36:CZ36)","v":{"v":11051183.395269087,"d":"$11,051,183"}},{"$f":"DB12+DB21+DB37","v":{"v":917932.7084990339,"d":"$917,933"}},{"v":917446.176476969,"d":"$917,446"},{"v":917056.847875839,"d":"$917,057"},{"v":916640.0733059993,"d":"$916,640"},{"v":916313.0381580779,"d":"$916,313"},{"v":915867.2234387995,"d":"$915,867"},{"v":915381.3819390865,"d":"$915,381"},{"v":915023.4597838911,"d":"$915,023"},{"v":914540.0980943014,"d":"$914,540"},{"v":914221.0098242959,"d":"$914,221"},{"v":913877.7335833603,"d":"$913,878"},{"v":913383.5789060493,"d":"$913,384"},{"$f":"SUM(DB36:DM36)","v":{"v":10987683.329885704,"d":"$10,987,683"}},{"$f":"DO12+DO21+DO37","v":{"v":913025.554934891,"d":"$913,026"}},{"v":912630.4134672184,"d":"$912,630"},{"v":912118.703496254,"d":"$912,119"},{"v":911713.2021779884,"d":"$911,713"},{"v":911288.6056176872,"d":"$911,289"},{"v":910811.0124440562,"d":"$910,811"},{"v":910339.2849916463,"d":"$910,339"},{"v":910001.725334947,"d":"$910,002"},{"v":909534.7101025165,"d":"$909,535"},{"v":909009.8021323927,"d":"$909,010"},{"v":908604.690820129,"d":"$908,605"},{"v":908207.9503550554,"d":"$908,208"},{"$f":"SUM(DO36:DZ36)","v":{"v":10927285.655874783,"d":"$10,927,286"}},{"$f":"EB12+EB21+EB37","v":{"v":907734.8632494423,"d":"$907,735"}},{"v":907336.037369113,"d":"$907,336"},{"v":906849.4848580474,"d":"$906,849"},{"v":906344.1676295892,"d":"$906,344"},{"v":905879.9368331087,"d":"$905,880"},{"v":905400.393399594,"d":"$905,400"},{"v":904931.9891796878,"d":"$904,932"},{"v":904530.5051111925,"d":"$904,531"},{"v":903994.4536783441,"d":"$903,994"},{"v":903546.7566047936,"d":"$903,547"},{"v":903051.9721617951,"d":"$903,052"},{"v":902550.3715434641,"d":"$902,550"},{"$f":"SUM(EB36:EM36)","v":{"v":10862150.931618173,"d":"$10,862,151"}}]
[{"$f":"Labels!B51","v":"Gov Spending"},{"$f":"'(Other Computations)'!B11/8","v":{"v":29166.66666666667,"d":"$29,167"}},{"$f":"'(Other Computations)'!B11/8","v":{"v":29166.66666666667,"d":"$29,167"}},{"$f":"'(Other Computations)'!B11/8","v":{"v":29166.66666666667,"d":"$29,167"}},{"$f":"'(Other Computations)'!B11/8","v":{"v":29166.66666666667,"d":"$29,167"}},{"$f":"'(Other Computations)'!B11/8","v":{"v":29166.66666666667,"d":"$29,167"}},{"$f":"'(Other Computations)'!B11/8","v":{"v":29166.66666666667,"d":"$29,167"}},{"$f":"'(Other Computations)'!B11/8","v":{"v":29166.66666666667,"d":"$29,167"}},{"$f":"'(Other Computations)'!B11/8","v":{"v":29166.66666666667,"d":"$29,167"}},{"$f":"'(Other Computations)'!B11/8","v":{"v":29166.66666666667,"d":"$29,167"}},{"$f":"'(Other Computations)'!B11/8","v":{"v":29166.66666666667,"d":"$29,167"}},{"$f":"'(Other Computations)'!B11/8","v":{"v":29166.66666666667,"d":"$29,167"}},{"$f":"'(Other Computations)'!B11/8","v":{"v":29166.66666666667,"d":"$29,167"}},{"$f":"SUM(B37:M37)","v":{"v":350000.0000000002,"d":"$350,000"}},{"$f":"'(Other Computations)'!B11/8","v":{"v":29166.66666666667,"d":"$29,167"}},{"$f":"'(Other Computations)'!B11/8","v":{"v":29166.66666666667,"d":"$29,167"}},{"$f":"'(Other Computations)'!B11/8","v":{"v":29166.66666666667,"d":"$29,167"}},{"$f":"'(Other Computations)'!B11/8","v":{"v":29166.66666666667,"d":"$29,167"}},{"$f":"'(Other Computations)'!B11/8","v":{"v":29166.66666666667,"d":"$29,167"}},{"$f":"'(Other Computations)'!B11/8","v":{"v":29166.66666666667,"d":"$29,167"}},{"$f":"'(Other Computations)'!B11/8","v":{"v":29166.66666666667,"d":"$29,167"}},{"$f":"'(Other Computations)'!B11/8","v":{"v":29166.66666666667,"d":"$29,167"}},{"$f":"'(Other Computations)'!B11/8","v":{"v":29166.66666666667,"d":"$29,167"}},{"$f":"'(Other Computations)'!B11/8","v":{"v":29166.66666666667,"d":"$29,167"}},{"$f":"'(Other Computations)'!B11/8","v":{"v":29166.66666666667,"d":"$29,167"}},{"$f":"'(Other Computations)'!B11/8","v":{"v":29166.66666666667,"d":"$29,167"}},{"$f":"SUM(O37:Z37)","v":{"v":350000.0000000002,"d":"$350,000"}},{"$f":"'(Other Computations)'!B11/8","v":{"v":29166.66666666667,"d":"$29,167"}},{"$f":"'(Other Computations)'!B11/8","v":{"v":29166.66666666667,"d":"$29,167"}},{"$f":"'(Other Computations)'!B11/8","v":{"v":29166.66666666667,"d":"$29,167"}},{"$f":"'(Other Computations)'!B11/8","v":{"v":29166.66666666667,"d":"$29,167"}},{"$f":"'(Other Computations)'!B11/8","v":{"v":29166.66666666667,"d":"$29,167"}},{"$f":"'(Other Computations)'!B11/8","v":{"v":29166.66666666667,"d":"$29,167"}},{"$f":"'(Other Computations)'!B11/8","v":{"v":29166.66666666667,"d":"$29,167"}},{"$f":"'(Other Computations)'!B11/8","v":{"v":29166.66666666667,"d":"$29,167"}},{"$f":"'(Other Computations)'!B11/8","v":{"v":29166.66666666667,"d":"$29,167"}},{"$f":"'(Other Computations)'!B11/8","v":{"v":29166.66666666667,"d":"$29,167"}},{"$f":"'(Other Computations)'!B11/8","v":{"v":29166.66666666667,"d":"$29,167"}},{"$f":"'(Other Computations)'!B11/8","v":{"v":29166.66666666667,"d":"$29,167"}},{"$f":"SUM(AB37:AM37)","v":{"v":350000.0000000002,"d":"$350,000"}},{"$f":"'(Other Computations)'!B11/8","v":{"v":29166.66666666667,"d":"$29,167"}},{"$f":"'(Other Computations)'!B11/8","v":{"v":29166.66666666667,"d":"$29,167"}},{"$f":"'(Other Computations)'!B11/8","v":{"v":29166.66666666667,"d":"$29,167"}},{"$f":"'(Other Computations)'!B11/8","v":{"v":29166.66666666667,"d":"$29,167"}},{"$f":"'(Other Computations)'!B11/8","v":{"v":29166.66666666667,"d":"$29,167"}},{"$f":"'(Other Computations)'!B11/8","v":{"v":29166.66666666667,"d":"$29,167"}},{"$f":"'(Other Computations)'!B11/8","v":{"v":29166.66666666667,"d":"$29,167"}},{"$f":"'(Other Computations)'!B11/8","v":{"v":29166.66666666667,"d":"$29,167"}},{"$f":"'(Other Computations)'!B11/8","v":{"v":29166.66666666667,"d":"$29,167"}},{"$f":"'(Other Computations)'!B11/8","v":{"v":29166.66666666667,"d":"$29,167"}},{"$f":"'(Other Computations)'!B11/8","v":{"v":29166.66666666667,"d":"$29,167"}},{"$f":"'(Other Computations)'!B11/8","v":{"v":29166.66666666667,"d":"$29,167"}},{"$f":"SUM(AO37:AZ37)","v":{"v":350000.0000000002,"d":"$350,000"}},{"$f":"'(Other Computations)'!B11/8","v":{"v":29166.66666666667,"d":"$29,167"}},{"$f":"'(Other Computations)'!B11/8","v":{"v":29166.66666666667,"d":"$29,167"}},{"$f":"'(Other Computations)'!B11/8","v":{"v":29166.66666666667,"d":"$29,167"}},{"$f":"'(Other Computations)'!B11/8","v":{"v":29166.66666666667,"d":"$29,167"}},{"$f":"'(Other Computations)'!B11/8","v":{"v":29166.66666666667,"d":"$29,167"}},{"$f":"'(Other Computations)'!B11/8","v":{"v":29166.66666666667,"d":"$29,167"}},{"$f":"'(Other Computations)'!B11/8","v":{"v":29166.66666666667,"d":"$29,167"}},{"$f":"'(Other Computations)'!B11/8","v":{"v":29166.66666666667,"d":"$29,167"}},{"$f":"'(Other Computations)'!B11/8","v":{"v":29166.66666666667,"d":"$29,167"}},{"$f":"'(Other Computations)'!B11/8","v":{"v":29166.66666666667,"d":"$29,167"}},{"$f":"'(Other Computations)'!B11/8","v":{"v":29166.66666666667,"d":"$29,167"}},{"$f":"'(Other Computations)'!B11/8","v":{"v":29166.66666666667,"d":"$29,167"}},{"$f":"SUM(BB37:BM37)","v":{"v":350000.0000000002,"d":"$350,000"}},{"$f":"'(Other Computations)'!B11/8","v":{"v":29166.66666666667,"d":"$29,167"}},{"$f":"'(Other Computations)'!B11/8","v":{"v":29166.66666666667,"d":"$29,167"}},{"$f":"'(Other Computations)'!B11/8","v":{"v":29166.66666666667,"d":"$29,167"}},{"$f":"'(Other Computations)'!B11/8","v":{"v":29166.66666666667,"d":"$29,167"}},{"$f":"'(Other Computations)'!B11/8","v":{"v":29166.66666666667,"d":"$29,167"}},{"$f":"'(Other Computations)'!B11/8","v":{"v":29166.66666666667,"d":"$29,167"}},{"$f":"'(Other Computations)'!B11/8","v":{"v":29166.66666666667,"d":"$29,167"}},{"$f":"'(Other Computations)'!B11/8","v":{"v":29166.66666666667,"d":"$29,167"}},{"$f":"'(Other Computations)'!B11/8","v":{"v":29166.66666666667,"d":"$29,167"}},{"$f":"'(Other Computations)'!B11/8","v":{"v":29166.66666666667,"d":"$29,167"}},{"$f":"'(Other Computations)'!B11/8","v":{"v":29166.66666666667,"d":"$29,167"}},{"$f":"'(Other Computations)'!B11/8","v":{"v":29166.66666666667,"d":"$29,167"}},{"$f":"SUM(BO37:BZ37)","v":{"v":350000.0000000002,"d":"$350,000"}},{"$f":"'(Other Computations)'!B11/8","v":{"v":29166.66666666667,"d":"$29,167"}},{"$f":"'(Other Computations)'!B11/8","v":{"v":29166.66666666667,"d":"$29,167"}},{"$f":"'(Other Computations)'!B11/8","v":{"v":29166.66666666667,"d":"$29,167"}},{"$f":"'(Other Computations)'!B11/8","v":{"v":29166.66666666667,"d":"$29,167"}},{"$f":"'(Other Computations)'!B11/8","v":{"v":29166.66666666667,"d":"$29,167"}},{"$f":"'(Other Computations)'!B11/8","v":{"v":29166.66666666667,"d":"$29,167"}},{"$f":"'(Other Computations)'!B11/8","v":{"v":29166.66666666667,"d":"$29,167"}},{"$f":"'(Other Computations)'!B11/8","v":{"v":29166.66666666667,"d":"$29,167"}},{"$f":"'(Other Computations)'!B11/8","v":{"v":29166.66666666667,"d":"$29,167"}},{"$f":"'(Other Computations)'!B11/8","v":{"v":29166.66666666667,"d":"$29,167"}},{"$f":"'(Other Computations)'!B11/8","v":{"v":29166.66666666667,"d":"$29,167"}},{"$f":"'(Other Computations)'!B11/8","v":{"v":29166.66666666667,"d":"$29,167"}},{"$f":"SUM(CB37:CM37)","v":{"v":350000.0000000002,"d":"$350,000"}},{"$f":"'(Other Computations)'!B11/8","v":{"v":29166.66666666667,"d":"$29,167"}},{"$f":"'(Other Computations)'!B11/8","v":{"v":29166.66666666667,"d":"$29,167"}},{"$f":"'(Other Computations)'!B11/8","v":{"v":29166.66666666667,"d":"$29,167"}},{"$f":"'(Other Computations)'!B11/8","v":{"v":29166.66666666667,"d":"$29,167"}},{"$f":"'(Other Computations)'!B11/8","v":{"v":29166.66666666667,"d":"$29,167"}},{"$f":"'(Other Computations)'!B11/8","v":{"v":29166.66666666667,"d":"$29,167"}},{"$f":"'(Other Computations)'!B11/8","v":{"v":29166.66666666667,"d":"$29,167"}},{"$f":"'(Other Computations)'!B11/8","v":{"v":29166.66666666667,"d":"$29,167"}},{"$f":"'(Other Computations)'!B11/8","v":{"v":29166.66666666667,"d":"$29,167"}},{"$f":"'(Other Computations)'!B11/8","v":{"v":29166.66666666667,"d":"$29,167"}},{"$f":"'(Other Computations)'!B11/8","v":{"v":29166.66666666667,"d":"$29,167"}},{"$f":"'(Other Computations)'!B11/8","v":{"v":29166.66666666667,"d":"$29,167"}},{"$f":"SUM(CO37:CZ37)","v":{"v":350000.0000000002,"d":"$350,000"}},{"$f":"'(Other Computations)'!B11/8","v":{"v":29166.66666666667,"d":"$29,167"}},{"$f":"'(Other Computations)'!B11/8","v":{"v":29166.66666666667,"d":"$29,167"}},{"$f":"'(Other Computations)'!B11/8","v":{"v":29166.66666666667,"d":"$29,167"}},{"$f":"'(Other Computations)'!B11/8","v":{"v":29166.66666666667,"d":"$29,167"}},{"$f":"'(Other Computations)'!B11/8","v":{"v":29166.66666666667,"d":"$29,167"}},{"$f":"'(Other Computations)'!B11/8","v":{"v":29166.66666666667,"d":"$29,167"}},{"$f":"'(Other Computations)'!B11/8","v":{"v":29166.66666666667,"d":"$29,167"}},{"$f":"'(Other Computations)'!B11/8","v":{"v":29166.66666666667,"d":"$29,167"}},{"$f":"'(Other Computations)'!B11/8","v":{"v":29166.66666666667,"d":"$29,167"}},{"$f":"'(Other Computations)'!B11/8","v":{"v":29166.66666666667,"d":"$29,167"}},{"$f":"'(Other Computations)'!B11/8","v":{"v":29166.66666666667,"d":"$29,167"}},{"$f":"'(Other Computations)'!B11/8","v":{"v":29166.66666666667,"d":"$29,167"}},{"$f":"SUM(DB37:DM37)","v":{"v":350000.0000000002,"d":"$350,000"}},{"$f":"'(Other Computations)'!B11/8","v":{"v":29166.66666666667,"d":"$29,167"}},{"$f":"'(Other Computations)'!B11/8","v":{"v":29166.66666666667,"d":"$29,167"}},{"$f":"'(Other Computations)'!B11/8","v":{"v":29166.66666666667,"d":"$29,167"}},{"$f":"'(Other Computations)'!B11/8","v":{"v":29166.66666666667,"d":"$29,167"}},{"$f":"'(Other Computations)'!B11/8","v":{"v":29166.66666666667,"d":"$29,167"}},{"$f":"'(Other Computations)'!B11/8","v":{"v":29166.66666666667,"d":"$29,167"}},{"$f":"'(Other Computations)'!B11/8","v":{"v":29166.66666666667,"d":"$29,167"}},{"$f":"'(Other Computations)'!B11/8","v":{"v":29166.66666666667,"d":"$29,167"}},{"$f":"'(Other Computations)'!B11/8","v":{"v":29166.66666666667,"d":"$29,167"}},{"$f":"'(Other Computations)'!B11/8","v":{"v":29166.66666666667,"d":"$29,167"}},{"$f":"'(Other Computations)'!B11/8","v":{"v":29166.66666666667,"d":"$29,167"}},{"$f":"'(Other Computations)'!B11/8","v":{"v":29166.66666666667,"d":"$29,167"}},{"$f":"SUM(DO37:DZ37)","v":{"v":350000.0000000002,"d":"$350,000"}},{"$f":"'(Other Computations)'!B11/8","v":{"v":29166.66666666667,"d":"$29,167"}},{"$f":"'(Other Computations)'!B11/8","v":{"v":29166.66666666667,"d":"$29,167"}},{"$f":"'(Other Computations)'!B11/8","v":{"v":29166.66666666667,"d":"$29,167"}},{"$f":"'(Other Computations)'!B11/8","v":{"v":29166.66666666667,"d":"$29,167"}},{"$f":"'(Other Computations)'!B11/8","v":{"v":29166.66666666667,"d":"$29,167"}},{"$f":"'(Other Computations)'!B11/8","v":{"v":29166.66666666667,"d":"$29,167"}},{"$f":"'(Other Computations)'!B11/8","v":{"v":29166.66666666667,"d":"$29,167"}},{"$f":"'(Other Computations)'!B11/8","v":{"v":29166.66666666667,"d":"$29,167"}},{"$f":"'(Other Computations)'!B11/8","v":{"v":29166.66666666667,"d":"$29,167"}},{"$f":"'(Other Computations)'!B11/8","v":{"v":29166.66666666667,"d":"$29,167"}},{"$f":"'(Other Computations)'!B11/8","v":{"v":29166.66666666667,"d":"$29,167"}},{"$f":"'(Other Computations)'!B11/8","v":{"v":29166.66666666667,"d":"$29,167"}},{"$f":"SUM(EB37:EM37)","v":{"v":350000.0000000002,"d":"$350,000"}}]
[{"$f":"Labels!B52","v":"Gov Transfers"},{"$f":"'(Other Computations)'!B14/8","v":{"v":14583.333333333336,"d":"$14,583"}},{"$f":"'(Other Computations)'!B14/8","v":{"v":14583.333333333336,"d":"$14,583"}},{"$f":"'(Other Computations)'!B14/8","v":{"v":14583.333333333336,"d":"$14,583"}},{"$f":"'(Other Computations)'!B14/8","v":{"v":14583.333333333336,"d":"$14,583"}},{"$f":"'(Other Computations)'!B14/8","v":{"v":14583.333333333336,"d":"$14,583"}},{"$f":"'(Other Computations)'!B14/8","v":{"v":14583.333333333336,"d":"$14,583"}},{"$f":"'(Other Computations)'!B14/8","v":{"v":14583.333333333336,"d":"$14,583"}},{"$f":"'(Other Computations)'!B14/8","v":{"v":14583.333333333336,"d":"$14,583"}},{"$f":"'(Other Computations)'!B14/8","v":{"v":14583.333333333336,"d":"$14,583"}},{"$f":"'(Other Computations)'!B14/8","v":{"v":14583.333333333336,"d":"$14,583"}},{"$f":"'(Other Computations)'!B14/8","v":{"v":14583.333333333336,"d":"$14,583"}},{"$f":"'(Other Computations)'!B14/8","v":{"v":14583.333333333336,"d":"$14,583"}},{"$f":"SUM(B38:M38)","v":{"v":175000.0000000001,"d":"$175,000"}},{"$f":"'(Other Computations)'!B14/8","v":{"v":14583.333333333336,"d":"$14,583"}},{"$f":"'(Other Computations)'!B14/8","v":{"v":14583.333333333336,"d":"$14,583"}},{"$f":"'(Other Computations)'!B14/8","v":{"v":14583.333333333336,"d":"$14,583"}},{"$f":"'(Other Computations)'!B14/8","v":{"v":14583.333333333336,"d":"$14,583"}},{"$f":"'(Other Computations)'!B14/8","v":{"v":14583.333333333336,"d":"$14,583"}},{"$f":"'(Other Computations)'!B14/8","v":{"v":14583.333333333336,"d":"$14,583"}},{"$f":"'(Other Computations)'!B14/8","v":{"v":14583.333333333336,"d":"$14,583"}},{"$f":"'(Other Computations)'!B14/8","v":{"v":14583.333333333336,"d":"$14,583"}},{"$f":"'(Other Computations)'!B14/8","v":{"v":14583.333333333336,"d":"$14,583"}},{"$f":"'(Other Computations)'!B14/8","v":{"v":14583.333333333336,"d":"$14,583"}},{"$f":"'(Other Computations)'!B14/8","v":{"v":14583.333333333336,"d":"$14,583"}},{"$f":"'(Other Computations)'!B14/8","v":{"v":14583.333333333336,"d":"$14,583"}},{"$f":"SUM(O38:Z38)","v":{"v":175000.0000000001,"d":"$175,000"}},{"$f":"'(Other Computations)'!B14/8","v":{"v":14583.333333333336,"d":"$14,583"}},{"$f":"'(Other Computations)'!B14/8","v":{"v":14583.333333333336,"d":"$14,583"}},{"$f":"'(Other Computations)'!B14/8","v":{"v":14583.333333333336,"d":"$14,583"}},{"$f":"'(Other Computations)'!B14/8","v":{"v":14583.333333333336,"d":"$14,583"}},{"$f":"'(Other Computations)'!B14/8","v":{"v":14583.333333333336,"d":"$14,583"}},{"$f":"'(Other Computations)'!B14/8","v":{"v":14583.333333333336,"d":"$14,583"}},{"$f":"'(Other Computations)'!B14/8","v":{"v":14583.333333333336,"d":"$14,583"}},{"$f":"'(Other Computations)'!B14/8","v":{"v":14583.333333333336,"d":"$14,583"}},{"$f":"'(Other Computations)'!B14/8","v":{"v":14583.333333333336,"d":"$14,583"}},{"$f":"'(Other Computations)'!B14/8","v":{"v":14583.333333333336,"d":"$14,583"}},{"$f":"'(Other Computations)'!B14/8","v":{"v":14583.333333333336,"d":"$14,583"}},{"$f":"'(Other Computations)'!B14/8","v":{"v":14583.333333333336,"d":"$14,583"}},{"$f":"SUM(AB38:AM38)","v":{"v":175000.0000000001,"d":"$175,000"}},{"$f":"'(Other Computations)'!B14/8","v":{"v":14583.333333333336,"d":"$14,583"}},{"$f":"'(Other Computations)'!B14/8","v":{"v":14583.333333333336,"d":"$14,583"}},{"$f":"'(Other Computations)'!B14/8","v":{"v":14583.333333333336,"d":"$14,583"}},{"$f":"'(Other Computations)'!B14/8","v":{"v":14583.333333333336,"d":"$14,583"}},{"$f":"'(Other Computations)'!B14/8","v":{"v":14583.333333333336,"d":"$14,583"}},{"$f":"'(Other Computations)'!B14/8","v":{"v":14583.333333333336,"d":"$14,583"}},{"$f":"'(Other Computations)'!B14/8","v":{"v":14583.333333333336,"d":"$14,583"}},{"$f":"'(Other Computations)'!B14/8","v":{"v":14583.333333333336,"d":"$14,583"}},{"$f":"'(Other Computations)'!B14/8","v":{"v":14583.333333333336,"d":"$14,583"}},{"$f":"'(Other Computations)'!B14/8","v":{"v":14583.333333333336,"d":"$14,583"}},{"$f":"'(Other Computations)'!B14/8","v":{"v":14583.333333333336,"d":"$14,583"}},{"$f":"'(Other Computations)'!B14/8","v":{"v":14583.333333333336,"d":"$14,583"}},{"$f":"SUM(AO38:AZ38)","v":{"v":175000.0000000001,"d":"$175,000"}},{"$f":"'(Other Computations)'!B14/8","v":{"v":14583.333333333336,"d":"$14,583"}},{"$f":"'(Other Computations)'!B14/8","v":{"v":14583.333333333336,"d":"$14,583"}},{"$f":"'(Other Computations)'!B14/8","v":{"v":14583.333333333336,"d":"$14,583"}},{"$f":"'(Other Computations)'!B14/8","v":{"v":14583.333333333336,"d":"$14,583"}},{"$f":"'(Other Computations)'!B14/8","v":{"v":14583.333333333336,"d":"$14,583"}},{"$f":"'(Other Computations)'!B14/8","v":{"v":14583.333333333336,"d":"$14,583"}},{"$f":"'(Other Computations)'!B14/8","v":{"v":14583.333333333336,"d":"$14,583"}},{"$f":"'(Other Computations)'!B14/8","v":{"v":14583.333333333336,"d":"$14,583"}},{"$f":"'(Other Computations)'!B14/8","v":{"v":14583.333333333336,"d":"$14,583"}},{"$f":"'(Other Computations)'!B14/8","v":{"v":14583.333333333336,"d":"$14,583"}},{"$f":"'(Other Computations)'!B14/8","v":{"v":14583.333333333336,"d":"$14,583"}},{"$f":"'(Other Computations)'!B14/8","v":{"v":14583.333333333336,"d":"$14,583"}},{"$f":"SUM(BB38:BM38)","v":{"v":175000.0000000001,"d":"$175,000"}},{"$f":"'(Other Computations)'!B14/8","v":{"v":14583.333333333336,"d":"$14,583"}},{"$f":"'(Other Computations)'!B14/8","v":{"v":14583.333333333336,"d":"$14,583"}},{"$f":"'(Other Computations)'!B14/8","v":{"v":14583.333333333336,"d":"$14,583"}},{"$f":"'(Other Computations)'!B14/8","v":{"v":14583.333333333336,"d":"$14,583"}},{"$f":"'(Other Computations)'!B14/8","v":{"v":14583.333333333336,"d":"$14,583"}},{"$f":"'(Other Computations)'!B14/8","v":{"v":14583.333333333336,"d":"$14,583"}},{"$f":"'(Other Computations)'!B14/8","v":{"v":14583.333333333336,"d":"$14,583"}},{"$f":"'(Other Computations)'!B14/8","v":{"v":14583.333333333336,"d":"$14,583"}},{"$f":"'(Other Computations)'!B14/8","v":{"v":14583.333333333336,"d":"$14,583"}},{"$f":"'(Other Computations)'!B14/8","v":{"v":14583.333333333336,"d":"$14,583"}},{"$f":"'(Other Computations)'!B14/8","v":{"v":14583.333333333336,"d":"$14,583"}},{"$f":"'(Other Computations)'!B14/8","v":{"v":14583.333333333336,"d":"$14,583"}},{"$f":"SUM(BO38:BZ38)","v":{"v":175000.0000000001,"d":"$175,000"}},{"$f":"'(Other Computations)'!B14/8","v":{"v":14583.333333333336,"d":"$14,583"}},{"$f":"'(Other Computations)'!B14/8","v":{"v":14583.333333333336,"d":"$14,583"}},{"$f":"'(Other Computations)'!B14/8","v":{"v":14583.333333333336,"d":"$14,583"}},{"$f":"'(Other Computations)'!B14/8","v":{"v":14583.333333333336,"d":"$14,583"}},{"$f":"'(Other Computations)'!B14/8","v":{"v":14583.333333333336,"d":"$14,583"}},{"$f":"'(Other Computations)'!B14/8","v":{"v":14583.333333333336,"d":"$14,583"}},{"$f":"'(Other Computations)'!B14/8","v":{"v":14583.333333333336,"d":"$14,583"}},{"$f":"'(Other Computations)'!B14/8","v":{"v":14583.333333333336,"d":"$14,583"}},{"$f":"'(Other Computations)'!B14/8","v":{"v":14583.333333333336,"d":"$14,583"}},{"$f":"'(Other Computations)'!B14/8","v":{"v":14583.333333333336,"d":"$14,583"}},{"$f":"'(Other Computations)'!B14/8","v":{"v":14583.333333333336,"d":"$14,583"}},{"$f":"'(Other Computations)'!B14/8","v":{"v":14583.333333333336,"d":"$14,583"}},{"$f":"SUM(CB38:CM38)","v":{"v":175000.0000000001,"d":"$175,000"}},{"$f":"'(Other Computations)'!B14/8","v":{"v":14583.333333333336,"d":"$14,583"}},{"$f":"'(Other Computations)'!B14/8","v":{"v":14583.333333333336,"d":"$14,583"}},{"$f":"'(Other Computations)'!B14/8","v":{"v":14583.333333333336,"d":"$14,583"}},{"$f":"'(Other Computations)'!B14/8","v":{"v":14583.333333333336,"d":"$14,583"}},{"$f":"'(Other Computations)'!B14/8","v":{"v":14583.333333333336,"d":"$14,583"}},{"$f":"'(Other Computations)'!B14/8","v":{"v":14583.333333333336,"d":"$14,583"}},{"$f":"'(Other Computations)'!B14/8","v":{"v":14583.333333333336,"d":"$14,583"}},{"$f":"'(Other Computations)'!B14/8","v":{"v":14583.333333333336,"d":"$14,583"}},{"$f":"'(Other Computations)'!B14/8","v":{"v":14583.333333333336,"d":"$14,583"}},{"$f":"'(Other Computations)'!B14/8","v":{"v":14583.333333333336,"d":"$14,583"}},{"$f":"'(Other Computations)'!B14/8","v":{"v":14583.333333333336,"d":"$14,583"}},{"$f":"'(Other Computations)'!B14/8","v":{"v":14583.333333333336,"d":"$14,583"}},{"$f":"SUM(CO38:CZ38)","v":{"v":175000.0000000001,"d":"$175,000"}},{"$f":"'(Other Computations)'!B14/8","v":{"v":14583.333333333336,"d":"$14,583"}},{"$f":"'(Other Computations)'!B14/8","v":{"v":14583.333333333336,"d":"$14,583"}},{"$f":"'(Other Computations)'!B14/8","v":{"v":14583.333333333336,"d":"$14,583"}},{"$f":"'(Other Computations)'!B14/8","v":{"v":14583.333333333336,"d":"$14,583"}},{"$f":"'(Other Computations)'!B14/8","v":{"v":14583.333333333336,"d":"$14,583"}},{"$f":"'(Other Computations)'!B14/8","v":{"v":14583.333333333336,"d":"$14,583"}},{"$f":"'(Other Computations)'!B14/8","v":{"v":14583.333333333336,"d":"$14,583"}},{"$f":"'(Other Computations)'!B14/8","v":{"v":14583.333333333336,"d":"$14,583"}},{"$f":"'(Other Computations)'!B14/8","v":{"v":14583.333333333336,"d":"$14,583"}},{"$f":"'(Other Computations)'!B14/8","v":{"v":14583.333333333336,"d":"$14,583"}},{"$f":"'(Other Computations)'!B14/8","v":{"v":14583.333333333336,"d":"$14,583"}},{"$f":"'(Other Computations)'!B14/8","v":{"v":14583.333333333336,"d":"$14,583"}},{"$f":"SUM(DB38:DM38)","v":{"v":175000.0000000001,"d":"$175,000"}},{"$f":"'(Other Computations)'!B14/8","v":{"v":14583.333333333336,"d":"$14,583"}},{"$f":"'(Other Computations)'!B14/8","v":{"v":14583.333333333336,"d":"$14,583"}},{"$f":"'(Other Computations)'!B14/8","v":{"v":14583.333333333336,"d":"$14,583"}},{"$f":"'(Other Computations)'!B14/8","v":{"v":14583.333333333336,"d":"$14,583"}},{"$f":"'(Other Computations)'!B14/8","v":{"v":14583.333333333336,"d":"$14,583"}},{"$f":"'(Other Computations)'!B14/8","v":{"v":14583.333333333336,"d":"$14,583"}},{"$f":"'(Other Computations)'!B14/8","v":{"v":14583.333333333336,"d":"$14,583"}},{"$f":"'(Other Computations)'!B14/8","v":{"v":14583.333333333336,"d":"$14,583"}},{"$f":"'(Other Computations)'!B14/8","v":{"v":14583.333333333336,"d":"$14,583"}},{"$f":"'(Other Computations)'!B14/8","v":{"v":14583.333333333336,"d":"$14,583"}},{"$f":"'(Other Computations)'!B14/8","v":{"v":14583.333333333336,"d":"$14,583"}},{"$f":"'(Other Computations)'!B14/8","v":{"v":14583.333333333336,"d":"$14,583"}},{"$f":"SUM(DO38:DZ38)","v":{"v":175000.0000000001,"d":"$175,000"}},{"$f":"'(Other Computations)'!B14/8","v":{"v":14583.333333333336,"d":"$14,583"}},{"$f":"'(Other Computations)'!B14/8","v":{"v":14583.333333333336,"d":"$14,583"}},{"$f":"'(Other Computations)'!B14/8","v":{"v":14583.333333333336,"d":"$14,583"}},{"$f":"'(Other Computations)'!B14/8","v":{"v":14583.333333333336,"d":"$14,583"}},{"$f":"'(Other Computations)'!B14/8","v":{"v":14583.333333333336,"d":"$14,583"}},{"$f":"'(Other Computations)'!B14/8","v":{"v":14583.333333333336,"d":"$14,583"}},{"$f":"'(Other Computations)'!B14/8","v":{"v":14583.333333333336,"d":"$14,583"}},{"$f":"'(Other Computations)'!B14/8","v":{"v":14583.333333333336,"d":"$14,583"}},{"$f":"'(Other Computations)'!B14/8","v":{"v":14583.333333333336,"d":"$14,583"}},{"$f":"'(Other Computations)'!B14/8","v":{"v":14583.333333333336,"d":"$14,583"}},{"$f":"'(Other Computations)'!B14/8","v":{"v":14583.333333333336,"d":"$14,583"}},{"$f":"'(Other Computations)'!B14/8","v":{"v":14583.333333333336,"d":"$14,583"}},{"$f":"SUM(EB38:EM38)","v":{"v":175000.0000000001,"d":"$175,000"}}]
[]
[]
[{"$f":"\"Output\"","v":"Output"}]
[{"$f":"\" \"","v":" "}]
[null,{"$f":"ZZZ__FnCalls!F7","v":"Jan 2010"},{"$f":"ZZZ__FnCalls!F8","v":"Feb 2010"},{"$f":"ZZZ__FnCalls!F9","v":"Mar 2010"},{"$f":"ZZZ__FnCalls!F10","v":"Apr 2010"},{"$f":"ZZZ__FnCalls!F11","v":"May 2010"},{"$f":"ZZZ__FnCalls!F12","v":"Jun 2010"},{"$f":"ZZZ__FnCalls!F13","v":"Jul 2010"},{"$f":"ZZZ__FnCalls!F14","v":"Aug 2010"},{"$f":"ZZZ__FnCalls!F15","v":"Sep 2010"},{"$f":"ZZZ__FnCalls!F16","v":"Oct 2010"},{"$f":"ZZZ__FnCalls!F17","v":"Nov 2010"},{"$f":"ZZZ__FnCalls!F18","v":"Dec 2010"},{"$f":"ZZZ__FnCalls!H7","v":"2010"},{"$f":"ZZZ__FnCalls!F19","v":"Jan 2011"},{"$f":"ZZZ__FnCalls!F20","v":"Feb 2011"},{"$f":"ZZZ__FnCalls!F21","v":"Mar 2011"},{"$f":"ZZZ__FnCalls!F22","v":"Apr 2011"},{"$f":"ZZZ__FnCalls!F23","v":"May 2011"},{"$f":"ZZZ__FnCalls!F24","v":"Jun 2011"},{"$f":"ZZZ__FnCalls!F25","v":"Jul 2011"},{"$f":"ZZZ__FnCalls!F26","v":"Aug 2011"},{"$f":"ZZZ__FnCalls!F27","v":"Sep 2011"},{"$f":"ZZZ__FnCalls!F28","v":"Oct 2011"},{"$f":"ZZZ__FnCalls!F29","v":"Nov 2011"},{"$f":"ZZZ__FnCalls!F30","v":"Dec 2011"},{"$f":"ZZZ__FnCalls!H19","v":"2011"},{"$f":"ZZZ__FnCalls!F31","v":"Jan 2012"},{"$f":"ZZZ__FnCalls!F32","v":"Feb 2012"},{"$f":"ZZZ__FnCalls!F33","v":"Mar 2012"},{"$f":"ZZZ__FnCalls!F34","v":"Apr 2012"},{"$f":"ZZZ__FnCalls!F35","v":"May 2012"},{"$f":"ZZZ__FnCalls!F36","v":"Jun 2012"},{"$f":"ZZZ__FnCalls!F37","v":"Jul 2012"},{"$f":"ZZZ__FnCalls!F38","v":"Aug 2012"},{"$f":"ZZZ__FnCalls!F39","v":"Sep 2012"},{"$f":"ZZZ__FnCalls!F40","v":"Oct 2012"},{"$f":"ZZZ__FnCalls!F41","v":"Nov 2012"},{"$f":"ZZZ__FnCalls!F42","v":"Dec 2012"},{"$f":"ZZZ__FnCalls!H31","v":"2012"},{"$f":"ZZZ__FnCalls!F43","v":"Jan 2013"},{"$f":"ZZZ__FnCalls!F44","v":"Feb 2013"},{"$f":"ZZZ__FnCalls!F45","v":"Mar 2013"},{"$f":"ZZZ__FnCalls!F46","v":"Apr 2013"},{"$f":"ZZZ__FnCalls!F47","v":"May 2013"},{"$f":"ZZZ__FnCalls!F48","v":"Jun 2013"},{"$f":"ZZZ__FnCalls!F49","v":"Jul 2013"},{"$f":"ZZZ__FnCalls!F50","v":"Aug 2013"},{"$f":"ZZZ__FnCalls!F51","v":"Sep 2013"},{"$f":"ZZZ__FnCalls!F52","v":"Oct 2013"},{"$f":"ZZZ__FnCalls!F53","v":"Nov 2013"},{"$f":"ZZZ__FnCalls!F54","v":"Dec 2013"},{"$f":"ZZZ__FnCalls!H43","v":"2013"},{"$f":"ZZZ__FnCalls!F55","v":"Jan 2014"},{"$f":"ZZZ__FnCalls!F56","v":"Feb 2014"},{"$f":"ZZZ__FnCalls!F57","v":"Mar 2014"},{"$f":"ZZZ__FnCalls!F58","v":"Apr 2014"},{"$f":"ZZZ__FnCalls!F59","v":"May 2014"},{"$f":"ZZZ__FnCalls!F60","v":"Jun 2014"},{"$f":"ZZZ__FnCalls!F61","v":"Jul 2014"},{"$f":"ZZZ__FnCalls!F62","v":"Aug 2014"},{"$f":"ZZZ__FnCalls!F63","v":"Sep 2014"},{"$f":"ZZZ__FnCalls!F64","v":"Oct 2014"},{"$f":"ZZZ__FnCalls!F65","v":"Nov 2014"},{"$f":"ZZZ__FnCalls!F66","v":"Dec 2014"},{"$f":"ZZZ__FnCalls!H55","v":"2014"},{"$f":"ZZZ__FnCalls!F67","v":"Jan 2015"},{"$f":"ZZZ__FnCalls!F68","v":"Feb 2015"},{"$f":"ZZZ__FnCalls!F69","v":"Mar 2015"},{"$f":"ZZZ__FnCalls!F70","v":"Apr 2015"},{"$f":"ZZZ__FnCalls!F71","v":"May 2015"},{"$f":"ZZZ__FnCalls!F72","v":"Jun 2015"},{"$f":"ZZZ__FnCalls!F73","v":"Jul 2015"},{"$f":"ZZZ__FnCalls!F74","v":"Aug 2015"},{"$f":"ZZZ__FnCalls!F75","v":"Sep 2015"},{"$f":"ZZZ__FnCalls!F76","v":"Oct 2015"},{"$f":"ZZZ__FnCalls!F77","v":"Nov 2015"},{"$f":"ZZZ__FnCalls!F78","v":"Dec 2015"},{"$f":"ZZZ__FnCalls!H67","v":"2015"},{"$f":"ZZZ__FnCalls!F79","v":"Jan 2016"},{"$f":"ZZZ__FnCalls!F80","v":"Feb 2016"},{"$f":"ZZZ__FnCalls!F81","v":"Mar 2016"},{"$f":"ZZZ__FnCalls!F82","v":"Apr 2016"},{"$f":"ZZZ__FnCalls!F83","v":"May 2016"},{"$f":"ZZZ__FnCalls!F84","v":"Jun 2016"},{"$f":"ZZZ__FnCalls!F85","v":"Jul 2016"},{"$f":"ZZZ__FnCalls!F86","v":"Aug 2016"},{"$f":"ZZZ__FnCalls!F87","v":"Sep 2016"},{"$f":"ZZZ__FnCalls!F88","v":"Oct 2016"},{"$f":"ZZZ__FnCalls!F89","v":"Nov 2016"},{"$f":"ZZZ__FnCalls!F90","v":"Dec 2016"},{"$f":"ZZZ__FnCalls!H79","v":"2016"},{"$f":"ZZZ__FnCalls!F91","v":"Jan 2017"},{"$f":"ZZZ__FnCalls!F92","v":"Feb 2017"},{"$f":"ZZZ__FnCalls!F93","v":"Mar 2017"},{"$f":"ZZZ__FnCalls!F94","v":"Apr 2017"},{"$f":"ZZZ__FnCalls!F95","v":"May 2017"},{"$f":"ZZZ__FnCalls!F96","v":"Jun 2017"},{"$f":"ZZZ__FnCalls!F97","v":"Jul 2017"},{"$f":"ZZZ__FnCalls!F98","v":"Aug 2017"},{"$f":"ZZZ__FnCalls!F99","v":"Sep 2017"},{"$f":"ZZZ__FnCalls!F100","v":"Oct 2017"},{"$f":"ZZZ__FnCalls!F101","v":"Nov 2017"},{"$f":"ZZZ__FnCalls!F102","v":"Dec 2017"},{"$f":"ZZZ__FnCalls!H91","v":"2017"},{"$f":"ZZZ__FnCalls!F103","v":"Jan 2018"},{"$f":"ZZZ__FnCalls!F104","v":"Feb 2018"},{"$f":"ZZZ__FnCalls!F105","v":"Mar 2018"},{"$f":"ZZZ__FnCalls!F106","v":"Apr 2018"},{"$f":"ZZZ__FnCalls!F107","v":"May 2018"},{"$f":"ZZZ__FnCalls!F108","v":"Jun 2018"},{"$f":"ZZZ__FnCalls!F109","v":"Jul 2018"},{"$f":"ZZZ__FnCalls!F110","v":"Aug 2018"},{"$f":"ZZZ__FnCalls!F111","v":"Sep 2018"},{"$f":"ZZZ__FnCalls!F112","v":"Oct 2018"},{"$f":"ZZZ__FnCalls!F113","v":"Nov 2018"},{"$f":"ZZZ__FnCalls!F114","v":"Dec 2018"},{"$f":"ZZZ__FnCalls!H103","v":"2018"},{"$f":"ZZZ__FnCalls!F115","v":"Jan 2019"},{"$f":"ZZZ__FnCalls!F116","v":"Feb 2019"},{"$f":"ZZZ__FnCalls!F117","v":"Mar 2019"},{"$f":"ZZZ__FnCalls!F118","v":"Apr 2019"},{"$f":"ZZZ__FnCalls!F119","v":"May 2019"},{"$f":"ZZZ__FnCalls!F120","v":"Jun 2019"},{"$f":"ZZZ__FnCalls!F121","v":"Jul 2019"},{"$f":"ZZZ__FnCalls!F122","v":"Aug 2019"},{"$f":"ZZZ__FnCalls!F123","v":"Sep 2019"},{"$f":"ZZZ__FnCalls!F124","v":"Oct 2019"},{"$f":"ZZZ__FnCalls!F125","v":"Nov 2019"},{"$f":"ZZZ__FnCalls!F126","v":"Dec 2019"},{"$f":"ZZZ__FnCalls!H115","v":"2019"},{"$f":"ZZZ__FnCalls!F127","v":"Jan 2020"},{"$f":"ZZZ__FnCalls!F128","v":"Feb 2020"},{"$f":"ZZZ__FnCalls!F129","v":"Mar 2020"},{"$f":"ZZZ__FnCalls!F130","v":"Apr 2020"},{"$f":"ZZZ__FnCalls!F131","v":"May 2020"},{"$f":"ZZZ__FnCalls!F132","v":"Jun 2020"},{"$f":"ZZZ__FnCalls!F133","v":"Jul 2020"},{"$f":"ZZZ__FnCalls!F134","v":"Aug 2020"},{"$f":"ZZZ__FnCalls!F135","v":"Sep 2020"},{"$f":"ZZZ__FnCalls!F136","v":"Oct 2020"},{"$f":"ZZZ__FnCalls!F137","v":"Nov 2020"},{"$f":"ZZZ__FnCalls!F138","v":"Dec 2020"},{"$f":"ZZZ__FnCalls!H127","v":"2020"}]
[{"$f":"Labels!B64","v":"Output"},{"$f":"B45*(1-Inputs!B21)+B11*Inputs!B21+B46","v":{"v":1202158.8188205096,"d":"$1,202,159"}},{"$f":"C45*(1-Inputs!B21)+C11*Inputs!B21+C46","v":{"v":1120046.0208096842,"d":"$1,120,046"}},{"$f":"D45*(1-Inputs!B21)+D11*Inputs!B21+D46","v":{"v":1176579.521708906,"d":"$1,176,580"}},{"$f":"E45*(1-Inputs!B21)+E11*Inputs!B21+E46","v":{"v":1150960.4530835971,"d":"$1,150,960"}},{"$f":"F45*(1-Inputs!B21)+F11*Inputs!B21+F46","v":{"v":1158953.1925051573,"d":"$1,158,953"}},{"$f":"G45*(1-Inputs!B21)+G11*Inputs!B21+G46","v":{"v":1167737.7989990788,"d":"$1,167,738"}},{"$f":"H45*(1-Inputs!B21)+H11*Inputs!B21+H46","v":{"v":1193344.4773600958,"d":"$1,193,344"}},{"$f":"I45*(1-Inputs!B21)+I11*Inputs!B21+I46","v":{"v":1158896.345576658,"d":"$1,158,896"}},{"$f":"J45*(1-Inputs!B21)+J11*Inputs!B21+J46","v":{"v":1170161.7884688792,"d":"$1,170,162"}},{"$f":"K45*(1-Inputs!B21)+K11*Inputs!B21+K46","v":{"v":1169518.774204116,"d":"$1,169,519"}},{"$f":"L45*(1-Inputs!B21)+L11*Inputs!B21+L46","v":{"v":1157920.4084569009,"d":"$1,157,920"}},{"$f":"M45*(1-Inputs!B21)+M11*Inputs!B21+M46","v":{"v":1191684.9409092965,"d":"$1,191,685"}},{"$f":"SUM(B44:M44)","v":{"v":14017962.54090288,"d":"$14,017,963"}},{"$f":"O45*(1-Inputs!B21)+O11*Inputs!B21+O46","v":{"v":1131990.3261856257,"d":"$1,131,990"}},{"$f":"P45*(1-Inputs!B21)+P11*Inputs!B21+P46","v":{"v":1179513.1351583593,"d":"$1,179,513"}},{"$f":"Q45*(1-Inputs!B21)+Q11*Inputs!B21+Q46","v":{"v":1144089.7440212,"d":"$1,144,090"}},{"$f":"R45*(1-Inputs!B21)+R11*Inputs!B21+R46","v":{"v":1147818.4043558883,"d":"$1,147,818"}},{"$f":"S45*(1-Inputs!B21)+S11*Inputs!B21+S46","v":{"v":1130030.6160882455,"d":"$1,130,031"}},{"$f":"T45*(1-Inputs!B21)+T11*Inputs!B21+T46","v":{"v":1108749.250401013,"d":"$1,108,749"}},{"$f":"U45*(1-Inputs!B21)+U11*Inputs!B21+U46","v":{"v":1120462.2479678858,"d":"$1,120,462"}},{"$f":"V45*(1-Inputs!B21)+V11*Inputs!B21+V46","v":{"v":1138835.6724531918,"d":"$1,138,836"}},{"$f":"W45*(1-Inputs!B21)+W11*Inputs!B21+W46","v":{"v":1151352.3460307138,"d":"$1,151,352"}},{"$f":"X45*(1-Inputs!B21)+X11*Inputs!B21+X46","v":{"v":1140588.1692439315,"d":"$1,140,588"}},{"$f":"Y45*(1-Inputs!B21)+Y11*Inputs!B21+Y46","v":{"v":1173848.153134745,"d":"$1,173,848"}},{"$f":"Z45*(1-Inputs!B21)+Z11*Inputs!B21+Z46","v":{"v":1129365.432508057,"d":"$1,129,365"}},{"$f":"SUM(O44:Z44)","v":{"v":13696643.497548856,"d":"$13,696,643"}},{"$f":"AB45*(1-Inputs!B21)+AB11*Inputs!B21+AB46","v":{"v":1125699.2874020082,"d":"$1,125,699"}},{"$f":"AC45*(1-Inputs!B21)+AC11*Inputs!B21+AC46","v":{"v":1142321.566732226,"d":"$1,142,322"}},{"$f":"AD45*(1-Inputs!B21)+AD11*Inputs!B21+AD46","v":{"v":1165262.6856283376,"d":"$1,165,263"}},{"$f":"AE45*(1-Inputs!B21)+AE11*Inputs!B21+AE46","v":{"v":1101811.0611111962,"d":"$1,101,811"}},{"$f":"AF45*(1-Inputs!B21)+AF11*Inputs!B21+AF46","v":{"v":1100619.991793125,"d":"$1,100,620"}},{"$f":"AG45*(1-Inputs!B21)+AG11*Inputs!B21+AG46","v":{"v":1133813.9533655418,"d":"$1,133,814"}},{"$f":"AH45*(1-Inputs!B21)+AH11*Inputs!B21+AH46","v":{"v":1128428.3730587459,"d":"$1,128,428"}},{"$f":"AI45*(1-Inputs!B21)+AI11*Inputs!B21+AI46","v":{"v":1103224.4646810032,"d":"$1,103,224"}},{"$f":"AJ45*(1-Inputs!B21)+AJ11*Inputs!B21+AJ46","v":{"v":1091495.9624810736,"d":"$1,091,496"}},{"$f":"AK45*(1-Inputs!B21)+AK11*Inputs!B21+AK46","v":{"v":1129415.0791500201,"d":"$1,129,415"}},{"$f":"AL45*(1-Inputs!B21)+AL11*Inputs!B21+AL46","v":{"v":1154246.134901398,"d":"$1,154,246"}},{"$f":"AM45*(1-Inputs!B21)+AM11*Inputs!B21+AM46","v":{"v":1157174.095410595,"d":"$1,157,174"}},{"$f":"SUM(AB44:AM44)","v":{"v":13533512.655715272,"d":"$13,533,513"}},{"$f":"AO45*(1-Inputs!B21)+AO11*Inputs!B21+AO46","v":{"v":1058324.8828199957,"d":"$1,058,325"}},{"$f":"AP45*(1-Inputs!B21)+AP11*Inputs!B21+AP46","v":{"v":1106228.5641979608,"d":"$1,106,229"}},{"$f":"AQ45*(1-Inputs!B21)+AQ11*Inputs!B21+AQ46","v":{"v":1151833.5018172043,"d":"$1,151,834"}},{"$f":"AR45*(1-Inputs!B21)+AR11*Inputs!B21+AR46","v":{"v":1099387.348581596,"d":"$1,099,387"}},{"$f":"AS45*(1-Inputs!B21)+AS11*Inputs!B21+AS46","v":{"v":1094197.711639903,"d":"$1,094,198"}},{"$f":"AT45*(1-Inputs!B21)+AT11*Inputs!B21+AT46","v":{"v":1089778.9674376962,"d":"$1,089,779"}},{"$f":"AU45*(1-Inputs!B21)+AU11*Inputs!B21+AU46","v":{"v":1094127.125721732,"d":"$1,094,127"}},{"$f":"AV45*(1-Inputs!B21)+AV11*Inputs!B21+AV46","v":{"v":1134962.5260957472,"d":"$1,134,963"}},{"$f":"AW45*(1-Inputs!B21)+AW11*Inputs!B21+AW46","v":{"v":1094705.128779793,"d":"$1,094,705"}},{"$f":"AX45*(1-Inputs!B21)+AX11*Inputs!B21+AX46","v":{"v":1058889.7833340273,"d":"$1,058,890"}},{"$f":"AY45*(1-Inputs!B21)+AY11*Inputs!B21+AY46","v":{"v":1144767.7190854647,"d":"$1,144,768"}},{"$f":"AZ45*(1-Inputs!B21)+AZ11*Inputs!B21+AZ46","v":{"v":1090490.0200917968,"d":"$1,090,490"}},{"$f":"SUM(AO44:AZ44)","v":{"v":13217693.279602917,"d":"$13,217,693"}},{"$f":"BB45*(1-Inputs!B21)+BB11*Inputs!B21+BB46","v":{"v":1076248.6049553477,"d":"$1,076,249"}},{"$f":"BC45*(1-Inputs!B21)+BC11*Inputs!B21+BC46","v":{"v":1107858.912307943,"d":"$1,107,859"}},{"$f":"BD45*(1-Inputs!B21)+BD11*Inputs!B21+BD46","v":{"v":1128669.3804930768,"d":"$1,128,669"}},{"$f":"BE45*(1-Inputs!B21)+BE11*Inputs!B21+BE46","v":{"v":1115198.6700131216,"d":"$1,115,199"}},{"$f":"BF45*(1-Inputs!B21)+BF11*Inputs!B21+BF46","v":{"v":1072806.6244199893,"d":"$1,072,807"}},{"$f":"BG45*(1-Inputs!B21)+BG11*Inputs!B21+BG46","v":{"v":1116634.0787528118,"d":"$1,116,634"}},{"$f":"BH45*(1-Inputs!B21)+BH11*Inputs!B21+BH46","v":{"v":1119585.4391275798,"d":"$1,119,585"}},{"$f":"BI45*(1-Inputs!B21)+BI11*Inputs!B21+BI46","v":{"v":1147895.2329545743,"d":"$1,147,895"}},{"$f":"BJ45*(1-Inputs!B21)+BJ11*Inputs!B21+BJ46","v":{"v":1130624.4000775297,"d":"$1,130,624"}},{"$f":"BK45*(1-Inputs!B21)+BK11*Inputs!B21+BK46","v":{"v":1142656.3674920727,"d":"$1,142,656"}},{"$f":"BL45*(1-Inputs!B21)+BL11*Inputs!B21+BL46","v":{"v":1109319.181175501,"d":"$1,109,319"}},{"$f":"BM45*(1-Inputs!B21)+BM11*Inputs!B21+BM46","v":{"v":1066106.6155200636,"d":"$1,066,107"}},{"$f":"SUM(BB44:BM44)","v":{"v":13333603.50728961,"d":"$13,333,604"}},{"$f":"BO45*(1-Inputs!B21)+BO11*Inputs!B21+BO46","v":{"v":1120816.2186580258,"d":"$1,120,816"}},{"$f":"BP45*(1-Inputs!B21)+BP11*Inputs!B21+BP46","v":{"v":1129337.7730638864,"d":"$1,129,338"}},{"$f":"BQ45*(1-Inputs!B21)+BQ11*Inputs!B21+BQ46","v":{"v":1074930.0683027564,"d":"$1,074,930"}},{"$f":"BR45*(1-Inputs!B21)+BR11*Inputs!B21+BR46","v":{"v":1077914.1972567919,"d":"$1,077,914"}},{"$f":"BS45*(1-Inputs!B21)+BS11*Inputs!B21+BS46","v":{"v":1053691.216235684,"d":"$1,053,691"}},{"$f":"BT45*(1-Inputs!B21)+BT11*Inputs!B21+BT46","v":{"v":1089978.5906917932,"d":"$1,089,979"}},{"$f":"BU45*(1-Inputs!B21)+BU11*Inputs!B21+BU46","v":{"v":1089652.9836748883,"d":"$1,089,653"}},{"$f":"BV45*(1-Inputs!B21)+BV11*Inputs!B21+BV46","v":{"v":1079708.731802427,"d":"$1,079,709"}},{"$f":"BW45*(1-Inputs!B21)+BW11*Inputs!B21+BW46","v":{"v":1109665.3637794233,"d":"$1,109,665"}},{"$f":"BX45*(1-Inputs!B21)+BX11*Inputs!B21+BX46","v":{"v":1057289.6928044616,"d":"$1,057,290"}},{"$f":"BY45*(1-Inputs!B21)+BY11*Inputs!B21+BY46","v":{"v":1085169.0516231724,"d":"$1,085,169"}},{"$f":"BZ45*(1-Inputs!B21)+BZ11*Inputs!B21+BZ46","v":{"v":1080860.1223182774,"d":"$1,080,860"}},{"$f":"SUM(BO44:BZ44)","v":{"v":13049014.010211589,"d":"$13,049,014"}},{"$f":"CB45*(1-Inputs!B21)+CB11*Inputs!B21+CB46","v":{"v":1076188.3896332546,"d":"$1,076,188"}},{"$f":"CC45*(1-Inputs!B21)+CC11*Inputs!B21+CC46","v":{"v":1050236.5089379037,"d":"$1,050,237"}},{"$f":"CD45*(1-Inputs!B21)+CD11*Inputs!B21+CD46","v":{"v":1027542.6974705146,"d":"$1,027,543"}},{"$f":"CE45*(1-Inputs!B21)+CE11*Inputs!B21+CE46","v":{"v":1085458.462535213,"d":"$1,085,458"}},{"$f":"CF45*(1-Inputs!B21)+CF11*Inputs!B21+CF46","v":{"v":1089184.0472493505,"d":"$1,089,184"}},{"$f":"CG45*(1-Inputs!B21)+CG11*Inputs!B21+CG46","v":{"v":1047247.5798847037,"d":"$1,047,248"}},{"$f":"CH45*(1-Inputs!B21)+CH11*Inputs!B21+CH46","v":{"v":1086566.3231544194,"d":"$1,086,566"}},{"$f":"CI45*(1-Inputs!B21)+CI11*Inputs!B21+CI46","v":{"v":1021882.5741336292,"d":"$1,021,883"}},{"$f":"CJ45*(1-Inputs!B21)+CJ11*Inputs!B21+CJ46","v":{"v":1054085.3151911602,"d":"$1,054,085"}},{"$f":"CK45*(1-Inputs!B21)+CK11*Inputs!B21+CK46","v":{"v":1084908.5386761655,"d":"$1,084,909"}},{"$f":"CL45*(1-Inputs!B21)+CL11*Inputs!B21+CL46","v":{"v":1076639.258560872,"d":"$1,076,639"}},{"$f":"CM45*(1-Inputs!B21)+CM11*Inputs!B21+CM46","v":{"v":1026806.0316729833,"d":"$1,026,806"}},{"$f":"SUM(CB44:CM44)","v":{"v":12726745.72710017,"d":"$12,726,746"}},{"$f":"CO45*(1-Inputs!B21)+CO11*Inputs!B21+CO46","v":{"v":1009725.2602037055,"d":"$1,009,725"}},{"$f":"CP45*(1-Inputs!B21)+CP11*Inputs!B21+CP46","v":{"v":1065342.6547314608,"d":"$1,065,343"}},{"$f":"CQ45*(1-Inputs!B21)+CQ11*Inputs!B21+CQ46","v":{"v":1082309.9423136879,"d":"$1,082,310"}},{"$f":"CR45*(1-Inputs!B21)+CR11*Inputs!B21+CR46","v":{"v":1056619.709678759,"d":"$1,056,620"}},{"$f":"CS45*(1-Inputs!B21)+CS11*Inputs!B21+CS46","v":{"v":1027089.0065952629,"d":"$1,027,089"}},{"$f":"CT45*(1-Inputs!B21)+CT11*Inputs!B21+CT46","v":{"v":1026483.4471757475,"d":"$1,026,483"}},{"$f":"CU45*(1-Inputs!B21)+CU11*Inputs!B21+CU46","v":{"v":1019805.7016993022,"d":"$1,019,806"}},{"$f":"CV45*(1-Inputs!B21)+CV11*Inputs!B21+CV46","v":{"v":1040052.7043301852,"d":"$1,040,053"}},{"$f":"CW45*(1-Inputs!B21)+CW11*Inputs!B21+CW46","v":{"v":1014665.0997594745,"d":"$1,014,665"}},{"$f":"CX45*(1-Inputs!B21)+CX11*Inputs!B21+CX46","v":{"v":1004370.1120886315,"d":"$1,004,370"}},{"$f":"CY45*(1-Inputs!B21)+CY11*Inputs!B21+CY46","v":{"v":1069475.899217004,"d":"$1,069,476"}},{"$f":"CZ45*(1-Inputs!B21)+CZ11*Inputs!B21+CZ46","v":{"v":1066357.062729511,"d":"$1,066,357"}},{"$f":"SUM(CO44:CZ44)","v":{"v":12482296.600522734,"d":"$12,482,297"}},{"$f":"DB45*(1-Inputs!B21)+DB11*Inputs!B21+DB46","v":{"v":1002963.6814835262,"d":"$1,002,964"}},{"$f":"DC45*(1-Inputs!B21)+DC11*Inputs!B21+DC46","v":{"v":1042812.1120806794,"d":"$1,042,812"}},{"$f":"DD45*(1-Inputs!B21)+DD11*Inputs!B21+DD46","v":{"v":1049631.944018306,"d":"$1,049,632"}},{"$f":"DE45*(1-Inputs!B21)+DE11*Inputs!B21+DE46","v":{"v":1076514.4172322552,"d":"$1,076,514"}},{"$f":"DF45*(1-Inputs!B21)+DF11*Inputs!B21+DF46","v":{"v":1001153.7377882834,"d":"$1,001,154"}},{"$f":"DG45*(1-Inputs!B21)+DG11*Inputs!B21+DG46","v":{"v":1021781.8907492439,"d":"$1,021,782"}},{"$f":"DH45*(1-Inputs!B21)+DH11*Inputs!B21+DH46","v":{"v":1067899.070961904,"d":"$1,067,899"}},{"$f":"DI45*(1-Inputs!B21)+DI11*Inputs!B21+DI46","v":{"v":1041610.2883685015,"d":"$1,041,610"}},{"$f":"DJ45*(1-Inputs!B21)+DJ11*Inputs!B21+DJ46","v":{"v":1090165.931531885,"d":"$1,090,166"}},{"$f":"DK45*(1-Inputs!B21)+DK11*Inputs!B21+DK46","v":{"v":1035992.7199427593,"d":"$1,035,993"}},{"$f":"DL45*(1-Inputs!B21)+DL11*Inputs!B21+DL46","v":{"v":1042371.0741661028,"d":"$1,042,371"}},{"$f":"DM45*(1-Inputs!B21)+DM11*Inputs!B21+DM46","v":{"v":1074099.72885628,"d":"$1,074,100"}},{"$f":"SUM(DB44:DM44)","v":{"v":12546996.597179728,"d":"$12,546,997"}},{"$f":"DO45*(1-Inputs!B21)+DO11*Inputs!B21+DO46","v":{"v":1001551.1567370136,"d":"$1,001,551"}},{"$f":"DP45*(1-Inputs!B21)+DP11*Inputs!B21+DP46","v":{"v":1000982.552735646,"d":"$1,000,983"}},{"$f":"DQ45*(1-Inputs!B21)+DQ11*Inputs!B21+DQ46","v":{"v":1033102.5135184453,"d":"$1,033,103"}},{"$f":"DR45*(1-Inputs!B21)+DR11*Inputs!B21+DR46","v":{"v":1029684.0997723099,"d":"$1,029,684"}},{"$f":"DS45*(1-Inputs!B21)+DS11*Inputs!B21+DS46","v":{"v":1013501.7759753838,"d":"$1,013,502"}},{"$f":"DT45*(1-Inputs!B21)+DT11*Inputs!B21+DT46","v":{"v":1018988.4081227804,"d":"$1,018,988"}},{"$f":"DU45*(1-Inputs!B21)+DU11*Inputs!B21+DU46","v":{"v":1075199.1561230032,"d":"$1,075,199"}},{"$f":"DV45*(1-Inputs!B21)+DV11*Inputs!B21+DV46","v":{"v":1051454.3810780635,"d":"$1,051,454"}},{"$f":"DW45*(1-Inputs!B21)+DW11*Inputs!B21+DW46","v":{"v":997169.5137239577,"d":"$997,170"}},{"$f":"DX45*(1-Inputs!B21)+DX11*Inputs!B21+DX46","v":{"v":1001392.3487505179,"d":"$1,001,392"}},{"$f":"DY45*(1-Inputs!B21)+DY11*Inputs!B21+DY46","v":{"v":1020718.8963805776,"d":"$1,020,719"}},{"$f":"DZ45*(1-Inputs!B21)+DZ11*Inputs!B21+DZ46","v":{"v":1027965.6388616653,"d":"$1,027,966"}},{"$f":"SUM(DO44:DZ44)","v":{"v":12271710.441779366,"d":"$12,271,710"}},{"$f":"EB45*(1-Inputs!B21)+EB11*Inputs!B21+EB46","v":{"v":1030127.2999716471,"d":"$1,030,127"}},{"$f":"EC45*(1-Inputs!B21)+EC11*Inputs!B21+EC46","v":{"v":991104.2464743715,"d":"$991,104"}},{"$f":"ED45*(1-Inputs!B21)+ED11*Inputs!B21+ED46","v":{"v":976946.7398408419,"d":"$976,947"}},{"$f":"EE45*(1-Inputs!B21)+EE11*Inputs!B21+EE46","v":{"v":1057264.493174578,"d":"$1,057,264"}},{"$f":"EF45*(1-Inputs!B21)+EF11*Inputs!B21+EF46","v":{"v":995354.4123758442,"d":"$995,354"}},{"$f":"EG45*(1-Inputs!B21)+EG11*Inputs!B21+EG46","v":{"v":1010788.3005420117,"d":"$1,010,788"}},{"$f":"EH45*(1-Inputs!B21)+EH11*Inputs!B21+EH46","v":{"v":1045964.2543766703,"d":"$1,045,964"}},{"$f":"EI45*(1-Inputs!B21)+EI11*Inputs!B21+EI46","v":{"v":987138.7233040716,"d":"$987,139"}},{"$f":"EJ45*(1-Inputs!B21)+EJ11*Inputs!B21+EJ46","v":{"v":996157.512371684,"d":"$996,158"}},{"$f":"EK45*(1-Inputs!B21)+EK11*Inputs!B21+EK46","v":{"v":984618.4335678366,"d":"$984,618"}},{"$f":"EL45*(1-Inputs!B21)+EL11*Inputs!B21+EL46","v":{"v":1011582.4897197669,"d":"$1,011,582"}},{"$f":"EM45*(1-Inputs!B21)+EM11*Inputs!B21+EM46","v":{"v":994076.0435281956,"d":"$994,076"}},{"$f":"SUM(EB44:EM44)","v":{"v":12081122.94924752,"d":"$12,081,123"}}]
[{"$f":"Labels!B68","v":"Potential Output"},{"$f":"'(Other Computations)'!B8*(B28/Inputs!B27)^(1-Inputs!B20)*(B19/'(Other Computations)'!B194)^Inputs!B20","v":{"v":1166666.6666666667,"d":"$1,166,667"}},{"$f":"'(Other Computations)'!B8*(C28/Inputs!B27)^(1-Inputs!B20)*(C19/'(Other Computations)'!B194)^Inputs!B20","v":{"v":1166666.6666666667,"d":"$1,166,667"}},{"$f":"'(Other Computations)'!B8*(D28/Inputs!B27)^(1-Inputs!B20)*(D19/'(Other Computations)'!B194)^Inputs!B20","v":{"v":1166622.0560271668,"d":"$1,166,622"}},{"$f":"'(Other Computations)'!B8*(E28/Inputs!B27)^(1-Inputs!B20)*(E19/'(Other Computations)'!B194)^Inputs!B20","v":{"v":1166546.0423975303,"d":"$1,166,546"}},{"$f":"'(Other Computations)'!B8*(F28/Inputs!B27)^(1-Inputs!B20)*(F19/'(Other Computations)'!B194)^Inputs!B20","v":{"v":1166436.1967943555,"d":"$1,166,436"}},{"$f":"'(Other Computations)'!B8*(G28/Inputs!B27)^(1-Inputs!B20)*(G19/'(Other Computations)'!B194)^Inputs!B20","v":{"v":1166289.5179010401,"d":"$1,166,290"}},{"$f":"'(Other Computations)'!B8*(H28/Inputs!B27)^(1-Inputs!B20)*(H19/'(Other Computations)'!B194)^Inputs!B20","v":{"v":1166116.8891189452,"d":"$1,166,117"}},{"$f":"'(Other Computations)'!B8*(I28/Inputs!B27)^(1-Inputs!B20)*(I19/'(Other Computations)'!B194)^Inputs!B20","v":{"v":1165912.9383423086,"d":"$1,165,913"}},{"$f":"'(Other Computations)'!B8*(J28/Inputs!B27)^(1-Inputs!B20)*(J19/'(Other Computations)'!B194)^Inputs!B20","v":{"v":1165672.566120229,"d":"$1,165,673"}},{"$f":"'(Other Computations)'!B8*(K28/Inputs!B27)^(1-Inputs!B20)*(K19/'(Other Computations)'!B194)^Inputs!B20","v":{"v":1165398.839591055,"d":"$1,165,399"}},{"$f":"'(Other Computations)'!B8*(L28/Inputs!B27)^(1-Inputs!B20)*(L19/'(Other Computations)'!B194)^Inputs!B20","v":{"v":1165096.2445109335,"d":"$1,165,096"}},{"$f":"'(Other Computations)'!B8*(M28/Inputs!B27)^(1-Inputs!B20)*(M19/'(Other Computations)'!B194)^Inputs!B20","v":{"v":1164774.136208803,"d":"$1,164,774"}},{"$f":"SUM(B45:M45)","v":{"v":13992198.760345701,"d":"$13,992,199"}},{"$f":"'(Other Computations)'!B8*(O28/Inputs!B27)^(1-Inputs!B20)*(O19/'(Other Computations)'!B194)^Inputs!B20","v":{"v":1164428.8324985108,"d":"$1,164,429"}},{"$f":"'(Other Computations)'!B8*(P28/Inputs!B27)^(1-Inputs!B20)*(P19/'(Other Computations)'!B194)^Inputs!B20","v":{"v":1164057.9125221919,"d":"$1,164,058"}},{"$f":"'(Other Computations)'!B8*(Q28/Inputs!B27)^(1-Inputs!B20)*(Q19/'(Other Computations)'!B194)^Inputs!B20","v":{"v":1163655.6308311766,"d":"$1,163,656"}},{"$f":"'(Other Computations)'!B8*(R28/Inputs!B27)^(1-Inputs!B20)*(R19/'(Other Computations)'!B194)^Inputs!B20","v":{"v":1163226.5103387223,"d":"$1,163,227"}},{"$f":"'(Other Computations)'!B8*(S28/Inputs!B27)^(1-Inputs!B20)*(S19/'(Other Computations)'!B194)^Inputs!B20","v":{"v":1162758.5309245891,"d":"$1,162,759"}},{"$f":"'(Other Computations)'!B8*(T28/Inputs!B27)^(1-Inputs!B20)*(T19/'(Other Computations)'!B194)^Inputs!B20","v":{"v":1162268.6838496763,"d":"$1,162,269"}},{"$f":"'(Other Computations)'!B8*(U28/Inputs!B27)^(1-Inputs!B20)*(U19/'(Other Computations)'!B194)^Inputs!B20","v":{"v":1161743.5460251763,"d":"$1,161,744"}},{"$f":"'(Other Computations)'!B8*(V28/Inputs!B27)^(1-Inputs!B20)*(V19/'(Other Computations)'!B194)^Inputs!B20","v":{"v":1161188.2434133948,"d":"$1,161,188"}},{"$f":"'(Other Computations)'!B8*(W28/Inputs!B27)^(1-Inputs!B20)*(W19/'(Other Computations)'!B194)^Inputs!B20","v":{"v":1160600.7649462742,"d":"$1,160,601"}},{"$f":"'(Other Computations)'!B8*(X28/Inputs!B27)^(1-Inputs!B20)*(X19/'(Other Computations)'!B194)^Inputs!B20","v":{"v":1159981.9197269,"d":"$1,159,982"}},{"$f":"'(Other Computations)'!B8*(Y28/Inputs!B27)^(1-Inputs!B20)*(Y19/'(Other Computations)'!B194)^Inputs!B20","v":{"v":1159339.0584354158,"d":"$1,159,339"}},{"$f":"'(Other Computations)'!B8*(Z28/Inputs!B27)^(1-Inputs!B20)*(Z19/'(Other Computations)'!B194)^Inputs!B20","v":{"v":1158674.7209754537,"d":"$1,158,675"}},{"$f":"SUM(O45:Z45)","v":{"v":13941924.354487482,"d":"$13,941,924"}},{"$f":"'(Other Computations)'!B8*(AB28/Inputs!B27)^(1-Inputs!B20)*(AB19/'(Other Computations)'!B194)^Inputs!B20","v":{"v":1157999.0999914398,"d":"$1,157,999"}},{"$f":"'(Other Computations)'!B8*(AC28/Inputs!B27)^(1-Inputs!B20)*(AC19/'(Other Computations)'!B194)^Inputs!B20","v":{"v":1157299.6837368058,"d":"$1,157,300"}},{"$f":"'(Other Computations)'!B8*(AD28/Inputs!B27)^(1-Inputs!B20)*(AD19/'(Other Computations)'!B194)^Inputs!B20","v":{"v":1156582.4907418704,"d":"$1,156,582"}},{"$f":"'(Other Computations)'!B8*(AE28/Inputs!B27)^(1-Inputs!B20)*(AE19/'(Other Computations)'!B194)^Inputs!B20","v":{"v":1155859.331344066,"d":"$1,155,859"}},{"$f":"'(Other Computations)'!B8*(AF28/Inputs!B27)^(1-Inputs!B20)*(AF19/'(Other Computations)'!B194)^Inputs!B20","v":{"v":1155114.7296318505,"d":"$1,155,115"}},{"$f":"'(Other Computations)'!B8*(AG28/Inputs!B27)^(1-Inputs!B20)*(AG19/'(Other Computations)'!B194)^Inputs!B20","v":{"v":1154346.9464232249,"d":"$1,154,347"}},{"$f":"'(Other Computations)'!B8*(AH28/Inputs!B27)^(1-Inputs!B20)*(AH19/'(Other Computations)'!B194)^Inputs!B20","v":{"v":1153562.7452038305,"d":"$1,153,563"}},{"$f":"'(Other Computations)'!B8*(AI28/Inputs!B27)^(1-Inputs!B20)*(AI19/'(Other Computations)'!B194)^Inputs!B20","v":{"v":1152761.9984471358,"d":"$1,152,762"}},{"$f":"'(Other Computations)'!B8*(AJ28/Inputs!B27)^(1-Inputs!B20)*(AJ19/'(Other Computations)'!B194)^Inputs!B20","v":{"v":1151949.3511543937,"d":"$1,151,949"}},{"$f":"'(Other Computations)'!B8*(AK28/Inputs!B27)^(1-Inputs!B20)*(AK19/'(Other Computations)'!B194)^Inputs!B20","v":{"v":1151119.4899749192,"d":"$1,151,119"}},{"$f":"'(Other Computations)'!B8*(AL28/Inputs!B27)^(1-Inputs!B20)*(AL19/'(Other Computations)'!B194)^Inputs!B20","v":{"v":1150285.319476732,"d":"$1,150,285"}},{"$f":"'(Other Computations)'!B8*(AM28/Inputs!B27)^(1-Inputs!B20)*(AM19/'(Other Computations)'!B194)^Inputs!B20","v":{"v":1149439.414033881,"d":"$1,149,439"}},{"$f":"SUM(AB45:AM45)","v":{"v":13846320.60016015,"d":"$13,846,321"}},{"$f":"'(Other Computations)'!B8*(AO28/Inputs!B27)^(1-Inputs!B20)*(AO19/'(Other Computations)'!B194)^Inputs!B20","v":{"v":1148578.2771689033,"d":"$1,148,578"}},{"$f":"'(Other Computations)'!B8*(AP28/Inputs!B27)^(1-Inputs!B20)*(AP19/'(Other Computations)'!B194)^Inputs!B20","v":{"v":1147698.0896550945,"d":"$1,147,698"}},{"$f":"'(Other Computations)'!B8*(AQ28/Inputs!B27)^(1-Inputs!B20)*(AQ19/'(Other Computations)'!B194)^Inputs!B20","v":{"v":1146799.5799622322,"d":"$1,146,800"}},{"$f":"'(Other Computations)'!B8*(AR28/Inputs!B27)^(1-Inputs!B20)*(AR19/'(Other Computations)'!B194)^Inputs!B20","v":{"v":1145901.6278891505,"d":"$1,145,902"}},{"$f":"'(Other Computations)'!B8*(AS28/Inputs!B27)^(1-Inputs!B20)*(AS19/'(Other Computations)'!B194)^Inputs!B20","v":{"v":1144984.7812690223,"d":"$1,144,985"}},{"$f":"'(Other Computations)'!B8*(AT28/Inputs!B27)^(1-Inputs!B20)*(AT19/'(Other Computations)'!B194)^Inputs!B20","v":{"v":1144063.186878619,"d":"$1,144,063"}},{"$f":"'(Other Computations)'!B8*(AU28/Inputs!B27)^(1-Inputs!B20)*(AU19/'(Other Computations)'!B194)^Inputs!B20","v":{"v":1143132.6144283698,"d":"$1,143,133"}},{"$f":"'(Other Computations)'!B8*(AV28/Inputs!B27)^(1-Inputs!B20)*(AV19/'(Other Computations)'!B194)^Inputs!B20","v":{"v":1142197.4795720372,"d":"$1,142,197"}},{"$f":"'(Other Computations)'!B8*(AW28/Inputs!B27)^(1-Inputs!B20)*(AW19/'(Other Computations)'!B194)^Inputs!B20","v":{"v":1141251.9260737759,"d":"$1,141,252"}},{"$f":"'(Other Computations)'!B8*(AX28/Inputs!B27)^(1-Inputs!B20)*(AX19/'(Other Computations)'!B194)^Inputs!B20","v":{"v":1140292.700391948,"d":"$1,140,293"}},{"$f":"'(Other Computations)'!B8*(AY28/Inputs!B27)^(1-Inputs!B20)*(AY19/'(Other Computations)'!B194)^Inputs!B20","v":{"v":1139324.482913419,"d":"$1,139,324"}},{"$f":"'(Other Computations)'!B8*(AZ28/Inputs!B27)^(1-Inputs!B20)*(AZ19/'(Other Computations)'!B194)^Inputs!B20","v":{"v":1138356.304101694,"d":"$1,138,356"}},{"$f":"SUM(AO45:AZ45)","v":{"v":13722581.050304268,"d":"$13,722,581"}},{"$f":"'(Other Computations)'!B8*(BB28/Inputs!B27)^(1-Inputs!B20)*(BB19/'(Other Computations)'!B194)^Inputs!B20","v":{"v":1137382.9618120156,"d":"$1,137,383"}},{"$f":"'(Other Computations)'!B8*(BC28/Inputs!B27)^(1-Inputs!B20)*(BC19/'(Other Computations)'!B194)^Inputs!B20","v":{"v":1136394.913269549,"d":"$1,136,395"}},{"$f":"'(Other Computations)'!B8*(BD28/Inputs!B27)^(1-Inputs!B20)*(BD19/'(Other Computations)'!B194)^Inputs!B20","v":{"v":1135392.0921328007,"d":"$1,135,392"}},{"$f":"'(Other Computations)'!B8*(BE28/Inputs!B27)^(1-Inputs!B20)*(BE19/'(Other Computations)'!B194)^Inputs!B20","v":{"v":1134383.8766015735,"d":"$1,134,384"}},{"$f":"'(Other Computations)'!B8*(BF28/Inputs!B27)^(1-Inputs!B20)*(BF19/'(Other Computations)'!B194)^Inputs!B20","v":{"v":1133365.9252913739,"d":"$1,133,366"}},{"$f":"'(Other Computations)'!B8*(BG28/Inputs!B27)^(1-Inputs!B20)*(BG19/'(Other Computations)'!B194)^Inputs!B20","v":{"v":1132348.4529915059,"d":"$1,132,348"}},{"$f":"'(Other Computations)'!B8*(BH28/Inputs!B27)^(1-Inputs!B20)*(BH19/'(Other Computations)'!B194)^Inputs!B20","v":{"v":1131327.714195114,"d":"$1,131,328"}},{"$f":"'(Other Computations)'!B8*(BI28/Inputs!B27)^(1-Inputs!B20)*(BI19/'(Other Computations)'!B194)^Inputs!B20","v":{"v":1130303.588018257,"d":"$1,130,304"}},{"$f":"'(Other Computations)'!B8*(BJ28/Inputs!B27)^(1-Inputs!B20)*(BJ19/'(Other Computations)'!B194)^Inputs!B20","v":{"v":1129277.9234548116,"d":"$1,129,278"}},{"$f":"'(Other Computations)'!B8*(BK28/Inputs!B27)^(1-Inputs!B20)*(BK19/'(Other Computations)'!B194)^Inputs!B20","v":{"v":1128245.2331639058,"d":"$1,128,245"}},{"$f":"'(Other Computations)'!B8*(BL28/Inputs!B27)^(1-Inputs!B20)*(BL19/'(Other Computations)'!B194)^Inputs!B20","v":{"v":1127205.551578681,"d":"$1,127,206"}},{"$f":"'(Other Computations)'!B8*(BM28/Inputs!B27)^(1-Inputs!B20)*(BM19/'(Other Computations)'!B194)^Inputs!B20","v":{"v":1126152.6125115878,"d":"$1,126,153"}},{"$f":"SUM(BB45:BM45)","v":{"v":13581780.845021175,"d":"$13,581,781"}},{"$f":"'(Other Computations)'!B8*(BO28/Inputs!B27)^(1-Inputs!B20)*(BO19/'(Other Computations)'!B194)^Inputs!B20","v":{"v":1125097.807111956,"d":"$1,125,098"}},{"$f":"'(Other Computations)'!B8*(BP28/Inputs!B27)^(1-Inputs!B20)*(BP19/'(Other Computations)'!B194)^Inputs!B20","v":{"v":1124033.225111279,"d":"$1,124,033"}},{"$f":"'(Other Computations)'!B8*(BQ28/Inputs!B27)^(1-Inputs!B20)*(BQ19/'(Other Computations)'!B194)^Inputs!B20","v":{"v":1122968.783919912,"d":"$1,122,969"}},{"$f":"'(Other Computations)'!B8*(BR28/Inputs!B27)^(1-Inputs!B20)*(BR19/'(Other Computations)'!B194)^Inputs!B20","v":{"v":1121897.2538558836,"d":"$1,121,897"}},{"$f":"'(Other Computations)'!B8*(BS28/Inputs!B27)^(1-Inputs!B20)*(BS19/'(Other Computations)'!B194)^Inputs!B20","v":{"v":1120833.3385888548,"d":"$1,120,833"}},{"$f":"'(Other Computations)'!B8*(BT28/Inputs!B27)^(1-Inputs!B20)*(BT19/'(Other Computations)'!B194)^Inputs!B20","v":{"v":1119770.908404451,"d":"$1,119,771"}},{"$f":"'(Other Computations)'!B8*(BU28/Inputs!B27)^(1-Inputs!B20)*(BU19/'(Other Computations)'!B194)^Inputs!B20","v":{"v":1118706.4929875128,"d":"$1,118,706"}},{"$f":"'(Other Computations)'!B8*(BV28/Inputs!B27)^(1-Inputs!B20)*(BV19/'(Other Computations)'!B194)^Inputs!B20","v":{"v":1117630.4895203235,"d":"$1,117,630"}},{"$f":"'(Other Computations)'!B8*(BW28/Inputs!B27)^(1-Inputs!B20)*(BW19/'(Other Computations)'!B194)^Inputs!B20","v":{"v":1116545.98651897,"d":"$1,116,546"}},{"$f":"'(Other Computations)'!B8*(BX28/Inputs!B27)^(1-Inputs!B20)*(BX19/'(Other Computations)'!B194)^Inputs!B20","v":{"v":1115457.6599493893,"d":"$1,115,458"}},{"$f":"'(Other Computations)'!B8*(BY28/Inputs!B27)^(1-Inputs!B20)*(BY19/'(Other Computations)'!B194)^Inputs!B20","v":{"v":1114373.8805970622,"d":"$1,114,374"}},{"$f":"'(Other Computations)'!B8*(BZ28/Inputs!B27)^(1-Inputs!B20)*(BZ19/'(Other Computations)'!B194)^Inputs!B20","v":{"v":1113282.1391699072,"d":"$1,113,282"}},{"$f":"SUM(BO45:BZ45)","v":{"v":13430597.9657355,"d":"$13,430,598"}},{"$f":"'(Other Computations)'!B8*(CB28/Inputs!B27)^(1-Inputs!B20)*(CB19/'(Other Computations)'!B194)^Inputs!B20","v":{"v":1112180.5386936495,"d":"$1,112,181"}},{"$f":"'(Other Computations)'!B8*(CC28/Inputs!B27)^(1-Inputs!B20)*(CC19/'(Other Computations)'!B194)^Inputs!B20","v":{"v":1111084.87055607,"d":"$1,111,085"}},{"$f":"'(Other Computations)'!B8*(CD28/Inputs!B27)^(1-Inputs!B20)*(CD19/'(Other Computations)'!B194)^Inputs!B20","v":{"v":1109987.0875425343,"d":"$1,109,987"}},{"$f":"'(Other Computations)'!B8*(CE28/Inputs!B27)^(1-Inputs!B20)*(CE19/'(Other Computations)'!B194)^Inputs!B20","v":{"v":1108880.5003739216,"d":"$1,108,881"}},{"$f":"'(Other Computations)'!B8*(CF28/Inputs!B27)^(1-Inputs!B20)*(CF19/'(Other Computations)'!B194)^Inputs!B20","v":{"v":1107781.5017373431,"d":"$1,107,782"}},{"$f":"'(Other Computations)'!B8*(CG28/Inputs!B27)^(1-Inputs!B20)*(CG19/'(Other Computations)'!B194)^Inputs!B20","v":{"v":1106676.03727994,"d":"$1,106,676"}},{"$f":"'(Other Computations)'!B8*(CH28/Inputs!B27)^(1-Inputs!B20)*(CH19/'(Other Computations)'!B194)^Inputs!B20","v":{"v":1105570.2291751874,"d":"$1,105,570"}},{"$f":"'(Other Computations)'!B8*(CI28/Inputs!B27)^(1-Inputs!B20)*(CI19/'(Other Computations)'!B194)^Inputs!B20","v":{"v":1104467.1775906775,"d":"$1,104,467"}},{"$f":"'(Other Computations)'!B8*(CJ28/Inputs!B27)^(1-Inputs!B20)*(CJ19/'(Other Computations)'!B194)^Inputs!B20","v":{"v":1103363.821918606,"d":"$1,103,364"}},{"$f":"'(Other Computations)'!B8*(CK28/Inputs!B27)^(1-Inputs!B20)*(CK19/'(Other Computations)'!B194)^Inputs!B20","v":{"v":1102262.54121286,"d":"$1,102,263"}},{"$f":"'(Other Computations)'!B8*(CL28/Inputs!B27)^(1-Inputs!B20)*(CL19/'(Other Computations)'!B194)^Inputs!B20","v":{"v":1101162.0872310116,"d":"$1,101,162"}},{"$f":"'(Other Computations)'!B8*(CM28/Inputs!B27)^(1-Inputs!B20)*(CM19/'(Other Computations)'!B194)^Inputs!B20","v":{"v":1100052.8838922658,"d":"$1,100,053"}},{"$f":"SUM(CB45:CM45)","v":{"v":13273469.27720407,"d":"$13,273,469"}},{"$f":"'(Other Computations)'!B8*(CO28/Inputs!B27)^(1-Inputs!B20)*(CO19/'(Other Computations)'!B194)^Inputs!B20","v":{"v":1098950.353205544,"d":"$1,098,950"}},{"$f":"'(Other Computations)'!B8*(CP28/Inputs!B27)^(1-Inputs!B20)*(CP19/'(Other Computations)'!B194)^Inputs!B20","v":{"v":1097849.0617329914,"d":"$1,097,849"}},{"$f":"'(Other Computations)'!B8*(CQ28/Inputs!B27)^(1-Inputs!B20)*(CQ19/'(Other Computations)'!B194)^Inputs!B20","v":{"v":1096743.2341924922,"d":"$1,096,743"}},{"$f":"'(Other Computations)'!B8*(CR28/Inputs!B27)^(1-Inputs!B20)*(CR19/'(Other Computations)'!B194)^Inputs!B20","v":{"v":1095644.4074374307,"d":"$1,095,644"}},{"$f":"'(Other Computations)'!B8*(CS28/Inputs!B27)^(1-Inputs!B20)*(CS19/'(Other Computations)'!B194)^Inputs!B20","v":{"v":1094535.4719781722,"d":"$1,094,535"}},{"$f":"'(Other Computations)'!B8*(CT28/Inputs!B27)^(1-Inputs!B20)*(CT19/'(Other Computations)'!B194)^Inputs!B20","v":{"v":1093427.6340112016,"d":"$1,093,428"}},{"$f":"'(Other Computations)'!B8*(CU28/Inputs!B27)^(1-Inputs!B20)*(CU19/'(Other Computations)'!B194)^Inputs!B20","v":{"v":1092311.8500699755,"d":"$1,092,312"}},{"$f":"'(Other Computations)'!B8*(CV28/Inputs!B27)^(1-Inputs!B20)*(CV19/'(Other Computations)'!B194)^Inputs!B20","v":{"v":1091200.259146545,"d":"$1,091,200"}},{"$f":"'(Other Computations)'!B8*(CW28/Inputs!B27)^(1-Inputs!B20)*(CW19/'(Other Computations)'!B194)^Inputs!B20","v":{"v":1090083.3191727593,"d":"$1,090,083"}},{"$f":"'(Other Computations)'!B8*(CX28/Inputs!B27)^(1-Inputs!B20)*(CX19/'(Other Computations)'!B194)^Inputs!B20","v":{"v":1088970.5289532624,"d":"$1,088,971"}},{"$f":"'(Other Computations)'!B8*(CY28/Inputs!B27)^(1-Inputs!B20)*(CY19/'(Other Computations)'!B194)^Inputs!B20","v":{"v":1087851.268109156,"d":"$1,087,851"}},{"$f":"'(Other Computations)'!B8*(CZ28/Inputs!B27)^(1-Inputs!B20)*(CZ19/'(Other Computations)'!B194)^Inputs!B20","v":{"v":1086741.9709045852,"d":"$1,086,742"}},{"$f":"SUM(CO45:CZ45)","v":{"v":13114309.358914115,"d":"$13,114,309"}},{"$f":"'(Other Computations)'!B8*(DB28/Inputs!B27)^(1-Inputs!B20)*(DB19/'(Other Computations)'!B194)^Inputs!B20","v":{"v":1085644.0314691782,"d":"$1,085,644"}},{"$f":"'(Other Computations)'!B8*(DC28/Inputs!B27)^(1-Inputs!B20)*(DC19/'(Other Computations)'!B194)^Inputs!B20","v":{"v":1084539.34833311,"d":"$1,084,539"}},{"$f":"'(Other Computations)'!B8*(DD28/Inputs!B27)^(1-Inputs!B20)*(DD19/'(Other Computations)'!B194)^Inputs!B20","v":{"v":1083438.1517592457,"d":"$1,083,438"}},{"$f":"'(Other Computations)'!B8*(DE28/Inputs!B27)^(1-Inputs!B20)*(DE19/'(Other Computations)'!B194)^Inputs!B20","v":{"v":1082344.2357400018,"d":"$1,082,344"}},{"$f":"'(Other Computations)'!B8*(DF28/Inputs!B27)^(1-Inputs!B20)*(DF19/'(Other Computations)'!B194)^Inputs!B20","v":{"v":1081253.5732790492,"d":"$1,081,254"}},{"$f":"'(Other Computations)'!B8*(DG28/Inputs!B27)^(1-Inputs!B20)*(DG19/'(Other Computations)'!B194)^Inputs!B20","v":{"v":1080171.1671611087,"d":"$1,080,171"}},{"$f":"'(Other Computations)'!B8*(DH28/Inputs!B27)^(1-Inputs!B20)*(DH19/'(Other Computations)'!B194)^Inputs!B20","v":{"v":1079096.4771552254,"d":"$1,079,096"}},{"$f":"'(Other Computations)'!B8*(DI28/Inputs!B27)^(1-Inputs!B20)*(DI19/'(Other Computations)'!B194)^Inputs!B20","v":{"v":1078021.9268081314,"d":"$1,078,022"}},{"$f":"'(Other Computations)'!B8*(DJ28/Inputs!B27)^(1-Inputs!B20)*(DJ19/'(Other Computations)'!B194)^Inputs!B20","v":{"v":1076953.4447479362,"d":"$1,076,953"}},{"$f":"'(Other Computations)'!B8*(DK28/Inputs!B27)^(1-Inputs!B20)*(DK19/'(Other Computations)'!B194)^Inputs!B20","v":{"v":1075882.0421888814,"d":"$1,075,882"}},{"$f":"'(Other Computations)'!B8*(DL28/Inputs!B27)^(1-Inputs!B20)*(DL19/'(Other Computations)'!B194)^Inputs!B20","v":{"v":1074817.0770760935,"d":"$1,074,817"}},{"$f":"'(Other Computations)'!B8*(DM28/Inputs!B27)^(1-Inputs!B20)*(DM19/'(Other Computations)'!B194)^Inputs!B20","v":{"v":1073764.5688175138,"d":"$1,073,765"}},{"$f":"SUM(DB45:DM45)","v":{"v":12955926.044535475,"d":"$12,955,926"}},{"$f":"'(Other Computations)'!B8*(DO28/Inputs!B27)^(1-Inputs!B20)*(DO19/'(Other Computations)'!B194)^Inputs!B20","v":{"v":1072707.6392237472,"d":"$1,072,708"}},{"$f":"'(Other Computations)'!B8*(DP28/Inputs!B27)^(1-Inputs!B20)*(DP19/'(Other Computations)'!B194)^Inputs!B20","v":{"v":1071655.3371150019,"d":"$1,071,655"}},{"$f":"'(Other Computations)'!B8*(DQ28/Inputs!B27)^(1-Inputs!B20)*(DQ19/'(Other Computations)'!B194)^Inputs!B20","v":{"v":1070615.2452030797,"d":"$1,070,615"}},{"$f":"'(Other Computations)'!B8*(DR28/Inputs!B27)^(1-Inputs!B20)*(DR19/'(Other Computations)'!B194)^Inputs!B20","v":{"v":1069575.156076281,"d":"$1,069,575"}},{"$f":"'(Other Computations)'!B8*(DS28/Inputs!B27)^(1-Inputs!B20)*(DS19/'(Other Computations)'!B194)^Inputs!B20","v":{"v":1068540.9132569616,"d":"$1,068,541"}},{"$f":"'(Other Computations)'!B8*(DT28/Inputs!B27)^(1-Inputs!B20)*(DT19/'(Other Computations)'!B194)^Inputs!B20","v":{"v":1067510.9845427636,"d":"$1,067,511"}},{"$f":"'(Other Computations)'!B8*(DU28/Inputs!B27)^(1-Inputs!B20)*(DU19/'(Other Computations)'!B194)^Inputs!B20","v":{"v":1066482.2820842892,"d":"$1,066,482"}},{"$f":"'(Other Computations)'!B8*(DV28/Inputs!B27)^(1-Inputs!B20)*(DV19/'(Other Computations)'!B194)^Inputs!B20","v":{"v":1065454.437825043,"d":"$1,065,454"}},{"$f":"'(Other Computations)'!B8*(DW28/Inputs!B27)^(1-Inputs!B20)*(DW19/'(Other Computations)'!B194)^Inputs!B20","v":{"v":1064432.4732810766,"d":"$1,064,432"}},{"$f":"'(Other Computations)'!B8*(DX28/Inputs!B27)^(1-Inputs!B20)*(DX19/'(Other Computations)'!B194)^Inputs!B20","v":{"v":1063406.5546664954,"d":"$1,063,407"}},{"$f":"'(Other Computations)'!B8*(DY28/Inputs!B27)^(1-Inputs!B20)*(DY19/'(Other Computations)'!B194)^Inputs!B20","v":{"v":1062379.1353600286,"d":"$1,062,379"}},{"$f":"'(Other Computations)'!B8*(DZ28/Inputs!B27)^(1-Inputs!B20)*(DZ19/'(Other Computations)'!B194)^Inputs!B20","v":{"v":1061362.0025297306,"d":"$1,061,362"}},{"$f":"SUM(DO45:DZ45)","v":{"v":12804122.161164498,"d":"$12,804,122"}},{"$f":"'(Other Computations)'!B8*(EB28/Inputs!B27)^(1-Inputs!B20)*(EB19/'(Other Computations)'!B194)^Inputs!B20","v":{"v":1060352.8782216252,"d":"$1,060,353"}},{"$f":"'(Other Computations)'!B8*(EC28/Inputs!B27)^(1-Inputs!B20)*(EC19/'(Other Computations)'!B194)^Inputs!B20","v":{"v":1059342.4794202216,"d":"$1,059,342"}},{"$f":"'(Other Computations)'!B8*(ED28/Inputs!B27)^(1-Inputs!B20)*(ED19/'(Other Computations)'!B194)^Inputs!B20","v":{"v":1058338.1026475492,"d":"$1,058,338"}},{"$f":"'(Other Computations)'!B8*(EE28/Inputs!B27)^(1-Inputs!B20)*(EE19/'(Other Computations)'!B194)^Inputs!B20","v":{"v":1057336.686407422,"d":"$1,057,337"}},{"$f":"'(Other Computations)'!B8*(EF28/Inputs!B27)^(1-Inputs!B20)*(EF19/'(Other Computations)'!B194)^Inputs!B20","v":{"v":1056338.3787963754,"d":"$1,056,338"}},{"$f":"'(Other Computations)'!B8*(EG28/Inputs!B27)^(1-Inputs!B20)*(EG19/'(Other Computations)'!B194)^Inputs!B20","v":{"v":1055334.609867137,"d":"$1,055,335"}},{"$f":"'(Other Computations)'!B8*(EH28/Inputs!B27)^(1-Inputs!B20)*(EH19/'(Other Computations)'!B194)^Inputs!B20","v":{"v":1054333.5196119444,"d":"$1,054,334"}},{"$f":"'(Other Computations)'!B8*(EI28/Inputs!B27)^(1-Inputs!B20)*(EI19/'(Other Computations)'!B194)^Inputs!B20","v":{"v":1053333.7598364446,"d":"$1,053,334"}},{"$f":"'(Other Computations)'!B8*(EJ28/Inputs!B27)^(1-Inputs!B20)*(EJ19/'(Other Computations)'!B194)^Inputs!B20","v":{"v":1052336.64582653,"d":"$1,052,337"}},{"$f":"'(Other Computations)'!B8*(EK28/Inputs!B27)^(1-Inputs!B20)*(EK19/'(Other Computations)'!B194)^Inputs!B20","v":{"v":1051337.3480823315,"d":"$1,051,337"}},{"$f":"'(Other Computations)'!B8*(EL28/Inputs!B27)^(1-Inputs!B20)*(EL19/'(Other Computations)'!B194)^Inputs!B20","v":{"v":1050343.5716701273,"d":"$1,050,344"}},{"$f":"'(Other Computations)'!B8*(EM28/Inputs!B27)^(1-Inputs!B20)*(EM19/'(Other Computations)'!B194)^Inputs!B20","v":{"v":1049352.133599743,"d":"$1,049,352"}},{"$f":"SUM(EB45:EM45)","v":{"v":12658080.113987453,"d":"$12,658,080"}}]
[{"$f":"Labels!B78","v":"Output Shock"},{"$f":"NORMINV(RAND()*(1-2*Inputs!B58)+Inputs!B58,0,'(Other Computations)'!B208)","v":{"v":35492.1521538429,"d":"$35,492"}},{"$f":"NORMINV(RAND()*(1-2*Inputs!B58)+Inputs!B58,0,'(Other Computations)'!B208)","v":{"v":-45047.44254618557,"d":"($45,047)"}},{"$f":"NORMINV(RAND()*(1-2*Inputs!B58)+Inputs!B58,0,'(Other Computations)'!B208)","v":{"v":12642.939509411506,"d":"$12,643"}},{"$f":"NORMINV(RAND()*(1-2*Inputs!B58)+Inputs!B58,0,'(Other Computations)'!B208)","v":{"v":-11698.822377496488,"d":"($11,699)"}},{"$f":"NORMINV(RAND()*(1-2*Inputs!B58)+Inputs!B58,0,'(Other Computations)'!B208)","v":{"v":-2285.509372664849,"d":"($2,286)"}},{"$f":"NORMINV(RAND()*(1-2*Inputs!B58)+Inputs!B58,0,'(Other Computations)'!B208)","v":{"v":7576.610320768444,"d":"$7,577"}},{"$f":"NORMINV(RAND()*(1-2*Inputs!B58)+Inputs!B58,0,'(Other Computations)'!B208)","v":{"v":34478.87750961017,"d":"$34,479"}},{"$f":"NORMINV(RAND()*(1-2*Inputs!B58)+Inputs!B58,0,'(Other Computations)'!B208)","v":{"v":1540.7087430002948,"d":"$1,541"}},{"$f":"NORMINV(RAND()*(1-2*Inputs!B58)+Inputs!B58,0,'(Other Computations)'!B208)","v":{"v":14248.139435731302,"d":"$14,248"}},{"$f":"NORMINV(RAND()*(1-2*Inputs!B58)+Inputs!B58,0,'(Other Computations)'!B208)","v":{"v":14925.700373216476,"d":"$14,926"}},{"$f":"NORMINV(RAND()*(1-2*Inputs!B58)+Inputs!B58,0,'(Other Computations)'!B208)","v":{"v":4349.834470217414,"d":"$4,350"}},{"$f":"NORMINV(RAND()*(1-2*Inputs!B58)+Inputs!B58,0,'(Other Computations)'!B208)","v":{"v":39288.091478863804,"d":"$39,288"}},{"$f":"SUM(B46:M46)","v":{"v":105511.2796983154,"d":"$105,511"}},{"$f":"NORMINV(RAND()*(1-2*Inputs!B58)+Inputs!B58,0,'(Other Computations)'!B208)","v":{"v":-19121.99619182639,"d":"($19,122)"}},{"$f":"NORMINV(RAND()*(1-2*Inputs!B58)+Inputs!B58,0,'(Other Computations)'!B208)","v":{"v":29915.987691781036,"d":"$29,916"}},{"$f":"NORMINV(RAND()*(1-2*Inputs!B58)+Inputs!B58,0,'(Other Computations)'!B208)","v":{"v":-4117.2325674637705,"d":"($4,117)"}},{"$f":"NORMINV(RAND()*(1-2*Inputs!B58)+Inputs!B58,0,'(Other Computations)'!B208)","v":{"v":1454.689721129366,"d":"$1,455"}},{"$f":"NORMINV(RAND()*(1-2*Inputs!B58)+Inputs!B58,0,'(Other Computations)'!B208)","v":{"v":-15046.06327005205,"d":"($15,046)"}},{"$f":"NORMINV(RAND()*(1-2*Inputs!B58)+Inputs!B58,0,'(Other Computations)'!B208)","v":{"v":-34543.44596081222,"d":"($34,543)"}},{"$f":"NORMINV(RAND()*(1-2*Inputs!B58)+Inputs!B58,0,'(Other Computations)'!B208)","v":{"v":-21188.463261335462,"d":"($21,188)"}},{"$f":"NORMINV(RAND()*(1-2*Inputs!B58)+Inputs!B58,0,'(Other Computations)'!B208)","v":{"v":-1069.221724865683,"d":"($1,069)"}},{"$f":"NORMINV(RAND()*(1-2*Inputs!B58)+Inputs!B58,0,'(Other Computations)'!B208)","v":{"v":13199.911587305625,"d":"$13,200"}},{"$f":"NORMINV(RAND()*(1-2*Inputs!B58)+Inputs!B58,0,'(Other Computations)'!B208)","v":{"v":3963.447806775689,"d":"$3,963"}},{"$f":"NORMINV(RAND()*(1-2*Inputs!B58)+Inputs!B58,0,'(Other Computations)'!B208)","v":{"v":38687.78941304484,"d":"$38,688"}},{"$f":"NORMINV(RAND()*(1-2*Inputs!B58)+Inputs!B58,0,'(Other Computations)'!B208)","v":{"v":-4666.304264779763,"d":"($4,666)"}},{"$f":"SUM(O46:Z46)","v":{"v":-12530.901021098784,"d":"($12,531)"}},{"$f":"NORMINV(RAND()*(1-2*Inputs!B58)+Inputs!B58,0,'(Other Computations)'!B208)","v":{"v":-6751.029837253163,"d":"($6,751)"}},{"$f":"NORMINV(RAND()*(1-2*Inputs!B58)+Inputs!B58,0,'(Other Computations)'!B208)","v":{"v":11266.536475137744,"d":"$11,267"}},{"$f":"NORMINV(RAND()*(1-2*Inputs!B58)+Inputs!B58,0,'(Other Computations)'!B208)","v":{"v":35206.2388125071,"d":"$35,206"}},{"$f":"NORMINV(RAND()*(1-2*Inputs!B58)+Inputs!B58,0,'(Other Computations)'!B208)","v":{"v":-26695.62710532337,"d":"($26,696)"}},{"$f":"NORMINV(RAND()*(1-2*Inputs!B58)+Inputs!B58,0,'(Other Computations)'!B208)","v":{"v":-26252.486382058374,"d":"($26,252)"}},{"$f":"NORMINV(RAND()*(1-2*Inputs!B58)+Inputs!B58,0,'(Other Computations)'!B208)","v":{"v":8362.682451973407,"d":"$8,363"}},{"$f":"NORMINV(RAND()*(1-2*Inputs!B58)+Inputs!B58,0,'(Other Computations)'!B208)","v":{"v":4420.469867574372,"d":"$4,420"}},{"$f":"NORMINV(RAND()*(1-2*Inputs!B58)+Inputs!B58,0,'(Other Computations)'!B208)","v":{"v":-19485.764958948417,"d":"($19,486)"}},{"$f":"NORMINV(RAND()*(1-2*Inputs!B58)+Inputs!B58,0,'(Other Computations)'!B208)","v":{"v":-29716.897433796217,"d":"($29,717)"}},{"$f":"NORMINV(RAND()*(1-2*Inputs!B58)+Inputs!B58,0,'(Other Computations)'!B208)","v":{"v":9263.988065933767,"d":"$9,264"}},{"$f":"NORMINV(RAND()*(1-2*Inputs!B58)+Inputs!B58,0,'(Other Computations)'!B208)","v":{"v":35422.455414672986,"d":"$35,422"}},{"$f":"NORMINV(RAND()*(1-2*Inputs!B58)+Inputs!B58,0,'(Other Computations)'!B208)","v":{"v":39813.34185934187,"d":"$39,813"}},{"$f":"SUM(AB46:AM46)","v":{"v":34853.9072297617,"d":"$34,854"}},{"$f":"NORMINV(RAND()*(1-2*Inputs!B58)+Inputs!B58,0,'(Other Computations)'!B208)","v":{"v":-57422.2661424284,"d":"($57,422)"}},{"$f":"NORMINV(RAND()*(1-2*Inputs!B58)+Inputs!B58,0,'(Other Computations)'!B208)","v":{"v":-7910.106680288448,"d":"($7,910)"}},{"$f":"NORMINV(RAND()*(1-2*Inputs!B58)+Inputs!B58,0,'(Other Computations)'!B208)","v":{"v":38658.987793016655,"d":"$38,659"}},{"$f":"NORMINV(RAND()*(1-2*Inputs!B58)+Inputs!B58,0,'(Other Computations)'!B208)","v":{"v":-12139.946956197424,"d":"($12,140)"}},{"$f":"NORMINV(RAND()*(1-2*Inputs!B58)+Inputs!B58,0,'(Other Computations)'!B208)","v":{"v":-16159.489653447676,"d":"($16,159)"}},{"$f":"NORMINV(RAND()*(1-2*Inputs!B58)+Inputs!B58,0,'(Other Computations)'!B208)","v":{"v":-19254.604643789546,"d":"($19,255)"}},{"$f":"NORMINV(RAND()*(1-2*Inputs!B58)+Inputs!B58,0,'(Other Computations)'!B208)","v":{"v":-13728.604319456197,"d":"($13,729)"}},{"$f":"NORMINV(RAND()*(1-2*Inputs!B58)+Inputs!B58,0,'(Other Computations)'!B208)","v":{"v":28495.081816841237,"d":"$28,495"}},{"$f":"NORMINV(RAND()*(1-2*Inputs!B58)+Inputs!B58,0,'(Other Computations)'!B208)","v":{"v":-10248.675895556158,"d":"($10,249)"}},{"$f":"NORMINV(RAND()*(1-2*Inputs!B58)+Inputs!B58,0,'(Other Computations)'!B208)","v":{"v":-44700.28823219851,"d":"($44,700)"}},{"$f":"NORMINV(RAND()*(1-2*Inputs!B58)+Inputs!B58,0,'(Other Computations)'!B208)","v":{"v":42233.52715571304,"d":"$42,234"}},{"$f":"NORMINV(RAND()*(1-2*Inputs!B58)+Inputs!B58,0,'(Other Computations)'!B208)","v":{"v":-10805.973558443127,"d":"($10,806)"}},{"$f":"SUM(AO46:AZ46)","v":{"v":-82982.35931623454,"d":"($82,982)"}},{"$f":"NORMINV(RAND()*(1-2*Inputs!B58)+Inputs!B58,0,'(Other Computations)'!B208)","v":{"v":-23468.732418796993,"d":"($23,469)"}},{"$f":"NORMINV(RAND()*(1-2*Inputs!B58)+Inputs!B58,0,'(Other Computations)'!B208)","v":{"v":9738.242580351593,"d":"$9,738"}},{"$f":"NORMINV(RAND()*(1-2*Inputs!B58)+Inputs!B58,0,'(Other Computations)'!B208)","v":{"v":31831.784929229358,"d":"$31,832"}},{"$f":"NORMINV(RAND()*(1-2*Inputs!B58)+Inputs!B58,0,'(Other Computations)'!B208)","v":{"v":19802.077190228392,"d":"$19,802"}},{"$f":"NORMINV(RAND()*(1-2*Inputs!B58)+Inputs!B58,0,'(Other Computations)'!B208)","v":{"v":-21497.3547063625,"d":"($21,497)"}},{"$f":"NORMINV(RAND()*(1-2*Inputs!B58)+Inputs!B58,0,'(Other Computations)'!B208)","v":{"v":23553.2651716454,"d":"$23,553"}},{"$f":"NORMINV(RAND()*(1-2*Inputs!B58)+Inputs!B58,0,'(Other Computations)'!B208)","v":{"v":27735.200413374456,"d":"$27,735"}},{"$f":"NORMINV(RAND()*(1-2*Inputs!B58)+Inputs!B58,0,'(Other Computations)'!B208)","v":{"v":57213.980185600376,"d":"$57,214"}},{"$f":"NORMINV(RAND()*(1-2*Inputs!B58)+Inputs!B58,0,'(Other Computations)'!B208)","v":{"v":41305.96156581008,"d":"$41,306"}},{"$f":"NORMINV(RAND()*(1-2*Inputs!B58)+Inputs!B58,0,'(Other Computations)'!B208)","v":{"v":54706.809889542565,"d":"$54,707"}},{"$f":"NORMINV(RAND()*(1-2*Inputs!B58)+Inputs!B58,0,'(Other Computations)'!B208)","v":{"v":22965.5550390026,"d":"$22,966"}},{"$f":"NORMINV(RAND()*(1-2*Inputs!B58)+Inputs!B58,0,'(Other Computations)'!B208)","v":{"v":-19036.550257012575,"d":"($19,037)"}},{"$f":"SUM(BB46:BM46)","v":{"v":224850.23958261276,"d":"$224,850"}},{"$f":"NORMINV(RAND()*(1-2*Inputs!B58)+Inputs!B58,0,'(Other Computations)'!B208)","v":{"v":37162.560075981455,"d":"$37,163"}},{"$f":"NORMINV(RAND()*(1-2*Inputs!B58)+Inputs!B58,0,'(Other Computations)'!B208)","v":{"v":46836.13415669174,"d":"$46,836"}},{"$f":"NORMINV(RAND()*(1-2*Inputs!B58)+Inputs!B58,0,'(Other Computations)'!B208)","v":{"v":-6166.633655610448,"d":"($6,167)"}},{"$f":"NORMINV(RAND()*(1-2*Inputs!B58)+Inputs!B58,0,'(Other Computations)'!B208)","v":{"v":-2285.674393349402,"d":"($2,286)"}},{"$f":"NORMINV(RAND()*(1-2*Inputs!B58)+Inputs!B58,0,'(Other Computations)'!B208)","v":{"v":-25405.682557591925,"d":"($25,406)"}},{"$f":"NORMINV(RAND()*(1-2*Inputs!B58)+Inputs!B58,0,'(Other Computations)'!B208)","v":{"v":12104.271426800236,"d":"$12,104"}},{"$f":"NORMINV(RAND()*(1-2*Inputs!B58)+Inputs!B58,0,'(Other Computations)'!B208)","v":{"v":13339.508608494312,"d":"$13,340"}},{"$f":"NORMINV(RAND()*(1-2*Inputs!B58)+Inputs!B58,0,'(Other Computations)'!B208)","v":{"v":4860.141675930391,"d":"$4,860"}},{"$f":"NORMINV(RAND()*(1-2*Inputs!B58)+Inputs!B58,0,'(Other Computations)'!B208)","v":{"v":36126.73224023767,"d":"$36,127"}},{"$f":"NORMINV(RAND()*(1-2*Inputs!B58)+Inputs!B58,0,'(Other Computations)'!B208)","v":{"v":-15228.396510843058,"d":"($15,228)"}},{"$f":"NORMINV(RAND()*(1-2*Inputs!B58)+Inputs!B58,0,'(Other Computations)'!B208)","v":{"v":14104.239204571464,"d":"$14,104"}},{"$f":"NORMINV(RAND()*(1-2*Inputs!B58)+Inputs!B58,0,'(Other Computations)'!B208)","v":{"v":11323.301318205715,"d":"$11,323"}},{"$f":"SUM(BO46:BZ46)","v":{"v":126770.50158951817,"d":"$126,771"}},{"$f":"NORMINV(RAND()*(1-2*Inputs!B58)+Inputs!B58,0,'(Other Computations)'!B208)","v":{"v":7637.050250061621,"d":"$7,637"}},{"$f":"NORMINV(RAND()*(1-2*Inputs!B58)+Inputs!B58,0,'(Other Computations)'!B208)","v":{"v":-17054.50700494567,"d":"($17,055)"}},{"$f":"NORMINV(RAND()*(1-2*Inputs!B58)+Inputs!B58,0,'(Other Computations)'!B208)","v":{"v":-38251.94790085589,"d":"($38,252)"}},{"$f":"NORMINV(RAND()*(1-2*Inputs!B58)+Inputs!B58,0,'(Other Computations)'!B208)","v":{"v":20595.726989800507,"d":"$20,596"}},{"$f":"NORMINV(RAND()*(1-2*Inputs!B58)+Inputs!B58,0,'(Other Computations)'!B208)","v":{"v":25736.336537986732,"d":"$25,736"}},{"$f":"NORMINV(RAND()*(1-2*Inputs!B58)+Inputs!B58,0,'(Other Computations)'!B208)","v":{"v":-14992.627921878102,"d":"($14,993)"}},{"$f":"NORMINV(RAND()*(1-2*Inputs!B58)+Inputs!B58,0,'(Other Computations)'!B208)","v":{"v":25425.168469706317,"d":"$25,425"}},{"$f":"NORMINV(RAND()*(1-2*Inputs!B58)+Inputs!B58,0,'(Other Computations)'!B208)","v":{"v":-38055.860981520025,"d":"($38,056)"}},{"$f":"NORMINV(RAND()*(1-2*Inputs!B58)+Inputs!B58,0,'(Other Computations)'!B208)","v":{"v":-4733.63781085913,"d":"($4,734)"}},{"$f":"NORMINV(RAND()*(1-2*Inputs!B58)+Inputs!B58,0,'(Other Computations)'!B208)","v":{"v":27250.083028199366,"d":"$27,250"}},{"$f":"NORMINV(RAND()*(1-2*Inputs!B58)+Inputs!B58,0,'(Other Computations)'!B208)","v":{"v":20474.814256079626,"d":"$20,475"}},{"$f":"NORMINV(RAND()*(1-2*Inputs!B58)+Inputs!B58,0,'(Other Computations)'!B208)","v":{"v":-28394.31659702872,"d":"($28,394)"}},{"$f":"SUM(CB46:CM46)","v":{"v":-14363.71868525337,"d":"($14,364)"}},{"$f":"NORMINV(RAND()*(1-2*Inputs!B58)+Inputs!B58,0,'(Other Computations)'!B208)","v":{"v":-44328.7236733252,"d":"($44,329)"}},{"$f":"NORMINV(RAND()*(1-2*Inputs!B58)+Inputs!B58,0,'(Other Computations)'!B208)","v":{"v":12635.143528859546,"d":"$12,635"}},{"$f":"NORMINV(RAND()*(1-2*Inputs!B58)+Inputs!B58,0,'(Other Computations)'!B208)","v":{"v":30550.38697678994,"d":"$30,550"}},{"$f":"NORMINV(RAND()*(1-2*Inputs!B58)+Inputs!B58,0,'(Other Computations)'!B208)","v":{"v":6397.8524730196605,"d":"$6,398"}},{"$f":"NORMINV(RAND()*(1-2*Inputs!B58)+Inputs!B58,0,'(Other Computations)'!B208)","v":{"v":-21975.93358360171,"d":"($21,976)"}},{"$f":"NORMINV(RAND()*(1-2*Inputs!B58)+Inputs!B58,0,'(Other Computations)'!B208)","v":{"v":-21110.283260657292,"d":"($21,110)"}},{"$f":"NORMINV(RAND()*(1-2*Inputs!B58)+Inputs!B58,0,'(Other Computations)'!B208)","v":{"v":-26732.416014728416,"d":"($26,732)"}},{"$f":"NORMINV(RAND()*(1-2*Inputs!B58)+Inputs!B58,0,'(Other Computations)'!B208)","v":{"v":-5101.558286105057,"d":"($5,102)"}},{"$f":"NORMINV(RAND()*(1-2*Inputs!B58)+Inputs!B58,0,'(Other Computations)'!B208)","v":{"v":-29431.438082872784,"d":"($29,431)"}},{"$f":"NORMINV(RAND()*(1-2*Inputs!B58)+Inputs!B58,0,'(Other Computations)'!B208)","v":{"v":-38302.86591107344,"d":"($38,303)"}},{"$f":"NORMINV(RAND()*(1-2*Inputs!B58)+Inputs!B58,0,'(Other Computations)'!B208)","v":{"v":27659.625589195926,"d":"$27,660"}},{"$f":"NORMINV(RAND()*(1-2*Inputs!B58)+Inputs!B58,0,'(Other Computations)'!B208)","v":{"v":25337.66086333432,"d":"$25,338"}},{"$f":"SUM(CO46:CZ46)","v":{"v":-84402.54938116451,"d":"($84,403)"}},{"$f":"NORMINV(RAND()*(1-2*Inputs!B58)+Inputs!B58,0,'(Other Computations)'!B208)","v":{"v":-36639.990514441444,"d":"($36,640)"}},{"$f":"NORMINV(RAND()*(1-2*Inputs!B58)+Inputs!B58,0,'(Other Computations)'!B208)","v":{"v":4274.295616079419,"d":"$4,274"}},{"$f":"NORMINV(RAND()*(1-2*Inputs!B58)+Inputs!B58,0,'(Other Computations)'!B208)","v":{"v":12023.525091652276,"d":"$12,024"}},{"$f":"NORMINV(RAND()*(1-2*Inputs!B58)+Inputs!B58,0,'(Other Computations)'!B208)","v":{"v":39967.58846118208,"d":"$39,968"}},{"$f":"NORMINV(RAND()*(1-2*Inputs!B58)+Inputs!B58,0,'(Other Computations)'!B208)","v":{"v":-34509.80852497326,"d":"($34,510)"}},{"$f":"NORMINV(RAND()*(1-2*Inputs!B58)+Inputs!B58,0,'(Other Computations)'!B208)","v":{"v":-12988.837383239157,"d":"($12,989)"}},{"$f":"NORMINV(RAND()*(1-2*Inputs!B58)+Inputs!B58,0,'(Other Computations)'!B208)","v":{"v":34276.571868156134,"d":"$34,277"}},{"$f":"NORMINV(RAND()*(1-2*Inputs!B58)+Inputs!B58,0,'(Other Computations)'!B208)","v":{"v":8928.915444025948,"d":"$8,929"}},{"$f":"NORMINV(RAND()*(1-2*Inputs!B58)+Inputs!B58,0,'(Other Computations)'!B208)","v":{"v":58732.04400442799,"d":"$58,732"}},{"$f":"NORMINV(RAND()*(1-2*Inputs!B58)+Inputs!B58,0,'(Other Computations)'!B208)","v":{"v":5483.109398031349,"d":"$5,483"}},{"$f":"NORMINV(RAND()*(1-2*Inputs!B58)+Inputs!B58,0,'(Other Computations)'!B208)","v":{"v":12568.716639285569,"d":"$12,569"}},{"$f":"NORMINV(RAND()*(1-2*Inputs!B58)+Inputs!B58,0,'(Other Computations)'!B208)","v":{"v":45578.75576820575,"d":"$45,579"}},{"$f":"SUM(DB46:DM46)","v":{"v":137694.88586839265,"d":"$137,695"}},{"$f":"NORMINV(RAND()*(1-2*Inputs!B58)+Inputs!B58,0,'(Other Computations)'!B208)","v":{"v":-25999.095007581036,"d":"($25,999)"}},{"$f":"NORMINV(RAND()*(1-2*Inputs!B58)+Inputs!B58,0,'(Other Computations)'!B208)","v":{"v":-25866.381255726294,"d":"($25,866)"}},{"$f":"NORMINV(RAND()*(1-2*Inputs!B58)+Inputs!B58,0,'(Other Computations)'!B208)","v":{"v":7366.425104294528,"d":"$7,366"}},{"$f":"NORMINV(RAND()*(1-2*Inputs!B58)+Inputs!B58,0,'(Other Computations)'!B208)","v":{"v":4857.119957375359,"d":"$4,857"}},{"$f":"NORMINV(RAND()*(1-2*Inputs!B58)+Inputs!B58,0,'(Other Computations)'!B208)","v":{"v":-10369.386926031751,"d":"($10,369)"}},{"$f":"NORMINV(RAND()*(1-2*Inputs!B58)+Inputs!B58,0,'(Other Computations)'!B208)","v":{"v":-3824.4153208365365,"d":"($3,824)"}},{"$f":"NORMINV(RAND()*(1-2*Inputs!B58)+Inputs!B58,0,'(Other Computations)'!B208)","v":{"v":53455.882593490016,"d":"$53,456"}},{"$f":"NORMINV(RAND()*(1-2*Inputs!B58)+Inputs!B58,0,'(Other Computations)'!B208)","v":{"v":30604.712892186908,"d":"$30,605"}},{"$f":"NORMINV(RAND()*(1-2*Inputs!B58)+Inputs!B58,0,'(Other Computations)'!B208)","v":{"v":-22451.037548962624,"d":"($22,451)"}},{"$f":"NORMINV(RAND()*(1-2*Inputs!B58)+Inputs!B58,0,'(Other Computations)'!B208)","v":{"v":-17080.39829746461,"d":"($17,080)"}},{"$f":"NORMINV(RAND()*(1-2*Inputs!B58)+Inputs!B58,0,'(Other Computations)'!B208)","v":{"v":2985.2957282996863,"d":"$2,985"}},{"$f":"NORMINV(RAND()*(1-2*Inputs!B58)+Inputs!B58,0,'(Other Computations)'!B208)","v":{"v":11038.970488409283,"d":"$11,039"}},{"$f":"SUM(DO46:DZ46)","v":{"v":4717.692407452931,"d":"$4,718"}},{"$f":"NORMINV(RAND()*(1-2*Inputs!B58)+Inputs!B58,0,'(Other Computations)'!B208)","v":{"v":14321.44105182544,"d":"$14,321"}},{"$f":"NORMINV(RAND()*(1-2*Inputs!B58)+Inputs!B58,0,'(Other Computations)'!B208)","v":{"v":-23833.3853679947,"d":"($23,833)"}},{"$f":"NORMINV(RAND()*(1-2*Inputs!B58)+Inputs!B58,0,'(Other Computations)'!B208)","v":{"v":-37023.016422059576,"d":"($37,023)"}},{"$f":"NORMINV(RAND()*(1-2*Inputs!B58)+Inputs!B58,0,'(Other Computations)'!B208)","v":{"v":44254.00224708738,"d":"$44,254"}},{"$f":"NORMINV(RAND()*(1-2*Inputs!B58)+Inputs!B58,0,'(Other Computations)'!B208)","v":{"v":-16402.542789207346,"d":"($16,403)"}},{"$f":"NORMINV(RAND()*(1-2*Inputs!B58)+Inputs!B58,0,'(Other Computations)'!B208)","v":{"v":7.672603156401576,"d":"$8"}},{"$f":"NORMINV(RAND()*(1-2*Inputs!B58)+Inputs!B58,0,'(Other Computations)'!B208)","v":{"v":36203.6531467673,"d":"$36,204"}},{"$f":"NORMINV(RAND()*(1-2*Inputs!B58)+Inputs!B58,0,'(Other Computations)'!B208)","v":{"v":-21649.23689647254,"d":"($21,649)"}},{"$f":"NORMINV(RAND()*(1-2*Inputs!B58)+Inputs!B58,0,'(Other Computations)'!B208)","v":{"v":-11493.129621223034,"d":"($11,493)"}},{"$f":"NORMINV(RAND()*(1-2*Inputs!B58)+Inputs!B58,0,'(Other Computations)'!B208)","v":{"v":-22160.40972456795,"d":"($22,160)"}},{"$f":"NORMINV(RAND()*(1-2*Inputs!B58)+Inputs!B58,0,'(Other Computations)'!B208)","v":{"v":5779.766764663606,"d":"$5,780"}},{"$f":"NORMINV(RAND()*(1-2*Inputs!B58)+Inputs!B58,0,'(Other Computations)'!B208)","v":{"v":-10575.144911128464,"d":"($10,575)"}},{"$f":"SUM(EB46:EM46)","v":{"v":-42570.32991915348,"d":"($42,570)"}}]
[]
[]
[{"$f":"\"Government\"","v":"Government"}]
[{"$f":"\" \"","v":" "}]
[null,{"$f":"ZZZ__FnCalls!F7","v":"Jan 2010"},{"$f":"ZZZ__FnCalls!F8","v":"Feb 2010"},{"$f":"ZZZ__FnCalls!F9","v":"Mar 2010"},{"$f":"ZZZ__FnCalls!F10","v":"Apr 2010"},{"$f":"ZZZ__FnCalls!F11","v":"May 2010"},{"$f":"ZZZ__FnCalls!F12","v":"Jun 2010"},{"$f":"ZZZ__FnCalls!F13","v":"Jul 2010"},{"$f":"ZZZ__FnCalls!F14","v":"Aug 2010"},{"$f":"ZZZ__FnCalls!F15","v":"Sep 2010"},{"$f":"ZZZ__FnCalls!F16","v":"Oct 2010"},{"$f":"ZZZ__FnCalls!F17","v":"Nov 2010"},{"$f":"ZZZ__FnCalls!F18","v":"Dec 2010"},{"$f":"ZZZ__FnCalls!H7","v":"2010"},{"$f":"ZZZ__FnCalls!F19","v":"Jan 2011"},{"$f":"ZZZ__FnCalls!F20","v":"Feb 2011"},{"$f":"ZZZ__FnCalls!F21","v":"Mar 2011"},{"$f":"ZZZ__FnCalls!F22","v":"Apr 2011"},{"$f":"ZZZ__FnCalls!F23","v":"May 2011"},{"$f":"ZZZ__FnCalls!F24","v":"Jun 2011"},{"$f":"ZZZ__FnCalls!F25","v":"Jul 2011"},{"$f":"ZZZ__FnCalls!F26","v":"Aug 2011"},{"$f":"ZZZ__FnCalls!F27","v":"Sep 2011"},{"$f":"ZZZ__FnCalls!F28","v":"Oct 2011"},{"$f":"ZZZ__FnCalls!F29","v":"Nov 2011"},{"$f":"ZZZ__FnCalls!F30","v":"Dec 2011"},{"$f":"ZZZ__FnCalls!H19","v":"2011"},{"$f":"ZZZ__FnCalls!F31","v":"Jan 2012"},{"$f":"ZZZ__FnCalls!F32","v":"Feb 2012"},{"$f":"ZZZ__FnCalls!F33","v":"Mar 2012"},{"$f":"ZZZ__FnCalls!F34","v":"Apr 2012"},{"$f":"ZZZ__FnCalls!F35","v":"May 2012"},{"$f":"ZZZ__FnCalls!F36","v":"Jun 2012"},{"$f":"ZZZ__FnCalls!F37","v":"Jul 2012"},{"$f":"ZZZ__FnCalls!F38","v":"Aug 2012"},{"$f":"ZZZ__FnCalls!F39","v":"Sep 2012"},{"$f":"ZZZ__FnCalls!F40","v":"Oct 2012"},{"$f":"ZZZ__FnCalls!F41","v":"Nov 2012"},{"$f":"ZZZ__FnCalls!F42","v":"Dec 2012"},{"$f":"ZZZ__FnCalls!H31","v":"2012"},{"$f":"ZZZ__FnCalls!F43","v":"Jan 2013"},{"$f":"ZZZ__FnCalls!F44","v":"Feb 2013"},{"$f":"ZZZ__FnCalls!F45","v":"Mar 2013"},{"$f":"ZZZ__FnCalls!F46","v":"Apr 2013"},{"$f":"ZZZ__FnCalls!F47","v":"May 2013"},{"$f":"ZZZ__FnCalls!F48","v":"Jun 2013"},{"$f":"ZZZ__FnCalls!F49","v":"Jul 2013"},{"$f":"ZZZ__FnCalls!F50","v":"Aug 2013"},{"$f":"ZZZ__FnCalls!F51","v":"Sep 2013"},{"$f":"ZZZ__FnCalls!F52","v":"Oct 2013"},{"$f":"ZZZ__FnCalls!F53","v":"Nov 2013"},{"$f":"ZZZ__FnCalls!F54","v":"Dec 2013"},{"$f":"ZZZ__FnCalls!H43","v":"2013"},{"$f":"ZZZ__FnCalls!F55","v":"Jan 2014"},{"$f":"ZZZ__FnCalls!F56","v":"Feb 2014"},{"$f":"ZZZ__FnCalls!F57","v":"Mar 2014"},{"$f":"ZZZ__FnCalls!F58","v":"Apr 2014"},{"$f":"ZZZ__FnCalls!F59","v":"May 2014"},{"$f":"ZZZ__FnCalls!F60","v":"Jun 2014"},{"$f":"ZZZ__FnCalls!F61","v":"Jul 2014"},{"$f":"ZZZ__FnCalls!F62","v":"Aug 2014"},{"$f":"ZZZ__FnCalls!F63","v":"Sep 2014"},{"$f":"ZZZ__FnCalls!F64","v":"Oct 2014"},{"$f":"ZZZ__FnCalls!F65","v":"Nov 2014"},{"$f":"ZZZ__FnCalls!F66","v":"Dec 2014"},{"$f":"ZZZ__FnCalls!H55","v":"2014"},{"$f":"ZZZ__FnCalls!F67","v":"Jan 2015"},{"$f":"ZZZ__FnCalls!F68","v":"Feb 2015"},{"$f":"ZZZ__FnCalls!F69","v":"Mar 2015"},{"$f":"ZZZ__FnCalls!F70","v":"Apr 2015"},{"$f":"ZZZ__FnCalls!F71","v":"May 2015"},{"$f":"ZZZ__FnCalls!F72","v":"Jun 2015"},{"$f":"ZZZ__FnCalls!F73","v":"Jul 2015"},{"$f":"ZZZ__FnCalls!F74","v":"Aug 2015"},{"$f":"ZZZ__FnCalls!F75","v":"Sep 2015"},{"$f":"ZZZ__FnCalls!F76","v":"Oct 2015"},{"$f":"ZZZ__FnCalls!F77","v":"Nov 2015"},{"$f":"ZZZ__FnCalls!F78","v":"Dec 2015"},{"$f":"ZZZ__FnCalls!H67","v":"2015"},{"$f":"ZZZ__FnCalls!F79","v":"Jan 2016"},{"$f":"ZZZ__FnCalls!F80","v":"Feb 2016"},{"$f":"ZZZ__FnCalls!F81","v":"Mar 2016"},{"$f":"ZZZ__FnCalls!F82","v":"Apr 2016"},{"$f":"ZZZ__FnCalls!F83","v":"May 2016"},{"$f":"ZZZ__FnCalls!F84","v":"Jun 2016"},{"$f":"ZZZ__FnCalls!F85","v":"Jul 2016"},{"$f":"ZZZ__FnCalls!F86","v":"Aug 2016"},{"$f":"ZZZ__FnCalls!F87","v":"Sep 2016"},{"$f":"ZZZ__FnCalls!F88","v":"Oct 2016"},{"$f":"ZZZ__FnCalls!F89","v":"Nov 2016"},{"$f":"ZZZ__FnCalls!F90","v":"Dec 2016"},{"$f":"ZZZ__FnCalls!H79","v":"2016"},{"$f":"ZZZ__FnCalls!F91","v":"Jan 2017"},{"$f":"ZZZ__FnCalls!F92","v":"Feb 2017"},{"$f":"ZZZ__FnCalls!F93","v":"Mar 2017"},{"$f":"ZZZ__FnCalls!F94","v":"Apr 2017"},{"$f":"ZZZ__FnCalls!F95","v":"May 2017"},{"$f":"ZZZ__FnCalls!F96","v":"Jun 2017"},{"$f":"ZZZ__FnCalls!F97","v":"Jul 2017"},{"$f":"ZZZ__FnCalls!F98","v":"Aug 2017"},{"$f":"ZZZ__FnCalls!F99","v":"Sep 2017"},{"$f":"ZZZ__FnCalls!F100","v":"Oct 2017"},{"$f":"ZZZ__FnCalls!F101","v":"Nov 2017"},{"$f":"ZZZ__FnCalls!F102","v":"Dec 2017"},{"$f":"ZZZ__FnCalls!H91","v":"2017"},{"$f":"ZZZ__FnCalls!F103","v":"Jan 2018"},{"$f":"ZZZ__FnCalls!F104","v":"Feb 2018"},{"$f":"ZZZ__FnCalls!F105","v":"Mar 2018"},{"$f":"ZZZ__FnCalls!F106","v":"Apr 2018"},{"$f":"ZZZ__FnCalls!F107","v":"May 2018"},{"$f":"ZZZ__FnCalls!F108","v":"Jun 2018"},{"$f":"ZZZ__FnCalls!F109","v":"Jul 2018"},{"$f":"ZZZ__FnCalls!F110","v":"Aug 2018"},{"$f":"ZZZ__FnCalls!F111","v":"Sep 2018"},{"$f":"ZZZ__FnCalls!F112","v":"Oct 2018"},{"$f":"ZZZ__FnCalls!F113","v":"Nov 2018"},{"$f":"ZZZ__FnCalls!F114","v":"Dec 2018"},{"$f":"ZZZ__FnCalls!H103","v":"2018"},{"$f":"ZZZ__FnCalls!F115","v":"Jan 2019"},{"$f":"ZZZ__FnCalls!F116","v":"Feb 2019"},{"$f":"ZZZ__FnCalls!F117","v":"Mar 2019"},{"$f":"ZZZ__FnCalls!F118","v":"Apr 2019"},{"$f":"ZZZ__FnCalls!F119","v":"May 2019"},{"$f":"ZZZ__FnCalls!F120","v":"Jun 2019"},{"$f":"ZZZ__FnCalls!F121","v":"Jul 2019"},{"$f":"ZZZ__FnCalls!F122","v":"Aug 2019"},{"$f":"ZZZ__FnCalls!F123","v":"Sep 2019"},{"$f":"ZZZ__FnCalls!F124","v":"Oct 2019"},{"$f":"ZZZ__FnCalls!F125","v":"Nov 2019"},{"$f":"ZZZ__FnCalls!F126","v":"Dec 2019"},{"$f":"ZZZ__FnCalls!H115","v":"2019"},{"$f":"ZZZ__FnCalls!F127","v":"Jan 2020"},{"$f":"ZZZ__FnCalls!F128","v":"Feb 2020"},{"$f":"ZZZ__FnCalls!F129","v":"Mar 2020"},{"$f":"ZZZ__FnCalls!F130","v":"Apr 2020"},{"$f":"ZZZ__FnCalls!F131","v":"May 2020"},{"$f":"ZZZ__FnCalls!F132","v":"Jun 2020"},{"$f":"ZZZ__FnCalls!F133","v":"Jul 2020"},{"$f":"ZZZ__FnCalls!F134","v":"Aug 2020"},{"$f":"ZZZ__FnCalls!F135","v":"Sep 2020"},{"$f":"ZZZ__FnCalls!F136","v":"Oct 2020"},{"$f":"ZZZ__FnCalls!F137","v":"Nov 2020"},{"$f":"ZZZ__FnCalls!F138","v":"Dec 2020"},{"$f":"ZZZ__FnCalls!H127","v":"2020"}]
[{"$f":"Labels!B51","v":"Gov Spending"},{"$f":"B37","v":{"v":29166.66666666667,"d":"$29,167"}},{"v":29166.66666666667,"d":"$29,167"},{"v":29166.66666666667,"d":"$29,167"},{"v":29166.66666666667,"d":"$29,167"},{"v":29166.66666666667,"d":"$29,167"},{"v":29166.66666666667,"d":"$29,167"},{"v":29166.66666666667,"d":"$29,167"},{"v":29166.66666666667,"d":"$29,167"},{"v":29166.66666666667,"d":"$29,167"},{"v":29166.66666666667,"d":"$29,167"},{"v":29166.66666666667,"d":"$29,167"},{"v":29166.66666666667,"d":"$29,167"},{"$f":"SUM(B37:M37)","v":{"v":350000.0000000002,"d":"$350,000"}},{"$f":"O37","v":{"v":29166.66666666667,"d":"$29,167"}},{"v":29166.66666666667,"d":"$29,167"},{"v":29166.66666666667,"d":"$29,167"},{"v":29166.66666666667,"d":"$29,167"},{"v":29166.66666666667,"d":"$29,167"},{"v":29166.66666666667,"d":"$29,167"},{"v":29166.66666666667,"d":"$29,167"},{"v":29166.66666666667,"d":"$29,167"},{"v":29166.66666666667,"d":"$29,167"},{"v":29166.66666666667,"d":"$29,167"},{"v":29166.66666666667,"d":"$29,167"},{"v":29166.66666666667,"d":"$29,167"},{"$f":"SUM(O37:Z37)","v":{"v":350000.0000000002,"d":"$350,000"}},{"$f":"AB37","v":{"v":29166.66666666667,"d":"$29,167"}},{"v":29166.66666666667,"d":"$29,167"},{"v":29166.66666666667,"d":"$29,167"},{"v":29166.66666666667,"d":"$29,167"},{"v":29166.66666666667,"d":"$29,167"},{"v":29166.66666666667,"d":"$29,167"},{"v":29166.66666666667,"d":"$29,167"},{"v":29166.66666666667,"d":"$29,167"},{"v":29166.66666666667,"d":"$29,167"},{"v":29166.66666666667,"d":"$29,167"},{"v":29166.66666666667,"d":"$29,167"},{"v":29166.66666666667,"d":"$29,167"},{"$f":"SUM(AB37:AM37)","v":{"v":350000.0000000002,"d":"$350,000"}},{"$f":"AO37","v":{"v":29166.66666666667,"d":"$29,167"}},{"v":29166.66666666667,"d":"$29,167"},{"v":29166.66666666667,"d":"$29,167"},{"v":29166.66666666667,"d":"$29,167"},{"v":29166.66666666667,"d":"$29,167"},{"v":29166.66666666667,"d":"$29,167"},{"v":29166.66666666667,"d":"$29,167"},{"v":29166.66666666667,"d":"$29,167"},{"v":29166.66666666667,"d":"$29,167"},{"v":29166.66666666667,"d":"$29,167"},{"v":29166.66666666667,"d":"$29,167"},{"v":29166.66666666667,"d":"$29,167"},{"$f":"SUM(AO37:AZ37)","v":{"v":350000.0000000002,"d":"$350,000"}},{"$f":"BB37","v":{"v":29166.66666666667,"d":"$29,167"}},{"v":29166.66666666667,"d":"$29,167"},{"v":29166.66666666667,"d":"$29,167"},{"v":29166.66666666667,"d":"$29,167"},{"v":29166.66666666667,"d":"$29,167"},{"v":29166.66666666667,"d":"$29,167"},{"v":29166.66666666667,"d":"$29,167"},{"v":29166.66666666667,"d":"$29,167"},{"v":29166.66666666667,"d":"$29,167"},{"v":29166.66666666667,"d":"$29,167"},{"v":29166.66666666667,"d":"$29,167"},{"v":29166.66666666667,"d":"$29,167"},{"$f":"SUM(BB37:BM37)","v":{"v":350000.0000000002,"d":"$350,000"}},{"$f":"BO37","v":{"v":29166.66666666667,"d":"$29,167"}},{"v":29166.66666666667,"d":"$29,167"},{"v":29166.66666666667,"d":"$29,167"},{"v":29166.66666666667,"d":"$29,167"},{"v":29166.66666666667,"d":"$29,167"},{"v":29166.66666666667,"d":"$29,167"},{"v":29166.66666666667,"d":"$29,167"},{"v":29166.66666666667,"d":"$29,167"},{"v":29166.66666666667,"d":"$29,167"},{"v":29166.66666666667,"d":"$29,167"},{"v":29166.66666666667,"d":"$29,167"},{"v":29166.66666666667,"d":"$29,167"},{"$f":"SUM(BO37:BZ37)","v":{"v":350000.0000000002,"d":"$350,000"}},{"$f":"CB37","v":{"v":29166.66666666667,"d":"$29,167"}},{"v":29166.66666666667,"d":"$29,167"},{"v":29166.66666666667,"d":"$29,167"},{"v":29166.66666666667,"d":"$29,167"},{"v":29166.66666666667,"d":"$29,167"},{"v":29166.66666666667,"d":"$29,167"},{"v":29166.66666666667,"d":"$29,167"},{"v":29166.66666666667,"d":"$29,167"},{"v":29166.66666666667,"d":"$29,167"},{"v":29166.66666666667,"d":"$29,167"},{"v":29166.66666666667,"d":"$29,167"},{"v":29166.66666666667,"d":"$29,167"},{"$f":"SUM(CB37:CM37)","v":{"v":350000.0000000002,"d":"$350,000"}},{"$f":"CO37","v":{"v":29166.66666666667,"d":"$29,167"}},{"v":29166.66666666667,"d":"$29,167"},{"v":29166.66666666667,"d":"$29,167"},{"v":29166.66666666667,"d":"$29,167"},{"v":29166.66666666667,"d":"$29,167"},{"v":29166.66666666667,"d":"$29,167"},{"v":29166.66666666667,"d":"$29,167"},{"v":29166.66666666667,"d":"$29,167"},{"v":29166.66666666667,"d":"$29,167"},{"v":29166.66666666667,"d":"$29,167"},{"v":29166.66666666667,"d":"$29,167"},{"v":29166.66666666667,"d":"$29,167"},{"$f":"SUM(CO37:CZ37)","v":{"v":350000.0000000002,"d":"$350,000"}},{"$f":"DB37","v":{"v":29166.66666666667,"d":"$29,167"}},{"v":29166.66666666667,"d":"$29,167"},{"v":29166.66666666667,"d":"$29,167"},{"v":29166.66666666667,"d":"$29,167"},{"v":29166.66666666667,"d":"$29,167"},{"v":29166.66666666667,"d":"$29,167"},{"v":29166.66666666667,"d":"$29,167"},{"v":29166.66666666667,"d":"$29,167"},{"v":29166.66666666667,"d":"$29,167"},{"v":29166.66666666667,"d":"$29,167"},{"v":29166.66666666667,"d":"$29,167"},{"v":29166.66666666667,"d":"$29,167"},{"$f":"SUM(DB37:DM37)","v":{"v":350000.0000000002,"d":"$350,000"}},{"$f":"DO37","v":{"v":29166.66666666667,"d":"$29,167"}},{"v":29166.66666666667,"d":"$29,167"},{"v":29166.66666666667,"d":"$29,167"},{"v":29166.66666666667,"d":"$29,167"},{"v":29166.66666666667,"d":"$29,167"},{"v":29166.66666666667,"d":"$29,167"},{"v":29166.66666666667,"d":"$29,167"},{"v":29166.66666666667,"d":"$29,167"},{"v":29166.66666666667,"d":"$29,167"},{"v":29166.66666666667,"d":"$29,167"},{"v":29166.66666666667,"d":"$29,167"},{"v":29166.66666666667,"d":"$29,167"},{"$f":"SUM(DO37:DZ37)","v":{"v":350000.0000000002,"d":"$350,000"}},{"$f":"EB37","v":{"v":29166.66666666667,"d":"$29,167"}},{"v":29166.66666666667,"d":"$29,167"},{"v":29166.66666666667,"d":"$29,167"},{"v":29166.66666666667,"d":"$29,167"},{"v":29166.66666666667,"d":"$29,167"},{"v":29166.66666666667,"d":"$29,167"},{"v":29166.66666666667,"d":"$29,167"},{"v":29166.66666666667,"d":"$29,167"},{"v":29166.66666666667,"d":"$29,167"},{"v":29166.66666666667,"d":"$29,167"},{"v":29166.66666666667,"d":"$29,167"},{"v":29166.66666666667,"d":"$29,167"},{"$f":"SUM(EB37:EM37)","v":{"v":350000.0000000002,"d":"$350,000"}}]
[{"$f":"Labels!B52","v":"Gov Transfers"},{"$f":"B38","v":{"v":14583.333333333336,"d":"$14,583"}},{"v":14583.333333333336,"d":"$14,583"},{"v":14583.333333333336,"d":"$14,583"},{"v":14583.333333333336,"d":"$14,583"},{"v":14583.333333333336,"d":"$14,583"},{"v":14583.333333333336,"d":"$14,583"},{"v":14583.333333333336,"d":"$14,583"},{"v":14583.333333333336,"d":"$14,583"},{"v":14583.333333333336,"d":"$14,583"},{"v":14583.333333333336,"d":"$14,583"},{"v":14583.333333333336,"d":"$14,583"},{"v":14583.333333333336,"d":"$14,583"},{"$f":"SUM(B38:M38)","v":{"v":175000.0000000001,"d":"$175,000"}},{"$f":"O38","v":{"v":14583.333333333336,"d":"$14,583"}},{"v":14583.333333333336,"d":"$14,583"},{"v":14583.333333333336,"d":"$14,583"},{"v":14583.333333333336,"d":"$14,583"},{"v":14583.333333333336,"d":"$14,583"},{"v":14583.333333333336,"d":"$14,583"},{"v":14583.333333333336,"d":"$14,583"},{"v":14583.333333333336,"d":"$14,583"},{"v":14583.333333333336,"d":"$14,583"},{"v":14583.333333333336,"d":"$14,583"},{"v":14583.333333333336,"d":"$14,583"},{"v":14583.333333333336,"d":"$14,583"},{"$f":"SUM(O38:Z38)","v":{"v":175000.0000000001,"d":"$175,000"}},{"$f":"AB38","v":{"v":14583.333333333336,"d":"$14,583"}},{"v":14583.333333333336,"d":"$14,583"},{"v":14583.333333333336,"d":"$14,583"},{"v":14583.333333333336,"d":"$14,583"},{"v":14583.333333333336,"d":"$14,583"},{"v":14583.333333333336,"d":"$14,583"},{"v":14583.333333333336,"d":"$14,583"},{"v":14583.333333333336,"d":"$14,583"},{"v":14583.333333333336,"d":"$14,583"},{"v":14583.333333333336,"d":"$14,583"},{"v":14583.333333333336,"d":"$14,583"},{"v":14583.333333333336,"d":"$14,583"},{"$f":"SUM(AB38:AM38)","v":{"v":175000.0000000001,"d":"$175,000"}},{"$f":"AO38","v":{"v":14583.333333333336,"d":"$14,583"}},{"v":14583.333333333336,"d":"$14,583"},{"v":14583.333333333336,"d":"$14,583"},{"v":14583.333333333336,"d":"$14,583"},{"v":14583.333333333336,"d":"$14,583"},{"v":14583.333333333336,"d":"$14,583"},{"v":14583.333333333336,"d":"$14,583"},{"v":14583.333333333336,"d":"$14,583"},{"v":14583.333333333336,"d":"$14,583"},{"v":14583.333333333336,"d":"$14,583"},{"v":14583.333333333336,"d":"$14,583"},{"v":14583.333333333336,"d":"$14,583"},{"$f":"SUM(AO38:AZ38)","v":{"v":175000.0000000001,"d":"$175,000"}},{"$f":"BB38","v":{"v":14583.333333333336,"d":"$14,583"}},{"v":14583.333333333336,"d":"$14,583"},{"v":14583.333333333336,"d":"$14,583"},{"v":14583.333333333336,"d":"$14,583"},{"v":14583.333333333336,"d":"$14,583"},{"v":14583.333333333336,"d":"$14,583"},{"v":14583.333333333336,"d":"$14,583"},{"v":14583.333333333336,"d":"$14,583"},{"v":14583.333333333336,"d":"$14,583"},{"v":14583.333333333336,"d":"$14,583"},{"v":14583.333333333336,"d":"$14,583"},{"v":14583.333333333336,"d":"$14,583"},{"$f":"SUM(BB38:BM38)","v":{"v":175000.0000000001,"d":"$175,000"}},{"$f":"BO38","v":{"v":14583.333333333336,"d":"$14,583"}},{"v":14583.333333333336,"d":"$14,583"},{"v":14583.333333333336,"d":"$14,583"},{"v":14583.333333333336,"d":"$14,583"},{"v":14583.333333333336,"d":"$14,583"},{"v":14583.333333333336,"d":"$14,583"},{"v":14583.333333333336,"d":"$14,583"},{"v":14583.333333333336,"d":"$14,583"},{"v":14583.333333333336,"d":"$14,583"},{"v":14583.333333333336,"d":"$14,583"},{"v":14583.333333333336,"d":"$14,583"},{"v":14583.333333333336,"d":"$14,583"},{"$f":"SUM(BO38:BZ38)","v":{"v":175000.0000000001,"d":"$175,000"}},{"$f":"CB38","v":{"v":14583.333333333336,"d":"$14,583"}},{"v":14583.333333333336,"d":"$14,583"},{"v":14583.333333333336,"d":"$14,583"},{"v":14583.333333333336,"d":"$14,583"},{"v":14583.333333333336,"d":"$14,583"},{"v":14583.333333333336,"d":"$14,583"},{"v":14583.333333333336,"d":"$14,583"},{"v":14583.333333333336,"d":"$14,583"},{"v":14583.333333333336,"d":"$14,583"},{"v":14583.333333333336,"d":"$14,583"},{"v":14583.333333333336,"d":"$14,583"},{"v":14583.333333333336,"d":"$14,583"},{"$f":"SUM(CB38:CM38)","v":{"v":175000.0000000001,"d":"$175,000"}},{"$f":"CO38","v":{"v":14583.333333333336,"d":"$14,583"}},{"v":14583.333333333336,"d":"$14,583"},{"v":14583.333333333336,"d":"$14,583"},{"v":14583.333333333336,"d":"$14,583"},{"v":14583.333333333336,"d":"$14,583"},{"v":14583.333333333336,"d":"$14,583"},{"v":14583.333333333336,"d":"$14,583"},{"v":14583.333333333336,"d":"$14,583"},{"v":14583.333333333336,"d":"$14,583"},{"v":14583.333333333336,"d":"$14,583"},{"v":14583.333333333336,"d":"$14,583"},{"v":14583.333333333336,"d":"$14,583"},{"$f":"SUM(CO38:CZ38)","v":{"v":175000.0000000001,"d":"$175,000"}},{"$f":"DB38","v":{"v":14583.333333333336,"d":"$14,583"}},{"v":14583.333333333336,"d":"$14,583"},{"v":14583.333333333336,"d":"$14,583"},{"v":14583.333333333336,"d":"$14,583"},{"v":14583.333333333336,"d":"$14,583"},{"v":14583.333333333336,"d":"$14,583"},{"v":14583.333333333336,"d":"$14,583"},{"v":14583.333333333336,"d":"$14,583"},{"v":14583.333333333336,"d":"$14,583"},{"v":14583.333333333336,"d":"$14,583"},{"v":14583.333333333336,"d":"$14,583"},{"v":14583.333333333336,"d":"$14,583"},{"$f":"SUM(DB38:DM38)","v":{"v":175000.0000000001,"d":"$175,000"}},{"$f":"DO38","v":{"v":14583.333333333336,"d":"$14,583"}},{"v":14583.333333333336,"d":"$14,583"},{"v":14583.333333333336,"d":"$14,583"},{"v":14583.333333333336,"d":"$14,583"},{"v":14583.333333333336,"d":"$14,583"},{"v":14583.333333333336,"d":"$14,583"},{"v":14583.333333333336,"d":"$14,583"},{"v":14583.333333333336,"d":"$14,583"},{"v":14583.333333333336,"d":"$14,583"},{"v":14583.333333333336,"d":"$14,583"},{"v":14583.333333333336,"d":"$14,583"},{"v":14583.333333333336,"d":"$14,583"},{"$f":"SUM(DO38:DZ38)","v":{"v":175000.0000000001,"d":"$175,000"}},{"$f":"EB38","v":{"v":14583.333333333336,"d":"$14,583"}},{"v":14583.333333333336,"d":"$14,583"},{"v":14583.333333333336,"d":"$14,583"},{"v":14583.333333333336,"d":"$14,583"},{"v":14583.333333333336,"d":"$14,583"},{"v":14583.333333333336,"d":"$14,583"},{"v":14583.333333333336,"d":"$14,583"},{"v":14583.333333333336,"d":"$14,583"},{"v":14583.333333333336,"d":"$14,583"},{"v":14583.333333333336,"d":"$14,583"},{"v":14583.333333333336,"d":"$14,583"},{"v":14583.333333333336,"d":"$14,583"},{"$f":"SUM(EB38:EM38)","v":{"v":175000.0000000001,"d":"$175,000"}}]
[{"$f":"Labels!B83","v":"Tax"},{"$f":"Inputs!B52*B44","v":{"v":360647.64564615296,"d":"$360,648"}},{"$f":"Inputs!B52*C44","v":{"v":336013.8062429053,"d":"$336,014"}},{"$f":"Inputs!B52*D44","v":{"v":352973.8565126718,"d":"$352,974"}},{"$f":"Inputs!B52*E44","v":{"v":345288.1359250792,"d":"$345,288"}},{"$f":"Inputs!B52*F44","v":{"v":347685.9577515472,"d":"$347,686"}},{"$f":"Inputs!B52*G44","v":{"v":350321.3396997237,"d":"$350,321"}},{"$f":"Inputs!B52*H44","v":{"v":358003.3432080288,"d":"$358,003"}},{"$f":"Inputs!B52*I44","v":{"v":347668.90367299743,"d":"$347,669"}},{"$f":"Inputs!B52*J44","v":{"v":351048.5365406638,"d":"$351,049"}},{"$f":"Inputs!B52*K44","v":{"v":350855.63226123486,"d":"$350,856"}},{"$f":"Inputs!B52*L44","v":{"v":347376.1225370703,"d":"$347,376"}},{"$f":"Inputs!B52*M44","v":{"v":357505.482272789,"d":"$357,505"}},{"$f":"SUM(B54:M54)","v":{"v":4205388.762270865,"d":"$4,205,389"}},{"$f":"Inputs!B52*O44","v":{"v":339597.0978556878,"d":"$339,597"}},{"$f":"Inputs!B52*P44","v":{"v":353853.94054750784,"d":"$353,854"}},{"$f":"Inputs!B52*Q44","v":{"v":343226.9232063601,"d":"$343,227"}},{"$f":"Inputs!B52*R44","v":{"v":344345.52130676655,"d":"$344,346"}},{"$f":"Inputs!B52*S44","v":{"v":339009.1848264737,"d":"$339,009"}},{"$f":"Inputs!B52*T44","v":{"v":332624.77512030397,"d":"$332,625"}},{"$f":"Inputs!B52*U44","v":{"v":336138.6743903658,"d":"$336,139"}},{"$f":"Inputs!B52*V44","v":{"v":341650.7017359576,"d":"$341,651"}},{"$f":"Inputs!B52*W44","v":{"v":345405.7038092142,"d":"$345,406"}},{"$f":"Inputs!B52*X44","v":{"v":342176.45077317953,"d":"$342,176"}},{"$f":"Inputs!B52*Y44","v":{"v":352154.4459404236,"d":"$352,154"}},{"$f":"Inputs!B52*Z44","v":{"v":338809.62975241715,"d":"$338,810"}},{"$f":"SUM(O54:Z54)","v":{"v":4108993.049264658,"d":"$4,108,993"}},{"$f":"Inputs!B52*AB44","v":{"v":337709.7862206025,"d":"$337,710"}},{"$f":"Inputs!B52*AC44","v":{"v":342696.4700196678,"d":"$342,696"}},{"$f":"Inputs!B52*AD44","v":{"v":349578.80568850134,"d":"$349,579"}},{"$f":"Inputs!B52*AE44","v":{"v":330543.3183333589,"d":"$330,543"}},{"$f":"Inputs!B52*AF44","v":{"v":330185.99753793754,"d":"$330,186"}},{"$f":"Inputs!B52*AG44","v":{"v":340144.1860096626,"d":"$340,144"}},{"$f":"Inputs!B52*AH44","v":{"v":338528.5119176238,"d":"$338,529"}},{"$f":"Inputs!B52*AI44","v":{"v":330967.339404301,"d":"$330,967"}},{"$f":"Inputs!B52*AJ44","v":{"v":327448.78874432214,"d":"$327,449"}},{"$f":"Inputs!B52*AK44","v":{"v":338824.52374500607,"d":"$338,825"}},{"$f":"Inputs!B52*AL44","v":{"v":346273.8404704195,"d":"$346,274"}},{"$f":"Inputs!B52*AM44","v":{"v":347152.22862317855,"d":"$347,152"}},{"$f":"SUM(AB54:AM54)","v":{"v":4060053.7967145815,"d":"$4,060,054"}},{"$f":"Inputs!B52*AO44","v":{"v":317497.4648459988,"d":"$317,497"}},{"$f":"Inputs!B52*AP44","v":{"v":331868.56925938826,"d":"$331,869"}},{"$f":"Inputs!B52*AQ44","v":{"v":345550.05054516136,"d":"$345,550"}},{"$f":"Inputs!B52*AR44","v":{"v":329816.20457447885,"d":"$329,816"}},{"$f":"Inputs!B52*AS44","v":{"v":328259.31349197094,"d":"$328,259"}},{"$f":"Inputs!B52*AT44","v":{"v":326933.6902313089,"d":"$326,934"}},{"$f":"Inputs!B52*AU44","v":{"v":328238.13771651965,"d":"$328,238"}},{"$f":"Inputs!B52*AV44","v":{"v":340488.7578287242,"d":"$340,489"}},{"$f":"Inputs!B52*AW44","v":{"v":328411.53863393795,"d":"$328,412"}},{"$f":"Inputs!B52*AX44","v":{"v":317666.9350002082,"d":"$317,667"}},{"$f":"Inputs!B52*AY44","v":{"v":343430.31572563946,"d":"$343,430"}},{"$f":"Inputs!B52*AZ44","v":{"v":327147.0060275391,"d":"$327,147"}},{"$f":"SUM(AO54:AZ54)","v":{"v":3965307.9838808756,"d":"$3,965,308"}},{"$f":"Inputs!B52*BB44","v":{"v":322874.58148660435,"d":"$322,875"}},{"$f":"Inputs!B52*BC44","v":{"v":332357.67369238293,"d":"$332,358"}},{"$f":"Inputs!B52*BD44","v":{"v":338600.8141479231,"d":"$338,601"}},{"$f":"Inputs!B52*BE44","v":{"v":334559.6010039365,"d":"$334,560"}},{"$f":"Inputs!B52*BF44","v":{"v":321841.98732599686,"d":"$321,842"}},{"$f":"Inputs!B52*BG44","v":{"v":334990.2236258436,"d":"$334,990"}},{"$f":"Inputs!B52*BH44","v":{"v":335875.631738274,"d":"$335,876"}},{"$f":"Inputs!B52*BI44","v":{"v":344368.5698863723,"d":"$344,369"}},{"$f":"Inputs!B52*BJ44","v":{"v":339187.320023259,"d":"$339,187"}},{"$f":"Inputs!B52*BK44","v":{"v":342796.9102476219,"d":"$342,797"}},{"$f":"Inputs!B52*BL44","v":{"v":332795.7543526504,"d":"$332,796"}},{"$f":"Inputs!B52*BM44","v":{"v":319831.98465601914,"d":"$319,832"}},{"$f":"SUM(BB54:BM54)","v":{"v":4000081.052186885,"d":"$4,000,081"}},{"$f":"Inputs!B52*BO44","v":{"v":336244.8655974078,"d":"$336,245"}},{"$f":"Inputs!B52*BP44","v":{"v":338801.33191916597,"d":"$338,801"}},{"$f":"Inputs!B52*BQ44","v":{"v":322479.020490827,"d":"$322,479"}},{"$f":"Inputs!B52*BR44","v":{"v":323374.25917703763,"d":"$323,374"}},{"$f":"Inputs!B52*BS44","v":{"v":316107.36487070523,"d":"$316,107"}},{"$f":"Inputs!B52*BT44","v":{"v":326993.577207538,"d":"$326,994"}},{"$f":"Inputs!B52*BU44","v":{"v":326895.8951024665,"d":"$326,896"}},{"$f":"Inputs!B52*BV44","v":{"v":323912.61954072816,"d":"$323,913"}},{"$f":"Inputs!B52*BW44","v":{"v":332899.60913382703,"d":"$332,900"}},{"$f":"Inputs!B52*BX44","v":{"v":317186.90784133854,"d":"$317,187"}},{"$f":"Inputs!B52*BY44","v":{"v":325550.71548695175,"d":"$325,551"}},{"$f":"Inputs!B52*BZ44","v":{"v":324258.03669548326,"d":"$324,258"}},{"$f":"SUM(BO54:BZ54)","v":{"v":3914704.2030634773,"d":"$3,914,704"}},{"$f":"Inputs!B52*CB44","v":{"v":322856.51688997645,"d":"$322,857"}},{"$f":"Inputs!B52*CC44","v":{"v":315070.9526813711,"d":"$315,071"}},{"$f":"Inputs!B52*CD44","v":{"v":308262.8092411544,"d":"$308,263"}},{"$f":"Inputs!B52*CE44","v":{"v":325637.53876056394,"d":"$325,638"}},{"$f":"Inputs!B52*CF44","v":{"v":326755.2141748052,"d":"$326,755"}},{"$f":"Inputs!B52*CG44","v":{"v":314174.2739654112,"d":"$314,174"}},{"$f":"Inputs!B52*CH44","v":{"v":325969.8969463259,"d":"$325,970"}},{"$f":"Inputs!B52*CI44","v":{"v":306564.7722400888,"d":"$306,565"}},{"$f":"Inputs!B52*CJ44","v":{"v":316225.5945573481,"d":"$316,226"}},{"$f":"Inputs!B52*CK44","v":{"v":325472.5616028497,"d":"$325,473"}},{"$f":"Inputs!B52*CL44","v":{"v":322991.7775682616,"d":"$322,992"}},{"$f":"Inputs!B52*CM44","v":{"v":308041.80950189504,"d":"$308,042"}},{"$f":"SUM(CB54:CM54)","v":{"v":3818023.718130051,"d":"$3,818,024"}},{"$f":"Inputs!B52*CO44","v":{"v":302917.5780611117,"d":"$302,918"}},{"$f":"Inputs!B52*CP44","v":{"v":319602.7964194383,"d":"$319,603"}},{"$f":"Inputs!B52*CQ44","v":{"v":324692.9826941064,"d":"$324,693"}},{"$f":"Inputs!B52*CR44","v":{"v":316985.9129036278,"d":"$316,986"}},{"$f":"Inputs!B52*CS44","v":{"v":308126.70197857893,"d":"$308,127"}},{"$f":"Inputs!B52*CT44","v":{"v":307945.0341527243,"d":"$307,945"}},{"$f":"Inputs!B52*CU44","v":{"v":305941.7105097907,"d":"$305,942"}},{"$f":"Inputs!B52*CV44","v":{"v":312015.8112990556,"d":"$312,016"}},{"$f":"Inputs!B52*CW44","v":{"v":304399.5299278424,"d":"$304,400"}},{"$f":"Inputs!B52*CX44","v":{"v":301311.0336265895,"d":"$301,311"}},{"$f":"Inputs!B52*CY44","v":{"v":320842.76976510126,"d":"$320,843"}},{"$f":"Inputs!B52*CZ44","v":{"v":319907.11881885334,"d":"$319,907"}},{"$f":"SUM(CO54:CZ54)","v":{"v":3744688.9801568203,"d":"$3,744,689"}},{"$f":"Inputs!B52*DB44","v":{"v":300889.1044450579,"d":"$300,889"}},{"$f":"Inputs!B52*DC44","v":{"v":312843.63362420385,"d":"$312,844"}},{"$f":"Inputs!B52*DD44","v":{"v":314889.5832054918,"d":"$314,890"}},{"$f":"Inputs!B52*DE44","v":{"v":322954.3251696766,"d":"$322,954"}},{"$f":"Inputs!B52*DF44","v":{"v":300346.1213364851,"d":"$300,346"}},{"$f":"Inputs!B52*DG44","v":{"v":306534.5672247732,"d":"$306,535"}},{"$f":"Inputs!B52*DH44","v":{"v":320369.72128857125,"d":"$320,370"}},{"$f":"Inputs!B52*DI44","v":{"v":312483.08651055046,"d":"$312,483"}},{"$f":"Inputs!B52*DJ44","v":{"v":327049.7794595655,"d":"$327,050"}},{"$f":"Inputs!B52*DK44","v":{"v":310797.8159828278,"d":"$310,798"}},{"$f":"Inputs!B52*DL44","v":{"v":312711.3222498309,"d":"$312,711"}},{"$f":"Inputs!B52*DM44","v":{"v":322229.91865688405,"d":"$322,230"}},{"$f":"SUM(DB54:DM54)","v":{"v":3764098.979153918,"d":"$3,764,099"}},{"$f":"Inputs!B52*DO44","v":{"v":300465.3470211041,"d":"$300,465"}},{"$f":"Inputs!B52*DP44","v":{"v":300294.76582069386,"d":"$300,295"}},{"$f":"Inputs!B52*DQ44","v":{"v":309930.7540555336,"d":"$309,931"}},{"$f":"Inputs!B52*DR44","v":{"v":308905.229931693,"d":"$308,905"}},{"$f":"Inputs!B52*DS44","v":{"v":304050.5327926152,"d":"$304,051"}},{"$f":"Inputs!B52*DT44","v":{"v":305696.5224368342,"d":"$305,697"}},{"$f":"Inputs!B52*DU44","v":{"v":322559.746836901,"d":"$322,560"}},{"$f":"Inputs!B52*DV44","v":{"v":315436.3143234191,"d":"$315,436"}},{"$f":"Inputs!B52*DW44","v":{"v":299150.8541171874,"d":"$299,151"}},{"$f":"Inputs!B52*DX44","v":{"v":300417.7046251554,"d":"$300,418"}},{"$f":"Inputs!B52*DY44","v":{"v":306215.6689141733,"d":"$306,216"}},{"$f":"Inputs!B52*DZ44","v":{"v":308389.69165849965,"d":"$308,390"}},{"$f":"SUM(DO54:DZ54)","v":{"v":3681513.1325338096,"d":"$3,681,513"}},{"$f":"Inputs!B52*EB44","v":{"v":309038.1899914942,"d":"$309,038"}},{"$f":"Inputs!B52*EC44","v":{"v":297331.2739423115,"d":"$297,331"}},{"$f":"Inputs!B52*ED44","v":{"v":293084.0219522526,"d":"$293,084"}},{"$f":"Inputs!B52*EE44","v":{"v":317179.34795237344,"d":"$317,179"}},{"$f":"Inputs!B52*EF44","v":{"v":298606.3237127533,"d":"$298,606"}},{"$f":"Inputs!B52*EG44","v":{"v":303236.49016260356,"d":"$303,236"}},{"$f":"Inputs!B52*EH44","v":{"v":313789.2763130012,"d":"$313,789"}},{"$f":"Inputs!B52*EI44","v":{"v":296141.6169912215,"d":"$296,142"}},{"$f":"Inputs!B52*EJ44","v":{"v":298847.2537115052,"d":"$298,847"}},{"$f":"Inputs!B52*EK44","v":{"v":295385.53007035103,"d":"$295,386"}},{"$f":"Inputs!B52*EL44","v":{"v":303474.7469159301,"d":"$303,475"}},{"$f":"Inputs!B52*EM44","v":{"v":298222.81305845873,"d":"$298,223"}},{"$f":"SUM(EB54:EM54)","v":{"v":3624336.884774256,"d":"$3,624,337"}}]
[]
[]
[{"$f":"\"Stochastic Shocks\"","v":"Stochastic Shocks"}]
[{"$f":"\" \"","v":" "}]
[null,{"$f":"ZZZ__FnCalls!F7","v":"Jan 2010"},{"$f":"ZZZ__FnCalls!F8","v":"Feb 2010"},{"$f":"ZZZ__FnCalls!F9","v":"Mar 2010"},{"$f":"ZZZ__FnCalls!F10","v":"Apr 2010"},{"$f":"ZZZ__FnCalls!F11","v":"May 2010"},{"$f":"ZZZ__FnCalls!F12","v":"Jun 2010"},{"$f":"ZZZ__FnCalls!F13","v":"Jul 2010"},{"$f":"ZZZ__FnCalls!F14","v":"Aug 2010"},{"$f":"ZZZ__FnCalls!F15","v":"Sep 2010"},{"$f":"ZZZ__FnCalls!F16","v":"Oct 2010"},{"$f":"ZZZ__FnCalls!F17","v":"Nov 2010"},{"$f":"ZZZ__FnCalls!F18","v":"Dec 2010"},{"$f":"ZZZ__FnCalls!H7","v":"2010"},{"$f":"ZZZ__FnCalls!F19","v":"Jan 2011"},{"$f":"ZZZ__FnCalls!F20","v":"Feb 2011"},{"$f":"ZZZ__FnCalls!F21","v":"Mar 2011"},{"$f":"ZZZ__FnCalls!F22","v":"Apr 2011"},{"$f":"ZZZ__FnCalls!F23","v":"May 2011"},{"$f":"ZZZ__FnCalls!F24","v":"Jun 2011"},{"$f":"ZZZ__FnCalls!F25","v":"Jul 2011"},{"$f":"ZZZ__FnCalls!F26","v":"Aug 2011"},{"$f":"ZZZ__FnCalls!F27","v":"Sep 2011"},{"$f":"ZZZ__FnCalls!F28","v":"Oct 2011"},{"$f":"ZZZ__FnCalls!F29","v":"Nov 2011"},{"$f":"ZZZ__FnCalls!F30","v":"Dec 2011"},{"$f":"ZZZ__FnCalls!H19","v":"2011"},{"$f":"ZZZ__FnCalls!F31","v":"Jan 2012"},{"$f":"ZZZ__FnCalls!F32","v":"Feb 2012"},{"$f":"ZZZ__FnCalls!F33","v":"Mar 2012"},{"$f":"ZZZ__FnCalls!F34","v":"Apr 2012"},{"$f":"ZZZ__FnCalls!F35","v":"May 2012"},{"$f":"ZZZ__FnCalls!F36","v":"Jun 2012"},{"$f":"ZZZ__FnCalls!F37","v":"Jul 2012"},{"$f":"ZZZ__FnCalls!F38","v":"Aug 2012"},{"$f":"ZZZ__FnCalls!F39","v":"Sep 2012"},{"$f":"ZZZ__FnCalls!F40","v":"Oct 2012"},{"$f":"ZZZ__FnCalls!F41","v":"Nov 2012"},{"$f":"ZZZ__FnCalls!F42","v":"Dec 2012"},{"$f":"ZZZ__FnCalls!H31","v":"2012"},{"$f":"ZZZ__FnCalls!F43","v":"Jan 2013"},{"$f":"ZZZ__FnCalls!F44","v":"Feb 2013"},{"$f":"ZZZ__FnCalls!F45","v":"Mar 2013"},{"$f":"ZZZ__FnCalls!F46","v":"Apr 2013"},{"$f":"ZZZ__FnCalls!F47","v":"May 2013"},{"$f":"ZZZ__FnCalls!F48","v":"Jun 2013"},{"$f":"ZZZ__FnCalls!F49","v":"Jul 2013"},{"$f":"ZZZ__FnCalls!F50","v":"Aug 2013"},{"$f":"ZZZ__FnCalls!F51","v":"Sep 2013"},{"$f":"ZZZ__FnCalls!F52","v":"Oct 2013"},{"$f":"ZZZ__FnCalls!F53","v":"Nov 2013"},{"$f":"ZZZ__FnCalls!F54","v":"Dec 2013"},{"$f":"ZZZ__FnCalls!H43","v":"2013"},{"$f":"ZZZ__FnCalls!F55","v":"Jan 2014"},{"$f":"ZZZ__FnCalls!F56","v":"Feb 2014"},{"$f":"ZZZ__FnCalls!F57","v":"Mar 2014"},{"$f":"ZZZ__FnCalls!F58","v":"Apr 2014"},{"$f":"ZZZ__FnCalls!F59","v":"May 2014"},{"$f":"ZZZ__FnCalls!F60","v":"Jun 2014"},{"$f":"ZZZ__FnCalls!F61","v":"Jul 2014"},{"$f":"ZZZ__FnCalls!F62","v":"Aug 2014"},{"$f":"ZZZ__FnCalls!F63","v":"Sep 2014"},{"$f":"ZZZ__FnCalls!F64","v":"Oct 2014"},{"$f":"ZZZ__FnCalls!F65","v":"Nov 2014"},{"$f":"ZZZ__FnCalls!F66","v":"Dec 2014"},{"$f":"ZZZ__FnCalls!H55","v":"2014"},{"$f":"ZZZ__FnCalls!F67","v":"Jan 2015"},{"$f":"ZZZ__FnCalls!F68","v":"Feb 2015"},{"$f":"ZZZ__FnCalls!F69","v":"Mar 2015"},{"$f":"ZZZ__FnCalls!F70","v":"Apr 2015"},{"$f":"ZZZ__FnCalls!F71","v":"May 2015"},{"$f":"ZZZ__FnCalls!F72","v":"Jun 2015"},{"$f":"ZZZ__FnCalls!F73","v":"Jul 2015"},{"$f":"ZZZ__FnCalls!F74","v":"Aug 2015"},{"$f":"ZZZ__FnCalls!F75","v":"Sep 2015"},{"$f":"ZZZ__FnCalls!F76","v":"Oct 2015"},{"$f":"ZZZ__FnCalls!F77","v":"Nov 2015"},{"$f":"ZZZ__FnCalls!F78","v":"Dec 2015"},{"$f":"ZZZ__FnCalls!H67","v":"2015"},{"$f":"ZZZ__FnCalls!F79","v":"Jan 2016"},{"$f":"ZZZ__FnCalls!F80","v":"Feb 2016"},{"$f":"ZZZ__FnCalls!F81","v":"Mar 2016"},{"$f":"ZZZ__FnCalls!F82","v":"Apr 2016"},{"$f":"ZZZ__FnCalls!F83","v":"May 2016"},{"$f":"ZZZ__FnCalls!F84","v":"Jun 2016"},{"$f":"ZZZ__FnCalls!F85","v":"Jul 2016"},{"$f":"ZZZ__FnCalls!F86","v":"Aug 2016"},{"$f":"ZZZ__FnCalls!F87","v":"Sep 2016"},{"$f":"ZZZ__FnCalls!F88","v":"Oct 2016"},{"$f":"ZZZ__FnCalls!F89","v":"Nov 2016"},{"$f":"ZZZ__FnCalls!F90","v":"Dec 2016"},{"$f":"ZZZ__FnCalls!H79","v":"2016"},{"$f":"ZZZ__FnCalls!F91","v":"Jan 2017"},{"$f":"ZZZ__FnCalls!F92","v":"Feb 2017"},{"$f":"ZZZ__FnCalls!F93","v":"Mar 2017"},{"$f":"ZZZ__FnCalls!F94","v":"Apr 2017"},{"$f":"ZZZ__FnCalls!F95","v":"May 2017"},{"$f":"ZZZ__FnCalls!F96","v":"Jun 2017"},{"$f":"ZZZ__FnCalls!F97","v":"Jul 2017"},{"$f":"ZZZ__FnCalls!F98","v":"Aug 2017"},{"$f":"ZZZ__FnCalls!F99","v":"Sep 2017"},{"$f":"ZZZ__FnCalls!F100","v":"Oct 2017"},{"$f":"ZZZ__FnCalls!F101","v":"Nov 2017"},{"$f":"ZZZ__FnCalls!F102","v":"Dec 2017"},{"$f":"ZZZ__FnCalls!H91","v":"2017"},{"$f":"ZZZ__FnCalls!F103","v":"Jan 2018"},{"$f":"ZZZ__FnCalls!F104","v":"Feb 2018"},{"$f":"ZZZ__FnCalls!F105","v":"Mar 2018"},{"$f":"ZZZ__FnCalls!F106","v":"Apr 2018"},{"$f":"ZZZ__FnCalls!F107","v":"May 2018"},{"$f":"ZZZ__FnCalls!F108","v":"Jun 2018"},{"$f":"ZZZ__FnCalls!F109","v":"Jul 2018"},{"$f":"ZZZ__FnCalls!F110","v":"Aug 2018"},{"$f":"ZZZ__FnCalls!F111","v":"Sep 2018"},{"$f":"ZZZ__FnCalls!F112","v":"Oct 2018"},{"$f":"ZZZ__FnCalls!F113","v":"Nov 2018"},{"$f":"ZZZ__FnCalls!F114","v":"Dec 2018"},{"$f":"ZZZ__FnCalls!H103","v":"2018"},{"$f":"ZZZ__FnCalls!F115","v":"Jan 2019"},{"$f":"ZZZ__FnCalls!F116","v":"Feb 2019"},{"$f":"ZZZ__FnCalls!F117","v":"Mar 2019"},{"$f":"ZZZ__FnCalls!F118","v":"Apr 2019"},{"$f":"ZZZ__FnCalls!F119","v":"May 2019"},{"$f":"ZZZ__FnCalls!F120","v":"Jun 2019"},{"$f":"ZZZ__FnCalls!F121","v":"Jul 2019"},{"$f":"ZZZ__FnCalls!F122","v":"Aug 2019"},{"$f":"ZZZ__FnCalls!F123","v":"Sep 2019"},{"$f":"ZZZ__FnCalls!F124","v":"Oct 2019"},{"$f":"ZZZ__FnCalls!F125","v":"Nov 2019"},{"$f":"ZZZ__FnCalls!F126","v":"Dec 2019"},{"$f":"ZZZ__FnCalls!H115","v":"2019"},{"$f":"ZZZ__FnCalls!F127","v":"Jan 2020"},{"$f":"ZZZ__FnCalls!F128","v":"Feb 2020"},{"$f":"ZZZ__FnCalls!F129","v":"Mar 2020"},{"$f":"ZZZ__FnCalls!F130","v":"Apr 2020"},{"$f":"ZZZ__FnCalls!F131","v":"May 2020"},{"$f":"ZZZ__FnCalls!F132","v":"Jun 2020"},{"$f":"ZZZ__FnCalls!F133","v":"Jul 2020"},{"$f":"ZZZ__FnCalls!F134","v":"Aug 2020"},{"$f":"ZZZ__FnCalls!F135","v":"Sep 2020"},{"$f":"ZZZ__FnCalls!F136","v":"Oct 2020"},{"$f":"ZZZ__FnCalls!F137","v":"Nov 2020"},{"$f":"ZZZ__FnCalls!F138","v":"Dec 2020"},{"$f":"ZZZ__FnCalls!H127","v":"2020"}]
[{"$f":"Labels!B74","v":"Aggregate Demand Shock"},{"$f":"B13","v":{"v":-23263.291170993074,"d":"($23,263)"}},{"v":37352.58148735928,"d":"$37,353"},{"v":20599.54171157301,"d":"$20,600"},{"v":462.7448889584654,"d":"$463"},{"v":50390.09407522989,"d":"$50,390"},{"v":19337.335098716074,"d":"$19,337"},{"v":-11165.142729841102,"d":"($11,165)"},{"v":-1027.5579622681478,"d":"($1,028)"},{"v":16780.966761077627,"d":"$16,781"},{"v":59923.62802364573,"d":"$59,924"},{"v":38230.72942219271,"d":"$38,231"},{"v":22395.71198365138,"d":"$22,396"},{"$f":"SUM(B13:M13)","v":{"v":230017.34158930182,"d":"$230,017"}},{"$f":"O13","v":{"v":-10747.810999262085,"d":"($10,748)"}},{"v":7448.232611076895,"d":"$7,448"},{"v":-57760.17731524175,"d":"($57,760)"},{"v":22531.4540898322,"d":"$22,531"},{"v":-49074.732633205014,"d":"($49,075)"},{"v":-28518.99029125759,"d":"($28,519)"},{"v":-43428.56296360316,"d":"($43,429)"},{"v":-44371.84461177123,"d":"($44,372)"},{"v":-12068.303274313834,"d":"($12,068)"},{"v":-3141.679384431667,"d":"($3,142)"},{"v":44968.59421724215,"d":"$44,969"},{"v":-20657.062741323705,"d":"($20,657)"},{"$f":"SUM(O13:Z13)","v":{"v":-194820.88329625878,"d":"($194,821)"}},{"$f":"AB13","v":{"v":5919.145050182705,"d":"$5,919"}},{"v":62728.36022843444,"d":"$62,728"},{"v":-17134.23112582682,"d":"($17,134)"},{"v":-29654.579796590042,"d":"($29,655)"},{"v":749.9377631274501,"d":"$750"},{"v":-2809.2261807088967,"d":"($2,809)"},{"v":17736.180848201122,"d":"$17,736"},{"v":-11516.822357939305,"d":"($11,517)"},{"v":50798.7153098439,"d":"$50,799"},{"v":11988.090409158405,"d":"$11,988"},{"v":-8061.152956792395,"d":"($8,061)"},{"v":-30305.093050000047,"d":"($30,305)"},{"$f":"SUM(AB13:AM13)","v":{"v":50439.32414109051,"d":"$50,439"}},{"$f":"AO13","v":{"v":-30090.825261952385,"d":"($30,091)"}},{"v":62288.36190749998,"d":"$62,288"},{"v":-36782.2385670931,"d":"($36,782)"},{"v":31367.721081554595,"d":"$31,368"},{"v":8600.319646928558,"d":"$8,600"},{"v":28987.361992361755,"d":"$28,987"},{"v":-1975.9811363073043,"d":"($1,976)"},{"v":-20630.6438355351,"d":"($20,631)"},{"v":315.8604919395329,"d":"$316"},{"v":43999.797431950814,"d":"$44,000"},{"v":17041.258262461153,"d":"$17,041"},{"v":-32759.220780023545,"d":"($32,759)"},{"$f":"SUM(AO13:AZ13)","v":{"v":70361.77123378495,"d":"$70,362"}},{"$f":"BB13","v":{"v":-35941.45826663379,"d":"($35,941)"}},{"v":8633.339224207995,"d":"$8,633"},{"v":-14862.078154496352,"d":"($14,862)"},{"v":34565.5245722318,"d":"$34,566"},{"v":14918.8953491542,"d":"$14,919"},{"v":13113.841820257348,"d":"$13,114"},{"v":21176.138983951463,"d":"$21,176"},{"v":-7570.375707656073,"d":"($7,570)"},{"v":-9260.084016018067,"d":"($9,260)"},{"v":-42753.010578778936,"d":"($42,753)"},{"v":12003.858847842217,"d":"$12,004"},{"v":-29024.6023901376,"d":"($29,025)"},{"$f":"SUM(BB13:BM13)","v":{"v":-35000.0103160758,"d":"($35,000)"}},{"$f":"BO13","v":{"v":18883.679708387335,"d":"$18,884"}},{"v":-18434.35384088135,"d":"($18,434)"},{"v":53906.886340206125,"d":"$53,907"},{"v":23301.67087106113,"d":"$23,302"},{"v":5233.700950206016,"d":"$5,234"},{"v":-44242.39940965406,"d":"($44,242)"},{"v":-31136.37125057403,"d":"($31,136)"},{"v":-9587.264036205625,"d":"($9,587)"},{"v":31280.60930285094,"d":"$31,281"},{"v":-31987.124504165633,"d":"($31,987)"},{"v":-43469.37514326484,"d":"($43,469)"},{"v":33899.17017837829,"d":"$33,899"},{"$f":"SUM(BO13:BZ13)","v":{"v":-12351.170833655706,"d":"($12,351)"}},{"$f":"CB13","v":{"v":-6618.255980651439,"d":"($6,618)"}},{"v":-41440.677453396725,"d":"($41,441)"},{"v":39124.77401629471,"d":"$39,125"},{"v":-31326.808770672735,"d":"($31,327)"},{"v":-2241.2672512096087,"d":"($2,241)"},{"v":12493.361239254536,"d":"$12,493"},{"v":-3288.8404851045834,"d":"($3,289)"},{"v":7822.73203938388,"d":"$7,823"},{"v":1112.1657396903713,"d":"$1,112"},{"v":-47749.87602196945,"d":"($47,750)"},{"v":27788.24303466581,"d":"$27,788"},{"v":594.0932211648086,"d":"$594"},{"$f":"SUM(CB13:CM13)","v":{"v":-43730.35667255043,"d":"($43,730)"}},{"$f":"CO13","v":{"v":-29021.11979746154,"d":"($29,021)"}},{"v":27660.461789601013,"d":"$27,660"},{"v":-58192.250260077555,"d":"($58,192)"},{"v":-4105.8004943787055,"d":"($4,106)"},{"v":-50214.53711772717,"d":"($50,215)"},{"v":8934.021472546425,"d":"$8,934"},{"v":-39181.41810824992,"d":"($39,181)"},{"v":7060.7204627593865,"d":"$7,061"},{"v":-46489.19610146658,"d":"($46,489)"},{"v":34437.33226227568,"d":"$34,437"},{"v":42166.52565293827,"d":"$42,167"},{"v":-47938.93970290097,"d":"($47,939)"},{"$f":"SUM(CO13:CZ13)","v":{"v":-154884.19994214168,"d":"($154,884)"}},{"$f":"DB13","v":{"v":1684.593019685524,"d":"$1,685"}},{"v":20543.01597310816,"d":"$20,543"},{"v":614.8092001702029,"d":"$615"},{"v":25444.371759148722,"d":"$25,444"},{"v":23127.903649726508,"d":"$23,128"},{"v":-14464.235489231427,"d":"($14,464)"},{"v":14612.59570871841,"d":"$14,613"},{"v":-30389.82957967869,"d":"($30,390)"},{"v":15419.330951636928,"d":"$15,419"},{"v":45749.22261787147,"d":"$45,749"},{"v":-37828.86016708222,"d":"($37,829)"},{"v":6208.855742729035,"d":"$6,209"},{"$f":"SUM(DB13:DM13)","v":{"v":70721.77338680261,"d":"$70,722"}},{"$f":"DO13","v":{"v":44143.304696219835,"d":"$44,143"}},{"v":-15951.02806098807,"d":"($15,951)"},{"v":12713.006971324563,"d":"$12,713"},{"v":5193.448819872546,"d":"$5,193"},{"v":-10333.207572547957,"d":"($10,333)"},{"v":-12644.960720386909,"d":"($12,645)"},{"v":11990.597165155517,"d":"$11,991"},{"v":-37168.21508837018,"d":"($37,168)"},{"v":-26143.74897894463,"d":"($26,144)"},{"v":32066.24638121834,"d":"$32,066"},{"v":21518.690726698467,"d":"$21,519"},{"v":-24456.227249212177,"d":"($24,456)"},{"$f":"SUM(DO13:DZ13)","v":{"v":927.9070900393344,"d":"$928"}},{"$f":"EB13","v":{"v":11247.990916043049,"d":"$11,248"}},{"v":-3862.208915110595,"d":"($3,862)"},{"v":-3280.313989787289,"d":"($3,280)"},{"v":-46290.873977916,"d":"($46,291)"},{"v":-7024.162966460549,"d":"($7,024)"},{"v":-13979.095104283842,"d":"($13,979)"},{"v":-7821.9107235388965,"d":"($7,822)"},{"v":-32269.957732422896,"d":"($32,270)"},{"v":5380.6091908657245,"d":"$5,381"},{"v":-10335.844995003483,"d":"($10,336)"},{"v":-36227.52712625409,"d":"($36,228)"},{"v":-25728.02837657519,"d":"($25,728)"},{"$f":"SUM(EB13:EM13)","v":{"v":-170191.32380044405,"d":"($170,191)"}}]
[{"$f":"Labels!B78","v":"Output Shock"},{"$f":"B46","v":{"v":35492.1521538429,"d":"$35,492"}},{"v":-45047.44254618557,"d":"($45,047)"},{"v":12642.939509411506,"d":"$12,643"},{"v":-11698.822377496488,"d":"($11,699)"},{"v":-2285.509372664849,"d":"($2,286)"},{"v":7576.610320768444,"d":"$7,577"},{"v":34478.87750961017,"d":"$34,479"},{"v":1540.7087430002948,"d":"$1,541"},{"v":14248.139435731302,"d":"$14,248"},{"v":14925.700373216476,"d":"$14,926"},{"v":4349.834470217414,"d":"$4,350"},{"v":39288.091478863804,"d":"$39,288"},{"$f":"SUM(B46:M46)","v":{"v":105511.2796983154,"d":"$105,511"}},{"$f":"O46","v":{"v":-19121.99619182639,"d":"($19,122)"}},{"v":29915.987691781036,"d":"$29,916"},{"v":-4117.2325674637705,"d":"($4,117)"},{"v":1454.689721129366,"d":"$1,455"},{"v":-15046.06327005205,"d":"($15,046)"},{"v":-34543.44596081222,"d":"($34,543)"},{"v":-21188.463261335462,"d":"($21,188)"},{"v":-1069.221724865683,"d":"($1,069)"},{"v":13199.911587305625,"d":"$13,200"},{"v":3963.447806775689,"d":"$3,963"},{"v":38687.78941304484,"d":"$38,688"},{"v":-4666.304264779763,"d":"($4,666)"},{"$f":"SUM(O46:Z46)","v":{"v":-12530.901021098784,"d":"($12,531)"}},{"$f":"AB46","v":{"v":-6751.029837253163,"d":"($6,751)"}},{"v":11266.536475137744,"d":"$11,267"},{"v":35206.2388125071,"d":"$35,206"},{"v":-26695.62710532337,"d":"($26,696)"},{"v":-26252.486382058374,"d":"($26,252)"},{"v":8362.682451973407,"d":"$8,363"},{"v":4420.469867574372,"d":"$4,420"},{"v":-19485.764958948417,"d":"($19,486)"},{"v":-29716.897433796217,"d":"($29,717)"},{"v":9263.988065933767,"d":"$9,264"},{"v":35422.455414672986,"d":"$35,422"},{"v":39813.34185934187,"d":"$39,813"},{"$f":"SUM(AB46:AM46)","v":{"v":34853.9072297617,"d":"$34,854"}},{"$f":"AO46","v":{"v":-57422.2661424284,"d":"($57,422)"}},{"v":-7910.106680288448,"d":"($7,910)"},{"v":38658.987793016655,"d":"$38,659"},{"v":-12139.946956197424,"d":"($12,140)"},{"v":-16159.489653447676,"d":"($16,159)"},{"v":-19254.604643789546,"d":"($19,255)"},{"v":-13728.604319456197,"d":"($13,729)"},{"v":28495.081816841237,"d":"$28,495"},{"v":-10248.675895556158,"d":"($10,249)"},{"v":-44700.28823219851,"d":"($44,700)"},{"v":42233.52715571304,"d":"$42,234"},{"v":-10805.973558443127,"d":"($10,806)"},{"$f":"SUM(AO46:AZ46)","v":{"v":-82982.35931623454,"d":"($82,982)"}},{"$f":"BB46","v":{"v":-23468.732418796993,"d":"($23,469)"}},{"v":9738.242580351593,"d":"$9,738"},{"v":31831.784929229358,"d":"$31,832"},{"v":19802.077190228392,"d":"$19,802"},{"v":-21497.3547063625,"d":"($21,497)"},{"v":23553.2651716454,"d":"$23,553"},{"v":27735.200413374456,"d":"$27,735"},{"v":57213.980185600376,"d":"$57,214"},{"v":41305.96156581008,"d":"$41,306"},{"v":54706.809889542565,"d":"$54,707"},{"v":22965.5550390026,"d":"$22,966"},{"v":-19036.550257012575,"d":"($19,037)"},{"$f":"SUM(BB46:BM46)","v":{"v":224850.23958261276,"d":"$224,850"}},{"$f":"BO46","v":{"v":37162.560075981455,"d":"$37,163"}},{"v":46836.13415669174,"d":"$46,836"},{"v":-6166.633655610448,"d":"($6,167)"},{"v":-2285.674393349402,"d":"($2,286)"},{"v":-25405.682557591925,"d":"($25,406)"},{"v":12104.271426800236,"d":"$12,104"},{"v":13339.508608494312,"d":"$13,340"},{"v":4860.141675930391,"d":"$4,860"},{"v":36126.73224023767,"d":"$36,127"},{"v":-15228.396510843058,"d":"($15,228)"},{"v":14104.239204571464,"d":"$14,104"},{"v":11323.301318205715,"d":"$11,323"},{"$f":"SUM(BO46:BZ46)","v":{"v":126770.50158951817,"d":"$126,771"}},{"$f":"CB46","v":{"v":7637.050250061621,"d":"$7,637"}},{"v":-17054.50700494567,"d":"($17,055)"},{"v":-38251.94790085589,"d":"($38,252)"},{"v":20595.726989800507,"d":"$20,596"},{"v":25736.336537986732,"d":"$25,736"},{"v":-14992.627921878102,"d":"($14,993)"},{"v":25425.168469706317,"d":"$25,425"},{"v":-38055.860981520025,"d":"($38,056)"},{"v":-4733.63781085913,"d":"($4,734)"},{"v":27250.083028199366,"d":"$27,250"},{"v":20474.814256079626,"d":"$20,475"},{"v":-28394.31659702872,"d":"($28,394)"},{"$f":"SUM(CB46:CM46)","v":{"v":-14363.71868525337,"d":"($14,364)"}},{"$f":"CO46","v":{"v":-44328.7236733252,"d":"($44,329)"}},{"v":12635.143528859546,"d":"$12,635"},{"v":30550.38697678994,"d":"$30,550"},{"v":6397.8524730196605,"d":"$6,398"},{"v":-21975.93358360171,"d":"($21,976)"},{"v":-21110.283260657292,"d":"($21,110)"},{"v":-26732.416014728416,"d":"($26,732)"},{"v":-5101.558286105057,"d":"($5,102)"},{"v":-29431.438082872784,"d":"($29,431)"},{"v":-38302.86591107344,"d":"($38,303)"},{"v":27659.625589195926,"d":"$27,660"},{"v":25337.66086333432,"d":"$25,338"},{"$f":"SUM(CO46:CZ46)","v":{"v":-84402.54938116451,"d":"($84,403)"}},{"$f":"DB46","v":{"v":-36639.990514441444,"d":"($36,640)"}},{"v":4274.295616079419,"d":"$4,274"},{"v":12023.525091652276,"d":"$12,024"},{"v":39967.58846118208,"d":"$39,968"},{"v":-34509.80852497326,"d":"($34,510)"},{"v":-12988.837383239157,"d":"($12,989)"},{"v":34276.571868156134,"d":"$34,277"},{"v":8928.915444025948,"d":"$8,929"},{"v":58732.04400442799,"d":"$58,732"},{"v":5483.109398031349,"d":"$5,483"},{"v":12568.716639285569,"d":"$12,569"},{"v":45578.75576820575,"d":"$45,579"},{"$f":"SUM(DB46:DM46)","v":{"v":137694.88586839265,"d":"$137,695"}},{"$f":"DO46","v":{"v":-25999.095007581036,"d":"($25,999)"}},{"v":-25866.381255726294,"d":"($25,866)"},{"v":7366.425104294528,"d":"$7,366"},{"v":4857.119957375359,"d":"$4,857"},{"v":-10369.386926031751,"d":"($10,369)"},{"v":-3824.4153208365365,"d":"($3,824)"},{"v":53455.882593490016,"d":"$53,456"},{"v":30604.712892186908,"d":"$30,605"},{"v":-22451.037548962624,"d":"($22,451)"},{"v":-17080.39829746461,"d":"($17,080)"},{"v":2985.2957282996863,"d":"$2,985"},{"v":11038.970488409283,"d":"$11,039"},{"$f":"SUM(DO46:DZ46)","v":{"v":4717.692407452931,"d":"$4,718"}},{"$f":"EB46","v":{"v":14321.44105182544,"d":"$14,321"}},{"v":-23833.3853679947,"d":"($23,833)"},{"v":-37023.016422059576,"d":"($37,023)"},{"v":44254.00224708738,"d":"$44,254"},{"v":-16402.542789207346,"d":"($16,403)"},{"v":7.672603156401576,"d":"$8"},{"v":36203.6531467673,"d":"$36,204"},{"v":-21649.23689647254,"d":"($21,649)"},{"v":-11493.129621223034,"d":"($11,493)"},{"v":-22160.40972456795,"d":"($22,160)"},{"v":5779.766764663606,"d":"$5,780"},{"v":-10575.144911128464,"d":"($10,575)"},{"$f":"SUM(EB46:EM46)","v":{"v":-42570.32991915348,"d":"($42,570)"}}]

{"sheet":"Trial 2","index":5,"n_rows":61,"n_cols":144,"rows_kept":61,"merged":[[0,0,0,2],[1,0,1,2],[2,0,2,2],[3,0,3,2],[4,0,4,2]]}
[{"$f":"\"Equilibrium Economy with Shocks\"","v":"Equilibrium Economy with Shocks"}]
[{"$f":"\"Model: \"&Inputs!B8","v":"Model: Test Model"}]
[{"$f":"\"$ millions\"","v":"$ millions"}]
[{"$f":"\"Trial 2\"","v":"Trial 2"}]
[{"$f":"\"\"","v":""}]
[{"$f":"\"Demand\"","v":"Demand"}]
[{"$f":"\" \"","v":" "}]
[null,{"$f":"ZZZ__FnCalls!F7","v":"Jan 2010"},{"$f":"ZZZ__FnCalls!F8","v":"Feb 2010"},{"$f":"ZZZ__FnCalls!F9","v":"Mar 2010"},{"$f":"ZZZ__FnCalls!F10","v":"Apr 2010"},{"$f":"ZZZ__FnCalls!F11","v":"May 2010"},{"$f":"ZZZ__FnCalls!F12","v":"Jun 2010"},{"$f":"ZZZ__FnCalls!F13","v":"Jul 2010"},{"$f":"ZZZ__FnCalls!F14","v":"Aug 2010"},{"$f":"ZZZ__FnCalls!F15","v":"Sep 2010"},{"$f":"ZZZ__FnCalls!F16","v":"Oct 2010"},{"$f":"ZZZ__FnCalls!F17","v":"Nov 2010"},{"$f":"ZZZ__FnCalls!F18","v":"Dec 2010"},{"$f":"ZZZ__FnCalls!H7","v":"2010"},{"$f":"ZZZ__FnCalls!F19","v":"Jan 2011"},{"$f":"ZZZ__FnCalls!F20","v":"Feb 2011"},{"$f":"ZZZ__FnCalls!F21","v":"Mar 2011"},{"$f":"ZZZ__FnCalls!F22","v":"Apr 2011"},{"$f":"ZZZ__FnCalls!F23","v":"May 2011"},{"$f":"ZZZ__FnCalls!F24","v":"Jun 2011"},{"$f":"ZZZ__FnCalls!F25","v":"Jul 2011"},{"$f":"ZZZ__FnCalls!F26","v":"Aug 2011"},{"$f":"ZZZ__FnCalls!F27","v":"Sep 2011"},{"$f":"ZZZ__FnCalls!F28","v":"Oct 2011"},{"$f":"ZZZ__FnCalls!F29","v":"Nov 2011"},{"$f":"ZZZ__FnCalls!F30","v":"Dec 2011"},{"$f":"ZZZ__FnCalls!H19","v":"2011"},{"$f":"ZZZ__FnCalls!F31","v":"Jan 2012"},{"$f":"ZZZ__FnCalls!F32","v":"Feb 2012"},{"$f":"ZZZ__FnCalls!F33","v":"Mar 2012"},{"$f":"ZZZ__FnCalls!F34","v":"Apr 2012"},{"$f":"ZZZ__FnCalls!F35","v":"May 2012"},{"$f":"ZZZ__FnCalls!F36","v":"Jun 2012"},{"$f":"ZZZ__FnCalls!F37","v":"Jul 2012"},{"$f":"ZZZ__FnCalls!F38","v":"Aug 2012"},{"$f":"ZZZ__FnCalls!F39","v":"Sep 2012"},{"$f":"ZZZ__FnCalls!F40","v":"Oct 2012"},{"$f":"ZZZ__FnCalls!F41","v":"Nov 2012"},{"$f":"ZZZ__FnCalls!F42","v":"Dec 2012"},{"$f":"ZZZ__FnCalls!H31","v":"2012"},{"$f":"ZZZ__FnCalls!F43","v":"Jan 2013"},{"$f":"ZZZ__FnCalls!F44","v":"Feb 2013"},{"$f":"ZZZ__FnCalls!F45","v":"Mar 2013"},{"$f":"ZZZ__FnCalls!F46","v":"Apr 2013"},{"$f":"ZZZ__FnCalls!F47","v":"May 2013"},{"$f":"ZZZ__FnCalls!F48","v":"Jun 2013"},{"$f":"ZZZ__FnCalls!F49","v":"Jul 2013"},{"$f":"ZZZ__FnCalls!F50","v":"Aug 2013"},{"$f":"ZZZ__FnCalls!F51","v":"Sep 2013"},{"$f":"ZZZ__FnCalls!F52","v":"Oct 2013"},{"$f":"ZZZ__FnCalls!F53","v":"Nov 2013"},{"$f":"ZZZ__FnCalls!F54","v":"Dec 2013"},{"$f":"ZZZ__FnCalls!H43","v":"2013"},{"$f":"ZZZ__FnCalls!F55","v":"Jan 2014"},{"$f":"ZZZ__FnCalls!F56","v":"Feb 2014"},{"$f":"ZZZ__FnCalls!F57","v":"Mar 2014"},{"$f":"ZZZ__FnCalls!F58","v":"Apr 2014"},{"$f":"ZZZ__FnCalls!F59","v":"May 2014"},{"$f":"ZZZ__FnCalls!F60","v":"Jun 2014"},{"$f":"ZZZ__FnCalls!F61","v":"Jul 2014"},{"$f":"ZZZ__FnCalls!F62","v":"Aug 2014"},{"$f":"ZZZ__FnCalls!F63","v":"Sep 2014"},{"$f":"ZZZ__FnCalls!F64","v":"Oct 2014"},{"$f":"ZZZ__FnCalls!F65","v":"Nov 2014"},{"$f":"ZZZ__FnCalls!F66","v":"Dec 2014"},{"$f":"ZZZ__FnCalls!H55","v":"2014"},{"$f":"ZZZ__FnCalls!F67","v":"Jan 2015"},{"$f":"ZZZ__FnCalls!F68","v":"Feb 2015"},{"$f":"ZZZ__FnCalls!F69","v":"Mar 2015"},{"$f":"ZZZ__FnCalls!F70","v":"Apr 2015"},{"$f":"ZZZ__FnCalls!F71","v":"May 2015"},{"$f":"ZZZ__FnCalls!F72","v":"Jun 2015"},{"$f":"ZZZ__FnCalls!F73","v":"Jul 2015"},{"$f":"ZZZ__FnCalls!F74","v":"Aug 2015"},{"$f":"ZZZ__FnCalls!F75","v":"Sep 2015"},{"$f":"ZZZ__FnCalls!F76","v":"Oct 2015"},{"$f":"ZZZ__FnCalls!F77","v":"Nov 2015"},{"$f":"ZZZ__FnCalls!F78","v":"Dec 2015"},{"$f":"ZZZ__FnCalls!H67","v":"2015"},{"$f":"ZZZ__FnCalls!F79","v":"Jan 2016"},{"$f":"ZZZ__FnCalls!F80","v":"Feb 2016"},{"$f":"ZZZ__FnCalls!F81","v":"Mar 2016"},{"$f":"ZZZ__FnCalls!F82","v":"Apr 2016"},{"$f":"ZZZ__FnCalls!F83","v":"May 2016"},{"$f":"ZZZ__FnCalls!F84","v":"Jun 2016"},{"$f":"ZZZ__FnCalls!F85","v":"Jul 2016"},{"$f":"ZZZ__FnCalls!F86","v":"Aug 2016"},{"$f":"ZZZ__FnCalls!F87","v":"Sep 2016"},{"$f":"ZZZ__FnCalls!F88","v":"Oct 2016"},{"$f":"ZZZ__FnCalls!F89","v":"Nov 2016"},{"$f":"ZZZ__FnCalls!F90","v":"Dec 2016"},{"$f":"ZZZ__FnCalls!H79","v":"2016"},{"$f":"ZZZ__FnCalls!F91","v":"Jan 2017"},{"$f":"ZZZ__FnCalls!F92","v":"Feb 2017"},{"$f":"ZZZ__FnCalls!F93","v":"Mar 2017"},{"$f":"ZZZ__FnCalls!F94","v":"Apr 2017"},{"$f":"ZZZ__FnCalls!F95","v":"May 2017"},{"$f":"ZZZ__FnCalls!F96","v":"Jun 2017"},{"$f":"ZZZ__FnCalls!F97","v":"Jul 2017"},{"$f":"ZZZ__FnCalls!F98","v":"Aug 2017"},{"$f":"ZZZ__FnCalls!F99","v":"Sep 2017"},{"$f":"ZZZ__FnCalls!F100","v":"Oct 2017"},{"$f":"ZZZ__FnCalls!F101","v":"Nov 2017"},{"$f":"ZZZ__FnCalls!F102","v":"Dec 2017"},{"$f":"ZZZ__FnCalls!H91","v":"2017"},{"$f":"ZZZ__FnCalls!F103","v":"Jan 2018"},{"$f":"ZZZ__FnCalls!F104","v":"Feb 2018"},{"$f":"ZZZ__FnCalls!F105","v":"Mar 2018"},{"$f":"ZZZ__FnCalls!F106","v":"Apr 2018"},{"$f":"ZZZ__FnCalls!F107","v":"May 2018"},{"$f":"ZZZ__FnCalls!F108","v":"Jun 2018"},{"$f":"ZZZ__FnCalls!F109","v":"Jul 2018"},{"$f":"ZZZ__FnCalls!F110","v":"Aug 2018"},{"$f":"ZZZ__FnCalls!F111","v":"Sep 2018"},{"$f":"ZZZ__FnCalls!F112","v":"Oct 2018"},{"$f":"ZZZ__FnCalls!F113","v":"Nov 2018"},{"$f":"ZZZ__FnCalls!F114","v":"Dec 2018"},{"$f":"ZZZ__FnCalls!H103","v":"2018"},{"$f":"ZZZ__FnCalls!F115","v":"Jan 2019"},{"$f":"ZZZ__FnCalls!F116","v":"Feb 2019"},{"$f":"ZZZ__FnCalls!F117","v":"Mar 2019"},{"$f":"ZZZ__FnCalls!F118","v":"Apr 2019"},{"$f":"ZZZ__FnCalls!F119","v":"May 2019"},{"$f":"ZZZ__FnCalls!F120","v":"Jun 2019"},{"$f":"ZZZ__FnCalls!F121","v":"Jul 2019"},{"$f":"ZZZ__FnCalls!F122","v":"Aug 2019"},{"$f":"ZZZ__FnCalls!F123","v":"Sep 2019"},{"$f":"ZZZ__FnCalls!F124","v":"Oct 2019"},{"$f":"ZZZ__FnCalls!F125","v":"Nov 2019"},{"$f":"ZZZ__FnCalls!F126","v":"Dec 2019"},{"$f":"ZZZ__FnCalls!H115","v":"2019"},{"$f":"ZZZ__FnCalls!F127","v":"Jan 2020"},{"$f":"ZZZ__FnCalls!F128","v":"Feb 2020"},{"$f":"ZZZ__FnCalls!F129","v":"Mar 2020"},{"$f":"ZZZ__FnCalls!F130","v":"Apr 2020"},{"$f":"ZZZ__FnCalls!F131","v":"May 2020"},{"$f":"ZZZ__FnCalls!F132","v":"Jun 2020"},{"$f":"ZZZ__FnCalls!F133","v":"Jul 2020"},{"$f":"ZZZ__FnCalls!F134","v":"Aug 2020"},{"$f":"ZZZ__FnCalls!F135","v":"Sep 2020"},{"$f":"ZZZ__FnCalls!F136","v":"Oct 2020"},{"$f":"ZZZ__FnCalls!F137","v":"Nov 2020"},{"$f":"ZZZ__FnCalls!F138","v":"Dec 2020"},{"$f":"ZZZ__FnCalls!H127","v":"2020"}]
[{"$f":"Labels!B28","v":"Aggregate Demand"},{"$f":"B36+0+B13","v":{"v":951107.8927243656,"d":"$951,108"}},{"v":921794.1714416564,"d":"$921,794"},{"v":971083.4986570094,"d":"$971,083"},{"v":1023336.2944243596,"d":"$1,023,336"},{"v":978979.1697362988,"d":"$978,979"},{"v":943295.6386489958,"d":"$943,296"},{"v":961280.0561349948,"d":"$961,280"},{"v":924080.7187444072,"d":"$924,081"},{"v":974521.8983314986,"d":"$974,522"},{"v":965550.6513097403,"d":"$965,551"},{"v":922973.7997446407,"d":"$922,974"},{"v":989583.775098678,"d":"$989,584"},{"$f":"SUM(B9:M9)","v":{"v":11527587.564996647,"d":"$11,527,588"}},{"$f":"O36+0+O13","v":{"v":938946.517781034,"d":"$938,947"}},{"v":986986.407439621,"d":"$986,986"},{"v":990490.7717709483,"d":"$990,491"},{"v":949368.8057917713,"d":"$949,369"},{"v":949730.0737596801,"d":"$949,730"},{"v":949021.681187503,"d":"$949,022"},{"v":916762.3305730254,"d":"$916,762"},{"v":929145.6960890164,"d":"$929,146"},{"v":937483.4563658854,"d":"$937,483"},{"v":930111.4634042326,"d":"$930,111"},{"v":892571.8942335083,"d":"$892,572"},{"v":969412.2820840927,"d":"$969,412"},{"$f":"SUM(O9:Z9)","v":{"v":11340031.38048032,"d":"$11,340,031"}},{"$f":"AB36+0+AB13","v":{"v":951587.7675966974,"d":"$951,588"}},{"v":954118.0846276504,"d":"$954,118"},{"v":950845.3130996162,"d":"$950,845"},{"v":1009891.5556242634,"d":"$1,009,892"},{"v":950203.1859188915,"d":"$950,203"},{"v":935111.5711505333,"d":"$935,112"},{"v":965805.8395242475,"d":"$965,806"},{"v":901605.6777021827,"d":"$901,606"},{"v":951373.1558451055,"d":"$951,373"},{"v":970385.5885588921,"d":"$970,386"},{"v":994626.3809447876,"d":"$994,626"},{"v":928584.8612510043,"d":"$928,585"},{"$f":"SUM(AB9:AM9)","v":{"v":11464138.981843872,"d":"$11,464,139"}},{"$f":"AO36+0+AO13","v":{"v":939540.9767368446,"d":"$939,541"}},{"v":963086.0990742719,"d":"$963,086"},{"v":960077.5575854542,"d":"$960,078"},{"v":928350.5340864781,"d":"$928,351"},{"v":959648.9474053493,"d":"$959,649"},{"v":958350.4252290452,"d":"$958,350"},{"v":949208.8192863589,"d":"$949,209"},{"v":952420.3858363526,"d":"$952,420"},{"v":886494.6344039178,"d":"$886,495"},{"v":932069.2666232394,"d":"$932,069"},{"v":978967.5993448881,"d":"$978,968"},{"v":934128.4661267214,"d":"$934,128"},{"$f":"SUM(AO9:AZ9)","v":{"v":11342343.711738922,"d":"$11,342,344"}},{"$f":"BB36+0+BB13","v":{"v":916938.877299773,"d":"$916,939"}},{"v":943069.2244132096,"d":"$943,069"},{"v":977956.8598524713,"d":"$977,957"},{"v":934037.1123886,"d":"$934,037"},{"v":967167.685456324,"d":"$967,168"},{"v":904806.0355877037,"d":"$904,806"},{"v":916092.8590223666,"d":"$916,093"},{"v":888185.0550407367,"d":"$888,185"},{"v":963098.557700036,"d":"$963,099"},{"v":920524.4111200665,"d":"$920,524"},{"v":943103.4816950345,"d":"$943,103"},{"v":882021.8657605352,"d":"$882,022"},{"$f":"SUM(BB9:BM9)","v":{"v":11157002.025336858,"d":"$11,157,002"}},{"$f":"BO36+0+BO13","v":{"v":874081.503313615,"d":"$874,082"}},{"v":896854.0483500541,"d":"$896,854"},{"v":951062.2968121215,"d":"$951,062"},{"v":967222.5557922284,"d":"$967,223"},{"v":883853.9020477737,"d":"$883,854"},{"v":976827.3582901546,"d":"$976,827"},{"v":907176.5861985565,"d":"$907,177"},{"v":949533.5530702791,"d":"$949,534"},{"v":932878.8899975638,"d":"$932,879"},{"v":874814.9467304227,"d":"$874,815"},{"v":985259.6223469354,"d":"$985,260"},{"v":936421.1706668723,"d":"$936,421"},{"$f":"SUM(BO9:BZ9)","v":{"v":11135986.433616575,"d":"$11,135,986"}},{"$f":"CB36+0+CB13","v":{"v":949698.2951535177,"d":"$949,698"}},{"v":904402.9535392004,"d":"$904,403"},{"v":920041.7565160702,"d":"$920,042"},{"v":961846.8953134582,"d":"$961,847"},{"v":941390.410926049,"d":"$941,390"},{"v":956036.0700554308,"d":"$956,036"},{"v":926767.6955836053,"d":"$926,768"},{"v":963984.5167013179,"d":"$963,985"},{"v":885996.1334834686,"d":"$885,996"},{"v":919030.397094424,"d":"$919,030"},{"v":875314.1125557295,"d":"$875,314"},{"v":915730.9395617073,"d":"$915,731"},{"$f":"SUM(CB9:CM9)","v":{"v":11120240.176483981,"d":"$11,120,240"}},{"$f":"CO36+0+CO13","v":{"v":899991.0014659415,"d":"$899,991"}},{"v":922060.6901527374,"d":"$922,061"},{"v":934961.5397629982,"d":"$934,962"},{"v":907148.823869982,"d":"$907,149"},{"v":939452.8241378231,"d":"$939,453"},{"v":886172.6324571464,"d":"$886,173"},{"v":956279.1924108833,"d":"$956,279"},{"v":911363.488572925,"d":"$911,363"},{"v":955114.9966240753,"d":"$955,115"},{"v":859050.2699051099,"d":"$859,050"},{"v":947100.5241201974,"d":"$947,101"},{"v":908545.5557956167,"d":"$908,546"},{"$f":"SUM(CO9:CZ9)","v":{"v":11027241.539275438,"d":"$11,027,242"}},{"$f":"DB36+0+DB13","v":{"v":904853.3517377446,"d":"$904,853"}},{"v":934305.6427580038,"d":"$934,306"},{"v":901668.1101524776,"d":"$901,668"},{"v":935654.7412802861,"d":"$935,655"},{"v":945655.0131544595,"d":"$945,655"},{"v":914030.4685598348,"d":"$914,030"},{"v":919421.3278660936,"d":"$919,421"},{"v":923293.1760824906,"d":"$923,293"},{"v":959474.8836501938,"d":"$959,475"},{"v":881648.6072305163,"d":"$881,649"},{"v":854847.5610936483,"d":"$854,848"},{"v":875208.605295972,"d":"$875,209"},{"$f":"SUM(DB9:DM9)","v":{"v":10950061.488861721,"d":"$10,950,061"}},{"$f":"DO36+0+DO13","v":{"v":942197.3055689369,"d":"$942,197"}},{"v":865463.2628302007,"d":"$865,463"},{"v":914754.1727567214,"d":"$914,754"},{"v":900774.6387495016,"d":"$900,775"},{"v":881889.0409326062,"d":"$881,889"},{"v":919353.5383431781,"d":"$919,354"},{"v":935277.2441174897,"d":"$935,277"},{"v":929567.3874692839,"d":"$929,567"},{"v":872073.3903873011,"d":"$872,073"},{"v":933843.1900608385,"d":"$933,843"},{"v":905613.9772011419,"d":"$905,614"},{"v":869594.1798831861,"d":"$869,594"},{"$f":"SUM(DO9:DZ9)","v":{"v":10870401.328300387,"d":"$10,870,401"}},{"$f":"EB36+0+EB13","v":{"v":937725.6591862382,"d":"$937,726"}},{"v":922936.4830246274,"d":"$922,936"},{"v":852603.3505104911,"d":"$852,603"},{"v":901768.5904646419,"d":"$901,769"},{"v":952950.1657656981,"d":"$952,950"},{"v":871019.7338833307,"d":"$871,020"},{"v":880686.9361869843,"d":"$880,687"},{"v":869607.6332091615,"d":"$869,608"},{"v":916838.9507948875,"d":"$916,839"},{"v":886455.1636464644,"d":"$886,455"},{"v":922826.5660784965,"d":"$922,827"},{"v":899612.6163959887,"d":"$899,613"},{"$f":"SUM(EB9:EM9)","v":{"v":10815031.84914701,"d":"$10,815,032"}}]
[{"$f":"Labels!B31","v":"Long Expected Demand"},{"$f":"'(Other Computations)'!B8+'(Other Computations)'!B61*0/Inputs!B13/12","v":{"v":1166666.6666666667,"d":"$1,166,667"}},{"$f":"B10+'(Other Computations)'!B61*(B9-B10)/Inputs!B13/12","v":{"v":1166167.6880232817,"d":"$1,166,168"}},{"$f":"C10+'(Other Computations)'!B61*(C9-C10)/Inputs!B13/12","v":{"v":1165602.0085867501,"d":"$1,165,602"}},{"$f":"D10+'(Other Computations)'!B61*(D9-D10)/Inputs!B13/12","v":{"v":1165151.7342582091,"d":"$1,165,152"}},{"$f":"E10+'(Other Computations)'!B61*(E9-E10)/Inputs!B13/12","v":{"v":1164823.4577771123,"d":"$1,164,823"}},{"$f":"F10+'(Other Computations)'!B61*(F9-F10)/Inputs!B13/12","v":{"v":1164393.2626659067,"d":"$1,164,393"}},{"$f":"G10+'(Other Computations)'!B61*(G9-G10)/Inputs!B13/12","v":{"v":1163881.462610312,"d":"$1,163,881"}},{"$f":"H10+'(Other Computations)'!B61*(H9-H10)/Inputs!B13/12","v":{"v":1163412.4778731007,"d":"$1,163,412"}},{"$f":"I10+'(Other Computations)'!B61*(I9-I10)/Inputs!B13/12","v":{"v":1162858.469171414,"d":"$1,162,858"}},{"$f":"J10+'(Other Computations)'!B61*(J9-J10)/Inputs!B13/12","v":{"v":1162422.5048870624,"d":"$1,162,423"}},{"$f":"K10+'(Other Computations)'!B61*(K9-K10)/Inputs!B13/12","v":{"v":1161966.7830037815,"d":"$1,161,967"}},{"$f":"L10+'(Other Computations)'!B61*(L9-L10)/Inputs!B13/12","v":{"v":1161413.5585054965,"d":"$1,161,414"}},{"$f":"SUM(B10:M10)","v":{"v":13968760.074029094,"d":"$13,968,760"}},{"$f":"M10+'(Other Computations)'!B61*(M9-M10)/Inputs!B13/12","v":{"v":1161015.80437724,"d":"$1,161,016"}},{"$f":"O10+'(Other Computations)'!B61*(O9-O10)/Inputs!B13/12","v":{"v":1160501.7551027117,"d":"$1,160,502"}},{"$f":"P10+'(Other Computations)'!B61*(P9-P10)/Inputs!B13/12","v":{"v":1160100.0992053435,"d":"$1,160,100"}},{"$f":"Q10+'(Other Computations)'!B61*(Q9-Q10)/Inputs!B13/12","v":{"v":1159707.4850214676,"d":"$1,159,707"}},{"$f":"R10+'(Other Computations)'!B61*(R9-R10)/Inputs!B13/12","v":{"v":1159220.589930658,"d":"$1,159,221"}},{"$f":"S10+'(Other Computations)'!B61*(S9-S10)/Inputs!B13/12","v":{"v":1158735.6581802622,"d":"$1,158,736"}},{"$f":"T10+'(Other Computations)'!B61*(T9-T10)/Inputs!B13/12","v":{"v":1158250.2091594457,"d":"$1,158,250"}},{"$f":"U10+'(Other Computations)'!B61*(U9-U10)/Inputs!B13/12","v":{"v":1157691.2094404956,"d":"$1,157,691"}},{"$f":"V10+'(Other Computations)'!B61*(V9-V10)/Inputs!B13/12","v":{"v":1157162.16890033,"d":"$1,157,162"}},{"$f":"W10+'(Other Computations)'!B61*(W9-W10)/Inputs!B13/12","v":{"v":1156653.653362056,"d":"$1,156,654"}},{"$f":"X10+'(Other Computations)'!B61*(X9-X10)/Inputs!B13/12","v":{"v":1156129.250144561,"d":"$1,156,129"}},{"$f":"Y10+'(Other Computations)'!B61*(Y9-Y10)/Inputs!B13/12","v":{"v":1155519.1636725448,"d":"$1,155,519"}},{"$f":"SUM(O10:Z10)","v":{"v":13900687.046497116,"d":"$13,900,687"}},{"$f":"Z10+'(Other Computations)'!B61*(Z9-Z10)/Inputs!B13/12","v":{"v":1155088.360705905,"d":"$1,155,088"}},{"$f":"AB10+'(Other Computations)'!B61*(AB9-AB10)/Inputs!B13/12","v":{"v":1154617.294518152,"d":"$1,154,617"}},{"$f":"AC10+'(Other Computations)'!B61*(AC9-AC10)/Inputs!B13/12","v":{"v":1154153.1759767388,"d":"$1,154,153"}},{"$f":"AD10+'(Other Computations)'!B61*(AD9-AD10)/Inputs!B13/12","v":{"v":1153682.5559237825,"d":"$1,153,683"}},{"$f":"AE10+'(Other Computations)'!B61*(AE9-AE10)/Inputs!B13/12","v":{"v":1153349.706386052,"d":"$1,153,350"}},{"$f":"AF10+'(Other Computations)'!B61*(AF9-AF10)/Inputs!B13/12","v":{"v":1152879.4598108965,"d":"$1,152,879"}},{"$f":"AG10+'(Other Computations)'!B61*(AG9-AG10)/Inputs!B13/12","v":{"v":1152375.3674760347,"d":"$1,152,375"}},{"$f":"AH10+'(Other Computations)'!B61*(AH9-AH10)/Inputs!B13/12","v":{"v":1151943.493568739,"d":"$1,151,943"}},{"$f":"AI10+'(Other Computations)'!B61*(AI9-AI10)/Inputs!B13/12","v":{"v":1151364.0078838626,"d":"$1,151,364"}},{"$f":"AJ10+'(Other Computations)'!B61*(AJ9-AJ10)/Inputs!B13/12","v":{"v":1150901.066096736,"d":"$1,150,901"}},{"$f":"AK10+'(Other Computations)'!B61*(AK9-AK10)/Inputs!B13/12","v":{"v":1150483.2061950278,"d":"$1,150,483"}},{"$f":"AL10+'(Other Computations)'!B61*(AL9-AL10)/Inputs!B13/12","v":{"v":1150122.4265069484,"d":"$1,150,122"}},{"$f":"SUM(AB10:AM10)","v":{"v":13830960.121048875,"d":"$13,830,960"}},{"$f":"AM10+'(Other Computations)'!B61*(AM9-AM10)/Inputs!B13/12","v":{"v":1149609.608068856,"d":"$1,149,610"}},{"$f":"AO10+'(Other Computations)'!B61*(AO9-AO10)/Inputs!B13/12","v":{"v":1149123.3380889208,"d":"$1,149,123"}},{"$f":"AP10+'(Other Computations)'!B61*(AP9-AP10)/Inputs!B13/12","v":{"v":1148692.6963319425,"d":"$1,148,693"}},{"$f":"AQ10+'(Other Computations)'!B61*(AQ9-AQ10)/Inputs!B13/12","v":{"v":1148256.0872144736,"d":"$1,148,256"}},{"$f":"AR10+'(Other Computations)'!B61*(AR9-AR10)/Inputs!B13/12","v":{"v":1147747.046582233,"d":"$1,147,747"}},{"$f":"AS10+'(Other Computations)'!B61*(AS9-AS10)/Inputs!B13/12","v":{"v":1147311.6343156197,"d":"$1,147,312"}},{"$f":"AT10+'(Other Computations)'!B61*(AT9-AT10)/Inputs!B13/12","v":{"v":1146874.2241094008,"d":"$1,146,874"}},{"$f":"AU10+'(Other Computations)'!B61*(AU9-AU10)/Inputs!B13/12","v":{"v":1146416.66530194,"d":"$1,146,417"}},{"$f":"AV10+'(Other Computations)'!B61*(AV9-AV10)/Inputs!B13/12","v":{"v":1145967.599840214,"d":"$1,145,968"}},{"$f":"AW10+'(Other Computations)'!B61*(AW9-AW10)/Inputs!B13/12","v":{"v":1145366.967975778,"d":"$1,145,367"}},{"$f":"AX10+'(Other Computations)'!B61*(AX9-AX10)/Inputs!B13/12","v":{"v":1144873.2232967212,"d":"$1,144,873"}},{"$f":"AY10+'(Other Computations)'!B61*(AY9-AY10)/Inputs!B13/12","v":{"v":1144489.1825005363,"d":"$1,144,489"}},{"$f":"SUM(AO10:AZ10)","v":{"v":13764728.273626637,"d":"$13,764,728"}},{"$f":"AZ10+'(Other Computations)'!B61*(AZ9-AZ10)/Inputs!B13/12","v":{"v":1144002.2363978191,"d":"$1,144,002"}},{"$f":"BB10+'(Other Computations)'!B61*(BB9-BB10)/Inputs!B13/12","v":{"v":1143476.6267702773,"d":"$1,143,477"}},{"$f":"BC10+'(Other Computations)'!B61*(BC9-BC10)/Inputs!B13/12","v":{"v":1143012.7207463025,"d":"$1,143,013"}},{"$f":"BD10+'(Other Computations)'!B61*(BD9-BD10)/Inputs!B13/12","v":{"v":1142630.6469942334,"d":"$1,142,631"}},{"$f":"BE10+'(Other Computations)'!B61*(BE9-BE10)/Inputs!B13/12","v":{"v":1142147.7915900536,"d":"$1,142,148"}},{"$f":"BF10+'(Other Computations)'!B61*(BF9-BF10)/Inputs!B13/12","v":{"v":1141742.7450480773,"d":"$1,141,743"}},{"$f":"BG10+'(Other Computations)'!B61*(BG9-BG10)/Inputs!B13/12","v":{"v":1141194.280442845,"d":"$1,141,194"}},{"$f":"BH10+'(Other Computations)'!B61*(BH9-BH10)/Inputs!B13/12","v":{"v":1140673.212337705,"d":"$1,140,673"}},{"$f":"BI10+'(Other Computations)'!B61*(BI9-BI10)/Inputs!B13/12","v":{"v":1140088.7490106288,"d":"$1,140,089"}},{"$f":"BJ10+'(Other Computations)'!B61*(BJ9-BJ10)/Inputs!B13/12","v":{"v":1139679.049493706,"d":"$1,139,679"}},{"$f":"BK10+'(Other Computations)'!B61*(BK9-BK10)/Inputs!B13/12","v":{"v":1139171.7470900633,"d":"$1,139,172"}},{"$f":"BL10+'(Other Computations)'!B61*(BL9-BL10)/Inputs!B13/12","v":{"v":1138717.8853646119,"d":"$1,138,718"}},{"$f":"SUM(BB10:BM10)","v":{"v":13696537.691286324,"d":"$13,696,538"}},{"$f":"BM10+'(Other Computations)'!B61*(BM9-BM10)/Inputs!B13/12","v":{"v":1138123.6816155284,"d":"$1,138,124"}},{"$f":"BO10+'(Other Computations)'!B61*(BO9-BO10)/Inputs!B13/12","v":{"v":1137512.472869459,"d":"$1,137,512"}},{"$f":"BP10+'(Other Computations)'!B61*(BP9-BP10)/Inputs!B13/12","v":{"v":1136955.3931830716,"d":"$1,136,955"}},{"$f":"BQ10+'(Other Computations)'!B61*(BQ9-BQ10)/Inputs!B13/12","v":{"v":1136525.0850896204,"d":"$1,136,525"}},{"$f":"BR10+'(Other Computations)'!B61*(BR9-BR10)/Inputs!B13/12","v":{"v":1136133.1810866173,"d":"$1,136,133"}},{"$f":"BS10+'(Other Computations)'!B61*(BS9-BS10)/Inputs!B13/12","v":{"v":1135549.2012740273,"d":"$1,135,549"}},{"$f":"BT10+'(Other Computations)'!B61*(BT9-BT10)/Inputs!B13/12","v":{"v":1135181.7896004536,"d":"$1,135,182"}},{"$f":"BU10+'(Other Computations)'!B61*(BU9-BU10)/Inputs!B13/12","v":{"v":1134653.999777764,"d":"$1,134,654"}},{"$f":"BV10+'(Other Computations)'!B61*(BV9-BV10)/Inputs!B13/12","v":{"v":1134225.4802252005,"d":"$1,134,225"}},{"$f":"BW10+'(Other Computations)'!B61*(BW9-BW10)/Inputs!B13/12","v":{"v":1133759.4001552293,"d":"$1,133,759"}},{"$f":"BX10+'(Other Computations)'!B61*(BX9-BX10)/Inputs!B13/12","v":{"v":1133159.9916982274,"d":"$1,133,160"}},{"$f":"BY10+'(Other Computations)'!B61*(BY9-BY10)/Inputs!B13/12","v":{"v":1132817.6297321364,"d":"$1,132,818"}},{"$f":"SUM(BO10:BZ10)","v":{"v":13624597.306307334,"d":"$13,624,597"}},{"$f":"BZ10+'(Other Computations)'!B61*(BZ9-BZ10)/Inputs!B13/12","v":{"v":1132363.0082991149,"d":"$1,132,363"}},{"$f":"CB10+'(Other Computations)'!B61*(CB9-CB10)/Inputs!B13/12","v":{"v":1131940.1733149816,"d":"$1,131,940"}},{"$f":"CC10+'(Other Computations)'!B61*(CC9-CC10)/Inputs!B13/12","v":{"v":1131413.466787723,"d":"$1,131,413"}},{"$f":"CD10+'(Other Computations)'!B61*(CD9-CD10)/Inputs!B13/12","v":{"v":1130924.1804213533,"d":"$1,130,924"}},{"$f":"CE10+'(Other Computations)'!B61*(CE9-CE10)/Inputs!B13/12","v":{"v":1130532.7978169369,"d":"$1,130,533"}},{"$f":"CF10+'(Other Computations)'!B61*(CF9-CF10)/Inputs!B13/12","v":{"v":1130094.9682176523,"d":"$1,130,095"}},{"$f":"CG10+'(Other Computations)'!B61*(CG9-CG10)/Inputs!B13/12","v":{"v":1129692.054101536,"d":"$1,129,692"}},{"$f":"CH10+'(Other Computations)'!B61*(CH9-CH10)/Inputs!B13/12","v":{"v":1129222.321790152,"d":"$1,129,222"}},{"$f":"CI10+'(Other Computations)'!B61*(CI9-CI10)/Inputs!B13/12","v":{"v":1128839.8268709648,"d":"$1,128,840"}},{"$f":"CJ10+'(Other Computations)'!B61*(CJ9-CJ10)/Inputs!B13/12","v":{"v":1128277.688691827,"d":"$1,128,278"}},{"$f":"CK10+'(Other Computations)'!B61*(CK9-CK10)/Inputs!B13/12","v":{"v":1127793.3199612775,"d":"$1,127,793"}},{"$f":"CL10+'(Other Computations)'!B61*(CL9-CL10)/Inputs!B13/12","v":{"v":1127208.8773515425,"d":"$1,127,209"}},{"$f":"SUM(CB10:CM10)","v":{"v":13558302.683625061,"d":"$13,558,303"}},{"$f":"CM10+'(Other Computations)'!B61*(CM9-CM10)/Inputs!B13/12","v":{"v":1126719.34508814,"d":"$1,126,719"}},{"$f":"CO10+'(Other Computations)'!B61*(CO9-CO10)/Inputs!B13/12","v":{"v":1126194.510959385,"d":"$1,126,195"}},{"$f":"CP10+'(Other Computations)'!B61*(CP9-CP10)/Inputs!B13/12","v":{"v":1125721.978966777,"d":"$1,125,722"}},{"$f":"CQ10+'(Other Computations)'!B61*(CQ9-CQ10)/Inputs!B13/12","v":{"v":1125280.4038760276,"d":"$1,125,280"}},{"$f":"CR10+'(Other Computations)'!B61*(CR9-CR10)/Inputs!B13/12","v":{"v":1124775.4696630505,"d":"$1,124,775"}},{"$f":"CS10+'(Other Computations)'!B61*(CS9-CS10)/Inputs!B13/12","v":{"v":1124346.482057668,"d":"$1,124,346"}},{"$f":"CT10+'(Other Computations)'!B61*(CT9-CT10)/Inputs!B13/12","v":{"v":1123795.1537021112,"d":"$1,123,795"}},{"$f":"CU10+'(Other Computations)'!B61*(CU9-CU10)/Inputs!B13/12","v":{"v":1123407.3852731963,"d":"$1,123,407"}},{"$f":"CV10+'(Other Computations)'!B61*(CV9-CV10)/Inputs!B13/12","v":{"v":1122916.5429197233,"d":"$1,122,917"}},{"$f":"CW10+'(Other Computations)'!B61*(CW9-CW10)/Inputs!B13/12","v":{"v":1122528.1134144093,"d":"$1,122,528"}},{"$f":"CX10+'(Other Computations)'!B61*(CX9-CX10)/Inputs!B13/12","v":{"v":1121918.2109988786,"d":"$1,121,918"}},{"$f":"CY10+'(Other Computations)'!B61*(CY9-CY10)/Inputs!B13/12","v":{"v":1121513.5404274003,"d":"$1,121,514"}},{"$f":"SUM(CO10:CZ10)","v":{"v":13489117.137346765,"d":"$13,489,117"}},{"$f":"CZ10+'(Other Computations)'!B61*(CZ9-CZ10)/Inputs!B13/12","v":{"v":1121020.5589814933,"d":"$1,121,021"}},{"$f":"DB10+'(Other Computations)'!B61*(DB9-DB10)/Inputs!B13/12","v":{"v":1120520.1719276884,"d":"$1,120,520"}},{"$f":"DC10+'(Other Computations)'!B61*(DC9-DC10)/Inputs!B13/12","v":{"v":1120089.1197768326,"d":"$1,120,089"}},{"$f":"DD10+'(Other Computations)'!B61*(DD9-DD10)/Inputs!B13/12","v":{"v":1119583.5155878873,"d":"$1,119,584"}},{"$f":"DE10+'(Other Computations)'!B61*(DE9-DE10)/Inputs!B13/12","v":{"v":1119157.7545362492,"d":"$1,119,158"}},{"$f":"DF10+'(Other Computations)'!B61*(DF9-DF10)/Inputs!B13/12","v":{"v":1118756.1278200876,"d":"$1,118,756"}},{"$f":"DG10+'(Other Computations)'!B61*(DG9-DG10)/Inputs!B13/12","v":{"v":1118282.2258310593,"d":"$1,118,282"}},{"$f":"DH10+'(Other Computations)'!B61*(DH9-DH10)/Inputs!B13/12","v":{"v":1117821.8996783625,"d":"$1,117,822"}},{"$f":"DI10+'(Other Computations)'!B61*(DI9-DI10)/Inputs!B13/12","v":{"v":1117371.6017070757,"d":"$1,117,372"}},{"$f":"DJ10+'(Other Computations)'!B61*(DJ9-DJ10)/Inputs!B13/12","v":{"v":1117006.100044907,"d":"$1,117,006"}},{"$f":"DK10+'(Other Computations)'!B61*(DK9-DK10)/Inputs!B13/12","v":{"v":1116461.2910337627,"d":"$1,116,461"}},{"$f":"DL10+'(Other Computations)'!B61*(DL9-DL10)/Inputs!B13/12","v":{"v":1115855.7036959385,"d":"$1,115,856"}},{"$f":"SUM(DB10:DM10)","v":{"v":13421926.070621345,"d":"$13,421,926"}},{"$f":"DM10+'(Other Computations)'!B61*(DM9-DM10)/Inputs!B13/12","v":{"v":1115298.65022742,"d":"$1,115,299"}},{"$f":"DO10+'(Other Computations)'!B61*(DO9-DO10)/Inputs!B13/12","v":{"v":1114897.9526703402,"d":"$1,114,898"}},{"$f":"DP10+'(Other Computations)'!B61*(DP9-DP10)/Inputs!B13/12","v":{"v":1114320.5575549696,"d":"$1,114,321"}},{"$f":"DQ10+'(Other Computations)'!B61*(DQ9-DQ10)/Inputs!B13/12","v":{"v":1113858.5983308996,"d":"$1,113,859"}},{"$f":"DR10+'(Other Computations)'!B61*(DR9-DR10)/Inputs!B13/12","v":{"v":1113365.3484244612,"d":"$1,113,365"}},{"$f":"DS10+'(Other Computations)'!B61*(DS9-DS10)/Inputs!B13/12","v":{"v":1112829.5236386005,"d":"$1,112,830"}},{"$f":"DT10+'(Other Computations)'!B61*(DT9-DT10)/Inputs!B13/12","v":{"v":1112381.6625615277,"d":"$1,112,382"}},{"$f":"DU10+'(Other Computations)'!B61*(DU9-DU10)/Inputs!B13/12","v":{"v":1111971.6986299444,"d":"$1,111,972"}},{"$f":"DV10+'(Other Computations)'!B61*(DV9-DV10)/Inputs!B13/12","v":{"v":1111549.4664281835,"d":"$1,111,549"}},{"$f":"DW10+'(Other Computations)'!B61*(DW9-DW10)/Inputs!B13/12","v":{"v":1110995.1236595702,"d":"$1,110,995"}},{"$f":"DX10+'(Other Computations)'!B61*(DX9-DX10)/Inputs!B13/12","v":{"v":1110585.0497392027,"d":"$1,110,585"}},{"$f":"DY10+'(Other Computations)'!B61*(DY9-DY10)/Inputs!B13/12","v":{"v":1110110.5796638832,"d":"$1,110,111"}},{"$f":"SUM(DO10:DZ10)","v":{"v":13352164.211529002,"d":"$13,352,164"}},{"$f":"DZ10+'(Other Computations)'!B61*(DZ9-DZ10)/Inputs!B13/12","v":{"v":1109553.828738465,"d":"$1,109,554"}},{"$f":"EB10+'(Other Computations)'!B61*(EB9-EB10)/Inputs!B13/12","v":{"v":1109156.078345983,"d":"$1,109,156"}},{"$f":"EC10+'(Other Computations)'!B61*(EC9-EC10)/Inputs!B13/12","v":{"v":1108725.0144679244,"d":"$1,108,725"}},{"$f":"ED10+'(Other Computations)'!B61*(ED9-ED10)/Inputs!B13/12","v":{"v":1108132.1402458006,"d":"$1,108,132"}},{"$f":"EE10+'(Other Computations)'!B61*(EE9-EE10)/Inputs!B13/12","v":{"v":1107654.4468435294,"d":"$1,107,654"}},{"$f":"EF10+'(Other Computations)'!B61*(EF9-EF10)/Inputs!B13/12","v":{"v":1107296.3350817752,"d":"$1,107,296"}},{"$f":"EG10+'(Other Computations)'!B61*(EG9-EG10)/Inputs!B13/12","v":{"v":1106749.398504927,"d":"$1,106,749"}},{"$f":"EH10+'(Other Computations)'!B61*(EH9-EH10)/Inputs!B13/12","v":{"v":1106226.1057680799,"d":"$1,106,226"}},{"$f":"EI10+'(Other Computations)'!B61*(EI9-EI10)/Inputs!B13/12","v":{"v":1105678.3778223416,"d":"$1,105,678"}},{"$f":"EJ10+'(Other Computations)'!B61*(EJ9-EJ10)/Inputs!B13/12","v":{"v":1105241.2495190373,"d":"$1,105,241"}},{"$f":"EK10+'(Other Computations)'!B61*(EK9-EK10)/Inputs!B13/12","v":{"v":1104734.8002461842,"d":"$1,104,735"}},{"$f":"EL10+'(Other Computations)'!B61*(EL9-EL10)/Inputs!B13/12","v":{"v":1104313.716370796,"d":"$1,104,314"}},{"$f":"SUM(EB10:EM10)","v":{"v":13283461.491954844,"d":"$13,283,461"}}]
[{"$f":"Labels!B34","v":"Short Expected Demand"},{"$f":"'(Other Computations)'!B8+'(Other Computations)'!B61*0/Inputs!B14/12","v":{"v":1166666.6666666667,"d":"$1,166,667"}},{"$f":"B11+'(Other Computations)'!B61*(B9-B11)/Inputs!B14/12","v":{"v":1163672.794806357,"d":"$1,163,673"}},{"$f":"C11+'(Other Computations)'!B61*(C9-C11)/Inputs!B14/12","v":{"v":1160313.3694818474,"d":"$1,160,313"}},{"$f":"D11+'(Other Computations)'!B61*(D9-D11)/Inputs!B14/12","v":{"v":1157685.1768315025,"d":"$1,157,685"}},{"$f":"E11+'(Other Computations)'!B61*(E9-E11)/Inputs!B14/12","v":{"v":1155819.2201314033,"d":"$1,155,819"}},{"$f":"F11+'(Other Computations)'!B61*(F9-F11)/Inputs!B14/12","v":{"v":1153363.10832036,"d":"$1,153,363"}},{"$f":"G11+'(Other Computations)'!B61*(G9-G11)/Inputs!B14/12","v":{"v":1150445.5045749245,"d":"$1,150,446"}},{"$f":"H11+'(Other Computations)'!B61*(H9-H11)/Inputs!B14/12","v":{"v":1147818.2066799256,"d":"$1,147,818"}},{"$f":"I11+'(Other Computations)'!B61*(I9-I11)/Inputs!B14/12","v":{"v":1144710.74156971,"d":"$1,144,711"}},{"$f":"J11+'(Other Computations)'!B61*(J9-J11)/Inputs!B14/12","v":{"v":1142347.0076358458,"d":"$1,142,347"}},{"$f":"K11+'(Other Computations)'!B61*(K9-K11)/Inputs!B14/12","v":{"v":1139891.5026868721,"d":"$1,139,892"}},{"$f":"L11+'(Other Computations)'!B61*(L9-L11)/Inputs!B14/12","v":{"v":1136878.7568126745,"d":"$1,136,879"}},{"$f":"SUM(B11:M11)","v":{"v":13819612.056198092,"d":"$13,819,612"}},{"$f":"M11+'(Other Computations)'!B61*(M9-M11)/Inputs!B14/12","v":{"v":1134832.9931777578,"d":"$1,134,833"}},{"$f":"O11+'(Other Computations)'!B61*(O9-O11)/Inputs!B14/12","v":{"v":1132112.3476861366,"d":"$1,132,112"}},{"$f":"P11+'(Other Computations)'!B61*(P9-P11)/Inputs!B14/12","v":{"v":1130096.7096271573,"d":"$1,130,097"}},{"$f":"Q11+'(Other Computations)'!B61*(Q9-Q11)/Inputs!B14/12","v":{"v":1128157.7382680434,"d":"$1,128,158"}},{"$f":"R11+'(Other Computations)'!B61*(R9-R11)/Inputs!B14/12","v":{"v":1125674.5586503174,"d":"$1,125,675"}},{"$f":"S11+'(Other Computations)'!B61*(S9-S11)/Inputs!B14/12","v":{"v":1123230.8852490585,"d":"$1,123,231"}},{"$f":"T11+'(Other Computations)'!B61*(T9-T11)/Inputs!B14/12","v":{"v":1120811.3129704257,"d":"$1,120,811"}},{"$f":"U11+'(Other Computations)'!B61*(U9-U11)/Inputs!B14/12","v":{"v":1117977.2993260173,"d":"$1,117,977"}},{"$f":"V11+'(Other Computations)'!B61*(V9-V11)/Inputs!B14/12","v":{"v":1115354.6381699478,"d":"$1,115,355"}},{"$f":"W11+'(Other Computations)'!B61*(W9-W11)/Inputs!B14/12","v":{"v":1112884.2050893358,"d":"$1,112,884"}},{"$f":"X11+'(Other Computations)'!B61*(X9-X11)/Inputs!B14/12","v":{"v":1110345.6947881537,"d":"$1,110,346"}},{"$f":"Y11+'(Other Computations)'!B61*(Y9-Y11)/Inputs!B14/12","v":{"v":1107321.0586693392,"d":"$1,107,321"}},{"$f":"SUM(O11:Z11)","v":{"v":13458799.441671694,"d":"$13,458,799"}},{"$f":"Z11+'(Other Computations)'!B61*(Z9-Z11)/Inputs!B14/12","v":{"v":1105405.658994544,"d":"$1,105,406"}},{"$f":"AB11+'(Other Computations)'!B61*(AB9-AB11)/Inputs!B14/12","v":{"v":1103269.299391796,"d":"$1,103,269"}},{"$f":"AC11+'(Other Computations)'!B61*(AC9-AC11)/Inputs!B14/12","v":{"v":1101197.754742294,"d":"$1,101,198"}},{"$f":"AD11+'(Other Computations)'!B61*(AD9-AD11)/Inputs!B14/12","v":{"v":1099109.5263861457,"d":"$1,099,110"}},{"$f":"AE11+'(Other Computations)'!B61*(AE9-AE11)/Inputs!B14/12","v":{"v":1097870.3879033418,"d":"$1,097,870"}},{"$f":"AF11+'(Other Computations)'!B61*(AF9-AF11)/Inputs!B14/12","v":{"v":1095819.4545424466,"d":"$1,095,819"}},{"$f":"AG11+'(Other Computations)'!B61*(AG9-AG11)/Inputs!B14/12","v":{"v":1093587.4006064478,"d":"$1,093,587"}},{"$f":"AH11+'(Other Computations)'!B61*(AH9-AH11)/Inputs!B14/12","v":{"v":1091812.6567025285,"d":"$1,091,813"}},{"$f":"AI11+'(Other Computations)'!B61*(AI9-AI11)/Inputs!B14/12","v":{"v":1089170.8931053015,"d":"$1,089,171"}},{"$f":"AJ11+'(Other Computations)'!B61*(AJ9-AJ11)/Inputs!B14/12","v":{"v":1087257.0356433543,"d":"$1,087,257"}},{"$f":"AK11+'(Other Computations)'!B61*(AK9-AK11)/Inputs!B14/12","v":{"v":1085633.8211005146,"d":"$1,085,634"}},{"$f":"AL11+'(Other Computations)'!B61*(AL9-AL11)/Inputs!B14/12","v":{"v":1084369.8288761296,"d":"$1,084,370"}},{"$f":"SUM(AB11:AM11)","v":{"v":13134503.717994846,"d":"$13,134,504"}},{"$f":"AM11+'(Other Computations)'!B61*(AM9-AM11)/Inputs!B14/12","v":{"v":1082206.148770225,"d":"$1,082,206"}},{"$f":"AO11+'(Other Computations)'!B61*(AO9-AO11)/Inputs!B14/12","v":{"v":1080224.6880475392,"d":"$1,080,225"}},{"$f":"AP11+'(Other Computations)'!B61*(AP9-AP11)/Inputs!B14/12","v":{"v":1078597.7632006882,"d":"$1,078,598"}},{"$f":"AQ11+'(Other Computations)'!B61*(AQ9-AQ11)/Inputs!B14/12","v":{"v":1076951.64923381,"d":"$1,076,952"}},{"$f":"AR11+'(Other Computations)'!B61*(AR9-AR11)/Inputs!B14/12","v":{"v":1074887.7448567636,"d":"$1,074,888"}},{"$f":"AS11+'(Other Computations)'!B61*(AS9-AS11)/Inputs!B14/12","v":{"v":1073287.2060032717,"d":"$1,073,287"}},{"$f":"AT11+'(Other Computations)'!B61*(AT9-AT11)/Inputs!B14/12","v":{"v":1071690.861825852,"d":"$1,071,691"}},{"$f":"AU11+'(Other Computations)'!B61*(AU9-AU11)/Inputs!B14/12","v":{"v":1069989.7223461368,"d":"$1,069,990"}},{"$f":"AV11+'(Other Computations)'!B61*(AV9-AV11)/Inputs!B14/12","v":{"v":1068356.814894612,"d":"$1,068,357"}},{"$f":"AW11+'(Other Computations)'!B61*(AW9-AW11)/Inputs!B14/12","v":{"v":1065830.9512766856,"d":"$1,065,831"}},{"$f":"AX11+'(Other Computations)'!B61*(AX9-AX11)/Inputs!B14/12","v":{"v":1063973.1501009432,"d":"$1,063,973"}},{"$f":"AY11+'(Other Computations)'!B61*(AY9-AY11)/Inputs!B14/12","v":{"v":1062792.5174515536,"d":"$1,062,793"}},{"$f":"SUM(AO11:AZ11)","v":{"v":12868789.218008082,"d":"$12,868,789"}},{"$f":"AZ11+'(Other Computations)'!B61*(AZ9-AZ11)/Inputs!B14/12","v":{"v":1061005.5167387086,"d":"$1,061,006"}},{"$f":"BB11+'(Other Computations)'!B61*(BB9-BB11)/Inputs!B14/12","v":{"v":1059004.5911909456,"d":"$1,059,005"}},{"$f":"BC11+'(Other Computations)'!B61*(BC9-BC11)/Inputs!B14/12","v":{"v":1057394.377763477,"d":"$1,057,394"}},{"$f":"BD11+'(Other Computations)'!B61*(BD9-BD11)/Inputs!B14/12","v":{"v":1056291.0789036017,"d":"$1,056,291"}},{"$f":"BE11+'(Other Computations)'!B61*(BE9-BE11)/Inputs!B14/12","v":{"v":1054593.107146449,"d":"$1,054,593"}},{"$f":"BF11+'(Other Computations)'!B61*(BF9-BF11)/Inputs!B14/12","v":{"v":1053378.8651785306,"d":"$1,053,379"}},{"$f":"BG11+'(Other Computations)'!B61*(BG9-BG11)/Inputs!B14/12","v":{"v":1051315.3536564359,"d":"$1,051,315"}},{"$f":"BH11+'(Other Computations)'!B61*(BH9-BH11)/Inputs!B14/12","v":{"v":1049437.2634531849,"d":"$1,049,437"}},{"$f":"BI11+'(Other Computations)'!B61*(BI9-BI11)/Inputs!B14/12","v":{"v":1047197.6494474565,"d":"$1,047,198"}},{"$f":"BJ11+'(Other Computations)'!B61*(BJ9-BJ11)/Inputs!B14/12","v":{"v":1046029.6065065201,"d":"$1,046,030"}},{"$f":"BK11+'(Other Computations)'!B61*(BK9-BK11)/Inputs!B14/12","v":{"v":1044286.4787928193,"d":"$1,044,286"}},{"$f":"BL11+'(Other Computations)'!B61*(BL9-BL11)/Inputs!B14/12","v":{"v":1042881.1593886834,"d":"$1,042,881"}},{"$f":"SUM(BB11:BM11)","v":{"v":12622815.048166815,"d":"$12,622,815"}},{"$f":"BM11+'(Other Computations)'!B61*(BM9-BM11)/Inputs!B14/12","v":{"v":1040647.0025327369,"d":"$1,040,647"}},{"$f":"BO11+'(Other Computations)'!B61*(BO9-BO11)/Inputs!B14/12","v":{"v":1038333.5928213602,"d":"$1,038,334"}},{"$f":"BP11+'(Other Computations)'!B61*(BP9-BP11)/Inputs!B14/12","v":{"v":1036368.5991481476,"d":"$1,036,369"}},{"$f":"BQ11+'(Other Computations)'!B61*(BQ9-BQ11)/Inputs!B14/12","v":{"v":1035183.7893934806,"d":"$1,035,184"}},{"$f":"BR11+'(Other Computations)'!B61*(BR9-BR11)/Inputs!B14/12","v":{"v":1034239.883371241,"d":"$1,034,240"}},{"$f":"BS11+'(Other Computations)'!B61*(BS9-BS11)/Inputs!B14/12","v":{"v":1032151.1891861929,"d":"$1,032,151"}},{"$f":"BT11+'(Other Computations)'!B61*(BT9-BT11)/Inputs!B14/12","v":{"v":1031382.8026459701,"d":"$1,031,383"}},{"$f":"BU11+'(Other Computations)'!B61*(BU9-BU11)/Inputs!B14/12","v":{"v":1029657.7163064227,"d":"$1,029,658"}},{"$f":"BV11+'(Other Computations)'!B61*(BV9-BV11)/Inputs!B14/12","v":{"v":1028544.8807059207,"d":"$1,028,545"}},{"$f":"BW11+'(Other Computations)'!B61*(BW9-BW11)/Inputs!B14/12","v":{"v":1027216.186390527,"d":"$1,027,216"}},{"$f":"BX11+'(Other Computations)'!B61*(BX9-BX11)/Inputs!B14/12","v":{"v":1025099.5025063588,"d":"$1,025,100"}},{"$f":"BY11+'(Other Computations)'!B61*(BY9-BY11)/Inputs!B14/12","v":{"v":1024546.1708374779,"d":"$1,024,546"}},{"$f":"SUM(BO11:BZ11)","v":{"v":12383371.315845838,"d":"$12,383,371"}},{"$f":"BZ11+'(Other Computations)'!B61*(BZ9-BZ11)/Inputs!B14/12","v":{"v":1023322.212501775,"d":"$1,023,322"}},{"$f":"CB11+'(Other Computations)'!B61*(CB9-CB11)/Inputs!B14/12","v":{"v":1022299.6580941604,"d":"$1,022,300"}},{"$f":"CC11+'(Other Computations)'!B61*(CC9-CC11)/Inputs!B14/12","v":{"v":1020662.2038642304,"d":"$1,020,662"}},{"$f":"CD11+'(Other Computations)'!B61*(CD9-CD11)/Inputs!B14/12","v":{"v":1019264.6976510616,"d":"$1,019,265"}},{"$f":"CE11+'(Other Computations)'!B61*(CE9-CE11)/Inputs!B14/12","v":{"v":1018467.2281741505,"d":"$1,018,467"}},{"$f":"CF11+'(Other Computations)'!B61*(CF9-CF11)/Inputs!B14/12","v":{"v":1017396.7168234824,"d":"$1,017,397"}},{"$f":"CG11+'(Other Computations)'!B61*(CG9-CG11)/Inputs!B14/12","v":{"v":1016544.4856183706,"d":"$1,016,544"}},{"$f":"CH11+'(Other Computations)'!B61*(CH9-CH11)/Inputs!B14/12","v":{"v":1015297.5857567766,"d":"$1,015,298"}},{"$f":"CI11+'(Other Computations)'!B61*(CI9-CI11)/Inputs!B14/12","v":{"v":1014584.9042421174,"d":"$1,014,585"}},{"$f":"CJ11+'(Other Computations)'!B61*(CJ9-CJ11)/Inputs!B14/12","v":{"v":1012798.9490926918,"d":"$1,012,799"}},{"$f":"CK11+'(Other Computations)'!B61*(CK9-CK11)/Inputs!B14/12","v":{"v":1011496.6080927158,"d":"$1,011,497"}},{"$f":"CL11+'(Other Computations)'!B61*(CL9-CL11)/Inputs!B14/12","v":{"v":1009605.184543591,"d":"$1,009,605"}},{"$f":"SUM(CB11:CM11)","v":{"v":12201740.434455125,"d":"$12,201,740"}},{"$f":"CM11+'(Other Computations)'!B61*(CM9-CM11)/Inputs!B14/12","v":{"v":1008301.3755855092,"d":"$1,008,301"}},{"$f":"CO11+'(Other Computations)'!B61*(CO9-CO11)/Inputs!B14/12","v":{"v":1006797.0648338486,"d":"$1,006,797"}},{"$f":"CP11+'(Other Computations)'!B61*(CP9-CP11)/Inputs!B14/12","v":{"v":1005620.1707410554,"d":"$1,005,620"}},{"$f":"CQ11+'(Other Computations)'!B61*(CQ9-CQ11)/Inputs!B14/12","v":{"v":1004638.8008663602,"d":"$1,004,639"}},{"$f":"CR11+'(Other Computations)'!B61*(CR9-CR11)/Inputs!B14/12","v":{"v":1003284.7734080772,"d":"$1,003,285"}},{"$f":"CS11+'(Other Computations)'!B61*(CS9-CS11)/Inputs!B14/12","v":{"v":1002398.2185571014,"d":"$1,002,398"}},{"$f":"CT11+'(Other Computations)'!B61*(CT9-CT11)/Inputs!B14/12","v":{"v":1000783.9743057132,"d":"$1,000,784"}},{"$f":"CU11+'(Other Computations)'!B61*(CU9-CU11)/Inputs!B14/12","v":{"v":1000165.8523349516,"d":"$1,000,166"}},{"$f":"CV11+'(Other Computations)'!B61*(CV9-CV11)/Inputs!B14/12","v":{"v":998932.4861715902,"d":"$998,932"}},{"$f":"CW11+'(Other Computations)'!B61*(CW9-CW11)/Inputs!B14/12","v":{"v":998323.9099278747,"d":"$998,324"}},{"$f":"CX11+'(Other Computations)'!B61*(CX9-CX11)/Inputs!B14/12","v":{"v":996389.5538164474,"d":"$996,390"}},{"$f":"CY11+'(Other Computations)'!B61*(CY9-CY11)/Inputs!B14/12","v":{"v":995704.983959555,"d":"$995,705"}},{"$f":"SUM(CO11:CZ11)","v":{"v":12021341.164508086,"d":"$12,021,341"}},{"$f":"CZ11+'(Other Computations)'!B61*(CZ9-CZ11)/Inputs!B14/12","v":{"v":994494.436346167,"d":"$994,494"}},{"$f":"DB11+'(Other Computations)'!B61*(DB9-DB11)/Inputs!B14/12","v":{"v":993249.4212821611,"d":"$993,249"}},{"$f":"DC11+'(Other Computations)'!B61*(DC9-DC11)/Inputs!B14/12","v":{"v":992430.7576915479,"d":"$992,431"}},{"$f":"DD11+'(Other Computations)'!B61*(DD9-DD11)/Inputs!B14/12","v":{"v":991170.1653646163,"d":"$991,170"}},{"$f":"DE11+'(Other Computations)'!B61*(DE9-DE11)/Inputs!B14/12","v":{"v":990399.1178078895,"d":"$990,399"}},{"$f":"DF11+'(Other Computations)'!B61*(DF9-DF11)/Inputs!B14/12","v":{"v":989777.6719099252,"d":"$989,778"}},{"$f":"DG11+'(Other Computations)'!B61*(DG9-DG11)/Inputs!B14/12","v":{"v":988725.6274189517,"d":"$988,726"}},{"$f":"DH11+'(Other Computations)'!B61*(DH9-DH11)/Inputs!B14/12","v":{"v":987763.0677029399,"d":"$987,763"}},{"$f":"DI11+'(Other Computations)'!B61*(DI9-DI11)/Inputs!B14/12","v":{"v":986867.6525415448,"d":"$986,868"}},{"$f":"DJ11+'(Other Computations)'!B61*(DJ9-DJ11)/Inputs!B14/12","v":{"v":986487.1974180538,"d":"$986,487"}},{"$f":"DK11+'(Other Computations)'!B61*(DK9-DK11)/Inputs!B14/12","v":{"v":985031.1058876712,"d":"$985,031"}},{"$f":"DL11+'(Other Computations)'!B61*(DL9-DL11)/Inputs!B14/12","v":{"v":983223.0010988654,"d":"$983,223"}},{"$f":"SUM(DB11:DM11)","v":{"v":11869619.222470336,"d":"$11,869,619"}},{"$f":"DM11+'(Other Computations)'!B61*(DM9-DM11)/Inputs!B14/12","v":{"v":981722.8011571586,"d":"$981,723"}},{"$f":"DO11+'(Other Computations)'!B61*(DO9-DO11)/Inputs!B14/12","v":{"v":981173.8359406554,"d":"$981,174"}},{"$f":"DP11+'(Other Computations)'!B61*(DP9-DP11)/Inputs!B14/12","v":{"v":979566.7446474547,"d":"$979,567"}},{"$f":"DQ11+'(Other Computations)'!B61*(DQ9-DQ11)/Inputs!B14/12","v":{"v":978666.5700378612,"d":"$978,667"}},{"$f":"DR11+'(Other Computations)'!B61*(DR9-DR11)/Inputs!B14/12","v":{"v":977584.7376588562,"d":"$977,585"}},{"$f":"DS11+'(Other Computations)'!B61*(DS9-DS11)/Inputs!B14/12","v":{"v":976255.6307598805,"d":"$976,256"}},{"$f":"DT11+'(Other Computations)'!B61*(DT9-DT11)/Inputs!B14/12","v":{"v":975465.3239207596,"d":"$975,465"}},{"$f":"DU11+'(Other Computations)'!B61*(DU9-DU11)/Inputs!B14/12","v":{"v":974907.1561457142,"d":"$974,907"}},{"$f":"DV11+'(Other Computations)'!B61*(DV9-DV11)/Inputs!B14/12","v":{"v":974277.4371363193,"d":"$974,277"}},{"$f":"DW11+'(Other Computations)'!B61*(DW9-DW11)/Inputs!B14/12","v":{"v":972857.9364870274,"d":"$972,858"}},{"$f":"DX11+'(Other Computations)'!B61*(DX9-DX11)/Inputs!B14/12","v":{"v":972316.0650088859,"d":"$972,316"}},{"$f":"DY11+'(Other Computations)'!B61*(DY9-DY11)/Inputs!B14/12","v":{"v":971389.6471226673,"d":"$971,390"}},{"$f":"SUM(DO11:DZ11)","v":{"v":11716183.88602324,"d":"$11,716,184"}},{"$f":"DZ11+'(Other Computations)'!B61*(DZ9-DZ11)/Inputs!B14/12","v":{"v":969975.8211887856,"d":"$969,976"}},{"$f":"EB11+'(Other Computations)'!B61*(EB9-EB11)/Inputs!B14/12","v":{"v":969527.9022720836,"d":"$969,528"}},{"$f":"EC11+'(Other Computations)'!B61*(EC9-EC11)/Inputs!B14/12","v":{"v":968880.79922698,"d":"$968,881"}},{"$f":"ED11+'(Other Computations)'!B61*(ED9-ED11)/Inputs!B14/12","v":{"v":967265.8346614732,"d":"$967,266"}},{"$f":"EE11+'(Other Computations)'!B61*(EE9-EE11)/Inputs!B14/12","v":{"v":966356.150714295,"d":"$966,356"}},{"$f":"EF11+'(Other Computations)'!B61*(EF9-EF11)/Inputs!B14/12","v":{"v":966169.9564788978,"d":"$966,170"}},{"$f":"EG11+'(Other Computations)'!B61*(EG9-EG11)/Inputs!B14/12","v":{"v":964848.4256095149,"d":"$964,848"}},{"$f":"EH11+'(Other Computations)'!B61*(EH9-EH11)/Inputs!B14/12","v":{"v":963679.516034202,"d":"$963,680"}},{"$f":"EI11+'(Other Computations)'!B61*(EI9-EI11)/Inputs!B14/12","v":{"v":962372.9621060764,"d":"$962,373"}},{"$f":"EJ11+'(Other Computations)'!B61*(EJ9-EJ11)/Inputs!B14/12","v":{"v":961740.5452823099,"d":"$961,741"}},{"$f":"EK11+'(Other Computations)'!B61*(EK9-EK11)/Inputs!B14/12","v":{"v":960694.914981812,"d":"$960,695"}},{"$f":"EL11+'(Other Computations)'!B61*(EL9-EL11)/Inputs!B14/12","v":{"v":960168.9656914882,"d":"$960,169"}},{"$f":"SUM(EB11:EM11)","v":{"v":11581681.794247918,"d":"$11,581,682"}}]
[{"$f":"Labels!B24","v":"Consumption"},{"$f":"Inputs!B34*'(Other Computations)'!B51","v":{"v":728000,"d":"$728,000"}},{"$f":"Inputs!B34*'(Other Computations)'!C51","v":{"v":727792.4516384226,"d":"$727,792"}},{"$f":"Inputs!B34*'(Other Computations)'!D51","v":{"v":727647.4268810212,"d":"$727,647"}},{"$f":"Inputs!B34*'(Other Computations)'!E51","v":{"v":727447.8093794861,"d":"$727,448"}},{"$f":"Inputs!B34*'(Other Computations)'!F51","v":{"v":727235.7421560957,"d":"$727,236"}},{"$f":"Inputs!B34*'(Other Computations)'!G51","v":{"v":727051.5104073923,"d":"$727,052"}},{"$f":"Inputs!B34*'(Other Computations)'!H51","v":{"v":726864.1307199782,"d":"$726,864"}},{"$f":"Inputs!B34*'(Other Computations)'!I51","v":{"v":726657.4470979015,"d":"$726,657"}},{"$f":"Inputs!B34*'(Other Computations)'!J51","v":{"v":726381.4967534164,"d":"$726,381"}},{"$f":"Inputs!B34*'(Other Computations)'!K51","v":{"v":726242.0325286535,"d":"$726,242"}},{"$f":"Inputs!B34*'(Other Computations)'!L51","v":{"v":725977.5225937543,"d":"$725,978"}},{"$f":"Inputs!B34*'(Other Computations)'!M51","v":{"v":725761.0407683664,"d":"$725,761"}},{"$f":"SUM(B12:M12)","v":{"v":8723058.610924488,"d":"$8,723,059"}},{"$f":"Inputs!B34*'(Other Computations)'!O51","v":{"v":725596.5236650602,"d":"$725,597"}},{"$f":"Inputs!B34*'(Other Computations)'!P51","v":{"v":725328.0593237625,"d":"$725,328"}},{"$f":"Inputs!B34*'(Other Computations)'!Q51","v":{"v":725028.1796834029,"d":"$725,028"}},{"$f":"Inputs!B34*'(Other Computations)'!R51","v":{"v":724869.6649696103,"d":"$724,870"}},{"$f":"Inputs!B34*'(Other Computations)'!S51","v":{"v":724621.7890609213,"d":"$724,622"}},{"$f":"Inputs!B34*'(Other Computations)'!T51","v":{"v":724416.1532679118,"d":"$724,416"}},{"$f":"Inputs!B34*'(Other Computations)'!U51","v":{"v":724073.843674456,"d":"$724,074"}},{"$f":"Inputs!B34*'(Other Computations)'!V51","v":{"v":723771.0413154945,"d":"$723,771"}},{"$f":"Inputs!B34*'(Other Computations)'!W51","v":{"v":723503.4161519842,"d":"$723,503"}},{"$f":"Inputs!B34*'(Other Computations)'!X51","v":{"v":723327.4490501985,"d":"$723,327"}},{"$f":"Inputs!B34*'(Other Computations)'!Y51","v":{"v":723100.0237484749,"d":"$723,100"}},{"$f":"Inputs!B34*'(Other Computations)'!Z51","v":{"v":722892.7960893587,"d":"$722,893"}},{"$f":"SUM(O12:Z12)","v":{"v":8690528.940000637,"d":"$8,690,529"}},{"$f":"Inputs!B34*'(Other Computations)'!AB51","v":{"v":722622.3560400014,"d":"$722,622"}},{"$f":"Inputs!B34*'(Other Computations)'!AC51","v":{"v":722339.2863756688,"d":"$722,339"}},{"$f":"Inputs!B34*'(Other Computations)'!AD51","v":{"v":722009.4608407007,"d":"$722,009"}},{"$f":"Inputs!B34*'(Other Computations)'!AE51","v":{"v":721774.7080816443,"d":"$721,775"}},{"$f":"Inputs!B34*'(Other Computations)'!AF51","v":{"v":721497.363099563,"d":"$721,497"}},{"$f":"Inputs!B34*'(Other Computations)'!AG51","v":{"v":721235.695616984,"d":"$721,236"}},{"$f":"Inputs!B34*'(Other Computations)'!AH51","v":{"v":720954.6753008805,"d":"$720,955"}},{"$f":"Inputs!B34*'(Other Computations)'!AI51","v":{"v":720690.6916169378,"d":"$720,691"}},{"$f":"Inputs!B34*'(Other Computations)'!AJ51","v":{"v":720400.312765908,"d":"$720,400"}},{"$f":"Inputs!B34*'(Other Computations)'!AK51","v":{"v":720142.0365449936,"d":"$720,142"}},{"$f":"Inputs!B34*'(Other Computations)'!AL51","v":{"v":719920.8346111111,"d":"$719,921"}},{"$f":"Inputs!B34*'(Other Computations)'!AM51","v":{"v":719637.4047712341,"d":"$719,637"}},{"$f":"SUM(AB12:AM12)","v":{"v":8653224.825665627,"d":"$8,653,225"}},{"$f":"Inputs!B34*'(Other Computations)'!AO51","v":{"v":719305.54217403,"d":"$719,306"}},{"$f":"Inputs!B34*'(Other Computations)'!AP51","v":{"v":718983.0306284388,"d":"$718,983"}},{"$f":"Inputs!B34*'(Other Computations)'!AQ51","v":{"v":718659.8214613998,"d":"$718,660"}},{"$f":"Inputs!B34*'(Other Computations)'!AR51","v":{"v":718406.7070700603,"d":"$718,407"}},{"$f":"Inputs!B34*'(Other Computations)'!AS51","v":{"v":718098.186915523,"d":"$718,098"}},{"$f":"Inputs!B34*'(Other Computations)'!AT51","v":{"v":717759.1238235809,"d":"$717,759"}},{"$f":"Inputs!B34*'(Other Computations)'!AU51","v":{"v":717464.8700462431,"d":"$717,465"}},{"$f":"Inputs!B34*'(Other Computations)'!AV51","v":{"v":717230.7521489952,"d":"$717,231"}},{"$f":"Inputs!B34*'(Other Computations)'!AW51","v":{"v":716965.2235980658,"d":"$716,965"}},{"$f":"Inputs!B34*'(Other Computations)'!AX51","v":{"v":716738.3150056673,"d":"$716,738"}},{"$f":"Inputs!B34*'(Other Computations)'!AY51","v":{"v":716472.2598495508,"d":"$716,472"}},{"$f":"Inputs!B34*'(Other Computations)'!AZ51","v":{"v":716097.6163702408,"d":"$716,098"}},{"$f":"SUM(AO12:AZ12)","v":{"v":8612181.449091796,"d":"$8,612,181"}},{"$f":"Inputs!B34*'(Other Computations)'!BB51","v":{"v":715778.3773678781,"d":"$715,778"}},{"$f":"Inputs!B34*'(Other Computations)'!BC51","v":{"v":715487.5779009612,"d":"$715,488"}},{"$f":"Inputs!B34*'(Other Computations)'!BD51","v":{"v":715223.9371297046,"d":"$715,224"}},{"$f":"Inputs!B34*'(Other Computations)'!BE51","v":{"v":714896.2285234303,"d":"$714,896"}},{"$f":"Inputs!B34*'(Other Computations)'!BF51","v":{"v":714574.99399209,"d":"$714,575"}},{"$f":"Inputs!B34*'(Other Computations)'!BG51","v":{"v":714332.6612935705,"d":"$714,333"}},{"$f":"Inputs!B34*'(Other Computations)'!BH51","v":{"v":714025.282937873,"d":"$714,025"}},{"$f":"Inputs!B34*'(Other Computations)'!BI51","v":{"v":713685.9323819338,"d":"$713,686"}},{"$f":"Inputs!B34*'(Other Computations)'!BJ51","v":{"v":713404.7308526504,"d":"$713,405"}},{"$f":"Inputs!B34*'(Other Computations)'!BK51","v":{"v":713085.797603858,"d":"$713,086"}},{"$f":"Inputs!B34*'(Other Computations)'!BL51","v":{"v":712707.5448434523,"d":"$712,708"}},{"$f":"Inputs!B34*'(Other Computations)'!BM51","v":{"v":712327.505412603,"d":"$712,328"}},{"$f":"SUM(BB12:BM12)","v":{"v":8569530.570240006,"d":"$8,569,531"}},{"$f":"Inputs!B34*'(Other Computations)'!BO51","v":{"v":712092.4042933019,"d":"$712,092"}},{"$f":"Inputs!B34*'(Other Computations)'!BP51","v":{"v":711743.265703353,"d":"$711,743"}},{"$f":"Inputs!B34*'(Other Computations)'!BQ51","v":{"v":711436.0271144937,"d":"$711,436"}},{"$f":"Inputs!B34*'(Other Computations)'!BR51","v":{"v":711145.6567919068,"d":"$711,146"}},{"$f":"Inputs!B34*'(Other Computations)'!BS51","v":{"v":710847.7483828989,"d":"$710,848"}},{"$f":"Inputs!B34*'(Other Computations)'!BT51","v":{"v":710532.2990664938,"d":"$710,532"}},{"$f":"Inputs!B34*'(Other Computations)'!BU51","v":{"v":710142.1171653351,"d":"$710,142"}},{"$f":"Inputs!B34*'(Other Computations)'!BV51","v":{"v":709795.0352734618,"d":"$709,795"}},{"$f":"Inputs!B34*'(Other Computations)'!BW51","v":{"v":709534.2672237848,"d":"$709,534"}},{"$f":"Inputs!B34*'(Other Computations)'!BX51","v":{"v":709224.6605509184,"d":"$709,225"}},{"$f":"Inputs!B34*'(Other Computations)'!BY51","v":{"v":708882.7294901012,"d":"$708,883"}},{"$f":"Inputs!B34*'(Other Computations)'!BZ51","v":{"v":708605.776934794,"d":"$708,606"}},{"$f":"SUM(BO12:BZ12)","v":{"v":8523981.987990843,"d":"$8,523,982"}},{"$f":"Inputs!B34*'(Other Computations)'!CB51","v":{"v":708305.3530766944,"d":"$708,305"}},{"$f":"Inputs!B34*'(Other Computations)'!CC51","v":{"v":708059.7482592985,"d":"$708,060"}},{"$f":"Inputs!B34*'(Other Computations)'!CD51","v":{"v":707794.0320007275,"d":"$707,794"}},{"$f":"Inputs!B34*'(Other Computations)'!CE51","v":{"v":707474.226854529,"d":"$707,474"}},{"$f":"Inputs!B34*'(Other Computations)'!CF51","v":{"v":707156.9231058428,"d":"$707,157"}},{"$f":"Inputs!B34*'(Other Computations)'!CG51","v":{"v":706868.1294457224,"d":"$706,868"}},{"$f":"Inputs!B34*'(Other Computations)'!CH51","v":{"v":706515.5723593448,"d":"$706,516"}},{"$f":"Inputs!B34*'(Other Computations)'!CI51","v":{"v":706225.3282281223,"d":"$706,225"}},{"$f":"Inputs!B34*'(Other Computations)'!CJ51","v":{"v":705937.1814711086,"d":"$705,937"}},{"$f":"Inputs!B34*'(Other Computations)'!CK51","v":{"v":705691.3776180197,"d":"$705,691"}},{"$f":"Inputs!B34*'(Other Computations)'!CL51","v":{"v":705303.5312370631,"d":"$705,304"}},{"$f":"Inputs!B34*'(Other Computations)'!CM51","v":{"v":704982.4965124377,"d":"$704,982"}},{"$f":"SUM(CB12:CM12)","v":{"v":8480313.90016891,"d":"$8,480,314"}},{"$f":"Inputs!B34*'(Other Computations)'!CO51","v":{"v":704722.6986487332,"d":"$704,723"}},{"$f":"Inputs!B34*'(Other Computations)'!CP51","v":{"v":704367.0725985537,"d":"$704,367"}},{"$f":"Inputs!B34*'(Other Computations)'!CQ51","v":{"v":704030.9699380872,"d":"$704,031"}},{"$f":"Inputs!B34*'(Other Computations)'!CR51","v":{"v":703718.8071566534,"d":"$703,719"}},{"$f":"Inputs!B34*'(Other Computations)'!CS51","v":{"v":703360.5248827414,"d":"$703,361"}},{"$f":"Inputs!B34*'(Other Computations)'!CT51","v":{"v":703048.2473972715,"d":"$703,048"}},{"$f":"Inputs!B34*'(Other Computations)'!CU51","v":{"v":702653.8633995488,"d":"$702,654"}},{"$f":"Inputs!B34*'(Other Computations)'!CV51","v":{"v":702391.2522408277,"d":"$702,391"}},{"$f":"Inputs!B34*'(Other Computations)'!CW51","v":{"v":701974.8837827399,"d":"$701,975"}},{"$f":"Inputs!B34*'(Other Computations)'!CX51","v":{"v":701669.7551774392,"d":"$701,670"}},{"$f":"Inputs!B34*'(Other Computations)'!CY51","v":{"v":701427.0455658421,"d":"$701,427"}},{"$f":"Inputs!B34*'(Other Computations)'!CZ51","v":{"v":701041.7895216033,"d":"$701,042"}},{"$f":"SUM(CO12:CZ12)","v":{"v":8434406.91031004,"d":"$8,434,407"}},{"$f":"Inputs!B34*'(Other Computations)'!DB51","v":{"v":700707.89021205,"d":"$700,708"}},{"$f":"Inputs!B34*'(Other Computations)'!DC51","v":{"v":700376.0501411738,"d":"$700,376"}},{"$f":"Inputs!B34*'(Other Computations)'!DD51","v":{"v":700027.3715348414,"d":"$700,027"}},{"$f":"Inputs!B34*'(Other Computations)'!DE51","v":{"v":699708.2019827685,"d":"$699,708"}},{"$f":"Inputs!B34*'(Other Computations)'!DF51","v":{"v":699372.8651378565,"d":"$699,373"}},{"$f":"Inputs!B34*'(Other Computations)'!DG51","v":{"v":699082.2688161032,"d":"$699,082"}},{"$f":"Inputs!B34*'(Other Computations)'!DH51","v":{"v":698714.3542403469,"d":"$698,714"}},{"$f":"Inputs!B34*'(Other Computations)'!DI51","v":{"v":698355.7645787675,"d":"$698,356"}},{"$f":"Inputs!B34*'(Other Computations)'!DJ51","v":{"v":698001.8345565015,"d":"$698,002"}},{"$f":"Inputs!B34*'(Other Computations)'!DK51","v":{"v":697669.8310743737,"d":"$697,670"}},{"$f":"Inputs!B34*'(Other Computations)'!DL51","v":{"v":697377.0240967711,"d":"$697,377"}},{"$f":"Inputs!B34*'(Other Computations)'!DM51","v":{"v":697113.0514676842,"d":"$697,113"}},{"$f":"SUM(DB12:DM12)","v":{"v":8386506.507839237,"d":"$8,386,507"}},{"$f":"Inputs!B34*'(Other Computations)'!DO51","v":{"v":696702.8365946541,"d":"$696,703"}},{"$f":"Inputs!B34*'(Other Computations)'!DP51","v":{"v":696327.6548419218,"d":"$696,328"}},{"$f":"Inputs!B34*'(Other Computations)'!DQ51","v":{"v":695913.373106939,"d":"$695,913"}},{"$f":"Inputs!B34*'(Other Computations)'!DR51","v":{"v":695545.6647090819,"d":"$695,546"}},{"$f":"Inputs!B34*'(Other Computations)'!DS51","v":{"v":695206.855312846,"d":"$695,207"}},{"$f":"Inputs!B34*'(Other Computations)'!DT51","v":{"v":694835.8789526569,"d":"$694,836"}},{"$f":"Inputs!B34*'(Other Computations)'!DU51","v":{"v":694481.8088281903,"d":"$694,482"}},{"$f":"Inputs!B34*'(Other Computations)'!DV51","v":{"v":694121.2086966,"d":"$694,121"}},{"$f":"Inputs!B34*'(Other Computations)'!DW51","v":{"v":693696.3411402818,"d":"$693,696"}},{"$f":"Inputs!B34*'(Other Computations)'!DX51","v":{"v":693353.8566544957,"d":"$693,354"}},{"$f":"Inputs!B34*'(Other Computations)'!DY51","v":{"v":693004.1365104048,"d":"$693,004"}},{"$f":"Inputs!B34*'(Other Computations)'!DZ51","v":{"v":692645.8305382215,"d":"$692,646"}},{"$f":"SUM(DO12:DZ12)","v":{"v":8335835.445886294,"d":"$8,335,835"}},{"$f":"Inputs!B34*'(Other Computations)'!EB51","v":{"v":692306.0064808707,"d":"$692,306"}},{"$f":"Inputs!B34*'(Other Computations)'!EC51","v":{"v":691964.7402437122,"d":"$691,965"}},{"$f":"Inputs!B34*'(Other Computations)'!ED51","v":{"v":691583.5642717994,"d":"$691,584"}},{"$f":"Inputs!B34*'(Other Computations)'!EE51","v":{"v":691142.7283379671,"d":"$691,143"}},{"$f":"Inputs!B34*'(Other Computations)'!EF51","v":{"v":690878.2673503328,"d":"$690,878"}},{"$f":"Inputs!B34*'(Other Computations)'!EG51","v":{"v":690553.9700047051,"d":"$690,554"}},{"$f":"Inputs!B34*'(Other Computations)'!EH51","v":{"v":690200.7957622288,"d":"$690,201"}},{"$f":"Inputs!B34*'(Other Computations)'!EI51","v":{"v":689898.4909807723,"d":"$689,898"}},{"$f":"Inputs!B34*'(Other Computations)'!EJ51","v":{"v":689561.8758987113,"d":"$689,562"}},{"$f":"Inputs!B34*'(Other Computations)'!EK51","v":{"v":689203.6923814538,"d":"$689,204"}},{"$f":"Inputs!B34*'(Other Computations)'!EL51","v":{"v":688826.6916258195,"d":"$688,827"}},{"$f":"Inputs!B34*'(Other Computations)'!EM51","v":{"v":688506.7206652765,"d":"$688,507"}},{"$f":"SUM(EB12:EM12)","v":{"v":8284627.544003649,"d":"$8,284,628"}}]
[{"$f":"Labels!B74","v":"Aggregate Demand Shock"},{"$f":"NORMINV(RAND()*(1-2*Inputs!B58)+Inputs!B58,0,'(Other Computations)'!B208)","v":{"v":-12280.788358529968,"d":"($12,281)"}},{"$f":"NORMINV(RAND()*(1-2*Inputs!B58)+Inputs!B58,0,'(Other Computations)'!B208)","v":{"v":-40975.35975570347,"d":"($40,975)"}},{"$f":"NORMINV(RAND()*(1-2*Inputs!B58)+Inputs!B58,0,'(Other Computations)'!B208)","v":{"v":8914.181053047007,"d":"$8,914"}},{"$f":"NORMINV(RAND()*(1-2*Inputs!B58)+Inputs!B58,0,'(Other Computations)'!B208)","v":{"v":61716.39273729128,"d":"$61,716"}},{"$f":"NORMINV(RAND()*(1-2*Inputs!B58)+Inputs!B58,0,'(Other Computations)'!B208)","v":{"v":17813.560011078414,"d":"$17,814"}},{"$f":"NORMINV(RAND()*(1-2*Inputs!B58)+Inputs!B58,0,'(Other Computations)'!B208)","v":{"v":-17363.96072464185,"d":"($17,364)"}},{"$f":"NORMINV(RAND()*(1-2*Inputs!B58)+Inputs!B58,0,'(Other Computations)'!B208)","v":{"v":1189.6035544669128,"d":"$1,190"}},{"$f":"NORMINV(RAND()*(1-2*Inputs!B58)+Inputs!B58,0,'(Other Computations)'!B208)","v":{"v":-35465.0933163641,"d":"($35,465)"}},{"$f":"NORMINV(RAND()*(1-2*Inputs!B58)+Inputs!B58,0,'(Other Computations)'!B208)","v":{"v":15653.254037021554,"d":"$15,653"}},{"$f":"NORMINV(RAND()*(1-2*Inputs!B58)+Inputs!B58,0,'(Other Computations)'!B208)","v":{"v":7116.473040870927,"d":"$7,116"}},{"$f":"NORMINV(RAND()*(1-2*Inputs!B58)+Inputs!B58,0,'(Other Computations)'!B208)","v":{"v":-34890.043266250366,"d":"($34,890)"}},{"$f":"NORMINV(RAND()*(1-2*Inputs!B58)+Inputs!B58,0,'(Other Computations)'!B208)","v":{"v":32316.313436644214,"d":"$32,316"}},{"$f":"SUM(B13:M13)","v":{"v":3744.5324489305603,"d":"$3,745"}},{"$f":"NORMINV(RAND()*(1-2*Inputs!B58)+Inputs!B58,0,'(Other Computations)'!B208)","v":{"v":-17913.088054017695,"d":"($17,913)"}},{"$f":"NORMINV(RAND()*(1-2*Inputs!B58)+Inputs!B58,0,'(Other Computations)'!B208)","v":{"v":30730.492096696005,"d":"$30,730"}},{"$f":"NORMINV(RAND()*(1-2*Inputs!B58)+Inputs!B58,0,'(Other Computations)'!B208)","v":{"v":34769.89141895605,"d":"$34,770"}},{"$f":"NORMINV(RAND()*(1-2*Inputs!B58)+Inputs!B58,0,'(Other Computations)'!B208)","v":{"v":-5969.870983814344,"d":"($5,970)"}},{"$f":"NORMINV(RAND()*(1-2*Inputs!B58)+Inputs!B58,0,'(Other Computations)'!B208)","v":{"v":-5063.508480203603,"d":"($5,064)"}},{"$f":"NORMINV(RAND()*(1-2*Inputs!B58)+Inputs!B58,0,'(Other Computations)'!B208)","v":{"v":-5276.994486918,"d":"($5,277)"}},{"$f":"NORMINV(RAND()*(1-2*Inputs!B58)+Inputs!B58,0,'(Other Computations)'!B208)","v":{"v":-36909.98266628036,"d":"($36,910)"}},{"$f":"NORMINV(RAND()*(1-2*Inputs!B58)+Inputs!B58,0,'(Other Computations)'!B208)","v":{"v":-23884.600175704738,"d":"($23,885)"}},{"$f":"NORMINV(RAND()*(1-2*Inputs!B58)+Inputs!B58,0,'(Other Computations)'!B208)","v":{"v":-14971.752138735652,"d":"($14,972)"}},{"$f":"NORMINV(RAND()*(1-2*Inputs!B58)+Inputs!B58,0,'(Other Computations)'!B208)","v":{"v":-21883.042143208957,"d":"($21,883)"}},{"$f":"NORMINV(RAND()*(1-2*Inputs!B58)+Inputs!B58,0,'(Other Computations)'!B208)","v":{"v":-58902.65631485259,"d":"($58,903)"}},{"$f":"NORMINV(RAND()*(1-2*Inputs!B58)+Inputs!B58,0,'(Other Computations)'!B208)","v":{"v":18502.538996357227,"d":"$18,503"}},{"$f":"SUM(O13:Z13)","v":{"v":-106772.57293172665,"d":"($106,773)"}},{"$f":"NORMINV(RAND()*(1-2*Inputs!B58)+Inputs!B58,0,'(Other Computations)'!B208)","v":{"v":1150.797609992831,"d":"$1,151"}},{"$f":"NORMINV(RAND()*(1-2*Inputs!B58)+Inputs!B58,0,'(Other Computations)'!B208)","v":{"v":4197.105198503056,"d":"$4,197"}},{"$f":"NORMINV(RAND()*(1-2*Inputs!B58)+Inputs!B58,0,'(Other Computations)'!B208)","v":{"v":1476.9943065840814,"d":"$1,477"}},{"$f":"NORMINV(RAND()*(1-2*Inputs!B58)+Inputs!B58,0,'(Other Computations)'!B208)","v":{"v":60982.31080431782,"d":"$60,982"}},{"$f":"NORMINV(RAND()*(1-2*Inputs!B58)+Inputs!B58,0,'(Other Computations)'!B208)","v":{"v":1678.0097418138234,"d":"$1,678"}},{"$f":"NORMINV(RAND()*(1-2*Inputs!B58)+Inputs!B58,0,'(Other Computations)'!B208)","v":{"v":-12932.53048694964,"d":"($12,933)"}},{"$f":"NORMINV(RAND()*(1-2*Inputs!B58)+Inputs!B58,0,'(Other Computations)'!B208)","v":{"v":18285.623889590755,"d":"$18,286"}},{"$f":"NORMINV(RAND()*(1-2*Inputs!B58)+Inputs!B58,0,'(Other Computations)'!B208)","v":{"v":-45471.69801608922,"d":"($45,472)"}},{"$f":"NORMINV(RAND()*(1-2*Inputs!B58)+Inputs!B58,0,'(Other Computations)'!B208)","v":{"v":4884.285291664825,"d":"$4,884"}},{"$f":"NORMINV(RAND()*(1-2*Inputs!B58)+Inputs!B58,0,'(Other Computations)'!B208)","v":{"v":24350.82410582402,"d":"$24,351"}},{"$f":"NORMINV(RAND()*(1-2*Inputs!B58)+Inputs!B58,0,'(Other Computations)'!B208)","v":{"v":48968.866379793966,"d":"$48,969"}},{"$f":"NORMINV(RAND()*(1-2*Inputs!B58)+Inputs!B58,0,'(Other Computations)'!B208)","v":{"v":-16682.321905487726,"d":"($16,682)"}},{"$f":"SUM(AB13:AM13)","v":{"v":90888.26691955858,"d":"$90,888"}},{"$f":"NORMINV(RAND()*(1-2*Inputs!B58)+Inputs!B58,0,'(Other Computations)'!B208)","v":{"v":-5162.945080488648,"d":"($5,163)"}},{"$f":"NORMINV(RAND()*(1-2*Inputs!B58)+Inputs!B58,0,'(Other Computations)'!B208)","v":{"v":18909.531741140898,"d":"$18,910"}},{"$f":"NORMINV(RAND()*(1-2*Inputs!B58)+Inputs!B58,0,'(Other Computations)'!B208)","v":{"v":16379.983182686248,"d":"$16,380"}},{"$f":"NORMINV(RAND()*(1-2*Inputs!B58)+Inputs!B58,0,'(Other Computations)'!B208)","v":{"v":-14935.159475057018,"d":"($14,935)"}},{"$f":"NORMINV(RAND()*(1-2*Inputs!B58)+Inputs!B58,0,'(Other Computations)'!B208)","v":{"v":16887.992632296584,"d":"$16,888"}},{"$f":"NORMINV(RAND()*(1-2*Inputs!B58)+Inputs!B58,0,'(Other Computations)'!B208)","v":{"v":16080.154720910698,"d":"$16,080"}},{"$f":"NORMINV(RAND()*(1-2*Inputs!B58)+Inputs!B58,0,'(Other Computations)'!B208)","v":{"v":7384.359519728429,"d":"$7,384"}},{"$f":"NORMINV(RAND()*(1-2*Inputs!B58)+Inputs!B58,0,'(Other Computations)'!B208)","v":{"v":10996.149251120703,"d":"$10,996"}},{"$f":"NORMINV(RAND()*(1-2*Inputs!B58)+Inputs!B58,0,'(Other Computations)'!B208)","v":{"v":-54507.440736279445,"d":"($54,507)"}},{"$f":"NORMINV(RAND()*(1-2*Inputs!B58)+Inputs!B58,0,'(Other Computations)'!B208)","v":{"v":-8426.345992950519,"d":"($8,426)"}},{"$f":"NORMINV(RAND()*(1-2*Inputs!B58)+Inputs!B58,0,'(Other Computations)'!B208)","v":{"v":38923.86539965329,"d":"$38,924"}},{"$f":"NORMINV(RAND()*(1-2*Inputs!B58)+Inputs!B58,0,'(Other Computations)'!B208)","v":{"v":-5447.506880264628,"d":"($5,448)"}},{"$f":"SUM(AO13:AZ13)","v":{"v":37082.63828249659,"d":"$37,083"}},{"$f":"NORMINV(RAND()*(1-2*Inputs!B58)+Inputs!B58,0,'(Other Computations)'!B208)","v":{"v":-22140.016173509102,"d":"($22,140)"}},{"$f":"NORMINV(RAND()*(1-2*Inputs!B58)+Inputs!B58,0,'(Other Computations)'!B208)","v":{"v":4487.809662050237,"d":"$4,488"}},{"$f":"NORMINV(RAND()*(1-2*Inputs!B58)+Inputs!B58,0,'(Other Computations)'!B208)","v":{"v":39791.51640037385,"d":"$39,792"}},{"$f":"NORMINV(RAND()*(1-2*Inputs!B58)+Inputs!B58,0,'(Other Computations)'!B208)","v":{"v":-3717.24780609127,"d":"($3,717)"}},{"$f":"NORMINV(RAND()*(1-2*Inputs!B58)+Inputs!B58,0,'(Other Computations)'!B208)","v":{"v":29900.93264143633,"d":"$29,901"}},{"$f":"NORMINV(RAND()*(1-2*Inputs!B58)+Inputs!B58,0,'(Other Computations)'!B208)","v":{"v":-32118.940748978202,"d":"($32,119)"}},{"$f":"NORMINV(RAND()*(1-2*Inputs!B58)+Inputs!B58,0,'(Other Computations)'!B208)","v":{"v":-20307.38281531881,"d":"($20,307)"}},{"$f":"NORMINV(RAND()*(1-2*Inputs!B58)+Inputs!B58,0,'(Other Computations)'!B208)","v":{"v":-47685.128016157134,"d":"($47,685)"}},{"$f":"NORMINV(RAND()*(1-2*Inputs!B58)+Inputs!B58,0,'(Other Computations)'!B208)","v":{"v":27749.97389559331,"d":"$27,750"}},{"$f":"NORMINV(RAND()*(1-2*Inputs!B58)+Inputs!B58,0,'(Other Computations)'!B208)","v":{"v":-14413.121537468814,"d":"($14,413)"}},{"$f":"NORMINV(RAND()*(1-2*Inputs!B58)+Inputs!B58,0,'(Other Computations)'!B208)","v":{"v":8717.142064134205,"d":"$8,717"}},{"$f":"NORMINV(RAND()*(1-2*Inputs!B58)+Inputs!B58,0,'(Other Computations)'!B208)","v":{"v":-51858.369002526175,"d":"($51,858)"}},{"$f":"SUM(BB13:BM13)","v":{"v":-81592.83143646157,"d":"($81,593)"}},{"$f":"NORMINV(RAND()*(1-2*Inputs!B58)+Inputs!B58,0,'(Other Computations)'!B208)","v":{"v":-59322.809372433636,"d":"($59,323)"}},{"$f":"NORMINV(RAND()*(1-2*Inputs!B58)+Inputs!B58,0,'(Other Computations)'!B208)","v":{"v":-35950.73855760756,"d":"($35,951)"}},{"$f":"NORMINV(RAND()*(1-2*Inputs!B58)+Inputs!B58,0,'(Other Computations)'!B208)","v":{"v":18766.447636082165,"d":"$18,766"}},{"$f":"NORMINV(RAND()*(1-2*Inputs!B58)+Inputs!B58,0,'(Other Computations)'!B208)","v":{"v":35311.60201876704,"d":"$35,312"}},{"$f":"NORMINV(RAND()*(1-2*Inputs!B58)+Inputs!B58,0,'(Other Computations)'!B208)","v":{"v":-47696.18772095256,"d":"($47,696)"}},{"$f":"NORMINV(RAND()*(1-2*Inputs!B58)+Inputs!B58,0,'(Other Computations)'!B208)","v":{"v":45814.47854188465,"d":"$45,814"}},{"$f":"NORMINV(RAND()*(1-2*Inputs!B58)+Inputs!B58,0,'(Other Computations)'!B208)","v":{"v":-23407.231168154245,"d":"($23,407)"}},{"$f":"NORMINV(RAND()*(1-2*Inputs!B58)+Inputs!B58,0,'(Other Computations)'!B208)","v":{"v":19469.779451302595,"d":"$19,470"}},{"$f":"NORMINV(RAND()*(1-2*Inputs!B58)+Inputs!B58,0,'(Other Computations)'!B208)","v":{"v":3163.958936760118,"d":"$3,164"}},{"$f":"NORMINV(RAND()*(1-2*Inputs!B58)+Inputs!B58,0,'(Other Computations)'!B208)","v":{"v":-54471.174967550956,"d":"($54,471)"}},{"$f":"NORMINV(RAND()*(1-2*Inputs!B58)+Inputs!B58,0,'(Other Computations)'!B208)","v":{"v":56543.40825967567,"d":"$56,543"}},{"$f":"NORMINV(RAND()*(1-2*Inputs!B58)+Inputs!B58,0,'(Other Computations)'!B208)","v":{"v":7993.806897755354,"d":"$7,994"}},{"$f":"SUM(BO13:BZ13)","v":{"v":-33784.660044471355,"d":"($33,785)"}},{"$f":"NORMINV(RAND()*(1-2*Inputs!B58)+Inputs!B58,0,'(Other Computations)'!B208)","v":{"v":21678.467129827553,"d":"$21,678"}},{"$f":"NORMINV(RAND()*(1-2*Inputs!B58)+Inputs!B58,0,'(Other Computations)'!B208)","v":{"v":-23291.67235837952,"d":"($23,292)"}},{"$f":"NORMINV(RAND()*(1-2*Inputs!B58)+Inputs!B58,0,'(Other Computations)'!B208)","v":{"v":-7221.852242081351,"d":"($7,222)"}},{"$f":"NORMINV(RAND()*(1-2*Inputs!B58)+Inputs!B58,0,'(Other Computations)'!B208)","v":{"v":35035.00958744659,"d":"$35,035"}},{"$f":"NORMINV(RAND()*(1-2*Inputs!B58)+Inputs!B58,0,'(Other Computations)'!B208)","v":{"v":14945.908959219487,"d":"$14,946"}},{"$f":"NORMINV(RAND()*(1-2*Inputs!B58)+Inputs!B58,0,'(Other Computations)'!B208)","v":{"v":29969.76663872215,"d":"$29,970"}},{"$f":"NORMINV(RAND()*(1-2*Inputs!B58)+Inputs!B58,0,'(Other Computations)'!B208)","v":{"v":1113.991016374414,"d":"$1,114"}},{"$f":"NORMINV(RAND()*(1-2*Inputs!B58)+Inputs!B58,0,'(Other Computations)'!B208)","v":{"v":38736.69749729973,"d":"$38,737"}},{"$f":"NORMINV(RAND()*(1-2*Inputs!B58)+Inputs!B58,0,'(Other Computations)'!B208)","v":{"v":-38921.09274336001,"d":"($38,921)"}},{"$f":"NORMINV(RAND()*(1-2*Inputs!B58)+Inputs!B58,0,'(Other Computations)'!B208)","v":{"v":-5449.266132859716,"d":"($5,449)"}},{"$f":"NORMINV(RAND()*(1-2*Inputs!B58)+Inputs!B58,0,'(Other Computations)'!B208)","v":{"v":-48653.544808092076,"d":"($48,654)"}},{"$f":"NORMINV(RAND()*(1-2*Inputs!B58)+Inputs!B58,0,'(Other Computations)'!B208)","v":{"v":-7709.662596251709,"d":"($7,710)"}},{"$f":"SUM(CB13:CM13)","v":{"v":10232.749947865555,"d":"$10,233"}},{"$f":"NORMINV(RAND()*(1-2*Inputs!B58)+Inputs!B58,0,'(Other Computations)'!B208)","v":{"v":-23065.417275761552,"d":"($23,065)"}},{"$f":"NORMINV(RAND()*(1-2*Inputs!B58)+Inputs!B58,0,'(Other Computations)'!B208)","v":{"v":-487.18241208469897,"d":"($487)"}},{"$f":"NORMINV(RAND()*(1-2*Inputs!B58)+Inputs!B58,0,'(Other Computations)'!B208)","v":{"v":12857.702423441056,"d":"$12,858"}},{"$f":"NORMINV(RAND()*(1-2*Inputs!B58)+Inputs!B58,0,'(Other Computations)'!B208)","v":{"v":-14560.875268043794,"d":"($14,561)"}},{"$f":"NORMINV(RAND()*(1-2*Inputs!B58)+Inputs!B58,0,'(Other Computations)'!B208)","v":{"v":18235.68993682117,"d":"$18,236"}},{"$f":"NORMINV(RAND()*(1-2*Inputs!B58)+Inputs!B58,0,'(Other Computations)'!B208)","v":{"v":-34662.15096399925,"d":"($34,662)"}},{"$f":"NORMINV(RAND()*(1-2*Inputs!B58)+Inputs!B58,0,'(Other Computations)'!B208)","v":{"v":36010.316476434986,"d":"$36,010"}},{"$f":"NORMINV(RAND()*(1-2*Inputs!B58)+Inputs!B58,0,'(Other Computations)'!B208)","v":{"v":-8608.829535669762,"d":"($8,609)"}},{"$f":"NORMINV(RAND()*(1-2*Inputs!B58)+Inputs!B58,0,'(Other Computations)'!B208)","v":{"v":35679.78217581833,"d":"$35,680"}},{"$f":"NORMINV(RAND()*(1-2*Inputs!B58)+Inputs!B58,0,'(Other Computations)'!B208)","v":{"v":-60045.00966502825,"d":"($60,045)"}},{"$f":"NORMINV(RAND()*(1-2*Inputs!B58)+Inputs!B58,0,'(Other Computations)'!B208)","v":{"v":28466.89401179469,"d":"$28,467"}},{"$f":"NORMINV(RAND()*(1-2*Inputs!B58)+Inputs!B58,0,'(Other Computations)'!B208)","v":{"v":-9657.346170622968,"d":"($9,657)"}},{"$f":"SUM(CO13:CZ13)","v":{"v":-19836.42626690005,"d":"($19,836)"}},{"$f":"NORMINV(RAND()*(1-2*Inputs!B58)+Inputs!B58,0,'(Other Computations)'!B208)","v":{"v":-12895.600699058443,"d":"($12,896)"}},{"$f":"NORMINV(RAND()*(1-2*Inputs!B58)+Inputs!B58,0,'(Other Computations)'!B208)","v":{"v":17013.341633060358,"d":"$17,013"}},{"$f":"NORMINV(RAND()*(1-2*Inputs!B58)+Inputs!B58,0,'(Other Computations)'!B208)","v":{"v":-15208.941074944583,"d":"($15,209)"}},{"$f":"NORMINV(RAND()*(1-2*Inputs!B58)+Inputs!B58,0,'(Other Computations)'!B208)","v":{"v":19225.535703921178,"d":"$19,226"}},{"$f":"NORMINV(RAND()*(1-2*Inputs!B58)+Inputs!B58,0,'(Other Computations)'!B208)","v":{"v":29622.50102219177,"d":"$29,623"}},{"$f":"NORMINV(RAND()*(1-2*Inputs!B58)+Inputs!B58,0,'(Other Computations)'!B208)","v":{"v":-1669.220585768708,"d":"($1,669)"}},{"$f":"NORMINV(RAND()*(1-2*Inputs!B58)+Inputs!B58,0,'(Other Computations)'!B208)","v":{"v":4192.31651487967,"d":"$4,192"}},{"$f":"NORMINV(RAND()*(1-2*Inputs!B58)+Inputs!B58,0,'(Other Computations)'!B208)","v":{"v":8513.436538815016,"d":"$8,513"}},{"$f":"NORMINV(RAND()*(1-2*Inputs!B58)+Inputs!B58,0,'(Other Computations)'!B208)","v":{"v":45131.292080654726,"d":"$45,131"}},{"$f":"NORMINV(RAND()*(1-2*Inputs!B58)+Inputs!B58,0,'(Other Computations)'!B208)","v":{"v":-32350.73397625867,"d":"($32,351)"}},{"$f":"NORMINV(RAND()*(1-2*Inputs!B58)+Inputs!B58,0,'(Other Computations)'!B208)","v":{"v":-58696.94697055851,"d":"($58,697)"}},{"$f":"NORMINV(RAND()*(1-2*Inputs!B58)+Inputs!B58,0,'(Other Computations)'!B208)","v":{"v":-37862.4747544523,"d":"($37,862)"}},{"$f":"SUM(DB13:DM13)","v":{"v":-34985.49456751849,"d":"($34,985)"}},{"$f":"NORMINV(RAND()*(1-2*Inputs!B58)+Inputs!B58,0,'(Other Computations)'!B208)","v":{"v":29702.717600300213,"d":"$29,703"}},{"$f":"NORMINV(RAND()*(1-2*Inputs!B58)+Inputs!B58,0,'(Other Computations)'!B208)","v":{"v":-46620.48764951737,"d":"($46,620)"}},{"$f":"NORMINV(RAND()*(1-2*Inputs!B58)+Inputs!B58,0,'(Other Computations)'!B208)","v":{"v":3267.860175956416,"d":"$3,268"}},{"$f":"NORMINV(RAND()*(1-2*Inputs!B58)+Inputs!B58,0,'(Other Computations)'!B208)","v":{"v":-10259.151184593371,"d":"($10,259)"}},{"$f":"NORMINV(RAND()*(1-2*Inputs!B58)+Inputs!B58,0,'(Other Computations)'!B208)","v":{"v":-28694.83495988415,"d":"($28,695)"}},{"$f":"NORMINV(RAND()*(1-2*Inputs!B58)+Inputs!B58,0,'(Other Computations)'!B208)","v":{"v":9286.044967635227,"d":"$9,286"}},{"$f":"NORMINV(RAND()*(1-2*Inputs!B58)+Inputs!B58,0,'(Other Computations)'!B208)","v":{"v":25635.0496310723,"d":"$25,635"}},{"$f":"NORMINV(RAND()*(1-2*Inputs!B58)+Inputs!B58,0,'(Other Computations)'!B208)","v":{"v":20326.41332498427,"d":"$20,326"}},{"$f":"NORMINV(RAND()*(1-2*Inputs!B58)+Inputs!B58,0,'(Other Computations)'!B208)","v":{"v":-36690.90536040782,"d":"($36,691)"}},{"$f":"NORMINV(RAND()*(1-2*Inputs!B58)+Inputs!B58,0,'(Other Computations)'!B208)","v":{"v":25582.739820635397,"d":"$25,583"}},{"$f":"NORMINV(RAND()*(1-2*Inputs!B58)+Inputs!B58,0,'(Other Computations)'!B208)","v":{"v":-2256.8065935029595,"d":"($2,257)"}},{"$f":"NORMINV(RAND()*(1-2*Inputs!B58)+Inputs!B58,0,'(Other Computations)'!B208)","v":{"v":-37823.61978853248,"d":"($37,824)"}},{"$f":"SUM(DO13:DZ13)","v":{"v":-48544.98001585432,"d":"($48,545)"}},{"$f":"NORMINV(RAND()*(1-2*Inputs!B58)+Inputs!B58,0,'(Other Computations)'!B208)","v":{"v":30809.617747219683,"d":"$30,810"}},{"$f":"NORMINV(RAND()*(1-2*Inputs!B58)+Inputs!B58,0,'(Other Computations)'!B208)","v":{"v":16390.3158566239,"d":"$16,390"}},{"$f":"NORMINV(RAND()*(1-2*Inputs!B58)+Inputs!B58,0,'(Other Computations)'!B208)","v":{"v":-53503.61374919171,"d":"($53,504)"}},{"$f":"NORMINV(RAND()*(1-2*Inputs!B58)+Inputs!B58,0,'(Other Computations)'!B208)","v":{"v":-3705.694390215261,"d":"($3,706)"}},{"$f":"NORMINV(RAND()*(1-2*Inputs!B58)+Inputs!B58,0,'(Other Computations)'!B208)","v":{"v":47833.961645710646,"d":"$47,834"}},{"$f":"NORMINV(RAND()*(1-2*Inputs!B58)+Inputs!B58,0,'(Other Computations)'!B208)","v":{"v":-33776.88411864011,"d":"($33,777)"}},{"$f":"NORMINV(RAND()*(1-2*Inputs!B58)+Inputs!B58,0,'(Other Computations)'!B208)","v":{"v":-23602.98310020929,"d":"($23,603)"}},{"$f":"NORMINV(RAND()*(1-2*Inputs!B58)+Inputs!B58,0,'(Other Computations)'!B208)","v":{"v":-34248.46656827786,"d":"($34,248)"}},{"$f":"NORMINV(RAND()*(1-2*Inputs!B58)+Inputs!B58,0,'(Other Computations)'!B208)","v":{"v":13470.169437735452,"d":"$13,470"}},{"$f":"NORMINV(RAND()*(1-2*Inputs!B58)+Inputs!B58,0,'(Other Computations)'!B208)","v":{"v":-16497.57999083341,"d":"($16,498)"}},{"$f":"NORMINV(RAND()*(1-2*Inputs!B58)+Inputs!B58,0,'(Other Computations)'!B208)","v":{"v":20366.941748657013,"d":"$20,367"}},{"$f":"NORMINV(RAND()*(1-2*Inputs!B58)+Inputs!B58,0,'(Other Computations)'!B208)","v":{"v":-2482.414512783805,"d":"($2,482)"}},{"$f":"SUM(EB13:EM13)","v":{"v":-38946.629994204755,"d":"($38,947)"}}]
[]
[]
[{"$f":"\"Capital\"","v":"Capital"}]
[{"$f":"\" \"","v":" "}]
[null,{"$f":"ZZZ__FnCalls!F7","v":"Jan 2010"},{"$f":"ZZZ__FnCalls!F8","v":"Feb 2010"},{"$f":"ZZZ__FnCalls!F9","v":"Mar 2010"},{"$f":"ZZZ__FnCalls!F10","v":"Apr 2010"},{"$f":"ZZZ__FnCalls!F11","v":"May 2010"},{"$f":"ZZZ__FnCalls!F12","v":"Jun 2010"},{"$f":"ZZZ__FnCalls!F13","v":"Jul 2010"},{"$f":"ZZZ__FnCalls!F14","v":"Aug 2010"},{"$f":"ZZZ__FnCalls!F15","v":"Sep 2010"},{"$f":"ZZZ__FnCalls!F16","v":"Oct 2010"},{"$f":"ZZZ__FnCalls!F17","v":"Nov 2010"},{"$f":"ZZZ__FnCalls!F18","v":"Dec 2010"},{"$f":"ZZZ__FnCalls!H7","v":"2010"},{"$f":"ZZZ__FnCalls!F19","v":"Jan 2011"},{"$f":"ZZZ__FnCalls!F20","v":"Feb 2011"},{"$f":"ZZZ__FnCalls!F21","v":"Mar 2011"},{"$f":"ZZZ__FnCalls!F22","v":"Apr 2011"},{"$f":"ZZZ__FnCalls!F23","v":"May 2011"},{"$f":"ZZZ__FnCalls!F24","v":"Jun 2011"},{"$f":"ZZZ__FnCalls!F25","v":"Jul 2011"},{"$f":"ZZZ__FnCalls!F26","v":"Aug 2011"},{"$f":"ZZZ__FnCalls!F27","v":"Sep 2011"},{"$f":"ZZZ__FnCalls!F28","v":"Oct 2011"},{"$f":"ZZZ__FnCalls!F29","v":"Nov 2011"},{"$f":"ZZZ__FnCalls!F30","v":"Dec 2011"},{"$f":"ZZZ__FnCalls!H19","v":"2011"},{"$f":"ZZZ__FnCalls!F31","v":"Jan 2012"},{"$f":"ZZZ__FnCalls!F32","v":"Feb 2012"},{"$f":"ZZZ__FnCalls!F33","v":"Mar 2012"},{"$f":"ZZZ__FnCalls!F34","v":"Apr 2012"},{"$f":"ZZZ__FnCalls!F35","v":"May 2012"},{"$f":"ZZZ__FnCalls!F36","v":"Jun 2012"},{"$f":"ZZZ__FnCalls!F37","v":"Jul 2012"},{"$f":"ZZZ__FnCalls!F38","v":"Aug 2012"},{"$f":"ZZZ__FnCalls!F39","v":"Sep 2012"},{"$f":"ZZZ__FnCalls!F40","v":"Oct 2012"},{"$f":"ZZZ__FnCalls!F41","v":"Nov 2012"},{"$f":"ZZZ__FnCalls!F42","v":"Dec 2012"},{"$f":"ZZZ__FnCalls!H31","v":"2012"},{"$f":"ZZZ__FnCalls!F43","v":"Jan 2013"},{"$f":"ZZZ__FnCalls!F44","v":"Feb 2013"},{"$f":"ZZZ__FnCalls!F45","v":"Mar 2013"},{"$f":"ZZZ__FnCalls!F46","v":"Apr 2013"},{"$f":"ZZZ__FnCalls!F47","v":"May 2013"},{"$f":"ZZZ__FnCalls!F48","v":"Jun 2013"},{"$f":"ZZZ__FnCalls!F49","v":"Jul 2013"},{"$f":"ZZZ__FnCalls!F50","v":"Aug 2013"},{"$f":"ZZZ__FnCalls!F51","v":"Sep 2013"},{"$f":"ZZZ__FnCalls!F52","v":"Oct 2013"},{"$f":"ZZZ__FnCalls!F53","v":"Nov 2013"},{"$f":"ZZZ__FnCalls!F54","v":"Dec 2013"},{"$f":"ZZZ__FnCalls!H43","v":"2013"},{"$f":"ZZZ__FnCalls!F55","v":"Jan 2014"},{"$f":"ZZZ__FnCalls!F56","v":"Feb 2014"},{"$f":"ZZZ__FnCalls!F57","v":"Mar 2014"},{"$f":"ZZZ__FnCalls!F58","v":"Apr 2014"},{"$f":"ZZZ__FnCalls!F59","v":"May 2014"},{"$f":"ZZZ__FnCalls!F60","v":"Jun 2014"},{"$f":"ZZZ__FnCalls!F61","v":"Jul 2014"},{"$f":"ZZZ__FnCalls!F62","v":"Aug 2014"},{"$f":"ZZZ__FnCalls!F63","v":"Sep 2014"},{"$f":"ZZZ__FnCalls!F64","v":"Oct 2014"},{"$f":"ZZZ__FnCalls!F65","v":"Nov 2014"},{"$f":"ZZZ__FnCalls!F66","v":"Dec 2014"},{"$f":"ZZZ__FnCalls!H55","v":"2014"},{"$f":"ZZZ__FnCalls!F67","v":"Jan 2015"},{"$f":"ZZZ__FnCalls!F68","v":"Feb 2015"},{"$f":"ZZZ__FnCalls!F69","v":"Mar 2015"},{"$f":"ZZZ__FnCalls!F70","v":"Apr 2015"},{"$f":"ZZZ__FnCalls!F71","v":"May 2015"},{"$f":"ZZZ__FnCalls!F72","v":"Jun 2015"},{"$f":"ZZZ__FnCalls!F73","v":"Jul 2015"},{"$f":"ZZZ__FnCalls!F74","v":"Aug 2015"},{"$f":"ZZZ__FnCalls!F75","v":"Sep 2015"},{"$f":"ZZZ__FnCalls!F76","v":"Oct 2015"},{"$f":"ZZZ__FnCalls!F77","v":"Nov 2015"},{"$f":"ZZZ__FnCalls!F78","v":"Dec 2015"},{"$f":"ZZZ__FnCalls!H67","v":"2015"},{"$f":"ZZZ__FnCalls!F79","v":"Jan 2016"},{"$f":"ZZZ__FnCalls!F80","v":"Feb 2016"},{"$f":"ZZZ__FnCalls!F81","v":"Mar 2016"},{"$f":"ZZZ__FnCalls!F82","v":"Apr 2016"},{"$f":"ZZZ__FnCalls!F83","v":"May 2016"},{"$f":"ZZZ__FnCalls!F84","v":"Jun 2016"},{"$f":"ZZZ__FnCalls!F85","v":"Jul 2016"},{"$f":"ZZZ__FnCalls!F86","v":"Aug 2016"},{"$f":"ZZZ__FnCalls!F87","v":"Sep 2016"},{"$f":"ZZZ__FnCalls!F88","v":"Oct 2016"},{"$f":"ZZZ__FnCalls!F89","v":"Nov 2016"},{"$f":"ZZZ__FnCalls!F90","v":"Dec 2016"},{"$f":"ZZZ__FnCalls!H79","v":"2016"},{"$f":"ZZZ__FnCalls!F91","v":"Jan 2017"},{"$f":"ZZZ__FnCalls!F92","v":"Feb 2017"},{"$f":"ZZZ__FnCalls!F93","v":"Mar 2017"},{"$f":"ZZZ__FnCalls!F94","v":"Apr 2017"},{"$f":"ZZZ__FnCalls!F95","v":"May 2017"},{"$f":"ZZZ__FnCalls!F96","v":"Jun 2017"},{"$f":"ZZZ__FnCalls!F97","v":"Jul 2017"},{"$f":"ZZZ__FnCalls!F98","v":"Aug 2017"},{"$f":"ZZZ__FnCalls!F99","v":"Sep 2017"},{"$f":"ZZZ__FnCalls!F100","v":"Oct 2017"},{"$f":"ZZZ__FnCalls!F101","v":"Nov 2017"},{"$f":"ZZZ__FnCalls!F102","v":"Dec 2017"},{"$f":"ZZZ__FnCalls!H91","v":"2017"},{"$f":"ZZZ__FnCalls!F103","v":"Jan 2018"},{"$f":"ZZZ__FnCalls!F104","v":"Feb 2018"},{"$f":"ZZZ__FnCalls!F105","v":"Mar 2018"},{"$f":"ZZZ__FnCalls!F106","v":"Apr 2018"},{"$f":"ZZZ__FnCalls!F107","v":"May 2018"},{"$f":"ZZZ__FnCalls!F108","v":"Jun 2018"},{"$f":"ZZZ__FnCalls!F109","v":"Jul 2018"},{"$f":"ZZZ__FnCalls!F110","v":"Aug 2018"},{"$f":"ZZZ__FnCalls!F111","v":"Sep 2018"},{"$f":"ZZZ__FnCalls!F112","v":"Oct 2018"},{"$f":"ZZZ__FnCalls!F113","v":"Nov 2018"},{"$f":"ZZZ__FnCalls!F114","v":"Dec 2018"},{"$f":"ZZZ__FnCalls!H103","v":"2018"},{"$f":"ZZZ__FnCalls!F115","v":"Jan 2019"},{"$f":"ZZZ__FnCalls!F116","v":"Feb 2019"},{"$f":"ZZZ__FnCalls!F117","v":"Mar 2019"},{"$f":"ZZZ__FnCalls!F118","v":"Apr 2019"},{"$f":"ZZZ__FnCalls!F119","v":"May 2019"},{"$f":"ZZZ__FnCalls!F120","v":"Jun 2019"},{"$f":"ZZZ__FnCalls!F121","v":"Jul 2019"},{"$f":"ZZZ__FnCalls!F122","v":"Aug 2019"},{"$f":"ZZZ__FnCalls!F123","v":"Sep 2019"},{"$f":"ZZZ__FnCalls!F124","v":"Oct 2019"},{"$f":"ZZZ__FnCalls!F125","v":"Nov 2019"},{"$f":"ZZZ__FnCalls!F126","v":"Dec 2019"},{"$f":"ZZZ__FnCalls!H115","v":"2019"},{"$f":"ZZZ__FnCalls!F127","v":"Jan 2020"},{"$f":"ZZZ__FnCalls!F128","v":"Feb 2020"},{"$f":"ZZZ__FnCalls!F129","v":"Mar 2020"},{"$f":"ZZZ__FnCalls!F130","v":"Apr 2020"},{"$f":"ZZZ__FnCalls!F131","v":"May 2020"},{"$f":"ZZZ__FnCalls!F132","v":"Jun 2020"},{"$f":"ZZZ__FnCalls!F133","v":"Jul 2020"},{"$f":"ZZZ__FnCalls!F134","v":"Aug 2020"},{"$f":"ZZZ__FnCalls!F135","v":"Sep 2020"},{"$f":"ZZZ__FnCalls!F136","v":"Oct 2020"},{"$f":"ZZZ__FnCalls!F137","v":"Nov 2020"},{"$f":"ZZZ__FnCalls!F138","v":"Dec 2020"},{"$f":"ZZZ__FnCalls!H127","v":"2020"}]
[{"$f":"Labels!B9","v":"Capital"},{"$f":"Inputs!B20*'(Other Computations)'!B8/(1/Inputs!B19/12+'(Other Computations)'!B144)","v":{"v":34645298.42192645,"d":"$34,645,298"}},{"$f":"B19+B21-B20","v":{"v":34645298.42192645,"d":"$34,645,298"}},{"v":34644886.820402496,"d":"$34,644,887"},{"v":34644020.030042544,"d":"$34,644,020"},{"v":34642805.89127631,"d":"$34,642,806"},{"v":34641354.68723803,"d":"$34,641,355"},{"v":34639588.93161335,"d":"$34,639,589"},{"v":34637450.04700224,"d":"$34,637,450"},{"v":34634983.715943605,"d":"$34,634,984"},{"v":34632128.89891918,"d":"$34,632,129"},{"v":34628993.76063592,"d":"$34,628,994"},{"v":34625569.78998806,"d":"$34,625,570"},{"$f":"M19","v":{"v":34625569.78998806,"d":"$34,625,570"}},{"$f":"M19+M21-M20","v":{"v":34621784.581354134,"d":"$34,621,785"}},{"$f":"O19+O21-O20","v":{"v":34617776.414774194,"d":"$34,617,776"}},{"v":34613455.5530472,"d":"$34,613,456"},{"v":34608923.39410404,"d":"$34,608,923"},{"v":34604193.26571331,"d":"$34,604,193"},{"v":34599192.89583213,"d":"$34,599,193"},{"v":34593931.41070463,"d":"$34,593,931"},{"v":34588415.63684191,"d":"$34,588,416"},{"v":34582591.96672742,"d":"$34,582,592"},{"v":34576493.666003615,"d":"$34,576,494"},{"v":34570145.29412748,"d":"$34,570,145"},{"v":34563540.691963054,"d":"$34,563,541"},{"$f":"Z19","v":{"v":34563540.691963054,"d":"$34,563,541"}},{"$f":"Z19+Z21-Z20","v":{"v":34556616.29792496,"d":"$34,556,616"}},{"$f":"AB19+AB21-AB20","v":{"v":34549528.883943304,"d":"$34,549,529"}},{"v":34542249.76569961,"d":"$34,542,250"},{"v":34534789.999342754,"d":"$34,534,790"},{"v":34527149.23985665,"d":"$34,527,149"},{"v":34519446.16008093,"d":"$34,519,446"},{"v":34511569.15395943,"d":"$34,511,569"},{"v":34503495.13381653,"d":"$34,503,495"},{"v":34495289.14438239,"d":"$34,495,289"},{"v":34486833.08827815,"d":"$34,486,833"},{"v":34478230.04746967,"d":"$34,478,230"},{"v":34469521.292374276,"d":"$34,469,521"},{"$f":"AM19","v":{"v":34469521.292374276,"d":"$34,469,521"}},{"$f":"AM19+AM21-AM20","v":{"v":34460756.844286494,"d":"$34,460,757"}},{"$f":"AO19+AO21-AO20","v":{"v":34451812.83528471,"d":"$34,451,813"}},{"v":34442716.15267817,"d":"$34,442,716"},{"v":34433516.924457125,"d":"$34,433,517"},{"v":34424213.07670647,"d":"$34,424,213"},{"v":34414747.76763271,"d":"$34,414,748"},{"v":34405186.217432104,"d":"$34,405,186"},{"v":34395529.45139277,"d":"$34,395,529"},{"v":34385763.49405858,"d":"$34,385,763"},{"v":34375898.384580515,"d":"$34,375,898"},{"v":34365811.85186926,"d":"$34,365,812"},{"v":34355598.216532916,"d":"$34,355,598"},{"$f":"AZ19","v":{"v":34355598.216532916,"d":"$34,355,598"}},{"$f":"AZ19+AZ21-AZ20","v":{"v":34345351.50262282,"d":"$34,345,352"}},{"$f":"BB19+BB21-BB20","v":{"v":34334987.74362981,"d":"$34,334,988"}},{"v":34324478.2977263,"d":"$34,324,478"},{"v":34313878.11033662,"d":"$34,313,878"},{"v":34303257.20452141,"d":"$34,303,257"},{"v":34292533.02221125,"d":"$34,292,533"},{"v":34281772.615798876,"d":"$34,281,773"},{"v":34270858.687661715,"d":"$34,270,859"},{"v":34259818.10133787,"d":"$34,259,818"},{"v":34248602.08114882,"d":"$34,248,602"},{"v":34237359.66083739,"d":"$34,237,360"},{"v":34226011.06228466,"d":"$34,226,011"},{"$f":"BM19","v":{"v":34226011.06228466,"d":"$34,226,011"}},{"$f":"BM19+BM21-BM20","v":{"v":34214603.31746347,"d":"$34,214,603"}},{"$f":"BO19+BO21-BO20","v":{"v":34203022.30286643,"d":"$34,203,022"}},{"v":34191258.804323934,"d":"$34,191,259"},{"v":34179362.54124937,"d":"$34,179,363"},{"v":34167441.77391947,"d":"$34,167,442"},{"v":34155528.86208358,"d":"$34,155,529"},{"v":34143465.14649202,"d":"$34,143,465"},{"v":34131433.46060956,"d":"$34,131,433"},{"v":34119300.62070215,"d":"$34,119,301"},{"v":34107151.32346411,"d":"$34,107,151"},{"v":34094955.04282127,"d":"$34,094,955"},{"v":34082603.102874,"d":"$34,082,603"},{"$f":"BZ19","v":{"v":34082603.102874,"d":"$34,082,603"}},{"$f":"BZ19+BZ21-BZ20","v":{"v":34070311.86207248,"d":"$34,070,312"}},{"$f":"CB19+CB21-CB20","v":{"v":34057987.0328357,"d":"$34,057,987"}},{"v":34045655.76843784,"d":"$34,045,656"},{"v":34033232.56523791,"d":"$34,033,233"},{"v":34020750.84453536,"d":"$34,020,751"},{"v":34008292.991460405,"d":"$34,008,293"},{"v":33995820.02945201,"d":"$33,995,820"},{"v":33983361.17956787,"d":"$33,983,361"},{"v":33970860.932273224,"d":"$33,970,861"},{"v":33958392.398579136,"d":"$33,958,392"},{"v":33945806.51197249,"d":"$33,945,807"},{"v":33933170.6833458,"d":"$33,933,171"},{"$f":"CM19","v":{"v":33933170.6833458,"d":"$33,933,171"}},{"$f":"CM19+CM21-CM20","v":{"v":33920403.75022959,"d":"$33,920,404"}},{"$f":"CO19+CO21-CO20","v":{"v":33907587.64482646,"d":"$33,907,588"}},{"v":33894694.61294612,"d":"$33,894,695"},{"v":33881769.93484267,"d":"$33,881,770"},{"v":33868840.025556505,"d":"$33,868,840"},{"v":33855852.76621499,"d":"$33,855,853"},{"v":33842872.39732484,"d":"$33,842,872"},{"v":33829797.81006084,"d":"$33,829,798"},{"v":33816766.540230244,"d":"$33,816,767"},{"v":33803692.360121585,"d":"$33,803,692"},{"v":33790660.94082244,"d":"$33,790,661"},{"v":33777488.4041738,"d":"$33,777,488"},{"$f":"CZ19","v":{"v":33777488.4041738,"d":"$33,777,488"}},{"$f":"CZ19+CZ21-CZ20","v":{"v":33764347.963399254,"d":"$33,764,348"}},{"$f":"DB19+DB21-DB20","v":{"v":33751165.88036107,"d":"$33,751,166"}},{"v":33737937.20299128,"d":"$33,737,937"},{"v":33724720.41911028,"d":"$33,724,720"},{"v":33711453.701257505,"d":"$33,711,454"},{"v":33698204.298138164,"d":"$33,698,204"},{"v":33684991.63691256,"d":"$33,684,992"},{"v":33671755.077963084,"d":"$33,671,755"},{"v":33658506.48366066,"d":"$33,658,506"},{"v":33645254.46044773,"d":"$33,645,254"},{"v":33632069.05103453,"d":"$33,632,069"},{"v":33618800.49654692,"d":"$33,618,800"},{"$f":"DM19","v":{"v":33618800.49654692,"d":"$33,618,800"}},{"$f":"DM19+DM21-DM20","v":{"v":33605400.97125445,"d":"$33,605,401"}},{"$f":"DO19+DO21-DO20","v":{"v":33591914.148244224,"d":"$33,591,914"}},{"v":33578471.42857693,"d":"$33,578,471"},{"v":33564925.83145407,"d":"$33,564,926"},{"v":33551375.43627088,"d":"$33,551,375"},{"v":33537794.56499663,"d":"$33,537,795"},{"v":33524148.944679804,"d":"$33,524,149"},{"v":33510512.934117816,"d":"$33,510,513"},{"v":33496917.527275756,"d":"$33,496,918"},{"v":33483351.47632296,"d":"$33,483,351"},{"v":33469704.989389166,"d":"$33,469,705"},{"v":33456099.3064572,"d":"$33,456,099"},{"$f":"DZ19","v":{"v":33456099.3064572,"d":"$33,456,099"}},{"$f":"DZ19+DZ21-DZ20","v":{"v":33442480.17446338,"d":"$33,442,480"}},{"$f":"EB19+EB21-EB20","v":{"v":33428780.094502136,"d":"$33,428,780"}},{"v":33415132.472768907,"d":"$33,415,132"},{"v":33401508.372194275,"d":"$33,401,508"},{"v":33387773.6639923,"d":"$33,387,774"},{"v":33374026.431879845,"d":"$33,374,026"},{"v":33360365.66521049,"d":"$33,360,366"},{"v":33346633.20283141,"d":"$33,346,633"},{"v":33332850.539811347,"d":"$33,332,851"},{"v":33318998.914300554,"d":"$33,318,999"},{"v":33305171.474247996,"d":"$33,305,171"},{"v":33291310.365795463,"d":"$33,291,310"},{"$f":"EM19","v":{"v":33291310.365795463,"d":"$33,291,310"}}]
[{"$f":"Labels!B11","v":"Capital Depreciation"},{"$f":"B22/Inputs!B19/12","v":{"v":206222.0144162289,"d":"$206,222"}},{"$f":"B19/Inputs!B19/12","v":{"v":206222.0144162289,"d":"$206,222"}},{"$f":"C19/Inputs!B19/12","v":{"v":206222.0144162289,"d":"$206,222"}},{"$f":"D19/Inputs!B19/12","v":{"v":206219.5644071577,"d":"$206,220"}},{"$f":"E19/Inputs!B19/12","v":{"v":206214.4049407294,"d":"$206,214"}},{"$f":"F19/Inputs!B19/12","v":{"v":206207.17792426373,"d":"$206,207"}},{"$f":"G19/Inputs!B19/12","v":{"v":206198.53980498828,"d":"$206,199"}},{"$f":"H19/Inputs!B19/12","v":{"v":206188.02935484136,"d":"$206,188"}},{"$f":"I19/Inputs!B19/12","v":{"v":206175.29789882284,"d":"$206,175"}},{"$f":"J19/Inputs!B19/12","v":{"v":206160.6173568072,"d":"$206,161"}},{"$f":"K19/Inputs!B19/12","v":{"v":206143.62439832845,"d":"$206,144"}},{"$f":"L19/Inputs!B19/12","v":{"v":206124.96286092812,"d":"$206,125"}},{"$f":"SUM(B20:M20)","v":{"v":2474298.2621955536,"d":"$2,474,298"}},{"$f":"M19/Inputs!B19/12","v":{"v":206104.58208326227,"d":"$206,105"}},{"$f":"O19/Inputs!B19/12","v":{"v":206082.0510794889,"d":"$206,082"}},{"$f":"P19/Inputs!B19/12","v":{"v":206058.1929450845,"d":"$206,058"}},{"$f":"Q19/Inputs!B19/12","v":{"v":206032.4735300429,"d":"$206,032"}},{"$f":"R19/Inputs!B19/12","v":{"v":206005.4963934764,"d":"$206,005"}},{"$f":"S19/Inputs!B19/12","v":{"v":205977.34086734115,"d":"$205,977"}},{"$f":"T19/Inputs!B19/12","v":{"v":205947.57676090553,"d":"$205,948"}},{"$f":"U19/Inputs!B19/12","v":{"v":205916.25839705137,"d":"$205,916"}},{"$f":"V19/Inputs!B19/12","v":{"v":205883.42640977327,"d":"$205,883"}},{"$f":"W19/Inputs!B19/12","v":{"v":205848.76170671082,"d":"$205,849"}},{"$f":"X19/Inputs!B19/12","v":{"v":205812.46229764054,"d":"$205,812"}},{"$f":"Y19/Inputs!B19/12","v":{"v":205774.67436980642,"d":"$205,775"}},{"$f":"SUM(O20:Z20)","v":{"v":2471443.2968405844,"d":"$2,471,443"}},{"$f":"Z19/Inputs!B19/12","v":{"v":205735.36126168483,"d":"$205,735"}},{"$f":"AB19/Inputs!B19/12","v":{"v":205694.1446305057,"d":"$205,694"}},{"$f":"AC19/Inputs!B19/12","v":{"v":205651.95764251964,"d":"$205,652"}},{"$f":"AD19/Inputs!B19/12","v":{"v":205608.62955773578,"d":"$205,609"}},{"$f":"AE19/Inputs!B19/12","v":{"v":205564.226186564,"d":"$205,564"}},{"$f":"AF19/Inputs!B19/12","v":{"v":205518.74547533723,"d":"$205,519"}},{"$f":"AG19/Inputs!B19/12","v":{"v":205472.89381000554,"d":"$205,473"}},{"$f":"AH19/Inputs!B19/12","v":{"v":205426.00686880611,"d":"$205,426"}},{"$f":"AI19/Inputs!B19/12","v":{"v":205377.9472250984,"d":"$205,378"}},{"$f":"AJ19/Inputs!B19/12","v":{"v":205329.10204989518,"d":"$205,329"}},{"$f":"AK19/Inputs!B19/12","v":{"v":205278.76838260805,"d":"$205,279"}},{"$f":"AL19/Inputs!B19/12","v":{"v":205227.55980636706,"d":"$205,228"}},{"$f":"SUM(AB20:AM20)","v":{"v":2465885.3428971274,"d":"$2,465,885"}},{"$f":"AM19/Inputs!B19/12","v":{"v":205175.7219784183,"d":"$205,176"}},{"$f":"AO19/Inputs!B19/12","v":{"v":205123.55264456247,"d":"$205,124"}},{"$f":"AP19/Inputs!B19/12","v":{"v":205070.31449574232,"d":"$205,070"}},{"$f":"AQ19/Inputs!B19/12","v":{"v":205016.16757546528,"d":"$205,016"}},{"$f":"AR19/Inputs!B19/12","v":{"v":204961.41026462577,"d":"$204,961"}},{"$f":"AS19/Inputs!B19/12","v":{"v":204906.0302184909,"d":"$204,906"}},{"$f":"AT19/Inputs!B19/12","v":{"v":204849.68909305183,"d":"$204,850"}},{"$f":"AU19/Inputs!B19/12","v":{"v":204792.7751037625,"d":"$204,793"}},{"$f":"AV19/Inputs!B19/12","v":{"v":204735.29435352838,"d":"$204,735"}},{"$f":"AW19/Inputs!B19/12","v":{"v":204677.1636551106,"d":"$204,677"}},{"$f":"AX19/Inputs!B19/12","v":{"v":204618.4427653602,"d":"$204,618"}},{"$f":"AY19/Inputs!B19/12","v":{"v":204558.40388017418,"d":"$204,558"}},{"$f":"SUM(AO20:AZ20)","v":{"v":2458484.9660282927,"d":"$2,458,485"}},{"$f":"AZ19/Inputs!B19/12","v":{"v":204497.60843174355,"d":"$204,498"}},{"$f":"BB19/Inputs!B19/12","v":{"v":204436.6160870406,"d":"$204,437"}},{"$f":"BC19/Inputs!B19/12","v":{"v":204374.92704541553,"d":"$204,375"}},{"$f":"BD19/Inputs!B19/12","v":{"v":204312.3708197994,"d":"$204,312"}},{"$f":"BE19/Inputs!B19/12","v":{"v":204249.2744662894,"d":"$204,249"}},{"$f":"BF19/Inputs!B19/12","v":{"v":204186.0547888179,"d":"$204,186"}},{"$f":"BG19/Inputs!B19/12","v":{"v":204122.2203703051,"d":"$204,122"}},{"$f":"BH19/Inputs!B19/12","v":{"v":204058.1703321362,"d":"$204,058"}},{"$f":"BI19/Inputs!B19/12","v":{"v":203993.20647417687,"d":"$203,993"}},{"$f":"BJ19/Inputs!B19/12","v":{"v":203927.4886984397,"d":"$203,927"}},{"$f":"BK19/Inputs!B19/12","v":{"v":203860.7266735049,"d":"$203,861"}},{"$f":"BL19/Inputs!B19/12","v":{"v":203793.80750498446,"d":"$203,794"}},{"$f":"SUM(BB20:BM20)","v":{"v":2449812.4716926534,"d":"$2,449,812"}},{"$f":"BM19/Inputs!B19/12","v":{"v":203726.256323123,"d":"$203,726"}},{"$f":"BO19/Inputs!B19/12","v":{"v":203658.35308013973,"d":"$203,658"}},{"$f":"BP19/Inputs!B19/12","v":{"v":203589.41846944302,"d":"$203,589"}},{"$f":"BQ19/Inputs!B19/12","v":{"v":203519.39764478532,"d":"$203,519"}},{"$f":"BR19/Inputs!B19/12","v":{"v":203448.58655505578,"d":"$203,449"}},{"$f":"BS19/Inputs!B19/12","v":{"v":203377.6296066635,"d":"$203,378"}},{"$f":"BT19/Inputs!B19/12","v":{"v":203306.71941716413,"d":"$203,307"}},{"$f":"BU19/Inputs!B19/12","v":{"v":203234.91158626202,"d":"$203,235"}},{"$f":"BV19/Inputs!B19/12","v":{"v":203163.29440839027,"d":"$203,163"}},{"$f":"BW19/Inputs!B19/12","v":{"v":203091.07512322708,"d":"$203,091"}},{"$f":"BX19/Inputs!B19/12","v":{"v":203018.75787776255,"d":"$203,019"}},{"$f":"BY19/Inputs!B19/12","v":{"v":202946.16096917423,"d":"$202,946"}},{"$f":"SUM(BO20:BZ20)","v":{"v":2440080.5610611904,"d":"$2,440,081"}},{"$f":"BZ19/Inputs!B19/12","v":{"v":202872.63751710716,"d":"$202,873"}},{"$f":"CB19/Inputs!B19/12","v":{"v":202799.47536947907,"d":"$202,799"}},{"$f":"CC19/Inputs!B19/12","v":{"v":202726.1132906887,"d":"$202,726"}},{"$f":"CD19/Inputs!B19/12","v":{"v":202652.71290736808,"d":"$202,653"}},{"$f":"CE19/Inputs!B19/12","v":{"v":202578.76526927328,"d":"$202,579"}},{"$f":"CF19/Inputs!B19/12","v":{"v":202504.46931271045,"d":"$202,504"}},{"$f":"CG19/Inputs!B19/12","v":{"v":202430.31542535956,"d":"$202,430"}},{"$f":"CH19/Inputs!B19/12","v":{"v":202356.071603881,"d":"$202,356"}},{"$f":"CI19/Inputs!B19/12","v":{"v":202281.9117831421,"d":"$202,282"}},{"$f":"CJ19/Inputs!B19/12","v":{"v":202207.5055492454,"d":"$202,208"}},{"$f":"CK19/Inputs!B19/12","v":{"v":202133.28808678058,"d":"$202,133"}},{"$f":"CL19/Inputs!B19/12","v":{"v":202058.3720950743,"d":"$202,058"}},{"$f":"SUM(CB20:CM20)","v":{"v":2429601.6382101094,"d":"$2,429,602"}},{"$f":"CM19/Inputs!B19/12","v":{"v":201983.15882943932,"d":"$201,983"}},{"$f":"CO19/Inputs!B19/12","v":{"v":201907.16517993805,"d":"$201,907"}},{"$f":"CP19/Inputs!B19/12","v":{"v":201830.8788382527,"d":"$201,831"}},{"$f":"CQ19/Inputs!B19/12","v":{"v":201754.13460086976,"d":"$201,754"}},{"$f":"CR19/Inputs!B19/12","v":{"v":201677.20199311114,"d":"$201,677"}},{"$f":"CS19/Inputs!B19/12","v":{"v":201600.23824736013,"d":"$201,600"}},{"$f":"CT19/Inputs!B19/12","v":{"v":201522.93313223208,"d":"$201,523"}},{"$f":"CU19/Inputs!B19/12","v":{"v":201445.66903169546,"d":"$201,446"}},{"$f":"CV19/Inputs!B19/12","v":{"v":201367.84410750496,"d":"$201,368"}},{"$f":"CW19/Inputs!B19/12","v":{"v":201290.27702518002,"d":"$201,290"}},{"$f":"CX19/Inputs!B19/12","v":{"v":201212.45452453324,"d":"$201,212"}},{"$f":"CY19/Inputs!B19/12","v":{"v":201134.8865525145,"d":"$201,135"}},{"$f":"SUM(CO20:CZ20)","v":{"v":2418726.8420626316,"d":"$2,418,727"}},{"$f":"CZ19/Inputs!B19/12","v":{"v":201056.47859627262,"d":"$201,056"}},{"$f":"DB19/Inputs!B19/12","v":{"v":200978.2616869003,"d":"$200,978"}},{"$f":"DC19/Inputs!B19/12","v":{"v":200899.79690691116,"d":"$200,900"}},{"$f":"DD19/Inputs!B19/12","v":{"v":200821.05477971,"d":"$200,821"}},{"$f":"DE19/Inputs!B19/12","v":{"v":200742.383447085,"d":"$200,742"}},{"$f":"DF19/Inputs!B19/12","v":{"v":200663.41488843752,"d":"$200,663"}},{"$f":"DG19/Inputs!B19/12","v":{"v":200584.54939367957,"d":"$200,585"}},{"$f":"DH19/Inputs!B19/12","v":{"v":200505.90260067,"d":"$200,506"}},{"$f":"DI19/Inputs!B19/12","v":{"v":200427.11355930407,"d":"$200,427"}},{"$f":"DJ19/Inputs!B19/12","v":{"v":200348.25287893252,"d":"$200,348"}},{"$f":"DK19/Inputs!B19/12","v":{"v":200269.37178837936,"d":"$200,269"}},{"$f":"DL19/Inputs!B19/12","v":{"v":200190.88720853886,"d":"$200,191"}},{"$f":"SUM(DB20:DM20)","v":{"v":2407487.467734821,"d":"$2,407,487"}},{"$f":"DM19/Inputs!B19/12","v":{"v":200111.90771754118,"d":"$200,112"}},{"$f":"DO19/Inputs!B19/12","v":{"v":200032.14863841937,"d":"$200,032"}},{"$f":"DP19/Inputs!B19/12","v":{"v":199951.86993002516,"d":"$199,952"}},{"$f":"DQ19/Inputs!B19/12","v":{"v":199871.85374152937,"d":"$199,872"}},{"$f":"DR19/Inputs!B19/12","v":{"v":199791.22518722658,"d":"$199,791"}},{"$f":"DS19/Inputs!B19/12","v":{"v":199710.56807304095,"d":"$199,711"}},{"$f":"DT19/Inputs!B19/12","v":{"v":199629.72955355138,"d":"$199,630"}},{"$f":"DU19/Inputs!B19/12","v":{"v":199548.50562309407,"d":"$199,549"}},{"$f":"DV19/Inputs!B19/12","v":{"v":199467.33889355845,"d":"$199,467"}},{"$f":"DW19/Inputs!B19/12","v":{"v":199386.4138528319,"d":"$199,386"}},{"$f":"DX19/Inputs!B19/12","v":{"v":199305.6635495414,"d":"$199,306"}},{"$f":"DY19/Inputs!B19/12","v":{"v":199224.43446064982,"d":"$199,224"}},{"$f":"SUM(DO20:DZ20)","v":{"v":2396031.6592210094,"d":"$2,396,032"}},{"$f":"DZ19/Inputs!B19/12","v":{"v":199143.44825272143,"d":"$199,143"}},{"$f":"EB19/Inputs!B19/12","v":{"v":199062.38199085346,"d":"$199,062"}},{"$f":"EC19/Inputs!B19/12","v":{"v":198980.83389584604,"d":"$198,981"}},{"$f":"ED19/Inputs!B19/12","v":{"v":198899.59805219586,"d":"$198,900"}},{"$f":"EE19/Inputs!B19/12","v":{"v":198818.50221544213,"d":"$198,819"}},{"$f":"EF19/Inputs!B19/12","v":{"v":198736.74799995415,"d":"$198,737"}},{"$f":"EG19/Inputs!B19/12","v":{"v":198654.91923738003,"d":"$198,655"}},{"$f":"EH19/Inputs!B19/12","v":{"v":198573.60515006245,"d":"$198,574"}},{"$f":"EI19/Inputs!B19/12","v":{"v":198491.8643025679,"d":"$198,492"}},{"$f":"EJ19/Inputs!B19/12","v":{"v":198409.82464173422,"d":"$198,410"}},{"$f":"EK19/Inputs!B19/12","v":{"v":198327.37448988424,"d":"$198,327"}},{"$f":"EL19/Inputs!B19/12","v":{"v":198245.06829909523,"d":"$198,245"}},{"$f":"SUM(EB20:EM20)","v":{"v":2384344.168527737,"d":"$2,384,344"}}]
[{"$f":"Labels!B19","v":"Capital Investment"},{"$f":"B20+(B22-B19)/Inputs!B22/12","v":{"v":206222.0144162289,"d":"$206,222"}},{"$f":"C20+(C22-C19)/Inputs!B22/12","v":{"v":205810.41289227075,"d":"$205,810"}},{"$f":"D20+(D22-D19)/Inputs!B22/12","v":{"v":205355.22405627466,"d":"$205,355"}},{"$f":"E20+(E22-E19)/Inputs!B22/12","v":{"v":205005.42564091552,"d":"$205,005"}},{"$f":"F20+(F22-F19)/Inputs!B22/12","v":{"v":204763.20090245813,"d":"$204,763"}},{"$f":"G20+(G22-G19)/Inputs!B22/12","v":{"v":204441.4222995787,"d":"$204,441"}},{"$f":"H20+(H22-H19)/Inputs!B22/12","v":{"v":204059.65519388314,"d":"$204,060"}},{"$f":"I20+(I22-I19)/Inputs!B22/12","v":{"v":203721.6982962032,"d":"$203,722"}},{"$f":"J20+(J22-J19)/Inputs!B22/12","v":{"v":203320.48087439404,"d":"$203,320"}},{"$f":"K20+(K22-K19)/Inputs!B22/12","v":{"v":203025.4790735491,"d":"$203,025"}},{"$f":"L20+(L22-L19)/Inputs!B22/12","v":{"v":202719.6537504702,"d":"$202,720"}},{"$f":"M20+(M22-M19)/Inputs!B22/12","v":{"v":202339.7542270007,"d":"$202,340"}},{"$f":"SUM(B21:M21)","v":{"v":2450784.4216232277,"d":"$2,450,784"}},{"$f":"O20+(O22-O19)/Inputs!B22/12","v":{"v":202096.4155033249,"d":"$202,096"}},{"$f":"P20+(P22-P19)/Inputs!B22/12","v":{"v":201761.18935249583,"d":"$201,761"}},{"$f":"Q20+(Q22-Q19)/Inputs!B22/12","v":{"v":201526.03400192273,"d":"$201,526"}},{"$f":"R20+(R22-R19)/Inputs!B22/12","v":{"v":201302.3451393087,"d":"$201,302"}},{"$f":"S20+(S22-S19)/Inputs!B22/12","v":{"v":201005.12651229577,"d":"$201,005"}},{"$f":"T20+(T22-T19)/Inputs!B22/12","v":{"v":200715.85573984263,"d":"$200,716"}},{"$f":"U20+(U22-U19)/Inputs!B22/12","v":{"v":200431.8028981831,"d":"$200,432"}},{"$f":"V20+(V22-V19)/Inputs!B22/12","v":{"v":200092.58828256003,"d":"$200,093"}},{"$f":"W20+(W22-W19)/Inputs!B22/12","v":{"v":199785.12568597015,"d":"$199,785"}},{"$f":"X20+(X22-X19)/Inputs!B22/12","v":{"v":199500.3898305764,"d":"$199,500"}},{"$f":"Y20+(Y22-Y19)/Inputs!B22/12","v":{"v":199207.8601332193,"d":"$199,208"}},{"$f":"Z20+(Z22-Z19)/Inputs!B22/12","v":{"v":198850.28033171015,"d":"$198,850"}},{"$f":"SUM(O21:Z21)","v":{"v":2406275.01341141,"d":"$2,406,275"}},{"$f":"AB20+(AB22-AB19)/Inputs!B22/12","v":{"v":198647.94728003666,"d":"$198,648"}},{"$f":"AC20+(AC22-AC19)/Inputs!B22/12","v":{"v":198415.026386812,"d":"$198,415"}},{"$f":"AD20+(AD22-AD19)/Inputs!B22/12","v":{"v":198192.19128566483,"d":"$198,192"}},{"$f":"AE20+(AE22-AE19)/Inputs!B22/12","v":{"v":197967.87007163462,"d":"$197,968"}},{"$f":"AF20+(AF22-AF19)/Inputs!B22/12","v":{"v":197861.14641084793,"d":"$197,861"}},{"$f":"AG20+(AG22-AG19)/Inputs!B22/12","v":{"v":197641.73935383218,"d":"$197,642"}},{"$f":"AH20+(AH22-AH19)/Inputs!B22/12","v":{"v":197398.87366710964,"d":"$197,399"}},{"$f":"AI20+(AI22-AI19)/Inputs!B22/12","v":{"v":197220.01743466756,"d":"$197,220"}},{"$f":"AJ20+(AJ22-AJ19)/Inputs!B22/12","v":{"v":196921.89112086617,"d":"$196,922"}},{"$f":"AK20+(AK22-AK19)/Inputs!B22/12","v":{"v":196726.0612414079,"d":"$196,726"}},{"$f":"AL20+(AL22-AL19)/Inputs!B22/12","v":{"v":196570.013287216,"d":"$196,570"}},{"$f":"AM20+(AM22-AM19)/Inputs!B22/12","v":{"v":196463.1117185912,"d":"$196,463"}},{"$f":"SUM(AB21:AM21)","v":{"v":2370025.889258687,"d":"$2,370,026"}},{"$f":"AO20+(AO22-AO19)/Inputs!B22/12","v":{"v":196231.71297663674,"d":"$196,232"}},{"$f":"AP20+(AP22-AP19)/Inputs!B22/12","v":{"v":196026.87003802558,"d":"$196,027"}},{"$f":"AQ20+(AQ22-AQ19)/Inputs!B22/12","v":{"v":195871.0862747015,"d":"$195,871"}},{"$f":"AR20+(AR22-AR19)/Inputs!B22/12","v":{"v":195712.31982480816,"d":"$195,712"}},{"$f":"AS20+(AS22-AS19)/Inputs!B22/12","v":{"v":195496.101190863,"d":"$195,496"}},{"$f":"AT20+(AT22-AT19)/Inputs!B22/12","v":{"v":195344.480017887,"d":"$195,344"}},{"$f":"AU20+(AU22-AU19)/Inputs!B22/12","v":{"v":195192.9230537207,"d":"$195,193"}},{"$f":"AV20+(AV22-AV19)/Inputs!B22/12","v":{"v":195026.81776957004,"d":"$195,027"}},{"$f":"AW20+(AW22-AW19)/Inputs!B22/12","v":{"v":194870.1848754649,"d":"$194,870"}},{"$f":"AX20+(AX22-AX19)/Inputs!B22/12","v":{"v":194590.63094385597,"d":"$194,591"}},{"$f":"AY20+(AY22-AY19)/Inputs!B22/12","v":{"v":194404.8074290174,"d":"$194,405"}},{"$f":"AZ20+(AZ22-AZ19)/Inputs!B22/12","v":{"v":194311.6899700786,"d":"$194,312"}},{"$f":"SUM(AO21:AZ21)","v":{"v":2343079.6243646294,"d":"$2,343,080"}},{"$f":"BB20+(BB22-BB19)/Inputs!B22/12","v":{"v":194133.84943873735,"d":"$194,134"}},{"$f":"BC20+(BC22-BC19)/Inputs!B22/12","v":{"v":193927.17018353156,"d":"$193,927"}},{"$f":"BD20+(BD22-BD19)/Inputs!B22/12","v":{"v":193774.73965572615,"d":"$193,775"}},{"$f":"BE20+(BE22-BE19)/Inputs!B22/12","v":{"v":193691.46500459439,"d":"$193,691"}},{"$f":"BF20+(BF22-BF19)/Inputs!B22/12","v":{"v":193525.09215613102,"d":"$193,525"}},{"$f":"BG20+(BG22-BG19)/Inputs!B22/12","v":{"v":193425.64837644473,"d":"$193,426"}},{"$f":"BH20+(BH22-BH19)/Inputs!B22/12","v":{"v":193208.2922331457,"d":"$193,208"}},{"$f":"BI20+(BI22-BI19)/Inputs!B22/12","v":{"v":193017.58400829337,"d":"$193,018"}},{"$f":"BJ20+(BJ22-BJ19)/Inputs!B22/12","v":{"v":192777.18628512567,"d":"$192,777"}},{"$f":"BK20+(BK22-BK19)/Inputs!B22/12","v":{"v":192685.0683870107,"d":"$192,685"}},{"$f":"BL20+(BL22-BL19)/Inputs!B22/12","v":{"v":192512.12812078136,"d":"$192,512"}},{"$f":"BM20+(BM22-BM19)/Inputs!B22/12","v":{"v":192386.06268379177,"d":"$192,386"}},{"$f":"SUM(BB21:BM21)","v":{"v":2319064.2865333143,"d":"$2,319,064"}},{"$f":"BO20+(BO22-BO19)/Inputs!B22/12","v":{"v":192145.24172608022,"d":"$192,145"}},{"$f":"BP20+(BP22-BP19)/Inputs!B22/12","v":{"v":191894.85453764198,"d":"$191,895"}},{"$f":"BQ20+(BQ22-BQ19)/Inputs!B22/12","v":{"v":191693.155394879,"d":"$191,693"}},{"$f":"BR20+(BR22-BR19)/Inputs!B22/12","v":{"v":191598.630314888,"d":"$191,599"}},{"$f":"BS20+(BS22-BS19)/Inputs!B22/12","v":{"v":191535.67471916074,"d":"$191,536"}},{"$f":"BT20+(BT22-BT19)/Inputs!B22/12","v":{"v":191313.9140151095,"d":"$191,314"}},{"$f":"BU20+(BU22-BU19)/Inputs!B22/12","v":{"v":191275.033534709,"d":"$191,275"}},{"$f":"BV20+(BV22-BV19)/Inputs!B22/12","v":{"v":191102.07167884806,"d":"$191,102"}},{"$f":"BW20+(BW22-BW19)/Inputs!B22/12","v":{"v":191013.99717035223,"d":"$191,014"}},{"$f":"BX20+(BX22-BX19)/Inputs!B22/12","v":{"v":190894.79448038855,"d":"$190,895"}},{"$f":"BY20+(BY22-BY19)/Inputs!B22/12","v":{"v":190666.81793049187,"d":"$190,667"}},{"$f":"BZ20+(BZ22-BZ19)/Inputs!B22/12","v":{"v":190654.92016765627,"d":"$190,655"}},{"$f":"SUM(BO21:BZ21)","v":{"v":2295789.105670205,"d":"$2,295,789"}},{"$f":"CB20+(CB22-CB19)/Inputs!B22/12","v":{"v":190547.80828032905,"d":"$190,548"}},{"$f":"CC20+(CC22-CC19)/Inputs!B22/12","v":{"v":190468.21097161472,"d":"$190,468"}},{"$f":"CD20+(CD22-CD19)/Inputs!B22/12","v":{"v":190302.9100907574,"d":"$190,303"}},{"$f":"CE20+(CE22-CE19)/Inputs!B22/12","v":{"v":190170.99220481596,"d":"$190,171"}},{"$f":"CF20+(CF22-CF19)/Inputs!B22/12","v":{"v":190120.91219432012,"d":"$190,121"}},{"$f":"CG20+(CG22-CG19)/Inputs!B22/12","v":{"v":190031.50730431947,"d":"$190,032"}},{"$f":"CH20+(CH22-CH19)/Inputs!B22/12","v":{"v":189971.46554121946,"d":"$189,971"}},{"$f":"CI20+(CI22-CI19)/Inputs!B22/12","v":{"v":189855.82430922912,"d":"$189,856"}},{"$f":"CJ20+(CJ22-CJ19)/Inputs!B22/12","v":{"v":189813.37808905332,"d":"$189,813"}},{"$f":"CK20+(CK22-CK19)/Inputs!B22/12","v":{"v":189621.61894259744,"d":"$189,622"}},{"$f":"CL20+(CL22-CL19)/Inputs!B22/12","v":{"v":189497.4594600918,"d":"$189,497"}},{"$f":"CM20+(CM22-CM19)/Inputs!B22/12","v":{"v":189291.43897885468,"d":"$189,291"}},{"$f":"SUM(CB21:CM21)","v":{"v":2279693.5263672024,"d":"$2,279,694"}},{"$f":"CO20+(CO22-CO19)/Inputs!B22/12","v":{"v":189167.05342630338,"d":"$189,167"}},{"$f":"CP20+(CP22-CP19)/Inputs!B22/12","v":{"v":189014.13329960176,"d":"$189,014"}},{"$f":"CQ20+(CQ22-CQ19)/Inputs!B22/12","v":{"v":188906.20073480328,"d":"$188,906"}},{"$f":"CR20+(CR22-CR19)/Inputs!B22/12","v":{"v":188824.2253147058,"d":"$188,824"}},{"$f":"CS20+(CS22-CS19)/Inputs!B22/12","v":{"v":188689.94265159388,"d":"$188,690"}},{"$f":"CT20+(CT22-CT19)/Inputs!B22/12","v":{"v":188619.86935720762,"d":"$188,620"}},{"$f":"CU20+(CU22-CU19)/Inputs!B22/12","v":{"v":188448.3458682329,"d":"$188,448"}},{"$f":"CV20+(CV22-CV19)/Inputs!B22/12","v":{"v":188414.3992011005,"d":"$188,414"}},{"$f":"CW20+(CW22-CW19)/Inputs!B22/12","v":{"v":188293.66399885045,"d":"$188,294"}},{"$f":"CX20+(CX22-CX19)/Inputs!B22/12","v":{"v":188258.85772603232,"d":"$188,259"}},{"$f":"CY20+(CY22-CY19)/Inputs!B22/12","v":{"v":188039.91787589397,"d":"$188,040"}},{"$f":"CZ20+(CZ22-CZ19)/Inputs!B22/12","v":{"v":187994.44577796984,"d":"$187,994"}},{"$f":"SUM(CO21:CZ21)","v":{"v":2262671.0552322953,"d":"$2,262,671"}},{"$f":"DB20+(DB22-DB19)/Inputs!B22/12","v":{"v":187874.39555808628,"d":"$187,874"}},{"$f":"DC20+(DC22-DC19)/Inputs!B22/12","v":{"v":187749.58431710303,"d":"$187,750"}},{"$f":"DD20+(DD22-DD19)/Inputs!B22/12","v":{"v":187683.01302591423,"d":"$187,683"}},{"$f":"DE20+(DE22-DE19)/Inputs!B22/12","v":{"v":187554.3369269298,"d":"$187,554"}},{"$f":"DF20+(DF22-DF19)/Inputs!B22/12","v":{"v":187492.9803277448,"d":"$187,493"}},{"$f":"DG20+(DG22-DG19)/Inputs!B22/12","v":{"v":187450.75366283362,"d":"$187,451"}},{"$f":"DH20+(DH22-DH19)/Inputs!B22/12","v":{"v":187347.99044420035,"d":"$187,348"}},{"$f":"DI20+(DI22-DI19)/Inputs!B22/12","v":{"v":187257.30829824143,"d":"$187,257"}},{"$f":"DJ20+(DJ22-DJ19)/Inputs!B22/12","v":{"v":187175.09034637097,"d":"$187,175"}},{"$f":"DK20+(DK22-DK19)/Inputs!B22/12","v":{"v":187162.84346573462,"d":"$187,163"}},{"$f":"DL20+(DL22-DL19)/Inputs!B22/12","v":{"v":187000.817300769,"d":"$187,001"}},{"$f":"DM20+(DM22-DM19)/Inputs!B22/12","v":{"v":186791.3619160735,"d":"$186,791"}},{"$f":"SUM(DB21:DM21)","v":{"v":2248540.475590002,"d":"$2,248,540"}},{"$f":"DO20+(DO22-DO19)/Inputs!B22/12","v":{"v":186625.08470731592,"d":"$186,625"}},{"$f":"DP20+(DP22-DP19)/Inputs!B22/12","v":{"v":186589.42897112976,"d":"$186,589"}},{"$f":"DQ20+(DQ22-DQ19)/Inputs!B22/12","v":{"v":186406.27280715932,"d":"$186,406"}},{"$f":"DR20+(DR22-DR19)/Inputs!B22/12","v":{"v":186321.45855834632,"d":"$186,321"}},{"$f":"DS20+(DS22-DS19)/Inputs!B22/12","v":{"v":186210.35391297776,"d":"$186,210"}},{"$f":"DT20+(DT22-DT19)/Inputs!B22/12","v":{"v":186064.94775621948,"d":"$186,065"}},{"$f":"DU20+(DU22-DU19)/Inputs!B22/12","v":{"v":185993.71899156042,"d":"$185,994"}},{"$f":"DV20+(DV22-DV19)/Inputs!B22/12","v":{"v":185953.09878103295,"d":"$185,953"}},{"$f":"DW20+(DW22-DW19)/Inputs!B22/12","v":{"v":185901.2879407605,"d":"$185,901"}},{"$f":"DX20+(DX22-DX19)/Inputs!B22/12","v":{"v":185739.9269190407,"d":"$185,740"}},{"$f":"DY20+(DY22-DY19)/Inputs!B22/12","v":{"v":185699.9806175735,"d":"$185,700"}},{"$f":"DZ20+(DZ22-DZ19)/Inputs!B22/12","v":{"v":185605.30246683047,"d":"$185,605"}},{"$f":"SUM(DO21:DZ21)","v":{"v":2233110.8624299467,"d":"$2,233,111"}},{"$f":"EB20+(EB22-EB19)/Inputs!B22/12","v":{"v":185443.36829148125,"d":"$185,443"}},{"$f":"EC20+(EC22-EC19)/Inputs!B22/12","v":{"v":185414.76025762467,"d":"$185,415"}},{"$f":"ED20+(ED22-ED19)/Inputs!B22/12","v":{"v":185356.73332121677,"d":"$185,357"}},{"$f":"EE20+(EE22-EE19)/Inputs!B22/12","v":{"v":185164.8898502235,"d":"$185,165"}},{"$f":"EF20+(EF22-EF19)/Inputs!B22/12","v":{"v":185071.270102988,"d":"$185,071"}},{"$f":"EG20+(EG22-EG19)/Inputs!B22/12","v":{"v":185075.98133059902,"d":"$185,076"}},{"$f":"EH20+(EH22-EH19)/Inputs!B22/12","v":{"v":184922.45685829813,"d":"$184,922"}},{"$f":"EI20+(EI22-EI19)/Inputs!B22/12","v":{"v":184790.9421300003,"d":"$184,791"}},{"$f":"EJ20+(EJ22-EJ19)/Inputs!B22/12","v":{"v":184640.2387917742,"d":"$184,640"}},{"$f":"EK20+(EK22-EK19)/Inputs!B22/12","v":{"v":184582.3845891773,"d":"$184,582"}},{"$f":"EL20+(EL22-EL19)/Inputs!B22/12","v":{"v":184466.26603735326,"d":"$184,466"}},{"$f":"EM20+(EM22-EM19)/Inputs!B22/12","v":{"v":184421.64357682937,"d":"$184,422"}},{"$f":"SUM(EB21:EM21)","v":{"v":2219350.9351375657,"d":"$2,219,351"}}]
[{"$f":"Labels!B14","v":"Desired Capital"},{"$f":"Inputs!B20*B10/(1/Inputs!B19/12+'(Other Computations)'!B144)","v":{"v":34645298.42192645,"d":"$34,645,298"}},{"$f":"Inputs!B20*C10/(1/Inputs!B19/12+'(Other Computations)'!B144)","v":{"v":34630480.76706396,"d":"$34,630,481"}},{"$f":"Inputs!B20*D10/(1/Inputs!B19/12+'(Other Computations)'!B144)","v":{"v":34613682.36744414,"d":"$34,613,682"}},{"$f":"Inputs!B20*E10/(1/Inputs!B19/12+'(Other Computations)'!B144)","v":{"v":34600311.034457825,"d":"$34,600,311"}},{"$f":"Inputs!B20*F10/(1/Inputs!B19/12+'(Other Computations)'!B144)","v":{"v":34590562.54589854,"d":"$34,590,563"}},{"$f":"Inputs!B20*G10/(1/Inputs!B19/12+'(Other Computations)'!B144)","v":{"v":34577787.48474937,"d":"$34,577,787"}},{"$f":"Inputs!B20*H10/(1/Inputs!B19/12+'(Other Computations)'!B144)","v":{"v":34562589.08561356,"d":"$34,562,589"}},{"$f":"Inputs!B20*I10/(1/Inputs!B19/12+'(Other Computations)'!B144)","v":{"v":34548662.12889127,"d":"$34,548,662"}},{"$f":"Inputs!B20*J10/(1/Inputs!B19/12+'(Other Computations)'!B144)","v":{"v":34532210.30306417,"d":"$34,532,210"}},{"$f":"Inputs!B20*K10/(1/Inputs!B19/12+'(Other Computations)'!B144)","v":{"v":34519263.92072189,"d":"$34,519,264"}},{"$f":"Inputs!B20*L10/(1/Inputs!B19/12+'(Other Computations)'!B144)","v":{"v":34505730.81731302,"d":"$34,505,731"}},{"$f":"Inputs!B20*M10/(1/Inputs!B19/12+'(Other Computations)'!B144)","v":{"v":34489302.279166676,"d":"$34,489,302"}},{"$f":"M22","v":{"v":34489302.279166676,"d":"$34,489,302"}},{"$f":"Inputs!B20*O10/(1/Inputs!B19/12+'(Other Computations)'!B144)","v":{"v":34477490.58447639,"d":"$34,477,491"}},{"$f":"Inputs!B20*P10/(1/Inputs!B19/12+'(Other Computations)'!B144)","v":{"v":34462225.39260244,"d":"$34,462,225"}},{"$f":"Inputs!B20*Q10/(1/Inputs!B19/12+'(Other Computations)'!B144)","v":{"v":34450297.83109338,"d":"$34,450,298"}},{"$f":"Inputs!B20*R10/(1/Inputs!B19/12+'(Other Computations)'!B144)","v":{"v":34438638.77203761,"d":"$34,438,639"}},{"$f":"Inputs!B20*S10/(1/Inputs!B19/12+'(Other Computations)'!B144)","v":{"v":34424179.94999081,"d":"$34,424,180"}},{"$f":"Inputs!B20*T10/(1/Inputs!B19/12+'(Other Computations)'!B144)","v":{"v":34409779.43124218,"d":"$34,409,779"}},{"$f":"Inputs!B20*U10/(1/Inputs!B19/12+'(Other Computations)'!B144)","v":{"v":34395363.55164662,"d":"$34,395,364"}},{"$f":"Inputs!B20*V10/(1/Inputs!B19/12+'(Other Computations)'!B144)","v":{"v":34378763.51272022,"d":"$34,378,764"}},{"$f":"Inputs!B20*W10/(1/Inputs!B19/12+'(Other Computations)'!B144)","v":{"v":34363053.14067051,"d":"$34,363,053"}},{"$f":"Inputs!B20*X10/(1/Inputs!B19/12+'(Other Computations)'!B144)","v":{"v":34347952.278462775,"d":"$34,347,952"}},{"$f":"Inputs!B20*Y10/(1/Inputs!B19/12+'(Other Computations)'!B144)","v":{"v":34332379.616208315,"d":"$34,332,380"}},{"$f":"Inputs!B20*Z10/(1/Inputs!B19/12+'(Other Computations)'!B144)","v":{"v":34314262.50659159,"d":"$34,314,263"}},{"$f":"Z22","v":{"v":34314262.50659159,"d":"$34,314,263"}},{"$f":"Inputs!B20*AB10/(1/Inputs!B19/12+'(Other Computations)'!B144)","v":{"v":34301469.394585624,"d":"$34,301,469"}},{"$f":"Inputs!B20*AC10/(1/Inputs!B19/12+'(Other Computations)'!B144)","v":{"v":34287480.62717033,"d":"$34,287,481"}},{"$f":"Inputs!B20*AD10/(1/Inputs!B19/12+'(Other Computations)'!B144)","v":{"v":34273698.17685284,"d":"$34,273,698"}},{"$f":"Inputs!B20*AE10/(1/Inputs!B19/12+'(Other Computations)'!B144)","v":{"v":34259722.65784311,"d":"$34,259,723"}},{"$f":"Inputs!B20*AF10/(1/Inputs!B19/12+'(Other Computations)'!B144)","v":{"v":34249838.367930874,"d":"$34,249,838"}},{"$f":"Inputs!B20*AG10/(1/Inputs!B19/12+'(Other Computations)'!B144)","v":{"v":34235873.93970675,"d":"$34,235,874"}},{"$f":"Inputs!B20*AH10/(1/Inputs!B19/12+'(Other Computations)'!B144)","v":{"v":34220904.42881518,"d":"$34,220,904"}},{"$f":"Inputs!B20*AI10/(1/Inputs!B19/12+'(Other Computations)'!B144)","v":{"v":34208079.514187545,"d":"$34,208,080"}},{"$f":"Inputs!B20*AJ10/(1/Inputs!B19/12+'(Other Computations)'!B144)","v":{"v":34190871.12463003,"d":"$34,190,871"}},{"$f":"Inputs!B20*AK10/(1/Inputs!B19/12+'(Other Computations)'!B144)","v":{"v":34177123.61917261,"d":"$34,177,124"}},{"$f":"Inputs!B20*AL10/(1/Inputs!B19/12+'(Other Computations)'!B144)","v":{"v":34164714.864035554,"d":"$34,164,715"}},{"$f":"Inputs!B20*AM10/(1/Inputs!B19/12+'(Other Computations)'!B144)","v":{"v":34154001.161214344,"d":"$34,154,001"}},{"$f":"AM22","v":{"v":34154001.161214344,"d":"$34,154,001"}},{"$f":"Inputs!B20*AO10/(1/Inputs!B19/12+'(Other Computations)'!B144)","v":{"v":34138772.52022236,"d":"$34,138,773"}},{"$f":"Inputs!B20*AP10/(1/Inputs!B19/12+'(Other Computations)'!B144)","v":{"v":34124332.26144938,"d":"$34,124,332"}},{"$f":"Inputs!B20*AQ10/(1/Inputs!B19/12+'(Other Computations)'!B144)","v":{"v":34111543.9367207,"d":"$34,111,544"}},{"$f":"Inputs!B20*AR10/(1/Inputs!B19/12+'(Other Computations)'!B144)","v":{"v":34098578.40543347,"d":"$34,098,578"}},{"$f":"Inputs!B20*AS10/(1/Inputs!B19/12+'(Other Computations)'!B144)","v":{"v":34083461.95005101,"d":"$34,083,462"}},{"$f":"Inputs!B20*AT10/(1/Inputs!B19/12+'(Other Computations)'!B144)","v":{"v":34070531.96041097,"d":"$34,070,532"}},{"$f":"Inputs!B20*AU10/(1/Inputs!B19/12+'(Other Computations)'!B144)","v":{"v":34057542.64001618,"d":"$34,057,543"}},{"$f":"Inputs!B20*AV10/(1/Inputs!B19/12+'(Other Computations)'!B144)","v":{"v":34043954.98736184,"d":"$34,043,955"}},{"$f":"Inputs!B20*AW10/(1/Inputs!B19/12+'(Other Computations)'!B144)","v":{"v":34030619.552848294,"d":"$34,030,620"}},{"$f":"Inputs!B20*AX10/(1/Inputs!B19/12+'(Other Computations)'!B144)","v":{"v":34012783.20697535,"d":"$34,012,783"}},{"$f":"Inputs!B20*AY10/(1/Inputs!B19/12+'(Other Computations)'!B144)","v":{"v":33998120.97976092,"d":"$33,998,121"}},{"$f":"Inputs!B20*AZ10/(1/Inputs!B19/12+'(Other Computations)'!B144)","v":{"v":33986716.515769474,"d":"$33,986,717"}},{"$f":"AZ22","v":{"v":33986716.515769474,"d":"$33,986,717"}},{"$f":"Inputs!B20*BB10/(1/Inputs!B19/12+'(Other Computations)'!B144)","v":{"v":33972256.1788746,"d":"$33,972,256"}},{"$f":"Inputs!B20*BC10/(1/Inputs!B19/12+'(Other Computations)'!B144)","v":{"v":33956647.69110349,"d":"$33,956,648"}},{"$f":"Inputs!B20*BD10/(1/Inputs!B19/12+'(Other Computations)'!B144)","v":{"v":33942871.551697485,"d":"$33,942,872"}},{"$f":"Inputs!B20*BE10/(1/Inputs!B19/12+'(Other Computations)'!B144)","v":{"v":33931525.500989236,"d":"$33,931,526"}},{"$f":"Inputs!B20*BF10/(1/Inputs!B19/12+'(Other Computations)'!B144)","v":{"v":33917186.64135571,"d":"$33,917,187"}},{"$f":"Inputs!B20*BG10/(1/Inputs!B19/12+'(Other Computations)'!B144)","v":{"v":33905158.39136582,"d":"$33,905,158"}},{"$f":"Inputs!B20*BH10/(1/Inputs!B19/12+'(Other Computations)'!B144)","v":{"v":33888871.20286114,"d":"$33,888,871"}},{"$f":"Inputs!B20*BI10/(1/Inputs!B19/12+'(Other Computations)'!B144)","v":{"v":33873397.58000337,"d":"$33,873,398"}},{"$f":"Inputs!B20*BJ10/(1/Inputs!B19/12+'(Other Computations)'!B144)","v":{"v":33856041.37453203,"d":"$33,856,041"}},{"$f":"Inputs!B20*BK10/(1/Inputs!B19/12+'(Other Computations)'!B144)","v":{"v":33843874.94993737,"d":"$33,843,875"}},{"$f":"Inputs!B20*BL10/(1/Inputs!B19/12+'(Other Computations)'!B144)","v":{"v":33828810.11293934,"d":"$33,828,810"}},{"$f":"Inputs!B20*BM10/(1/Inputs!B19/12+'(Other Computations)'!B144)","v":{"v":33815332.248721726,"d":"$33,815,332"}},{"$f":"BM22","v":{"v":33815332.248721726,"d":"$33,815,332"}},{"$f":"Inputs!B20*BO10/(1/Inputs!B19/12+'(Other Computations)'!B144)","v":{"v":33797686.79196993,"d":"$33,797,687"}},{"$f":"Inputs!B20*BP10/(1/Inputs!B19/12+'(Other Computations)'!B144)","v":{"v":33779536.35533651,"d":"$33,779,536"}},{"$f":"Inputs!B20*BQ10/(1/Inputs!B19/12+'(Other Computations)'!B144)","v":{"v":33762993.33363963,"d":"$33,762,993"}},{"$f":"Inputs!B20*BR10/(1/Inputs!B19/12+'(Other Computations)'!B144)","v":{"v":33750214.91737307,"d":"$33,750,215"}},{"$f":"Inputs!B20*BS10/(1/Inputs!B19/12+'(Other Computations)'!B144)","v":{"v":33738576.94782725,"d":"$33,738,577"}},{"$f":"Inputs!B20*BT10/(1/Inputs!B19/12+'(Other Computations)'!B144)","v":{"v":33721235.10078763,"d":"$33,721,235"}},{"$f":"Inputs!B20*BU10/(1/Inputs!B19/12+'(Other Computations)'!B144)","v":{"v":33710324.454723634,"d":"$33,710,324"}},{"$f":"Inputs!B20*BV10/(1/Inputs!B19/12+'(Other Computations)'!B144)","v":{"v":33694651.22394266,"d":"$33,694,651"}},{"$f":"Inputs!B20*BW10/(1/Inputs!B19/12+'(Other Computations)'!B144)","v":{"v":33681925.92013278,"d":"$33,681,926"}},{"$f":"Inputs!B20*BX10/(1/Inputs!B19/12+'(Other Computations)'!B144)","v":{"v":33668085.22032192,"d":"$33,668,085"}},{"$f":"Inputs!B20*BY10/(1/Inputs!B19/12+'(Other Computations)'!B144)","v":{"v":33650285.20471953,"d":"$33,650,285"}},{"$f":"Inputs!B20*BZ10/(1/Inputs!B19/12+'(Other Computations)'!B144)","v":{"v":33640118.43401936,"d":"$33,640,118"}},{"$f":"BZ22","v":{"v":33640118.43401936,"d":"$33,640,118"}},{"$f":"Inputs!B20*CB10/(1/Inputs!B19/12+'(Other Computations)'!B144)","v":{"v":33626618.00954847,"d":"$33,626,618"}},{"$f":"Inputs!B20*CC10/(1/Inputs!B19/12+'(Other Computations)'!B144)","v":{"v":33614061.51451258,"d":"$33,614,062"}},{"$f":"Inputs!B20*CD10/(1/Inputs!B19/12+'(Other Computations)'!B144)","v":{"v":33598420.45324031,"d":"$33,598,420"}},{"$f":"Inputs!B20*CE10/(1/Inputs!B19/12+'(Other Computations)'!B144)","v":{"v":33583890.61994603,"d":"$33,583,891"}},{"$f":"Inputs!B20*CF10/(1/Inputs!B19/12+'(Other Computations)'!B144)","v":{"v":33572268.133837044,"d":"$33,572,268"}},{"$f":"Inputs!B20*CG10/(1/Inputs!B19/12+'(Other Computations)'!B144)","v":{"v":33559266.35915833,"d":"$33,559,266"}},{"$f":"Inputs!B20*CH10/(1/Inputs!B19/12+'(Other Computations)'!B144)","v":{"v":33547301.433622967,"d":"$33,547,301"}},{"$f":"Inputs!B20*CI10/(1/Inputs!B19/12+'(Other Computations)'!B144)","v":{"v":33533352.276960406,"d":"$33,533,352"}},{"$f":"Inputs!B20*CJ10/(1/Inputs!B19/12+'(Other Computations)'!B144)","v":{"v":33521993.71928603,"d":"$33,521,994"}},{"$f":"Inputs!B20*CK10/(1/Inputs!B19/12+'(Other Computations)'!B144)","v":{"v":33505300.48073981,"d":"$33,505,300"}},{"$f":"Inputs!B20*CL10/(1/Inputs!B19/12+'(Other Computations)'!B144)","v":{"v":33490916.68141169,"d":"$33,490,917"}},{"$f":"Inputs!B20*CM10/(1/Inputs!B19/12+'(Other Computations)'!B144)","v":{"v":33473561.091161896,"d":"$33,473,561"}},{"$f":"CM22","v":{"v":33473561.091161896,"d":"$33,473,561"}},{"$f":"Inputs!B20*CO10/(1/Inputs!B19/12+'(Other Computations)'!B144)","v":{"v":33459023.955716696,"d":"$33,459,024"}},{"$f":"Inputs!B20*CP10/(1/Inputs!B19/12+'(Other Computations)'!B144)","v":{"v":33443438.49713435,"d":"$33,443,438"}},{"$f":"Inputs!B20*CQ10/(1/Inputs!B19/12+'(Other Computations)'!B144)","v":{"v":33429406.201221943,"d":"$33,429,406"}},{"$f":"Inputs!B20*CR10/(1/Inputs!B19/12+'(Other Computations)'!B144)","v":{"v":33416293.200540766,"d":"$33,416,293"}},{"$f":"Inputs!B20*CS10/(1/Inputs!B19/12+'(Other Computations)'!B144)","v":{"v":33401298.689261883,"d":"$33,401,299"}},{"$f":"Inputs!B20*CT10/(1/Inputs!B19/12+'(Other Computations)'!B144)","v":{"v":33388559.4861695,"d":"$33,388,559"}},{"$f":"Inputs!B20*CU10/(1/Inputs!B19/12+'(Other Computations)'!B144)","v":{"v":33372187.255820867,"d":"$33,372,187"}},{"$f":"Inputs!B20*CV10/(1/Inputs!B19/12+'(Other Computations)'!B144)","v":{"v":33360672.096159417,"d":"$33,360,672"}},{"$f":"Inputs!B20*CW10/(1/Inputs!B19/12+'(Other Computations)'!B144)","v":{"v":33346096.05631868,"d":"$33,346,096"}},{"$f":"Inputs!B20*CX10/(1/Inputs!B19/12+'(Other Computations)'!B144)","v":{"v":33334561.265352268,"d":"$33,334,561"}},{"$f":"Inputs!B20*CY10/(1/Inputs!B19/12+'(Other Computations)'!B144)","v":{"v":33316449.621471424,"d":"$33,316,450"}},{"$f":"Inputs!B20*CZ10/(1/Inputs!B19/12+'(Other Computations)'!B144)","v":{"v":33304432.53629019,"d":"$33,304,433"}},{"$f":"CZ22","v":{"v":33304432.53629019,"d":"$33,304,433"}},{"$f":"Inputs!B20*DB10/(1/Inputs!B19/12+'(Other Computations)'!B144)","v":{"v":33289792.974024545,"d":"$33,289,793"}},{"$f":"Inputs!B20*DC10/(1/Inputs!B19/12+'(Other Computations)'!B144)","v":{"v":33274933.49504837,"d":"$33,274,933"}},{"$f":"Inputs!B20*DD10/(1/Inputs!B19/12+'(Other Computations)'!B144)","v":{"v":33262132.983275387,"d":"$33,262,133"}},{"$f":"Inputs!B20*DE10/(1/Inputs!B19/12+'(Other Computations)'!B144)","v":{"v":33247118.576410197,"d":"$33,247,119"}},{"$f":"Inputs!B20*DF10/(1/Inputs!B19/12+'(Other Computations)'!B144)","v":{"v":33234475.188961256,"d":"$33,234,475"}},{"$f":"Inputs!B20*DG10/(1/Inputs!B19/12+'(Other Computations)'!B144)","v":{"v":33222548.494016424,"d":"$33,222,548"}},{"$f":"Inputs!B20*DH10/(1/Inputs!B19/12+'(Other Computations)'!B144)","v":{"v":33208475.51473131,"d":"$33,208,476"}},{"$f":"Inputs!B20*DI10/(1/Inputs!B19/12+'(Other Computations)'!B144)","v":{"v":33194805.683075655,"d":"$33,194,806"}},{"$f":"Inputs!B20*DJ10/(1/Inputs!B19/12+'(Other Computations)'!B144)","v":{"v":33181433.64799507,"d":"$33,181,434"}},{"$f":"Inputs!B20*DK10/(1/Inputs!B19/12+'(Other Computations)'!B144)","v":{"v":33170579.721572604,"d":"$33,170,580"}},{"$f":"Inputs!B20*DL10/(1/Inputs!B19/12+'(Other Computations)'!B144)","v":{"v":33154401.08948056,"d":"$33,154,401"}},{"$f":"Inputs!B20*DM10/(1/Inputs!B19/12+'(Other Computations)'!B144)","v":{"v":33136417.586018164,"d":"$33,136,418"}},{"$f":"DM22","v":{"v":33136417.586018164,"d":"$33,136,418"}},{"$f":"Inputs!B20*DO10/(1/Inputs!B19/12+'(Other Computations)'!B144)","v":{"v":33119875.342886344,"d":"$33,119,875"}},{"$f":"Inputs!B20*DP10/(1/Inputs!B19/12+'(Other Computations)'!B144)","v":{"v":33107976.2402218,"d":"$33,107,976"}},{"$f":"Inputs!B20*DQ10/(1/Inputs!B19/12+'(Other Computations)'!B144)","v":{"v":33090829.93215376,"d":"$33,090,830"}},{"$f":"Inputs!B20*DR10/(1/Inputs!B19/12+'(Other Computations)'!B144)","v":{"v":33077111.60485948,"d":"$33,077,112"}},{"$f":"Inputs!B20*DS10/(1/Inputs!B19/12+'(Other Computations)'!B144)","v":{"v":33062464.070397925,"d":"$33,062,464"}},{"$f":"Inputs!B20*DT10/(1/Inputs!B19/12+'(Other Computations)'!B144)","v":{"v":33046552.233591057,"d":"$33,046,552"}},{"$f":"Inputs!B20*DU10/(1/Inputs!B19/12+'(Other Computations)'!B144)","v":{"v":33033252.56444813,"d":"$33,033,253"}},{"$f":"Inputs!B20*DV10/(1/Inputs!B19/12+'(Other Computations)'!B144)","v":{"v":33021078.287803616,"d":"$33,021,078"}},{"$f":"Inputs!B20*DW10/(1/Inputs!B19/12+'(Other Computations)'!B144)","v":{"v":33008539.69297503,"d":"$33,008,540"}},{"$f":"Inputs!B20*DX10/(1/Inputs!B19/12+'(Other Computations)'!B144)","v":{"v":32992077.946706478,"d":"$32,992,078"}},{"$f":"Inputs!B20*DY10/(1/Inputs!B19/12+'(Other Computations)'!B144)","v":{"v":32979900.40383832,"d":"$32,979,900"}},{"$f":"Inputs!B20*DZ10/(1/Inputs!B19/12+'(Other Computations)'!B144)","v":{"v":32965810.554679703,"d":"$32,965,811"}},{"$f":"DZ22","v":{"v":32965810.554679703,"d":"$32,965,811"}},{"$f":"Inputs!B20*EB10/(1/Inputs!B19/12+'(Other Computations)'!B144)","v":{"v":32949277.295858733,"d":"$32,949,277"}},{"$f":"Inputs!B20*EC10/(1/Inputs!B19/12+'(Other Computations)'!B144)","v":{"v":32937465.7121059,"d":"$32,937,466"}},{"$f":"Inputs!B20*ED10/(1/Inputs!B19/12+'(Other Computations)'!B144)","v":{"v":32924664.852082253,"d":"$32,924,665"}},{"$f":"Inputs!B20*EE10/(1/Inputs!B19/12+'(Other Computations)'!B144)","v":{"v":32907058.87692327,"d":"$32,907,059"}},{"$f":"Inputs!B20*EF10/(1/Inputs!B19/12+'(Other Computations)'!B144)","v":{"v":32892873.30794395,"d":"$32,892,873"}},{"$f":"Inputs!B20*EG10/(1/Inputs!B19/12+'(Other Computations)'!B144)","v":{"v":32882238.83178306,"d":"$32,882,239"}},{"$f":"Inputs!B20*EH10/(1/Inputs!B19/12+'(Other Computations)'!B144)","v":{"v":32865997.01956354,"d":"$32,865,997"}},{"$f":"Inputs!B20*EI10/(1/Inputs!B19/12+'(Other Computations)'!B144)","v":{"v":32850457.334109172,"d":"$32,850,457"}},{"$f":"Inputs!B20*EJ10/(1/Inputs!B19/12+'(Other Computations)'!B144)","v":{"v":32834192.021422774,"d":"$32,834,192"}},{"$f":"Inputs!B20*EK10/(1/Inputs!B19/12+'(Other Computations)'!B144)","v":{"v":32821211.072408505,"d":"$32,821,211"}},{"$f":"Inputs!B20*EL10/(1/Inputs!B19/12+'(Other Computations)'!B144)","v":{"v":32806171.56995688,"d":"$32,806,172"}},{"$f":"Inputs!B20*EM10/(1/Inputs!B19/12+'(Other Computations)'!B144)","v":{"v":32793667.075793892,"d":"$32,793,667"}},{"$f":"EM22","v":{"v":32793667.075793892,"d":"$32,793,667"}}]
[]
[]
[{"$f":"\"Employment\"","v":"Employment"}]
[{"$f":"\" \"","v":" "}]
[null,{"$f":"ZZZ__FnCalls!F7","v":"Jan 2010"},{"$f":"ZZZ__FnCalls!F8","v":"Feb 2010"},{"$f":"ZZZ__FnCalls!F9","v":"Mar 2010"},{"$f":"ZZZ__FnCalls!F10","v":"Apr 2010"},{"$f":"ZZZ__FnCalls!F11","v":"May 2010"},{"$f":"ZZZ__FnCalls!F12","v":"Jun 2010"},{"$f":"ZZZ__FnCalls!F13","v":"Jul 2010"},{"$f":"ZZZ__FnCalls!F14","v":"Aug 2010"},{"$f":"ZZZ__FnCalls!F15","v":"Sep 2010"},{"$f":"ZZZ__FnCalls!F16","v":"Oct 2010"},{"$f":"ZZZ__FnCalls!F17","v":"Nov 2010"},{"$f":"ZZZ__FnCalls!F18","v":"Dec 2010"},{"$f":"ZZZ__FnCalls!H7","v":"2010"},{"$f":"ZZZ__FnCalls!F19","v":"Jan 2011"},{"$f":"ZZZ__FnCalls!F20","v":"Feb 2011"},{"$f":"ZZZ__FnCalls!F21","v":"Mar 2011"},{"$f":"ZZZ__FnCalls!F22","v":"Apr 2011"},{"$f":"ZZZ__FnCalls!F23","v":"May 2011"},{"$f":"ZZZ__FnCalls!F24","v":"Jun 2011"},{"$f":"ZZZ__FnCalls!F25","v":"Jul 2011"},{"$f":"ZZZ__FnCalls!F26","v":"Aug 2011"},{"$f":"ZZZ__FnCalls!F27","v":"Sep 2011"},{"$f":"ZZZ__FnCalls!F28","v":"Oct 2011"},{"$f":"ZZZ__FnCalls!F29","v":"Nov 2011"},{"$f":"ZZZ__FnCalls!F30","v":"Dec 2011"},{"$f":"ZZZ__FnCalls!H19","v":"2011"},{"$f":"ZZZ__FnCalls!F31","v":"Jan 2012"},{"$f":"ZZZ__FnCalls!F32","v":"Feb 2012"},{"$f":"ZZZ__FnCalls!F33","v":"Mar 2012"},{"$f":"ZZZ__FnCalls!F34","v":"Apr 2012"},{"$f":"ZZZ__FnCalls!F35","v":"May 2012"},{"$f":"ZZZ__FnCalls!F36","v":"Jun 2012"},{"$f":"ZZZ__FnCalls!F37","v":"Jul 2012"},{"$f":"ZZZ__FnCalls!F38","v":"Aug 2012"},{"$f":"ZZZ__FnCalls!F39","v":"Sep 2012"},{"$f":"ZZZ__FnCalls!F40","v":"Oct 2012"},{"$f":"ZZZ__FnCalls!F41","v":"Nov 2012"},{"$f":"ZZZ__FnCalls!F42","v":"Dec 2012"},{"$f":"ZZZ__FnCalls!H31","v":"2012"},{"$f":"ZZZ__FnCalls!F43","v":"Jan 2013"},{"$f":"ZZZ__FnCalls!F44","v":"Feb 2013"},{"$f":"ZZZ__FnCalls!F45","v":"Mar 2013"},{"$f":"ZZZ__FnCalls!F46","v":"Apr 2013"},{"$f":"ZZZ__FnCalls!F47","v":"May 2013"},{"$f":"ZZZ__FnCalls!F48","v":"Jun 2013"},{"$f":"ZZZ__FnCalls!F49","v":"Jul 2013"},{"$f":"ZZZ__FnCalls!F50","v":"Aug 2013"},{"$f":"ZZZ__FnCalls!F51","v":"Sep 2013"},{"$f":"ZZZ__FnCalls!F52","v":"Oct 2013"},{"$f":"ZZZ__FnCalls!F53","v":"Nov 2013"},{"$f":"ZZZ__FnCalls!F54","v":"Dec 2013"},{"$f":"ZZZ__FnCalls!H43","v":"2013"},{"$f":"ZZZ__FnCalls!F55","v":"Jan 2014"},{"$f":"ZZZ__FnCalls!F56","v":"Feb 2014"},{"$f":"ZZZ__FnCalls!F57","v":"Mar 2014"},{"$f":"ZZZ__FnCalls!F58","v":"Apr 2014"},{"$f":"ZZZ__FnCalls!F59","v":"May 2014"},{"$f":"ZZZ__FnCalls!F60","v":"Jun 2014"},{"$f":"ZZZ__FnCalls!F61","v":"Jul 2014"},{"$f":"ZZZ__FnCalls!F62","v":"Aug 2014"},{"$f":"ZZZ__FnCalls!F63","v":"Sep 2014"},{"$f":"ZZZ__FnCalls!F64","v":"Oct 2014"},{"$f":"ZZZ__FnCalls!F65","v":"Nov 2014"},{"$f":"ZZZ__FnCalls!F66","v":"Dec 2014"},{"$f":"ZZZ__FnCalls!H55","v":"2014"},{"$f":"ZZZ__FnCalls!F67","v":"Jan 2015"},{"$f":"ZZZ__FnCalls!F68","v":"Feb 2015"},{"$f":"ZZZ__FnCalls!F69","v":"Mar 2015"},{"$f":"ZZZ__FnCalls!F70","v":"Apr 2015"},{"$f":"ZZZ__FnCalls!F71","v":"May 2015"},{"$f":"ZZZ__FnCalls!F72","v":"Jun 2015"},{"$f":"ZZZ__FnCalls!F73","v":"Jul 2015"},{"$f":"ZZZ__FnCalls!F74","v":"Aug 2015"},{"$f":"ZZZ__FnCalls!F75","v":"Sep 2015"},{"$f":"ZZZ__FnCalls!F76","v":"Oct 2015"},{"$f":"ZZZ__FnCalls!F77","v":"Nov 2015"},{"$f":"ZZZ__FnCalls!F78","v":"Dec 2015"},{"$f":"ZZZ__FnCalls!H67","v":"2015"},{"$f":"ZZZ__FnCalls!F79","v":"Jan 2016"},{"$f":"ZZZ__FnCalls!F80","v":"Feb 2016"},{"$f":"ZZZ__FnCalls!F81","v":"Mar 2016"},{"$f":"ZZZ__FnCalls!F82","v":"Apr 2016"},{"$f":"ZZZ__FnCalls!F83","v":"May 2016"},{"$f":"ZZZ__FnCalls!F84","v":"Jun 2016"},{"$f":"ZZZ__FnCalls!F85","v":"Jul 2016"},{"$f":"ZZZ__FnCalls!F86","v":"Aug 2016"},{"$f":"ZZZ__FnCalls!F87","v":"Sep 2016"},{"$f":"ZZZ__FnCalls!F88","v":"Oct 2016"},{"$f":"ZZZ__FnCalls!F89","v":"Nov 2016"},{"$f":"ZZZ__FnCalls!F90","v":"Dec 2016"},{"$f":"ZZZ__FnCalls!H79","v":"2016"},{"$f":"ZZZ__FnCalls!F91","v":"Jan 2017"},{"$f":"ZZZ__FnCalls!F92","v":"Feb 2017"},{"$f":"ZZZ__FnCalls!F93","v":"Mar 2017"},{"$f":"ZZZ__FnCalls!F94","v":"Apr 2017"},{"$f":"ZZZ__FnCalls!F95","v":"May 2017"},{"$f":"ZZZ__FnCalls!F96","v":"Jun 2017"},{"$f":"ZZZ__FnCalls!F97","v":"Jul 2017"},{"$f":"ZZZ__FnCalls!F98","v":"Aug 2017"},{"$f":"ZZZ__FnCalls!F99","v":"Sep 2017"},{"$f":"ZZZ__FnCalls!F100","v":"Oct 2017"},{"$f":"ZZZ__FnCalls!F101","v":"Nov 2017"},{"$f":"ZZZ__FnCalls!F102","v":"Dec 2017"},{"$f":"ZZZ__FnCalls!H91","v":"2017"},{"$f":"ZZZ__FnCalls!F103","v":"Jan 2018"},{"$f":"ZZZ__FnCalls!F104","v":"Feb 2018"},{"$f":"ZZZ__FnCalls!F105","v":"Mar 2018"},{"$f":"ZZZ__FnCalls!F106","v":"Apr 2018"},{"$f":"ZZZ__FnCalls!F107","v":"May 2018"},{"$f":"ZZZ__FnCalls!F108","v":"Jun 2018"},{"$f":"ZZZ__FnCalls!F109","v":"Jul 2018"},{"$f":"ZZZ__FnCalls!F110","v":"Aug 2018"},{"$f":"ZZZ__FnCalls!F111","v":"Sep 2018"},{"$f":"ZZZ__FnCalls!F112","v":"Oct 2018"},{"$f":"ZZZ__FnCalls!F113","v":"Nov 2018"},{"$f":"ZZZ__FnCalls!F114","v":"Dec 2018"},{"$f":"ZZZ__FnCalls!H103","v":"2018"},{"$f":"ZZZ__FnCalls!F115","v":"Jan 2019"},{"$f":"ZZZ__FnCalls!F116","v":"Feb 2019"},{"$f":"ZZZ__FnCalls!F117","v":"Mar 2019"},{"$f":"ZZZ__FnCalls!F118","v":"Apr 2019"},{"$f":"ZZZ__FnCalls!F119","v":"May 2019"},{"$f":"ZZZ__FnCalls!F120","v":"Jun 2019"},{"$f":"ZZZ__FnCalls!F121","v":"Jul 2019"},{"$f":"ZZZ__FnCalls!F122","v":"Aug 2019"},{"$f":"ZZZ__FnCalls!F123","v":"Sep 2019"},{"$f":"ZZZ__FnCalls!F124","v":"Oct 2019"},{"$f":"ZZZ__FnCalls!F125","v":"Nov 2019"},{"$f":"ZZZ__FnCalls!F126","v":"Dec 2019"},{"$f":"ZZZ__FnCalls!H115","v":"2019"},{"$f":"ZZZ__FnCalls!F127","v":"Jan 2020"},{"$f":"ZZZ__FnCalls!F128","v":"Feb 2020"},{"$f":"ZZZ__FnCalls!F129","v":"Mar 2020"},{"$f":"ZZZ__FnCalls!F130","v":"Apr 2020"},{"$f":"ZZZ__FnCalls!F131","v":"May 2020"},{"$f":"ZZZ__FnCalls!F132","v":"Jun 2020"},{"$f":"ZZZ__FnCalls!F133","v":"Jul 2020"},{"$f":"ZZZ__FnCalls!F134","v":"Aug 2020"},{"$f":"ZZZ__FnCalls!F135","v":"Sep 2020"},{"$f":"ZZZ__FnCalls!F136","v":"Oct 2020"},{"$f":"ZZZ__FnCalls!F137","v":"Nov 2020"},{"$f":"ZZZ__FnCalls!F138","v":"Dec 2020"},{"$f":"ZZZ__FnCalls!H127","v":"2020"}]
[{"$f":"Labels!B38","v":"Employment"},{"$f":"Inputs!B27+'(Other Computations)'!B61*0/Inputs!B28/12","v":{"v":140,"d":"140.00"}},{"$f":"B28+'(Other Computations)'!B61*(B29-B28)/Inputs!B28/12","v":{"v":140,"d":"140.00"}},{"$f":"C28+'(Other Computations)'!B61*(C29-C28)/Inputs!B28/12","v":{"v":139.9937627669577,"d":"139.99"}},{"$f":"D28+'(Other Computations)'!B61*(D29-D28)/Inputs!B28/12","v":{"v":139.98063501645186,"d":"139.98"}},{"$f":"E28+'(Other Computations)'!B61*(E29-E28)/Inputs!B28/12","v":{"v":139.96225977692632,"d":"139.96"}},{"$f":"F28+'(Other Computations)'!B61*(F29-F28)/Inputs!B28/12","v":{"v":139.940316142184,"d":"139.94"}},{"$f":"G28+'(Other Computations)'!B61*(G29-G28)/Inputs!B28/12","v":{"v":139.91363657371627,"d":"139.91"}},{"$f":"H28+'(Other Computations)'!B61*(H29-H28)/Inputs!B28/12","v":{"v":139.8813418510648,"d":"139.88"}},{"$f":"I28+'(Other Computations)'!B61*(I29-I28)/Inputs!B28/12","v":{"v":139.84413426340032,"d":"139.84"}},{"$f":"J28+'(Other Computations)'!B61*(J29-J28)/Inputs!B28/12","v":{"v":139.8010987551532,"d":"139.80"}},{"$f":"K28+'(Other Computations)'!B61*(K29-K28)/Inputs!B28/12","v":{"v":139.75388594545092,"d":"139.75"}},{"$f":"L28+'(Other Computations)'!B61*(L29-L28)/Inputs!B28/12","v":{"v":139.70237716727337,"d":"139.70"}},{"$f":"M28","v":{"v":139.70237716727337,"d":"139.70"}},{"$f":"M28+'(Other Computations)'!B61*(M29-M28)/Inputs!B28/12","v":{"v":139.64548608481238,"d":"139.65"}},{"$f":"O28+'(Other Computations)'!B61*(O29-O28)/Inputs!B28/12","v":{"v":139.5853206871825,"d":"139.59"}},{"$f":"P28+'(Other Computations)'!B61*(P29-P28)/Inputs!B28/12","v":{"v":139.52053181626505,"d":"139.52"}},{"$f":"Q28+'(Other Computations)'!B61*(Q29-Q28)/Inputs!B28/12","v":{"v":139.45266850617813,"d":"139.45"}},{"$f":"R28+'(Other Computations)'!B61*(R29-R28)/Inputs!B28/12","v":{"v":139.3819438548932,"d":"139.38"}},{"$f":"S28+'(Other Computations)'!B61*(S29-S28)/Inputs!B28/12","v":{"v":139.30727377126723,"d":"139.31"}},{"$f":"T28+'(Other Computations)'!B61*(T29-T28)/Inputs!B28/12","v":{"v":139.22880905700717,"d":"139.23"}},{"$f":"U28+'(Other Computations)'!B61*(U29-U28)/Inputs!B28/12","v":{"v":139.14666580178917,"d":"139.15"}},{"$f":"V28+'(Other Computations)'!B61*(V29-V28)/Inputs!B28/12","v":{"v":139.06004444965953,"d":"139.06"}},{"$f":"W28+'(Other Computations)'!B61*(W29-W28)/Inputs!B28/12","v":{"v":138.96946306304034,"d":"138.97"}},{"$f":"X28+'(Other Computations)'!B61*(X29-X28)/Inputs!B28/12","v":{"v":138.87530753435422,"d":"138.88"}},{"$f":"Y28+'(Other Computations)'!B61*(Y29-Y28)/Inputs!B28/12","v":{"v":138.77749808713588,"d":"138.78"}},{"$f":"Z28","v":{"v":138.77749808713588,"d":"138.78"}},{"$f":"Z28+'(Other Computations)'!B61*(Z29-Z28)/Inputs!B28/12","v":{"v":138.6750853953509,"d":"138.68"}},{"$f":"AB28+'(Other Computations)'!B61*(AB29-AB28)/Inputs!B28/12","v":{"v":138.570460285698,"d":"138.57"}},{"$f":"AC28+'(Other Computations)'!B61*(AC29-AC28)/Inputs!B28/12","v":{"v":138.46320083502644,"d":"138.46"}},{"$f":"AD28+'(Other Computations)'!B61*(AD29-AD28)/Inputs!B28/12","v":{"v":138.3534878095759,"d":"138.35"}},{"$f":"AE28+'(Other Computations)'!B61*(AE29-AE28)/Inputs!B28/12","v":{"v":138.24132904840857,"d":"138.24"}},{"$f":"AF28+'(Other Computations)'!B61*(AF29-AF28)/Inputs!B28/12","v":{"v":138.1285359494501,"d":"138.13"}},{"$f":"AG28+'(Other Computations)'!B61*(AG29-AG28)/Inputs!B28/12","v":{"v":138.01342828618004,"d":"138.01"}},{"$f":"AH28+'(Other Computations)'!B61*(AH29-AH28)/Inputs!B28/12","v":{"v":137.89566890747508,"d":"137.90"}},{"$f":"AI28+'(Other Computations)'!B61*(AI29-AI28)/Inputs!B28/12","v":{"v":137.77625657929502,"d":"137.78"}},{"$f":"AJ28+'(Other Computations)'!B61*(AJ29-AJ28)/Inputs!B28/12","v":{"v":137.65341370765165,"d":"137.65"}},{"$f":"AK28+'(Other Computations)'!B61*(AK29-AK28)/Inputs!B28/12","v":{"v":137.52871632170636,"d":"137.53"}},{"$f":"AL28+'(Other Computations)'!B61*(AL29-AL28)/Inputs!B28/12","v":{"v":137.40280212396948,"d":"137.40"}},{"$f":"AM28","v":{"v":137.40280212396948,"d":"137.40"}},{"$f":"AM28+'(Other Computations)'!B61*(AM29-AM28)/Inputs!B28/12","v":{"v":137.27644061947584,"d":"137.28"}},{"$f":"AO28+'(Other Computations)'!B61*(AO29-AO28)/Inputs!B28/12","v":{"v":137.14776522421457,"d":"137.15"}},{"$f":"AP28+'(Other Computations)'!B61*(AP29-AP28)/Inputs!B28/12","v":{"v":137.01719573361544,"d":"137.02"}},{"$f":"AQ28+'(Other Computations)'!B61*(AQ29-AQ28)/Inputs!B28/12","v":{"v":136.88550364768605,"d":"136.89"}},{"$f":"AR28+'(Other Computations)'!B61*(AR29-AR28)/Inputs!B28/12","v":{"v":136.75266847859527,"d":"136.75"}},{"$f":"AS28+'(Other Computations)'!B61*(AS29-AS28)/Inputs!B28/12","v":{"v":136.61783967484902,"d":"136.62"}},{"$f":"AT28+'(Other Computations)'!B61*(AT29-AT28)/Inputs!B28/12","v":{"v":136.48201719300081,"d":"136.48"}},{"$f":"AU28+'(Other Computations)'!B61*(AU29-AU28)/Inputs!B28/12","v":{"v":136.34522702331506,"d":"136.35"}},{"$f":"AV28+'(Other Computations)'!B61*(AV29-AV28)/Inputs!B28/12","v":{"v":136.2072676423814,"d":"136.21"}},{"$f":"AW28+'(Other Computations)'!B61*(AW29-AW28)/Inputs!B28/12","v":{"v":136.06830149906494,"d":"136.07"}},{"$f":"AX28+'(Other Computations)'!B61*(AX29-AX28)/Inputs!B28/12","v":{"v":135.9264857465326,"d":"135.93"}},{"$f":"AY28+'(Other Computations)'!B61*(AY29-AY28)/Inputs!B28/12","v":{"v":135.78326165392113,"d":"135.78"}},{"$f":"AZ28","v":{"v":135.78326165392113,"d":"135.78"}},{"$f":"AZ28+'(Other Computations)'!B61*(AZ29-AZ28)/Inputs!B28/12","v":{"v":135.6400644393424,"d":"135.64"}},{"$f":"BB28+'(Other Computations)'!B61*(BB29-BB28)/Inputs!B28/12","v":{"v":135.49563036936502,"d":"135.50"}},{"$f":"BC28+'(Other Computations)'!B61*(BC29-BC28)/Inputs!B28/12","v":{"v":135.34953524043357,"d":"135.35"}},{"$f":"BD28+'(Other Computations)'!B61*(BD29-BD28)/Inputs!B28/12","v":{"v":135.20262187396105,"d":"135.20"}},{"$f":"BE28+'(Other Computations)'!B61*(BE29-BE28)/Inputs!B28/12","v":{"v":135.05596054747616,"d":"135.06"}},{"$f":"BF28+'(Other Computations)'!B61*(BF29-BF28)/Inputs!B28/12","v":{"v":134.90830798341537,"d":"134.91"}},{"$f":"BG28+'(Other Computations)'!B61*(BG29-BG28)/Inputs!B28/12","v":{"v":134.76068916115858,"d":"134.76"}},{"$f":"BH28+'(Other Computations)'!B61*(BH29-BH28)/Inputs!B28/12","v":{"v":134.61133418333938,"d":"134.61"}},{"$f":"BI28+'(Other Computations)'!B61*(BI29-BI28)/Inputs!B28/12","v":{"v":134.46065948596166,"d":"134.46"}},{"$f":"BJ28+'(Other Computations)'!B61*(BJ29-BJ28)/Inputs!B28/12","v":{"v":134.3079348062348,"d":"134.31"}},{"$f":"BK28+'(Other Computations)'!B61*(BK29-BK28)/Inputs!B28/12","v":{"v":134.1554281738485,"d":"134.16"}},{"$f":"BL28+'(Other Computations)'!B61*(BL29-BL28)/Inputs!B28/12","v":{"v":134.001937709982,"d":"134.00"}},{"$f":"BM28","v":{"v":134.001937709982,"d":"134.00"}},{"$f":"BM28+'(Other Computations)'!B61*(BM29-BM28)/Inputs!B28/12","v":{"v":133.84818426235458,"d":"133.85"}},{"$f":"BO28+'(Other Computations)'!B61*(BO29-BO28)/Inputs!B28/12","v":{"v":133.69244565196524,"d":"133.69"}},{"$f":"BP28+'(Other Computations)'!B61*(BP29-BP28)/Inputs!B28/12","v":{"v":133.5345912333298,"d":"133.53"}},{"$f":"BQ28+'(Other Computations)'!B61*(BQ29-BQ28)/Inputs!B28/12","v":{"v":133.37538360597645,"d":"133.38"}},{"$f":"BR28+'(Other Computations)'!B61*(BR29-BR28)/Inputs!B28/12","v":{"v":133.21647164627578,"d":"133.22"}},{"$f":"BS28+'(Other Computations)'!B61*(BS29-BS28)/Inputs!B28/12","v":{"v":133.0583521038847,"d":"133.06"}},{"$f":"BT28+'(Other Computations)'!B61*(BT29-BT28)/Inputs!B28/12","v":{"v":132.89862624621904,"d":"132.90"}},{"$f":"BU28+'(Other Computations)'!B61*(BU29-BU28)/Inputs!B28/12","v":{"v":132.7400726016235,"d":"132.74"}},{"$f":"BV28+'(Other Computations)'!B61*(BV29-BV28)/Inputs!B28/12","v":{"v":132.5806776945948,"d":"132.58"}},{"$f":"BW28+'(Other Computations)'!B61*(BW29-BW28)/Inputs!B28/12","v":{"v":132.42173165275653,"d":"132.42"}},{"$f":"BX28+'(Other Computations)'!B61*(BX29-BX28)/Inputs!B28/12","v":{"v":132.26277697765423,"d":"132.26"}},{"$f":"BY28+'(Other Computations)'!B61*(BY29-BY28)/Inputs!B28/12","v":{"v":132.102172174236,"d":"132.10"}},{"$f":"BZ28","v":{"v":132.102172174236,"d":"132.10"}},{"$f":"BZ28+'(Other Computations)'!B61*(BZ29-BZ28)/Inputs!B28/12","v":{"v":131.9432028743447,"d":"131.94"}},{"$f":"CB28+'(Other Computations)'!B61*(CB29-CB28)/Inputs!B28/12","v":{"v":131.78444354493269,"d":"131.78"}},{"$f":"CC28+'(Other Computations)'!B61*(CC29-CC28)/Inputs!B28/12","v":{"v":131.62631013219598,"d":"131.63"}},{"$f":"CD28+'(Other Computations)'!B61*(CD29-CD28)/Inputs!B28/12","v":{"v":131.46751072822917,"d":"131.47"}},{"$f":"CE28+'(Other Computations)'!B61*(CE29-CE28)/Inputs!B28/12","v":{"v":131.30855678708159,"d":"131.31"}},{"$f":"CF28+'(Other Computations)'!B61*(CF29-CF28)/Inputs!B28/12","v":{"v":131.15070106822424,"d":"131.15"}},{"$f":"CG28+'(Other Computations)'!B61*(CG29-CG28)/Inputs!B28/12","v":{"v":130.99335566806093,"d":"130.99"}},{"$f":"CH28+'(Other Computations)'!B61*(CH29-CH28)/Inputs!B28/12","v":{"v":130.83696647719538,"d":"130.84"}},{"$f":"CI28+'(Other Computations)'!B61*(CI29-CI28)/Inputs!B28/12","v":{"v":130.68069466840402,"d":"130.68"}},{"$f":"CJ28+'(Other Computations)'!B61*(CJ29-CJ28)/Inputs!B28/12","v":{"v":130.52565115869308,"d":"130.53"}},{"$f":"CK28+'(Other Computations)'!B61*(CK29-CK28)/Inputs!B28/12","v":{"v":130.36957863668667,"d":"130.37"}},{"$f":"CL28+'(Other Computations)'!B61*(CL29-CL28)/Inputs!B28/12","v":{"v":130.21350249665957,"d":"130.21"}},{"$f":"CM28","v":{"v":130.21350249665957,"d":"130.21"}},{"$f":"CM28+'(Other Computations)'!B61*(CM29-CM28)/Inputs!B28/12","v":{"v":130.05619554611394,"d":"130.06"}},{"$f":"CO28+'(Other Computations)'!B61*(CO29-CO28)/Inputs!B28/12","v":{"v":129.8989033503526,"d":"129.90"}},{"$f":"CP28+'(Other Computations)'!B61*(CP29-CP28)/Inputs!B28/12","v":{"v":129.74120794114617,"d":"129.74"}},{"$f":"CQ28+'(Other Computations)'!B61*(CQ29-CQ28)/Inputs!B28/12","v":{"v":129.58379843676735,"d":"129.58"}},{"$f":"CR28+'(Other Computations)'!B61*(CR29-CR28)/Inputs!B28/12","v":{"v":129.42707721571173,"d":"129.43"}},{"$f":"CS28+'(Other Computations)'!B61*(CS29-CS28)/Inputs!B28/12","v":{"v":129.27025595865024,"d":"129.27"}},{"$f":"CT28+'(Other Computations)'!B61*(CT29-CT28)/Inputs!B28/12","v":{"v":129.1143103035843,"d":"129.11"}},{"$f":"CU28+'(Other Computations)'!B61*(CU29-CU28)/Inputs!B28/12","v":{"v":128.9577090295062,"d":"128.96"}},{"$f":"CV28+'(Other Computations)'!B61*(CV29-CV28)/Inputs!B28/12","v":{"v":128.80253877344174,"d":"128.80"}},{"$f":"CW28+'(Other Computations)'!B61*(CW29-CW28)/Inputs!B28/12","v":{"v":128.64749293259362,"d":"128.65"}},{"$f":"CX28+'(Other Computations)'!B61*(CX29-CX28)/Inputs!B28/12","v":{"v":128.49387099264138,"d":"128.49"}},{"$f":"CY28+'(Other Computations)'!B61*(CY29-CY28)/Inputs!B28/12","v":{"v":128.3388861916923,"d":"128.34"}},{"$f":"CZ28","v":{"v":128.3388861916923,"d":"128.34"}},{"$f":"CZ28+'(Other Computations)'!B61*(CZ29-CZ28)/Inputs!B28/12","v":{"v":128.18516591189115,"d":"128.19"}},{"$f":"DB28+'(Other Computations)'!B61*(DB29-DB28)/Inputs!B28/12","v":{"v":128.0315924127531,"d":"128.03"}},{"$f":"DC28+'(Other Computations)'!B61*(DC29-DC28)/Inputs!B28/12","v":{"v":127.87809133881397,"d":"127.88"}},{"$f":"DD28+'(Other Computations)'!B61*(DD29-DD28)/Inputs!B28/12","v":{"v":127.72554966492807,"d":"127.73"}},{"$f":"DE28+'(Other Computations)'!B61*(DE29-DE28)/Inputs!B28/12","v":{"v":127.57303004997713,"d":"127.57"}},{"$f":"DF28+'(Other Computations)'!B61*(DF29-DF28)/Inputs!B28/12","v":{"v":127.42155199593147,"d":"127.42"}},{"$f":"DG28+'(Other Computations)'!B61*(DG29-DG28)/Inputs!B28/12","v":{"v":127.27140909025889,"d":"127.27"}},{"$f":"DH28+'(Other Computations)'!B61*(DH29-DH28)/Inputs!B28/12","v":{"v":127.12168107289804,"d":"127.12"}},{"$f":"DI28+'(Other Computations)'!B61*(DI29-DI28)/Inputs!B28/12","v":{"v":126.97254716754135,"d":"126.97"}},{"$f":"DJ28+'(Other Computations)'!B61*(DJ29-DJ28)/Inputs!B28/12","v":{"v":126.82413694423309,"d":"126.82"}},{"$f":"DK28+'(Other Computations)'!B61*(DK29-DK28)/Inputs!B28/12","v":{"v":126.6775106724611,"d":"126.68"}},{"$f":"DL28+'(Other Computations)'!B61*(DL29-DL28)/Inputs!B28/12","v":{"v":126.53039647166352,"d":"126.53"}},{"$f":"DM28","v":{"v":126.53039647166352,"d":"126.53"}},{"$f":"DM28+'(Other Computations)'!B61*(DM29-DM28)/Inputs!B28/12","v":{"v":126.38206945187534,"d":"126.38"}},{"$f":"DO28+'(Other Computations)'!B61*(DO29-DO28)/Inputs!B28/12","v":{"v":126.23319213741325,"d":"126.23"}},{"$f":"DP28+'(Other Computations)'!B61*(DP29-DP28)/Inputs!B28/12","v":{"v":126.08575582101508,"d":"126.09"}},{"$f":"DQ28+'(Other Computations)'!B61*(DQ29-DQ28)/Inputs!B28/12","v":{"v":125.93753105602688,"d":"125.94"}},{"$f":"DR28+'(Other Computations)'!B61*(DR29-DR28)/Inputs!B28/12","v":{"v":125.79000427388307,"d":"125.79"}},{"$f":"DS28+'(Other Computations)'!B61*(DS29-DS28)/Inputs!B28/12","v":{"v":125.64278490313966,"d":"125.64"}},{"$f":"DT28+'(Other Computations)'!B61*(DT29-DT28)/Inputs!B28/12","v":{"v":125.49535245154323,"d":"125.50"}},{"$f":"DU28+'(Other Computations)'!B61*(DU29-DU28)/Inputs!B28/12","v":{"v":125.34883311853885,"d":"125.35"}},{"$f":"DV28+'(Other Computations)'!B61*(DV29-DV28)/Inputs!B28/12","v":{"v":125.20369467442335,"d":"125.20"}},{"$f":"DW28+'(Other Computations)'!B61*(DW29-DW28)/Inputs!B28/12","v":{"v":125.05976408035971,"d":"125.06"}},{"$f":"DX28+'(Other Computations)'!B61*(DX29-DX28)/Inputs!B28/12","v":{"v":124.91537498831255,"d":"124.92"}},{"$f":"DY28+'(Other Computations)'!B61*(DY29-DY28)/Inputs!B28/12","v":{"v":124.77236375242286,"d":"124.77"}},{"$f":"DZ28","v":{"v":124.77236375242286,"d":"124.77"}},{"$f":"DZ28+'(Other Computations)'!B61*(DZ29-DZ28)/Inputs!B28/12","v":{"v":124.62990531322663,"d":"124.63"}},{"$f":"EB28+'(Other Computations)'!B61*(EB29-EB28)/Inputs!B28/12","v":{"v":124.48697464012642,"d":"124.49"}},{"$f":"EC28+'(Other Computations)'!B61*(EC29-EC28)/Inputs!B28/12","v":{"v":124.3455922379133,"d":"124.35"}},{"$f":"ED28+'(Other Computations)'!B61*(ED29-ED28)/Inputs!B28/12","v":{"v":124.20531625995018,"d":"124.21"}},{"$f":"EE28+'(Other Computations)'!B61*(EE29-EE28)/Inputs!B28/12","v":{"v":124.06411111931523,"d":"124.06"}},{"$f":"EF28+'(Other Computations)'!B61*(EF29-EF28)/Inputs!B28/12","v":{"v":123.92346228192635,"d":"123.92"}},{"$f":"EG28+'(Other Computations)'!B61*(EG29-EG28)/Inputs!B28/12","v":{"v":123.78486735997394,"d":"123.78"}},{"$f":"EH28+'(Other Computations)'!B61*(EH29-EH28)/Inputs!B28/12","v":{"v":123.64592541054978,"d":"123.65"}},{"$f":"EI28+'(Other Computations)'!B61*(EI29-EI28)/Inputs!B28/12","v":{"v":123.50696041946566,"d":"123.51"}},{"$f":"EJ28+'(Other Computations)'!B61*(EJ29-EJ28)/Inputs!B28/12","v":{"v":123.36768602768204,"d":"123.37"}},{"$f":"EK28+'(Other Computations)'!B61*(EK29-EK28)/Inputs!B28/12","v":{"v":123.22951205903959,"d":"123.23"}},{"$f":"EL28+'(Other Computations)'!B61*(EL29-EL28)/Inputs!B28/12","v":{"v":123.09155854756004,"d":"123.09"}},{"$f":"EM28","v":{"v":123.09155854756004,"d":"123.09"}}]
[{"$f":"Labels!B39","v":"Desired Employment"},{"$f":"(1-Inputs!B20)*B11/'(Other Computations)'!B130","v":{"v":140,"d":"140.00"}},{"$f":"(1-Inputs!B20)*C11/'(Other Computations)'!B130","v":{"v":139.64073537676285,"d":"139.64"}},{"$f":"(1-Inputs!B20)*D11/'(Other Computations)'!B130","v":{"v":139.23760433782167,"d":"139.24"}},{"$f":"(1-Inputs!B20)*E11/'(Other Computations)'!B130","v":{"v":138.92222121978028,"d":"138.92"}},{"$f":"(1-Inputs!B20)*F11/'(Other Computations)'!B130","v":{"v":138.6983064157684,"d":"138.70"}},{"$f":"(1-Inputs!B20)*G11/'(Other Computations)'!B130","v":{"v":138.4035729984432,"d":"138.40"}},{"$f":"(1-Inputs!B20)*H11/'(Other Computations)'!B130","v":{"v":138.05346054899093,"d":"138.05"}},{"$f":"(1-Inputs!B20)*I11/'(Other Computations)'!B130","v":{"v":137.73818480159107,"d":"137.74"}},{"$f":"(1-Inputs!B20)*J11/'(Other Computations)'!B130","v":{"v":137.3652889883652,"d":"137.37"}},{"$f":"(1-Inputs!B20)*K11/'(Other Computations)'!B130","v":{"v":137.0816409163015,"d":"137.08"}},{"$f":"(1-Inputs!B20)*L11/'(Other Computations)'!B130","v":{"v":136.78698032242465,"d":"136.79"}},{"$f":"(1-Inputs!B20)*M11/'(Other Computations)'!B130","v":{"v":136.42545081752093,"d":"136.43"}},{"$f":"SUM(B29:M29)","v":{"v":1658.3534467437705,"d":"1,658.35"}},{"$f":"(1-Inputs!B20)*O11/'(Other Computations)'!B130","v":{"v":136.17995918133096,"d":"136.18"}},{"$f":"(1-Inputs!B20)*P11/'(Other Computations)'!B130","v":{"v":135.8534817223364,"d":"135.85"}},{"$f":"(1-Inputs!B20)*Q11/'(Other Computations)'!B130","v":{"v":135.6116051552589,"d":"135.61"}},{"$f":"(1-Inputs!B20)*R11/'(Other Computations)'!B130","v":{"v":135.3789285921652,"d":"135.38"}},{"$f":"(1-Inputs!B20)*S11/'(Other Computations)'!B130","v":{"v":135.08094703803806,"d":"135.08"}},{"$f":"(1-Inputs!B20)*T11/'(Other Computations)'!B130","v":{"v":134.78770622988702,"d":"134.79"}},{"$f":"(1-Inputs!B20)*U11/'(Other Computations)'!B130","v":{"v":134.49735755645108,"d":"134.50"}},{"$f":"(1-Inputs!B20)*V11/'(Other Computations)'!B130","v":{"v":134.15727591912207,"d":"134.16"}},{"$f":"(1-Inputs!B20)*W11/'(Other Computations)'!B130","v":{"v":133.84255658039373,"d":"133.84"}},{"$f":"(1-Inputs!B20)*X11/'(Other Computations)'!B130","v":{"v":133.5461046107203,"d":"133.55"}},{"$f":"(1-Inputs!B20)*Y11/'(Other Computations)'!B130","v":{"v":133.24148337457845,"d":"133.24"}},{"$f":"(1-Inputs!B20)*Z11/'(Other Computations)'!B130","v":{"v":132.8785270403207,"d":"132.88"}},{"$f":"SUM(O29:Z29)","v":{"v":1615.0559330006029,"d":"1,615.06"}},{"$f":"(1-Inputs!B20)*AB11/'(Other Computations)'!B130","v":{"v":132.64867907934527,"d":"132.65"}},{"$f":"(1-Inputs!B20)*AC11/'(Other Computations)'!B130","v":{"v":132.39231592701555,"d":"132.39"}},{"$f":"(1-Inputs!B20)*AD11/'(Other Computations)'!B130","v":{"v":132.1437305690753,"d":"132.14"}},{"$f":"(1-Inputs!B20)*AE11/'(Other Computations)'!B130","v":{"v":131.8931431663375,"d":"131.89"}},{"$f":"(1-Inputs!B20)*AF11/'(Other Computations)'!B130","v":{"v":131.74444654840102,"d":"131.74"}},{"$f":"(1-Inputs!B20)*AG11/'(Other Computations)'!B130","v":{"v":131.4983345450936,"d":"131.50"}},{"$f":"(1-Inputs!B20)*AH11/'(Other Computations)'!B130","v":{"v":131.23048807277374,"d":"131.23"}},{"$f":"(1-Inputs!B20)*AI11/'(Other Computations)'!B130","v":{"v":131.01751880430342,"d":"131.02"}},{"$f":"(1-Inputs!B20)*AJ11/'(Other Computations)'!B130","v":{"v":130.70050717263618,"d":"130.70"}},{"$f":"(1-Inputs!B20)*AK11/'(Other Computations)'!B130","v":{"v":130.47084427720253,"d":"130.47"}},{"$f":"(1-Inputs!B20)*AL11/'(Other Computations)'!B130","v":{"v":130.27605853206177,"d":"130.28"}},{"$f":"(1-Inputs!B20)*AM11/'(Other Computations)'!B130","v":{"v":130.12437946513555,"d":"130.12"}},{"$f":"SUM(AB29:AM29)","v":{"v":1576.1404461593813,"d":"1,576.14"}},{"$f":"(1-Inputs!B20)*AO11/'(Other Computations)'!B130","v":{"v":129.864737852427,"d":"129.86"}},{"$f":"(1-Inputs!B20)*AP11/'(Other Computations)'!B130","v":{"v":129.6269625657047,"d":"129.63"}},{"$f":"(1-Inputs!B20)*AQ11/'(Other Computations)'!B130","v":{"v":129.43173158408257,"d":"129.43"}},{"$f":"(1-Inputs!B20)*AR11/'(Other Computations)'!B130","v":{"v":129.2341979080572,"d":"129.23"}},{"$f":"(1-Inputs!B20)*AS11/'(Other Computations)'!B130","v":{"v":128.98652938281163,"d":"128.99"}},{"$f":"(1-Inputs!B20)*AT11/'(Other Computations)'!B130","v":{"v":128.7944647203926,"d":"128.79"}},{"$f":"(1-Inputs!B20)*AU11/'(Other Computations)'!B130","v":{"v":128.60290341910223,"d":"128.60"}},{"$f":"(1-Inputs!B20)*AV11/'(Other Computations)'!B130","v":{"v":128.39876668153642,"d":"128.40"}},{"$f":"(1-Inputs!B20)*AW11/'(Other Computations)'!B130","v":{"v":128.20281778735344,"d":"128.20"}},{"$f":"(1-Inputs!B20)*AX11/'(Other Computations)'!B130","v":{"v":127.89971415320227,"d":"127.90"}},{"$f":"(1-Inputs!B20)*AY11/'(Other Computations)'!B130","v":{"v":127.67677801211318,"d":"127.68"}},{"$f":"(1-Inputs!B20)*AZ11/'(Other Computations)'!B130","v":{"v":127.53510209418643,"d":"127.54"}},{"$f":"SUM(AO29:AZ29)","v":{"v":1544.2547061609696,"d":"1,544.25"}},{"$f":"(1-Inputs!B20)*BB11/'(Other Computations)'!B130","v":{"v":127.32066200864503,"d":"127.32"}},{"$f":"(1-Inputs!B20)*BC11/'(Other Computations)'!B130","v":{"v":127.08055094291348,"d":"127.08"}},{"$f":"(1-Inputs!B20)*BD11/'(Other Computations)'!B130","v":{"v":126.88732533161722,"d":"126.89"}},{"$f":"(1-Inputs!B20)*BE11/'(Other Computations)'!B130","v":{"v":126.75492946843222,"d":"126.75"}},{"$f":"(1-Inputs!B20)*BF11/'(Other Computations)'!B130","v":{"v":126.55117285757387,"d":"126.55"}},{"$f":"(1-Inputs!B20)*BG11/'(Other Computations)'!B130","v":{"v":126.40546382142367,"d":"126.41"}},{"$f":"(1-Inputs!B20)*BH11/'(Other Computations)'!B130","v":{"v":126.1578424387723,"d":"126.16"}},{"$f":"(1-Inputs!B20)*BI11/'(Other Computations)'!B130","v":{"v":125.9324716143822,"d":"125.93"}},{"$f":"(1-Inputs!B20)*BJ11/'(Other Computations)'!B130","v":{"v":125.66371793369477,"d":"125.66"}},{"$f":"(1-Inputs!B20)*BK11/'(Other Computations)'!B130","v":{"v":125.52355278078241,"d":"125.52"}},{"$f":"(1-Inputs!B20)*BL11/'(Other Computations)'!B130","v":{"v":125.31437745513833,"d":"125.31"}},{"$f":"(1-Inputs!B20)*BM11/'(Other Computations)'!B130","v":{"v":125.14573912664201,"d":"125.15"}},{"$f":"SUM(BB29:BM29)","v":{"v":1514.7378057800174,"d":"1,514.74"}},{"$f":"(1-Inputs!B20)*BO11/'(Other Computations)'!B130","v":{"v":124.87764030392843,"d":"124.88"}},{"$f":"(1-Inputs!B20)*BP11/'(Other Computations)'!B130","v":{"v":124.60003113856322,"d":"124.60"}},{"$f":"(1-Inputs!B20)*BQ11/'(Other Computations)'!B130","v":{"v":124.36423189777771,"d":"124.36"}},{"$f":"(1-Inputs!B20)*BR11/'(Other Computations)'!B130","v":{"v":124.22205472721767,"d":"124.22"}},{"$f":"(1-Inputs!B20)*BS11/'(Other Computations)'!B130","v":{"v":124.10878600454893,"d":"124.11"}},{"$f":"(1-Inputs!B20)*BT11/'(Other Computations)'!B130","v":{"v":123.85814270234314,"d":"123.86"}},{"$f":"(1-Inputs!B20)*BU11/'(Other Computations)'!B130","v":{"v":123.76593631751642,"d":"123.77"}},{"$f":"(1-Inputs!B20)*BV11/'(Other Computations)'!B130","v":{"v":123.55892595677072,"d":"123.56"}},{"$f":"(1-Inputs!B20)*BW11/'(Other Computations)'!B130","v":{"v":123.42538568471048,"d":"123.43"}},{"$f":"(1-Inputs!B20)*BX11/'(Other Computations)'!B130","v":{"v":123.26594236686323,"d":"123.27"}},{"$f":"(1-Inputs!B20)*BY11/'(Other Computations)'!B130","v":{"v":123.01194030076306,"d":"123.01"}},{"$f":"(1-Inputs!B20)*BZ11/'(Other Computations)'!B130","v":{"v":122.94554050049736,"d":"122.95"}},{"$f":"SUM(BO29:BZ29)","v":{"v":1486.0045579015004,"d":"1,486.00"}},{"$f":"(1-Inputs!B20)*CB11/'(Other Computations)'!B130","v":{"v":122.798665500213,"d":"122.80"}},{"$f":"(1-Inputs!B20)*CC11/'(Other Computations)'!B130","v":{"v":122.67595897129925,"d":"122.68"}},{"$f":"(1-Inputs!B20)*CD11/'(Other Computations)'!B130","v":{"v":122.47946446370766,"d":"122.48"}},{"$f":"(1-Inputs!B20)*CE11/'(Other Computations)'!B130","v":{"v":122.31176371812738,"d":"122.31"}},{"$f":"(1-Inputs!B20)*CF11/'(Other Computations)'!B130","v":{"v":122.21606738089805,"d":"122.22"}},{"$f":"(1-Inputs!B20)*CG11/'(Other Computations)'!B130","v":{"v":122.0876060188179,"d":"122.09"}},{"$f":"(1-Inputs!B20)*CH11/'(Other Computations)'!B130","v":{"v":121.98533827420447,"d":"121.99"}},{"$f":"(1-Inputs!B20)*CI11/'(Other Computations)'!B130","v":{"v":121.83571029081318,"d":"121.84"}},{"$f":"(1-Inputs!B20)*CJ11/'(Other Computations)'!B130","v":{"v":121.75018850905408,"d":"121.75"}},{"$f":"(1-Inputs!B20)*CK11/'(Other Computations)'!B130","v":{"v":121.53587389112302,"d":"121.54"}},{"$f":"(1-Inputs!B20)*CL11/'(Other Computations)'!B130","v":{"v":121.3795929711259,"d":"121.38"}},{"$f":"(1-Inputs!B20)*CM11/'(Other Computations)'!B130","v":{"v":121.15262214523092,"d":"121.15"}},{"$f":"SUM(CB29:CM29)","v":{"v":1464.2088521346147,"d":"1,464.21"}},{"$f":"(1-Inputs!B20)*CO11/'(Other Computations)'!B130","v":{"v":120.9961650702611,"d":"121.00"}},{"$f":"(1-Inputs!B20)*CP11/'(Other Computations)'!B130","v":{"v":120.81564778006182,"d":"120.82"}},{"$f":"(1-Inputs!B20)*CQ11/'(Other Computations)'!B130","v":{"v":120.67442048892666,"d":"120.67"}},{"$f":"(1-Inputs!B20)*CR11/'(Other Computations)'!B130","v":{"v":120.55665610396322,"d":"120.56"}},{"$f":"(1-Inputs!B20)*CS11/'(Other Computations)'!B130","v":{"v":120.39417280896926,"d":"120.39"}},{"$f":"(1-Inputs!B20)*CT11/'(Other Computations)'!B130","v":{"v":120.28778622685216,"d":"120.29"}},{"$f":"(1-Inputs!B20)*CU11/'(Other Computations)'!B130","v":{"v":120.0940769166856,"d":"120.09"}},{"$f":"(1-Inputs!B20)*CV11/'(Other Computations)'!B130","v":{"v":120.0199022801942,"d":"120.02"}},{"$f":"(1-Inputs!B20)*CW11/'(Other Computations)'!B130","v":{"v":119.87189834059082,"d":"119.87"}},{"$f":"(1-Inputs!B20)*CX11/'(Other Computations)'!B130","v":{"v":119.79886919134496,"d":"119.80"}},{"$f":"(1-Inputs!B20)*CY11/'(Other Computations)'!B130","v":{"v":119.56674645797368,"d":"119.57"}},{"$f":"(1-Inputs!B20)*CZ11/'(Other Computations)'!B130","v":{"v":119.48459807514661,"d":"119.48"}},{"$f":"SUM(CO29:CZ29)","v":{"v":1442.56093974097,"d":"1,442.56"}},{"$f":"(1-Inputs!B20)*DB11/'(Other Computations)'!B130","v":{"v":119.33933236154004,"d":"119.34"}},{"$f":"(1-Inputs!B20)*DC11/'(Other Computations)'!B130","v":{"v":119.18993055385934,"d":"119.19"}},{"$f":"(1-Inputs!B20)*DD11/'(Other Computations)'!B130","v":{"v":119.09169092298575,"d":"119.09"}},{"$f":"(1-Inputs!B20)*DE11/'(Other Computations)'!B130","v":{"v":118.94041984375394,"d":"118.94"}},{"$f":"(1-Inputs!B20)*DF11/'(Other Computations)'!B130","v":{"v":118.84789413694673,"d":"118.85"}},{"$f":"(1-Inputs!B20)*DG11/'(Other Computations)'!B130","v":{"v":118.77332062919102,"d":"118.77"}},{"$f":"(1-Inputs!B20)*DH11/'(Other Computations)'!B130","v":{"v":118.64707529027422,"d":"118.65"}},{"$f":"(1-Inputs!B20)*DI11/'(Other Computations)'!B130","v":{"v":118.53156812435279,"d":"118.53"}},{"$f":"(1-Inputs!B20)*DJ11/'(Other Computations)'!B130","v":{"v":118.42411830498537,"d":"118.42"}},{"$f":"(1-Inputs!B20)*DK11/'(Other Computations)'!B130","v":{"v":118.37846369016646,"d":"118.38"}},{"$f":"(1-Inputs!B20)*DL11/'(Other Computations)'!B130","v":{"v":118.20373270652055,"d":"118.20"}},{"$f":"(1-Inputs!B20)*DM11/'(Other Computations)'!B130","v":{"v":117.98676013186385,"d":"117.99"}},{"$f":"SUM(DB29:DM29)","v":{"v":1424.3543066964398,"d":"1,424.35"}},{"$f":"(1-Inputs!B20)*DO11/'(Other Computations)'!B130","v":{"v":117.80673613885902,"d":"117.81"}},{"$f":"(1-Inputs!B20)*DP11/'(Other Computations)'!B130","v":{"v":117.74086031287865,"d":"117.74"}},{"$f":"(1-Inputs!B20)*DQ11/'(Other Computations)'!B130","v":{"v":117.54800935769457,"d":"117.55"}},{"$f":"(1-Inputs!B20)*DR11/'(Other Computations)'!B130","v":{"v":117.43998840454334,"d":"117.44"}},{"$f":"(1-Inputs!B20)*DS11/'(Other Computations)'!B130","v":{"v":117.31016851906274,"d":"117.31"}},{"$f":"(1-Inputs!B20)*DT11/'(Other Computations)'!B130","v":{"v":117.15067569118567,"d":"117.15"}},{"$f":"(1-Inputs!B20)*DU11/'(Other Computations)'!B130","v":{"v":117.05583887049116,"d":"117.06"}},{"$f":"(1-Inputs!B20)*DV11/'(Other Computations)'!B130","v":{"v":116.98885873748571,"d":"116.99"}},{"$f":"(1-Inputs!B20)*DW11/'(Other Computations)'!B130","v":{"v":116.91329245635832,"d":"116.91"}},{"$f":"(1-Inputs!B20)*DX11/'(Other Computations)'!B130","v":{"v":116.74295237844329,"d":"116.74"}},{"$f":"(1-Inputs!B20)*DY11/'(Other Computations)'!B130","v":{"v":116.6779278010663,"d":"116.68"}},{"$f":"(1-Inputs!B20)*DZ11/'(Other Computations)'!B130","v":{"v":116.56675765472008,"d":"116.57"}},{"$f":"SUM(DO29:DZ29)","v":{"v":1405.9420663227888,"d":"1,405.94"}},{"$f":"(1-Inputs!B20)*EB11/'(Other Computations)'!B130","v":{"v":116.39709854265428,"d":"116.40"}},{"$f":"(1-Inputs!B20)*EC11/'(Other Computations)'!B130","v":{"v":116.34334827265002,"d":"116.34"}},{"$f":"(1-Inputs!B20)*ED11/'(Other Computations)'!B130","v":{"v":116.2656959072376,"d":"116.27"}},{"$f":"(1-Inputs!B20)*EE11/'(Other Computations)'!B130","v":{"v":116.07190015937678,"d":"116.07"}},{"$f":"(1-Inputs!B20)*EF11/'(Other Computations)'!B130","v":{"v":115.9627380857154,"d":"115.96"}},{"$f":"(1-Inputs!B20)*EG11/'(Other Computations)'!B130","v":{"v":115.94039477746773,"d":"115.94"}},{"$f":"(1-Inputs!B20)*EH11/'(Other Computations)'!B130","v":{"v":115.78181107314178,"d":"115.78"}},{"$f":"(1-Inputs!B20)*EI11/'(Other Computations)'!B130","v":{"v":115.64154192410425,"d":"115.64"}},{"$f":"(1-Inputs!B20)*EJ11/'(Other Computations)'!B130","v":{"v":115.48475545272916,"d":"115.48"}},{"$f":"(1-Inputs!B20)*EK11/'(Other Computations)'!B130","v":{"v":115.40886543387718,"d":"115.41"}},{"$f":"(1-Inputs!B20)*EL11/'(Other Computations)'!B130","v":{"v":115.28338979781743,"d":"115.28"}},{"$f":"(1-Inputs!B20)*EM11/'(Other Computations)'!B130","v":{"v":115.22027588297858,"d":"115.22"}},{"$f":"SUM(EB29:EM29)","v":{"v":1389.80181530975,"d":"1,389.80"}}]
[]
[]
[{"$f":"\"Income\"","v":"Income"}]
[{"$f":"\" \"","v":" "}]
[null,{"$f":"ZZZ__FnCalls!F7","v":"Jan 2010"},{"$f":"ZZZ__FnCalls!F8","v":"Feb 2010"},{"$f":"ZZZ__FnCalls!F9","v":"Mar 2010"},{"$f":"ZZZ__FnCalls!F10","v":"Apr 2010"},{"$f":"ZZZ__FnCalls!F11","v":"May 2010"},{"$f":"ZZZ__FnCalls!F12","v":"Jun 2010"},{"$f":"ZZZ__FnCalls!F13","v":"Jul 2010"},{"$f":"ZZZ__FnCalls!F14","v":"Aug 2010"},{"$f":"ZZZ__FnCalls!F15","v":"Sep 2010"},{"$f":"ZZZ__FnCalls!F16","v":"Oct 2010"},{"$f":"ZZZ__FnCalls!F17","v":"Nov 2010"},{"$f":"ZZZ__FnCalls!F18","v":"Dec 2010"},{"$f":"ZZZ__FnCalls!H7","v":"2010"},{"$f":"ZZZ__FnCalls!F19","v":"Jan 2011"},{"$f":"ZZZ__FnCalls!F20","v":"Feb 2011"},{"$f":"ZZZ__FnCalls!F21","v":"Mar 2011"},{"$f":"ZZZ__FnCalls!F22","v":"Apr 2011"},{"$f":"ZZZ__FnCalls!F23","v":"May 2011"},{"$f":"ZZZ__FnCalls!F24","v":"Jun 2011"},{"$f":"ZZZ__FnCalls!F25","v":"Jul 2011"},{"$f":"ZZZ__FnCalls!F26","v":"Aug 2011"},{"$f":"ZZZ__FnCalls!F27","v":"Sep 2011"},{"$f":"ZZZ__FnCalls!F28","v":"Oct 2011"},{"$f":"ZZZ__FnCalls!F29","v":"Nov 2011"},{"$f":"ZZZ__FnCalls!F30","v":"Dec 2011"},{"$f":"ZZZ__FnCalls!H19","v":"2011"},{"$f":"ZZZ__FnCalls!F31","v":"Jan 2012"},{"$f":"ZZZ__FnCalls!F32","v":"Feb 2012"},{"$f":"ZZZ__FnCalls!F33","v":"Mar 2012"},{"$f":"ZZZ__FnCalls!F34","v":"Apr 2012"},{"$f":"ZZZ__FnCalls!F35","v":"May 2012"},{"$f":"ZZZ__FnCalls!F36","v":"Jun 2012"},{"$f":"ZZZ__FnCalls!F37","v":"Jul 2012"},{"$f":"ZZZ__FnCalls!F38","v":"Aug 2012"},{"$f":"ZZZ__FnCalls!F39","v":"Sep 2012"},{"$f":"ZZZ__FnCalls!F40","v":"Oct 2012"},{"$f":"ZZZ__FnCalls!F41","v":"Nov 2012"},{"$f":"ZZZ__FnCalls!F42","v":"Dec 2012"},{"$f":"ZZZ__FnCalls!H31","v":"2012"},{"$f":"ZZZ__FnCalls!F43","v":"Jan 2013"},{"$f":"ZZZ__FnCalls!F44","v":"Feb 2013"},{"$f":"ZZZ__FnCalls!F45","v":"Mar 2013"},{"$f":"ZZZ__FnCalls!F46","v":"Apr 2013"},{"$f":"ZZZ__FnCalls!F47","v":"May 2013"},{"$f":"ZZZ__FnCalls!F48","v":"Jun 2013"},{"$f":"ZZZ__FnCalls!F49","v":"Jul 2013"},{"$f":"ZZZ__FnCalls!F50","v":"Aug 2013"},{"$f":"ZZZ__FnCalls!F51","v":"Sep 2013"},{"$f":"ZZZ__FnCalls!F52","v":"Oct 2013"},{"$f":"ZZZ__FnCalls!F53","v":"Nov 2013"},{"$f":"ZZZ__FnCalls!F54","v":"Dec 2013"},{"$f":"ZZZ__FnCalls!H43","v":"2013"},{"$f":"ZZZ__FnCalls!F55","v":"Jan 2014"},{"$f":"ZZZ__FnCalls!F56","v":"Feb 2014"},{"$f":"ZZZ__FnCalls!F57","v":"Mar 2014"},{"$f":"ZZZ__FnCalls!F58","v":"Apr 2014"},{"$f":"ZZZ__FnCalls!F59","v":"May 2014"},{"$f":"ZZZ__FnCalls!F60","v":"Jun 2014"},{"$f":"ZZZ__FnCalls!F61","v":"Jul 2014"},{"$f":"ZZZ__FnCalls!F62","v":"Aug 2014"},{"$f":"ZZZ__FnCalls!F63","v":"Sep 2014"},{"$f":"ZZZ__FnCalls!F64","v":"Oct 2014"},{"$f":"ZZZ__FnCalls!F65","v":"Nov 2014"},{"$f":"ZZZ__FnCalls!F66","v":"Dec 2014"},{"$f":"ZZZ__FnCalls!H55","v":"2014"},{"$f":"ZZZ__FnCalls!F67","v":"Jan 2015"},{"$f":"ZZZ__FnCalls!F68","v":"Feb 2015"},{"$f":"ZZZ__FnCalls!F69","v":"Mar 2015"},{"$f":"ZZZ__FnCalls!F70","v":"Apr 2015"},{"$f":"ZZZ__FnCalls!F71","v":"May 2015"},{"$f":"ZZZ__FnCalls!F72","v":"Jun 2015"},{"$f":"ZZZ__FnCalls!F73","v":"Jul 2015"},{"$f":"ZZZ__FnCalls!F74","v":"Aug 2015"},{"$f":"ZZZ__FnCalls!F75","v":"Sep 2015"},{"$f":"ZZZ__FnCalls!F76","v":"Oct 2015"},{"$f":"ZZZ__FnCalls!F77","v":"Nov 2015"},{"$f":"ZZZ__FnCalls!F78","v":"Dec 2015"},{"$f":"ZZZ__FnCalls!H67","v":"2015"},{"$f":"ZZZ__FnCalls!F79","v":"Jan 2016"},{"$f":"ZZZ__FnCalls!F80","v":"Feb 2016"},{"$f":"ZZZ__FnCalls!F81","v":"Mar 2016"},{"$f":"ZZZ__FnCalls!F82","v":"Apr 2016"},{"$f":"ZZZ__FnCalls!F83","v":"May 2016"},{"$f":"ZZZ__FnCalls!F84","v":"Jun 2016"},{"$f":"ZZZ__FnCalls!F85","v":"Jul 2016"},{"$f":"ZZZ__FnCalls!F86","v":"Aug 2016"},{"$f":"ZZZ__FnCalls!F87","v":"Sep 2016"},{"$f":"ZZZ__FnCalls!F88","v":"Oct 2016"},{"$f":"ZZZ__FnCalls!F89","v":"Nov 2016"},{"$f":"ZZZ__FnCalls!F90","v":"Dec 2016"},{"$f":"ZZZ__FnCalls!H79","v":"2016"},{"$f":"ZZZ__FnCalls!F91","v":"Jan 2017"},{"$f":"ZZZ__FnCalls!F92","v":"Feb 2017"},{"$f":"ZZZ__FnCalls!F93","v":"Mar 2017"},{"$f":"ZZZ__FnCalls!F94","v":"Apr 2017"},{"$f":"ZZZ__FnCalls!F95","v":"May 2017"},{"$f":"ZZZ__FnCalls!F96","v":"Jun 2017"},{"$f":"ZZZ__FnCalls!F97","v":"Jul 2017"},{"$f":"ZZZ__FnCalls!F98","v":"Aug 2017"},{"$f":"ZZZ__FnCalls!F99","v":"Sep 2017"},{"$f":"ZZZ__FnCalls!F100","v":"Oct 2017"},{"$f":"ZZZ__FnCalls!F101","v":"Nov 2017"},{"$f":"ZZZ__FnCalls!F102","v":"Dec 2017"},{"$f":"ZZZ__FnCalls!H91","v":"2017"},{"$f":"ZZZ__FnCalls!F103","v":"Jan 2018"},{"$f":"ZZZ__FnCalls!F104","v":"Feb 2018"},{"$f":"ZZZ__FnCalls!F105","v":"Mar 2018"},{"$f":"ZZZ__FnCalls!F106","v":"Apr 2018"},{"$f":"ZZZ__FnCalls!F107","v":"May 2018"},{"$f":"ZZZ__FnCalls!F108","v":"Jun 2018"},{"$f":"ZZZ__FnCalls!F109","v":"Jul 2018"},{"$f":"ZZZ__FnCalls!F110","v":"Aug 2018"},{"$f":"ZZZ__FnCalls!F111","v":"Sep 2018"},{"$f":"ZZZ__FnCalls!F112","v":"Oct 2018"},{"$f":"ZZZ__FnCalls!F113","v":"Nov 2018"},{"$f":"ZZZ__FnCalls!F114","v":"Dec 2018"},{"$f":"ZZZ__FnCalls!H103","v":"2018"},{"$f":"ZZZ__FnCalls!F115","v":"Jan 2019"},{"$f":"ZZZ__FnCalls!F116","v":"Feb 2019"},{"$f":"ZZZ__FnCalls!F117","v":"Mar 2019"},{"$f":"ZZZ__FnCalls!F118","v":"Apr 2019"},{"$f":"ZZZ__FnCalls!F119","v":"May 2019"},{"$f":"ZZZ__FnCalls!F120","v":"Jun 2019"},{"$f":"ZZZ__FnCalls!F121","v":"Jul 2019"},{"$f":"ZZZ__FnCalls!F122","v":"Aug 2019"},{"$f":"ZZZ__FnCalls!F123","v":"Sep 2019"},{"$f":"ZZZ__FnCalls!F124","v":"Oct 2019"},{"$f":"ZZZ__FnCalls!F125","v":"Nov 2019"},{"$f":"ZZZ__FnCalls!F126","v":"Dec 2019"},{"$f":"ZZZ__FnCalls!H115","v":"2019"},{"$f":"ZZZ__FnCalls!F127","v":"Jan 2020"},{"$f":"ZZZ__FnCalls!F128","v":"Feb 2020"},{"$f":"ZZZ__FnCalls!F129","v":"Mar 2020"},{"$f":"ZZZ__FnCalls!F130","v":"Apr 2020"},{"$f":"ZZZ__FnCalls!F131","v":"May 2020"},{"$f":"ZZZ__FnCalls!F132","v":"Jun 2020"},{"$f":"ZZZ__FnCalls!F133","v":"Jul 2020"},{"$f":"ZZZ__FnCalls!F134","v":"Aug 2020"},{"$f":"ZZZ__FnCalls!F135","v":"Sep 2020"},{"$f":"ZZZ__FnCalls!F136","v":"Oct 2020"},{"$f":"ZZZ__FnCalls!F137","v":"Nov 2020"},{"$f":"ZZZ__FnCalls!F138","v":"Dec 2020"},{"$f":"ZZZ__FnCalls!H127","v":"2020"}]
[{"$f":"Labels!B55","v":"Current Disposable Income"},{"$f":"B44-B54+B38","v":{"v":837541.7818359938,"d":"$837,542"}},{"v":866132.7422743094,"d":"$866,133"},{"v":840750.1619595153,"d":"$840,750"},{"v":834748.2166139763,"d":"$834,748"},{"v":847323.4777216415,"d":"$847,323"},{"v":845634.3883824378,"d":"$845,634"},{"v":836484.6497081503,"d":"$836,485"},{"v":804250.4142093275,"d":"$804,250"},{"v":866890.2254343512,"d":"$866,890"},{"v":808998.0204678949,"d":"$808,998"},{"v":830825.7249411613,"d":"$830,826"},{"v":854531.9020232487,"d":"$854,532"},{"$f":"SUM(B35:M35)","v":{"v":10074111.705572005,"d":"$10,074,112"}},{"$f":"O44-O54+O38","v":{"v":806345.3343562657,"d":"$806,345"}},{"v":791501.7805054787,"d":"$791,502"},{"v":856362.6701514078,"d":"$856,363"},{"v":814915.8177455746,"d":"$814,916"},{"v":834093.4661250027,"d":"$834,093"},{"v":770749.6149023651,"d":"$770,750"},{"v":788544.8646773306,"d":"$788,545"},{"v":804392.2851946201,"d":"$804,392"},{"v":846352.8968065843,"d":"$846,353"},{"v":822377.3595252653,"d":"$822,377"},{"v":831407.7775213706,"d":"$831,408"},{"v":801967.1516932172,"d":"$801,967"},{"$f":"SUM(O35:Z35)","v":{"v":9769011.019204484,"d":"$9,769,011"}},{"$f":"AB44-AB54+AB38","v":{"v":795791.3806157062,"d":"$795,791"}},{"v":773848.838188647,"d":"$773,849"},{"v":817305.7276672268,"d":"$817,306"},{"v":797346.8135031129,"d":"$797,347"},{"v":804227.0120142332,"d":"$804,227"},{"v":794959.463871385,"d":"$794,959"},{"v":802462.2424121805,"d":"$802,462"},{"v":789941.4169823412,"d":"$789,941"},{"v":804385.7349189002,"d":"$804,386"},{"v":821165.8209580858,"d":"$821,166"},{"v":792161.6567376583,"d":"$792,162"},{"v":769444.7048432404,"d":"$769,445"},{"$f":"SUM(AB35:AM35)","v":{"v":9563040.812712718,"d":"$9,563,041"}},{"$f":"AO44-AO54+AO38","v":{"v":773335.1099502636,"d":"$773,335"}},{"v":772599.654479968,"d":"$772,600"},{"v":804536.7186912745,"d":"$804,537"},{"v":778640.3223546689,"d":"$778,640"},{"v":764148.0433543519,"d":"$764,148"},{"v":784394.5692076046,"d":"$784,395"},{"v":811772.3423551222,"d":"$811,772"},{"v":796974.9664287361,"d":"$796,975"},{"v":814459.1414546276,"d":"$814,459"},{"v":796100.5882099293,"d":"$796,101"},{"v":745641.8042281381,"d":"$745,642"},{"v":770732.7891277708,"d":"$770,733"},{"$f":"SUM(AO35:AZ35)","v":{"v":9413336.049842454,"d":"$9,413,336"}},{"$f":"BB44-BB54+BB38","v":{"v":783449.4477920394,"d":"$783,449"}},{"v":795611.4105750924,"d":"$795,611"},{"v":765703.6395781651,"d":"$765,704"},{"v":768271.5349242506,"d":"$768,272"},{"v":804275.9263142162,"d":"$804,276"},{"v":773944.1708236599,"d":"$773,944"},{"v":758793.6958970878,"d":"$758,794"},{"v":785196.6433844756,"d":"$785,197"},{"v":767421.4888300322,"d":"$767,421"},{"v":739634.3639202345,"d":"$739,634"},{"v":738324.8073560859,"d":"$738,325"},{"v":804732.1826463887,"d":"$804,732"},{"$f":"SUM(BB35:BM35)","v":{"v":9285359.312041726,"d":"$9,285,359"}},{"$f":"BO44-BO54+BO38","v":{"v":751798.0921944735,"d":"$751,798"}},{"v":770688.9406589464,"d":"$770,689"},{"v":778080.3986964443,"d":"$778,080"},{"v":774229.0122423454,"d":"$774,229"},{"v":765751.274970582,"d":"$765,751"},{"v":730854.8905761401,"d":"$730,855"},{"v":750246.9693473912,"d":"$750,247"},{"v":789639.15049963,"d":"$789,639"},{"v":766763.9294767571,"d":"$766,764"},{"v":751448.0495599065,"d":"$751,448"},{"v":780999.7558711746,"d":"$781,000"},{"v":769811.7795114642,"d":"$769,812"},{"$f":"SUM(BO35:BZ35)","v":{"v":9180312.243605256,"d":"$9,180,312"}},{"$f":"CB44-CB54+CB38","v":{"v":794727.7164284055,"d":"$794,728"}},{"v":785130.6348381435,"d":"$785,131"},{"v":759825.8709862859,"d":"$759,826"},{"v":760570.3555480203,"d":"$760,570"},{"v":773322.0582853368,"d":"$773,322"},{"v":743522.5363458494,"d":"$743,523"},{"v":771830.3655375323,"d":"$771,830"},{"v":772426.276542477,"d":"$772,426"},{"v":791599.7363578812,"d":"$791,600"},{"v":725726.5134277599,"d":"$725,727"},{"v":756065.4235537119,"d":"$756,065"},{"v":783917.0071523364,"d":"$783,917"},{"$f":"SUM(CB35:CM35)","v":{"v":9218664.49500374,"d":"$9,218,664"}},{"$f":"CO44-CO54+CO38","v":{"v":739355.5392104149,"d":"$739,356"}},{"v":747910.4036289055,"d":"$747,910"},{"v":758528.6777204479,"d":"$758,529"},{"v":736842.5494209251,"d":"$736,843"},{"v":757616.1924533189,"d":"$757,616"},{"v":719320.5233552688,"d":"$719,321"},{"v":779633.1362306915,"d":"$779,633"},{"v":708331.5478580032,"d":"$708,332"},{"v":759139.2126596003,"d":"$759,139"},{"v":787556.7884647007,"d":"$787,557"},{"v":721454.9610767431,"d":"$721,455"},{"v":744664.1513877743,"d":"$744,664"},{"$f":"SUM(CO35:CZ35)","v":{"v":8960353.683466794,"d":"$8,960,354"}},{"$f":"DB44-DB54+DB38","v":{"v":745186.4932007666,"d":"$745,186"}},{"v":736989.4254634619,"d":"$736,989"},{"v":750161.9651136122,"d":"$750,162"},{"v":742290.9459159496,"d":"$742,291"},{"v":762510.4991111901,"d":"$762,510"},{"v":726452.5917228163,"d":"$726,453"},{"v":730284.7129124765,"d":"$730,285"},{"v":731975.5853372321,"d":"$731,976"},{"v":741641.7705006074,"d":"$741,642"},{"v":759306.8194069884,"d":"$759,307"},{"v":772239.5866993688,"d":"$772,240"},{"v":704404.7399702795,"d":"$704,405"},{"$f":"SUM(DB35:DM35)","v":{"v":8903445.13535475,"d":"$8,903,445"}},{"$f":"DO44-DO54+DO38","v":{"v":720047.9559115373,"d":"$720,048"}},{"v":701520.808010407,"d":"$701,521"},{"v":722485.0639466447,"d":"$722,485"},{"v":735351.6436719903,"d":"$735,352"},{"v":720070.9815958586,"d":"$720,071"},{"v":727398.2489034402,"d":"$727,398"},{"v":723930.4634047447,"d":"$723,930"},{"v":693806.2672077125,"d":"$693,806"},{"v":731284.5208426751,"d":"$731,285"},{"v":727505.9035663636,"d":"$727,506"},{"v":723094.8545185286,"d":"$723,095"},{"v":731165.6024255276,"d":"$731,166"},{"$f":"SUM(DO35:DZ35)","v":{"v":8657662.314005429,"d":"$8,657,662"}},{"$f":"EB44-EB54+EB38","v":{"v":730064.3091074231,"d":"$730,064"}},{"v":711206.9107116932,"d":"$711,207"},{"v":683182.8565284148,"d":"$683,183"},{"v":764021.5035764417,"d":"$764,022"},{"v":736065.6704158704,"d":"$736,066"},{"v":722322.1060426042,"d":"$722,322"},{"v":745347.5313306005,"d":"$745,348"},{"v":729124.4377420519,"d":"$729,124"},{"v":718738.2175461742,"d":"$718,738"},{"v":709594.1286578588,"d":"$709,594"},{"v":735432.2382439983,"d":"$735,432"},{"v":717224.2748422635,"d":"$717,224"},{"$f":"SUM(EB35:EM35)","v":{"v":8702324.184745394,"d":"$8,702,324"}}]
[{"$f":"Labels!B45","v":"Final Sales"},{"$f":"B12+B21+B37","v":{"v":963388.6810828955,"d":"$963,389"}},{"v":962769.5311973599,"d":"$962,770"},{"v":962169.3176039625,"d":"$962,169"},{"v":961619.9016870683,"d":"$961,620"},{"v":961165.6097252205,"d":"$961,166"},{"v":960659.5993736376,"d":"$960,660"},{"v":960090.452580528,"d":"$960,090"},{"v":959545.8120607713,"d":"$959,546"},{"v":958868.6442944771,"d":"$958,869"},{"v":958434.1782688693,"d":"$958,434"},{"v":957863.8430108911,"d":"$957,864"},{"v":957267.4616620337,"d":"$957,267"},{"$f":"SUM(B36:M36)","v":{"v":11523843.032547714,"d":"$11,523,843"}},{"$f":"O12+O21+O37","v":{"v":956859.6058350517,"d":"$956,860"}},{"v":956255.915342925,"d":"$956,256"},{"v":955720.8803519922,"d":"$955,721"},{"v":955338.6767755856,"d":"$955,339"},{"v":954793.5822398837,"d":"$954,794"},{"v":954298.675674421,"d":"$954,299"},{"v":953672.3132393057,"d":"$953,672"},{"v":953030.2962647211,"d":"$953,030"},{"v":952455.208504621,"d":"$952,455"},{"v":951994.5055474415,"d":"$951,995"},{"v":951474.5505483608,"d":"$951,475"},{"v":950909.7430877355,"d":"$950,910"},{"$f":"SUM(O36:Z36)","v":{"v":11446803.953412045,"d":"$11,446,804"}},{"$f":"AB12+AB21+AB37","v":{"v":950436.9699867046,"d":"$950,437"}},{"v":949920.9794291474,"d":"$949,921"},{"v":949368.3187930321,"d":"$949,368"},{"v":948909.2448199455,"d":"$948,909"},{"v":948525.1761770776,"d":"$948,525"},{"v":948044.1016374829,"d":"$948,044"},{"v":947520.2156346567,"d":"$947,520"},{"v":947077.375718272,"d":"$947,077"},{"v":946488.8705534408,"d":"$946,489"},{"v":946034.7644530681,"d":"$946,035"},{"v":945657.5145649937,"d":"$945,658"},{"v":945267.183156492,"d":"$945,267"},{"$f":"SUM(AB36:AM36)","v":{"v":11373250.714924313,"d":"$11,373,251"}},{"$f":"AO12+AO21+AO37","v":{"v":944703.9218173333,"d":"$944,704"}},{"v":944176.567333131,"d":"$944,177"},{"v":943697.5744027679,"d":"$943,698"},{"v":943285.6935615351,"d":"$943,286"},{"v":942760.9547730527,"d":"$942,761"},{"v":942270.2705081345,"d":"$942,270"},{"v":941824.4597666304,"d":"$941,824"},{"v":941424.2365852318,"d":"$941,424"},{"v":941002.0751401973,"d":"$941,002"},{"v":940495.6126161899,"d":"$940,496"},{"v":940043.7339452348,"d":"$940,044"},{"v":939575.973006986,"d":"$939,576"},{"$f":"SUM(AO36:AZ36)","v":{"v":11305261.073456425,"d":"$11,305,261"}},{"$f":"BB12+BB21+BB37","v":{"v":939078.8934732821,"d":"$939,079"}},{"v":938581.4147511594,"d":"$938,581"},{"v":938165.3434520974,"d":"$938,165"},{"v":937754.3601946913,"d":"$937,754"},{"v":937266.7528148877,"d":"$937,267"},{"v":936924.9763366819,"d":"$936,925"},{"v":936400.2418376853,"d":"$936,400"},{"v":935870.1830568938,"d":"$935,870"},{"v":935348.5838044427,"d":"$935,349"},{"v":934937.5326575354,"d":"$934,938"},{"v":934386.3396309003,"d":"$934,386"},{"v":933880.2347630614,"d":"$933,880"},{"$f":"SUM(BB36:BM36)","v":{"v":11238594.856773319,"d":"$11,238,595"}},{"$f":"BO12+BO21+BO37","v":{"v":933404.3126860487,"d":"$933,404"}},{"v":932804.7869076616,"d":"$932,805"},{"v":932295.8491760393,"d":"$932,296"},{"v":931910.9537734614,"d":"$931,911"},{"v":931550.0897687263,"d":"$931,550"},{"v":931012.8797482699,"d":"$931,013"},{"v":930583.8173667107,"d":"$930,584"},{"v":930063.7736189765,"d":"$930,064"},{"v":929714.9310608037,"d":"$929,715"},{"v":929286.1216979736,"d":"$929,286"},{"v":928716.2140872597,"d":"$928,716"},{"v":928427.3637691169,"d":"$928,427"},{"$f":"SUM(BO36:BZ36)","v":{"v":11169771.09366105,"d":"$11,169,771"}},{"$f":"CB12+CB21+CB37","v":{"v":928019.8280236901,"d":"$928,020"}},{"v":927694.6258975798,"d":"$927,695"},{"v":927263.6087581515,"d":"$927,264"},{"v":926811.8857260116,"d":"$926,812"},{"v":926444.5019668295,"d":"$926,445"},{"v":926066.3034167086,"d":"$926,066"},{"v":925653.7045672309,"d":"$925,654"},{"v":925247.8192040181,"d":"$925,248"},{"v":924917.2262268285,"d":"$924,917"},{"v":924479.6632272837,"d":"$924,480"},{"v":923967.6573638215,"d":"$923,968"},{"v":923440.602157959,"d":"$923,441"},{"$f":"SUM(CB36:CM36)","v":{"v":11110007.426536115,"d":"$11,110,007"}},{"$f":"CO12+CO21+CO37","v":{"v":923056.4187417031,"d":"$923,056"}},{"v":922547.8725648221,"d":"$922,548"},{"v":922103.8373395571,"d":"$922,104"},{"v":921709.6991380259,"d":"$921,710"},{"v":921217.134201002,"d":"$921,217"},{"v":920834.7834211456,"d":"$920,835"},{"v":920268.8759344483,"d":"$920,269"},{"v":919972.3181085947,"d":"$919,972"},{"v":919435.214448257,"d":"$919,435"},{"v":919095.2795701382,"d":"$919,095"},{"v":918633.6301084027,"d":"$918,634"},{"v":918202.9019662397,"d":"$918,203"},{"$f":"SUM(CO36:CZ36)","v":{"v":11047077.965542339,"d":"$11,047,078"}},{"$f":"DB12+DB21+DB37","v":{"v":917748.952436803,"d":"$917,749"}},{"v":917292.3011249434,"d":"$917,292"},{"v":916877.0512274222,"d":"$916,877"},{"v":916429.2055763649,"d":"$916,429"},{"v":916032.5121322678,"d":"$916,033"},{"v":915699.6891456035,"d":"$915,700"},{"v":915229.0113512139,"d":"$915,229"},{"v":914779.7395436756,"d":"$914,780"},{"v":914343.591569539,"d":"$914,344"},{"v":913999.3412067749,"d":"$913,999"},{"v":913544.5080642068,"d":"$913,545"},{"v":913071.0800504243,"d":"$913,071"},{"$f":"SUM(DB36:DM36)","v":{"v":10985046.983429238,"d":"$10,985,047"}},{"$f":"DO12+DO21+DO37","v":{"v":912494.5879686367,"d":"$912,495"}},{"v":912083.7504797181,"d":"$912,084"},{"v":911486.312580765,"d":"$911,486"},{"v":911033.7899340949,"d":"$911,034"},{"v":910583.8758924904,"d":"$910,584"},{"v":910067.4933755429,"d":"$910,067"},{"v":909642.1944864173,"d":"$909,642"},{"v":909240.9741442996,"d":"$909,241"},{"v":908764.2957477089,"d":"$908,764"},{"v":908260.4502402031,"d":"$908,260"},{"v":907870.7837946449,"d":"$907,871"},{"v":907417.7996717186,"d":"$907,418"},{"$f":"SUM(DO36:DZ36)","v":{"v":10918946.30831624,"d":"$10,918,946"}},{"$f":"EB12+EB21+EB37","v":{"v":906916.0414390186,"d":"$906,916"}},{"v":906546.1671680035,"d":"$906,546"},{"v":906106.9642596828,"d":"$906,107"},{"v":905474.2848548571,"d":"$905,474"},{"v":905116.2041199874,"d":"$905,116"},{"v":904796.6180019708,"d":"$904,797"},{"v":904289.9192871936,"d":"$904,290"},{"v":903856.0997774393,"d":"$903,856"},{"v":903368.781357152,"d":"$903,369"},{"v":902952.7436372978,"d":"$902,953"},{"v":902459.6243298395,"d":"$902,460"},{"v":902095.0309087725,"d":"$902,095"},{"$f":"SUM(EB36:EM36)","v":{"v":10853978.479141215,"d":"$10,853,978"}}]
[{"$f":"Labels!B51","v":"Gov Spending"},{"$f":"'(Other Computations)'!B11/8","v":{"v":29166.66666666667,"d":"$29,167"}},{"$f":"'(Other Computations)'!B11/8","v":{"v":29166.66666666667,"d":"$29,167"}},{"$f":"'(Other Computations)'!B11/8","v":{"v":29166.66666666667,"d":"$29,167"}},{"$f":"'(Other Computations)'!B11/8","v":{"v":29166.66666666667,"d":"$29,167"}},{"$f":"'(Other Computations)'!B11/8","v":{"v":29166.66666666667,"d":"$29,167"}},{"$f":"'(Other Computations)'!B11/8","v":{"v":29166.66666666667,"d":"$29,167"}},{"$f":"'(Other Computations)'!B11/8","v":{"v":29166.66666666667,"d":"$29,167"}},{"$f":"'(Other Computations)'!B11/8","v":{"v":29166.66666666667,"d":"$29,167"}},{"$f":"'(Other Computations)'!B11/8","v":{"v":29166.66666666667,"d":"$29,167"}},{"$f":"'(Other Computations)'!B11/8","v":{"v":29166.66666666667,"d":"$29,167"}},{"$f":"'(Other Computations)'!B11/8","v":{"v":29166.66666666667,"d":"$29,167"}},{"$f":"'(Other Computations)'!B11/8","v":{"v":29166.66666666667,"d":"$29,167"}},{"$f":"SUM(B37:M37)","v":{"v":350000.0000000002,"d":"$350,000"}},{"$f":"'(Other Computations)'!B11/8","v":{"v":29166.66666666667,"d":"$29,167"}},{"$f":"'(Other Computations)'!B11/8","v":{"v":29166.66666666667,"d":"$29,167"}},{"$f":"'(Other Computations)'!B11/8","v":{"v":29166.66666666667,"d":"$29,167"}},{"$f":"'(Other Computations)'!B11/8","v":{"v":29166.66666666667,"d":"$29,167"}},{"$f":"'(Other Computations)'!B11/8","v":{"v":29166.66666666667,"d":"$29,167"}},{"$f":"'(Other Computations)'!B11/8","v":{"v":29166.66666666667,"d":"$29,167"}},{"$f":"'(Other Computations)'!B11/8","v":{"v":29166.66666666667,"d":"$29,167"}},{"$f":"'(Other Computations)'!B11/8","v":{"v":29166.66666666667,"d":"$29,167"}},{"$f":"'(Other Computations)'!B11/8","v":{"v":29166.66666666667,"d":"$29,167"}},{"$f":"'(Other Computations)'!B11/8","v":{"v":29166.66666666667,"d":"$29,167"}},{"$f":"'(Other Computations)'!B11/8","v":{"v":29166.66666666667,"d":"$29,167"}},{"$f":"'(Other Computations)'!B11/8","v":{"v":29166.66666666667,"d":"$29,167"}},{"$f":"SUM(O37:Z37)","v":{"v":350000.0000000002,"d":"$350,000"}},{"$f":"'(Other Computations)'!B11/8","v":{"v":29166.66666666667,"d":"$29,167"}},{"$f":"'(Other Computations)'!B11/8","v":{"v":29166.66666666667,"d":"$29,167"}},{"$f":"'(Other Computations)'!B11/8","v":{"v":29166.66666666667,"d":"$29,167"}},{"$f":"'(Other Computations)'!B11/8","v":{"v":29166.66666666667,"d":"$29,167"}},{"$f":"'(Other Computations)'!B11/8","v":{"v":29166.66666666667,"d":"$29,167"}},{"$f":"'(Other Computations)'!B11/8","v":{"v":29166.66666666667,"d":"$29,167"}},{"$f":"'(Other Computations)'!B11/8","v":{"v":29166.66666666667,"d":"$29,167"}},{"$f":"'(Other Computations)'!B11/8","v":{"v":29166.66666666667,"d":"$29,167"}},{"$f":"'(Other Computations)'!B11/8","v":{"v":29166.66666666667,"d":"$29,167"}},{"$f":"'(Other Computations)'!B11/8","v":{"v":29166.66666666667,"d":"$29,167"}},{"$f":"'(Other Computations)'!B11/8","v":{"v":29166.66666666667,"d":"$29,167"}},{"$f":"'(Other Computations)'!B11/8","v":{"v":29166.66666666667,"d":"$29,167"}},{"$f":"SUM(AB37:AM37)","v":{"v":350000.0000000002,"d":"$350,000"}},{"$f":"'(Other Computations)'!B11/8","v":{"v":29166.66666666667,"d":"$29,167"}},{"$f":"'(Other Computations)'!B11/8","v":{"v":29166.66666666667,"d":"$29,167"}},{"$f":"'(Other Computations)'!B11/8","v":{"v":29166.66666666667,"d":"$29,167"}},{"$f":"'(Other Computations)'!B11/8","v":{"v":29166.66666666667,"d":"$29,167"}},{"$f":"'(Other Computations)'!B11/8","v":{"v":29166.66666666667,"d":"$29,167"}},{"$f":"'(Other Computations)'!B11/8","v":{"v":29166.66666666667,"d":"$29,167"}},{"$f":"'(Other Computations)'!B11/8","v":{"v":29166.66666666667,"d":"$29,167"}},{"$f":"'(Other Computations)'!B11/8","v":{"v":29166.66666666667,"d":"$29,167"}},{"$f":"'(Other Computations)'!B11/8","v":{"v":29166.66666666667,"d":"$29,167"}},{"$f":"'(Other Computations)'!B11/8","v":{"v":29166.66666666667,"d":"$29,167"}},{"$f":"'(Other Computations)'!B11/8","v":{"v":29166.66666666667,"d":"$29,167"}},{"$f":"'(Other Computations)'!B11/8","v":{"v":29166.66666666667,"d":"$29,167"}},{"$f":"SUM(AO37:AZ37)","v":{"v":350000.0000000002,"d":"$350,000"}},{"$f":"'(Other Computations)'!B11/8","v":{"v":29166.66666666667,"d":"$29,167"}},{"$f":"'(Other Computations)'!B11/8","v":{"v":29166.66666666667,"d":"$29,167"}},{"$f":"'(Other Computations)'!B11/8","v":{"v":29166.66666666667,"d":"$29,167"}},{"$f":"'(Other Computations)'!B11/8","v":{"v":29166.66666666667,"d":"$29,167"}},{"$f":"'(Other Computations)'!B11/8","v":{"v":29166.66666666667,"d":"$29,167"}},{"$f":"'(Other Computations)'!B11/8","v":{"v":29166.66666666667,"d":"$29,167"}},{"$f":"'(Other Computations)'!B11/8","v":{"v":29166.66666666667,"d":"$29,167"}},{"$f":"'(Other Computations)'!B11/8","v":{"v":29166.66666666667,"d":"$29,167"}},{"$f":"'(Other Computations)'!B11/8","v":{"v":29166.66666666667,"d":"$29,167"}},{"$f":"'(Other Computations)'!B11/8","v":{"v":29166.66666666667,"d":"$29,167"}},{"$f":"'(Other Computations)'!B11/8","v":{"v":29166.66666666667,"d":"$29,167"}},{"$f":"'(Other Computations)'!B11/8","v":{"v":29166.66666666667,"d":"$29,167"}},{"$f":"SUM(BB37:BM37)","v":{"v":350000.0000000002,"d":"$350,000"}},{"$f":"'(Other Computations)'!B11/8","v":{"v":29166.66666666667,"d":"$29,167"}},{"$f":"'(Other Computations)'!B11/8","v":{"v":29166.66666666667,"d":"$29,167"}},{"$f":"'(Other Computations)'!B11/8","v":{"v":29166.66666666667,"d":"$29,167"}},{"$f":"'(Other Computations)'!B11/8","v":{"v":29166.66666666667,"d":"$29,167"}},{"$f":"'(Other Computations)'!B11/8","v":{"v":29166.66666666667,"d":"$29,167"}},{"$f":"'(Other Computations)'!B11/8","v":{"v":29166.66666666667,"d":"$29,167"}},{"$f":"'(Other Computations)'!B11/8","v":{"v":29166.66666666667,"d":"$29,167"}},{"$f":"'(Other Computations)'!B11/8","v":{"v":29166.66666666667,"d":"$29,167"}},{"$f":"'(Other Computations)'!B11/8","v":{"v":29166.66666666667,"d":"$29,167"}},{"$f":"'(Other Computations)'!B11/8","v":{"v":29166.66666666667,"d":"$29,167"}},{"$f":"'(Other Computations)'!B11/8","v":{"v":29166.66666666667,"d":"$29,167"}},{"$f":"'(Other Computations)'!B11/8","v":{"v":29166.66666666667,"d":"$29,167"}},{"$f":"SUM(BO37:BZ37)","v":{"v":350000.0000000002,"d":"$350,000"}},{"$f":"'(Other Computations)'!B11/8","v":{"v":29166.66666666667,"d":"$29,167"}},{"$f":"'(Other Computations)'!B11/8","v":{"v":29166.66666666667,"d":"$29,167"}},{"$f":"'(Other Computations)'!B11/8","v":{"v":29166.66666666667,"d":"$29,167"}},{"$f":"'(Other Computations)'!B11/8","v":{"v":29166.66666666667,"d":"$29,167"}},{"$f":"'(Other Computations)'!B11/8","v":{"v":29166.66666666667,"d":"$29,167"}},{"$f":"'(Other Computations)'!B11/8","v":{"v":29166.66666666667,"d":"$29,167"}},{"$f":"'(Other Computations)'!B11/8","v":{"v":29166.66666666667,"d":"$29,167"}},{"$f":"'(Other Computations)'!B11/8","v":{"v":29166.66666666667,"d":"$29,167"}},{"$f":"'(Other Computations)'!B11/8","v":{"v":29166.66666666667,"d":"$29,167"}},{"$f":"'(Other Computations)'!B11/8","v":{"v":29166.66666666667,"d":"$29,167"}},{"$f":"'(Other Computations)'!B11/8","v":{"v":29166.66666666667,"d":"$29,167"}},{"$f":"'(Other Computations)'!B11/8","v":{"v":29166.66666666667,"d":"$29,167"}},{"$f":"SUM(CB37:CM37)","v":{"v":350000.0000000002,"d":"$350,000"}},{"$f":"'(Other Computations)'!B11/8","v":{"v":29166.66666666667,"d":"$29,167"}},{"$f":"'(Other Computations)'!B11/8","v":{"v":29166.66666666667,"d":"$29,167"}},{"$f":"'(Other Computations)'!B11/8","v":{"v":29166.66666666667,"d":"$29,167"}},{"$f":"'(Other Computations)'!B11/8","v":{"v":29166.66666666667,"d":"$29,167"}},{"$f":"'(Other Computations)'!B11/8","v":{"v":29166.66666666667,"d":"$29,167"}},{"$f":"'(Other Computations)'!B11/8","v":{"v":29166.66666666667,"d":"$29,167"}},{"$f":"'(Other Computations)'!B11/8","v":{"v":29166.66666666667,"d":"$29,167"}},{"$f":"'(Other Computations)'!B11/8","v":{"v":29166.66666666667,"d":"$29,167"}},{"$f":"'(Other Computations)'!B11/8","v":{"v":29166.66666666667,"d":"$29,167"}},{"$f":"'(Other Computations)'!B11/8","v":{"v":29166.66666666667,"d":"$29,167"}},{"$f":"'(Other Computations)'!B11/8","v":{"v":29166.66666666667,"d":"$29,167"}},{"$f":"'(Other Computations)'!B11/8","v":{"v":29166.66666666667,"d":"$29,167"}},{"$f":"SUM(CO37:CZ37)","v":{"v":350000.0000000002,"d":"$350,000"}},{"$f":"'(Other Computations)'!B11/8","v":{"v":29166.66666666667,"d":"$29,167"}},{"$f":"'(Other Computations)'!B11/8","v":{"v":29166.66666666667,"d":"$29,167"}},{"$f":"'(Other Computations)'!B11/8","v":{"v":29166.66666666667,"d":"$29,167"}},{"$f":"'(Other Computations)'!B11/8","v":{"v":29166.66666666667,"d":"$29,167"}},{"$f":"'(Other Computations)'!B11/8","v":{"v":29166.66666666667,"d":"$29,167"}},{"$f":"'(Other Computations)'!B11/8","v":{"v":29166.66666666667,"d":"$29,167"}},{"$f":"'(Other Computations)'!B11/8","v":{"v":29166.66666666667,"d":"$29,167"}},{"$f":"'(Other Computations)'!B11/8","v":{"v":29166.66666666667,"d":"$29,167"}},{"$f":"'(Other Computations)'!B11/8","v":{"v":29166.66666666667,"d":"$29,167"}},{"$f":"'(Other Computations)'!B11/8","v":{"v":29166.66666666667,"d":"$29,167"}},{"$f":"'(Other Computations)'!B11/8","v":{"v":29166.66666666667,"d":"$29,167"}},{"$f":"'(Other Computations)'!B11/8","v":{"v":29166.66666666667,"d":"$29,167"}},{"$f":"SUM(DB37:DM37)","v":{"v":350000.0000000002,"d":"$350,000"}},{"$f":"'(Other Computations)'!B11/8","v":{"v":29166.66666666667,"d":"$29,167"}},{"$f":"'(Other Computations)'!B11/8","v":{"v":29166.66666666667,"d":"$29,167"}},{"$f":"'(Other Computations)'!B11/8","v":{"v":29166.66666666667,"d":"$29,167"}},{"$f":"'(Other Computations)'!B11/8","v":{"v":29166.66666666667,"d":"$29,167"}},{"$f":"'(Other Computations)'!B11/8","v":{"v":29166.66666666667,"d":"$29,167"}},{"$f":"'(Other Computations)'!B11/8","v":{"v":29166.66666666667,"d":"$29,167"}},{"$f":"'(Other Computations)'!B11/8","v":{"v":29166.66666666667,"d":"$29,167"}},{"$f":"'(Other Computations)'!B11/8","v":{"v":29166.66666666667,"d":"$29,167"}},{"$f":"'(Other Computations)'!B11/8","v":{"v":29166.66666666667,"d":"$29,167"}},{"$f":"'(Other Computations)'!B11/8","v":{"v":29166.66666666667,"d":"$29,167"}},{"$f":"'(Other Computations)'!B11/8","v":{"v":29166.66666666667,"d":"$29,167"}},{"$f":"'(Other Computations)'!B11/8","v":{"v":29166.66666666667,"d":"$29,167"}},{"$f":"SUM(DO37:DZ37)","v":{"v":350000.0000000002,"d":"$350,000"}},{"$f":"'(Other Computations)'!B11/8","v":{"v":29166.66666666667,"d":"$29,167"}},{"$f":"'(Other Computations)'!B11/8","v":{"v":29166.66666666667,"d":"$29,167"}},{"$f":"'(Other Computations)'!B11/8","v":{"v":29166.66666666667,"d":"$29,167"}},{"$f":"'(Other Computations)'!B11/8","v":{"v":29166.66666666667,"d":"$29,167"}},{"$f":"'(Other Computations)'!B11/8","v":{"v":29166.66666666667,"d":"$29,167"}},{"$f":"'(Other Computations)'!B11/8","v":{"v":29166.66666666667,"d":"$29,167"}},{"$f":"'(Other Computations)'!B11/8","v":{"v":29166.66666666667,"d":"$29,167"}},{"$f":"'(Other Computations)'!B11/8","v":{"v":29166.66666666667,"d":"$29,167"}},{"$f":"'(Other Computations)'!B11/8","v":{"v":29166.66666666667,"d":"$29,167"}},{"$f":"'(Other Computations)'!B11/8","v":{"v":29166.66666666667,"d":"$29,167"}},{"$f":"'(Other Computations)'!B11/8","v":{"v":29166.66666666667,"d":"$29,167"}},{"$f":"'(Other Computations)'!B11/8","v":{"v":29166.66666666667,"d":"$29,167"}},{"$f":"SUM(EB37:EM37)","v":{"v":350000.0000000002,"d":"$350,000"}}]
[{"$f":"Labels!B52","v":"Gov Transfers"},{"$f":"'(Other Computations)'!B14/8","v":{"v":14583.333333333336,"d":"$14,583"}},{"$f":"'(Other Computations)'!B14/8","v":{"v":14583.333333333336,"d":"$14,583"}},{"$f":"'(Other Computations)'!B14/8","v":{"v":14583.333333333336,"d":"$14,583"}},{"$f":"'(Other Computations)'!B14/8","v":{"v":14583.333333333336,"d":"$14,583"}},{"$f":"'(Other Computations)'!B14/8","v":{"v":14583.333333333336,"d":"$14,583"}},{"$f":"'(Other Computations)'!B14/8","v":{"v":14583.333333333336,"d":"$14,583"}},{"$f":"'(Other Computations)'!B14/8","v":{"v":14583.333333333336,"d":"$14,583"}},{"$f":"'(Other Computations)'!B14/8","v":{"v":14583.333333333336,"d":"$14,583"}},{"$f":"'(Other Computations)'!B14/8","v":{"v":14583.333333333336,"d":"$14,583"}},{"$f":"'(Other Computations)'!B14/8","v":{"v":14583.333333333336,"d":"$14,583"}},{"$f":"'(Other Computations)'!B14/8","v":{"v":14583.333333333336,"d":"$14,583"}},{"$f":"'(Other Computations)'!B14/8","v":{"v":14583.333333333336,"d":"$14,583"}},{"$f":"SUM(B38:M38)","v":{"v":175000.0000000001,"d":"$175,000"}},{"$f":"'(Other Computations)'!B14/8","v":{"v":14583.333333333336,"d":"$14,583"}},{"$f":"'(Other Computations)'!B14/8","v":{"v":14583.333333333336,"d":"$14,583"}},{"$f":"'(Other Computations)'!B14/8","v":{"v":14583.333333333336,"d":"$14,583"}},{"$f":"'(Other Computations)'!B14/8","v":{"v":14583.333333333336,"d":"$14,583"}},{"$f":"'(Other Computations)'!B14/8","v":{"v":14583.333333333336,"d":"$14,583"}},{"$f":"'(Other Computations)'!B14/8","v":{"v":14583.333333333336,"d":"$14,583"}},{"$f":"'(Other Computations)'!B14/8","v":{"v":14583.333333333336,"d":"$14,583"}},{"$f":"'(Other Computations)'!B14/8","v":{"v":14583.333333333336,"d":"$14,583"}},{"$f":"'(Other Computations)'!B14/8","v":{"v":14583.333333333336,"d":"$14,583"}},{"$f":"'(Other Computations)'!B14/8","v":{"v":14583.333333333336,"d":"$14,583"}},{"$f":"'(Other Computations)'!B14/8","v":{"v":14583.333333333336,"d":"$14,583"}},{"$f":"'(Other Computations)'!B14/8","v":{"v":14583.333333333336,"d":"$14,583"}},{"$f":"SUM(O38:Z38)","v":{"v":175000.0000000001,"d":"$175,000"}},{"$f":"'(Other Computations)'!B14/8","v":{"v":14583.333333333336,"d":"$14,583"}},{"$f":"'(Other Computations)'!B14/8","v":{"v":14583.333333333336,"d":"$14,583"}},{"$f":"'(Other Computations)'!B14/8","v":{"v":14583.333333333336,"d":"$14,583"}},{"$f":"'(Other Computations)'!B14/8","v":{"v":14583.333333333336,"d":"$14,583"}},{"$f":"'(Other Computations)'!B14/8","v":{"v":14583.333333333336,"d":"$14,583"}},{"$f":"'(Other Computations)'!B14/8","v":{"v":14583.333333333336,"d":"$14,583"}},{"$f":"'(Other Computations)'!B14/8","v":{"v":14583.333333333336,"d":"$14,583"}},{"$f":"'(Other Computations)'!B14/8","v":{"v":14583.333333333336,"d":"$14,583"}},{"$f":"'(Other Computations)'!B14/8","v":{"v":14583.333333333336,"d":"$14,583"}},{"$f":"'(Other Computations)'!B14/8","v":{"v":14583.333333333336,"d":"$14,583"}},{"$f":"'(Other Computations)'!B14/8","v":{"v":14583.333333333336,"d":"$14,583"}},{"$f":"'(Other Computations)'!B14/8","v":{"v":14583.333333333336,"d":"$14,583"}},{"$f":"SUM(AB38:AM38)","v":{"v":175000.0000000001,"d":"$175,000"}},{"$f":"'(Other Computations)'!B14/8","v":{"v":14583.333333333336,"d":"$14,583"}},{"$f":"'(Other Computations)'!B14/8","v":{"v":14583.333333333336,"d":"$14,583"}},{"$f":"'(Other Computations)'!B14/8","v":{"v":14583.333333333336,"d":"$14,583"}},{"$f":"'(Other Computations)'!B14/8","v":{"v":14583.333333333336,"d":"$14,583"}},{"$f":"'(Other Computations)'!B14/8","v":{"v":14583.333333333336,"d":"$14,583"}},{"$f":"'(Other Computations)'!B14/8","v":{"v":14583.333333333336,"d":"$14,583"}},{"$f":"'(Other Computations)'!B14/8","v":{"v":14583.333333333336,"d":"$14,583"}},{"$f":"'(Other Computations)'!B14/8","v":{"v":14583.333333333336,"d":"$14,583"}},{"$f":"'(Other Computations)'!B14/8","v":{"v":14583.333333333336,"d":"$14,583"}},{"$f":"'(Other Computations)'!B14/8","v":{"v":14583.333333333336,"d":"$14,583"}},{"$f":"'(Other Computations)'!B14/8","v":{"v":14583.333333333336,"d":"$14,583"}},{"$f":"'(Other Computations)'!B14/8","v":{"v":14583.333333333336,"d":"$14,583"}},{"$f":"SUM(AO38:AZ38)","v":{"v":175000.0000000001,"d":"$175,000"}},{"$f":"'(Other Computations)'!B14/8","v":{"v":14583.333333333336,"d":"$14,583"}},{"$f":"'(Other Computations)'!B14/8","v":{"v":14583.333333333336,"d":"$14,583"}},{"$f":"'(Other Computations)'!B14/8","v":{"v":14583.333333333336,"d":"$14,583"}},{"$f":"'(Other Computations)'!B14/8","v":{"v":14583.333333333336,"d":"$14,583"}},{"$f":"'(Other Computations)'!B14/8","v":{"v":14583.333333333336,"d":"$14,583"}},{"$f":"'(Other Computations)'!B14/8","v":{"v":14583.333333333336,"d":"$14,583"}},{"$f":"'(Other Computations)'!B14/8","v":{"v":14583.333333333336,"d":"$14,583"}},{"$f":"'(Other Computations)'!B14/8","v":{"v":14583.333333333336,"d":"$14,583"}},{"$f":"'(Other Computations)'!B14/8","v":{"v":14583.333333333336,"d":"$14,583"}},{"$f":"'(Other Computations)'!B14/8","v":{"v":14583.333333333336,"d":"$14,583"}},{"$f":"'(Other Computations)'!B14/8","v":{"v":14583.333333333336,"d":"$14,583"}},{"$f":"'(Other Computations)'!B14/8","v":{"v":14583.333333333336,"d":"$14,583"}},{"$f":"SUM(BB38:BM38)","v":{"v":175000.0000000001,"d":"$175,000"}},{"$f":"'(Other Computations)'!B14/8","v":{"v":14583.333333333336,"d":"$14,583"}},{"$f":"'(Other Computations)'!B14/8","v":{"v":14583.333333333336,"d":"$14,583"}},{"$f":"'(Other Computations)'!B14/8","v":{"v":14583.333333333336,"d":"$14,583"}},{"$f":"'(Other Computations)'!B14/8","v":{"v":14583.333333333336,"d":"$14,583"}},{"$f":"'(Other Computations)'!B14/8","v":{"v":14583.333333333336,"d":"$14,583"}},{"$f":"'(Other Computations)'!B14/8","v":{"v":14583.333333333336,"d":"$14,583"}},{"$f":"'(Other Computations)'!B14/8","v":{"v":14583.333333333336,"d":"$14,583"}},{"$f":"'(Other Computations)'!B14/8","v":{"v":14583.333333333336,"d":"$14,583"}},{"$f":"'(Other Computations)'!B14/8","v":{"v":14583.333333333336,"d":"$14,583"}},{"$f":"'(Other Computations)'!B14/8","v":{"v":14583.333333333336,"d":"$14,583"}},{"$f":"'(Other Computations)'!B14/8","v":{"v":14583.333333333336,"d":"$14,583"}},{"$f":"'(Other Computations)'!B14/8","v":{"v":14583.333333333336,"d":"$14,583"}},{"$f":"SUM(BO38:BZ38)","v":{"v":175000.0000000001,"d":"$175,000"}},{"$f":"'(Other Computations)'!B14/8","v":{"v":14583.333333333336,"d":"$14,583"}},{"$f":"'(Other Computations)'!B14/8","v":{"v":14583.333333333336,"d":"$14,583"}},{"$f":"'(Other Computations)'!B14/8","v":{"v":14583.333333333336,"d":"$14,583"}},{"$f":"'(Other Computations)'!B14/8","v":{"v":14583.333333333336,"d":"$14,583"}},{"$f":"'(Other Computations)'!B14/8","v":{"v":14583.333333333336,"d":"$14,583"}},{"$f":"'(Other Computations)'!B14/8","v":{"v":14583.333333333336,"d":"$14,583"}},{"$f":"'(Other Computations)'!B14/8","v":{"v":14583.333333333336,"d":"$14,583"}},{"$f":"'(Other Computations)'!B14/8","v":{"v":14583.333333333336,"d":"$14,583"}},{"$f":"'(Other Computations)'!B14/8","v":{"v":14583.333333333336,"d":"$14,583"}},{"$f":"'(Other Computations)'!B14/8","v":{"v":14583.333333333336,"d":"$14,583"}},{"$f":"'(Other Computations)'!B14/8","v":{"v":14583.333333333336,"d":"$14,583"}},{"$f":"'(Other Computations)'!B14/8","v":{"v":14583.333333333336,"d":"$14,583"}},{"$f":"SUM(CB38:CM38)","v":{"v":175000.0000000001,"d":"$175,000"}},{"$f":"'(Other Computations)'!B14/8","v":{"v":14583.333333333336,"d":"$14,583"}},{"$f":"'(Other Computations)'!B14/8","v":{"v":14583.333333333336,"d":"$14,583"}},{"$f":"'(Other Computations)'!B14/8","v":{"v":14583.333333333336,"d":"$14,583"}},{"$f":"'(Other Computations)'!B14/8","v":{"v":14583.333333333336,"d":"$14,583"}},{"$f":"'(Other Computations)'!B14/8","v":{"v":14583.333333333336,"d":"$14,583"}},{"$f":"'(Other Computations)'!B14/8","v":{"v":14583.333333333336,"d":"$14,583"}},{"$f":"'(Other Computations)'!B14/8","v":{"v":14583.333333333336,"d":"$14,583"}},{"$f":"'(Other Computations)'!B14/8","v":{"v":14583.333333333336,"d":"$14,583"}},{"$f":"'(Other Computations)'!B14/8","v":{"v":14583.333333333336,"d":"$14,583"}},{"$f":"'(Other Computations)'!B14/8","v":{"v":14583.333333333336,"d":"$14,583"}},{"$f":"'(Other Computations)'!B14/8","v":{"v":14583.333333333336,"d":"$14,583"}},{"$f":"'(Other Computations)'!B14/8","v":{"v":14583.333333333336,"d":"$14,583"}},{"$f":"SUM(CO38:CZ38)","v":{"v":175000.0000000001,"d":"$175,000"}},{"$f":"'(Other Computations)'!B14/8","v":{"v":14583.333333333336,"d":"$14,583"}},{"$f":"'(Other Computations)'!B14/8","v":{"v":14583.333333333336,"d":"$14,583"}},{"$f":"'(Other Computations)'!B14/8","v":{"v":14583.333333333336,"d":"$14,583"}},{"$f":"'(Other Computations)'!B14/8","v":{"v":14583.333333333336,"d":"$14,583"}},{"$f":"'(Other Computations)'!B14/8","v":{"v":14583.333333333336,"d":"$14,583"}},{"$f":"'(Other Computations)'!B14/8","v":{"v":14583.333333333336,"d":"$14,583"}},{"$f":"'(Other Computations)'!B14/8","v":{"v":14583.333333333336,"d":"$14,583"}},{"$f":"'(Other Computations)'!B14/8","v":{"v":14583.333333333336,"d":"$14,583"}},{"$f":"'(Other Computations)'!B14/8","v":{"v":14583.333333333336,"d":"$14,583"}},{"$f":"'(Other Computations)'!B14/8","v":{"v":14583.333333333336,"d":"$14,583"}},{"$f":"'(Other Computations)'!B14/8","v":{"v":14583.333333333336,"d":"$14,583"}},{"$f":"'(Other Computations)'!B14/8","v":{"v":14583.333333333336,"d":"$14,583"}},{"$f":"SUM(DB38:DM38)","v":{"v":175000.0000000001,"d":"$175,000"}},{"$f":"'(Other Computations)'!B14/8","v":{"v":14583.333333333336,"d":"$14,583"}},{"$f":"'(Other Computations)'!B14/8","v":{"v":14583.333333333336,"d":"$14,583"}},{"$f":"'(Other Computations)'!B14/8","v":{"v":14583.333333333336,"d":"$14,583"}},{"$f":"'(Other Computations)'!B14/8","v":{"v":14583.333333333336,"d":"$14,583"}},{"$f":"'(Other Computations)'!B14/8","v":{"v":14583.333333333336,"d":"$14,583"}},{"$f":"'(Other Computations)'!B14/8","v":{"v":14583.333333333336,"d":"$14,583"}},{"$f":"'(Other Computations)'!B14/8","v":{"v":14583.333333333336,"d":"$14,583"}},{"$f":"'(Other Computations)'!B14/8","v":{"v":14583.333333333336,"d":"$14,583"}},{"$f":"'(Other Computations)'!B14/8","v":{"v":14583.333333333336,"d":"$14,583"}},{"$f":"'(Other Computations)'!B14/8","v":{"v":14583.333333333336,"d":"$14,583"}},{"$f":"'(Other Computations)'!B14/8","v":{"v":14583.333333333336,"d":"$14,583"}},{"$f":"'(Other Computations)'!B14/8","v":{"v":14583.333333333336,"d":"$14,583"}},{"$f":"SUM(DO38:DZ38)","v":{"v":175000.0000000001,"d":"$175,000"}},{"$f":"'(Other Computations)'!B14/8","v":{"v":14583.333333333336,"d":"$14,583"}},{"$f":"'(Other Computations)'!B14/8","v":{"v":14583.333333333336,"d":"$14,583"}},{"$f":"'(Other Computations)'!B14/8","v":{"v":14583.333333333336,"d":"$14,583"}},{"$f":"'(Other Computations)'!B14/8","v":{"v":14583.333333333336,"d":"$14,583"}},{"$f":"'(Other Computations)'!B14/8","v":{"v":14583.333333333336,"d":"$14,583"}},{"$f":"'(Other Computations)'!B14/8","v":{"v":14583.333333333336,"d":"$14,583"}},{"$f":"'(Other Computations)'!B14/8","v":{"v":14583.333333333336,"d":"$14,583"}},{"$f":"'(Other Computations)'!B14/8","v":{"v":14583.333333333336,"d":"$14,583"}},{"$f":"'(Other Computations)'!B14/8","v":{"v":14583.333333333336,"d":"$14,583"}},{"$f":"'(Other Computations)'!B14/8","v":{"v":14583.333333333336,"d":"$14,583"}},{"$f":"'(Other Computations)'!B14/8","v":{"v":14583.333333333336,"d":"$14,583"}},{"$f":"'(Other Computations)'!B14/8","v":{"v":14583.333333333336,"d":"$14,583"}},{"$f":"SUM(EB38:EM38)","v":{"v":175000.0000000001,"d":"$175,000"}}]
[]
[]
[{"$f":"\"Output\"","v":"Output"}]
[{"$f":"\" \"","v":" "}]
[null,{"$f":"ZZZ__FnCalls!F7","v":"Jan 2010"},{"$f":"ZZZ__FnCalls!F8","v":"Feb 2010"},{"$f":"ZZZ__FnCalls!F9","v":"Mar 2010"},{"$f":"ZZZ__FnCalls!F10","v":"Apr 2010"},{"$f":"ZZZ__FnCalls!F11","v":"May 2010"},{"$f":"ZZZ__FnCalls!F12","v":"Jun 2010"},{"$f":"ZZZ__FnCalls!F13","v":"Jul 2010"},{"$f":"ZZZ__FnCalls!F14","v":"Aug 2010"},{"$f":"ZZZ__FnCalls!F15","v":"Sep 2010"},{"$f":"ZZZ__FnCalls!F16","v":"Oct 2010"},{"$f":"ZZZ__FnCalls!F17","v":"Nov 2010"},{"$f":"ZZZ__FnCalls!F18","v":"Dec 2010"},{"$f":"ZZZ__FnCalls!H7","v":"2010"},{"$f":"ZZZ__FnCalls!F19","v":"Jan 2011"},{"$f":"ZZZ__FnCalls!F20","v":"Feb 2011"},{"$f":"ZZZ__FnCalls!F21","v":"Mar 2011"},{"$f":"ZZZ__FnCalls!F22","v":"Apr 2011"},{"$f":"ZZZ__FnCalls!F23","v":"May 2011"},{"$f":"ZZZ__FnCalls!F24","v":"Jun 2011"},{"$f":"ZZZ__FnCalls!F25","v":"Jul 2011"},{"$f":"ZZZ__FnCalls!F26","v":"Aug 2011"},{"$f":"ZZZ__FnCalls!F27","v":"Sep 2011"},{"$f":"ZZZ__FnCalls!F28","v":"Oct 2011"},{"$f":"ZZZ__FnCalls!F29","v":"Nov 2011"},{"$f":"ZZZ__FnCalls!F30","v":"Dec 2011"},{"$f":"ZZZ__FnCalls!H19","v":"2011"},{"$f":"ZZZ__FnCalls!F31","v":"Jan 2012"},{"$f":"ZZZ__FnCalls!F32","v":"Feb 2012"},{"$f":"ZZZ__FnCalls!F33","v":"Mar 2012"},{"$f":"ZZZ__FnCalls!F34","v":"Apr 2012"},{"$f":"ZZZ__FnCalls!F35","v":"May 2012"},{"$f":"ZZZ__FnCalls!F36","v":"Jun 2012"},{"$f":"ZZZ__FnCalls!F37","v":"Jul 2012"},{"$f":"ZZZ__FnCalls!F38","v":"Aug 2012"},{"$f":"ZZZ__FnCalls!F39","v":"Sep 2012"},{"$f":"ZZZ__FnCalls!F40","v":"Oct 2012"},{"$f":"ZZZ__FnCalls!F41","v":"Nov 2012"},{"$f":"ZZZ__FnCalls!F42","v":"Dec 2012"},{"$f":"ZZZ__FnCalls!H31","v":"2012"},{"$f":"ZZZ__FnCalls!F43","v":"Jan 2013"},{"$f":"ZZZ__FnCalls!F44","v":"Feb 2013"},{"$f":"ZZZ__FnCalls!F45","v":"Mar 2013"},{"$f":"ZZZ__FnCalls!F46","v":"Apr 2013"},{"$f":"ZZZ__FnCalls!F47","v":"May 2013"},{"$f":"ZZZ__FnCalls!F48","v":"Jun 2013"},{"$f":"ZZZ__FnCalls!F49","v":"Jul 2013"},{"$f":"ZZZ__FnCalls!F50","v":"Aug 2013"},{"$f":"ZZZ__FnCalls!F51","v":"Sep 2013"},{"$f":"ZZZ__FnCalls!F52","v":"Oct 2013"},{"$f":"ZZZ__FnCalls!F53","v":"Nov 2013"},{"$f":"ZZZ__FnCalls!F54","v":"Dec 2013"},{"$f":"ZZZ__FnCalls!H43","v":"2013"},{"$f":"ZZZ__FnCalls!F55","v":"Jan 2014"},{"$f":"ZZZ__FnCalls!F56","v":"Feb 2014"},{"$f":"ZZZ__FnCalls!F57","v":"Mar 2014"},{"$f":"ZZZ__FnCalls!F58","v":"Apr 2014"},{"$f":"ZZZ__FnCalls!F59","v":"May 2014"},{"$f":"ZZZ__FnCalls!F60","v":"Jun 2014"},{"$f":"ZZZ__FnCalls!F61","v":"Jul 2014"},{"$f":"ZZZ__FnCalls!F62","v":"Aug 2014"},{"$f":"ZZZ__FnCalls!F63","v":"Sep 2014"},{"$f":"ZZZ__FnCalls!F64","v":"Oct 2014"},{"$f":"ZZZ__FnCalls!F65","v":"Nov 2014"},{"$f":"ZZZ__FnCalls!F66","v":"Dec 2014"},{"$f":"ZZZ__FnCalls!H55","v":"2014"},{"$f":"ZZZ__FnCalls!F67","v":"Jan 2015"},{"$f":"ZZZ__FnCalls!F68","v":"Feb 2015"},{"$f":"ZZZ__FnCalls!F69","v":"Mar 2015"},{"$f":"ZZZ__FnCalls!F70","v":"Apr 2015"},{"$f":"ZZZ__FnCalls!F71","v":"May 2015"},{"$f":"ZZZ__FnCalls!F72","v":"Jun 2015"},{"$f":"ZZZ__FnCalls!F73","v":"Jul 2015"},{"$f":"ZZZ__FnCalls!F74","v":"Aug 2015"},{"$f":"ZZZ__FnCalls!F75","v":"Sep 2015"},{"$f":"ZZZ__FnCalls!F76","v":"Oct 2015"},{"$f":"ZZZ__FnCalls!F77","v":"Nov 2015"},{"$f":"ZZZ__FnCalls!F78","v":"Dec 2015"},{"$f":"ZZZ__FnCalls!H67","v":"2015"},{"$f":"ZZZ__FnCalls!F79","v":"Jan 2016"},{"$f":"ZZZ__FnCalls!F80","v":"Feb 2016"},{"$f":"ZZZ__FnCalls!F81","v":"Mar 2016"},{"$f":"ZZZ__FnCalls!F82","v":"Apr 2016"},{"$f":"ZZZ__FnCalls!F83","v":"May 2016"},{"$f":"ZZZ__FnCalls!F84","v":"Jun 2016"},{"$f":"ZZZ__FnCalls!F85","v":"Jul 2016"},{"$f":"ZZZ__FnCalls!F86","v":"Aug 2016"},{"$f":"ZZZ__FnCalls!F87","v":"Sep 2016"},{"$f":"ZZZ__FnCalls!F88","v":"Oct 2016"},{"$f":"ZZZ__FnCalls!F89","v":"Nov 2016"},{"$f":"ZZZ__FnCalls!F90","v":"Dec 2016"},{"$f":"ZZZ__FnCalls!H79","v":"2016"},{"$f":"ZZZ__FnCalls!F91","v":"Jan 2017"},{"$f":"ZZZ__FnCalls!F92","v":"Feb 2017"},{"$f":"ZZZ__FnCalls!F93","v":"Mar 2017"},{"$f":"ZZZ__FnCalls!F94","v":"Apr 2017"},{"$f":"ZZZ__FnCalls!F95","v":"May 2017"},{"$f":"ZZZ__FnCalls!F96","v":"Jun 2017"},{"$f":"ZZZ__FnCalls!F97","v":"Jul 2017"},{"$f":"ZZZ__FnCalls!F98","v":"Aug 2017"},{"$f":"ZZZ__FnCalls!F99","v":"Sep 2017"},{"$f":"ZZZ__FnCalls!F100","v":"Oct 2017"},{"$f":"ZZZ__FnCalls!F101","v":"Nov 2017"},{"$f":"ZZZ__FnCalls!F102","v":"Dec 2017"},{"$f":"ZZZ__FnCalls!H91","v":"2017"},{"$f":"ZZZ__FnCalls!F103","v":"Jan 2018"},{"$f":"ZZZ__FnCalls!F104","v":"Feb 2018"},{"$f":"ZZZ__FnCalls!F105","v":"Mar 2018"},{"$f":"ZZZ__FnCalls!F106","v":"Apr 2018"},{"$f":"ZZZ__FnCalls!F107","v":"May 2018"},{"$f":"ZZZ__FnCalls!F108","v":"Jun 2018"},{"$f":"ZZZ__FnCalls!F109","v":"Jul 2018"},{"$f":"ZZZ__FnCalls!F110","v":"Aug 2018"},{"$f":"ZZZ__FnCalls!F111","v":"Sep 2018"},{"$f":"ZZZ__FnCalls!F112","v":"Oct 2018"},{"$f":"ZZZ__FnCalls!F113","v":"Nov 2018"},{"$f":"ZZZ__FnCalls!F114","v":"Dec 2018"},{"$f":"ZZZ__FnCalls!H103","v":"2018"},{"$f":"ZZZ__FnCalls!F115","v":"Jan 2019"},{"$f":"ZZZ__FnCalls!F116","v":"Feb 2019"},{"$f":"ZZZ__FnCalls!F117","v":"Mar 2019"},{"$f":"ZZZ__FnCalls!F118","v":"Apr 2019"},{"$f":"ZZZ__FnCalls!F119","v":"May 2019"},{"$f":"ZZZ__FnCalls!F120","v":"Jun 2019"},{"$f":"ZZZ__FnCalls!F121","v":"Jul 2019"},{"$f":"ZZZ__FnCalls!F122","v":"Aug 2019"},{"$f":"ZZZ__FnCalls!F123","v":"Sep 2019"},{"$f":"ZZZ__FnCalls!F124","v":"Oct 2019"},{"$f":"ZZZ__FnCalls!F125","v":"Nov 2019"},{"$f":"ZZZ__FnCalls!F126","v":"Dec 2019"},{"$f":"ZZZ__FnCalls!H115","v":"2019"},{"$f":"ZZZ__FnCalls!F127","v":"Jan 2020"},{"$f":"ZZZ__FnCalls!F128","v":"Feb 2020"},{"$f":"ZZZ__FnCalls!F129","v":"Mar 2020"},{"$f":"ZZZ__FnCalls!F130","v":"Apr 2020"},{"$f":"ZZZ__FnCalls!F131","v":"May 2020"},{"$f":"ZZZ__FnCalls!F132","v":"Jun 2020"},{"$f":"ZZZ__FnCalls!F133","v":"Jul 2020"},{"$f":"ZZZ__FnCalls!F134","v":"Aug 2020"},{"$f":"ZZZ__FnCalls!F135","v":"Sep 2020"},{"$f":"ZZZ__FnCalls!F136","v":"Oct 2020"},{"$f":"ZZZ__FnCalls!F137","v":"Nov 2020"},{"$f":"ZZZ__FnCalls!F138","v":"Dec 2020"},{"$f":"ZZZ__FnCalls!H127","v":"2020"}]
[{"$f":"Labels!B64","v":"Output"},{"$f":"B45*(1-Inputs!B21)+B11*Inputs!B21+B46","v":{"v":1175654.926432372,"d":"$1,175,655"}},{"$f":"C45*(1-Inputs!B21)+C11*Inputs!B21+C46","v":{"v":1216499.1556299657,"d":"$1,216,499"}},{"$f":"D45*(1-Inputs!B21)+D11*Inputs!B21+D46","v":{"v":1180238.3266088313,"d":"$1,180,238"}},{"$f":"E45*(1-Inputs!B21)+E11*Inputs!B21+E46","v":{"v":1171664.1189723471,"d":"$1,171,664"}},{"$f":"F45*(1-Inputs!B21)+F11*Inputs!B21+F46","v":{"v":1189628.7776975832,"d":"$1,189,629"}},{"$f":"G45*(1-Inputs!B21)+G11*Inputs!B21+G46","v":{"v":1187215.7929272922,"d":"$1,187,216"}},{"$f":"H45*(1-Inputs!B21)+H11*Inputs!B21+H46","v":{"v":1174144.73767831,"d":"$1,174,145"}},{"$f":"I45*(1-Inputs!B21)+I11*Inputs!B21+I46","v":{"v":1128095.8298228488,"d":"$1,128,096"}},{"$f":"J45*(1-Inputs!B21)+J11*Inputs!B21+J46","v":{"v":1217581.2744300256,"d":"$1,217,581"}},{"$f":"K45*(1-Inputs!B21)+K11*Inputs!B21+K46","v":{"v":1134878.124477945,"d":"$1,134,878"}},{"$f":"L45*(1-Inputs!B21)+L11*Inputs!B21+L46","v":{"v":1166060.5594397543,"d":"$1,166,061"}},{"$f":"M45*(1-Inputs!B21)+M11*Inputs!B21+M46","v":{"v":1199926.5266998792,"d":"$1,199,927"}},{"$f":"SUM(B44:M44)","v":{"v":14141588.150817152,"d":"$14,141,588"}},{"$f":"O45*(1-Inputs!B21)+O11*Inputs!B21+O46","v":{"v":1131088.5728899033,"d":"$1,131,089"}},{"$f":"P45*(1-Inputs!B21)+P11*Inputs!B21+P46","v":{"v":1109883.4959602077,"d":"$1,109,883"}},{"$f":"Q45*(1-Inputs!B21)+Q11*Inputs!B21+Q46","v":{"v":1202541.9097401064,"d":"$1,202,542"}},{"$f":"R45*(1-Inputs!B21)+R11*Inputs!B21+R46","v":{"v":1143332.1205889161,"d":"$1,143,332"}},{"$f":"S45*(1-Inputs!B21)+S11*Inputs!B21+S46","v":{"v":1170728.7611309562,"d":"$1,170,729"}},{"$f":"T45*(1-Inputs!B21)+T11*Inputs!B21+T46","v":{"v":1080237.545098617,"d":"$1,080,238"}},{"$f":"U45*(1-Inputs!B21)+U11*Inputs!B21+U46","v":{"v":1105659.3304914248,"d":"$1,105,659"}},{"$f":"V45*(1-Inputs!B21)+V11*Inputs!B21+V46","v":{"v":1128298.5026589811,"d":"$1,128,299"}},{"$f":"W45*(1-Inputs!B21)+W11*Inputs!B21+W46","v":{"v":1188242.2335332157,"d":"$1,188,242"}},{"$f":"X45*(1-Inputs!B21)+X11*Inputs!B21+X46","v":{"v":1153991.4659884742,"d":"$1,153,991"}},{"$f":"Y45*(1-Inputs!B21)+Y11*Inputs!B21+Y46","v":{"v":1166892.0631257675,"d":"$1,166,892"}},{"$f":"Z45*(1-Inputs!B21)+Z11*Inputs!B21+Z46","v":{"v":1124834.0262284055,"d":"$1,124,834"}},{"$f":"SUM(O44:Z44)","v":{"v":13705730.027434973,"d":"$13,705,730"}},{"$f":"AB45*(1-Inputs!B21)+AB11*Inputs!B21+AB46","v":{"v":1116011.4961176754,"d":"$1,116,011"}},{"$f":"AC45*(1-Inputs!B21)+AC11*Inputs!B21+AC46","v":{"v":1084665.0069361622,"d":"$1,084,665"}},{"$f":"AD45*(1-Inputs!B21)+AD11*Inputs!B21+AD46","v":{"v":1146746.2776198478,"d":"$1,146,746"}},{"$f":"AE45*(1-Inputs!B21)+AE11*Inputs!B21+AE46","v":{"v":1118233.543099685,"d":"$1,118,234"}},{"$f":"AF45*(1-Inputs!B21)+AF11*Inputs!B21+AF46","v":{"v":1128062.3981155711,"d":"$1,128,062"}},{"$f":"AG45*(1-Inputs!B21)+AG11*Inputs!B21+AG46","v":{"v":1114823.043625788,"d":"$1,114,823"}},{"$f":"AH45*(1-Inputs!B21)+AH11*Inputs!B21+AH46","v":{"v":1125541.2986840673,"d":"$1,125,541"}},{"$f":"AI45*(1-Inputs!B21)+AI11*Inputs!B21+AI46","v":{"v":1107654.4052128685,"d":"$1,107,654"}},{"$f":"AJ45*(1-Inputs!B21)+AJ11*Inputs!B21+AJ46","v":{"v":1128289.1451222384,"d":"$1,128,289"}},{"$f":"AK45*(1-Inputs!B21)+AK11*Inputs!B21+AK46","v":{"v":1152260.6966067892,"d":"$1,152,261"}},{"$f":"AL45*(1-Inputs!B21)+AL11*Inputs!B21+AL46","v":{"v":1110826.1762918928,"d":"$1,110,826"}},{"$f":"AM45*(1-Inputs!B21)+AM11*Inputs!B21+AM46","v":{"v":1078373.387871296,"d":"$1,078,373"}},{"$f":"SUM(AB44:AM44)","v":{"v":13411486.875303881,"d":"$13,411,487"}},{"$f":"AO45*(1-Inputs!B21)+AO11*Inputs!B21+AO46","v":{"v":1083931.1094527575,"d":"$1,083,931"}},{"$f":"AP45*(1-Inputs!B21)+AP11*Inputs!B21+AP46","v":{"v":1082880.4587809066,"d":"$1,082,880"}},{"$f":"AQ45*(1-Inputs!B21)+AQ11*Inputs!B21+AQ46","v":{"v":1128504.8362256302,"d":"$1,128,505"}},{"$f":"AR45*(1-Inputs!B21)+AR11*Inputs!B21+AR46","v":{"v":1091509.9843161937,"d":"$1,091,510"}},{"$f":"AS45*(1-Inputs!B21)+AS11*Inputs!B21+AS46","v":{"v":1070806.728601455,"d":"$1,070,807"}},{"$f":"AT45*(1-Inputs!B21)+AT11*Inputs!B21+AT46","v":{"v":1099730.3369632447,"d":"$1,099,730"}},{"$f":"AU45*(1-Inputs!B21)+AU11*Inputs!B21+AU46","v":{"v":1138841.4414596984,"d":"$1,138,841"}},{"$f":"AV45*(1-Inputs!B21)+AV11*Inputs!B21+AV46","v":{"v":1117702.3329934326,"d":"$1,117,702"}},{"$f":"AW45*(1-Inputs!B21)+AW11*Inputs!B21+AW46","v":{"v":1142679.7258875633,"d":"$1,142,680"}},{"$f":"AX45*(1-Inputs!B21)+AX11*Inputs!B21+AX46","v":{"v":1116453.22125228,"d":"$1,116,453"}},{"$f":"AY45*(1-Inputs!B21)+AY11*Inputs!B21+AY46","v":{"v":1044369.2441354354,"d":"$1,044,369"}},{"$f":"AZ45*(1-Inputs!B21)+AZ11*Inputs!B21+AZ46","v":{"v":1080213.5082777678,"d":"$1,080,214"}},{"$f":"SUM(AO44:AZ44)","v":{"v":13197622.928346366,"d":"$13,197,623"}},{"$f":"BB45*(1-Inputs!B21)+BB11*Inputs!B21+BB46","v":{"v":1098380.1635124371,"d":"$1,098,380"}},{"$f":"BC45*(1-Inputs!B21)+BC11*Inputs!B21+BC46","v":{"v":1115754.3960596558,"d":"$1,115,754"}},{"$f":"BD45*(1-Inputs!B21)+BD11*Inputs!B21+BD46","v":{"v":1073029.0089211883,"d":"$1,073,029"}},{"$f":"BE45*(1-Inputs!B21)+BE11*Inputs!B21+BE46","v":{"v":1076697.4308441675,"d":"$1,076,697"}},{"$f":"BF45*(1-Inputs!B21)+BF11*Inputs!B21+BF46","v":{"v":1128132.2756869756,"d":"$1,128,132"}},{"$f":"BG45*(1-Inputs!B21)+BG11*Inputs!B21+BG46","v":{"v":1084801.1964147522,"d":"$1,084,801"}},{"$f":"BH45*(1-Inputs!B21)+BH11*Inputs!B21+BH46","v":{"v":1063157.6608053634,"d":"$1,063,158"}},{"$f":"BI45*(1-Inputs!B21)+BI11*Inputs!B21+BI46","v":{"v":1100876.1572159175,"d":"$1,100,876"}},{"$f":"BJ45*(1-Inputs!B21)+BJ11*Inputs!B21+BJ46","v":{"v":1075483.0792809983,"d":"$1,075,483"}},{"$f":"BK45*(1-Inputs!B21)+BK11*Inputs!B21+BK46","v":{"v":1035787.186552716,"d":"$1,035,787"}},{"$f":"BL45*(1-Inputs!B21)+BL11*Inputs!B21+BL46","v":{"v":1033916.391461075,"d":"$1,033,916"}},{"$f":"BM45*(1-Inputs!B21)+BM11*Inputs!B21+BM46","v":{"v":1128784.0704472219,"d":"$1,128,784"}},{"$f":"SUM(BB44:BM44)","v":{"v":13014799.017202469,"d":"$13,014,799"}},{"$f":"BO45*(1-Inputs!B21)+BO11*Inputs!B21+BO46","v":{"v":1053163.9412302002,"d":"$1,053,164"}},{"$f":"BP45*(1-Inputs!B21)+BP11*Inputs!B21+BP46","v":{"v":1080150.8676080187,"d":"$1,080,151"}},{"$f":"BQ45*(1-Inputs!B21)+BQ11*Inputs!B21+BQ46","v":{"v":1090710.0933758728,"d":"$1,090,710"}},{"$f":"BR45*(1-Inputs!B21)+BR11*Inputs!B21+BR46","v":{"v":1085208.11272716,"d":"$1,085,208"}},{"$f":"BS45*(1-Inputs!B21)+BS11*Inputs!B21+BS46","v":{"v":1073097.0594817838,"d":"$1,073,097"}},{"$f":"BT45*(1-Inputs!B21)+BT11*Inputs!B21+BT46","v":{"v":1023245.0817754384,"d":"$1,023,245"}},{"$f":"BU45*(1-Inputs!B21)+BU11*Inputs!B21+BU46","v":{"v":1050948.0514486542,"d":"$1,050,948"}},{"$f":"BV45*(1-Inputs!B21)+BV11*Inputs!B21+BV46","v":{"v":1107222.5959518524,"d":"$1,107,223"}},{"$f":"BW45*(1-Inputs!B21)+BW11*Inputs!B21+BW46","v":{"v":1074543.7087763196,"d":"$1,074,544"}},{"$f":"BX45*(1-Inputs!B21)+BX11*Inputs!B21+BX46","v":{"v":1052663.880323676,"d":"$1,052,664"}},{"$f":"BY45*(1-Inputs!B21)+BY11*Inputs!B21+BY46","v":{"v":1094880.6036254875,"d":"$1,094,881"}},{"$f":"BZ45*(1-Inputs!B21)+BZ11*Inputs!B21+BZ46","v":{"v":1078897.7802544727,"d":"$1,078,898"}},{"$f":"SUM(BO44:BZ44)","v":{"v":12864731.776578937,"d":"$12,864,732"}},{"$f":"CB45*(1-Inputs!B21)+CB11*Inputs!B21+CB46","v":{"v":1114491.9758501032,"d":"$1,114,492"}},{"$f":"CC45*(1-Inputs!B21)+CC11*Inputs!B21+CC46","v":{"v":1100781.8592925859,"d":"$1,100,782"}},{"$f":"CD45*(1-Inputs!B21)+CD11*Inputs!B21+CD46","v":{"v":1064632.196647075,"d":"$1,064,632"}},{"$f":"CE45*(1-Inputs!B21)+CE11*Inputs!B21+CE46","v":{"v":1065695.7460209813,"d":"$1,065,696"}},{"$f":"CF45*(1-Inputs!B21)+CF11*Inputs!B21+CF46","v":{"v":1083912.4642171478,"d":"$1,083,912"}},{"$f":"CG45*(1-Inputs!B21)+CG11*Inputs!B21+CG46","v":{"v":1041341.7185893086,"d":"$1,041,342"}},{"$f":"CH45*(1-Inputs!B21)+CH11*Inputs!B21+CH46","v":{"v":1081781.4745774271,"d":"$1,081,781"}},{"$f":"CI45*(1-Inputs!B21)+CI11*Inputs!B21+CI46","v":{"v":1082632.7760130623,"d":"$1,082,633"}},{"$f":"CJ45*(1-Inputs!B21)+CJ11*Inputs!B21+CJ46","v":{"v":1110023.4328922112,"d":"$1,110,023"}},{"$f":"CK45*(1-Inputs!B21)+CK11*Inputs!B21+CK46","v":{"v":1015918.8287063236,"d":"$1,015,919"}},{"$f":"CL45*(1-Inputs!B21)+CL11*Inputs!B21+CL46","v":{"v":1059260.128886255,"d":"$1,059,260"}},{"$f":"CM45*(1-Inputs!B21)+CM11*Inputs!B21+CM46","v":{"v":1099048.1054557187,"d":"$1,099,048"}},{"$f":"SUM(CB44:CM44)","v":{"v":12919520.7071482,"d":"$12,919,521"}},{"$f":"CO45*(1-Inputs!B21)+CO11*Inputs!B21+CO46","v":{"v":1035388.8655386878,"d":"$1,035,389"}},{"$f":"CP45*(1-Inputs!B21)+CP11*Inputs!B21+CP46","v":{"v":1047610.100422246,"d":"$1,047,610"}},{"$f":"CQ45*(1-Inputs!B21)+CQ11*Inputs!B21+CQ46","v":{"v":1062779.0634101636,"d":"$1,062,779"}},{"$f":"CR45*(1-Inputs!B21)+CR11*Inputs!B21+CR46","v":{"v":1031798.8801251311,"d":"$1,031,799"}},{"$f":"CS45*(1-Inputs!B21)+CS11*Inputs!B21+CS46","v":{"v":1061475.5130285507,"d":"$1,061,476"}},{"$f":"CT45*(1-Inputs!B21)+CT11*Inputs!B21+CT46","v":{"v":1006767.4143170507,"d":"$1,006,767"}},{"$f":"CU45*(1-Inputs!B21)+CU11*Inputs!B21+CU46","v":{"v":1092928.2898533687,"d":"$1,092,928"}},{"$f":"CV45*(1-Inputs!B21)+CV11*Inputs!B21+CV46","v":{"v":991068.8778923855,"d":"$991,069"}},{"$f":"CW45*(1-Inputs!B21)+CW11*Inputs!B21+CW46","v":{"v":1063651.2561803814,"d":"$1,063,651"}},{"$f":"CX45*(1-Inputs!B21)+CX11*Inputs!B21+CX46","v":{"v":1104247.7930448104,"d":"$1,104,248"}},{"$f":"CY45*(1-Inputs!B21)+CY11*Inputs!B21+CY46","v":{"v":1009816.6110620139,"d":"$1,009,817"}},{"$f":"CZ45*(1-Inputs!B21)+CZ11*Inputs!B21+CZ46","v":{"v":1042972.59722063,"d":"$1,042,973"}},{"$f":"SUM(CO44:CZ44)","v":{"v":12550505.262095422,"d":"$12,550,505"}},{"$f":"DB45*(1-Inputs!B21)+DB11*Inputs!B21+DB46","v":{"v":1043718.799810619,"d":"$1,043,719"}},{"$f":"DC45*(1-Inputs!B21)+DC11*Inputs!B21+DC46","v":{"v":1032008.7030430408,"d":"$1,032,009"}},{"$f":"DD45*(1-Inputs!B21)+DD11*Inputs!B21+DD46","v":{"v":1050826.61682897,"d":"$1,050,827"}},{"$f":"DE45*(1-Inputs!B21)+DE11*Inputs!B21+DE46","v":{"v":1039582.3036894519,"d":"$1,039,582"}},{"$f":"DF45*(1-Inputs!B21)+DF11*Inputs!B21+DF46","v":{"v":1068467.3796826524,"d":"$1,068,467"}},{"$f":"DG45*(1-Inputs!B21)+DG11*Inputs!B21+DG46","v":{"v":1016956.0834135473,"d":"$1,016,956"}},{"$f":"DH45*(1-Inputs!B21)+DH11*Inputs!B21+DH46","v":{"v":1022430.5422559188,"d":"$1,022,431"}},{"$f":"DI45*(1-Inputs!B21)+DI11*Inputs!B21+DI46","v":{"v":1024846.074291284,"d":"$1,024,846"}},{"$f":"DJ45*(1-Inputs!B21)+DJ11*Inputs!B21+DJ46","v":{"v":1038654.9102389631,"d":"$1,038,655"}},{"$f":"DK45*(1-Inputs!B21)+DK11*Inputs!B21+DK46","v":{"v":1063890.6943909358,"d":"$1,063,891"}},{"$f":"DL45*(1-Inputs!B21)+DL11*Inputs!B21+DL46","v":{"v":1082366.0762371935,"d":"$1,082,366"}},{"$f":"DM45*(1-Inputs!B21)+DM11*Inputs!B21+DM46","v":{"v":985459.1523384944,"d":"$985,459"}},{"$f":"SUM(DB44:DM44)","v":{"v":12469207.336221071,"d":"$12,469,207"}},{"$f":"DO45*(1-Inputs!B21)+DO11*Inputs!B21+DO46","v":{"v":1007806.6036831485,"d":"$1,007,807"}},{"$f":"DP45*(1-Inputs!B21)+DP11*Inputs!B21+DP46","v":{"v":981339.2495386767,"d":"$981,339"}},{"$f":"DQ45*(1-Inputs!B21)+DQ11*Inputs!B21+DQ46","v":{"v":1011288.1865904448,"d":"$1,011,288"}},{"$f":"DR45*(1-Inputs!B21)+DR11*Inputs!B21+DR46","v":{"v":1029669.01476951,"d":"$1,029,669"}},{"$f":"DS45*(1-Inputs!B21)+DS11*Inputs!B21+DS46","v":{"v":1007839.4975178933,"d":"$1,007,839"}},{"$f":"DT45*(1-Inputs!B21)+DT11*Inputs!B21+DT46","v":{"v":1018307.0222430099,"d":"$1,018,307"}},{"$f":"DU45*(1-Inputs!B21)+DU11*Inputs!B21+DU46","v":{"v":1013353.0429591592,"d":"$1,013,353"}},{"$f":"DV45*(1-Inputs!B21)+DV11*Inputs!B21+DV46","v":{"v":970318.4769633987,"d":"$970,318"}},{"$f":"DW45*(1-Inputs!B21)+DW11*Inputs!B21+DW46","v":{"v":1023858.8392990597,"d":"$1,023,859"}},{"$f":"DX45*(1-Inputs!B21)+DX11*Inputs!B21+DX46","v":{"v":1018460.8146186146,"d":"$1,018,461"}},{"$f":"DY45*(1-Inputs!B21)+DY11*Inputs!B21+DY46","v":{"v":1012159.3159788504,"d":"$1,012,159"}},{"$f":"DZ45*(1-Inputs!B21)+DZ11*Inputs!B21+DZ46","v":{"v":1023688.9558459918,"d":"$1,023,689"}},{"$f":"SUM(DO44:DZ44)","v":{"v":12118089.02000776,"d":"$12,118,089"}},{"$f":"EB45*(1-Inputs!B21)+EB11*Inputs!B21+EB46","v":{"v":1022115.679677271,"d":"$1,022,116"}},{"$f":"EC45*(1-Inputs!B21)+EC11*Inputs!B21+EC46","v":{"v":995176.5391119426,"d":"$995,177"}},{"$f":"ED45*(1-Inputs!B21)+ED11*Inputs!B21+ED46","v":{"v":955142.1759929734,"d":"$955,142"}},{"$f":"EE45*(1-Inputs!B21)+EE11*Inputs!B21+EE46","v":{"v":1070625.9574901548,"d":"$1,070,626"}},{"$f":"EF45*(1-Inputs!B21)+EF11*Inputs!B21+EF46","v":{"v":1030689.052975053,"d":"$1,030,689"}},{"$f":"EG45*(1-Inputs!B21)+EG11*Inputs!B21+EG46","v":{"v":1011055.3895846726,"d":"$1,011,055"}},{"$f":"EH45*(1-Inputs!B21)+EH11*Inputs!B21+EH46","v":{"v":1043948.8542818102,"d":"$1,043,949"}},{"$f":"EI45*(1-Inputs!B21)+EI11*Inputs!B21+EI46","v":{"v":1020773.0062981694,"d":"$1,020,773"}},{"$f":"EJ45*(1-Inputs!B21)+EJ11*Inputs!B21+EJ46","v":{"v":1005935.5488754868,"d":"$1,005,936"}},{"$f":"EK45*(1-Inputs!B21)+EK11*Inputs!B21+EK46","v":{"v":992872.5647493221,"d":"$992,873"}},{"$f":"EL45*(1-Inputs!B21)+EL11*Inputs!B21+EL46","v":{"v":1029784.1498723784,"d":"$1,029,784"}},{"$f":"EM45*(1-Inputs!B21)+EM11*Inputs!B21+EM46","v":{"v":1003772.7735841861,"d":"$1,003,773"}},{"$f":"SUM(EB44:EM44)","v":{"v":12181891.692493424,"d":"$12,181,892"}}]
[{"$f":"Labels!B68","v":"Potential Output"},{"$f":"'(Other Computations)'!B8*(B28/Inputs!B27)^(1-Inputs!B20)*(B19/'(Other Computations)'!B194)^Inputs!B20","v":{"v":1166666.6666666667,"d":"$1,166,667"}},{"$f":"'(Other Computations)'!B8*(C28/Inputs!B27)^(1-Inputs!B20)*(C19/'(Other Computations)'!B194)^Inputs!B20","v":{"v":1166666.6666666667,"d":"$1,166,667"}},{"$f":"'(Other Computations)'!B8*(D28/Inputs!B27)^(1-Inputs!B20)*(D19/'(Other Computations)'!B194)^Inputs!B20","v":{"v":1166624.2187139338,"d":"$1,166,624"}},{"$f":"'(Other Computations)'!B8*(E28/Inputs!B27)^(1-Inputs!B20)*(E19/'(Other Computations)'!B194)^Inputs!B20","v":{"v":1166534.8720595671,"d":"$1,166,535"}},{"$f":"'(Other Computations)'!B8*(F28/Inputs!B27)^(1-Inputs!B20)*(F19/'(Other Computations)'!B194)^Inputs!B20","v":{"v":1166409.80225496,"d":"$1,166,410"}},{"$f":"'(Other Computations)'!B8*(G28/Inputs!B27)^(1-Inputs!B20)*(G19/'(Other Computations)'!B194)^Inputs!B20","v":{"v":1166260.4309479278,"d":"$1,166,260"}},{"$f":"'(Other Computations)'!B8*(H28/Inputs!B27)^(1-Inputs!B20)*(H19/'(Other Computations)'!B194)^Inputs!B20","v":{"v":1166078.8066857564,"d":"$1,166,079"}},{"$f":"'(Other Computations)'!B8*(I28/Inputs!B27)^(1-Inputs!B20)*(I19/'(Other Computations)'!B194)^Inputs!B20","v":{"v":1165858.9383054685,"d":"$1,165,859"}},{"$f":"'(Other Computations)'!B8*(J28/Inputs!B27)^(1-Inputs!B20)*(J19/'(Other Computations)'!B194)^Inputs!B20","v":{"v":1165605.5971022455,"d":"$1,165,606"}},{"$f":"'(Other Computations)'!B8*(K28/Inputs!B27)^(1-Inputs!B20)*(K19/'(Other Computations)'!B194)^Inputs!B20","v":{"v":1165312.5457392437,"d":"$1,165,313"}},{"$f":"'(Other Computations)'!B8*(L28/Inputs!B27)^(1-Inputs!B20)*(L19/'(Other Computations)'!B194)^Inputs!B20","v":{"v":1164991.0091331275,"d":"$1,164,991"}},{"$f":"'(Other Computations)'!B8*(M28/Inputs!B27)^(1-Inputs!B20)*(M19/'(Other Computations)'!B194)^Inputs!B20","v":{"v":1164640.170218871,"d":"$1,164,640"}},{"$f":"SUM(B45:M45)","v":{"v":13991649.724494435,"d":"$13,991,650"}},{"$f":"'(Other Computations)'!B8*(O28/Inputs!B27)^(1-Inputs!B20)*(O19/'(Other Computations)'!B194)^Inputs!B20","v":{"v":1164252.6235697335,"d":"$1,164,253"}},{"$f":"'(Other Computations)'!B8*(P28/Inputs!B27)^(1-Inputs!B20)*(P19/'(Other Computations)'!B194)^Inputs!B20","v":{"v":1163842.7080241237,"d":"$1,163,843"}},{"$f":"'(Other Computations)'!B8*(Q28/Inputs!B27)^(1-Inputs!B20)*(Q19/'(Other Computations)'!B194)^Inputs!B20","v":{"v":1163401.2284825528,"d":"$1,163,401"}},{"$f":"'(Other Computations)'!B8*(R28/Inputs!B27)^(1-Inputs!B20)*(R19/'(Other Computations)'!B194)^Inputs!B20","v":{"v":1162938.7197828842,"d":"$1,162,939"}},{"$f":"'(Other Computations)'!B8*(S28/Inputs!B27)^(1-Inputs!B20)*(S19/'(Other Computations)'!B194)^Inputs!B20","v":{"v":1162456.6230649697,"d":"$1,162,457"}},{"$f":"'(Other Computations)'!B8*(T28/Inputs!B27)^(1-Inputs!B20)*(T19/'(Other Computations)'!B194)^Inputs!B20","v":{"v":1161947.5462196763,"d":"$1,161,948"}},{"$f":"'(Other Computations)'!B8*(U28/Inputs!B27)^(1-Inputs!B20)*(U19/'(Other Computations)'!B194)^Inputs!B20","v":{"v":1161412.5040316018,"d":"$1,161,413"}},{"$f":"'(Other Computations)'!B8*(V28/Inputs!B27)^(1-Inputs!B20)*(V19/'(Other Computations)'!B194)^Inputs!B20","v":{"v":1160852.2748195797,"d":"$1,160,852"}},{"$f":"'(Other Computations)'!B8*(W28/Inputs!B27)^(1-Inputs!B20)*(W19/'(Other Computations)'!B194)^Inputs!B20","v":{"v":1160261.4001573145,"d":"$1,160,261"}},{"$f":"'(Other Computations)'!B8*(X28/Inputs!B27)^(1-Inputs!B20)*(X19/'(Other Computations)'!B194)^Inputs!B20","v":{"v":1159643.3942739053,"d":"$1,159,643"}},{"$f":"'(Other Computations)'!B8*(Y28/Inputs!B27)^(1-Inputs!B20)*(Y19/'(Other Computations)'!B194)^Inputs!B20","v":{"v":1159000.871973843,"d":"$1,159,001"}},{"$f":"'(Other Computations)'!B8*(Z28/Inputs!B27)^(1-Inputs!B20)*(Z19/'(Other Computations)'!B194)^Inputs!B20","v":{"v":1158333.2762300794,"d":"$1,158,333"}},{"$f":"SUM(O45:Z45)","v":{"v":13938343.170630263,"d":"$13,938,343"}},{"$f":"'(Other Computations)'!B8*(AB28/Inputs!B27)^(1-Inputs!B20)*(AB19/'(Other Computations)'!B194)^Inputs!B20","v":{"v":1157634.1247260794,"d":"$1,157,634"}},{"$f":"'(Other Computations)'!B8*(AC28/Inputs!B27)^(1-Inputs!B20)*(AC19/'(Other Computations)'!B194)^Inputs!B20","v":{"v":1156919.6921184312,"d":"$1,156,920"}},{"$f":"'(Other Computations)'!B8*(AD28/Inputs!B27)^(1-Inputs!B20)*(AD19/'(Other Computations)'!B194)^Inputs!B20","v":{"v":1156187.091933866,"d":"$1,156,187"}},{"$f":"'(Other Computations)'!B8*(AE28/Inputs!B27)^(1-Inputs!B20)*(AE19/'(Other Computations)'!B194)^Inputs!B20","v":{"v":1155437.543849275,"d":"$1,155,438"}},{"$f":"'(Other Computations)'!B8*(AF28/Inputs!B27)^(1-Inputs!B20)*(AF19/'(Other Computations)'!B194)^Inputs!B20","v":{"v":1154671.0893032067,"d":"$1,154,671"}},{"$f":"'(Other Computations)'!B8*(AG28/Inputs!B27)^(1-Inputs!B20)*(AG19/'(Other Computations)'!B194)^Inputs!B20","v":{"v":1153900.0642284197,"d":"$1,153,900"}},{"$f":"'(Other Computations)'!B8*(AH28/Inputs!B27)^(1-Inputs!B20)*(AH19/'(Other Computations)'!B194)^Inputs!B20","v":{"v":1153113.006379867,"d":"$1,153,113"}},{"$f":"'(Other Computations)'!B8*(AI28/Inputs!B27)^(1-Inputs!B20)*(AI19/'(Other Computations)'!B194)^Inputs!B20","v":{"v":1152307.605253306,"d":"$1,152,308"}},{"$f":"'(Other Computations)'!B8*(AJ28/Inputs!B27)^(1-Inputs!B20)*(AJ19/'(Other Computations)'!B194)^Inputs!B20","v":{"v":1151490.658645558,"d":"$1,151,491"}},{"$f":"'(Other Computations)'!B8*(AK28/Inputs!B27)^(1-Inputs!B20)*(AK19/'(Other Computations)'!B194)^Inputs!B20","v":{"v":1150650.0338046642,"d":"$1,150,650"}},{"$f":"'(Other Computations)'!B8*(AL28/Inputs!B27)^(1-Inputs!B20)*(AL19/'(Other Computations)'!B194)^Inputs!B20","v":{"v":1149796.464796544,"d":"$1,149,796"}},{"$f":"'(Other Computations)'!B8*(AM28/Inputs!B27)^(1-Inputs!B20)*(AM19/'(Other Computations)'!B194)^Inputs!B20","v":{"v":1148934.2907194137,"d":"$1,148,934"}},{"$f":"SUM(AB45:AM45)","v":{"v":13841041.66575863,"d":"$13,841,042"}},{"$f":"'(Other Computations)'!B8*(AO28/Inputs!B27)^(1-Inputs!B20)*(AO19/'(Other Computations)'!B194)^Inputs!B20","v":{"v":1148068.7521982563,"d":"$1,148,069"}},{"$f":"'(Other Computations)'!B8*(AP28/Inputs!B27)^(1-Inputs!B20)*(AP19/'(Other Computations)'!B194)^Inputs!B20","v":{"v":1147187.1073069538,"d":"$1,147,187"}},{"$f":"'(Other Computations)'!B8*(AQ28/Inputs!B27)^(1-Inputs!B20)*(AQ19/'(Other Computations)'!B194)^Inputs!B20","v":{"v":1146292.2085144343,"d":"$1,146,292"}},{"$f":"'(Other Computations)'!B8*(AR28/Inputs!B27)^(1-Inputs!B20)*(AR19/'(Other Computations)'!B194)^Inputs!B20","v":{"v":1145389.3099924938,"d":"$1,145,389"}},{"$f":"'(Other Computations)'!B8*(AS28/Inputs!B27)^(1-Inputs!B20)*(AS19/'(Other Computations)'!B194)^Inputs!B20","v":{"v":1144478.2633979092,"d":"$1,144,478"}},{"$f":"'(Other Computations)'!B8*(AT28/Inputs!B27)^(1-Inputs!B20)*(AT19/'(Other Computations)'!B194)^Inputs!B20","v":{"v":1143553.2543371585,"d":"$1,143,553"}},{"$f":"'(Other Computations)'!B8*(AU28/Inputs!B27)^(1-Inputs!B20)*(AU19/'(Other Computations)'!B194)^Inputs!B20","v":{"v":1142621.0982922043,"d":"$1,142,621"}},{"$f":"'(Other Computations)'!B8*(AV28/Inputs!B27)^(1-Inputs!B20)*(AV19/'(Other Computations)'!B194)^Inputs!B20","v":{"v":1141681.9647371517,"d":"$1,141,682"}},{"$f":"'(Other Computations)'!B8*(AW28/Inputs!B27)^(1-Inputs!B20)*(AW19/'(Other Computations)'!B194)^Inputs!B20","v":{"v":1140734.46974563,"d":"$1,140,734"}},{"$f":"'(Other Computations)'!B8*(AX28/Inputs!B27)^(1-Inputs!B20)*(AX19/'(Other Computations)'!B194)^Inputs!B20","v":{"v":1139779.7143739017,"d":"$1,139,780"}},{"$f":"'(Other Computations)'!B8*(AY28/Inputs!B27)^(1-Inputs!B20)*(AY19/'(Other Computations)'!B194)^Inputs!B20","v":{"v":1138805.1036975426,"d":"$1,138,805"}},{"$f":"'(Other Computations)'!B8*(AZ28/Inputs!B27)^(1-Inputs!B20)*(AZ19/'(Other Computations)'!B194)^Inputs!B20","v":{"v":1137820.469518119,"d":"$1,137,820"}},{"$f":"SUM(AO45:AZ45)","v":{"v":13716411.716111755,"d":"$13,716,412"}},{"$f":"'(Other Computations)'!B8*(BB28/Inputs!B27)^(1-Inputs!B20)*(BB19/'(Other Computations)'!B194)^Inputs!B20","v":{"v":1136835.6081474456,"d":"$1,136,836"}},{"$f":"'(Other Computations)'!B8*(BC28/Inputs!B27)^(1-Inputs!B20)*(BC19/'(Other Computations)'!B194)^Inputs!B20","v":{"v":1135841.8802178802,"d":"$1,135,842"}},{"$f":"'(Other Computations)'!B8*(BD28/Inputs!B27)^(1-Inputs!B20)*(BD19/'(Other Computations)'!B194)^Inputs!B20","v":{"v":1134836.378423485,"d":"$1,134,836"}},{"$f":"'(Other Computations)'!B8*(BE28/Inputs!B27)^(1-Inputs!B20)*(BE19/'(Other Computations)'!B194)^Inputs!B20","v":{"v":1133824.853454022,"d":"$1,133,825"}},{"$f":"'(Other Computations)'!B8*(BF28/Inputs!B27)^(1-Inputs!B20)*(BF19/'(Other Computations)'!B194)^Inputs!B20","v":{"v":1132814.614392434,"d":"$1,132,815"}},{"$f":"'(Other Computations)'!B8*(BG28/Inputs!B27)^(1-Inputs!B20)*(BG19/'(Other Computations)'!B194)^Inputs!B20","v":{"v":1131797.1582848276,"d":"$1,131,797"}},{"$f":"'(Other Computations)'!B8*(BH28/Inputs!B27)^(1-Inputs!B20)*(BH19/'(Other Computations)'!B194)^Inputs!B20","v":{"v":1130779.4861253912,"d":"$1,130,779"}},{"$f":"'(Other Computations)'!B8*(BI28/Inputs!B27)^(1-Inputs!B20)*(BI19/'(Other Computations)'!B194)^Inputs!B20","v":{"v":1129749.4910042118,"d":"$1,129,749"}},{"$f":"'(Other Computations)'!B8*(BJ28/Inputs!B27)^(1-Inputs!B20)*(BJ19/'(Other Computations)'!B194)^Inputs!B20","v":{"v":1128710.0114783866,"d":"$1,128,710"}},{"$f":"'(Other Computations)'!B8*(BK28/Inputs!B27)^(1-Inputs!B20)*(BK19/'(Other Computations)'!B194)^Inputs!B20","v":{"v":1127656.0442033315,"d":"$1,127,656"}},{"$f":"'(Other Computations)'!B8*(BL28/Inputs!B27)^(1-Inputs!B20)*(BL19/'(Other Computations)'!B194)^Inputs!B20","v":{"v":1126603.094482114,"d":"$1,126,603"}},{"$f":"'(Other Computations)'!B8*(BM28/Inputs!B27)^(1-Inputs!B20)*(BM19/'(Other Computations)'!B194)^Inputs!B20","v":{"v":1125542.9360400634,"d":"$1,125,543"}},{"$f":"SUM(BB45:BM45)","v":{"v":13574991.556253593,"d":"$13,574,992"}},{"$f":"'(Other Computations)'!B8*(BO28/Inputs!B27)^(1-Inputs!B20)*(BO19/'(Other Computations)'!B194)^Inputs!B20","v":{"v":1124480.4948181426,"d":"$1,124,480"}},{"$f":"'(Other Computations)'!B8*(BP28/Inputs!B27)^(1-Inputs!B20)*(BP19/'(Other Computations)'!B194)^Inputs!B20","v":{"v":1123403.979849821,"d":"$1,123,404"}},{"$f":"'(Other Computations)'!B8*(BQ28/Inputs!B27)^(1-Inputs!B20)*(BQ19/'(Other Computations)'!B194)^Inputs!B20","v":{"v":1122312.4866025567,"d":"$1,122,312"}},{"$f":"'(Other Computations)'!B8*(BR28/Inputs!B27)^(1-Inputs!B20)*(BR19/'(Other Computations)'!B194)^Inputs!B20","v":{"v":1121211.2250201376,"d":"$1,121,211"}},{"$f":"'(Other Computations)'!B8*(BS28/Inputs!B27)^(1-Inputs!B20)*(BS19/'(Other Computations)'!B194)^Inputs!B20","v":{"v":1120111.4768033796,"d":"$1,120,111"}},{"$f":"'(Other Computations)'!B8*(BT28/Inputs!B27)^(1-Inputs!B20)*(BT19/'(Other Computations)'!B194)^Inputs!B20","v":{"v":1119016.641482197,"d":"$1,119,017"}},{"$f":"'(Other Computations)'!B8*(BU28/Inputs!B27)^(1-Inputs!B20)*(BU19/'(Other Computations)'!B194)^Inputs!B20","v":{"v":1117910.2899433058,"d":"$1,117,910"}},{"$f":"'(Other Computations)'!B8*(BV28/Inputs!B27)^(1-Inputs!B20)*(BV19/'(Other Computations)'!B194)^Inputs!B20","v":{"v":1116811.4463295545,"d":"$1,116,811"}},{"$f":"'(Other Computations)'!B8*(BW28/Inputs!B27)^(1-Inputs!B20)*(BW19/'(Other Computations)'!B194)^Inputs!B20","v":{"v":1115706.3177281402,"d":"$1,115,706"}},{"$f":"'(Other Computations)'!B8*(BX28/Inputs!B27)^(1-Inputs!B20)*(BX19/'(Other Computations)'!B194)^Inputs!B20","v":{"v":1114603.7383196168,"d":"$1,114,604"}},{"$f":"'(Other Computations)'!B8*(BY28/Inputs!B27)^(1-Inputs!B20)*(BY19/'(Other Computations)'!B194)^Inputs!B20","v":{"v":1113500.571891761,"d":"$1,113,501"}},{"$f":"'(Other Computations)'!B8*(BZ28/Inputs!B27)^(1-Inputs!B20)*(BZ19/'(Other Computations)'!B194)^Inputs!B20","v":{"v":1112385.5652560617,"d":"$1,112,386"}},{"$f":"SUM(BO45:BZ45)","v":{"v":13421454.234044673,"d":"$13,421,454"}},{"$f":"'(Other Computations)'!B8*(CB28/Inputs!B27)^(1-Inputs!B20)*(CB19/'(Other Computations)'!B194)^Inputs!B20","v":{"v":1111281.2328834445,"d":"$1,111,281"}},{"$f":"'(Other Computations)'!B8*(CC28/Inputs!B27)^(1-Inputs!B20)*(CC19/'(Other Computations)'!B194)^Inputs!B20","v":{"v":1110177.8049668176,"d":"$1,110,178"}},{"$f":"'(Other Computations)'!B8*(CD28/Inputs!B27)^(1-Inputs!B20)*(CD19/'(Other Computations)'!B194)^Inputs!B20","v":{"v":1109078.1322449902,"d":"$1,109,078"}},{"$f":"'(Other Computations)'!B8*(CE28/Inputs!B27)^(1-Inputs!B20)*(CE19/'(Other Computations)'!B194)^Inputs!B20","v":{"v":1107973.3551980245,"d":"$1,107,973"}},{"$f":"'(Other Computations)'!B8*(CF28/Inputs!B27)^(1-Inputs!B20)*(CF19/'(Other Computations)'!B194)^Inputs!B20","v":{"v":1106866.977591607,"d":"$1,106,867"}},{"$f":"'(Other Computations)'!B8*(CG28/Inputs!B27)^(1-Inputs!B20)*(CG19/'(Other Computations)'!B194)^Inputs!B20","v":{"v":1105767.5908488424,"d":"$1,105,768"}},{"$f":"'(Other Computations)'!B8*(CH28/Inputs!B27)^(1-Inputs!B20)*(CH19/'(Other Computations)'!B194)^Inputs!B20","v":{"v":1104671.163664658,"d":"$1,104,671"}},{"$f":"'(Other Computations)'!B8*(CI28/Inputs!B27)^(1-Inputs!B20)*(CI19/'(Other Computations)'!B194)^Inputs!B20","v":{"v":1103580.7559526488,"d":"$1,103,581"}},{"$f":"'(Other Computations)'!B8*(CJ28/Inputs!B27)^(1-Inputs!B20)*(CJ19/'(Other Computations)'!B194)^Inputs!B20","v":{"v":1102490.6129896264,"d":"$1,102,491"}},{"$f":"'(Other Computations)'!B8*(CK28/Inputs!B27)^(1-Inputs!B20)*(CK19/'(Other Computations)'!B194)^Inputs!B20","v":{"v":1101408.359033326,"d":"$1,101,408"}},{"$f":"'(Other Computations)'!B8*(CL28/Inputs!B27)^(1-Inputs!B20)*(CL19/'(Other Computations)'!B194)^Inputs!B20","v":{"v":1100318.5013804147,"d":"$1,100,319"}},{"$f":"'(Other Computations)'!B8*(CM28/Inputs!B27)^(1-Inputs!B20)*(CM19/'(Other Computations)'!B194)^Inputs!B20","v":{"v":1099228.0754732904,"d":"$1,099,228"}},{"$f":"SUM(CB45:CM45)","v":{"v":13262842.562227689,"d":"$13,262,843"}},{"$f":"'(Other Computations)'!B8*(CO28/Inputs!B27)^(1-Inputs!B20)*(CO19/'(Other Computations)'!B194)^Inputs!B20","v":{"v":1098128.6535262265,"d":"$1,098,129"}},{"$f":"'(Other Computations)'!B8*(CP28/Inputs!B27)^(1-Inputs!B20)*(CP19/'(Other Computations)'!B194)^Inputs!B20","v":{"v":1097028.7843883573,"d":"$1,097,029"}},{"$f":"'(Other Computations)'!B8*(CQ28/Inputs!B27)^(1-Inputs!B20)*(CQ19/'(Other Computations)'!B194)^Inputs!B20","v":{"v":1095925.5962708027,"d":"$1,095,926"}},{"$f":"'(Other Computations)'!B8*(CR28/Inputs!B27)^(1-Inputs!B20)*(CR19/'(Other Computations)'!B194)^Inputs!B20","v":{"v":1094823.8208696595,"d":"$1,094,824"}},{"$f":"'(Other Computations)'!B8*(CS28/Inputs!B27)^(1-Inputs!B20)*(CS19/'(Other Computations)'!B194)^Inputs!B20","v":{"v":1093726.222970742,"d":"$1,093,726"}},{"$f":"'(Other Computations)'!B8*(CT28/Inputs!B27)^(1-Inputs!B20)*(CT19/'(Other Computations)'!B194)^Inputs!B20","v":{"v":1092627.3872337674,"d":"$1,092,627"}},{"$f":"'(Other Computations)'!B8*(CU28/Inputs!B27)^(1-Inputs!B20)*(CU19/'(Other Computations)'!B194)^Inputs!B20","v":{"v":1091534.0178523469,"d":"$1,091,534"}},{"$f":"'(Other Computations)'!B8*(CV28/Inputs!B27)^(1-Inputs!B20)*(CV19/'(Other Computations)'!B194)^Inputs!B20","v":{"v":1090435.5923683904,"d":"$1,090,436"}},{"$f":"'(Other Computations)'!B8*(CW28/Inputs!B27)^(1-Inputs!B20)*(CW19/'(Other Computations)'!B194)^Inputs!B20","v":{"v":1089346.4527285872,"d":"$1,089,346"}},{"$f":"'(Other Computations)'!B8*(CX28/Inputs!B27)^(1-Inputs!B20)*(CX19/'(Other Computations)'!B194)^Inputs!B20","v":{"v":1088257.6199468982,"d":"$1,088,258"}},{"$f":"'(Other Computations)'!B8*(CY28/Inputs!B27)^(1-Inputs!B20)*(CY19/'(Other Computations)'!B194)^Inputs!B20","v":{"v":1087178.0300905784,"d":"$1,087,178"}},{"$f":"'(Other Computations)'!B8*(CZ28/Inputs!B27)^(1-Inputs!B20)*(CZ19/'(Other Computations)'!B194)^Inputs!B20","v":{"v":1086088.5220733096,"d":"$1,086,089"}},{"$f":"SUM(CO45:CZ45)","v":{"v":13105100.700319665,"d":"$13,105,101"}},{"$f":"'(Other Computations)'!B8*(DB28/Inputs!B27)^(1-Inputs!B20)*(DB19/'(Other Computations)'!B194)^Inputs!B20","v":{"v":1085007.163304483,"d":"$1,085,007"}},{"$f":"'(Other Computations)'!B8*(DC28/Inputs!B27)^(1-Inputs!B20)*(DC19/'(Other Computations)'!B194)^Inputs!B20","v":{"v":1083926.2687074852,"d":"$1,083,926"}},{"$f":"'(Other Computations)'!B8*(DD28/Inputs!B27)^(1-Inputs!B20)*(DD19/'(Other Computations)'!B194)^Inputs!B20","v":{"v":1082845.3272104661,"d":"$1,082,845"}},{"$f":"'(Other Computations)'!B8*(DE28/Inputs!B27)^(1-Inputs!B20)*(DE19/'(Other Computations)'!B194)^Inputs!B20","v":{"v":1081770.44267508,"d":"$1,081,770"}},{"$f":"'(Other Computations)'!B8*(DF28/Inputs!B27)^(1-Inputs!B20)*(DF19/'(Other Computations)'!B194)^Inputs!B20","v":{"v":1080695.1675135423,"d":"$1,080,695"}},{"$f":"'(Other Computations)'!B8*(DG28/Inputs!B27)^(1-Inputs!B20)*(DG19/'(Other Computations)'!B194)^Inputs!B20","v":{"v":1079626.5194640376,"d":"$1,079,627"}},{"$f":"'(Other Computations)'!B8*(DH28/Inputs!B27)^(1-Inputs!B20)*(DH19/'(Other Computations)'!B194)^Inputs!B20","v":{"v":1078566.5234709198,"d":"$1,078,567"}},{"$f":"'(Other Computations)'!B8*(DI28/Inputs!B27)^(1-Inputs!B20)*(DI19/'(Other Computations)'!B194)^Inputs!B20","v":{"v":1077508.8483989402,"d":"$1,077,509"}},{"$f":"'(Other Computations)'!B8*(DJ28/Inputs!B27)^(1-Inputs!B20)*(DJ19/'(Other Computations)'!B194)^Inputs!B20","v":{"v":1076454.7302869847,"d":"$1,076,455"}},{"$f":"'(Other Computations)'!B8*(DK28/Inputs!B27)^(1-Inputs!B20)*(DK19/'(Other Computations)'!B194)^Inputs!B20","v":{"v":1075405.0640383407,"d":"$1,075,405"}},{"$f":"'(Other Computations)'!B8*(DL28/Inputs!B27)^(1-Inputs!B20)*(DL19/'(Other Computations)'!B194)^Inputs!B20","v":{"v":1074367.1556992838,"d":"$1,074,367"}},{"$f":"'(Other Computations)'!B8*(DM28/Inputs!B27)^(1-Inputs!B20)*(DM19/'(Other Computations)'!B194)^Inputs!B20","v":{"v":1073325.3614749634,"d":"$1,073,325"}},{"$f":"SUM(DB45:DM45)","v":{"v":12949498.572244523,"d":"$12,949,499"}},{"$f":"'(Other Computations)'!B8*(DO28/Inputs!B27)^(1-Inputs!B20)*(DO19/'(Other Computations)'!B194)^Inputs!B20","v":{"v":1072274.6862827525,"d":"$1,072,275"}},{"$f":"'(Other Computations)'!B8*(DP28/Inputs!B27)^(1-Inputs!B20)*(DP19/'(Other Computations)'!B194)^Inputs!B20","v":{"v":1071219.6920326632,"d":"$1,071,220"}},{"$f":"'(Other Computations)'!B8*(DQ28/Inputs!B27)^(1-Inputs!B20)*(DQ19/'(Other Computations)'!B194)^Inputs!B20","v":{"v":1070174.1006907301,"d":"$1,070,174"}},{"$f":"'(Other Computations)'!B8*(DR28/Inputs!B27)^(1-Inputs!B20)*(DR19/'(Other Computations)'!B194)^Inputs!B20","v":{"v":1069122.5514295602,"d":"$1,069,123"}},{"$f":"'(Other Computations)'!B8*(DS28/Inputs!B27)^(1-Inputs!B20)*(DS19/'(Other Computations)'!B194)^Inputs!B20","v":{"v":1068075.2889766768,"d":"$1,068,075"}},{"$f":"'(Other Computations)'!B8*(DT28/Inputs!B27)^(1-Inputs!B20)*(DT19/'(Other Computations)'!B194)^Inputs!B20","v":{"v":1067029.6237462375,"d":"$1,067,030"}},{"$f":"'(Other Computations)'!B8*(DU28/Inputs!B27)^(1-Inputs!B20)*(DU19/'(Other Computations)'!B194)^Inputs!B20","v":{"v":1065981.9687070844,"d":"$1,065,982"}},{"$f":"'(Other Computations)'!B8*(DV28/Inputs!B27)^(1-Inputs!B20)*(DV19/'(Other Computations)'!B194)^Inputs!B20","v":{"v":1064940.0904661783,"d":"$1,064,940"}},{"$f":"'(Other Computations)'!B8*(DW28/Inputs!B27)^(1-Inputs!B20)*(DW19/'(Other Computations)'!B194)^Inputs!B20","v":{"v":1063907.2191937745,"d":"$1,063,907"}},{"$f":"'(Other Computations)'!B8*(DX28/Inputs!B27)^(1-Inputs!B20)*(DX19/'(Other Computations)'!B194)^Inputs!B20","v":{"v":1062882.1668139861,"d":"$1,062,882"}},{"$f":"'(Other Computations)'!B8*(DY28/Inputs!B27)^(1-Inputs!B20)*(DY19/'(Other Computations)'!B194)^Inputs!B20","v":{"v":1061853.4425053066,"d":"$1,061,853"}},{"$f":"'(Other Computations)'!B8*(DZ28/Inputs!B27)^(1-Inputs!B20)*(DZ19/'(Other Computations)'!B194)^Inputs!B20","v":{"v":1060833.7162735248,"d":"$1,060,834"}},{"$f":"SUM(DO45:DZ45)","v":{"v":12798294.547118478,"d":"$12,798,295"}},{"$f":"'(Other Computations)'!B8*(EB28/Inputs!B27)^(1-Inputs!B20)*(EB19/'(Other Computations)'!B194)^Inputs!B20","v":{"v":1059817.3003355209,"d":"$1,059,817"}},{"$f":"'(Other Computations)'!B8*(EC28/Inputs!B27)^(1-Inputs!B20)*(EC19/'(Other Computations)'!B194)^Inputs!B20","v":{"v":1058797.1234758557,"d":"$1,058,797"}},{"$f":"'(Other Computations)'!B8*(ED28/Inputs!B27)^(1-Inputs!B20)*(ED19/'(Other Computations)'!B194)^Inputs!B20","v":{"v":1057787.13172076,"d":"$1,057,787"}},{"$f":"'(Other Computations)'!B8*(EE28/Inputs!B27)^(1-Inputs!B20)*(EE19/'(Other Computations)'!B194)^Inputs!B20","v":{"v":1056784.2811309535,"d":"$1,056,784"}},{"$f":"'(Other Computations)'!B8*(EF28/Inputs!B27)^(1-Inputs!B20)*(EF19/'(Other Computations)'!B194)^Inputs!B20","v":{"v":1055774.5226793028,"d":"$1,055,775"}},{"$f":"'(Other Computations)'!B8*(EG28/Inputs!B27)^(1-Inputs!B20)*(EG19/'(Other Computations)'!B194)^Inputs!B20","v":{"v":1054768.1119198054,"d":"$1,054,768"}},{"$f":"'(Other Computations)'!B8*(EH28/Inputs!B27)^(1-Inputs!B20)*(EH19/'(Other Computations)'!B194)^Inputs!B20","v":{"v":1053775.394267391,"d":"$1,053,775"}},{"$f":"'(Other Computations)'!B8*(EI28/Inputs!B27)^(1-Inputs!B20)*(EI19/'(Other Computations)'!B194)^Inputs!B20","v":{"v":1052779.7950311182,"d":"$1,052,780"}},{"$f":"'(Other Computations)'!B8*(EJ28/Inputs!B27)^(1-Inputs!B20)*(EJ19/'(Other Computations)'!B194)^Inputs!B20","v":{"v":1051783.5525804677,"d":"$1,051,784"}},{"$f":"'(Other Computations)'!B8*(EK28/Inputs!B27)^(1-Inputs!B20)*(EK19/'(Other Computations)'!B194)^Inputs!B20","v":{"v":1050784.6900369453,"d":"$1,050,785"}},{"$f":"'(Other Computations)'!B8*(EL28/Inputs!B27)^(1-Inputs!B20)*(EL19/'(Other Computations)'!B194)^Inputs!B20","v":{"v":1049792.9487485108,"d":"$1,049,793"}},{"$f":"'(Other Computations)'!B8*(EM28/Inputs!B27)^(1-Inputs!B20)*(EM19/'(Other Computations)'!B194)^Inputs!B20","v":{"v":1048802.2529572179,"d":"$1,048,802"}},{"$f":"SUM(EB45:EM45)","v":{"v":12651447.10488385,"d":"$12,651,447"}}]
[{"$f":"Labels!B78","v":"Output Shock"},{"$f":"NORMINV(RAND()*(1-2*Inputs!B58)+Inputs!B58,0,'(Other Computations)'!B208)","v":{"v":8988.25976570529,"d":"$8,988"}},{"$f":"NORMINV(RAND()*(1-2*Inputs!B58)+Inputs!B58,0,'(Other Computations)'!B208)","v":{"v":51329.4248934539,"d":"$51,329"}},{"$f":"NORMINV(RAND()*(1-2*Inputs!B58)+Inputs!B58,0,'(Other Computations)'!B208)","v":{"v":16769.532510940757,"d":"$16,770"}},{"$f":"NORMINV(RAND()*(1-2*Inputs!B58)+Inputs!B58,0,'(Other Computations)'!B208)","v":{"v":9554.094526812523,"d":"$9,554"}},{"$f":"NORMINV(RAND()*(1-2*Inputs!B58)+Inputs!B58,0,'(Other Computations)'!B208)","v":{"v":28514.266504401465,"d":"$28,514"}},{"$f":"NORMINV(RAND()*(1-2*Inputs!B58)+Inputs!B58,0,'(Other Computations)'!B208)","v":{"v":27404.02329314825,"d":"$27,404"}},{"$f":"NORMINV(RAND()*(1-2*Inputs!B58)+Inputs!B58,0,'(Other Computations)'!B208)","v":{"v":15882.582047969521,"d":"$15,883"}},{"$f":"NORMINV(RAND()*(1-2*Inputs!B58)+Inputs!B58,0,'(Other Computations)'!B208)","v":{"v":-28742.742669848187,"d":"($28,743)"}},{"$f":"NORMINV(RAND()*(1-2*Inputs!B58)+Inputs!B58,0,'(Other Computations)'!B208)","v":{"v":62423.10509404799,"d":"$62,423"}},{"$f":"NORMINV(RAND()*(1-2*Inputs!B58)+Inputs!B58,0,'(Other Computations)'!B208)","v":{"v":-18951.652209599764,"d":"($18,952)"}},{"$f":"NORMINV(RAND()*(1-2*Inputs!B58)+Inputs!B58,0,'(Other Computations)'!B208)","v":{"v":13619.303529754427,"d":"$13,619"}},{"$f":"NORMINV(RAND()*(1-2*Inputs!B58)+Inputs!B58,0,'(Other Computations)'!B208)","v":{"v":49167.063184106555,"d":"$49,167"}},{"$f":"SUM(B46:M46)","v":{"v":235957.2604708927,"d":"$235,957"}},{"$f":"NORMINV(RAND()*(1-2*Inputs!B58)+Inputs!B58,0,'(Other Computations)'!B208)","v":{"v":-18454.23548384229,"d":"($18,454)"}},{"$f":"NORMINV(RAND()*(1-2*Inputs!B58)+Inputs!B58,0,'(Other Computations)'!B208)","v":{"v":-38094.031894922584,"d":"($38,094)"}},{"$f":"NORMINV(RAND()*(1-2*Inputs!B58)+Inputs!B58,0,'(Other Computations)'!B208)","v":{"v":55792.940685251495,"d":"$55,793"}},{"$f":"NORMINV(RAND()*(1-2*Inputs!B58)+Inputs!B58,0,'(Other Computations)'!B208)","v":{"v":-2216.108436547579,"d":"($2,216)"}},{"$f":"NORMINV(RAND()*(1-2*Inputs!B58)+Inputs!B58,0,'(Other Computations)'!B208)","v":{"v":26663.170273312604,"d":"$26,663"}},{"$f":"NORMINV(RAND()*(1-2*Inputs!B58)+Inputs!B58,0,'(Other Computations)'!B208)","v":{"v":-62351.670635750306,"d":"($62,352)"}},{"$f":"NORMINV(RAND()*(1-2*Inputs!B58)+Inputs!B58,0,'(Other Computations)'!B208)","v":{"v":-35452.57800958877,"d":"($35,453)"}},{"$f":"NORMINV(RAND()*(1-2*Inputs!B58)+Inputs!B58,0,'(Other Computations)'!B208)","v":{"v":-11116.284413817402,"d":"($11,116)"}},{"$f":"NORMINV(RAND()*(1-2*Inputs!B58)+Inputs!B58,0,'(Other Computations)'!B208)","v":{"v":50434.214369584515,"d":"$50,434"}},{"$f":"NORMINV(RAND()*(1-2*Inputs!B58)+Inputs!B58,0,'(Other Computations)'!B208)","v":{"v":17727.66630685353,"d":"$17,728"}},{"$f":"NORMINV(RAND()*(1-2*Inputs!B58)+Inputs!B58,0,'(Other Computations)'!B208)","v":{"v":32218.779744769225,"d":"$32,219"}},{"$f":"NORMINV(RAND()*(1-2*Inputs!B58)+Inputs!B58,0,'(Other Computations)'!B208)","v":{"v":-7993.141221303646,"d":"($7,993)"}},{"$f":"SUM(O46:Z46)","v":{"v":7158.721283998799,"d":"$7,159"}},{"$f":"NORMINV(RAND()*(1-2*Inputs!B58)+Inputs!B58,0,'(Other Computations)'!B208)","v":{"v":-15508.395742636421,"d":"($15,508)"}},{"$f":"NORMINV(RAND()*(1-2*Inputs!B58)+Inputs!B58,0,'(Other Computations)'!B208)","v":{"v":-45429.488818951366,"d":"($45,429)"}},{"$f":"NORMINV(RAND()*(1-2*Inputs!B58)+Inputs!B58,0,'(Other Computations)'!B208)","v":{"v":18053.85428176768,"d":"$18,054"}},{"$f":"NORMINV(RAND()*(1-2*Inputs!B58)+Inputs!B58,0,'(Other Computations)'!B208)","v":{"v":-9039.992018025345,"d":"($9,040)"}},{"$f":"NORMINV(RAND()*(1-2*Inputs!B58)+Inputs!B58,0,'(Other Computations)'!B208)","v":{"v":1791.6595122968315,"d":"$1,792"}},{"$f":"NORMINV(RAND()*(1-2*Inputs!B58)+Inputs!B58,0,'(Other Computations)'!B208)","v":{"v":-10036.715759644914,"d":"($10,037)"}},{"$f":"NORMINV(RAND()*(1-2*Inputs!B58)+Inputs!B58,0,'(Other Computations)'!B208)","v":{"v":2191.095190909887,"d":"$2,191"}},{"$f":"NORMINV(RAND()*(1-2*Inputs!B58)+Inputs!B58,0,'(Other Computations)'!B208)","v":{"v":-14405.725765048848,"d":"($14,406)"}},{"$f":"NORMINV(RAND()*(1-2*Inputs!B58)+Inputs!B58,0,'(Other Computations)'!B208)","v":{"v":7958.36924680873,"d":"$7,958"}},{"$f":"NORMINV(RAND()*(1-2*Inputs!B58)+Inputs!B58,0,'(Other Computations)'!B208)","v":{"v":33307.16188277992,"d":"$33,307"}},{"$f":"NORMINV(RAND()*(1-2*Inputs!B58)+Inputs!B58,0,'(Other Computations)'!B208)","v":{"v":-6888.966656636441,"d":"($6,889)"}},{"$f":"NORMINV(RAND()*(1-2*Inputs!B58)+Inputs!B58,0,'(Other Computations)'!B208)","v":{"v":-38278.671926475814,"d":"($38,279)"}},{"$f":"SUM(AB46:AM46)","v":{"v":-76285.8165728561,"d":"($76,286)"}},{"$f":"NORMINV(RAND()*(1-2*Inputs!B58)+Inputs!B58,0,'(Other Computations)'!B208)","v":{"v":-31206.34103148309,"d":"($31,206)"}},{"$f":"NORMINV(RAND()*(1-2*Inputs!B58)+Inputs!B58,0,'(Other Computations)'!B208)","v":{"v":-30825.438896339932,"d":"($30,825)"}},{"$f":"NORMINV(RAND()*(1-2*Inputs!B58)+Inputs!B58,0,'(Other Computations)'!B208)","v":{"v":16059.850368069105,"d":"$16,060"}},{"$f":"NORMINV(RAND()*(1-2*Inputs!B58)+Inputs!B58,0,'(Other Computations)'!B208)","v":{"v":-19660.49529695805,"d":"($19,660)"}},{"$f":"NORMINV(RAND()*(1-2*Inputs!B58)+Inputs!B58,0,'(Other Computations)'!B208)","v":{"v":-38876.27552588152,"d":"($38,876)"}},{"$f":"NORMINV(RAND()*(1-2*Inputs!B58)+Inputs!B58,0,'(Other Computations)'!B208)","v":{"v":-8689.893206970377,"d":"($8,690)"}},{"$f":"NORMINV(RAND()*(1-2*Inputs!B58)+Inputs!B58,0,'(Other Computations)'!B208)","v":{"v":31685.461400670247,"d":"$31,685"}},{"$f":"NORMINV(RAND()*(1-2*Inputs!B58)+Inputs!B58,0,'(Other Computations)'!B208)","v":{"v":11866.489451788415,"d":"$11,866"}},{"$f":"NORMINV(RAND()*(1-2*Inputs!B58)+Inputs!B58,0,'(Other Computations)'!B208)","v":{"v":38134.0835674423,"d":"$38,134"}},{"$f":"NORMINV(RAND()*(1-2*Inputs!B58)+Inputs!B58,0,'(Other Computations)'!B208)","v":{"v":13647.888426986296,"d":"$13,648"}},{"$f":"NORMINV(RAND()*(1-2*Inputs!B58)+Inputs!B58,0,'(Other Computations)'!B208)","v":{"v":-57019.88276380748,"d":"($57,020)"}},{"$f":"NORMINV(RAND()*(1-2*Inputs!B58)+Inputs!B58,0,'(Other Computations)'!B208)","v":{"v":-20092.985207068483,"d":"($20,093)"}},{"$f":"SUM(AO46:AZ46)","v":{"v":-94977.53871355258,"d":"($94,978)"}},{"$f":"NORMINV(RAND()*(1-2*Inputs!B58)+Inputs!B58,0,'(Other Computations)'!B208)","v":{"v":-540.3989306399533,"d":"($540)"}},{"$f":"NORMINV(RAND()*(1-2*Inputs!B58)+Inputs!B58,0,'(Other Computations)'!B208)","v":{"v":18331.160355242966,"d":"$18,331"}},{"$f":"NORMINV(RAND()*(1-2*Inputs!B58)+Inputs!B58,0,'(Other Computations)'!B208)","v":{"v":-23086.369172292816,"d":"($23,086)"}},{"$f":"NORMINV(RAND()*(1-2*Inputs!B58)+Inputs!B58,0,'(Other Computations)'!B208)","v":{"v":-18360.535334644304,"d":"($18,361)"}},{"$f":"NORMINV(RAND()*(1-2*Inputs!B58)+Inputs!B58,0,'(Other Computations)'!B208)","v":{"v":34428.414917534246,"d":"$34,428"}},{"$f":"NORMINV(RAND()*(1-2*Inputs!B58)+Inputs!B58,0,'(Other Computations)'!B208)","v":{"v":-7786.815316927031,"d":"($7,787)"}},{"$f":"NORMINV(RAND()*(1-2*Inputs!B58)+Inputs!B58,0,'(Other Computations)'!B208)","v":{"v":-27889.759085550097,"d":"($27,890)"}},{"$f":"NORMINV(RAND()*(1-2*Inputs!B58)+Inputs!B58,0,'(Other Computations)'!B208)","v":{"v":11282.779987219312,"d":"$11,283"}},{"$f":"NORMINV(RAND()*(1-2*Inputs!B58)+Inputs!B58,0,'(Other Computations)'!B208)","v":{"v":-12470.75118192301,"d":"($12,471)"}},{"$f":"NORMINV(RAND()*(1-2*Inputs!B58)+Inputs!B58,0,'(Other Computations)'!B208)","v":{"v":-51055.63880220981,"d":"($51,056)"}},{"$f":"NORMINV(RAND()*(1-2*Inputs!B58)+Inputs!B58,0,'(Other Computations)'!B208)","v":{"v":-51528.39517639153,"d":"($51,528)"}},{"$f":"NORMINV(RAND()*(1-2*Inputs!B58)+Inputs!B58,0,'(Other Computations)'!B208)","v":{"v":44572.0227328485,"d":"$44,572"}},{"$f":"SUM(BB46:BM46)","v":{"v":-84104.28500773353,"d":"($84,104)"}},{"$f":"NORMINV(RAND()*(1-2*Inputs!B58)+Inputs!B58,0,'(Other Computations)'!B208)","v":{"v":-29399.807445239545,"d":"($29,400)"}},{"$f":"NORMINV(RAND()*(1-2*Inputs!B58)+Inputs!B58,0,'(Other Computations)'!B208)","v":{"v":-717.9187275717957,"d":"($718)"}},{"$f":"NORMINV(RAND()*(1-2*Inputs!B58)+Inputs!B58,0,'(Other Computations)'!B208)","v":{"v":11369.550500520732,"d":"$11,370"}},{"$f":"NORMINV(RAND()*(1-2*Inputs!B58)+Inputs!B58,0,'(Other Computations)'!B208)","v":{"v":7010.605520350904,"d":"$7,011"}},{"$f":"NORMINV(RAND()*(1-2*Inputs!B58)+Inputs!B58,0,'(Other Computations)'!B208)","v":{"v":-4078.6206055264165,"d":"($4,079)"}},{"$f":"NORMINV(RAND()*(1-2*Inputs!B58)+Inputs!B58,0,'(Other Computations)'!B208)","v":{"v":-52338.83355875646,"d":"($52,339)"}},{"$f":"NORMINV(RAND()*(1-2*Inputs!B58)+Inputs!B58,0,'(Other Computations)'!B208)","v":{"v":-23698.494845983885,"d":"($23,698)"}},{"$f":"NORMINV(RAND()*(1-2*Inputs!B58)+Inputs!B58,0,'(Other Computations)'!B208)","v":{"v":33988.01463386377,"d":"$33,988"}},{"$f":"NORMINV(RAND()*(1-2*Inputs!B58)+Inputs!B58,0,'(Other Computations)'!B208)","v":{"v":2418.1095592890647,"d":"$2,418"}},{"$f":"NORMINV(RAND()*(1-2*Inputs!B58)+Inputs!B58,0,'(Other Computations)'!B208)","v":{"v":-18246.082031395974,"d":"($18,246)"}},{"$f":"NORMINV(RAND()*(1-2*Inputs!B58)+Inputs!B58,0,'(Other Computations)'!B208)","v":{"v":25580.566426427475,"d":"$25,581"}},{"$f":"NORMINV(RAND()*(1-2*Inputs!B58)+Inputs!B58,0,'(Other Computations)'!B208)","v":{"v":10431.912207702797,"d":"$10,432"}},{"$f":"SUM(BO46:BZ46)","v":{"v":-37680.99836631934,"d":"($37,681)"}},{"$f":"NORMINV(RAND()*(1-2*Inputs!B58)+Inputs!B58,0,'(Other Computations)'!B208)","v":{"v":47190.253157493506,"d":"$47,190"}},{"$f":"NORMINV(RAND()*(1-2*Inputs!B58)+Inputs!B58,0,'(Other Computations)'!B208)","v":{"v":34543.12776209686,"d":"$34,543"}},{"$f":"NORMINV(RAND()*(1-2*Inputs!B58)+Inputs!B58,0,'(Other Computations)'!B208)","v":{"v":-237.9714075351569,"d":"($238)"}},{"$f":"NORMINV(RAND()*(1-2*Inputs!B58)+Inputs!B58,0,'(Other Computations)'!B208)","v":{"v":2076.7195964383022,"d":"$2,077"}},{"$f":"NORMINV(RAND()*(1-2*Inputs!B58)+Inputs!B58,0,'(Other Computations)'!B208)","v":{"v":21245.361334268895,"d":"$21,245"}},{"$f":"NORMINV(RAND()*(1-2*Inputs!B58)+Inputs!B58,0,'(Other Computations)'!B208)","v":{"v":-20240.435246853744,"d":"($20,240)"}},{"$f":"NORMINV(RAND()*(1-2*Inputs!B58)+Inputs!B58,0,'(Other Computations)'!B208)","v":{"v":21173.6499359129,"d":"$21,174"}},{"$f":"NORMINV(RAND()*(1-2*Inputs!B58)+Inputs!B58,0,'(Other Computations)'!B208)","v":{"v":23193.60515834949,"d":"$23,194"}},{"$f":"NORMINV(RAND()*(1-2*Inputs!B58)+Inputs!B58,0,'(Other Computations)'!B208)","v":{"v":51485.67427633929,"d":"$51,486"}},{"$f":"NORMINV(RAND()*(1-2*Inputs!B58)+Inputs!B58,0,'(Other Computations)'!B208)","v":{"v":-41184.82535668505,"d":"($41,185)"}},{"$f":"NORMINV(RAND()*(1-2*Inputs!B58)+Inputs!B58,0,'(Other Computations)'!B208)","v":{"v":3352.5741496896994,"d":"$3,353"}},{"$f":"NORMINV(RAND()*(1-2*Inputs!B58)+Inputs!B58,0,'(Other Computations)'!B208)","v":{"v":44631.475447278,"d":"$44,631"}},{"$f":"SUM(CB46:CM46)","v":{"v":187229.20880679297,"d":"$187,229"}},{"$f":"NORMINV(RAND()*(1-2*Inputs!B58)+Inputs!B58,0,'(Other Computations)'!B208)","v":{"v":-17826.149017180018,"d":"($17,826)"}},{"$f":"NORMINV(RAND()*(1-2*Inputs!B58)+Inputs!B58,0,'(Other Computations)'!B208)","v":{"v":-4302.824188857013,"d":"($4,303)"}},{"$f":"NORMINV(RAND()*(1-2*Inputs!B58)+Inputs!B58,0,'(Other Computations)'!B208)","v":{"v":12006.179904234528,"d":"$12,006"}},{"$f":"NORMINV(RAND()*(1-2*Inputs!B58)+Inputs!B58,0,'(Other Computations)'!B208)","v":{"v":-17932.430742878834,"d":"($17,932)"}},{"$f":"NORMINV(RAND()*(1-2*Inputs!B58)+Inputs!B58,0,'(Other Computations)'!B208)","v":{"v":12970.014839141058,"d":"$12,970"}},{"$f":"NORMINV(RAND()*(1-2*Inputs!B58)+Inputs!B58,0,'(Other Computations)'!B208)","v":{"v":-40745.38857838374,"d":"($40,745)"}},{"$f":"NORMINV(RAND()*(1-2*Inputs!B58)+Inputs!B58,0,'(Other Computations)'!B208)","v":{"v":46769.29377433866,"d":"$46,769"}},{"$f":"NORMINV(RAND()*(1-2*Inputs!B58)+Inputs!B58,0,'(Other Computations)'!B208)","v":{"v":-54231.84445928545,"d":"($54,232)"}},{"$f":"NORMINV(RAND()*(1-2*Inputs!B58)+Inputs!B58,0,'(Other Computations)'!B208)","v":{"v":19511.78673029283,"d":"$19,512"}},{"$f":"NORMINV(RAND()*(1-2*Inputs!B58)+Inputs!B58,0,'(Other Computations)'!B208)","v":{"v":60957.02810742399,"d":"$60,957"}},{"$f":"NORMINV(RAND()*(1-2*Inputs!B58)+Inputs!B58,0,'(Other Computations)'!B208)","v":{"v":-31967.18089149902,"d":"($31,967)"}},{"$f":"NORMINV(RAND()*(1-2*Inputs!B58)+Inputs!B58,0,'(Other Computations)'!B208)","v":{"v":2075.8442041977896,"d":"$2,076"}},{"$f":"SUM(CO46:CZ46)","v":{"v":-12715.67031845522,"d":"($12,716)"}},{"$f":"NORMINV(RAND()*(1-2*Inputs!B58)+Inputs!B58,0,'(Other Computations)'!B208)","v":{"v":3967.9999852939886,"d":"$3,968"}},{"$f":"NORMINV(RAND()*(1-2*Inputs!B58)+Inputs!B58,0,'(Other Computations)'!B208)","v":{"v":-6579.141951782406,"d":"($6,579)"}},{"$f":"NORMINV(RAND()*(1-2*Inputs!B58)+Inputs!B58,0,'(Other Computations)'!B208)","v":{"v":13188.57437796284,"d":"$13,189"}},{"$f":"NORMINV(RAND()*(1-2*Inputs!B58)+Inputs!B58,0,'(Other Computations)'!B208)","v":{"v":3111.999669603769,"d":"$3,112"}},{"$f":"NORMINV(RAND()*(1-2*Inputs!B58)+Inputs!B58,0,'(Other Computations)'!B208)","v":{"v":32920.2370219365,"d":"$32,920"}},{"$f":"NORMINV(RAND()*(1-2*Inputs!B58)+Inputs!B58,0,'(Other Computations)'!B208)","v":{"v":-17746.012273434168,"d":"($17,746)"}},{"$f":"NORMINV(RAND()*(1-2*Inputs!B58)+Inputs!B58,0,'(Other Computations)'!B208)","v":{"v":-11215.533189017026,"d":"($11,216)"}},{"$f":"NORMINV(RAND()*(1-2*Inputs!B58)+Inputs!B58,0,'(Other Computations)'!B208)","v":{"v":-7789.883759656015,"d":"($7,790)"}},{"$f":"NORMINV(RAND()*(1-2*Inputs!B58)+Inputs!B58,0,'(Other Computations)'!B208)","v":{"v":6993.7188246983915,"d":"$6,994"}},{"$f":"NORMINV(RAND()*(1-2*Inputs!B58)+Inputs!B58,0,'(Other Computations)'!B208)","v":{"v":32944.56366273864,"d":"$32,945"}},{"$f":"NORMINV(RAND()*(1-2*Inputs!B58)+Inputs!B58,0,'(Other Computations)'!B208)","v":{"v":52666.945443715966,"d":"$52,667"}},{"$f":"NORMINV(RAND()*(1-2*Inputs!B58)+Inputs!B58,0,'(Other Computations)'!B208)","v":{"v":-42815.02894841994,"d":"($42,815)"}},{"$f":"SUM(DB46:DM46)","v":{"v":59648.43886364054,"d":"$59,648"}},{"$f":"NORMINV(RAND()*(1-2*Inputs!B58)+Inputs!B58,0,'(Other Computations)'!B208)","v":{"v":-19192.140036807064,"d":"($19,192)"}},{"$f":"NORMINV(RAND()*(1-2*Inputs!B58)+Inputs!B58,0,'(Other Computations)'!B208)","v":{"v":-44857.514447982554,"d":"($44,858)"}},{"$f":"NORMINV(RAND()*(1-2*Inputs!B58)+Inputs!B58,0,'(Other Computations)'!B208)","v":{"v":-13582.236078647713,"d":"($13,582)"}},{"$f":"NORMINV(RAND()*(1-2*Inputs!B58)+Inputs!B58,0,'(Other Computations)'!B208)","v":{"v":5774.454035799423,"d":"$5,774"}},{"$f":"NORMINV(RAND()*(1-2*Inputs!B58)+Inputs!B58,0,'(Other Computations)'!B208)","v":{"v":-14990.515799873217,"d":"($14,991)"}},{"$f":"NORMINV(RAND()*(1-2*Inputs!B58)+Inputs!B58,0,'(Other Computations)'!B208)","v":{"v":-3335.6050100491852,"d":"($3,336)"}},{"$f":"NORMINV(RAND()*(1-2*Inputs!B58)+Inputs!B58,0,'(Other Computations)'!B208)","v":{"v":-7370.603354762802,"d":"($7,371)"}},{"$f":"NORMINV(RAND()*(1-2*Inputs!B58)+Inputs!B58,0,'(Other Computations)'!B208)","v":{"v":-49605.146342547465,"d":"($49,605)"}},{"$f":"NORMINV(RAND()*(1-2*Inputs!B58)+Inputs!B58,0,'(Other Computations)'!B208)","v":{"v":4766.5111340128915,"d":"$4,767"}},{"$f":"NORMINV(RAND()*(1-2*Inputs!B58)+Inputs!B58,0,'(Other Computations)'!B208)","v":{"v":590.7629681078386,"d":"$591"}},{"$f":"NORMINV(RAND()*(1-2*Inputs!B58)+Inputs!B58,0,'(Other Computations)'!B208)","v":{"v":-4925.437778245941,"d":"($4,925)"}},{"$f":"NORMINV(RAND()*(1-2*Inputs!B58)+Inputs!B58,0,'(Other Computations)'!B208)","v":{"v":7577.274147895871,"d":"$7,577"}},{"$f":"SUM(DO46:DZ46)","v":{"v":-139150.19656309992,"d":"($139,150)"}},{"$f":"NORMINV(RAND()*(1-2*Inputs!B58)+Inputs!B58,0,'(Other Computations)'!B208)","v":{"v":7219.1189151178605,"d":"$7,219"}},{"$f":"NORMINV(RAND()*(1-2*Inputs!B58)+Inputs!B58,0,'(Other Computations)'!B208)","v":{"v":-18985.97376202698,"d":"($18,986)"}},{"$f":"NORMINV(RAND()*(1-2*Inputs!B58)+Inputs!B58,0,'(Other Computations)'!B208)","v":{"v":-58191.789480896536,"d":"($58,192)"}},{"$f":"NORMINV(RAND()*(1-2*Inputs!B58)+Inputs!B58,0,'(Other Computations)'!B208)","v":{"v":58600.899593941314,"d":"$58,601"}},{"$f":"NORMINV(RAND()*(1-2*Inputs!B58)+Inputs!B58,0,'(Other Computations)'!B208)","v":{"v":19623.716278254076,"d":"$19,624"}},{"$f":"NORMINV(RAND()*(1-2*Inputs!B58)+Inputs!B58,0,'(Other Computations)'!B208)","v":{"v":586.3553853209191,"d":"$586"}},{"$f":"NORMINV(RAND()*(1-2*Inputs!B58)+Inputs!B58,0,'(Other Computations)'!B208)","v":{"v":34636.94434335719,"d":"$34,637"}},{"$f":"NORMINV(RAND()*(1-2*Inputs!B58)+Inputs!B58,0,'(Other Computations)'!B208)","v":{"v":12543.350765509354,"d":"$12,543"}},{"$f":"NORMINV(RAND()*(1-2*Inputs!B58)+Inputs!B58,0,'(Other Computations)'!B208)","v":{"v":-1142.708467785103,"d":"($1,143)"}},{"$f":"NORMINV(RAND()*(1-2*Inputs!B58)+Inputs!B58,0,'(Other Computations)'!B208)","v":{"v":-13390.052910305432,"d":"($13,390)"}},{"$f":"NORMINV(RAND()*(1-2*Inputs!B58)+Inputs!B58,0,'(Other Computations)'!B208)","v":{"v":24540.218007216998,"d":"$24,540"}},{"$f":"NORMINV(RAND()*(1-2*Inputs!B58)+Inputs!B58,0,'(Other Computations)'!B208)","v":{"v":-712.8357401669238,"d":"($713)"}},{"$f":"SUM(EB46:EM46)","v":{"v":65327.24292753674,"d":"$65,327"}}]
[]
[]
[{"$f":"\"Government\"","v":"Government"}]
[{"$f":"\" \"","v":" "}]
[null,{"$f":"ZZZ__FnCalls!F7","v":"Jan 2010"},{"$f":"ZZZ__FnCalls!F8","v":"Feb 2010"},{"$f":"ZZZ__FnCalls!F9","v":"Mar 2010"},{"$f":"ZZZ__FnCalls!F10","v":"Apr 2010"},{"$f":"ZZZ__FnCalls!F11","v":"May 2010"},{"$f":"ZZZ__FnCalls!F12","v":"Jun 2010"},{"$f":"ZZZ__FnCalls!F13","v":"Jul 2010"},{"$f":"ZZZ__FnCalls!F14","v":"Aug 2010"},{"$f":"ZZZ__FnCalls!F15","v":"Sep 2010"},{"$f":"ZZZ__FnCalls!F16","v":"Oct 2010"},{"$f":"ZZZ__FnCalls!F17","v":"Nov 2010"},{"$f":"ZZZ__FnCalls!F18","v":"Dec 2010"},{"$f":"ZZZ__FnCalls!H7","v":"2010"},{"$f":"ZZZ__FnCalls!F19","v":"Jan 2011"},{"$f":"ZZZ__FnCalls!F20","v":"Feb 2011"},{"$f":"ZZZ__FnCalls!F21","v":"Mar 2011"},{"$f":"ZZZ__FnCalls!F22","v":"Apr 2011"},{"$f":"ZZZ__FnCalls!F23","v":"May 2011"},{"$f":"ZZZ__FnCalls!F24","v":"Jun 2011"},{"$f":"ZZZ__FnCalls!F25","v":"Jul 2011"},{"$f":"ZZZ__FnCalls!F26","v":"Aug 2011"},{"$f":"ZZZ__FnCalls!F27","v":"Sep 2011"},{"$f":"ZZZ__FnCalls!F28","v":"Oct 2011"},{"$f":"ZZZ__FnCalls!F29","v":"Nov 2011"},{"$f":"ZZZ__FnCalls!F30","v":"Dec 2011"},{"$f":"ZZZ__FnCalls!H19","v":"2011"},{"$f":"ZZZ__FnCalls!F31","v":"Jan 2012"},{"$f":"ZZZ__FnCalls!F32","v":"Feb 2012"},{"$f":"ZZZ__FnCalls!F33","v":"Mar 2012"},{"$f":"ZZZ__FnCalls!F34","v":"Apr 2012"},{"$f":"ZZZ__FnCalls!F35","v":"May 2012"},{"$f":"ZZZ__FnCalls!F36","v":"Jun 2012"},{"$f":"ZZZ__FnCalls!F37","v":"Jul 2012"},{"$f":"ZZZ__FnCalls!F38","v":"Aug 2012"},{"$f":"ZZZ__FnCalls!F39","v":"Sep 2012"},{"$f":"ZZZ__FnCalls!F40","v":"Oct 2012"},{"$f":"ZZZ__FnCalls!F41","v":"Nov 2012"},{"$f":"ZZZ__FnCalls!F42","v":"Dec 2012"},{"$f":"ZZZ__FnCalls!H31","v":"2012"},{"$f":"ZZZ__FnCalls!F43","v":"Jan 2013"},{"$f":"ZZZ__FnCalls!F44","v":"Feb 2013"},{"$f":"ZZZ__FnCalls!F45","v":"Mar 2013"},{"$f":"ZZZ__FnCalls!F46","v":"Apr 2013"},{"$f":"ZZZ__FnCalls!F47","v":"May 2013"},{"$f":"ZZZ__FnCalls!F48","v":"Jun 2013"},{"$f":"ZZZ__FnCalls!F49","v":"Jul 2013"},{"$f":"ZZZ__FnCalls!F50","v":"Aug 2013"},{"$f":"ZZZ__FnCalls!F51","v":"Sep 2013"},{"$f":"ZZZ__FnCalls!F52","v":"Oct 2013"},{"$f":"ZZZ__FnCalls!F53","v":"Nov 2013"},{"$f":"ZZZ__FnCalls!F54","v":"Dec 2013"},{"$f":"ZZZ__FnCalls!H43","v":"2013"},{"$f":"ZZZ__FnCalls!F55","v":"Jan 2014"},{"$f":"ZZZ__FnCalls!F56","v":"Feb 2014"},{"$f":"ZZZ__FnCalls!F57","v":"Mar 2014"},{"$f":"ZZZ__FnCalls!F58","v":"Apr 2014"},{"$f":"ZZZ__FnCalls!F59","v":"May 2014"},{"$f":"ZZZ__FnCalls!F60","v":"Jun 2014"},{"$f":"ZZZ__FnCalls!F61","v":"Jul 2014"},{"$f":"ZZZ__FnCalls!F62","v":"Aug 2014"},{"$f":"ZZZ__FnCalls!F63","v":"Sep 2014"},{"$f":"ZZZ__FnCalls!F64","v":"Oct 2014"},{"$f":"ZZZ__FnCalls!F65","v":"Nov 2014"},{"$f":"ZZZ__FnCalls!F66","v":"Dec 2014"},{"$f":"ZZZ__FnCalls!H55","v":"2014"},{"$f":"ZZZ__FnCalls!F67","v":"Jan 2015"},{"$f":"ZZZ__FnCalls!F68","v":"Feb 2015"},{"$f":"ZZZ__FnCalls!F69","v":"Mar 2015"},{"$f":"ZZZ__FnCalls!F70","v":"Apr 2015"},{"$f":"ZZZ__FnCalls!F71","v":"May 2015"},{"$f":"ZZZ__FnCalls!F72","v":"Jun 2015"},{"$f":"ZZZ__FnCalls!F73","v":"Jul 2015"},{"$f":"ZZZ__FnCalls!F74","v":"Aug 2015"},{"$f":"ZZZ__FnCalls!F75","v":"Sep 2015"},{"$f":"ZZZ__FnCalls!F76","v":"Oct 2015"},{"$f":"ZZZ__FnCalls!F77","v":"Nov 2015"},{"$f":"ZZZ__FnCalls!F78","v":"Dec 2015"},{"$f":"ZZZ__FnCalls!H67","v":"2015"},{"$f":"ZZZ__FnCalls!F79","v":"Jan 2016"},{"$f":"ZZZ__FnCalls!F80","v":"Feb 2016"},{"$f":"ZZZ__FnCalls!F81","v":"Mar 2016"},{"$f":"ZZZ__FnCalls!F82","v":"Apr 2016"},{"$f":"ZZZ__FnCalls!F83","v":"May 2016"},{"$f":"ZZZ__FnCalls!F84","v":"Jun 2016"},{"$f":"ZZZ__FnCalls!F85","v":"Jul 2016"},{"$f":"ZZZ__FnCalls!F86","v":"Aug 2016"},{"$f":"ZZZ__FnCalls!F87","v":"Sep 2016"},{"$f":"ZZZ__FnCalls!F88","v":"Oct 2016"},{"$f":"ZZZ__FnCalls!F89","v":"Nov 2016"},{"$f":"ZZZ__FnCalls!F90","v":"Dec 2016"},{"$f":"ZZZ__FnCalls!H79","v":"2016"},{"$f":"ZZZ__FnCalls!F91","v":"Jan 2017"},{"$f":"ZZZ__FnCalls!F92","v":"Feb 2017"},{"$f":"ZZZ__FnCalls!F93","v":"Mar 2017"},{"$f":"ZZZ__FnCalls!F94","v":"Apr 2017"},{"$f":"ZZZ__FnCalls!F95","v":"May 2017"},{"$f":"ZZZ__FnCalls!F96","v":"Jun 2017"},{"$f":"ZZZ__FnCalls!F97","v":"Jul 2017"},{"$f":"ZZZ__FnCalls!F98","v":"Aug 2017"},{"$f":"ZZZ__FnCalls!F99","v":"Sep 2017"},{"$f":"ZZZ__FnCalls!F100","v":"Oct 2017"},{"$f":"ZZZ__FnCalls!F101","v":"Nov 2017"},{"$f":"ZZZ__FnCalls!F102","v":"Dec 2017"},{"$f":"ZZZ__FnCalls!H91","v":"2017"},{"$f":"ZZZ__FnCalls!F103","v":"Jan 2018"},{"$f":"ZZZ__FnCalls!F104","v":"Feb 2018"},{"$f":"ZZZ__FnCalls!F105","v":"Mar 2018"},{"$f":"ZZZ__FnCalls!F106","v":"Apr 2018"},{"$f":"ZZZ__FnCalls!F107","v":"May 2018"},{"$f":"ZZZ__FnCalls!F108","v":"Jun 2018"},{"$f":"ZZZ__FnCalls!F109","v":"Jul 2018"},{"$f":"ZZZ__FnCalls!F110","v":"Aug 2018"},{"$f":"ZZZ__FnCalls!F111","v":"Sep 2018"},{"$f":"ZZZ__FnCalls!F112","v":"Oct 2018"},{"$f":"ZZZ__FnCalls!F113","v":"Nov 2018"},{"$f":"ZZZ__FnCalls!F114","v":"Dec 2018"},{"$f":"ZZZ__FnCalls!H103","v":"2018"},{"$f":"ZZZ__FnCalls!F115","v":"Jan 2019"},{"$f":"ZZZ__FnCalls!F116","v":"Feb 2019"},{"$f":"ZZZ__FnCalls!F117","v":"Mar 2019"},{"$f":"ZZZ__FnCalls!F118","v":"Apr 2019"},{"$f":"ZZZ__FnCalls!F119","v":"May 2019"},{"$f":"ZZZ__FnCalls!F120","v":"Jun 2019"},{"$f":"ZZZ__FnCalls!F121","v":"Jul 2019"},{"$f":"ZZZ__FnCalls!F122","v":"Aug 2019"},{"$f":"ZZZ__FnCalls!F123","v":"Sep 2019"},{"$f":"ZZZ__FnCalls!F124","v":"Oct 2019"},{"$f":"ZZZ__FnCalls!F125","v":"Nov 2019"},{"$f":"ZZZ__FnCalls!F126","v":"Dec 2019"},{"$f":"ZZZ__FnCalls!H115","v":"2019"},{"$f":"ZZZ__FnCalls!F127","v":"Jan 2020"},{"$f":"ZZZ__FnCalls!F128","v":"Feb 2020"},{"$f":"ZZZ__FnCalls!F129","v":"Mar 2020"},{"$f":"ZZZ__FnCalls!F130","v":"Apr 2020"},{"$f":"ZZZ__FnCalls!F131","v":"May 2020"},{"$f":"ZZZ__FnCalls!F132","v":"Jun 2020"},{"$f":"ZZZ__FnCalls!F133","v":"Jul 2020"},{"$f":"ZZZ__FnCalls!F134","v":"Aug 2020"},{"$f":"ZZZ__FnCalls!F135","v":"Sep 2020"},{"$f":"ZZZ__FnCalls!F136","v":"Oct 2020"},{"$f":"ZZZ__FnCalls!F137","v":"Nov 2020"},{"$f":"ZZZ__FnCalls!F138","v":"Dec 2020"},{"$f":"ZZZ__FnCalls!H127","v":"2020"}]
[{"$f":"Labels!B51","v":"Gov Spending"},{"$f":"B37","v":{"v":29166.66666666667,"d":"$29,167"}},{"v":29166.66666666667,"d":"$29,167"},{"v":29166.66666666667,"d":"$29,167"},{"v":29166.66666666667,"d":"$29,167"},{"v":29166.66666666667,"d":"$29,167"},{"v":29166.66666666667,"d":"$29,167"},{"v":29166.66666666667,"d":"$29,167"},{"v":29166.66666666667,"d":"$29,167"},{"v":29166.66666666667,"d":"$29,167"},{"v":29166.66666666667,"d":"$29,167"},{"v":29166.66666666667,"d":"$29,167"},{"v":29166.66666666667,"d":"$29,167"},{"$f":"SUM(B37:M37)","v":{"v":350000.0000000002,"d":"$350,000"}},{"$f":"O37","v":{"v":29166.66666666667,"d":"$29,167"}},{"v":29166.66666666667,"d":"$29,167"},{"v":29166.66666666667,"d":"$29,167"},{"v":29166.66666666667,"d":"$29,167"},{"v":29166.66666666667,"d":"$29,167"},{"v":29166.66666666667,"d":"$29,167"},{"v":29166.66666666667,"d":"$29,167"},{"v":29166.66666666667,"d":"$29,167"},{"v":29166.66666666667,"d":"$29,167"},{"v":29166.66666666667,"d":"$29,167"},{"v":29166.66666666667,"d":"$29,167"},{"v":29166.66666666667,"d":"$29,167"},{"$f":"SUM(O37:Z37)","v":{"v":350000.0000000002,"d":"$350,000"}},{"$f":"AB37","v":{"v":29166.66666666667,"d":"$29,167"}},{"v":29166.66666666667,"d":"$29,167"},{"v":29166.66666666667,"d":"$29,167"},{"v":29166.66666666667,"d":"$29,167"},{"v":29166.66666666667,"d":"$29,167"},{"v":29166.66666666667,"d":"$29,167"},{"v":29166.66666666667,"d":"$29,167"},{"v":29166.66666666667,"d":"$29,167"},{"v":29166.66666666667,"d":"$29,167"},{"v":29166.66666666667,"d":"$29,167"},{"v":29166.66666666667,"d":"$29,167"},{"v":29166.66666666667,"d":"$29,167"},{"$f":"SUM(AB37:AM37)","v":{"v":350000.0000000002,"d":"$350,000"}},{"$f":"AO37","v":{"v":29166.66666666667,"d":"$29,167"}},{"v":29166.66666666667,"d":"$29,167"},{"v":29166.66666666667,"d":"$29,167"},{"v":29166.66666666667,"d":"$29,167"},{"v":29166.66666666667,"d":"$29,167"},{"v":29166.66666666667,"d":"$29,167"},{"v":29166.66666666667,"d":"$29,167"},{"v":29166.66666666667,"d":"$29,167"},{"v":29166.66666666667,"d":"$29,167"},{"v":29166.66666666667,"d":"$29,167"},{"v":29166.66666666667,"d":"$29,167"},{"v":29166.66666666667,"d":"$29,167"},{"$f":"SUM(AO37:AZ37)","v":{"v":350000.0000000002,"d":"$350,000"}},{"$f":"BB37","v":{"v":29166.66666666667,"d":"$29,167"}},{"v":29166.66666666667,"d":"$29,167"},{"v":29166.66666666667,"d":"$29,167"},{"v":29166.66666666667,"d":"$29,167"},{"v":29166.66666666667,"d":"$29,167"},{"v":29166.66666666667,"d":"$29,167"},{"v":29166.66666666667,"d":"$29,167"},{"v":29166.66666666667,"d":"$29,167"},{"v":29166.66666666667,"d":"$29,167"},{"v":29166.66666666667,"d":"$29,167"},{"v":29166.66666666667,"d":"$29,167"},{"v":29166.66666666667,"d":"$29,167"},{"$f":"SUM(BB37:BM37)","v":{"v":350000.0000000002,"d":"$350,000"}},{"$f":"BO37","v":{"v":29166.66666666667,"d":"$29,167"}},{"v":29166.66666666667,"d":"$29,167"},{"v":29166.66666666667,"d":"$29,167"},{"v":29166.66666666667,"d":"$29,167"},{"v":29166.66666666667,"d":"$29,167"},{"v":29166.66666666667,"d":"$29,167"},{"v":29166.66666666667,"d":"$29,167"},{"v":29166.66666666667,"d":"$29,167"},{"v":29166.66666666667,"d":"$29,167"},{"v":29166.66666666667,"d":"$29,167"},{"v":29166.66666666667,"d":"$29,167"},{"v":29166.66666666667,"d":"$29,167"},{"$f":"SUM(BO37:BZ37)","v":{"v":350000.0000000002,"d":"$350,000"}},{"$f":"CB37","v":{"v":29166.66666666667,"d":"$29,167"}},{"v":29166.66666666667,"d":"$29,167"},{"v":29166.66666666667,"d":"$29,167"},{"v":29166.66666666667,"d":"$29,167"},{"v":29166.66666666667,"d":"$29,167"},{"v":29166.66666666667,"d":"$29,167"},{"v":29166.66666666667,"d":"$29,167"},{"v":29166.66666666667,"d":"$29,167"},{"v":29166.66666666667,"d":"$29,167"},{"v":29166.66666666667,"d":"$29,167"},{"v":29166.66666666667,"d":"$29,167"},{"v":29166.66666666667,"d":"$29,167"},{"$f":"SUM(CB37:CM37)","v":{"v":350000.0000000002,"d":"$350,000"}},{"$f":"CO37","v":{"v":29166.66666666667,"d":"$29,167"}},{"v":29166.66666666667,"d":"$29,167"},{"v":29166.66666666667,"d":"$29,167"},{"v":29166.66666666667,"d":"$29,167"},{"v":29166.66666666667,"d":"$29,167"},{"v":29166.66666666667,"d":"$29,167"},{"v":29166.66666666667,"d":"$29,167"},{"v":29166.66666666667,"d":"$29,167"},{"v":29166.66666666667,"d":"$29,167"},{"v":29166.66666666667,"d":"$29,167"},{"v":29166.66666666667,"d":"$29,167"},{"v":29166.66666666667,"d":"$29,167"},{"$f":"SUM(CO37:CZ37)","v":{"v":350000.0000000002,"d":"$350,000"}},{"$f":"DB37","v":{"v":29166.66666666667,"d":"$29,167"}},{"v":29166.66666666667,"d":"$29,167"},{"v":29166.66666666667,"d":"$29,167"},{"v":29166.66666666667,"d":"$29,167"},{"v":29166.66666666667,"d":"$29,167"},{"v":29166.66666666667,"d":"$29,167"},{"v":29166.66666666667,"d":"$29,167"},{"v":29166.66666666667,"d":"$29,167"},{"v":29166.66666666667,"d":"$29,167"},{"v":29166.66666666667,"d":"$29,167"},{"v":29166.66666666667,"d":"$29,167"},{"v":29166.66666666667,"d":"$29,167"},{"$f":"SUM(DB37:DM37)","v":{"v":350000.0000000002,"d":"$350,000"}},{"$f":"DO37","v":{"v":29166.66666666667,"d":"$29,167"}},{"v":29166.66666666667,"d":"$29,167"},{"v":29166.66666666667,"d":"$29,167"},{"v":29166.66666666667,"d":"$29,167"},{"v":29166.66666666667,"d":"$29,167"},{"v":29166.66666666667,"d":"$29,167"},{"v":29166.66666666667,"d":"$29,167"},{"v":29166.66666666667,"d":"$29,167"},{"v":29166.66666666667,"d":"$29,167"},{"v":29166.66666666667,"d":"$29,167"},{"v":29166.66666666667,"d":"$29,167"},{"v":29166.66666666667,"d":"$29,167"},{"$f":"SUM(DO37:DZ37)","v":{"v":350000.0000000002,"d":"$350,000"}},{"$f":"EB37","v":{"v":29166.66666666667,"d":"$29,167"}},{"v":29166.66666666667,"d":"$29,167"},{"v":29166.66666666667,"d":"$29,167"},{"v":29166.66666666667,"d":"$29,167"},{"v":29166.66666666667,"d":"$29,167"},{"v":29166.66666666667,"d":"$29,167"},{"v":29166.66666666667,"d":"$29,167"},{"v":29166.66666666667,"d":"$29,167"},{"v":29166.66666666667,"d":"$29,167"},{"v":29166.66666666667,"d":"$29,167"},{"v":29166.66666666667,"d":"$29,167"},{"v":29166.66666666667,"d":"$29,167"},{"$f":"SUM(EB37:EM37)","v":{"v":350000.0000000002,"d":"$350,000"}}]
[{"$f":"Labels!B52","v":"Gov Transfers"},{"$f":"B38","v":{"v":14583.333333333336,"d":"$14,583"}},{"v":14583.333333333336,"d":"$14,583"},{"v":14583.333333333336,"d":"$14,583"},{"v":14583.333333333336,"d":"$14,583"},{"v":14583.333333333336,"d":"$14,583"},{"v":14583.333333333336,"d":"$14,583"},{"v":14583.333333333336,"d":"$14,583"},{"v":14583.333333333336,"d":"$14,583"},{"v":14583.333333333336,"d":"$14,583"},{"v":14583.333333333336,"d":"$14,583"},{"v":14583.333333333336,"d":"$14,583"},{"v":14583.333333333336,"d":"$14,583"},{"$f":"SUM(B38:M38)","v":{"v":175000.0000000001,"d":"$175,000"}},{"$f":"O38","v":{"v":14583.333333333336,"d":"$14,583"}},{"v":14583.333333333336,"d":"$14,583"},{"v":14583.333333333336,"d":"$14,583"},{"v":14583.333333333336,"d":"$14,583"},{"v":14583.333333333336,"d":"$14,583"},{"v":14583.333333333336,"d":"$14,583"},{"v":14583.333333333336,"d":"$14,583"},{"v":14583.333333333336,"d":"$14,583"},{"v":14583.333333333336,"d":"$14,583"},{"v":14583.333333333336,"d":"$14,583"},{"v":14583.333333333336,"d":"$14,583"},{"v":14583.333333333336,"d":"$14,583"},{"$f":"SUM(O38:Z38)","v":{"v":175000.0000000001,"d":"$175,000"}},{"$f":"AB38","v":{"v":14583.333333333336,"d":"$14,583"}},{"v":14583.333333333336,"d":"$14,583"},{"v":14583.333333333336,"d":"$14,583"},{"v":14583.333333333336,"d":"$14,583"},{"v":14583.333333333336,"d":"$14,583"},{"v":14583.333333333336,"d":"$14,583"},{"v":14583.333333333336,"d":"$14,583"},{"v":14583.333333333336,"d":"$14,583"},{"v":14583.333333333336,"d":"$14,583"},{"v":14583.333333333336,"d":"$14,583"},{"v":14583.333333333336,"d":"$14,583"},{"v":14583.333333333336,"d":"$14,583"},{"$f":"SUM(AB38:AM38)","v":{"v":175000.0000000001,"d":"$175,000"}},{"$f":"AO38","v":{"v":14583.333333333336,"d":"$14,583"}},{"v":14583.333333333336,"d":"$14,583"},{"v":14583.333333333336,"d":"$14,583"},{"v":14583.333333333336,"d":"$14,583"},{"v":14583.333333333336,"d":"$14,583"},{"v":14583.333333333336,"d":"$14,583"},{"v":14583.333333333336,"d":"$14,583"},{"v":14583.333333333336,"d":"$14,583"},{"v":14583.333333333336,"d":"$14,583"},{"v":14583.333333333336,"d":"$14,583"},{"v":14583.333333333336,"d":"$14,583"},{"v":14583.333333333336,"d":"$14,583"},{"$f":"SUM(AO38:AZ38)","v":{"v":175000.0000000001,"d":"$175,000"}},{"$f":"BB38","v":{"v":14583.333333333336,"d":"$14,583"}},{"v":14583.333333333336,"d":"$14,583"},{"v":14583.333333333336,"d":"$14,583"},{"v":14583.333333333336,"d":"$14,583"},{"v":14583.333333333336,"d":"$14,583"},{"v":14583.333333333336,"d":"$14,583"},{"v":14583.333333333336,"d":"$14,583"},{"v":14583.333333333336,"d":"$14,583"},{"v":14583.333333333336,"d":"$14,583"},{"v":14583.333333333336,"d":"$14,583"},{"v":14583.333333333336,"d":"$14,583"},{"v":14583.333333333336,"d":"$14,583"},{"$f":"SUM(BB38:BM38)","v":{"v":175000.0000000001,"d":"$175,000"}},{"$f":"BO38","v":{"v":14583.333333333336,"d":"$14,583"}},{"v":14583.333333333336,"d":"$14,583"},{"v":14583.333333333336,"d":"$14,583"},{"v":14583.333333333336,"d":"$14,583"},{"v":14583.333333333336,"d":"$14,583"},{"v":14583.333333333336,"d":"$14,583"},{"v":14583.333333333336,"d":"$14,583"},{"v":14583.333333333336,"d":"$14,583"},{"v":14583.333333333336,"d":"$14,583"},{"v":14583.333333333336,"d":"$14,583"},{"v":14583.333333333336,"d":"$14,583"},{"v":14583.333333333336,"d":"$14,583"},{"$f":"SUM(BO38:BZ38)","v":{"v":175000.0000000001,"d":"$175,000"}},{"$f":"CB38","v":{"v":14583.333333333336,"d":"$14,583"}},{"v":14583.333333333336,"d":"$14,583"},{"v":14583.333333333336,"d":"$14,583"},{"v":14583.333333333336,"d":"$14,583"},{"v":14583.333333333336,"d":"$14,583"},{"v":14583.333333333336,"d":"$14,583"},{"v":14583.333333333336,"d":"$14,583"},{"v":14583.333333333336,"d":"$14,583"},{"v":14583.333333333336,"d":"$14,583"},{"v":14583.333333333336,"d":"$14,583"},{"v":14583.333333333336,"d":"$14,583"},{"v":14583.333333333336,"d":"$14,583"},{"$f":"SUM(CB38:CM38)","v":{"v":175000.0000000001,"d":"$175,000"}},{"$f":"CO38","v":{"v":14583.333333333336,"d":"$14,583"}},{"v":14583.333333333336,"d":"$14,583"},{"v":14583.333333333336,"d":"$14,583"},{"v":14583.333333333336,"d":"$14,583"},{"v":14583.333333333336,"d":"$14,583"},{"v":14583.333333333336,"d":"$14,583"},{"v":14583.333333333336,"d":"$14,583"},{"v":14583.333333333336,"d":"$14,583"},{"v":14583.333333333336,"d":"$14,583"},{"v":14583.333333333336,"d":"$14,583"},{"v":14583.333333333336,"d":"$14,583"},{"v":14583.333333333336,"d":"$14,583"},{"$f":"SUM(CO38:CZ38)","v":{"v":175000.0000000001,"d":"$175,000"}},{"$f":"DB38","v":{"v":14583.333333333336,"d":"$14,583"}},{"v":14583.333333333336,"d":"$14,583"},{"v":14583.333333333336,"d":"$14,583"},{"v":14583.333333333336,"d":"$14,583"},{"v":14583.333333333336,"d":"$14,583"},{"v":14583.333333333336,"d":"$14,583"},{"v":14583.333333333336,"d":"$14,583"},{"v":14583.333333333336,"d":"$14,583"},{"v":14583.333333333336,"d":"$14,583"},{"v":14583.333333333336,"d":"$14,583"},{"v":14583.333333333336,"d":"$14,583"},{"v":14583.333333333336,"d":"$14,583"},{"$f":"SUM(DB38:DM38)","v":{"v":175000.0000000001,"d":"$175,000"}},{"$f":"DO38","v":{"v":14583.333333333336,"d":"$14,583"}},{"v":14583.333333333336,"d":"$14,583"},{"v":14583.333333333336,"d":"$14,583"},{"v":14583.333333333336,"d":"$14,583"},{"v":14583.333333333336,"d":"$14,583"},{"v":14583.333333333336,"d":"$14,583"},{"v":14583.333333333336,"d":"$14,583"},{"v":14583.333333333336,"d":"$14,583"},{"v":14583.333333333336,"d":"$14,583"},{"v":14583.333333333336,"d":"$14,583"},{"v":14583.333333333336,"d":"$14,583"},{"v":14583.333333333336,"d":"$14,583"},{"$f":"SUM(DO38:DZ38)","v":{"v":175000.0000000001,"d":"$175,000"}},{"$f":"EB38","v":{"v":14583.333333333336,"d":"$14,583"}},{"v":14583.333333333336,"d":"$14,583"},{"v":14583.333333333336,"d":"$14,583"},{"v":14583.333333333336,"d":"$14,583"},{"v":14583.333333333336,"d":"$14,583"},{"v":14583.333333333336,"d":"$14,583"},{"v":14583.333333333336,"d":"$14,583"},{"v":14583.333333333336,"d":"$14,583"},{"v":14583.333333333336,"d":"$14,583"},{"v":14583.333333333336,"d":"$14,583"},{"v":14583.333333333336,"d":"$14,583"},{"v":14583.333333333336,"d":"$14,583"},{"$f":"SUM(EB38:EM38)","v":{"v":175000.0000000001,"d":"$175,000"}}]
[{"$f":"Labels!B83","v":"Tax"},{"$f":"Inputs!B52*B44","v":{"v":352696.4779297117,"d":"$352,696"}},{"$f":"Inputs!B52*C44","v":{"v":364949.74668898975,"d":"$364,950"}},{"$f":"Inputs!B52*D44","v":{"v":354071.4979826494,"d":"$354,071"}},{"$f":"Inputs!B52*E44","v":{"v":351499.2356917042,"d":"$351,499"}},{"$f":"Inputs!B52*F44","v":{"v":356888.633309275,"d":"$356,889"}},{"$f":"Inputs!B52*G44","v":{"v":356164.73787818773,"d":"$356,165"}},{"$f":"Inputs!B52*H44","v":{"v":352243.421303493,"d":"$352,243"}},{"$f":"Inputs!B52*I44","v":{"v":338428.74894685467,"d":"$338,429"}},{"$f":"Inputs!B52*J44","v":{"v":365274.3823290077,"d":"$365,274"}},{"$f":"Inputs!B52*K44","v":{"v":340463.43734338356,"d":"$340,463"}},{"$f":"Inputs!B52*L44","v":{"v":349818.1678319264,"d":"$349,818"}},{"$f":"Inputs!B52*M44","v":{"v":359977.9580099638,"d":"$359,978"}},{"$f":"SUM(B54:M54)","v":{"v":4242476.445245147,"d":"$4,242,476"}},{"$f":"Inputs!B52*O44","v":{"v":339326.57186697103,"d":"$339,327"}},{"$f":"Inputs!B52*P44","v":{"v":332965.04878806236,"d":"$332,965"}},{"$f":"Inputs!B52*Q44","v":{"v":360762.572922032,"d":"$360,763"}},{"$f":"Inputs!B52*R44","v":{"v":342999.63617667486,"d":"$343,000"}},{"$f":"Inputs!B52*S44","v":{"v":351218.6283392869,"d":"$351,219"}},{"$f":"Inputs!B52*T44","v":{"v":324071.26352958515,"d":"$324,071"}},{"$f":"Inputs!B52*U44","v":{"v":331697.7991474275,"d":"$331,698"}},{"$f":"Inputs!B52*V44","v":{"v":338489.55079769436,"d":"$338,490"}},{"$f":"Inputs!B52*W44","v":{"v":356472.67005996476,"d":"$356,473"}},{"$f":"Inputs!B52*X44","v":{"v":346197.4397965423,"d":"$346,197"}},{"$f":"Inputs!B52*Y44","v":{"v":350067.6189377303,"d":"$350,068"}},{"$f":"Inputs!B52*Z44","v":{"v":337450.2078685217,"d":"$337,450"}},{"$f":"SUM(O54:Z54)","v":{"v":4111719.008230493,"d":"$4,111,719"}},{"$f":"Inputs!B52*AB44","v":{"v":334803.44883530267,"d":"$334,803"}},{"$f":"Inputs!B52*AC44","v":{"v":325399.50208084873,"d":"$325,400"}},{"$f":"Inputs!B52*AD44","v":{"v":344023.88328595436,"d":"$344,024"}},{"$f":"Inputs!B52*AE44","v":{"v":335470.0629299056,"d":"$335,470"}},{"$f":"Inputs!B52*AF44","v":{"v":338418.7194346714,"d":"$338,419"}},{"$f":"Inputs!B52*AG44","v":{"v":334446.91308773647,"d":"$334,447"}},{"$f":"Inputs!B52*AH44","v":{"v":337662.38960522023,"d":"$337,662"}},{"$f":"Inputs!B52*AI44","v":{"v":332296.3215638606,"d":"$332,296"}},{"$f":"Inputs!B52*AJ44","v":{"v":338486.74353667157,"d":"$338,487"}},{"$f":"Inputs!B52*AK44","v":{"v":345678.2089820368,"d":"$345,678"}},{"$f":"Inputs!B52*AL44","v":{"v":333247.8528875679,"d":"$333,248"}},{"$f":"Inputs!B52*AM44","v":{"v":323512.01636138884,"d":"$323,512"}},{"$f":"SUM(AB54:AM54)","v":{"v":4023446.0625911653,"d":"$4,023,446"}},{"$f":"Inputs!B52*AO44","v":{"v":325179.3328358273,"d":"$325,179"}},{"$f":"Inputs!B52*AP44","v":{"v":324864.13763427205,"d":"$324,864"}},{"$f":"Inputs!B52*AQ44","v":{"v":338551.4508676891,"d":"$338,551"}},{"$f":"Inputs!B52*AR44","v":{"v":327452.9952948582,"d":"$327,453"}},{"$f":"Inputs!B52*AS44","v":{"v":321242.01858043653,"d":"$321,242"}},{"$f":"Inputs!B52*AT44","v":{"v":329919.10108897346,"d":"$329,919"}},{"$f":"Inputs!B52*AU44","v":{"v":341652.43243790953,"d":"$341,652"}},{"$f":"Inputs!B52*AV44","v":{"v":335310.69989802985,"d":"$335,311"}},{"$f":"Inputs!B52*AW44","v":{"v":342803.91776626906,"d":"$342,804"}},{"$f":"Inputs!B52*AX44","v":{"v":334935.9663756841,"d":"$334,936"}},{"$f":"Inputs!B52*AY44","v":{"v":313310.7732406307,"d":"$313,311"}},{"$f":"Inputs!B52*AZ44","v":{"v":324064.05248333036,"d":"$324,064"}},{"$f":"SUM(AO54:AZ54)","v":{"v":3959286.87850391,"d":"$3,959,287"}},{"$f":"Inputs!B52*BB44","v":{"v":329514.0490537312,"d":"$329,514"}},{"$f":"Inputs!B52*BC44","v":{"v":334726.31881789677,"d":"$334,726"}},{"$f":"Inputs!B52*BD44","v":{"v":321908.70267635654,"d":"$321,909"}},{"$f":"Inputs!B52*BE44","v":{"v":323009.2292532503,"d":"$323,009"}},{"$f":"Inputs!B52*BF44","v":{"v":338439.6827060927,"d":"$338,440"}},{"$f":"Inputs!B52*BG44","v":{"v":325440.3589244257,"d":"$325,440"}},{"$f":"Inputs!B52*BH44","v":{"v":318947.29824160907,"d":"$318,947"}},{"$f":"Inputs!B52*BI44","v":{"v":330262.8471647753,"d":"$330,263"}},{"$f":"Inputs!B52*BJ44","v":{"v":322644.9237842995,"d":"$322,645"}},{"$f":"Inputs!B52*BK44","v":{"v":310736.15596581483,"d":"$310,736"}},{"$f":"Inputs!B52*BL44","v":{"v":310174.91743832256,"d":"$310,175"}},{"$f":"Inputs!B52*BM44","v":{"v":338635.2211341666,"d":"$338,635"}},{"$f":"SUM(BB54:BM54)","v":{"v":3904439.7051607408,"d":"$3,904,440"}},{"$f":"Inputs!B52*BO44","v":{"v":315949.1823690601,"d":"$315,949"}},{"$f":"Inputs!B52*BP44","v":{"v":324045.26028240565,"d":"$324,045"}},{"$f":"Inputs!B52*BQ44","v":{"v":327213.0280127619,"d":"$327,213"}},{"$f":"Inputs!B52*BR44","v":{"v":325562.4338181481,"d":"$325,562"}},{"$f":"Inputs!B52*BS44","v":{"v":321929.11784453515,"d":"$321,929"}},{"$f":"Inputs!B52*BT44","v":{"v":306973.52453263156,"d":"$306,974"}},{"$f":"Inputs!B52*BU44","v":{"v":315284.4154345963,"d":"$315,284"}},{"$f":"Inputs!B52*BV44","v":{"v":332166.77878555574,"d":"$332,167"}},{"$f":"Inputs!B52*BW44","v":{"v":322363.11263289594,"d":"$322,363"}},{"$f":"Inputs!B52*BX44","v":{"v":315799.1640971028,"d":"$315,799"}},{"$f":"Inputs!B52*BY44","v":{"v":328464.1810876463,"d":"$328,464"}},{"$f":"Inputs!B52*BZ44","v":{"v":323669.3340763419,"d":"$323,669"}},{"$f":"SUM(BO54:BZ54)","v":{"v":3859419.5329736806,"d":"$3,859,420"}},{"$f":"Inputs!B52*CB44","v":{"v":334347.592755031,"d":"$334,348"}},{"$f":"Inputs!B52*CC44","v":{"v":330234.5577877758,"d":"$330,235"}},{"$f":"Inputs!B52*CD44","v":{"v":319389.6589941225,"d":"$319,390"}},{"$f":"Inputs!B52*CE44","v":{"v":319708.72380629444,"d":"$319,709"}},{"$f":"Inputs!B52*CF44","v":{"v":325173.7392651444,"d":"$325,174"}},{"$f":"Inputs!B52*CG44","v":{"v":312402.5155767926,"d":"$312,403"}},{"$f":"Inputs!B52*CH44","v":{"v":324534.4423732282,"d":"$324,534"}},{"$f":"Inputs!B52*CI44","v":{"v":324789.83280391875,"d":"$324,790"}},{"$f":"Inputs!B52*CJ44","v":{"v":333007.0298676634,"d":"$333,007"}},{"$f":"Inputs!B52*CK44","v":{"v":304775.64861189714,"d":"$304,776"}},{"$f":"Inputs!B52*CL44","v":{"v":317778.03866587655,"d":"$317,778"}},{"$f":"Inputs!B52*CM44","v":{"v":329714.43163671566,"d":"$329,714"}},{"$f":"SUM(CB54:CM54)","v":{"v":3875856.212144461,"d":"$3,875,856"}},{"$f":"Inputs!B52*CO44","v":{"v":310616.65966160636,"d":"$310,617"}},{"$f":"Inputs!B52*CP44","v":{"v":314283.03012667387,"d":"$314,283"}},{"$f":"Inputs!B52*CQ44","v":{"v":318833.7190230491,"d":"$318,834"}},{"$f":"Inputs!B52*CR44","v":{"v":309539.6640375394,"d":"$309,540"}},{"$f":"Inputs!B52*CS44","v":{"v":318442.65390856523,"d":"$318,443"}},{"$f":"Inputs!B52*CT44","v":{"v":302030.2242951153,"d":"$302,030"}},{"$f":"Inputs!B52*CU44","v":{"v":327878.48695601063,"d":"$327,878"}},{"$f":"Inputs!B52*CV44","v":{"v":297320.66336771566,"d":"$297,321"}},{"$f":"Inputs!B52*CW44","v":{"v":319095.37685411447,"d":"$319,095"}},{"$f":"Inputs!B52*CX44","v":{"v":331274.33791344316,"d":"$331,274"}},{"$f":"Inputs!B52*CY44","v":{"v":302944.98331860424,"d":"$302,945"}},{"$f":"Inputs!B52*CZ44","v":{"v":312891.7791661891,"d":"$312,892"}},{"$f":"SUM(CO54:CZ54)","v":{"v":3765151.578628626,"d":"$3,765,152"}},{"$f":"Inputs!B52*DB44","v":{"v":313115.6399431857,"d":"$313,116"}},{"$f":"Inputs!B52*DC44","v":{"v":309602.6109129123,"d":"$309,603"}},{"$f":"Inputs!B52*DD44","v":{"v":315247.98504869104,"d":"$315,248"}},{"$f":"Inputs!B52*DE44","v":{"v":311874.6911068356,"d":"$311,875"}},{"$f":"Inputs!B52*DF44","v":{"v":320540.21390479576,"d":"$320,540"}},{"$f":"Inputs!B52*DG44","v":{"v":305086.8250240642,"d":"$305,087"}},{"$f":"Inputs!B52*DH44","v":{"v":306729.1626767757,"d":"$306,729"}},{"$f":"Inputs!B52*DI44","v":{"v":307453.82228738524,"d":"$307,454"}},{"$f":"Inputs!B52*DJ44","v":{"v":311596.47307168896,"d":"$311,596"}},{"$f":"Inputs!B52*DK44","v":{"v":319167.2083172808,"d":"$319,167"}},{"$f":"Inputs!B52*DL44","v":{"v":324709.82287115813,"d":"$324,710"}},{"$f":"Inputs!B52*DM44","v":{"v":295637.74570154835,"d":"$295,638"}},{"$f":"SUM(DB54:DM54)","v":{"v":3740762.2008663216,"d":"$3,740,762"}},{"$f":"Inputs!B52*DO44","v":{"v":302341.9811049446,"d":"$302,342"}},{"$f":"Inputs!B52*DP44","v":{"v":294401.77486160304,"d":"$294,402"}},{"$f":"Inputs!B52*DQ44","v":{"v":303386.4559771335,"d":"$303,386"}},{"$f":"Inputs!B52*DR44","v":{"v":308900.7044308531,"d":"$308,901"}},{"$f":"Inputs!B52*DS44","v":{"v":302351.84925536806,"d":"$302,352"}},{"$f":"Inputs!B52*DT44","v":{"v":305492.106672903,"d":"$305,492"}},{"$f":"Inputs!B52*DU44","v":{"v":304005.9128877478,"d":"$304,006"}},{"$f":"Inputs!B52*DV44","v":{"v":291095.54308901966,"d":"$291,096"}},{"$f":"Inputs!B52*DW44","v":{"v":307157.65178971796,"d":"$307,158"}},{"$f":"Inputs!B52*DX44","v":{"v":305538.24438558443,"d":"$305,538"}},{"$f":"Inputs!B52*DY44","v":{"v":303647.79479365516,"d":"$303,648"}},{"$f":"Inputs!B52*DZ44","v":{"v":307106.6867537976,"d":"$307,107"}},{"$f":"SUM(DO54:DZ54)","v":{"v":3635426.7060023276,"d":"$3,635,427"}},{"$f":"Inputs!B52*EB44","v":{"v":306634.70390318136,"d":"$306,635"}},{"$f":"Inputs!B52*EC44","v":{"v":298552.96173358284,"d":"$298,553"}},{"$f":"Inputs!B52*ED44","v":{"v":286542.65279789205,"d":"$286,543"}},{"$f":"Inputs!B52*EE44","v":{"v":321187.7872470465,"d":"$321,188"}},{"$f":"Inputs!B52*EF44","v":{"v":309206.71589251596,"d":"$309,207"}},{"$f":"Inputs!B52*EG44","v":{"v":303316.6168754018,"d":"$303,317"}},{"$f":"Inputs!B52*EH44","v":{"v":313184.6562845431,"d":"$313,185"}},{"$f":"Inputs!B52*EI44","v":{"v":306231.90188945085,"d":"$306,232"}},{"$f":"Inputs!B52*EJ44","v":{"v":301780.6646626461,"d":"$301,781"}},{"$f":"Inputs!B52*EK44","v":{"v":297861.7694247967,"d":"$297,862"}},{"$f":"Inputs!B52*EL44","v":{"v":308935.24496171356,"d":"$308,935"}},{"$f":"Inputs!B52*EM44","v":{"v":301131.83207525586,"d":"$301,132"}},{"$f":"SUM(EB54:EM54)","v":{"v":3654567.5077480264,"d":"$3,654,568"}}]
[]
[]
[{"$f":"\"Stochastic Shocks\"","v":"Stochastic Shocks"}]
[{"$f":"\" \"","v":" "}]
[null,{"$f":"ZZZ__FnCalls!F7","v":"Jan 2010"},{"$f":"ZZZ__FnCalls!F8","v":"Feb 2010"},{"$f":"ZZZ__FnCalls!F9","v":"Mar 2010"},{"$f":"ZZZ__FnCalls!F10","v":"Apr 2010"},{"$f":"ZZZ__FnCalls!F11","v":"May 2010"},{"$f":"ZZZ__FnCalls!F12","v":"Jun 2010"},{"$f":"ZZZ__FnCalls!F13","v":"Jul 2010"},{"$f":"ZZZ__FnCalls!F14","v":"Aug 2010"},{"$f":"ZZZ__FnCalls!F15","v":"Sep 2010"},{"$f":"ZZZ__FnCalls!F16","v":"Oct 2010"},{"$f":"ZZZ__FnCalls!F17","v":"Nov 2010"},{"$f":"ZZZ__FnCalls!F18","v":"Dec 2010"},{"$f":"ZZZ__FnCalls!H7","v":"2010"},{"$f":"ZZZ__FnCalls!F19","v":"Jan 2011"},{"$f":"ZZZ__FnCalls!F20","v":"Feb 2011"},{"$f":"ZZZ__FnCalls!F21","v":"Mar 2011"},{"$f":"ZZZ__FnCalls!F22","v":"Apr 2011"},{"$f":"ZZZ__FnCalls!F23","v":"May 2011"},{"$f":"ZZZ__FnCalls!F24","v":"Jun 2011"},{"$f":"ZZZ__FnCalls!F25","v":"Jul 2011"},{"$f":"ZZZ__FnCalls!F26","v":"Aug 2011"},{"$f":"ZZZ__FnCalls!F27","v":"Sep 2011"},{"$f":"ZZZ__FnCalls!F28","v":"Oct 2011"},{"$f":"ZZZ__FnCalls!F29","v":"Nov 2011"},{"$f":"ZZZ__FnCalls!F30","v":"Dec 2011"},{"$f":"ZZZ__FnCalls!H19","v":"2011"},{"$f":"ZZZ__FnCalls!F31","v":"Jan 2012"},{"$f":"ZZZ__FnCalls!F32","v":"Feb 2012"},{"$f":"ZZZ__FnCalls!F33","v":"Mar 2012"},{"$f":"ZZZ__FnCalls!F34","v":"Apr 2012"},{"$f":"ZZZ__FnCalls!F35","v":"May 2012"},{"$f":"ZZZ__FnCalls!F36","v":"Jun 2012"},{"$f":"ZZZ__FnCalls!F37","v":"Jul 2012"},{"$f":"ZZZ__FnCalls!F38","v":"Aug 2012"},{"$f":"ZZZ__FnCalls!F39","v":"Sep 2012"},{"$f":"ZZZ__FnCalls!F40","v":"Oct 2012"},{"$f":"ZZZ__FnCalls!F41","v":"Nov 2012"},{"$f":"ZZZ__FnCalls!F42","v":"Dec 2012"},{"$f":"ZZZ__FnCalls!H31","v":"2012"},{"$f":"ZZZ__FnCalls!F43","v":"Jan 2013"},{"$f":"ZZZ__FnCalls!F44","v":"Feb 2013"},{"$f":"ZZZ__FnCalls!F45","v":"Mar 2013"},{"$f":"ZZZ__FnCalls!F46","v":"Apr 2013"},{"$f":"ZZZ__FnCalls!F47","v":"May 2013"},{"$f":"ZZZ__FnCalls!F48","v":"Jun 2013"},{"$f":"ZZZ__FnCalls!F49","v":"Jul 2013"},{"$f":"ZZZ__FnCalls!F50","v":"Aug 2013"},{"$f":"ZZZ__FnCalls!F51","v":"Sep 2013"},{"$f":"ZZZ__FnCalls!F52","v":"Oct 2013"},{"$f":"ZZZ__FnCalls!F53","v":"Nov 2013"},{"$f":"ZZZ__FnCalls!F54","v":"Dec 2013"},{"$f":"ZZZ__FnCalls!H43","v":"2013"},{"$f":"ZZZ__FnCalls!F55","v":"Jan 2014"},{"$f":"ZZZ__FnCalls!F56","v":"Feb 2014"},{"$f":"ZZZ__FnCalls!F57","v":"Mar 2014"},{"$f":"ZZZ__FnCalls!F58","v":"Apr 2014"},{"$f":"ZZZ__FnCalls!F59","v":"May 2014"},{"$f":"ZZZ__FnCalls!F60","v":"Jun 2014"},{"$f":"ZZZ__FnCalls!F61","v":"Jul 2014"},{"$f":"ZZZ__FnCalls!F62","v":"Aug 2014"},{"$f":"ZZZ__FnCalls!F63","v":"Sep 2014"},{"$f":"ZZZ__FnCalls!F64","v":"Oct 2014"},{"$f":"ZZZ__FnCalls!F65","v":"Nov 2014"},{"$f":"ZZZ__FnCalls!F66","v":"Dec 2014"},{"$f":"ZZZ__FnCalls!H55","v":"2014"},{"$f":"ZZZ__FnCalls!F67","v":"Jan 2015"},{"$f":"ZZZ__FnCalls!F68","v":"Feb 2015"},{"$f":"ZZZ__FnCalls!F69","v":"Mar 2015"},{"$f":"ZZZ__FnCalls!F70","v":"Apr 2015"},{"$f":"ZZZ__FnCalls!F71","v":"May 2015"},{"$f":"ZZZ__FnCalls!F72","v":"Jun 2015"},{"$f":"ZZZ__FnCalls!F73","v":"Jul 2015"},{"$f":"ZZZ__FnCalls!F74","v":"Aug 2015"},{"$f":"ZZZ__FnCalls!F75","v":"Sep 2015"},{"$f":"ZZZ__FnCalls!F76","v":"Oct 2015"},{"$f":"ZZZ__FnCalls!F77","v":"Nov 2015"},{"$f":"ZZZ__FnCalls!F78","v":"Dec 2015"},{"$f":"ZZZ__FnCalls!H67","v":"2015"},{"$f":"ZZZ__FnCalls!F79","v":"Jan 2016"},{"$f":"ZZZ__FnCalls!F80","v":"Feb 2016"},{"$f":"ZZZ__FnCalls!F81","v":"Mar 2016"},{"$f":"ZZZ__FnCalls!F82","v":"Apr 2016"},{"$f":"ZZZ__FnCalls!F83","v":"May 2016"},{"$f":"ZZZ__FnCalls!F84","v":"Jun 2016"},{"$f":"ZZZ__FnCalls!F85","v":"Jul 2016"},{"$f":"ZZZ__FnCalls!F86","v":"Aug 2016"},{"$f":"ZZZ__FnCalls!F87","v":"Sep 2016"},{"$f":"ZZZ__FnCalls!F88","v":"Oct 2016"},{"$f":"ZZZ__FnCalls!F89","v":"Nov 2016"},{"$f":"ZZZ__FnCalls!F90","v":"Dec 2016"},{"$f":"ZZZ__FnCalls!H79","v":"2016"},{"$f":"ZZZ__FnCalls!F91","v":"Jan 2017"},{"$f":"ZZZ__FnCalls!F92","v":"Feb 2017"},{"$f":"ZZZ__FnCalls!F93","v":"Mar 2017"},{"$f":"ZZZ__FnCalls!F94","v":"Apr 2017"},{"$f":"ZZZ__FnCalls!F95","v":"May 2017"},{"$f":"ZZZ__FnCalls!F96","v":"Jun 2017"},{"$f":"ZZZ__FnCalls!F97","v":"Jul 2017"},{"$f":"ZZZ__FnCalls!F98","v":"Aug 2017"},{"$f":"ZZZ__FnCalls!F99","v":"Sep 2017"},{"$f":"ZZZ__FnCalls!F100","v":"Oct 2017"},{"$f":"ZZZ__FnCalls!F101","v":"Nov 2017"},{"$f":"ZZZ__FnCalls!F102","v":"Dec 2017"},{"$f":"ZZZ__FnCalls!H91","v":"2017"},{"$f":"ZZZ__FnCalls!F103","v":"Jan 2018"},{"$f":"ZZZ__FnCalls!F104","v":"Feb 2018"},{"$f":"ZZZ__FnCalls!F105","v":"Mar 2018"},{"$f":"ZZZ__FnCalls!F106","v":"Apr 2018"},{"$f":"ZZZ__FnCalls!F107","v":"May 2018"},{"$f":"ZZZ__FnCalls!F108","v":"Jun 2018"},{"$f":"ZZZ__FnCalls!F109","v":"Jul 2018"},{"$f":"ZZZ__FnCalls!F110","v":"Aug 2018"},{"$f":"ZZZ__FnCalls!F111","v":"Sep 2018"},{"$f":"ZZZ__FnCalls!F112","v":"Oct 2018"},{"$f":"ZZZ__FnCalls!F113","v":"Nov 2018"},{"$f":"ZZZ__FnCalls!F114","v":"Dec 2018"},{"$f":"ZZZ__FnCalls!H103","v":"2018"},{"$f":"ZZZ__FnCalls!F115","v":"Jan 2019"},{"$f":"ZZZ__FnCalls!F116","v":"Feb 2019"},{"$f":"ZZZ__FnCalls!F117","v":"Mar 2019"},{"$f":"ZZZ__FnCalls!F118","v":"Apr 2019"},{"$f":"ZZZ__FnCalls!F119","v":"May 2019"},{"$f":"ZZZ__FnCalls!F120","v":"Jun 2019"},{"$f":"ZZZ__FnCalls!F121","v":"Jul 2019"},{"$f":"ZZZ__FnCalls!F122","v":"Aug 2019"},{"$f":"ZZZ__FnCalls!F123","v":"Sep 2019"},{"$f":"ZZZ__FnCalls!F124","v":"Oct 2019"},{"$f":"ZZZ__FnCalls!F125","v":"Nov 2019"},{"$f":"ZZZ__FnCalls!F126","v":"Dec 2019"},{"$f":"ZZZ__FnCalls!H115","v":"2019"},{"$f":"ZZZ__FnCalls!F127","v":"Jan 2020"},{"$f":"ZZZ__FnCalls!F128","v":"Feb 2020"},{"$f":"ZZZ__FnCalls!F129","v":"Mar 2020"},{"$f":"ZZZ__FnCalls!F130","v":"Apr 2020"},{"$f":"ZZZ__FnCalls!F131","v":"May 2020"},{"$f":"ZZZ__FnCalls!F132","v":"Jun 2020"},{"$f":"ZZZ__FnCalls!F133","v":"Jul 2020"},{"$f":"ZZZ__FnCalls!F134","v":"Aug 2020"},{"$f":"ZZZ__FnCalls!F135","v":"Sep 2020"},{"$f":"ZZZ__FnCalls!F136","v":"Oct 2020"},{"$f":"ZZZ__FnCalls!F137","v":"Nov 2020"},{"$f":"ZZZ__FnCalls!F138","v":"Dec 2020"},{"$f":"ZZZ__FnCalls!H127","v":"2020"}]
[{"$f":"Labels!B74","v":"Aggregate Demand Shock"},{"$f":"B13","v":{"v":-12280.788358529968,"d":"($12,281)"}},{"v":-40975.35975570347,"d":"($40,975)"},{"v":8914.181053047007,"d":"$8,914"},{"v":61716.39273729128,"d":"$61,716"},{"v":17813.560011078414,"d":"$17,814"},{"v":-17363.96072464185,"d":"($17,364)"},{"v":1189.6035544669128,"d":"$1,190"},{"v":-35465.0933163641,"d":"($35,465)"},{"v":15653.254037021554,"d":"$15,653"},{"v":7116.473040870927,"d":"$7,116"},{"v":-34890.043266250366,"d":"($34,890)"},{"v":32316.313436644214,"d":"$32,316"},{"$f":"SUM(B13:M13)","v":{"v":3744.5324489305603,"d":"$3,745"}},{"$f":"O13","v":{"v":-17913.088054017695,"d":"($17,913)"}},{"v":30730.492096696005,"d":"$30,730"},{"v":34769.89141895605,"d":"$34,770"},{"v":-5969.870983814344,"d":"($5,970)"},{"v":-5063.508480203603,"d":"($5,064)"},{"v":-5276.994486918,"d":"($5,277)"},{"v":-36909.98266628036,"d":"($36,910)"},{"v":-23884.600175704738,"d":"($23,885)"},{"v":-14971.752138735652,"d":"($14,972)"},{"v":-21883.042143208957,"d":"($21,883)"},{"v":-58902.65631485259,"d":"($58,903)"},{"v":18502.538996357227,"d":"$18,503"},{"$f":"SUM(O13:Z13)","v":{"v":-106772.57293172665,"d":"($106,773)"}},{"$f":"AB13","v":{"v":1150.797609992831,"d":"$1,151"}},{"v":4197.105198503056,"d":"$4,197"},{"v":1476.9943065840814,"d":"$1,477"},{"v":60982.31080431782,"d":"$60,982"},{"v":1678.0097418138234,"d":"$1,678"},{"v":-12932.53048694964,"d":"($12,933)"},{"v":18285.623889590755,"d":"$18,286"},{"v":-45471.69801608922,"d":"($45,472)"},{"v":4884.285291664825,"d":"$4,884"},{"v":24350.82410582402,"d":"$24,351"},{"v":48968.866379793966,"d":"$48,969"},{"v":-16682.321905487726,"d":"($16,682)"},{"$f":"SUM(AB13:AM13)","v":{"v":90888.26691955858,"d":"$90,888"}},{"$f":"AO13","v":{"v":-5162.945080488648,"d":"($5,163)"}},{"v":18909.531741140898,"d":"$18,910"},{"v":16379.983182686248,"d":"$16,380"},{"v":-14935.159475057018,"d":"($14,935)"},{"v":16887.992632296584,"d":"$16,888"},{"v":16080.154720910698,"d":"$16,080"},{"v":7384.359519728429,"d":"$7,384"},{"v":10996.149251120703,"d":"$10,996"},{"v":-54507.440736279445,"d":"($54,507)"},{"v":-8426.345992950519,"d":"($8,426)"},{"v":38923.86539965329,"d":"$38,924"},{"v":-5447.506880264628,"d":"($5,448)"},{"$f":"SUM(AO13:AZ13)","v":{"v":37082.63828249659,"d":"$37,083"}},{"$f":"BB13","v":{"v":-22140.016173509102,"d":"($22,140)"}},{"v":4487.809662050237,"d":"$4,488"},{"v":39791.51640037385,"d":"$39,792"},{"v":-3717.24780609127,"d":"($3,717)"},{"v":29900.93264143633,"d":"$29,901"},{"v":-32118.940748978202,"d":"($32,119)"},{"v":-20307.38281531881,"d":"($20,307)"},{"v":-47685.128016157134,"d":"($47,685)"},{"v":27749.97389559331,"d":"$27,750"},{"v":-14413.121537468814,"d":"($14,413)"},{"v":8717.142064134205,"d":"$8,717"},{"v":-51858.369002526175,"d":"($51,858)"},{"$f":"SUM(BB13:BM13)","v":{"v":-81592.83143646157,"d":"($81,593)"}},{"$f":"BO13","v":{"v":-59322.809372433636,"d":"($59,323)"}},{"v":-35950.73855760756,"d":"($35,951)"},{"v":18766.447636082165,"d":"$18,766"},{"v":35311.60201876704,"d":"$35,312"},{"v":-47696.18772095256,"d":"($47,696)"},{"v":45814.47854188465,"d":"$45,814"},{"v":-23407.231168154245,"d":"($23,407)"},{"v":19469.779451302595,"d":"$19,470"},{"v":3163.958936760118,"d":"$3,164"},{"v":-54471.174967550956,"d":"($54,471)"},{"v":56543.40825967567,"d":"$56,543"},{"v":7993.806897755354,"d":"$7,994"},{"$f":"SUM(BO13:BZ13)","v":{"v":-33784.660044471355,"d":"($33,785)"}},{"$f":"CB13","v":{"v":21678.467129827553,"d":"$21,678"}},{"v":-23291.67235837952,"d":"($23,292)"},{"v":-7221.852242081351,"d":"($7,222)"},{"v":35035.00958744659,"d":"$35,035"},{"v":14945.908959219487,"d":"$14,946"},{"v":29969.76663872215,"d":"$29,970"},{"v":1113.991016374414,"d":"$1,114"},{"v":38736.69749729973,"d":"$38,737"},{"v":-38921.09274336001,"d":"($38,921)"},{"v":-5449.266132859716,"d":"($5,449)"},{"v":-48653.544808092076,"d":"($48,654)"},{"v":-7709.662596251709,"d":"($7,710)"},{"$f":"SUM(CB13:CM13)","v":{"v":10232.749947865555,"d":"$10,233"}},{"$f":"CO13","v":{"v":-23065.417275761552,"d":"($23,065)"}},{"v":-487.18241208469897,"d":"($487)"},{"v":12857.702423441056,"d":"$12,858"},{"v":-14560.875268043794,"d":"($14,561)"},{"v":18235.68993682117,"d":"$18,236"},{"v":-34662.15096399925,"d":"($34,662)"},{"v":36010.316476434986,"d":"$36,010"},{"v":-8608.829535669762,"d":"($8,609)"},{"v":35679.78217581833,"d":"$35,680"},{"v":-60045.00966502825,"d":"($60,045)"},{"v":28466.89401179469,"d":"$28,467"},{"v":-9657.346170622968,"d":"($9,657)"},{"$f":"SUM(CO13:CZ13)","v":{"v":-19836.42626690005,"d":"($19,836)"}},{"$f":"DB13","v":{"v":-12895.600699058443,"d":"($12,896)"}},{"v":17013.341633060358,"d":"$17,013"},{"v":-15208.941074944583,"d":"($15,209)"},{"v":19225.535703921178,"d":"$19,226"},{"v":29622.50102219177,"d":"$29,623"},{"v":-1669.220585768708,"d":"($1,669)"},{"v":4192.31651487967,"d":"$4,192"},{"v":8513.436538815016,"d":"$8,513"},{"v":45131.292080654726,"d":"$45,131"},{"v":-32350.73397625867,"d":"($32,351)"},{"v":-58696.94697055851,"d":"($58,697)"},{"v":-37862.4747544523,"d":"($37,862)"},{"$f":"SUM(DB13:DM13)","v":{"v":-34985.49456751849,"d":"($34,985)"}},{"$f":"DO13","v":{"v":29702.717600300213,"d":"$29,703"}},{"v":-46620.48764951737,"d":"($46,620)"},{"v":3267.860175956416,"d":"$3,268"},{"v":-10259.151184593371,"d":"($10,259)"},{"v":-28694.83495988415,"d":"($28,695)"},{"v":9286.044967635227,"d":"$9,286"},{"v":25635.0496310723,"d":"$25,635"},{"v":20326.41332498427,"d":"$20,326"},{"v":-36690.90536040782,"d":"($36,691)"},{"v":25582.739820635397,"d":"$25,583"},{"v":-2256.8065935029595,"d":"($2,257)"},{"v":-37823.61978853248,"d":"($37,824)"},{"$f":"SUM(DO13:DZ13)","v":{"v":-48544.98001585432,"d":"($48,545)"}},{"$f":"EB13","v":{"v":30809.617747219683,"d":"$30,810"}},{"v":16390.3158566239,"d":"$16,390"},{"v":-53503.61374919171,"d":"($53,504)"},{"v":-3705.694390215261,"d":"($3,706)"},{"v":47833.961645710646,"d":"$47,834"},{"v":-33776.88411864011,"d":"($33,777)"},{"v":-23602.98310020929,"d":"($23,603)"},{"v":-34248.46656827786,"d":"($34,248)"},{"v":13470.169437735452,"d":"$13,470"},{"v":-16497.57999083341,"d":"($16,498)"},{"v":20366.941748657013,"d":"$20,367"},{"v":-2482.414512783805,"d":"($2,482)"},{"$f":"SUM(EB13:EM13)","v":{"v":-38946.629994204755,"d":"($38,947)"}}]
[{"$f":"Labels!B78","v":"Output Shock"},{"$f":"B46","v":{"v":8988.25976570529,"d":"$8,988"}},{"v":51329.4248934539,"d":"$51,329"},{"v":16769.532510940757,"d":"$16,770"},{"v":9554.094526812523,"d":"$9,554"},{"v":28514.266504401465,"d":"$28,514"},{"v":27404.02329314825,"d":"$27,404"},{"v":15882.582047969521,"d":"$15,883"},{"v":-28742.742669848187,"d":"($28,743)"},{"v":62423.10509404799,"d":"$62,423"},{"v":-18951.652209599764,"d":"($18,952)"},{"v":13619.303529754427,"d":"$13,619"},{"v":49167.063184106555,"d":"$49,167"},{"$f":"SUM(B46:M46)","v":{"v":235957.2604708927,"d":"$235,957"}},{"$f":"O46","v":{"v":-18454.23548384229,"d":"($18,454)"}},{"v":-38094.031894922584,"d":"($38,094)"},{"v":55792.940685251495,"d":"$55,793"},{"v":-2216.108436547579,"d":"($2,216)"},{"v":26663.170273312604,"d":"$26,663"},{"v":-62351.670635750306,"d":"($62,352)"},{"v":-35452.57800958877,"d":"($35,453)"},{"v":-11116.284413817402,"d":"($11,116)"},{"v":50434.214369584515,"d":"$50,434"},{"v":17727.66630685353,"d":"$17,728"},{"v":32218.779744769225,"d":"$32,219"},{"v":-7993.141221303646,"d":"($7,993)"},{"$f":"SUM(O46:Z46)","v":{"v":7158.721283998799,"d":"$7,159"}},{"$f":"AB46","v":{"v":-15508.395742636421,"d":"($15,508)"}},{"v":-45429.488818951366,"d":"($45,429)"},{"v":18053.85428176768,"d":"$18,054"},{"v":-9039.992018025345,"d":"($9,040)"},{"v":1791.6595122968315,"d":"$1,792"},{"v":-10036.715759644914,"d":"($10,037)"},{"v":2191.095190909887,"d":"$2,191"},{"v":-14405.725765048848,"d":"($14,406)"},{"v":7958.36924680873,"d":"$7,958"},{"v":33307.16188277992,"d":"$33,307"},{"v":-6888.966656636441,"d":"($6,889)"},{"v":-38278.671926475814,"d":"($38,279)"},{"$f":"SUM(AB46:AM46)","v":{"v":-76285.8165728561,"d":"($76,286)"}},{"$f":"AO46","v":{"v":-31206.34103148309,"d":"($31,206)"}},{"v":-30825.438896339932,"d":"($30,825)"},{"v":16059.850368069105,"d":"$16,060"},{"v":-19660.49529695805,"d":"($19,660)"},{"v":-38876.27552588152,"d":"($38,876)"},{"v":-8689.893206970377,"d":"($8,690)"},{"v":31685.461400670247,"d":"$31,685"},{"v":11866.489451788415,"d":"$11,866"},{"v":38134.0835674423,"d":"$38,134"},{"v":13647.888426986296,"d":"$13,648"},{"v":-57019.88276380748,"d":"($57,020)"},{"v":-20092.985207068483,"d":"($20,093)"},{"$f":"SUM(AO46:AZ46)","v":{"v":-94977.53871355258,"d":"($94,978)"}},{"$f":"BB46","v":{"v":-540.3989306399533,"d":"($540)"}},{"v":18331.160355242966,"d":"$18,331"},{"v":-23086.369172292816,"d":"($23,086)"},{"v":-18360.535334644304,"d":"($18,361)"},{"v":34428.414917534246,"d":"$34,428"},{"v":-7786.815316927031,"d":"($7,787)"},{"v":-27889.759085550097,"d":"($27,890)"},{"v":11282.779987219312,"d":"$11,283"},{"v":-12470.75118192301,"d":"($12,471)"},{"v":-51055.63880220981,"d":"($51,056)"},{"v":-51528.39517639153,"d":"($51,528)"},{"v":44572.0227328485,"d":"$44,572"},{"$f":"SUM(BB46:BM46)","v":{"v":-84104.28500773353,"d":"($84,104)"}},{"$f":"BO46","v":{"v":-29399.807445239545,"d":"($29,400)"}},{"v":-717.9187275717957,"d":"($718)"},{"v":11369.550500520732,"d":"$11,370"},{"v":7010.605520350904,"d":"$7,011"},{"v":-4078.6206055264165,"d":"($4,079)"},{"v":-52338.83355875646,"d":"($52,339)"},{"v":-23698.494845983885,"d":"($23,698)"},{"v":33988.01463386377,"d":"$33,988"},{"v":2418.1095592890647,"d":"$2,418"},{"v":-18246.082031395974,"d":"($18,246)"},{"v":25580.566426427475,"d":"$25,581"},{"v":10431.912207702797,"d":"$10,432"},{"$f":"SUM(BO46:BZ46)","v":{"v":-37680.99836631934,"d":"($37,681)"}},{"$f":"CB46","v":{"v":47190.253157493506,"d":"$47,190"}},{"v":34543.12776209686,"d":"$34,543"},{"v":-237.9714075351569,"d":"($238)"},{"v":2076.7195964383022,"d":"$2,077"},{"v":21245.361334268895,"d":"$21,245"},{"v":-20240.435246853744,"d":"($20,240)"},{"v":21173.6499359129,"d":"$21,174"},{"v":23193.60515834949,"d":"$23,194"},{"v":51485.67427633929,"d":"$51,486"},{"v":-41184.82535668505,"d":"($41,185)"},{"v":3352.5741496896994,"d":"$3,353"},{"v":44631.475447278,"d":"$44,631"},{"$f":"SUM(CB46:CM46)","v":{"v":187229.20880679297,"d":"$187,229"}},{"$f":"CO46","v":{"v":-17826.149017180018,"d":"($17,826)"}},{"v":-4302.824188857013,"d":"($4,303)"},{"v":12006.179904234528,"d":"$12,006"},{"v":-17932.430742878834,"d":"($17,932)"},{"v":12970.014839141058,"d":"$12,970"},{"v":-40745.38857838374,"d":"($40,745)"},{"v":46769.29377433866,"d":"$46,769"},{"v":-54231.84445928545,"d":"($54,232)"},{"v":19511.78673029283,"d":"$19,512"},{"v":60957.02810742399,"d":"$60,957"},{"v":-31967.18089149902,"d":"($31,967)"},{"v":2075.8442041977896,"d":"$2,076"},{"$f":"SUM(CO46:CZ46)","v":{"v":-12715.67031845522,"d":"($12,716)"}},{"$f":"DB46","v":{"v":3967.9999852939886,"d":"$3,968"}},{"v":-6579.141951782406,"d":"($6,579)"},{"v":13188.57437796284,"d":"$13,189"},{"v":3111.999669603769,"d":"$3,112"},{"v":32920.2370219365,"d":"$32,920"},{"v":-17746.012273434168,"d":"($17,746)"},{"v":-11215.533189017026,"d":"($11,216)"},{"v":-7789.883759656015,"d":"($7,790)"},{"v":6993.7188246983915,"d":"$6,994"},{"v":32944.56366273864,"d":"$32,945"},{"v":52666.945443715966,"d":"$52,667"},{"v":-42815.02894841994,"d":"($42,815)"},{"$f":"SUM(DB46:DM46)","v":{"v":59648.43886364054,"d":"$59,648"}},{"$f":"DO46","v":{"v":-19192.140036807064,"d":"($19,192)"}},{"v":-44857.514447982554,"d":"($44,858)"},{"v":-13582.236078647713,"d":"($13,582)"},{"v":5774.454035799423,"d":"$5,774"},{"v":-14990.515799873217,"d":"($14,991)"},{"v":-3335.6050100491852,"d":"($3,336)"},{"v":-7370.603354762802,"d":"($7,371)"},{"v":-49605.146342547465,"d":"($49,605)"},{"v":4766.5111340128915,"d":"$4,767"},{"v":590.7629681078386,"d":"$591"},{"v":-4925.437778245941,"d":"($4,925)"},{"v":7577.274147895871,"d":"$7,577"},{"$f":"SUM(DO46:DZ46)","v":{"v":-139150.19656309992,"d":"($139,150)"}},{"$f":"EB46","v":{"v":7219.1189151178605,"d":"$7,219"}},{"v":-18985.97376202698,"d":"($18,986)"},{"v":-58191.789480896536,"d":"($58,192)"},{"v":58600.899593941314,"d":"$58,601"},{"v":19623.716278254076,"d":"$19,624"},{"v":586.3553853209191,"d":"$586"},{"v":34636.94434335719,"d":"$34,637"},{"v":12543.350765509354,"d":"$12,543"},{"v":-1142.708467785103,"d":"($1,143)"},{"v":-13390.052910305432,"d":"($13,390)"},{"v":24540.218007216998,"d":"$24,540"},{"v":-712.8357401669238,"d":"($713)"},{"$f":"SUM(EB46:EM46)","v":{"v":65327.24292753674,"d":"$65,327"}}]

{"sheet":"Trial 3","index":6,"n_rows":61,"n_cols":144,"rows_kept":61,"merged":[[0,0,0,2],[1,0,1,2],[2,0,2,2],[3,0,3,2],[4,0,4,2]]}
[{"$f":"\"Equilibrium Economy with Shocks\"","v":"Equilibrium Economy with Shocks"}]
[{"$f":"\"Model: \"&Inputs!B8","v":"Model: Test Model"}]
[{"$f":"\"$ millions\"","v":"$ millions"}]
[{"$f":"\"Trial 3\"","v":"Trial 3"}]
[{"$f":"\"\"","v":""}]
[{"$f":"\"Demand\"","v":"Demand"}]
[{"$f":"\" \"","v":" "}]
[null,{"$f":"ZZZ__FnCalls!F7","v":"Jan 2010"},{"$f":"ZZZ__FnCalls!F8","v":"Feb 2010"},{"$f":"ZZZ__FnCalls!F9","v":"Mar 2010"},{"$f":"ZZZ__FnCalls!F10","v":"Apr 2010"},{"$f":"ZZZ__FnCalls!F11","v":"May 2010"},{"$f":"ZZZ__FnCalls!F12","v":"Jun 2010"},{"$f":"ZZZ__FnCalls!F13","v":"Jul 2010"},{"$f":"ZZZ__FnCalls!F14","v":"Aug 2010"},{"$f":"ZZZ__FnCalls!F15","v":"Sep 2010"},{"$f":"ZZZ__FnCalls!F16","v":"Oct 2010"},{"$f":"ZZZ__FnCalls!F17","v":"Nov 2010"},{"$f":"ZZZ__FnCalls!F18","v":"Dec 2010"},{"$f":"ZZZ__FnCalls!H7","v":"2010"},{"$f":"ZZZ__FnCalls!F19","v":"Jan 2011"},{"$f":"ZZZ__FnCalls!F20","v":"Feb 2011"},{"$f":"ZZZ__FnCalls!F21","v":"Mar 2011"},{"$f":"ZZZ__FnCalls!F22","v":"Apr 2011"},{"$f":"ZZZ__FnCalls!F23","v":"May 2011"},{"$f":"ZZZ__FnCalls!F24","v":"Jun 2011"},{"$f":"ZZZ__FnCalls!F25","v":"Jul 2011"},{"$f":"ZZZ__FnCalls!F26","v":"Aug 2011"},{"$f":"ZZZ__FnCalls!F27","v":"Sep 2011"},{"$f":"ZZZ__FnCalls!F28","v":"Oct 2011"},{"$f":"ZZZ__FnCalls!F29","v":"Nov 2011"},{"$f":"ZZZ__FnCalls!F30","v":"Dec 2011"},{"$f":"ZZZ__FnCalls!H19","v":"2011"},{"$f":"ZZZ__FnCalls!F31","v":"Jan 2012"},{"$f":"ZZZ__FnCalls!F32","v":"Feb 2012"},{"$f":"ZZZ__FnCalls!F33","v":"Mar 2012"},{"$f":"ZZZ__FnCalls!F34","v":"Apr 2012"},{"$f":"ZZZ__FnCalls!F35","v":"May 2012"},{"$f":"ZZZ__FnCalls!F36","v":"Jun 2012"},{"$f":"ZZZ__FnCalls!F37","v":"Jul 2012"},{"$f":"ZZZ__FnCalls!F38","v":"Aug 2012"},{"$f":"ZZZ__FnCalls!F39","v":"Sep 2012"},{"$f":"ZZZ__FnCalls!F40","v":"Oct 2012"},{"$f":"ZZZ__FnCalls!F41","v":"Nov 2012"},{"$f":"ZZZ__FnCalls!F42","v":"Dec 2012"},{"$f":"ZZZ__FnCalls!H31","v":"2012"},{"$f":"ZZZ__FnCalls!F43","v":"Jan 2013"},{"$f":"ZZZ__FnCalls!F44","v":"Feb 2013"},{"$f":"ZZZ__FnCalls!F45","v":"Mar 2013"},{"$f":"ZZZ__FnCalls!F46","v":"Apr 2013"},{"$f":"ZZZ__FnCalls!F47","v":"May 2013"},{"$f":"ZZZ__FnCalls!F48","v":"Jun 2013"},{"$f":"ZZZ__FnCalls!F49","v":"Jul 2013"},{"$f":"ZZZ__FnCalls!F50","v":"Aug 2013"},{"$f":"ZZZ__FnCalls!F51","v":"Sep 2013"},{"$f":"ZZZ__FnCalls!F52","v":"Oct 2013"},{"$f":"ZZZ__FnCalls!F53","v":"Nov 2013"},{"$f":"ZZZ__FnCalls!F54","v":"Dec 2013"},{"$f":"ZZZ__FnCalls!H43","v":"2013"},{"$f":"ZZZ__FnCalls!F55","v":"Jan 2014"},{"$f":"ZZZ__FnCalls!F56","v":"Feb 2014"},{"$f":"ZZZ__FnCalls!F57","v":"Mar 2014"},{"$f":"ZZZ__FnCalls!F58","v":"Apr 2014"},{"$f":"ZZZ__FnCalls!F59","v":"May 2014"},{"$f":"ZZZ__FnCalls!F60","v":"Jun 2014"},{"$f":"ZZZ__FnCalls!F61","v":"Jul 2014"},{"$f":"ZZZ__FnCalls!F62","v":"Aug 2014"},{"$f":"ZZZ__FnCalls!F63","v":"Sep 2014"},{"$f":"ZZZ__FnCalls!F64","v":"Oct 2014"},{"$f":"ZZZ__FnCalls!F65","v":"Nov 2014"},{"$f":"ZZZ__FnCalls!F66","v":"Dec 2014"},{"$f":"ZZZ__FnCalls!H55","v":"2014"},{"$f":"ZZZ__FnCalls!F67","v":"Jan 2015"},{"$f":"ZZZ__FnCalls!F68","v":"Feb 2015"},{"$f":"ZZZ__FnCalls!F69","v":"Mar 2015"},{"$f":"ZZZ__FnCalls!F70","v":"Apr 2015"},{"$f":"ZZZ__FnCalls!F71","v":"May 2015"},{"$f":"ZZZ__FnCalls!F72","v":"Jun 2015"},{"$f":"ZZZ__FnCalls!F73","v":"Jul 2015"},{"$f":"ZZZ__FnCalls!F74","v":"Aug 2015"},{"$f":"ZZZ__FnCalls!F75","v":"Sep 2015"},{"$f":"ZZZ__FnCalls!F76","v":"Oct 2015"},{"$f":"ZZZ__FnCalls!F77","v":"Nov 2015"},{"$f":"ZZZ__FnCalls!F78","v":"Dec 2015"},{"$f":"ZZZ__FnCalls!H67","v":"2015"},{"$f":"ZZZ__FnCalls!F79","v":"Jan 2016"},{"$f":"ZZZ__FnCalls!F80","v":"Feb 2016"},{"$f":"ZZZ__FnCalls!F81","v":"Mar 2016"},{"$f":"ZZZ__FnCalls!F82","v":"Apr 2016"},{"$f":"ZZZ__FnCalls!F83","v":"May 2016"},{"$f":"ZZZ__FnCalls!F84","v":"Jun 2016"},{"$f":"ZZZ__FnCalls!F85","v":"Jul 2016"},{"$f":"ZZZ__FnCalls!F86","v":"Aug 2016"},{"$f":"ZZZ__FnCalls!F87","v":"Sep 2016"},{"$f":"ZZZ__FnCalls!F88","v":"Oct 2016"},{"$f":"ZZZ__FnCalls!F89","v":"Nov 2016"},{"$f":"ZZZ__FnCalls!F90","v":"Dec 2016"},{"$f":"ZZZ__FnCalls!H79","v":"2016"},{"$f":"ZZZ__FnCalls!F91","v":"Jan 2017"},{"$f":"ZZZ__FnCalls!F92","v":"Feb 2017"},{"$f":"ZZZ__FnCalls!F93","v":"Mar 2017"},{"$f":"ZZZ__FnCalls!F94","v":"Apr 2017"},{"$f":"ZZZ__FnCalls!F95","v":"May 2017"},{"$f":"ZZZ__FnCalls!F96","v":"Jun 2017"},{"$f":"ZZZ__FnCalls!F97","v":"Jul 2017"},{"$f":"ZZZ__FnCalls!F98","v":"Aug 2017"},{"$f":"ZZZ__FnCalls!F99","v":"Sep 2017"},{"$f":"ZZZ__FnCalls!F100","v":"Oct 2017"},{"$f":"ZZZ__FnCalls!F101","v":"Nov 2017"},{"$f":"ZZZ__FnCalls!F102","v":"Dec 2017"},{"$f":"ZZZ__FnCalls!H91","v":"2017"},{"$f":"ZZZ__FnCalls!F103","v":"Jan 2018"},{"$f":"ZZZ__FnCalls!F104","v":"Feb 2018"},{"$f":"ZZZ__FnCalls!F105","v":"Mar 2018"},{"$f":"ZZZ__FnCalls!F106","v":"Apr 2018"},{"$f":"ZZZ__FnCalls!F107","v":"May 2018"},{"$f":"ZZZ__FnCalls!F108","v":"Jun 2018"},{"$f":"ZZZ__FnCalls!F109","v":"Jul 2018"},{"$f":"ZZZ__FnCalls!F110","v":"Aug 2018"},{"$f":"ZZZ__FnCalls!F111","v":"Sep 2018"},{"$f":"ZZZ__FnCalls!F112","v":"Oct 2018"},{"$f":"ZZZ__FnCalls!F113","v":"Nov 2018"},{"$f":"ZZZ__FnCalls!F114","v":"Dec 2018"},{"$f":"ZZZ__FnCalls!H103","v":"2018"},{"$f":"ZZZ__FnCalls!F115","v":"Jan 2019"},{"$f":"ZZZ__FnCalls!F116","v":"Feb 2019"},{"$f":"ZZZ__FnCalls!F117","v":"Mar 2019"},{"$f":"ZZZ__FnCalls!F118","v":"Apr 2019"},{"$f":"ZZZ__FnCalls!F119","v":"May 2019"},{"$f":"ZZZ__FnCalls!F120","v":"Jun 2019"},{"$f":"ZZZ__FnCalls!F121","v":"Jul 2019"},{"$f":"ZZZ__FnCalls!F122","v":"Aug 2019"},{"$f":"ZZZ__FnCalls!F123","v":"Sep 2019"},{"$f":"ZZZ__FnCalls!F124","v":"Oct 2019"},{"$f":"ZZZ__FnCalls!F125","v":"Nov 2019"},{"$f":"ZZZ__FnCalls!F126","v":"Dec 2019"},{"$f":"ZZZ__FnCalls!H115","v":"2019"},{"$f":"ZZZ__FnCalls!F127","v":"Jan 2020"},{"$f":"ZZZ__FnCalls!F128","v":"Feb 2020"},{"$f":"ZZZ__FnCalls!F129","v":"Mar 2020"},{"$f":"ZZZ__FnCalls!F130","v":"Apr 2020"},{"$f":"ZZZ__FnCalls!F131","v":"May 2020"},{"$f":"ZZZ__FnCalls!F132","v":"Jun 2020"},{"$f":"ZZZ__FnCalls!F133","v":"Jul 2020"},{"$f":"ZZZ__FnCalls!F134","v":"Aug 2020"},{"$f":"ZZZ__FnCalls!F135","v":"Sep 2020"},{"$f":"ZZZ__FnCalls!F136","v":"Oct 2020"},{"$f":"ZZZ__FnCalls!F137","v":"Nov 2020"},{"$f":"ZZZ__FnCalls!F138","v":"Dec 2020"},{"$f":"ZZZ__FnCalls!H127","v":"2020"}]
[{"$f":"Labels!B28","v":"Aggregate Demand"},{"$f":"B36+0+B13","v":{"v":908644.1191228533,"d":"$908,644"}},{"v":971548.4311788123,"d":"$971,548"},{"v":931533.1640044932,"d":"$931,533"},{"v":1006242.7610823698,"d":"$1,006,243"},{"v":975655.6405177367,"d":"$975,656"},{"v":1001977.6769379871,"d":"$1,001,978"},{"v":947450.9189202542,"d":"$947,451"},{"v":987663.083691642,"d":"$987,663"},{"v":923286.6474627419,"d":"$923,287"},{"v":967916.9039283168,"d":"$967,917"},{"v":989333.880347226,"d":"$989,334"},{"v":932943.7627732146,"d":"$932,944"},{"$f":"SUM(B9:M9)","v":{"v":11544196.989967646,"d":"$11,544,197"}},{"$f":"O36+0+O13","v":{"v":967044.8216508331,"d":"$967,045"}},{"v":943047.5385522014,"d":"$943,048"},{"v":997763.1195832082,"d":"$997,763"},{"v":980255.9411303008,"d":"$980,256"},{"v":955794.2568280761,"d":"$955,794"},{"v":945713.0679702156,"d":"$945,713"},{"v":891998.020529059,"d":"$891,998"},{"v":926811.9375182266,"d":"$926,812"},{"v":966193.2044177938,"d":"$966,193"},{"v":957323.1460422662,"d":"$957,323"},{"v":937916.2431012222,"d":"$937,916"},{"v":894334.5127299024,"d":"$894,335"},{"$f":"SUM(O9:Z9)","v":{"v":11364195.810053306,"d":"$11,364,196"}},{"$f":"AB36+0+AB13","v":{"v":991621.1612228093,"d":"$991,621"}},{"v":930031.4940087548,"d":"$930,031"},{"v":915628.9545258282,"d":"$915,629"},{"v":976724.052374943,"d":"$976,724"},{"v":890968.8686891843,"d":"$890,969"},{"v":972658.8058148375,"d":"$972,659"},{"v":954509.817302213,"d":"$954,510"},{"v":922331.8926577612,"d":"$922,332"},{"v":966137.3294823788,"d":"$966,137"},{"v":952547.1618523662,"d":"$952,547"},{"v":932943.8381912053,"d":"$932,944"},{"v":929482.9385105749,"d":"$929,483"},{"$f":"SUM(AB9:AM9)","v":{"v":11335586.314632855,"d":"$11,335,586"}},{"$f":"AO36+0+AO13","v":{"v":974271.9403536422,"d":"$974,272"}},{"v":980749.1149328982,"d":"$980,749"},{"v":897304.4637475894,"d":"$897,304"},{"v":934370.1623262783,"d":"$934,370"},{"v":969282.5539698505,"d":"$969,283"},{"v":926581.0679119895,"d":"$926,581"},{"v":911759.5665399684,"d":"$911,760"},{"v":953459.6579637118,"d":"$953,460"},{"v":908922.0473697911,"d":"$908,922"},{"v":976972.8128701105,"d":"$976,973"},{"v":908209.2625296739,"d":"$908,209"},{"v":891582.8210261515,"d":"$891,583"},{"$f":"SUM(AO9:AZ9)","v":{"v":11233465.471541654,"d":"$11,233,465"}},{"$f":"BB36+0+BB13","v":{"v":927540.9445480566,"d":"$927,541"}},{"v":889985.7868221746,"d":"$889,986"},{"v":964859.2631638394,"d":"$964,859"},{"v":879396.0702326021,"d":"$879,396"},{"v":948580.7123088364,"d":"$948,581"},{"v":877758.1965151199,"d":"$877,758"},{"v":904871.5993588308,"d":"$904,872"},{"v":942654.3072784098,"d":"$942,654"},{"v":935695.1313910865,"d":"$935,695"},{"v":921990.7313359622,"d":"$921,991"},{"v":957673.5077155445,"d":"$957,674"},{"v":930063.6639037016,"d":"$930,064"},{"$f":"SUM(BB9:BM9)","v":{"v":11081069.914574163,"d":"$11,081,070"}},{"$f":"BO36+0+BO13","v":{"v":930834.2120829814,"d":"$930,834"}},{"v":945888.5515067232,"d":"$945,889"},{"v":901236.8796267429,"d":"$901,237"},{"v":934778.6211228372,"d":"$934,779"},{"v":955027.2054320695,"d":"$955,027"},{"v":920277.656381953,"d":"$920,278"},{"v":914827.6761523356,"d":"$914,828"},{"v":902188.18718252,"d":"$902,188"},{"v":943855.0992995605,"d":"$943,855"},{"v":891278.2944692001,"d":"$891,278"},{"v":968818.5516737526,"d":"$968,819"},{"v":916245.3540845425,"d":"$916,245"},{"$f":"SUM(BO9:BZ9)","v":{"v":11125256.289015219,"d":"$11,125,256"}},{"$f":"CB36+0+CB13","v":{"v":944089.1154552806,"d":"$944,089"}},{"v":919442.7911818249,"d":"$919,443"},{"v":929425.6013962618,"d":"$929,426"},{"v":930370.6083813698,"d":"$930,371"},{"v":926476.6007507923,"d":"$926,477"},{"v":950731.3465207247,"d":"$950,731"},{"v":954458.1874564469,"d":"$954,458"},{"v":965740.5136063226,"d":"$965,741"},{"v":918316.6800380568,"d":"$918,317"},{"v":943356.0481789397,"d":"$943,356"},{"v":955826.4312605822,"d":"$955,826"},{"v":969866.9038906917,"d":"$969,867"},{"$f":"SUM(CB9:CM9)","v":{"v":11308100.828117294,"d":"$11,308,101"}},{"$f":"CO36+0+CO13","v":{"v":888150.5498802776,"d":"$888,151"}},{"v":937701.9218117992,"d":"$937,702"},{"v":908754.2113933204,"d":"$908,754"},{"v":931221.327802194,"d":"$931,221"},{"v":916435.2252419568,"d":"$916,435"},{"v":927326.5796386552,"d":"$927,327"},{"v":939134.3626117085,"d":"$939,134"},{"v":922876.3366704341,"d":"$922,876"},{"v":890250.6203305252,"d":"$890,251"},{"v":960304.0787257282,"d":"$960,304"},{"v":896342.5371469519,"d":"$896,343"},{"v":946123.9969997247,"d":"$946,124"},{"$f":"SUM(CO9:CZ9)","v":{"v":11064621.748253277,"d":"$11,064,622"}},{"$f":"DB36+0+DB13","v":{"v":883915.262306991,"d":"$883,915"}},{"v":861020.1242525163,"d":"$861,020"},{"v":911774.9205335242,"d":"$911,775"},{"v":927943.6836648968,"d":"$927,944"},{"v":920609.0572957644,"d":"$920,609"},{"v":932108.1817120538,"d":"$932,108"},{"v":926506.2731028054,"d":"$926,506"},{"v":915976.8415694525,"d":"$915,977"},{"v":903259.7766405484,"d":"$903,260"},{"v":924743.2467894087,"d":"$924,743"},{"v":933819.290322877,"d":"$933,819"},{"v":922780.1692573145,"d":"$922,780"},{"$f":"SUM(DB9:DM9)","v":{"v":10964456.827448154,"d":"$10,964,457"}},{"$f":"DO36+0+DO13","v":{"v":928805.5006559027,"d":"$928,806"}},{"v":931800.3454066952,"d":"$931,800"},{"v":971044.1793412057,"d":"$971,044"},{"v":860474.0376635547,"d":"$860,474"},{"v":895152.1151261863,"d":"$895,152"},{"v":936006.4573356349,"d":"$936,006"},{"v":906043.3936113787,"d":"$906,043"},{"v":935895.4344426929,"d":"$935,895"},{"v":948295.5802777121,"d":"$948,296"},{"v":903815.5396087528,"d":"$903,816"},{"v":893295.0553476675,"d":"$893,295"},{"v":875899.1973368519,"d":"$875,899"},{"$f":"SUM(DO9:DZ9)","v":{"v":10986526.836154237,"d":"$10,986,527"}},{"$f":"EB36+0+EB13","v":{"v":907858.2255427389,"d":"$907,858"}},{"v":895378.3574365198,"d":"$895,378"},{"v":917987.0269983899,"d":"$917,987"},{"v":917639.0683667621,"d":"$917,639"},{"v":903990.4572852994,"d":"$903,990"},{"v":903952.2155655749,"d":"$903,952"},{"v":933077.6390920627,"d":"$933,078"},{"v":865889.9278129302,"d":"$865,890"},{"v":853661.072906925,"d":"$853,661"},{"v":945519.2542092126,"d":"$945,519"},{"v":925392.5173240772,"d":"$925,393"},{"v":894643.770749713,"d":"$894,644"},{"$f":"SUM(EB9:EM9)","v":{"v":10864989.533290206,"d":"$10,864,990"}}]
[{"$f":"Labels!B31","v":"Long Expected Demand"},{"$f":"'(Other Computations)'!B8+'(Other Computations)'!B61*0/Inputs!B13/12","v":{"v":1166666.6666666667,"d":"$1,166,667"}},{"$f":"B10+'(Other Computations)'!B61*(B9-B10)/Inputs!B13/12","v":{"v":1166069.3922510562,"d":"$1,166,069"}},{"$f":"C10+'(Other Computations)'!B61*(C9-C10)/Inputs!B13/12","v":{"v":1165619.1122485742,"d":"$1,165,619"}},{"$f":"D10+'(Other Computations)'!B61*(D9-D10)/Inputs!B13/12","v":{"v":1165077.2466276388,"d":"$1,165,077"}},{"$f":"E10+'(Other Computations)'!B61*(E9-E10)/Inputs!B13/12","v":{"v":1164709.574207395,"d":"$1,164,710"}},{"$f":"F10+'(Other Computations)'!B61*(F9-F10)/Inputs!B13/12","v":{"v":1164271.9493608912,"d":"$1,164,272"}},{"$f":"G10+'(Other Computations)'!B61*(G9-G10)/Inputs!B13/12","v":{"v":1163896.2681747272,"d":"$1,163,896"}},{"$f":"H10+'(Other Computations)'!B61*(H9-H10)/Inputs!B13/12","v":{"v":1163395.2372736752,"d":"$1,163,395"}},{"$f":"I10+'(Other Computations)'!B61*(I9-I10)/Inputs!B13/12","v":{"v":1162988.449881124,"d":"$1,162,988"}},{"$f":"J10+'(Other Computations)'!B61*(J9-J10)/Inputs!B13/12","v":{"v":1162433.5845977482,"d":"$1,162,434"}},{"$f":"K10+'(Other Computations)'!B61*(K9-K10)/Inputs!B13/12","v":{"v":1161983.314503606,"d":"$1,161,983"}},{"$f":"L10+'(Other Computations)'!B61*(L9-L10)/Inputs!B13/12","v":{"v":1161583.6630356514,"d":"$1,161,584"}},{"$f":"SUM(B10:M10)","v":{"v":13968694.458828755,"d":"$13,968,694"}},{"$f":"M10+'(Other Computations)'!B61*(M9-M10)/Inputs!B13/12","v":{"v":1161054.4040072663,"d":"$1,161,054"}},{"$f":"O10+'(Other Computations)'!B61*(O9-O10)/Inputs!B13/12","v":{"v":1160605.3077518116,"d":"$1,160,605"}},{"$f":"P10+'(Other Computations)'!B61*(P9-P10)/Inputs!B13/12","v":{"v":1160101.7018045902,"d":"$1,160,102"}},{"$f":"Q10+'(Other Computations)'!B61*(Q9-Q10)/Inputs!B13/12","v":{"v":1159725.9180494482,"d":"$1,159,726"}},{"$f":"R10+'(Other Computations)'!B61*(R9-R10)/Inputs!B13/12","v":{"v":1159310.4782880612,"d":"$1,159,310"}},{"$f":"S10+'(Other Computations)'!B61*(S9-S10)/Inputs!B13/12","v":{"v":1158839.3759235705,"d":"$1,158,839"}},{"$f":"T10+'(Other Computations)'!B61*(T9-T10)/Inputs!B13/12","v":{"v":1158346.0279884932,"d":"$1,158,346"}},{"$f":"U10+'(Other Computations)'!B61*(U9-U10)/Inputs!B13/12","v":{"v":1157729.4816749296,"d":"$1,157,729"}},{"$f":"V10+'(Other Computations)'!B61*(V9-V10)/Inputs!B13/12","v":{"v":1157194.950322715,"d":"$1,157,195"}},{"$f":"W10+'(Other Computations)'!B61*(W9-W10)/Inputs!B13/12","v":{"v":1156752.8166516388,"d":"$1,156,753"}},{"$f":"X10+'(Other Computations)'!B61*(X9-X10)/Inputs!B13/12","v":{"v":1156291.1738955986,"d":"$1,156,291"}},{"$f":"Y10+'(Other Computations)'!B61*(Y9-Y10)/Inputs!B13/12","v":{"v":1155785.6763706116,"d":"$1,155,786"}},{"$f":"SUM(O10:Z10)","v":{"v":13901737.312728735,"d":"$13,901,737"}},{"$f":"Z10+'(Other Computations)'!B61*(Z9-Z10)/Inputs!B13/12","v":{"v":1155180.4653436656,"d":"$1,155,180"}},{"$f":"AB10+'(Other Computations)'!B61*(AB9-AB10)/Inputs!B13/12","v":{"v":1154801.855843386,"d":"$1,154,802"}},{"$f":"AC10+'(Other Computations)'!B61*(AC9-AC10)/Inputs!B13/12","v":{"v":1154281.5540798798,"d":"$1,154,282"}},{"$f":"AD10+'(Other Computations)'!B61*(AD9-AD10)/Inputs!B13/12","v":{"v":1153729.117506838,"d":"$1,153,729"}},{"$f":"AE10+'(Other Computations)'!B61*(AE9-AE10)/Inputs!B13/12","v":{"v":1153319.3835597734,"d":"$1,153,319"}},{"$f":"AF10+'(Other Computations)'!B61*(AF9-AF10)/Inputs!B13/12","v":{"v":1152712.0907012767,"d":"$1,152,712"}},{"$f":"AG10+'(Other Computations)'!B61*(AG9-AG10)/Inputs!B13/12","v":{"v":1152295.3006899655,"d":"$1,152,295"}},{"$f":"AH10+'(Other Computations)'!B61*(AH9-AH10)/Inputs!B13/12","v":{"v":1151837.4639228643,"d":"$1,151,837"}},{"$f":"AI10+'(Other Computations)'!B61*(AI9-AI10)/Inputs!B13/12","v":{"v":1151306.2010264173,"d":"$1,151,306"}},{"$f":"AJ10+'(Other Computations)'!B61*(AJ9-AJ10)/Inputs!B13/12","v":{"v":1150877.5693793246,"d":"$1,150,878"}},{"$f":"AK10+'(Other Computations)'!B61*(AK9-AK10)/Inputs!B13/12","v":{"v":1150418.4712137529,"d":"$1,150,418"}},{"$f":"AL10+'(Other Computations)'!B61*(AL9-AL10)/Inputs!B13/12","v":{"v":1149915.057711386,"d":"$1,149,915"}},{"$f":"SUM(AB10:AM10)","v":{"v":13830674.530978529,"d":"$13,830,675"}},{"$f":"AM10+'(Other Computations)'!B61*(AM9-AM10)/Inputs!B13/12","v":{"v":1149404.7981761987,"d":"$1,149,405"}},{"$f":"AO10+'(Other Computations)'!B61*(AO9-AO10)/Inputs!B13/12","v":{"v":1148999.3980423503,"d":"$1,148,999"}},{"$f":"AP10+'(Other Computations)'!B61*(AP9-AP10)/Inputs!B13/12","v":{"v":1148609.9297944119,"d":"$1,148,610"}},{"$f":"AQ10+'(Other Computations)'!B61*(AQ9-AQ10)/Inputs!B13/12","v":{"v":1148028.2041785629,"d":"$1,148,028"}},{"$f":"AR10+'(Other Computations)'!B61*(AR9-AR10)/Inputs!B13/12","v":{"v":1147533.625377979,"d":"$1,147,534"}},{"$f":"AS10+'(Other Computations)'!B61*(AS9-AS10)/Inputs!B13/12","v":{"v":1147121.0071571267,"d":"$1,147,121"}},{"$f":"AT10+'(Other Computations)'!B61*(AT9-AT10)/Inputs!B13/12","v":{"v":1146610.4980385036,"d":"$1,146,610"}},{"$f":"AU10+'(Other Computations)'!B61*(AU9-AU10)/Inputs!B13/12","v":{"v":1146066.8616229978,"d":"$1,146,067"}},{"$f":"AV10+'(Other Computations)'!B61*(AV9-AV10)/Inputs!B13/12","v":{"v":1145621.0116145273,"d":"$1,145,621"}},{"$f":"AW10+'(Other Computations)'!B61*(AW9-AW10)/Inputs!B13/12","v":{"v":1145073.0973454423,"d":"$1,145,073"}},{"$f":"AX10+'(Other Computations)'!B61*(AX9-AX10)/Inputs!B13/12","v":{"v":1144683.9763165643,"d":"$1,144,684"}},{"$f":"AY10+'(Other Computations)'!B61*(AY9-AY10)/Inputs!B13/12","v":{"v":1144136.5811457613,"d":"$1,144,137"}},{"$f":"SUM(AO10:AZ10)","v":{"v":13761888.988810426,"d":"$13,761,889"}},{"$f":"AZ10+'(Other Computations)'!B61*(AZ9-AZ10)/Inputs!B13/12","v":{"v":1143551.9659602991,"d":"$1,143,552"}},{"$f":"BB10+'(Other Computations)'!B61*(BB9-BB10)/Inputs!B13/12","v":{"v":1143051.9404477708,"d":"$1,143,052"}},{"$f":"BC10+'(Other Computations)'!B61*(BC9-BC10)/Inputs!B13/12","v":{"v":1142466.13916623,"d":"$1,142,466"}},{"$f":"BD10+'(Other Computations)'!B61*(BD9-BD10)/Inputs!B13/12","v":{"v":1142055.0121384468,"d":"$1,142,055"}},{"$f":"BE10+'(Other Computations)'!B61*(BE9-BE10)/Inputs!B13/12","v":{"v":1141447.0053284795,"d":"$1,141,447"}},{"$f":"BF10+'(Other Computations)'!B61*(BF9-BF10)/Inputs!B13/12","v":{"v":1141000.555576119,"d":"$1,141,001"}},{"$f":"BG10+'(Other Computations)'!B61*(BG9-BG10)/Inputs!B13/12","v":{"v":1140391.198263478,"d":"$1,140,391"}},{"$f":"BH10+'(Other Computations)'!B61*(BH9-BH10)/Inputs!B13/12","v":{"v":1139846.0140067544,"d":"$1,139,846"}},{"$f":"BI10+'(Other Computations)'!B61*(BI9-BI10)/Inputs!B13/12","v":{"v":1139389.551722661,"d":"$1,139,390"}},{"$f":"BJ10+'(Other Computations)'!B61*(BJ9-BJ10)/Inputs!B13/12","v":{"v":1138918.0368607822,"d":"$1,138,918"}},{"$f":"BK10+'(Other Computations)'!B61*(BK9-BK10)/Inputs!B13/12","v":{"v":1138415.8903202154,"d":"$1,138,416"}},{"$f":"BL10+'(Other Computations)'!B61*(BL9-BL10)/Inputs!B13/12","v":{"v":1137997.5051752971,"d":"$1,137,998"}},{"$f":"SUM(BB10:BM10)","v":{"v":13688530.814966533,"d":"$13,688,531"}},{"$f":"BM10+'(Other Computations)'!B61*(BM9-BM10)/Inputs!B13/12","v":{"v":1137516.1768390203,"d":"$1,137,516"}},{"$f":"BO10+'(Other Computations)'!B61*(BO9-BO10)/Inputs!B13/12","v":{"v":1137037.746365048,"d":"$1,137,038"}},{"$f":"BP10+'(Other Computations)'!B61*(BP9-BP10)/Inputs!B13/12","v":{"v":1136595.27137695,"d":"$1,136,595"}},{"$f":"BQ10+'(Other Computations)'!B61*(BQ9-BQ10)/Inputs!B13/12","v":{"v":1136050.4602849355,"d":"$1,136,050"}},{"$f":"BR10+'(Other Computations)'!B61*(BR9-BR10)/Inputs!B13/12","v":{"v":1135584.553249838,"d":"$1,135,585"}},{"$f":"BS10+'(Other Computations)'!B61*(BS9-BS10)/Inputs!B13/12","v":{"v":1135166.596426186,"d":"$1,135,167"}},{"$f":"BT10+'(Other Computations)'!B61*(BT9-BT10)/Inputs!B13/12","v":{"v":1134669.1683242316,"d":"$1,134,669"}},{"$f":"BU10+'(Other Computations)'!B61*(BU9-BU10)/Inputs!B13/12","v":{"v":1134160.2759812411,"d":"$1,134,160"}},{"$f":"BV10+'(Other Computations)'!B61*(BV9-BV10)/Inputs!B13/12","v":{"v":1133623.3035534662,"d":"$1,133,623"}},{"$f":"BW10+'(Other Computations)'!B61*(BW9-BW10)/Inputs!B13/12","v":{"v":1133184.0253028786,"d":"$1,133,184"}},{"$f":"BX10+'(Other Computations)'!B61*(BX9-BX10)/Inputs!B13/12","v":{"v":1132624.0583333562,"d":"$1,132,624"}},{"$f":"BY10+'(Other Computations)'!B61*(BY9-BY10)/Inputs!B13/12","v":{"v":1132244.8789197924,"d":"$1,132,245"}},{"$f":"SUM(BO10:BZ10)","v":{"v":13618456.514956944,"d":"$13,618,457"}},{"$f":"BZ10+'(Other Computations)'!B61*(BZ9-BZ10)/Inputs!B13/12","v":{"v":1131744.8800197109,"d":"$1,131,745"}},{"$f":"CB10+'(Other Computations)'!B61*(CB9-CB10)/Inputs!B13/12","v":{"v":1131310.4916758118,"d":"$1,131,310"}},{"$f":"CC10+'(Other Computations)'!B61*(CC9-CC10)/Inputs!B13/12","v":{"v":1130820.0571839276,"d":"$1,130,820"}},{"$f":"CD10+'(Other Computations)'!B61*(CD9-CD10)/Inputs!B13/12","v":{"v":1130353.8663140489,"d":"$1,130,354"}},{"$f":"CE10+'(Other Computations)'!B61*(CE9-CE10)/Inputs!B13/12","v":{"v":1129890.9421058714,"d":"$1,129,891"}},{"$f":"CF10+'(Other Computations)'!B61*(CF9-CF10)/Inputs!B13/12","v":{"v":1129420.0755749568,"d":"$1,129,420"}},{"$f":"CG10+'(Other Computations)'!B61*(CG9-CG10)/Inputs!B13/12","v":{"v":1129006.4442577017,"d":"$1,129,006"}},{"$f":"CH10+'(Other Computations)'!B61*(CH9-CH10)/Inputs!B13/12","v":{"v":1128602.3973669582,"d":"$1,128,602"}},{"$f":"CI10+'(Other Computations)'!B61*(CI9-CI10)/Inputs!B13/12","v":{"v":1128225.4022656605,"d":"$1,128,225"}},{"$f":"CJ10+'(Other Computations)'!B61*(CJ9-CJ10)/Inputs!B13/12","v":{"v":1127739.5024456892,"d":"$1,127,740"}},{"$f":"CK10+'(Other Computations)'!B61*(CK9-CK10)/Inputs!B13/12","v":{"v":1127312.6888941457,"d":"$1,127,313"}},{"$f":"CL10+'(Other Computations)'!B61*(CL9-CL10)/Inputs!B13/12","v":{"v":1126915.7299644384,"d":"$1,126,916"}},{"$f":"SUM(CB10:CM10)","v":{"v":13551342.47806892,"d":"$13,551,342"}},{"$f":"CM10+'(Other Computations)'!B61*(CM9-CM10)/Inputs!B13/12","v":{"v":1126552.1910151935,"d":"$1,126,552"}},{"$f":"CO10+'(Other Computations)'!B61*(CO9-CO10)/Inputs!B13/12","v":{"v":1126000.335364418,"d":"$1,126,000"}},{"$f":"CP10+'(Other Computations)'!B61*(CP9-CP10)/Inputs!B13/12","v":{"v":1125564.4594071205,"d":"$1,125,564"}},{"$f":"CQ10+'(Other Computations)'!B61*(CQ9-CQ10)/Inputs!B13/12","v":{"v":1125062.5838330144,"d":"$1,125,063"}},{"$f":"CR10+'(Other Computations)'!B61*(CR9-CR10)/Inputs!B13/12","v":{"v":1124613.8772218318,"d":"$1,124,614"}},{"$f":"CS10+'(Other Computations)'!B61*(CS9-CS10)/Inputs!B13/12","v":{"v":1124131.9821941007,"d":"$1,124,132"}},{"$f":"CT10+'(Other Computations)'!B61*(CT9-CT10)/Inputs!B13/12","v":{"v":1123676.4141326298,"d":"$1,123,676"}},{"$f":"CU10+'(Other Computations)'!B61*(CU9-CU10)/Inputs!B13/12","v":{"v":1123249.2334578128,"d":"$1,123,249"}},{"$f":"CV10+'(Other Computations)'!B61*(CV9-CV10)/Inputs!B13/12","v":{"v":1122785.407307842,"d":"$1,122,785"}},{"$f":"CW10+'(Other Computations)'!B61*(CW9-CW10)/Inputs!B13/12","v":{"v":1122247.1323379872,"d":"$1,122,247"}},{"$f":"CX10+'(Other Computations)'!B61*(CX9-CX10)/Inputs!B13/12","v":{"v":1121872.2641583292,"d":"$1,121,872"}},{"$f":"CY10+'(Other Computations)'!B61*(CY9-CY10)/Inputs!B13/12","v":{"v":1121350.2046050623,"d":"$1,121,350"}},{"$f":"SUM(CO10:CZ10)","v":{"v":13487106.08503534,"d":"$13,487,106"}},{"$f":"CZ10+'(Other Computations)'!B61*(CZ9-CZ10)/Inputs!B13/12","v":{"v":1120944.5883837536,"d":"$1,120,945"}},{"$f":"DB10+'(Other Computations)'!B61*(DB9-DB10)/Inputs!B13/12","v":{"v":1120395.9093882055,"d":"$1,120,396"}},{"$f":"DC10+'(Other Computations)'!B61*(DC9-DC10)/Inputs!B13/12","v":{"v":1119795.5024781693,"d":"$1,119,796"}},{"$f":"DD10+'(Other Computations)'!B61*(DD9-DD10)/Inputs!B13/12","v":{"v":1119313.9733532974,"d":"$1,119,314"}},{"$f":"DE10+'(Other Computations)'!B61*(DE9-DE10)/Inputs!B13/12","v":{"v":1118870.9865716114,"d":"$1,118,871"}},{"$f":"DF10+'(Other Computations)'!B61*(DF9-DF10)/Inputs!B13/12","v":{"v":1118412.0469205098,"d":"$1,118,412"}},{"$f":"DG10+'(Other Computations)'!B61*(DG9-DG10)/Inputs!B13/12","v":{"v":1117980.787973268,"d":"$1,117,981"}},{"$f":"DH10+'(Other Computations)'!B61*(DH9-DH10)/Inputs!B13/12","v":{"v":1117537.5599295862,"d":"$1,117,538"}},{"$f":"DI10+'(Other Computations)'!B61*(DI9-DI10)/Inputs!B13/12","v":{"v":1117070.9841926415,"d":"$1,117,071"}},{"$f":"DJ10+'(Other Computations)'!B61*(DJ9-DJ10)/Inputs!B13/12","v":{"v":1116576.0508418265,"d":"$1,116,576"}},{"$f":"DK10+'(Other Computations)'!B61*(DK9-DK10)/Inputs!B13/12","v":{"v":1116131.9934250384,"d":"$1,116,132"}},{"$f":"DL10+'(Other Computations)'!B61*(DL9-DL10)/Inputs!B13/12","v":{"v":1115709.9732789686,"d":"$1,115,710"}},{"$f":"SUM(DB10:DM10)","v":{"v":13418740.356736876,"d":"$13,418,740"}},{"$f":"DM10+'(Other Computations)'!B61*(DM9-DM10)/Inputs!B13/12","v":{"v":1115263.3765103999,"d":"$1,115,263"}},{"$f":"DO10+'(Other Computations)'!B61*(DO9-DO10)/Inputs!B13/12","v":{"v":1114831.761057033,"d":"$1,114,832"}},{"$f":"DP10+'(Other Computations)'!B61*(DP9-DP10)/Inputs!B13/12","v":{"v":1114408.077224509,"d":"$1,114,408"}},{"$f":"DQ10+'(Other Computations)'!B61*(DQ9-DQ10)/Inputs!B13/12","v":{"v":1114076.2163497792,"d":"$1,114,076"}},{"$f":"DR10+'(Other Computations)'!B61*(DR9-DR10)/Inputs!B13/12","v":{"v":1113489.174269487,"d":"$1,113,489"}},{"$f":"DS10+'(Other Computations)'!B61*(DS9-DS10)/Inputs!B13/12","v":{"v":1112983.7644103589,"d":"$1,112,984"}},{"$f":"DT10+'(Other Computations)'!B61*(DT9-DT10)/Inputs!B13/12","v":{"v":1112574.0947180563,"d":"$1,112,574"}},{"$f":"DU10+'(Other Computations)'!B61*(DU9-DU10)/Inputs!B13/12","v":{"v":1112096.0143914204,"d":"$1,112,096"}},{"$f":"DV10+'(Other Computations)'!B61*(DV9-DV10)/Inputs!B13/12","v":{"v":1111688.142678576,"d":"$1,111,688"}},{"$f":"DW10+'(Other Computations)'!B61*(DW9-DW10)/Inputs!B13/12","v":{"v":1111309.9191545,"d":"$1,111,310"}},{"$f":"DX10+'(Other Computations)'!B61*(DX9-DX10)/Inputs!B13/12","v":{"v":1110829.6080907367,"d":"$1,110,830"}},{"$f":"DY10+'(Other Computations)'!B61*(DY9-DY10)/Inputs!B13/12","v":{"v":1110326.0558853128,"d":"$1,110,326"}},{"$f":"SUM(DO10:DZ10)","v":{"v":13353876.204740169,"d":"$13,353,876"}},{"$f":"DZ10+'(Other Computations)'!B61*(DZ9-DZ10)/Inputs!B13/12","v":{"v":1109783.4011201544,"d":"$1,109,783"}},{"$f":"EB10+'(Other Computations)'!B61*(EB9-EB10)/Inputs!B13/12","v":{"v":1109315.9817322437,"d":"$1,109,316"}},{"$f":"EC10+'(Other Computations)'!B61*(EC9-EC10)/Inputs!B13/12","v":{"v":1108820.7557500775,"d":"$1,108,821"}},{"$f":"ED10+'(Other Computations)'!B61*(ED9-ED10)/Inputs!B13/12","v":{"v":1108379.0110075967,"d":"$1,108,379"}},{"$f":"EE10+'(Other Computations)'!B61*(EE9-EE10)/Inputs!B13/12","v":{"v":1107937.4833625949,"d":"$1,107,937"}},{"$f":"EF10+'(Other Computations)'!B61*(EF9-EF10)/Inputs!B13/12","v":{"v":1107465.3837651936,"d":"$1,107,465"}},{"$f":"EG10+'(Other Computations)'!B61*(EG9-EG10)/Inputs!B13/12","v":{"v":1106994.2884684352,"d":"$1,106,994"}},{"$f":"EH10+'(Other Computations)'!B61*(EH9-EH10)/Inputs!B13/12","v":{"v":1106591.7036319159,"d":"$1,106,592"}},{"$f":"EI10+'(Other Computations)'!B61*(EI9-EI10)/Inputs!B13/12","v":{"v":1106034.523595298,"d":"$1,106,035"}},{"$f":"EJ10+'(Other Computations)'!B61*(EJ9-EJ10)/Inputs!B13/12","v":{"v":1105450.3257927785,"d":"$1,105,450"}},{"$f":"EK10+'(Other Computations)'!B61*(EK9-EK10)/Inputs!B13/12","v":{"v":1105080.1149789277,"d":"$1,105,080"}},{"$f":"EL10+'(Other Computations)'!B61*(EL9-EL10)/Inputs!B13/12","v":{"v":1104664.1714658376,"d":"$1,104,664"}},{"$f":"SUM(EB10:EM10)","v":{"v":13286517.144671055,"d":"$13,286,517"}}]
[{"$f":"Labels!B34","v":"Short Expected Demand"},{"$f":"'(Other Computations)'!B8+'(Other Computations)'!B61*0/Inputs!B14/12","v":{"v":1166666.6666666667,"d":"$1,166,667"}},{"$f":"B11+'(Other Computations)'!B61*(B9-B11)/Inputs!B14/12","v":{"v":1163083.0201730027,"d":"$1,163,083"}},{"$f":"C11+'(Other Computations)'!B61*(C9-C11)/Inputs!B14/12","v":{"v":1160422.8175480834,"d":"$1,160,423"}},{"$f":"D11+'(Other Computations)'!B61*(D9-D11)/Inputs!B14/12","v":{"v":1157243.7945822002,"d":"$1,157,244"}},{"$f":"E11+'(Other Computations)'!B61*(E9-E11)/Inputs!B14/12","v":{"v":1155146.5580058137,"d":"$1,155,147"}},{"$f":"F11+'(Other Computations)'!B61*(F9-F11)/Inputs!B14/12","v":{"v":1152653.6285962572,"d":"$1,152,654"}},{"$f":"G11+'(Other Computations)'!B61*(G9-G11)/Inputs!B14/12","v":{"v":1150560.907045448,"d":"$1,150,561"}},{"$f":"H11+'(Other Computations)'!B61*(H9-H11)/Inputs!B14/12","v":{"v":1147739.9349881536,"d":"$1,147,740"}},{"$f":"I11+'(Other Computations)'!B61*(I9-I11)/Inputs!B14/12","v":{"v":1145516.6453868132,"d":"$1,145,517"}},{"$f":"J11+'(Other Computations)'!B61*(J9-J11)/Inputs!B14/12","v":{"v":1142430.1176378678,"d":"$1,142,430"}},{"$f":"K11+'(Other Computations)'!B61*(K9-K11)/Inputs!B14/12","v":{"v":1140006.323003013,"d":"$1,140,006"}},{"$f":"L11+'(Other Computations)'!B61*(L9-L11)/Inputs!B14/12","v":{"v":1137913.6501883492,"d":"$1,137,914"}},{"$f":"SUM(B11:M11)","v":{"v":13819384.063821668,"d":"$13,819,384"}},{"$f":"M11+'(Other Computations)'!B61*(M9-M11)/Inputs!B14/12","v":{"v":1135066.8461964724,"d":"$1,135,067"}},{"$f":"O11+'(Other Computations)'!B61*(O9-O11)/Inputs!B14/12","v":{"v":1132733.2069666719,"d":"$1,132,733"}},{"$f":"P11+'(Other Computations)'!B61*(P9-P11)/Inputs!B14/12","v":{"v":1130098.6837942486,"d":"$1,130,099"}},{"$f":"Q11+'(Other Computations)'!B61*(Q9-Q11)/Inputs!B14/12","v":{"v":1128260.689846873,"d":"$1,128,261"}},{"$f":"R11+'(Other Computations)'!B61*(R9-R11)/Inputs!B14/12","v":{"v":1126205.0683369206,"d":"$1,126,205"}},{"$f":"S11+'(Other Computations)'!B61*(S9-S11)/Inputs!B14/12","v":{"v":1123838.251510409,"d":"$1,123,838"}},{"$f":"T11+'(Other Computations)'!B61*(T9-T11)/Inputs!B14/12","v":{"v":1121364.2906279063,"d":"$1,121,364"}},{"$f":"U11+'(Other Computations)'!B61*(U9-U11)/Inputs!B14/12","v":{"v":1118178.6479876447,"d":"$1,118,179"}},{"$f":"V11+'(Other Computations)'!B61*(V9-V11)/Inputs!B14/12","v":{"v":1115520.7770089027,"d":"$1,115,521"}},{"$f":"W11+'(Other Computations)'!B61*(W9-W11)/Inputs!B14/12","v":{"v":1113446.7829451372,"d":"$1,113,447"}},{"$f":"X11+'(Other Computations)'!B61*(X9-X11)/Inputs!B14/12","v":{"v":1111278.399099264,"d":"$1,111,278"}},{"$f":"Y11+'(Other Computations)'!B61*(Y9-Y11)/Inputs!B14/12","v":{"v":1108870.591377069,"d":"$1,108,871"}},{"$f":"SUM(O11:Z11)","v":{"v":13464862.235697519,"d":"$13,464,862"}},{"$f":"Z11+'(Other Computations)'!B61*(Z9-Z11)/Inputs!B14/12","v":{"v":1105890.9236180806,"d":"$1,105,891"}},{"$f":"AB11+'(Other Computations)'!B61*(AB9-AB11)/Inputs!B14/12","v":{"v":1104303.843584813,"d":"$1,104,304"}},{"$f":"AC11+'(Other Computations)'!B61*(AC9-AC11)/Inputs!B14/12","v":{"v":1101883.3942851454,"d":"$1,101,883"}},{"$f":"AD11+'(Other Computations)'!B61*(AD9-AD11)/Inputs!B14/12","v":{"v":1099296.527066266,"d":"$1,099,297"}},{"$f":"AE11+'(Other Computations)'!B61*(AE9-AE11)/Inputs!B14/12","v":{"v":1097594.131584442,"d":"$1,097,594"}},{"$f":"AF11+'(Other Computations)'!B61*(AF9-AF11)/Inputs!B14/12","v":{"v":1094724.3362664522,"d":"$1,094,724"}},{"$f":"AG11+'(Other Computations)'!B61*(AG9-AG11)/Inputs!B14/12","v":{"v":1093028.9816768465,"d":"$1,093,029"}},{"$f":"AH11+'(Other Computations)'!B61*(AH9-AH11)/Inputs!B14/12","v":{"v":1091105.1043938654,"d":"$1,091,105"}},{"$f":"AI11+'(Other Computations)'!B61*(AI9-AI11)/Inputs!B14/12","v":{"v":1088761.0320086419,"d":"$1,088,761"}},{"$f":"AJ11+'(Other Computations)'!B61*(AJ9-AJ11)/Inputs!B14/12","v":{"v":1087057.9250291104,"d":"$1,087,058"}},{"$f":"AK11+'(Other Computations)'!B61*(AK9-AK11)/Inputs!B14/12","v":{"v":1085189.719984989,"d":"$1,085,190"}},{"$f":"AL11+'(Other Computations)'!B61*(AL9-AL11)/Inputs!B14/12","v":{"v":1083075.193848964,"d":"$1,083,075"}},{"$f":"SUM(AB11:AM11)","v":{"v":13131911.113347618,"d":"$13,131,911"}},{"$f":"AM11+'(Other Computations)'!B61*(AM9-AM11)/Inputs!B14/12","v":{"v":1080941.9680803753,"d":"$1,080,942"}},{"$f":"AO11+'(Other Computations)'!B61*(AO9-AO11)/Inputs!B14/12","v":{"v":1079460.439917504,"d":"$1,079,460"}},{"$f":"AP11+'(Other Computations)'!B61*(AP9-AP11)/Inputs!B14/12","v":{"v":1078089.449292718,"d":"$1,078,089"}},{"$f":"AQ11+'(Other Computations)'!B61*(AQ9-AQ11)/Inputs!B14/12","v":{"v":1075578.5467157024,"d":"$1,075,579"}},{"$f":"AR11+'(Other Computations)'!B61*(AR9-AR11)/Inputs!B14/12","v":{"v":1073617.3191547382,"d":"$1,073,617"}},{"$f":"AS11+'(Other Computations)'!B61*(AS9-AS11)/Inputs!B14/12","v":{"v":1072168.225193837,"d":"$1,072,168"}},{"$f":"AT11+'(Other Computations)'!B61*(AT9-AT11)/Inputs!B14/12","v":{"v":1070146.1813427003,"d":"$1,070,146"}},{"$f":"AU11+'(Other Computations)'!B61*(AU9-AU11)/Inputs!B14/12","v":{"v":1067946.3672482178,"d":"$1,067,946"}},{"$f":"AV11+'(Other Computations)'!B61*(AV9-AV11)/Inputs!B14/12","v":{"v":1066356.2740637108,"d":"$1,066,356"}},{"$f":"AW11+'(Other Computations)'!B61*(AW9-AW11)/Inputs!B14/12","v":{"v":1064169.687581851,"d":"$1,064,170"}},{"$f":"AX11+'(Other Computations)'!B61*(AX9-AX11)/Inputs!B14/12","v":{"v":1062958.6198775212,"d":"$1,062,959"}},{"$f":"AY11+'(Other Computations)'!B61*(AY9-AY11)/Inputs!B14/12","v":{"v":1060809.32324769,"d":"$1,060,809"}},{"$f":"SUM(AO11:AZ11)","v":{"v":12852242.401716564,"d":"$12,852,242"}},{"$f":"AZ11+'(Other Computations)'!B61*(AZ9-AZ11)/Inputs!B14/12","v":{"v":1058458.9551612798,"d":"$1,058,459"}},{"$f":"BB11+'(Other Computations)'!B61*(BB9-BB11)/Inputs!B14/12","v":{"v":1056640.6494583183,"d":"$1,056,641"}},{"$f":"BC11+'(Other Computations)'!B61*(BC9-BC11)/Inputs!B14/12","v":{"v":1054325.9985883718,"d":"$1,054,326"}},{"$f":"BD11+'(Other Computations)'!B61*(BD9-BD11)/Inputs!B14/12","v":{"v":1053083.405040809,"d":"$1,053,083"}},{"$f":"BE11+'(Other Computations)'!B61*(BE9-BE11)/Inputs!B14/12","v":{"v":1050671.0809462506,"d":"$1,050,671"}},{"$f":"BF11+'(Other Computations)'!B61*(BF9-BF11)/Inputs!B14/12","v":{"v":1049253.1591596198,"d":"$1,049,253"}},{"$f":"BG11+'(Other Computations)'!B61*(BG9-BG11)/Inputs!B14/12","v":{"v":1046871.2846784462,"d":"$1,046,871"}},{"$f":"BH11+'(Other Computations)'!B61*(BH9-BH11)/Inputs!B14/12","v":{"v":1044899.0668267849,"d":"$1,044,899"}},{"$f":"BI11+'(Other Computations)'!B61*(BI9-BI11)/Inputs!B14/12","v":{"v":1043479.0007219464,"d":"$1,043,479"}},{"$f":"BJ11+'(Other Computations)'!B61*(BJ9-BJ11)/Inputs!B14/12","v":{"v":1041982.0025367956,"d":"$1,041,982"}},{"$f":"BK11+'(Other Computations)'!B61*(BK9-BK11)/Inputs!B14/12","v":{"v":1040315.4571034507,"d":"$1,040,315"}},{"$f":"BL11+'(Other Computations)'!B61*(BL9-BL11)/Inputs!B14/12","v":{"v":1039167.6522508409,"d":"$1,039,168"}},{"$f":"SUM(BB11:BM11)","v":{"v":12579147.712472914,"d":"$12,579,148"}},{"$f":"BM11+'(Other Computations)'!B61*(BM9-BM11)/Inputs!B14/12","v":{"v":1037652.3190793529,"d":"$1,037,652"}},{"$f":"BO11+'(Other Computations)'!B61*(BO9-BO11)/Inputs!B14/12","v":{"v":1036168.7342599588,"d":"$1,036,169"}},{"$f":"BP11+'(Other Computations)'!B61*(BP9-BP11)/Inputs!B14/12","v":{"v":1034914.8428328306,"d":"$1,034,915"}},{"$f":"BQ11+'(Other Computations)'!B61*(BQ9-BQ11)/Inputs!B14/12","v":{"v":1033058.2044549683,"d":"$1,033,058"}},{"$f":"BR11+'(Other Computations)'!B61*(BR9-BR11)/Inputs!B14/12","v":{"v":1031693.2102420221,"d":"$1,031,693"}},{"$f":"BS11+'(Other Computations)'!B61*(BS9-BS11)/Inputs!B14/12","v":{"v":1030628.4046196616,"d":"$1,030,628"}},{"$f":"BT11+'(Other Computations)'!B61*(BT9-BT11)/Inputs!B14/12","v":{"v":1029095.7553385823,"d":"$1,029,096"}},{"$f":"BU11+'(Other Computations)'!B61*(BU9-BU11)/Inputs!B14/12","v":{"v":1027508.6986832177,"d":"$1,027,509"}},{"$f":"BV11+'(Other Computations)'!B61*(BV9-BV11)/Inputs!B14/12","v":{"v":1025768.1360234858,"d":"$1,025,768"}},{"$f":"BW11+'(Other Computations)'!B61*(BW9-BW11)/Inputs!B14/12","v":{"v":1024630.4549578758,"d":"$1,024,630"}},{"$f":"BX11+'(Other Computations)'!B61*(BX9-BX11)/Inputs!B14/12","v":{"v":1022778.3416177552,"d":"$1,022,778"}},{"$f":"BY11+'(Other Computations)'!B61*(BY9-BY11)/Inputs!B14/12","v":{"v":1022028.9000907552,"d":"$1,022,029"}},{"$f":"SUM(BO11:BZ11)","v":{"v":12355926.00220047,"d":"$12,355,926"}},{"$f":"BZ11+'(Other Computations)'!B61*(BZ9-BZ11)/Inputs!B14/12","v":{"v":1020559.6841740023,"d":"$1,020,560"}},{"$f":"CB11+'(Other Computations)'!B61*(CB9-CB11)/Inputs!B14/12","v":{"v":1019497.5929417978,"d":"$1,019,498"}},{"$f":"CC11+'(Other Computations)'!B61*(CC9-CC11)/Inputs!B14/12","v":{"v":1018107.9429173537,"d":"$1,018,108"}},{"$f":"CD11+'(Other Computations)'!B61*(CD9-CD11)/Inputs!B14/12","v":{"v":1016876.2437295608,"d":"$1,016,876"}},{"$f":"CE11+'(Other Computations)'!B61*(CE9-CE11)/Inputs!B14/12","v":{"v":1015674.776571947,"d":"$1,015,675"}},{"$f":"CF11+'(Other Computations)'!B61*(CF9-CF11)/Inputs!B14/12","v":{"v":1014435.9130188754,"d":"$1,014,436"}},{"$f":"CG11+'(Other Computations)'!B61*(CG9-CG11)/Inputs!B14/12","v":{"v":1013551.1273730678,"d":"$1,013,551"}},{"$f":"CH11+'(Other Computations)'!B61*(CH9-CH11)/Inputs!B14/12","v":{"v":1012730.392096448,"d":"$1,012,730"}},{"$f":"CI11+'(Other Computations)'!B61*(CI9-CI11)/Inputs!B14/12","v":{"v":1012077.7548951963,"d":"$1,012,078"}},{"$f":"CJ11+'(Other Computations)'!B61*(CJ9-CJ11)/Inputs!B14/12","v":{"v":1010775.5177444026,"d":"$1,010,776"}},{"$f":"CK11+'(Other Computations)'!B61*(CK9-CK11)/Inputs!B14/12","v":{"v":1009839.1362226601,"d":"$1,009,839"}},{"$f":"CL11+'(Other Computations)'!B61*(CL9-CL11)/Inputs!B14/12","v":{"v":1009088.9597648535,"d":"$1,009,089"}},{"$f":"SUM(CB11:CM11)","v":{"v":12173215.041450165,"d":"$12,173,215"}},{"$f":"CM11+'(Other Computations)'!B61*(CM9-CM11)/Inputs!B14/12","v":{"v":1008544.2089888235,"d":"$1,008,544"}},{"$f":"CO11+'(Other Computations)'!B61*(CO9-CO11)/Inputs!B14/12","v":{"v":1006872.0748345382,"d":"$1,006,872"}},{"$f":"CP11+'(Other Computations)'!B61*(CP9-CP11)/Inputs!B14/12","v":{"v":1005911.378264778,"d":"$1,005,911"}},{"$f":"CQ11+'(Other Computations)'!B61*(CQ9-CQ11)/Inputs!B14/12","v":{"v":1004561.973169341,"d":"$1,004,562"}},{"$f":"CR11+'(Other Computations)'!B61*(CR9-CR11)/Inputs!B14/12","v":{"v":1003543.3530947972,"d":"$1,003,543"}},{"$f":"CS11+'(Other Computations)'!B61*(CS9-CS11)/Inputs!B14/12","v":{"v":1002333.51798573,"d":"$1,002,334"}},{"$f":"CT11+'(Other Computations)'!B61*(CT9-CT11)/Inputs!B14/12","v":{"v":1001291.7549531317,"d":"$1,001,292"}},{"$f":"CU11+'(Other Computations)'!B61*(CU9-CU11)/Inputs!B14/12","v":{"v":1000428.4578372786,"d":"$1,000,428"}},{"$f":"CV11+'(Other Computations)'!B61*(CV9-CV11)/Inputs!B14/12","v":{"v":999351.3450432946,"d":"$999,351"}},{"$f":"CW11+'(Other Computations)'!B61*(CW9-CW11)/Inputs!B14/12","v":{"v":997836.0572000617,"d":"$997,836"}},{"$f":"CX11+'(Other Computations)'!B61*(CX9-CX11)/Inputs!B14/12","v":{"v":997314.7797212516,"d":"$997,315"}},{"$f":"CY11+'(Other Computations)'!B61*(CY9-CY11)/Inputs!B14/12","v":{"v":995912.3874632752,"d":"$995,912"}},{"$f":"SUM(CO11:CZ11)","v":{"v":12023901.2885563,"d":"$12,023,901"}},{"$f":"CZ11+'(Other Computations)'!B61*(CZ9-CZ11)/Inputs!B14/12","v":{"v":995220.8820401704,"d":"$995,221"}},{"$f":"DB11+'(Other Computations)'!B61*(DB9-DB11)/Inputs!B14/12","v":{"v":993674.9706549874,"d":"$993,675"}},{"$f":"DC11+'(Other Computations)'!B61*(DC9-DC11)/Inputs!B14/12","v":{"v":991832.5422327309,"d":"$991,833"}},{"$f":"DD11+'(Other Computations)'!B61*(DD9-DD11)/Inputs!B14/12","v":{"v":990720.6308202419,"d":"$990,721"}},{"$f":"DE11+'(Other Computations)'!B61*(DE9-DE11)/Inputs!B14/12","v":{"v":989848.7287764177,"d":"$989,849"}},{"$f":"DF11+'(Other Computations)'!B61*(DF9-DF11)/Inputs!B14/12","v":{"v":988887.0666725197,"d":"$988,887"}},{"$f":"DG11+'(Other Computations)'!B61*(DG9-DG11)/Inputs!B14/12","v":{"v":988098.4710480687,"d":"$988,098"}},{"$f":"DH11+'(Other Computations)'!B61*(DH9-DH11)/Inputs!B14/12","v":{"v":987243.0238543845,"d":"$987,243"}},{"$f":"DI11+'(Other Computations)'!B61*(DI9-DI11)/Inputs!B14/12","v":{"v":986253.2157670938,"d":"$986,253"}},{"$f":"DJ11+'(Other Computations)'!B61*(DJ9-DJ11)/Inputs!B14/12","v":{"v":985100.5291125585,"d":"$985,101"}},{"$f":"DK11+'(Other Computations)'!B61*(DK9-DK11)/Inputs!B14/12","v":{"v":984262.233524737,"d":"$984,262"}},{"$f":"DL11+'(Other Computations)'!B61*(DL9-DL11)/Inputs!B14/12","v":{"v":983561.6370913778,"d":"$983,562"}},{"$f":"SUM(DB11:DM11)","v":{"v":11864703.931595286,"d":"$11,864,704"}},{"$f":"DM11+'(Other Computations)'!B61*(DM9-DM11)/Inputs!B14/12","v":{"v":982717.4500381269,"d":"$982,717"}},{"$f":"DO11+'(Other Computations)'!B61*(DO9-DO11)/Inputs!B14/12","v":{"v":981968.6729633738,"d":"$981,969"}},{"$f":"DP11+'(Other Computations)'!B61*(DP9-DP11)/Inputs!B14/12","v":{"v":981271.8906361978,"d":"$981,272"}},{"$f":"DQ11+'(Other Computations)'!B61*(DQ9-DQ11)/Inputs!B14/12","v":{"v":981129.839090434,"d":"$981,130"}},{"$f":"DR11+'(Other Computations)'!B61*(DR9-DR11)/Inputs!B14/12","v":{"v":979454.0640706163,"d":"$979,454"}},{"$f":"DS11+'(Other Computations)'!B61*(DS9-DS11)/Inputs!B14/12","v":{"v":978283.2036686103,"d":"$978,283"}},{"$f":"DT11+'(Other Computations)'!B61*(DT9-DT11)/Inputs!B14/12","v":{"v":977696.0266362078,"d":"$977,696"}},{"$f":"DU11+'(Other Computations)'!B61*(DU9-DU11)/Inputs!B14/12","v":{"v":976700.8511775297,"d":"$976,701"}},{"$f":"DV11+'(Other Computations)'!B61*(DV9-DV11)/Inputs!B14/12","v":{"v":976134.1092784347,"d":"$976,134"}},{"$f":"DW11+'(Other Computations)'!B61*(DW9-DW11)/Inputs!B14/12","v":{"v":975747.4630423135,"d":"$975,747"}},{"$f":"DX11+'(Other Computations)'!B61*(DX9-DX11)/Inputs!B14/12","v":{"v":974748.4085501807,"d":"$974,748"}},{"$f":"DY11+'(Other Computations)'!B61*(DY9-DY11)/Inputs!B14/12","v":{"v":973617.1119779235,"d":"$973,617"}},{"$f":"SUM(DO11:DZ11)","v":{"v":11739469.091129947,"d":"$11,739,469"}},{"$f":"DZ11+'(Other Computations)'!B61*(DZ9-DZ11)/Inputs!B14/12","v":{"v":972259.9187190197,"d":"$972,260"}},{"$f":"EB11+'(Other Computations)'!B61*(EB9-EB11)/Inputs!B14/12","v":{"v":971365.4507582381,"d":"$971,365"}},{"$f":"EC11+'(Other Computations)'!B61*(EC9-EC11)/Inputs!B14/12","v":{"v":970310.0744621031,"d":"$970,310"}},{"$f":"ED11+'(Other Computations)'!B61*(ED9-ED11)/Inputs!B14/12","v":{"v":969583.3654695515,"d":"$969,583"}},{"$f":"EE11+'(Other Computations)'!B61*(EE9-EE11)/Inputs!B14/12","v":{"v":968861.9168986795,"d":"$968,862"}},{"$f":"EF11+'(Other Computations)'!B61*(EF9-EF11)/Inputs!B14/12","v":{"v":967960.9244040492,"d":"$967,961"}},{"$f":"EG11+'(Other Computations)'!B61*(EG9-EG11)/Inputs!B14/12","v":{"v":967071.9145590704,"d":"$967,072"}},{"$f":"EH11+'(Other Computations)'!B61*(EH9-EH11)/Inputs!B14/12","v":{"v":966599.7718442508,"d":"$966,600"}},{"$f":"EI11+'(Other Computations)'!B61*(EI9-EI11)/Inputs!B14/12","v":{"v":965201.0240104825,"d":"$965,201"}},{"$f":"EJ11+'(Other Computations)'!B61*(EJ9-EJ11)/Inputs!B14/12","v":{"v":963651.858022933,"d":"$963,652"}},{"$f":"EK11+'(Other Computations)'!B61*(EK9-EK11)/Inputs!B14/12","v":{"v":963400.0163032981,"d":"$963,400"}},{"$f":"EL11+'(Other Computations)'!B61*(EL9-EL11)/Inputs!B14/12","v":{"v":962872.1343730311,"d":"$962,872"}},{"$f":"SUM(EB11:EM11)","v":{"v":11609138.369824708,"d":"$11,609,138"}}]
[{"$f":"Labels!B24","v":"Consumption"},{"$f":"Inputs!B34*'(Other Computations)'!B52","v":{"v":728000,"d":"$728,000"}},{"$f":"Inputs!B34*'(Other Computations)'!C52","v":{"v":727754.0611019669,"d":"$727,754"}},{"$f":"Inputs!B34*'(Other Computations)'!D52","v":{"v":727581.7587737847,"d":"$727,582"}},{"$f":"Inputs!B34*'(Other Computations)'!E52","v":{"v":727328.60112741,"d":"$727,329"}},{"$f":"Inputs!B34*'(Other Computations)'!F52","v":{"v":727059.9297064816,"d":"$727,060"}},{"$f":"Inputs!B34*'(Other Computations)'!G52","v":{"v":726864.3288613013,"d":"$726,864"}},{"$f":"Inputs!B34*'(Other Computations)'!H52","v":{"v":726627.8601112564,"d":"$726,628"}},{"$f":"Inputs!B34*'(Other Computations)'!I52","v":{"v":726408.1507362925,"d":"$726,408"}},{"$f":"Inputs!B34*'(Other Computations)'!J52","v":{"v":726187.3105163415,"d":"$726,187"}},{"$f":"Inputs!B34*'(Other Computations)'!K52","v":{"v":726010.8541659999,"d":"$726,011"}},{"$f":"Inputs!B34*'(Other Computations)'!L52","v":{"v":725730.7850571743,"d":"$725,731"}},{"$f":"Inputs!B34*'(Other Computations)'!M52","v":{"v":725469.5851901163,"d":"$725,470"}},{"$f":"SUM(B12:M12)","v":{"v":8721023.225348126,"d":"$8,721,023"}},{"$f":"Inputs!B34*'(Other Computations)'!O52","v":{"v":725240.5523423846,"d":"$725,241"}},{"$f":"Inputs!B34*'(Other Computations)'!P52","v":{"v":724984.8705759674,"d":"$724,985"}},{"$f":"Inputs!B34*'(Other Computations)'!Q52","v":{"v":724773.6952861117,"d":"$724,774"}},{"$f":"Inputs!B34*'(Other Computations)'!R52","v":{"v":724495.1648128979,"d":"$724,495"}},{"$f":"Inputs!B34*'(Other Computations)'!S52","v":{"v":724303.1261411051,"d":"$724,303"}},{"$f":"Inputs!B34*'(Other Computations)'!T52","v":{"v":724147.738839778,"d":"$724,148"}},{"$f":"Inputs!B34*'(Other Computations)'!U52","v":{"v":723868.8432863512,"d":"$723,869"}},{"$f":"Inputs!B34*'(Other Computations)'!V52","v":{"v":723674.0380602593,"d":"$723,674"}},{"$f":"Inputs!B34*'(Other Computations)'!W52","v":{"v":723487.6437030588,"d":"$723,488"}},{"$f":"Inputs!B34*'(Other Computations)'!X52","v":{"v":723215.4071775334,"d":"$723,215"}},{"$f":"Inputs!B34*'(Other Computations)'!Y52","v":{"v":722987.0881038686,"d":"$722,987"}},{"$f":"Inputs!B34*'(Other Computations)'!Z52","v":{"v":722656.4720251783,"d":"$722,656"}},{"$f":"SUM(O12:Z12)","v":{"v":8687834.640354494,"d":"$8,687,835"}},{"$f":"Inputs!B34*'(Other Computations)'!AB52","v":{"v":722409.0631321634,"d":"$722,409"}},{"$f":"Inputs!B34*'(Other Computations)'!AC52","v":{"v":722167.1696264407,"d":"$722,167"}},{"$f":"Inputs!B34*'(Other Computations)'!AD52","v":{"v":721962.6442804664,"d":"$721,963"}},{"$f":"Inputs!B34*'(Other Computations)'!AE52","v":{"v":721688.5700823765,"d":"$721,689"}},{"$f":"Inputs!B34*'(Other Computations)'!AF52","v":{"v":721444.6621918849,"d":"$721,445"}},{"$f":"Inputs!B34*'(Other Computations)'!AG52","v":{"v":721193.6745849418,"d":"$721,194"}},{"$f":"Inputs!B34*'(Other Computations)'!AH52","v":{"v":720916.9078703455,"d":"$720,917"}},{"$f":"Inputs!B34*'(Other Computations)'!AI52","v":{"v":720591.0306701686,"d":"$720,591"}},{"$f":"Inputs!B34*'(Other Computations)'!AJ52","v":{"v":720349.3003431088,"d":"$720,349"}},{"$f":"Inputs!B34*'(Other Computations)'!AK52","v":{"v":720105.7690034205,"d":"$720,106"}},{"$f":"Inputs!B34*'(Other Computations)'!AL52","v":{"v":719847.3001289289,"d":"$719,847"}},{"$f":"Inputs!B34*'(Other Computations)'!AM52","v":{"v":719534.5005194104,"d":"$719,535"}},{"$f":"SUM(AB12:AM12)","v":{"v":8652210.592433656,"d":"$8,652,211"}},{"$f":"Inputs!B34*'(Other Computations)'!AO52","v":{"v":719344.2684081016,"d":"$719,344"}},{"$f":"Inputs!B34*'(Other Computations)'!AP52","v":{"v":719026.3790413815,"d":"$719,026"}},{"$f":"Inputs!B34*'(Other Computations)'!AQ52","v":{"v":718765.9836954327,"d":"$718,766"}},{"$f":"Inputs!B34*'(Other Computations)'!AR52","v":{"v":718570.0551716479,"d":"$718,570"}},{"$f":"Inputs!B34*'(Other Computations)'!AS52","v":{"v":718340.145015551,"d":"$718,340"}},{"$f":"Inputs!B34*'(Other Computations)'!AT52","v":{"v":718049.5162313426,"d":"$718,050"}},{"$f":"Inputs!B34*'(Other Computations)'!AU52","v":{"v":717786.9149573941,"d":"$717,787"}},{"$f":"Inputs!B34*'(Other Computations)'!AV52","v":{"v":717570.083201373,"d":"$717,570"}},{"$f":"Inputs!B34*'(Other Computations)'!AW52","v":{"v":717336.7549083492,"d":"$717,337"}},{"$f":"Inputs!B34*'(Other Computations)'!AX52","v":{"v":716969.7671493293,"d":"$716,970"}},{"$f":"Inputs!B34*'(Other Computations)'!AY52","v":{"v":716748.4004403565,"d":"$716,748"}},{"$f":"Inputs!B34*'(Other Computations)'!AZ52","v":{"v":716443.3078396177,"d":"$716,443"}},{"$f":"SUM(AO12:AZ12)","v":{"v":8614951.576059876,"d":"$8,614,952"}},{"$f":"Inputs!B34*'(Other Computations)'!BB52","v":{"v":716155.5075845848,"d":"$716,156"}},{"$f":"Inputs!B34*'(Other Computations)'!BC52","v":{"v":715921.4495977395,"d":"$715,921"}},{"$f":"Inputs!B34*'(Other Computations)'!BD52","v":{"v":715708.7718467615,"d":"$715,709"}},{"$f":"Inputs!B34*'(Other Computations)'!BE52","v":{"v":715411.4535620972,"d":"$715,411"}},{"$f":"Inputs!B34*'(Other Computations)'!BF52","v":{"v":715158.3606252486,"d":"$715,158"}},{"$f":"Inputs!B34*'(Other Computations)'!BG52","v":{"v":714869.1084480818,"d":"$714,869"}},{"$f":"Inputs!B34*'(Other Computations)'!BH52","v":{"v":714583.7578039077,"d":"$714,584"}},{"$f":"Inputs!B34*'(Other Computations)'!BI52","v":{"v":714361.7161276501,"d":"$714,362"}},{"$f":"Inputs!B34*'(Other Computations)'!BJ52","v":{"v":714060.7243791993,"d":"$714,061"}},{"$f":"Inputs!B34*'(Other Computations)'!BK52","v":{"v":713691.4229334324,"d":"$713,691"}},{"$f":"Inputs!B34*'(Other Computations)'!BL52","v":{"v":713327.919953665,"d":"$713,328"}},{"$f":"Inputs!B34*'(Other Computations)'!BM52","v":{"v":713036.9192277067,"d":"$713,037"}},{"$f":"SUM(BB12:BM12)","v":{"v":8576287.112090074,"d":"$8,576,287"}},{"$f":"Inputs!B34*'(Other Computations)'!BO52","v":{"v":712656.0371815818,"d":"$712,656"}},{"$f":"Inputs!B34*'(Other Computations)'!BP52","v":{"v":712341.2064560064,"d":"$712,341"}},{"$f":"Inputs!B34*'(Other Computations)'!BQ52","v":{"v":712009.254099548,"d":"$712,009"}},{"$f":"Inputs!B34*'(Other Computations)'!BR52","v":{"v":711693.470665594,"d":"$711,693"}},{"$f":"Inputs!B34*'(Other Computations)'!BS52","v":{"v":711448.1566931414,"d":"$711,448"}},{"$f":"Inputs!B34*'(Other Computations)'!BT52","v":{"v":711143.4452042215,"d":"$711,143"}},{"$f":"Inputs!B34*'(Other Computations)'!BU52","v":{"v":710859.2527731293,"d":"$710,859"}},{"$f":"Inputs!B34*'(Other Computations)'!BV52","v":{"v":710485.953896023,"d":"$710,486"}},{"$f":"Inputs!B34*'(Other Computations)'!BW52","v":{"v":710180.2371415293,"d":"$710,180"}},{"$f":"Inputs!B34*'(Other Computations)'!BX52","v":{"v":709903.0221791343,"d":"$709,903"}},{"$f":"Inputs!B34*'(Other Computations)'!BY52","v":{"v":709567.8148804912,"d":"$709,568"}},{"$f":"Inputs!B34*'(Other Computations)'!BZ52","v":{"v":709214.0170736917,"d":"$709,214"}},{"$f":"SUM(BO12:BZ12)","v":{"v":8531501.868244091,"d":"$8,531,502"}},{"$f":"Inputs!B34*'(Other Computations)'!CB52","v":{"v":708834.7781274437,"d":"$708,835"}},{"$f":"Inputs!B34*'(Other Computations)'!CC52","v":{"v":708523.6004572489,"d":"$708,524"}},{"$f":"Inputs!B34*'(Other Computations)'!CD52","v":{"v":708235.3168296549,"d":"$708,235"}},{"$f":"Inputs!B34*'(Other Computations)'!CE52","v":{"v":707846.9244486049,"d":"$707,847"}},{"$f":"Inputs!B34*'(Other Computations)'!CF52","v":{"v":707460.4355026337,"d":"$707,460"}},{"$f":"Inputs!B34*'(Other Computations)'!CG52","v":{"v":707157.7357827753,"d":"$707,158"}},{"$f":"Inputs!B34*'(Other Computations)'!CH52","v":{"v":706811.802877494,"d":"$706,812"}},{"$f":"Inputs!B34*'(Other Computations)'!CI52","v":{"v":706429.537983458,"d":"$706,430"}},{"$f":"Inputs!B34*'(Other Computations)'!CJ52","v":{"v":706157.1691963482,"d":"$706,157"}},{"$f":"Inputs!B34*'(Other Computations)'!CK52","v":{"v":705842.2281904449,"d":"$705,842"}},{"$f":"Inputs!B34*'(Other Computations)'!CL52","v":{"v":705527.7219525932,"d":"$705,528"}},{"$f":"Inputs!B34*'(Other Computations)'!CM52","v":{"v":705151.8317564152,"d":"$705,152"}},{"$f":"SUM(CB12:CM12)","v":{"v":8483979.083105113,"d":"$8,483,979"}},{"$f":"Inputs!B34*'(Other Computations)'!CO52","v":{"v":704783.914381453,"d":"$704,784"}},{"$f":"Inputs!B34*'(Other Computations)'!CP52","v":{"v":704476.8684017386,"d":"$704,477"}},{"$f":"Inputs!B34*'(Other Computations)'!CQ52","v":{"v":704151.2551367086,"d":"$704,151"}},{"$f":"Inputs!B34*'(Other Computations)'!CR52","v":{"v":703828.3480161122,"d":"$703,828"}},{"$f":"Inputs!B34*'(Other Computations)'!CS52","v":{"v":703441.791742385,"d":"$703,442"}},{"$f":"Inputs!B34*'(Other Computations)'!CT52","v":{"v":703119.3153387229,"d":"$703,119"}},{"$f":"Inputs!B34*'(Other Computations)'!CU52","v":{"v":702873.0369731629,"d":"$702,873"}},{"$f":"Inputs!B34*'(Other Computations)'!CV52","v":{"v":702517.7224206561,"d":"$702,518"}},{"$f":"Inputs!B34*'(Other Computations)'!CW52","v":{"v":702192.7265646587,"d":"$702,193"}},{"$f":"Inputs!B34*'(Other Computations)'!CX52","v":{"v":701808.875456927,"d":"$701,809"}},{"$f":"Inputs!B34*'(Other Computations)'!CY52","v":{"v":701500.9985937306,"d":"$701,501"}},{"$f":"Inputs!B34*'(Other Computations)'!CZ52","v":{"v":701225.6786209013,"d":"$701,226"}},{"$f":"SUM(CO12:CZ12)","v":{"v":8435920.531647157,"d":"$8,435,921"}},{"$f":"Inputs!B34*'(Other Computations)'!DB52","v":{"v":700952.7031751082,"d":"$700,953"}},{"$f":"Inputs!B34*'(Other Computations)'!DC52","v":{"v":700615.9585663201,"d":"$700,616"}},{"$f":"Inputs!B34*'(Other Computations)'!DD52","v":{"v":700200.2472517764,"d":"$700,200"}},{"$f":"Inputs!B34*'(Other Computations)'!DE52","v":{"v":699850.808334359,"d":"$699,851"}},{"$f":"Inputs!B34*'(Other Computations)'!DF52","v":{"v":699496.2139874753,"d":"$699,496"}},{"$f":"Inputs!B34*'(Other Computations)'!DG52","v":{"v":699138.8355317841,"d":"$699,139"}},{"$f":"Inputs!B34*'(Other Computations)'!DH52","v":{"v":698778.7851805186,"d":"$698,779"}},{"$f":"Inputs!B34*'(Other Computations)'!DI52","v":{"v":698490.4846567522,"d":"$698,490"}},{"$f":"Inputs!B34*'(Other Computations)'!DJ52","v":{"v":698196.8985242551,"d":"$698,197"}},{"$f":"Inputs!B34*'(Other Computations)'!DK52","v":{"v":697915.6854215147,"d":"$697,916"}},{"$f":"Inputs!B34*'(Other Computations)'!DL52","v":{"v":697573.4260813324,"d":"$697,573"}},{"$f":"Inputs!B34*'(Other Computations)'!DM52","v":{"v":697175.466173647,"d":"$697,175"}},{"$f":"SUM(DB12:DM12)","v":{"v":8388385.512884842,"d":"$8,388,386"}},{"$f":"Inputs!B34*'(Other Computations)'!DO52","v":{"v":696840.3844674558,"d":"$696,840"}},{"$f":"Inputs!B34*'(Other Computations)'!DP52","v":{"v":696566.2535157821,"d":"$696,566"}},{"$f":"Inputs!B34*'(Other Computations)'!DQ52","v":{"v":696292.0930914286,"d":"$696,292"}},{"$f":"Inputs!B34*'(Other Computations)'!DR52","v":{"v":695967.7875570637,"d":"$695,968"}},{"$f":"Inputs!B34*'(Other Computations)'!DS52","v":{"v":695705.5680171367,"d":"$695,706"}},{"$f":"Inputs!B34*'(Other Computations)'!DT52","v":{"v":695383.2301608155,"d":"$695,383"}},{"$f":"Inputs!B34*'(Other Computations)'!DU52","v":{"v":695040.004097059,"d":"$695,040"}},{"$f":"Inputs!B34*'(Other Computations)'!DV52","v":{"v":694723.5703564319,"d":"$694,724"}},{"$f":"Inputs!B34*'(Other Computations)'!DW52","v":{"v":694290.393510767,"d":"$694,290"}},{"$f":"Inputs!B34*'(Other Computations)'!DX52","v":{"v":694007.3088193279,"d":"$694,007"}},{"$f":"Inputs!B34*'(Other Computations)'!DY52","v":{"v":693671.349023345,"d":"$693,671"}},{"$f":"Inputs!B34*'(Other Computations)'!DZ52","v":{"v":693402.0827007225,"d":"$693,402"}},{"$f":"SUM(DO12:DZ12)","v":{"v":8341890.025317336,"d":"$8,341,890"}},{"$f":"Inputs!B34*'(Other Computations)'!EB52","v":{"v":693037.2324635574,"d":"$693,037"}},{"$f":"Inputs!B34*'(Other Computations)'!EC52","v":{"v":692731.8464009877,"d":"$692,732"}},{"$f":"Inputs!B34*'(Other Computations)'!ED52","v":{"v":692444.626543266,"d":"$692,445"}},{"$f":"Inputs!B34*'(Other Computations)'!EE52","v":{"v":692040.2836508678,"d":"$692,040"}},{"$f":"Inputs!B34*'(Other Computations)'!EF52","v":{"v":691669.5395356416,"d":"$691,670"}},{"$f":"Inputs!B34*'(Other Computations)'!EG52","v":{"v":691289.5288414008,"d":"$691,290"}},{"$f":"Inputs!B34*'(Other Computations)'!EH52","v":{"v":690964.0756027554,"d":"$690,964"}},{"$f":"Inputs!B34*'(Other Computations)'!EI52","v":{"v":690537.3708075553,"d":"$690,537"}},{"$f":"Inputs!B34*'(Other Computations)'!EJ52","v":{"v":690103.8269993534,"d":"$690,104"}},{"$f":"Inputs!B34*'(Other Computations)'!EK52","v":{"v":689719.7144837553,"d":"$689,720"}},{"$f":"Inputs!B34*'(Other Computations)'!EL52","v":{"v":689360.8217657777,"d":"$689,361"}},{"$f":"Inputs!B34*'(Other Computations)'!EM52","v":{"v":688988.7037765792,"d":"$688,989"}},{"$f":"SUM(EB12:EM12)","v":{"v":8292887.5708714975,"d":"$8,292,888"}}]
[{"$f":"Labels!B74","v":"Aggregate Demand Shock"},{"$f":"NORMINV(RAND()*(1-2*Inputs!B58)+Inputs!B58,0,'(Other Computations)'!B208)","v":{"v":-54744.561960042265,"d":"($54,745)"}},{"$f":"NORMINV(RAND()*(1-2*Inputs!B58)+Inputs!B58,0,'(Other Computations)'!B208)","v":{"v":8898.37352653596,"d":"$8,898"}},{"$f":"NORMINV(RAND()*(1-2*Inputs!B58)+Inputs!B58,0,'(Other Computations)'!B208)","v":{"v":-30586.84640440895,"d":"($30,587)"}},{"$f":"NORMINV(RAND()*(1-2*Inputs!B58)+Inputs!B58,0,'(Other Computations)'!B208)","v":{"v":44802.19640522255,"d":"$44,802"}},{"$f":"NORMINV(RAND()*(1-2*Inputs!B58)+Inputs!B58,0,'(Other Computations)'!B208)","v":{"v":14756.715016624212,"d":"$14,757"}},{"$f":"NORMINV(RAND()*(1-2*Inputs!B58)+Inputs!B58,0,'(Other Computations)'!B208)","v":{"v":41600.10110673441,"d":"$41,600"}},{"$f":"NORMINV(RAND()*(1-2*Inputs!B58)+Inputs!B58,0,'(Other Computations)'!B208)","v":{"v":-12422.779211182109,"d":"($12,423)"}},{"$f":"NORMINV(RAND()*(1-2*Inputs!B58)+Inputs!B58,0,'(Other Computations)'!B208)","v":{"v":28374.62410038729,"d":"$28,375"}},{"$f":"NORMINV(RAND()*(1-2*Inputs!B58)+Inputs!B58,0,'(Other Computations)'!B208)","v":{"v":-35501.49206329916,"d":"($35,501)"}},{"$f":"NORMINV(RAND()*(1-2*Inputs!B58)+Inputs!B58,0,'(Other Computations)'!B208)","v":{"v":9701.545038345106,"d":"$9,702"}},{"$f":"NORMINV(RAND()*(1-2*Inputs!B58)+Inputs!B58,0,'(Other Computations)'!B208)","v":{"v":31699.62386699065,"d":"$31,700"}},{"$f":"NORMINV(RAND()*(1-2*Inputs!B58)+Inputs!B58,0,'(Other Computations)'!B208)","v":{"v":-24175.652860272072,"d":"($24,176)"}},{"$f":"SUM(B13:M13)","v":{"v":22401.84656163562,"d":"$22,402"}},{"$f":"NORMINV(RAND()*(1-2*Inputs!B58)+Inputs!B58,0,'(Other Computations)'!B208)","v":{"v":10510.156838540348,"d":"$10,510"}},{"$f":"NORMINV(RAND()*(1-2*Inputs!B58)+Inputs!B58,0,'(Other Computations)'!B208)","v":{"v":-12949.770581214205,"d":"($12,950)"}},{"$f":"NORMINV(RAND()*(1-2*Inputs!B58)+Inputs!B58,0,'(Other Computations)'!B208)","v":{"v":42298.39845774134,"d":"$42,298"}},{"$f":"NORMINV(RAND()*(1-2*Inputs!B58)+Inputs!B58,0,'(Other Computations)'!B208)","v":{"v":25279.00114948575,"d":"$25,279"}},{"$f":"NORMINV(RAND()*(1-2*Inputs!B58)+Inputs!B58,0,'(Other Computations)'!B208)","v":{"v":1247.9781671620979,"d":"$1,248"}},{"$f":"NORMINV(RAND()*(1-2*Inputs!B58)+Inputs!B58,0,'(Other Computations)'!B208)","v":{"v":-8398.068615335136,"d":"($8,398)"}},{"$f":"NORMINV(RAND()*(1-2*Inputs!B58)+Inputs!B58,0,'(Other Computations)'!B208)","v":{"v":-61541.84676030758,"d":"($61,542)"}},{"$f":"NORMINV(RAND()*(1-2*Inputs!B58)+Inputs!B58,0,'(Other Computations)'!B208)","v":{"v":-26144.934288803135,"d":"($26,145)"}},{"$f":"NORMINV(RAND()*(1-2*Inputs!B58)+Inputs!B58,0,'(Other Computations)'!B208)","v":{"v":13734.90336139273,"d":"$13,735"}},{"$f":"NORMINV(RAND()*(1-2*Inputs!B58)+Inputs!B58,0,'(Other Computations)'!B208)","v":{"v":5367.395866578204,"d":"$5,367"}},{"$f":"NORMINV(RAND()*(1-2*Inputs!B58)+Inputs!B58,0,'(Other Computations)'!B208)","v":{"v":-13568.55388081131,"d":"($13,569)"}},{"$f":"NORMINV(RAND()*(1-2*Inputs!B58)+Inputs!B58,0,'(Other Computations)'!B208)","v":{"v":-56545.42771741092,"d":"($56,545)"}},{"$f":"SUM(O13:Z13)","v":{"v":-80710.76800298181,"d":"($80,711)"}},{"$f":"NORMINV(RAND()*(1-2*Inputs!B58)+Inputs!B58,0,'(Other Computations)'!B208)","v":{"v":41339.771499122944,"d":"$41,340"}},{"$f":"NORMINV(RAND()*(1-2*Inputs!B58)+Inputs!B58,0,'(Other Computations)'!B208)","v":{"v":-19851.053194439206,"d":"($19,851)"}},{"$f":"NORMINV(RAND()*(1-2*Inputs!B58)+Inputs!B58,0,'(Other Computations)'!B208)","v":{"v":-33776.62614050761,"d":"($33,777)"}},{"$f":"NORMINV(RAND()*(1-2*Inputs!B58)+Inputs!B58,0,'(Other Computations)'!B208)","v":{"v":27885.785898149694,"d":"$27,886"}},{"$f":"NORMINV(RAND()*(1-2*Inputs!B58)+Inputs!B58,0,'(Other Computations)'!B208)","v":{"v":-57455.55444633597,"d":"($57,456)"}},{"$f":"NORMINV(RAND()*(1-2*Inputs!B58)+Inputs!B58,0,'(Other Computations)'!B208)","v":{"v":24816.261784649494,"d":"$24,816"}},{"$f":"NORMINV(RAND()*(1-2*Inputs!B58)+Inputs!B58,0,'(Other Computations)'!B208)","v":{"v":7110.608344236975,"d":"$7,111"}},{"$f":"NORMINV(RAND()*(1-2*Inputs!B58)+Inputs!B58,0,'(Other Computations)'!B208)","v":{"v":-24542.656825525704,"d":"($24,543)"}},{"$f":"NORMINV(RAND()*(1-2*Inputs!B58)+Inputs!B58,0,'(Other Computations)'!B208)","v":{"v":19760.385666979906,"d":"$19,760"}},{"$f":"NORMINV(RAND()*(1-2*Inputs!B58)+Inputs!B58,0,'(Other Computations)'!B208)","v":{"v":6580.105777677363,"d":"$6,580"}},{"$f":"NORMINV(RAND()*(1-2*Inputs!B58)+Inputs!B58,0,'(Other Computations)'!B208)","v":{"v":-12575.273625555172,"d":"($12,575)"}},{"$f":"NORMINV(RAND()*(1-2*Inputs!B58)+Inputs!B58,0,'(Other Computations)'!B208)","v":{"v":-15500.501724286998,"d":"($15,501)"}},{"$f":"SUM(AB13:AM13)","v":{"v":-36208.74698583428,"d":"($36,209)"}},{"$f":"NORMINV(RAND()*(1-2*Inputs!B58)+Inputs!B58,0,'(Other Computations)'!B208)","v":{"v":29703.314719075563,"d":"$29,703"}},{"$f":"NORMINV(RAND()*(1-2*Inputs!B58)+Inputs!B58,0,'(Other Computations)'!B208)","v":{"v":36632.697268109594,"d":"$36,633"}},{"$f":"NORMINV(RAND()*(1-2*Inputs!B58)+Inputs!B58,0,'(Other Computations)'!B208)","v":{"v":-46431.60766413146,"d":"($46,432)"}},{"$f":"NORMINV(RAND()*(1-2*Inputs!B58)+Inputs!B58,0,'(Other Computations)'!B208)","v":{"v":-8892.780283292836,"d":"($8,893)"}},{"$f":"NORMINV(RAND()*(1-2*Inputs!B58)+Inputs!B58,0,'(Other Computations)'!B208)","v":{"v":26449.047727610287,"d":"$26,449"}},{"$f":"NORMINV(RAND()*(1-2*Inputs!B58)+Inputs!B58,0,'(Other Computations)'!B208)","v":{"v":-15832.57773230969,"d":"($15,833)"}},{"$f":"NORMINV(RAND()*(1-2*Inputs!B58)+Inputs!B58,0,'(Other Computations)'!B208)","v":{"v":-30182.658351096437,"d":"($30,183)"}},{"$f":"NORMINV(RAND()*(1-2*Inputs!B58)+Inputs!B58,0,'(Other Computations)'!B208)","v":{"v":11966.636053698587,"d":"$11,967"}},{"$f":"NORMINV(RAND()*(1-2*Inputs!B58)+Inputs!B58,0,'(Other Computations)'!B208)","v":{"v":-32189.88599352654,"d":"($32,190)"}},{"$f":"NORMINV(RAND()*(1-2*Inputs!B58)+Inputs!B58,0,'(Other Computations)'!B208)","v":{"v":36458.383938563245,"d":"$36,458"}},{"$f":"NORMINV(RAND()*(1-2*Inputs!B58)+Inputs!B58,0,'(Other Computations)'!B208)","v":{"v":-31988.483763618733,"d":"($31,988)"}},{"$f":"NORMINV(RAND()*(1-2*Inputs!B58)+Inputs!B58,0,'(Other Computations)'!B208)","v":{"v":-48083.915666971625,"d":"($48,084)"}},{"$f":"SUM(AO13:AZ13)","v":{"v":-72391.82974789003,"d":"($72,392)"}},{"$f":"NORMINV(RAND()*(1-2*Inputs!B58)+Inputs!B58,0,'(Other Computations)'!B208)","v":{"v":-11585.737414295822,"d":"($11,586)"}},{"$f":"NORMINV(RAND()*(1-2*Inputs!B58)+Inputs!B58,0,'(Other Computations)'!B208)","v":{"v":-48728.679020827054,"d":"($48,729)"}},{"$f":"NORMINV(RAND()*(1-2*Inputs!B58)+Inputs!B58,0,'(Other Computations)'!B208)","v":{"v":26604.31026340255,"d":"$26,604"}},{"$f":"NORMINV(RAND()*(1-2*Inputs!B58)+Inputs!B58,0,'(Other Computations)'!B208)","v":{"v":-58463.21728134013,"d":"($58,463)"}},{"$f":"NORMINV(RAND()*(1-2*Inputs!B58)+Inputs!B58,0,'(Other Computations)'!B208)","v":{"v":11235.413063141139,"d":"$11,235"}},{"$f":"NORMINV(RAND()*(1-2*Inputs!B58)+Inputs!B58,0,'(Other Computations)'!B208)","v":{"v":-59175.45014857556,"d":"($59,175)"}},{"$f":"NORMINV(RAND()*(1-2*Inputs!B58)+Inputs!B58,0,'(Other Computations)'!B208)","v":{"v":-31520.33042352554,"d":"($31,520)"}},{"$f":"NORMINV(RAND()*(1-2*Inputs!B58)+Inputs!B58,0,'(Other Computations)'!B208)","v":{"v":6682.920627356814,"d":"$6,683"}},{"$f":"NORMINV(RAND()*(1-2*Inputs!B58)+Inputs!B58,0,'(Other Computations)'!B208)","v":{"v":147.53029217964522,"d":"$148"}},{"$f":"NORMINV(RAND()*(1-2*Inputs!B58)+Inputs!B58,0,'(Other Computations)'!B208)","v":{"v":-13053.09187997311,"d":"($13,053)"}},{"$f":"NORMINV(RAND()*(1-2*Inputs!B58)+Inputs!B58,0,'(Other Computations)'!B208)","v":{"v":23151.437417636294,"d":"$23,151"}},{"$f":"NORMINV(RAND()*(1-2*Inputs!B58)+Inputs!B58,0,'(Other Computations)'!B208)","v":{"v":-4080.330175984565,"d":"($4,080)"}},{"$f":"SUM(BB13:BM13)","v":{"v":-158785.22468080532,"d":"($158,785)"}},{"$f":"NORMINV(RAND()*(1-2*Inputs!B58)+Inputs!B58,0,'(Other Computations)'!B208)","v":{"v":-2789.8565715284985,"d":"($2,790)"}},{"$f":"NORMINV(RAND()*(1-2*Inputs!B58)+Inputs!B58,0,'(Other Computations)'!B208)","v":{"v":12714.158519875913,"d":"$12,714"}},{"$f":"NORMINV(RAND()*(1-2*Inputs!B58)+Inputs!B58,0,'(Other Computations)'!B208)","v":{"v":-31501.757660083265,"d":"($31,502)"}},{"$f":"NORMINV(RAND()*(1-2*Inputs!B58)+Inputs!B58,0,'(Other Computations)'!B208)","v":{"v":2543.4521338805052,"d":"$2,543"}},{"$f":"NORMINV(RAND()*(1-2*Inputs!B58)+Inputs!B58,0,'(Other Computations)'!B208)","v":{"v":23156.9073702,"d":"$23,157"}},{"$f":"NORMINV(RAND()*(1-2*Inputs!B58)+Inputs!B58,0,'(Other Computations)'!B208)","v":{"v":-11208.572771070956,"d":"($11,209)"}},{"$f":"NORMINV(RAND()*(1-2*Inputs!B58)+Inputs!B58,0,'(Other Computations)'!B208)","v":{"v":-16229.364988159252,"d":"($16,229)"}},{"$f":"NORMINV(RAND()*(1-2*Inputs!B58)+Inputs!B58,0,'(Other Computations)'!B208)","v":{"v":-28343.07825090023,"d":"($28,343)"}},{"$f":"NORMINV(RAND()*(1-2*Inputs!B58)+Inputs!B58,0,'(Other Computations)'!B208)","v":{"v":13803.397305538234,"d":"$13,803"}},{"$f":"NORMINV(RAND()*(1-2*Inputs!B58)+Inputs!B58,0,'(Other Computations)'!B208)","v":{"v":-38405.26302635689,"d":"($38,405)"}},{"$f":"NORMINV(RAND()*(1-2*Inputs!B58)+Inputs!B58,0,'(Other Computations)'!B208)","v":{"v":39660.79643578133,"d":"$39,661"}},{"$f":"NORMINV(RAND()*(1-2*Inputs!B58)+Inputs!B58,0,'(Other Computations)'!B208)","v":{"v":-12520.275310706926,"d":"($12,520)"}},{"$f":"SUM(BO13:BZ13)","v":{"v":-49119.45681353005,"d":"($49,119)"}},{"$f":"NORMINV(RAND()*(1-2*Inputs!B58)+Inputs!B58,0,'(Other Computations)'!B208)","v":{"v":15842.400390776176,"d":"$15,842"}},{"$f":"NORMINV(RAND()*(1-2*Inputs!B58)+Inputs!B58,0,'(Other Computations)'!B208)","v":{"v":-8409.210274924102,"d":"($8,409)"}},{"$f":"NORMINV(RAND()*(1-2*Inputs!B58)+Inputs!B58,0,'(Other Computations)'!B208)","v":{"v":1991.7858786890256,"d":"$1,992"}},{"$f":"NORMINV(RAND()*(1-2*Inputs!B58)+Inputs!B58,0,'(Other Computations)'!B208)","v":{"v":3433.6137522213535,"d":"$3,434"}},{"$f":"NORMINV(RAND()*(1-2*Inputs!B58)+Inputs!B58,0,'(Other Computations)'!B208)","v":{"v":31.225098658425438,"d":"$31"}},{"$f":"NORMINV(RAND()*(1-2*Inputs!B58)+Inputs!B58,0,'(Other Computations)'!B208)","v":{"v":24699.720887559208,"d":"$24,700"}},{"$f":"NORMINV(RAND()*(1-2*Inputs!B58)+Inputs!B58,0,'(Other Computations)'!B208)","v":{"v":28835.520632981275,"d":"$28,836"}},{"$f":"NORMINV(RAND()*(1-2*Inputs!B58)+Inputs!B58,0,'(Other Computations)'!B208)","v":{"v":40555.79276002598,"d":"$40,556"}},{"$f":"NORMINV(RAND()*(1-2*Inputs!B58)+Inputs!B58,0,'(Other Computations)'!B208)","v":{"v":-6561.821383196699,"d":"($6,562)"}},{"$f":"NORMINV(RAND()*(1-2*Inputs!B58)+Inputs!B58,0,'(Other Computations)'!B208)","v":{"v":18917.21619749479,"d":"$18,917"}},{"$f":"NORMINV(RAND()*(1-2*Inputs!B58)+Inputs!B58,0,'(Other Computations)'!B208)","v":{"v":31776.480779005233,"d":"$31,776"}},{"$f":"NORMINV(RAND()*(1-2*Inputs!B58)+Inputs!B58,0,'(Other Computations)'!B208)","v":{"v":46242.9119582108,"d":"$46,243"}},{"$f":"SUM(CB13:CM13)","v":{"v":197355.6366775015,"d":"$197,356"}},{"$f":"NORMINV(RAND()*(1-2*Inputs!B58)+Inputs!B58,0,'(Other Computations)'!B208)","v":{"v":-35082.319179666025,"d":"($35,082)"}},{"$f":"NORMINV(RAND()*(1-2*Inputs!B58)+Inputs!B58,0,'(Other Computations)'!B208)","v":{"v":14955.948917525444,"d":"$14,956"}},{"$f":"NORMINV(RAND()*(1-2*Inputs!B58)+Inputs!B58,0,'(Other Computations)'!B208)","v":{"v":-13585.17915887107,"d":"($13,585)"}},{"$f":"NORMINV(RAND()*(1-2*Inputs!B58)+Inputs!B58,0,'(Other Computations)'!B208)","v":{"v":9340.716240051474,"d":"$9,341"}},{"$f":"NORMINV(RAND()*(1-2*Inputs!B58)+Inputs!B58,0,'(Other Computations)'!B208)","v":{"v":-4968.450666300335,"d":"($4,968)"}},{"$f":"NORMINV(RAND()*(1-2*Inputs!B58)+Inputs!B58,0,'(Other Computations)'!B208)","v":{"v":6363.0899374843275,"d":"$6,363"}},{"$f":"NORMINV(RAND()*(1-2*Inputs!B58)+Inputs!B58,0,'(Other Computations)'!B208)","v":{"v":18512.077733679518,"d":"$18,512"}},{"$f":"NORMINV(RAND()*(1-2*Inputs!B58)+Inputs!B58,0,'(Other Computations)'!B208)","v":{"v":2680.6056679097665,"d":"$2,681"}},{"$f":"NORMINV(RAND()*(1-2*Inputs!B58)+Inputs!B58,0,'(Other Computations)'!B208)","v":{"v":-29518.389087233405,"d":"($29,518)"}},{"$f":"NORMINV(RAND()*(1-2*Inputs!B58)+Inputs!B58,0,'(Other Computations)'!B208)","v":{"v":41081.32984981293,"d":"$41,081"}},{"$f":"NORMINV(RAND()*(1-2*Inputs!B58)+Inputs!B58,0,'(Other Computations)'!B208)","v":{"v":-22546.951705957414,"d":"($22,547)"}},{"$f":"NORMINV(RAND()*(1-2*Inputs!B58)+Inputs!B58,0,'(Other Computations)'!B208)","v":{"v":27658.565553882145,"d":"$27,659"}},{"$f":"SUM(CO13:CZ13)","v":{"v":14891.044102317355,"d":"$14,891"}},{"$f":"NORMINV(RAND()*(1-2*Inputs!B58)+Inputs!B58,0,'(Other Computations)'!B208)","v":{"v":-34226.79994740168,"d":"($34,227)"}},{"$f":"NORMINV(RAND()*(1-2*Inputs!B58)+Inputs!B58,0,'(Other Computations)'!B208)","v":{"v":-56615.625362287916,"d":"($56,616)"}},{"$f":"NORMINV(RAND()*(1-2*Inputs!B58)+Inputs!B58,0,'(Other Computations)'!B208)","v":{"v":-5235.598625003539,"d":"($5,236)"}},{"$f":"NORMINV(RAND()*(1-2*Inputs!B58)+Inputs!B58,0,'(Other Computations)'!B208)","v":{"v":11390.935764240157,"d":"$11,391"}},{"$f":"NORMINV(RAND()*(1-2*Inputs!B58)+Inputs!B58,0,'(Other Computations)'!B208)","v":{"v":4487.381758882888,"d":"$4,487"}},{"$f":"NORMINV(RAND()*(1-2*Inputs!B58)+Inputs!B58,0,'(Other Computations)'!B208)","v":{"v":16433.761920961315,"d":"$16,434"}},{"$f":"NORMINV(RAND()*(1-2*Inputs!B58)+Inputs!B58,0,'(Other Computations)'!B208)","v":{"v":11258.625965988018,"d":"$11,259"}},{"$f":"NORMINV(RAND()*(1-2*Inputs!B58)+Inputs!B58,0,'(Other Computations)'!B208)","v":{"v":1094.4904425182508,"d":"$1,094"}},{"$f":"NORMINV(RAND()*(1-2*Inputs!B58)+Inputs!B58,0,'(Other Computations)'!B208)","v":{"v":-11232.754895813647,"d":"($11,233)"}},{"$f":"NORMINV(RAND()*(1-2*Inputs!B58)+Inputs!B58,0,'(Other Computations)'!B208)","v":{"v":10651.056790227141,"d":"$10,651"}},{"$f":"NORMINV(RAND()*(1-2*Inputs!B58)+Inputs!B58,0,'(Other Computations)'!B208)","v":{"v":20145.502933984022,"d":"$20,146"}},{"$f":"NORMINV(RAND()*(1-2*Inputs!B58)+Inputs!B58,0,'(Other Computations)'!B208)","v":{"v":9562.621820428834,"d":"$9,563"}},{"$f":"SUM(DB13:DM13)","v":{"v":-22286.40143327615,"d":"($22,286)"}},{"$f":"NORMINV(RAND()*(1-2*Inputs!B58)+Inputs!B58,0,'(Other Computations)'!B208)","v":{"v":16002.149385021434,"d":"$16,002"}},{"$f":"NORMINV(RAND()*(1-2*Inputs!B58)+Inputs!B58,0,'(Other Computations)'!B208)","v":{"v":19337.756154577273,"d":"$19,338"}},{"$f":"NORMINV(RAND()*(1-2*Inputs!B58)+Inputs!B58,0,'(Other Computations)'!B208)","v":{"v":58916.18082979849,"d":"$58,916"}},{"$f":"NORMINV(RAND()*(1-2*Inputs!B58)+Inputs!B58,0,'(Other Computations)'!B208)","v":{"v":-51344.52802575589,"d":"($51,345)"}},{"$f":"NORMINV(RAND()*(1-2*Inputs!B58)+Inputs!B58,0,'(Other Computations)'!B208)","v":{"v":-16206.114367621574,"d":"($16,206)"}},{"$f":"NORMINV(RAND()*(1-2*Inputs!B58)+Inputs!B58,0,'(Other Computations)'!B208)","v":{"v":25097.47112174367,"d":"$25,097"}},{"$f":"NORMINV(RAND()*(1-2*Inputs!B58)+Inputs!B58,0,'(Other Computations)'!B208)","v":{"v":-4475.078781298761,"d":"($4,475)"}},{"$f":"NORMINV(RAND()*(1-2*Inputs!B58)+Inputs!B58,0,'(Other Computations)'!B208)","v":{"v":25798.282701209362,"d":"$25,798"}},{"$f":"NORMINV(RAND()*(1-2*Inputs!B58)+Inputs!B58,0,'(Other Computations)'!B208)","v":{"v":38677.6760179425,"d":"$38,678"}},{"$f":"NORMINV(RAND()*(1-2*Inputs!B58)+Inputs!B58,0,'(Other Computations)'!B208)","v":{"v":-5496.598102931237,"d":"($5,497)"}},{"$f":"NORMINV(RAND()*(1-2*Inputs!B58)+Inputs!B58,0,'(Other Computations)'!B208)","v":{"v":-15572.85730096417,"d":"($15,573)"}},{"$f":"NORMINV(RAND()*(1-2*Inputs!B58)+Inputs!B58,0,'(Other Computations)'!B208)","v":{"v":-32573.162654771633,"d":"($32,573)"}},{"$f":"SUM(DO13:DZ13)","v":{"v":58161.17697694946,"d":"$58,161"}},{"$f":"NORMINV(RAND()*(1-2*Inputs!B58)+Inputs!B58,0,'(Other Computations)'!B208)","v":{"v":-91.89224615722603,"d":"($92)"}},{"$f":"NORMINV(RAND()*(1-2*Inputs!B58)+Inputs!B58,0,'(Other Computations)'!B208)","v":{"v":-12172.942622013468,"d":"($12,173)"}},{"$f":"NORMINV(RAND()*(1-2*Inputs!B58)+Inputs!B58,0,'(Other Computations)'!B208)","v":{"v":10839.384929715801,"d":"$10,839"}},{"$f":"NORMINV(RAND()*(1-2*Inputs!B58)+Inputs!B58,0,'(Other Computations)'!B208)","v":{"v":10967.151945751868,"d":"$10,967"}},{"$f":"NORMINV(RAND()*(1-2*Inputs!B58)+Inputs!B58,0,'(Other Computations)'!B208)","v":{"v":-2239.062617324862,"d":"($2,239)"}},{"$f":"NORMINV(RAND()*(1-2*Inputs!B58)+Inputs!B58,0,'(Other Computations)'!B208)","v":{"v":-1800.2441578750083,"d":"($1,800)"}},{"$f":"NORMINV(RAND()*(1-2*Inputs!B58)+Inputs!B58,0,'(Other Computations)'!B208)","v":{"v":27746.325759473137,"d":"$27,746"}},{"$f":"NORMINV(RAND()*(1-2*Inputs!B58)+Inputs!B58,0,'(Other Computations)'!B208)","v":{"v":-38975.84114417153,"d":"($38,976)"}},{"$f":"NORMINV(RAND()*(1-2*Inputs!B58)+Inputs!B58,0,'(Other Computations)'!B208)","v":{"v":-50603.55470408188,"d":"($50,604)"}},{"$f":"NORMINV(RAND()*(1-2*Inputs!B58)+Inputs!B58,0,'(Other Computations)'!B208)","v":{"v":41825.94450782645,"d":"$41,826"}},{"$f":"NORMINV(RAND()*(1-2*Inputs!B58)+Inputs!B58,0,'(Other Computations)'!B208)","v":{"v":22066.326054112127,"d":"$22,066"}},{"$f":"NORMINV(RAND()*(1-2*Inputs!B58)+Inputs!B58,0,'(Other Computations)'!B208)","v":{"v":-8261.712512973205,"d":"($8,262)"}},{"$f":"SUM(EB13:EM13)","v":{"v":-700.1168077177972,"d":"($700)"}}]
[]
[]
[{"$f":"\"Capital\"","v":"Capital"}]
[{"$f":"\" \"","v":" "}]
[null,{"$f":"ZZZ__FnCalls!F7","v":"Jan 2010"},{"$f":"ZZZ__FnCalls!F8","v":"Feb 2010"},{"$f":"ZZZ__FnCalls!F9","v":"Mar 2010"},{"$f":"ZZZ__FnCalls!F10","v":"Apr 2010"},{"$f":"ZZZ__FnCalls!F11","v":"May 2010"},{"$f":"ZZZ__FnCalls!F12","v":"Jun 2010"},{"$f":"ZZZ__FnCalls!F13","v":"Jul 2010"},{"$f":"ZZZ__FnCalls!F14","v":"Aug 2010"},{"$f":"ZZZ__FnCalls!F15","v":"Sep 2010"},{"$f":"ZZZ__FnCalls!F16","v":"Oct 2010"},{"$f":"ZZZ__FnCalls!F17","v":"Nov 2010"},{"$f":"ZZZ__FnCalls!F18","v":"Dec 2010"},{"$f":"ZZZ__FnCalls!H7","v":"2010"},{"$f":"ZZZ__FnCalls!F19","v":"Jan 2011"},{"$f":"ZZZ__FnCalls!F20","v":"Feb 2011"},{"$f":"ZZZ__FnCalls!F21","v":"Mar 2011"},{"$f":"ZZZ__FnCalls!F22","v":"Apr 2011"},{"$f":"ZZZ__FnCalls!F23","v":"May 2011"},{"$f":"ZZZ__FnCalls!F24","v":"Jun 2011"},{"$f":"ZZZ__FnCalls!F25","v":"Jul 2011"},{"$f":"ZZZ__FnCalls!F26","v":"Aug 2011"},{"$f":"ZZZ__FnCalls!F27","v":"Sep 2011"},{"$f":"ZZZ__FnCalls!F28","v":"Oct 2011"},{"$f":"ZZZ__FnCalls!F29","v":"Nov 2011"},{"$f":"ZZZ__FnCalls!F30","v":"Dec 2011"},{"$f":"ZZZ__FnCalls!H19","v":"2011"},{"$f":"ZZZ__FnCalls!F31","v":"Jan 2012"},{"$f":"ZZZ__FnCalls!F32","v":"Feb 2012"},{"$f":"ZZZ__FnCalls!F33","v":"Mar 2012"},{"$f":"ZZZ__FnCalls!F34","v":"Apr 2012"},{"$f":"ZZZ__FnCalls!F35","v":"May 2012"},{"$f":"ZZZ__FnCalls!F36","v":"Jun 2012"},{"$f":"ZZZ__FnCalls!F37","v":"Jul 2012"},{"$f":"ZZZ__FnCalls!F38","v":"Aug 2012"},{"$f":"ZZZ__FnCalls!F39","v":"Sep 2012"},{"$f":"ZZZ__FnCalls!F40","v":"Oct 2012"},{"$f":"ZZZ__FnCalls!F41","v":"Nov 2012"},{"$f":"ZZZ__FnCalls!F42","v":"Dec 2012"},{"$f":"ZZZ__FnCalls!H31","v":"2012"},{"$f":"ZZZ__FnCalls!F43","v":"Jan 2013"},{"$f":"ZZZ__FnCalls!F44","v":"Feb 2013"},{"$f":"ZZZ__FnCalls!F45","v":"Mar 2013"},{"$f":"ZZZ__FnCalls!F46","v":"Apr 2013"},{"$f":"ZZZ__FnCalls!F47","v":"May 2013"},{"$f":"ZZZ__FnCalls!F48","v":"Jun 2013"},{"$f":"ZZZ__FnCalls!F49","v":"Jul 2013"},{"$f":"ZZZ__FnCalls!F50","v":"Aug 2013"},{"$f":"ZZZ__FnCalls!F51","v":"Sep 2013"},{"$f":"ZZZ__FnCalls!F52","v":"Oct 2013"},{"$f":"ZZZ__FnCalls!F53","v":"Nov 2013"},{"$f":"ZZZ__FnCalls!F54","v":"Dec 2013"},{"$f":"ZZZ__FnCalls!H43","v":"2013"},{"$f":"ZZZ__FnCalls!F55","v":"Jan 2014"},{"$f":"ZZZ__FnCalls!F56","v":"Feb 2014"},{"$f":"ZZZ__FnCalls!F57","v":"Mar 2014"},{"$f":"ZZZ__FnCalls!F58","v":"Apr 2014"},{"$f":"ZZZ__FnCalls!F59","v":"May 2014"},{"$f":"ZZZ__FnCalls!F60","v":"Jun 2014"},{"$f":"ZZZ__FnCalls!F61","v":"Jul 2014"},{"$f":"ZZZ__FnCalls!F62","v":"Aug 2014"},{"$f":"ZZZ__FnCalls!F63","v":"Sep 2014"},{"$f":"ZZZ__FnCalls!F64","v":"Oct 2014"},{"$f":"ZZZ__FnCalls!F65","v":"Nov 2014"},{"$f":"ZZZ__FnCalls!F66","v":"Dec 2014"},{"$f":"ZZZ__FnCalls!H55","v":"2014"},{"$f":"ZZZ__FnCalls!F67","v":"Jan 2015"},{"$f":"ZZZ__FnCalls!F68","v":"Feb 2015"},{"$f":"ZZZ__FnCalls!F69","v":"Mar 2015"},{"$f":"ZZZ__FnCalls!F70","v":"Apr 2015"},{"$f":"ZZZ__FnCalls!F71","v":"May 2015"},{"$f":"ZZZ__FnCalls!F72","v":"Jun 2015"},{"$f":"ZZZ__FnCalls!F73","v":"Jul 2015"},{"$f":"ZZZ__FnCalls!F74","v":"Aug 2015"},{"$f":"ZZZ__FnCalls!F75","v":"Sep 2015"},{"$f":"ZZZ__FnCalls!F76","v":"Oct 2015"},{"$f":"ZZZ__FnCalls!F77","v":"Nov 2015"},{"$f":"ZZZ__FnCalls!F78","v":"Dec 2015"},{"$f":"ZZZ__FnCalls!H67","v":"2015"},{"$f":"ZZZ__FnCalls!F79","v":"Jan 2016"},{"$f":"ZZZ__FnCalls!F80","v":"Feb 2016"},{"$f":"ZZZ__FnCalls!F81","v":"Mar 2016"},{"$f":"ZZZ__FnCalls!F82","v":"Apr 2016"},{"$f":"ZZZ__FnCalls!F83","v":"May 2016"},{"$f":"ZZZ__FnCalls!F84","v":"Jun 2016"},{"$f":"ZZZ__FnCalls!F85","v":"Jul 2016"},{"$f":"ZZZ__FnCalls!F86","v":"Aug 2016"},{"$f":"ZZZ__FnCalls!F87","v":"Sep 2016"},{"$f":"ZZZ__FnCalls!F88","v":"Oct 2016"},{"$f":"ZZZ__FnCalls!F89","v":"Nov 2016"},{"$f":"ZZZ__FnCalls!F90","v":"Dec 2016"},{"$f":"ZZZ__FnCalls!H79","v":"2016"},{"$f":"ZZZ__FnCalls!F91","v":"Jan 2017"},{"$f":"ZZZ__FnCalls!F92","v":"Feb 2017"},{"$f":"ZZZ__FnCalls!F93","v":"Mar 2017"},{"$f":"ZZZ__FnCalls!F94","v":"Apr 2017"},{"$f":"ZZZ__FnCalls!F95","v":"May 2017"},{"$f":"ZZZ__FnCalls!F96","v":"Jun 2017"},{"$f":"ZZZ__FnCalls!F97","v":"Jul 2017"},{"$f":"ZZZ__FnCalls!F98","v":"Aug 2017"},{"$f":"ZZZ__FnCalls!F99","v":"Sep 2017"},{"$f":"ZZZ__FnCalls!F100","v":"Oct 2017"},{"$f":"ZZZ__FnCalls!F101","v":"Nov 2017"},{"$f":"ZZZ__FnCalls!F102","v":"Dec 2017"},{"$f":"ZZZ__FnCalls!H91","v":"2017"},{"$f":"ZZZ__FnCalls!F103","v":"Jan 2018"},{"$f":"ZZZ__FnCalls!F104","v":"Feb 2018"},{"$f":"ZZZ__FnCalls!F105","v":"Mar 2018"},{"$f":"ZZZ__FnCalls!F106","v":"Apr 2018"},{"$f":"ZZZ__FnCalls!F107","v":"May 2018"},{"$f":"ZZZ__FnCalls!F108","v":"Jun 2018"},{"$f":"ZZZ__FnCalls!F109","v":"Jul 2018"},{"$f":"ZZZ__FnCalls!F110","v":"Aug 2018"},{"$f":"ZZZ__FnCalls!F111","v":"Sep 2018"},{"$f":"ZZZ__FnCalls!F112","v":"Oct 2018"},{"$f":"ZZZ__FnCalls!F113","v":"Nov 2018"},{"$f":"ZZZ__FnCalls!F114","v":"Dec 2018"},{"$f":"ZZZ__FnCalls!H103","v":"2018"},{"$f":"ZZZ__FnCalls!F115","v":"Jan 2019"},{"$f":"ZZZ__FnCalls!F116","v":"Feb 2019"},{"$f":"ZZZ__FnCalls!F117","v":"Mar 2019"},{"$f":"ZZZ__FnCalls!F118","v":"Apr 2019"},{"$f":"ZZZ__FnCalls!F119","v":"May 2019"},{"$f":"ZZZ__FnCalls!F120","v":"Jun 2019"},{"$f":"ZZZ__FnCalls!F121","v":"Jul 2019"},{"$f":"ZZZ__FnCalls!F122","v":"Aug 2019"},{"$f":"ZZZ__FnCalls!F123","v":"Sep 2019"},{"$f":"ZZZ__FnCalls!F124","v":"Oct 2019"},{"$f":"ZZZ__FnCalls!F125","v":"Nov 2019"},{"$f":"ZZZ__FnCalls!F126","v":"Dec 2019"},{"$f":"ZZZ__FnCalls!H115","v":"2019"},{"$f":"ZZZ__FnCalls!F127","v":"Jan 2020"},{"$f":"ZZZ__FnCalls!F128","v":"Feb 2020"},{"$f":"ZZZ__FnCalls!F129","v":"Mar 2020"},{"$f":"ZZZ__FnCalls!F130","v":"Apr 2020"},{"$f":"ZZZ__FnCalls!F131","v":"May 2020"},{"$f":"ZZZ__FnCalls!F132","v":"Jun 2020"},{"$f":"ZZZ__FnCalls!F133","v":"Jul 2020"},{"$f":"ZZZ__FnCalls!F134","v":"Aug 2020"},{"$f":"ZZZ__FnCalls!F135","v":"Sep 2020"},{"$f":"ZZZ__FnCalls!F136","v":"Oct 2020"},{"$f":"ZZZ__FnCalls!F137","v":"Nov 2020"},{"$f":"ZZZ__FnCalls!F138","v":"Dec 2020"},{"$f":"ZZZ__FnCalls!H127","v":"2020"}]
[{"$f":"Labels!B9","v":"Capital"},{"$f":"Inputs!B20*'(Other Computations)'!B8/(1/Inputs!B19/12+'(Other Computations)'!B144)","v":{"v":34645298.42192645,"d":"$34,645,298"}},{"$f":"B19+B21-B20","v":{"v":34645298.42192645,"d":"$34,645,298"}},{"v":34644805.73739387,"d":"$34,644,806"},{"v":34643955.30794609,"d":"$34,643,955"},{"v":34642681.52305896,"d":"$34,642,682"},{"v":34641139.83249677,"d":"$34,641,140"},{"v":34639279.9751628,"d":"$34,639,280"},{"v":34637161.88560859,"d":"$34,637,162"},{"v":34634689.337468535,"d":"$34,634,689"},{"v":34631949.91715913,"d":"$34,631,950"},{"v":34628828.89011245,"d":"$34,628,829"},{"v":34625423.135838136,"d":"$34,625,423"},{"$f":"M19","v":{"v":34625423.135838136,"d":"$34,625,423"}},{"$f":"M19+M21-M20","v":{"v":34621782.318126075,"d":"$34,621,782"}},{"$f":"O19+O21-O20","v":{"v":34617806.05478742,"d":"$34,617,806"}},{"v":34613569.78907031,"d":"$34,613,570"},{"v":34609035.778869264,"d":"$34,609,036"},{"v":34604317.73386414,"d":"$34,604,318"},{"v":34599388.05436687,"d":"$34,599,388"},{"v":34594206.70369679,"d":"$34,594,207"},{"v":34588762.32261429,"d":"$34,588,762"},{"v":34582960.59264858,"d":"$34,582,961"},{"v":34576879.0933197,"d":"$34,576,879"},{"v":34570601.81374257,"d":"$34,570,602"},{"v":34564118.09944621,"d":"$34,564,118"},{"$f":"Z19","v":{"v":34564118.09944621,"d":"$34,564,118"}},{"$f":"Z19+Z21-Z20","v":{"v":34557397.50945321,"d":"$34,557,398"}},{"$f":"AB19+AB21-AB20","v":{"v":34550364.37116708,"d":"$34,550,364"}},{"v":34543214.28737804,"d":"$34,543,214"},{"v":34535833.626316495,"d":"$34,535,834"},{"v":34528202.28528604,"d":"$34,528,202"},{"v":34520444.94131113,"d":"$34,520,445"},{"v":34512402.130486816,"d":"$34,512,402"},{"v":34504238.9259714,"d":"$34,504,239"},{"v":34495924.81305543,"d":"$34,495,925"},{"v":34487403.4153017,"d":"$34,487,403"},{"v":34478765.14991431,"d":"$34,478,765"},{"v":34469988.13174915,"d":"$34,469,988"},{"$f":"AM19","v":{"v":34469988.13174915,"d":"$34,469,988"}},{"$f":"AM19+AM21-AM20","v":{"v":34461039.65985797,"d":"$34,461,040"}},{"$f":"AO19+AO21-AO20","v":{"v":34451918.84963355,"d":"$34,451,919"}},{"v":34442716.985519715,"d":"$34,442,717"},{"v":34433449.4610358,"d":"$34,433,449"},{"v":34423959.5092742,"d":"$34,423,960"},{"v":34414325.19513758,"d":"$34,414,325"},{"v":34404618.13699534,"d":"$34,404,618"},{"v":34394759.60648176,"d":"$34,394,760"},{"v":34384726.484851144,"d":"$34,384,726"},{"v":34374604.2846961,"d":"$34,374,604"},{"v":34364311.28883039,"d":"$34,364,311"},{"v":34353983.2282268,"d":"$34,353,983"},{"$f":"AZ19","v":{"v":34353983.2282268,"d":"$34,353,983"}},{"$f":"AZ19+AZ21-AZ20","v":{"v":34343490.51845632,"d":"$34,343,491"}},{"$f":"BB19+BB21-BB20","v":{"v":34332807.0307613,"d":"$34,332,807"}},{"v":34322007.84153956,"d":"$34,322,008"},{"v":34311025.4093149,"d":"$34,311,025"},{"v":34300008.91087663,"d":"$34,300,009"},{"v":34288796.888727345,"d":"$34,288,797"},{"v":34277528.040568694,"d":"$34,277,528"},{"v":34266069.56439996,"d":"$34,266,070"},{"v":34254479.66325331,"d":"$34,254,480"},{"v":34242835.173518255,"d":"$34,242,835"},{"v":34231125.19485282,"d":"$34,231,125"},{"v":34219326.27868802,"d":"$34,219,326"},{"$f":"BM19","v":{"v":34219326.27868802,"d":"$34,219,326"}},{"$f":"BM19+BM21-BM20","v":{"v":34207509.989284925,"d":"$34,207,510"}},{"$f":"BO19+BO21-BO20","v":{"v":34195624.88814662,"d":"$34,195,625"}},{"v":34183675.277122185,"d":"$34,183,675"},{"v":34171692.60740383,"d":"$34,171,693"},{"v":34159593.38145861,"d":"$34,159,593"},{"v":34147445.92397375,"d":"$34,147,446"},{"v":34135291.12827101,"d":"$34,135,291"},{"v":34123063.64328139,"d":"$34,123,064"},{"v":34110756.03143622,"d":"$34,110,756"},{"v":34098347.35555489,"d":"$34,098,347"},{"v":34085921.009731814,"d":"$34,085,921"},{"v":34073377.93011575,"d":"$34,073,378"},{"$f":"BZ19","v":{"v":34073377.93011575,"d":"$34,073,378"}},{"$f":"BZ19+BZ21-BZ20","v":{"v":34060870.488807954,"d":"$34,060,870"}},{"$f":"CB19+CB21-CB20","v":{"v":34048298.03330385,"d":"$34,048,298"}},{"v":34035716.490917586,"d":"$34,035,716"},{"v":34023079.88226441,"d":"$34,023,080"},{"v":34010409.735237114,"d":"$34,010,410"},{"v":33997709.676087424,"d":"$33,997,710"},{"v":33984973.98418045,"d":"$33,984,974"},{"v":33972250.861959234,"d":"$33,972,251"},{"v":33959547.8663448,"d":"$33,959,548"},{"v":33946886.75296281,"d":"$33,946,887"},{"v":33934176.52421605,"d":"$33,934,177"},{"v":33921467.2839774,"d":"$33,921,467"},{"$f":"CM19","v":{"v":33921467.2839774,"d":"$33,921,467"}},{"$f":"CM19+CM21-CM20","v":{"v":33908783.63150932,"d":"$33,908,784"}},{"$f":"CO19+CO21-CO20","v":{"v":33896152.42378318,"d":"$33,896,152"}},{"v":33883416.86380245,"d":"$33,883,417"},{"v":33870675.52050494,"d":"$33,870,676"},{"v":33857874.11224262,"d":"$33,857,874"},{"v":33845058.16592929,"d":"$33,845,058"},{"v":33832200.70867124,"d":"$33,832,201"},{"v":33819324.61035034,"d":"$33,819,325"},{"v":33806453.80519012,"d":"$33,806,454"},{"v":33793557.91774352,"d":"$33,793,558"},{"v":33780576.23279828,"d":"$33,780,576"},{"v":33767645.925928034,"d":"$33,767,646"},{"$f":"CZ19","v":{"v":33767645.925928034,"d":"$33,767,646"}},{"$f":"CZ19+CZ21-CZ20","v":{"v":33754644.15355775,"d":"$33,754,644"}},{"$f":"DB19+DB21-DB20","v":{"v":33741668.95355412,"d":"$33,741,669"}},{"v":33728601.577021904,"d":"$33,728,602"},{"v":33715401.91468131,"d":"$33,715,402"},{"v":33702171.70200343,"d":"$33,702,172"},{"v":33688943.580727346,"d":"$33,688,944"},{"v":33675704.33342712,"d":"$33,675,704"},{"v":33662477.102640994,"d":"$33,662,477"},{"v":33649251.681412205,"d":"$33,649,252"},{"v":33636008.76024192,"d":"$33,636,009"},{"v":33622725.43338261,"d":"$33,622,725"},{"v":33609444.790164925,"d":"$33,609,445"},{"$f":"DM19","v":{"v":33609444.790164925,"d":"$33,609,445"}},{"$f":"DM19+DM21-DM20","v":{"v":33596184.9343247,"d":"$33,596,185"}},{"$f":"DO19+DO21-DO20","v":{"v":33582925.01547238,"d":"$33,582,925"}},{"v":33569677.39326631,"d":"$33,569,677"},{"v":33556448.26883229,"d":"$33,556,448"},{"v":33543312.872004617,"d":"$33,543,313"},{"v":33530058.103309665,"d":"$33,530,058"},{"v":33516754.616077,"d":"$33,516,755"},{"v":33503482.738519587,"d":"$33,503,483"},{"v":33490185.161475606,"d":"$33,490,185"},{"v":33476920.51306675,"d":"$33,476,921"},{"v":33463712.33504556,"d":"$33,463,712"},{"v":33450474.84799783,"d":"$33,450,475"},{"$f":"DZ19","v":{"v":33450474.84799783,"d":"$33,450,475"}},{"$f":"DZ19+DZ21-DZ20","v":{"v":33437189.69472298,"d":"$33,437,190"}},{"$f":"EB19+EB21-EB20","v":{"v":33423825.94404833,"d":"$33,423,826"}},{"v":33410447.839999195,"d":"$33,410,448"},{"v":33397032.843952887,"d":"$33,397,033"},{"v":33383626.09672304,"d":"$33,383,626"},{"v":33370227.548256967,"d":"$33,370,228"},{"v":33356811.75237281,"d":"$33,356,812"},{"v":33343380.016601115,"d":"$33,343,380"},{"v":33329989.297177013,"d":"$33,329,989"},{"v":33316510.931023184,"d":"$33,316,511"},{"v":33302925.066138573,"d":"$33,302,925"},{"v":33289411.203910477,"d":"$33,289,411"},{"$f":"EM19","v":{"v":33289411.203910477,"d":"$33,289,411"}}]
[{"$f":"Labels!B11","v":"Capital Depreciation"},{"$f":"B22/Inputs!B19/12","v":{"v":206222.0144162289,"d":"$206,222"}},{"$f":"B19/Inputs!B19/12","v":{"v":206222.0144162289,"d":"$206,222"}},{"$f":"C19/Inputs!B19/12","v":{"v":206222.0144162289,"d":"$206,222"}},{"$f":"D19/Inputs!B19/12","v":{"v":206219.0817702016,"d":"$206,219"}},{"$f":"E19/Inputs!B19/12","v":{"v":206214.0196901553,"d":"$206,214"}},{"$f":"F19/Inputs!B19/12","v":{"v":206206.43763725573,"d":"$206,206"}},{"$f":"G19/Inputs!B19/12","v":{"v":206197.26090771888,"d":"$206,197"}},{"$f":"H19/Inputs!B19/12","v":{"v":206186.19032834997,"d":"$206,186"}},{"$f":"I19/Inputs!B19/12","v":{"v":206173.58265243212,"d":"$206,174"}},{"$f":"J19/Inputs!B19/12","v":{"v":206158.86510397936,"d":"$206,159"}},{"$f":"K19/Inputs!B19/12","v":{"v":206142.55903070912,"d":"$206,143"}},{"$f":"L19/Inputs!B19/12","v":{"v":206123.9814887646,"d":"$206,124"}},{"$f":"SUM(B20:M20)","v":{"v":2474288.0218582535,"d":"$2,474,288"}},{"$f":"M19/Inputs!B19/12","v":{"v":206103.70914189366,"d":"$206,104"}},{"$f":"O19/Inputs!B19/12","v":{"v":206082.03760789332,"d":"$206,082"}},{"$f":"P19/Inputs!B19/12","v":{"v":206058.36937373466,"d":"$206,058"}},{"$f":"Q19/Inputs!B19/12","v":{"v":206033.15350637087,"d":"$206,033"}},{"$f":"R19/Inputs!B19/12","v":{"v":206006.16535041228,"d":"$206,006"}},{"$f":"S19/Inputs!B19/12","v":{"v":205978.0817491913,"d":"$205,978"}},{"$f":"T19/Inputs!B19/12","v":{"v":205948.73841885044,"d":"$205,949"}},{"$f":"U19/Inputs!B19/12","v":{"v":205917.8970458142,"d":"$205,918"}},{"$f":"V19/Inputs!B19/12","v":{"v":205885.49001556126,"d":"$205,885"}},{"$f":"W19/Inputs!B19/12","v":{"v":205850.9559086225,"d":"$205,851"}},{"$f":"X19/Inputs!B19/12","v":{"v":205814.75650785535,"d":"$205,815"}},{"$f":"Y19/Inputs!B19/12","v":{"v":205777.3917484677,"d":"$205,777"}},{"$f":"SUM(O20:Z20)","v":{"v":2471456.7463746676,"d":"$2,471,457"}},{"$f":"Z19/Inputs!B19/12","v":{"v":205738.79821098933,"d":"$205,739"}},{"$f":"AB19/Inputs!B19/12","v":{"v":205698.79469912624,"d":"$205,699"}},{"$f":"AC19/Inputs!B19/12","v":{"v":205656.9307807564,"d":"$205,657"}},{"$f":"AD19/Inputs!B19/12","v":{"v":205614.37075820263,"d":"$205,614"}},{"$f":"AE19/Inputs!B19/12","v":{"v":205570.43825188393,"d":"$205,570"}},{"$f":"AF19/Inputs!B19/12","v":{"v":205525.0136028931,"d":"$205,525"}},{"$f":"AG19/Inputs!B19/12","v":{"v":205478.83893637577,"d":"$205,479"}},{"$f":"AH19/Inputs!B19/12","v":{"v":205430.9650624215,"d":"$205,431"}},{"$f":"AI19/Inputs!B19/12","v":{"v":205382.3745593536,"d":"$205,382"}},{"$f":"AJ19/Inputs!B19/12","v":{"v":205332.8857919966,"d":"$205,333"}},{"$f":"AK19/Inputs!B19/12","v":{"v":205282.16318631967,"d":"$205,282"}},{"$f":"AL19/Inputs!B19/12","v":{"v":205230.74493996613,"d":"$205,231"}},{"$f":"SUM(AB20:AM20)","v":{"v":2465942.318780285,"d":"$2,465,942"}},{"$f":"AM19/Inputs!B19/12","v":{"v":205178.50078422113,"d":"$205,179"}},{"$f":"AO19/Inputs!B19/12","v":{"v":205125.2360705832,"d":"$205,125"}},{"$f":"AP19/Inputs!B19/12","v":{"v":205070.94553353303,"d":"$205,071"}},{"$f":"AQ19/Inputs!B19/12","v":{"v":205016.17253285545,"d":"$205,016"}},{"$f":"AR19/Inputs!B19/12","v":{"v":204961.0086966417,"d":"$204,961"}},{"$f":"AS19/Inputs!B19/12","v":{"v":204904.5208885369,"d":"$204,905"}},{"$f":"AT19/Inputs!B19/12","v":{"v":204847.17378058087,"d":"$204,847"}},{"$f":"AU19/Inputs!B19/12","v":{"v":204789.3936725913,"d":"$204,789"}},{"$f":"AV19/Inputs!B19/12","v":{"v":204730.71194334383,"d":"$204,731"}},{"$f":"AW19/Inputs!B19/12","v":{"v":204670.99098125682,"d":"$204,671"}},{"$f":"AX19/Inputs!B19/12","v":{"v":204610.73978985776,"d":"$204,611"}},{"$f":"AY19/Inputs!B19/12","v":{"v":204549.47195732375,"d":"$204,549"}},{"$f":"SUM(AO20:AZ20)","v":{"v":2458454.866631326,"d":"$2,458,455"}},{"$f":"AZ19/Inputs!B19/12","v":{"v":204487.99540611194,"d":"$204,488"}},{"$f":"BB19/Inputs!B19/12","v":{"v":204425.53880033523,"d":"$204,426"}},{"$f":"BC19/Inputs!B19/12","v":{"v":204361.94661167442,"d":"$204,362"}},{"$f":"BD19/Inputs!B19/12","v":{"v":204297.66572344978,"d":"$204,298"}},{"$f":"BE19/Inputs!B19/12","v":{"v":204232.2941030649,"d":"$204,232"}},{"$f":"BF19/Inputs!B19/12","v":{"v":204166.719707599,"d":"$204,167"}},{"$f":"BG19/Inputs!B19/12","v":{"v":204099.9814805199,"d":"$204,100"}},{"$f":"BH19/Inputs!B19/12","v":{"v":204032.90500338507,"d":"$204,033"}},{"$f":"BI19/Inputs!B19/12","v":{"v":203964.699788095,"d":"$203,965"}},{"$f":"BJ19/Inputs!B19/12","v":{"v":203895.7122812697,"d":"$203,896"}},{"$f":"BK19/Inputs!B19/12","v":{"v":203826.39984237056,"d":"$203,826"}},{"$f":"BL19/Inputs!B19/12","v":{"v":203756.69758840965,"d":"$203,757"}},{"$f":"SUM(BB20:BM20)","v":{"v":2449548.5563362855,"d":"$2,449,549"}},{"$f":"BM19/Inputs!B19/12","v":{"v":203686.46594457154,"d":"$203,686"}},{"$f":"BO19/Inputs!B19/12","v":{"v":203616.13088860075,"d":"$203,616"}},{"$f":"BP19/Inputs!B19/12","v":{"v":203545.38623896797,"d":"$203,545"}},{"$f":"BQ19/Inputs!B19/12","v":{"v":203474.25760191775,"d":"$203,474"}},{"$f":"BR19/Inputs!B19/12","v":{"v":203402.93218692756,"d":"$203,403"}},{"$f":"BS19/Inputs!B19/12","v":{"v":203330.91298487267,"d":"$203,331"}},{"$f":"BT19/Inputs!B19/12","v":{"v":203258.60669031992,"d":"$203,259"}},{"$f":"BU19/Inputs!B19/12","v":{"v":203186.2567158989,"d":"$203,186"}},{"$f":"BV19/Inputs!B19/12","v":{"v":203113.47406715117,"d":"$203,113"}},{"$f":"BW19/Inputs!B19/12","v":{"v":203040.21447283463,"d":"$203,040"}},{"$f":"BX19/Inputs!B19/12","v":{"v":202966.35330687437,"d":"$202,966"}},{"$f":"BY19/Inputs!B19/12","v":{"v":202892.38696268937,"d":"$202,892"}},{"$f":"SUM(BO20:BZ20)","v":{"v":2439513.3780616266,"d":"$2,439,513"}},{"$f":"BZ19/Inputs!B19/12","v":{"v":202817.72577449854,"d":"$202,818"}},{"$f":"CB19/Inputs!B19/12","v":{"v":202743.27671909495,"d":"$202,743"}},{"$f":"CC19/Inputs!B19/12","v":{"v":202668.44067442766,"d":"$202,668"}},{"$f":"CD19/Inputs!B19/12","v":{"v":202593.5505411761,"d":"$202,594"}},{"$f":"CE19/Inputs!B19/12","v":{"v":202518.33263252626,"d":"$202,518"}},{"$f":"CF19/Inputs!B19/12","v":{"v":202442.91509069712,"d":"$202,443"}},{"$f":"CG19/Inputs!B19/12","v":{"v":202367.3195005204,"d":"$202,367"}},{"$f":"CH19/Inputs!B19/12","v":{"v":202291.51181059793,"d":"$202,292"}},{"$f":"CI19/Inputs!B19/12","v":{"v":202215.77894023352,"d":"$202,216"}},{"$f":"CJ19/Inputs!B19/12","v":{"v":202140.1658711,"d":"$202,140"}},{"$f":"CK19/Inputs!B19/12","v":{"v":202064.80210096913,"d":"$202,065"}},{"$f":"CL19/Inputs!B19/12","v":{"v":201989.1459774765,"d":"$201,989"}},{"$f":"SUM(CB20:CM20)","v":{"v":2428852.9656333183,"d":"$2,428,853"}},{"$f":"CM19/Inputs!B19/12","v":{"v":201913.49573796068,"d":"$201,913"}},{"$f":"CO19/Inputs!B19/12","v":{"v":201837.9978066031,"d":"$201,838"}},{"$f":"CP19/Inputs!B19/12","v":{"v":201762.81204632847,"d":"$201,763"}},{"$f":"CQ19/Inputs!B19/12","v":{"v":201687.00514168126,"d":"$201,687"}},{"$f":"CR19/Inputs!B19/12","v":{"v":201611.16381252938,"d":"$201,611"}},{"$f":"CS19/Inputs!B19/12","v":{"v":201534.9649538251,"d":"$201,535"}},{"$f":"CT19/Inputs!B19/12","v":{"v":201458.6795591029,"d":"$201,459"}},{"$f":"CU19/Inputs!B19/12","v":{"v":201382.14707542406,"d":"$201,382"}},{"$f":"CV19/Inputs!B19/12","v":{"v":201305.50363303776,"d":"$201,306"}},{"$f":"CW19/Inputs!B19/12","v":{"v":201228.89169756023,"d":"$201,229"}},{"$f":"CX19/Inputs!B19/12","v":{"v":201152.13046275906,"d":"$201,152"}},{"$f":"CY19/Inputs!B19/12","v":{"v":201074.8585285612,"d":"$201,075"}},{"$f":"SUM(CO20:CZ20)","v":{"v":2417949.6504553733,"d":"$2,417,950"}},{"$f":"CZ19/Inputs!B19/12","v":{"v":200997.8924162383,"d":"$200,998"}},{"$f":"DB19/Inputs!B19/12","v":{"v":200920.5009140342,"d":"$200,921"}},{"$f":"DC19/Inputs!B19/12","v":{"v":200843.2675806793,"d":"$200,843"}},{"$f":"DD19/Inputs!B19/12","v":{"v":200765.48557751134,"d":"$200,765"}},{"$f":"DE19/Inputs!B19/12","v":{"v":200686.91615881733,"d":"$200,687"}},{"$f":"DF19/Inputs!B19/12","v":{"v":200608.16489287754,"d":"$200,608"}},{"$f":"DG19/Inputs!B19/12","v":{"v":200529.42607575803,"d":"$200,529"}},{"$f":"DH19/Inputs!B19/12","v":{"v":200450.62103230425,"d":"$200,451"}},{"$f":"DI19/Inputs!B19/12","v":{"v":200371.8875157202,"d":"$200,372"}},{"$f":"DJ19/Inputs!B19/12","v":{"v":200293.16477031074,"d":"$200,293"}},{"$f":"DK19/Inputs!B19/12","v":{"v":200214.33785858285,"d":"$200,214"}},{"$f":"DL19/Inputs!B19/12","v":{"v":200135.27043680125,"d":"$200,135"}},{"$f":"SUM(DB20:DM20)","v":{"v":2406816.935229635,"d":"$2,406,817"}},{"$f":"DM19/Inputs!B19/12","v":{"v":200056.21898907694,"d":"$200,056"}},{"$f":"DO19/Inputs!B19/12","v":{"v":199977.29127574223,"d":"$199,977"}},{"$f":"DP19/Inputs!B19/12","v":{"v":199898.36318733564,"d":"$199,898"}},{"$f":"DQ19/Inputs!B19/12","v":{"v":199819.50829325186,"d":"$199,820"}},{"$f":"DR19/Inputs!B19/12","v":{"v":199740.76350495408,"d":"$199,741"}},{"$f":"DS19/Inputs!B19/12","v":{"v":199662.57661907512,"d":"$199,663"}},{"$f":"DT19/Inputs!B19/12","v":{"v":199583.67918636705,"d":"$199,584"}},{"$f":"DU19/Inputs!B19/12","v":{"v":199504.4917623631,"d":"$199,504"}},{"$f":"DV19/Inputs!B19/12","v":{"v":199425.49249118802,"d":"$199,425"}},{"$f":"DW19/Inputs!B19/12","v":{"v":199346.3402468786,"d":"$199,346"}},{"$f":"DX19/Inputs!B19/12","v":{"v":199267.38400634972,"d":"$199,267"}},{"$f":"DY19/Inputs!B19/12","v":{"v":199188.76389908072,"d":"$199,189"}},{"$f":"SUM(DO20:DZ20)","v":{"v":2395470.8734616633,"d":"$2,395,471"}},{"$f":"DZ19/Inputs!B19/12","v":{"v":199109.96933332042,"d":"$199,110"}},{"$f":"EB19/Inputs!B19/12","v":{"v":199030.89104001774,"d":"$199,031"}},{"$f":"EC19/Inputs!B19/12","v":{"v":198951.34490504957,"d":"$198,951"}},{"$f":"ED19/Inputs!B19/12","v":{"v":198871.71333332852,"d":"$198,872"}},{"$f":"EE19/Inputs!B19/12","v":{"v":198791.8621663862,"d":"$198,792"}},{"$f":"EF19/Inputs!B19/12","v":{"v":198712.0600995419,"d":"$198,712"}},{"$f":"EG19/Inputs!B19/12","v":{"v":198632.30683486292,"d":"$198,632"}},{"$f":"EH19/Inputs!B19/12","v":{"v":198552.45090698102,"d":"$198,552"}},{"$f":"EI19/Inputs!B19/12","v":{"v":198472.50009881615,"d":"$198,473"}},{"$f":"EJ19/Inputs!B19/12","v":{"v":198392.79343557745,"d":"$198,393"}},{"$f":"EK19/Inputs!B19/12","v":{"v":198312.56506561418,"d":"$198,313"}},{"$f":"EL19/Inputs!B19/12","v":{"v":198231.6968222534,"d":"$198,232"}},{"$f":"SUM(EB20:EM20)","v":{"v":2384062.15404175,"d":"$2,384,062"}}]
[{"$f":"Labels!B19","v":"Capital Investment"},{"$f":"B20+(B22-B19)/Inputs!B22/12","v":{"v":206222.0144162289,"d":"$206,222"}},{"$f":"C20+(C22-C19)/Inputs!B22/12","v":{"v":205729.32988364281,"d":"$205,729"}},{"$f":"D20+(D22-D19)/Inputs!B22/12","v":{"v":205371.5849684507,"d":"$205,372"}},{"$f":"E20+(E22-E19)/Inputs!B22/12","v":{"v":204945.2968830707,"d":"$204,945"}},{"$f":"F20+(F22-F19)/Inputs!B22/12","v":{"v":204672.3291279642,"d":"$204,672"}},{"$f":"G20+(G22-G19)/Inputs!B22/12","v":{"v":204346.58030328475,"d":"$204,347"}},{"$f":"H20+(H22-H19)/Inputs!B22/12","v":{"v":204079.17135351335,"d":"$204,079"}},{"$f":"I20+(I22-I19)/Inputs!B22/12","v":{"v":203713.6421882956,"d":"$203,714"}},{"$f":"J20+(J22-J19)/Inputs!B22/12","v":{"v":203434.16234303298,"d":"$203,434"}},{"$f":"K20+(K22-K19)/Inputs!B22/12","v":{"v":203037.8380573051,"d":"$203,038"}},{"$f":"L20+(L22-L19)/Inputs!B22/12","v":{"v":202736.80475639444,"d":"$202,737"}},{"$f":"M20+(M22-M19)/Inputs!B22/12","v":{"v":202483.1637767037,"d":"$202,483"}},{"$f":"SUM(B21:M21)","v":{"v":2450771.9180578873,"d":"$2,450,772"}},{"$f":"O20+(O22-O19)/Inputs!B22/12","v":{"v":202127.44580324154,"d":"$202,127"}},{"$f":"P20+(P22-P19)/Inputs!B22/12","v":{"v":201845.7718907816,"d":"$201,846"}},{"$f":"Q20+(Q22-Q19)/Inputs!B22/12","v":{"v":201524.35917268862,"d":"$201,524"}},{"$f":"R20+(R22-R19)/Inputs!B22/12","v":{"v":201315.10850125054,"d":"$201,315"}},{"$f":"S20+(S22-S19)/Inputs!B22/12","v":{"v":201076.48585314237,"d":"$201,076"}},{"$f":"T20+(T22-T19)/Inputs!B22/12","v":{"v":200796.73107910613,"d":"$200,797"}},{"$f":"U20+(U22-U19)/Inputs!B22/12","v":{"v":200504.35733634877,"d":"$200,504"}},{"$f":"V20+(V22-V19)/Inputs!B22/12","v":{"v":200116.1670801038,"d":"$200,116"}},{"$f":"W20+(W22-W19)/Inputs!B22/12","v":{"v":199803.99068667562,"d":"$199,804"}},{"$f":"X20+(X22-X19)/Inputs!B22/12","v":{"v":199573.67633148792,"d":"$199,574"}},{"$f":"Y20+(Y22-Y19)/Inputs!B22/12","v":{"v":199331.04221149825,"d":"$199,331"}},{"$f":"Z20+(Z22-Z19)/Inputs!B22/12","v":{"v":199056.80175546848,"d":"$199,057"}},{"$f":"SUM(O21:Z21)","v":{"v":2407071.9377017934,"d":"$2,407,072"}},{"$f":"AB20+(AB22-AB19)/Inputs!B22/12","v":{"v":198705.65992485636,"d":"$198,706"}},{"$f":"AC20+(AC22-AC19)/Inputs!B22/12","v":{"v":198548.71091008664,"d":"$198,549"}},{"$f":"AD20+(AD22-AD19)/Inputs!B22/12","v":{"v":198276.26971920292,"d":"$198,276"}},{"$f":"AE20+(AE22-AE19)/Inputs!B22/12","v":{"v":197983.02972775022,"d":"$197,983"}},{"$f":"AF20+(AF22-AF19)/Inputs!B22/12","v":{"v":197813.0942769687,"d":"$197,813"}},{"$f":"AG20+(AG22-AG19)/Inputs!B22/12","v":{"v":197482.20277857958,"d":"$197,482"}},{"$f":"AH20+(AH22-AH19)/Inputs!B22/12","v":{"v":197315.63442096394,"d":"$197,316"}},{"$f":"AI20+(AI22-AI19)/Inputs!B22/12","v":{"v":197116.85214645174,"d":"$197,117"}},{"$f":"AJ20+(AJ22-AJ19)/Inputs!B22/12","v":{"v":196860.9768056234,"d":"$196,861"}},{"$f":"AK20+(AK22-AK19)/Inputs!B22/12","v":{"v":196694.62040460162,"d":"$196,695"}},{"$f":"AL20+(AL22-AL19)/Inputs!B22/12","v":{"v":196505.14502116508,"d":"$196,505"}},{"$f":"AM20+(AM22-AM19)/Inputs!B22/12","v":{"v":196282.273048785,"d":"$196,282"}},{"$f":"SUM(AB21:AM21)","v":{"v":2369584.469185035,"d":"$2,369,584"}},{"$f":"AO20+(AO22-AO19)/Inputs!B22/12","v":{"v":196057.69055979836,"d":"$196,058"}},{"$f":"AP20+(AP22-AP19)/Inputs!B22/12","v":{"v":195923.37195674033,"d":"$195,923"}},{"$f":"AQ20+(AQ22-AQ19)/Inputs!B22/12","v":{"v":195803.42104962154,"d":"$195,803"}},{"$f":"AR20+(AR22-AR19)/Inputs!B22/12","v":{"v":195526.22077125663,"d":"$195,526"}},{"$f":"AS20+(AS22-AS19)/Inputs!B22/12","v":{"v":195326.69456002253,"d":"$195,327"}},{"$f":"AT20+(AT22-AT19)/Inputs!B22/12","v":{"v":195197.46274629002,"d":"$195,197"}},{"$f":"AU20+(AU22-AU19)/Inputs!B22/12","v":{"v":194988.6432670041,"d":"$194,989"}},{"$f":"AV20+(AV22-AV19)/Inputs!B22/12","v":{"v":194756.27204197357,"d":"$194,756"}},{"$f":"AW20+(AW22-AW19)/Inputs!B22/12","v":{"v":194608.51178830172,"d":"$194,609"}},{"$f":"AX20+(AX22-AX19)/Inputs!B22/12","v":{"v":194377.99511555128,"d":"$194,378"}},{"$f":"AY20+(AY22-AY19)/Inputs!B22/12","v":{"v":194282.67918626955,"d":"$194,283"}},{"$f":"AZ20+(AZ22-AZ19)/Inputs!B22/12","v":{"v":194056.7621868388,"d":"$194,057"}},{"$f":"SUM(AO21:AZ21)","v":{"v":2340905.7252296684,"d":"$2,340,906"}},{"$f":"BB20+(BB22-BB19)/Inputs!B22/12","v":{"v":193804.50771110095,"d":"$193,805"}},{"$f":"BC20+(BC22-BC19)/Inputs!B22/12","v":{"v":193626.34957859546,"d":"$193,626"}},{"$f":"BD20+(BD22-BD19)/Inputs!B22/12","v":{"v":193379.51438700876,"d":"$193,380"}},{"$f":"BE20+(BE22-BE19)/Inputs!B22/12","v":{"v":193281.1672851784,"d":"$193,281"}},{"$f":"BF20+(BF22-BF19)/Inputs!B22/12","v":{"v":193020.27195378,"d":"$193,020"}},{"$f":"BG20+(BG22-BG19)/Inputs!B22/12","v":{"v":192897.87154894703,"d":"$192,898"}},{"$f":"BH20+(BH22-BH19)/Inputs!B22/12","v":{"v":192641.50531178204,"d":"$192,642"}},{"$f":"BI20+(BI22-BI19)/Inputs!B22/12","v":{"v":192443.0038567362,"d":"$192,443"}},{"$f":"BJ20+(BJ22-BJ19)/Inputs!B22/12","v":{"v":192320.21005304094,"d":"$192,320"}},{"$f":"BK20+(BK22-BK19)/Inputs!B22/12","v":{"v":192185.73361583627,"d":"$192,186"}},{"$f":"BL20+(BL22-BL19)/Inputs!B22/12","v":{"v":192027.48367757667,"d":"$192,027"}},{"$f":"BM20+(BM22-BM19)/Inputs!B22/12","v":{"v":191940.40818531276,"d":"$191,940"}},{"$f":"SUM(BB21:BM21)","v":{"v":2313568.027164895,"d":"$2,313,568"}},{"$f":"BO20+(BO22-BO19)/Inputs!B22/12","v":{"v":191801.36480626144,"d":"$191,801"}},{"$f":"BP20+(BP22-BP19)/Inputs!B22/12","v":{"v":191666.51986417425,"d":"$191,667"}},{"$f":"BQ20+(BQ22-BQ19)/Inputs!B22/12","v":{"v":191562.71652061158,"d":"$191,563"}},{"$f":"BR20+(BR22-BR19)/Inputs!B22/12","v":{"v":191375.03165669608,"d":"$191,375"}},{"$f":"BS20+(BS22-BS19)/Inputs!B22/12","v":{"v":191255.4747020614,"d":"$191,255"}},{"$f":"BT20+(BT22-BT19)/Inputs!B22/12","v":{"v":191176.11728213585,"d":"$191,176"}},{"$f":"BU20+(BU22-BU19)/Inputs!B22/12","v":{"v":191031.12170069898,"d":"$191,031"}},{"$f":"BV20+(BV22-BV19)/Inputs!B22/12","v":{"v":190878.64487073073,"d":"$190,879"}},{"$f":"BW20+(BW22-BW19)/Inputs!B22/12","v":{"v":190704.79818582642,"d":"$190,705"}},{"$f":"BX20+(BX22-BX19)/Inputs!B22/12","v":{"v":190613.8686497561,"d":"$190,614"}},{"$f":"BY20+(BY22-BY19)/Inputs!B22/12","v":{"v":190423.27369081348,"d":"$190,423"}},{"$f":"BZ20+(BZ22-BZ19)/Inputs!B22/12","v":{"v":190384.94565489114,"d":"$190,385"}},{"$f":"SUM(BO21:BZ21)","v":{"v":2292873.8775846576,"d":"$2,292,874"}},{"$f":"CB20+(CB22-CB19)/Inputs!B22/12","v":{"v":190245.27027039404,"d":"$190,245"}},{"$f":"CC20+(CC22-CC19)/Inputs!B22/12","v":{"v":190161.7343328334,"d":"$190,162"}},{"$f":"CD20+(CD22-CD19)/Inputs!B22/12","v":{"v":190031.8320212513,"d":"$190,032"}},{"$f":"CE20+(CE22-CE19)/Inputs!B22/12","v":{"v":189923.4035138769,"d":"$189,923"}},{"$f":"CF20+(CF22-CF19)/Inputs!B22/12","v":{"v":189818.2734828335,"d":"$189,818"}},{"$f":"CG20+(CG22-CG19)/Inputs!B22/12","v":{"v":189707.22318372352,"d":"$189,707"}},{"$f":"CH20+(CH22-CH19)/Inputs!B22/12","v":{"v":189644.19727930496,"d":"$189,644"}},{"$f":"CI20+(CI22-CI19)/Inputs!B22/12","v":{"v":189588.51619617204,"d":"$189,589"}},{"$f":"CJ20+(CJ22-CJ19)/Inputs!B22/12","v":{"v":189554.66555823875,"d":"$189,555"}},{"$f":"CK20+(CK22-CK19)/Inputs!B22/12","v":{"v":189429.93712433346,"d":"$189,430"}},{"$f":"CL20+(CL22-CL19)/Inputs!B22/12","v":{"v":189355.56186231718,"d":"$189,356"}},{"$f":"CM20+(CM22-CM19)/Inputs!B22/12","v":{"v":189305.49350939918,"d":"$189,305"}},{"$f":"SUM(CB21:CM21)","v":{"v":2276766.108334678,"d":"$2,276,766"}},{"$f":"CO20+(CO22-CO19)/Inputs!B22/12","v":{"v":189282.288011824,"d":"$189,282"}},{"$f":"CP20+(CP22-CP19)/Inputs!B22/12","v":{"v":189102.43782586852,"d":"$189,102"}},{"$f":"CQ20+(CQ22-CQ19)/Inputs!B22/12","v":{"v":189021.4687488162,"d":"$189,021"}},{"$f":"CR20+(CR22-CR19)/Inputs!B22/12","v":{"v":188885.5968793638,"d":"$188,886"}},{"$f":"CS20+(CS22-CS19)/Inputs!B22/12","v":{"v":188795.21749920552,"d":"$188,795"}},{"$f":"CT20+(CT22-CT19)/Inputs!B22/12","v":{"v":188677.5076957813,"d":"$188,678"}},{"$f":"CU20+(CU22-CU19)/Inputs!B22/12","v":{"v":188582.58123819943,"d":"$188,583"}},{"$f":"CV20+(CV22-CV19)/Inputs!B22/12","v":{"v":188511.3419152017,"d":"$188,511"}},{"$f":"CW20+(CW22-CW19)/Inputs!B22/12","v":{"v":188409.6161864334,"d":"$188,410"}},{"$f":"CX20+(CX22-CX19)/Inputs!B22/12","v":{"v":188247.20675232168,"d":"$188,247"}},{"$f":"CY20+(CY22-CY19)/Inputs!B22/12","v":{"v":188221.82359251202,"d":"$188,222"}},{"$f":"CZ20+(CZ22-CZ19)/Inputs!B22/12","v":{"v":188073.0861582745,"d":"$188,073"}},{"$f":"SUM(CO21:CZ21)","v":{"v":2263810.172503802,"d":"$2,263,810"}},{"$f":"DB20+(DB22-DB19)/Inputs!B22/12","v":{"v":188022.69241261794,"d":"$188,023"}},{"$f":"DC20+(DC22-DC19)/Inputs!B22/12","v":{"v":187853.12438181753,"d":"$187,853"}},{"$f":"DD20+(DD22-DD19)/Inputs!B22/12","v":{"v":187643.60524008484,"d":"$187,644"}},{"$f":"DE20+(DE22-DE19)/Inputs!B22/12","v":{"v":187535.27289963103,"d":"$187,535"}},{"$f":"DF20+(DF22-DF19)/Inputs!B22/12","v":{"v":187458.79488273972,"d":"$187,459"}},{"$f":"DG20+(DG22-DG19)/Inputs!B22/12","v":{"v":187368.91759264178,"d":"$187,369"}},{"$f":"DH20+(DH22-DH19)/Inputs!B22/12","v":{"v":187302.19528963213,"d":"$187,302"}},{"$f":"DI20+(DI22-DI19)/Inputs!B22/12","v":{"v":187225.19980351545,"d":"$187,225"}},{"$f":"DJ20+(DJ22-DJ19)/Inputs!B22/12","v":{"v":187128.96634544022,"d":"$187,129"}},{"$f":"DK20+(DK22-DK19)/Inputs!B22/12","v":{"v":187009.83791100027,"d":"$187,010"}},{"$f":"DL20+(DL22-DL19)/Inputs!B22/12","v":{"v":186933.6946408939,"d":"$186,934"}},{"$f":"DM20+(DM22-DM19)/Inputs!B22/12","v":{"v":186875.41459657202,"d":"$186,875"}},{"$f":"SUM(DB21:DM21)","v":{"v":2248357.7159965867,"d":"$2,248,358"}},{"$f":"DO20+(DO22-DO19)/Inputs!B22/12","v":{"v":186796.30013675886,"d":"$186,796"}},{"$f":"DP20+(DP22-DP19)/Inputs!B22/12","v":{"v":186729.66906966918,"d":"$186,730"}},{"$f":"DQ20+(DQ22-DQ19)/Inputs!B22/12","v":{"v":186669.23875331206,"d":"$186,669"}},{"$f":"DR20+(DR22-DR19)/Inputs!B22/12","v":{"v":186684.11146558018,"d":"$186,684"}},{"$f":"DS20+(DS22-DS19)/Inputs!B22/12","v":{"v":186485.99481000454,"d":"$186,486"}},{"$f":"DT20+(DT22-DT19)/Inputs!B22/12","v":{"v":186359.08938640897,"d":"$186,359"}},{"$f":"DU20+(DU22-DU19)/Inputs!B22/12","v":{"v":186311.80162895174,"d":"$186,312"}},{"$f":"DV20+(DV22-DV19)/Inputs!B22/12","v":{"v":186206.914718385,"d":"$186,207"}},{"$f":"DW20+(DW22-DW19)/Inputs!B22/12","v":{"v":186160.8440823359,"d":"$186,161"}},{"$f":"DX20+(DX22-DX19)/Inputs!B22/12","v":{"v":186138.16222568965,"d":"$186,138"}},{"$f":"DY20+(DY22-DY19)/Inputs!B22/12","v":{"v":186029.89695862003,"d":"$186,030"}},{"$f":"DZ20+(DZ22-DZ19)/Inputs!B22/12","v":{"v":185903.61062423425,"d":"$185,904"}},{"$f":"SUM(DO21:DZ21)","v":{"v":2236475.6338599506,"d":"$2,236,476"}},{"$f":"EB20+(EB22-EB19)/Inputs!B22/12","v":{"v":185746.2186586722,"d":"$185,746"}},{"$f":"EC20+(EC22-EC19)/Inputs!B22/12","v":{"v":185652.78699087902,"d":"$185,653"}},{"$f":"ED20+(ED22-ED19)/Inputs!B22/12","v":{"v":185536.34885874146,"d":"$185,536"}},{"$f":"EE20+(EE22-EE19)/Inputs!B22/12","v":{"v":185464.96610347592,"d":"$185,465"}},{"$f":"EF20+(EF22-EF19)/Inputs!B22/12","v":{"v":185393.31370031618,"d":"$185,393"}},{"$f":"EG20+(EG22-EG19)/Inputs!B22/12","v":{"v":185296.2642153825,"d":"$185,296"}},{"$f":"EH20+(EH22-EH19)/Inputs!B22/12","v":{"v":185200.57106316756,"d":"$185,201"}},{"$f":"EI20+(EI22-EI19)/Inputs!B22/12","v":{"v":185161.7314828798,"d":"$185,162"}},{"$f":"EJ20+(EJ22-EJ19)/Inputs!B22/12","v":{"v":184994.13394498682,"d":"$184,994"}},{"$f":"EK20+(EK22-EK19)/Inputs!B22/12","v":{"v":184806.92855096425,"d":"$184,807"}},{"$f":"EL20+(EL22-EL19)/Inputs!B22/12","v":{"v":184798.70283752072,"d":"$184,799"}},{"$f":"EM20+(EM22-EM19)/Inputs!B22/12","v":{"v":184750.11281944028,"d":"$184,750"}},{"$f":"SUM(EB21:EM21)","v":{"v":2222802.079226427,"d":"$2,222,802"}}]
[{"$f":"Labels!B14","v":"Desired Capital"},{"$f":"Inputs!B20*B10/(1/Inputs!B19/12+'(Other Computations)'!B144)","v":{"v":34645298.42192645,"d":"$34,645,298"}},{"$f":"Inputs!B20*C10/(1/Inputs!B19/12+'(Other Computations)'!B144)","v":{"v":34627561.778753355,"d":"$34,627,562"}},{"$f":"Inputs!B20*D10/(1/Inputs!B19/12+'(Other Computations)'!B144)","v":{"v":34614190.277273856,"d":"$34,614,190"}},{"$f":"Inputs!B20*E10/(1/Inputs!B19/12+'(Other Computations)'!B144)","v":{"v":34598099.05200938,"d":"$34,598,099"}},{"$f":"Inputs!B20*F10/(1/Inputs!B19/12+'(Other Computations)'!B144)","v":{"v":34587180.66282008,"d":"$34,587,181"}},{"$f":"Inputs!B20*G10/(1/Inputs!B19/12+'(Other Computations)'!B144)","v":{"v":34574184.968473814,"d":"$34,574,185"}},{"$f":"Inputs!B20*H10/(1/Inputs!B19/12+'(Other Computations)'!B144)","v":{"v":34563028.7512114,"d":"$34,563,029"}},{"$f":"Inputs!B20*I10/(1/Inputs!B19/12+'(Other Computations)'!B144)","v":{"v":34548150.152566634,"d":"$34,548,150"}},{"$f":"Inputs!B20*J10/(1/Inputs!B19/12+'(Other Computations)'!B144)","v":{"v":34536070.206330165,"d":"$34,536,070"}},{"$f":"Inputs!B20*K10/(1/Inputs!B19/12+'(Other Computations)'!B144)","v":{"v":34519592.94347886,"d":"$34,519,593"}},{"$f":"Inputs!B20*L10/(1/Inputs!B19/12+'(Other Computations)'!B144)","v":{"v":34506221.73623712,"d":"$34,506,222"}},{"$f":"Inputs!B20*M10/(1/Inputs!B19/12+'(Other Computations)'!B144)","v":{"v":34494353.69820394,"d":"$34,494,354"}},{"$f":"M22","v":{"v":34494353.69820394,"d":"$34,494,354"}},{"$f":"Inputs!B20*O10/(1/Inputs!B19/12+'(Other Computations)'!B144)","v":{"v":34478636.8379346,"d":"$34,478,637"}},{"$f":"Inputs!B20*P10/(1/Inputs!B19/12+'(Other Computations)'!B144)","v":{"v":34465300.4889714,"d":"$34,465,300"}},{"$f":"Inputs!B20*Q10/(1/Inputs!B19/12+'(Other Computations)'!B144)","v":{"v":34450345.42183265,"d":"$34,450,345"}},{"$f":"Inputs!B20*R10/(1/Inputs!B19/12+'(Other Computations)'!B144)","v":{"v":34439186.15868493,"d":"$34,439,186"}},{"$f":"Inputs!B20*S10/(1/Inputs!B19/12+'(Other Computations)'!B144)","v":{"v":34426849.27196243,"d":"$34,426,849"}},{"$f":"Inputs!B20*T10/(1/Inputs!B19/12+'(Other Computations)'!B144)","v":{"v":34412859.430243805,"d":"$34,412,859"}},{"$f":"Inputs!B20*U10/(1/Inputs!B19/12+'(Other Computations)'!B144)","v":{"v":34398208.98472673,"d":"$34,398,209"}},{"$f":"Inputs!B20*V10/(1/Inputs!B19/12+'(Other Computations)'!B144)","v":{"v":34379900.043848716,"d":"$34,379,900"}},{"$f":"Inputs!B20*W10/(1/Inputs!B19/12+'(Other Computations)'!B144)","v":{"v":34364026.6168087,"d":"$34,364,027"}},{"$f":"Inputs!B20*X10/(1/Inputs!B19/12+'(Other Computations)'!B144)","v":{"v":34350897.028542854,"d":"$34,350,897"}},{"$f":"Inputs!B20*Y10/(1/Inputs!B19/12+'(Other Computations)'!B144)","v":{"v":34337188.099073716,"d":"$34,337,188"}},{"$f":"Inputs!B20*Z10/(1/Inputs!B19/12+'(Other Computations)'!B144)","v":{"v":34322176.859698236,"d":"$34,322,177"}},{"$f":"Z22","v":{"v":34322176.859698236,"d":"$34,322,177"}},{"$f":"Inputs!B20*AB10/(1/Inputs!B19/12+'(Other Computations)'!B144)","v":{"v":34304204.53115242,"d":"$34,304,205"}},{"$f":"Inputs!B20*AC10/(1/Inputs!B19/12+'(Other Computations)'!B144)","v":{"v":34292961.35476165,"d":"$34,292,961"}},{"$f":"Inputs!B20*AD10/(1/Inputs!B19/12+'(Other Computations)'!B144)","v":{"v":34277510.48916212,"d":"$34,277,510"}},{"$f":"Inputs!B20*AE10/(1/Inputs!B19/12+'(Other Computations)'!B144)","v":{"v":34261105.34922021,"d":"$34,261,105"}},{"$f":"Inputs!B20*AF10/(1/Inputs!B19/12+'(Other Computations)'!B144)","v":{"v":34248937.90218909,"d":"$34,248,938"}},{"$f":"Inputs!B20*AG10/(1/Inputs!B19/12+'(Other Computations)'!B144)","v":{"v":34230903.75163584,"d":"$34,230,904"}},{"$f":"Inputs!B20*AH10/(1/Inputs!B19/12+'(Other Computations)'!B144)","v":{"v":34218526.76793199,"d":"$34,218,527"}},{"$f":"Inputs!B20*AI10/(1/Inputs!B19/12+'(Other Computations)'!B144)","v":{"v":34204930.86099649,"d":"$34,204,931"}},{"$f":"Inputs!B20*AJ10/(1/Inputs!B19/12+'(Other Computations)'!B144)","v":{"v":34189154.493921146,"d":"$34,189,154"}},{"$f":"Inputs!B20*AK10/(1/Inputs!B19/12+'(Other Computations)'!B144)","v":{"v":34176425.86135548,"d":"$34,176,426"}},{"$f":"Inputs!B20*AL10/(1/Inputs!B19/12+'(Other Computations)'!B144)","v":{"v":34162792.495968744,"d":"$34,162,792"}},{"$f":"Inputs!B20*AM10/(1/Inputs!B19/12+'(Other Computations)'!B144)","v":{"v":34147843.14366663,"d":"$34,147,843"}},{"$f":"AM22","v":{"v":34147843.14366663,"d":"$34,147,843"}},{"$f":"Inputs!B20*AO10/(1/Inputs!B19/12+'(Other Computations)'!B144)","v":{"v":34132690.49177875,"d":"$34,132,690"}},{"$f":"Inputs!B20*AP10/(1/Inputs!B19/12+'(Other Computations)'!B144)","v":{"v":34120651.74153521,"d":"$34,120,652"}},{"$f":"Inputs!B20*AQ10/(1/Inputs!B19/12+'(Other Computations)'!B144)","v":{"v":34109086.1040989,"d":"$34,109,086"}},{"$f":"Inputs!B20*AR10/(1/Inputs!B19/12+'(Other Computations)'!B144)","v":{"v":34091811.197618246,"d":"$34,091,811"}},{"$f":"Inputs!B20*AS10/(1/Inputs!B19/12+'(Other Computations)'!B144)","v":{"v":34077124.20035591,"d":"$34,077,124"}},{"$f":"Inputs!B20*AT10/(1/Inputs!B19/12+'(Other Computations)'!B144)","v":{"v":34064871.102016695,"d":"$34,064,871"}},{"$f":"Inputs!B20*AU10/(1/Inputs!B19/12+'(Other Computations)'!B144)","v":{"v":34049711.038506575,"d":"$34,049,711"}},{"$f":"Inputs!B20*AV10/(1/Inputs!B19/12+'(Other Computations)'!B144)","v":{"v":34033567.22777952,"d":"$34,033,567"}},{"$f":"Inputs!B20*AW10/(1/Inputs!B19/12+'(Other Computations)'!B144)","v":{"v":34020327.27926963,"d":"$34,020,327"}},{"$f":"Inputs!B20*AX10/(1/Inputs!B19/12+'(Other Computations)'!B144)","v":{"v":34004056.4335307,"d":"$34,004,056"}},{"$f":"Inputs!B20*AY10/(1/Inputs!B19/12+'(Other Computations)'!B144)","v":{"v":33992501.10710122,"d":"$33,992,501"}},{"$f":"Inputs!B20*AZ10/(1/Inputs!B19/12+'(Other Computations)'!B144)","v":{"v":33976245.676489346,"d":"$33,976,246"}},{"$f":"AZ22","v":{"v":33976245.676489346,"d":"$33,976,246"}},{"$f":"Inputs!B20*BB10/(1/Inputs!B19/12+'(Other Computations)'!B144)","v":{"v":33958884.96143592,"d":"$33,958,885"}},{"$f":"Inputs!B20*BC10/(1/Inputs!B19/12+'(Other Computations)'!B144)","v":{"v":33944036.21877867,"d":"$33,944,036"}},{"$f":"Inputs!B20*BD10/(1/Inputs!B19/12+'(Other Computations)'!B144)","v":{"v":33926640.2814516,"d":"$33,926,640"}},{"$f":"Inputs!B20*BE10/(1/Inputs!B19/12+'(Other Computations)'!B144)","v":{"v":33914431.46553713,"d":"$33,914,431"}},{"$f":"Inputs!B20*BF10/(1/Inputs!B19/12+'(Other Computations)'!B144)","v":{"v":33896376.113502376,"d":"$33,896,376"}},{"$f":"Inputs!B20*BG10/(1/Inputs!B19/12+'(Other Computations)'!B144)","v":{"v":33883118.355015874,"d":"$33,883,118"}},{"$f":"Inputs!B20*BH10/(1/Inputs!B19/12+'(Other Computations)'!B144)","v":{"v":33865022.89849413,"d":"$33,865,023"}},{"$f":"Inputs!B20*BI10/(1/Inputs!B19/12+'(Other Computations)'!B144)","v":{"v":33848833.1231206,"d":"$33,848,833"}},{"$f":"Inputs!B20*BJ10/(1/Inputs!B19/12+'(Other Computations)'!B144)","v":{"v":33835278.03279136,"d":"$33,835,278"}},{"$f":"Inputs!B20*BK10/(1/Inputs!B19/12+'(Other Computations)'!B144)","v":{"v":33821275.94156265,"d":"$33,821,276"}},{"$f":"Inputs!B20*BL10/(1/Inputs!B19/12+'(Other Computations)'!B144)","v":{"v":33806364.21292024,"d":"$33,806,364"}},{"$f":"Inputs!B20*BM10/(1/Inputs!B19/12+'(Other Computations)'!B144)","v":{"v":33793939.86017653,"d":"$33,793,940"}},{"$f":"BM22","v":{"v":33793939.86017653,"d":"$33,793,940"}},{"$f":"Inputs!B20*BO10/(1/Inputs!B19/12+'(Other Computations)'!B144)","v":{"v":33779646.34830576,"d":"$33,779,646"}},{"$f":"Inputs!B20*BP10/(1/Inputs!B19/12+'(Other Computations)'!B144)","v":{"v":33765438.89126726,"d":"$33,765,439"}},{"$f":"Inputs!B20*BQ10/(1/Inputs!B19/12+'(Other Computations)'!B144)","v":{"v":33752299.167261355,"d":"$33,752,299"}},{"$f":"Inputs!B20*BR10/(1/Inputs!B19/12+'(Other Computations)'!B144)","v":{"v":33736120.47337585,"d":"$33,736,120"}},{"$f":"Inputs!B20*BS10/(1/Inputs!B19/12+'(Other Computations)'!B144)","v":{"v":33722284.91200343,"d":"$33,722,285"}},{"$f":"Inputs!B20*BT10/(1/Inputs!B19/12+'(Other Computations)'!B144)","v":{"v":33709873.27867522,"d":"$33,709,873"}},{"$f":"Inputs!B20*BU10/(1/Inputs!B19/12+'(Other Computations)'!B144)","v":{"v":33695101.66864466,"d":"$33,695,102"}},{"$f":"Inputs!B20*BV10/(1/Inputs!B19/12+'(Other Computations)'!B144)","v":{"v":33679989.61685534,"d":"$33,679,990"}},{"$f":"Inputs!B20*BW10/(1/Inputs!B19/12+'(Other Computations)'!B144)","v":{"v":33664043.69970853,"d":"$33,664,044"}},{"$f":"Inputs!B20*BX10/(1/Inputs!B19/12+'(Other Computations)'!B144)","v":{"v":33650998.90592407,"d":"$33,650,999"}},{"$f":"Inputs!B20*BY10/(1/Inputs!B19/12+'(Other Computations)'!B144)","v":{"v":33634370.14355362,"d":"$33,634,370"}},{"$f":"Inputs!B20*BZ10/(1/Inputs!B19/12+'(Other Computations)'!B144)","v":{"v":33623110.043035015,"d":"$33,623,110"}},{"$f":"BZ22","v":{"v":33623110.043035015,"d":"$33,623,110"}},{"$f":"Inputs!B20*CB10/(1/Inputs!B19/12+'(Other Computations)'!B144)","v":{"v":33608262.09066019,"d":"$33,608,262"}},{"$f":"Inputs!B20*CC10/(1/Inputs!B19/12+'(Other Computations)'!B144)","v":{"v":33595362.507398434,"d":"$33,595,363"}},{"$f":"Inputs!B20*CD10/(1/Inputs!B19/12+'(Other Computations)'!B144)","v":{"v":33580798.57940324,"d":"$33,580,799"}},{"$f":"Inputs!B20*CE10/(1/Inputs!B19/12+'(Other Computations)'!B144)","v":{"v":33566954.58928164,"d":"$33,566,955"}},{"$f":"Inputs!B20*CF10/(1/Inputs!B19/12+'(Other Computations)'!B144)","v":{"v":33553207.605848175,"d":"$33,553,208"}},{"$f":"Inputs!B20*CG10/(1/Inputs!B19/12+'(Other Computations)'!B144)","v":{"v":33539224.767436374,"d":"$33,539,225"}},{"$f":"Inputs!B20*CH10/(1/Inputs!B19/12+'(Other Computations)'!B144)","v":{"v":33526941.584216695,"d":"$33,526,942"}},{"$f":"Inputs!B20*CI10/(1/Inputs!B19/12+'(Other Computations)'!B144)","v":{"v":33514943.0198399,"d":"$33,514,943"}},{"$f":"Inputs!B20*CJ10/(1/Inputs!B19/12+'(Other Computations)'!B144)","v":{"v":33503747.78459299,"d":"$33,503,748"}},{"$f":"Inputs!B20*CK10/(1/Inputs!B19/12+'(Other Computations)'!B144)","v":{"v":33489318.518079218,"d":"$33,489,319"}},{"$f":"Inputs!B20*CL10/(1/Inputs!B19/12+'(Other Computations)'!B144)","v":{"v":33476643.87562458,"d":"$33,476,644"}},{"$f":"Inputs!B20*CM10/(1/Inputs!B19/12+'(Other Computations)'!B144)","v":{"v":33464855.795126613,"d":"$33,464,856"}},{"$f":"CM22","v":{"v":33464855.795126613,"d":"$33,464,856"}},{"$f":"Inputs!B20*CO10/(1/Inputs!B19/12+'(Other Computations)'!B144)","v":{"v":33454060.1533684,"d":"$33,454,060"}},{"$f":"Inputs!B20*CP10/(1/Inputs!B19/12+'(Other Computations)'!B144)","v":{"v":33437672.26447674,"d":"$33,437,672"}},{"$f":"Inputs!B20*CQ10/(1/Inputs!B19/12+'(Other Computations)'!B144)","v":{"v":33424728.505092006,"d":"$33,424,729"}},{"$f":"Inputs!B20*CR10/(1/Inputs!B19/12+'(Other Computations)'!B144)","v":{"v":33409824.823061507,"d":"$33,409,825"}},{"$f":"Inputs!B20*CS10/(1/Inputs!B19/12+'(Other Computations)'!B144)","v":{"v":33396500.044962958,"d":"$33,396,500"}},{"$f":"Inputs!B20*CT10/(1/Inputs!B19/12+'(Other Computations)'!B144)","v":{"v":33382189.70463971,"d":"$33,382,190"}},{"$f":"Inputs!B20*CU10/(1/Inputs!B19/12+'(Other Computations)'!B144)","v":{"v":33368661.169118717,"d":"$33,368,661"}},{"$f":"Inputs!B20*CV10/(1/Inputs!B19/12+'(Other Computations)'!B144)","v":{"v":33355975.624582335,"d":"$33,355,976"}},{"$f":"Inputs!B20*CW10/(1/Inputs!B19/12+'(Other Computations)'!B144)","v":{"v":33342201.857112367,"d":"$33,342,202"}},{"$f":"Inputs!B20*CX10/(1/Inputs!B19/12+'(Other Computations)'!B144)","v":{"v":33326217.25971493,"d":"$33,326,217"}},{"$f":"Inputs!B20*CY10/(1/Inputs!B19/12+'(Other Computations)'!B144)","v":{"v":33315085.185469385,"d":"$33,315,085"}},{"$f":"Inputs!B20*CZ10/(1/Inputs!B19/12+'(Other Computations)'!B144)","v":{"v":33299582.120597713,"d":"$33,299,582"}},{"$f":"CZ22","v":{"v":33299582.120597713,"d":"$33,299,582"}},{"$f":"Inputs!B20*DB10/(1/Inputs!B19/12+'(Other Computations)'!B144)","v":{"v":33287536.953427415,"d":"$33,287,537"}},{"$f":"Inputs!B20*DC10/(1/Inputs!B19/12+'(Other Computations)'!B144)","v":{"v":33271243.398394324,"d":"$33,271,243"}},{"$f":"Inputs!B20*DD10/(1/Inputs!B19/12+'(Other Computations)'!B144)","v":{"v":33253413.732760504,"d":"$33,253,414"}},{"$f":"Inputs!B20*DE10/(1/Inputs!B19/12+'(Other Computations)'!B144)","v":{"v":33239114.258277617,"d":"$33,239,114"}},{"$f":"Inputs!B20*DF10/(1/Inputs!B19/12+'(Other Computations)'!B144)","v":{"v":33225959.336064633,"d":"$33,225,959"}},{"$f":"Inputs!B20*DG10/(1/Inputs!B19/12+'(Other Computations)'!B144)","v":{"v":33212330.67791886,"d":"$33,212,331"}},{"$f":"Inputs!B20*DH10/(1/Inputs!B19/12+'(Other Computations)'!B144)","v":{"v":33199524.025126584,"d":"$33,199,524"}},{"$f":"Inputs!B20*DI10/(1/Inputs!B19/12+'(Other Computations)'!B144)","v":{"v":33186361.938404597,"d":"$33,186,362"}},{"$f":"Inputs!B20*DJ10/(1/Inputs!B19/12+'(Other Computations)'!B144)","v":{"v":33172506.519282125,"d":"$33,172,507"}},{"$f":"Inputs!B20*DK10/(1/Inputs!B19/12+'(Other Computations)'!B144)","v":{"v":33157808.99330674,"d":"$33,157,809"}},{"$f":"Inputs!B20*DL10/(1/Inputs!B19/12+'(Other Computations)'!B144)","v":{"v":33144622.277545806,"d":"$33,144,622"}},{"$f":"Inputs!B20*DM10/(1/Inputs!B19/12+'(Other Computations)'!B144)","v":{"v":33132089.979916673,"d":"$33,132,090"}},{"$f":"DM22","v":{"v":33132089.979916673,"d":"$33,132,090"}},{"$f":"Inputs!B20*DO10/(1/Inputs!B19/12+'(Other Computations)'!B144)","v":{"v":33118827.855641246,"d":"$33,118,828"}},{"$f":"Inputs!B20*DP10/(1/Inputs!B19/12+'(Other Computations)'!B144)","v":{"v":33106010.616053753,"d":"$33,106,011"}},{"$f":"Inputs!B20*DQ10/(1/Inputs!B19/12+'(Other Computations)'!B144)","v":{"v":33093428.913641464,"d":"$33,093,429"}},{"$f":"Inputs!B20*DR10/(1/Inputs!B19/12+'(Other Computations)'!B144)","v":{"v":33083573.98303611,"d":"$33,083,574"}},{"$f":"Inputs!B20*DS10/(1/Inputs!B19/12+'(Other Computations)'!B144)","v":{"v":33066141.198986433,"d":"$33,066,141"}},{"$f":"Inputs!B20*DT10/(1/Inputs!B19/12+'(Other Computations)'!B144)","v":{"v":33051132.562933683,"d":"$33,051,133"}},{"$f":"Inputs!B20*DU10/(1/Inputs!B19/12+'(Other Computations)'!B144)","v":{"v":33038967.024010047,"d":"$33,038,967"}},{"$f":"Inputs!B20*DV10/(1/Inputs!B19/12+'(Other Computations)'!B144)","v":{"v":33024769.964936376,"d":"$33,024,770"}},{"$f":"Inputs!B20*DW10/(1/Inputs!B19/12+'(Other Computations)'!B144)","v":{"v":33012657.81875693,"d":"$33,012,658"}},{"$f":"Inputs!B20*DX10/(1/Inputs!B19/12+'(Other Computations)'!B144)","v":{"v":33001426.10430395,"d":"$33,001,426"}},{"$f":"Inputs!B20*DY10/(1/Inputs!B19/12+'(Other Computations)'!B144)","v":{"v":32987162.801327292,"d":"$32,987,163"}},{"$f":"Inputs!B20*DZ10/(1/Inputs!B19/12+'(Other Computations)'!B144)","v":{"v":32972209.330103356,"d":"$32,972,209"}},{"$f":"DZ22","v":{"v":32972209.330103356,"d":"$32,972,209"}},{"$f":"Inputs!B20*EB10/(1/Inputs!B19/12+'(Other Computations)'!B144)","v":{"v":32956094.670435645,"d":"$32,956,095"}},{"$f":"Inputs!B20*EC10/(1/Inputs!B19/12+'(Other Computations)'!B144)","v":{"v":32942214.198279336,"d":"$32,942,214"}},{"$f":"Inputs!B20*ED10/(1/Inputs!B19/12+'(Other Computations)'!B144)","v":{"v":32927507.982332103,"d":"$32,927,508"}},{"$f":"Inputs!B20*EE10/(1/Inputs!B19/12+'(Other Computations)'!B144)","v":{"v":32914389.943678193,"d":"$32,914,390"}},{"$f":"Inputs!B20*EF10/(1/Inputs!B19/12+'(Other Computations)'!B144)","v":{"v":32901278.351944517,"d":"$32,901,278"}},{"$f":"Inputs!B20*EG10/(1/Inputs!B19/12+'(Other Computations)'!B144)","v":{"v":32887258.89642723,"d":"$32,887,259"}},{"$f":"Inputs!B20*EH10/(1/Inputs!B19/12+'(Other Computations)'!B144)","v":{"v":32873269.264591776,"d":"$32,873,269"}},{"$f":"Inputs!B20*EI10/(1/Inputs!B19/12+'(Other Computations)'!B144)","v":{"v":32861314.11733347,"d":"$32,861,314"}},{"$f":"Inputs!B20*EJ10/(1/Inputs!B19/12+'(Other Computations)'!B144)","v":{"v":32844768.115639158,"d":"$32,844,768"}},{"$f":"Inputs!B20*EK10/(1/Inputs!B19/12+'(Other Computations)'!B144)","v":{"v":32827419.79517711,"d":"$32,827,420"}},{"$f":"Inputs!B20*EL10/(1/Inputs!B19/12+'(Other Computations)'!B144)","v":{"v":32816426.02592721,"d":"$32,816,426"}},{"$f":"Inputs!B20*EM10/(1/Inputs!B19/12+'(Other Computations)'!B144)","v":{"v":32804074.179809205,"d":"$32,804,074"}},{"$f":"EM22","v":{"v":32804074.179809205,"d":"$32,804,074"}}]
[]
[]
[{"$f":"\"Employment\"","v":"Employment"}]
[{"$f":"\" \"","v":" "}]
[null,{"$f":"ZZZ__FnCalls!F7","v":"Jan 2010"},{"$f":"ZZZ__FnCalls!F8","v":"Feb 2010"},{"$f":"ZZZ__FnCalls!F9","v":"Mar 2010"},{"$f":"ZZZ__FnCalls!F10","v":"Apr 2010"},{"$f":"ZZZ__FnCalls!F11","v":"May 2010"},{"$f":"ZZZ__FnCalls!F12","v":"Jun 2010"},{"$f":"ZZZ__FnCalls!F13","v":"Jul 2010"},{"$f":"ZZZ__FnCalls!F14","v":"Aug 2010"},{"$f":"ZZZ__FnCalls!F15","v":"Sep 2010"},{"$f":"ZZZ__FnCalls!F16","v":"Oct 2010"},{"$f":"ZZZ__FnCalls!F17","v":"Nov 2010"},{"$f":"ZZZ__FnCalls!F18","v":"Dec 2010"},{"$f":"ZZZ__FnCalls!H7","v":"2010"},{"$f":"ZZZ__FnCalls!F19","v":"Jan 2011"},{"$f":"ZZZ__FnCalls!F20","v":"Feb 2011"},{"$f":"ZZZ__FnCalls!F21","v":"Mar 2011"},{"$f":"ZZZ__FnCalls!F22","v":"Apr 2011"},{"$f":"ZZZ__FnCalls!F23","v":"May 2011"},{"$f":"ZZZ__FnCalls!F24","v":"Jun 2011"},{"$f":"ZZZ__FnCalls!F25","v":"Jul 2011"},{"$f":"ZZZ__FnCalls!F26","v":"Aug 2011"},{"$f":"ZZZ__FnCalls!F27","v":"Sep 2011"},{"$f":"ZZZ__FnCalls!F28","v":"Oct 2011"},{"$f":"ZZZ__FnCalls!F29","v":"Nov 2011"},{"$f":"ZZZ__FnCalls!F30","v":"Dec 2011"},{"$f":"ZZZ__FnCalls!H19","v":"2011"},{"$f":"ZZZ__FnCalls!F31","v":"Jan 2012"},{"$f":"ZZZ__FnCalls!F32","v":"Feb 2012"},{"$f":"ZZZ__FnCalls!F33","v":"Mar 2012"},{"$f":"ZZZ__FnCalls!F34","v":"Apr 2012"},{"$f":"ZZZ__FnCalls!F35","v":"May 2012"},{"$f":"ZZZ__FnCalls!F36","v":"Jun 2012"},{"$f":"ZZZ__FnCalls!F37","v":"Jul 2012"},{"$f":"ZZZ__FnCalls!F38","v":"Aug 2012"},{"$f":"ZZZ__FnCalls!F39","v":"Sep 2012"},{"$f":"ZZZ__FnCalls!F40","v":"Oct 2012"},{"$f":"ZZZ__FnCalls!F41","v":"Nov 2012"},{"$f":"ZZZ__FnCalls!F42","v":"Dec 2012"},{"$f":"ZZZ__FnCalls!H31","v":"2012"},{"$f":"ZZZ__FnCalls!F43","v":"Jan 2013"},{"$f":"ZZZ__FnCalls!F44","v":"Feb 2013"},{"$f":"ZZZ__FnCalls!F45","v":"Mar 2013"},{"$f":"ZZZ__FnCalls!F46","v":"Apr 2013"},{"$f":"ZZZ__FnCalls!F47","v":"May 2013"},{"$f":"ZZZ__FnCalls!F48","v":"Jun 2013"},{"$f":"ZZZ__FnCalls!F49","v":"Jul 2013"},{"$f":"ZZZ__FnCalls!F50","v":"Aug 2013"},{"$f":"ZZZ__FnCalls!F51","v":"Sep 2013"},{"$f":"ZZZ__FnCalls!F52","v":"Oct 2013"},{"$f":"ZZZ__FnCalls!F53","v":"Nov 2013"},{"$f":"ZZZ__FnCalls!F54","v":"Dec 2013"},{"$f":"ZZZ__FnCalls!H43","v":"2013"},{"$f":"ZZZ__FnCalls!F55","v":"Jan 2014"},{"$f":"ZZZ__FnCalls!F56","v":"Feb 2014"},{"$f":"ZZZ__FnCalls!F57","v":"Mar 2014"},{"$f":"ZZZ__FnCalls!F58","v":"Apr 2014"},{"$f":"ZZZ__FnCalls!F59","v":"May 2014"},{"$f":"ZZZ__FnCalls!F60","v":"Jun 2014"},{"$f":"ZZZ__FnCalls!F61","v":"Jul 2014"},{"$f":"ZZZ__FnCalls!F62","v":"Aug 2014"},{"$f":"ZZZ__FnCalls!F63","v":"Sep 2014"},{"$f":"ZZZ__FnCalls!F64","v":"Oct 2014"},{"$f":"ZZZ__FnCalls!F65","v":"Nov 2014"},{"$f":"ZZZ__FnCalls!F66","v":"Dec 2014"},{"$f":"ZZZ__FnCalls!H55","v":"2014"},{"$f":"ZZZ__FnCalls!F67","v":"Jan 2015"},{"$f":"ZZZ__FnCalls!F68","v":"Feb 2015"},{"$f":"ZZZ__FnCalls!F69","v":"Mar 2015"},{"$f":"ZZZ__FnCalls!F70","v":"Apr 2015"},{"$f":"ZZZ__FnCalls!F71","v":"May 2015"},{"$f":"ZZZ__FnCalls!F72","v":"Jun 2015"},{"$f":"ZZZ__FnCalls!F73","v":"Jul 2015"},{"$f":"ZZZ__FnCalls!F74","v":"Aug 2015"},{"$f":"ZZZ__FnCalls!F75","v":"Sep 2015"},{"$f":"ZZZ__FnCalls!F76","v":"Oct 2015"},{"$f":"ZZZ__FnCalls!F77","v":"Nov 2015"},{"$f":"ZZZ__FnCalls!F78","v":"Dec 2015"},{"$f":"ZZZ__FnCalls!H67","v":"2015"},{"$f":"ZZZ__FnCalls!F79","v":"Jan 2016"},{"$f":"ZZZ__FnCalls!F80","v":"Feb 2016"},{"$f":"ZZZ__FnCalls!F81","v":"Mar 2016"},{"$f":"ZZZ__FnCalls!F82","v":"Apr 2016"},{"$f":"ZZZ__FnCalls!F83","v":"May 2016"},{"$f":"ZZZ__FnCalls!F84","v":"Jun 2016"},{"$f":"ZZZ__FnCalls!F85","v":"Jul 2016"},{"$f":"ZZZ__FnCalls!F86","v":"Aug 2016"},{"$f":"ZZZ__FnCalls!F87","v":"Sep 2016"},{"$f":"ZZZ__FnCalls!F88","v":"Oct 2016"},{"$f":"ZZZ__FnCalls!F89","v":"Nov 2016"},{"$f":"ZZZ__FnCalls!F90","v":"Dec 2016"},{"$f":"ZZZ__FnCalls!H79","v":"2016"},{"$f":"ZZZ__FnCalls!F91","v":"Jan 2017"},{"$f":"ZZZ__FnCalls!F92","v":"Feb 2017"},{"$f":"ZZZ__FnCalls!F93","v":"Mar 2017"},{"$f":"ZZZ__FnCalls!F94","v":"Apr 2017"},{"$f":"ZZZ__FnCalls!F95","v":"May 2017"},{"$f":"ZZZ__FnCalls!F96","v":"Jun 2017"},{"$f":"ZZZ__FnCalls!F97","v":"Jul 2017"},{"$f":"ZZZ__FnCalls!F98","v":"Aug 2017"},{"$f":"ZZZ__FnCalls!F99","v":"Sep 2017"},{"$f":"ZZZ__FnCalls!F100","v":"Oct 2017"},{"$f":"ZZZ__FnCalls!F101","v":"Nov 2017"},{"$f":"ZZZ__FnCalls!F102","v":"Dec 2017"},{"$f":"ZZZ__FnCalls!H91","v":"2017"},{"$f":"ZZZ__FnCalls!F103","v":"Jan 2018"},{"$f":"ZZZ__FnCalls!F104","v":"Feb 2018"},{"$f":"ZZZ__FnCalls!F105","v":"Mar 2018"},{"$f":"ZZZ__FnCalls!F106","v":"Apr 2018"},{"$f":"ZZZ__FnCalls!F107","v":"May 2018"},{"$f":"ZZZ__FnCalls!F108","v":"Jun 2018"},{"$f":"ZZZ__FnCalls!F109","v":"Jul 2018"},{"$f":"ZZZ__FnCalls!F110","v":"Aug 2018"},{"$f":"ZZZ__FnCalls!F111","v":"Sep 2018"},{"$f":"ZZZ__FnCalls!F112","v":"Oct 2018"},{"$f":"ZZZ__FnCalls!F113","v":"Nov 2018"},{"$f":"ZZZ__FnCalls!F114","v":"Dec 2018"},{"$f":"ZZZ__FnCalls!H103","v":"2018"},{"$f":"ZZZ__FnCalls!F115","v":"Jan 2019"},{"$f":"ZZZ__FnCalls!F116","v":"Feb 2019"},{"$f":"ZZZ__FnCalls!F117","v":"Mar 2019"},{"$f":"ZZZ__FnCalls!F118","v":"Apr 2019"},{"$f":"ZZZ__FnCalls!F119","v":"May 2019"},{"$f":"ZZZ__FnCalls!F120","v":"Jun 2019"},{"$f":"ZZZ__FnCalls!F121","v":"Jul 2019"},{"$f":"ZZZ__FnCalls!F122","v":"Aug 2019"},{"$f":"ZZZ__FnCalls!F123","v":"Sep 2019"},{"$f":"ZZZ__FnCalls!F124","v":"Oct 2019"},{"$f":"ZZZ__FnCalls!F125","v":"Nov 2019"},{"$f":"ZZZ__FnCalls!F126","v":"Dec 2019"},{"$f":"ZZZ__FnCalls!H115","v":"2019"},{"$f":"ZZZ__FnCalls!F127","v":"Jan 2020"},{"$f":"ZZZ__FnCalls!F128","v":"Feb 2020"},{"$f":"ZZZ__FnCalls!F129","v":"Mar 2020"},{"$f":"ZZZ__FnCalls!F130","v":"Apr 2020"},{"$f":"ZZZ__FnCalls!F131","v":"May 2020"},{"$f":"ZZZ__FnCalls!F132","v":"Jun 2020"},{"$f":"ZZZ__FnCalls!F133","v":"Jul 2020"},{"$f":"ZZZ__FnCalls!F134","v":"Aug 2020"},{"$f":"ZZZ__FnCalls!F135","v":"Sep 2020"},{"$f":"ZZZ__FnCalls!F136","v":"Oct 2020"},{"$f":"ZZZ__FnCalls!F137","v":"Nov 2020"},{"$f":"ZZZ__FnCalls!F138","v":"Dec 2020"},{"$f":"ZZZ__FnCalls!H127","v":"2020"}]
[{"$f":"Labels!B38","v":"Employment"},{"$f":"Inputs!B27+'(Other Computations)'!B61*0/Inputs!B28/12","v":{"v":140,"d":"140.00"}},{"$f":"B28+'(Other Computations)'!B61*(B29-B28)/Inputs!B28/12","v":{"v":140,"d":"140.00"}},{"$f":"C28+'(Other Computations)'!B61*(C29-C28)/Inputs!B28/12","v":{"v":139.99253406980486,"d":"139.99"}},{"$f":"D28+'(Other Computations)'!B61*(D29-D28)/Inputs!B28/12","v":{"v":139.97965566765149,"d":"139.98"}},{"$f":"E28+'(Other Computations)'!B61*(E29-E28)/Inputs!B28/12","v":{"v":139.96037788435657,"d":"139.96"}},{"$f":"F28+'(Other Computations)'!B61*(F29-F28)/Inputs!B28/12","v":{"v":139.93706554193193,"d":"139.94"}},{"$f":"G28+'(Other Computations)'!B61*(G29-G28)/Inputs!B28/12","v":{"v":139.9089643247378,"d":"139.91"}},{"$f":"H28+'(Other Computations)'!B61*(H29-H28)/Inputs!B28/12","v":{"v":139.87699113933357,"d":"139.88"}},{"$f":"I28+'(Other Computations)'!B61*(I29-I28)/Inputs!B28/12","v":{"v":139.83969601883436,"d":"139.84"}},{"$f":"J28+'(Other Computations)'!B61*(J29-J28)/Inputs!B28/12","v":{"v":139.7984165297299,"d":"139.80"}},{"$f":"K28+'(Other Computations)'!B61*(K29-K28)/Inputs!B28/12","v":{"v":139.75142343227876,"d":"139.75"}},{"$f":"L28+'(Other Computations)'!B61*(L29-L28)/Inputs!B28/12","v":{"v":139.70019661505796,"d":"139.70"}},{"$f":"M28","v":{"v":139.70019661505796,"d":"139.70"}},{"$f":"M28+'(Other Computations)'!B61*(M29-M28)/Inputs!B28/12","v":{"v":139.64549941727228,"d":"139.65"}},{"$f":"O28+'(Other Computations)'!B61*(O29-O28)/Inputs!B28/12","v":{"v":139.58582098196507,"d":"139.59"}},{"$f":"P28+'(Other Computations)'!B61*(P29-P28)/Inputs!B28/12","v":{"v":139.52231688220874,"d":"139.52"}},{"$f":"Q28+'(Other Computations)'!B61*(Q29-Q28)/Inputs!B28/12","v":{"v":139.45442669424176,"d":"139.45"}},{"$f":"R28+'(Other Computations)'!B61*(R29-R28)/Inputs!B28/12","v":{"v":139.38388600131438,"d":"139.38"}},{"$f":"S28+'(Other Computations)'!B61*(S29-S28)/Inputs!B28/12","v":{"v":139.31028742838237,"d":"139.31"}},{"$f":"T28+'(Other Computations)'!B61*(T29-T28)/Inputs!B28/12","v":{"v":139.23303574006408,"d":"139.23"}},{"$f":"U28+'(Other Computations)'!B61*(U29-U28)/Inputs!B28/12","v":{"v":139.15197114171832,"d":"139.15"}},{"$f":"V28+'(Other Computations)'!B61*(V29-V28)/Inputs!B28/12","v":{"v":139.0656771593711,"d":"139.07"}},{"$f":"W28+'(Other Computations)'!B61*(W29-W28)/Inputs!B28/12","v":{"v":138.9753441052339,"d":"138.98"}},{"$f":"X28+'(Other Computations)'!B61*(X29-X28)/Inputs!B28/12","v":{"v":138.8822585123204,"d":"138.88"}},{"$f":"Y28+'(Other Computations)'!B61*(Y29-Y28)/Inputs!B28/12","v":{"v":138.78627152238275,"d":"138.79"}},{"$f":"Z28","v":{"v":138.78627152238275,"d":"138.79"}},{"$f":"Z28+'(Other Computations)'!B61*(Z29-Z28)/Inputs!B28/12","v":{"v":138.6869347071547,"d":"138.69"}},{"$f":"AB28+'(Other Computations)'!B61*(AB29-AB28)/Inputs!B28/12","v":{"v":138.58311484824873,"d":"138.58"}},{"$f":"AC28+'(Other Computations)'!B61*(AC29-AC28)/Inputs!B28/12","v":{"v":138.47779100071276,"d":"138.48"}},{"$f":"AD28+'(Other Computations)'!B61*(AD29-AD28)/Inputs!B28/12","v":{"v":138.3692530894889,"d":"138.37"}},{"$f":"AE28+'(Other Computations)'!B61*(AE29-AE28)/Inputs!B28/12","v":{"v":138.25721021029554,"d":"138.26"}},{"$f":"AF28+'(Other Computations)'!B61*(AF29-AF28)/Inputs!B28/12","v":{"v":138.14356586272328,"d":"138.14"}},{"$f":"AG28+'(Other Computations)'!B61*(AG29-AG28)/Inputs!B28/12","v":{"v":138.02591576705055,"d":"138.03"}},{"$f":"AH28+'(Other Computations)'!B61*(AH29-AH28)/Inputs!B28/12","v":{"v":137.90677621903268,"d":"137.91"}},{"$f":"AI28+'(Other Computations)'!B61*(AI29-AI28)/Inputs!B28/12","v":{"v":137.7856969882728,"d":"137.79"}},{"$f":"AJ28+'(Other Computations)'!B61*(AJ29-AJ28)/Inputs!B28/12","v":{"v":137.6618363433555,"d":"137.66"}},{"$f":"AK28+'(Other Computations)'!B61*(AK29-AK28)/Inputs!B28/12","v":{"v":137.53657791731624,"d":"137.54"}},{"$f":"AL28+'(Other Computations)'!B61*(AL29-AL28)/Inputs!B28/12","v":{"v":137.4096020228871,"d":"137.41"}},{"$f":"AM28","v":{"v":137.4096020228871,"d":"137.41"}},{"$f":"AM28+'(Other Computations)'!B61*(AM29-AM28)/Inputs!B28/12","v":{"v":137.2804253082862,"d":"137.28"}},{"$f":"AO28+'(Other Computations)'!B61*(AO29-AO28)/Inputs!B28/12","v":{"v":137.14904702462923,"d":"137.15"}},{"$f":"AP28+'(Other Computations)'!B61*(AP29-AP28)/Inputs!B28/12","v":{"v":137.01686309694642,"d":"137.02"}},{"$f":"AQ28+'(Other Computations)'!B61*(AQ29-AQ28)/Inputs!B28/12","v":{"v":136.88411779865092,"d":"136.88"}},{"$f":"AR28+'(Other Computations)'!B61*(AR29-AR28)/Inputs!B28/12","v":{"v":136.74844605919316,"d":"136.75"}},{"$f":"AS28+'(Other Computations)'!B61*(AS29-AS28)/Inputs!B28/12","v":{"v":136.61104384112676,"d":"136.61"}},{"$f":"AT28+'(Other Computations)'!B61*(AT29-AT28)/Inputs!B28/12","v":{"v":136.47300813248324,"d":"136.47"}},{"$f":"AU28+'(Other Computations)'!B61*(AU29-AU28)/Inputs!B28/12","v":{"v":136.33315628575826,"d":"136.33"}},{"$f":"AV28+'(Other Computations)'!B61*(AV29-AV28)/Inputs!B28/12","v":{"v":136.1911494764532,"d":"136.19"}},{"$f":"AW28+'(Other Computations)'!B61*(AW29-AW28)/Inputs!B28/12","v":{"v":136.04829536900863,"d":"136.05"}},{"$f":"AX28+'(Other Computations)'!B61*(AX29-AX28)/Inputs!B28/12","v":{"v":135.9033659790922,"d":"135.90"}},{"$f":"AY28+'(Other Computations)'!B61*(AY29-AY28)/Inputs!B28/12","v":{"v":135.7584296667,"d":"135.76"}},{"$f":"AZ28","v":{"v":135.7584296667,"d":"135.76"}},{"$f":"AZ28+'(Other Computations)'!B61*(AZ29-AZ28)/Inputs!B28/12","v":{"v":135.61153190841915,"d":"135.61"}},{"$f":"BB28+'(Other Computations)'!B61*(BB29-BB28)/Inputs!B28/12","v":{"v":135.46228785826176,"d":"135.46"}},{"$f":"BC28+'(Other Computations)'!B61*(BC29-BC28)/Inputs!B28/12","v":{"v":135.31184671376064,"d":"135.31"}},{"$f":"BD28+'(Other Computations)'!B61*(BD29-BD28)/Inputs!B28/12","v":{"v":135.15919520537253,"d":"135.16"}},{"$f":"BE28+'(Other Computations)'!B61*(BE29-BE28)/Inputs!B28/12","v":{"v":135.00660516022538,"d":"135.01"}},{"$f":"BF28+'(Other Computations)'!B61*(BF29-BF28)/Inputs!B28/12","v":{"v":134.8516385726095,"d":"134.85"}},{"$f":"BG28+'(Other Computations)'!B61*(BG29-BG28)/Inputs!B28/12","v":{"v":134.69640837341757,"d":"134.70"}},{"$f":"BH28+'(Other Computations)'!B61*(BH29-BH28)/Inputs!B28/12","v":{"v":134.53891090445916,"d":"134.54"}},{"$f":"BI28+'(Other Computations)'!B61*(BI29-BI28)/Inputs!B28/12","v":{"v":134.3800389793681,"d":"134.38"}},{"$f":"BJ28+'(Other Computations)'!B61*(BJ29-BJ28)/Inputs!B28/12","v":{"v":134.22096677636924,"d":"134.22"}},{"$f":"BK28+'(Other Computations)'!B61*(BK29-BK28)/Inputs!B28/12","v":{"v":134.06153749734227,"d":"134.06"}},{"$f":"BL28+'(Other Computations)'!B61*(BL29-BL28)/Inputs!B28/12","v":{"v":133.90140411809006,"d":"133.90"}},{"$f":"BM28","v":{"v":133.90140411809006,"d":"133.90"}},{"$f":"BM28+'(Other Computations)'!B61*(BM29-BM28)/Inputs!B28/12","v":{"v":133.741659572118,"d":"133.74"}},{"$f":"BO28+'(Other Computations)'!B61*(BO29-BO28)/Inputs!B28/12","v":{"v":133.58153142485074,"d":"133.58"}},{"$f":"BP28+'(Other Computations)'!B61*(BP29-BP28)/Inputs!B28/12","v":{"v":133.4210924784331,"d":"133.42"}},{"$f":"BQ28+'(Other Computations)'!B61*(BQ29-BQ28)/Inputs!B28/12","v":{"v":133.26082665658427,"d":"133.26"}},{"$f":"BR28+'(Other Computations)'!B61*(BR29-BR28)/Inputs!B28/12","v":{"v":133.09947523085532,"d":"133.10"}},{"$f":"BS28+'(Other Computations)'!B61*(BS29-BS28)/Inputs!B28/12","v":{"v":132.93808130721274,"d":"132.94"}},{"$f":"BT28+'(Other Computations)'!B61*(BT29-BT28)/Inputs!B28/12","v":{"v":132.77727101636458,"d":"132.78"}},{"$f":"BU28+'(Other Computations)'!B61*(BU29-BU28)/Inputs!B28/12","v":{"v":132.61605955150807,"d":"132.62"}},{"$f":"BV28+'(Other Computations)'!B61*(BV29-BV28)/Inputs!B28/12","v":{"v":132.45434052877332,"d":"132.45"}},{"$f":"BW28+'(Other Computations)'!B61*(BW29-BW28)/Inputs!B28/12","v":{"v":132.29180295575327,"d":"132.29"}},{"$f":"BX28+'(Other Computations)'!B61*(BX29-BX28)/Inputs!B28/12","v":{"v":132.12971704671145,"d":"132.13"}},{"$f":"BY28+'(Other Computations)'!B61*(BY29-BY28)/Inputs!B28/12","v":{"v":131.96658655968747,"d":"131.97"}},{"$f":"BZ28","v":{"v":131.96658655968747,"d":"131.97"}},{"$f":"BZ28+'(Other Computations)'!B61*(BZ29-BZ28)/Inputs!B28/12","v":{"v":131.80472686265975,"d":"131.80"}},{"$f":"CB28+'(Other Computations)'!B61*(CB29-CB28)/Inputs!B28/12","v":{"v":131.6426163633233,"d":"131.64"}},{"$f":"CC28+'(Other Computations)'!B61*(CC29-CC28)/Inputs!B28/12","v":{"v":131.48110759231102,"d":"131.48"}},{"$f":"CD28+'(Other Computations)'!B61*(CD29-CD28)/Inputs!B28/12","v":{"v":131.31950768880012,"d":"131.32"}},{"$f":"CE28+'(Other Computations)'!B61*(CE29-CE28)/Inputs!B28/12","v":{"v":131.15814729919504,"d":"131.16"}},{"$f":"CF28+'(Other Computations)'!B61*(CF29-CF28)/Inputs!B28/12","v":{"v":130.99708524866446,"d":"131.00"}},{"$f":"CG28+'(Other Computations)'!B61*(CG29-CG28)/Inputs!B28/12","v":{"v":130.83623844855336,"d":"130.84"}},{"$f":"CH28+'(Other Computations)'!B61*(CH29-CH28)/Inputs!B28/12","v":{"v":130.6763408241821,"d":"130.68"}},{"$f":"CI28+'(Other Computations)'!B61*(CI29-CI28)/Inputs!B28/12","v":{"v":130.5175093350743,"d":"130.52"}},{"$f":"CJ28+'(Other Computations)'!B61*(CJ29-CJ28)/Inputs!B28/12","v":{"v":130.36007567626092,"d":"130.36"}},{"$f":"CK28+'(Other Computations)'!B61*(CK29-CK28)/Inputs!B28/12","v":{"v":130.20266224662666,"d":"130.20"}},{"$f":"CL28+'(Other Computations)'!B61*(CL29-CL28)/Inputs!B28/12","v":{"v":130.0460308941977,"d":"130.05"}},{"$f":"CM28","v":{"v":130.0460308941977,"d":"130.05"}},{"$f":"CM28+'(Other Computations)'!B61*(CM29-CM28)/Inputs!B28/12","v":{"v":129.89055596846134,"d":"129.89"}},{"$f":"CO28+'(Other Computations)'!B61*(CO29-CO28)/Inputs!B28/12","v":{"v":129.7366453627356,"d":"129.74"}},{"$f":"CP28+'(Other Computations)'!B61*(CP29-CP28)/Inputs!B28/12","v":{"v":129.58192320331563,"d":"129.58"}},{"$f":"CQ28+'(Other Computations)'!B61*(CQ29-CQ28)/Inputs!B28/12","v":{"v":129.4278857413097,"d":"129.43"}},{"$f":"CR28+'(Other Computations)'!B61*(CR29-CR28)/Inputs!B28/12","v":{"v":129.27371128018143,"d":"129.27"}},{"$f":"CS28+'(Other Computations)'!B61*(CS29-CS28)/Inputs!B28/12","v":{"v":129.120091333848,"d":"129.12"}},{"$f":"CT28+'(Other Computations)'!B61*(CT29-CT28)/Inputs!B28/12","v":{"v":128.96661791066117,"d":"128.97"}},{"$f":"CU28+'(Other Computations)'!B61*(CU29-CU28)/Inputs!B28/12","v":{"v":128.81363861697565,"d":"128.81"}},{"$f":"CV28+'(Other Computations)'!B61*(CV29-CV28)/Inputs!B28/12","v":{"v":128.66151667814748,"d":"128.66"}},{"$f":"CW28+'(Other Computations)'!B61*(CW29-CW28)/Inputs!B28/12","v":{"v":128.50979176021428,"d":"128.51"}},{"$f":"CX28+'(Other Computations)'!B61*(CX29-CX28)/Inputs!B28/12","v":{"v":128.35754410576624,"d":"128.36"}},{"$f":"CY28+'(Other Computations)'!B61*(CY29-CY28)/Inputs!B28/12","v":{"v":128.20685364501597,"d":"128.21"}},{"$f":"CZ28","v":{"v":128.20685364501597,"d":"128.21"}},{"$f":"CZ28+'(Other Computations)'!B61*(CZ29-CZ28)/Inputs!B28/12","v":{"v":128.05585768756072,"d":"128.06"}},{"$f":"DB28+'(Other Computations)'!B61*(DB29-DB28)/Inputs!B28/12","v":{"v":127.90604255140204,"d":"127.91"}},{"$f":"DC28+'(Other Computations)'!B61*(DC29-DC28)/Inputs!B28/12","v":{"v":127.7556077237492,"d":"127.76"}},{"$f":"DD28+'(Other Computations)'!B61*(DD29-DD28)/Inputs!B28/12","v":{"v":127.60394621930784,"d":"127.60"}},{"$f":"DE28+'(Other Computations)'!B61*(DE29-DE28)/Inputs!B28/12","v":{"v":127.45260124498704,"d":"127.45"}},{"$f":"DF28+'(Other Computations)'!B61*(DF29-DF28)/Inputs!B28/12","v":{"v":127.30206732499022,"d":"127.30"}},{"$f":"DG28+'(Other Computations)'!B61*(DG29-DG28)/Inputs!B28/12","v":{"v":127.152143378388,"d":"127.15"}},{"$f":"DH28+'(Other Computations)'!B61*(DH29-DH28)/Inputs!B28/12","v":{"v":127.00317937053002,"d":"127.00"}},{"$f":"DI28+'(Other Computations)'!B61*(DI29-DI28)/Inputs!B28/12","v":{"v":126.8550193617105,"d":"126.86"}},{"$f":"DJ28+'(Other Computations)'!B61*(DJ29-DJ28)/Inputs!B28/12","v":{"v":126.70736947508448,"d":"126.71"}},{"$f":"DK28+'(Other Computations)'!B61*(DK29-DK28)/Inputs!B28/12","v":{"v":126.55988152401542,"d":"126.56"}},{"$f":"DL28+'(Other Computations)'!B61*(DL29-DL28)/Inputs!B28/12","v":{"v":126.41320767851114,"d":"126.41"}},{"$f":"DM28","v":{"v":126.41320767851114,"d":"126.41"}},{"$f":"DM28+'(Other Computations)'!B61*(DM29-DM28)/Inputs!B28/12","v":{"v":126.26762067803291,"d":"126.27"}},{"$f":"DO28+'(Other Computations)'!B61*(DO29-DO28)/Inputs!B28/12","v":{"v":126.12280250661871,"d":"126.12"}},{"$f":"DP28+'(Other Computations)'!B61*(DP29-DP28)/Inputs!B28/12","v":{"v":125.97893858733028,"d":"125.98"}},{"$f":"DQ28+'(Other Computations)'!B61*(DQ29-DQ28)/Inputs!B28/12","v":{"v":125.8361206756812,"d":"125.84"}},{"$f":"DR28+'(Other Computations)'!B61*(DR29-DR28)/Inputs!B28/12","v":{"v":125.69548630094458,"d":"125.70"}},{"$f":"DS28+'(Other Computations)'!B61*(DS29-DS28)/Inputs!B28/12","v":{"v":125.55380229725586,"d":"125.55"}},{"$f":"DT28+'(Other Computations)'!B61*(DT29-DT28)/Inputs!B28/12","v":{"v":125.41213879279366,"d":"125.41"}},{"$f":"DU28+'(Other Computations)'!B61*(DU29-DU28)/Inputs!B28/12","v":{"v":125.27171143868864,"d":"125.27"}},{"$f":"DV28+'(Other Computations)'!B61*(DV29-DV28)/Inputs!B28/12","v":{"v":125.1316487772757,"d":"125.13"}},{"$f":"DW28+'(Other Computations)'!B61*(DW29-DW28)/Inputs!B28/12","v":{"v":124.9928370470003,"d":"124.99"}},{"$f":"DX28+'(Other Computations)'!B61*(DX29-DX28)/Inputs!B28/12","v":{"v":124.85562972960581,"d":"124.86"}},{"$f":"DY28+'(Other Computations)'!B61*(DY29-DY28)/Inputs!B28/12","v":{"v":124.71872312016859,"d":"124.72"}},{"$f":"DZ28","v":{"v":124.71872312016859,"d":"124.72"}},{"$f":"DZ28+'(Other Computations)'!B61*(DZ29-DZ28)/Inputs!B28/12","v":{"v":124.58183649373078,"d":"124.58"}},{"$f":"EB28+'(Other Computations)'!B61*(EB29-EB28)/Inputs!B28/12","v":{"v":124.44449888526813,"d":"124.44"}},{"$f":"EC28+'(Other Computations)'!B61*(EC29-EC28)/Inputs!B28/12","v":{"v":124.30768213536744,"d":"124.31"}},{"$f":"ED28+'(Other Computations)'!B61*(ED29-ED28)/Inputs!B28/12","v":{"v":124.1710419756467,"d":"124.17"}},{"$f":"EE28+'(Other Computations)'!B61*(EE29-EE28)/Inputs!B28/12","v":{"v":124.03526006385329,"d":"124.04"}},{"$f":"EF28+'(Other Computations)'!B61*(EF29-EF28)/Inputs!B28/12","v":{"v":123.90033245906142,"d":"123.90"}},{"$f":"EG28+'(Other Computations)'!B61*(EG29-EG28)/Inputs!B28/12","v":{"v":123.76587027971115,"d":"123.77"}},{"$f":"EH28+'(Other Computations)'!B61*(EH29-EH28)/Inputs!B28/12","v":{"v":123.63189040935312,"d":"123.63"}},{"$f":"EI28+'(Other Computations)'!B61*(EI29-EI28)/Inputs!B28/12","v":{"v":123.49925294775515,"d":"123.50"}},{"$f":"EJ28+'(Other Computations)'!B61*(EJ29-EJ28)/Inputs!B28/12","v":{"v":123.36600416187846,"d":"123.37"}},{"$f":"EK28+'(Other Computations)'!B61*(EK29-EK28)/Inputs!B28/12","v":{"v":123.23184129383807,"d":"123.23"}},{"$f":"EL28+'(Other Computations)'!B61*(EL29-EL28)/Inputs!B28/12","v":{"v":123.09948297200748,"d":"123.10"}},{"$f":"EM28","v":{"v":123.09948297200748,"d":"123.10"}}]
[{"$f":"Labels!B39","v":"Desired Employment"},{"$f":"(1-Inputs!B20)*B11/'(Other Computations)'!B130","v":{"v":140,"d":"140.00"}},{"$f":"(1-Inputs!B20)*C11/'(Other Computations)'!B130","v":{"v":139.5699624207603,"d":"139.57"}},{"$f":"(1-Inputs!B20)*D11/'(Other Computations)'!B130","v":{"v":139.25073810577,"d":"139.25"}},{"$f":"(1-Inputs!B20)*E11/'(Other Computations)'!B130","v":{"v":138.86925534986403,"d":"138.87"}},{"$f":"(1-Inputs!B20)*F11/'(Other Computations)'!B130","v":{"v":138.61758696069765,"d":"138.62"}},{"$f":"(1-Inputs!B20)*G11/'(Other Computations)'!B130","v":{"v":138.31843543155085,"d":"138.32"}},{"$f":"(1-Inputs!B20)*H11/'(Other Computations)'!B130","v":{"v":138.06730884545374,"d":"138.07"}},{"$f":"(1-Inputs!B20)*I11/'(Other Computations)'!B130","v":{"v":137.72879219857845,"d":"137.73"}},{"$f":"(1-Inputs!B20)*J11/'(Other Computations)'!B130","v":{"v":137.4619974464176,"d":"137.46"}},{"$f":"(1-Inputs!B20)*K11/'(Other Computations)'!B130","v":{"v":137.09161411654412,"d":"137.09"}},{"$f":"(1-Inputs!B20)*L11/'(Other Computations)'!B130","v":{"v":136.80075876036156,"d":"136.80"}},{"$f":"(1-Inputs!B20)*M11/'(Other Computations)'!B130","v":{"v":136.5496380226019,"d":"136.55"}},{"$f":"SUM(B29:M29)","v":{"v":1658.3260876586003,"d":"1,658.33"}},{"$f":"(1-Inputs!B20)*O11/'(Other Computations)'!B130","v":{"v":136.20802154357668,"d":"136.21"}},{"$f":"(1-Inputs!B20)*P11/'(Other Computations)'!B130","v":{"v":135.9279848360006,"d":"135.93"}},{"$f":"(1-Inputs!B20)*Q11/'(Other Computations)'!B130","v":{"v":135.61184205530984,"d":"135.61"}},{"$f":"(1-Inputs!B20)*R11/'(Other Computations)'!B130","v":{"v":135.39128278162477,"d":"135.39"}},{"$f":"(1-Inputs!B20)*S11/'(Other Computations)'!B130","v":{"v":135.14460820043047,"d":"135.14"}},{"$f":"(1-Inputs!B20)*T11/'(Other Computations)'!B130","v":{"v":134.86059018124908,"d":"134.86"}},{"$f":"(1-Inputs!B20)*U11/'(Other Computations)'!B130","v":{"v":134.56371487534878,"d":"134.56"}},{"$f":"(1-Inputs!B20)*V11/'(Other Computations)'!B130","v":{"v":134.18143775851735,"d":"134.18"}},{"$f":"(1-Inputs!B20)*W11/'(Other Computations)'!B130","v":{"v":133.86249324106834,"d":"133.86"}},{"$f":"(1-Inputs!B20)*X11/'(Other Computations)'!B130","v":{"v":133.61361395341646,"d":"133.61"}},{"$f":"(1-Inputs!B20)*Y11/'(Other Computations)'!B130","v":{"v":133.35340789191167,"d":"133.35"}},{"$f":"(1-Inputs!B20)*Z11/'(Other Computations)'!B130","v":{"v":133.06447096524826,"d":"133.06"}},{"$f":"SUM(O29:Z29)","v":{"v":1615.7834682837024,"d":"1,615.78"}},{"$f":"(1-Inputs!B20)*AB11/'(Other Computations)'!B130","v":{"v":132.70691083416966,"d":"132.71"}},{"$f":"(1-Inputs!B20)*AC11/'(Other Computations)'!B130","v":{"v":132.51646123017755,"d":"132.52"}},{"$f":"(1-Inputs!B20)*AD11/'(Other Computations)'!B130","v":{"v":132.22600731421747,"d":"132.23"}},{"$f":"(1-Inputs!B20)*AE11/'(Other Computations)'!B130","v":{"v":131.9155832479519,"d":"131.92"}},{"$f":"(1-Inputs!B20)*AF11/'(Other Computations)'!B130","v":{"v":131.71129579013302,"d":"131.71"}},{"$f":"(1-Inputs!B20)*AG11/'(Other Computations)'!B130","v":{"v":131.36692035197424,"d":"131.37"}},{"$f":"(1-Inputs!B20)*AH11/'(Other Computations)'!B130","v":{"v":131.16347780122157,"d":"131.16"}},{"$f":"(1-Inputs!B20)*AI11/'(Other Computations)'!B130","v":{"v":130.93261252726384,"d":"130.93"}},{"$f":"(1-Inputs!B20)*AJ11/'(Other Computations)'!B130","v":{"v":130.65132384103703,"d":"130.65"}},{"$f":"(1-Inputs!B20)*AK11/'(Other Computations)'!B130","v":{"v":130.44695100349327,"d":"130.45"}},{"$f":"(1-Inputs!B20)*AL11/'(Other Computations)'!B130","v":{"v":130.22276639819867,"d":"130.22"}},{"$f":"(1-Inputs!B20)*AM11/'(Other Computations)'!B130","v":{"v":129.9690232618757,"d":"129.97"}},{"$f":"SUM(AB29:AM29)","v":{"v":1575.829333601714,"d":"1,575.83"}},{"$f":"(1-Inputs!B20)*AO11/'(Other Computations)'!B130","v":{"v":129.71303616964505,"d":"129.71"}},{"$f":"(1-Inputs!B20)*AP11/'(Other Computations)'!B130","v":{"v":129.5352527901005,"d":"129.54"}},{"$f":"(1-Inputs!B20)*AQ11/'(Other Computations)'!B130","v":{"v":129.37073391512615,"d":"129.37"}},{"$f":"(1-Inputs!B20)*AR11/'(Other Computations)'!B130","v":{"v":129.06942560588428,"d":"129.07"}},{"$f":"(1-Inputs!B20)*AS11/'(Other Computations)'!B130","v":{"v":128.83407829856858,"d":"128.83"}},{"$f":"(1-Inputs!B20)*AT11/'(Other Computations)'!B130","v":{"v":128.66018702326045,"d":"128.66"}},{"$f":"(1-Inputs!B20)*AU11/'(Other Computations)'!B130","v":{"v":128.41754176112403,"d":"128.42"}},{"$f":"(1-Inputs!B20)*AV11/'(Other Computations)'!B130","v":{"v":128.15356406978614,"d":"128.15"}},{"$f":"(1-Inputs!B20)*AW11/'(Other Computations)'!B130","v":{"v":127.9627528876453,"d":"127.96"}},{"$f":"(1-Inputs!B20)*AX11/'(Other Computations)'!B130","v":{"v":127.7003625098221,"d":"127.70"}},{"$f":"(1-Inputs!B20)*AY11/'(Other Computations)'!B130","v":{"v":127.55503438530255,"d":"127.56"}},{"$f":"(1-Inputs!B20)*AZ11/'(Other Computations)'!B130","v":{"v":127.2971187897228,"d":"127.30"}},{"$f":"SUM(AO29:AZ29)","v":{"v":1542.269088205988,"d":"1,542.27"}},{"$f":"(1-Inputs!B20)*BB11/'(Other Computations)'!B130","v":{"v":127.01507461935357,"d":"127.02"}},{"$f":"(1-Inputs!B20)*BC11/'(Other Computations)'!B130","v":{"v":126.7968779349982,"d":"126.80"}},{"$f":"(1-Inputs!B20)*BD11/'(Other Computations)'!B130","v":{"v":126.51911983060461,"d":"126.52"}},{"$f":"(1-Inputs!B20)*BE11/'(Other Computations)'!B130","v":{"v":126.37000860489708,"d":"126.37"}},{"$f":"(1-Inputs!B20)*BF11/'(Other Computations)'!B130","v":{"v":126.08052971355006,"d":"126.08"}},{"$f":"(1-Inputs!B20)*BG11/'(Other Computations)'!B130","v":{"v":125.91037909915438,"d":"125.91"}},{"$f":"(1-Inputs!B20)*BH11/'(Other Computations)'!B130","v":{"v":125.62455416141356,"d":"125.62"}},{"$f":"(1-Inputs!B20)*BI11/'(Other Computations)'!B130","v":{"v":125.38788801921417,"d":"125.39"}},{"$f":"(1-Inputs!B20)*BJ11/'(Other Computations)'!B130","v":{"v":125.21748008663356,"d":"125.22"}},{"$f":"(1-Inputs!B20)*BK11/'(Other Computations)'!B130","v":{"v":125.03784030441547,"d":"125.04"}},{"$f":"(1-Inputs!B20)*BL11/'(Other Computations)'!B130","v":{"v":124.83785485241407,"d":"124.84"}},{"$f":"(1-Inputs!B20)*BM11/'(Other Computations)'!B130","v":{"v":124.70011827010092,"d":"124.70"}},{"$f":"SUM(BB29:BM29)","v":{"v":1509.4977254967498,"d":"1,509.50"}},{"$f":"(1-Inputs!B20)*BO11/'(Other Computations)'!B130","v":{"v":124.51827828952234,"d":"124.52"}},{"$f":"(1-Inputs!B20)*BP11/'(Other Computations)'!B130","v":{"v":124.34024811119507,"d":"124.34"}},{"$f":"(1-Inputs!B20)*BQ11/'(Other Computations)'!B130","v":{"v":124.18978113993967,"d":"124.19"}},{"$f":"(1-Inputs!B20)*BR11/'(Other Computations)'!B130","v":{"v":123.96698453459621,"d":"123.97"}},{"$f":"(1-Inputs!B20)*BS11/'(Other Computations)'!B130","v":{"v":123.80318522904265,"d":"123.80"}},{"$f":"(1-Inputs!B20)*BT11/'(Other Computations)'!B130","v":{"v":123.6754085543594,"d":"123.68"}},{"$f":"(1-Inputs!B20)*BU11/'(Other Computations)'!B130","v":{"v":123.49149064062988,"d":"123.49"}},{"$f":"(1-Inputs!B20)*BV11/'(Other Computations)'!B130","v":{"v":123.30104384198613,"d":"123.30"}},{"$f":"(1-Inputs!B20)*BW11/'(Other Computations)'!B130","v":{"v":123.09217632281829,"d":"123.09"}},{"$f":"(1-Inputs!B20)*BX11/'(Other Computations)'!B130","v":{"v":122.95565459494509,"d":"122.96"}},{"$f":"(1-Inputs!B20)*BY11/'(Other Computations)'!B130","v":{"v":122.73340099413063,"d":"122.73"}},{"$f":"(1-Inputs!B20)*BZ11/'(Other Computations)'!B130","v":{"v":122.64346801089063,"d":"122.64"}},{"$f":"SUM(BO29:BZ29)","v":{"v":1482.711120264056,"d":"1,482.71"}},{"$f":"(1-Inputs!B20)*CB11/'(Other Computations)'!B130","v":{"v":122.46716210088027,"d":"122.47"}},{"$f":"(1-Inputs!B20)*CC11/'(Other Computations)'!B130","v":{"v":122.33971115301574,"d":"122.34"}},{"$f":"(1-Inputs!B20)*CD11/'(Other Computations)'!B130","v":{"v":122.17295315008245,"d":"122.17"}},{"$f":"(1-Inputs!B20)*CE11/'(Other Computations)'!B130","v":{"v":122.02514924754729,"d":"122.03"}},{"$f":"(1-Inputs!B20)*CF11/'(Other Computations)'!B130","v":{"v":121.88097318863363,"d":"121.88"}},{"$f":"(1-Inputs!B20)*CG11/'(Other Computations)'!B130","v":{"v":121.73230956226506,"d":"121.73"}},{"$f":"(1-Inputs!B20)*CH11/'(Other Computations)'!B130","v":{"v":121.62613528476814,"d":"121.63"}},{"$f":"(1-Inputs!B20)*CI11/'(Other Computations)'!B130","v":{"v":121.52764705157377,"d":"121.53"}},{"$f":"(1-Inputs!B20)*CJ11/'(Other Computations)'!B130","v":{"v":121.44933058742356,"d":"121.45"}},{"$f":"(1-Inputs!B20)*CK11/'(Other Computations)'!B130","v":{"v":121.29306212932832,"d":"121.29"}},{"$f":"(1-Inputs!B20)*CL11/'(Other Computations)'!B130","v":{"v":121.18069634671922,"d":"121.18"}},{"$f":"(1-Inputs!B20)*CM11/'(Other Computations)'!B130","v":{"v":121.09067517178241,"d":"121.09"}},{"$f":"SUM(CB29:CM29)","v":{"v":1460.7858049740198,"d":"1,460.79"}},{"$f":"(1-Inputs!B20)*CO11/'(Other Computations)'!B130","v":{"v":121.02530507865882,"d":"121.03"}},{"$f":"(1-Inputs!B20)*CP11/'(Other Computations)'!B130","v":{"v":120.82464898014457,"d":"120.82"}},{"$f":"(1-Inputs!B20)*CQ11/'(Other Computations)'!B130","v":{"v":120.70936539177336,"d":"120.71"}},{"$f":"(1-Inputs!B20)*CR11/'(Other Computations)'!B130","v":{"v":120.54743678032092,"d":"120.55"}},{"$f":"(1-Inputs!B20)*CS11/'(Other Computations)'!B130","v":{"v":120.42520237137568,"d":"120.43"}},{"$f":"(1-Inputs!B20)*CT11/'(Other Computations)'!B130","v":{"v":120.2800221582876,"d":"120.28"}},{"$f":"(1-Inputs!B20)*CU11/'(Other Computations)'!B130","v":{"v":120.15501059437581,"d":"120.16"}},{"$f":"(1-Inputs!B20)*CV11/'(Other Computations)'!B130","v":{"v":120.05141494047344,"d":"120.05"}},{"$f":"(1-Inputs!B20)*CW11/'(Other Computations)'!B130","v":{"v":119.92216140519535,"d":"119.92"}},{"$f":"(1-Inputs!B20)*CX11/'(Other Computations)'!B130","v":{"v":119.74032686400741,"d":"119.74"}},{"$f":"(1-Inputs!B20)*CY11/'(Other Computations)'!B130","v":{"v":119.67777356655019,"d":"119.68"}},{"$f":"(1-Inputs!B20)*CZ11/'(Other Computations)'!B130","v":{"v":119.50948649559302,"d":"119.51"}},{"$f":"SUM(CO29:CZ29)","v":{"v":1442.8681546267562,"d":"1,442.87"}},{"$f":"(1-Inputs!B20)*DB11/'(Other Computations)'!B130","v":{"v":119.42650584482044,"d":"119.43"}},{"$f":"(1-Inputs!B20)*DC11/'(Other Computations)'!B130","v":{"v":119.24099647859849,"d":"119.24"}},{"$f":"(1-Inputs!B20)*DD11/'(Other Computations)'!B130","v":{"v":119.01990506792771,"d":"119.02"}},{"$f":"(1-Inputs!B20)*DE11/'(Other Computations)'!B130","v":{"v":118.88647569842902,"d":"118.89"}},{"$f":"(1-Inputs!B20)*DF11/'(Other Computations)'!B130","v":{"v":118.78184745317012,"d":"118.78"}},{"$f":"(1-Inputs!B20)*DG11/'(Other Computations)'!B130","v":{"v":118.66644800070236,"d":"118.67"}},{"$f":"(1-Inputs!B20)*DH11/'(Other Computations)'!B130","v":{"v":118.57181652576824,"d":"118.57"}},{"$f":"(1-Inputs!B20)*DI11/'(Other Computations)'!B130","v":{"v":118.46916286252615,"d":"118.47"}},{"$f":"(1-Inputs!B20)*DJ11/'(Other Computations)'!B130","v":{"v":118.35038589205125,"d":"118.35"}},{"$f":"(1-Inputs!B20)*DK11/'(Other Computations)'!B130","v":{"v":118.21206349350702,"d":"118.21"}},{"$f":"(1-Inputs!B20)*DL11/'(Other Computations)'!B130","v":{"v":118.11146802296844,"d":"118.11"}},{"$f":"(1-Inputs!B20)*DM11/'(Other Computations)'!B130","v":{"v":118.02739645096533,"d":"118.03"}},{"$f":"SUM(DB29:DM29)","v":{"v":1423.7644717914345,"d":"1,423.76"}},{"$f":"(1-Inputs!B20)*DO11/'(Other Computations)'!B130","v":{"v":117.92609400457523,"d":"117.93"}},{"$f":"(1-Inputs!B20)*DP11/'(Other Computations)'!B130","v":{"v":117.83624075560486,"d":"117.84"}},{"$f":"(1-Inputs!B20)*DQ11/'(Other Computations)'!B130","v":{"v":117.75262687634373,"d":"117.75"}},{"$f":"(1-Inputs!B20)*DR11/'(Other Computations)'!B130","v":{"v":117.73558069085209,"d":"117.74"}},{"$f":"(1-Inputs!B20)*DS11/'(Other Computations)'!B130","v":{"v":117.53448768847394,"d":"117.53"}},{"$f":"(1-Inputs!B20)*DT11/'(Other Computations)'!B130","v":{"v":117.39398444023324,"d":"117.39"}},{"$f":"(1-Inputs!B20)*DU11/'(Other Computations)'!B130","v":{"v":117.32352319634494,"d":"117.32"}},{"$f":"(1-Inputs!B20)*DV11/'(Other Computations)'!B130","v":{"v":117.20410214130357,"d":"117.20"}},{"$f":"(1-Inputs!B20)*DW11/'(Other Computations)'!B130","v":{"v":117.13609311341214,"d":"117.14"}},{"$f":"(1-Inputs!B20)*DX11/'(Other Computations)'!B130","v":{"v":117.08969556507762,"d":"117.09"}},{"$f":"(1-Inputs!B20)*DY11/'(Other Computations)'!B130","v":{"v":116.9698090260217,"d":"116.97"}},{"$f":"(1-Inputs!B20)*DZ11/'(Other Computations)'!B130","v":{"v":116.83405343735082,"d":"116.83"}},{"$f":"SUM(DO29:DZ29)","v":{"v":1408.7362909355938,"d":"1,408.74"}},{"$f":"(1-Inputs!B20)*EB11/'(Other Computations)'!B130","v":{"v":116.67119024628236,"d":"116.67"}},{"$f":"(1-Inputs!B20)*EC11/'(Other Computations)'!B130","v":{"v":116.56385409098856,"d":"116.56"}},{"$f":"(1-Inputs!B20)*ED11/'(Other Computations)'!B130","v":{"v":116.43720893545236,"d":"116.44"}},{"$f":"(1-Inputs!B20)*EE11/'(Other Computations)'!B130","v":{"v":116.35000385634618,"d":"116.35"}},{"$f":"(1-Inputs!B20)*EF11/'(Other Computations)'!B130","v":{"v":116.26343002784154,"d":"116.26"}},{"$f":"(1-Inputs!B20)*EG11/'(Other Computations)'!B130","v":{"v":116.1553109284859,"d":"116.16"}},{"$f":"(1-Inputs!B20)*EH11/'(Other Computations)'!B130","v":{"v":116.04862974708844,"d":"116.05"}},{"$f":"(1-Inputs!B20)*EI11/'(Other Computations)'!B130","v":{"v":115.9919726213101,"d":"115.99"}},{"$f":"(1-Inputs!B20)*EJ11/'(Other Computations)'!B130","v":{"v":115.8241228812579,"d":"115.82"}},{"$f":"(1-Inputs!B20)*EK11/'(Other Computations)'!B130","v":{"v":115.63822296275197,"d":"115.64"}},{"$f":"(1-Inputs!B20)*EL11/'(Other Computations)'!B130","v":{"v":115.60800195639577,"d":"115.61"}},{"$f":"(1-Inputs!B20)*EM11/'(Other Computations)'!B130","v":{"v":115.54465612476373,"d":"115.54"}},{"$f":"SUM(EB29:EM29)","v":{"v":1393.0966043789651,"d":"1,393.10"}}]
[]
[]
[{"$f":"\"Income\"","v":"Income"}]
[{"$f":"\" \"","v":" "}]
[null,{"$f":"ZZZ__FnCalls!F7","v":"Jan 2010"},{"$f":"ZZZ__FnCalls!F8","v":"Feb 2010"},{"$f":"ZZZ__FnCalls!F9","v":"Mar 2010"},{"$f":"ZZZ__FnCalls!F10","v":"Apr 2010"},{"$f":"ZZZ__FnCalls!F11","v":"May 2010"},{"$f":"ZZZ__FnCalls!F12","v":"Jun 2010"},{"$f":"ZZZ__FnCalls!F13","v":"Jul 2010"},{"$f":"ZZZ__FnCalls!F14","v":"Aug 2010"},{"$f":"ZZZ__FnCalls!F15","v":"Sep 2010"},{"$f":"ZZZ__FnCalls!F16","v":"Oct 2010"},{"$f":"ZZZ__FnCalls!F17","v":"Nov 2010"},{"$f":"ZZZ__FnCalls!F18","v":"Dec 2010"},{"$f":"ZZZ__FnCalls!H7","v":"2010"},{"$f":"ZZZ__FnCalls!F19","v":"Jan 2011"},{"$f":"ZZZ__FnCalls!F20","v":"Feb 2011"},{"$f":"ZZZ__FnCalls!F21","v":"Mar 2011"},{"$f":"ZZZ__FnCalls!F22","v":"Apr 2011"},{"$f":"ZZZ__FnCalls!F23","v":"May 2011"},{"$f":"ZZZ__FnCalls!F24","v":"Jun 2011"},{"$f":"ZZZ__FnCalls!F25","v":"Jul 2011"},{"$f":"ZZZ__FnCalls!F26","v":"Aug 2011"},{"$f":"ZZZ__FnCalls!F27","v":"Sep 2011"},{"$f":"ZZZ__FnCalls!F28","v":"Oct 2011"},{"$f":"ZZZ__FnCalls!F29","v":"Nov 2011"},{"$f":"ZZZ__FnCalls!F30","v":"Dec 2011"},{"$f":"ZZZ__FnCalls!H19","v":"2011"},{"$f":"ZZZ__FnCalls!F31","v":"Jan 2012"},{"$f":"ZZZ__FnCalls!F32","v":"Feb 2012"},{"$f":"ZZZ__FnCalls!F33","v":"Mar 2012"},{"$f":"ZZZ__FnCalls!F34","v":"Apr 2012"},{"$f":"ZZZ__FnCalls!F35","v":"May 2012"},{"$f":"ZZZ__FnCalls!F36","v":"Jun 2012"},{"$f":"ZZZ__FnCalls!F37","v":"Jul 2012"},{"$f":"ZZZ__FnCalls!F38","v":"Aug 2012"},{"$f":"ZZZ__FnCalls!F39","v":"Sep 2012"},{"$f":"ZZZ__FnCalls!F40","v":"Oct 2012"},{"$f":"ZZZ__FnCalls!F41","v":"Nov 2012"},{"$f":"ZZZ__FnCalls!F42","v":"Dec 2012"},{"$f":"ZZZ__FnCalls!H31","v":"2012"},{"$f":"ZZZ__FnCalls!F43","v":"Jan 2013"},{"$f":"ZZZ__FnCalls!F44","v":"Feb 2013"},{"$f":"ZZZ__FnCalls!F45","v":"Mar 2013"},{"$f":"ZZZ__FnCalls!F46","v":"Apr 2013"},{"$f":"ZZZ__FnCalls!F47","v":"May 2013"},{"$f":"ZZZ__FnCalls!F48","v":"Jun 2013"},{"$f":"ZZZ__FnCalls!F49","v":"Jul 2013"},{"$f":"ZZZ__FnCalls!F50","v":"Aug 2013"},{"$f":"ZZZ__FnCalls!F51","v":"Sep 2013"},{"$f":"ZZZ__FnCalls!F52","v":"Oct 2013"},{"$f":"ZZZ__FnCalls!F53","v":"Nov 2013"},{"$f":"ZZZ__FnCalls!F54","v":"Dec 2013"},{"$f":"ZZZ__FnCalls!H43","v":"2013"},{"$f":"ZZZ__FnCalls!F55","v":"Jan 2014"},{"$f":"ZZZ__FnCalls!F56","v":"Feb 2014"},{"$f":"ZZZ__FnCalls!F57","v":"Mar 2014"},{"$f":"ZZZ__FnCalls!F58","v":"Apr 2014"},{"$f":"ZZZ__FnCalls!F59","v":"May 2014"},{"$f":"ZZZ__FnCalls!F60","v":"Jun 2014"},{"$f":"ZZZ__FnCalls!F61","v":"Jul 2014"},{"$f":"ZZZ__FnCalls!F62","v":"Aug 2014"},{"$f":"ZZZ__FnCalls!F63","v":"Sep 2014"},{"$f":"ZZZ__FnCalls!F64","v":"Oct 2014"},{"$f":"ZZZ__FnCalls!F65","v":"Nov 2014"},{"$f":"ZZZ__FnCalls!F66","v":"Dec 2014"},{"$f":"ZZZ__FnCalls!H55","v":"2014"},{"$f":"ZZZ__FnCalls!F67","v":"Jan 2015"},{"$f":"ZZZ__FnCalls!F68","v":"Feb 2015"},{"$f":"ZZZ__FnCalls!F69","v":"Mar 2015"},{"$f":"ZZZ__FnCalls!F70","v":"Apr 2015"},{"$f":"ZZZ__FnCalls!F71","v":"May 2015"},{"$f":"ZZZ__FnCalls!F72","v":"Jun 2015"},{"$f":"ZZZ__FnCalls!F73","v":"Jul 2015"},{"$f":"ZZZ__FnCalls!F74","v":"Aug 2015"},{"$f":"ZZZ__FnCalls!F75","v":"Sep 2015"},{"$f":"ZZZ__FnCalls!F76","v":"Oct 2015"},{"$f":"ZZZ__FnCalls!F77","v":"Nov 2015"},{"$f":"ZZZ__FnCalls!F78","v":"Dec 2015"},{"$f":"ZZZ__FnCalls!H67","v":"2015"},{"$f":"ZZZ__FnCalls!F79","v":"Jan 2016"},{"$f":"ZZZ__FnCalls!F80","v":"Feb 2016"},{"$f":"ZZZ__FnCalls!F81","v":"Mar 2016"},{"$f":"ZZZ__FnCalls!F82","v":"Apr 2016"},{"$f":"ZZZ__FnCalls!F83","v":"May 2016"},{"$f":"ZZZ__FnCalls!F84","v":"Jun 2016"},{"$f":"ZZZ__FnCalls!F85","v":"Jul 2016"},{"$f":"ZZZ__FnCalls!F86","v":"Aug 2016"},{"$f":"ZZZ__FnCalls!F87","v":"Sep 2016"},{"$f":"ZZZ__FnCalls!F88","v":"Oct 2016"},{"$f":"ZZZ__FnCalls!F89","v":"Nov 2016"},{"$f":"ZZZ__FnCalls!F90","v":"Dec 2016"},{"$f":"ZZZ__FnCalls!H79","v":"2016"},{"$f":"ZZZ__FnCalls!F91","v":"Jan 2017"},{"$f":"ZZZ__FnCalls!F92","v":"Feb 2017"},{"$f":"ZZZ__FnCalls!F93","v":"Mar 2017"},{"$f":"ZZZ__FnCalls!F94","v":"Apr 2017"},{"$f":"ZZZ__FnCalls!F95","v":"May 2017"},{"$f":"ZZZ__FnCalls!F96","v":"Jun 2017"},{"$f":"ZZZ__FnCalls!F97","v":"Jul 2017"},{"$f":"ZZZ__FnCalls!F98","v":"Aug 2017"},{"$f":"ZZZ__FnCalls!F99","v":"Sep 2017"},{"$f":"ZZZ__FnCalls!F100","v":"Oct 2017"},{"$f":"ZZZ__FnCalls!F101","v":"Nov 2017"},{"$f":"ZZZ__FnCalls!F102","v":"Dec 2017"},{"$f":"ZZZ__FnCalls!H91","v":"2017"},{"$f":"ZZZ__FnCalls!F103","v":"Jan 2018"},{"$f":"ZZZ__FnCalls!F104","v":"Feb 2018"},{"$f":"ZZZ__FnCalls!F105","v":"Mar 2018"},{"$f":"ZZZ__FnCalls!F106","v":"Apr 2018"},{"$f":"ZZZ__FnCalls!F107","v":"May 2018"},{"$f":"ZZZ__FnCalls!F108","v":"Jun 2018"},{"$f":"ZZZ__FnCalls!F109","v":"Jul 2018"},{"$f":"ZZZ__FnCalls!F110","v":"Aug 2018"},{"$f":"ZZZ__FnCalls!F111","v":"Sep 2018"},{"$f":"ZZZ__FnCalls!F112","v":"Oct 2018"},{"$f":"ZZZ__FnCalls!F113","v":"Nov 2018"},{"$f":"ZZZ__FnCalls!F114","v":"Dec 2018"},{"$f":"ZZZ__FnCalls!H103","v":"2018"},{"$f":"ZZZ__FnCalls!F115","v":"Jan 2019"},{"$f":"ZZZ__FnCalls!F116","v":"Feb 2019"},{"$f":"ZZZ__FnCalls!F117","v":"Mar 2019"},{"$f":"ZZZ__FnCalls!F118","v":"Apr 2019"},{"$f":"ZZZ__FnCalls!F119","v":"May 2019"},{"$f":"ZZZ__FnCalls!F120","v":"Jun 2019"},{"$f":"ZZZ__FnCalls!F121","v":"Jul 2019"},{"$f":"ZZZ__FnCalls!F122","v":"Aug 2019"},{"$f":"ZZZ__FnCalls!F123","v":"Sep 2019"},{"$f":"ZZZ__FnCalls!F124","v":"Oct 2019"},{"$f":"ZZZ__FnCalls!F125","v":"Nov 2019"},{"$f":"ZZZ__FnCalls!F126","v":"Dec 2019"},{"$f":"ZZZ__FnCalls!H115","v":"2019"},{"$f":"ZZZ__FnCalls!F127","v":"Jan 2020"},{"$f":"ZZZ__FnCalls!F128","v":"Feb 2020"},{"$f":"ZZZ__FnCalls!F129","v":"Mar 2020"},{"$f":"ZZZ__FnCalls!F130","v":"Apr 2020"},{"$f":"ZZZ__FnCalls!F131","v":"May 2020"},{"$f":"ZZZ__FnCalls!F132","v":"Jun 2020"},{"$f":"ZZZ__FnCalls!F133","v":"Jul 2020"},{"$f":"ZZZ__FnCalls!F134","v":"Aug 2020"},{"$f":"ZZZ__FnCalls!F135","v":"Sep 2020"},{"$f":"ZZZ__FnCalls!F136","v":"Oct 2020"},{"$f":"ZZZ__FnCalls!F137","v":"Nov 2020"},{"$f":"ZZZ__FnCalls!F138","v":"Dec 2020"},{"$f":"ZZZ__FnCalls!H127","v":"2020"}]
[{"$f":"Labels!B55","v":"Current Disposable Income"},{"$f":"B44-B54+B38","v":{"v":819823.0727026226,"d":"$819,823"}},{"v":853493.8755850921,"d":"$853,494"},{"v":815955.1359985956,"d":"$815,955"},{"v":808470.3712733049,"d":"$808,470"},{"v":841850.8018481486,"d":"$841,851"},{"v":822737.9215963477,"d":"$822,738"},{"v":830169.8527234172,"d":"$830,170"},{"v":829366.245581959,"d":"$829,366"},{"v":849567.9799914908,"d":"$849,568"},{"v":801520.4807548019,"d":"$801,520"},{"v":809870.2986106689,"d":"$809,870"},{"v":824381.7435983516,"d":"$824,382"},{"$f":"SUM(B35:M35)","v":{"v":9907207.7802648,"d":"$9,907,208"}},{"$f":"O44-O54+O38","v":{"v":811788.6108104863,"d":"$811,789"}},{"v":832002.2643947542,"d":"$832,002"},{"v":800644.5191399471,"d":"$800,645"},{"v":840206.7217531876,"d":"$840,207"},{"v":856876.5354658185,"d":"$856,877"},{"v":799673.512315563,"d":"$799,674"},{"v":838126.8742221253,"d":"$838,127"},{"v":841759.0634206486,"d":"$841,759"},{"v":801900.6339921689,"d":"$801,901"},{"v":821821.2059720887,"d":"$821,821"},{"v":774314.4868914107,"d":"$774,314"},{"v":812293.9365895346,"d":"$812,294"},{"$f":"SUM(O35:Z35)","v":{"v":9831408.364967734,"d":"$9,831,408"}},{"$f":"AB44-AB54+AB38","v":{"v":814522.309066637,"d":"$814,522"}},{"v":831459.0321482896,"d":"$831,459"},{"v":799097.3499590891,"d":"$799,097"},{"v":812668.8839813186,"d":"$812,669"},{"v":809088.6201184609,"d":"$809,089"},{"v":796868.7914490536,"d":"$796,869"},{"v":773847.5843674482,"d":"$773,848"},{"v":812266.8114469805,"d":"$812,267"},{"v":811125.6641734694,"d":"$811,126"},{"v":803919.1976749051,"d":"$803,919"},{"v":778512.1034644445,"d":"$778,512"},{"v":834680.6928823858,"d":"$834,681"},{"$f":"SUM(AB35:AM35)","v":{"v":9678057.04073248,"d":"$9,678,057"}},{"$f":"AO44-AO54+AO38","v":{"v":775518.0722934256,"d":"$775,518"}},{"v":801646.2237176817,"d":"$801,646"},{"v":831066.3014524417,"d":"$831,066"},{"v":815131.2807394406,"d":"$815,131"},{"v":786812.5419237129,"d":"$786,813"},{"v":799375.7148845305,"d":"$799,376"},{"v":820163.4394740894,"d":"$820,163"},{"v":812271.6637343437,"d":"$812,272"},{"v":750283.5405912186,"d":"$750,284"},{"v":817022.7588706863,"d":"$817,023"},{"v":778096.2361210566,"d":"$778,096"},{"v":785686.1743945506,"d":"$785,686"},{"$f":"SUM(AO35:AZ35)","v":{"v":9573073.948197177,"d":"$9,573,074"}},{"$f":"BB44-BB54+BB38","v":{"v":810121.3234875288,"d":"$810,121"}},{"v":819689.0503149455,"d":"$819,689"},{"v":780351.5248302673,"d":"$780,352"},{"v":800382.0465341631,"d":"$800,382"},{"v":783368.6882630631,"d":"$783,369"},{"v":784798.5596735942,"d":"$784,799"},{"v":813652.2491681575,"d":"$813,652"},{"v":776929.0854940788,"d":"$776,929"},{"v":745015.6460295975,"d":"$745,016"},{"v":747218.3977143372,"d":"$747,218"},{"v":780214.946934187,"d":"$780,215"},{"v":738358.1828496837,"d":"$738,358"},{"$f":"SUM(BB35:BM35)","v":{"v":9380099.701293603,"d":"$9,380,100"}},{"$f":"BO44-BO54+BO38","v":{"v":768355.0974031135,"d":"$768,355"}},{"v":760049.1770910075,"d":"$760,049"},{"v":767086.176764229,"d":"$767,086"},{"v":799205.6930547464,"d":"$799,206"},{"v":771476.9495922778,"d":"$771,477"},{"v":780556.6282191823,"d":"$780,557"},{"v":739066.2269421889,"d":"$739,066"},{"v":769779.3875362576,"d":"$769,779"},{"v":782542.1162556045,"d":"$782,542"},{"v":755421.0188046617,"d":"$755,421"},{"v":746411.0313238942,"d":"$746,411"},{"v":734215.3800312739,"d":"$734,215"},{"$f":"SUM(BO35:BZ35)","v":{"v":9174164.883018438,"d":"$9,174,165"}},{"$f":"CB44-CB54+CB38","v":{"v":765142.072893971,"d":"$765,142"}},{"v":775309.6083633021,"d":"$775,310"},{"v":728735.9739124099,"d":"$728,736"},{"v":729116.5434602193,"d":"$729,117"},{"v":767292.9953251693,"d":"$767,293"},{"v":746951.1408737208,"d":"$746,951"},{"v":729739.0269545387,"d":"$729,739"},{"v":779970.2238768098,"d":"$779,970"},{"v":759972.3167579066,"d":"$759,972"},{"v":759769.2084151811,"d":"$759,769"},{"v":731034.937600645,"d":"$731,035"},{"v":734232.7907307593,"d":"$734,233"},{"$f":"SUM(CB35:CM35)","v":{"v":9007266.839164633,"d":"$9,007,267"}},{"$f":"CO44-CO54+CO38","v":{"v":761855.591902928,"d":"$761,856"}},{"v":752892.4269114727,"d":"$752,892"},{"v":753723.9637462053,"d":"$753,724"},{"v":723933.4480440092,"d":"$723,933"},{"v":753013.1877231097,"d":"$753,013"},{"v":787768.0817142379,"d":"$787,768"},{"v":737127.9462445354,"d":"$737,128"},{"v":750665.6593096802,"d":"$750,666"},{"v":723085.0356170252,"d":"$723,085"},{"v":757657.9547515797,"d":"$757,658"},{"v":772289.497916887,"d":"$772,289"},{"v":773018.6129940484,"d":"$773,019"},{"$f":"SUM(CO35:CZ35)","v":{"v":9047031.40687572,"d":"$9,047,031"}},{"$f":"DB44-DB54+DB38","v":{"v":743236.723091541,"d":"$743,237"}},{"v":706358.8273468919,"d":"$706,359"},{"v":736413.1243352155,"d":"$736,413"},{"v":733585.6967387357,"d":"$733,586"},{"v":731846.1153059681,"d":"$731,846"},{"v":730154.7552259191,"d":"$730,155"},{"v":762808.4572110042,"d":"$762,808"},{"v":759999.329433093,"d":"$759,999"},{"v":765333.5660739893,"d":"$765,334"},{"v":736797.8499434235,"d":"$736,798"},{"v":710651.1016854121,"d":"$710,651"},{"v":739161.6050574247,"d":"$739,162"},{"$f":"SUM(DB35:DM35)","v":{"v":8856347.151448619,"d":"$8,856,347"}},{"$f":"DO44-DO54+DO38","v":{"v":766863.1305960506,"d":"$766,863"}},{"v":766498.0778827459,"d":"$766,498"},{"v":743002.6932308535,"d":"$743,003"},{"v":771241.9912607113,"d":"$771,242"},{"v":743158.8971045151,"d":"$743,159"},{"v":733104.9323185413,"d":"$733,105"},{"v":745030.5865016818,"d":"$745,031"},{"v":690743.4691244344,"d":"$690,743"},{"v":759461.4161444738,"d":"$759,461"},{"v":734694.5926480443,"d":"$734,695"},{"v":765045.4780502814,"d":"$765,045"},{"v":720584.6119503587,"d":"$720,585"},{"$f":"SUM(DO35:DZ35)","v":{"v":8939429.876812693,"d":"$8,939,430"}},{"$f":"EB44-EB54+EB38","v":{"v":747561.8588954961,"d":"$747,562"}},{"v":755554.7405399512,"d":"$755,555"},{"v":701129.7247178246,"d":"$701,130"},{"v":716118.4643197994,"d":"$716,118"},{"v":711366.2687294121,"d":"$711,366"},{"v":736059.4396526489,"d":"$736,059"},{"v":688910.7042701292,"d":"$688,911"},{"v":685207.1793011591,"d":"$685,207"},{"v":707465.7966462012,"d":"$707,466"},{"v":718613.251297198,"d":"$718,613"},{"v":712049.1610952752,"d":"$712,049"},{"v":758593.9892758512,"d":"$758,594"},{"$f":"SUM(EB35:EM35)","v":{"v":8638630.578740947,"d":"$8,638,631"}}]
[{"$f":"Labels!B45","v":"Final Sales"},{"$f":"B12+B21+B37","v":{"v":963388.6810828955,"d":"$963,389"}},{"v":962650.0576522764,"d":"$962,650"},{"v":962120.0104089021,"d":"$962,120"},{"v":961440.5646771473,"d":"$961,441"},{"v":960898.9255011125,"d":"$960,899"},{"v":960377.5758312527,"d":"$960,378"},{"v":959873.6981314364,"d":"$959,874"},{"v":959288.4595912547,"d":"$959,288"},{"v":958788.1395260411,"d":"$958,788"},{"v":958215.3588899716,"d":"$958,215"},{"v":957634.2564802354,"d":"$957,634"},{"v":957119.4156334867,"d":"$957,119"},{"$f":"SUM(B36:M36)","v":{"v":11521795.143406011,"d":"$11,521,795"}},{"$f":"O12+O21+O37","v":{"v":956534.6648122928,"d":"$956,535"}},{"v":955997.3091334156,"d":"$955,997"},{"v":955464.7211254669,"d":"$955,465"},{"v":954976.939980815,"d":"$954,977"},{"v":954546.278660914,"d":"$954,546"},{"v":954111.1365855507,"d":"$954,111"},{"v":953539.8672893665,"d":"$953,540"},{"v":952956.8718070297,"d":"$952,957"},{"v":952458.3010564011,"d":"$952,458"},{"v":951955.750175688,"d":"$951,956"},{"v":951484.7969820335,"d":"$951,485"},{"v":950879.9404473134,"d":"$950,880"},{"$f":"SUM(O36:Z36)","v":{"v":11444906.578056287,"d":"$11,444,907"}},{"$f":"AB12+AB21+AB37","v":{"v":950281.3897236864,"d":"$950,281"}},{"v":949882.547203194,"d":"$949,883"},{"v":949405.5806663359,"d":"$949,406"},{"v":948838.2664767933,"d":"$948,838"},{"v":948424.4231355203,"d":"$948,424"},{"v":947842.544030188,"d":"$947,843"},{"v":947399.2089579761,"d":"$947,399"},{"v":946874.5494832869,"d":"$946,875"},{"v":946376.9438153988,"d":"$946,377"},{"v":945967.0560746888,"d":"$945,967"},{"v":945519.1118167605,"d":"$945,519"},{"v":944983.4402348619,"d":"$944,983"},{"$f":"SUM(AB36:AM36)","v":{"v":11371795.06161869,"d":"$11,371,795"}},{"$f":"AO12+AO21+AO37","v":{"v":944568.6256345666,"d":"$944,569"}},{"v":944116.4176647885,"d":"$944,116"},{"v":943736.0714117208,"d":"$943,736"},{"v":943262.9426095712,"d":"$943,263"},{"v":942833.5062422402,"d":"$942,834"},{"v":942413.6456442992,"d":"$942,414"},{"v":941942.2248910648,"d":"$941,942"},{"v":941493.0219100132,"d":"$941,493"},{"v":941111.9333633176,"d":"$941,112"},{"v":940514.4289315472,"d":"$940,514"},{"v":940197.7462932926,"d":"$940,198"},{"v":939666.7366931231,"d":"$939,667"},{"$f":"SUM(AO36:AZ36)","v":{"v":11305857.301289547,"d":"$11,305,857"}},{"$f":"BB12+BB21+BB37","v":{"v":939126.6819623524,"d":"$939,127"}},{"v":938714.4658430016,"d":"$938,714"},{"v":938254.9529004368,"d":"$938,255"},{"v":937859.2875139422,"d":"$937,859"},{"v":937345.2992456952,"d":"$937,345"},{"v":936933.6466636955,"d":"$936,934"},{"v":936391.9297823564,"d":"$936,392"},{"v":935971.386651053,"d":"$935,971"},{"v":935547.6010989068,"d":"$935,548"},{"v":935043.8232159353,"d":"$935,044"},{"v":934522.0702979083,"d":"$934,522"},{"v":934143.9940796861,"d":"$934,144"},{"$f":"SUM(BB36:BM36)","v":{"v":11239855.13925497,"d":"$11,239,855"}},{"$f":"BO12+BO21+BO37","v":{"v":933624.0686545098,"d":"$933,624"}},{"v":933174.3929868472,"d":"$933,174"},{"v":932738.6372868262,"d":"$932,739"},{"v":932235.1689889567,"d":"$932,235"},{"v":931870.2980618695,"d":"$931,870"},{"v":931486.229153024,"d":"$931,486"},{"v":931057.0411404949,"d":"$931,057"},{"v":930531.2654334203,"d":"$930,531"},{"v":930051.7019940224,"d":"$930,052"},{"v":929683.557495557,"d":"$929,684"},{"v":929157.7552379713,"d":"$929,158"},{"v":928765.6293952494,"d":"$928,766"},{"$f":"SUM(BO36:BZ36)","v":{"v":11174375.74582875,"d":"$11,174,376"}},{"$f":"CB12+CB21+CB37","v":{"v":928246.7150645044,"d":"$928,247"}},{"v":927852.0014567489,"d":"$927,852"},{"v":927433.8155175728,"d":"$927,434"},{"v":926936.9946291485,"d":"$926,937"},{"v":926445.3756521338,"d":"$926,445"},{"v":926031.6256331655,"d":"$926,032"},{"v":925622.6668234656,"d":"$925,623"},{"v":925184.7208462966,"d":"$925,185"},{"v":924878.5014212535,"d":"$924,879"},{"v":924438.831981445,"d":"$924,439"},{"v":924049.950481577,"d":"$924,050"},{"v":923623.991932481,"d":"$923,624"},{"$f":"SUM(CB36:CM36)","v":{"v":11110745.191439793,"d":"$11,110,745"}},{"$f":"CO12+CO21+CO37","v":{"v":923232.8690599436,"d":"$923,233"}},{"v":922745.9728942737,"d":"$922,746"},{"v":922339.3905521914,"d":"$922,339"},{"v":921880.6115621426,"d":"$921,881"},{"v":921403.6759082571,"d":"$921,404"},{"v":920963.4897011708,"d":"$920,963"},{"v":920622.2848780289,"d":"$920,622"},{"v":920195.7310025244,"d":"$920,196"},{"v":919769.0094177587,"d":"$919,769"},{"v":919222.7488759153,"d":"$919,223"},{"v":918889.4888529093,"d":"$918,889"},{"v":918465.4314458425,"d":"$918,465"},{"$f":"SUM(CO36:CZ36)","v":{"v":11049730.704150958,"d":"$11,049,731"}},{"$f":"DB12+DB21+DB37","v":{"v":918142.0622543928,"d":"$918,142"}},{"v":917635.7496148043,"d":"$917,636"},{"v":917010.5191585278,"d":"$917,011"},{"v":916552.7479006567,"d":"$916,553"},{"v":916121.6755368816,"d":"$916,122"},{"v":915674.4197910925,"d":"$915,674"},{"v":915247.6471368173,"d":"$915,248"},{"v":914882.3511269343,"d":"$914,882"},{"v":914492.531536362,"d":"$914,493"},{"v":914092.1899991815,"d":"$914,092"},{"v":913673.787388893,"d":"$913,674"},{"v":913217.5474368857,"d":"$913,218"},{"$f":"SUM(DB36:DM36)","v":{"v":10986743.228881428,"d":"$10,986,743"}},{"$f":"DO12+DO21+DO37","v":{"v":912803.3512708812,"d":"$912,803"}},{"v":912462.5892521179,"d":"$912,463"},{"v":912127.9985114073,"d":"$912,128"},{"v":911818.5656893105,"d":"$911,819"},{"v":911358.2294938079,"d":"$911,358"},{"v":910908.9862138912,"d":"$910,909"},{"v":910518.4723926774,"d":"$910,518"},{"v":910097.1517414835,"d":"$910,097"},{"v":909617.9042597696,"d":"$909,618"},{"v":909312.1377116841,"d":"$909,312"},{"v":908867.9126486317,"d":"$908,868"},{"v":908472.3599916234,"d":"$908,472"},{"$f":"SUM(DO36:DZ36)","v":{"v":10928365.659177283,"d":"$10,928,366"}},{"$f":"EB12+EB21+EB37","v":{"v":907950.1177888962,"d":"$907,950"}},{"v":907551.3000585333,"d":"$907,551"},{"v":907147.6420686741,"d":"$907,148"},{"v":906671.9164210103,"d":"$906,672"},{"v":906229.5199026243,"d":"$906,230"},{"v":905752.4597234499,"d":"$905,752"},{"v":905331.3133325896,"d":"$905,331"},{"v":904865.7689571017,"d":"$904,866"},{"v":904264.6276110068,"d":"$904,265"},{"v":903693.3097013861,"d":"$903,693"},{"v":903326.191269965,"d":"$903,326"},{"v":902905.4832626862,"d":"$902,905"},{"$f":"SUM(EB36:EM36)","v":{"v":10865689.650097923,"d":"$10,865,690"}}]
[{"$f":"Labels!B51","v":"Gov Spending"},{"$f":"'(Other Computations)'!B11/8","v":{"v":29166.66666666667,"d":"$29,167"}},{"$f":"'(Other Computations)'!B11/8","v":{"v":29166.66666666667,"d":"$29,167"}},{"$f":"'(Other Computations)'!B11/8","v":{"v":29166.66666666667,"d":"$29,167"}},{"$f":"'(Other Computations)'!B11/8","v":{"v":29166.66666666667,"d":"$29,167"}},{"$f":"'(Other Computations)'!B11/8","v":{"v":29166.66666666667,"d":"$29,167"}},{"$f":"'(Other Computations)'!B11/8","v":{"v":29166.66666666667,"d":"$29,167"}},{"$f":"'(Other Computations)'!B11/8","v":{"v":29166.66666666667,"d":"$29,167"}},{"$f":"'(Other Computations)'!B11/8","v":{"v":29166.66666666667,"d":"$29,167"}},{"$f":"'(Other Computations)'!B11/8","v":{"v":29166.66666666667,"d":"$29,167"}},{"$f":"'(Other Computations)'!B11/8","v":{"v":29166.66666666667,"d":"$29,167"}},{"$f":"'(Other Computations)'!B11/8","v":{"v":29166.66666666667,"d":"$29,167"}},{"$f":"'(Other Computations)'!B11/8","v":{"v":29166.66666666667,"d":"$29,167"}},{"$f":"SUM(B37:M37)","v":{"v":350000.0000000002,"d":"$350,000"}},{"$f":"'(Other Computations)'!B11/8","v":{"v":29166.66666666667,"d":"$29,167"}},{"$f":"'(Other Computations)'!B11/8","v":{"v":29166.66666666667,"d":"$29,167"}},{"$f":"'(Other Computations)'!B11/8","v":{"v":29166.66666666667,"d":"$29,167"}},{"$f":"'(Other Computations)'!B11/8","v":{"v":29166.66666666667,"d":"$29,167"}},{"$f":"'(Other Computations)'!B11/8","v":{"v":29166.66666666667,"d":"$29,167"}},{"$f":"'(Other Computations)'!B11/8","v":{"v":29166.66666666667,"d":"$29,167"}},{"$f":"'(Other Computations)'!B11/8","v":{"v":29166.66666666667,"d":"$29,167"}},{"$f":"'(Other Computations)'!B11/8","v":{"v":29166.66666666667,"d":"$29,167"}},{"$f":"'(Other Computations)'!B11/8","v":{"v":29166.66666666667,"d":"$29,167"}},{"$f":"'(Other Computations)'!B11/8","v":{"v":29166.66666666667,"d":"$29,167"}},{"$f":"'(Other Computations)'!B11/8","v":{"v":29166.66666666667,"d":"$29,167"}},{"$f":"'(Other Computations)'!B11/8","v":{"v":29166.66666666667,"d":"$29,167"}},{"$f":"SUM(O37:Z37)","v":{"v":350000.0000000002,"d":"$350,000"}},{"$f":"'(Other Computations)'!B11/8","v":{"v":29166.66666666667,"d":"$29,167"}},{"$f":"'(Other Computations)'!B11/8","v":{"v":29166.66666666667,"d":"$29,167"}},{"$f":"'(Other Computations)'!B11/8","v":{"v":29166.66666666667,"d":"$29,167"}},{"$f":"'(Other Computations)'!B11/8","v":{"v":29166.66666666667,"d":"$29,167"}},{"$f":"'(Other Computations)'!B11/8","v":{"v":29166.66666666667,"d":"$29,167"}},{"$f":"'(Other Computations)'!B11/8","v":{"v":29166.66666666667,"d":"$29,167"}},{"$f":"'(Other Computations)'!B11/8","v":{"v":29166.66666666667,"d":"$29,167"}},{"$f":"'(Other Computations)'!B11/8","v":{"v":29166.66666666667,"d":"$29,167"}},{"$f":"'(Other Computations)'!B11/8","v":{"v":29166.66666666667,"d":"$29,167"}},{"$f":"'(Other Computations)'!B11/8","v":{"v":29166.66666666667,"d":"$29,167"}},{"$f":"'(Other Computations)'!B11/8","v":{"v":29166.66666666667,"d":"$29,167"}},{"$f":"'(Other Computations)'!B11/8","v":{"v":29166.66666666667,"d":"$29,167"}},{"$f":"SUM(AB37:AM37)","v":{"v":350000.0000000002,"d":"$350,000"}},{"$f":"'(Other Computations)'!B11/8","v":{"v":29166.66666666667,"d":"$29,167"}},{"$f":"'(Other Computations)'!B11/8","v":{"v":29166.66666666667,"d":"$29,167"}},{"$f":"'(Other Computations)'!B11/8","v":{"v":29166.66666666667,"d":"$29,167"}},{"$f":"'(Other Computations)'!B11/8","v":{"v":29166.66666666667,"d":"$29,167"}},{"$f":"'(Other Computations)'!B11/8","v":{"v":29166.66666666667,"d":"$29,167"}},{"$f":"'(Other Computations)'!B11/8","v":{"v":29166.66666666667,"d":"$29,167"}},{"$f":"'(Other Computations)'!B11/8","v":{"v":29166.66666666667,"d":"$29,167"}},{"$f":"'(Other Computations)'!B11/8","v":{"v":29166.66666666667,"d":"$29,167"}},{"$f":"'(Other Computations)'!B11/8","v":{"v":29166.66666666667,"d":"$29,167"}},{"$f":"'(Other Computations)'!B11/8","v":{"v":29166.66666666667,"d":"$29,167"}},{"$f":"'(Other Computations)'!B11/8","v":{"v":29166.66666666667,"d":"$29,167"}},{"$f":"'(Other Computations)'!B11/8","v":{"v":29166.66666666667,"d":"$29,167"}},{"$f":"SUM(AO37:AZ37)","v":{"v":350000.0000000002,"d":"$350,000"}},{"$f":"'(Other Computations)'!B11/8","v":{"v":29166.66666666667,"d":"$29,167"}},{"$f":"'(Other Computations)'!B11/8","v":{"v":29166.66666666667,"d":"$29,167"}},{"$f":"'(Other Computations)'!B11/8","v":{"v":29166.66666666667,"d":"$29,167"}},{"$f":"'(Other Computations)'!B11/8","v":{"v":29166.66666666667,"d":"$29,167"}},{"$f":"'(Other Computations)'!B11/8","v":{"v":29166.66666666667,"d":"$29,167"}},{"$f":"'(Other Computations)'!B11/8","v":{"v":29166.66666666667,"d":"$29,167"}},{"$f":"'(Other Computations)'!B11/8","v":{"v":29166.66666666667,"d":"$29,167"}},{"$f":"'(Other Computations)'!B11/8","v":{"v":29166.66666666667,"d":"$29,167"}},{"$f":"'(Other Computations)'!B11/8","v":{"v":29166.66666666667,"d":"$29,167"}},{"$f":"'(Other Computations)'!B11/8","v":{"v":29166.66666666667,"d":"$29,167"}},{"$f":"'(Other Computations)'!B11/8","v":{"v":29166.66666666667,"d":"$29,167"}},{"$f":"'(Other Computations)'!B11/8","v":{"v":29166.66666666667,"d":"$29,167"}},{"$f":"SUM(BB37:BM37)","v":{"v":350000.0000000002,"d":"$350,000"}},{"$f":"'(Other Computations)'!B11/8","v":{"v":29166.66666666667,"d":"$29,167"}},{"$f":"'(Other Computations)'!B11/8","v":{"v":29166.66666666667,"d":"$29,167"}},{"$f":"'(Other Computations)'!B11/8","v":{"v":29166.66666666667,"d":"$29,167"}},{"$f":"'(Other Computations)'!B11/8","v":{"v":29166.66666666667,"d":"$29,167"}},{"$f":"'(Other Computations)'!B11/8","v":{"v":29166.66666666667,"d":"$29,167"}},{"$f":"'(Other Computations)'!B11/8","v":{"v":29166.66666666667,"d":"$29,167"}},{"$f":"'(Other Computations)'!B11/8","v":{"v":29166.66666666667,"d":"$29,167"}},{"$f":"'(Other Computations)'!B11/8","v":{"v":29166.66666666667,"d":"$29,167"}},{"$f":"'(Other Computations)'!B11/8","v":{"v":29166.66666666667,"d":"$29,167"}},{"$f":"'(Other Computations)'!B11/8","v":{"v":29166.66666666667,"d":"$29,167"}},{"$f":"'(Other Computations)'!B11/8","v":{"v":29166.66666666667,"d":"$29,167"}},{"$f":"'(Other Computations)'!B11/8","v":{"v":29166.66666666667,"d":"$29,167"}},{"$f":"SUM(BO37:BZ37)","v":{"v":350000.0000000002,"d":"$350,000"}},{"$f":"'(Other Computations)'!B11/8","v":{"v":29166.66666666667,"d":"$29,167"}},{"$f":"'(Other Computations)'!B11/8","v":{"v":29166.66666666667,"d":"$29,167"}},{"$f":"'(Other Computations)'!B11/8","v":{"v":29166.66666666667,"d":"$29,167"}},{"$f":"'(Other Computations)'!B11/8","v":{"v":29166.66666666667,"d":"$29,167"}},{"$f":"'(Other Computations)'!B11/8","v":{"v":29166.66666666667,"d":"$29,167"}},{"$f":"'(Other Computations)'!B11/8","v":{"v":29166.66666666667,"d":"$29,167"}},{"$f":"'(Other Computations)'!B11/8","v":{"v":29166.66666666667,"d":"$29,167"}},{"$f":"'(Other Computations)'!B11/8","v":{"v":29166.66666666667,"d":"$29,167"}},{"$f":"'(Other Computations)'!B11/8","v":{"v":29166.66666666667,"d":"$29,167"}},{"$f":"'(Other Computations)'!B11/8","v":{"v":29166.66666666667,"d":"$29,167"}},{"$f":"'(Other Computations)'!B11/8","v":{"v":29166.66666666667,"d":"$29,167"}},{"$f":"'(Other Computations)'!B11/8","v":{"v":29166.66666666667,"d":"$29,167"}},{"$f":"SUM(CB37:CM37)","v":{"v":350000.0000000002,"d":"$350,000"}},{"$f":"'(Other Computations)'!B11/8","v":{"v":29166.66666666667,"d":"$29,167"}},{"$f":"'(Other Computations)'!B11/8","v":{"v":29166.66666666667,"d":"$29,167"}},{"$f":"'(Other Computations)'!B11/8","v":{"v":29166.66666666667,"d":"$29,167"}},{"$f":"'(Other Computations)'!B11/8","v":{"v":29166.66666666667,"d":"$29,167"}},{"$f":"'(Other Computations)'!B11/8","v":{"v":29166.66666666667,"d":"$29,167"}},{"$f":"'(Other Computations)'!B11/8","v":{"v":29166.66666666667,"d":"$29,167"}},{"$f":"'(Other Computations)'!B11/8","v":{"v":29166.66666666667,"d":"$29,167"}},{"$f":"'(Other Computations)'!B11/8","v":{"v":29166.66666666667,"d":"$29,167"}},{"$f":"'(Other Computations)'!B11/8","v":{"v":29166.66666666667,"d":"$29,167"}},{"$f":"'(Other Computations)'!B11/8","v":{"v":29166.66666666667,"d":"$29,167"}},{"$f":"'(Other Computations)'!B11/8","v":{"v":29166.66666666667,"d":"$29,167"}},{"$f":"'(Other Computations)'!B11/8","v":{"v":29166.66666666667,"d":"$29,167"}},{"$f":"SUM(CO37:CZ37)","v":{"v":350000.0000000002,"d":"$350,000"}},{"$f":"'(Other Computations)'!B11/8","v":{"v":29166.66666666667,"d":"$29,167"}},{"$f":"'(Other Computations)'!B11/8","v":{"v":29166.66666666667,"d":"$29,167"}},{"$f":"'(Other Computations)'!B11/8","v":{"v":29166.66666666667,"d":"$29,167"}},{"$f":"'(Other Computations)'!B11/8","v":{"v":29166.66666666667,"d":"$29,167"}},{"$f":"'(Other Computations)'!B11/8","v":{"v":29166.66666666667,"d":"$29,167"}},{"$f":"'(Other Computations)'!B11/8","v":{"v":29166.66666666667,"d":"$29,167"}},{"$f":"'(Other Computations)'!B11/8","v":{"v":29166.66666666667,"d":"$29,167"}},{"$f":"'(Other Computations)'!B11/8","v":{"v":29166.66666666667,"d":"$29,167"}},{"$f":"'(Other Computations)'!B11/8","v":{"v":29166.66666666667,"d":"$29,167"}},{"$f":"'(Other Computations)'!B11/8","v":{"v":29166.66666666667,"d":"$29,167"}},{"$f":"'(Other Computations)'!B11/8","v":{"v":29166.66666666667,"d":"$29,167"}},{"$f":"'(Other Computations)'!B11/8","v":{"v":29166.66666666667,"d":"$29,167"}},{"$f":"SUM(DB37:DM37)","v":{"v":350000.0000000002,"d":"$350,000"}},{"$f":"'(Other Computations)'!B11/8","v":{"v":29166.66666666667,"d":"$29,167"}},{"$f":"'(Other Computations)'!B11/8","v":{"v":29166.66666666667,"d":"$29,167"}},{"$f":"'(Other Computations)'!B11/8","v":{"v":29166.66666666667,"d":"$29,167"}},{"$f":"'(Other Computations)'!B11/8","v":{"v":29166.66666666667,"d":"$29,167"}},{"$f":"'(Other Computations)'!B11/8","v":{"v":29166.66666666667,"d":"$29,167"}},{"$f":"'(Other Computations)'!B11/8","v":{"v":29166.66666666667,"d":"$29,167"}},{"$f":"'(Other Computations)'!B11/8","v":{"v":29166.66666666667,"d":"$29,167"}},{"$f":"'(Other Computations)'!B11/8","v":{"v":29166.66666666667,"d":"$29,167"}},{"$f":"'(Other Computations)'!B11/8","v":{"v":29166.66666666667,"d":"$29,167"}},{"$f":"'(Other Computations)'!B11/8","v":{"v":29166.66666666667,"d":"$29,167"}},{"$f":"'(Other Computations)'!B11/8","v":{"v":29166.66666666667,"d":"$29,167"}},{"$f":"'(Other Computations)'!B11/8","v":{"v":29166.66666666667,"d":"$29,167"}},{"$f":"SUM(DO37:DZ37)","v":{"v":350000.0000000002,"d":"$350,000"}},{"$f":"'(Other Computations)'!B11/8","v":{"v":29166.66666666667,"d":"$29,167"}},{"$f":"'(Other Computations)'!B11/8","v":{"v":29166.66666666667,"d":"$29,167"}},{"$f":"'(Other Computations)'!B11/8","v":{"v":29166.66666666667,"d":"$29,167"}},{"$f":"'(Other Computations)'!B11/8","v":{"v":29166.66666666667,"d":"$29,167"}},{"$f":"'(Other Computations)'!B11/8","v":{"v":29166.66666666667,"d":"$29,167"}},{"$f":"'(Other Computations)'!B11/8","v":{"v":29166.66666666667,"d":"$29,167"}},{"$f":"'(Other Computations)'!B11/8","v":{"v":29166.66666666667,"d":"$29,167"}},{"$f":"'(Other Computations)'!B11/8","v":{"v":29166.66666666667,"d":"$29,167"}},{"$f":"'(Other Computations)'!B11/8","v":{"v":29166.66666666667,"d":"$29,167"}},{"$f":"'(Other Computations)'!B11/8","v":{"v":29166.66666666667,"d":"$29,167"}},{"$f":"'(Other Computations)'!B11/8","v":{"v":29166.66666666667,"d":"$29,167"}},{"$f":"'(Other Computations)'!B11/8","v":{"v":29166.66666666667,"d":"$29,167"}},{"$f":"SUM(EB37:EM37)","v":{"v":350000.0000000002,"d":"$350,000"}}]
[{"$f":"Labels!B52","v":"Gov Transfers"},{"$f":"'(Other Computations)'!B14/8","v":{"v":14583.333333333336,"d":"$14,583"}},{"$f":"'(Other Computations)'!B14/8","v":{"v":14583.333333333336,"d":"$14,583"}},{"$f":"'(Other Computations)'!B14/8","v":{"v":14583.333333333336,"d":"$14,583"}},{"$f":"'(Other Computations)'!B14/8","v":{"v":14583.333333333336,"d":"$14,583"}},{"$f":"'(Other Computations)'!B14/8","v":{"v":14583.333333333336,"d":"$14,583"}},{"$f":"'(Other Computations)'!B14/8","v":{"v":14583.333333333336,"d":"$14,583"}},{"$f":"'(Other Computations)'!B14/8","v":{"v":14583.333333333336,"d":"$14,583"}},{"$f":"'(Other Computations)'!B14/8","v":{"v":14583.333333333336,"d":"$14,583"}},{"$f":"'(Other Computations)'!B14/8","v":{"v":14583.333333333336,"d":"$14,583"}},{"$f":"'(Other Computations)'!B14/8","v":{"v":14583.333333333336,"d":"$14,583"}},{"$f":"'(Other Computations)'!B14/8","v":{"v":14583.333333333336,"d":"$14,583"}},{"$f":"'(Other Computations)'!B14/8","v":{"v":14583.333333333336,"d":"$14,583"}},{"$f":"SUM(B38:M38)","v":{"v":175000.0000000001,"d":"$175,000"}},{"$f":"'(Other Computations)'!B14/8","v":{"v":14583.333333333336,"d":"$14,583"}},{"$f":"'(Other Computations)'!B14/8","v":{"v":14583.333333333336,"d":"$14,583"}},{"$f":"'(Other Computations)'!B14/8","v":{"v":14583.333333333336,"d":"$14,583"}},{"$f":"'(Other Computations)'!B14/8","v":{"v":14583.333333333336,"d":"$14,583"}},{"$f":"'(Other Computations)'!B14/8","v":{"v":14583.333333333336,"d":"$14,583"}},{"$f":"'(Other Computations)'!B14/8","v":{"v":14583.333333333336,"d":"$14,583"}},{"$f":"'(Other Computations)'!B14/8","v":{"v":14583.333333333336,"d":"$14,583"}},{"$f":"'(Other Computations)'!B14/8","v":{"v":14583.333333333336,"d":"$14,583"}},{"$f":"'(Other Computations)'!B14/8","v":{"v":14583.333333333336,"d":"$14,583"}},{"$f":"'(Other Computations)'!B14/8","v":{"v":14583.333333333336,"d":"$14,583"}},{"$f":"'(Other Computations)'!B14/8","v":{"v":14583.333333333336,"d":"$14,583"}},{"$f":"'(Other Computations)'!B14/8","v":{"v":14583.333333333336,"d":"$14,583"}},{"$f":"SUM(O38:Z38)","v":{"v":175000.0000000001,"d":"$175,000"}},{"$f":"'(Other Computations)'!B14/8","v":{"v":14583.333333333336,"d":"$14,583"}},{"$f":"'(Other Computations)'!B14/8","v":{"v":14583.333333333336,"d":"$14,583"}},{"$f":"'(Other Computations)'!B14/8","v":{"v":14583.333333333336,"d":"$14,583"}},{"$f":"'(Other Computations)'!B14/8","v":{"v":14583.333333333336,"d":"$14,583"}},{"$f":"'(Other Computations)'!B14/8","v":{"v":14583.333333333336,"d":"$14,583"}},{"$f":"'(Other Computations)'!B14/8","v":{"v":14583.333333333336,"d":"$14,583"}},{"$f":"'(Other Computations)'!B14/8","v":{"v":14583.333333333336,"d":"$14,583"}},{"$f":"'(Other Computations)'!B14/8","v":{"v":14583.333333333336,"d":"$14,583"}},{"$f":"'(Other Computations)'!B14/8","v":{"v":14583.333333333336,"d":"$14,583"}},{"$f":"'(Other Computations)'!B14/8","v":{"v":14583.333333333336,"d":"$14,583"}},{"$f":"'(Other Computations)'!B14/8","v":{"v":14583.333333333336,"d":"$14,583"}},{"$f":"'(Other Computations)'!B14/8","v":{"v":14583.333333333336,"d":"$14,583"}},{"$f":"SUM(AB38:AM38)","v":{"v":175000.0000000001,"d":"$175,000"}},{"$f":"'(Other Computations)'!B14/8","v":{"v":14583.333333333336,"d":"$14,583"}},{"$f":"'(Other Computations)'!B14/8","v":{"v":14583.333333333336,"d":"$14,583"}},{"$f":"'(Other Computations)'!B14/8","v":{"v":14583.333333333336,"d":"$14,583"}},{"$f":"'(Other Computations)'!B14/8","v":{"v":14583.333333333336,"d":"$14,583"}},{"$f":"'(Other Computations)'!B14/8","v":{"v":14583.333333333336,"d":"$14,583"}},{"$f":"'(Other Computations)'!B14/8","v":{"v":14583.333333333336,"d":"$14,583"}},{"$f":"'(Other Computations)'!B14/8","v":{"v":14583.333333333336,"d":"$14,583"}},{"$f":"'(Other Computations)'!B14/8","v":{"v":14583.333333333336,"d":"$14,583"}},{"$f":"'(Other Computations)'!B14/8","v":{"v":14583.333333333336,"d":"$14,583"}},{"$f":"'(Other Computations)'!B14/8","v":{"v":14583.333333333336,"d":"$14,583"}},{"$f":"'(Other Computations)'!B14/8","v":{"v":14583.333333333336,"d":"$14,583"}},{"$f":"'(Other Computations)'!B14/8","v":{"v":14583.333333333336,"d":"$14,583"}},{"$f":"SUM(AO38:AZ38)","v":{"v":175000.0000000001,"d":"$175,000"}},{"$f":"'(Other Computations)'!B14/8","v":{"v":14583.333333333336,"d":"$14,583"}},{"$f":"'(Other Computations)'!B14/8","v":{"v":14583.333333333336,"d":"$14,583"}},{"$f":"'(Other Computations)'!B14/8","v":{"v":14583.333333333336,"d":"$14,583"}},{"$f":"'(Other Computations)'!B14/8","v":{"v":14583.333333333336,"d":"$14,583"}},{"$f":"'(Other Computations)'!B14/8","v":{"v":14583.333333333336,"d":"$14,583"}},{"$f":"'(Other Computations)'!B14/8","v":{"v":14583.333333333336,"d":"$14,583"}},{"$f":"'(Other Computations)'!B14/8","v":{"v":14583.333333333336,"d":"$14,583"}},{"$f":"'(Other Computations)'!B14/8","v":{"v":14583.333333333336,"d":"$14,583"}},{"$f":"'(Other Computations)'!B14/8","v":{"v":14583.333333333336,"d":"$14,583"}},{"$f":"'(Other Computations)'!B14/8","v":{"v":14583.333333333336,"d":"$14,583"}},{"$f":"'(Other Computations)'!B14/8","v":{"v":14583.333333333336,"d":"$14,583"}},{"$f":"'(Other Computations)'!B14/8","v":{"v":14583.333333333336,"d":"$14,583"}},{"$f":"SUM(BB38:BM38)","v":{"v":175000.0000000001,"d":"$175,000"}},{"$f":"'(Other Computations)'!B14/8","v":{"v":14583.333333333336,"d":"$14,583"}},{"$f":"'(Other Computations)'!B14/8","v":{"v":14583.333333333336,"d":"$14,583"}},{"$f":"'(Other Computations)'!B14/8","v":{"v":14583.333333333336,"d":"$14,583"}},{"$f":"'(Other Computations)'!B14/8","v":{"v":14583.333333333336,"d":"$14,583"}},{"$f":"'(Other Computations)'!B14/8","v":{"v":14583.333333333336,"d":"$14,583"}},{"$f":"'(Other Computations)'!B14/8","v":{"v":14583.333333333336,"d":"$14,583"}},{"$f":"'(Other Computations)'!B14/8","v":{"v":14583.333333333336,"d":"$14,583"}},{"$f":"'(Other Computations)'!B14/8","v":{"v":14583.333333333336,"d":"$14,583"}},{"$f":"'(Other Computations)'!B14/8","v":{"v":14583.333333333336,"d":"$14,583"}},{"$f":"'(Other Computations)'!B14/8","v":{"v":14583.333333333336,"d":"$14,583"}},{"$f":"'(Other Computations)'!B14/8","v":{"v":14583.333333333336,"d":"$14,583"}},{"$f":"'(Other Computations)'!B14/8","v":{"v":14583.333333333336,"d":"$14,583"}},{"$f":"SUM(BO38:BZ38)","v":{"v":175000.0000000001,"d":"$175,000"}},{"$f":"'(Other Computations)'!B14/8","v":{"v":14583.333333333336,"d":"$14,583"}},{"$f":"'(Other Computations)'!B14/8","v":{"v":14583.333333333336,"d":"$14,583"}},{"$f":"'(Other Computations)'!B14/8","v":{"v":14583.333333333336,"d":"$14,583"}},{"$f":"'(Other Computations)'!B14/8","v":{"v":14583.333333333336,"d":"$14,583"}},{"$f":"'(Other Computations)'!B14/8","v":{"v":14583.333333333336,"d":"$14,583"}},{"$f":"'(Other Computations)'!B14/8","v":{"v":14583.333333333336,"d":"$14,583"}},{"$f":"'(Other Computations)'!B14/8","v":{"v":14583.333333333336,"d":"$14,583"}},{"$f":"'(Other Computations)'!B14/8","v":{"v":14583.333333333336,"d":"$14,583"}},{"$f":"'(Other Computations)'!B14/8","v":{"v":14583.333333333336,"d":"$14,583"}},{"$f":"'(Other Computations)'!B14/8","v":{"v":14583.333333333336,"d":"$14,583"}},{"$f":"'(Other Computations)'!B14/8","v":{"v":14583.333333333336,"d":"$14,583"}},{"$f":"'(Other Computations)'!B14/8","v":{"v":14583.333333333336,"d":"$14,583"}},{"$f":"SUM(CB38:CM38)","v":{"v":175000.0000000001,"d":"$175,000"}},{"$f":"'(Other Computations)'!B14/8","v":{"v":14583.333333333336,"d":"$14,583"}},{"$f":"'(Other Computations)'!B14/8","v":{"v":14583.333333333336,"d":"$14,583"}},{"$f":"'(Other Computations)'!B14/8","v":{"v":14583.333333333336,"d":"$14,583"}},{"$f":"'(Other Computations)'!B14/8","v":{"v":14583.333333333336,"d":"$14,583"}},{"$f":"'(Other Computations)'!B14/8","v":{"v":14583.333333333336,"d":"$14,583"}},{"$f":"'(Other Computations)'!B14/8","v":{"v":14583.333333333336,"d":"$14,583"}},{"$f":"'(Other Computations)'!B14/8","v":{"v":14583.333333333336,"d":"$14,583"}},{"$f":"'(Other Computations)'!B14/8","v":{"v":14583.333333333336,"d":"$14,583"}},{"$f":"'(Other Computations)'!B14/8","v":{"v":14583.333333333336,"d":"$14,583"}},{"$f":"'(Other Computations)'!B14/8","v":{"v":14583.333333333336,"d":"$14,583"}},{"$f":"'(Other Computations)'!B14/8","v":{"v":14583.333333333336,"d":"$14,583"}},{"$f":"'(Other Computations)'!B14/8","v":{"v":14583.333333333336,"d":"$14,583"}},{"$f":"SUM(CO38:CZ38)","v":{"v":175000.0000000001,"d":"$175,000"}},{"$f":"'(Other Computations)'!B14/8","v":{"v":14583.333333333336,"d":"$14,583"}},{"$f":"'(Other Computations)'!B14/8","v":{"v":14583.333333333336,"d":"$14,583"}},{"$f":"'(Other Computations)'!B14/8","v":{"v":14583.333333333336,"d":"$14,583"}},{"$f":"'(Other Computations)'!B14/8","v":{"v":14583.333333333336,"d":"$14,583"}},{"$f":"'(Other Computations)'!B14/8","v":{"v":14583.333333333336,"d":"$14,583"}},{"$f":"'(Other Computations)'!B14/8","v":{"v":14583.333333333336,"d":"$14,583"}},{"$f":"'(Other Computations)'!B14/8","v":{"v":14583.333333333336,"d":"$14,583"}},{"$f":"'(Other Computations)'!B14/8","v":{"v":14583.333333333336,"d":"$14,583"}},{"$f":"'(Other Computations)'!B14/8","v":{"v":14583.333333333336,"d":"$14,583"}},{"$f":"'(Other Computations)'!B14/8","v":{"v":14583.333333333336,"d":"$14,583"}},{"$f":"'(Other Computations)'!B14/8","v":{"v":14583.333333333336,"d":"$14,583"}},{"$f":"'(Other Computations)'!B14/8","v":{"v":14583.333333333336,"d":"$14,583"}},{"$f":"SUM(DB38:DM38)","v":{"v":175000.0000000001,"d":"$175,000"}},{"$f":"'(Other Computations)'!B14/8","v":{"v":14583.333333333336,"d":"$14,583"}},{"$f":"'(Other Computations)'!B14/8","v":{"v":14583.333333333336,"d":"$14,583"}},{"$f":"'(Other Computations)'!B14/8","v":{"v":14583.333333333336,"d":"$14,583"}},{"$f":"'(Other Computations)'!B14/8","v":{"v":14583.333333333336,"d":"$14,583"}},{"$f":"'(Other Computations)'!B14/8","v":{"v":14583.333333333336,"d":"$14,583"}},{"$f":"'(Other Computations)'!B14/8","v":{"v":14583.333333333336,"d":"$14,583"}},{"$f":"'(Other Computations)'!B14/8","v":{"v":14583.333333333336,"d":"$14,583"}},{"$f":"'(Other Computations)'!B14/8","v":{"v":14583.333333333336,"d":"$14,583"}},{"$f":"'(Other Computations)'!B14/8","v":{"v":14583.333333333336,"d":"$14,583"}},{"$f":"'(Other Computations)'!B14/8","v":{"v":14583.333333333336,"d":"$14,583"}},{"$f":"'(Other Computations)'!B14/8","v":{"v":14583.333333333336,"d":"$14,583"}},{"$f":"'(Other Computations)'!B14/8","v":{"v":14583.333333333336,"d":"$14,583"}},{"$f":"SUM(DO38:DZ38)","v":{"v":175000.0000000001,"d":"$175,000"}},{"$f":"'(Other Computations)'!B14/8","v":{"v":14583.333333333336,"d":"$14,583"}},{"$f":"'(Other Computations)'!B14/8","v":{"v":14583.333333333336,"d":"$14,583"}},{"$f":"'(Other Computations)'!B14/8","v":{"v":14583.333333333336,"d":"$14,583"}},{"$f":"'(Other Computations)'!B14/8","v":{"v":14583.333333333336,"d":"$14,583"}},{"$f":"'(Other Computations)'!B14/8","v":{"v":14583.333333333336,"d":"$14,583"}},{"$f":"'(Other Computations)'!B14/8","v":{"v":14583.333333333336,"d":"$14,583"}},{"$f":"'(Other Computations)'!B14/8","v":{"v":14583.333333333336,"d":"$14,583"}},{"$f":"'(Other Computations)'!B14/8","v":{"v":14583.333333333336,"d":"$14,583"}},{"$f":"'(Other Computations)'!B14/8","v":{"v":14583.333333333336,"d":"$14,583"}},{"$f":"'(Other Computations)'!B14/8","v":{"v":14583.333333333336,"d":"$14,583"}},{"$f":"'(Other Computations)'!B14/8","v":{"v":14583.333333333336,"d":"$14,583"}},{"$f":"'(Other Computations)'!B14/8","v":{"v":14583.333333333336,"d":"$14,583"}},{"$f":"SUM(EB38:EM38)","v":{"v":175000.0000000001,"d":"$175,000"}}]
[]
[]
[{"$f":"\"Output\"","v":"Output"}]
[{"$f":"\" \"","v":" "}]
[null,{"$f":"ZZZ__FnCalls!F7","v":"Jan 2010"},{"$f":"ZZZ__FnCalls!F8","v":"Feb 2010"},{"$f":"ZZZ__FnCalls!F9","v":"Mar 2010"},{"$f":"ZZZ__FnCalls!F10","v":"Apr 2010"},{"$f":"ZZZ__FnCalls!F11","v":"May 2010"},{"$f":"ZZZ__FnCalls!F12","v":"Jun 2010"},{"$f":"ZZZ__FnCalls!F13","v":"Jul 2010"},{"$f":"ZZZ__FnCalls!F14","v":"Aug 2010"},{"$f":"ZZZ__FnCalls!F15","v":"Sep 2010"},{"$f":"ZZZ__FnCalls!F16","v":"Oct 2010"},{"$f":"ZZZ__FnCalls!F17","v":"Nov 2010"},{"$f":"ZZZ__FnCalls!F18","v":"Dec 2010"},{"$f":"ZZZ__FnCalls!H7","v":"2010"},{"$f":"ZZZ__FnCalls!F19","v":"Jan 2011"},{"$f":"ZZZ__FnCalls!F20","v":"Feb 2011"},{"$f":"ZZZ__FnCalls!F21","v":"Mar 2011"},{"$f":"ZZZ__FnCalls!F22","v":"Apr 2011"},{"$f":"ZZZ__FnCalls!F23","v":"May 2011"},{"$f":"ZZZ__FnCalls!F24","v":"Jun 2011"},{"$f":"ZZZ__FnCalls!F25","v":"Jul 2011"},{"$f":"ZZZ__FnCalls!F26","v":"Aug 2011"},{"$f":"ZZZ__FnCalls!F27","v":"Sep 2011"},{"$f":"ZZZ__FnCalls!F28","v":"Oct 2011"},{"$f":"ZZZ__FnCalls!F29","v":"Nov 2011"},{"$f":"ZZZ__FnCalls!F30","v":"Dec 2011"},{"$f":"ZZZ__FnCalls!H19","v":"2011"},{"$f":"ZZZ__FnCalls!F31","v":"Jan 2012"},{"$f":"ZZZ__FnCalls!F32","v":"Feb 2012"},{"$f":"ZZZ__FnCalls!F33","v":"Mar 2012"},{"$f":"ZZZ__FnCalls!F34","v":"Apr 2012"},{"$f":"ZZZ__FnCalls!F35","v":"May 2012"},{"$f":"ZZZ__FnCalls!F36","v":"Jun 2012"},{"$f":"ZZZ__FnCalls!F37","v":"Jul 2012"},{"$f":"ZZZ__FnCalls!F38","v":"Aug 2012"},{"$f":"ZZZ__FnCalls!F39","v":"Sep 2012"},{"$f":"ZZZ__FnCalls!F40","v":"Oct 2012"},{"$f":"ZZZ__FnCalls!F41","v":"Nov 2012"},{"$f":"ZZZ__FnCalls!F42","v":"Dec 2012"},{"$f":"ZZZ__FnCalls!H31","v":"2012"},{"$f":"ZZZ__FnCalls!F43","v":"Jan 2013"},{"$f":"ZZZ__FnCalls!F44","v":"Feb 2013"},{"$f":"ZZZ__FnCalls!F45","v":"Mar 2013"},{"$f":"ZZZ__FnCalls!F46","v":"Apr 2013"},{"$f":"ZZZ__FnCalls!F47","v":"May 2013"},{"$f":"ZZZ__FnCalls!F48","v":"Jun 2013"},{"$f":"ZZZ__FnCalls!F49","v":"Jul 2013"},{"$f":"ZZZ__FnCalls!F50","v":"Aug 2013"},{"$f":"ZZZ__FnCalls!F51","v":"Sep 2013"},{"$f":"ZZZ__FnCalls!F52","v":"Oct 2013"},{"$f":"ZZZ__FnCalls!F53","v":"Nov 2013"},{"$f":"ZZZ__FnCalls!F54","v":"Dec 2013"},{"$f":"ZZZ__FnCalls!H43","v":"2013"},{"$f":"ZZZ__FnCalls!F55","v":"Jan 2014"},{"$f":"ZZZ__FnCalls!F56","v":"Feb 2014"},{"$f":"ZZZ__FnCalls!F57","v":"Mar 2014"},{"$f":"ZZZ__FnCalls!F58","v":"Apr 2014"},{"$f":"ZZZ__FnCalls!F59","v":"May 2014"},{"$f":"ZZZ__FnCalls!F60","v":"Jun 2014"},{"$f":"ZZZ__FnCalls!F61","v":"Jul 2014"},{"$f":"ZZZ__FnCalls!F62","v":"Aug 2014"},{"$f":"ZZZ__FnCalls!F63","v":"Sep 2014"},{"$f":"ZZZ__FnCalls!F64","v":"Oct 2014"},{"$f":"ZZZ__FnCalls!F65","v":"Nov 2014"},{"$f":"ZZZ__FnCalls!F66","v":"Dec 2014"},{"$f":"ZZZ__FnCalls!H55","v":"2014"},{"$f":"ZZZ__FnCalls!F67","v":"Jan 2015"},{"$f":"ZZZ__FnCalls!F68","v":"Feb 2015"},{"$f":"ZZZ__FnCalls!F69","v":"Mar 2015"},{"$f":"ZZZ__FnCalls!F70","v":"Apr 2015"},{"$f":"ZZZ__FnCalls!F71","v":"May 2015"},{"$f":"ZZZ__FnCalls!F72","v":"Jun 2015"},{"$f":"ZZZ__FnCalls!F73","v":"Jul 2015"},{"$f":"ZZZ__FnCalls!F74","v":"Aug 2015"},{"$f":"ZZZ__FnCalls!F75","v":"Sep 2015"},{"$f":"ZZZ__FnCalls!F76","v":"Oct 2015"},{"$f":"ZZZ__FnCalls!F77","v":"Nov 2015"},{"$f":"ZZZ__FnCalls!F78","v":"Dec 2015"},{"$f":"ZZZ__FnCalls!H67","v":"2015"},{"$f":"ZZZ__FnCalls!F79","v":"Jan 2016"},{"$f":"ZZZ__FnCalls!F80","v":"Feb 2016"},{"$f":"ZZZ__FnCalls!F81","v":"Mar 2016"},{"$f":"ZZZ__FnCalls!F82","v":"Apr 2016"},{"$f":"ZZZ__FnCalls!F83","v":"May 2016"},{"$f":"ZZZ__FnCalls!F84","v":"Jun 2016"},{"$f":"ZZZ__FnCalls!F85","v":"Jul 2016"},{"$f":"ZZZ__FnCalls!F86","v":"Aug 2016"},{"$f":"ZZZ__FnCalls!F87","v":"Sep 2016"},{"$f":"ZZZ__FnCalls!F88","v":"Oct 2016"},{"$f":"ZZZ__FnCalls!F89","v":"Nov 2016"},{"$f":"ZZZ__FnCalls!F90","v":"Dec 2016"},{"$f":"ZZZ__FnCalls!H79","v":"2016"},{"$f":"ZZZ__FnCalls!F91","v":"Jan 2017"},{"$f":"ZZZ__FnCalls!F92","v":"Feb 2017"},{"$f":"ZZZ__FnCalls!F93","v":"Mar 2017"},{"$f":"ZZZ__FnCalls!F94","v":"Apr 2017"},{"$f":"ZZZ__FnCalls!F95","v":"May 2017"},{"$f":"ZZZ__FnCalls!F96","v":"Jun 2017"},{"$f":"ZZZ__FnCalls!F97","v":"Jul 2017"},{"$f":"ZZZ__FnCalls!F98","v":"Aug 2017"},{"$f":"ZZZ__FnCalls!F99","v":"Sep 2017"},{"$f":"ZZZ__FnCalls!F100","v":"Oct 2017"},{"$f":"ZZZ__FnCalls!F101","v":"Nov 2017"},{"$f":"ZZZ__FnCalls!F102","v":"Dec 2017"},{"$f":"ZZZ__FnCalls!H91","v":"2017"},{"$f":"ZZZ__FnCalls!F103","v":"Jan 2018"},{"$f":"ZZZ__FnCalls!F104","v":"Feb 2018"},{"$f":"ZZZ__FnCalls!F105","v":"Mar 2018"},{"$f":"ZZZ__FnCalls!F106","v":"Apr 2018"},{"$f":"ZZZ__FnCalls!F107","v":"May 2018"},{"$f":"ZZZ__FnCalls!F108","v":"Jun 2018"},{"$f":"ZZZ__FnCalls!F109","v":"Jul 2018"},{"$f":"ZZZ__FnCalls!F110","v":"Aug 2018"},{"$f":"ZZZ__FnCalls!F111","v":"Sep 2018"},{"$f":"ZZZ__FnCalls!F112","v":"Oct 2018"},{"$f":"ZZZ__FnCalls!F113","v":"Nov 2018"},{"$f":"ZZZ__FnCalls!F114","v":"Dec 2018"},{"$f":"ZZZ__FnCalls!H103","v":"2018"},{"$f":"ZZZ__FnCalls!F115","v":"Jan 2019"},{"$f":"ZZZ__FnCalls!F116","v":"Feb 2019"},{"$f":"ZZZ__FnCalls!F117","v":"Mar 2019"},{"$f":"ZZZ__FnCalls!F118","v":"Apr 2019"},{"$f":"ZZZ__FnCalls!F119","v":"May 2019"},{"$f":"ZZZ__FnCalls!F120","v":"Jun 2019"},{"$f":"ZZZ__FnCalls!F121","v":"Jul 2019"},{"$f":"ZZZ__FnCalls!F122","v":"Aug 2019"},{"$f":"ZZZ__FnCalls!F123","v":"Sep 2019"},{"$f":"ZZZ__FnCalls!F124","v":"Oct 2019"},{"$f":"ZZZ__FnCalls!F125","v":"Nov 2019"},{"$f":"ZZZ__FnCalls!F126","v":"Dec 2019"},{"$f":"ZZZ__FnCalls!H115","v":"2019"},{"$f":"ZZZ__FnCalls!F127","v":"Jan 2020"},{"$f":"ZZZ__FnCalls!F128","v":"Feb 2020"},{"$f":"ZZZ__FnCalls!F129","v":"Mar 2020"},{"$f":"ZZZ__FnCalls!F130","v":"Apr 2020"},{"$f":"ZZZ__FnCalls!F131","v":"May 2020"},{"$f":"ZZZ__FnCalls!F132","v":"Jun 2020"},{"$f":"ZZZ__FnCalls!F133","v":"Jul 2020"},{"$f":"ZZZ__FnCalls!F134","v":"Aug 2020"},{"$f":"ZZZ__FnCalls!F135","v":"Sep 2020"},{"$f":"ZZZ__FnCalls!F136","v":"Oct 2020"},{"$f":"ZZZ__FnCalls!F137","v":"Nov 2020"},{"$f":"ZZZ__FnCalls!F138","v":"Dec 2020"},{"$f":"ZZZ__FnCalls!H127","v":"2020"}]
[{"$f":"Labels!B64","v":"Output"},{"$f":"B45*(1-Inputs!B21)+B11*Inputs!B21+B46","v":{"v":1150342.4848132704,"d":"$1,150,342"}},{"$f":"C45*(1-Inputs!B21)+C11*Inputs!B21+C46","v":{"v":1198443.6317882268,"d":"$1,198,444"}},{"$f":"D45*(1-Inputs!B21)+D11*Inputs!B21+D46","v":{"v":1144816.8609503747,"d":"$1,144,817"}},{"$f":"E45*(1-Inputs!B21)+E11*Inputs!B21+E46","v":{"v":1134124.339914245,"d":"$1,134,124"}},{"$f":"F45*(1-Inputs!B21)+F11*Inputs!B21+F46","v":{"v":1181810.669306879,"d":"$1,181,811"}},{"$f":"G45*(1-Inputs!B21)+G11*Inputs!B21+G46","v":{"v":1154506.554661449,"d":"$1,154,507"}},{"$f":"H45*(1-Inputs!B21)+H11*Inputs!B21+H46","v":{"v":1165123.5991286912,"d":"$1,165,124"}},{"$f":"I45*(1-Inputs!B21)+I11*Inputs!B21+I46","v":{"v":1163975.5889266082,"d":"$1,163,976"}},{"$f":"J45*(1-Inputs!B21)+J11*Inputs!B21+J46","v":{"v":1192835.2095116535,"d":"$1,192,835"}},{"$f":"K45*(1-Inputs!B21)+K11*Inputs!B21+K46","v":{"v":1124195.9248878122,"d":"$1,124,196"}},{"$f":"L45*(1-Inputs!B21)+L11*Inputs!B21+L46","v":{"v":1136124.2361104793,"d":"$1,136,124"}},{"$f":"M45*(1-Inputs!B21)+M11*Inputs!B21+M46","v":{"v":1156854.871807169,"d":"$1,156,855"}},{"$f":"SUM(B44:M44)","v":{"v":13903153.97180686,"d":"$13,903,154"}},{"$f":"O45*(1-Inputs!B21)+O11*Inputs!B21+O46","v":{"v":1138864.6821102186,"d":"$1,138,865"}},{"$f":"P45*(1-Inputs!B21)+P11*Inputs!B21+P46","v":{"v":1167741.3300877442,"d":"$1,167,741"}},{"$f":"Q45*(1-Inputs!B21)+Q11*Inputs!B21+Q46","v":{"v":1122944.5511523054,"d":"$1,122,945"}},{"$f":"R45*(1-Inputs!B21)+R11*Inputs!B21+R46","v":{"v":1179461.9834569346,"d":"$1,179,462"}},{"$f":"S45*(1-Inputs!B21)+S11*Inputs!B21+S46","v":{"v":1203276.0030464074,"d":"$1,203,276"}},{"$f":"T45*(1-Inputs!B21)+T11*Inputs!B21+T46","v":{"v":1121557.3985460424,"d":"$1,121,557"}},{"$f":"U45*(1-Inputs!B21)+U11*Inputs!B21+U46","v":{"v":1176490.772698274,"d":"$1,176,491"}},{"$f":"V45*(1-Inputs!B21)+V11*Inputs!B21+V46","v":{"v":1181679.6144104504,"d":"$1,181,680"}},{"$f":"W45*(1-Inputs!B21)+W11*Inputs!B21+W46","v":{"v":1124739.0009411937,"d":"$1,124,739"}},{"$f":"X45*(1-Inputs!B21)+X11*Inputs!B21+X46","v":{"v":1153196.9609125077,"d":"$1,153,197"}},{"$f":"Y45*(1-Inputs!B21)+Y11*Inputs!B21+Y46","v":{"v":1085330.219368682,"d":"$1,085,330"}},{"$f":"Z45*(1-Inputs!B21)+Z11*Inputs!B21+Z46","v":{"v":1139586.5760802876,"d":"$1,139,587"}},{"$f":"SUM(O44:Z44)","v":{"v":13794869.092811046,"d":"$13,794,869"}},{"$f":"AB45*(1-Inputs!B21)+AB11*Inputs!B21+AB46","v":{"v":1142769.9653332909,"d":"$1,142,770"}},{"$f":"AC45*(1-Inputs!B21)+AC11*Inputs!B21+AC46","v":{"v":1166965.2840213662,"d":"$1,166,965"}},{"$f":"AD45*(1-Inputs!B21)+AD11*Inputs!B21+AD46","v":{"v":1120734.3094653653,"d":"$1,120,734"}},{"$f":"AE45*(1-Inputs!B21)+AE11*Inputs!B21+AE46","v":{"v":1140122.2152114075,"d":"$1,140,122"}},{"$f":"AF45*(1-Inputs!B21)+AF11*Inputs!B21+AF46","v":{"v":1135007.5525501822,"d":"$1,135,008"}},{"$f":"AG45*(1-Inputs!B21)+AG11*Inputs!B21+AG46","v":{"v":1117550.654451029,"d":"$1,117,551"}},{"$f":"AH45*(1-Inputs!B21)+AH11*Inputs!B21+AH46","v":{"v":1084663.2157630213,"d":"$1,084,663"}},{"$f":"AI45*(1-Inputs!B21)+AI11*Inputs!B21+AI46","v":{"v":1139547.8258766388,"d":"$1,139,548"}},{"$f":"AJ45*(1-Inputs!B21)+AJ11*Inputs!B21+AJ46","v":{"v":1137917.6154859087,"d":"$1,137,918"}},{"$f":"AK45*(1-Inputs!B21)+AK11*Inputs!B21+AK46","v":{"v":1127622.6633451025,"d":"$1,127,623"}},{"$f":"AL45*(1-Inputs!B21)+AL11*Inputs!B21+AL46","v":{"v":1091326.814473016,"d":"$1,091,327"}},{"$f":"AM45*(1-Inputs!B21)+AM11*Inputs!B21+AM46","v":{"v":1171567.6564986464,"d":"$1,171,568"}},{"$f":"SUM(AB44:AM44)","v":{"v":13575795.772474974,"d":"$13,575,796"}},{"$f":"AO45*(1-Inputs!B21)+AO11*Inputs!B21+AO46","v":{"v":1087049.6270858462,"d":"$1,087,050"}},{"$f":"AP45*(1-Inputs!B21)+AP11*Inputs!B21+AP46","v":{"v":1124375.5576919264,"d":"$1,124,376"}},{"$f":"AQ45*(1-Inputs!B21)+AQ11*Inputs!B21+AQ46","v":{"v":1166404.240170155,"d":"$1,166,404"}},{"$f":"AR45*(1-Inputs!B21)+AR11*Inputs!B21+AR46","v":{"v":1143639.9248658675,"d":"$1,143,640"}},{"$f":"AS45*(1-Inputs!B21)+AS11*Inputs!B21+AS46","v":{"v":1103184.5837005423,"d":"$1,103,185"}},{"$f":"AT45*(1-Inputs!B21)+AT11*Inputs!B21+AT46","v":{"v":1121131.9736445674,"d":"$1,121,132"}},{"$f":"AU45*(1-Inputs!B21)+AU11*Inputs!B21+AU46","v":{"v":1150828.723058223,"d":"$1,150,829"}},{"$f":"AV45*(1-Inputs!B21)+AV11*Inputs!B21+AV46","v":{"v":1139554.757715729,"d":"$1,139,555"}},{"$f":"AW45*(1-Inputs!B21)+AW11*Inputs!B21+AW46","v":{"v":1051000.2960826934,"d":"$1,051,000"}},{"$f":"AX45*(1-Inputs!B21)+AX11*Inputs!B21+AX46","v":{"v":1146342.0364819327,"d":"$1,146,342"}},{"$f":"AY45*(1-Inputs!B21)+AY11*Inputs!B21+AY46","v":{"v":1090732.718268176,"d":"$1,090,733"}},{"$f":"AZ45*(1-Inputs!B21)+AZ11*Inputs!B21+AZ46","v":{"v":1101575.4872303104,"d":"$1,101,575"}},{"$f":"SUM(AO44:AZ44)","v":{"v":13425819.925995968,"d":"$13,425,820"}},{"$f":"BB45*(1-Inputs!B21)+BB11*Inputs!B21+BB46","v":{"v":1136482.8430774221,"d":"$1,136,483"}},{"$f":"BC45*(1-Inputs!B21)+BC11*Inputs!B21+BC46","v":{"v":1150151.024259446,"d":"$1,150,151"}},{"$f":"BD45*(1-Inputs!B21)+BD11*Inputs!B21+BD46","v":{"v":1093954.5592813343,"d":"$1,093,955"}},{"$f":"BE45*(1-Inputs!B21)+BE11*Inputs!B21+BE46","v":{"v":1122569.5902868996,"d":"$1,122,570"}},{"$f":"BF45*(1-Inputs!B21)+BF11*Inputs!B21+BF46","v":{"v":1098264.7927567568,"d":"$1,098,265"}},{"$f":"BG45*(1-Inputs!B21)+BG11*Inputs!B21+BG46","v":{"v":1100307.4662003727,"d":"$1,100,307"}},{"$f":"BH45*(1-Inputs!B21)+BH11*Inputs!B21+BH46","v":{"v":1141527.0226211774,"d":"$1,141,527"}},{"$f":"BI45*(1-Inputs!B21)+BI11*Inputs!B21+BI46","v":{"v":1089065.3602296363,"d":"$1,089,065"}},{"$f":"BJ45*(1-Inputs!B21)+BJ11*Inputs!B21+BJ46","v":{"v":1043474.7324232346,"d":"$1,043,475"}},{"$f":"BK45*(1-Inputs!B21)+BK11*Inputs!B21+BK46","v":{"v":1046621.5205442912,"d":"$1,046,622"}},{"$f":"BL45*(1-Inputs!B21)+BL11*Inputs!B21+BL46","v":{"v":1093759.4480012194,"d":"$1,093,759"}},{"$f":"BM45*(1-Inputs!B21)+BM11*Inputs!B21+BM46","v":{"v":1033964.0707376434,"d":"$1,033,964"}},{"$f":"SUM(BB44:BM44)","v":{"v":13150142.430419432,"d":"$13,150,142"}},{"$f":"BO45*(1-Inputs!B21)+BO11*Inputs!B21+BO46","v":{"v":1076816.8058139717,"d":"$1,076,817"}},{"$f":"BP45*(1-Inputs!B21)+BP11*Inputs!B21+BP46","v":{"v":1064951.205368106,"d":"$1,064,951"}},{"$f":"BQ45*(1-Inputs!B21)+BQ11*Inputs!B21+BQ46","v":{"v":1075004.0620441367,"d":"$1,075,004"}},{"$f":"BR45*(1-Inputs!B21)+BR11*Inputs!B21+BR46","v":{"v":1120889.0853163044,"d":"$1,120,889"}},{"$f":"BS45*(1-Inputs!B21)+BS11*Inputs!B21+BS46","v":{"v":1081276.5946556348,"d":"$1,081,277"}},{"$f":"BT45*(1-Inputs!B21)+BT11*Inputs!B21+BT46","v":{"v":1094247.5641226412,"d":"$1,094,248"}},{"$f":"BU45*(1-Inputs!B21)+BU11*Inputs!B21+BU46","v":{"v":1034975.562298365,"d":"$1,034,976"}},{"$f":"BV45*(1-Inputs!B21)+BV11*Inputs!B21+BV46","v":{"v":1078851.5060041775,"d":"$1,078,852"}},{"$f":"BW45*(1-Inputs!B21)+BW11*Inputs!B21+BW46","v":{"v":1097083.9756032445,"d":"$1,097,084"}},{"$f":"BX45*(1-Inputs!B21)+BX11*Inputs!B21+BX46","v":{"v":1058339.5506733262,"d":"$1,058,340"}},{"$f":"BY45*(1-Inputs!B21)+BY11*Inputs!B21+BY46","v":{"v":1045468.1399865155,"d":"$1,045,468"}},{"$f":"BZ45*(1-Inputs!B21)+BZ11*Inputs!B21+BZ46","v":{"v":1028045.780997058,"d":"$1,028,046"}},{"$f":"SUM(BO44:BZ44)","v":{"v":12855949.832883483,"d":"$12,855,950"}},{"$f":"CB45*(1-Inputs!B21)+CB11*Inputs!B21+CB46","v":{"v":1072226.770800911,"d":"$1,072,227"}},{"$f":"CC45*(1-Inputs!B21)+CC11*Inputs!B21+CC46","v":{"v":1086751.821471384,"d":"$1,086,752"}},{"$f":"CD45*(1-Inputs!B21)+CD11*Inputs!B21+CD46","v":{"v":1020218.0579701094,"d":"$1,020,218"}},{"$f":"CE45*(1-Inputs!B21)+CE11*Inputs!B21+CE46","v":{"v":1020761.7287526942,"d":"$1,020,762"}},{"$f":"CF45*(1-Inputs!B21)+CF11*Inputs!B21+CF46","v":{"v":1075299.5171311942,"d":"$1,075,300"}},{"$f":"CG45*(1-Inputs!B21)+CG11*Inputs!B21+CG46","v":{"v":1046239.7250576962,"d":"$1,046,240"}},{"$f":"CH45*(1-Inputs!B21)+CH11*Inputs!B21+CH46","v":{"v":1021650.9908874362,"d":"$1,021,651"}},{"$f":"CI45*(1-Inputs!B21)+CI11*Inputs!B21+CI46","v":{"v":1093409.8436335379,"d":"$1,093,410"}},{"$f":"CJ45*(1-Inputs!B21)+CJ11*Inputs!B21+CJ46","v":{"v":1064841.4048922474,"d":"$1,064,841"}},{"$f":"CK45*(1-Inputs!B21)+CK11*Inputs!B21+CK46","v":{"v":1064551.2501169255,"d":"$1,064,551"}},{"$f":"CL45*(1-Inputs!B21)+CL11*Inputs!B21+CL46","v":{"v":1023502.2918104453,"d":"$1,023,502"}},{"$f":"CM45*(1-Inputs!B21)+CM11*Inputs!B21+CM46","v":{"v":1028070.6534248942,"d":"$1,028,071"}},{"$f":"SUM(CB44:CM44)","v":{"v":12617524.055949476,"d":"$12,617,524"}},{"$f":"CO45*(1-Inputs!B21)+CO11*Inputs!B21+CO46","v":{"v":1067531.7979565638,"d":"$1,067,532"}},{"$f":"CP45*(1-Inputs!B21)+CP11*Inputs!B21+CP46","v":{"v":1054727.276540199,"d":"$1,054,727"}},{"$f":"CQ45*(1-Inputs!B21)+CQ11*Inputs!B21+CQ46","v":{"v":1055915.186304103,"d":"$1,055,915"}},{"$f":"CR45*(1-Inputs!B21)+CR11*Inputs!B21+CR46","v":{"v":1013357.306729537,"d":"$1,013,357"}},{"$f":"CS45*(1-Inputs!B21)+CS11*Inputs!B21+CS46","v":{"v":1054899.791985395,"d":"$1,054,900"}},{"$f":"CT45*(1-Inputs!B21)+CT11*Inputs!B21+CT46","v":{"v":1104549.6405441493,"d":"$1,104,550"}},{"$f":"CU45*(1-Inputs!B21)+CU11*Inputs!B21+CU46","v":{"v":1032206.5898731458,"d":"$1,032,207"}},{"$f":"CV45*(1-Inputs!B21)+CV11*Inputs!B21+CV46","v":{"v":1051546.17996621,"d":"$1,051,546"}},{"$f":"CW45*(1-Inputs!B21)+CW11*Inputs!B21+CW46","v":{"v":1012145.2889767027,"d":"$1,012,145"}},{"$f":"CX45*(1-Inputs!B21)+CX11*Inputs!B21+CX46","v":{"v":1061535.1734546376,"d":"$1,061,535"}},{"$f":"CY45*(1-Inputs!B21)+CY11*Inputs!B21+CY46","v":{"v":1082437.3779765053,"d":"$1,082,437"}},{"$f":"CZ45*(1-Inputs!B21)+CZ11*Inputs!B21+CZ46","v":{"v":1083478.9709438786,"d":"$1,083,479"}},{"$f":"SUM(CO44:CZ44)","v":{"v":12674330.581251027,"d":"$12,674,331"}},{"$f":"DB45*(1-Inputs!B21)+DB11*Inputs!B21+DB46","v":{"v":1040933.4139402967,"d":"$1,040,933"}},{"$f":"DC45*(1-Inputs!B21)+DC11*Inputs!B21+DC46","v":{"v":988250.705733655,"d":"$988,251"}},{"$f":"DD45*(1-Inputs!B21)+DD11*Inputs!B21+DD46","v":{"v":1031185.4157169745,"d":"$1,031,185"}},{"$f":"DE45*(1-Inputs!B21)+DE11*Inputs!B21+DE46","v":{"v":1027146.2334362891,"d":"$1,027,146"}},{"$f":"DF45*(1-Inputs!B21)+DF11*Inputs!B21+DF46","v":{"v":1024661.117103764,"d":"$1,024,661"}},{"$f":"DG45*(1-Inputs!B21)+DG11*Inputs!B21+DG46","v":{"v":1022244.8884179797,"d":"$1,022,245"}},{"$f":"DH45*(1-Inputs!B21)+DH11*Inputs!B21+DH46","v":{"v":1068893.0341109585,"d":"$1,068,893"}},{"$f":"DI45*(1-Inputs!B21)+DI11*Inputs!B21+DI46","v":{"v":1064879.9944282281,"d":"$1,064,880"}},{"$f":"DJ45*(1-Inputs!B21)+DJ11*Inputs!B21+DJ46","v":{"v":1072500.3324866514,"d":"$1,072,500"}},{"$f":"DK45*(1-Inputs!B21)+DK11*Inputs!B21+DK46","v":{"v":1031735.0237287002,"d":"$1,031,735"}},{"$f":"DL45*(1-Inputs!B21)+DL11*Inputs!B21+DL46","v":{"v":994382.5262172555,"d":"$994,383"}},{"$f":"DM45*(1-Inputs!B21)+DM11*Inputs!B21+DM46","v":{"v":1035111.8167487021,"d":"$1,035,112"}},{"$f":"SUM(DB44:DM44)","v":{"v":12401924.502069457,"d":"$12,401,925"}},{"$f":"DO45*(1-Inputs!B21)+DO11*Inputs!B21+DO46","v":{"v":1074685.4246610247,"d":"$1,074,685"}},{"$f":"DP45*(1-Inputs!B21)+DP11*Inputs!B21+DP46","v":{"v":1074163.920784875,"d":"$1,074,164"}},{"$f":"DQ45*(1-Inputs!B21)+DQ11*Inputs!B21+DQ46","v":{"v":1040599.0855678861,"d":"$1,040,599"}},{"$f":"DR45*(1-Inputs!B21)+DR11*Inputs!B21+DR46","v":{"v":1080940.9398962543,"d":"$1,080,941"}},{"$f":"DS45*(1-Inputs!B21)+DS11*Inputs!B21+DS46","v":{"v":1040822.233958831,"d":"$1,040,822"}},{"$f":"DT45*(1-Inputs!B21)+DT11*Inputs!B21+DT46","v":{"v":1026459.4271217257,"d":"$1,026,459"}},{"$f":"DU45*(1-Inputs!B21)+DU11*Inputs!B21+DU46","v":{"v":1043496.0759547836,"d":"$1,043,496"}},{"$f":"DV45*(1-Inputs!B21)+DV11*Inputs!B21+DV46","v":{"v":965943.0511301444,"d":"$965,943"}},{"$f":"DW45*(1-Inputs!B21)+DW11*Inputs!B21+DW46","v":{"v":1064111.546873058,"d":"$1,064,112"}},{"$f":"DX45*(1-Inputs!B21)+DX11*Inputs!B21+DX46","v":{"v":1028730.3704495872,"d":"$1,028,730"}},{"$f":"DY45*(1-Inputs!B21)+DY11*Inputs!B21+DY46","v":{"v":1072088.7781670687,"d":"$1,072,089"}},{"$f":"DZ45*(1-Inputs!B21)+DZ11*Inputs!B21+DZ46","v":{"v":1008573.2551671792,"d":"$1,008,573"}},{"$f":"SUM(DO44:DZ44)","v":{"v":12520614.109732417,"d":"$12,520,614"}},{"$f":"EB45*(1-Inputs!B21)+EB11*Inputs!B21+EB46","v":{"v":1047112.1793745182,"d":"$1,047,112"}},{"$f":"EC45*(1-Inputs!B21)+EC11*Inputs!B21+EC46","v":{"v":1058530.5817237399,"d":"$1,058,531"}},{"$f":"ED45*(1-Inputs!B21)+ED11*Inputs!B21+ED46","v":{"v":980780.5591207019,"d":"$980,781"}},{"$f":"EE45*(1-Inputs!B21)+EE11*Inputs!B21+EE46","v":{"v":1002193.0442663803,"d":"$1,002,193"}},{"$f":"EF45*(1-Inputs!B21)+EF11*Inputs!B21+EF46","v":{"v":995404.1934229697,"d":"$995,404"}},{"$f":"EG45*(1-Inputs!B21)+EG11*Inputs!B21+EG46","v":{"v":1030680.1518847366,"d":"$1,030,680"}},{"$f":"EH45*(1-Inputs!B21)+EH11*Inputs!B21+EH46","v":{"v":963324.8156239942,"d":"$963,325"}},{"$f":"EI45*(1-Inputs!B21)+EI11*Inputs!B21+EI46","v":{"v":958034.0656683226,"d":"$958,034"}},{"$f":"EJ45*(1-Inputs!B21)+EJ11*Inputs!B21+EJ46","v":{"v":989832.090446954,"d":"$989,832"}},{"$f":"EK45*(1-Inputs!B21)+EK11*Inputs!B21+EK46","v":{"v":1005757.0256626639,"d":"$1,005,757"}},{"$f":"EL45*(1-Inputs!B21)+EL11*Inputs!B21+EL46","v":{"v":996379.7539456313,"d":"$996,380"}},{"$f":"EM45*(1-Inputs!B21)+EM11*Inputs!B21+EM46","v":{"v":1062872.3656321683,"d":"$1,062,872"}},{"$f":"SUM(EB44:EM44)","v":{"v":12090900.826772783,"d":"$12,090,901"}}]
[{"$f":"Labels!B68","v":"Potential Output"},{"$f":"'(Other Computations)'!B8*(B28/Inputs!B27)^(1-Inputs!B20)*(B19/'(Other Computations)'!B194)^Inputs!B20","v":{"v":1166666.6666666667,"d":"$1,166,667"}},{"$f":"'(Other Computations)'!B8*(C28/Inputs!B27)^(1-Inputs!B20)*(C19/'(Other Computations)'!B194)^Inputs!B20","v":{"v":1166666.6666666667,"d":"$1,166,667"}},{"$f":"'(Other Computations)'!B8*(D28/Inputs!B27)^(1-Inputs!B20)*(D19/'(Other Computations)'!B194)^Inputs!B20","v":{"v":1166615.8566966692,"d":"$1,166,616"}},{"$f":"'(Other Computations)'!B8*(E28/Inputs!B27)^(1-Inputs!B20)*(E19/'(Other Computations)'!B194)^Inputs!B20","v":{"v":1166528.2061401985,"d":"$1,166,528"}},{"$f":"'(Other Computations)'!B8*(F28/Inputs!B27)^(1-Inputs!B20)*(F19/'(Other Computations)'!B194)^Inputs!B20","v":{"v":1166396.9929771663,"d":"$1,166,397"}},{"$f":"'(Other Computations)'!B8*(G28/Inputs!B27)^(1-Inputs!B20)*(G19/'(Other Computations)'!B194)^Inputs!B20","v":{"v":1166238.3047140029,"d":"$1,166,238"}},{"$f":"'(Other Computations)'!B8*(H28/Inputs!B27)^(1-Inputs!B20)*(H19/'(Other Computations)'!B194)^Inputs!B20","v":{"v":1166047.001647945,"d":"$1,166,047"}},{"$f":"'(Other Computations)'!B8*(I28/Inputs!B27)^(1-Inputs!B20)*(I19/'(Other Computations)'!B194)^Inputs!B20","v":{"v":1165829.3172762448,"d":"$1,165,829"}},{"$f":"'(Other Computations)'!B8*(J28/Inputs!B27)^(1-Inputs!B20)*(J19/'(Other Computations)'!B194)^Inputs!B20","v":{"v":1165575.3756011236,"d":"$1,165,575"}},{"$f":"'(Other Computations)'!B8*(K28/Inputs!B27)^(1-Inputs!B20)*(K19/'(Other Computations)'!B194)^Inputs!B20","v":{"v":1165294.2718349008,"d":"$1,165,294"}},{"$f":"'(Other Computations)'!B8*(L28/Inputs!B27)^(1-Inputs!B20)*(L19/'(Other Computations)'!B194)^Inputs!B20","v":{"v":1164974.2268017493,"d":"$1,164,974"}},{"$f":"'(Other Computations)'!B8*(M28/Inputs!B27)^(1-Inputs!B20)*(M19/'(Other Computations)'!B194)^Inputs!B20","v":{"v":1164625.3032545222,"d":"$1,164,625"}},{"$f":"SUM(B45:M45)","v":{"v":13991458.190277858,"d":"$13,991,458"}},{"$f":"'(Other Computations)'!B8*(O28/Inputs!B27)^(1-Inputs!B20)*(O19/'(Other Computations)'!B194)^Inputs!B20","v":{"v":1164252.6879094737,"d":"$1,164,253"}},{"$f":"'(Other Computations)'!B8*(P28/Inputs!B27)^(1-Inputs!B20)*(P19/'(Other Computations)'!B194)^Inputs!B20","v":{"v":1163846.0856866164,"d":"$1,163,846"}},{"$f":"'(Other Computations)'!B8*(Q28/Inputs!B27)^(1-Inputs!B20)*(Q19/'(Other Computations)'!B194)^Inputs!B20","v":{"v":1163413.3520446431,"d":"$1,163,413"}},{"$f":"'(Other Computations)'!B8*(R28/Inputs!B27)^(1-Inputs!B20)*(R19/'(Other Computations)'!B194)^Inputs!B20","v":{"v":1162950.6604229207,"d":"$1,162,951"}},{"$f":"'(Other Computations)'!B8*(S28/Inputs!B27)^(1-Inputs!B20)*(S19/'(Other Computations)'!B194)^Inputs!B20","v":{"v":1162469.816609165,"d":"$1,162,470"}},{"$f":"'(Other Computations)'!B8*(T28/Inputs!B27)^(1-Inputs!B20)*(T19/'(Other Computations)'!B194)^Inputs!B20","v":{"v":1161968.0371495697,"d":"$1,161,968"}},{"$f":"'(Other Computations)'!B8*(U28/Inputs!B27)^(1-Inputs!B20)*(U19/'(Other Computations)'!B194)^Inputs!B20","v":{"v":1161441.258024253,"d":"$1,161,441"}},{"$f":"'(Other Computations)'!B8*(V28/Inputs!B27)^(1-Inputs!B20)*(V19/'(Other Computations)'!B194)^Inputs!B20","v":{"v":1160888.379045682,"d":"$1,160,888"}},{"$f":"'(Other Computations)'!B8*(W28/Inputs!B27)^(1-Inputs!B20)*(W19/'(Other Computations)'!B194)^Inputs!B20","v":{"v":1160299.7397594438,"d":"$1,160,300"}},{"$f":"'(Other Computations)'!B8*(X28/Inputs!B27)^(1-Inputs!B20)*(X19/'(Other Computations)'!B194)^Inputs!B20","v":{"v":1159683.4320016715,"d":"$1,159,683"}},{"$f":"'(Other Computations)'!B8*(Y28/Inputs!B27)^(1-Inputs!B20)*(Y19/'(Other Computations)'!B194)^Inputs!B20","v":{"v":1159048.2058305435,"d":"$1,159,048"}},{"$f":"'(Other Computations)'!B8*(Z28/Inputs!B27)^(1-Inputs!B20)*(Z19/'(Other Computations)'!B194)^Inputs!B20","v":{"v":1158393.0355645476,"d":"$1,158,393"}},{"$f":"SUM(O45:Z45)","v":{"v":13938654.690048529,"d":"$13,938,655"}},{"$f":"'(Other Computations)'!B8*(AB28/Inputs!B27)^(1-Inputs!B20)*(AB19/'(Other Computations)'!B194)^Inputs!B20","v":{"v":1157714.8537811185,"d":"$1,157,715"}},{"$f":"'(Other Computations)'!B8*(AC28/Inputs!B27)^(1-Inputs!B20)*(AC19/'(Other Computations)'!B194)^Inputs!B20","v":{"v":1157005.925234633,"d":"$1,157,006"}},{"$f":"'(Other Computations)'!B8*(AD28/Inputs!B27)^(1-Inputs!B20)*(AD19/'(Other Computations)'!B194)^Inputs!B20","v":{"v":1156286.5347667052,"d":"$1,156,287"}},{"$f":"'(Other Computations)'!B8*(AE28/Inputs!B27)^(1-Inputs!B20)*(AE19/'(Other Computations)'!B194)^Inputs!B20","v":{"v":1155545.0182548754,"d":"$1,155,545"}},{"$f":"'(Other Computations)'!B8*(AF28/Inputs!B27)^(1-Inputs!B20)*(AF19/'(Other Computations)'!B194)^Inputs!B20","v":{"v":1154779.379075374,"d":"$1,154,779"}},{"$f":"'(Other Computations)'!B8*(AG28/Inputs!B27)^(1-Inputs!B20)*(AG19/'(Other Computations)'!B194)^Inputs!B20","v":{"v":1154002.578059614,"d":"$1,154,003"}},{"$f":"'(Other Computations)'!B8*(AH28/Inputs!B27)^(1-Inputs!B20)*(AH19/'(Other Computations)'!B194)^Inputs!B20","v":{"v":1153198.2142429508,"d":"$1,153,198"}},{"$f":"'(Other Computations)'!B8*(AI28/Inputs!B27)^(1-Inputs!B20)*(AI19/'(Other Computations)'!B194)^Inputs!B20","v":{"v":1152383.427580166,"d":"$1,152,383"}},{"$f":"'(Other Computations)'!B8*(AJ28/Inputs!B27)^(1-Inputs!B20)*(AJ19/'(Other Computations)'!B194)^Inputs!B20","v":{"v":1151555.1381832145,"d":"$1,151,555"}},{"$f":"'(Other Computations)'!B8*(AK28/Inputs!B27)^(1-Inputs!B20)*(AK19/'(Other Computations)'!B194)^Inputs!B20","v":{"v":1150707.5946620272,"d":"$1,150,708"}},{"$f":"'(Other Computations)'!B8*(AL28/Inputs!B27)^(1-Inputs!B20)*(AL19/'(Other Computations)'!B194)^Inputs!B20","v":{"v":1149850.2204448476,"d":"$1,149,850"}},{"$f":"'(Other Computations)'!B8*(AM28/Inputs!B27)^(1-Inputs!B20)*(AM19/'(Other Computations)'!B194)^Inputs!B20","v":{"v":1148980.825268915,"d":"$1,148,981"}},{"$f":"SUM(AB45:AM45)","v":{"v":13842009.70955444,"d":"$13,842,010"}},{"$f":"'(Other Computations)'!B8*(AO28/Inputs!B27)^(1-Inputs!B20)*(AO19/'(Other Computations)'!B194)^Inputs!B20","v":{"v":1148096.1011973007,"d":"$1,148,096"}},{"$f":"'(Other Computations)'!B8*(AP28/Inputs!B27)^(1-Inputs!B20)*(AP19/'(Other Computations)'!B194)^Inputs!B20","v":{"v":1147196.0311445545,"d":"$1,147,196"}},{"$f":"'(Other Computations)'!B8*(AQ28/Inputs!B27)^(1-Inputs!B20)*(AQ19/'(Other Computations)'!B194)^Inputs!B20","v":{"v":1146290.1283029236,"d":"$1,146,290"}},{"$f":"'(Other Computations)'!B8*(AR28/Inputs!B27)^(1-Inputs!B20)*(AR19/'(Other Computations)'!B194)^Inputs!B20","v":{"v":1145380.051895274,"d":"$1,145,380"}},{"$f":"'(Other Computations)'!B8*(AS28/Inputs!B27)^(1-Inputs!B20)*(AS19/'(Other Computations)'!B194)^Inputs!B20","v":{"v":1144449.652833477,"d":"$1,144,450"}},{"$f":"'(Other Computations)'!B8*(AT28/Inputs!B27)^(1-Inputs!B20)*(AT19/'(Other Computations)'!B194)^Inputs!B20","v":{"v":1143507.0806586382,"d":"$1,143,507"}},{"$f":"'(Other Computations)'!B8*(AU28/Inputs!B27)^(1-Inputs!B20)*(AU19/'(Other Computations)'!B194)^Inputs!B20","v":{"v":1142559.8138626465,"d":"$1,142,560"}},{"$f":"'(Other Computations)'!B8*(AV28/Inputs!B27)^(1-Inputs!B20)*(AV19/'(Other Computations)'!B194)^Inputs!B20","v":{"v":1141599.7705303447,"d":"$1,141,600"}},{"$f":"'(Other Computations)'!B8*(AW28/Inputs!B27)^(1-Inputs!B20)*(AW19/'(Other Computations)'!B194)^Inputs!B20","v":{"v":1140624.6262129506,"d":"$1,140,625"}},{"$f":"'(Other Computations)'!B8*(AX28/Inputs!B27)^(1-Inputs!B20)*(AX19/'(Other Computations)'!B194)^Inputs!B20","v":{"v":1139643.2997775387,"d":"$1,139,643"}},{"$f":"'(Other Computations)'!B8*(AY28/Inputs!B27)^(1-Inputs!B20)*(AY19/'(Other Computations)'!B194)^Inputs!B20","v":{"v":1138647.3959586613,"d":"$1,138,647"}},{"$f":"'(Other Computations)'!B8*(AZ28/Inputs!B27)^(1-Inputs!B20)*(AZ19/'(Other Computations)'!B194)^Inputs!B20","v":{"v":1137651.032773917,"d":"$1,137,651"}},{"$f":"SUM(AO45:AZ45)","v":{"v":13715644.985148229,"d":"$13,715,645"}},{"$f":"'(Other Computations)'!B8*(BB28/Inputs!B27)^(1-Inputs!B20)*(BB19/'(Other Computations)'!B194)^Inputs!B20","v":{"v":1136640.851771392,"d":"$1,136,641"}},{"$f":"'(Other Computations)'!B8*(BC28/Inputs!B27)^(1-Inputs!B20)*(BC19/'(Other Computations)'!B194)^Inputs!B20","v":{"v":1135614.2121470845,"d":"$1,135,614"}},{"$f":"'(Other Computations)'!B8*(BD28/Inputs!B27)^(1-Inputs!B20)*(BD19/'(Other Computations)'!B194)^Inputs!B20","v":{"v":1134578.9551096717,"d":"$1,134,579"}},{"$f":"'(Other Computations)'!B8*(BE28/Inputs!B27)^(1-Inputs!B20)*(BE19/'(Other Computations)'!B194)^Inputs!B20","v":{"v":1133528.146351898,"d":"$1,133,528"}},{"$f":"'(Other Computations)'!B8*(BF28/Inputs!B27)^(1-Inputs!B20)*(BF19/'(Other Computations)'!B194)^Inputs!B20","v":{"v":1132477.303867812,"d":"$1,132,477"}},{"$f":"'(Other Computations)'!B8*(BG28/Inputs!B27)^(1-Inputs!B20)*(BG19/'(Other Computations)'!B194)^Inputs!B20","v":{"v":1131409.7550538767,"d":"$1,131,410"}},{"$f":"'(Other Computations)'!B8*(BH28/Inputs!B27)^(1-Inputs!B20)*(BH19/'(Other Computations)'!B194)^Inputs!B20","v":{"v":1130339.9352403055,"d":"$1,130,340"}},{"$f":"'(Other Computations)'!B8*(BI28/Inputs!B27)^(1-Inputs!B20)*(BI19/'(Other Computations)'!B194)^Inputs!B20","v":{"v":1129254.1365577218,"d":"$1,129,254"}},{"$f":"'(Other Computations)'!B8*(BJ28/Inputs!B27)^(1-Inputs!B20)*(BJ19/'(Other Computations)'!B194)^Inputs!B20","v":{"v":1128158.4534911122,"d":"$1,128,158"}},{"$f":"'(Other Computations)'!B8*(BK28/Inputs!B27)^(1-Inputs!B20)*(BK19/'(Other Computations)'!B194)^Inputs!B20","v":{"v":1127060.9092882155,"d":"$1,127,061"}},{"$f":"'(Other Computations)'!B8*(BL28/Inputs!B27)^(1-Inputs!B20)*(BL19/'(Other Computations)'!B194)^Inputs!B20","v":{"v":1125960.4263643383,"d":"$1,125,960"}},{"$f":"'(Other Computations)'!B8*(BM28/Inputs!B27)^(1-Inputs!B20)*(BM19/'(Other Computations)'!B194)^Inputs!B20","v":{"v":1124854.6248893386,"d":"$1,124,855"}},{"$f":"SUM(BB45:BM45)","v":{"v":13569877.710132767,"d":"$13,569,878"}},{"$f":"'(Other Computations)'!B8*(BO28/Inputs!B27)^(1-Inputs!B20)*(BO19/'(Other Computations)'!B194)^Inputs!B20","v":{"v":1123750.9783049189,"d":"$1,123,751"}},{"$f":"'(Other Computations)'!B8*(BP28/Inputs!B27)^(1-Inputs!B20)*(BP19/'(Other Computations)'!B194)^Inputs!B20","v":{"v":1122644.197180516,"d":"$1,122,644"}},{"$f":"'(Other Computations)'!B8*(BQ28/Inputs!B27)^(1-Inputs!B20)*(BQ19/'(Other Computations)'!B194)^Inputs!B20","v":{"v":1121534.77499917,"d":"$1,121,535"}},{"$f":"'(Other Computations)'!B8*(BR28/Inputs!B27)^(1-Inputs!B20)*(BR19/'(Other Computations)'!B194)^Inputs!B20","v":{"v":1120426.0205462426,"d":"$1,120,426"}},{"$f":"'(Other Computations)'!B8*(BS28/Inputs!B27)^(1-Inputs!B20)*(BS19/'(Other Computations)'!B194)^Inputs!B20","v":{"v":1119309.3117052238,"d":"$1,119,309"}},{"$f":"'(Other Computations)'!B8*(BT28/Inputs!B27)^(1-Inputs!B20)*(BT19/'(Other Computations)'!B194)^Inputs!B20","v":{"v":1118191.7853950814,"d":"$1,118,192"}},{"$f":"'(Other Computations)'!B8*(BU28/Inputs!B27)^(1-Inputs!B20)*(BU19/'(Other Computations)'!B194)^Inputs!B20","v":{"v":1117077.727243377,"d":"$1,117,078"}},{"$f":"'(Other Computations)'!B8*(BV28/Inputs!B27)^(1-Inputs!B20)*(BV19/'(Other Computations)'!B194)^Inputs!B20","v":{"v":1115960.3897502793,"d":"$1,115,960"}},{"$f":"'(Other Computations)'!B8*(BW28/Inputs!B27)^(1-Inputs!B20)*(BW19/'(Other Computations)'!B194)^Inputs!B20","v":{"v":1114839.0397779923,"d":"$1,114,839"}},{"$f":"'(Other Computations)'!B8*(BX28/Inputs!B27)^(1-Inputs!B20)*(BX19/'(Other Computations)'!B194)^Inputs!B20","v":{"v":1113711.5416437585,"d":"$1,113,712"}},{"$f":"'(Other Computations)'!B8*(BY28/Inputs!B27)^(1-Inputs!B20)*(BY19/'(Other Computations)'!B194)^Inputs!B20","v":{"v":1112586.5955747191,"d":"$1,112,587"}},{"$f":"'(Other Computations)'!B8*(BZ28/Inputs!B27)^(1-Inputs!B20)*(BZ19/'(Other Computations)'!B194)^Inputs!B20","v":{"v":1111453.944234053,"d":"$1,111,454"}},{"$f":"SUM(BO45:BZ45)","v":{"v":13411486.306355333,"d":"$13,411,486"}},{"$f":"'(Other Computations)'!B8*(CB28/Inputs!B27)^(1-Inputs!B20)*(CB19/'(Other Computations)'!B194)^Inputs!B20","v":{"v":1110329.4552138448,"d":"$1,110,329"}},{"$f":"'(Other Computations)'!B8*(CC28/Inputs!B27)^(1-Inputs!B20)*(CC19/'(Other Computations)'!B194)^Inputs!B20","v":{"v":1109202.697508818,"d":"$1,109,203"}},{"$f":"'(Other Computations)'!B8*(CD28/Inputs!B27)^(1-Inputs!B20)*(CD19/'(Other Computations)'!B194)^Inputs!B20","v":{"v":1108079.5146201965,"d":"$1,108,080"}},{"$f":"'(Other Computations)'!B8*(CE28/Inputs!B27)^(1-Inputs!B20)*(CE19/'(Other Computations)'!B194)^Inputs!B20","v":{"v":1106955.1544739574,"d":"$1,106,955"}},{"$f":"'(Other Computations)'!B8*(CF28/Inputs!B27)^(1-Inputs!B20)*(CF19/'(Other Computations)'!B194)^Inputs!B20","v":{"v":1105831.8830533524,"d":"$1,105,832"}},{"$f":"'(Other Computations)'!B8*(CG28/Inputs!B27)^(1-Inputs!B20)*(CG19/'(Other Computations)'!B194)^Inputs!B20","v":{"v":1104710.1030401664,"d":"$1,104,710"}},{"$f":"'(Other Computations)'!B8*(CH28/Inputs!B27)^(1-Inputs!B20)*(CH19/'(Other Computations)'!B194)^Inputs!B20","v":{"v":1103589.2437064254,"d":"$1,103,589"}},{"$f":"'(Other Computations)'!B8*(CI28/Inputs!B27)^(1-Inputs!B20)*(CI19/'(Other Computations)'!B194)^Inputs!B20","v":{"v":1102474.341139226,"d":"$1,102,474"}},{"$f":"'(Other Computations)'!B8*(CJ28/Inputs!B27)^(1-Inputs!B20)*(CJ19/'(Other Computations)'!B194)^Inputs!B20","v":{"v":1101366.2001292836,"d":"$1,101,366"}},{"$f":"'(Other Computations)'!B8*(CK28/Inputs!B27)^(1-Inputs!B20)*(CK19/'(Other Computations)'!B194)^Inputs!B20","v":{"v":1100267.1002763081,"d":"$1,100,267"}},{"$f":"'(Other Computations)'!B8*(CL28/Inputs!B27)^(1-Inputs!B20)*(CL19/'(Other Computations)'!B194)^Inputs!B20","v":{"v":1099167.5870388602,"d":"$1,099,168"}},{"$f":"'(Other Computations)'!B8*(CM28/Inputs!B27)^(1-Inputs!B20)*(CM19/'(Other Computations)'!B194)^Inputs!B20","v":{"v":1098072.891039724,"d":"$1,098,073"}},{"$f":"SUM(CB45:CM45)","v":{"v":13250046.171240162,"d":"$13,250,046"}},{"$f":"'(Other Computations)'!B8*(CO28/Inputs!B27)^(1-Inputs!B20)*(CO19/'(Other Computations)'!B194)^Inputs!B20","v":{"v":1096985.5851565534,"d":"$1,096,986"}},{"$f":"'(Other Computations)'!B8*(CP28/Inputs!B27)^(1-Inputs!B20)*(CP19/'(Other Computations)'!B194)^Inputs!B20","v":{"v":1095908.474465621,"d":"$1,095,908"}},{"$f":"'(Other Computations)'!B8*(CQ28/Inputs!B27)^(1-Inputs!B20)*(CQ19/'(Other Computations)'!B194)^Inputs!B20","v":{"v":1094825.24222842,"d":"$1,094,825"}},{"$f":"'(Other Computations)'!B8*(CR28/Inputs!B27)^(1-Inputs!B20)*(CR19/'(Other Computations)'!B194)^Inputs!B20","v":{"v":1093746.1654883847,"d":"$1,093,746"}},{"$f":"'(Other Computations)'!B8*(CS28/Inputs!B27)^(1-Inputs!B20)*(CS19/'(Other Computations)'!B194)^Inputs!B20","v":{"v":1092665.5997979501,"d":"$1,092,666"}},{"$f":"'(Other Computations)'!B8*(CT28/Inputs!B27)^(1-Inputs!B20)*(CT19/'(Other Computations)'!B194)^Inputs!B20","v":{"v":1091588.2968859456,"d":"$1,091,588"}},{"$f":"'(Other Computations)'!B8*(CU28/Inputs!B27)^(1-Inputs!B20)*(CU19/'(Other Computations)'!B194)^Inputs!B20","v":{"v":1090511.4540494508,"d":"$1,090,511"}},{"$f":"'(Other Computations)'!B8*(CV28/Inputs!B27)^(1-Inputs!B20)*(CV19/'(Other Computations)'!B194)^Inputs!B20","v":{"v":1089437.4612560868,"d":"$1,089,437"}},{"$f":"'(Other Computations)'!B8*(CW28/Inputs!B27)^(1-Inputs!B20)*(CW19/'(Other Computations)'!B194)^Inputs!B20","v":{"v":1088368.8174605,"d":"$1,088,369"}},{"$f":"'(Other Computations)'!B8*(CX28/Inputs!B27)^(1-Inputs!B20)*(CX19/'(Other Computations)'!B194)^Inputs!B20","v":{"v":1087302.360128701,"d":"$1,087,302"}},{"$f":"'(Other Computations)'!B8*(CY28/Inputs!B27)^(1-Inputs!B20)*(CY19/'(Other Computations)'!B194)^Inputs!B20","v":{"v":1086231.7651560297,"d":"$1,086,232"}},{"$f":"'(Other Computations)'!B8*(CZ28/Inputs!B27)^(1-Inputs!B20)*(CZ19/'(Other Computations)'!B194)^Inputs!B20","v":{"v":1085171.33735319,"d":"$1,085,171"}},{"$f":"SUM(CO45:CZ45)","v":{"v":13092742.559426835,"d":"$13,092,743"}},{"$f":"'(Other Computations)'!B8*(DB28/Inputs!B27)^(1-Inputs!B20)*(DB19/'(Other Computations)'!B194)^Inputs!B20","v":{"v":1084108.2682275197,"d":"$1,084,108"}},{"$f":"'(Other Computations)'!B8*(DC28/Inputs!B27)^(1-Inputs!B20)*(DC19/'(Other Computations)'!B194)^Inputs!B20","v":{"v":1083052.7832177354,"d":"$1,083,053"}},{"$f":"'(Other Computations)'!B8*(DD28/Inputs!B27)^(1-Inputs!B20)*(DD19/'(Other Computations)'!B194)^Inputs!B20","v":{"v":1081992.4970361108,"d":"$1,081,992"}},{"$f":"'(Other Computations)'!B8*(DE28/Inputs!B27)^(1-Inputs!B20)*(DE19/'(Other Computations)'!B194)^Inputs!B20","v":{"v":1080923.230622694,"d":"$1,080,923"}},{"$f":"'(Other Computations)'!B8*(DF28/Inputs!B27)^(1-Inputs!B20)*(DF19/'(Other Computations)'!B194)^Inputs!B20","v":{"v":1079855.6021200048,"d":"$1,079,856"}},{"$f":"'(Other Computations)'!B8*(DG28/Inputs!B27)^(1-Inputs!B20)*(DG19/'(Other Computations)'!B194)^Inputs!B20","v":{"v":1078793.0172533083,"d":"$1,078,793"}},{"$f":"'(Other Computations)'!B8*(DH28/Inputs!B27)^(1-Inputs!B20)*(DH19/'(Other Computations)'!B194)^Inputs!B20","v":{"v":1077734.0947581374,"d":"$1,077,734"}},{"$f":"'(Other Computations)'!B8*(DI28/Inputs!B27)^(1-Inputs!B20)*(DI19/'(Other Computations)'!B194)^Inputs!B20","v":{"v":1076681.2470055732,"d":"$1,076,681"}},{"$f":"'(Other Computations)'!B8*(DJ28/Inputs!B27)^(1-Inputs!B20)*(DJ19/'(Other Computations)'!B194)^Inputs!B20","v":{"v":1075633.4038743714,"d":"$1,075,633"}},{"$f":"'(Other Computations)'!B8*(DK28/Inputs!B27)^(1-Inputs!B20)*(DK19/'(Other Computations)'!B194)^Inputs!B20","v":{"v":1074588.5445778512,"d":"$1,074,589"}},{"$f":"'(Other Computations)'!B8*(DL28/Inputs!B27)^(1-Inputs!B20)*(DL19/'(Other Computations)'!B194)^Inputs!B20","v":{"v":1073544.2730178453,"d":"$1,073,544"}},{"$f":"'(Other Computations)'!B8*(DM28/Inputs!B27)^(1-Inputs!B20)*(DM19/'(Other Computations)'!B194)^Inputs!B20","v":{"v":1072505.0836645495,"d":"$1,072,505"}},{"$f":"SUM(DB45:DM45)","v":{"v":12939412.045375701,"d":"$12,939,412"}},{"$f":"'(Other Computations)'!B8*(DO28/Inputs!B27)^(1-Inputs!B20)*(DO19/'(Other Computations)'!B194)^Inputs!B20","v":{"v":1071472.859338843,"d":"$1,071,473"}},{"$f":"'(Other Computations)'!B8*(DP28/Inputs!B27)^(1-Inputs!B20)*(DP19/'(Other Computations)'!B194)^Inputs!B20","v":{"v":1070445.4129641172,"d":"$1,070,445"}},{"$f":"'(Other Computations)'!B8*(DQ28/Inputs!B27)^(1-Inputs!B20)*(DQ19/'(Other Computations)'!B194)^Inputs!B20","v":{"v":1069424.0260272531,"d":"$1,069,424"}},{"$f":"'(Other Computations)'!B8*(DR28/Inputs!B27)^(1-Inputs!B20)*(DR19/'(Other Computations)'!B194)^Inputs!B20","v":{"v":1068409.335175262,"d":"$1,068,409"}},{"$f":"'(Other Computations)'!B8*(DS28/Inputs!B27)^(1-Inputs!B20)*(DS19/'(Other Computations)'!B194)^Inputs!B20","v":{"v":1067409.187065869,"d":"$1,067,409"}},{"$f":"'(Other Computations)'!B8*(DT28/Inputs!B27)^(1-Inputs!B20)*(DT19/'(Other Computations)'!B194)^Inputs!B20","v":{"v":1066401.2976385804,"d":"$1,066,401"}},{"$f":"'(Other Computations)'!B8*(DU28/Inputs!B27)^(1-Inputs!B20)*(DU19/'(Other Computations)'!B194)^Inputs!B20","v":{"v":1065393.044188025,"d":"$1,065,393"}},{"$f":"'(Other Computations)'!B8*(DV28/Inputs!B27)^(1-Inputs!B20)*(DV19/'(Other Computations)'!B194)^Inputs!B20","v":{"v":1064392.8119456512,"d":"$1,064,393"}},{"$f":"'(Other Computations)'!B8*(DW28/Inputs!B27)^(1-Inputs!B20)*(DW19/'(Other Computations)'!B194)^Inputs!B20","v":{"v":1063394.595267793,"d":"$1,063,395"}},{"$f":"'(Other Computations)'!B8*(DX28/Inputs!B27)^(1-Inputs!B20)*(DX19/'(Other Computations)'!B194)^Inputs!B20","v":{"v":1062404.510262495,"d":"$1,062,405"}},{"$f":"'(Other Computations)'!B8*(DY28/Inputs!B27)^(1-Inputs!B20)*(DY19/'(Other Computations)'!B194)^Inputs!B20","v":{"v":1061425.001015416,"d":"$1,061,425"}},{"$f":"'(Other Computations)'!B8*(DZ28/Inputs!B27)^(1-Inputs!B20)*(DZ19/'(Other Computations)'!B194)^Inputs!B20","v":{"v":1060447.0784054508,"d":"$1,060,447"}},{"$f":"SUM(DO45:DZ45)","v":{"v":12791019.159294754,"d":"$12,791,019"}},{"$f":"'(Other Computations)'!B8*(EB28/Inputs!B27)^(1-Inputs!B20)*(EB19/'(Other Computations)'!B194)^Inputs!B20","v":{"v":1059468.8076870071,"d":"$1,059,469"}},{"$f":"'(Other Computations)'!B8*(EC28/Inputs!B27)^(1-Inputs!B20)*(EC19/'(Other Computations)'!B194)^Inputs!B20","v":{"v":1058486.9400210069,"d":"$1,058,487"}},{"$f":"'(Other Computations)'!B8*(ED28/Inputs!B27)^(1-Inputs!B20)*(ED19/'(Other Computations)'!B194)^Inputs!B20","v":{"v":1057508.1837569121,"d":"$1,057,508"}},{"$f":"'(Other Computations)'!B8*(EE28/Inputs!B27)^(1-Inputs!B20)*(EE19/'(Other Computations)'!B194)^Inputs!B20","v":{"v":1056530.1654123405,"d":"$1,056,530"}},{"$f":"'(Other Computations)'!B8*(EF28/Inputs!B27)^(1-Inputs!B20)*(EF19/'(Other Computations)'!B194)^Inputs!B20","v":{"v":1055557.593416733,"d":"$1,055,558"}},{"$f":"'(Other Computations)'!B8*(EG28/Inputs!B27)^(1-Inputs!B20)*(EG19/'(Other Computations)'!B194)^Inputs!B20","v":{"v":1054590.4447638395,"d":"$1,054,590"}},{"$f":"'(Other Computations)'!B8*(EH28/Inputs!B27)^(1-Inputs!B20)*(EH19/'(Other Computations)'!B194)^Inputs!B20","v":{"v":1053626.0381034664,"d":"$1,053,626"}},{"$f":"'(Other Computations)'!B8*(EI28/Inputs!B27)^(1-Inputs!B20)*(EI19/'(Other Computations)'!B194)^Inputs!B20","v":{"v":1052664.4931146153,"d":"$1,052,664"}},{"$f":"'(Other Computations)'!B8*(EJ28/Inputs!B27)^(1-Inputs!B20)*(EJ19/'(Other Computations)'!B194)^Inputs!B20","v":{"v":1051711.7540986321,"d":"$1,051,712"}},{"$f":"'(Other Computations)'!B8*(EK28/Inputs!B27)^(1-Inputs!B20)*(EK19/'(Other Computations)'!B194)^Inputs!B20","v":{"v":1050754.3297505556,"d":"$1,050,754"}},{"$f":"'(Other Computations)'!B8*(EL28/Inputs!B27)^(1-Inputs!B20)*(EL19/'(Other Computations)'!B194)^Inputs!B20","v":{"v":1049790.1281574713,"d":"$1,049,790"}},{"$f":"'(Other Computations)'!B8*(EM28/Inputs!B27)^(1-Inputs!B20)*(EM19/'(Other Computations)'!B194)^Inputs!B20","v":{"v":1048837.9338852328,"d":"$1,048,838"}},{"$f":"SUM(EB45:EM45)","v":{"v":12649526.81216781,"d":"$12,649,527"}}]
[{"$f":"Labels!B78","v":"Output Shock"},{"$f":"NORMINV(RAND()*(1-2*Inputs!B58)+Inputs!B58,0,'(Other Computations)'!B208)","v":{"v":-16324.18185339645,"d":"($16,324)"}},{"$f":"NORMINV(RAND()*(1-2*Inputs!B58)+Inputs!B58,0,'(Other Computations)'!B208)","v":{"v":33568.788368392154,"d":"$33,569"}},{"$f":"NORMINV(RAND()*(1-2*Inputs!B58)+Inputs!B58,0,'(Other Computations)'!B208)","v":{"v":-18702.476172001483,"d":"($18,702)"}},{"$f":"NORMINV(RAND()*(1-2*Inputs!B58)+Inputs!B58,0,'(Other Computations)'!B208)","v":{"v":-27761.66044695444,"d":"($27,762)"}},{"$f":"NORMINV(RAND()*(1-2*Inputs!B58)+Inputs!B58,0,'(Other Computations)'!B208)","v":{"v":21038.893815388903,"d":"$21,039"}},{"$f":"NORMINV(RAND()*(1-2*Inputs!B58)+Inputs!B58,0,'(Other Computations)'!B208)","v":{"v":-4939.411993680894,"d":"($4,939)"}},{"$f":"NORMINV(RAND()*(1-2*Inputs!B58)+Inputs!B58,0,'(Other Computations)'!B208)","v":{"v":6819.644781994933,"d":"$6,820"}},{"$f":"NORMINV(RAND()*(1-2*Inputs!B58)+Inputs!B58,0,'(Other Computations)'!B208)","v":{"v":7190.962794409065,"d":"$7,191"}},{"$f":"NORMINV(RAND()*(1-2*Inputs!B58)+Inputs!B58,0,'(Other Computations)'!B208)","v":{"v":37289.19901768503,"d":"$37,289"}},{"$f":"NORMINV(RAND()*(1-2*Inputs!B58)+Inputs!B58,0,'(Other Computations)'!B208)","v":{"v":-29666.26984857214,"d":"($29,666)"}},{"$f":"NORMINV(RAND()*(1-2*Inputs!B58)+Inputs!B58,0,'(Other Computations)'!B208)","v":{"v":-16366.038791901623,"d":"($16,366)"}},{"$f":"NORMINV(RAND()*(1-2*Inputs!B58)+Inputs!B58,0,'(Other Computations)'!B208)","v":{"v":5585.3950857331465,"d":"$5,585"}},{"$f":"SUM(B46:M46)","v":{"v":-2267.1552429037974,"d":"($2,267)"}},{"$f":"NORMINV(RAND()*(1-2*Inputs!B58)+Inputs!B58,0,'(Other Computations)'!B208)","v":{"v":-10795.084942754684,"d":"($10,795)"}},{"$f":"NORMINV(RAND()*(1-2*Inputs!B58)+Inputs!B58,0,'(Other Computations)'!B208)","v":{"v":19451.683761099997,"d":"$19,452"}},{"$f":"NORMINV(RAND()*(1-2*Inputs!B58)+Inputs!B58,0,'(Other Computations)'!B208)","v":{"v":-23811.46676714038,"d":"($23,811)"}},{"$f":"NORMINV(RAND()*(1-2*Inputs!B58)+Inputs!B58,0,'(Other Computations)'!B208)","v":{"v":33856.3083220379,"d":"$33,856"}},{"$f":"NORMINV(RAND()*(1-2*Inputs!B58)+Inputs!B58,0,'(Other Computations)'!B208)","v":{"v":58938.56057336461,"d":"$58,939"}},{"$f":"NORMINV(RAND()*(1-2*Inputs!B58)+Inputs!B58,0,'(Other Computations)'!B208)","v":{"v":-21345.745783946997,"d":"($21,346)"}},{"$f":"NORMINV(RAND()*(1-2*Inputs!B58)+Inputs!B58,0,'(Other Computations)'!B208)","v":{"v":35087.99837219469,"d":"$35,088"}},{"$f":"NORMINV(RAND()*(1-2*Inputs!B58)+Inputs!B58,0,'(Other Computations)'!B208)","v":{"v":42146.10089378718,"d":"$42,146"}},{"$f":"NORMINV(RAND()*(1-2*Inputs!B58)+Inputs!B58,0,'(Other Computations)'!B208)","v":{"v":-13171.257442979613,"d":"($13,171)"}},{"$f":"NORMINV(RAND()*(1-2*Inputs!B58)+Inputs!B58,0,'(Other Computations)'!B208)","v":{"v":16631.85343910344,"d":"$16,632"}},{"$f":"NORMINV(RAND()*(1-2*Inputs!B58)+Inputs!B58,0,'(Other Computations)'!B208)","v":{"v":-49833.08309622176,"d":"($49,833)"}},{"$f":"NORMINV(RAND()*(1-2*Inputs!B58)+Inputs!B58,0,'(Other Computations)'!B208)","v":{"v":5954.762609479143,"d":"$5,955"}},{"$f":"SUM(O46:Z46)","v":{"v":93110.62993802353,"d":"$93,111"}},{"$f":"NORMINV(RAND()*(1-2*Inputs!B58)+Inputs!B58,0,'(Other Computations)'!B208)","v":{"v":10967.076633691257,"d":"$10,967"}},{"$f":"NORMINV(RAND()*(1-2*Inputs!B58)+Inputs!B58,0,'(Other Computations)'!B208)","v":{"v":36310.39961164325,"d":"$36,310"}},{"$f":"NORMINV(RAND()*(1-2*Inputs!B58)+Inputs!B58,0,'(Other Computations)'!B208)","v":{"v":-8350.65506056013,"d":"($8,351)"}},{"$f":"NORMINV(RAND()*(1-2*Inputs!B58)+Inputs!B58,0,'(Other Computations)'!B208)","v":{"v":12701.442550836784,"d":"$12,701"}},{"$f":"NORMINV(RAND()*(1-2*Inputs!B58)+Inputs!B58,0,'(Other Computations)'!B208)","v":{"v":8820.79722027423,"d":"$8,821"}},{"$f":"NORMINV(RAND()*(1-2*Inputs!B58)+Inputs!B58,0,'(Other Computations)'!B208)","v":{"v":-6812.8027120040915,"d":"($6,813)"}},{"$f":"NORMINV(RAND()*(1-2*Inputs!B58)+Inputs!B58,0,'(Other Computations)'!B208)","v":{"v":-38450.38219687737,"d":"($38,450)"}},{"$f":"NORMINV(RAND()*(1-2*Inputs!B58)+Inputs!B58,0,'(Other Computations)'!B208)","v":{"v":17803.559889623004,"d":"$17,804"}},{"$f":"NORMINV(RAND()*(1-2*Inputs!B58)+Inputs!B58,0,'(Other Computations)'!B208)","v":{"v":17759.530389980682,"d":"$17,760"}},{"$f":"NORMINV(RAND()*(1-2*Inputs!B58)+Inputs!B58,0,'(Other Computations)'!B208)","v":{"v":8739.903499533662,"d":"$8,740"}},{"$f":"NORMINV(RAND()*(1-2*Inputs!B58)+Inputs!B58,0,'(Other Computations)'!B208)","v":{"v":-26193.155741902217,"d":"($26,193)"}},{"$f":"NORMINV(RAND()*(1-2*Inputs!B58)+Inputs!B58,0,'(Other Computations)'!B208)","v":{"v":55539.646939706916,"d":"$55,540"}},{"$f":"SUM(AB46:AM46)","v":{"v":88835.36102394598,"d":"$88,835"}},{"$f":"NORMINV(RAND()*(1-2*Inputs!B58)+Inputs!B58,0,'(Other Computations)'!B208)","v":{"v":-27469.407552991703,"d":"($27,469)"}},{"$f":"NORMINV(RAND()*(1-2*Inputs!B58)+Inputs!B58,0,'(Other Computations)'!B208)","v":{"v":11047.322160897138,"d":"$11,047"}},{"$f":"NORMINV(RAND()*(1-2*Inputs!B58)+Inputs!B58,0,'(Other Computations)'!B208)","v":{"v":54214.451372333955,"d":"$54,214"}},{"$f":"NORMINV(RAND()*(1-2*Inputs!B58)+Inputs!B58,0,'(Other Computations)'!B208)","v":{"v":33160.62556037906,"d":"$33,161"}},{"$f":"NORMINV(RAND()*(1-2*Inputs!B58)+Inputs!B58,0,'(Other Computations)'!B208)","v":{"v":-5848.902293565168,"d":"($5,849)"}},{"$f":"NORMINV(RAND()*(1-2*Inputs!B58)+Inputs!B58,0,'(Other Computations)'!B208)","v":{"v":13294.320718329824,"d":"$13,294"}},{"$f":"NORMINV(RAND()*(1-2*Inputs!B58)+Inputs!B58,0,'(Other Computations)'!B208)","v":{"v":44475.72545554984,"d":"$44,476"}},{"$f":"NORMINV(RAND()*(1-2*Inputs!B58)+Inputs!B58,0,'(Other Computations)'!B208)","v":{"v":34781.6888264478,"d":"$34,782"}},{"$f":"NORMINV(RAND()*(1-2*Inputs!B58)+Inputs!B58,0,'(Other Computations)'!B208)","v":{"v":-52490.15405563725,"d":"($52,490)"}},{"$f":"NORMINV(RAND()*(1-2*Inputs!B58)+Inputs!B58,0,'(Other Computations)'!B208)","v":{"v":44435.54280223794,"d":"$44,436"}},{"$f":"NORMINV(RAND()*(1-2*Inputs!B58)+Inputs!B58,0,'(Other Computations)'!B208)","v":{"v":-10070.289649915165,"d":"($10,070)"}},{"$f":"NORMINV(RAND()*(1-2*Inputs!B58)+Inputs!B58,0,'(Other Computations)'!B208)","v":{"v":2345.309219506784,"d":"$2,345"}},{"$f":"SUM(AO46:AZ46)","v":{"v":141876.23256357305,"d":"$141,876"}},{"$f":"NORMINV(RAND()*(1-2*Inputs!B58)+Inputs!B58,0,'(Other Computations)'!B208)","v":{"v":38932.93961108616,"d":"$38,933"}},{"$f":"NORMINV(RAND()*(1-2*Inputs!B58)+Inputs!B58,0,'(Other Computations)'!B208)","v":{"v":54023.59345674434,"d":"$54,024"}},{"$f":"NORMINV(RAND()*(1-2*Inputs!B58)+Inputs!B58,0,'(Other Computations)'!B208)","v":{"v":-497.91756768761303,"d":"($498)"}},{"$f":"NORMINV(RAND()*(1-2*Inputs!B58)+Inputs!B58,0,'(Other Computations)'!B208)","v":{"v":29263.814590545964,"d":"$29,264"}},{"$f":"NORMINV(RAND()*(1-2*Inputs!B58)+Inputs!B58,0,'(Other Computations)'!B208)","v":{"v":6690.600349725405,"d":"$6,691"}},{"$f":"NORMINV(RAND()*(1-2*Inputs!B58)+Inputs!B58,0,'(Other Computations)'!B208)","v":{"v":9976.009093624647,"d":"$9,976"}},{"$f":"NORMINV(RAND()*(1-2*Inputs!B58)+Inputs!B58,0,'(Other Computations)'!B208)","v":{"v":52921.4126618016,"d":"$52,921"}},{"$f":"NORMINV(RAND()*(1-2*Inputs!B58)+Inputs!B58,0,'(Other Computations)'!B208)","v":{"v":1988.7585373830511,"d":"$1,989"}},{"$f":"NORMINV(RAND()*(1-2*Inputs!B58)+Inputs!B58,0,'(Other Computations)'!B208)","v":{"v":-42343.99468329463,"d":"($42,344)"}},{"$f":"NORMINV(RAND()*(1-2*Inputs!B58)+Inputs!B58,0,'(Other Computations)'!B208)","v":{"v":-37899.93536821423,"d":"($37,900)"}},{"$f":"NORMINV(RAND()*(1-2*Inputs!B58)+Inputs!B58,0,'(Other Computations)'!B208)","v":{"v":10621.50626732494,"d":"$10,622"}},{"$f":"NORMINV(RAND()*(1-2*Inputs!B58)+Inputs!B58,0,'(Other Computations)'!B208)","v":{"v":-48047.06783244648,"d":"($48,047)"}},{"$f":"SUM(BB46:BM46)","v":{"v":75629.71911659313,"d":"$75,630"}},{"$f":"NORMINV(RAND()*(1-2*Inputs!B58)+Inputs!B58,0,'(Other Computations)'!B208)","v":{"v":-3884.842878164223,"d":"($3,885)"}},{"$f":"NORMINV(RAND()*(1-2*Inputs!B58)+Inputs!B58,0,'(Other Computations)'!B208)","v":{"v":-14455.260352131521,"d":"($14,455)"}},{"$f":"NORMINV(RAND()*(1-2*Inputs!B58)+Inputs!B58,0,'(Other Computations)'!B208)","v":{"v":-3220.7468718636405,"d":"($3,221)"}},{"$f":"NORMINV(RAND()*(1-2*Inputs!B58)+Inputs!B58,0,'(Other Computations)'!B208)","v":{"v":44146.97281569893,"d":"$44,147"}},{"$f":"NORMINV(RAND()*(1-2*Inputs!B58)+Inputs!B58,0,'(Other Computations)'!B208)","v":{"v":5775.333682011811,"d":"$5,775"}},{"$f":"NORMINV(RAND()*(1-2*Inputs!B58)+Inputs!B58,0,'(Other Computations)'!B208)","v":{"v":19837.46911526968,"d":"$19,837"}},{"$f":"NORMINV(RAND()*(1-2*Inputs!B58)+Inputs!B58,0,'(Other Computations)'!B208)","v":{"v":-38111.17899261447,"d":"($38,111)"}},{"$f":"NORMINV(RAND()*(1-2*Inputs!B58)+Inputs!B58,0,'(Other Computations)'!B208)","v":{"v":7116.961787428852,"d":"$7,117"}},{"$f":"NORMINV(RAND()*(1-2*Inputs!B58)+Inputs!B58,0,'(Other Computations)'!B208)","v":{"v":26780.387702505417,"d":"$26,780"}},{"$f":"NORMINV(RAND()*(1-2*Inputs!B58)+Inputs!B58,0,'(Other Computations)'!B208)","v":{"v":-10831.447627490785,"d":"($10,831)"}},{"$f":"NORMINV(RAND()*(1-2*Inputs!B58)+Inputs!B58,0,'(Other Computations)'!B208)","v":{"v":-22214.328609721735,"d":"($22,214)"}},{"$f":"NORMINV(RAND()*(1-2*Inputs!B58)+Inputs!B58,0,'(Other Computations)'!B208)","v":{"v":-38695.64116534604,"d":"($38,696)"}},{"$f":"SUM(BO46:BZ46)","v":{"v":-27756.321394417726,"d":"($27,756)"}},{"$f":"NORMINV(RAND()*(1-2*Inputs!B58)+Inputs!B58,0,'(Other Computations)'!B208)","v":{"v":6782.201106987461,"d":"$6,782"}},{"$f":"NORMINV(RAND()*(1-2*Inputs!B58)+Inputs!B58,0,'(Other Computations)'!B208)","v":{"v":22401.676246076215,"d":"$22,402"}},{"$f":"NORMINV(RAND()*(1-2*Inputs!B58)+Inputs!B58,0,'(Other Computations)'!B208)","v":{"v":-42875.67079866582,"d":"($42,876)"}},{"$f":"NORMINV(RAND()*(1-2*Inputs!B58)+Inputs!B58,0,'(Other Computations)'!B208)","v":{"v":-41153.970349064955,"d":"($41,154)"}},{"$f":"NORMINV(RAND()*(1-2*Inputs!B58)+Inputs!B58,0,'(Other Computations)'!B208)","v":{"v":14546.187318544498,"d":"$14,546"}},{"$f":"NORMINV(RAND()*(1-2*Inputs!B58)+Inputs!B58,0,'(Other Computations)'!B208)","v":{"v":-13333.28297182479,"d":"($13,333)"}},{"$f":"NORMINV(RAND()*(1-2*Inputs!B58)+Inputs!B58,0,'(Other Computations)'!B208)","v":{"v":-36919.19465231047,"d":"($36,919)"}},{"$f":"NORMINV(RAND()*(1-2*Inputs!B58)+Inputs!B58,0,'(Other Computations)'!B208)","v":{"v":35807.47701570093,"d":"$35,807"}},{"$f":"NORMINV(RAND()*(1-2*Inputs!B58)+Inputs!B58,0,'(Other Computations)'!B208)","v":{"v":8119.427380007398,"d":"$8,119"}},{"$f":"NORMINV(RAND()*(1-2*Inputs!B58)+Inputs!B58,0,'(Other Computations)'!B208)","v":{"v":9029.941106570152,"d":"$9,030"}},{"$f":"NORMINV(RAND()*(1-2*Inputs!B58)+Inputs!B58,0,'(Other Computations)'!B208)","v":{"v":-31001.069820314835,"d":"($31,001)"}},{"$f":"NORMINV(RAND()*(1-2*Inputs!B58)+Inputs!B58,0,'(Other Computations)'!B208)","v":{"v":-25510.271977394634,"d":"($25,510)"}},{"$f":"SUM(CB46:CM46)","v":{"v":-94106.55039568884,"d":"($94,107)"}},{"$f":"NORMINV(RAND()*(1-2*Inputs!B58)+Inputs!B58,0,'(Other Computations)'!B208)","v":{"v":14766.90088387535,"d":"$14,767"}},{"$f":"NORMINV(RAND()*(1-2*Inputs!B58)+Inputs!B58,0,'(Other Computations)'!B208)","v":{"v":3337.0018901194117,"d":"$3,337"}},{"$f":"NORMINV(RAND()*(1-2*Inputs!B58)+Inputs!B58,0,'(Other Computations)'!B208)","v":{"v":5546.876057504015,"d":"$5,547"}},{"$f":"NORMINV(RAND()*(1-2*Inputs!B58)+Inputs!B58,0,'(Other Computations)'!B208)","v":{"v":-35796.762599325775,"d":"($35,797)"}},{"$f":"NORMINV(RAND()*(1-2*Inputs!B58)+Inputs!B58,0,'(Other Computations)'!B208)","v":{"v":6795.315539021217,"d":"$6,795"}},{"$f":"NORMINV(RAND()*(1-2*Inputs!B58)+Inputs!B58,0,'(Other Computations)'!B208)","v":{"v":57588.73310831147,"d":"$57,589"}},{"$f":"NORMINV(RAND()*(1-2*Inputs!B58)+Inputs!B58,0,'(Other Computations)'!B208)","v":{"v":-13695.01462814542,"d":"($13,695)"}},{"$f":"NORMINV(RAND()*(1-2*Inputs!B58)+Inputs!B58,0,'(Other Computations)'!B208)","v":{"v":6613.220419527352,"d":"$6,613"}},{"$f":"NORMINV(RAND()*(1-2*Inputs!B58)+Inputs!B58,0,'(Other Computations)'!B208)","v":{"v":-31714.792275194526,"d":"($31,715)"}},{"$f":"NORMINV(RAND()*(1-2*Inputs!B58)+Inputs!B58,0,'(Other Computations)'!B208)","v":{"v":18965.96479025624,"d":"$18,966"}},{"$f":"NORMINV(RAND()*(1-2*Inputs!B58)+Inputs!B58,0,'(Other Computations)'!B208)","v":{"v":40664.10553786462,"d":"$40,664"}},{"$f":"NORMINV(RAND()*(1-2*Inputs!B58)+Inputs!B58,0,'(Other Computations)'!B208)","v":{"v":42937.10853564603,"d":"$42,937"}},{"$f":"SUM(CO46:CZ46)","v":{"v":116008.65725945999,"d":"$116,009"}},{"$f":"NORMINV(RAND()*(1-2*Inputs!B58)+Inputs!B58,0,'(Other Computations)'!B208)","v":{"v":1268.8388064517817,"d":"$1,269"}},{"$f":"NORMINV(RAND()*(1-2*Inputs!B58)+Inputs!B58,0,'(Other Computations)'!B208)","v":{"v":-50113.17120270638,"d":"($50,113)"}},{"$f":"NORMINV(RAND()*(1-2*Inputs!B58)+Inputs!B58,0,'(Other Computations)'!B208)","v":{"v":-5727.103917446386,"d":"($5,727)"}},{"$f":"NORMINV(RAND()*(1-2*Inputs!B58)+Inputs!B58,0,'(Other Computations)'!B208)","v":{"v":-8675.69728517869,"d":"($8,676)"}},{"$f":"NORMINV(RAND()*(1-2*Inputs!B58)+Inputs!B58,0,'(Other Computations)'!B208)","v":{"v":-10191.048344447225,"d":"($10,191)"}},{"$f":"NORMINV(RAND()*(1-2*Inputs!B58)+Inputs!B58,0,'(Other Computations)'!B208)","v":{"v":-11595.153544934183,"d":"($11,595)"}},{"$f":"NORMINV(RAND()*(1-2*Inputs!B58)+Inputs!B58,0,'(Other Computations)'!B208)","v":{"v":35976.75120785543,"d":"$35,977"}},{"$f":"NORMINV(RAND()*(1-2*Inputs!B58)+Inputs!B58,0,'(Other Computations)'!B208)","v":{"v":32917.85899824928,"d":"$32,918"}},{"$f":"NORMINV(RAND()*(1-2*Inputs!B58)+Inputs!B58,0,'(Other Computations)'!B208)","v":{"v":41557.02266591876,"d":"$41,557"}},{"$f":"NORMINV(RAND()*(1-2*Inputs!B58)+Inputs!B58,0,'(Other Computations)'!B208)","v":{"v":1890.4868834953052,"d":"$1,890"}},{"$f":"NORMINV(RAND()*(1-2*Inputs!B58)+Inputs!B58,0,'(Other Computations)'!B208)","v":{"v":-34520.727054035655,"d":"($34,521)"}},{"$f":"NORMINV(RAND()*(1-2*Inputs!B58)+Inputs!B58,0,'(Other Computations)'!B208)","v":{"v":7078.456370738485,"d":"$7,078"}},{"$f":"SUM(DB46:DM46)","v":{"v":-133.4864160394709,"d":"($133)"}},{"$f":"NORMINV(RAND()*(1-2*Inputs!B58)+Inputs!B58,0,'(Other Computations)'!B208)","v":{"v":47590.26997253971,"d":"$47,590"}},{"$f":"NORMINV(RAND()*(1-2*Inputs!B58)+Inputs!B58,0,'(Other Computations)'!B208)","v":{"v":47956.87782112958,"d":"$47,957"}},{"$f":"NORMINV(RAND()*(1-2*Inputs!B58)+Inputs!B58,0,'(Other Computations)'!B208)","v":{"v":15251.127236160739,"d":"$15,251"}},{"$f":"NORMINV(RAND()*(1-2*Inputs!B58)+Inputs!B58,0,'(Other Computations)'!B208)","v":{"v":56171.352763406336,"d":"$56,171"}},{"$f":"NORMINV(RAND()*(1-2*Inputs!B58)+Inputs!B58,0,'(Other Computations)'!B208)","v":{"v":17390.608390588335,"d":"$17,391"}},{"$f":"NORMINV(RAND()*(1-2*Inputs!B58)+Inputs!B58,0,'(Other Computations)'!B208)","v":{"v":4117.176468130374,"d":"$4,117"}},{"$f":"NORMINV(RAND()*(1-2*Inputs!B58)+Inputs!B58,0,'(Other Computations)'!B208)","v":{"v":21951.54054266715,"d":"$21,952"}},{"$f":"NORMINV(RAND()*(1-2*Inputs!B58)+Inputs!B58,0,'(Other Computations)'!B208)","v":{"v":-54603.780431446045,"d":"($54,604)"}},{"$f":"NORMINV(RAND()*(1-2*Inputs!B58)+Inputs!B58,0,'(Other Computations)'!B208)","v":{"v":44347.19459994424,"d":"$44,347"}},{"$f":"NORMINV(RAND()*(1-2*Inputs!B58)+Inputs!B58,0,'(Other Computations)'!B208)","v":{"v":9654.383797183034,"d":"$9,654"}},{"$f":"NORMINV(RAND()*(1-2*Inputs!B58)+Inputs!B58,0,'(Other Computations)'!B208)","v":{"v":54002.07338427026,"d":"$54,002"}},{"$f":"NORMINV(RAND()*(1-2*Inputs!B58)+Inputs!B58,0,'(Other Computations)'!B208)","v":{"v":-8458.840024507997,"d":"($8,459)"}},{"$f":"SUM(DO46:DZ46)","v":{"v":255369.98452006571,"d":"$255,370"}},{"$f":"NORMINV(RAND()*(1-2*Inputs!B58)+Inputs!B58,0,'(Other Computations)'!B208)","v":{"v":31247.816171504735,"d":"$31,248"}},{"$f":"NORMINV(RAND()*(1-2*Inputs!B58)+Inputs!B58,0,'(Other Computations)'!B208)","v":{"v":43604.38633411743,"d":"$43,604"}},{"$f":"NORMINV(RAND()*(1-2*Inputs!B58)+Inputs!B58,0,'(Other Computations)'!B208)","v":{"v":-33128.56998880579,"d":"($33,129)"}},{"$f":"NORMINV(RAND()*(1-2*Inputs!B58)+Inputs!B58,0,'(Other Computations)'!B208)","v":{"v":-10863.721174565768,"d":"($10,864)"}},{"$f":"NORMINV(RAND()*(1-2*Inputs!B58)+Inputs!B58,0,'(Other Computations)'!B208)","v":{"v":-16805.56173473653,"d":"($16,806)"}},{"$f":"NORMINV(RAND()*(1-2*Inputs!B58)+Inputs!B58,0,'(Other Computations)'!B208)","v":{"v":19404.467300792297,"d":"$19,404"}},{"$f":"NORMINV(RAND()*(1-2*Inputs!B58)+Inputs!B58,0,'(Other Computations)'!B208)","v":{"v":-47024.160707274204,"d":"($47,024)"}},{"$f":"NORMINV(RAND()*(1-2*Inputs!B58)+Inputs!B58,0,'(Other Computations)'!B208)","v":{"v":-51598.06681111048,"d":"($51,598)"}},{"$f":"NORMINV(RAND()*(1-2*Inputs!B58)+Inputs!B58,0,'(Other Computations)'!B208)","v":{"v":-18624.298607603276,"d":"($18,624)"}},{"$f":"NORMINV(RAND()*(1-2*Inputs!B58)+Inputs!B58,0,'(Other Computations)'!B208)","v":{"v":-1446.0682240803521,"d":"($1,446)"}},{"$f":"NORMINV(RAND()*(1-2*Inputs!B58)+Inputs!B58,0,'(Other Computations)'!B208)","v":{"v":-10215.318284753335,"d":"($10,215)"}},{"$f":"NORMINV(RAND()*(1-2*Inputs!B58)+Inputs!B58,0,'(Other Computations)'!B208)","v":{"v":57017.33150303637,"d":"$57,017"}},{"$f":"SUM(EB46:EM46)","v":{"v":-38431.76422347892,"d":"($38,432)"}}]
[]
[]
[{"$f":"\"Government\"","v":"Government"}]
[{"$f":"\" \"","v":" "}]
[null,{"$f":"ZZZ__FnCalls!F7","v":"Jan 2010"},{"$f":"ZZZ__FnCalls!F8","v":"Feb 2010"},{"$f":"ZZZ__FnCalls!F9","v":"Mar 2010"},{"$f":"ZZZ__FnCalls!F10","v":"Apr 2010"},{"$f":"ZZZ__FnCalls!F11","v":"May 2010"},{"$f":"ZZZ__FnCalls!F12","v":"Jun 2010"},{"$f":"ZZZ__FnCalls!F13","v":"Jul 2010"},{"$f":"ZZZ__FnCalls!F14","v":"Aug 2010"},{"$f":"ZZZ__FnCalls!F15","v":"Sep 2010"},{"$f":"ZZZ__FnCalls!F16","v":"Oct 2010"},{"$f":"ZZZ__FnCalls!F17","v":"Nov 2010"},{"$f":"ZZZ__FnCalls!F18","v":"Dec 2010"},{"$f":"ZZZ__FnCalls!H7","v":"2010"},{"$f":"ZZZ__FnCalls!F19","v":"Jan 2011"},{"$f":"ZZZ__FnCalls!F20","v":"Feb 2011"},{"$f":"ZZZ__FnCalls!F21","v":"Mar 2011"},{"$f":"ZZZ__FnCalls!F22","v":"Apr 2011"},{"$f":"ZZZ__FnCalls!F23","v":"May 2011"},{"$f":"ZZZ__FnCalls!F24","v":"Jun 2011"},{"$f":"ZZZ__FnCalls!F25","v":"Jul 2011"},{"$f":"ZZZ__FnCalls!F26","v":"Aug 2011"},{"$f":"ZZZ__FnCalls!F27","v":"Sep 2011"},{"$f":"ZZZ__FnCalls!F28","v":"Oct 2011"},{"$f":"ZZZ__FnCalls!F29","v":"Nov 2011"},{"$f":"ZZZ__FnCalls!F30","v":"Dec 2011"},{"$f":"ZZZ__FnCalls!H19","v":"2011"},{"$f":"ZZZ__FnCalls!F31","v":"Jan 2012"},{"$f":"ZZZ__FnCalls!F32","v":"Feb 2012"},{"$f":"ZZZ__FnCalls!F33","v":"Mar 2012"},{"$f":"ZZZ__FnCalls!F34","v":"Apr 2012"},{"$f":"ZZZ__FnCalls!F35","v":"May 2012"},{"$f":"ZZZ__FnCalls!F36","v":"Jun 2012"},{"$f":"ZZZ__FnCalls!F37","v":"Jul 2012"},{"$f":"ZZZ__FnCalls!F38","v":"Aug 2012"},{"$f":"ZZZ__FnCalls!F39","v":"Sep 2012"},{"$f":"ZZZ__FnCalls!F40","v":"Oct 2012"},{"$f":"ZZZ__FnCalls!F41","v":"Nov 2012"},{"$f":"ZZZ__FnCalls!F42","v":"Dec 2012"},{"$f":"ZZZ__FnCalls!H31","v":"2012"},{"$f":"ZZZ__FnCalls!F43","v":"Jan 2013"},{"$f":"ZZZ__FnCalls!F44","v":"Feb 2013"},{"$f":"ZZZ__FnCalls!F45","v":"Mar 2013"},{"$f":"ZZZ__FnCalls!F46","v":"Apr 2013"},{"$f":"ZZZ__FnCalls!F47","v":"May 2013"},{"$f":"ZZZ__FnCalls!F48","v":"Jun 2013"},{"$f":"ZZZ__FnCalls!F49","v":"Jul 2013"},{"$f":"ZZZ__FnCalls!F50","v":"Aug 2013"},{"$f":"ZZZ__FnCalls!F51","v":"Sep 2013"},{"$f":"ZZZ__FnCalls!F52","v":"Oct 2013"},{"$f":"ZZZ__FnCalls!F53","v":"Nov 2013"},{"$f":"ZZZ__FnCalls!F54","v":"Dec 2013"},{"$f":"ZZZ__FnCalls!H43","v":"2013"},{"$f":"ZZZ__FnCalls!F55","v":"Jan 2014"},{"$f":"ZZZ__FnCalls!F56","v":"Feb 2014"},{"$f":"ZZZ__FnCalls!F57","v":"Mar 2014"},{"$f":"ZZZ__FnCalls!F58","v":"Apr 2014"},{"$f":"ZZZ__FnCalls!F59","v":"May 2014"},{"$f":"ZZZ__FnCalls!F60","v":"Jun 2014"},{"$f":"ZZZ__FnCalls!F61","v":"Jul 2014"},{"$f":"ZZZ__FnCalls!F62","v":"Aug 2014"},{"$f":"ZZZ__FnCalls!F63","v":"Sep 2014"},{"$f":"ZZZ__FnCalls!F64","v":"Oct 2014"},{"$f":"ZZZ__FnCalls!F65","v":"Nov 2014"},{"$f":"ZZZ__FnCalls!F66","v":"Dec 2014"},{"$f":"ZZZ__FnCalls!H55","v":"2014"},{"$f":"ZZZ__FnCalls!F67","v":"Jan 2015"},{"$f":"ZZZ__FnCalls!F68","v":"Feb 2015"},{"$f":"ZZZ__FnCalls!F69","v":"Mar 2015"},{"$f":"ZZZ__FnCalls!F70","v":"Apr 2015"},{"$f":"ZZZ__FnCalls!F71","v":"May 2015"},{"$f":"ZZZ__FnCalls!F72","v":"Jun 2015"},{"$f":"ZZZ__FnCalls!F73","v":"Jul 2015"},{"$f":"ZZZ__FnCalls!F74","v":"Aug 2015"},{"$f":"ZZZ__FnCalls!F75","v":"Sep 2015"},{"$f":"ZZZ__FnCalls!F76","v":"Oct 2015"},{"$f":"ZZZ__FnCalls!F77","v":"Nov 2015"},{"$f":"ZZZ__FnCalls!F78","v":"Dec 2015"},{"$f":"ZZZ__FnCalls!H67","v":"2015"},{"$f":"ZZZ__FnCalls!F79","v":"Jan 2016"},{"$f":"ZZZ__FnCalls!F80","v":"Feb 2016"},{"$f":"ZZZ__FnCalls!F81","v":"Mar 2016"},{"$f":"ZZZ__FnCalls!F82","v":"Apr 2016"},{"$f":"ZZZ__FnCalls!F83","v":"May 2016"},{"$f":"ZZZ__FnCalls!F84","v":"Jun 2016"},{"$f":"ZZZ__FnCalls!F85","v":"Jul 2016"},{"$f":"ZZZ__FnCalls!F86","v":"Aug 2016"},{"$f":"ZZZ__FnCalls!F87","v":"Sep 2016"},{"$f":"ZZZ__FnCalls!F88","v":"Oct 2016"},{"$f":"ZZZ__FnCalls!F89","v":"Nov 2016"},{"$f":"ZZZ__FnCalls!F90","v":"Dec 2016"},{"$f":"ZZZ__FnCalls!H79","v":"2016"},{"$f":"ZZZ__FnCalls!F91","v":"Jan 2017"},{"$f":"ZZZ__FnCalls!F92","v":"Feb 2017"},{"$f":"ZZZ__FnCalls!F93","v":"Mar 2017"},{"$f":"ZZZ__FnCalls!F94","v":"Apr 2017"},{"$f":"ZZZ__FnCalls!F95","v":"May 2017"},{"$f":"ZZZ__FnCalls!F96","v":"Jun 2017"},{"$f":"ZZZ__FnCalls!F97","v":"Jul 2017"},{"$f":"ZZZ__FnCalls!F98","v":"Aug 2017"},{"$f":"ZZZ__FnCalls!F99","v":"Sep 2017"},{"$f":"ZZZ__FnCalls!F100","v":"Oct 2017"},{"$f":"ZZZ__FnCalls!F101","v":"Nov 2017"},{"$f":"ZZZ__FnCalls!F102","v":"Dec 2017"},{"$f":"ZZZ__FnCalls!H91","v":"2017"},{"$f":"ZZZ__FnCalls!F103","v":"Jan 2018"},{"$f":"ZZZ__FnCalls!F104","v":"Feb 2018"},{"$f":"ZZZ__FnCalls!F105","v":"Mar 2018"},{"$f":"ZZZ__FnCalls!F106","v":"Apr 2018"},{"$f":"ZZZ__FnCalls!F107","v":"May 2018"},{"$f":"ZZZ__FnCalls!F108","v":"Jun 2018"},{"$f":"ZZZ__FnCalls!F109","v":"Jul 2018"},{"$f":"ZZZ__FnCalls!F110","v":"Aug 2018"},{"$f":"ZZZ__FnCalls!F111","v":"Sep 2018"},{"$f":"ZZZ__FnCalls!F112","v":"Oct 2018"},{"$f":"ZZZ__FnCalls!F113","v":"Nov 2018"},{"$f":"ZZZ__FnCalls!F114","v":"Dec 2018"},{"$f":"ZZZ__FnCalls!H103","v":"2018"},{"$f":"ZZZ__FnCalls!F115","v":"Jan 2019"},{"$f":"ZZZ__FnCalls!F116","v":"Feb 2019"},{"$f":"ZZZ__FnCalls!F117","v":"Mar 2019"},{"$f":"ZZZ__FnCalls!F118","v":"Apr 2019"},{"$f":"ZZZ__FnCalls!F119","v":"May 2019"},{"$f":"ZZZ__FnCalls!F120","v":"Jun 2019"},{"$f":"ZZZ__FnCalls!F121","v":"Jul 2019"},{"$f":"ZZZ__FnCalls!F122","v":"Aug 2019"},{"$f":"ZZZ__FnCalls!F123","v":"Sep 2019"},{"$f":"ZZZ__FnCalls!F124","v":"Oct 2019"},{"$f":"ZZZ__FnCalls!F125","v":"Nov 2019"},{"$f":"ZZZ__FnCalls!F126","v":"Dec 2019"},{"$f":"ZZZ__FnCalls!H115","v":"2019"},{"$f":"ZZZ__FnCalls!F127","v":"Jan 2020"},{"$f":"ZZZ__FnCalls!F128","v":"Feb 2020"},{"$f":"ZZZ__FnCalls!F129","v":"Mar 2020"},{"$f":"ZZZ__FnCalls!F130","v":"Apr 2020"},{"$f":"ZZZ__FnCalls!F131","v":"May 2020"},{"$f":"ZZZ__FnCalls!F132","v":"Jun 2020"},{"$f":"ZZZ__FnCalls!F133","v":"Jul 2020"},{"$f":"ZZZ__FnCalls!F134","v":"Aug 2020"},{"$f":"ZZZ__FnCalls!F135","v":"Sep 2020"},{"$f":"ZZZ__FnCalls!F136","v":"Oct 2020"},{"$f":"ZZZ__FnCalls!F137","v":"Nov 2020"},{"$f":"ZZZ__FnCalls!F138","v":"Dec 2020"},{"$f":"ZZZ__FnCalls!H127","v":"2020"}]
[{"$f":"Labels!B51","v":"Gov Spending"},{"$f":"B37","v":{"v":29166.66666666667,"d":"$29,167"}},{"v":29166.66666666667,"d":"$29,167"},{"v":29166.66666666667,"d":"$29,167"},{"v":29166.66666666667,"d":"$29,167"},{"v":29166.66666666667,"d":"$29,167"},{"v":29166.66666666667,"d":"$29,167"},{"v":29166.66666666667,"d":"$29,167"},{"v":29166.66666666667,"d":"$29,167"},{"v":29166.66666666667,"d":"$29,167"},{"v":29166.66666666667,"d":"$29,167"},{"v":29166.66666666667,"d":"$29,167"},{"v":29166.66666666667,"d":"$29,167"},{"$f":"SUM(B37:M37)","v":{"v":350000.0000000002,"d":"$350,000"}},{"$f":"O37","v":{"v":29166.66666666667,"d":"$29,167"}},{"v":29166.66666666667,"d":"$29,167"},{"v":29166.66666666667,"d":"$29,167"},{"v":29166.66666666667,"d":"$29,167"},{"v":29166.66666666667,"d":"$29,167"},{"v":29166.66666666667,"d":"$29,167"},{"v":29166.66666666667,"d":"$29,167"},{"v":29166.66666666667,"d":"$29,167"},{"v":29166.66666666667,"d":"$29,167"},{"v":29166.66666666667,"d":"$29,167"},{"v":29166.66666666667,"d":"$29,167"},{"v":29166.66666666667,"d":"$29,167"},{"$f":"SUM(O37:Z37)","v":{"v":350000.0000000002,"d":"$350,000"}},{"$f":"AB37","v":{"v":29166.66666666667,"d":"$29,167"}},{"v":29166.66666666667,"d":"$29,167"},{"v":29166.66666666667,"d":"$29,167"},{"v":29166.66666666667,"d":"$29,167"},{"v":29166.66666666667,"d":"$29,167"},{"v":29166.66666666667,"d":"$29,167"},{"v":29166.66666666667,"d":"$29,167"},{"v":29166.66666666667,"d":"$29,167"},{"v":29166.66666666667,"d":"$29,167"},{"v":29166.66666666667,"d":"$29,167"},{"v":29166.66666666667,"d":"$29,167"},{"v":29166.66666666667,"d":"$29,167"},{"$f":"SUM(AB37:AM37)","v":{"v":350000.0000000002,"d":"$350,000"}},{"$f":"AO37","v":{"v":29166.66666666667,"d":"$29,167"}},{"v":29166.66666666667,"d":"$29,167"},{"v":29166.66666666667,"d":"$29,167"},{"v":29166.66666666667,"d":"$29,167"},{"v":29166.66666666667,"d":"$29,167"},{"v":29166.66666666667,"d":"$29,167"},{"v":29166.66666666667,"d":"$29,167"},{"v":29166.66666666667,"d":"$29,167"},{"v":29166.66666666667,"d":"$29,167"},{"v":29166.66666666667,"d":"$29,167"},{"v":29166.66666666667,"d":"$29,167"},{"v":29166.66666666667,"d":"$29,167"},{"$f":"SUM(AO37:AZ37)","v":{"v":350000.0000000002,"d":"$350,000"}},{"$f":"BB37","v":{"v":29166.66666666667,"d":"$29,167"}},{"v":29166.66666666667,"d":"$29,167"},{"v":29166.66666666667,"d":"$29,167"},{"v":29166.66666666667,"d":"$29,167"},{"v":29166.66666666667,"d":"$29,167"},{"v":29166.66666666667,"d":"$29,167"},{"v":29166.66666666667,"d":"$29,167"},{"v":29166.66666666667,"d":"$29,167"},{"v":29166.66666666667,"d":"$29,167"},{"v":29166.66666666667,"d":"$29,167"},{"v":29166.66666666667,"d":"$29,167"},{"v":29166.66666666667,"d":"$29,167"},{"$f":"SUM(BB37:BM37)","v":{"v":350000.0000000002,"d":"$350,000"}},{"$f":"BO37","v":{"v":29166.66666666667,"d":"$29,167"}},{"v":29166.66666666667,"d":"$29,167"},{"v":29166.66666666667,"d":"$29,167"},{"v":29166.66666666667,"d":"$29,167"},{"v":29166.66666666667,"d":"$29,167"},{"v":29166.66666666667,"d":"$29,167"},{"v":29166.66666666667,"d":"$29,167"},{"v":29166.66666666667,"d":"$29,167"},{"v":29166.66666666667,"d":"$29,167"},{"v":29166.66666666667,"d":"$29,167"},{"v":29166.66666666667,"d":"$29,167"},{"v":29166.66666666667,"d":"$29,167"},{"$f":"SUM(BO37:BZ37)","v":{"v":350000.0000000002,"d":"$350,000"}},{"$f":"CB37","v":{"v":29166.66666666667,"d":"$29,167"}},{"v":29166.66666666667,"d":"$29,167"},{"v":29166.66666666667,"d":"$29,167"},{"v":29166.66666666667,"d":"$29,167"},{"v":29166.66666666667,"d":"$29,167"},{"v":29166.66666666667,"d":"$29,167"},{"v":29166.66666666667,"d":"$29,167"},{"v":29166.66666666667,"d":"$29,167"},{"v":29166.66666666667,"d":"$29,167"},{"v":29166.66666666667,"d":"$29,167"},{"v":29166.66666666667,"d":"$29,167"},{"v":29166.66666666667,"d":"$29,167"},{"$f":"SUM(CB37:CM37)","v":{"v":350000.0000000002,"d":"$350,000"}},{"$f":"CO37","v":{"v":29166.66666666667,"d":"$29,167"}},{"v":29166.66666666667,"d":"$29,167"},{"v":29166.66666666667,"d":"$29,167"},{"v":29166.66666666667,"d":"$29,167"},{"v":29166.66666666667,"d":"$29,167"},{"v":29166.66666666667,"d":"$29,167"},{"v":29166.66666666667,"d":"$29,167"},{"v":29166.66666666667,"d":"$29,167"},{"v":29166.66666666667,"d":"$29,167"},{"v":29166.66666666667,"d":"$29,167"},{"v":29166.66666666667,"d":"$29,167"},{"v":29166.66666666667,"d":"$29,167"},{"$f":"SUM(CO37:CZ37)","v":{"v":350000.0000000002,"d":"$350,000"}},{"$f":"DB37","v":{"v":29166.66666666667,"d":"$29,167"}},{"v":29166.66666666667,"d":"$29,167"},{"v":29166.66666666667,"d":"$29,167"},{"v":29166.66666666667,"d":"$29,167"},{"v":29166.66666666667,"d":"$29,167"},{"v":29166.66666666667,"d":"$29,167"},{"v":29166.66666666667,"d":"$29,167"},{"v":29166.66666666667,"d":"$29,167"},{"v":29166.66666666667,"d":"$29,167"},{"v":29166.66666666667,"d":"$29,167"},{"v":29166.66666666667,"d":"$29,167"},{"v":29166.66666666667,"d":"$29,167"},{"$f":"SUM(DB37:DM37)","v":{"v":350000.0000000002,"d":"$350,000"}},{"$f":"DO37","v":{"v":29166.66666666667,"d":"$29,167"}},{"v":29166.66666666667,"d":"$29,167"},{"v":29166.66666666667,"d":"$29,167"},{"v":29166.66666666667,"d":"$29,167"},{"v":29166.66666666667,"d":"$29,167"},{"v":29166.66666666667,"d":"$29,167"},{"v":29166.66666666667,"d":"$29,167"},{"v":29166.66666666667,"d":"$29,167"},{"v":29166.66666666667,"d":"$29,167"},{"v":29166.66666666667,"d":"$29,167"},{"v":29166.66666666667,"d":"$29,167"},{"v":29166.66666666667,"d":"$29,167"},{"$f":"SUM(DO37:DZ37)","v":{"v":350000.0000000002,"d":"$350,000"}},{"$f":"EB37","v":{"v":29166.66666666667,"d":"$29,167"}},{"v":29166.66666666667,"d":"$29,167"},{"v":29166.66666666667,"d":"$29,167"},{"v":29166.66666666667,"d":"$29,167"},{"v":29166.66666666667,"d":"$29,167"},{"v":29166.66666666667,"d":"$29,167"},{"v":29166.66666666667,"d":"$29,167"},{"v":29166.66666666667,"d":"$29,167"},{"v":29166.66666666667,"d":"$29,167"},{"v":29166.66666666667,"d":"$29,167"},{"v":29166.66666666667,"d":"$29,167"},{"v":29166.66666666667,"d":"$29,167"},{"$f":"SUM(EB37:EM37)","v":{"v":350000.0000000002,"d":"$350,000"}}]
[{"$f":"Labels!B52","v":"Gov Transfers"},{"$f":"B38","v":{"v":14583.333333333336,"d":"$14,583"}},{"v":14583.333333333336,"d":"$14,583"},{"v":14583.333333333336,"d":"$14,583"},{"v":14583.333333333336,"d":"$14,583"},{"v":14583.333333333336,"d":"$14,583"},{"v":14583.333333333336,"d":"$14,583"},{"v":14583.333333333336,"d":"$14,583"},{"v":14583.333333333336,"d":"$14,583"},{"v":14583.333333333336,"d":"$14,583"},{"v":14583.333333333336,"d":"$14,583"},{"v":14583.333333333336,"d":"$14,583"},{"v":14583.333333333336,"d":"$14,583"},{"$f":"SUM(B38:M38)","v":{"v":175000.0000000001,"d":"$175,000"}},{"$f":"O38","v":{"v":14583.333333333336,"d":"$14,583"}},{"v":14583.333333333336,"d":"$14,583"},{"v":14583.333333333336,"d":"$14,583"},{"v":14583.333333333336,"d":"$14,583"},{"v":14583.333333333336,"d":"$14,583"},{"v":14583.333333333336,"d":"$14,583"},{"v":14583.333333333336,"d":"$14,583"},{"v":14583.333333333336,"d":"$14,583"},{"v":14583.333333333336,"d":"$14,583"},{"v":14583.333333333336,"d":"$14,583"},{"v":14583.333333333336,"d":"$14,583"},{"v":14583.333333333336,"d":"$14,583"},{"$f":"SUM(O38:Z38)","v":{"v":175000.0000000001,"d":"$175,000"}},{"$f":"AB38","v":{"v":14583.333333333336,"d":"$14,583"}},{"v":14583.333333333336,"d":"$14,583"},{"v":14583.333333333336,"d":"$14,583"},{"v":14583.333333333336,"d":"$14,583"},{"v":14583.333333333336,"d":"$14,583"},{"v":14583.333333333336,"d":"$14,583"},{"v":14583.333333333336,"d":"$14,583"},{"v":14583.333333333336,"d":"$14,583"},{"v":14583.333333333336,"d":"$14,583"},{"v":14583.333333333336,"d":"$14,583"},{"v":14583.333333333336,"d":"$14,583"},{"v":14583.333333333336,"d":"$14,583"},{"$f":"SUM(AB38:AM38)","v":{"v":175000.0000000001,"d":"$175,000"}},{"$f":"AO38","v":{"v":14583.333333333336,"d":"$14,583"}},{"v":14583.333333333336,"d":"$14,583"},{"v":14583.333333333336,"d":"$14,583"},{"v":14583.333333333336,"d":"$14,583"},{"v":14583.333333333336,"d":"$14,583"},{"v":14583.333333333336,"d":"$14,583"},{"v":14583.333333333336,"d":"$14,583"},{"v":14583.333333333336,"d":"$14,583"},{"v":14583.333333333336,"d":"$14,583"},{"v":14583.333333333336,"d":"$14,583"},{"v":14583.333333333336,"d":"$14,583"},{"v":14583.333333333336,"d":"$14,583"},{"$f":"SUM(AO38:AZ38)","v":{"v":175000.0000000001,"d":"$175,000"}},{"$f":"BB38","v":{"v":14583.333333333336,"d":"$14,583"}},{"v":14583.333333333336,"d":"$14,583"},{"v":14583.333333333336,"d":"$14,583"},{"v":14583.333333333336,"d":"$14,583"},{"v":14583.333333333336,"d":"$14,583"},{"v":14583.333333333336,"d":"$14,583"},{"v":14583.333333333336,"d":"$14,583"},{"v":14583.333333333336,"d":"$14,583"},{"v":14583.333333333336,"d":"$14,583"},{"v":14583.333333333336,"d":"$14,583"},{"v":14583.333333333336,"d":"$14,583"},{"v":14583.333333333336,"d":"$14,583"},{"$f":"SUM(BB38:BM38)","v":{"v":175000.0000000001,"d":"$175,000"}},{"$f":"BO38","v":{"v":14583.333333333336,"d":"$14,583"}},{"v":14583.333333333336,"d":"$14,583"},{"v":14583.333333333336,"d":"$14,583"},{"v":14583.333333333336,"d":"$14,583"},{"v":14583.333333333336,"d":"$14,583"},{"v":14583.333333333336,"d":"$14,583"},{"v":14583.333333333336,"d":"$14,583"},{"v":14583.333333333336,"d":"$14,583"},{"v":14583.333333333336,"d":"$14,583"},{"v":14583.333333333336,"d":"$14,583"},{"v":14583.333333333336,"d":"$14,583"},{"v":14583.333333333336,"d":"$14,583"},{"$f":"SUM(BO38:BZ38)","v":{"v":175000.0000000001,"d":"$175,000"}},{"$f":"CB38","v":{"v":14583.333333333336,"d":"$14,583"}},{"v":14583.333333333336,"d":"$14,583"},{"v":14583.333333333336,"d":"$14,583"},{"v":14583.333333333336,"d":"$14,583"},{"v":14583.333333333336,"d":"$14,583"},{"v":14583.333333333336,"d":"$14,583"},{"v":14583.333333333336,"d":"$14,583"},{"v":14583.333333333336,"d":"$14,583"},{"v":14583.333333333336,"d":"$14,583"},{"v":14583.333333333336,"d":"$14,583"},{"v":14583.333333333336,"d":"$14,583"},{"v":14583.333333333336,"d":"$14,583"},{"$f":"SUM(CB38:CM38)","v":{"v":175000.0000000001,"d":"$175,000"}},{"$f":"CO38","v":{"v":14583.333333333336,"d":"$14,583"}},{"v":14583.333333333336,"d":"$14,583"},{"v":14583.333333333336,"d":"$14,583"},{"v":14583.333333333336,"d":"$14,583"},{"v":14583.333333333336,"d":"$14,583"},{"v":14583.333333333336,"d":"$14,583"},{"v":14583.333333333336,"d":"$14,583"},{"v":14583.333333333336,"d":"$14,583"},{"v":14583.333333333336,"d":"$14,583"},{"v":14583.333333333336,"d":"$14,583"},{"v":14583.333333333336,"d":"$14,583"},{"v":14583.333333333336,"d":"$14,583"},{"$f":"SUM(CO38:CZ38)","v":{"v":175000.0000000001,"d":"$175,000"}},{"$f":"DB38","v":{"v":14583.333333333336,"d":"$14,583"}},{"v":14583.333333333336,"d":"$14,583"},{"v":14583.333333333336,"d":"$14,583"},{"v":14583.333333333336,"d":"$14,583"},{"v":14583.333333333336,"d":"$14,583"},{"v":14583.333333333336,"d":"$14,583"},{"v":14583.333333333336,"d":"$14,583"},{"v":14583.333333333336,"d":"$14,583"},{"v":14583.333333333336,"d":"$14,583"},{"v":14583.333333333336,"d":"$14,583"},{"v":14583.333333333336,"d":"$14,583"},{"v":14583.333333333336,"d":"$14,583"},{"$f":"SUM(DB38:DM38)","v":{"v":175000.0000000001,"d":"$175,000"}},{"$f":"DO38","v":{"v":14583.333333333336,"d":"$14,583"}},{"v":14583.333333333336,"d":"$14,583"},{"v":14583.333333333336,"d":"$14,583"},{"v":14583.333333333336,"d":"$14,583"},{"v":14583.333333333336,"d":"$14,583"},{"v":14583.333333333336,"d":"$14,583"},{"v":14583.333333333336,"d":"$14,583"},{"v":14583.333333333336,"d":"$14,583"},{"v":14583.333333333336,"d":"$14,583"},{"v":14583.333333333336,"d":"$14,583"},{"v":14583.333333333336,"d":"$14,583"},{"v":14583.333333333336,"d":"$14,583"},{"$f":"SUM(DO38:DZ38)","v":{"v":175000.0000000001,"d":"$175,000"}},{"$f":"EB38","v":{"v":14583.333333333336,"d":"$14,583"}},{"v":14583.333333333336,"d":"$14,583"},{"v":14583.333333333336,"d":"$14,583"},{"v":14583.333333333336,"d":"$14,583"},{"v":14583.333333333336,"d":"$14,583"},{"v":14583.333333333336,"d":"$14,583"},{"v":14583.333333333336,"d":"$14,583"},{"v":14583.333333333336,"d":"$14,583"},{"v":14583.333333333336,"d":"$14,583"},{"v":14583.333333333336,"d":"$14,583"},{"v":14583.333333333336,"d":"$14,583"},{"v":14583.333333333336,"d":"$14,583"},{"$f":"SUM(EB38:EM38)","v":{"v":175000.0000000001,"d":"$175,000"}}]
[{"$f":"Labels!B83","v":"Tax"},{"$f":"Inputs!B52*B44","v":{"v":345102.74544398114,"d":"$345,103"}},{"$f":"Inputs!B52*C44","v":{"v":359533.0895364681,"d":"$359,533"}},{"$f":"Inputs!B52*D44","v":{"v":343445.0582851125,"d":"$343,445"}},{"$f":"Inputs!B52*E44","v":{"v":340237.3019742736,"d":"$340,237"}},{"$f":"Inputs!B52*F44","v":{"v":354543.2007920637,"d":"$354,543"}},{"$f":"Inputs!B52*G44","v":{"v":346351.9663984348,"d":"$346,352"}},{"$f":"Inputs!B52*H44","v":{"v":349537.0797386074,"d":"$349,537"}},{"$f":"Inputs!B52*I44","v":{"v":349192.6766779825,"d":"$349,193"}},{"$f":"Inputs!B52*J44","v":{"v":357850.5628534961,"d":"$357,851"}},{"$f":"Inputs!B52*K44","v":{"v":337258.7774663437,"d":"$337,259"}},{"$f":"Inputs!B52*L44","v":{"v":340837.27083314385,"d":"$340,837"}},{"$f":"Inputs!B52*M44","v":{"v":347056.4615421507,"d":"$347,056"}},{"$f":"SUM(B54:M54)","v":{"v":4170946.1915420573,"d":"$4,170,946"}},{"$f":"Inputs!B52*O44","v":{"v":341659.4046330656,"d":"$341,659"}},{"$f":"Inputs!B52*P44","v":{"v":350322.3990263233,"d":"$350,322"}},{"$f":"Inputs!B52*Q44","v":{"v":336883.3653456917,"d":"$336,883"}},{"$f":"Inputs!B52*R44","v":{"v":353838.5950370804,"d":"$353,839"}},{"$f":"Inputs!B52*S44","v":{"v":360982.80091392226,"d":"$360,983"}},{"$f":"Inputs!B52*T44","v":{"v":336467.2195638128,"d":"$336,467"}},{"$f":"Inputs!B52*U44","v":{"v":352947.23180948227,"d":"$352,947"}},{"$f":"Inputs!B52*V44","v":{"v":354503.8843231352,"d":"$354,504"}},{"$f":"Inputs!B52*W44","v":{"v":337421.70028235816,"d":"$337,422"}},{"$f":"Inputs!B52*X44","v":{"v":345959.08827375236,"d":"$345,959"}},{"$f":"Inputs!B52*Y44","v":{"v":325599.06581060466,"d":"$325,599"}},{"$f":"Inputs!B52*Z44","v":{"v":341875.9728240863,"d":"$341,876"}},{"$f":"SUM(O54:Z54)","v":{"v":4138460.727843315,"d":"$4,138,461"}},{"$f":"Inputs!B52*AB44","v":{"v":342830.9895999873,"d":"$342,831"}},{"$f":"Inputs!B52*AC44","v":{"v":350089.5852064099,"d":"$350,090"}},{"$f":"Inputs!B52*AD44","v":{"v":336220.2928396096,"d":"$336,220"}},{"$f":"Inputs!B52*AE44","v":{"v":342036.6645634223,"d":"$342,037"}},{"$f":"Inputs!B52*AF44","v":{"v":340502.26576505473,"d":"$340,502"}},{"$f":"Inputs!B52*AG44","v":{"v":335265.1963353087,"d":"$335,265"}},{"$f":"Inputs!B52*AH44","v":{"v":325398.9647289064,"d":"$325,399"}},{"$f":"Inputs!B52*AI44","v":{"v":341864.3477629917,"d":"$341,864"}},{"$f":"Inputs!B52*AJ44","v":{"v":341375.28464577266,"d":"$341,375"}},{"$f":"Inputs!B52*AK44","v":{"v":338286.79900353076,"d":"$338,287"}},{"$f":"Inputs!B52*AL44","v":{"v":327398.0443419048,"d":"$327,398"}},{"$f":"Inputs!B52*AM44","v":{"v":351470.29694959393,"d":"$351,470"}},{"$f":"SUM(AB54:AM54)","v":{"v":4072738.7317424924,"d":"$4,072,739"}},{"$f":"Inputs!B52*AO44","v":{"v":326114.8881257539,"d":"$326,115"}},{"$f":"Inputs!B52*AP44","v":{"v":337312.66730757797,"d":"$337,313"}},{"$f":"Inputs!B52*AQ44","v":{"v":349921.27205104654,"d":"$349,921"}},{"$f":"Inputs!B52*AR44","v":{"v":343091.97745976027,"d":"$343,092"}},{"$f":"Inputs!B52*AS44","v":{"v":330955.3751101628,"d":"$330,955"}},{"$f":"Inputs!B52*AT44","v":{"v":336339.5920933703,"d":"$336,340"}},{"$f":"Inputs!B52*AU44","v":{"v":345248.616917467,"d":"$345,249"}},{"$f":"Inputs!B52*AV44","v":{"v":341866.4273147188,"d":"$341,866"}},{"$f":"Inputs!B52*AW44","v":{"v":315300.0888248081,"d":"$315,300"}},{"$f":"Inputs!B52*AX44","v":{"v":343902.6109445799,"d":"$343,903"}},{"$f":"Inputs!B52*AY44","v":{"v":327219.81548045285,"d":"$327,220"}},{"$f":"Inputs!B52*AZ44","v":{"v":330472.6461690932,"d":"$330,473"}},{"$f":"SUM(AO54:AZ54)","v":{"v":4027745.9777987916,"d":"$4,027,746"}},{"$f":"Inputs!B52*BB44","v":{"v":340944.85292322666,"d":"$340,945"}},{"$f":"Inputs!B52*BC44","v":{"v":345045.3072778338,"d":"$345,045"}},{"$f":"Inputs!B52*BD44","v":{"v":328186.36778440035,"d":"$328,186"}},{"$f":"Inputs!B52*BE44","v":{"v":336770.8770860699,"d":"$336,771"}},{"$f":"Inputs!B52*BF44","v":{"v":329479.43782702705,"d":"$329,479"}},{"$f":"Inputs!B52*BG44","v":{"v":330092.23986011185,"d":"$330,092"}},{"$f":"Inputs!B52*BH44","v":{"v":342458.1067863533,"d":"$342,458"}},{"$f":"Inputs!B52*BI44","v":{"v":326719.6080688909,"d":"$326,720"}},{"$f":"Inputs!B52*BJ44","v":{"v":313042.41972697043,"d":"$313,042"}},{"$f":"Inputs!B52*BK44","v":{"v":313986.4561632874,"d":"$313,986"}},{"$f":"Inputs!B52*BL44","v":{"v":328127.8344003659,"d":"$328,128"}},{"$f":"Inputs!B52*BM44","v":{"v":310189.2212212931,"d":"$310,189"}},{"$f":"SUM(BB54:BM54)","v":{"v":3945042.7291258313,"d":"$3,945,043"}},{"$f":"Inputs!B52*BO44","v":{"v":323045.04174419155,"d":"$323,045"}},{"$f":"Inputs!B52*BP44","v":{"v":319485.36161043186,"d":"$319,485"}},{"$f":"Inputs!B52*BQ44","v":{"v":322501.21861324104,"d":"$322,501"}},{"$f":"Inputs!B52*BR44","v":{"v":336266.72559489135,"d":"$336,267"}},{"$f":"Inputs!B52*BS44","v":{"v":324382.9783966905,"d":"$324,383"}},{"$f":"Inputs!B52*BT44","v":{"v":328274.2692367924,"d":"$328,274"}},{"$f":"Inputs!B52*BU44","v":{"v":310492.66868950956,"d":"$310,493"}},{"$f":"Inputs!B52*BV44","v":{"v":323655.4518012533,"d":"$323,655"}},{"$f":"Inputs!B52*BW44","v":{"v":329125.1926809734,"d":"$329,125"}},{"$f":"Inputs!B52*BX44","v":{"v":317501.8652019979,"d":"$317,502"}},{"$f":"Inputs!B52*BY44","v":{"v":313640.4419959547,"d":"$313,640"}},{"$f":"Inputs!B52*BZ44","v":{"v":308413.73429911747,"d":"$308,414"}},{"$f":"SUM(BO54:BZ54)","v":{"v":3856784.949865045,"d":"$3,856,785"}},{"$f":"Inputs!B52*CB44","v":{"v":321668.0312402733,"d":"$321,668"}},{"$f":"Inputs!B52*CC44","v":{"v":326025.54644141527,"d":"$326,026"}},{"$f":"Inputs!B52*CD44","v":{"v":306065.41739103285,"d":"$306,065"}},{"$f":"Inputs!B52*CE44","v":{"v":306228.5186258083,"d":"$306,229"}},{"$f":"Inputs!B52*CF44","v":{"v":322589.8551393583,"d":"$322,590"}},{"$f":"Inputs!B52*CG44","v":{"v":313871.9175173089,"d":"$313,872"}},{"$f":"Inputs!B52*CH44","v":{"v":306495.2972662309,"d":"$306,495"}},{"$f":"Inputs!B52*CI44","v":{"v":328022.95309006143,"d":"$328,023"}},{"$f":"Inputs!B52*CJ44","v":{"v":319452.42146767426,"d":"$319,452"}},{"$f":"Inputs!B52*CK44","v":{"v":319365.3750350777,"d":"$319,365"}},{"$f":"Inputs!B52*CL44","v":{"v":307050.6875431336,"d":"$307,051"}},{"$f":"Inputs!B52*CM44","v":{"v":308421.1960274683,"d":"$308,421"}},{"$f":"SUM(CB54:CM54)","v":{"v":3785257.216784844,"d":"$3,785,257"}},{"$f":"Inputs!B52*CO44","v":{"v":320259.5393869692,"d":"$320,260"}},{"$f":"Inputs!B52*CP44","v":{"v":316418.18296205974,"d":"$316,418"}},{"$f":"Inputs!B52*CQ44","v":{"v":316774.55589123094,"d":"$316,775"}},{"$f":"Inputs!B52*CR44","v":{"v":304007.1920188611,"d":"$304,007"}},{"$f":"Inputs!B52*CS44","v":{"v":316469.93759561854,"d":"$316,470"}},{"$f":"Inputs!B52*CT44","v":{"v":331364.89216324483,"d":"$331,365"}},{"$f":"Inputs!B52*CU44","v":{"v":309661.9769619438,"d":"$309,662"}},{"$f":"Inputs!B52*CV44","v":{"v":315463.853989863,"d":"$315,464"}},{"$f":"Inputs!B52*CW44","v":{"v":303643.5866930109,"d":"$303,644"}},{"$f":"Inputs!B52*CX44","v":{"v":318460.55203639134,"d":"$318,461"}},{"$f":"Inputs!B52*CY44","v":{"v":324731.21339295164,"d":"$324,731"}},{"$f":"Inputs!B52*CZ44","v":{"v":325043.6912831636,"d":"$325,044"}},{"$f":"SUM(CO54:CZ54)","v":{"v":3802299.1743753077,"d":"$3,802,299"}},{"$f":"Inputs!B52*DB44","v":{"v":312280.0241820891,"d":"$312,280"}},{"$f":"Inputs!B52*DC44","v":{"v":296475.21172009653,"d":"$296,475"}},{"$f":"Inputs!B52*DD44","v":{"v":309355.6247150924,"d":"$309,356"}},{"$f":"Inputs!B52*DE44","v":{"v":308143.8700308868,"d":"$308,144"}},{"$f":"Inputs!B52*DF44","v":{"v":307398.33513112925,"d":"$307,398"}},{"$f":"Inputs!B52*DG44","v":{"v":306673.46652539395,"d":"$306,673"}},{"$f":"Inputs!B52*DH44","v":{"v":320667.9102332876,"d":"$320,668"}},{"$f":"Inputs!B52*DI44","v":{"v":319463.9983284685,"d":"$319,464"}},{"$f":"Inputs!B52*DJ44","v":{"v":321750.0997459955,"d":"$321,750"}},{"$f":"Inputs!B52*DK44","v":{"v":309520.50711861014,"d":"$309,521"}},{"$f":"Inputs!B52*DL44","v":{"v":298314.7578651767,"d":"$298,315"}},{"$f":"Inputs!B52*DM44","v":{"v":310533.54502461065,"d":"$310,534"}},{"$f":"SUM(DB54:DM54)","v":{"v":3720577.3506208365,"d":"$3,720,577"}},{"$f":"Inputs!B52*DO44","v":{"v":322405.62739830744,"d":"$322,406"}},{"$f":"Inputs!B52*DP44","v":{"v":322249.17623546254,"d":"$322,249"}},{"$f":"Inputs!B52*DQ44","v":{"v":312179.7256703659,"d":"$312,180"}},{"$f":"Inputs!B52*DR44","v":{"v":324282.28196887637,"d":"$324,282"}},{"$f":"Inputs!B52*DS44","v":{"v":312246.6701876494,"d":"$312,247"}},{"$f":"Inputs!B52*DT44","v":{"v":307937.8281365178,"d":"$307,938"}},{"$f":"Inputs!B52*DU44","v":{"v":313048.82278643514,"d":"$313,049"}},{"$f":"Inputs!B52*DV44","v":{"v":289782.91533904336,"d":"$289,783"}},{"$f":"Inputs!B52*DW44","v":{"v":319233.46406191745,"d":"$319,233"}},{"$f":"Inputs!B52*DX44","v":{"v":308619.1111348762,"d":"$308,619"}},{"$f":"Inputs!B52*DY44","v":{"v":321626.6334501207,"d":"$321,627"}},{"$f":"Inputs!B52*DZ44","v":{"v":302571.9765501538,"d":"$302,572"}},{"$f":"SUM(DO54:DZ54)","v":{"v":3756184.2329197256,"d":"$3,756,184"}},{"$f":"Inputs!B52*EB44","v":{"v":314133.65381235554,"d":"$314,134"}},{"$f":"Inputs!B52*EC44","v":{"v":317559.174517122,"d":"$317,559"}},{"$f":"Inputs!B52*ED44","v":{"v":294234.1677362106,"d":"$294,234"}},{"$f":"Inputs!B52*EE44","v":{"v":300657.9132799141,"d":"$300,658"}},{"$f":"Inputs!B52*EF44","v":{"v":298621.2580268909,"d":"$298,621"}},{"$f":"Inputs!B52*EG44","v":{"v":309204.04556542105,"d":"$309,204"}},{"$f":"Inputs!B52*EH44","v":{"v":288997.4446871983,"d":"$288,997"}},{"$f":"Inputs!B52*EI44","v":{"v":287410.2197004968,"d":"$287,410"}},{"$f":"Inputs!B52*EJ44","v":{"v":296949.6271340863,"d":"$296,950"}},{"$f":"Inputs!B52*EK44","v":{"v":301727.1076987992,"d":"$301,727"}},{"$f":"Inputs!B52*EL44","v":{"v":298913.92618368944,"d":"$298,914"}},{"$f":"Inputs!B52*EM44","v":{"v":318861.7096896505,"d":"$318,862"}},{"$f":"SUM(EB54:EM54)","v":{"v":3627270.248031834,"d":"$3,627,270"}}]
[]
[]
[{"$f":"\"Stochastic Shocks\"","v":"Stochastic Shocks"}]
[{"$f":"\" \"","v":" "}]
[null,{"$f":"ZZZ__FnCalls!F7","v":"Jan 2010"},{"$f":"ZZZ__FnCalls!F8","v":"Feb 2010"},{"$f":"ZZZ__FnCalls!F9","v":"Mar 2010"},{"$f":"ZZZ__FnCalls!F10","v":"Apr 2010"},{"$f":"ZZZ__FnCalls!F11","v":"May 2010"},{"$f":"ZZZ__FnCalls!F12","v":"Jun 2010"},{"$f":"ZZZ__FnCalls!F13","v":"Jul 2010"},{"$f":"ZZZ__FnCalls!F14","v":"Aug 2010"},{"$f":"ZZZ__FnCalls!F15","v":"Sep 2010"},{"$f":"ZZZ__FnCalls!F16","v":"Oct 2010"},{"$f":"ZZZ__FnCalls!F17","v":"Nov 2010"},{"$f":"ZZZ__FnCalls!F18","v":"Dec 2010"},{"$f":"ZZZ__FnCalls!H7","v":"2010"},{"$f":"ZZZ__FnCalls!F19","v":"Jan 2011"},{"$f":"ZZZ__FnCalls!F20","v":"Feb 2011"},{"$f":"ZZZ__FnCalls!F21","v":"Mar 2011"},{"$f":"ZZZ__FnCalls!F22","v":"Apr 2011"},{"$f":"ZZZ__FnCalls!F23","v":"May 2011"},{"$f":"ZZZ__FnCalls!F24","v":"Jun 2011"},{"$f":"ZZZ__FnCalls!F25","v":"Jul 2011"},{"$f":"ZZZ__FnCalls!F26","v":"Aug 2011"},{"$f":"ZZZ__FnCalls!F27","v":"Sep 2011"},{"$f":"ZZZ__FnCalls!F28","v":"Oct 2011"},{"$f":"ZZZ__FnCalls!F29","v":"Nov 2011"},{"$f":"ZZZ__FnCalls!F30","v":"Dec 2011"},{"$f":"ZZZ__FnCalls!H19","v":"2011"},{"$f":"ZZZ__FnCalls!F31","v":"Jan 2012"},{"$f":"ZZZ__FnCalls!F32","v":"Feb 2012"},{"$f":"ZZZ__FnCalls!F33","v":"Mar 2012"},{"$f":"ZZZ__FnCalls!F34","v":"Apr 2012"},{"$f":"ZZZ__FnCalls!F35","v":"May 2012"},{"$f":"ZZZ__FnCalls!F36","v":"Jun 2012"},{"$f":"ZZZ__FnCalls!F37","v":"Jul 2012"},{"$f":"ZZZ__FnCalls!F38","v":"Aug 2012"},{"$f":"ZZZ__FnCalls!F39","v":"Sep 2012"},{"$f":"ZZZ__FnCalls!F40","v":"Oct 2012"},{"$f":"ZZZ__FnCalls!F41","v":"Nov 2012"},{"$f":"ZZZ__FnCalls!F42","v":"Dec 2012"},{"$f":"ZZZ__FnCalls!H31","v":"2012"},{"$f":"ZZZ__FnCalls!F43","v":"Jan 2013"},{"$f":"ZZZ__FnCalls!F44","v":"Feb 2013"},{"$f":"ZZZ__FnCalls!F45","v":"Mar 2013"},{"$f":"ZZZ__FnCalls!F46","v":"Apr 2013"},{"$f":"ZZZ__FnCalls!F47","v":"May 2013"},{"$f":"ZZZ__FnCalls!F48","v":"Jun 2013"},{"$f":"ZZZ__FnCalls!F49","v":"Jul 2013"},{"$f":"ZZZ__FnCalls!F50","v":"Aug 2013"},{"$f":"ZZZ__FnCalls!F51","v":"Sep 2013"},{"$f":"ZZZ__FnCalls!F52","v":"Oct 2013"},{"$f":"ZZZ__FnCalls!F53","v":"Nov 2013"},{"$f":"ZZZ__FnCalls!F54","v":"Dec 2013"},{"$f":"ZZZ__FnCalls!H43","v":"2013"},{"$f":"ZZZ__FnCalls!F55","v":"Jan 2014"},{"$f":"ZZZ__FnCalls!F56","v":"Feb 2014"},{"$f":"ZZZ__FnCalls!F57","v":"Mar 2014"},{"$f":"ZZZ__FnCalls!F58","v":"Apr 2014"},{"$f":"ZZZ__FnCalls!F59","v":"May 2014"},{"$f":"ZZZ__FnCalls!F60","v":"Jun 2014"},{"$f":"ZZZ__FnCalls!F61","v":"Jul 2014"},{"$f":"ZZZ__FnCalls!F62","v":"Aug 2014"},{"$f":"ZZZ__FnCalls!F63","v":"Sep 2014"},{"$f":"ZZZ__FnCalls!F64","v":"Oct 2014"},{"$f":"ZZZ__FnCalls!F65","v":"Nov 2014"},{"$f":"ZZZ__FnCalls!F66","v":"Dec 2014"},{"$f":"ZZZ__FnCalls!H55","v":"2014"},{"$f":"ZZZ__FnCalls!F67","v":"Jan 2015"},{"$f":"ZZZ__FnCalls!F68","v":"Feb 2015"},{"$f":"ZZZ__FnCalls!F69","v":"Mar 2015"},{"$f":"ZZZ__FnCalls!F70","v":"Apr 2015"},{"$f":"ZZZ__FnCalls!F71","v":"May 2015"},{"$f":"ZZZ__FnCalls!F72","v":"Jun 2015"},{"$f":"ZZZ__FnCalls!F73","v":"Jul 2015"},{"$f":"ZZZ__FnCalls!F74","v":"Aug 2015"},{"$f":"ZZZ__FnCalls!F75","v":"Sep 2015"},{"$f":"ZZZ__FnCalls!F76","v":"Oct 2015"},{"$f":"ZZZ__FnCalls!F77","v":"Nov 2015"},{"$f":"ZZZ__FnCalls!F78","v":"Dec 2015"},{"$f":"ZZZ__FnCalls!H67","v":"2015"},{"$f":"ZZZ__FnCalls!F79","v":"Jan 2016"},{"$f":"ZZZ__FnCalls!F80","v":"Feb 2016"},{"$f":"ZZZ__FnCalls!F81","v":"Mar 2016"},{"$f":"ZZZ__FnCalls!F82","v":"Apr 2016"},{"$f":"ZZZ__FnCalls!F83","v":"May 2016"},{"$f":"ZZZ__FnCalls!F84","v":"Jun 2016"},{"$f":"ZZZ__FnCalls!F85","v":"Jul 2016"},{"$f":"ZZZ__FnCalls!F86","v":"Aug 2016"},{"$f":"ZZZ__FnCalls!F87","v":"Sep 2016"},{"$f":"ZZZ__FnCalls!F88","v":"Oct 2016"},{"$f":"ZZZ__FnCalls!F89","v":"Nov 2016"},{"$f":"ZZZ__FnCalls!F90","v":"Dec 2016"},{"$f":"ZZZ__FnCalls!H79","v":"2016"},{"$f":"ZZZ__FnCalls!F91","v":"Jan 2017"},{"$f":"ZZZ__FnCalls!F92","v":"Feb 2017"},{"$f":"ZZZ__FnCalls!F93","v":"Mar 2017"},{"$f":"ZZZ__FnCalls!F94","v":"Apr 2017"},{"$f":"ZZZ__FnCalls!F95","v":"May 2017"},{"$f":"ZZZ__FnCalls!F96","v":"Jun 2017"},{"$f":"ZZZ__FnCalls!F97","v":"Jul 2017"},{"$f":"ZZZ__FnCalls!F98","v":"Aug 2017"},{"$f":"ZZZ__FnCalls!F99","v":"Sep 2017"},{"$f":"ZZZ__FnCalls!F100","v":"Oct 2017"},{"$f":"ZZZ__FnCalls!F101","v":"Nov 2017"},{"$f":"ZZZ__FnCalls!F102","v":"Dec 2017"},{"$f":"ZZZ__FnCalls!H91","v":"2017"},{"$f":"ZZZ__FnCalls!F103","v":"Jan 2018"},{"$f":"ZZZ__FnCalls!F104","v":"Feb 2018"},{"$f":"ZZZ__FnCalls!F105","v":"Mar 2018"},{"$f":"ZZZ__FnCalls!F106","v":"Apr 2018"},{"$f":"ZZZ__FnCalls!F107","v":"May 2018"},{"$f":"ZZZ__FnCalls!F108","v":"Jun 2018"},{"$f":"ZZZ__FnCalls!F109","v":"Jul 2018"},{"$f":"ZZZ__FnCalls!F110","v":"Aug 2018"},{"$f":"ZZZ__FnCalls!F111","v":"Sep 2018"},{"$f":"ZZZ__FnCalls!F112","v":"Oct 2018"},{"$f":"ZZZ__FnCalls!F113","v":"Nov 2018"},{"$f":"ZZZ__FnCalls!F114","v":"Dec 2018"},{"$f":"ZZZ__FnCalls!H103","v":"2018"},{"$f":"ZZZ__FnCalls!F115","v":"Jan 2019"},{"$f":"ZZZ__FnCalls!F116","v":"Feb 2019"},{"$f":"ZZZ__FnCalls!F117","v":"Mar 2019"},{"$f":"ZZZ__FnCalls!F118","v":"Apr 2019"},{"$f":"ZZZ__FnCalls!F119","v":"May 2019"},{"$f":"ZZZ__FnCalls!F120","v":"Jun 2019"},{"$f":"ZZZ__FnCalls!F121","v":"Jul 2019"},{"$f":"ZZZ__FnCalls!F122","v":"Aug 2019"},{"$f":"ZZZ__FnCalls!F123","v":"Sep 2019"},{"$f":"ZZZ__FnCalls!F124","v":"Oct 2019"},{"$f":"ZZZ__FnCalls!F125","v":"Nov 2019"},{"$f":"ZZZ__FnCalls!F126","v":"Dec 2019"},{"$f":"ZZZ__FnCalls!H115","v":"2019"},{"$f":"ZZZ__FnCalls!F127","v":"Jan 2020"},{"$f":"ZZZ__FnCalls!F128","v":"Feb 2020"},{"$f":"ZZZ__FnCalls!F129","v":"Mar 2020"},{"$f":"ZZZ__FnCalls!F130","v":"Apr 2020"},{"$f":"ZZZ__FnCalls!F131","v":"May 2020"},{"$f":"ZZZ__FnCalls!F132","v":"Jun 2020"},{"$f":"ZZZ__FnCalls!F133","v":"Jul 2020"},{"$f":"ZZZ__FnCalls!F134","v":"Aug 2020"},{"$f":"ZZZ__FnCalls!F135","v":"Sep 2020"},{"$f":"ZZZ__FnCalls!F136","v":"Oct 2020"},{"$f":"ZZZ__FnCalls!F137","v":"Nov 2020"},{"$f":"ZZZ__FnCalls!F138","v":"Dec 2020"},{"$f":"ZZZ__FnCalls!H127","v":"2020"}]
[{"$f":"Labels!B74","v":"Aggregate Demand Shock"},{"$f":"B13","v":{"v":-54744.561960042265,"d":"($54,745)"}},{"v":8898.37352653596,"d":"$8,898"},{"v":-30586.84640440895,"d":"($30,587)"},{"v":44802.19640522255,"d":"$44,802"},{"v":14756.715016624212,"d":"$14,757"},{"v":41600.10110673441,"d":"$41,600"},{"v":-12422.779211182109,"d":"($12,423)"},{"v":28374.62410038729,"d":"$28,375"},{"v":-35501.49206329916,"d":"($35,501)"},{"v":9701.545038345106,"d":"$9,702"},{"v":31699.62386699065,"d":"$31,700"},{"v":-24175.652860272072,"d":"($24,176)"},{"$f":"SUM(B13:M13)","v":{"v":22401.84656163562,"d":"$22,402"}},{"$f":"O13","v":{"v":10510.156838540348,"d":"$10,510"}},{"v":-12949.770581214205,"d":"($12,950)"},{"v":42298.39845774134,"d":"$42,298"},{"v":25279.00114948575,"d":"$25,279"},{"v":1247.9781671620979,"d":"$1,248"},{"v":-8398.068615335136,"d":"($8,398)"},{"v":-61541.84676030758,"d":"($61,542)"},{"v":-26144.934288803135,"d":"($26,145)"},{"v":13734.90336139273,"d":"$13,735"},{"v":5367.395866578204,"d":"$5,367"},{"v":-13568.55388081131,"d":"($13,569)"},{"v":-56545.42771741092,"d":"($56,545)"},{"$f":"SUM(O13:Z13)","v":{"v":-80710.76800298181,"d":"($80,711)"}},{"$f":"AB13","v":{"v":41339.771499122944,"d":"$41,340"}},{"v":-19851.053194439206,"d":"($19,851)"},{"v":-33776.62614050761,"d":"($33,777)"},{"v":27885.785898149694,"d":"$27,886"},{"v":-57455.55444633597,"d":"($57,456)"},{"v":24816.261784649494,"d":"$24,816"},{"v":7110.608344236975,"d":"$7,111"},{"v":-24542.656825525704,"d":"($24,543)"},{"v":19760.385666979906,"d":"$19,760"},{"v":6580.105777677363,"d":"$6,580"},{"v":-12575.273625555172,"d":"($12,575)"},{"v":-15500.501724286998,"d":"($15,501)"},{"$f":"SUM(AB13:AM13)","v":{"v":-36208.74698583428,"d":"($36,209)"}},{"$f":"AO13","v":{"v":29703.314719075563,"d":"$29,703"}},{"v":36632.697268109594,"d":"$36,633"},{"v":-46431.60766413146,"d":"($46,432)"},{"v":-8892.780283292836,"d":"($8,893)"},{"v":26449.047727610287,"d":"$26,449"},{"v":-15832.57773230969,"d":"($15,833)"},{"v":-30182.658351096437,"d":"($30,183)"},{"v":11966.636053698587,"d":"$11,967"},{"v":-32189.88599352654,"d":"($32,190)"},{"v":36458.383938563245,"d":"$36,458"},{"v":-31988.483763618733,"d":"($31,988)"},{"v":-48083.915666971625,"d":"($48,084)"},{"$f":"SUM(AO13:AZ13)","v":{"v":-72391.82974789003,"d":"($72,392)"}},{"$f":"BB13","v":{"v":-11585.737414295822,"d":"($11,586)"}},{"v":-48728.679020827054,"d":"($48,729)"},{"v":26604.31026340255,"d":"$26,604"},{"v":-58463.21728134013,"d":"($58,463)"},{"v":11235.413063141139,"d":"$11,235"},{"v":-59175.45014857556,"d":"($59,175)"},{"v":-31520.33042352554,"d":"($31,520)"},{"v":6682.920627356814,"d":"$6,683"},{"v":147.53029217964522,"d":"$148"},{"v":-13053.09187997311,"d":"($13,053)"},{"v":23151.437417636294,"d":"$23,151"},{"v":-4080.330175984565,"d":"($4,080)"},{"$f":"SUM(BB13:BM13)","v":{"v":-158785.22468080532,"d":"($158,785)"}},{"$f":"BO13","v":{"v":-2789.8565715284985,"d":"($2,790)"}},{"v":12714.158519875913,"d":"$12,714"},{"v":-31501.757660083265,"d":"($31,502)"},{"v":2543.4521338805052,"d":"$2,543"},{"v":23156.9073702,"d":"$23,157"},{"v":-11208.572771070956,"d":"($11,209)"},{"v":-16229.364988159252,"d":"($16,229)"},{"v":-28343.07825090023,"d":"($28,343)"},{"v":13803.397305538234,"d":"$13,803"},{"v":-38405.26302635689,"d":"($38,405)"},{"v":39660.79643578133,"d":"$39,661"},{"v":-12520.275310706926,"d":"($12,520)"},{"$f":"SUM(BO13:BZ13)","v":{"v":-49119.45681353005,"d":"($49,119)"}},{"$f":"CB13","v":{"v":15842.400390776176,"d":"$15,842"}},{"v":-8409.210274924102,"d":"($8,409)"},{"v":1991.7858786890256,"d":"$1,992"},{"v":3433.6137522213535,"d":"$3,434"},{"v":31.225098658425438,"d":"$31"},{"v":24699.720887559208,"d":"$24,700"},{"v":28835.520632981275,"d":"$28,836"},{"v":40555.79276002598,"d":"$40,556"},{"v":-6561.821383196699,"d":"($6,562)"},{"v":18917.21619749479,"d":"$18,917"},{"v":31776.480779005233,"d":"$31,776"},{"v":46242.9119582108,"d":"$46,243"},{"$f":"SUM(CB13:CM13)","v":{"v":197355.6366775015,"d":"$197,356"}},{"$f":"CO13","v":{"v":-35082.319179666025,"d":"($35,082)"}},{"v":14955.948917525444,"d":"$14,956"},{"v":-13585.17915887107,"d":"($13,585)"},{"v":9340.716240051474,"d":"$9,341"},{"v":-4968.450666300335,"d":"($4,968)"},{"v":6363.0899374843275,"d":"$6,363"},{"v":18512.077733679518,"d":"$18,512"},{"v":2680.6056679097665,"d":"$2,681"},{"v":-29518.389087233405,"d":"($29,518)"},{"v":41081.32984981293,"d":"$41,081"},{"v":-22546.951705957414,"d":"($22,547)"},{"v":27658.565553882145,"d":"$27,659"},{"$f":"SUM(CO13:CZ13)","v":{"v":14891.044102317355,"d":"$14,891"}},{"$f":"DB13","v":{"v":-34226.79994740168,"d":"($34,227)"}},{"v":-56615.625362287916,"d":"($56,616)"},{"v":-5235.598625003539,"d":"($5,236)"},{"v":11390.935764240157,"d":"$11,391"},{"v":4487.381758882888,"d":"$4,487"},{"v":16433.761920961315,"d":"$16,434"},{"v":11258.625965988018,"d":"$11,259"},{"v":1094.4904425182508,"d":"$1,094"},{"v":-11232.754895813647,"d":"($11,233)"},{"v":10651.056790227141,"d":"$10,651"},{"v":20145.502933984022,"d":"$20,146"},{"v":9562.621820428834,"d":"$9,563"},{"$f":"SUM(DB13:DM13)","v":{"v":-22286.40143327615,"d":"($22,286)"}},{"$f":"DO13","v":{"v":16002.149385021434,"d":"$16,002"}},{"v":19337.756154577273,"d":"$19,338"},{"v":58916.18082979849,"d":"$58,916"},{"v":-51344.52802575589,"d":"($51,345)"},{"v":-16206.114367621574,"d":"($16,206)"},{"v":25097.47112174367,"d":"$25,097"},{"v":-4475.078781298761,"d":"($4,475)"},{"v":25798.282701209362,"d":"$25,798"},{"v":38677.6760179425,"d":"$38,678"},{"v":-5496.598102931237,"d":"($5,497)"},{"v":-15572.85730096417,"d":"($15,573)"},{"v":-32573.162654771633,"d":"($32,573)"},{"$f":"SUM(DO13:DZ13)","v":{"v":58161.17697694946,"d":"$58,161"}},{"$f":"EB13","v":{"v":-91.89224615722603,"d":"($92)"}},{"v":-12172.942622013468,"d":"($12,173)"},{"v":10839.384929715801,"d":"$10,839"},{"v":10967.151945751868,"d":"$10,967"},{"v":-2239.062617324862,"d":"($2,239)"},{"v":-1800.2441578750083,"d":"($1,800)"},{"v":27746.325759473137,"d":"$27,746"},{"v":-38975.84114417153,"d":"($38,976)"},{"v":-50603.55470408188,"d":"($50,604)"},{"v":41825.94450782645,"d":"$41,826"},{"v":22066.326054112127,"d":"$22,066"},{"v":-8261.712512973205,"d":"($8,262)"},{"$f":"SUM(EB13:EM13)","v":{"v":-700.1168077177972,"d":"($700)"}}]
[{"$f":"Labels!B78","v":"Output Shock"},{"$f":"B46","v":{"v":-16324.18185339645,"d":"($16,324)"}},{"v":33568.788368392154,"d":"$33,569"},{"v":-18702.476172001483,"d":"($18,702)"},{"v":-27761.66044695444,"d":"($27,762)"},{"v":21038.893815388903,"d":"$21,039"},{"v":-4939.411993680894,"d":"($4,939)"},{"v":6819.644781994933,"d":"$6,820"},{"v":7190.962794409065,"d":"$7,191"},{"v":37289.19901768503,"d":"$37,289"},{"v":-29666.26984857214,"d":"($29,666)"},{"v":-16366.038791901623,"d":"($16,366)"},{"v":5585.3950857331465,"d":"$5,585"},{"$f":"SUM(B46:M46)","v":{"v":-2267.1552429037974,"d":"($2,267)"}},{"$f":"O46","v":{"v":-10795.084942754684,"d":"($10,795)"}},{"v":19451.683761099997,"d":"$19,452"},{"v":-23811.46676714038,"d":"($23,811)"},{"v":33856.3083220379,"d":"$33,856"},{"v":58938.56057336461,"d":"$58,939"},{"v":-21345.745783946997,"d":"($21,346)"},{"v":35087.99837219469,"d":"$35,088"},{"v":42146.10089378718,"d":"$42,146"},{"v":-13171.257442979613,"d":"($13,171)"},{"v":16631.85343910344,"d":"$16,632"},{"v":-49833.08309622176,"d":"($49,833)"},{"v":5954.762609479143,"d":"$5,955"},{"$f":"SUM(O46:Z46)","v":{"v":93110.62993802353,"d":"$93,111"}},{"$f":"AB46","v":{"v":10967.076633691257,"d":"$10,967"}},{"v":36310.39961164325,"d":"$36,310"},{"v":-8350.65506056013,"d":"($8,351)"},{"v":12701.442550836784,"d":"$12,701"},{"v":8820.79722027423,"d":"$8,821"},{"v":-6812.8027120040915,"d":"($6,813)"},{"v":-38450.38219687737,"d":"($38,450)"},{"v":17803.559889623004,"d":"$17,804"},{"v":17759.530389980682,"d":"$17,760"},{"v":8739.903499533662,"d":"$8,740"},{"v":-26193.155741902217,"d":"($26,193)"},{"v":55539.646939706916,"d":"$55,540"},{"$f":"SUM(AB46:AM46)","v":{"v":88835.36102394598,"d":"$88,835"}},{"$f":"AO46","v":{"v":-27469.407552991703,"d":"($27,469)"}},{"v":11047.322160897138,"d":"$11,047"},{"v":54214.451372333955,"d":"$54,214"},{"v":33160.62556037906,"d":"$33,161"},{"v":-5848.902293565168,"d":"($5,849)"},{"v":13294.320718329824,"d":"$13,294"},{"v":44475.72545554984,"d":"$44,476"},{"v":34781.6888264478,"d":"$34,782"},{"v":-52490.15405563725,"d":"($52,490)"},{"v":44435.54280223794,"d":"$44,436"},{"v":-10070.289649915165,"d":"($10,070)"},{"v":2345.309219506784,"d":"$2,345"},{"$f":"SUM(AO46:AZ46)","v":{"v":141876.23256357305,"d":"$141,876"}},{"$f":"BB46","v":{"v":38932.93961108616,"d":"$38,933"}},{"v":54023.59345674434,"d":"$54,024"},{"v":-497.91756768761303,"d":"($498)"},{"v":29263.814590545964,"d":"$29,264"},{"v":6690.600349725405,"d":"$6,691"},{"v":9976.009093624647,"d":"$9,976"},{"v":52921.4126618016,"d":"$52,921"},{"v":1988.7585373830511,"d":"$1,989"},{"v":-42343.99468329463,"d":"($42,344)"},{"v":-37899.93536821423,"d":"($37,900)"},{"v":10621.50626732494,"d":"$10,622"},{"v":-48047.06783244648,"d":"($48,047)"},{"$f":"SUM(BB46:BM46)","v":{"v":75629.71911659313,"d":"$75,630"}},{"$f":"BO46","v":{"v":-3884.842878164223,"d":"($3,885)"}},{"v":-14455.260352131521,"d":"($14,455)"},{"v":-3220.7468718636405,"d":"($3,221)"},{"v":44146.97281569893,"d":"$44,147"},{"v":5775.333682011811,"d":"$5,775"},{"v":19837.46911526968,"d":"$19,837"},{"v":-38111.17899261447,"d":"($38,111)"},{"v":7116.961787428852,"d":"$7,117"},{"v":26780.387702505417,"d":"$26,780"},{"v":-10831.447627490785,"d":"($10,831)"},{"v":-22214.328609721735,"d":"($22,214)"},{"v":-38695.64116534604,"d":"($38,696)"},{"$f":"SUM(BO46:BZ46)","v":{"v":-27756.321394417726,"d":"($27,756)"}},{"$f":"CB46","v":{"v":6782.201106987461,"d":"$6,782"}},{"v":22401.676246076215,"d":"$22,402"},{"v":-42875.67079866582,"d":"($42,876)"},{"v":-41153.970349064955,"d":"($41,154)"},{"v":14546.187318544498,"d":"$14,546"},{"v":-13333.28297182479,"d":"($13,333)"},{"v":-36919.19465231047,"d":"($36,919)"},{"v":35807.47701570093,"d":"$35,807"},{"v":8119.427380007398,"d":"$8,119"},{"v":9029.941106570152,"d":"$9,030"},{"v":-31001.069820314835,"d":"($31,001)"},{"v":-25510.271977394634,"d":"($25,510)"},{"$f":"SUM(CB46:CM46)","v":{"v":-94106.55039568884,"d":"($94,107)"}},{"$f":"CO46","v":{"v":14766.90088387535,"d":"$14,767"}},{"v":3337.0018901194117,"d":"$3,337"},{"v":5546.876057504015,"d":"$5,547"},{"v":-35796.762599325775,"d":"($35,797)"},{"v":6795.315539021217,"d":"$6,795"},{"v":57588.73310831147,"d":"$57,589"},{"v":-13695.01462814542,"d":"($13,695)"},{"v":6613.220419527352,"d":"$6,613"},{"v":-31714.792275194526,"d":"($31,715)"},{"v":18965.96479025624,"d":"$18,966"},{"v":40664.10553786462,"d":"$40,664"},{"v":42937.10853564603,"d":"$42,937"},{"$f":"SUM(CO46:CZ46)","v":{"v":116008.65725945999,"d":"$116,009"}},{"$f":"DB46","v":{"v":1268.8388064517817,"d":"$1,269"}},{"v":-50113.17120270638,"d":"($50,113)"},{"v":-5727.103917446386,"d":"($5,727)"},{"v":-8675.69728517869,"d":"($8,676)"},{"v":-10191.048344447225,"d":"($10,191)"},{"v":-11595.153544934183,"d":"($11,595)"},{"v":35976.75120785543,"d":"$35,977"},{"v":32917.85899824928,"d":"$32,918"},{"v":41557.02266591876,"d":"$41,557"},{"v":1890.4868834953052,"d":"$1,890"},{"v":-34520.727054035655,"d":"($34,521)"},{"v":7078.456370738485,"d":"$7,078"},{"$f":"SUM(DB46:DM46)","v":{"v":-133.4864160394709,"d":"($133)"}},{"$f":"DO46","v":{"v":47590.26997253971,"d":"$47,590"}},{"v":47956.87782112958,"d":"$47,957"},{"v":15251.127236160739,"d":"$15,251"},{"v":56171.352763406336,"d":"$56,171"},{"v":17390.608390588335,"d":"$17,391"},{"v":4117.176468130374,"d":"$4,117"},{"v":21951.54054266715,"d":"$21,952"},{"v":-54603.780431446045,"d":"($54,604)"},{"v":44347.19459994424,"d":"$44,347"},{"v":9654.383797183034,"d":"$9,654"},{"v":54002.07338427026,"d":"$54,002"},{"v":-8458.840024507997,"d":"($8,459)"},{"$f":"SUM(DO46:DZ46)","v":{"v":255369.98452006571,"d":"$255,370"}},{"$f":"EB46","v":{"v":31247.816171504735,"d":"$31,248"}},{"v":43604.38633411743,"d":"$43,604"},{"v":-33128.56998880579,"d":"($33,129)"},{"v":-10863.721174565768,"d":"($10,864)"},{"v":-16805.56173473653,"d":"($16,806)"},{"v":19404.467300792297,"d":"$19,404"},{"v":-47024.160707274204,"d":"($47,024)"},{"v":-51598.06681111048,"d":"($51,598)"},{"v":-18624.298607603276,"d":"($18,624)"},{"v":-1446.0682240803521,"d":"($1,446)"},{"v":-10215.318284753335,"d":"($10,215)"},{"v":57017.33150303637,"d":"$57,017"},{"$f":"SUM(EB46:EM46)","v":{"v":-38431.76422347892,"d":"($38,432)"}}]

{"sheet":"Trial 4","index":7,"n_rows":61,"n_cols":144,"rows_kept":61,"merged":[[0,0,0,2],[1,0,1,2],[2,0,2,2],[3,0,3,2],[4,0,4,2]]}
[{"$f":"\"Equilibrium Economy with Shocks\"","v":"Equilibrium Economy with Shocks"}]
[{"$f":"\"Model: \"&Inputs!B8","v":"Model: Test Model"}]
[{"$f":"\"$ millions\"","v":"$ millions"}]
[{"$f":"\"Trial 4\"","v":"Trial 4"}]
[{"$f":"\"\"","v":""}]
[{"$f":"\"Demand\"","v":"Demand"}]
[{"$f":"\" \"","v":" "}]
[null,{"$f":"ZZZ__FnCalls!F7","v":"Jan 2010"},{"$f":"ZZZ__FnCalls!F8","v":"Feb 2010"},{"$f":"ZZZ__FnCalls!F9","v":"Mar 2010"},{"$f":"ZZZ__FnCalls!F10","v":"Apr 2010"},{"$f":"ZZZ__FnCalls!F11","v":"May 2010"},{"$f":"ZZZ__FnCalls!F12","v":"Jun 2010"},{"$f":"ZZZ__FnCalls!F13","v":"Jul 2010"},{"$f":"ZZZ__FnCalls!F14","v":"Aug 2010"},{"$f":"ZZZ__FnCalls!F15","v":"Sep 2010"},{"$f":"ZZZ__FnCalls!F16","v":"Oct 2010"},{"$f":"ZZZ__FnCalls!F17","v":"Nov 2010"},{"$f":"ZZZ__FnCalls!F18","v":"Dec 2010"},{"$f":"ZZZ__FnCalls!H7","v":"2010"},{"$f":"ZZZ__FnCalls!F19","v":"Jan 2011"},{"$f":"ZZZ__FnCalls!F20","v":"Feb 2011"},{"$f":"ZZZ__FnCalls!F21","v":"Mar 2011"},{"$f":"ZZZ__FnCalls!F22","v":"Apr 2011"},{"$f":"ZZZ__FnCalls!F23","v":"May 2011"},{"$f":"ZZZ__FnCalls!F24","v":"Jun 2011"},{"$f":"ZZZ__FnCalls!F25","v":"Jul 2011"},{"$f":"ZZZ__FnCalls!F26","v":"Aug 2011"},{"$f":"ZZZ__FnCalls!F27","v":"Sep 2011"},{"$f":"ZZZ__FnCalls!F28","v":"Oct 2011"},{"$f":"ZZZ__FnCalls!F29","v":"Nov 2011"},{"$f":"ZZZ__FnCalls!F30","v":"Dec 2011"},{"$f":"ZZZ__FnCalls!H19","v":"2011"},{"$f":"ZZZ__FnCalls!F31","v":"Jan 2012"},{"$f":"ZZZ__FnCalls!F32","v":"Feb 2012"},{"$f":"ZZZ__FnCalls!F33","v":"Mar 2012"},{"$f":"ZZZ__FnCalls!F34","v":"Apr 2012"},{"$f":"ZZZ__FnCalls!F35","v":"May 2012"},{"$f":"ZZZ__FnCalls!F36","v":"Jun 2012"},{"$f":"ZZZ__FnCalls!F37","v":"Jul 2012"},{"$f":"ZZZ__FnCalls!F38","v":"Aug 2012"},{"$f":"ZZZ__FnCalls!F39","v":"Sep 2012"},{"$f":"ZZZ__FnCalls!F40","v":"Oct 2012"},{"$f":"ZZZ__FnCalls!F41","v":"Nov 2012"},{"$f":"ZZZ__FnCalls!F42","v":"Dec 2012"},{"$f":"ZZZ__FnCalls!H31","v":"2012"},{"$f":"ZZZ__FnCalls!F43","v":"Jan 2013"},{"$f":"ZZZ__FnCalls!F44","v":"Feb 2013"},{"$f":"ZZZ__FnCalls!F45","v":"Mar 2013"},{"$f":"ZZZ__FnCalls!F46","v":"Apr 2013"},{"$f":"ZZZ__FnCalls!F47","v":"May 2013"},{"$f":"ZZZ__FnCalls!F48","v":"Jun 2013"},{"$f":"ZZZ__FnCalls!F49","v":"Jul 2013"},{"$f":"ZZZ__FnCalls!F50","v":"Aug 2013"},{"$f":"ZZZ__FnCalls!F51","v":"Sep 2013"},{"$f":"ZZZ__FnCalls!F52","v":"Oct 2013"},{"$f":"ZZZ__FnCalls!F53","v":"Nov 2013"},{"$f":"ZZZ__FnCalls!F54","v":"Dec 2013"},{"$f":"ZZZ__FnCalls!H43","v":"2013"},{"$f":"ZZZ__FnCalls!F55","v":"Jan 2014"},{"$f":"ZZZ__FnCalls!F56","v":"Feb 2014"},{"$f":"ZZZ__FnCalls!F57","v":"Mar 2014"},{"$f":"ZZZ__FnCalls!F58","v":"Apr 2014"},{"$f":"ZZZ__FnCalls!F59","v":"May 2014"},{"$f":"ZZZ__FnCalls!F60","v":"Jun 2014"},{"$f":"ZZZ__FnCalls!F61","v":"Jul 2014"},{"$f":"ZZZ__FnCalls!F62","v":"Aug 2014"},{"$f":"ZZZ__FnCalls!F63","v":"Sep 2014"},{"$f":"ZZZ__FnCalls!F64","v":"Oct 2014"},{"$f":"ZZZ__FnCalls!F65","v":"Nov 2014"},{"$f":"ZZZ__FnCalls!F66","v":"Dec 2014"},{"$f":"ZZZ__FnCalls!H55","v":"2014"},{"$f":"ZZZ__FnCalls!F67","v":"Jan 2015"},{"$f":"ZZZ__FnCalls!F68","v":"Feb 2015"},{"$f":"ZZZ__FnCalls!F69","v":"Mar 2015"},{"$f":"ZZZ__FnCalls!F70","v":"Apr 2015"},{"$f":"ZZZ__FnCalls!F71","v":"May 2015"},{"$f":"ZZZ__FnCalls!F72","v":"Jun 2015"},{"$f":"ZZZ__FnCalls!F73","v":"Jul 2015"},{"$f":"ZZZ__FnCalls!F74","v":"Aug 2015"},{"$f":"ZZZ__FnCalls!F75","v":"Sep 2015"},{"$f":"ZZZ__FnCalls!F76","v":"Oct 2015"},{"$f":"ZZZ__FnCalls!F77","v":"Nov 2015"},{"$f":"ZZZ__FnCalls!F78","v":"Dec 2015"},{"$f":"ZZZ__FnCalls!H67","v":"2015"},{"$f":"ZZZ__FnCalls!F79","v":"Jan 2016"},{"$f":"ZZZ__FnCalls!F80","v":"Feb 2016"},{"$f":"ZZZ__FnCalls!F81","v":"Mar 2016"},{"$f":"ZZZ__FnCalls!F82","v":"Apr 2016"},{"$f":"ZZZ__FnCalls!F83","v":"May 2016"},{"$f":"ZZZ__FnCalls!F84","v":"Jun 2016"},{"$f":"ZZZ__FnCalls!F85","v":"Jul 2016"},{"$f":"ZZZ__FnCalls!F86","v":"Aug 2016"},{"$f":"ZZZ__FnCalls!F87","v":"Sep 2016"},{"$f":"ZZZ__FnCalls!F88","v":"Oct 2016"},{"$f":"ZZZ__FnCalls!F89","v":"Nov 2016"},{"$f":"ZZZ__FnCalls!F90","v":"Dec 2016"},{"$f":"ZZZ__FnCalls!H79","v":"2016"},{"$f":"ZZZ__FnCalls!F91","v":"Jan 2017"},{"$f":"ZZZ__FnCalls!F92","v":"Feb 2017"},{"$f":"ZZZ__FnCalls!F93","v":"Mar 2017"},{"$f":"ZZZ__FnCalls!F94","v":"Apr 2017"},{"$f":"ZZZ__FnCalls!F95","v":"May 2017"},{"$f":"ZZZ__FnCalls!F96","v":"Jun 2017"},{"$f":"ZZZ__FnCalls!F97","v":"Jul 2017"},{"$f":"ZZZ__FnCalls!F98","v":"Aug 2017"},{"$f":"ZZZ__FnCalls!F99","v":"Sep 2017"},{"$f":"ZZZ__FnCalls!F100","v":"Oct 2017"},{"$f":"ZZZ__FnCalls!F101","v":"Nov 2017"},{"$f":"ZZZ__FnCalls!F102","v":"Dec 2017"},{"$f":"ZZZ__FnCalls!H91","v":"2017"},{"$f":"ZZZ__FnCalls!F103","v":"Jan 2018"},{"$f":"ZZZ__FnCalls!F104","v":"Feb 2018"},{"$f":"ZZZ__FnCalls!F105","v":"Mar 2018"},{"$f":"ZZZ__FnCalls!F106","v":"Apr 2018"},{"$f":"ZZZ__FnCalls!F107","v":"May 2018"},{"$f":"ZZZ__FnCalls!F108","v":"Jun 2018"},{"$f":"ZZZ__FnCalls!F109","v":"Jul 2018"},{"$f":"ZZZ__FnCalls!F110","v":"Aug 2018"},{"$f":"ZZZ__FnCalls!F111","v":"Sep 2018"},{"$f":"ZZZ__FnCalls!F112","v":"Oct 2018"},{"$f":"ZZZ__FnCalls!F113","v":"Nov 2018"},{"$f":"ZZZ__FnCalls!F114","v":"Dec 2018"},{"$f":"ZZZ__FnCalls!H103","v":"2018"},{"$f":"ZZZ__FnCalls!F115","v":"Jan 2019"},{"$f":"ZZZ__FnCalls!F116","v":"Feb 2019"},{"$f":"ZZZ__FnCalls!F117","v":"Mar 2019"},{"$f":"ZZZ__FnCalls!F118","v":"Apr 2019"},{"$f":"ZZZ__FnCalls!F119","v":"May 2019"},{"$f":"ZZZ__FnCalls!F120","v":"Jun 2019"},{"$f":"ZZZ__FnCalls!F121","v":"Jul 2019"},{"$f":"ZZZ__FnCalls!F122","v":"Aug 2019"},{"$f":"ZZZ__FnCalls!F123","v":"Sep 2019"},{"$f":"ZZZ__FnCalls!F124","v":"Oct 2019"},{"$f":"ZZZ__FnCalls!F125","v":"Nov 2019"},{"$f":"ZZZ__FnCalls!F126","v":"Dec 2019"},{"$f":"ZZZ__FnCalls!H115","v":"2019"},{"$f":"ZZZ__FnCalls!F127","v":"Jan 2020"},{"$f":"ZZZ__FnCalls!F128","v":"Feb 2020"},{"$f":"ZZZ__FnCalls!F129","v":"Mar 2020"},{"$f":"ZZZ__FnCalls!F130","v":"Apr 2020"},{"$f":"ZZZ__FnCalls!F131","v":"May 2020"},{"$f":"ZZZ__FnCalls!F132","v":"Jun 2020"},{"$f":"ZZZ__FnCalls!F133","v":"Jul 2020"},{"$f":"ZZZ__FnCalls!F134","v":"Aug 2020"},{"$f":"ZZZ__FnCalls!F135","v":"Sep 2020"},{"$f":"ZZZ__FnCalls!F136","v":"Oct 2020"},{"$f":"ZZZ__FnCalls!F137","v":"Nov 2020"},{"$f":"ZZZ__FnCalls!F138","v":"Dec 2020"},{"$f":"ZZZ__FnCalls!H127","v":"2020"}]
[{"$f":"Labels!B28","v":"Aggregate Demand"},{"$f":"B36+0+B13","v":{"v":949133.2202495517,"d":"$949,133"}},{"v":941187.6774262296,"d":"$941,188"},{"v":939482.3194920024,"d":"$939,482"},{"v":980170.3963395489,"d":"$980,170"},{"v":999017.1433989248,"d":"$999,017"},{"v":1015979.6549284561,"d":"$1,015,980"},{"v":916288.1408850434,"d":"$916,288"},{"v":917817.0913844351,"d":"$917,817"},{"v":950586.2551576702,"d":"$950,586"},{"v":950467.8577314499,"d":"$950,468"},{"v":958897.9860853446,"d":"$958,898"},{"v":910018.6825218421,"d":"$910,019"},{"$f":"SUM(B9:M9)","v":{"v":11429046.425600499,"d":"$11,429,046"}},{"$f":"O36+0+O13","v":{"v":958088.3860363538,"d":"$958,088"}},{"v":970044.3283308629,"d":"$970,044"},{"v":999063.1138890338,"d":"$999,063"},{"v":957008.1125626758,"d":"$957,008"},{"v":898611.2362265487,"d":"$898,611"},{"v":938321.6051570509,"d":"$938,322"},{"v":957048.7889470609,"d":"$957,049"},{"v":949450.2888525696,"d":"$949,450"},{"v":1013907.3189922987,"d":"$1,013,907"},{"v":946444.3487860704,"d":"$946,444"},{"v":900555.5824394184,"d":"$900,556"},{"v":921329.7953204834,"d":"$921,330"},{"$f":"SUM(O9:Z9)","v":{"v":11409872.905540427,"d":"$11,409,873"}},{"$f":"AB36+0+AB13","v":{"v":928449.41534814,"d":"$928,449"}},{"v":958727.060387083,"d":"$958,727"},{"v":936090.6149453559,"d":"$936,091"},{"v":905949.1714447642,"d":"$905,949"},{"v":929181.0788227046,"d":"$929,181"},{"v":992420.0144579633,"d":"$992,420"},{"v":946785.8921112611,"d":"$946,786"},{"v":945829.012173806,"d":"$945,829"},{"v":927260.8701416582,"d":"$927,261"},{"v":983600.2903605652,"d":"$983,600"},{"v":932987.4050006245,"d":"$932,987"},{"v":886209.1245205982,"d":"$886,209"},{"$f":"SUM(AB9:AM9)","v":{"v":11273489.949714525,"d":"$11,273,490"}},{"$f":"AO36+0+AO13","v":{"v":943822.4262714365,"d":"$943,822"}},{"v":940403.5396017886,"d":"$940,404"},{"v":933094.0282118012,"d":"$933,094"},{"v":907667.6773342944,"d":"$907,668"},{"v":953250.4640133078,"d":"$953,250"},{"v":972165.3963699397,"d":"$972,165"},{"v":953797.1213375749,"d":"$953,797"},{"v":937735.3976923374,"d":"$937,735"},{"v":958565.4105854259,"d":"$958,565"},{"v":907554.3149572643,"d":"$907,554"},{"v":911803.3102498478,"d":"$911,803"},{"v":887722.7631068792,"d":"$887,723"},{"$f":"SUM(AO9:AZ9)","v":{"v":11207581.8497319,"d":"$11,207,582"}},{"$f":"BB36+0+BB13","v":{"v":994887.7864883789,"d":"$994,888"}},{"v":992481.2146104544,"d":"$992,481"},{"v":904607.8032382441,"d":"$904,608"},{"v":936195.1852323234,"d":"$936,195"},{"v":905873.1947275392,"d":"$905,873"},{"v":956568.1678425822,"d":"$956,568"},{"v":907227.9554450936,"d":"$907,228"},{"v":936356.6437523853,"d":"$936,357"},{"v":875952.8915699207,"d":"$875,953"},{"v":963613.9462107236,"d":"$963,614"},{"v":947852.6131909846,"d":"$947,853"},{"v":959754.4636233789,"d":"$959,754"},{"$f":"SUM(BB9:BM9)","v":{"v":11281371.865932006,"d":"$11,281,372"}},{"$f":"BO36+0+BO13","v":{"v":955360.5491383851,"d":"$955,361"}},{"v":956840.3239115219,"d":"$956,840"},{"v":909075.7594254744,"d":"$909,076"},{"v":937998.8524408707,"d":"$937,999"},{"v":893668.3963083324,"d":"$893,668"},{"v":949127.4563355307,"d":"$949,127"},{"v":915825.5935182236,"d":"$915,826"},{"v":903152.5936779452,"d":"$903,153"},{"v":891564.104486502,"d":"$891,564"},{"v":954248.9290005652,"d":"$954,249"},{"v":921402.7568495203,"d":"$921,403"},{"v":944168.1988022357,"d":"$944,168"},{"$f":"SUM(BO9:BZ9)","v":{"v":11132433.513895107,"d":"$11,132,434"}},{"$f":"CB36+0+CB13","v":{"v":897611.716656255,"d":"$897,612"}},{"v":941346.8340774936,"d":"$941,347"},{"v":907779.5092626195,"d":"$907,780"},{"v":914115.7587261047,"d":"$914,116"},{"v":929664.6198586294,"d":"$929,665"},{"v":910701.0923454267,"d":"$910,701"},{"v":985660.1835244193,"d":"$985,660"},{"v":956070.3482916179,"d":"$956,070"},{"v":918980.253495065,"d":"$918,980"},{"v":957509.5335018017,"d":"$957,510"},{"v":930081.081694256,"d":"$930,081"},{"v":899786.1860675924,"d":"$899,786"},{"$f":"SUM(CB9:CM9)","v":{"v":11149307.117501283,"d":"$11,149,307"}},{"$f":"CO36+0+CO13","v":{"v":952672.9794905998,"d":"$952,673"}},{"v":942997.6412536249,"d":"$942,998"},{"v":951823.0661272884,"d":"$951,823"},{"v":923596.2018548569,"d":"$923,596"},{"v":894879.4834778315,"d":"$894,879"},{"v":870667.6579495568,"d":"$870,668"},{"v":973093.2253873862,"d":"$973,093"},{"v":935587.1581947025,"d":"$935,587"},{"v":932087.5031393837,"d":"$932,088"},{"v":869121.1526660407,"d":"$869,121"},{"v":939136.1984735652,"d":"$939,136"},{"v":960072.230769163,"d":"$960,072"},{"$f":"SUM(CO9:CZ9)","v":{"v":11145734.498784,"d":"$11,145,734"}},{"$f":"DB36+0+DB13","v":{"v":895253.5181821894,"d":"$895,254"}},{"v":877917.7145776956,"d":"$877,918"},{"v":937552.2403431141,"d":"$937,552"},{"v":937376.9185899885,"d":"$937,377"},{"v":920822.5528774846,"d":"$920,823"},{"v":928890.1996208582,"d":"$928,890"},{"v":876301.035574762,"d":"$876,301"},{"v":939942.9550044967,"d":"$939,943"},{"v":895390.1917897273,"d":"$895,390"},{"v":933554.5044824253,"d":"$933,555"},{"v":922818.6364523539,"d":"$922,819"},{"v":896766.0463165062,"d":"$896,766"},{"$f":"SUM(DB9:DM9)","v":{"v":10962586.513811603,"d":"$10,962,587"}},{"$f":"DO36+0+DO13","v":{"v":957545.3877370871,"d":"$957,545"}},{"v":970651.2917035138,"d":"$970,651"},{"v":880805.2242028507,"d":"$880,805"},{"v":960016.2042876622,"d":"$960,016"},{"v":965676.6340335011,"d":"$965,677"},{"v":938506.5925786279,"d":"$938,507"},{"v":893000.5679719029,"d":"$893,001"},{"v":902332.9312668289,"d":"$902,333"},{"v":849246.1884558782,"d":"$849,246"},{"v":950391.0458704293,"d":"$950,391"},{"v":942335.9852642003,"d":"$942,336"},{"v":956109.6954362595,"d":"$956,110"},{"$f":"SUM(DO9:DZ9)","v":{"v":11166617.748808742,"d":"$11,166,618"}},{"$f":"EB36+0+EB13","v":{"v":903210.4050801338,"d":"$903,210"}},{"v":844269.4751957054,"d":"$844,269"},{"v":894643.3941120175,"d":"$894,643"},{"v":943962.6646863945,"d":"$943,963"},{"v":955059.0695886131,"d":"$955,059"},{"v":890821.1760357283,"d":"$890,821"},{"v":927241.2334419821,"d":"$927,241"},{"v":853677.7427362464,"d":"$853,678"},{"v":852813.7134197945,"d":"$852,814"},{"v":935031.8862983249,"d":"$935,032"},{"v":866288.3001322225,"d":"$866,288"},{"v":926267.1903910944,"d":"$926,267"},{"$f":"SUM(EB9:EM9)","v":{"v":10793286.251118258,"d":"$10,793,286"}}]
[{"$f":"Labels!B31","v":"Long Expected Demand"},{"$f":"'(Other Computations)'!B8+'(Other Computations)'!B61*0/Inputs!B13/12","v":{"v":1166666.6666666667,"d":"$1,166,667"}},{"$f":"B10+'(Other Computations)'!B61*(B9-B10)/Inputs!B13/12","v":{"v":1166163.1170221828,"d":"$1,166,163"}},{"$f":"C10+'(Other Computations)'!B61*(C9-C10)/Inputs!B13/12","v":{"v":1165642.3405416366,"d":"$1,165,642"}},{"$f":"D10+'(Other Computations)'!B61*(D9-D10)/Inputs!B13/12","v":{"v":1165118.821974392,"d":"$1,165,119"}},{"$f":"E10+'(Other Computations)'!B61*(E9-E10)/Inputs!B13/12","v":{"v":1164690.7006187558,"d":"$1,164,691"}},{"$f":"F10+'(Other Computations)'!B61*(F9-F10)/Inputs!B13/12","v":{"v":1164307.1970140801,"d":"$1,164,307"}},{"$f":"G10+'(Other Computations)'!B61*(G9-G10)/Inputs!B13/12","v":{"v":1163963.8462222153,"d":"$1,163,964"}},{"$f":"H10+'(Other Computations)'!B61*(H9-H10)/Inputs!B13/12","v":{"v":1163390.522830231,"d":"$1,163,391"}},{"$f":"I10+'(Other Computations)'!B61*(I9-I10)/Inputs!B13/12","v":{"v":1162822.0658129954,"d":"$1,162,822"}},{"$f":"J10+'(Other Computations)'!B61*(J9-J10)/Inputs!B13/12","v":{"v":1162330.7792142562,"d":"$1,162,331"}},{"$f":"K10+'(Other Computations)'!B61*(K9-K10)/Inputs!B13/12","v":{"v":1161840.355784898,"d":"$1,161,840"}},{"$f":"L10+'(Other Computations)'!B61*(L9-L10)/Inputs!B13/12","v":{"v":1161370.5817809638,"d":"$1,161,371"}},{"$f":"SUM(B10:M10)","v":{"v":13968306.995483276,"d":"$13,968,307"}},{"$f":"M10+'(Other Computations)'!B61*(M9-M10)/Inputs!B13/12","v":{"v":1160788.748680827,"d":"$1,160,789"}},{"$f":"O10+'(Other Computations)'!B61*(O9-O10)/Inputs!B13/12","v":{"v":1160319.5348784092,"d":"$1,160,320"}},{"$f":"P10+'(Other Computations)'!B61*(P9-P10)/Inputs!B13/12","v":{"v":1159879.0830114011,"d":"$1,159,879"}},{"$f":"Q10+'(Other Computations)'!B61*(Q9-Q10)/Inputs!B13/12","v":{"v":1159506.8238236178,"d":"$1,159,507"}},{"$f":"R10+'(Other Computations)'!B61*(R9-R10)/Inputs!B13/12","v":{"v":1159038.07680681,"d":"$1,159,038"}},{"$f":"S10+'(Other Computations)'!B61*(S9-S10)/Inputs!B13/12","v":{"v":1158435.2368980595,"d":"$1,158,435"}},{"$f":"T10+'(Other Computations)'!B61*(T9-T10)/Inputs!B13/12","v":{"v":1157925.7146023626,"d":"$1,157,926"}},{"$f":"U10+'(Other Computations)'!B61*(U9-U10)/Inputs!B13/12","v":{"v":1157460.7217189013,"d":"$1,157,461"}},{"$f":"V10+'(Other Computations)'!B61*(V9-V10)/Inputs!B13/12","v":{"v":1156979.2160872663,"d":"$1,156,979"}},{"$f":"W10+'(Other Computations)'!B61*(W9-W10)/Inputs!B13/12","v":{"v":1156648.0311402872,"d":"$1,156,648"}},{"$f":"X10+'(Other Computations)'!B61*(X9-X10)/Inputs!B13/12","v":{"v":1156161.448542245,"d":"$1,156,161"}},{"$f":"Y10+'(Other Computations)'!B61*(Y9-Y10)/Inputs!B13/12","v":{"v":1155569.7682966366,"d":"$1,155,570"}},{"$f":"SUM(O10:Z10)","v":{"v":13898712.404486824,"d":"$13,898,712"}},{"$f":"Z10+'(Other Computations)'!B61*(Z9-Z10)/Inputs!B13/12","v":{"v":1155027.5461369697,"d":"$1,155,028"}},{"$f":"AB10+'(Other Computations)'!B61*(AB9-AB10)/Inputs!B13/12","v":{"v":1154503.0597231067,"d":"$1,154,503"}},{"$f":"AC10+'(Other Computations)'!B61*(AC9-AC10)/Inputs!B13/12","v":{"v":1154049.8745394584,"d":"$1,154,050"}},{"$f":"AD10+'(Other Computations)'!B61*(AD9-AD10)/Inputs!B13/12","v":{"v":1153545.339216324,"d":"$1,153,545"}},{"$f":"AE10+'(Other Computations)'!B61*(AE9-AE10)/Inputs!B13/12","v":{"v":1152972.1999390752,"d":"$1,152,972"}},{"$f":"AF10+'(Other Computations)'!B61*(AF9-AF10)/Inputs!B13/12","v":{"v":1152454.164936491,"d":"$1,152,454"}},{"$f":"AG10+'(Other Computations)'!B61*(AG9-AG10)/Inputs!B13/12","v":{"v":1152083.7155140871,"d":"$1,152,084"}},{"$f":"AH10+'(Other Computations)'!B61*(AH9-AH10)/Inputs!B13/12","v":{"v":1151608.489071025,"d":"$1,151,608"}},{"$f":"AI10+'(Other Computations)'!B61*(AI9-AI10)/Inputs!B13/12","v":{"v":1151132.1476893185,"d":"$1,151,132"}},{"$f":"AJ10+'(Other Computations)'!B61*(AJ9-AJ10)/Inputs!B13/12","v":{"v":1150613.9271394396,"d":"$1,150,614"}},{"$f":"AK10+'(Other Computations)'!B61*(AK9-AK10)/Inputs!B13/12","v":{"v":1150227.3214987477,"d":"$1,150,227"}},{"$f":"AL10+'(Other Computations)'!B61*(AL9-AL10)/Inputs!B13/12","v":{"v":1149724.4513216687,"d":"$1,149,724"}},{"$f":"SUM(AB10:AM10)","v":{"v":13827942.236725714,"d":"$13,827,942"}},{"$f":"AM10+'(Other Computations)'!B61*(AM9-AM10)/Inputs!B13/12","v":{"v":1149114.4621392589,"d":"$1,149,114"}},{"$f":"AO10+'(Other Computations)'!B61*(AO9-AO10)/Inputs!B13/12","v":{"v":1148639.2490932685,"d":"$1,148,639"}},{"$f":"AP10+'(Other Computations)'!B61*(AP9-AP10)/Inputs!B13/12","v":{"v":1148157.2219879641,"d":"$1,148,157"}},{"$f":"AQ10+'(Other Computations)'!B61*(AQ9-AQ10)/Inputs!B13/12","v":{"v":1147659.3905208898,"d":"$1,147,659"}},{"$f":"AR10+'(Other Computations)'!B61*(AR9-AR10)/Inputs!B13/12","v":{"v":1147103.8541477728,"d":"$1,147,104"}},{"$f":"AS10+'(Other Computations)'!B61*(AS9-AS10)/Inputs!B13/12","v":{"v":1146655.1194483875,"d":"$1,146,655"}},{"$f":"AT10+'(Other Computations)'!B61*(AT9-AT10)/Inputs!B13/12","v":{"v":1146251.2080523726,"d":"$1,146,251"}},{"$f":"AU10+'(Other Computations)'!B61*(AU9-AU10)/Inputs!B13/12","v":{"v":1145805.7124812736,"d":"$1,145,806"}},{"$f":"AV10+'(Other Computations)'!B61*(AV9-AV10)/Inputs!B13/12","v":{"v":1145324.068234077,"d":"$1,145,324"}},{"$f":"AW10+'(Other Computations)'!B61*(AW9-AW10)/Inputs!B13/12","v":{"v":1144891.756526557,"d":"$1,144,892"}},{"$f":"AX10+'(Other Computations)'!B61*(AX9-AX10)/Inputs!B13/12","v":{"v":1144342.3643007022,"d":"$1,144,342"}},{"$f":"AY10+'(Other Computations)'!B61*(AY9-AY10)/Inputs!B13/12","v":{"v":1143804.0794533624,"d":"$1,143,804"}},{"$f":"SUM(AO10:AZ10)","v":{"v":13757748.486385886,"d":"$13,757,748"}},{"$f":"AZ10+'(Other Computations)'!B61*(AZ9-AZ10)/Inputs!B13/12","v":{"v":1143211.2986284862,"d":"$1,143,211"}},{"$f":"BB10+'(Other Computations)'!B61*(BB9-BB10)/Inputs!B13/12","v":{"v":1142867.9571651989,"d":"$1,142,868"}},{"$f":"BC10+'(Other Computations)'!B61*(BC9-BC10)/Inputs!B13/12","v":{"v":1142519.8397055813,"d":"$1,142,520"}},{"$f":"BD10+'(Other Computations)'!B61*(BD9-BD10)/Inputs!B13/12","v":{"v":1141969.117398944,"d":"$1,141,969"}},{"$f":"BE10+'(Other Computations)'!B61*(BE9-BE10)/Inputs!B13/12","v":{"v":1141492.788852262,"d":"$1,141,493"}},{"$f":"BF10+'(Other Computations)'!B61*(BF9-BF10)/Inputs!B13/12","v":{"v":1140947.3731251215,"d":"$1,140,947"}},{"$f":"BG10+'(Other Computations)'!B61*(BG9-BG10)/Inputs!B13/12","v":{"v":1140520.5694091897,"d":"$1,140,521"}},{"$f":"BH10+'(Other Computations)'!B61*(BH9-BH10)/Inputs!B13/12","v":{"v":1139980.5402101988,"d":"$1,139,981"}},{"$f":"BI10+'(Other Computations)'!B61*(BI9-BI10)/Inputs!B13/12","v":{"v":1139509.188598028,"d":"$1,139,509"}},{"$f":"BJ10+'(Other Computations)'!B61*(BJ9-BJ10)/Inputs!B13/12","v":{"v":1138899.1045771295,"d":"$1,138,899"}},{"$f":"BK10+'(Other Computations)'!B61*(BK9-BK10)/Inputs!B13/12","v":{"v":1138493.3518957258,"d":"$1,138,493"}},{"$f":"BL10+'(Other Computations)'!B61*(BL9-BL10)/Inputs!B13/12","v":{"v":1138052.0538894648,"d":"$1,138,052"}},{"$f":"SUM(BB10:BM10)","v":{"v":13688463.18345533,"d":"$13,688,463"}},{"$f":"BM10+'(Other Computations)'!B61*(BM9-BM10)/Inputs!B13/12","v":{"v":1137639.3279860711,"d":"$1,137,639"}},{"$f":"BO10+'(Other Computations)'!B61*(BO9-BO10)/Inputs!B13/12","v":{"v":1137217.386368368,"d":"$1,137,217"}},{"$f":"BP10+'(Other Computations)'!B61*(BP9-BP10)/Inputs!B13/12","v":{"v":1136799.8468719402,"d":"$1,136,800"}},{"$f":"BQ10+'(Other Computations)'!B61*(BQ9-BQ10)/Inputs!B13/12","v":{"v":1136272.707780629,"d":"$1,136,273"}},{"$f":"BR10+'(Other Computations)'!B61*(BR9-BR10)/Inputs!B13/12","v":{"v":1135813.740522898,"d":"$1,135,814"}},{"$f":"BS10+'(Other Computations)'!B61*(BS9-BS10)/Inputs!B13/12","v":{"v":1135253.2188927718,"d":"$1,135,253"}},{"$f":"BT10+'(Other Computations)'!B61*(BT9-BT10)/Inputs!B13/12","v":{"v":1134822.3722201856,"d":"$1,134,822"}},{"$f":"BU10+'(Other Computations)'!B61*(BU9-BU10)/Inputs!B13/12","v":{"v":1134315.4352324496,"d":"$1,134,315"}},{"$f":"BV10+'(Other Computations)'!B61*(BV9-BV10)/Inputs!B13/12","v":{"v":1133780.3360621845,"d":"$1,133,780"}},{"$f":"BW10+'(Other Computations)'!B61*(BW9-BW10)/Inputs!B13/12","v":{"v":1133219.6503409445,"d":"$1,133,220"}},{"$f":"BX10+'(Other Computations)'!B61*(BX9-BX10)/Inputs!B13/12","v":{"v":1132805.3662637677,"d":"$1,132,805"}},{"$f":"BY10+'(Other Computations)'!B61*(BY9-BY10)/Inputs!B13/12","v":{"v":1132316.008371605,"d":"$1,132,316"}},{"$f":"SUM(BO10:BZ10)","v":{"v":13620255.396913815,"d":"$13,620,255"}},{"$f":"BZ10+'(Other Computations)'!B61*(BZ9-BZ10)/Inputs!B13/12","v":{"v":1131880.4810346388,"d":"$1,131,880"}},{"$f":"CB10+'(Other Computations)'!B61*(CB9-CB10)/Inputs!B13/12","v":{"v":1131338.1922282074,"d":"$1,131,338"}},{"$f":"CC10+'(Other Computations)'!B61*(CC9-CC10)/Inputs!B13/12","v":{"v":1130898.3974176734,"d":"$1,130,898"}},{"$f":"CD10+'(Other Computations)'!B61*(CD9-CD10)/Inputs!B13/12","v":{"v":1130381.918509907,"d":"$1,130,382"}},{"$f":"CE10+'(Other Computations)'!B61*(CE9-CE10)/Inputs!B13/12","v":{"v":1129881.3023992965,"d":"$1,129,881"}},{"$f":"CF10+'(Other Computations)'!B61*(CF9-CF10)/Inputs!B13/12","v":{"v":1129417.8378563784,"d":"$1,129,418"}},{"$f":"CG10+'(Other Computations)'!B61*(CG9-CG10)/Inputs!B13/12","v":{"v":1128911.5490936216,"d":"$1,128,912"}},{"$f":"CH10+'(Other Computations)'!B61*(CH9-CH10)/Inputs!B13/12","v":{"v":1128579.9487103594,"d":"$1,128,580"}},{"$f":"CI10+'(Other Computations)'!B61*(CI9-CI10)/Inputs!B13/12","v":{"v":1128180.6209316123,"d":"$1,128,181"}},{"$f":"CJ10+'(Other Computations)'!B61*(CJ9-CJ10)/Inputs!B13/12","v":{"v":1127696.3608218054,"d":"$1,127,696"}},{"$f":"CK10+'(Other Computations)'!B61*(CK9-CK10)/Inputs!B13/12","v":{"v":1127302.4098326387,"d":"$1,127,302"}},{"$f":"CL10+'(Other Computations)'!B61*(CL9-CL10)/Inputs!B13/12","v":{"v":1126845.8789804664,"d":"$1,126,846"}},{"$f":"SUM(CB10:CM10)","v":{"v":13551314.897816608,"d":"$13,551,315"}},{"$f":"CM10+'(Other Computations)'!B61*(CM9-CM10)/Inputs!B13/12","v":{"v":1126320.2778394644,"d":"$1,126,320"}},{"$f":"CO10+'(Other Computations)'!B61*(CO9-CO10)/Inputs!B13/12","v":{"v":1125918.3165006938,"d":"$1,125,918"}},{"$f":"CP10+'(Other Computations)'!B61*(CP9-CP10)/Inputs!B13/12","v":{"v":1125494.889011696,"d":"$1,125,495"}},{"$f":"CQ10+'(Other Computations)'!B61*(CQ9-CQ10)/Inputs!B13/12","v":{"v":1125092.8709031672,"d":"$1,125,093"}},{"$f":"CR10+'(Other Computations)'!B61*(CR9-CR10)/Inputs!B13/12","v":{"v":1124626.4434285183,"d":"$1,124,626"}},{"$f":"CS10+'(Other Computations)'!B61*(CS9-CS10)/Inputs!B13/12","v":{"v":1124094.6217619658,"d":"$1,124,095"}},{"$f":"CT10+'(Other Computations)'!B61*(CT9-CT10)/Inputs!B13/12","v":{"v":1123507.9852716592,"d":"$1,123,508"}},{"$f":"CU10+'(Other Computations)'!B61*(CU9-CU10)/Inputs!B13/12","v":{"v":1123159.8029571122,"d":"$1,123,160"}},{"$f":"CV10+'(Other Computations)'!B61*(CV9-CV10)/Inputs!B13/12","v":{"v":1122725.6070201623,"d":"$1,122,726"}},{"$f":"CW10+'(Other Computations)'!B61*(CW9-CW10)/Inputs!B13/12","v":{"v":1122284.3151130308,"d":"$1,122,284"}},{"$f":"CX10+'(Other Computations)'!B61*(CX9-CX10)/Inputs!B13/12","v":{"v":1121698.2892740332,"d":"$1,121,698"}},{"$f":"CY10+'(Other Computations)'!B61*(CY9-CY10)/Inputs!B13/12","v":{"v":1121275.6918416247,"d":"$1,121,276"}},{"$f":"SUM(CO10:CZ10)","v":{"v":13486199.110923126,"d":"$13,486,199"}},{"$f":"CZ10+'(Other Computations)'!B61*(CZ9-CZ10)/Inputs!B13/12","v":{"v":1120902.5356817348,"d":"$1,120,903"}},{"$f":"DB10+'(Other Computations)'!B61*(DB9-DB10)/Inputs!B13/12","v":{"v":1120380.1999930784,"d":"$1,120,380"}},{"$f":"DC10+'(Other Computations)'!B61*(DC9-DC10)/Inputs!B13/12","v":{"v":1119818.944239802,"d":"$1,119,819"}},{"$f":"DD10+'(Other Computations)'!B61*(DD9-DD10)/Inputs!B13/12","v":{"v":1119397.0305733744,"d":"$1,119,397"}},{"$f":"DE10+'(Other Computations)'!B61*(DE9-DE10)/Inputs!B13/12","v":{"v":1118975.687721561,"d":"$1,118,976"}},{"$f":"DF10+'(Other Computations)'!B61*(DF9-DF10)/Inputs!B13/12","v":{"v":1118516.999909422,"d":"$1,118,517"}},{"$f":"DG10+'(Other Computations)'!B61*(DG9-DG10)/Inputs!B13/12","v":{"v":1118078.048982828,"d":"$1,118,078"}},{"$f":"DH10+'(Other Computations)'!B61*(DH9-DH10)/Inputs!B13/12","v":{"v":1117518.3799703093,"d":"$1,117,518"}},{"$f":"DI10+'(Other Computations)'!B61*(DI9-DI10)/Inputs!B13/12","v":{"v":1117107.3257458515,"d":"$1,117,107"}},{"$f":"DJ10+'(Other Computations)'!B61*(DJ9-DJ10)/Inputs!B13/12","v":{"v":1116594.0916394715,"d":"$1,116,594"}},{"$f":"DK10+'(Other Computations)'!B61*(DK9-DK10)/Inputs!B13/12","v":{"v":1116170.3888914227,"d":"$1,116,170"}},{"$f":"DL10+'(Other Computations)'!B61*(DL9-DL10)/Inputs!B13/12","v":{"v":1115722.8153904062,"d":"$1,115,723"}},{"$f":"SUM(DB10:DM10)","v":{"v":13419182.448739262,"d":"$13,419,182"}},{"$f":"DM10+'(Other Computations)'!B61*(DM9-DM10)/Inputs!B13/12","v":{"v":1115215.97101755,"d":"$1,115,216"}},{"$f":"DO10+'(Other Computations)'!B61*(DO9-DO10)/Inputs!B13/12","v":{"v":1114850.9928155118,"d":"$1,114,851"}},{"$f":"DP10+'(Other Computations)'!B61*(DP9-DP10)/Inputs!B13/12","v":{"v":1114517.1972110858,"d":"$1,114,517"}},{"$f":"DQ10+'(Other Computations)'!B61*(DQ9-DQ10)/Inputs!B13/12","v":{"v":1113976.1972735669,"d":"$1,113,976"}},{"$f":"DR10+'(Other Computations)'!B61*(DR9-DR10)/Inputs!B13/12","v":{"v":1113619.8084009143,"d":"$1,113,620"}},{"$f":"DS10+'(Other Computations)'!B61*(DS9-DS10)/Inputs!B13/12","v":{"v":1113277.347349138,"d":"$1,113,277"}},{"$f":"DT10+'(Other Computations)'!B61*(DT9-DT10)/Inputs!B13/12","v":{"v":1112872.785416799,"d":"$1,112,873"}},{"$f":"DU10+'(Other Computations)'!B61*(DU9-DU10)/Inputs!B13/12","v":{"v":1112363.8219504913,"d":"$1,112,364"}},{"$f":"DV10+'(Other Computations)'!B61*(DV9-DV10)/Inputs!B13/12","v":{"v":1111877.639333168,"d":"$1,111,878"}},{"$f":"DW10+'(Other Computations)'!B61*(DW9-DW10)/Inputs!B13/12","v":{"v":1111269.696159841,"d":"$1,111,270"}},{"$f":"DX10+'(Other Computations)'!B61*(DX9-DX10)/Inputs!B13/12","v":{"v":1110897.2918767636,"d":"$1,110,897"}},{"$f":"DY10+'(Other Computations)'!B61*(DY9-DY10)/Inputs!B13/12","v":{"v":1110507.1036670122,"d":"$1,110,507"}},{"$f":"SUM(DO10:DZ10)","v":{"v":13355245.85247184,"d":"$13,355,246"}},{"$f":"DZ10+'(Other Computations)'!B61*(DZ9-DZ10)/Inputs!B13/12","v":{"v":1110149.7022590707,"d":"$1,110,150"}},{"$f":"EB10+'(Other Computations)'!B61*(EB9-EB10)/Inputs!B13/12","v":{"v":1109670.6761081936,"d":"$1,109,671"}},{"$f":"EC10+'(Other Computations)'!B61*(EC9-EC10)/Inputs!B13/12","v":{"v":1109056.3214764518,"d":"$1,109,056"}},{"$f":"ED10+'(Other Computations)'!B61*(ED9-ED10)/Inputs!B13/12","v":{"v":1108559.9952557008,"d":"$1,108,560"}},{"$f":"EE10+'(Other Computations)'!B61*(EE9-EE10)/Inputs!B13/12","v":{"v":1108178.98291642,"d":"$1,108,179"}},{"$f":"EF10+'(Other Computations)'!B61*(EF9-EF10)/Inputs!B13/12","v":{"v":1107824.5386726058,"d":"$1,107,825"}},{"$f":"EG10+'(Other Computations)'!B61*(EG9-EG10)/Inputs!B13/12","v":{"v":1107322.2160739093,"d":"$1,107,322"}},{"$f":"EH10+'(Other Computations)'!B61*(EH9-EH10)/Inputs!B13/12","v":{"v":1106905.3619474466,"d":"$1,106,905"}},{"$f":"EI10+'(Other Computations)'!B61*(EI9-EI10)/Inputs!B13/12","v":{"v":1106319.1869029761,"d":"$1,106,319"}},{"$f":"EJ10+'(Other Computations)'!B61*(EJ9-EJ10)/Inputs!B13/12","v":{"v":1105732.3686773207,"d":"$1,105,732"}},{"$f":"EK10+'(Other Computations)'!B61*(EK9-EK10)/Inputs!B13/12","v":{"v":1105337.2286718136,"d":"$1,105,337"}},{"$f":"EL10+'(Other Computations)'!B61*(EL9-EL10)/Inputs!B13/12","v":{"v":1104783.8746705647,"d":"$1,104,784"}},{"$f":"SUM(EB10:EM10)","v":{"v":13289840.453632474,"d":"$13,289,840"}}]
[{"$f":"Labels!B34","v":"Short Expected Demand"},{"$f":"'(Other Computations)'!B8+'(Other Computations)'!B61*0/Inputs!B14/12","v":{"v":1166666.6666666667,"d":"$1,166,667"}},{"$f":"B11+'(Other Computations)'!B61*(B9-B11)/Inputs!B14/12","v":{"v":1163645.3687997623,"d":"$1,163,645"}},{"$f":"C11+'(Other Computations)'!B61*(C9-C11)/Inputs!B14/12","v":{"v":1160555.6786417966,"d":"$1,160,556"}},{"$f":"D11+'(Other Computations)'!B61*(D9-D11)/Inputs!B14/12","v":{"v":1157485.2153202717,"d":"$1,157,485"}},{"$f":"E11+'(Other Computations)'!B61*(E9-E11)/Inputs!B14/12","v":{"v":1155022.509501095,"d":"$1,155,023"}},{"$f":"F11+'(Other Computations)'!B61*(F9-F11)/Inputs!B14/12","v":{"v":1152855.7683052314,"d":"$1,152,856"}},{"$f":"G11+'(Other Computations)'!B61*(G9-G11)/Inputs!B14/12","v":{"v":1150954.7111749984,"d":"$1,150,955"}},{"$f":"H11+'(Other Computations)'!B61*(H9-H11)/Inputs!B14/12","v":{"v":1147695.4532543046,"d":"$1,147,695"}},{"$f":"I11+'(Other Computations)'!B61*(I9-I11)/Inputs!B14/12","v":{"v":1144502.698228334,"d":"$1,144,503"}},{"$f":"J11+'(Other Computations)'!B61*(J9-J11)/Inputs!B14/12","v":{"v":1141809.414296797,"d":"$1,141,809"}},{"$f":"K11+'(Other Computations)'!B61*(K9-K11)/Inputs!B14/12","v":{"v":1139151.8926778338,"d":"$1,139,152"}},{"$f":"L11+'(Other Computations)'!B61*(L9-L11)/Inputs!B14/12","v":{"v":1136648.3661973826,"d":"$1,136,648"}},{"$f":"SUM(B11:M11)","v":{"v":13816993.743064476,"d":"$13,816,994"}},{"$f":"M11+'(Other Computations)'!B61*(M9-M11)/Inputs!B14/12","v":{"v":1133500.7317018888,"d":"$1,133,501"}},{"$f":"O11+'(Other Computations)'!B61*(O9-O11)/Inputs!B14/12","v":{"v":1131064.449123201,"d":"$1,131,064"}},{"$f":"P11+'(Other Computations)'!B61*(P9-P11)/Inputs!B14/12","v":{"v":1128828.0585566408,"d":"$1,128,828"}},{"$f":"Q11+'(Other Computations)'!B61*(Q9-Q11)/Inputs!B14/12","v":{"v":1127025.7676584795,"d":"$1,127,026"}},{"$f":"R11+'(Other Computations)'!B61*(R9-R11)/Inputs!B14/12","v":{"v":1124664.4113377044,"d":"$1,124,664"}},{"$f":"S11+'(Other Computations)'!B61*(S9-S11)/Inputs!B14/12","v":{"v":1121524.783905605,"d":"$1,121,525"}},{"$f":"T11+'(Other Computations)'!B61*(T9-T11)/Inputs!B14/12","v":{"v":1118980.2953118752,"d":"$1,118,980"}},{"$f":"U11+'(Other Computations)'!B61*(U9-U11)/Inputs!B14/12","v":{"v":1116731.246612364,"d":"$1,116,731"}},{"$f":"V11+'(Other Computations)'!B61*(V9-V11)/Inputs!B14/12","v":{"v":1114407.8999768114,"d":"$1,114,408"}},{"$f":"W11+'(Other Computations)'!B61*(W9-W11)/Inputs!B14/12","v":{"v":1113012.0585742488,"d":"$1,113,012"}},{"$f":"X11+'(Other Computations)'!B61*(X9-X11)/Inputs!B14/12","v":{"v":1110698.6181605242,"d":"$1,110,699"}},{"$f":"Y11+'(Other Computations)'!B61*(Y9-Y11)/Inputs!B14/12","v":{"v":1107779.96488662,"d":"$1,107,780"}},{"$f":"SUM(O11:Z11)","v":{"v":13448218.285805963,"d":"$13,448,218"}},{"$f":"Z11+'(Other Computations)'!B61*(Z9-Z11)/Inputs!B14/12","v":{"v":1105190.3791982015,"d":"$1,105,190"}},{"$f":"AB11+'(Other Computations)'!B61*(AB9-AB11)/Inputs!B14/12","v":{"v":1102735.6435891727,"d":"$1,102,736"}},{"$f":"AC11+'(Other Computations)'!B61*(AC9-AC11)/Inputs!B14/12","v":{"v":1100735.5243780327,"d":"$1,100,736"}},{"$f":"AD11+'(Other Computations)'!B61*(AD9-AD11)/Inputs!B14/12","v":{"v":1098448.789524801,"d":"$1,098,449"}},{"$f":"AE11+'(Other Computations)'!B61*(AE9-AE11)/Inputs!B14/12","v":{"v":1095775.183718134,"d":"$1,095,775"}},{"$f":"AF11+'(Other Computations)'!B61*(AF9-AF11)/Inputs!B14/12","v":{"v":1093461.3767056975,"d":"$1,093,461"}},{"$f":"AG11+'(Other Computations)'!B61*(AG9-AG11)/Inputs!B14/12","v":{"v":1092058.0244522567,"d":"$1,092,058"}},{"$f":"AH11+'(Other Computations)'!B61*(AH9-AH11)/Inputs!B14/12","v":{"v":1090040.3559475206,"d":"$1,090,040"}},{"$f":"AI11+'(Other Computations)'!B61*(AI9-AI11)/Inputs!B14/12","v":{"v":1088037.4206173301,"d":"$1,088,037"}},{"$f":"AJ11+'(Other Computations)'!B61*(AJ9-AJ11)/Inputs!B14/12","v":{"v":1085804.4129718347,"d":"$1,085,804"}},{"$f":"AK11+'(Other Computations)'!B61*(AK9-AK11)/Inputs!B14/12","v":{"v":1084384.9112689004,"d":"$1,084,385"}},{"$f":"AL11+'(Other Computations)'!B61*(AL9-AL11)/Inputs!B14/12","v":{"v":1082282.1681262855,"d":"$1,082,282"}},{"$f":"SUM(AB11:AM11)","v":{"v":13118954.19049817,"d":"$13,118,954"}},{"$f":"AM11+'(Other Computations)'!B61*(AM9-AM11)/Inputs!B14/12","v":{"v":1079558.93140954,"d":"$1,079,559"}},{"$f":"AO11+'(Other Computations)'!B61*(AO9-AO11)/Inputs!B14/12","v":{"v":1077673.7021715108,"d":"$1,077,674"}},{"$f":"AP11+'(Other Computations)'!B61*(AP9-AP11)/Inputs!B14/12","v":{"v":1075767.1721358201,"d":"$1,075,767"}},{"$f":"AQ11+'(Other Computations)'!B61*(AQ9-AQ11)/Inputs!B14/12","v":{"v":1073785.600692431,"d":"$1,073,786"}},{"$f":"AR11+'(Other Computations)'!B61*(AR9-AR11)/Inputs!B14/12","v":{"v":1071478.4073124568,"d":"$1,071,478"}},{"$f":"AS11+'(Other Computations)'!B61*(AS9-AS11)/Inputs!B14/12","v":{"v":1069836.352544413,"d":"$1,069,836"}},{"$f":"AT11+'(Other Computations)'!B61*(AT9-AT11)/Inputs!B14/12","v":{"v":1068479.8114864342,"d":"$1,068,480"}},{"$f":"AU11+'(Other Computations)'!B61*(AU9-AU11)/Inputs!B14/12","v":{"v":1066886.9963454779,"d":"$1,066,887"}},{"$f":"AV11+'(Other Computations)'!B61*(AV9-AV11)/Inputs!B14/12","v":{"v":1065093.2241419621,"d":"$1,065,093"}},{"$f":"AW11+'(Other Computations)'!B61*(AW9-AW11)/Inputs!B14/12","v":{"v":1063613.6711758992,"d":"$1,063,614"}},{"$f":"AX11+'(Other Computations)'!B61*(AX9-AX11)/Inputs!B14/12","v":{"v":1061446.180117307,"d":"$1,061,446"}},{"$f":"AY11+'(Other Computations)'!B61*(AY9-AY11)/Inputs!B14/12","v":{"v":1059367.8069247033,"d":"$1,059,368"}},{"$f":"SUM(AO11:AZ11)","v":{"v":12832987.856457954,"d":"$12,832,988"}},{"$f":"AZ11+'(Other Computations)'!B61*(AZ9-AZ11)/Inputs!B14/12","v":{"v":1056983.8479827892,"d":"$1,056,984"}},{"$f":"BB11+'(Other Computations)'!B61*(BB9-BB11)/Inputs!B14/12","v":{"v":1056121.4026842557,"d":"$1,056,121"}},{"$f":"BC11+'(Other Computations)'!B61*(BC9-BC11)/Inputs!B14/12","v":{"v":1055237.5111832307,"d":"$1,055,238"}},{"$f":"BD11+'(Other Computations)'!B61*(BD9-BD11)/Inputs!B14/12","v":{"v":1053145.431906217,"d":"$1,053,145"}},{"$f":"BE11+'(Other Computations)'!B61*(BE9-BE11)/Inputs!B14/12","v":{"v":1051521.1229246352,"d":"$1,051,521"}},{"$f":"BF11+'(Other Computations)'!B61*(BF9-BF11)/Inputs!B14/12","v":{"v":1049498.235033009,"d":"$1,049,498"}},{"$f":"BG11+'(Other Computations)'!B61*(BG9-BG11)/Inputs!B14/12","v":{"v":1048207.5396553641,"d":"$1,048,208"}},{"$f":"BH11+'(Other Computations)'!B61*(BH9-BH11)/Inputs!B14/12","v":{"v":1046249.4898746659,"d":"$1,046,249"}},{"$f":"BI11+'(Other Computations)'!B61*(BI9-BI11)/Inputs!B14/12","v":{"v":1044723.2003451898,"d":"$1,044,723"}},{"$f":"BJ11+'(Other Computations)'!B61*(BJ9-BJ11)/Inputs!B14/12","v":{"v":1042379.1682788666,"d":"$1,042,379"}},{"$f":"BK11+'(Other Computations)'!B61*(BK9-BK11)/Inputs!B14/12","v":{"v":1041285.2068612535,"d":"$1,041,285"}},{"$f":"BL11+'(Other Computations)'!B61*(BL9-BL11)/Inputs!B14/12","v":{"v":1039987.5319491664,"d":"$1,039,988"}},{"$f":"SUM(BB11:BM11)","v":{"v":12585339.688678645,"d":"$12,585,340"}},{"$f":"BM11+'(Other Computations)'!B61*(BM9-BM11)/Inputs!B14/12","v":{"v":1038873.1837779749,"d":"$1,038,873"}},{"$f":"BO11+'(Other Computations)'!B61*(BO9-BO11)/Inputs!B14/12","v":{"v":1037713.2860746473,"d":"$1,037,713"}},{"$f":"BP11+'(Other Computations)'!B61*(BP9-BP11)/Inputs!B14/12","v":{"v":1036590.0504890484,"d":"$1,036,590"}},{"$f":"BQ11+'(Other Computations)'!B61*(BQ9-BQ11)/Inputs!B14/12","v":{"v":1034819.018668721,"d":"$1,034,819"}},{"$f":"BR11+'(Other Computations)'!B61*(BR9-BR11)/Inputs!B14/12","v":{"v":1033474.2941377786,"d":"$1,033,474"}},{"$f":"BS11+'(Other Computations)'!B61*(BS9-BS11)/Inputs!B14/12","v":{"v":1031532.5455568141,"d":"$1,031,533"}},{"$f":"BT11+'(Other Computations)'!B61*(BT9-BT11)/Inputs!B14/12","v":{"v":1030388.0304287407,"d":"$1,030,388"}},{"$f":"BU11+'(Other Computations)'!B61*(BU9-BU11)/Inputs!B14/12","v":{"v":1028796.8854716502,"d":"$1,028,797"}},{"$f":"BV11+'(Other Computations)'!B61*(BV9-BV11)/Inputs!B14/12","v":{"v":1027051.8258634043,"d":"$1,027,052"}},{"$f":"BW11+'(Other Computations)'!B61*(BW9-BW11)/Inputs!B14/12","v":{"v":1025170.0519553918,"d":"$1,025,170"}},{"$f":"BX11+'(Other Computations)'!B61*(BX9-BX11)/Inputs!B14/12","v":{"v":1024185.036358797,"d":"$1,024,185"}},{"$f":"BY11+'(Other Computations)'!B61*(BY9-BY11)/Inputs!B14/12","v":{"v":1022757.5046989459,"d":"$1,022,758"}},{"$f":"SUM(BO11:BZ11)","v":{"v":12371351.713481916,"d":"$12,371,352"}},{"$f":"BZ11+'(Other Computations)'!B61*(BZ9-BZ11)/Inputs!B14/12","v":{"v":1021665.9865614916,"d":"$1,021,666"}},{"$f":"CB11+'(Other Computations)'!B61*(CB9-CB11)/Inputs!B14/12","v":{"v":1019943.0105905855,"d":"$1,019,943"}},{"$f":"CC11+'(Other Computations)'!B61*(CC9-CC11)/Inputs!B14/12","v":{"v":1018851.3970279037,"d":"$1,018,851"}},{"$f":"CD11+'(Other Computations)'!B61*(CD9-CD11)/Inputs!B14/12","v":{"v":1017308.7319200526,"d":"$1,017,309"}},{"$f":"CE11+'(Other Computations)'!B61*(CE9-CE11)/Inputs!B14/12","v":{"v":1015875.4961812478,"d":"$1,015,875"}},{"$f":"CF11+'(Other Computations)'!B61*(CF9-CF11)/Inputs!B14/12","v":{"v":1014678.1228989891,"d":"$1,014,678"}},{"$f":"CG11+'(Other Computations)'!B61*(CG9-CG11)/Inputs!B14/12","v":{"v":1013233.9974746341,"d":"$1,013,234"}},{"$f":"CH11+'(Other Computations)'!B61*(CH9-CH11)/Inputs!B14/12","v":{"v":1012851.0278364366,"d":"$1,012,851"}},{"$f":"CI11+'(Other Computations)'!B61*(CI9-CI11)/Inputs!B14/12","v":{"v":1012062.407287203,"d":"$1,012,062"}},{"$f":"CJ11+'(Other Computations)'!B61*(CJ9-CJ11)/Inputs!B14/12","v":{"v":1010769.5995956456,"d":"$1,010,770"}},{"$f":"CK11+'(Other Computations)'!B61*(CK9-CK11)/Inputs!B14/12","v":{"v":1010029.8764554532,"d":"$1,010,030"}},{"$f":"CL11+'(Other Computations)'!B61*(CL9-CL11)/Inputs!B14/12","v":{"v":1008919.4765282144,"d":"$1,008,919"}},{"$f":"SUM(CB11:CM11)","v":{"v":12176189.130357856,"d":"$12,176,189"}},{"$f":"CM11+'(Other Computations)'!B61*(CM9-CM11)/Inputs!B14/12","v":{"v":1007403.736382928,"d":"$1,007,404"}},{"$f":"CO11+'(Other Computations)'!B61*(CO9-CO11)/Inputs!B14/12","v":{"v":1006643.5869816457,"d":"$1,006,644"}},{"$f":"CP11+'(Other Computations)'!B61*(CP9-CP11)/Inputs!B14/12","v":{"v":1005759.615513201,"d":"$1,005,760"}},{"$f":"CQ11+'(Other Computations)'!B61*(CQ9-CQ11)/Inputs!B14/12","v":{"v":1005010.49677173,"d":"$1,005,010"}},{"$f":"CR11+'(Other Computations)'!B61*(CR9-CR11)/Inputs!B14/12","v":{"v":1003879.7426756624,"d":"$1,003,880"}},{"$f":"CS11+'(Other Computations)'!B61*(CS9-CS11)/Inputs!B14/12","v":{"v":1002365.8501868036,"d":"$1,002,366"}},{"$f":"CT11+'(Other Computations)'!B61*(CT9-CT11)/Inputs!B14/12","v":{"v":1000536.708627953,"d":"$1,000,537"}},{"$f":"CU11+'(Other Computations)'!B61*(CU9-CU11)/Inputs!B14/12","v":{"v":1000155.5491385006,"d":"$1,000,156"}},{"$f":"CV11+'(Other Computations)'!B61*(CV9-CV11)/Inputs!B14/12","v":{"v":999258.7659309478,"d":"$999,259"}},{"$f":"CW11+'(Other Computations)'!B61*(CW9-CW11)/Inputs!B14/12","v":{"v":998325.8317255095,"d":"$998,326"}},{"$f":"CX11+'(Other Computations)'!B61*(CX9-CX11)/Inputs!B14/12","v":{"v":996531.322294128,"d":"$996,531"}},{"$f":"CY11+'(Other Computations)'!B61*(CY9-CY11)/Inputs!B14/12","v":{"v":995734.1677966202,"d":"$995,734"}},{"$f":"SUM(CO11:CZ11)","v":{"v":12021605.374025628,"d":"$12,021,605"}},{"$f":"CZ11+'(Other Computations)'!B61*(CZ9-CZ11)/Inputs!B14/12","v":{"v":995238.8631156833,"d":"$995,239"}},{"$f":"DB11+'(Other Computations)'!B61*(DB9-DB11)/Inputs!B14/12","v":{"v":993850.1777693848,"d":"$993,850"}},{"$f":"DC11+'(Other Computations)'!B61*(DC9-DC11)/Inputs!B14/12","v":{"v":992240.0046695003,"d":"$992,240"}},{"$f":"DD11+'(Other Computations)'!B61*(DD9-DD11)/Inputs!B14/12","v":{"v":991480.4523871894,"d":"$991,480"}},{"$f":"DE11+'(Other Computations)'!B61*(DE9-DE11)/Inputs!B14/12","v":{"v":990729.0144177838,"d":"$990,729"}},{"$f":"DF11+'(Other Computations)'!B61*(DF9-DF11)/Inputs!B14/12","v":{"v":989758.0913408352,"d":"$989,758"}},{"$f":"DG11+'(Other Computations)'!B61*(DG9-DG11)/Inputs!B14/12","v":{"v":988912.7039558355,"d":"$988,913"}},{"$f":"DH11+'(Other Computations)'!B61*(DH9-DH11)/Inputs!B14/12","v":{"v":987348.6530060985,"d":"$987,349"}},{"$f":"DI11+'(Other Computations)'!B61*(DI9-DI11)/Inputs!B14/12","v":{"v":986690.240533854,"d":"$986,690"}},{"$f":"DJ11+'(Other Computations)'!B61*(DJ9-DJ11)/Inputs!B14/12","v":{"v":985422.1843012967,"d":"$985,422"}},{"$f":"DK11+'(Other Computations)'!B61*(DK9-DK11)/Inputs!B14/12","v":{"v":984701.7998593679,"d":"$984,702"}},{"$f":"DL11+'(Other Computations)'!B61*(DL9-DL11)/Inputs!B14/12","v":{"v":983842.3114787149,"d":"$983,842"}},{"$f":"SUM(DB11:DM11)","v":{"v":11870214.496835543,"d":"$11,870,214"}},{"$f":"DM11+'(Other Computations)'!B61*(DM9-DM11)/Inputs!B14/12","v":{"v":982632.9189070176,"d":"$982,633"}},{"$f":"DO11+'(Other Computations)'!B61*(DO9-DO11)/Inputs!B14/12","v":{"v":982284.4809741018,"d":"$982,284"}},{"$f":"DP11+'(Other Computations)'!B61*(DP9-DP11)/Inputs!B14/12","v":{"v":982122.9089008992,"d":"$982,123"}},{"$f":"DQ11+'(Other Computations)'!B61*(DQ9-DQ11)/Inputs!B14/12","v":{"v":980715.7188356486,"d":"$980,716"}},{"$f":"DR11+'(Other Computations)'!B61*(DR9-DR11)/Inputs!B14/12","v":{"v":980428.2255780377,"d":"$980,428"}},{"$f":"DS11+'(Other Computations)'!B61*(DS9-DS11)/Inputs!B14/12","v":{"v":980223.3423621414,"d":"$980,223"}},{"$f":"DT11+'(Other Computations)'!B61*(DT9-DT11)/Inputs!B14/12","v":{"v":979643.9430595925,"d":"$979,644"}},{"$f":"DU11+'(Other Computations)'!B61*(DU9-DU11)/Inputs!B14/12","v":{"v":978440.5628500413,"d":"$978,441"}},{"$f":"DV11+'(Other Computations)'!B61*(DV9-DV11)/Inputs!B14/12","v":{"v":977383.5124113855,"d":"$977,384"}},{"$f":"DW11+'(Other Computations)'!B61*(DW9-DW11)/Inputs!B14/12","v":{"v":975603.8273564479,"d":"$975,604"}},{"$f":"DX11+'(Other Computations)'!B61*(DX9-DX11)/Inputs!B14/12","v":{"v":975253.6498358088,"d":"$975,254"}},{"$f":"DY11+'(Other Computations)'!B61*(DY9-DY11)/Inputs!B14/12","v":{"v":974796.460050092,"d":"$974,796"}},{"$f":"SUM(DO11:DZ11)","v":{"v":11749529.551121213,"d":"$11,749,530"}},{"$f":"DZ11+'(Other Computations)'!B61*(DZ9-DZ11)/Inputs!B14/12","v":{"v":974536.9216526776,"d":"$974,537"}},{"$f":"EB11+'(Other Computations)'!B61*(EB9-EB11)/Inputs!B14/12","v":{"v":973546.27558917,"d":"$973,546"}},{"$f":"EC11+'(Other Computations)'!B61*(EC9-EC11)/Inputs!B14/12","v":{"v":971750.7644725941,"d":"$971,751"}},{"$f":"ED11+'(Other Computations)'!B61*(ED9-ED11)/Inputs!B14/12","v":{"v":970679.8287731417,"d":"$970,680"}},{"$f":"EE11+'(Other Computations)'!B61*(EE9-EE11)/Inputs!B14/12","v":{"v":970308.7570497147,"d":"$970,309"}},{"$f":"EF11+'(Other Computations)'!B61*(EF9-EF11)/Inputs!B14/12","v":{"v":970096.9558349772,"d":"$970,097"}},{"$f":"EG11+'(Other Computations)'!B61*(EG9-EG11)/Inputs!B14/12","v":{"v":968995.9033377654,"d":"$968,996"}},{"$f":"EH11+'(Other Computations)'!B61*(EH9-EH11)/Inputs!B14/12","v":{"v":968415.9773669906,"d":"$968,416"}},{"$f":"EI11+'(Other Computations)'!B61*(EI9-EI11)/Inputs!B14/12","v":{"v":966822.390774897,"d":"$966,822"}},{"$f":"EJ11+'(Other Computations)'!B61*(EJ9-EJ11)/Inputs!B14/12","v":{"v":965238.9369227428,"d":"$965,239"}},{"$f":"EK11+'(Other Computations)'!B61*(EK9-EK11)/Inputs!B14/12","v":{"v":964819.3945529591,"d":"$964,819"}},{"$f":"EL11+'(Other Computations)'!B61*(EL9-EL11)/Inputs!B14/12","v":{"v":963450.9071304488,"d":"$963,451"}},{"$f":"SUM(EB11:EM11)","v":{"v":11628663.013458079,"d":"$11,628,663"}}]
[{"$f":"Labels!B24","v":"Consumption"},{"$f":"Inputs!B34*'(Other Computations)'!B53","v":{"v":728000,"d":"$728,000"}},{"$f":"Inputs!B34*'(Other Computations)'!C53","v":{"v":727831.3454979343,"d":"$727,831"}},{"$f":"Inputs!B34*'(Other Computations)'!D53","v":{"v":727694.5954371891,"d":"$727,695"}},{"$f":"Inputs!B34*'(Other Computations)'!E53","v":{"v":727505.7267721107,"d":"$727,506"}},{"$f":"Inputs!B34*'(Other Computations)'!F53","v":{"v":727215.2536509885,"d":"$727,215"}},{"$f":"Inputs!B34*'(Other Computations)'!G53","v":{"v":726944.897078066,"d":"$726,945"}},{"$f":"Inputs!B34*'(Other Computations)'!H53","v":{"v":726758.0892133282,"d":"$726,758"}},{"$f":"Inputs!B34*'(Other Computations)'!I53","v":{"v":726574.0456240454,"d":"$726,574"}},{"$f":"Inputs!B34*'(Other Computations)'!J53","v":{"v":726397.5715758316,"d":"$726,398"}},{"$f":"Inputs!B34*'(Other Computations)'!K53","v":{"v":726147.9696523362,"d":"$726,148"}},{"$f":"Inputs!B34*'(Other Computations)'!L53","v":{"v":725897.8322507667,"d":"$725,898"}},{"$f":"Inputs!B34*'(Other Computations)'!M53","v":{"v":725653.4661878775,"d":"$725,653"}},{"$f":"SUM(B12:M12)","v":{"v":8722620.792940473,"d":"$8,722,621"}},{"$f":"Inputs!B34*'(Other Computations)'!O53","v":{"v":725405.4509448007,"d":"$725,405"}},{"$f":"Inputs!B34*'(Other Computations)'!P53","v":{"v":725211.1411719979,"d":"$725,211"}},{"$f":"Inputs!B34*'(Other Computations)'!Q53","v":{"v":724969.9444608222,"d":"$724,970"}},{"$f":"Inputs!B34*'(Other Computations)'!R53","v":{"v":724783.4915342736,"d":"$724,783"}},{"$f":"Inputs!B34*'(Other Computations)'!S53","v":{"v":724621.1999530257,"d":"$724,621"}},{"$f":"Inputs!B34*'(Other Computations)'!T53","v":{"v":724449.6172356759,"d":"$724,450"}},{"$f":"Inputs!B34*'(Other Computations)'!U53","v":{"v":724168.48836229,"d":"$724,168"}},{"$f":"Inputs!B34*'(Other Computations)'!V53","v":{"v":723918.6150207899,"d":"$723,919"}},{"$f":"Inputs!B34*'(Other Computations)'!W53","v":{"v":723676.077979585,"d":"$723,676"}},{"$f":"Inputs!B34*'(Other Computations)'!X53","v":{"v":723419.7069998971,"d":"$723,420"}},{"$f":"Inputs!B34*'(Other Computations)'!Y53","v":{"v":723207.0819935445,"d":"$723,207"}},{"$f":"Inputs!B34*'(Other Computations)'!Z53","v":{"v":722884.9614491588,"d":"$722,885"}},{"$f":"SUM(O12:Z12)","v":{"v":8690715.777105862,"d":"$8,690,716"}},{"$f":"Inputs!B34*'(Other Computations)'!AB53","v":{"v":722649.4906944479,"d":"$722,649"}},{"$f":"Inputs!B34*'(Other Computations)'!AC53","v":{"v":722411.4153828697,"d":"$722,411"}},{"$f":"Inputs!B34*'(Other Computations)'!AD53","v":{"v":722159.1256001061,"d":"$722,159"}},{"$f":"Inputs!B34*'(Other Computations)'!AE53","v":{"v":721894.913574771,"d":"$721,895"}},{"$f":"Inputs!B34*'(Other Computations)'!AF53","v":{"v":721572.8491609815,"d":"$721,573"}},{"$f":"Inputs!B34*'(Other Computations)'!AG53","v":{"v":721343.1781863448,"d":"$721,343"}},{"$f":"Inputs!B34*'(Other Computations)'!AH53","v":{"v":721103.9513160164,"d":"$721,104"}},{"$f":"Inputs!B34*'(Other Computations)'!AI53","v":{"v":720918.7871139162,"d":"$720,919"}},{"$f":"Inputs!B34*'(Other Computations)'!AJ53","v":{"v":720611.6148716811,"d":"$720,612"}},{"$f":"Inputs!B34*'(Other Computations)'!AK53","v":{"v":720260.6742797487,"d":"$720,261"}},{"$f":"Inputs!B34*'(Other Computations)'!AL53","v":{"v":719934.7485144004,"d":"$719,935"}},{"$f":"Inputs!B34*'(Other Computations)'!AM53","v":{"v":719650.1305429467,"d":"$719,650"}},{"$f":"SUM(AB12:AM12)","v":{"v":8654510.87923823,"d":"$8,654,511"}},{"$f":"Inputs!B34*'(Other Computations)'!AO53","v":{"v":719441.0819116296,"d":"$719,441"}},{"$f":"Inputs!B34*'(Other Computations)'!AP53","v":{"v":719127.1138590729,"d":"$719,127"}},{"$f":"Inputs!B34*'(Other Computations)'!AQ53","v":{"v":718840.0824548914,"d":"$718,840"}},{"$f":"Inputs!B34*'(Other Computations)'!AR53","v":{"v":718542.740136612,"d":"$718,543"}},{"$f":"Inputs!B34*'(Other Computations)'!AS53","v":{"v":718206.3402685332,"d":"$718,206"}},{"$f":"Inputs!B34*'(Other Computations)'!AT53","v":{"v":717861.4826839439,"d":"$717,861"}},{"$f":"Inputs!B34*'(Other Computations)'!AU53","v":{"v":717502.4272595407,"d":"$717,502"}},{"$f":"Inputs!B34*'(Other Computations)'!AV53","v":{"v":717230.8032860778,"d":"$717,231"}},{"$f":"Inputs!B34*'(Other Computations)'!AW53","v":{"v":716969.2251802001,"d":"$716,969"}},{"$f":"Inputs!B34*'(Other Computations)'!AX53","v":{"v":716671.5493036036,"d":"$716,672"}},{"$f":"Inputs!B34*'(Other Computations)'!AY53","v":{"v":716352.37374438,"d":"$716,352"}},{"$f":"Inputs!B34*'(Other Computations)'!AZ53","v":{"v":716066.3878635193,"d":"$716,066"}},{"$f":"SUM(AO12:AZ12)","v":{"v":8612811.607952004,"d":"$8,612,812"}},{"$f":"Inputs!B34*'(Other Computations)'!BB53","v":{"v":715764.8729444634,"d":"$715,765"}},{"$f":"Inputs!B34*'(Other Computations)'!BC53","v":{"v":715512.4218426576,"d":"$715,512"}},{"$f":"Inputs!B34*'(Other Computations)'!BD53","v":{"v":715197.0919919922,"d":"$715,197"}},{"$f":"Inputs!B34*'(Other Computations)'!BE53","v":{"v":714881.1853172716,"d":"$714,881"}},{"$f":"Inputs!B34*'(Other Computations)'!BF53","v":{"v":714570.0046384691,"d":"$714,570"}},{"$f":"Inputs!B34*'(Other Computations)'!BG53","v":{"v":714282.0776264615,"d":"$714,282"}},{"$f":"Inputs!B34*'(Other Computations)'!BH53","v":{"v":714026.1761327713,"d":"$714,026"}},{"$f":"Inputs!B34*'(Other Computations)'!BI53","v":{"v":713760.7030904116,"d":"$713,761"}},{"$f":"Inputs!B34*'(Other Computations)'!BJ53","v":{"v":713405.728389301,"d":"$713,406"}},{"$f":"Inputs!B34*'(Other Computations)'!BK53","v":{"v":713120.0924991223,"d":"$713,120"}},{"$f":"Inputs!B34*'(Other Computations)'!BL53","v":{"v":712799.3125241951,"d":"$712,799"}},{"$f":"Inputs!B34*'(Other Computations)'!BM53","v":{"v":712494.2759056608,"d":"$712,494"}},{"$f":"SUM(BB12:BM12)","v":{"v":8569813.942902777,"d":"$8,569,814"}},{"$f":"Inputs!B34*'(Other Computations)'!BO53","v":{"v":712213.4954210715,"d":"$712,213"}},{"$f":"Inputs!B34*'(Other Computations)'!BP53","v":{"v":711878.9663042135,"d":"$711,879"}},{"$f":"Inputs!B34*'(Other Computations)'!BQ53","v":{"v":711592.9702857595,"d":"$711,593"}},{"$f":"Inputs!B34*'(Other Computations)'!BR53","v":{"v":711264.4531391769,"d":"$711,264"}},{"$f":"Inputs!B34*'(Other Computations)'!BS53","v":{"v":710958.5416480821,"d":"$710,959"}},{"$f":"Inputs!B34*'(Other Computations)'!BT53","v":{"v":710629.2027998021,"d":"$710,629"}},{"$f":"Inputs!B34*'(Other Computations)'!BU53","v":{"v":710343.8315924793,"d":"$710,344"}},{"$f":"Inputs!B34*'(Other Computations)'!BV53","v":{"v":710047.2493163623,"d":"$710,047"}},{"$f":"Inputs!B34*'(Other Computations)'!BW53","v":{"v":709682.7714172209,"d":"$709,683"}},{"$f":"Inputs!B34*'(Other Computations)'!BX53","v":{"v":709414.6360660451,"d":"$709,415"}},{"$f":"Inputs!B34*'(Other Computations)'!BY53","v":{"v":709162.3233189258,"d":"$709,162"}},{"$f":"Inputs!B34*'(Other Computations)'!BZ53","v":{"v":708841.2589829996,"d":"$708,841"}},{"$f":"SUM(BO12:BZ12)","v":{"v":8526029.70029214,"d":"$8,526,030"}},{"$f":"Inputs!B34*'(Other Computations)'!CB53","v":{"v":708562.6570141091,"d":"$708,563"}},{"$f":"Inputs!B34*'(Other Computations)'!CC53","v":{"v":708250.6309022442,"d":"$708,251"}},{"$f":"Inputs!B34*'(Other Computations)'!CD53","v":{"v":707941.2861050105,"d":"$707,941"}},{"$f":"Inputs!B34*'(Other Computations)'!CE53","v":{"v":707633.762575256,"d":"$707,634"}},{"$f":"Inputs!B34*'(Other Computations)'!CF53","v":{"v":707304.3390599099,"d":"$707,304"}},{"$f":"Inputs!B34*'(Other Computations)'!CG53","v":{"v":706974.20103257,"d":"$706,974"}},{"$f":"Inputs!B34*'(Other Computations)'!CH53","v":{"v":706673.4081857223,"d":"$706,673"}},{"$f":"Inputs!B34*'(Other Computations)'!CI53","v":{"v":706291.5372341721,"d":"$706,292"}},{"$f":"Inputs!B34*'(Other Computations)'!CJ53","v":{"v":705968.2289019678,"d":"$705,968"}},{"$f":"Inputs!B34*'(Other Computations)'!CK53","v":{"v":705668.9319474921,"d":"$705,669"}},{"$f":"Inputs!B34*'(Other Computations)'!CL53","v":{"v":705331.47410762,"d":"$705,331"}},{"$f":"Inputs!B34*'(Other Computations)'!CM53","v":{"v":705022.844070426,"d":"$705,023"}},{"$f":"SUM(CB12:CM12)","v":{"v":8481623.3011365,"d":"$8,481,623"}},{"$f":"Inputs!B34*'(Other Computations)'!CO53","v":{"v":704666.3052597432,"d":"$704,666"}},{"$f":"Inputs!B34*'(Other Computations)'!CP53","v":{"v":704395.753566206,"d":"$704,396"}},{"$f":"Inputs!B34*'(Other Computations)'!CQ53","v":{"v":704069.0030169365,"d":"$704,069"}},{"$f":"Inputs!B34*'(Other Computations)'!CR53","v":{"v":703699.1275379569,"d":"$703,699"}},{"$f":"Inputs!B34*'(Other Computations)'!CS53","v":{"v":703375.3154699055,"d":"$703,375"}},{"$f":"Inputs!B34*'(Other Computations)'!CT53","v":{"v":703002.5044946629,"d":"$703,003"}},{"$f":"Inputs!B34*'(Other Computations)'!CU53","v":{"v":702659.8500685634,"d":"$702,660"}},{"$f":"Inputs!B34*'(Other Computations)'!CV53","v":{"v":702314.0770480976,"d":"$702,314"}},{"$f":"Inputs!B34*'(Other Computations)'!CW53","v":{"v":702019.6058804757,"d":"$702,020"}},{"$f":"Inputs!B34*'(Other Computations)'!CX53","v":{"v":701675.1253661293,"d":"$701,675"}},{"$f":"Inputs!B34*'(Other Computations)'!CY53","v":{"v":701378.7065610617,"d":"$701,379"}},{"$f":"Inputs!B34*'(Other Computations)'!CZ53","v":{"v":701057.0511348444,"d":"$701,057"}},{"$f":"SUM(CO12:CZ12)","v":{"v":8434312.425404582,"d":"$8,434,312"}},{"$f":"Inputs!B34*'(Other Computations)'!DB53","v":{"v":700690.4702049857,"d":"$700,690"}},{"$f":"Inputs!B34*'(Other Computations)'!DC53","v":{"v":700342.8925183137,"d":"$700,343"}},{"$f":"Inputs!B34*'(Other Computations)'!DD53","v":{"v":700093.7874409433,"d":"$700,094"}},{"$f":"Inputs!B34*'(Other Computations)'!DE53","v":{"v":699764.6665142836,"d":"$699,765"}},{"$f":"Inputs!B34*'(Other Computations)'!DF53","v":{"v":699454.4106454054,"d":"$699,454"}},{"$f":"Inputs!B34*'(Other Computations)'!DG53","v":{"v":699126.0542955272,"d":"$699,126"}},{"$f":"Inputs!B34*'(Other Computations)'!DH53","v":{"v":698717.4304986099,"d":"$698,717"}},{"$f":"Inputs!B34*'(Other Computations)'!DI53","v":{"v":698396.662209388,"d":"$698,397"}},{"$f":"Inputs!B34*'(Other Computations)'!DJ53","v":{"v":698014.2611693916,"d":"$698,014"}},{"$f":"Inputs!B34*'(Other Computations)'!DK53","v":{"v":697586.2649978264,"d":"$697,586"}},{"$f":"Inputs!B34*'(Other Computations)'!DL53","v":{"v":697252.3322525126,"d":"$697,252"}},{"$f":"Inputs!B34*'(Other Computations)'!DM53","v":{"v":696901.4442683636,"d":"$696,901"}},{"$f":"SUM(DB12:DM12)","v":{"v":8386340.67701555,"d":"$8,386,341"}},{"$f":"Inputs!B34*'(Other Computations)'!DO53","v":{"v":696584.3474753215,"d":"$696,584"}},{"$f":"Inputs!B34*'(Other Computations)'!DP53","v":{"v":696229.1129800336,"d":"$696,229"}},{"$f":"Inputs!B34*'(Other Computations)'!DQ53","v":{"v":695921.1373465515,"d":"$695,921"}},{"$f":"Inputs!B34*'(Other Computations)'!DR53","v":{"v":695632.3897296273,"d":"$695,632"}},{"$f":"Inputs!B34*'(Other Computations)'!DS53","v":{"v":695277.0161972307,"d":"$695,277"}},{"$f":"Inputs!B34*'(Other Computations)'!DT53","v":{"v":694977.5291789625,"d":"$694,978"}},{"$f":"Inputs!B34*'(Other Computations)'!DU53","v":{"v":694559.918048681,"d":"$694,560"}},{"$f":"Inputs!B34*'(Other Computations)'!DV53","v":{"v":694132.6001166453,"d":"$694,133"}},{"$f":"Inputs!B34*'(Other Computations)'!DW53","v":{"v":693795.2435395421,"d":"$693,795"}},{"$f":"Inputs!B34*'(Other Computations)'!DX53","v":{"v":693497.786391868,"d":"$693,498"}},{"$f":"Inputs!B34*'(Other Computations)'!DY53","v":{"v":693090.2170506965,"d":"$693,090"}},{"$f":"Inputs!B34*'(Other Computations)'!DZ53","v":{"v":692769.0285549931,"d":"$692,769"}},{"$f":"SUM(DO12:DZ12)","v":{"v":8336466.326610153,"d":"$8,336,466"}},{"$f":"Inputs!B34*'(Other Computations)'!EB53","v":{"v":692399.8893494895,"d":"$692,400"}},{"$f":"Inputs!B34*'(Other Computations)'!EC53","v":{"v":692102.5152334014,"d":"$692,103"}},{"$f":"Inputs!B34*'(Other Computations)'!ED53","v":{"v":691821.0984848186,"d":"$691,821"}},{"$f":"Inputs!B34*'(Other Computations)'!EE53","v":{"v":691497.8424479758,"d":"$691,498"}},{"$f":"Inputs!B34*'(Other Computations)'!EF53","v":{"v":691139.7696513854,"d":"$691,140"}},{"$f":"Inputs!B34*'(Other Computations)'!EG53","v":{"v":690755.2869104668,"d":"$690,755"}},{"$f":"Inputs!B34*'(Other Computations)'!EH53","v":{"v":690338.32951359,"d":"$690,338"}},{"$f":"Inputs!B34*'(Other Computations)'!EI53","v":{"v":690003.6097753749,"d":"$690,004"}},{"$f":"Inputs!B34*'(Other Computations)'!EJ53","v":{"v":689733.5064656441,"d":"$689,734"}},{"$f":"Inputs!B34*'(Other Computations)'!EK53","v":{"v":689410.5215495093,"d":"$689,411"}},{"$f":"Inputs!B34*'(Other Computations)'!EL53","v":{"v":689009.1003854432,"d":"$689,009"}},{"$f":"Inputs!B34*'(Other Computations)'!EM53","v":{"v":688657.8960944031,"d":"$688,658"}},{"$f":"SUM(EB12:EM12)","v":{"v":8286869.3658615025,"d":"$8,286,869"}}]
[{"$f":"Labels!B74","v":"Aggregate Demand Shock"},{"$f":"NORMINV(RAND()*(1-2*Inputs!B58)+Inputs!B58,0,'(Other Computations)'!B208)","v":{"v":-14255.4608333438,"d":"($14,255)"}},{"$f":"NORMINV(RAND()*(1-2*Inputs!B58)+Inputs!B58,0,'(Other Computations)'!B208)","v":{"v":-21616.977066423908,"d":"($21,617)"}},{"$f":"NORMINV(RAND()*(1-2*Inputs!B58)+Inputs!B58,0,'(Other Computations)'!B208)","v":{"v":-22767.54075395087,"d":"($22,768)"}},{"$f":"NORMINV(RAND()*(1-2*Inputs!B58)+Inputs!B58,0,'(Other Computations)'!B208)","v":{"v":18520.57097360632,"d":"$18,521"}},{"$f":"NORMINV(RAND()*(1-2*Inputs!B58)+Inputs!B58,0,'(Other Computations)'!B208)","v":{"v":37981.401102195945,"d":"$37,981"}},{"$f":"NORMINV(RAND()*(1-2*Inputs!B58)+Inputs!B58,0,'(Other Computations)'!B208)","v":{"v":55494.65583886301,"d":"$55,495"}},{"$f":"NORMINV(RAND()*(1-2*Inputs!B58)+Inputs!B58,0,'(Other Computations)'!B208)","v":{"v":-43768.47170259461,"d":"($43,768)"}},{"$f":"NORMINV(RAND()*(1-2*Inputs!B58)+Inputs!B58,0,'(Other Computations)'!B208)","v":{"v":-41629.024821882485,"d":"($41,629)"}},{"$f":"NORMINV(RAND()*(1-2*Inputs!B58)+Inputs!B58,0,'(Other Computations)'!B208)","v":{"v":-8271.108464843895,"d":"($8,271)"}},{"$f":"NORMINV(RAND()*(1-2*Inputs!B58)+Inputs!B58,0,'(Other Computations)'!B208)","v":{"v":-7799.919524793453,"d":"($7,800)"}},{"$f":"NORMINV(RAND()*(1-2*Inputs!B58)+Inputs!B58,0,'(Other Computations)'!B208)","v":{"v":1212.9657942518018,"d":"$1,213"}},{"$f":"NORMINV(RAND()*(1-2*Inputs!B58)+Inputs!B58,0,'(Other Computations)'!B208)","v":{"v":-47113.21279876908,"d":"($47,113)"}},{"$f":"SUM(B13:M13)","v":{"v":-94012.12225768503,"d":"($94,012)"}},{"$f":"NORMINV(RAND()*(1-2*Inputs!B58)+Inputs!B58,0,'(Other Computations)'!B208)","v":{"v":1599.532442859924,"d":"$1,600"}},{"$f":"NORMINV(RAND()*(1-2*Inputs!B58)+Inputs!B58,0,'(Other Computations)'!B208)","v":{"v":14043.246335462289,"d":"$14,043"}},{"$f":"NORMINV(RAND()*(1-2*Inputs!B58)+Inputs!B58,0,'(Other Computations)'!B208)","v":{"v":43567.67016412308,"d":"$43,568"}},{"$f":"NORMINV(RAND()*(1-2*Inputs!B58)+Inputs!B58,0,'(Other Computations)'!B208)","v":{"v":1902.2702603195175,"d":"$1,902"}},{"$f":"NORMINV(RAND()*(1-2*Inputs!B58)+Inputs!B58,0,'(Other Computations)'!B208)","v":{"v":-56053.05471466721,"d":"($56,053)"}},{"$f":"NORMINV(RAND()*(1-2*Inputs!B58)+Inputs!B58,0,'(Other Computations)'!B208)","v":{"v":-15787.161067383151,"d":"($15,787)"}},{"$f":"NORMINV(RAND()*(1-2*Inputs!B58)+Inputs!B58,0,'(Other Computations)'!B208)","v":{"v":3519.753525662027,"d":"$3,520"}},{"$f":"NORMINV(RAND()*(1-2*Inputs!B58)+Inputs!B58,0,'(Other Computations)'!B208)","v":{"v":-3572.3376032280216,"d":"($3,572)"}},{"$f":"NORMINV(RAND()*(1-2*Inputs!B58)+Inputs!B58,0,'(Other Computations)'!B208)","v":{"v":61392.762159925755,"d":"$61,393"}},{"$f":"NORMINV(RAND()*(1-2*Inputs!B58)+Inputs!B58,0,'(Other Computations)'!B208)","v":{"v":-5677.3949896888735,"d":"($5,677)"}},{"$f":"NORMINV(RAND()*(1-2*Inputs!B58)+Inputs!B58,0,'(Other Computations)'!B208)","v":{"v":-51090.33442845816,"d":"($51,090)"}},{"$f":"NORMINV(RAND()*(1-2*Inputs!B58)+Inputs!B58,0,'(Other Computations)'!B208)","v":{"v":-29649.79033706894,"d":"($29,650)"}},{"$f":"SUM(O13:Z13)","v":{"v":-35804.83825214176,"d":"($35,805)"}},{"$f":"NORMINV(RAND()*(1-2*Inputs!B58)+Inputs!B58,0,'(Other Computations)'!B208)","v":{"v":-21998.45853670382,"d":"($21,998)"}},{"$f":"NORMINV(RAND()*(1-2*Inputs!B58)+Inputs!B58,0,'(Other Computations)'!B208)","v":{"v":8793.549088125028,"d":"$8,794"}},{"$f":"NORMINV(RAND()*(1-2*Inputs!B58)+Inputs!B58,0,'(Other Computations)'!B208)","v":{"v":-13378.14713953028,"d":"($13,378)"}},{"$f":"NORMINV(RAND()*(1-2*Inputs!B58)+Inputs!B58,0,'(Other Computations)'!B208)","v":{"v":-43003.887464079184,"d":"($43,004)"}},{"$f":"NORMINV(RAND()*(1-2*Inputs!B58)+Inputs!B58,0,'(Other Computations)'!B208)","v":{"v":-19146.594643493696,"d":"($19,147)"}},{"$f":"NORMINV(RAND()*(1-2*Inputs!B58)+Inputs!B58,0,'(Other Computations)'!B208)","v":{"v":44573.92984566021,"d":"$44,574"}},{"$f":"NORMINV(RAND()*(1-2*Inputs!B58)+Inputs!B58,0,'(Other Computations)'!B208)","v":{"v":-694.9729115569182,"d":"($695)"}},{"$f":"NORMINV(RAND()*(1-2*Inputs!B58)+Inputs!B58,0,'(Other Computations)'!B208)","v":{"v":-1255.2228357422946,"d":"($1,255)"}},{"$f":"NORMINV(RAND()*(1-2*Inputs!B58)+Inputs!B58,0,'(Other Computations)'!B208)","v":{"v":-19307.862240791044,"d":"($19,308)"}},{"$f":"NORMINV(RAND()*(1-2*Inputs!B58)+Inputs!B58,0,'(Other Computations)'!B208)","v":{"v":37621.921010095764,"d":"$37,622"}},{"$f":"NORMINV(RAND()*(1-2*Inputs!B58)+Inputs!B58,0,'(Other Computations)'!B208)","v":{"v":-12538.495475552429,"d":"($12,538)"}},{"$f":"NORMINV(RAND()*(1-2*Inputs!B58)+Inputs!B58,0,'(Other Computations)'!B208)","v":{"v":-58810.68024618958,"d":"($58,811)"}},{"$f":"SUM(AB13:AM13)","v":{"v":-99144.92154975823,"d":"($99,145)"}},{"$f":"NORMINV(RAND()*(1-2*Inputs!B58)+Inputs!B58,0,'(Other Computations)'!B208)","v":{"v":-682.7448450011399,"d":"($683)"}},{"$f":"NORMINV(RAND()*(1-2*Inputs!B58)+Inputs!B58,0,'(Other Computations)'!B208)","v":{"v":-3599.273024512585,"d":"($3,599)"}},{"$f":"NORMINV(RAND()*(1-2*Inputs!B58)+Inputs!B58,0,'(Other Computations)'!B208)","v":{"v":-10429.979728155184,"d":"($10,430)"}},{"$f":"NORMINV(RAND()*(1-2*Inputs!B58)+Inputs!B58,0,'(Other Computations)'!B208)","v":{"v":-35357.171892703605,"d":"($35,357)"}},{"$f":"NORMINV(RAND()*(1-2*Inputs!B58)+Inputs!B58,0,'(Other Computations)'!B208)","v":{"v":10808.19190217376,"d":"$10,808"}},{"$f":"NORMINV(RAND()*(1-2*Inputs!B58)+Inputs!B58,0,'(Other Computations)'!B208)","v":{"v":30221.665785477726,"d":"$30,222"}},{"$f":"NORMINV(RAND()*(1-2*Inputs!B58)+Inputs!B58,0,'(Other Computations)'!B208)","v":{"v":12327.6146237894,"d":"$12,328"}},{"$f":"NORMINV(RAND()*(1-2*Inputs!B58)+Inputs!B58,0,'(Other Computations)'!B208)","v":{"v":-3314.010126908437,"d":"($3,314)"}},{"$f":"NORMINV(RAND()*(1-2*Inputs!B58)+Inputs!B58,0,'(Other Computations)'!B208)","v":{"v":17953.733325311485,"d":"$17,954"}},{"$f":"NORMINV(RAND()*(1-2*Inputs!B58)+Inputs!B58,0,'(Other Computations)'!B208)","v":{"v":-32626.933514913842,"d":"($32,627)"}},{"$f":"NORMINV(RAND()*(1-2*Inputs!B58)+Inputs!B58,0,'(Other Computations)'!B208)","v":{"v":-27830.754114923635,"d":"($27,831)"}},{"$f":"NORMINV(RAND()*(1-2*Inputs!B58)+Inputs!B58,0,'(Other Computations)'!B208)","v":{"v":-51410.68007230129,"d":"($51,411)"}},{"$f":"SUM(AO13:AZ13)","v":{"v":-93940.34168266735,"d":"($93,940)"}},{"$f":"NORMINV(RAND()*(1-2*Inputs!B58)+Inputs!B58,0,'(Other Computations)'!B208)","v":{"v":56312.18206442567,"d":"$56,312"}},{"$f":"NORMINV(RAND()*(1-2*Inputs!B58)+Inputs!B58,0,'(Other Computations)'!B208)","v":{"v":54204.14847184981,"d":"$54,204"}},{"$f":"NORMINV(RAND()*(1-2*Inputs!B58)+Inputs!B58,0,'(Other Computations)'!B208)","v":{"v":-33302.27582107725,"d":"($33,302)"}},{"$f":"NORMINV(RAND()*(1-2*Inputs!B58)+Inputs!B58,0,'(Other Computations)'!B208)","v":{"v":-1179.952704893187,"d":"($1,180)"}},{"$f":"NORMINV(RAND()*(1-2*Inputs!B58)+Inputs!B58,0,'(Other Computations)'!B208)","v":{"v":-31037.46962442495,"d":"($31,037)"}},{"$f":"NORMINV(RAND()*(1-2*Inputs!B58)+Inputs!B58,0,'(Other Computations)'!B208)","v":{"v":20154.158535823306,"d":"$20,154"}},{"$f":"NORMINV(RAND()*(1-2*Inputs!B58)+Inputs!B58,0,'(Other Computations)'!B208)","v":{"v":-28822.725171231563,"d":"($28,823)"}},{"$f":"NORMINV(RAND()*(1-2*Inputs!B58)+Inputs!B58,0,'(Other Computations)'!B208)","v":{"v":771.955652543548,"d":"$772"}},{"$f":"NORMINV(RAND()*(1-2*Inputs!B58)+Inputs!B58,0,'(Other Computations)'!B208)","v":{"v":-59136.428034560515,"d":"($59,136)"}},{"$f":"NORMINV(RAND()*(1-2*Inputs!B58)+Inputs!B58,0,'(Other Computations)'!B208)","v":{"v":29063.84673949174,"d":"$29,064"}},{"$f":"NORMINV(RAND()*(1-2*Inputs!B58)+Inputs!B58,0,'(Other Computations)'!B208)","v":{"v":13703.59780826551,"d":"$13,704"}},{"$f":"NORMINV(RAND()*(1-2*Inputs!B58)+Inputs!B58,0,'(Other Computations)'!B208)","v":{"v":26020.87475874177,"d":"$26,021"}},{"$f":"SUM(BB13:BM13)","v":{"v":46751.912674953885,"d":"$46,752"}},{"$f":"NORMINV(RAND()*(1-2*Inputs!B58)+Inputs!B58,0,'(Other Computations)'!B208)","v":{"v":21993.487750475386,"d":"$21,993"}},{"$f":"NORMINV(RAND()*(1-2*Inputs!B58)+Inputs!B58,0,'(Other Computations)'!B208)","v":{"v":23900.925498768967,"d":"$23,901"}},{"$f":"NORMINV(RAND()*(1-2*Inputs!B58)+Inputs!B58,0,'(Other Computations)'!B208)","v":{"v":-23488.700915432924,"d":"($23,489)"}},{"$f":"NORMINV(RAND()*(1-2*Inputs!B58)+Inputs!B58,0,'(Other Computations)'!B208)","v":{"v":5941.859837868308,"d":"$5,942"}},{"$f":"NORMINV(RAND()*(1-2*Inputs!B58)+Inputs!B58,0,'(Other Computations)'!B208)","v":{"v":-37962.88905444794,"d":"($37,963)"}},{"$f":"NORMINV(RAND()*(1-2*Inputs!B58)+Inputs!B58,0,'(Other Computations)'!B208)","v":{"v":18028.33717767317,"d":"$18,028"}},{"$f":"NORMINV(RAND()*(1-2*Inputs!B58)+Inputs!B58,0,'(Other Computations)'!B208)","v":{"v":-14895.674941512723,"d":"($14,896)"}},{"$f":"NORMINV(RAND()*(1-2*Inputs!B58)+Inputs!B58,0,'(Other Computations)'!B208)","v":{"v":-27116.66370926153,"d":"($27,117)"}},{"$f":"NORMINV(RAND()*(1-2*Inputs!B58)+Inputs!B58,0,'(Other Computations)'!B208)","v":{"v":-38164.21754584467,"d":"($38,164)"}},{"$f":"NORMINV(RAND()*(1-2*Inputs!B58)+Inputs!B58,0,'(Other Computations)'!B208)","v":{"v":24983.893304380625,"d":"$24,984"}},{"$f":"NORMINV(RAND()*(1-2*Inputs!B58)+Inputs!B58,0,'(Other Computations)'!B208)","v":{"v":-7538.373580472655,"d":"($7,538)"}},{"$f":"NORMINV(RAND()*(1-2*Inputs!B58)+Inputs!B58,0,'(Other Computations)'!B208)","v":{"v":15682.41703336418,"d":"$15,682"}},{"$f":"SUM(BO13:BZ13)","v":{"v":-38635.59914444182,"d":"($38,636)"}},{"$f":"NORMINV(RAND()*(1-2*Inputs!B58)+Inputs!B58,0,'(Other Computations)'!B208)","v":{"v":-30507.27896610494,"d":"($30,507)"}},{"$f":"NORMINV(RAND()*(1-2*Inputs!B58)+Inputs!B58,0,'(Other Computations)'!B208)","v":{"v":13716.06821603187,"d":"$13,716"}},{"$f":"NORMINV(RAND()*(1-2*Inputs!B58)+Inputs!B58,0,'(Other Computations)'!B208)","v":{"v":-19453.010311466653,"d":"($19,453)"}},{"$f":"NORMINV(RAND()*(1-2*Inputs!B58)+Inputs!B58,0,'(Other Computations)'!B208)","v":{"v":-12656.88685385338,"d":"($12,657)"}},{"$f":"NORMINV(RAND()*(1-2*Inputs!B58)+Inputs!B58,0,'(Other Computations)'!B208)","v":{"v":3358.59068272582,"d":"$3,359"}},{"$f":"NORMINV(RAND()*(1-2*Inputs!B58)+Inputs!B58,0,'(Other Computations)'!B208)","v":{"v":-15169.526776308398,"d":"($15,170)"}},{"$f":"NORMINV(RAND()*(1-2*Inputs!B58)+Inputs!B58,0,'(Other Computations)'!B208)","v":{"v":60230.48829003073,"d":"$60,230"}},{"$f":"NORMINV(RAND()*(1-2*Inputs!B58)+Inputs!B58,0,'(Other Computations)'!B208)","v":{"v":31016.939795451854,"d":"$31,017"}},{"$f":"NORMINV(RAND()*(1-2*Inputs!B58)+Inputs!B58,0,'(Other Computations)'!B208)","v":{"v":-5696.922343367144,"d":"($5,697)"}},{"$f":"NORMINV(RAND()*(1-2*Inputs!B58)+Inputs!B58,0,'(Other Computations)'!B208)","v":{"v":33254.79666260802,"d":"$33,255"}},{"$f":"NORMINV(RAND()*(1-2*Inputs!B58)+Inputs!B58,0,'(Other Computations)'!B208)","v":{"v":6210.9899307749965,"d":"$6,211"}},{"$f":"NORMINV(RAND()*(1-2*Inputs!B58)+Inputs!B58,0,'(Other Computations)'!B208)","v":{"v":-23675.40005739629,"d":"($23,675)"}},{"$f":"SUM(CB13:CM13)","v":{"v":40628.848269126494,"d":"$40,629"}},{"$f":"NORMINV(RAND()*(1-2*Inputs!B58)+Inputs!B58,0,'(Other Computations)'!B208)","v":{"v":29723.943029980754,"d":"$29,724"}},{"$f":"NORMINV(RAND()*(1-2*Inputs!B58)+Inputs!B58,0,'(Other Computations)'!B208)","v":{"v":20371.086297472877,"d":"$20,371"}},{"$f":"NORMINV(RAND()*(1-2*Inputs!B58)+Inputs!B58,0,'(Other Computations)'!B208)","v":{"v":29594.03693436529,"d":"$29,594"}},{"$f":"NORMINV(RAND()*(1-2*Inputs!B58)+Inputs!B58,0,'(Other Computations)'!B208)","v":{"v":1790.1706838888208,"d":"$1,790"}},{"$f":"NORMINV(RAND()*(1-2*Inputs!B58)+Inputs!B58,0,'(Other Computations)'!B208)","v":{"v":-26495.87914210977,"d":"($26,496)"}},{"$f":"NORMINV(RAND()*(1-2*Inputs!B58)+Inputs!B58,0,'(Other Computations)'!B208)","v":{"v":-50175.08863166793,"d":"($50,175)"}},{"$f":"NORMINV(RAND()*(1-2*Inputs!B58)+Inputs!B58,0,'(Other Computations)'!B208)","v":{"v":52796.00554096294,"d":"$52,796"}},{"$f":"NORMINV(RAND()*(1-2*Inputs!B58)+Inputs!B58,0,'(Other Computations)'!B208)","v":{"v":15638.861603544303,"d":"$15,639"}},{"$f":"NORMINV(RAND()*(1-2*Inputs!B58)+Inputs!B58,0,'(Other Computations)'!B208)","v":{"v":12510.572467345186,"d":"$12,511"}},{"$f":"NORMINV(RAND()*(1-2*Inputs!B58)+Inputs!B58,0,'(Other Computations)'!B208)","v":{"v":-50028.975732548824,"d":"($50,029)"}},{"$f":"NORMINV(RAND()*(1-2*Inputs!B58)+Inputs!B58,0,'(Other Computations)'!B208)","v":{"v":20484.045138426125,"d":"$20,484"}},{"$f":"NORMINV(RAND()*(1-2*Inputs!B58)+Inputs!B58,0,'(Other Computations)'!B208)","v":{"v":41805.04695721988,"d":"$41,805"}},{"$f":"SUM(CO13:CZ13)","v":{"v":98013.82514687965,"d":"$98,014"}},{"$f":"NORMINV(RAND()*(1-2*Inputs!B58)+Inputs!B58,0,'(Other Computations)'!B208)","v":{"v":-22623.435428112458,"d":"($22,623)"}},{"$f":"NORMINV(RAND()*(1-2*Inputs!B58)+Inputs!B58,0,'(Other Computations)'!B208)","v":{"v":-39463.53761297841,"d":"($39,464)"}},{"$f":"NORMINV(RAND()*(1-2*Inputs!B58)+Inputs!B58,0,'(Other Computations)'!B208)","v":{"v":20598.03932578012,"d":"$20,598"}},{"$f":"NORMINV(RAND()*(1-2*Inputs!B58)+Inputs!B58,0,'(Other Computations)'!B208)","v":{"v":20812.46471808522,"d":"$20,812"}},{"$f":"NORMINV(RAND()*(1-2*Inputs!B58)+Inputs!B58,0,'(Other Computations)'!B208)","v":{"v":4629.581966107576,"d":"$4,630"}},{"$f":"NORMINV(RAND()*(1-2*Inputs!B58)+Inputs!B58,0,'(Other Computations)'!B208)","v":{"v":13117.988426586011,"d":"$13,118"}},{"$f":"NORMINV(RAND()*(1-2*Inputs!B58)+Inputs!B58,0,'(Other Computations)'!B208)","v":{"v":-38986.927123137306,"d":"($38,987)"}},{"$f":"NORMINV(RAND()*(1-2*Inputs!B58)+Inputs!B58,0,'(Other Computations)'!B208)","v":{"v":25151.11569575954,"d":"$25,151"}},{"$f":"NORMINV(RAND()*(1-2*Inputs!B58)+Inputs!B58,0,'(Other Computations)'!B208)","v":{"v":-18969.19764783275,"d":"($18,969)"}},{"$f":"NORMINV(RAND()*(1-2*Inputs!B58)+Inputs!B58,0,'(Other Computations)'!B208)","v":{"v":19758.804768326318,"d":"$19,759"}},{"$f":"NORMINV(RAND()*(1-2*Inputs!B58)+Inputs!B58,0,'(Other Computations)'!B208)","v":{"v":9416.958717817426,"d":"$9,417"}},{"$f":"NORMINV(RAND()*(1-2*Inputs!B58)+Inputs!B58,0,'(Other Computations)'!B208)","v":{"v":-16204.112641899692,"d":"($16,204)"}},{"$f":"SUM(DB13:DM13)","v":{"v":-22762.256835498396,"d":"($22,762)"}},{"$f":"NORMINV(RAND()*(1-2*Inputs!B58)+Inputs!B58,0,'(Other Computations)'!B208)","v":{"v":45021.68885464596,"d":"$45,022"}},{"$f":"NORMINV(RAND()*(1-2*Inputs!B58)+Inputs!B58,0,'(Other Computations)'!B208)","v":{"v":58493.77107201961,"d":"$58,494"}},{"$f":"NORMINV(RAND()*(1-2*Inputs!B58)+Inputs!B58,0,'(Other Computations)'!B208)","v":{"v":-31056.914554912048,"d":"($31,057)"}},{"$f":"NORMINV(RAND()*(1-2*Inputs!B58)+Inputs!B58,0,'(Other Computations)'!B208)","v":{"v":48603.28165407464,"d":"$48,603"}},{"$f":"NORMINV(RAND()*(1-2*Inputs!B58)+Inputs!B58,0,'(Other Computations)'!B208)","v":{"v":54624.45147073265,"d":"$54,624"}},{"$f":"NORMINV(RAND()*(1-2*Inputs!B58)+Inputs!B58,0,'(Other Computations)'!B208)","v":{"v":27750.281944568927,"d":"$27,750"}},{"$f":"NORMINV(RAND()*(1-2*Inputs!B58)+Inputs!B58,0,'(Other Computations)'!B208)","v":{"v":-17288.670041073852,"d":"($17,289)"}},{"$f":"NORMINV(RAND()*(1-2*Inputs!B58)+Inputs!B58,0,'(Other Computations)'!B208)","v":{"v":-7393.100174849787,"d":"($7,393)"}},{"$f":"NORMINV(RAND()*(1-2*Inputs!B58)+Inputs!B58,0,'(Other Computations)'!B208)","v":{"v":-60027.177685637966,"d":"($60,027)"}},{"$f":"NORMINV(RAND()*(1-2*Inputs!B58)+Inputs!B58,0,'(Other Computations)'!B208)","v":{"v":41630.18044313425,"d":"$41,630"}},{"$f":"NORMINV(RAND()*(1-2*Inputs!B58)+Inputs!B58,0,'(Other Computations)'!B208)","v":{"v":33999.85327450702,"d":"$34,000"}},{"$f":"NORMINV(RAND()*(1-2*Inputs!B58)+Inputs!B58,0,'(Other Computations)'!B208)","v":{"v":48129.0940371144,"d":"$48,129"}},{"$f":"SUM(DO13:DZ13)","v":{"v":242486.74029432383,"d":"$242,487"}},{"$f":"NORMINV(RAND()*(1-2*Inputs!B58)+Inputs!B58,0,'(Other Computations)'!B208)","v":{"v":-4392.885884112604,"d":"($4,393)"}},{"$f":"NORMINV(RAND()*(1-2*Inputs!B58)+Inputs!B58,0,'(Other Computations)'!B208)","v":{"v":-62926.2547608639,"d":"($62,926)"}},{"$f":"NORMINV(RAND()*(1-2*Inputs!B58)+Inputs!B58,0,'(Other Computations)'!B208)","v":{"v":-12050.407245586657,"d":"($12,050)"}},{"$f":"NORMINV(RAND()*(1-2*Inputs!B58)+Inputs!B58,0,'(Other Computations)'!B208)","v":{"v":37711.49770152302,"d":"$37,711"}},{"$f":"NORMINV(RAND()*(1-2*Inputs!B58)+Inputs!B58,0,'(Other Computations)'!B208)","v":{"v":49189.93313833568,"d":"$49,190"}},{"$f":"NORMINV(RAND()*(1-2*Inputs!B58)+Inputs!B58,0,'(Other Computations)'!B208)","v":{"v":-14659.664147465492,"d":"($14,660)"}},{"$f":"NORMINV(RAND()*(1-2*Inputs!B58)+Inputs!B58,0,'(Other Computations)'!B208)","v":{"v":22304.91212833737,"d":"$22,305"}},{"$f":"NORMINV(RAND()*(1-2*Inputs!B58)+Inputs!B58,0,'(Other Computations)'!B208)","v":{"v":-50868.602324567146,"d":"($50,869)"}},{"$f":"NORMINV(RAND()*(1-2*Inputs!B58)+Inputs!B58,0,'(Other Computations)'!B208)","v":{"v":-51266.669488626496,"d":"($51,267)"}},{"$f":"NORMINV(RAND()*(1-2*Inputs!B58)+Inputs!B58,0,'(Other Computations)'!B208)","v":{"v":31467.483951525875,"d":"$31,467"}},{"$f":"NORMINV(RAND()*(1-2*Inputs!B58)+Inputs!B58,0,'(Other Computations)'!B208)","v":{"v":-36842.28132230807,"d":"($36,842)"}},{"$f":"NORMINV(RAND()*(1-2*Inputs!B58)+Inputs!B58,0,'(Other Computations)'!B208)","v":{"v":23652.703104632477,"d":"$23,653"}},{"$f":"SUM(EB13:EM13)","v":{"v":-68680.23514917595,"d":"($68,680)"}}]
[]
[]
[{"$f":"\"Capital\"","v":"Capital"}]
[{"$f":"\" \"","v":" "}]
[null,{"$f":"ZZZ__FnCalls!F7","v":"Jan 2010"},{"$f":"ZZZ__FnCalls!F8","v":"Feb 2010"},{"$f":"ZZZ__FnCalls!F9","v":"Mar 2010"},{"$f":"ZZZ__FnCalls!F10","v":"Apr 2010"},{"$f":"ZZZ__FnCalls!F11","v":"May 2010"},{"$f":"ZZZ__FnCalls!F12","v":"Jun 2010"},{"$f":"ZZZ__FnCalls!F13","v":"Jul 2010"},{"$f":"ZZZ__FnCalls!F14","v":"Aug 2010"},{"$f":"ZZZ__FnCalls!F15","v":"Sep 2010"},{"$f":"ZZZ__FnCalls!F16","v":"Oct 2010"},{"$f":"ZZZ__FnCalls!F17","v":"Nov 2010"},{"$f":"ZZZ__FnCalls!F18","v":"Dec 2010"},{"$f":"ZZZ__FnCalls!H7","v":"2010"},{"$f":"ZZZ__FnCalls!F19","v":"Jan 2011"},{"$f":"ZZZ__FnCalls!F20","v":"Feb 2011"},{"$f":"ZZZ__FnCalls!F21","v":"Mar 2011"},{"$f":"ZZZ__FnCalls!F22","v":"Apr 2011"},{"$f":"ZZZ__FnCalls!F23","v":"May 2011"},{"$f":"ZZZ__FnCalls!F24","v":"Jun 2011"},{"$f":"ZZZ__FnCalls!F25","v":"Jul 2011"},{"$f":"ZZZ__FnCalls!F26","v":"Aug 2011"},{"$f":"ZZZ__FnCalls!F27","v":"Sep 2011"},{"$f":"ZZZ__FnCalls!F28","v":"Oct 2011"},{"$f":"ZZZ__FnCalls!F29","v":"Nov 2011"},{"$f":"ZZZ__FnCalls!F30","v":"Dec 2011"},{"$f":"ZZZ__FnCalls!H19","v":"2011"},{"$f":"ZZZ__FnCalls!F31","v":"Jan 2012"},{"$f":"ZZZ__FnCalls!F32","v":"Feb 2012"},{"$f":"ZZZ__FnCalls!F33","v":"Mar 2012"},{"$f":"ZZZ__FnCalls!F34","v":"Apr 2012"},{"$f":"ZZZ__FnCalls!F35","v":"May 2012"},{"$f":"ZZZ__FnCalls!F36","v":"Jun 2012"},{"$f":"ZZZ__FnCalls!F37","v":"Jul 2012"},{"$f":"ZZZ__FnCalls!F38","v":"Aug 2012"},{"$f":"ZZZ__FnCalls!F39","v":"Sep 2012"},{"$f":"ZZZ__FnCalls!F40","v":"Oct 2012"},{"$f":"ZZZ__FnCalls!F41","v":"Nov 2012"},{"$f":"ZZZ__FnCalls!F42","v":"Dec 2012"},{"$f":"ZZZ__FnCalls!H31","v":"2012"},{"$f":"ZZZ__FnCalls!F43","v":"Jan 2013"},{"$f":"ZZZ__FnCalls!F44","v":"Feb 2013"},{"$f":"ZZZ__FnCalls!F45","v":"Mar 2013"},{"$f":"ZZZ__FnCalls!F46","v":"Apr 2013"},{"$f":"ZZZ__FnCalls!F47","v":"May 2013"},{"$f":"ZZZ__FnCalls!F48","v":"Jun 2013"},{"$f":"ZZZ__FnCalls!F49","v":"Jul 2013"},{"$f":"ZZZ__FnCalls!F50","v":"Aug 2013"},{"$f":"ZZZ__FnCalls!F51","v":"Sep 2013"},{"$f":"ZZZ__FnCalls!F52","v":"Oct 2013"},{"$f":"ZZZ__FnCalls!F53","v":"Nov 2013"},{"$f":"ZZZ__FnCalls!F54","v":"Dec 2013"},{"$f":"ZZZ__FnCalls!H43","v":"2013"},{"$f":"ZZZ__FnCalls!F55","v":"Jan 2014"},{"$f":"ZZZ__FnCalls!F56","v":"Feb 2014"},{"$f":"ZZZ__FnCalls!F57","v":"Mar 2014"},{"$f":"ZZZ__FnCalls!F58","v":"Apr 2014"},{"$f":"ZZZ__FnCalls!F59","v":"May 2014"},{"$f":"ZZZ__FnCalls!F60","v":"Jun 2014"},{"$f":"ZZZ__FnCalls!F61","v":"Jul 2014"},{"$f":"ZZZ__FnCalls!F62","v":"Aug 2014"},{"$f":"ZZZ__FnCalls!F63","v":"Sep 2014"},{"$f":"ZZZ__FnCalls!F64","v":"Oct 2014"},{"$f":"ZZZ__FnCalls!F65","v":"Nov 2014"},{"$f":"ZZZ__FnCalls!F66","v":"Dec 2014"},{"$f":"ZZZ__FnCalls!H55","v":"2014"},{"$f":"ZZZ__FnCalls!F67","v":"Jan 2015"},{"$f":"ZZZ__FnCalls!F68","v":"Feb 2015"},{"$f":"ZZZ__FnCalls!F69","v":"Mar 2015"},{"$f":"ZZZ__FnCalls!F70","v":"Apr 2015"},{"$f":"ZZZ__FnCalls!F71","v":"May 2015"},{"$f":"ZZZ__FnCalls!F72","v":"Jun 2015"},{"$f":"ZZZ__FnCalls!F73","v":"Jul 2015"},{"$f":"ZZZ__FnCalls!F74","v":"Aug 2015"},{"$f":"ZZZ__FnCalls!F75","v":"Sep 2015"},{"$f":"ZZZ__FnCalls!F76","v":"Oct 2015"},{"$f":"ZZZ__FnCalls!F77","v":"Nov 2015"},{"$f":"ZZZ__FnCalls!F78","v":"Dec 2015"},{"$f":"ZZZ__FnCalls!H67","v":"2015"},{"$f":"ZZZ__FnCalls!F79","v":"Jan 2016"},{"$f":"ZZZ__FnCalls!F80","v":"Feb 2016"},{"$f":"ZZZ__FnCalls!F81","v":"Mar 2016"},{"$f":"ZZZ__FnCalls!F82","v":"Apr 2016"},{"$f":"ZZZ__FnCalls!F83","v":"May 2016"},{"$f":"ZZZ__FnCalls!F84","v":"Jun 2016"},{"$f":"ZZZ__FnCalls!F85","v":"Jul 2016"},{"$f":"ZZZ__FnCalls!F86","v":"Aug 2016"},{"$f":"ZZZ__FnCalls!F87","v":"Sep 2016"},{"$f":"ZZZ__FnCalls!F88","v":"Oct 2016"},{"$f":"ZZZ__FnCalls!F89","v":"Nov 2016"},{"$f":"ZZZ__FnCalls!F90","v":"Dec 2016"},{"$f":"ZZZ__FnCalls!H79","v":"2016"},{"$f":"ZZZ__FnCalls!F91","v":"Jan 2017"},{"$f":"ZZZ__FnCalls!F92","v":"Feb 2017"},{"$f":"ZZZ__FnCalls!F93","v":"Mar 2017"},{"$f":"ZZZ__FnCalls!F94","v":"Apr 2017"},{"$f":"ZZZ__FnCalls!F95","v":"May 2017"},{"$f":"ZZZ__FnCalls!F96","v":"Jun 2017"},{"$f":"ZZZ__FnCalls!F97","v":"Jul 2017"},{"$f":"ZZZ__FnCalls!F98","v":"Aug 2017"},{"$f":"ZZZ__FnCalls!F99","v":"Sep 2017"},{"$f":"ZZZ__FnCalls!F100","v":"Oct 2017"},{"$f":"ZZZ__FnCalls!F101","v":"Nov 2017"},{"$f":"ZZZ__FnCalls!F102","v":"Dec 2017"},{"$f":"ZZZ__FnCalls!H91","v":"2017"},{"$f":"ZZZ__FnCalls!F103","v":"Jan 2018"},{"$f":"ZZZ__FnCalls!F104","v":"Feb 2018"},{"$f":"ZZZ__FnCalls!F105","v":"Mar 2018"},{"$f":"ZZZ__FnCalls!F106","v":"Apr 2018"},{"$f":"ZZZ__FnCalls!F107","v":"May 2018"},{"$f":"ZZZ__FnCalls!F108","v":"Jun 2018"},{"$f":"ZZZ__FnCalls!F109","v":"Jul 2018"},{"$f":"ZZZ__FnCalls!F110","v":"Aug 2018"},{"$f":"ZZZ__FnCalls!F111","v":"Sep 2018"},{"$f":"ZZZ__FnCalls!F112","v":"Oct 2018"},{"$f":"ZZZ__FnCalls!F113","v":"Nov 2018"},{"$f":"ZZZ__FnCalls!F114","v":"Dec 2018"},{"$f":"ZZZ__FnCalls!H103","v":"2018"},{"$f":"ZZZ__FnCalls!F115","v":"Jan 2019"},{"$f":"ZZZ__FnCalls!F116","v":"Feb 2019"},{"$f":"ZZZ__FnCalls!F117","v":"Mar 2019"},{"$f":"ZZZ__FnCalls!F118","v":"Apr 2019"},{"$f":"ZZZ__FnCalls!F119","v":"May 2019"},{"$f":"ZZZ__FnCalls!F120","v":"Jun 2019"},{"$f":"ZZZ__FnCalls!F121","v":"Jul 2019"},{"$f":"ZZZ__FnCalls!F122","v":"Aug 2019"},{"$f":"ZZZ__FnCalls!F123","v":"Sep 2019"},{"$f":"ZZZ__FnCalls!F124","v":"Oct 2019"},{"$f":"ZZZ__FnCalls!F125","v":"Nov 2019"},{"$f":"ZZZ__FnCalls!F126","v":"Dec 2019"},{"$f":"ZZZ__FnCalls!H115","v":"2019"},{"$f":"ZZZ__FnCalls!F127","v":"Jan 2020"},{"$f":"ZZZ__FnCalls!F128","v":"Feb 2020"},{"$f":"ZZZ__FnCalls!F129","v":"Mar 2020"},{"$f":"ZZZ__FnCalls!F130","v":"Apr 2020"},{"$f":"ZZZ__FnCalls!F131","v":"May 2020"},{"$f":"ZZZ__FnCalls!F132","v":"Jun 2020"},{"$f":"ZZZ__FnCalls!F133","v":"Jul 2020"},{"$f":"ZZZ__FnCalls!F134","v":"Aug 2020"},{"$f":"ZZZ__FnCalls!F135","v":"Sep 2020"},{"$f":"ZZZ__FnCalls!F136","v":"Oct 2020"},{"$f":"ZZZ__FnCalls!F137","v":"Nov 2020"},{"$f":"ZZZ__FnCalls!F138","v":"Dec 2020"},{"$f":"ZZZ__FnCalls!H127","v":"2020"}]
[{"$f":"Labels!B9","v":"Capital"},{"$f":"Inputs!B20*'(Other Computations)'!B8/(1/Inputs!B19/12+'(Other Computations)'!B144)","v":{"v":34645298.42192645,"d":"$34,645,298"}},{"$f":"B19+B21-B20","v":{"v":34645298.42192645,"d":"$34,645,298"}},{"v":34644883.04983828,"d":"$34,644,883"},{"v":34644049.63356415,"d":"$34,644,050"},{"v":34642807.523527995,"d":"$34,642,808"},{"v":34641246.7643549,"d":"$34,641,247"},{"v":34639413.01205971,"d":"$34,639,413"},{"v":34637346.971360475,"d":"$34,637,347"},{"v":34634865.39306144,"d":"$34,634,865"},{"v":34631983.83408812,"d":"$34,631,984"},{"v":34628777.06197142,"d":"$34,628,777"},{"v":34625254.822427884,"d":"$34,625,255"},{"$f":"M19","v":{"v":34625254.822427884,"d":"$34,625,255"}},{"$f":"M19+M21-M20","v":{"v":34621442.91190603,"d":"$34,621,443"}},{"$f":"O19+O21-O20","v":{"v":34617256.94061169,"d":"$34,617,257"}},{"v":34612800.19743565,"d":"$34,612,800"},{"v":34608103.92919609,"d":"$34,608,104"},{"v":34603231.04069372,"d":"$34,603,231"},{"v":34598106.84638908,"d":"$34,598,107"},{"v":34592627.7153737,"d":"$34,592,628"},{"v":34586880.48358525,"d":"$34,586,880"},{"v":34580909.33004779,"d":"$34,580,909"},{"v":34574706.853641145,"d":"$34,574,707"},{"v":34568403.47773815,"d":"$34,568,403"},{"v":34561873.81943605,"d":"$34,561,874"},{"$f":"Z19","v":{"v":34561873.81943605,"d":"$34,561,874"}},{"$f":"Z19+Z21-Z20","v":{"v":34555037.47056267,"d":"$34,555,037"}},{"$f":"AB19+AB21-AB20","v":{"v":34547943.74768499,"d":"$34,547,944"}},{"v":34540614.43008582,"d":"$34,540,614"},{"v":34533114.87759629,"d":"$34,533,115"},{"v":34525407.46084652,"d":"$34,525,407"},{"v":34517441.36326128,"d":"$34,517,441"},{"v":34509269.22527744,"d":"$34,509,269"},{"v":34501018.51182197,"d":"$34,501,019"},{"v":34492604.97623381,"d":"$34,492,605"},{"v":34484032.2216504,"d":"$34,484,032"},{"v":34475270.12519592,"d":"$34,475,270"},{"v":34466432.513933584,"d":"$34,466,433"},{"$f":"AM19","v":{"v":34466432.513933584,"d":"$34,466,433"}},{"$f":"AM19+AM21-AM20","v":{"v":34457425.58026936,"d":"$34,457,426"}},{"$f":"AO19+AO21-AO20","v":{"v":34448165.666415036,"d":"$34,448,166"}},{"v":34438770.97482351,"d":"$34,438,771"},{"v":34429239.628484674,"d":"$34,429,240"},{"v":34419562.38653444,"d":"$34,419,562"},{"v":34409695.70154082,"d":"$34,409,696"},{"v":34399732.935235776,"d":"$34,399,733"},{"v":34389713.73075228,"d":"$34,389,714"},{"v":34379605.3535281,"d":"$34,379,605"},{"v":34369380.46197259,"d":"$34,369,380"},{"v":34359082.98641778,"d":"$34,359,083"},{"v":34348618.36476453,"d":"$34,348,618"},{"$f":"AZ19","v":{"v":34348618.36476453,"d":"$34,348,618"}},{"$f":"AZ19+AZ21-AZ20","v":{"v":34338000.40230389,"d":"$34,338,000"}},{"$f":"BB19+BB21-BB20","v":{"v":34327188.40542169,"d":"$34,327,188"}},{"v":34316393.52351345,"d":"$34,316,394"},{"v":34305611.34150089,"d":"$34,305,611"},{"v":34294674.3802904,"d":"$34,294,674"},{"v":34283648.30582829,"d":"$34,283,648"},{"v":34272478.60429257,"d":"$34,272,479"},{"v":34261267.10695572,"d":"$34,261,267"},{"v":34249921.57646341,"d":"$34,249,922"},{"v":34238502.38728005,"d":"$34,238,502"},{"v":34226897.146773204,"d":"$34,226,897"},{"v":34215279.573516965,"d":"$34,215,280"},{"$f":"BM19","v":{"v":34215279.573516965,"d":"$34,215,280"}},{"$f":"BM19+BM21-BM20","v":{"v":34203620.68917371,"d":"$34,203,621"}},{"$f":"BO19+BO21-BO20","v":{"v":34191945.2100601,"d":"$34,191,945"}},{"v":34180245.99520927,"d":"$34,180,246"},{"v":34168527.335204534,"d":"$34,168,527"},{"v":34156699.36279212,"d":"$34,156,699"},{"v":34144821.34855917,"d":"$34,144,821"},{"v":34132810.91156727,"d":"$34,132,811"},{"v":34120778.697550245,"d":"$34,120,779"},{"v":34108662.545433186,"d":"$34,108,663"},{"v":34096441.556181945,"d":"$34,096,442"},{"v":34084097.53589879,"d":"$34,084,098"},{"v":34071754.6670802,"d":"$34,071,755"},{"$f":"BZ19","v":{"v":34071754.6670802,"d":"$34,071,755"}},{"$f":"BZ19+BZ21-BZ20","v":{"v":34059350.99024763,"d":"$34,059,351"}},{"$f":"CB19+CB21-CB20","v":{"v":34046932.59869469,"d":"$34,046,933"}},{"v":34034411.83490243,"d":"$34,034,412"},{"v":34021876.08861737,"d":"$34,021,876"},{"v":34009262.52022385,"d":"$34,009,263"},{"v":33996586.37647902,"d":"$33,996,586"},{"v":33983880.04147162,"d":"$33,983,880"},{"v":33971109.02866029,"d":"$33,971,109"},{"v":33958419.233008765,"d":"$33,958,419"},{"v":33945752.530965105,"d":"$33,945,753"},{"v":33933038.22137461,"d":"$33,933,038"},{"v":33920352.12158425,"d":"$33,920,352"},{"$f":"CM19","v":{"v":33920352.12158425,"d":"$33,920,352"}},{"$f":"CM19+CM21-CM20","v":{"v":33907641.826606825,"d":"$33,907,642"}},{"$f":"CO19+CO21-CO20","v":{"v":33894851.033274464,"d":"$33,894,851"}},{"v":33882083.96664889,"d":"$33,882,084"},{"v":33869322.26048396,"d":"$33,869,322"},{"v":33856583.426220246,"d":"$33,856,583"},{"v":33843813.69801026,"d":"$33,843,814"},{"v":33830959.991131224,"d":"$33,830,960"},{"v":33817979.42223045,"d":"$33,817,979"},{"v":33805072.21325487,"d":"$33,805,072"},{"v":33792165.37481887,"d":"$33,792,165"},{"v":33779253.04324862,"d":"$33,779,253"},{"v":33766215.981839254,"d":"$33,766,216"},{"$f":"CZ19","v":{"v":33766215.981839254,"d":"$33,766,216"}},{"$f":"CZ19+CZ21-CZ20","v":{"v":33753192.46544939,"d":"$33,753,192"}},{"$f":"DB19+DB21-DB20","v":{"v":33740222.90134376,"d":"$33,740,223"}},{"v":33727182.73443607,"d":"$33,727,183"},{"v":33714041.82121875,"d":"$33,714,042"},{"v":33700917.901823774,"d":"$33,700,918"},{"v":33687810.975058675,"d":"$33,687,811"},{"v":33674689.763494186,"d":"$33,674,690"},{"v":33661570.94465146,"d":"$33,661,571"},{"v":33648354.87315858,"d":"$33,648,355"},{"v":33635166.84104192,"d":"$33,635,167"},{"v":33621921.782465585,"d":"$33,621,922"},{"v":33608695.134846166,"d":"$33,608,695"},{"$f":"DM19","v":{"v":33608695.134846166,"d":"$33,608,695"}},{"$f":"DM19+DM21-DM20","v":{"v":33595466.69606915,"d":"$33,595,467"}},{"$f":"DO19+DO21-DO20","v":{"v":33582187.624054566,"d":"$33,582,188"}},{"v":33568976.348991334,"d":"$33,568,976"},{"v":33555856.709783174,"d":"$33,555,857"},{"v":33542655.240609802,"d":"$33,542,655"},{"v":33529526.497988533,"d":"$33,529,526"},{"v":33516479.95063048,"d":"$33,516,480"},{"v":33503462.089059126,"d":"$33,503,462"},{"v":33490385.9968685,"d":"$33,490,386"},{"v":33477272.083226074,"d":"$33,477,272"},{"v":33464020.95989919,"d":"$33,464,021"},{"v":33450830.731485654,"d":"$33,450,831"},{"$f":"DZ19","v":{"v":33450830.731485654,"d":"$33,450,831"}},{"$f":"DZ19+DZ21-DZ20","v":{"v":33437685.03671136,"d":"$33,437,685"}},{"$f":"EB19+EB21-EB20","v":{"v":33424609.683972035,"d":"$33,424,610"}},{"v":33411502.392524302,"d":"$33,411,502"},{"v":33398252.41870678,"d":"$33,398,252"},{"v":33384961.086145315,"d":"$33,384,961"},{"v":33371724.66473762,"d":"$33,371,725"},{"v":33358563.544878528,"d":"$33,358,564"},{"v":33345353.65176943,"d":"$33,345,354"},{"v":33332166.842144877,"d":"$33,332,167"},{"v":33318862.803993788,"d":"$33,318,863"},{"v":33305444.263111643,"d":"$33,305,444"},{"v":33292072.51320458,"d":"$33,292,073"},{"$f":"EM19","v":{"v":33292072.51320458,"d":"$33,292,073"}}]
[{"$f":"Labels!B11","v":"Capital Depreciation"},{"$f":"B22/Inputs!B19/12","v":{"v":206222.0144162289,"d":"$206,222"}},{"$f":"B19/Inputs!B19/12","v":{"v":206222.0144162289,"d":"$206,222"}},{"$f":"C19/Inputs!B19/12","v":{"v":206222.0144162289,"d":"$206,222"}},{"$f":"D19/Inputs!B19/12","v":{"v":206219.5419633231,"d":"$206,220"}},{"$f":"E19/Inputs!B19/12","v":{"v":206214.58115216755,"d":"$206,215"}},{"$f":"F19/Inputs!B19/12","v":{"v":206207.1876400476,"d":"$206,207"}},{"$f":"G19/Inputs!B19/12","v":{"v":206197.89740687443,"d":"$206,198"}},{"$f":"H19/Inputs!B19/12","v":{"v":206186.98221464115,"d":"$206,187"}},{"$f":"I19/Inputs!B19/12","v":{"v":206174.68435333614,"d":"$206,175"}},{"$f":"J19/Inputs!B19/12","v":{"v":206159.91305393714,"d":"$206,160"}},{"$f":"K19/Inputs!B19/12","v":{"v":206142.76091719116,"d":"$206,143"}},{"$f":"L19/Inputs!B19/12","v":{"v":206123.67298792512,"d":"$206,124"}},{"$f":"SUM(B20:M20)","v":{"v":2474293.26493813,"d":"$2,474,293"}},{"$f":"M19/Inputs!B19/12","v":{"v":206102.70727635644,"d":"$206,103"}},{"$f":"O19/Inputs!B19/12","v":{"v":206080.01733277398,"d":"$206,080"}},{"$f":"P19/Inputs!B19/12","v":{"v":206055.10083697434,"d":"$206,055"}},{"$f":"Q19/Inputs!B19/12","v":{"v":206028.5726037836,"d":"$206,029"}},{"$f":"R19/Inputs!B19/12","v":{"v":206000.61862616718,"d":"$206,001"}},{"$f":"S19/Inputs!B19/12","v":{"v":205971.61333746265,"d":"$205,972"}},{"$f":"T19/Inputs!B19/12","v":{"v":205941.11218088737,"d":"$205,941"}},{"$f":"U19/Inputs!B19/12","v":{"v":205908.49830579583,"d":"$205,908"}},{"$f":"V19/Inputs!B19/12","v":{"v":205874.2885927694,"d":"$205,874"}},{"$f":"W19/Inputs!B19/12","v":{"v":205838.74601218922,"d":"$205,839"}},{"$f":"X19/Inputs!B19/12","v":{"v":205801.82650976873,"d":"$205,802"}},{"$f":"Y19/Inputs!B19/12","v":{"v":205764.30641510803,"d":"$205,764"}},{"$f":"SUM(O20:Z20)","v":{"v":2471367.4080300364,"d":"$2,471,367"}},{"$f":"Z19/Inputs!B19/12","v":{"v":205725.43940140505,"d":"$205,725"}},{"$f":"AB19/Inputs!B19/12","v":{"v":205684.7468485873,"d":"$205,685"}},{"$f":"AC19/Inputs!B19/12","v":{"v":205642.52230764876,"d":"$205,643"}},{"$f":"AD19/Inputs!B19/12","v":{"v":205598.8954171775,"d":"$205,599"}},{"$f":"AE19/Inputs!B19/12","v":{"v":205554.25522378742,"d":"$205,554"}},{"$f":"AF19/Inputs!B19/12","v":{"v":205508.37774313404,"d":"$205,508"}},{"$f":"AG19/Inputs!B19/12","v":{"v":205460.9604956029,"d":"$205,461"}},{"$f":"AH19/Inputs!B19/12","v":{"v":205412.3168171276,"d":"$205,412"}},{"$f":"AI19/Inputs!B19/12","v":{"v":205363.2054275117,"d":"$205,363"}},{"$f":"AJ19/Inputs!B19/12","v":{"v":205313.12485853457,"d":"$205,313"}},{"$f":"AK19/Inputs!B19/12","v":{"v":205262.09655744283,"d":"$205,262"}},{"$f":"AL19/Inputs!B19/12","v":{"v":205209.94122140427,"d":"$205,210"}},{"$f":"SUM(AB20:AM20)","v":{"v":2465735.8823193638,"d":"$2,465,736"}},{"$f":"AM19/Inputs!B19/12","v":{"v":205157.33639246182,"d":"$205,157"}},{"$f":"AO19/Inputs!B19/12","v":{"v":205103.7236920795,"d":"$205,104"}},{"$f":"AP19/Inputs!B19/12","v":{"v":205048.60515723235,"d":"$205,049"}},{"$f":"AQ19/Inputs!B19/12","v":{"v":204992.68437394945,"d":"$204,993"}},{"$f":"AR19/Inputs!B19/12","v":{"v":204935.95016955162,"d":"$204,936"}},{"$f":"AS19/Inputs!B19/12","v":{"v":204878.34753889547,"d":"$204,878"}},{"$f":"AT19/Inputs!B19/12","v":{"v":204819.6172710763,"d":"$204,820"}},{"$f":"AU19/Inputs!B19/12","v":{"v":204760.31509068914,"d":"$204,760"}},{"$f":"AV19/Inputs!B19/12","v":{"v":204700.67696876358,"d":"$204,701"}},{"$f":"AW19/Inputs!B19/12","v":{"v":204640.50805671487,"d":"$204,641"}},{"$f":"AX19/Inputs!B19/12","v":{"v":204579.6456069797,"d":"$204,580"}},{"$f":"AY19/Inputs!B19/12","v":{"v":204518.3511096296,"d":"$204,518"}},{"$f":"SUM(AO20:AZ20)","v":{"v":2458135.761428023,"d":"$2,458,136"}},{"$f":"AZ19/Inputs!B19/12","v":{"v":204456.06169502693,"d":"$204,456"}},{"$f":"BB19/Inputs!B19/12","v":{"v":204392.85953752315,"d":"$204,393"}},{"$f":"BC19/Inputs!B19/12","v":{"v":204328.50241322434,"d":"$204,329"}},{"$f":"BD19/Inputs!B19/12","v":{"v":204264.24716377052,"d":"$204,264"}},{"$f":"BE19/Inputs!B19/12","v":{"v":204200.06750893386,"d":"$204,200"}},{"$f":"BF19/Inputs!B19/12","v":{"v":204134.9665493476,"d":"$204,135"}},{"$f":"BG19/Inputs!B19/12","v":{"v":204069.3351537398,"d":"$204,069"}},{"$f":"BH19/Inputs!B19/12","v":{"v":204002.84883507484,"d":"$204,003"}},{"$f":"BI19/Inputs!B19/12","v":{"v":203936.1137318793,"d":"$203,936"}},{"$f":"BJ19/Inputs!B19/12","v":{"v":203868.5808122822,"d":"$203,869"}},{"$f":"BK19/Inputs!B19/12","v":{"v":203800.60944809552,"d":"$203,801"}},{"$f":"BL19/Inputs!B19/12","v":{"v":203731.53063555478,"d":"$203,732"}},{"$f":"SUM(BB20:BM20)","v":{"v":2449185.723484453,"d":"$2,449,186"}},{"$f":"BM19/Inputs!B19/12","v":{"v":203662.37841379145,"d":"$203,662"}},{"$f":"BO19/Inputs!B19/12","v":{"v":203592.98029270067,"d":"$203,593"}},{"$f":"BP19/Inputs!B19/12","v":{"v":203523.48339321488,"d":"$203,523"}},{"$f":"BQ19/Inputs!B19/12","v":{"v":203453.84520957898,"d":"$203,454"}},{"$f":"BR19/Inputs!B19/12","v":{"v":203384.09128097937,"d":"$203,384"}},{"$f":"BS19/Inputs!B19/12","v":{"v":203313.68668328642,"d":"$203,314"}},{"$f":"BT19/Inputs!B19/12","v":{"v":203242.98421761414,"d":"$203,243"}},{"$f":"BU19/Inputs!B19/12","v":{"v":203171.49352123376,"d":"$203,171"}},{"$f":"BV19/Inputs!B19/12","v":{"v":203099.87319970384,"d":"$203,100"}},{"$f":"BW19/Inputs!B19/12","v":{"v":203027.75324662612,"d":"$203,028"}},{"$f":"BX19/Inputs!B19/12","v":{"v":202955.00926298776,"d":"$202,955"}},{"$f":"BY19/Inputs!B19/12","v":{"v":202881.5329517785,"d":"$202,882"}},{"$f":"SUM(BO20:BZ20)","v":{"v":2439309.1116734957,"d":"$2,439,309"}},{"$f":"BZ19/Inputs!B19/12","v":{"v":202808.063494525,"d":"$202,808"}},{"$f":"CB19/Inputs!B19/12","v":{"v":202734.23208480733,"d":"$202,734"}},{"$f":"CC19/Inputs!B19/12","v":{"v":202660.31308746838,"d":"$202,660"}},{"$f":"CD19/Inputs!B19/12","v":{"v":202585.78473156205,"d":"$202,586"}},{"$f":"CE19/Inputs!B19/12","v":{"v":202511.167194151,"d":"$202,511"}},{"$f":"CF19/Inputs!B19/12","v":{"v":202436.08642990387,"d":"$202,436"}},{"$f":"CG19/Inputs!B19/12","v":{"v":202360.6331933275,"d":"$202,361"}},{"$f":"CH19/Inputs!B19/12","v":{"v":202285.00024685488,"d":"$202,285"}},{"$f":"CI19/Inputs!B19/12","v":{"v":202208.98231345412,"d":"$202,209"}},{"$f":"CJ19/Inputs!B19/12","v":{"v":202133.44781552837,"d":"$202,133"}},{"$f":"CK19/Inputs!B19/12","v":{"v":202058.05077955418,"d":"$202,058"}},{"$f":"CL19/Inputs!B19/12","v":{"v":201982.37036532504,"d":"$201,982"}},{"$f":"SUM(CB20:CM20)","v":{"v":2428764.1317364615,"d":"$2,428,764"}},{"$f":"CM19/Inputs!B19/12","v":{"v":201906.85786657291,"d":"$201,907"}},{"$f":"CO19/Inputs!B19/12","v":{"v":201831.20134885015,"d":"$201,831"}},{"$f":"CP19/Inputs!B19/12","v":{"v":201755.06567425278,"d":"$201,755"}},{"$f":"CQ19/Inputs!B19/12","v":{"v":201679.07123005294,"d":"$201,679"}},{"$f":"CR19/Inputs!B19/12","v":{"v":201603.1086933569,"d":"$201,603"}},{"$f":"CS19/Inputs!B19/12","v":{"v":201527.28229893002,"d":"$201,527"}},{"$f":"CT19/Inputs!B19/12","v":{"v":201451.27201196583,"d":"$201,451"}},{"$f":"CU19/Inputs!B19/12","v":{"v":201374.7618519716,"d":"$201,375"}},{"$f":"CV19/Inputs!B19/12","v":{"v":201297.49656089555,"d":"$201,297"}},{"$f":"CW19/Inputs!B19/12","v":{"v":201220.6679360409,"d":"$201,221"}},{"$f":"CX19/Inputs!B19/12","v":{"v":201143.841516779,"d":"$201,144"}},{"$f":"CY19/Inputs!B19/12","v":{"v":201066.98240028942,"d":"$201,067"}},{"$f":"SUM(CO20:CZ20)","v":{"v":2417857.6093899575,"d":"$2,417,858"}},{"$f":"CZ19/Inputs!B19/12","v":{"v":200989.3808442813,"d":"$200,989"}},{"$f":"DB19/Inputs!B19/12","v":{"v":200911.85991338923,"d":"$200,912"}},{"$f":"DC19/Inputs!B19/12","v":{"v":200834.6601270462,"d":"$200,835"}},{"$f":"DD19/Inputs!B19/12","v":{"v":200757.040085929,"d":"$200,757"}},{"$f":"DE19/Inputs!B19/12","v":{"v":200678.82036439734,"d":"$200,679"}},{"$f":"DF19/Inputs!B19/12","v":{"v":200600.7017965701,"d":"$200,601"}},{"$f":"DG19/Inputs!B19/12","v":{"v":200522.68437534923,"d":"$200,523"}},{"$f":"DH19/Inputs!B19/12","v":{"v":200444.58192556063,"d":"$200,445"}},{"$f":"DI19/Inputs!B19/12","v":{"v":200366.49371816346,"d":"$200,366"}},{"$f":"DJ19/Inputs!B19/12","v":{"v":200287.8266259439,"d":"$200,288"}},{"$f":"DK19/Inputs!B19/12","v":{"v":200209.32643477336,"d":"$200,209"}},{"$f":"DL19/Inputs!B19/12","v":{"v":200130.48680039038,"d":"$200,130"}},{"$f":"SUM(DB20:DM20)","v":{"v":2406733.8630117937,"d":"$2,406,734"}},{"$f":"DM19/Inputs!B19/12","v":{"v":200051.75675503668,"d":"$200,052"}},{"$f":"DO19/Inputs!B19/12","v":{"v":199973.01604803067,"d":"$199,973"}},{"$f":"DP19/Inputs!B19/12","v":{"v":199893.97395270574,"d":"$199,894"}},{"$f":"DQ19/Inputs!B19/12","v":{"v":199815.3354106627,"d":"$199,815"}},{"$f":"DR19/Inputs!B19/12","v":{"v":199737.24232013794,"d":"$199,737"}},{"$f":"DS19/Inputs!B19/12","v":{"v":199658.66214648692,"d":"$199,659"}},{"$f":"DT19/Inputs!B19/12","v":{"v":199580.51486897937,"d":"$199,581"}},{"$f":"DU19/Inputs!B19/12","v":{"v":199502.85684899092,"d":"$199,503"}},{"$f":"DV19/Inputs!B19/12","v":{"v":199425.3695777329,"d":"$199,425"}},{"$f":"DW19/Inputs!B19/12","v":{"v":199347.53569564584,"d":"$199,348"}},{"$f":"DX19/Inputs!B19/12","v":{"v":199269.47668586948,"d":"$199,269"}},{"$f":"DY19/Inputs!B19/12","v":{"v":199190.6009517809,"d":"$199,191"}},{"$f":"SUM(DO20:DZ20)","v":{"v":2395446.34126206,"d":"$2,395,446"}},{"$f":"DZ19/Inputs!B19/12","v":{"v":199112.0876874146,"d":"$199,112"}},{"$f":"EB19/Inputs!B19/12","v":{"v":199033.8395042343,"d":"$199,034"}},{"$f":"EC19/Inputs!B19/12","v":{"v":198956.01002364306,"d":"$198,956"}},{"$f":"ED19/Inputs!B19/12","v":{"v":198877.99043169225,"d":"$198,878"}},{"$f":"EE19/Inputs!B19/12","v":{"v":198799.1215399213,"d":"$198,799"}},{"$f":"EF19/Inputs!B19/12","v":{"v":198720.0064651507,"d":"$198,720"}},{"$f":"EG19/Inputs!B19/12","v":{"v":198641.2182424858,"d":"$198,641"}},{"$f":"EH19/Inputs!B19/12","v":{"v":198562.87824332458,"d":"$198,563"}},{"$f":"EI19/Inputs!B19/12","v":{"v":198484.247927199,"d":"$198,484"}},{"$f":"EJ19/Inputs!B19/12","v":{"v":198405.75501276713,"d":"$198,406"}},{"$f":"EK19/Inputs!B19/12","v":{"v":198326.56430948686,"d":"$198,327"}},{"$f":"EL19/Inputs!B19/12","v":{"v":198246.6920423312,"d":"$198,247"}},{"$f":"SUM(EB20:EM20)","v":{"v":2384166.4114296506,"d":"$2,384,166"}}]
[{"$f":"Labels!B19","v":"Capital Investment"},{"$f":"B20+(B22-B19)/Inputs!B22/12","v":{"v":206222.0144162289,"d":"$206,222"}},{"$f":"C20+(C22-C19)/Inputs!B22/12","v":{"v":205806.64232805258,"d":"$205,807"}},{"$f":"D20+(D22-D19)/Inputs!B22/12","v":{"v":205388.5981420975,"d":"$205,389"}},{"$f":"E20+(E22-E19)/Inputs!B22/12","v":{"v":204977.43192716522,"d":"$204,977"}},{"$f":"F20+(F22-F19)/Inputs!B22/12","v":{"v":204653.82197907378,"d":"$204,654"}},{"$f":"G20+(G22-G19)/Inputs!B22/12","v":{"v":204373.43534486045,"d":"$204,373"}},{"$f":"H20+(H22-H19)/Inputs!B22/12","v":{"v":204131.8567076433,"d":"$204,132"}},{"$f":"I20+(I22-I19)/Inputs!B22/12","v":{"v":203705.4039156055,"d":"$203,705"}},{"$f":"J20+(J22-J19)/Inputs!B22/12","v":{"v":203293.1253800159,"d":"$203,293"}},{"$f":"K20+(K22-K19)/Inputs!B22/12","v":{"v":202953.14093724047,"d":"$202,953"}},{"$f":"L20+(L22-L19)/Inputs!B22/12","v":{"v":202620.52137365946,"d":"$202,621"}},{"$f":"M20+(M22-M19)/Inputs!B22/12","v":{"v":202311.76246606707,"d":"$202,312"}},{"$f":"SUM(B21:M21)","v":{"v":2450437.75491771,"d":"$2,450,438"}},{"$f":"O20+(O22-O19)/Inputs!B22/12","v":{"v":201916.7359820264,"d":"$201,917"}},{"$f":"P20+(P22-P19)/Inputs!B22/12","v":{"v":201623.27415673612,"d":"$201,623"}},{"$f":"Q20+(Q22-Q19)/Inputs!B22/12","v":{"v":201358.83259742198,"d":"$201,359"}},{"$f":"R20+(R22-R19)/Inputs!B22/12","v":{"v":201155.68410141615,"d":"$201,156"}},{"$f":"S20+(S22-S19)/Inputs!B22/12","v":{"v":200876.42432152358,"d":"$200,876"}},{"$f":"T20+(T22-T19)/Inputs!B22/12","v":{"v":200492.48232209153,"d":"$200,492"}},{"$f":"U20+(U22-U19)/Inputs!B22/12","v":{"v":200193.8803924423,"d":"$200,194"}},{"$f":"V20+(V22-V19)/Inputs!B22/12","v":{"v":199937.34476834114,"d":"$199,937"}},{"$f":"W20+(W22-W19)/Inputs!B22/12","v":{"v":199671.81218612124,"d":"$199,672"}},{"$f":"X20+(X22-X19)/Inputs!B22/12","v":{"v":199535.3701091954,"d":"$199,535"}},{"$f":"Y20+(Y22-Y19)/Inputs!B22/12","v":{"v":199272.16820766544,"d":"$199,272"}},{"$f":"Z20+(Z22-Z19)/Inputs!B22/12","v":{"v":198927.95754172685,"d":"$198,928"}},{"$f":"SUM(O21:Z21)","v":{"v":2404961.9666867084,"d":"$2,404,962"}},{"$f":"AB20+(AB22-AB19)/Inputs!B22/12","v":{"v":198631.71652372938,"d":"$198,632"}},{"$f":"AC20+(AC22-AC19)/Inputs!B22/12","v":{"v":198355.42924942172,"d":"$198,355"}},{"$f":"AD20+(AD22-AD19)/Inputs!B22/12","v":{"v":198142.9698181135,"d":"$198,143"}},{"$f":"AE20+(AE22-AE19)/Inputs!B22/12","v":{"v":197891.4786674058,"d":"$197,891"}},{"$f":"AF20+(AF22-AF19)/Inputs!B22/12","v":{"v":197588.15763855015,"d":"$197,588"}},{"$f":"AG20+(AG22-AG19)/Inputs!B22/12","v":{"v":197336.2397592916,"d":"$197,336"}},{"$f":"AH20+(AH22-AH19)/Inputs!B22/12","v":{"v":197210.2470401351,"d":"$197,210"}},{"$f":"AI20+(AI22-AI19)/Inputs!B22/12","v":{"v":196998.78122896538,"d":"$196,999"}},{"$f":"AJ20+(AJ22-AJ19)/Inputs!B22/12","v":{"v":196790.4508441016,"d":"$196,790"}},{"$f":"AK20+(AK22-AK19)/Inputs!B22/12","v":{"v":196551.02840405412,"d":"$196,551"}},{"$f":"AL20+(AL22-AL19)/Inputs!B22/12","v":{"v":196424.48529510977,"d":"$196,424"}},{"$f":"AM20+(AM22-AM19)/Inputs!B22/12","v":{"v":196203.00755717445,"d":"$196,203"}},{"$f":"SUM(AB21:AM21)","v":{"v":2368123.992026053,"d":"$2,368,124"}},{"$f":"AO20+(AO22-AO19)/Inputs!B22/12","v":{"v":195897.4225381414,"d":"$195,897"}},{"$f":"AP20+(AP22-AP19)/Inputs!B22/12","v":{"v":195709.03210056172,"d":"$195,709"}},{"$f":"AQ20+(AQ22-AQ19)/Inputs!B22/12","v":{"v":195517.25881839835,"d":"$195,517"}},{"$f":"AR20+(AR22-AR19)/Inputs!B22/12","v":{"v":195315.4424237194,"d":"$195,315"}},{"$f":"AS20+(AS22-AS19)/Inputs!B22/12","v":{"v":195069.26517593418,"d":"$195,069"}},{"$f":"AT20+(AT22-AT19)/Inputs!B22/12","v":{"v":194915.58123385138,"d":"$194,916"}},{"$f":"AU20+(AU22-AU19)/Inputs!B22/12","v":{"v":194800.4127875782,"d":"$194,800"}},{"$f":"AV20+(AV22-AV19)/Inputs!B22/12","v":{"v":194651.93786650145,"d":"$194,652"}},{"$f":"AW20+(AW22-AW19)/Inputs!B22/12","v":{"v":194475.78541324774,"d":"$194,476"}},{"$f":"AX20+(AX22-AX19)/Inputs!B22/12","v":{"v":194343.03250190796,"d":"$194,343"}},{"$f":"AY20+(AY22-AY19)/Inputs!B22/12","v":{"v":194115.02395372483,"d":"$194,115"}},{"$f":"AZ20+(AZ22-AZ19)/Inputs!B22/12","v":{"v":193900.3886489946,"d":"$193,900"}},{"$f":"SUM(AO21:AZ21)","v":{"v":2338710.5834625615,"d":"$2,338,711"}},{"$f":"BB20+(BB22-BB19)/Inputs!B22/12","v":{"v":193644.06481282317,"d":"$193,644"}},{"$f":"BC20+(BC22-BC19)/Inputs!B22/12","v":{"v":193597.97762928024,"d":"$193,598"}},{"$f":"BD20+(BD22-BD19)/Inputs!B22/12","v":{"v":193546.32040066263,"d":"$193,546"}},{"$f":"BE20+(BE22-BE19)/Inputs!B22/12","v":{"v":193327.28595327833,"d":"$193,327"}},{"$f":"BF20+(BF22-BF19)/Inputs!B22/12","v":{"v":193173.99304682846,"d":"$193,174"}},{"$f":"BG20+(BG22-BG19)/Inputs!B22/12","v":{"v":192965.26501363073,"d":"$192,965"}},{"$f":"BH20+(BH22-BH19)/Inputs!B22/12","v":{"v":192857.83781688713,"d":"$192,858"}},{"$f":"BI20+(BI22-BI19)/Inputs!B22/12","v":{"v":192657.3183427635,"d":"$192,657"}},{"$f":"BJ20+(BJ22-BJ19)/Inputs!B22/12","v":{"v":192516.92454851355,"d":"$192,517"}},{"$f":"BK20+(BK22-BK19)/Inputs!B22/12","v":{"v":192263.34030544298,"d":"$192,263"}},{"$f":"BL20+(BL22-BL19)/Inputs!B22/12","v":{"v":192183.03619185748,"d":"$192,183"}},{"$f":"BM20+(BM22-BM19)/Inputs!B22/12","v":{"v":192072.6462923096,"d":"$192,073"}},{"$f":"SUM(BB21:BM21)","v":{"v":2314806.0103542777,"d":"$2,314,806"}},{"$f":"BO20+(BO22-BO19)/Inputs!B22/12","v":{"v":191986.89930017147,"d":"$191,987"}},{"$f":"BP20+(BP22-BP19)/Inputs!B22/12","v":{"v":191893.76544187282,"d":"$191,894"}},{"$f":"BQ20+(BQ22-BQ19)/Inputs!B22/12","v":{"v":191804.82338848113,"d":"$191,805"}},{"$f":"BR20+(BR22-BR19)/Inputs!B22/12","v":{"v":191625.87279715895,"d":"$191,626"}},{"$f":"BS20+(BS22-BS19)/Inputs!B22/12","v":{"v":191506.07704803176,"d":"$191,506"}},{"$f":"BT20+(BT22-BT19)/Inputs!B22/12","v":{"v":191303.2496913889,"d":"$191,303"}},{"$f":"BU20+(BU22-BU19)/Inputs!B22/12","v":{"v":191210.7702005905,"d":"$191,211"}},{"$f":"BV20+(BV22-BV19)/Inputs!B22/12","v":{"v":191055.3414041778,"d":"$191,055"}},{"$f":"BW20+(BW22-BW19)/Inputs!B22/12","v":{"v":190878.88394845923,"d":"$190,879"}},{"$f":"BX20+(BX22-BX19)/Inputs!B22/12","v":{"v":190683.73296347284,"d":"$190,684"}},{"$f":"BY20+(BY22-BY19)/Inputs!B22/12","v":{"v":190612.14044440046,"d":"$190,612"}},{"$f":"BZ20+(BZ22-BZ19)/Inputs!B22/12","v":{"v":190477.85611920521,"d":"$190,478"}},{"$f":"SUM(BO21:BZ21)","v":{"v":2295039.412747411,"d":"$2,295,039"}},{"$f":"CB20+(CB22-CB19)/Inputs!B22/12","v":{"v":190389.67194158418,"d":"$190,390"}},{"$f":"CC20+(CC22-CC19)/Inputs!B22/12","v":{"v":190213.46829255082,"d":"$190,213"}},{"$f":"CD20+(CD22-CD19)/Inputs!B22/12","v":{"v":190124.566802409,"d":"$190,125"}},{"$f":"CE20+(CE22-CE19)/Inputs!B22/12","v":{"v":189972.21633803545,"d":"$189,972"}},{"$f":"CF20+(CF22-CF19)/Inputs!B22/12","v":{"v":189835.02344932707,"d":"$189,835"}},{"$f":"CG20+(CG22-CG19)/Inputs!B22/12","v":{"v":189729.75142249855,"d":"$189,730"}},{"$f":"CH20+(CH22-CH19)/Inputs!B22/12","v":{"v":189589.62038199962,"d":"$189,590"}},{"$f":"CI20+(CI22-CI19)/Inputs!B22/12","v":{"v":189595.20459532735,"d":"$189,595"}},{"$f":"CJ20+(CJ22-CJ19)/Inputs!B22/12","v":{"v":189542.28026979775,"d":"$189,542"}},{"$f":"CK20+(CK22-CK19)/Inputs!B22/12","v":{"v":189419.13822503493,"d":"$189,419"}},{"$f":"CL20+(CL22-CL19)/Inputs!B22/12","v":{"v":189371.95098919445,"d":"$189,372"}},{"$f":"CM20+(CM22-CM19)/Inputs!B22/12","v":{"v":189272.07538789604,"d":"$189,272"}},{"$f":"SUM(CB21:CM21)","v":{"v":2277054.9680956546,"d":"$2,277,055"}},{"$f":"CO20+(CO22-CO19)/Inputs!B22/12","v":{"v":189116.06453420923,"d":"$189,116"}},{"$f":"CP20+(CP22-CP19)/Inputs!B22/12","v":{"v":189064.13472327948,"d":"$189,064"}},{"$f":"CQ20+(CQ22-CQ19)/Inputs!B22/12","v":{"v":188993.35950931997,"d":"$188,993"}},{"$f":"CR20+(CR22-CR19)/Inputs!B22/12","v":{"v":188940.2369663445,"d":"$188,940"}},{"$f":"CS20+(CS22-CS19)/Inputs!B22/12","v":{"v":188833.38048336908,"d":"$188,833"}},{"$f":"CT20+(CT22-CT19)/Inputs!B22/12","v":{"v":188673.57541989526,"d":"$188,674"}},{"$f":"CU20+(CU22-CU19)/Inputs!B22/12","v":{"v":188470.70311119326,"d":"$188,471"}},{"$f":"CV20+(CV22-CV19)/Inputs!B22/12","v":{"v":188467.55287639386,"d":"$188,468"}},{"$f":"CW20+(CW22-CW19)/Inputs!B22/12","v":{"v":188390.65812489623,"d":"$188,391"}},{"$f":"CX20+(CX22-CX19)/Inputs!B22/12","v":{"v":188308.3363657936,"d":"$188,308"}},{"$f":"CY20+(CY22-CY19)/Inputs!B22/12","v":{"v":188106.7801074107,"d":"$188,107"}},{"$f":"CZ20+(CZ22-CZ19)/Inputs!B22/12","v":{"v":188043.46601043217,"d":"$188,043"}},{"$f":"SUM(CO21:CZ21)","v":{"v":2263408.248232537,"d":"$2,263,408"}},{"$f":"DB20+(DB22-DB19)/Inputs!B22/12","v":{"v":188019.81673864962,"d":"$188,020"}},{"$f":"DC20+(DC22-DC19)/Inputs!B22/12","v":{"v":187871.69300569358,"d":"$187,872"}},{"$f":"DD20+(DD22-DD19)/Inputs!B22/12","v":{"v":187693.74690972402,"d":"$187,694"}},{"$f":"DE20+(DE22-DE19)/Inputs!B22/12","v":{"v":187633.12069095296,"d":"$187,633"}},{"$f":"DF20+(DF22-DF19)/Inputs!B22/12","v":{"v":187571.893599305,"d":"$187,572"}},{"$f":"DG20+(DG22-DG19)/Inputs!B22/12","v":{"v":187479.4902320784,"d":"$187,479"}},{"$f":"DH20+(DH22-DH19)/Inputs!B22/12","v":{"v":187403.8655326228,"d":"$187,404"}},{"$f":"DI20+(DI22-DI19)/Inputs!B22/12","v":{"v":187228.51043268252,"d":"$187,229"}},{"$f":"DJ20+(DJ22-DJ19)/Inputs!B22/12","v":{"v":187178.46160150188,"d":"$187,178"}},{"$f":"DK20+(DK22-DK19)/Inputs!B22/12","v":{"v":187042.76804960592,"d":"$187,043"}},{"$f":"DL20+(DL22-DL19)/Inputs!B22/12","v":{"v":186982.67881535724,"d":"$186,983"}},{"$f":"DM20+(DM22-DM19)/Inputs!B22/12","v":{"v":186902.04802337565,"d":"$186,902"}},{"$f":"SUM(DB21:DM21)","v":{"v":2249008.0936315493,"d":"$2,249,008"}},{"$f":"DO20+(DO22-DO19)/Inputs!B22/12","v":{"v":186772.68474045309,"d":"$186,773"}},{"$f":"DP20+(DP22-DP19)/Inputs!B22/12","v":{"v":186761.740984794,"d":"$186,762"}},{"$f":"DQ20+(DQ22-DQ19)/Inputs!B22/12","v":{"v":186774.33474454458,"d":"$186,774"}},{"$f":"DR20+(DR22-DR19)/Inputs!B22/12","v":{"v":186613.86623729358,"d":"$186,614"}},{"$f":"DS20+(DS22-DS19)/Inputs!B22/12","v":{"v":186608.49969887114,"d":"$186,608"}},{"$f":"DT20+(DT22-DT19)/Inputs!B22/12","v":{"v":186612.11478842978,"d":"$186,612"}},{"$f":"DU20+(DU22-DU19)/Inputs!B22/12","v":{"v":186562.65329762912,"d":"$186,563"}},{"$f":"DV20+(DV22-DV19)/Inputs!B22/12","v":{"v":186426.7646583667,"d":"$186,427"}},{"$f":"DW20+(DW22-DW19)/Inputs!B22/12","v":{"v":186311.4559353075,"d":"$186,311"}},{"$f":"DX20+(DX22-DX19)/Inputs!B22/12","v":{"v":186096.41236876033,"d":"$186,096"}},{"$f":"DY20+(DY22-DY19)/Inputs!B22/12","v":{"v":186079.24827233015,"d":"$186,079"}},{"$f":"DZ20+(DZ22-DZ19)/Inputs!B22/12","v":{"v":186044.9061774854,"d":"$186,045"}},{"$f":"SUM(DO21:DZ21)","v":{"v":2237664.6819042657,"d":"$2,237,665"}},{"$f":"EB20+(EB22-EB19)/Inputs!B22/12","v":{"v":186036.73494809034,"d":"$186,037"}},{"$f":"EC20+(EC22-EC19)/Inputs!B22/12","v":{"v":185926.54805650128,"d":"$185,927"}},{"$f":"ED20+(ED22-ED19)/Inputs!B22/12","v":{"v":185706.03620611888,"d":"$185,706"}},{"$f":"EE20+(EE22-EE19)/Inputs!B22/12","v":{"v":185586.65787022913,"d":"$185,587"}},{"$f":"EF20+(EF22-EF19)/Inputs!B22/12","v":{"v":185562.70013222544,"d":"$185,563"}},{"$f":"EG20+(EG22-EG19)/Inputs!B22/12","v":{"v":185558.88660606032,"d":"$185,559"}},{"$f":"EH20+(EH22-EH19)/Inputs!B22/12","v":{"v":185431.32513338805,"d":"$185,431"}},{"$f":"EI20+(EI22-EI19)/Inputs!B22/12","v":{"v":185376.06861877206,"d":"$185,376"}},{"$f":"EJ20+(EJ22-EJ19)/Inputs!B22/12","v":{"v":185180.2097761103,"d":"$185,180"}},{"$f":"EK20+(EK22-EK19)/Inputs!B22/12","v":{"v":184987.2141306232,"d":"$184,987"}},{"$f":"EL20+(EL22-EL19)/Inputs!B22/12","v":{"v":184954.81440242074,"d":"$184,955"}},{"$f":"EM20+(EM22-EM19)/Inputs!B22/12","v":{"v":184789.92452539224,"d":"$184,790"}},{"$f":"SUM(EB21:EM21)","v":{"v":2225097.120405932,"d":"$2,225,097"}}]
[{"$f":"Labels!B14","v":"Desired Capital"},{"$f":"Inputs!B20*B10/(1/Inputs!B19/12+'(Other Computations)'!B144)","v":{"v":34645298.42192645,"d":"$34,645,298"}},{"$f":"Inputs!B20*C10/(1/Inputs!B19/12+'(Other Computations)'!B144)","v":{"v":34630345.02675211,"d":"$34,630,345"}},{"$f":"Inputs!B20*D10/(1/Inputs!B19/12+'(Other Computations)'!B144)","v":{"v":34614880.06396955,"d":"$34,614,880"}},{"$f":"Inputs!B20*E10/(1/Inputs!B19/12+'(Other Computations)'!B144)","v":{"v":34599333.67226247,"d":"$34,599,334"}},{"$f":"Inputs!B20*F10/(1/Inputs!B19/12+'(Other Computations)'!B144)","v":{"v":34586620.19329662,"d":"$34,586,620"}},{"$f":"Inputs!B20*G10/(1/Inputs!B19/12+'(Other Computations)'!B144)","v":{"v":34575231.68172816,"d":"$34,575,232"}},{"$f":"Inputs!B20*H10/(1/Inputs!B19/12+'(Other Computations)'!B144)","v":{"v":34565035.54688739,"d":"$34,565,036"}},{"$f":"Inputs!B20*I10/(1/Inputs!B19/12+'(Other Computations)'!B144)","v":{"v":34548010.15259519,"d":"$34,548,010"}},{"$f":"Inputs!B20*J10/(1/Inputs!B19/12+'(Other Computations)'!B144)","v":{"v":34531129.27002191,"d":"$34,531,129"}},{"$f":"Inputs!B20*K10/(1/Inputs!B19/12+'(Other Computations)'!B144)","v":{"v":34516540.03788704,"d":"$34,516,540"}},{"$f":"Inputs!B20*L10/(1/Inputs!B19/12+'(Other Computations)'!B144)","v":{"v":34501976.43840428,"d":"$34,501,976"}},{"$f":"Inputs!B20*M10/(1/Inputs!B19/12+'(Other Computations)'!B144)","v":{"v":34488026.04364099,"d":"$34,488,026"}},{"$f":"M22","v":{"v":34488026.04364099,"d":"$34,488,026"}},{"$f":"Inputs!B20*O10/(1/Inputs!B19/12+'(Other Computations)'!B144)","v":{"v":34470747.945310146,"d":"$34,470,748"}},{"$f":"Inputs!B20*P10/(1/Inputs!B19/12+'(Other Computations)'!B144)","v":{"v":34456814.18627433,"d":"$34,456,814"}},{"$f":"Inputs!B20*Q10/(1/Inputs!B19/12+'(Other Computations)'!B144)","v":{"v":34443734.54081176,"d":"$34,443,735"}},{"$f":"Inputs!B20*R10/(1/Inputs!B19/12+'(Other Computations)'!B144)","v":{"v":34432679.94311086,"d":"$34,432,680"}},{"$f":"Inputs!B20*S10/(1/Inputs!B19/12+'(Other Computations)'!B144)","v":{"v":34418760.04572655,"d":"$34,418,760"}},{"$f":"Inputs!B20*T10/(1/Inputs!B19/12+'(Other Computations)'!B144)","v":{"v":34400858.12983572,"d":"$34,400,858"}},{"$f":"Inputs!B20*U10/(1/Inputs!B19/12+'(Other Computations)'!B144)","v":{"v":34385727.37098968,"d":"$34,385,727"}},{"$f":"Inputs!B20*V10/(1/Inputs!B19/12+'(Other Computations)'!B144)","v":{"v":34371918.956236884,"d":"$34,371,919"}},{"$f":"Inputs!B20*W10/(1/Inputs!B19/12+'(Other Computations)'!B144)","v":{"v":34357620.17940846,"d":"$34,357,620"}},{"$f":"Inputs!B20*X10/(1/Inputs!B19/12+'(Other Computations)'!B144)","v":{"v":34347785.32113337,"d":"$34,347,785"}},{"$f":"Inputs!B20*Y10/(1/Inputs!B19/12+'(Other Computations)'!B144)","v":{"v":34333335.77886243,"d":"$34,333,336"}},{"$f":"Inputs!B20*Z10/(1/Inputs!B19/12+'(Other Computations)'!B144)","v":{"v":34315765.25999433,"d":"$34,315,765"}},{"$f":"Z22","v":{"v":34315765.25999433,"d":"$34,315,765"}},{"$f":"Inputs!B20*AB10/(1/Inputs!B19/12+'(Other Computations)'!B144)","v":{"v":34299663.44696634,"d":"$34,299,663"}},{"$f":"Inputs!B20*AC10/(1/Inputs!B19/12+'(Other Computations)'!B144)","v":{"v":34284088.31411503,"d":"$34,284,088"}},{"$f":"Inputs!B20*AD10/(1/Inputs!B19/12+'(Other Computations)'!B144)","v":{"v":34270630.54046255,"d":"$34,270,631"}},{"$f":"Inputs!B20*AE10/(1/Inputs!B19/12+'(Other Computations)'!B144)","v":{"v":34255647.87460451,"d":"$34,255,648"}},{"$f":"Inputs!B20*AF10/(1/Inputs!B19/12+'(Other Computations)'!B144)","v":{"v":34238627.94777798,"d":"$34,238,628"}},{"$f":"Inputs!B20*AG10/(1/Inputs!B19/12+'(Other Computations)'!B144)","v":{"v":34223244.395842955,"d":"$34,223,244"}},{"$f":"Inputs!B20*AH10/(1/Inputs!B19/12+'(Other Computations)'!B144)","v":{"v":34212243.5408806,"d":"$34,212,244"}},{"$f":"Inputs!B20*AI10/(1/Inputs!B19/12+'(Other Computations)'!B144)","v":{"v":34198131.23064813,"d":"$34,198,131"}},{"$f":"Inputs!B20*AJ10/(1/Inputs!B19/12+'(Other Computations)'!B144)","v":{"v":34183985.81123105,"d":"$34,183,986"}},{"$f":"Inputs!B20*AK10/(1/Inputs!B19/12+'(Other Computations)'!B144)","v":{"v":34168596.7492891,"d":"$34,168,597"}},{"$f":"Inputs!B20*AL10/(1/Inputs!B19/12+'(Other Computations)'!B144)","v":{"v":34157116.11975193,"d":"$34,157,116"}},{"$f":"Inputs!B20*AM10/(1/Inputs!B19/12+'(Other Computations)'!B144)","v":{"v":34142182.90202131,"d":"$34,142,183"}},{"$f":"AM22","v":{"v":34142182.90202131,"d":"$34,142,183"}},{"$f":"Inputs!B20*AO10/(1/Inputs!B19/12+'(Other Computations)'!B144)","v":{"v":34124068.68151382,"d":"$34,124,069"}},{"$f":"Inputs!B20*AP10/(1/Inputs!B19/12+'(Other Computations)'!B144)","v":{"v":34109956.769120395,"d":"$34,109,957"}},{"$f":"Inputs!B20*AQ10/(1/Inputs!B19/12+'(Other Computations)'!B144)","v":{"v":34095642.50662549,"d":"$34,095,643"}},{"$f":"Inputs!B20*AR10/(1/Inputs!B19/12+'(Other Computations)'!B144)","v":{"v":34080858.91827639,"d":"$34,080,859"}},{"$f":"Inputs!B20*AS10/(1/Inputs!B19/12+'(Other Computations)'!B144)","v":{"v":34064361.72676421,"d":"$34,064,362"}},{"$f":"Inputs!B20*AT10/(1/Inputs!B19/12+'(Other Computations)'!B144)","v":{"v":34051036.11455923,"d":"$34,051,036"}},{"$f":"Inputs!B20*AU10/(1/Inputs!B19/12+'(Other Computations)'!B144)","v":{"v":34039041.573829845,"d":"$34,039,042"}},{"$f":"Inputs!B20*AV10/(1/Inputs!B19/12+'(Other Computations)'!B144)","v":{"v":34025812.150681525,"d":"$34,025,812"}},{"$f":"Inputs!B20*AW10/(1/Inputs!B19/12+'(Other Computations)'!B144)","v":{"v":34011509.25752953,"d":"$34,011,509"}},{"$f":"Inputs!B20*AX10/(1/Inputs!B19/12+'(Other Computations)'!B144)","v":{"v":33998671.34199954,"d":"$33,998,671"}},{"$f":"Inputs!B20*AY10/(1/Inputs!B19/12+'(Other Computations)'!B144)","v":{"v":33982356.6069006,"d":"$33,982,357"}},{"$f":"Inputs!B20*AZ10/(1/Inputs!B19/12+'(Other Computations)'!B144)","v":{"v":33966371.716181666,"d":"$33,966,372"}},{"$f":"AZ22","v":{"v":33966371.716181666,"d":"$33,966,372"}},{"$f":"Inputs!B20*BB10/(1/Inputs!B19/12+'(Other Computations)'!B144)","v":{"v":33948768.514544554,"d":"$33,948,769"}},{"$f":"Inputs!B20*BC10/(1/Inputs!B19/12+'(Other Computations)'!B144)","v":{"v":33938572.656724945,"d":"$33,938,573"}},{"$f":"Inputs!B20*BD10/(1/Inputs!B19/12+'(Other Computations)'!B144)","v":{"v":33928234.97106123,"d":"$33,928,235"}},{"$f":"Inputs!B20*BE10/(1/Inputs!B19/12+'(Other Computations)'!B144)","v":{"v":33911880.737923175,"d":"$33,911,881"}},{"$f":"Inputs!B20*BF10/(1/Inputs!B19/12+'(Other Computations)'!B144)","v":{"v":33897735.6996546,"d":"$33,897,736"}},{"$f":"Inputs!B20*BG10/(1/Inputs!B19/12+'(Other Computations)'!B144)","v":{"v":33881539.05054248,"d":"$33,881,539"}},{"$f":"Inputs!B20*BH10/(1/Inputs!B19/12+'(Other Computations)'!B144)","v":{"v":33868864.700165875,"d":"$33,868,865"}},{"$f":"Inputs!B20*BI10/(1/Inputs!B19/12+'(Other Computations)'!B144)","v":{"v":33852828.00923251,"d":"$33,852,828"}},{"$f":"Inputs!B20*BJ10/(1/Inputs!B19/12+'(Other Computations)'!B144)","v":{"v":33838830.76586224,"d":"$33,838,831"}},{"$f":"Inputs!B20*BK10/(1/Inputs!B19/12+'(Other Computations)'!B144)","v":{"v":33820713.729033835,"d":"$33,820,714"}},{"$f":"Inputs!B20*BL10/(1/Inputs!B19/12+'(Other Computations)'!B144)","v":{"v":33808664.509548634,"d":"$33,808,665"}},{"$f":"Inputs!B20*BM10/(1/Inputs!B19/12+'(Other Computations)'!B144)","v":{"v":33795559.73716014,"d":"$33,795,560"}},{"$f":"BM22","v":{"v":33795559.73716014,"d":"$33,795,560"}},{"$f":"Inputs!B20*BO10/(1/Inputs!B19/12+'(Other Computations)'!B144)","v":{"v":33783303.441083394,"d":"$33,783,303"}},{"$f":"Inputs!B20*BP10/(1/Inputs!B19/12+'(Other Computations)'!B144)","v":{"v":33770773.475430295,"d":"$33,770,773"}},{"$f":"Inputs!B20*BQ10/(1/Inputs!B19/12+'(Other Computations)'!B144)","v":{"v":33758374.235038854,"d":"$33,758,374"}},{"$f":"Inputs!B20*BR10/(1/Inputs!B19/12+'(Other Computations)'!B144)","v":{"v":33742720.32835741,"d":"$33,742,720"}},{"$f":"Inputs!B20*BS10/(1/Inputs!B19/12+'(Other Computations)'!B144)","v":{"v":33729090.850406006,"d":"$33,729,091"}},{"$f":"Inputs!B20*BT10/(1/Inputs!B19/12+'(Other Computations)'!B144)","v":{"v":33712445.61685086,"d":"$33,712,446"}},{"$f":"Inputs!B20*BU10/(1/Inputs!B19/12+'(Other Computations)'!B144)","v":{"v":33699651.20695442,"d":"$33,699,651"}},{"$f":"Inputs!B20*BV10/(1/Inputs!B19/12+'(Other Computations)'!B144)","v":{"v":33684597.22133623,"d":"$33,684,597"}},{"$f":"Inputs!B20*BW10/(1/Inputs!B19/12+'(Other Computations)'!B144)","v":{"v":33668706.93238838,"d":"$33,668,707"}},{"$f":"Inputs!B20*BX10/(1/Inputs!B19/12+'(Other Computations)'!B144)","v":{"v":33652056.82598843,"d":"$33,652,057"}},{"$f":"Inputs!B20*BY10/(1/Inputs!B19/12+'(Other Computations)'!B144)","v":{"v":33639754.25842965,"d":"$33,639,754"}},{"$f":"Inputs!B20*BZ10/(1/Inputs!B19/12+'(Other Computations)'!B144)","v":{"v":33625222.30110756,"d":"$33,625,222"}},{"$f":"BZ22","v":{"v":33625222.30110756,"d":"$33,625,222"}},{"$f":"Inputs!B20*CB10/(1/Inputs!B19/12+'(Other Computations)'!B144)","v":{"v":33612288.89434176,"d":"$33,612,289"}},{"$f":"Inputs!B20*CC10/(1/Inputs!B19/12+'(Other Computations)'!B144)","v":{"v":33596185.102173455,"d":"$33,596,185"}},{"$f":"Inputs!B20*CD10/(1/Inputs!B19/12+'(Other Computations)'!B144)","v":{"v":33583124.96864029,"d":"$33,583,125"}},{"$f":"Inputs!B20*CE10/(1/Inputs!B19/12+'(Other Computations)'!B144)","v":{"v":33567787.62645041,"d":"$33,567,788"}},{"$f":"Inputs!B20*CF10/(1/Inputs!B19/12+'(Other Computations)'!B144)","v":{"v":33552921.345410187,"d":"$33,552,921"}},{"$f":"Inputs!B20*CG10/(1/Inputs!B19/12+'(Other Computations)'!B144)","v":{"v":33539158.31621243,"d":"$33,539,158"}},{"$f":"Inputs!B20*CH10/(1/Inputs!B19/12+'(Other Computations)'!B144)","v":{"v":33524123.58026382,"d":"$33,524,124"}},{"$f":"Inputs!B20*CI10/(1/Inputs!B19/12+'(Other Computations)'!B144)","v":{"v":33514276.3852053,"d":"$33,514,276"}},{"$f":"Inputs!B20*CJ10/(1/Inputs!B19/12+'(Other Computations)'!B144)","v":{"v":33502417.959437136,"d":"$33,502,418"}},{"$f":"Inputs!B20*CK10/(1/Inputs!B19/12+'(Other Computations)'!B144)","v":{"v":33488037.38570734,"d":"$33,488,037"}},{"$f":"Inputs!B20*CL10/(1/Inputs!B19/12+'(Other Computations)'!B144)","v":{"v":33476338.628921658,"d":"$33,476,339"}},{"$f":"Inputs!B20*CM10/(1/Inputs!B19/12+'(Other Computations)'!B144)","v":{"v":33462781.502396807,"d":"$33,462,782"}},{"$f":"CM22","v":{"v":33462781.502396807,"d":"$33,462,782"}},{"$f":"Inputs!B20*CO10/(1/Inputs!B19/12+'(Other Computations)'!B144)","v":{"v":33447173.266641732,"d":"$33,447,173"}},{"$f":"Inputs!B20*CP10/(1/Inputs!B19/12+'(Other Computations)'!B144)","v":{"v":33435236.63475392,"d":"$33,435,237"}},{"$f":"Inputs!B20*CQ10/(1/Inputs!B19/12+'(Other Computations)'!B144)","v":{"v":33422662.54471131,"d":"$33,422,663"}},{"$f":"Inputs!B20*CR10/(1/Inputs!B19/12+'(Other Computations)'!B144)","v":{"v":33410724.226990454,"d":"$33,410,724"}},{"$f":"Inputs!B20*CS10/(1/Inputs!B19/12+'(Other Computations)'!B144)","v":{"v":33396873.210660685,"d":"$33,396,873"}},{"$f":"Inputs!B20*CT10/(1/Inputs!B19/12+'(Other Computations)'!B144)","v":{"v":33381080.250365008,"d":"$33,381,080"}},{"$f":"Inputs!B20*CU10/(1/Inputs!B19/12+'(Other Computations)'!B144)","v":{"v":33363659.51070341,"d":"$33,363,660"}},{"$f":"Inputs!B20*CV10/(1/Inputs!B19/12+'(Other Computations)'!B144)","v":{"v":33353319.899109654,"d":"$33,353,320"}},{"$f":"Inputs!B20*CW10/(1/Inputs!B19/12+'(Other Computations)'!B144)","v":{"v":33340426.029558893,"d":"$33,340,426"}},{"$f":"Inputs!B20*CX10/(1/Inputs!B19/12+'(Other Computations)'!B144)","v":{"v":33327321.438289966,"d":"$33,327,321"}},{"$f":"Inputs!B20*CY10/(1/Inputs!B19/12+'(Other Computations)'!B144)","v":{"v":33309918.832511365,"d":"$33,309,919"}},{"$f":"Inputs!B20*CZ10/(1/Inputs!B19/12+'(Other Computations)'!B144)","v":{"v":33297369.391804393,"d":"$33,297,369"}},{"$f":"CZ22","v":{"v":33297369.391804393,"d":"$33,297,369"}},{"$f":"Inputs!B20*DB10/(1/Inputs!B19/12+'(Other Computations)'!B144)","v":{"v":33286288.157646652,"d":"$33,286,288"}},{"$f":"Inputs!B20*DC10/(1/Inputs!B19/12+'(Other Computations)'!B144)","v":{"v":33270776.89266672,"d":"$33,270,777"}},{"$f":"Inputs!B20*DD10/(1/Inputs!B19/12+'(Other Computations)'!B144)","v":{"v":33254109.858612474,"d":"$33,254,110"}},{"$f":"Inputs!B20*DE10/(1/Inputs!B19/12+'(Other Computations)'!B144)","v":{"v":33241580.722999614,"d":"$33,241,581"}},{"$f":"Inputs!B20*DF10/(1/Inputs!B19/12+'(Other Computations)'!B144)","v":{"v":33229068.53828045,"d":"$33,229,069"}},{"$f":"Inputs!B20*DG10/(1/Inputs!B19/12+'(Other Computations)'!B144)","v":{"v":33215447.358736973,"d":"$33,215,447"}},{"$f":"Inputs!B20*DH10/(1/Inputs!B19/12+'(Other Computations)'!B144)","v":{"v":33202412.285156034,"d":"$33,202,412"}},{"$f":"Inputs!B20*DI10/(1/Inputs!B19/12+'(Other Computations)'!B144)","v":{"v":33185792.37090785,"d":"$33,185,792"}},{"$f":"Inputs!B20*DJ10/(1/Inputs!B19/12+'(Other Computations)'!B144)","v":{"v":33173585.716958765,"d":"$33,173,586"}},{"$f":"Inputs!B20*DK10/(1/Inputs!B19/12+'(Other Computations)'!B144)","v":{"v":33158344.732293755,"d":"$33,158,345"}},{"$f":"Inputs!B20*DL10/(1/Inputs!B19/12+'(Other Computations)'!B144)","v":{"v":33145762.468166605,"d":"$33,145,762"}},{"$f":"Inputs!B20*DM10/(1/Inputs!B19/12+'(Other Computations)'!B144)","v":{"v":33132471.338873636,"d":"$33,132,471"}},{"$f":"DM22","v":{"v":33132471.338873636,"d":"$33,132,471"}},{"$f":"Inputs!B20*DO10/(1/Inputs!B19/12+'(Other Computations)'!B144)","v":{"v":33117420.103544142,"d":"$33,117,420"}},{"$f":"Inputs!B20*DP10/(1/Inputs!B19/12+'(Other Computations)'!B144)","v":{"v":33106581.721778046,"d":"$33,106,582"}},{"$f":"Inputs!B20*DQ10/(1/Inputs!B19/12+'(Other Computations)'!B144)","v":{"v":33096669.337497532,"d":"$33,096,669"}},{"$f":"Inputs!B20*DR10/(1/Inputs!B19/12+'(Other Computations)'!B144)","v":{"v":33080603.819541886,"d":"$33,080,604"}},{"$f":"Inputs!B20*DS10/(1/Inputs!B19/12+'(Other Computations)'!B144)","v":{"v":33070020.506244197,"d":"$33,070,021"}},{"$f":"Inputs!B20*DT10/(1/Inputs!B19/12+'(Other Computations)'!B144)","v":{"v":33059850.793098476,"d":"$33,059,851"}},{"$f":"Inputs!B20*DU10/(1/Inputs!B19/12+'(Other Computations)'!B144)","v":{"v":33047836.93406187,"d":"$33,047,837"}},{"$f":"Inputs!B20*DV10/(1/Inputs!B19/12+'(Other Computations)'!B144)","v":{"v":33032722.770196654,"d":"$33,032,723"}},{"$f":"Inputs!B20*DW10/(1/Inputs!B19/12+'(Other Computations)'!B144)","v":{"v":33018285.105741184,"d":"$33,018,285"}},{"$f":"Inputs!B20*DX10/(1/Inputs!B19/12+'(Other Computations)'!B144)","v":{"v":33000231.643458195,"d":"$33,000,232"}},{"$f":"Inputs!B20*DY10/(1/Inputs!B19/12+'(Other Computations)'!B144)","v":{"v":32989172.737011775,"d":"$32,989,173"}},{"$f":"Inputs!B20*DZ10/(1/Inputs!B19/12+'(Other Computations)'!B144)","v":{"v":32977585.719611015,"d":"$32,977,586"}},{"$f":"DZ22","v":{"v":32977585.719611015,"d":"$32,977,586"}},{"$f":"Inputs!B20*EB10/(1/Inputs!B19/12+'(Other Computations)'!B144)","v":{"v":32966972.338095687,"d":"$32,966,972"}},{"$f":"Inputs!B20*EC10/(1/Inputs!B19/12+'(Other Computations)'!B144)","v":{"v":32952747.191853646,"d":"$32,952,747"}},{"$f":"Inputs!B20*ED10/(1/Inputs!B19/12+'(Other Computations)'!B144)","v":{"v":32934503.33509343,"d":"$32,934,503"}},{"$f":"Inputs!B20*EE10/(1/Inputs!B19/12+'(Other Computations)'!B144)","v":{"v":32919764.446494106,"d":"$32,919,764"}},{"$f":"Inputs!B20*EF10/(1/Inputs!B19/12+'(Other Computations)'!B144)","v":{"v":32908449.915468264,"d":"$32,908,450"}},{"$f":"Inputs!B20*EG10/(1/Inputs!B19/12+'(Other Computations)'!B144)","v":{"v":32897924.349810366,"d":"$32,897,924"}},{"$f":"Inputs!B20*EH10/(1/Inputs!B19/12+'(Other Computations)'!B144)","v":{"v":32883007.392951008,"d":"$32,883,007"}},{"$f":"Inputs!B20*EI10/(1/Inputs!B19/12+'(Other Computations)'!B144)","v":{"v":32870628.50528554,"d":"$32,870,629"}},{"$f":"Inputs!B20*EJ10/(1/Inputs!B19/12+'(Other Computations)'!B144)","v":{"v":32853221.468705684,"d":"$32,853,221"}},{"$f":"Inputs!B20*EK10/(1/Inputs!B19/12+'(Other Computations)'!B144)","v":{"v":32835795.332236607,"d":"$32,835,795"}},{"$f":"Inputs!B20*EL10/(1/Inputs!B19/12+'(Other Computations)'!B144)","v":{"v":32824061.266457263,"d":"$32,824,061"}},{"$f":"Inputs!B20*EM10/(1/Inputs!B19/12+'(Other Computations)'!B144)","v":{"v":32807628.882594775,"d":"$32,807,629"}},{"$f":"EM22","v":{"v":32807628.882594775,"d":"$32,807,629"}}]
[]
[]
[{"$f":"\"Employment\"","v":"Employment"}]
[{"$f":"\" \"","v":" "}]
[null,{"$f":"ZZZ__FnCalls!F7","v":"Jan 2010"},{"$f":"ZZZ__FnCalls!F8","v":"Feb 2010"},{"$f":"ZZZ__FnCalls!F9","v":"Mar 2010"},{"$f":"ZZZ__FnCalls!F10","v":"Apr 2010"},{"$f":"ZZZ__FnCalls!F11","v":"May 2010"},{"$f":"ZZZ__FnCalls!F12","v":"Jun 2010"},{"$f":"ZZZ__FnCalls!F13","v":"Jul 2010"},{"$f":"ZZZ__FnCalls!F14","v":"Aug 2010"},{"$f":"ZZZ__FnCalls!F15","v":"Sep 2010"},{"$f":"ZZZ__FnCalls!F16","v":"Oct 2010"},{"$f":"ZZZ__FnCalls!F17","v":"Nov 2010"},{"$f":"ZZZ__FnCalls!F18","v":"Dec 2010"},{"$f":"ZZZ__FnCalls!H7","v":"2010"},{"$f":"ZZZ__FnCalls!F19","v":"Jan 2011"},{"$f":"ZZZ__FnCalls!F20","v":"Feb 2011"},{"$f":"ZZZ__FnCalls!F21","v":"Mar 2011"},{"$f":"ZZZ__FnCalls!F22","v":"Apr 2011"},{"$f":"ZZZ__FnCalls!F23","v":"May 2011"},{"$f":"ZZZ__FnCalls!F24","v":"Jun 2011"},{"$f":"ZZZ__FnCalls!F25","v":"Jul 2011"},{"$f":"ZZZ__FnCalls!F26","v":"Aug 2011"},{"$f":"ZZZ__FnCalls!F27","v":"Sep 2011"},{"$f":"ZZZ__FnCalls!F28","v":"Oct 2011"},{"$f":"ZZZ__FnCalls!F29","v":"Nov 2011"},{"$f":"ZZZ__FnCalls!F30","v":"Dec 2011"},{"$f":"ZZZ__FnCalls!H19","v":"2011"},{"$f":"ZZZ__FnCalls!F31","v":"Jan 2012"},{"$f":"ZZZ__FnCalls!F32","v":"Feb 2012"},{"$f":"ZZZ__FnCalls!F33","v":"Mar 2012"},{"$f":"ZZZ__FnCalls!F34","v":"Apr 2012"},{"$f":"ZZZ__FnCalls!F35","v":"May 2012"},{"$f":"ZZZ__FnCalls!F36","v":"Jun 2012"},{"$f":"ZZZ__FnCalls!F37","v":"Jul 2012"},{"$f":"ZZZ__FnCalls!F38","v":"Aug 2012"},{"$f":"ZZZ__FnCalls!F39","v":"Sep 2012"},{"$f":"ZZZ__FnCalls!F40","v":"Oct 2012"},{"$f":"ZZZ__FnCalls!F41","v":"Nov 2012"},{"$f":"ZZZ__FnCalls!F42","v":"Dec 2012"},{"$f":"ZZZ__FnCalls!H31","v":"2012"},{"$f":"ZZZ__FnCalls!F43","v":"Jan 2013"},{"$f":"ZZZ__FnCalls!F44","v":"Feb 2013"},{"$f":"ZZZ__FnCalls!F45","v":"Mar 2013"},{"$f":"ZZZ__FnCalls!F46","v":"Apr 2013"},{"$f":"ZZZ__FnCalls!F47","v":"May 2013"},{"$f":"ZZZ__FnCalls!F48","v":"Jun 2013"},{"$f":"ZZZ__FnCalls!F49","v":"Jul 2013"},{"$f":"ZZZ__FnCalls!F50","v":"Aug 2013"},{"$f":"ZZZ__FnCalls!F51","v":"Sep 2013"},{"$f":"ZZZ__FnCalls!F52","v":"Oct 2013"},{"$f":"ZZZ__FnCalls!F53","v":"Nov 2013"},{"$f":"ZZZ__FnCalls!F54","v":"Dec 2013"},{"$f":"ZZZ__FnCalls!H43","v":"2013"},{"$f":"ZZZ__FnCalls!F55","v":"Jan 2014"},{"$f":"ZZZ__FnCalls!F56","v":"Feb 2014"},{"$f":"ZZZ__FnCalls!F57","v":"Mar 2014"},{"$f":"ZZZ__FnCalls!F58","v":"Apr 2014"},{"$f":"ZZZ__FnCalls!F59","v":"May 2014"},{"$f":"ZZZ__FnCalls!F60","v":"Jun 2014"},{"$f":"ZZZ__FnCalls!F61","v":"Jul 2014"},{"$f":"ZZZ__FnCalls!F62","v":"Aug 2014"},{"$f":"ZZZ__FnCalls!F63","v":"Sep 2014"},{"$f":"ZZZ__FnCalls!F64","v":"Oct 2014"},{"$f":"ZZZ__FnCalls!F65","v":"Nov 2014"},{"$f":"ZZZ__FnCalls!F66","v":"Dec 2014"},{"$f":"ZZZ__FnCalls!H55","v":"2014"},{"$f":"ZZZ__FnCalls!F67","v":"Jan 2015"},{"$f":"ZZZ__FnCalls!F68","v":"Feb 2015"},{"$f":"ZZZ__FnCalls!F69","v":"Mar 2015"},{"$f":"ZZZ__FnCalls!F70","v":"Apr 2015"},{"$f":"ZZZ__FnCalls!F71","v":"May 2015"},{"$f":"ZZZ__FnCalls!F72","v":"Jun 2015"},{"$f":"ZZZ__FnCalls!F73","v":"Jul 2015"},{"$f":"ZZZ__FnCalls!F74","v":"Aug 2015"},{"$f":"ZZZ__FnCalls!F75","v":"Sep 2015"},{"$f":"ZZZ__FnCalls!F76","v":"Oct 2015"},{"$f":"ZZZ__FnCalls!F77","v":"Nov 2015"},{"$f":"ZZZ__FnCalls!F78","v":"Dec 2015"},{"$f":"ZZZ__FnCalls!H67","v":"2015"},{"$f":"ZZZ__FnCalls!F79","v":"Jan 2016"},{"$f":"ZZZ__FnCalls!F80","v":"Feb 2016"},{"$f":"ZZZ__FnCalls!F81","v":"Mar 2016"},{"$f":"ZZZ__FnCalls!F82","v":"Apr 2016"},{"$f":"ZZZ__FnCalls!F83","v":"May 2016"},{"$f":"ZZZ__FnCalls!F84","v":"Jun 2016"},{"$f":"ZZZ__FnCalls!F85","v":"Jul 2016"},{"$f":"ZZZ__FnCalls!F86","v":"Aug 2016"},{"$f":"ZZZ__FnCalls!F87","v":"Sep 2016"},{"$f":"ZZZ__FnCalls!F88","v":"Oct 2016"},{"$f":"ZZZ__FnCalls!F89","v":"Nov 2016"},{"$f":"ZZZ__FnCalls!F90","v":"Dec 2016"},{"$f":"ZZZ__FnCalls!H79","v":"2016"},{"$f":"ZZZ__FnCalls!F91","v":"Jan 2017"},{"$f":"ZZZ__FnCalls!F92","v":"Feb 2017"},{"$f":"ZZZ__FnCalls!F93","v":"Mar 2017"},{"$f":"ZZZ__FnCalls!F94","v":"Apr 2017"},{"$f":"ZZZ__FnCalls!F95","v":"May 2017"},{"$f":"ZZZ__FnCalls!F96","v":"Jun 2017"},{"$f":"ZZZ__FnCalls!F97","v":"Jul 2017"},{"$f":"ZZZ__FnCalls!F98","v":"Aug 2017"},{"$f":"ZZZ__FnCalls!F99","v":"Sep 2017"},{"$f":"ZZZ__FnCalls!F100","v":"Oct 2017"},{"$f":"ZZZ__FnCalls!F101","v":"Nov 2017"},{"$f":"ZZZ__FnCalls!F102","v":"Dec 2017"},{"$f":"ZZZ__FnCalls!H91","v":"2017"},{"$f":"ZZZ__FnCalls!F103","v":"Jan 2018"},{"$f":"ZZZ__FnCalls!F104","v":"Feb 2018"},{"$f":"ZZZ__FnCalls!F105","v":"Mar 2018"},{"$f":"ZZZ__FnCalls!F106","v":"Apr 2018"},{"$f":"ZZZ__FnCalls!F107","v":"May 2018"},{"$f":"ZZZ__FnCalls!F108","v":"Jun 2018"},{"$f":"ZZZ__FnCalls!F109","v":"Jul 2018"},{"$f":"ZZZ__FnCalls!F110","v":"Aug 2018"},{"$f":"ZZZ__FnCalls!F111","v":"Sep 2018"},{"$f":"ZZZ__FnCalls!F112","v":"Oct 2018"},{"$f":"ZZZ__FnCalls!F113","v":"Nov 2018"},{"$f":"ZZZ__FnCalls!F114","v":"Dec 2018"},{"$f":"ZZZ__FnCalls!H103","v":"2018"},{"$f":"ZZZ__FnCalls!F115","v":"Jan 2019"},{"$f":"ZZZ__FnCalls!F116","v":"Feb 2019"},{"$f":"ZZZ__FnCalls!F117","v":"Mar 2019"},{"$f":"ZZZ__FnCalls!F118","v":"Apr 2019"},{"$f":"ZZZ__FnCalls!F119","v":"May 2019"},{"$f":"ZZZ__FnCalls!F120","v":"Jun 2019"},{"$f":"ZZZ__FnCalls!F121","v":"Jul 2019"},{"$f":"ZZZ__FnCalls!F122","v":"Aug 2019"},{"$f":"ZZZ__FnCalls!F123","v":"Sep 2019"},{"$f":"ZZZ__FnCalls!F124","v":"Oct 2019"},{"$f":"ZZZ__FnCalls!F125","v":"Nov 2019"},{"$f":"ZZZ__FnCalls!F126","v":"Dec 2019"},{"$f":"ZZZ__FnCalls!H115","v":"2019"},{"$f":"ZZZ__FnCalls!F127","v":"Jan 2020"},{"$f":"ZZZ__FnCalls!F128","v":"Feb 2020"},{"$f":"ZZZ__FnCalls!F129","v":"Mar 2020"},{"$f":"ZZZ__FnCalls!F130","v":"Apr 2020"},{"$f":"ZZZ__FnCalls!F131","v":"May 2020"},{"$f":"ZZZ__FnCalls!F132","v":"Jun 2020"},{"$f":"ZZZ__FnCalls!F133","v":"Jul 2020"},{"$f":"ZZZ__FnCalls!F134","v":"Aug 2020"},{"$f":"ZZZ__FnCalls!F135","v":"Sep 2020"},{"$f":"ZZZ__FnCalls!F136","v":"Oct 2020"},{"$f":"ZZZ__FnCalls!F137","v":"Nov 2020"},{"$f":"ZZZ__FnCalls!F138","v":"Dec 2020"},{"$f":"ZZZ__FnCalls!H127","v":"2020"}]
[{"$f":"Labels!B38","v":"Employment"},{"$f":"Inputs!B27+'(Other Computations)'!B61*0/Inputs!B28/12","v":{"v":140,"d":"140.00"}},{"$f":"B28+'(Other Computations)'!B61*(B29-B28)/Inputs!B28/12","v":{"v":140,"d":"140.00"}},{"$f":"C28+'(Other Computations)'!B61*(C29-C28)/Inputs!B28/12","v":{"v":139.99370562944395,"d":"139.99"}},{"$f":"D28+'(Other Computations)'!B61*(D29-D28)/Inputs!B28/12","v":{"v":139.98108368165873,"d":"139.98"}},{"$f":"E28+'(Other Computations)'!B61*(E29-E28)/Inputs!B28/12","v":{"v":139.96228406632494,"d":"139.96"}},{"$f":"F28+'(Other Computations)'!B61*(F29-F28)/Inputs!B28/12","v":{"v":139.93868019607854,"d":"139.94"}},{"$f":"G28+'(Other Computations)'!B61*(G29-G28)/Inputs!B28/12","v":{"v":139.91097207108808,"d":"139.91"}},{"$f":"H28+'(Other Computations)'!B61*(H29-H28)/Inputs!B28/12","v":{"v":139.87978445424628,"d":"139.88"}},{"$f":"I28+'(Other Computations)'!B61*(I29-I28)/Inputs!B28/12","v":{"v":139.84234816841763,"d":"139.84"}},{"$f":"J28+'(Other Computations)'!B61*(J29-J28)/Inputs!B28/12","v":{"v":139.79891024513608,"d":"139.80"}},{"$f":"K28+'(Other Computations)'!B61*(K29-K28)/Inputs!B28/12","v":{"v":139.75061544427635,"d":"139.75"}},{"$f":"L28+'(Other Computations)'!B61*(L29-L28)/Inputs!B28/12","v":{"v":139.69762259144758,"d":"139.70"}},{"$f":"M28","v":{"v":139.69762259144758,"d":"139.70"}},{"$f":"M28+'(Other Computations)'!B61*(M29-M28)/Inputs!B28/12","v":{"v":139.64033407325726,"d":"139.64"}},{"$f":"O28+'(Other Computations)'!B61*(O29-O28)/Inputs!B28/12","v":{"v":139.57748257553104,"d":"139.58"}},{"$f":"P28+'(Other Computations)'!B61*(P29-P28)/Inputs!B28/12","v":{"v":139.51064666093473,"d":"139.51"}},{"$f":"Q28+'(Other Computations)'!B61*(Q29-Q28)/Inputs!B28/12","v":{"v":139.44031194506428,"d":"139.44"}},{"$f":"R28+'(Other Computations)'!B61*(R29-R28)/Inputs!B28/12","v":{"v":139.36744354530651,"d":"139.37"}},{"$f":"S28+'(Other Computations)'!B61*(S29-S28)/Inputs!B28/12","v":{"v":139.2909207295985,"d":"139.29"}},{"$f":"T28+'(Other Computations)'!B61*(T29-T28)/Inputs!B28/12","v":{"v":139.209185544513,"d":"139.21"}},{"$f":"U28+'(Other Computations)'!B61*(U29-U28)/Inputs!B28/12","v":{"v":139.12356835515382,"d":"139.12"}},{"$f":"V28+'(Other Computations)'!B61*(V29-V28)/Inputs!B28/12","v":{"v":139.03475205720815,"d":"139.03"}},{"$f":"W28+'(Other Computations)'!B61*(W29-W28)/Inputs!B28/12","v":{"v":138.94263740338886,"d":"138.94"}},{"$f":"X28+'(Other Computations)'!B61*(X29-X28)/Inputs!B28/12","v":{"v":138.8492139593875,"d":"138.85"}},{"$f":"Y28+'(Other Computations)'!B61*(Y29-Y28)/Inputs!B28/12","v":{"v":138.75259278264923,"d":"138.75"}},{"$f":"Z28","v":{"v":138.75259278264923,"d":"138.75"}},{"$f":"Z28+'(Other Computations)'!B61*(Z29-Z28)/Inputs!B28/12","v":{"v":138.65156852924204,"d":"138.65"}},{"$f":"AB28+'(Other Computations)'!B61*(AB29-AB28)/Inputs!B28/12","v":{"v":138.54690319893896,"d":"138.55"}},{"$f":"AC28+'(Other Computations)'!B61*(AC29-AC28)/Inputs!B28/12","v":{"v":138.43894094254594,"d":"138.44"}},{"$f":"AD28+'(Other Computations)'!B61*(AD29-AD28)/Inputs!B28/12","v":{"v":138.32868611585874,"d":"138.33"}},{"$f":"AE28+'(Other Computations)'!B61*(AE29-AE28)/Inputs!B28/12","v":{"v":138.215581404524,"d":"138.22"}},{"$f":"AF28+'(Other Computations)'!B61*(AF29-AF28)/Inputs!B28/12","v":{"v":138.09887030455266,"d":"138.10"}},{"$f":"AG28+'(Other Computations)'!B61*(AG29-AG28)/Inputs!B28/12","v":{"v":137.97936500767995,"d":"137.98"}},{"$f":"AH28+'(Other Computations)'!B61*(AH29-AH28)/Inputs!B28/12","v":{"v":137.8590108050166,"d":"137.86"}},{"$f":"AI28+'(Other Computations)'!B61*(AI29-AI28)/Inputs!B28/12","v":{"v":137.73654260898684,"d":"137.74"}},{"$f":"AJ28+'(Other Computations)'!B61*(AJ29-AJ28)/Inputs!B28/12","v":{"v":137.61202781497803,"d":"137.61"}},{"$f":"AK28+'(Other Computations)'!B61*(AK29-AK28)/Inputs!B28/12","v":{"v":137.48502263688155,"d":"137.49"}},{"$f":"AL28+'(Other Computations)'!B61*(AL29-AL28)/Inputs!B28/12","v":{"v":137.35726511457923,"d":"137.36"}},{"$f":"AM28","v":{"v":137.35726511457923,"d":"137.36"}},{"$f":"AM28+'(Other Computations)'!B61*(AM29-AM28)/Inputs!B28/12","v":{"v":137.22734488993643,"d":"137.23"}},{"$f":"AO28+'(Other Computations)'!B61*(AO29-AO28)/Inputs!B28/12","v":{"v":137.0940068149227,"d":"137.09"}},{"$f":"AP28+'(Other Computations)'!B61*(AP29-AP28)/Inputs!B28/12","v":{"v":136.95905607613204,"d":"136.96"}},{"$f":"AQ28+'(Other Computations)'!B61*(AQ29-AQ28)/Inputs!B28/12","v":{"v":136.82247629453772,"d":"136.82"}},{"$f":"AR28+'(Other Computations)'!B61*(AR29-AR28)/Inputs!B28/12","v":{"v":136.68413941586678,"d":"136.68"}},{"$f":"AS28+'(Other Computations)'!B61*(AS29-AS28)/Inputs!B28/12","v":{"v":136.54339756624228,"d":"136.54"}},{"$f":"AT28+'(Other Computations)'!B61*(AT29-AT28)/Inputs!B28/12","v":{"v":136.40167820407365,"d":"136.40"}},{"$f":"AU28+'(Other Computations)'!B61*(AU29-AU28)/Inputs!B28/12","v":{"v":136.2595931202941,"d":"136.26"}},{"$f":"AV28+'(Other Computations)'!B61*(AV29-AV28)/Inputs!B28/12","v":{"v":136.1166564265643,"d":"136.12"}},{"$f":"AW28+'(Other Computations)'!B61*(AW29-AW28)/Inputs!B28/12","v":{"v":135.9724642472322,"d":"135.97"}},{"$f":"AX28+'(Other Computations)'!B61*(AX29-AX28)/Inputs!B28/12","v":{"v":135.82769300233423,"d":"135.83"}},{"$f":"AY28+'(Other Computations)'!B61*(AY29-AY28)/Inputs!B28/12","v":{"v":135.68091954073253,"d":"135.68"}},{"$f":"AZ28","v":{"v":135.68091954073253,"d":"135.68"}},{"$f":"AZ28+'(Other Computations)'!B61*(AZ29-AZ28)/Inputs!B28/12","v":{"v":135.53236428535462,"d":"135.53"}},{"$f":"BB28+'(Other Computations)'!B61*(BB29-BB28)/Inputs!B28/12","v":{"v":135.38142153314246,"d":"135.38"}},{"$f":"BC28+'(Other Computations)'!B61*(BC29-BC28)/Inputs!B28/12","v":{"v":135.23130255378427,"d":"135.23"}},{"$f":"BD28+'(Other Computations)'!B61*(BD29-BD28)/Inputs!B28/12","v":{"v":135.08194836607947,"d":"135.08"}},{"$f":"BE28+'(Other Computations)'!B61*(BE29-BE28)/Inputs!B28/12","v":{"v":134.93082863452855,"d":"134.93"}},{"$f":"BF28+'(Other Computations)'!B61*(BF29-BF28)/Inputs!B28/12","v":{"v":134.7789485323832,"d":"134.78"}},{"$f":"BG28+'(Other Computations)'!B61*(BG29-BG28)/Inputs!B28/12","v":{"v":134.62549088779252,"d":"134.63"}},{"$f":"BH28+'(Other Computations)'!B61*(BH29-BH28)/Inputs!B28/12","v":{"v":134.472008489717,"d":"134.47"}},{"$f":"BI28+'(Other Computations)'!B61*(BI29-BI28)/Inputs!B28/12","v":{"v":134.31711144623165,"d":"134.32"}},{"$f":"BJ28+'(Other Computations)'!B61*(BJ29-BJ28)/Inputs!B28/12","v":{"v":134.16172381767595,"d":"134.16"}},{"$f":"BK28+'(Other Computations)'!B61*(BK29-BK28)/Inputs!B28/12","v":{"v":134.00415049086672,"d":"134.00"}},{"$f":"BL28+'(Other Computations)'!B61*(BL29-BL28)/Inputs!B28/12","v":{"v":133.8470337258057,"d":"133.85"}},{"$f":"BM28","v":{"v":133.8470337258057,"d":"133.85"}},{"$f":"BM28+'(Other Computations)'!B61*(BM29-BM28)/Inputs!B28/12","v":{"v":133.6899411929601,"d":"133.69"}},{"$f":"BO28+'(Other Computations)'!B61*(BO29-BO28)/Inputs!B28/12","v":{"v":133.533254402342,"d":"133.53"}},{"$f":"BP28+'(Other Computations)'!B61*(BP29-BP28)/Inputs!B28/12","v":{"v":133.37687141495687,"d":"133.38"}},{"$f":"BQ28+'(Other Computations)'!B61*(BQ29-BQ28)/Inputs!B28/12","v":{"v":133.22086333585494,"d":"133.22"}},{"$f":"BR28+'(Other Computations)'!B61*(BR29-BR28)/Inputs!B28/12","v":{"v":133.06387408072285,"d":"133.06"}},{"$f":"BS28+'(Other Computations)'!B61*(BS29-BS28)/Inputs!B28/12","v":{"v":132.9068088240529,"d":"132.91"}},{"$f":"BT28+'(Other Computations)'!B61*(BT29-BT28)/Inputs!B28/12","v":{"v":132.748425085212,"d":"132.75"}},{"$f":"BU28+'(Other Computations)'!B61*(BU29-BU28)/Inputs!B28/12","v":{"v":132.5904066575425,"d":"132.59"}},{"$f":"BV28+'(Other Computations)'!B61*(BV29-BV28)/Inputs!B28/12","v":{"v":132.4318167200261,"d":"132.43"}},{"$f":"BW28+'(Other Computations)'!B61*(BW29-BW28)/Inputs!B28/12","v":{"v":132.2723445391855,"d":"132.27"}},{"$f":"BX28+'(Other Computations)'!B61*(BX29-BX28)/Inputs!B28/12","v":{"v":132.11172061028725,"d":"132.11"}},{"$f":"BY28+'(Other Computations)'!B61*(BY29-BY28)/Inputs!B28/12","v":{"v":131.95183317543948,"d":"131.95"}},{"$f":"BZ28","v":{"v":131.95183317543948,"d":"131.95"}},{"$f":"BZ28+'(Other Computations)'!B61*(BZ29-BZ28)/Inputs!B28/12","v":{"v":131.791747539822,"d":"131.79"}},{"$f":"CB28+'(Other Computations)'!B61*(CB29-CB28)/Inputs!B28/12","v":{"v":131.6321671725921,"d":"131.63"}},{"$f":"CC28+'(Other Computations)'!B61*(CC29-CC28)/Inputs!B28/12","v":{"v":131.4717677645761,"d":"131.47"}},{"$f":"CD28+'(Other Computations)'!B61*(CD29-CD28)/Inputs!B28/12","v":{"v":131.31187887358257,"d":"131.31"}},{"$f":"CE28+'(Other Computations)'!B61*(CE29-CE28)/Inputs!B28/12","v":{"v":131.15155194574965,"d":"131.15"}},{"$f":"CF28+'(Other Computations)'!B61*(CF29-CF28)/Inputs!B28/12","v":{"v":130.99102256373575,"d":"130.99"}},{"$f":"CG28+'(Other Computations)'!B61*(CG29-CG28)/Inputs!B28/12","v":{"v":130.83078562248824,"d":"130.83"}},{"$f":"CH28+'(Other Computations)'!B61*(CH29-CH28)/Inputs!B28/12","v":{"v":130.67032197794774,"d":"130.67"}},{"$f":"CI28+'(Other Computations)'!B61*(CI29-CI28)/Inputs!B28/12","v":{"v":130.5118463071565,"d":"130.51"}},{"$f":"CJ28+'(Other Computations)'!B61*(CJ29-CJ28)/Inputs!B28/12","v":{"v":130.3544789906167,"d":"130.35"}},{"$f":"CK28+'(Other Computations)'!B61*(CK29-CK28)/Inputs!B28/12","v":{"v":130.19715039618723,"d":"130.20"}},{"$f":"CL28+'(Other Computations)'!B61*(CL29-CL28)/Inputs!B28/12","v":{"v":130.04101211109116,"d":"130.04"}},{"$f":"CM28","v":{"v":130.04101211109116,"d":"130.04"}},{"$f":"CM28+'(Other Computations)'!B61*(CM29-CM28)/Inputs!B28/12","v":{"v":129.8852712269296,"d":"129.89"}},{"$f":"CO28+'(Other Computations)'!B61*(CO29-CO28)/Inputs!B28/12","v":{"v":129.72907638559317,"d":"129.73"}},{"$f":"CP28+'(Other Computations)'!B61*(CP29-CP28)/Inputs!B28/12","v":{"v":129.57400961566617,"d":"129.57"}},{"$f":"CQ28+'(Other Computations)'!B61*(CQ29-CQ28)/Inputs!B28/12","v":{"v":129.41979336993558,"d":"129.42"}},{"$f":"CR28+'(Other Computations)'!B61*(CR29-CR28)/Inputs!B28/12","v":{"v":129.26669382553752,"d":"129.27"}},{"$f":"CS28+'(Other Computations)'!B61*(CS29-CS28)/Inputs!B28/12","v":{"v":129.11389652164067,"d":"129.11"}},{"$f":"CT28+'(Other Computations)'!B61*(CT29-CT28)/Inputs!B28/12","v":{"v":128.96059800602913,"d":"128.96"}},{"$f":"CU28+'(Other Computations)'!B61*(CU29-CU28)/Inputs!B28/12","v":{"v":128.80615021139937,"d":"128.81"}},{"$f":"CV28+'(Other Computations)'!B61*(CV29-CV28)/Inputs!B28/12","v":{"v":128.65358971982334,"d":"128.65"}},{"$f":"CW28+'(Other Computations)'!B61*(CW29-CW28)/Inputs!B28/12","v":{"v":128.50180954954365,"d":"128.50"}},{"$f":"CX28+'(Other Computations)'!B61*(CX29-CX28)/Inputs!B28/12","v":{"v":128.35072083873666,"d":"128.35"}},{"$f":"CY28+'(Other Computations)'!B61*(CY29-CY28)/Inputs!B28/12","v":{"v":128.19851663451024,"d":"128.20"}},{"$f":"CZ28","v":{"v":128.19851663451024,"d":"128.20"}},{"$f":"CZ28+'(Other Computations)'!B61*(CZ29-CZ28)/Inputs!B28/12","v":{"v":128.0472941258485,"d":"128.05"}},{"$f":"DB28+'(Other Computations)'!B61*(DB29-DB28)/Inputs!B28/12","v":{"v":127.8976651232102,"d":"127.90"}},{"$f":"DC28+'(Other Computations)'!B61*(DC29-DC28)/Inputs!B28/12","v":{"v":127.7477407518407,"d":"127.75"}},{"$f":"DD28+'(Other Computations)'!B61*(DD29-DD28)/Inputs!B28/12","v":{"v":127.59706470684937,"d":"127.60"}},{"$f":"DE28+'(Other Computations)'!B61*(DE29-DE28)/Inputs!B28/12","v":{"v":127.44742216482877,"d":"127.45"}},{"$f":"DF28+'(Other Computations)'!B61*(DF29-DF28)/Inputs!B28/12","v":{"v":127.29881208783753,"d":"127.30"}},{"$f":"DG28+'(Other Computations)'!B61*(DG29-DG28)/Inputs!B28/12","v":{"v":127.15075929049488,"d":"127.15"}},{"$f":"DH28+'(Other Computations)'!B61*(DH29-DH28)/Inputs!B28/12","v":{"v":127.00351563049844,"d":"127.00"}},{"$f":"DI28+'(Other Computations)'!B61*(DI29-DI28)/Inputs!B28/12","v":{"v":126.855569844565,"d":"126.86"}},{"$f":"DJ28+'(Other Computations)'!B61*(DJ29-DJ28)/Inputs!B28/12","v":{"v":126.70882086920905,"d":"126.71"}},{"$f":"DK28+'(Other Computations)'!B61*(DK29-DK28)/Inputs!B28/12","v":{"v":126.56197783530187,"d":"126.56"}},{"$f":"DL28+'(Other Computations)'!B61*(DL29-DL28)/Inputs!B28/12","v":{"v":126.41618335870157,"d":"126.42"}},{"$f":"DM28","v":{"v":126.41618335870157,"d":"126.42"}},{"$f":"DM28+'(Other Computations)'!B61*(DM29-DM28)/Inputs!B28/12","v":{"v":126.27112943541589,"d":"126.27"}},{"$f":"DO28+'(Other Computations)'!B61*(DO29-DO28)/Inputs!B28/12","v":{"v":126.12607424155176,"d":"126.13"}},{"$f":"DP28+'(Other Computations)'!B61*(DP29-DP28)/Inputs!B28/12","v":{"v":125.98281145466531,"d":"125.98"}},{"$f":"DQ28+'(Other Computations)'!B61*(DQ29-DQ28)/Inputs!B28/12","v":{"v":125.84169926045425,"d":"125.84"}},{"$f":"DR28+'(Other Computations)'!B61*(DR29-DR28)/Inputs!B28/12","v":{"v":125.70010528475675,"d":"125.70"}},{"$f":"DS28+'(Other Computations)'!B61*(DS29-DS28)/Inputs!B28/12","v":{"v":125.56037059351729,"d":"125.56"}},{"$f":"DT28+'(Other Computations)'!B61*(DT29-DT28)/Inputs!B28/12","v":{"v":125.42263501174541,"d":"125.42"}},{"$f":"DU28+'(Other Computations)'!B61*(DU29-DU28)/Inputs!B28/12","v":{"v":125.28608359083232,"d":"125.29"}},{"$f":"DV28+'(Other Computations)'!B61*(DV29-DV28)/Inputs!B28/12","v":{"v":125.14939581220685,"d":"125.15"}},{"$f":"DW28+'(Other Computations)'!B61*(DW29-DW28)/Inputs!B28/12","v":{"v":125.01287889687976,"d":"125.01"}},{"$f":"DX28+'(Other Computations)'!B61*(DX29-DX28)/Inputs!B28/12","v":{"v":124.87502438969041,"d":"124.88"}},{"$f":"DY28+'(Other Computations)'!B61*(DY29-DY28)/Inputs!B28/12","v":{"v":124.73883365341622,"d":"124.74"}},{"$f":"DZ28","v":{"v":124.73883365341622,"d":"124.74"}},{"$f":"DZ28+'(Other Computations)'!B61*(DZ29-DZ28)/Inputs!B28/12","v":{"v":124.60405486092655,"d":"124.60"}},{"$f":"EB28+'(Other Computations)'!B61*(EB29-EB28)/Inputs!B28/12","v":{"v":124.4710752730341,"d":"124.47"}},{"$f":"EC28+'(Other Computations)'!B61*(EC29-EC28)/Inputs!B28/12","v":{"v":124.33834051257692,"d":"124.34"}},{"$f":"ED28+'(Other Computations)'!B61*(ED29-ED28)/Inputs!B28/12","v":{"v":124.20416952688481,"d":"124.20"}},{"$f":"EE28+'(Other Computations)'!B61*(EE29-EE28)/Inputs!B28/12","v":{"v":124.07009678254266,"d":"124.07"}},{"$f":"EF28+'(Other Computations)'!B61*(EF29-EF28)/Inputs!B28/12","v":{"v":123.93757862392154,"d":"123.94"}},{"$f":"EG28+'(Other Computations)'!B61*(EG29-EG28)/Inputs!B28/12","v":{"v":123.80691987524577,"d":"123.81"}},{"$f":"EH28+'(Other Computations)'!B61*(EH29-EH28)/Inputs!B28/12","v":{"v":123.6762356482542,"d":"123.68"}},{"$f":"EI28+'(Other Computations)'!B61*(EI29-EI28)/Inputs!B28/12","v":{"v":123.54661206554213,"d":"123.55"}},{"$f":"EJ28+'(Other Computations)'!B61*(EJ29-EJ28)/Inputs!B28/12","v":{"v":123.41591892018529,"d":"123.42"}},{"$f":"EK28+'(Other Computations)'!B61*(EK29-EK28)/Inputs!B28/12","v":{"v":123.28419589085445,"d":"123.28"}},{"$f":"EL28+'(Other Computations)'!B61*(EL29-EL28)/Inputs!B28/12","v":{"v":123.153885673068,"d":"123.15"}},{"$f":"EM28","v":{"v":123.153885673068,"d":"123.15"}}]
[{"$f":"Labels!B39","v":"Desired Employment"},{"$f":"(1-Inputs!B20)*B11/'(Other Computations)'!B130","v":{"v":140,"d":"140.00"}},{"$f":"(1-Inputs!B20)*C11/'(Other Computations)'!B130","v":{"v":139.63744425597147,"d":"139.64"}},{"$f":"(1-Inputs!B20)*D11/'(Other Computations)'!B130","v":{"v":139.2666814370156,"d":"139.27"}},{"$f":"(1-Inputs!B20)*E11/'(Other Computations)'!B130","v":{"v":138.8982258384326,"d":"138.90"}},{"$f":"(1-Inputs!B20)*F11/'(Other Computations)'!B130","v":{"v":138.6027011401314,"d":"138.60"}},{"$f":"(1-Inputs!B20)*G11/'(Other Computations)'!B130","v":{"v":138.34269219662775,"d":"138.34"}},{"$f":"(1-Inputs!B20)*H11/'(Other Computations)'!B130","v":{"v":138.1145653409998,"d":"138.11"}},{"$f":"(1-Inputs!B20)*I11/'(Other Computations)'!B130","v":{"v":137.72345439051654,"d":"137.72"}},{"$f":"(1-Inputs!B20)*J11/'(Other Computations)'!B130","v":{"v":137.34032378740008,"d":"137.34"}},{"$f":"(1-Inputs!B20)*K11/'(Other Computations)'!B130","v":{"v":137.01712971561565,"d":"137.02"}},{"$f":"(1-Inputs!B20)*L11/'(Other Computations)'!B130","v":{"v":136.69822712134007,"d":"136.70"}},{"$f":"(1-Inputs!B20)*M11/'(Other Computations)'!B130","v":{"v":136.39780394368591,"d":"136.40"}},{"$f":"SUM(B29:M29)","v":{"v":1658.039249167737,"d":"1,658.04"}},{"$f":"(1-Inputs!B20)*O11/'(Other Computations)'!B130","v":{"v":136.02008780422665,"d":"136.02"}},{"$f":"(1-Inputs!B20)*P11/'(Other Computations)'!B130","v":{"v":135.7277338947841,"d":"135.73"}},{"$f":"(1-Inputs!B20)*Q11/'(Other Computations)'!B130","v":{"v":135.4593670267969,"d":"135.46"}},{"$f":"(1-Inputs!B20)*R11/'(Other Computations)'!B130","v":{"v":135.24309211901755,"d":"135.24"}},{"$f":"(1-Inputs!B20)*S11/'(Other Computations)'!B130","v":{"v":134.95972936052453,"d":"134.96"}},{"$f":"(1-Inputs!B20)*T11/'(Other Computations)'!B130","v":{"v":134.58297406867263,"d":"134.58"}},{"$f":"(1-Inputs!B20)*U11/'(Other Computations)'!B130","v":{"v":134.27763543742503,"d":"134.28"}},{"$f":"(1-Inputs!B20)*V11/'(Other Computations)'!B130","v":{"v":134.00774959348368,"d":"134.01"}},{"$f":"(1-Inputs!B20)*W11/'(Other Computations)'!B130","v":{"v":133.72894799721738,"d":"133.73"}},{"$f":"(1-Inputs!B20)*X11/'(Other Computations)'!B130","v":{"v":133.56144702890984,"d":"133.56"}},{"$f":"(1-Inputs!B20)*Y11/'(Other Computations)'!B130","v":{"v":133.2838341792629,"d":"133.28"}},{"$f":"(1-Inputs!B20)*Z11/'(Other Computations)'!B130","v":{"v":132.9335957863944,"d":"132.93"}},{"$f":"SUM(O29:Z29)","v":{"v":1613.7861942967154,"d":"1,613.79"}},{"$f":"(1-Inputs!B20)*AB11/'(Other Computations)'!B130","v":{"v":132.62284550378416,"d":"132.62"}},{"$f":"(1-Inputs!B20)*AC11/'(Other Computations)'!B130","v":{"v":132.32827723070073,"d":"132.33"}},{"$f":"(1-Inputs!B20)*AD11/'(Other Computations)'!B130","v":{"v":132.08826292536392,"d":"132.09"}},{"$f":"(1-Inputs!B20)*AE11/'(Other Computations)'!B130","v":{"v":131.81385474297613,"d":"131.81"}},{"$f":"(1-Inputs!B20)*AF11/'(Other Computations)'!B130","v":{"v":131.4930220461761,"d":"131.49"}},{"$f":"(1-Inputs!B20)*AG11/'(Other Computations)'!B130","v":{"v":131.21536520468368,"d":"131.22"}},{"$f":"(1-Inputs!B20)*AH11/'(Other Computations)'!B130","v":{"v":131.0469629342708,"d":"131.05"}},{"$f":"(1-Inputs!B20)*AI11/'(Other Computations)'!B130","v":{"v":130.80484271370247,"d":"130.80"}},{"$f":"(1-Inputs!B20)*AJ11/'(Other Computations)'!B130","v":{"v":130.56449047407963,"d":"130.56"}},{"$f":"(1-Inputs!B20)*AK11/'(Other Computations)'!B130","v":{"v":130.29652955662016,"d":"130.30"}},{"$f":"(1-Inputs!B20)*AL11/'(Other Computations)'!B130","v":{"v":130.12618935226806,"d":"130.13"}},{"$f":"(1-Inputs!B20)*AM11/'(Other Computations)'!B130","v":{"v":129.87386017515428,"d":"129.87"}},{"$f":"SUM(AB29:AM29)","v":{"v":1574.27450285978,"d":"1,574.27"}},{"$f":"(1-Inputs!B20)*AO11/'(Other Computations)'!B130","v":{"v":129.5470717691448,"d":"129.55"}},{"$f":"(1-Inputs!B20)*AP11/'(Other Computations)'!B130","v":{"v":129.32084426058128,"d":"129.32"}},{"$f":"(1-Inputs!B20)*AQ11/'(Other Computations)'!B130","v":{"v":129.09206065629843,"d":"129.09"}},{"$f":"(1-Inputs!B20)*AR11/'(Other Computations)'!B130","v":{"v":128.85427208309173,"d":"128.85"}},{"$f":"(1-Inputs!B20)*AS11/'(Other Computations)'!B130","v":{"v":128.57740887749483,"d":"128.58"}},{"$f":"(1-Inputs!B20)*AT11/'(Other Computations)'!B130","v":{"v":128.38036230532956,"d":"128.38"}},{"$f":"(1-Inputs!B20)*AU11/'(Other Computations)'!B130","v":{"v":128.2175773783721,"d":"128.22"}},{"$f":"(1-Inputs!B20)*AV11/'(Other Computations)'!B130","v":{"v":128.02643956145732,"d":"128.03"}},{"$f":"(1-Inputs!B20)*AW11/'(Other Computations)'!B130","v":{"v":127.81118689703547,"d":"127.81"}},{"$f":"(1-Inputs!B20)*AX11/'(Other Computations)'!B130","v":{"v":127.63364054110791,"d":"127.63"}},{"$f":"(1-Inputs!B20)*AY11/'(Other Computations)'!B130","v":{"v":127.37354161407683,"d":"127.37"}},{"$f":"(1-Inputs!B20)*AZ11/'(Other Computations)'!B130","v":{"v":127.12413683096439,"d":"127.12"}},{"$f":"SUM(AO29:AZ29)","v":{"v":1539.9585427749546,"d":"1,539.96"}},{"$f":"(1-Inputs!B20)*BB11/'(Other Computations)'!B130","v":{"v":126.8380617579347,"d":"126.84"}},{"$f":"(1-Inputs!B20)*BC11/'(Other Computations)'!B130","v":{"v":126.7345683221107,"d":"126.73"}},{"$f":"(1-Inputs!B20)*BD11/'(Other Computations)'!B130","v":{"v":126.62850134198769,"d":"126.63"}},{"$f":"(1-Inputs!B20)*BE11/'(Other Computations)'!B130","v":{"v":126.37745182874605,"d":"126.38"}},{"$f":"(1-Inputs!B20)*BF11/'(Other Computations)'!B130","v":{"v":126.18253475095622,"d":"126.18"}},{"$f":"(1-Inputs!B20)*BG11/'(Other Computations)'!B130","v":{"v":125.93978820396107,"d":"125.94"}},{"$f":"(1-Inputs!B20)*BH11/'(Other Computations)'!B130","v":{"v":125.78490475864369,"d":"125.78"}},{"$f":"(1-Inputs!B20)*BI11/'(Other Computations)'!B130","v":{"v":125.5499387849599,"d":"125.55"}},{"$f":"(1-Inputs!B20)*BJ11/'(Other Computations)'!B130","v":{"v":125.36678404142278,"d":"125.37"}},{"$f":"(1-Inputs!B20)*BK11/'(Other Computations)'!B130","v":{"v":125.08550019346399,"d":"125.09"}},{"$f":"(1-Inputs!B20)*BL11/'(Other Computations)'!B130","v":{"v":124.95422482335042,"d":"124.95"}},{"$f":"(1-Inputs!B20)*BM11/'(Other Computations)'!B130","v":{"v":124.79850383389999,"d":"124.80"}},{"$f":"SUM(BB29:BM29)","v":{"v":1510.2407626414372,"d":"1,510.24"}},{"$f":"(1-Inputs!B20)*BO11/'(Other Computations)'!B130","v":{"v":124.66478205335699,"d":"124.66"}},{"$f":"(1-Inputs!B20)*BP11/'(Other Computations)'!B130","v":{"v":124.52559432895768,"d":"124.53"}},{"$f":"(1-Inputs!B20)*BQ11/'(Other Computations)'!B130","v":{"v":124.3908060586858,"d":"124.39"}},{"$f":"(1-Inputs!B20)*BR11/'(Other Computations)'!B130","v":{"v":124.17828224024652,"d":"124.18"}},{"$f":"(1-Inputs!B20)*BS11/'(Other Computations)'!B130","v":{"v":124.01691529653343,"d":"124.02"}},{"$f":"(1-Inputs!B20)*BT11/'(Other Computations)'!B130","v":{"v":123.78390546681769,"d":"123.78"}},{"$f":"(1-Inputs!B20)*BU11/'(Other Computations)'!B130","v":{"v":123.64656365144889,"d":"123.65"}},{"$f":"(1-Inputs!B20)*BV11/'(Other Computations)'!B130","v":{"v":123.45562625659801,"d":"123.46"}},{"$f":"(1-Inputs!B20)*BW11/'(Other Computations)'!B130","v":{"v":123.24621910360852,"d":"123.25"}},{"$f":"(1-Inputs!B20)*BX11/'(Other Computations)'!B130","v":{"v":123.02040623464701,"d":"123.02"}},{"$f":"(1-Inputs!B20)*BY11/'(Other Computations)'!B130","v":{"v":122.90220436305565,"d":"122.90"}},{"$f":"(1-Inputs!B20)*BZ11/'(Other Computations)'!B130","v":{"v":122.7309005638735,"d":"122.73"}},{"$f":"SUM(BO29:BZ29)","v":{"v":1484.56220561783,"d":"1,484.56"}},{"$f":"(1-Inputs!B20)*CB11/'(Other Computations)'!B130","v":{"v":122.59991838737899,"d":"122.60"}},{"$f":"(1-Inputs!B20)*CC11/'(Other Computations)'!B130","v":{"v":122.39316127087027,"d":"122.39"}},{"$f":"(1-Inputs!B20)*CD11/'(Other Computations)'!B130","v":{"v":122.26216764334845,"d":"122.26"}},{"$f":"(1-Inputs!B20)*CE11/'(Other Computations)'!B130","v":{"v":122.07704783040631,"d":"122.08"}},{"$f":"(1-Inputs!B20)*CF11/'(Other Computations)'!B130","v":{"v":121.90505954174974,"d":"121.91"}},{"$f":"(1-Inputs!B20)*CG11/'(Other Computations)'!B130","v":{"v":121.76137474787869,"d":"121.76"}},{"$f":"(1-Inputs!B20)*CH11/'(Other Computations)'!B130","v":{"v":121.58807969695609,"d":"121.59"}},{"$f":"(1-Inputs!B20)*CI11/'(Other Computations)'!B130","v":{"v":121.5421233403724,"d":"121.54"}},{"$f":"(1-Inputs!B20)*CJ11/'(Other Computations)'!B130","v":{"v":121.44748887446437,"d":"121.45"}},{"$f":"(1-Inputs!B20)*CK11/'(Other Computations)'!B130","v":{"v":121.29235195147747,"d":"121.29"}},{"$f":"(1-Inputs!B20)*CL11/'(Other Computations)'!B130","v":{"v":121.20358517465439,"d":"121.20"}},{"$f":"(1-Inputs!B20)*CM11/'(Other Computations)'!B130","v":{"v":121.07033718338573,"d":"121.07"}},{"$f":"SUM(CB29:CM29)","v":{"v":1461.1426956429427,"d":"1,461.14"}},{"$f":"(1-Inputs!B20)*CO11/'(Other Computations)'!B130","v":{"v":120.88844836595136,"d":"120.89"}},{"$f":"(1-Inputs!B20)*CP11/'(Other Computations)'!B130","v":{"v":120.79723043779748,"d":"120.80"}},{"$f":"(1-Inputs!B20)*CQ11/'(Other Computations)'!B130","v":{"v":120.69115386158413,"d":"120.69"}},{"$f":"(1-Inputs!B20)*CR11/'(Other Computations)'!B130","v":{"v":120.6012596126076,"d":"120.60"}},{"$f":"(1-Inputs!B20)*CS11/'(Other Computations)'!B130","v":{"v":120.46556912107948,"d":"120.47"}},{"$f":"(1-Inputs!B20)*CT11/'(Other Computations)'!B130","v":{"v":120.28390202241644,"d":"120.28"}},{"$f":"(1-Inputs!B20)*CU11/'(Other Computations)'!B130","v":{"v":120.06440503535434,"d":"120.06"}},{"$f":"(1-Inputs!B20)*CV11/'(Other Computations)'!B130","v":{"v":120.01866589662008,"d":"120.02"}},{"$f":"(1-Inputs!B20)*CW11/'(Other Computations)'!B130","v":{"v":119.91105191171374,"d":"119.91"}},{"$f":"(1-Inputs!B20)*CX11/'(Other Computations)'!B130","v":{"v":119.79909980706114,"d":"119.80"}},{"$f":"(1-Inputs!B20)*CY11/'(Other Computations)'!B130","v":{"v":119.58375867529536,"d":"119.58"}},{"$f":"(1-Inputs!B20)*CZ11/'(Other Computations)'!B130","v":{"v":119.48810013559442,"d":"119.49"}},{"$f":"SUM(CO29:CZ29)","v":{"v":1442.5926448830753,"d":"1,442.59"}},{"$f":"(1-Inputs!B20)*DB11/'(Other Computations)'!B130","v":{"v":119.428663573882,"d":"119.43"}},{"$f":"(1-Inputs!B20)*DC11/'(Other Computations)'!B130","v":{"v":119.26202133232617,"d":"119.26"}},{"$f":"(1-Inputs!B20)*DD11/'(Other Computations)'!B130","v":{"v":119.06880056034002,"d":"119.07"}},{"$f":"(1-Inputs!B20)*DE11/'(Other Computations)'!B130","v":{"v":118.97765428646272,"d":"118.98"}},{"$f":"(1-Inputs!B20)*DF11/'(Other Computations)'!B130","v":{"v":118.88748173013406,"d":"118.89"}},{"$f":"(1-Inputs!B20)*DG11/'(Other Computations)'!B130","v":{"v":118.77097096090023,"d":"118.77"}},{"$f":"(1-Inputs!B20)*DH11/'(Other Computations)'!B130","v":{"v":118.66952447470027,"d":"118.67"}},{"$f":"(1-Inputs!B20)*DI11/'(Other Computations)'!B130","v":{"v":118.48183836073183,"d":"118.48"}},{"$f":"(1-Inputs!B20)*DJ11/'(Other Computations)'!B130","v":{"v":118.40282886406249,"d":"118.40"}},{"$f":"(1-Inputs!B20)*DK11/'(Other Computations)'!B130","v":{"v":118.25066211615561,"d":"118.25"}},{"$f":"(1-Inputs!B20)*DL11/'(Other Computations)'!B130","v":{"v":118.16421598312415,"d":"118.16"}},{"$f":"(1-Inputs!B20)*DM11/'(Other Computations)'!B130","v":{"v":118.06107737744578,"d":"118.06"}},{"$f":"SUM(DB29:DM29)","v":{"v":1424.4257396202652,"d":"1,424.43"}},{"$f":"(1-Inputs!B20)*DO11/'(Other Computations)'!B130","v":{"v":117.91595026884211,"d":"117.92"}},{"$f":"(1-Inputs!B20)*DP11/'(Other Computations)'!B130","v":{"v":117.8741377168922,"d":"117.87"}},{"$f":"(1-Inputs!B20)*DQ11/'(Other Computations)'!B130","v":{"v":117.8547490681079,"d":"117.85"}},{"$f":"(1-Inputs!B20)*DR11/'(Other Computations)'!B130","v":{"v":117.68588626027784,"d":"117.69"}},{"$f":"(1-Inputs!B20)*DS11/'(Other Computations)'!B130","v":{"v":117.65138706936453,"d":"117.65"}},{"$f":"(1-Inputs!B20)*DT11/'(Other Computations)'!B130","v":{"v":117.62680108345697,"d":"117.63"}},{"$f":"(1-Inputs!B20)*DU11/'(Other Computations)'!B130","v":{"v":117.5572731671511,"d":"117.56"}},{"$f":"(1-Inputs!B20)*DV11/'(Other Computations)'!B130","v":{"v":117.41286754200496,"d":"117.41"}},{"$f":"(1-Inputs!B20)*DW11/'(Other Computations)'!B130","v":{"v":117.28602148936625,"d":"117.29"}},{"$f":"(1-Inputs!B20)*DX11/'(Other Computations)'!B130","v":{"v":117.07245928277375,"d":"117.07"}},{"$f":"(1-Inputs!B20)*DY11/'(Other Computations)'!B130","v":{"v":117.03043798029707,"d":"117.03"}},{"$f":"(1-Inputs!B20)*DZ11/'(Other Computations)'!B130","v":{"v":116.97557520601103,"d":"116.98"}},{"$f":"SUM(DO29:DZ29)","v":{"v":1409.9435461345456,"d":"1,409.94"}},{"$f":"(1-Inputs!B20)*EB11/'(Other Computations)'!B130","v":{"v":116.94443059832132,"d":"116.94"}},{"$f":"(1-Inputs!B20)*EC11/'(Other Computations)'!B130","v":{"v":116.82555307070041,"d":"116.83"}},{"$f":"(1-Inputs!B20)*ED11/'(Other Computations)'!B130","v":{"v":116.6100917367113,"d":"116.61"}},{"$f":"(1-Inputs!B20)*EE11/'(Other Computations)'!B130","v":{"v":116.481579452777,"d":"116.48"}},{"$f":"(1-Inputs!B20)*EF11/'(Other Computations)'!B130","v":{"v":116.43705084596576,"d":"116.44"}},{"$f":"(1-Inputs!B20)*EG11/'(Other Computations)'!B130","v":{"v":116.41163470019725,"d":"116.41"}},{"$f":"(1-Inputs!B20)*EH11/'(Other Computations)'!B130","v":{"v":116.27950840053184,"d":"116.28"}},{"$f":"(1-Inputs!B20)*EI11/'(Other Computations)'!B130","v":{"v":116.20991728403888,"d":"116.21"}},{"$f":"(1-Inputs!B20)*EJ11/'(Other Computations)'!B130","v":{"v":116.01868689298765,"d":"116.02"}},{"$f":"(1-Inputs!B20)*EK11/'(Other Computations)'!B130","v":{"v":115.82867243072913,"d":"115.83"}},{"$f":"(1-Inputs!B20)*EL11/'(Other Computations)'!B130","v":{"v":115.7783273463551,"d":"115.78"}},{"$f":"(1-Inputs!B20)*EM11/'(Other Computations)'!B130","v":{"v":115.61410885565385,"d":"115.61"}},{"$f":"SUM(EB29:EM29)","v":{"v":1395.4395616149695,"d":"1,395.44"}}]
[]
[]
[{"$f":"\"Income\"","v":"Income"}]
[{"$f":"\" \"","v":" "}]
[null,{"$f":"ZZZ__FnCalls!F7","v":"Jan 2010"},{"$f":"ZZZ__FnCalls!F8","v":"Feb 2010"},{"$f":"ZZZ__FnCalls!F9","v":"Mar 2010"},{"$f":"ZZZ__FnCalls!F10","v":"Apr 2010"},{"$f":"ZZZ__FnCalls!F11","v":"May 2010"},{"$f":"ZZZ__FnCalls!F12","v":"Jun 2010"},{"$f":"ZZZ__FnCalls!F13","v":"Jul 2010"},{"$f":"ZZZ__FnCalls!F14","v":"Aug 2010"},{"$f":"ZZZ__FnCalls!F15","v":"Sep 2010"},{"$f":"ZZZ__FnCalls!F16","v":"Oct 2010"},{"$f":"ZZZ__FnCalls!F17","v":"Nov 2010"},{"$f":"ZZZ__FnCalls!F18","v":"Dec 2010"},{"$f":"ZZZ__FnCalls!H7","v":"2010"},{"$f":"ZZZ__FnCalls!F19","v":"Jan 2011"},{"$f":"ZZZ__FnCalls!F20","v":"Feb 2011"},{"$f":"ZZZ__FnCalls!F21","v":"Mar 2011"},{"$f":"ZZZ__FnCalls!F22","v":"Apr 2011"},{"$f":"ZZZ__FnCalls!F23","v":"May 2011"},{"$f":"ZZZ__FnCalls!F24","v":"Jun 2011"},{"$f":"ZZZ__FnCalls!F25","v":"Jul 2011"},{"$f":"ZZZ__FnCalls!F26","v":"Aug 2011"},{"$f":"ZZZ__FnCalls!F27","v":"Sep 2011"},{"$f":"ZZZ__FnCalls!F28","v":"Oct 2011"},{"$f":"ZZZ__FnCalls!F29","v":"Nov 2011"},{"$f":"ZZZ__FnCalls!F30","v":"Dec 2011"},{"$f":"ZZZ__FnCalls!H19","v":"2011"},{"$f":"ZZZ__FnCalls!F31","v":"Jan 2012"},{"$f":"ZZZ__FnCalls!F32","v":"Feb 2012"},{"$f":"ZZZ__FnCalls!F33","v":"Mar 2012"},{"$f":"ZZZ__FnCalls!F34","v":"Apr 2012"},{"$f":"ZZZ__FnCalls!F35","v":"May 2012"},{"$f":"ZZZ__FnCalls!F36","v":"Jun 2012"},{"$f":"ZZZ__FnCalls!F37","v":"Jul 2012"},{"$f":"ZZZ__FnCalls!F38","v":"Aug 2012"},{"$f":"ZZZ__FnCalls!F39","v":"Sep 2012"},{"$f":"ZZZ__FnCalls!F40","v":"Oct 2012"},{"$f":"ZZZ__FnCalls!F41","v":"Nov 2012"},{"$f":"ZZZ__FnCalls!F42","v":"Dec 2012"},{"$f":"ZZZ__FnCalls!H31","v":"2012"},{"$f":"ZZZ__FnCalls!F43","v":"Jan 2013"},{"$f":"ZZZ__FnCalls!F44","v":"Feb 2013"},{"$f":"ZZZ__FnCalls!F45","v":"Mar 2013"},{"$f":"ZZZ__FnCalls!F46","v":"Apr 2013"},{"$f":"ZZZ__FnCalls!F47","v":"May 2013"},{"$f":"ZZZ__FnCalls!F48","v":"Jun 2013"},{"$f":"ZZZ__FnCalls!F49","v":"Jul 2013"},{"$f":"ZZZ__FnCalls!F50","v":"Aug 2013"},{"$f":"ZZZ__FnCalls!F51","v":"Sep 2013"},{"$f":"ZZZ__FnCalls!F52","v":"Oct 2013"},{"$f":"ZZZ__FnCalls!F53","v":"Nov 2013"},{"$f":"ZZZ__FnCalls!F54","v":"Dec 2013"},{"$f":"ZZZ__FnCalls!H43","v":"2013"},{"$f":"ZZZ__FnCalls!F55","v":"Jan 2014"},{"$f":"ZZZ__FnCalls!F56","v":"Feb 2014"},{"$f":"ZZZ__FnCalls!F57","v":"Mar 2014"},{"$f":"ZZZ__FnCalls!F58","v":"Apr 2014"},{"$f":"ZZZ__FnCalls!F59","v":"May 2014"},{"$f":"ZZZ__FnCalls!F60","v":"Jun 2014"},{"$f":"ZZZ__FnCalls!F61","v":"Jul 2014"},{"$f":"ZZZ__FnCalls!F62","v":"Aug 2014"},{"$f":"ZZZ__FnCalls!F63","v":"Sep 2014"},{"$f":"ZZZ__FnCalls!F64","v":"Oct 2014"},{"$f":"ZZZ__FnCalls!F65","v":"Nov 2014"},{"$f":"ZZZ__FnCalls!F66","v":"Dec 2014"},{"$f":"ZZZ__FnCalls!H55","v":"2014"},{"$f":"ZZZ__FnCalls!F67","v":"Jan 2015"},{"$f":"ZZZ__FnCalls!F68","v":"Feb 2015"},{"$f":"ZZZ__FnCalls!F69","v":"Mar 2015"},{"$f":"ZZZ__FnCalls!F70","v":"Apr 2015"},{"$f":"ZZZ__FnCalls!F71","v":"May 2015"},{"$f":"ZZZ__FnCalls!F72","v":"Jun 2015"},{"$f":"ZZZ__FnCalls!F73","v":"Jul 2015"},{"$f":"ZZZ__FnCalls!F74","v":"Aug 2015"},{"$f":"ZZZ__FnCalls!F75","v":"Sep 2015"},{"$f":"ZZZ__FnCalls!F76","v":"Oct 2015"},{"$f":"ZZZ__FnCalls!F77","v":"Nov 2015"},{"$f":"ZZZ__FnCalls!F78","v":"Dec 2015"},{"$f":"ZZZ__FnCalls!H67","v":"2015"},{"$f":"ZZZ__FnCalls!F79","v":"Jan 2016"},{"$f":"ZZZ__FnCalls!F80","v":"Feb 2016"},{"$f":"ZZZ__FnCalls!F81","v":"Mar 2016"},{"$f":"ZZZ__FnCalls!F82","v":"Apr 2016"},{"$f":"ZZZ__FnCalls!F83","v":"May 2016"},{"$f":"ZZZ__FnCalls!F84","v":"Jun 2016"},{"$f":"ZZZ__FnCalls!F85","v":"Jul 2016"},{"$f":"ZZZ__FnCalls!F86","v":"Aug 2016"},{"$f":"ZZZ__FnCalls!F87","v":"Sep 2016"},{"$f":"ZZZ__FnCalls!F88","v":"Oct 2016"},{"$f":"ZZZ__FnCalls!F89","v":"Nov 2016"},{"$f":"ZZZ__FnCalls!F90","v":"Dec 2016"},{"$f":"ZZZ__FnCalls!H79","v":"2016"},{"$f":"ZZZ__FnCalls!F91","v":"Jan 2017"},{"$f":"ZZZ__FnCalls!F92","v":"Feb 2017"},{"$f":"ZZZ__FnCalls!F93","v":"Mar 2017"},{"$f":"ZZZ__FnCalls!F94","v":"Apr 2017"},{"$f":"ZZZ__FnCalls!F95","v":"May 2017"},{"$f":"ZZZ__FnCalls!F96","v":"Jun 2017"},{"$f":"ZZZ__FnCalls!F97","v":"Jul 2017"},{"$f":"ZZZ__FnCalls!F98","v":"Aug 2017"},{"$f":"ZZZ__FnCalls!F99","v":"Sep 2017"},{"$f":"ZZZ__FnCalls!F100","v":"Oct 2017"},{"$f":"ZZZ__FnCalls!F101","v":"Nov 2017"},{"$f":"ZZZ__FnCalls!F102","v":"Dec 2017"},{"$f":"ZZZ__FnCalls!H91","v":"2017"},{"$f":"ZZZ__FnCalls!F103","v":"Jan 2018"},{"$f":"ZZZ__FnCalls!F104","v":"Feb 2018"},{"$f":"ZZZ__FnCalls!F105","v":"Mar 2018"},{"$f":"ZZZ__FnCalls!F106","v":"Apr 2018"},{"$f":"ZZZ__FnCalls!F107","v":"May 2018"},{"$f":"ZZZ__FnCalls!F108","v":"Jun 2018"},{"$f":"ZZZ__FnCalls!F109","v":"Jul 2018"},{"$f":"ZZZ__FnCalls!F110","v":"Aug 2018"},{"$f":"ZZZ__FnCalls!F111","v":"Sep 2018"},{"$f":"ZZZ__FnCalls!F112","v":"Oct 2018"},{"$f":"ZZZ__FnCalls!F113","v":"Nov 2018"},{"$f":"ZZZ__FnCalls!F114","v":"Dec 2018"},{"$f":"ZZZ__FnCalls!H103","v":"2018"},{"$f":"ZZZ__FnCalls!F115","v":"Jan 2019"},{"$f":"ZZZ__FnCalls!F116","v":"Feb 2019"},{"$f":"ZZZ__FnCalls!F117","v":"Mar 2019"},{"$f":"ZZZ__FnCalls!F118","v":"Apr 2019"},{"$f":"ZZZ__FnCalls!F119","v":"May 2019"},{"$f":"ZZZ__FnCalls!F120","v":"Jun 2019"},{"$f":"ZZZ__FnCalls!F121","v":"Jul 2019"},{"$f":"ZZZ__FnCalls!F122","v":"Aug 2019"},{"$f":"ZZZ__FnCalls!F123","v":"Sep 2019"},{"$f":"ZZZ__FnCalls!F124","v":"Oct 2019"},{"$f":"ZZZ__FnCalls!F125","v":"Nov 2019"},{"$f":"ZZZ__FnCalls!F126","v":"Dec 2019"},{"$f":"ZZZ__FnCalls!H115","v":"2019"},{"$f":"ZZZ__FnCalls!F127","v":"Jan 2020"},{"$f":"ZZZ__FnCalls!F128","v":"Feb 2020"},{"$f":"ZZZ__FnCalls!F129","v":"Mar 2020"},{"$f":"ZZZ__FnCalls!F130","v":"Apr 2020"},{"$f":"ZZZ__FnCalls!F131","v":"May 2020"},{"$f":"ZZZ__FnCalls!F132","v":"Jun 2020"},{"$f":"ZZZ__FnCalls!F133","v":"Jul 2020"},{"$f":"ZZZ__FnCalls!F134","v":"Aug 2020"},{"$f":"ZZZ__FnCalls!F135","v":"Sep 2020"},{"$f":"ZZZ__FnCalls!F136","v":"Oct 2020"},{"$f":"ZZZ__FnCalls!F137","v":"Nov 2020"},{"$f":"ZZZ__FnCalls!F138","v":"Dec 2020"},{"$f":"ZZZ__FnCalls!H127","v":"2020"}]
[{"$f":"Labels!B55","v":"Current Disposable Income"},{"$f":"B44-B54+B38","v":{"v":855492.7939183748,"d":"$855,493"}},{"v":870001.696961098,"d":"$870,002"},{"v":845771.6359089069,"d":"$845,772"},{"v":798635.1322668182,"d":"$798,635"},{"v":807547.2915370219,"d":"$807,547"},{"v":845761.6227852188,"d":"$845,762"},{"v":846797.9449635037,"d":"$846,798"},{"v":850055.6259834437,"d":"$850,056"},{"v":816078.0501505971,"d":"$816,078"},{"v":815510.9039580974,"d":"$815,511"},{"v":817853.9097572907,"d":"$817,854"},{"v":815856.3829233759,"d":"$815,856"},{"$f":"SUM(B35:M35)","v":{"v":9985362.991113747,"d":"$9,985,363"}},{"$f":"O44-O54+O38","v":{"v":840325.5547894526,"d":"$840,326"}},{"v":818436.3142932245,"d":"$818,436"},{"v":843393.4498761507,"d":"$843,393"},{"v":854305.797801318,"d":"$854,306"},{"v":849809.5150090941,"d":"$849,810"},{"v":799029.772841946,"d":"$799,030"},{"v":813094.9813106257,"d":"$813,095"},{"v":816160.6156243939,"d":"$816,161"},{"v":809464.7760152884,"d":"$809,465"},{"v":829326.5445037788,"d":"$829,327"},{"v":778517.5461727233,"d":"$778,518"},{"v":818096.7817348348,"d":"$818,097"},{"$f":"SUM(O35:Z35)","v":{"v":9869961.649972832,"d":"$9,869,962"}},{"$f":"AB44-AB54+AB38","v":{"v":816592.7929824716,"d":"$816,593"}},{"v":809727.04306149,"d":"$809,727"},{"v":803901.0211275305,"d":"$803,901"},{"v":776861.1853981494,"d":"$776,861"},{"v":819091.4080663837,"d":"$819,091"},{"v":814386.5447027195,"d":"$814,387"},{"v":839031.8443076765,"d":"$839,032"},{"v":782483.051165731,"d":"$782,483"},{"v":761888.4638154329,"d":"$761,888"},{"v":772983.8445569022,"d":"$772,984"},{"v":791631.1266551943,"d":"$791,631"},{"v":826144.3888061397,"d":"$826,144"},{"$f":"SUM(AB35:AM35)","v":{"v":9614722.714645822,"d":"$9,614,723"}},{"$f":"AO44-AO54+AO38","v":{"v":777452.0294759005,"d":"$777,452"}},{"v":789481.805581725,"d":"$789,482"},{"v":784354.9331721105,"d":"$784,355"},{"v":765947.1636259843,"d":"$765,947"},{"v":761612.32027742,"d":"$761,612"},{"v":754617.3460240854,"d":"$754,617"},{"v":794509.9959140052,"d":"$794,510"},{"v":798798.3143205993,"d":"$798,798"},{"v":781802.4482121539,"d":"$781,802"},{"v":771497.8820296392,"d":"$771,498"},{"v":786406.9956853156,"d":"$786,407"},{"v":778873.0987223269,"d":"$778,873"},{"$f":"SUM(AO35:AZ35)","v":{"v":9345354.333041267,"d":"$9,345,354"}},{"$f":"BB44-BB54+BB38","v":{"v":801131.3798645588,"d":"$801,131"}},{"v":771786.7635937369,"d":"$771,787"},{"v":771116.2680674063,"d":"$771,116"},{"v":772892.4883952826,"d":"$772,892"},{"v":783226.000404816,"d":"$783,226"},{"v":797637.871664048,"d":"$797,638"},{"v":792892.1549785713,"d":"$792,892"},{"v":751243.3470392287,"d":"$751,243"},{"v":782790.7793909489,"d":"$782,791"},{"v":766204.2327247725,"d":"$766,204"},{"v":773059.1408357165,"d":"$773,059"},{"v":783863.2069917088,"d":"$783,863"},{"$f":"SUM(BB35:BM35)","v":{"v":9347843.633950796,"d":"$9,347,844"}},{"$f":"BO44-BO54+BO38","v":{"v":758696.1709643172,"d":"$758,696"}},{"v":780667.179052325,"d":"$780,667"},{"v":760675.3814308398,"d":"$760,675"},{"v":770687.5850577089,"d":"$770,688"},{"v":759482.764445258,"d":"$759,483"},{"v":779353.2925174377,"d":"$779,353"},{"v":773813.0925517655,"d":"$773,813"},{"v":742096.4174685817,"d":"$742,096"},{"v":786094.9294794062,"d":"$786,095"},{"v":793053.9065424082,"d":"$793,054"},{"v":760998.9261352232,"d":"$760,999"},{"v":780185.3207467269,"d":"$780,185"},{"$f":"SUM(BO35:BZ35)","v":{"v":9245804.966392,"d":"$9,245,805"}},{"$f":"CB44-CB54+CB38","v":{"v":764401.6112086169,"d":"$764,402"}},{"v":765239.1075616911,"d":"$765,239"},{"v":765683.0966581906,"d":"$765,683"},{"v":755181.1500649725,"d":"$755,181"},{"v":754429.0374583452,"d":"$754,429"},{"v":767549.7130351296,"d":"$767,550"},{"v":729743.4174713521,"d":"$729,743"},{"v":756282.740564928,"d":"$756,283"},{"v":766950.4170393745,"d":"$766,950"},{"v":748953.9866583983,"d":"$748,954"},{"v":761826.488099691,"d":"$761,826"},{"v":739319.0669546728,"d":"$739,319"},{"$f":"SUM(CB35:CM35)","v":{"v":9075559.832775364,"d":"$9,075,560"}},{"$f":"CO44-CO54+CO38","v":{"v":778548.3276748072,"d":"$778,548"}},{"v":752263.5331143124,"d":"$752,264"},{"v":731940.8084414281,"d":"$731,941"},{"v":752726.644922348,"d":"$752,727"},{"v":729696.6210033133,"d":"$729,697"},{"v":743137.0655113049,"d":"$743,137"},{"v":741258.4137190998,"d":"$741,258"},{"v":764492.8932105752,"d":"$764,493"},{"v":741034.1291227886,"d":"$741,034"},{"v":762774.8147971896,"d":"$762,775"},{"v":750747.1193882482,"d":"$750,747"},{"v":729599.892802205,"d":"$729,600"},{"$f":"SUM(CO35:CZ35)","v":{"v":8978220.263707621,"d":"$8,978,220"}},{"$f":"DB44-DB54+DB38","v":{"v":737900.6448757601,"d":"$737,901"}},{"v":782903.9290576081,"d":"$782,904"},{"v":745654.1715941901,"d":"$745,654"},{"v":753939.1714334824,"d":"$753,939"},{"v":745187.3393452044,"d":"$745,187"},{"v":707719.8556478587,"d":"$707,720"},{"v":747744.6748445362,"d":"$747,745"},{"v":718887.5484751788,"d":"$718,888"},{"v":697353.3838538154,"d":"$697,353"},{"v":740218.559852321,"d":"$740,219"},{"v":731964.9461011529,"d":"$731,965"},{"v":747111.0240682138,"d":"$747,111"},{"$f":"SUM(DB35:DM35)","v":{"v":8856585.249149323,"d":"$8,856,585"}},{"$f":"DO44-DO54+DO38","v":{"v":729102.4732970286,"d":"$729,102"}},{"v":750458.8268287993,"d":"$750,459"},{"v":758938.4554536607,"d":"$758,938"},{"v":727817.8436754592,"d":"$727,818"},{"v":753156.0123341741,"d":"$753,156"},{"v":698253.233689312,"d":"$698,253"},{"v":693237.7724561983,"d":"$693,238"},{"v":734210.554307013,"d":"$734,211"},{"v":752193.1671498378,"d":"$752,193"},{"v":700990.799448883,"d":"$700,991"},{"v":740336.3571762631,"d":"$740,336"},{"v":717793.4802226821,"d":"$717,793"},{"$f":"SUM(DO35:DZ35)","v":{"v":8756488.97603931,"d":"$8,756,489"}},{"$f":"EB44-EB54+EB38","v":{"v":750442.5737920686,"d":"$750,443"}},{"v":757426.2637737615,"d":"$757,426"},{"v":737755.0323351678,"d":"$737,755"},{"v":721271.3277889866,"d":"$721,271"},{"v":708623.0550265639,"d":"$708,623"},{"v":693141.8256855856,"d":"$693,142"},{"v":730563.1073797216,"d":"$730,563"},{"v":759956.9465029263,"d":"$759,957"},{"v":735203.7649449894,"d":"$735,204"},{"v":698588.3365201794,"d":"$698,588"},{"v":721250.7123218116,"d":"$721,251"},{"v":736816.1826119283,"d":"$736,816"},{"$f":"SUM(EB35:EM35)","v":{"v":8751039.12868369,"d":"$8,751,039"}}]
[{"$f":"Labels!B45","v":"Final Sales"},{"$f":"B12+B21+B37","v":{"v":963388.6810828955,"d":"$963,389"}},{"v":962804.6544926534,"d":"$962,805"},{"v":962249.8602459532,"d":"$962,250"},{"v":961649.8253659426,"d":"$961,650"},{"v":961035.7422967289,"d":"$961,036"},{"v":960484.9990895931,"d":"$960,485"},{"v":960056.6125876381,"d":"$960,057"},{"v":959446.1162063176,"d":"$959,446"},{"v":958857.3636225142,"d":"$958,857"},{"v":958267.7772562433,"d":"$958,268"},{"v":957685.0202910928,"d":"$957,685"},{"v":957131.8953206112,"d":"$957,132"},{"$f":"SUM(B36:M36)","v":{"v":11523058.547858184,"d":"$11,523,059"}},{"$f":"O12+O21+O37","v":{"v":956488.8535934938,"d":"$956,489"}},{"v":956001.0819954006,"d":"$956,001"},{"v":955495.4437249107,"d":"$955,495"},{"v":955105.8423023564,"d":"$955,106"},{"v":954664.2909412159,"d":"$954,664"},{"v":954108.766224434,"d":"$954,109"},{"v":953529.0354213989,"d":"$953,529"},{"v":953022.6264557977,"d":"$953,023"},{"v":952514.5568323729,"d":"$952,515"},{"v":952121.7437757592,"d":"$952,122"},{"v":951645.9168678765,"d":"$951,646"},{"v":950979.5856575524,"d":"$950,980"},{"$f":"SUM(O36:Z36)","v":{"v":11445677.743792567,"d":"$11,445,678"}},{"$f":"AB12+AB21+AB37","v":{"v":950447.8738848439,"d":"$950,448"}},{"v":949933.511298958,"d":"$949,934"},{"v":949468.7620848862,"d":"$949,469"},{"v":948953.0589088434,"d":"$948,953"},{"v":948327.6734661983,"d":"$948,328"},{"v":947846.0846123031,"d":"$947,846"},{"v":947480.8650228181,"d":"$947,481"},{"v":947084.2350095483,"d":"$947,084"},{"v":946568.7323824493,"d":"$946,569"},{"v":945978.3693504694,"d":"$945,978"},{"v":945525.9004761769,"d":"$945,526"},{"v":945019.8047667878,"d":"$945,020"},{"$f":"SUM(AB36:AM36)","v":{"v":11372634.87126428,"d":"$11,372,635"}},{"$f":"AO12+AO21+AO37","v":{"v":944505.1711164376,"d":"$944,505"}},{"v":944002.8126263012,"d":"$944,003"},{"v":943524.0079399564,"d":"$943,524"},{"v":943024.849226998,"d":"$943,025"},{"v":942442.272111134,"d":"$942,442"},{"v":941943.7305844619,"d":"$941,944"},{"v":941469.5067137855,"d":"$941,470"},{"v":941049.4078192458,"d":"$941,049"},{"v":940611.6772601145,"d":"$940,612"},{"v":940181.2484721782,"d":"$940,181"},{"v":939634.0643647715,"d":"$939,634"},{"v":939133.4431791805,"d":"$939,133"},{"$f":"SUM(AO36:AZ36)","v":{"v":11301522.191414567,"d":"$11,301,522"}},{"$f":"BB12+BB21+BB37","v":{"v":938575.6044239532,"d":"$938,576"}},{"v":938277.0661386045,"d":"$938,277"},{"v":937910.0790593214,"d":"$937,910"},{"v":937375.1379372166,"d":"$937,375"},{"v":936910.6643519641,"d":"$936,911"},{"v":936414.0093067589,"d":"$936,414"},{"v":936050.6806163251,"d":"$936,051"},{"v":935584.6880998417,"d":"$935,585"},{"v":935089.3196044812,"d":"$935,089"},{"v":934550.0994712318,"d":"$934,550"},{"v":934149.0153827191,"d":"$934,149"},{"v":933733.5888646371,"d":"$933,734"},{"$f":"SUM(BB36:BM36)","v":{"v":11234619.953257054,"d":"$11,234,620"}},{"$f":"BO12+BO21+BO37","v":{"v":933367.0613879097,"d":"$933,367"}},{"v":932939.398412753,"d":"$932,939"},{"v":932564.4603409073,"d":"$932,564"},{"v":932056.9926030025,"d":"$932,057"},{"v":931631.2853627804,"d":"$931,631"},{"v":931099.1191578576,"d":"$931,099"},{"v":930721.2684597364,"d":"$930,721"},{"v":930269.2573872068,"d":"$930,269"},{"v":929728.3220323467,"d":"$929,728"},{"v":929265.0356961846,"d":"$929,265"},{"v":928941.1304299929,"d":"$928,941"},{"v":928485.7817688715,"d":"$928,486"},{"$f":"SUM(BO36:BZ36)","v":{"v":11171069.11303955,"d":"$11,171,069"}},{"$f":"CB12+CB21+CB37","v":{"v":928118.9956223599,"d":"$928,119"}},{"v":927630.7658614618,"d":"$927,631"},{"v":927232.5195740862,"d":"$927,233"},{"v":926772.6455799581,"d":"$926,773"},{"v":926306.0291759036,"d":"$926,306"},{"v":925870.6191217351,"d":"$925,871"},{"v":925429.6952343886,"d":"$925,430"},{"v":925053.4084961661,"d":"$925,053"},{"v":924677.1758384322,"d":"$924,677"},{"v":924254.7368391936,"d":"$924,255"},{"v":923870.091763481,"d":"$923,870"},{"v":923461.5861249886,"d":"$923,462"},{"$f":"SUM(CB36:CM36)","v":{"v":11108678.269232154,"d":"$11,108,678"}},{"$f":"CO12+CO21+CO37","v":{"v":922949.0364606191,"d":"$922,949"}},{"v":922626.5549561521,"d":"$922,627"},{"v":922229.0291929231,"d":"$922,229"},{"v":921806.0311709681,"d":"$921,806"},{"v":921375.3626199412,"d":"$921,375"},{"v":920842.7465812247,"d":"$920,843"},{"v":920297.2198464232,"d":"$920,297"},{"v":919948.2965911581,"d":"$919,948"},{"v":919576.9306720386,"d":"$919,577"},{"v":919150.1283985896,"d":"$919,150"},{"v":918652.153335139,"d":"$918,652"},{"v":918267.1838119432,"d":"$918,267"},{"$f":"SUM(CO36:CZ36)","v":{"v":11047720.67363712,"d":"$11,047,721"}},{"$f":"DB12+DB21+DB37","v":{"v":917876.953610302,"d":"$917,877"}},{"v":917381.252190674,"d":"$917,381"},{"v":916954.201017334,"d":"$916,954"},{"v":916564.4538719032,"d":"$916,564"},{"v":916192.970911377,"d":"$916,193"},{"v":915772.2111942722,"d":"$915,772"},{"v":915287.9626978993,"d":"$915,288"},{"v":914791.8393087372,"d":"$914,792"},{"v":914359.3894375601,"d":"$914,359"},{"v":913795.6997140989,"d":"$913,796"},{"v":913401.6777345365,"d":"$913,402"},{"v":912970.158958406,"d":"$912,970"},{"$f":"SUM(DB36:DM36)","v":{"v":10985348.7706471,"d":"$10,985,349"}},{"$f":"DO12+DO21+DO37","v":{"v":912523.6988824412,"d":"$912,524"}},{"v":912157.5206314942,"d":"$912,158"},{"v":911862.1387577627,"d":"$911,862"},{"v":911412.9226335875,"d":"$911,413"},{"v":911052.1825627685,"d":"$911,052"},{"v":910756.3106340589,"d":"$910,756"},{"v":910289.2380129767,"d":"$910,289"},{"v":909726.0314416786,"d":"$909,726"},{"v":909273.3661415161,"d":"$909,273"},{"v":908760.865427295,"d":"$908,761"},{"v":908336.1319896933,"d":"$908,336"},{"v":907980.6013991451,"d":"$907,981"},{"$f":"SUM(DO36:DZ36)","v":{"v":10924131.00851442,"d":"$10,924,131"}},{"$f":"EB12+EB21+EB37","v":{"v":907603.2909642464,"d":"$907,603"}},{"v":907195.7299565694,"d":"$907,196"},{"v":906693.8013576041,"d":"$906,694"},{"v":906251.1669848715,"d":"$906,251"},{"v":905869.1364502774,"d":"$905,869"},{"v":905480.8401831938,"d":"$905,481"},{"v":904936.3213136446,"d":"$904,936"},{"v":904546.3450608136,"d":"$904,546"},{"v":904080.382908421,"d":"$904,080"},{"v":903564.402346799,"d":"$903,564"},{"v":903130.5814545306,"d":"$903,131"},{"v":902614.487286462,"d":"$902,614"},{"$f":"SUM(EB36:EM36)","v":{"v":10861966.486267433,"d":"$10,861,966"}}]
[{"$f":"Labels!B51","v":"Gov Spending"},{"$f":"'(Other Computations)'!B11/8","v":{"v":29166.66666666667,"d":"$29,167"}},{"$f":"'(Other Computations)'!B11/8","v":{"v":29166.66666666667,"d":"$29,167"}},{"$f":"'(Other Computations)'!B11/8","v":{"v":29166.66666666667,"d":"$29,167"}},{"$f":"'(Other Computations)'!B11/8","v":{"v":29166.66666666667,"d":"$29,167"}},{"$f":"'(Other Computations)'!B11/8","v":{"v":29166.66666666667,"d":"$29,167"}},{"$f":"'(Other Computations)'!B11/8","v":{"v":29166.66666666667,"d":"$29,167"}},{"$f":"'(Other Computations)'!B11/8","v":{"v":29166.66666666667,"d":"$29,167"}},{"$f":"'(Other Computations)'!B11/8","v":{"v":29166.66666666667,"d":"$29,167"}},{"$f":"'(Other Computations)'!B11/8","v":{"v":29166.66666666667,"d":"$29,167"}},{"$f":"'(Other Computations)'!B11/8","v":{"v":29166.66666666667,"d":"$29,167"}},{"$f":"'(Other Computations)'!B11/8","v":{"v":29166.66666666667,"d":"$29,167"}},{"$f":"'(Other Computations)'!B11/8","v":{"v":29166.66666666667,"d":"$29,167"}},{"$f":"SUM(B37:M37)","v":{"v":350000.0000000002,"d":"$350,000"}},{"$f":"'(Other Computations)'!B11/8","v":{"v":29166.66666666667,"d":"$29,167"}},{"$f":"'(Other Computations)'!B11/8","v":{"v":29166.66666666667,"d":"$29,167"}},{"$f":"'(Other Computations)'!B11/8","v":{"v":29166.66666666667,"d":"$29,167"}},{"$f":"'(Other Computations)'!B11/8","v":{"v":29166.66666666667,"d":"$29,167"}},{"$f":"'(Other Computations)'!B11/8","v":{"v":29166.66666666667,"d":"$29,167"}},{"$f":"'(Other Computations)'!B11/8","v":{"v":29166.66666666667,"d":"$29,167"}},{"$f":"'(Other Computations)'!B11/8","v":{"v":29166.66666666667,"d":"$29,167"}},{"$f":"'(Other Computations)'!B11/8","v":{"v":29166.66666666667,"d":"$29,167"}},{"$f":"'(Other Computations)'!B11/8","v":{"v":29166.66666666667,"d":"$29,167"}},{"$f":"'(Other Computations)'!B11/8","v":{"v":29166.66666666667,"d":"$29,167"}},{"$f":"'(Other Computations)'!B11/8","v":{"v":29166.66666666667,"d":"$29,167"}},{"$f":"'(Other Computations)'!B11/8","v":{"v":29166.66666666667,"d":"$29,167"}},{"$f":"SUM(O37:Z37)","v":{"v":350000.0000000002,"d":"$350,000"}},{"$f":"'(Other Computations)'!B11/8","v":{"v":29166.66666666667,"d":"$29,167"}},{"$f":"'(Other Computations)'!B11/8","v":{"v":29166.66666666667,"d":"$29,167"}},{"$f":"'(Other Computations)'!B11/8","v":{"v":29166.66666666667,"d":"$29,167"}},{"$f":"'(Other Computations)'!B11/8","v":{"v":29166.66666666667,"d":"$29,167"}},{"$f":"'(Other Computations)'!B11/8","v":{"v":29166.66666666667,"d":"$29,167"}},{"$f":"'(Other Computations)'!B11/8","v":{"v":29166.66666666667,"d":"$29,167"}},{"$f":"'(Other Computations)'!B11/8","v":{"v":29166.66666666667,"d":"$29,167"}},{"$f":"'(Other Computations)'!B11/8","v":{"v":29166.66666666667,"d":"$29,167"}},{"$f":"'(Other Computations)'!B11/8","v":{"v":29166.66666666667,"d":"$29,167"}},{"$f":"'(Other Computations)'!B11/8","v":{"v":29166.66666666667,"d":"$29,167"}},{"$f":"'(Other Computations)'!B11/8","v":{"v":29166.66666666667,"d":"$29,167"}},{"$f":"'(Other Computations)'!B11/8","v":{"v":29166.66666666667,"d":"$29,167"}},{"$f":"SUM(AB37:AM37)","v":{"v":350000.0000000002,"d":"$350,000"}},{"$f":"'(Other Computations)'!B11/8","v":{"v":29166.66666666667,"d":"$29,167"}},{"$f":"'(Other Computations)'!B11/8","v":{"v":29166.66666666667,"d":"$29,167"}},{"$f":"'(Other Computations)'!B11/8","v":{"v":29166.66666666667,"d":"$29,167"}},{"$f":"'(Other Computations)'!B11/8","v":{"v":29166.66666666667,"d":"$29,167"}},{"$f":"'(Other Computations)'!B11/8","v":{"v":29166.66666666667,"d":"$29,167"}},{"$f":"'(Other Computations)'!B11/8","v":{"v":29166.66666666667,"d":"$29,167"}},{"$f":"'(Other Computations)'!B11/8","v":{"v":29166.66666666667,"d":"$29,167"}},{"$f":"'(Other Computations)'!B11/8","v":{"v":29166.66666666667,"d":"$29,167"}},{"$f":"'(Other Computations)'!B11/8","v":{"v":29166.66666666667,"d":"$29,167"}},{"$f":"'(Other Computations)'!B11/8","v":{"v":29166.66666666667,"d":"$29,167"}},{"$f":"'(Other Computations)'!B11/8","v":{"v":29166.66666666667,"d":"$29,167"}},{"$f":"'(Other Computations)'!B11/8","v":{"v":29166.66666666667,"d":"$29,167"}},{"$f":"SUM(AO37:AZ37)","v":{"v":350000.0000000002,"d":"$350,000"}},{"$f":"'(Other Computations)'!B11/8","v":{"v":29166.66666666667,"d":"$29,167"}},{"$f":"'(Other Computations)'!B11/8","v":{"v":29166.66666666667,"d":"$29,167"}},{"$f":"'(Other Computations)'!B11/8","v":{"v":29166.66666666667,"d":"$29,167"}},{"$f":"'(Other Computations)'!B11/8","v":{"v":29166.66666666667,"d":"$29,167"}},{"$f":"'(Other Computations)'!B11/8","v":{"v":29166.66666666667,"d":"$29,167"}},{"$f":"'(Other Computations)'!B11/8","v":{"v":29166.66666666667,"d":"$29,167"}},{"$f":"'(Other Computations)'!B11/8","v":{"v":29166.66666666667,"d":"$29,167"}},{"$f":"'(Other Computations)'!B11/8","v":{"v":29166.66666666667,"d":"$29,167"}},{"$f":"'(Other Computations)'!B11/8","v":{"v":29166.66666666667,"d":"$29,167"}},{"$f":"'(Other Computations)'!B11/8","v":{"v":29166.66666666667,"d":"$29,167"}},{"$f":"'(Other Computations)'!B11/8","v":{"v":29166.66666666667,"d":"$29,167"}},{"$f":"'(Other Computations)'!B11/8","v":{"v":29166.66666666667,"d":"$29,167"}},{"$f":"SUM(BB37:BM37)","v":{"v":350000.0000000002,"d":"$350,000"}},{"$f":"'(Other Computations)'!B11/8","v":{"v":29166.66666666667,"d":"$29,167"}},{"$f":"'(Other Computations)'!B11/8","v":{"v":29166.66666666667,"d":"$29,167"}},{"$f":"'(Other Computations)'!B11/8","v":{"v":29166.66666666667,"d":"$29,167"}},{"$f":"'(Other Computations)'!B11/8","v":{"v":29166.66666666667,"d":"$29,167"}},{"$f":"'(Other Computations)'!B11/8","v":{"v":29166.66666666667,"d":"$29,167"}},{"$f":"'(Other Computations)'!B11/8","v":{"v":29166.66666666667,"d":"$29,167"}},{"$f":"'(Other Computations)'!B11/8","v":{"v":29166.66666666667,"d":"$29,167"}},{"$f":"'(Other Computations)'!B11/8","v":{"v":29166.66666666667,"d":"$29,167"}},{"$f":"'(Other Computations)'!B11/8","v":{"v":29166.66666666667,"d":"$29,167"}},{"$f":"'(Other Computations)'!B11/8","v":{"v":29166.66666666667,"d":"$29,167"}},{"$f":"'(Other Computations)'!B11/8","v":{"v":29166.66666666667,"d":"$29,167"}},{"$f":"'(Other Computations)'!B11/8","v":{"v":29166.66666666667,"d":"$29,167"}},{"$f":"SUM(BO37:BZ37)","v":{"v":350000.0000000002,"d":"$350,000"}},{"$f":"'(Other Computations)'!B11/8","v":{"v":29166.66666666667,"d":"$29,167"}},{"$f":"'(Other Computations)'!B11/8","v":{"v":29166.66666666667,"d":"$29,167"}},{"$f":"'(Other Computations)'!B11/8","v":{"v":29166.66666666667,"d":"$29,167"}},{"$f":"'(Other Computations)'!B11/8","v":{"v":29166.66666666667,"d":"$29,167"}},{"$f":"'(Other Computations)'!B11/8","v":{"v":29166.66666666667,"d":"$29,167"}},{"$f":"'(Other Computations)'!B11/8","v":{"v":29166.66666666667,"d":"$29,167"}},{"$f":"'(Other Computations)'!B11/8","v":{"v":29166.66666666667,"d":"$29,167"}},{"$f":"'(Other Computations)'!B11/8","v":{"v":29166.66666666667,"d":"$29,167"}},{"$f":"'(Other Computations)'!B11/8","v":{"v":29166.66666666667,"d":"$29,167"}},{"$f":"'(Other Computations)'!B11/8","v":{"v":29166.66666666667,"d":"$29,167"}},{"$f":"'(Other Computations)'!B11/8","v":{"v":29166.66666666667,"d":"$29,167"}},{"$f":"'(Other Computations)'!B11/8","v":{"v":29166.66666666667,"d":"$29,167"}},{"$f":"SUM(CB37:CM37)","v":{"v":350000.0000000002,"d":"$350,000"}},{"$f":"'(Other Computations)'!B11/8","v":{"v":29166.66666666667,"d":"$29,167"}},{"$f":"'(Other Computations)'!B11/8","v":{"v":29166.66666666667,"d":"$29,167"}},{"$f":"'(Other Computations)'!B11/8","v":{"v":29166.66666666667,"d":"$29,167"}},{"$f":"'(Other Computations)'!B11/8","v":{"v":29166.66666666667,"d":"$29,167"}},{"$f":"'(Other Computations)'!B11/8","v":{"v":29166.66666666667,"d":"$29,167"}},{"$f":"'(Other Computations)'!B11/8","v":{"v":29166.66666666667,"d":"$29,167"}},{"$f":"'(Other Computations)'!B11/8","v":{"v":29166.66666666667,"d":"$29,167"}},{"$f":"'(Other Computations)'!B11/8","v":{"v":29166.66666666667,"d":"$29,167"}},{"$f":"'(Other Computations)'!B11/8","v":{"v":29166.66666666667,"d":"$29,167"}},{"$f":"'(Other Computations)'!B11/8","v":{"v":29166.66666666667,"d":"$29,167"}},{"$f":"'(Other Computations)'!B11/8","v":{"v":29166.66666666667,"d":"$29,167"}},{"$f":"'(Other Computations)'!B11/8","v":{"v":29166.66666666667,"d":"$29,167"}},{"$f":"SUM(CO37:CZ37)","v":{"v":350000.0000000002,"d":"$350,000"}},{"$f":"'(Other Computations)'!B11/8","v":{"v":29166.66666666667,"d":"$29,167"}},{"$f":"'(Other Computations)'!B11/8","v":{"v":29166.66666666667,"d":"$29,167"}},{"$f":"'(Other Computations)'!B11/8","v":{"v":29166.66666666667,"d":"$29,167"}},{"$f":"'(Other Computations)'!B11/8","v":{"v":29166.66666666667,"d":"$29,167"}},{"$f":"'(Other Computations)'!B11/8","v":{"v":29166.66666666667,"d":"$29,167"}},{"$f":"'(Other Computations)'!B11/8","v":{"v":29166.66666666667,"d":"$29,167"}},{"$f":"'(Other Computations)'!B11/8","v":{"v":29166.66666666667,"d":"$29,167"}},{"$f":"'(Other Computations)'!B11/8","v":{"v":29166.66666666667,"d":"$29,167"}},{"$f":"'(Other Computations)'!B11/8","v":{"v":29166.66666666667,"d":"$29,167"}},{"$f":"'(Other Computations)'!B11/8","v":{"v":29166.66666666667,"d":"$29,167"}},{"$f":"'(Other Computations)'!B11/8","v":{"v":29166.66666666667,"d":"$29,167"}},{"$f":"'(Other Computations)'!B11/8","v":{"v":29166.66666666667,"d":"$29,167"}},{"$f":"SUM(DB37:DM37)","v":{"v":350000.0000000002,"d":"$350,000"}},{"$f":"'(Other Computations)'!B11/8","v":{"v":29166.66666666667,"d":"$29,167"}},{"$f":"'(Other Computations)'!B11/8","v":{"v":29166.66666666667,"d":"$29,167"}},{"$f":"'(Other Computations)'!B11/8","v":{"v":29166.66666666667,"d":"$29,167"}},{"$f":"'(Other Computations)'!B11/8","v":{"v":29166.66666666667,"d":"$29,167"}},{"$f":"'(Other Computations)'!B11/8","v":{"v":29166.66666666667,"d":"$29,167"}},{"$f":"'(Other Computations)'!B11/8","v":{"v":29166.66666666667,"d":"$29,167"}},{"$f":"'(Other Computations)'!B11/8","v":{"v":29166.66666666667,"d":"$29,167"}},{"$f":"'(Other Computations)'!B11/8","v":{"v":29166.66666666667,"d":"$29,167"}},{"$f":"'(Other Computations)'!B11/8","v":{"v":29166.66666666667,"d":"$29,167"}},{"$f":"'(Other Computations)'!B11/8","v":{"v":29166.66666666667,"d":"$29,167"}},{"$f":"'(Other Computations)'!B11/8","v":{"v":29166.66666666667,"d":"$29,167"}},{"$f":"'(Other Computations)'!B11/8","v":{"v":29166.66666666667,"d":"$29,167"}},{"$f":"SUM(DO37:DZ37)","v":{"v":350000.0000000002,"d":"$350,000"}},{"$f":"'(Other Computations)'!B11/8","v":{"v":29166.66666666667,"d":"$29,167"}},{"$f":"'(Other Computations)'!B11/8","v":{"v":29166.66666666667,"d":"$29,167"}},{"$f":"'(Other Computations)'!B11/8","v":{"v":29166.66666666667,"d":"$29,167"}},{"$f":"'(Other Computations)'!B11/8","v":{"v":29166.66666666667,"d":"$29,167"}},{"$f":"'(Other Computations)'!B11/8","v":{"v":29166.66666666667,"d":"$29,167"}},{"$f":"'(Other Computations)'!B11/8","v":{"v":29166.66666666667,"d":"$29,167"}},{"$f":"'(Other Computations)'!B11/8","v":{"v":29166.66666666667,"d":"$29,167"}},{"$f":"'(Other Computations)'!B11/8","v":{"v":29166.66666666667,"d":"$29,167"}},{"$f":"'(Other Computations)'!B11/8","v":{"v":29166.66666666667,"d":"$29,167"}},{"$f":"'(Other Computations)'!B11/8","v":{"v":29166.66666666667,"d":"$29,167"}},{"$f":"'(Other Computations)'!B11/8","v":{"v":29166.66666666667,"d":"$29,167"}},{"$f":"'(Other Computations)'!B11/8","v":{"v":29166.66666666667,"d":"$29,167"}},{"$f":"SUM(EB37:EM37)","v":{"v":350000.0000000002,"d":"$350,000"}}]
[{"$f":"Labels!B52","v":"Gov Transfers"},{"$f":"'(Other Computations)'!B14/8","v":{"v":14583.333333333336,"d":"$14,583"}},{"$f":"'(Other Computations)'!B14/8","v":{"v":14583.333333333336,"d":"$14,583"}},{"$f":"'(Other Computations)'!B14/8","v":{"v":14583.333333333336,"d":"$14,583"}},{"$f":"'(Other Computations)'!B14/8","v":{"v":14583.333333333336,"d":"$14,583"}},{"$f":"'(Other Computations)'!B14/8","v":{"v":14583.333333333336,"d":"$14,583"}},{"$f":"'(Other Computations)'!B14/8","v":{"v":14583.333333333336,"d":"$14,583"}},{"$f":"'(Other Computations)'!B14/8","v":{"v":14583.333333333336,"d":"$14,583"}},{"$f":"'(Other Computations)'!B14/8","v":{"v":14583.333333333336,"d":"$14,583"}},{"$f":"'(Other Computations)'!B14/8","v":{"v":14583.333333333336,"d":"$14,583"}},{"$f":"'(Other Computations)'!B14/8","v":{"v":14583.333333333336,"d":"$14,583"}},{"$f":"'(Other Computations)'!B14/8","v":{"v":14583.333333333336,"d":"$14,583"}},{"$f":"'(Other Computations)'!B14/8","v":{"v":14583.333333333336,"d":"$14,583"}},{"$f":"SUM(B38:M38)","v":{"v":175000.0000000001,"d":"$175,000"}},{"$f":"'(Other Computations)'!B14/8","v":{"v":14583.333333333336,"d":"$14,583"}},{"$f":"'(Other Computations)'!B14/8","v":{"v":14583.333333333336,"d":"$14,583"}},{"$f":"'(Other Computations)'!B14/8","v":{"v":14583.333333333336,"d":"$14,583"}},{"$f":"'(Other Computations)'!B14/8","v":{"v":14583.333333333336,"d":"$14,583"}},{"$f":"'(Other Computations)'!B14/8","v":{"v":14583.333333333336,"d":"$14,583"}},{"$f":"'(Other Computations)'!B14/8","v":{"v":14583.333333333336,"d":"$14,583"}},{"$f":"'(Other Computations)'!B14/8","v":{"v":14583.333333333336,"d":"$14,583"}},{"$f":"'(Other Computations)'!B14/8","v":{"v":14583.333333333336,"d":"$14,583"}},{"$f":"'(Other Computations)'!B14/8","v":{"v":14583.333333333336,"d":"$14,583"}},{"$f":"'(Other Computations)'!B14/8","v":{"v":14583.333333333336,"d":"$14,583"}},{"$f":"'(Other Computations)'!B14/8","v":{"v":14583.333333333336,"d":"$14,583"}},{"$f":"'(Other Computations)'!B14/8","v":{"v":14583.333333333336,"d":"$14,583"}},{"$f":"SUM(O38:Z38)","v":{"v":175000.0000000001,"d":"$175,000"}},{"$f":"'(Other Computations)'!B14/8","v":{"v":14583.333333333336,"d":"$14,583"}},{"$f":"'(Other Computations)'!B14/8","v":{"v":14583.333333333336,"d":"$14,583"}},{"$f":"'(Other Computations)'!B14/8","v":{"v":14583.333333333336,"d":"$14,583"}},{"$f":"'(Other Computations)'!B14/8","v":{"v":14583.333333333336,"d":"$14,583"}},{"$f":"'(Other Computations)'!B14/8","v":{"v":14583.333333333336,"d":"$14,583"}},{"$f":"'(Other Computations)'!B14/8","v":{"v":14583.333333333336,"d":"$14,583"}},{"$f":"'(Other Computations)'!B14/8","v":{"v":14583.333333333336,"d":"$14,583"}},{"$f":"'(Other Computations)'!B14/8","v":{"v":14583.333333333336,"d":"$14,583"}},{"$f":"'(Other Computations)'!B14/8","v":{"v":14583.333333333336,"d":"$14,583"}},{"$f":"'(Other Computations)'!B14/8","v":{"v":14583.333333333336,"d":"$14,583"}},{"$f":"'(Other Computations)'!B14/8","v":{"v":14583.333333333336,"d":"$14,583"}},{"$f":"'(Other Computations)'!B14/8","v":{"v":14583.333333333336,"d":"$14,583"}},{"$f":"SUM(AB38:AM38)","v":{"v":175000.0000000001,"d":"$175,000"}},{"$f":"'(Other Computations)'!B14/8","v":{"v":14583.333333333336,"d":"$14,583"}},{"$f":"'(Other Computations)'!B14/8","v":{"v":14583.333333333336,"d":"$14,583"}},{"$f":"'(Other Computations)'!B14/8","v":{"v":14583.333333333336,"d":"$14,583"}},{"$f":"'(Other Computations)'!B14/8","v":{"v":14583.333333333336,"d":"$14,583"}},{"$f":"'(Other Computations)'!B14/8","v":{"v":14583.333333333336,"d":"$14,583"}},{"$f":"'(Other Computations)'!B14/8","v":{"v":14583.333333333336,"d":"$14,583"}},{"$f":"'(Other Computations)'!B14/8","v":{"v":14583.333333333336,"d":"$14,583"}},{"$f":"'(Other Computations)'!B14/8","v":{"v":14583.333333333336,"d":"$14,583"}},{"$f":"'(Other Computations)'!B14/8","v":{"v":14583.333333333336,"d":"$14,583"}},{"$f":"'(Other Computations)'!B14/8","v":{"v":14583.333333333336,"d":"$14,583"}},{"$f":"'(Other Computations)'!B14/8","v":{"v":14583.333333333336,"d":"$14,583"}},{"$f":"'(Other Computations)'!B14/8","v":{"v":14583.333333333336,"d":"$14,583"}},{"$f":"SUM(AO38:AZ38)","v":{"v":175000.0000000001,"d":"$175,000"}},{"$f":"'(Other Computations)'!B14/8","v":{"v":14583.333333333336,"d":"$14,583"}},{"$f":"'(Other Computations)'!B14/8","v":{"v":14583.333333333336,"d":"$14,583"}},{"$f":"'(Other Computations)'!B14/8","v":{"v":14583.333333333336,"d":"$14,583"}},{"$f":"'(Other Computations)'!B14/8","v":{"v":14583.333333333336,"d":"$14,583"}},{"$f":"'(Other Computations)'!B14/8","v":{"v":14583.333333333336,"d":"$14,583"}},{"$f":"'(Other Computations)'!B14/8","v":{"v":14583.333333333336,"d":"$14,583"}},{"$f":"'(Other Computations)'!B14/8","v":{"v":14583.333333333336,"d":"$14,583"}},{"$f":"'(Other Computations)'!B14/8","v":{"v":14583.333333333336,"d":"$14,583"}},{"$f":"'(Other Computations)'!B14/8","v":{"v":14583.333333333336,"d":"$14,583"}},{"$f":"'(Other Computations)'!B14/8","v":{"v":14583.333333333336,"d":"$14,583"}},{"$f":"'(Other Computations)'!B14/8","v":{"v":14583.333333333336,"d":"$14,583"}},{"$f":"'(Other Computations)'!B14/8","v":{"v":14583.333333333336,"d":"$14,583"}},{"$f":"SUM(BB38:BM38)","v":{"v":175000.0000000001,"d":"$175,000"}},{"$f":"'(Other Computations)'!B14/8","v":{"v":14583.333333333336,"d":"$14,583"}},{"$f":"'(Other Computations)'!B14/8","v":{"v":14583.333333333336,"d":"$14,583"}},{"$f":"'(Other Computations)'!B14/8","v":{"v":14583.333333333336,"d":"$14,583"}},{"$f":"'(Other Computations)'!B14/8","v":{"v":14583.333333333336,"d":"$14,583"}},{"$f":"'(Other Computations)'!B14/8","v":{"v":14583.333333333336,"d":"$14,583"}},{"$f":"'(Other Computations)'!B14/8","v":{"v":14583.333333333336,"d":"$14,583"}},{"$f":"'(Other Computations)'!B14/8","v":{"v":14583.333333333336,"d":"$14,583"}},{"$f":"'(Other Computations)'!B14/8","v":{"v":14583.333333333336,"d":"$14,583"}},{"$f":"'(Other Computations)'!B14/8","v":{"v":14583.333333333336,"d":"$14,583"}},{"$f":"'(Other Computations)'!B14/8","v":{"v":14583.333333333336,"d":"$14,583"}},{"$f":"'(Other Computations)'!B14/8","v":{"v":14583.333333333336,"d":"$14,583"}},{"$f":"'(Other Computations)'!B14/8","v":{"v":14583.333333333336,"d":"$14,583"}},{"$f":"SUM(BO38:BZ38)","v":{"v":175000.0000000001,"d":"$175,000"}},{"$f":"'(Other Computations)'!B14/8","v":{"v":14583.333333333336,"d":"$14,583"}},{"$f":"'(Other Computations)'!B14/8","v":{"v":14583.333333333336,"d":"$14,583"}},{"$f":"'(Other Computations)'!B14/8","v":{"v":14583.333333333336,"d":"$14,583"}},{"$f":"'(Other Computations)'!B14/8","v":{"v":14583.333333333336,"d":"$14,583"}},{"$f":"'(Other Computations)'!B14/8","v":{"v":14583.333333333336,"d":"$14,583"}},{"$f":"'(Other Computations)'!B14/8","v":{"v":14583.333333333336,"d":"$14,583"}},{"$f":"'(Other Computations)'!B14/8","v":{"v":14583.333333333336,"d":"$14,583"}},{"$f":"'(Other Computations)'!B14/8","v":{"v":14583.333333333336,"d":"$14,583"}},{"$f":"'(Other Computations)'!B14/8","v":{"v":14583.333333333336,"d":"$14,583"}},{"$f":"'(Other Computations)'!B14/8","v":{"v":14583.333333333336,"d":"$14,583"}},{"$f":"'(Other Computations)'!B14/8","v":{"v":14583.333333333336,"d":"$14,583"}},{"$f":"'(Other Computations)'!B14/8","v":{"v":14583.333333333336,"d":"$14,583"}},{"$f":"SUM(CB38:CM38)","v":{"v":175000.0000000001,"d":"$175,000"}},{"$f":"'(Other Computations)'!B14/8","v":{"v":14583.333333333336,"d":"$14,583"}},{"$f":"'(Other Computations)'!B14/8","v":{"v":14583.333333333336,"d":"$14,583"}},{"$f":"'(Other Computations)'!B14/8","v":{"v":14583.333333333336,"d":"$14,583"}},{"$f":"'(Other Computations)'!B14/8","v":{"v":14583.333333333336,"d":"$14,583"}},{"$f":"'(Other Computations)'!B14/8","v":{"v":14583.333333333336,"d":"$14,583"}},{"$f":"'(Other Computations)'!B14/8","v":{"v":14583.333333333336,"d":"$14,583"}},{"$f":"'(Other Computations)'!B14/8","v":{"v":14583.333333333336,"d":"$14,583"}},{"$f":"'(Other Computations)'!B14/8","v":{"v":14583.333333333336,"d":"$14,583"}},{"$f":"'(Other Computations)'!B14/8","v":{"v":14583.333333333336,"d":"$14,583"}},{"$f":"'(Other Computations)'!B14/8","v":{"v":14583.333333333336,"d":"$14,583"}},{"$f":"'(Other Computations)'!B14/8","v":{"v":14583.333333333336,"d":"$14,583"}},{"$f":"'(Other Computations)'!B14/8","v":{"v":14583.333333333336,"d":"$14,583"}},{"$f":"SUM(CO38:CZ38)","v":{"v":175000.0000000001,"d":"$175,000"}},{"$f":"'(Other Computations)'!B14/8","v":{"v":14583.333333333336,"d":"$14,583"}},{"$f":"'(Other Computations)'!B14/8","v":{"v":14583.333333333336,"d":"$14,583"}},{"$f":"'(Other Computations)'!B14/8","v":{"v":14583.333333333336,"d":"$14,583"}},{"$f":"'(Other Computations)'!B14/8","v":{"v":14583.333333333336,"d":"$14,583"}},{"$f":"'(Other Computations)'!B14/8","v":{"v":14583.333333333336,"d":"$14,583"}},{"$f":"'(Other Computations)'!B14/8","v":{"v":14583.333333333336,"d":"$14,583"}},{"$f":"'(Other Computations)'!B14/8","v":{"v":14583.333333333336,"d":"$14,583"}},{"$f":"'(Other Computations)'!B14/8","v":{"v":14583.333333333336,"d":"$14,583"}},{"$f":"'(Other Computations)'!B14/8","v":{"v":14583.333333333336,"d":"$14,583"}},{"$f":"'(Other Computations)'!B14/8","v":{"v":14583.333333333336,"d":"$14,583"}},{"$f":"'(Other Computations)'!B14/8","v":{"v":14583.333333333336,"d":"$14,583"}},{"$f":"'(Other Computations)'!B14/8","v":{"v":14583.333333333336,"d":"$14,583"}},{"$f":"SUM(DB38:DM38)","v":{"v":175000.0000000001,"d":"$175,000"}},{"$f":"'(Other Computations)'!B14/8","v":{"v":14583.333333333336,"d":"$14,583"}},{"$f":"'(Other Computations)'!B14/8","v":{"v":14583.333333333336,"d":"$14,583"}},{"$f":"'(Other Computations)'!B14/8","v":{"v":14583.333333333336,"d":"$14,583"}},{"$f":"'(Other Computations)'!B14/8","v":{"v":14583.333333333336,"d":"$14,583"}},{"$f":"'(Other Computations)'!B14/8","v":{"v":14583.333333333336,"d":"$14,583"}},{"$f":"'(Other Computations)'!B14/8","v":{"v":14583.333333333336,"d":"$14,583"}},{"$f":"'(Other Computations)'!B14/8","v":{"v":14583.333333333336,"d":"$14,583"}},{"$f":"'(Other Computations)'!B14/8","v":{"v":14583.333333333336,"d":"$14,583"}},{"$f":"'(Other Computations)'!B14/8","v":{"v":14583.333333333336,"d":"$14,583"}},{"$f":"'(Other Computations)'!B14/8","v":{"v":14583.333333333336,"d":"$14,583"}},{"$f":"'(Other Computations)'!B14/8","v":{"v":14583.333333333336,"d":"$14,583"}},{"$f":"'(Other Computations)'!B14/8","v":{"v":14583.333333333336,"d":"$14,583"}},{"$f":"SUM(DO38:DZ38)","v":{"v":175000.0000000001,"d":"$175,000"}},{"$f":"'(Other Computations)'!B14/8","v":{"v":14583.333333333336,"d":"$14,583"}},{"$f":"'(Other Computations)'!B14/8","v":{"v":14583.333333333336,"d":"$14,583"}},{"$f":"'(Other Computations)'!B14/8","v":{"v":14583.333333333336,"d":"$14,583"}},{"$f":"'(Other Computations)'!B14/8","v":{"v":14583.333333333336,"d":"$14,583"}},{"$f":"'(Other Computations)'!B14/8","v":{"v":14583.333333333336,"d":"$14,583"}},{"$f":"'(Other Computations)'!B14/8","v":{"v":14583.333333333336,"d":"$14,583"}},{"$f":"'(Other Computations)'!B14/8","v":{"v":14583.333333333336,"d":"$14,583"}},{"$f":"'(Other Computations)'!B14/8","v":{"v":14583.333333333336,"d":"$14,583"}},{"$f":"'(Other Computations)'!B14/8","v":{"v":14583.333333333336,"d":"$14,583"}},{"$f":"'(Other Computations)'!B14/8","v":{"v":14583.333333333336,"d":"$14,583"}},{"$f":"'(Other Computations)'!B14/8","v":{"v":14583.333333333336,"d":"$14,583"}},{"$f":"'(Other Computations)'!B14/8","v":{"v":14583.333333333336,"d":"$14,583"}},{"$f":"SUM(EB38:EM38)","v":{"v":175000.0000000001,"d":"$175,000"}}]
[]
[]
[{"$f":"\"Output\"","v":"Output"}]
[{"$f":"\" \"","v":" "}]
[null,{"$f":"ZZZ__FnCalls!F7","v":"Jan 2010"},{"$f":"ZZZ__FnCalls!F8","v":"Feb 2010"},{"$f":"ZZZ__FnCalls!F9","v":"Mar 2010"},{"$f":"ZZZ__FnCalls!F10","v":"Apr 2010"},{"$f":"ZZZ__FnCalls!F11","v":"May 2010"},{"$f":"ZZZ__FnCalls!F12","v":"Jun 2010"},{"$f":"ZZZ__FnCalls!F13","v":"Jul 2010"},{"$f":"ZZZ__FnCalls!F14","v":"Aug 2010"},{"$f":"ZZZ__FnCalls!F15","v":"Sep 2010"},{"$f":"ZZZ__FnCalls!F16","v":"Oct 2010"},{"$f":"ZZZ__FnCalls!F17","v":"Nov 2010"},{"$f":"ZZZ__FnCalls!F18","v":"Dec 2010"},{"$f":"ZZZ__FnCalls!H7","v":"2010"},{"$f":"ZZZ__FnCalls!F19","v":"Jan 2011"},{"$f":"ZZZ__FnCalls!F20","v":"Feb 2011"},{"$f":"ZZZ__FnCalls!F21","v":"Mar 2011"},{"$f":"ZZZ__FnCalls!F22","v":"Apr 2011"},{"$f":"ZZZ__FnCalls!F23","v":"May 2011"},{"$f":"ZZZ__FnCalls!F24","v":"Jun 2011"},{"$f":"ZZZ__FnCalls!F25","v":"Jul 2011"},{"$f":"ZZZ__FnCalls!F26","v":"Aug 2011"},{"$f":"ZZZ__FnCalls!F27","v":"Sep 2011"},{"$f":"ZZZ__FnCalls!F28","v":"Oct 2011"},{"$f":"ZZZ__FnCalls!F29","v":"Nov 2011"},{"$f":"ZZZ__FnCalls!F30","v":"Dec 2011"},{"$f":"ZZZ__FnCalls!H19","v":"2011"},{"$f":"ZZZ__FnCalls!F31","v":"Jan 2012"},{"$f":"ZZZ__FnCalls!F32","v":"Feb 2012"},{"$f":"ZZZ__FnCalls!F33","v":"Mar 2012"},{"$f":"ZZZ__FnCalls!F34","v":"Apr 2012"},{"$f":"ZZZ__FnCalls!F35","v":"May 2012"},{"$f":"ZZZ__FnCalls!F36","v":"Jun 2012"},{"$f":"ZZZ__FnCalls!F37","v":"Jul 2012"},{"$f":"ZZZ__FnCalls!F38","v":"Aug 2012"},{"$f":"ZZZ__FnCalls!F39","v":"Sep 2012"},{"$f":"ZZZ__FnCalls!F40","v":"Oct 2012"},{"$f":"ZZZ__FnCalls!F41","v":"Nov 2012"},{"$f":"ZZZ__FnCalls!F42","v":"Dec 2012"},{"$f":"ZZZ__FnCalls!H31","v":"2012"},{"$f":"ZZZ__FnCalls!F43","v":"Jan 2013"},{"$f":"ZZZ__FnCalls!F44","v":"Feb 2013"},{"$f":"ZZZ__FnCalls!F45","v":"Mar 2013"},{"$f":"ZZZ__FnCalls!F46","v":"Apr 2013"},{"$f":"ZZZ__FnCalls!F47","v":"May 2013"},{"$f":"ZZZ__FnCalls!F48","v":"Jun 2013"},{"$f":"ZZZ__FnCalls!F49","v":"Jul 2013"},{"$f":"ZZZ__FnCalls!F50","v":"Aug 2013"},{"$f":"ZZZ__FnCalls!F51","v":"Sep 2013"},{"$f":"ZZZ__FnCalls!F52","v":"Oct 2013"},{"$f":"ZZZ__FnCalls!F53","v":"Nov 2013"},{"$f":"ZZZ__FnCalls!F54","v":"Dec 2013"},{"$f":"ZZZ__FnCalls!H43","v":"2013"},{"$f":"ZZZ__FnCalls!F55","v":"Jan 2014"},{"$f":"ZZZ__FnCalls!F56","v":"Feb 2014"},{"$f":"ZZZ__FnCalls!F57","v":"Mar 2014"},{"$f":"ZZZ__FnCalls!F58","v":"Apr 2014"},{"$f":"ZZZ__FnCalls!F59","v":"May 2014"},{"$f":"ZZZ__FnCalls!F60","v":"Jun 2014"},{"$f":"ZZZ__FnCalls!F61","v":"Jul 2014"},{"$f":"ZZZ__FnCalls!F62","v":"Aug 2014"},{"$f":"ZZZ__FnCalls!F63","v":"Sep 2014"},{"$f":"ZZZ__FnCalls!F64","v":"Oct 2014"},{"$f":"ZZZ__FnCalls!F65","v":"Nov 2014"},{"$f":"ZZZ__FnCalls!F66","v":"Dec 2014"},{"$f":"ZZZ__FnCalls!H55","v":"2014"},{"$f":"ZZZ__FnCalls!F67","v":"Jan 2015"},{"$f":"ZZZ__FnCalls!F68","v":"Feb 2015"},{"$f":"ZZZ__FnCalls!F69","v":"Mar 2015"},{"$f":"ZZZ__FnCalls!F70","v":"Apr 2015"},{"$f":"ZZZ__FnCalls!F71","v":"May 2015"},{"$f":"ZZZ__FnCalls!F72","v":"Jun 2015"},{"$f":"ZZZ__FnCalls!F73","v":"Jul 2015"},{"$f":"ZZZ__FnCalls!F74","v":"Aug 2015"},{"$f":"ZZZ__FnCalls!F75","v":"Sep 2015"},{"$f":"ZZZ__FnCalls!F76","v":"Oct 2015"},{"$f":"ZZZ__FnCalls!F77","v":"Nov 2015"},{"$f":"ZZZ__FnCalls!F78","v":"Dec 2015"},{"$f":"ZZZ__FnCalls!H67","v":"2015"},{"$f":"ZZZ__FnCalls!F79","v":"Jan 2016"},{"$f":"ZZZ__FnCalls!F80","v":"Feb 2016"},{"$f":"ZZZ__FnCalls!F81","v":"Mar 2016"},{"$f":"ZZZ__FnCalls!F82","v":"Apr 2016"},{"$f":"ZZZ__FnCalls!F83","v":"May 2016"},{"$f":"ZZZ__FnCalls!F84","v":"Jun 2016"},{"$f":"ZZZ__FnCalls!F85","v":"Jul 2016"},{"$f":"ZZZ__FnCalls!F86","v":"Aug 2016"},{"$f":"ZZZ__FnCalls!F87","v":"Sep 2016"},{"$f":"ZZZ__FnCalls!F88","v":"Oct 2016"},{"$f":"ZZZ__FnCalls!F89","v":"Nov 2016"},{"$f":"ZZZ__FnCalls!F90","v":"Dec 2016"},{"$f":"ZZZ__FnCalls!H79","v":"2016"},{"$f":"ZZZ__FnCalls!F91","v":"Jan 2017"},{"$f":"ZZZ__FnCalls!F92","v":"Feb 2017"},{"$f":"ZZZ__FnCalls!F93","v":"Mar 2017"},{"$f":"ZZZ__FnCalls!F94","v":"Apr 2017"},{"$f":"ZZZ__FnCalls!F95","v":"May 2017"},{"$f":"ZZZ__FnCalls!F96","v":"Jun 2017"},{"$f":"ZZZ__FnCalls!F97","v":"Jul 2017"},{"$f":"ZZZ__FnCalls!F98","v":"Aug 2017"},{"$f":"ZZZ__FnCalls!F99","v":"Sep 2017"},{"$f":"ZZZ__FnCalls!F100","v":"Oct 2017"},{"$f":"ZZZ__FnCalls!F101","v":"Nov 2017"},{"$f":"ZZZ__FnCalls!F102","v":"Dec 2017"},{"$f":"ZZZ__FnCalls!H91","v":"2017"},{"$f":"ZZZ__FnCalls!F103","v":"Jan 2018"},{"$f":"ZZZ__FnCalls!F104","v":"Feb 2018"},{"$f":"ZZZ__FnCalls!F105","v":"Mar 2018"},{"$f":"ZZZ__FnCalls!F106","v":"Apr 2018"},{"$f":"ZZZ__FnCalls!F107","v":"May 2018"},{"$f":"ZZZ__FnCalls!F108","v":"Jun 2018"},{"$f":"ZZZ__FnCalls!F109","v":"Jul 2018"},{"$f":"ZZZ__FnCalls!F110","v":"Aug 2018"},{"$f":"ZZZ__FnCalls!F111","v":"Sep 2018"},{"$f":"ZZZ__FnCalls!F112","v":"Oct 2018"},{"$f":"ZZZ__FnCalls!F113","v":"Nov 2018"},{"$f":"ZZZ__FnCalls!F114","v":"Dec 2018"},{"$f":"ZZZ__FnCalls!H103","v":"2018"},{"$f":"ZZZ__FnCalls!F115","v":"Jan 2019"},{"$f":"ZZZ__FnCalls!F116","v":"Feb 2019"},{"$f":"ZZZ__FnCalls!F117","v":"Mar 2019"},{"$f":"ZZZ__FnCalls!F118","v":"Apr 2019"},{"$f":"ZZZ__FnCalls!F119","v":"May 2019"},{"$f":"ZZZ__FnCalls!F120","v":"Jun 2019"},{"$f":"ZZZ__FnCalls!F121","v":"Jul 2019"},{"$f":"ZZZ__FnCalls!F122","v":"Aug 2019"},{"$f":"ZZZ__FnCalls!F123","v":"Sep 2019"},{"$f":"ZZZ__FnCalls!F124","v":"Oct 2019"},{"$f":"ZZZ__FnCalls!F125","v":"Nov 2019"},{"$f":"ZZZ__FnCalls!F126","v":"Dec 2019"},{"$f":"ZZZ__FnCalls!H115","v":"2019"},{"$f":"ZZZ__FnCalls!F127","v":"Jan 2020"},{"$f":"ZZZ__FnCalls!F128","v":"Feb 2020"},{"$f":"ZZZ__FnCalls!F129","v":"Mar 2020"},{"$f":"ZZZ__FnCalls!F130","v":"Apr 2020"},{"$f":"ZZZ__FnCalls!F131","v":"May 2020"},{"$f":"ZZZ__FnCalls!F132","v":"Jun 2020"},{"$f":"ZZZ__FnCalls!F133","v":"Jul 2020"},{"$f":"ZZZ__FnCalls!F134","v":"Aug 2020"},{"$f":"ZZZ__FnCalls!F135","v":"Sep 2020"},{"$f":"ZZZ__FnCalls!F136","v":"Oct 2020"},{"$f":"ZZZ__FnCalls!F137","v":"Nov 2020"},{"$f":"ZZZ__FnCalls!F138","v":"Dec 2020"},{"$f":"ZZZ__FnCalls!H127","v":"2020"}]
[{"$f":"Labels!B64","v":"Output"},{"$f":"B45*(1-Inputs!B21)+B11*Inputs!B21+B46","v":{"v":1201299.2294072022,"d":"$1,201,299"}},{"$f":"C45*(1-Inputs!B21)+C11*Inputs!B21+C46","v":{"v":1222026.2337539496,"d":"$1,222,026"}},{"$f":"D45*(1-Inputs!B21)+D11*Inputs!B21+D46","v":{"v":1187411.860822248,"d":"$1,187,412"}},{"$f":"E45*(1-Inputs!B21)+E11*Inputs!B21+E46","v":{"v":1120073.998476407,"d":"$1,120,074"}},{"$f":"F45*(1-Inputs!B21)+F11*Inputs!B21+F46","v":{"v":1132805.6545766979,"d":"$1,132,806"}},{"$f":"G45*(1-Inputs!B21)+G11*Inputs!B21+G46","v":{"v":1187397.5563598364,"d":"$1,187,398"}},{"$f":"H45*(1-Inputs!B21)+H11*Inputs!B21+H46","v":{"v":1188878.016614529,"d":"$1,188,878"}},{"$f":"I45*(1-Inputs!B21)+I11*Inputs!B21+I46","v":{"v":1193531.8466430148,"d":"$1,193,532"}},{"$f":"J45*(1-Inputs!B21)+J11*Inputs!B21+J46","v":{"v":1144992.4525960912,"d":"$1,144,992"}},{"$f":"K45*(1-Inputs!B21)+K11*Inputs!B21+K46","v":{"v":1144182.243749663,"d":"$1,144,182"}},{"$f":"L45*(1-Inputs!B21)+L11*Inputs!B21+L46","v":{"v":1147529.3948913678,"d":"$1,147,529"}},{"$f":"M45*(1-Inputs!B21)+M11*Inputs!B21+M46","v":{"v":1144675.7851286323,"d":"$1,144,676"}},{"$f":"SUM(B44:M44)","v":{"v":14014804.273019642,"d":"$14,014,804"}},{"$f":"O45*(1-Inputs!B21)+O11*Inputs!B21+O46","v":{"v":1179631.7449373133,"d":"$1,179,632"}},{"$f":"P45*(1-Inputs!B21)+P11*Inputs!B21+P46","v":{"v":1148361.401371273,"d":"$1,148,361"}},{"$f":"Q45*(1-Inputs!B21)+Q11*Inputs!B21+Q46","v":{"v":1184014.452204025,"d":"$1,184,014"}},{"$f":"R45*(1-Inputs!B21)+R11*Inputs!B21+R46","v":{"v":1199603.5206685495,"d":"$1,199,604"}},{"$f":"S45*(1-Inputs!B21)+S11*Inputs!B21+S46","v":{"v":1193180.2595368011,"d":"$1,193,180"}},{"$f":"T45*(1-Inputs!B21)+T11*Inputs!B21+T46","v":{"v":1120637.7707265895,"d":"$1,120,638"}},{"$f":"U45*(1-Inputs!B21)+U11*Inputs!B21+U46","v":{"v":1140730.9256818462,"d":"$1,140,731"}},{"$f":"V45*(1-Inputs!B21)+V11*Inputs!B21+V46","v":{"v":1145110.4032729438,"d":"$1,145,110"}},{"$f":"W45*(1-Inputs!B21)+W11*Inputs!B21+W46","v":{"v":1135544.9181170787,"d":"$1,135,545"}},{"$f":"X45*(1-Inputs!B21)+X11*Inputs!B21+X46","v":{"v":1163918.8731006363,"d":"$1,163,919"}},{"$f":"Y45*(1-Inputs!B21)+Y11*Inputs!B21+Y46","v":{"v":1091334.5897705571,"d":"$1,091,335"}},{"$f":"Z45*(1-Inputs!B21)+Z11*Inputs!B21+Z46","v":{"v":1147876.3548592879,"d":"$1,147,876"}},{"$f":"SUM(O44:Z44)","v":{"v":13849945.214246899,"d":"$13,849,945"}},{"$f":"AB45*(1-Inputs!B21)+AB11*Inputs!B21+AB46","v":{"v":1145727.799498769,"d":"$1,145,728"}},{"$f":"AC45*(1-Inputs!B21)+AC11*Inputs!B21+AC46","v":{"v":1135919.5853259382,"d":"$1,135,920"}},{"$f":"AD45*(1-Inputs!B21)+AD11*Inputs!B21+AD46","v":{"v":1127596.696848853,"d":"$1,127,597"}},{"$f":"AE45*(1-Inputs!B21)+AE11*Inputs!B21+AE46","v":{"v":1088968.3600925945,"d":"$1,088,968"}},{"$f":"AF45*(1-Inputs!B21)+AF11*Inputs!B21+AF46","v":{"v":1149297.2496186434,"d":"$1,149,297"}},{"$f":"AG45*(1-Inputs!B21)+AG11*Inputs!B21+AG46","v":{"v":1142576.0162419803,"d":"$1,142,576"}},{"$f":"AH45*(1-Inputs!B21)+AH11*Inputs!B21+AH46","v":{"v":1177783.5871062046,"d":"$1,177,784"}},{"$f":"AI45*(1-Inputs!B21)+AI11*Inputs!B21+AI46","v":{"v":1096999.5969034254,"d":"$1,097,000"}},{"$f":"AJ45*(1-Inputs!B21)+AJ11*Inputs!B21+AJ46","v":{"v":1067578.7578315707,"d":"$1,067,579"}},{"$f":"AK45*(1-Inputs!B21)+AK11*Inputs!B21+AK46","v":{"v":1083429.3017479556,"d":"$1,083,429"}},{"$f":"AL45*(1-Inputs!B21)+AL11*Inputs!B21+AL46","v":{"v":1110068.276174087,"d":"$1,110,068"}},{"$f":"AM45*(1-Inputs!B21)+AM11*Inputs!B21+AM46","v":{"v":1159372.9363897233,"d":"$1,159,373"}},{"$f":"SUM(AB44:AM44)","v":{"v":13485318.163779745,"d":"$13,485,318"}},{"$f":"AO45*(1-Inputs!B21)+AO11*Inputs!B21+AO46","v":{"v":1089812.4230608102,"d":"$1,089,812"}},{"$f":"AP45*(1-Inputs!B21)+AP11*Inputs!B21+AP46","v":{"v":1106997.8174977023,"d":"$1,106,998"}},{"$f":"AQ45*(1-Inputs!B21)+AQ11*Inputs!B21+AQ46","v":{"v":1099673.714055396,"d":"$1,099,674"}},{"$f":"AR45*(1-Inputs!B21)+AR11*Inputs!B21+AR46","v":{"v":1073376.900418073,"d":"$1,073,377"}},{"$f":"AS45*(1-Inputs!B21)+AS11*Inputs!B21+AS46","v":{"v":1067184.267062981,"d":"$1,067,184"}},{"$f":"AT45*(1-Inputs!B21)+AT11*Inputs!B21+AT46","v":{"v":1057191.4467010745,"d":"$1,057,191"}},{"$f":"AU45*(1-Inputs!B21)+AU11*Inputs!B21+AU46","v":{"v":1114180.946543817,"d":"$1,114,181"}},{"$f":"AV45*(1-Inputs!B21)+AV11*Inputs!B21+AV46","v":{"v":1120307.1156960942,"d":"$1,120,307"}},{"$f":"AW45*(1-Inputs!B21)+AW11*Inputs!B21+AW46","v":{"v":1096027.3069697437,"d":"$1,096,027"}},{"$f":"AX45*(1-Inputs!B21)+AX11*Inputs!B21+AX46","v":{"v":1081306.4981375798,"d":"$1,081,306"}},{"$f":"AY45*(1-Inputs!B21)+AY11*Inputs!B21+AY46","v":{"v":1102605.2319314033,"d":"$1,102,605"}},{"$f":"AZ45*(1-Inputs!B21)+AZ11*Inputs!B21+AZ46","v":{"v":1091842.5219842766,"d":"$1,091,843"}},{"$f":"SUM(AO44:AZ44)","v":{"v":13100506.190058952,"d":"$13,100,506"}},{"$f":"BB45*(1-Inputs!B21)+BB11*Inputs!B21+BB46","v":{"v":1123640.0664731793,"d":"$1,123,640"}},{"$f":"BC45*(1-Inputs!B21)+BC11*Inputs!B21+BC46","v":{"v":1081719.1860862907,"d":"$1,081,719"}},{"$f":"BD45*(1-Inputs!B21)+BD11*Inputs!B21+BD46","v":{"v":1080761.33533439,"d":"$1,080,761"}},{"$f":"BE45*(1-Inputs!B21)+BE11*Inputs!B21+BE46","v":{"v":1083298.7929456418,"d":"$1,083,299"}},{"$f":"BF45*(1-Inputs!B21)+BF11*Inputs!B21+BF46","v":{"v":1098060.952959261,"d":"$1,098,061"}},{"$f":"BG45*(1-Inputs!B21)+BG11*Inputs!B21+BG46","v":{"v":1118649.3404724495,"d":"$1,118,649"}},{"$f":"BH45*(1-Inputs!B21)+BH11*Inputs!B21+BH46","v":{"v":1111869.745207483,"d":"$1,111,870"}},{"$f":"BI45*(1-Inputs!B21)+BI11*Inputs!B21+BI46","v":{"v":1052371.448151279,"d":"$1,052,371"}},{"$f":"BJ45*(1-Inputs!B21)+BJ11*Inputs!B21+BJ46","v":{"v":1097439.2086537366,"d":"$1,097,439"}},{"$f":"BK45*(1-Inputs!B21)+BK11*Inputs!B21+BK46","v":{"v":1073744.1419877703,"d":"$1,073,744"}},{"$f":"BL45*(1-Inputs!B21)+BL11*Inputs!B21+BL46","v":{"v":1083536.8678605475,"d":"$1,083,537"}},{"$f":"BM45*(1-Inputs!B21)+BM11*Inputs!B21+BM46","v":{"v":1098971.2480833936,"d":"$1,098,971"}},{"$f":"SUM(BB44:BM44)","v":{"v":13104062.334215423,"d":"$13,104,062"}},{"$f":"BO45*(1-Inputs!B21)+BO11*Inputs!B21+BO46","v":{"v":1063018.339472834,"d":"$1,063,018"}},{"$f":"BP45*(1-Inputs!B21)+BP11*Inputs!B21+BP46","v":{"v":1094405.4938842738,"d":"$1,094,405"}},{"$f":"BQ45*(1-Inputs!B21)+BQ11*Inputs!B21+BQ46","v":{"v":1065845.7829964377,"d":"$1,065,846"}},{"$f":"BR45*(1-Inputs!B21)+BR11*Inputs!B21+BR46","v":{"v":1080148.9310348222,"d":"$1,080,149"}},{"$f":"BS45*(1-Inputs!B21)+BS11*Inputs!B21+BS46","v":{"v":1064142.0444456066,"d":"$1,064,142"}},{"$f":"BT45*(1-Inputs!B21)+BT11*Inputs!B21+BT46","v":{"v":1092528.513120149,"d":"$1,092,529"}},{"$f":"BU45*(1-Inputs!B21)+BU11*Inputs!B21+BU46","v":{"v":1084613.9417406174,"d":"$1,084,614"}},{"$f":"BV45*(1-Inputs!B21)+BV11*Inputs!B21+BV46","v":{"v":1039304.4059074977,"d":"$1,039,304"}},{"$f":"BW45*(1-Inputs!B21)+BW11*Inputs!B21+BW46","v":{"v":1102159.4230658184,"d":"$1,102,159"}},{"$f":"BX45*(1-Inputs!B21)+BX11*Inputs!B21+BX46","v":{"v":1112100.818870107,"d":"$1,112,101"}},{"$f":"BY45*(1-Inputs!B21)+BY11*Inputs!B21+BY46","v":{"v":1066307.9897169855,"d":"$1,066,308"}},{"$f":"BZ45*(1-Inputs!B21)+BZ11*Inputs!B21+BZ46","v":{"v":1093717.1248762766,"d":"$1,093,717"}},{"$f":"SUM(BO44:BZ44)","v":{"v":12958292.809131425,"d":"$12,958,293"}},{"$f":"CB45*(1-Inputs!B21)+CB11*Inputs!B21+CB46","v":{"v":1071168.9683932622,"d":"$1,071,169"}},{"$f":"CC45*(1-Inputs!B21)+CC11*Inputs!B21+CC46","v":{"v":1072365.3917547967,"d":"$1,072,365"}},{"$f":"CD45*(1-Inputs!B21)+CD11*Inputs!B21+CD46","v":{"v":1072999.6618926532,"d":"$1,073,000"}},{"$f":"CE45*(1-Inputs!B21)+CE11*Inputs!B21+CE46","v":{"v":1057996.8810451988,"d":"$1,057,997"}},{"$f":"CF45*(1-Inputs!B21)+CF11*Inputs!B21+CF46","v":{"v":1056922.4344643026,"d":"$1,056,922"}},{"$f":"CG45*(1-Inputs!B21)+CG11*Inputs!B21+CG46","v":{"v":1075666.2567168518,"d":"$1,075,666"}},{"$f":"CH45*(1-Inputs!B21)+CH11*Inputs!B21+CH46","v":{"v":1021657.2630543127,"d":"$1,021,657"}},{"$f":"CI45*(1-Inputs!B21)+CI11*Inputs!B21+CI46","v":{"v":1059570.581759421,"d":"$1,059,571"}},{"$f":"CJ45*(1-Inputs!B21)+CJ11*Inputs!B21+CJ46","v":{"v":1074810.1195800588,"d":"$1,074,810"}},{"$f":"CK45*(1-Inputs!B21)+CK11*Inputs!B21+CK46","v":{"v":1049100.9333215214,"d":"$1,049,101"}},{"$f":"CL45*(1-Inputs!B21)+CL11*Inputs!B21+CL46","v":{"v":1067490.2210947967,"d":"$1,067,490"}},{"$f":"CM45*(1-Inputs!B21)+CM11*Inputs!B21+CM46","v":{"v":1035336.7623161993,"d":"$1,035,337"}},{"$f":"SUM(CB44:CM44)","v":{"v":12715085.475393375,"d":"$12,715,085"}},{"$f":"CO45*(1-Inputs!B21)+CO11*Inputs!B21+CO46","v":{"v":1091378.5633449627,"d":"$1,091,379"}},{"$f":"CP45*(1-Inputs!B21)+CP11*Inputs!B21+CP46","v":{"v":1053828.8568299701,"d":"$1,053,829"}},{"$f":"CQ45*(1-Inputs!B21)+CQ11*Inputs!B21+CQ46","v":{"v":1024796.393011564,"d":"$1,024,796"}},{"$f":"CR45*(1-Inputs!B21)+CR11*Inputs!B21+CR46","v":{"v":1054490.4451271638,"d":"$1,054,490"}},{"$f":"CS45*(1-Inputs!B21)+CS11*Inputs!B21+CS46","v":{"v":1021590.4109571142,"d":"$1,021,590"}},{"$f":"CT45*(1-Inputs!B21)+CT11*Inputs!B21+CT46","v":{"v":1040791.0459685308,"d":"$1,040,791"}},{"$f":"CU45*(1-Inputs!B21)+CU11*Inputs!B21+CU46","v":{"v":1038107.2576939522,"d":"$1,038,107"}},{"$f":"CV45*(1-Inputs!B21)+CV11*Inputs!B21+CV46","v":{"v":1071299.3712532027,"d":"$1,071,299"}},{"$f":"CW45*(1-Inputs!B21)+CW11*Inputs!B21+CW46","v":{"v":1037786.8511277932,"d":"$1,037,787"}},{"$f":"CX45*(1-Inputs!B21)+CX11*Inputs!B21+CX46","v":{"v":1068844.9735197946,"d":"$1,068,845"}},{"$f":"CY45*(1-Inputs!B21)+CY11*Inputs!B21+CY46","v":{"v":1051662.5515070213,"d":"$1,051,663"}},{"$f":"CZ45*(1-Inputs!B21)+CZ11*Inputs!B21+CZ46","v":{"v":1021452.2278126739,"d":"$1,021,452"}},{"$f":"SUM(CO44:CZ44)","v":{"v":12576028.948153742,"d":"$12,576,029"}},{"$f":"DB45*(1-Inputs!B21)+DB11*Inputs!B21+DB46","v":{"v":1033310.4450606097,"d":"$1,033,310"}},{"$f":"DC45*(1-Inputs!B21)+DC11*Inputs!B21+DC46","v":{"v":1097600.8510346783,"d":"$1,097,601"}},{"$f":"DD45*(1-Inputs!B21)+DD11*Inputs!B21+DD46","v":{"v":1044386.911801224,"d":"$1,044,387"}},{"$f":"DE45*(1-Inputs!B21)+DE11*Inputs!B21+DE46","v":{"v":1056222.6258573558,"d":"$1,056,223"}},{"$f":"DF45*(1-Inputs!B21)+DF11*Inputs!B21+DF46","v":{"v":1043720.0085883873,"d":"$1,043,720"}},{"$f":"DG45*(1-Inputs!B21)+DG11*Inputs!B21+DG46","v":{"v":990195.0318778934,"d":"$990,195"}},{"$f":"DH45*(1-Inputs!B21)+DH11*Inputs!B21+DH46","v":{"v":1047373.3450160042,"d":"$1,047,373"}},{"$f":"DI45*(1-Inputs!B21)+DI11*Inputs!B21+DI46","v":{"v":1006148.878774065,"d":"$1,006,149"}},{"$f":"DJ45*(1-Inputs!B21)+DJ11*Inputs!B21+DJ46","v":{"v":975385.7864578316,"d":"$975,386"}},{"$f":"DK45*(1-Inputs!B21)+DK11*Inputs!B21+DK46","v":{"v":1036621.7521699824,"d":"$1,036,622"}},{"$f":"DL45*(1-Inputs!B21)+DL11*Inputs!B21+DL46","v":{"v":1024830.8753825995,"d":"$1,024,831"}},{"$f":"DM45*(1-Inputs!B21)+DM11*Inputs!B21+DM46","v":{"v":1046468.1296212578,"d":"$1,046,468"}},{"$f":"SUM(DB44:DM44)","v":{"v":12402264.641641889,"d":"$12,402,265"}},{"$f":"DO45*(1-Inputs!B21)+DO11*Inputs!B21+DO46","v":{"v":1020741.6285195646,"d":"$1,020,742"}},{"$f":"DP45*(1-Inputs!B21)+DP11*Inputs!B21+DP46","v":{"v":1051250.704993523,"d":"$1,051,251"}},{"$f":"DQ45*(1-Inputs!B21)+DQ11*Inputs!B21+DQ46","v":{"v":1063364.4601718963,"d":"$1,063,364"}},{"$f":"DR45*(1-Inputs!B21)+DR11*Inputs!B21+DR46","v":{"v":1018906.443345894,"d":"$1,018,906"}},{"$f":"DS45*(1-Inputs!B21)+DS11*Inputs!B21+DS46","v":{"v":1055103.8271440582,"d":"$1,055,104"}},{"$f":"DT45*(1-Inputs!B21)+DT11*Inputs!B21+DT46","v":{"v":976671.2862228267,"d":"$976,671"}},{"$f":"DU45*(1-Inputs!B21)+DU11*Inputs!B21+DU46","v":{"v":969506.3416040929,"d":"$969,506"}},{"$f":"DV45*(1-Inputs!B21)+DV11*Inputs!B21+DV46","v":{"v":1028038.8871052568,"d":"$1,028,039"}},{"$f":"DW45*(1-Inputs!B21)+DW11*Inputs!B21+DW46","v":{"v":1053728.3340235779,"d":"$1,053,728"}},{"$f":"DX45*(1-Inputs!B21)+DX11*Inputs!B21+DX46","v":{"v":980582.0944507854,"d":"$980,582"}},{"$f":"DY45*(1-Inputs!B21)+DY11*Inputs!B21+DY46","v":{"v":1036790.0340613283,"d":"$1,036,790"}},{"$f":"DZ45*(1-Inputs!B21)+DZ11*Inputs!B21+DZ46","v":{"v":1004585.924127641,"d":"$1,004,586"}},{"$f":"SUM(DO44:DZ44)","v":{"v":12259269.965770444,"d":"$12,259,270"}},{"$f":"EB45*(1-Inputs!B21)+EB11*Inputs!B21+EB46","v":{"v":1051227.486369622,"d":"$1,051,227"}},{"$f":"EC45*(1-Inputs!B21)+EC11*Inputs!B21+EC46","v":{"v":1061204.1863434687,"d":"$1,061,204"}},{"$f":"ED45*(1-Inputs!B21)+ED11*Inputs!B21+ED46","v":{"v":1033102.4271454777,"d":"$1,033,102"}},{"$f":"EE45*(1-Inputs!B21)+EE11*Inputs!B21+EE46","v":{"v":1009554.2777937904,"d":"$1,009,554"}},{"$f":"EF45*(1-Inputs!B21)+EF11*Inputs!B21+EF46","v":{"v":991485.3167046153,"d":"$991,485"}},{"$f":"EG45*(1-Inputs!B21)+EG11*Inputs!B21+EG46","v":{"v":969369.2747889318,"d":"$969,369"}},{"$f":"EH45*(1-Inputs!B21)+EH11*Inputs!B21+EH46","v":{"v":1022828.2486376974,"d":"$1,022,828"}},{"$f":"EI45*(1-Inputs!B21)+EI11*Inputs!B21+EI46","v":{"v":1064819.4473851328,"d":"$1,064,819"}},{"$f":"EJ45*(1-Inputs!B21)+EJ11*Inputs!B21+EJ46","v":{"v":1029457.7594452228,"d":"$1,029,458"}},{"$f":"EK45*(1-Inputs!B21)+EK11*Inputs!B21+EK46","v":{"v":977150.0045526372,"d":"$977,150"}},{"$f":"EL45*(1-Inputs!B21)+EL11*Inputs!B21+EL46","v":{"v":1009524.8271263975,"d":"$1,009,525"}},{"$f":"EM45*(1-Inputs!B21)+EM11*Inputs!B21+EM46","v":{"v":1031761.2132551357,"d":"$1,031,761"}},{"$f":"SUM(EB44:EM44)","v":{"v":12251484.469548129,"d":"$12,251,484"}}]
[{"$f":"Labels!B68","v":"Potential Output"},{"$f":"'(Other Computations)'!B8*(B28/Inputs!B27)^(1-Inputs!B20)*(B19/'(Other Computations)'!B194)^Inputs!B20","v":{"v":1166666.6666666667,"d":"$1,166,667"}},{"$f":"'(Other Computations)'!B8*(C28/Inputs!B27)^(1-Inputs!B20)*(C19/'(Other Computations)'!B194)^Inputs!B20","v":{"v":1166666.6666666667,"d":"$1,166,667"}},{"$f":"'(Other Computations)'!B8*(D28/Inputs!B27)^(1-Inputs!B20)*(D19/'(Other Computations)'!B194)^Inputs!B20","v":{"v":1166623.8298592607,"d":"$1,166,624"}},{"$f":"'(Other Computations)'!B8*(E28/Inputs!B27)^(1-Inputs!B20)*(E19/'(Other Computations)'!B194)^Inputs!B20","v":{"v":1166537.9254903637,"d":"$1,166,538"}},{"$f":"'(Other Computations)'!B8*(F28/Inputs!B27)^(1-Inputs!B20)*(F19/'(Other Computations)'!B194)^Inputs!B20","v":{"v":1166409.9678105214,"d":"$1,166,410"}},{"$f":"'(Other Computations)'!B8*(G28/Inputs!B27)^(1-Inputs!B20)*(G19/'(Other Computations)'!B194)^Inputs!B20","v":{"v":1166249.2971256338,"d":"$1,166,249"}},{"$f":"'(Other Computations)'!B8*(H28/Inputs!B27)^(1-Inputs!B20)*(H19/'(Other Computations)'!B194)^Inputs!B20","v":{"v":1166060.6711370025,"d":"$1,166,061"}},{"$f":"'(Other Computations)'!B8*(I28/Inputs!B27)^(1-Inputs!B20)*(I19/'(Other Computations)'!B194)^Inputs!B20","v":{"v":1165848.3357024011,"d":"$1,165,848"}},{"$f":"'(Other Computations)'!B8*(J28/Inputs!B27)^(1-Inputs!B20)*(J19/'(Other Computations)'!B194)^Inputs!B20","v":{"v":1165593.4362115888,"d":"$1,165,593"}},{"$f":"'(Other Computations)'!B8*(K28/Inputs!B27)^(1-Inputs!B20)*(K19/'(Other Computations)'!B194)^Inputs!B20","v":{"v":1165297.6436786922,"d":"$1,165,298"}},{"$f":"'(Other Computations)'!B8*(L28/Inputs!B27)^(1-Inputs!B20)*(L19/'(Other Computations)'!B194)^Inputs!B20","v":{"v":1164968.7393338957,"d":"$1,164,969"}},{"$f":"'(Other Computations)'!B8*(M28/Inputs!B27)^(1-Inputs!B20)*(M19/'(Other Computations)'!B194)^Inputs!B20","v":{"v":1164607.7939671972,"d":"$1,164,608"}},{"$f":"SUM(B45:M45)","v":{"v":13991530.97364989,"d":"$13,991,531"}},{"$f":"'(Other Computations)'!B8*(O28/Inputs!B27)^(1-Inputs!B20)*(O19/'(Other Computations)'!B194)^Inputs!B20","v":{"v":1164217.536075832,"d":"$1,164,218"}},{"$f":"'(Other Computations)'!B8*(P28/Inputs!B27)^(1-Inputs!B20)*(P19/'(Other Computations)'!B194)^Inputs!B20","v":{"v":1163789.3268833398,"d":"$1,163,789"}},{"$f":"'(Other Computations)'!B8*(Q28/Inputs!B27)^(1-Inputs!B20)*(Q19/'(Other Computations)'!B194)^Inputs!B20","v":{"v":1163333.9003409625,"d":"$1,163,334"}},{"$f":"'(Other Computations)'!B8*(R28/Inputs!B27)^(1-Inputs!B20)*(R19/'(Other Computations)'!B194)^Inputs!B20","v":{"v":1162854.5514765568,"d":"$1,162,855"}},{"$f":"'(Other Computations)'!B8*(S28/Inputs!B27)^(1-Inputs!B20)*(S19/'(Other Computations)'!B194)^Inputs!B20","v":{"v":1162357.841128403,"d":"$1,162,358"}},{"$f":"'(Other Computations)'!B8*(T28/Inputs!B27)^(1-Inputs!B20)*(T19/'(Other Computations)'!B194)^Inputs!B20","v":{"v":1161836.1279215068,"d":"$1,161,836"}},{"$f":"'(Other Computations)'!B8*(U28/Inputs!B27)^(1-Inputs!B20)*(U19/'(Other Computations)'!B194)^Inputs!B20","v":{"v":1161278.7898312877,"d":"$1,161,279"}},{"$f":"'(Other Computations)'!B8*(V28/Inputs!B27)^(1-Inputs!B20)*(V19/'(Other Computations)'!B194)^Inputs!B20","v":{"v":1160694.872074748,"d":"$1,160,695"}},{"$f":"'(Other Computations)'!B8*(W28/Inputs!B27)^(1-Inputs!B20)*(W19/'(Other Computations)'!B194)^Inputs!B20","v":{"v":1160089.0127174587,"d":"$1,160,089"}},{"$f":"'(Other Computations)'!B8*(X28/Inputs!B27)^(1-Inputs!B20)*(X19/'(Other Computations)'!B194)^Inputs!B20","v":{"v":1159460.5234763527,"d":"$1,159,461"}},{"$f":"'(Other Computations)'!B8*(Y28/Inputs!B27)^(1-Inputs!B20)*(Y19/'(Other Computations)'!B194)^Inputs!B20","v":{"v":1158822.9455155435,"d":"$1,158,823"}},{"$f":"'(Other Computations)'!B8*(Z28/Inputs!B27)^(1-Inputs!B20)*(Z19/'(Other Computations)'!B194)^Inputs!B20","v":{"v":1158163.4011084826,"d":"$1,158,163"}},{"$f":"SUM(O45:Z45)","v":{"v":13936898.828550475,"d":"$13,936,899"}},{"$f":"'(Other Computations)'!B8*(AB28/Inputs!B27)^(1-Inputs!B20)*(AB19/'(Other Computations)'!B194)^Inputs!B20","v":{"v":1157473.6646669398,"d":"$1,157,474"}},{"$f":"'(Other Computations)'!B8*(AC28/Inputs!B27)^(1-Inputs!B20)*(AC19/'(Other Computations)'!B194)^Inputs!B20","v":{"v":1156758.912605821,"d":"$1,156,759"}},{"$f":"'(Other Computations)'!B8*(AD28/Inputs!B27)^(1-Inputs!B20)*(AD19/'(Other Computations)'!B194)^Inputs!B20","v":{"v":1156021.475683058,"d":"$1,156,021"}},{"$f":"'(Other Computations)'!B8*(AE28/Inputs!B27)^(1-Inputs!B20)*(AE19/'(Other Computations)'!B194)^Inputs!B20","v":{"v":1155268.1851707157,"d":"$1,155,268"}},{"$f":"'(Other Computations)'!B8*(AF28/Inputs!B27)^(1-Inputs!B20)*(AF19/'(Other Computations)'!B194)^Inputs!B20","v":{"v":1154495.2306366824,"d":"$1,154,495"}},{"$f":"'(Other Computations)'!B8*(AG28/Inputs!B27)^(1-Inputs!B20)*(AG19/'(Other Computations)'!B194)^Inputs!B20","v":{"v":1153697.4417627163,"d":"$1,153,697"}},{"$f":"'(Other Computations)'!B8*(AH28/Inputs!B27)^(1-Inputs!B20)*(AH19/'(Other Computations)'!B194)^Inputs!B20","v":{"v":1152880.340337882,"d":"$1,152,880"}},{"$f":"'(Other Computations)'!B8*(AI28/Inputs!B27)^(1-Inputs!B20)*(AI19/'(Other Computations)'!B194)^Inputs!B20","v":{"v":1152057.1767736748,"d":"$1,152,057"}},{"$f":"'(Other Computations)'!B8*(AJ28/Inputs!B27)^(1-Inputs!B20)*(AJ19/'(Other Computations)'!B194)^Inputs!B20","v":{"v":1151219.3160803241,"d":"$1,151,219"}},{"$f":"'(Other Computations)'!B8*(AK28/Inputs!B27)^(1-Inputs!B20)*(AK19/'(Other Computations)'!B194)^Inputs!B20","v":{"v":1150367.2062760035,"d":"$1,150,367"}},{"$f":"'(Other Computations)'!B8*(AL28/Inputs!B27)^(1-Inputs!B20)*(AL19/'(Other Computations)'!B194)^Inputs!B20","v":{"v":1149497.8089337961,"d":"$1,149,498"}},{"$f":"'(Other Computations)'!B8*(AM28/Inputs!B27)^(1-Inputs!B20)*(AM19/'(Other Computations)'!B194)^Inputs!B20","v":{"v":1148622.967305115,"d":"$1,148,623"}},{"$f":"SUM(AB45:AM45)","v":{"v":13838359.726232728,"d":"$13,838,360"}},{"$f":"'(Other Computations)'!B8*(AO28/Inputs!B27)^(1-Inputs!B20)*(AO19/'(Other Computations)'!B194)^Inputs!B20","v":{"v":1147733.0517611357,"d":"$1,147,733"}},{"$f":"'(Other Computations)'!B8*(AP28/Inputs!B27)^(1-Inputs!B20)*(AP19/'(Other Computations)'!B194)^Inputs!B20","v":{"v":1146819.4864017216,"d":"$1,146,819"}},{"$f":"'(Other Computations)'!B8*(AQ28/Inputs!B27)^(1-Inputs!B20)*(AQ19/'(Other Computations)'!B194)^Inputs!B20","v":{"v":1145894.5739122294,"d":"$1,145,895"}},{"$f":"'(Other Computations)'!B8*(AR28/Inputs!B27)^(1-Inputs!B20)*(AR19/'(Other Computations)'!B194)^Inputs!B20","v":{"v":1144958.1920966918,"d":"$1,144,958"}},{"$f":"'(Other Computations)'!B8*(AS28/Inputs!B27)^(1-Inputs!B20)*(AS19/'(Other Computations)'!B194)^Inputs!B20","v":{"v":1144009.4564576535,"d":"$1,144,009"}},{"$f":"'(Other Computations)'!B8*(AT28/Inputs!B27)^(1-Inputs!B20)*(AT19/'(Other Computations)'!B194)^Inputs!B20","v":{"v":1143043.9334458155,"d":"$1,143,044"}},{"$f":"'(Other Computations)'!B8*(AU28/Inputs!B27)^(1-Inputs!B20)*(AU19/'(Other Computations)'!B194)^Inputs!B20","v":{"v":1142071.3558970965,"d":"$1,142,071"}},{"$f":"'(Other Computations)'!B8*(AV28/Inputs!B27)^(1-Inputs!B20)*(AV19/'(Other Computations)'!B194)^Inputs!B20","v":{"v":1141095.8928938655,"d":"$1,141,096"}},{"$f":"'(Other Computations)'!B8*(AW28/Inputs!B27)^(1-Inputs!B20)*(AW19/'(Other Computations)'!B194)^Inputs!B20","v":{"v":1140114.2199721674,"d":"$1,140,114"}},{"$f":"'(Other Computations)'!B8*(AX28/Inputs!B27)^(1-Inputs!B20)*(AX19/'(Other Computations)'!B194)^Inputs!B20","v":{"v":1139123.5709529875,"d":"$1,139,124"}},{"$f":"'(Other Computations)'!B8*(AY28/Inputs!B27)^(1-Inputs!B20)*(AY19/'(Other Computations)'!B194)^Inputs!B20","v":{"v":1138128.5574460824,"d":"$1,138,129"}},{"$f":"'(Other Computations)'!B8*(AZ28/Inputs!B27)^(1-Inputs!B20)*(AZ19/'(Other Computations)'!B194)^Inputs!B20","v":{"v":1137119.450149952,"d":"$1,137,119"}},{"$f":"SUM(AO45:AZ45)","v":{"v":13710111.741387399,"d":"$13,710,112"}},{"$f":"'(Other Computations)'!B8*(BB28/Inputs!B27)^(1-Inputs!B20)*(BB19/'(Other Computations)'!B194)^Inputs!B20","v":{"v":1136097.7438690327,"d":"$1,136,098"}},{"$f":"'(Other Computations)'!B8*(BC28/Inputs!B27)^(1-Inputs!B20)*(BC19/'(Other Computations)'!B194)^Inputs!B20","v":{"v":1135059.2888662822,"d":"$1,135,059"}},{"$f":"'(Other Computations)'!B8*(BD28/Inputs!B27)^(1-Inputs!B20)*(BD19/'(Other Computations)'!B194)^Inputs!B20","v":{"v":1134026.0200753673,"d":"$1,134,026"}},{"$f":"'(Other Computations)'!B8*(BE28/Inputs!B27)^(1-Inputs!B20)*(BE19/'(Other Computations)'!B194)^Inputs!B20","v":{"v":1132997.5325899594,"d":"$1,132,998"}},{"$f":"'(Other Computations)'!B8*(BF28/Inputs!B27)^(1-Inputs!B20)*(BF19/'(Other Computations)'!B194)^Inputs!B20","v":{"v":1131956.5263091114,"d":"$1,131,957"}},{"$f":"'(Other Computations)'!B8*(BG28/Inputs!B27)^(1-Inputs!B20)*(BG19/'(Other Computations)'!B194)^Inputs!B20","v":{"v":1130909.8638235673,"d":"$1,130,910"}},{"$f":"'(Other Computations)'!B8*(BH28/Inputs!B27)^(1-Inputs!B20)*(BH19/'(Other Computations)'!B194)^Inputs!B20","v":{"v":1129851.95040204,"d":"$1,129,852"}},{"$f":"'(Other Computations)'!B8*(BI28/Inputs!B27)^(1-Inputs!B20)*(BI19/'(Other Computations)'!B194)^Inputs!B20","v":{"v":1128793.3965212766,"d":"$1,128,793"}},{"$f":"'(Other Computations)'!B8*(BJ28/Inputs!B27)^(1-Inputs!B20)*(BJ19/'(Other Computations)'!B194)^Inputs!B20","v":{"v":1127724.691047291,"d":"$1,127,725"}},{"$f":"'(Other Computations)'!B8*(BK28/Inputs!B27)^(1-Inputs!B20)*(BK19/'(Other Computations)'!B194)^Inputs!B20","v":{"v":1126652.1469154044,"d":"$1,126,652"}},{"$f":"'(Other Computations)'!B8*(BL28/Inputs!B27)^(1-Inputs!B20)*(BL19/'(Other Computations)'!B194)^Inputs!B20","v":{"v":1125564.1604972382,"d":"$1,125,564"}},{"$f":"'(Other Computations)'!B8*(BM28/Inputs!B27)^(1-Inputs!B20)*(BM19/'(Other Computations)'!B194)^Inputs!B20","v":{"v":1124478.8017245624,"d":"$1,124,479"}},{"$f":"SUM(BB45:BM45)","v":{"v":13564112.122641133,"d":"$13,564,112"}},{"$f":"'(Other Computations)'!B8*(BO28/Inputs!B27)^(1-Inputs!B20)*(BO19/'(Other Computations)'!B194)^Inputs!B20","v":{"v":1123393.1097010295,"d":"$1,123,393"}},{"$f":"'(Other Computations)'!B8*(BP28/Inputs!B27)^(1-Inputs!B20)*(BP19/'(Other Computations)'!B194)^Inputs!B20","v":{"v":1122309.6925413625,"d":"$1,122,310"}},{"$f":"'(Other Computations)'!B8*(BQ28/Inputs!B27)^(1-Inputs!B20)*(BQ19/'(Other Computations)'!B194)^Inputs!B20","v":{"v":1121227.8505227785,"d":"$1,121,228"}},{"$f":"'(Other Computations)'!B8*(BR28/Inputs!B27)^(1-Inputs!B20)*(BR19/'(Other Computations)'!B194)^Inputs!B20","v":{"v":1120148.0684655171,"d":"$1,120,148"}},{"$f":"'(Other Computations)'!B8*(BS28/Inputs!B27)^(1-Inputs!B20)*(BS19/'(Other Computations)'!B194)^Inputs!B20","v":{"v":1119061.0583171998,"d":"$1,119,061"}},{"$f":"'(Other Computations)'!B8*(BT28/Inputs!B27)^(1-Inputs!B20)*(BT19/'(Other Computations)'!B194)^Inputs!B20","v":{"v":1117973.0132977045,"d":"$1,117,973"}},{"$f":"'(Other Computations)'!B8*(BU28/Inputs!B27)^(1-Inputs!B20)*(BU19/'(Other Computations)'!B194)^Inputs!B20","v":{"v":1116875.4194870626,"d":"$1,116,875"}},{"$f":"'(Other Computations)'!B8*(BV28/Inputs!B27)^(1-Inputs!B20)*(BV19/'(Other Computations)'!B194)^Inputs!B20","v":{"v":1115779.8050822064,"d":"$1,115,780"}},{"$f":"'(Other Computations)'!B8*(BW28/Inputs!B27)^(1-Inputs!B20)*(BW19/'(Other Computations)'!B194)^Inputs!B20","v":{"v":1114679.7497789946,"d":"$1,114,680"}},{"$f":"'(Other Computations)'!B8*(BX28/Inputs!B27)^(1-Inputs!B20)*(BX19/'(Other Computations)'!B194)^Inputs!B20","v":{"v":1113573.119647992,"d":"$1,113,573"}},{"$f":"'(Other Computations)'!B8*(BY28/Inputs!B27)^(1-Inputs!B20)*(BY19/'(Other Computations)'!B194)^Inputs!B20","v":{"v":1112458.061967827,"d":"$1,112,458"}},{"$f":"'(Other Computations)'!B8*(BZ28/Inputs!B27)^(1-Inputs!B20)*(BZ19/'(Other Computations)'!B194)^Inputs!B20","v":{"v":1111347.5139486408,"d":"$1,111,348"}},{"$f":"SUM(BO45:BZ45)","v":{"v":13408826.462758318,"d":"$13,408,826"}},{"$f":"'(Other Computations)'!B8*(CB28/Inputs!B27)^(1-Inputs!B20)*(CB19/'(Other Computations)'!B194)^Inputs!B20","v":{"v":1110235.0677740758,"d":"$1,110,235"}},{"$f":"'(Other Computations)'!B8*(CC28/Inputs!B27)^(1-Inputs!B20)*(CC19/'(Other Computations)'!B194)^Inputs!B20","v":{"v":1109125.5442044204,"d":"$1,109,126"}},{"$f":"'(Other Computations)'!B8*(CD28/Inputs!B27)^(1-Inputs!B20)*(CD19/'(Other Computations)'!B194)^Inputs!B20","v":{"v":1108009.861045445,"d":"$1,108,010"}},{"$f":"'(Other Computations)'!B8*(CE28/Inputs!B27)^(1-Inputs!B20)*(CE19/'(Other Computations)'!B194)^Inputs!B20","v":{"v":1106897.1327292211,"d":"$1,106,897"}},{"$f":"'(Other Computations)'!B8*(CF28/Inputs!B27)^(1-Inputs!B20)*(CF19/'(Other Computations)'!B194)^Inputs!B20","v":{"v":1105780.8522562163,"d":"$1,105,781"}},{"$f":"'(Other Computations)'!B8*(CG28/Inputs!B27)^(1-Inputs!B20)*(CG19/'(Other Computations)'!B194)^Inputs!B20","v":{"v":1104662.6326203924,"d":"$1,104,663"}},{"$f":"'(Other Computations)'!B8*(CH28/Inputs!B27)^(1-Inputs!B20)*(CH19/'(Other Computations)'!B194)^Inputs!B20","v":{"v":1103545.8673455524,"d":"$1,103,546"}},{"$f":"'(Other Computations)'!B8*(CI28/Inputs!B27)^(1-Inputs!B20)*(CI19/'(Other Computations)'!B194)^Inputs!B20","v":{"v":1102426.9930667975,"d":"$1,102,427"}},{"$f":"'(Other Computations)'!B8*(CJ28/Inputs!B27)^(1-Inputs!B20)*(CJ19/'(Other Computations)'!B194)^Inputs!B20","v":{"v":1101321.2088344472,"d":"$1,101,321"}},{"$f":"'(Other Computations)'!B8*(CK28/Inputs!B27)^(1-Inputs!B20)*(CK19/'(Other Computations)'!B194)^Inputs!B20","v":{"v":1100222.4819044063,"d":"$1,100,222"}},{"$f":"'(Other Computations)'!B8*(CL28/Inputs!B27)^(1-Inputs!B20)*(CL19/'(Other Computations)'!B194)^Inputs!B20","v":{"v":1099123.4711147978,"d":"$1,099,123"}},{"$f":"'(Other Computations)'!B8*(CM28/Inputs!B27)^(1-Inputs!B20)*(CM19/'(Other Computations)'!B194)^Inputs!B20","v":{"v":1098032.0833796905,"d":"$1,098,032"}},{"$f":"SUM(CB45:CM45)","v":{"v":13249383.196275461,"d":"$13,249,383"}},{"$f":"'(Other Computations)'!B8*(CO28/Inputs!B27)^(1-Inputs!B20)*(CO19/'(Other Computations)'!B194)^Inputs!B20","v":{"v":1096942.8764399618,"d":"$1,096,943"}},{"$f":"'(Other Computations)'!B8*(CP28/Inputs!B27)^(1-Inputs!B20)*(CP19/'(Other Computations)'!B194)^Inputs!B20","v":{"v":1095850.003125521,"d":"$1,095,850"}},{"$f":"'(Other Computations)'!B8*(CQ28/Inputs!B27)^(1-Inputs!B20)*(CQ19/'(Other Computations)'!B194)^Inputs!B20","v":{"v":1094764.3293340136,"d":"$1,094,764"}},{"$f":"'(Other Computations)'!B8*(CR28/Inputs!B27)^(1-Inputs!B20)*(CR19/'(Other Computations)'!B194)^Inputs!B20","v":{"v":1093683.951444883,"d":"$1,093,684"}},{"$f":"'(Other Computations)'!B8*(CS28/Inputs!B27)^(1-Inputs!B20)*(CS19/'(Other Computations)'!B194)^Inputs!B20","v":{"v":1092610.70103134,"d":"$1,092,611"}},{"$f":"'(Other Computations)'!B8*(CT28/Inputs!B27)^(1-Inputs!B20)*(CT19/'(Other Computations)'!B194)^Inputs!B20","v":{"v":1091538.9841072771,"d":"$1,091,539"}},{"$f":"'(Other Computations)'!B8*(CU28/Inputs!B27)^(1-Inputs!B20)*(CU19/'(Other Computations)'!B194)^Inputs!B20","v":{"v":1090463.2788686824,"d":"$1,090,463"}},{"$f":"'(Other Computations)'!B8*(CV28/Inputs!B27)^(1-Inputs!B20)*(CV19/'(Other Computations)'!B194)^Inputs!B20","v":{"v":1089379.1282076028,"d":"$1,089,379"}},{"$f":"'(Other Computations)'!B8*(CW28/Inputs!B27)^(1-Inputs!B20)*(CW19/'(Other Computations)'!B194)^Inputs!B20","v":{"v":1088307.4060567003,"d":"$1,088,307"}},{"$f":"'(Other Computations)'!B8*(CX28/Inputs!B27)^(1-Inputs!B20)*(CX19/'(Other Computations)'!B194)^Inputs!B20","v":{"v":1087240.5066434692,"d":"$1,087,241"}},{"$f":"'(Other Computations)'!B8*(CY28/Inputs!B27)^(1-Inputs!B20)*(CY19/'(Other Computations)'!B194)^Inputs!B20","v":{"v":1086177.821512283,"d":"$1,086,178"}},{"$f":"'(Other Computations)'!B8*(CZ28/Inputs!B27)^(1-Inputs!B20)*(CZ19/'(Other Computations)'!B194)^Inputs!B20","v":{"v":1085106.9242449626,"d":"$1,085,107"}},{"$f":"SUM(CO45:CZ45)","v":{"v":13092065.911016697,"d":"$13,092,066"}},{"$f":"'(Other Computations)'!B8*(DB28/Inputs!B27)^(1-Inputs!B20)*(DB19/'(Other Computations)'!B194)^Inputs!B20","v":{"v":1084042.238389486,"d":"$1,084,042"}},{"$f":"'(Other Computations)'!B8*(DC28/Inputs!B27)^(1-Inputs!B20)*(DC19/'(Other Computations)'!B194)^Inputs!B20","v":{"v":1082987.976867765,"d":"$1,082,988"}},{"$f":"'(Other Computations)'!B8*(DD28/Inputs!B27)^(1-Inputs!B20)*(DD19/'(Other Computations)'!B194)^Inputs!B20","v":{"v":1081931.1476651195,"d":"$1,081,931"}},{"$f":"'(Other Computations)'!B8*(DE28/Inputs!B27)^(1-Inputs!B20)*(DE19/'(Other Computations)'!B194)^Inputs!B20","v":{"v":1080868.6098070538,"d":"$1,080,869"}},{"$f":"'(Other Computations)'!B8*(DF28/Inputs!B27)^(1-Inputs!B20)*(DF19/'(Other Computations)'!B194)^Inputs!B20","v":{"v":1079812.648598731,"d":"$1,079,813"}},{"$f":"'(Other Computations)'!B8*(DG28/Inputs!B27)^(1-Inputs!B20)*(DG19/'(Other Computations)'!B194)^Inputs!B20","v":{"v":1078763.2607877634,"d":"$1,078,763"}},{"$f":"'(Other Computations)'!B8*(DH28/Inputs!B27)^(1-Inputs!B20)*(DH19/'(Other Computations)'!B194)^Inputs!B20","v":{"v":1077717.1787353,"d":"$1,077,717"}},{"$f":"'(Other Computations)'!B8*(DI28/Inputs!B27)^(1-Inputs!B20)*(DI19/'(Other Computations)'!B194)^Inputs!B20","v":{"v":1076676.1391458863,"d":"$1,076,676"}},{"$f":"'(Other Computations)'!B8*(DJ28/Inputs!B27)^(1-Inputs!B20)*(DJ19/'(Other Computations)'!B194)^Inputs!B20","v":{"v":1075629.7376796037,"d":"$1,075,630"}},{"$f":"'(Other Computations)'!B8*(DK28/Inputs!B27)^(1-Inputs!B20)*(DK19/'(Other Computations)'!B194)^Inputs!B20","v":{"v":1074591.051938939,"d":"$1,074,591"}},{"$f":"'(Other Computations)'!B8*(DL28/Inputs!B27)^(1-Inputs!B20)*(DL19/'(Other Computations)'!B194)^Inputs!B20","v":{"v":1073551.1943563109,"d":"$1,073,551"}},{"$f":"'(Other Computations)'!B8*(DM28/Inputs!B27)^(1-Inputs!B20)*(DM19/'(Other Computations)'!B194)^Inputs!B20","v":{"v":1072518.0374489157,"d":"$1,072,518"}},{"$f":"SUM(DB45:DM45)","v":{"v":12939089.221420877,"d":"$12,939,089"}},{"$f":"'(Other Computations)'!B8*(DO28/Inputs!B27)^(1-Inputs!B20)*(DO19/'(Other Computations)'!B194)^Inputs!B20","v":{"v":1071489.4632319428,"d":"$1,071,489"}},{"$f":"'(Other Computations)'!B8*(DP28/Inputs!B27)^(1-Inputs!B20)*(DP19/'(Other Computations)'!B194)^Inputs!B20","v":{"v":1070460.3629148037,"d":"$1,070,460"}},{"$f":"'(Other Computations)'!B8*(DQ28/Inputs!B27)^(1-Inputs!B20)*(DQ19/'(Other Computations)'!B194)^Inputs!B20","v":{"v":1069443.0998155056,"d":"$1,069,443"}},{"$f":"'(Other Computations)'!B8*(DR28/Inputs!B27)^(1-Inputs!B20)*(DR19/'(Other Computations)'!B194)^Inputs!B20","v":{"v":1068440.1497597815,"d":"$1,068,440"}},{"$f":"'(Other Computations)'!B8*(DS28/Inputs!B27)^(1-Inputs!B20)*(DS19/'(Other Computations)'!B194)^Inputs!B20","v":{"v":1067433.3733853127,"d":"$1,067,433"}},{"$f":"'(Other Computations)'!B8*(DT28/Inputs!B27)^(1-Inputs!B20)*(DT19/'(Other Computations)'!B194)^Inputs!B20","v":{"v":1066438.9115988181,"d":"$1,066,439"}},{"$f":"'(Other Computations)'!B8*(DU28/Inputs!B27)^(1-Inputs!B20)*(DU19/'(Other Computations)'!B194)^Inputs!B20","v":{"v":1065457.7357527285,"d":"$1,065,458"}},{"$f":"'(Other Computations)'!B8*(DV28/Inputs!B27)^(1-Inputs!B20)*(DV19/'(Other Computations)'!B194)^Inputs!B20","v":{"v":1064484.233223324,"d":"$1,064,484"}},{"$f":"'(Other Computations)'!B8*(DW28/Inputs!B27)^(1-Inputs!B20)*(DW19/'(Other Computations)'!B194)^Inputs!B20","v":{"v":1063509.301157439,"d":"$1,063,509"}},{"$f":"'(Other Computations)'!B8*(DX28/Inputs!B27)^(1-Inputs!B20)*(DX19/'(Other Computations)'!B194)^Inputs!B20","v":{"v":1062535.0599655185,"d":"$1,062,535"}},{"$f":"'(Other Computations)'!B8*(DY28/Inputs!B27)^(1-Inputs!B20)*(DY19/'(Other Computations)'!B194)^Inputs!B20","v":{"v":1061551.1048685717,"d":"$1,061,551"}},{"$f":"'(Other Computations)'!B8*(DZ28/Inputs!B27)^(1-Inputs!B20)*(DZ19/'(Other Computations)'!B194)^Inputs!B20","v":{"v":1060578.1422228375,"d":"$1,060,578"}},{"$f":"SUM(DO45:DZ45)","v":{"v":12791820.937896587,"d":"$12,791,821"}},{"$f":"'(Other Computations)'!B8*(EB28/Inputs!B27)^(1-Inputs!B20)*(EB19/'(Other Computations)'!B194)^Inputs!B20","v":{"v":1059614.440873771,"d":"$1,059,614"}},{"$f":"'(Other Computations)'!B8*(EC28/Inputs!B27)^(1-Inputs!B20)*(EC19/'(Other Computations)'!B194)^Inputs!B20","v":{"v":1058662.6794127128,"d":"$1,058,663"}},{"$f":"'(Other Computations)'!B8*(ED28/Inputs!B27)^(1-Inputs!B20)*(ED19/'(Other Computations)'!B194)^Inputs!B20","v":{"v":1057712.1361672673,"d":"$1,057,712"}},{"$f":"'(Other Computations)'!B8*(EE28/Inputs!B27)^(1-Inputs!B20)*(EE19/'(Other Computations)'!B194)^Inputs!B20","v":{"v":1056751.209110117,"d":"$1,056,751"}},{"$f":"'(Other Computations)'!B8*(EF28/Inputs!B27)^(1-Inputs!B20)*(EF19/'(Other Computations)'!B194)^Inputs!B20","v":{"v":1055790.4894905798,"d":"$1,055,790"}},{"$f":"'(Other Computations)'!B8*(EG28/Inputs!B27)^(1-Inputs!B20)*(EG19/'(Other Computations)'!B194)^Inputs!B20","v":{"v":1054840.0349689268,"d":"$1,054,840"}},{"$f":"'(Other Computations)'!B8*(EH28/Inputs!B27)^(1-Inputs!B20)*(EH19/'(Other Computations)'!B194)^Inputs!B20","v":{"v":1053901.9568625318,"d":"$1,053,902"}},{"$f":"'(Other Computations)'!B8*(EI28/Inputs!B27)^(1-Inputs!B20)*(EI19/'(Other Computations)'!B194)^Inputs!B20","v":{"v":1052963.2447442217,"d":"$1,052,963"}},{"$f":"'(Other Computations)'!B8*(EJ28/Inputs!B27)^(1-Inputs!B20)*(EJ19/'(Other Computations)'!B194)^Inputs!B20","v":{"v":1052031.402384338,"d":"$1,052,031"}},{"$f":"'(Other Computations)'!B8*(EK28/Inputs!B27)^(1-Inputs!B20)*(EK19/'(Other Computations)'!B194)^Inputs!B20","v":{"v":1051091.7194047035,"d":"$1,051,092"}},{"$f":"'(Other Computations)'!B8*(EL28/Inputs!B27)^(1-Inputs!B20)*(EL19/'(Other Computations)'!B194)^Inputs!B20","v":{"v":1050144.46860246,"d":"$1,050,144"}},{"$f":"'(Other Computations)'!B8*(EM28/Inputs!B27)^(1-Inputs!B20)*(EM19/'(Other Computations)'!B194)^Inputs!B20","v":{"v":1049206.5265561438,"d":"$1,049,207"}},{"$f":"SUM(EB45:EM45)","v":{"v":12652710.308577772,"d":"$12,652,710"}}]
[{"$f":"Labels!B78","v":"Output Shock"},{"$f":"NORMINV(RAND()*(1-2*Inputs!B58)+Inputs!B58,0,'(Other Computations)'!B208)","v":{"v":34632.56274053554,"d":"$34,633"}},{"$f":"NORMINV(RAND()*(1-2*Inputs!B58)+Inputs!B58,0,'(Other Computations)'!B208)","v":{"v":56870.21602073529,"d":"$56,870"}},{"$f":"NORMINV(RAND()*(1-2*Inputs!B58)+Inputs!B58,0,'(Other Computations)'!B208)","v":{"v":23822.106571719178,"d":"$23,822"}},{"$f":"NORMINV(RAND()*(1-2*Inputs!B58)+Inputs!B58,0,'(Other Computations)'!B208)","v":{"v":-41937.57192891079,"d":"($41,938)"}},{"$f":"NORMINV(RAND()*(1-2*Inputs!B58)+Inputs!B58,0,'(Other Computations)'!B208)","v":{"v":-27910.58407911024,"d":"($27,911)"}},{"$f":"NORMINV(RAND()*(1-2*Inputs!B58)+Inputs!B58,0,'(Other Computations)'!B208)","v":{"v":27845.0236444039,"d":"$27,845"}},{"$f":"NORMINV(RAND()*(1-2*Inputs!B58)+Inputs!B58,0,'(Other Computations)'!B208)","v":{"v":30370.325458528805,"d":"$30,370"}},{"$f":"NORMINV(RAND()*(1-2*Inputs!B58)+Inputs!B58,0,'(Other Computations)'!B208)","v":{"v":36759.95216466207,"d":"$36,760"}},{"$f":"NORMINV(RAND()*(1-2*Inputs!B58)+Inputs!B58,0,'(Other Computations)'!B208)","v":{"v":-10055.614623870211,"d":"($10,056)"}},{"$f":"NORMINV(RAND()*(1-2*Inputs!B58)+Inputs!B58,0,'(Other Computations)'!B208)","v":{"v":-9371.2852380817,"d":"($9,371)"}},{"$f":"NORMINV(RAND()*(1-2*Inputs!B58)+Inputs!B58,0,'(Other Computations)'!B208)","v":{"v":-4530.921114496909,"d":"($4,531)"}},{"$f":"NORMINV(RAND()*(1-2*Inputs!B58)+Inputs!B58,0,'(Other Computations)'!B208)","v":{"v":-5952.29495365752,"d":"($5,952)"}},{"$f":"SUM(B46:M46)","v":{"v":110541.91466245745,"d":"$110,542"}},{"$f":"NORMINV(RAND()*(1-2*Inputs!B58)+Inputs!B58,0,'(Other Computations)'!B208)","v":{"v":30772.61104845282,"d":"$30,773"}},{"$f":"NORMINV(RAND()*(1-2*Inputs!B58)+Inputs!B58,0,'(Other Computations)'!B208)","v":{"v":934.5133680026751,"d":"$935"}},{"$f":"NORMINV(RAND()*(1-2*Inputs!B58)+Inputs!B58,0,'(Other Computations)'!B208)","v":{"v":37933.472755223294,"d":"$37,933"}},{"$f":"NORMINV(RAND()*(1-2*Inputs!B58)+Inputs!B58,0,'(Other Computations)'!B208)","v":{"v":54663.36110103123,"d":"$54,663"}},{"$f":"NORMINV(RAND()*(1-2*Inputs!B58)+Inputs!B58,0,'(Other Computations)'!B208)","v":{"v":49669.133303747345,"d":"$49,669"}},{"$f":"NORMINV(RAND()*(1-2*Inputs!B58)+Inputs!B58,0,'(Other Computations)'!B208)","v":{"v":-21042.6851869664,"d":"($21,043)"}},{"$f":"NORMINV(RAND()*(1-2*Inputs!B58)+Inputs!B58,0,'(Other Computations)'!B208)","v":{"v":601.3831102648707,"d":"$601"}},{"$f":"NORMINV(RAND()*(1-2*Inputs!B58)+Inputs!B58,0,'(Other Computations)'!B208)","v":{"v":6397.343929387906,"d":"$6,397"}},{"$f":"NORMINV(RAND()*(1-2*Inputs!B58)+Inputs!B58,0,'(Other Computations)'!B208)","v":{"v":-1703.5382300562462,"d":"($1,704)"}},{"$f":"NORMINV(RAND()*(1-2*Inputs!B58)+Inputs!B58,0,'(Other Computations)'!B208)","v":{"v":27682.582075335573,"d":"$27,683"}},{"$f":"NORMINV(RAND()*(1-2*Inputs!B58)+Inputs!B58,0,'(Other Computations)'!B208)","v":{"v":-43426.19206747658,"d":"($43,426)"}},{"$f":"NORMINV(RAND()*(1-2*Inputs!B58)+Inputs!B58,0,'(Other Computations)'!B208)","v":{"v":14904.671861736602,"d":"$14,905"}},{"$f":"SUM(O46:Z46)","v":{"v":157386.65706868313,"d":"$157,387"}},{"$f":"NORMINV(RAND()*(1-2*Inputs!B58)+Inputs!B58,0,'(Other Computations)'!B208)","v":{"v":14395.777566198294,"d":"$14,396"}},{"$f":"NORMINV(RAND()*(1-2*Inputs!B58)+Inputs!B58,0,'(Other Computations)'!B208)","v":{"v":6172.307228441399,"d":"$6,172"}},{"$f":"NORMINV(RAND()*(1-2*Inputs!B58)+Inputs!B58,0,'(Other Computations)'!B208)","v":{"v":-781.8031816923233,"d":"($782)"}},{"$f":"NORMINV(RAND()*(1-2*Inputs!B58)+Inputs!B58,0,'(Other Computations)'!B208)","v":{"v":-37890.1272551638,"d":"($37,890)"}},{"$f":"NORMINV(RAND()*(1-2*Inputs!B58)+Inputs!B58,0,'(Other Computations)'!B208)","v":{"v":24162.042441235433,"d":"$24,162"}},{"$f":"NORMINV(RAND()*(1-2*Inputs!B58)+Inputs!B58,0,'(Other Computations)'!B208)","v":{"v":18996.60700777342,"d":"$18,997"}},{"$f":"NORMINV(RAND()*(1-2*Inputs!B58)+Inputs!B58,0,'(Other Computations)'!B208)","v":{"v":55314.40471113519,"d":"$55,314"}},{"$f":"NORMINV(RAND()*(1-2*Inputs!B58)+Inputs!B58,0,'(Other Computations)'!B208)","v":{"v":-24049.169457172367,"d":"($24,049)"}},{"$f":"NORMINV(RAND()*(1-2*Inputs!B58)+Inputs!B58,0,'(Other Computations)'!B208)","v":{"v":-52049.61051725651,"d":"($52,050)"}},{"$f":"NORMINV(RAND()*(1-2*Inputs!B58)+Inputs!B58,0,'(Other Computations)'!B208)","v":{"v":-34656.507875963354,"d":"($34,657)"}},{"$f":"NORMINV(RAND()*(1-2*Inputs!B58)+Inputs!B58,0,'(Other Computations)'!B208)","v":{"v":-6873.083927261292,"d":"($6,873)"}},{"$f":"NORMINV(RAND()*(1-2*Inputs!B58)+Inputs!B58,0,'(Other Computations)'!B208)","v":{"v":43920.368674023055,"d":"$43,920"}},{"$f":"SUM(AB46:AM46)","v":{"v":6661.205414297139,"d":"$6,661"}},{"$f":"NORMINV(RAND()*(1-2*Inputs!B58)+Inputs!B58,0,'(Other Computations)'!B208)","v":{"v":-23833.568524527698,"d":"($23,834)"}},{"$f":"NORMINV(RAND()*(1-2*Inputs!B58)+Inputs!B58,0,'(Other Computations)'!B208)","v":{"v":-5248.77678891398,"d":"($5,249)"}},{"$f":"NORMINV(RAND()*(1-2*Inputs!B58)+Inputs!B58,0,'(Other Computations)'!B208)","v":{"v":-11157.158968628797,"d":"($11,157)"}},{"$f":"NORMINV(RAND()*(1-2*Inputs!B58)+Inputs!B58,0,'(Other Computations)'!B208)","v":{"v":-35994.99597648865,"d":"($35,995)"}},{"$f":"NORMINV(RAND()*(1-2*Inputs!B58)+Inputs!B58,0,'(Other Computations)'!B208)","v":{"v":-40559.66482207436,"d":"($40,560)"}},{"$f":"NORMINV(RAND()*(1-2*Inputs!B58)+Inputs!B58,0,'(Other Computations)'!B208)","v":{"v":-49248.69629403973,"d":"($49,249)"}},{"$f":"NORMINV(RAND()*(1-2*Inputs!B58)+Inputs!B58,0,'(Other Computations)'!B208)","v":{"v":8905.3628520517,"d":"$8,905"}},{"$f":"NORMINV(RAND()*(1-2*Inputs!B58)+Inputs!B58,0,'(Other Computations)'!B208)","v":{"v":16315.671076422486,"d":"$16,316"}},{"$f":"NORMINV(RAND()*(1-2*Inputs!B58)+Inputs!B58,0,'(Other Computations)'!B208)","v":{"v":-6576.415087321062,"d":"($6,576)"}},{"$f":"NORMINV(RAND()*(1-2*Inputs!B58)+Inputs!B58,0,'(Other Computations)'!B208)","v":{"v":-20062.122926863514,"d":"($20,062)"}},{"$f":"NORMINV(RAND()*(1-2*Inputs!B58)+Inputs!B58,0,'(Other Computations)'!B208)","v":{"v":2817.8631497087176,"d":"$2,818"}},{"$f":"NORMINV(RAND()*(1-2*Inputs!B58)+Inputs!B58,0,'(Other Computations)'!B208)","v":{"v":-6401.106553050837,"d":"($6,401)"}},{"$f":"SUM(AO46:AZ46)","v":{"v":-171043.6088637257,"d":"($171,044)"}},{"$f":"NORMINV(RAND()*(1-2*Inputs!B58)+Inputs!B58,0,'(Other Computations)'!B208)","v":{"v":27099.270547268177,"d":"$27,099"}},{"$f":"NORMINV(RAND()*(1-2*Inputs!B58)+Inputs!B58,0,'(Other Computations)'!B208)","v":{"v":-13871.15968897814,"d":"($13,871)"}},{"$f":"NORMINV(RAND()*(1-2*Inputs!B58)+Inputs!B58,0,'(Other Computations)'!B208)","v":{"v":-13870.430294909163,"d":"($13,870)"}},{"$f":"NORMINV(RAND()*(1-2*Inputs!B58)+Inputs!B58,0,'(Other Computations)'!B208)","v":{"v":-9772.68930244665,"d":"($9,773)"}},{"$f":"NORMINV(RAND()*(1-2*Inputs!B58)+Inputs!B58,0,'(Other Computations)'!B208)","v":{"v":6322.128342387633,"d":"$6,322"}},{"$f":"NORMINV(RAND()*(1-2*Inputs!B58)+Inputs!B58,0,'(Other Computations)'!B208)","v":{"v":28445.29104416135,"d":"$28,445"}},{"$f":"NORMINV(RAND()*(1-2*Inputs!B58)+Inputs!B58,0,'(Other Computations)'!B208)","v":{"v":22840.00017878097,"d":"$22,840"}},{"$f":"NORMINV(RAND()*(1-2*Inputs!B58)+Inputs!B58,0,'(Other Computations)'!B208)","v":{"v":-35149.99504669223,"d":"($35,150)"}},{"$f":"NORMINV(RAND()*(1-2*Inputs!B58)+Inputs!B58,0,'(Other Computations)'!B208)","v":{"v":11215.262957496245,"d":"$11,215"}},{"$f":"NORMINV(RAND()*(1-2*Inputs!B58)+Inputs!B58,0,'(Other Computations)'!B208)","v":{"v":-10771.515609365275,"d":"($10,772)"}},{"$f":"NORMINV(RAND()*(1-2*Inputs!B58)+Inputs!B58,0,'(Other Computations)'!B208)","v":{"v":112.18418130165614,"d":"$112"}},{"$f":"NORMINV(RAND()*(1-2*Inputs!B58)+Inputs!B58,0,'(Other Computations)'!B208)","v":{"v":16738.08124652924,"d":"$16,738"}},{"$f":"SUM(BB46:BM46)","v":{"v":29336.428555533817,"d":"$29,336"}},{"$f":"NORMINV(RAND()*(1-2*Inputs!B58)+Inputs!B58,0,'(Other Computations)'!B208)","v":{"v":-18114.807266668086,"d":"($18,115)"}},{"$f":"NORMINV(RAND()*(1-2*Inputs!B58)+Inputs!B58,0,'(Other Computations)'!B208)","v":{"v":14394.004576268926,"d":"$14,394"}},{"$f":"NORMINV(RAND()*(1-2*Inputs!B58)+Inputs!B58,0,'(Other Computations)'!B208)","v":{"v":-13063.167509475677,"d":"($13,063)"}},{"$f":"NORMINV(RAND()*(1-2*Inputs!B58)+Inputs!B58,0,'(Other Computations)'!B208)","v":{"v":2665.387467703088,"d":"$2,665"}},{"$f":"NORMINV(RAND()*(1-2*Inputs!B58)+Inputs!B58,0,'(Other Computations)'!B208)","v":{"v":-12125.631781882525,"d":"($12,126)"}},{"$f":"NORMINV(RAND()*(1-2*Inputs!B58)+Inputs!B58,0,'(Other Computations)'!B208)","v":{"v":17775.73369288972,"d":"$17,776"}},{"$f":"NORMINV(RAND()*(1-2*Inputs!B58)+Inputs!B58,0,'(Other Computations)'!B208)","v":{"v":10982.216782715892,"d":"$10,982"}},{"$f":"NORMINV(RAND()*(1-2*Inputs!B58)+Inputs!B58,0,'(Other Computations)'!B208)","v":{"v":-32983.9393694305,"d":"($32,984)"}},{"$f":"NORMINV(RAND()*(1-2*Inputs!B58)+Inputs!B58,0,'(Other Computations)'!B208)","v":{"v":31293.635244618763,"d":"$31,294"}},{"$f":"NORMINV(RAND()*(1-2*Inputs!B58)+Inputs!B58,0,'(Other Computations)'!B208)","v":{"v":42729.23306841504,"d":"$42,729"}},{"$f":"NORMINV(RAND()*(1-2*Inputs!B58)+Inputs!B58,0,'(Other Computations)'!B208)","v":{"v":-2013.5594463264756,"d":"($2,014)"}},{"$f":"NORMINV(RAND()*(1-2*Inputs!B58)+Inputs!B58,0,'(Other Computations)'!B208)","v":{"v":26664.615552483225,"d":"$26,665"}},{"$f":"SUM(BO46:BZ46)","v":{"v":68203.72101131138,"d":"$68,204"}},{"$f":"NORMINV(RAND()*(1-2*Inputs!B58)+Inputs!B58,0,'(Other Computations)'!B208)","v":{"v":5218.441225478628,"d":"$5,218"}},{"$f":"NORMINV(RAND()*(1-2*Inputs!B58)+Inputs!B58,0,'(Other Computations)'!B208)","v":{"v":7831.114357293748,"d":"$7,831"}},{"$f":"NORMINV(RAND()*(1-2*Inputs!B58)+Inputs!B58,0,'(Other Computations)'!B208)","v":{"v":9569.03285597894,"d":"$9,569"}},{"$f":"NORMINV(RAND()*(1-2*Inputs!B58)+Inputs!B58,0,'(Other Computations)'!B208)","v":{"v":-4106.051279437941,"d":"($4,106)"}},{"$f":"NORMINV(RAND()*(1-2*Inputs!B58)+Inputs!B58,0,'(Other Computations)'!B208)","v":{"v":-3905.739754429266,"d":"($3,906)"}},{"$f":"NORMINV(RAND()*(1-2*Inputs!B58)+Inputs!B58,0,'(Other Computations)'!B208)","v":{"v":15995.87895716103,"d":"$15,996"}},{"$f":"NORMINV(RAND()*(1-2*Inputs!B58)+Inputs!B58,0,'(Other Computations)'!B208)","v":{"v":-36732.66935578057,"d":"($36,733)"}},{"$f":"NORMINV(RAND()*(1-2*Inputs!B58)+Inputs!B58,0,'(Other Computations)'!B208)","v":{"v":1931.5713078036306,"d":"$1,932"}},{"$f":"NORMINV(RAND()*(1-2*Inputs!B58)+Inputs!B58,0,'(Other Computations)'!B208)","v":{"v":18118.311519233735,"d":"$18,118"}},{"$f":"NORMINV(RAND()*(1-2*Inputs!B58)+Inputs!B58,0,'(Other Computations)'!B208)","v":{"v":-6395.107428504674,"d":"($6,395)"}},{"$f":"NORMINV(RAND()*(1-2*Inputs!B58)+Inputs!B58,0,'(Other Computations)'!B208)","v":{"v":12913.547309671223,"d":"$12,914"}},{"$f":"NORMINV(RAND()*(1-2*Inputs!B58)+Inputs!B58,0,'(Other Computations)'!B208)","v":{"v":-18139.017637753186,"d":"($18,139)"}},{"$f":"SUM(CB46:CM46)","v":{"v":2299.3120767152977,"d":"$2,299"}},{"$f":"NORMINV(RAND()*(1-2*Inputs!B58)+Inputs!B58,0,'(Other Computations)'!B208)","v":{"v":39205.25693351775,"d":"$39,205"}},{"$f":"NORMINV(RAND()*(1-2*Inputs!B58)+Inputs!B58,0,'(Other Computations)'!B208)","v":{"v":2582.061776386711,"d":"$2,582"}},{"$f":"NORMINV(RAND()*(1-2*Inputs!B58)+Inputs!B58,0,'(Other Computations)'!B208)","v":{"v":-25465.579412043196,"d":"($25,466)"}},{"$f":"NORMINV(RAND()*(1-2*Inputs!B58)+Inputs!B58,0,'(Other Computations)'!B208)","v":{"v":5143.221018857368,"d":"$5,143"}},{"$f":"NORMINV(RAND()*(1-2*Inputs!B58)+Inputs!B58,0,'(Other Computations)'!B208)","v":{"v":-26654.810896386993,"d":"($26,655)"}},{"$f":"NORMINV(RAND()*(1-2*Inputs!B58)+Inputs!B58,0,'(Other Computations)'!B208)","v":{"v":-6161.371178509568,"d":"($6,161)"}},{"$f":"NORMINV(RAND()*(1-2*Inputs!B58)+Inputs!B58,0,'(Other Computations)'!B208)","v":{"v":-7392.736054365556,"d":"($7,393)"}},{"$f":"NORMINV(RAND()*(1-2*Inputs!B58)+Inputs!B58,0,'(Other Computations)'!B208)","v":{"v":26532.032580150895,"d":"$26,532"}},{"$f":"NORMINV(RAND()*(1-2*Inputs!B58)+Inputs!B58,0,'(Other Computations)'!B208)","v":{"v":-5996.234866030847,"d":"($5,996)"}},{"$f":"NORMINV(RAND()*(1-2*Inputs!B58)+Inputs!B58,0,'(Other Computations)'!B208)","v":{"v":26061.804335305274,"d":"$26,062"}},{"$f":"NORMINV(RAND()*(1-2*Inputs!B58)+Inputs!B58,0,'(Other Computations)'!B208)","v":{"v":10307.979603815795,"d":"$10,308"}},{"$f":"NORMINV(RAND()*(1-2*Inputs!B58)+Inputs!B58,0,'(Other Computations)'!B208)","v":{"v":-18968.31820811754,"d":"($18,968)"}},{"$f":"SUM(CO46:CZ46)","v":{"v":19193.305632580086,"d":"$19,193"}},{"$f":"NORMINV(RAND()*(1-2*Inputs!B58)+Inputs!B58,0,'(Other Computations)'!B208)","v":{"v":-6330.10569197487,"d":"($6,330)"}},{"$f":"NORMINV(RAND()*(1-2*Inputs!B58)+Inputs!B58,0,'(Other Computations)'!B208)","v":{"v":59181.77371610338,"d":"$59,182"}},{"$f":"NORMINV(RAND()*(1-2*Inputs!B58)+Inputs!B58,0,'(Other Computations)'!B208)","v":{"v":7301.335633914146,"d":"$7,301"}},{"$f":"NORMINV(RAND()*(1-2*Inputs!B58)+Inputs!B58,0,'(Other Computations)'!B208)","v":{"v":20048.094760234326,"d":"$20,048"}},{"$f":"NORMINV(RAND()*(1-2*Inputs!B58)+Inputs!B58,0,'(Other Computations)'!B208)","v":{"v":8449.177080129864,"d":"$8,449"}},{"$f":"NORMINV(RAND()*(1-2*Inputs!B58)+Inputs!B58,0,'(Other Computations)'!B208)","v":{"v":-44065.64418640598,"d":"($44,066)"}},{"$f":"NORMINV(RAND()*(1-2*Inputs!B58)+Inputs!B58,0,'(Other Computations)'!B208)","v":{"v":14058.403670436297,"d":"$14,058"}},{"$f":"NORMINV(RAND()*(1-2*Inputs!B58)+Inputs!B58,0,'(Other Computations)'!B208)","v":{"v":-25863.5173019274,"d":"($25,864)"}},{"$f":"NORMINV(RAND()*(1-2*Inputs!B58)+Inputs!B58,0,'(Other Computations)'!B208)","v":{"v":-55774.20264889734,"d":"($55,774)"}},{"$f":"NORMINV(RAND()*(1-2*Inputs!B58)+Inputs!B58,0,'(Other Computations)'!B208)","v":{"v":6615.134049864628,"d":"$6,615"}},{"$f":"NORMINV(RAND()*(1-2*Inputs!B58)+Inputs!B58,0,'(Other Computations)'!B208)","v":{"v":-4295.621725239901,"d":"($4,296)"}},{"$f":"NORMINV(RAND()*(1-2*Inputs!B58)+Inputs!B58,0,'(Other Computations)'!B208)","v":{"v":18287.955157442484,"d":"$18,288"}},{"$f":"SUM(DB46:DM46)","v":{"v":-2387.2174863203727,"d":"($2,387)"}},{"$f":"NORMINV(RAND()*(1-2*Inputs!B58)+Inputs!B58,0,'(Other Computations)'!B208)","v":{"v":-6319.562549915573,"d":"($6,320)"}},{"$f":"NORMINV(RAND()*(1-2*Inputs!B58)+Inputs!B58,0,'(Other Computations)'!B208)","v":{"v":24878.283049070174,"d":"$24,878"}},{"$f":"NORMINV(RAND()*(1-2*Inputs!B58)+Inputs!B58,0,'(Other Computations)'!B208)","v":{"v":37581.455813693734,"d":"$37,581"}},{"$f":"NORMINV(RAND()*(1-2*Inputs!B58)+Inputs!B58,0,'(Other Computations)'!B208)","v":{"v":-5671.490951821121,"d":"($5,671)"}},{"$f":"NORMINV(RAND()*(1-2*Inputs!B58)+Inputs!B58,0,'(Other Computations)'!B208)","v":{"v":31173.02766238293,"d":"$31,173"}},{"$f":"NORMINV(RAND()*(1-2*Inputs!B58)+Inputs!B58,0,'(Other Computations)'!B208)","v":{"v":-46659.840757653124,"d":"($46,660)"}},{"$f":"NORMINV(RAND()*(1-2*Inputs!B58)+Inputs!B58,0,'(Other Computations)'!B208)","v":{"v":-53044.497802067686,"d":"($53,044)"}},{"$f":"NORMINV(RAND()*(1-2*Inputs!B58)+Inputs!B58,0,'(Other Computations)'!B208)","v":{"v":6576.489068574196,"d":"$6,576"}},{"$f":"NORMINV(RAND()*(1-2*Inputs!B58)+Inputs!B58,0,'(Other Computations)'!B208)","v":{"v":33281.92723916571,"d":"$33,282"}},{"$f":"NORMINV(RAND()*(1-2*Inputs!B58)+Inputs!B58,0,'(Other Computations)'!B208)","v":{"v":-38487.34921019776,"d":"($38,487)"}},{"$f":"NORMINV(RAND()*(1-2*Inputs!B58)+Inputs!B58,0,'(Other Computations)'!B208)","v":{"v":18387.6567091381,"d":"$18,388"}},{"$f":"NORMINV(RAND()*(1-2*Inputs!B58)+Inputs!B58,0,'(Other Computations)'!B208)","v":{"v":-13101.377008823814,"d":"($13,101)"}},{"$f":"SUM(DO46:DZ46)","v":{"v":-11405.278738454233,"d":"($11,405)"}},{"$f":"NORMINV(RAND()*(1-2*Inputs!B58)+Inputs!B58,0,'(Other Computations)'!B208)","v":{"v":34151.80510639772,"d":"$34,152"}},{"$f":"NORMINV(RAND()*(1-2*Inputs!B58)+Inputs!B58,0,'(Other Computations)'!B208)","v":{"v":45099.70884252739,"d":"$45,100"}},{"$f":"NORMINV(RAND()*(1-2*Inputs!B58)+Inputs!B58,0,'(Other Computations)'!B208)","v":{"v":18370.976825547026,"d":"$18,371"}},{"$f":"NORMINV(RAND()*(1-2*Inputs!B58)+Inputs!B58,0,'(Other Computations)'!B208)","v":{"v":-4161.241147839011,"d":"($4,161)"}},{"$f":"NORMINV(RAND()*(1-2*Inputs!B58)+Inputs!B58,0,'(Other Computations)'!B208)","v":{"v":-21564.30656553204,"d":"($21,564)"}},{"$f":"NORMINV(RAND()*(1-2*Inputs!B58)+Inputs!B58,0,'(Other Computations)'!B208)","v":{"v":-43099.2206130201,"d":"($43,099)"}},{"$f":"NORMINV(RAND()*(1-2*Inputs!B58)+Inputs!B58,0,'(Other Computations)'!B208)","v":{"v":11379.318537548917,"d":"$11,379"}},{"$f":"NORMINV(RAND()*(1-2*Inputs!B58)+Inputs!B58,0,'(Other Computations)'!B208)","v":{"v":54129.83632952655,"d":"$54,130"}},{"$f":"NORMINV(RAND()*(1-2*Inputs!B58)+Inputs!B58,0,'(Other Computations)'!B208)","v":{"v":20030.862865605384,"d":"$20,031"}},{"$f":"NORMINV(RAND()*(1-2*Inputs!B58)+Inputs!B58,0,'(Other Computations)'!B208)","v":{"v":-31015.323611085918,"d":"($31,015)"}},{"$f":"NORMINV(RAND()*(1-2*Inputs!B58)+Inputs!B58,0,'(Other Computations)'!B208)","v":{"v":2042.895548687894,"d":"$2,043"}},{"$f":"NORMINV(RAND()*(1-2*Inputs!B58)+Inputs!B58,0,'(Other Computations)'!B208)","v":{"v":25432.496411839427,"d":"$25,432"}},{"$f":"SUM(EB46:EM46)","v":{"v":110797.80853020326,"d":"$110,798"}}]
[]
[]
[{"$f":"\"Government\"","v":"Government"}]
[{"$f":"\" \"","v":" "}]
[null,{"$f":"ZZZ__FnCalls!F7","v":"Jan 2010"},{"$f":"ZZZ__FnCalls!F8","v":"Feb 2010"},{"$f":"ZZZ__FnCalls!F9","v":"Mar 2010"},{"$f":"ZZZ__FnCalls!F10","v":"Apr 2010"},{"$f":"ZZZ__FnCalls!F11","v":"May 2010"},{"$f":"ZZZ__FnCalls!F12","v":"Jun 2010"},{"$f":"ZZZ__FnCalls!F13","v":"Jul 2010"},{"$f":"ZZZ__FnCalls!F14","v":"Aug 2010"},{"$f":"ZZZ__FnCalls!F15","v":"Sep 2010"},{"$f":"ZZZ__FnCalls!F16","v":"Oct 2010"},{"$f":"ZZZ__FnCalls!F17","v":"Nov 2010"},{"$f":"ZZZ__FnCalls!F18","v":"Dec 2010"},{"$f":"ZZZ__FnCalls!H7","v":"2010"},{"$f":"ZZZ__FnCalls!F19","v":"Jan 2011"},{"$f":"ZZZ__FnCalls!F20","v":"Feb 2011"},{"$f":"ZZZ__FnCalls!F21","v":"Mar 2011"},{"$f":"ZZZ__FnCalls!F22","v":"Apr 2011"},{"$f":"ZZZ__FnCalls!F23","v":"May 2011"},{"$f":"ZZZ__FnCalls!F24","v":"Jun 2011"},{"$f":"ZZZ__FnCalls!F25","v":"Jul 2011"},{"$f":"ZZZ__FnCalls!F26","v":"Aug 2011"},{"$f":"ZZZ__FnCalls!F27","v":"Sep 2011"},{"$f":"ZZZ__FnCalls!F28","v":"Oct 2011"},{"$f":"ZZZ__FnCalls!F29","v":"Nov 2011"},{"$f":"ZZZ__FnCalls!F30","v":"Dec 2011"},{"$f":"ZZZ__FnCalls!H19","v":"2011"},{"$f":"ZZZ__FnCalls!F31","v":"Jan 2012"},{"$f":"ZZZ__FnCalls!F32","v":"Feb 2012"},{"$f":"ZZZ__FnCalls!F33","v":"Mar 2012"},{"$f":"ZZZ__FnCalls!F34","v":"Apr 2012"},{"$f":"ZZZ__FnCalls!F35","v":"May 2012"},{"$f":"ZZZ__FnCalls!F36","v":"Jun 2012"},{"$f":"ZZZ__FnCalls!F37","v":"Jul 2012"},{"$f":"ZZZ__FnCalls!F38","v":"Aug 2012"},{"$f":"ZZZ__FnCalls!F39","v":"Sep 2012"},{"$f":"ZZZ__FnCalls!F40","v":"Oct 2012"},{"$f":"ZZZ__FnCalls!F41","v":"Nov 2012"},{"$f":"ZZZ__FnCalls!F42","v":"Dec 2012"},{"$f":"ZZZ__FnCalls!H31","v":"2012"},{"$f":"ZZZ__FnCalls!F43","v":"Jan 2013"},{"$f":"ZZZ__FnCalls!F44","v":"Feb 2013"},{"$f":"ZZZ__FnCalls!F45","v":"Mar 2013"},{"$f":"ZZZ__FnCalls!F46","v":"Apr 2013"},{"$f":"ZZZ__FnCalls!F47","v":"May 2013"},{"$f":"ZZZ__FnCalls!F48","v":"Jun 2013"},{"$f":"ZZZ__FnCalls!F49","v":"Jul 2013"},{"$f":"ZZZ__FnCalls!F50","v":"Aug 2013"},{"$f":"ZZZ__FnCalls!F51","v":"Sep 2013"},{"$f":"ZZZ__FnCalls!F52","v":"Oct 2013"},{"$f":"ZZZ__FnCalls!F53","v":"Nov 2013"},{"$f":"ZZZ__FnCalls!F54","v":"Dec 2013"},{"$f":"ZZZ__FnCalls!H43","v":"2013"},{"$f":"ZZZ__FnCalls!F55","v":"Jan 2014"},{"$f":"ZZZ__FnCalls!F56","v":"Feb 2014"},{"$f":"ZZZ__FnCalls!F57","v":"Mar 2014"},{"$f":"ZZZ__FnCalls!F58","v":"Apr 2014"},{"$f":"ZZZ__FnCalls!F59","v":"May 2014"},{"$f":"ZZZ__FnCalls!F60","v":"Jun 2014"},{"$f":"ZZZ__FnCalls!F61","v":"Jul 2014"},{"$f":"ZZZ__FnCalls!F62","v":"Aug 2014"},{"$f":"ZZZ__FnCalls!F63","v":"Sep 2014"},{"$f":"ZZZ__FnCalls!F64","v":"Oct 2014"},{"$f":"ZZZ__FnCalls!F65","v":"Nov 2014"},{"$f":"ZZZ__FnCalls!F66","v":"Dec 2014"},{"$f":"ZZZ__FnCalls!H55","v":"2014"},{"$f":"ZZZ__FnCalls!F67","v":"Jan 2015"},{"$f":"ZZZ__FnCalls!F68","v":"Feb 2015"},{"$f":"ZZZ__FnCalls!F69","v":"Mar 2015"},{"$f":"ZZZ__FnCalls!F70","v":"Apr 2015"},{"$f":"ZZZ__FnCalls!F71","v":"May 2015"},{"$f":"ZZZ__FnCalls!F72","v":"Jun 2015"},{"$f":"ZZZ__FnCalls!F73","v":"Jul 2015"},{"$f":"ZZZ__FnCalls!F74","v":"Aug 2015"},{"$f":"ZZZ__FnCalls!F75","v":"Sep 2015"},{"$f":"ZZZ__FnCalls!F76","v":"Oct 2015"},{"$f":"ZZZ__FnCalls!F77","v":"Nov 2015"},{"$f":"ZZZ__FnCalls!F78","v":"Dec 2015"},{"$f":"ZZZ__FnCalls!H67","v":"2015"},{"$f":"ZZZ__FnCalls!F79","v":"Jan 2016"},{"$f":"ZZZ__FnCalls!F80","v":"Feb 2016"},{"$f":"ZZZ__FnCalls!F81","v":"Mar 2016"},{"$f":"ZZZ__FnCalls!F82","v":"Apr 2016"},{"$f":"ZZZ__FnCalls!F83","v":"May 2016"},{"$f":"ZZZ__FnCalls!F84","v":"Jun 2016"},{"$f":"ZZZ__FnCalls!F85","v":"Jul 2016"},{"$f":"ZZZ__FnCalls!F86","v":"Aug 2016"},{"$f":"ZZZ__FnCalls!F87","v":"Sep 2016"},{"$f":"ZZZ__FnCalls!F88","v":"Oct 2016"},{"$f":"ZZZ__FnCalls!F89","v":"Nov 2016"},{"$f":"ZZZ__FnCalls!F90","v":"Dec 2016"},{"$f":"ZZZ__FnCalls!H79","v":"2016"},{"$f":"ZZZ__FnCalls!F91","v":"Jan 2017"},{"$f":"ZZZ__FnCalls!F92","v":"Feb 2017"},{"$f":"ZZZ__FnCalls!F93","v":"Mar 2017"},{"$f":"ZZZ__FnCalls!F94","v":"Apr 2017"},{"$f":"ZZZ__FnCalls!F95","v":"May 2017"},{"$f":"ZZZ__FnCalls!F96","v":"Jun 2017"},{"$f":"ZZZ__FnCalls!F97","v":"Jul 2017"},{"$f":"ZZZ__FnCalls!F98","v":"Aug 2017"},{"$f":"ZZZ__FnCalls!F99","v":"Sep 2017"},{"$f":"ZZZ__FnCalls!F100","v":"Oct 2017"},{"$f":"ZZZ__FnCalls!F101","v":"Nov 2017"},{"$f":"ZZZ__FnCalls!F102","v":"Dec 2017"},{"$f":"ZZZ__FnCalls!H91","v":"2017"},{"$f":"ZZZ__FnCalls!F103","v":"Jan 2018"},{"$f":"ZZZ__FnCalls!F104","v":"Feb 2018"},{"$f":"ZZZ__FnCalls!F105","v":"Mar 2018"},{"$f":"ZZZ__FnCalls!F106","v":"Apr 2018"},{"$f":"ZZZ__FnCalls!F107","v":"May 2018"},{"$f":"ZZZ__FnCalls!F108","v":"Jun 2018"},{"$f":"ZZZ__FnCalls!F109","v":"Jul 2018"},{"$f":"ZZZ__FnCalls!F110","v":"Aug 2018"},{"$f":"ZZZ__FnCalls!F111","v":"Sep 2018"},{"$f":"ZZZ__FnCalls!F112","v":"Oct 2018"},{"$f":"ZZZ__FnCalls!F113","v":"Nov 2018"},{"$f":"ZZZ__FnCalls!F114","v":"Dec 2018"},{"$f":"ZZZ__FnCalls!H103","v":"2018"},{"$f":"ZZZ__FnCalls!F115","v":"Jan 2019"},{"$f":"ZZZ__FnCalls!F116","v":"Feb 2019"},{"$f":"ZZZ__FnCalls!F117","v":"Mar 2019"},{"$f":"ZZZ__FnCalls!F118","v":"Apr 2019"},{"$f":"ZZZ__FnCalls!F119","v":"May 2019"},{"$f":"ZZZ__FnCalls!F120","v":"Jun 2019"},{"$f":"ZZZ__FnCalls!F121","v":"Jul 2019"},{"$f":"ZZZ__FnCalls!F122","v":"Aug 2019"},{"$f":"ZZZ__FnCalls!F123","v":"Sep 2019"},{"$f":"ZZZ__FnCalls!F124","v":"Oct 2019"},{"$f":"ZZZ__FnCalls!F125","v":"Nov 2019"},{"$f":"ZZZ__FnCalls!F126","v":"Dec 2019"},{"$f":"ZZZ__FnCalls!H115","v":"2019"},{"$f":"ZZZ__FnCalls!F127","v":"Jan 2020"},{"$f":"ZZZ__FnCalls!F128","v":"Feb 2020"},{"$f":"ZZZ__FnCalls!F129","v":"Mar 2020"},{"$f":"ZZZ__FnCalls!F130","v":"Apr 2020"},{"$f":"ZZZ__FnCalls!F131","v":"May 2020"},{"$f":"ZZZ__FnCalls!F132","v":"Jun 2020"},{"$f":"ZZZ__FnCalls!F133","v":"Jul 2020"},{"$f":"ZZZ__FnCalls!F134","v":"Aug 2020"},{"$f":"ZZZ__FnCalls!F135","v":"Sep 2020"},{"$f":"ZZZ__FnCalls!F136","v":"Oct 2020"},{"$f":"ZZZ__FnCalls!F137","v":"Nov 2020"},{"$f":"ZZZ__FnCalls!F138","v":"Dec 2020"},{"$f":"ZZZ__FnCalls!H127","v":"2020"}]
[{"$f":"Labels!B51","v":"Gov Spending"},{"$f":"B37","v":{"v":29166.66666666667,"d":"$29,167"}},{"v":29166.66666666667,"d":"$29,167"},{"v":29166.66666666667,"d":"$29,167"},{"v":29166.66666666667,"d":"$29,167"},{"v":29166.66666666667,"d":"$29,167"},{"v":29166.66666666667,"d":"$29,167"},{"v":29166.66666666667,"d":"$29,167"},{"v":29166.66666666667,"d":"$29,167"},{"v":29166.66666666667,"d":"$29,167"},{"v":29166.66666666667,"d":"$29,167"},{"v":29166.66666666667,"d":"$29,167"},{"v":29166.66666666667,"d":"$29,167"},{"$f":"SUM(B37:M37)","v":{"v":350000.0000000002,"d":"$350,000"}},{"$f":"O37","v":{"v":29166.66666666667,"d":"$29,167"}},{"v":29166.66666666667,"d":"$29,167"},{"v":29166.66666666667,"d":"$29,167"},{"v":29166.66666666667,"d":"$29,167"},{"v":29166.66666666667,"d":"$29,167"},{"v":29166.66666666667,"d":"$29,167"},{"v":29166.66666666667,"d":"$29,167"},{"v":29166.66666666667,"d":"$29,167"},{"v":29166.66666666667,"d":"$29,167"},{"v":29166.66666666667,"d":"$29,167"},{"v":29166.66666666667,"d":"$29,167"},{"v":29166.66666666667,"d":"$29,167"},{"$f":"SUM(O37:Z37)","v":{"v":350000.0000000002,"d":"$350,000"}},{"$f":"AB37","v":{"v":29166.66666666667,"d":"$29,167"}},{"v":29166.66666666667,"d":"$29,167"},{"v":29166.66666666667,"d":"$29,167"},{"v":29166.66666666667,"d":"$29,167"},{"v":29166.66666666667,"d":"$29,167"},{"v":29166.66666666667,"d":"$29,167"},{"v":29166.66666666667,"d":"$29,167"},{"v":29166.66666666667,"d":"$29,167"},{"v":29166.66666666667,"d":"$29,167"},{"v":29166.66666666667,"d":"$29,167"},{"v":29166.66666666667,"d":"$29,167"},{"v":29166.66666666667,"d":"$29,167"},{"$f":"SUM(AB37:AM37)","v":{"v":350000.0000000002,"d":"$350,000"}},{"$f":"AO37","v":{"v":29166.66666666667,"d":"$29,167"}},{"v":29166.66666666667,"d":"$29,167"},{"v":29166.66666666667,"d":"$29,167"},{"v":29166.66666666667,"d":"$29,167"},{"v":29166.66666666667,"d":"$29,167"},{"v":29166.66666666667,"d":"$29,167"},{"v":29166.66666666667,"d":"$29,167"},{"v":29166.66666666667,"d":"$29,167"},{"v":29166.66666666667,"d":"$29,167"},{"v":29166.66666666667,"d":"$29,167"},{"v":29166.66666666667,"d":"$29,167"},{"v":29166.66666666667,"d":"$29,167"},{"$f":"SUM(AO37:AZ37)","v":{"v":350000.0000000002,"d":"$350,000"}},{"$f":"BB37","v":{"v":29166.66666666667,"d":"$29,167"}},{"v":29166.66666666667,"d":"$29,167"},{"v":29166.66666666667,"d":"$29,167"},{"v":29166.66666666667,"d":"$29,167"},{"v":29166.66666666667,"d":"$29,167"},{"v":29166.66666666667,"d":"$29,167"},{"v":29166.66666666667,"d":"$29,167"},{"v":29166.66666666667,"d":"$29,167"},{"v":29166.66666666667,"d":"$29,167"},{"v":29166.66666666667,"d":"$29,167"},{"v":29166.66666666667,"d":"$29,167"},{"v":29166.66666666667,"d":"$29,167"},{"$f":"SUM(BB37:BM37)","v":{"v":350000.0000000002,"d":"$350,000"}},{"$f":"BO37","v":{"v":29166.66666666667,"d":"$29,167"}},{"v":29166.66666666667,"d":"$29,167"},{"v":29166.66666666667,"d":"$29,167"},{"v":29166.66666666667,"d":"$29,167"},{"v":29166.66666666667,"d":"$29,167"},{"v":29166.66666666667,"d":"$29,167"},{"v":29166.66666666667,"d":"$29,167"},{"v":29166.66666666667,"d":"$29,167"},{"v":29166.66666666667,"d":"$29,167"},{"v":29166.66666666667,"d":"$29,167"},{"v":29166.66666666667,"d":"$29,167"},{"v":29166.66666666667,"d":"$29,167"},{"$f":"SUM(BO37:BZ37)","v":{"v":350000.0000000002,"d":"$350,000"}},{"$f":"CB37","v":{"v":29166.66666666667,"d":"$29,167"}},{"v":29166.66666666667,"d":"$29,167"},{"v":29166.66666666667,"d":"$29,167"},{"v":29166.66666666667,"d":"$29,167"},{"v":29166.66666666667,"d":"$29,167"},{"v":29166.66666666667,"d":"$29,167"},{"v":29166.66666666667,"d":"$29,167"},{"v":29166.66666666667,"d":"$29,167"},{"v":29166.66666666667,"d":"$29,167"},{"v":29166.66666666667,"d":"$29,167"},{"v":29166.66666666667,"d":"$29,167"},{"v":29166.66666666667,"d":"$29,167"},{"$f":"SUM(CB37:CM37)","v":{"v":350000.0000000002,"d":"$350,000"}},{"$f":"CO37","v":{"v":29166.66666666667,"d":"$29,167"}},{"v":29166.66666666667,"d":"$29,167"},{"v":29166.66666666667,"d":"$29,167"},{"v":29166.66666666667,"d":"$29,167"},{"v":29166.66666666667,"d":"$29,167"},{"v":29166.66666666667,"d":"$29,167"},{"v":29166.66666666667,"d":"$29,167"},{"v":29166.66666666667,"d":"$29,167"},{"v":29166.66666666667,"d":"$29,167"},{"v":29166.66666666667,"d":"$29,167"},{"v":29166.66666666667,"d":"$29,167"},{"v":29166.66666666667,"d":"$29,167"},{"$f":"SUM(CO37:CZ37)","v":{"v":350000.0000000002,"d":"$350,000"}},{"$f":"DB37","v":{"v":29166.66666666667,"d":"$29,167"}},{"v":29166.66666666667,"d":"$29,167"},{"v":29166.66666666667,"d":"$29,167"},{"v":29166.66666666667,"d":"$29,167"},{"v":29166.66666666667,"d":"$29,167"},{"v":29166.66666666667,"d":"$29,167"},{"v":29166.66666666667,"d":"$29,167"},{"v":29166.66666666667,"d":"$29,167"},{"v":29166.66666666667,"d":"$29,167"},{"v":29166.66666666667,"d":"$29,167"},{"v":29166.66666666667,"d":"$29,167"},{"v":29166.66666666667,"d":"$29,167"},{"$f":"SUM(DB37:DM37)","v":{"v":350000.0000000002,"d":"$350,000"}},{"$f":"DO37","v":{"v":29166.66666666667,"d":"$29,167"}},{"v":29166.66666666667,"d":"$29,167"},{"v":29166.66666666667,"d":"$29,167"},{"v":29166.66666666667,"d":"$29,167"},{"v":29166.66666666667,"d":"$29,167"},{"v":29166.66666666667,"d":"$29,167"},{"v":29166.66666666667,"d":"$29,167"},{"v":29166.66666666667,"d":"$29,167"},{"v":29166.66666666667,"d":"$29,167"},{"v":29166.66666666667,"d":"$29,167"},{"v":29166.66666666667,"d":"$29,167"},{"v":29166.66666666667,"d":"$29,167"},{"$f":"SUM(DO37:DZ37)","v":{"v":350000.0000000002,"d":"$350,000"}},{"$f":"EB37","v":{"v":29166.66666666667,"d":"$29,167"}},{"v":29166.66666666667,"d":"$29,167"},{"v":29166.66666666667,"d":"$29,167"},{"v":29166.66666666667,"d":"$29,167"},{"v":29166.66666666667,"d":"$29,167"},{"v":29166.66666666667,"d":"$29,167"},{"v":29166.66666666667,"d":"$29,167"},{"v":29166.66666666667,"d":"$29,167"},{"v":29166.66666666667,"d":"$29,167"},{"v":29166.66666666667,"d":"$29,167"},{"v":29166.66666666667,"d":"$29,167"},{"v":29166.66666666667,"d":"$29,167"},{"$f":"SUM(EB37:EM37)","v":{"v":350000.0000000002,"d":"$350,000"}}]
[{"$f":"Labels!B52","v":"Gov Transfers"},{"$f":"B38","v":{"v":14583.333333333336,"d":"$14,583"}},{"v":14583.333333333336,"d":"$14,583"},{"v":14583.333333333336,"d":"$14,583"},{"v":14583.333333333336,"d":"$14,583"},{"v":14583.333333333336,"d":"$14,583"},{"v":14583.333333333336,"d":"$14,583"},{"v":14583.333333333336,"d":"$14,583"},{"v":14583.333333333336,"d":"$14,583"},{"v":14583.333333333336,"d":"$14,583"},{"v":14583.333333333336,"d":"$14,583"},{"v":14583.333333333336,"d":"$14,583"},{"v":14583.333333333336,"d":"$14,583"},{"$f":"SUM(B38:M38)","v":{"v":175000.0000000001,"d":"$175,000"}},{"$f":"O38","v":{"v":14583.333333333336,"d":"$14,583"}},{"v":14583.333333333336,"d":"$14,583"},{"v":14583.333333333336,"d":"$14,583"},{"v":14583.333333333336,"d":"$14,583"},{"v":14583.333333333336,"d":"$14,583"},{"v":14583.333333333336,"d":"$14,583"},{"v":14583.333333333336,"d":"$14,583"},{"v":14583.333333333336,"d":"$14,583"},{"v":14583.333333333336,"d":"$14,583"},{"v":14583.333333333336,"d":"$14,583"},{"v":14583.333333333336,"d":"$14,583"},{"v":14583.333333333336,"d":"$14,583"},{"$f":"SUM(O38:Z38)","v":{"v":175000.0000000001,"d":"$175,000"}},{"$f":"AB38","v":{"v":14583.333333333336,"d":"$14,583"}},{"v":14583.333333333336,"d":"$14,583"},{"v":14583.333333333336,"d":"$14,583"},{"v":14583.333333333336,"d":"$14,583"},{"v":14583.333333333336,"d":"$14,583"},{"v":14583.333333333336,"d":"$14,583"},{"v":14583.333333333336,"d":"$14,583"},{"v":14583.333333333336,"d":"$14,583"},{"v":14583.333333333336,"d":"$14,583"},{"v":14583.333333333336,"d":"$14,583"},{"v":14583.333333333336,"d":"$14,583"},{"v":14583.333333333336,"d":"$14,583"},{"$f":"SUM(AB38:AM38)","v":{"v":175000.0000000001,"d":"$175,000"}},{"$f":"AO38","v":{"v":14583.333333333336,"d":"$14,583"}},{"v":14583.333333333336,"d":"$14,583"},{"v":14583.333333333336,"d":"$14,583"},{"v":14583.333333333336,"d":"$14,583"},{"v":14583.333333333336,"d":"$14,583"},{"v":14583.333333333336,"d":"$14,583"},{"v":14583.333333333336,"d":"$14,583"},{"v":14583.333333333336,"d":"$14,583"},{"v":14583.333333333336,"d":"$14,583"},{"v":14583.333333333336,"d":"$14,583"},{"v":14583.333333333336,"d":"$14,583"},{"v":14583.333333333336,"d":"$14,583"},{"$f":"SUM(AO38:AZ38)","v":{"v":175000.0000000001,"d":"$175,000"}},{"$f":"BB38","v":{"v":14583.333333333336,"d":"$14,583"}},{"v":14583.333333333336,"d":"$14,583"},{"v":14583.333333333336,"d":"$14,583"},{"v":14583.333333333336,"d":"$14,583"},{"v":14583.333333333336,"d":"$14,583"},{"v":14583.333333333336,"d":"$14,583"},{"v":14583.333333333336,"d":"$14,583"},{"v":14583.333333333336,"d":"$14,583"},{"v":14583.333333333336,"d":"$14,583"},{"v":14583.333333333336,"d":"$14,583"},{"v":14583.333333333336,"d":"$14,583"},{"v":14583.333333333336,"d":"$14,583"},{"$f":"SUM(BB38:BM38)","v":{"v":175000.0000000001,"d":"$175,000"}},{"$f":"BO38","v":{"v":14583.333333333336,"d":"$14,583"}},{"v":14583.333333333336,"d":"$14,583"},{"v":14583.333333333336,"d":"$14,583"},{"v":14583.333333333336,"d":"$14,583"},{"v":14583.333333333336,"d":"$14,583"},{"v":14583.333333333336,"d":"$14,583"},{"v":14583.333333333336,"d":"$14,583"},{"v":14583.333333333336,"d":"$14,583"},{"v":14583.333333333336,"d":"$14,583"},{"v":14583.333333333336,"d":"$14,583"},{"v":14583.333333333336,"d":"$14,583"},{"v":14583.333333333336,"d":"$14,583"},{"$f":"SUM(BO38:BZ38)","v":{"v":175000.0000000001,"d":"$175,000"}},{"$f":"CB38","v":{"v":14583.333333333336,"d":"$14,583"}},{"v":14583.333333333336,"d":"$14,583"},{"v":14583.333333333336,"d":"$14,583"},{"v":14583.333333333336,"d":"$14,583"},{"v":14583.333333333336,"d":"$14,583"},{"v":14583.333333333336,"d":"$14,583"},{"v":14583.333333333336,"d":"$14,583"},{"v":14583.333333333336,"d":"$14,583"},{"v":14583.333333333336,"d":"$14,583"},{"v":14583.333333333336,"d":"$14,583"},{"v":14583.333333333336,"d":"$14,583"},{"v":14583.333333333336,"d":"$14,583"},{"$f":"SUM(CB38:CM38)","v":{"v":175000.0000000001,"d":"$175,000"}},{"$f":"CO38","v":{"v":14583.333333333336,"d":"$14,583"}},{"v":14583.333333333336,"d":"$14,583"},{"v":14583.333333333336,"d":"$14,583"},{"v":14583.333333333336,"d":"$14,583"},{"v":14583.333333333336,"d":"$14,583"},{"v":14583.333333333336,"d":"$14,583"},{"v":14583.333333333336,"d":"$14,583"},{"v":14583.333333333336,"d":"$14,583"},{"v":14583.333333333336,"d":"$14,583"},{"v":14583.333333333336,"d":"$14,583"},{"v":14583.333333333336,"d":"$14,583"},{"v":14583.333333333336,"d":"$14,583"},{"$f":"SUM(CO38:CZ38)","v":{"v":175000.0000000001,"d":"$175,000"}},{"$f":"DB38","v":{"v":14583.333333333336,"d":"$14,583"}},{"v":14583.333333333336,"d":"$14,583"},{"v":14583.333333333336,"d":"$14,583"},{"v":14583.333333333336,"d":"$14,583"},{"v":14583.333333333336,"d":"$14,583"},{"v":14583.333333333336,"d":"$14,583"},{"v":14583.333333333336,"d":"$14,583"},{"v":14583.333333333336,"d":"$14,583"},{"v":14583.333333333336,"d":"$14,583"},{"v":14583.333333333336,"d":"$14,583"},{"v":14583.333333333336,"d":"$14,583"},{"v":14583.333333333336,"d":"$14,583"},{"$f":"SUM(DB38:DM38)","v":{"v":175000.0000000001,"d":"$175,000"}},{"$f":"DO38","v":{"v":14583.333333333336,"d":"$14,583"}},{"v":14583.333333333336,"d":"$14,583"},{"v":14583.333333333336,"d":"$14,583"},{"v":14583.333333333336,"d":"$14,583"},{"v":14583.333333333336,"d":"$14,583"},{"v":14583.333333333336,"d":"$14,583"},{"v":14583.333333333336,"d":"$14,583"},{"v":14583.333333333336,"d":"$14,583"},{"v":14583.333333333336,"d":"$14,583"},{"v":14583.333333333336,"d":"$14,583"},{"v":14583.333333333336,"d":"$14,583"},{"v":14583.333333333336,"d":"$14,583"},{"$f":"SUM(DO38:DZ38)","v":{"v":175000.0000000001,"d":"$175,000"}},{"$f":"EB38","v":{"v":14583.333333333336,"d":"$14,583"}},{"v":14583.333333333336,"d":"$14,583"},{"v":14583.333333333336,"d":"$14,583"},{"v":14583.333333333336,"d":"$14,583"},{"v":14583.333333333336,"d":"$14,583"},{"v":14583.333333333336,"d":"$14,583"},{"v":14583.333333333336,"d":"$14,583"},{"v":14583.333333333336,"d":"$14,583"},{"v":14583.333333333336,"d":"$14,583"},{"v":14583.333333333336,"d":"$14,583"},{"v":14583.333333333336,"d":"$14,583"},{"v":14583.333333333336,"d":"$14,583"},{"$f":"SUM(EB38:EM38)","v":{"v":175000.0000000001,"d":"$175,000"}}]
[{"$f":"Labels!B83","v":"Tax"},{"$f":"Inputs!B52*B44","v":{"v":360389.7688221607,"d":"$360,390"}},{"$f":"Inputs!B52*C44","v":{"v":366607.87012618495,"d":"$366,608"}},{"$f":"Inputs!B52*D44","v":{"v":356223.5582466745,"d":"$356,224"}},{"$f":"Inputs!B52*E44","v":{"v":336022.19954292214,"d":"$336,022"}},{"$f":"Inputs!B52*F44","v":{"v":339841.6963730094,"d":"$339,842"}},{"$f":"Inputs!B52*G44","v":{"v":356219.266907951,"d":"$356,219"}},{"$f":"Inputs!B52*H44","v":{"v":356663.40498435876,"d":"$356,663"}},{"$f":"Inputs!B52*I44","v":{"v":358059.5539929045,"d":"$358,060"}},{"$f":"Inputs!B52*J44","v":{"v":343497.7357788274,"d":"$343,498"}},{"$f":"Inputs!B52*K44","v":{"v":343254.6731248989,"d":"$343,255"}},{"$f":"Inputs!B52*L44","v":{"v":344258.8184674104,"d":"$344,259"}},{"$f":"Inputs!B52*M44","v":{"v":343402.73553858977,"d":"$343,403"}},{"$f":"SUM(B54:M54)","v":{"v":4204441.281905892,"d":"$4,204,441"}},{"$f":"Inputs!B52*O44","v":{"v":353889.52348119405,"d":"$353,890"}},{"$f":"Inputs!B52*P44","v":{"v":344508.4204113819,"d":"$344,508"}},{"$f":"Inputs!B52*Q44","v":{"v":355204.3356612075,"d":"$355,204"}},{"$f":"Inputs!B52*R44","v":{"v":359881.0562005649,"d":"$359,881"}},{"$f":"Inputs!B52*S44","v":{"v":357954.0778610404,"d":"$357,954"}},{"$f":"Inputs!B52*T44","v":{"v":336191.33121797687,"d":"$336,191"}},{"$f":"Inputs!B52*U44","v":{"v":342219.2777045539,"d":"$342,219"}},{"$f":"Inputs!B52*V44","v":{"v":343533.1209818832,"d":"$343,533"}},{"$f":"Inputs!B52*W44","v":{"v":340663.47543512366,"d":"$340,663"}},{"$f":"Inputs!B52*X44","v":{"v":349175.6619301909,"d":"$349,176"}},{"$f":"Inputs!B52*Y44","v":{"v":327400.3769311672,"d":"$327,400"}},{"$f":"Inputs!B52*Z44","v":{"v":344362.9064577864,"d":"$344,363"}},{"$f":"SUM(O54:Z54)","v":{"v":4154983.5642740713,"d":"$4,154,984"}},{"$f":"Inputs!B52*AB44","v":{"v":343718.3398496307,"d":"$343,718"}},{"$f":"Inputs!B52*AC44","v":{"v":340775.8755977815,"d":"$340,776"}},{"$f":"Inputs!B52*AD44","v":{"v":338279.00905465597,"d":"$338,279"}},{"$f":"Inputs!B52*AE44","v":{"v":326690.5080277784,"d":"$326,691"}},{"$f":"Inputs!B52*AF44","v":{"v":344789.17488559306,"d":"$344,789"}},{"$f":"Inputs!B52*AG44","v":{"v":342772.80487259413,"d":"$342,773"}},{"$f":"Inputs!B52*AH44","v":{"v":353335.0761318614,"d":"$353,335"}},{"$f":"Inputs!B52*AI44","v":{"v":329099.8790710277,"d":"$329,100"}},{"$f":"Inputs!B52*AJ44","v":{"v":320273.62734947127,"d":"$320,274"}},{"$f":"Inputs!B52*AK44","v":{"v":325028.79052438674,"d":"$325,029"}},{"$f":"Inputs!B52*AL44","v":{"v":333020.4828522262,"d":"$333,020"}},{"$f":"Inputs!B52*AM44","v":{"v":347811.88091691706,"d":"$347,812"}},{"$f":"SUM(AB54:AM54)","v":{"v":4045595.449133924,"d":"$4,045,595"}},{"$f":"Inputs!B52*AO44","v":{"v":326943.7269182431,"d":"$326,944"}},{"$f":"Inputs!B52*AP44","v":{"v":332099.3452493107,"d":"$332,099"}},{"$f":"Inputs!B52*AQ44","v":{"v":329902.1142166188,"d":"$329,902"}},{"$f":"Inputs!B52*AR44","v":{"v":322013.0701254219,"d":"$322,013"}},{"$f":"Inputs!B52*AS44","v":{"v":320155.2801188943,"d":"$320,155"}},{"$f":"Inputs!B52*AT44","v":{"v":317157.4340103224,"d":"$317,157"}},{"$f":"Inputs!B52*AU44","v":{"v":334254.2839631451,"d":"$334,254"}},{"$f":"Inputs!B52*AV44","v":{"v":336092.1347088283,"d":"$336,092"}},{"$f":"Inputs!B52*AW44","v":{"v":328808.19209092314,"d":"$328,808"}},{"$f":"Inputs!B52*AX44","v":{"v":324391.949441274,"d":"$324,392"}},{"$f":"Inputs!B52*AY44","v":{"v":330781.569579421,"d":"$330,782"}},{"$f":"Inputs!B52*AZ44","v":{"v":327552.75659528305,"d":"$327,553"}},{"$f":"SUM(AO54:AZ54)","v":{"v":3930151.8570176857,"d":"$3,930,152"}},{"$f":"Inputs!B52*BB44","v":{"v":337092.0199419538,"d":"$337,092"}},{"$f":"Inputs!B52*BC44","v":{"v":324515.75582588726,"d":"$324,516"}},{"$f":"Inputs!B52*BD44","v":{"v":324228.40060031705,"d":"$324,228"}},{"$f":"Inputs!B52*BE44","v":{"v":324989.6378836926,"d":"$324,990"}},{"$f":"Inputs!B52*BF44","v":{"v":329418.28588777833,"d":"$329,418"}},{"$f":"Inputs!B52*BG44","v":{"v":335594.8021417349,"d":"$335,595"}},{"$f":"Inputs!B52*BH44","v":{"v":333560.9235622449,"d":"$333,561"}},{"$f":"Inputs!B52*BI44","v":{"v":315711.4344453837,"d":"$315,711"}},{"$f":"Inputs!B52*BJ44","v":{"v":329231.76259612106,"d":"$329,232"}},{"$f":"Inputs!B52*BK44","v":{"v":322123.24259633117,"d":"$322,123"}},{"$f":"Inputs!B52*BL44","v":{"v":325061.0603581643,"d":"$325,061"}},{"$f":"Inputs!B52*BM44","v":{"v":329691.3744250181,"d":"$329,691"}},{"$f":"SUM(BB54:BM54)","v":{"v":3931218.7002646276,"d":"$3,931,219"}},{"$f":"Inputs!B52*BO44","v":{"v":318905.50184185023,"d":"$318,906"}},{"$f":"Inputs!B52*BP44","v":{"v":328321.6481652822,"d":"$328,322"}},{"$f":"Inputs!B52*BQ44","v":{"v":319753.73489893135,"d":"$319,754"}},{"$f":"Inputs!B52*BR44","v":{"v":324044.6793104467,"d":"$324,045"}},{"$f":"Inputs!B52*BS44","v":{"v":319242.61333368206,"d":"$319,243"}},{"$f":"Inputs!B52*BT44","v":{"v":327758.55393604474,"d":"$327,759"}},{"$f":"Inputs!B52*BU44","v":{"v":325384.18252218526,"d":"$325,384"}},{"$f":"Inputs!B52*BV44","v":{"v":311791.32177224936,"d":"$311,791"}},{"$f":"Inputs!B52*BW44","v":{"v":330647.82691974554,"d":"$330,648"}},{"$f":"Inputs!B52*BX44","v":{"v":333630.24566103215,"d":"$333,630"}},{"$f":"Inputs!B52*BY44","v":{"v":319892.3969150957,"d":"$319,892"}},{"$f":"Inputs!B52*BZ44","v":{"v":328115.137462883,"d":"$328,115"}},{"$f":"SUM(BO54:BZ54)","v":{"v":3887487.8427394284,"d":"$3,887,488"}},{"$f":"Inputs!B52*CB44","v":{"v":321350.69051797874,"d":"$321,351"}},{"$f":"Inputs!B52*CC44","v":{"v":321709.6175264391,"d":"$321,710"}},{"$f":"Inputs!B52*CD44","v":{"v":321899.898567796,"d":"$321,900"}},{"$f":"Inputs!B52*CE44","v":{"v":317399.0643135597,"d":"$317,399"}},{"$f":"Inputs!B52*CF44","v":{"v":317076.7303392908,"d":"$317,077"}},{"$f":"Inputs!B52*CG44","v":{"v":322699.8770150556,"d":"$322,700"}},{"$f":"Inputs!B52*CH44","v":{"v":306497.17891629384,"d":"$306,497"}},{"$f":"Inputs!B52*CI44","v":{"v":317871.1745278263,"d":"$317,871"}},{"$f":"Inputs!B52*CJ44","v":{"v":322443.0358740177,"d":"$322,443"}},{"$f":"Inputs!B52*CK44","v":{"v":314730.27999645646,"d":"$314,730"}},{"$f":"Inputs!B52*CL44","v":{"v":320247.06632843905,"d":"$320,247"}},{"$f":"Inputs!B52*CM44","v":{"v":310601.0286948598,"d":"$310,601"}},{"$f":"SUM(CB54:CM54)","v":{"v":3814525.6426180126,"d":"$3,814,526"}},{"$f":"Inputs!B52*CO44","v":{"v":327413.56900348887,"d":"$327,414"}},{"$f":"Inputs!B52*CP44","v":{"v":316148.65704899107,"d":"$316,149"}},{"$f":"Inputs!B52*CQ44","v":{"v":307438.91790346924,"d":"$307,439"}},{"$f":"Inputs!B52*CR44","v":{"v":316347.1335381492,"d":"$316,347"}},{"$f":"Inputs!B52*CS44","v":{"v":306477.1232871343,"d":"$306,477"}},{"$f":"Inputs!B52*CT44","v":{"v":312237.3137905593,"d":"$312,237"}},{"$f":"Inputs!B52*CU44","v":{"v":311432.1773081857,"d":"$311,432"}},{"$f":"Inputs!B52*CV44","v":{"v":321389.8113759608,"d":"$321,390"}},{"$f":"Inputs!B52*CW44","v":{"v":311336.055338338,"d":"$311,336"}},{"$f":"Inputs!B52*CX44","v":{"v":320653.49205593846,"d":"$320,653"}},{"$f":"Inputs!B52*CY44","v":{"v":315498.7654521064,"d":"$315,499"}},{"$f":"Inputs!B52*CZ44","v":{"v":306435.6683438022,"d":"$306,436"}},{"$f":"SUM(CO54:CZ54)","v":{"v":3772808.6844461234,"d":"$3,772,809"}},{"$f":"Inputs!B52*DB44","v":{"v":309993.13351818296,"d":"$309,993"}},{"$f":"Inputs!B52*DC44","v":{"v":329280.25531040353,"d":"$329,280"}},{"$f":"Inputs!B52*DD44","v":{"v":313316.07354036724,"d":"$313,316"}},{"$f":"Inputs!B52*DE44","v":{"v":316866.78775720677,"d":"$316,867"}},{"$f":"Inputs!B52*DF44","v":{"v":313116.00257651624,"d":"$313,116"}},{"$f":"Inputs!B52*DG44","v":{"v":297058.50956336805,"d":"$297,059"}},{"$f":"Inputs!B52*DH44","v":{"v":314212.0035048013,"d":"$314,212"}},{"$f":"Inputs!B52*DI44","v":{"v":301844.66363221954,"d":"$301,845"}},{"$f":"Inputs!B52*DJ44","v":{"v":292615.73593734956,"d":"$292,616"}},{"$f":"Inputs!B52*DK44","v":{"v":310986.5256509948,"d":"$310,987"}},{"$f":"Inputs!B52*DL44","v":{"v":307449.26261477993,"d":"$307,449"}},{"$f":"Inputs!B52*DM44","v":{"v":313940.4388863774,"d":"$313,940"}},{"$f":"SUM(DB54:DM54)","v":{"v":3720679.3924925677,"d":"$3,720,679"}},{"$f":"Inputs!B52*DO44","v":{"v":306222.48855586944,"d":"$306,222"}},{"$f":"Inputs!B52*DP44","v":{"v":315375.21149805695,"d":"$315,375"}},{"$f":"Inputs!B52*DQ44","v":{"v":319009.33805156895,"d":"$319,009"}},{"$f":"Inputs!B52*DR44","v":{"v":305671.93300376827,"d":"$305,672"}},{"$f":"Inputs!B52*DS44","v":{"v":316531.1481432175,"d":"$316,531"}},{"$f":"Inputs!B52*DT44","v":{"v":293001.38586684805,"d":"$293,001"}},{"$f":"Inputs!B52*DU44","v":{"v":290851.9024812279,"d":"$290,852"}},{"$f":"Inputs!B52*DV44","v":{"v":308411.6661315771,"d":"$308,412"}},{"$f":"Inputs!B52*DW44","v":{"v":316118.5002070734,"d":"$316,119"}},{"$f":"Inputs!B52*DX44","v":{"v":294174.6283352357,"d":"$294,175"}},{"$f":"Inputs!B52*DY44","v":{"v":311037.01021839853,"d":"$311,037"}},{"$f":"Inputs!B52*DZ44","v":{"v":301375.7772382923,"d":"$301,376"}},{"$f":"SUM(DO54:DZ54)","v":{"v":3677780.989731134,"d":"$3,677,781"}},{"$f":"Inputs!B52*EB44","v":{"v":315368.2459108866,"d":"$315,368"}},{"$f":"Inputs!B52*EC44","v":{"v":318361.25590304064,"d":"$318,361"}},{"$f":"Inputs!B52*ED44","v":{"v":309930.72814364335,"d":"$309,931"}},{"$f":"Inputs!B52*EE44","v":{"v":302866.2833381372,"d":"$302,866"}},{"$f":"Inputs!B52*EF44","v":{"v":297445.59501138463,"d":"$297,446"}},{"$f":"Inputs!B52*EG44","v":{"v":290810.7824366796,"d":"$290,811"}},{"$f":"Inputs!B52*EH44","v":{"v":306848.47459130926,"d":"$306,848"}},{"$f":"Inputs!B52*EI44","v":{"v":319445.83421553986,"d":"$319,446"}},{"$f":"Inputs!B52*EJ44","v":{"v":308837.3278335669,"d":"$308,837"}},{"$f":"Inputs!B52*EK44","v":{"v":293145.0013657912,"d":"$293,145"}},{"$f":"Inputs!B52*EL44","v":{"v":302857.4481379193,"d":"$302,857"}},{"$f":"Inputs!B52*EM44","v":{"v":309528.36397654074,"d":"$309,528"}},{"$f":"SUM(EB54:EM54)","v":{"v":3675445.3408644395,"d":"$3,675,445"}}]
[]
[]
[{"$f":"\"Stochastic Shocks\"","v":"Stochastic Shocks"}]
[{"$f":"\" \"","v":" "}]
[null,{"$f":"ZZZ__FnCalls!F7","v":"Jan 2010"},{"$f":"ZZZ__FnCalls!F8","v":"Feb 2010"},{"$f":"ZZZ__FnCalls!F9","v":"Mar 2010"},{"$f":"ZZZ__FnCalls!F10","v":"Apr 2010"},{"$f":"ZZZ__FnCalls!F11","v":"May 2010"},{"$f":"ZZZ__FnCalls!F12","v":"Jun 2010"},{"$f":"ZZZ__FnCalls!F13","v":"Jul 2010"},{"$f":"ZZZ__FnCalls!F14","v":"Aug 2010"},{"$f":"ZZZ__FnCalls!F15","v":"Sep 2010"},{"$f":"ZZZ__FnCalls!F16","v":"Oct 2010"},{"$f":"ZZZ__FnCalls!F17","v":"Nov 2010"},{"$f":"ZZZ__FnCalls!F18","v":"Dec 2010"},{"$f":"ZZZ__FnCalls!H7","v":"2010"},{"$f":"ZZZ__FnCalls!F19","v":"Jan 2011"},{"$f":"ZZZ__FnCalls!F20","v":"Feb 2011"},{"$f":"ZZZ__FnCalls!F21","v":"Mar 2011"},{"$f":"ZZZ__FnCalls!F22","v":"Apr 2011"},{"$f":"ZZZ__FnCalls!F23","v":"May 2011"},{"$f":"ZZZ__FnCalls!F24","v":"Jun 2011"},{"$f":"ZZZ__FnCalls!F25","v":"Jul 2011"},{"$f":"ZZZ__FnCalls!F26","v":"Aug 2011"},{"$f":"ZZZ__FnCalls!F27","v":"Sep 2011"},{"$f":"ZZZ__FnCalls!F28","v":"Oct 2011"},{"$f":"ZZZ__FnCalls!F29","v":"Nov 2011"},{"$f":"ZZZ__FnCalls!F30","v":"Dec 2011"},{"$f":"ZZZ__FnCalls!H19","v":"2011"},{"$f":"ZZZ__FnCalls!F31","v":"Jan 2012"},{"$f":"ZZZ__FnCalls!F32","v":"Feb 2012"},{"$f":"ZZZ__FnCalls!F33","v":"Mar 2012"},{"$f":"ZZZ__FnCalls!F34","v":"Apr 2012"},{"$f":"ZZZ__FnCalls!F35","v":"May 2012"},{"$f":"ZZZ__FnCalls!F36","v":"Jun 2012"},{"$f":"ZZZ__FnCalls!F37","v":"Jul 2012"},{"$f":"ZZZ__FnCalls!F38","v":"Aug 2012"},{"$f":"ZZZ__FnCalls!F39","v":"Sep 2012"},{"$f":"ZZZ__FnCalls!F40","v":"Oct 2012"},{"$f":"ZZZ__FnCalls!F41","v":"Nov 2012"},{"$f":"ZZZ__FnCalls!F42","v":"Dec 2012"},{"$f":"ZZZ__FnCalls!H31","v":"2012"},{"$f":"ZZZ__FnCalls!F43","v":"Jan 2013"},{"$f":"ZZZ__FnCalls!F44","v":"Feb 2013"},{"$f":"ZZZ__FnCalls!F45","v":"Mar 2013"},{"$f":"ZZZ__FnCalls!F46","v":"Apr 2013"},{"$f":"ZZZ__FnCalls!F47","v":"May 2013"},{"$f":"ZZZ__FnCalls!F48","v":"Jun 2013"},{"$f":"ZZZ__FnCalls!F49","v":"Jul 2013"},{"$f":"ZZZ__FnCalls!F50","v":"Aug 2013"},{"$f":"ZZZ__FnCalls!F51","v":"Sep 2013"},{"$f":"ZZZ__FnCalls!F52","v":"Oct 2013"},{"$f":"ZZZ__FnCalls!F53","v":"Nov 2013"},{"$f":"ZZZ__FnCalls!F54","v":"Dec 2013"},{"$f":"ZZZ__FnCalls!H43","v":"2013"},{"$f":"ZZZ__FnCalls!F55","v":"Jan 2014"},{"$f":"ZZZ__FnCalls!F56","v":"Feb 2014"},{"$f":"ZZZ__FnCalls!F57","v":"Mar 2014"},{"$f":"ZZZ__FnCalls!F58","v":"Apr 2014"},{"$f":"ZZZ__FnCalls!F59","v":"May 2014"},{"$f":"ZZZ__FnCalls!F60","v":"Jun 2014"},{"$f":"ZZZ__FnCalls!F61","v":"Jul 2014"},{"$f":"ZZZ__FnCalls!F62","v":"Aug 2014"},{"$f":"ZZZ__FnCalls!F63","v":"Sep 2014"},{"$f":"ZZZ__FnCalls!F64","v":"Oct 2014"},{"$f":"ZZZ__FnCalls!F65","v":"Nov 2014"},{"$f":"ZZZ__FnCalls!F66","v":"Dec 2014"},{"$f":"ZZZ__FnCalls!H55","v":"2014"},{"$f":"ZZZ__FnCalls!F67","v":"Jan 2015"},{"$f":"ZZZ__FnCalls!F68","v":"Feb 2015"},{"$f":"ZZZ__FnCalls!F69","v":"Mar 2015"},{"$f":"ZZZ__FnCalls!F70","v":"Apr 2015"},{"$f":"ZZZ__FnCalls!F71","v":"May 2015"},{"$f":"ZZZ__FnCalls!F72","v":"Jun 2015"},{"$f":"ZZZ__FnCalls!F73","v":"Jul 2015"},{"$f":"ZZZ__FnCalls!F74","v":"Aug 2015"},{"$f":"ZZZ__FnCalls!F75","v":"Sep 2015"},{"$f":"ZZZ__FnCalls!F76","v":"Oct 2015"},{"$f":"ZZZ__FnCalls!F77","v":"Nov 2015"},{"$f":"ZZZ__FnCalls!F78","v":"Dec 2015"},{"$f":"ZZZ__FnCalls!H67","v":"2015"},{"$f":"ZZZ__FnCalls!F79","v":"Jan 2016"},{"$f":"ZZZ__FnCalls!F80","v":"Feb 2016"},{"$f":"ZZZ__FnCalls!F81","v":"Mar 2016"},{"$f":"ZZZ__FnCalls!F82","v":"Apr 2016"},{"$f":"ZZZ__FnCalls!F83","v":"May 2016"},{"$f":"ZZZ__FnCalls!F84","v":"Jun 2016"},{"$f":"ZZZ__FnCalls!F85","v":"Jul 2016"},{"$f":"ZZZ__FnCalls!F86","v":"Aug 2016"},{"$f":"ZZZ__FnCalls!F87","v":"Sep 2016"},{"$f":"ZZZ__FnCalls!F88","v":"Oct 2016"},{"$f":"ZZZ__FnCalls!F89","v":"Nov 2016"},{"$f":"ZZZ__FnCalls!F90","v":"Dec 2016"},{"$f":"ZZZ__FnCalls!H79","v":"2016"},{"$f":"ZZZ__FnCalls!F91","v":"Jan 2017"},{"$f":"ZZZ__FnCalls!F92","v":"Feb 2017"},{"$f":"ZZZ__FnCalls!F93","v":"Mar 2017"},{"$f":"ZZZ__FnCalls!F94","v":"Apr 2017"},{"$f":"ZZZ__FnCalls!F95","v":"May 2017"},{"$f":"ZZZ__FnCalls!F96","v":"Jun 2017"},{"$f":"ZZZ__FnCalls!F97","v":"Jul 2017"},{"$f":"ZZZ__FnCalls!F98","v":"Aug 2017"},{"$f":"ZZZ__FnCalls!F99","v":"Sep 2017"},{"$f":"ZZZ__FnCalls!F100","v":"Oct 2017"},{"$f":"ZZZ__FnCalls!F101","v":"Nov 2017"},{"$f":"ZZZ__FnCalls!F102","v":"Dec 2017"},{"$f":"ZZZ__FnCalls!H91","v":"2017"},{"$f":"ZZZ__FnCalls!F103","v":"Jan 2018"},{"$f":"ZZZ__FnCalls!F104","v":"Feb 2018"},{"$f":"ZZZ__FnCalls!F105","v":"Mar 2018"},{"$f":"ZZZ__FnCalls!F106","v":"Apr 2018"},{"$f":"ZZZ__FnCalls!F107","v":"May 2018"},{"$f":"ZZZ__FnCalls!F108","v":"Jun 2018"},{"$f":"ZZZ__FnCalls!F109","v":"Jul 2018"},{"$f":"ZZZ__FnCalls!F110","v":"Aug 2018"},{"$f":"ZZZ__FnCalls!F111","v":"Sep 2018"},{"$f":"ZZZ__FnCalls!F112","v":"Oct 2018"},{"$f":"ZZZ__FnCalls!F113","v":"Nov 2018"},{"$f":"ZZZ__FnCalls!F114","v":"Dec 2018"},{"$f":"ZZZ__FnCalls!H103","v":"2018"},{"$f":"ZZZ__FnCalls!F115","v":"Jan 2019"},{"$f":"ZZZ__FnCalls!F116","v":"Feb 2019"},{"$f":"ZZZ__FnCalls!F117","v":"Mar 2019"},{"$f":"ZZZ__FnCalls!F118","v":"Apr 2019"},{"$f":"ZZZ__FnCalls!F119","v":"May 2019"},{"$f":"ZZZ__FnCalls!F120","v":"Jun 2019"},{"$f":"ZZZ__FnCalls!F121","v":"Jul 2019"},{"$f":"ZZZ__FnCalls!F122","v":"Aug 2019"},{"$f":"ZZZ__FnCalls!F123","v":"Sep 2019"},{"$f":"ZZZ__FnCalls!F124","v":"Oct 2019"},{"$f":"ZZZ__FnCalls!F125","v":"Nov 2019"},{"$f":"ZZZ__FnCalls!F126","v":"Dec 2019"},{"$f":"ZZZ__FnCalls!H115","v":"2019"},{"$f":"ZZZ__FnCalls!F127","v":"Jan 2020"},{"$f":"ZZZ__FnCalls!F128","v":"Feb 2020"},{"$f":"ZZZ__FnCalls!F129","v":"Mar 2020"},{"$f":"ZZZ__FnCalls!F130","v":"Apr 2020"},{"$f":"ZZZ__FnCalls!F131","v":"May 2020"},{"$f":"ZZZ__FnCalls!F132","v":"Jun 2020"},{"$f":"ZZZ__FnCalls!F133","v":"Jul 2020"},{"$f":"ZZZ__FnCalls!F134","v":"Aug 2020"},{"$f":"ZZZ__FnCalls!F135","v":"Sep 2020"},{"$f":"ZZZ__FnCalls!F136","v":"Oct 2020"},{"$f":"ZZZ__FnCalls!F137","v":"Nov 2020"},{"$f":"ZZZ__FnCalls!F138","v":"Dec 2020"},{"$f":"ZZZ__FnCalls!H127","v":"2020"}]
[{"$f":"Labels!B74","v":"Aggregate Demand Shock"},{"$f":"B13","v":{"v":-14255.4608333438,"d":"($14,255)"}},{"v":-21616.977066423908,"d":"($21,617)"},{"v":-22767.54075395087,"d":"($22,768)"},{"v":18520.57097360632,"d":"$18,521"},{"v":37981.401102195945,"d":"$37,981"},{"v":55494.65583886301,"d":"$55,495"},{"v":-43768.47170259461,"d":"($43,768)"},{"v":-41629.024821882485,"d":"($41,629)"},{"v":-8271.108464843895,"d":"($8,271)"},{"v":-7799.919524793453,"d":"($7,800)"},{"v":1212.9657942518018,"d":"$1,213"},{"v":-47113.21279876908,"d":"($47,113)"},{"$f":"SUM(B13:M13)","v":{"v":-94012.12225768503,"d":"($94,012)"}},{"$f":"O13","v":{"v":1599.532442859924,"d":"$1,600"}},{"v":14043.246335462289,"d":"$14,043"},{"v":43567.67016412308,"d":"$43,568"},{"v":1902.2702603195175,"d":"$1,902"},{"v":-56053.05471466721,"d":"($56,053)"},{"v":-15787.161067383151,"d":"($15,787)"},{"v":3519.753525662027,"d":"$3,520"},{"v":-3572.3376032280216,"d":"($3,572)"},{"v":61392.762159925755,"d":"$61,393"},{"v":-5677.3949896888735,"d":"($5,677)"},{"v":-51090.33442845816,"d":"($51,090)"},{"v":-29649.79033706894,"d":"($29,650)"},{"$f":"SUM(O13:Z13)","v":{"v":-35804.83825214176,"d":"($35,805)"}},{"$f":"AB13","v":{"v":-21998.45853670382,"d":"($21,998)"}},{"v":8793.549088125028,"d":"$8,794"},{"v":-13378.14713953028,"d":"($13,378)"},{"v":-43003.887464079184,"d":"($43,004)"},{"v":-19146.594643493696,"d":"($19,147)"},{"v":44573.92984566021,"d":"$44,574"},{"v":-694.9729115569182,"d":"($695)"},{"v":-1255.2228357422946,"d":"($1,255)"},{"v":-19307.862240791044,"d":"($19,308)"},{"v":37621.921010095764,"d":"$37,622"},{"v":-12538.495475552429,"d":"($12,538)"},{"v":-58810.68024618958,"d":"($58,811)"},{"$f":"SUM(AB13:AM13)","v":{"v":-99144.92154975823,"d":"($99,145)"}},{"$f":"AO13","v":{"v":-682.7448450011399,"d":"($683)"}},{"v":-3599.273024512585,"d":"($3,599)"},{"v":-10429.979728155184,"d":"($10,430)"},{"v":-35357.171892703605,"d":"($35,357)"},{"v":10808.19190217376,"d":"$10,808"},{"v":30221.665785477726,"d":"$30,222"},{"v":12327.6146237894,"d":"$12,328"},{"v":-3314.010126908437,"d":"($3,314)"},{"v":17953.733325311485,"d":"$17,954"},{"v":-32626.933514913842,"d":"($32,627)"},{"v":-27830.754114923635,"d":"($27,831)"},{"v":-51410.68007230129,"d":"($51,411)"},{"$f":"SUM(AO13:AZ13)","v":{"v":-93940.34168266735,"d":"($93,940)"}},{"$f":"BB13","v":{"v":56312.18206442567,"d":"$56,312"}},{"v":54204.14847184981,"d":"$54,204"},{"v":-33302.27582107725,"d":"($33,302)"},{"v":-1179.952704893187,"d":"($1,180)"},{"v":-31037.46962442495,"d":"($31,037)"},{"v":20154.158535823306,"d":"$20,154"},{"v":-28822.725171231563,"d":"($28,823)"},{"v":771.955652543548,"d":"$772"},{"v":-59136.428034560515,"d":"($59,136)"},{"v":29063.84673949174,"d":"$29,064"},{"v":13703.59780826551,"d":"$13,704"},{"v":26020.87475874177,"d":"$26,021"},{"$f":"SUM(BB13:BM13)","v":{"v":46751.912674953885,"d":"$46,752"}},{"$f":"BO13","v":{"v":21993.487750475386,"d":"$21,993"}},{"v":23900.925498768967,"d":"$23,901"},{"v":-23488.700915432924,"d":"($23,489)"},{"v":5941.859837868308,"d":"$5,942"},{"v":-37962.88905444794,"d":"($37,963)"},{"v":18028.33717767317,"d":"$18,028"},{"v":-14895.674941512723,"d":"($14,896)"},{"v":-27116.66370926153,"d":"($27,117)"},{"v":-38164.21754584467,"d":"($38,164)"},{"v":24983.893304380625,"d":"$24,984"},{"v":-7538.373580472655,"d":"($7,538)"},{"v":15682.41703336418,"d":"$15,682"},{"$f":"SUM(BO13:BZ13)","v":{"v":-38635.59914444182,"d":"($38,636)"}},{"$f":"CB13","v":{"v":-30507.27896610494,"d":"($30,507)"}},{"v":13716.06821603187,"d":"$13,716"},{"v":-19453.010311466653,"d":"($19,453)"},{"v":-12656.88685385338,"d":"($12,657)"},{"v":3358.59068272582,"d":"$3,359"},{"v":-15169.526776308398,"d":"($15,170)"},{"v":60230.48829003073,"d":"$60,230"},{"v":31016.939795451854,"d":"$31,017"},{"v":-5696.922343367144,"d":"($5,697)"},{"v":33254.79666260802,"d":"$33,255"},{"v":6210.9899307749965,"d":"$6,211"},{"v":-23675.40005739629,"d":"($23,675)"},{"$f":"SUM(CB13:CM13)","v":{"v":40628.848269126494,"d":"$40,629"}},{"$f":"CO13","v":{"v":29723.943029980754,"d":"$29,724"}},{"v":20371.086297472877,"d":"$20,371"},{"v":29594.03693436529,"d":"$29,594"},{"v":1790.1706838888208,"d":"$1,790"},{"v":-26495.87914210977,"d":"($26,496)"},{"v":-50175.08863166793,"d":"($50,175)"},{"v":52796.00554096294,"d":"$52,796"},{"v":15638.861603544303,"d":"$15,639"},{"v":12510.572467345186,"d":"$12,511"},{"v":-50028.975732548824,"d":"($50,029)"},{"v":20484.045138426125,"d":"$20,484"},{"v":41805.04695721988,"d":"$41,805"},{"$f":"SUM(CO13:CZ13)","v":{"v":98013.82514687965,"d":"$98,014"}},{"$f":"DB13","v":{"v":-22623.435428112458,"d":"($22,623)"}},{"v":-39463.53761297841,"d":"($39,464)"},{"v":20598.03932578012,"d":"$20,598"},{"v":20812.46471808522,"d":"$20,812"},{"v":4629.581966107576,"d":"$4,630"},{"v":13117.988426586011,"d":"$13,118"},{"v":-38986.927123137306,"d":"($38,987)"},{"v":25151.11569575954,"d":"$25,151"},{"v":-18969.19764783275,"d":"($18,969)"},{"v":19758.804768326318,"d":"$19,759"},{"v":9416.958717817426,"d":"$9,417"},{"v":-16204.112641899692,"d":"($16,204)"},{"$f":"SUM(DB13:DM13)","v":{"v":-22762.256835498396,"d":"($22,762)"}},{"$f":"DO13","v":{"v":45021.68885464596,"d":"$45,022"}},{"v":58493.77107201961,"d":"$58,494"},{"v":-31056.914554912048,"d":"($31,057)"},{"v":48603.28165407464,"d":"$48,603"},{"v":54624.45147073265,"d":"$54,624"},{"v":27750.281944568927,"d":"$27,750"},{"v":-17288.670041073852,"d":"($17,289)"},{"v":-7393.100174849787,"d":"($7,393)"},{"v":-60027.177685637966,"d":"($60,027)"},{"v":41630.18044313425,"d":"$41,630"},{"v":33999.85327450702,"d":"$34,000"},{"v":48129.0940371144,"d":"$48,129"},{"$f":"SUM(DO13:DZ13)","v":{"v":242486.74029432383,"d":"$242,487"}},{"$f":"EB13","v":{"v":-4392.885884112604,"d":"($4,393)"}},{"v":-62926.2547608639,"d":"($62,926)"},{"v":-12050.407245586657,"d":"($12,050)"},{"v":37711.49770152302,"d":"$37,711"},{"v":49189.93313833568,"d":"$49,190"},{"v":-14659.664147465492,"d":"($14,660)"},{"v":22304.91212833737,"d":"$22,305"},{"v":-50868.602324567146,"d":"($50,869)"},{"v":-51266.669488626496,"d":"($51,267)"},{"v":31467.483951525875,"d":"$31,467"},{"v":-36842.28132230807,"d":"($36,842)"},{"v":23652.703104632477,"d":"$23,653"},{"$f":"SUM(EB13:EM13)","v":{"v":-68680.23514917595,"d":"($68,680)"}}]
[{"$f":"Labels!B78","v":"Output Shock"},{"$f":"B46","v":{"v":34632.56274053554,"d":"$34,633"}},{"v":56870.21602073529,"d":"$56,870"},{"v":23822.106571719178,"d":"$23,822"},{"v":-41937.57192891079,"d":"($41,938)"},{"v":-27910.58407911024,"d":"($27,911)"},{"v":27845.0236444039,"d":"$27,845"},{"v":30370.325458528805,"d":"$30,370"},{"v":36759.95216466207,"d":"$36,760"},{"v":-10055.614623870211,"d":"($10,056)"},{"v":-9371.2852380817,"d":"($9,371)"},{"v":-4530.921114496909,"d":"($4,531)"},{"v":-5952.29495365752,"d":"($5,952)"},{"$f":"SUM(B46:M46)","v":{"v":110541.91466245745,"d":"$110,542"}},{"$f":"O46","v":{"v":30772.61104845282,"d":"$30,773"}},{"v":934.5133680026751,"d":"$935"},{"v":37933.472755223294,"d":"$37,933"},{"v":54663.36110103123,"d":"$54,663"},{"v":49669.133303747345,"d":"$49,669"},{"v":-21042.6851869664,"d":"($21,043)"},{"v":601.3831102648707,"d":"$601"},{"v":6397.343929387906,"d":"$6,397"},{"v":-1703.5382300562462,"d":"($1,704)"},{"v":27682.582075335573,"d":"$27,683"},{"v":-43426.19206747658,"d":"($43,426)"},{"v":14904.671861736602,"d":"$14,905"},{"$f":"SUM(O46:Z46)","v":{"v":157386.65706868313,"d":"$157,387"}},{"$f":"AB46","v":{"v":14395.777566198294,"d":"$14,396"}},{"v":6172.307228441399,"d":"$6,172"},{"v":-781.8031816923233,"d":"($782)"},{"v":-37890.1272551638,"d":"($37,890)"},{"v":24162.042441235433,"d":"$24,162"},{"v":18996.60700777342,"d":"$18,997"},{"v":55314.40471113519,"d":"$55,314"},{"v":-24049.169457172367,"d":"($24,049)"},{"v":-52049.61051725651,"d":"($52,050)"},{"v":-34656.507875963354,"d":"($34,657)"},{"v":-6873.083927261292,"d":"($6,873)"},{"v":43920.368674023055,"d":"$43,920"},{"$f":"SUM(AB46:AM46)","v":{"v":6661.205414297139,"d":"$6,661"}},{"$f":"AO46","v":{"v":-23833.568524527698,"d":"($23,834)"}},{"v":-5248.77678891398,"d":"($5,249)"},{"v":-11157.158968628797,"d":"($11,157)"},{"v":-35994.99597648865,"d":"($35,995)"},{"v":-40559.66482207436,"d":"($40,560)"},{"v":-49248.69629403973,"d":"($49,249)"},{"v":8905.3628520517,"d":"$8,905"},{"v":16315.671076422486,"d":"$16,316"},{"v":-6576.415087321062,"d":"($6,576)"},{"v":-20062.122926863514,"d":"($20,062)"},{"v":2817.8631497087176,"d":"$2,818"},{"v":-6401.106553050837,"d":"($6,401)"},{"$f":"SUM(AO46:AZ46)","v":{"v":-171043.6088637257,"d":"($171,044)"}},{"$f":"BB46","v":{"v":27099.270547268177,"d":"$27,099"}},{"v":-13871.15968897814,"d":"($13,871)"},{"v":-13870.430294909163,"d":"($13,870)"},{"v":-9772.68930244665,"d":"($9,773)"},{"v":6322.128342387633,"d":"$6,322"},{"v":28445.29104416135,"d":"$28,445"},{"v":22840.00017878097,"d":"$22,840"},{"v":-35149.99504669223,"d":"($35,150)"},{"v":11215.262957496245,"d":"$11,215"},{"v":-10771.515609365275,"d":"($10,772)"},{"v":112.18418130165614,"d":"$112"},{"v":16738.08124652924,"d":"$16,738"},{"$f":"SUM(BB46:BM46)","v":{"v":29336.428555533817,"d":"$29,336"}},{"$f":"BO46","v":{"v":-18114.807266668086,"d":"($18,115)"}},{"v":14394.004576268926,"d":"$14,394"},{"v":-13063.167509475677,"d":"($13,063)"},{"v":2665.387467703088,"d":"$2,665"},{"v":-12125.631781882525,"d":"($12,126)"},{"v":17775.73369288972,"d":"$17,776"},{"v":10982.216782715892,"d":"$10,982"},{"v":-32983.9393694305,"d":"($32,984)"},{"v":31293.635244618763,"d":"$31,294"},{"v":42729.23306841504,"d":"$42,729"},{"v":-2013.5594463264756,"d":"($2,014)"},{"v":26664.615552483225,"d":"$26,665"},{"$f":"SUM(BO46:BZ46)","v":{"v":68203.72101131138,"d":"$68,204"}},{"$f":"CB46","v":{"v":5218.441225478628,"d":"$5,218"}},{"v":7831.114357293748,"d":"$7,831"},{"v":9569.03285597894,"d":"$9,569"},{"v":-4106.051279437941,"d":"($4,106)"},{"v":-3905.739754429266,"d":"($3,906)"},{"v":15995.87895716103,"d":"$15,996"},{"v":-36732.66935578057,"d":"($36,733)"},{"v":1931.5713078036306,"d":"$1,932"},{"v":18118.311519233735,"d":"$18,118"},{"v":-6395.107428504674,"d":"($6,395)"},{"v":12913.547309671223,"d":"$12,914"},{"v":-18139.017637753186,"d":"($18,139)"},{"$f":"SUM(CB46:CM46)","v":{"v":2299.3120767152977,"d":"$2,299"}},{"$f":"CO46","v":{"v":39205.25693351775,"d":"$39,205"}},{"v":2582.061776386711,"d":"$2,582"},{"v":-25465.579412043196,"d":"($25,466)"},{"v":5143.221018857368,"d":"$5,143"},{"v":-26654.810896386993,"d":"($26,655)"},{"v":-6161.371178509568,"d":"($6,161)"},{"v":-7392.736054365556,"d":"($7,393)"},{"v":26532.032580150895,"d":"$26,532"},{"v":-5996.234866030847,"d":"($5,996)"},{"v":26061.804335305274,"d":"$26,062"},{"v":10307.979603815795,"d":"$10,308"},{"v":-18968.31820811754,"d":"($18,968)"},{"$f":"SUM(CO46:CZ46)","v":{"v":19193.305632580086,"d":"$19,193"}},{"$f":"DB46","v":{"v":-6330.10569197487,"d":"($6,330)"}},{"v":59181.77371610338,"d":"$59,182"},{"v":7301.335633914146,"d":"$7,301"},{"v":20048.094760234326,"d":"$20,048"},{"v":8449.177080129864,"d":"$8,449"},{"v":-44065.64418640598,"d":"($44,066)"},{"v":14058.403670436297,"d":"$14,058"},{"v":-25863.5173019274,"d":"($25,864)"},{"v":-55774.20264889734,"d":"($55,774)"},{"v":6615.134049864628,"d":"$6,615"},{"v":-4295.621725239901,"d":"($4,296)"},{"v":18287.955157442484,"d":"$18,288"},{"$f":"SUM(DB46:DM46)","v":{"v":-2387.2174863203727,"d":"($2,387)"}},{"$f":"DO46","v":{"v":-6319.562549915573,"d":"($6,320)"}},{"v":24878.283049070174,"d":"$24,878"},{"v":37581.455813693734,"d":"$37,581"},{"v":-5671.490951821121,"d":"($5,671)"},{"v":31173.02766238293,"d":"$31,173"},{"v":-46659.840757653124,"d":"($46,660)"},{"v":-53044.497802067686,"d":"($53,044)"},{"v":6576.489068574196,"d":"$6,576"},{"v":33281.92723916571,"d":"$33,282"},{"v":-38487.34921019776,"d":"($38,487)"},{"v":18387.6567091381,"d":"$18,388"},{"v":-13101.377008823814,"d":"($13,101)"},{"$f":"SUM(DO46:DZ46)","v":{"v":-11405.278738454233,"d":"($11,405)"}},{"$f":"EB46","v":{"v":34151.80510639772,"d":"$34,152"}},{"v":45099.70884252739,"d":"$45,100"},{"v":18370.976825547026,"d":"$18,371"},{"v":-4161.241147839011,"d":"($4,161)"},{"v":-21564.30656553204,"d":"($21,564)"},{"v":-43099.2206130201,"d":"($43,099)"},{"v":11379.318537548917,"d":"$11,379"},{"v":54129.83632952655,"d":"$54,130"},{"v":20030.862865605384,"d":"$20,031"},{"v":-31015.323611085918,"d":"($31,015)"},{"v":2042.895548687894,"d":"$2,043"},{"v":25432.496411839427,"d":"$25,432"},{"$f":"SUM(EB46:EM46)","v":{"v":110797.80853020326,"d":"$110,798"}}]

{"sheet":"Trial 5","index":8,"n_rows":61,"n_cols":144,"rows_kept":61,"merged":[[0,0,0,2],[1,0,1,2],[2,0,2,2],[3,0,3,2],[4,0,4,2]]}
[{"$f":"\"Equilibrium Economy with Shocks\"","v":"Equilibrium Economy with Shocks"}]
[{"$f":"\"Model: \"&Inputs!B8","v":"Model: Test Model"}]
[{"$f":"\"$ millions\"","v":"$ millions"}]
[{"$f":"\"Trial 5\"","v":"Trial 5"}]
[{"$f":"\"\"","v":""}]
[{"$f":"\"Demand\"","v":"Demand"}]
[{"$f":"\" \"","v":" "}]
[null,{"$f":"ZZZ__FnCalls!F7","v":"Jan 2010"},{"$f":"ZZZ__FnCalls!F8","v":"Feb 2010"},{"$f":"ZZZ__FnCalls!F9","v":"Mar 2010"},{"$f":"ZZZ__FnCalls!F10","v":"Apr 2010"},{"$f":"ZZZ__FnCalls!F11","v":"May 2010"},{"$f":"ZZZ__FnCalls!F12","v":"Jun 2010"},{"$f":"ZZZ__FnCalls!F13","v":"Jul 2010"},{"$f":"ZZZ__FnCalls!F14","v":"Aug 2010"},{"$f":"ZZZ__FnCalls!F15","v":"Sep 2010"},{"$f":"ZZZ__FnCalls!F16","v":"Oct 2010"},{"$f":"ZZZ__FnCalls!F17","v":"Nov 2010"},{"$f":"ZZZ__FnCalls!F18","v":"Dec 2010"},{"$f":"ZZZ__FnCalls!H7","v":"2010"},{"$f":"ZZZ__FnCalls!F19","v":"Jan 2011"},{"$f":"ZZZ__FnCalls!F20","v":"Feb 2011"},{"$f":"ZZZ__FnCalls!F21","v":"Mar 2011"},{"$f":"ZZZ__FnCalls!F22","v":"Apr 2011"},{"$f":"ZZZ__FnCalls!F23","v":"May 2011"},{"$f":"ZZZ__FnCalls!F24","v":"Jun 2011"},{"$f":"ZZZ__FnCalls!F25","v":"Jul 2011"},{"$f":"ZZZ__FnCalls!F26","v":"Aug 2011"},{"$f":"ZZZ__FnCalls!F27","v":"Sep 2011"},{"$f":"ZZZ__FnCalls!F28","v":"Oct 2011"},{"$f":"ZZZ__FnCalls!F29","v":"Nov 2011"},{"$f":"ZZZ__FnCalls!F30","v":"Dec 2011"},{"$f":"ZZZ__FnCalls!H19","v":"2011"},{"$f":"ZZZ__FnCalls!F31","v":"Jan 2012"},{"$f":"ZZZ__FnCalls!F32","v":"Feb 2012"},{"$f":"ZZZ__FnCalls!F33","v":"Mar 2012"},{"$f":"ZZZ__FnCalls!F34","v":"Apr 2012"},{"$f":"ZZZ__FnCalls!F35","v":"May 2012"},{"$f":"ZZZ__FnCalls!F36","v":"Jun 2012"},{"$f":"ZZZ__FnCalls!F37","v":"Jul 2012"},{"$f":"ZZZ__FnCalls!F38","v":"Aug 2012"},{"$f":"ZZZ__FnCalls!F39","v":"Sep 2012"},{"$f":"ZZZ__FnCalls!F40","v":"Oct 2012"},{"$f":"ZZZ__FnCalls!F41","v":"Nov 2012"},{"$f":"ZZZ__FnCalls!F42","v":"Dec 2012"},{"$f":"ZZZ__FnCalls!H31","v":"2012"},{"$f":"ZZZ__FnCalls!F43","v":"Jan 2013"},{"$f":"ZZZ__FnCalls!F44","v":"Feb 2013"},{"$f":"ZZZ__FnCalls!F45","v":"Mar 2013"},{"$f":"ZZZ__FnCalls!F46","v":"Apr 2013"},{"$f":"ZZZ__FnCalls!F47","v":"May 2013"},{"$f":"ZZZ__FnCalls!F48","v":"Jun 2013"},{"$f":"ZZZ__FnCalls!F49","v":"Jul 2013"},{"$f":"ZZZ__FnCalls!F50","v":"Aug 2013"},{"$f":"ZZZ__FnCalls!F51","v":"Sep 2013"},{"$f":"ZZZ__FnCalls!F52","v":"Oct 2013"},{"$f":"ZZZ__FnCalls!F53","v":"Nov 2013"},{"$f":"ZZZ__FnCalls!F54","v":"Dec 2013"},{"$f":"ZZZ__FnCalls!H43","v":"2013"},{"$f":"ZZZ__FnCalls!F55","v":"Jan 2014"},{"$f":"ZZZ__FnCalls!F56","v":"Feb 2014"},{"$f":"ZZZ__FnCalls!F57","v":"Mar 2014"},{"$f":"ZZZ__FnCalls!F58","v":"Apr 2014"},{"$f":"ZZZ__FnCalls!F59","v":"May 2014"},{"$f":"ZZZ__FnCalls!F60","v":"Jun 2014"},{"$f":"ZZZ__FnCalls!F61","v":"Jul 2014"},{"$f":"ZZZ__FnCalls!F62","v":"Aug 2014"},{"$f":"ZZZ__FnCalls!F63","v":"Sep 2014"},{"$f":"ZZZ__FnCalls!F64","v":"Oct 2014"},{"$f":"ZZZ__FnCalls!F65","v":"Nov 2014"},{"$f":"ZZZ__FnCalls!F66","v":"Dec 2014"},{"$f":"ZZZ__FnCalls!H55","v":"2014"},{"$f":"ZZZ__FnCalls!F67","v":"Jan 2015"},{"$f":"ZZZ__FnCalls!F68","v":"Feb 2015"},{"$f":"ZZZ__FnCalls!F69","v":"Mar 2015"},{"$f":"ZZZ__FnCalls!F70","v":"Apr 2015"},{"$f":"ZZZ__FnCalls!F71","v":"May 2015"},{"$f":"ZZZ__FnCalls!F72","v":"Jun 2015"},{"$f":"ZZZ__FnCalls!F73","v":"Jul 2015"},{"$f":"ZZZ__FnCalls!F74","v":"Aug 2015"},{"$f":"ZZZ__FnCalls!F75","v":"Sep 2015"},{"$f":"ZZZ__FnCalls!F76","v":"Oct 2015"},{"$f":"ZZZ__FnCalls!F77","v":"Nov 2015"},{"$f":"ZZZ__FnCalls!F78","v":"Dec 2015"},{"$f":"ZZZ__FnCalls!H67","v":"2015"},{"$f":"ZZZ__FnCalls!F79","v":"Jan 2016"},{"$f":"ZZZ__FnCalls!F80","v":"Feb 2016"},{"$f":"ZZZ__FnCalls!F81","v":"Mar 2016"},{"$f":"ZZZ__FnCalls!F82","v":"Apr 2016"},{"$f":"ZZZ__FnCalls!F83","v":"May 2016"},{"$f":"ZZZ__FnCalls!F84","v":"Jun 2016"},{"$f":"ZZZ__FnCalls!F85","v":"Jul 2016"},{"$f":"ZZZ__FnCalls!F86","v":"Aug 2016"},{"$f":"ZZZ__FnCalls!F87","v":"Sep 2016"},{"$f":"ZZZ__FnCalls!F88","v":"Oct 2016"},{"$f":"ZZZ__FnCalls!F89","v":"Nov 2016"},{"$f":"ZZZ__FnCalls!F90","v":"Dec 2016"},{"$f":"ZZZ__FnCalls!H79","v":"2016"},{"$f":"ZZZ__FnCalls!F91","v":"Jan 2017"},{"$f":"ZZZ__FnCalls!F92","v":"Feb 2017"},{"$f":"ZZZ__FnCalls!F93","v":"Mar 2017"},{"$f":"ZZZ__FnCalls!F94","v":"Apr 2017"},{"$f":"ZZZ__FnCalls!F95","v":"May 2017"},{"$f":"ZZZ__FnCalls!F96","v":"Jun 2017"},{"$f":"ZZZ__FnCalls!F97","v":"Jul 2017"},{"$f":"ZZZ__FnCalls!F98","v":"Aug 2017"},{"$f":"ZZZ__FnCalls!F99","v":"Sep 2017"},{"$f":"ZZZ__FnCalls!F100","v":"Oct 2017"},{"$f":"ZZZ__FnCalls!F101","v":"Nov 2017"},{"$f":"ZZZ__FnCalls!F102","v":"Dec 2017"},{"$f":"ZZZ__FnCalls!H91","v":"2017"},{"$f":"ZZZ__FnCalls!F103","v":"Jan 2018"},{"$f":"ZZZ__FnCalls!F104","v":"Feb 2018"},{"$f":"ZZZ__FnCalls!F105","v":"Mar 2018"},{"$f":"ZZZ__FnCalls!F106","v":"Apr 2018"},{"$f":"ZZZ__FnCalls!F107","v":"May 2018"},{"$f":"ZZZ__FnCalls!F108","v":"Jun 2018"},{"$f":"ZZZ__FnCalls!F109","v":"Jul 2018"},{"$f":"ZZZ__FnCalls!F110","v":"Aug 2018"},{"$f":"ZZZ__FnCalls!F111","v":"Sep 2018"},{"$f":"ZZZ__FnCalls!F112","v":"Oct 2018"},{"$f":"ZZZ__FnCalls!F113","v":"Nov 2018"},{"$f":"ZZZ__FnCalls!F114","v":"Dec 2018"},{"$f":"ZZZ__FnCalls!H103","v":"2018"},{"$f":"ZZZ__FnCalls!F115","v":"Jan 2019"},{"$f":"ZZZ__FnCalls!F116","v":"Feb 2019"},{"$f":"ZZZ__FnCalls!F117","v":"Mar 2019"},{"$f":"ZZZ__FnCalls!F118","v":"Apr 2019"},{"$f":"ZZZ__FnCalls!F119","v":"May 2019"},{"$f":"ZZZ__FnCalls!F120","v":"Jun 2019"},{"$f":"ZZZ__FnCalls!F121","v":"Jul 2019"},{"$f":"ZZZ__FnCalls!F122","v":"Aug 2019"},{"$f":"ZZZ__FnCalls!F123","v":"Sep 2019"},{"$f":"ZZZ__FnCalls!F124","v":"Oct 2019"},{"$f":"ZZZ__FnCalls!F125","v":"Nov 2019"},{"$f":"ZZZ__FnCalls!F126","v":"Dec 2019"},{"$f":"ZZZ__FnCalls!H115","v":"2019"},{"$f":"ZZZ__FnCalls!F127","v":"Jan 2020"},{"$f":"ZZZ__FnCalls!F128","v":"Feb 2020"},{"$f":"ZZZ__FnCalls!F129","v":"Mar 2020"},{"$f":"ZZZ__FnCalls!F130","v":"Apr 2020"},{"$f":"ZZZ__FnCalls!F131","v":"May 2020"},{"$f":"ZZZ__FnCalls!F132","v":"Jun 2020"},{"$f":"ZZZ__FnCalls!F133","v":"Jul 2020"},{"$f":"ZZZ__FnCalls!F134","v":"Aug 2020"},{"$f":"ZZZ__FnCalls!F135","v":"Sep 2020"},{"$f":"ZZZ__FnCalls!F136","v":"Oct 2020"},{"$f":"ZZZ__FnCalls!F137","v":"Nov 2020"},{"$f":"ZZZ__FnCalls!F138","v":"Dec 2020"},{"$f":"ZZZ__FnCalls!H127","v":"2020"}]
[{"$f":"Labels!B28","v":"Aggregate Demand"},{"$f":"B36+0+B13","v":{"v":923738.448670476,"d":"$923,738"}},{"v":933408.649227766,"d":"$933,409"},{"v":999945.310821713,"d":"$999,945"},{"v":909754.3983882215,"d":"$909,754"},{"v":940760.9875784436,"d":"$940,761"},{"v":935755.0869919473,"d":"$935,755"},{"v":957530.6120783462,"d":"$957,531"},{"v":978652.2856243133,"d":"$978,652"},{"v":1018764.6421169592,"d":"$1,018,765"},{"v":930350.0790734767,"d":"$930,350"},{"v":936003.9597199886,"d":"$936,004"},{"v":955930.7935484002,"d":"$955,931"},{"$f":"SUM(B9:M9)","v":{"v":11420595.253840053,"d":"$11,420,595"}},{"$f":"O36+0+O13","v":{"v":946175.9502732761,"d":"$946,176"}},{"v":959793.8067702696,"d":"$959,794"},{"v":947107.6564104268,"d":"$947,108"},{"v":961928.1586591399,"d":"$961,928"},{"v":912942.3623592738,"d":"$912,942"},{"v":1013706.1412023694,"d":"$1,013,706"},{"v":967536.0176366833,"d":"$967,536"},{"v":948979.2600223806,"d":"$948,979"},{"v":961333.4020066863,"d":"$961,333"},{"v":917539.9724895163,"d":"$917,540"},{"v":1007770.4363511159,"d":"$1,007,770"},{"v":937056.78479072,"d":"$937,057"},{"$f":"SUM(O9:Z9)","v":{"v":11481869.94897186,"d":"$11,481,870"}},{"$f":"AB36+0+AB13","v":{"v":967212.1680572735,"d":"$967,212"}},{"v":949707.736172165,"d":"$949,708"},{"v":1001102.8242061533,"d":"$1,001,103"},{"v":891333.5954792737,"d":"$891,334"},{"v":900823.7727385288,"d":"$900,824"},{"v":931709.0003718797,"d":"$931,709"},{"v":961578.8904434014,"d":"$961,579"},{"v":913078.4284984393,"d":"$913,078"},{"v":954370.5792174317,"d":"$954,371"},{"v":910790.9103733476,"d":"$910,791"},{"v":936636.6249399761,"d":"$936,637"},{"v":913581.7670673335,"d":"$913,582"},{"$f":"SUM(AB9:AM9)","v":{"v":11231926.297565203,"d":"$11,231,926"}},{"$f":"AO36+0+AO13","v":{"v":944958.3478503797,"d":"$944,958"}},{"v":947860.8678001799,"d":"$947,861"},{"v":931208.8286774773,"d":"$931,209"},{"v":958776.6666613529,"d":"$958,777"},{"v":964043.319901824,"d":"$964,043"},{"v":925337.3209513045,"d":"$925,337"},{"v":954473.3741220998,"d":"$954,473"},{"v":944134.8099339925,"d":"$944,135"},{"v":932528.0069679854,"d":"$932,528"},{"v":932537.2121217838,"d":"$932,537"},{"v":948464.7194809237,"d":"$948,465"},{"v":932238.1727281841,"d":"$932,238"},{"$f":"SUM(AO9:AZ9)","v":{"v":11316561.647197489,"d":"$11,316,562"}},{"$f":"BB36+0+BB13","v":{"v":917131.5560422477,"d":"$917,132"}},{"v":897056.9017516397,"d":"$897,057"},{"v":880015.52100851,"d":"$880,016"},{"v":952871.2310582673,"d":"$952,871"},{"v":920936.5856282869,"d":"$920,937"},{"v":944756.172153294,"d":"$944,756"},{"v":892443.3732456976,"d":"$892,443"},{"v":945306.411481105,"d":"$945,306"},{"v":974069.0425867998,"d":"$974,069"},{"v":947965.69939006,"d":"$947,966"},{"v":974185.3089127983,"d":"$974,185"},{"v":943479.7272712535,"d":"$943,480"},{"$f":"SUM(BB9:BM9)","v":{"v":11190217.53052996,"d":"$11,190,218"}},{"$f":"BO36+0+BO13","v":{"v":971536.3074708075,"d":"$971,536"}},{"v":988248.8811194685,"d":"$988,249"},{"v":985614.6911749173,"d":"$985,615"},{"v":894988.9422326032,"d":"$894,989"},{"v":931796.0829332583,"d":"$931,796"},{"v":988634.8094090989,"d":"$988,635"},{"v":896526.7481934418,"d":"$896,527"},{"v":923823.332932882,"d":"$923,823"},{"v":935433.4463843657,"d":"$935,433"},{"v":974016.2989859054,"d":"$974,016"},{"v":977342.447441476,"d":"$977,342"},{"v":964097.7319944862,"d":"$964,098"},{"$f":"SUM(BO9:BZ9)","v":{"v":11432059.72027271,"d":"$11,432,060"}},{"$f":"CB36+0+CB13","v":{"v":923324.4664561255,"d":"$923,324"}},{"v":930164.1287915629,"d":"$930,164"},{"v":923399.867098097,"d":"$923,400"},{"v":907376.8653258948,"d":"$907,377"},{"v":933109.4192768191,"d":"$933,109"},{"v":985260.1080956182,"d":"$985,260"},{"v":903213.3007426122,"d":"$903,213"},{"v":896400.2528406564,"d":"$896,400"},{"v":935896.0963240593,"d":"$935,896"},{"v":979575.8384924821,"d":"$979,576"},{"v":892480.0947918118,"d":"$892,480"},{"v":940989.5409178147,"d":"$940,990"},{"$f":"SUM(CB9:CM9)","v":{"v":11151189.979153555,"d":"$11,151,190"}},{"$f":"CO36+0+CO13","v":{"v":937313.084163966,"d":"$937,313"}},{"v":890565.2406215009,"d":"$890,565"},{"v":969406.1818002518,"d":"$969,406"},{"v":896239.0000566765,"d":"$896,239"},{"v":905494.9741825534,"d":"$905,495"},{"v":937944.7445645655,"d":"$937,945"},{"v":928004.105100289,"d":"$928,004"},{"v":910755.6870703362,"d":"$910,756"},{"v":950386.0135316213,"d":"$950,386"},{"v":904094.7116927443,"d":"$904,095"},{"v":916095.6197996765,"d":"$916,096"},{"v":867643.9158454409,"d":"$867,644"},{"$f":"SUM(CO9:CZ9)","v":{"v":11013943.278429624,"d":"$11,013,943"}},{"$f":"DB36+0+DB13","v":{"v":936758.9774609013,"d":"$936,759"}},{"v":919020.3042439407,"d":"$919,020"},{"v":926983.4912820138,"d":"$926,983"},{"v":894490.2454754357,"d":"$894,490"},{"v":886685.8409862266,"d":"$886,686"},{"v":945333.4543062474,"d":"$945,333"},{"v":969292.1919536958,"d":"$969,292"},{"v":916377.3313958433,"d":"$916,377"},{"v":884670.5805497586,"d":"$884,671"},{"v":907178.7557308762,"d":"$907,179"},{"v":878974.9855721167,"d":"$878,975"},{"v":913565.4969119215,"d":"$913,565"},{"$f":"SUM(DB9:DM9)","v":{"v":10979331.655868977,"d":"$10,979,332"}},{"$f":"DO36+0+DO13","v":{"v":895006.0835939602,"d":"$895,006"}},{"v":909865.645605966,"d":"$909,866"},{"v":960068.1298029142,"d":"$960,068"},{"v":934181.0994787051,"d":"$934,181"},{"v":927484.208094801,"d":"$927,484"},{"v":944232.6308175926,"d":"$944,233"},{"v":884442.7154696607,"d":"$884,443"},{"v":913374.3970782605,"d":"$913,374"},{"v":935457.1784628839,"d":"$935,457"},{"v":891390.5505763418,"d":"$891,391"},{"v":907314.8368183265,"d":"$907,315"},{"v":877907.6346212669,"d":"$877,908"},{"$f":"SUM(DO9:DZ9)","v":{"v":10980725.110420678,"d":"$10,980,725"}},{"$f":"EB36+0+EB13","v":{"v":904786.819212729,"d":"$904,787"}},{"v":944025.6736468422,"d":"$944,026"},{"v":880769.4140507188,"d":"$880,769"},{"v":911321.3238770993,"d":"$911,321"},{"v":909003.0098695857,"d":"$909,003"},{"v":938485.5171291063,"d":"$938,486"},{"v":858753.7446303876,"d":"$858,754"},{"v":870843.7929237171,"d":"$870,844"},{"v":884730.8800691313,"d":"$884,731"},{"v":905306.133282507,"d":"$905,306"},{"v":906237.8556713986,"d":"$906,238"},{"v":899304.8592834366,"d":"$899,305"},{"$f":"SUM(EB9:EM9)","v":{"v":10813569.02364666,"d":"$10,813,569"}}]
[{"$f":"Labels!B31","v":"Long Expected Demand"},{"$f":"'(Other Computations)'!B8+'(Other Computations)'!B61*0/Inputs!B13/12","v":{"v":1166666.6666666667,"d":"$1,166,667"}},{"$f":"B10+'(Other Computations)'!B61*(B9-B10)/Inputs!B13/12","v":{"v":1166104.3328287126,"d":"$1,166,104"}},{"$f":"C10+'(Other Computations)'!B61*(C9-C10)/Inputs!B13/12","v":{"v":1165565.6854129697,"d":"$1,165,566"}},{"$f":"D10+'(Other Computations)'!B61*(D9-D10)/Inputs!B13/12","v":{"v":1165182.3049162307,"d":"$1,165,182"}},{"$f":"E10+'(Other Computations)'!B61*(E9-E10)/Inputs!B13/12","v":{"v":1164591.0366140825,"d":"$1,164,591"}},{"$f":"F10+'(Other Computations)'!B61*(F9-F10)/Inputs!B13/12","v":{"v":1164072.911500574,"d":"$1,164,073"}},{"$f":"G10+'(Other Computations)'!B61*(G9-G10)/Inputs!B13/12","v":{"v":1163544.3980179152,"d":"$1,163,544"}},{"$f":"H10+'(Other Computations)'!B61*(H9-H10)/Inputs!B13/12","v":{"v":1163067.5142541663,"d":"$1,163,068"}},{"$f":"I10+'(Other Computations)'!B61*(I9-I10)/Inputs!B13/12","v":{"v":1162640.6271508564,"d":"$1,162,641"}},{"$f":"J10+'(Other Computations)'!B61*(J9-J10)/Inputs!B13/12","v":{"v":1162307.5808892038,"d":"$1,162,308"}},{"$f":"K10+'(Other Computations)'!B61*(K9-K10)/Inputs!B13/12","v":{"v":1161770.6422275933,"d":"$1,161,771"}},{"$f":"L10+'(Other Computations)'!B61*(L9-L10)/Inputs!B13/12","v":{"v":1161248.0341662331,"d":"$1,161,248"}},{"$f":"SUM(B10:M10)","v":{"v":13966761.734645206,"d":"$13,966,762"}},{"$f":"M10+'(Other Computations)'!B61*(M9-M10)/Inputs!B13/12","v":{"v":1160772.762775914,"d":"$1,160,773"}},{"$f":"O10+'(Other Computations)'!B61*(O9-O10)/Inputs!B13/12","v":{"v":1160276.010895121,"d":"$1,160,276"}},{"$f":"P10+'(Other Computations)'!B61*(P9-P10)/Inputs!B13/12","v":{"v":1159811.931718906,"d":"$1,159,812"}},{"$f":"Q10+'(Other Computations)'!B61*(Q9-Q10)/Inputs!B13/12","v":{"v":1159319.5607112474,"d":"$1,159,320"}},{"$f":"R10+'(Other Computations)'!B61*(R9-R10)/Inputs!B13/12","v":{"v":1158862.6361694601,"d":"$1,158,863"}},{"$f":"S10+'(Other Computations)'!B61*(S9-S10)/Inputs!B13/12","v":{"v":1158293.376276381,"d":"$1,158,293"}},{"$f":"T10+'(Other Computations)'!B61*(T9-T10)/Inputs!B13/12","v":{"v":1157958.6836025987,"d":"$1,157,959"}},{"$f":"U10+'(Other Computations)'!B61*(U9-U10)/Inputs!B13/12","v":{"v":1157517.8903943442,"d":"$1,157,518"}},{"$f":"V10+'(Other Computations)'!B61*(V9-V10)/Inputs!B13/12","v":{"v":1157035.162083298,"d":"$1,157,035"}},{"$f":"W10+'(Other Computations)'!B61*(W9-W10)/Inputs!B13/12","v":{"v":1156582.1487497874,"d":"$1,156,582"}},{"$f":"X10+'(Other Computations)'!B61*(X9-X10)/Inputs!B13/12","v":{"v":1156028.8103788146,"d":"$1,156,029"}},{"$f":"Y10+'(Other Computations)'!B61*(Y9-Y10)/Inputs!B13/12","v":{"v":1155685.619698195,"d":"$1,155,686"}},{"$f":"SUM(O10:Z10)","v":{"v":13898144.593454067,"d":"$13,898,145"}},{"$f":"Z10+'(Other Computations)'!B61*(Z9-Z10)/Inputs!B13/12","v":{"v":1155179.5344322056,"d":"$1,155,180"}},{"$f":"AB10+'(Other Computations)'!B61*(AB9-AB10)/Inputs!B13/12","v":{"v":1154744.4247878192,"d":"$1,154,744"}},{"$f":"AC10+'(Other Computations)'!B61*(AC9-AC10)/Inputs!B13/12","v":{"v":1154269.802823431,"d":"$1,154,270"}},{"$f":"AD10+'(Other Computations)'!B61*(AD9-AD10)/Inputs!B13/12","v":{"v":1153915.2496321874,"d":"$1,153,915"}},{"$f":"AE10+'(Other Computations)'!B61*(AE9-AE10)/Inputs!B13/12","v":{"v":1153307.4217290557,"d":"$1,153,307"}},{"$f":"AF10+'(Other Computations)'!B61*(AF9-AF10)/Inputs!B13/12","v":{"v":1152722.968837874,"d":"$1,152,723"}},{"$f":"AG10+'(Other Computations)'!B61*(AG9-AG10)/Inputs!B13/12","v":{"v":1152211.3624293879,"d":"$1,152,211"}},{"$f":"AH10+'(Other Computations)'!B61*(AH9-AH10)/Inputs!B13/12","v":{"v":1151770.08355905,"d":"$1,151,770"}},{"$f":"AI10+'(Other Computations)'!B61*(AI9-AI10)/Inputs!B13/12","v":{"v":1151217.556579743,"d":"$1,151,218"}},{"$f":"AJ10+'(Other Computations)'!B61*(AJ9-AJ10)/Inputs!B13/12","v":{"v":1150761.8922802932,"d":"$1,150,762"}},{"$f":"AK10+'(Other Computations)'!B61*(AK9-AK10)/Inputs!B13/12","v":{"v":1150206.4038962494,"d":"$1,150,206"}},{"$f":"AL10+'(Other Computations)'!B61*(AL9-AL10)/Inputs!B13/12","v":{"v":1149712.0294079247,"d":"$1,149,712"}},{"$f":"SUM(AB10:AM10)","v":{"v":13830018.73039522,"d":"$13,830,019"}},{"$f":"AM10+'(Other Computations)'!B61*(AM9-AM10)/Inputs!B13/12","v":{"v":1149165.4315784327,"d":"$1,149,165"}},{"$f":"AO10+'(Other Computations)'!B61*(AO9-AO10)/Inputs!B13/12","v":{"v":1148692.729995729,"d":"$1,148,693"}},{"$f":"AP10+'(Other Computations)'!B61*(AP9-AP10)/Inputs!B13/12","v":{"v":1148227.841425832,"d":"$1,148,228"}},{"$f":"AQ10+'(Other Computations)'!B61*(AQ9-AQ10)/Inputs!B13/12","v":{"v":1147725.4826000256,"d":"$1,147,725"}},{"$f":"AR10+'(Other Computations)'!B61*(AR9-AR10)/Inputs!B13/12","v":{"v":1147288.101081649,"d":"$1,147,288"}},{"$f":"AS10+'(Other Computations)'!B61*(AS9-AS10)/Inputs!B13/12","v":{"v":1146863.9233474366,"d":"$1,146,864"}},{"$f":"AT10+'(Other Computations)'!B61*(AT9-AT10)/Inputs!B13/12","v":{"v":1146351.1302863345,"d":"$1,146,351"}},{"$f":"AU10+'(Other Computations)'!B61*(AU9-AU10)/Inputs!B13/12","v":{"v":1145906.9688137323,"d":"$1,145,907"}},{"$f":"AV10+'(Other Computations)'!B61*(AV9-AV10)/Inputs!B13/12","v":{"v":1145439.9036311402,"d":"$1,145,440"}},{"$f":"AW10+'(Other Computations)'!B61*(AW9-AW10)/Inputs!B13/12","v":{"v":1144947.052018494,"d":"$1,144,947"}},{"$f":"AX10+'(Other Computations)'!B61*(AX9-AX10)/Inputs!B13/12","v":{"v":1144455.3625742889,"d":"$1,144,455"}},{"$f":"AY10+'(Other Computations)'!B61*(AY9-AY10)/Inputs!B13/12","v":{"v":1144001.6805300913,"d":"$1,144,002"}},{"$f":"SUM(AO10:AZ10)","v":{"v":13759065.607883185,"d":"$13,759,066"}},{"$f":"AZ10+'(Other Computations)'!B61*(AZ9-AZ10)/Inputs!B13/12","v":{"v":1143511.4872249942,"d":"$1,143,511"}},{"$f":"BB10+'(Other Computations)'!B61*(BB9-BB10)/Inputs!B13/12","v":{"v":1142987.4596065157,"d":"$1,142,987"}},{"$f":"BC10+'(Other Computations)'!B61*(BC9-BC10)/Inputs!B13/12","v":{"v":1142418.1759077776,"d":"$1,142,418"}},{"$f":"BD10+'(Other Computations)'!B61*(BD9-BD10)/Inputs!B13/12","v":{"v":1141810.76235477,"d":"$1,141,811"}},{"$f":"BE10+'(Other Computations)'!B61*(BE9-BE10)/Inputs!B13/12","v":{"v":1141373.4023286207,"d":"$1,141,373"}},{"$f":"BF10+'(Other Computations)'!B61*(BF9-BF10)/Inputs!B13/12","v":{"v":1140863.1319195922,"d":"$1,140,863"}},{"$f":"BG10+'(Other Computations)'!B61*(BG9-BG10)/Inputs!B13/12","v":{"v":1140409.1806238368,"d":"$1,140,409"}},{"$f":"BH10+'(Other Computations)'!B61*(BH9-BH10)/Inputs!B13/12","v":{"v":1139835.1856993504,"d":"$1,139,835"}},{"$f":"BI10+'(Other Computations)'!B61*(BI9-BI10)/Inputs!B13/12","v":{"v":1139384.8876108823,"d":"$1,139,385"}},{"$f":"BJ10+'(Other Computations)'!B61*(BJ9-BJ10)/Inputs!B13/12","v":{"v":1139002.212043697,"d":"$1,139,002"}},{"$f":"BK10+'(Other Computations)'!B61*(BK9-BK10)/Inputs!B13/12","v":{"v":1138559.997894036,"d":"$1,138,560"}},{"$f":"BL10+'(Other Computations)'!B61*(BL9-BL10)/Inputs!B13/12","v":{"v":1138179.5009288015,"d":"$1,138,180"}},{"$f":"SUM(BB10:BM10)","v":{"v":13688335.384142876,"d":"$13,688,335"}},{"$f":"BM10+'(Other Computations)'!B61*(BM9-BM10)/Inputs!B13/12","v":{"v":1137728.8070082979,"d":"$1,137,729"}},{"$f":"BO10+'(Other Computations)'!B61*(BO9-BO10)/Inputs!B13/12","v":{"v":1137344.1021482574,"d":"$1,137,344"}},{"$f":"BP10+'(Other Computations)'!B61*(BP9-BP10)/Inputs!B13/12","v":{"v":1136998.974321802,"d":"$1,136,999"}},{"$f":"BQ10+'(Other Computations)'!B61*(BQ9-BQ10)/Inputs!B13/12","v":{"v":1136648.5477404434,"d":"$1,136,649"}},{"$f":"BR10+'(Other Computations)'!B61*(BR9-BR10)/Inputs!B13/12","v":{"v":1136089.1505054715,"d":"$1,136,089"}},{"$f":"BS10+'(Other Computations)'!B61*(BS9-BS10)/Inputs!B13/12","v":{"v":1135616.2498860913,"d":"$1,135,616"}},{"$f":"BT10+'(Other Computations)'!B61*(BT9-BT10)/Inputs!B13/12","v":{"v":1135276.0150701723,"d":"$1,135,276"}},{"$f":"BU10+'(Other Computations)'!B61*(BU9-BU10)/Inputs!B13/12","v":{"v":1134723.3547301798,"d":"$1,134,723"}},{"$f":"BV10+'(Other Computations)'!B61*(BV9-BV10)/Inputs!B13/12","v":{"v":1134235.1602352785,"d":"$1,134,235"}},{"$f":"BW10+'(Other Computations)'!B61*(BW9-BW10)/Inputs!B13/12","v":{"v":1133774.971082846,"d":"$1,133,775"}},{"$f":"BX10+'(Other Computations)'!B61*(BX9-BX10)/Inputs!B13/12","v":{"v":1133405.1593418808,"d":"$1,133,405"}},{"$f":"BY10+'(Other Computations)'!B61*(BY9-BY10)/Inputs!B13/12","v":{"v":1133043.9030643336,"d":"$1,133,044"}},{"$f":"SUM(BO10:BZ10)","v":{"v":13624884.395135054,"d":"$13,624,884"}},{"$f":"BZ10+'(Other Computations)'!B61*(BZ9-BZ10)/Inputs!B13/12","v":{"v":1132652.823964635,"d":"$1,132,653"}},{"$f":"CB10+'(Other Computations)'!B61*(CB9-CB10)/Inputs!B13/12","v":{"v":1132168.2675815134,"d":"$1,132,168"}},{"$f":"CC10+'(Other Computations)'!B61*(CC9-CC10)/Inputs!B13/12","v":{"v":1131700.6654083885,"d":"$1,131,701"}},{"$f":"CD10+'(Other Computations)'!B61*(CD9-CD10)/Inputs!B13/12","v":{"v":1131218.4876345221,"d":"$1,131,218"}},{"$f":"CE10+'(Other Computations)'!B61*(CE9-CE10)/Inputs!B13/12","v":{"v":1130700.33573103,"d":"$1,130,700"}},{"$f":"CF10+'(Other Computations)'!B61*(CF9-CF10)/Inputs!B13/12","v":{"v":1130242.949350349,"d":"$1,130,243"}},{"$f":"CG10+'(Other Computations)'!B61*(CG9-CG10)/Inputs!B13/12","v":{"v":1129907.3409215186,"d":"$1,129,907"}},{"$f":"CH10+'(Other Computations)'!B61*(CH9-CH10)/Inputs!B13/12","v":{"v":1129382.5861988822,"d":"$1,129,383"}},{"$f":"CI10+'(Other Computations)'!B61*(CI9-CI10)/Inputs!B13/12","v":{"v":1128843.2752420343,"d":"$1,128,843"}},{"$f":"CJ10+'(Other Computations)'!B61*(CJ9-CJ10)/Inputs!B13/12","v":{"v":1128396.6382537982,"d":"$1,128,397"}},{"$f":"CK10+'(Other Computations)'!B61*(CK9-CK10)/Inputs!B13/12","v":{"v":1128052.1456617583,"d":"$1,128,052"}},{"$f":"CL10+'(Other Computations)'!B61*(CL9-CL10)/Inputs!B13/12","v":{"v":1127506.8399884482,"d":"$1,127,507"}},{"$f":"SUM(CB10:CM10)","v":{"v":13560772.355936877,"d":"$13,560,772"}},{"$f":"CM10+'(Other Computations)'!B61*(CM9-CM10)/Inputs!B13/12","v":{"v":1127075.0869813403,"d":"$1,127,075"}},{"$f":"CO10+'(Other Computations)'!B61*(CO9-CO10)/Inputs!B13/12","v":{"v":1126635.8230859297,"d":"$1,126,636"}},{"$f":"CP10+'(Other Computations)'!B61*(CP9-CP10)/Inputs!B13/12","v":{"v":1126089.3634042991,"d":"$1,126,089"}},{"$f":"CQ10+'(Other Computations)'!B61*(CQ9-CQ10)/Inputs!B13/12","v":{"v":1125726.6708542898,"d":"$1,125,727"}},{"$f":"CR10+'(Other Computations)'!B61*(CR9-CR10)/Inputs!B13/12","v":{"v":1125195.4493941101,"d":"$1,125,195"}},{"$f":"CS10+'(Other Computations)'!B61*(CS9-CS10)/Inputs!B13/12","v":{"v":1124686.8834792685,"d":"$1,124,687"}},{"$f":"CT10+'(Other Computations)'!B61*(CT9-CT10)/Inputs!B13/12","v":{"v":1124254.6100095585,"d":"$1,124,255"}},{"$f":"CU10+'(Other Computations)'!B61*(CU9-CU10)/Inputs!B13/12","v":{"v":1123800.3264333797,"d":"$1,123,800"}},{"$f":"CV10+'(Other Computations)'!B61*(CV9-CV10)/Inputs!B13/12","v":{"v":1123307.1675459652,"d":"$1,123,307"}},{"$f":"CW10+'(Other Computations)'!B61*(CW9-CW10)/Inputs!B13/12","v":{"v":1122906.887096858,"d":"$1,122,907"}},{"$f":"CX10+'(Other Computations)'!B61*(CX9-CX10)/Inputs!B13/12","v":{"v":1122400.3774315706,"d":"$1,122,400"}},{"$f":"CY10+'(Other Computations)'!B61*(CY9-CY10)/Inputs!B13/12","v":{"v":1121922.8201222376,"d":"$1,121,923"}},{"$f":"SUM(CO10:CZ10)","v":{"v":13494001.465838809,"d":"$13,494,001"}},{"$f":"CZ10+'(Other Computations)'!B61*(CZ9-CZ10)/Inputs!B13/12","v":{"v":1121334.2115475228,"d":"$1,121,334"}},{"$f":"DB10+'(Other Computations)'!B61*(DB9-DB10)/Inputs!B13/12","v":{"v":1120906.954061211,"d":"$1,120,907"}},{"$f":"DC10+'(Other Computations)'!B61*(DC9-DC10)/Inputs!B13/12","v":{"v":1120439.6238533007,"d":"$1,120,440"}},{"$f":"DD10+'(Other Computations)'!B61*(DD9-DD10)/Inputs!B13/12","v":{"v":1119991.8087316079,"d":"$1,119,992"}},{"$f":"DE10+'(Other Computations)'!B61*(DE9-DE10)/Inputs!B13/12","v":{"v":1119469.8143722187,"d":"$1,119,470"}},{"$f":"DF10+'(Other Computations)'!B61*(DF9-DF10)/Inputs!B13/12","v":{"v":1118930.9625819733,"d":"$1,118,931"}},{"$f":"DG10+'(Other Computations)'!B61*(DG9-DG10)/Inputs!B13/12","v":{"v":1118529.1164980016,"d":"$1,118,529"}},{"$f":"DH10+'(Other Computations)'!B61*(DH9-DH10)/Inputs!B13/12","v":{"v":1118183.660654149,"d":"$1,118,184"}},{"$f":"DI10+'(Other Computations)'!B61*(DI9-DI10)/Inputs!B13/12","v":{"v":1117716.5163734586,"d":"$1,117,717"}},{"$f":"DJ10+'(Other Computations)'!B61*(DJ9-DJ10)/Inputs!B13/12","v":{"v":1117177.0581886815,"d":"$1,117,177"}},{"$f":"DK10+'(Other Computations)'!B61*(DK9-DK10)/Inputs!B13/12","v":{"v":1116690.9510070663,"d":"$1,116,691"}},{"$f":"DL10+'(Other Computations)'!B61*(DL9-DL10)/Inputs!B13/12","v":{"v":1116140.6825685594,"d":"$1,116,141"}},{"$f":"SUM(DB10:DM10)","v":{"v":13425511.36043775,"d":"$13,425,511"}},{"$f":"DM10+'(Other Computations)'!B61*(DM9-DM10)/Inputs!B13/12","v":{"v":1115671.7585276875,"d":"$1,115,672"}},{"$f":"DO10+'(Other Computations)'!B61*(DO9-DO10)/Inputs!B13/12","v":{"v":1115160.9583542298,"d":"$1,115,161"}},{"$f":"DP10+'(Other Computations)'!B61*(DP9-DP10)/Inputs!B13/12","v":{"v":1114685.737722868,"d":"$1,114,686"}},{"$f":"DQ10+'(Other Computations)'!B61*(DQ9-DQ10)/Inputs!B13/12","v":{"v":1114327.8265934237,"d":"$1,114,328"}},{"$f":"DR10+'(Other Computations)'!B61*(DR9-DR10)/Inputs!B13/12","v":{"v":1113910.820280658,"d":"$1,113,911"}},{"$f":"DS10+'(Other Computations)'!B61*(DS9-DS10)/Inputs!B13/12","v":{"v":1113479.2771968946,"d":"$1,113,479"}},{"$f":"DT10+'(Other Computations)'!B61*(DT9-DT10)/Inputs!B13/12","v":{"v":1113087.5025524981,"d":"$1,113,088"}},{"$f":"DU10+'(Other Computations)'!B61*(DU9-DU10)/Inputs!B13/12","v":{"v":1112558.2322120287,"d":"$1,112,558"}},{"$f":"DV10+'(Other Computations)'!B61*(DV9-DV10)/Inputs!B13/12","v":{"v":1112097.1585195893,"d":"$1,112,097"}},{"$f":"DW10+'(Other Computations)'!B61*(DW9-DW10)/Inputs!B13/12","v":{"v":1111688.2696768655,"d":"$1,111,688"}},{"$f":"DX10+'(Other Computations)'!B61*(DX9-DX10)/Inputs!B13/12","v":{"v":1111178.3212530217,"d":"$1,111,178"}},{"$f":"DY10+'(Other Computations)'!B61*(DY9-DY10)/Inputs!B13/12","v":{"v":1110706.4150390525,"d":"$1,110,706"}},{"$f":"SUM(DO10:DZ10)","v":{"v":13358552.27792882,"d":"$13,358,552"}},{"$f":"DZ10+'(Other Computations)'!B61*(DZ9-DZ10)/Inputs!B13/12","v":{"v":1110167.5289732707,"d":"$1,110,168"}},{"$f":"EB10+'(Other Computations)'!B61*(EB9-EB10)/Inputs!B13/12","v":{"v":1109692.1106636398,"d":"$1,109,692"}},{"$f":"EC10+'(Other Computations)'!B61*(EC9-EC10)/Inputs!B13/12","v":{"v":1109308.6235409158,"d":"$1,109,309"}},{"$f":"ED10+'(Other Computations)'!B61*(ED9-ED10)/Inputs!B13/12","v":{"v":1108779.5975930218,"d":"$1,108,780"}},{"$f":"EE10+'(Other Computations)'!B61*(EE9-EE10)/Inputs!B13/12","v":{"v":1108322.5182557164,"d":"$1,108,323"}},{"$f":"EF10+'(Other Computations)'!B61*(EF9-EF10)/Inputs!B13/12","v":{"v":1107861.1305048226,"d":"$1,107,861"}},{"$f":"EG10+'(Other Computations)'!B61*(EG9-EG10)/Inputs!B13/12","v":{"v":1107469.0573257122,"d":"$1,107,469"}},{"$f":"EH10+'(Other Computations)'!B61*(EH9-EH10)/Inputs!B13/12","v":{"v":1106893.3274352138,"d":"$1,106,893"}},{"$f":"EI10+'(Other Computations)'!B61*(EI9-EI10)/Inputs!B13/12","v":{"v":1106346.9164756965,"d":"$1,106,347"}},{"$f":"EJ10+'(Other Computations)'!B61*(EJ9-EJ10)/Inputs!B13/12","v":{"v":1105833.916391422,"d":"$1,105,834"}},{"$f":"EK10+'(Other Computations)'!B61*(EK9-EK10)/Inputs!B13/12","v":{"v":1105369.7317082996,"d":"$1,105,370"}},{"$f":"EL10+'(Other Computations)'!B61*(EL9-EL10)/Inputs!B13/12","v":{"v":1104908.7782915474,"d":"$1,104,909"}},{"$f":"SUM(EB10:EM10)","v":{"v":13290953.237159276,"d":"$13,290,953"}}]
[{"$f":"Labels!B34","v":"Short Expected Demand"},{"$f":"'(Other Computations)'!B8+'(Other Computations)'!B61*0/Inputs!B14/12","v":{"v":1166666.6666666667,"d":"$1,166,667"}},{"$f":"B11+'(Other Computations)'!B61*(B9-B11)/Inputs!B14/12","v":{"v":1163292.663638942,"d":"$1,163,293"}},{"$f":"C11+'(Other Computations)'!B61*(C9-C11)/Inputs!B14/12","v":{"v":1160099.8301054535,"d":"$1,160,100"}},{"$f":"D11+'(Other Computations)'!B61*(D9-D11)/Inputs!B14/12","v":{"v":1157875.4617820682,"d":"$1,157,875"}},{"$f":"E11+'(Other Computations)'!B61*(E9-E11)/Inputs!B14/12","v":{"v":1154429.3359015982,"d":"$1,154,429"}},{"$f":"F11+'(Other Computations)'!B61*(F9-F11)/Inputs!B14/12","v":{"v":1151461.7199526655,"d":"$1,151,462"}},{"$f":"G11+'(Other Computations)'!B61*(G9-G11)/Inputs!B14/12","v":{"v":1148465.7944948778,"d":"$1,148,466"}},{"$f":"H11+'(Other Computations)'!B61*(H9-H11)/Inputs!B14/12","v":{"v":1145813.9169613149,"d":"$1,145,814"}},{"$f":"I11+'(Other Computations)'!B61*(I9-I11)/Inputs!B14/12","v":{"v":1143492.22763719,"d":"$1,143,492"}},{"$f":"J11+'(Other Computations)'!B61*(J9-J11)/Inputs!B14/12","v":{"v":1141759.90006052,"d":"$1,141,760"}},{"$f":"K11+'(Other Computations)'!B61*(K9-K11)/Inputs!B14/12","v":{"v":1138823.6525468112,"d":"$1,138,824"}},{"$f":"L11+'(Other Computations)'!B61*(L9-L11)/Inputs!B14/12","v":{"v":1136006.7123686608,"d":"$1,136,007"}},{"$f":"SUM(B11:M11)","v":{"v":13808187.88211677,"d":"$13,808,188"}},{"$f":"M11+'(Other Computations)'!B61*(M9-M11)/Inputs!B14/12","v":{"v":1133505.6579406017,"d":"$1,133,506"}},{"$f":"O11+'(Other Computations)'!B61*(O9-O11)/Inputs!B14/12","v":{"v":1130903.8564452222,"d":"$1,130,904"}},{"$f":"P11+'(Other Computations)'!B61*(P9-P11)/Inputs!B14/12","v":{"v":1128527.3279775146,"d":"$1,128,527"}},{"$f":"Q11+'(Other Computations)'!B61*(Q9-Q11)/Inputs!B14/12","v":{"v":1126007.6103168605,"d":"$1,126,008"}},{"$f":"R11+'(Other Computations)'!B61*(R9-R11)/Inputs!B14/12","v":{"v":1123728.7290438367,"d":"$1,123,729"}},{"$f":"S11+'(Other Computations)'!B61*(S9-S11)/Inputs!B14/12","v":{"v":1120801.140617662,"d":"$1,120,801"}},{"$f":"T11+'(Other Computations)'!B61*(T9-T11)/Inputs!B14/12","v":{"v":1119313.7100702275,"d":"$1,119,314"}},{"$f":"U11+'(Other Computations)'!B61*(U9-U11)/Inputs!B14/12","v":{"v":1117205.6865642061,"d":"$1,117,206"}},{"$f":"V11+'(Other Computations)'!B61*(V9-V11)/Inputs!B14/12","v":{"v":1114869.2084177919,"d":"$1,114,869"}},{"$f":"W11+'(Other Computations)'!B61*(W9-W11)/Inputs!B14/12","v":{"v":1112736.7666620822,"d":"$1,112,737"}},{"$f":"X11+'(Other Computations)'!B61*(X9-X11)/Inputs!B14/12","v":{"v":1110025.700076352,"d":"$1,110,026"}},{"$f":"Y11+'(Other Computations)'!B61*(Y9-Y11)/Inputs!B14/12","v":{"v":1108605.4880801684,"d":"$1,108,605"}},{"$f":"SUM(O11:Z11)","v":{"v":13446230.882212527,"d":"$13,446,231"}},{"$f":"Z11+'(Other Computations)'!B61*(Z9-Z11)/Inputs!B14/12","v":{"v":1106222.8672011483,"d":"$1,106,223"}},{"$f":"AB11+'(Other Computations)'!B61*(AB9-AB11)/Inputs!B14/12","v":{"v":1104292.1630463724,"d":"$1,104,292"}},{"$f":"AC11+'(Other Computations)'!B61*(AC9-AC11)/Inputs!B14/12","v":{"v":1102145.157117564,"d":"$1,102,145"}},{"$f":"AD11+'(Other Computations)'!B61*(AD9-AD11)/Inputs!B14/12","v":{"v":1100741.7913826832,"d":"$1,100,742"}},{"$f":"AE11+'(Other Computations)'!B61*(AE9-AE11)/Inputs!B14/12","v":{"v":1097833.3442173582,"d":"$1,097,833"}},{"$f":"AF11+'(Other Computations)'!B61*(AF9-AF11)/Inputs!B14/12","v":{"v":1095097.1001690412,"d":"$1,095,097"}},{"$f":"AG11+'(Other Computations)'!B61*(AG9-AG11)/Inputs!B14/12","v":{"v":1092827.8210051917,"d":"$1,092,828"}},{"$f":"AH11+'(Other Computations)'!B61*(AH9-AH11)/Inputs!B14/12","v":{"v":1091004.9191918334,"d":"$1,091,005"}},{"$f":"AI11+'(Other Computations)'!B61*(AI9-AI11)/Inputs!B14/12","v":{"v":1088533.7179322029,"d":"$1,088,534"}},{"$f":"AJ11+'(Other Computations)'!B61*(AJ9-AJ11)/Inputs!B14/12","v":{"v":1086670.341005609,"d":"$1,086,670"}},{"$f":"AK11+'(Other Computations)'!B61*(AK9-AK11)/Inputs!B14/12","v":{"v":1084227.5711357163,"d":"$1,084,228"}},{"$f":"AL11+'(Other Computations)'!B61*(AL9-AL11)/Inputs!B14/12","v":{"v":1082177.6968829976,"d":"$1,082,178"}},{"$f":"SUM(AB11:AM11)","v":{"v":13131774.490287717,"d":"$13,131,774"}},{"$f":"AM11+'(Other Computations)'!B61*(AM9-AM11)/Inputs!B14/12","v":{"v":1079836.086746669,"d":"$1,079,836"}},{"$f":"AO11+'(Other Computations)'!B61*(AO9-AO11)/Inputs!B14/12","v":{"v":1077962.7848175538,"d":"$1,077,963"}},{"$f":"AP11+'(Other Computations)'!B61*(AP9-AP11)/Inputs!B14/12","v":{"v":1076155.8137478682,"d":"$1,076,156"}},{"$f":"AQ11+'(Other Computations)'!B61*(AQ9-AQ11)/Inputs!B14/12","v":{"v":1074142.6611774461,"d":"$1,074,143"}},{"$f":"AR11+'(Other Computations)'!B61*(AR9-AR11)/Inputs!B14/12","v":{"v":1072540.355698056,"d":"$1,072,540"}},{"$f":"AS11+'(Other Computations)'!B61*(AS9-AS11)/Inputs!B14/12","v":{"v":1071033.4524231083,"d":"$1,071,033"}},{"$f":"AT11+'(Other Computations)'!B61*(AT9-AT11)/Inputs!B14/12","v":{"v":1069009.8950415554,"d":"$1,069,010"}},{"$f":"AU11+'(Other Computations)'!B61*(AU9-AU11)/Inputs!B14/12","v":{"v":1067419.1100287852,"d":"$1,067,419"}},{"$f":"AV11+'(Other Computations)'!B61*(AV9-AV11)/Inputs!B14/12","v":{"v":1065706.8280830241,"d":"$1,065,707"}},{"$f":"AW11+'(Other Computations)'!B61*(AW9-AW11)/Inputs!B14/12","v":{"v":1063857.122234204,"d":"$1,063,857"}},{"$f":"AX11+'(Other Computations)'!B61*(AX9-AX11)/Inputs!B14/12","v":{"v":1062033.2345937537,"d":"$1,062,033"}},{"$f":"AY11+'(Other Computations)'!B61*(AY9-AY11)/Inputs!B14/12","v":{"v":1060455.8941060754,"d":"$1,060,456"}},{"$f":"SUM(AO11:AZ11)","v":{"v":12840153.238698099,"d":"$12,840,153"}},{"$f":"AZ11+'(Other Computations)'!B61*(AZ9-AZ11)/Inputs!B14/12","v":{"v":1058675.0924202714,"d":"$1,058,675"}},{"$f":"BB11+'(Other Computations)'!B61*(BB9-BB11)/Inputs!B14/12","v":{"v":1056709.2099705767,"d":"$1,056,709"}},{"$f":"BC11+'(Other Computations)'!B61*(BC9-BC11)/Inputs!B14/12","v":{"v":1054491.8168008693,"d":"$1,054,492"}},{"$f":"BD11+'(Other Computations)'!B61*(BD9-BD11)/Inputs!B14/12","v":{"v":1052068.5349148642,"d":"$1,052,069"}},{"$f":"BE11+'(Other Computations)'!B61*(BE9-BE11)/Inputs!B14/12","v":{"v":1050690.7945835227,"d":"$1,050,691"}},{"$f":"BF11+'(Other Computations)'!B61*(BF9-BF11)/Inputs!B14/12","v":{"v":1048888.6527924777,"d":"$1,048,889"}},{"$f":"BG11+'(Other Computations)'!B61*(BG9-BG11)/Inputs!B14/12","v":{"v":1047442.3683391558,"d":"$1,047,442"}},{"$f":"BH11+'(Other Computations)'!B61*(BH9-BH11)/Inputs!B14/12","v":{"v":1045289.6045184133,"d":"$1,045,290"}},{"$f":"BI11+'(Other Computations)'!B61*(BI9-BI11)/Inputs!B14/12","v":{"v":1043900.9490595618,"d":"$1,043,901"}},{"$f":"BJ11+'(Other Computations)'!B61*(BJ9-BJ11)/Inputs!B14/12","v":{"v":1042931.0614696624,"d":"$1,042,931"}},{"$f":"BK11+'(Other Computations)'!B61*(BK9-BK11)/Inputs!B14/12","v":{"v":1041612.0981074456,"d":"$1,041,612"}},{"$f":"BL11+'(Other Computations)'!B61*(BL9-BL11)/Inputs!B14/12","v":{"v":1040675.6149241866,"d":"$1,040,676"}},{"$f":"SUM(BB11:BM11)","v":{"v":12583375.79790101,"d":"$12,583,376"}},{"$f":"BM11+'(Other Computations)'!B61*(BM9-BM11)/Inputs!B14/12","v":{"v":1039325.6720401181,"d":"$1,039,326"}},{"$f":"BO11+'(Other Computations)'!B61*(BO9-BO11)/Inputs!B14/12","v":{"v":1038384.1530877666,"d":"$1,038,384"}},{"$f":"BP11+'(Other Computations)'!B61*(BP9-BP11)/Inputs!B14/12","v":{"v":1037687.8298659847,"d":"$1,037,688"}},{"$f":"BQ11+'(Other Computations)'!B61*(BQ9-BQ11)/Inputs!B14/12","v":{"v":1036964.5918286088,"d":"$1,036,965"}},{"$f":"BR11+'(Other Computations)'!B61*(BR9-BR11)/Inputs!B14/12","v":{"v":1034992.707806442,"d":"$1,034,993"}},{"$f":"BS11+'(Other Computations)'!B61*(BS9-BS11)/Inputs!B14/12","v":{"v":1033559.42134987,"d":"$1,033,559"}},{"$f":"BT11+'(Other Computations)'!B61*(BT9-BT11)/Inputs!B14/12","v":{"v":1032935.4684062483,"d":"$1,032,935"}},{"$f":"BU11+'(Other Computations)'!B61*(BU9-BU11)/Inputs!B14/12","v":{"v":1031040.9028477371,"d":"$1,031,041"}},{"$f":"BV11+'(Other Computations)'!B61*(BV9-BV11)/Inputs!B14/12","v":{"v":1029551.7699322529,"d":"$1,029,552"}},{"$f":"BW11+'(Other Computations)'!B61*(BW9-BW11)/Inputs!B14/12","v":{"v":1028244.5709940878,"d":"$1,028,245"}},{"$f":"BX11+'(Other Computations)'!B61*(BX9-BX11)/Inputs!B14/12","v":{"v":1027491.4005495297,"d":"$1,027,491"}},{"$f":"BY11+'(Other Computations)'!B61*(BY9-BY11)/Inputs!B14/12","v":{"v":1026794.8873119178,"d":"$1,026,795"}},{"$f":"SUM(BO11:BZ11)","v":{"v":12396973.376020564,"d":"$12,396,973"}},{"$f":"BZ11+'(Other Computations)'!B61*(BZ9-BZ11)/Inputs!B14/12","v":{"v":1025924.0934880646,"d":"$1,025,924"}},{"$f":"CB11+'(Other Computations)'!B61*(CB9-CB11)/Inputs!B14/12","v":{"v":1024499.0986681766,"d":"$1,024,499"}},{"$f":"CC11+'(Other Computations)'!B61*(CC9-CC11)/Inputs!B14/12","v":{"v":1023188.8907532236,"d":"$1,023,189"}},{"$f":"CD11+'(Other Computations)'!B61*(CD9-CD11)/Inputs!B14/12","v":{"v":1021802.9320913468,"d":"$1,021,803"}},{"$f":"CE11+'(Other Computations)'!B61*(CE9-CE11)/Inputs!B14/12","v":{"v":1020213.6811640488,"d":"$1,020,214"}},{"$f":"CF11+'(Other Computations)'!B61*(CF9-CF11)/Inputs!B14/12","v":{"v":1019003.8997489484,"d":"$1,019,004"}},{"$f":"CG11+'(Other Computations)'!B61*(CG9-CG11)/Inputs!B14/12","v":{"v":1018535.2359759855,"d":"$1,018,535"}},{"$f":"CH11+'(Other Computations)'!B61*(CH9-CH11)/Inputs!B14/12","v":{"v":1016933.5424310776,"d":"$1,016,934"}},{"$f":"CI11+'(Other Computations)'!B61*(CI9-CI11)/Inputs!B14/12","v":{"v":1015259.4689645439,"d":"$1,015,259"}},{"$f":"CJ11+'(Other Computations)'!B61*(CJ9-CJ11)/Inputs!B14/12","v":{"v":1014157.1999000927,"d":"$1,014,157"}},{"$f":"CK11+'(Other Computations)'!B61*(CK9-CK11)/Inputs!B14/12","v":{"v":1013676.9032138758,"d":"$1,013,677"}},{"$f":"CL11+'(Other Computations)'!B61*(CL9-CL11)/Inputs!B14/12","v":{"v":1011993.6142080139,"d":"$1,011,994"}},{"$f":"SUM(CB11:CM11)","v":{"v":12225188.560607398,"d":"$12,225,189"}},{"$f":"CM11+'(Other Computations)'!B61*(CM9-CM11)/Inputs!B14/12","v":{"v":1011007.4465234277,"d":"$1,011,007"}},{"$f":"CO11+'(Other Computations)'!B61*(CO9-CO11)/Inputs!B14/12","v":{"v":1009983.9137128796,"d":"$1,009,984"}},{"$f":"CP11+'(Other Computations)'!B61*(CP9-CP11)/Inputs!B14/12","v":{"v":1008325.321031055,"d":"$1,008,325"}},{"$f":"CQ11+'(Other Computations)'!B61*(CQ9-CQ11)/Inputs!B14/12","v":{"v":1007784.7774306271,"d":"$1,007,785"}},{"$f":"CR11+'(Other Computations)'!B61*(CR9-CR11)/Inputs!B14/12","v":{"v":1006235.5305226556,"d":"$1,006,236"}},{"$f":"CS11+'(Other Computations)'!B61*(CS9-CS11)/Inputs!B14/12","v":{"v":1004836.356129043,"d":"$1,004,836"}},{"$f":"CT11+'(Other Computations)'!B61*(CT9-CT11)/Inputs!B14/12","v":{"v":1003907.3059684252,"d":"$1,003,907"}},{"$f":"CU11+'(Other Computations)'!B61*(CU9-CU11)/Inputs!B14/12","v":{"v":1002853.0948452567,"d":"$1,002,853"}},{"$f":"CV11+'(Other Computations)'!B61*(CV9-CV11)/Inputs!B14/12","v":{"v":1001573.9641817161,"d":"$1,001,574"}},{"$f":"CW11+'(Other Computations)'!B61*(CW9-CW11)/Inputs!B14/12","v":{"v":1000863.0204226869,"d":"$1,000,863"}},{"$f":"CX11+'(Other Computations)'!B61*(CX9-CX11)/Inputs!B14/12","v":{"v":999519.016134771,"d":"$999,519"}},{"$f":"CY11+'(Other Computations)'!B61*(CY9-CY11)/Inputs!B14/12","v":{"v":998360.3578523392,"d":"$998,360"}},{"$f":"SUM(CO11:CZ11)","v":{"v":12055250.104754884,"d":"$12,055,250"}},{"$f":"CZ11+'(Other Computations)'!B61*(CZ9-CZ11)/Inputs!B14/12","v":{"v":996544.8517133545,"d":"$996,545"}},{"$f":"DB11+'(Other Computations)'!B61*(DB9-DB11)/Inputs!B14/12","v":{"v":995714.4923487371,"d":"$995,714"}},{"$f":"DC11+'(Other Computations)'!B61*(DC9-DC11)/Inputs!B14/12","v":{"v":994649.295291726,"d":"$994,649"}},{"$f":"DD11+'(Other Computations)'!B61*(DD9-DD11)/Inputs!B14/12","v":{"v":993709.4924582578,"d":"$993,709"}},{"$f":"DE11+'(Other Computations)'!B61*(DE9-DE11)/Inputs!B14/12","v":{"v":992331.4473612742,"d":"$992,331"}},{"$f":"DF11+'(Other Computations)'!B61*(DF9-DF11)/Inputs!B14/12","v":{"v":990864.1472727319,"d":"$990,864"}},{"$f":"DG11+'(Other Computations)'!B61*(DG9-DG11)/Inputs!B14/12","v":{"v":990231.7765370862,"d":"$990,232"}},{"$f":"DH11+'(Other Computations)'!B61*(DH9-DH11)/Inputs!B14/12","v":{"v":989940.948973428,"d":"$989,941"}},{"$f":"DI11+'(Other Computations)'!B61*(DI9-DI11)/Inputs!B14/12","v":{"v":988919.2320626283,"d":"$988,919"}},{"$f":"DJ11+'(Other Computations)'!B61*(DJ9-DJ11)/Inputs!B14/12","v":{"v":987471.3341249495,"d":"$987,471"}},{"$f":"DK11+'(Other Computations)'!B61*(DK9-DK11)/Inputs!B14/12","v":{"v":986356.1594250319,"d":"$986,356"}},{"$f":"DL11+'(Other Computations)'!B61*(DL9-DL11)/Inputs!B14/12","v":{"v":984864.7542326303,"d":"$984,865"}},{"$f":"SUM(DB11:DM11)","v":{"v":11891597.931801833,"d":"$11,891,598"}},{"$f":"DM11+'(Other Computations)'!B61*(DM9-DM11)/Inputs!B14/12","v":{"v":983874.4867698427,"d":"$983,874"}},{"$f":"DO11+'(Other Computations)'!B61*(DO9-DO11)/Inputs!B14/12","v":{"v":982640.2033923998,"d":"$982,640"}},{"$f":"DP11+'(Other Computations)'!B61*(DP9-DP11)/Inputs!B14/12","v":{"v":981629.445645366,"d":"$981,629"}},{"$f":"DQ11+'(Other Computations)'!B61*(DQ9-DQ11)/Inputs!B14/12","v":{"v":981329.9829253319,"d":"$981,330"}},{"$f":"DR11+'(Other Computations)'!B61*(DR9-DR11)/Inputs!B14/12","v":{"v":980675.1373219065,"d":"$980,675"}},{"$f":"DS11+'(Other Computations)'!B61*(DS9-DS11)/Inputs!B14/12","v":{"v":979936.3744159745,"d":"$979,936"}},{"$f":"DT11+'(Other Computations)'!B61*(DT9-DT11)/Inputs!B14/12","v":{"v":979440.4890882191,"d":"$979,440"}},{"$f":"DU11+'(Other Computations)'!B61*(DU9-DU11)/Inputs!B14/12","v":{"v":978121.0755657392,"d":"$978,121"}},{"$f":"DV11+'(Other Computations)'!B61*(DV9-DV11)/Inputs!B14/12","v":{"v":977221.816142302,"d":"$977,222"}},{"$f":"DW11+'(Other Computations)'!B61*(DW9-DW11)/Inputs!B14/12","v":{"v":976641.7517300879,"d":"$976,642"}},{"$f":"DX11+'(Other Computations)'!B61*(DX9-DX11)/Inputs!B14/12","v":{"v":975457.7072696192,"d":"$975,458"}},{"$f":"DY11+'(Other Computations)'!B61*(DY9-DY11)/Inputs!B14/12","v":{"v":974511.2785133512,"d":"$974,511"}},{"$f":"SUM(DO11:DZ11)","v":{"v":11751479.74878014,"d":"$11,751,480"}},{"$f":"DZ11+'(Other Computations)'!B61*(DZ9-DZ11)/Inputs!B14/12","v":{"v":973169.5612370722,"d":"$973,170"}},{"$f":"EB11+'(Other Computations)'!B61*(EB9-EB11)/Inputs!B14/12","v":{"v":972219.8009311786,"d":"$972,220"}},{"$f":"EC11+'(Other Computations)'!B61*(EC9-EC11)/Inputs!B14/12","v":{"v":971828.2158300073,"d":"$971,828"}},{"$f":"ED11+'(Other Computations)'!B61*(ED9-ED11)/Inputs!B14/12","v":{"v":970563.5102497394,"d":"$970,564"}},{"$f":"EE11+'(Other Computations)'!B61*(EE9-EE11)/Inputs!B14/12","v":{"v":969740.7021056749,"d":"$969,741"}},{"$f":"EF11+'(Other Computations)'!B61*(EF9-EF11)/Inputs!B14/12","v":{"v":968897.1230468403,"d":"$968,897"}},{"$f":"EG11+'(Other Computations)'!B61*(EG9-EG11)/Inputs!B14/12","v":{"v":968474.7396313163,"d":"$968,475"}},{"$f":"EH11+'(Other Computations)'!B61*(EH9-EH11)/Inputs!B14/12","v":{"v":966950.83692297,"d":"$966,951"}},{"$f":"EI11+'(Other Computations)'!B61*(EI9-EI11)/Inputs!B14/12","v":{"v":965616.0168674248,"d":"$965,616"}},{"$f":"EJ11+'(Other Computations)'!B61*(EJ9-EJ11)/Inputs!B14/12","v":{"v":964492.6121896708,"d":"$964,493"}},{"$f":"EK11+'(Other Computations)'!B61*(EK9-EK11)/Inputs!B14/12","v":{"v":963670.5777604047,"d":"$963,671"}},{"$f":"EL11+'(Other Computations)'!B61*(EL9-EL11)/Inputs!B14/12","v":{"v":962872.9010647241,"d":"$962,873"}},{"$f":"SUM(EB11:EM11)","v":{"v":11618496.597837023,"d":"$11,618,497"}}]
[{"$f":"Labels!B24","v":"Consumption"},{"$f":"Inputs!B34*'(Other Computations)'!B54","v":{"v":728000,"d":"$728,000"}},{"$f":"Inputs!B34*'(Other Computations)'!C54","v":{"v":727775.7836781372,"d":"$727,776"}},{"$f":"Inputs!B34*'(Other Computations)'!D54","v":{"v":727522.2835396044,"d":"$727,522"}},{"$f":"Inputs!B34*'(Other Computations)'!E54","v":{"v":727313.2519971956,"d":"$727,313"}},{"$f":"Inputs!B34*'(Other Computations)'!F54","v":{"v":727110.7606972151,"d":"$727,111"}},{"$f":"Inputs!B34*'(Other Computations)'!G54","v":{"v":726865.9465656712,"d":"$726,866"}},{"$f":"Inputs!B34*'(Other Computations)'!H54","v":{"v":726591.5572136581,"d":"$726,592"}},{"$f":"Inputs!B34*'(Other Computations)'!I54","v":{"v":726448.7757151786,"d":"$726,449"}},{"$f":"Inputs!B34*'(Other Computations)'!J54","v":{"v":726132.8316505802,"d":"$726,133"}},{"$f":"Inputs!B34*'(Other Computations)'!K54","v":{"v":725884.4361384497,"d":"$725,884"}},{"$f":"Inputs!B34*'(Other Computations)'!L54","v":{"v":725654.935419429,"d":"$725,655"}},{"$f":"Inputs!B34*'(Other Computations)'!M54","v":{"v":725510.2671530023,"d":"$725,510"}},{"$f":"SUM(B12:M12)","v":{"v":8720810.829768121,"d":"$8,720,811"}},{"$f":"Inputs!B34*'(Other Computations)'!O54","v":{"v":725273.2713903241,"d":"$725,273"}},{"$f":"Inputs!B34*'(Other Computations)'!P54","v":{"v":725014.5420296092,"d":"$725,015"}},{"$f":"Inputs!B34*'(Other Computations)'!Q54","v":{"v":724769.2934872233,"d":"$724,769"}},{"$f":"Inputs!B34*'(Other Computations)'!R54","v":{"v":724540.4631268864,"d":"$724,540"}},{"$f":"Inputs!B34*'(Other Computations)'!S54","v":{"v":724234.7077255318,"d":"$724,235"}},{"$f":"Inputs!B34*'(Other Computations)'!T54","v":{"v":723954.9712307001,"d":"$723,955"}},{"$f":"Inputs!B34*'(Other Computations)'!U54","v":{"v":723773.721248783,"d":"$723,774"}},{"$f":"Inputs!B34*'(Other Computations)'!V54","v":{"v":723568.9818810954,"d":"$723,569"}},{"$f":"Inputs!B34*'(Other Computations)'!W54","v":{"v":723277.4632569443,"d":"$723,277"}},{"$f":"Inputs!B34*'(Other Computations)'!X54","v":{"v":723028.9958340293,"d":"$723,029"}},{"$f":"Inputs!B34*'(Other Computations)'!Y54","v":{"v":722778.1585614295,"d":"$722,778"}},{"$f":"Inputs!B34*'(Other Computations)'!Z54","v":{"v":722535.0145380012,"d":"$722,535"}},{"$f":"SUM(O12:Z12)","v":{"v":8686749.584310558,"d":"$8,686,750"}},{"$f":"Inputs!B34*'(Other Computations)'!AB54","v":{"v":722237.7034486723,"d":"$722,238"}},{"$f":"Inputs!B34*'(Other Computations)'!AC54","v":{"v":721911.6688491916,"d":"$721,912"}},{"$f":"Inputs!B34*'(Other Computations)'!AD54","v":{"v":721679.3656691903,"d":"$721,679"}},{"$f":"Inputs!B34*'(Other Computations)'!AE54","v":{"v":721471.6865133768,"d":"$721,472"}},{"$f":"Inputs!B34*'(Other Computations)'!AF54","v":{"v":721154.5143806624,"d":"$721,155"}},{"$f":"Inputs!B34*'(Other Computations)'!AG54","v":{"v":720835.7419384299,"d":"$720,836"}},{"$f":"Inputs!B34*'(Other Computations)'!AH54","v":{"v":720544.8160432591,"d":"$720,545"}},{"$f":"Inputs!B34*'(Other Computations)'!AI54","v":{"v":720326.2840154568,"d":"$720,326"}},{"$f":"Inputs!B34*'(Other Computations)'!AJ54","v":{"v":720050.8145740939,"d":"$720,051"}},{"$f":"Inputs!B34*'(Other Computations)'!AK54","v":{"v":719808.2874143149,"d":"$719,808"}},{"$f":"Inputs!B34*'(Other Computations)'!AL54","v":{"v":719588.0491871424,"d":"$719,588"}},{"$f":"Inputs!B34*'(Other Computations)'!AM54","v":{"v":719353.4512476393,"d":"$719,353"}},{"$f":"SUM(AB12:AM12)","v":{"v":8648962.38328143,"d":"$8,648,962"}},{"$f":"Inputs!B34*'(Other Computations)'!AO54","v":{"v":719052.2433930209,"d":"$719,052"}},{"$f":"Inputs!B34*'(Other Computations)'!AP54","v":{"v":718767.5136345782,"d":"$718,768"}},{"$f":"Inputs!B34*'(Other Computations)'!AQ54","v":{"v":718467.6014860338,"d":"$718,468"}},{"$f":"Inputs!B34*'(Other Computations)'!AR54","v":{"v":718142.5028622458,"d":"$718,143"}},{"$f":"Inputs!B34*'(Other Computations)'!AS54","v":{"v":717942.6419597705,"d":"$717,943"}},{"$f":"Inputs!B34*'(Other Computations)'!AT54","v":{"v":717624.5566595201,"d":"$717,625"}},{"$f":"Inputs!B34*'(Other Computations)'!AU54","v":{"v":717353.7769667625,"d":"$717,354"}},{"$f":"Inputs!B34*'(Other Computations)'!AV54","v":{"v":717099.2306798237,"d":"$717,099"}},{"$f":"Inputs!B34*'(Other Computations)'!AW54","v":{"v":716828.7312866184,"d":"$716,829"}},{"$f":"Inputs!B34*'(Other Computations)'!AX54","v":{"v":716478.3132979169,"d":"$716,478"}},{"$f":"Inputs!B34*'(Other Computations)'!AY54","v":{"v":716168.6416871924,"d":"$716,169"}},{"$f":"Inputs!B34*'(Other Computations)'!AZ54","v":{"v":715865.2366994785,"d":"$715,865"}},{"$f":"SUM(AO12:AZ12)","v":{"v":8609790.990612961,"d":"$8,609,791"}},{"$f":"Inputs!B34*'(Other Computations)'!BB54","v":{"v":715616.4277630189,"d":"$715,616"}},{"$f":"Inputs!B34*'(Other Computations)'!BC54","v":{"v":715259.9998009886,"d":"$715,260"}},{"$f":"Inputs!B34*'(Other Computations)'!BD54","v":{"v":714988.5702281893,"d":"$714,989"}},{"$f":"Inputs!B34*'(Other Computations)'!BE54","v":{"v":714778.2091492544,"d":"$714,778"}},{"$f":"Inputs!B34*'(Other Computations)'!BF54","v":{"v":714537.1261939805,"d":"$714,537"}},{"$f":"Inputs!B34*'(Other Computations)'!BG54","v":{"v":714223.5570364253,"d":"$714,224"}},{"$f":"Inputs!B34*'(Other Computations)'!BH54","v":{"v":713855.2528831905,"d":"$713,855"}},{"$f":"Inputs!B34*'(Other Computations)'!BI54","v":{"v":713640.2697184411,"d":"$713,640"}},{"$f":"Inputs!B34*'(Other Computations)'!BJ54","v":{"v":713283.2022774842,"d":"$713,283"}},{"$f":"Inputs!B34*'(Other Computations)'!BK54","v":{"v":712976.5768626172,"d":"$712,977"}},{"$f":"Inputs!B34*'(Other Computations)'!BL54","v":{"v":712734.3615025782,"d":"$712,734"}},{"$f":"Inputs!B34*'(Other Computations)'!BM54","v":{"v":712372.9071391581,"d":"$712,373"}},{"$f":"SUM(BB12:BM12)","v":{"v":8568266.460555326,"d":"$8,568,266"}},{"$f":"Inputs!B34*'(Other Computations)'!BO54","v":{"v":712089.4136992862,"d":"$712,089"}},{"$f":"Inputs!B34*'(Other Computations)'!BP54","v":{"v":711718.6115029266,"d":"$711,719"}},{"$f":"Inputs!B34*'(Other Computations)'!BQ54","v":{"v":711414.773320616,"d":"$711,415"}},{"$f":"Inputs!B34*'(Other Computations)'!BR54","v":{"v":711060.4957785218,"d":"$711,060"}},{"$f":"Inputs!B34*'(Other Computations)'!BS54","v":{"v":710814.2082943127,"d":"$710,814"}},{"$f":"Inputs!B34*'(Other Computations)'!BT54","v":{"v":710475.8422054242,"d":"$710,476"}},{"$f":"Inputs!B34*'(Other Computations)'!BU54","v":{"v":710200.1679147152,"d":"$710,200"}},{"$f":"Inputs!B34*'(Other Computations)'!BV54","v":{"v":709947.85329565,"d":"$709,948"}},{"$f":"Inputs!B34*'(Other Computations)'!BW54","v":{"v":709587.1638123324,"d":"$709,587"}},{"$f":"Inputs!B34*'(Other Computations)'!BX54","v":{"v":709272.6207194236,"d":"$709,273"}},{"$f":"Inputs!B34*'(Other Computations)'!BY54","v":{"v":708870.8542237105,"d":"$708,871"}},{"$f":"Inputs!B34*'(Other Computations)'!BZ54","v":{"v":708587.2917362748,"d":"$708,587"}},{"$f":"SUM(BO12:BZ12)","v":{"v":8524039.296503194,"d":"$8,524,039"}},{"$f":"Inputs!B34*'(Other Computations)'!CB54","v":{"v":708277.6312128147,"d":"$708,278"}},{"$f":"Inputs!B34*'(Other Computations)'!CC54","v":{"v":708011.9256694972,"d":"$708,012"}},{"$f":"Inputs!B34*'(Other Computations)'!CD54","v":{"v":707674.9604986854,"d":"$707,675"}},{"$f":"Inputs!B34*'(Other Computations)'!CE54","v":{"v":707275.2305290776,"d":"$707,275"}},{"$f":"Inputs!B34*'(Other Computations)'!CF54","v":{"v":706908.0065299256,"d":"$706,908"}},{"$f":"Inputs!B34*'(Other Computations)'!CG54","v":{"v":706565.0575938972,"d":"$706,565"}},{"$f":"Inputs!B34*'(Other Computations)'!CH54","v":{"v":706306.6547914449,"d":"$706,307"}},{"$f":"Inputs!B34*'(Other Computations)'!CI54","v":{"v":706066.794712609,"d":"$706,067"}},{"$f":"Inputs!B34*'(Other Computations)'!CJ54","v":{"v":705778.2672677266,"d":"$705,778"}},{"$f":"Inputs!B34*'(Other Computations)'!CK54","v":{"v":705509.6630552469,"d":"$705,510"}},{"$f":"Inputs!B34*'(Other Computations)'!CL54","v":{"v":705178.0535325014,"d":"$705,178"}},{"$f":"Inputs!B34*'(Other Computations)'!CM54","v":{"v":704817.2593337963,"d":"$704,817"}},{"$f":"SUM(CB12:CM12)","v":{"v":8478369.504727222,"d":"$8,478,370"}},{"$f":"Inputs!B34*'(Other Computations)'!CO54","v":{"v":704467.7155397575,"d":"$704,468"}},{"$f":"Inputs!B34*'(Other Computations)'!CP54","v":{"v":704104.248668179,"d":"$704,104"}},{"$f":"Inputs!B34*'(Other Computations)'!CQ54","v":{"v":703751.3686890258,"d":"$703,751"}},{"$f":"Inputs!B34*'(Other Computations)'!CR54","v":{"v":703476.110092663,"d":"$703,476"}},{"$f":"Inputs!B34*'(Other Computations)'!CS54","v":{"v":703161.5672604276,"d":"$703,162"}},{"$f":"Inputs!B34*'(Other Computations)'!CT54","v":{"v":702806.6365443082,"d":"$702,807"}},{"$f":"Inputs!B34*'(Other Computations)'!CU54","v":{"v":702410.9542786306,"d":"$702,411"}},{"$f":"Inputs!B34*'(Other Computations)'!CV54","v":{"v":702091.33045076,"d":"$702,091"}},{"$f":"Inputs!B34*'(Other Computations)'!CW54","v":{"v":701725.9104509876,"d":"$701,726"}},{"$f":"Inputs!B34*'(Other Computations)'!CX54","v":{"v":701399.6960715848,"d":"$701,400"}},{"$f":"Inputs!B34*'(Other Computations)'!CY54","v":{"v":701001.4997727644,"d":"$701,001"}},{"$f":"Inputs!B34*'(Other Computations)'!CZ54","v":{"v":700668.3819370983,"d":"$700,668"}},{"$f":"SUM(CO12:CZ12)","v":{"v":8431065.419756185,"d":"$8,431,065"}},{"$f":"Inputs!B34*'(Other Computations)'!DB54","v":{"v":700361.9245701568,"d":"$700,362"}},{"$f":"Inputs!B34*'(Other Computations)'!DC54","v":{"v":700037.9177142624,"d":"$700,038"}},{"$f":"Inputs!B34*'(Other Computations)'!DD54","v":{"v":699676.9873325292,"d":"$699,677"}},{"$f":"Inputs!B34*'(Other Computations)'!DE54","v":{"v":699280.7490770248,"d":"$699,281"}},{"$f":"Inputs!B34*'(Other Computations)'!DF54","v":{"v":698970.6104739323,"d":"$698,971"}},{"$f":"Inputs!B34*'(Other Computations)'!DG54","v":{"v":698710.6378292728,"d":"$698,711"}},{"$f":"Inputs!B34*'(Other Computations)'!DH54","v":{"v":698362.4575697195,"d":"$698,362"}},{"$f":"Inputs!B34*'(Other Computations)'!DI54","v":{"v":698021.1135655063,"d":"$698,021"}},{"$f":"Inputs!B34*'(Other Computations)'!DJ54","v":{"v":697686.3272094321,"d":"$697,686"}},{"$f":"Inputs!B34*'(Other Computations)'!DK54","v":{"v":697313.8846889645,"d":"$697,314"}},{"$f":"Inputs!B34*'(Other Computations)'!DL54","v":{"v":696972.5432185292,"d":"$696,973"}},{"$f":"Inputs!B34*'(Other Computations)'!DM54","v":{"v":696542.2095845257,"d":"$696,542"}},{"$f":"SUM(DB12:DM12)","v":{"v":8381937.362833855,"d":"$8,381,937"}},{"$f":"Inputs!B34*'(Other Computations)'!DO54","v":{"v":696208.6803892207,"d":"$696,209"}},{"$f":"Inputs!B34*'(Other Computations)'!DP54","v":{"v":695952.7852564865,"d":"$695,953"}},{"$f":"Inputs!B34*'(Other Computations)'!DQ54","v":{"v":695587.0063573896,"d":"$695,587"}},{"$f":"Inputs!B34*'(Other Computations)'!DR54","v":{"v":695172.2958939831,"d":"$695,172"}},{"$f":"Inputs!B34*'(Other Computations)'!DS54","v":{"v":694791.8549892264,"d":"$694,792"}},{"$f":"Inputs!B34*'(Other Computations)'!DT54","v":{"v":694396.6378457966,"d":"$694,397"}},{"$f":"Inputs!B34*'(Other Computations)'!DU54","v":{"v":694082.5126432177,"d":"$694,083"}},{"$f":"Inputs!B34*'(Other Computations)'!DV54","v":{"v":693751.017035845,"d":"$693,751"}},{"$f":"Inputs!B34*'(Other Computations)'!DW54","v":{"v":693399.9998566754,"d":"$693,400"}},{"$f":"Inputs!B34*'(Other Computations)'!DX54","v":{"v":693076.544485099,"d":"$693,077"}},{"$f":"Inputs!B34*'(Other Computations)'!DY54","v":{"v":692708.4408221601,"d":"$692,708"}},{"$f":"Inputs!B34*'(Other Computations)'!DZ54","v":{"v":692287.2094345147,"d":"$692,287"}},{"$f":"SUM(DO12:DZ12)","v":{"v":8331414.985009613,"d":"$8,331,415"}},{"$f":"Inputs!B34*'(Other Computations)'!EB54","v":{"v":691924.4363169995,"d":"$691,924"}},{"$f":"Inputs!B34*'(Other Computations)'!EC54","v":{"v":691575.7747193443,"d":"$691,576"}},{"$f":"Inputs!B34*'(Other Computations)'!ED54","v":{"v":691306.7492090405,"d":"$691,307"}},{"$f":"Inputs!B34*'(Other Computations)'!EE54","v":{"v":690929.2249232896,"d":"$690,929"}},{"$f":"Inputs!B34*'(Other Computations)'!EF54","v":{"v":690513.4083351749,"d":"$690,513"}},{"$f":"Inputs!B34*'(Other Computations)'!EG54","v":{"v":690154.9894658619,"d":"$690,155"}},{"$f":"Inputs!B34*'(Other Computations)'!EH54","v":{"v":689787.0235078719,"d":"$689,787"}},{"$f":"Inputs!B34*'(Other Computations)'!EI54","v":{"v":689463.1706103801,"d":"$689,463"}},{"$f":"Inputs!B34*'(Other Computations)'!EJ54","v":{"v":689027.9979654647,"d":"$689,028"}},{"$f":"Inputs!B34*'(Other Computations)'!EK54","v":{"v":688726.637745186,"d":"$688,727"}},{"$f":"Inputs!B34*'(Other Computations)'!EL54","v":{"v":688331.9400272627,"d":"$688,332"}},{"$f":"Inputs!B34*'(Other Computations)'!EM54","v":{"v":687981.1350463713,"d":"$687,981"}},{"$f":"SUM(EB12:EM12)","v":{"v":8279722.487872248,"d":"$8,279,722"}}]
[{"$f":"Labels!B74","v":"Aggregate Demand Shock"},{"$f":"NORMINV(RAND()*(1-2*Inputs!B58)+Inputs!B58,0,'(Other Computations)'!B208)","v":{"v":-39650.2324124195,"d":"($39,650)"}},{"$f":"NORMINV(RAND()*(1-2*Inputs!B58)+Inputs!B58,0,'(Other Computations)'!B208)","v":{"v":-29291.953065917616,"d":"($29,292)"}},{"$f":"NORMINV(RAND()*(1-2*Inputs!B58)+Inputs!B58,0,'(Other Computations)'!B208)","v":{"v":37929.647418563385,"d":"$37,930"}},{"$f":"NORMINV(RAND()*(1-2*Inputs!B58)+Inputs!B58,0,'(Other Computations)'!B208)","v":{"v":-51758.09587141775,"d":"($51,758)"}},{"$f":"NORMINV(RAND()*(1-2*Inputs!B58)+Inputs!B58,0,'(Other Computations)'!B208)","v":{"v":-20088.919316370753,"d":"($20,089)"}},{"$f":"NORMINV(RAND()*(1-2*Inputs!B58)+Inputs!B58,0,'(Other Computations)'!B208)","v":{"v":-24461.142678906395,"d":"($24,461)"}},{"$f":"NORMINV(RAND()*(1-2*Inputs!B58)+Inputs!B58,0,'(Other Computations)'!B208)","v":{"v":-2021.6945032715391,"d":"($2,022)"}},{"$f":"NORMINV(RAND()*(1-2*Inputs!B58)+Inputs!B58,0,'(Other Computations)'!B208)","v":{"v":19581.429177416983,"d":"$19,581"}},{"$f":"NORMINV(RAND()*(1-2*Inputs!B58)+Inputs!B58,0,'(Other Computations)'!B208)","v":{"v":60300.34428721426,"d":"$60,300"}},{"$f":"NORMINV(RAND()*(1-2*Inputs!B58)+Inputs!B58,0,'(Other Computations)'!B208)","v":{"v":-27658.347985496253,"d":"($27,658)"}},{"$f":"NORMINV(RAND()*(1-2*Inputs!B58)+Inputs!B58,0,'(Other Computations)'!B208)","v":{"v":-21402.970121025435,"d":"($21,403)"}},{"$f":"NORMINV(RAND()*(1-2*Inputs!B58)+Inputs!B58,0,'(Other Computations)'!B208)","v":{"v":-979.9906312181542,"d":"($980)"}},{"$f":"SUM(B13:M13)","v":{"v":-99501.92570284876,"d":"($99,502)"}},{"$f":"NORMINV(RAND()*(1-2*Inputs!B58)+Inputs!B58,0,'(Other Computations)'!B208)","v":{"v":-10192.535069716321,"d":"($10,193)"}},{"$f":"NORMINV(RAND()*(1-2*Inputs!B58)+Inputs!B58,0,'(Other Computations)'!B208)","v":{"v":4001.15825170857,"d":"$4,001"}},{"$f":"NORMINV(RAND()*(1-2*Inputs!B58)+Inputs!B58,0,'(Other Computations)'!B208)","v":{"v":-8156.062361187418,"d":"($8,156)"}},{"$f":"NORMINV(RAND()*(1-2*Inputs!B58)+Inputs!B58,0,'(Other Computations)'!B208)","v":{"v":7194.84808841105,"d":"$7,195"}},{"$f":"NORMINV(RAND()*(1-2*Inputs!B58)+Inputs!B58,0,'(Other Computations)'!B208)","v":{"v":-41218.952847159744,"d":"($41,219)"}},{"$f":"NORMINV(RAND()*(1-2*Inputs!B58)+Inputs!B58,0,'(Other Computations)'!B208)","v":{"v":60178.488554178955,"d":"$60,178"}},{"$f":"NORMINV(RAND()*(1-2*Inputs!B58)+Inputs!B58,0,'(Other Computations)'!B208)","v":{"v":14342.461577780192,"d":"$14,342"}},{"$f":"NORMINV(RAND()*(1-2*Inputs!B58)+Inputs!B58,0,'(Other Computations)'!B208)","v":{"v":-3770.6396433822897,"d":"($3,771)"}},{"$f":"NORMINV(RAND()*(1-2*Inputs!B58)+Inputs!B58,0,'(Other Computations)'!B208)","v":{"v":9143.536529057712,"d":"$9,144"}},{"$f":"NORMINV(RAND()*(1-2*Inputs!B58)+Inputs!B58,0,'(Other Computations)'!B208)","v":{"v":-34162.715981189365,"d":"($34,163)"}},{"$f":"NORMINV(RAND()*(1-2*Inputs!B58)+Inputs!B58,0,'(Other Computations)'!B208)","v":{"v":56635.79105968711,"d":"$56,636"}},{"$f":"NORMINV(RAND()*(1-2*Inputs!B58)+Inputs!B58,0,'(Other Computations)'!B208)","v":{"v":-13697.445848711965,"d":"($13,697)"}},{"$f":"SUM(O13:Z13)","v":{"v":40297.93230947649,"d":"$40,298"}},{"$f":"NORMINV(RAND()*(1-2*Inputs!B58)+Inputs!B58,0,'(Other Computations)'!B208)","v":{"v":17025.79277879392,"d":"$17,026"}},{"$f":"NORMINV(RAND()*(1-2*Inputs!B58)+Inputs!B58,0,'(Other Computations)'!B208)","v":{"v":53.56278618977655,"d":"$54"}},{"$f":"NORMINV(RAND()*(1-2*Inputs!B58)+Inputs!B58,0,'(Other Computations)'!B208)","v":{"v":51916.47256778126,"d":"$51,916"}},{"$f":"NORMINV(RAND()*(1-2*Inputs!B58)+Inputs!B58,0,'(Other Computations)'!B208)","v":{"v":-57513.0075059587,"d":"($57,513)"}},{"$f":"NORMINV(RAND()*(1-2*Inputs!B58)+Inputs!B58,0,'(Other Computations)'!B208)","v":{"v":-47366.003512056726,"d":"($47,366)"}},{"$f":"NORMINV(RAND()*(1-2*Inputs!B58)+Inputs!B58,0,'(Other Computations)'!B208)","v":{"v":-15849.324579626085,"d":"($15,849)"}},{"$f":"NORMINV(RAND()*(1-2*Inputs!B58)+Inputs!B58,0,'(Other Computations)'!B208)","v":{"v":14558.378990651116,"d":"$14,558"}},{"$f":"NORMINV(RAND()*(1-2*Inputs!B58)+Inputs!B58,0,'(Other Computations)'!B208)","v":{"v":-33538.66396652808,"d":"($33,539)"}},{"$f":"NORMINV(RAND()*(1-2*Inputs!B58)+Inputs!B58,0,'(Other Computations)'!B208)","v":{"v":8302.986653448945,"d":"$8,303"}},{"$f":"NORMINV(RAND()*(1-2*Inputs!B58)+Inputs!B58,0,'(Other Computations)'!B208)","v":{"v":-34845.47069587546,"d":"($34,845)"}},{"$f":"NORMINV(RAND()*(1-2*Inputs!B58)+Inputs!B58,0,'(Other Computations)'!B208)","v":{"v":-8511.018169403314,"d":"($8,511)"}},{"$f":"NORMINV(RAND()*(1-2*Inputs!B58)+Inputs!B58,0,'(Other Computations)'!B208)","v":{"v":-31118.41148495021,"d":"($31,118)"}},{"$f":"SUM(AB13:AM13)","v":{"v":-136884.70613753356,"d":"($136,885)"}},{"$f":"NORMINV(RAND()*(1-2*Inputs!B58)+Inputs!B58,0,'(Other Computations)'!B208)","v":{"v":812.1366937754829,"d":"$812"}},{"$f":"NORMINV(RAND()*(1-2*Inputs!B58)+Inputs!B58,0,'(Other Computations)'!B208)","v":{"v":4186.596115683979,"d":"$4,187"}},{"$f":"NORMINV(RAND()*(1-2*Inputs!B58)+Inputs!B58,0,'(Other Computations)'!B208)","v":{"v":-11987.282454032424,"d":"($11,987)"}},{"$f":"NORMINV(RAND()*(1-2*Inputs!B58)+Inputs!B58,0,'(Other Computations)'!B208)","v":{"v":16112.180967564998,"d":"$16,112"}},{"$f":"NORMINV(RAND()*(1-2*Inputs!B58)+Inputs!B58,0,'(Other Computations)'!B208)","v":{"v":21728.168688760372,"d":"$21,728"}},{"$f":"NORMINV(RAND()*(1-2*Inputs!B58)+Inputs!B58,0,'(Other Computations)'!B208)","v":{"v":-16522.84846504427,"d":"($16,523)"}},{"$f":"NORMINV(RAND()*(1-2*Inputs!B58)+Inputs!B58,0,'(Other Computations)'!B208)","v":{"v":13092.32350362625,"d":"$13,092"}},{"$f":"NORMINV(RAND()*(1-2*Inputs!B58)+Inputs!B58,0,'(Other Computations)'!B208)","v":{"v":3156.326865498278,"d":"$3,156"}},{"$f":"NORMINV(RAND()*(1-2*Inputs!B58)+Inputs!B58,0,'(Other Computations)'!B208)","v":{"v":-8014.656310642254,"d":"($8,015)"}},{"$f":"NORMINV(RAND()*(1-2*Inputs!B58)+Inputs!B58,0,'(Other Computations)'!B208)","v":{"v":-7470.853232386881,"d":"($7,471)"}},{"$f":"NORMINV(RAND()*(1-2*Inputs!B58)+Inputs!B58,0,'(Other Computations)'!B208)","v":{"v":8946.724217486339,"d":"$8,947"}},{"$f":"NORMINV(RAND()*(1-2*Inputs!B58)+Inputs!B58,0,'(Other Computations)'!B208)","v":{"v":-6829.962061732271,"d":"($6,830)"}},{"$f":"SUM(AO13:AZ13)","v":{"v":17208.854528557604,"d":"$17,209"}},{"$f":"NORMINV(RAND()*(1-2*Inputs!B58)+Inputs!B58,0,'(Other Computations)'!B208)","v":{"v":-21512.850611501395,"d":"($21,513)"}},{"$f":"NORMINV(RAND()*(1-2*Inputs!B58)+Inputs!B58,0,'(Other Computations)'!B208)","v":{"v":-41030.87948538585,"d":"($41,031)"}},{"$f":"NORMINV(RAND()*(1-2*Inputs!B58)+Inputs!B58,0,'(Other Computations)'!B208)","v":{"v":-57566.45616864928,"d":"($57,566)"}},{"$f":"NORMINV(RAND()*(1-2*Inputs!B58)+Inputs!B58,0,'(Other Computations)'!B208)","v":{"v":15761.504906859203,"d":"$15,762"}},{"$f":"NORMINV(RAND()*(1-2*Inputs!B58)+Inputs!B58,0,'(Other Computations)'!B208)","v":{"v":-15814.92225497996,"d":"($15,815)"}},{"$f":"NORMINV(RAND()*(1-2*Inputs!B58)+Inputs!B58,0,'(Other Computations)'!B208)","v":{"v":8495.240315553308,"d":"$8,495"}},{"$f":"NORMINV(RAND()*(1-2*Inputs!B58)+Inputs!B58,0,'(Other Computations)'!B208)","v":{"v":-43321.473914088245,"d":"($43,321)"}},{"$f":"NORMINV(RAND()*(1-2*Inputs!B58)+Inputs!B58,0,'(Other Computations)'!B208)","v":{"v":9982.30655968981,"d":"$9,982"}},{"$f":"NORMINV(RAND()*(1-2*Inputs!B58)+Inputs!B58,0,'(Other Computations)'!B208)","v":{"v":39221.68597441646,"d":"$39,222"}},{"$f":"NORMINV(RAND()*(1-2*Inputs!B58)+Inputs!B58,0,'(Other Computations)'!B208)","v":{"v":13488.36192443507,"d":"$13,488"}},{"$f":"NORMINV(RAND()*(1-2*Inputs!B58)+Inputs!B58,0,'(Other Computations)'!B208)","v":{"v":40063.14325297275,"d":"$40,063"}},{"$f":"NORMINV(RAND()*(1-2*Inputs!B58)+Inputs!B58,0,'(Other Computations)'!B208)","v":{"v":9779.803928562582,"d":"$9,780"}},{"$f":"SUM(BB13:BM13)","v":{"v":-42454.535572115536,"d":"($42,455)"}},{"$f":"NORMINV(RAND()*(1-2*Inputs!B58)+Inputs!B58,0,'(Other Computations)'!B208)","v":{"v":38239.05289020324,"d":"$38,239"}},{"$f":"NORMINV(RAND()*(1-2*Inputs!B58)+Inputs!B58,0,'(Other Computations)'!B208)","v":{"v":55385.7283022582,"d":"$55,386"}},{"$f":"NORMINV(RAND()*(1-2*Inputs!B58)+Inputs!B58,0,'(Other Computations)'!B208)","v":{"v":53086.48409214897,"d":"$53,086"}},{"$f":"NORMINV(RAND()*(1-2*Inputs!B58)+Inputs!B58,0,'(Other Computations)'!B208)","v":{"v":-37148.48405565554,"d":"($37,148)"}},{"$f":"NORMINV(RAND()*(1-2*Inputs!B58)+Inputs!B58,0,'(Other Computations)'!B208)","v":{"v":114.50539313923751,"d":"$115"}},{"$f":"NORMINV(RAND()*(1-2*Inputs!B58)+Inputs!B58,0,'(Other Computations)'!B208)","v":{"v":57425.70866167053,"d":"$57,426"}},{"$f":"NORMINV(RAND()*(1-2*Inputs!B58)+Inputs!B58,0,'(Other Computations)'!B208)","v":{"v":-34382.98062648527,"d":"($34,383)"}},{"$f":"NORMINV(RAND()*(1-2*Inputs!B58)+Inputs!B58,0,'(Other Computations)'!B208)","v":{"v":-6633.492656202047,"d":"($6,633)"}},{"$f":"NORMINV(RAND()*(1-2*Inputs!B58)+Inputs!B58,0,'(Other Computations)'!B208)","v":{"v":5480.820448015299,"d":"$5,481"}},{"$f":"NORMINV(RAND()*(1-2*Inputs!B58)+Inputs!B58,0,'(Other Computations)'!B208)","v":{"v":44497.352234508406,"d":"$44,497"}},{"$f":"NORMINV(RAND()*(1-2*Inputs!B58)+Inputs!B58,0,'(Other Computations)'!B208)","v":{"v":48268.93975292922,"d":"$48,269"}},{"$f":"NORMINV(RAND()*(1-2*Inputs!B58)+Inputs!B58,0,'(Other Computations)'!B208)","v":{"v":35345.448484856315,"d":"$35,345"}},{"$f":"SUM(BO13:BZ13)","v":{"v":259679.08292138655,"d":"$259,679"}},{"$f":"NORMINV(RAND()*(1-2*Inputs!B58)+Inputs!B58,0,'(Other Computations)'!B208)","v":{"v":-5055.1247134358355,"d":"($5,055)"}},{"$f":"NORMINV(RAND()*(1-2*Inputs!B58)+Inputs!B58,0,'(Other Computations)'!B208)","v":{"v":2190.406178540284,"d":"$2,190"}},{"$f":"NORMINV(RAND()*(1-2*Inputs!B58)+Inputs!B58,0,'(Other Computations)'!B208)","v":{"v":-4112.685856142854,"d":"($4,113)"}},{"$f":"NORMINV(RAND()*(1-2*Inputs!B58)+Inputs!B58,0,'(Other Computations)'!B208)","v":{"v":-19600.80086136598,"d":"($19,601)"}},{"$f":"NORMINV(RAND()*(1-2*Inputs!B58)+Inputs!B58,0,'(Other Computations)'!B208)","v":{"v":6662.350109609606,"d":"$6,662"}},{"$f":"NORMINV(RAND()*(1-2*Inputs!B58)+Inputs!B58,0,'(Other Computations)'!B208)","v":{"v":59267.06550777839,"d":"$59,267"}},{"$f":"NORMINV(RAND()*(1-2*Inputs!B58)+Inputs!B58,0,'(Other Computations)'!B208)","v":{"v":-22511.2559169972,"d":"($22,511)"}},{"$f":"NORMINV(RAND()*(1-2*Inputs!B58)+Inputs!B58,0,'(Other Computations)'!B208)","v":{"v":-28916.37039318779,"d":"($28,916)"}},{"$f":"NORMINV(RAND()*(1-2*Inputs!B58)+Inputs!B58,0,'(Other Computations)'!B208)","v":{"v":11045.060295193129,"d":"$11,045"}},{"$f":"NORMINV(RAND()*(1-2*Inputs!B58)+Inputs!B58,0,'(Other Computations)'!B208)","v":{"v":55091.679030414256,"d":"$55,092"}},{"$f":"NORMINV(RAND()*(1-2*Inputs!B58)+Inputs!B58,0,'(Other Computations)'!B208)","v":{"v":-31658.522230726823,"d":"($31,659)"}},{"$f":"NORMINV(RAND()*(1-2*Inputs!B58)+Inputs!B58,0,'(Other Computations)'!B208)","v":{"v":17393.105306895315,"d":"$17,393"}},{"$f":"SUM(CB13:CM13)","v":{"v":39794.90645657449,"d":"$39,795"}},{"$f":"NORMINV(RAND()*(1-2*Inputs!B58)+Inputs!B58,0,'(Other Computations)'!B208)","v":{"v":14150.564263191118,"d":"$14,151"}},{"$f":"NORMINV(RAND()*(1-2*Inputs!B58)+Inputs!B58,0,'(Other Computations)'!B208)","v":{"v":-32142.911036852845,"d":"($32,143)"}},{"$f":"NORMINV(RAND()*(1-2*Inputs!B58)+Inputs!B58,0,'(Other Computations)'!B208)","v":{"v":47229.83090567274,"d":"$47,230"}},{"$f":"NORMINV(RAND()*(1-2*Inputs!B58)+Inputs!B58,0,'(Other Computations)'!B208)","v":{"v":-25637.57198418483,"d":"($25,638)"}},{"$f":"NORMINV(RAND()*(1-2*Inputs!B58)+Inputs!B58,0,'(Other Computations)'!B208)","v":{"v":-15901.51525836036,"d":"($15,902)"}},{"$f":"NORMINV(RAND()*(1-2*Inputs!B58)+Inputs!B58,0,'(Other Computations)'!B208)","v":{"v":17047.219829629626,"d":"$17,047"}},{"$f":"NORMINV(RAND()*(1-2*Inputs!B58)+Inputs!B58,0,'(Other Computations)'!B208)","v":{"v":7581.97127269533,"d":"$7,582"}},{"$f":"NORMINV(RAND()*(1-2*Inputs!B58)+Inputs!B58,0,'(Other Computations)'!B208)","v":{"v":-9248.67545964924,"d":"($9,249)"}},{"$f":"NORMINV(RAND()*(1-2*Inputs!B58)+Inputs!B58,0,'(Other Computations)'!B208)","v":{"v":30876.68241598688,"d":"$30,877"}},{"$f":"NORMINV(RAND()*(1-2*Inputs!B58)+Inputs!B58,0,'(Other Computations)'!B208)","v":{"v":-15036.777706406552,"d":"($15,037)"}},{"$f":"NORMINV(RAND()*(1-2*Inputs!B58)+Inputs!B58,0,'(Other Computations)'!B208)","v":{"v":-2497.4314106777265,"d":"($2,497)"}},{"$f":"NORMINV(RAND()*(1-2*Inputs!B58)+Inputs!B58,0,'(Other Computations)'!B208)","v":{"v":-50501.58830379033,"d":"($50,502)"}},{"$f":"SUM(CO13:CZ13)","v":{"v":-34080.2024727462,"d":"($34,080)"}},{"$f":"NORMINV(RAND()*(1-2*Inputs!B58)+Inputs!B58,0,'(Other Computations)'!B208)","v":{"v":19125.27316382408,"d":"$19,125"}},{"$f":"NORMINV(RAND()*(1-2*Inputs!B58)+Inputs!B58,0,'(Other Computations)'!B208)","v":{"v":1779.4935734268327,"d":"$1,779"}},{"$f":"NORMINV(RAND()*(1-2*Inputs!B58)+Inputs!B58,0,'(Other Computations)'!B208)","v":{"v":10206.529848312292,"d":"$10,207"}},{"$f":"NORMINV(RAND()*(1-2*Inputs!B58)+Inputs!B58,0,'(Other Computations)'!B208)","v":{"v":-21804.417611582878,"d":"($21,804)"}},{"$f":"NORMINV(RAND()*(1-2*Inputs!B58)+Inputs!B58,0,'(Other Computations)'!B208)","v":{"v":-29151.529783572132,"d":"($29,152)"}},{"$f":"NORMINV(RAND()*(1-2*Inputs!B58)+Inputs!B58,0,'(Other Computations)'!B208)","v":{"v":29915.22657918746,"d":"$29,915"}},{"$f":"NORMINV(RAND()*(1-2*Inputs!B58)+Inputs!B58,0,'(Other Computations)'!B208)","v":{"v":54266.442130725336,"d":"$54,266"}},{"$f":"NORMINV(RAND()*(1-2*Inputs!B58)+Inputs!B58,0,'(Other Computations)'!B208)","v":{"v":1692.12288398782,"d":"$1,692"}},{"$f":"NORMINV(RAND()*(1-2*Inputs!B58)+Inputs!B58,0,'(Other Computations)'!B208)","v":{"v":-29578.26958024101,"d":"($29,578)"}},{"$f":"NORMINV(RAND()*(1-2*Inputs!B58)+Inputs!B58,0,'(Other Computations)'!B208)","v":{"v":-6537.554217388505,"d":"($6,538)"}},{"$f":"NORMINV(RAND()*(1-2*Inputs!B58)+Inputs!B58,0,'(Other Computations)'!B208)","v":{"v":-34286.04730625208,"d":"($34,286)"}},{"$f":"NORMINV(RAND()*(1-2*Inputs!B58)+Inputs!B58,0,'(Other Computations)'!B208)","v":{"v":901.1430093898069,"d":"$901"}},{"$f":"SUM(DB13:DM13)","v":{"v":-3471.58731018298,"d":"($3,472)"}},{"$f":"NORMINV(RAND()*(1-2*Inputs!B58)+Inputs!B58,0,'(Other Computations)'!B208)","v":{"v":-17227.72968796334,"d":"($17,228)"}},{"$f":"NORMINV(RAND()*(1-2*Inputs!B58)+Inputs!B58,0,'(Other Computations)'!B208)","v":{"v":-1980.7109136377392,"d":"($1,981)"}},{"$f":"NORMINV(RAND()*(1-2*Inputs!B58)+Inputs!B58,0,'(Other Computations)'!B208)","v":{"v":48688.41262244146,"d":"$48,688"}},{"$f":"NORMINV(RAND()*(1-2*Inputs!B58)+Inputs!B58,0,'(Other Computations)'!B208)","v":{"v":23219.892368951812,"d":"$23,220"}},{"$f":"NORMINV(RAND()*(1-2*Inputs!B58)+Inputs!B58,0,'(Other Computations)'!B208)","v":{"v":16958.21621954948,"d":"$16,958"}},{"$f":"NORMINV(RAND()*(1-2*Inputs!B58)+Inputs!B58,0,'(Other Computations)'!B208)","v":{"v":34168.857475961406,"d":"$34,169"}},{"$f":"NORMINV(RAND()*(1-2*Inputs!B58)+Inputs!B58,0,'(Other Computations)'!B208)","v":{"v":-25272.549418638155,"d":"($25,273)"}},{"$f":"NORMINV(RAND()*(1-2*Inputs!B58)+Inputs!B58,0,'(Other Computations)'!B208)","v":{"v":4139.5934126991515,"d":"$4,140"}},{"$f":"NORMINV(RAND()*(1-2*Inputs!B58)+Inputs!B58,0,'(Other Computations)'!B208)","v":{"v":26663.88868985827,"d":"$26,664"}},{"$f":"NORMINV(RAND()*(1-2*Inputs!B58)+Inputs!B58,0,'(Other Computations)'!B208)","v":{"v":-17031.748825899285,"d":"($17,032)"}},{"$f":"NORMINV(RAND()*(1-2*Inputs!B58)+Inputs!B58,0,'(Other Computations)'!B208)","v":{"v":-607.5176028900723,"d":"($608)"}},{"$f":"NORMINV(RAND()*(1-2*Inputs!B58)+Inputs!B58,0,'(Other Computations)'!B208)","v":{"v":-29494.682253837796,"d":"($29,495)"}},{"$f":"SUM(DO13:DZ13)","v":{"v":62223.92208659517,"d":"$62,224"}},{"$f":"NORMINV(RAND()*(1-2*Inputs!B58)+Inputs!B58,0,'(Other Computations)'!B208)","v":{"v":-2098.9082508232077,"d":"($2,099)"}},{"$f":"NORMINV(RAND()*(1-2*Inputs!B58)+Inputs!B58,0,'(Other Computations)'!B208)","v":{"v":37588.11468819673,"d":"$37,588"}},{"$f":"NORMINV(RAND()*(1-2*Inputs!B58)+Inputs!B58,0,'(Other Computations)'!B208)","v":{"v":-25375.563552905765,"d":"($25,376)"}},{"$f":"NORMINV(RAND()*(1-2*Inputs!B58)+Inputs!B58,0,'(Other Computations)'!B208)","v":{"v":5699.159640434842,"d":"$5,699"}},{"$f":"NORMINV(RAND()*(1-2*Inputs!B58)+Inputs!B58,0,'(Other Computations)'!B208)","v":{"v":3880.4505347352174,"d":"$3,880"}},{"$f":"NORMINV(RAND()*(1-2*Inputs!B58)+Inputs!B58,0,'(Other Computations)'!B208)","v":{"v":33808.98902580374,"d":"$33,809"}},{"$f":"NORMINV(RAND()*(1-2*Inputs!B58)+Inputs!B58,0,'(Other Computations)'!B208)","v":{"v":-45524.5713104364,"d":"($45,525)"}},{"$f":"NORMINV(RAND()*(1-2*Inputs!B58)+Inputs!B58,0,'(Other Computations)'!B208)","v":{"v":-32927.50242355345,"d":"($32,928)"}},{"$f":"NORMINV(RAND()*(1-2*Inputs!B58)+Inputs!B58,0,'(Other Computations)'!B208)","v":{"v":-18449.422666634866,"d":"($18,449)"}},{"$f":"NORMINV(RAND()*(1-2*Inputs!B58)+Inputs!B58,0,'(Other Computations)'!B208)","v":{"v":2553.949030594771,"d":"$2,554"}},{"$f":"NORMINV(RAND()*(1-2*Inputs!B58)+Inputs!B58,0,'(Other Computations)'!B208)","v":{"v":3966.0220006858876,"d":"$3,966"}},{"$f":"NORMINV(RAND()*(1-2*Inputs!B58)+Inputs!B58,0,'(Other Computations)'!B208)","v":{"v":-2533.042367332149,"d":"($2,533)"}},{"$f":"SUM(EB13:EM13)","v":{"v":-39412.325651234656,"d":"($39,412)"}}]
[]
[]
[{"$f":"\"Capital\"","v":"Capital"}]
[{"$f":"\" \"","v":" "}]
[null,{"$f":"ZZZ__FnCalls!F7","v":"Jan 2010"},{"$f":"ZZZ__FnCalls!F8","v":"Feb 2010"},{"$f":"ZZZ__FnCalls!F9","v":"Mar 2010"},{"$f":"ZZZ__FnCalls!F10","v":"Apr 2010"},{"$f":"ZZZ__FnCalls!F11","v":"May 2010"},{"$f":"ZZZ__FnCalls!F12","v":"Jun 2010"},{"$f":"ZZZ__FnCalls!F13","v":"Jul 2010"},{"$f":"ZZZ__FnCalls!F14","v":"Aug 2010"},{"$f":"ZZZ__FnCalls!F15","v":"Sep 2010"},{"$f":"ZZZ__FnCalls!F16","v":"Oct 2010"},{"$f":"ZZZ__FnCalls!F17","v":"Nov 2010"},{"$f":"ZZZ__FnCalls!F18","v":"Dec 2010"},{"$f":"ZZZ__FnCalls!H7","v":"2010"},{"$f":"ZZZ__FnCalls!F19","v":"Jan 2011"},{"$f":"ZZZ__FnCalls!F20","v":"Feb 2011"},{"$f":"ZZZ__FnCalls!F21","v":"Mar 2011"},{"$f":"ZZZ__FnCalls!F22","v":"Apr 2011"},{"$f":"ZZZ__FnCalls!F23","v":"May 2011"},{"$f":"ZZZ__FnCalls!F24","v":"Jun 2011"},{"$f":"ZZZ__FnCalls!F25","v":"Jul 2011"},{"$f":"ZZZ__FnCalls!F26","v":"Aug 2011"},{"$f":"ZZZ__FnCalls!F27","v":"Sep 2011"},{"$f":"ZZZ__FnCalls!F28","v":"Oct 2011"},{"$f":"ZZZ__FnCalls!F29","v":"Nov 2011"},{"$f":"ZZZ__FnCalls!F30","v":"Dec 2011"},{"$f":"ZZZ__FnCalls!H19","v":"2011"},{"$f":"ZZZ__FnCalls!F31","v":"Jan 2012"},{"$f":"ZZZ__FnCalls!F32","v":"Feb 2012"},{"$f":"ZZZ__FnCalls!F33","v":"Mar 2012"},{"$f":"ZZZ__FnCalls!F34","v":"Apr 2012"},{"$f":"ZZZ__FnCalls!F35","v":"May 2012"},{"$f":"ZZZ__FnCalls!F36","v":"Jun 2012"},{"$f":"ZZZ__FnCalls!F37","v":"Jul 2012"},{"$f":"ZZZ__FnCalls!F38","v":"Aug 2012"},{"$f":"ZZZ__FnCalls!F39","v":"Sep 2012"},{"$f":"ZZZ__FnCalls!F40","v":"Oct 2012"},{"$f":"ZZZ__FnCalls!F41","v":"Nov 2012"},{"$f":"ZZZ__FnCalls!F42","v":"Dec 2012"},{"$f":"ZZZ__FnCalls!H31","v":"2012"},{"$f":"ZZZ__FnCalls!F43","v":"Jan 2013"},{"$f":"ZZZ__FnCalls!F44","v":"Feb 2013"},{"$f":"ZZZ__FnCalls!F45","v":"Mar 2013"},{"$f":"ZZZ__FnCalls!F46","v":"Apr 2013"},{"$f":"ZZZ__FnCalls!F47","v":"May 2013"},{"$f":"ZZZ__FnCalls!F48","v":"Jun 2013"},{"$f":"ZZZ__FnCalls!F49","v":"Jul 2013"},{"$f":"ZZZ__FnCalls!F50","v":"Aug 2013"},{"$f":"ZZZ__FnCalls!F51","v":"Sep 2013"},{"$f":"ZZZ__FnCalls!F52","v":"Oct 2013"},{"$f":"ZZZ__FnCalls!F53","v":"Nov 2013"},{"$f":"ZZZ__FnCalls!F54","v":"Dec 2013"},{"$f":"ZZZ__FnCalls!H43","v":"2013"},{"$f":"ZZZ__FnCalls!F55","v":"Jan 2014"},{"$f":"ZZZ__FnCalls!F56","v":"Feb 2014"},{"$f":"ZZZ__FnCalls!F57","v":"Mar 2014"},{"$f":"ZZZ__FnCalls!F58","v":"Apr 2014"},{"$f":"ZZZ__FnCalls!F59","v":"May 2014"},{"$f":"ZZZ__FnCalls!F60","v":"Jun 2014"},{"$f":"ZZZ__FnCalls!F61","v":"Jul 2014"},{"$f":"ZZZ__FnCalls!F62","v":"Aug 2014"},{"$f":"ZZZ__FnCalls!F63","v":"Sep 2014"},{"$f":"ZZZ__FnCalls!F64","v":"Oct 2014"},{"$f":"ZZZ__FnCalls!F65","v":"Nov 2014"},{"$f":"ZZZ__FnCalls!F66","v":"Dec 2014"},{"$f":"ZZZ__FnCalls!H55","v":"2014"},{"$f":"ZZZ__FnCalls!F67","v":"Jan 2015"},{"$f":"ZZZ__FnCalls!F68","v":"Feb 2015"},{"$f":"ZZZ__FnCalls!F69","v":"Mar 2015"},{"$f":"ZZZ__FnCalls!F70","v":"Apr 2015"},{"$f":"ZZZ__FnCalls!F71","v":"May 2015"},{"$f":"ZZZ__FnCalls!F72","v":"Jun 2015"},{"$f":"ZZZ__FnCalls!F73","v":"Jul 2015"},{"$f":"ZZZ__FnCalls!F74","v":"Aug 2015"},{"$f":"ZZZ__FnCalls!F75","v":"Sep 2015"},{"$f":"ZZZ__FnCalls!F76","v":"Oct 2015"},{"$f":"ZZZ__FnCalls!F77","v":"Nov 2015"},{"$f":"ZZZ__FnCalls!F78","v":"Dec 2015"},{"$f":"ZZZ__FnCalls!H67","v":"2015"},{"$f":"ZZZ__FnCalls!F79","v":"Jan 2016"},{"$f":"ZZZ__FnCalls!F80","v":"Feb 2016"},{"$f":"ZZZ__FnCalls!F81","v":"Mar 2016"},{"$f":"ZZZ__FnCalls!F82","v":"Apr 2016"},{"$f":"ZZZ__FnCalls!F83","v":"May 2016"},{"$f":"ZZZ__FnCalls!F84","v":"Jun 2016"},{"$f":"ZZZ__FnCalls!F85","v":"Jul 2016"},{"$f":"ZZZ__FnCalls!F86","v":"Aug 2016"},{"$f":"ZZZ__FnCalls!F87","v":"Sep 2016"},{"$f":"ZZZ__FnCalls!F88","v":"Oct 2016"},{"$f":"ZZZ__FnCalls!F89","v":"Nov 2016"},{"$f":"ZZZ__FnCalls!F90","v":"Dec 2016"},{"$f":"ZZZ__FnCalls!H79","v":"2016"},{"$f":"ZZZ__FnCalls!F91","v":"Jan 2017"},{"$f":"ZZZ__FnCalls!F92","v":"Feb 2017"},{"$f":"ZZZ__FnCalls!F93","v":"Mar 2017"},{"$f":"ZZZ__FnCalls!F94","v":"Apr 2017"},{"$f":"ZZZ__FnCalls!F95","v":"May 2017"},{"$f":"ZZZ__FnCalls!F96","v":"Jun 2017"},{"$f":"ZZZ__FnCalls!F97","v":"Jul 2017"},{"$f":"ZZZ__FnCalls!F98","v":"Aug 2017"},{"$f":"ZZZ__FnCalls!F99","v":"Sep 2017"},{"$f":"ZZZ__FnCalls!F100","v":"Oct 2017"},{"$f":"ZZZ__FnCalls!F101","v":"Nov 2017"},{"$f":"ZZZ__FnCalls!F102","v":"Dec 2017"},{"$f":"ZZZ__FnCalls!H91","v":"2017"},{"$f":"ZZZ__FnCalls!F103","v":"Jan 2018"},{"$f":"ZZZ__FnCalls!F104","v":"Feb 2018"},{"$f":"ZZZ__FnCalls!F105","v":"Mar 2018"},{"$f":"ZZZ__FnCalls!F106","v":"Apr 2018"},{"$f":"ZZZ__FnCalls!F107","v":"May 2018"},{"$f":"ZZZ__FnCalls!F108","v":"Jun 2018"},{"$f":"ZZZ__FnCalls!F109","v":"Jul 2018"},{"$f":"ZZZ__FnCalls!F110","v":"Aug 2018"},{"$f":"ZZZ__FnCalls!F111","v":"Sep 2018"},{"$f":"ZZZ__FnCalls!F112","v":"Oct 2018"},{"$f":"ZZZ__FnCalls!F113","v":"Nov 2018"},{"$f":"ZZZ__FnCalls!F114","v":"Dec 2018"},{"$f":"ZZZ__FnCalls!H103","v":"2018"},{"$f":"ZZZ__FnCalls!F115","v":"Jan 2019"},{"$f":"ZZZ__FnCalls!F116","v":"Feb 2019"},{"$f":"ZZZ__FnCalls!F117","v":"Mar 2019"},{"$f":"ZZZ__FnCalls!F118","v":"Apr 2019"},{"$f":"ZZZ__FnCalls!F119","v":"May 2019"},{"$f":"ZZZ__FnCalls!F120","v":"Jun 2019"},{"$f":"ZZZ__FnCalls!F121","v":"Jul 2019"},{"$f":"ZZZ__FnCalls!F122","v":"Aug 2019"},{"$f":"ZZZ__FnCalls!F123","v":"Sep 2019"},{"$f":"ZZZ__FnCalls!F124","v":"Oct 2019"},{"$f":"ZZZ__FnCalls!F125","v":"Nov 2019"},{"$f":"ZZZ__FnCalls!F126","v":"Dec 2019"},{"$f":"ZZZ__FnCalls!H115","v":"2019"},{"$f":"ZZZ__FnCalls!F127","v":"Jan 2020"},{"$f":"ZZZ__FnCalls!F128","v":"Feb 2020"},{"$f":"ZZZ__FnCalls!F129","v":"Mar 2020"},{"$f":"ZZZ__FnCalls!F130","v":"Apr 2020"},{"$f":"ZZZ__FnCalls!F131","v":"May 2020"},{"$f":"ZZZ__FnCalls!F132","v":"Jun 2020"},{"$f":"ZZZ__FnCalls!F133","v":"Jul 2020"},{"$f":"ZZZ__FnCalls!F134","v":"Aug 2020"},{"$f":"ZZZ__FnCalls!F135","v":"Sep 2020"},{"$f":"ZZZ__FnCalls!F136","v":"Oct 2020"},{"$f":"ZZZ__FnCalls!F137","v":"Nov 2020"},{"$f":"ZZZ__FnCalls!F138","v":"Dec 2020"},{"$f":"ZZZ__FnCalls!H127","v":"2020"}]
[{"$f":"Labels!B9","v":"Capital"},{"$f":"Inputs!B20*'(Other Computations)'!B8/(1/Inputs!B19/12+'(Other Computations)'!B144)","v":{"v":34645298.42192645,"d":"$34,645,298"}},{"$f":"B19+B21-B20","v":{"v":34645298.42192645,"d":"$34,645,298"}},{"v":34644834.559459105,"d":"$34,644,835"},{"v":34643939.25823976,"d":"$34,643,939"},{"v":34642752.58050542,"d":"$34,642,753"},{"v":34641111.135880165,"d":"$34,641,111"},{"v":34639087.89172044,"d":"$34,639,088"},{"v":34636684.88432721,"d":"$34,636,685"},{"v":34633955.251417734,"d":"$34,633,955"},{"v":34630949.30757114,"d":"$34,630,949"},{"v":34627752.13628085,"d":"$34,627,752"},{"v":34624200.86101451,"d":"$34,624,201"},{"$f":"M19","v":{"v":34624200.86101451,"d":"$34,624,201"}},{"$f":"M19+M21-M20","v":{"v":34620317.13913469,"d":"$34,620,317"}},{"$f":"O19+O21-O20","v":{"v":34616149.25272418,"d":"$34,616,149"}},{"v":34611687.376242094,"d":"$34,611,687"},{"v":34606966.627403125,"d":"$34,606,967"},{"v":34601970.859512195,"d":"$34,601,971"},{"v":34596736.95135379,"d":"$34,596,737"},{"v":34591178.85384561,"d":"$34,591,179"},{"v":34585499.06394529,"d":"$34,585,499"},{"v":34579613.440933265,"d":"$34,579,613"},{"v":34573493.11063047,"d":"$34,573,493"},{"v":34567169.104213975,"d":"$34,567,169"},{"v":34560564.322428316,"d":"$34,560,564"},{"$f":"Z19","v":{"v":34560564.322428316,"d":"$34,560,564"}},{"$f":"Z19+Z21-Z20","v":{"v":34553859.912909426,"d":"$34,553,860"}},{"$f":"AB19+AB21-AB20","v":{"v":34546924.27329621,"d":"$34,546,924"}},{"v":34539822.37358948,"d":"$34,539,822"},{"v":34532526.23888428,"d":"$34,532,526"},{"v":34525140.30789429,"d":"$34,525,140"},{"v":34517458.15167562,"d":"$34,517,458"},{"v":34509507.280475035,"d":"$34,509,507"},{"v":34501355.248791225,"d":"$34,501,355"},{"v":34493065.65676171,"d":"$34,493,066"},{"v":34484550.5582707,"d":"$34,484,551"},{"v":34475896.11825441,"d":"$34,475,896"},{"v":34467023.86361551,"d":"$34,467,024"},{"$f":"AM19","v":{"v":34467023.86361551,"d":"$34,467,024"}},{"$f":"AM19+AM21-AM20","v":{"v":34457990.25688293,"d":"$34,457,990"}},{"$f":"AO19+AO21-AO20","v":{"v":34448756.7016488,"d":"$34,448,757"}},{"v":34439389.708169654,"d":"$34,439,390"},{"v":34429899.427924365,"d":"$34,429,899"},{"v":34420258.37677871,"d":"$34,420,258"},{"v":34410524.34181817,"d":"$34,410,524"},{"v":34400710.79757036,"d":"$34,400,711"},{"v":34390746.85490173,"d":"$34,390,747"},{"v":34380693.304923914,"d":"$34,380,693"},{"v":34370533.74373199,"d":"$34,370,534"},{"v":34360249.845163696,"d":"$34,360,250"},{"v":34349846.021693915,"d":"$34,349,846"},{"$f":"AZ19","v":{"v":34349846.021693915,"d":"$34,349,846"}},{"$f":"AZ19+AZ21-AZ20","v":{"v":34339356.95642029,"d":"$34,339,357"}},{"$f":"BB19+BB21-BB20","v":{"v":34328754.899467595,"d":"$34,328,755"}},{"v":34318015.07997256,"d":"$34,318,015"},{"v":34307103.993472315,"d":"$34,307,104"},{"v":34295994.944522254,"d":"$34,295,995"},{"v":34284833.70720277,"d":"$34,284,834"},{"v":34273561.58828669,"d":"$34,273,562"},{"v":34262228.12478232,"d":"$34,262,228"},{"v":34250735.99815025,"d":"$34,250,736"},{"v":34239191.6517424,"d":"$34,239,192"},{"v":34227652.31711832,"d":"$34,227,652"},{"v":34216068.742396146,"d":"$34,216,069"},{"$f":"BM19","v":{"v":34216068.742396146,"d":"$34,216,069"}},{"$f":"BM19+BM21-BM20","v":{"v":34204493.06623588,"d":"$34,204,493"}},{"$f":"BO19+BO21-BO20","v":{"v":34192867.164602935,"d":"$34,192,867"}},{"v":34181246.866237246,"d":"$34,181,247"},{"v":34169664.66211485,"d":"$34,169,665"},{"v":34158115.1231827,"d":"$34,158,115"},{"v":34146424.964677826,"d":"$34,146,425"},{"v":34134669.4427247,"d":"$34,134,669"},{"v":34122959.80741159,"d":"$34,122,960"},{"v":34111119.55683166,"d":"$34,111,120"},{"v":34099205.49629251,"d":"$34,099,205"},{"v":34087242.77734334,"d":"$34,087,243"},{"v":34075307.30285405,"d":"$34,075,307"},{"$f":"BZ19","v":{"v":34075307.30285405,"d":"$34,075,307"}},{"$f":"BZ19+BZ21-BZ20","v":{"v":34063405.3733337,"d":"$34,063,405"}},{"$f":"CB19+CB21-CB20","v":{"v":34051511.456487745,"d":"$34,051,511"}},{"v":34039548.22144714,"d":"$34,039,548"},{"v":34027531.57904265,"d":"$34,027,532"},{"v":34015450.98957317,"d":"$34,015,451"},{"v":34003278.554716155,"d":"$34,003,279"},{"v":33991066.95048645,"d":"$33,991,067"},{"v":33978917.718100354,"d":"$33,978,918"},{"v":33966673.10048774,"d":"$33,966,673"},{"v":33954323.73997447,"d":"$33,954,324"},{"v":33941948.991735525,"d":"$33,941,949"},{"v":33929633.818678096,"d":"$33,929,634"},{"$f":"CM19","v":{"v":33929633.818678096,"d":"$33,929,634"}},{"$f":"CM19+CM21-CM20","v":{"v":33917210.91762346,"d":"$33,917,211"}},{"$f":"CO19+CO21-CO20","v":{"v":33904776.94925425,"d":"$33,904,777"}},{"v":33892326.02535381,"d":"$33,892,326"},{"v":33879770.19238523,"d":"$33,879,770"},{"v":33867263.95180155,"d":"$33,867,264"},{"v":33854666.90855117,"d":"$33,854,667"},{"v":33842000.273219176,"d":"$33,842,000"},{"v":33829328.911645815,"d":"$33,829,329"},{"v":33816634.79924159,"d":"$33,816,635"},{"v":33803886.50019406,"d":"$33,803,887"},{"v":33791162.13400233,"d":"$33,791,162"},{"v":33778373.40865305,"d":"$33,778,373"},{"$f":"CZ19","v":{"v":33778373.40865305,"d":"$33,778,373"}},{"$f":"CZ19+CZ21-CZ20","v":{"v":33765545.994353265,"d":"$33,765,546"}},{"$f":"DB19+DB21-DB20","v":{"v":33752589.36093344,"d":"$33,752,589"}},{"v":33739640.19439949,"d":"$33,739,640"},{"v":33726665.23182844,"d":"$33,726,665"},{"v":33713681.28753844,"d":"$33,713,681"},{"v":33700627.42145437,"d":"$33,700,627"},{"v":33687491.6703549,"d":"$33,687,492"},{"v":33674389.323194735,"d":"$33,674,389"},{"v":33661365.967722304,"d":"$33,661,366"},{"v":33648319.03038576,"d":"$33,648,319"},{"v":33635189.515361,"d":"$33,635,190"},{"v":33622023.72507807,"d":"$33,622,024"},{"$f":"DM19","v":{"v":33622023.72507807,"d":"$33,622,024"}},{"$f":"DM19+DM21-DM20","v":{"v":33608769.741328456,"d":"$33,608,770"}},{"$f":"DO19+DO21-DO20","v":{"v":33595497.11395284,"d":"$33,595,497"}},{"v":33582171.817708045,"d":"$33,582,172"},{"v":33568824.6647576,"d":"$33,568,825"},{"v":33555553.0294394,"d":"$33,555,553"},{"v":33542306.067130435,"d":"$33,542,306"},{"v":33529071.101260558,"d":"$33,529,071"},{"v":33515880.60310605,"d":"$33,515,881"},{"v":33502619.91889493,"d":"$33,502,620"},{"v":33489347.252840415,"d":"$33,489,347"},{"v":33476105.984430797,"d":"$33,476,106"},{"v":33462811.878667705,"d":"$33,462,812"},{"$f":"DZ19","v":{"v":33462811.878667705,"d":"$33,462,812"}},{"$f":"DZ19+DZ21-DZ20","v":{"v":33449497.78382002,"d":"$33,449,498"}},{"$f":"EB19+EB21-EB20","v":{"v":33436109.004260212,"d":"$33,436,109"}},{"v":33422699.968357727,"d":"$33,422,700"},{"v":33409347.071726955,"d":"$33,409,347"},{"v":33395928.70170487,"d":"$33,395,929"},{"v":33382506.02489665,"d":"$33,382,506"},{"v":33369075.606976323,"d":"$33,369,076"},{"v":33355694.83973727,"d":"$33,355,695"},{"v":33342210.847765967,"d":"$33,342,211"},{"v":33328650.68325212,"d":"$33,328,651"},{"v":33315044.022331666,"d":"$33,315,044"},{"v":33301432.4238129,"d":"$33,301,432"},{"$f":"EM19","v":{"v":33301432.4238129,"d":"$33,301,432"}}]
[{"$f":"Labels!B11","v":"Capital Depreciation"},{"$f":"B22/Inputs!B19/12","v":{"v":206222.0144162289,"d":"$206,222"}},{"$f":"B19/Inputs!B19/12","v":{"v":206222.0144162289,"d":"$206,222"}},{"$f":"C19/Inputs!B19/12","v":{"v":206222.0144162289,"d":"$206,222"}},{"$f":"D19/Inputs!B19/12","v":{"v":206219.25333011372,"d":"$206,219"}},{"$f":"E19/Inputs!B19/12","v":{"v":206213.92415618905,"d":"$206,214"}},{"$f":"F19/Inputs!B19/12","v":{"v":206206.86059824657,"d":"$206,207"}},{"$f":"G19/Inputs!B19/12","v":{"v":206197.09009452478,"d":"$206,197"}},{"$f":"H19/Inputs!B19/12","v":{"v":206185.0469745264,"d":"$206,185"}},{"$f":"I19/Inputs!B19/12","v":{"v":206170.74335909053,"d":"$206,171"}},{"$f":"J19/Inputs!B19/12","v":{"v":206154.49554415318,"d":"$206,154"}},{"$f":"K19/Inputs!B19/12","v":{"v":206136.60302125683,"d":"$206,137"}},{"$f":"L19/Inputs!B19/12","v":{"v":206117.57223976695,"d":"$206,118"}},{"$f":"SUM(B20:M20)","v":{"v":2474267.6325665545,"d":"$2,474,268"}},{"$f":"M19/Inputs!B19/12","v":{"v":206096.43369651493,"d":"$206,096"}},{"$f":"O19/Inputs!B19/12","v":{"v":206073.31630437318,"d":"$206,073"}},{"$f":"P19/Inputs!B19/12","v":{"v":206048.50745669156,"d":"$206,049"}},{"$f":"Q19/Inputs!B19/12","v":{"v":206021.9486681077,"d":"$206,022"}},{"$f":"R19/Inputs!B19/12","v":{"v":205993.84897263764,"d":"$205,994"}},{"$f":"S19/Inputs!B19/12","v":{"v":205964.11225900115,"d":"$205,964"}},{"$f":"T19/Inputs!B19/12","v":{"v":205932.95804377252,"d":"$205,933"}},{"$f":"U19/Inputs!B19/12","v":{"v":205899.8741300334,"d":"$205,900"}},{"$f":"V19/Inputs!B19/12","v":{"v":205866.0658568172,"d":"$205,866"}},{"$f":"W19/Inputs!B19/12","v":{"v":205831.03238650752,"d":"$205,831"}},{"$f":"X19/Inputs!B19/12","v":{"v":205794.6018489909,"d":"$205,795"}},{"$f":"Y19/Inputs!B19/12","v":{"v":205756.95895365463,"d":"$205,757"}},{"$f":"SUM(O20:Z20)","v":{"v":2471279.6585771022,"d":"$2,471,280"}},{"$f":"Z19/Inputs!B19/12","v":{"v":205717.644776359,"d":"$205,718"}},{"$f":"AB19/Inputs!B19/12","v":{"v":205677.7375768418,"d":"$205,678"}},{"$f":"AC19/Inputs!B19/12","v":{"v":205636.45400771554,"d":"$205,636"}},{"$f":"AD19/Inputs!B19/12","v":{"v":205594.18079517546,"d":"$205,594"}},{"$f":"AE19/Inputs!B19/12","v":{"v":205550.75142193024,"d":"$205,551"}},{"$f":"AF19/Inputs!B19/12","v":{"v":205506.78754698983,"d":"$205,507"}},{"$f":"AG19/Inputs!B19/12","v":{"v":205461.0604266406,"d":"$205,461"}},{"$f":"AH19/Inputs!B19/12","v":{"v":205413.7338123514,"d":"$205,414"}},{"$f":"AI19/Inputs!B19/12","v":{"v":205365.20981423347,"d":"$205,365"}},{"$f":"AJ19/Inputs!B19/12","v":{"v":205315.867004534,"d":"$205,316"}},{"$f":"AK19/Inputs!B19/12","v":{"v":205265.18189446846,"d":"$205,265"}},{"$f":"AL19/Inputs!B19/12","v":{"v":205213.66737056195,"d":"$205,214"}},{"$f":"SUM(AB20:AM20)","v":{"v":2465718.276447802,"d":"$2,465,718"}},{"$f":"AM19/Inputs!B19/12","v":{"v":205160.85633104472,"d":"$205,161"}},{"$f":"AO19/Inputs!B19/12","v":{"v":205107.08486239836,"d":"$205,107"}},{"$f":"AP19/Inputs!B19/12","v":{"v":205052.1232241,"d":"$205,052"}},{"$f":"AQ19/Inputs!B19/12","v":{"v":204996.36731053365,"d":"$204,996"}},{"$f":"AR19/Inputs!B19/12","v":{"v":204939.87754716884,"d":"$204,940"}},{"$f":"AS19/Inputs!B19/12","v":{"v":204882.49033796848,"d":"$204,882"}},{"$f":"AT19/Inputs!B19/12","v":{"v":204824.54965367957,"d":"$204,825"}},{"$f":"AU19/Inputs!B19/12","v":{"v":204766.1356998236,"d":"$204,766"}},{"$f":"AV19/Inputs!B19/12","v":{"v":204706.8265172722,"d":"$204,707"}},{"$f":"AW19/Inputs!B19/12","v":{"v":204646.98395788044,"d":"$204,647"}},{"$f":"AX19/Inputs!B19/12","v":{"v":204586.51037935706,"d":"$204,587"}},{"$f":"AY19/Inputs!B19/12","v":{"v":204525.29669740296,"d":"$204,525"}},{"$f":"SUM(AO20:AZ20)","v":{"v":2458195.1025186297,"d":"$2,458,195"}},{"$f":"AZ19/Inputs!B19/12","v":{"v":204463.3691767495,"d":"$204,463"}},{"$f":"BB19/Inputs!B19/12","v":{"v":204400.93426440647,"d":"$204,401"}},{"$f":"BC19/Inputs!B19/12","v":{"v":204337.8267825452,"d":"$204,338"}},{"$f":"BD19/Inputs!B19/12","v":{"v":204273.89928555093,"d":"$204,274"}},{"$f":"BE19/Inputs!B19/12","v":{"v":204208.9523420971,"d":"$204,209"}},{"$f":"BF19/Inputs!B19/12","v":{"v":204142.8270507277,"d":"$204,143"}},{"$f":"BG19/Inputs!B19/12","v":{"v":204076.3911143022,"d":"$204,076"}},{"$f":"BH19/Inputs!B19/12","v":{"v":204009.29516837315,"d":"$204,009"}},{"$f":"BI19/Inputs!B19/12","v":{"v":203941.83407608522,"d":"$203,942"}},{"$f":"BJ19/Inputs!B19/12","v":{"v":203873.42856041816,"d":"$203,873"}},{"$f":"BK19/Inputs!B19/12","v":{"v":203804.71221275235,"d":"$203,805"}},{"$f":"BL19/Inputs!B19/12","v":{"v":203736.02569713283,"d":"$203,736"}},{"$f":"SUM(BB20:BM20)","v":{"v":2449269.495731141,"d":"$2,449,269"}},{"$f":"BM19/Inputs!B19/12","v":{"v":203667.07584759613,"d":"$203,667"}},{"$f":"BO19/Inputs!B19/12","v":{"v":203598.17301330878,"d":"$203,598"}},{"$f":"BP19/Inputs!B19/12","v":{"v":203528.97121787464,"d":"$203,529"}},{"$f":"BQ19/Inputs!B19/12","v":{"v":203459.80277522167,"d":"$203,460"}},{"$f":"BR19/Inputs!B19/12","v":{"v":203390.86108401697,"d":"$203,391"}},{"$f":"BS19/Inputs!B19/12","v":{"v":203322.11382846846,"d":"$203,322"}},{"$f":"BT19/Inputs!B19/12","v":{"v":203252.52955165374,"d":"$203,253"}},{"$f":"BU19/Inputs!B19/12","v":{"v":203182.5562066946,"d":"$203,183"}},{"$f":"BV19/Inputs!B19/12","v":{"v":203112.85599649756,"d":"$203,113"}},{"$f":"BW19/Inputs!B19/12","v":{"v":203042.37831447416,"d":"$203,042"}},{"$f":"BX19/Inputs!B19/12","v":{"v":202971.4612874554,"d":"$202,971"}},{"$f":"BY19/Inputs!B19/12","v":{"v":202900.2546270437,"d":"$202,900"}},{"$f":"SUM(BO20:BZ20)","v":{"v":2439429.0337503054,"d":"$2,439,429"}},{"$f":"BZ19/Inputs!B19/12","v":{"v":202829.21013603604,"d":"$202,829"}},{"$f":"CB19/Inputs!B19/12","v":{"v":202758.3653174625,"d":"$202,758"}},{"$f":"CC19/Inputs!B19/12","v":{"v":202687.56819337944,"d":"$202,688"}},{"$f":"CD19/Inputs!B19/12","v":{"v":202616.35846099487,"d":"$202,616"}},{"$f":"CE19/Inputs!B19/12","v":{"v":202544.8308276348,"d":"$202,545"}},{"$f":"CF19/Inputs!B19/12","v":{"v":202472.9225569832,"d":"$202,473"}},{"$f":"CG19/Inputs!B19/12","v":{"v":202400.46758759615,"d":"$202,400"}},{"$f":"CH19/Inputs!B19/12","v":{"v":202327.77946718127,"d":"$202,328"}},{"$f":"CI19/Inputs!B19/12","v":{"v":202255.4626077402,"d":"$202,255"}},{"$f":"CJ19/Inputs!B19/12","v":{"v":202182.57797909368,"d":"$202,183"}},{"$f":"CK19/Inputs!B19/12","v":{"v":202109.0698808004,"d":"$202,109"}},{"$f":"CL19/Inputs!B19/12","v":{"v":202035.4106650924,"d":"$202,035"}},{"$f":"SUM(CB20:CM20)","v":{"v":2429220.023679995,"d":"$2,429,220"}},{"$f":"CM19/Inputs!B19/12","v":{"v":201962.1060635601,"d":"$201,962"}},{"$f":"CO19/Inputs!B19/12","v":{"v":201888.16022394915,"d":"$201,888"}},{"$f":"CP19/Inputs!B19/12","v":{"v":201814.1485074658,"d":"$201,814"}},{"$f":"CQ19/Inputs!B19/12","v":{"v":201740.03586520127,"d":"$201,740"}},{"$f":"CR19/Inputs!B19/12","v":{"v":201665.29876419777,"d":"$201,665"}},{"$f":"CS19/Inputs!B19/12","v":{"v":201590.8568559616,"d":"$201,591"}},{"$f":"CT19/Inputs!B19/12","v":{"v":201515.87445566175,"d":"$201,516"}},{"$f":"CU19/Inputs!B19/12","v":{"v":201440.4778167808,"d":"$201,440"}},{"$f":"CV19/Inputs!B19/12","v":{"v":201365.0530455108,"d":"$201,365"}},{"$f":"CW19/Inputs!B19/12","v":{"v":201289.4928526285,"d":"$201,289"}},{"$f":"CX19/Inputs!B19/12","v":{"v":201213.61012020273,"d":"$201,214"}},{"$f":"CY19/Inputs!B19/12","v":{"v":201137.86984525193,"d":"$201,138"}},{"$f":"SUM(CO20:CZ20)","v":{"v":2418622.984416372,"d":"$2,418,623"}},{"$f":"CZ19/Inputs!B19/12","v":{"v":201061.7464800777,"d":"$201,062"}},{"$f":"DB19/Inputs!B19/12","v":{"v":200985.39282353132,"d":"$200,985"}},{"$f":"DC19/Inputs!B19/12","v":{"v":200908.27000555617,"d":"$200,908"}},{"$f":"DD19/Inputs!B19/12","v":{"v":200831.1916333303,"d":"$200,831"}},{"$f":"DE19/Inputs!B19/12","v":{"v":200753.95971326457,"d":"$200,754"}},{"$f":"DF19/Inputs!B19/12","v":{"v":200676.67433058596,"d":"$200,677"}},{"$f":"DG19/Inputs!B19/12","v":{"v":200598.9727467522,"d":"$200,599"}},{"$f":"DH19/Inputs!B19/12","v":{"v":200520.78375211253,"d":"$200,521"}},{"$f":"DI19/Inputs!B19/12","v":{"v":200442.79359044484,"d":"$200,443"}},{"$f":"DJ19/Inputs!B19/12","v":{"v":200365.27361739465,"d":"$200,365"}},{"$f":"DK19/Inputs!B19/12","v":{"v":200287.61327610572,"d":"$200,288"}},{"$f":"DL19/Inputs!B19/12","v":{"v":200209.46140095836,"d":"$200,209"}},{"$f":"SUM(DB20:DM20)","v":{"v":2407642.133370114,"d":"$2,407,642"}},{"$f":"DM19/Inputs!B19/12","v":{"v":200131.0936016552,"d":"$200,131"}},{"$f":"DO19/Inputs!B19/12","v":{"v":200052.20084124082,"d":"$200,052"}},{"$f":"DP19/Inputs!B19/12","v":{"v":199973.19710686212,"d":"$199,973"}},{"$f":"DQ19/Inputs!B19/12","v":{"v":199893.8798673098,"d":"$199,894"}},{"$f":"DR19/Inputs!B19/12","v":{"v":199814.43252831907,"d":"$199,814"}},{"$f":"DS19/Inputs!B19/12","v":{"v":199735.434699044,"d":"$199,735"}},{"$f":"DT19/Inputs!B19/12","v":{"v":199656.58373291927,"d":"$199,657"}},{"$f":"DU19/Inputs!B19/12","v":{"v":199577.80417416999,"d":"$199,578"}},{"$f":"DV19/Inputs!B19/12","v":{"v":199499.28930420268,"d":"$199,499"}},{"$f":"DW19/Inputs!B19/12","v":{"v":199420.35666008887,"d":"$199,420"}},{"$f":"DX19/Inputs!B19/12","v":{"v":199341.35269547868,"d":"$199,341"}},{"$f":"DY19/Inputs!B19/12","v":{"v":199262.5356216119,"d":"$199,263"}},{"$f":"SUM(DO20:DZ20)","v":{"v":2396358.1608329024,"d":"$2,396,358"}},{"$f":"DZ19/Inputs!B19/12","v":{"v":199183.40403968873,"d":"$199,183"}},{"$f":"EB19/Inputs!B19/12","v":{"v":199104.15347511915,"d":"$199,104"}},{"$f":"EC19/Inputs!B19/12","v":{"v":199024.45835869174,"d":"$199,024"}},{"$f":"ED19/Inputs!B19/12","v":{"v":198944.642668796,"d":"$198,945"}},{"$f":"EE19/Inputs!B19/12","v":{"v":198865.1611412319,"d":"$198,865"}},{"$f":"EF19/Inputs!B19/12","v":{"v":198785.2898911004,"d":"$198,785"}},{"$f":"EG19/Inputs!B19/12","v":{"v":198705.39300533722,"d":"$198,705"}},{"$f":"EH19/Inputs!B19/12","v":{"v":198625.45004152574,"d":"$198,625"}},{"$f":"EI19/Inputs!B19/12","v":{"v":198545.80261748374,"d":"$198,546"}},{"$f":"EJ19/Inputs!B19/12","v":{"v":198465.54076051174,"d":"$198,466"}},{"$f":"EK19/Inputs!B19/12","v":{"v":198384.8254955483,"d":"$198,385"}},{"$f":"EL19/Inputs!B19/12","v":{"v":198303.8334662599,"d":"$198,304"}},{"$f":"SUM(EB20:EM20)","v":{"v":2384937.9549612943,"d":"$2,384,938"}}]
[{"$f":"Labels!B19","v":"Capital Investment"},{"$f":"B20+(B22-B19)/Inputs!B22/12","v":{"v":206222.0144162289,"d":"$206,222"}},{"$f":"C20+(C22-C19)/Inputs!B22/12","v":{"v":205758.1519488797,"d":"$205,758"}},{"$f":"D20+(D22-D19)/Inputs!B22/12","v":{"v":205326.71319687855,"d":"$205,327"}},{"$f":"E20+(E22-E19)/Inputs!B22/12","v":{"v":205032.57559577702,"d":"$205,033"}},{"$f":"F20+(F22-F19)/Inputs!B22/12","v":{"v":204572.47953093267,"d":"$204,572"}},{"$f":"G20+(G22-G19)/Inputs!B22/12","v":{"v":204183.6164385158,"d":"$204,184"}},{"$f":"H20+(H22-H19)/Inputs!B22/12","v":{"v":203794.08270129297,"d":"$203,794"}},{"$f":"I20+(I22-I19)/Inputs!B22/12","v":{"v":203455.4140650511,"d":"$203,455"}},{"$f":"J20+(J22-J19)/Inputs!B22/12","v":{"v":203164.79951249826,"d":"$203,165"}},{"$f":"K20+(K22-K19)/Inputs!B22/12","v":{"v":202957.32425385673,"d":"$202,957"}},{"$f":"L20+(L22-L19)/Inputs!B22/12","v":{"v":202585.3277549185,"d":"$202,585"}},{"$f":"M20+(M22-M19)/Inputs!B22/12","v":{"v":202233.8503599494,"d":"$202,234"}},{"$f":"SUM(B21:M21)","v":{"v":2449286.3497747798,"d":"$2,449,286"}},{"$f":"O20+(O22-O19)/Inputs!B22/12","v":{"v":201928.54728600165,"d":"$201,929"}},{"$f":"P20+(P22-P19)/Inputs!B22/12","v":{"v":201611.43982228526,"d":"$201,611"}},{"$f":"Q20+(Q22-Q19)/Inputs!B22/12","v":{"v":201327.75861772423,"d":"$201,328"}},{"$f":"R20+(R22-R19)/Inputs!B22/12","v":{"v":201026.18077717588,"d":"$201,026"}},{"$f":"S20+(S22-S19)/Inputs!B22/12","v":{"v":200759.94081423516,"d":"$200,760"}},{"$f":"T20+(T22-T19)/Inputs!B22/12","v":{"v":200406.01475082358,"d":"$200,406"}},{"$f":"U20+(U22-U19)/Inputs!B22/12","v":{"v":200253.16814345348,"d":"$200,253"}},{"$f":"V20+(V22-V19)/Inputs!B22/12","v":{"v":200014.25111800083,"d":"$200,014"}},{"$f":"W20+(W22-W19)/Inputs!B22/12","v":{"v":199745.73555401768,"d":"$199,746"}},{"$f":"X20+(X22-X19)/Inputs!B22/12","v":{"v":199507.02597000977,"d":"$199,507"}},{"$f":"Y20+(Y22-Y19)/Inputs!B22/12","v":{"v":199189.82006333265,"d":"$199,190"}},{"$f":"Z20+(Z22-Z19)/Inputs!B22/12","v":{"v":199052.54943476414,"d":"$199,053"}},{"$f":"SUM(O21:Z21)","v":{"v":2404822.4323518244,"d":"$2,404,822"}},{"$f":"AB20+(AB22-AB19)/Inputs!B22/12","v":{"v":198782.0051631406,"d":"$198,782"}},{"$f":"AC20+(AC22-AC19)/Inputs!B22/12","v":{"v":198575.837870117,"d":"$198,576"}},{"$f":"AD20+(AD22-AD19)/Inputs!B22/12","v":{"v":198340.31930251516,"d":"$198,340"}},{"$f":"AE20+(AE22-AE19)/Inputs!B22/12","v":{"v":198208.24980518897,"d":"$198,208"}},{"$f":"AF20+(AF22-AF19)/Inputs!B22/12","v":{"v":197868.5952032566,"d":"$197,869"}},{"$f":"AG20+(AG22-AG19)/Inputs!B22/12","v":{"v":197555.91634640927,"d":"$197,556"}},{"$f":"AH20+(AH22-AH19)/Inputs!B22/12","v":{"v":197309.02874282454,"d":"$197,309"}},{"$f":"AI20+(AI22-AI19)/Inputs!B22/12","v":{"v":197124.141782844,"d":"$197,124"}},{"$f":"AJ20+(AJ22-AJ19)/Inputs!B22/12","v":{"v":196850.11132322229,"d":"$196,850"}},{"$f":"AK20+(AK22-AK19)/Inputs!B22/12","v":{"v":196661.42698824155,"d":"$196,661"}},{"$f":"AL20+(AL22-AL19)/Inputs!B22/12","v":{"v":196392.9272555704,"d":"$196,393"}},{"$f":"AM20+(AM22-AM19)/Inputs!B22/12","v":{"v":196180.06063797782,"d":"$196,180"}},{"$f":"SUM(AB21:AM21)","v":{"v":2369848.620421308,"d":"$2,369,849"}},{"$f":"AO20+(AO22-AO19)/Inputs!B22/12","v":{"v":195927.30109691652,"d":"$195,927"}},{"$f":"AP20+(AP22-AP19)/Inputs!B22/12","v":{"v":195740.091383251,"d":"$195,740"}},{"$f":"AQ20+(AQ22-AQ19)/Inputs!B22/12","v":{"v":195561.84297880935,"d":"$195,562"}},{"$f":"AR20+(AR22-AR19)/Inputs!B22/12","v":{"v":195355.31616487534,"d":"$195,355"}},{"$f":"AS20+(AS22-AS19)/Inputs!B22/12","v":{"v":195205.84258662656,"d":"$195,206"}},{"$f":"AT20+(AT22-AT19)/Inputs!B22/12","v":{"v":195068.946090162,"d":"$195,069"}},{"$f":"AU20+(AU22-AU19)/Inputs!B22/12","v":{"v":194860.60698504437,"d":"$194,861"}},{"$f":"AV20+(AV22-AV19)/Inputs!B22/12","v":{"v":194712.58572200383,"d":"$194,713"}},{"$f":"AW20+(AW22-AW19)/Inputs!B22/12","v":{"v":194547.26532534268,"d":"$194,547"}},{"$f":"AX20+(AX22-AX19)/Inputs!B22/12","v":{"v":194363.08538958716,"d":"$194,363"}},{"$f":"AY20+(AY22-AY19)/Inputs!B22/12","v":{"v":194182.68690957833,"d":"$194,183"}},{"$f":"AZ20+(AZ22-AZ19)/Inputs!B22/12","v":{"v":194036.2314237714,"d":"$194,036"}},{"$f":"SUM(AO21:AZ21)","v":{"v":2339561.802055969,"d":"$2,339,562"}},{"$f":"BB20+(BB22-BB19)/Inputs!B22/12","v":{"v":193861.31222406356,"d":"$193,861"}},{"$f":"BC20+(BC22-BC19)/Inputs!B22/12","v":{"v":193661.11476937032,"d":"$193,661"}},{"$f":"BD20+(BD22-BD19)/Inputs!B22/12","v":{"v":193426.74028230325,"d":"$193,427"}},{"$f":"BE20+(BE22-BE19)/Inputs!B22/12","v":{"v":193164.85033548705,"d":"$193,165"}},{"$f":"BF20+(BF22-BF19)/Inputs!B22/12","v":{"v":193047.71502261978,"d":"$193,048"}},{"$f":"BG20+(BG22-BG19)/Inputs!B22/12","v":{"v":192870.7081346487,"d":"$192,871"}},{"$f":"BH20+(BH22-BH19)/Inputs!B22/12","v":{"v":192742.9276099286,"d":"$192,743"}},{"$f":"BI20+(BI22-BI19)/Inputs!B22/12","v":{"v":192517.16853630752,"d":"$192,517"}},{"$f":"BJ20+(BJ22-BJ19)/Inputs!B22/12","v":{"v":192397.48766823256,"d":"$192,397"}},{"$f":"BK20+(BK22-BK19)/Inputs!B22/12","v":{"v":192334.0939363411,"d":"$192,334"}},{"$f":"BL20+(BL22-BL19)/Inputs!B22/12","v":{"v":192221.1374905807,"d":"$192,221"}},{"$f":"BM20+(BM22-BM19)/Inputs!B22/12","v":{"v":192160.3495368662,"d":"$192,160"}},{"$f":"SUM(BB21:BM21)","v":{"v":2314405.6055467497,"d":"$2,314,406"}},{"$f":"BO20+(BO22-BO19)/Inputs!B22/12","v":{"v":192041.1742146514,"d":"$192,041"}},{"$f":"BP20+(BP22-BP19)/Inputs!B22/12","v":{"v":191977.8746476171,"d":"$191,978"}},{"$f":"BQ20+(BQ22-BQ19)/Inputs!B22/12","v":{"v":191946.7670954857,"d":"$191,947"}},{"$f":"BR20+(BR22-BR19)/Inputs!B22/12","v":{"v":191910.2638430704,"d":"$191,910"}},{"$f":"BS20+(BS22-BS19)/Inputs!B22/12","v":{"v":191700.70257913973,"d":"$191,701"}},{"$f":"BT20+(BT22-BT19)/Inputs!B22/12","v":{"v":191566.5918753375,"d":"$191,567"}},{"$f":"BU20+(BU22-BU19)/Inputs!B22/12","v":{"v":191542.89423854518,"d":"$191,543"}},{"$f":"BV20+(BV22-BV19)/Inputs!B22/12","v":{"v":191342.30562676748,"d":"$191,342"}},{"$f":"BW20+(BW22-BW19)/Inputs!B22/12","v":{"v":191198.79545735128,"d":"$191,199"}},{"$f":"BX20+(BX22-BX19)/Inputs!B22/12","v":{"v":191079.6593653067,"d":"$191,080"}},{"$f":"BY20+(BY22-BY19)/Inputs!B22/12","v":{"v":191035.98679816967,"d":"$191,036"}},{"$f":"BZ20+(BZ22-BZ19)/Inputs!B22/12","v":{"v":190998.32510668837,"d":"$190,998"}},{"$f":"SUM(BO21:BZ21)","v":{"v":2298341.34084813,"d":"$2,298,341"}},{"$f":"CB20+(CB22-CB19)/Inputs!B22/12","v":{"v":190935.29329008004,"d":"$190,935"}},{"$f":"CC20+(CC22-CC19)/Inputs!B22/12","v":{"v":190795.1302768587,"d":"$190,795"}},{"$f":"CD20+(CD22-CD19)/Inputs!B22/12","v":{"v":190670.92578888795,"d":"$190,671"}},{"$f":"CE20+(CE22-CE19)/Inputs!B22/12","v":{"v":190535.76899151652,"d":"$190,536"}},{"$f":"CF20+(CF22-CF19)/Inputs!B22/12","v":{"v":190372.39597061713,"d":"$190,372"}},{"$f":"CG20+(CG22-CG19)/Inputs!B22/12","v":{"v":190261.31832727592,"d":"$190,261"}},{"$f":"CH20+(CH22-CH19)/Inputs!B22/12","v":{"v":190251.2352014979,"d":"$190,251"}},{"$f":"CI20+(CI22-CI19)/Inputs!B22/12","v":{"v":190083.16185456852,"d":"$190,083"}},{"$f":"CJ20+(CJ22-CJ19)/Inputs!B22/12","v":{"v":189906.10209447297,"d":"$189,906"}},{"$f":"CK20+(CK22-CK19)/Inputs!B22/12","v":{"v":189807.8297401543,"d":"$189,808"}},{"$f":"CL20+(CL22-CL19)/Inputs!B22/12","v":{"v":189793.8968233705,"d":"$189,794"}},{"$f":"CM20+(CM22-CM19)/Inputs!B22/12","v":{"v":189612.50961045636,"d":"$189,613"}},{"$f":"SUM(CB21:CM21)","v":{"v":2283025.5679697567,"d":"$2,283,026"}},{"$f":"CO20+(CO22-CO19)/Inputs!B22/12","v":{"v":189528.13769435076,"d":"$189,528"}},{"$f":"CP20+(CP22-CP19)/Inputs!B22/12","v":{"v":189437.23632350808,"d":"$189,437"}},{"$f":"CQ20+(CQ22-CQ19)/Inputs!B22/12","v":{"v":189258.31553888673,"d":"$189,258"}},{"$f":"CR20+(CR22-CR19)/Inputs!B22/12","v":{"v":189233.79528153167,"d":"$189,234"}},{"$f":"CS20+(CS22-CS19)/Inputs!B22/12","v":{"v":189068.25551381934,"d":"$189,068"}},{"$f":"CT20+(CT22-CT19)/Inputs!B22/12","v":{"v":188924.22152396105,"d":"$188,924"}},{"$f":"CU20+(CU22-CU19)/Inputs!B22/12","v":{"v":188844.51288229643,"d":"$188,845"}},{"$f":"CV20+(CV22-CV19)/Inputs!B22/12","v":{"v":188746.36541255892,"d":"$188,746"}},{"$f":"CW20+(CW22-CW19)/Inputs!B22/12","v":{"v":188616.75399798018,"d":"$188,617"}},{"$f":"CX20+(CX22-CX19)/Inputs!B22/12","v":{"v":188565.1266608994,"d":"$188,565"}},{"$f":"CY20+(CY22-CY19)/Inputs!B22/12","v":{"v":188424.8847709232,"d":"$188,425"}},{"$f":"CZ20+(CZ22-CZ19)/Inputs!B22/12","v":{"v":188310.45554546625,"d":"$188,310"}},{"$f":"SUM(CO21:CZ21)","v":{"v":2266958.061146182,"d":"$2,266,958"}},{"$f":"DB20+(DB22-DB19)/Inputs!B22/12","v":{"v":188105.11306025367,"d":"$188,105"}},{"$f":"DC20+(DC22-DC19)/Inputs!B22/12","v":{"v":188036.22628958485,"d":"$188,036"}},{"$f":"DD20+(DD22-DD19)/Inputs!B22/12","v":{"v":187933.3074345058,"d":"$187,933"}},{"$f":"DE20+(DE22-DE19)/Inputs!B22/12","v":{"v":187847.2473433273,"d":"$187,847"}},{"$f":"DF20+(DF22-DF19)/Inputs!B22/12","v":{"v":187700.0936291998,"d":"$187,700"}},{"$f":"DG20+(DG22-DG19)/Inputs!B22/12","v":{"v":187540.92323112054,"d":"$187,541"}},{"$f":"DH20+(DH22-DH19)/Inputs!B22/12","v":{"v":187496.62558658433,"d":"$187,497"}},{"$f":"DI20+(DI22-DI19)/Inputs!B22/12","v":{"v":187497.42827968256,"d":"$187,497"}},{"$f":"DJ20+(DJ22-DJ19)/Inputs!B22/12","v":{"v":187395.85625390094,"d":"$187,396"}},{"$f":"DK20+(DK22-DK19)/Inputs!B22/12","v":{"v":187235.7585926336,"d":"$187,236"}},{"$f":"DL20+(DL22-DL19)/Inputs!B22/12","v":{"v":187121.8229931729,"d":"$187,122"}},{"$f":"DM20+(DM22-DM19)/Inputs!B22/12","v":{"v":186955.4776513395,"d":"$186,955"}},{"$f":"SUM(DB21:DM21)","v":{"v":2250865.8803453054,"d":"$2,250,866"}},{"$f":"DO20+(DO22-DO19)/Inputs!B22/12","v":{"v":186858.46622603622,"d":"$186,858"}},{"$f":"DP20+(DP22-DP19)/Inputs!B22/12","v":{"v":186726.90459645056,"d":"$186,727"}},{"$f":"DQ20+(DQ22-DQ19)/Inputs!B22/12","v":{"v":186626.04415641652,"d":"$186,626"}},{"$f":"DR20+(DR22-DR19)/Inputs!B22/12","v":{"v":186622.24454910358,"d":"$186,622"}},{"$f":"DS20+(DS22-DS19)/Inputs!B22/12","v":{"v":186567.47021935842,"d":"$186,567"}},{"$f":"DT20+(DT22-DT19)/Inputs!B22/12","v":{"v":186500.46882916786,"d":"$186,500"}},{"$f":"DU20+(DU22-DU19)/Inputs!B22/12","v":{"v":186466.08557841452,"d":"$186,466"}},{"$f":"DV20+(DV22-DV19)/Inputs!B22/12","v":{"v":186317.11996304977,"d":"$186,317"}},{"$f":"DW20+(DW22-DW19)/Inputs!B22/12","v":{"v":186226.6232496836,"d":"$186,227"}},{"$f":"DX20+(DX22-DX19)/Inputs!B22/12","v":{"v":186179.08825047547,"d":"$186,179"}},{"$f":"DY20+(DY22-DY19)/Inputs!B22/12","v":{"v":186047.24693238977,"d":"$186,047"}},{"$f":"DZ20+(DZ22-DZ19)/Inputs!B22/12","v":{"v":185948.44077392333,"d":"$185,948"}},{"$f":"SUM(DO21:DZ21)","v":{"v":2237086.2033244697,"d":"$2,237,086"}},{"$f":"EB20+(EB22-EB19)/Inputs!B22/12","v":{"v":185794.62447988606,"d":"$185,795"}},{"$f":"EC20+(EC22-EC19)/Inputs!B22/12","v":{"v":185695.11757263463,"d":"$185,695"}},{"$f":"ED20+(ED22-ED19)/Inputs!B22/12","v":{"v":185671.56172791737,"d":"$185,672"}},{"$f":"EE20+(EE22-EE19)/Inputs!B22/12","v":{"v":185526.27264670824,"d":"$185,526"}},{"$f":"EF20+(EF22-EF19)/Inputs!B22/12","v":{"v":185442.48433300896,"d":"$185,442"}},{"$f":"EG20+(EG22-EG19)/Inputs!B22/12","v":{"v":185354.871970774,"d":"$185,355"}},{"$f":"EH20+(EH22-EH19)/Inputs!B22/12","v":{"v":185324.62576628546,"d":"$185,325"}},{"$f":"EI20+(EI22-EI19)/Inputs!B22/12","v":{"v":185141.45807022377,"d":"$185,141"}},{"$f":"EJ20+(EJ22-EJ19)/Inputs!B22/12","v":{"v":184985.63810363482,"d":"$184,986"}},{"$f":"EK20+(EK22-EK19)/Inputs!B22/12","v":{"v":184858.87984005953,"d":"$184,859"}},{"$f":"EL20+(EL22-EL19)/Inputs!B22/12","v":{"v":184773.2269767833,"d":"$184,773"}},{"$f":"EM20+(EM22-EM19)/Inputs!B22/12","v":{"v":184690.09993773082,"d":"$184,690"}},{"$f":"SUM(EB21:EM21)","v":{"v":2223258.8614256466,"d":"$2,223,259"}}]
[{"$f":"Labels!B14","v":"Desired Capital"},{"$f":"Inputs!B20*B10/(1/Inputs!B19/12+'(Other Computations)'!B144)","v":{"v":34645298.42192645,"d":"$34,645,298"}},{"$f":"Inputs!B20*C10/(1/Inputs!B19/12+'(Other Computations)'!B144)","v":{"v":34628599.37310188,"d":"$34,628,599"}},{"$f":"Inputs!B20*D10/(1/Inputs!B19/12+'(Other Computations)'!B144)","v":{"v":34612603.71556249,"d":"$34,612,604"}},{"$f":"Inputs!B20*E10/(1/Inputs!B19/12+'(Other Computations)'!B144)","v":{"v":34601218.85980364,"d":"$34,601,219"}},{"$f":"Inputs!B20*F10/(1/Inputs!B19/12+'(Other Computations)'!B144)","v":{"v":34583660.57399619,"d":"$34,583,661"}},{"$f":"Inputs!B20*G10/(1/Inputs!B19/12+'(Other Computations)'!B144)","v":{"v":34568274.34612986,"d":"$34,568,274"}},{"$f":"Inputs!B20*H10/(1/Inputs!B19/12+'(Other Computations)'!B144)","v":{"v":34552579.62556409,"d":"$34,552,580"}},{"$f":"Inputs!B20*I10/(1/Inputs!B19/12+'(Other Computations)'!B144)","v":{"v":34538418.0995861,"d":"$34,538,418"}},{"$f":"Inputs!B20*J10/(1/Inputs!B19/12+'(Other Computations)'!B144)","v":{"v":34525741.27294041,"d":"$34,525,741"}},{"$f":"Inputs!B20*K10/(1/Inputs!B19/12+'(Other Computations)'!B144)","v":{"v":34515851.14112047,"d":"$34,515,851"}},{"$f":"Inputs!B20*L10/(1/Inputs!B19/12+'(Other Computations)'!B144)","v":{"v":34499906.22669267,"d":"$34,499,906"}},{"$f":"Inputs!B20*M10/(1/Inputs!B19/12+'(Other Computations)'!B144)","v":{"v":34484386.873341076,"d":"$34,484,387"}},{"$f":"M22","v":{"v":34484386.873341076,"d":"$34,484,387"}},{"$f":"Inputs!B20*O10/(1/Inputs!B19/12+'(Other Computations)'!B144)","v":{"v":34470273.22835621,"d":"$34,470,273"}},{"$f":"Inputs!B20*P10/(1/Inputs!B19/12+'(Other Computations)'!B144)","v":{"v":34455521.69936901,"d":"$34,455,522"}},{"$f":"Inputs!B20*Q10/(1/Inputs!B19/12+'(Other Computations)'!B144)","v":{"v":34441740.41803927,"d":"$34,441,740"}},{"$f":"Inputs!B20*R10/(1/Inputs!B19/12+'(Other Computations)'!B144)","v":{"v":34427118.98332958,"d":"$34,427,119"}},{"$f":"Inputs!B20*S10/(1/Inputs!B19/12+'(Other Computations)'!B144)","v":{"v":34413550.165809706,"d":"$34,413,550"}},{"$f":"Inputs!B20*T10/(1/Inputs!B19/12+'(Other Computations)'!B144)","v":{"v":34396645.441059396,"d":"$34,396,645"}},{"$f":"Inputs!B20*U10/(1/Inputs!B19/12+'(Other Computations)'!B144)","v":{"v":34386706.417434126,"d":"$34,386,706"}},{"$f":"Inputs!B20*V10/(1/Inputs!B19/12+'(Other Computations)'!B144)","v":{"v":34373616.63551212,"d":"$34,373,617"}},{"$f":"Inputs!B20*W10/(1/Inputs!B19/12+'(Other Computations)'!B144)","v":{"v":34359281.55003248,"d":"$34,359,282"}},{"$f":"Inputs!B20*X10/(1/Inputs!B19/12+'(Other Computations)'!B144)","v":{"v":34345828.87963655,"d":"$34,345,829"}},{"$f":"Inputs!B20*Y10/(1/Inputs!B19/12+'(Other Computations)'!B144)","v":{"v":34329396.95993028,"d":"$34,329,397"}},{"$f":"Inputs!B20*Z10/(1/Inputs!B19/12+'(Other Computations)'!B144)","v":{"v":34319205.57974826,"d":"$34,319,206"}},{"$f":"Z22","v":{"v":34319205.57974826,"d":"$34,319,206"}},{"$f":"Inputs!B20*AB10/(1/Inputs!B19/12+'(Other Computations)'!B144)","v":{"v":34304176.88683356,"d":"$34,304,177"}},{"$f":"Inputs!B20*AC10/(1/Inputs!B19/12+'(Other Computations)'!B144)","v":{"v":34291255.88385411,"d":"$34,291,256"}},{"$f":"Inputs!B20*AD10/(1/Inputs!B19/12+'(Other Computations)'!B144)","v":{"v":34277161.524202265,"d":"$34,277,162"}},{"$f":"Inputs!B20*AE10/(1/Inputs!B19/12+'(Other Computations)'!B144)","v":{"v":34266632.723244764,"d":"$34,266,633"}},{"$f":"Inputs!B20*AF10/(1/Inputs!B19/12+'(Other Computations)'!B144)","v":{"v":34248582.68402204,"d":"$34,248,583"}},{"$f":"Inputs!B20*AG10/(1/Inputs!B19/12+'(Other Computations)'!B144)","v":{"v":34231226.78845472,"d":"$34,231,227"}},{"$f":"Inputs!B20*AH10/(1/Inputs!B19/12+'(Other Computations)'!B144)","v":{"v":34216034.13985766,"d":"$34,216,034"}},{"$f":"Inputs!B20*AI10/(1/Inputs!B19/12+'(Other Computations)'!B144)","v":{"v":34202929.93572896,"d":"$34,202,930"}},{"$f":"Inputs!B20*AJ10/(1/Inputs!B19/12+'(Other Computations)'!B144)","v":{"v":34186522.11108531,"d":"$34,186,522"}},{"$f":"Inputs!B20*AK10/(1/Inputs!B19/12+'(Other Computations)'!B144)","v":{"v":34172990.71768417,"d":"$34,172,991"}},{"$f":"Inputs!B20*AL10/(1/Inputs!B19/12+'(Other Computations)'!B144)","v":{"v":34156494.95125408,"d":"$34,156,495"}},{"$f":"Inputs!B20*AM10/(1/Inputs!B19/12+'(Other Computations)'!B144)","v":{"v":34141814.021242484,"d":"$34,141,814"}},{"$f":"AM22","v":{"v":34141814.021242484,"d":"$34,141,814"}},{"$f":"Inputs!B20*AO10/(1/Inputs!B19/12+'(Other Computations)'!B144)","v":{"v":34125582.26845431,"d":"$34,125,582"}},{"$f":"Inputs!B20*AP10/(1/Inputs!B19/12+'(Other Computations)'!B144)","v":{"v":34111544.9363995,"d":"$34,111,545"}},{"$f":"Inputs!B20*AQ10/(1/Inputs!B19/12+'(Other Computations)'!B144)","v":{"v":34097739.61933919,"d":"$34,097,740"}},{"$f":"Inputs!B20*AR10/(1/Inputs!B19/12+'(Other Computations)'!B144)","v":{"v":34082821.586680666,"d":"$34,082,822"}},{"$f":"Inputs!B20*AS10/(1/Inputs!B19/12+'(Other Computations)'!B144)","v":{"v":34069833.118199185,"d":"$34,069,833"}},{"$f":"Inputs!B20*AT10/(1/Inputs!B19/12+'(Other Computations)'!B144)","v":{"v":34057236.748897135,"d":"$34,057,237"}},{"$f":"Inputs!B20*AU10/(1/Inputs!B19/12+'(Other Computations)'!B144)","v":{"v":34042008.861499496,"d":"$34,042,009"}},{"$f":"Inputs!B20*AV10/(1/Inputs!B19/12+'(Other Computations)'!B144)","v":{"v":34028819.05570022,"d":"$34,028,819"}},{"$f":"Inputs!B20*AW10/(1/Inputs!B19/12+'(Other Computations)'!B144)","v":{"v":34014949.10201445,"d":"$34,014,949"}},{"$f":"Inputs!B20*AX10/(1/Inputs!B19/12+'(Other Computations)'!B144)","v":{"v":34000313.39527343,"d":"$34,000,313"}},{"$f":"Inputs!B20*AY10/(1/Inputs!B19/12+'(Other Computations)'!B144)","v":{"v":33985712.20025166,"d":"$33,985,712"}},{"$f":"Inputs!B20*AZ10/(1/Inputs!B19/12+'(Other Computations)'!B144)","v":{"v":33972239.67184318,"d":"$33,972,240"}},{"$f":"AZ22","v":{"v":33972239.67184318,"d":"$33,972,240"}},{"$f":"Inputs!B20*BB10/(1/Inputs!B19/12+'(Other Computations)'!B144)","v":{"v":33957682.90612359,"d":"$33,957,683"}},{"$f":"Inputs!B20*BC10/(1/Inputs!B19/12+'(Other Computations)'!B144)","v":{"v":33942121.39764629,"d":"$33,942,121"}},{"$f":"Inputs!B20*BD10/(1/Inputs!B19/12+'(Other Computations)'!B144)","v":{"v":33925215.96596385,"d":"$33,925,216"}},{"$f":"Inputs!B20*BE10/(1/Inputs!B19/12+'(Other Computations)'!B144)","v":{"v":33907178.231270015,"d":"$33,907,178"}},{"$f":"Inputs!B20*BF10/(1/Inputs!B19/12+'(Other Computations)'!B144)","v":{"v":33894190.40102107,"d":"$33,894,190"}},{"$f":"Inputs!B20*BG10/(1/Inputs!B19/12+'(Other Computations)'!B144)","v":{"v":33879037.426223926,"d":"$33,879,037"}},{"$f":"Inputs!B20*BH10/(1/Inputs!B19/12+'(Other Computations)'!B144)","v":{"v":33865556.90212924,"d":"$33,865,557"}},{"$f":"Inputs!B20*BI10/(1/Inputs!B19/12+'(Other Computations)'!B144)","v":{"v":33848511.566027954,"d":"$33,848,512"}},{"$f":"Inputs!B20*BJ10/(1/Inputs!B19/12+'(Other Computations)'!B144)","v":{"v":33835139.52746756,"d":"$33,835,140"}},{"$f":"Inputs!B20*BK10/(1/Inputs!B19/12+'(Other Computations)'!B144)","v":{"v":33823775.60527562,"d":"$33,823,776"}},{"$f":"Inputs!B20*BL10/(1/Inputs!B19/12+'(Other Computations)'!B144)","v":{"v":33810643.62712014,"d":"$33,810,644"}},{"$f":"Inputs!B20*BM10/(1/Inputs!B19/12+'(Other Computations)'!B144)","v":{"v":33799344.40062655,"d":"$33,799,344"}},{"$f":"BM22","v":{"v":33799344.40062655,"d":"$33,799,344"}},{"$f":"Inputs!B20*BO10/(1/Inputs!B19/12+'(Other Computations)'!B144)","v":{"v":33785960.60744987,"d":"$33,785,961"}},{"$f":"Inputs!B20*BP10/(1/Inputs!B19/12+'(Other Computations)'!B144)","v":{"v":33774536.423438035,"d":"$33,774,536"}},{"$f":"Inputs!B20*BQ10/(1/Inputs!B19/12+'(Other Computations)'!B144)","v":{"v":33764287.51783124,"d":"$33,764,288"}},{"$f":"Inputs!B20*BR10/(1/Inputs!B19/12+'(Other Computations)'!B144)","v":{"v":33753881.260557406,"d":"$33,753,881"}},{"$f":"Inputs!B20*BS10/(1/Inputs!B19/12+'(Other Computations)'!B144)","v":{"v":33737269.41700712,"d":"$33,737,269"}},{"$f":"Inputs!B20*BT10/(1/Inputs!B19/12+'(Other Computations)'!B144)","v":{"v":33723226.17436511,"d":"$33,723,226"}},{"$f":"Inputs!B20*BU10/(1/Inputs!B19/12+'(Other Computations)'!B144)","v":{"v":33713122.57145279,"d":"$33,713,123"}},{"$f":"Inputs!B20*BV10/(1/Inputs!B19/12+'(Other Computations)'!B144)","v":{"v":33696710.78653421,"d":"$33,696,711"}},{"$f":"Inputs!B20*BW10/(1/Inputs!B19/12+'(Other Computations)'!B144)","v":{"v":33682213.37742239,"d":"$33,682,213"}},{"$f":"Inputs!B20*BX10/(1/Inputs!B19/12+'(Other Computations)'!B144)","v":{"v":33668547.61412248,"d":"$33,668,548"}},{"$f":"Inputs!B20*BY10/(1/Inputs!B19/12+'(Other Computations)'!B144)","v":{"v":33657565.695729055,"d":"$33,657,566"}},{"$f":"Inputs!B20*BZ10/(1/Inputs!B19/12+'(Other Computations)'!B144)","v":{"v":33646837.84012126,"d":"$33,646,838"}},{"$f":"BZ22","v":{"v":33646837.84012126,"d":"$33,646,838"}},{"$f":"Inputs!B20*CB10/(1/Inputs!B19/12+'(Other Computations)'!B144)","v":{"v":33635224.366879284,"d":"$33,635,224"}},{"$f":"Inputs!B20*CC10/(1/Inputs!B19/12+'(Other Computations)'!B144)","v":{"v":33620834.99502601,"d":"$33,620,835"}},{"$f":"Inputs!B20*CD10/(1/Inputs!B19/12+'(Other Computations)'!B144)","v":{"v":33606949.094885446,"d":"$33,606,949"}},{"$f":"Inputs!B20*CE10/(1/Inputs!B19/12+'(Other Computations)'!B144)","v":{"v":33592630.35814143,"d":"$33,592,630"}},{"$f":"Inputs!B20*CF10/(1/Inputs!B19/12+'(Other Computations)'!B144)","v":{"v":33577243.33472054,"d":"$33,577,243"}},{"$f":"Inputs!B20*CG10/(1/Inputs!B19/12+'(Other Computations)'!B144)","v":{"v":33563660.80244669,"d":"$33,563,661"}},{"$f":"Inputs!B20*CH10/(1/Inputs!B19/12+'(Other Computations)'!B144)","v":{"v":33553694.584586915,"d":"$33,553,695"}},{"$f":"Inputs!B20*CI10/(1/Inputs!B19/12+'(Other Computations)'!B144)","v":{"v":33538111.484046295,"d":"$33,538,111"}},{"$f":"Inputs!B20*CJ10/(1/Inputs!B19/12+'(Other Computations)'!B144)","v":{"v":33522096.12201012,"d":"$33,522,096"}},{"$f":"Inputs!B20*CK10/(1/Inputs!B19/12+'(Other Computations)'!B144)","v":{"v":33508832.80337265,"d":"$33,508,833"}},{"$f":"Inputs!B20*CL10/(1/Inputs!B19/12+'(Other Computations)'!B144)","v":{"v":33498602.76166805,"d":"$33,498,603"}},{"$f":"Inputs!B20*CM10/(1/Inputs!B19/12+'(Other Computations)'!B144)","v":{"v":33482409.380711198,"d":"$33,482,409"}},{"$f":"CM22","v":{"v":33482409.380711198,"d":"$33,482,409"}},{"$f":"Inputs!B20*CO10/(1/Inputs!B19/12+'(Other Computations)'!B144)","v":{"v":33469588.056331925,"d":"$33,469,588"}},{"$f":"Inputs!B20*CP10/(1/Inputs!B19/12+'(Other Computations)'!B144)","v":{"v":33456543.688838374,"d":"$33,456,544"}},{"$f":"Inputs!B20*CQ10/(1/Inputs!B19/12+'(Other Computations)'!B144)","v":{"v":33440316.038484965,"d":"$33,440,316"}},{"$f":"Inputs!B20*CR10/(1/Inputs!B19/12+'(Other Computations)'!B144)","v":{"v":33429545.53137312,"d":"$33,429,546"}},{"$f":"Inputs!B20*CS10/(1/Inputs!B19/12+'(Other Computations)'!B144)","v":{"v":33413770.39478793,"d":"$33,413,770"}},{"$f":"Inputs!B20*CT10/(1/Inputs!B19/12+'(Other Computations)'!B144)","v":{"v":33398668.03659915,"d":"$33,398,668"}},{"$f":"Inputs!B20*CU10/(1/Inputs!B19/12+'(Other Computations)'!B144)","v":{"v":33385831.256578024,"d":"$33,385,831"}},{"$f":"Inputs!B20*CV10/(1/Inputs!B19/12+'(Other Computations)'!B144)","v":{"v":33372340.865093827,"d":"$33,372,341"}},{"$f":"Inputs!B20*CW10/(1/Inputs!B19/12+'(Other Computations)'!B144)","v":{"v":33357696.033530485,"d":"$33,357,696"}},{"$f":"Inputs!B20*CX10/(1/Inputs!B19/12+'(Other Computations)'!B144)","v":{"v":33345809.31729181,"d":"$33,345,809"}},{"$f":"Inputs!B20*CY10/(1/Inputs!B19/12+'(Other Computations)'!B144)","v":{"v":33330768.021428265,"d":"$33,330,768"}},{"$f":"Inputs!B20*CZ10/(1/Inputs!B19/12+'(Other Computations)'!B144)","v":{"v":33316586.493860766,"d":"$33,316,586"}},{"$f":"CZ22","v":{"v":33316586.493860766,"d":"$33,316,586"}},{"$f":"Inputs!B20*DB10/(1/Inputs!B19/12+'(Other Computations)'!B144)","v":{"v":33299107.1912396,"d":"$33,299,107"}},{"$f":"Inputs!B20*DC10/(1/Inputs!B19/12+'(Other Computations)'!B144)","v":{"v":33286419.365711365,"d":"$33,286,419"}},{"$f":"Inputs!B20*DD10/(1/Inputs!B19/12+'(Other Computations)'!B144)","v":{"v":33272541.54184168,"d":"$33,272,542"}},{"$f":"Inputs!B20*DE10/(1/Inputs!B19/12+'(Other Computations)'!B144)","v":{"v":33259243.237388335,"d":"$33,259,243"}},{"$f":"Inputs!B20*DF10/(1/Inputs!B19/12+'(Other Computations)'!B144)","v":{"v":33243742.108512107,"d":"$33,243,742"}},{"$f":"Inputs!B20*DG10/(1/Inputs!B19/12+'(Other Computations)'!B144)","v":{"v":33227740.381873615,"d":"$33,227,740"}},{"$f":"Inputs!B20*DH10/(1/Inputs!B19/12+'(Other Computations)'!B144)","v":{"v":33215807.17258886,"d":"$33,215,807"}},{"$f":"Inputs!B20*DI10/(1/Inputs!B19/12+'(Other Computations)'!B144)","v":{"v":33205548.526187256,"d":"$33,205,549"}},{"$f":"Inputs!B20*DJ10/(1/Inputs!B19/12+'(Other Computations)'!B144)","v":{"v":33191676.223606724,"d":"$33,191,676"}},{"$f":"Inputs!B20*DK10/(1/Inputs!B19/12+'(Other Computations)'!B144)","v":{"v":33175656.489494365,"d":"$33,175,656"}},{"$f":"Inputs!B20*DL10/(1/Inputs!B19/12+'(Other Computations)'!B144)","v":{"v":33161221.06517542,"d":"$33,161,221"}},{"$f":"Inputs!B20*DM10/(1/Inputs!B19/12+'(Other Computations)'!B144)","v":{"v":33144880.31009179,"d":"$33,144,880"}},{"$f":"DM22","v":{"v":33144880.31009179,"d":"$33,144,880"}},{"$f":"Inputs!B20*DO10/(1/Inputs!B19/12+'(Other Computations)'!B144)","v":{"v":33130955.155806173,"d":"$33,130,955"}},{"$f":"Inputs!B20*DP10/(1/Inputs!B19/12+'(Other Computations)'!B144)","v":{"v":33115786.44914039,"d":"$33,115,786"}},{"$f":"Inputs!B20*DQ10/(1/Inputs!B19/12+'(Other Computations)'!B144)","v":{"v":33101674.311492004,"d":"$33,101,674"}},{"$f":"Inputs!B20*DR10/(1/Inputs!B19/12+'(Other Computations)'!B144)","v":{"v":33091045.79330218,"d":"$33,091,046"}},{"$f":"Inputs!B20*DS10/(1/Inputs!B19/12+'(Other Computations)'!B144)","v":{"v":33078662.386316814,"d":"$33,078,662"}},{"$f":"Inputs!B20*DT10/(1/Inputs!B19/12+'(Other Computations)'!B144)","v":{"v":33065847.295814894,"d":"$33,065,847"}},{"$f":"Inputs!B20*DU10/(1/Inputs!B19/12+'(Other Computations)'!B144)","v":{"v":33054213.167698387,"d":"$33,054,213"}},{"$f":"Inputs!B20*DV10/(1/Inputs!B19/12+'(Other Computations)'!B144)","v":{"v":33038495.971505724,"d":"$33,038,496"}},{"$f":"Inputs!B20*DW10/(1/Inputs!B19/12+'(Other Computations)'!B144)","v":{"v":33024803.940932244,"d":"$33,024,804"}},{"$f":"Inputs!B20*DX10/(1/Inputs!B19/12+'(Other Computations)'!B144)","v":{"v":33012661.59009433,"d":"$33,012,662"}},{"$f":"Inputs!B20*DY10/(1/Inputs!B19/12+'(Other Computations)'!B144)","v":{"v":32997518.176959597,"d":"$32,997,518"}},{"$f":"Inputs!B20*DZ10/(1/Inputs!B19/12+'(Other Computations)'!B144)","v":{"v":32983504.464150917,"d":"$32,983,504"}},{"$f":"DZ22","v":{"v":32983504.464150917,"d":"$32,983,504"}},{"$f":"Inputs!B20*EB10/(1/Inputs!B19/12+'(Other Computations)'!B144)","v":{"v":32967501.71966712,"d":"$32,967,502"}},{"$f":"Inputs!B20*EC10/(1/Inputs!B19/12+'(Other Computations)'!B144)","v":{"v":32953383.71177077,"d":"$32,953,384"}},{"$f":"Inputs!B20*ED10/(1/Inputs!B19/12+'(Other Computations)'!B144)","v":{"v":32941995.68964985,"d":"$32,941,996"}},{"$f":"Inputs!B20*EE10/(1/Inputs!B19/12+'(Other Computations)'!B144)","v":{"v":32926285.750931796,"d":"$32,926,286"}},{"$f":"Inputs!B20*EF10/(1/Inputs!B19/12+'(Other Computations)'!B144)","v":{"v":32912712.336608846,"d":"$32,912,712"}},{"$f":"Inputs!B20*EG10/(1/Inputs!B19/12+'(Other Computations)'!B144)","v":{"v":32899010.9797649,"d":"$32,899,011"}},{"$f":"Inputs!B20*EH10/(1/Inputs!B19/12+'(Other Computations)'!B144)","v":{"v":32887367.98637046,"d":"$32,887,368"}},{"$f":"Inputs!B20*EI10/(1/Inputs!B19/12+'(Other Computations)'!B144)","v":{"v":32870271.1287704,"d":"$32,870,271"}},{"$f":"Inputs!B20*EJ10/(1/Inputs!B19/12+'(Other Computations)'!B144)","v":{"v":32854044.925267406,"d":"$32,854,045"}},{"$f":"Inputs!B20*EK10/(1/Inputs!B19/12+'(Other Computations)'!B144)","v":{"v":32838810.89011584,"d":"$32,838,811"}},{"$f":"Inputs!B20*EL10/(1/Inputs!B19/12+'(Other Computations)'!B144)","v":{"v":32825026.475656126,"d":"$32,825,026"}},{"$f":"Inputs!B20*EM10/(1/Inputs!B19/12+'(Other Computations)'!B144)","v":{"v":32811338.016785853,"d":"$32,811,338"}},{"$f":"EM22","v":{"v":32811338.016785853,"d":"$32,811,338"}}]
[]
[]
[{"$f":"\"Employment\"","v":"Employment"}]
[{"$f":"\" \"","v":" "}]
[null,{"$f":"ZZZ__FnCalls!F7","v":"Jan 2010"},{"$f":"ZZZ__FnCalls!F8","v":"Feb 2010"},{"$f":"ZZZ__FnCalls!F9","v":"Mar 2010"},{"$f":"ZZZ__FnCalls!F10","v":"Apr 2010"},{"$f":"ZZZ__FnCalls!F11","v":"May 2010"},{"$f":"ZZZ__FnCalls!F12","v":"Jun 2010"},{"$f":"ZZZ__FnCalls!F13","v":"Jul 2010"},{"$f":"ZZZ__FnCalls!F14","v":"Aug 2010"},{"$f":"ZZZ__FnCalls!F15","v":"Sep 2010"},{"$f":"ZZZ__FnCalls!F16","v":"Oct 2010"},{"$f":"ZZZ__FnCalls!F17","v":"Nov 2010"},{"$f":"ZZZ__FnCalls!F18","v":"Dec 2010"},{"$f":"ZZZ__FnCalls!H7","v":"2010"},{"$f":"ZZZ__FnCalls!F19","v":"Jan 2011"},{"$f":"ZZZ__FnCalls!F20","v":"Feb 2011"},{"$f":"ZZZ__FnCalls!F21","v":"Mar 2011"},{"$f":"ZZZ__FnCalls!F22","v":"Apr 2011"},{"$f":"ZZZ__FnCalls!F23","v":"May 2011"},{"$f":"ZZZ__FnCalls!F24","v":"Jun 2011"},{"$f":"ZZZ__FnCalls!F25","v":"Jul 2011"},{"$f":"ZZZ__FnCalls!F26","v":"Aug 2011"},{"$f":"ZZZ__FnCalls!F27","v":"Sep 2011"},{"$f":"ZZZ__FnCalls!F28","v":"Oct 2011"},{"$f":"ZZZ__FnCalls!F29","v":"Nov 2011"},{"$f":"ZZZ__FnCalls!F30","v":"Dec 2011"},{"$f":"ZZZ__FnCalls!H19","v":"2011"},{"$f":"ZZZ__FnCalls!F31","v":"Jan 2012"},{"$f":"ZZZ__FnCalls!F32","v":"Feb 2012"},{"$f":"ZZZ__FnCalls!F33","v":"Mar 2012"},{"$f":"ZZZ__FnCalls!F34","v":"Apr 2012"},{"$f":"ZZZ__FnCalls!F35","v":"May 2012"},{"$f":"ZZZ__FnCalls!F36","v":"Jun 2012"},{"$f":"ZZZ__FnCalls!F37","v":"Jul 2012"},{"$f":"ZZZ__FnCalls!F38","v":"Aug 2012"},{"$f":"ZZZ__FnCalls!F39","v":"Sep 2012"},{"$f":"ZZZ__FnCalls!F40","v":"Oct 2012"},{"$f":"ZZZ__FnCalls!F41","v":"Nov 2012"},{"$f":"ZZZ__FnCalls!F42","v":"Dec 2012"},{"$f":"ZZZ__FnCalls!H31","v":"2012"},{"$f":"ZZZ__FnCalls!F43","v":"Jan 2013"},{"$f":"ZZZ__FnCalls!F44","v":"Feb 2013"},{"$f":"ZZZ__FnCalls!F45","v":"Mar 2013"},{"$f":"ZZZ__FnCalls!F46","v":"Apr 2013"},{"$f":"ZZZ__FnCalls!F47","v":"May 2013"},{"$f":"ZZZ__FnCalls!F48","v":"Jun 2013"},{"$f":"ZZZ__FnCalls!F49","v":"Jul 2013"},{"$f":"ZZZ__FnCalls!F50","v":"Aug 2013"},{"$f":"ZZZ__FnCalls!F51","v":"Sep 2013"},{"$f":"ZZZ__FnCalls!F52","v":"Oct 2013"},{"$f":"ZZZ__FnCalls!F53","v":"Nov 2013"},{"$f":"ZZZ__FnCalls!F54","v":"Dec 2013"},{"$f":"ZZZ__FnCalls!H43","v":"2013"},{"$f":"ZZZ__FnCalls!F55","v":"Jan 2014"},{"$f":"ZZZ__FnCalls!F56","v":"Feb 2014"},{"$f":"ZZZ__FnCalls!F57","v":"Mar 2014"},{"$f":"ZZZ__FnCalls!F58","v":"Apr 2014"},{"$f":"ZZZ__FnCalls!F59","v":"May 2014"},{"$f":"ZZZ__FnCalls!F60","v":"Jun 2014"},{"$f":"ZZZ__FnCalls!F61","v":"Jul 2014"},{"$f":"ZZZ__FnCalls!F62","v":"Aug 2014"},{"$f":"ZZZ__FnCalls!F63","v":"Sep 2014"},{"$f":"ZZZ__FnCalls!F64","v":"Oct 2014"},{"$f":"ZZZ__FnCalls!F65","v":"Nov 2014"},{"$f":"ZZZ__FnCalls!F66","v":"Dec 2014"},{"$f":"ZZZ__FnCalls!H55","v":"2014"},{"$f":"ZZZ__FnCalls!F67","v":"Jan 2015"},{"$f":"ZZZ__FnCalls!F68","v":"Feb 2015"},{"$f":"ZZZ__FnCalls!F69","v":"Mar 2015"},{"$f":"ZZZ__FnCalls!F70","v":"Apr 2015"},{"$f":"ZZZ__FnCalls!F71","v":"May 2015"},{"$f":"ZZZ__FnCalls!F72","v":"Jun 2015"},{"$f":"ZZZ__FnCalls!F73","v":"Jul 2015"},{"$f":"ZZZ__FnCalls!F74","v":"Aug 2015"},{"$f":"ZZZ__FnCalls!F75","v":"Sep 2015"},{"$f":"ZZZ__FnCalls!F76","v":"Oct 2015"},{"$f":"ZZZ__FnCalls!F77","v":"Nov 2015"},{"$f":"ZZZ__FnCalls!F78","v":"Dec 2015"},{"$f":"ZZZ__FnCalls!H67","v":"2015"},{"$f":"ZZZ__FnCalls!F79","v":"Jan 2016"},{"$f":"ZZZ__FnCalls!F80","v":"Feb 2016"},{"$f":"ZZZ__FnCalls!F81","v":"Mar 2016"},{"$f":"ZZZ__FnCalls!F82","v":"Apr 2016"},{"$f":"ZZZ__FnCalls!F83","v":"May 2016"},{"$f":"ZZZ__FnCalls!F84","v":"Jun 2016"},{"$f":"ZZZ__FnCalls!F85","v":"Jul 2016"},{"$f":"ZZZ__FnCalls!F86","v":"Aug 2016"},{"$f":"ZZZ__FnCalls!F87","v":"Sep 2016"},{"$f":"ZZZ__FnCalls!F88","v":"Oct 2016"},{"$f":"ZZZ__FnCalls!F89","v":"Nov 2016"},{"$f":"ZZZ__FnCalls!F90","v":"Dec 2016"},{"$f":"ZZZ__FnCalls!H79","v":"2016"},{"$f":"ZZZ__FnCalls!F91","v":"Jan 2017"},{"$f":"ZZZ__FnCalls!F92","v":"Feb 2017"},{"$f":"ZZZ__FnCalls!F93","v":"Mar 2017"},{"$f":"ZZZ__FnCalls!F94","v":"Apr 2017"},{"$f":"ZZZ__FnCalls!F95","v":"May 2017"},{"$f":"ZZZ__FnCalls!F96","v":"Jun 2017"},{"$f":"ZZZ__FnCalls!F97","v":"Jul 2017"},{"$f":"ZZZ__FnCalls!F98","v":"Aug 2017"},{"$f":"ZZZ__FnCalls!F99","v":"Sep 2017"},{"$f":"ZZZ__FnCalls!F100","v":"Oct 2017"},{"$f":"ZZZ__FnCalls!F101","v":"Nov 2017"},{"$f":"ZZZ__FnCalls!F102","v":"Dec 2017"},{"$f":"ZZZ__FnCalls!H91","v":"2017"},{"$f":"ZZZ__FnCalls!F103","v":"Jan 2018"},{"$f":"ZZZ__FnCalls!F104","v":"Feb 2018"},{"$f":"ZZZ__FnCalls!F105","v":"Mar 2018"},{"$f":"ZZZ__FnCalls!F106","v":"Apr 2018"},{"$f":"ZZZ__FnCalls!F107","v":"May 2018"},{"$f":"ZZZ__FnCalls!F108","v":"Jun 2018"},{"$f":"ZZZ__FnCalls!F109","v":"Jul 2018"},{"$f":"ZZZ__FnCalls!F110","v":"Aug 2018"},{"$f":"ZZZ__FnCalls!F111","v":"Sep 2018"},{"$f":"ZZZ__FnCalls!F112","v":"Oct 2018"},{"$f":"ZZZ__FnCalls!F113","v":"Nov 2018"},{"$f":"ZZZ__FnCalls!F114","v":"Dec 2018"},{"$f":"ZZZ__FnCalls!H103","v":"2018"},{"$f":"ZZZ__FnCalls!F115","v":"Jan 2019"},{"$f":"ZZZ__FnCalls!F116","v":"Feb 2019"},{"$f":"ZZZ__FnCalls!F117","v":"Mar 2019"},{"$f":"ZZZ__FnCalls!F118","v":"Apr 2019"},{"$f":"ZZZ__FnCalls!F119","v":"May 2019"},{"$f":"ZZZ__FnCalls!F120","v":"Jun 2019"},{"$f":"ZZZ__FnCalls!F121","v":"Jul 2019"},{"$f":"ZZZ__FnCalls!F122","v":"Aug 2019"},{"$f":"ZZZ__FnCalls!F123","v":"Sep 2019"},{"$f":"ZZZ__FnCalls!F124","v":"Oct 2019"},{"$f":"ZZZ__FnCalls!F125","v":"Nov 2019"},{"$f":"ZZZ__FnCalls!F126","v":"Dec 2019"},{"$f":"ZZZ__FnCalls!H115","v":"2019"},{"$f":"ZZZ__FnCalls!F127","v":"Jan 2020"},{"$f":"ZZZ__FnCalls!F128","v":"Feb 2020"},{"$f":"ZZZ__FnCalls!F129","v":"Mar 2020"},{"$f":"ZZZ__FnCalls!F130","v":"Apr 2020"},{"$f":"ZZZ__FnCalls!F131","v":"May 2020"},{"$f":"ZZZ__FnCalls!F132","v":"Jun 2020"},{"$f":"ZZZ__FnCalls!F133","v":"Jul 2020"},{"$f":"ZZZ__FnCalls!F134","v":"Aug 2020"},{"$f":"ZZZ__FnCalls!F135","v":"Sep 2020"},{"$f":"ZZZ__FnCalls!F136","v":"Oct 2020"},{"$f":"ZZZ__FnCalls!F137","v":"Nov 2020"},{"$f":"ZZZ__FnCalls!F138","v":"Dec 2020"},{"$f":"ZZZ__FnCalls!H127","v":"2020"}]
[{"$f":"Labels!B38","v":"Employment"},{"$f":"Inputs!B27+'(Other Computations)'!B61*0/Inputs!B28/12","v":{"v":140,"d":"140.00"}},{"$f":"B28+'(Other Computations)'!B61*(B29-B28)/Inputs!B28/12","v":{"v":140,"d":"140.00"}},{"$f":"C28+'(Other Computations)'!B61*(C29-C28)/Inputs!B28/12","v":{"v":139.99297082702557,"d":"139.99"}},{"$f":"D28+'(Other Computations)'!B61*(D29-D28)/Inputs!B28/12","v":{"v":139.9794119517761,"d":"139.98"}},{"$f":"E28+'(Other Computations)'!B61*(E29-E28)/Inputs!B28/12","v":{"v":139.96145437299262,"d":"139.96"}},{"$f":"F28+'(Other Computations)'!B61*(F29-F28)/Inputs!B28/12","v":{"v":139.93662912881206,"d":"139.94"}},{"$f":"G28+'(Other Computations)'!B61*(G29-G28)/Inputs!B28/12","v":{"v":139.90605234522712,"d":"139.91"}},{"$f":"H28+'(Other Computations)'!B61*(H29-H28)/Inputs!B28/12","v":{"v":139.86976489720905,"d":"139.87"}},{"$f":"I28+'(Other Computations)'!B61*(I29-I28)/Inputs!B28/12","v":{"v":139.82858269474636,"d":"139.83"}},{"$f":"J28+'(Other Computations)'!B61*(J29-J28)/Inputs!B28/12","v":{"v":139.78327860831783,"d":"139.78"}},{"$f":"K28+'(Other Computations)'!B61*(K29-K28)/Inputs!B28/12","v":{"v":139.73515203538284,"d":"139.74"}},{"$f":"L28+'(Other Computations)'!B61*(L29-L28)/Inputs!B28/12","v":{"v":139.68174381090773,"d":"139.68"}},{"$f":"M28","v":{"v":139.68174381090773,"d":"139.68"}},{"$f":"M28+'(Other Computations)'!B61*(M29-M28)/Inputs!B28/12","v":{"v":139.62339418718085,"d":"139.62"}},{"$f":"O28+'(Other Computations)'!B61*(O29-O28)/Inputs!B28/12","v":{"v":139.5608470476963,"d":"139.56"}},{"$f":"P28+'(Other Computations)'!B61*(P29-P28)/Inputs!B28/12","v":{"v":139.49396537626802,"d":"139.49"}},{"$f":"Q28+'(Other Computations)'!B61*(Q29-Q28)/Inputs!B28/12","v":{"v":139.4232937439943,"d":"139.42"}},{"$f":"R28+'(Other Computations)'!B61*(R29-R28)/Inputs!B28/12","v":{"v":139.34859963798786,"d":"139.35"}},{"$f":"S28+'(Other Computations)'!B61*(S29-S28)/Inputs!B28/12","v":{"v":139.27045463533634,"d":"139.27"}},{"$f":"T28+'(Other Computations)'!B61*(T29-T28)/Inputs!B28/12","v":{"v":139.1875671742041,"d":"139.19"}},{"$f":"U28+'(Other Computations)'!B61*(U29-U28)/Inputs!B28/12","v":{"v":139.1030199178538,"d":"139.10"}},{"$f":"V28+'(Other Computations)'!B61*(V29-V28)/Inputs!B28/12","v":{"v":139.0155487801776,"d":"139.02"}},{"$f":"W28+'(Other Computations)'!B61*(W29-W28)/Inputs!B28/12","v":{"v":138.92472857583658,"d":"138.92"}},{"$f":"X28+'(Other Computations)'!B61*(X29-X28)/Inputs!B28/12","v":{"v":138.8310425241632,"d":"138.83"}},{"$f":"Y28+'(Other Computations)'!B61*(Y29-Y28)/Inputs!B28/12","v":{"v":138.73333491105555,"d":"138.73"}},{"$f":"Z28","v":{"v":138.73333491105555,"d":"138.73"}},{"$f":"Z28+'(Other Computations)'!B61*(Z29-Z28)/Inputs!B28/12","v":{"v":138.6343648356834,"d":"138.63"}},{"$f":"AB28+'(Other Computations)'!B61*(AB29-AB28)/Inputs!B28/12","v":{"v":138.53214919728853,"d":"138.53"}},{"$f":"AC28+'(Other Computations)'!B61*(AC29-AC28)/Inputs!B28/12","v":{"v":138.42768583562665,"d":"138.43"}},{"$f":"AD28+'(Other Computations)'!B61*(AD29-AD28)/Inputs!B28/12","v":{"v":138.32056314497527,"d":"138.32"}},{"$f":"AE28+'(Other Computations)'!B61*(AE29-AE28)/Inputs!B28/12","v":{"v":138.21237654464448,"d":"138.21"}},{"$f":"AF28+'(Other Computations)'!B61*(AF29-AF28)/Inputs!B28/12","v":{"v":138.10000891897502,"d":"138.10"}},{"$f":"AG28+'(Other Computations)'!B61*(AG29-AG28)/Inputs!B28/12","v":{"v":137.9838916117061,"d":"137.98"}},{"$f":"AH28+'(Other Computations)'!B61*(AH29-AH28)/Inputs!B28/12","v":{"v":137.86506256498592,"d":"137.87"}},{"$f":"AI28+'(Other Computations)'!B61*(AI29-AI28)/Inputs!B28/12","v":{"v":137.7444988104379,"d":"137.74"}},{"$f":"AJ28+'(Other Computations)'!B61*(AJ29-AJ28)/Inputs!B28/12","v":{"v":137.620879840671,"d":"137.62"}},{"$f":"AK28+'(Other Computations)'!B61*(AK29-AK28)/Inputs!B28/12","v":{"v":137.49552499830992,"d":"137.50"}},{"$f":"AL28+'(Other Computations)'!B61*(AL29-AL28)/Inputs!B28/12","v":{"v":137.3672573513998,"d":"137.37"}},{"$f":"AM28","v":{"v":137.3672573513998,"d":"137.37"}},{"$f":"AM28+'(Other Computations)'!B61*(AM29-AM28)/Inputs!B28/12","v":{"v":137.2369460019998,"d":"137.24"}},{"$f":"AO28+'(Other Computations)'!B61*(AO29-AO28)/Inputs!B28/12","v":{"v":137.1040186479651,"d":"137.10"}},{"$f":"AP28+'(Other Computations)'!B61*(AP29-AP28)/Inputs!B28/12","v":{"v":136.96949634814115,"d":"136.97"}},{"$f":"AQ28+'(Other Computations)'!B61*(AQ29-AQ28)/Inputs!B28/12","v":{"v":136.83354498184954,"d":"136.83"}},{"$f":"AR28+'(Other Computations)'!B61*(AR29-AR28)/Inputs!B28/12","v":{"v":136.69575981447878,"d":"136.70"}},{"$f":"AS28+'(Other Computations)'!B61*(AS29-AS28)/Inputs!B28/12","v":{"v":136.5570286142928,"d":"136.56"}},{"$f":"AT28+'(Other Computations)'!B61*(AT29-AT28)/Inputs!B28/12","v":{"v":136.417566560065,"d":"136.42"}},{"$f":"AU28+'(Other Computations)'!B61*(AU29-AU28)/Inputs!B28/12","v":{"v":136.27630997751157,"d":"136.28"}},{"$f":"AV28+'(Other Computations)'!B61*(AV29-AV28)/Inputs!B28/12","v":{"v":136.13419163073974,"d":"136.13"}},{"$f":"AW28+'(Other Computations)'!B61*(AW29-AW28)/Inputs!B28/12","v":{"v":135.99097336232347,"d":"135.99"}},{"$f":"AX28+'(Other Computations)'!B61*(AX29-AX28)/Inputs!B28/12","v":{"v":135.8463879683266,"d":"135.85"}},{"$f":"AY28+'(Other Computations)'!B61*(AY29-AY28)/Inputs!B28/12","v":{"v":135.70051297150238,"d":"135.70"}},{"$f":"AZ28","v":{"v":135.70051297150238,"d":"135.70"}},{"$f":"AZ28+'(Other Computations)'!B61*(AZ29-AZ28)/Inputs!B28/12","v":{"v":135.55388440069035,"d":"135.55"}},{"$f":"BB28+'(Other Computations)'!B61*(BB29-BB28)/Inputs!B28/12","v":{"v":135.40609146127616,"d":"135.41"}},{"$f":"BC28+'(Other Computations)'!B61*(BC29-BC28)/Inputs!B28/12","v":{"v":135.2567687830677,"d":"135.26"}},{"$f":"BD28+'(Other Computations)'!B61*(BD29-BD28)/Inputs!B28/12","v":{"v":135.10541894336347,"d":"135.11"}},{"$f":"BE28+'(Other Computations)'!B61*(BE29-BE28)/Inputs!B28/12","v":{"v":134.9516482011138,"d":"134.95"}},{"$f":"BF28+'(Other Computations)'!B61*(BF29-BF28)/Inputs!B28/12","v":{"v":134.79767679744904,"d":"134.80"}},{"$f":"BG28+'(Other Computations)'!B61*(BG29-BG28)/Inputs!B28/12","v":{"v":134.64262404636654,"d":"134.64"}},{"$f":"BH28+'(Other Computations)'!B61*(BH29-BH28)/Inputs!B28/12","v":{"v":134.4872500907126,"d":"134.49"}},{"$f":"BI28+'(Other Computations)'!B61*(BI29-BI28)/Inputs!B28/12","v":{"v":134.33008867493996,"d":"134.33"}},{"$f":"BJ28+'(Other Computations)'!B61*(BJ29-BJ28)/Inputs!B28/12","v":{"v":134.17276272376301,"d":"134.17"}},{"$f":"BK28+'(Other Computations)'!B61*(BK29-BK28)/Inputs!B28/12","v":{"v":134.01614752675948,"d":"134.02"}},{"$f":"BL28+'(Other Computations)'!B61*(BL29-BL28)/Inputs!B28/12","v":{"v":133.85950350325487,"d":"133.86"}},{"$f":"BM28","v":{"v":133.85950350325487,"d":"133.86"}},{"$f":"BM28+'(Other Computations)'!B61*(BM29-BM28)/Inputs!B28/12","v":{"v":133.70362798741542,"d":"133.70"}},{"$f":"BO28+'(Other Computations)'!B61*(BO29-BO28)/Inputs!B28/12","v":{"v":133.54764626271748,"d":"133.55"}},{"$f":"BP28+'(Other Computations)'!B61*(BP29-BP28)/Inputs!B28/12","v":{"v":133.39241105625592,"d":"133.39"}},{"$f":"BQ28+'(Other Computations)'!B61*(BQ29-BQ28)/Inputs!B28/12","v":{"v":133.2384202320834,"d":"133.24"}},{"$f":"BR28+'(Other Computations)'!B61*(BR29-BR28)/Inputs!B28/12","v":{"v":133.0855961138082,"d":"133.09"}},{"$f":"BS28+'(Other Computations)'!B61*(BS29-BS28)/Inputs!B28/12","v":{"v":132.931317100318,"d":"132.93"}},{"$f":"BT28+'(Other Computations)'!B61*(BT29-BT28)/Inputs!B28/12","v":{"v":132.77673052847194,"d":"132.78"}},{"$f":"BU28+'(Other Computations)'!B61*(BU29-BU28)/Inputs!B28/12","v":{"v":132.6235278493101,"d":"132.62"}},{"$f":"BV28+'(Other Computations)'!B61*(BV29-BV28)/Inputs!B28/12","v":{"v":132.46903792730348,"d":"132.47"}},{"$f":"BW28+'(Other Computations)'!B61*(BW29-BW28)/Inputs!B28/12","v":{"v":132.31412776175776,"d":"132.31"}},{"$f":"BX28+'(Other Computations)'!B61*(BX29-BX28)/Inputs!B28/12","v":{"v":132.15918367768714,"d":"132.16"}},{"$f":"BY28+'(Other Computations)'!B61*(BY29-BY28)/Inputs!B28/12","v":{"v":132.00536048998325,"d":"132.01"}},{"$f":"BZ28","v":{"v":132.00536048998325,"d":"132.01"}},{"$f":"BZ28+'(Other Computations)'!B61*(BZ29-BZ28)/Inputs!B28/12","v":{"v":131.85275677448755,"d":"131.85"}},{"$f":"CB28+'(Other Computations)'!B61*(CB29-CB28)/Inputs!B28/12","v":{"v":131.70098827525283,"d":"131.70"}},{"$f":"CC28+'(Other Computations)'!B61*(CC29-CC28)/Inputs!B28/12","v":{"v":131.5488859065884,"d":"131.55"}},{"$f":"CD28+'(Other Computations)'!B61*(CD29-CD28)/Inputs!B28/12","v":{"v":131.3966946042238,"d":"131.40"}},{"$f":"CE28+'(Other Computations)'!B61*(CE29-CE28)/Inputs!B28/12","v":{"v":131.24425809809077,"d":"131.24"}},{"$f":"CF28+'(Other Computations)'!B61*(CF29-CF28)/Inputs!B28/12","v":{"v":131.09115711964623,"d":"131.09"}},{"$f":"CG28+'(Other Computations)'!B61*(CG29-CG28)/Inputs!B28/12","v":{"v":130.93819376635156,"d":"130.94"}},{"$f":"CH28+'(Other Computations)'!B61*(CH29-CH28)/Inputs!B28/12","v":{"v":130.78690964396904,"d":"130.79"}},{"$f":"CI28+'(Other Computations)'!B61*(CI29-CI28)/Inputs!B28/12","v":{"v":130.63491512049265,"d":"130.63"}},{"$f":"CJ28+'(Other Computations)'!B61*(CJ29-CJ28)/Inputs!B28/12","v":{"v":130.48207173777135,"d":"130.48"}},{"$f":"CK28+'(Other Computations)'!B61*(CK29-CK28)/Inputs!B28/12","v":{"v":130.3295854921158,"d":"130.33"}},{"$f":"CL28+'(Other Computations)'!B61*(CL29-CL28)/Inputs!B28/12","v":{"v":130.1787459590177,"d":"130.18"}},{"$f":"CM28","v":{"v":130.1787459590177,"d":"130.18"}},{"$f":"CM28+'(Other Computations)'!B61*(CM29-CM28)/Inputs!B28/12","v":{"v":130.02701831571812,"d":"130.03"}},{"$f":"CO28+'(Other Computations)'!B61*(CO29-CO28)/Inputs!B28/12","v":{"v":129.87587031688292,"d":"129.88"}},{"$f":"CP28+'(Other Computations)'!B61*(CP29-CP28)/Inputs!B28/12","v":{"v":129.72521405522775,"d":"129.73"}},{"$f":"CQ28+'(Other Computations)'!B61*(CQ29-CQ28)/Inputs!B28/12","v":{"v":129.5737179522503,"d":"129.57"}},{"$f":"CR28+'(Other Computations)'!B61*(CR29-CR28)/Inputs!B28/12","v":{"v":129.42372585744863,"d":"129.42"}},{"$f":"CS28+'(Other Computations)'!B61*(CS29-CS28)/Inputs!B28/12","v":{"v":129.2731101943457,"d":"129.27"}},{"$f":"CT28+'(Other Computations)'!B61*(CT29-CT28)/Inputs!B28/12","v":{"v":129.1221944398516,"d":"129.12"}},{"$f":"CU28+'(Other Computations)'!B61*(CU29-CU28)/Inputs!B28/12","v":{"v":128.97196322937174,"d":"128.97"}},{"$f":"CV28+'(Other Computations)'!B61*(CV29-CV28)/Inputs!B28/12","v":{"v":128.8221439264561,"d":"128.82"}},{"$f":"CW28+'(Other Computations)'!B61*(CW29-CW28)/Inputs!B28/12","v":{"v":128.67226079755594,"d":"128.67"}},{"$f":"CX28+'(Other Computations)'!B61*(CX29-CX28)/Inputs!B28/12","v":{"v":128.52349867347897,"d":"128.52"}},{"$f":"CY28+'(Other Computations)'!B61*(CY29-CY28)/Inputs!B28/12","v":{"v":128.37451921623406,"d":"128.37"}},{"$f":"CZ28","v":{"v":128.37451921623406,"d":"128.37"}},{"$f":"CZ28+'(Other Computations)'!B61*(CZ29-CZ28)/Inputs!B28/12","v":{"v":128.22571233647793,"d":"128.23"}},{"$f":"DB28+'(Other Computations)'!B61*(DB29-DB28)/Inputs!B28/12","v":{"v":128.07570660503913,"d":"128.08"}},{"$f":"DC28+'(Other Computations)'!B61*(DC29-DC28)/Inputs!B28/12","v":{"v":127.92657522442818,"d":"127.93"}},{"$f":"DD28+'(Other Computations)'!B61*(DD29-DD28)/Inputs!B28/12","v":{"v":127.77781376975072,"d":"127.78"}},{"$f":"DE28+'(Other Computations)'!B61*(DE29-DE28)/Inputs!B28/12","v":{"v":127.62967705664725,"d":"127.63"}},{"$f":"DF28+'(Other Computations)'!B61*(DF29-DF28)/Inputs!B28/12","v":{"v":127.48124123419423,"d":"127.48"}},{"$f":"DG28+'(Other Computations)'!B61*(DG29-DG28)/Inputs!B28/12","v":{"v":127.33232554736321,"d":"127.33"}},{"$f":"DH28+'(Other Computations)'!B61*(DH29-DH28)/Inputs!B28/12","v":{"v":127.18467776328487,"d":"127.18"}},{"$f":"DI28+'(Other Computations)'!B61*(DI29-DI28)/Inputs!B28/12","v":{"v":127.03898741803359,"d":"127.04"}},{"$f":"DJ28+'(Other Computations)'!B61*(DJ29-DJ28)/Inputs!B28/12","v":{"v":126.89369784215653,"d":"126.89"}},{"$f":"DK28+'(Other Computations)'!B61*(DK29-DK28)/Inputs!B28/12","v":{"v":126.74791420071273,"d":"126.75"}},{"$f":"DL28+'(Other Computations)'!B61*(DL29-DL28)/Inputs!B28/12","v":{"v":126.60233824464139,"d":"126.60"}},{"$f":"DM28","v":{"v":126.60233824464139,"d":"126.60"}},{"$f":"DM28+'(Other Computations)'!B61*(DM29-DM28)/Inputs!B28/12","v":{"v":126.45618255476768,"d":"126.46"}},{"$f":"DO28+'(Other Computations)'!B61*(DO29-DO28)/Inputs!B28/12","v":{"v":126.31050123285125,"d":"126.31"}},{"$f":"DP28+'(Other Computations)'!B61*(DP29-DP28)/Inputs!B28/12","v":{"v":126.16477767684842,"d":"126.16"}},{"$f":"DQ28+'(Other Computations)'!B61*(DQ29-DQ28)/Inputs!B28/12","v":{"v":126.01947829838653,"d":"126.02"}},{"$f":"DR28+'(Other Computations)'!B61*(DR29-DR28)/Inputs!B28/12","v":{"v":125.87607759791176,"d":"125.88"}},{"$f":"DS28+'(Other Computations)'!B61*(DS29-DS28)/Inputs!B28/12","v":{"v":125.73380223125754,"d":"125.73"}},{"$f":"DT28+'(Other Computations)'!B61*(DT29-DT28)/Inputs!B28/12","v":{"v":125.59245783366482,"d":"125.59"}},{"$f":"DU28+'(Other Computations)'!B61*(DU29-DU28)/Inputs!B28/12","v":{"v":125.45253423743083,"d":"125.45"}},{"$f":"DV28+'(Other Computations)'!B61*(DV29-DV28)/Inputs!B28/12","v":{"v":125.31229109212627,"d":"125.31"}},{"$f":"DW28+'(Other Computations)'!B61*(DW29-DW28)/Inputs!B28/12","v":{"v":125.17260926651777,"d":"125.17"}},{"$f":"DX28+'(Other Computations)'!B61*(DX29-DX28)/Inputs!B28/12","v":{"v":125.0341440050784,"d":"125.03"}},{"$f":"DY28+'(Other Computations)'!B61*(DY29-DY28)/Inputs!B28/12","v":{"v":124.89561589513528,"d":"124.90"}},{"$f":"DZ28","v":{"v":124.89561589513528,"d":"124.90"}},{"$f":"DZ28+'(Other Computations)'!B61*(DZ29-DZ28)/Inputs!B28/12","v":{"v":124.75752106052533,"d":"124.76"}},{"$f":"EB28+'(Other Computations)'!B61*(EB29-EB28)/Inputs!B28/12","v":{"v":124.61902846135733,"d":"124.62"}},{"$f":"EC28+'(Other Computations)'!B61*(EC29-EC28)/Inputs!B28/12","v":{"v":124.48096158028761,"d":"124.48"}},{"$f":"ED28+'(Other Computations)'!B61*(ED29-ED28)/Inputs!B28/12","v":{"v":124.34447589138681,"d":"124.34"}},{"$f":"EE28+'(Other Computations)'!B61*(EE29-EE28)/Inputs!B28/12","v":{"v":124.20772494240386,"d":"124.21"}},{"$f":"EF28+'(Other Computations)'!B61*(EF29-EF28)/Inputs!B28/12","v":{"v":124.07163395820729,"d":"124.07"}},{"$f":"EG28+'(Other Computations)'!B61*(EG29-EG28)/Inputs!B28/12","v":{"v":123.936148208336,"d":"123.94"}},{"$f":"EH28+'(Other Computations)'!B61*(EH29-EH28)/Inputs!B28/12","v":{"v":123.80213467617318,"d":"123.80"}},{"$f":"EI28+'(Other Computations)'!B61*(EI29-EI28)/Inputs!B28/12","v":{"v":123.66727297052358,"d":"123.67"}},{"$f":"EJ28+'(Other Computations)'!B61*(EJ29-EJ28)/Inputs!B28/12","v":{"v":123.53197173881469,"d":"123.53"}},{"$f":"EK28+'(Other Computations)'!B61*(EK29-EK28)/Inputs!B28/12","v":{"v":123.39667906041097,"d":"123.40"}},{"$f":"EL28+'(Other Computations)'!B61*(EL29-EL28)/Inputs!B28/12","v":{"v":123.2620226415019,"d":"123.26"}},{"$f":"EM28","v":{"v":123.2620226415019,"d":"123.26"}}]
[{"$f":"Labels!B39","v":"Desired Employment"},{"$f":"(1-Inputs!B20)*B11/'(Other Computations)'!B130","v":{"v":140,"d":"140.00"}},{"$f":"(1-Inputs!B20)*C11/'(Other Computations)'!B130","v":{"v":139.59511963667305,"d":"139.60"}},{"$f":"(1-Inputs!B20)*D11/'(Other Computations)'!B130","v":{"v":139.2119796126544,"d":"139.21"}},{"$f":"(1-Inputs!B20)*E11/'(Other Computations)'!B130","v":{"v":138.9450554138482,"d":"138.95"}},{"$f":"(1-Inputs!B20)*F11/'(Other Computations)'!B130","v":{"v":138.53152030819177,"d":"138.53"}},{"$f":"(1-Inputs!B20)*G11/'(Other Computations)'!B130","v":{"v":138.17540639431988,"d":"138.18"}},{"$f":"(1-Inputs!B20)*H11/'(Other Computations)'!B130","v":{"v":137.81589533938535,"d":"137.82"}},{"$f":"(1-Inputs!B20)*I11/'(Other Computations)'!B130","v":{"v":137.49767003535777,"d":"137.50"}},{"$f":"(1-Inputs!B20)*J11/'(Other Computations)'!B130","v":{"v":137.2190673164628,"d":"137.22"}},{"$f":"(1-Inputs!B20)*K11/'(Other Computations)'!B130","v":{"v":137.0111880072624,"d":"137.01"}},{"$f":"(1-Inputs!B20)*L11/'(Other Computations)'!B130","v":{"v":136.65883830561734,"d":"136.66"}},{"$f":"(1-Inputs!B20)*M11/'(Other Computations)'!B130","v":{"v":136.32080548423932,"d":"136.32"}},{"$f":"SUM(B29:M29)","v":{"v":1656.9825458540124,"d":"1,656.98"}},{"$f":"(1-Inputs!B20)*O11/'(Other Computations)'!B130","v":{"v":136.0206789528722,"d":"136.02"}},{"$f":"(1-Inputs!B20)*P11/'(Other Computations)'!B130","v":{"v":135.70846277342665,"d":"135.71"}},{"$f":"(1-Inputs!B20)*Q11/'(Other Computations)'!B130","v":{"v":135.42327935730174,"d":"135.42"}},{"$f":"(1-Inputs!B20)*R11/'(Other Computations)'!B130","v":{"v":135.12091323802326,"d":"135.12"}},{"$f":"(1-Inputs!B20)*S11/'(Other Computations)'!B130","v":{"v":134.8474474852604,"d":"134.85"}},{"$f":"(1-Inputs!B20)*T11/'(Other Computations)'!B130","v":{"v":134.49613687411946,"d":"134.50"}},{"$f":"(1-Inputs!B20)*U11/'(Other Computations)'!B130","v":{"v":134.3176452084273,"d":"134.32"}},{"$f":"(1-Inputs!B20)*V11/'(Other Computations)'!B130","v":{"v":134.06468238770475,"d":"134.06"}},{"$f":"(1-Inputs!B20)*W11/'(Other Computations)'!B130","v":{"v":133.78430501013503,"d":"133.78"}},{"$f":"(1-Inputs!B20)*X11/'(Other Computations)'!B130","v":{"v":133.52841199944987,"d":"133.53"}},{"$f":"(1-Inputs!B20)*Y11/'(Other Computations)'!B130","v":{"v":133.20308400916227,"d":"133.20"}},{"$f":"(1-Inputs!B20)*Z11/'(Other Computations)'!B130","v":{"v":133.03265856962022,"d":"133.03"}},{"$f":"SUM(O29:Z29)","v":{"v":1613.5477058655033,"d":"1,613.55"}},{"$f":"(1-Inputs!B20)*AB11/'(Other Computations)'!B130","v":{"v":132.7467440641378,"d":"132.75"}},{"$f":"(1-Inputs!B20)*AC11/'(Other Computations)'!B130","v":{"v":132.51505956556468,"d":"132.52"}},{"$f":"(1-Inputs!B20)*AD11/'(Other Computations)'!B130","v":{"v":132.25741885410767,"d":"132.26"}},{"$f":"(1-Inputs!B20)*AE11/'(Other Computations)'!B130","v":{"v":132.08901496592196,"d":"132.09"}},{"$f":"(1-Inputs!B20)*AF11/'(Other Computations)'!B130","v":{"v":131.74000130608297,"d":"131.74"}},{"$f":"(1-Inputs!B20)*AG11/'(Other Computations)'!B130","v":{"v":131.41165202028495,"d":"131.41"}},{"$f":"(1-Inputs!B20)*AH11/'(Other Computations)'!B130","v":{"v":131.139338520623,"d":"131.14"}},{"$f":"(1-Inputs!B20)*AI11/'(Other Computations)'!B130","v":{"v":130.92059030302,"d":"130.92"}},{"$f":"(1-Inputs!B20)*AJ11/'(Other Computations)'!B130","v":{"v":130.62404615186435,"d":"130.62"}},{"$f":"(1-Inputs!B20)*AK11/'(Other Computations)'!B130","v":{"v":130.40044092067308,"d":"130.40"}},{"$f":"(1-Inputs!B20)*AL11/'(Other Computations)'!B130","v":{"v":130.10730853628596,"d":"130.11"}},{"$f":"(1-Inputs!B20)*AM11/'(Other Computations)'!B130","v":{"v":129.86132362595973,"d":"129.86"}},{"$f":"SUM(AB29:AM29)","v":{"v":1575.812938834526,"d":"1,575.81"}},{"$f":"(1-Inputs!B20)*AO11/'(Other Computations)'!B130","v":{"v":129.58033040960026,"d":"129.58"}},{"$f":"(1-Inputs!B20)*AP11/'(Other Computations)'!B130","v":{"v":129.35553417810644,"d":"129.36"}},{"$f":"(1-Inputs!B20)*AQ11/'(Other Computations)'!B130","v":{"v":129.1386976497442,"d":"129.14"}},{"$f":"(1-Inputs!B20)*AR11/'(Other Computations)'!B130","v":{"v":128.89711934129355,"d":"128.90"}},{"$f":"(1-Inputs!B20)*AS11/'(Other Computations)'!B130","v":{"v":128.7048426837667,"d":"128.70"}},{"$f":"(1-Inputs!B20)*AT11/'(Other Computations)'!B130","v":{"v":128.52401429077298,"d":"128.52"}},{"$f":"(1-Inputs!B20)*AU11/'(Other Computations)'!B130","v":{"v":128.28118740498667,"d":"128.28"}},{"$f":"(1-Inputs!B20)*AV11/'(Other Computations)'!B130","v":{"v":128.09029320345422,"d":"128.09"}},{"$f":"(1-Inputs!B20)*AW11/'(Other Computations)'!B130","v":{"v":127.88481936996288,"d":"127.88"}},{"$f":"(1-Inputs!B20)*AX11/'(Other Computations)'!B130","v":{"v":127.6628546681045,"d":"127.66"}},{"$f":"(1-Inputs!B20)*AY11/'(Other Computations)'!B130","v":{"v":127.44398815125045,"d":"127.44"}},{"$f":"(1-Inputs!B20)*AZ11/'(Other Computations)'!B130","v":{"v":127.25470729272905,"d":"127.25"}},{"$f":"SUM(AO29:AZ29)","v":{"v":1540.818388643772,"d":"1,540.82"}},{"$f":"(1-Inputs!B20)*BB11/'(Other Computations)'!B130","v":{"v":127.04101109043255,"d":"127.04"}},{"$f":"(1-Inputs!B20)*BC11/'(Other Computations)'!B130","v":{"v":126.8051051964692,"d":"126.81"}},{"$f":"(1-Inputs!B20)*BD11/'(Other Computations)'!B130","v":{"v":126.53901801610432,"d":"126.54"}},{"$f":"(1-Inputs!B20)*BE11/'(Other Computations)'!B130","v":{"v":126.24822418978371,"d":"126.25"}},{"$f":"(1-Inputs!B20)*BF11/'(Other Computations)'!B130","v":{"v":126.08289535002272,"d":"126.08"}},{"$f":"(1-Inputs!B20)*BG11/'(Other Computations)'!B130","v":{"v":125.86663833509732,"d":"125.87"}},{"$f":"(1-Inputs!B20)*BH11/'(Other Computations)'!B130","v":{"v":125.69308420069869,"d":"125.69"}},{"$f":"(1-Inputs!B20)*BI11/'(Other Computations)'!B130","v":{"v":125.4347525422096,"d":"125.43"}},{"$f":"(1-Inputs!B20)*BJ11/'(Other Computations)'!B130","v":{"v":125.26811388714742,"d":"125.27"}},{"$f":"(1-Inputs!B20)*BK11/'(Other Computations)'!B130","v":{"v":125.15172737635947,"d":"125.15"}},{"$f":"(1-Inputs!B20)*BL11/'(Other Computations)'!B130","v":{"v":124.99345177289348,"d":"124.99"}},{"$f":"(1-Inputs!B20)*BM11/'(Other Computations)'!B130","v":{"v":124.88107379090238,"d":"124.88"}},{"$f":"SUM(BB29:BM29)","v":{"v":1510.0050957481208,"d":"1,510.01"}},{"$f":"(1-Inputs!B20)*BO11/'(Other Computations)'!B130","v":{"v":124.71908064481418,"d":"124.72"}},{"$f":"(1-Inputs!B20)*BP11/'(Other Computations)'!B130","v":{"v":124.60609837053198,"d":"124.61"}},{"$f":"(1-Inputs!B20)*BQ11/'(Other Computations)'!B130","v":{"v":124.52253958391817,"d":"124.52"}},{"$f":"(1-Inputs!B20)*BR11/'(Other Computations)'!B130","v":{"v":124.43575101943304,"d":"124.44"}},{"$f":"(1-Inputs!B20)*BS11/'(Other Computations)'!B130","v":{"v":124.19912493677305,"d":"124.20"}},{"$f":"(1-Inputs!B20)*BT11/'(Other Computations)'!B130","v":{"v":124.02713056198441,"d":"124.03"}},{"$f":"(1-Inputs!B20)*BU11/'(Other Computations)'!B130","v":{"v":123.95225620874979,"d":"123.95"}},{"$f":"(1-Inputs!B20)*BV11/'(Other Computations)'!B130","v":{"v":123.72490834172845,"d":"123.72"}},{"$f":"(1-Inputs!B20)*BW11/'(Other Computations)'!B130","v":{"v":123.54621239187036,"d":"123.55"}},{"$f":"(1-Inputs!B20)*BX11/'(Other Computations)'!B130","v":{"v":123.38934851929054,"d":"123.39"}},{"$f":"(1-Inputs!B20)*BY11/'(Other Computations)'!B130","v":{"v":123.29896806594357,"d":"123.30"}},{"$f":"(1-Inputs!B20)*BZ11/'(Other Computations)'!B130","v":{"v":123.21538647743014,"d":"123.22"}},{"$f":"SUM(BO29:BZ29)","v":{"v":1487.6368051224679,"d":"1,487.64"}},{"$f":"(1-Inputs!B20)*CB11/'(Other Computations)'!B130","v":{"v":123.11089121856776,"d":"123.11"}},{"$f":"(1-Inputs!B20)*CC11/'(Other Computations)'!B130","v":{"v":122.93989184018119,"d":"122.94"}},{"$f":"(1-Inputs!B20)*CD11/'(Other Computations)'!B130","v":{"v":122.78266689038682,"d":"122.78"}},{"$f":"(1-Inputs!B20)*CE11/'(Other Computations)'!B130","v":{"v":122.61635185096162,"d":"122.62"}},{"$f":"(1-Inputs!B20)*CF11/'(Other Computations)'!B130","v":{"v":122.42564173968587,"d":"122.43"}},{"$f":"(1-Inputs!B20)*CG11/'(Other Computations)'!B130","v":{"v":122.28046796987381,"d":"122.28"}},{"$f":"(1-Inputs!B20)*CH11/'(Other Computations)'!B130","v":{"v":122.22422831711827,"d":"122.22"}},{"$f":"(1-Inputs!B20)*CI11/'(Other Computations)'!B130","v":{"v":122.03202509172931,"d":"122.03"}},{"$f":"(1-Inputs!B20)*CJ11/'(Other Computations)'!B130","v":{"v":121.83113627574525,"d":"121.83"}},{"$f":"(1-Inputs!B20)*CK11/'(Other Computations)'!B130","v":{"v":121.69886398801113,"d":"121.70"}},{"$f":"(1-Inputs!B20)*CL11/'(Other Computations)'!B130","v":{"v":121.6412283856651,"d":"121.64"}},{"$f":"(1-Inputs!B20)*CM11/'(Other Computations)'!B130","v":{"v":121.43923370496167,"d":"121.44"}},{"$f":"SUM(CB29:CM29)","v":{"v":1467.0226272728878,"d":"1,467.02"}},{"$f":"(1-Inputs!B20)*CO11/'(Other Computations)'!B130","v":{"v":121.32089358281132,"d":"121.32"}},{"$f":"(1-Inputs!B20)*CP11/'(Other Computations)'!B130","v":{"v":121.19806964554556,"d":"121.20"}},{"$f":"(1-Inputs!B20)*CQ11/'(Other Computations)'!B130","v":{"v":120.9990385237266,"d":"121.00"}},{"$f":"(1-Inputs!B20)*CR11/'(Other Computations)'!B130","v":{"v":120.93417329167526,"d":"120.93"}},{"$f":"(1-Inputs!B20)*CS11/'(Other Computations)'!B130","v":{"v":120.74826366271867,"d":"120.75"}},{"$f":"(1-Inputs!B20)*CT11/'(Other Computations)'!B130","v":{"v":120.58036273548517,"d":"120.58"}},{"$f":"(1-Inputs!B20)*CU11/'(Other Computations)'!B130","v":{"v":120.46887671621103,"d":"120.47"}},{"$f":"(1-Inputs!B20)*CV11/'(Other Computations)'!B130","v":{"v":120.3423713814308,"d":"120.34"}},{"$f":"(1-Inputs!B20)*CW11/'(Other Computations)'!B130","v":{"v":120.18887570180593,"d":"120.19"}},{"$f":"(1-Inputs!B20)*CX11/'(Other Computations)'!B130","v":{"v":120.10356245072244,"d":"120.10"}},{"$f":"(1-Inputs!B20)*CY11/'(Other Computations)'!B130","v":{"v":119.94228193617252,"d":"119.94"}},{"$f":"(1-Inputs!B20)*CZ11/'(Other Computations)'!B130","v":{"v":119.80324294228069,"d":"119.80"}},{"$f":"SUM(CO29:CZ29)","v":{"v":1446.6300125705861,"d":"1,446.63"}},{"$f":"(1-Inputs!B20)*DB11/'(Other Computations)'!B130","v":{"v":119.58538220560253,"d":"119.59"}},{"$f":"(1-Inputs!B20)*DC11/'(Other Computations)'!B130","v":{"v":119.48573908184845,"d":"119.49"}},{"$f":"(1-Inputs!B20)*DD11/'(Other Computations)'!B130","v":{"v":119.35791543500711,"d":"119.36"}},{"$f":"(1-Inputs!B20)*DE11/'(Other Computations)'!B130","v":{"v":119.24513909499093,"d":"119.25"}},{"$f":"(1-Inputs!B20)*DF11/'(Other Computations)'!B130","v":{"v":119.0797736833529,"d":"119.08"}},{"$f":"(1-Inputs!B20)*DG11/'(Other Computations)'!B130","v":{"v":118.90369767272782,"d":"118.90"}},{"$f":"(1-Inputs!B20)*DH11/'(Other Computations)'!B130","v":{"v":118.82781318445035,"d":"118.83"}},{"$f":"(1-Inputs!B20)*DI11/'(Other Computations)'!B130","v":{"v":118.79291387681135,"d":"118.79"}},{"$f":"(1-Inputs!B20)*DJ11/'(Other Computations)'!B130","v":{"v":118.67030784751539,"d":"118.67"}},{"$f":"(1-Inputs!B20)*DK11/'(Other Computations)'!B130","v":{"v":118.49656009499394,"d":"118.50"}},{"$f":"(1-Inputs!B20)*DL11/'(Other Computations)'!B130","v":{"v":118.36273913100382,"d":"118.36"}},{"$f":"(1-Inputs!B20)*DM11/'(Other Computations)'!B130","v":{"v":118.18377050791564,"d":"118.18"}},{"$f":"SUM(DB29:DM29)","v":{"v":1426.9917518162204,"d":"1,426.99"}},{"$f":"(1-Inputs!B20)*DO11/'(Other Computations)'!B130","v":{"v":118.06493841238111,"d":"118.06"}},{"$f":"(1-Inputs!B20)*DP11/'(Other Computations)'!B130","v":{"v":117.91682440708797,"d":"117.92"}},{"$f":"(1-Inputs!B20)*DQ11/'(Other Computations)'!B130","v":{"v":117.79553347744393,"d":"117.80"}},{"$f":"(1-Inputs!B20)*DR11/'(Other Computations)'!B130","v":{"v":117.75959795103982,"d":"117.76"}},{"$f":"(1-Inputs!B20)*DS11/'(Other Computations)'!B130","v":{"v":117.68101647862878,"d":"117.68"}},{"$f":"(1-Inputs!B20)*DT11/'(Other Computations)'!B130","v":{"v":117.59236492991694,"d":"117.59"}},{"$f":"(1-Inputs!B20)*DU11/'(Other Computations)'!B130","v":{"v":117.5328586905863,"d":"117.53"}},{"$f":"(1-Inputs!B20)*DV11/'(Other Computations)'!B130","v":{"v":117.3745290678887,"d":"117.37"}},{"$f":"(1-Inputs!B20)*DW11/'(Other Computations)'!B130","v":{"v":117.26661793707625,"d":"117.27"}},{"$f":"(1-Inputs!B20)*DX11/'(Other Computations)'!B130","v":{"v":117.19701020761055,"d":"117.20"}},{"$f":"(1-Inputs!B20)*DY11/'(Other Computations)'!B130","v":{"v":117.0549248723543,"d":"117.05"}},{"$f":"(1-Inputs!B20)*DZ11/'(Other Computations)'!B130","v":{"v":116.94135342160213,"d":"116.94"}},{"$f":"SUM(DO29:DZ29)","v":{"v":1410.1775698536167,"d":"1,410.18"}},{"$f":"(1-Inputs!B20)*EB11/'(Other Computations)'!B130","v":{"v":116.78034734844867,"d":"116.78"}},{"$f":"(1-Inputs!B20)*EC11/'(Other Computations)'!B130","v":{"v":116.66637611174144,"d":"116.67"}},{"$f":"(1-Inputs!B20)*ED11/'(Other Computations)'!B130","v":{"v":116.61938589960087,"d":"116.62"}},{"$f":"(1-Inputs!B20)*EE11/'(Other Computations)'!B130","v":{"v":116.46762122996873,"d":"116.47"}},{"$f":"(1-Inputs!B20)*EF11/'(Other Computations)'!B130","v":{"v":116.36888425268099,"d":"116.37"}},{"$f":"(1-Inputs!B20)*EG11/'(Other Computations)'!B130","v":{"v":116.26765476562083,"d":"116.27"}},{"$f":"(1-Inputs!B20)*EH11/'(Other Computations)'!B130","v":{"v":116.21696875575796,"d":"116.22"}},{"$f":"(1-Inputs!B20)*EI11/'(Other Computations)'!B130","v":{"v":116.0341004307564,"d":"116.03"}},{"$f":"(1-Inputs!B20)*EJ11/'(Other Computations)'!B130","v":{"v":115.87392202409097,"d":"115.87"}},{"$f":"(1-Inputs!B20)*EK11/'(Other Computations)'!B130","v":{"v":115.73911346276049,"d":"115.74"}},{"$f":"(1-Inputs!B20)*EL11/'(Other Computations)'!B130","v":{"v":115.64046933124855,"d":"115.64"}},{"$f":"(1-Inputs!B20)*EM11/'(Other Computations)'!B130","v":{"v":115.54474812776688,"d":"115.54"}},{"$f":"SUM(EB29:EM29)","v":{"v":1394.219591740443,"d":"1,394.22"}}]
[]
[]
[{"$f":"\"Income\"","v":"Income"}]
[{"$f":"\" \"","v":" "}]
[null,{"$f":"ZZZ__FnCalls!F7","v":"Jan 2010"},{"$f":"ZZZ__FnCalls!F8","v":"Feb 2010"},{"$f":"ZZZ__FnCalls!F9","v":"Mar 2010"},{"$f":"ZZZ__FnCalls!F10","v":"Apr 2010"},{"$f":"ZZZ__FnCalls!F11","v":"May 2010"},{"$f":"ZZZ__FnCalls!F12","v":"Jun 2010"},{"$f":"ZZZ__FnCalls!F13","v":"Jul 2010"},{"$f":"ZZZ__FnCalls!F14","v":"Aug 2010"},{"$f":"ZZZ__FnCalls!F15","v":"Sep 2010"},{"$f":"ZZZ__FnCalls!F16","v":"Oct 2010"},{"$f":"ZZZ__FnCalls!F17","v":"Nov 2010"},{"$f":"ZZZ__FnCalls!F18","v":"Dec 2010"},{"$f":"ZZZ__FnCalls!H7","v":"2010"},{"$f":"ZZZ__FnCalls!F19","v":"Jan 2011"},{"$f":"ZZZ__FnCalls!F20","v":"Feb 2011"},{"$f":"ZZZ__FnCalls!F21","v":"Mar 2011"},{"$f":"ZZZ__FnCalls!F22","v":"Apr 2011"},{"$f":"ZZZ__FnCalls!F23","v":"May 2011"},{"$f":"ZZZ__FnCalls!F24","v":"Jun 2011"},{"$f":"ZZZ__FnCalls!F25","v":"Jul 2011"},{"$f":"ZZZ__FnCalls!F26","v":"Aug 2011"},{"$f":"ZZZ__FnCalls!F27","v":"Sep 2011"},{"$f":"ZZZ__FnCalls!F28","v":"Oct 2011"},{"$f":"ZZZ__FnCalls!F29","v":"Nov 2011"},{"$f":"ZZZ__FnCalls!F30","v":"Dec 2011"},{"$f":"ZZZ__FnCalls!H19","v":"2011"},{"$f":"ZZZ__FnCalls!F31","v":"Jan 2012"},{"$f":"ZZZ__FnCalls!F32","v":"Feb 2012"},{"$f":"ZZZ__FnCalls!F33","v":"Mar 2012"},{"$f":"ZZZ__FnCalls!F34","v":"Apr 2012"},{"$f":"ZZZ__FnCalls!F35","v":"May 2012"},{"$f":"ZZZ__FnCalls!F36","v":"Jun 2012"},{"$f":"ZZZ__FnCalls!F37","v":"Jul 2012"},{"$f":"ZZZ__FnCalls!F38","v":"Aug 2012"},{"$f":"ZZZ__FnCalls!F39","v":"Sep 2012"},{"$f":"ZZZ__FnCalls!F40","v":"Oct 2012"},{"$f":"ZZZ__FnCalls!F41","v":"Nov 2012"},{"$f":"ZZZ__FnCalls!F42","v":"Dec 2012"},{"$f":"ZZZ__FnCalls!H31","v":"2012"},{"$f":"ZZZ__FnCalls!F43","v":"Jan 2013"},{"$f":"ZZZ__FnCalls!F44","v":"Feb 2013"},{"$f":"ZZZ__FnCalls!F45","v":"Mar 2013"},{"$f":"ZZZ__FnCalls!F46","v":"Apr 2013"},{"$f":"ZZZ__FnCalls!F47","v":"May 2013"},{"$f":"ZZZ__FnCalls!F48","v":"Jun 2013"},{"$f":"ZZZ__FnCalls!F49","v":"Jul 2013"},{"$f":"ZZZ__FnCalls!F50","v":"Aug 2013"},{"$f":"ZZZ__FnCalls!F51","v":"Sep 2013"},{"$f":"ZZZ__FnCalls!F52","v":"Oct 2013"},{"$f":"ZZZ__FnCalls!F53","v":"Nov 2013"},{"$f":"ZZZ__FnCalls!F54","v":"Dec 2013"},{"$f":"ZZZ__FnCalls!H43","v":"2013"},{"$f":"ZZZ__FnCalls!F55","v":"Jan 2014"},{"$f":"ZZZ__FnCalls!F56","v":"Feb 2014"},{"$f":"ZZZ__FnCalls!F57","v":"Mar 2014"},{"$f":"ZZZ__FnCalls!F58","v":"Apr 2014"},{"$f":"ZZZ__FnCalls!F59","v":"May 2014"},{"$f":"ZZZ__FnCalls!F60","v":"Jun 2014"},{"$f":"ZZZ__FnCalls!F61","v":"Jul 2014"},{"$f":"ZZZ__FnCalls!F62","v":"Aug 2014"},{"$f":"ZZZ__FnCalls!F63","v":"Sep 2014"},{"$f":"ZZZ__FnCalls!F64","v":"Oct 2014"},{"$f":"ZZZ__FnCalls!F65","v":"Nov 2014"},{"$f":"ZZZ__FnCalls!F66","v":"Dec 2014"},{"$f":"ZZZ__FnCalls!H55","v":"2014"},{"$f":"ZZZ__FnCalls!F67","v":"Jan 2015"},{"$f":"ZZZ__FnCalls!F68","v":"Feb 2015"},{"$f":"ZZZ__FnCalls!F69","v":"Mar 2015"},{"$f":"ZZZ__FnCalls!F70","v":"Apr 2015"},{"$f":"ZZZ__FnCalls!F71","v":"May 2015"},{"$f":"ZZZ__FnCalls!F72","v":"Jun 2015"},{"$f":"ZZZ__FnCalls!F73","v":"Jul 2015"},{"$f":"ZZZ__FnCalls!F74","v":"Aug 2015"},{"$f":"ZZZ__FnCalls!F75","v":"Sep 2015"},{"$f":"ZZZ__FnCalls!F76","v":"Oct 2015"},{"$f":"ZZZ__FnCalls!F77","v":"Nov 2015"},{"$f":"ZZZ__FnCalls!F78","v":"Dec 2015"},{"$f":"ZZZ__FnCalls!H67","v":"2015"},{"$f":"ZZZ__FnCalls!F79","v":"Jan 2016"},{"$f":"ZZZ__FnCalls!F80","v":"Feb 2016"},{"$f":"ZZZ__FnCalls!F81","v":"Mar 2016"},{"$f":"ZZZ__FnCalls!F82","v":"Apr 2016"},{"$f":"ZZZ__FnCalls!F83","v":"May 2016"},{"$f":"ZZZ__FnCalls!F84","v":"Jun 2016"},{"$f":"ZZZ__FnCalls!F85","v":"Jul 2016"},{"$f":"ZZZ__FnCalls!F86","v":"Aug 2016"},{"$f":"ZZZ__FnCalls!F87","v":"Sep 2016"},{"$f":"ZZZ__FnCalls!F88","v":"Oct 2016"},{"$f":"ZZZ__FnCalls!F89","v":"Nov 2016"},{"$f":"ZZZ__FnCalls!F90","v":"Dec 2016"},{"$f":"ZZZ__FnCalls!H79","v":"2016"},{"$f":"ZZZ__FnCalls!F91","v":"Jan 2017"},{"$f":"ZZZ__FnCalls!F92","v":"Feb 2017"},{"$f":"ZZZ__FnCalls!F93","v":"Mar 2017"},{"$f":"ZZZ__FnCalls!F94","v":"Apr 2017"},{"$f":"ZZZ__FnCalls!F95","v":"May 2017"},{"$f":"ZZZ__FnCalls!F96","v":"Jun 2017"},{"$f":"ZZZ__FnCalls!F97","v":"Jul 2017"},{"$f":"ZZZ__FnCalls!F98","v":"Aug 2017"},{"$f":"ZZZ__FnCalls!F99","v":"Sep 2017"},{"$f":"ZZZ__FnCalls!F100","v":"Oct 2017"},{"$f":"ZZZ__FnCalls!F101","v":"Nov 2017"},{"$f":"ZZZ__FnCalls!F102","v":"Dec 2017"},{"$f":"ZZZ__FnCalls!H91","v":"2017"},{"$f":"ZZZ__FnCalls!F103","v":"Jan 2018"},{"$f":"ZZZ__FnCalls!F104","v":"Feb 2018"},{"$f":"ZZZ__FnCalls!F105","v":"Mar 2018"},{"$f":"ZZZ__FnCalls!F106","v":"Apr 2018"},{"$f":"ZZZ__FnCalls!F107","v":"May 2018"},{"$f":"ZZZ__FnCalls!F108","v":"Jun 2018"},{"$f":"ZZZ__FnCalls!F109","v":"Jul 2018"},{"$f":"ZZZ__FnCalls!F110","v":"Aug 2018"},{"$f":"ZZZ__FnCalls!F111","v":"Sep 2018"},{"$f":"ZZZ__FnCalls!F112","v":"Oct 2018"},{"$f":"ZZZ__FnCalls!F113","v":"Nov 2018"},{"$f":"ZZZ__FnCalls!F114","v":"Dec 2018"},{"$f":"ZZZ__FnCalls!H103","v":"2018"},{"$f":"ZZZ__FnCalls!F115","v":"Jan 2019"},{"$f":"ZZZ__FnCalls!F116","v":"Feb 2019"},{"$f":"ZZZ__FnCalls!F117","v":"Mar 2019"},{"$f":"ZZZ__FnCalls!F118","v":"Apr 2019"},{"$f":"ZZZ__FnCalls!F119","v":"May 2019"},{"$f":"ZZZ__FnCalls!F120","v":"Jun 2019"},{"$f":"ZZZ__FnCalls!F121","v":"Jul 2019"},{"$f":"ZZZ__FnCalls!F122","v":"Aug 2019"},{"$f":"ZZZ__FnCalls!F123","v":"Sep 2019"},{"$f":"ZZZ__FnCalls!F124","v":"Oct 2019"},{"$f":"ZZZ__FnCalls!F125","v":"Nov 2019"},{"$f":"ZZZ__FnCalls!F126","v":"Dec 2019"},{"$f":"ZZZ__FnCalls!H115","v":"2019"},{"$f":"ZZZ__FnCalls!F127","v":"Jan 2020"},{"$f":"ZZZ__FnCalls!F128","v":"Feb 2020"},{"$f":"ZZZ__FnCalls!F129","v":"Mar 2020"},{"$f":"ZZZ__FnCalls!F130","v":"Apr 2020"},{"$f":"ZZZ__FnCalls!F131","v":"May 2020"},{"$f":"ZZZ__FnCalls!F132","v":"Jun 2020"},{"$f":"ZZZ__FnCalls!F133","v":"Jul 2020"},{"$f":"ZZZ__FnCalls!F134","v":"Aug 2020"},{"$f":"ZZZ__FnCalls!F135","v":"Sep 2020"},{"$f":"ZZZ__FnCalls!F136","v":"Oct 2020"},{"$f":"ZZZ__FnCalls!F137","v":"Nov 2020"},{"$f":"ZZZ__FnCalls!F138","v":"Dec 2020"},{"$f":"ZZZ__FnCalls!H127","v":"2020"}]
[{"$f":"Labels!B55","v":"Current Disposable Income"},{"$f":"B44-B54+B38","v":{"v":829848.8770889734,"d":"$829,849"}},{"v":816045.8125721654,"d":"$816,046"},{"v":836244.7798364572,"d":"$836,245"},{"v":838995.3641079573,"d":"$838,995"},{"v":819202.1453095468,"d":"$819,202"},{"v":805238.1792832307,"d":"$805,238"},{"v":865628.4843090278,"d":"$865,628"},{"v":785524.2467432201,"d":"$785,524"},{"v":816295.4452353856,"d":"$816,295"},{"v":824697.6631935969,"d":"$824,698"},{"v":863556.8711613883,"d":"$863,557"},{"v":820758.7084472199,"d":"$820,759"},{"$f":"SUM(B35:M35)","v":{"v":9922036.57728817,"d":"$9,922,037"}},{"$f":"O44-O54+O38","v":{"v":810423.976324278,"d":"$810,424"}},{"v":816314.1881675884,"d":"$816,314"},{"v":823577.3894434953,"d":"$823,577"},{"v":787780.1521015536,"d":"$787,780"},{"v":799396.8840848127,"d":"$799,397"},{"v":844493.5612058312,"d":"$844,494"},{"v":833419.934463114,"d":"$833,420"},{"v":793105.4835726827,"d":"$793,105"},{"v":812601.5269326973,"d":"$812,602"},{"v":811189.2021771028,"d":"$811,189"},{"v":814418.3463169504,"d":"$814,418"},{"v":789106.4389482302,"d":"$789,106"},{"$f":"SUM(O35:Z35)","v":{"v":9735827.083738336,"d":"$9,735,827"}},{"$f":"AB44-AB54+AB38","v":{"v":775468.2661995239,"d":"$775,468"}},{"v":818310.9282676064,"d":"$818,311"},{"v":829378.0379183686,"d":"$829,378"},{"v":778576.5624822787,"d":"$778,577"},{"v":777431.3271499649,"d":"$777,431"},{"v":789874.8970217294,"d":"$789,875"},{"v":822914.4692749035,"d":"$822,914"},{"v":796355.4937497549,"d":"$796,355"},{"v":811206.4577611029,"d":"$811,206"},{"v":821182.7251695284,"d":"$821,183"},{"v":814272.808930777,"d":"$814,273"},{"v":783229.0045961986,"d":"$783,229"},{"$f":"SUM(AB35:AM35)","v":{"v":9618200.978521736,"d":"$9,618,201"}},{"$f":"AO44-AO54+AO38","v":{"v":790448.1158380167,"d":"$790,448"}},{"v":783075.8207161509,"d":"$783,076"},{"v":771066.7909260745,"d":"$771,067"},{"v":828452.0230399285,"d":"$828,452"},{"v":773630.6844482567,"d":"$773,631"},{"v":795056.2400856408,"d":"$795,056"},{"v":802201.4277804672,"d":"$802,201"},{"v":794512.114264038,"d":"$794,512"},{"v":757279.8145564768,"d":"$757,280"},{"v":775636.5813296001,"d":"$775,637"},{"v":778131.8539874639,"d":"$778,132"},{"v":802941.0507359443,"d":"$802,941"},{"$f":"SUM(AO35:AZ35)","v":{"v":9452432.51770806,"d":"$9,452,433"}},{"$f":"BB44-BB54+BB38","v":{"v":752951.745425776,"d":"$752,952"}},{"v":791724.8122990417,"d":"$791,725"},{"v":819562.2843738584,"d":"$819,562"},{"v":805113.2631418975,"d":"$805,113"},{"v":771349.0121462842,"d":"$771,349"},{"v":745684.6947075481,"d":"$745,685"},{"v":815976.0430428286,"d":"$815,976"},{"v":750123.0653512342,"d":"$750,123"},{"v":772946.2216991893,"d":"$772,946"},{"v":802280.8298058658,"d":"$802,281"},{"v":746936.91111711,"d":"$746,937"},{"v":782455.4728016412,"d":"$782,455"},{"$f":"SUM(BB35:BM35)","v":{"v":9357104.355912274,"d":"$9,357,104"}},{"$f":"BO44-BO54+BO38","v":{"v":741795.670525391,"d":"$741,796"}},{"v":772226.7511168591,"d":"$772,227"},{"v":748557.5104701066,"d":"$748,558"},{"v":797944.8736708622,"d":"$797,945"},{"v":755131.3029415872,"d":"$755,131"},{"v":783632.1763463854,"d":"$783,632"},{"v":794060.1346810631,"d":"$794,060"},{"v":743717.4862837469,"d":"$743,717"},{"v":764553.3979040624,"d":"$764,553"},{"v":723893.1823881131,"d":"$723,893"},{"v":777933.7932652121,"d":"$777,934"},{"v":765525.0042187261,"d":"$765,525"},{"$f":"SUM(BO35:BZ35)","v":{"v":9168971.283812113,"d":"$9,168,971"}},{"$f":"CB44-CB54+CB38","v":{"v":785414.9174596604,"d":"$785,415"}},{"v":752185.2104835819,"d":"$752,185"},{"v":722784.8351793349,"d":"$722,785"},{"v":737275.1164543204,"d":"$737,275"},{"v":748008.1917431435,"d":"$748,008"},{"v":786589.8060398429,"d":"$786,590"},{"v":794816.7005263425,"d":"$794,817"},{"v":772047.3263524454,"d":"$772,047"},{"v":780872.7574039324,"d":"$780,873"},{"v":751449.0190600478,"d":"$751,449"},{"v":737554.0282034285,"d":"$737,554"},{"v":742283.9659997603,"d":"$742,284"},{"$f":"SUM(CB35:CM35)","v":{"v":9111281.874905841,"d":"$9,111,282"}},{"$f":"CO44-CO54+CO38","v":{"v":735409.7971429614,"d":"$735,410"}},{"v":739830.0720166763,"d":"$739,830"},{"v":775202.9153826077,"d":"$775,203"},{"v":756718.8339588795,"d":"$756,719"},{"v":737675.0121248674,"d":"$737,675"},{"v":718411.5652569017,"d":"$718,412"},{"v":753008.1746733455,"d":"$753,008"},{"v":731461.7058111957,"d":"$731,462"},{"v":749088.1203410336,"d":"$749,088"},{"v":715447.4724310603,"d":"$715,447"},{"v":744973.1781191762,"d":"$744,973"},{"v":756850.9356899563,"d":"$756,851"},{"$f":"SUM(CO35:CZ35)","v":{"v":8914077.782948662,"d":"$8,914,078"}},{"$f":"DB44-DB54+DB38","v":{"v":748358.2774976324,"d":"$748,358"}},{"v":730901.2567824187,"d":"$730,901"},{"v":714142.583783271,"d":"$714,143"},{"v":753372.887133019,"d":"$753,373"},{"v":776128.7928160103,"d":"$776,129"},{"v":735084.287679592,"d":"$735,084"},{"v":737793.0975038137,"d":"$737,793"},{"v":740382.0838189385,"d":"$740,382"},{"v":722573.1023603413,"d":"$722,573"},{"v":736449.9427336814,"d":"$736,450"},{"v":694939.0192016134,"d":"$694,939"},{"v":739066.2811214445,"d":"$739,066"},{"$f":"SUM(DB35:DM35)","v":{"v":8829191.612431778,"d":"$8,829,192"}},{"$f":"DO44-DO54+DO38","v":{"v":774469.7853908907,"d":"$774,470"}},{"v":723426.1302328623,"d":"$723,426"},{"v":700373.3840141499,"d":"$700,373"},{"v":715658.4233097205,"d":"$715,658"},{"v":708350.8760955088,"d":"$708,351"},{"v":745271.2370735435,"d":"$745,271"},{"v":736851.4025500666,"d":"$736,851"},{"v":727416.4519676686,"d":"$727,416"},{"v":739687.2642169521,"d":"$739,687"},{"v":718665.6741372474,"d":"$718,666"},{"v":693673.258038265,"d":"$693,673"},{"v":720113.9578576883,"d":"$720,114"},{"$f":"SUM(DO35:DZ35)","v":{"v":8703957.844884563,"d":"$8,703,958"}},{"$f":"EB44-EB54+EB38","v":{"v":726161.873283512,"d":"$726,162"}},{"v":762469.9884743664,"d":"$762,470"},{"v":712048.7260752333,"d":"$712,049"},{"v":693891.350258964,"d":"$693,891"},{"v":719849.5069006415,"d":"$719,850"},{"v":714983.646909569,"d":"$714,984"},{"v":734871.7697575054,"d":"$734,872"},{"v":683078.2287702492,"d":"$683,078"},{"v":744279.895724523,"d":"$744,280"},{"v":700814.6914010019,"d":"$700,815"},{"v":720566.8550082026,"d":"$720,567"},{"v":745587.0711315697,"d":"$745,587"},{"$f":"SUM(EB35:EM35)","v":{"v":8658603.603695339,"d":"$8,658,604"}}]
[{"$f":"Labels!B45","v":"Final Sales"},{"$f":"B12+B21+B37","v":{"v":963388.6810828955,"d":"$963,389"}},{"v":962700.6022936836,"d":"$962,701"},{"v":962015.6634031496,"d":"$962,016"},{"v":961512.4942596393,"d":"$961,512"},{"v":960849.9068948143,"d":"$960,850"},{"v":960216.2296708537,"d":"$960,216"},{"v":959552.3065816177,"d":"$959,552"},{"v":959070.8564468963,"d":"$959,071"},{"v":958464.297829745,"d":"$958,464"},{"v":958008.427058973,"d":"$958,008"},{"v":957406.9298410141,"d":"$957,407"},{"v":956910.7841796183,"d":"$956,911"},{"$f":"SUM(B36:M36)","v":{"v":11520097.1795429,"d":"$11,520,097"}},{"$f":"O12+O21+O37","v":{"v":956368.4853429924,"d":"$956,368"}},{"v":955792.648518561,"d":"$955,793"},{"v":955263.7187716143,"d":"$955,264"},{"v":954733.3105707288,"d":"$954,733"},{"v":954161.3152064335,"d":"$954,161"},{"v":953527.6526481904,"d":"$953,528"},{"v":953193.5560589031,"d":"$953,194"},{"v":952749.8996657629,"d":"$952,750"},{"v":952189.8654776287,"d":"$952,190"},{"v":951702.6884707056,"d":"$951,703"},{"v":951134.6452914288,"d":"$951,135"},{"v":950754.230639432,"d":"$950,754"},{"$f":"SUM(O36:Z36)","v":{"v":11441572.016662382,"d":"$11,441,572"}},{"$f":"AB12+AB21+AB37","v":{"v":950186.3752784795,"d":"$950,186"}},{"v":949654.1733859753,"d":"$949,654"},{"v":949186.351638372,"d":"$949,186"},{"v":948846.6029852324,"d":"$948,847"},{"v":948189.7762505856,"d":"$948,190"},{"v":947558.3249515058,"d":"$947,558"},{"v":947020.5114527503,"d":"$947,021"},{"v":946617.0924649674,"d":"$946,617"},{"v":946067.5925639828,"d":"$946,068"},{"v":945636.381069223,"d":"$945,636"},{"v":945147.6431093795,"d":"$945,148"},{"v":944700.1785522837,"d":"$944,700"},{"$f":"SUM(AB36:AM36)","v":{"v":11368811.003702737,"d":"$11,368,811"}},{"$f":"AO12+AO21+AO37","v":{"v":944146.2111566041,"d":"$944,146"}},{"v":943674.2716844958,"d":"$943,674"},{"v":943196.1111315098,"d":"$943,196"},{"v":942664.4856937878,"d":"$942,664"},{"v":942315.1512130636,"d":"$942,315"},{"v":941860.1694163488,"d":"$941,860"},{"v":941381.0506184736,"d":"$941,381"},{"v":940978.4830684941,"d":"$940,978"},{"v":940542.6632786277,"d":"$940,543"},{"v":940008.0653541706,"d":"$940,008"},{"v":939517.9952634374,"d":"$939,518"},{"v":939068.1347899165,"d":"$939,068"},{"$f":"SUM(AO36:AZ36)","v":{"v":11299352.792668927,"d":"$11,299,353"}},{"$f":"BB12+BB21+BB37","v":{"v":938644.406653749,"d":"$938,644"}},{"v":938087.7812370255,"d":"$938,088"},{"v":937581.9771771593,"d":"$937,582"},{"v":937109.726151408,"d":"$937,110"},{"v":936751.5078832669,"d":"$936,752"},{"v":936260.9318377407,"d":"$936,261"},{"v":935764.8471597858,"d":"$935,765"},{"v":935324.1049214152,"d":"$935,324"},{"v":934847.3566123834,"d":"$934,847"},{"v":934477.3374656249,"d":"$934,477"},{"v":934122.1656598256,"d":"$934,122"},{"v":933699.9233426909,"d":"$933,700"},{"$f":"SUM(BB36:BM36)","v":{"v":11232672.066102078,"d":"$11,232,672"}},{"$f":"BO12+BO21+BO37","v":{"v":933297.2545806043,"d":"$933,297"}},{"v":932863.1528172103,"d":"$932,863"},{"v":932528.2070827683,"d":"$932,528"},{"v":932137.4262882587,"d":"$932,137"},{"v":931681.5775401191,"d":"$931,682"},{"v":931209.1007474284,"d":"$931,209"},{"v":930909.7288199271,"d":"$930,910"},{"v":930456.8255890841,"d":"$930,457"},{"v":929952.6259363503,"d":"$929,953"},{"v":929518.946751397,"d":"$929,519"},{"v":929073.5076885468,"d":"$929,074"},{"v":928752.2835096299,"d":"$928,752"},{"$f":"SUM(BO36:BZ36)","v":{"v":11172380.637351325,"d":"$11,172,381"}},{"$f":"CB12+CB21+CB37","v":{"v":928379.5911695614,"d":"$928,380"}},{"v":927973.7226130225,"d":"$927,974"},{"v":927512.5529542399,"d":"$927,513"},{"v":926977.6661872608,"d":"$926,978"},{"v":926447.0691672094,"d":"$926,447"},{"v":925993.0425878398,"d":"$925,993"},{"v":925724.5566596094,"d":"$925,725"},{"v":925316.6232338442,"d":"$925,317"},{"v":924851.0360288662,"d":"$924,851"},{"v":924484.1594620679,"d":"$924,484"},{"v":924138.6170225386,"d":"$924,139"},{"v":923596.4356109194,"d":"$923,596"},{"$f":"SUM(CB36:CM36)","v":{"v":11111395.07269698,"d":"$11,111,395"}},{"$f":"CO12+CO21+CO37","v":{"v":923162.5199007749,"d":"$923,163"}},{"v":922708.1516583537,"d":"$922,708"},{"v":922176.3508945791,"d":"$922,176"},{"v":921876.5720408612,"d":"$921,877"},{"v":921396.4894409137,"d":"$921,396"},{"v":920897.5247349358,"d":"$920,898"},{"v":920422.1338275936,"d":"$920,422"},{"v":920004.3625299855,"d":"$920,004"},{"v":919509.3311156344,"d":"$919,509"},{"v":919131.4893991508,"d":"$919,131"},{"v":918593.0512103542,"d":"$918,593"},{"v":918145.5041492312,"d":"$918,146"},{"$f":"SUM(CO36:CZ36)","v":{"v":11048023.48090237,"d":"$11,048,023"}},{"$f":"DB12+DB21+DB37","v":{"v":917633.7042970771,"d":"$917,634"}},{"v":917240.8106705139,"d":"$917,241"},{"v":916776.9614337016,"d":"$916,777"},{"v":916294.6630870186,"d":"$916,295"},{"v":915837.3707697988,"d":"$915,837"},{"v":915418.22772706,"d":"$915,418"},{"v":915025.7498229705,"d":"$915,026"},{"v":914685.2085118555,"d":"$914,685"},{"v":914248.8501299997,"d":"$914,249"},{"v":913716.3099482647,"d":"$913,716"},{"v":913261.0328783687,"d":"$913,261"},{"v":912664.3539025318,"d":"$912,664"},{"$f":"SUM(DB36:DM36)","v":{"v":10982803.243179163,"d":"$10,982,803"}},{"$f":"DO12+DO21+DO37","v":{"v":912233.8132819235,"d":"$912,234"}},{"v":911846.3565196038,"d":"$911,846"},{"v":911379.7171804728,"d":"$911,380"},{"v":910961.2071097533,"d":"$910,961"},{"v":910525.9918752515,"d":"$910,526"},{"v":910063.7733416312,"d":"$910,064"},{"v":909715.2648882988,"d":"$909,715"},{"v":909234.8036655614,"d":"$909,235"},{"v":908793.2897730257,"d":"$908,793"},{"v":908422.2994022411,"d":"$908,422"},{"v":907922.3544212165,"d":"$907,922"},{"v":907402.3168751047,"d":"$907,402"},{"$f":"SUM(DO36:DZ36)","v":{"v":10918501.188334085,"d":"$10,918,501"}},{"$f":"EB12+EB21+EB37","v":{"v":906885.7274635521,"d":"$906,886"}},{"v":906437.5589586456,"d":"$906,438"},{"v":906144.9776036246,"d":"$906,145"},{"v":905622.1642366644,"d":"$905,622"},{"v":905122.5593348505,"d":"$905,123"},{"v":904676.5281033026,"d":"$904,677"},{"v":904278.315940824,"d":"$904,278"},{"v":903771.2953472706,"d":"$903,771"},{"v":903180.3027357662,"d":"$903,180"},{"v":902752.1842519122,"d":"$902,752"},{"v":902271.8336707127,"d":"$902,272"},{"v":901837.9016507687,"d":"$901,838"},{"$f":"SUM(EB36:EM36)","v":{"v":10852981.349297896,"d":"$10,852,981"}}]
[{"$f":"Labels!B51","v":"Gov Spending"},{"$f":"'(Other Computations)'!B11/8","v":{"v":29166.66666666667,"d":"$29,167"}},{"$f":"'(Other Computations)'!B11/8","v":{"v":29166.66666666667,"d":"$29,167"}},{"$f":"'(Other Computations)'!B11/8","v":{"v":29166.66666666667,"d":"$29,167"}},{"$f":"'(Other Computations)'!B11/8","v":{"v":29166.66666666667,"d":"$29,167"}},{"$f":"'(Other Computations)'!B11/8","v":{"v":29166.66666666667,"d":"$29,167"}},{"$f":"'(Other Computations)'!B11/8","v":{"v":29166.66666666667,"d":"$29,167"}},{"$f":"'(Other Computations)'!B11/8","v":{"v":29166.66666666667,"d":"$29,167"}},{"$f":"'(Other Computations)'!B11/8","v":{"v":29166.66666666667,"d":"$29,167"}},{"$f":"'(Other Computations)'!B11/8","v":{"v":29166.66666666667,"d":"$29,167"}},{"$f":"'(Other Computations)'!B11/8","v":{"v":29166.66666666667,"d":"$29,167"}},{"$f":"'(Other Computations)'!B11/8","v":{"v":29166.66666666667,"d":"$29,167"}},{"$f":"'(Other Computations)'!B11/8","v":{"v":29166.66666666667,"d":"$29,167"}},{"$f":"SUM(B37:M37)","v":{"v":350000.0000000002,"d":"$350,000"}},{"$f":"'(Other Computations)'!B11/8","v":{"v":29166.66666666667,"d":"$29,167"}},{"$f":"'(Other Computations)'!B11/8","v":{"v":29166.66666666667,"d":"$29,167"}},{"$f":"'(Other Computations)'!B11/8","v":{"v":29166.66666666667,"d":"$29,167"}},{"$f":"'(Other Computations)'!B11/8","v":{"v":29166.66666666667,"d":"$29,167"}},{"$f":"'(Other Computations)'!B11/8","v":{"v":29166.66666666667,"d":"$29,167"}},{"$f":"'(Other Computations)'!B11/8","v":{"v":29166.66666666667,"d":"$29,167"}},{"$f":"'(Other Computations)'!B11/8","v":{"v":29166.66666666667,"d":"$29,167"}},{"$f":"'(Other Computations)'!B11/8","v":{"v":29166.66666666667,"d":"$29,167"}},{"$f":"'(Other Computations)'!B11/8","v":{"v":29166.66666666667,"d":"$29,167"}},{"$f":"'(Other Computations)'!B11/8","v":{"v":29166.66666666667,"d":"$29,167"}},{"$f":"'(Other Computations)'!B11/8","v":{"v":29166.66666666667,"d":"$29,167"}},{"$f":"'(Other Computations)'!B11/8","v":{"v":29166.66666666667,"d":"$29,167"}},{"$f":"SUM(O37:Z37)","v":{"v":350000.0000000002,"d":"$350,000"}},{"$f":"'(Other Computations)'!B11/8","v":{"v":29166.66666666667,"d":"$29,167"}},{"$f":"'(Other Computations)'!B11/8","v":{"v":29166.66666666667,"d":"$29,167"}},{"$f":"'(Other Computations)'!B11/8","v":{"v":29166.66666666667,"d":"$29,167"}},{"$f":"'(Other Computations)'!B11/8","v":{"v":29166.66666666667,"d":"$29,167"}},{"$f":"'(Other Computations)'!B11/8","v":{"v":29166.66666666667,"d":"$29,167"}},{"$f":"'(Other Computations)'!B11/8","v":{"v":29166.66666666667,"d":"$29,167"}},{"$f":"'(Other Computations)'!B11/8","v":{"v":29166.66666666667,"d":"$29,167"}},{"$f":"'(Other Computations)'!B11/8","v":{"v":29166.66666666667,"d":"$29,167"}},{"$f":"'(Other Computations)'!B11/8","v":{"v":29166.66666666667,"d":"$29,167"}},{"$f":"'(Other Computations)'!B11/8","v":{"v":29166.66666666667,"d":"$29,167"}},{"$f":"'(Other Computations)'!B11/8","v":{"v":29166.66666666667,"d":"$29,167"}},{"$f":"'(Other Computations)'!B11/8","v":{"v":29166.66666666667,"d":"$29,167"}},{"$f":"SUM(AB37:AM37)","v":{"v":350000.0000000002,"d":"$350,000"}},{"$f":"'(Other Computations)'!B11/8","v":{"v":29166.66666666667,"d":"$29,167"}},{"$f":"'(Other Computations)'!B11/8","v":{"v":29166.66666666667,"d":"$29,167"}},{"$f":"'(Other Computations)'!B11/8","v":{"v":29166.66666666667,"d":"$29,167"}},{"$f":"'(Other Computations)'!B11/8","v":{"v":29166.66666666667,"d":"$29,167"}},{"$f":"'(Other Computations)'!B11/8","v":{"v":29166.66666666667,"d":"$29,167"}},{"$f":"'(Other Computations)'!B11/8","v":{"v":29166.66666666667,"d":"$29,167"}},{"$f":"'(Other Computations)'!B11/8","v":{"v":29166.66666666667,"d":"$29,167"}},{"$f":"'(Other Computations)'!B11/8","v":{"v":29166.66666666667,"d":"$29,167"}},{"$f":"'(Other Computations)'!B11/8","v":{"v":29166.66666666667,"d":"$29,167"}},{"$f":"'(Other Computations)'!B11/8","v":{"v":29166.66666666667,"d":"$29,167"}},{"$f":"'(Other Computations)'!B11/8","v":{"v":29166.66666666667,"d":"$29,167"}},{"$f":"'(Other Computations)'!B11/8","v":{"v":29166.66666666667,"d":"$29,167"}},{"$f":"SUM(AO37:AZ37)","v":{"v":350000.0000000002,"d":"$350,000"}},{"$f":"'(Other Computations)'!B11/8","v":{"v":29166.66666666667,"d":"$29,167"}},{"$f":"'(Other Computations)'!B11/8","v":{"v":29166.66666666667,"d":"$29,167"}},{"$f":"'(Other Computations)'!B11/8","v":{"v":29166.66666666667,"d":"$29,167"}},{"$f":"'(Other Computations)'!B11/8","v":{"v":29166.66666666667,"d":"$29,167"}},{"$f":"'(Other Computations)'!B11/8","v":{"v":29166.66666666667,"d":"$29,167"}},{"$f":"'(Other Computations)'!B11/8","v":{"v":29166.66666666667,"d":"$29,167"}},{"$f":"'(Other Computations)'!B11/8","v":{"v":29166.66666666667,"d":"$29,167"}},{"$f":"'(Other Computations)'!B11/8","v":{"v":29166.66666666667,"d":"$29,167"}},{"$f":"'(Other Computations)'!B11/8","v":{"v":29166.66666666667,"d":"$29,167"}},{"$f":"'(Other Computations)'!B11/8","v":{"v":29166.66666666667,"d":"$29,167"}},{"$f":"'(Other Computations)'!B11/8","v":{"v":29166.66666666667,"d":"$29,167"}},{"$f":"'(Other Computations)'!B11/8","v":{"v":29166.66666666667,"d":"$29,167"}},{"$f":"SUM(BB37:BM37)","v":{"v":350000.0000000002,"d":"$350,000"}},{"$f":"'(Other Computations)'!B11/8","v":{"v":29166.66666666667,"d":"$29,167"}},{"$f":"'(Other Computations)'!B11/8","v":{"v":29166.66666666667,"d":"$29,167"}},{"$f":"'(Other Computations)'!B11/8","v":{"v":29166.66666666667,"d":"$29,167"}},{"$f":"'(Other Computations)'!B11/8","v":{"v":29166.66666666667,"d":"$29,167"}},{"$f":"'(Other Computations)'!B11/8","v":{"v":29166.66666666667,"d":"$29,167"}},{"$f":"'(Other Computations)'!B11/8","v":{"v":29166.66666666667,"d":"$29,167"}},{"$f":"'(Other Computations)'!B11/8","v":{"v":29166.66666666667,"d":"$29,167"}},{"$f":"'(Other Computations)'!B11/8","v":{"v":29166.66666666667,"d":"$29,167"}},{"$f":"'(Other Computations)'!B11/8","v":{"v":29166.66666666667,"d":"$29,167"}},{"$f":"'(Other Computations)'!B11/8","v":{"v":29166.66666666667,"d":"$29,167"}},{"$f":"'(Other Computations)'!B11/8","v":{"v":29166.66666666667,"d":"$29,167"}},{"$f":"'(Other Computations)'!B11/8","v":{"v":29166.66666666667,"d":"$29,167"}},{"$f":"SUM(BO37:BZ37)","v":{"v":350000.0000000002,"d":"$350,000"}},{"$f":"'(Other Computations)'!B11/8","v":{"v":29166.66666666667,"d":"$29,167"}},{"$f":"'(Other Computations)'!B11/8","v":{"v":29166.66666666667,"d":"$29,167"}},{"$f":"'(Other Computations)'!B11/8","v":{"v":29166.66666666667,"d":"$29,167"}},{"$f":"'(Other Computations)'!B11/8","v":{"v":29166.66666666667,"d":"$29,167"}},{"$f":"'(Other Computations)'!B11/8","v":{"v":29166.66666666667,"d":"$29,167"}},{"$f":"'(Other Computations)'!B11/8","v":{"v":29166.66666666667,"d":"$29,167"}},{"$f":"'(Other Computations)'!B11/8","v":{"v":29166.66666666667,"d":"$29,167"}},{"$f":"'(Other Computations)'!B11/8","v":{"v":29166.66666666667,"d":"$29,167"}},{"$f":"'(Other Computations)'!B11/8","v":{"v":29166.66666666667,"d":"$29,167"}},{"$f":"'(Other Computations)'!B11/8","v":{"v":29166.66666666667,"d":"$29,167"}},{"$f":"'(Other Computations)'!B11/8","v":{"v":29166.66666666667,"d":"$29,167"}},{"$f":"'(Other Computations)'!B11/8","v":{"v":29166.66666666667,"d":"$29,167"}},{"$f":"SUM(CB37:CM37)","v":{"v":350000.0000000002,"d":"$350,000"}},{"$f":"'(Other Computations)'!B11/8","v":{"v":29166.66666666667,"d":"$29,167"}},{"$f":"'(Other Computations)'!B11/8","v":{"v":29166.66666666667,"d":"$29,167"}},{"$f":"'(Other Computations)'!B11/8","v":{"v":29166.66666666667,"d":"$29,167"}},{"$f":"'(Other Computations)'!B11/8","v":{"v":29166.66666666667,"d":"$29,167"}},{"$f":"'(Other Computations)'!B11/8","v":{"v":29166.66666666667,"d":"$29,167"}},{"$f":"'(Other Computations)'!B11/8","v":{"v":29166.66666666667,"d":"$29,167"}},{"$f":"'(Other Computations)'!B11/8","v":{"v":29166.66666666667,"d":"$29,167"}},{"$f":"'(Other Computations)'!B11/8","v":{"v":29166.66666666667,"d":"$29,167"}},{"$f":"'(Other Computations)'!B11/8","v":{"v":29166.66666666667,"d":"$29,167"}},{"$f":"'(Other Computations)'!B11/8","v":{"v":29166.66666666667,"d":"$29,167"}},{"$f":"'(Other Computations)'!B11/8","v":{"v":29166.66666666667,"d":"$29,167"}},{"$f":"'(Other Computations)'!B11/8","v":{"v":29166.66666666667,"d":"$29,167"}},{"$f":"SUM(CO37:CZ37)","v":{"v":350000.0000000002,"d":"$350,000"}},{"$f":"'(Other Computations)'!B11/8","v":{"v":29166.66666666667,"d":"$29,167"}},{"$f":"'(Other Computations)'!B11/8","v":{"v":29166.66666666667,"d":"$29,167"}},{"$f":"'(Other Computations)'!B11/8","v":{"v":29166.66666666667,"d":"$29,167"}},{"$f":"'(Other Computations)'!B11/8","v":{"v":29166.66666666667,"d":"$29,167"}},{"$f":"'(Other Computations)'!B11/8","v":{"v":29166.66666666667,"d":"$29,167"}},{"$f":"'(Other Computations)'!B11/8","v":{"v":29166.66666666667,"d":"$29,167"}},{"$f":"'(Other Computations)'!B11/8","v":{"v":29166.66666666667,"d":"$29,167"}},{"$f":"'(Other Computations)'!B11/8","v":{"v":29166.66666666667,"d":"$29,167"}},{"$f":"'(Other Computations)'!B11/8","v":{"v":29166.66666666667,"d":"$29,167"}},{"$f":"'(Other Computations)'!B11/8","v":{"v":29166.66666666667,"d":"$29,167"}},{"$f":"'(Other Computations)'!B11/8","v":{"v":29166.66666666667,"d":"$29,167"}},{"$f":"'(Other Computations)'!B11/8","v":{"v":29166.66666666667,"d":"$29,167"}},{"$f":"SUM(DB37:DM37)","v":{"v":350000.0000000002,"d":"$350,000"}},{"$f":"'(Other Computations)'!B11/8","v":{"v":29166.66666666667,"d":"$29,167"}},{"$f":"'(Other Computations)'!B11/8","v":{"v":29166.66666666667,"d":"$29,167"}},{"$f":"'(Other Computations)'!B11/8","v":{"v":29166.66666666667,"d":"$29,167"}},{"$f":"'(Other Computations)'!B11/8","v":{"v":29166.66666666667,"d":"$29,167"}},{"$f":"'(Other Computations)'!B11/8","v":{"v":29166.66666666667,"d":"$29,167"}},{"$f":"'(Other Computations)'!B11/8","v":{"v":29166.66666666667,"d":"$29,167"}},{"$f":"'(Other Computations)'!B11/8","v":{"v":29166.66666666667,"d":"$29,167"}},{"$f":"'(Other Computations)'!B11/8","v":{"v":29166.66666666667,"d":"$29,167"}},{"$f":"'(Other Computations)'!B11/8","v":{"v":29166.66666666667,"d":"$29,167"}},{"$f":"'(Other Computations)'!B11/8","v":{"v":29166.66666666667,"d":"$29,167"}},{"$f":"'(Other Computations)'!B11/8","v":{"v":29166.66666666667,"d":"$29,167"}},{"$f":"'(Other Computations)'!B11/8","v":{"v":29166.66666666667,"d":"$29,167"}},{"$f":"SUM(DO37:DZ37)","v":{"v":350000.0000000002,"d":"$350,000"}},{"$f":"'(Other Computations)'!B11/8","v":{"v":29166.66666666667,"d":"$29,167"}},{"$f":"'(Other Computations)'!B11/8","v":{"v":29166.66666666667,"d":"$29,167"}},{"$f":"'(Other Computations)'!B11/8","v":{"v":29166.66666666667,"d":"$29,167"}},{"$f":"'(Other Computations)'!B11/8","v":{"v":29166.66666666667,"d":"$29,167"}},{"$f":"'(Other Computations)'!B11/8","v":{"v":29166.66666666667,"d":"$29,167"}},{"$f":"'(Other Computations)'!B11/8","v":{"v":29166.66666666667,"d":"$29,167"}},{"$f":"'(Other Computations)'!B11/8","v":{"v":29166.66666666667,"d":"$29,167"}},{"$f":"'(Other Computations)'!B11/8","v":{"v":29166.66666666667,"d":"$29,167"}},{"$f":"'(Other Computations)'!B11/8","v":{"v":29166.66666666667,"d":"$29,167"}},{"$f":"'(Other Computations)'!B11/8","v":{"v":29166.66666666667,"d":"$29,167"}},{"$f":"'(Other Computations)'!B11/8","v":{"v":29166.66666666667,"d":"$29,167"}},{"$f":"'(Other Computations)'!B11/8","v":{"v":29166.66666666667,"d":"$29,167"}},{"$f":"SUM(EB37:EM37)","v":{"v":350000.0000000002,"d":"$350,000"}}]
[{"$f":"Labels!B52","v":"Gov Transfers"},{"$f":"'(Other Computations)'!B14/8","v":{"v":14583.333333333336,"d":"$14,583"}},{"$f":"'(Other Computations)'!B14/8","v":{"v":14583.333333333336,"d":"$14,583"}},{"$f":"'(Other Computations)'!B14/8","v":{"v":14583.333333333336,"d":"$14,583"}},{"$f":"'(Other Computations)'!B14/8","v":{"v":14583.333333333336,"d":"$14,583"}},{"$f":"'(Other Computations)'!B14/8","v":{"v":14583.333333333336,"d":"$14,583"}},{"$f":"'(Other Computations)'!B14/8","v":{"v":14583.333333333336,"d":"$14,583"}},{"$f":"'(Other Computations)'!B14/8","v":{"v":14583.333333333336,"d":"$14,583"}},{"$f":"'(Other Computations)'!B14/8","v":{"v":14583.333333333336,"d":"$14,583"}},{"$f":"'(Other Computations)'!B14/8","v":{"v":14583.333333333336,"d":"$14,583"}},{"$f":"'(Other Computations)'!B14/8","v":{"v":14583.333333333336,"d":"$14,583"}},{"$f":"'(Other Computations)'!B14/8","v":{"v":14583.333333333336,"d":"$14,583"}},{"$f":"'(Other Computations)'!B14/8","v":{"v":14583.333333333336,"d":"$14,583"}},{"$f":"SUM(B38:M38)","v":{"v":175000.0000000001,"d":"$175,000"}},{"$f":"'(Other Computations)'!B14/8","v":{"v":14583.333333333336,"d":"$14,583"}},{"$f":"'(Other Computations)'!B14/8","v":{"v":14583.333333333336,"d":"$14,583"}},{"$f":"'(Other Computations)'!B14/8","v":{"v":14583.333333333336,"d":"$14,583"}},{"$f":"'(Other Computations)'!B14/8","v":{"v":14583.333333333336,"d":"$14,583"}},{"$f":"'(Other Computations)'!B14/8","v":{"v":14583.333333333336,"d":"$14,583"}},{"$f":"'(Other Computations)'!B14/8","v":{"v":14583.333333333336,"d":"$14,583"}},{"$f":"'(Other Computations)'!B14/8","v":{"v":14583.333333333336,"d":"$14,583"}},{"$f":"'(Other Computations)'!B14/8","v":{"v":14583.333333333336,"d":"$14,583"}},{"$f":"'(Other Computations)'!B14/8","v":{"v":14583.333333333336,"d":"$14,583"}},{"$f":"'(Other Computations)'!B14/8","v":{"v":14583.333333333336,"d":"$14,583"}},{"$f":"'(Other Computations)'!B14/8","v":{"v":14583.333333333336,"d":"$14,583"}},{"$f":"'(Other Computations)'!B14/8","v":{"v":14583.333333333336,"d":"$14,583"}},{"$f":"SUM(O38:Z38)","v":{"v":175000.0000000001,"d":"$175,000"}},{"$f":"'(Other Computations)'!B14/8","v":{"v":14583.333333333336,"d":"$14,583"}},{"$f":"'(Other Computations)'!B14/8","v":{"v":14583.333333333336,"d":"$14,583"}},{"$f":"'(Other Computations)'!B14/8","v":{"v":14583.333333333336,"d":"$14,583"}},{"$f":"'(Other Computations)'!B14/8","v":{"v":14583.333333333336,"d":"$14,583"}},{"$f":"'(Other Computations)'!B14/8","v":{"v":14583.333333333336,"d":"$14,583"}},{"$f":"'(Other Computations)'!B14/8","v":{"v":14583.333333333336,"d":"$14,583"}},{"$f":"'(Other Computations)'!B14/8","v":{"v":14583.333333333336,"d":"$14,583"}},{"$f":"'(Other Computations)'!B14/8","v":{"v":14583.333333333336,"d":"$14,583"}},{"$f":"'(Other Computations)'!B14/8","v":{"v":14583.333333333336,"d":"$14,583"}},{"$f":"'(Other Computations)'!B14/8","v":{"v":14583.333333333336,"d":"$14,583"}},{"$f":"'(Other Computations)'!B14/8","v":{"v":14583.333333333336,"d":"$14,583"}},{"$f":"'(Other Computations)'!B14/8","v":{"v":14583.333333333336,"d":"$14,583"}},{"$f":"SUM(AB38:AM38)","v":{"v":175000.0000000001,"d":"$175,000"}},{"$f":"'(Other Computations)'!B14/8","v":{"v":14583.333333333336,"d":"$14,583"}},{"$f":"'(Other Computations)'!B14/8","v":{"v":14583.333333333336,"d":"$14,583"}},{"$f":"'(Other Computations)'!B14/8","v":{"v":14583.333333333336,"d":"$14,583"}},{"$f":"'(Other Computations)'!B14/8","v":{"v":14583.333333333336,"d":"$14,583"}},{"$f":"'(Other Computations)'!B14/8","v":{"v":14583.333333333336,"d":"$14,583"}},{"$f":"'(Other Computations)'!B14/8","v":{"v":14583.333333333336,"d":"$14,583"}},{"$f":"'(Other Computations)'!B14/8","v":{"v":14583.333333333336,"d":"$14,583"}},{"$f":"'(Other Computations)'!B14/8","v":{"v":14583.333333333336,"d":"$14,583"}},{"$f":"'(Other Computations)'!B14/8","v":{"v":14583.333333333336,"d":"$14,583"}},{"$f":"'(Other Computations)'!B14/8","v":{"v":14583.333333333336,"d":"$14,583"}},{"$f":"'(Other Computations)'!B14/8","v":{"v":14583.333333333336,"d":"$14,583"}},{"$f":"'(Other Computations)'!B14/8","v":{"v":14583.333333333336,"d":"$14,583"}},{"$f":"SUM(AO38:AZ38)","v":{"v":175000.0000000001,"d":"$175,000"}},{"$f":"'(Other Computations)'!B14/8","v":{"v":14583.333333333336,"d":"$14,583"}},{"$f":"'(Other Computations)'!B14/8","v":{"v":14583.333333333336,"d":"$14,583"}},{"$f":"'(Other Computations)'!B14/8","v":{"v":14583.333333333336,"d":"$14,583"}},{"$f":"'(Other Computations)'!B14/8","v":{"v":14583.333333333336,"d":"$14,583"}},{"$f":"'(Other Computations)'!B14/8","v":{"v":14583.333333333336,"d":"$14,583"}},{"$f":"'(Other Computations)'!B14/8","v":{"v":14583.333333333336,"d":"$14,583"}},{"$f":"'(Other Computations)'!B14/8","v":{"v":14583.333333333336,"d":"$14,583"}},{"$f":"'(Other Computations)'!B14/8","v":{"v":14583.333333333336,"d":"$14,583"}},{"$f":"'(Other Computations)'!B14/8","v":{"v":14583.333333333336,"d":"$14,583"}},{"$f":"'(Other Computations)'!B14/8","v":{"v":14583.333333333336,"d":"$14,583"}},{"$f":"'(Other Computations)'!B14/8","v":{"v":14583.333333333336,"d":"$14,583"}},{"$f":"'(Other Computations)'!B14/8","v":{"v":14583.333333333336,"d":"$14,583"}},{"$f":"SUM(BB38:BM38)","v":{"v":175000.0000000001,"d":"$175,000"}},{"$f":"'(Other Computations)'!B14/8","v":{"v":14583.333333333336,"d":"$14,583"}},{"$f":"'(Other Computations)'!B14/8","v":{"v":14583.333333333336,"d":"$14,583"}},{"$f":"'(Other Computations)'!B14/8","v":{"v":14583.333333333336,"d":"$14,583"}},{"$f":"'(Other Computations)'!B14/8","v":{"v":14583.333333333336,"d":"$14,583"}},{"$f":"'(Other Computations)'!B14/8","v":{"v":14583.333333333336,"d":"$14,583"}},{"$f":"'(Other Computations)'!B14/8","v":{"v":14583.333333333336,"d":"$14,583"}},{"$f":"'(Other Computations)'!B14/8","v":{"v":14583.333333333336,"d":"$14,583"}},{"$f":"'(Other Computations)'!B14/8","v":{"v":14583.333333333336,"d":"$14,583"}},{"$f":"'(Other Computations)'!B14/8","v":{"v":14583.333333333336,"d":"$14,583"}},{"$f":"'(Other Computations)'!B14/8","v":{"v":14583.333333333336,"d":"$14,583"}},{"$f":"'(Other Computations)'!B14/8","v":{"v":14583.333333333336,"d":"$14,583"}},{"$f":"'(Other Computations)'!B14/8","v":{"v":14583.333333333336,"d":"$14,583"}},{"$f":"SUM(BO38:BZ38)","v":{"v":175000.0000000001,"d":"$175,000"}},{"$f":"'(Other Computations)'!B14/8","v":{"v":14583.333333333336,"d":"$14,583"}},{"$f":"'(Other Computations)'!B14/8","v":{"v":14583.333333333336,"d":"$14,583"}},{"$f":"'(Other Computations)'!B14/8","v":{"v":14583.333333333336,"d":"$14,583"}},{"$f":"'(Other Computations)'!B14/8","v":{"v":14583.333333333336,"d":"$14,583"}},{"$f":"'(Other Computations)'!B14/8","v":{"v":14583.333333333336,"d":"$14,583"}},{"$f":"'(Other Computations)'!B14/8","v":{"v":14583.333333333336,"d":"$14,583"}},{"$f":"'(Other Computations)'!B14/8","v":{"v":14583.333333333336,"d":"$14,583"}},{"$f":"'(Other Computations)'!B14/8","v":{"v":14583.333333333336,"d":"$14,583"}},{"$f":"'(Other Computations)'!B14/8","v":{"v":14583.333333333336,"d":"$14,583"}},{"$f":"'(Other Computations)'!B14/8","v":{"v":14583.333333333336,"d":"$14,583"}},{"$f":"'(Other Computations)'!B14/8","v":{"v":14583.333333333336,"d":"$14,583"}},{"$f":"'(Other Computations)'!B14/8","v":{"v":14583.333333333336,"d":"$14,583"}},{"$f":"SUM(CB38:CM38)","v":{"v":175000.0000000001,"d":"$175,000"}},{"$f":"'(Other Computations)'!B14/8","v":{"v":14583.333333333336,"d":"$14,583"}},{"$f":"'(Other Computations)'!B14/8","v":{"v":14583.333333333336,"d":"$14,583"}},{"$f":"'(Other Computations)'!B14/8","v":{"v":14583.333333333336,"d":"$14,583"}},{"$f":"'(Other Computations)'!B14/8","v":{"v":14583.333333333336,"d":"$14,583"}},{"$f":"'(Other Computations)'!B14/8","v":{"v":14583.333333333336,"d":"$14,583"}},{"$f":"'(Other Computations)'!B14/8","v":{"v":14583.333333333336,"d":"$14,583"}},{"$f":"'(Other Computations)'!B14/8","v":{"v":14583.333333333336,"d":"$14,583"}},{"$f":"'(Other Computations)'!B14/8","v":{"v":14583.333333333336,"d":"$14,583"}},{"$f":"'(Other Computations)'!B14/8","v":{"v":14583.333333333336,"d":"$14,583"}},{"$f":"'(Other Computations)'!B14/8","v":{"v":14583.333333333336,"d":"$14,583"}},{"$f":"'(Other Computations)'!B14/8","v":{"v":14583.333333333336,"d":"$14,583"}},{"$f":"'(Other Computations)'!B14/8","v":{"v":14583.333333333336,"d":"$14,583"}},{"$f":"SUM(CO38:CZ38)","v":{"v":175000.0000000001,"d":"$175,000"}},{"$f":"'(Other Computations)'!B14/8","v":{"v":14583.333333333336,"d":"$14,583"}},{"$f":"'(Other Computations)'!B14/8","v":{"v":14583.333333333336,"d":"$14,583"}},{"$f":"'(Other Computations)'!B14/8","v":{"v":14583.333333333336,"d":"$14,583"}},{"$f":"'(Other Computations)'!B14/8","v":{"v":14583.333333333336,"d":"$14,583"}},{"$f":"'(Other Computations)'!B14/8","v":{"v":14583.333333333336,"d":"$14,583"}},{"$f":"'(Other Computations)'!B14/8","v":{"v":14583.333333333336,"d":"$14,583"}},{"$f":"'(Other Computations)'!B14/8","v":{"v":14583.333333333336,"d":"$14,583"}},{"$f":"'(Other Computations)'!B14/8","v":{"v":14583.333333333336,"d":"$14,583"}},{"$f":"'(Other Computations)'!B14/8","v":{"v":14583.333333333336,"d":"$14,583"}},{"$f":"'(Other Computations)'!B14/8","v":{"v":14583.333333333336,"d":"$14,583"}},{"$f":"'(Other Computations)'!B14/8","v":{"v":14583.333333333336,"d":"$14,583"}},{"$f":"'(Other Computations)'!B14/8","v":{"v":14583.333333333336,"d":"$14,583"}},{"$f":"SUM(DB38:DM38)","v":{"v":175000.0000000001,"d":"$175,000"}},{"$f":"'(Other Computations)'!B14/8","v":{"v":14583.333333333336,"d":"$14,583"}},{"$f":"'(Other Computations)'!B14/8","v":{"v":14583.333333333336,"d":"$14,583"}},{"$f":"'(Other Computations)'!B14/8","v":{"v":14583.333333333336,"d":"$14,583"}},{"$f":"'(Other Computations)'!B14/8","v":{"v":14583.333333333336,"d":"$14,583"}},{"$f":"'(Other Computations)'!B14/8","v":{"v":14583.333333333336,"d":"$14,583"}},{"$f":"'(Other Computations)'!B14/8","v":{"v":14583.333333333336,"d":"$14,583"}},{"$f":"'(Other Computations)'!B14/8","v":{"v":14583.333333333336,"d":"$14,583"}},{"$f":"'(Other Computations)'!B14/8","v":{"v":14583.333333333336,"d":"$14,583"}},{"$f":"'(Other Computations)'!B14/8","v":{"v":14583.333333333336,"d":"$14,583"}},{"$f":"'(Other Computations)'!B14/8","v":{"v":14583.333333333336,"d":"$14,583"}},{"$f":"'(Other Computations)'!B14/8","v":{"v":14583.333333333336,"d":"$14,583"}},{"$f":"'(Other Computations)'!B14/8","v":{"v":14583.333333333336,"d":"$14,583"}},{"$f":"SUM(DO38:DZ38)","v":{"v":175000.0000000001,"d":"$175,000"}},{"$f":"'(Other Computations)'!B14/8","v":{"v":14583.333333333336,"d":"$14,583"}},{"$f":"'(Other Computations)'!B14/8","v":{"v":14583.333333333336,"d":"$14,583"}},{"$f":"'(Other Computations)'!B14/8","v":{"v":14583.333333333336,"d":"$14,583"}},{"$f":"'(Other Computations)'!B14/8","v":{"v":14583.333333333336,"d":"$14,583"}},{"$f":"'(Other Computations)'!B14/8","v":{"v":14583.333333333336,"d":"$14,583"}},{"$f":"'(Other Computations)'!B14/8","v":{"v":14583.333333333336,"d":"$14,583"}},{"$f":"'(Other Computations)'!B14/8","v":{"v":14583.333333333336,"d":"$14,583"}},{"$f":"'(Other Computations)'!B14/8","v":{"v":14583.333333333336,"d":"$14,583"}},{"$f":"'(Other Computations)'!B14/8","v":{"v":14583.333333333336,"d":"$14,583"}},{"$f":"'(Other Computations)'!B14/8","v":{"v":14583.333333333336,"d":"$14,583"}},{"$f":"'(Other Computations)'!B14/8","v":{"v":14583.333333333336,"d":"$14,583"}},{"$f":"'(Other Computations)'!B14/8","v":{"v":14583.333333333336,"d":"$14,583"}},{"$f":"SUM(EB38:EM38)","v":{"v":175000.0000000001,"d":"$175,000"}}]
[]
[]
[{"$f":"\"Output\"","v":"Output"}]
[{"$f":"\" \"","v":" "}]
[null,{"$f":"ZZZ__FnCalls!F7","v":"Jan 2010"},{"$f":"ZZZ__FnCalls!F8","v":"Feb 2010"},{"$f":"ZZZ__FnCalls!F9","v":"Mar 2010"},{"$f":"ZZZ__FnCalls!F10","v":"Apr 2010"},{"$f":"ZZZ__FnCalls!F11","v":"May 2010"},{"$f":"ZZZ__FnCalls!F12","v":"Jun 2010"},{"$f":"ZZZ__FnCalls!F13","v":"Jul 2010"},{"$f":"ZZZ__FnCalls!F14","v":"Aug 2010"},{"$f":"ZZZ__FnCalls!F15","v":"Sep 2010"},{"$f":"ZZZ__FnCalls!F16","v":"Oct 2010"},{"$f":"ZZZ__FnCalls!F17","v":"Nov 2010"},{"$f":"ZZZ__FnCalls!F18","v":"Dec 2010"},{"$f":"ZZZ__FnCalls!H7","v":"2010"},{"$f":"ZZZ__FnCalls!F19","v":"Jan 2011"},{"$f":"ZZZ__FnCalls!F20","v":"Feb 2011"},{"$f":"ZZZ__FnCalls!F21","v":"Mar 2011"},{"$f":"ZZZ__FnCalls!F22","v":"Apr 2011"},{"$f":"ZZZ__FnCalls!F23","v":"May 2011"},{"$f":"ZZZ__FnCalls!F24","v":"Jun 2011"},{"$f":"ZZZ__FnCalls!F25","v":"Jul 2011"},{"$f":"ZZZ__FnCalls!F26","v":"Aug 2011"},{"$f":"ZZZ__FnCalls!F27","v":"Sep 2011"},{"$f":"ZZZ__FnCalls!F28","v":"Oct 2011"},{"$f":"ZZZ__FnCalls!F29","v":"Nov 2011"},{"$f":"ZZZ__FnCalls!F30","v":"Dec 2011"},{"$f":"ZZZ__FnCalls!H19","v":"2011"},{"$f":"ZZZ__FnCalls!F31","v":"Jan 2012"},{"$f":"ZZZ__FnCalls!F32","v":"Feb 2012"},{"$f":"ZZZ__FnCalls!F33","v":"Mar 2012"},{"$f":"ZZZ__FnCalls!F34","v":"Apr 2012"},{"$f":"ZZZ__FnCalls!F35","v":"May 2012"},{"$f":"ZZZ__FnCalls!F36","v":"Jun 2012"},{"$f":"ZZZ__FnCalls!F37","v":"Jul 2012"},{"$f":"ZZZ__FnCalls!F38","v":"Aug 2012"},{"$f":"ZZZ__FnCalls!F39","v":"Sep 2012"},{"$f":"ZZZ__FnCalls!F40","v":"Oct 2012"},{"$f":"ZZZ__FnCalls!F41","v":"Nov 2012"},{"$f":"ZZZ__FnCalls!F42","v":"Dec 2012"},{"$f":"ZZZ__FnCalls!H31","v":"2012"},{"$f":"ZZZ__FnCalls!F43","v":"Jan 2013"},{"$f":"ZZZ__FnCalls!F44","v":"Feb 2013"},{"$f":"ZZZ__FnCalls!F45","v":"Mar 2013"},{"$f":"ZZZ__FnCalls!F46","v":"Apr 2013"},{"$f":"ZZZ__FnCalls!F47","v":"May 2013"},{"$f":"ZZZ__FnCalls!F48","v":"Jun 2013"},{"$f":"ZZZ__FnCalls!F49","v":"Jul 2013"},{"$f":"ZZZ__FnCalls!F50","v":"Aug 2013"},{"$f":"ZZZ__FnCalls!F51","v":"Sep 2013"},{"$f":"ZZZ__FnCalls!F52","v":"Oct 2013"},{"$f":"ZZZ__FnCalls!F53","v":"Nov 2013"},{"$f":"ZZZ__FnCalls!F54","v":"Dec 2013"},{"$f":"ZZZ__FnCalls!H43","v":"2013"},{"$f":"ZZZ__FnCalls!F55","v":"Jan 2014"},{"$f":"ZZZ__FnCalls!F56","v":"Feb 2014"},{"$f":"ZZZ__FnCalls!F57","v":"Mar 2014"},{"$f":"ZZZ__FnCalls!F58","v":"Apr 2014"},{"$f":"ZZZ__FnCalls!F59","v":"May 2014"},{"$f":"ZZZ__FnCalls!F60","v":"Jun 2014"},{"$f":"ZZZ__FnCalls!F61","v":"Jul 2014"},{"$f":"ZZZ__FnCalls!F62","v":"Aug 2014"},{"$f":"ZZZ__FnCalls!F63","v":"Sep 2014"},{"$f":"ZZZ__FnCalls!F64","v":"Oct 2014"},{"$f":"ZZZ__FnCalls!F65","v":"Nov 2014"},{"$f":"ZZZ__FnCalls!F66","v":"Dec 2014"},{"$f":"ZZZ__FnCalls!H55","v":"2014"},{"$f":"ZZZ__FnCalls!F67","v":"Jan 2015"},{"$f":"ZZZ__FnCalls!F68","v":"Feb 2015"},{"$f":"ZZZ__FnCalls!F69","v":"Mar 2015"},{"$f":"ZZZ__FnCalls!F70","v":"Apr 2015"},{"$f":"ZZZ__FnCalls!F71","v":"May 2015"},{"$f":"ZZZ__FnCalls!F72","v":"Jun 2015"},{"$f":"ZZZ__FnCalls!F73","v":"Jul 2015"},{"$f":"ZZZ__FnCalls!F74","v":"Aug 2015"},{"$f":"ZZZ__FnCalls!F75","v":"Sep 2015"},{"$f":"ZZZ__FnCalls!F76","v":"Oct 2015"},{"$f":"ZZZ__FnCalls!F77","v":"Nov 2015"},{"$f":"ZZZ__FnCalls!F78","v":"Dec 2015"},{"$f":"ZZZ__FnCalls!H67","v":"2015"},{"$f":"ZZZ__FnCalls!F79","v":"Jan 2016"},{"$f":"ZZZ__FnCalls!F80","v":"Feb 2016"},{"$f":"ZZZ__FnCalls!F81","v":"Mar 2016"},{"$f":"ZZZ__FnCalls!F82","v":"Apr 2016"},{"$f":"ZZZ__FnCalls!F83","v":"May 2016"},{"$f":"ZZZ__FnCalls!F84","v":"Jun 2016"},{"$f":"ZZZ__FnCalls!F85","v":"Jul 2016"},{"$f":"ZZZ__FnCalls!F86","v":"Aug 2016"},{"$f":"ZZZ__FnCalls!F87","v":"Sep 2016"},{"$f":"ZZZ__FnCalls!F88","v":"Oct 2016"},{"$f":"ZZZ__FnCalls!F89","v":"Nov 2016"},{"$f":"ZZZ__FnCalls!F90","v":"Dec 2016"},{"$f":"ZZZ__FnCalls!H79","v":"2016"},{"$f":"ZZZ__FnCalls!F91","v":"Jan 2017"},{"$f":"ZZZ__FnCalls!F92","v":"Feb 2017"},{"$f":"ZZZ__FnCalls!F93","v":"Mar 2017"},{"$f":"ZZZ__FnCalls!F94","v":"Apr 2017"},{"$f":"ZZZ__FnCalls!F95","v":"May 2017"},{"$f":"ZZZ__FnCalls!F96","v":"Jun 2017"},{"$f":"ZZZ__FnCalls!F97","v":"Jul 2017"},{"$f":"ZZZ__FnCalls!F98","v":"Aug 2017"},{"$f":"ZZZ__FnCalls!F99","v":"Sep 2017"},{"$f":"ZZZ__FnCalls!F100","v":"Oct 2017"},{"$f":"ZZZ__FnCalls!F101","v":"Nov 2017"},{"$f":"ZZZ__FnCalls!F102","v":"Dec 2017"},{"$f":"ZZZ__FnCalls!H91","v":"2017"},{"$f":"ZZZ__FnCalls!F103","v":"Jan 2018"},{"$f":"ZZZ__FnCalls!F104","v":"Feb 2018"},{"$f":"ZZZ__FnCalls!F105","v":"Mar 2018"},{"$f":"ZZZ__FnCalls!F106","v":"Apr 2018"},{"$f":"ZZZ__FnCalls!F107","v":"May 2018"},{"$f":"ZZZ__FnCalls!F108","v":"Jun 2018"},{"$f":"ZZZ__FnCalls!F109","v":"Jul 2018"},{"$f":"ZZZ__FnCalls!F110","v":"Aug 2018"},{"$f":"ZZZ__FnCalls!F111","v":"Sep 2018"},{"$f":"ZZZ__FnCalls!F112","v":"Oct 2018"},{"$f":"ZZZ__FnCalls!F113","v":"Nov 2018"},{"$f":"ZZZ__FnCalls!F114","v":"Dec 2018"},{"$f":"ZZZ__FnCalls!H103","v":"2018"},{"$f":"ZZZ__FnCalls!F115","v":"Jan 2019"},{"$f":"ZZZ__FnCalls!F116","v":"Feb 2019"},{"$f":"ZZZ__FnCalls!F117","v":"Mar 2019"},{"$f":"ZZZ__FnCalls!F118","v":"Apr 2019"},{"$f":"ZZZ__FnCalls!F119","v":"May 2019"},{"$f":"ZZZ__FnCalls!F120","v":"Jun 2019"},{"$f":"ZZZ__FnCalls!F121","v":"Jul 2019"},{"$f":"ZZZ__FnCalls!F122","v":"Aug 2019"},{"$f":"ZZZ__FnCalls!F123","v":"Sep 2019"},{"$f":"ZZZ__FnCalls!F124","v":"Oct 2019"},{"$f":"ZZZ__FnCalls!F125","v":"Nov 2019"},{"$f":"ZZZ__FnCalls!F126","v":"Dec 2019"},{"$f":"ZZZ__FnCalls!H115","v":"2019"},{"$f":"ZZZ__FnCalls!F127","v":"Jan 2020"},{"$f":"ZZZ__FnCalls!F128","v":"Feb 2020"},{"$f":"ZZZ__FnCalls!F129","v":"Mar 2020"},{"$f":"ZZZ__FnCalls!F130","v":"Apr 2020"},{"$f":"ZZZ__FnCalls!F131","v":"May 2020"},{"$f":"ZZZ__FnCalls!F132","v":"Jun 2020"},{"$f":"ZZZ__FnCalls!F133","v":"Jul 2020"},{"$f":"ZZZ__FnCalls!F134","v":"Aug 2020"},{"$f":"ZZZ__FnCalls!F135","v":"Sep 2020"},{"$f":"ZZZ__FnCalls!F136","v":"Oct 2020"},{"$f":"ZZZ__FnCalls!F137","v":"Nov 2020"},{"$f":"ZZZ__FnCalls!F138","v":"Dec 2020"},{"$f":"ZZZ__FnCalls!H127","v":"2020"}]
[{"$f":"Labels!B64","v":"Output"},{"$f":"B45*(1-Inputs!B21)+B11*Inputs!B21+B46","v":{"v":1164665.0625080573,"d":"$1,164,665"}},{"$f":"C45*(1-Inputs!B21)+C11*Inputs!B21+C46","v":{"v":1144946.3989126172,"d":"$1,144,946"}},{"$f":"D45*(1-Inputs!B21)+D11*Inputs!B21+D46","v":{"v":1173802.0664330341,"d":"$1,173,802"}},{"$f":"E45*(1-Inputs!B21)+E11*Inputs!B21+E46","v":{"v":1177731.4725351771,"d":"$1,177,731"}},{"$f":"F45*(1-Inputs!B21)+F11*Inputs!B21+F46","v":{"v":1149455.4456803051,"d":"$1,149,455"}},{"$f":"G45*(1-Inputs!B21)+G11*Inputs!B21+G46","v":{"v":1129506.9227855676,"d":"$1,129,507"}},{"$f":"H45*(1-Inputs!B21)+H11*Inputs!B21+H46","v":{"v":1215778.787108135,"d":"$1,215,779"}},{"$f":"I45*(1-Inputs!B21)+I11*Inputs!B21+I46","v":{"v":1101344.162014124,"d":"$1,101,344"}},{"$f":"J45*(1-Inputs!B21)+J11*Inputs!B21+J46","v":{"v":1145303.0170029318,"d":"$1,145,303"}},{"$f":"K45*(1-Inputs!B21)+K11*Inputs!B21+K46","v":{"v":1157306.1855146622,"d":"$1,157,306"}},{"$f":"L45*(1-Inputs!B21)+L11*Inputs!B21+L46","v":{"v":1212819.3397543642,"d":"$1,212,819"}},{"$f":"M45*(1-Inputs!B21)+M11*Inputs!B21+M46","v":{"v":1151679.1073055523,"d":"$1,151,679"}},{"$f":"SUM(B44:M44)","v":{"v":13924337.96755453,"d":"$13,924,338"}},{"$f":"O45*(1-Inputs!B21)+O11*Inputs!B21+O46","v":{"v":1136915.2042727782,"d":"$1,136,915"}},{"$f":"P45*(1-Inputs!B21)+P11*Inputs!B21+P46","v":{"v":1145329.7926203643,"d":"$1,145,330"}},{"$f":"Q45*(1-Inputs!B21)+Q11*Inputs!B21+Q46","v":{"v":1155705.7944430886,"d":"$1,155,706"}},{"$f":"R45*(1-Inputs!B21)+R11*Inputs!B21+R46","v":{"v":1104566.8839546004,"d":"$1,104,567"}},{"$f":"S45*(1-Inputs!B21)+S11*Inputs!B21+S46","v":{"v":1121162.2153592564,"d":"$1,121,162"}},{"$f":"T45*(1-Inputs!B21)+T11*Inputs!B21+T46","v":{"v":1185586.0398178543,"d":"$1,185,586"}},{"$f":"U45*(1-Inputs!B21)+U11*Inputs!B21+U46","v":{"v":1169766.5730425438,"d":"$1,169,767"}},{"$f":"V45*(1-Inputs!B21)+V11*Inputs!B21+V46","v":{"v":1112174.5003419276,"d":"$1,112,175"}},{"$f":"W45*(1-Inputs!B21)+W11*Inputs!B21+W46","v":{"v":1140025.9908562342,"d":"$1,140,026"}},{"$f":"X45*(1-Inputs!B21)+X11*Inputs!B21+X46","v":{"v":1138008.384062528,"d":"$1,138,008"}},{"$f":"Y45*(1-Inputs!B21)+Y11*Inputs!B21+Y46","v":{"v":1142621.447119453,"d":"$1,142,621"}},{"$f":"Z45*(1-Inputs!B21)+Z11*Inputs!B21+Z46","v":{"v":1106461.5794498527,"d":"$1,106,462"}},{"$f":"SUM(O44:Z44)","v":{"v":13658324.405340483,"d":"$13,658,324"}},{"$f":"AB45*(1-Inputs!B21)+AB11*Inputs!B21+AB46","v":{"v":1086978.4755231293,"d":"$1,086,978"}},{"$f":"AC45*(1-Inputs!B21)+AC11*Inputs!B21+AC46","v":{"v":1148182.278477533,"d":"$1,148,182"}},{"$f":"AD45*(1-Inputs!B21)+AD11*Inputs!B21+AD46","v":{"v":1163992.435121479,"d":"$1,163,992"}},{"$f":"AE45*(1-Inputs!B21)+AE11*Inputs!B21+AE46","v":{"v":1091418.8987842076,"d":"$1,091,419"}},{"$f":"AF45*(1-Inputs!B21)+AF11*Inputs!B21+AF46","v":{"v":1089782.8483094736,"d":"$1,089,783"}},{"$f":"AG45*(1-Inputs!B21)+AG11*Inputs!B21+AG46","v":{"v":1107559.3766977086,"d":"$1,107,559"}},{"$f":"AH45*(1-Inputs!B21)+AH11*Inputs!B21+AH46","v":{"v":1154758.7656308145,"d":"$1,154,759"}},{"$f":"AI45*(1-Inputs!B21)+AI11*Inputs!B21+AI46","v":{"v":1116817.3720234593,"d":"$1,116,817"}},{"$f":"AJ45*(1-Inputs!B21)+AJ11*Inputs!B21+AJ46","v":{"v":1138033.0348968138,"d":"$1,138,033"}},{"$f":"AK45*(1-Inputs!B21)+AK11*Inputs!B21+AK46","v":{"v":1152284.8454802786,"d":"$1,152,285"}},{"$f":"AL45*(1-Inputs!B21)+AL11*Inputs!B21+AL46","v":{"v":1142413.5365677767,"d":"$1,142,414"}},{"$f":"AM45*(1-Inputs!B21)+AM11*Inputs!B21+AM46","v":{"v":1098065.244661236,"d":"$1,098,065"}},{"$f":"SUM(AB44:AM44)","v":{"v":13490287.112173911,"d":"$13,490,287"}},{"$f":"AO45*(1-Inputs!B21)+AO11*Inputs!B21+AO46","v":{"v":1108378.2607209764,"d":"$1,108,378"}},{"$f":"AP45*(1-Inputs!B21)+AP11*Inputs!B21+AP46","v":{"v":1097846.4105468823,"d":"$1,097,846"}},{"$f":"AQ45*(1-Inputs!B21)+AQ11*Inputs!B21+AQ46","v":{"v":1080690.653703916,"d":"$1,080,691"}},{"$f":"AR45*(1-Inputs!B21)+AR11*Inputs!B21+AR46","v":{"v":1162669.5567237074,"d":"$1,162,670"}},{"$f":"AS45*(1-Inputs!B21)+AS11*Inputs!B21+AS46","v":{"v":1084353.358735605,"d":"$1,084,353"}},{"$f":"AT45*(1-Inputs!B21)+AT11*Inputs!B21+AT46","v":{"v":1114961.2953604392,"d":"$1,114,961"}},{"$f":"AU45*(1-Inputs!B21)+AU11*Inputs!B21+AU46","v":{"v":1125168.7063530483,"d":"$1,125,169"}},{"$f":"AV45*(1-Inputs!B21)+AV11*Inputs!B21+AV46","v":{"v":1114183.9727581495,"d":"$1,114,184"}},{"$f":"AW45*(1-Inputs!B21)+AW11*Inputs!B21+AW46","v":{"v":1060994.9731759191,"d":"$1,060,995"}},{"$f":"AX45*(1-Inputs!B21)+AX11*Inputs!B21+AX46","v":{"v":1087218.9257089526,"d":"$1,087,219"}},{"$f":"AY45*(1-Inputs!B21)+AY11*Inputs!B21+AY46","v":{"v":1090783.6009344722,"d":"$1,090,784"}},{"$f":"AZ45*(1-Inputs!B21)+AZ11*Inputs!B21+AZ46","v":{"v":1126225.3105751586,"d":"$1,126,225"}},{"$f":"SUM(AO44:AZ44)","v":{"v":13253475.025297228,"d":"$13,253,475"}},{"$f":"BB45*(1-Inputs!B21)+BB11*Inputs!B21+BB46","v":{"v":1054812.017274918,"d":"$1,054,812"}},{"$f":"BC45*(1-Inputs!B21)+BC11*Inputs!B21+BC46","v":{"v":1110202.1128081547,"d":"$1,110,202"}},{"$f":"BD45*(1-Inputs!B21)+BD11*Inputs!B21+BD46","v":{"v":1149969.9300578928,"d":"$1,149,970"}},{"$f":"BE45*(1-Inputs!B21)+BE11*Inputs!B21+BE46","v":{"v":1129328.4711550917,"d":"$1,129,328"}},{"$f":"BF45*(1-Inputs!B21)+BF11*Inputs!B21+BF46","v":{"v":1081093.826875644,"d":"$1,081,094"}},{"$f":"BG45*(1-Inputs!B21)+BG11*Inputs!B21+BG46","v":{"v":1044430.5162488783,"d":"$1,044,431"}},{"$f":"BH45*(1-Inputs!B21)+BH11*Inputs!B21+BH46","v":{"v":1144846.7281564218,"d":"$1,144,847"}},{"$f":"BI45*(1-Inputs!B21)+BI11*Inputs!B21+BI46","v":{"v":1050771.0457398584,"d":"$1,050,771"}},{"$f":"BJ45*(1-Inputs!B21)+BJ11*Inputs!B21+BJ46","v":{"v":1083375.5548083656,"d":"$1,083,376"}},{"$f":"BK45*(1-Inputs!B21)+BK11*Inputs!B21+BK46","v":{"v":1125282.1378179034,"d":"$1,125,282"}},{"$f":"BL45*(1-Inputs!B21)+BL11*Inputs!B21+BL46","v":{"v":1046219.3968339668,"d":"$1,046,219"}},{"$f":"BM45*(1-Inputs!B21)+BM11*Inputs!B21+BM46","v":{"v":1096960.1992404398,"d":"$1,096,960"}},{"$f":"SUM(BB44:BM44)","v":{"v":13117291.937017536,"d":"$13,117,292"}},{"$f":"BO45*(1-Inputs!B21)+BO11*Inputs!B21+BO46","v":{"v":1038874.7674172252,"d":"$1,038,875"}},{"$f":"BP45*(1-Inputs!B21)+BP11*Inputs!B21+BP46","v":{"v":1082347.739690751,"d":"$1,082,348"}},{"$f":"BQ45*(1-Inputs!B21)+BQ11*Inputs!B21+BQ46","v":{"v":1048534.5387668189,"d":"$1,048,535"}},{"$f":"BR45*(1-Inputs!B21)+BR11*Inputs!B21+BR46","v":{"v":1119087.9147678984,"d":"$1,119,088"}},{"$f":"BS45*(1-Inputs!B21)+BS11*Inputs!B21+BS46","v":{"v":1057925.6708689341,"d":"$1,057,926"}},{"$f":"BT45*(1-Inputs!B21)+BT11*Inputs!B21+BT46","v":{"v":1098641.20430436,"d":"$1,098,641"}},{"$f":"BU45*(1-Inputs!B21)+BU11*Inputs!B21+BU46","v":{"v":1113538.287639614,"d":"$1,113,538"}},{"$f":"BV45*(1-Inputs!B21)+BV11*Inputs!B21+BV46","v":{"v":1041620.2185005908,"d":"$1,041,620"}},{"$f":"BW45*(1-Inputs!B21)+BW11*Inputs!B21+BW46","v":{"v":1071385.806529613,"d":"$1,071,386"}},{"$f":"BX45*(1-Inputs!B21)+BX11*Inputs!B21+BX46","v":{"v":1013299.7843639711,"d":"$1,013,300"}},{"$f":"BY45*(1-Inputs!B21)+BY11*Inputs!B21+BY46","v":{"v":1090500.657045541,"d":"$1,090,501"}},{"$f":"BZ45*(1-Inputs!B21)+BZ11*Inputs!B21+BZ46","v":{"v":1072773.815550561,"d":"$1,072,774"}},{"$f":"SUM(BO44:BZ44)","v":{"v":12848530.405445877,"d":"$12,848,530"}},{"$f":"CB45*(1-Inputs!B21)+CB11*Inputs!B21+CB46","v":{"v":1101187.9773233244,"d":"$1,101,188"}},{"$f":"CC45*(1-Inputs!B21)+CC11*Inputs!B21+CC46","v":{"v":1053716.967357498,"d":"$1,053,717"}},{"$f":"CD45*(1-Inputs!B21)+CD11*Inputs!B21+CD46","v":{"v":1011716.4312085736,"d":"$1,011,716"}},{"$f":"CE45*(1-Inputs!B21)+CE11*Inputs!B21+CE46","v":{"v":1032416.8330299816,"d":"$1,032,417"}},{"$f":"CF45*(1-Inputs!B21)+CF11*Inputs!B21+CF46","v":{"v":1047749.7977283002,"d":"$1,047,750"}},{"$f":"CG45*(1-Inputs!B21)+CG11*Inputs!B21+CG46","v":{"v":1102866.389580728,"d":"$1,102,866"}},{"$f":"CH45*(1-Inputs!B21)+CH11*Inputs!B21+CH46","v":{"v":1114619.095990013,"d":"$1,114,619"}},{"$f":"CI45*(1-Inputs!B21)+CI11*Inputs!B21+CI46","v":{"v":1082091.4185987315,"d":"$1,082,091"}},{"$f":"CJ45*(1-Inputs!B21)+CJ11*Inputs!B21+CJ46","v":{"v":1094699.177243713,"d":"$1,094,699"}},{"$f":"CK45*(1-Inputs!B21)+CK11*Inputs!B21+CK46","v":{"v":1052665.2653238778,"d":"$1,052,665"}},{"$f":"CL45*(1-Inputs!B21)+CL11*Inputs!B21+CL46","v":{"v":1032815.2783858503,"d":"$1,032,815"}},{"$f":"CM45*(1-Inputs!B21)+CM11*Inputs!B21+CM46","v":{"v":1039572.33238061,"d":"$1,039,572"}},{"$f":"SUM(CB44:CM44)","v":{"v":12766116.9641512,"d":"$12,766,117"}},{"$f":"CO45*(1-Inputs!B21)+CO11*Inputs!B21+CO46","v":{"v":1029752.0911566115,"d":"$1,029,752"}},{"$f":"CP45*(1-Inputs!B21)+CP11*Inputs!B21+CP46","v":{"v":1036066.7695476328,"d":"$1,036,067"}},{"$f":"CQ45*(1-Inputs!B21)+CQ11*Inputs!B21+CQ46","v":{"v":1086599.402927535,"d":"$1,086,599"}},{"$f":"CR45*(1-Inputs!B21)+CR11*Inputs!B21+CR46","v":{"v":1060193.5723222087,"d":"$1,060,194"}},{"$f":"CS45*(1-Inputs!B21)+CS11*Inputs!B21+CS46","v":{"v":1032988.1125593344,"d":"$1,032,988"}},{"$f":"CT45*(1-Inputs!B21)+CT11*Inputs!B21+CT46","v":{"v":1005468.9027479548,"d":"$1,005,469"}},{"$f":"CU45*(1-Inputs!B21)+CU11*Inputs!B21+CU46","v":{"v":1054892.6304857316,"d":"$1,054,893"}},{"$f":"CV45*(1-Inputs!B21)+CV11*Inputs!B21+CV46","v":{"v":1024111.9606826605,"d":"$1,024,112"}},{"$f":"CW45*(1-Inputs!B21)+CW11*Inputs!B21+CW46","v":{"v":1049292.5528681432,"d":"$1,049,293"}},{"$f":"CX45*(1-Inputs!B21)+CX11*Inputs!B21+CX46","v":{"v":1001234.4844253241,"d":"$1,001,234"}},{"$f":"CY45*(1-Inputs!B21)+CY11*Inputs!B21+CY46","v":{"v":1043414.0639797754,"d":"$1,043,414"}},{"$f":"CZ45*(1-Inputs!B21)+CZ11*Inputs!B21+CZ46","v":{"v":1060382.28908089,"d":"$1,060,382"}},{"$f":"SUM(CO44:CZ44)","v":{"v":12484396.832783801,"d":"$12,484,397"}},{"$f":"DB45*(1-Inputs!B21)+DB11*Inputs!B21+DB46","v":{"v":1048249.920234713,"d":"$1,048,250"}},{"$f":"DC45*(1-Inputs!B21)+DC11*Inputs!B21+DC46","v":{"v":1023311.3192129792,"d":"$1,023,311"}},{"$f":"DD45*(1-Inputs!B21)+DD11*Inputs!B21+DD46","v":{"v":999370.3577856253,"d":"$999,370"}},{"$f":"DE45*(1-Inputs!B21)+DE11*Inputs!B21+DE46","v":{"v":1055413.6482852653,"d":"$1,055,414"}},{"$f":"DF45*(1-Inputs!B21)+DF11*Inputs!B21+DF46","v":{"v":1087922.0849752529,"d":"$1,087,922"}},{"$f":"DG45*(1-Inputs!B21)+DG11*Inputs!B21+DG46","v":{"v":1029287.0776375125,"d":"$1,029,287"}},{"$f":"DH45*(1-Inputs!B21)+DH11*Inputs!B21+DH46","v":{"v":1033156.8059578291,"d":"$1,033,157"}},{"$f":"DI45*(1-Inputs!B21)+DI11*Inputs!B21+DI46","v":{"v":1036855.3578365787,"d":"$1,036,855"}},{"$f":"DJ45*(1-Inputs!B21)+DJ11*Inputs!B21+DJ46","v":{"v":1011413.9557528686,"d":"$1,011,414"}},{"$f":"DK45*(1-Inputs!B21)+DK11*Inputs!B21+DK46","v":{"v":1031238.0134290687,"d":"$1,031,238"}},{"$f":"DL45*(1-Inputs!B21)+DL11*Inputs!B21+DL46","v":{"v":971936.6940975429,"d":"$971,937"}},{"$f":"DM45*(1-Inputs!B21)+DM11*Inputs!B21+DM46","v":{"v":1034975.6396973018,"d":"$1,034,976"}},{"$f":"SUM(DB44:DM44)","v":{"v":12363130.874902539,"d":"$12,363,131"}},{"$f":"DO45*(1-Inputs!B21)+DO11*Inputs!B21+DO46","v":{"v":1085552.074367939,"d":"$1,085,552"}},{"$f":"DP45*(1-Inputs!B21)+DP11*Inputs!B21+DP46","v":{"v":1012632.5669993272,"d":"$1,012,633"}},{"$f":"DQ45*(1-Inputs!B21)+DQ11*Inputs!B21+DQ46","v":{"v":979700.0724011665,"d":"$979,700"}},{"$f":"DR45*(1-Inputs!B21)+DR11*Inputs!B21+DR46","v":{"v":1001535.8428234102,"d":"$1,001,536"}},{"$f":"DS45*(1-Inputs!B21)+DS11*Inputs!B21+DS46","v":{"v":991096.4896602507,"d":"$991,096"}},{"$f":"DT45*(1-Inputs!B21)+DT11*Inputs!B21+DT46","v":{"v":1043839.8624860145,"d":"$1,043,840"}},{"$f":"DU45*(1-Inputs!B21)+DU11*Inputs!B21+DU46","v":{"v":1031811.5274524761,"d":"$1,031,812"}},{"$f":"DV45*(1-Inputs!B21)+DV11*Inputs!B21+DV46","v":{"v":1018333.026620479,"d":"$1,018,333"}},{"$f":"DW45*(1-Inputs!B21)+DW11*Inputs!B21+DW46","v":{"v":1035862.7584051698,"d":"$1,035,863"}},{"$f":"DX45*(1-Inputs!B21)+DX11*Inputs!B21+DX46","v":{"v":1005831.915434163,"d":"$1,005,832"}},{"$f":"DY45*(1-Inputs!B21)+DY11*Inputs!B21+DY46","v":{"v":970128.4638641882,"d":"$970,128"}},{"$f":"DZ45*(1-Inputs!B21)+DZ11*Inputs!B21+DZ46","v":{"v":1007900.8921776499,"d":"$1,007,901"}},{"$f":"SUM(DO44:DZ44)","v":{"v":12184225.492692236,"d":"$12,184,225"}},{"$f":"EB45*(1-Inputs!B21)+EB11*Inputs!B21+EB46","v":{"v":1016540.771357398,"d":"$1,016,541"}},{"$f":"EC45*(1-Inputs!B21)+EC11*Inputs!B21+EC46","v":{"v":1068409.507344333,"d":"$1,068,410"}},{"$f":"ED45*(1-Inputs!B21)+ED11*Inputs!B21+ED46","v":{"v":996379.1324884285,"d":"$996,379"}},{"$f":"EE45*(1-Inputs!B21)+EE11*Inputs!B21+EE46","v":{"v":970440.0241794725,"d":"$970,440"}},{"$f":"EF45*(1-Inputs!B21)+EF11*Inputs!B21+EF46","v":{"v":1007523.1050961545,"d":"$1,007,523"}},{"$f":"EG45*(1-Inputs!B21)+EG11*Inputs!B21+EG46","v":{"v":1000571.8765374796,"d":"$1,000,572"}},{"$f":"EH45*(1-Inputs!B21)+EH11*Inputs!B21+EH46","v":{"v":1028983.4806059601,"d":"$1,028,983"}},{"$f":"EI45*(1-Inputs!B21)+EI11*Inputs!B21+EI46","v":{"v":954992.7077670227,"d":"$954,993"}},{"$f":"EJ45*(1-Inputs!B21)+EJ11*Inputs!B21+EJ46","v":{"v":1042423.6605588425,"d":"$1,042,424"}},{"$f":"EK45*(1-Inputs!B21)+EK11*Inputs!B21+EK46","v":{"v":980330.5115252407,"d":"$980,331"}},{"$f":"EL45*(1-Inputs!B21)+EL11*Inputs!B21+EL46","v":{"v":1008547.8881069561,"d":"$1,008,548"}},{"$f":"EM45*(1-Inputs!B21)+EM11*Inputs!B21+EM46","v":{"v":1044291.0539974804,"d":"$1,044,291"}},{"$f":"SUM(EB44:EM44)","v":{"v":12119433.719564771,"d":"$12,119,434"}}]
[{"$f":"Labels!B68","v":"Potential Output"},{"$f":"'(Other Computations)'!B8*(B28/Inputs!B27)^(1-Inputs!B20)*(B19/'(Other Computations)'!B194)^Inputs!B20","v":{"v":1166666.6666666667,"d":"$1,166,667"}},{"$f":"'(Other Computations)'!B8*(C28/Inputs!B27)^(1-Inputs!B20)*(C19/'(Other Computations)'!B194)^Inputs!B20","v":{"v":1166666.6666666667,"d":"$1,166,667"}},{"$f":"'(Other Computations)'!B8*(D28/Inputs!B27)^(1-Inputs!B20)*(D19/'(Other Computations)'!B194)^Inputs!B20","v":{"v":1166618.8290911987,"d":"$1,166,619"}},{"$f":"'(Other Computations)'!B8*(E28/Inputs!B27)^(1-Inputs!B20)*(E19/'(Other Computations)'!B194)^Inputs!B20","v":{"v":1166526.5477691463,"d":"$1,166,527"}},{"$f":"'(Other Computations)'!B8*(F28/Inputs!B27)^(1-Inputs!B20)*(F19/'(Other Computations)'!B194)^Inputs!B20","v":{"v":1166404.319491447,"d":"$1,166,404"}},{"$f":"'(Other Computations)'!B8*(G28/Inputs!B27)^(1-Inputs!B20)*(G19/'(Other Computations)'!B194)^Inputs!B20","v":{"v":1166235.3353795926,"d":"$1,166,235"}},{"$f":"'(Other Computations)'!B8*(H28/Inputs!B27)^(1-Inputs!B20)*(H19/'(Other Computations)'!B194)^Inputs!B20","v":{"v":1166027.1830759363,"d":"$1,166,027"}},{"$f":"'(Other Computations)'!B8*(I28/Inputs!B27)^(1-Inputs!B20)*(I19/'(Other Computations)'!B194)^Inputs!B20","v":{"v":1165780.132064827,"d":"$1,165,780"}},{"$f":"'(Other Computations)'!B8*(J28/Inputs!B27)^(1-Inputs!B20)*(J19/'(Other Computations)'!B194)^Inputs!B20","v":{"v":1165499.7262522148,"d":"$1,165,500"}},{"$f":"'(Other Computations)'!B8*(K28/Inputs!B27)^(1-Inputs!B20)*(K19/'(Other Computations)'!B194)^Inputs!B20","v":{"v":1165191.2170506725,"d":"$1,165,191"}},{"$f":"'(Other Computations)'!B8*(L28/Inputs!B27)^(1-Inputs!B20)*(L19/'(Other Computations)'!B194)^Inputs!B20","v":{"v":1164863.4407080554,"d":"$1,164,863"}},{"$f":"'(Other Computations)'!B8*(M28/Inputs!B27)^(1-Inputs!B20)*(M19/'(Other Computations)'!B194)^Inputs!B20","v":{"v":1164499.6491361554,"d":"$1,164,500"}},{"$f":"SUM(B45:M45)","v":{"v":13990979.71335258,"d":"$13,990,980"}},{"$f":"'(Other Computations)'!B8*(O28/Inputs!B27)^(1-Inputs!B20)*(O19/'(Other Computations)'!B194)^Inputs!B20","v":{"v":1164102.146951975,"d":"$1,164,102"}},{"$f":"'(Other Computations)'!B8*(P28/Inputs!B27)^(1-Inputs!B20)*(P19/'(Other Computations)'!B194)^Inputs!B20","v":{"v":1163675.9866970326,"d":"$1,163,676"}},{"$f":"'(Other Computations)'!B8*(Q28/Inputs!B27)^(1-Inputs!B20)*(Q19/'(Other Computations)'!B194)^Inputs!B20","v":{"v":1163220.2241910868,"d":"$1,163,220"}},{"$f":"'(Other Computations)'!B8*(R28/Inputs!B27)^(1-Inputs!B20)*(R19/'(Other Computations)'!B194)^Inputs!B20","v":{"v":1162738.5553514578,"d":"$1,162,739"}},{"$f":"'(Other Computations)'!B8*(S28/Inputs!B27)^(1-Inputs!B20)*(S19/'(Other Computations)'!B194)^Inputs!B20","v":{"v":1162229.3853483796,"d":"$1,162,229"}},{"$f":"'(Other Computations)'!B8*(T28/Inputs!B27)^(1-Inputs!B20)*(T19/'(Other Computations)'!B194)^Inputs!B20","v":{"v":1161696.594151235,"d":"$1,161,697"}},{"$f":"'(Other Computations)'!B8*(U28/Inputs!B27)^(1-Inputs!B20)*(U19/'(Other Computations)'!B194)^Inputs!B20","v":{"v":1161131.3739752492,"d":"$1,161,131"}},{"$f":"'(Other Computations)'!B8*(V28/Inputs!B27)^(1-Inputs!B20)*(V19/'(Other Computations)'!B194)^Inputs!B20","v":{"v":1160554.7058453467,"d":"$1,160,555"}},{"$f":"'(Other Computations)'!B8*(W28/Inputs!B27)^(1-Inputs!B20)*(W19/'(Other Computations)'!B194)^Inputs!B20","v":{"v":1159957.9709363205,"d":"$1,159,958"}},{"$f":"'(Other Computations)'!B8*(X28/Inputs!B27)^(1-Inputs!B20)*(X19/'(Other Computations)'!B194)^Inputs!B20","v":{"v":1159338.2614736503,"d":"$1,159,338"}},{"$f":"'(Other Computations)'!B8*(Y28/Inputs!B27)^(1-Inputs!B20)*(Y19/'(Other Computations)'!B194)^Inputs!B20","v":{"v":1158698.8568148883,"d":"$1,158,699"}},{"$f":"'(Other Computations)'!B8*(Z28/Inputs!B27)^(1-Inputs!B20)*(Z19/'(Other Computations)'!B194)^Inputs!B20","v":{"v":1158031.871115806,"d":"$1,158,032"}},{"$f":"SUM(O45:Z45)","v":{"v":13935375.932852427,"d":"$13,935,376"}},{"$f":"'(Other Computations)'!B8*(AB28/Inputs!B27)^(1-Inputs!B20)*(AB19/'(Other Computations)'!B194)^Inputs!B20","v":{"v":1157356.0894752154,"d":"$1,157,356"}},{"$f":"'(Other Computations)'!B8*(AC28/Inputs!B27)^(1-Inputs!B20)*(AC19/'(Other Computations)'!B194)^Inputs!B20","v":{"v":1156657.9899396107,"d":"$1,156,658"}},{"$f":"'(Other Computations)'!B8*(AD28/Inputs!B27)^(1-Inputs!B20)*(AD19/'(Other Computations)'!B194)^Inputs!B20","v":{"v":1155944.3595431487,"d":"$1,155,944"}},{"$f":"'(Other Computations)'!B8*(AE28/Inputs!B27)^(1-Inputs!B20)*(AE19/'(Other Computations)'!B194)^Inputs!B20","v":{"v":1155212.3819586204,"d":"$1,155,212"}},{"$f":"'(Other Computations)'!B8*(AF28/Inputs!B27)^(1-Inputs!B20)*(AF19/'(Other Computations)'!B194)^Inputs!B20","v":{"v":1154472.919972251,"d":"$1,154,473"}},{"$f":"'(Other Computations)'!B8*(AG28/Inputs!B27)^(1-Inputs!B20)*(AG19/'(Other Computations)'!B194)^Inputs!B20","v":{"v":1153704.7161476691,"d":"$1,153,705"}},{"$f":"'(Other Computations)'!B8*(AH28/Inputs!B27)^(1-Inputs!B20)*(AH19/'(Other Computations)'!B194)^Inputs!B20","v":{"v":1152910.694869484,"d":"$1,152,911"}},{"$f":"'(Other Computations)'!B8*(AI28/Inputs!B27)^(1-Inputs!B20)*(AI19/'(Other Computations)'!B194)^Inputs!B20","v":{"v":1152097.9176378513,"d":"$1,152,098"}},{"$f":"'(Other Computations)'!B8*(AJ28/Inputs!B27)^(1-Inputs!B20)*(AJ19/'(Other Computations)'!B194)^Inputs!B20","v":{"v":1151273.033964202,"d":"$1,151,273"}},{"$f":"'(Other Computations)'!B8*(AK28/Inputs!B27)^(1-Inputs!B20)*(AK19/'(Other Computations)'!B194)^Inputs!B20","v":{"v":1150427.027721318,"d":"$1,150,427"}},{"$f":"'(Other Computations)'!B8*(AL28/Inputs!B27)^(1-Inputs!B20)*(AL19/'(Other Computations)'!B194)^Inputs!B20","v":{"v":1149568.8834937175,"d":"$1,149,569"}},{"$f":"'(Other Computations)'!B8*(AM28/Inputs!B27)^(1-Inputs!B20)*(AM19/'(Other Computations)'!B194)^Inputs!B20","v":{"v":1148690.5623575894,"d":"$1,148,691"}},{"$f":"SUM(AB45:AM45)","v":{"v":13838316.577080678,"d":"$13,838,317"}},{"$f":"'(Other Computations)'!B8*(AO28/Inputs!B27)^(1-Inputs!B20)*(AO19/'(Other Computations)'!B194)^Inputs!B20","v":{"v":1147797.9794800896,"d":"$1,147,798"}},{"$f":"'(Other Computations)'!B8*(AP28/Inputs!B27)^(1-Inputs!B20)*(AP19/'(Other Computations)'!B194)^Inputs!B20","v":{"v":1146887.2184063361,"d":"$1,146,887"}},{"$f":"'(Other Computations)'!B8*(AQ28/Inputs!B27)^(1-Inputs!B20)*(AQ19/'(Other Computations)'!B194)^Inputs!B20","v":{"v":1145965.2333105619,"d":"$1,145,965"}},{"$f":"'(Other Computations)'!B8*(AR28/Inputs!B27)^(1-Inputs!B20)*(AR19/'(Other Computations)'!B194)^Inputs!B20","v":{"v":1145033.1459243314,"d":"$1,145,033"}},{"$f":"'(Other Computations)'!B8*(AS28/Inputs!B27)^(1-Inputs!B20)*(AS19/'(Other Computations)'!B194)^Inputs!B20","v":{"v":1144088.183903427,"d":"$1,144,088"}},{"$f":"'(Other Computations)'!B8*(AT28/Inputs!B27)^(1-Inputs!B20)*(AT19/'(Other Computations)'!B194)^Inputs!B20","v":{"v":1143136.396469453,"d":"$1,143,136"}},{"$f":"'(Other Computations)'!B8*(AU28/Inputs!B27)^(1-Inputs!B20)*(AU19/'(Other Computations)'!B194)^Inputs!B20","v":{"v":1142179.2444913315,"d":"$1,142,179"}},{"$f":"'(Other Computations)'!B8*(AV28/Inputs!B27)^(1-Inputs!B20)*(AV19/'(Other Computations)'!B194)^Inputs!B20","v":{"v":1141209.4576440426,"d":"$1,141,209"}},{"$f":"'(Other Computations)'!B8*(AW28/Inputs!B27)^(1-Inputs!B20)*(AW19/'(Other Computations)'!B194)^Inputs!B20","v":{"v":1140233.395023742,"d":"$1,140,233"}},{"$f":"'(Other Computations)'!B8*(AX28/Inputs!B27)^(1-Inputs!B20)*(AX19/'(Other Computations)'!B194)^Inputs!B20","v":{"v":1139249.4223336962,"d":"$1,139,249"}},{"$f":"'(Other Computations)'!B8*(AY28/Inputs!B27)^(1-Inputs!B20)*(AY19/'(Other Computations)'!B194)^Inputs!B20","v":{"v":1138255.705975082,"d":"$1,138,256"}},{"$f":"'(Other Computations)'!B8*(AZ28/Inputs!B27)^(1-Inputs!B20)*(AZ19/'(Other Computations)'!B194)^Inputs!B20","v":{"v":1137252.766350554,"d":"$1,137,253"}},{"$f":"SUM(AO45:AZ45)","v":{"v":13711288.149312647,"d":"$13,711,288"}},{"$f":"'(Other Computations)'!B8*(BB28/Inputs!B27)^(1-Inputs!B20)*(BB19/'(Other Computations)'!B194)^Inputs!B20","v":{"v":1136244.2570002663,"d":"$1,136,244"}},{"$f":"'(Other Computations)'!B8*(BC28/Inputs!B27)^(1-Inputs!B20)*(BC19/'(Other Computations)'!B194)^Inputs!B20","v":{"v":1135227.3637037394,"d":"$1,135,227"}},{"$f":"'(Other Computations)'!B8*(BD28/Inputs!B27)^(1-Inputs!B20)*(BD19/'(Other Computations)'!B194)^Inputs!B20","v":{"v":1134199.5810294303,"d":"$1,134,200"}},{"$f":"'(Other Computations)'!B8*(BE28/Inputs!B27)^(1-Inputs!B20)*(BE19/'(Other Computations)'!B194)^Inputs!B20","v":{"v":1133157.499390734,"d":"$1,133,157"}},{"$f":"'(Other Computations)'!B8*(BF28/Inputs!B27)^(1-Inputs!B20)*(BF19/'(Other Computations)'!B194)^Inputs!B20","v":{"v":1132098.4158086984,"d":"$1,132,098"}},{"$f":"'(Other Computations)'!B8*(BG28/Inputs!B27)^(1-Inputs!B20)*(BG19/'(Other Computations)'!B194)^Inputs!B20","v":{"v":1131037.4978746884,"d":"$1,131,037"}},{"$f":"'(Other Computations)'!B8*(BH28/Inputs!B27)^(1-Inputs!B20)*(BH19/'(Other Computations)'!B194)^Inputs!B20","v":{"v":1129968.7182886994,"d":"$1,129,969"}},{"$f":"'(Other Computations)'!B8*(BI28/Inputs!B27)^(1-Inputs!B20)*(BI19/'(Other Computations)'!B194)^Inputs!B20","v":{"v":1128897.2678315893,"d":"$1,128,897"}},{"$f":"'(Other Computations)'!B8*(BJ28/Inputs!B27)^(1-Inputs!B20)*(BJ19/'(Other Computations)'!B194)^Inputs!B20","v":{"v":1127813.1119489612,"d":"$1,127,813"}},{"$f":"'(Other Computations)'!B8*(BK28/Inputs!B27)^(1-Inputs!B20)*(BK19/'(Other Computations)'!B194)^Inputs!B20","v":{"v":1126727.3429458775,"d":"$1,126,727"}},{"$f":"'(Other Computations)'!B8*(BL28/Inputs!B27)^(1-Inputs!B20)*(BL19/'(Other Computations)'!B194)^Inputs!B20","v":{"v":1125645.9451096538,"d":"$1,125,646"}},{"$f":"'(Other Computations)'!B8*(BM28/Inputs!B27)^(1-Inputs!B20)*(BM19/'(Other Computations)'!B194)^Inputs!B20","v":{"v":1124563.8562161592,"d":"$1,124,564"}},{"$f":"SUM(BB45:BM45)","v":{"v":13565580.857148496,"d":"$13,565,581"}},{"$f":"'(Other Computations)'!B8*(BO28/Inputs!B27)^(1-Inputs!B20)*(BO19/'(Other Computations)'!B194)^Inputs!B20","v":{"v":1123486.529560871,"d":"$1,123,487"}},{"$f":"'(Other Computations)'!B8*(BP28/Inputs!B27)^(1-Inputs!B20)*(BP19/'(Other Computations)'!B194)^Inputs!B20","v":{"v":1122407.9770418615,"d":"$1,122,408"}},{"$f":"'(Other Computations)'!B8*(BQ28/Inputs!B27)^(1-Inputs!B20)*(BQ19/'(Other Computations)'!B194)^Inputs!B20","v":{"v":1121334.0327879097,"d":"$1,121,334"}},{"$f":"'(Other Computations)'!B8*(BR28/Inputs!B27)^(1-Inputs!B20)*(BR19/'(Other Computations)'!B194)^Inputs!B20","v":{"v":1120268.105165214,"d":"$1,120,268"}},{"$f":"'(Other Computations)'!B8*(BS28/Inputs!B27)^(1-Inputs!B20)*(BS19/'(Other Computations)'!B194)^Inputs!B20","v":{"v":1119209.6637203053,"d":"$1,119,210"}},{"$f":"'(Other Computations)'!B8*(BT28/Inputs!B27)^(1-Inputs!B20)*(BT19/'(Other Computations)'!B194)^Inputs!B20","v":{"v":1118140.755068884,"d":"$1,118,141"}},{"$f":"'(Other Computations)'!B8*(BU28/Inputs!B27)^(1-Inputs!B20)*(BU19/'(Other Computations)'!B194)^Inputs!B20","v":{"v":1117069.2306437632,"d":"$1,117,069"}},{"$f":"'(Other Computations)'!B8*(BV28/Inputs!B27)^(1-Inputs!B20)*(BV19/'(Other Computations)'!B194)^Inputs!B20","v":{"v":1116006.6745558681,"d":"$1,116,007"}},{"$f":"'(Other Computations)'!B8*(BW28/Inputs!B27)^(1-Inputs!B20)*(BW19/'(Other Computations)'!B194)^Inputs!B20","v":{"v":1114934.7875712966,"d":"$1,114,935"}},{"$f":"'(Other Computations)'!B8*(BX28/Inputs!B27)^(1-Inputs!B20)*(BX19/'(Other Computations)'!B194)^Inputs!B20","v":{"v":1113859.5042645228,"d":"$1,113,860"}},{"$f":"'(Other Computations)'!B8*(BY28/Inputs!B27)^(1-Inputs!B20)*(BY19/'(Other Computations)'!B194)^Inputs!B20","v":{"v":1112783.4687428866,"d":"$1,112,783"}},{"$f":"'(Other Computations)'!B8*(BZ28/Inputs!B27)^(1-Inputs!B20)*(BZ19/'(Other Computations)'!B194)^Inputs!B20","v":{"v":1111714.5945688856,"d":"$1,111,715"}},{"$f":"SUM(BO45:BZ45)","v":{"v":13411215.323692268,"d":"$13,411,215"}},{"$f":"'(Other Computations)'!B8*(CB28/Inputs!B27)^(1-Inputs!B20)*(CB19/'(Other Computations)'!B194)^Inputs!B20","v":{"v":1110653.5594914637,"d":"$1,110,654"}},{"$f":"'(Other Computations)'!B8*(CC28/Inputs!B27)^(1-Inputs!B20)*(CC19/'(Other Computations)'!B194)^Inputs!B20","v":{"v":1109597.7313471895,"d":"$1,109,598"}},{"$f":"'(Other Computations)'!B8*(CD28/Inputs!B27)^(1-Inputs!B20)*(CD19/'(Other Computations)'!B194)^Inputs!B20","v":{"v":1108539.094572434,"d":"$1,108,539"}},{"$f":"'(Other Computations)'!B8*(CE28/Inputs!B27)^(1-Inputs!B20)*(CE19/'(Other Computations)'!B194)^Inputs!B20","v":{"v":1107479.326433877,"d":"$1,107,479"}},{"$f":"'(Other Computations)'!B8*(CF28/Inputs!B27)^(1-Inputs!B20)*(CF19/'(Other Computations)'!B194)^Inputs!B20","v":{"v":1106417.3533529113,"d":"$1,106,417"}},{"$f":"'(Other Computations)'!B8*(CG28/Inputs!B27)^(1-Inputs!B20)*(CG19/'(Other Computations)'!B194)^Inputs!B20","v":{"v":1105350.296903779,"d":"$1,105,350"}},{"$f":"'(Other Computations)'!B8*(CH28/Inputs!B27)^(1-Inputs!B20)*(CH19/'(Other Computations)'!B194)^Inputs!B20","v":{"v":1104283.656884309,"d":"$1,104,284"}},{"$f":"'(Other Computations)'!B8*(CI28/Inputs!B27)^(1-Inputs!B20)*(CI19/'(Other Computations)'!B194)^Inputs!B20","v":{"v":1103228.0112776426,"d":"$1,103,228"}},{"$f":"'(Other Computations)'!B8*(CJ28/Inputs!B27)^(1-Inputs!B20)*(CJ19/'(Other Computations)'!B194)^Inputs!B20","v":{"v":1102166.9645410592,"d":"$1,102,167"}},{"$f":"'(Other Computations)'!B8*(CK28/Inputs!B27)^(1-Inputs!B20)*(CK19/'(Other Computations)'!B194)^Inputs!B20","v":{"v":1101099.562919428,"d":"$1,101,100"}},{"$f":"'(Other Computations)'!B8*(CL28/Inputs!B27)^(1-Inputs!B20)*(CL19/'(Other Computations)'!B194)^Inputs!B20","v":{"v":1100034.0817072361,"d":"$1,100,034"}},{"$f":"'(Other Computations)'!B8*(CM28/Inputs!B27)^(1-Inputs!B20)*(CM19/'(Other Computations)'!B194)^Inputs!B20","v":{"v":1098979.3753773053,"d":"$1,098,979"}},{"$f":"SUM(CB45:CM45)","v":{"v":13257829.014808634,"d":"$13,257,829"}},{"$f":"'(Other Computations)'!B8*(CO28/Inputs!B27)^(1-Inputs!B20)*(CO19/'(Other Computations)'!B194)^Inputs!B20","v":{"v":1097918.0425182774,"d":"$1,097,918"}},{"$f":"'(Other Computations)'!B8*(CP28/Inputs!B27)^(1-Inputs!B20)*(CP19/'(Other Computations)'!B194)^Inputs!B20","v":{"v":1096860.15971496,"d":"$1,096,860"}},{"$f":"'(Other Computations)'!B8*(CQ28/Inputs!B27)^(1-Inputs!B20)*(CQ19/'(Other Computations)'!B194)^Inputs!B20","v":{"v":1095805.1245299578,"d":"$1,095,805"}},{"$f":"'(Other Computations)'!B8*(CR28/Inputs!B27)^(1-Inputs!B20)*(CR19/'(Other Computations)'!B194)^Inputs!B20","v":{"v":1094743.790603767,"d":"$1,094,744"}},{"$f":"'(Other Computations)'!B8*(CS28/Inputs!B27)^(1-Inputs!B20)*(CS19/'(Other Computations)'!B194)^Inputs!B20","v":{"v":1093692.2583499434,"d":"$1,093,692"}},{"$f":"'(Other Computations)'!B8*(CT28/Inputs!B27)^(1-Inputs!B20)*(CT19/'(Other Computations)'!B194)^Inputs!B20","v":{"v":1092635.9127086473,"d":"$1,092,636"}},{"$f":"'(Other Computations)'!B8*(CU28/Inputs!B27)^(1-Inputs!B20)*(CU19/'(Other Computations)'!B194)^Inputs!B20","v":{"v":1091576.9743680663,"d":"$1,091,577"}},{"$f":"'(Other Computations)'!B8*(CV28/Inputs!B27)^(1-Inputs!B20)*(CV19/'(Other Computations)'!B194)^Inputs!B20","v":{"v":1090522.209869504,"d":"$1,090,522"}},{"$f":"'(Other Computations)'!B8*(CW28/Inputs!B27)^(1-Inputs!B20)*(CW19/'(Other Computations)'!B194)^Inputs!B20","v":{"v":1089469.7471100008,"d":"$1,089,470"}},{"$f":"'(Other Computations)'!B8*(CX28/Inputs!B27)^(1-Inputs!B20)*(CX19/'(Other Computations)'!B194)^Inputs!B20","v":{"v":1088416.3165369334,"d":"$1,088,416"}},{"$f":"'(Other Computations)'!B8*(CY28/Inputs!B27)^(1-Inputs!B20)*(CY19/'(Other Computations)'!B194)^Inputs!B20","v":{"v":1087370.0650506744,"d":"$1,087,370"}},{"$f":"'(Other Computations)'!B8*(CZ28/Inputs!B27)^(1-Inputs!B20)*(CZ19/'(Other Computations)'!B194)^Inputs!B20","v":{"v":1086321.7924545216,"d":"$1,086,322"}},{"$f":"SUM(CO45:CZ45)","v":{"v":13105332.393815255,"d":"$13,105,332"}},{"$f":"'(Other Computations)'!B8*(DB28/Inputs!B27)^(1-Inputs!B20)*(DB19/'(Other Computations)'!B194)^Inputs!B20","v":{"v":1085274.1799459395,"d":"$1,085,274"}},{"$f":"'(Other Computations)'!B8*(DC28/Inputs!B27)^(1-Inputs!B20)*(DC19/'(Other Computations)'!B194)^Inputs!B20","v":{"v":1084217.7941239118,"d":"$1,084,218"}},{"$f":"'(Other Computations)'!B8*(DD28/Inputs!B27)^(1-Inputs!B20)*(DD19/'(Other Computations)'!B194)^Inputs!B20","v":{"v":1083166.894619683,"d":"$1,083,167"}},{"$f":"'(Other Computations)'!B8*(DE28/Inputs!B27)^(1-Inputs!B20)*(DE19/'(Other Computations)'!B194)^Inputs!B20","v":{"v":1082118.013623328,"d":"$1,082,118"}},{"$f":"'(Other Computations)'!B8*(DF28/Inputs!B27)^(1-Inputs!B20)*(DF19/'(Other Computations)'!B194)^Inputs!B20","v":{"v":1081072.9061920142,"d":"$1,081,073"}},{"$f":"'(Other Computations)'!B8*(DG28/Inputs!B27)^(1-Inputs!B20)*(DG19/'(Other Computations)'!B194)^Inputs!B20","v":{"v":1080025.2160846745,"d":"$1,080,025"}},{"$f":"'(Other Computations)'!B8*(DH28/Inputs!B27)^(1-Inputs!B20)*(DH19/'(Other Computations)'!B194)^Inputs!B20","v":{"v":1078973.6983755284,"d":"$1,078,974"}},{"$f":"'(Other Computations)'!B8*(DI28/Inputs!B27)^(1-Inputs!B20)*(DI19/'(Other Computations)'!B194)^Inputs!B20","v":{"v":1077930.3844508019,"d":"$1,077,930"}},{"$f":"'(Other Computations)'!B8*(DJ28/Inputs!B27)^(1-Inputs!B20)*(DJ19/'(Other Computations)'!B194)^Inputs!B20","v":{"v":1076900.0267251441,"d":"$1,076,900"}},{"$f":"'(Other Computations)'!B8*(DK28/Inputs!B27)^(1-Inputs!B20)*(DK19/'(Other Computations)'!B194)^Inputs!B20","v":{"v":1075871.9123457375,"d":"$1,075,872"}},{"$f":"'(Other Computations)'!B8*(DL28/Inputs!B27)^(1-Inputs!B20)*(DL19/'(Other Computations)'!B194)^Inputs!B20","v":{"v":1074839.880280679,"d":"$1,074,840"}},{"$f":"'(Other Computations)'!B8*(DM28/Inputs!B27)^(1-Inputs!B20)*(DM19/'(Other Computations)'!B194)^Inputs!B20","v":{"v":1073808.763375711,"d":"$1,073,809"}},{"$f":"SUM(DB45:DM45)","v":{"v":12954199.670143152,"d":"$12,954,200"}},{"$f":"'(Other Computations)'!B8*(DO28/Inputs!B27)^(1-Inputs!B20)*(DO19/'(Other Computations)'!B194)^Inputs!B20","v":{"v":1072773.1383628615,"d":"$1,072,773"}},{"$f":"'(Other Computations)'!B8*(DP28/Inputs!B27)^(1-Inputs!B20)*(DP19/'(Other Computations)'!B194)^Inputs!B20","v":{"v":1071740.2667936655,"d":"$1,071,740"}},{"$f":"'(Other Computations)'!B8*(DQ28/Inputs!B27)^(1-Inputs!B20)*(DQ19/'(Other Computations)'!B194)^Inputs!B20","v":{"v":1070706.591047873,"d":"$1,070,707"}},{"$f":"'(Other Computations)'!B8*(DR28/Inputs!B27)^(1-Inputs!B20)*(DR19/'(Other Computations)'!B194)^Inputs!B20","v":{"v":1069675.3261389276,"d":"$1,069,675"}},{"$f":"'(Other Computations)'!B8*(DS28/Inputs!B27)^(1-Inputs!B20)*(DS19/'(Other Computations)'!B194)^Inputs!B20","v":{"v":1068656.6375411989,"d":"$1,068,657"}},{"$f":"'(Other Computations)'!B8*(DT28/Inputs!B27)^(1-Inputs!B20)*(DT19/'(Other Computations)'!B194)^Inputs!B20","v":{"v":1067645.201129661,"d":"$1,067,645"}},{"$f":"'(Other Computations)'!B8*(DU28/Inputs!B27)^(1-Inputs!B20)*(DU19/'(Other Computations)'!B194)^Inputs!B20","v":{"v":1066639.6814536978,"d":"$1,066,640"}},{"$f":"'(Other Computations)'!B8*(DV28/Inputs!B27)^(1-Inputs!B20)*(DV19/'(Other Computations)'!B194)^Inputs!B20","v":{"v":1065643.4601101999,"d":"$1,065,643"}},{"$f":"'(Other Computations)'!B8*(DW28/Inputs!B27)^(1-Inputs!B20)*(DW19/'(Other Computations)'!B194)^Inputs!B20","v":{"v":1064644.5409278015,"d":"$1,064,645"}},{"$f":"'(Other Computations)'!B8*(DX28/Inputs!B27)^(1-Inputs!B20)*(DX19/'(Other Computations)'!B194)^Inputs!B20","v":{"v":1063648.9995069196,"d":"$1,063,649"}},{"$f":"'(Other Computations)'!B8*(DY28/Inputs!B27)^(1-Inputs!B20)*(DY19/'(Other Computations)'!B194)^Inputs!B20","v":{"v":1062661.3586520355,"d":"$1,062,661"}},{"$f":"'(Other Computations)'!B8*(DZ28/Inputs!B27)^(1-Inputs!B20)*(DZ19/'(Other Computations)'!B194)^Inputs!B20","v":{"v":1061672.7970505503,"d":"$1,061,673"}},{"$f":"SUM(DO45:DZ45)","v":{"v":12806107.998715391,"d":"$12,806,108"}},{"$f":"'(Other Computations)'!B8*(EB28/Inputs!B27)^(1-Inputs!B20)*(EB19/'(Other Computations)'!B194)^Inputs!B20","v":{"v":1060686.7388848518,"d":"$1,060,687"}},{"$f":"'(Other Computations)'!B8*(EC28/Inputs!B27)^(1-Inputs!B20)*(EC19/'(Other Computations)'!B194)^Inputs!B20","v":{"v":1059697.4522416603,"d":"$1,059,697"}},{"$f":"'(Other Computations)'!B8*(ED28/Inputs!B27)^(1-Inputs!B20)*(ED19/'(Other Computations)'!B194)^Inputs!B20","v":{"v":1058710.620322361,"d":"$1,058,711"}},{"$f":"'(Other Computations)'!B8*(EE28/Inputs!B27)^(1-Inputs!B20)*(EE19/'(Other Computations)'!B194)^Inputs!B20","v":{"v":1057734.2210541426,"d":"$1,057,734"}},{"$f":"'(Other Computations)'!B8*(EF28/Inputs!B27)^(1-Inputs!B20)*(EF19/'(Other Computations)'!B194)^Inputs!B20","v":{"v":1056755.5146042944,"d":"$1,056,756"}},{"$f":"'(Other Computations)'!B8*(EG28/Inputs!B27)^(1-Inputs!B20)*(EG19/'(Other Computations)'!B194)^Inputs!B20","v":{"v":1055780.8891913628,"d":"$1,055,781"}},{"$f":"'(Other Computations)'!B8*(EH28/Inputs!B27)^(1-Inputs!B20)*(EH19/'(Other Computations)'!B194)^Inputs!B20","v":{"v":1054809.9703687404,"d":"$1,054,810"}},{"$f":"'(Other Computations)'!B8*(EI28/Inputs!B27)^(1-Inputs!B20)*(EI19/'(Other Computations)'!B194)^Inputs!B20","v":{"v":1053848.748409824,"d":"$1,053,849"}},{"$f":"'(Other Computations)'!B8*(EJ28/Inputs!B27)^(1-Inputs!B20)*(EJ19/'(Other Computations)'!B194)^Inputs!B20","v":{"v":1052881.203919261,"d":"$1,052,881"}},{"$f":"'(Other Computations)'!B8*(EK28/Inputs!B27)^(1-Inputs!B20)*(EK19/'(Other Computations)'!B194)^Inputs!B20","v":{"v":1051910.1584443199,"d":"$1,051,910"}},{"$f":"'(Other Computations)'!B8*(EL28/Inputs!B27)^(1-Inputs!B20)*(EL19/'(Other Computations)'!B194)^Inputs!B20","v":{"v":1050938.7074458932,"d":"$1,050,939"}},{"$f":"'(Other Computations)'!B8*(EM28/Inputs!B27)^(1-Inputs!B20)*(EM19/'(Other Computations)'!B194)^Inputs!B20","v":{"v":1049971.1891044227,"d":"$1,049,971"}},{"$f":"SUM(EB45:EM45)","v":{"v":12663725.413991135,"d":"$12,663,725"}}]
[{"$f":"Labels!B78","v":"Output Shock"},{"$f":"NORMINV(RAND()*(1-2*Inputs!B58)+Inputs!B58,0,'(Other Computations)'!B208)","v":{"v":-2001.604158609501,"d":"($2,002)"}},{"$f":"NORMINV(RAND()*(1-2*Inputs!B58)+Inputs!B58,0,'(Other Computations)'!B208)","v":{"v":-20033.266240187135,"d":"($20,033)"}},{"$f":"NORMINV(RAND()*(1-2*Inputs!B58)+Inputs!B58,0,'(Other Computations)'!B208)","v":{"v":10442.736834707895,"d":"$10,443"}},{"$f":"NORMINV(RAND()*(1-2*Inputs!B58)+Inputs!B58,0,'(Other Computations)'!B208)","v":{"v":15530.46775956978,"d":"$15,530"}},{"$f":"NORMINV(RAND()*(1-2*Inputs!B58)+Inputs!B58,0,'(Other Computations)'!B208)","v":{"v":-10961.38201621752,"d":"($10,961)"}},{"$f":"NORMINV(RAND()*(1-2*Inputs!B58)+Inputs!B58,0,'(Other Computations)'!B208)","v":{"v":-29341.604880561656,"d":"($29,342)"}},{"$f":"NORMINV(RAND()*(1-2*Inputs!B58)+Inputs!B58,0,'(Other Computations)'!B208)","v":{"v":58532.29832272793,"d":"$58,532"}},{"$f":"NORMINV(RAND()*(1-2*Inputs!B58)+Inputs!B58,0,'(Other Computations)'!B208)","v":{"v":-54452.86249894689,"d":"($54,453)"}},{"$f":"NORMINV(RAND()*(1-2*Inputs!B58)+Inputs!B58,0,'(Other Computations)'!B208)","v":{"v":-9192.959941770416,"d":"($9,193)"}},{"$f":"NORMINV(RAND()*(1-2*Inputs!B58)+Inputs!B58,0,'(Other Computations)'!B208)","v":{"v":3830.6269590658985,"d":"$3,831"}},{"$f":"NORMINV(RAND()*(1-2*Inputs!B58)+Inputs!B58,0,'(Other Computations)'!B208)","v":{"v":60975.79312693091,"d":"$60,976"}},{"$f":"NORMINV(RAND()*(1-2*Inputs!B58)+Inputs!B58,0,'(Other Computations)'!B208)","v":{"v":1425.9265531441938,"d":"$1,426"}},{"$f":"SUM(B46:M46)","v":{"v":24754.169819853494,"d":"$24,754"}},{"$f":"NORMINV(RAND()*(1-2*Inputs!B58)+Inputs!B58,0,'(Other Computations)'!B208)","v":{"v":-11888.698173510153,"d":"($11,889)"}},{"$f":"NORMINV(RAND()*(1-2*Inputs!B58)+Inputs!B58,0,'(Other Computations)'!B208)","v":{"v":-1960.128950762971,"d":"($1,960)"}},{"$f":"NORMINV(RAND()*(1-2*Inputs!B58)+Inputs!B58,0,'(Other Computations)'!B208)","v":{"v":9832.018358787987,"d":"$9,832"}},{"$f":"NORMINV(RAND()*(1-2*Inputs!B58)+Inputs!B58,0,'(Other Computations)'!B208)","v":{"v":-39806.19887955849,"d":"($39,806)"}},{"$f":"NORMINV(RAND()*(1-2*Inputs!B58)+Inputs!B58,0,'(Other Computations)'!B208)","v":{"v":-21816.84183685177,"d":"($21,817)"}},{"$f":"NORMINV(RAND()*(1-2*Inputs!B58)+Inputs!B58,0,'(Other Computations)'!B208)","v":{"v":44337.17243340576,"d":"$44,337"}},{"$f":"NORMINV(RAND()*(1-2*Inputs!B58)+Inputs!B58,0,'(Other Computations)'!B208)","v":{"v":29544.03101980557,"d":"$29,544"}},{"$f":"NORMINV(RAND()*(1-2*Inputs!B58)+Inputs!B58,0,'(Other Computations)'!B208)","v":{"v":-26705.695862848854,"d":"($26,706)"}},{"$f":"NORMINV(RAND()*(1-2*Inputs!B58)+Inputs!B58,0,'(Other Computations)'!B208)","v":{"v":2612.4011791779917,"d":"$2,612"}},{"$f":"NORMINV(RAND()*(1-2*Inputs!B58)+Inputs!B58,0,'(Other Computations)'!B208)","v":{"v":1970.8699946614895,"d":"$1,971"}},{"$f":"NORMINV(RAND()*(1-2*Inputs!B58)+Inputs!B58,0,'(Other Computations)'!B208)","v":{"v":8259.1686738329,"d":"$8,259"}},{"$f":"NORMINV(RAND()*(1-2*Inputs!B58)+Inputs!B58,0,'(Other Computations)'!B208)","v":{"v":-26857.100148134567,"d":"($26,857)"}},{"$f":"SUM(O46:Z46)","v":{"v":-32479.002191995118,"d":"($32,479)"}},{"$f":"NORMINV(RAND()*(1-2*Inputs!B58)+Inputs!B58,0,'(Other Computations)'!B208)","v":{"v":-44811.00281505258,"d":"($44,811)"}},{"$f":"NORMINV(RAND()*(1-2*Inputs!B58)+Inputs!B58,0,'(Other Computations)'!B208)","v":{"v":17707.201984541392,"d":"$17,707"}},{"$f":"NORMINV(RAND()*(1-2*Inputs!B58)+Inputs!B58,0,'(Other Computations)'!B208)","v":{"v":34947.676791122765,"d":"$34,948"}},{"$f":"NORMINV(RAND()*(1-2*Inputs!B58)+Inputs!B58,0,'(Other Computations)'!B208)","v":{"v":-36558.18788644413,"d":"($36,558)"}},{"$f":"NORMINV(RAND()*(1-2*Inputs!B58)+Inputs!B58,0,'(Other Computations)'!B208)","v":{"v":-36370.28378533108,"d":"($36,370)"}},{"$f":"NORMINV(RAND()*(1-2*Inputs!B58)+Inputs!B58,0,'(Other Computations)'!B208)","v":{"v":-16841.53146064665,"d":"($16,842)"}},{"$f":"NORMINV(RAND()*(1-2*Inputs!B58)+Inputs!B58,0,'(Other Computations)'!B208)","v":{"v":31889.50769347672,"d":"$31,890"}},{"$f":"NORMINV(RAND()*(1-2*Inputs!B58)+Inputs!B58,0,'(Other Computations)'!B208)","v":{"v":-4734.046391382934,"d":"($4,734)"}},{"$f":"NORMINV(RAND()*(1-2*Inputs!B58)+Inputs!B58,0,'(Other Computations)'!B208)","v":{"v":18129.6589486115,"d":"$18,130"}},{"$f":"NORMINV(RAND()*(1-2*Inputs!B58)+Inputs!B58,0,'(Other Computations)'!B208)","v":{"v":33736.16111681515,"d":"$33,736"}},{"$f":"NORMINV(RAND()*(1-2*Inputs!B58)+Inputs!B58,0,'(Other Computations)'!B208)","v":{"v":25515.309253059768,"d":"$25,515"}},{"$f":"NORMINV(RAND()*(1-2*Inputs!B58)+Inputs!B58,0,'(Other Computations)'!B208)","v":{"v":-17368.884959057763,"d":"($17,369)"}},{"$f":"SUM(AB46:AM46)","v":{"v":5241.578489712156,"d":"$5,242"}},{"$f":"NORMINV(RAND()*(1-2*Inputs!B58)+Inputs!B58,0,'(Other Computations)'!B208)","v":{"v":-5438.772392402865,"d":"($5,439)"}},{"$f":"NORMINV(RAND()*(1-2*Inputs!B58)+Inputs!B58,0,'(Other Computations)'!B208)","v":{"v":-14578.591065062566,"d":"($14,579)"}},{"$f":"NORMINV(RAND()*(1-2*Inputs!B58)+Inputs!B58,0,'(Other Computations)'!B208)","v":{"v":-30369.869825299127,"d":"($30,370)"}},{"$f":"NORMINV(RAND()*(1-2*Inputs!B58)+Inputs!B58,0,'(Other Computations)'!B208)","v":{"v":53081.65317281856,"d":"$53,082"}},{"$f":"NORMINV(RAND()*(1-2*Inputs!B58)+Inputs!B58,0,'(Other Computations)'!B208)","v":{"v":-23960.911065136712,"d":"($23,961)"}},{"$f":"NORMINV(RAND()*(1-2*Inputs!B58)+Inputs!B58,0,'(Other Computations)'!B208)","v":{"v":7876.370914158627,"d":"$7,876"}},{"$f":"NORMINV(RAND()*(1-2*Inputs!B58)+Inputs!B58,0,'(Other Computations)'!B208)","v":{"v":19574.13658660479,"d":"$19,574"}},{"$f":"NORMINV(RAND()*(1-2*Inputs!B58)+Inputs!B58,0,'(Other Computations)'!B208)","v":{"v":9869.688921735624,"d":"$9,870"}},{"$f":"NORMINV(RAND()*(1-2*Inputs!B58)+Inputs!B58,0,'(Other Computations)'!B208)","v":{"v":-41975.138377463925,"d":"($41,975)"}},{"$f":"NORMINV(RAND()*(1-2*Inputs!B58)+Inputs!B58,0,'(Other Computations)'!B208)","v":{"v":-14334.346574997433,"d":"($14,334)"}},{"$f":"NORMINV(RAND()*(1-2*Inputs!B58)+Inputs!B58,0,'(Other Computations)'!B208)","v":{"v":-9360.869349945611,"d":"($9,361)"}},{"$f":"NORMINV(RAND()*(1-2*Inputs!B58)+Inputs!B58,0,'(Other Computations)'!B208)","v":{"v":27370.980346843815,"d":"$27,371"}},{"$f":"SUM(AO46:AZ46)","v":{"v":-22245.66870814683,"d":"($22,246)"}},{"$f":"NORMINV(RAND()*(1-2*Inputs!B58)+Inputs!B58,0,'(Other Computations)'!B208)","v":{"v":-42647.65743535077,"d":"($42,648)"}},{"$f":"NORMINV(RAND()*(1-2*Inputs!B58)+Inputs!B58,0,'(Other Computations)'!B208)","v":{"v":14233.825970996657,"d":"$14,234"}},{"$f":"NORMINV(RAND()*(1-2*Inputs!B58)+Inputs!B58,0,'(Other Computations)'!B208)","v":{"v":55624.23114274295,"d":"$55,624"}},{"$f":"NORMINV(RAND()*(1-2*Inputs!B58)+Inputs!B58,0,'(Other Computations)'!B208)","v":{"v":36715.454002292565,"d":"$36,715"}},{"$f":"NORMINV(RAND()*(1-2*Inputs!B58)+Inputs!B58,0,'(Other Computations)'!B208)","v":{"v":-10300.778320466417,"d":"($10,301)"}},{"$f":"NORMINV(RAND()*(1-2*Inputs!B58)+Inputs!B58,0,'(Other Computations)'!B208)","v":{"v":-45532.55908470482,"d":"($45,533)"}},{"$f":"NORMINV(RAND()*(1-2*Inputs!B58)+Inputs!B58,0,'(Other Computations)'!B208)","v":{"v":56141.1848424944,"d":"$56,141"}},{"$f":"NORMINV(RAND()*(1-2*Inputs!B58)+Inputs!B58,0,'(Other Computations)'!B208)","v":{"v":-36322.39043514293,"d":"($36,322)"}},{"$f":"NORMINV(RAND()*(1-2*Inputs!B58)+Inputs!B58,0,'(Other Computations)'!B208)","v":{"v":-2481.475695895875,"d":"($2,481)"}},{"$f":"NORMINV(RAND()*(1-2*Inputs!B58)+Inputs!B58,0,'(Other Computations)'!B208)","v":{"v":40452.93561013343,"d":"$40,453"}},{"$f":"NORMINV(RAND()*(1-2*Inputs!B58)+Inputs!B58,0,'(Other Computations)'!B208)","v":{"v":-37409.62477458278,"d":"($37,410)"}},{"$f":"NORMINV(RAND()*(1-2*Inputs!B58)+Inputs!B58,0,'(Other Computations)'!B208)","v":{"v":14340.463670266992,"d":"$14,340"}},{"$f":"SUM(BB46:BM46)","v":{"v":42813.60949278339,"d":"$42,814"}},{"$f":"NORMINV(RAND()*(1-2*Inputs!B58)+Inputs!B58,0,'(Other Computations)'!B208)","v":{"v":-42531.33338326946,"d":"($42,531)"}},{"$f":"NORMINV(RAND()*(1-2*Inputs!B58)+Inputs!B58,0,'(Other Computations)'!B208)","v":{"v":1951.6746259371214,"d":"$1,952"}},{"$f":"NORMINV(RAND()*(1-2*Inputs!B58)+Inputs!B58,0,'(Other Computations)'!B208)","v":{"v":-30976.3925601282,"d":"($30,976)"}},{"$f":"NORMINV(RAND()*(1-2*Inputs!B58)+Inputs!B58,0,'(Other Computations)'!B208)","v":{"v":40471.566270986965,"d":"$40,472"}},{"$f":"NORMINV(RAND()*(1-2*Inputs!B58)+Inputs!B58,0,'(Other Computations)'!B208)","v":{"v":-19175.51489443966,"d":"($19,176)"}},{"$f":"NORMINV(RAND()*(1-2*Inputs!B58)+Inputs!B58,0,'(Other Computations)'!B208)","v":{"v":22791.11609498285,"d":"$22,791"}},{"$f":"NORMINV(RAND()*(1-2*Inputs!B58)+Inputs!B58,0,'(Other Computations)'!B208)","v":{"v":38535.9381146082,"d":"$38,536"}},{"$f":"NORMINV(RAND()*(1-2*Inputs!B58)+Inputs!B58,0,'(Other Computations)'!B208)","v":{"v":-31903.570201211725,"d":"($31,904)"}},{"$f":"NORMINV(RAND()*(1-2*Inputs!B58)+Inputs!B58,0,'(Other Computations)'!B208)","v":{"v":-857.4722221616491,"d":"($857)"}},{"$f":"NORMINV(RAND()*(1-2*Inputs!B58)+Inputs!B58,0,'(Other Computations)'!B208)","v":{"v":-57752.253265334344,"d":"($57,752)"}},{"$f":"NORMINV(RAND()*(1-2*Inputs!B58)+Inputs!B58,0,'(Other Computations)'!B208)","v":{"v":20363.22239933309,"d":"$20,363"}},{"$f":"NORMINV(RAND()*(1-2*Inputs!B58)+Inputs!B58,0,'(Other Computations)'!B208)","v":{"v":3519.0746101591994,"d":"$3,519"}},{"$f":"SUM(BO46:BZ46)","v":{"v":-55563.94441053762,"d":"($55,564)"}},{"$f":"NORMINV(RAND()*(1-2*Inputs!B58)+Inputs!B58,0,'(Other Computations)'!B208)","v":{"v":32899.15083356009,"d":"$32,899"}},{"$f":"NORMINV(RAND()*(1-2*Inputs!B58)+Inputs!B58,0,'(Other Computations)'!B208)","v":{"v":-13331.447650185048,"d":"($13,331)"}},{"$f":"NORMINV(RAND()*(1-2*Inputs!B58)+Inputs!B58,0,'(Other Computations)'!B208)","v":{"v":-54147.561454255236,"d":"($54,148)"}},{"$f":"NORMINV(RAND()*(1-2*Inputs!B58)+Inputs!B58,0,'(Other Computations)'!B208)","v":{"v":-32224.296232630346,"d":"($32,224)"}},{"$f":"NORMINV(RAND()*(1-2*Inputs!B58)+Inputs!B58,0,'(Other Computations)'!B208)","v":{"v":-15565.719530179966,"d":"($15,566)"}},{"$f":"NORMINV(RAND()*(1-2*Inputs!B58)+Inputs!B58,0,'(Other Computations)'!B208)","v":{"v":40689.29125436446,"d":"$40,689"}},{"$f":"NORMINV(RAND()*(1-2*Inputs!B58)+Inputs!B58,0,'(Other Computations)'!B208)","v":{"v":53209.64955986583,"d":"$53,210"}},{"$f":"NORMINV(RAND()*(1-2*Inputs!B58)+Inputs!B58,0,'(Other Computations)'!B208)","v":{"v":22010.64174437161,"d":"$22,011"}},{"$f":"NORMINV(RAND()*(1-2*Inputs!B58)+Inputs!B58,0,'(Other Computations)'!B208)","v":{"v":35985.96049091142,"d":"$35,986"}},{"$f":"NORMINV(RAND()*(1-2*Inputs!B58)+Inputs!B58,0,'(Other Computations)'!B208)","v":{"v":-4963.116085882423,"d":"($4,963)"}},{"$f":"NORMINV(RAND()*(1-2*Inputs!B58)+Inputs!B58,0,'(Other Computations)'!B208)","v":{"v":-24040.21407470559,"d":"($24,040)"}},{"$f":"NORMINV(RAND()*(1-2*Inputs!B58)+Inputs!B58,0,'(Other Computations)'!B208)","v":{"v":-15914.162412049487,"d":"($15,914)"}},{"$f":"SUM(CB46:CM46)","v":{"v":24608.176443185315,"d":"$24,608"}},{"$f":"NORMINV(RAND()*(1-2*Inputs!B58)+Inputs!B58,0,'(Other Computations)'!B208)","v":{"v":-24710.653364241098,"d":"($24,711)"}},{"$f":"NORMINV(RAND()*(1-2*Inputs!B58)+Inputs!B58,0,'(Other Computations)'!B208)","v":{"v":-17355.267166287085,"d":"($17,355)"}},{"$f":"NORMINV(RAND()*(1-2*Inputs!B58)+Inputs!B58,0,'(Other Computations)'!B208)","v":{"v":34534.180147028484,"d":"$34,534"}},{"$f":"NORMINV(RAND()*(1-2*Inputs!B58)+Inputs!B58,0,'(Other Computations)'!B208)","v":{"v":8929.288305011652,"d":"$8,929"}},{"$f":"NORMINV(RAND()*(1-2*Inputs!B58)+Inputs!B58,0,'(Other Computations)'!B208)","v":{"v":-16975.781876965142,"d":"($16,976)"}},{"$f":"NORMINV(RAND()*(1-2*Inputs!B58)+Inputs!B58,0,'(Other Computations)'!B208)","v":{"v":-43267.231670890396,"d":"($43,267)"}},{"$f":"NORMINV(RAND()*(1-2*Inputs!B58)+Inputs!B58,0,'(Other Computations)'!B208)","v":{"v":7150.490317485815,"d":"$7,150"}},{"$f":"NORMINV(RAND()*(1-2*Inputs!B58)+Inputs!B58,0,'(Other Computations)'!B208)","v":{"v":-22575.691674719907,"d":"($22,576)"}},{"$f":"NORMINV(RAND()*(1-2*Inputs!B58)+Inputs!B58,0,'(Other Computations)'!B208)","v":{"v":3770.6972222847094,"d":"$3,771"}},{"$f":"NORMINV(RAND()*(1-2*Inputs!B58)+Inputs!B58,0,'(Other Computations)'!B208)","v":{"v":-43405.18405448606,"d":"($43,405)"}},{"$f":"NORMINV(RAND()*(1-2*Inputs!B58)+Inputs!B58,0,'(Other Computations)'!B208)","v":{"v":-30.476612947275623,"d":"($30)"}},{"$f":"NORMINV(RAND()*(1-2*Inputs!B58)+Inputs!B58,0,'(Other Computations)'!B208)","v":{"v":18041.213927459536,"d":"$18,041"}},{"$f":"SUM(CO46:CZ46)","v":{"v":-95894.41650126677,"d":"($95,894)"}},{"$f":"NORMINV(RAND()*(1-2*Inputs!B58)+Inputs!B58,0,'(Other Computations)'!B208)","v":{"v":7340.404405065998,"d":"$7,340"}},{"$f":"NORMINV(RAND()*(1-2*Inputs!B58)+Inputs!B58,0,'(Other Computations)'!B208)","v":{"v":-16654.82402334527,"d":"($16,655)"}},{"$f":"NORMINV(RAND()*(1-2*Inputs!B58)+Inputs!B58,0,'(Other Computations)'!B208)","v":{"v":-39537.73717007921,"d":"($39,538)"}},{"$f":"NORMINV(RAND()*(1-2*Inputs!B58)+Inputs!B58,0,'(Other Computations)'!B208)","v":{"v":17499.895244472387,"d":"$17,500"}},{"$f":"NORMINV(RAND()*(1-2*Inputs!B58)+Inputs!B58,0,'(Other Computations)'!B208)","v":{"v":51219.90819860859,"d":"$51,220"}},{"$f":"NORMINV(RAND()*(1-2*Inputs!B58)+Inputs!B58,0,'(Other Computations)'!B208)","v":{"v":-6157.6040411907325,"d":"($6,158)"}},{"$f":"NORMINV(RAND()*(1-2*Inputs!B58)+Inputs!B58,0,'(Other Computations)'!B208)","v":{"v":-1445.9314984781113,"d":"($1,446)"}},{"$f":"NORMINV(RAND()*(1-2*Inputs!B58)+Inputs!B58,0,'(Other Computations)'!B208)","v":{"v":2919.691124463843,"d":"$2,920"}},{"$f":"NORMINV(RAND()*(1-2*Inputs!B58)+Inputs!B58,0,'(Other Computations)'!B208)","v":{"v":-21495.673641017656,"d":"($21,496)"}},{"$f":"NORMINV(RAND()*(1-2*Inputs!B58)+Inputs!B58,0,'(Other Computations)'!B208)","v":{"v":-433.6098062747716,"d":"($434)"}},{"$f":"NORMINV(RAND()*(1-2*Inputs!B58)+Inputs!B58,0,'(Other Computations)'!B208)","v":{"v":-58661.3257553126,"d":"($58,661)"}},{"$f":"NORMINV(RAND()*(1-2*Inputs!B58)+Inputs!B58,0,'(Other Computations)'!B208)","v":{"v":5638.880893131145,"d":"$5,639"}},{"$f":"SUM(DB46:DM46)","v":{"v":-59767.92606995639,"d":"($59,768)"}},{"$f":"NORMINV(RAND()*(1-2*Inputs!B58)+Inputs!B58,0,'(Other Computations)'!B208)","v":{"v":57228.26180158707,"d":"$57,228"}},{"$f":"NORMINV(RAND()*(1-2*Inputs!B58)+Inputs!B58,0,'(Other Computations)'!B208)","v":{"v":-14557.66809370557,"d":"($14,558)"}},{"$f":"NORMINV(RAND()*(1-2*Inputs!B58)+Inputs!B58,0,'(Other Computations)'!B208)","v":{"v":-46467.945945452964,"d":"($46,468)"}},{"$f":"NORMINV(RAND()*(1-2*Inputs!B58)+Inputs!B58,0,'(Other Computations)'!B208)","v":{"v":-23966.811708719644,"d":"($23,967)"}},{"$f":"NORMINV(RAND()*(1-2*Inputs!B58)+Inputs!B58,0,'(Other Computations)'!B208)","v":{"v":-33569.39777130196,"d":"($33,569)"}},{"$f":"NORMINV(RAND()*(1-2*Inputs!B58)+Inputs!B58,0,'(Other Computations)'!B208)","v":{"v":20049.074713196725,"d":"$20,049"}},{"$f":"NORMINV(RAND()*(1-2*Inputs!B58)+Inputs!B58,0,'(Other Computations)'!B208)","v":{"v":8771.442181517654,"d":"$8,771"}},{"$f":"NORMINV(RAND()*(1-2*Inputs!B58)+Inputs!B58,0,'(Other Computations)'!B208)","v":{"v":-3549.2412174906513,"d":"($3,549)"}},{"$f":"NORMINV(RAND()*(1-2*Inputs!B58)+Inputs!B58,0,'(Other Computations)'!B208)","v":{"v":14929.579870118103,"d":"$14,930"}},{"$f":"NORMINV(RAND()*(1-2*Inputs!B58)+Inputs!B58,0,'(Other Computations)'!B208)","v":{"v":-14313.460184340871,"d":"($14,313)"}},{"$f":"NORMINV(RAND()*(1-2*Inputs!B58)+Inputs!B58,0,'(Other Computations)'!B208)","v":{"v":-48931.06909663915,"d":"($48,931)"}},{"$f":"NORMINV(RAND()*(1-2*Inputs!B58)+Inputs!B58,0,'(Other Computations)'!B208)","v":{"v":-10191.14560430092,"d":"($10,191)"}},{"$f":"SUM(DO46:DZ46)","v":{"v":-94568.38105553217,"d":"($94,568)"}},{"$f":"NORMINV(RAND()*(1-2*Inputs!B58)+Inputs!B58,0,'(Other Computations)'!B208)","v":{"v":-387.37870356394404,"d":"($387)"}},{"$f":"NORMINV(RAND()*(1-2*Inputs!B58)+Inputs!B58,0,'(Other Computations)'!B208)","v":{"v":52450.880757913495,"d":"$52,451"}},{"$f":"NORMINV(RAND()*(1-2*Inputs!B58)+Inputs!B58,0,'(Other Computations)'!B208)","v":{"v":-18890.28558775562,"d":"($18,890)"}},{"$f":"NORMINV(RAND()*(1-2*Inputs!B58)+Inputs!B58,0,'(Other Computations)'!B208)","v":{"v":-43708.84147246844,"d":"($43,709)"}},{"$f":"NORMINV(RAND()*(1-2*Inputs!B58)+Inputs!B58,0,'(Other Computations)'!B208)","v":{"v":-5725.003258830188,"d":"($5,725)"}},{"$f":"NORMINV(RAND()*(1-2*Inputs!B58)+Inputs!B58,0,'(Other Computations)'!B208)","v":{"v":-11767.129581622015,"d":"($11,767)"}},{"$f":"NORMINV(RAND()*(1-2*Inputs!B58)+Inputs!B58,0,'(Other Computations)'!B208)","v":{"v":17341.125605931753,"d":"$17,341"}},{"$f":"NORMINV(RAND()*(1-2*Inputs!B58)+Inputs!B58,0,'(Other Computations)'!B208)","v":{"v":-55407.08489937441,"d":"($55,407)"}},{"$f":"NORMINV(RAND()*(1-2*Inputs!B58)+Inputs!B58,0,'(Other Computations)'!B208)","v":{"v":33175.050165499546,"d":"$33,175"}},{"$f":"NORMINV(RAND()*(1-2*Inputs!B58)+Inputs!B58,0,'(Other Computations)'!B208)","v":{"v":-27870.8737917546,"d":"($27,871)"}},{"$f":"NORMINV(RAND()*(1-2*Inputs!B58)+Inputs!B58,0,'(Other Computations)'!B208)","v":{"v":1243.2455038072285,"d":"$1,243"}},{"$f":"NORMINV(RAND()*(1-2*Inputs!B58)+Inputs!B58,0,'(Other Computations)'!B208)","v":{"v":37869.008912907106,"d":"$37,869"}},{"$f":"SUM(EB46:EM46)","v":{"v":-21677.28634931009,"d":"($21,677)"}}]
[]
[]
[{"$f":"\"Government\"","v":"Government"}]
[{"$f":"\" \"","v":" "}]
[null,{"$f":"ZZZ__FnCalls!F7","v":"Jan 2010"},{"$f":"ZZZ__FnCalls!F8","v":"Feb 2010"},{"$f":"ZZZ__FnCalls!F9","v":"Mar 2010"},{"$f":"ZZZ__FnCalls!F10","v":"Apr 2010"},{"$f":"ZZZ__FnCalls!F11","v":"May 2010"},{"$f":"ZZZ__FnCalls!F12","v":"Jun 2010"},{"$f":"ZZZ__FnCalls!F13","v":"Jul 2010"},{"$f":"ZZZ__FnCalls!F14","v":"Aug 2010"},{"$f":"ZZZ__FnCalls!F15","v":"Sep 2010"},{"$f":"ZZZ__FnCalls!F16","v":"Oct 2010"},{"$f":"ZZZ__FnCalls!F17","v":"Nov 2010"},{"$f":"ZZZ__FnCalls!F18","v":"Dec 2010"},{"$f":"ZZZ__FnCalls!H7","v":"2010"},{"$f":"ZZZ__FnCalls!F19","v":"Jan 2011"},{"$f":"ZZZ__FnCalls!F20","v":"Feb 2011"},{"$f":"ZZZ__FnCalls!F21","v":"Mar 2011"},{"$f":"ZZZ__FnCalls!F22","v":"Apr 2011"},{"$f":"ZZZ__FnCalls!F23","v":"May 2011"},{"$f":"ZZZ__FnCalls!F24","v":"Jun 2011"},{"$f":"ZZZ__FnCalls!F25","v":"Jul 2011"},{"$f":"ZZZ__FnCalls!F26","v":"Aug 2011"},{"$f":"ZZZ__FnCalls!F27","v":"Sep 2011"},{"$f":"ZZZ__FnCalls!F28","v":"Oct 2011"},{"$f":"ZZZ__FnCalls!F29","v":"Nov 2011"},{"$f":"ZZZ__FnCalls!F30","v":"Dec 2011"},{"$f":"ZZZ__FnCalls!H19","v":"2011"},{"$f":"ZZZ__FnCalls!F31","v":"Jan 2012"},{"$f":"ZZZ__FnCalls!F32","v":"Feb 2012"},{"$f":"ZZZ__FnCalls!F33","v":"Mar 2012"},{"$f":"ZZZ__FnCalls!F34","v":"Apr 2012"},{"$f":"ZZZ__FnCalls!F35","v":"May 2012"},{"$f":"ZZZ__FnCalls!F36","v":"Jun 2012"},{"$f":"ZZZ__FnCalls!F37","v":"Jul 2012"},{"$f":"ZZZ__FnCalls!F38","v":"Aug 2012"},{"$f":"ZZZ__FnCalls!F39","v":"Sep 2012"},{"$f":"ZZZ__FnCalls!F40","v":"Oct 2012"},{"$f":"ZZZ__FnCalls!F41","v":"Nov 2012"},{"$f":"ZZZ__FnCalls!F42","v":"Dec 2012"},{"$f":"ZZZ__FnCalls!H31","v":"2012"},{"$f":"ZZZ__FnCalls!F43","v":"Jan 2013"},{"$f":"ZZZ__FnCalls!F44","v":"Feb 2013"},{"$f":"ZZZ__FnCalls!F45","v":"Mar 2013"},{"$f":"ZZZ__FnCalls!F46","v":"Apr 2013"},{"$f":"ZZZ__FnCalls!F47","v":"May 2013"},{"$f":"ZZZ__FnCalls!F48","v":"Jun 2013"},{"$f":"ZZZ__FnCalls!F49","v":"Jul 2013"},{"$f":"ZZZ__FnCalls!F50","v":"Aug 2013"},{"$f":"ZZZ__FnCalls!F51","v":"Sep 2013"},{"$f":"ZZZ__FnCalls!F52","v":"Oct 2013"},{"$f":"ZZZ__FnCalls!F53","v":"Nov 2013"},{"$f":"ZZZ__FnCalls!F54","v":"Dec 2013"},{"$f":"ZZZ__FnCalls!H43","v":"2013"},{"$f":"ZZZ__FnCalls!F55","v":"Jan 2014"},{"$f":"ZZZ__FnCalls!F56","v":"Feb 2014"},{"$f":"ZZZ__FnCalls!F57","v":"Mar 2014"},{"$f":"ZZZ__FnCalls!F58","v":"Apr 2014"},{"$f":"ZZZ__FnCalls!F59","v":"May 2014"},{"$f":"ZZZ__FnCalls!F60","v":"Jun 2014"},{"$f":"ZZZ__FnCalls!F61","v":"Jul 2014"},{"$f":"ZZZ__FnCalls!F62","v":"Aug 2014"},{"$f":"ZZZ__FnCalls!F63","v":"Sep 2014"},{"$f":"ZZZ__FnCalls!F64","v":"Oct 2014"},{"$f":"ZZZ__FnCalls!F65","v":"Nov 2014"},{"$f":"ZZZ__FnCalls!F66","v":"Dec 2014"},{"$f":"ZZZ__FnCalls!H55","v":"2014"},{"$f":"ZZZ__FnCalls!F67","v":"Jan 2015"},{"$f":"ZZZ__FnCalls!F68","v":"Feb 2015"},{"$f":"ZZZ__FnCalls!F69","v":"Mar 2015"},{"$f":"ZZZ__FnCalls!F70","v":"Apr 2015"},{"$f":"ZZZ__FnCalls!F71","v":"May 2015"},{"$f":"ZZZ__FnCalls!F72","v":"Jun 2015"},{"$f":"ZZZ__FnCalls!F73","v":"Jul 2015"},{"$f":"ZZZ__FnCalls!F74","v":"Aug 2015"},{"$f":"ZZZ__FnCalls!F75","v":"Sep 2015"},{"$f":"ZZZ__FnCalls!F76","v":"Oct 2015"},{"$f":"ZZZ__FnCalls!F77","v":"Nov 2015"},{"$f":"ZZZ__FnCalls!F78","v":"Dec 2015"},{"$f":"ZZZ__FnCalls!H67","v":"2015"},{"$f":"ZZZ__FnCalls!F79","v":"Jan 2016"},{"$f":"ZZZ__FnCalls!F80","v":"Feb 2016"},{"$f":"ZZZ__FnCalls!F81","v":"Mar 2016"},{"$f":"ZZZ__FnCalls!F82","v":"Apr 2016"},{"$f":"ZZZ__FnCalls!F83","v":"May 2016"},{"$f":"ZZZ__FnCalls!F84","v":"Jun 2016"},{"$f":"ZZZ__FnCalls!F85","v":"Jul 2016"},{"$f":"ZZZ__FnCalls!F86","v":"Aug 2016"},{"$f":"ZZZ__FnCalls!F87","v":"Sep 2016"},{"$f":"ZZZ__FnCalls!F88","v":"Oct 2016"},{"$f":"ZZZ__FnCalls!F89","v":"Nov 2016"},{"$f":"ZZZ__FnCalls!F90","v":"Dec 2016"},{"$f":"ZZZ__FnCalls!H79","v":"2016"},{"$f":"ZZZ__FnCalls!F91","v":"Jan 2017"},{"$f":"ZZZ__FnCalls!F92","v":"Feb 2017"},{"$f":"ZZZ__FnCalls!F93","v":"Mar 2017"},{"$f":"ZZZ__FnCalls!F94","v":"Apr 2017"},{"$f":"ZZZ__FnCalls!F95","v":"May 2017"},{"$f":"ZZZ__FnCalls!F96","v":"Jun 2017"},{"$f":"ZZZ__FnCalls!F97","v":"Jul 2017"},{"$f":"ZZZ__FnCalls!F98","v":"Aug 2017"},{"$f":"ZZZ__FnCalls!F99","v":"Sep 2017"},{"$f":"ZZZ__FnCalls!F100","v":"Oct 2017"},{"$f":"ZZZ__FnCalls!F101","v":"Nov 2017"},{"$f":"ZZZ__FnCalls!F102","v":"Dec 2017"},{"$f":"ZZZ__FnCalls!H91","v":"2017"},{"$f":"ZZZ__FnCalls!F103","v":"Jan 2018"},{"$f":"ZZZ__FnCalls!F104","v":"Feb 2018"},{"$f":"ZZZ__FnCalls!F105","v":"Mar 2018"},{"$f":"ZZZ__FnCalls!F106","v":"Apr 2018"},{"$f":"ZZZ__FnCalls!F107","v":"May 2018"},{"$f":"ZZZ__FnCalls!F108","v":"Jun 2018"},{"$f":"ZZZ__FnCalls!F109","v":"Jul 2018"},{"$f":"ZZZ__FnCalls!F110","v":"Aug 2018"},{"$f":"ZZZ__FnCalls!F111","v":"Sep 2018"},{"$f":"ZZZ__FnCalls!F112","v":"Oct 2018"},{"$f":"ZZZ__FnCalls!F113","v":"Nov 2018"},{"$f":"ZZZ__FnCalls!F114","v":"Dec 2018"},{"$f":"ZZZ__FnCalls!H103","v":"2018"},{"$f":"ZZZ__FnCalls!F115","v":"Jan 2019"},{"$f":"ZZZ__FnCalls!F116","v":"Feb 2019"},{"$f":"ZZZ__FnCalls!F117","v":"Mar 2019"},{"$f":"ZZZ__FnCalls!F118","v":"Apr 2019"},{"$f":"ZZZ__FnCalls!F119","v":"May 2019"},{"$f":"ZZZ__FnCalls!F120","v":"Jun 2019"},{"$f":"ZZZ__FnCalls!F121","v":"Jul 2019"},{"$f":"ZZZ__FnCalls!F122","v":"Aug 2019"},{"$f":"ZZZ__FnCalls!F123","v":"Sep 2019"},{"$f":"ZZZ__FnCalls!F124","v":"Oct 2019"},{"$f":"ZZZ__FnCalls!F125","v":"Nov 2019"},{"$f":"ZZZ__FnCalls!F126","v":"Dec 2019"},{"$f":"ZZZ__FnCalls!H115","v":"2019"},{"$f":"ZZZ__FnCalls!F127","v":"Jan 2020"},{"$f":"ZZZ__FnCalls!F128","v":"Feb 2020"},{"$f":"ZZZ__FnCalls!F129","v":"Mar 2020"},{"$f":"ZZZ__FnCalls!F130","v":"Apr 2020"},{"$f":"ZZZ__FnCalls!F131","v":"May 2020"},{"$f":"ZZZ__FnCalls!F132","v":"Jun 2020"},{"$f":"ZZZ__FnCalls!F133","v":"Jul 2020"},{"$f":"ZZZ__FnCalls!F134","v":"Aug 2020"},{"$f":"ZZZ__FnCalls!F135","v":"Sep 2020"},{"$f":"ZZZ__FnCalls!F136","v":"Oct 2020"},{"$f":"ZZZ__FnCalls!F137","v":"Nov 2020"},{"$f":"ZZZ__FnCalls!F138","v":"Dec 2020"},{"$f":"ZZZ__FnCalls!H127","v":"2020"}]
[{"$f":"Labels!B51","v":"Gov Spending"},{"$f":"B37","v":{"v":29166.66666666667,"d":"$29,167"}},{"v":29166.66666666667,"d":"$29,167"},{"v":29166.66666666667,"d":"$29,167"},{"v":29166.66666666667,"d":"$29,167"},{"v":29166.66666666667,"d":"$29,167"},{"v":29166.66666666667,"d":"$29,167"},{"v":29166.66666666667,"d":"$29,167"},{"v":29166.66666666667,"d":"$29,167"},{"v":29166.66666666667,"d":"$29,167"},{"v":29166.66666666667,"d":"$29,167"},{"v":29166.66666666667,"d":"$29,167"},{"v":29166.66666666667,"d":"$29,167"},{"$f":"SUM(B37:M37)","v":{"v":350000.0000000002,"d":"$350,000"}},{"$f":"O37","v":{"v":29166.66666666667,"d":"$29,167"}},{"v":29166.66666666667,"d":"$29,167"},{"v":29166.66666666667,"d":"$29,167"},{"v":29166.66666666667,"d":"$29,167"},{"v":29166.66666666667,"d":"$29,167"},{"v":29166.66666666667,"d":"$29,167"},{"v":29166.66666666667,"d":"$29,167"},{"v":29166.66666666667,"d":"$29,167"},{"v":29166.66666666667,"d":"$29,167"},{"v":29166.66666666667,"d":"$29,167"},{"v":29166.66666666667,"d":"$29,167"},{"v":29166.66666666667,"d":"$29,167"},{"$f":"SUM(O37:Z37)","v":{"v":350000.0000000002,"d":"$350,000"}},{"$f":"AB37","v":{"v":29166.66666666667,"d":"$29,167"}},{"v":29166.66666666667,"d":"$29,167"},{"v":29166.66666666667,"d":"$29,167"},{"v":29166.66666666667,"d":"$29,167"},{"v":29166.66666666667,"d":"$29,167"},{"v":29166.66666666667,"d":"$29,167"},{"v":29166.66666666667,"d":"$29,167"},{"v":29166.66666666667,"d":"$29,167"},{"v":29166.66666666667,"d":"$29,167"},{"v":29166.66666666667,"d":"$29,167"},{"v":29166.66666666667,"d":"$29,167"},{"v":29166.66666666667,"d":"$29,167"},{"$f":"SUM(AB37:AM37)","v":{"v":350000.0000000002,"d":"$350,000"}},{"$f":"AO37","v":{"v":29166.66666666667,"d":"$29,167"}},{"v":29166.66666666667,"d":"$29,167"},{"v":29166.66666666667,"d":"$29,167"},{"v":29166.66666666667,"d":"$29,167"},{"v":29166.66666666667,"d":"$29,167"},{"v":29166.66666666667,"d":"$29,167"},{"v":29166.66666666667,"d":"$29,167"},{"v":29166.66666666667,"d":"$29,167"},{"v":29166.66666666667,"d":"$29,167"},{"v":29166.66666666667,"d":"$29,167"},{"v":29166.66666666667,"d":"$29,167"},{"v":29166.66666666667,"d":"$29,167"},{"$f":"SUM(AO37:AZ37)","v":{"v":350000.0000000002,"d":"$350,000"}},{"$f":"BB37","v":{"v":29166.66666666667,"d":"$29,167"}},{"v":29166.66666666667,"d":"$29,167"},{"v":29166.66666666667,"d":"$29,167"},{"v":29166.66666666667,"d":"$29,167"},{"v":29166.66666666667,"d":"$29,167"},{"v":29166.66666666667,"d":"$29,167"},{"v":29166.66666666667,"d":"$29,167"},{"v":29166.66666666667,"d":"$29,167"},{"v":29166.66666666667,"d":"$29,167"},{"v":29166.66666666667,"d":"$29,167"},{"v":29166.66666666667,"d":"$29,167"},{"v":29166.66666666667,"d":"$29,167"},{"$f":"SUM(BB37:BM37)","v":{"v":350000.0000000002,"d":"$350,000"}},{"$f":"BO37","v":{"v":29166.66666666667,"d":"$29,167"}},{"v":29166.66666666667,"d":"$29,167"},{"v":29166.66666666667,"d":"$29,167"},{"v":29166.66666666667,"d":"$29,167"},{"v":29166.66666666667,"d":"$29,167"},{"v":29166.66666666667,"d":"$29,167"},{"v":29166.66666666667,"d":"$29,167"},{"v":29166.66666666667,"d":"$29,167"},{"v":29166.66666666667,"d":"$29,167"},{"v":29166.66666666667,"d":"$29,167"},{"v":29166.66666666667,"d":"$29,167"},{"v":29166.66666666667,"d":"$29,167"},{"$f":"SUM(BO37:BZ37)","v":{"v":350000.0000000002,"d":"$350,000"}},{"$f":"CB37","v":{"v":29166.66666666667,"d":"$29,167"}},{"v":29166.66666666667,"d":"$29,167"},{"v":29166.66666666667,"d":"$29,167"},{"v":29166.66666666667,"d":"$29,167"},{"v":29166.66666666667,"d":"$29,167"},{"v":29166.66666666667,"d":"$29,167"},{"v":29166.66666666667,"d":"$29,167"},{"v":29166.66666666667,"d":"$29,167"},{"v":29166.66666666667,"d":"$29,167"},{"v":29166.66666666667,"d":"$29,167"},{"v":29166.66666666667,"d":"$29,167"},{"v":29166.66666666667,"d":"$29,167"},{"$f":"SUM(CB37:CM37)","v":{"v":350000.0000000002,"d":"$350,000"}},{"$f":"CO37","v":{"v":29166.66666666667,"d":"$29,167"}},{"v":29166.66666666667,"d":"$29,167"},{"v":29166.66666666667,"d":"$29,167"},{"v":29166.66666666667,"d":"$29,167"},{"v":29166.66666666667,"d":"$29,167"},{"v":29166.66666666667,"d":"$29,167"},{"v":29166.66666666667,"d":"$29,167"},{"v":29166.66666666667,"d":"$29,167"},{"v":29166.66666666667,"d":"$29,167"},{"v":29166.66666666667,"d":"$29,167"},{"v":29166.66666666667,"d":"$29,167"},{"v":29166.66666666667,"d":"$29,167"},{"$f":"SUM(CO37:CZ37)","v":{"v":350000.0000000002,"d":"$350,000"}},{"$f":"DB37","v":{"v":29166.66666666667,"d":"$29,167"}},{"v":29166.66666666667,"d":"$29,167"},{"v":29166.66666666667,"d":"$29,167"},{"v":29166.66666666667,"d":"$29,167"},{"v":29166.66666666667,"d":"$29,167"},{"v":29166.66666666667,"d":"$29,167"},{"v":29166.66666666667,"d":"$29,167"},{"v":29166.66666666667,"d":"$29,167"},{"v":29166.66666666667,"d":"$29,167"},{"v":29166.66666666667,"d":"$29,167"},{"v":29166.66666666667,"d":"$29,167"},{"v":29166.66666666667,"d":"$29,167"},{"$f":"SUM(DB37:DM37)","v":{"v":350000.0000000002,"d":"$350,000"}},{"$f":"DO37","v":{"v":29166.66666666667,"d":"$29,167"}},{"v":29166.66666666667,"d":"$29,167"},{"v":29166.66666666667,"d":"$29,167"},{"v":29166.66666666667,"d":"$29,167"},{"v":29166.66666666667,"d":"$29,167"},{"v":29166.66666666667,"d":"$29,167"},{"v":29166.66666666667,"d":"$29,167"},{"v":29166.66666666667,"d":"$29,167"},{"v":29166.66666666667,"d":"$29,167"},{"v":29166.66666666667,"d":"$29,167"},{"v":29166.66666666667,"d":"$29,167"},{"v":29166.66666666667,"d":"$29,167"},{"$f":"SUM(DO37:DZ37)","v":{"v":350000.0000000002,"d":"$350,000"}},{"$f":"EB37","v":{"v":29166.66666666667,"d":"$29,167"}},{"v":29166.66666666667,"d":"$29,167"},{"v":29166.66666666667,"d":"$29,167"},{"v":29166.66666666667,"d":"$29,167"},{"v":29166.66666666667,"d":"$29,167"},{"v":29166.66666666667,"d":"$29,167"},{"v":29166.66666666667,"d":"$29,167"},{"v":29166.66666666667,"d":"$29,167"},{"v":29166.66666666667,"d":"$29,167"},{"v":29166.66666666667,"d":"$29,167"},{"v":29166.66666666667,"d":"$29,167"},{"v":29166.66666666667,"d":"$29,167"},{"$f":"SUM(EB37:EM37)","v":{"v":350000.0000000002,"d":"$350,000"}}]
[{"$f":"Labels!B52","v":"Gov Transfers"},{"$f":"B38","v":{"v":14583.333333333336,"d":"$14,583"}},{"v":14583.333333333336,"d":"$14,583"},{"v":14583.333333333336,"d":"$14,583"},{"v":14583.333333333336,"d":"$14,583"},{"v":14583.333333333336,"d":"$14,583"},{"v":14583.333333333336,"d":"$14,583"},{"v":14583.333333333336,"d":"$14,583"},{"v":14583.333333333336,"d":"$14,583"},{"v":14583.333333333336,"d":"$14,583"},{"v":14583.333333333336,"d":"$14,583"},{"v":14583.333333333336,"d":"$14,583"},{"v":14583.333333333336,"d":"$14,583"},{"$f":"SUM(B38:M38)","v":{"v":175000.0000000001,"d":"$175,000"}},{"$f":"O38","v":{"v":14583.333333333336,"d":"$14,583"}},{"v":14583.333333333336,"d":"$14,583"},{"v":14583.333333333336,"d":"$14,583"},{"v":14583.333333333336,"d":"$14,583"},{"v":14583.333333333336,"d":"$14,583"},{"v":14583.333333333336,"d":"$14,583"},{"v":14583.333333333336,"d":"$14,583"},{"v":14583.333333333336,"d":"$14,583"},{"v":14583.333333333336,"d":"$14,583"},{"v":14583.333333333336,"d":"$14,583"},{"v":14583.333333333336,"d":"$14,583"},{"v":14583.333333333336,"d":"$14,583"},{"$f":"SUM(O38:Z38)","v":{"v":175000.0000000001,"d":"$175,000"}},{"$f":"AB38","v":{"v":14583.333333333336,"d":"$14,583"}},{"v":14583.333333333336,"d":"$14,583"},{"v":14583.333333333336,"d":"$14,583"},{"v":14583.333333333336,"d":"$14,583"},{"v":14583.333333333336,"d":"$14,583"},{"v":14583.333333333336,"d":"$14,583"},{"v":14583.333333333336,"d":"$14,583"},{"v":14583.333333333336,"d":"$14,583"},{"v":14583.333333333336,"d":"$14,583"},{"v":14583.333333333336,"d":"$14,583"},{"v":14583.333333333336,"d":"$14,583"},{"v":14583.333333333336,"d":"$14,583"},{"$f":"SUM(AB38:AM38)","v":{"v":175000.0000000001,"d":"$175,000"}},{"$f":"AO38","v":{"v":14583.333333333336,"d":"$14,583"}},{"v":14583.333333333336,"d":"$14,583"},{"v":14583.333333333336,"d":"$14,583"},{"v":14583.333333333336,"d":"$14,583"},{"v":14583.333333333336,"d":"$14,583"},{"v":14583.333333333336,"d":"$14,583"},{"v":14583.333333333336,"d":"$14,583"},{"v":14583.333333333336,"d":"$14,583"},{"v":14583.333333333336,"d":"$14,583"},{"v":14583.333333333336,"d":"$14,583"},{"v":14583.333333333336,"d":"$14,583"},{"v":14583.333333333336,"d":"$14,583"},{"$f":"SUM(AO38:AZ38)","v":{"v":175000.0000000001,"d":"$175,000"}},{"$f":"BB38","v":{"v":14583.333333333336,"d":"$14,583"}},{"v":14583.333333333336,"d":"$14,583"},{"v":14583.333333333336,"d":"$14,583"},{"v":14583.333333333336,"d":"$14,583"},{"v":14583.333333333336,"d":"$14,583"},{"v":14583.333333333336,"d":"$14,583"},{"v":14583.333333333336,"d":"$14,583"},{"v":14583.333333333336,"d":"$14,583"},{"v":14583.333333333336,"d":"$14,583"},{"v":14583.333333333336,"d":"$14,583"},{"v":14583.333333333336,"d":"$14,583"},{"v":14583.333333333336,"d":"$14,583"},{"$f":"SUM(BB38:BM38)","v":{"v":175000.0000000001,"d":"$175,000"}},{"$f":"BO38","v":{"v":14583.333333333336,"d":"$14,583"}},{"v":14583.333333333336,"d":"$14,583"},{"v":14583.333333333336,"d":"$14,583"},{"v":14583.333333333336,"d":"$14,583"},{"v":14583.333333333336,"d":"$14,583"},{"v":14583.333333333336,"d":"$14,583"},{"v":14583.333333333336,"d":"$14,583"},{"v":14583.333333333336,"d":"$14,583"},{"v":14583.333333333336,"d":"$14,583"},{"v":14583.333333333336,"d":"$14,583"},{"v":14583.333333333336,"d":"$14,583"},{"v":14583.333333333336,"d":"$14,583"},{"$f":"SUM(BO38:BZ38)","v":{"v":175000.0000000001,"d":"$175,000"}},{"$f":"CB38","v":{"v":14583.333333333336,"d":"$14,583"}},{"v":14583.333333333336,"d":"$14,583"},{"v":14583.333333333336,"d":"$14,583"},{"v":14583.333333333336,"d":"$14,583"},{"v":14583.333333333336,"d":"$14,583"},{"v":14583.333333333336,"d":"$14,583"},{"v":14583.333333333336,"d":"$14,583"},{"v":14583.333333333336,"d":"$14,583"},{"v":14583.333333333336,"d":"$14,583"},{"v":14583.333333333336,"d":"$14,583"},{"v":14583.333333333336,"d":"$14,583"},{"v":14583.333333333336,"d":"$14,583"},{"$f":"SUM(CB38:CM38)","v":{"v":175000.0000000001,"d":"$175,000"}},{"$f":"CO38","v":{"v":14583.333333333336,"d":"$14,583"}},{"v":14583.333333333336,"d":"$14,583"},{"v":14583.333333333336,"d":"$14,583"},{"v":14583.333333333336,"d":"$14,583"},{"v":14583.333333333336,"d":"$14,583"},{"v":14583.333333333336,"d":"$14,583"},{"v":14583.333333333336,"d":"$14,583"},{"v":14583.333333333336,"d":"$14,583"},{"v":14583.333333333336,"d":"$14,583"},{"v":14583.333333333336,"d":"$14,583"},{"v":14583.333333333336,"d":"$14,583"},{"v":14583.333333333336,"d":"$14,583"},{"$f":"SUM(CO38:CZ38)","v":{"v":175000.0000000001,"d":"$175,000"}},{"$f":"DB38","v":{"v":14583.333333333336,"d":"$14,583"}},{"v":14583.333333333336,"d":"$14,583"},{"v":14583.333333333336,"d":"$14,583"},{"v":14583.333333333336,"d":"$14,583"},{"v":14583.333333333336,"d":"$14,583"},{"v":14583.333333333336,"d":"$14,583"},{"v":14583.333333333336,"d":"$14,583"},{"v":14583.333333333336,"d":"$14,583"},{"v":14583.333333333336,"d":"$14,583"},{"v":14583.333333333336,"d":"$14,583"},{"v":14583.333333333336,"d":"$14,583"},{"v":14583.333333333336,"d":"$14,583"},{"$f":"SUM(DB38:DM38)","v":{"v":175000.0000000001,"d":"$175,000"}},{"$f":"DO38","v":{"v":14583.333333333336,"d":"$14,583"}},{"v":14583.333333333336,"d":"$14,583"},{"v":14583.333333333336,"d":"$14,583"},{"v":14583.333333333336,"d":"$14,583"},{"v":14583.333333333336,"d":"$14,583"},{"v":14583.333333333336,"d":"$14,583"},{"v":14583.333333333336,"d":"$14,583"},{"v":14583.333333333336,"d":"$14,583"},{"v":14583.333333333336,"d":"$14,583"},{"v":14583.333333333336,"d":"$14,583"},{"v":14583.333333333336,"d":"$14,583"},{"v":14583.333333333336,"d":"$14,583"},{"$f":"SUM(DO38:DZ38)","v":{"v":175000.0000000001,"d":"$175,000"}},{"$f":"EB38","v":{"v":14583.333333333336,"d":"$14,583"}},{"v":14583.333333333336,"d":"$14,583"},{"v":14583.333333333336,"d":"$14,583"},{"v":14583.333333333336,"d":"$14,583"},{"v":14583.333333333336,"d":"$14,583"},{"v":14583.333333333336,"d":"$14,583"},{"v":14583.333333333336,"d":"$14,583"},{"v":14583.333333333336,"d":"$14,583"},{"v":14583.333333333336,"d":"$14,583"},{"v":14583.333333333336,"d":"$14,583"},{"v":14583.333333333336,"d":"$14,583"},{"v":14583.333333333336,"d":"$14,583"},{"$f":"SUM(EB38:EM38)","v":{"v":175000.0000000001,"d":"$175,000"}}]
[{"$f":"Labels!B83","v":"Tax"},{"$f":"Inputs!B52*B44","v":{"v":349399.51875241724,"d":"$349,400"}},{"$f":"Inputs!B52*C44","v":{"v":343483.9196737852,"d":"$343,484"}},{"$f":"Inputs!B52*D44","v":{"v":352140.6199299103,"d":"$352,141"}},{"$f":"Inputs!B52*E44","v":{"v":353319.44176055316,"d":"$353,319"}},{"$f":"Inputs!B52*F44","v":{"v":344836.6337040916,"d":"$344,837"}},{"$f":"Inputs!B52*G44","v":{"v":338852.07683567033,"d":"$338,852"}},{"$f":"Inputs!B52*H44","v":{"v":364733.63613244053,"d":"$364,734"}},{"$f":"Inputs!B52*I44","v":{"v":330403.2486042372,"d":"$330,403"}},{"$f":"Inputs!B52*J44","v":{"v":343590.9051008796,"d":"$343,591"}},{"$f":"Inputs!B52*K44","v":{"v":347191.8556543987,"d":"$347,192"}},{"$f":"Inputs!B52*L44","v":{"v":363845.8019263093,"d":"$363,846"}},{"$f":"Inputs!B52*M44","v":{"v":345503.73219166574,"d":"$345,504"}},{"$f":"SUM(B54:M54)","v":{"v":4177301.3902663584,"d":"$4,177,301"}},{"$f":"Inputs!B52*O44","v":{"v":341074.5612818335,"d":"$341,075"}},{"$f":"Inputs!B52*P44","v":{"v":343598.93778610934,"d":"$343,599"}},{"$f":"Inputs!B52*Q44","v":{"v":346711.73833292664,"d":"$346,712"}},{"$f":"Inputs!B52*R44","v":{"v":331370.0651863802,"d":"$331,370"}},{"$f":"Inputs!B52*S44","v":{"v":336348.66460777697,"d":"$336,349"}},{"$f":"Inputs!B52*T44","v":{"v":355675.81194535637,"d":"$355,676"}},{"$f":"Inputs!B52*U44","v":{"v":350929.9719127632,"d":"$350,930"}},{"$f":"Inputs!B52*V44","v":{"v":333652.35010257835,"d":"$333,652"}},{"$f":"Inputs!B52*W44","v":{"v":342007.7972568703,"d":"$342,008"}},{"$f":"Inputs!B52*X44","v":{"v":341402.51521875843,"d":"$341,403"}},{"$f":"Inputs!B52*Y44","v":{"v":342786.43413583597,"d":"$342,786"}},{"$f":"Inputs!B52*Z44","v":{"v":331938.47383495583,"d":"$331,938"}},{"$f":"SUM(O54:Z54)","v":{"v":4097497.321602145,"d":"$4,097,497"}},{"$f":"Inputs!B52*AB44","v":{"v":326093.54265693884,"d":"$326,094"}},{"$f":"Inputs!B52*AC44","v":{"v":344454.68354326,"d":"$344,455"}},{"$f":"Inputs!B52*AD44","v":{"v":349197.73053644376,"d":"$349,198"}},{"$f":"Inputs!B52*AE44","v":{"v":327425.66963526234,"d":"$327,426"}},{"$f":"Inputs!B52*AF44","v":{"v":326934.8544928421,"d":"$326,935"}},{"$f":"Inputs!B52*AG44","v":{"v":332267.8130093126,"d":"$332,268"}},{"$f":"Inputs!B52*AH44","v":{"v":346427.6296892444,"d":"$346,428"}},{"$f":"Inputs!B52*AI44","v":{"v":335045.2116070378,"d":"$335,045"}},{"$f":"Inputs!B52*AJ44","v":{"v":341409.9104690442,"d":"$341,410"}},{"$f":"Inputs!B52*AK44","v":{"v":345685.45364408364,"d":"$345,685"}},{"$f":"Inputs!B52*AL44","v":{"v":342724.06097033306,"d":"$342,724"}},{"$f":"Inputs!B52*AM44","v":{"v":329419.5733983708,"d":"$329,420"}},{"$f":"SUM(AB54:AM54)","v":{"v":4047086.133652173,"d":"$4,047,086"}},{"$f":"Inputs!B52*AO44","v":{"v":332513.478216293,"d":"$332,513"}},{"$f":"Inputs!B52*AP44","v":{"v":329353.92316406476,"d":"$329,354"}},{"$f":"Inputs!B52*AQ44","v":{"v":324207.1961111748,"d":"$324,207"}},{"$f":"Inputs!B52*AR44","v":{"v":348800.86701711226,"d":"$348,801"}},{"$f":"Inputs!B52*AS44","v":{"v":325306.00762068154,"d":"$325,306"}},{"$f":"Inputs!B52*AT44","v":{"v":334488.3886081318,"d":"$334,488"}},{"$f":"Inputs!B52*AU44","v":{"v":337550.61190591456,"d":"$337,551"}},{"$f":"Inputs!B52*AV44","v":{"v":334255.1918274449,"d":"$334,255"}},{"$f":"Inputs!B52*AW44","v":{"v":318298.4919527758,"d":"$318,298"}},{"$f":"Inputs!B52*AX44","v":{"v":326165.67771268584,"d":"$326,166"}},{"$f":"Inputs!B52*AY44","v":{"v":327235.0802803417,"d":"$327,235"}},{"$f":"Inputs!B52*AZ44","v":{"v":337867.59317254764,"d":"$337,868"}},{"$f":"SUM(AO54:AZ54)","v":{"v":3976042.507589169,"d":"$3,976,043"}},{"$f":"Inputs!B52*BB44","v":{"v":316443.60518247547,"d":"$316,444"}},{"$f":"Inputs!B52*BC44","v":{"v":333060.63384244643,"d":"$333,061"}},{"$f":"Inputs!B52*BD44","v":{"v":344990.9790173679,"d":"$344,991"}},{"$f":"Inputs!B52*BE44","v":{"v":338798.5413465275,"d":"$338,799"}},{"$f":"Inputs!B52*BF44","v":{"v":324328.14806269325,"d":"$324,328"}},{"$f":"Inputs!B52*BG44","v":{"v":313329.15487466357,"d":"$313,329"}},{"$f":"Inputs!B52*BH44","v":{"v":343454.0184469266,"d":"$343,454"}},{"$f":"Inputs!B52*BI44","v":{"v":315231.31372195756,"d":"$315,231"}},{"$f":"Inputs!B52*BJ44","v":{"v":325012.66644250974,"d":"$325,013"}},{"$f":"Inputs!B52*BK44","v":{"v":337584.6413453711,"d":"$337,585"}},{"$f":"Inputs!B52*BL44","v":{"v":313865.8190501901,"d":"$313,866"}},{"$f":"Inputs!B52*BM44","v":{"v":329088.05977213196,"d":"$329,088"}},{"$f":"SUM(BB54:BM54)","v":{"v":3935187.581105261,"d":"$3,935,188"}},{"$f":"Inputs!B52*BO44","v":{"v":311662.4302251676,"d":"$311,662"}},{"$f":"Inputs!B52*BP44","v":{"v":324704.32190722536,"d":"$324,704"}},{"$f":"Inputs!B52*BQ44","v":{"v":314560.36163004575,"d":"$314,560"}},{"$f":"Inputs!B52*BR44","v":{"v":335726.3744303696,"d":"$335,726"}},{"$f":"Inputs!B52*BS44","v":{"v":317377.7012606803,"d":"$317,378"}},{"$f":"Inputs!B52*BT44","v":{"v":329592.3612913081,"d":"$329,592"}},{"$f":"Inputs!B52*BU44","v":{"v":334061.4862918842,"d":"$334,061"}},{"$f":"Inputs!B52*BV44","v":{"v":312486.0655501773,"d":"$312,486"}},{"$f":"Inputs!B52*BW44","v":{"v":321415.74195888394,"d":"$321,416"}},{"$f":"Inputs!B52*BX44","v":{"v":303989.93530919135,"d":"$303,990"}},{"$f":"Inputs!B52*BY44","v":{"v":327150.1971136624,"d":"$327,150"}},{"$f":"Inputs!B52*BZ44","v":{"v":321832.14466516837,"d":"$321,832"}},{"$f":"SUM(BO54:BZ54)","v":{"v":3854559.1216337644,"d":"$3,854,559"}},{"$f":"Inputs!B52*CB44","v":{"v":330356.39319699735,"d":"$330,356"}},{"$f":"Inputs!B52*CC44","v":{"v":316115.0902072494,"d":"$316,115"}},{"$f":"Inputs!B52*CD44","v":{"v":303514.92936257215,"d":"$303,515"}},{"$f":"Inputs!B52*CE44","v":{"v":309725.0499089945,"d":"$309,725"}},{"$f":"Inputs!B52*CF44","v":{"v":314324.9393184901,"d":"$314,325"}},{"$f":"Inputs!B52*CG44","v":{"v":330859.91687421844,"d":"$330,860"}},{"$f":"Inputs!B52*CH44","v":{"v":334385.728797004,"d":"$334,386"}},{"$f":"Inputs!B52*CI44","v":{"v":324627.4255796195,"d":"$324,627"}},{"$f":"Inputs!B52*CJ44","v":{"v":328409.753173114,"d":"$328,410"}},{"$f":"Inputs!B52*CK44","v":{"v":315799.57959716336,"d":"$315,800"}},{"$f":"Inputs!B52*CL44","v":{"v":309844.58351575513,"d":"$309,845"}},{"$f":"Inputs!B52*CM44","v":{"v":311871.69971418305,"d":"$311,872"}},{"$f":"SUM(CB54:CM54)","v":{"v":3829835.0892453603,"d":"$3,829,835"}},{"$f":"Inputs!B52*CO44","v":{"v":308925.62734698347,"d":"$308,926"}},{"$f":"Inputs!B52*CP44","v":{"v":310820.0308642899,"d":"$310,820"}},{"$f":"Inputs!B52*CQ44","v":{"v":325979.82087826054,"d":"$325,980"}},{"$f":"Inputs!B52*CR44","v":{"v":318058.07169666264,"d":"$318,058"}},{"$f":"Inputs!B52*CS44","v":{"v":309896.43376780034,"d":"$309,896"}},{"$f":"Inputs!B52*CT44","v":{"v":301640.67082438647,"d":"$301,641"}},{"$f":"Inputs!B52*CU44","v":{"v":316467.78914571955,"d":"$316,468"}},{"$f":"Inputs!B52*CV44","v":{"v":307233.5882047982,"d":"$307,234"}},{"$f":"Inputs!B52*CW44","v":{"v":314787.765860443,"d":"$314,788"}},{"$f":"Inputs!B52*CX44","v":{"v":300370.3453275973,"d":"$300,370"}},{"$f":"Inputs!B52*CY44","v":{"v":313024.21919393266,"d":"$313,024"}},{"$f":"Inputs!B52*CZ44","v":{"v":318114.686724267,"d":"$318,115"}},{"$f":"SUM(CO54:CZ54)","v":{"v":3745319.049835141,"d":"$3,745,319"}},{"$f":"Inputs!B52*DB44","v":{"v":314474.97607041395,"d":"$314,475"}},{"$f":"Inputs!B52*DC44","v":{"v":306993.3957638938,"d":"$306,993"}},{"$f":"Inputs!B52*DD44","v":{"v":299811.1073356876,"d":"$299,811"}},{"$f":"Inputs!B52*DE44","v":{"v":316624.09448557964,"d":"$316,624"}},{"$f":"Inputs!B52*DF44","v":{"v":326376.6254925759,"d":"$326,377"}},{"$f":"Inputs!B52*DG44","v":{"v":308786.1232912538,"d":"$308,786"}},{"$f":"Inputs!B52*DH44","v":{"v":309947.0417873488,"d":"$309,947"}},{"$f":"Inputs!B52*DI44","v":{"v":311056.60735097365,"d":"$311,057"}},{"$f":"Inputs!B52*DJ44","v":{"v":303424.18672586064,"d":"$303,424"}},{"$f":"Inputs!B52*DK44","v":{"v":309371.4040287207,"d":"$309,371"}},{"$f":"Inputs!B52*DL44","v":{"v":291581.0082292629,"d":"$291,581"}},{"$f":"Inputs!B52*DM44","v":{"v":310492.69190919056,"d":"$310,493"}},{"$f":"SUM(DB54:DM54)","v":{"v":3708939.262470762,"d":"$3,708,939"}},{"$f":"Inputs!B52*DO44","v":{"v":325665.62231038173,"d":"$325,666"}},{"$f":"Inputs!B52*DP44","v":{"v":303789.7700997982,"d":"$303,790"}},{"$f":"Inputs!B52*DQ44","v":{"v":293910.02172035,"d":"$293,910"}},{"$f":"Inputs!B52*DR44","v":{"v":300460.7528470231,"d":"$300,461"}},{"$f":"Inputs!B52*DS44","v":{"v":297328.9468980753,"d":"$297,329"}},{"$f":"Inputs!B52*DT44","v":{"v":313151.9587458044,"d":"$313,152"}},{"$f":"Inputs!B52*DU44","v":{"v":309543.4582357429,"d":"$309,543"}},{"$f":"Inputs!B52*DV44","v":{"v":305499.9079861437,"d":"$305,500"}},{"$f":"Inputs!B52*DW44","v":{"v":310758.827521551,"d":"$310,759"}},{"$f":"Inputs!B52*DX44","v":{"v":301749.57463024894,"d":"$301,750"}},{"$f":"Inputs!B52*DY44","v":{"v":291038.5391592565,"d":"$291,039"}},{"$f":"Inputs!B52*DZ44","v":{"v":302370.267653295,"d":"$302,370"}},{"$f":"SUM(DO54:DZ54)","v":{"v":3655267.6478076703,"d":"$3,655,268"}},{"$f":"Inputs!B52*EB44","v":{"v":304962.2314072194,"d":"$304,962"}},{"$f":"Inputs!B52*EC44","v":{"v":320522.85220329993,"d":"$320,523"}},{"$f":"Inputs!B52*ED44","v":{"v":298913.7397465286,"d":"$298,914"}},{"$f":"Inputs!B52*EE44","v":{"v":291132.0072538418,"d":"$291,132"}},{"$f":"Inputs!B52*EF44","v":{"v":302256.9315288464,"d":"$302,257"}},{"$f":"Inputs!B52*EG44","v":{"v":300171.5629612439,"d":"$300,172"}},{"$f":"Inputs!B52*EH44","v":{"v":308695.0441817881,"d":"$308,695"}},{"$f":"Inputs!B52*EI44","v":{"v":286497.81233010686,"d":"$286,498"}},{"$f":"Inputs!B52*EJ44","v":{"v":312727.0981676528,"d":"$312,727"}},{"$f":"Inputs!B52*EK44","v":{"v":294099.1534575723,"d":"$294,099"}},{"$f":"Inputs!B52*EL44","v":{"v":302564.3664320869,"d":"$302,564"}},{"$f":"Inputs!B52*EM44","v":{"v":313287.3161992442,"d":"$313,287"}},{"$f":"SUM(EB54:EM54)","v":{"v":3635830.115869431,"d":"$3,635,830"}}]
[]
[]
[{"$f":"\"Stochastic Shocks\"","v":"Stochastic Shocks"}]
[{"$f":"\" \"","v":" "}]
[null,{"$f":"ZZZ__FnCalls!F7","v":"Jan 2010"},{"$f":"ZZZ__FnCalls!F8","v":"Feb 2010"},{"$f":"ZZZ__FnCalls!F9","v":"Mar 2010"},{"$f":"ZZZ__FnCalls!F10","v":"Apr 2010"},{"$f":"ZZZ__FnCalls!F11","v":"May 2010"},{"$f":"ZZZ__FnCalls!F12","v":"Jun 2010"},{"$f":"ZZZ__FnCalls!F13","v":"Jul 2010"},{"$f":"ZZZ__FnCalls!F14","v":"Aug 2010"},{"$f":"ZZZ__FnCalls!F15","v":"Sep 2010"},{"$f":"ZZZ__FnCalls!F16","v":"Oct 2010"},{"$f":"ZZZ__FnCalls!F17","v":"Nov 2010"},{"$f":"ZZZ__FnCalls!F18","v":"Dec 2010"},{"$f":"ZZZ__FnCalls!H7","v":"2010"},{"$f":"ZZZ__FnCalls!F19","v":"Jan 2011"},{"$f":"ZZZ__FnCalls!F20","v":"Feb 2011"},{"$f":"ZZZ__FnCalls!F21","v":"Mar 2011"},{"$f":"ZZZ__FnCalls!F22","v":"Apr 2011"},{"$f":"ZZZ__FnCalls!F23","v":"May 2011"},{"$f":"ZZZ__FnCalls!F24","v":"Jun 2011"},{"$f":"ZZZ__FnCalls!F25","v":"Jul 2011"},{"$f":"ZZZ__FnCalls!F26","v":"Aug 2011"},{"$f":"ZZZ__FnCalls!F27","v":"Sep 2011"},{"$f":"ZZZ__FnCalls!F28","v":"Oct 2011"},{"$f":"ZZZ__FnCalls!F29","v":"Nov 2011"},{"$f":"ZZZ__FnCalls!F30","v":"Dec 2011"},{"$f":"ZZZ__FnCalls!H19","v":"2011"},{"$f":"ZZZ__FnCalls!F31","v":"Jan 2012"},{"$f":"ZZZ__FnCalls!F32","v":"Feb 2012"},{"$f":"ZZZ__FnCalls!F33","v":"Mar 2012"},{"$f":"ZZZ__FnCalls!F34","v":"Apr 2012"},{"$f":"ZZZ__FnCalls!F35","v":"May 2012"},{"$f":"ZZZ__FnCalls!F36","v":"Jun 2012"},{"$f":"ZZZ__FnCalls!F37","v":"Jul 2012"},{"$f":"ZZZ__FnCalls!F38","v":"Aug 2012"},{"$f":"ZZZ__FnCalls!F39","v":"Sep 2012"},{"$f":"ZZZ__FnCalls!F40","v":"Oct 2012"},{"$f":"ZZZ__FnCalls!F41","v":"Nov 2012"},{"$f":"ZZZ__FnCalls!F42","v":"Dec 2012"},{"$f":"ZZZ__FnCalls!H31","v":"2012"},{"$f":"ZZZ__FnCalls!F43","v":"Jan 2013"},{"$f":"ZZZ__FnCalls!F44","v":"Feb 2013"},{"$f":"ZZZ__FnCalls!F45","v":"Mar 2013"},{"$f":"ZZZ__FnCalls!F46","v":"Apr 2013"},{"$f":"ZZZ__FnCalls!F47","v":"May 2013"},{"$f":"ZZZ__FnCalls!F48","v":"Jun 2013"},{"$f":"ZZZ__FnCalls!F49","v":"Jul 2013"},{"$f":"ZZZ__FnCalls!F50","v":"Aug 2013"},{"$f":"ZZZ__FnCalls!F51","v":"Sep 2013"},{"$f":"ZZZ__FnCalls!F52","v":"Oct 2013"},{"$f":"ZZZ__FnCalls!F53","v":"Nov 2013"},{"$f":"ZZZ__FnCalls!F54","v":"Dec 2013"},{"$f":"ZZZ__FnCalls!H43","v":"2013"},{"$f":"ZZZ__FnCalls!F55","v":"Jan 2014"},{"$f":"ZZZ__FnCalls!F56","v":"Feb 2014"},{"$f":"ZZZ__FnCalls!F57","v":"Mar 2014"},{"$f":"ZZZ__FnCalls!F58","v":"Apr 2014"},{"$f":"ZZZ__FnCalls!F59","v":"May 2014"},{"$f":"ZZZ__FnCalls!F60","v":"Jun 2014"},{"$f":"ZZZ__FnCalls!F61","v":"Jul 2014"},{"$f":"ZZZ__FnCalls!F62","v":"Aug 2014"},{"$f":"ZZZ__FnCalls!F63","v":"Sep 2014"},{"$f":"ZZZ__FnCalls!F64","v":"Oct 2014"},{"$f":"ZZZ__FnCalls!F65","v":"Nov 2014"},{"$f":"ZZZ__FnCalls!F66","v":"Dec 2014"},{"$f":"ZZZ__FnCalls!H55","v":"2014"},{"$f":"ZZZ__FnCalls!F67","v":"Jan 2015"},{"$f":"ZZZ__FnCalls!F68","v":"Feb 2015"},{"$f":"ZZZ__FnCalls!F69","v":"Mar 2015"},{"$f":"ZZZ__FnCalls!F70","v":"Apr 2015"},{"$f":"ZZZ__FnCalls!F71","v":"May 2015"},{"$f":"ZZZ__FnCalls!F72","v":"Jun 2015"},{"$f":"ZZZ__FnCalls!F73","v":"Jul 2015"},{"$f":"ZZZ__FnCalls!F74","v":"Aug 2015"},{"$f":"ZZZ__FnCalls!F75","v":"Sep 2015"},{"$f":"ZZZ__FnCalls!F76","v":"Oct 2015"},{"$f":"ZZZ__FnCalls!F77","v":"Nov 2015"},{"$f":"ZZZ__FnCalls!F78","v":"Dec 2015"},{"$f":"ZZZ__FnCalls!H67","v":"2015"},{"$f":"ZZZ__FnCalls!F79","v":"Jan 2016"},{"$f":"ZZZ__FnCalls!F80","v":"Feb 2016"},{"$f":"ZZZ__FnCalls!F81","v":"Mar 2016"},{"$f":"ZZZ__FnCalls!F82","v":"Apr 2016"},{"$f":"ZZZ__FnCalls!F83","v":"May 2016"},{"$f":"ZZZ__FnCalls!F84","v":"Jun 2016"},{"$f":"ZZZ__FnCalls!F85","v":"Jul 2016"},{"$f":"ZZZ__FnCalls!F86","v":"Aug 2016"},{"$f":"ZZZ__FnCalls!F87","v":"Sep 2016"},{"$f":"ZZZ__FnCalls!F88","v":"Oct 2016"},{"$f":"ZZZ__FnCalls!F89","v":"Nov 2016"},{"$f":"ZZZ__FnCalls!F90","v":"Dec 2016"},{"$f":"ZZZ__FnCalls!H79","v":"2016"},{"$f":"ZZZ__FnCalls!F91","v":"Jan 2017"},{"$f":"ZZZ__FnCalls!F92","v":"Feb 2017"},{"$f":"ZZZ__FnCalls!F93","v":"Mar 2017"},{"$f":"ZZZ__FnCalls!F94","v":"Apr 2017"},{"$f":"ZZZ__FnCalls!F95","v":"May 2017"},{"$f":"ZZZ__FnCalls!F96","v":"Jun 2017"},{"$f":"ZZZ__FnCalls!F97","v":"Jul 2017"},{"$f":"ZZZ__FnCalls!F98","v":"Aug 2017"},{"$f":"ZZZ__FnCalls!F99","v":"Sep 2017"},{"$f":"ZZZ__FnCalls!F100","v":"Oct 2017"},{"$f":"ZZZ__FnCalls!F101","v":"Nov 2017"},{"$f":"ZZZ__FnCalls!F102","v":"Dec 2017"},{"$f":"ZZZ__FnCalls!H91","v":"2017"},{"$f":"ZZZ__FnCalls!F103","v":"Jan 2018"},{"$f":"ZZZ__FnCalls!F104","v":"Feb 2018"},{"$f":"ZZZ__FnCalls!F105","v":"Mar 2018"},{"$f":"ZZZ__FnCalls!F106","v":"Apr 2018"},{"$f":"ZZZ__FnCalls!F107","v":"May 2018"},{"$f":"ZZZ__FnCalls!F108","v":"Jun 2018"},{"$f":"ZZZ__FnCalls!F109","v":"Jul 2018"},{"$f":"ZZZ__FnCalls!F110","v":"Aug 2018"},{"$f":"ZZZ__FnCalls!F111","v":"Sep 2018"},{"$f":"ZZZ__FnCalls!F112","v":"Oct 2018"},{"$f":"ZZZ__FnCalls!F113","v":"Nov 2018"},{"$f":"ZZZ__FnCalls!F114","v":"Dec 2018"},{"$f":"ZZZ__FnCalls!H103","v":"2018"},{"$f":"ZZZ__FnCalls!F115","v":"Jan 2019"},{"$f":"ZZZ__FnCalls!F116","v":"Feb 2019"},{"$f":"ZZZ__FnCalls!F117","v":"Mar 2019"},{"$f":"ZZZ__FnCalls!F118","v":"Apr 2019"},{"$f":"ZZZ__FnCalls!F119","v":"May 2019"},{"$f":"ZZZ__FnCalls!F120","v":"Jun 2019"},{"$f":"ZZZ__FnCalls!F121","v":"Jul 2019"},{"$f":"ZZZ__FnCalls!F122","v":"Aug 2019"},{"$f":"ZZZ__FnCalls!F123","v":"Sep 2019"},{"$f":"ZZZ__FnCalls!F124","v":"Oct 2019"},{"$f":"ZZZ__FnCalls!F125","v":"Nov 2019"},{"$f":"ZZZ__FnCalls!F126","v":"Dec 2019"},{"$f":"ZZZ__FnCalls!H115","v":"2019"},{"$f":"ZZZ__FnCalls!F127","v":"Jan 2020"},{"$f":"ZZZ__FnCalls!F128","v":"Feb 2020"},{"$f":"ZZZ__FnCalls!F129","v":"Mar 2020"},{"$f":"ZZZ__FnCalls!F130","v":"Apr 2020"},{"$f":"ZZZ__FnCalls!F131","v":"May 2020"},{"$f":"ZZZ__FnCalls!F132","v":"Jun 2020"},{"$f":"ZZZ__FnCalls!F133","v":"Jul 2020"},{"$f":"ZZZ__FnCalls!F134","v":"Aug 2020"},{"$f":"ZZZ__FnCalls!F135","v":"Sep 2020"},{"$f":"ZZZ__FnCalls!F136","v":"Oct 2020"},{"$f":"ZZZ__FnCalls!F137","v":"Nov 2020"},{"$f":"ZZZ__FnCalls!F138","v":"Dec 2020"},{"$f":"ZZZ__FnCalls!H127","v":"2020"}]
[{"$f":"Labels!B74","v":"Aggregate Demand Shock"},{"$f":"B13","v":{"v":-39650.2324124195,"d":"($39,650)"}},{"v":-29291.953065917616,"d":"($29,292)"},{"v":37929.647418563385,"d":"$37,930"},{"v":-51758.09587141775,"d":"($51,758)"},{"v":-20088.919316370753,"d":"($20,089)"},{"v":-24461.142678906395,"d":"($24,461)"},{"v":-2021.6945032715391,"d":"($2,022)"},{"v":19581.429177416983,"d":"$19,581"},{"v":60300.34428721426,"d":"$60,300"},{"v":-27658.347985496253,"d":"($27,658)"},{"v":-21402.970121025435,"d":"($21,403)"},{"v":-979.9906312181542,"d":"($980)"},{"$f":"SUM(B13:M13)","v":{"v":-99501.92570284876,"d":"($99,502)"}},{"$f":"O13","v":{"v":-10192.535069716321,"d":"($10,193)"}},{"v":4001.15825170857,"d":"$4,001"},{"v":-8156.062361187418,"d":"($8,156)"},{"v":7194.84808841105,"d":"$7,195"},{"v":-41218.952847159744,"d":"($41,219)"},{"v":60178.488554178955,"d":"$60,178"},{"v":14342.461577780192,"d":"$14,342"},{"v":-3770.6396433822897,"d":"($3,771)"},{"v":9143.536529057712,"d":"$9,144"},{"v":-34162.715981189365,"d":"($34,163)"},{"v":56635.79105968711,"d":"$56,636"},{"v":-13697.445848711965,"d":"($13,697)"},{"$f":"SUM(O13:Z13)","v":{"v":40297.93230947649,"d":"$40,298"}},{"$f":"AB13","v":{"v":17025.79277879392,"d":"$17,026"}},{"v":53.56278618977655,"d":"$54"},{"v":51916.47256778126,"d":"$51,916"},{"v":-57513.0075059587,"d":"($57,513)"},{"v":-47366.003512056726,"d":"($47,366)"},{"v":-15849.324579626085,"d":"($15,849)"},{"v":14558.378990651116,"d":"$14,558"},{"v":-33538.66396652808,"d":"($33,539)"},{"v":8302.986653448945,"d":"$8,303"},{"v":-34845.47069587546,"d":"($34,845)"},{"v":-8511.018169403314,"d":"($8,511)"},{"v":-31118.41148495021,"d":"($31,118)"},{"$f":"SUM(AB13:AM13)","v":{"v":-136884.70613753356,"d":"($136,885)"}},{"$f":"AO13","v":{"v":812.1366937754829,"d":"$812"}},{"v":4186.596115683979,"d":"$4,187"},{"v":-11987.282454032424,"d":"($11,987)"},{"v":16112.180967564998,"d":"$16,112"},{"v":21728.168688760372,"d":"$21,728"},{"v":-16522.84846504427,"d":"($16,523)"},{"v":13092.32350362625,"d":"$13,092"},{"v":3156.326865498278,"d":"$3,156"},{"v":-8014.656310642254,"d":"($8,015)"},{"v":-7470.853232386881,"d":"($7,471)"},{"v":8946.724217486339,"d":"$8,947"},{"v":-6829.962061732271,"d":"($6,830)"},{"$f":"SUM(AO13:AZ13)","v":{"v":17208.854528557604,"d":"$17,209"}},{"$f":"BB13","v":{"v":-21512.850611501395,"d":"($21,513)"}},{"v":-41030.87948538585,"d":"($41,031)"},{"v":-57566.45616864928,"d":"($57,566)"},{"v":15761.504906859203,"d":"$15,762"},{"v":-15814.92225497996,"d":"($15,815)"},{"v":8495.240315553308,"d":"$8,495"},{"v":-43321.473914088245,"d":"($43,321)"},{"v":9982.30655968981,"d":"$9,982"},{"v":39221.68597441646,"d":"$39,222"},{"v":13488.36192443507,"d":"$13,488"},{"v":40063.14325297275,"d":"$40,063"},{"v":9779.803928562582,"d":"$9,780"},{"$f":"SUM(BB13:BM13)","v":{"v":-42454.535572115536,"d":"($42,455)"}},{"$f":"BO13","v":{"v":38239.05289020324,"d":"$38,239"}},{"v":55385.7283022582,"d":"$55,386"},{"v":53086.48409214897,"d":"$53,086"},{"v":-37148.48405565554,"d":"($37,148)"},{"v":114.50539313923751,"d":"$115"},{"v":57425.70866167053,"d":"$57,426"},{"v":-34382.98062648527,"d":"($34,383)"},{"v":-6633.492656202047,"d":"($6,633)"},{"v":5480.820448015299,"d":"$5,481"},{"v":44497.352234508406,"d":"$44,497"},{"v":48268.93975292922,"d":"$48,269"},{"v":35345.448484856315,"d":"$35,345"},{"$f":"SUM(BO13:BZ13)","v":{"v":259679.08292138655,"d":"$259,679"}},{"$f":"CB13","v":{"v":-5055.1247134358355,"d":"($5,055)"}},{"v":2190.406178540284,"d":"$2,190"},{"v":-4112.685856142854,"d":"($4,113)"},{"v":-19600.80086136598,"d":"($19,601)"},{"v":6662.350109609606,"d":"$6,662"},{"v":59267.06550777839,"d":"$59,267"},{"v":-22511.2559169972,"d":"($22,511)"},{"v":-28916.37039318779,"d":"($28,916)"},{"v":11045.060295193129,"d":"$11,045"},{"v":55091.679030414256,"d":"$55,092"},{"v":-31658.522230726823,"d":"($31,659)"},{"v":17393.105306895315,"d":"$17,393"},{"$f":"SUM(CB13:CM13)","v":{"v":39794.90645657449,"d":"$39,795"}},{"$f":"CO13","v":{"v":14150.564263191118,"d":"$14,151"}},{"v":-32142.911036852845,"d":"($32,143)"},{"v":47229.83090567274,"d":"$47,230"},{"v":-25637.57198418483,"d":"($25,638)"},{"v":-15901.51525836036,"d":"($15,902)"},{"v":17047.219829629626,"d":"$17,047"},{"v":7581.97127269533,"d":"$7,582"},{"v":-9248.67545964924,"d":"($9,249)"},{"v":30876.68241598688,"d":"$30,877"},{"v":-15036.777706406552,"d":"($15,037)"},{"v":-2497.4314106777265,"d":"($2,497)"},{"v":-50501.58830379033,"d":"($50,502)"},{"$f":"SUM(CO13:CZ13)","v":{"v":-34080.2024727462,"d":"($34,080)"}},{"$f":"DB13","v":{"v":19125.27316382408,"d":"$19,125"}},{"v":1779.4935734268327,"d":"$1,779"},{"v":10206.529848312292,"d":"$10,207"},{"v":-21804.417611582878,"d":"($21,804)"},{"v":-29151.529783572132,"d":"($29,152)"},{"v":29915.22657918746,"d":"$29,915"},{"v":54266.442130725336,"d":"$54,266"},{"v":1692.12288398782,"d":"$1,692"},{"v":-29578.26958024101,"d":"($29,578)"},{"v":-6537.554217388505,"d":"($6,538)"},{"v":-34286.04730625208,"d":"($34,286)"},{"v":901.1430093898069,"d":"$901"},{"$f":"SUM(DB13:DM13)","v":{"v":-3471.58731018298,"d":"($3,472)"}},{"$f":"DO13","v":{"v":-17227.72968796334,"d":"($17,228)"}},{"v":-1980.7109136377392,"d":"($1,981)"},{"v":48688.41262244146,"d":"$48,688"},{"v":23219.892368951812,"d":"$23,220"},{"v":16958.21621954948,"d":"$16,958"},{"v":34168.857475961406,"d":"$34,169"},{"v":-25272.549418638155,"d":"($25,273)"},{"v":4139.5934126991515,"d":"$4,140"},{"v":26663.88868985827,"d":"$26,664"},{"v":-17031.748825899285,"d":"($17,032)"},{"v":-607.5176028900723,"d":"($608)"},{"v":-29494.682253837796,"d":"($29,495)"},{"$f":"SUM(DO13:DZ13)","v":{"v":62223.92208659517,"d":"$62,224"}},{"$f":"EB13","v":{"v":-2098.9082508232077,"d":"($2,099)"}},{"v":37588.11468819673,"d":"$37,588"},{"v":-25375.563552905765,"d":"($25,376)"},{"v":5699.159640434842,"d":"$5,699"},{"v":3880.4505347352174,"d":"$3,880"},{"v":33808.98902580374,"d":"$33,809"},{"v":-45524.5713104364,"d":"($45,525)"},{"v":-32927.50242355345,"d":"($32,928)"},{"v":-18449.422666634866,"d":"($18,449)"},{"v":2553.949030594771,"d":"$2,554"},{"v":3966.0220006858876,"d":"$3,966"},{"v":-2533.042367332149,"d":"($2,533)"},{"$f":"SUM(EB13:EM13)","v":{"v":-39412.325651234656,"d":"($39,412)"}}]
[{"$f":"Labels!B78","v":"Output Shock"},{"$f":"B46","v":{"v":-2001.604158609501,"d":"($2,002)"}},{"v":-20033.266240187135,"d":"($20,033)"},{"v":10442.736834707895,"d":"$10,443"},{"v":15530.46775956978,"d":"$15,530"},{"v":-10961.38201621752,"d":"($10,961)"},{"v":-29341.604880561656,"d":"($29,342)"},{"v":58532.29832272793,"d":"$58,532"},{"v":-54452.86249894689,"d":"($54,453)"},{"v":-9192.959941770416,"d":"($9,193)"},{"v":3830.6269590658985,"d":"$3,831"},{"v":60975.79312693091,"d":"$60,976"},{"v":1425.9265531441938,"d":"$1,426"},{"$f":"SUM(B46:M46)","v":{"v":24754.169819853494,"d":"$24,754"}},{"$f":"O46","v":{"v":-11888.698173510153,"d":"($11,889)"}},{"v":-1960.128950762971,"d":"($1,960)"},{"v":9832.018358787987,"d":"$9,832"},{"v":-39806.19887955849,"d":"($39,806)"},{"v":-21816.84183685177,"d":"($21,817)"},{"v":44337.17243340576,"d":"$44,337"},{"v":29544.03101980557,"d":"$29,544"},{"v":-26705.695862848854,"d":"($26,706)"},{"v":2612.4011791779917,"d":"$2,612"},{"v":1970.8699946614895,"d":"$1,971"},{"v":8259.1686738329,"d":"$8,259"},{"v":-26857.100148134567,"d":"($26,857)"},{"$f":"SUM(O46:Z46)","v":{"v":-32479.002191995118,"d":"($32,479)"}},{"$f":"AB46","v":{"v":-44811.00281505258,"d":"($44,811)"}},{"v":17707.201984541392,"d":"$17,707"},{"v":34947.676791122765,"d":"$34,948"},{"v":-36558.18788644413,"d":"($36,558)"},{"v":-36370.28378533108,"d":"($36,370)"},{"v":-16841.53146064665,"d":"($16,842)"},{"v":31889.50769347672,"d":"$31,890"},{"v":-4734.046391382934,"d":"($4,734)"},{"v":18129.6589486115,"d":"$18,130"},{"v":33736.16111681515,"d":"$33,736"},{"v":25515.309253059768,"d":"$25,515"},{"v":-17368.884959057763,"d":"($17,369)"},{"$f":"SUM(AB46:AM46)","v":{"v":5241.578489712156,"d":"$5,242"}},{"$f":"AO46","v":{"v":-5438.772392402865,"d":"($5,439)"}},{"v":-14578.591065062566,"d":"($14,579)"},{"v":-30369.869825299127,"d":"($30,370)"},{"v":53081.65317281856,"d":"$53,082"},{"v":-23960.911065136712,"d":"($23,961)"},{"v":7876.370914158627,"d":"$7,876"},{"v":19574.13658660479,"d":"$19,574"},{"v":9869.688921735624,"d":"$9,870"},{"v":-41975.138377463925,"d":"($41,975)"},{"v":-14334.346574997433,"d":"($14,334)"},{"v":-9360.869349945611,"d":"($9,361)"},{"v":27370.980346843815,"d":"$27,371"},{"$f":"SUM(AO46:AZ46)","v":{"v":-22245.66870814683,"d":"($22,246)"}},{"$f":"BB46","v":{"v":-42647.65743535077,"d":"($42,648)"}},{"v":14233.825970996657,"d":"$14,234"},{"v":55624.23114274295,"d":"$55,624"},{"v":36715.454002292565,"d":"$36,715"},{"v":-10300.778320466417,"d":"($10,301)"},{"v":-45532.55908470482,"d":"($45,533)"},{"v":56141.1848424944,"d":"$56,141"},{"v":-36322.39043514293,"d":"($36,322)"},{"v":-2481.475695895875,"d":"($2,481)"},{"v":40452.93561013343,"d":"$40,453"},{"v":-37409.62477458278,"d":"($37,410)"},{"v":14340.463670266992,"d":"$14,340"},{"$f":"SUM(BB46:BM46)","v":{"v":42813.60949278339,"d":"$42,814"}},{"$f":"BO46","v":{"v":-42531.33338326946,"d":"($42,531)"}},{"v":1951.6746259371214,"d":"$1,952"},{"v":-30976.3925601282,"d":"($30,976)"},{"v":40471.566270986965,"d":"$40,472"},{"v":-19175.51489443966,"d":"($19,176)"},{"v":22791.11609498285,"d":"$22,791"},{"v":38535.9381146082,"d":"$38,536"},{"v":-31903.570201211725,"d":"($31,904)"},{"v":-857.4722221616491,"d":"($857)"},{"v":-57752.253265334344,"d":"($57,752)"},{"v":20363.22239933309,"d":"$20,363"},{"v":3519.0746101591994,"d":"$3,519"},{"$f":"SUM(BO46:BZ46)","v":{"v":-55563.94441053762,"d":"($55,564)"}},{"$f":"CB46","v":{"v":32899.15083356009,"d":"$32,899"}},{"v":-13331.447650185048,"d":"($13,331)"},{"v":-54147.561454255236,"d":"($54,148)"},{"v":-32224.296232630346,"d":"($32,224)"},{"v":-15565.719530179966,"d":"($15,566)"},{"v":40689.29125436446,"d":"$40,689"},{"v":53209.64955986583,"d":"$53,210"},{"v":22010.64174437161,"d":"$22,011"},{"v":35985.96049091142,"d":"$35,986"},{"v":-4963.116085882423,"d":"($4,963)"},{"v":-24040.21407470559,"d":"($24,040)"},{"v":-15914.162412049487,"d":"($15,914)"},{"$f":"SUM(CB46:CM46)","v":{"v":24608.176443185315,"d":"$24,608"}},{"$f":"CO46","v":{"v":-24710.653364241098,"d":"($24,711)"}},{"v":-17355.267166287085,"d":"($17,355)"},{"v":34534.180147028484,"d":"$34,534"},{"v":8929.288305011652,"d":"$8,929"},{"v":-16975.781876965142,"d":"($16,976)"},{"v":-43267.231670890396,"d":"($43,267)"},{"v":7150.490317485815,"d":"$7,150"},{"v":-22575.691674719907,"d":"($22,576)"},{"v":3770.6972222847094,"d":"$3,771"},{"v":-43405.18405448606,"d":"($43,405)"},{"v":-30.476612947275623,"d":"($30)"},{"v":18041.213927459536,"d":"$18,041"},{"$f":"SUM(CO46:CZ46)","v":{"v":-95894.41650126677,"d":"($95,894)"}},{"$f":"DB46","v":{"v":7340.404405065998,"d":"$7,340"}},{"v":-16654.82402334527,"d":"($16,655)"},{"v":-39537.73717007921,"d":"($39,538)"},{"v":17499.895244472387,"d":"$17,500"},{"v":51219.90819860859,"d":"$51,220"},{"v":-6157.6040411907325,"d":"($6,158)"},{"v":-1445.9314984781113,"d":"($1,446)"},{"v":2919.691124463843,"d":"$2,920"},{"v":-21495.673641017656,"d":"($21,496)"},{"v":-433.6098062747716,"d":"($434)"},{"v":-58661.3257553126,"d":"($58,661)"},{"v":5638.880893131145,"d":"$5,639"},{"$f":"SUM(DB46:DM46)","v":{"v":-59767.92606995639,"d":"($59,768)"}},{"$f":"DO46","v":{"v":57228.26180158707,"d":"$57,228"}},{"v":-14557.66809370557,"d":"($14,558)"},{"v":-46467.945945452964,"d":"($46,468)"},{"v":-23966.811708719644,"d":"($23,967)"},{"v":-33569.39777130196,"d":"($33,569)"},{"v":20049.074713196725,"d":"$20,049"},{"v":8771.442181517654,"d":"$8,771"},{"v":-3549.2412174906513,"d":"($3,549)"},{"v":14929.579870118103,"d":"$14,930"},{"v":-14313.460184340871,"d":"($14,313)"},{"v":-48931.06909663915,"d":"($48,931)"},{"v":-10191.14560430092,"d":"($10,191)"},{"$f":"SUM(DO46:DZ46)","v":{"v":-94568.38105553217,"d":"($94,568)"}},{"$f":"EB46","v":{"v":-387.37870356394404,"d":"($387)"}},{"v":52450.880757913495,"d":"$52,451"},{"v":-18890.28558775562,"d":"($18,890)"},{"v":-43708.84147246844,"d":"($43,709)"},{"v":-5725.003258830188,"d":"($5,725)"},{"v":-11767.129581622015,"d":"($11,767)"},{"v":17341.125605931753,"d":"$17,341"},{"v":-55407.08489937441,"d":"($55,407)"},{"v":33175.050165499546,"d":"$33,175"},{"v":-27870.8737917546,"d":"($27,871)"},{"v":1243.2455038072285,"d":"$1,243"},{"v":37869.008912907106,"d":"$37,869"},{"$f":"SUM(EB46:EM46)","v":{"v":-21677.28634931009,"d":"($21,677)"}}]

{"sheet":"Trial 6","index":9,"n_rows":61,"n_cols":144,"rows_kept":61,"merged":[[0,0,0,2],[1,0,1,2],[2,0,2,2],[3,0,3,2],[4,0,4,2]]}
[{"$f":"\"Equilibrium Economy with Shocks\"","v":"Equilibrium Economy with Shocks"}]
[{"$f":"\"Model: \"&Inputs!B8","v":"Model: Test Model"}]
[{"$f":"\"$ millions\"","v":"$ millions"}]
[{"$f":"\"Trial 6\"","v":"Trial 6"}]
[{"$f":"\"\"","v":""}]
[{"$f":"\"Demand\"","v":"Demand"}]
[{"$f":"\" \"","v":" "}]
[null,{"$f":"ZZZ__FnCalls!F7","v":"Jan 2010"},{"$f":"ZZZ__FnCalls!F8","v":"Feb 2010"},{"$f":"ZZZ__FnCalls!F9","v":"Mar 2010"},{"$f":"ZZZ__FnCalls!F10","v":"Apr 2010"},{"$f":"ZZZ__FnCalls!F11","v":"May 2010"},{"$f":"ZZZ__FnCalls!F12","v":"Jun 2010"},{"$f":"ZZZ__FnCalls!F13","v":"Jul 2010"},{"$f":"ZZZ__FnCalls!F14","v":"Aug 2010"},{"$f":"ZZZ__FnCalls!F15","v":"Sep 2010"},{"$f":"ZZZ__FnCalls!F16","v":"Oct 2010"},{"$f":"ZZZ__FnCalls!F17","v":"Nov 2010"},{"$f":"ZZZ__FnCalls!F18","v":"Dec 2010"},{"$f":"ZZZ__FnCalls!H7","v":"2010"},{"$f":"ZZZ__FnCalls!F19","v":"Jan 2011"},{"$f":"ZZZ__FnCalls!F20","v":"Feb 2011"},{"$f":"ZZZ__FnCalls!F21","v":"Mar 2011"},{"$f":"ZZZ__FnCalls!F22","v":"Apr 2011"},{"$f":"ZZZ__FnCalls!F23","v":"May 2011"},{"$f":"ZZZ__FnCalls!F24","v":"Jun 2011"},{"$f":"ZZZ__FnCalls!F25","v":"Jul 2011"},{"$f":"ZZZ__FnCalls!F26","v":"Aug 2011"},{"$f":"ZZZ__FnCalls!F27","v":"Sep 2011"},{"$f":"ZZZ__FnCalls!F28","v":"Oct 2011"},{"$f":"ZZZ__FnCalls!F29","v":"Nov 2011"},{"$f":"ZZZ__FnCalls!F30","v":"Dec 2011"},{"$f":"ZZZ__FnCalls!H19","v":"2011"},{"$f":"ZZZ__FnCalls!F31","v":"Jan 2012"},{"$f":"ZZZ__FnCalls!F32","v":"Feb 2012"},{"$f":"ZZZ__FnCalls!F33","v":"Mar 2012"},{"$f":"ZZZ__FnCalls!F34","v":"Apr 2012"},{"$f":"ZZZ__FnCalls!F35","v":"May 2012"},{"$f":"ZZZ__FnCalls!F36","v":"Jun 2012"},{"$f":"ZZZ__FnCalls!F37","v":"Jul 2012"},{"$f":"ZZZ__FnCalls!F38","v":"Aug 2012"},{"$f":"ZZZ__FnCalls!F39","v":"Sep 2012"},{"$f":"ZZZ__FnCalls!F40","v":"Oct 2012"},{"$f":"ZZZ__FnCalls!F41","v":"Nov 2012"},{"$f":"ZZZ__FnCalls!F42","v":"Dec 2012"},{"$f":"ZZZ__FnCalls!H31","v":"2012"},{"$f":"ZZZ__FnCalls!F43","v":"Jan 2013"},{"$f":"ZZZ__FnCalls!F44","v":"Feb 2013"},{"$f":"ZZZ__FnCalls!F45","v":"Mar 2013"},{"$f":"ZZZ__FnCalls!F46","v":"Apr 2013"},{"$f":"ZZZ__FnCalls!F47","v":"May 2013"},{"$f":"ZZZ__FnCalls!F48","v":"Jun 2013"},{"$f":"ZZZ__FnCalls!F49","v":"Jul 2013"},{"$f":"ZZZ__FnCalls!F50","v":"Aug 2013"},{"$f":"ZZZ__FnCalls!F51","v":"Sep 2013"},{"$f":"ZZZ__FnCalls!F52","v":"Oct 2013"},{"$f":"ZZZ__FnCalls!F53","v":"Nov 2013"},{"$f":"ZZZ__FnCalls!F54","v":"Dec 2013"},{"$f":"ZZZ__FnCalls!H43","v":"2013"},{"$f":"ZZZ__FnCalls!F55","v":"Jan 2014"},{"$f":"ZZZ__FnCalls!F56","v":"Feb 2014"},{"$f":"ZZZ__FnCalls!F57","v":"Mar 2014"},{"$f":"ZZZ__FnCalls!F58","v":"Apr 2014"},{"$f":"ZZZ__FnCalls!F59","v":"May 2014"},{"$f":"ZZZ__FnCalls!F60","v":"Jun 2014"},{"$f":"ZZZ__FnCalls!F61","v":"Jul 2014"},{"$f":"ZZZ__FnCalls!F62","v":"Aug 2014"},{"$f":"ZZZ__FnCalls!F63","v":"Sep 2014"},{"$f":"ZZZ__FnCalls!F64","v":"Oct 2014"},{"$f":"ZZZ__FnCalls!F65","v":"Nov 2014"},{"$f":"ZZZ__FnCalls!F66","v":"Dec 2014"},{"$f":"ZZZ__FnCalls!H55","v":"2014"},{"$f":"ZZZ__FnCalls!F67","v":"Jan 2015"},{"$f":"ZZZ__FnCalls!F68","v":"Feb 2015"},{"$f":"ZZZ__FnCalls!F69","v":"Mar 2015"},{"$f":"ZZZ__FnCalls!F70","v":"Apr 2015"},{"$f":"ZZZ__FnCalls!F71","v":"May 2015"},{"$f":"ZZZ__FnCalls!F72","v":"Jun 2015"},{"$f":"ZZZ__FnCalls!F73","v":"Jul 2015"},{"$f":"ZZZ__FnCalls!F74","v":"Aug 2015"},{"$f":"ZZZ__FnCalls!F75","v":"Sep 2015"},{"$f":"ZZZ__FnCalls!F76","v":"Oct 2015"},{"$f":"ZZZ__FnCalls!F77","v":"Nov 2015"},{"$f":"ZZZ__FnCalls!F78","v":"Dec 2015"},{"$f":"ZZZ__FnCalls!H67","v":"2015"},{"$f":"ZZZ__FnCalls!F79","v":"Jan 2016"},{"$f":"ZZZ__FnCalls!F80","v":"Feb 2016"},{"$f":"ZZZ__FnCalls!F81","v":"Mar 2016"},{"$f":"ZZZ__FnCalls!F82","v":"Apr 2016"},{"$f":"ZZZ__FnCalls!F83","v":"May 2016"},{"$f":"ZZZ__FnCalls!F84","v":"Jun 2016"},{"$f":"ZZZ__FnCalls!F85","v":"Jul 2016"},{"$f":"ZZZ__FnCalls!F86","v":"Aug 2016"},{"$f":"ZZZ__FnCalls!F87","v":"Sep 2016"},{"$f":"ZZZ__FnCalls!F88","v":"Oct 2016"},{"$f":"ZZZ__FnCalls!F89","v":"Nov 2016"},{"$f":"ZZZ__FnCalls!F90","v":"Dec 2016"},{"$f":"ZZZ__FnCalls!H79","v":"2016"},{"$f":"ZZZ__FnCalls!F91","v":"Jan 2017"},{"$f":"ZZZ__FnCalls!F92","v":"Feb 2017"},{"$f":"ZZZ__FnCalls!F93","v":"Mar 2017"},{"$f":"ZZZ__FnCalls!F94","v":"Apr 2017"},{"$f":"ZZZ__FnCalls!F95","v":"May 2017"},{"$f":"ZZZ__FnCalls!F96","v":"Jun 2017"},{"$f":"ZZZ__FnCalls!F97","v":"Jul 2017"},{"$f":"ZZZ__FnCalls!F98","v":"Aug 2017"},{"$f":"ZZZ__FnCalls!F99","v":"Sep 2017"},{"$f":"ZZZ__FnCalls!F100","v":"Oct 2017"},{"$f":"ZZZ__FnCalls!F101","v":"Nov 2017"},{"$f":"ZZZ__FnCalls!F102","v":"Dec 2017"},{"$f":"ZZZ__FnCalls!H91","v":"2017"},{"$f":"ZZZ__FnCalls!F103","v":"Jan 2018"},{"$f":"ZZZ__FnCalls!F104","v":"Feb 2018"},{"$f":"ZZZ__FnCalls!F105","v":"Mar 2018"},{"$f":"ZZZ__FnCalls!F106","v":"Apr 2018"},{"$f":"ZZZ__FnCalls!F107","v":"May 2018"},{"$f":"ZZZ__FnCalls!F108","v":"Jun 2018"},{"$f":"ZZZ__FnCalls!F109","v":"Jul 2018"},{"$f":"ZZZ__FnCalls!F110","v":"Aug 2018"},{"$f":"ZZZ__FnCalls!F111","v":"Sep 2018"},{"$f":"ZZZ__FnCalls!F112","v":"Oct 2018"},{"$f":"ZZZ__FnCalls!F113","v":"Nov 2018"},{"$f":"ZZZ__FnCalls!F114","v":"Dec 2018"},{"$f":"ZZZ__FnCalls!H103","v":"2018"},{"$f":"ZZZ__FnCalls!F115","v":"Jan 2019"},{"$f":"ZZZ__FnCalls!F116","v":"Feb 2019"},{"$f":"ZZZ__FnCalls!F117","v":"Mar 2019"},{"$f":"ZZZ__FnCalls!F118","v":"Apr 2019"},{"$f":"ZZZ__FnCalls!F119","v":"May 2019"},{"$f":"ZZZ__FnCalls!F120","v":"Jun 2019"},{"$f":"ZZZ__FnCalls!F121","v":"Jul 2019"},{"$f":"ZZZ__FnCalls!F122","v":"Aug 2019"},{"$f":"ZZZ__FnCalls!F123","v":"Sep 2019"},{"$f":"ZZZ__FnCalls!F124","v":"Oct 2019"},{"$f":"ZZZ__FnCalls!F125","v":"Nov 2019"},{"$f":"ZZZ__FnCalls!F126","v":"Dec 2019"},{"$f":"ZZZ__FnCalls!H115","v":"2019"},{"$f":"ZZZ__FnCalls!F127","v":"Jan 2020"},{"$f":"ZZZ__FnCalls!F128","v":"Feb 2020"},{"$f":"ZZZ__FnCalls!F129","v":"Mar 2020"},{"$f":"ZZZ__FnCalls!F130","v":"Apr 2020"},{"$f":"ZZZ__FnCalls!F131","v":"May 2020"},{"$f":"ZZZ__FnCalls!F132","v":"Jun 2020"},{"$f":"ZZZ__FnCalls!F133","v":"Jul 2020"},{"$f":"ZZZ__FnCalls!F134","v":"Aug 2020"},{"$f":"ZZZ__FnCalls!F135","v":"Sep 2020"},{"$f":"ZZZ__FnCalls!F136","v":"Oct 2020"},{"$f":"ZZZ__FnCalls!F137","v":"Nov 2020"},{"$f":"ZZZ__FnCalls!F138","v":"Dec 2020"},{"$f":"ZZZ__FnCalls!H127","v":"2020"}]
[{"$f":"Labels!B28","v":"Aggregate Demand"},{"$f":"B36+0+B13","v":{"v":970485.9425421606,"d":"$970,486"}},{"v":902710.6885535124,"d":"$902,711"},{"v":993753.6846008393,"d":"$993,754"},{"v":1010168.4255580372,"d":"$1,010,168"},{"v":977792.0330557169,"d":"$977,792"},{"v":935994.1363860844,"d":"$935,994"},{"v":954717.0576405397,"d":"$954,717"},{"v":953019.6167359789,"d":"$953,020"},{"v":991511.6779656134,"d":"$991,512"},{"v":957139.0150926289,"d":"$957,139"},{"v":1008978.2384904093,"d":"$1,008,978"},{"v":955033.2379104153,"d":"$955,033"},{"$f":"SUM(B9:M9)","v":{"v":11611303.754531937,"d":"$11,611,304"}},{"$f":"O36+0+O13","v":{"v":998792.9264161845,"d":"$998,793"}},{"v":946489.6710636457,"d":"$946,490"},{"v":998452.8236753045,"d":"$998,453"},{"v":984068.1062772577,"d":"$984,068"},{"v":899230.3628316254,"d":"$899,230"},{"v":944344.8462188364,"d":"$944,345"},{"v":973904.9648328192,"d":"$973,905"},{"v":929420.3849427953,"d":"$929,420"},{"v":936268.881653643,"d":"$936,269"},{"v":963879.6494644101,"d":"$963,880"},{"v":982173.4013657303,"d":"$982,173"},{"v":919021.1414721637,"d":"$919,021"},{"$f":"SUM(O9:Z9)","v":{"v":11476047.160214417,"d":"$11,476,047"}},{"$f":"AB36+0+AB13","v":{"v":958653.7099112478,"d":"$958,654"}},{"v":969113.4442337197,"d":"$969,113"},{"v":987041.5291811716,"d":"$987,042"},{"v":961500.7437614652,"d":"$961,501"},{"v":986264.2413135347,"d":"$986,264"},{"v":958875.72430168,"d":"$958,876"},{"v":976116.7758425665,"d":"$976,117"},{"v":942163.6056965688,"d":"$942,164"},{"v":926025.1745346185,"d":"$926,025"},{"v":951875.4387020738,"d":"$951,875"},{"v":978083.3960151986,"d":"$978,083"},{"v":995632.7732718065,"d":"$995,633"},{"$f":"SUM(AB9:AM9)","v":{"v":11591346.556765651,"d":"$11,591,347"}},{"$f":"AO36+0+AO13","v":{"v":957311.3283582043,"d":"$957,311"}},{"v":937612.9012631301,"d":"$937,613"},{"v":926254.4644005488,"d":"$926,254"},{"v":950501.3073407795,"d":"$950,501"},{"v":934337.487800145,"d":"$934,337"},{"v":921368.482867822,"d":"$921,368"},{"v":888057.683610995,"d":"$888,058"},{"v":951304.6838467094,"d":"$951,305"},{"v":924301.0399220696,"d":"$924,301"},{"v":900293.5375794495,"d":"$900,294"},{"v":956083.185110619,"d":"$956,083"},{"v":984168.1109552782,"d":"$984,168"},{"$f":"SUM(AO9:AZ9)","v":{"v":11231594.21305575,"d":"$11,231,594"}},{"$f":"BB36+0+BB13","v":{"v":885002.5263810436,"d":"$885,003"}},{"v":908281.7840898684,"d":"$908,282"},{"v":918745.9817571454,"d":"$918,746"},{"v":911304.1551564054,"d":"$911,304"},{"v":935049.1256384067,"d":"$935,049"},{"v":949232.0843146327,"d":"$949,232"},{"v":965767.7258554581,"d":"$965,768"},{"v":914298.3820568916,"d":"$914,298"},{"v":984304.42741934,"d":"$984,304"},{"v":946828.7822603928,"d":"$946,829"},{"v":885871.8178992755,"d":"$885,872"},{"v":946469.2919891153,"d":"$946,469"},{"$f":"SUM(BB9:BM9)","v":{"v":11151156.084817978,"d":"$11,151,156"}},{"$f":"BO36+0+BO13","v":{"v":877687.9287608415,"d":"$877,688"}},{"v":921458.6244328492,"d":"$921,459"},{"v":915297.0607373328,"d":"$915,297"},{"v":902405.0016748783,"d":"$902,405"},{"v":873911.1115291222,"d":"$873,911"},{"v":964238.1479616497,"d":"$964,238"},{"v":932331.5737001562,"d":"$932,332"},{"v":946345.1575433341,"d":"$946,345"},{"v":956418.9538605384,"d":"$956,419"},{"v":901488.2647061816,"d":"$901,488"},{"v":978811.4277364552,"d":"$978,811"},{"v":957105.8034803661,"d":"$957,106"},{"$f":"SUM(BO9:BZ9)","v":{"v":11127499.056123706,"d":"$11,127,499"}},{"$f":"CB36+0+CB13","v":{"v":931230.0281401306,"d":"$931,230"}},{"v":922636.6630302087,"d":"$922,637"},{"v":978070.5767047732,"d":"$978,071"},{"v":917147.3397076443,"d":"$917,147"},{"v":912365.5064692901,"d":"$912,366"},{"v":953205.2620800581,"d":"$953,205"},{"v":951061.8486239695,"d":"$951,062"},{"v":964296.3791358843,"d":"$964,296"},{"v":927978.5108516626,"d":"$927,979"},{"v":940377.5439050978,"d":"$940,378"},{"v":961945.8505291634,"d":"$961,946"},{"v":952728.1631662728,"d":"$952,728"},{"$f":"SUM(CB9:CM9)","v":{"v":11313043.672344157,"d":"$11,313,044"}},{"$f":"CO36+0+CO13","v":{"v":932527.4177022611,"d":"$932,527"}},{"v":960607.6963640375,"d":"$960,608"},{"v":925472.3383541022,"d":"$925,472"},{"v":925989.2418942206,"d":"$925,989"},{"v":896383.3396942505,"d":"$896,383"},{"v":900072.4799092698,"d":"$900,072"},{"v":972872.4473620524,"d":"$972,872"},{"v":888212.9488256725,"d":"$888,213"},{"v":969022.2196569552,"d":"$969,022"},{"v":930618.0817245467,"d":"$930,618"},{"v":893499.5447809834,"d":"$893,500"},{"v":936312.8902461516,"d":"$936,313"},{"$f":"SUM(CO9:CZ9)","v":{"v":11131590.646514501,"d":"$11,131,591"}},{"$f":"DB36+0+DB13","v":{"v":939537.0953788854,"d":"$939,537"}},{"v":868226.0554105022,"d":"$868,226"},{"v":900459.0328157612,"d":"$900,459"},{"v":917751.6238307108,"d":"$917,752"},{"v":872876.1417107031,"d":"$872,876"},{"v":908437.3524772688,"d":"$908,437"},{"v":878364.7256735303,"d":"$878,365"},{"v":875195.0185962507,"d":"$875,195"},{"v":863881.3488020931,"d":"$863,881"},{"v":919779.914336522,"d":"$919,780"},{"v":887243.112179648,"d":"$887,243"},{"v":901929.4963593206,"d":"$901,929"},{"$f":"SUM(DB9:DM9)","v":{"v":10733680.917571194,"d":"$10,733,681"}},{"$f":"DO36+0+DO13","v":{"v":948166.8196875368,"d":"$948,167"}},{"v":889765.2702949918,"d":"$889,765"},{"v":892463.5871364118,"d":"$892,464"},{"v":911541.8128589289,"d":"$911,542"},{"v":905722.5692710272,"d":"$905,723"},{"v":930333.3160940348,"d":"$930,333"},{"v":944344.7665408474,"d":"$944,345"},{"v":949600.2224007092,"d":"$949,600"},{"v":916515.2503617348,"d":"$916,515"},{"v":934704.330358938,"d":"$934,704"},{"v":902323.5693278019,"d":"$902,324"},{"v":905829.7415235834,"d":"$905,830"},{"$f":"SUM(DO9:DZ9)","v":{"v":11031311.255856548,"d":"$11,031,311"}},{"$f":"EB36+0+EB13","v":{"v":942309.4931287376,"d":"$942,309"}},{"v":909168.8878407129,"d":"$909,169"},{"v":922840.055288791,"d":"$922,840"},{"v":931678.7061925979,"d":"$931,679"},{"v":905639.8846881945,"d":"$905,640"},{"v":919369.4085751083,"d":"$919,369"},{"v":904555.4821409739,"d":"$904,555"},{"v":917728.507836129,"d":"$917,729"},{"v":944450.582841971,"d":"$944,451"},{"v":957168.0221631543,"d":"$957,168"},{"v":867435.1260124728,"d":"$867,435"},{"v":885373.5853859566,"d":"$885,374"},{"$f":"SUM(EB9:EM9)","v":{"v":11007717.742094798,"d":"$11,007,718"}}]
[{"$f":"Labels!B31","v":"Long Expected Demand"},{"$f":"'(Other Computations)'!B8+'(Other Computations)'!B61*0/Inputs!B13/12","v":{"v":1166666.6666666667,"d":"$1,166,667"}},{"$f":"B10+'(Other Computations)'!B61*(B9-B10)/Inputs!B13/12","v":{"v":1166212.5446200822,"d":"$1,166,213"}},{"$f":"C10+'(Other Computations)'!B61*(C9-C10)/Inputs!B13/12","v":{"v":1165602.5866199282,"d":"$1,165,603"}},{"$f":"D10+'(Other Computations)'!B61*(D9-D10)/Inputs!B13/12","v":{"v":1165204.7882356248,"d":"$1,165,205"}},{"$f":"E10+'(Other Computations)'!B61*(E9-E10)/Inputs!B13/12","v":{"v":1164845.9077664637,"d":"$1,164,846"}},{"$f":"F10+'(Other Computations)'!B61*(F9-F10)/Inputs!B13/12","v":{"v":1164412.9126861147,"d":"$1,164,413"}},{"$f":"G10+'(Other Computations)'!B61*(G9-G10)/Inputs!B13/12","v":{"v":1163884.1655187535,"d":"$1,163,884"}},{"$f":"H10+'(Other Computations)'!B61*(H9-H10)/Inputs!B13/12","v":{"v":1163399.982398665,"d":"$1,163,400"}},{"$f":"I10+'(Other Computations)'!B61*(I9-I10)/Inputs!B13/12","v":{"v":1162912.990811483,"d":"$1,162,913"}},{"$f":"J10+'(Other Computations)'!B61*(J9-J10)/Inputs!B13/12","v":{"v":1162516.2285132287,"d":"$1,162,516"}},{"$f":"K10+'(Other Computations)'!B61*(K9-K10)/Inputs!B13/12","v":{"v":1162040.8182969773,"d":"$1,162,041"}},{"$f":"L10+'(Other Computations)'!B61*(L9-L10)/Inputs!B13/12","v":{"v":1161686.5067696474,"d":"$1,161,687"}},{"$f":"SUM(B10:M10)","v":{"v":13969386.098903636,"d":"$13,969,386"}},{"$f":"M10+'(Other Computations)'!B61*(M9-M10)/Inputs!B13/12","v":{"v":1161208.1427213622,"d":"$1,161,208"}},{"$f":"O10+'(Other Computations)'!B61*(O9-O10)/Inputs!B13/12","v":{"v":1160832.1815725076,"d":"$1,160,832"}},{"$f":"P10+'(Other Computations)'!B61*(P9-P10)/Inputs!B13/12","v":{"v":1160336.0183537372,"d":"$1,160,336"}},{"$f":"Q10+'(Other Computations)'!B61*(Q9-Q10)/Inputs!B13/12","v":{"v":1159961.288736426,"d":"$1,159,961"}},{"$f":"R10+'(Other Computations)'!B61*(R9-R10)/Inputs!B13/12","v":{"v":1159554.1285918446,"d":"$1,159,554"}},{"$f":"S10+'(Other Computations)'!B61*(S9-S10)/Inputs!B13/12","v":{"v":1158951.5272822145,"d":"$1,158,952"}},{"$f":"T10+'(Other Computations)'!B61*(T9-T10)/Inputs!B13/12","v":{"v":1158454.7525575308,"d":"$1,158,455"}},{"$f":"U10+'(Other Computations)'!B61*(U9-U10)/Inputs!B13/12","v":{"v":1158027.5539748347,"d":"$1,158,028"}},{"$f":"V10+'(Other Computations)'!B61*(V9-V10)/Inputs!B13/12","v":{"v":1157498.3707131865,"d":"$1,157,498"}},{"$f":"W10+'(Other Computations)'!B61*(W9-W10)/Inputs!B13/12","v":{"v":1156986.2654144375,"d":"$1,156,986"}},{"$f":"X10+'(Other Computations)'!B61*(X9-X10)/Inputs!B13/12","v":{"v":1156539.2593589977,"d":"$1,156,539"}},{"$f":"Y10+'(Other Computations)'!B61*(Y9-Y10)/Inputs!B13/12","v":{"v":1156135.634687717,"d":"$1,156,136"}},{"$f":"SUM(O10:Z10)","v":{"v":13904485.123964798,"d":"$13,904,485"}},{"$f":"Z10+'(Other Computations)'!B61*(Z9-Z10)/Inputs!B13/12","v":{"v":1155586.7585460143,"d":"$1,155,587"}},{"$f":"AB10+'(Other Computations)'!B61*(AB9-AB10)/Inputs!B13/12","v":{"v":1155130.8950075079,"d":"$1,155,131"}},{"$f":"AC10+'(Other Computations)'!B61*(AC9-AC10)/Inputs!B13/12","v":{"v":1154700.2990566427,"d":"$1,154,700"}},{"$f":"AD10+'(Other Computations)'!B61*(AD9-AD10)/Inputs!B13/12","v":{"v":1154312.2000523014,"d":"$1,154,312"}},{"$f":"AE10+'(Other Computations)'!B61*(AE9-AE10)/Inputs!B13/12","v":{"v":1153865.8772368133,"d":"$1,153,866"}},{"$f":"AF10+'(Other Computations)'!B61*(AF9-AF10)/Inputs!B13/12","v":{"v":1153477.9104869908,"d":"$1,153,478"}},{"$f":"AG10+'(Other Computations)'!B61*(AG9-AG10)/Inputs!B13/12","v":{"v":1153027.4424634138,"d":"$1,153,027"}},{"$f":"AH10+'(Other Computations)'!B61*(AH9-AH10)/Inputs!B13/12","v":{"v":1152617.927031421,"d":"$1,152,618"}},{"$f":"AI10+'(Other Computations)'!B61*(AI9-AI10)/Inputs!B13/12","v":{"v":1152130.7642505534,"d":"$1,152,131"}},{"$f":"AJ10+'(Other Computations)'!B61*(AJ9-AJ10)/Inputs!B13/12","v":{"v":1151607.3716817666,"d":"$1,151,607"}},{"$f":"AK10+'(Other Computations)'!B61*(AK9-AK10)/Inputs!B13/12","v":{"v":1151145.0292443135,"d":"$1,151,145"}},{"$f":"AL10+'(Other Computations)'!B61*(AL9-AL10)/Inputs!B13/12","v":{"v":1150744.4236118386,"d":"$1,150,744"}},{"$f":"SUM(AB10:AM10)","v":{"v":13838346.898669578,"d":"$13,838,347"}},{"$f":"AM10+'(Other Computations)'!B61*(AM9-AM10)/Inputs!B13/12","v":{"v":1150385.368865681,"d":"$1,150,385"}},{"$f":"AO10+'(Other Computations)'!B61*(AO9-AO10)/Inputs!B13/12","v":{"v":1149938.4382163582,"d":"$1,149,938"}},{"$f":"AP10+'(Other Computations)'!B61*(AP9-AP10)/Inputs!B13/12","v":{"v":1149446.9439178554,"d":"$1,149,447"}},{"$f":"AQ10+'(Other Computations)'!B61*(AQ9-AQ10)/Inputs!B13/12","v":{"v":1148930.2946597135,"d":"$1,148,930"}},{"$f":"AR10+'(Other Computations)'!B61*(AR9-AR10)/Inputs!B13/12","v":{"v":1148470.9683001789,"d":"$1,148,471"}},{"$f":"AS10+'(Other Computations)'!B61*(AS9-AS10)/Inputs!B13/12","v":{"v":1147975.2889471694,"d":"$1,147,975"}},{"$f":"AT10+'(Other Computations)'!B61*(AT9-AT10)/Inputs!B13/12","v":{"v":1147450.736155319,"d":"$1,147,451"}},{"$f":"AU10+'(Other Computations)'!B61*(AU9-AU10)/Inputs!B13/12","v":{"v":1146850.2892744294,"d":"$1,146,850"}},{"$f":"AV10+'(Other Computations)'!B61*(AV9-AV10)/Inputs!B13/12","v":{"v":1146397.6374100135,"d":"$1,146,398"}},{"$f":"AW10+'(Other Computations)'!B61*(AW9-AW10)/Inputs!B13/12","v":{"v":1145883.5249158284,"d":"$1,145,884"}},{"$f":"AX10+'(Other Computations)'!B61*(AX9-AX10)/Inputs!B13/12","v":{"v":1145315.0295747719,"d":"$1,145,315"}},{"$f":"AY10+'(Other Computations)'!B61*(AY9-AY10)/Inputs!B13/12","v":{"v":1144876.9928977715,"d":"$1,144,877"}},{"$f":"SUM(AO10:AZ10)","v":{"v":13771921.513135089,"d":"$13,771,922"}},{"$f":"AZ10+'(Other Computations)'!B61*(AZ9-AZ10)/Inputs!B13/12","v":{"v":1144504.9815969786,"d":"$1,144,505"}},{"$f":"BB10+'(Other Computations)'!B61*(BB9-BB10)/Inputs!B13/12","v":{"v":1143904.281469164,"d":"$1,143,904"}},{"$f":"BC10+'(Other Computations)'!B61*(BC9-BC10)/Inputs!B13/12","v":{"v":1143358.8590215268,"d":"$1,143,359"}},{"$f":"BD10+'(Other Computations)'!B61*(BD9-BD10)/Inputs!B13/12","v":{"v":1142838.921805637,"d":"$1,142,839"}},{"$f":"BE10+'(Other Computations)'!B61*(BE9-BE10)/Inputs!B13/12","v":{"v":1142302.9616976527,"d":"$1,142,303"}},{"$f":"BF10+'(Other Computations)'!B61*(BF9-BF10)/Inputs!B13/12","v":{"v":1141823.2074475156,"d":"$1,141,823"}},{"$f":"BG10+'(Other Computations)'!B61*(BG9-BG10)/Inputs!B13/12","v":{"v":1141377.3946624857,"d":"$1,141,377"}},{"$f":"BH10+'(Other Computations)'!B61*(BH9-BH10)/Inputs!B13/12","v":{"v":1140970.8907995066,"d":"$1,140,971"}},{"$f":"BI10+'(Other Computations)'!B61*(BI9-BI10)/Inputs!B13/12","v":{"v":1140446.185918158,"d":"$1,140,446"}},{"$f":"BJ10+'(Other Computations)'!B61*(BJ9-BJ10)/Inputs!B13/12","v":{"v":1140084.7466623737,"d":"$1,140,085"}},{"$f":"BK10+'(Other Computations)'!B61*(BK9-BK10)/Inputs!B13/12","v":{"v":1139637.3948929247,"d":"$1,139,637"}},{"$f":"BL10+'(Other Computations)'!B61*(BL9-BL10)/Inputs!B13/12","v":{"v":1139049.9745758097,"d":"$1,139,050"}},{"$f":"SUM(BB10:BM10)","v":{"v":13700299.800549733,"d":"$13,700,300"}},{"$f":"BM10+'(Other Computations)'!B61*(BM9-BM10)/Inputs!B13/12","v":{"v":1138604.1859587107,"d":"$1,138,604"}},{"$f":"BO10+'(Other Computations)'!B61*(BO9-BO10)/Inputs!B13/12","v":{"v":1138000.213141123,"d":"$1,138,000"}},{"$f":"BP10+'(Other Computations)'!B61*(BP9-BP10)/Inputs!B13/12","v":{"v":1137498.9594635577,"d":"$1,137,499"}},{"$f":"BQ10+'(Other Computations)'!B61*(BQ9-BQ10)/Inputs!B13/12","v":{"v":1136984.6032165063,"d":"$1,136,985"}},{"$f":"BR10+'(Other Computations)'!B61*(BR9-BR10)/Inputs!B13/12","v":{"v":1136441.5948796044,"d":"$1,136,442"}},{"$f":"BS10+'(Other Computations)'!B61*(BS9-BS10)/Inputs!B13/12","v":{"v":1135833.8854274042,"d":"$1,135,834"}},{"$f":"BT10+'(Other Computations)'!B61*(BT9-BT10)/Inputs!B13/12","v":{"v":1135436.6730721593,"d":"$1,135,437"}},{"$f":"BU10+'(Other Computations)'!B61*(BU9-BU10)/Inputs!B13/12","v":{"v":1134966.5223791685,"d":"$1,134,967"}},{"$f":"BV10+'(Other Computations)'!B61*(BV9-BV10)/Inputs!B13/12","v":{"v":1134529.8988494559,"d":"$1,134,530"}},{"$f":"BW10+'(Other Computations)'!B61*(BW9-BW10)/Inputs!B13/12","v":{"v":1134117.604995315,"d":"$1,134,118"}},{"$f":"BX10+'(Other Computations)'!B61*(BX9-BX10)/Inputs!B13/12","v":{"v":1133579.111152053,"d":"$1,133,579"}},{"$f":"BY10+'(Other Computations)'!B61*(BY9-BY10)/Inputs!B13/12","v":{"v":1133220.852625628,"d":"$1,133,221"}},{"$f":"SUM(BO10:BZ10)","v":{"v":13629214.105160687,"d":"$13,629,214"}},{"$f":"BZ10+'(Other Computations)'!B61*(BZ9-BZ10)/Inputs!B13/12","v":{"v":1132813.1789007548,"d":"$1,132,813"}},{"$f":"CB10+'(Other Computations)'!B61*(CB9-CB10)/Inputs!B13/12","v":{"v":1132346.551236957,"d":"$1,132,347"}},{"$f":"CC10+'(Other Computations)'!B61*(CC9-CC10)/Inputs!B13/12","v":{"v":1131861.111680923,"d":"$1,131,861"}},{"$f":"CD10+'(Other Computations)'!B61*(CD9-CD10)/Inputs!B13/12","v":{"v":1131505.115072182,"d":"$1,131,505"}},{"$f":"CE10+'(Other Computations)'!B61*(CE9-CE10)/Inputs!B13/12","v":{"v":1131008.9165180973,"d":"$1,131,009"}},{"$f":"CF10+'(Other Computations)'!B61*(CF9-CF10)/Inputs!B13/12","v":{"v":1130502.7975133546,"d":"$1,130,503"}},{"$f":"CG10+'(Other Computations)'!B61*(CG9-CG10)/Inputs!B13/12","v":{"v":1130092.3865517033,"d":"$1,130,092"}},{"$f":"CH10+'(Other Computations)'!B61*(CH9-CH10)/Inputs!B13/12","v":{"v":1129677.964010204,"d":"$1,129,678"}},{"$f":"CI10+'(Other Computations)'!B61*(CI9-CI10)/Inputs!B13/12","v":{"v":1129295.1362674392,"d":"$1,129,295"}},{"$f":"CJ10+'(Other Computations)'!B61*(CJ9-CJ10)/Inputs!B13/12","v":{"v":1128829.1255604583,"d":"$1,128,829"}},{"$f":"CK10+'(Other Computations)'!B61*(CK9-CK10)/Inputs!B13/12","v":{"v":1128392.895047367,"d":"$1,128,393"}},{"$f":"CL10+'(Other Computations)'!B61*(CL9-CL10)/Inputs!B13/12","v":{"v":1128007.6009628342,"d":"$1,128,008"}},{"$f":"SUM(CB10:CM10)","v":{"v":13564332.779322274,"d":"$13,564,333"}},{"$f":"CM10+'(Other Computations)'!B61*(CM9-CM10)/Inputs!B13/12","v":{"v":1127601.8615234904,"d":"$1,127,602"}},{"$f":"CO10+'(Other Computations)'!B61*(CO9-CO10)/Inputs!B13/12","v":{"v":1127150.3003109412,"d":"$1,127,150"}},{"$f":"CP10+'(Other Computations)'!B61*(CP9-CP10)/Inputs!B13/12","v":{"v":1126764.785024027,"d":"$1,126,765"}},{"$f":"CQ10+'(Other Computations)'!B61*(CQ9-CQ10)/Inputs!B13/12","v":{"v":1126298.8302863652,"d":"$1,126,299"}},{"$f":"CR10+'(Other Computations)'!B61*(CR9-CR10)/Inputs!B13/12","v":{"v":1125835.1506836056,"d":"$1,125,835"}},{"$f":"CS10+'(Other Computations)'!B61*(CS9-CS10)/Inputs!B13/12","v":{"v":1125304.0122322412,"d":"$1,125,304"}},{"$f":"CT10+'(Other Computations)'!B61*(CT9-CT10)/Inputs!B13/12","v":{"v":1124782.6429444565,"d":"$1,124,783"}},{"$f":"CU10+'(Other Computations)'!B61*(CU9-CU10)/Inputs!B13/12","v":{"v":1124430.998973201,"d":"$1,124,431"}},{"$f":"CV10+'(Other Computations)'!B61*(CV9-CV10)/Inputs!B13/12","v":{"v":1123884.1979311928,"d":"$1,123,884"}},{"$f":"CW10+'(Other Computations)'!B61*(CW9-CW10)/Inputs!B13/12","v":{"v":1123525.721129632,"d":"$1,123,526"}},{"$f":"CX10+'(Other Computations)'!B61*(CX9-CX10)/Inputs!B13/12","v":{"v":1123079.1756680463,"d":"$1,123,079"}},{"$f":"CY10+'(Other Computations)'!B61*(CY9-CY10)/Inputs!B13/12","v":{"v":1122547.7413372893,"d":"$1,122,548"}},{"$f":"SUM(CO10:CZ10)","v":{"v":13501205.418044489,"d":"$13,501,205"}},{"$f":"CZ10+'(Other Computations)'!B61*(CZ9-CZ10)/Inputs!B13/12","v":{"v":1122116.6421449487,"d":"$1,122,117"}},{"$f":"DB10+'(Other Computations)'!B61*(DB9-DB10)/Inputs!B13/12","v":{"v":1121694.0043052125,"d":"$1,121,694"}},{"$f":"DC10+'(Other Computations)'!B61*(DC9-DC10)/Inputs!B13/12","v":{"v":1121107.2729420303,"d":"$1,121,107"}},{"$f":"DD10+'(Other Computations)'!B61*(DD9-DD10)/Inputs!B13/12","v":{"v":1120596.5131269232,"d":"$1,120,597"}},{"$f":"DE10+'(Other Computations)'!B61*(DE9-DE10)/Inputs!B13/12","v":{"v":1120126.964772071,"d":"$1,120,127"}},{"$f":"DF10+'(Other Computations)'!B61*(DF9-DF10)/Inputs!B13/12","v":{"v":1119554.6249038733,"d":"$1,119,555"}},{"$f":"DG10+'(Other Computations)'!B61*(DG9-DG10)/Inputs!B13/12","v":{"v":1119065.9275139968,"d":"$1,119,066"}},{"$f":"DH10+'(Other Computations)'!B61*(DH9-DH10)/Inputs!B13/12","v":{"v":1118508.7488060328,"d":"$1,118,509"}},{"$f":"DI10+'(Other Computations)'!B61*(DI9-DI10)/Inputs!B13/12","v":{"v":1117945.5225786953,"d":"$1,117,946"}},{"$f":"DJ10+'(Other Computations)'!B61*(DJ9-DJ10)/Inputs!B13/12","v":{"v":1117357.4110653235,"d":"$1,117,357"}},{"$f":"DK10+'(Other Computations)'!B61*(DK9-DK10)/Inputs!B13/12","v":{"v":1116900.0557488217,"d":"$1,116,900"}},{"$f":"DL10+'(Other Computations)'!B61*(DL9-DL10)/Inputs!B13/12","v":{"v":1116368.4424535227,"d":"$1,116,368"}},{"$f":"SUM(DB10:DM10)","v":{"v":13431342.130361453,"d":"$13,431,342"}},{"$f":"DM10+'(Other Computations)'!B61*(DM9-DM10)/Inputs!B13/12","v":{"v":1115872.0560042306,"d":"$1,115,872"}},{"$f":"DO10+'(Other Computations)'!B61*(DO9-DO10)/Inputs!B13/12","v":{"v":1115483.8494386827,"d":"$1,115,484"}},{"$f":"DP10+'(Other Computations)'!B61*(DP9-DP10)/Inputs!B13/12","v":{"v":1114961.352727702,"d":"$1,114,961"}},{"$f":"DQ10+'(Other Computations)'!B61*(DQ9-DQ10)/Inputs!B13/12","v":{"v":1114446.311603648,"d":"$1,114,446"}},{"$f":"DR10+'(Other Computations)'!B61*(DR9-DR10)/Inputs!B13/12","v":{"v":1113976.625263961,"d":"$1,113,977"}},{"$f":"DS10+'(Other Computations)'!B61*(DS9-DS10)/Inputs!B13/12","v":{"v":1113494.5556899032,"d":"$1,113,495"}},{"$f":"DT10+'(Other Computations)'!B61*(DT9-DT10)/Inputs!B13/12","v":{"v":1113070.5713389867,"d":"$1,113,071"}},{"$f":"DU10+'(Other Computations)'!B61*(DU9-DU10)/Inputs!B13/12","v":{"v":1112680.0023463985,"d":"$1,112,680"}},{"$f":"DV10+'(Other Computations)'!B61*(DV9-DV10)/Inputs!B13/12","v":{"v":1112302.5028557836,"d":"$1,112,303"}},{"$f":"DW10+'(Other Computations)'!B61*(DW9-DW10)/Inputs!B13/12","v":{"v":1111849.2916231584,"d":"$1,111,849"}},{"$f":"DX10+'(Other Computations)'!B61*(DX9-DX10)/Inputs!B13/12","v":{"v":1111439.2338424542,"d":"$1,111,439"}},{"$f":"DY10+'(Other Computations)'!B61*(DY9-DY10)/Inputs!B13/12","v":{"v":1110955.1698042257,"d":"$1,110,955"}},{"$f":"SUM(DO10:DZ10)","v":{"v":13360531.522539135,"d":"$13,360,532"}},{"$f":"DZ10+'(Other Computations)'!B61*(DZ9-DZ10)/Inputs!B13/12","v":{"v":1110480.3424239464,"d":"$1,110,480"}},{"$f":"EB10+'(Other Computations)'!B61*(EB9-EB10)/Inputs!B13/12","v":{"v":1110091.0580505778,"d":"$1,110,091"}},{"$f":"EC10+'(Other Computations)'!B61*(EC9-EC10)/Inputs!B13/12","v":{"v":1109625.9604343511,"d":"$1,109,626"}},{"$f":"ED10+'(Other Computations)'!B61*(ED9-ED10)/Inputs!B13/12","v":{"v":1109193.5856539216,"d":"$1,109,194"}},{"$f":"EE10+'(Other Computations)'!B61*(EE9-EE10)/Inputs!B13/12","v":{"v":1108782.6715810944,"d":"$1,108,783"}},{"$f":"EF10+'(Other Computations)'!B61*(EF9-EF10)/Inputs!B13/12","v":{"v":1108312.433648472,"d":"$1,108,312"}},{"$f":"EG10+'(Other Computations)'!B61*(EG9-EG10)/Inputs!B13/12","v":{"v":1107875.0655348762,"d":"$1,107,875"}},{"$f":"EH10+'(Other Computations)'!B61*(EH9-EH10)/Inputs!B13/12","v":{"v":1107404.418351094,"d":"$1,107,404"}},{"$f":"EI10+'(Other Computations)'!B61*(EI9-EI10)/Inputs!B13/12","v":{"v":1106965.3537434204,"d":"$1,106,965"}},{"$f":"EJ10+'(Other Computations)'!B61*(EJ9-EJ10)/Inputs!B13/12","v":{"v":1106589.1621441115,"d":"$1,106,589"}},{"$f":"EK10+'(Other Computations)'!B61*(EK9-EK10)/Inputs!B13/12","v":{"v":1106243.279875637,"d":"$1,106,243"}},{"$f":"EL10+'(Other Computations)'!B61*(EL9-EL10)/Inputs!B13/12","v":{"v":1105690.483223176,"d":"$1,105,690"}},{"$f":"SUM(EB10:EM10)","v":{"v":13297253.814664679,"d":"$13,297,254"}}]
[{"$f":"Labels!B34","v":"Short Expected Demand"},{"$f":"'(Other Computations)'!B8+'(Other Computations)'!B61*0/Inputs!B14/12","v":{"v":1166666.6666666667,"d":"$1,166,667"}},{"$f":"B11+'(Other Computations)'!B61*(B9-B11)/Inputs!B14/12","v":{"v":1163941.9343871598,"d":"$1,163,942"}},{"$f":"C11+'(Other Computations)'!B61*(C9-C11)/Inputs!B14/12","v":{"v":1160313.7226394701,"d":"$1,160,314"}},{"$f":"D11+'(Other Computations)'!B61*(D9-D11)/Inputs!B14/12","v":{"v":1158000.3887778225,"d":"$1,158,000"}},{"$f":"E11+'(Other Computations)'!B61*(E9-E11)/Inputs!B14/12","v":{"v":1155947.1670664365,"d":"$1,155,947"}},{"$f":"F11+'(Other Computations)'!B61*(F9-F11)/Inputs!B14/12","v":{"v":1153472.7902051765,"d":"$1,153,473"}},{"$f":"G11+'(Other Computations)'!B61*(G9-G11)/Inputs!B14/12","v":{"v":1150452.253346578,"d":"$1,150,452"}},{"$f":"H11+'(Other Computations)'!B61*(H9-H11)/Inputs!B14/12","v":{"v":1147733.7089617718,"d":"$1,147,734"}},{"$f":"I11+'(Other Computations)'!B61*(I9-I11)/Inputs!B14/12","v":{"v":1145029.346569747,"d":"$1,145,029"}},{"$f":"J11+'(Other Computations)'!B61*(J9-J11)/Inputs!B14/12","v":{"v":1142897.156728023,"d":"$1,142,897"}},{"$f":"K11+'(Other Computations)'!B61*(K9-K11)/Inputs!B14/12","v":{"v":1140317.1825386425,"d":"$1,140,317"}},{"$f":"L11+'(Other Computations)'!B61*(L9-L11)/Inputs!B14/12","v":{"v":1138493.0305379727,"d":"$1,138,493"}},{"$f":"SUM(B11:M11)","v":{"v":13823265.348425465,"d":"$13,823,265"}},{"$f":"M11+'(Other Computations)'!B61*(M9-M11)/Inputs!B14/12","v":{"v":1135944.97786259,"d":"$1,135,945"}},{"$f":"O11+'(Other Computations)'!B61*(O9-O11)/Inputs!B14/12","v":{"v":1134040.0882591677,"d":"$1,134,040"}},{"$f":"P11+'(Other Computations)'!B61*(P9-P11)/Inputs!B14/12","v":{"v":1131435.2213536743,"d":"$1,131,435"}},{"$f":"Q11+'(Other Computations)'!B61*(Q9-Q11)/Inputs!B14/12","v":{"v":1129588.2436081413,"d":"$1,129,588"}},{"$f":"R11+'(Other Computations)'!B61*(R9-R11)/Inputs!B14/12","v":{"v":1127567.1305896568,"d":"$1,127,567"}},{"$f":"S11+'(Other Computations)'!B61*(S9-S11)/Inputs!B14/12","v":{"v":1124395.7865930174,"d":"$1,124,396"}},{"$f":"T11+'(Other Computations)'!B61*(T9-T11)/Inputs!B14/12","v":{"v":1121895.0790878204,"d":"$1,121,895"}},{"$f":"U11+'(Other Computations)'!B61*(U9-U11)/Inputs!B14/12","v":{"v":1119839.6608342787,"d":"$1,119,840"}},{"$f":"V11+'(Other Computations)'!B61*(V9-V11)/Inputs!B14/12","v":{"v":1117194.9486691193,"d":"$1,117,195"}},{"$f":"W11+'(Other Computations)'!B61*(W9-W11)/Inputs!B14/12","v":{"v":1114682.0866272377,"d":"$1,114,682"}},{"$f":"X11+'(Other Computations)'!B61*(X9-X11)/Inputs!B14/12","v":{"v":1112587.6083333096,"d":"$1,112,588"}},{"$f":"Y11+'(Other Computations)'!B61*(Y9-Y11)/Inputs!B14/12","v":{"v":1110776.2999032044,"d":"$1,110,776"}},{"$f":"SUM(O11:Z11)","v":{"v":13479947.131721217,"d":"$13,479,947"}},{"$f":"Z11+'(Other Computations)'!B61*(Z9-Z11)/Inputs!B14/12","v":{"v":1108113.0338138845,"d":"$1,108,113"}},{"$f":"AB11+'(Other Computations)'!B61*(AB9-AB11)/Inputs!B14/12","v":{"v":1106037.2098707922,"d":"$1,106,037"}},{"$f":"AC11+'(Other Computations)'!B61*(AC9-AC11)/Inputs!B14/12","v":{"v":1104135.4909036106,"d":"$1,104,135"}},{"$f":"AD11+'(Other Computations)'!B61*(AD9-AD11)/Inputs!B14/12","v":{"v":1102509.1858796878,"d":"$1,102,509"}},{"$f":"AE11+'(Other Computations)'!B61*(AE9-AE11)/Inputs!B14/12","v":{"v":1100550.7352947125,"d":"$1,100,551"}},{"$f":"AF11+'(Other Computations)'!B61*(AF9-AF11)/Inputs!B14/12","v":{"v":1098963.4228783073,"d":"$1,098,963"}},{"$f":"AG11+'(Other Computations)'!B61*(AG9-AG11)/Inputs!B14/12","v":{"v":1097017.7603980764,"d":"$1,097,018"}},{"$f":"AH11+'(Other Computations)'!B61*(AH9-AH11)/Inputs!B14/12","v":{"v":1095338.5800570277,"d":"$1,095,339"}},{"$f":"AI11+'(Other Computations)'!B61*(AI9-AI11)/Inputs!B14/12","v":{"v":1093211.149857577,"d":"$1,093,211"}},{"$f":"AJ11+'(Other Computations)'!B61*(AJ9-AJ11)/Inputs!B14/12","v":{"v":1090889.122422536,"d":"$1,090,889"}},{"$f":"AK11+'(Other Computations)'!B61*(AK9-AK11)/Inputs!B14/12","v":{"v":1088958.3768153072,"d":"$1,088,958"}},{"$f":"AL11+'(Other Computations)'!B61*(AL9-AL11)/Inputs!B14/12","v":{"v":1087418.4465264168,"d":"$1,087,418"}},{"$f":"SUM(AB11:AM11)","v":{"v":13173142.514717935,"d":"$13,173,143"}},{"$f":"AM11+'(Other Computations)'!B61*(AM9-AM11)/Inputs!B14/12","v":{"v":1086143.6455089916,"d":"$1,086,144"}},{"$f":"AO11+'(Other Computations)'!B61*(AO9-AO11)/Inputs!B14/12","v":{"v":1084354.307770786,"d":"$1,084,354"}},{"$f":"AP11+'(Other Computations)'!B61*(AP9-AP11)/Inputs!B14/12","v":{"v":1082316.232680402,"d":"$1,082,316"}},{"$f":"AQ11+'(Other Computations)'!B61*(AQ9-AQ11)/Inputs!B14/12","v":{"v":1080148.7081209596,"d":"$1,080,149"}},{"$f":"AR11+'(Other Computations)'!B61*(AR9-AR11)/Inputs!B14/12","v":{"v":1078348.0497767904,"d":"$1,078,348"}},{"$f":"AS11+'(Other Computations)'!B61*(AS9-AS11)/Inputs!B14/12","v":{"v":1076347.9030826704,"d":"$1,076,348"}},{"$f":"AT11+'(Other Computations)'!B61*(AT9-AT11)/Inputs!B14/12","v":{"v":1074195.4111352419,"d":"$1,074,195"}},{"$f":"AU11+'(Other Computations)'!B61*(AU9-AU11)/Inputs!B14/12","v":{"v":1071610.1649196274,"d":"$1,071,610"}},{"$f":"AV11+'(Other Computations)'!B61*(AV9-AV11)/Inputs!B14/12","v":{"v":1069939.2554602814,"d":"$1,069,939"}},{"$f":"AW11+'(Other Computations)'!B61*(AW9-AW11)/Inputs!B14/12","v":{"v":1067916.5024666952,"d":"$1,067,917"}},{"$f":"AX11+'(Other Computations)'!B61*(AX9-AX11)/Inputs!B14/12","v":{"v":1065588.40573215,"d":"$1,065,588"}},{"$f":"AY11+'(Other Computations)'!B61*(AY9-AY11)/Inputs!B14/12","v":{"v":1064067.4998901843,"d":"$1,064,067"}},{"$f":"SUM(AO11:AZ11)","v":{"v":12900976.08654478,"d":"$12,900,976"}},{"$f":"AZ11+'(Other Computations)'!B61*(AZ9-AZ11)/Inputs!B14/12","v":{"v":1062957.7861549773,"d":"$1,062,958"}},{"$f":"BB11+'(Other Computations)'!B61*(BB9-BB11)/Inputs!B14/12","v":{"v":1060486.1853247837,"d":"$1,060,486"}},{"$f":"BC11+'(Other Computations)'!B61*(BC9-BC11)/Inputs!B14/12","v":{"v":1058372.235307632,"d":"$1,058,372"}},{"$f":"BD11+'(Other Computations)'!B61*(BD9-BD11)/Inputs!B14/12","v":{"v":1056432.9817860974,"d":"$1,056,433"}},{"$f":"BE11+'(Other Computations)'!B61*(BE9-BE11)/Inputs!B14/12","v":{"v":1054417.3036384627,"d":"$1,054,417"}},{"$f":"BF11+'(Other Computations)'!B61*(BF9-BF11)/Inputs!B14/12","v":{"v":1052759.412277351,"d":"$1,052,759"}},{"$f":"BG11+'(Other Computations)'!B61*(BG9-BG11)/Inputs!B14/12","v":{"v":1051321.5327223132,"d":"$1,051,322"}},{"$f":"BH11+'(Other Computations)'!B61*(BH9-BH11)/Inputs!B14/12","v":{"v":1050133.285404718,"d":"$1,050,133"}},{"$f":"BI11+'(Other Computations)'!B61*(BI9-BI11)/Inputs!B14/12","v":{"v":1048246.6895248871,"d":"$1,048,247"}},{"$f":"BJ11+'(Other Computations)'!B61*(BJ9-BJ11)/Inputs!B14/12","v":{"v":1047358.602551199,"d":"$1,047,359"}},{"$f":"BK11+'(Other Computations)'!B61*(BK9-BK11)/Inputs!B14/12","v":{"v":1045962.3550471601,"d":"$1,045,962"}},{"$f":"BL11+'(Other Computations)'!B61*(BL9-BL11)/Inputs!B14/12","v":{"v":1043738.8753645505,"d":"$1,043,739"}},{"$f":"SUM(BB11:BM11)","v":{"v":12632187.245104134,"d":"$12,632,187"}},{"$f":"BM11+'(Other Computations)'!B61*(BM9-BM11)/Inputs!B14/12","v":{"v":1042387.9089287806,"d":"$1,042,388"}},{"$f":"BO11+'(Other Computations)'!B61*(BO9-BO11)/Inputs!B14/12","v":{"v":1040100.4092042259,"d":"$1,040,100"}},{"$f":"BP11+'(Other Computations)'!B61*(BP9-BP11)/Inputs!B14/12","v":{"v":1038452.6066379568,"d":"$1,038,453"}},{"$f":"BQ11+'(Other Computations)'!B61*(BQ9-BQ11)/Inputs!B14/12","v":{"v":1036742.1129448926,"d":"$1,036,742"}},{"$f":"BR11+'(Other Computations)'!B61*(BR9-BR11)/Inputs!B14/12","v":{"v":1034876.3197328091,"d":"$1,034,876"}},{"$f":"BS11+'(Other Computations)'!B61*(BS9-BS11)/Inputs!B14/12","v":{"v":1032640.6918410913,"d":"$1,032,641"}},{"$f":"BT11+'(Other Computations)'!B61*(BT9-BT11)/Inputs!B14/12","v":{"v":1031690.6565094324,"d":"$1,031,691"}},{"$f":"BU11+'(Other Computations)'!B61*(BU9-BU11)/Inputs!B14/12","v":{"v":1030310.6692481925,"d":"$1,030,311"}},{"$f":"BV11+'(Other Computations)'!B61*(BV9-BV11)/Inputs!B14/12","v":{"v":1029144.481585625,"d":"$1,029,144"}},{"$f":"BW11+'(Other Computations)'!B61*(BW9-BW11)/Inputs!B14/12","v":{"v":1028134.4048116654,"d":"$1,028,134"}},{"$f":"BX11+'(Other Computations)'!B61*(BX9-BX11)/Inputs!B14/12","v":{"v":1026375.4306435337,"d":"$1,026,375"}},{"$f":"BY11+'(Other Computations)'!B61*(BY9-BY11)/Inputs!B14/12","v":{"v":1025714.8194920465,"d":"$1,025,715"}},{"$f":"SUM(BO11:BZ11)","v":{"v":12396570.511580251,"d":"$12,396,571"}},{"$f":"BZ11+'(Other Computations)'!B61*(BZ9-BZ11)/Inputs!B14/12","v":{"v":1024761.9164918843,"d":"$1,024,762"}},{"$f":"CB11+'(Other Computations)'!B61*(CB9-CB11)/Inputs!B14/12","v":{"v":1023462.8624869988,"d":"$1,023,463"}},{"$f":"CC11+'(Other Computations)'!B61*(CC9-CC11)/Inputs!B14/12","v":{"v":1022062.4986056545,"d":"$1,022,062"}},{"$f":"CD11+'(Other Computations)'!B61*(CD9-CD11)/Inputs!B14/12","v":{"v":1021451.4996903645,"d":"$1,021,451"}},{"$f":"CE11+'(Other Computations)'!B61*(CE9-CE11)/Inputs!B14/12","v":{"v":1020002.8308017156,"d":"$1,020,003"}},{"$f":"CF11+'(Other Computations)'!B61*(CF9-CF11)/Inputs!B14/12","v":{"v":1018507.8679637653,"d":"$1,018,508"}},{"$f":"CG11+'(Other Computations)'!B61*(CG9-CG11)/Inputs!B14/12","v":{"v":1017600.8873264915,"d":"$1,017,601"}},{"$f":"CH11+'(Other Computations)'!B61*(CH9-CH11)/Inputs!B14/12","v":{"v":1016676.7340111787,"d":"$1,016,677"}},{"$f":"CI11+'(Other Computations)'!B61*(CI9-CI11)/Inputs!B14/12","v":{"v":1015949.2290823552,"d":"$1,015,949"}},{"$f":"CJ11+'(Other Computations)'!B61*(CJ9-CJ11)/Inputs!B14/12","v":{"v":1014727.4135513733,"d":"$1,014,727"}},{"$f":"CK11+'(Other Computations)'!B61*(CK9-CK11)/Inputs!B14/12","v":{"v":1013694.7764729528,"d":"$1,013,695"}},{"$f":"CL11+'(Other Computations)'!B61*(CL9-CL11)/Inputs!B14/12","v":{"v":1012976.0413904001,"d":"$1,012,976"}},{"$f":"SUM(CB11:CM11)","v":{"v":12221874.557875134,"d":"$12,221,875"}},{"$f":"CM11+'(Other Computations)'!B61*(CM9-CM11)/Inputs!B14/12","v":{"v":1012139.2653039539,"d":"$1,012,139"}},{"$f":"CO11+'(Other Computations)'!B61*(CO9-CO11)/Inputs!B14/12","v":{"v":1011033.5451983748,"d":"$1,011,034"}},{"$f":"CP11+'(Other Computations)'!B61*(CP9-CP11)/Inputs!B14/12","v":{"v":1010333.1861867867,"d":"$1,010,333"}},{"$f":"CQ11+'(Other Computations)'!B61*(CQ9-CQ11)/Inputs!B14/12","v":{"v":1009154.5633002217,"d":"$1,009,155"}},{"$f":"CR11+'(Other Computations)'!B61*(CR9-CR11)/Inputs!B14/12","v":{"v":1007999.489391805,"d":"$1,007,999"}},{"$f":"CS11+'(Other Computations)'!B61*(CS9-CS11)/Inputs!B14/12","v":{"v":1006449.2650904501,"d":"$1,006,449"}},{"$f":"CT11+'(Other Computations)'!B61*(CT9-CT11)/Inputs!B14/12","v":{"v":1004971.8097407115,"d":"$1,004,972"}},{"$f":"CU11+'(Other Computations)'!B61*(CU9-CU11)/Inputs!B14/12","v":{"v":1004525.98526323,"d":"$1,004,526"}},{"$f":"CV11+'(Other Computations)'!B61*(CV9-CV11)/Inputs!B14/12","v":{"v":1002910.5264238195,"d":"$1,002,911"}},{"$f":"CW11+'(Other Computations)'!B61*(CW9-CW11)/Inputs!B14/12","v":{"v":1002439.8554965019,"d":"$1,002,440"}},{"$f":"CX11+'(Other Computations)'!B61*(CX9-CX11)/Inputs!B14/12","v":{"v":1001442.3308607803,"d":"$1,001,442"}},{"$f":"CY11+'(Other Computations)'!B61*(CY9-CY11)/Inputs!B14/12","v":{"v":999943.125498561,"d":"$999,943"}},{"$f":"SUM(CO11:CZ11)","v":{"v":12073342.947755197,"d":"$12,073,343"}},{"$f":"CZ11+'(Other Computations)'!B61*(CZ9-CZ11)/Inputs!B14/12","v":{"v":999059.3722311663,"d":"$999,059"}},{"$f":"DB11+'(Other Computations)'!B61*(DB9-DB11)/Inputs!B14/12","v":{"v":998232.6739415514,"d":"$998,233"}},{"$f":"DC11+'(Other Computations)'!B61*(DC9-DC11)/Inputs!B14/12","v":{"v":996427.0264619534,"d":"$996,427"}},{"$f":"DD11+'(Other Computations)'!B61*(DD9-DD11)/Inputs!B14/12","v":{"v":995094.1376613119,"d":"$995,094"}},{"$f":"DE11+'(Other Computations)'!B61*(DE9-DE11)/Inputs!B14/12","v":{"v":994019.9360803313,"d":"$994,020"}},{"$f":"DF11+'(Other Computations)'!B61*(DF9-DF11)/Inputs!B14/12","v":{"v":992337.3833807532,"d":"$992,337"}},{"$f":"DG11+'(Other Computations)'!B61*(DG9-DG11)/Inputs!B14/12","v":{"v":991172.1051737603,"d":"$991,172"}},{"$f":"DH11+'(Other Computations)'!B61*(DH9-DH11)/Inputs!B14/12","v":{"v":989605.3360140349,"d":"$989,605"}},{"$f":"DI11+'(Other Computations)'!B61*(DI9-DI11)/Inputs!B14/12","v":{"v":988016.3038276768,"d":"$988,016"}},{"$f":"DJ11+'(Other Computations)'!B61*(DJ9-DJ11)/Inputs!B14/12","v":{"v":986292.2072300992,"d":"$986,292"}},{"$f":"DK11+'(Other Computations)'!B61*(DK9-DK11)/Inputs!B14/12","v":{"v":985368.4253843551,"d":"$985,368"}},{"$f":"DL11+'(Other Computations)'!B61*(DL9-DL11)/Inputs!B14/12","v":{"v":984005.5738120675,"d":"$984,006"}},{"$f":"SUM(DB11:DM11)","v":{"v":11899630.48119906,"d":"$11,899,630"}},{"$f":"DM11+'(Other Computations)'!B61*(DM9-DM11)/Inputs!B14/12","v":{"v":982865.6282918905,"d":"$982,866"}},{"$f":"DO11+'(Other Computations)'!B61*(DO9-DO11)/Inputs!B14/12","v":{"v":982383.7003946078,"d":"$982,384"}},{"$f":"DP11+'(Other Computations)'!B61*(DP9-DP11)/Inputs!B14/12","v":{"v":981097.3333098909,"d":"$981,097"}},{"$f":"DQ11+'(Other Computations)'!B61*(DQ9-DQ11)/Inputs!B14/12","v":{"v":979866.3090574815,"d":"$979,866"}},{"$f":"DR11+'(Other Computations)'!B61*(DR9-DR11)/Inputs!B14/12","v":{"v":978917.3577213904,"d":"$978,917"}},{"$f":"DS11+'(Other Computations)'!B61*(DS9-DS11)/Inputs!B14/12","v":{"v":977900.7634373576,"d":"$977,901"}},{"$f":"DT11+'(Other Computations)'!B61*(DT9-DT11)/Inputs!B14/12","v":{"v":977240.1044464782,"d":"$977,240"}},{"$f":"DU11+'(Other Computations)'!B61*(DU9-DU11)/Inputs!B14/12","v":{"v":976783.2247533444,"d":"$976,783"}},{"$f":"DV11+'(Other Computations)'!B61*(DV9-DV11)/Inputs!B14/12","v":{"v":976405.6830540022,"d":"$976,406"}},{"$f":"DW11+'(Other Computations)'!B61*(DW9-DW11)/Inputs!B14/12","v":{"v":975573.8714888318,"d":"$975,574"}},{"$f":"DX11+'(Other Computations)'!B61*(DX9-DX11)/Inputs!B14/12","v":{"v":975006.2389731389,"d":"$975,006"}},{"$f":"DY11+'(Other Computations)'!B61*(DY9-DY11)/Inputs!B14/12","v":{"v":973996.757450287,"d":"$973,997"}},{"$f":"SUM(DO11:DZ11)","v":{"v":11738036.972378701,"d":"$11,738,037"}},{"$f":"DZ11+'(Other Computations)'!B61*(DZ9-DZ11)/Inputs!B14/12","v":{"v":973049.9933401939,"d":"$973,050"}},{"$f":"EB11+'(Other Computations)'!B61*(EB9-EB11)/Inputs!B14/12","v":{"v":972623.0419483681,"d":"$972,623"}},{"$f":"EC11+'(Other Computations)'!B61*(EC9-EC11)/Inputs!B14/12","v":{"v":971741.7342524284,"d":"$971,742"}},{"$f":"ED11+'(Other Computations)'!B61*(ED9-ED11)/Inputs!B14/12","v":{"v":971062.5442668223,"d":"$971,063"}},{"$f":"EE11+'(Other Computations)'!B61*(EE9-EE11)/Inputs!B14/12","v":{"v":970515.5465157914,"d":"$970,516"}},{"$f":"EF11+'(Other Computations)'!B61*(EF9-EF11)/Inputs!B14/12","v":{"v":969614.4956570748,"d":"$969,614"}},{"$f":"EG11+'(Other Computations)'!B61*(EG9-EG11)/Inputs!B14/12","v":{"v":968916.6472253809,"d":"$968,917"}},{"$f":"EH11+'(Other Computations)'!B61*(EH9-EH11)/Inputs!B14/12","v":{"v":968022.7421547641,"d":"$968,023"}},{"$f":"EI11+'(Other Computations)'!B61*(EI9-EI11)/Inputs!B14/12","v":{"v":967324.2111225609,"d":"$967,324"}},{"$f":"EJ11+'(Other Computations)'!B61*(EJ9-EJ11)/Inputs!B14/12","v":{"v":967006.521840886,"d":"$967,007"}},{"$f":"EK11+'(Other Computations)'!B61*(EK9-EK11)/Inputs!B14/12","v":{"v":966869.8760120285,"d":"$966,870"}},{"$f":"EL11+'(Other Computations)'!B61*(EL9-EL11)/Inputs!B14/12","v":{"v":965488.8378175902,"d":"$965,489"}},{"$f":"SUM(EB11:EM11)","v":{"v":11632236.19215389,"d":"$11,632,236"}}]
[{"$f":"Labels!B24","v":"Consumption"},{"$f":"Inputs!B34*'(Other Computations)'!B55","v":{"v":728000,"d":"$728,000"}},{"$f":"Inputs!B34*'(Other Computations)'!C55","v":{"v":727777.8314180913,"d":"$727,778"}},{"$f":"Inputs!B34*'(Other Computations)'!D55","v":{"v":727486.4829226624,"d":"$727,486"}},{"$f":"Inputs!B34*'(Other Computations)'!E55","v":{"v":727295.4035967998,"d":"$727,295"}},{"$f":"Inputs!B34*'(Other Computations)'!F55","v":{"v":727072.90327841,"d":"$727,073"}},{"$f":"Inputs!B34*'(Other Computations)'!G55","v":{"v":726764.4221859378,"d":"$726,764"}},{"$f":"Inputs!B34*'(Other Computations)'!H55","v":{"v":726561.3423103404,"d":"$726,561"}},{"$f":"Inputs!B34*'(Other Computations)'!I55","v":{"v":726291.867794664,"d":"$726,292"}},{"$f":"Inputs!B34*'(Other Computations)'!J55","v":{"v":726099.2538346454,"d":"$726,099"}},{"$f":"Inputs!B34*'(Other Computations)'!K55","v":{"v":725934.5231208288,"d":"$725,935"}},{"$f":"Inputs!B34*'(Other Computations)'!L55","v":{"v":725680.0429903757,"d":"$725,680"}},{"$f":"Inputs!B34*'(Other Computations)'!M55","v":{"v":725463.7660983669,"d":"$725,464"}},{"$f":"SUM(B12:M12)","v":{"v":8720427.839551121,"d":"$8,720,428"}},{"$f":"Inputs!B34*'(Other Computations)'!O55","v":{"v":725142.8087446053,"d":"$725,143"}},{"$f":"Inputs!B34*'(Other Computations)'!P55","v":{"v":724841.2047297471,"d":"$724,841"}},{"$f":"Inputs!B34*'(Other Computations)'!Q55","v":{"v":724621.2258898923,"d":"$724,621"}},{"$f":"Inputs!B34*'(Other Computations)'!R55","v":{"v":724469.9616234689,"d":"$724,470"}},{"$f":"Inputs!B34*'(Other Computations)'!S55","v":{"v":724164.806282538,"d":"$724,165"}},{"$f":"Inputs!B34*'(Other Computations)'!T55","v":{"v":723931.742058453,"d":"$723,932"}},{"$f":"Inputs!B34*'(Other Computations)'!U55","v":{"v":723761.5684587882,"d":"$723,762"}},{"$f":"Inputs!B34*'(Other Computations)'!V55","v":{"v":723480.5908991979,"d":"$723,481"}},{"$f":"Inputs!B34*'(Other Computations)'!W55","v":{"v":723265.7653000026,"d":"$723,266"}},{"$f":"Inputs!B34*'(Other Computations)'!X55","v":{"v":723059.614314341,"d":"$723,060"}},{"$f":"Inputs!B34*'(Other Computations)'!Y55","v":{"v":722803.9740295518,"d":"$722,804"}},{"$f":"Inputs!B34*'(Other Computations)'!Z55","v":{"v":722513.3332803698,"d":"$722,513"}},{"$f":"SUM(O12:Z12)","v":{"v":8686056.595610956,"d":"$8,686,057"}},{"$f":"Inputs!B34*'(Other Computations)'!AB55","v":{"v":722307.9536939239,"d":"$722,308"}},{"$f":"Inputs!B34*'(Other Computations)'!AC55","v":{"v":721984.7051097782,"d":"$721,985"}},{"$f":"Inputs!B34*'(Other Computations)'!AD55","v":{"v":721691.5374649402,"d":"$721,692"}},{"$f":"Inputs!B34*'(Other Computations)'!AE55","v":{"v":721510.345931256,"d":"$721,510"}},{"$f":"Inputs!B34*'(Other Computations)'!AF55","v":{"v":721235.5843155981,"d":"$721,236"}},{"$f":"Inputs!B34*'(Other Computations)'!AG55","v":{"v":721054.0870597796,"d":"$721,054"}},{"$f":"Inputs!B34*'(Other Computations)'!AH55","v":{"v":720844.7226134477,"d":"$720,845"}},{"$f":"Inputs!B34*'(Other Computations)'!AI55","v":{"v":720596.7741618484,"d":"$720,597"}},{"$f":"Inputs!B34*'(Other Computations)'!AJ55","v":{"v":720273.3651889344,"d":"$720,273"}},{"$f":"Inputs!B34*'(Other Computations)'!AK55","v":{"v":720094.4994788126,"d":"$720,094"}},{"$f":"Inputs!B34*'(Other Computations)'!AL55","v":{"v":719781.5752972707,"d":"$719,782"}},{"$f":"Inputs!B34*'(Other Computations)'!AM55","v":{"v":719424.0051848659,"d":"$719,424"}},{"$f":"SUM(AB12:AM12)","v":{"v":8650799.155500455,"d":"$8,650,799"}},{"$f":"Inputs!B34*'(Other Computations)'!AO55","v":{"v":719130.4828095025,"d":"$719,130"}},{"$f":"Inputs!B34*'(Other Computations)'!AP55","v":{"v":718911.9297181772,"d":"$718,912"}},{"$f":"Inputs!B34*'(Other Computations)'!AQ55","v":{"v":718626.2149808255,"d":"$718,626"}},{"$f":"Inputs!B34*'(Other Computations)'!AR55","v":{"v":718370.5726767774,"d":"$718,371"}},{"$f":"Inputs!B34*'(Other Computations)'!AS55","v":{"v":718164.6947858175,"d":"$718,165"}},{"$f":"Inputs!B34*'(Other Computations)'!AT55","v":{"v":717848.7372058706,"d":"$717,849"}},{"$f":"Inputs!B34*'(Other Computations)'!AU55","v":{"v":717494.2382162212,"d":"$717,494"}},{"$f":"Inputs!B34*'(Other Computations)'!AV55","v":{"v":717252.2500481436,"d":"$717,252"}},{"$f":"Inputs!B34*'(Other Computations)'!AW55","v":{"v":716964.4593038289,"d":"$716,964"}},{"$f":"Inputs!B34*'(Other Computations)'!AX55","v":{"v":716643.5146672936,"d":"$716,644"}},{"$f":"Inputs!B34*'(Other Computations)'!AY55","v":{"v":716351.0942244463,"d":"$716,351"}},{"$f":"Inputs!B34*'(Other Computations)'!AZ55","v":{"v":716053.6307821914,"d":"$716,054"}},{"$f":"SUM(AO12:AZ12)","v":{"v":8611811.819419097,"d":"$8,611,812"}},{"$f":"Inputs!B34*'(Other Computations)'!BB55","v":{"v":715858.6909424145,"d":"$715,859"}},{"$f":"Inputs!B34*'(Other Computations)'!BC55","v":{"v":715627.2960282122,"d":"$715,627"}},{"$f":"Inputs!B34*'(Other Computations)'!BD55","v":{"v":715342.2524924971,"d":"$715,342"}},{"$f":"Inputs!B34*'(Other Computations)'!BE55","v":{"v":715115.5040780471,"d":"$715,116"}},{"$f":"Inputs!B34*'(Other Computations)'!BF55","v":{"v":714823.4046591771,"d":"$714,823"}},{"$f":"Inputs!B34*'(Other Computations)'!BG55","v":{"v":714478.6491270025,"d":"$714,479"}},{"$f":"Inputs!B34*'(Other Computations)'!BH55","v":{"v":714140.9061107611,"d":"$714,141"}},{"$f":"Inputs!B34*'(Other Computations)'!BI55","v":{"v":713862.1444925788,"d":"$713,862"}},{"$f":"Inputs!B34*'(Other Computations)'!BJ55","v":{"v":713554.6529787015,"d":"$713,555"}},{"$f":"Inputs!B34*'(Other Computations)'!BK55","v":{"v":713287.8057336619,"d":"$713,288"}},{"$f":"Inputs!B34*'(Other Computations)'!BL55","v":{"v":713026.0921598854,"d":"$713,026"}},{"$f":"Inputs!B34*'(Other Computations)'!BM55","v":{"v":712772.1012000608,"d":"$712,772"}},{"$f":"SUM(BB12:BM12)","v":{"v":8571889.500003,"d":"$8,571,890"}},{"$f":"Inputs!B34*'(Other Computations)'!BO55","v":{"v":712439.7087526926,"d":"$712,440"}},{"$f":"Inputs!B34*'(Other Computations)'!BP55","v":{"v":712135.6845380702,"d":"$712,136"}},{"$f":"Inputs!B34*'(Other Computations)'!BQ55","v":{"v":711880.0502707543,"d":"$711,880"}},{"$f":"Inputs!B34*'(Other Computations)'!BR55","v":{"v":711565.5692912408,"d":"$711,566"}},{"$f":"Inputs!B34*'(Other Computations)'!BS55","v":{"v":711250.9804312487,"d":"$711,251"}},{"$f":"Inputs!B34*'(Other Computations)'!BT55","v":{"v":710992.6656862769,"d":"$710,993"}},{"$f":"Inputs!B34*'(Other Computations)'!BU55","v":{"v":710734.6829834817,"d":"$710,735"}},{"$f":"Inputs!B34*'(Other Computations)'!BV55","v":{"v":710404.5379852672,"d":"$710,405"}},{"$f":"Inputs!B34*'(Other Computations)'!BW55","v":{"v":710125.5599484118,"d":"$710,126"}},{"$f":"Inputs!B34*'(Other Computations)'!BX55","v":{"v":709867.7236456013,"d":"$709,868"}},{"$f":"Inputs!B34*'(Other Computations)'!BY55","v":{"v":709530.2529510568,"d":"$709,530"}},{"$f":"Inputs!B34*'(Other Computations)'!BZ55","v":{"v":709251.9510411775,"d":"$709,252"}},{"$f":"SUM(BO12:BZ12)","v":{"v":8530179.36752528,"d":"$8,530,179"}},{"$f":"Inputs!B34*'(Other Computations)'!CB55","v":{"v":708933.1983577148,"d":"$708,933"}},{"$f":"Inputs!B34*'(Other Computations)'!CC55","v":{"v":708580.704485189,"d":"$708,581"}},{"$f":"Inputs!B34*'(Other Computations)'!CD55","v":{"v":708251.8489906949,"d":"$708,252"}},{"$f":"Inputs!B34*'(Other Computations)'!CE55","v":{"v":707947.8062189461,"d":"$707,948"}},{"$f":"Inputs!B34*'(Other Computations)'!CF55","v":{"v":707626.6989525759,"d":"$707,627"}},{"$f":"Inputs!B34*'(Other Computations)'!CG55","v":{"v":707266.9434403272,"d":"$707,267"}},{"$f":"Inputs!B34*'(Other Computations)'!CH55","v":{"v":706978.7533625878,"d":"$706,979"}},{"$f":"Inputs!B34*'(Other Computations)'!CI55","v":{"v":706570.9143334642,"d":"$706,571"}},{"$f":"Inputs!B34*'(Other Computations)'!CJ55","v":{"v":706288.1170023803,"d":"$706,288"}},{"$f":"Inputs!B34*'(Other Computations)'!CK55","v":{"v":705928.3470434811,"d":"$705,928"}},{"$f":"Inputs!B34*'(Other Computations)'!CL55","v":{"v":705657.0188239283,"d":"$705,657"}},{"$f":"Inputs!B34*'(Other Computations)'!CM55","v":{"v":705264.0274498081,"d":"$705,264"}},{"$f":"SUM(CB12:CM12)","v":{"v":8485294.378461098,"d":"$8,485,294"}},{"$f":"Inputs!B34*'(Other Computations)'!CO55","v":{"v":704888.2651099269,"d":"$704,888"}},{"$f":"Inputs!B34*'(Other Computations)'!CP55","v":{"v":704576.8004625012,"d":"$704,577"}},{"$f":"Inputs!B34*'(Other Computations)'!CQ55","v":{"v":704162.6170963787,"d":"$704,163"}},{"$f":"Inputs!B34*'(Other Computations)'!CR55","v":{"v":703747.1092621286,"d":"$703,747"}},{"$f":"Inputs!B34*'(Other Computations)'!CS55","v":{"v":703461.6884293231,"d":"$703,462"}},{"$f":"Inputs!B34*'(Other Computations)'!CT55","v":{"v":703159.4806054743,"d":"$703,159"}},{"$f":"Inputs!B34*'(Other Computations)'!CU55","v":{"v":702815.8206982438,"d":"$702,816"}},{"$f":"Inputs!B34*'(Other Computations)'!CV55","v":{"v":702529.4470930761,"d":"$702,529"}},{"$f":"Inputs!B34*'(Other Computations)'!CW55","v":{"v":702228.9148143294,"d":"$702,229"}},{"$f":"Inputs!B34*'(Other Computations)'!CX55","v":{"v":701873.4634082529,"d":"$701,873"}},{"$f":"Inputs!B34*'(Other Computations)'!CY55","v":{"v":701515.543198715,"d":"$701,516"}},{"$f":"Inputs!B34*'(Other Computations)'!CZ55","v":{"v":701221.103627542,"d":"$701,221"}},{"$f":"SUM(CO12:CZ12)","v":{"v":8436180.253805893,"d":"$8,436,180"}},{"$f":"Inputs!B34*'(Other Computations)'!DB55","v":{"v":700924.2664795975,"d":"$700,924"}},{"$f":"Inputs!B34*'(Other Computations)'!DC55","v":{"v":700599.9092498679,"d":"$700,600"}},{"$f":"Inputs!B34*'(Other Computations)'!DD55","v":{"v":700259.6434045555,"d":"$700,260"}},{"$f":"Inputs!B34*'(Other Computations)'!DE55","v":{"v":699919.3000516325,"d":"$699,919"}},{"$f":"Inputs!B34*'(Other Computations)'!DF55","v":{"v":699594.1229412612,"d":"$699,594"}},{"$f":"Inputs!B34*'(Other Computations)'!DG55","v":{"v":699226.3783480638,"d":"$699,226"}},{"$f":"Inputs!B34*'(Other Computations)'!DH55","v":{"v":698872.2189224327,"d":"$698,872"}},{"$f":"Inputs!B34*'(Other Computations)'!DI55","v":{"v":698528.5419051885,"d":"$698,529"}},{"$f":"Inputs!B34*'(Other Computations)'!DJ55","v":{"v":698188.8989326432,"d":"$698,189"}},{"$f":"Inputs!B34*'(Other Computations)'!DK55","v":{"v":697834.387065881,"d":"$697,834"}},{"$f":"Inputs!B34*'(Other Computations)'!DL55","v":{"v":697544.8354754793,"d":"$697,545"}},{"$f":"Inputs!B34*'(Other Computations)'!DM55","v":{"v":697158.0365440692,"d":"$697,158"}},{"$f":"SUM(DB12:DM12)","v":{"v":8388650.539320672,"d":"$8,388,651"}},{"$f":"Inputs!B34*'(Other Computations)'!DO55","v":{"v":696812.720207841,"d":"$696,813"}},{"$f":"Inputs!B34*'(Other Computations)'!DP55","v":{"v":696503.5277214254,"d":"$696,504"}},{"$f":"Inputs!B34*'(Other Computations)'!DQ55","v":{"v":696127.4406952927,"d":"$696,127"}},{"$f":"Inputs!B34*'(Other Computations)'!DR55","v":{"v":695807.2560636374,"d":"$695,807"}},{"$f":"Inputs!B34*'(Other Computations)'!DS55","v":{"v":695489.009160293,"d":"$695,489"}},{"$f":"Inputs!B34*'(Other Computations)'!DT55","v":{"v":695166.1480823581,"d":"$695,166"}},{"$f":"Inputs!B34*'(Other Computations)'!DU55","v":{"v":694814.6588279591,"d":"$694,815"}},{"$f":"Inputs!B34*'(Other Computations)'!DV55","v":{"v":694527.4797997031,"d":"$694,527"}},{"$f":"Inputs!B34*'(Other Computations)'!DW55","v":{"v":694145.4341701857,"d":"$694,145"}},{"$f":"Inputs!B34*'(Other Computations)'!DX55","v":{"v":693784.4205783722,"d":"$693,784"}},{"$f":"Inputs!B34*'(Other Computations)'!DY55","v":{"v":693433.8359337798,"d":"$693,434"}},{"$f":"Inputs!B34*'(Other Computations)'!DZ55","v":{"v":693133.5607177805,"d":"$693,134"}},{"$f":"SUM(DO12:DZ12)","v":{"v":8339745.4919586275,"d":"$8,339,745"}},{"$f":"Inputs!B34*'(Other Computations)'!EB55","v":{"v":692748.4140359976,"d":"$692,748"}},{"$f":"Inputs!B34*'(Other Computations)'!EC55","v":{"v":692344.337934998,"d":"$692,344"}},{"$f":"Inputs!B34*'(Other Computations)'!ED55","v":{"v":692035.3072077306,"d":"$692,035"}},{"$f":"Inputs!B34*'(Other Computations)'!EE55","v":{"v":691655.9394290816,"d":"$691,656"}},{"$f":"Inputs!B34*'(Other Computations)'!EF55","v":{"v":691307.3662762897,"d":"$691,307"}},{"$f":"Inputs!B34*'(Other Computations)'!EG55","v":{"v":690910.2263429422,"d":"$690,910"}},{"$f":"Inputs!B34*'(Other Computations)'!EH55","v":{"v":690634.7519272789,"d":"$690,635"}},{"$f":"Inputs!B34*'(Other Computations)'!EI55","v":{"v":690242.3266823338,"d":"$690,242"}},{"$f":"Inputs!B34*'(Other Computations)'!EJ55","v":{"v":689924.8778487728,"d":"$689,925"}},{"$f":"Inputs!B34*'(Other Computations)'!EK55","v":{"v":689639.0797069385,"d":"$689,639"}},{"$f":"Inputs!B34*'(Other Computations)'!EL55","v":{"v":689308.8123134793,"d":"$689,309"}},{"$f":"Inputs!B34*'(Other Computations)'!EM55","v":{"v":688965.384402001,"d":"$688,965"}},{"$f":"SUM(EB12:EM12)","v":{"v":8289716.824107845,"d":"$8,289,717"}}]
[{"$f":"Labels!B74","v":"Aggregate Demand Shock"},{"$f":"NORMINV(RAND()*(1-2*Inputs!B58)+Inputs!B58,0,'(Other Computations)'!B208)","v":{"v":7097.261459265176,"d":"$7,097"}},{"$f":"NORMINV(RAND()*(1-2*Inputs!B58)+Inputs!B58,0,'(Other Computations)'!B208)","v":{"v":-60081.22409452439,"d":"($60,081)"}},{"$f":"NORMINV(RAND()*(1-2*Inputs!B58)+Inputs!B58,0,'(Other Computations)'!B208)","v":{"v":31745.86196676462,"d":"$31,746"}},{"$f":"NORMINV(RAND()*(1-2*Inputs!B58)+Inputs!B58,0,'(Other Computations)'!B208)","v":{"v":48657.95833155075,"d":"$48,658"}},{"$f":"NORMINV(RAND()*(1-2*Inputs!B58)+Inputs!B58,0,'(Other Computations)'!B208)","v":{"v":16772.726560014227,"d":"$16,773"}},{"$f":"NORMINV(RAND()*(1-2*Inputs!B58)+Inputs!B58,0,'(Other Computations)'!B208)","v":{"v":-24392.40192717151,"d":"($24,392)"}},{"$f":"NORMINV(RAND()*(1-2*Inputs!B58)+Inputs!B58,0,'(Other Computations)'!B208)","v":{"v":-5070.374808476647,"d":"($5,070)"}},{"$f":"NORMINV(RAND()*(1-2*Inputs!B58)+Inputs!B58,0,'(Other Computations)'!B208)","v":{"v":-6147.950254410328,"d":"($6,148)"}},{"$f":"NORMINV(RAND()*(1-2*Inputs!B58)+Inputs!B58,0,'(Other Computations)'!B208)","v":{"v":32882.2956413625,"d":"$32,882"}},{"$f":"NORMINV(RAND()*(1-2*Inputs!B58)+Inputs!B58,0,'(Other Computations)'!B208)","v":{"v":-1061.7166985126983,"d":"($1,062)"}},{"$f":"NORMINV(RAND()*(1-2*Inputs!B58)+Inputs!B58,0,'(Other Computations)'!B208)","v":{"v":51355.84242328839,"d":"$51,356"}},{"$f":"NORMINV(RAND()*(1-2*Inputs!B58)+Inputs!B58,0,'(Other Computations)'!B208)","v":{"v":-2155.966400215614,"d":"($2,156)"}},{"$f":"SUM(B13:M13)","v":{"v":89602.31219893447,"d":"$89,602"}},{"$f":"NORMINV(RAND()*(1-2*Inputs!B58)+Inputs!B58,0,'(Other Computations)'!B208)","v":{"v":42240.23264091678,"d":"$42,240"}},{"$f":"NORMINV(RAND()*(1-2*Inputs!B58)+Inputs!B58,0,'(Other Computations)'!B208)","v":{"v":-9537.362123535484,"d":"($9,537)"}},{"$f":"NORMINV(RAND()*(1-2*Inputs!B58)+Inputs!B58,0,'(Other Computations)'!B208)","v":{"v":42965.104149906394,"d":"$42,965"}},{"$f":"NORMINV(RAND()*(1-2*Inputs!B58)+Inputs!B58,0,'(Other Computations)'!B208)","v":{"v":28943.792288120934,"d":"$28,944"}},{"$f":"NORMINV(RAND()*(1-2*Inputs!B58)+Inputs!B58,0,'(Other Computations)'!B208)","v":{"v":-55353.35961994342,"d":"($55,353)"}},{"$f":"NORMINV(RAND()*(1-2*Inputs!B58)+Inputs!B58,0,'(Other Computations)'!B208)","v":{"v":-9613.858682942873,"d":"($9,614)"}},{"$f":"NORMINV(RAND()*(1-2*Inputs!B58)+Inputs!B58,0,'(Other Computations)'!B208)","v":{"v":20412.203353761488,"d":"$20,412"}},{"$f":"NORMINV(RAND()*(1-2*Inputs!B58)+Inputs!B58,0,'(Other Computations)'!B208)","v":{"v":-23558.278709325452,"d":"($23,558)"}},{"$f":"NORMINV(RAND()*(1-2*Inputs!B58)+Inputs!B58,0,'(Other Computations)'!B208)","v":{"v":-16181.746563460383,"d":"($16,182)"}},{"$f":"NORMINV(RAND()*(1-2*Inputs!B58)+Inputs!B58,0,'(Other Computations)'!B208)","v":{"v":11927.691953458616,"d":"$11,928"}},{"$f":"NORMINV(RAND()*(1-2*Inputs!B58)+Inputs!B58,0,'(Other Computations)'!B208)","v":{"v":30710.377039093742,"d":"$30,710"}},{"$f":"NORMINV(RAND()*(1-2*Inputs!B58)+Inputs!B58,0,'(Other Computations)'!B208)","v":{"v":-31957.699888224757,"d":"($31,958)"}},{"$f":"SUM(O13:Z13)","v":{"v":30997.095837825596,"d":"$30,997"}},{"$f":"NORMINV(RAND()*(1-2*Inputs!B58)+Inputs!B58,0,'(Other Computations)'!B208)","v":{"v":8190.425206156469,"d":"$8,190"}},{"$f":"NORMINV(RAND()*(1-2*Inputs!B58)+Inputs!B58,0,'(Other Computations)'!B208)","v":{"v":19200.2259828406,"d":"$19,200"}},{"$f":"NORMINV(RAND()*(1-2*Inputs!B58)+Inputs!B58,0,'(Other Computations)'!B208)","v":{"v":37623.848025696054,"d":"$37,624"}},{"$f":"NORMINV(RAND()*(1-2*Inputs!B58)+Inputs!B58,0,'(Other Computations)'!B208)","v":{"v":12428.185304776274,"d":"$12,428"}},{"$f":"NORMINV(RAND()*(1-2*Inputs!B58)+Inputs!B58,0,'(Other Computations)'!B208)","v":{"v":37675.964367388515,"d":"$37,676"}},{"$f":"NORMINV(RAND()*(1-2*Inputs!B58)+Inputs!B58,0,'(Other Computations)'!B208)","v":{"v":10626.412872223002,"d":"$10,626"}},{"$f":"NORMINV(RAND()*(1-2*Inputs!B58)+Inputs!B58,0,'(Other Computations)'!B208)","v":{"v":28283.671022694038,"d":"$28,284"}},{"$f":"NORMINV(RAND()*(1-2*Inputs!B58)+Inputs!B58,0,'(Other Computations)'!B208)","v":{"v":-5252.330492476086,"d":"($5,252)"}},{"$f":"NORMINV(RAND()*(1-2*Inputs!B58)+Inputs!B58,0,'(Other Computations)'!B208)","v":{"v":-20836.570872420856,"d":"($20,837)"}},{"$f":"NORMINV(RAND()*(1-2*Inputs!B58)+Inputs!B58,0,'(Other Computations)'!B208)","v":{"v":5448.826468238082,"d":"$5,449"}},{"$f":"NORMINV(RAND()*(1-2*Inputs!B58)+Inputs!B58,0,'(Other Computations)'!B208)","v":{"v":32170.889353708793,"d":"$32,171"}},{"$f":"NORMINV(RAND()*(1-2*Inputs!B58)+Inputs!B58,0,'(Other Computations)'!B208)","v":{"v":50225.07367102981,"d":"$50,225"}},{"$f":"SUM(AB13:AM13)","v":{"v":215784.6209098547,"d":"$215,785"}},{"$f":"NORMINV(RAND()*(1-2*Inputs!B58)+Inputs!B58,0,'(Other Computations)'!B208)","v":{"v":12308.2934595026,"d":"$12,308"}},{"$f":"NORMINV(RAND()*(1-2*Inputs!B58)+Inputs!B58,0,'(Other Computations)'!B208)","v":{"v":-6989.07072844021,"d":"($6,989)"}},{"$f":"NORMINV(RAND()*(1-2*Inputs!B58)+Inputs!B58,0,'(Other Computations)'!B208)","v":{"v":-17845.82975693075,"d":"($17,846)"}},{"$f":"NORMINV(RAND()*(1-2*Inputs!B58)+Inputs!B58,0,'(Other Computations)'!B208)","v":{"v":6889.564085899187,"d":"$6,890"}},{"$f":"NORMINV(RAND()*(1-2*Inputs!B58)+Inputs!B58,0,'(Other Computations)'!B208)","v":{"v":-8886.81036243041,"d":"($8,887)"}},{"$f":"NORMINV(RAND()*(1-2*Inputs!B58)+Inputs!B58,0,'(Other Computations)'!B208)","v":{"v":-21330.810124017196,"d":"($21,331)"}},{"$f":"NORMINV(RAND()*(1-2*Inputs!B58)+Inputs!B58,0,'(Other Computations)'!B208)","v":{"v":-54057.79700858819,"d":"($54,058)"}},{"$f":"NORMINV(RAND()*(1-2*Inputs!B58)+Inputs!B58,0,'(Other Computations)'!B208)","v":{"v":9719.172898720044,"d":"$9,719"}},{"$f":"NORMINV(RAND()*(1-2*Inputs!B58)+Inputs!B58,0,'(Other Computations)'!B208)","v":{"v":-16836.037029002553,"d":"($16,836)"}},{"$f":"NORMINV(RAND()*(1-2*Inputs!B58)+Inputs!B58,0,'(Other Computations)'!B208)","v":{"v":-40312.76743256026,"d":"($40,313)"}},{"$f":"NORMINV(RAND()*(1-2*Inputs!B58)+Inputs!B58,0,'(Other Computations)'!B208)","v":{"v":16020.381611093046,"d":"$16,020"}},{"$f":"NORMINV(RAND()*(1-2*Inputs!B58)+Inputs!B58,0,'(Other Computations)'!B208)","v":{"v":44541.7880164927,"d":"$44,542"}},{"$f":"SUM(AO13:AZ13)","v":{"v":-76779.92237026198,"d":"($76,780)"}},{"$f":"NORMINV(RAND()*(1-2*Inputs!B58)+Inputs!B58,0,'(Other Computations)'!B208)","v":{"v":-54345.37339104897,"d":"($54,345)"}},{"$f":"NORMINV(RAND()*(1-2*Inputs!B58)+Inputs!B58,0,'(Other Computations)'!B208)","v":{"v":-30562.76295898453,"d":"($30,563)"}},{"$f":"NORMINV(RAND()*(1-2*Inputs!B58)+Inputs!B58,0,'(Other Computations)'!B208)","v":{"v":-19592.889635443837,"d":"($19,593)"}},{"$f":"NORMINV(RAND()*(1-2*Inputs!B58)+Inputs!B58,0,'(Other Computations)'!B208)","v":{"v":-26611.537368077257,"d":"($26,612)"}},{"$f":"NORMINV(RAND()*(1-2*Inputs!B58)+Inputs!B58,0,'(Other Computations)'!B208)","v":{"v":-2367.598272324198,"d":"($2,368)"}},{"$f":"NORMINV(RAND()*(1-2*Inputs!B58)+Inputs!B58,0,'(Other Computations)'!B208)","v":{"v":12317.428140192142,"d":"$12,317"}},{"$f":"NORMINV(RAND()*(1-2*Inputs!B58)+Inputs!B58,0,'(Other Computations)'!B208)","v":{"v":29318.38879853643,"d":"$29,318"}},{"$f":"NORMINV(RAND()*(1-2*Inputs!B58)+Inputs!B58,0,'(Other Computations)'!B208)","v":{"v":-21778.23090514218,"d":"($21,778)"}},{"$f":"NORMINV(RAND()*(1-2*Inputs!B58)+Inputs!B58,0,'(Other Computations)'!B208)","v":{"v":48726.3499497053,"d":"$48,726"}},{"$f":"NORMINV(RAND()*(1-2*Inputs!B58)+Inputs!B58,0,'(Other Computations)'!B208)","v":{"v":11570.60932584684,"d":"$11,571"}},{"$f":"NORMINV(RAND()*(1-2*Inputs!B58)+Inputs!B58,0,'(Other Computations)'!B208)","v":{"v":-48999.61345239799,"d":"($49,000)"}},{"$f":"NORMINV(RAND()*(1-2*Inputs!B58)+Inputs!B58,0,'(Other Computations)'!B208)","v":{"v":12090.722162415776,"d":"$12,091"}},{"$f":"SUM(BB13:BM13)","v":{"v":-90234.50760672244,"d":"($90,235)"}},{"$f":"NORMINV(RAND()*(1-2*Inputs!B58)+Inputs!B58,0,'(Other Computations)'!B208)","v":{"v":-56240.64712610301,"d":"($56,241)"}},{"$f":"NORMINV(RAND()*(1-2*Inputs!B58)+Inputs!B58,0,'(Other Computations)'!B208)","v":{"v":-11918.223935382684,"d":"($11,918)"}},{"$f":"NORMINV(RAND()*(1-2*Inputs!B58)+Inputs!B58,0,'(Other Computations)'!B208)","v":{"v":-17665.873655235624,"d":"($17,666)"}},{"$f":"NORMINV(RAND()*(1-2*Inputs!B58)+Inputs!B58,0,'(Other Computations)'!B208)","v":{"v":-30075.79499979819,"d":"($30,076)"}},{"$f":"NORMINV(RAND()*(1-2*Inputs!B58)+Inputs!B58,0,'(Other Computations)'!B208)","v":{"v":-58066.000732462555,"d":"($58,066)"}},{"$f":"NORMINV(RAND()*(1-2*Inputs!B58)+Inputs!B58,0,'(Other Computations)'!B208)","v":{"v":32759.090035053607,"d":"$32,759"}},{"$f":"NORMINV(RAND()*(1-2*Inputs!B58)+Inputs!B58,0,'(Other Computations)'!B208)","v":{"v":1172.6082888424742,"d":"$1,173"}},{"$f":"NORMINV(RAND()*(1-2*Inputs!B58)+Inputs!B58,0,'(Other Computations)'!B208)","v":{"v":15639.87151646296,"d":"$15,640"}},{"$f":"NORMINV(RAND()*(1-2*Inputs!B58)+Inputs!B58,0,'(Other Computations)'!B208)","v":{"v":26087.04292114235,"d":"$26,087"}},{"$f":"NORMINV(RAND()*(1-2*Inputs!B58)+Inputs!B58,0,'(Other Computations)'!B208)","v":{"v":-28511.79581645341,"d":"($28,512)"}},{"$f":"NORMINV(RAND()*(1-2*Inputs!B58)+Inputs!B58,0,'(Other Computations)'!B208)","v":{"v":49327.04078108121,"d":"$49,327"}},{"$f":"NORMINV(RAND()*(1-2*Inputs!B58)+Inputs!B58,0,'(Other Computations)'!B208)","v":{"v":27926.32164996072,"d":"$27,926"}},{"$f":"SUM(BO13:BZ13)","v":{"v":-49566.361072892134,"d":"($49,566)"}},{"$f":"NORMINV(RAND()*(1-2*Inputs!B58)+Inputs!B58,0,'(Other Computations)'!B208)","v":{"v":2438.569267745031,"d":"$2,439"}},{"$f":"NORMINV(RAND()*(1-2*Inputs!B58)+Inputs!B58,0,'(Other Computations)'!B208)","v":{"v":-5684.566402668566,"d":"($5,685)"}},{"$f":"NORMINV(RAND()*(1-2*Inputs!B58)+Inputs!B58,0,'(Other Computations)'!B208)","v":{"v":50210.18730374657,"d":"$50,210"}},{"$f":"NORMINV(RAND()*(1-2*Inputs!B58)+Inputs!B58,0,'(Other Computations)'!B208)","v":{"v":-10385.173398587069,"d":"($10,385)"}},{"$f":"NORMINV(RAND()*(1-2*Inputs!B58)+Inputs!B58,0,'(Other Computations)'!B208)","v":{"v":-14704.69344795329,"d":"($14,705)"}},{"$f":"NORMINV(RAND()*(1-2*Inputs!B58)+Inputs!B58,0,'(Other Computations)'!B208)","v":{"v":26642.032432639604,"d":"$26,642"}},{"$f":"NORMINV(RAND()*(1-2*Inputs!B58)+Inputs!B58,0,'(Other Computations)'!B208)","v":{"v":24853.42244997575,"d":"$24,853"}},{"$f":"NORMINV(RAND()*(1-2*Inputs!B58)+Inputs!B58,0,'(Other Computations)'!B208)","v":{"v":38566.349187494394,"d":"$38,566"}},{"$f":"NORMINV(RAND()*(1-2*Inputs!B58)+Inputs!B58,0,'(Other Computations)'!B208)","v":{"v":2575.8284740574136,"d":"$2,576"}},{"$f":"NORMINV(RAND()*(1-2*Inputs!B58)+Inputs!B58,0,'(Other Computations)'!B208)","v":{"v":15448.595687772904,"d":"$15,449"}},{"$f":"NORMINV(RAND()*(1-2*Inputs!B58)+Inputs!B58,0,'(Other Computations)'!B208)","v":{"v":37376.343436795665,"d":"$37,376"}},{"$f":"NORMINV(RAND()*(1-2*Inputs!B58)+Inputs!B58,0,'(Other Computations)'!B208)","v":{"v":28597.584056028125,"d":"$28,598"}},{"$f":"SUM(CB13:CM13)","v":{"v":195934.47904704654,"d":"$195,934"}},{"$f":"NORMINV(RAND()*(1-2*Inputs!B58)+Inputs!B58,0,'(Other Computations)'!B208)","v":{"v":8836.268564771854,"d":"$8,836"}},{"$f":"NORMINV(RAND()*(1-2*Inputs!B58)+Inputs!B58,0,'(Other Computations)'!B208)","v":{"v":37329.600607423214,"d":"$37,330"}},{"$f":"NORMINV(RAND()*(1-2*Inputs!B58)+Inputs!B58,0,'(Other Computations)'!B208)","v":{"v":2654.704492591093,"d":"$2,655"}},{"$f":"NORMINV(RAND()*(1-2*Inputs!B58)+Inputs!B58,0,'(Other Computations)'!B208)","v":{"v":3700.679610744571,"d":"$3,701"}},{"$f":"NORMINV(RAND()*(1-2*Inputs!B58)+Inputs!B58,0,'(Other Computations)'!B208)","v":{"v":-25509.37639413494,"d":"($25,509)"}},{"$f":"NORMINV(RAND()*(1-2*Inputs!B58)+Inputs!B58,0,'(Other Computations)'!B208)","v":{"v":-21352.736505448316,"d":"($21,353)"}},{"$f":"NORMINV(RAND()*(1-2*Inputs!B58)+Inputs!B58,0,'(Other Computations)'!B208)","v":{"v":51945.80948682899,"d":"$51,946"}},{"$f":"NORMINV(RAND()*(1-2*Inputs!B58)+Inputs!B58,0,'(Other Computations)'!B208)","v":{"v":-32414.096578877325,"d":"($32,414)"}},{"$f":"NORMINV(RAND()*(1-2*Inputs!B58)+Inputs!B58,0,'(Other Computations)'!B208)","v":{"v":48872.10089119166,"d":"$48,872"}},{"$f":"NORMINV(RAND()*(1-2*Inputs!B58)+Inputs!B58,0,'(Other Computations)'!B208)","v":{"v":10841.289053415208,"d":"$10,841"}},{"$f":"NORMINV(RAND()*(1-2*Inputs!B58)+Inputs!B58,0,'(Other Computations)'!B208)","v":{"v":-25826.61790593002,"d":"($25,827)"}},{"$f":"NORMINV(RAND()*(1-2*Inputs!B58)+Inputs!B58,0,'(Other Computations)'!B208)","v":{"v":17443.08558626945,"d":"$17,443"}},{"$f":"SUM(CO13:CZ13)","v":{"v":76520.71090884545,"d":"$76,521"}},{"$f":"NORMINV(RAND()*(1-2*Inputs!B58)+Inputs!B58,0,'(Other Computations)'!B208)","v":{"v":21040.97589011136,"d":"$21,041"}},{"$f":"NORMINV(RAND()*(1-2*Inputs!B58)+Inputs!B58,0,'(Other Computations)'!B208)","v":{"v":-49875.363793351156,"d":"($49,875)"}},{"$f":"NORMINV(RAND()*(1-2*Inputs!B58)+Inputs!B58,0,'(Other Computations)'!B208)","v":{"v":-17096.25595580262,"d":"($17,096)"}},{"$f":"NORMINV(RAND()*(1-2*Inputs!B58)+Inputs!B58,0,'(Other Computations)'!B208)","v":{"v":676.2316876325374,"d":"$676"}},{"$f":"NORMINV(RAND()*(1-2*Inputs!B58)+Inputs!B58,0,'(Other Computations)'!B208)","v":{"v":-43769.510488587344,"d":"($43,770)"}},{"$f":"NORMINV(RAND()*(1-2*Inputs!B58)+Inputs!B58,0,'(Other Computations)'!B208)","v":{"v":-7651.597471580891,"d":"($7,652)"}},{"$f":"NORMINV(RAND()*(1-2*Inputs!B58)+Inputs!B58,0,'(Other Computations)'!B208)","v":{"v":-37253.046192794776,"d":"($37,253)"}},{"$f":"NORMINV(RAND()*(1-2*Inputs!B58)+Inputs!B58,0,'(Other Computations)'!B208)","v":{"v":-39906.00847651646,"d":"($39,906)"}},{"$f":"NORMINV(RAND()*(1-2*Inputs!B58)+Inputs!B58,0,'(Other Computations)'!B208)","v":{"v":-50704.38690591303,"d":"($50,704)"}},{"$f":"NORMINV(RAND()*(1-2*Inputs!B58)+Inputs!B58,0,'(Other Computations)'!B208)","v":{"v":5742.7231149288355,"d":"$5,743"}},{"$f":"NORMINV(RAND()*(1-2*Inputs!B58)+Inputs!B58,0,'(Other Computations)'!B208)","v":{"v":-26420.978384357128,"d":"($26,421)"}},{"$f":"NORMINV(RAND()*(1-2*Inputs!B58)+Inputs!B58,0,'(Other Computations)'!B208)","v":{"v":-11202.424837875826,"d":"($11,202)"}},{"$f":"SUM(DB13:DM13)","v":{"v":-256419.6418141065,"d":"($256,420)"}},{"$f":"NORMINV(RAND()*(1-2*Inputs!B58)+Inputs!B58,0,'(Other Computations)'!B208)","v":{"v":35494.73462627661,"d":"$35,495"}},{"$f":"NORMINV(RAND()*(1-2*Inputs!B58)+Inputs!B58,0,'(Other Computations)'!B208)","v":{"v":-22572.909633094783,"d":"($22,573)"}},{"$f":"NORMINV(RAND()*(1-2*Inputs!B58)+Inputs!B58,0,'(Other Computations)'!B208)","v":{"v":-19361.26796269074,"d":"($19,361)"}},{"$f":"NORMINV(RAND()*(1-2*Inputs!B58)+Inputs!B58,0,'(Other Computations)'!B208)","v":{"v":166.32412138013765,"d":"$166"}},{"$f":"NORMINV(RAND()*(1-2*Inputs!B58)+Inputs!B58,0,'(Other Computations)'!B208)","v":{"v":-5243.926350736339,"d":"($5,244)"}},{"$f":"NORMINV(RAND()*(1-2*Inputs!B58)+Inputs!B58,0,'(Other Computations)'!B208)","v":{"v":19790.650693293384,"d":"$19,791"}},{"$f":"NORMINV(RAND()*(1-2*Inputs!B58)+Inputs!B58,0,'(Other Computations)'!B208)","v":{"v":34206.14721473206,"d":"$34,206"}},{"$f":"NORMINV(RAND()*(1-2*Inputs!B58)+Inputs!B58,0,'(Other Computations)'!B208)","v":{"v":39774.68206610601,"d":"$39,775"}},{"$f":"NORMINV(RAND()*(1-2*Inputs!B58)+Inputs!B58,0,'(Other Computations)'!B208)","v":{"v":7088.237083882459,"d":"$7,088"}},{"$f":"NORMINV(RAND()*(1-2*Inputs!B58)+Inputs!B58,0,'(Other Computations)'!B208)","v":{"v":25718.725707004935,"d":"$25,719"}},{"$f":"NORMINV(RAND()*(1-2*Inputs!B58)+Inputs!B58,0,'(Other Computations)'!B208)","v":{"v":-6267.032067356863,"d":"($6,267)"}},{"$f":"NORMINV(RAND()*(1-2*Inputs!B58)+Inputs!B58,0,'(Other Computations)'!B208)","v":{"v":-2354.1277268188633,"d":"($2,354)"}},{"$f":"SUM(DO13:DZ13)","v":{"v":106440.237771978,"d":"$106,440"}},{"$f":"NORMINV(RAND()*(1-2*Inputs!B58)+Inputs!B58,0,'(Other Computations)'!B208)","v":{"v":34608.6645465008,"d":"$34,609"}},{"$f":"NORMINV(RAND()*(1-2*Inputs!B58)+Inputs!B58,0,'(Other Computations)'!B208)","v":{"v":1899.1234412860235,"d":"$1,899"}},{"$f":"NORMINV(RAND()*(1-2*Inputs!B58)+Inputs!B58,0,'(Other Computations)'!B208)","v":{"v":15970.428893360007,"d":"$15,970"}},{"$f":"NORMINV(RAND()*(1-2*Inputs!B58)+Inputs!B58,0,'(Other Computations)'!B208)","v":{"v":25251.942823339745,"d":"$25,252"}},{"$f":"NORMINV(RAND()*(1-2*Inputs!B58)+Inputs!B58,0,'(Other Computations)'!B208)","v":{"v":-391.99306743090614,"d":"($392)"}},{"$f":"NORMINV(RAND()*(1-2*Inputs!B58)+Inputs!B58,0,'(Other Computations)'!B208)","v":{"v":13830.755280814972,"d":"$13,831"}},{"$f":"NORMINV(RAND()*(1-2*Inputs!B58)+Inputs!B58,0,'(Other Computations)'!B208)","v":{"v":-639.3775377046401,"d":"($639)"}},{"$f":"NORMINV(RAND()*(1-2*Inputs!B58)+Inputs!B58,0,'(Other Computations)'!B208)","v":{"v":13022.25524516249,"d":"$13,022"}},{"$f":"NORMINV(RAND()*(1-2*Inputs!B58)+Inputs!B58,0,'(Other Computations)'!B208)","v":{"v":40131.384618030774,"d":"$40,131"}},{"$f":"NORMINV(RAND()*(1-2*Inputs!B58)+Inputs!B58,0,'(Other Computations)'!B208)","v":{"v":53152.741833969296,"d":"$53,153"}},{"$f":"NORMINV(RAND()*(1-2*Inputs!B58)+Inputs!B58,0,'(Other Computations)'!B208)","v":{"v":-36255.1164735614,"d":"($36,255)"}},{"$f":"NORMINV(RAND()*(1-2*Inputs!B58)+Inputs!B58,0,'(Other Computations)'!B208)","v":{"v":-17805.785150516247,"d":"($17,806)"}},{"$f":"SUM(EB13:EM13)","v":{"v":142775.02445325092,"d":"$142,775"}}]
[]
[]
[{"$f":"\"Capital\"","v":"Capital"}]
[{"$f":"\" \"","v":" "}]
[null,{"$f":"ZZZ__FnCalls!F7","v":"Jan 2010"},{"$f":"ZZZ__FnCalls!F8","v":"Feb 2010"},{"$f":"ZZZ__FnCalls!F9","v":"Mar 2010"},{"$f":"ZZZ__FnCalls!F10","v":"Apr 2010"},{"$f":"ZZZ__FnCalls!F11","v":"May 2010"},{"$f":"ZZZ__FnCalls!F12","v":"Jun 2010"},{"$f":"ZZZ__FnCalls!F13","v":"Jul 2010"},{"$f":"ZZZ__FnCalls!F14","v":"Aug 2010"},{"$f":"ZZZ__FnCalls!F15","v":"Sep 2010"},{"$f":"ZZZ__FnCalls!F16","v":"Oct 2010"},{"$f":"ZZZ__FnCalls!F17","v":"Nov 2010"},{"$f":"ZZZ__FnCalls!F18","v":"Dec 2010"},{"$f":"ZZZ__FnCalls!H7","v":"2010"},{"$f":"ZZZ__FnCalls!F19","v":"Jan 2011"},{"$f":"ZZZ__FnCalls!F20","v":"Feb 2011"},{"$f":"ZZZ__FnCalls!F21","v":"Mar 2011"},{"$f":"ZZZ__FnCalls!F22","v":"Apr 2011"},{"$f":"ZZZ__FnCalls!F23","v":"May 2011"},{"$f":"ZZZ__FnCalls!F24","v":"Jun 2011"},{"$f":"ZZZ__FnCalls!F25","v":"Jul 2011"},{"$f":"ZZZ__FnCalls!F26","v":"Aug 2011"},{"$f":"ZZZ__FnCalls!F27","v":"Sep 2011"},{"$f":"ZZZ__FnCalls!F28","v":"Oct 2011"},{"$f":"ZZZ__FnCalls!F29","v":"Nov 2011"},{"$f":"ZZZ__FnCalls!F30","v":"Dec 2011"},{"$f":"ZZZ__FnCalls!H19","v":"2011"},{"$f":"ZZZ__FnCalls!F31","v":"Jan 2012"},{"$f":"ZZZ__FnCalls!F32","v":"Feb 2012"},{"$f":"ZZZ__FnCalls!F33","v":"Mar 2012"},{"$f":"ZZZ__FnCalls!F34","v":"Apr 2012"},{"$f":"ZZZ__FnCalls!F35","v":"May 2012"},{"$f":"ZZZ__FnCalls!F36","v":"Jun 2012"},{"$f":"ZZZ__FnCalls!F37","v":"Jul 2012"},{"$f":"ZZZ__FnCalls!F38","v":"Aug 2012"},{"$f":"ZZZ__FnCalls!F39","v":"Sep 2012"},{"$f":"ZZZ__FnCalls!F40","v":"Oct 2012"},{"$f":"ZZZ__FnCalls!F41","v":"Nov 2012"},{"$f":"ZZZ__FnCalls!F42","v":"Dec 2012"},{"$f":"ZZZ__FnCalls!H31","v":"2012"},{"$f":"ZZZ__FnCalls!F43","v":"Jan 2013"},{"$f":"ZZZ__FnCalls!F44","v":"Feb 2013"},{"$f":"ZZZ__FnCalls!F45","v":"Mar 2013"},{"$f":"ZZZ__FnCalls!F46","v":"Apr 2013"},{"$f":"ZZZ__FnCalls!F47","v":"May 2013"},{"$f":"ZZZ__FnCalls!F48","v":"Jun 2013"},{"$f":"ZZZ__FnCalls!F49","v":"Jul 2013"},{"$f":"ZZZ__FnCalls!F50","v":"Aug 2013"},{"$f":"ZZZ__FnCalls!F51","v":"Sep 2013"},{"$f":"ZZZ__FnCalls!F52","v":"Oct 2013"},{"$f":"ZZZ__FnCalls!F53","v":"Nov 2013"},{"$f":"ZZZ__FnCalls!F54","v":"Dec 2013"},{"$f":"ZZZ__FnCalls!H43","v":"2013"},{"$f":"ZZZ__FnCalls!F55","v":"Jan 2014"},{"$f":"ZZZ__FnCalls!F56","v":"Feb 2014"},{"$f":"ZZZ__FnCalls!F57","v":"Mar 2014"},{"$f":"ZZZ__FnCalls!F58","v":"Apr 2014"},{"$f":"ZZZ__FnCalls!F59","v":"May 2014"},{"$f":"ZZZ__FnCalls!F60","v":"Jun 2014"},{"$f":"ZZZ__FnCalls!F61","v":"Jul 2014"},{"$f":"ZZZ__FnCalls!F62","v":"Aug 2014"},{"$f":"ZZZ__FnCalls!F63","v":"Sep 2014"},{"$f":"ZZZ__FnCalls!F64","v":"Oct 2014"},{"$f":"ZZZ__FnCalls!F65","v":"Nov 2014"},{"$f":"ZZZ__FnCalls!F66","v":"Dec 2014"},{"$f":"ZZZ__FnCalls!H55","v":"2014"},{"$f":"ZZZ__FnCalls!F67","v":"Jan 2015"},{"$f":"ZZZ__FnCalls!F68","v":"Feb 2015"},{"$f":"ZZZ__FnCalls!F69","v":"Mar 2015"},{"$f":"ZZZ__FnCalls!F70","v":"Apr 2015"},{"$f":"ZZZ__FnCalls!F71","v":"May 2015"},{"$f":"ZZZ__FnCalls!F72","v":"Jun 2015"},{"$f":"ZZZ__FnCalls!F73","v":"Jul 2015"},{"$f":"ZZZ__FnCalls!F74","v":"Aug 2015"},{"$f":"ZZZ__FnCalls!F75","v":"Sep 2015"},{"$f":"ZZZ__FnCalls!F76","v":"Oct 2015"},{"$f":"ZZZ__FnCalls!F77","v":"Nov 2015"},{"$f":"ZZZ__FnCalls!F78","v":"Dec 2015"},{"$f":"ZZZ__FnCalls!H67","v":"2015"},{"$f":"ZZZ__FnCalls!F79","v":"Jan 2016"},{"$f":"ZZZ__FnCalls!F80","v":"Feb 2016"},{"$f":"ZZZ__FnCalls!F81","v":"Mar 2016"},{"$f":"ZZZ__FnCalls!F82","v":"Apr 2016"},{"$f":"ZZZ__FnCalls!F83","v":"May 2016"},{"$f":"ZZZ__FnCalls!F84","v":"Jun 2016"},{"$f":"ZZZ__FnCalls!F85","v":"Jul 2016"},{"$f":"ZZZ__FnCalls!F86","v":"Aug 2016"},{"$f":"ZZZ__FnCalls!F87","v":"Sep 2016"},{"$f":"ZZZ__FnCalls!F88","v":"Oct 2016"},{"$f":"ZZZ__FnCalls!F89","v":"Nov 2016"},{"$f":"ZZZ__FnCalls!F90","v":"Dec 2016"},{"$f":"ZZZ__FnCalls!H79","v":"2016"},{"$f":"ZZZ__FnCalls!F91","v":"Jan 2017"},{"$f":"ZZZ__FnCalls!F92","v":"Feb 2017"},{"$f":"ZZZ__FnCalls!F93","v":"Mar 2017"},{"$f":"ZZZ__FnCalls!F94","v":"Apr 2017"},{"$f":"ZZZ__FnCalls!F95","v":"May 2017"},{"$f":"ZZZ__FnCalls!F96","v":"Jun 2017"},{"$f":"ZZZ__FnCalls!F97","v":"Jul 2017"},{"$f":"ZZZ__FnCalls!F98","v":"Aug 2017"},{"$f":"ZZZ__FnCalls!F99","v":"Sep 2017"},{"$f":"ZZZ__FnCalls!F100","v":"Oct 2017"},{"$f":"ZZZ__FnCalls!F101","v":"Nov 2017"},{"$f":"ZZZ__FnCalls!F102","v":"Dec 2017"},{"$f":"ZZZ__FnCalls!H91","v":"2017"},{"$f":"ZZZ__FnCalls!F103","v":"Jan 2018"},{"$f":"ZZZ__FnCalls!F104","v":"Feb 2018"},{"$f":"ZZZ__FnCalls!F105","v":"Mar 2018"},{"$f":"ZZZ__FnCalls!F106","v":"Apr 2018"},{"$f":"ZZZ__FnCalls!F107","v":"May 2018"},{"$f":"ZZZ__FnCalls!F108","v":"Jun 2018"},{"$f":"ZZZ__FnCalls!F109","v":"Jul 2018"},{"$f":"ZZZ__FnCalls!F110","v":"Aug 2018"},{"$f":"ZZZ__FnCalls!F111","v":"Sep 2018"},{"$f":"ZZZ__FnCalls!F112","v":"Oct 2018"},{"$f":"ZZZ__FnCalls!F113","v":"Nov 2018"},{"$f":"ZZZ__FnCalls!F114","v":"Dec 2018"},{"$f":"ZZZ__FnCalls!H103","v":"2018"},{"$f":"ZZZ__FnCalls!F115","v":"Jan 2019"},{"$f":"ZZZ__FnCalls!F116","v":"Feb 2019"},{"$f":"ZZZ__FnCalls!F117","v":"Mar 2019"},{"$f":"ZZZ__FnCalls!F118","v":"Apr 2019"},{"$f":"ZZZ__FnCalls!F119","v":"May 2019"},{"$f":"ZZZ__FnCalls!F120","v":"Jun 2019"},{"$f":"ZZZ__FnCalls!F121","v":"Jul 2019"},{"$f":"ZZZ__FnCalls!F122","v":"Aug 2019"},{"$f":"ZZZ__FnCalls!F123","v":"Sep 2019"},{"$f":"ZZZ__FnCalls!F124","v":"Oct 2019"},{"$f":"ZZZ__FnCalls!F125","v":"Nov 2019"},{"$f":"ZZZ__FnCalls!F126","v":"Dec 2019"},{"$f":"ZZZ__FnCalls!H115","v":"2019"},{"$f":"ZZZ__FnCalls!F127","v":"Jan 2020"},{"$f":"ZZZ__FnCalls!F128","v":"Feb 2020"},{"$f":"ZZZ__FnCalls!F129","v":"Mar 2020"},{"$f":"ZZZ__FnCalls!F130","v":"Apr 2020"},{"$f":"ZZZ__FnCalls!F131","v":"May 2020"},{"$f":"ZZZ__FnCalls!F132","v":"Jun 2020"},{"$f":"ZZZ__FnCalls!F133","v":"Jul 2020"},{"$f":"ZZZ__FnCalls!F134","v":"Aug 2020"},{"$f":"ZZZ__FnCalls!F135","v":"Sep 2020"},{"$f":"ZZZ__FnCalls!F136","v":"Oct 2020"},{"$f":"ZZZ__FnCalls!F137","v":"Nov 2020"},{"$f":"ZZZ__FnCalls!F138","v":"Dec 2020"},{"$f":"ZZZ__FnCalls!H127","v":"2020"}]
[{"$f":"Labels!B9","v":"Capital"},{"$f":"Inputs!B20*'(Other Computations)'!B8/(1/Inputs!B19/12+'(Other Computations)'!B144)","v":{"v":34645298.42192645,"d":"$34,645,298"}},{"$f":"B19+B21-B20","v":{"v":34645298.42192645,"d":"$34,645,298"}},{"v":34644923.822073504,"d":"$34,644,924"},{"v":34644056.48070203,"d":"$34,644,056"},{"v":34642885.09300985,"d":"$34,642,885"},{"v":34641450.20765154,"d":"$34,641,450"},{"v":34639698.007749036,"d":"$34,639,698"},{"v":34637558.322842166,"d":"$34,637,558"},{"v":34635078.67675367,"d":"$34,635,079"},{"v":34632266.19617874,"d":"$34,632,266"},{"v":34629204.555582665,"d":"$34,629,205"},{"v":34625835.80034882,"d":"$34,625,836"},{"$f":"M19","v":{"v":34625835.80034882,"d":"$34,625,836"}},{"$f":"M19+M21-M20","v":{"v":34622268.35430166,"d":"$34,622,268"}},{"$f":"O19+O21-O20","v":{"v":34618405.40718739,"d":"$34,618,405"}},{"v":34614339.63829779,"d":"$34,614,340"},{"v":34609977.52831908,"d":"$34,609,978"},{"v":34605427.47807583,"d":"$34,605,427"},{"v":34600667.956576295,"d":"$34,600,668"},{"v":34595543.56538346,"d":"$34,595,544"},{"v":34590151.73485268,"d":"$34,590,152"},{"v":34584557.286383085,"d":"$34,584,557"},{"v":34578681.72230701,"d":"$34,578,682"},{"v":34572546.938798964,"d":"$34,572,547"},{"v":34566213.835987076,"d":"$34,566,214"},{"$f":"Z19","v":{"v":34566213.835987076,"d":"$34,566,214"}},{"$f":"Z19+Z21-Z20","v":{"v":34559723.707526624,"d":"$34,559,724"}},{"$f":"AB19+AB21-AB20","v":{"v":34552961.09903787,"d":"$34,552,961"}},{"v":34546010.30439607,"d":"$34,546,010"},{"v":34538897.39392567,"d":"$34,538,897"},{"v":34531661.926067784,"d":"$34,531,662"},{"v":34524259.27706782,"d":"$34,524,259"},{"v":34516742.228068046,"d":"$34,516,742"},{"v":34509062.40029193,"d":"$34,509,062"},{"v":34501258.096675865,"d":"$34,501,258"},{"v":34493268.72451128,"d":"$34,493,269"},{"v":34485069.539071806,"d":"$34,485,070"},{"v":34476716.728028215,"d":"$34,476,717"},{"$f":"AM19","v":{"v":34476716.728028215,"d":"$34,476,717"}},{"$f":"AM19+AM21-AM20","v":{"v":34468265.48471156,"d":"$34,468,265"}},{"$f":"AO19+AO21-AO20","v":{"v":34459752.818181545,"d":"$34,459,753"}},{"v":34451107.94685546,"d":"$34,451,108"},{"v":34442297.78306675,"d":"$34,442,298"},{"v":34433306.1682469,"d":"$34,433,306"},{"v":34424185.427676834,"d":"$34,424,185"},{"v":34414909.161032766,"d":"$34,414,909"},{"v":34405457.87112853,"d":"$34,405,458"},{"v":34395773.81559365,"d":"$34,395,774"},{"v":34385985.374484174,"d":"$34,385,985"},{"v":34376044.74925988,"d":"$34,376,045"},{"v":34365911.30749636,"d":"$34,365,911"},{"$f":"AZ19","v":{"v":34365911.30749636,"d":"$34,365,911"}},{"$f":"AZ19+AZ21-AZ20","v":{"v":34355698.0190026,"d":"$34,355,698"}},{"$f":"BB19+BB21-BB20","v":{"v":34345461.565287665,"d":"$34,345,462"}},{"v":34335013.94714758,"d":"$34,335,014"},{"v":34324406.62815905,"d":"$34,324,407"},{"v":34313665.06692009,"d":"$34,313,665"},{"v":34302779.775289744,"d":"$34,302,780"},{"v":34291801.1093198,"d":"$34,291,801"},{"v":34280759.66065114,"d":"$34,280,760"},{"v":34269689.59870798,"d":"$34,269,690"},{"v":34258494.21569504,"d":"$34,258,494"},{"v":34247311.6686179,"d":"$34,247,312"},{"v":34236070.73271626,"d":"$34,236,071"},{"$f":"BM19","v":{"v":34236070.73271626,"d":"$34,236,071"}},{"$f":"BM19+BM21-BM20","v":{"v":34224657.4890297,"d":"$34,224,657"}},{"$f":"BO19+BO21-BO20","v":{"v":34213193.5541835,"d":"$34,213,194"}},{"v":34201549.85200753,"d":"$34,201,550"},{"v":34189816.107830636,"d":"$34,189,816"},{"v":34177984.01466641,"d":"$34,177,984"},{"v":34166032.66966442,"d":"$34,166,033"},{"v":34153912.01419839,"d":"$34,153,912"},{"v":34141800.387878224,"d":"$34,141,800"},{"v":34129637.37393055,"d":"$34,129,637"},{"v":34117452.05594607,"d":"$34,117,452"},{"v":34105265.12274018,"d":"$34,105,265"},{"v":34092972.51831625,"d":"$34,092,973"},{"$f":"BZ19","v":{"v":34092972.51831625,"d":"$34,092,973"}},{"$f":"BZ19+BZ21-BZ20","v":{"v":34080725.85194631,"d":"$34,080,726"}},{"$f":"CB19+CB21-CB20","v":{"v":34068483.08556624,"d":"$34,068,483"}},{"v":34056195.48044282,"d":"$34,056,195"},{"v":34043848.76439145,"d":"$34,043,849"},{"v":34031551.35532372,"d":"$34,031,551"},{"v":34019186.23269082,"d":"$34,019,186"},{"v":34006747.094163835,"d":"$34,006,747"},{"v":33994314.94416161,"d":"$33,994,315"},{"v":33981886.27945413,"d":"$33,981,886"},{"v":33969487.06539982,"d":"$33,969,487"},{"v":33957047.8672912,"d":"$33,957,048"},{"v":33944594.36112273,"d":"$33,944,594"},{"$f":"CM19","v":{"v":33944594.36112273,"d":"$33,944,594"}},{"$f":"CM19+CM21-CM20","v":{"v":33932168.961192146,"d":"$33,932,169"}},{"$f":"CO19+CO21-CO20","v":{"v":33919754.0216416,"d":"$33,919,754"}},{"v":33907311.45407148,"d":"$33,907,311"},{"v":33894896.50642208,"d":"$33,894,897"},{"v":33882442.0579311,"d":"$33,882,442"},{"v":33869951.082575746,"d":"$33,869,951"},{"v":33857368.94899254,"d":"$33,857,369"},{"v":33844706.247820854,"d":"$33,844,706"},{"v":33832105.22143594,"d":"$33,832,105"},{"v":33819403.17391226,"d":"$33,819,403"},{"v":33806758.257809445,"d":"$33,806,758"},{"v":33794096.23935769,"d":"$33,794,096"},{"$f":"CZ19","v":{"v":33794096.23935769,"d":"$33,794,096"}},{"$f":"CZ19+CZ21-CZ20","v":{"v":33781347.569807835,"d":"$33,781,348"}},{"$f":"DB19+DB21-DB20","v":{"v":33768597.42139226,"d":"$33,768,597"}},{"v":33755852.81485929,"d":"$33,755,853"},{"v":33742978.23747992,"d":"$33,742,978"},{"v":33730039.96757815,"d":"$33,730,040"},{"v":33717073.76923213,"d":"$33,717,074"},{"v":33703995.62674019,"d":"$33,703,996"},{"v":33690877.645343415,"d":"$33,690,878"},{"v":33677664.44225659,"d":"$33,677,664"},{"v":33664353.67400015,"d":"$33,664,354"},{"v":33650927.52314243,"d":"$33,650,928"},{"v":33637497.053980954,"d":"$33,637,497"},{"$f":"DM19","v":{"v":33637497.053980954,"d":"$33,637,497"}},{"$f":"DM19+DM21-DM20","v":{"v":33624001.13194871,"d":"$33,624,001"}},{"$f":"DO19+DO21-DO20","v":{"v":33610470.63338558,"d":"$33,610,471"}},{"v":33596995.75504492,"d":"$33,596,996"},{"v":33583464.177583344,"d":"$33,583,464"},{"v":33569883.62600103,"d":"$33,569,884"},{"v":33556292.873310216,"d":"$33,556,293"},{"v":33542681.98809288,"d":"$33,542,682"},{"v":33529099.443392757,"d":"$33,529,099"},{"v":33515572.015903294,"d":"$33,515,572"},{"v":33502108.955466956,"d":"$33,502,109"},{"v":33488646.020398237,"d":"$33,488,646"},{"v":33475218.803981837,"d":"$33,475,219"},{"$f":"DZ19","v":{"v":33475218.803981837,"d":"$33,475,219"}},{"$f":"DZ19+DZ21-DZ20","v":{"v":33461765.267154947,"d":"$33,461,765"}},{"$f":"EB19+EB21-EB20","v":{"v":33448293.760248914,"d":"$33,448,294"}},{"v":33434875.345837418,"d":"$33,434,875"},{"v":33421446.011690304,"d":"$33,421,446"},{"v":33408033.05381002,"d":"$33,408,033"},{"v":33394653.719981678,"d":"$33,394,654"},{"v":33381258.14066035,"d":"$33,381,258"},{"v":33367873.881030902,"d":"$33,367,874"},{"v":33354473.175149888,"d":"$33,354,473"},{"v":33341082.531947494,"d":"$33,341,083"},{"v":33327753.535098612,"d":"$33,327,754"},{"v":33314509.474009573,"d":"$33,314,509"},{"$f":"EM19","v":{"v":33314509.474009573,"d":"$33,314,509"}}]
[{"$f":"Labels!B11","v":"Capital Depreciation"},{"$f":"B22/Inputs!B19/12","v":{"v":206222.0144162289,"d":"$206,222"}},{"$f":"B19/Inputs!B19/12","v":{"v":206222.0144162289,"d":"$206,222"}},{"$f":"C19/Inputs!B19/12","v":{"v":206222.0144162289,"d":"$206,222"}},{"$f":"D19/Inputs!B19/12","v":{"v":206219.78465519942,"d":"$206,220"}},{"$f":"E19/Inputs!B19/12","v":{"v":206214.62190894064,"d":"$206,215"}},{"$f":"F19/Inputs!B19/12","v":{"v":206207.64936315388,"d":"$206,208"}},{"$f":"G19/Inputs!B19/12","v":{"v":206199.1083788782,"d":"$206,199"}},{"$f":"H19/Inputs!B19/12","v":{"v":206188.67861755379,"d":"$206,189"}},{"$f":"I19/Inputs!B19/12","v":{"v":206175.94239787004,"d":"$206,176"}},{"$f":"J19/Inputs!B19/12","v":{"v":206161.18259972424,"d":"$206,161"}},{"$f":"K19/Inputs!B19/12","v":{"v":206144.44164392108,"d":"$206,144"}},{"$f":"L19/Inputs!B19/12","v":{"v":206126.21759275396,"d":"$206,126"}},{"$f":"SUM(B20:M20)","v":{"v":2474303.670406682,"d":"$2,474,304"}},{"$f":"M19/Inputs!B19/12","v":{"v":206106.16547826678,"d":"$206,106"}},{"$f":"O19/Inputs!B19/12","v":{"v":206084.93068036705,"d":"$206,085"}},{"$f":"P19/Inputs!B19/12","v":{"v":206061.936947544,"d":"$206,062"}},{"$f":"Q19/Inputs!B19/12","v":{"v":206037.73594224875,"d":"$206,038"}},{"$f":"R19/Inputs!B19/12","v":{"v":206011.7710018993,"d":"$206,012"}},{"$f":"S19/Inputs!B19/12","v":{"v":205984.687369499,"d":"$205,985"}},{"$f":"T19/Inputs!B19/12","v":{"v":205956.3568843827,"d":"$205,956"}},{"$f":"U19/Inputs!B19/12","v":{"v":205925.8545558539,"d":"$205,926"}},{"$f":"V19/Inputs!B19/12","v":{"v":205893.76032650404,"d":"$205,894"}},{"$f":"W19/Inputs!B19/12","v":{"v":205860.46003799455,"d":"$205,860"}},{"$f":"X19/Inputs!B19/12","v":{"v":205825.48644230363,"d":"$205,825"}},{"$f":"Y19/Inputs!B19/12","v":{"v":205788.96987380335,"d":"$205,789"}},{"$f":"SUM(O20:Z20)","v":{"v":2471538.115540667,"d":"$2,471,538"}},{"$f":"Z19/Inputs!B19/12","v":{"v":205751.2728332564,"d":"$205,751"}},{"$f":"AB19/Inputs!B19/12","v":{"v":205712.6411162299,"d":"$205,713"}},{"$f":"AC19/Inputs!B19/12","v":{"v":205672.38749427305,"d":"$205,672"}},{"$f":"AD19/Inputs!B19/12","v":{"v":205631.0137166433,"d":"$205,631"}},{"$f":"AE19/Inputs!B19/12","v":{"v":205588.67496384328,"d":"$205,589"}},{"$f":"AF19/Inputs!B19/12","v":{"v":205545.60670278443,"d":"$205,546"}},{"$f":"AG19/Inputs!B19/12","v":{"v":205501.54331587988,"d":"$205,502"}},{"$f":"AH19/Inputs!B19/12","v":{"v":205456.7989765955,"d":"$205,457"}},{"$f":"AI19/Inputs!B19/12","v":{"v":205411.08571602337,"d":"$205,411"}},{"$f":"AJ19/Inputs!B19/12","v":{"v":205364.6315278325,"d":"$205,365"}},{"$f":"AK19/Inputs!B19/12","v":{"v":205317.07574113857,"d":"$205,317"}},{"$f":"AL19/Inputs!B19/12","v":{"v":205268.2710659036,"d":"$205,268"}},{"$f":"SUM(AB20:AM20)","v":{"v":2466221.0031704037,"d":"$2,466,221"}},{"$f":"AM19/Inputs!B19/12","v":{"v":205218.5519525489,"d":"$205,219"}},{"$f":"AO19/Inputs!B19/12","v":{"v":205168.24693280688,"d":"$205,168"}},{"$f":"AP19/Inputs!B19/12","v":{"v":205117.57629869969,"d":"$205,118"}},{"$f":"AQ19/Inputs!B19/12","v":{"v":205066.11873128254,"d":"$205,066"}},{"$f":"AR19/Inputs!B19/12","v":{"v":205013.67728015923,"d":"$205,014"}},{"$f":"AS19/Inputs!B19/12","v":{"v":204960.1557633744,"d":"$204,960"}},{"$f":"AT19/Inputs!B19/12","v":{"v":204905.86564093354,"d":"$204,906"}},{"$f":"AU19/Inputs!B19/12","v":{"v":204850.6497680522,"d":"$204,851"}},{"$f":"AV19/Inputs!B19/12","v":{"v":204794.39209005077,"d":"$204,794"}},{"$f":"AW19/Inputs!B19/12","v":{"v":204736.74890234318,"d":"$204,737"}},{"$f":"AX19/Inputs!B19/12","v":{"v":204678.48437192963,"d":"$204,678"}},{"$f":"AY19/Inputs!B19/12","v":{"v":204619.31398368976,"d":"$204,619"}},{"$f":"SUM(AO20:AZ20)","v":{"v":2459129.781715871,"d":"$2,459,130"}},{"$f":"AZ19/Inputs!B19/12","v":{"v":204558.99587795453,"d":"$204,559"}},{"$f":"BB19/Inputs!B19/12","v":{"v":204498.2024940631,"d":"$204,498"}},{"$f":"BC19/Inputs!B19/12","v":{"v":204437.2712219504,"d":"$204,437"}},{"$f":"BD19/Inputs!B19/12","v":{"v":204375.0830187356,"d":"$204,375"}},{"$f":"BE19/Inputs!B19/12","v":{"v":204311.94421523248,"d":"$204,312"}},{"$f":"BF19/Inputs!B19/12","v":{"v":204248.0063507148,"d":"$204,248"}},{"$f":"BG19/Inputs!B19/12","v":{"v":204183.21294815323,"d":"$204,183"}},{"$f":"BH19/Inputs!B19/12","v":{"v":204117.86374595118,"d":"$204,118"}},{"$f":"BI19/Inputs!B19/12","v":{"v":204052.14083720918,"d":"$204,052"}},{"$f":"BJ19/Inputs!B19/12","v":{"v":203986.24761135702,"d":"$203,986"}},{"$f":"BK19/Inputs!B19/12","v":{"v":203919.6084267562,"d":"$203,920"}},{"$f":"BL19/Inputs!B19/12","v":{"v":203853.04564653512,"d":"$203,853"}},{"$f":"SUM(BB20:BM20)","v":{"v":2450541.622394613,"d":"$2,450,542"}},{"$f":"BM19/Inputs!B19/12","v":{"v":203786.13531378726,"d":"$203,786"}},{"$f":"BO19/Inputs!B19/12","v":{"v":203718.19933946247,"d":"$203,718"}},{"$f":"BP19/Inputs!B19/12","v":{"v":203649.96163204464,"d":"$203,650"}},{"$f":"BQ19/Inputs!B19/12","v":{"v":203580.6538809972,"d":"$203,581"}},{"$f":"BR19/Inputs!B19/12","v":{"v":203510.81016565856,"d":"$203,511"}},{"$f":"BS19/Inputs!B19/12","v":{"v":203440.381039681,"d":"$203,440"}},{"$f":"BT19/Inputs!B19/12","v":{"v":203369.24208133583,"d":"$203,369"}},{"$f":"BU19/Inputs!B19/12","v":{"v":203297.0953226095,"d":"$203,297"}},{"$f":"BV19/Inputs!B19/12","v":{"v":203225.00230879895,"d":"$203,225"}},{"$f":"BW19/Inputs!B19/12","v":{"v":203152.60341625326,"d":"$203,153"}},{"$f":"BX19/Inputs!B19/12","v":{"v":203080.0717615837,"d":"$203,080"}},{"$f":"BY19/Inputs!B19/12","v":{"v":203007.53049250107,"d":"$203,008"}},{"$f":"SUM(BO20:BZ20)","v":{"v":2440817.6867547133,"d":"$2,440,818"}},{"$f":"BZ19/Inputs!B19/12","v":{"v":202934.36022807288,"d":"$202,934"}},{"$f":"CB19/Inputs!B19/12","v":{"v":202861.4634044423,"d":"$202,861"}},{"$f":"CC19/Inputs!B19/12","v":{"v":202788.58979503714,"d":"$202,789"}},{"$f":"CD19/Inputs!B19/12","v":{"v":202715.44928835015,"d":"$202,715"}},{"$f":"CE19/Inputs!B19/12","v":{"v":202641.9569309015,"d":"$202,642"}},{"$f":"CF19/Inputs!B19/12","v":{"v":202568.75806740308,"d":"$202,569"}},{"$f":"CG19/Inputs!B19/12","v":{"v":202495.15614696915,"d":"$202,495"}},{"$f":"CH19/Inputs!B19/12","v":{"v":202421.1136557371,"d":"$202,421"}},{"$f":"CI19/Inputs!B19/12","v":{"v":202347.11276286675,"d":"$202,347"}},{"$f":"CJ19/Inputs!B19/12","v":{"v":202273.1326157984,"d":"$202,273"}},{"$f":"CK19/Inputs!B19/12","v":{"v":202199.327770237,"d":"$202,199"}},{"$f":"CL19/Inputs!B19/12","v":{"v":202125.28492435234,"d":"$202,125"}},{"$f":"SUM(CB20:CM20)","v":{"v":2430371.705590168,"d":"$2,430,372"}},{"$f":"CM19/Inputs!B19/12","v":{"v":202051.15691144482,"d":"$202,051"}},{"$f":"CO19/Inputs!B19/12","v":{"v":201977.19619757228,"d":"$201,977"}},{"$f":"CP19/Inputs!B19/12","v":{"v":201903.29774786663,"d":"$201,903"}},{"$f":"CQ19/Inputs!B19/12","v":{"v":201829.23484566354,"d":"$201,829"}},{"$f":"CR19/Inputs!B19/12","v":{"v":201755.33634775048,"d":"$201,755"}},{"$f":"CS19/Inputs!B19/12","v":{"v":201681.2027257804,"d":"$201,681"}},{"$f":"CT19/Inputs!B19/12","v":{"v":201606.8516819985,"d":"$201,607"}},{"$f":"CU19/Inputs!B19/12","v":{"v":201531.95802971753,"d":"$201,532"}},{"$f":"CV19/Inputs!B19/12","v":{"v":201456.58480845744,"d":"$201,457"}},{"$f":"CW19/Inputs!B19/12","v":{"v":201381.57869902346,"d":"$201,382"}},{"$f":"CX19/Inputs!B19/12","v":{"v":201305.97127328723,"d":"$201,306"}},{"$f":"CY19/Inputs!B19/12","v":{"v":201230.70391553242,"d":"$201,231"}},{"$f":"SUM(CO20:CZ20)","v":{"v":2419711.0731840944,"d":"$2,419,711"}},{"$f":"CZ19/Inputs!B19/12","v":{"v":201155.33475808147,"d":"$201,155"}},{"$f":"DB19/Inputs!B19/12","v":{"v":201079.44982028473,"d":"$201,079"}},{"$f":"DC19/Inputs!B19/12","v":{"v":201003.55607971584,"d":"$201,004"}},{"$f":"DD19/Inputs!B19/12","v":{"v":200927.6953265434,"d":"$200,928"}},{"$f":"DE19/Inputs!B19/12","v":{"v":200851.06093738045,"d":"$200,851"}},{"$f":"DF19/Inputs!B19/12","v":{"v":200774.04742606042,"d":"$200,774"}},{"$f":"DG19/Inputs!B19/12","v":{"v":200696.8676740008,"d":"$200,697"}},{"$f":"DH19/Inputs!B19/12","v":{"v":200619.0215877392,"d":"$200,619"}},{"$f":"DI19/Inputs!B19/12","v":{"v":200540.9383651394,"d":"$200,541"}},{"$f":"DJ19/Inputs!B19/12","v":{"v":200462.28834676545,"d":"$200,462"}},{"$f":"DK19/Inputs!B19/12","v":{"v":200383.05758333424,"d":"$200,383"}},{"$f":"DL19/Inputs!B19/12","v":{"v":200303.14001870493,"d":"$200,303"}},{"$f":"SUM(DB20:DM20)","v":{"v":2408796.4579237504,"d":"$2,408,796"}},{"$f":"DM19/Inputs!B19/12","v":{"v":200223.1967498866,"d":"$200,223"}},{"$f":"DO19/Inputs!B19/12","v":{"v":200142.86388064708,"d":"$200,143"}},{"$f":"DP19/Inputs!B19/12","v":{"v":200062.32519872367,"d":"$200,062"}},{"$f":"DQ19/Inputs!B19/12","v":{"v":199982.11758955312,"d":"$199,982"}},{"$f":"DR19/Inputs!B19/12","v":{"v":199901.57248561515,"d":"$199,902"}},{"$f":"DS19/Inputs!B19/12","v":{"v":199820.73586905375,"d":"$199,821"}},{"$f":"DT19/Inputs!B19/12","v":{"v":199739.83853160843,"d":"$199,740"}},{"$f":"DU19/Inputs!B19/12","v":{"v":199658.82135769574,"d":"$199,659"}},{"$f":"DV19/Inputs!B19/12","v":{"v":199577.97287733783,"d":"$199,578"}},{"$f":"DW19/Inputs!B19/12","v":{"v":199497.45247561485,"d":"$199,497"}},{"$f":"DX19/Inputs!B19/12","v":{"v":199417.31521111284,"d":"$199,417"}},{"$f":"DY19/Inputs!B19/12","v":{"v":199337.17869284665,"d":"$199,337"}},{"$f":"SUM(DO20:DZ20)","v":{"v":2397361.3909196956,"d":"$2,397,361"}},{"$f":"DZ19/Inputs!B19/12","v":{"v":199257.25478560617,"d":"$199,257"}},{"$f":"EB19/Inputs!B19/12","v":{"v":199177.17420925564,"d":"$199,177"}},{"$f":"EC19/Inputs!B19/12","v":{"v":199096.9866681483,"d":"$199,097"}},{"$f":"ED19/Inputs!B19/12","v":{"v":199017.11515379415,"d":"$199,017"}},{"$f":"EE19/Inputs!B19/12","v":{"v":198937.1786410137,"d":"$198,937"}},{"$f":"EF19/Inputs!B19/12","v":{"v":198857.339606012,"d":"$198,857"}},{"$f":"EG19/Inputs!B19/12","v":{"v":198777.70071417664,"d":"$198,778"}},{"$f":"EH19/Inputs!B19/12","v":{"v":198697.9651229783,"d":"$198,698"}},{"$f":"EI19/Inputs!B19/12","v":{"v":198618.2969108982,"d":"$198,618"}},{"$f":"EJ19/Inputs!B19/12","v":{"v":198538.53080446363,"d":"$198,539"}},{"$f":"EK19/Inputs!B19/12","v":{"v":198458.82459492554,"d":"$198,459"}},{"$f":"EL19/Inputs!B19/12","v":{"v":198379.48532796794,"d":"$198,379"}},{"$f":"SUM(EB20:EM20)","v":{"v":2385813.8525392404,"d":"$2,385,814"}}]
[{"$f":"Labels!B19","v":"Capital Investment"},{"$f":"B20+(B22-B19)/Inputs!B22/12","v":{"v":206222.0144162289,"d":"$206,222"}},{"$f":"C20+(C22-C19)/Inputs!B22/12","v":{"v":205847.4145632789,"d":"$205,847"}},{"$f":"D20+(D22-D19)/Inputs!B22/12","v":{"v":205354.6730447456,"d":"$205,355"}},{"$f":"E20+(E22-E19)/Inputs!B22/12","v":{"v":205048.3969630201,"d":"$205,048"}},{"$f":"F20+(F22-F19)/Inputs!B22/12","v":{"v":204779.73655062608,"d":"$204,780"}},{"$f":"G20+(G22-G19)/Inputs!B22/12","v":{"v":204455.44946065146,"d":"$204,455"}},{"$f":"H20+(H22-H19)/Inputs!B22/12","v":{"v":204059.42347200934,"d":"$204,059"}},{"$f":"I20+(I22-I19)/Inputs!B22/12","v":{"v":203709.03252905855,"d":"$203,709"}},{"$f":"J20+(J22-J19)/Inputs!B22/12","v":{"v":203363.4618229389,"d":"$203,363"}},{"$f":"K20+(K22-K19)/Inputs!B22/12","v":{"v":203099.54200364614,"d":"$203,100"}},{"$f":"L20+(L22-L19)/Inputs!B22/12","v":{"v":202775.6864100786,"d":"$202,776"}},{"$f":"M20+(M22-M19)/Inputs!B22/12","v":{"v":202558.77154559732,"d":"$202,559"}},{"$f":"SUM(B21:M21)","v":{"v":2451273.60278188,"d":"$2,451,274"}},{"$f":"O20+(O22-O19)/Inputs!B22/12","v":{"v":202243.21836399578,"d":"$202,243"}},{"$f":"P20+(P22-P19)/Inputs!B22/12","v":{"v":202019.16179076745,"d":"$202,019"}},{"$f":"Q20+(Q22-Q19)/Inputs!B22/12","v":{"v":201699.82696883916,"d":"$201,700"}},{"$f":"R20+(R22-R19)/Inputs!B22/12","v":{"v":201487.68569900125,"d":"$201,488"}},{"$f":"S20+(S22-S19)/Inputs!B22/12","v":{"v":201252.24950236423,"d":"$201,252"}},{"$f":"T20+(T22-T19)/Inputs!B22/12","v":{"v":200860.29617665964,"d":"$200,860"}},{"$f":"U20+(U22-U19)/Inputs!B22/12","v":{"v":200564.52635360285,"d":"$200,565"}},{"$f":"V20+(V22-V19)/Inputs!B22/12","v":{"v":200331.40608625626,"d":"$200,331"}},{"$f":"W20+(W22-W19)/Inputs!B22/12","v":{"v":200018.1962504341,"d":"$200,018"}},{"$f":"X20+(X22-X19)/Inputs!B22/12","v":{"v":199725.67652994397,"d":"$199,726"}},{"$f":"Y20+(Y22-Y19)/Inputs!B22/12","v":{"v":199492.38363041804,"d":"$199,492"}},{"$f":"Z20+(Z22-Z19)/Inputs!B22/12","v":{"v":199298.841413352,"d":"$199,299"}},{"$f":"SUM(O21:Z21)","v":{"v":2408993.468765635,"d":"$2,408,993"}},{"$f":"AB20+(AB22-AB19)/Inputs!B22/12","v":{"v":198988.6643445009,"d":"$198,989"}},{"$f":"AC20+(AC22-AC19)/Inputs!B22/12","v":{"v":198761.84647443422,"d":"$198,762"}},{"$f":"AD20+(AD22-AD19)/Inputs!B22/12","v":{"v":198559.4770238687,"d":"$198,559"}},{"$f":"AE20+(AE22-AE19)/Inputs!B22/12","v":{"v":198395.5458587663,"d":"$198,396"}},{"$f":"AF20+(AF22-AF19)/Inputs!B22/12","v":{"v":198186.02596388137,"d":"$198,186"}},{"$f":"AG20+(AG22-AG19)/Inputs!B22/12","v":{"v":198028.55770301088,"d":"$198,029"}},{"$f":"AH20+(AH22-AH19)/Inputs!B22/12","v":{"v":197821.7155397581,"d":"$197,822"}},{"$f":"AI20+(AI22-AI19)/Inputs!B22/12","v":{"v":197652.49536052998,"d":"$197,652"}},{"$f":"AJ20+(AJ22-AJ19)/Inputs!B22/12","v":{"v":197421.71355143847,"d":"$197,422"}},{"$f":"AK20+(AK22-AK19)/Inputs!B22/12","v":{"v":197165.44608835658,"d":"$197,165"}},{"$f":"AL20+(AL22-AL19)/Inputs!B22/12","v":{"v":196964.2646975524,"d":"$196,964"}},{"$f":"AM20+(AM22-AM19)/Inputs!B22/12","v":{"v":196817.0277492443,"d":"$196,817"}},{"$f":"SUM(AB21:AM21)","v":{"v":2374762.780355342,"d":"$2,374,763"}},{"$f":"AO20+(AO22-AO19)/Inputs!B22/12","v":{"v":196705.8854225325,"d":"$196,706"}},{"$f":"AP20+(AP22-AP19)/Inputs!B22/12","v":{"v":196523.37560672648,"d":"$196,523"}},{"$f":"AQ20+(AQ22-AQ19)/Inputs!B22/12","v":{"v":196307.41250998742,"d":"$196,307"}},{"$f":"AR20+(AR22-AR19)/Inputs!B22/12","v":{"v":196074.5039114363,"d":"$196,075"}},{"$f":"AS20+(AS22-AS19)/Inputs!B22/12","v":{"v":195892.93671009128,"d":"$195,893"}},{"$f":"AT20+(AT22-AT19)/Inputs!B22/12","v":{"v":195683.889119302,"d":"$195,684"}},{"$f":"AU20+(AU22-AU19)/Inputs!B22/12","v":{"v":195454.5757366953,"d":"$195,455"}},{"$f":"AV20+(AV22-AV19)/Inputs!B22/12","v":{"v":195166.59423317923,"d":"$195,167"}},{"$f":"AW20+(AW22-AW19)/Inputs!B22/12","v":{"v":195005.95098057663,"d":"$195,006"}},{"$f":"AX20+(AX22-AX19)/Inputs!B22/12","v":{"v":194796.12367804945,"d":"$194,796"}},{"$f":"AY20+(AY22-AY19)/Inputs!B22/12","v":{"v":194545.0426084129,"d":"$194,545"}},{"$f":"AZ20+(AZ22-AZ19)/Inputs!B22/12","v":{"v":194406.02548992736,"d":"$194,406"}},{"$f":"SUM(AO21:AZ21)","v":{"v":2346562.3160069166,"d":"$2,346,562"}},{"$f":"BB20+(BB22-BB19)/Inputs!B22/12","v":{"v":194322.54216301156,"d":"$194,323"}},{"$f":"BC20+(BC22-BC19)/Inputs!B22/12","v":{"v":194050.5843539741,"d":"$194,051"}},{"$f":"BD20+(BD22-BD19)/Inputs!B22/12","v":{"v":193829.9522334254,"d":"$193,830"}},{"$f":"BE20+(BE22-BE19)/Inputs!B22/12","v":{"v":193633.52177976893,"d":"$193,634"}},{"$f":"BF20+(BF22-BF19)/Inputs!B22/12","v":{"v":193426.6525848872,"d":"$193,427"}},{"$f":"BG20+(BG22-BG19)/Inputs!B22/12","v":{"v":193269.34038077138,"d":"$193,269"}},{"$f":"BH20+(BH22-BH19)/Inputs!B22/12","v":{"v":193141.7642794939,"d":"$193,142"}},{"$f":"BI20+(BI22-BI19)/Inputs!B22/12","v":{"v":193047.80180278834,"d":"$193,048"}},{"$f":"BJ20+(BJ22-BJ19)/Inputs!B22/12","v":{"v":192856.75782426662,"d":"$192,857"}},{"$f":"BK20+(BK22-BK19)/Inputs!B22/12","v":{"v":192803.70053421738,"d":"$192,804"}},{"$f":"BL20+(BL22-BL19)/Inputs!B22/12","v":{"v":192678.6725251214,"d":"$192,679"}},{"$f":"BM20+(BM22-BM19)/Inputs!B22/12","v":{"v":192439.8019599721,"d":"$192,440"}},{"$f":"SUM(BB21:BM21)","v":{"v":2319501.092421698,"d":"$2,319,501"}},{"$f":"BO20+(BO22-BO19)/Inputs!B22/12","v":{"v":192322.20046758535,"d":"$192,322"}},{"$f":"BP20+(BP22-BP19)/Inputs!B22/12","v":{"v":192074.49716349508,"d":"$192,074"}},{"$f":"BQ20+(BQ22-BQ19)/Inputs!B22/12","v":{"v":191916.21745514753,"d":"$191,916"}},{"$f":"BR20+(BR22-BR19)/Inputs!B22/12","v":{"v":191748.5607167691,"d":"$191,749"}},{"$f":"BS20+(BS22-BS19)/Inputs!B22/12","v":{"v":191559.4651636694,"d":"$191,559"}},{"$f":"BT20+(BT22-BT19)/Inputs!B22/12","v":{"v":191319.72557365263,"d":"$191,320"}},{"$f":"BU20+(BU22-BU19)/Inputs!B22/12","v":{"v":191257.6157611654,"d":"$191,258"}},{"$f":"BV20+(BV22-BV19)/Inputs!B22/12","v":{"v":191134.08137493717,"d":"$191,134"}},{"$f":"BW20+(BW22-BW19)/Inputs!B22/12","v":{"v":191039.68432431773,"d":"$191,040"}},{"$f":"BX20+(BX22-BX19)/Inputs!B22/12","v":{"v":190965.67021036704,"d":"$190,966"}},{"$f":"BY20+(BY22-BY19)/Inputs!B22/12","v":{"v":190787.46733765057,"d":"$190,787"}},{"$f":"BZ20+(BZ22-BZ19)/Inputs!B22/12","v":{"v":190760.86412256124,"d":"$190,761"}},{"$f":"SUM(BO21:BZ21)","v":{"v":2296886.0496713184,"d":"$2,296,886"}},{"$f":"CB20+(CB22-CB19)/Inputs!B22/12","v":{"v":190691.59384800415,"d":"$190,692"}},{"$f":"CC20+(CC22-CC19)/Inputs!B22/12","v":{"v":190573.85828102153,"d":"$190,574"}},{"$f":"CD20+(CD22-CD19)/Inputs!B22/12","v":{"v":190441.87374366517,"d":"$190,442"}},{"$f":"CE20+(CE22-CE19)/Inputs!B22/12","v":{"v":190418.0402206186,"d":"$190,418"}},{"$f":"CF20+(CF22-CF19)/Inputs!B22/12","v":{"v":190276.83429800085,"d":"$190,277"}},{"$f":"CG20+(CG22-CG19)/Inputs!B22/12","v":{"v":190129.6195404247,"d":"$190,130"}},{"$f":"CH20+(CH22-CH19)/Inputs!B22/12","v":{"v":190063.0061447394,"d":"$190,063"}},{"$f":"CI20+(CI22-CI19)/Inputs!B22/12","v":{"v":189992.44894825917,"d":"$189,992"}},{"$f":"CJ20+(CJ22-CJ19)/Inputs!B22/12","v":{"v":189947.89870855832,"d":"$189,948"}},{"$f":"CK20+(CK22-CK19)/Inputs!B22/12","v":{"v":189833.93450717704,"d":"$189,834"}},{"$f":"CL20+(CL22-CL19)/Inputs!B22/12","v":{"v":189745.8216017728,"d":"$189,746"}},{"$f":"CM20+(CM22-CM19)/Inputs!B22/12","v":{"v":189699.88499376996,"d":"$189,700"}},{"$f":"SUM(CB21:CM21)","v":{"v":2281814.814836012,"d":"$2,281,815"}},{"$f":"CO20+(CO22-CO19)/Inputs!B22/12","v":{"v":189636.2173608957,"d":"$189,636"}},{"$f":"CP20+(CP22-CP19)/Inputs!B22/12","v":{"v":189534.6286274464,"d":"$189,535"}},{"$f":"CQ20+(CQ22-CQ19)/Inputs!B22/12","v":{"v":189488.35009846583,"d":"$189,488"}},{"$f":"CR20+(CR22-CR19)/Inputs!B22/12","v":{"v":189374.78635468078,"d":"$189,375"}},{"$f":"CS20+(CS22-CS19)/Inputs!B22/12","v":{"v":189264.3609923956,"d":"$189,264"}},{"$f":"CT20+(CT22-CT19)/Inputs!B22/12","v":{"v":189099.06914257724,"d":"$189,099"}},{"$f":"CU20+(CU22-CU19)/Inputs!B22/12","v":{"v":188944.15051031296,"d":"$188,944"}},{"$f":"CV20+(CV22-CV19)/Inputs!B22/12","v":{"v":188930.93164480707,"d":"$188,931"}},{"$f":"CW20+(CW22-CW19)/Inputs!B22/12","v":{"v":188754.53728476766,"d":"$188,755"}},{"$f":"CX20+(CX22-CX19)/Inputs!B22/12","v":{"v":188736.66259621197,"d":"$188,737"}},{"$f":"CY20+(CY22-CY19)/Inputs!B22/12","v":{"v":188643.95282153177,"d":"$188,644"}},{"$f":"CZ20+(CZ22-CZ19)/Inputs!B22/12","v":{"v":188482.0343656734,"d":"$188,482"}},{"$f":"SUM(CO21:CZ21)","v":{"v":2268889.6817997666,"d":"$2,268,890"}},{"$f":"DB20+(DB22-DB19)/Inputs!B22/12","v":{"v":188405.18634250987,"d":"$188,405"}},{"$f":"DC20+(DC22-DC19)/Inputs!B22/12","v":{"v":188334.84328731883,"d":"$188,335"}},{"$f":"DD20+(DD22-DD19)/Inputs!B22/12","v":{"v":188128.9787003416,"d":"$188,129"}},{"$f":"DE20+(DE22-DE19)/Inputs!B22/12","v":{"v":187989.42542477924,"d":"$187,989"}},{"$f":"DF20+(DF22-DF19)/Inputs!B22/12","v":{"v":187884.8625913627,"d":"$187,885"}},{"$f":"DG20+(DG22-DG19)/Inputs!B22/12","v":{"v":187695.9049341192,"d":"$187,696"}},{"$f":"DH20+(DH22-DH19)/Inputs!B22/12","v":{"v":187578.8862772257,"d":"$187,579"}},{"$f":"DI20+(DI22-DI19)/Inputs!B22/12","v":{"v":187405.81850091205,"d":"$187,406"}},{"$f":"DJ20+(DJ22-DJ19)/Inputs!B22/12","v":{"v":187230.17010869624,"d":"$187,230"}},{"$f":"DK20+(DK22-DK19)/Inputs!B22/12","v":{"v":187036.13748904553,"d":"$187,036"}},{"$f":"DL20+(DL22-DL19)/Inputs!B22/12","v":{"v":186952.58842185928,"d":"$186,953"}},{"$f":"DM20+(DM22-DM19)/Inputs!B22/12","v":{"v":186807.21798646063,"d":"$186,807"}},{"$f":"SUM(DB21:DM21)","v":{"v":2251450.020064631,"d":"$2,251,450"}},{"$f":"DO20+(DO22-DO19)/Inputs!B22/12","v":{"v":186692.6981867525,"d":"$186,693"}},{"$f":"DP20+(DP22-DP19)/Inputs!B22/12","v":{"v":186667.98553999455,"d":"$186,668"}},{"$f":"DQ20+(DQ22-DQ19)/Inputs!B22/12","v":{"v":186530.74773714325,"d":"$186,531"}},{"$f":"DR20+(DR22-DR19)/Inputs!B22/12","v":{"v":186401.56600724475,"d":"$186,402"}},{"$f":"DS20+(DS22-DS19)/Inputs!B22/12","v":{"v":186310.81979480383,"d":"$186,311"}},{"$f":"DT20+(DT22-DT19)/Inputs!B22/12","v":{"v":186209.8506517167,"d":"$186,210"}},{"$f":"DU20+(DU22-DU19)/Inputs!B22/12","v":{"v":186157.2938314896,"d":"$186,157"}},{"$f":"DV20+(DV22-DV19)/Inputs!B22/12","v":{"v":186131.39386823343,"d":"$186,131"}},{"$f":"DW20+(DW22-DW19)/Inputs!B22/12","v":{"v":186114.91244099996,"d":"$186,115"}},{"$f":"DX20+(DX22-DX19)/Inputs!B22/12","v":{"v":186034.5174068942,"d":"$186,035"}},{"$f":"DY20+(DY22-DY19)/Inputs!B22/12","v":{"v":185990.0987947123,"d":"$185,990"}},{"$f":"DZ20+(DZ22-DZ19)/Inputs!B22/12","v":{"v":185883.64186595523,"d":"$185,884"}},{"$f":"SUM(DO21:DZ21)","v":{"v":2235125.52612594,"d":"$2,235,126"}},{"$f":"EB20+(EB22-EB19)/Inputs!B22/12","v":{"v":185785.74787957256,"d":"$185,786"}},{"$f":"EC20+(EC22-EC19)/Inputs!B22/12","v":{"v":185758.75979776226,"d":"$185,759"}},{"$f":"ED20+(ED22-ED19)/Inputs!B22/12","v":{"v":185667.6525210338,"d":"$185,668"}},{"$f":"EE20+(EE22-EE19)/Inputs!B22/12","v":{"v":185604.15727350992,"d":"$185,604"}},{"$f":"EF20+(EF22-EF19)/Inputs!B22/12","v":{"v":185557.8448126691,"d":"$185,558"}},{"$f":"EG20+(EG22-EG19)/Inputs!B22/12","v":{"v":185461.7602846845,"d":"$185,462"}},{"$f":"EH20+(EH22-EH19)/Inputs!B22/12","v":{"v":185393.44108473303,"d":"$185,393"}},{"$f":"EI20+(EI22-EI19)/Inputs!B22/12","v":{"v":185297.259241966,"d":"$185,297"}},{"$f":"EJ20+(EJ22-EJ19)/Inputs!B22/12","v":{"v":185227.65370850085,"d":"$185,228"}},{"$f":"EK20+(EK22-EK19)/Inputs!B22/12","v":{"v":185209.53395558,"d":"$185,210"}},{"$f":"EL20+(EL22-EL19)/Inputs!B22/12","v":{"v":185214.76350588823,"d":"$185,215"}},{"$f":"EM20+(EM22-EM19)/Inputs!B22/12","v":{"v":185047.3194678051,"d":"$185,047"}},{"$f":"SUM(EB21:EM21)","v":{"v":2225225.8935337053,"d":"$2,225,226"}}]
[{"$f":"Labels!B14","v":"Desired Capital"},{"$f":"Inputs!B20*B10/(1/Inputs!B19/12+'(Other Computations)'!B144)","v":{"v":34645298.42192645,"d":"$34,645,298"}},{"$f":"Inputs!B20*C10/(1/Inputs!B19/12+'(Other Computations)'!B144)","v":{"v":34631812.82722025,"d":"$34,631,813"}},{"$f":"Inputs!B20*D10/(1/Inputs!B19/12+'(Other Computations)'!B144)","v":{"v":34613699.53270011,"d":"$34,613,700"}},{"$f":"Inputs!B20*E10/(1/Inputs!B19/12+'(Other Computations)'!B144)","v":{"v":34601886.52378357,"d":"$34,601,887"}},{"$f":"Inputs!B20*F10/(1/Inputs!B19/12+'(Other Computations)'!B144)","v":{"v":34591229.22011053,"d":"$34,591,229"}},{"$f":"Inputs!B20*G10/(1/Inputs!B19/12+'(Other Computations)'!B144)","v":{"v":34578371.011161454,"d":"$34,578,371"}},{"$f":"Inputs!B20*H10/(1/Inputs!B19/12+'(Other Computations)'!B144)","v":{"v":34562669.351101756,"d":"$34,562,669"}},{"$f":"Inputs!B20*I10/(1/Inputs!B19/12+'(Other Computations)'!B144)","v":{"v":34548291.06365634,"d":"$34,548,291"}},{"$f":"Inputs!B20*J10/(1/Inputs!B19/12+'(Other Computations)'!B144)","v":{"v":34533829.37605615,"d":"$34,533,829"}},{"$f":"Inputs!B20*K10/(1/Inputs!B19/12+'(Other Computations)'!B144)","v":{"v":34522047.13471993,"d":"$34,522,047"}},{"$f":"Inputs!B20*L10/(1/Inputs!B19/12+'(Other Computations)'!B144)","v":{"v":34507929.367164336,"d":"$34,507,929"}},{"$f":"Inputs!B20*M10/(1/Inputs!B19/12+'(Other Computations)'!B144)","v":{"v":34497407.74265118,"d":"$34,497,408"}},{"$f":"M22","v":{"v":34497407.74265118,"d":"$34,497,408"}},{"$f":"Inputs!B20*O10/(1/Inputs!B19/12+'(Other Computations)'!B144)","v":{"v":34483202.258187905,"d":"$34,483,202"}},{"$f":"Inputs!B20*P10/(1/Inputs!B19/12+'(Other Computations)'!B144)","v":{"v":34472037.7271618,"d":"$34,472,038"}},{"$f":"Inputs!B20*Q10/(1/Inputs!B19/12+'(Other Computations)'!B144)","v":{"v":34457303.679064415,"d":"$34,457,304"}},{"$f":"Inputs!B20*R10/(1/Inputs!B19/12+'(Other Computations)'!B144)","v":{"v":34446175.71956217,"d":"$34,446,176"}},{"$f":"Inputs!B20*S10/(1/Inputs!B19/12+'(Other Computations)'!B144)","v":{"v":34434084.70409257,"d":"$34,434,085"}},{"$f":"Inputs!B20*T10/(1/Inputs!B19/12+'(Other Computations)'!B144)","v":{"v":34416189.87363408,"d":"$34,416,190"}},{"$f":"Inputs!B20*U10/(1/Inputs!B19/12+'(Other Computations)'!B144)","v":{"v":34401437.66627538,"d":"$34,401,438"}},{"$f":"Inputs!B20*V10/(1/Inputs!B19/12+'(Other Computations)'!B144)","v":{"v":34388751.589947164,"d":"$34,388,752"}},{"$f":"Inputs!B20*W10/(1/Inputs!B19/12+'(Other Computations)'!B144)","v":{"v":34373036.97964457,"d":"$34,373,037"}},{"$f":"Inputs!B20*X10/(1/Inputs!B19/12+'(Other Computations)'!B144)","v":{"v":34357829.51601719,"d":"$34,357,830"}},{"$f":"Inputs!B20*Y10/(1/Inputs!B19/12+'(Other Computations)'!B144)","v":{"v":34344555.23757108,"d":"$34,344,555"}},{"$f":"Inputs!B20*Z10/(1/Inputs!B19/12+'(Other Computations)'!B144)","v":{"v":34332569.21141083,"d":"$34,332,569"}},{"$f":"Z22","v":{"v":34332569.21141083,"d":"$34,332,569"}},{"$f":"Inputs!B20*AB10/(1/Inputs!B19/12+'(Other Computations)'!B144)","v":{"v":34316269.801931426,"d":"$34,316,270"}},{"$f":"Inputs!B20*AC10/(1/Inputs!B19/12+'(Other Computations)'!B144)","v":{"v":34302732.49193323,"d":"$34,302,732"}},{"$f":"Inputs!B20*AD10/(1/Inputs!B19/12+'(Other Computations)'!B144)","v":{"v":34289945.527461514,"d":"$34,289,946"}},{"$f":"Inputs!B20*AE10/(1/Inputs!B19/12+'(Other Computations)'!B144)","v":{"v":34278420.551042095,"d":"$34,278,421"}},{"$f":"Inputs!B20*AF10/(1/Inputs!B19/12+'(Other Computations)'!B144)","v":{"v":34265166.562069155,"d":"$34,265,167"}},{"$f":"Inputs!B20*AG10/(1/Inputs!B19/12+'(Other Computations)'!B144)","v":{"v":34253645.51307597,"d":"$34,253,646"}},{"$f":"Inputs!B20*AH10/(1/Inputs!B19/12+'(Other Computations)'!B144)","v":{"v":34240268.42812766,"d":"$34,240,268"}},{"$f":"Inputs!B20*AI10/(1/Inputs!B19/12+'(Other Computations)'!B144)","v":{"v":34228107.47011357,"d":"$34,228,107"}},{"$f":"Inputs!B20*AJ10/(1/Inputs!B19/12+'(Other Computations)'!B144)","v":{"v":34213640.69875081,"d":"$34,213,641"}},{"$f":"Inputs!B20*AK10/(1/Inputs!B19/12+'(Other Computations)'!B144)","v":{"v":34198098.04869015,"d":"$34,198,098"}},{"$f":"Inputs!B20*AL10/(1/Inputs!B19/12+'(Other Computations)'!B144)","v":{"v":34184368.341502704,"d":"$34,184,368"}},{"$f":"Inputs!B20*AM10/(1/Inputs!B19/12+'(Other Computations)'!B144)","v":{"v":34172471.96862848,"d":"$34,172,472"}},{"$f":"AM22","v":{"v":34172471.96862848,"d":"$34,172,472"}},{"$f":"Inputs!B20*AO10/(1/Inputs!B19/12+'(Other Computations)'!B144)","v":{"v":34161809.48963097,"d":"$34,161,809"}},{"$f":"Inputs!B20*AP10/(1/Inputs!B19/12+'(Other Computations)'!B144)","v":{"v":34148537.45044265,"d":"$34,148,537"}},{"$f":"Inputs!B20*AQ10/(1/Inputs!B19/12+'(Other Computations)'!B144)","v":{"v":34133942.05046182,"d":"$34,133,942"}},{"$f":"Inputs!B20*AR10/(1/Inputs!B19/12+'(Other Computations)'!B144)","v":{"v":34118599.649552286,"d":"$34,118,600"}},{"$f":"Inputs!B20*AS10/(1/Inputs!B19/12+'(Other Computations)'!B144)","v":{"v":34104959.50772446,"d":"$34,104,960"}},{"$f":"Inputs!B20*AT10/(1/Inputs!B19/12+'(Other Computations)'!B144)","v":{"v":34090239.82849023,"d":"$34,090,240"}},{"$f":"Inputs!B20*AU10/(1/Inputs!B19/12+'(Other Computations)'!B144)","v":{"v":34074662.72448019,"d":"$34,074,663"}},{"$f":"Inputs!B20*AV10/(1/Inputs!B19/12+'(Other Computations)'!B144)","v":{"v":34056831.8718731,"d":"$34,056,832"}},{"$f":"Inputs!B20*AW10/(1/Inputs!B19/12+'(Other Computations)'!B144)","v":{"v":34043389.935652584,"d":"$34,043,390"}},{"$f":"Inputs!B20*AX10/(1/Inputs!B19/12+'(Other Computations)'!B144)","v":{"v":34028122.8664096,"d":"$34,028,123"}},{"$f":"Inputs!B20*AY10/(1/Inputs!B19/12+'(Other Computations)'!B144)","v":{"v":34011240.84577328,"d":"$34,011,241"}},{"$f":"Inputs!B20*AZ10/(1/Inputs!B19/12+'(Other Computations)'!B144)","v":{"v":33998232.921720915,"d":"$33,998,233"}},{"$f":"AZ22","v":{"v":33998232.921720915,"d":"$33,998,233"}},{"$f":"Inputs!B20*BB10/(1/Inputs!B19/12+'(Other Computations)'!B144)","v":{"v":33987185.685264654,"d":"$33,987,186"}},{"$f":"Inputs!B20*BC10/(1/Inputs!B19/12+'(Other Computations)'!B144)","v":{"v":33969347.31224446,"d":"$33,969,347"}},{"$f":"Inputs!B20*BD10/(1/Inputs!B19/12+'(Other Computations)'!B144)","v":{"v":33953150.46356068,"d":"$33,953,150"}},{"$f":"Inputs!B20*BE10/(1/Inputs!B19/12+'(Other Computations)'!B144)","v":{"v":33937710.42355625,"d":"$33,937,710"}},{"$f":"Inputs!B20*BF10/(1/Inputs!B19/12+'(Other Computations)'!B144)","v":{"v":33921794.568227656,"d":"$33,921,795"}},{"$f":"Inputs!B20*BG10/(1/Inputs!B19/12+'(Other Computations)'!B144)","v":{"v":33907547.80037178,"d":"$33,907,548"}},{"$f":"Inputs!B20*BH10/(1/Inputs!B19/12+'(Other Computations)'!B144)","v":{"v":33894308.95724806,"d":"$33,894,309"}},{"$f":"Inputs!B20*BI10/(1/Inputs!B19/12+'(Other Computations)'!B144)","v":{"v":33882237.43069728,"d":"$33,882,237"}},{"$f":"Inputs!B20*BJ10/(1/Inputs!B19/12+'(Other Computations)'!B144)","v":{"v":33866655.81024205,"d":"$33,866,656"}},{"$f":"Inputs!B20*BK10/(1/Inputs!B19/12+'(Other Computations)'!B144)","v":{"v":33855922.52091801,"d":"$33,855,923"}},{"$f":"Inputs!B20*BL10/(1/Inputs!B19/12+'(Other Computations)'!B144)","v":{"v":33842637.97615904,"d":"$33,842,638"}},{"$f":"Inputs!B20*BM10/(1/Inputs!B19/12+'(Other Computations)'!B144)","v":{"v":33825193.95999999,"d":"$33,825,194"}},{"$f":"BM22","v":{"v":33825193.95999999,"d":"$33,825,194"}},{"$f":"Inputs!B20*BO10/(1/Inputs!B19/12+'(Other Computations)'!B144)","v":{"v":33811955.83456643,"d":"$33,811,956"}},{"$f":"Inputs!B20*BP10/(1/Inputs!B19/12+'(Other Computations)'!B144)","v":{"v":33794020.27584867,"d":"$33,794,020"}},{"$f":"Inputs!B20*BQ10/(1/Inputs!B19/12+'(Other Computations)'!B144)","v":{"v":33779135.061639234,"d":"$33,779,135"}},{"$f":"Inputs!B20*BR10/(1/Inputs!B19/12+'(Other Computations)'!B144)","v":{"v":33763860.753918424,"d":"$33,763,861"}},{"$f":"Inputs!B20*BS10/(1/Inputs!B19/12+'(Other Computations)'!B144)","v":{"v":33747735.5945948,"d":"$33,747,736"}},{"$f":"Inputs!B20*BT10/(1/Inputs!B19/12+'(Other Computations)'!B144)","v":{"v":33729689.0728874,"d":"$33,729,689"}},{"$f":"Inputs!B20*BU10/(1/Inputs!B19/12+'(Other Computations)'!B144)","v":{"v":33717893.46667226,"d":"$33,717,893"}},{"$f":"Inputs!B20*BV10/(1/Inputs!B19/12+'(Other Computations)'!B144)","v":{"v":33703931.88576202,"d":"$33,703,932"}},{"$f":"Inputs!B20*BW10/(1/Inputs!B19/12+'(Other Computations)'!B144)","v":{"v":33690965.92648923,"d":"$33,690,966"}},{"$f":"Inputs!B20*BX10/(1/Inputs!B19/12+'(Other Computations)'!B144)","v":{"v":33678722.46053416,"d":"$33,678,722"}},{"$f":"Inputs!B20*BY10/(1/Inputs!B19/12+'(Other Computations)'!B144)","v":{"v":33662731.363478586,"d":"$33,662,731"}},{"$f":"Inputs!B20*BZ10/(1/Inputs!B19/12+'(Other Computations)'!B144)","v":{"v":33652092.52899841,"d":"$33,652,093"}},{"$f":"BZ22","v":{"v":33652092.52899841,"d":"$33,652,093"}},{"$f":"Inputs!B20*CB10/(1/Inputs!B19/12+'(Other Computations)'!B144)","v":{"v":33639986.262263834,"d":"$33,639,986"}},{"$f":"Inputs!B20*CC10/(1/Inputs!B19/12+'(Other Computations)'!B144)","v":{"v":33626129.30112309,"d":"$33,626,129"}},{"$f":"Inputs!B20*CD10/(1/Inputs!B19/12+'(Other Computations)'!B144)","v":{"v":33611713.70259343,"d":"$33,611,714"}},{"$f":"Inputs!B20*CE10/(1/Inputs!B19/12+'(Other Computations)'!B144)","v":{"v":33601142.037953116,"d":"$33,601,142"}},{"$f":"Inputs!B20*CF10/(1/Inputs!B19/12+'(Other Computations)'!B144)","v":{"v":33586406.94053929,"d":"$33,586,407"}},{"$f":"Inputs!B20*CG10/(1/Inputs!B19/12+'(Other Computations)'!B144)","v":{"v":33571377.2457196,"d":"$33,571,377"}},{"$f":"Inputs!B20*CH10/(1/Inputs!B19/12+'(Other Computations)'!B144)","v":{"v":33559189.694083564,"d":"$33,559,190"}},{"$f":"Inputs!B20*CI10/(1/Inputs!B19/12+'(Other Computations)'!B144)","v":{"v":33546883.014692403,"d":"$33,546,883"}},{"$f":"Inputs!B20*CJ10/(1/Inputs!B19/12+'(Other Computations)'!B144)","v":{"v":33535514.573499024,"d":"$33,535,515"}},{"$f":"Inputs!B20*CK10/(1/Inputs!B19/12+'(Other Computations)'!B144)","v":{"v":33521675.93348945,"d":"$33,521,676"}},{"$f":"Inputs!B20*CL10/(1/Inputs!B19/12+'(Other Computations)'!B144)","v":{"v":33508721.645226486,"d":"$33,508,722"}},{"$f":"Inputs!B20*CM10/(1/Inputs!B19/12+'(Other Computations)'!B144)","v":{"v":33497279.96362176,"d":"$33,497,280"}},{"$f":"CM22","v":{"v":33497279.96362176,"d":"$33,497,280"}},{"$f":"Inputs!B20*CO10/(1/Inputs!B19/12+'(Other Computations)'!B144)","v":{"v":33485231.13737238,"d":"$33,485,231"}},{"$f":"Inputs!B20*CP10/(1/Inputs!B19/12+'(Other Computations)'!B144)","v":{"v":33471821.589117065,"d":"$33,471,822"}},{"$f":"Inputs!B20*CQ10/(1/Inputs!B19/12+'(Other Computations)'!B144)","v":{"v":33460373.33869305,"d":"$33,460,373"}},{"$f":"Inputs!B20*CR10/(1/Inputs!B19/12+'(Other Computations)'!B144)","v":{"v":33446536.3607467,"d":"$33,446,536"}},{"$f":"Inputs!B20*CS10/(1/Inputs!B19/12+'(Other Computations)'!B144)","v":{"v":33432766.945138328,"d":"$33,432,767"}},{"$f":"Inputs!B20*CT10/(1/Inputs!B19/12+'(Other Computations)'!B144)","v":{"v":33416994.273580432,"d":"$33,416,994"}},{"$f":"Inputs!B20*CU10/(1/Inputs!B19/12+'(Other Computations)'!B144)","v":{"v":33401511.706811864,"d":"$33,401,512"}},{"$f":"Inputs!B20*CV10/(1/Inputs!B19/12+'(Other Computations)'!B144)","v":{"v":33391069.297964077,"d":"$33,391,069"}},{"$f":"Inputs!B20*CW10/(1/Inputs!B19/12+'(Other Computations)'!B144)","v":{"v":33374831.51058311,"d":"$33,374,832"}},{"$f":"Inputs!B20*CX10/(1/Inputs!B19/12+'(Other Computations)'!B144)","v":{"v":33364186.194211043,"d":"$33,364,186"}},{"$f":"Inputs!B20*CY10/(1/Inputs!B19/12+'(Other Computations)'!B144)","v":{"v":33350925.59354625,"d":"$33,350,926"}},{"$f":"Inputs!B20*CZ10/(1/Inputs!B19/12+'(Other Computations)'!B144)","v":{"v":33335144.135562763,"d":"$33,335,144"}},{"$f":"CZ22","v":{"v":33335144.135562763,"d":"$33,335,144"}},{"$f":"Inputs!B20*DB10/(1/Inputs!B19/12+'(Other Computations)'!B144)","v":{"v":33322342.226847257,"d":"$33,322,342"}},{"$f":"Inputs!B20*DC10/(1/Inputs!B19/12+'(Other Computations)'!B144)","v":{"v":33309791.58620549,"d":"$33,309,792"}},{"$f":"Inputs!B20*DD10/(1/Inputs!B19/12+'(Other Computations)'!B144)","v":{"v":33292368.02920182,"d":"$33,292,368"}},{"$f":"Inputs!B20*DE10/(1/Inputs!B19/12+'(Other Computations)'!B144)","v":{"v":33277200.521016408,"d":"$33,277,201"}},{"$f":"Inputs!B20*DF10/(1/Inputs!B19/12+'(Other Computations)'!B144)","v":{"v":33263256.82712151,"d":"$33,263,257"}},{"$f":"Inputs!B20*DG10/(1/Inputs!B19/12+'(Other Computations)'!B144)","v":{"v":33246260.639522247,"d":"$33,246,261"}},{"$f":"Inputs!B20*DH10/(1/Inputs!B19/12+'(Other Computations)'!B144)","v":{"v":33231748.296456285,"d":"$33,231,748"}},{"$f":"Inputs!B20*DI10/(1/Inputs!B19/12+'(Other Computations)'!B144)","v":{"v":33215202.334217638,"d":"$33,215,202"}},{"$f":"Inputs!B20*DJ10/(1/Inputs!B19/12+'(Other Computations)'!B144)","v":{"v":33198476.78502464,"d":"$33,198,477"}},{"$f":"Inputs!B20*DK10/(1/Inputs!B19/12+'(Other Computations)'!B144)","v":{"v":33181012.243122235,"d":"$33,181,012"}},{"$f":"Inputs!B20*DL10/(1/Inputs!B19/12+'(Other Computations)'!B144)","v":{"v":33167430.63332933,"d":"$33,167,431"}},{"$f":"Inputs!B20*DM10/(1/Inputs!B19/12+'(Other Computations)'!B144)","v":{"v":33151643.86082016,"d":"$33,151,644"}},{"$f":"DM22","v":{"v":33151643.86082016,"d":"$33,151,644"}},{"$f":"Inputs!B20*DO10/(1/Inputs!B19/12+'(Other Computations)'!B144)","v":{"v":33136903.18367588,"d":"$33,136,903"}},{"$f":"Inputs!B20*DP10/(1/Inputs!B19/12+'(Other Computations)'!B144)","v":{"v":33125375.013122085,"d":"$33,125,375"}},{"$f":"Inputs!B20*DQ10/(1/Inputs!B19/12+'(Other Computations)'!B144)","v":{"v":33109858.966428027,"d":"$33,109,859"}},{"$f":"Inputs!B20*DR10/(1/Inputs!B19/12+'(Other Computations)'!B144)","v":{"v":33094564.320620243,"d":"$33,094,564"}},{"$f":"Inputs!B20*DS10/(1/Inputs!B19/12+'(Other Computations)'!B144)","v":{"v":33080616.529131822,"d":"$33,080,617"}},{"$f":"Inputs!B20*DT10/(1/Inputs!B19/12+'(Other Computations)'!B144)","v":{"v":33066301.005486082,"d":"$33,066,301"}},{"$f":"Inputs!B20*DU10/(1/Inputs!B19/12+'(Other Computations)'!B144)","v":{"v":33053710.378888603,"d":"$33,053,710"}},{"$f":"Inputs!B20*DV10/(1/Inputs!B19/12+'(Other Computations)'!B144)","v":{"v":33042112.053772114,"d":"$33,042,112"}},{"$f":"Inputs!B20*DW10/(1/Inputs!B19/12+'(Other Computations)'!B144)","v":{"v":33030901.84019513,"d":"$33,030,902"}},{"$f":"Inputs!B20*DX10/(1/Inputs!B19/12+'(Other Computations)'!B144)","v":{"v":33017443.292993013,"d":"$33,017,443"}},{"$f":"Inputs!B20*DY10/(1/Inputs!B19/12+'(Other Computations)'!B144)","v":{"v":33005266.229407817,"d":"$33,005,266"}},{"$f":"Inputs!B20*DZ10/(1/Inputs!B19/12+'(Other Computations)'!B144)","v":{"v":32990891.478213746,"d":"$32,990,891"}},{"$f":"DZ22","v":{"v":32990891.478213746,"d":"$32,990,891"}},{"$f":"Inputs!B20*EB10/(1/Inputs!B19/12+'(Other Computations)'!B144)","v":{"v":32976791.018537737,"d":"$32,976,791"}},{"$f":"Inputs!B20*EC10/(1/Inputs!B19/12+'(Other Computations)'!B144)","v":{"v":32965230.841435153,"d":"$32,965,231"}},{"$f":"Inputs!B20*ED10/(1/Inputs!B19/12+'(Other Computations)'!B144)","v":{"v":32951419.316541295,"d":"$32,951,419"}},{"$f":"Inputs!B20*EE10/(1/Inputs!B19/12+'(Other Computations)'!B144)","v":{"v":32938579.52800007,"d":"$32,938,580"}},{"$f":"Inputs!B20*EF10/(1/Inputs!B19/12+'(Other Computations)'!B144)","v":{"v":32926377.035989612,"d":"$32,926,377"}},{"$f":"Inputs!B20*EG10/(1/Inputs!B19/12+'(Other Computations)'!B144)","v":{"v":32912412.864413887,"d":"$32,912,413"}},{"$f":"Inputs!B20*EH10/(1/Inputs!B19/12+'(Other Computations)'!B144)","v":{"v":32899424.79400038,"d":"$32,899,425"}},{"$f":"Inputs!B20*EI10/(1/Inputs!B19/12+'(Other Computations)'!B144)","v":{"v":32885448.46931446,"d":"$32,885,448"}},{"$f":"Inputs!B20*EJ10/(1/Inputs!B19/12+'(Other Computations)'!B144)","v":{"v":32872410.019863583,"d":"$32,872,410"}},{"$f":"Inputs!B20*EK10/(1/Inputs!B19/12+'(Other Computations)'!B144)","v":{"v":32861238.645387683,"d":"$32,861,239"}},{"$f":"Inputs!B20*EL10/(1/Inputs!B19/12+'(Other Computations)'!B144)","v":{"v":32850967.33589327,"d":"$32,850,967"}},{"$f":"Inputs!B20*EM10/(1/Inputs!B19/12+'(Other Computations)'!B144)","v":{"v":32834551.50304371,"d":"$32,834,552"}},{"$f":"EM22","v":{"v":32834551.50304371,"d":"$32,834,552"}}]
[]
[]
[{"$f":"\"Employment\"","v":"Employment"}]
[{"$f":"\" \"","v":" "}]
[null,{"$f":"ZZZ__FnCalls!F7","v":"Jan 2010"},{"$f":"ZZZ__FnCalls!F8","v":"Feb 2010"},{"$f":"ZZZ__FnCalls!F9","v":"Mar 2010"},{"$f":"ZZZ__FnCalls!F10","v":"Apr 2010"},{"$f":"ZZZ__FnCalls!F11","v":"May 2010"},{"$f":"ZZZ__FnCalls!F12","v":"Jun 2010"},{"$f":"ZZZ__FnCalls!F13","v":"Jul 2010"},{"$f":"ZZZ__FnCalls!F14","v":"Aug 2010"},{"$f":"ZZZ__FnCalls!F15","v":"Sep 2010"},{"$f":"ZZZ__FnCalls!F16","v":"Oct 2010"},{"$f":"ZZZ__FnCalls!F17","v":"Nov 2010"},{"$f":"ZZZ__FnCalls!F18","v":"Dec 2010"},{"$f":"ZZZ__FnCalls!H7","v":"2010"},{"$f":"ZZZ__FnCalls!F19","v":"Jan 2011"},{"$f":"ZZZ__FnCalls!F20","v":"Feb 2011"},{"$f":"ZZZ__FnCalls!F21","v":"Mar 2011"},{"$f":"ZZZ__FnCalls!F22","v":"Apr 2011"},{"$f":"ZZZ__FnCalls!F23","v":"May 2011"},{"$f":"ZZZ__FnCalls!F24","v":"Jun 2011"},{"$f":"ZZZ__FnCalls!F25","v":"Jul 2011"},{"$f":"ZZZ__FnCalls!F26","v":"Aug 2011"},{"$f":"ZZZ__FnCalls!F27","v":"Sep 2011"},{"$f":"ZZZ__FnCalls!F28","v":"Oct 2011"},{"$f":"ZZZ__FnCalls!F29","v":"Nov 2011"},{"$f":"ZZZ__FnCalls!F30","v":"Dec 2011"},{"$f":"ZZZ__FnCalls!H19","v":"2011"},{"$f":"ZZZ__FnCalls!F31","v":"Jan 2012"},{"$f":"ZZZ__FnCalls!F32","v":"Feb 2012"},{"$f":"ZZZ__FnCalls!F33","v":"Mar 2012"},{"$f":"ZZZ__FnCalls!F34","v":"Apr 2012"},{"$f":"ZZZ__FnCalls!F35","v":"May 2012"},{"$f":"ZZZ__FnCalls!F36","v":"Jun 2012"},{"$f":"ZZZ__FnCalls!F37","v":"Jul 2012"},{"$f":"ZZZ__FnCalls!F38","v":"Aug 2012"},{"$f":"ZZZ__FnCalls!F39","v":"Sep 2012"},{"$f":"ZZZ__FnCalls!F40","v":"Oct 2012"},{"$f":"ZZZ__FnCalls!F41","v":"Nov 2012"},{"$f":"ZZZ__FnCalls!F42","v":"Dec 2012"},{"$f":"ZZZ__FnCalls!H31","v":"2012"},{"$f":"ZZZ__FnCalls!F43","v":"Jan 2013"},{"$f":"ZZZ__FnCalls!F44","v":"Feb 2013"},{"$f":"ZZZ__FnCalls!F45","v":"Mar 2013"},{"$f":"ZZZ__FnCalls!F46","v":"Apr 2013"},{"$f":"ZZZ__FnCalls!F47","v":"May 2013"},{"$f":"ZZZ__FnCalls!F48","v":"Jun 2013"},{"$f":"ZZZ__FnCalls!F49","v":"Jul 2013"},{"$f":"ZZZ__FnCalls!F50","v":"Aug 2013"},{"$f":"ZZZ__FnCalls!F51","v":"Sep 2013"},{"$f":"ZZZ__FnCalls!F52","v":"Oct 2013"},{"$f":"ZZZ__FnCalls!F53","v":"Nov 2013"},{"$f":"ZZZ__FnCalls!F54","v":"Dec 2013"},{"$f":"ZZZ__FnCalls!H43","v":"2013"},{"$f":"ZZZ__FnCalls!F55","v":"Jan 2014"},{"$f":"ZZZ__FnCalls!F56","v":"Feb 2014"},{"$f":"ZZZ__FnCalls!F57","v":"Mar 2014"},{"$f":"ZZZ__FnCalls!F58","v":"Apr 2014"},{"$f":"ZZZ__FnCalls!F59","v":"May 2014"},{"$f":"ZZZ__FnCalls!F60","v":"Jun 2014"},{"$f":"ZZZ__FnCalls!F61","v":"Jul 2014"},{"$f":"ZZZ__FnCalls!F62","v":"Aug 2014"},{"$f":"ZZZ__FnCalls!F63","v":"Sep 2014"},{"$f":"ZZZ__FnCalls!F64","v":"Oct 2014"},{"$f":"ZZZ__FnCalls!F65","v":"Nov 2014"},{"$f":"ZZZ__FnCalls!F66","v":"Dec 2014"},{"$f":"ZZZ__FnCalls!H55","v":"2014"},{"$f":"ZZZ__FnCalls!F67","v":"Jan 2015"},{"$f":"ZZZ__FnCalls!F68","v":"Feb 2015"},{"$f":"ZZZ__FnCalls!F69","v":"Mar 2015"},{"$f":"ZZZ__FnCalls!F70","v":"Apr 2015"},{"$f":"ZZZ__FnCalls!F71","v":"May 2015"},{"$f":"ZZZ__FnCalls!F72","v":"Jun 2015"},{"$f":"ZZZ__FnCalls!F73","v":"Jul 2015"},{"$f":"ZZZ__FnCalls!F74","v":"Aug 2015"},{"$f":"ZZZ__FnCalls!F75","v":"Sep 2015"},{"$f":"ZZZ__FnCalls!F76","v":"Oct 2015"},{"$f":"ZZZ__FnCalls!F77","v":"Nov 2015"},{"$f":"ZZZ__FnCalls!F78","v":"Dec 2015"},{"$f":"ZZZ__FnCalls!H67","v":"2015"},{"$f":"ZZZ__FnCalls!F79","v":"Jan 2016"},{"$f":"ZZZ__FnCalls!F80","v":"Feb 2016"},{"$f":"ZZZ__FnCalls!F81","v":"Mar 2016"},{"$f":"ZZZ__FnCalls!F82","v":"Apr 2016"},{"$f":"ZZZ__FnCalls!F83","v":"May 2016"},{"$f":"ZZZ__FnCalls!F84","v":"Jun 2016"},{"$f":"ZZZ__FnCalls!F85","v":"Jul 2016"},{"$f":"ZZZ__FnCalls!F86","v":"Aug 2016"},{"$f":"ZZZ__FnCalls!F87","v":"Sep 2016"},{"$f":"ZZZ__FnCalls!F88","v":"Oct 2016"},{"$f":"ZZZ__FnCalls!F89","v":"Nov 2016"},{"$f":"ZZZ__FnCalls!F90","v":"Dec 2016"},{"$f":"ZZZ__FnCalls!H79","v":"2016"},{"$f":"ZZZ__FnCalls!F91","v":"Jan 2017"},{"$f":"ZZZ__FnCalls!F92","v":"Feb 2017"},{"$f":"ZZZ__FnCalls!F93","v":"Mar 2017"},{"$f":"ZZZ__FnCalls!F94","v":"Apr 2017"},{"$f":"ZZZ__FnCalls!F95","v":"May 2017"},{"$f":"ZZZ__FnCalls!F96","v":"Jun 2017"},{"$f":"ZZZ__FnCalls!F97","v":"Jul 2017"},{"$f":"ZZZ__FnCalls!F98","v":"Aug 2017"},{"$f":"ZZZ__FnCalls!F99","v":"Sep 2017"},{"$f":"ZZZ__FnCalls!F100","v":"Oct 2017"},{"$f":"ZZZ__FnCalls!F101","v":"Nov 2017"},{"$f":"ZZZ__FnCalls!F102","v":"Dec 2017"},{"$f":"ZZZ__FnCalls!H91","v":"2017"},{"$f":"ZZZ__FnCalls!F103","v":"Jan 2018"},{"$f":"ZZZ__FnCalls!F104","v":"Feb 2018"},{"$f":"ZZZ__FnCalls!F105","v":"Mar 2018"},{"$f":"ZZZ__FnCalls!F106","v":"Apr 2018"},{"$f":"ZZZ__FnCalls!F107","v":"May 2018"},{"$f":"ZZZ__FnCalls!F108","v":"Jun 2018"},{"$f":"ZZZ__FnCalls!F109","v":"Jul 2018"},{"$f":"ZZZ__FnCalls!F110","v":"Aug 2018"},{"$f":"ZZZ__FnCalls!F111","v":"Sep 2018"},{"$f":"ZZZ__FnCalls!F112","v":"Oct 2018"},{"$f":"ZZZ__FnCalls!F113","v":"Nov 2018"},{"$f":"ZZZ__FnCalls!F114","v":"Dec 2018"},{"$f":"ZZZ__FnCalls!H103","v":"2018"},{"$f":"ZZZ__FnCalls!F115","v":"Jan 2019"},{"$f":"ZZZ__FnCalls!F116","v":"Feb 2019"},{"$f":"ZZZ__FnCalls!F117","v":"Mar 2019"},{"$f":"ZZZ__FnCalls!F118","v":"Apr 2019"},{"$f":"ZZZ__FnCalls!F119","v":"May 2019"},{"$f":"ZZZ__FnCalls!F120","v":"Jun 2019"},{"$f":"ZZZ__FnCalls!F121","v":"Jul 2019"},{"$f":"ZZZ__FnCalls!F122","v":"Aug 2019"},{"$f":"ZZZ__FnCalls!F123","v":"Sep 2019"},{"$f":"ZZZ__FnCalls!F124","v":"Oct 2019"},{"$f":"ZZZ__FnCalls!F125","v":"Nov 2019"},{"$f":"ZZZ__FnCalls!F126","v":"Dec 2019"},{"$f":"ZZZ__FnCalls!H115","v":"2019"},{"$f":"ZZZ__FnCalls!F127","v":"Jan 2020"},{"$f":"ZZZ__FnCalls!F128","v":"Feb 2020"},{"$f":"ZZZ__FnCalls!F129","v":"Mar 2020"},{"$f":"ZZZ__FnCalls!F130","v":"Apr 2020"},{"$f":"ZZZ__FnCalls!F131","v":"May 2020"},{"$f":"ZZZ__FnCalls!F132","v":"Jun 2020"},{"$f":"ZZZ__FnCalls!F133","v":"Jul 2020"},{"$f":"ZZZ__FnCalls!F134","v":"Aug 2020"},{"$f":"ZZZ__FnCalls!F135","v":"Sep 2020"},{"$f":"ZZZ__FnCalls!F136","v":"Oct 2020"},{"$f":"ZZZ__FnCalls!F137","v":"Nov 2020"},{"$f":"ZZZ__FnCalls!F138","v":"Dec 2020"},{"$f":"ZZZ__FnCalls!H127","v":"2020"}]
[{"$f":"Labels!B38","v":"Employment"},{"$f":"Inputs!B27+'(Other Computations)'!B61*0/Inputs!B28/12","v":{"v":140,"d":"140.00"}},{"$f":"B28+'(Other Computations)'!B61*(B29-B28)/Inputs!B28/12","v":{"v":140,"d":"140.00"}},{"$f":"C28+'(Other Computations)'!B61*(C29-C28)/Inputs!B28/12","v":{"v":139.99432347441768,"d":"139.99"}},{"$f":"D28+'(Other Computations)'!B61*(D29-D28)/Inputs!B28/12","v":{"v":139.98118672515238,"d":"139.98"}},{"$f":"E28+'(Other Computations)'!B61*(E29-E28)/Inputs!B28/12","v":{"v":139.96345859890562,"d":"139.96"}},{"$f":"F28+'(Other Computations)'!B61*(F29-F28)/Inputs!B28/12","v":{"v":139.94176070739636,"d":"139.94"}},{"$f":"G28+'(Other Computations)'!B61*(G29-G28)/Inputs!B28/12","v":{"v":139.91528456359816,"d":"139.92"}},{"$f":"H28+'(Other Computations)'!B61*(H29-H28)/Inputs!B28/12","v":{"v":139.88297528995218,"d":"139.88"}},{"$f":"I28+'(Other Computations)'!B61*(I29-I28)/Inputs!B28/12","v":{"v":139.84556330706087,"d":"139.85"}},{"$f":"J28+'(Other Computations)'!B61*(J29-J28)/Inputs!B28/12","v":{"v":139.8031667494447,"d":"139.80"}},{"$f":"K28+'(Other Computations)'!B61*(K29-K28)/Inputs!B28/12","v":{"v":139.75706418100577,"d":"139.76"}},{"$f":"L28+'(Other Computations)'!B61*(L29-L28)/Inputs!B28/12","v":{"v":139.70638705815216,"d":"139.71"}},{"$f":"M28","v":{"v":139.70638705815216,"d":"139.71"}},{"$f":"M28+'(Other Computations)'!B61*(M29-M28)/Inputs!B28/12","v":{"v":139.65278942979114,"d":"139.65"}},{"$f":"O28+'(Other Computations)'!B61*(O29-O28)/Inputs!B28/12","v":{"v":139.59481387273766,"d":"139.59"}},{"$f":"P28+'(Other Computations)'!B61*(P29-P28)/Inputs!B28/12","v":{"v":139.5338763157648,"d":"139.53"}},{"$f":"Q28+'(Other Computations)'!B61*(Q29-Q28)/Inputs!B28/12","v":{"v":139.46856989643624,"d":"139.47"}},{"$f":"R28+'(Other Computations)'!B61*(R29-R28)/Inputs!B28/12","v":{"v":139.40054939880673,"d":"139.40"}},{"$f":"S28+'(Other Computations)'!B61*(S29-S28)/Inputs!B28/12","v":{"v":139.32949916047258,"d":"139.33"}},{"$f":"T28+'(Other Computations)'!B61*(T29-T28)/Inputs!B28/12","v":{"v":139.25307546656094,"d":"139.25"}},{"$f":"U28+'(Other Computations)'!B61*(U29-U28)/Inputs!B28/12","v":{"v":139.17276876558833,"d":"139.17"}},{"$f":"V28+'(Other Computations)'!B61*(V29-V28)/Inputs!B28/12","v":{"v":139.08957415681272,"d":"139.09"}},{"$f":"W28+'(Other Computations)'!B61*(W29-W28)/Inputs!B28/12","v":{"v":139.00231408187315,"d":"139.00"}},{"$f":"X28+'(Other Computations)'!B61*(X29-X28)/Inputs!B28/12","v":{"v":138.91133380953627,"d":"138.91"}},{"$f":"Y28+'(Other Computations)'!B61*(Y29-Y28)/Inputs!B28/12","v":{"v":138.81756955937067,"d":"138.82"}},{"$f":"Z28","v":{"v":138.81756955937067,"d":"138.82"}},{"$f":"Z28+'(Other Computations)'!B61*(Z29-Z28)/Inputs!B28/12","v":{"v":138.72165960154103,"d":"138.72"}},{"$f":"AB28+'(Other Computations)'!B61*(AB29-AB28)/Inputs!B28/12","v":{"v":138.62186627612655,"d":"138.62"}},{"$f":"AC28+'(Other Computations)'!B61*(AC29-AC28)/Inputs!B28/12","v":{"v":138.51948084050795,"d":"138.52"}},{"$f":"AD28+'(Other Computations)'!B61*(AD29-AD28)/Inputs!B28/12","v":{"v":138.41491101529832,"d":"138.41"}},{"$f":"AE28+'(Other Computations)'!B61*(AE29-AE28)/Inputs!B28/12","v":{"v":138.3087685029765,"d":"138.31"}},{"$f":"AF28+'(Other Computations)'!B61*(AF29-AF28)/Inputs!B28/12","v":{"v":138.20038863721936,"d":"138.20"}},{"$f":"AG28+'(Other Computations)'!B61*(AG29-AG28)/Inputs!B28/12","v":{"v":138.09058346548633,"d":"138.09"}},{"$f":"AH28+'(Other Computations)'!B61*(AH29-AH28)/Inputs!B28/12","v":{"v":137.97863117003985,"d":"137.98"}},{"$f":"AI28+'(Other Computations)'!B61*(AI29-AI28)/Inputs!B28/12","v":{"v":137.86512419845658,"d":"137.87"}},{"$f":"AJ28+'(Other Computations)'!B61*(AJ29-AJ28)/Inputs!B28/12","v":{"v":137.74915568776998,"d":"137.75"}},{"$f":"AK28+'(Other Computations)'!B61*(AK29-AK28)/Inputs!B28/12","v":{"v":137.6303629621265,"d":"137.63"}},{"$f":"AL28+'(Other Computations)'!B61*(AL29-AL28)/Inputs!B28/12","v":{"v":137.50961022351035,"d":"137.51"}},{"$f":"AM28","v":{"v":137.50961022351035,"d":"137.51"}},{"$f":"AM28+'(Other Computations)'!B61*(AM29-AM28)/Inputs!B28/12","v":{"v":137.38774569850443,"d":"137.39"}},{"$f":"AO28+'(Other Computations)'!B61*(AO29-AO28)/Inputs!B28/12","v":{"v":137.26534104160467,"d":"137.27"}},{"$f":"AP28+'(Other Computations)'!B61*(AP29-AP28)/Inputs!B28/12","v":{"v":137.1413336785993,"d":"137.14"}},{"$f":"AQ28+'(Other Computations)'!B61*(AQ29-AQ28)/Inputs!B28/12","v":{"v":137.01523323143002,"d":"137.02"}},{"$f":"AR28+'(Other Computations)'!B61*(AR29-AR28)/Inputs!B28/12","v":{"v":136.88680635196968,"d":"136.89"}},{"$f":"AS28+'(Other Computations)'!B61*(AS29-AS28)/Inputs!B28/12","v":{"v":136.75685773428296,"d":"136.76"}},{"$f":"AT28+'(Other Computations)'!B61*(AT29-AT28)/Inputs!B28/12","v":{"v":136.62499819670722,"d":"136.62"}},{"$f":"AU28+'(Other Computations)'!B61*(AU29-AU28)/Inputs!B28/12","v":{"v":136.49094352899058,"d":"136.49"}},{"$f":"AV28+'(Other Computations)'!B61*(AV29-AV28)/Inputs!B28/12","v":{"v":136.35383026963927,"d":"136.35"}},{"$f":"AW28+'(Other Computations)'!B61*(AW29-AW28)/Inputs!B28/12","v":{"v":136.21561638744473,"d":"136.22"}},{"$f":"AX28+'(Other Computations)'!B61*(AX29-AX28)/Inputs!B28/12","v":{"v":136.07558798307943,"d":"136.08"}},{"$f":"AY28+'(Other Computations)'!B61*(AY29-AY28)/Inputs!B28/12","v":{"v":135.93314042587073,"d":"135.93"}},{"$f":"AZ28","v":{"v":135.93314042587073,"d":"135.93"}},{"$f":"AZ28+'(Other Computations)'!B61*(AZ29-AZ28)/Inputs!B28/12","v":{"v":135.78999736269282,"d":"135.79"}},{"$f":"BB28+'(Other Computations)'!B61*(BB29-BB28)/Inputs!B28/12","v":{"v":135.64702751852448,"d":"135.65"}},{"$f":"BC28+'(Other Computations)'!B61*(BC29-BC28)/Inputs!B28/12","v":{"v":135.50139062131007,"d":"135.50"}},{"$f":"BD28+'(Other Computations)'!B61*(BD29-BD28)/Inputs!B28/12","v":{"v":135.35387807991432,"d":"135.35"}},{"$f":"BE28+'(Other Computations)'!B61*(BE29-BE28)/Inputs!B28/12","v":{"v":135.20488640863684,"d":"135.20"}},{"$f":"BF28+'(Other Computations)'!B61*(BF29-BF28)/Inputs!B28/12","v":{"v":135.0542820688448,"d":"135.05"}},{"$f":"BG28+'(Other Computations)'!B61*(BG29-BG28)/Inputs!B28/12","v":{"v":134.90283844739406,"d":"134.90"}},{"$f":"BH28+'(Other Computations)'!B61*(BH29-BH28)/Inputs!B28/12","v":{"v":134.75102847307608,"d":"134.75"}},{"$f":"BI28+'(Other Computations)'!B61*(BI29-BI28)/Inputs!B28/12","v":{"v":134.599378573345,"d":"134.60"}},{"$f":"BJ28+'(Other Computations)'!B61*(BJ29-BJ28)/Inputs!B28/12","v":{"v":134.44643107629017,"d":"134.45"}},{"$f":"BK28+'(Other Computations)'!B61*(BK29-BK28)/Inputs!B28/12","v":{"v":134.2942887365307,"d":"134.29"}},{"$f":"BL28+'(Other Computations)'!B61*(BL29-BL28)/Inputs!B28/12","v":{"v":134.14187890786974,"d":"134.14"}},{"$f":"BM28","v":{"v":134.14187890786974,"d":"134.14"}},{"$f":"BM28+'(Other Computations)'!B61*(BM29-BM28)/Inputs!B28/12","v":{"v":133.9874828338398,"d":"133.99"}},{"$f":"BO28+'(Other Computations)'!B61*(BO29-BO28)/Inputs!B28/12","v":{"v":133.83295273379838,"d":"133.83"}},{"$f":"BP28+'(Other Computations)'!B61*(BP29-BP28)/Inputs!B28/12","v":{"v":133.67633982356762,"d":"133.68"}},{"$f":"BQ28+'(Other Computations)'!B61*(BQ29-BQ28)/Inputs!B28/12","v":{"v":133.51901296545975,"d":"133.52"}},{"$f":"BR28+'(Other Computations)'!B61*(BR29-BR28)/Inputs!B28/12","v":{"v":133.36085394788904,"d":"133.36"}},{"$f":"BS28+'(Other Computations)'!B61*(BS29-BS28)/Inputs!B28/12","v":{"v":133.20155367740375,"d":"133.20"}},{"$f":"BT28+'(Other Computations)'!B61*(BT29-BT28)/Inputs!B28/12","v":{"v":133.04036147850667,"d":"133.04"}},{"$f":"BU28+'(Other Computations)'!B61*(BU29-BU28)/Inputs!B28/12","v":{"v":132.87998851501058,"d":"132.88"}},{"$f":"BV28+'(Other Computations)'!B61*(BV29-BV28)/Inputs!B28/12","v":{"v":132.71952483089206,"d":"132.72"}},{"$f":"BW28+'(Other Computations)'!B61*(BW29-BW28)/Inputs!B28/12","v":{"v":132.55941741699246,"d":"132.56"}},{"$f":"BX28+'(Other Computations)'!B61*(BX29-BX28)/Inputs!B28/12","v":{"v":132.39998531908287,"d":"132.40"}},{"$f":"BY28+'(Other Computations)'!B61*(BY29-BY28)/Inputs!B28/12","v":{"v":132.23965661002282,"d":"132.24"}},{"$f":"BZ28","v":{"v":132.23965661002282,"d":"132.24"}},{"$f":"BZ28+'(Other Computations)'!B61*(BZ29-BZ28)/Inputs!B28/12","v":{"v":132.0807351122628,"d":"132.08"}},{"$f":"CB28+'(Other Computations)'!B61*(CB29-CB28)/Inputs!B28/12","v":{"v":131.92258745369966,"d":"131.92"}},{"$f":"CC28+'(Other Computations)'!B61*(CC29-CC28)/Inputs!B28/12","v":{"v":131.76447905169863,"d":"131.76"}},{"$f":"CD28+'(Other Computations)'!B61*(CD29-CD28)/Inputs!B28/12","v":{"v":131.60619816247953,"d":"131.61"}},{"$f":"CE28+'(Other Computations)'!B61*(CE29-CE28)/Inputs!B28/12","v":{"v":131.4493922909581,"d":"131.45"}},{"$f":"CF28+'(Other Computations)'!B61*(CF29-CF28)/Inputs!B28/12","v":{"v":131.2922906834103,"d":"131.29"}},{"$f":"CG28+'(Other Computations)'!B61*(CG29-CG28)/Inputs!B28/12","v":{"v":131.1348020284145,"d":"131.13"}},{"$f":"CH28+'(Other Computations)'!B61*(CH29-CH28)/Inputs!B28/12","v":{"v":130.9781580084625,"d":"130.98"}},{"$f":"CI28+'(Other Computations)'!B61*(CI29-CI28)/Inputs!B28/12","v":{"v":130.82230818333886,"d":"130.82"}},{"$f":"CJ28+'(Other Computations)'!B61*(CJ29-CJ28)/Inputs!B28/12","v":{"v":130.66764844907746,"d":"130.67"}},{"$f":"CK28+'(Other Computations)'!B61*(CK29-CK28)/Inputs!B28/12","v":{"v":130.5131283306241,"d":"130.51"}},{"$f":"CL28+'(Other Computations)'!B61*(CL29-CL28)/Inputs!B28/12","v":{"v":130.35913952586944,"d":"130.36"}},{"$f":"CM28","v":{"v":130.35913952586944,"d":"130.36"}},{"$f":"CM28+'(Other Computations)'!B61*(CM29-CM28)/Inputs!B28/12","v":{"v":130.20632677310866,"d":"130.21"}},{"$f":"CO28+'(Other Computations)'!B61*(CO29-CO28)/Inputs!B28/12","v":{"v":130.05442373601431,"d":"130.05"}},{"$f":"CP28+'(Other Computations)'!B61*(CP29-CP28)/Inputs!B28/12","v":{"v":129.9028543208718,"d":"129.90"}},{"$f":"CQ28+'(Other Computations)'!B61*(CQ29-CQ28)/Inputs!B28/12","v":{"v":129.75245723791247,"d":"129.75"}},{"$f":"CR28+'(Other Computations)'!B61*(CR29-CR28)/Inputs!B28/12","v":{"v":129.60221575107417,"d":"129.60"}},{"$f":"CS28+'(Other Computations)'!B61*(CS29-CS28)/Inputs!B28/12","v":{"v":129.4521762194065,"d":"129.45"}},{"$f":"CT28+'(Other Computations)'!B61*(CT29-CT28)/Inputs!B28/12","v":{"v":129.30151190675804,"d":"129.30"}},{"$f":"CU28+'(Other Computations)'!B61*(CU29-CU28)/Inputs!B28/12","v":{"v":129.1503852620033,"d":"129.15"}},{"$f":"CV28+'(Other Computations)'!B61*(CV29-CV28)/Inputs!B28/12","v":{"v":129.00095354272526,"d":"129.00"}},{"$f":"CW28+'(Other Computations)'!B61*(CW29-CW28)/Inputs!B28/12","v":{"v":128.85075058488033,"d":"128.85"}},{"$f":"CX28+'(Other Computations)'!B61*(CX29-CX28)/Inputs!B28/12","v":{"v":128.70217475284386,"d":"128.70"}},{"$f":"CY28+'(Other Computations)'!B61*(CY29-CY28)/Inputs!B28/12","v":{"v":128.5541001860114,"d":"128.55"}},{"$f":"CZ28","v":{"v":128.5541001860114,"d":"128.55"}},{"$f":"CZ28+'(Other Computations)'!B61*(CZ29-CZ28)/Inputs!B28/12","v":{"v":128.4054730136818,"d":"128.41"}},{"$f":"DB28+'(Other Computations)'!B61*(DB29-DB28)/Inputs!B28/12","v":{"v":128.25758502156478,"d":"128.26"}},{"$f":"DC28+'(Other Computations)'!B61*(DC29-DC28)/Inputs!B28/12","v":{"v":128.1105422412075,"d":"128.11"}},{"$f":"DD28+'(Other Computations)'!B61*(DD29-DD28)/Inputs!B28/12","v":{"v":127.96229052131561,"d":"127.96"}},{"$f":"DE28+'(Other Computations)'!B61*(DE29-DE28)/Inputs!B28/12","v":{"v":127.81383576433717,"d":"127.81"}},{"$f":"DF28+'(Other Computations)'!B61*(DF29-DF28)/Inputs!B28/12","v":{"v":127.66572042692923,"d":"127.67"}},{"$f":"DG28+'(Other Computations)'!B61*(DG29-DG28)/Inputs!B28/12","v":{"v":127.51667121822716,"d":"127.52"}},{"$f":"DH28+'(Other Computations)'!B61*(DH29-DH28)/Inputs!B28/12","v":{"v":127.36778200646717,"d":"127.37"}},{"$f":"DI28+'(Other Computations)'!B61*(DI29-DI28)/Inputs!B28/12","v":{"v":127.21821357443969,"d":"127.22"}},{"$f":"DJ28+'(Other Computations)'!B61*(DJ29-DJ28)/Inputs!B28/12","v":{"v":127.06793133285777,"d":"127.07"}},{"$f":"DK28+'(Other Computations)'!B61*(DK29-DK28)/Inputs!B28/12","v":{"v":126.91666629005836,"d":"126.92"}},{"$f":"DL28+'(Other Computations)'!B61*(DL29-DL28)/Inputs!B28/12","v":{"v":126.76610283096225,"d":"126.77"}},{"$f":"DM28","v":{"v":126.76610283096225,"d":"126.77"}},{"$f":"DM28+'(Other Computations)'!B61*(DM29-DM28)/Inputs!B28/12","v":{"v":126.61531404669985,"d":"126.62"}},{"$f":"DO28+'(Other Computations)'!B61*(DO29-DO28)/Inputs!B28/12","v":{"v":126.46476823677497,"d":"126.46"}},{"$f":"DP28+'(Other Computations)'!B61*(DP29-DP28)/Inputs!B28/12","v":{"v":126.31583205293084,"d":"126.32"}},{"$f":"DQ28+'(Other Computations)'!B61*(DQ29-DQ28)/Inputs!B28/12","v":{"v":126.1668016352964,"d":"126.17"}},{"$f":"DR28+'(Other Computations)'!B61*(DR29-DR28)/Inputs!B28/12","v":{"v":126.01779391744225,"d":"126.02"}},{"$f":"DS28+'(Other Computations)'!B61*(DS29-DS28)/Inputs!B28/12","v":{"v":125.869396157184,"d":"125.87"}},{"$f":"DT28+'(Other Computations)'!B61*(DT29-DT28)/Inputs!B28/12","v":{"v":125.72145684217183,"d":"125.72"}},{"$f":"DU28+'(Other Computations)'!B61*(DU29-DU28)/Inputs!B28/12","v":{"v":125.57470954514763,"d":"125.57"}},{"$f":"DV28+'(Other Computations)'!B61*(DV29-DV28)/Inputs!B28/12","v":{"v":125.42955811155828,"d":"125.43"}},{"$f":"DW28+'(Other Computations)'!B61*(DW29-DW28)/Inputs!B28/12","v":{"v":125.28614012292846,"d":"125.29"}},{"$f":"DX28+'(Other Computations)'!B61*(DX29-DX28)/Inputs!B28/12","v":{"v":125.1434790891738,"d":"125.14"}},{"$f":"DY28+'(Other Computations)'!B61*(DY29-DY28)/Inputs!B28/12","v":{"v":125.00211224173634,"d":"125.00"}},{"$f":"DZ28","v":{"v":125.00211224173634,"d":"125.00"}},{"$f":"DZ28+'(Other Computations)'!B61*(DZ29-DZ28)/Inputs!B28/12","v":{"v":124.86109659333874,"d":"124.86"}},{"$f":"EB28+'(Other Computations)'!B61*(EB29-EB28)/Inputs!B28/12","v":{"v":124.72055670805202,"d":"124.72"}},{"$f":"EC28+'(Other Computations)'!B61*(EC29-EC28)/Inputs!B28/12","v":{"v":124.58156726926299,"d":"124.58"}},{"$f":"ED28+'(Other Computations)'!B61*(ED29-ED28)/Inputs!B28/12","v":{"v":124.44315478386417,"d":"124.44"}},{"$f":"EE28+'(Other Computations)'!B61*(EE29-EE28)/Inputs!B28/12","v":{"v":124.30573031386686,"d":"124.31"}},{"$f":"EF28+'(Other Computations)'!B61*(EF29-EF28)/Inputs!B28/12","v":{"v":124.16955210671458,"d":"124.17"}},{"$f":"EG28+'(Other Computations)'!B61*(EG29-EG28)/Inputs!B28/12","v":{"v":124.03386091525857,"d":"124.03"}},{"$f":"EH28+'(Other Computations)'!B61*(EH29-EH28)/Inputs!B28/12","v":{"v":123.89907162275487,"d":"123.90"}},{"$f":"EI28+'(Other Computations)'!B61*(EI29-EI28)/Inputs!B28/12","v":{"v":123.76476011990447,"d":"123.76"}},{"$f":"EJ28+'(Other Computations)'!B61*(EJ29-EJ28)/Inputs!B28/12","v":{"v":123.63132514099479,"d":"123.63"}},{"$f":"EK28+'(Other Computations)'!B61*(EK29-EK28)/Inputs!B28/12","v":{"v":123.49954488890992,"d":"123.50"}},{"$f":"EL28+'(Other Computations)'!B61*(EL29-EL28)/Inputs!B28/12","v":{"v":123.36976780961363,"d":"123.37"}},{"$f":"EM28","v":{"v":123.36976780961363,"d":"123.37"}}]
[{"$f":"Labels!B39","v":"Desired Employment"},{"$f":"(1-Inputs!B20)*B11/'(Other Computations)'!B130","v":{"v":140,"d":"140.00"}},{"$f":"(1-Inputs!B20)*C11/'(Other Computations)'!B130","v":{"v":139.6730321264592,"d":"139.67"}},{"$f":"(1-Inputs!B20)*D11/'(Other Computations)'!B130","v":{"v":139.2376467167364,"d":"139.24"}},{"$f":"(1-Inputs!B20)*E11/'(Other Computations)'!B130","v":{"v":138.9600466533387,"d":"138.96"}},{"$f":"(1-Inputs!B20)*F11/'(Other Computations)'!B130","v":{"v":138.71366004797238,"d":"138.71"}},{"$f":"(1-Inputs!B20)*G11/'(Other Computations)'!B130","v":{"v":138.4167348246212,"d":"138.42"}},{"$f":"(1-Inputs!B20)*H11/'(Other Computations)'!B130","v":{"v":138.05427040158935,"d":"138.05"}},{"$f":"(1-Inputs!B20)*I11/'(Other Computations)'!B130","v":{"v":137.7280450754126,"d":"137.73"}},{"$f":"(1-Inputs!B20)*J11/'(Other Computations)'!B130","v":{"v":137.40352158836964,"d":"137.40"}},{"$f":"(1-Inputs!B20)*K11/'(Other Computations)'!B130","v":{"v":137.14765880736277,"d":"137.15"}},{"$f":"(1-Inputs!B20)*L11/'(Other Computations)'!B130","v":{"v":136.8380619046371,"d":"136.84"}},{"$f":"(1-Inputs!B20)*M11/'(Other Computations)'!B130","v":{"v":136.61916366455674,"d":"136.62"}},{"$f":"SUM(B29:M29)","v":{"v":1658.791841811056,"d":"1,658.79"}},{"$f":"(1-Inputs!B20)*O11/'(Other Computations)'!B130","v":{"v":136.3133973435108,"d":"136.31"}},{"$f":"(1-Inputs!B20)*P11/'(Other Computations)'!B130","v":{"v":136.0848105911001,"d":"136.08"}},{"$f":"(1-Inputs!B20)*Q11/'(Other Computations)'!B130","v":{"v":135.77222656244092,"d":"135.77"}},{"$f":"(1-Inputs!B20)*R11/'(Other Computations)'!B130","v":{"v":135.55058923297696,"d":"135.55"}},{"$f":"(1-Inputs!B20)*S11/'(Other Computations)'!B130","v":{"v":135.30805567075882,"d":"135.31"}},{"$f":"(1-Inputs!B20)*T11/'(Other Computations)'!B130","v":{"v":134.9274943911621,"d":"134.93"}},{"$f":"(1-Inputs!B20)*U11/'(Other Computations)'!B130","v":{"v":134.62740949053844,"d":"134.63"}},{"$f":"(1-Inputs!B20)*V11/'(Other Computations)'!B130","v":{"v":134.38075930011343,"d":"134.38"}},{"$f":"(1-Inputs!B20)*W11/'(Other Computations)'!B130","v":{"v":134.0633938402943,"d":"134.06"}},{"$f":"(1-Inputs!B20)*X11/'(Other Computations)'!B130","v":{"v":133.76185039526854,"d":"133.76"}},{"$f":"(1-Inputs!B20)*Y11/'(Other Computations)'!B130","v":{"v":133.51051299999716,"d":"133.51"}},{"$f":"(1-Inputs!B20)*Z11/'(Other Computations)'!B130","v":{"v":133.2931559883845,"d":"133.29"}},{"$f":"SUM(O29:Z29)","v":{"v":1617.5936558065462,"d":"1,617.59"}},{"$f":"(1-Inputs!B20)*AB11/'(Other Computations)'!B130","v":{"v":132.97356405766612,"d":"132.97"}},{"$f":"(1-Inputs!B20)*AC11/'(Other Computations)'!B130","v":{"v":132.72446518449507,"d":"132.72"}},{"$f":"(1-Inputs!B20)*AD11/'(Other Computations)'!B130","v":{"v":132.49625890843328,"d":"132.50"}},{"$f":"(1-Inputs!B20)*AE11/'(Other Computations)'!B130","v":{"v":132.30110230556252,"d":"132.30"}},{"$f":"(1-Inputs!B20)*AF11/'(Other Computations)'!B130","v":{"v":132.0660882353655,"d":"132.07"}},{"$f":"(1-Inputs!B20)*AG11/'(Other Computations)'!B130","v":{"v":131.87561074539687,"d":"131.88"}},{"$f":"(1-Inputs!B20)*AH11/'(Other Computations)'!B130","v":{"v":131.64213124776916,"d":"131.64"}},{"$f":"(1-Inputs!B20)*AI11/'(Other Computations)'!B130","v":{"v":131.44062960684332,"d":"131.44"}},{"$f":"(1-Inputs!B20)*AJ11/'(Other Computations)'!B130","v":{"v":131.18533798290923,"d":"131.19"}},{"$f":"(1-Inputs!B20)*AK11/'(Other Computations)'!B130","v":{"v":130.9066946907043,"d":"130.91"}},{"$f":"(1-Inputs!B20)*AL11/'(Other Computations)'!B130","v":{"v":130.67500521783688,"d":"130.68"}},{"$f":"(1-Inputs!B20)*AM11/'(Other Computations)'!B130","v":{"v":130.49021358317003,"d":"130.49"}},{"$f":"SUM(AB29:AM29)","v":{"v":1580.7771017661523,"d":"1,580.78"}},{"$f":"(1-Inputs!B20)*AO11/'(Other Computations)'!B130","v":{"v":130.33723746107898,"d":"130.34"}},{"$f":"(1-Inputs!B20)*AP11/'(Other Computations)'!B130","v":{"v":130.12251693249434,"d":"130.12"}},{"$f":"(1-Inputs!B20)*AQ11/'(Other Computations)'!B130","v":{"v":129.87794792164826,"d":"129.88"}},{"$f":"(1-Inputs!B20)*AR11/'(Other Computations)'!B130","v":{"v":129.61784497451515,"d":"129.62"}},{"$f":"(1-Inputs!B20)*AS11/'(Other Computations)'!B130","v":{"v":129.40176597321485,"d":"129.40"}},{"$f":"(1-Inputs!B20)*AT11/'(Other Computations)'!B130","v":{"v":129.16174836992045,"d":"129.16"}},{"$f":"(1-Inputs!B20)*AU11/'(Other Computations)'!B130","v":{"v":128.90344933622902,"d":"128.90"}},{"$f":"(1-Inputs!B20)*AV11/'(Other Computations)'!B130","v":{"v":128.59321979035528,"d":"128.59"}},{"$f":"(1-Inputs!B20)*AW11/'(Other Computations)'!B130","v":{"v":128.39271065523377,"d":"128.39"}},{"$f":"(1-Inputs!B20)*AX11/'(Other Computations)'!B130","v":{"v":128.1499802960034,"d":"128.15"}},{"$f":"(1-Inputs!B20)*AY11/'(Other Computations)'!B130","v":{"v":127.87060868785798,"d":"127.87"}},{"$f":"(1-Inputs!B20)*AZ11/'(Other Computations)'!B130","v":{"v":127.68809998682212,"d":"127.69"}},{"$f":"SUM(AO29:AZ29)","v":{"v":1548.1171303853737,"d":"1,548.12"}},{"$f":"(1-Inputs!B20)*BB11/'(Other Computations)'!B130","v":{"v":127.55493433859728,"d":"127.55"}},{"$f":"(1-Inputs!B20)*BC11/'(Other Computations)'!B130","v":{"v":127.25834223897405,"d":"127.26"}},{"$f":"(1-Inputs!B20)*BD11/'(Other Computations)'!B130","v":{"v":127.00466823691585,"d":"127.00"}},{"$f":"(1-Inputs!B20)*BE11/'(Other Computations)'!B130","v":{"v":126.77195781433169,"d":"126.77"}},{"$f":"(1-Inputs!B20)*BF11/'(Other Computations)'!B130","v":{"v":126.53007643661552,"d":"126.53"}},{"$f":"(1-Inputs!B20)*BG11/'(Other Computations)'!B130","v":{"v":126.3311294732821,"d":"126.33"}},{"$f":"(1-Inputs!B20)*BH11/'(Other Computations)'!B130","v":{"v":126.1585839266776,"d":"126.16"}},{"$f":"(1-Inputs!B20)*BI11/'(Other Computations)'!B130","v":{"v":126.01599424856616,"d":"126.02"}},{"$f":"(1-Inputs!B20)*BJ11/'(Other Computations)'!B130","v":{"v":125.78960274298646,"d":"125.79"}},{"$f":"(1-Inputs!B20)*BK11/'(Other Computations)'!B130","v":{"v":125.68303230614389,"d":"125.68"}},{"$f":"(1-Inputs!B20)*BL11/'(Other Computations)'!B130","v":{"v":125.51548260565922,"d":"125.52"}},{"$f":"(1-Inputs!B20)*BM11/'(Other Computations)'!B130","v":{"v":125.24866504374606,"d":"125.25"}},{"$f":"SUM(BB29:BM29)","v":{"v":1515.8624694124958,"d":"1,515.86"}},{"$f":"(1-Inputs!B20)*BO11/'(Other Computations)'!B130","v":{"v":125.08654907145366,"d":"125.09"}},{"$f":"(1-Inputs!B20)*BP11/'(Other Computations)'!B130","v":{"v":124.8120491045071,"d":"124.81"}},{"$f":"(1-Inputs!B20)*BQ11/'(Other Computations)'!B130","v":{"v":124.61431279655483,"d":"124.61"}},{"$f":"(1-Inputs!B20)*BR11/'(Other Computations)'!B130","v":{"v":124.40905355338711,"d":"124.41"}},{"$f":"(1-Inputs!B20)*BS11/'(Other Computations)'!B130","v":{"v":124.18515836793709,"d":"124.19"}},{"$f":"(1-Inputs!B20)*BT11/'(Other Computations)'!B130","v":{"v":123.91688302093097,"d":"123.92"}},{"$f":"(1-Inputs!B20)*BU11/'(Other Computations)'!B130","v":{"v":123.80287878113188,"d":"123.80"}},{"$f":"(1-Inputs!B20)*BV11/'(Other Computations)'!B130","v":{"v":123.6372803097831,"d":"123.64"}},{"$f":"(1-Inputs!B20)*BW11/'(Other Computations)'!B130","v":{"v":123.497337790275,"d":"123.50"}},{"$f":"(1-Inputs!B20)*BX11/'(Other Computations)'!B130","v":{"v":123.37612857739985,"d":"123.38"}},{"$f":"(1-Inputs!B20)*BY11/'(Other Computations)'!B130","v":{"v":123.16505167722404,"d":"123.17"}},{"$f":"(1-Inputs!B20)*BZ11/'(Other Computations)'!B130","v":{"v":123.08577833904558,"d":"123.09"}},{"$f":"SUM(BO29:BZ29)","v":{"v":1487.5884613896303,"d":"1,487.59"}},{"$f":"(1-Inputs!B20)*CB11/'(Other Computations)'!B130","v":{"v":122.97142997902611,"d":"122.97"}},{"$f":"(1-Inputs!B20)*CC11/'(Other Computations)'!B130","v":{"v":122.81554349843987,"d":"122.82"}},{"$f":"(1-Inputs!B20)*CD11/'(Other Computations)'!B130","v":{"v":122.64749983267853,"d":"122.65"}},{"$f":"(1-Inputs!B20)*CE11/'(Other Computations)'!B130","v":{"v":122.57417996284373,"d":"122.57"}},{"$f":"(1-Inputs!B20)*CF11/'(Other Computations)'!B130","v":{"v":122.40033969620588,"d":"122.40"}},{"$f":"(1-Inputs!B20)*CG11/'(Other Computations)'!B130","v":{"v":122.22094415565184,"d":"122.22"}},{"$f":"(1-Inputs!B20)*CH11/'(Other Computations)'!B130","v":{"v":122.11210647917899,"d":"122.11"}},{"$f":"(1-Inputs!B20)*CI11/'(Other Computations)'!B130","v":{"v":122.00120808134145,"d":"122.00"}},{"$f":"(1-Inputs!B20)*CJ11/'(Other Computations)'!B130","v":{"v":121.91390748988262,"d":"121.91"}},{"$f":"(1-Inputs!B20)*CK11/'(Other Computations)'!B130","v":{"v":121.7672896261648,"d":"121.77"}},{"$f":"(1-Inputs!B20)*CL11/'(Other Computations)'!B130","v":{"v":121.64337317675434,"d":"121.64"}},{"$f":"(1-Inputs!B20)*CM11/'(Other Computations)'!B130","v":{"v":121.55712496684801,"d":"121.56"}},{"$f":"SUM(CB29:CM29)","v":{"v":1466.6249469450163,"d":"1,466.62"}},{"$f":"(1-Inputs!B20)*CO11/'(Other Computations)'!B130","v":{"v":121.45671183647447,"d":"121.46"}},{"$f":"(1-Inputs!B20)*CP11/'(Other Computations)'!B130","v":{"v":121.32402542380497,"d":"121.32"}},{"$f":"(1-Inputs!B20)*CQ11/'(Other Computations)'!B130","v":{"v":121.23998234241441,"d":"121.24"}},{"$f":"(1-Inputs!B20)*CR11/'(Other Computations)'!B130","v":{"v":121.0985475960266,"d":"121.10"}},{"$f":"(1-Inputs!B20)*CS11/'(Other Computations)'!B130","v":{"v":120.95993872701659,"d":"120.96"}},{"$f":"(1-Inputs!B20)*CT11/'(Other Computations)'!B130","v":{"v":120.773911810854,"d":"120.77"}},{"$f":"(1-Inputs!B20)*CU11/'(Other Computations)'!B130","v":{"v":120.59661716888537,"d":"120.60"}},{"$f":"(1-Inputs!B20)*CV11/'(Other Computations)'!B130","v":{"v":120.5431182315876,"d":"120.54"}},{"$f":"(1-Inputs!B20)*CW11/'(Other Computations)'!B130","v":{"v":120.34926317085834,"d":"120.35"}},{"$f":"(1-Inputs!B20)*CX11/'(Other Computations)'!B130","v":{"v":120.29278265958023,"d":"120.29"}},{"$f":"(1-Inputs!B20)*CY11/'(Other Computations)'!B130","v":{"v":120.17307970329362,"d":"120.17"}},{"$f":"(1-Inputs!B20)*CZ11/'(Other Computations)'!B130","v":{"v":119.99317505982731,"d":"119.99"}},{"$f":"SUM(CO29:CZ29)","v":{"v":1448.8011537306236,"d":"1,448.80"}},{"$f":"(1-Inputs!B20)*DB11/'(Other Computations)'!B130","v":{"v":119.88712466773997,"d":"119.89"}},{"$f":"(1-Inputs!B20)*DC11/'(Other Computations)'!B130","v":{"v":119.78792087298616,"d":"119.79"}},{"$f":"(1-Inputs!B20)*DD11/'(Other Computations)'!B130","v":{"v":119.57124317543442,"d":"119.57"}},{"$f":"(1-Inputs!B20)*DE11/'(Other Computations)'!B130","v":{"v":119.41129651935744,"d":"119.41"}},{"$f":"(1-Inputs!B20)*DF11/'(Other Computations)'!B130","v":{"v":119.28239232963975,"d":"119.28"}},{"$f":"(1-Inputs!B20)*DG11/'(Other Computations)'!B130","v":{"v":119.08048600569039,"d":"119.08"}},{"$f":"(1-Inputs!B20)*DH11/'(Other Computations)'!B130","v":{"v":118.94065262085125,"d":"118.94"}},{"$f":"(1-Inputs!B20)*DI11/'(Other Computations)'!B130","v":{"v":118.75264032168418,"d":"118.75"}},{"$f":"(1-Inputs!B20)*DJ11/'(Other Computations)'!B130","v":{"v":118.56195645932121,"d":"118.56"}},{"$f":"(1-Inputs!B20)*DK11/'(Other Computations)'!B130","v":{"v":118.3550648676119,"d":"118.36"}},{"$f":"(1-Inputs!B20)*DL11/'(Other Computations)'!B130","v":{"v":118.24421104612262,"d":"118.24"}},{"$f":"(1-Inputs!B20)*DM11/'(Other Computations)'!B130","v":{"v":118.0806688574481,"d":"118.08"}},{"$f":"SUM(DB29:DM29)","v":{"v":1427.9556577438873,"d":"1,427.96"}},{"$f":"(1-Inputs!B20)*DO11/'(Other Computations)'!B130","v":{"v":117.94387539502686,"d":"117.94"}},{"$f":"(1-Inputs!B20)*DP11/'(Other Computations)'!B130","v":{"v":117.88604404735294,"d":"117.89"}},{"$f":"(1-Inputs!B20)*DQ11/'(Other Computations)'!B130","v":{"v":117.73167999718692,"d":"117.73"}},{"$f":"(1-Inputs!B20)*DR11/'(Other Computations)'!B130","v":{"v":117.58395708689777,"d":"117.58"}},{"$f":"(1-Inputs!B20)*DS11/'(Other Computations)'!B130","v":{"v":117.47008292656686,"d":"117.47"}},{"$f":"(1-Inputs!B20)*DT11/'(Other Computations)'!B130","v":{"v":117.3480916124829,"d":"117.35"}},{"$f":"(1-Inputs!B20)*DU11/'(Other Computations)'!B130","v":{"v":117.26881253357739,"d":"117.27"}},{"$f":"(1-Inputs!B20)*DV11/'(Other Computations)'!B130","v":{"v":117.21398697040134,"d":"117.21"}},{"$f":"(1-Inputs!B20)*DW11/'(Other Computations)'!B130","v":{"v":117.16868196648028,"d":"117.17"}},{"$f":"(1-Inputs!B20)*DX11/'(Other Computations)'!B130","v":{"v":117.06886457865981,"d":"117.07"}},{"$f":"(1-Inputs!B20)*DY11/'(Other Computations)'!B130","v":{"v":117.00074867677667,"d":"117.00"}},{"$f":"(1-Inputs!B20)*DZ11/'(Other Computations)'!B130","v":{"v":116.87961089403443,"d":"116.88"}},{"$f":"SUM(DO29:DZ29)","v":{"v":1408.5644366854442,"d":"1,408.56"}},{"$f":"(1-Inputs!B20)*EB11/'(Other Computations)'!B130","v":{"v":116.76599920082327,"d":"116.77"}},{"$f":"(1-Inputs!B20)*EC11/'(Other Computations)'!B130","v":{"v":116.71476503380418,"d":"116.71"}},{"$f":"(1-Inputs!B20)*ED11/'(Other Computations)'!B130","v":{"v":116.6090081102914,"d":"116.61"}},{"$f":"(1-Inputs!B20)*EE11/'(Other Computations)'!B130","v":{"v":116.52750531201868,"d":"116.53"}},{"$f":"(1-Inputs!B20)*EF11/'(Other Computations)'!B130","v":{"v":116.46186558189497,"d":"116.46"}},{"$f":"(1-Inputs!B20)*EG11/'(Other Computations)'!B130","v":{"v":116.353739478849,"d":"116.35"}},{"$f":"(1-Inputs!B20)*EH11/'(Other Computations)'!B130","v":{"v":116.2699976670457,"d":"116.27"}},{"$f":"(1-Inputs!B20)*EI11/'(Other Computations)'!B130","v":{"v":116.1627290585717,"d":"116.16"}},{"$f":"(1-Inputs!B20)*EJ11/'(Other Computations)'!B130","v":{"v":116.07890533470731,"d":"116.08"}},{"$f":"(1-Inputs!B20)*EK11/'(Other Computations)'!B130","v":{"v":116.04078262090631,"d":"116.04"}},{"$f":"(1-Inputs!B20)*EL11/'(Other Computations)'!B130","v":{"v":116.02438512144342,"d":"116.02"}},{"$f":"(1-Inputs!B20)*EM11/'(Other Computations)'!B130","v":{"v":115.85866053811083,"d":"115.86"}},{"$f":"SUM(EB29:EM29)","v":{"v":1395.8683430584667,"d":"1,395.87"}}]
[]
[]
[{"$f":"\"Income\"","v":"Income"}]
[{"$f":"\" \"","v":" "}]
[null,{"$f":"ZZZ__FnCalls!F7","v":"Jan 2010"},{"$f":"ZZZ__FnCalls!F8","v":"Feb 2010"},{"$f":"ZZZ__FnCalls!F9","v":"Mar 2010"},{"$f":"ZZZ__FnCalls!F10","v":"Apr 2010"},{"$f":"ZZZ__FnCalls!F11","v":"May 2010"},{"$f":"ZZZ__FnCalls!F12","v":"Jun 2010"},{"$f":"ZZZ__FnCalls!F13","v":"Jul 2010"},{"$f":"ZZZ__FnCalls!F14","v":"Aug 2010"},{"$f":"ZZZ__FnCalls!F15","v":"Sep 2010"},{"$f":"ZZZ__FnCalls!F16","v":"Oct 2010"},{"$f":"ZZZ__FnCalls!F17","v":"Nov 2010"},{"$f":"ZZZ__FnCalls!F18","v":"Dec 2010"},{"$f":"ZZZ__FnCalls!H7","v":"2010"},{"$f":"ZZZ__FnCalls!F19","v":"Jan 2011"},{"$f":"ZZZ__FnCalls!F20","v":"Feb 2011"},{"$f":"ZZZ__FnCalls!F21","v":"Mar 2011"},{"$f":"ZZZ__FnCalls!F22","v":"Apr 2011"},{"$f":"ZZZ__FnCalls!F23","v":"May 2011"},{"$f":"ZZZ__FnCalls!F24","v":"Jun 2011"},{"$f":"ZZZ__FnCalls!F25","v":"Jul 2011"},{"$f":"ZZZ__FnCalls!F26","v":"Aug 2011"},{"$f":"ZZZ__FnCalls!F27","v":"Sep 2011"},{"$f":"ZZZ__FnCalls!F28","v":"Oct 2011"},{"$f":"ZZZ__FnCalls!F29","v":"Nov 2011"},{"$f":"ZZZ__FnCalls!F30","v":"Dec 2011"},{"$f":"ZZZ__FnCalls!H19","v":"2011"},{"$f":"ZZZ__FnCalls!F31","v":"Jan 2012"},{"$f":"ZZZ__FnCalls!F32","v":"Feb 2012"},{"$f":"ZZZ__FnCalls!F33","v":"Mar 2012"},{"$f":"ZZZ__FnCalls!F34","v":"Apr 2012"},{"$f":"ZZZ__FnCalls!F35","v":"May 2012"},{"$f":"ZZZ__FnCalls!F36","v":"Jun 2012"},{"$f":"ZZZ__FnCalls!F37","v":"Jul 2012"},{"$f":"ZZZ__FnCalls!F38","v":"Aug 2012"},{"$f":"ZZZ__FnCalls!F39","v":"Sep 2012"},{"$f":"ZZZ__FnCalls!F40","v":"Oct 2012"},{"$f":"ZZZ__FnCalls!F41","v":"Nov 2012"},{"$f":"ZZZ__FnCalls!F42","v":"Dec 2012"},{"$f":"ZZZ__FnCalls!H31","v":"2012"},{"$f":"ZZZ__FnCalls!F43","v":"Jan 2013"},{"$f":"ZZZ__FnCalls!F44","v":"Feb 2013"},{"$f":"ZZZ__FnCalls!F45","v":"Mar 2013"},{"$f":"ZZZ__FnCalls!F46","v":"Apr 2013"},{"$f":"ZZZ__FnCalls!F47","v":"May 2013"},{"$f":"ZZZ__FnCalls!F48","v":"Jun 2013"},{"$f":"ZZZ__FnCalls!F49","v":"Jul 2013"},{"$f":"ZZZ__FnCalls!F50","v":"Aug 2013"},{"$f":"ZZZ__FnCalls!F51","v":"Sep 2013"},{"$f":"ZZZ__FnCalls!F52","v":"Oct 2013"},{"$f":"ZZZ__FnCalls!F53","v":"Nov 2013"},{"$f":"ZZZ__FnCalls!F54","v":"Dec 2013"},{"$f":"ZZZ__FnCalls!H43","v":"2013"},{"$f":"ZZZ__FnCalls!F55","v":"Jan 2014"},{"$f":"ZZZ__FnCalls!F56","v":"Feb 2014"},{"$f":"ZZZ__FnCalls!F57","v":"Mar 2014"},{"$f":"ZZZ__FnCalls!F58","v":"Apr 2014"},{"$f":"ZZZ__FnCalls!F59","v":"May 2014"},{"$f":"ZZZ__FnCalls!F60","v":"Jun 2014"},{"$f":"ZZZ__FnCalls!F61","v":"Jul 2014"},{"$f":"ZZZ__FnCalls!F62","v":"Aug 2014"},{"$f":"ZZZ__FnCalls!F63","v":"Sep 2014"},{"$f":"ZZZ__FnCalls!F64","v":"Oct 2014"},{"$f":"ZZZ__FnCalls!F65","v":"Nov 2014"},{"$f":"ZZZ__FnCalls!F66","v":"Dec 2014"},{"$f":"ZZZ__FnCalls!H55","v":"2014"},{"$f":"ZZZ__FnCalls!F67","v":"Jan 2015"},{"$f":"ZZZ__FnCalls!F68","v":"Feb 2015"},{"$f":"ZZZ__FnCalls!F69","v":"Mar 2015"},{"$f":"ZZZ__FnCalls!F70","v":"Apr 2015"},{"$f":"ZZZ__FnCalls!F71","v":"May 2015"},{"$f":"ZZZ__FnCalls!F72","v":"Jun 2015"},{"$f":"ZZZ__FnCalls!F73","v":"Jul 2015"},{"$f":"ZZZ__FnCalls!F74","v":"Aug 2015"},{"$f":"ZZZ__FnCalls!F75","v":"Sep 2015"},{"$f":"ZZZ__FnCalls!F76","v":"Oct 2015"},{"$f":"ZZZ__FnCalls!F77","v":"Nov 2015"},{"$f":"ZZZ__FnCalls!F78","v":"Dec 2015"},{"$f":"ZZZ__FnCalls!H67","v":"2015"},{"$f":"ZZZ__FnCalls!F79","v":"Jan 2016"},{"$f":"ZZZ__FnCalls!F80","v":"Feb 2016"},{"$f":"ZZZ__FnCalls!F81","v":"Mar 2016"},{"$f":"ZZZ__FnCalls!F82","v":"Apr 2016"},{"$f":"ZZZ__FnCalls!F83","v":"May 2016"},{"$f":"ZZZ__FnCalls!F84","v":"Jun 2016"},{"$f":"ZZZ__FnCalls!F85","v":"Jul 2016"},{"$f":"ZZZ__FnCalls!F86","v":"Aug 2016"},{"$f":"ZZZ__FnCalls!F87","v":"Sep 2016"},{"$f":"ZZZ__FnCalls!F88","v":"Oct 2016"},{"$f":"ZZZ__FnCalls!F89","v":"Nov 2016"},{"$f":"ZZZ__FnCalls!F90","v":"Dec 2016"},{"$f":"ZZZ__FnCalls!H79","v":"2016"},{"$f":"ZZZ__FnCalls!F91","v":"Jan 2017"},{"$f":"ZZZ__FnCalls!F92","v":"Feb 2017"},{"$f":"ZZZ__FnCalls!F93","v":"Mar 2017"},{"$f":"ZZZ__FnCalls!F94","v":"Apr 2017"},{"$f":"ZZZ__FnCalls!F95","v":"May 2017"},{"$f":"ZZZ__FnCalls!F96","v":"Jun 2017"},{"$f":"ZZZ__FnCalls!F97","v":"Jul 2017"},{"$f":"ZZZ__FnCalls!F98","v":"Aug 2017"},{"$f":"ZZZ__FnCalls!F99","v":"Sep 2017"},{"$f":"ZZZ__FnCalls!F100","v":"Oct 2017"},{"$f":"ZZZ__FnCalls!F101","v":"Nov 2017"},{"$f":"ZZZ__FnCalls!F102","v":"Dec 2017"},{"$f":"ZZZ__FnCalls!H91","v":"2017"},{"$f":"ZZZ__FnCalls!F103","v":"Jan 2018"},{"$f":"ZZZ__FnCalls!F104","v":"Feb 2018"},{"$f":"ZZZ__FnCalls!F105","v":"Mar 2018"},{"$f":"ZZZ__FnCalls!F106","v":"Apr 2018"},{"$f":"ZZZ__FnCalls!F107","v":"May 2018"},{"$f":"ZZZ__FnCalls!F108","v":"Jun 2018"},{"$f":"ZZZ__FnCalls!F109","v":"Jul 2018"},{"$f":"ZZZ__FnCalls!F110","v":"Aug 2018"},{"$f":"ZZZ__FnCalls!F111","v":"Sep 2018"},{"$f":"ZZZ__FnCalls!F112","v":"Oct 2018"},{"$f":"ZZZ__FnCalls!F113","v":"Nov 2018"},{"$f":"ZZZ__FnCalls!F114","v":"Dec 2018"},{"$f":"ZZZ__FnCalls!H103","v":"2018"},{"$f":"ZZZ__FnCalls!F115","v":"Jan 2019"},{"$f":"ZZZ__FnCalls!F116","v":"Feb 2019"},{"$f":"ZZZ__FnCalls!F117","v":"Mar 2019"},{"$f":"ZZZ__FnCalls!F118","v":"Apr 2019"},{"$f":"ZZZ__FnCalls!F119","v":"May 2019"},{"$f":"ZZZ__FnCalls!F120","v":"Jun 2019"},{"$f":"ZZZ__FnCalls!F121","v":"Jul 2019"},{"$f":"ZZZ__FnCalls!F122","v":"Aug 2019"},{"$f":"ZZZ__FnCalls!F123","v":"Sep 2019"},{"$f":"ZZZ__FnCalls!F124","v":"Oct 2019"},{"$f":"ZZZ__FnCalls!F125","v":"Nov 2019"},{"$f":"ZZZ__FnCalls!F126","v":"Dec 2019"},{"$f":"ZZZ__FnCalls!H115","v":"2019"},{"$f":"ZZZ__FnCalls!F127","v":"Jan 2020"},{"$f":"ZZZ__FnCalls!F128","v":"Feb 2020"},{"$f":"ZZZ__FnCalls!F129","v":"Mar 2020"},{"$f":"ZZZ__FnCalls!F130","v":"Apr 2020"},{"$f":"ZZZ__FnCalls!F131","v":"May 2020"},{"$f":"ZZZ__FnCalls!F132","v":"Jun 2020"},{"$f":"ZZZ__FnCalls!F133","v":"Jul 2020"},{"$f":"ZZZ__FnCalls!F134","v":"Aug 2020"},{"$f":"ZZZ__FnCalls!F135","v":"Sep 2020"},{"$f":"ZZZ__FnCalls!F136","v":"Oct 2020"},{"$f":"ZZZ__FnCalls!F137","v":"Nov 2020"},{"$f":"ZZZ__FnCalls!F138","v":"Dec 2020"},{"$f":"ZZZ__FnCalls!H127","v":"2020"}]
[{"$f":"Labels!B55","v":"Current Disposable Income"},{"$f":"B44-B54+B38","v":{"v":830793.9878369995,"d":"$830,794"}},{"v":798579.9654662417,"d":"$798,580"},{"v":844484.5200155418,"d":"$844,485"},{"v":829737.5499698165,"d":"$829,738"},{"v":789768.8589595292,"d":"$789,769"},{"v":838020.0858601225,"d":"$838,020"},{"v":807116.0470087474,"d":"$807,116"},{"v":842244.6694717061,"d":"$842,245"},{"v":854866.9190521823,"d":"$854,867"},{"v":813232.9181508586,"d":"$813,233"},{"v":830538.9254708692,"d":"$830,539"},{"v":781947.5881335086,"d":"$781,948"},{"$f":"SUM(B35:M35)","v":{"v":9861332.035396125,"d":"$9,861,332"}},{"$f":"O44-O54+O38","v":{"v":790468.4146098301,"d":"$790,468"}},{"v":827754.9004897331,"d":"$827,755"},{"v":859187.2948429001,"d":"$859,187"},{"v":787966.71652352,"d":"$787,967"},{"v":820848.3148871415,"d":"$820,848"},{"v":849575.9566398942,"d":"$849,576"},{"v":798217.4961618388,"d":"$798,217"},{"v":828388.9425499245,"d":"$828,389"},{"v":832117.1928997556,"d":"$832,117"},{"v":809011.681782363,"d":"$809,012"},{"v":792529.8773384466,"d":"$792,530"},{"v":831508.5668716304,"d":"$831,509"},{"$f":"SUM(O35:Z35)","v":{"v":9827575.355596976,"d":"$9,827,575"}},{"$f":"AB44-AB54+AB38","v":{"v":776844.1838480554,"d":"$776,844"}},{"v":790313.2730360093,"d":"$790,313"},{"v":841618.6991520448,"d":"$841,619"},{"v":798200.2106338699,"d":"$798,200"},{"v":840893.0413089237,"d":"$840,893"},{"v":827798.5722824357,"d":"$827,799"},{"v":809722.15389444,"d":"$809,722"},{"v":774576.3383497723,"d":"$774,576"},{"v":840873.9865962734,"d":"$840,874"},{"v":778771.5309278738,"d":"$778,772"},{"v":757764.531835306,"d":"$757,765"},{"v":786866.6026333947,"d":"$786,867"},{"$f":"SUM(AB35:AM35)","v":{"v":9624243.124498399,"d":"$9,624,243"}},{"$f":"AO44-AO54+AO38","v":{"v":821091.4999133078,"d":"$821,091"}},{"v":789813.6208609723,"d":"$789,814"},{"v":803326.9045173252,"d":"$803,327"},{"v":825967.3486297865,"d":"$825,967"},{"v":774897.392313989,"d":"$774,897"},{"v":756703.9755539936,"d":"$756,704"},{"v":808177.5611644496,"d":"$808,178"},{"v":786727.6693523639,"d":"$786,728"},{"v":771056.9104501313,"d":"$771,057"},{"v":783810.4554388652,"d":"$783,810"},{"v":781108.0192469709,"d":"$781,108"},{"v":828045.2416185973,"d":"$828,045"},{"$f":"SUM(AO35:AZ35)","v":{"v":9530726.599060753,"d":"$9,530,727"}},{"$f":"BB44-BB54+BB38","v":{"v":810969.8997815485,"d":"$810,970"}},{"v":785912.3373984514,"d":"$785,912"},{"v":812452.3375519332,"d":"$812,452"},{"v":781999.6324164114,"d":"$782,000"},{"v":757322.3244568215,"d":"$757,322"},{"v":760116.876000129,"d":"$760,117"},{"v":786906.0558527613,"d":"$786,906"},{"v":773288.717303495,"d":"$773,289"},{"v":791653.3907236167,"d":"$791,653"},{"v":793680.6656078886,"d":"$793,681"},{"v":796909.4187474274,"d":"$796,909"},{"v":760398.4873685747,"d":"$760,398"},{"$f":"SUM(BB35:BM35)","v":{"v":9411610.143209059,"d":"$9,411,610"}},{"$f":"BO44-BO54+BO38","v":{"v":773065.3737034444,"d":"$773,065"}},{"v":795009.4209029377,"d":"$795,009"},{"v":767521.6636485782,"d":"$767,522"},{"v":767068.6919155268,"d":"$767,069"},{"v":792638.0413351046,"d":"$792,638"},{"v":792460.1188205242,"d":"$792,460"},{"v":758823.6969568174,"d":"$758,824"},{"v":782015.9547657389,"d":"$782,016"},{"v":791416.0140213353,"d":"$791,416"},{"v":754331.1200122568,"d":"$754,331"},{"v":781207.1351211821,"d":"$781,207"},{"v":762180.749993065,"d":"$762,181"},{"$f":"SUM(BO35:BZ35)","v":{"v":9317737.981196512,"d":"$9,317,738"}},{"$f":"CB44-CB54+CB38","v":{"v":746199.2362159418,"d":"$746,199"}},{"v":756657.3416247711,"d":"$756,657"},{"v":767687.757898843,"d":"$767,688"},{"v":759422.0388791176,"d":"$759,422"},{"v":741172.7109526189,"d":"$741,173"},{"v":773741.6864796575,"d":"$773,742"},{"v":718149.6190744987,"d":"$718,150"},{"v":775338.3014657324,"d":"$775,338"},{"v":739449.9125623849,"d":"$739,450"},{"v":779807.9333390837,"d":"$779,808"},{"v":723307.8514623335,"d":"$723,308"},{"v":730755.8783238517,"d":"$730,756"},{"$f":"SUM(CB35:CM35)","v":{"v":9011690.268278833,"d":"$9,011,690"}},{"$f":"CO44-CO54+CO38","v":{"v":759949.9897905978,"d":"$759,950"}},{"v":712142.0367415395,"d":"$712,142"},{"v":710999.7394440129,"d":"$711,000"},{"v":770507.191605369,"d":"$770,507"},{"v":762393.4254406736,"d":"$762,393"},{"v":742874.2487211935,"d":"$742,874"},{"v":768873.4908177134,"d":"$768,873"},{"v":761971.5727490806,"d":"$761,972"},{"v":736238.985418954,"d":"$736,239"},{"v":734643.8307366865,"d":"$734,644"},{"v":763483.7148416118,"d":"$763,484"},{"v":761999.6543173064,"d":"$762,000"},{"$f":"SUM(CO35:CZ35)","v":{"v":8986077.88062474,"d":"$8,986,078"}},{"$f":"DB44-DB54+DB38","v":{"v":748917.5176627255,"d":"$748,918"}},{"v":741159.2370992518,"d":"$741,159"},{"v":740687.2260925932,"d":"$740,687"},{"v":747250.6927153653,"d":"$747,251"},{"v":727187.2684489816,"d":"$727,187"},{"v":732985.8783600841,"d":"$732,986"},{"v":737369.8624545197,"d":"$737,370"},{"v":738791.1176780611,"d":"$738,791"},{"v":731493.1114080191,"d":"$731,493"},{"v":761020.2750272515,"d":"$761,020"},{"v":715765.6668818829,"d":"$715,766"},{"v":734415.5839767869,"d":"$734,416"},{"$f":"SUM(DB35:DM35)","v":{"v":8857043.437805522,"d":"$8,857,043"}},{"$f":"DO44-DO54+DO38","v":{"v":750645.416792632,"d":"$750,645"}},{"v":719374.6132225828,"d":"$719,375"},{"v":744693.5555120427,"d":"$744,694"},{"v":745177.3985380484,"d":"$745,177"},{"v":742639.7706457407,"d":"$742,640"},{"v":729012.8416650336,"d":"$729,013"},{"v":758243.8572510456,"d":"$758,244"},{"v":714091.0938121424,"d":"$714,091"},{"v":723308.3860477981,"d":"$723,308"},{"v":727658.9083655741,"d":"$727,659"},{"v":750429.1771461567,"d":"$750,429"},{"v":710872.7631742904,"d":"$710,873"},{"$f":"SUM(DO35:DZ35)","v":{"v":8816147.782173086,"d":"$8,816,148"}},{"$f":"EB44-EB54+EB38","v":{"v":701642.3303540255,"d":"$701,642"}},{"v":744991.3796394017,"d":"$744,991"},{"v":712131.9319155536,"d":"$712,132"},{"v":725858.4672102487,"d":"$725,858"},{"v":702996.1413733348,"d":"$702,996"},{"v":758640.3034668976,"d":"$758,640"},{"v":704309.8253167132,"d":"$704,310"},{"v":738411.2135902065,"d":"$738,411"},{"v":752612.2394722743,"d":"$752,612"},{"v":731721.561617493,"d":"$731,722"},{"v":725224.0566427574,"d":"$725,224"},{"v":726078.736071214,"d":"$726,079"},{"$f":"SUM(EB35:EM35)","v":{"v":8724618.18667012,"d":"$8,724,618"}}]
[{"$f":"Labels!B45","v":"Final Sales"},{"$f":"B12+B21+B37","v":{"v":963388.6810828955,"d":"$963,389"}},{"v":962791.9126480368,"d":"$962,792"},{"v":962007.8226340746,"d":"$962,008"},{"v":961510.4672264865,"d":"$961,510"},{"v":961019.3064957027,"d":"$961,019"},{"v":960386.5383132559,"d":"$960,387"},{"v":959787.4324490164,"d":"$959,787"},{"v":959167.5669903891,"d":"$959,168"},{"v":958629.3823242509,"d":"$958,629"},{"v":958200.7317911416,"d":"$958,201"},{"v":957622.396067121,"d":"$957,622"},{"v":957189.2043106309,"d":"$957,189"},{"$f":"SUM(B36:M36)","v":{"v":11521701.442333004,"d":"$11,521,701"}},{"$f":"O12+O21+O37","v":{"v":956552.6937752677,"d":"$956,553"}},{"v":956027.0331871812,"d":"$956,027"},{"v":955487.7195253981,"d":"$955,488"},{"v":955124.3139891367,"d":"$955,124"},{"v":954583.7224515688,"d":"$954,584"},{"v":953958.7049017793,"d":"$953,959"},{"v":953492.7614790577,"d":"$953,493"},{"v":952978.6636521207,"d":"$952,979"},{"v":952450.6282171033,"d":"$952,451"},{"v":951951.9575109516,"d":"$951,952"},{"v":951463.0243266366,"d":"$951,463"},{"v":950978.8413603884,"d":"$950,979"},{"$f":"SUM(O36:Z36)","v":{"v":11445050.06437659,"d":"$11,445,050"}},{"$f":"AB12+AB21+AB37","v":{"v":950463.2847050914,"d":"$950,463"}},{"v":949913.2182508791,"d":"$949,913"},{"v":949417.6811554756,"d":"$949,418"},{"v":949072.5584566889,"d":"$949,073"},{"v":948588.2769461462,"d":"$948,588"},{"v":948249.311429457,"d":"$948,249"},{"v":947833.1048198724,"d":"$947,833"},{"v":947415.936189045,"d":"$947,416"},{"v":946861.7454070394,"d":"$946,862"},{"v":946426.6122338357,"d":"$946,427"},{"v":945912.5066614897,"d":"$945,913"},{"v":945407.6996007768,"d":"$945,408"},{"$f":"SUM(AB36:AM36)","v":{"v":11375561.935855798,"d":"$11,375,562"}},{"$f":"AO12+AO21+AO37","v":{"v":945003.0348987017,"d":"$945,003"}},{"v":944601.9719915703,"d":"$944,602"},{"v":944100.2941574795,"d":"$944,100"},{"v":943611.7432548803,"d":"$943,612"},{"v":943224.2981625755,"d":"$943,224"},{"v":942699.2929918392,"d":"$942,699"},{"v":942115.4806195832,"d":"$942,115"},{"v":941585.5109479894,"d":"$941,586"},{"v":941137.0769510722,"d":"$941,137"},{"v":940606.3050120097,"d":"$940,606"},{"v":940062.8034995259,"d":"$940,063"},{"v":939626.3229387854,"d":"$939,626"},{"$f":"SUM(AO36:AZ36)","v":{"v":11308374.135426013,"d":"$11,308,374"}},{"$f":"BB12+BB21+BB37","v":{"v":939347.8997720926,"d":"$939,348"}},{"v":938844.5470488529,"d":"$938,845"},{"v":938338.8713925892,"d":"$938,339"},{"v":937915.6925244826,"d":"$937,916"},{"v":937416.7239107309,"d":"$937,417"},{"v":936914.6561744405,"d":"$936,915"},{"v":936449.3370569217,"d":"$936,449"},{"v":936076.6129620337,"d":"$936,077"},{"v":935578.0774696347,"d":"$935,578"},{"v":935258.1729345459,"d":"$935,258"},{"v":934871.4313516734,"d":"$934,871"},{"v":934378.5698266996,"d":"$934,379"},{"$f":"SUM(BB36:BM36)","v":{"v":11241390.592424696,"d":"$11,241,391"}},{"$f":"BO12+BO21+BO37","v":{"v":933928.5758869445,"d":"$933,929"}},{"v":933376.8483682319,"d":"$933,377"},{"v":932962.9343925684,"d":"$932,963"},{"v":932480.7966746765,"d":"$932,481"},{"v":931977.1122615847,"d":"$931,977"},{"v":931479.0579265961,"d":"$931,479"},{"v":931158.9654113137,"d":"$931,159"},{"v":930705.2860268711,"d":"$930,705"},{"v":930331.9109393961,"d":"$930,332"},{"v":930000.060522635,"d":"$930,000"},{"v":929484.386955374,"d":"$929,484"},{"v":929179.4818304054,"d":"$929,179"},{"$f":"SUM(BO36:BZ36)","v":{"v":11177065.417196598,"d":"$11,177,065"}},{"$f":"CB12+CB21+CB37","v":{"v":928791.4588723856,"d":"$928,791"}},{"v":928321.2294328773,"d":"$928,321"},{"v":927860.3894010267,"d":"$927,860"},{"v":927532.5131062313,"d":"$927,533"},{"v":927070.1999172434,"d":"$927,070"},{"v":926563.2296474185,"d":"$926,563"},{"v":926208.4261739937,"d":"$926,208"},{"v":925730.02994839,"d":"$925,730"},{"v":925402.6823776052,"d":"$925,403"},{"v":924928.9482173248,"d":"$924,929"},{"v":924569.5070923677,"d":"$924,570"},{"v":924130.5791102446,"d":"$924,131"},{"$f":"SUM(CB36:CM36)","v":{"v":11117109.193297109,"d":"$11,117,109"}},{"$f":"CO12+CO21+CO37","v":{"v":923691.1491374893,"d":"$923,691"}},{"v":923278.0957566142,"d":"$923,278"},{"v":922817.6338615111,"d":"$922,818"},{"v":922288.562283476,"d":"$922,289"},{"v":921892.7160883854,"d":"$921,893"},{"v":921425.2164147182,"d":"$921,425"},{"v":920926.6378752234,"d":"$920,927"},{"v":920627.0454045498,"d":"$920,627"},{"v":920150.1187657636,"d":"$920,150"},{"v":919776.7926711316,"d":"$919,777"},{"v":919326.1626869134,"d":"$919,326"},{"v":918869.8046598821,"d":"$918,870"},{"$f":"SUM(CO36:CZ36)","v":{"v":11055069.93560566,"d":"$11,055,070"}},{"$f":"DB12+DB21+DB37","v":{"v":918496.119488774,"d":"$918,496"}},{"v":918101.4192038534,"d":"$918,101"},{"v":917555.2887715638,"d":"$917,555"},{"v":917075.3921430783,"d":"$917,075"},{"v":916645.6521992905,"d":"$916,646"},{"v":916088.9499488496,"d":"$916,089"},{"v":915617.771866325,"d":"$915,618"},{"v":915101.0270727671,"d":"$915,101"},{"v":914585.7357080061,"d":"$914,586"},{"v":914037.1912215932,"d":"$914,037"},{"v":913664.0905640052,"d":"$913,664"},{"v":913131.9211971965,"d":"$913,132"},{"$f":"SUM(DB36:DM36)","v":{"v":10990100.559385302,"d":"$10,990,101"}},{"$f":"DO12+DO21+DO37","v":{"v":912672.0850612601,"d":"$912,672"}},{"v":912338.1799280866,"d":"$912,338"},{"v":911824.8550991026,"d":"$911,825"},{"v":911375.4887375488,"d":"$911,375"},{"v":910966.4956217635,"d":"$910,966"},{"v":910542.6654007414,"d":"$910,543"},{"v":910138.6193261154,"d":"$910,139"},{"v":909825.5403346032,"d":"$909,826"},{"v":909427.0132778523,"d":"$909,427"},{"v":908985.6046519331,"d":"$908,986"},{"v":908590.6013951588,"d":"$908,591"},{"v":908183.8692504023,"d":"$908,184"},{"$f":"SUM(DO36:DZ36)","v":{"v":10924871.018084567,"d":"$10,924,871"}},{"$f":"EB12+EB21+EB37","v":{"v":907700.8285822368,"d":"$907,701"}},{"v":907269.7643994269,"d":"$907,270"},{"v":906869.626395431,"d":"$906,870"},{"v":906426.7633692581,"d":"$906,427"},{"v":906031.8777556254,"d":"$906,032"},{"v":905538.6532942933,"d":"$905,539"},{"v":905194.8596786786,"d":"$905,195"},{"v":904706.2525909665,"d":"$904,706"},{"v":904319.1982239402,"d":"$904,319"},{"v":904015.2803291851,"d":"$904,015"},{"v":903690.2424860342,"d":"$903,690"},{"v":903179.3705364728,"d":"$903,179"},{"$f":"SUM(EB36:EM36)","v":{"v":10864942.717641547,"d":"$10,864,943"}}]
[{"$f":"Labels!B51","v":"Gov Spending"},{"$f":"'(Other Computations)'!B11/8","v":{"v":29166.66666666667,"d":"$29,167"}},{"$f":"'(Other Computations)'!B11/8","v":{"v":29166.66666666667,"d":"$29,167"}},{"$f":"'(Other Computations)'!B11/8","v":{"v":29166.66666666667,"d":"$29,167"}},{"$f":"'(Other Computations)'!B11/8","v":{"v":29166.66666666667,"d":"$29,167"}},{"$f":"'(Other Computations)'!B11/8","v":{"v":29166.66666666667,"d":"$29,167"}},{"$f":"'(Other Computations)'!B11/8","v":{"v":29166.66666666667,"d":"$29,167"}},{"$f":"'(Other Computations)'!B11/8","v":{"v":29166.66666666667,"d":"$29,167"}},{"$f":"'(Other Computations)'!B11/8","v":{"v":29166.66666666667,"d":"$29,167"}},{"$f":"'(Other Computations)'!B11/8","v":{"v":29166.66666666667,"d":"$29,167"}},{"$f":"'(Other Computations)'!B11/8","v":{"v":29166.66666666667,"d":"$29,167"}},{"$f":"'(Other Computations)'!B11/8","v":{"v":29166.66666666667,"d":"$29,167"}},{"$f":"'(Other Computations)'!B11/8","v":{"v":29166.66666666667,"d":"$29,167"}},{"$f":"SUM(B37:M37)","v":{"v":350000.0000000002,"d":"$350,000"}},{"$f":"'(Other Computations)'!B11/8","v":{"v":29166.66666666667,"d":"$29,167"}},{"$f":"'(Other Computations)'!B11/8","v":{"v":29166.66666666667,"d":"$29,167"}},{"$f":"'(Other Computations)'!B11/8","v":{"v":29166.66666666667,"d":"$29,167"}},{"$f":"'(Other Computations)'!B11/8","v":{"v":29166.66666666667,"d":"$29,167"}},{"$f":"'(Other Computations)'!B11/8","v":{"v":29166.66666666667,"d":"$29,167"}},{"$f":"'(Other Computations)'!B11/8","v":{"v":29166.66666666667,"d":"$29,167"}},{"$f":"'(Other Computations)'!B11/8","v":{"v":29166.66666666667,"d":"$29,167"}},{"$f":"'(Other Computations)'!B11/8","v":{"v":29166.66666666667,"d":"$29,167"}},{"$f":"'(Other Computations)'!B11/8","v":{"v":29166.66666666667,"d":"$29,167"}},{"$f":"'(Other Computations)'!B11/8","v":{"v":29166.66666666667,"d":"$29,167"}},{"$f":"'(Other Computations)'!B11/8","v":{"v":29166.66666666667,"d":"$29,167"}},{"$f":"'(Other Computations)'!B11/8","v":{"v":29166.66666666667,"d":"$29,167"}},{"$f":"SUM(O37:Z37)","v":{"v":350000.0000000002,"d":"$350,000"}},{"$f":"'(Other Computations)'!B11/8","v":{"v":29166.66666666667,"d":"$29,167"}},{"$f":"'(Other Computations)'!B11/8","v":{"v":29166.66666666667,"d":"$29,167"}},{"$f":"'(Other Computations)'!B11/8","v":{"v":29166.66666666667,"d":"$29,167"}},{"$f":"'(Other Computations)'!B11/8","v":{"v":29166.66666666667,"d":"$29,167"}},{"$f":"'(Other Computations)'!B11/8","v":{"v":29166.66666666667,"d":"$29,167"}},{"$f":"'(Other Computations)'!B11/8","v":{"v":29166.66666666667,"d":"$29,167"}},{"$f":"'(Other Computations)'!B11/8","v":{"v":29166.66666666667,"d":"$29,167"}},{"$f":"'(Other Computations)'!B11/8","v":{"v":29166.66666666667,"d":"$29,167"}},{"$f":"'(Other Computations)'!B11/8","v":{"v":29166.66666666667,"d":"$29,167"}},{"$f":"'(Other Computations)'!B11/8","v":{"v":29166.66666666667,"d":"$29,167"}},{"$f":"'(Other Computations)'!B11/8","v":{"v":29166.66666666667,"d":"$29,167"}},{"$f":"'(Other Computations)'!B11/8","v":{"v":29166.66666666667,"d":"$29,167"}},{"$f":"SUM(AB37:AM37)","v":{"v":350000.0000000002,"d":"$350,000"}},{"$f":"'(Other Computations)'!B11/8","v":{"v":29166.66666666667,"d":"$29,167"}},{"$f":"'(Other Computations)'!B11/8","v":{"v":29166.66666666667,"d":"$29,167"}},{"$f":"'(Other Computations)'!B11/8","v":{"v":29166.66666666667,"d":"$29,167"}},{"$f":"'(Other Computations)'!B11/8","v":{"v":29166.66666666667,"d":"$29,167"}},{"$f":"'(Other Computations)'!B11/8","v":{"v":29166.66666666667,"d":"$29,167"}},{"$f":"'(Other Computations)'!B11/8","v":{"v":29166.66666666667,"d":"$29,167"}},{"$f":"'(Other Computations)'!B11/8","v":{"v":29166.66666666667,"d":"$29,167"}},{"$f":"'(Other Computations)'!B11/8","v":{"v":29166.66666666667,"d":"$29,167"}},{"$f":"'(Other Computations)'!B11/8","v":{"v":29166.66666666667,"d":"$29,167"}},{"$f":"'(Other Computations)'!B11/8","v":{"v":29166.66666666667,"d":"$29,167"}},{"$f":"'(Other Computations)'!B11/8","v":{"v":29166.66666666667,"d":"$29,167"}},{"$f":"'(Other Computations)'!B11/8","v":{"v":29166.66666666667,"d":"$29,167"}},{"$f":"SUM(AO37:AZ37)","v":{"v":350000.0000000002,"d":"$350,000"}},{"$f":"'(Other Computations)'!B11/8","v":{"v":29166.66666666667,"d":"$29,167"}},{"$f":"'(Other Computations)'!B11/8","v":{"v":29166.66666666667,"d":"$29,167"}},{"$f":"'(Other Computations)'!B11/8","v":{"v":29166.66666666667,"d":"$29,167"}},{"$f":"'(Other Computations)'!B11/8","v":{"v":29166.66666666667,"d":"$29,167"}},{"$f":"'(Other Computations)'!B11/8","v":{"v":29166.66666666667,"d":"$29,167"}},{"$f":"'(Other Computations)'!B11/8","v":{"v":29166.66666666667,"d":"$29,167"}},{"$f":"'(Other Computations)'!B11/8","v":{"v":29166.66666666667,"d":"$29,167"}},{"$f":"'(Other Computations)'!B11/8","v":{"v":29166.66666666667,"d":"$29,167"}},{"$f":"'(Other Computations)'!B11/8","v":{"v":29166.66666666667,"d":"$29,167"}},{"$f":"'(Other Computations)'!B11/8","v":{"v":29166.66666666667,"d":"$29,167"}},{"$f":"'(Other Computations)'!B11/8","v":{"v":29166.66666666667,"d":"$29,167"}},{"$f":"'(Other Computations)'!B11/8","v":{"v":29166.66666666667,"d":"$29,167"}},{"$f":"SUM(BB37:BM37)","v":{"v":350000.0000000002,"d":"$350,000"}},{"$f":"'(Other Computations)'!B11/8","v":{"v":29166.66666666667,"d":"$29,167"}},{"$f":"'(Other Computations)'!B11/8","v":{"v":29166.66666666667,"d":"$29,167"}},{"$f":"'(Other Computations)'!B11/8","v":{"v":29166.66666666667,"d":"$29,167"}},{"$f":"'(Other Computations)'!B11/8","v":{"v":29166.66666666667,"d":"$29,167"}},{"$f":"'(Other Computations)'!B11/8","v":{"v":29166.66666666667,"d":"$29,167"}},{"$f":"'(Other Computations)'!B11/8","v":{"v":29166.66666666667,"d":"$29,167"}},{"$f":"'(Other Computations)'!B11/8","v":{"v":29166.66666666667,"d":"$29,167"}},{"$f":"'(Other Computations)'!B11/8","v":{"v":29166.66666666667,"d":"$29,167"}},{"$f":"'(Other Computations)'!B11/8","v":{"v":29166.66666666667,"d":"$29,167"}},{"$f":"'(Other Computations)'!B11/8","v":{"v":29166.66666666667,"d":"$29,167"}},{"$f":"'(Other Computations)'!B11/8","v":{"v":29166.66666666667,"d":"$29,167"}},{"$f":"'(Other Computations)'!B11/8","v":{"v":29166.66666666667,"d":"$29,167"}},{"$f":"SUM(BO37:BZ37)","v":{"v":350000.0000000002,"d":"$350,000"}},{"$f":"'(Other Computations)'!B11/8","v":{"v":29166.66666666667,"d":"$29,167"}},{"$f":"'(Other Computations)'!B11/8","v":{"v":29166.66666666667,"d":"$29,167"}},{"$f":"'(Other Computations)'!B11/8","v":{"v":29166.66666666667,"d":"$29,167"}},{"$f":"'(Other Computations)'!B11/8","v":{"v":29166.66666666667,"d":"$29,167"}},{"$f":"'(Other Computations)'!B11/8","v":{"v":29166.66666666667,"d":"$29,167"}},{"$f":"'(Other Computations)'!B11/8","v":{"v":29166.66666666667,"d":"$29,167"}},{"$f":"'(Other Computations)'!B11/8","v":{"v":29166.66666666667,"d":"$29,167"}},{"$f":"'(Other Computations)'!B11/8","v":{"v":29166.66666666667,"d":"$29,167"}},{"$f":"'(Other Computations)'!B11/8","v":{"v":29166.66666666667,"d":"$29,167"}},{"$f":"'(Other Computations)'!B11/8","v":{"v":29166.66666666667,"d":"$29,167"}},{"$f":"'(Other Computations)'!B11/8","v":{"v":29166.66666666667,"d":"$29,167"}},{"$f":"'(Other Computations)'!B11/8","v":{"v":29166.66666666667,"d":"$29,167"}},{"$f":"SUM(CB37:CM37)","v":{"v":350000.0000000002,"d":"$350,000"}},{"$f":"'(Other Computations)'!B11/8","v":{"v":29166.66666666667,"d":"$29,167"}},{"$f":"'(Other Computations)'!B11/8","v":{"v":29166.66666666667,"d":"$29,167"}},{"$f":"'(Other Computations)'!B11/8","v":{"v":29166.66666666667,"d":"$29,167"}},{"$f":"'(Other Computations)'!B11/8","v":{"v":29166.66666666667,"d":"$29,167"}},{"$f":"'(Other Computations)'!B11/8","v":{"v":29166.66666666667,"d":"$29,167"}},{"$f":"'(Other Computations)'!B11/8","v":{"v":29166.66666666667,"d":"$29,167"}},{"$f":"'(Other Computations)'!B11/8","v":{"v":29166.66666666667,"d":"$29,167"}},{"$f":"'(Other Computations)'!B11/8","v":{"v":29166.66666666667,"d":"$29,167"}},{"$f":"'(Other Computations)'!B11/8","v":{"v":29166.66666666667,"d":"$29,167"}},{"$f":"'(Other Computations)'!B11/8","v":{"v":29166.66666666667,"d":"$29,167"}},{"$f":"'(Other Computations)'!B11/8","v":{"v":29166.66666666667,"d":"$29,167"}},{"$f":"'(Other Computations)'!B11/8","v":{"v":29166.66666666667,"d":"$29,167"}},{"$f":"SUM(CO37:CZ37)","v":{"v":350000.0000000002,"d":"$350,000"}},{"$f":"'(Other Computations)'!B11/8","v":{"v":29166.66666666667,"d":"$29,167"}},{"$f":"'(Other Computations)'!B11/8","v":{"v":29166.66666666667,"d":"$29,167"}},{"$f":"'(Other Computations)'!B11/8","v":{"v":29166.66666666667,"d":"$29,167"}},{"$f":"'(Other Computations)'!B11/8","v":{"v":29166.66666666667,"d":"$29,167"}},{"$f":"'(Other Computations)'!B11/8","v":{"v":29166.66666666667,"d":"$29,167"}},{"$f":"'(Other Computations)'!B11/8","v":{"v":29166.66666666667,"d":"$29,167"}},{"$f":"'(Other Computations)'!B11/8","v":{"v":29166.66666666667,"d":"$29,167"}},{"$f":"'(Other Computations)'!B11/8","v":{"v":29166.66666666667,"d":"$29,167"}},{"$f":"'(Other Computations)'!B11/8","v":{"v":29166.66666666667,"d":"$29,167"}},{"$f":"'(Other Computations)'!B11/8","v":{"v":29166.66666666667,"d":"$29,167"}},{"$f":"'(Other Computations)'!B11/8","v":{"v":29166.66666666667,"d":"$29,167"}},{"$f":"'(Other Computations)'!B11/8","v":{"v":29166.66666666667,"d":"$29,167"}},{"$f":"SUM(DB37:DM37)","v":{"v":350000.0000000002,"d":"$350,000"}},{"$f":"'(Other Computations)'!B11/8","v":{"v":29166.66666666667,"d":"$29,167"}},{"$f":"'(Other Computations)'!B11/8","v":{"v":29166.66666666667,"d":"$29,167"}},{"$f":"'(Other Computations)'!B11/8","v":{"v":29166.66666666667,"d":"$29,167"}},{"$f":"'(Other Computations)'!B11/8","v":{"v":29166.66666666667,"d":"$29,167"}},{"$f":"'(Other Computations)'!B11/8","v":{"v":29166.66666666667,"d":"$29,167"}},{"$f":"'(Other Computations)'!B11/8","v":{"v":29166.66666666667,"d":"$29,167"}},{"$f":"'(Other Computations)'!B11/8","v":{"v":29166.66666666667,"d":"$29,167"}},{"$f":"'(Other Computations)'!B11/8","v":{"v":29166.66666666667,"d":"$29,167"}},{"$f":"'(Other Computations)'!B11/8","v":{"v":29166.66666666667,"d":"$29,167"}},{"$f":"'(Other Computations)'!B11/8","v":{"v":29166.66666666667,"d":"$29,167"}},{"$f":"'(Other Computations)'!B11/8","v":{"v":29166.66666666667,"d":"$29,167"}},{"$f":"'(Other Computations)'!B11/8","v":{"v":29166.66666666667,"d":"$29,167"}},{"$f":"SUM(DO37:DZ37)","v":{"v":350000.0000000002,"d":"$350,000"}},{"$f":"'(Other Computations)'!B11/8","v":{"v":29166.66666666667,"d":"$29,167"}},{"$f":"'(Other Computations)'!B11/8","v":{"v":29166.66666666667,"d":"$29,167"}},{"$f":"'(Other Computations)'!B11/8","v":{"v":29166.66666666667,"d":"$29,167"}},{"$f":"'(Other Computations)'!B11/8","v":{"v":29166.66666666667,"d":"$29,167"}},{"$f":"'(Other Computations)'!B11/8","v":{"v":29166.66666666667,"d":"$29,167"}},{"$f":"'(Other Computations)'!B11/8","v":{"v":29166.66666666667,"d":"$29,167"}},{"$f":"'(Other Computations)'!B11/8","v":{"v":29166.66666666667,"d":"$29,167"}},{"$f":"'(Other Computations)'!B11/8","v":{"v":29166.66666666667,"d":"$29,167"}},{"$f":"'(Other Computations)'!B11/8","v":{"v":29166.66666666667,"d":"$29,167"}},{"$f":"'(Other Computations)'!B11/8","v":{"v":29166.66666666667,"d":"$29,167"}},{"$f":"'(Other Computations)'!B11/8","v":{"v":29166.66666666667,"d":"$29,167"}},{"$f":"'(Other Computations)'!B11/8","v":{"v":29166.66666666667,"d":"$29,167"}},{"$f":"SUM(EB37:EM37)","v":{"v":350000.0000000002,"d":"$350,000"}}]
[{"$f":"Labels!B52","v":"Gov Transfers"},{"$f":"'(Other Computations)'!B14/8","v":{"v":14583.333333333336,"d":"$14,583"}},{"$f":"'(Other Computations)'!B14/8","v":{"v":14583.333333333336,"d":"$14,583"}},{"$f":"'(Other Computations)'!B14/8","v":{"v":14583.333333333336,"d":"$14,583"}},{"$f":"'(Other Computations)'!B14/8","v":{"v":14583.333333333336,"d":"$14,583"}},{"$f":"'(Other Computations)'!B14/8","v":{"v":14583.333333333336,"d":"$14,583"}},{"$f":"'(Other Computations)'!B14/8","v":{"v":14583.333333333336,"d":"$14,583"}},{"$f":"'(Other Computations)'!B14/8","v":{"v":14583.333333333336,"d":"$14,583"}},{"$f":"'(Other Computations)'!B14/8","v":{"v":14583.333333333336,"d":"$14,583"}},{"$f":"'(Other Computations)'!B14/8","v":{"v":14583.333333333336,"d":"$14,583"}},{"$f":"'(Other Computations)'!B14/8","v":{"v":14583.333333333336,"d":"$14,583"}},{"$f":"'(Other Computations)'!B14/8","v":{"v":14583.333333333336,"d":"$14,583"}},{"$f":"'(Other Computations)'!B14/8","v":{"v":14583.333333333336,"d":"$14,583"}},{"$f":"SUM(B38:M38)","v":{"v":175000.0000000001,"d":"$175,000"}},{"$f":"'(Other Computations)'!B14/8","v":{"v":14583.333333333336,"d":"$14,583"}},{"$f":"'(Other Computations)'!B14/8","v":{"v":14583.333333333336,"d":"$14,583"}},{"$f":"'(Other Computations)'!B14/8","v":{"v":14583.333333333336,"d":"$14,583"}},{"$f":"'(Other Computations)'!B14/8","v":{"v":14583.333333333336,"d":"$14,583"}},{"$f":"'(Other Computations)'!B14/8","v":{"v":14583.333333333336,"d":"$14,583"}},{"$f":"'(Other Computations)'!B14/8","v":{"v":14583.333333333336,"d":"$14,583"}},{"$f":"'(Other Computations)'!B14/8","v":{"v":14583.333333333336,"d":"$14,583"}},{"$f":"'(Other Computations)'!B14/8","v":{"v":14583.333333333336,"d":"$14,583"}},{"$f":"'(Other Computations)'!B14/8","v":{"v":14583.333333333336,"d":"$14,583"}},{"$f":"'(Other Computations)'!B14/8","v":{"v":14583.333333333336,"d":"$14,583"}},{"$f":"'(Other Computations)'!B14/8","v":{"v":14583.333333333336,"d":"$14,583"}},{"$f":"'(Other Computations)'!B14/8","v":{"v":14583.333333333336,"d":"$14,583"}},{"$f":"SUM(O38:Z38)","v":{"v":175000.0000000001,"d":"$175,000"}},{"$f":"'(Other Computations)'!B14/8","v":{"v":14583.333333333336,"d":"$14,583"}},{"$f":"'(Other Computations)'!B14/8","v":{"v":14583.333333333336,"d":"$14,583"}},{"$f":"'(Other Computations)'!B14/8","v":{"v":14583.333333333336,"d":"$14,583"}},{"$f":"'(Other Computations)'!B14/8","v":{"v":14583.333333333336,"d":"$14,583"}},{"$f":"'(Other Computations)'!B14/8","v":{"v":14583.333333333336,"d":"$14,583"}},{"$f":"'(Other Computations)'!B14/8","v":{"v":14583.333333333336,"d":"$14,583"}},{"$f":"'(Other Computations)'!B14/8","v":{"v":14583.333333333336,"d":"$14,583"}},{"$f":"'(Other Computations)'!B14/8","v":{"v":14583.333333333336,"d":"$14,583"}},{"$f":"'(Other Computations)'!B14/8","v":{"v":14583.333333333336,"d":"$14,583"}},{"$f":"'(Other Computations)'!B14/8","v":{"v":14583.333333333336,"d":"$14,583"}},{"$f":"'(Other Computations)'!B14/8","v":{"v":14583.333333333336,"d":"$14,583"}},{"$f":"'(Other Computations)'!B14/8","v":{"v":14583.333333333336,"d":"$14,583"}},{"$f":"SUM(AB38:AM38)","v":{"v":175000.0000000001,"d":"$175,000"}},{"$f":"'(Other Computations)'!B14/8","v":{"v":14583.333333333336,"d":"$14,583"}},{"$f":"'(Other Computations)'!B14/8","v":{"v":14583.333333333336,"d":"$14,583"}},{"$f":"'(Other Computations)'!B14/8","v":{"v":14583.333333333336,"d":"$14,583"}},{"$f":"'(Other Computations)'!B14/8","v":{"v":14583.333333333336,"d":"$14,583"}},{"$f":"'(Other Computations)'!B14/8","v":{"v":14583.333333333336,"d":"$14,583"}},{"$f":"'(Other Computations)'!B14/8","v":{"v":14583.333333333336,"d":"$14,583"}},{"$f":"'(Other Computations)'!B14/8","v":{"v":14583.333333333336,"d":"$14,583"}},{"$f":"'(Other Computations)'!B14/8","v":{"v":14583.333333333336,"d":"$14,583"}},{"$f":"'(Other Computations)'!B14/8","v":{"v":14583.333333333336,"d":"$14,583"}},{"$f":"'(Other Computations)'!B14/8","v":{"v":14583.333333333336,"d":"$14,583"}},{"$f":"'(Other Computations)'!B14/8","v":{"v":14583.333333333336,"d":"$14,583"}},{"$f":"'(Other Computations)'!B14/8","v":{"v":14583.333333333336,"d":"$14,583"}},{"$f":"SUM(AO38:AZ38)","v":{"v":175000.0000000001,"d":"$175,000"}},{"$f":"'(Other Computations)'!B14/8","v":{"v":14583.333333333336,"d":"$14,583"}},{"$f":"'(Other Computations)'!B14/8","v":{"v":14583.333333333336,"d":"$14,583"}},{"$f":"'(Other Computations)'!B14/8","v":{"v":14583.333333333336,"d":"$14,583"}},{"$f":"'(Other Computations)'!B14/8","v":{"v":14583.333333333336,"d":"$14,583"}},{"$f":"'(Other Computations)'!B14/8","v":{"v":14583.333333333336,"d":"$14,583"}},{"$f":"'(Other Computations)'!B14/8","v":{"v":14583.333333333336,"d":"$14,583"}},{"$f":"'(Other Computations)'!B14/8","v":{"v":14583.333333333336,"d":"$14,583"}},{"$f":"'(Other Computations)'!B14/8","v":{"v":14583.333333333336,"d":"$14,583"}},{"$f":"'(Other Computations)'!B14/8","v":{"v":14583.333333333336,"d":"$14,583"}},{"$f":"'(Other Computations)'!B14/8","v":{"v":14583.333333333336,"d":"$14,583"}},{"$f":"'(Other Computations)'!B14/8","v":{"v":14583.333333333336,"d":"$14,583"}},{"$f":"'(Other Computations)'!B14/8","v":{"v":14583.333333333336,"d":"$14,583"}},{"$f":"SUM(BB38:BM38)","v":{"v":175000.0000000001,"d":"$175,000"}},{"$f":"'(Other Computations)'!B14/8","v":{"v":14583.333333333336,"d":"$14,583"}},{"$f":"'(Other Computations)'!B14/8","v":{"v":14583.333333333336,"d":"$14,583"}},{"$f":"'(Other Computations)'!B14/8","v":{"v":14583.333333333336,"d":"$14,583"}},{"$f":"'(Other Computations)'!B14/8","v":{"v":14583.333333333336,"d":"$14,583"}},{"$f":"'(Other Computations)'!B14/8","v":{"v":14583.333333333336,"d":"$14,583"}},{"$f":"'(Other Computations)'!B14/8","v":{"v":14583.333333333336,"d":"$14,583"}},{"$f":"'(Other Computations)'!B14/8","v":{"v":14583.333333333336,"d":"$14,583"}},{"$f":"'(Other Computations)'!B14/8","v":{"v":14583.333333333336,"d":"$14,583"}},{"$f":"'(Other Computations)'!B14/8","v":{"v":14583.333333333336,"d":"$14,583"}},{"$f":"'(Other Computations)'!B14/8","v":{"v":14583.333333333336,"d":"$14,583"}},{"$f":"'(Other Computations)'!B14/8","v":{"v":14583.333333333336,"d":"$14,583"}},{"$f":"'(Other Computations)'!B14/8","v":{"v":14583.333333333336,"d":"$14,583"}},{"$f":"SUM(BO38:BZ38)","v":{"v":175000.0000000001,"d":"$175,000"}},{"$f":"'(Other Computations)'!B14/8","v":{"v":14583.333333333336,"d":"$14,583"}},{"$f":"'(Other Computations)'!B14/8","v":{"v":14583.333333333336,"d":"$14,583"}},{"$f":"'(Other Computations)'!B14/8","v":{"v":14583.333333333336,"d":"$14,583"}},{"$f":"'(Other Computations)'!B14/8","v":{"v":14583.333333333336,"d":"$14,583"}},{"$f":"'(Other Computations)'!B14/8","v":{"v":14583.333333333336,"d":"$14,583"}},{"$f":"'(Other Computations)'!B14/8","v":{"v":14583.333333333336,"d":"$14,583"}},{"$f":"'(Other Computations)'!B14/8","v":{"v":14583.333333333336,"d":"$14,583"}},{"$f":"'(Other Computations)'!B14/8","v":{"v":14583.333333333336,"d":"$14,583"}},{"$f":"'(Other Computations)'!B14/8","v":{"v":14583.333333333336,"d":"$14,583"}},{"$f":"'(Other Computations)'!B14/8","v":{"v":14583.333333333336,"d":"$14,583"}},{"$f":"'(Other Computations)'!B14/8","v":{"v":14583.333333333336,"d":"$14,583"}},{"$f":"'(Other Computations)'!B14/8","v":{"v":14583.333333333336,"d":"$14,583"}},{"$f":"SUM(CB38:CM38)","v":{"v":175000.0000000001,"d":"$175,000"}},{"$f":"'(Other Computations)'!B14/8","v":{"v":14583.333333333336,"d":"$14,583"}},{"$f":"'(Other Computations)'!B14/8","v":{"v":14583.333333333336,"d":"$14,583"}},{"$f":"'(Other Computations)'!B14/8","v":{"v":14583.333333333336,"d":"$14,583"}},{"$f":"'(Other Computations)'!B14/8","v":{"v":14583.333333333336,"d":"$14,583"}},{"$f":"'(Other Computations)'!B14/8","v":{"v":14583.333333333336,"d":"$14,583"}},{"$f":"'(Other Computations)'!B14/8","v":{"v":14583.333333333336,"d":"$14,583"}},{"$f":"'(Other Computations)'!B14/8","v":{"v":14583.333333333336,"d":"$14,583"}},{"$f":"'(Other Computations)'!B14/8","v":{"v":14583.333333333336,"d":"$14,583"}},{"$f":"'(Other Computations)'!B14/8","v":{"v":14583.333333333336,"d":"$14,583"}},{"$f":"'(Other Computations)'!B14/8","v":{"v":14583.333333333336,"d":"$14,583"}},{"$f":"'(Other Computations)'!B14/8","v":{"v":14583.333333333336,"d":"$14,583"}},{"$f":"'(Other Computations)'!B14/8","v":{"v":14583.333333333336,"d":"$14,583"}},{"$f":"SUM(CO38:CZ38)","v":{"v":175000.0000000001,"d":"$175,000"}},{"$f":"'(Other Computations)'!B14/8","v":{"v":14583.333333333336,"d":"$14,583"}},{"$f":"'(Other Computations)'!B14/8","v":{"v":14583.333333333336,"d":"$14,583"}},{"$f":"'(Other Computations)'!B14/8","v":{"v":14583.333333333336,"d":"$14,583"}},{"$f":"'(Other Computations)'!B14/8","v":{"v":14583.333333333336,"d":"$14,583"}},{"$f":"'(Other Computations)'!B14/8","v":{"v":14583.333333333336,"d":"$14,583"}},{"$f":"'(Other Computations)'!B14/8","v":{"v":14583.333333333336,"d":"$14,583"}},{"$f":"'(Other Computations)'!B14/8","v":{"v":14583.333333333336,"d":"$14,583"}},{"$f":"'(Other Computations)'!B14/8","v":{"v":14583.333333333336,"d":"$14,583"}},{"$f":"'(Other Computations)'!B14/8","v":{"v":14583.333333333336,"d":"$14,583"}},{"$f":"'(Other Computations)'!B14/8","v":{"v":14583.333333333336,"d":"$14,583"}},{"$f":"'(Other Computations)'!B14/8","v":{"v":14583.333333333336,"d":"$14,583"}},{"$f":"'(Other Computations)'!B14/8","v":{"v":14583.333333333336,"d":"$14,583"}},{"$f":"SUM(DB38:DM38)","v":{"v":175000.0000000001,"d":"$175,000"}},{"$f":"'(Other Computations)'!B14/8","v":{"v":14583.333333333336,"d":"$14,583"}},{"$f":"'(Other Computations)'!B14/8","v":{"v":14583.333333333336,"d":"$14,583"}},{"$f":"'(Other Computations)'!B14/8","v":{"v":14583.333333333336,"d":"$14,583"}},{"$f":"'(Other Computations)'!B14/8","v":{"v":14583.333333333336,"d":"$14,583"}},{"$f":"'(Other Computations)'!B14/8","v":{"v":14583.333333333336,"d":"$14,583"}},{"$f":"'(Other Computations)'!B14/8","v":{"v":14583.333333333336,"d":"$14,583"}},{"$f":"'(Other Computations)'!B14/8","v":{"v":14583.333333333336,"d":"$14,583"}},{"$f":"'(Other Computations)'!B14/8","v":{"v":14583.333333333336,"d":"$14,583"}},{"$f":"'(Other Computations)'!B14/8","v":{"v":14583.333333333336,"d":"$14,583"}},{"$f":"'(Other Computations)'!B14/8","v":{"v":14583.333333333336,"d":"$14,583"}},{"$f":"'(Other Computations)'!B14/8","v":{"v":14583.333333333336,"d":"$14,583"}},{"$f":"'(Other Computations)'!B14/8","v":{"v":14583.333333333336,"d":"$14,583"}},{"$f":"SUM(DO38:DZ38)","v":{"v":175000.0000000001,"d":"$175,000"}},{"$f":"'(Other Computations)'!B14/8","v":{"v":14583.333333333336,"d":"$14,583"}},{"$f":"'(Other Computations)'!B14/8","v":{"v":14583.333333333336,"d":"$14,583"}},{"$f":"'(Other Computations)'!B14/8","v":{"v":14583.333333333336,"d":"$14,583"}},{"$f":"'(Other Computations)'!B14/8","v":{"v":14583.333333333336,"d":"$14,583"}},{"$f":"'(Other Computations)'!B14/8","v":{"v":14583.333333333336,"d":"$14,583"}},{"$f":"'(Other Computations)'!B14/8","v":{"v":14583.333333333336,"d":"$14,583"}},{"$f":"'(Other Computations)'!B14/8","v":{"v":14583.333333333336,"d":"$14,583"}},{"$f":"'(Other Computations)'!B14/8","v":{"v":14583.333333333336,"d":"$14,583"}},{"$f":"'(Other Computations)'!B14/8","v":{"v":14583.333333333336,"d":"$14,583"}},{"$f":"'(Other Computations)'!B14/8","v":{"v":14583.333333333336,"d":"$14,583"}},{"$f":"'(Other Computations)'!B14/8","v":{"v":14583.333333333336,"d":"$14,583"}},{"$f":"'(Other Computations)'!B14/8","v":{"v":14583.333333333336,"d":"$14,583"}},{"$f":"SUM(EB38:EM38)","v":{"v":175000.0000000001,"d":"$175,000"}}]
[]
[]
[{"$f":"\"Output\"","v":"Output"}]
[{"$f":"\" \"","v":" "}]
[null,{"$f":"ZZZ__FnCalls!F7","v":"Jan 2010"},{"$f":"ZZZ__FnCalls!F8","v":"Feb 2010"},{"$f":"ZZZ__FnCalls!F9","v":"Mar 2010"},{"$f":"ZZZ__FnCalls!F10","v":"Apr 2010"},{"$f":"ZZZ__FnCalls!F11","v":"May 2010"},{"$f":"ZZZ__FnCalls!F12","v":"Jun 2010"},{"$f":"ZZZ__FnCalls!F13","v":"Jul 2010"},{"$f":"ZZZ__FnCalls!F14","v":"Aug 2010"},{"$f":"ZZZ__FnCalls!F15","v":"Sep 2010"},{"$f":"ZZZ__FnCalls!F16","v":"Oct 2010"},{"$f":"ZZZ__FnCalls!F17","v":"Nov 2010"},{"$f":"ZZZ__FnCalls!F18","v":"Dec 2010"},{"$f":"ZZZ__FnCalls!H7","v":"2010"},{"$f":"ZZZ__FnCalls!F19","v":"Jan 2011"},{"$f":"ZZZ__FnCalls!F20","v":"Feb 2011"},{"$f":"ZZZ__FnCalls!F21","v":"Mar 2011"},{"$f":"ZZZ__FnCalls!F22","v":"Apr 2011"},{"$f":"ZZZ__FnCalls!F23","v":"May 2011"},{"$f":"ZZZ__FnCalls!F24","v":"Jun 2011"},{"$f":"ZZZ__FnCalls!F25","v":"Jul 2011"},{"$f":"ZZZ__FnCalls!F26","v":"Aug 2011"},{"$f":"ZZZ__FnCalls!F27","v":"Sep 2011"},{"$f":"ZZZ__FnCalls!F28","v":"Oct 2011"},{"$f":"ZZZ__FnCalls!F29","v":"Nov 2011"},{"$f":"ZZZ__FnCalls!F30","v":"Dec 2011"},{"$f":"ZZZ__FnCalls!H19","v":"2011"},{"$f":"ZZZ__FnCalls!F31","v":"Jan 2012"},{"$f":"ZZZ__FnCalls!F32","v":"Feb 2012"},{"$f":"ZZZ__FnCalls!F33","v":"Mar 2012"},{"$f":"ZZZ__FnCalls!F34","v":"Apr 2012"},{"$f":"ZZZ__FnCalls!F35","v":"May 2012"},{"$f":"ZZZ__FnCalls!F36","v":"Jun 2012"},{"$f":"ZZZ__FnCalls!F37","v":"Jul 2012"},{"$f":"ZZZ__FnCalls!F38","v":"Aug 2012"},{"$f":"ZZZ__FnCalls!F39","v":"Sep 2012"},{"$f":"ZZZ__FnCalls!F40","v":"Oct 2012"},{"$f":"ZZZ__FnCalls!F41","v":"Nov 2012"},{"$f":"ZZZ__FnCalls!F42","v":"Dec 2012"},{"$f":"ZZZ__FnCalls!H31","v":"2012"},{"$f":"ZZZ__FnCalls!F43","v":"Jan 2013"},{"$f":"ZZZ__FnCalls!F44","v":"Feb 2013"},{"$f":"ZZZ__FnCalls!F45","v":"Mar 2013"},{"$f":"ZZZ__FnCalls!F46","v":"Apr 2013"},{"$f":"ZZZ__FnCalls!F47","v":"May 2013"},{"$f":"ZZZ__FnCalls!F48","v":"Jun 2013"},{"$f":"ZZZ__FnCalls!F49","v":"Jul 2013"},{"$f":"ZZZ__FnCalls!F50","v":"Aug 2013"},{"$f":"ZZZ__FnCalls!F51","v":"Sep 2013"},{"$f":"ZZZ__FnCalls!F52","v":"Oct 2013"},{"$f":"ZZZ__FnCalls!F53","v":"Nov 2013"},{"$f":"ZZZ__FnCalls!F54","v":"Dec 2013"},{"$f":"ZZZ__FnCalls!H43","v":"2013"},{"$f":"ZZZ__FnCalls!F55","v":"Jan 2014"},{"$f":"ZZZ__FnCalls!F56","v":"Feb 2014"},{"$f":"ZZZ__FnCalls!F57","v":"Mar 2014"},{"$f":"ZZZ__FnCalls!F58","v":"Apr 2014"},{"$f":"ZZZ__FnCalls!F59","v":"May 2014"},{"$f":"ZZZ__FnCalls!F60","v":"Jun 2014"},{"$f":"ZZZ__FnCalls!F61","v":"Jul 2014"},{"$f":"ZZZ__FnCalls!F62","v":"Aug 2014"},{"$f":"ZZZ__FnCalls!F63","v":"Sep 2014"},{"$f":"ZZZ__FnCalls!F64","v":"Oct 2014"},{"$f":"ZZZ__FnCalls!F65","v":"Nov 2014"},{"$f":"ZZZ__FnCalls!F66","v":"Dec 2014"},{"$f":"ZZZ__FnCalls!H55","v":"2014"},{"$f":"ZZZ__FnCalls!F67","v":"Jan 2015"},{"$f":"ZZZ__FnCalls!F68","v":"Feb 2015"},{"$f":"ZZZ__FnCalls!F69","v":"Mar 2015"},{"$f":"ZZZ__FnCalls!F70","v":"Apr 2015"},{"$f":"ZZZ__FnCalls!F71","v":"May 2015"},{"$f":"ZZZ__FnCalls!F72","v":"Jun 2015"},{"$f":"ZZZ__FnCalls!F73","v":"Jul 2015"},{"$f":"ZZZ__FnCalls!F74","v":"Aug 2015"},{"$f":"ZZZ__FnCalls!F75","v":"Sep 2015"},{"$f":"ZZZ__FnCalls!F76","v":"Oct 2015"},{"$f":"ZZZ__FnCalls!F77","v":"Nov 2015"},{"$f":"ZZZ__FnCalls!F78","v":"Dec 2015"},{"$f":"ZZZ__FnCalls!H67","v":"2015"},{"$f":"ZZZ__FnCalls!F79","v":"Jan 2016"},{"$f":"ZZZ__FnCalls!F80","v":"Feb 2016"},{"$f":"ZZZ__FnCalls!F81","v":"Mar 2016"},{"$f":"ZZZ__FnCalls!F82","v":"Apr 2016"},{"$f":"ZZZ__FnCalls!F83","v":"May 2016"},{"$f":"ZZZ__FnCalls!F84","v":"Jun 2016"},{"$f":"ZZZ__FnCalls!F85","v":"Jul 2016"},{"$f":"ZZZ__FnCalls!F86","v":"Aug 2016"},{"$f":"ZZZ__FnCalls!F87","v":"Sep 2016"},{"$f":"ZZZ__FnCalls!F88","v":"Oct 2016"},{"$f":"ZZZ__FnCalls!F89","v":"Nov 2016"},{"$f":"ZZZ__FnCalls!F90","v":"Dec 2016"},{"$f":"ZZZ__FnCalls!H79","v":"2016"},{"$f":"ZZZ__FnCalls!F91","v":"Jan 2017"},{"$f":"ZZZ__FnCalls!F92","v":"Feb 2017"},{"$f":"ZZZ__FnCalls!F93","v":"Mar 2017"},{"$f":"ZZZ__FnCalls!F94","v":"Apr 2017"},{"$f":"ZZZ__FnCalls!F95","v":"May 2017"},{"$f":"ZZZ__FnCalls!F96","v":"Jun 2017"},{"$f":"ZZZ__FnCalls!F97","v":"Jul 2017"},{"$f":"ZZZ__FnCalls!F98","v":"Aug 2017"},{"$f":"ZZZ__FnCalls!F99","v":"Sep 2017"},{"$f":"ZZZ__FnCalls!F100","v":"Oct 2017"},{"$f":"ZZZ__FnCalls!F101","v":"Nov 2017"},{"$f":"ZZZ__FnCalls!F102","v":"Dec 2017"},{"$f":"ZZZ__FnCalls!H91","v":"2017"},{"$f":"ZZZ__FnCalls!F103","v":"Jan 2018"},{"$f":"ZZZ__FnCalls!F104","v":"Feb 2018"},{"$f":"ZZZ__FnCalls!F105","v":"Mar 2018"},{"$f":"ZZZ__FnCalls!F106","v":"Apr 2018"},{"$f":"ZZZ__FnCalls!F107","v":"May 2018"},{"$f":"ZZZ__FnCalls!F108","v":"Jun 2018"},{"$f":"ZZZ__FnCalls!F109","v":"Jul 2018"},{"$f":"ZZZ__FnCalls!F110","v":"Aug 2018"},{"$f":"ZZZ__FnCalls!F111","v":"Sep 2018"},{"$f":"ZZZ__FnCalls!F112","v":"Oct 2018"},{"$f":"ZZZ__FnCalls!F113","v":"Nov 2018"},{"$f":"ZZZ__FnCalls!F114","v":"Dec 2018"},{"$f":"ZZZ__FnCalls!H103","v":"2018"},{"$f":"ZZZ__FnCalls!F115","v":"Jan 2019"},{"$f":"ZZZ__FnCalls!F116","v":"Feb 2019"},{"$f":"ZZZ__FnCalls!F117","v":"Mar 2019"},{"$f":"ZZZ__FnCalls!F118","v":"Apr 2019"},{"$f":"ZZZ__FnCalls!F119","v":"May 2019"},{"$f":"ZZZ__FnCalls!F120","v":"Jun 2019"},{"$f":"ZZZ__FnCalls!F121","v":"Jul 2019"},{"$f":"ZZZ__FnCalls!F122","v":"Aug 2019"},{"$f":"ZZZ__FnCalls!F123","v":"Sep 2019"},{"$f":"ZZZ__FnCalls!F124","v":"Oct 2019"},{"$f":"ZZZ__FnCalls!F125","v":"Nov 2019"},{"$f":"ZZZ__FnCalls!F126","v":"Dec 2019"},{"$f":"ZZZ__FnCalls!H115","v":"2019"},{"$f":"ZZZ__FnCalls!F127","v":"Jan 2020"},{"$f":"ZZZ__FnCalls!F128","v":"Feb 2020"},{"$f":"ZZZ__FnCalls!F129","v":"Mar 2020"},{"$f":"ZZZ__FnCalls!F130","v":"Apr 2020"},{"$f":"ZZZ__FnCalls!F131","v":"May 2020"},{"$f":"ZZZ__FnCalls!F132","v":"Jun 2020"},{"$f":"ZZZ__FnCalls!F133","v":"Jul 2020"},{"$f":"ZZZ__FnCalls!F134","v":"Aug 2020"},{"$f":"ZZZ__FnCalls!F135","v":"Sep 2020"},{"$f":"ZZZ__FnCalls!F136","v":"Oct 2020"},{"$f":"ZZZ__FnCalls!F137","v":"Nov 2020"},{"$f":"ZZZ__FnCalls!F138","v":"Dec 2020"},{"$f":"ZZZ__FnCalls!H127","v":"2020"}]
[{"$f":"Labels!B64","v":"Output"},{"$f":"B45*(1-Inputs!B21)+B11*Inputs!B21+B46","v":{"v":1166015.220719523,"d":"$1,166,015"}},{"$f":"C45*(1-Inputs!B21)+C11*Inputs!B21+C46","v":{"v":1119995.1887612976,"d":"$1,119,995"}},{"$f":"D45*(1-Inputs!B21)+D11*Inputs!B21+D46","v":{"v":1185573.1238317264,"d":"$1,185,573"}},{"$f":"E45*(1-Inputs!B21)+E11*Inputs!B21+E46","v":{"v":1164506.0237664045,"d":"$1,164,506"}},{"$f":"F45*(1-Inputs!B21)+F11*Inputs!B21+F46","v":{"v":1107407.8937517083,"d":"$1,107,408"}},{"$f":"G45*(1-Inputs!B21)+G11*Inputs!B21+G46","v":{"v":1176338.217895413,"d":"$1,176,338"}},{"$f":"H45*(1-Inputs!B21)+H11*Inputs!B21+H46","v":{"v":1132189.5909648773,"d":"$1,132,190"}},{"$f":"I45*(1-Inputs!B21)+I11*Inputs!B21+I46","v":{"v":1182373.3373405326,"d":"$1,182,373"}},{"$f":"J45*(1-Inputs!B21)+J11*Inputs!B21+J46","v":{"v":1200405.1224554987,"d":"$1,200,405"}},{"$f":"K45*(1-Inputs!B21)+K11*Inputs!B21+K46","v":{"v":1140927.9783107503,"d":"$1,140,928"}},{"$f":"L45*(1-Inputs!B21)+L11*Inputs!B21+L46","v":{"v":1165650.8459107655,"d":"$1,165,651"}},{"$f":"M45*(1-Inputs!B21)+M11*Inputs!B21+M46","v":{"v":1096234.649714536,"d":"$1,096,235"}},{"$f":"SUM(B44:M44)","v":{"v":13837617.193423033,"d":"$13,837,617"}},{"$f":"O45*(1-Inputs!B21)+O11*Inputs!B21+O46","v":{"v":1108407.258966424,"d":"$1,108,407"}},{"$f":"P45*(1-Inputs!B21)+P11*Inputs!B21+P46","v":{"v":1161673.6673662853,"d":"$1,161,674"}},{"$f":"Q45*(1-Inputs!B21)+Q11*Inputs!B21+Q46","v":{"v":1206577.0878708097,"d":"$1,206,577"}},{"$f":"R45*(1-Inputs!B21)+R11*Inputs!B21+R46","v":{"v":1104833.4045574095,"d":"$1,104,833"}},{"$f":"S45*(1-Inputs!B21)+S11*Inputs!B21+S46","v":{"v":1151807.11650544,"d":"$1,151,807"}},{"$f":"T45*(1-Inputs!B21)+T11*Inputs!B21+T46","v":{"v":1192846.6047236584,"d":"$1,192,847"}},{"$f":"U45*(1-Inputs!B21)+U11*Inputs!B21+U46","v":{"v":1119477.3754692934,"d":"$1,119,477"}},{"$f":"V45*(1-Inputs!B21)+V11*Inputs!B21+V46","v":{"v":1162579.4417379873,"d":"$1,162,579"}},{"$f":"W45*(1-Inputs!B21)+W11*Inputs!B21+W46","v":{"v":1167905.5136663176,"d":"$1,167,906"}},{"$f":"X45*(1-Inputs!B21)+X11*Inputs!B21+X46","v":{"v":1134897.640641471,"d":"$1,134,898"}},{"$f":"Y45*(1-Inputs!B21)+Y11*Inputs!B21+Y46","v":{"v":1111352.2057215904,"d":"$1,111,352"}},{"$f":"Z45*(1-Inputs!B21)+Z11*Inputs!B21+Z46","v":{"v":1167036.0479118528,"d":"$1,167,036"}},{"$f":"SUM(O44:Z44)","v":{"v":13789393.36513854,"d":"$13,789,393"}},{"$f":"AB45*(1-Inputs!B21)+AB11*Inputs!B21+AB46","v":{"v":1088944.0721638887,"d":"$1,088,944"}},{"$f":"AC45*(1-Inputs!B21)+AC11*Inputs!B21+AC46","v":{"v":1108185.6281466798,"d":"$1,108,186"}},{"$f":"AD45*(1-Inputs!B21)+AD11*Inputs!B21+AD46","v":{"v":1181479.0940267306,"d":"$1,181,479"}},{"$f":"AE45*(1-Inputs!B21)+AE11*Inputs!B21+AE46","v":{"v":1119452.6818579093,"d":"$1,119,453"}},{"$f":"AF45*(1-Inputs!B21)+AF11*Inputs!B21+AF46","v":{"v":1180442.4399651291,"d":"$1,180,442"}},{"$f":"AG45*(1-Inputs!B21)+AG11*Inputs!B21+AG46","v":{"v":1161736.0556415748,"d":"$1,161,736"}},{"$f":"AH45*(1-Inputs!B21)+AH11*Inputs!B21+AH46","v":{"v":1135912.600801581,"d":"$1,135,913"}},{"$f":"AI45*(1-Inputs!B21)+AI11*Inputs!B21+AI46","v":{"v":1085704.292880627,"d":"$1,085,704"}},{"$f":"AJ45*(1-Inputs!B21)+AJ11*Inputs!B21+AJ46","v":{"v":1180415.2189470571,"d":"$1,180,415"}},{"$f":"AK45*(1-Inputs!B21)+AK11*Inputs!B21+AK46","v":{"v":1091697.425135058,"d":"$1,091,697"}},{"$f":"AL45*(1-Inputs!B21)+AL11*Inputs!B21+AL46","v":{"v":1061687.4264313895,"d":"$1,061,687"}},{"$f":"AM45*(1-Inputs!B21)+AM11*Inputs!B21+AM46","v":{"v":1103261.8132858018,"d":"$1,103,262"}},{"$f":"SUM(AB44:AM44)","v":{"v":13498918.749283424,"d":"$13,498,919"}},{"$f":"AO45*(1-Inputs!B21)+AO11*Inputs!B21+AO46","v":{"v":1152154.523685678,"d":"$1,152,155"}},{"$f":"AP45*(1-Inputs!B21)+AP11*Inputs!B21+AP46","v":{"v":1107471.8393251987,"d":"$1,107,472"}},{"$f":"AQ45*(1-Inputs!B21)+AQ11*Inputs!B21+AQ46","v":{"v":1126776.5302628456,"d":"$1,126,777"}},{"$f":"AR45*(1-Inputs!B21)+AR11*Inputs!B21+AR46","v":{"v":1159120.021852076,"d":"$1,159,120"}},{"$f":"AS45*(1-Inputs!B21)+AS11*Inputs!B21+AS46","v":{"v":1086162.9414009366,"d":"$1,086,163"}},{"$f":"AT45*(1-Inputs!B21)+AT11*Inputs!B21+AT46","v":{"v":1060172.3460295147,"d":"$1,060,172"}},{"$f":"AU45*(1-Inputs!B21)+AU11*Inputs!B21+AU46","v":{"v":1133706.0397587374,"d":"$1,133,706"}},{"$f":"AV45*(1-Inputs!B21)+AV11*Inputs!B21+AV46","v":{"v":1103063.3371700437,"d":"$1,103,063"}},{"$f":"AW45*(1-Inputs!B21)+AW11*Inputs!B21+AW46","v":{"v":1080676.5387382829,"d":"$1,080,677"}},{"$f":"AX45*(1-Inputs!B21)+AX11*Inputs!B21+AX46","v":{"v":1098895.8887221885,"d":"$1,098,896"}},{"$f":"AY45*(1-Inputs!B21)+AY11*Inputs!B21+AY46","v":{"v":1095035.2655909108,"d":"$1,095,035"}},{"$f":"AZ45*(1-Inputs!B21)+AZ11*Inputs!B21+AZ46","v":{"v":1162088.44040752,"d":"$1,162,088"}},{"$f":"SUM(AO44:AZ44)","v":{"v":13365323.712943932,"d":"$13,365,324"}},{"$f":"BB45*(1-Inputs!B21)+BB11*Inputs!B21+BB46","v":{"v":1137695.0949260218,"d":"$1,137,695"}},{"$f":"BC45*(1-Inputs!B21)+BC11*Inputs!B21+BC46","v":{"v":1101898.5772358829,"d":"$1,101,899"}},{"$f":"BD45*(1-Inputs!B21)+BD11*Inputs!B21+BD46","v":{"v":1139812.8631694284,"d":"$1,139,813"}},{"$f":"BE45*(1-Inputs!B21)+BE11*Inputs!B21+BE46","v":{"v":1096308.9986901116,"d":"$1,096,309"}},{"$f":"BF45*(1-Inputs!B21)+BF11*Inputs!B21+BF46","v":{"v":1061055.701604983,"d":"$1,061,056"}},{"$f":"BG45*(1-Inputs!B21)+BG11*Inputs!B21+BG46","v":{"v":1065047.9180954224,"d":"$1,065,048"}},{"$f":"BH45*(1-Inputs!B21)+BH11*Inputs!B21+BH46","v":{"v":1103318.1750277542,"d":"$1,103,318"}},{"$f":"BI45*(1-Inputs!B21)+BI11*Inputs!B21+BI46","v":{"v":1083864.8342430883,"d":"$1,083,865"}},{"$f":"BJ45*(1-Inputs!B21)+BJ11*Inputs!B21+BJ46","v":{"v":1110100.081986119,"d":"$1,110,100"}},{"$f":"BK45*(1-Inputs!B21)+BK11*Inputs!B21+BK46","v":{"v":1112996.1889636505,"d":"$1,112,996"}},{"$f":"BL45*(1-Inputs!B21)+BL11*Inputs!B21+BL46","v":{"v":1117608.6934487058,"d":"$1,117,609"}},{"$f":"BM45*(1-Inputs!B21)+BM11*Inputs!B21+BM46","v":{"v":1065450.220050345,"d":"$1,065,450"}},{"$f":"SUM(BB44:BM44)","v":{"v":13195157.347441511,"d":"$13,195,157"}},{"$f":"BO45*(1-Inputs!B21)+BO11*Inputs!B21+BO46","v":{"v":1083545.7719573015,"d":"$1,083,546"}},{"$f":"BP45*(1-Inputs!B21)+BP11*Inputs!B21+BP46","v":{"v":1114894.4108137204,"d":"$1,114,894"}},{"$f":"BQ45*(1-Inputs!B21)+BQ11*Inputs!B21+BQ46","v":{"v":1075626.1861646355,"d":"$1,075,626"}},{"$f":"BR45*(1-Inputs!B21)+BR11*Inputs!B21+BR46","v":{"v":1074979.0836888477,"d":"$1,074,979"}},{"$f":"BS45*(1-Inputs!B21)+BS11*Inputs!B21+BS46","v":{"v":1111506.725716816,"d":"$1,111,507"}},{"$f":"BT45*(1-Inputs!B21)+BT11*Inputs!B21+BT46","v":{"v":1111252.550695987,"d":"$1,111,253"}},{"$f":"BU45*(1-Inputs!B21)+BU11*Inputs!B21+BU46","v":{"v":1063200.51946212,"d":"$1,063,201"}},{"$f":"BV45*(1-Inputs!B21)+BV11*Inputs!B21+BV46","v":{"v":1096332.316332008,"d":"$1,096,332"}},{"$f":"BW45*(1-Inputs!B21)+BW11*Inputs!B21+BW46","v":{"v":1109760.9724114314,"d":"$1,109,761"}},{"$f":"BX45*(1-Inputs!B21)+BX11*Inputs!B21+BX46","v":{"v":1056782.552398462,"d":"$1,056,783"}},{"$f":"BY45*(1-Inputs!B21)+BY11*Inputs!B21+BY46","v":{"v":1095176.8596969268,"d":"$1,095,177"}},{"$f":"BZ45*(1-Inputs!B21)+BZ11*Inputs!B21+BZ46","v":{"v":1067996.3095139025,"d":"$1,067,996"}},{"$f":"SUM(BO44:BZ44)","v":{"v":13061054.25885216,"d":"$13,061,054"}},{"$f":"CB45*(1-Inputs!B21)+CB11*Inputs!B21+CB46","v":{"v":1045165.5755465836,"d":"$1,045,166"}},{"$f":"CC45*(1-Inputs!B21)+CC11*Inputs!B21+CC46","v":{"v":1060105.7261306255,"d":"$1,060,106"}},{"$f":"CD45*(1-Inputs!B21)+CD11*Inputs!B21+CD46","v":{"v":1075863.463665014,"d":"$1,075,863"}},{"$f":"CE45*(1-Inputs!B21)+CE11*Inputs!B21+CE46","v":{"v":1064055.2936368347,"d":"$1,064,055"}},{"$f":"CF45*(1-Inputs!B21)+CF11*Inputs!B21+CF46","v":{"v":1037984.8251704079,"d":"$1,037,985"}},{"$f":"CG45*(1-Inputs!B21)+CG11*Inputs!B21+CG46","v":{"v":1084511.9330661774,"d":"$1,084,512"}},{"$f":"CH45*(1-Inputs!B21)+CH11*Inputs!B21+CH46","v":{"v":1005094.6939159504,"d":"$1,005,095"}},{"$f":"CI45*(1-Inputs!B21)+CI11*Inputs!B21+CI46","v":{"v":1086792.811617713,"d":"$1,086,793"}},{"$f":"CJ45*(1-Inputs!B21)+CJ11*Inputs!B21+CJ46","v":{"v":1035523.6846129306,"d":"$1,035,524"}},{"$f":"CK45*(1-Inputs!B21)+CK11*Inputs!B21+CK46","v":{"v":1093178.0000082147,"d":"$1,093,178"}},{"$f":"CL45*(1-Inputs!B21)+CL11*Inputs!B21+CL46","v":{"v":1012463.5973271431,"d":"$1,012,464"}},{"$f":"CM45*(1-Inputs!B21)+CM11*Inputs!B21+CM46","v":{"v":1023103.6357007406,"d":"$1,023,104"}},{"$f":"SUM(CB44:CM44)","v":{"v":12623843.240398334,"d":"$12,623,843"}},{"$f":"CO45*(1-Inputs!B21)+CO11*Inputs!B21+CO46","v":{"v":1064809.5092246635,"d":"$1,064,810"}},{"$f":"CP45*(1-Inputs!B21)+CP11*Inputs!B21+CP46","v":{"v":996512.4334402946,"d":"$996,512"}},{"$f":"CQ45*(1-Inputs!B21)+CQ11*Inputs!B21+CQ46","v":{"v":994880.5801581137,"d":"$994,881"}},{"$f":"CR45*(1-Inputs!B21)+CR11*Inputs!B21+CR46","v":{"v":1079891.2261029081,"d":"$1,079,891"}},{"$f":"CS45*(1-Inputs!B21)+CS11*Inputs!B21+CS46","v":{"v":1068300.1315819146,"d":"$1,068,300"}},{"$f":"CT45*(1-Inputs!B21)+CT11*Inputs!B21+CT46","v":{"v":1040415.5934112289,"d":"$1,040,416"}},{"$f":"CU45*(1-Inputs!B21)+CU11*Inputs!B21+CU46","v":{"v":1077557.3678348288,"d":"$1,077,557"}},{"$f":"CV45*(1-Inputs!B21)+CV11*Inputs!B21+CV46","v":{"v":1067697.484879639,"d":"$1,067,697"}},{"$f":"CW45*(1-Inputs!B21)+CW11*Inputs!B21+CW46","v":{"v":1030936.645836601,"d":"$1,030,937"}},{"$f":"CX45*(1-Inputs!B21)+CX11*Inputs!B21+CX46","v":{"v":1028657.8534333616,"d":"$1,028,658"}},{"$f":"CY45*(1-Inputs!B21)+CY11*Inputs!B21+CY46","v":{"v":1069857.6878689693,"d":"$1,069,858"}},{"$f":"CZ45*(1-Inputs!B21)+CZ11*Inputs!B21+CZ46","v":{"v":1067737.6014056758,"d":"$1,067,738"}},{"$f":"SUM(CO44:CZ44)","v":{"v":12587254.1151782,"d":"$12,587,254"}},{"$f":"DB45*(1-Inputs!B21)+DB11*Inputs!B21+DB46","v":{"v":1049048.8347562745,"d":"$1,049,049"}},{"$f":"DC45*(1-Inputs!B21)+DC11*Inputs!B21+DC46","v":{"v":1037965.5768084549,"d":"$1,037,966"}},{"$f":"DD45*(1-Inputs!B21)+DD11*Inputs!B21+DD46","v":{"v":1037291.2753703713,"d":"$1,037,291"}},{"$f":"DE45*(1-Inputs!B21)+DE11*Inputs!B21+DE46","v":{"v":1046667.6562600458,"d":"$1,046,668"}},{"$f":"DF45*(1-Inputs!B21)+DF11*Inputs!B21+DF46","v":{"v":1018005.6215937831,"d":"$1,018,006"}},{"$f":"DG45*(1-Inputs!B21)+DG11*Inputs!B21+DG46","v":{"v":1026289.3500382154,"d":"$1,026,289"}},{"$f":"DH45*(1-Inputs!B21)+DH11*Inputs!B21+DH46","v":{"v":1032552.1844588376,"d":"$1,032,552"}},{"$f":"DI45*(1-Inputs!B21)+DI11*Inputs!B21+DI46","v":{"v":1034582.5490638969,"d":"$1,034,583"}},{"$f":"DJ45*(1-Inputs!B21)+DJ11*Inputs!B21+DJ46","v":{"v":1024156.8258209797,"d":"$1,024,157"}},{"$f":"DK45*(1-Inputs!B21)+DK11*Inputs!B21+DK46","v":{"v":1066338.4881341688,"d":"$1,066,338"}},{"$f":"DL45*(1-Inputs!B21)+DL11*Inputs!B21+DL46","v":{"v":1001689.0479264995,"d":"$1,001,689"}},{"$f":"DM45*(1-Inputs!B21)+DM11*Inputs!B21+DM46","v":{"v":1028331.7866335053,"d":"$1,028,332"}},{"$f":"SUM(DB44:DM44)","v":{"v":12402919.196865031,"d":"$12,402,919"}},{"$f":"DO45*(1-Inputs!B21)+DO11*Inputs!B21+DO46","v":{"v":1051517.2620847123,"d":"$1,051,517"}},{"$f":"DP45*(1-Inputs!B21)+DP11*Inputs!B21+DP46","v":{"v":1006844.6855560706,"d":"$1,006,845"}},{"$f":"DQ45*(1-Inputs!B21)+DQ11*Inputs!B21+DQ46","v":{"v":1043014.603112442,"d":"$1,043,015"}},{"$f":"DR45*(1-Inputs!B21)+DR11*Inputs!B21+DR46","v":{"v":1043705.8074353072,"d":"$1,043,706"}},{"$f":"DS45*(1-Inputs!B21)+DS11*Inputs!B21+DS46","v":{"v":1040080.6247320105,"d":"$1,040,081"}},{"$f":"DT45*(1-Inputs!B21)+DT11*Inputs!B21+DT46","v":{"v":1020613.5833310003,"d":"$1,020,614"}},{"$f":"DU45*(1-Inputs!B21)+DU11*Inputs!B21+DU46","v":{"v":1062372.1770253032,"d":"$1,062,372"}},{"$f":"DV45*(1-Inputs!B21)+DV11*Inputs!B21+DV46","v":{"v":999296.800684013,"d":"$999,297"}},{"$f":"DW45*(1-Inputs!B21)+DW11*Inputs!B21+DW46","v":{"v":1012464.3610206639,"d":"$1,012,464"}},{"$f":"DX45*(1-Inputs!B21)+DX11*Inputs!B21+DX46","v":{"v":1018679.392903201,"d":"$1,018,679"}},{"$f":"DY45*(1-Inputs!B21)+DY11*Inputs!B21+DY46","v":{"v":1051208.3483040333,"d":"$1,051,208"}},{"$f":"DZ45*(1-Inputs!B21)+DZ11*Inputs!B21+DZ46","v":{"v":994699.1854870815,"d":"$994,699"}},{"$f":"SUM(DO44:DZ44)","v":{"v":12344496.83167584,"d":"$12,344,497"}},{"$f":"EB45*(1-Inputs!B21)+EB11*Inputs!B21+EB46","v":{"v":981512.8528867031,"d":"$981,513"}},{"$f":"EC45*(1-Inputs!B21)+EC11*Inputs!B21+EC46","v":{"v":1043440.0661515262,"d":"$1,043,440"}},{"$f":"ED45*(1-Inputs!B21)+ED11*Inputs!B21+ED46","v":{"v":996497.9979746004,"d":"$996,498"}},{"$f":"EE45*(1-Inputs!B21)+EE11*Inputs!B21+EE46","v":{"v":1016107.3341098791,"d":"$1,016,107"}},{"$f":"EF45*(1-Inputs!B21)+EF11*Inputs!B21+EF46","v":{"v":983446.8686285735,"d":"$983,447"}},{"$f":"EG45*(1-Inputs!B21)+EG11*Inputs!B21+EG46","v":{"v":1062938.5287622346,"d":"$1,062,939"}},{"$f":"EH45*(1-Inputs!B21)+EH11*Inputs!B21+EH46","v":{"v":985323.5599762569,"d":"$985,324"}},{"$f":"EI45*(1-Inputs!B21)+EI11*Inputs!B21+EI46","v":{"v":1034039.8289383902,"d":"$1,034,040"}},{"$f":"EJ45*(1-Inputs!B21)+EJ11*Inputs!B21+EJ46","v":{"v":1054327.0087699157,"d":"$1,054,327"}},{"$f":"EK45*(1-Inputs!B21)+EK11*Inputs!B21+EK46","v":{"v":1024483.1832630854,"d":"$1,024,483"}},{"$f":"EL45*(1-Inputs!B21)+EL11*Inputs!B21+EL46","v":{"v":1015201.0332991773,"d":"$1,015,201"}},{"$f":"EM45*(1-Inputs!B21)+EM11*Inputs!B21+EM46","v":{"v":1016422.003911258,"d":"$1,016,422"}},{"$f":"SUM(EB44:EM44)","v":{"v":12213740.266671602,"d":"$12,213,740"}}]
[{"$f":"Labels!B68","v":"Potential Output"},{"$f":"'(Other Computations)'!B8*(B28/Inputs!B27)^(1-Inputs!B20)*(B19/'(Other Computations)'!B194)^Inputs!B20","v":{"v":1166666.6666666667,"d":"$1,166,667"}},{"$f":"'(Other Computations)'!B8*(C28/Inputs!B27)^(1-Inputs!B20)*(C19/'(Other Computations)'!B194)^Inputs!B20","v":{"v":1166666.6666666667,"d":"$1,166,667"}},{"$f":"'(Other Computations)'!B8*(D28/Inputs!B27)^(1-Inputs!B20)*(D19/'(Other Computations)'!B194)^Inputs!B20","v":{"v":1166628.0346597508,"d":"$1,166,628"}},{"$f":"'(Other Computations)'!B8*(E28/Inputs!B27)^(1-Inputs!B20)*(E19/'(Other Computations)'!B194)^Inputs!B20","v":{"v":1166538.6271674994,"d":"$1,166,539"}},{"$f":"'(Other Computations)'!B8*(F28/Inputs!B27)^(1-Inputs!B20)*(F19/'(Other Computations)'!B194)^Inputs!B20","v":{"v":1166417.961931174,"d":"$1,166,418"}},{"$f":"'(Other Computations)'!B8*(G28/Inputs!B27)^(1-Inputs!B20)*(G19/'(Other Computations)'!B194)^Inputs!B20","v":{"v":1166270.2641442849,"d":"$1,166,270"}},{"$f":"'(Other Computations)'!B8*(H28/Inputs!B27)^(1-Inputs!B20)*(H19/'(Other Computations)'!B194)^Inputs!B20","v":{"v":1166090.0257414728,"d":"$1,166,090"}},{"$f":"'(Other Computations)'!B8*(I28/Inputs!B27)^(1-Inputs!B20)*(I19/'(Other Computations)'!B194)^Inputs!B20","v":{"v":1165870.0599882873,"d":"$1,165,870"}},{"$f":"'(Other Computations)'!B8*(J28/Inputs!B27)^(1-Inputs!B20)*(J19/'(Other Computations)'!B194)^Inputs!B20","v":{"v":1165615.3293943082,"d":"$1,165,615"}},{"$f":"'(Other Computations)'!B8*(K28/Inputs!B27)^(1-Inputs!B20)*(K19/'(Other Computations)'!B194)^Inputs!B20","v":{"v":1165326.6290117765,"d":"$1,165,327"}},{"$f":"'(Other Computations)'!B8*(L28/Inputs!B27)^(1-Inputs!B20)*(L19/'(Other Computations)'!B194)^Inputs!B20","v":{"v":1165012.6523706939,"d":"$1,165,013"}},{"$f":"'(Other Computations)'!B8*(M28/Inputs!B27)^(1-Inputs!B20)*(M19/'(Other Computations)'!B194)^Inputs!B20","v":{"v":1164667.4785875895,"d":"$1,164,667"}},{"$f":"SUM(B45:M45)","v":{"v":13991770.39633017,"d":"$13,991,770"}},{"$f":"'(Other Computations)'!B8*(O28/Inputs!B27)^(1-Inputs!B20)*(O19/'(Other Computations)'!B194)^Inputs!B20","v":{"v":1164302.3575547028,"d":"$1,164,302"}},{"$f":"'(Other Computations)'!B8*(P28/Inputs!B27)^(1-Inputs!B20)*(P19/'(Other Computations)'!B194)^Inputs!B20","v":{"v":1163907.3590340633,"d":"$1,163,907"}},{"$f":"'(Other Computations)'!B8*(Q28/Inputs!B27)^(1-Inputs!B20)*(Q19/'(Other Computations)'!B194)^Inputs!B20","v":{"v":1163492.1122444351,"d":"$1,163,492"}},{"$f":"'(Other Computations)'!B8*(R28/Inputs!B27)^(1-Inputs!B20)*(R19/'(Other Computations)'!B194)^Inputs!B20","v":{"v":1163047.0292899895,"d":"$1,163,047"}},{"$f":"'(Other Computations)'!B8*(S28/Inputs!B27)^(1-Inputs!B20)*(S19/'(Other Computations)'!B194)^Inputs!B20","v":{"v":1162583.3660276213,"d":"$1,162,583"}},{"$f":"'(Other Computations)'!B8*(T28/Inputs!B27)^(1-Inputs!B20)*(T19/'(Other Computations)'!B194)^Inputs!B20","v":{"v":1162098.9637551315,"d":"$1,162,099"}},{"$f":"'(Other Computations)'!B8*(U28/Inputs!B27)^(1-Inputs!B20)*(U19/'(Other Computations)'!B194)^Inputs!B20","v":{"v":1161577.8516804655,"d":"$1,161,578"}},{"$f":"'(Other Computations)'!B8*(V28/Inputs!B27)^(1-Inputs!B20)*(V19/'(Other Computations)'!B194)^Inputs!B20","v":{"v":1161030.1654102628,"d":"$1,161,030"}},{"$f":"'(Other Computations)'!B8*(W28/Inputs!B27)^(1-Inputs!B20)*(W19/'(Other Computations)'!B194)^Inputs!B20","v":{"v":1160462.6699152184,"d":"$1,160,463"}},{"$f":"'(Other Computations)'!B8*(X28/Inputs!B27)^(1-Inputs!B20)*(X19/'(Other Computations)'!B194)^Inputs!B20","v":{"v":1159867.3332910414,"d":"$1,159,867"}},{"$f":"'(Other Computations)'!B8*(Y28/Inputs!B27)^(1-Inputs!B20)*(Y19/'(Other Computations)'!B194)^Inputs!B20","v":{"v":1159246.4937427915,"d":"$1,159,246"}},{"$f":"'(Other Computations)'!B8*(Z28/Inputs!B27)^(1-Inputs!B20)*(Z19/'(Other Computations)'!B194)^Inputs!B20","v":{"v":1158606.5159798663,"d":"$1,158,607"}},{"$f":"SUM(O45:Z45)","v":{"v":13940222.21792559,"d":"$13,940,222"}},{"$f":"'(Other Computations)'!B8*(AB28/Inputs!B27)^(1-Inputs!B20)*(AB19/'(Other Computations)'!B194)^Inputs!B20","v":{"v":1157951.7371221525,"d":"$1,157,952"}},{"$f":"'(Other Computations)'!B8*(AC28/Inputs!B27)^(1-Inputs!B20)*(AC19/'(Other Computations)'!B194)^Inputs!B20","v":{"v":1157270.3068082011,"d":"$1,157,270"}},{"$f":"'(Other Computations)'!B8*(AD28/Inputs!B27)^(1-Inputs!B20)*(AD19/'(Other Computations)'!B194)^Inputs!B20","v":{"v":1156571.0096602004,"d":"$1,156,571"}},{"$f":"'(Other Computations)'!B8*(AE28/Inputs!B27)^(1-Inputs!B20)*(AE19/'(Other Computations)'!B194)^Inputs!B20","v":{"v":1155856.612626113,"d":"$1,155,857"}},{"$f":"'(Other Computations)'!B8*(AF28/Inputs!B27)^(1-Inputs!B20)*(AF19/'(Other Computations)'!B194)^Inputs!B20","v":{"v":1155131.2741099214,"d":"$1,155,131"}},{"$f":"'(Other Computations)'!B8*(AG28/Inputs!B27)^(1-Inputs!B20)*(AG19/'(Other Computations)'!B194)^Inputs!B20","v":{"v":1154390.4541904083,"d":"$1,154,390"}},{"$f":"'(Other Computations)'!B8*(AH28/Inputs!B27)^(1-Inputs!B20)*(AH19/'(Other Computations)'!B194)^Inputs!B20","v":{"v":1153639.67761974,"d":"$1,153,640"}},{"$f":"'(Other Computations)'!B8*(AI28/Inputs!B27)^(1-Inputs!B20)*(AI19/'(Other Computations)'!B194)^Inputs!B20","v":{"v":1152874.0142831386,"d":"$1,152,874"}},{"$f":"'(Other Computations)'!B8*(AJ28/Inputs!B27)^(1-Inputs!B20)*(AJ19/'(Other Computations)'!B194)^Inputs!B20","v":{"v":1152097.4928803009,"d":"$1,152,097"}},{"$f":"'(Other Computations)'!B8*(AK28/Inputs!B27)^(1-Inputs!B20)*(AK19/'(Other Computations)'!B194)^Inputs!B20","v":{"v":1151303.9200751467,"d":"$1,151,304"}},{"$f":"'(Other Computations)'!B8*(AL28/Inputs!B27)^(1-Inputs!B20)*(AL19/'(Other Computations)'!B194)^Inputs!B20","v":{"v":1150490.8106474783,"d":"$1,150,491"}},{"$f":"'(Other Computations)'!B8*(AM28/Inputs!B27)^(1-Inputs!B20)*(AM19/'(Other Computations)'!B194)^Inputs!B20","v":{"v":1149664.0459864715,"d":"$1,149,664"}},{"$f":"SUM(AB45:AM45)","v":{"v":13847241.356009275,"d":"$13,847,241"}},{"$f":"'(Other Computations)'!B8*(AO28/Inputs!B27)^(1-Inputs!B20)*(AO19/'(Other Computations)'!B194)^Inputs!B20","v":{"v":1148829.401456336,"d":"$1,148,829"}},{"$f":"'(Other Computations)'!B8*(AP28/Inputs!B27)^(1-Inputs!B20)*(AP19/'(Other Computations)'!B194)^Inputs!B20","v":{"v":1147990.7686683214,"d":"$1,147,991"}},{"$f":"'(Other Computations)'!B8*(AQ28/Inputs!B27)^(1-Inputs!B20)*(AQ19/'(Other Computations)'!B194)^Inputs!B20","v":{"v":1147140.891321768,"d":"$1,147,141"}},{"$f":"'(Other Computations)'!B8*(AR28/Inputs!B27)^(1-Inputs!B20)*(AR19/'(Other Computations)'!B194)^Inputs!B20","v":{"v":1146276.4137733309,"d":"$1,146,276"}},{"$f":"'(Other Computations)'!B8*(AS28/Inputs!B27)^(1-Inputs!B20)*(AS19/'(Other Computations)'!B194)^Inputs!B20","v":{"v":1145395.732611163,"d":"$1,145,396"}},{"$f":"'(Other Computations)'!B8*(AT28/Inputs!B27)^(1-Inputs!B20)*(AT19/'(Other Computations)'!B194)^Inputs!B20","v":{"v":1144504.3282846962,"d":"$1,144,504"}},{"$f":"'(Other Computations)'!B8*(AU28/Inputs!B27)^(1-Inputs!B20)*(AU19/'(Other Computations)'!B194)^Inputs!B20","v":{"v":1143599.5348665626,"d":"$1,143,600"}},{"$f":"'(Other Computations)'!B8*(AV28/Inputs!B27)^(1-Inputs!B20)*(AV19/'(Other Computations)'!B194)^Inputs!B20","v":{"v":1142679.401544067,"d":"$1,142,679"}},{"$f":"'(Other Computations)'!B8*(AW28/Inputs!B27)^(1-Inputs!B20)*(AW19/'(Other Computations)'!B194)^Inputs!B20","v":{"v":1141738.0214165566,"d":"$1,141,738"}},{"$f":"'(Other Computations)'!B8*(AX28/Inputs!B27)^(1-Inputs!B20)*(AX19/'(Other Computations)'!B194)^Inputs!B20","v":{"v":1140788.750114143,"d":"$1,140,789"}},{"$f":"'(Other Computations)'!B8*(AY28/Inputs!B27)^(1-Inputs!B20)*(AY19/'(Other Computations)'!B194)^Inputs!B20","v":{"v":1139826.703913404,"d":"$1,139,827"}},{"$f":"'(Other Computations)'!B8*(AZ28/Inputs!B27)^(1-Inputs!B20)*(AZ19/'(Other Computations)'!B194)^Inputs!B20","v":{"v":1138847.7425597028,"d":"$1,138,848"}},{"$f":"SUM(AO45:AZ45)","v":{"v":13727617.69053005,"d":"$13,727,618"}},{"$f":"'(Other Computations)'!B8*(BB28/Inputs!B27)^(1-Inputs!B20)*(BB19/'(Other Computations)'!B194)^Inputs!B20","v":{"v":1137863.6279431286,"d":"$1,137,864"}},{"$f":"'(Other Computations)'!B8*(BC28/Inputs!B27)^(1-Inputs!B20)*(BC19/'(Other Computations)'!B194)^Inputs!B20","v":{"v":1136880.2882424886,"d":"$1,136,880"}},{"$f":"'(Other Computations)'!B8*(BD28/Inputs!B27)^(1-Inputs!B20)*(BD19/'(Other Computations)'!B194)^Inputs!B20","v":{"v":1135878.3123135646,"d":"$1,135,878"}},{"$f":"'(Other Computations)'!B8*(BE28/Inputs!B27)^(1-Inputs!B20)*(BE19/'(Other Computations)'!B194)^Inputs!B20","v":{"v":1134863.0952740873,"d":"$1,134,863"}},{"$f":"'(Other Computations)'!B8*(BF28/Inputs!B27)^(1-Inputs!B20)*(BF19/'(Other Computations)'!B194)^Inputs!B20","v":{"v":1133837.3365006186,"d":"$1,133,837"}},{"$f":"'(Other Computations)'!B8*(BG28/Inputs!B27)^(1-Inputs!B20)*(BG19/'(Other Computations)'!B194)^Inputs!B20","v":{"v":1132800.1138078005,"d":"$1,132,800"}},{"$f":"'(Other Computations)'!B8*(BH28/Inputs!B27)^(1-Inputs!B20)*(BH19/'(Other Computations)'!B194)^Inputs!B20","v":{"v":1131756.7046832626,"d":"$1,131,757"}},{"$f":"'(Other Computations)'!B8*(BI28/Inputs!B27)^(1-Inputs!B20)*(BI19/'(Other Computations)'!B194)^Inputs!B20","v":{"v":1130710.3356290602,"d":"$1,130,710"}},{"$f":"'(Other Computations)'!B8*(BJ28/Inputs!B27)^(1-Inputs!B20)*(BJ19/'(Other Computations)'!B194)^Inputs!B20","v":{"v":1129664.601159619,"d":"$1,129,665"}},{"$f":"'(Other Computations)'!B8*(BK28/Inputs!B27)^(1-Inputs!B20)*(BK19/'(Other Computations)'!B194)^Inputs!B20","v":{"v":1128609.5282496754,"d":"$1,128,610"}},{"$f":"'(Other Computations)'!B8*(BL28/Inputs!B27)^(1-Inputs!B20)*(BL19/'(Other Computations)'!B194)^Inputs!B20","v":{"v":1127559.4920613759,"d":"$1,127,559"}},{"$f":"'(Other Computations)'!B8*(BM28/Inputs!B27)^(1-Inputs!B20)*(BM19/'(Other Computations)'!B194)^Inputs!B20","v":{"v":1126507.1533370512,"d":"$1,126,507"}},{"$f":"SUM(BB45:BM45)","v":{"v":13586930.589201733,"d":"$13,586,931"}},{"$f":"'(Other Computations)'!B8*(BO28/Inputs!B27)^(1-Inputs!B20)*(BO19/'(Other Computations)'!B194)^Inputs!B20","v":{"v":1125440.7474938333,"d":"$1,125,441"}},{"$f":"'(Other Computations)'!B8*(BP28/Inputs!B27)^(1-Inputs!B20)*(BP19/'(Other Computations)'!B194)^Inputs!B20","v":{"v":1124372.9391915922,"d":"$1,124,373"}},{"$f":"'(Other Computations)'!B8*(BQ28/Inputs!B27)^(1-Inputs!B20)*(BQ19/'(Other Computations)'!B194)^Inputs!B20","v":{"v":1123290.3867703972,"d":"$1,123,290"}},{"$f":"'(Other Computations)'!B8*(BR28/Inputs!B27)^(1-Inputs!B20)*(BR19/'(Other Computations)'!B194)^Inputs!B20","v":{"v":1122202.449552436,"d":"$1,122,202"}},{"$f":"'(Other Computations)'!B8*(BS28/Inputs!B27)^(1-Inputs!B20)*(BS19/'(Other Computations)'!B194)^Inputs!B20","v":{"v":1121108.3123675738,"d":"$1,121,108"}},{"$f":"'(Other Computations)'!B8*(BT28/Inputs!B27)^(1-Inputs!B20)*(BT19/'(Other Computations)'!B194)^Inputs!B20","v":{"v":1120005.852597681,"d":"$1,120,006"}},{"$f":"'(Other Computations)'!B8*(BU28/Inputs!B27)^(1-Inputs!B20)*(BU19/'(Other Computations)'!B194)^Inputs!B20","v":{"v":1118889.922269397,"d":"$1,118,890"}},{"$f":"'(Other Computations)'!B8*(BV28/Inputs!B27)^(1-Inputs!B20)*(BV19/'(Other Computations)'!B194)^Inputs!B20","v":{"v":1117779.0803878047,"d":"$1,117,779"}},{"$f":"'(Other Computations)'!B8*(BW28/Inputs!B27)^(1-Inputs!B20)*(BW19/'(Other Computations)'!B194)^Inputs!B20","v":{"v":1116667.0935081535,"d":"$1,116,667"}},{"$f":"'(Other Computations)'!B8*(BX28/Inputs!B27)^(1-Inputs!B20)*(BX19/'(Other Computations)'!B194)^Inputs!B20","v":{"v":1115557.0207341712,"d":"$1,115,557"}},{"$f":"'(Other Computations)'!B8*(BY28/Inputs!B27)^(1-Inputs!B20)*(BY19/'(Other Computations)'!B194)^Inputs!B20","v":{"v":1114451.0466659681,"d":"$1,114,451"}},{"$f":"'(Other Computations)'!B8*(BZ28/Inputs!B27)^(1-Inputs!B20)*(BZ19/'(Other Computations)'!B194)^Inputs!B20","v":{"v":1113338.3985570704,"d":"$1,113,338"}},{"$f":"SUM(BO45:BZ45)","v":{"v":13433103.250096079,"d":"$13,433,103"}},{"$f":"'(Other Computations)'!B8*(CB28/Inputs!B27)^(1-Inputs!B20)*(CB19/'(Other Computations)'!B194)^Inputs!B20","v":{"v":1112234.8612371373,"d":"$1,112,235"}},{"$f":"'(Other Computations)'!B8*(CC28/Inputs!B27)^(1-Inputs!B20)*(CC19/'(Other Computations)'!B194)^Inputs!B20","v":{"v":1111136.0955366693,"d":"$1,111,136"}},{"$f":"'(Other Computations)'!B8*(CD28/Inputs!B27)^(1-Inputs!B20)*(CD19/'(Other Computations)'!B194)^Inputs!B20","v":{"v":1110037.065694406,"d":"$1,110,037"}},{"$f":"'(Other Computations)'!B8*(CE28/Inputs!B27)^(1-Inputs!B20)*(CE19/'(Other Computations)'!B194)^Inputs!B20","v":{"v":1108936.3178774444,"d":"$1,108,936"}},{"$f":"'(Other Computations)'!B8*(CF28/Inputs!B27)^(1-Inputs!B20)*(CF19/'(Other Computations)'!B194)^Inputs!B20","v":{"v":1107845.1481312194,"d":"$1,107,845"}},{"$f":"'(Other Computations)'!B8*(CG28/Inputs!B27)^(1-Inputs!B20)*(CG19/'(Other Computations)'!B194)^Inputs!B20","v":{"v":1106751.414299345,"d":"$1,106,751"}},{"$f":"'(Other Computations)'!B8*(CH28/Inputs!B27)^(1-Inputs!B20)*(CH19/'(Other Computations)'!B194)^Inputs!B20","v":{"v":1105654.4872986302,"d":"$1,105,654"}},{"$f":"'(Other Computations)'!B8*(CI28/Inputs!B27)^(1-Inputs!B20)*(CI19/'(Other Computations)'!B194)^Inputs!B20","v":{"v":1104562.8146869654,"d":"$1,104,563"}},{"$f":"'(Other Computations)'!B8*(CJ28/Inputs!B27)^(1-Inputs!B20)*(CJ19/'(Other Computations)'!B194)^Inputs!B20","v":{"v":1103476.051843477,"d":"$1,103,476"}},{"$f":"'(Other Computations)'!B8*(CK28/Inputs!B27)^(1-Inputs!B20)*(CK19/'(Other Computations)'!B194)^Inputs!B20","v":{"v":1102396.917211628,"d":"$1,102,397"}},{"$f":"'(Other Computations)'!B8*(CL28/Inputs!B27)^(1-Inputs!B20)*(CL19/'(Other Computations)'!B194)^Inputs!B20","v":{"v":1101318.2034692564,"d":"$1,101,318"}},{"$f":"'(Other Computations)'!B8*(CM28/Inputs!B27)^(1-Inputs!B20)*(CM19/'(Other Computations)'!B194)^Inputs!B20","v":{"v":1100242.5989938406,"d":"$1,100,243"}},{"$f":"SUM(CB45:CM45)","v":{"v":13274591.976280019,"d":"$13,274,592"}},{"$f":"'(Other Computations)'!B8*(CO28/Inputs!B27)^(1-Inputs!B20)*(CO19/'(Other Computations)'!B194)^Inputs!B20","v":{"v":1099174.5313060049,"d":"$1,099,175"}},{"$f":"'(Other Computations)'!B8*(CP28/Inputs!B27)^(1-Inputs!B20)*(CP19/'(Other Computations)'!B194)^Inputs!B20","v":{"v":1098112.1747946031,"d":"$1,098,112"}},{"$f":"'(Other Computations)'!B8*(CQ28/Inputs!B27)^(1-Inputs!B20)*(CQ19/'(Other Computations)'!B194)^Inputs!B20","v":{"v":1097051.5755036992,"d":"$1,097,052"}},{"$f":"'(Other Computations)'!B8*(CR28/Inputs!B27)^(1-Inputs!B20)*(CR19/'(Other Computations)'!B194)^Inputs!B20","v":{"v":1095998.494781119,"d":"$1,095,998"}},{"$f":"'(Other Computations)'!B8*(CS28/Inputs!B27)^(1-Inputs!B20)*(CS19/'(Other Computations)'!B194)^Inputs!B20","v":{"v":1094945.9516754197,"d":"$1,094,946"}},{"$f":"'(Other Computations)'!B8*(CT28/Inputs!B27)^(1-Inputs!B20)*(CT19/'(Other Computations)'!B194)^Inputs!B20","v":{"v":1093894.2648901746,"d":"$1,093,894"}},{"$f":"'(Other Computations)'!B8*(CU28/Inputs!B27)^(1-Inputs!B20)*(CU19/'(Other Computations)'!B194)^Inputs!B20","v":{"v":1092837.7540072296,"d":"$1,092,838"}},{"$f":"'(Other Computations)'!B8*(CV28/Inputs!B27)^(1-Inputs!B20)*(CV19/'(Other Computations)'!B194)^Inputs!B20","v":{"v":1091777.5330728954,"d":"$1,091,778"}},{"$f":"'(Other Computations)'!B8*(CW28/Inputs!B27)^(1-Inputs!B20)*(CW19/'(Other Computations)'!B194)^Inputs!B20","v":{"v":1090728.4277253759,"d":"$1,090,728"}},{"$f":"'(Other Computations)'!B8*(CX28/Inputs!B27)^(1-Inputs!B20)*(CX19/'(Other Computations)'!B194)^Inputs!B20","v":{"v":1089673.4906280455,"d":"$1,089,673"}},{"$f":"'(Other Computations)'!B8*(CY28/Inputs!B27)^(1-Inputs!B20)*(CY19/'(Other Computations)'!B194)^Inputs!B20","v":{"v":1088629.2082194434,"d":"$1,088,629"}},{"$f":"'(Other Computations)'!B8*(CZ28/Inputs!B27)^(1-Inputs!B20)*(CZ19/'(Other Computations)'!B194)^Inputs!B20","v":{"v":1087587.8444925216,"d":"$1,087,588"}},{"$f":"SUM(CO45:CZ45)","v":{"v":13120411.251096532,"d":"$13,120,411"}},{"$f":"'(Other Computations)'!B8*(DB28/Inputs!B27)^(1-Inputs!B20)*(DB19/'(Other Computations)'!B194)^Inputs!B20","v":{"v":1086542.1538085113,"d":"$1,086,542"}},{"$f":"'(Other Computations)'!B8*(DC28/Inputs!B27)^(1-Inputs!B20)*(DC19/'(Other Computations)'!B194)^Inputs!B20","v":{"v":1085501.019273952,"d":"$1,085,501"}},{"$f":"'(Other Computations)'!B8*(DD28/Inputs!B27)^(1-Inputs!B20)*(DD19/'(Other Computations)'!B194)^Inputs!B20","v":{"v":1084465.1729413304,"d":"$1,084,465"}},{"$f":"'(Other Computations)'!B8*(DE28/Inputs!B27)^(1-Inputs!B20)*(DE19/'(Other Computations)'!B194)^Inputs!B20","v":{"v":1083420.4858933173,"d":"$1,083,420"}},{"$f":"'(Other Computations)'!B8*(DF28/Inputs!B27)^(1-Inputs!B20)*(DF19/'(Other Computations)'!B194)^Inputs!B20","v":{"v":1082373.8756938493,"d":"$1,082,374"}},{"$f":"'(Other Computations)'!B8*(DG28/Inputs!B27)^(1-Inputs!B20)*(DG19/'(Other Computations)'!B194)^Inputs!B20","v":{"v":1081329.0749275365,"d":"$1,081,329"}},{"$f":"'(Other Computations)'!B8*(DH28/Inputs!B27)^(1-Inputs!B20)*(DH19/'(Other Computations)'!B194)^Inputs!B20","v":{"v":1080277.3216081406,"d":"$1,080,277"}},{"$f":"'(Other Computations)'!B8*(DI28/Inputs!B27)^(1-Inputs!B20)*(DI19/'(Other Computations)'!B194)^Inputs!B20","v":{"v":1079226.142529363,"d":"$1,079,226"}},{"$f":"'(Other Computations)'!B8*(DJ28/Inputs!B27)^(1-Inputs!B20)*(DJ19/'(Other Computations)'!B194)^Inputs!B20","v":{"v":1078169.7610708238,"d":"$1,078,170"}},{"$f":"'(Other Computations)'!B8*(DK28/Inputs!B27)^(1-Inputs!B20)*(DK19/'(Other Computations)'!B194)^Inputs!B20","v":{"v":1077107.9371281886,"d":"$1,077,108"}},{"$f":"'(Other Computations)'!B8*(DL28/Inputs!B27)^(1-Inputs!B20)*(DL19/'(Other Computations)'!B194)^Inputs!B20","v":{"v":1076038.816254235,"d":"$1,076,039"}},{"$f":"'(Other Computations)'!B8*(DM28/Inputs!B27)^(1-Inputs!B20)*(DM19/'(Other Computations)'!B194)^Inputs!B20","v":{"v":1074973.996113715,"d":"$1,074,974"}},{"$f":"SUM(DB45:DM45)","v":{"v":12969425.757242963,"d":"$12,969,426"}},{"$f":"'(Other Computations)'!B8*(DO28/Inputs!B27)^(1-Inputs!B20)*(DO19/'(Other Computations)'!B194)^Inputs!B20","v":{"v":1073907.0947049991,"d":"$1,073,907"}},{"$f":"'(Other Computations)'!B8*(DP28/Inputs!B27)^(1-Inputs!B20)*(DP19/'(Other Computations)'!B194)^Inputs!B20","v":{"v":1072841.3377778644,"d":"$1,072,841"}},{"$f":"'(Other Computations)'!B8*(DQ28/Inputs!B27)^(1-Inputs!B20)*(DQ19/'(Other Computations)'!B194)^Inputs!B20","v":{"v":1071786.1428144984,"d":"$1,071,786"}},{"$f":"'(Other Computations)'!B8*(DR28/Inputs!B27)^(1-Inputs!B20)*(DR19/'(Other Computations)'!B194)^Inputs!B20","v":{"v":1070729.7744877965,"d":"$1,070,730"}},{"$f":"'(Other Computations)'!B8*(DS28/Inputs!B27)^(1-Inputs!B20)*(DS19/'(Other Computations)'!B194)^Inputs!B20","v":{"v":1069673.0389343726,"d":"$1,069,673"}},{"$f":"'(Other Computations)'!B8*(DT28/Inputs!B27)^(1-Inputs!B20)*(DT19/'(Other Computations)'!B194)^Inputs!B20","v":{"v":1068619.9846696528,"d":"$1,068,620"}},{"$f":"'(Other Computations)'!B8*(DU28/Inputs!B27)^(1-Inputs!B20)*(DU19/'(Other Computations)'!B194)^Inputs!B20","v":{"v":1067569.5698731157,"d":"$1,067,570"}},{"$f":"'(Other Computations)'!B8*(DV28/Inputs!B27)^(1-Inputs!B20)*(DV19/'(Other Computations)'!B194)^Inputs!B20","v":{"v":1066526.854488003,"d":"$1,066,527"}},{"$f":"'(Other Computations)'!B8*(DW28/Inputs!B27)^(1-Inputs!B20)*(DW19/'(Other Computations)'!B194)^Inputs!B20","v":{"v":1065494.6279633509,"d":"$1,065,495"}},{"$f":"'(Other Computations)'!B8*(DX28/Inputs!B27)^(1-Inputs!B20)*(DX19/'(Other Computations)'!B194)^Inputs!B20","v":{"v":1064473.8452338902,"d":"$1,064,474"}},{"$f":"'(Other Computations)'!B8*(DY28/Inputs!B27)^(1-Inputs!B20)*(DY19/'(Other Computations)'!B194)^Inputs!B20","v":{"v":1063457.7777597914,"d":"$1,063,458"}},{"$f":"'(Other Computations)'!B8*(DZ28/Inputs!B27)^(1-Inputs!B20)*(DZ19/'(Other Computations)'!B194)^Inputs!B20","v":{"v":1062450.1350279057,"d":"$1,062,450"}},{"$f":"SUM(DO45:DZ45)","v":{"v":12817530.183735238,"d":"$12,817,530"}},{"$f":"'(Other Computations)'!B8*(EB28/Inputs!B27)^(1-Inputs!B20)*(EB19/'(Other Computations)'!B194)^Inputs!B20","v":{"v":1061444.4166244264,"d":"$1,061,444"}},{"$f":"'(Other Computations)'!B8*(EC28/Inputs!B27)^(1-Inputs!B20)*(EC19/'(Other Computations)'!B194)^Inputs!B20","v":{"v":1060441.4844065884,"d":"$1,060,441"}},{"$f":"'(Other Computations)'!B8*(ED28/Inputs!B27)^(1-Inputs!B20)*(ED19/'(Other Computations)'!B194)^Inputs!B20","v":{"v":1059448.757352162,"d":"$1,059,449"}},{"$f":"'(Other Computations)'!B8*(EE28/Inputs!B27)^(1-Inputs!B20)*(EE19/'(Other Computations)'!B194)^Inputs!B20","v":{"v":1058459.5229693593,"d":"$1,058,460"}},{"$f":"'(Other Computations)'!B8*(EF28/Inputs!B27)^(1-Inputs!B20)*(EF19/'(Other Computations)'!B194)^Inputs!B20","v":{"v":1057476.6218471914,"d":"$1,057,477"}},{"$f":"'(Other Computations)'!B8*(EG28/Inputs!B27)^(1-Inputs!B20)*(EG19/'(Other Computations)'!B194)^Inputs!B20","v":{"v":1056501.8413002987,"d":"$1,056,502"}},{"$f":"'(Other Computations)'!B8*(EH28/Inputs!B27)^(1-Inputs!B20)*(EH19/'(Other Computations)'!B194)^Inputs!B20","v":{"v":1055529.9447369266,"d":"$1,055,530"}},{"$f":"'(Other Computations)'!B8*(EI28/Inputs!B27)^(1-Inputs!B20)*(EI19/'(Other Computations)'!B194)^Inputs!B20","v":{"v":1054563.8000199029,"d":"$1,054,564"}},{"$f":"'(Other Computations)'!B8*(EJ28/Inputs!B27)^(1-Inputs!B20)*(EJ19/'(Other Computations)'!B194)^Inputs!B20","v":{"v":1053600.4827063677,"d":"$1,053,600"}},{"$f":"'(Other Computations)'!B8*(EK28/Inputs!B27)^(1-Inputs!B20)*(EK19/'(Other Computations)'!B194)^Inputs!B20","v":{"v":1052642.7498319335,"d":"$1,052,643"}},{"$f":"'(Other Computations)'!B8*(EL28/Inputs!B27)^(1-Inputs!B20)*(EL19/'(Other Computations)'!B194)^Inputs!B20","v":{"v":1051695.9811385109,"d":"$1,051,696"}},{"$f":"'(Other Computations)'!B8*(EM28/Inputs!B27)^(1-Inputs!B20)*(EM19/'(Other Computations)'!B194)^Inputs!B20","v":{"v":1050762.5904759867,"d":"$1,050,763"}},{"$f":"SUM(EB45:EM45)","v":{"v":12672568.193409655,"d":"$12,672,568"}}]
[{"$f":"Labels!B78","v":"Output Shock"},{"$f":"NORMINV(RAND()*(1-2*Inputs!B58)+Inputs!B58,0,'(Other Computations)'!B208)","v":{"v":-651.4459471436966,"d":"($651)"}},{"$f":"NORMINV(RAND()*(1-2*Inputs!B58)+Inputs!B58,0,'(Other Computations)'!B208)","v":{"v":-45309.11176561562,"d":"($45,309)"}},{"$f":"NORMINV(RAND()*(1-2*Inputs!B58)+Inputs!B58,0,'(Other Computations)'!B208)","v":{"v":22102.245182115897,"d":"$22,102"}},{"$f":"NORMINV(RAND()*(1-2*Inputs!B58)+Inputs!B58,0,'(Other Computations)'!B208)","v":{"v":2236.5157937435024,"d":"$2,237"}},{"$f":"NORMINV(RAND()*(1-2*Inputs!B58)+Inputs!B58,0,'(Other Computations)'!B208)","v":{"v":-53774.670747096956,"d":"($53,775)"}},{"$f":"NORMINV(RAND()*(1-2*Inputs!B58)+Inputs!B58,0,'(Other Computations)'!B208)","v":{"v":16466.6907206823,"d":"$16,467"}},{"$f":"NORMINV(RAND()*(1-2*Inputs!B58)+Inputs!B58,0,'(Other Computations)'!B208)","v":{"v":-26081.54857914822,"d":"($26,082)"}},{"$f":"NORMINV(RAND()*(1-2*Inputs!B58)+Inputs!B58,0,'(Other Computations)'!B208)","v":{"v":25571.45286550293,"d":"$25,571"}},{"$f":"NORMINV(RAND()*(1-2*Inputs!B58)+Inputs!B58,0,'(Other Computations)'!B208)","v":{"v":45082.78447347111,"d":"$45,083"}},{"$f":"NORMINV(RAND()*(1-2*Inputs!B58)+Inputs!B58,0,'(Other Computations)'!B208)","v":{"v":-13183.91455914935,"d":"($13,184)"}},{"$f":"NORMINV(RAND()*(1-2*Inputs!B58)+Inputs!B58,0,'(Other Computations)'!B208)","v":{"v":12985.928456097088,"d":"$12,986"}},{"$f":"NORMINV(RAND()*(1-2*Inputs!B58)+Inputs!B58,0,'(Other Computations)'!B208)","v":{"v":-55345.60484824524,"d":"($55,346)"}},{"$f":"SUM(B46:M46)","v":{"v":-69900.67895478624,"d":"($69,901)"}},{"$f":"NORMINV(RAND()*(1-2*Inputs!B58)+Inputs!B58,0,'(Other Computations)'!B208)","v":{"v":-41716.40874222249,"d":"($41,716)"}},{"$f":"NORMINV(RAND()*(1-2*Inputs!B58)+Inputs!B58,0,'(Other Computations)'!B208)","v":{"v":12699.943719669789,"d":"$12,700"}},{"$f":"NORMINV(RAND()*(1-2*Inputs!B58)+Inputs!B58,0,'(Other Computations)'!B208)","v":{"v":59113.42107175502,"d":"$59,113"}},{"$f":"NORMINV(RAND()*(1-2*Inputs!B58)+Inputs!B58,0,'(Other Computations)'!B208)","v":{"v":-41484.23189165599,"d":"($41,484)"}},{"$f":"NORMINV(RAND()*(1-2*Inputs!B58)+Inputs!B58,0,'(Other Computations)'!B208)","v":{"v":6731.868196801157,"d":"$6,732"}},{"$f":"NORMINV(RAND()*(1-2*Inputs!B58)+Inputs!B58,0,'(Other Computations)'!B208)","v":{"v":49599.22954958386,"d":"$49,599"}},{"$f":"NORMINV(RAND()*(1-2*Inputs!B58)+Inputs!B58,0,'(Other Computations)'!B208)","v":{"v":-22259.0899148496,"d":"($22,259)"}},{"$f":"NORMINV(RAND()*(1-2*Inputs!B58)+Inputs!B58,0,'(Other Computations)'!B208)","v":{"v":22144.528615716525,"d":"$22,145"}},{"$f":"NORMINV(RAND()*(1-2*Inputs!B58)+Inputs!B58,0,'(Other Computations)'!B208)","v":{"v":29076.70437414869,"d":"$29,077"}},{"$f":"NORMINV(RAND()*(1-2*Inputs!B58)+Inputs!B58,0,'(Other Computations)'!B208)","v":{"v":-2377.069317668579,"d":"($2,377)"}},{"$f":"NORMINV(RAND()*(1-2*Inputs!B58)+Inputs!B58,0,'(Other Computations)'!B208)","v":{"v":-24564.845316460054,"d":"($24,565)"}},{"$f":"NORMINV(RAND()*(1-2*Inputs!B58)+Inputs!B58,0,'(Other Computations)'!B208)","v":{"v":32344.639970317567,"d":"$32,345"}},{"$f":"SUM(O46:Z46)","v":{"v":79308.69031513591,"d":"$79,309"}},{"$f":"NORMINV(RAND()*(1-2*Inputs!B58)+Inputs!B58,0,'(Other Computations)'!B208)","v":{"v":-44088.31330412967,"d":"($44,088)"}},{"$f":"NORMINV(RAND()*(1-2*Inputs!B58)+Inputs!B58,0,'(Other Computations)'!B208)","v":{"v":-23468.13019281685,"d":"($23,468)"}},{"$f":"NORMINV(RAND()*(1-2*Inputs!B58)+Inputs!B58,0,'(Other Computations)'!B208)","v":{"v":51125.843744825084,"d":"$51,126"}},{"$f":"NORMINV(RAND()*(1-2*Inputs!B58)+Inputs!B58,0,'(Other Computations)'!B208)","v":{"v":-9730.217394991032,"d":"($9,730)"}},{"$f":"NORMINV(RAND()*(1-2*Inputs!B58)+Inputs!B58,0,'(Other Computations)'!B208)","v":{"v":52601.43526281214,"d":"$52,601"}},{"$f":"NORMINV(RAND()*(1-2*Inputs!B58)+Inputs!B58,0,'(Other Computations)'!B208)","v":{"v":35059.11710721694,"d":"$35,059"}},{"$f":"NORMINV(RAND()*(1-2*Inputs!B58)+Inputs!B58,0,'(Other Computations)'!B208)","v":{"v":10583.881792672895,"d":"$10,584"}},{"$f":"NORMINV(RAND()*(1-2*Inputs!B58)+Inputs!B58,0,'(Other Computations)'!B208)","v":{"v":-38402.00428945589,"d":"($38,402)"}},{"$f":"NORMINV(RAND()*(1-2*Inputs!B58)+Inputs!B58,0,'(Other Computations)'!B208)","v":{"v":57760.89757811843,"d":"$57,761"}},{"$f":"NORMINV(RAND()*(1-2*Inputs!B58)+Inputs!B58,0,'(Other Computations)'!B208)","v":{"v":-29399.09611378329,"d":"($29,399)"}},{"$f":"NORMINV(RAND()*(1-2*Inputs!B58)+Inputs!B58,0,'(Other Computations)'!B208)","v":{"v":-58037.167300003,"d":"($58,037)"}},{"$f":"NORMINV(RAND()*(1-2*Inputs!B58)+Inputs!B58,0,'(Other Computations)'!B208)","v":{"v":-15279.432970642336,"d":"($15,279)"}},{"$f":"SUM(AB46:AM46)","v":{"v":-11273.186080176578,"d":"($11,273)"}},{"$f":"NORMINV(RAND()*(1-2*Inputs!B58)+Inputs!B58,0,'(Other Computations)'!B208)","v":{"v":34668.00020301422,"d":"$34,668"}},{"$f":"NORMINV(RAND()*(1-2*Inputs!B58)+Inputs!B58,0,'(Other Computations)'!B208)","v":{"v":-8700.698894355188,"d":"($8,701)"}},{"$f":"NORMINV(RAND()*(1-2*Inputs!B58)+Inputs!B58,0,'(Other Computations)'!B208)","v":{"v":12047.9682617607,"d":"$12,048"}},{"$f":"NORMINV(RAND()*(1-2*Inputs!B58)+Inputs!B58,0,'(Other Computations)'!B208)","v":{"v":45907.4609049307,"d":"$45,907"}},{"$f":"NORMINV(RAND()*(1-2*Inputs!B58)+Inputs!B58,0,'(Other Computations)'!B208)","v":{"v":-25708.949793039996,"d":"($25,709)"}},{"$f":"NORMINV(RAND()*(1-2*Inputs!B58)+Inputs!B58,0,'(Other Computations)'!B208)","v":{"v":-50253.76965416858,"d":"($50,254)"}},{"$f":"NORMINV(RAND()*(1-2*Inputs!B58)+Inputs!B58,0,'(Other Computations)'!B208)","v":{"v":24808.56675783532,"d":"$24,809"}},{"$f":"NORMINV(RAND()*(1-2*Inputs!B58)+Inputs!B58,0,'(Other Computations)'!B208)","v":{"v":-4081.4460618035723,"d":"($4,081)"}},{"$f":"NORMINV(RAND()*(1-2*Inputs!B58)+Inputs!B58,0,'(Other Computations)'!B208)","v":{"v":-25162.09970013615,"d":"($25,162)"}},{"$f":"NORMINV(RAND()*(1-2*Inputs!B58)+Inputs!B58,0,'(Other Computations)'!B208)","v":{"v":-5456.737568230496,"d":"($5,457)"}},{"$f":"NORMINV(RAND()*(1-2*Inputs!B58)+Inputs!B58,0,'(Other Computations)'!B208)","v":{"v":-7672.289231866038,"d":"($7,672)"}},{"$f":"NORMINV(RAND()*(1-2*Inputs!B58)+Inputs!B58,0,'(Other Computations)'!B208)","v":{"v":60630.81918257643,"d":"$60,631"}},{"$f":"SUM(AO46:AZ46)","v":{"v":51026.82440651735,"d":"$51,027"}},{"$f":"NORMINV(RAND()*(1-2*Inputs!B58)+Inputs!B58,0,'(Other Computations)'!B208)","v":{"v":37284.38787696884,"d":"$37,284"}},{"$f":"NORMINV(RAND()*(1-2*Inputs!B58)+Inputs!B58,0,'(Other Computations)'!B208)","v":{"v":3215.3404522466617,"d":"$3,215"}},{"$f":"NORMINV(RAND()*(1-2*Inputs!B58)+Inputs!B58,0,'(Other Computations)'!B208)","v":{"v":42687.58935883012,"d":"$42,688"}},{"$f":"NORMINV(RAND()*(1-2*Inputs!B58)+Inputs!B58,0,'(Other Computations)'!B208)","v":{"v":660.9601600193788,"d":"$661"}},{"$f":"NORMINV(RAND()*(1-2*Inputs!B58)+Inputs!B58,0,'(Other Computations)'!B208)","v":{"v":-33071.618464557665,"d":"($33,072)"}},{"$f":"NORMINV(RAND()*(1-2*Inputs!B58)+Inputs!B58,0,'(Other Computations)'!B208)","v":{"v":-27731.84494715322,"d":"($27,732)"}},{"$f":"NORMINV(RAND()*(1-2*Inputs!B58)+Inputs!B58,0,'(Other Computations)'!B208)","v":{"v":11779.056324966337,"d":"$11,779"}},{"$f":"NORMINV(RAND()*(1-2*Inputs!B58)+Inputs!B58,0,'(Other Computations)'!B208)","v":{"v":-6556.976273801029,"d":"($6,557)"}},{"$f":"NORMINV(RAND()*(1-2*Inputs!B58)+Inputs!B58,0,'(Other Computations)'!B208)","v":{"v":21144.436643865858,"d":"$21,144"}},{"$f":"NORMINV(RAND()*(1-2*Inputs!B58)+Inputs!B58,0,'(Other Computations)'!B208)","v":{"v":25012.123563213343,"d":"$25,012"}},{"$f":"NORMINV(RAND()*(1-2*Inputs!B58)+Inputs!B58,0,'(Other Computations)'!B208)","v":{"v":30847.76989443788,"d":"$30,848"}},{"$f":"NORMINV(RAND()*(1-2*Inputs!B58)+Inputs!B58,0,'(Other Computations)'!B208)","v":{"v":-19672.79430045576,"d":"($19,673)"}},{"$f":"SUM(BB46:BM46)","v":{"v":85598.43028858074,"d":"$85,598"}},{"$f":"NORMINV(RAND()*(1-2*Inputs!B58)+Inputs!B58,0,'(Other Computations)'!B208)","v":{"v":-368.5562540055115,"d":"($369)"}},{"$f":"NORMINV(RAND()*(1-2*Inputs!B58)+Inputs!B58,0,'(Other Computations)'!B208)","v":{"v":32657.736615811573,"d":"$32,658"}},{"$f":"NORMINV(RAND()*(1-2*Inputs!B58)+Inputs!B58,0,'(Other Computations)'!B208)","v":{"v":-5245.310539541589,"d":"($5,245)"}},{"$f":"NORMINV(RAND()*(1-2*Inputs!B58)+Inputs!B58,0,'(Other Computations)'!B208)","v":{"v":-4493.19755981644,"d":"($4,493)"}},{"$f":"NORMINV(RAND()*(1-2*Inputs!B58)+Inputs!B58,0,'(Other Computations)'!B208)","v":{"v":33514.4096666247,"d":"$33,514"}},{"$f":"NORMINV(RAND()*(1-2*Inputs!B58)+Inputs!B58,0,'(Other Computations)'!B208)","v":{"v":34929.278476600724,"d":"$34,929"}},{"$f":"NORMINV(RAND()*(1-2*Inputs!B58)+Inputs!B58,0,'(Other Computations)'!B208)","v":{"v":-12089.769927294721,"d":"($12,090)"}},{"$f":"NORMINV(RAND()*(1-2*Inputs!B58)+Inputs!B58,0,'(Other Computations)'!B208)","v":{"v":22287.441514009468,"d":"$22,287"}},{"$f":"NORMINV(RAND()*(1-2*Inputs!B58)+Inputs!B58,0,'(Other Computations)'!B208)","v":{"v":36855.184864542214,"d":"$36,855"}},{"$f":"NORMINV(RAND()*(1-2*Inputs!B58)+Inputs!B58,0,'(Other Computations)'!B208)","v":{"v":-15063.160374456207,"d":"($15,063)"}},{"$f":"NORMINV(RAND()*(1-2*Inputs!B58)+Inputs!B58,0,'(Other Computations)'!B208)","v":{"v":24763.62104217592,"d":"$24,764"}},{"$f":"NORMINV(RAND()*(1-2*Inputs!B58)+Inputs!B58,0,'(Other Computations)'!B208)","v":{"v":-1530.2995106559622,"d":"($1,530)"}},{"$f":"SUM(BO46:BZ46)","v":{"v":146217.37801399417,"d":"$146,217"}},{"$f":"NORMINV(RAND()*(1-2*Inputs!B58)+Inputs!B58,0,'(Other Computations)'!B208)","v":{"v":-23332.81331792708,"d":"($23,333)"}},{"$f":"NORMINV(RAND()*(1-2*Inputs!B58)+Inputs!B58,0,'(Other Computations)'!B208)","v":{"v":-7193.752881208552,"d":"($7,194)"}},{"$f":"NORMINV(RAND()*(1-2*Inputs!B58)+Inputs!B58,0,'(Other Computations)'!B208)","v":{"v":9813.681514983855,"d":"$9,814"}},{"$f":"NORMINV(RAND()*(1-2*Inputs!B58)+Inputs!B58,0,'(Other Computations)'!B208)","v":{"v":-1138.6151470697168,"d":"($1,139)"}},{"$f":"NORMINV(RAND()*(1-2*Inputs!B58)+Inputs!B58,0,'(Other Computations)'!B208)","v":{"v":-25939.16429605951,"d":"($25,939)"}},{"$f":"NORMINV(RAND()*(1-2*Inputs!B58)+Inputs!B58,0,'(Other Computations)'!B208)","v":{"v":21882.29193462214,"d":"$21,882"}},{"$f":"NORMINV(RAND()*(1-2*Inputs!B58)+Inputs!B58,0,'(Other Computations)'!B208)","v":{"v":-56532.99339661046,"d":"($56,533)"}},{"$f":"NORMINV(RAND()*(1-2*Inputs!B58)+Inputs!B58,0,'(Other Computations)'!B208)","v":{"v":26173.037268640877,"d":"$26,173"}},{"$f":"NORMINV(RAND()*(1-2*Inputs!B58)+Inputs!B58,0,'(Other Computations)'!B208)","v":{"v":-24188.955849985476,"d":"($24,189)"}},{"$f":"NORMINV(RAND()*(1-2*Inputs!B58)+Inputs!B58,0,'(Other Computations)'!B208)","v":{"v":34615.83462671391,"d":"$34,616"}},{"$f":"NORMINV(RAND()*(1-2*Inputs!B58)+Inputs!B58,0,'(Other Computations)'!B208)","v":{"v":-45042.89264396144,"d":"($45,043)"}},{"$f":"NORMINV(RAND()*(1-2*Inputs!B58)+Inputs!B58,0,'(Other Computations)'!B208)","v":{"v":-33505.68449137984,"d":"($33,506)"}},{"$f":"SUM(CB46:CM46)","v":{"v":-124390.02667924129,"d":"($124,390)"}},{"$f":"NORMINV(RAND()*(1-2*Inputs!B58)+Inputs!B58,0,'(Other Computations)'!B208)","v":{"v":9152.610919684266,"d":"$9,153"}},{"$f":"NORMINV(RAND()*(1-2*Inputs!B58)+Inputs!B58,0,'(Other Computations)'!B208)","v":{"v":-58060.42655619443,"d":"($58,060)"}},{"$f":"NORMINV(RAND()*(1-2*Inputs!B58)+Inputs!B58,0,'(Other Computations)'!B208)","v":{"v":-58811.80068712935,"d":"($58,812)"}},{"$f":"NORMINV(RAND()*(1-2*Inputs!B58)+Inputs!B58,0,'(Other Computations)'!B208)","v":{"v":27314.69706223765,"d":"$27,315"}},{"$f":"NORMINV(RAND()*(1-2*Inputs!B58)+Inputs!B58,0,'(Other Computations)'!B208)","v":{"v":16827.411048302107,"d":"$16,827"}},{"$f":"NORMINV(RAND()*(1-2*Inputs!B58)+Inputs!B58,0,'(Other Computations)'!B208)","v":{"v":-9756.171579083471,"d":"($9,756)"}},{"$f":"NORMINV(RAND()*(1-2*Inputs!B58)+Inputs!B58,0,'(Other Computations)'!B208)","v":{"v":28652.585960858276,"d":"$28,653"}},{"$f":"NORMINV(RAND()*(1-2*Inputs!B58)+Inputs!B58,0,'(Other Computations)'!B208)","v":{"v":19545.725711576284,"d":"$19,546"}},{"$f":"NORMINV(RAND()*(1-2*Inputs!B58)+Inputs!B58,0,'(Other Computations)'!B208)","v":{"v":-15882.8312379967,"d":"($15,883)"}},{"$f":"NORMINV(RAND()*(1-2*Inputs!B58)+Inputs!B58,0,'(Other Computations)'!B208)","v":{"v":-17398.819628912144,"d":"($17,399)"}},{"$f":"NORMINV(RAND()*(1-2*Inputs!B58)+Inputs!B58,0,'(Other Computations)'!B208)","v":{"v":24821.918328857337,"d":"$24,822"}},{"$f":"NORMINV(RAND()*(1-2*Inputs!B58)+Inputs!B58,0,'(Other Computations)'!B208)","v":{"v":23972.116410134415,"d":"$23,972"}},{"$f":"SUM(CO46:CZ46)","v":{"v":-9622.98424766574,"d":"($9,623)"}},{"$f":"NORMINV(RAND()*(1-2*Inputs!B58)+Inputs!B58,0,'(Other Computations)'!B208)","v":{"v":6248.071736435702,"d":"$6,248"}},{"$f":"NORMINV(RAND()*(1-2*Inputs!B58)+Inputs!B58,0,'(Other Computations)'!B208)","v":{"v":-3901.2697992967983,"d":"($3,901)"}},{"$f":"NORMINV(RAND()*(1-2*Inputs!B58)+Inputs!B58,0,'(Other Computations)'!B208)","v":{"v":-3154.8243312705354,"d":"($3,155)"}},{"$f":"NORMINV(RAND()*(1-2*Inputs!B58)+Inputs!B58,0,'(Other Computations)'!B208)","v":{"v":7410.344482731172,"d":"$7,410"}},{"$f":"NORMINV(RAND()*(1-2*Inputs!B58)+Inputs!B58,0,'(Other Computations)'!B208)","v":{"v":-20191.28429330717,"d":"($20,191)"}},{"$f":"NORMINV(RAND()*(1-2*Inputs!B58)+Inputs!B58,0,'(Other Computations)'!B208)","v":{"v":-10543.879115929516,"d":"($10,544)"}},{"$f":"NORMINV(RAND()*(1-2*Inputs!B58)+Inputs!B58,0,'(Other Computations)'!B208)","v":{"v":-3172.5289321128735,"d":"($3,173)"}},{"$f":"NORMINV(RAND()*(1-2*Inputs!B58)+Inputs!B58,0,'(Other Computations)'!B208)","v":{"v":166.80979219784908,"d":"$167"}},{"$f":"NORMINV(RAND()*(1-2*Inputs!B58)+Inputs!B58,0,'(Other Computations)'!B208)","v":{"v":-8936.206628270635,"d":"($8,936)"}},{"$f":"NORMINV(RAND()*(1-2*Inputs!B58)+Inputs!B58,0,'(Other Computations)'!B208)","v":{"v":34638.41595502497,"d":"$34,638"}},{"$f":"NORMINV(RAND()*(1-2*Inputs!B58)+Inputs!B58,0,'(Other Computations)'!B208)","v":{"v":-29014.572892795517,"d":"($29,015)"}},{"$f":"NORMINV(RAND()*(1-2*Inputs!B58)+Inputs!B58,0,'(Other Computations)'!B208)","v":{"v":-1157.9983293860068,"d":"($1,158)"}},{"$f":"SUM(DB46:DM46)","v":{"v":-31608.922355979357,"d":"($31,609)"}},{"$f":"NORMINV(RAND()*(1-2*Inputs!B58)+Inputs!B58,0,'(Other Computations)'!B208)","v":{"v":23130.900586267482,"d":"$23,131"}},{"$f":"NORMINV(RAND()*(1-2*Inputs!B58)+Inputs!B58,0,'(Other Computations)'!B208)","v":{"v":-20767.833530165535,"d":"($20,768)"}},{"$f":"NORMINV(RAND()*(1-2*Inputs!B58)+Inputs!B58,0,'(Other Computations)'!B208)","v":{"v":16572.865050247252,"d":"$16,573"}},{"$f":"NORMINV(RAND()*(1-2*Inputs!B58)+Inputs!B58,0,'(Other Computations)'!B208)","v":{"v":18407.765662668236,"d":"$18,408"}},{"$f":"NORMINV(RAND()*(1-2*Inputs!B58)+Inputs!B58,0,'(Other Computations)'!B208)","v":{"v":15785.426404129059,"d":"$15,785"}},{"$f":"NORMINV(RAND()*(1-2*Inputs!B58)+Inputs!B58,0,'(Other Computations)'!B208)","v":{"v":-2646.7907225049325,"d":"($2,647)"}},{"$f":"NORMINV(RAND()*(1-2*Inputs!B58)+Inputs!B58,0,'(Other Computations)'!B208)","v":{"v":39967.33986550625,"d":"$39,967"}},{"$f":"NORMINV(RAND()*(1-2*Inputs!B58)+Inputs!B58,0,'(Other Computations)'!B208)","v":{"v":-22358.23893666065,"d":"($22,358)"}},{"$f":"NORMINV(RAND()*(1-2*Inputs!B58)+Inputs!B58,0,'(Other Computations)'!B208)","v":{"v":-8485.794488012656,"d":"($8,486)"}},{"$f":"NORMINV(RAND()*(1-2*Inputs!B58)+Inputs!B58,0,'(Other Computations)'!B208)","v":{"v":-1344.4654581599946,"d":"($1,344)"}},{"$f":"NORMINV(RAND()*(1-2*Inputs!B58)+Inputs!B58,0,'(Other Computations)'!B208)","v":{"v":31976.339937568264,"d":"$31,976"}},{"$f":"NORMINV(RAND()*(1-2*Inputs!B58)+Inputs!B58,0,'(Other Computations)'!B208)","v":{"v":-23524.260752014852,"d":"($23,524)"}},{"$f":"SUM(DO46:DZ46)","v":{"v":66713.25361886792,"d":"$66,713"}},{"$f":"NORMINV(RAND()*(1-2*Inputs!B58)+Inputs!B58,0,'(Other Computations)'!B208)","v":{"v":-35734.35209560701,"d":"($35,734)"}},{"$f":"NORMINV(RAND()*(1-2*Inputs!B58)+Inputs!B58,0,'(Other Computations)'!B208)","v":{"v":26907.80297404791,"d":"$26,908"}},{"$f":"NORMINV(RAND()*(1-2*Inputs!B58)+Inputs!B58,0,'(Other Computations)'!B208)","v":{"v":-19097.247827694722,"d":"($19,097)"}},{"$f":"NORMINV(RAND()*(1-2*Inputs!B58)+Inputs!B58,0,'(Other Computations)'!B208)","v":{"v":1346.3004917882834,"d":"$1,346"}},{"$f":"NORMINV(RAND()*(1-2*Inputs!B58)+Inputs!B58,0,'(Other Computations)'!B208)","v":{"v":-30549.215552917965,"d":"($30,549)"}},{"$f":"NORMINV(RAND()*(1-2*Inputs!B58)+Inputs!B58,0,'(Other Computations)'!B208)","v":{"v":49880.360283547794,"d":"$49,880"}},{"$f":"NORMINV(RAND()*(1-2*Inputs!B58)+Inputs!B58,0,'(Other Computations)'!B208)","v":{"v":-26899.736004896848,"d":"($26,900)"}},{"$f":"NORMINV(RAND()*(1-2*Inputs!B58)+Inputs!B58,0,'(Other Computations)'!B208)","v":{"v":22746.557851056656,"d":"$22,747"}},{"$f":"NORMINV(RAND()*(1-2*Inputs!B58)+Inputs!B58,0,'(Other Computations)'!B208)","v":{"v":43864.66185545131,"d":"$43,865"}},{"$f":"NORMINV(RAND()*(1-2*Inputs!B58)+Inputs!B58,0,'(Other Computations)'!B208)","v":{"v":14658.54742667572,"d":"$14,659"}},{"$f":"NORMINV(RAND()*(1-2*Inputs!B58)+Inputs!B58,0,'(Other Computations)'!B208)","v":{"v":5918.104723907705,"d":"$5,918"}},{"$f":"NORMINV(RAND()*(1-2*Inputs!B58)+Inputs!B58,0,'(Other Computations)'!B208)","v":{"v":8296.289764469475,"d":"$8,296"}},{"$f":"SUM(EB46:EM46)","v":{"v":61338.0738898283,"d":"$61,338"}}]
[]
[]
[{"$f":"\"Government\"","v":"Government"}]
[{"$f":"\" \"","v":" "}]
[null,{"$f":"ZZZ__FnCalls!F7","v":"Jan 2010"},{"$f":"ZZZ__FnCalls!F8","v":"Feb 2010"},{"$f":"ZZZ__FnCalls!F9","v":"Mar 2010"},{"$f":"ZZZ__FnCalls!F10","v":"Apr 2010"},{"$f":"ZZZ__FnCalls!F11","v":"May 2010"},{"$f":"ZZZ__FnCalls!F12","v":"Jun 2010"},{"$f":"ZZZ__FnCalls!F13","v":"Jul 2010"},{"$f":"ZZZ__FnCalls!F14","v":"Aug 2010"},{"$f":"ZZZ__FnCalls!F15","v":"Sep 2010"},{"$f":"ZZZ__FnCalls!F16","v":"Oct 2010"},{"$f":"ZZZ__FnCalls!F17","v":"Nov 2010"},{"$f":"ZZZ__FnCalls!F18","v":"Dec 2010"},{"$f":"ZZZ__FnCalls!H7","v":"2010"},{"$f":"ZZZ__FnCalls!F19","v":"Jan 2011"},{"$f":"ZZZ__FnCalls!F20","v":"Feb 2011"},{"$f":"ZZZ__FnCalls!F21","v":"Mar 2011"},{"$f":"ZZZ__FnCalls!F22","v":"Apr 2011"},{"$f":"ZZZ__FnCalls!F23","v":"May 2011"},{"$f":"ZZZ__FnCalls!F24","v":"Jun 2011"},{"$f":"ZZZ__FnCalls!F25","v":"Jul 2011"},{"$f":"ZZZ__FnCalls!F26","v":"Aug 2011"},{"$f":"ZZZ__FnCalls!F27","v":"Sep 2011"},{"$f":"ZZZ__FnCalls!F28","v":"Oct 2011"},{"$f":"ZZZ__FnCalls!F29","v":"Nov 2011"},{"$f":"ZZZ__FnCalls!F30","v":"Dec 2011"},{"$f":"ZZZ__FnCalls!H19","v":"2011"},{"$f":"ZZZ__FnCalls!F31","v":"Jan 2012"},{"$f":"ZZZ__FnCalls!F32","v":"Feb 2012"},{"$f":"ZZZ__FnCalls!F33","v":"Mar 2012"},{"$f":"ZZZ__FnCalls!F34","v":"Apr 2012"},{"$f":"ZZZ__FnCalls!F35","v":"May 2012"},{"$f":"ZZZ__FnCalls!F36","v":"Jun 2012"},{"$f":"ZZZ__FnCalls!F37","v":"Jul 2012"},{"$f":"ZZZ__FnCalls!F38","v":"Aug 2012"},{"$f":"ZZZ__FnCalls!F39","v":"Sep 2012"},{"$f":"ZZZ__FnCalls!F40","v":"Oct 2012"},{"$f":"ZZZ__FnCalls!F41","v":"Nov 2012"},{"$f":"ZZZ__FnCalls!F42","v":"Dec 2012"},{"$f":"ZZZ__FnCalls!H31","v":"2012"},{"$f":"ZZZ__FnCalls!F43","v":"Jan 2013"},{"$f":"ZZZ__FnCalls!F44","v":"Feb 2013"},{"$f":"ZZZ__FnCalls!F45","v":"Mar 2013"},{"$f":"ZZZ__FnCalls!F46","v":"Apr 2013"},{"$f":"ZZZ__FnCalls!F47","v":"May 2013"},{"$f":"ZZZ__FnCalls!F48","v":"Jun 2013"},{"$f":"ZZZ__FnCalls!F49","v":"Jul 2013"},{"$f":"ZZZ__FnCalls!F50","v":"Aug 2013"},{"$f":"ZZZ__FnCalls!F51","v":"Sep 2013"},{"$f":"ZZZ__FnCalls!F52","v":"Oct 2013"},{"$f":"ZZZ__FnCalls!F53","v":"Nov 2013"},{"$f":"ZZZ__FnCalls!F54","v":"Dec 2013"},{"$f":"ZZZ__FnCalls!H43","v":"2013"},{"$f":"ZZZ__FnCalls!F55","v":"Jan 2014"},{"$f":"ZZZ__FnCalls!F56","v":"Feb 2014"},{"$f":"ZZZ__FnCalls!F57","v":"Mar 2014"},{"$f":"ZZZ__FnCalls!F58","v":"Apr 2014"},{"$f":"ZZZ__FnCalls!F59","v":"May 2014"},{"$f":"ZZZ__FnCalls!F60","v":"Jun 2014"},{"$f":"ZZZ__FnCalls!F61","v":"Jul 2014"},{"$f":"ZZZ__FnCalls!F62","v":"Aug 2014"},{"$f":"ZZZ__FnCalls!F63","v":"Sep 2014"},{"$f":"ZZZ__FnCalls!F64","v":"Oct 2014"},{"$f":"ZZZ__FnCalls!F65","v":"Nov 2014"},{"$f":"ZZZ__FnCalls!F66","v":"Dec 2014"},{"$f":"ZZZ__FnCalls!H55","v":"2014"},{"$f":"ZZZ__FnCalls!F67","v":"Jan 2015"},{"$f":"ZZZ__FnCalls!F68","v":"Feb 2015"},{"$f":"ZZZ__FnCalls!F69","v":"Mar 2015"},{"$f":"ZZZ__FnCalls!F70","v":"Apr 2015"},{"$f":"ZZZ__FnCalls!F71","v":"May 2015"},{"$f":"ZZZ__FnCalls!F72","v":"Jun 2015"},{"$f":"ZZZ__FnCalls!F73","v":"Jul 2015"},{"$f":"ZZZ__FnCalls!F74","v":"Aug 2015"},{"$f":"ZZZ__FnCalls!F75","v":"Sep 2015"},{"$f":"ZZZ__FnCalls!F76","v":"Oct 2015"},{"$f":"ZZZ__FnCalls!F77","v":"Nov 2015"},{"$f":"ZZZ__FnCalls!F78","v":"Dec 2015"},{"$f":"ZZZ__FnCalls!H67","v":"2015"},{"$f":"ZZZ__FnCalls!F79","v":"Jan 2016"},{"$f":"ZZZ__FnCalls!F80","v":"Feb 2016"},{"$f":"ZZZ__FnCalls!F81","v":"Mar 2016"},{"$f":"ZZZ__FnCalls!F82","v":"Apr 2016"},{"$f":"ZZZ__FnCalls!F83","v":"May 2016"},{"$f":"ZZZ__FnCalls!F84","v":"Jun 2016"},{"$f":"ZZZ__FnCalls!F85","v":"Jul 2016"},{"$f":"ZZZ__FnCalls!F86","v":"Aug 2016"},{"$f":"ZZZ__FnCalls!F87","v":"Sep 2016"},{"$f":"ZZZ__FnCalls!F88","v":"Oct 2016"},{"$f":"ZZZ__FnCalls!F89","v":"Nov 2016"},{"$f":"ZZZ__FnCalls!F90","v":"Dec 2016"},{"$f":"ZZZ__FnCalls!H79","v":"2016"},{"$f":"ZZZ__FnCalls!F91","v":"Jan 2017"},{"$f":"ZZZ__FnCalls!F92","v":"Feb 2017"},{"$f":"ZZZ__FnCalls!F93","v":"Mar 2017"},{"$f":"ZZZ__FnCalls!F94","v":"Apr 2017"},{"$f":"ZZZ__FnCalls!F95","v":"May 2017"},{"$f":"ZZZ__FnCalls!F96","v":"Jun 2017"},{"$f":"ZZZ__FnCalls!F97","v":"Jul 2017"},{"$f":"ZZZ__FnCalls!F98","v":"Aug 2017"},{"$f":"ZZZ__FnCalls!F99","v":"Sep 2017"},{"$f":"ZZZ__FnCalls!F100","v":"Oct 2017"},{"$f":"ZZZ__FnCalls!F101","v":"Nov 2017"},{"$f":"ZZZ__FnCalls!F102","v":"Dec 2017"},{"$f":"ZZZ__FnCalls!H91","v":"2017"},{"$f":"ZZZ__FnCalls!F103","v":"Jan 2018"},{"$f":"ZZZ__FnCalls!F104","v":"Feb 2018"},{"$f":"ZZZ__FnCalls!F105","v":"Mar 2018"},{"$f":"ZZZ__FnCalls!F106","v":"Apr 2018"},{"$f":"ZZZ__FnCalls!F107","v":"May 2018"},{"$f":"ZZZ__FnCalls!F108","v":"Jun 2018"},{"$f":"ZZZ__FnCalls!F109","v":"Jul 2018"},{"$f":"ZZZ__FnCalls!F110","v":"Aug 2018"},{"$f":"ZZZ__FnCalls!F111","v":"Sep 2018"},{"$f":"ZZZ__FnCalls!F112","v":"Oct 2018"},{"$f":"ZZZ__FnCalls!F113","v":"Nov 2018"},{"$f":"ZZZ__FnCalls!F114","v":"Dec 2018"},{"$f":"ZZZ__FnCalls!H103","v":"2018"},{"$f":"ZZZ__FnCalls!F115","v":"Jan 2019"},{"$f":"ZZZ__FnCalls!F116","v":"Feb 2019"},{"$f":"ZZZ__FnCalls!F117","v":"Mar 2019"},{"$f":"ZZZ__FnCalls!F118","v":"Apr 2019"},{"$f":"ZZZ__FnCalls!F119","v":"May 2019"},{"$f":"ZZZ__FnCalls!F120","v":"Jun 2019"},{"$f":"ZZZ__FnCalls!F121","v":"Jul 2019"},{"$f":"ZZZ__FnCalls!F122","v":"Aug 2019"},{"$f":"ZZZ__FnCalls!F123","v":"Sep 2019"},{"$f":"ZZZ__FnCalls!F124","v":"Oct 2019"},{"$f":"ZZZ__FnCalls!F125","v":"Nov 2019"},{"$f":"ZZZ__FnCalls!F126","v":"Dec 2019"},{"$f":"ZZZ__FnCalls!H115","v":"2019"},{"$f":"ZZZ__FnCalls!F127","v":"Jan 2020"},{"$f":"ZZZ__FnCalls!F128","v":"Feb 2020"},{"$f":"ZZZ__FnCalls!F129","v":"Mar 2020"},{"$f":"ZZZ__FnCalls!F130","v":"Apr 2020"},{"$f":"ZZZ__FnCalls!F131","v":"May 2020"},{"$f":"ZZZ__FnCalls!F132","v":"Jun 2020"},{"$f":"ZZZ__FnCalls!F133","v":"Jul 2020"},{"$f":"ZZZ__FnCalls!F134","v":"Aug 2020"},{"$f":"ZZZ__FnCalls!F135","v":"Sep 2020"},{"$f":"ZZZ__FnCalls!F136","v":"Oct 2020"},{"$f":"ZZZ__FnCalls!F137","v":"Nov 2020"},{"$f":"ZZZ__FnCalls!F138","v":"Dec 2020"},{"$f":"ZZZ__FnCalls!H127","v":"2020"}]
[{"$f":"Labels!B51","v":"Gov Spending"},{"$f":"B37","v":{"v":29166.66666666667,"d":"$29,167"}},{"v":29166.66666666667,"d":"$29,167"},{"v":29166.66666666667,"d":"$29,167"},{"v":29166.66666666667,"d":"$29,167"},{"v":29166.66666666667,"d":"$29,167"},{"v":29166.66666666667,"d":"$29,167"},{"v":29166.66666666667,"d":"$29,167"},{"v":29166.66666666667,"d":"$29,167"},{"v":29166.66666666667,"d":"$29,167"},{"v":29166.66666666667,"d":"$29,167"},{"v":29166.66666666667,"d":"$29,167"},{"v":29166.66666666667,"d":"$29,167"},{"$f":"SUM(B37:M37)","v":{"v":350000.0000000002,"d":"$350,000"}},{"$f":"O37","v":{"v":29166.66666666667,"d":"$29,167"}},{"v":29166.66666666667,"d":"$29,167"},{"v":29166.66666666667,"d":"$29,167"},{"v":29166.66666666667,"d":"$29,167"},{"v":29166.66666666667,"d":"$29,167"},{"v":29166.66666666667,"d":"$29,167"},{"v":29166.66666666667,"d":"$29,167"},{"v":29166.66666666667,"d":"$29,167"},{"v":29166.66666666667,"d":"$29,167"},{"v":29166.66666666667,"d":"$29,167"},{"v":29166.66666666667,"d":"$29,167"},{"v":29166.66666666667,"d":"$29,167"},{"$f":"SUM(O37:Z37)","v":{"v":350000.0000000002,"d":"$350,000"}},{"$f":"AB37","v":{"v":29166.66666666667,"d":"$29,167"}},{"v":29166.66666666667,"d":"$29,167"},{"v":29166.66666666667,"d":"$29,167"},{"v":29166.66666666667,"d":"$29,167"},{"v":29166.66666666667,"d":"$29,167"},{"v":29166.66666666667,"d":"$29,167"},{"v":29166.66666666667,"d":"$29,167"},{"v":29166.66666666667,"d":"$29,167"},{"v":29166.66666666667,"d":"$29,167"},{"v":29166.66666666667,"d":"$29,167"},{"v":29166.66666666667,"d":"$29,167"},{"v":29166.66666666667,"d":"$29,167"},{"$f":"SUM(AB37:AM37)","v":{"v":350000.0000000002,"d":"$350,000"}},{"$f":"AO37","v":{"v":29166.66666666667,"d":"$29,167"}},{"v":29166.66666666667,"d":"$29,167"},{"v":29166.66666666667,"d":"$29,167"},{"v":29166.66666666667,"d":"$29,167"},{"v":29166.66666666667,"d":"$29,167"},{"v":29166.66666666667,"d":"$29,167"},{"v":29166.66666666667,"d":"$29,167"},{"v":29166.66666666667,"d":"$29,167"},{"v":29166.66666666667,"d":"$29,167"},{"v":29166.66666666667,"d":"$29,167"},{"v":29166.66666666667,"d":"$29,167"},{"v":29166.66666666667,"d":"$29,167"},{"$f":"SUM(AO37:AZ37)","v":{"v":350000.0000000002,"d":"$350,000"}},{"$f":"BB37","v":{"v":29166.66666666667,"d":"$29,167"}},{"v":29166.66666666667,"d":"$29,167"},{"v":29166.66666666667,"d":"$29,167"},{"v":29166.66666666667,"d":"$29,167"},{"v":29166.66666666667,"d":"$29,167"},{"v":29166.66666666667,"d":"$29,167"},{"v":29166.66666666667,"d":"$29,167"},{"v":29166.66666666667,"d":"$29,167"},{"v":29166.66666666667,"d":"$29,167"},{"v":29166.66666666667,"d":"$29,167"},{"v":29166.66666666667,"d":"$29,167"},{"v":29166.66666666667,"d":"$29,167"},{"$f":"SUM(BB37:BM37)","v":{"v":350000.0000000002,"d":"$350,000"}},{"$f":"BO37","v":{"v":29166.66666666667,"d":"$29,167"}},{"v":29166.66666666667,"d":"$29,167"},{"v":29166.66666666667,"d":"$29,167"},{"v":29166.66666666667,"d":"$29,167"},{"v":29166.66666666667,"d":"$29,167"},{"v":29166.66666666667,"d":"$29,167"},{"v":29166.66666666667,"d":"$29,167"},{"v":29166.66666666667,"d":"$29,167"},{"v":29166.66666666667,"d":"$29,167"},{"v":29166.66666666667,"d":"$29,167"},{"v":29166.66666666667,"d":"$29,167"},{"v":29166.66666666667,"d":"$29,167"},{"$f":"SUM(BO37:BZ37)","v":{"v":350000.0000000002,"d":"$350,000"}},{"$f":"CB37","v":{"v":29166.66666666667,"d":"$29,167"}},{"v":29166.66666666667,"d":"$29,167"},{"v":29166.66666666667,"d":"$29,167"},{"v":29166.66666666667,"d":"$29,167"},{"v":29166.66666666667,"d":"$29,167"},{"v":29166.66666666667,"d":"$29,167"},{"v":29166.66666666667,"d":"$29,167"},{"v":29166.66666666667,"d":"$29,167"},{"v":29166.66666666667,"d":"$29,167"},{"v":29166.66666666667,"d":"$29,167"},{"v":29166.66666666667,"d":"$29,167"},{"v":29166.66666666667,"d":"$29,167"},{"$f":"SUM(CB37:CM37)","v":{"v":350000.0000000002,"d":"$350,000"}},{"$f":"CO37","v":{"v":29166.66666666667,"d":"$29,167"}},{"v":29166.66666666667,"d":"$29,167"},{"v":29166.66666666667,"d":"$29,167"},{"v":29166.66666666667,"d":"$29,167"},{"v":29166.66666666667,"d":"$29,167"},{"v":29166.66666666667,"d":"$29,167"},{"v":29166.66666666667,"d":"$29,167"},{"v":29166.66666666667,"d":"$29,167"},{"v":29166.66666666667,"d":"$29,167"},{"v":29166.66666666667,"d":"$29,167"},{"v":29166.66666666667,"d":"$29,167"},{"v":29166.66666666667,"d":"$29,167"},{"$f":"SUM(CO37:CZ37)","v":{"v":350000.0000000002,"d":"$350,000"}},{"$f":"DB37","v":{"v":29166.66666666667,"d":"$29,167"}},{"v":29166.66666666667,"d":"$29,167"},{"v":29166.66666666667,"d":"$29,167"},{"v":29166.66666666667,"d":"$29,167"},{"v":29166.66666666667,"d":"$29,167"},{"v":29166.66666666667,"d":"$29,167"},{"v":29166.66666666667,"d":"$29,167"},{"v":29166.66666666667,"d":"$29,167"},{"v":29166.66666666667,"d":"$29,167"},{"v":29166.66666666667,"d":"$29,167"},{"v":29166.66666666667,"d":"$29,167"},{"v":29166.66666666667,"d":"$29,167"},{"$f":"SUM(DB37:DM37)","v":{"v":350000.0000000002,"d":"$350,000"}},{"$f":"DO37","v":{"v":29166.66666666667,"d":"$29,167"}},{"v":29166.66666666667,"d":"$29,167"},{"v":29166.66666666667,"d":"$29,167"},{"v":29166.66666666667,"d":"$29,167"},{"v":29166.66666666667,"d":"$29,167"},{"v":29166.66666666667,"d":"$29,167"},{"v":29166.66666666667,"d":"$29,167"},{"v":29166.66666666667,"d":"$29,167"},{"v":29166.66666666667,"d":"$29,167"},{"v":29166.66666666667,"d":"$29,167"},{"v":29166.66666666667,"d":"$29,167"},{"v":29166.66666666667,"d":"$29,167"},{"$f":"SUM(DO37:DZ37)","v":{"v":350000.0000000002,"d":"$350,000"}},{"$f":"EB37","v":{"v":29166.66666666667,"d":"$29,167"}},{"v":29166.66666666667,"d":"$29,167"},{"v":29166.66666666667,"d":"$29,167"},{"v":29166.66666666667,"d":"$29,167"},{"v":29166.66666666667,"d":"$29,167"},{"v":29166.66666666667,"d":"$29,167"},{"v":29166.66666666667,"d":"$29,167"},{"v":29166.66666666667,"d":"$29,167"},{"v":29166.66666666667,"d":"$29,167"},{"v":29166.66666666667,"d":"$29,167"},{"v":29166.66666666667,"d":"$29,167"},{"v":29166.66666666667,"d":"$29,167"},{"$f":"SUM(EB37:EM37)","v":{"v":350000.0000000002,"d":"$350,000"}}]
[{"$f":"Labels!B52","v":"Gov Transfers"},{"$f":"B38","v":{"v":14583.333333333336,"d":"$14,583"}},{"v":14583.333333333336,"d":"$14,583"},{"v":14583.333333333336,"d":"$14,583"},{"v":14583.333333333336,"d":"$14,583"},{"v":14583.333333333336,"d":"$14,583"},{"v":14583.333333333336,"d":"$14,583"},{"v":14583.333333333336,"d":"$14,583"},{"v":14583.333333333336,"d":"$14,583"},{"v":14583.333333333336,"d":"$14,583"},{"v":14583.333333333336,"d":"$14,583"},{"v":14583.333333333336,"d":"$14,583"},{"v":14583.333333333336,"d":"$14,583"},{"$f":"SUM(B38:M38)","v":{"v":175000.0000000001,"d":"$175,000"}},{"$f":"O38","v":{"v":14583.333333333336,"d":"$14,583"}},{"v":14583.333333333336,"d":"$14,583"},{"v":14583.333333333336,"d":"$14,583"},{"v":14583.333333333336,"d":"$14,583"},{"v":14583.333333333336,"d":"$14,583"},{"v":14583.333333333336,"d":"$14,583"},{"v":14583.333333333336,"d":"$14,583"},{"v":14583.333333333336,"d":"$14,583"},{"v":14583.333333333336,"d":"$14,583"},{"v":14583.333333333336,"d":"$14,583"},{"v":14583.333333333336,"d":"$14,583"},{"v":14583.333333333336,"d":"$14,583"},{"$f":"SUM(O38:Z38)","v":{"v":175000.0000000001,"d":"$175,000"}},{"$f":"AB38","v":{"v":14583.333333333336,"d":"$14,583"}},{"v":14583.333333333336,"d":"$14,583"},{"v":14583.333333333336,"d":"$14,583"},{"v":14583.333333333336,"d":"$14,583"},{"v":14583.333333333336,"d":"$14,583"},{"v":14583.333333333336,"d":"$14,583"},{"v":14583.333333333336,"d":"$14,583"},{"v":14583.333333333336,"d":"$14,583"},{"v":14583.333333333336,"d":"$14,583"},{"v":14583.333333333336,"d":"$14,583"},{"v":14583.333333333336,"d":"$14,583"},{"v":14583.333333333336,"d":"$14,583"},{"$f":"SUM(AB38:AM38)","v":{"v":175000.0000000001,"d":"$175,000"}},{"$f":"AO38","v":{"v":14583.333333333336,"d":"$14,583"}},{"v":14583.333333333336,"d":"$14,583"},{"v":14583.333333333336,"d":"$14,583"},{"v":14583.333333333336,"d":"$14,583"},{"v":14583.333333333336,"d":"$14,583"},{"v":14583.333333333336,"d":"$14,583"},{"v":14583.333333333336,"d":"$14,583"},{"v":14583.333333333336,"d":"$14,583"},{"v":14583.333333333336,"d":"$14,583"},{"v":14583.333333333336,"d":"$14,583"},{"v":14583.333333333336,"d":"$14,583"},{"v":14583.333333333336,"d":"$14,583"},{"$f":"SUM(AO38:AZ38)","v":{"v":175000.0000000001,"d":"$175,000"}},{"$f":"BB38","v":{"v":14583.333333333336,"d":"$14,583"}},{"v":14583.333333333336,"d":"$14,583"},{"v":14583.333333333336,"d":"$14,583"},{"v":14583.333333333336,"d":"$14,583"},{"v":14583.333333333336,"d":"$14,583"},{"v":14583.333333333336,"d":"$14,583"},{"v":14583.333333333336,"d":"$14,583"},{"v":14583.333333333336,"d":"$14,583"},{"v":14583.333333333336,"d":"$14,583"},{"v":14583.333333333336,"d":"$14,583"},{"v":14583.333333333336,"d":"$14,583"},{"v":14583.333333333336,"d":"$14,583"},{"$f":"SUM(BB38:BM38)","v":{"v":175000.0000000001,"d":"$175,000"}},{"$f":"BO38","v":{"v":14583.333333333336,"d":"$14,583"}},{"v":14583.333333333336,"d":"$14,583"},{"v":14583.333333333336,"d":"$14,583"},{"v":14583.333333333336,"d":"$14,583"},{"v":14583.333333333336,"d":"$14,583"},{"v":14583.333333333336,"d":"$14,583"},{"v":14583.333333333336,"d":"$14,583"},{"v":14583.333333333336,"d":"$14,583"},{"v":14583.333333333336,"d":"$14,583"},{"v":14583.333333333336,"d":"$14,583"},{"v":14583.333333333336,"d":"$14,583"},{"v":14583.333333333336,"d":"$14,583"},{"$f":"SUM(BO38:BZ38)","v":{"v":175000.0000000001,"d":"$175,000"}},{"$f":"CB38","v":{"v":14583.333333333336,"d":"$14,583"}},{"v":14583.333333333336,"d":"$14,583"},{"v":14583.333333333336,"d":"$14,583"},{"v":14583.333333333336,"d":"$14,583"},{"v":14583.333333333336,"d":"$14,583"},{"v":14583.333333333336,"d":"$14,583"},{"v":14583.333333333336,"d":"$14,583"},{"v":14583.333333333336,"d":"$14,583"},{"v":14583.333333333336,"d":"$14,583"},{"v":14583.333333333336,"d":"$14,583"},{"v":14583.333333333336,"d":"$14,583"},{"v":14583.333333333336,"d":"$14,583"},{"$f":"SUM(CB38:CM38)","v":{"v":175000.0000000001,"d":"$175,000"}},{"$f":"CO38","v":{"v":14583.333333333336,"d":"$14,583"}},{"v":14583.333333333336,"d":"$14,583"},{"v":14583.333333333336,"d":"$14,583"},{"v":14583.333333333336,"d":"$14,583"},{"v":14583.333333333336,"d":"$14,583"},{"v":14583.333333333336,"d":"$14,583"},{"v":14583.333333333336,"d":"$14,583"},{"v":14583.333333333336,"d":"$14,583"},{"v":14583.333333333336,"d":"$14,583"},{"v":14583.333333333336,"d":"$14,583"},{"v":14583.333333333336,"d":"$14,583"},{"v":14583.333333333336,"d":"$14,583"},{"$f":"SUM(CO38:CZ38)","v":{"v":175000.0000000001,"d":"$175,000"}},{"$f":"DB38","v":{"v":14583.333333333336,"d":"$14,583"}},{"v":14583.333333333336,"d":"$14,583"},{"v":14583.333333333336,"d":"$14,583"},{"v":14583.333333333336,"d":"$14,583"},{"v":14583.333333333336,"d":"$14,583"},{"v":14583.333333333336,"d":"$14,583"},{"v":14583.333333333336,"d":"$14,583"},{"v":14583.333333333336,"d":"$14,583"},{"v":14583.333333333336,"d":"$14,583"},{"v":14583.333333333336,"d":"$14,583"},{"v":14583.333333333336,"d":"$14,583"},{"v":14583.333333333336,"d":"$14,583"},{"$f":"SUM(DB38:DM38)","v":{"v":175000.0000000001,"d":"$175,000"}},{"$f":"DO38","v":{"v":14583.333333333336,"d":"$14,583"}},{"v":14583.333333333336,"d":"$14,583"},{"v":14583.333333333336,"d":"$14,583"},{"v":14583.333333333336,"d":"$14,583"},{"v":14583.333333333336,"d":"$14,583"},{"v":14583.333333333336,"d":"$14,583"},{"v":14583.333333333336,"d":"$14,583"},{"v":14583.333333333336,"d":"$14,583"},{"v":14583.333333333336,"d":"$14,583"},{"v":14583.333333333336,"d":"$14,583"},{"v":14583.333333333336,"d":"$14,583"},{"v":14583.333333333336,"d":"$14,583"},{"$f":"SUM(DO38:DZ38)","v":{"v":175000.0000000001,"d":"$175,000"}},{"$f":"EB38","v":{"v":14583.333333333336,"d":"$14,583"}},{"v":14583.333333333336,"d":"$14,583"},{"v":14583.333333333336,"d":"$14,583"},{"v":14583.333333333336,"d":"$14,583"},{"v":14583.333333333336,"d":"$14,583"},{"v":14583.333333333336,"d":"$14,583"},{"v":14583.333333333336,"d":"$14,583"},{"v":14583.333333333336,"d":"$14,583"},{"v":14583.333333333336,"d":"$14,583"},{"v":14583.333333333336,"d":"$14,583"},{"v":14583.333333333336,"d":"$14,583"},{"v":14583.333333333336,"d":"$14,583"},{"$f":"SUM(EB38:EM38)","v":{"v":175000.0000000001,"d":"$175,000"}}]
[{"$f":"Labels!B83","v":"Tax"},{"$f":"Inputs!B52*B44","v":{"v":349804.56621585693,"d":"$349,805"}},{"$f":"Inputs!B52*C44","v":{"v":335998.55662838934,"d":"$335,999"}},{"$f":"Inputs!B52*D44","v":{"v":355671.937149518,"d":"$355,672"}},{"$f":"Inputs!B52*E44","v":{"v":349351.8071299214,"d":"$349,352"}},{"$f":"Inputs!B52*F44","v":{"v":332222.36812551256,"d":"$332,222"}},{"$f":"Inputs!B52*G44","v":{"v":352901.46536862396,"d":"$352,901"}},{"$f":"Inputs!B52*H44","v":{"v":339656.87728946324,"d":"$339,657"}},{"$f":"Inputs!B52*I44","v":{"v":354712.00120215985,"d":"$354,712"}},{"$f":"Inputs!B52*J44","v":{"v":360121.53673664964,"d":"$360,122"}},{"$f":"Inputs!B52*K44","v":{"v":342278.39349322516,"d":"$342,278"}},{"$f":"Inputs!B52*L44","v":{"v":349695.25377322966,"d":"$349,695"}},{"$f":"Inputs!B52*M44","v":{"v":328870.39491436083,"d":"$328,870"}},{"$f":"SUM(B54:M54)","v":{"v":4151285.1580269104,"d":"$4,151,285"}},{"$f":"Inputs!B52*O44","v":{"v":332522.1776899273,"d":"$332,522"}},{"$f":"Inputs!B52*P44","v":{"v":348502.1002098856,"d":"$348,502"}},{"$f":"Inputs!B52*Q44","v":{"v":361973.12636124296,"d":"$361,973"}},{"$f":"Inputs!B52*R44","v":{"v":331450.0213672229,"d":"$331,450"}},{"$f":"Inputs!B52*S44","v":{"v":345542.13495163206,"d":"$345,542"}},{"$f":"Inputs!B52*T44","v":{"v":357853.98141709756,"d":"$357,854"}},{"$f":"Inputs!B52*U44","v":{"v":335843.21264078806,"d":"$335,843"}},{"$f":"Inputs!B52*V44","v":{"v":348773.8325213962,"d":"$348,774"}},{"$f":"Inputs!B52*W44","v":{"v":350371.6540998953,"d":"$350,372"}},{"$f":"Inputs!B52*X44","v":{"v":340469.2921924413,"d":"$340,469"}},{"$f":"Inputs!B52*Y44","v":{"v":333405.6617164772,"d":"$333,406"}},{"$f":"Inputs!B52*Z44","v":{"v":350110.8143735559,"d":"$350,111"}},{"$f":"SUM(O54:Z54)","v":{"v":4136818.0095415623,"d":"$4,136,818"}},{"$f":"Inputs!B52*AB44","v":{"v":326683.22164916666,"d":"$326,683"}},{"$f":"Inputs!B52*AC44","v":{"v":332455.688444004,"d":"$332,456"}},{"$f":"Inputs!B52*AD44","v":{"v":354443.7282080192,"d":"$354,444"}},{"$f":"Inputs!B52*AE44","v":{"v":335835.8045573728,"d":"$335,836"}},{"$f":"Inputs!B52*AF44","v":{"v":354132.7319895388,"d":"$354,133"}},{"$f":"Inputs!B52*AG44","v":{"v":348520.8166924725,"d":"$348,521"}},{"$f":"Inputs!B52*AH44","v":{"v":340773.7802404744,"d":"$340,774"}},{"$f":"Inputs!B52*AI44","v":{"v":325711.2878641882,"d":"$325,711"}},{"$f":"Inputs!B52*AJ44","v":{"v":354124.5656841172,"d":"$354,125"}},{"$f":"Inputs!B52*AK44","v":{"v":327509.2275405174,"d":"$327,509"}},{"$f":"Inputs!B52*AL44","v":{"v":318506.2279294169,"d":"$318,506"}},{"$f":"Inputs!B52*AM44","v":{"v":330978.5439857406,"d":"$330,979"}},{"$f":"SUM(AB54:AM54)","v":{"v":4049675.624785029,"d":"$4,049,676"}},{"$f":"Inputs!B52*AO44","v":{"v":345646.35710570344,"d":"$345,646"}},{"$f":"Inputs!B52*AP44","v":{"v":332241.55179755966,"d":"$332,242"}},{"$f":"Inputs!B52*AQ44","v":{"v":338032.9590788537,"d":"$338,033"}},{"$f":"Inputs!B52*AR44","v":{"v":347736.00655562285,"d":"$347,736"}},{"$f":"Inputs!B52*AS44","v":{"v":325848.882420281,"d":"$325,849"}},{"$f":"Inputs!B52*AT44","v":{"v":318051.70380885445,"d":"$318,052"}},{"$f":"Inputs!B52*AU44","v":{"v":340111.81192762125,"d":"$340,112"}},{"$f":"Inputs!B52*AV44","v":{"v":330919.0011510132,"d":"$330,919"}},{"$f":"Inputs!B52*AW44","v":{"v":324202.9616214849,"d":"$324,203"}},{"$f":"Inputs!B52*AX44","v":{"v":329668.7666166566,"d":"$329,669"}},{"$f":"Inputs!B52*AY44","v":{"v":328510.5796772733,"d":"$328,511"}},{"$f":"Inputs!B52*AZ44","v":{"v":348626.532122256,"d":"$348,627"}},{"$f":"SUM(AO54:AZ54)","v":{"v":4009597.1138831805,"d":"$4,009,597"}},{"$f":"Inputs!B52*BB44","v":{"v":341308.5284778066,"d":"$341,309"}},{"$f":"Inputs!B52*BC44","v":{"v":330569.5731707649,"d":"$330,570"}},{"$f":"Inputs!B52*BD44","v":{"v":341943.85895082855,"d":"$341,944"}},{"$f":"Inputs!B52*BE44","v":{"v":328892.6996070335,"d":"$328,893"}},{"$f":"Inputs!B52*BF44","v":{"v":318316.71048149496,"d":"$318,317"}},{"$f":"Inputs!B52*BG44","v":{"v":319514.3754286268,"d":"$319,514"}},{"$f":"Inputs!B52*BH44","v":{"v":330995.45250832627,"d":"$330,995"}},{"$f":"Inputs!B52*BI44","v":{"v":325159.45027292654,"d":"$325,159"}},{"$f":"Inputs!B52*BJ44","v":{"v":333030.02459583577,"d":"$333,030"}},{"$f":"Inputs!B52*BK44","v":{"v":333898.8566890952,"d":"$333,899"}},{"$f":"Inputs!B52*BL44","v":{"v":335282.6080346118,"d":"$335,283"}},{"$f":"Inputs!B52*BM44","v":{"v":319635.06601510354,"d":"$319,635"}},{"$f":"SUM(BB54:BM54)","v":{"v":3958547.204232454,"d":"$3,958,547"}},{"$f":"Inputs!B52*BO44","v":{"v":325063.73158719053,"d":"$325,064"}},{"$f":"Inputs!B52*BP44","v":{"v":334468.32324411615,"d":"$334,468"}},{"$f":"Inputs!B52*BQ44","v":{"v":322687.8558493907,"d":"$322,688"}},{"$f":"Inputs!B52*BR44","v":{"v":322493.72510665434,"d":"$322,494"}},{"$f":"Inputs!B52*BS44","v":{"v":333452.01771504484,"d":"$333,452"}},{"$f":"Inputs!B52*BT44","v":{"v":333375.76520879613,"d":"$333,376"}},{"$f":"Inputs!B52*BU44","v":{"v":318960.15583863604,"d":"$318,960"}},{"$f":"Inputs!B52*BV44","v":{"v":328899.69489960244,"d":"$328,900"}},{"$f":"Inputs!B52*BW44","v":{"v":332928.29172342946,"d":"$332,928"}},{"$f":"Inputs!B52*BX44","v":{"v":317034.7657195387,"d":"$317,035"}},{"$f":"Inputs!B52*BY44","v":{"v":328553.0579090781,"d":"$328,553"}},{"$f":"Inputs!B52*BZ44","v":{"v":320398.8928541708,"d":"$320,399"}},{"$f":"SUM(BO54:BZ54)","v":{"v":3918316.277655648,"d":"$3,918,316"}},{"$f":"Inputs!B52*CB44","v":{"v":313549.67266397516,"d":"$313,550"}},{"$f":"Inputs!B52*CC44","v":{"v":318031.7178391877,"d":"$318,032"}},{"$f":"Inputs!B52*CD44","v":{"v":322759.03909950424,"d":"$322,759"}},{"$f":"Inputs!B52*CE44","v":{"v":319216.58809105045,"d":"$319,217"}},{"$f":"Inputs!B52*CF44","v":{"v":311395.4475511224,"d":"$311,395"}},{"$f":"Inputs!B52*CG44","v":{"v":325353.57991985325,"d":"$325,354"}},{"$f":"Inputs!B52*CH44","v":{"v":301528.40817478515,"d":"$301,528"}},{"$f":"Inputs!B52*CI44","v":{"v":326037.84348531393,"d":"$326,038"}},{"$f":"Inputs!B52*CJ44","v":{"v":310657.1053838792,"d":"$310,657"}},{"$f":"Inputs!B52*CK44","v":{"v":327953.4000024645,"d":"$327,953"}},{"$f":"Inputs!B52*CL44","v":{"v":303739.079198143,"d":"$303,739"}},{"$f":"Inputs!B52*CM44","v":{"v":306931.09071022226,"d":"$306,931"}},{"$f":"SUM(CB54:CM54)","v":{"v":3787152.9721195013,"d":"$3,787,153"}},{"$f":"Inputs!B52*CO44","v":{"v":319442.8527673991,"d":"$319,443"}},{"$f":"Inputs!B52*CP44","v":{"v":298953.7300320884,"d":"$298,954"}},{"$f":"Inputs!B52*CQ44","v":{"v":298464.1740474342,"d":"$298,464"}},{"$f":"Inputs!B52*CR44","v":{"v":323967.3678308725,"d":"$323,967"}},{"$f":"Inputs!B52*CS44","v":{"v":320490.03947457444,"d":"$320,490"}},{"$f":"Inputs!B52*CT44","v":{"v":312124.6780233687,"d":"$312,125"}},{"$f":"Inputs!B52*CU44","v":{"v":323267.2103504487,"d":"$323,267"}},{"$f":"Inputs!B52*CV44","v":{"v":320309.24546389177,"d":"$320,309"}},{"$f":"Inputs!B52*CW44","v":{"v":309280.99375098036,"d":"$309,281"}},{"$f":"Inputs!B52*CX44","v":{"v":308597.3560300085,"d":"$308,597"}},{"$f":"Inputs!B52*CY44","v":{"v":320957.30636069085,"d":"$320,957"}},{"$f":"Inputs!B52*CZ44","v":{"v":320321.2804217028,"d":"$320,321"}},{"$f":"SUM(CO54:CZ54)","v":{"v":3776176.2345534605,"d":"$3,776,176"}},{"$f":"Inputs!B52*DB44","v":{"v":314714.6504268824,"d":"$314,715"}},{"$f":"Inputs!B52*DC44","v":{"v":311389.67304253654,"d":"$311,390"}},{"$f":"Inputs!B52*DD44","v":{"v":311187.38261111145,"d":"$311,187"}},{"$f":"Inputs!B52*DE44","v":{"v":314000.2968780138,"d":"$314,000"}},{"$f":"Inputs!B52*DF44","v":{"v":305401.686478135,"d":"$305,402"}},{"$f":"Inputs!B52*DG44","v":{"v":307886.8050114647,"d":"$307,887"}},{"$f":"Inputs!B52*DH44","v":{"v":309765.6553376513,"d":"$309,766"}},{"$f":"Inputs!B52*DI44","v":{"v":310374.7647191691,"d":"$310,375"}},{"$f":"Inputs!B52*DJ44","v":{"v":307247.04774629395,"d":"$307,247"}},{"$f":"Inputs!B52*DK44","v":{"v":319901.5464402507,"d":"$319,902"}},{"$f":"Inputs!B52*DL44","v":{"v":300506.7143779499,"d":"$300,507"}},{"$f":"Inputs!B52*DM44","v":{"v":308499.53599005163,"d":"$308,500"}},{"$f":"SUM(DB54:DM54)","v":{"v":3720875.75905951,"d":"$3,720,876"}},{"$f":"Inputs!B52*DO44","v":{"v":315455.17862541374,"d":"$315,455"}},{"$f":"Inputs!B52*DP44","v":{"v":302053.4056668212,"d":"$302,053"}},{"$f":"Inputs!B52*DQ44","v":{"v":312904.3809337326,"d":"$312,904"}},{"$f":"Inputs!B52*DR44","v":{"v":313111.7422305922,"d":"$313,112"}},{"$f":"Inputs!B52*DS44","v":{"v":312024.18741960323,"d":"$312,024"}},{"$f":"Inputs!B52*DT44","v":{"v":306184.0749993001,"d":"$306,184"}},{"$f":"Inputs!B52*DU44","v":{"v":318711.65310759103,"d":"$318,712"}},{"$f":"Inputs!B52*DV44","v":{"v":299789.040205204,"d":"$299,789"}},{"$f":"Inputs!B52*DW44","v":{"v":303739.3083061992,"d":"$303,739"}},{"$f":"Inputs!B52*DX44","v":{"v":305603.81787096034,"d":"$305,604"}},{"$f":"Inputs!B52*DY44","v":{"v":315362.50449121004,"d":"$315,363"}},{"$f":"Inputs!B52*DZ44","v":{"v":298409.7556461245,"d":"$298,410"}},{"$f":"SUM(DO54:DZ54)","v":{"v":3703349.049502752,"d":"$3,703,349"}},{"$f":"Inputs!B52*EB44","v":{"v":294453.855866011,"d":"$294,454"}},{"$f":"Inputs!B52*EC44","v":{"v":313032.0198454579,"d":"$313,032"}},{"$f":"Inputs!B52*ED44","v":{"v":298949.39939238015,"d":"$298,949"}},{"$f":"Inputs!B52*EE44","v":{"v":304832.2002329638,"d":"$304,832"}},{"$f":"Inputs!B52*EF44","v":{"v":295034.0605885721,"d":"$295,034"}},{"$f":"Inputs!B52*EG44","v":{"v":318881.5586286704,"d":"$318,882"}},{"$f":"Inputs!B52*EH44","v":{"v":295597.0679928771,"d":"$295,597"}},{"$f":"Inputs!B52*EI44","v":{"v":310211.9486815171,"d":"$310,212"}},{"$f":"Inputs!B52*EJ44","v":{"v":316298.1026309747,"d":"$316,298"}},{"$f":"Inputs!B52*EK44","v":{"v":307344.9549789257,"d":"$307,345"}},{"$f":"Inputs!B52*EL44","v":{"v":304560.30998975324,"d":"$304,560"}},{"$f":"Inputs!B52*EM44","v":{"v":304926.6011733774,"d":"$304,927"}},{"$f":"SUM(EB54:EM54)","v":{"v":3664122.080001481,"d":"$3,664,122"}}]
[]
[]
[{"$f":"\"Stochastic Shocks\"","v":"Stochastic Shocks"}]
[{"$f":"\" \"","v":" "}]
[null,{"$f":"ZZZ__FnCalls!F7","v":"Jan 2010"},{"$f":"ZZZ__FnCalls!F8","v":"Feb 2010"},{"$f":"ZZZ__FnCalls!F9","v":"Mar 2010"},{"$f":"ZZZ__FnCalls!F10","v":"Apr 2010"},{"$f":"ZZZ__FnCalls!F11","v":"May 2010"},{"$f":"ZZZ__FnCalls!F12","v":"Jun 2010"},{"$f":"ZZZ__FnCalls!F13","v":"Jul 2010"},{"$f":"ZZZ__FnCalls!F14","v":"Aug 2010"},{"$f":"ZZZ__FnCalls!F15","v":"Sep 2010"},{"$f":"ZZZ__FnCalls!F16","v":"Oct 2010"},{"$f":"ZZZ__FnCalls!F17","v":"Nov 2010"},{"$f":"ZZZ__FnCalls!F18","v":"Dec 2010"},{"$f":"ZZZ__FnCalls!H7","v":"2010"},{"$f":"ZZZ__FnCalls!F19","v":"Jan 2011"},{"$f":"ZZZ__FnCalls!F20","v":"Feb 2011"},{"$f":"ZZZ__FnCalls!F21","v":"Mar 2011"},{"$f":"ZZZ__FnCalls!F22","v":"Apr 2011"},{"$f":"ZZZ__FnCalls!F23","v":"May 2011"},{"$f":"ZZZ__FnCalls!F24","v":"Jun 2011"},{"$f":"ZZZ__FnCalls!F25","v":"Jul 2011"},{"$f":"ZZZ__FnCalls!F26","v":"Aug 2011"},{"$f":"ZZZ__FnCalls!F27","v":"Sep 2011"},{"$f":"ZZZ__FnCalls!F28","v":"Oct 2011"},{"$f":"ZZZ__FnCalls!F29","v":"Nov 2011"},{"$f":"ZZZ__FnCalls!F30","v":"Dec 2011"},{"$f":"ZZZ__FnCalls!H19","v":"2011"},{"$f":"ZZZ__FnCalls!F31","v":"Jan 2012"},{"$f":"ZZZ__FnCalls!F32","v":"Feb 2012"},{"$f":"ZZZ__FnCalls!F33","v":"Mar 2012"},{"$f":"ZZZ__FnCalls!F34","v":"Apr 2012"},{"$f":"ZZZ__FnCalls!F35","v":"May 2012"},{"$f":"ZZZ__FnCalls!F36","v":"Jun 2012"},{"$f":"ZZZ__FnCalls!F37","v":"Jul 2012"},{"$f":"ZZZ__FnCalls!F38","v":"Aug 2012"},{"$f":"ZZZ__FnCalls!F39","v":"Sep 2012"},{"$f":"ZZZ__FnCalls!F40","v":"Oct 2012"},{"$f":"ZZZ__FnCalls!F41","v":"Nov 2012"},{"$f":"ZZZ__FnCalls!F42","v":"Dec 2012"},{"$f":"ZZZ__FnCalls!H31","v":"2012"},{"$f":"ZZZ__FnCalls!F43","v":"Jan 2013"},{"$f":"ZZZ__FnCalls!F44","v":"Feb 2013"},{"$f":"ZZZ__FnCalls!F45","v":"Mar 2013"},{"$f":"ZZZ__FnCalls!F46","v":"Apr 2013"},{"$f":"ZZZ__FnCalls!F47","v":"May 2013"},{"$f":"ZZZ__FnCalls!F48","v":"Jun 2013"},{"$f":"ZZZ__FnCalls!F49","v":"Jul 2013"},{"$f":"ZZZ__FnCalls!F50","v":"Aug 2013"},{"$f":"ZZZ__FnCalls!F51","v":"Sep 2013"},{"$f":"ZZZ__FnCalls!F52","v":"Oct 2013"},{"$f":"ZZZ__FnCalls!F53","v":"Nov 2013"},{"$f":"ZZZ__FnCalls!F54","v":"Dec 2013"},{"$f":"ZZZ__FnCalls!H43","v":"2013"},{"$f":"ZZZ__FnCalls!F55","v":"Jan 2014"},{"$f":"ZZZ__FnCalls!F56","v":"Feb 2014"},{"$f":"ZZZ__FnCalls!F57","v":"Mar 2014"},{"$f":"ZZZ__FnCalls!F58","v":"Apr 2014"},{"$f":"ZZZ__FnCalls!F59","v":"May 2014"},{"$f":"ZZZ__FnCalls!F60","v":"Jun 2014"},{"$f":"ZZZ__FnCalls!F61","v":"Jul 2014"},{"$f":"ZZZ__FnCalls!F62","v":"Aug 2014"},{"$f":"ZZZ__FnCalls!F63","v":"Sep 2014"},{"$f":"ZZZ__FnCalls!F64","v":"Oct 2014"},{"$f":"ZZZ__FnCalls!F65","v":"Nov 2014"},{"$f":"ZZZ__FnCalls!F66","v":"Dec 2014"},{"$f":"ZZZ__FnCalls!H55","v":"2014"},{"$f":"ZZZ__FnCalls!F67","v":"Jan 2015"},{"$f":"ZZZ__FnCalls!F68","v":"Feb 2015"},{"$f":"ZZZ__FnCalls!F69","v":"Mar 2015"},{"$f":"ZZZ__FnCalls!F70","v":"Apr 2015"},{"$f":"ZZZ__FnCalls!F71","v":"May 2015"},{"$f":"ZZZ__FnCalls!F72","v":"Jun 2015"},{"$f":"ZZZ__FnCalls!F73","v":"Jul 2015"},{"$f":"ZZZ__FnCalls!F74","v":"Aug 2015"},{"$f":"ZZZ__FnCalls!F75","v":"Sep 2015"},{"$f":"ZZZ__FnCalls!F76","v":"Oct 2015"},{"$f":"ZZZ__FnCalls!F77","v":"Nov 2015"},{"$f":"ZZZ__FnCalls!F78","v":"Dec 2015"},{"$f":"ZZZ__FnCalls!H67","v":"2015"},{"$f":"ZZZ__FnCalls!F79","v":"Jan 2016"},{"$f":"ZZZ__FnCalls!F80","v":"Feb 2016"},{"$f":"ZZZ__FnCalls!F81","v":"Mar 2016"},{"$f":"ZZZ__FnCalls!F82","v":"Apr 2016"},{"$f":"ZZZ__FnCalls!F83","v":"May 2016"},{"$f":"ZZZ__FnCalls!F84","v":"Jun 2016"},{"$f":"ZZZ__FnCalls!F85","v":"Jul 2016"},{"$f":"ZZZ__FnCalls!F86","v":"Aug 2016"},{"$f":"ZZZ__FnCalls!F87","v":"Sep 2016"},{"$f":"ZZZ__FnCalls!F88","v":"Oct 2016"},{"$f":"ZZZ__FnCalls!F89","v":"Nov 2016"},{"$f":"ZZZ__FnCalls!F90","v":"Dec 2016"},{"$f":"ZZZ__FnCalls!H79","v":"2016"},{"$f":"ZZZ__FnCalls!F91","v":"Jan 2017"},{"$f":"ZZZ__FnCalls!F92","v":"Feb 2017"},{"$f":"ZZZ__FnCalls!F93","v":"Mar 2017"},{"$f":"ZZZ__FnCalls!F94","v":"Apr 2017"},{"$f":"ZZZ__FnCalls!F95","v":"May 2017"},{"$f":"ZZZ__FnCalls!F96","v":"Jun 2017"},{"$f":"ZZZ__FnCalls!F97","v":"Jul 2017"},{"$f":"ZZZ__FnCalls!F98","v":"Aug 2017"},{"$f":"ZZZ__FnCalls!F99","v":"Sep 2017"},{"$f":"ZZZ__FnCalls!F100","v":"Oct 2017"},{"$f":"ZZZ__FnCalls!F101","v":"Nov 2017"},{"$f":"ZZZ__FnCalls!F102","v":"Dec 2017"},{"$f":"ZZZ__FnCalls!H91","v":"2017"},{"$f":"ZZZ__FnCalls!F103","v":"Jan 2018"},{"$f":"ZZZ__FnCalls!F104","v":"Feb 2018"},{"$f":"ZZZ__FnCalls!F105","v":"Mar 2018"},{"$f":"ZZZ__FnCalls!F106","v":"Apr 2018"},{"$f":"ZZZ__FnCalls!F107","v":"May 2018"},{"$f":"ZZZ__FnCalls!F108","v":"Jun 2018"},{"$f":"ZZZ__FnCalls!F109","v":"Jul 2018"},{"$f":"ZZZ__FnCalls!F110","v":"Aug 2018"},{"$f":"ZZZ__FnCalls!F111","v":"Sep 2018"},{"$f":"ZZZ__FnCalls!F112","v":"Oct 2018"},{"$f":"ZZZ__FnCalls!F113","v":"Nov 2018"},{"$f":"ZZZ__FnCalls!F114","v":"Dec 2018"},{"$f":"ZZZ__FnCalls!H103","v":"2018"},{"$f":"ZZZ__FnCalls!F115","v":"Jan 2019"},{"$f":"ZZZ__FnCalls!F116","v":"Feb 2019"},{"$f":"ZZZ__FnCalls!F117","v":"Mar 2019"},{"$f":"ZZZ__FnCalls!F118","v":"Apr 2019"},{"$f":"ZZZ__FnCalls!F119","v":"May 2019"},{"$f":"ZZZ__FnCalls!F120","v":"Jun 2019"},{"$f":"ZZZ__FnCalls!F121","v":"Jul 2019"},{"$f":"ZZZ__FnCalls!F122","v":"Aug 2019"},{"$f":"ZZZ__FnCalls!F123","v":"Sep 2019"},{"$f":"ZZZ__FnCalls!F124","v":"Oct 2019"},{"$f":"ZZZ__FnCalls!F125","v":"Nov 2019"},{"$f":"ZZZ__FnCalls!F126","v":"Dec 2019"},{"$f":"ZZZ__FnCalls!H115","v":"2019"},{"$f":"ZZZ__FnCalls!F127","v":"Jan 2020"},{"$f":"ZZZ__FnCalls!F128","v":"Feb 2020"},{"$f":"ZZZ__FnCalls!F129","v":"Mar 2020"},{"$f":"ZZZ__FnCalls!F130","v":"Apr 2020"},{"$f":"ZZZ__FnCalls!F131","v":"May 2020"},{"$f":"ZZZ__FnCalls!F132","v":"Jun 2020"},{"$f":"ZZZ__FnCalls!F133","v":"Jul 2020"},{"$f":"ZZZ__FnCalls!F134","v":"Aug 2020"},{"$f":"ZZZ__FnCalls!F135","v":"Sep 2020"},{"$f":"ZZZ__FnCalls!F136","v":"Oct 2020"},{"$f":"ZZZ__FnCalls!F137","v":"Nov 2020"},{"$f":"ZZZ__FnCalls!F138","v":"Dec 2020"},{"$f":"ZZZ__FnCalls!H127","v":"2020"}]
[{"$f":"Labels!B74","v":"Aggregate Demand Shock"},{"$f":"B13","v":{"v":7097.261459265176,"d":"$7,097"}},{"v":-60081.22409452439,"d":"($60,081)"},{"v":31745.86196676462,"d":"$31,746"},{"v":48657.95833155075,"d":"$48,658"},{"v":16772.726560014227,"d":"$16,773"},{"v":-24392.40192717151,"d":"($24,392)"},{"v":-5070.374808476647,"d":"($5,070)"},{"v":-6147.950254410328,"d":"($6,148)"},{"v":32882.2956413625,"d":"$32,882"},{"v":-1061.7166985126983,"d":"($1,062)"},{"v":51355.84242328839,"d":"$51,356"},{"v":-2155.966400215614,"d":"($2,156)"},{"$f":"SUM(B13:M13)","v":{"v":89602.31219893447,"d":"$89,602"}},{"$f":"O13","v":{"v":42240.23264091678,"d":"$42,240"}},{"v":-9537.362123535484,"d":"($9,537)"},{"v":42965.104149906394,"d":"$42,965"},{"v":28943.792288120934,"d":"$28,944"},{"v":-55353.35961994342,"d":"($55,353)"},{"v":-9613.858682942873,"d":"($9,614)"},{"v":20412.203353761488,"d":"$20,412"},{"v":-23558.278709325452,"d":"($23,558)"},{"v":-16181.746563460383,"d":"($16,182)"},{"v":11927.691953458616,"d":"$11,928"},{"v":30710.377039093742,"d":"$30,710"},{"v":-31957.699888224757,"d":"($31,958)"},{"$f":"SUM(O13:Z13)","v":{"v":30997.095837825596,"d":"$30,997"}},{"$f":"AB13","v":{"v":8190.425206156469,"d":"$8,190"}},{"v":19200.2259828406,"d":"$19,200"},{"v":37623.848025696054,"d":"$37,624"},{"v":12428.185304776274,"d":"$12,428"},{"v":37675.964367388515,"d":"$37,676"},{"v":10626.412872223002,"d":"$10,626"},{"v":28283.671022694038,"d":"$28,284"},{"v":-5252.330492476086,"d":"($5,252)"},{"v":-20836.570872420856,"d":"($20,837)"},{"v":5448.826468238082,"d":"$5,449"},{"v":32170.889353708793,"d":"$32,171"},{"v":50225.07367102981,"d":"$50,225"},{"$f":"SUM(AB13:AM13)","v":{"v":215784.6209098547,"d":"$215,785"}},{"$f":"AO13","v":{"v":12308.2934595026,"d":"$12,308"}},{"v":-6989.07072844021,"d":"($6,989)"},{"v":-17845.82975693075,"d":"($17,846)"},{"v":6889.564085899187,"d":"$6,890"},{"v":-8886.81036243041,"d":"($8,887)"},{"v":-21330.810124017196,"d":"($21,331)"},{"v":-54057.79700858819,"d":"($54,058)"},{"v":9719.172898720044,"d":"$9,719"},{"v":-16836.037029002553,"d":"($16,836)"},{"v":-40312.76743256026,"d":"($40,313)"},{"v":16020.381611093046,"d":"$16,020"},{"v":44541.7880164927,"d":"$44,542"},{"$f":"SUM(AO13:AZ13)","v":{"v":-76779.92237026198,"d":"($76,780)"}},{"$f":"BB13","v":{"v":-54345.37339104897,"d":"($54,345)"}},{"v":-30562.76295898453,"d":"($30,563)"},{"v":-19592.889635443837,"d":"($19,593)"},{"v":-26611.537368077257,"d":"($26,612)"},{"v":-2367.598272324198,"d":"($2,368)"},{"v":12317.428140192142,"d":"$12,317"},{"v":29318.38879853643,"d":"$29,318"},{"v":-21778.23090514218,"d":"($21,778)"},{"v":48726.3499497053,"d":"$48,726"},{"v":11570.60932584684,"d":"$11,571"},{"v":-48999.61345239799,"d":"($49,000)"},{"v":12090.722162415776,"d":"$12,091"},{"$f":"SUM(BB13:BM13)","v":{"v":-90234.50760672244,"d":"($90,235)"}},{"$f":"BO13","v":{"v":-56240.64712610301,"d":"($56,241)"}},{"v":-11918.223935382684,"d":"($11,918)"},{"v":-17665.873655235624,"d":"($17,666)"},{"v":-30075.79499979819,"d":"($30,076)"},{"v":-58066.000732462555,"d":"($58,066)"},{"v":32759.090035053607,"d":"$32,759"},{"v":1172.6082888424742,"d":"$1,173"},{"v":15639.87151646296,"d":"$15,640"},{"v":26087.04292114235,"d":"$26,087"},{"v":-28511.79581645341,"d":"($28,512)"},{"v":49327.04078108121,"d":"$49,327"},{"v":27926.32164996072,"d":"$27,926"},{"$f":"SUM(BO13:BZ13)","v":{"v":-49566.361072892134,"d":"($49,566)"}},{"$f":"CB13","v":{"v":2438.569267745031,"d":"$2,439"}},{"v":-5684.566402668566,"d":"($5,685)"},{"v":50210.18730374657,"d":"$50,210"},{"v":-10385.173398587069,"d":"($10,385)"},{"v":-14704.69344795329,"d":"($14,705)"},{"v":26642.032432639604,"d":"$26,642"},{"v":24853.42244997575,"d":"$24,853"},{"v":38566.349187494394,"d":"$38,566"},{"v":2575.8284740574136,"d":"$2,576"},{"v":15448.595687772904,"d":"$15,449"},{"v":37376.343436795665,"d":"$37,376"},{"v":28597.584056028125,"d":"$28,598"},{"$f":"SUM(CB13:CM13)","v":{"v":195934.47904704654,"d":"$195,934"}},{"$f":"CO13","v":{"v":8836.268564771854,"d":"$8,836"}},{"v":37329.600607423214,"d":"$37,330"},{"v":2654.704492591093,"d":"$2,655"},{"v":3700.679610744571,"d":"$3,701"},{"v":-25509.37639413494,"d":"($25,509)"},{"v":-21352.736505448316,"d":"($21,353)"},{"v":51945.80948682899,"d":"$51,946"},{"v":-32414.096578877325,"d":"($32,414)"},{"v":48872.10089119166,"d":"$48,872"},{"v":10841.289053415208,"d":"$10,841"},{"v":-25826.61790593002,"d":"($25,827)"},{"v":17443.08558626945,"d":"$17,443"},{"$f":"SUM(CO13:CZ13)","v":{"v":76520.71090884545,"d":"$76,521"}},{"$f":"DB13","v":{"v":21040.97589011136,"d":"$21,041"}},{"v":-49875.363793351156,"d":"($49,875)"},{"v":-17096.25595580262,"d":"($17,096)"},{"v":676.2316876325374,"d":"$676"},{"v":-43769.510488587344,"d":"($43,770)"},{"v":-7651.597471580891,"d":"($7,652)"},{"v":-37253.046192794776,"d":"($37,253)"},{"v":-39906.00847651646,"d":"($39,906)"},{"v":-50704.38690591303,"d":"($50,704)"},{"v":5742.7231149288355,"d":"$5,743"},{"v":-26420.978384357128,"d":"($26,421)"},{"v":-11202.424837875826,"d":"($11,202)"},{"$f":"SUM(DB13:DM13)","v":{"v":-256419.6418141065,"d":"($256,420)"}},{"$f":"DO13","v":{"v":35494.73462627661,"d":"$35,495"}},{"v":-22572.909633094783,"d":"($22,573)"},{"v":-19361.26796269074,"d":"($19,361)"},{"v":166.32412138013765,"d":"$166"},{"v":-5243.926350736339,"d":"($5,244)"},{"v":19790.650693293384,"d":"$19,791"},{"v":34206.14721473206,"d":"$34,206"},{"v":39774.68206610601,"d":"$39,775"},{"v":7088.237083882459,"d":"$7,088"},{"v":25718.725707004935,"d":"$25,719"},{"v":-6267.032067356863,"d":"($6,267)"},{"v":-2354.1277268188633,"d":"($2,354)"},{"$f":"SUM(DO13:DZ13)","v":{"v":106440.237771978,"d":"$106,440"}},{"$f":"EB13","v":{"v":34608.6645465008,"d":"$34,609"}},{"v":1899.1234412860235,"d":"$1,899"},{"v":15970.428893360007,"d":"$15,970"},{"v":25251.942823339745,"d":"$25,252"},{"v":-391.99306743090614,"d":"($392)"},{"v":13830.755280814972,"d":"$13,831"},{"v":-639.3775377046401,"d":"($639)"},{"v":13022.25524516249,"d":"$13,022"},{"v":40131.384618030774,"d":"$40,131"},{"v":53152.741833969296,"d":"$53,153"},{"v":-36255.1164735614,"d":"($36,255)"},{"v":-17805.785150516247,"d":"($17,806)"},{"$f":"SUM(EB13:EM13)","v":{"v":142775.02445325092,"d":"$142,775"}}]
[{"$f":"Labels!B78","v":"Output Shock"},{"$f":"B46","v":{"v":-651.4459471436966,"d":"($651)"}},{"v":-45309.11176561562,"d":"($45,309)"},{"v":22102.245182115897,"d":"$22,102"},{"v":2236.5157937435024,"d":"$2,237"},{"v":-53774.670747096956,"d":"($53,775)"},{"v":16466.6907206823,"d":"$16,467"},{"v":-26081.54857914822,"d":"($26,082)"},{"v":25571.45286550293,"d":"$25,571"},{"v":45082.78447347111,"d":"$45,083"},{"v":-13183.91455914935,"d":"($13,184)"},{"v":12985.928456097088,"d":"$12,986"},{"v":-55345.60484824524,"d":"($55,346)"},{"$f":"SUM(B46:M46)","v":{"v":-69900.67895478624,"d":"($69,901)"}},{"$f":"O46","v":{"v":-41716.40874222249,"d":"($41,716)"}},{"v":12699.943719669789,"d":"$12,700"},{"v":59113.42107175502,"d":"$59,113"},{"v":-41484.23189165599,"d":"($41,484)"},{"v":6731.868196801157,"d":"$6,732"},{"v":49599.22954958386,"d":"$49,599"},{"v":-22259.0899148496,"d":"($22,259)"},{"v":22144.528615716525,"d":"$22,145"},{"v":29076.70437414869,"d":"$29,077"},{"v":-2377.069317668579,"d":"($2,377)"},{"v":-24564.845316460054,"d":"($24,565)"},{"v":32344.639970317567,"d":"$32,345"},{"$f":"SUM(O46:Z46)","v":{"v":79308.69031513591,"d":"$79,309"}},{"$f":"AB46","v":{"v":-44088.31330412967,"d":"($44,088)"}},{"v":-23468.13019281685,"d":"($23,468)"},{"v":51125.843744825084,"d":"$51,126"},{"v":-9730.217394991032,"d":"($9,730)"},{"v":52601.43526281214,"d":"$52,601"},{"v":35059.11710721694,"d":"$35,059"},{"v":10583.881792672895,"d":"$10,584"},{"v":-38402.00428945589,"d":"($38,402)"},{"v":57760.89757811843,"d":"$57,761"},{"v":-29399.09611378329,"d":"($29,399)"},{"v":-58037.167300003,"d":"($58,037)"},{"v":-15279.432970642336,"d":"($15,279)"},{"$f":"SUM(AB46:AM46)","v":{"v":-11273.186080176578,"d":"($11,273)"}},{"$f":"AO46","v":{"v":34668.00020301422,"d":"$34,668"}},{"v":-8700.698894355188,"d":"($8,701)"},{"v":12047.9682617607,"d":"$12,048"},{"v":45907.4609049307,"d":"$45,907"},{"v":-25708.949793039996,"d":"($25,709)"},{"v":-50253.76965416858,"d":"($50,254)"},{"v":24808.56675783532,"d":"$24,809"},{"v":-4081.4460618035723,"d":"($4,081)"},{"v":-25162.09970013615,"d":"($25,162)"},{"v":-5456.737568230496,"d":"($5,457)"},{"v":-7672.289231866038,"d":"($7,672)"},{"v":60630.81918257643,"d":"$60,631"},{"$f":"SUM(AO46:AZ46)","v":{"v":51026.82440651735,"d":"$51,027"}},{"$f":"BB46","v":{"v":37284.38787696884,"d":"$37,284"}},{"v":3215.3404522466617,"d":"$3,215"},{"v":42687.58935883012,"d":"$42,688"},{"v":660.9601600193788,"d":"$661"},{"v":-33071.618464557665,"d":"($33,072)"},{"v":-27731.84494715322,"d":"($27,732)"},{"v":11779.056324966337,"d":"$11,779"},{"v":-6556.976273801029,"d":"($6,557)"},{"v":21144.436643865858,"d":"$21,144"},{"v":25012.123563213343,"d":"$25,012"},{"v":30847.76989443788,"d":"$30,848"},{"v":-19672.79430045576,"d":"($19,673)"},{"$f":"SUM(BB46:BM46)","v":{"v":85598.43028858074,"d":"$85,598"}},{"$f":"BO46","v":{"v":-368.5562540055115,"d":"($369)"}},{"v":32657.736615811573,"d":"$32,658"},{"v":-5245.310539541589,"d":"($5,245)"},{"v":-4493.19755981644,"d":"($4,493)"},{"v":33514.4096666247,"d":"$33,514"},{"v":34929.278476600724,"d":"$34,929"},{"v":-12089.769927294721,"d":"($12,090)"},{"v":22287.441514009468,"d":"$22,287"},{"v":36855.184864542214,"d":"$36,855"},{"v":-15063.160374456207,"d":"($15,063)"},{"v":24763.62104217592,"d":"$24,764"},{"v":-1530.2995106559622,"d":"($1,530)"},{"$f":"SUM(BO46:BZ46)","v":{"v":146217.37801399417,"d":"$146,217"}},{"$f":"CB46","v":{"v":-23332.81331792708,"d":"($23,333)"}},{"v":-7193.752881208552,"d":"($7,194)"},{"v":9813.681514983855,"d":"$9,814"},{"v":-1138.6151470697168,"d":"($1,139)"},{"v":-25939.16429605951,"d":"($25,939)"},{"v":21882.29193462214,"d":"$21,882"},{"v":-56532.99339661046,"d":"($56,533)"},{"v":26173.037268640877,"d":"$26,173"},{"v":-24188.955849985476,"d":"($24,189)"},{"v":34615.83462671391,"d":"$34,616"},{"v":-45042.89264396144,"d":"($45,043)"},{"v":-33505.68449137984,"d":"($33,506)"},{"$f":"SUM(CB46:CM46)","v":{"v":-124390.02667924129,"d":"($124,390)"}},{"$f":"CO46","v":{"v":9152.610919684266,"d":"$9,153"}},{"v":-58060.42655619443,"d":"($58,060)"},{"v":-58811.80068712935,"d":"($58,812)"},{"v":27314.69706223765,"d":"$27,315"},{"v":16827.411048302107,"d":"$16,827"},{"v":-9756.171579083471,"d":"($9,756)"},{"v":28652.585960858276,"d":"$28,653"},{"v":19545.725711576284,"d":"$19,546"},{"v":-15882.8312379967,"d":"($15,883)"},{"v":-17398.819628912144,"d":"($17,399)"},{"v":24821.918328857337,"d":"$24,822"},{"v":23972.116410134415,"d":"$23,972"},{"$f":"SUM(CO46:CZ46)","v":{"v":-9622.98424766574,"d":"($9,623)"}},{"$f":"DB46","v":{"v":6248.071736435702,"d":"$6,248"}},{"v":-3901.2697992967983,"d":"($3,901)"},{"v":-3154.8243312705354,"d":"($3,155)"},{"v":7410.344482731172,"d":"$7,410"},{"v":-20191.28429330717,"d":"($20,191)"},{"v":-10543.879115929516,"d":"($10,544)"},{"v":-3172.5289321128735,"d":"($3,173)"},{"v":166.80979219784908,"d":"$167"},{"v":-8936.206628270635,"d":"($8,936)"},{"v":34638.41595502497,"d":"$34,638"},{"v":-29014.572892795517,"d":"($29,015)"},{"v":-1157.9983293860068,"d":"($1,158)"},{"$f":"SUM(DB46:DM46)","v":{"v":-31608.922355979357,"d":"($31,609)"}},{"$f":"DO46","v":{"v":23130.900586267482,"d":"$23,131"}},{"v":-20767.833530165535,"d":"($20,768)"},{"v":16572.865050247252,"d":"$16,573"},{"v":18407.765662668236,"d":"$18,408"},{"v":15785.426404129059,"d":"$15,785"},{"v":-2646.7907225049325,"d":"($2,647)"},{"v":39967.33986550625,"d":"$39,967"},{"v":-22358.23893666065,"d":"($22,358)"},{"v":-8485.794488012656,"d":"($8,486)"},{"v":-1344.4654581599946,"d":"($1,344)"},{"v":31976.339937568264,"d":"$31,976"},{"v":-23524.260752014852,"d":"($23,524)"},{"$f":"SUM(DO46:DZ46)","v":{"v":66713.25361886792,"d":"$66,713"}},{"$f":"EB46","v":{"v":-35734.35209560701,"d":"($35,734)"}},{"v":26907.80297404791,"d":"$26,908"},{"v":-19097.247827694722,"d":"($19,097)"},{"v":1346.3004917882834,"d":"$1,346"},{"v":-30549.215552917965,"d":"($30,549)"},{"v":49880.360283547794,"d":"$49,880"},{"v":-26899.736004896848,"d":"($26,900)"},{"v":22746.557851056656,"d":"$22,747"},{"v":43864.66185545131,"d":"$43,865"},{"v":14658.54742667572,"d":"$14,659"},{"v":5918.104723907705,"d":"$5,918"},{"v":8296.289764469475,"d":"$8,296"},{"$f":"SUM(EB46:EM46)","v":{"v":61338.0738898283,"d":"$61,338"}}]

{"sheet":"Trial 7","index":10,"n_rows":61,"n_cols":144,"rows_kept":61,"merged":[[0,0,0,2],[1,0,1,2],[2,0,2,2],[3,0,3,2],[4,0,4,2]]}
[{"$f":"\"Equilibrium Economy with Shocks\"","v":"Equilibrium Economy with Shocks"}]
[{"$f":"\"Model: \"&Inputs!B8","v":"Model: Test Model"}]
[{"$f":"\"$ millions\"","v":"$ millions"}]
[{"$f":"\"Trial 7\"","v":"Trial 7"}]
[{"$f":"\"\"","v":""}]
[{"$f":"\"Demand\"","v":"Demand"}]
[{"$f":"\" \"","v":" "}]
[null,{"$f":"ZZZ__FnCalls!F7","v":"Jan 2010"},{"$f":"ZZZ__FnCalls!F8","v":"Feb 2010"},{"$f":"ZZZ__FnCalls!F9","v":"Mar 2010"},{"$f":"ZZZ__FnCalls!F10","v":"Apr 2010"},{"$f":"ZZZ__FnCalls!F11","v":"May 2010"},{"$f":"ZZZ__FnCalls!F12","v":"Jun 2010"},{"$f":"ZZZ__FnCalls!F13","v":"Jul 2010"},{"$f":"ZZZ__FnCalls!F14","v":"Aug 2010"},{"$f":"ZZZ__FnCalls!F15","v":"Sep 2010"},{"$f":"ZZZ__FnCalls!F16","v":"Oct 2010"},{"$f":"ZZZ__FnCalls!F17","v":"Nov 2010"},{"$f":"ZZZ__FnCalls!F18","v":"Dec 2010"},{"$f":"ZZZ__FnCalls!H7","v":"2010"},{"$f":"ZZZ__FnCalls!F19","v":"Jan 2011"},{"$f":"ZZZ__FnCalls!F20","v":"Feb 2011"},{"$f":"ZZZ__FnCalls!F21","v":"Mar 2011"},{"$f":"ZZZ__FnCalls!F22","v":"Apr 2011"},{"$f":"ZZZ__FnCalls!F23","v":"May 2011"},{"$f":"ZZZ__FnCalls!F24","v":"Jun 2011"},{"$f":"ZZZ__FnCalls!F25","v":"Jul 2011"},{"$f":"ZZZ__FnCalls!F26","v":"Aug 2011"},{"$f":"ZZZ__FnCalls!F27","v":"Sep 2011"},{"$f":"ZZZ__FnCalls!F28","v":"Oct 2011"},{"$f":"ZZZ__FnCalls!F29","v":"Nov 2011"},{"$f":"ZZZ__FnCalls!F30","v":"Dec 2011"},{"$f":"ZZZ__FnCalls!H19","v":"2011"},{"$f":"ZZZ__FnCalls!F31","v":"Jan 2012"},{"$f":"ZZZ__FnCalls!F32","v":"Feb 2012"},{"$f":"ZZZ__FnCalls!F33","v":"Mar 2012"},{"$f":"ZZZ__FnCalls!F34","v":"Apr 2012"},{"$f":"ZZZ__FnCalls!F35","v":"May 2012"},{"$f":"ZZZ__FnCalls!F36","v":"Jun 2012"},{"$f":"ZZZ__FnCalls!F37","v":"Jul 2012"},{"$f":"ZZZ__FnCalls!F38","v":"Aug 2012"},{"$f":"ZZZ__FnCalls!F39","v":"Sep 2012"},{"$f":"ZZZ__FnCalls!F40","v":"Oct 2012"},{"$f":"ZZZ__FnCalls!F41","v":"Nov 2012"},{"$f":"ZZZ__FnCalls!F42","v":"Dec 2012"},{"$f":"ZZZ__FnCalls!H31","v":"2012"},{"$f":"ZZZ__FnCalls!F43","v":"Jan 2013"},{"$f":"ZZZ__FnCalls!F44","v":"Feb 2013"},{"$f":"ZZZ__FnCalls!F45","v":"Mar 2013"},{"$f":"ZZZ__FnCalls!F46","v":"Apr 2013"},{"$f":"ZZZ__FnCalls!F47","v":"May 2013"},{"$f":"ZZZ__FnCalls!F48","v":"Jun 2013"},{"$f":"ZZZ__FnCalls!F49","v":"Jul 2013"},{"$f":"ZZZ__FnCalls!F50","v":"Aug 2013"},{"$f":"ZZZ__FnCalls!F51","v":"Sep 2013"},{"$f":"ZZZ__FnCalls!F52","v":"Oct 2013"},{"$f":"ZZZ__FnCalls!F53","v":"Nov 2013"},{"$f":"ZZZ__FnCalls!F54","v":"Dec 2013"},{"$f":"ZZZ__FnCalls!H43","v":"2013"},{"$f":"ZZZ__FnCalls!F55","v":"Jan 2014"},{"$f":"ZZZ__FnCalls!F56","v":"Feb 2014"},{"$f":"ZZZ__FnCalls!F57","v":"Mar 2014"},{"$f":"ZZZ__FnCalls!F58","v":"Apr 2014"},{"$f":"ZZZ__FnCalls!F59","v":"May 2014"},{"$f":"ZZZ__FnCalls!F60","v":"Jun 2014"},{"$f":"ZZZ__FnCalls!F61","v":"Jul 2014"},{"$f":"ZZZ__FnCalls!F62","v":"Aug 2014"},{"$f":"ZZZ__FnCalls!F63","v":"Sep 2014"},{"$f":"ZZZ__FnCalls!F64","v":"Oct 2014"},{"$f":"ZZZ__FnCalls!F65","v":"Nov 2014"},{"$f":"ZZZ__FnCalls!F66","v":"Dec 2014"},{"$f":"ZZZ__FnCalls!H55","v":"2014"},{"$f":"ZZZ__FnCalls!F67","v":"Jan 2015"},{"$f":"ZZZ__FnCalls!F68","v":"Feb 2015"},{"$f":"ZZZ__FnCalls!F69","v":"Mar 2015"},{"$f":"ZZZ__FnCalls!F70","v":"Apr 2015"},{"$f":"ZZZ__FnCalls!F71","v":"May 2015"},{"$f":"ZZZ__FnCalls!F72","v":"Jun 2015"},{"$f":"ZZZ__FnCalls!F73","v":"Jul 2015"},{"$f":"ZZZ__FnCalls!F74","v":"Aug 2015"},{"$f":"ZZZ__FnCalls!F75","v":"Sep 2015"},{"$f":"ZZZ__FnCalls!F76","v":"Oct 2015"},{"$f":"ZZZ__FnCalls!F77","v":"Nov 2015"},{"$f":"ZZZ__FnCalls!F78","v":"Dec 2015"},{"$f":"ZZZ__FnCalls!H67","v":"2015"},{"$f":"ZZZ__FnCalls!F79","v":"Jan 2016"},{"$f":"ZZZ__FnCalls!F80","v":"Feb 2016"},{"$f":"ZZZ__FnCalls!F81","v":"Mar 2016"},{"$f":"ZZZ__FnCalls!F82","v":"Apr 2016"},{"$f":"ZZZ__FnCalls!F83","v":"May 2016"},{"$f":"ZZZ__FnCalls!F84","v":"Jun 2016"},{"$f":"ZZZ__FnCalls!F85","v":"Jul 2016"},{"$f":"ZZZ__FnCalls!F86","v":"Aug 2016"},{"$f":"ZZZ__FnCalls!F87","v":"Sep 2016"},{"$f":"ZZZ__FnCalls!F88","v":"Oct 2016"},{"$f":"ZZZ__FnCalls!F89","v":"Nov 2016"},{"$f":"ZZZ__FnCalls!F90","v":"Dec 2016"},{"$f":"ZZZ__FnCalls!H79","v":"2016"},{"$f":"ZZZ__FnCalls!F91","v":"Jan 2017"},{"$f":"ZZZ__FnCalls!F92","v":"Feb 2017"},{"$f":"ZZZ__FnCalls!F93","v":"Mar 2017"},{"$f":"ZZZ__FnCalls!F94","v":"Apr 2017"},{"$f":"ZZZ__FnCalls!F95","v":"May 2017"},{"$f":"ZZZ__FnCalls!F96","v":"Jun 2017"},{"$f":"ZZZ__FnCalls!F97","v":"Jul 2017"},{"$f":"ZZZ__FnCalls!F98","v":"Aug 2017"},{"$f":"ZZZ__FnCalls!F99","v":"Sep 2017"},{"$f":"ZZZ__FnCalls!F100","v":"Oct 2017"},{"$f":"ZZZ__FnCalls!F101","v":"Nov 2017"},{"$f":"ZZZ__FnCalls!F102","v":"Dec 2017"},{"$f":"ZZZ__FnCalls!H91","v":"2017"},{"$f":"ZZZ__FnCalls!F103","v":"Jan 2018"},{"$f":"ZZZ__FnCalls!F104","v":"Feb 2018"},{"$f":"ZZZ__FnCalls!F105","v":"Mar 2018"},{"$f":"ZZZ__FnCalls!F106","v":"Apr 2018"},{"$f":"ZZZ__FnCalls!F107","v":"May 2018"},{"$f":"ZZZ__FnCalls!F108","v":"Jun 2018"},{"$f":"ZZZ__FnCalls!F109","v":"Jul 2018"},{"$f":"ZZZ__FnCalls!F110","v":"Aug 2018"},{"$f":"ZZZ__FnCalls!F111","v":"Sep 2018"},{"$f":"ZZZ__FnCalls!F112","v":"Oct 2018"},{"$f":"ZZZ__FnCalls!F113","v":"Nov 2018"},{"$f":"ZZZ__FnCalls!F114","v":"Dec 2018"},{"$f":"ZZZ__FnCalls!H103","v":"2018"},{"$f":"ZZZ__FnCalls!F115","v":"Jan 2019"},{"$f":"ZZZ__FnCalls!F116","v":"Feb 2019"},{"$f":"ZZZ__FnCalls!F117","v":"Mar 2019"},{"$f":"ZZZ__FnCalls!F118","v":"Apr 2019"},{"$f":"ZZZ__FnCalls!F119","v":"May 2019"},{"$f":"ZZZ__FnCalls!F120","v":"Jun 2019"},{"$f":"ZZZ__FnCalls!F121","v":"Jul 2019"},{"$f":"ZZZ__FnCalls!F122","v":"Aug 2019"},{"$f":"ZZZ__FnCalls!F123","v":"Sep 2019"},{"$f":"ZZZ__FnCalls!F124","v":"Oct 2019"},{"$f":"ZZZ__FnCalls!F125","v":"Nov 2019"},{"$f":"ZZZ__FnCalls!F126","v":"Dec 2019"},{"$f":"ZZZ__FnCalls!H115","v":"2019"},{"$f":"ZZZ__FnCalls!F127","v":"Jan 2020"},{"$f":"ZZZ__FnCalls!F128","v":"Feb 2020"},{"$f":"ZZZ__FnCalls!F129","v":"Mar 2020"},{"$f":"ZZZ__FnCalls!F130","v":"Apr 2020"},{"$f":"ZZZ__FnCalls!F131","v":"May 2020"},{"$f":"ZZZ__FnCalls!F132","v":"Jun 2020"},{"$f":"ZZZ__FnCalls!F133","v":"Jul 2020"},{"$f":"ZZZ__FnCalls!F134","v":"Aug 2020"},{"$f":"ZZZ__FnCalls!F135","v":"Sep 2020"},{"$f":"ZZZ__FnCalls!F136","v":"Oct 2020"},{"$f":"ZZZ__FnCalls!F137","v":"Nov 2020"},{"$f":"ZZZ__FnCalls!F138","v":"Dec 2020"},{"$f":"ZZZ__FnCalls!H127","v":"2020"}]
[{"$f":"Labels!B28","v":"Aggregate Demand"},{"$f":"B36+0+B13","v":{"v":934675.8648213199,"d":"$934,676"}},{"v":987175.0402893362,"d":"$987,175"},{"v":978529.7956814218,"d":"$978,530"},{"v":954377.4470379899,"d":"$954,377"},{"v":993561.7000547308,"d":"$993,562"},{"v":994872.4729530611,"d":"$994,872"},{"v":992235.8709737282,"d":"$992,236"},{"v":1000262.7275780932,"d":"$1,000,263"},{"v":951435.6346946689,"d":"$951,436"},{"v":935902.5392245529,"d":"$935,903"},{"v":955218.0590577031,"d":"$955,218"},{"v":948465.3648001158,"d":"$948,465"},{"$f":"SUM(B9:M9)","v":{"v":11626712.517166723,"d":"$11,626,713"}},{"$f":"O36+0+O13","v":{"v":962919.8662356727,"d":"$962,920"}},{"v":993956.1890214666,"d":"$993,956"},{"v":990049.9440388747,"d":"$990,050"},{"v":980860.068524317,"d":"$980,860"},{"v":967154.7540451369,"d":"$967,155"},{"v":985513.0033231032,"d":"$985,513"},{"v":950018.2637602629,"d":"$950,018"},{"v":985884.1089676133,"d":"$985,884"},{"v":997344.8221739439,"d":"$997,345"},{"v":982510.883538926,"d":"$982,511"},{"v":955477.3734819714,"d":"$955,477"},{"v":904365.9630287031,"d":"$904,366"},{"$f":"SUM(O9:Z9)","v":{"v":11656055.240139993,"d":"$11,656,055"}},{"$f":"AB36+0+AB13","v":{"v":899376.1496525535,"d":"$899,376"}},{"v":951102.2984931329,"d":"$951,102"},{"v":964771.9852316892,"d":"$964,772"},{"v":982053.9144656891,"d":"$982,054"},{"v":930580.8252056224,"d":"$930,581"},{"v":970109.11172486,"d":"$970,109"},{"v":966997.178045346,"d":"$966,997"},{"v":913059.8097541294,"d":"$913,060"},{"v":939143.0847851746,"d":"$939,143"},{"v":949794.8356204884,"d":"$949,795"},{"v":952185.0241874148,"d":"$952,185"},{"v":928585.3302846665,"d":"$928,585"},{"$f":"SUM(AB9:AM9)","v":{"v":11347759.547450768,"d":"$11,347,760"}},{"$f":"AO36+0+AO13","v":{"v":913855.0118772375,"d":"$913,855"}},{"v":938552.6540706509,"d":"$938,553"},{"v":972058.8321511857,"d":"$972,059"},{"v":969442.0781121411,"d":"$969,442"},{"v":994213.6459894115,"d":"$994,214"},{"v":921266.1360022364,"d":"$921,266"},{"v":937886.2863404618,"d":"$937,886"},{"v":936168.3293219738,"d":"$936,168"},{"v":921558.4090950799,"d":"$921,558"},{"v":908756.0153854304,"d":"$908,756"},{"v":915819.0043405591,"d":"$915,819"},{"v":895823.5673161332,"d":"$895,824"},{"$f":"SUM(AO9:AZ9)","v":{"v":11225399.970002502,"d":"$11,225,400"}},{"$f":"BB36+0+BB13","v":{"v":925797.5986979775,"d":"$925,798"}},{"v":922736.7182905161,"d":"$922,737"},{"v":952370.8846196062,"d":"$952,371"},{"v":927533.2288040039,"d":"$927,533"},{"v":950985.2872823022,"d":"$950,985"},{"v":971223.9284541449,"d":"$971,224"},{"v":905603.0275405628,"d":"$905,603"},{"v":933548.9785735742,"d":"$933,549"},{"v":916976.0339337994,"d":"$916,976"},{"v":893281.9937640622,"d":"$893,282"},{"v":918183.1419684142,"d":"$918,183"},{"v":951661.103990508,"d":"$951,661"},{"$f":"SUM(BB9:BM9)","v":{"v":11169901.925919471,"d":"$11,169,902"}},{"$f":"BO36+0+BO13","v":{"v":915600.2441727057,"d":"$915,600"}},{"v":882410.1709155466,"d":"$882,410"},{"v":951571.6372641476,"d":"$951,572"},{"v":950100.4279772599,"d":"$950,100"},{"v":966646.821192672,"d":"$966,647"},{"v":973477.1323417113,"d":"$973,477"},{"v":960699.9243798752,"d":"$960,700"},{"v":902416.1851157987,"d":"$902,416"},{"v":972275.7476685685,"d":"$972,276"},{"v":904775.4327694746,"d":"$904,775"},{"v":886218.4501414943,"d":"$886,218"},{"v":867079.8161896593,"d":"$867,080"},{"$f":"SUM(BO9:BZ9)","v":{"v":11133271.990128912,"d":"$11,133,272"}},{"$f":"CB36+0+CB13","v":{"v":923131.7110475722,"d":"$923,132"}},{"v":950054.8907343049,"d":"$950,055"},{"v":954508.1786462977,"d":"$954,508"},{"v":867000.827340083,"d":"$867,001"},{"v":908571.7549447749,"d":"$908,572"},{"v":950778.6754038378,"d":"$950,779"},{"v":863077.8467572536,"d":"$863,078"},{"v":894421.4165008895,"d":"$894,421"},{"v":984978.6090254855,"d":"$984,979"},{"v":977645.2732711998,"d":"$977,645"},{"v":917077.1715218137,"d":"$917,077"},{"v":954311.5303739271,"d":"$954,312"},{"$f":"SUM(CB9:CM9)","v":{"v":11145557.885567442,"d":"$11,145,558"}},{"$f":"CO36+0+CO13","v":{"v":979991.9014835564,"d":"$979,992"}},{"v":917688.5703669485,"d":"$917,689"},{"v":939547.4000638706,"d":"$939,547"},{"v":946086.3227817388,"d":"$946,086"},{"v":924365.1866417334,"d":"$924,365"},{"v":917339.4451466411,"d":"$917,339"},{"v":951180.1105195335,"d":"$951,180"},{"v":918563.676436139,"d":"$918,564"},{"v":914703.173771754,"d":"$914,703"},{"v":875951.2849830978,"d":"$875,951"},{"v":881489.7766325936,"d":"$881,490"},{"v":933661.8006501569,"d":"$933,662"},{"$f":"SUM(CO9:CZ9)","v":{"v":11100568.649477765,"d":"$11,100,569"}},{"$f":"DB36+0+DB13","v":{"v":967169.3666226246,"d":"$967,169"}},{"v":952092.0162086908,"d":"$952,092"},{"v":922404.5921233883,"d":"$922,405"},{"v":931640.7088004736,"d":"$931,641"},{"v":926288.5641279579,"d":"$926,289"},{"v":875507.2564964251,"d":"$875,507"},{"v":870890.2345291434,"d":"$870,890"},{"v":918394.2945269243,"d":"$918,394"},{"v":912349.625517709,"d":"$912,350"},{"v":869069.7536898683,"d":"$869,070"},{"v":918449.7524122923,"d":"$918,450"},{"v":920191.161191935,"d":"$920,191"},{"$f":"SUM(DB9:DM9)","v":{"v":10984447.326247433,"d":"$10,984,447"}},{"$f":"DO36+0+DO13","v":{"v":887102.4673241714,"d":"$887,102"}},{"v":910140.1561836862,"d":"$910,140"},{"v":907885.5194571019,"d":"$907,886"},{"v":875694.8392895801,"d":"$875,695"},{"v":922181.2502974503,"d":"$922,181"},{"v":877777.8977496626,"d":"$877,778"},{"v":892815.0472733015,"d":"$892,815"},{"v":933827.1121735538,"d":"$933,827"},{"v":971128.9550035208,"d":"$971,129"},{"v":863366.1436637486,"d":"$863,366"},{"v":888519.425228215,"d":"$888,519"},{"v":873274.4925419708,"d":"$873,274"},{"$f":"SUM(DO9:DZ9)","v":{"v":10803713.306185963,"d":"$10,803,713"}},{"$f":"EB36+0+EB13","v":{"v":945010.6091337701,"d":"$945,011"}},{"v":875734.5673007456,"d":"$875,735"},{"v":905402.6616750971,"d":"$905,403"},{"v":918081.3300943563,"d":"$918,081"},{"v":876218.1040911912,"d":"$876,218"},{"v":847461.0028910601,"d":"$847,461"},{"v":855011.6937834861,"d":"$855,012"},{"v":921241.2583190892,"d":"$921,241"},{"v":926215.3152568331,"d":"$926,215"},{"v":902170.8111866151,"d":"$902,171"},{"v":937246.3145392517,"d":"$937,246"},{"v":932087.8104107607,"d":"$932,088"},{"$f":"SUM(EB9:EM9)","v":{"v":10841881.478682255,"d":"$10,841,881"}}]
[{"$f":"Labels!B31","v":"Long Expected Demand"},{"$f":"'(Other Computations)'!B8+'(Other Computations)'!B61*0/Inputs!B13/12","v":{"v":1166666.6666666667,"d":"$1,166,667"}},{"$f":"B10+'(Other Computations)'!B61*(B9-B10)/Inputs!B13/12","v":{"v":1166129.6509216544,"d":"$1,166,130"}},{"$f":"C10+'(Other Computations)'!B61*(C9-C10)/Inputs!B13/12","v":{"v":1165715.4041377832,"d":"$1,165,715"}},{"$f":"D10+'(Other Computations)'!B61*(D9-D10)/Inputs!B13/12","v":{"v":1165282.1041182084,"d":"$1,165,282"}},{"$f":"E10+'(Other Computations)'!B61*(E9-E10)/Inputs!B13/12","v":{"v":1164793.8988934858,"d":"$1,164,794"}},{"$f":"F10+'(Other Computations)'!B61*(F9-F10)/Inputs!B13/12","v":{"v":1164397.5280628405,"d":"$1,164,398"}},{"$f":"G10+'(Other Computations)'!B61*(G9-G10)/Inputs!B13/12","v":{"v":1164005.10895379,"d":"$1,164,005"}},{"$f":"H10+'(Other Computations)'!B61*(H9-H10)/Inputs!B13/12","v":{"v":1163607.4949769843,"d":"$1,163,607"}},{"$f":"I10+'(Other Computations)'!B61*(I9-I10)/Inputs!B13/12","v":{"v":1163229.3820894868,"d":"$1,163,229"}},{"$f":"J10+'(Other Computations)'!B61*(J9-J10)/Inputs!B13/12","v":{"v":1162739.1187853322,"d":"$1,162,739"}},{"$f":"K10+'(Other Computations)'!B61*(K9-K10)/Inputs!B13/12","v":{"v":1162214.034110423,"d":"$1,162,214"}},{"$f":"L10+'(Other Computations)'!B61*(L9-L10)/Inputs!B13/12","v":{"v":1161734.8767607638,"d":"$1,161,735"}},{"$f":"SUM(B10:M10)","v":{"v":13970515.268477418,"d":"$13,970,515"}},{"$f":"M10+'(Other Computations)'!B61*(M9-M10)/Inputs!B13/12","v":{"v":1161241.197334929,"d":"$1,161,241"}},{"$f":"O10+'(Other Computations)'!B61*(O9-O10)/Inputs!B13/12","v":{"v":1160782.1201796066,"d":"$1,160,782"}},{"$f":"P10+'(Other Computations)'!B61*(P9-P10)/Inputs!B13/12","v":{"v":1160395.9490426665,"d":"$1,160,396"}},{"$f":"Q10+'(Other Computations)'!B61*(Q9-Q10)/Inputs!B13/12","v":{"v":1160001.629586639,"d":"$1,160,002"}},{"$f":"R10+'(Other Computations)'!B61*(R9-R10)/Inputs!B13/12","v":{"v":1159586.950047143,"d":"$1,159,587"}},{"$f":"S10+'(Other Computations)'!B61*(S9-S10)/Inputs!B13/12","v":{"v":1159141.5051489903,"d":"$1,159,142"}},{"$f":"T10+'(Other Computations)'!B61*(T9-T10)/Inputs!B13/12","v":{"v":1158739.5873206896,"d":"$1,158,740"}},{"$f":"U10+'(Other Computations)'!B61*(U9-U10)/Inputs!B13/12","v":{"v":1158256.4361087442,"d":"$1,158,256"}},{"$f":"V10+'(Other Computations)'!B61*(V9-V10)/Inputs!B13/12","v":{"v":1157857.426092214,"d":"$1,157,857"}},{"$f":"W10+'(Other Computations)'!B61*(W9-W10)/Inputs!B13/12","v":{"v":1157485.8691386995,"d":"$1,157,486"}},{"$f":"X10+'(Other Computations)'!B61*(X9-X10)/Inputs!B13/12","v":{"v":1157080.8344498111,"d":"$1,157,081"}},{"$f":"Y10+'(Other Computations)'!B61*(Y9-Y10)/Inputs!B13/12","v":{"v":1156614.1597716447,"d":"$1,156,614"}},{"$f":"SUM(O10:Z10)","v":{"v":13907183.664221775,"d":"$13,907,184"}},{"$f":"Z10+'(Other Computations)'!B61*(Z9-Z10)/Inputs!B13/12","v":{"v":1156030.2519088138,"d":"$1,156,030"}},{"$f":"AB10+'(Other Computations)'!B61*(AB9-AB10)/Inputs!B13/12","v":{"v":1155436.145190628,"d":"$1,155,436"}},{"$f":"AC10+'(Other Computations)'!B61*(AC9-AC10)/Inputs!B13/12","v":{"v":1154963.1501751246,"d":"$1,154,963"}},{"$f":"AD10+'(Other Computations)'!B61*(AD9-AD10)/Inputs!B13/12","v":{"v":1154522.8928488668,"d":"$1,154,523"}},{"$f":"AE10+'(Other Computations)'!B61*(AE9-AE10)/Inputs!B13/12","v":{"v":1154123.6591026094,"d":"$1,154,124"}},{"$f":"AF10+'(Other Computations)'!B61*(AF9-AF10)/Inputs!B13/12","v":{"v":1153606.198838959,"d":"$1,153,606"}},{"$f":"AG10+'(Other Computations)'!B61*(AG9-AG10)/Inputs!B13/12","v":{"v":1153181.4370632318,"d":"$1,153,181"}},{"$f":"AH10+'(Other Computations)'!B61*(AH9-AH10)/Inputs!B13/12","v":{"v":1152750.454982172,"d":"$1,152,750"}},{"$f":"AI10+'(Other Computations)'!B61*(AI9-AI10)/Inputs!B13/12","v":{"v":1152195.6155256256,"d":"$1,152,196"}},{"$f":"AJ10+'(Other Computations)'!B61*(AJ9-AJ10)/Inputs!B13/12","v":{"v":1151702.4383711338,"d":"$1,151,702"}},{"$f":"AK10+'(Other Computations)'!B61*(AK9-AK10)/Inputs!B13/12","v":{"v":1151235.059661063,"d":"$1,151,235"}},{"$f":"AL10+'(Other Computations)'!B61*(AL9-AL10)/Inputs!B13/12","v":{"v":1150774.2956900592,"d":"$1,150,774"}},{"$f":"SUM(AB10:AM10)","v":{"v":13840521.599358287,"d":"$13,840,522"}},{"$f":"AM10+'(Other Computations)'!B61*(AM9-AM10)/Inputs!B13/12","v":{"v":1150259.9693812504,"d":"$1,150,260"}},{"$f":"AO10+'(Other Computations)'!B61*(AO9-AO10)/Inputs!B13/12","v":{"v":1149712.7356833245,"d":"$1,149,713"}},{"$f":"AP10+'(Other Computations)'!B61*(AP9-AP10)/Inputs!B13/12","v":{"v":1149223.93919811,"d":"$1,149,224"}},{"$f":"AQ10+'(Other Computations)'!B61*(AQ9-AQ10)/Inputs!B13/12","v":{"v":1148813.8347836495,"d":"$1,148,814"}},{"$f":"AR10+'(Other Computations)'!B61*(AR9-AR10)/Inputs!B13/12","v":{"v":1148398.622383947,"d":"$1,148,399"}},{"$f":"AS10+'(Other Computations)'!B61*(AS9-AS10)/Inputs!B13/12","v":{"v":1148041.712716367,"d":"$1,148,042"}},{"$f":"AT10+'(Other Computations)'!B61*(AT9-AT10)/Inputs!B13/12","v":{"v":1147516.769251751,"d":"$1,147,517"}},{"$f":"AU10+'(Other Computations)'!B61*(AU9-AU10)/Inputs!B13/12","v":{"v":1147031.5135042712,"d":"$1,147,032"}},{"$f":"AV10+'(Other Computations)'!B61*(AV9-AV10)/Inputs!B13/12","v":{"v":1146543.404281627,"d":"$1,146,543"}},{"$f":"AW10+'(Other Computations)'!B61*(AW9-AW10)/Inputs!B13/12","v":{"v":1146022.605681658,"d":"$1,146,023"}},{"$f":"AX10+'(Other Computations)'!B61*(AX9-AX10)/Inputs!B13/12","v":{"v":1145473.3774633796,"d":"$1,145,473"}},{"$f":"AY10+'(Other Computations)'!B61*(AY9-AY10)/Inputs!B13/12","v":{"v":1144941.7701181879,"d":"$1,144,942"}},{"$f":"SUM(AO10:AZ10)","v":{"v":13771980.254447524,"d":"$13,771,980"}},{"$f":"AZ10+'(Other Computations)'!B61*(AZ9-AZ10)/Inputs!B13/12","v":{"v":1144365.1076117016,"d":"$1,144,365"}},{"$f":"BB10+'(Other Computations)'!B61*(BB9-BB10)/Inputs!B13/12","v":{"v":1143859.1643040308,"d":"$1,143,859"}},{"$f":"BC10+'(Other Computations)'!B61*(BC9-BC10)/Inputs!B13/12","v":{"v":1143347.3067901107,"d":"$1,143,347"}},{"$f":"BD10+'(Other Computations)'!B61*(BD9-BD10)/Inputs!B13/12","v":{"v":1142905.23173879,"d":"$1,142,905"}},{"$f":"BE10+'(Other Computations)'!B61*(BE9-BE10)/Inputs!B13/12","v":{"v":1142406.6854357002,"d":"$1,142,407"}},{"$f":"BF10+'(Other Computations)'!B61*(BF9-BF10)/Inputs!B13/12","v":{"v":1141963.5803473822,"d":"$1,141,964"}},{"$f":"BG10+'(Other Computations)'!B61*(BG9-BG10)/Inputs!B13/12","v":{"v":1141568.3496717035,"d":"$1,141,568"}},{"$f":"BH10+'(Other Computations)'!B61*(BH9-BH10)/Inputs!B13/12","v":{"v":1141022.1336482519,"d":"$1,141,022"}},{"$f":"BI10+'(Other Computations)'!B61*(BI9-BI10)/Inputs!B13/12","v":{"v":1140541.8717152087,"d":"$1,140,542"}},{"$f":"BJ10+'(Other Computations)'!B61*(BJ9-BJ10)/Inputs!B13/12","v":{"v":1140024.3582018258,"d":"$1,140,024"}},{"$f":"BK10+'(Other Computations)'!B61*(BK9-BK10)/Inputs!B13/12","v":{"v":1139453.1953211827,"d":"$1,139,453"}},{"$f":"BL10+'(Other Computations)'!B61*(BL9-BL10)/Inputs!B13/12","v":{"v":1138940.9961236068,"d":"$1,138,941"}},{"$f":"SUM(BB10:BM10)","v":{"v":13700397.980909495,"d":"$13,700,398"}},{"$f":"BM10+'(Other Computations)'!B61*(BM9-BM10)/Inputs!B13/12","v":{"v":1138507.4778547802,"d":"$1,138,507"}},{"$f":"BO10+'(Other Computations)'!B61*(BO9-BO10)/Inputs!B13/12","v":{"v":1137991.4888879235,"d":"$1,137,991"}},{"$f":"BP10+'(Other Computations)'!B61*(BP9-BP10)/Inputs!B13/12","v":{"v":1137399.865466691,"d":"$1,137,400"}},{"$f":"BQ10+'(Other Computations)'!B61*(BQ9-BQ10)/Inputs!B13/12","v":{"v":1136969.707531037,"d":"$1,136,970"}},{"$f":"BR10+'(Other Computations)'!B61*(BR9-BR10)/Inputs!B13/12","v":{"v":1136537.139754292,"d":"$1,136,537"}},{"$f":"BS10+'(Other Computations)'!B61*(BS9-BS10)/Inputs!B13/12","v":{"v":1136143.8751279921,"d":"$1,136,144"}},{"$f":"BT10+'(Other Computations)'!B61*(BT9-BT10)/Inputs!B13/12","v":{"v":1135767.3317419128,"d":"$1,135,767"}},{"$f":"BU10+'(Other Computations)'!B61*(BU9-BU10)/Inputs!B13/12","v":{"v":1135362.08311376,"d":"$1,135,362"}},{"$f":"BV10+'(Other Computations)'!B61*(BV9-BV10)/Inputs!B13/12","v":{"v":1134822.856498024,"d":"$1,134,823"}},{"$f":"BW10+'(Other Computations)'!B61*(BW9-BW10)/Inputs!B13/12","v":{"v":1134446.5900424002,"d":"$1,134,447"}},{"$f":"BX10+'(Other Computations)'!B61*(BX9-BX10)/Inputs!B13/12","v":{"v":1133914.9438450092,"d":"$1,133,915"}},{"$f":"BY10+'(Other Computations)'!B61*(BY9-BY10)/Inputs!B13/12","v":{"v":1133341.5723318066,"d":"$1,133,342"}},{"$f":"SUM(BO10:BZ10)","v":{"v":13631204.932195626,"d":"$13,631,205"}},{"$f":"BZ10+'(Other Computations)'!B61*(BZ9-BZ10)/Inputs!B13/12","v":{"v":1132725.2256740702,"d":"$1,132,725"}},{"$f":"CB10+'(Other Computations)'!B61*(CB9-CB10)/Inputs!B13/12","v":{"v":1132240.0555013237,"d":"$1,132,240"}},{"$f":"CC10+'(Other Computations)'!B61*(CC9-CC10)/Inputs!B13/12","v":{"v":1131818.3305828816,"d":"$1,131,818"}},{"$f":"CD10+'(Other Computations)'!B61*(CD9-CD10)/Inputs!B13/12","v":{"v":1131407.8904163616,"d":"$1,131,408"}},{"$f":"CE10+'(Other Computations)'!B61*(CE9-CE10)/Inputs!B13/12","v":{"v":1130795.837029611,"d":"$1,130,796"}},{"$f":"CF10+'(Other Computations)'!B61*(CF9-CF10)/Inputs!B13/12","v":{"v":1130281.4294321924,"d":"$1,130,281"}},{"$f":"CG10+'(Other Computations)'!B61*(CG9-CG10)/Inputs!B13/12","v":{"v":1129865.9137978675,"d":"$1,129,866"}},{"$f":"CH10+'(Other Computations)'!B61*(CH9-CH10)/Inputs!B13/12","v":{"v":1129248.3488278661,"d":"$1,129,248"}},{"$f":"CI10+'(Other Computations)'!B61*(CI9-CI10)/Inputs!B13/12","v":{"v":1128704.767965998,"d":"$1,128,705"}},{"$f":"CJ10+'(Other Computations)'!B61*(CJ9-CJ10)/Inputs!B13/12","v":{"v":1128372.068524006,"d":"$1,128,372"}},{"$f":"CK10+'(Other Computations)'!B61*(CK9-CK10)/Inputs!B13/12","v":{"v":1128023.1639053654,"d":"$1,128,023"}},{"$f":"CL10+'(Other Computations)'!B61*(CL9-CL10)/Inputs!B13/12","v":{"v":1127534.8629970702,"d":"$1,127,535"}},{"$f":"SUM(CB10:CM10)","v":{"v":13561017.894654613,"d":"$13,561,018"}},{"$f":"CM10+'(Other Computations)'!B61*(CM9-CM10)/Inputs!B13/12","v":{"v":1127133.8830604425,"d":"$1,127,134"}},{"$f":"CO10+'(Other Computations)'!B61*(CO9-CO10)/Inputs!B13/12","v":{"v":1126793.2766216071,"d":"$1,126,793"}},{"$f":"CP10+'(Other Computations)'!B61*(CP9-CP10)/Inputs!B13/12","v":{"v":1126309.2379497213,"d":"$1,126,309"}},{"$f":"CQ10+'(Other Computations)'!B61*(CQ9-CQ10)/Inputs!B13/12","v":{"v":1125876.918880541,"d":"$1,125,877"}},{"$f":"CR10+'(Other Computations)'!B61*(CR9-CR10)/Inputs!B13/12","v":{"v":1125460.7369451271,"d":"$1,125,461"}},{"$f":"CS10+'(Other Computations)'!B61*(CS9-CS10)/Inputs!B13/12","v":{"v":1124995.2379860915,"d":"$1,124,995"}},{"$f":"CT10+'(Other Computations)'!B61*(CT9-CT10)/Inputs!B13/12","v":{"v":1124514.5532804446,"d":"$1,124,515"}},{"$f":"CU10+'(Other Computations)'!B61*(CU9-CU10)/Inputs!B13/12","v":{"v":1124113.316144424,"d":"$1,124,113"}},{"$f":"CV10+'(Other Computations)'!B61*(CV9-CV10)/Inputs!B13/12","v":{"v":1123637.5067932475,"d":"$1,123,638"}},{"$f":"CW10+'(Other Computations)'!B61*(CW9-CW10)/Inputs!B13/12","v":{"v":1123153.862503846,"d":"$1,123,154"}},{"$f":"CX10+'(Other Computations)'!B61*(CX9-CX10)/Inputs!B13/12","v":{"v":1122581.6343151405,"d":"$1,122,582"}},{"$f":"CY10+'(Other Computations)'!B61*(CY9-CY10)/Inputs!B13/12","v":{"v":1122023.5513112457,"d":"$1,122,024"}},{"$f":"SUM(CO10:CZ10)","v":{"v":13496593.715791877,"d":"$13,496,594"}},{"$f":"CZ10+'(Other Computations)'!B61*(CZ9-CZ10)/Inputs!B13/12","v":{"v":1121587.528740271,"d":"$1,121,588"}},{"$f":"DB10+'(Other Computations)'!B61*(DB9-DB10)/Inputs!B13/12","v":{"v":1121230.0792909246,"d":"$1,121,230"}},{"$f":"DC10+'(Other Computations)'!B61*(DC9-DC10)/Inputs!B13/12","v":{"v":1120838.5559967528,"d":"$1,120,839"}},{"$f":"DD10+'(Other Computations)'!B61*(DD9-DD10)/Inputs!B13/12","v":{"v":1120379.2181174164,"d":"$1,120,379"}},{"$f":"DE10+'(Other Computations)'!B61*(DE9-DE10)/Inputs!B13/12","v":{"v":1119942.3234199234,"d":"$1,119,942"}},{"$f":"DF10+'(Other Computations)'!B61*(DF9-DF10)/Inputs!B13/12","v":{"v":1119494.0508289698,"d":"$1,119,494"}},{"$f":"DG10+'(Other Computations)'!B61*(DG9-DG10)/Inputs!B13/12","v":{"v":1118929.2665828296,"d":"$1,118,929"}},{"$f":"DH10+'(Other Computations)'!B61*(DH9-DH10)/Inputs!B13/12","v":{"v":1118355.1021567795,"d":"$1,118,355"}},{"$f":"DI10+'(Other Computations)'!B61*(DI9-DI10)/Inputs!B13/12","v":{"v":1117892.2299168955,"d":"$1,117,892"}},{"$f":"DJ10+'(Other Computations)'!B61*(DJ9-DJ10)/Inputs!B13/12","v":{"v":1117416.4368511566,"d":"$1,117,416"}},{"$f":"DK10+'(Other Computations)'!B61*(DK9-DK10)/Inputs!B13/12","v":{"v":1116841.5602697649,"d":"$1,116,842"}},{"$f":"DL10+'(Other Computations)'!B61*(DL9-DL10)/Inputs!B13/12","v":{"v":1116382.3199737985,"d":"$1,116,382"}},{"$f":"SUM(DB10:DM10)","v":{"v":13429288.672145484,"d":"$13,429,289"}},{"$f":"DM10+'(Other Computations)'!B61*(DM9-DM10)/Inputs!B13/12","v":{"v":1115928.1737729146,"d":"$1,115,928"}},{"$f":"DO10+'(Other Computations)'!B61*(DO9-DO10)/Inputs!B13/12","v":{"v":1115398.4846376167,"d":"$1,115,398"}},{"$f":"DP10+'(Other Computations)'!B61*(DP9-DP10)/Inputs!B13/12","v":{"v":1114923.3496180475,"d":"$1,114,923"}},{"$f":"DQ10+'(Other Computations)'!B61*(DQ9-DQ10)/Inputs!B13/12","v":{"v":1114444.0953815638,"d":"$1,114,444"}},{"$f":"DR10+'(Other Computations)'!B61*(DR9-DR10)/Inputs!B13/12","v":{"v":1113891.435066536,"d":"$1,113,891"}},{"$f":"DS10+'(Other Computations)'!B61*(DS9-DS10)/Inputs!B13/12","v":{"v":1113447.6614906818,"d":"$1,113,448"}},{"$f":"DT10+'(Other Computations)'!B61*(DT9-DT10)/Inputs!B13/12","v":{"v":1112902.1296301703,"d":"$1,112,902"}},{"$f":"DU10+'(Other Computations)'!B61*(DU9-DU10)/Inputs!B13/12","v":{"v":1112392.6687913812,"d":"$1,112,393"}},{"$f":"DV10+'(Other Computations)'!B61*(DV9-DV10)/Inputs!B13/12","v":{"v":1111979.3225955067,"d":"$1,111,979"}},{"$f":"DW10+'(Other Computations)'!B61*(DW9-DW10)/Inputs!B13/12","v":{"v":1111653.2800779326,"d":"$1,111,653"}},{"$f":"DX10+'(Other Computations)'!B61*(DX9-DX10)/Inputs!B13/12","v":{"v":1111078.541336233,"d":"$1,111,079"}},{"$f":"DY10+'(Other Computations)'!B61*(DY9-DY10)/Inputs!B13/12","v":{"v":1110563.3581970942,"d":"$1,110,563"}},{"$f":"SUM(DO10:DZ10)","v":{"v":13358602.50059568,"d":"$13,358,603"}},{"$f":"DZ10+'(Other Computations)'!B61*(DZ9-DZ10)/Inputs!B13/12","v":{"v":1110014.078415485,"d":"$1,110,014"}},{"$f":"EB10+'(Other Computations)'!B61*(EB9-EB10)/Inputs!B13/12","v":{"v":1109632.1259402959,"d":"$1,109,632"}},{"$f":"EC10+'(Other Computations)'!B61*(EC9-EC10)/Inputs!B13/12","v":{"v":1109090.696406408,"d":"$1,109,091"}},{"$f":"ED10+'(Other Computations)'!B61*(ED9-ED10)/Inputs!B13/12","v":{"v":1108619.1963260113,"d":"$1,108,619"}},{"$f":"EE10+'(Other Computations)'!B61*(EE9-EE10)/Inputs!B13/12","v":{"v":1108178.136450475,"d":"$1,108,178"}},{"$f":"EF10+'(Other Computations)'!B61*(EF9-EF10)/Inputs!B13/12","v":{"v":1107641.1919311248,"d":"$1,107,641"}},{"$f":"EG10+'(Other Computations)'!B61*(EG9-EG10)/Inputs!B13/12","v":{"v":1107038.9229750135,"d":"$1,107,039"}},{"$f":"EH10+'(Other Computations)'!B61*(EH9-EH10)/Inputs!B13/12","v":{"v":1106455.5266111442,"d":"$1,106,456"}},{"$f":"EI10+'(Other Computations)'!B61*(EI9-EI10)/Inputs!B13/12","v":{"v":1106026.7898789865,"d":"$1,106,027"}},{"$f":"EJ10+'(Other Computations)'!B61*(EJ9-EJ10)/Inputs!B13/12","v":{"v":1105610.5596136574,"d":"$1,105,611"}},{"$f":"EK10+'(Other Computations)'!B61*(EK9-EK10)/Inputs!B13/12","v":{"v":1105139.6342700764,"d":"$1,105,140"}},{"$f":"EL10+'(Other Computations)'!B61*(EL9-EL10)/Inputs!B13/12","v":{"v":1104750.992326255,"d":"$1,104,751"}},{"$f":"SUM(EB10:EM10)","v":{"v":13288197.851144932,"d":"$13,288,198"}}]
[{"$f":"Labels!B34","v":"Short Expected Demand"},{"$f":"'(Other Computations)'!B8+'(Other Computations)'!B61*0/Inputs!B14/12","v":{"v":1166666.6666666667,"d":"$1,166,667"}},{"$f":"B11+'(Other Computations)'!B61*(B9-B11)/Inputs!B14/12","v":{"v":1163444.5721965926,"d":"$1,163,445"}},{"$f":"C11+'(Other Computations)'!B61*(C9-C11)/Inputs!B14/12","v":{"v":1160996.3842534362,"d":"$1,160,996"}},{"$f":"D11+'(Other Computations)'!B61*(D9-D11)/Inputs!B14/12","v":{"v":1158462.126078825,"d":"$1,158,462"}},{"$f":"E11+'(Other Computations)'!B61*(E9-E11)/Inputs!B14/12","v":{"v":1155627.6166477022,"d":"$1,155,628"}},{"$f":"F11+'(Other Computations)'!B61*(F9-F11)/Inputs!B14/12","v":{"v":1153376.7011394664,"d":"$1,153,377"}},{"$f":"G11+'(Other Computations)'!B61*(G9-G11)/Inputs!B14/12","v":{"v":1151175.2535257663,"d":"$1,151,175"}},{"$f":"H11+'(Other Computations)'!B61*(H9-H11)/Inputs!B14/12","v":{"v":1148967.7621014325,"d":"$1,148,968"}},{"$f":"I11+'(Other Computations)'!B61*(I9-I11)/Inputs!B14/12","v":{"v":1146902.4143997196,"d":"$1,146,902"}},{"$f":"J11+'(Other Computations)'!B61*(J9-J11)/Inputs!B14/12","v":{"v":1144187.5980149272,"d":"$1,144,188"}},{"$f":"K11+'(Other Computations)'!B61*(K9-K11)/Inputs!B14/12","v":{"v":1141294.749976172,"d":"$1,141,295"}},{"$f":"L11+'(Other Computations)'!B61*(L9-L11)/Inputs!B14/12","v":{"v":1138710.3514911933,"d":"$1,138,710"}},{"$f":"SUM(B11:M11)","v":{"v":13829812.1964919,"d":"$13,829,812"}},{"$f":"M11+'(Other Computations)'!B61*(M9-M11)/Inputs!B14/12","v":{"v":1136068.0600093727,"d":"$1,136,068"}},{"$f":"O11+'(Other Computations)'!B61*(O9-O11)/Inputs!B14/12","v":{"v":1133663.2239847379,"d":"$1,133,663"}},{"$f":"P11+'(Other Computations)'!B61*(P9-P11)/Inputs!B14/12","v":{"v":1131722.848499137,"d":"$1,131,723"}},{"$f":"Q11+'(Other Computations)'!B61*(Q9-Q11)/Inputs!B14/12","v":{"v":1129755.1692705222,"d":"$1,129,755"}},{"$f":"R11+'(Other Computations)'!B61*(R9-R11)/Inputs!B14/12","v":{"v":1127687.1817601582,"d":"$1,127,687"}},{"$f":"S11+'(Other Computations)'!B61*(S9-S11)/Inputs!B14/12","v":{"v":1125457.5647085607,"d":"$1,125,458"}},{"$f":"T11+'(Other Computations)'!B61*(T9-T11)/Inputs!B14/12","v":{"v":1123513.8902448737,"d":"$1,123,514"}},{"$f":"U11+'(Other Computations)'!B61*(U9-U11)/Inputs!B14/12","v":{"v":1121104.2287659207,"d":"$1,121,104"}},{"$f":"V11+'(Other Computations)'!B61*(V9-V11)/Inputs!B14/12","v":{"v":1119226.1715464997,"d":"$1,119,226"}},{"$f":"W11+'(Other Computations)'!B61*(W9-W11)/Inputs!B14/12","v":{"v":1117533.3750274365,"d":"$1,117,533"}},{"$f":"X11+'(Other Computations)'!B61*(X9-X11)/Inputs!B14/12","v":{"v":1115658.0626456516,"d":"$1,115,658"}},{"$f":"Y11+'(Other Computations)'!B61*(Y9-Y11)/Inputs!B14/12","v":{"v":1113433.3308517116,"d":"$1,113,433"}},{"$f":"SUM(O11:Z11)","v":{"v":13494823.107314583,"d":"$13,494,823"}},{"$f":"Z11+'(Other Computations)'!B61*(Z9-Z11)/Inputs!B14/12","v":{"v":1110529.6174097254,"d":"$1,110,530"}},{"$f":"AB11+'(Other Computations)'!B61*(AB9-AB11)/Inputs!B14/12","v":{"v":1107596.9303575426,"d":"$1,107,597"}},{"$f":"AC11+'(Other Computations)'!B61*(AC9-AC11)/Inputs!B14/12","v":{"v":1105423.3938038703,"d":"$1,105,423"}},{"$f":"AD11+'(Other Computations)'!B61*(AD9-AD11)/Inputs!B14/12","v":{"v":1103469.9020181457,"d":"$1,103,470"}},{"$f":"AE11+'(Other Computations)'!B61*(AE9-AE11)/Inputs!B14/12","v":{"v":1101783.568857695,"d":"$1,101,784"}},{"$f":"AF11+'(Other Computations)'!B61*(AF9-AF11)/Inputs!B14/12","v":{"v":1099405.7529736385,"d":"$1,099,406"}},{"$f":"AG11+'(Other Computations)'!B61*(AG9-AG11)/Inputs!B14/12","v":{"v":1097609.9662896276,"d":"$1,097,610"}},{"$f":"AH11+'(Other Computations)'!B61*(AH9-AH11)/Inputs!B14/12","v":{"v":1095795.8997862348,"d":"$1,095,796"}},{"$f":"AI11+'(Other Computations)'!B61*(AI9-AI11)/Inputs!B14/12","v":{"v":1093257.898535789,"d":"$1,093,258"}},{"$f":"AJ11+'(Other Computations)'!B61*(AJ9-AJ11)/Inputs!B14/12","v":{"v":1091117.4150114749,"d":"$1,091,117"}},{"$f":"AK11+'(Other Computations)'!B61*(AK9-AK11)/Inputs!B14/12","v":{"v":1089154.6014088222,"d":"$1,089,155"}},{"$f":"AL11+'(Other Computations)'!B61*(AL9-AL11)/Inputs!B14/12","v":{"v":1087252.246169636,"d":"$1,087,252"}},{"$f":"SUM(AB11:AM11)","v":{"v":13182397.192622202,"d":"$13,182,397"}},{"$f":"AM11+'(Other Computations)'!B61*(AM9-AM11)/Inputs!B14/12","v":{"v":1085048.539004567,"d":"$1,085,049"}},{"$f":"AO11+'(Other Computations)'!B61*(AO9-AO11)/Inputs!B14/12","v":{"v":1082670.8511277987,"d":"$1,082,671"}},{"$f":"AP11+'(Other Computations)'!B61*(AP9-AP11)/Inputs!B14/12","v":{"v":1080669.209502005,"d":"$1,080,669"}},{"$f":"AQ11+'(Other Computations)'!B61*(AQ9-AQ11)/Inputs!B14/12","v":{"v":1079160.7320387992,"d":"$1,079,161"}},{"$f":"AR11+'(Other Computations)'!B61*(AR9-AR11)/Inputs!B14/12","v":{"v":1077636.8618453734,"d":"$1,077,637"}},{"$f":"AS11+'(Other Computations)'!B61*(AS9-AS11)/Inputs!B14/12","v":{"v":1076478.206069596,"d":"$1,076,478"}},{"$f":"AT11+'(Other Computations)'!B61*(AT9-AT11)/Inputs!B14/12","v":{"v":1074322.482874216,"d":"$1,074,322"}},{"$f":"AU11+'(Other Computations)'!B61*(AU9-AU11)/Inputs!B14/12","v":{"v":1072427.535700136,"d":"$1,072,428"}},{"$f":"AV11+'(Other Computations)'!B61*(AV9-AV11)/Inputs!B14/12","v":{"v":1070535.0467226617,"d":"$1,070,535"}},{"$f":"AW11+'(Other Computations)'!B61*(AW9-AW11)/Inputs!B14/12","v":{"v":1068465.926755612,"d":"$1,068,466"}},{"$f":"AX11+'(Other Computations)'!B61*(AX9-AX11)/Inputs!B14/12","v":{"v":1066247.7335421373,"d":"$1,066,248"}},{"$f":"AY11+'(Other Computations)'!B61*(AY9-AY11)/Inputs!B14/12","v":{"v":1064158.4456365597,"d":"$1,064,158"}},{"$f":"SUM(AO11:AZ11)","v":{"v":12897821.570819462,"d":"$12,897,822"}},{"$f":"AZ11+'(Other Computations)'!B61*(AZ9-AZ11)/Inputs!B14/12","v":{"v":1061820.4612154427,"d":"$1,061,820"}},{"$f":"BB11+'(Other Computations)'!B61*(BB9-BB11)/Inputs!B14/12","v":{"v":1059931.254791589,"d":"$1,059,931"}},{"$f":"BC11+'(Other Computations)'!B61*(BC9-BC11)/Inputs!B14/12","v":{"v":1058025.775117963,"d":"$1,058,026"}},{"$f":"BD11+'(Other Computations)'!B61*(BD9-BD11)/Inputs!B14/12","v":{"v":1056558.3460832636,"d":"$1,056,558"}},{"$f":"BE11+'(Other Computations)'!B61*(BE9-BE11)/Inputs!B14/12","v":{"v":1054766.330565496,"d":"$1,054,766"}},{"$f":"BF11+'(Other Computations)'!B61*(BF9-BF11)/Inputs!B14/12","v":{"v":1053324.927186563,"d":"$1,053,325"}},{"$f":"BG11+'(Other Computations)'!B61*(BG9-BG11)/Inputs!B14/12","v":{"v":1052184.6355375017,"d":"$1,052,185"}},{"$f":"BH11+'(Other Computations)'!B61*(BH9-BH11)/Inputs!B14/12","v":{"v":1050148.7798708775,"d":"$1,050,149"}},{"$f":"BI11+'(Other Computations)'!B61*(BI9-BI11)/Inputs!B14/12","v":{"v":1048529.3381861928,"d":"$1,048,529"}},{"$f":"BJ11+'(Other Computations)'!B61*(BJ9-BJ11)/Inputs!B14/12","v":{"v":1046702.2089604652,"d":"$1,046,702"}},{"$f":"BK11+'(Other Computations)'!B61*(BK9-BK11)/Inputs!B14/12","v":{"v":1044571.3726382928,"d":"$1,044,571"}},{"$f":"BL11+'(Other Computations)'!B61*(BL9-BL11)/Inputs!B14/12","v":{"v":1042815.9805456556,"d":"$1,042,816"}},{"$f":"SUM(BB11:BM11)","v":{"v":12629379.4106993,"d":"$12,629,379"}},{"$f":"BM11+'(Other Computations)'!B61*(BM9-BM11)/Inputs!B14/12","v":{"v":1041549.9405935007,"d":"$1,041,550"}},{"$f":"BO11+'(Other Computations)'!B61*(BO9-BO11)/Inputs!B14/12","v":{"v":1039800.639254323,"d":"$1,039,801"}},{"$f":"BP11+'(Other Computations)'!B61*(BP9-BP11)/Inputs!B14/12","v":{"v":1037614.6605273956,"d":"$1,037,615"}},{"$f":"BQ11+'(Other Computations)'!B61*(BQ9-BQ11)/Inputs!B14/12","v":{"v":1036419.6185376282,"d":"$1,036,420"}},{"$f":"BR11+'(Other Computations)'!B61*(BR9-BR11)/Inputs!B14/12","v":{"v":1035220.7408909565,"d":"$1,035,221"}},{"$f":"BS11+'(Other Computations)'!B61*(BS9-BS11)/Inputs!B14/12","v":{"v":1034268.3253395914,"d":"$1,034,268"}},{"$f":"BT11+'(Other Computations)'!B61*(BT9-BT11)/Inputs!B14/12","v":{"v":1033424.0032146208,"d":"$1,033,424"}},{"$f":"BU11+'(Other Computations)'!B61*(BU9-BU11)/Inputs!B14/12","v":{"v":1032413.9465641382,"d":"$1,032,414"}},{"$f":"BV11+'(Other Computations)'!B61*(BV9-BV11)/Inputs!B14/12","v":{"v":1030608.4220995778,"d":"$1,030,608"}},{"$f":"BW11+'(Other Computations)'!B61*(BW9-BW11)/Inputs!B14/12","v":{"v":1029798.2460658138,"d":"$1,029,798"}},{"$f":"BX11+'(Other Computations)'!B61*(BX9-BX11)/Inputs!B14/12","v":{"v":1028061.8181033647,"d":"$1,028,062"}},{"$f":"BY11+'(Other Computations)'!B61*(BY9-BY11)/Inputs!B14/12","v":{"v":1026091.7713261165,"d":"$1,026,092"}},{"$f":"SUM(BO11:BZ11)","v":{"v":12405272.132517029,"d":"$12,405,272"}},{"$f":"BZ11+'(Other Computations)'!B61*(BZ9-BZ11)/Inputs!B14/12","v":{"v":1023883.2719492213,"d":"$1,023,883"}},{"$f":"CB11+'(Other Computations)'!B61*(CB9-CB11)/Inputs!B14/12","v":{"v":1022483.9447144761,"d":"$1,022,484"}},{"$f":"CC11+'(Other Computations)'!B61*(CC9-CC11)/Inputs!B14/12","v":{"v":1021477.9856314182,"d":"$1,021,478"}},{"$f":"CD11+'(Other Computations)'!B61*(CD9-CD11)/Inputs!B14/12","v":{"v":1020547.8494232915,"d":"$1,020,548"}},{"$f":"CE11+'(Other Computations)'!B61*(CE9-CE11)/Inputs!B14/12","v":{"v":1018415.2518943581,"d":"$1,018,415"}},{"$f":"CF11+'(Other Computations)'!B61*(CF9-CF11)/Inputs!B14/12","v":{"v":1016889.6477700584,"d":"$1,016,890"}},{"$f":"CG11+'(Other Computations)'!B61*(CG9-CG11)/Inputs!B14/12","v":{"v":1015971.4398205276,"d":"$1,015,971"}},{"$f":"CH11+'(Other Computations)'!B61*(CH9-CH11)/Inputs!B14/12","v":{"v":1013847.9176946487,"d":"$1,013,848"}},{"$f":"CI11+'(Other Computations)'!B61*(CI9-CI11)/Inputs!B14/12","v":{"v":1012189.2162891799,"d":"$1,012,189"}},{"$f":"CJ11+'(Other Computations)'!B61*(CJ9-CJ11)/Inputs!B14/12","v":{"v":1011811.2911882952,"d":"$1,011,811"}},{"$f":"CK11+'(Other Computations)'!B61*(CK9-CK11)/Inputs!B14/12","v":{"v":1011336.7631616689,"d":"$1,011,337"}},{"$f":"CL11+'(Other Computations)'!B61*(CL9-CL11)/Inputs!B14/12","v":{"v":1010027.602166671,"d":"$1,010,028"}},{"$f":"SUM(CB11:CM11)","v":{"v":12198882.181703815,"d":"$12,198,882"}},{"$f":"CM11+'(Other Computations)'!B61*(CM9-CM11)/Inputs!B14/12","v":{"v":1009253.7678362161,"d":"$1,009,254"}},{"$f":"CO11+'(Other Computations)'!B61*(CO9-CO11)/Inputs!B14/12","v":{"v":1008847.3530257625,"d":"$1,008,847"}},{"$f":"CP11+'(Other Computations)'!B61*(CP9-CP11)/Inputs!B14/12","v":{"v":1007581.2588221679,"d":"$1,007,581"}},{"$f":"CQ11+'(Other Computations)'!B61*(CQ9-CQ11)/Inputs!B14/12","v":{"v":1006636.3441171915,"d":"$1,006,636"}},{"$f":"CR11+'(Other Computations)'!B61*(CR9-CR11)/Inputs!B14/12","v":{"v":1005795.3715986436,"d":"$1,005,795"}},{"$f":"CS11+'(Other Computations)'!B61*(CS9-CS11)/Inputs!B14/12","v":{"v":1004664.3968075754,"d":"$1,004,664"}},{"$f":"CT11+'(Other Computations)'!B61*(CT9-CT11)/Inputs!B14/12","v":{"v":1003451.550256729,"d":"$1,003,452"}},{"$f":"CU11+'(Other Computations)'!B61*(CU9-CU11)/Inputs!B14/12","v":{"v":1002725.5580381568,"d":"$1,002,726"}},{"$f":"CV11+'(Other Computations)'!B61*(CV9-CV11)/Inputs!B14/12","v":{"v":1001556.6430159066,"d":"$1,001,557"}},{"$f":"CW11+'(Other Computations)'!B61*(CW9-CW11)/Inputs!B14/12","v":{"v":1000350.34483196,"d":"$1,000,350"}},{"$f":"CX11+'(Other Computations)'!B61*(CX9-CX11)/Inputs!B14/12","v":{"v":998622.580111837,"d":"$998,623"}},{"$f":"CY11+'(Other Computations)'!B61*(CY9-CY11)/Inputs!B14/12","v":{"v":996995.7356190698,"d":"$996,996"}},{"$f":"SUM(CO11:CZ11)","v":{"v":12046480.904081216,"d":"$12,046,481"}},{"$f":"CZ11+'(Other Computations)'!B61*(CZ9-CZ11)/Inputs!B14/12","v":{"v":996116.0976333905,"d":"$996,116"}},{"$f":"DB11+'(Other Computations)'!B61*(DB9-DB11)/Inputs!B14/12","v":{"v":995714.0597026853,"d":"$995,714"}},{"$f":"DC11+'(Other Computations)'!B61*(DC9-DC11)/Inputs!B14/12","v":{"v":995108.1979874909,"d":"$995,108"}},{"$f":"DD11+'(Other Computations)'!B61*(DD9-DD11)/Inputs!B14/12","v":{"v":994098.4256838228,"d":"$994,098"}},{"$f":"DE11+'(Other Computations)'!B61*(DE9-DE11)/Inputs!B14/12","v":{"v":993230.9573937763,"d":"$993,231"}},{"$f":"DF11+'(Other Computations)'!B61*(DF9-DF11)/Inputs!B14/12","v":{"v":992301.201931751,"d":"$992,301"}},{"$f":"DG11+'(Other Computations)'!B61*(DG9-DG11)/Inputs!B14/12","v":{"v":990679.0638007048,"d":"$990,679"}},{"$f":"DH11+'(Other Computations)'!B61*(DH9-DH11)/Inputs!B14/12","v":{"v":989015.330060822,"d":"$989,015"}},{"$f":"DI11+'(Other Computations)'!B61*(DI9-DI11)/Inputs!B14/12","v":{"v":988034.4823450734,"d":"$988,034"}},{"$f":"DJ11+'(Other Computations)'!B61*(DJ9-DJ11)/Inputs!B14/12","v":{"v":986983.3037780266,"d":"$986,983"}},{"$f":"DK11+'(Other Computations)'!B61*(DK9-DK11)/Inputs!B14/12","v":{"v":985345.6155823577,"d":"$985,346"}},{"$f":"DL11+'(Other Computations)'!B61*(DL9-DL11)/Inputs!B14/12","v":{"v":984416.5063716624,"d":"$984,417"}},{"$f":"SUM(DB11:DM11)","v":{"v":11891043.242271563,"d":"$11,891,043"}},{"$f":"DM11+'(Other Computations)'!B61*(DM9-DM11)/Inputs!B14/12","v":{"v":983524.4876886106,"d":"$983,524"}},{"$f":"DO11+'(Other Computations)'!B61*(DO9-DO11)/Inputs!B14/12","v":{"v":982185.2929613267,"d":"$982,185"}},{"$f":"DP11+'(Other Computations)'!B61*(DP9-DP11)/Inputs!B14/12","v":{"v":981184.6660616372,"d":"$981,185"}},{"$f":"DQ11+'(Other Computations)'!B61*(DQ9-DQ11)/Inputs!B14/12","v":{"v":980166.6223587964,"d":"$980,167"}},{"$f":"DR11+'(Other Computations)'!B61*(DR9-DR11)/Inputs!B14/12","v":{"v":978715.625371724,"d":"$978,716"}},{"$f":"DS11+'(Other Computations)'!B61*(DS9-DS11)/Inputs!B14/12","v":{"v":977930.4257179147,"d":"$977,930"}},{"$f":"DT11+'(Other Computations)'!B61*(DT9-DT11)/Inputs!B14/12","v":{"v":976539.4183850223,"d":"$976,539"}},{"$f":"DU11+'(Other Computations)'!B61*(DU9-DU11)/Inputs!B14/12","v":{"v":975376.5798973595,"d":"$975,377"}},{"$f":"DV11+'(Other Computations)'!B61*(DV9-DV11)/Inputs!B14/12","v":{"v":974799.5039567511,"d":"$974,800"}},{"$f":"DW11+'(Other Computations)'!B61*(DW9-DW11)/Inputs!B14/12","v":{"v":974748.5241101785,"d":"$974,749"}},{"$f":"DX11+'(Other Computations)'!B61*(DX9-DX11)/Inputs!B14/12","v":{"v":973201.546603978,"d":"$973,202"}},{"$f":"DY11+'(Other Computations)'!B61*(DY9-DY11)/Inputs!B14/12","v":{"v":972025.4060293146,"d":"$972,025"}},{"$f":"SUM(DO11:DZ11)","v":{"v":11730398.099142615,"d":"$11,730,398"}},{"$f":"DZ11+'(Other Computations)'!B61*(DZ9-DZ11)/Inputs!B14/12","v":{"v":970653.8655642127,"d":"$970,654"}},{"$f":"EB11+'(Other Computations)'!B61*(EB9-EB11)/Inputs!B14/12","v":{"v":970297.7092249009,"d":"$970,298"}},{"$f":"EC11+'(Other Computations)'!B61*(EC9-EC11)/Inputs!B14/12","v":{"v":968984.3322537321,"d":"$968,984"}},{"$f":"ED11+'(Other Computations)'!B61*(ED9-ED11)/Inputs!B14/12","v":{"v":968101.2534956955,"d":"$968,101"}},{"$f":"EE11+'(Other Computations)'!B61*(EE9-EE11)/Inputs!B14/12","v":{"v":967406.5323373436,"d":"$967,407"}},{"$f":"EF11+'(Other Computations)'!B61*(EF9-EF11)/Inputs!B14/12","v":{"v":966140.0263894803,"d":"$966,140"}},{"$f":"EG11+'(Other Computations)'!B61*(EG9-EG11)/Inputs!B14/12","v":{"v":964491.706618669,"d":"$964,492"}},{"$f":"EH11+'(Other Computations)'!B61*(EH9-EH11)/Inputs!B14/12","v":{"v":962971.150884847,"d":"$962,971"}},{"$f":"EI11+'(Other Computations)'!B61*(EI9-EI11)/Inputs!B14/12","v":{"v":962391.569043656,"d":"$962,392"}},{"$f":"EJ11+'(Other Computations)'!B61*(EJ9-EJ11)/Inputs!B14/12","v":{"v":961889.1210743946,"d":"$961,889"}},{"$f":"EK11+'(Other Computations)'!B61*(EK9-EK11)/Inputs!B14/12","v":{"v":961059.7001037309,"d":"$961,060"}},{"$f":"EL11+'(Other Computations)'!B61*(EL9-EL11)/Inputs!B14/12","v":{"v":960728.9586375576,"d":"$960,729"}},{"$f":"SUM(EB11:EM11)","v":{"v":11585115.925628223,"d":"$11,585,116"}}]
[{"$f":"Labels!B24","v":"Consumption"},{"$f":"Inputs!B34*'(Other Computations)'!B56","v":{"v":728000,"d":"$728,000"}},{"$f":"Inputs!B34*'(Other Computations)'!C56","v":{"v":727844.923363148,"d":"$727,845"}},{"$f":"Inputs!B34*'(Other Computations)'!D56","v":{"v":727702.906560612,"d":"$727,703"}},{"$f":"Inputs!B34*'(Other Computations)'!E56","v":{"v":727423.0076094503,"d":"$727,423"}},{"$f":"Inputs!B34*'(Other Computations)'!F56","v":{"v":727148.5666958909,"d":"$727,149"}},{"$f":"Inputs!B34*'(Other Computations)'!G56","v":{"v":726845.7684175469,"d":"$726,846"}},{"$f":"Inputs!B34*'(Other Computations)'!H56","v":{"v":726561.7205516795,"d":"$726,562"}},{"$f":"Inputs!B34*'(Other Computations)'!I56","v":{"v":726375.8326587789,"d":"$726,376"}},{"$f":"Inputs!B34*'(Other Computations)'!J56","v":{"v":726171.8647239559,"d":"$726,172"}},{"$f":"Inputs!B34*'(Other Computations)'!K56","v":{"v":725920.6934079645,"d":"$725,921"}},{"$f":"Inputs!B34*'(Other Computations)'!L56","v":{"v":725647.3262439743,"d":"$725,647"}},{"$f":"Inputs!B34*'(Other Computations)'!M56","v":{"v":725410.9855274322,"d":"$725,411"}},{"$f":"SUM(B12:M12)","v":{"v":8721053.595760435,"d":"$8,721,054"}},{"$f":"Inputs!B34*'(Other Computations)'!O56","v":{"v":725197.6350194977,"d":"$725,198"}},{"$f":"Inputs!B34*'(Other Computations)'!P56","v":{"v":724958.9118716703,"d":"$724,959"}},{"$f":"Inputs!B34*'(Other Computations)'!Q56","v":{"v":724773.7294663532,"d":"$724,774"}},{"$f":"Inputs!B34*'(Other Computations)'!R56","v":{"v":724557.4874496744,"d":"$724,557"}},{"$f":"Inputs!B34*'(Other Computations)'!S56","v":{"v":724407.0016381785,"d":"$724,407"}},{"$f":"Inputs!B34*'(Other Computations)'!T56","v":{"v":724147.6201037939,"d":"$724,148"}},{"$f":"Inputs!B34*'(Other Computations)'!U56","v":{"v":723952.2688616611,"d":"$723,952"}},{"$f":"Inputs!B34*'(Other Computations)'!V56","v":{"v":723692.6126602587,"d":"$723,693"}},{"$f":"Inputs!B34*'(Other Computations)'!W56","v":{"v":723481.8389198148,"d":"$723,482"}},{"$f":"Inputs!B34*'(Other Computations)'!X56","v":{"v":723159.6163913733,"d":"$723,160"}},{"$f":"Inputs!B34*'(Other Computations)'!Y56","v":{"v":722883.4707200979,"d":"$722,883"}},{"$f":"Inputs!B34*'(Other Computations)'!Z56","v":{"v":722675.2891831803,"d":"$722,675"}},{"$f":"SUM(O12:Z12)","v":{"v":8687887.482285554,"d":"$8,687,887"}},{"$f":"Inputs!B34*'(Other Computations)'!AB56","v":{"v":722454.652348609,"d":"$722,455"}},{"$f":"Inputs!B34*'(Other Computations)'!AC56","v":{"v":722190.9498535921,"d":"$722,191"}},{"$f":"Inputs!B34*'(Other Computations)'!AD56","v":{"v":721983.4433641289,"d":"$721,983"}},{"$f":"Inputs!B34*'(Other Computations)'!AE56","v":{"v":721768.1872905176,"d":"$721,768"}},{"$f":"Inputs!B34*'(Other Computations)'!AF56","v":{"v":721509.2787719588,"d":"$721,509"}},{"$f":"Inputs!B34*'(Other Computations)'!AG56","v":{"v":721341.5901720219,"d":"$721,342"}},{"$f":"Inputs!B34*'(Other Computations)'!AH56","v":{"v":721064.9520104721,"d":"$721,065"}},{"$f":"Inputs!B34*'(Other Computations)'!AI56","v":{"v":720796.0420852659,"d":"$720,796"}},{"$f":"Inputs!B34*'(Other Computations)'!AJ56","v":{"v":720487.1781129792,"d":"$720,487"}},{"$f":"Inputs!B34*'(Other Computations)'!AK56","v":{"v":720180.9194732538,"d":"$720,181"}},{"$f":"Inputs!B34*'(Other Computations)'!AL56","v":{"v":719944.807941858,"d":"$719,945"}},{"$f":"Inputs!B34*'(Other Computations)'!AM56","v":{"v":719690.5400437259,"d":"$719,691"}},{"$f":"SUM(AB12:AM12)","v":{"v":8653412.541468384,"d":"$8,653,413"}},{"$f":"Inputs!B34*'(Other Computations)'!AO56","v":{"v":719374.1443523165,"d":"$719,374"}},{"$f":"Inputs!B34*'(Other Computations)'!AP56","v":{"v":719053.5997732138,"d":"$719,054"}},{"$f":"Inputs!B34*'(Other Computations)'!AQ56","v":{"v":718748.3640193401,"d":"$718,748"}},{"$f":"Inputs!B34*'(Other Computations)'!AR56","v":{"v":718466.4816273618,"d":"$718,466"}},{"$f":"Inputs!B34*'(Other Computations)'!AS56","v":{"v":718127.8166706333,"d":"$718,128"}},{"$f":"Inputs!B34*'(Other Computations)'!AT56","v":{"v":717806.0121585673,"d":"$717,806"}},{"$f":"Inputs!B34*'(Other Computations)'!AU56","v":{"v":717468.956650085,"d":"$717,469"}},{"$f":"Inputs!B34*'(Other Computations)'!AV56","v":{"v":717210.1444516629,"d":"$717,210"}},{"$f":"Inputs!B34*'(Other Computations)'!AW56","v":{"v":716974.3373387259,"d":"$716,974"}},{"$f":"Inputs!B34*'(Other Computations)'!AX56","v":{"v":716741.1574107857,"d":"$716,741"}},{"$f":"Inputs!B34*'(Other Computations)'!AY56","v":{"v":716488.2662787194,"d":"$716,488"}},{"$f":"Inputs!B34*'(Other Computations)'!AZ56","v":{"v":716226.9206227752,"d":"$716,227"}},{"$f":"SUM(AO12:AZ12)","v":{"v":8612686.201354187,"d":"$8,612,686"}},{"$f":"Inputs!B34*'(Other Computations)'!BB56","v":{"v":715966.3511905096,"d":"$715,966"}},{"$f":"Inputs!B34*'(Other Computations)'!BC56","v":{"v":715661.0818001889,"d":"$715,661"}},{"$f":"Inputs!B34*'(Other Computations)'!BD56","v":{"v":715387.1485532977,"d":"$715,387"}},{"$f":"Inputs!B34*'(Other Computations)'!BE56","v":{"v":715167.1011678838,"d":"$715,167"}},{"$f":"Inputs!B34*'(Other Computations)'!BF56","v":{"v":714873.6197788029,"d":"$714,874"}},{"$f":"Inputs!B34*'(Other Computations)'!BG56","v":{"v":714538.6153069813,"d":"$714,539"}},{"$f":"Inputs!B34*'(Other Computations)'!BH56","v":{"v":714232.4501851046,"d":"$714,232"}},{"$f":"Inputs!B34*'(Other Computations)'!BI56","v":{"v":713899.6889349525,"d":"$713,900"}},{"$f":"Inputs!B34*'(Other Computations)'!BJ56","v":{"v":713541.8191133849,"d":"$713,542"}},{"$f":"Inputs!B34*'(Other Computations)'!BK56","v":{"v":713266.5992940143,"d":"$713,267"}},{"$f":"Inputs!B34*'(Other Computations)'!BL56","v":{"v":713011.1620548072,"d":"$713,011"}},{"$f":"Inputs!B34*'(Other Computations)'!BM56","v":{"v":712716.8410994391,"d":"$712,717"}},{"$f":"SUM(BB12:BM12)","v":{"v":8572262.478479367,"d":"$8,572,262"}},{"$f":"Inputs!B34*'(Other Computations)'!BO56","v":{"v":712340.6960566513,"d":"$712,341"}},{"$f":"Inputs!B34*'(Other Computations)'!BP56","v":{"v":711988.712147469,"d":"$711,989"}},{"$f":"Inputs!B34*'(Other Computations)'!BQ56","v":{"v":711662.0362083998,"d":"$711,662"}},{"$f":"Inputs!B34*'(Other Computations)'!BR56","v":{"v":711342.999671499,"d":"$711,343"}},{"$f":"Inputs!B34*'(Other Computations)'!BS56","v":{"v":711110.4996233503,"d":"$711,110"}},{"$f":"Inputs!B34*'(Other Computations)'!BT56","v":{"v":710867.3936962682,"d":"$710,867"}},{"$f":"Inputs!B34*'(Other Computations)'!BU56","v":{"v":710540.9492117306,"d":"$710,541"}},{"$f":"Inputs!B34*'(Other Computations)'!BV56","v":{"v":710183.5006892348,"d":"$710,184"}},{"$f":"Inputs!B34*'(Other Computations)'!BW56","v":{"v":709869.3028320605,"d":"$709,869"}},{"$f":"Inputs!B34*'(Other Computations)'!BX56","v":{"v":709574.7367241038,"d":"$709,575"}},{"$f":"Inputs!B34*'(Other Computations)'!BY56","v":{"v":709263.5610354119,"d":"$709,264"}},{"$f":"Inputs!B34*'(Other Computations)'!BZ56","v":{"v":708994.580345005,"d":"$708,995"}},{"$f":"SUM(BO12:BZ12)","v":{"v":8527738.968241185,"d":"$8,527,739"}},{"$f":"Inputs!B34*'(Other Computations)'!CB56","v":{"v":708701.2537419929,"d":"$708,701"}},{"$f":"Inputs!B34*'(Other Computations)'!CC56","v":{"v":708379.0998866942,"d":"$708,379"}},{"$f":"Inputs!B34*'(Other Computations)'!CD56","v":{"v":708017.0531024811,"d":"$708,017"}},{"$f":"Inputs!B34*'(Other Computations)'!CE56","v":{"v":707724.8702329656,"d":"$707,725"}},{"$f":"Inputs!B34*'(Other Computations)'!CF56","v":{"v":707408.6630111727,"d":"$707,409"}},{"$f":"Inputs!B34*'(Other Computations)'!CG56","v":{"v":707013.2986662912,"d":"$707,013"}},{"$f":"Inputs!B34*'(Other Computations)'!CH56","v":{"v":706687.975592156,"d":"$706,688"}},{"$f":"Inputs!B34*'(Other Computations)'!CI56","v":{"v":706289.7168379071,"d":"$706,290"}},{"$f":"Inputs!B34*'(Other Computations)'!CJ56","v":{"v":705886.4162804983,"d":"$705,886"}},{"$f":"Inputs!B34*'(Other Computations)'!CK56","v":{"v":705563.1523215732,"d":"$705,563"}},{"$f":"Inputs!B34*'(Other Computations)'!CL56","v":{"v":705285.2935246137,"d":"$705,285"}},{"$f":"Inputs!B34*'(Other Computations)'!CM56","v":{"v":704966.8789714328,"d":"$704,967"}},{"$f":"SUM(CB12:CM12)","v":{"v":8481923.672169778,"d":"$8,481,924"}},{"$f":"Inputs!B34*'(Other Computations)'!CO56","v":{"v":704571.8161632078,"d":"$704,572"}},{"$f":"Inputs!B34*'(Other Computations)'!CP56","v":{"v":704221.1338431358,"d":"$704,221"}},{"$f":"Inputs!B34*'(Other Computations)'!CQ56","v":{"v":703922.8692079281,"d":"$703,923"}},{"$f":"Inputs!B34*'(Other Computations)'!CR56","v":{"v":703583.8408971478,"d":"$703,584"}},{"$f":"Inputs!B34*'(Other Computations)'!CS56","v":{"v":703264.5514301265,"d":"$703,265"}},{"$f":"Inputs!B34*'(Other Computations)'!CT56","v":{"v":703007.1792785071,"d":"$703,007"}},{"$f":"Inputs!B34*'(Other Computations)'!CU56","v":{"v":702681.3034962629,"d":"$702,681"}},{"$f":"Inputs!B34*'(Other Computations)'!CV56","v":{"v":702338.9746307961,"d":"$702,339"}},{"$f":"Inputs!B34*'(Other Computations)'!CW56","v":{"v":702031.1759666298,"d":"$702,031"}},{"$f":"Inputs!B34*'(Other Computations)'!CX56","v":{"v":701712.6251729149,"d":"$701,713"}},{"$f":"Inputs!B34*'(Other Computations)'!CY56","v":{"v":701457.6933118486,"d":"$701,458"}},{"$f":"Inputs!B34*'(Other Computations)'!CZ56","v":{"v":701189.8473065868,"d":"$701,190"}},{"$f":"SUM(CO12:CZ12)","v":{"v":8433983.010705091,"d":"$8,433,983"}},{"$f":"Inputs!B34*'(Other Computations)'!DB56","v":{"v":700853.8927580947,"d":"$700,854"}},{"$f":"Inputs!B34*'(Other Computations)'!DC56","v":{"v":700447.4420776211,"d":"$700,447"}},{"$f":"Inputs!B34*'(Other Computations)'!DD56","v":{"v":700113.8035158197,"d":"$700,114"}},{"$f":"Inputs!B34*'(Other Computations)'!DE56","v":{"v":699800.6824628895,"d":"$699,801"}},{"$f":"Inputs!B34*'(Other Computations)'!DF56","v":{"v":699382.5249650629,"d":"$699,383"}},{"$f":"Inputs!B34*'(Other Computations)'!DG56","v":{"v":699059.6067469703,"d":"$699,060"}},{"$f":"Inputs!B34*'(Other Computations)'!DH56","v":{"v":698741.9937136782,"d":"$698,742"}},{"$f":"Inputs!B34*'(Other Computations)'!DI56","v":{"v":698344.2708781488,"d":"$698,344"}},{"$f":"Inputs!B34*'(Other Computations)'!DJ56","v":{"v":698043.8809195101,"d":"$698,044"}},{"$f":"Inputs!B34*'(Other Computations)'!DK56","v":{"v":697749.4886266248,"d":"$697,749"}},{"$f":"Inputs!B34*'(Other Computations)'!DL56","v":{"v":697329.5498318786,"d":"$697,330"}},{"$f":"Inputs!B34*'(Other Computations)'!DM56","v":{"v":696993.0453325752,"d":"$696,993"}},{"$f":"SUM(DB12:DM12)","v":{"v":8386860.181828874,"d":"$8,386,860"}},{"$f":"Inputs!B34*'(Other Computations)'!DO56","v":{"v":696702.7525996981,"d":"$696,703"}},{"$f":"Inputs!B34*'(Other Computations)'!DP56","v":{"v":696332.7737320825,"d":"$696,333"}},{"$f":"Inputs!B34*'(Other Computations)'!DQ56","v":{"v":696037.9192966342,"d":"$696,038"}},{"$f":"Inputs!B34*'(Other Computations)'!DR56","v":{"v":695731.7165846571,"d":"$695,732"}},{"$f":"Inputs!B34*'(Other Computations)'!DS56","v":{"v":695327.9260865292,"d":"$695,328"}},{"$f":"Inputs!B34*'(Other Computations)'!DT56","v":{"v":695052.7655271867,"d":"$695,053"}},{"$f":"Inputs!B34*'(Other Computations)'!DU56","v":{"v":694648.4069324671,"d":"$694,648"}},{"$f":"Inputs!B34*'(Other Computations)'!DV56","v":{"v":694308.4080907186,"d":"$694,308"}},{"$f":"Inputs!B34*'(Other Computations)'!DW56","v":{"v":693907.0058032225,"d":"$693,907"}},{"$f":"Inputs!B34*'(Other Computations)'!DX56","v":{"v":693610.9670794647,"d":"$693,611"}},{"$f":"Inputs!B34*'(Other Computations)'!DY56","v":{"v":693344.9941048202,"d":"$693,345"}},{"$f":"Inputs!B34*'(Other Computations)'!DZ56","v":{"v":692935.838373661,"d":"$692,936"}},{"$f":"SUM(DO12:DZ12)","v":{"v":8337941.4742111415,"d":"$8,337,941"}},{"$f":"Inputs!B34*'(Other Computations)'!EB56","v":{"v":692630.701182148,"d":"$692,631"}},{"$f":"Inputs!B34*'(Other Computations)'!EC56","v":{"v":692312.8088013808,"d":"$692,313"}},{"$f":"Inputs!B34*'(Other Computations)'!ED56","v":{"v":691955.7071920014,"d":"$691,956"}},{"$f":"Inputs!B34*'(Other Computations)'!EE56","v":{"v":691606.2201212383,"d":"$691,606"}},{"$f":"Inputs!B34*'(Other Computations)'!EF56","v":{"v":691290.4236246423,"d":"$691,290"}},{"$f":"Inputs!B34*'(Other Computations)'!EG56","v":{"v":690979.6718568801,"d":"$690,980"}},{"$f":"Inputs!B34*'(Other Computations)'!EH56","v":{"v":690628.0286268966,"d":"$690,628"}},{"$f":"Inputs!B34*'(Other Computations)'!EI56","v":{"v":690297.5651369528,"d":"$690,298"}},{"$f":"Inputs!B34*'(Other Computations)'!EJ56","v":{"v":690008.0951477321,"d":"$690,008"}},{"$f":"Inputs!B34*'(Other Computations)'!EK56","v":{"v":689598.4549267686,"d":"$689,598"}},{"$f":"Inputs!B34*'(Other Computations)'!EL56","v":{"v":689279.0086408542,"d":"$689,279"}},{"$f":"Inputs!B34*'(Other Computations)'!EM56","v":{"v":689000.7692161127,"d":"$689,001"}},{"$f":"SUM(EB12:EM12)","v":{"v":8289587.454473607,"d":"$8,289,587"}}]
[{"$f":"Labels!B74","v":"Aggregate Demand Shock"},{"$f":"NORMINV(RAND()*(1-2*Inputs!B58)+Inputs!B58,0,'(Other Computations)'!B208)","v":{"v":-28712.816261575543,"d":"($28,713)"}},{"$f":"NORMINV(RAND()*(1-2*Inputs!B58)+Inputs!B58,0,'(Other Computations)'!B208)","v":{"v":24384.413718131396,"d":"$24,384"}},{"$f":"NORMINV(RAND()*(1-2*Inputs!B58)+Inputs!B58,0,'(Other Computations)'!B208)","v":{"v":16210.58819672658,"d":"$16,211"}},{"$f":"NORMINV(RAND()*(1-2*Inputs!B58)+Inputs!B58,0,'(Other Computations)'!B208)","v":{"v":-7323.255715357175,"d":"($7,323)"}},{"$f":"NORMINV(RAND()*(1-2*Inputs!B58)+Inputs!B58,0,'(Other Computations)'!B208)","v":{"v":32511.96289862017,"d":"$32,512"}},{"$f":"NORMINV(RAND()*(1-2*Inputs!B58)+Inputs!B58,0,'(Other Computations)'!B208)","v":{"v":34417.97416890158,"d":"$34,418"}},{"$f":"NORMINV(RAND()*(1-2*Inputs!B58)+Inputs!B58,0,'(Other Computations)'!B208)","v":{"v":32348.874196227494,"d":"$32,349"}},{"$f":"NORMINV(RAND()*(1-2*Inputs!B58)+Inputs!B58,0,'(Other Computations)'!B208)","v":{"v":40843.43049231337,"d":"$40,843"}},{"$f":"NORMINV(RAND()*(1-2*Inputs!B58)+Inputs!B58,0,'(Other Computations)'!B208)","v":{"v":-7519.870182025462,"d":"($7,520)"}},{"$f":"NORMINV(RAND()*(1-2*Inputs!B58)+Inputs!B58,0,'(Other Computations)'!B208)","v":{"v":-22454.723559780447,"d":"($22,455)"}},{"$f":"NORMINV(RAND()*(1-2*Inputs!B58)+Inputs!B58,0,'(Other Computations)'!B208)","v":{"v":-2497.8263558694575,"d":"($2,498)"}},{"$f":"NORMINV(RAND()*(1-2*Inputs!B58)+Inputs!B58,0,'(Other Computations)'!B208)","v":{"v":-8691.869881669752,"d":"($8,692)"}},{"$f":"SUM(B13:M13)","v":{"v":103516.88171464276,"d":"$103,517"}},{"$f":"NORMINV(RAND()*(1-2*Inputs!B58)+Inputs!B58,0,'(Other Computations)'!B208)","v":{"v":6303.89629923563,"d":"$6,304"}},{"$f":"NORMINV(RAND()*(1-2*Inputs!B58)+Inputs!B58,0,'(Other Computations)'!B208)","v":{"v":37871.55742730813,"d":"$37,872"}},{"$f":"NORMINV(RAND()*(1-2*Inputs!B58)+Inputs!B58,0,'(Other Computations)'!B208)","v":{"v":34377.26653040209,"d":"$34,377"}},{"$f":"NORMINV(RAND()*(1-2*Inputs!B58)+Inputs!B58,0,'(Other Computations)'!B208)","v":{"v":25633.081041504753,"d":"$25,633"}},{"$f":"NORMINV(RAND()*(1-2*Inputs!B58)+Inputs!B58,0,'(Other Computations)'!B208)","v":{"v":12320.017735507192,"d":"$12,320"}},{"$f":"NORMINV(RAND()*(1-2*Inputs!B58)+Inputs!B58,0,'(Other Computations)'!B208)","v":{"v":31200.01230944094,"d":"$31,200"}},{"$f":"NORMINV(RAND()*(1-2*Inputs!B58)+Inputs!B58,0,'(Other Computations)'!B208)","v":{"v":-3878.1689956280766,"d":"($3,878)"}},{"$f":"NORMINV(RAND()*(1-2*Inputs!B58)+Inputs!B58,0,'(Other Computations)'!B208)","v":{"v":32531.59039330668,"d":"$32,532"}},{"$f":"NORMINV(RAND()*(1-2*Inputs!B58)+Inputs!B58,0,'(Other Computations)'!B208)","v":{"v":44412.00563381586,"d":"$44,412"}},{"$f":"NORMINV(RAND()*(1-2*Inputs!B58)+Inputs!B58,0,'(Other Computations)'!B208)","v":{"v":30083.140849055366,"d":"$30,083"}},{"$f":"NORMINV(RAND()*(1-2*Inputs!B58)+Inputs!B58,0,'(Other Computations)'!B208)","v":{"v":3533.123124234496,"d":"$3,533"}},{"$f":"NORMINV(RAND()*(1-2*Inputs!B58)+Inputs!B58,0,'(Other Computations)'!B208)","v":{"v":-47115.848307233755,"d":"($47,116)"}},{"$f":"SUM(O13:Z13)","v":{"v":207271.67404094932,"d":"$207,272"}},{"$f":"NORMINV(RAND()*(1-2*Inputs!B58)+Inputs!B58,0,'(Other Computations)'!B208)","v":{"v":-51539.13707810217,"d":"($51,539)"}},{"$f":"NORMINV(RAND()*(1-2*Inputs!B58)+Inputs!B58,0,'(Other Computations)'!B208)","v":{"v":797.6983436095308,"d":"$798"}},{"$f":"NORMINV(RAND()*(1-2*Inputs!B58)+Inputs!B58,0,'(Other Computations)'!B208)","v":{"v":14915.200629333815,"d":"$14,915"}},{"$f":"NORMINV(RAND()*(1-2*Inputs!B58)+Inputs!B58,0,'(Other Computations)'!B208)","v":{"v":32621.93190663395,"d":"$32,622"}},{"$f":"NORMINV(RAND()*(1-2*Inputs!B58)+Inputs!B58,0,'(Other Computations)'!B208)","v":{"v":-18420.04101957844,"d":"($18,420)"}},{"$f":"NORMINV(RAND()*(1-2*Inputs!B58)+Inputs!B58,0,'(Other Computations)'!B208)","v":{"v":21543.043691351202,"d":"$21,543"}},{"$f":"NORMINV(RAND()*(1-2*Inputs!B58)+Inputs!B58,0,'(Other Computations)'!B208)","v":{"v":18892.9324354508,"d":"$18,893"}},{"$f":"NORMINV(RAND()*(1-2*Inputs!B58)+Inputs!B58,0,'(Other Computations)'!B208)","v":{"v":-34587.81386547832,"d":"($34,588)"}},{"$f":"NORMINV(RAND()*(1-2*Inputs!B58)+Inputs!B58,0,'(Other Computations)'!B208)","v":{"v":-7908.922950511182,"d":"($7,909)"}},{"$f":"NORMINV(RAND()*(1-2*Inputs!B58)+Inputs!B58,0,'(Other Computations)'!B208)","v":{"v":3279.12475140044,"d":"$3,279"}},{"$f":"NORMINV(RAND()*(1-2*Inputs!B58)+Inputs!B58,0,'(Other Computations)'!B208)","v":{"v":6110.516585482433,"d":"$6,111"}},{"$f":"NORMINV(RAND()*(1-2*Inputs!B58)+Inputs!B58,0,'(Other Computations)'!B208)","v":{"v":-17038.54957181261,"d":"($17,039)"}},{"$f":"SUM(AB13:AM13)","v":{"v":-31334.01614222055,"d":"($31,334)"}},{"$f":"NORMINV(RAND()*(1-2*Inputs!B58)+Inputs!B58,0,'(Other Computations)'!B208)","v":{"v":-31215.089096035397,"d":"($31,215)"}},{"$f":"NORMINV(RAND()*(1-2*Inputs!B58)+Inputs!B58,0,'(Other Computations)'!B208)","v":{"v":-5936.705823783804,"d":"($5,937)"}},{"$f":"NORMINV(RAND()*(1-2*Inputs!B58)+Inputs!B58,0,'(Other Computations)'!B208)","v":{"v":28081.998037767684,"d":"$28,082"}},{"$f":"NORMINV(RAND()*(1-2*Inputs!B58)+Inputs!B58,0,'(Other Computations)'!B208)","v":{"v":25886.433155840477,"d":"$25,886"}},{"$f":"NORMINV(RAND()*(1-2*Inputs!B58)+Inputs!B58,0,'(Other Computations)'!B208)","v":{"v":51138.716652824376,"d":"$51,139"}},{"$f":"NORMINV(RAND()*(1-2*Inputs!B58)+Inputs!B58,0,'(Other Computations)'!B208)","v":{"v":-21394.963606161935,"d":"($21,395)"}},{"$f":"NORMINV(RAND()*(1-2*Inputs!B58)+Inputs!B58,0,'(Other Computations)'!B208)","v":{"v":-4207.641014078278,"d":"($4,208)"}},{"$f":"NORMINV(RAND()*(1-2*Inputs!B58)+Inputs!B58,0,'(Other Computations)'!B208)","v":{"v":-5474.046700900217,"d":"($5,474)"}},{"$f":"NORMINV(RAND()*(1-2*Inputs!B58)+Inputs!B58,0,'(Other Computations)'!B208)","v":{"v":-19655.84325125053,"d":"($19,656)"}},{"$f":"NORMINV(RAND()*(1-2*Inputs!B58)+Inputs!B58,0,'(Other Computations)'!B208)","v":{"v":-32008.7348901584,"d":"($32,009)"}},{"$f":"NORMINV(RAND()*(1-2*Inputs!B58)+Inputs!B58,0,'(Other Computations)'!B208)","v":{"v":-24456.693716251444,"d":"($24,457)"}},{"$f":"NORMINV(RAND()*(1-2*Inputs!B58)+Inputs!B58,0,'(Other Computations)'!B208)","v":{"v":-43973.16212987829,"d":"($43,973)"}},{"$f":"SUM(AO13:AZ13)","v":{"v":-83215.73238206576,"d":"($83,216)"}},{"$f":"NORMINV(RAND()*(1-2*Inputs!B58)+Inputs!B58,0,'(Other Computations)'!B208)","v":{"v":-13487.121241610548,"d":"($13,487)"}},{"$f":"NORMINV(RAND()*(1-2*Inputs!B58)+Inputs!B58,0,'(Other Computations)'!B208)","v":{"v":-16054.001836086496,"d":"($16,054)"}},{"$f":"NORMINV(RAND()*(1-2*Inputs!B58)+Inputs!B58,0,'(Other Computations)'!B208)","v":{"v":14045.295649489743,"d":"$14,045"}},{"$f":"NORMINV(RAND()*(1-2*Inputs!B58)+Inputs!B58,0,'(Other Computations)'!B208)","v":{"v":-10441.504438274082,"d":"($10,442)"}},{"$f":"NORMINV(RAND()*(1-2*Inputs!B58)+Inputs!B58,0,'(Other Computations)'!B208)","v":{"v":13480.305912591013,"d":"$13,480"}},{"$f":"NORMINV(RAND()*(1-2*Inputs!B58)+Inputs!B58,0,'(Other Computations)'!B208)","v":{"v":34181.76345115971,"d":"$34,182"}},{"$f":"NORMINV(RAND()*(1-2*Inputs!B58)+Inputs!B58,0,'(Other Computations)'!B208)","v":{"v":-31045.753921049956,"d":"($31,046)"}},{"$f":"NORMINV(RAND()*(1-2*Inputs!B58)+Inputs!B58,0,'(Other Computations)'!B208)","v":{"v":-2555.5242747690986,"d":"($2,556)"}},{"$f":"NORMINV(RAND()*(1-2*Inputs!B58)+Inputs!B58,0,'(Other Computations)'!B208)","v":{"v":-18617.421352126225,"d":"($18,617)"}},{"$f":"NORMINV(RAND()*(1-2*Inputs!B58)+Inputs!B58,0,'(Other Computations)'!B208)","v":{"v":-41853.90856826383,"d":"($41,854)"}},{"$f":"NORMINV(RAND()*(1-2*Inputs!B58)+Inputs!B58,0,'(Other Computations)'!B208)","v":{"v":-16473.441968280564,"d":"($16,473)"}},{"$f":"NORMINV(RAND()*(1-2*Inputs!B58)+Inputs!B58,0,'(Other Computations)'!B208)","v":{"v":17470.405822767792,"d":"$17,470"}},{"$f":"SUM(BB13:BM13)","v":{"v":-71350.90676445255,"d":"($71,351)"}},{"$f":"NORMINV(RAND()*(1-2*Inputs!B58)+Inputs!B58,0,'(Other Computations)'!B208)","v":{"v":-18109.60834927943,"d":"($18,110)"}},{"$f":"NORMINV(RAND()*(1-2*Inputs!B58)+Inputs!B58,0,'(Other Computations)'!B208)","v":{"v":-50775.36142783296,"d":"($50,775)"}},{"$f":"NORMINV(RAND()*(1-2*Inputs!B58)+Inputs!B58,0,'(Other Computations)'!B208)","v":{"v":18944.84856432048,"d":"$18,945"}},{"$f":"NORMINV(RAND()*(1-2*Inputs!B58)+Inputs!B58,0,'(Other Computations)'!B208)","v":{"v":17887.639773488776,"d":"$17,888"}},{"$f":"NORMINV(RAND()*(1-2*Inputs!B58)+Inputs!B58,0,'(Other Computations)'!B208)","v":{"v":34763.75185696135,"d":"$34,764"}},{"$f":"NORMINV(RAND()*(1-2*Inputs!B58)+Inputs!B58,0,'(Other Computations)'!B208)","v":{"v":41901.378626883634,"d":"$41,901"}},{"$f":"NORMINV(RAND()*(1-2*Inputs!B58)+Inputs!B58,0,'(Other Computations)'!B208)","v":{"v":29501.37201794414,"d":"$29,501"}},{"$f":"NORMINV(RAND()*(1-2*Inputs!B58)+Inputs!B58,0,'(Other Computations)'!B208)","v":{"v":-28349.962208732035,"d":"($28,350)"}},{"$f":"NORMINV(RAND()*(1-2*Inputs!B58)+Inputs!B58,0,'(Other Computations)'!B208)","v":{"v":42009.03827873556,"d":"$42,009"}},{"$f":"NORMINV(RAND()*(1-2*Inputs!B58)+Inputs!B58,0,'(Other Computations)'!B208)","v":{"v":-25149.050092337744,"d":"($25,149)"}},{"$f":"NORMINV(RAND()*(1-2*Inputs!B58)+Inputs!B58,0,'(Other Computations)'!B208)","v":{"v":-43217.70199018713,"d":"($43,218)"}},{"$f":"NORMINV(RAND()*(1-2*Inputs!B58)+Inputs!B58,0,'(Other Computations)'!B208)","v":{"v":-61878.85498249033,"d":"($61,879)"}},{"$f":"SUM(BO13:BZ13)","v":{"v":-42472.50993252568,"d":"($42,473)"}},{"$f":"NORMINV(RAND()*(1-2*Inputs!B58)+Inputs!B58,0,'(Other Computations)'!B208)","v":{"v":-5292.864834752163,"d":"($5,293)"}},{"$f":"NORMINV(RAND()*(1-2*Inputs!B58)+Inputs!B58,0,'(Other Computations)'!B208)","v":{"v":22081.158740729352,"d":"$22,081"}},{"$f":"NORMINV(RAND()*(1-2*Inputs!B58)+Inputs!B58,0,'(Other Computations)'!B208)","v":{"v":26972.29980629384,"d":"$26,972"}},{"$f":"NORMINV(RAND()*(1-2*Inputs!B58)+Inputs!B58,0,'(Other Computations)'!B208)","v":{"v":-60176.09444180544,"d":"($60,176)"}},{"$f":"NORMINV(RAND()*(1-2*Inputs!B58)+Inputs!B58,0,'(Other Computations)'!B208)","v":{"v":-18055.661238080793,"d":"($18,056)"}},{"$f":"NORMINV(RAND()*(1-2*Inputs!B58)+Inputs!B58,0,'(Other Computations)'!B208)","v":{"v":24694.909868026756,"d":"$24,695"}},{"$f":"NORMINV(RAND()*(1-2*Inputs!B58)+Inputs!B58,0,'(Other Computations)'!B208)","v":{"v":-62614.9980540789,"d":"($62,615)"}},{"$f":"NORMINV(RAND()*(1-2*Inputs!B58)+Inputs!B58,0,'(Other Computations)'!B208)","v":{"v":-30640.20021277047,"d":"($30,640)"}},{"$f":"NORMINV(RAND()*(1-2*Inputs!B58)+Inputs!B58,0,'(Other Computations)'!B208)","v":{"v":60487.80243644492,"d":"$60,488"}},{"$f":"NORMINV(RAND()*(1-2*Inputs!B58)+Inputs!B58,0,'(Other Computations)'!B208)","v":{"v":53469.66587354425,"d":"$53,470"}},{"$f":"NORMINV(RAND()*(1-2*Inputs!B58)+Inputs!B58,0,'(Other Computations)'!B208)","v":{"v":-6812.3813603084745,"d":"($6,812)"}},{"$f":"NORMINV(RAND()*(1-2*Inputs!B58)+Inputs!B58,0,'(Other Computations)'!B208)","v":{"v":30864.98000954634,"d":"$30,865"}},{"$f":"SUM(CB13:CM13)","v":{"v":34978.61659278922,"d":"$34,979"}},{"$f":"NORMINV(RAND()*(1-2*Inputs!B58)+Inputs!B58,0,'(Other Computations)'!B208)","v":{"v":56991.22422686732,"d":"$56,991"}},{"$f":"NORMINV(RAND()*(1-2*Inputs!B58)+Inputs!B58,0,'(Other Computations)'!B208)","v":{"v":-4959.429463857982,"d":"($4,959)"}},{"$f":"NORMINV(RAND()*(1-2*Inputs!B58)+Inputs!B58,0,'(Other Computations)'!B208)","v":{"v":17319.88892132498,"d":"$17,320"}},{"$f":"NORMINV(RAND()*(1-2*Inputs!B58)+Inputs!B58,0,'(Other Computations)'!B208)","v":{"v":24275.67840177374,"d":"$24,276"}},{"$f":"NORMINV(RAND()*(1-2*Inputs!B58)+Inputs!B58,0,'(Other Computations)'!B208)","v":{"v":2938.573325538889,"d":"$2,939"}},{"$f":"NORMINV(RAND()*(1-2*Inputs!B58)+Inputs!B58,0,'(Other Computations)'!B208)","v":{"v":-3724.049067682345,"d":"($3,724)"}},{"$f":"NORMINV(RAND()*(1-2*Inputs!B58)+Inputs!B58,0,'(Other Computations)'!B208)","v":{"v":30559.871636711658,"d":"$30,560"}},{"$f":"NORMINV(RAND()*(1-2*Inputs!B58)+Inputs!B58,0,'(Other Computations)'!B208)","v":{"v":-1663.364304173878,"d":"($1,663)"}},{"$f":"NORMINV(RAND()*(1-2*Inputs!B58)+Inputs!B58,0,'(Other Computations)'!B208)","v":{"v":-5102.738148148356,"d":"($5,103)"}},{"$f":"NORMINV(RAND()*(1-2*Inputs!B58)+Inputs!B58,0,'(Other Computations)'!B208)","v":{"v":-43417.461006184814,"d":"($43,417)"}},{"$f":"NORMINV(RAND()*(1-2*Inputs!B58)+Inputs!B58,0,'(Other Computations)'!B208)","v":{"v":-37433.30917625931,"d":"($37,433)"}},{"$f":"NORMINV(RAND()*(1-2*Inputs!B58)+Inputs!B58,0,'(Other Computations)'!B208)","v":{"v":15182.697679691732,"d":"$15,183"}},{"$f":"SUM(CO13:CZ13)","v":{"v":50967.583025601634,"d":"$50,968"}},{"$f":"NORMINV(RAND()*(1-2*Inputs!B58)+Inputs!B58,0,'(Other Computations)'!B208)","v":{"v":49099.58581839116,"d":"$49,100"}},{"$f":"NORMINV(RAND()*(1-2*Inputs!B58)+Inputs!B58,0,'(Other Computations)'!B208)","v":{"v":34437.94189792042,"d":"$34,438"}},{"$f":"NORMINV(RAND()*(1-2*Inputs!B58)+Inputs!B58,0,'(Other Computations)'!B208)","v":{"v":5123.403080903844,"d":"$5,123"}},{"$f":"NORMINV(RAND()*(1-2*Inputs!B58)+Inputs!B58,0,'(Other Computations)'!B208)","v":{"v":14768.491866490705,"d":"$14,768"}},{"$f":"NORMINV(RAND()*(1-2*Inputs!B58)+Inputs!B58,0,'(Other Computations)'!B208)","v":{"v":9911.102503525646,"d":"$9,911"}},{"$f":"NORMINV(RAND()*(1-2*Inputs!B58)+Inputs!B58,0,'(Other Computations)'!B208)","v":{"v":-40461.17595572768,"d":"($40,461)"}},{"$f":"NORMINV(RAND()*(1-2*Inputs!B58)+Inputs!B58,0,'(Other Computations)'!B208)","v":{"v":-44578.61165961842,"d":"($44,579)"}},{"$f":"NORMINV(RAND()*(1-2*Inputs!B58)+Inputs!B58,0,'(Other Computations)'!B208)","v":{"v":3510.028230151854,"d":"$3,510"}},{"$f":"NORMINV(RAND()*(1-2*Inputs!B58)+Inputs!B58,0,'(Other Computations)'!B208)","v":{"v":-2141.6147152985586,"d":"($2,142)"}},{"$f":"NORMINV(RAND()*(1-2*Inputs!B58)+Inputs!B58,0,'(Other Computations)'!B208)","v":{"v":-45023.55396045691,"d":"($45,024)"}},{"$f":"NORMINV(RAND()*(1-2*Inputs!B58)+Inputs!B58,0,'(Other Computations)'!B208)","v":{"v":4961.053261021191,"d":"$4,961"}},{"$f":"NORMINV(RAND()*(1-2*Inputs!B58)+Inputs!B58,0,'(Other Computations)'!B208)","v":{"v":7125.455706158925,"d":"$7,125"}},{"$f":"SUM(DB13:DM13)","v":{"v":-3267.8939265378367,"d":"($3,268)"}},{"$f":"NORMINV(RAND()*(1-2*Inputs!B58)+Inputs!B58,0,'(Other Computations)'!B208)","v":{"v":-25590.238125985623,"d":"($25,590)"}},{"$f":"NORMINV(RAND()*(1-2*Inputs!B58)+Inputs!B58,0,'(Other Computations)'!B208)","v":{"v":-2037.591164870638,"d":"($2,038)"}},{"$f":"NORMINV(RAND()*(1-2*Inputs!B58)+Inputs!B58,0,'(Other Computations)'!B208)","v":{"v":-3899.1925818989616,"d":"($3,899)"}},{"$f":"NORMINV(RAND()*(1-2*Inputs!B58)+Inputs!B58,0,'(Other Computations)'!B208)","v":{"v":-35682.21771793995,"d":"($35,682)"}},{"$f":"NORMINV(RAND()*(1-2*Inputs!B58)+Inputs!B58,0,'(Other Computations)'!B208)","v":{"v":11369.50272086124,"d":"$11,370"}},{"$f":"NORMINV(RAND()*(1-2*Inputs!B58)+Inputs!B58,0,'(Other Computations)'!B208)","v":{"v":-32689.123181298168,"d":"($32,689)"}},{"$f":"NORMINV(RAND()*(1-2*Inputs!B58)+Inputs!B58,0,'(Other Computations)'!B208)","v":{"v":-17093.328585503907,"d":"($17,093)"}},{"$f":"NORMINV(RAND()*(1-2*Inputs!B58)+Inputs!B58,0,'(Other Computations)'!B208)","v":{"v":24381.160292943863,"d":"$24,381"}},{"$f":"NORMINV(RAND()*(1-2*Inputs!B58)+Inputs!B58,0,'(Other Computations)'!B208)","v":{"v":62126.824615112164,"d":"$62,127"}},{"$f":"NORMINV(RAND()*(1-2*Inputs!B58)+Inputs!B58,0,'(Other Computations)'!B208)","v":{"v":-45368.22139190549,"d":"($45,368)"}},{"$f":"NORMINV(RAND()*(1-2*Inputs!B58)+Inputs!B58,0,'(Other Computations)'!B208)","v":{"v":-19769.278776911364,"d":"($19,769)"}},{"$f":"NORMINV(RAND()*(1-2*Inputs!B58)+Inputs!B58,0,'(Other Computations)'!B208)","v":{"v":-34477.88481247477,"d":"($34,478)"}},{"$f":"SUM(DO13:DZ13)","v":{"v":-118729.5887098716,"d":"($118,730)"}},{"$f":"NORMINV(RAND()*(1-2*Inputs!B58)+Inputs!B58,0,'(Other Computations)'!B208)","v":{"v":37717.955272784624,"d":"$37,718"}},{"$f":"NORMINV(RAND()*(1-2*Inputs!B58)+Inputs!B58,0,'(Other Computations)'!B208)","v":{"v":-31225.39866433309,"d":"($31,225)"}},{"$f":"NORMINV(RAND()*(1-2*Inputs!B58)+Inputs!B58,0,'(Other Computations)'!B208)","v":{"v":-1051.5704407294131,"d":"($1,052)"}},{"$f":"NORMINV(RAND()*(1-2*Inputs!B58)+Inputs!B58,0,'(Other Computations)'!B208)","v":{"v":12065.280049744078,"d":"$12,065"}},{"$f":"NORMINV(RAND()*(1-2*Inputs!B58)+Inputs!B58,0,'(Other Computations)'!B208)","v":{"v":-29418.369522868994,"d":"($29,418)"}},{"$f":"NORMINV(RAND()*(1-2*Inputs!B58)+Inputs!B58,0,'(Other Computations)'!B208)","v":{"v":-57721.30150050924,"d":"($57,721)"}},{"$f":"NORMINV(RAND()*(1-2*Inputs!B58)+Inputs!B58,0,'(Other Computations)'!B208)","v":{"v":-49623.482768657035,"d":"($49,623)"}},{"$f":"NORMINV(RAND()*(1-2*Inputs!B58)+Inputs!B58,0,'(Other Computations)'!B208)","v":{"v":17113.668385677884,"d":"$17,114"}},{"$f":"NORMINV(RAND()*(1-2*Inputs!B58)+Inputs!B58,0,'(Other Computations)'!B208)","v":{"v":22424.778640778644,"d":"$22,425"}},{"$f":"NORMINV(RAND()*(1-2*Inputs!B58)+Inputs!B58,0,'(Other Computations)'!B208)","v":{"v":-1171.2755704572235,"d":"($1,171)"}},{"$f":"NORMINV(RAND()*(1-2*Inputs!B58)+Inputs!B58,0,'(Other Computations)'!B208)","v":{"v":34308.628095392785,"d":"$34,309"}},{"$f":"NORMINV(RAND()*(1-2*Inputs!B58)+Inputs!B58,0,'(Other Computations)'!B208)","v":{"v":29445.126701611258,"d":"$29,445"}},{"$f":"SUM(EB13:EM13)","v":{"v":-17135.961321565705,"d":"($17,136)"}}]
[]
[]
[{"$f":"\"Capital\"","v":"Capital"}]
[{"$f":"\" \"","v":" "}]
[null,{"$f":"ZZZ__FnCalls!F7","v":"Jan 2010"},{"$f":"ZZZ__FnCalls!F8","v":"Feb 2010"},{"$f":"ZZZ__FnCalls!F9","v":"Mar 2010"},{"$f":"ZZZ__FnCalls!F10","v":"Apr 2010"},{"$f":"ZZZ__FnCalls!F11","v":"May 2010"},{"$f":"ZZZ__FnCalls!F12","v":"Jun 2010"},{"$f":"ZZZ__FnCalls!F13","v":"Jul 2010"},{"$f":"ZZZ__FnCalls!F14","v":"Aug 2010"},{"$f":"ZZZ__FnCalls!F15","v":"Sep 2010"},{"$f":"ZZZ__FnCalls!F16","v":"Oct 2010"},{"$f":"ZZZ__FnCalls!F17","v":"Nov 2010"},{"$f":"ZZZ__FnCalls!F18","v":"Dec 2010"},{"$f":"ZZZ__FnCalls!H7","v":"2010"},{"$f":"ZZZ__FnCalls!F19","v":"Jan 2011"},{"$f":"ZZZ__FnCalls!F20","v":"Feb 2011"},{"$f":"ZZZ__FnCalls!F21","v":"Mar 2011"},{"$f":"ZZZ__FnCalls!F22","v":"Apr 2011"},{"$f":"ZZZ__FnCalls!F23","v":"May 2011"},{"$f":"ZZZ__FnCalls!F24","v":"Jun 2011"},{"$f":"ZZZ__FnCalls!F25","v":"Jul 2011"},{"$f":"ZZZ__FnCalls!F26","v":"Aug 2011"},{"$f":"ZZZ__FnCalls!F27","v":"Sep 2011"},{"$f":"ZZZ__FnCalls!F28","v":"Oct 2011"},{"$f":"ZZZ__FnCalls!F29","v":"Nov 2011"},{"$f":"ZZZ__FnCalls!F30","v":"Dec 2011"},{"$f":"ZZZ__FnCalls!H19","v":"2011"},{"$f":"ZZZ__FnCalls!F31","v":"Jan 2012"},{"$f":"ZZZ__FnCalls!F32","v":"Feb 2012"},{"$f":"ZZZ__FnCalls!F33","v":"Mar 2012"},{"$f":"ZZZ__FnCalls!F34","v":"Apr 2012"},{"$f":"ZZZ__FnCalls!F35","v":"May 2012"},{"$f":"ZZZ__FnCalls!F36","v":"Jun 2012"},{"$f":"ZZZ__FnCalls!F37","v":"Jul 2012"},{"$f":"ZZZ__FnCalls!F38","v":"Aug 2012"},{"$f":"ZZZ__FnCalls!F39","v":"Sep 2012"},{"$f":"ZZZ__FnCalls!F40","v":"Oct 2012"},{"$f":"ZZZ__FnCalls!F41","v":"Nov 2012"},{"$f":"ZZZ__FnCalls!F42","v":"Dec 2012"},{"$f":"ZZZ__FnCalls!H31","v":"2012"},{"$f":"ZZZ__FnCalls!F43","v":"Jan 2013"},{"$f":"ZZZ__FnCalls!F44","v":"Feb 2013"},{"$f":"ZZZ__FnCalls!F45","v":"Mar 2013"},{"$f":"ZZZ__FnCalls!F46","v":"Apr 2013"},{"$f":"ZZZ__FnCalls!F47","v":"May 2013"},{"$f":"ZZZ__FnCalls!F48","v":"Jun 2013"},{"$f":"ZZZ__FnCalls!F49","v":"Jul 2013"},{"$f":"ZZZ__FnCalls!F50","v":"Aug 2013"},{"$f":"ZZZ__FnCalls!F51","v":"Sep 2013"},{"$f":"ZZZ__FnCalls!F52","v":"Oct 2013"},{"$f":"ZZZ__FnCalls!F53","v":"Nov 2013"},{"$f":"ZZZ__FnCalls!F54","v":"Dec 2013"},{"$f":"ZZZ__FnCalls!H43","v":"2013"},{"$f":"ZZZ__FnCalls!F55","v":"Jan 2014"},{"$f":"ZZZ__FnCalls!F56","v":"Feb 2014"},{"$f":"ZZZ__FnCalls!F57","v":"Mar 2014"},{"$f":"ZZZ__FnCalls!F58","v":"Apr 2014"},{"$f":"ZZZ__FnCalls!F59","v":"May 2014"},{"$f":"ZZZ__FnCalls!F60","v":"Jun 2014"},{"$f":"ZZZ__FnCalls!F61","v":"Jul 2014"},{"$f":"ZZZ__FnCalls!F62","v":"Aug 2014"},{"$f":"ZZZ__FnCalls!F63","v":"Sep 2014"},{"$f":"ZZZ__FnCalls!F64","v":"Oct 2014"},{"$f":"ZZZ__FnCalls!F65","v":"Nov 2014"},{"$f":"ZZZ__FnCalls!F66","v":"Dec 2014"},{"$f":"ZZZ__FnCalls!H55","v":"2014"},{"$f":"ZZZ__FnCalls!F67","v":"Jan 2015"},{"$f":"ZZZ__FnCalls!F68","v":"Feb 2015"},{"$f":"ZZZ__FnCalls!F69","v":"Mar 2015"},{"$f":"ZZZ__FnCalls!F70","v":"Apr 2015"},{"$f":"ZZZ__FnCalls!F71","v":"May 2015"},{"$f":"ZZZ__FnCalls!F72","v":"Jun 2015"},{"$f":"ZZZ__FnCalls!F73","v":"Jul 2015"},{"$f":"ZZZ__FnCalls!F74","v":"Aug 2015"},{"$f":"ZZZ__FnCalls!F75","v":"Sep 2015"},{"$f":"ZZZ__FnCalls!F76","v":"Oct 2015"},{"$f":"ZZZ__FnCalls!F77","v":"Nov 2015"},{"$f":"ZZZ__FnCalls!F78","v":"Dec 2015"},{"$f":"ZZZ__FnCalls!H67","v":"2015"},{"$f":"ZZZ__FnCalls!F79","v":"Jan 2016"},{"$f":"ZZZ__FnCalls!F80","v":"Feb 2016"},{"$f":"ZZZ__FnCalls!F81","v":"Mar 2016"},{"$f":"ZZZ__FnCalls!F82","v":"Apr 2016"},{"$f":"ZZZ__FnCalls!F83","v":"May 2016"},{"$f":"ZZZ__FnCalls!F84","v":"Jun 2016"},{"$f":"ZZZ__FnCalls!F85","v":"Jul 2016"},{"$f":"ZZZ__FnCalls!F86","v":"Aug 2016"},{"$f":"ZZZ__FnCalls!F87","v":"Sep 2016"},{"$f":"ZZZ__FnCalls!F88","v":"Oct 2016"},{"$f":"ZZZ__FnCalls!F89","v":"Nov 2016"},{"$f":"ZZZ__FnCalls!F90","v":"Dec 2016"},{"$f":"ZZZ__FnCalls!H79","v":"2016"},{"$f":"ZZZ__FnCalls!F91","v":"Jan 2017"},{"$f":"ZZZ__FnCalls!F92","v":"Feb 2017"},{"$f":"ZZZ__FnCalls!F93","v":"Mar 2017"},{"$f":"ZZZ__FnCalls!F94","v":"Apr 2017"},{"$f":"ZZZ__FnCalls!F95","v":"May 2017"},{"$f":"ZZZ__FnCalls!F96","v":"Jun 2017"},{"$f":"ZZZ__FnCalls!F97","v":"Jul 2017"},{"$f":"ZZZ__FnCalls!F98","v":"Aug 2017"},{"$f":"ZZZ__FnCalls!F99","v":"Sep 2017"},{"$f":"ZZZ__FnCalls!F100","v":"Oct 2017"},{"$f":"ZZZ__FnCalls!F101","v":"Nov 2017"},{"$f":"ZZZ__FnCalls!F102","v":"Dec 2017"},{"$f":"ZZZ__FnCalls!H91","v":"2017"},{"$f":"ZZZ__FnCalls!F103","v":"Jan 2018"},{"$f":"ZZZ__FnCalls!F104","v":"Feb 2018"},{"$f":"ZZZ__FnCalls!F105","v":"Mar 2018"},{"$f":"ZZZ__FnCalls!F106","v":"Apr 2018"},{"$f":"ZZZ__FnCalls!F107","v":"May 2018"},{"$f":"ZZZ__FnCalls!F108","v":"Jun 2018"},{"$f":"ZZZ__FnCalls!F109","v":"Jul 2018"},{"$f":"ZZZ__FnCalls!F110","v":"Aug 2018"},{"$f":"ZZZ__FnCalls!F111","v":"Sep 2018"},{"$f":"ZZZ__FnCalls!F112","v":"Oct 2018"},{"$f":"ZZZ__FnCalls!F113","v":"Nov 2018"},{"$f":"ZZZ__FnCalls!F114","v":"Dec 2018"},{"$f":"ZZZ__FnCalls!H103","v":"2018"},{"$f":"ZZZ__FnCalls!F115","v":"Jan 2019"},{"$f":"ZZZ__FnCalls!F116","v":"Feb 2019"},{"$f":"ZZZ__FnCalls!F117","v":"Mar 2019"},{"$f":"ZZZ__FnCalls!F118","v":"Apr 2019"},{"$f":"ZZZ__FnCalls!F119","v":"May 2019"},{"$f":"ZZZ__FnCalls!F120","v":"Jun 2019"},{"$f":"ZZZ__FnCalls!F121","v":"Jul 2019"},{"$f":"ZZZ__FnCalls!F122","v":"Aug 2019"},{"$f":"ZZZ__FnCalls!F123","v":"Sep 2019"},{"$f":"ZZZ__FnCalls!F124","v":"Oct 2019"},{"$f":"ZZZ__FnCalls!F125","v":"Nov 2019"},{"$f":"ZZZ__FnCalls!F126","v":"Dec 2019"},{"$f":"ZZZ__FnCalls!H115","v":"2019"},{"$f":"ZZZ__FnCalls!F127","v":"Jan 2020"},{"$f":"ZZZ__FnCalls!F128","v":"Feb 2020"},{"$f":"ZZZ__FnCalls!F129","v":"Mar 2020"},{"$f":"ZZZ__FnCalls!F130","v":"Apr 2020"},{"$f":"ZZZ__FnCalls!F131","v":"May 2020"},{"$f":"ZZZ__FnCalls!F132","v":"Jun 2020"},{"$f":"ZZZ__FnCalls!F133","v":"Jul 2020"},{"$f":"ZZZ__FnCalls!F134","v":"Aug 2020"},{"$f":"ZZZ__FnCalls!F135","v":"Sep 2020"},{"$f":"ZZZ__FnCalls!F136","v":"Oct 2020"},{"$f":"ZZZ__FnCalls!F137","v":"Nov 2020"},{"$f":"ZZZ__FnCalls!F138","v":"Dec 2020"},{"$f":"ZZZ__FnCalls!H127","v":"2020"}]
[{"$f":"Labels!B9","v":"Capital"},{"$f":"Inputs!B20*'(Other Computations)'!B8/(1/Inputs!B19/12+'(Other Computations)'!B144)","v":{"v":34645298.42192645,"d":"$34,645,298"}},{"$f":"B19+B21-B20","v":{"v":34645298.42192645,"d":"$34,645,298"}},{"v":34644855.444051616,"d":"$34,644,855"},{"v":34644083.063892804,"d":"$34,644,083"},{"v":34642974.714726865,"d":"$34,642,975"},{"v":34641494.4383782,"d":"$34,641,494"},{"v":34639728.319252394,"d":"$34,639,728"},{"v":34637687.557154536,"d":"$34,637,688"},{"v":34635375.49587171,"d":"$34,635,375"},{"v":34632815.75770805,"d":"$34,632,816"},{"v":34629922.71103756,"d":"$34,629,923"},{"v":34626676.890696995,"d":"$34,626,677"},{"$f":"M19","v":{"v":34626676.890696995,"d":"$34,626,677"}},{"$f":"M19+M21-M20","v":{"v":34623125.980857074,"d":"$34,623,126"}},{"$f":"O19+O21-O20","v":{"v":34619266.47713891,"d":"$34,619,266"}},{"v":34615135.49459439,"d":"$34,615,135"},{"v":34610800.71360592,"d":"$34,610,801"},{"v":34606261.073790275,"d":"$34,606,261"},{"v":34601505.47088074,"d":"$34,601,505"},{"v":34596514.52587519,"d":"$34,596,515"},{"v":34591330.68101418,"d":"$34,591,331"},{"v":34585892.28617897,"d":"$34,585,892"},{"v":34580275.81926943,"d":"$34,580,276"},{"v":34574508.87243591,"d":"$34,574,509"},{"v":34568568.01029219,"d":"$34,568,568"},{"$f":"Z19","v":{"v":34568568.01029219,"d":"$34,568,568"}},{"$f":"Z19+Z21-Z20","v":{"v":34562407.21772806,"d":"$34,562,407"}},{"$f":"AB19+AB21-AB20","v":{"v":34555935.8996679,"d":"$34,555,936"}},{"v":34549154.26890592,"d":"$34,549,154"},{"v":34542170.8488366,"d":"$34,542,171"},{"v":34535018.249647364,"d":"$34,535,018"},{"v":34527735.01061943,"d":"$34,527,735"},{"v":34520227.23699492,"d":"$34,520,227"},{"v":34512577.63172161,"d":"$34,512,578"},{"v":34504785.003511935,"d":"$34,504,785"},{"v":34496751.15675534,"d":"$34,496,751"},{"v":34488533.6564636,"d":"$34,488,534"},{"v":34480158.88495251,"d":"$34,480,159"},{"$f":"AM19","v":{"v":34480158.88495251,"d":"$34,480,159"}},{"$f":"AM19+AM21-AM20","v":{"v":34471636.66728631,"d":"$34,471,637"}},{"$f":"AO19+AO21-AO20","v":{"v":34462926.91625874,"d":"$34,462,927"}},{"v":34454007.69621754,"d":"$34,454,008"},{"v":34444933.02990531,"d":"$34,444,933"},{"v":34435772.14742343,"d":"$34,435,772"},{"v":34426523.23014947,"d":"$34,426,523"},{"v":34417236.81672178,"d":"$34,417,237"},{"v":34407775.33962773,"d":"$34,407,775"},{"v":34398176.39967083,"d":"$34,398,176"},{"v":34388441.461466365,"d":"$34,388,441"},{"v":34378547.33766647,"d":"$34,378,547"},{"v":34368474.99884059,"d":"$34,368,475"},{"$f":"AZ19","v":{"v":34368474.99884059,"d":"$34,368,475"}},{"$f":"AZ19+AZ21-AZ20","v":{"v":34358243.930653915,"d":"$34,358,244"}},{"$f":"BB19+BB21-BB20","v":{"v":34347821.376790844,"d":"$34,347,821"}},{"v":34337270.99172051,"d":"$34,337,271"},{"v":34326591.44775167,"d":"$34,326,591"},{"v":34315843.89535154,"d":"$34,315,844"},{"v":34304983.64118202,"d":"$34,304,984"},{"v":34294059.54864378,"d":"$34,294,060"},{"v":34283112.88205611,"d":"$34,283,113"},{"v":34272019.72246567,"d":"$34,272,020"},{"v":34260838.54386407,"d":"$34,260,839"},{"v":34249541.06284008,"d":"$34,249,541"},{"v":34238086.255294204,"d":"$34,238,086"},{"$f":"BM19","v":{"v":34238086.255294204,"d":"$34,238,086"}},{"$f":"BM19+BM21-BM20","v":{"v":34226527.129845604,"d":"$34,226,527"}},{"$f":"BO19+BO21-BO20","v":{"v":34214931.48717228,"d":"$34,214,931"}},{"v":34203232.31254768,"d":"$34,203,232"},{"v":34191370.091901176,"d":"$34,191,370"},{"v":34179482.54523972,"d":"$34,179,483"},{"v":34167568.388214566,"d":"$34,167,568"},{"v":34155660.780701935,"d":"$34,155,661"},{"v":34143773.33392228,"d":"$34,143,773"},{"v":34131881.80924387,"d":"$34,131,882"},{"v":34119875.80309973,"d":"$34,119,876"},{"v":34107892.91942051,"d":"$34,107,893"},{"v":34095804.34502214,"d":"$34,095,804"},{"$f":"BZ19","v":{"v":34095804.34502214,"d":"$34,095,804"}},{"$f":"BZ19+BZ21-BZ20","v":{"v":34083578.597043216,"d":"$34,083,579"}},{"$f":"CB19+CB21-CB20","v":{"v":34071184.036177464,"d":"$34,071,184"}},{"v":34058733.55758766,"d":"$34,058,734"},{"v":34046281.04977651,"d":"$34,046,281"},{"v":34033835.87776836,"d":"$34,033,836"},{"v":34021231.52945328,"d":"$34,021,232"},{"v":34008552.973240845,"d":"$34,008,553"},{"v":33995883.845260896,"d":"$33,995,884"},{"v":33983057.215534024,"d":"$33,983,057"},{"v":33970138.48771601,"d":"$33,970,138"},{"v":33957304.173652016,"d":"$33,957,304"},{"v":33944538.561058834,"d":"$33,944,539"},{"$f":"CM19","v":{"v":33944538.561058834,"d":"$33,944,539"}},{"$f":"CM19+CM21-CM20","v":{"v":33931724.75522766,"d":"$33,931,725"}},{"$f":"CO19+CO21-CO20","v":{"v":33918936.12488627,"d":"$33,918,936"}},{"v":33906221.77209282,"d":"$33,906,222"},{"v":33893461.318045974,"d":"$33,893,461"},{"v":33880698.70621871,"d":"$33,880,699"},{"v":33867947.307878315,"d":"$33,867,947"},{"v":33855166.13051521,"d":"$33,855,166"},{"v":33842343.47478344,"d":"$33,842,343"},{"v":33829546.028211325,"d":"$33,829,546"},{"v":33816711.576814696,"d":"$33,816,712"},{"v":33803834.68555838,"d":"$33,803,835"},{"v":33790843.46152672,"d":"$33,790,843"},{"$f":"CZ19","v":{"v":33790843.46152672,"d":"$33,790,843"}},{"$f":"CZ19+CZ21-CZ20","v":{"v":33777752.74882419,"d":"$33,777,753"}},{"$f":"DB19+DB21-DB20","v":{"v":33764665.997218385,"d":"$33,764,666"}},{"v":33751647.91070854,"d":"$33,751,648"},{"v":33738668.47482319,"d":"$33,738,668"},{"v":33725670.67649245,"d":"$33,725,671"},{"v":33712673.53889692,"d":"$33,712,674"},{"v":33699667.65819441,"d":"$33,699,668"},{"v":33686557.16817606,"d":"$33,686,557"},{"v":33673337.23705782,"d":"$33,673,337"},{"v":33660102.70846551,"d":"$33,660,103"},{"v":33646843.32964958,"d":"$33,646,843"},{"v":33633478.05808525,"d":"$33,633,478"},{"$f":"DM19","v":{"v":33633478.05808525,"d":"$33,633,478"}},{"$f":"DM19+DM21-DM20","v":{"v":33620105.222228624,"d":"$33,620,105"}},{"$f":"DO19+DO21-DO20","v":{"v":33606729.23425715,"d":"$33,606,729"}},{"v":33593287.86726512,"d":"$33,593,288"},{"v":33579827.938375,"d":"$33,579,828"},{"v":33566346.565302245,"d":"$33,566,347"},{"v":33552783.791921023,"d":"$33,552,784"},{"v":33539231.698721804,"d":"$33,539,232"},{"v":33525606.049839087,"d":"$33,525,606"},{"v":33511938.643041346,"d":"$33,511,939"},{"v":33498309.92209178,"d":"$33,498,310"},{"v":33484790.8281451,"d":"$33,484,791"},{"v":33471173.16946153,"d":"$33,471,173"},{"$f":"DZ19","v":{"v":33471173.16946153,"d":"$33,471,173"}},{"$f":"DZ19+DZ21-DZ20","v":{"v":33457508.81065573,"d":"$33,457,509"}},{"$f":"EB19+EB21-EB20","v":{"v":33443770.923040155,"d":"$33,443,771"}},{"v":33430099.575378526,"d":"$33,430,100"},{"v":33416361.368617587,"d":"$33,416,361"},{"v":33402615.84392561,"d":"$33,402,616"},{"v":33388888.314339925,"d":"$33,388,888"},{"v":33375099.185898867,"d":"$33,375,099"},{"v":33361196.284333996,"d":"$33,361,196"},{"v":33347198.337785818,"d":"$33,347,198"},{"v":33333235.563275963,"d":"$33,333,236"},{"v":33319317.300238494,"d":"$33,319,317"},{"v":33305397.19492676,"d":"$33,305,397"},{"$f":"EM19","v":{"v":33305397.19492676,"d":"$33,305,397"}}]
[{"$f":"Labels!B11","v":"Capital Depreciation"},{"$f":"B22/Inputs!B19/12","v":{"v":206222.0144162289,"d":"$206,222"}},{"$f":"B19/Inputs!B19/12","v":{"v":206222.0144162289,"d":"$206,222"}},{"$f":"C19/Inputs!B19/12","v":{"v":206222.0144162289,"d":"$206,222"}},{"$f":"D19/Inputs!B19/12","v":{"v":206219.37764316436,"d":"$206,219"}},{"$f":"E19/Inputs!B19/12","v":{"v":206214.78014221907,"d":"$206,215"}},{"$f":"F19/Inputs!B19/12","v":{"v":206208.18282575512,"d":"$206,208"}},{"$f":"G19/Inputs!B19/12","v":{"v":206199.37165701308,"d":"$206,199"}},{"$f":"H19/Inputs!B19/12","v":{"v":206188.85904316904,"d":"$206,189"}},{"$f":"I19/Inputs!B19/12","v":{"v":206176.71164972938,"d":"$206,177"}},{"$f":"J19/Inputs!B19/12","v":{"v":206162.94938018874,"d":"$206,163"}},{"$f":"K19/Inputs!B19/12","v":{"v":206147.7128435003,"d":"$206,148"}},{"$f":"L19/Inputs!B19/12","v":{"v":206130.49232760453,"d":"$206,130"}},{"$f":"SUM(B20:M20)","v":{"v":2474314.48076103,"d":"$2,474,314"}},{"$f":"M19/Inputs!B19/12","v":{"v":206111.1719684345,"d":"$206,111"}},{"$f":"O19/Inputs!B19/12","v":{"v":206090.03560033973,"d":"$206,090"}},{"$f":"P19/Inputs!B19/12","v":{"v":206067.06236392204,"d":"$206,067"}},{"$f":"Q19/Inputs!B19/12","v":{"v":206042.47318210945,"d":"$206,042"}},{"$f":"R19/Inputs!B19/12","v":{"v":206016.67091432094,"d":"$206,017"}},{"$f":"S19/Inputs!B19/12","v":{"v":205989.6492487516,"d":"$205,990"}},{"$f":"T19/Inputs!B19/12","v":{"v":205961.34208857582,"d":"$205,961"}},{"$f":"U19/Inputs!B19/12","v":{"v":205931.63408259043,"d":"$205,932"}},{"$f":"V19/Inputs!B19/12","v":{"v":205900.77786317965,"d":"$205,901"}},{"$f":"W19/Inputs!B19/12","v":{"v":205868.406465351,"d":"$205,868"}},{"$f":"X19/Inputs!B19/12","v":{"v":205834.97511469902,"d":"$205,835"}},{"$f":"Y19/Inputs!B19/12","v":{"v":205800.6480502138,"d":"$205,801"}},{"$f":"SUM(O20:Z20)","v":{"v":2471614.846942488,"d":"$2,471,615"}},{"$f":"Z19/Inputs!B19/12","v":{"v":205765.28577554875,"d":"$205,765"}},{"$f":"AB19/Inputs!B19/12","v":{"v":205728.61439123846,"d":"$205,729"}},{"$f":"AC19/Inputs!B19/12","v":{"v":205690.09464088033,"d":"$205,690"}},{"$f":"AD19/Inputs!B19/12","v":{"v":205649.72779110668,"d":"$205,650"}},{"$f":"AE19/Inputs!B19/12","v":{"v":205608.1598145036,"d":"$205,608"}},{"$f":"AF19/Inputs!B19/12","v":{"v":205565.58481932955,"d":"$205,566"}},{"$f":"AG19/Inputs!B19/12","v":{"v":205522.23220606803,"d":"$205,522"}},{"$f":"AH19/Inputs!B19/12","v":{"v":205477.5430773507,"d":"$205,478"}},{"$f":"AI19/Inputs!B19/12","v":{"v":205432.00971262864,"d":"$205,432"}},{"$f":"AJ19/Inputs!B19/12","v":{"v":205385.62502090438,"d":"$205,386"}},{"$f":"AK19/Inputs!B19/12","v":{"v":205337.80450449607,"d":"$205,338"}},{"$f":"AL19/Inputs!B19/12","v":{"v":205288.89081228335,"d":"$205,289"}},{"$f":"SUM(AB20:AM20)","v":{"v":2466451.5725663383,"d":"$2,466,452"}},{"$f":"AM19/Inputs!B19/12","v":{"v":205239.04098186016,"d":"$205,239"}},{"$f":"AO19/Inputs!B19/12","v":{"v":205188.31349575182,"d":"$205,188"}},{"$f":"AP19/Inputs!B19/12","v":{"v":205136.46973963536,"d":"$205,136"}},{"$f":"AQ19/Inputs!B19/12","v":{"v":205083.37914415202,"d":"$205,083"}},{"$f":"AR19/Inputs!B19/12","v":{"v":205029.3632732459,"d":"$205,029"}},{"$f":"AS19/Inputs!B19/12","v":{"v":204974.83421085376,"d":"$204,975"}},{"$f":"AT19/Inputs!B19/12","v":{"v":204919.7811318421,"d":"$204,920"}},{"$f":"AU19/Inputs!B19/12","v":{"v":204864.5048614392,"d":"$204,865"}},{"$f":"AV19/Inputs!B19/12","v":{"v":204808.18654540312,"d":"$204,808"}},{"$f":"AW19/Inputs!B19/12","v":{"v":204751.04999804066,"d":"$204,751"}},{"$f":"AX19/Inputs!B19/12","v":{"v":204693.1039372998,"d":"$204,693"}},{"$f":"AY19/Inputs!B19/12","v":{"v":204634.21034325278,"d":"$204,634"}},{"$f":"SUM(AO20:AZ20)","v":{"v":2459322.237662777,"d":"$2,459,322"}},{"$f":"AZ19/Inputs!B19/12","v":{"v":204574.25594547973,"d":"$204,574"}},{"$f":"BB19/Inputs!B19/12","v":{"v":204513.3567300828,"d":"$204,513"}},{"$f":"BC19/Inputs!B19/12","v":{"v":204451.31771899314,"d":"$204,451"}},{"$f":"BD19/Inputs!B19/12","v":{"v":204388.5178078602,"d":"$204,389"}},{"$f":"BE19/Inputs!B19/12","v":{"v":204324.94909375996,"d":"$204,325"}},{"$f":"BF19/Inputs!B19/12","v":{"v":204260.97556756868,"d":"$204,261"}},{"$f":"BG19/Inputs!B19/12","v":{"v":204196.33119751202,"d":"$204,196"}},{"$f":"BH19/Inputs!B19/12","v":{"v":204131.30683716538,"d":"$204,131"}},{"$f":"BI19/Inputs!B19/12","v":{"v":204066.14810747685,"d":"$204,066"}},{"$f":"BJ19/Inputs!B19/12","v":{"v":204000.11739562897,"d":"$204,000"}},{"$f":"BK19/Inputs!B19/12","v":{"v":203933.56276109567,"d":"$203,934"}},{"$f":"BL19/Inputs!B19/12","v":{"v":203866.31585023858,"d":"$203,866"}},{"$f":"SUM(BB20:BM20)","v":{"v":2450707.1550128623,"d":"$2,450,707"}},{"$f":"BM19/Inputs!B19/12","v":{"v":203798.1324719893,"d":"$203,798"}},{"$f":"BO19/Inputs!B19/12","v":{"v":203729.32815384286,"d":"$203,729"}},{"$f":"BP19/Inputs!B19/12","v":{"v":203660.3064712636,"d":"$203,660"}},{"$f":"BQ19/Inputs!B19/12","v":{"v":203590.66852706953,"d":"$203,591"}},{"$f":"BR19/Inputs!B19/12","v":{"v":203520.06007084032,"d":"$203,520"}},{"$f":"BS19/Inputs!B19/12","v":{"v":203449.3008645221,"d":"$203,449"}},{"$f":"BT19/Inputs!B19/12","v":{"v":203378.38326318192,"d":"$203,378"}},{"$f":"BU19/Inputs!B19/12","v":{"v":203307.50464703536,"d":"$203,308"}},{"$f":"BV19/Inputs!B19/12","v":{"v":203236.74603525168,"d":"$203,237"}},{"$f":"BW19/Inputs!B19/12","v":{"v":203165.96315026117,"d":"$203,166"}},{"$f":"BX19/Inputs!B19/12","v":{"v":203094.49882797457,"d":"$203,094"}},{"$f":"BY19/Inputs!B19/12","v":{"v":203023.1721394078,"d":"$203,023"}},{"$f":"SUM(BO20:BZ20)","v":{"v":2440954.06462264,"d":"$2,440,954"}},{"$f":"BZ19/Inputs!B19/12","v":{"v":202951.2163394175,"d":"$202,951"}},{"$f":"CB19/Inputs!B19/12","v":{"v":202878.44403001913,"d":"$202,878"}},{"$f":"CC19/Inputs!B19/12","v":{"v":202804.6668820087,"d":"$202,805"}},{"$f":"CD19/Inputs!B19/12","v":{"v":202730.55689040272,"d":"$202,731"}},{"$f":"CE19/Inputs!B19/12","v":{"v":202656.43482009825,"d":"$202,656"}},{"$f":"CF19/Inputs!B19/12","v":{"v":202582.35641528785,"d":"$202,582"}},{"$f":"CG19/Inputs!B19/12","v":{"v":202507.33053245998,"d":"$202,507"}},{"$f":"CH19/Inputs!B19/12","v":{"v":202431.8629359574,"d":"$202,432"}},{"$f":"CI19/Inputs!B19/12","v":{"v":202356.45145988627,"d":"$202,356"}},{"$f":"CJ19/Inputs!B19/12","v":{"v":202280.1024734168,"d":"$202,280"}},{"$f":"CK19/Inputs!B19/12","v":{"v":202203.2052840239,"d":"$202,203"}},{"$f":"CL19/Inputs!B19/12","v":{"v":202126.81055745247,"d":"$202,127"}},{"$f":"SUM(CB20:CM20)","v":{"v":2430509.438620431,"d":"$2,430,509"}},{"$f":"CM19/Inputs!B19/12","v":{"v":202050.82476820736,"d":"$202,051"}},{"$f":"CO19/Inputs!B19/12","v":{"v":201974.55211445037,"d":"$201,975"}},{"$f":"CP19/Inputs!B19/12","v":{"v":201898.42931479923,"d":"$201,898"}},{"$f":"CQ19/Inputs!B19/12","v":{"v":201822.74864340966,"d":"$201,823"}},{"$f":"CR19/Inputs!B19/12","v":{"v":201746.79355979746,"d":"$201,747"}},{"$f":"CS19/Inputs!B19/12","v":{"v":201670.82563225424,"d":"$201,671"}},{"$f":"CT19/Inputs!B19/12","v":{"v":201594.92445165664,"d":"$201,595"}},{"$f":"CU19/Inputs!B19/12","v":{"v":201518.8460149715,"d":"$201,519"}},{"$f":"CV19/Inputs!B19/12","v":{"v":201442.5206832348,"d":"$201,443"}},{"$f":"CW19/Inputs!B19/12","v":{"v":201366.3454060198,"d":"$201,366"}},{"$f":"CX19/Inputs!B19/12","v":{"v":201289.94986199224,"d":"$201,290"}},{"$f":"CY19/Inputs!B19/12","v":{"v":201213.30169975225,"d":"$201,213"}},{"$f":"SUM(CO20:CZ20)","v":{"v":2419590.062150546,"d":"$2,419,590"}},{"$f":"CZ19/Inputs!B19/12","v":{"v":201135.97298527812,"d":"$201,136"}},{"$f":"DB19/Inputs!B19/12","v":{"v":201058.05207633445,"d":"$201,058"}},{"$f":"DC19/Inputs!B19/12","v":{"v":200980.15474534754,"d":"$200,980"}},{"$f":"DD19/Inputs!B19/12","v":{"v":200902.6661351699,"d":"$200,903"}},{"$f":"DE19/Inputs!B19/12","v":{"v":200825.40758823327,"d":"$200,825"}},{"$f":"DF19/Inputs!B19/12","v":{"v":200748.0397410265,"d":"$200,748"}},{"$f":"DG19/Inputs!B19/12","v":{"v":200670.67582676737,"d":"$200,671"}},{"$f":"DH19/Inputs!B19/12","v":{"v":200593.2598702048,"d":"$200,593"}},{"$f":"DI19/Inputs!B19/12","v":{"v":200515.22123914325,"d":"$200,515"}},{"$f":"DJ19/Inputs!B19/12","v":{"v":200436.5311729632,"d":"$200,437"}},{"$f":"DK19/Inputs!B19/12","v":{"v":200357.7542170566,"d":"$200,358"}},{"$f":"DL19/Inputs!B19/12","v":{"v":200278.82934315226,"d":"$200,279"}},{"$f":"SUM(DB20:DM20)","v":{"v":2408502.5649406775,"d":"$2,408,503"}},{"$f":"DM19/Inputs!B19/12","v":{"v":200199.27415526935,"d":"$200,199"}},{"$f":"DO19/Inputs!B19/12","v":{"v":200119.67394183704,"d":"$200,120"}},{"$f":"DP19/Inputs!B19/12","v":{"v":200040.05496581635,"d":"$200,040"}},{"$f":"DQ19/Inputs!B19/12","v":{"v":199960.04682895905,"d":"$199,960"}},{"$f":"DR19/Inputs!B19/12","v":{"v":199879.92820461313,"d":"$199,880"}},{"$f":"DS19/Inputs!B19/12","v":{"v":199799.68193632292,"d":"$199,800"}},{"$f":"DT19/Inputs!B19/12","v":{"v":199718.95114238703,"d":"$199,719"}},{"$f":"DU19/Inputs!B19/12","v":{"v":199638.2839209631,"d":"$199,638"}},{"$f":"DV19/Inputs!B19/12","v":{"v":199557.1788680898,"d":"$199,557"}},{"$f":"DW19/Inputs!B19/12","v":{"v":199475.8252561985,"d":"$199,476"}},{"$f":"DX19/Inputs!B19/12","v":{"v":199394.70191721295,"d":"$199,395"}},{"$f":"DY19/Inputs!B19/12","v":{"v":199314.2311199113,"d":"$199,314"}},{"$f":"SUM(DO20:DZ20)","v":{"v":2397097.8322575805,"d":"$2,397,098"}},{"$f":"DZ19/Inputs!B19/12","v":{"v":199233.1736277472,"d":"$199,233"}},{"$f":"EB19/Inputs!B19/12","v":{"v":199151.83815866508,"d":"$199,152"}},{"$f":"EC19/Inputs!B19/12","v":{"v":199070.06501809615,"d":"$199,070"}},{"$f":"ED19/Inputs!B19/12","v":{"v":198988.68794868168,"d":"$198,989"}},{"$f":"EE19/Inputs!B19/12","v":{"v":198906.912908438,"d":"$198,907"}},{"$f":"EF19/Inputs!B19/12","v":{"v":198825.094309081,"d":"$198,825"}},{"$f":"EG19/Inputs!B19/12","v":{"v":198743.38282345192,"d":"$198,743"}},{"$f":"EH19/Inputs!B19/12","v":{"v":198661.30467796943,"d":"$198,661"}},{"$f":"EI19/Inputs!B19/12","v":{"v":198578.5493115119,"d":"$198,579"}},{"$f":"EJ19/Inputs!B19/12","v":{"v":198495.22820110607,"d":"$198,495"}},{"$f":"EK19/Inputs!B19/12","v":{"v":198412.1164480712,"d":"$198,412"}},{"$f":"EL19/Inputs!B19/12","v":{"v":198329.26964427673,"d":"$198,329"}},{"$f":"SUM(EB20:EM20)","v":{"v":2385395.6230770964,"d":"$2,385,396"}}]
[{"$f":"Labels!B19","v":"Capital Investment"},{"$f":"B20+(B22-B19)/Inputs!B22/12","v":{"v":206222.0144162289,"d":"$206,222"}},{"$f":"C20+(C22-C19)/Inputs!B22/12","v":{"v":205779.03654139026,"d":"$205,779"}},{"$f":"D20+(D22-D19)/Inputs!B22/12","v":{"v":205449.63425741647,"d":"$205,450"}},{"$f":"E20+(E22-E19)/Inputs!B22/12","v":{"v":205111.0284772301,"d":"$205,111"}},{"$f":"F20+(F22-F19)/Inputs!B22/12","v":{"v":204734.5037935531,"d":"$204,735"}},{"$f":"G20+(G22-G19)/Inputs!B22/12","v":{"v":204442.063699946,"d":"$204,442"}},{"$f":"H20+(H22-H19)/Inputs!B22/12","v":{"v":204158.60955915457,"d":"$204,159"}},{"$f":"I20+(I22-I19)/Inputs!B22/12","v":{"v":203876.7977603344,"d":"$203,877"}},{"$f":"J20+(J22-J19)/Inputs!B22/12","v":{"v":203616.9734860719,"d":"$203,617"}},{"$f":"K20+(K22-K19)/Inputs!B22/12","v":{"v":203269.9027097022,"d":"$203,270"}},{"$f":"L20+(L22-L19)/Inputs!B22/12","v":{"v":202901.8925029317,"d":"$202,902"}},{"$f":"M20+(M22-M19)/Inputs!B22/12","v":{"v":202579.58248768674,"d":"$202,580"}},{"$f":"SUM(B21:M21)","v":{"v":2452142.039691646,"d":"$2,452,142"}},{"$f":"O20+(O22-O19)/Inputs!B22/12","v":{"v":202251.66825027275,"d":"$202,252"}},{"$f":"P20+(P22-P19)/Inputs!B22/12","v":{"v":201959.05305582154,"d":"$201,959"}},{"$f":"Q20+(Q22-Q19)/Inputs!B22/12","v":{"v":201732.28137545273,"d":"$201,732"}},{"$f":"R20+(R22-R19)/Inputs!B22/12","v":{"v":201502.8333664712,"d":"$201,503"}},{"$f":"S20+(S22-S19)/Inputs!B22/12","v":{"v":201261.06800478452,"d":"$201,261"}},{"$f":"T20+(T22-T19)/Inputs!B22/12","v":{"v":200998.70424320168,"d":"$200,999"}},{"$f":"U20+(U22-U19)/Inputs!B22/12","v":{"v":200777.49722756326,"d":"$200,777"}},{"$f":"V20+(V22-V19)/Inputs!B22/12","v":{"v":200493.23924738137,"d":"$200,493"}},{"$f":"W20+(W22-W19)/Inputs!B22/12","v":{"v":200284.3109536465,"d":"$200,284"}},{"$f":"X20+(X22-X19)/Inputs!B22/12","v":{"v":200101.4596318307,"d":"$200,101"}},{"$f":"Y20+(Y22-Y19)/Inputs!B22/12","v":{"v":199894.1129709724,"d":"$199,894"}},{"$f":"Z20+(Z22-Z19)/Inputs!B22/12","v":{"v":199639.85548608992,"d":"$199,640"}},{"$f":"SUM(O21:Z21)","v":{"v":2410896.0838134885,"d":"$2,410,896"}},{"$f":"AB20+(AB22-AB19)/Inputs!B22/12","v":{"v":199293.96771538016,"d":"$199,294"}},{"$f":"AC20+(AC22-AC19)/Inputs!B22/12","v":{"v":198946.9836292647,"d":"$198,947"}},{"$f":"AD20+(AD22-AD19)/Inputs!B22/12","v":{"v":198706.6745715598,"d":"$198,707"}},{"$f":"AE20+(AE22-AE19)/Inputs!B22/12","v":{"v":198497.12860187097,"d":"$198,497"}},{"$f":"AF20+(AF22-AF19)/Inputs!B22/12","v":{"v":198324.92078657544,"d":"$198,325"}},{"$f":"AG20+(AG22-AG19)/Inputs!B22/12","v":{"v":198057.8111948204,"d":"$198,058"}},{"$f":"AH20+(AH22-AH19)/Inputs!B22/12","v":{"v":197872.62693275648,"d":"$197,873"}},{"$f":"AI20+(AI22-AI19)/Inputs!B22/12","v":{"v":197684.91486767516,"d":"$197,685"}},{"$f":"AJ20+(AJ22-AJ19)/Inputs!B22/12","v":{"v":197398.16295603997,"d":"$197,398"}},{"$f":"AK20+(AK22-AK19)/Inputs!B22/12","v":{"v":197168.12472916758,"d":"$197,168"}},{"$f":"AL20+(AL22-AL19)/Inputs!B22/12","v":{"v":196963.03299340783,"d":"$196,963"}},{"$f":"AM20+(AM22-AM19)/Inputs!B22/12","v":{"v":196766.6731460866,"d":"$196,767"}},{"$f":"SUM(AB21:AM21)","v":{"v":2375681.0221246053,"d":"$2,375,681"}},{"$f":"AO20+(AO22-AO19)/Inputs!B22/12","v":{"v":196529.28995428974,"d":"$196,529"}},{"$f":"AP20+(AP22-AP19)/Inputs!B22/12","v":{"v":196269.0934545542,"d":"$196,269"}},{"$f":"AQ20+(AQ22-AQ19)/Inputs!B22/12","v":{"v":196061.80342741124,"d":"$196,062"}},{"$f":"AR20+(AR22-AR19)/Inputs!B22/12","v":{"v":195922.49666227214,"d":"$195,922"}},{"$f":"AS20+(AS22-AS19)/Inputs!B22/12","v":{"v":195780.44599928716,"d":"$195,780"}},{"$f":"AT20+(AT22-AT19)/Inputs!B22/12","v":{"v":195688.42078316433,"d":"$195,688"}},{"$f":"AU20+(AU22-AU19)/Inputs!B22/12","v":{"v":195458.30403778848,"d":"$195,458"}},{"$f":"AV20+(AV22-AV19)/Inputs!B22/12","v":{"v":195265.56490454444,"d":"$195,266"}},{"$f":"AW20+(AW22-AW19)/Inputs!B22/12","v":{"v":195073.2483409379,"d":"$195,073"}},{"$f":"AX20+(AX22-AX19)/Inputs!B22/12","v":{"v":194856.92619813653,"d":"$194,857"}},{"$f":"AY20+(AY22-AY19)/Inputs!B22/12","v":{"v":194620.76511142452,"d":"$194,621"}},{"$f":"AZ20+(AZ22-AZ19)/Inputs!B22/12","v":{"v":194403.1421565696,"d":"$194,403"}},{"$f":"SUM(AO21:AZ21)","v":{"v":2345929.5010303804,"d":"$2,345,930"}},{"$f":"BB20+(BB22-BB19)/Inputs!B22/12","v":{"v":194151.70208241174,"d":"$194,152"}},{"$f":"BC20+(BC22-BC19)/Inputs!B22/12","v":{"v":193962.97165974707,"d":"$193,963"}},{"$f":"BD20+(BD22-BD19)/Inputs!B22/12","v":{"v":193771.77375015212,"d":"$193,772"}},{"$f":"BE20+(BE22-BE19)/Inputs!B22/12","v":{"v":193640.96540772755,"d":"$193,641"}},{"$f":"BF20+(BF22-BF19)/Inputs!B22/12","v":{"v":193464.69492424163,"d":"$193,465"}},{"$f":"BG20+(BG22-BG19)/Inputs!B22/12","v":{"v":193336.8830293373,"d":"$193,337"}},{"$f":"BH20+(BH22-BH19)/Inputs!B22/12","v":{"v":193249.66460984157,"d":"$193,250"}},{"$f":"BI20+(BI22-BI19)/Inputs!B22/12","v":{"v":193038.14724672426,"d":"$193,038"}},{"$f":"BJ20+(BJ22-BJ19)/Inputs!B22/12","v":{"v":192884.96950587395,"d":"$192,885"}},{"$f":"BK20+(BK22-BK19)/Inputs!B22/12","v":{"v":192702.63637164515,"d":"$192,703"}},{"$f":"BL20+(BL22-BL19)/Inputs!B22/12","v":{"v":192478.755215221,"d":"$192,479"}},{"$f":"BM20+(BM22-BM19)/Inputs!B22/12","v":{"v":192307.19040163458,"d":"$192,307"}},{"$f":"SUM(BB21:BM21)","v":{"v":2318990.354204558,"d":"$2,318,990"}},{"$f":"BO20+(BO22-BO19)/Inputs!B22/12","v":{"v":192202.48979866717,"d":"$192,202"}},{"$f":"BP20+(BP22-BP19)/Inputs!B22/12","v":{"v":192030.15352924395,"d":"$192,030"}},{"$f":"BQ20+(BQ22-BQ19)/Inputs!B22/12","v":{"v":191798.08582476075,"d":"$191,798"}},{"$f":"BR20+(BR22-BR19)/Inputs!B22/12","v":{"v":191703.12186560544,"d":"$191,703"}},{"$f":"BS20+(BS22-BS19)/Inputs!B22/12","v":{"v":191605.9030456937,"d":"$191,606"}},{"$f":"BT20+(BT22-BT19)/Inputs!B22/12","v":{"v":191541.69335189284,"d":"$191,542"}},{"$f":"BU20+(BU22-BU19)/Inputs!B22/12","v":{"v":191490.93648353388,"d":"$191,491"}},{"$f":"BV20+(BV22-BV19)/Inputs!B22/12","v":{"v":191415.97996862937,"d":"$191,416"}},{"$f":"BW20+(BW22-BW19)/Inputs!B22/12","v":{"v":191230.73989110577,"d":"$191,231"}},{"$f":"BX20+(BX22-BX19)/Inputs!B22/12","v":{"v":191183.07947104197,"d":"$191,183"}},{"$f":"BY20+(BY22-BY19)/Inputs!B22/12","v":{"v":191005.92442960286,"d":"$191,006"}},{"$f":"BZ20+(BZ22-BZ19)/Inputs!B22/12","v":{"v":190797.42416047797,"d":"$190,797"}},{"$f":"SUM(BO21:BZ21)","v":{"v":2298005.531820256,"d":"$2,298,006"}},{"$f":"CB20+(CB22-CB19)/Inputs!B22/12","v":{"v":190556.6554736649,"d":"$190,557"}},{"$f":"CC20+(CC22-CC19)/Inputs!B22/12","v":{"v":190427.9654402147,"d":"$190,428"}},{"$f":"CD20+(CD22-CD19)/Inputs!B22/12","v":{"v":190352.1590708562,"d":"$190,352"}},{"$f":"CE20+(CE22-CE19)/Inputs!B22/12","v":{"v":190285.3848822563,"d":"$190,285"}},{"$f":"CF20+(CF22-CF19)/Inputs!B22/12","v":{"v":190052.08650501637,"d":"$190,052"}},{"$f":"CG20+(CG22-CG19)/Inputs!B22/12","v":{"v":189903.8002028533,"d":"$189,904"}},{"$f":"CH20+(CH22-CH19)/Inputs!B22/12","v":{"v":189838.2025525098,"d":"$189,838"}},{"$f":"CI20+(CI22-CI19)/Inputs!B22/12","v":{"v":189605.23320908617,"d":"$189,605"}},{"$f":"CJ20+(CJ22-CJ19)/Inputs!B22/12","v":{"v":189437.7236418757,"d":"$189,438"}},{"$f":"CK20+(CK22-CK19)/Inputs!B22/12","v":{"v":189445.78840941566,"d":"$189,446"}},{"$f":"CL20+(CL22-CL19)/Inputs!B22/12","v":{"v":189437.59269084185,"d":"$189,438"}},{"$f":"CM20+(CM22-CM19)/Inputs!B22/12","v":{"v":189313.0047262813,"d":"$189,313"}},{"$f":"SUM(CB21:CM21)","v":{"v":2278655.5968048717,"d":"$2,278,656"}},{"$f":"CO20+(CO22-CO19)/Inputs!B22/12","v":{"v":189262.19442681473,"d":"$189,262"}},{"$f":"CP20+(CP22-CP19)/Inputs!B22/12","v":{"v":189260.19932100404,"d":"$189,260"}},{"$f":"CQ20+(CQ22-CQ19)/Inputs!B22/12","v":{"v":189137.97526795088,"d":"$189,138"}},{"$f":"CR20+(CR22-CR19)/Inputs!B22/12","v":{"v":189060.1368161506,"d":"$189,060"}},{"$f":"CS20+(CS22-CS19)/Inputs!B22/12","v":{"v":188995.39521940128,"d":"$188,995"}},{"$f":"CT20+(CT22-CT19)/Inputs!B22/12","v":{"v":188889.64826914965,"d":"$188,890"}},{"$f":"CU20+(CU22-CU19)/Inputs!B22/12","v":{"v":188772.26871989242,"d":"$188,772"}},{"$f":"CV20+(CV22-CV19)/Inputs!B22/12","v":{"v":188721.39944285015,"d":"$188,721"}},{"$f":"CW20+(CW22-CW19)/Inputs!B22/12","v":{"v":188608.06928660598,"d":"$188,608"}},{"$f":"CX20+(CX22-CX19)/Inputs!B22/12","v":{"v":188489.45414970105,"d":"$188,489"}},{"$f":"CY20+(CY22-CY19)/Inputs!B22/12","v":{"v":188298.72583033773,"d":"$188,299"}},{"$f":"CZ20+(CZ22-CZ19)/Inputs!B22/12","v":{"v":188122.58899721177,"d":"$188,123"}},{"$f":"SUM(CO21:CZ21)","v":{"v":2265618.0557470703,"d":"$2,265,618"}},{"$f":"DB20+(DB22-DB19)/Inputs!B22/12","v":{"v":188049.22137947206,"d":"$188,049"}},{"$f":"DC20+(DC22-DC19)/Inputs!B22/12","v":{"v":188039.9655664826,"d":"$188,040"}},{"$f":"DD20+(DD22-DD19)/Inputs!B22/12","v":{"v":188000.71885999813,"d":"$188,001"}},{"$f":"DE20+(DE22-DE19)/Inputs!B22/12","v":{"v":187904.86780442682,"d":"$187,905"}},{"$f":"DF20+(DF22-DF19)/Inputs!B22/12","v":{"v":187828.2699927028,"d":"$187,828"}},{"$f":"DG20+(DG22-DG19)/Inputs!B22/12","v":{"v":187742.15903851582,"d":"$187,742"}},{"$f":"DH20+(DH22-DH19)/Inputs!B22/12","v":{"v":187560.18580841698,"d":"$187,560"}},{"$f":"DI20+(DI22-DI19)/Inputs!B22/12","v":{"v":187373.328751957,"d":"$187,373"}},{"$f":"DJ20+(DJ22-DJ19)/Inputs!B22/12","v":{"v":187280.69264683066,"d":"$187,281"}},{"$f":"DK20+(DK22-DK19)/Inputs!B22/12","v":{"v":187177.1523570337,"d":"$187,177"}},{"$f":"DL20+(DL22-DL19)/Inputs!B22/12","v":{"v":186992.48265272588,"d":"$186,992"}},{"$f":"DM20+(DM22-DM19)/Inputs!B22/12","v":{"v":186905.99348653422,"d":"$186,906"}},{"$f":"SUM(DB21:DM21)","v":{"v":2250855.0383450966,"d":"$2,250,855"}},{"$f":"DO20+(DO22-DO19)/Inputs!B22/12","v":{"v":186823.28618379225,"d":"$186,823"}},{"$f":"DP20+(DP22-DP19)/Inputs!B22/12","v":{"v":186678.3069498078,"d":"$186,678"}},{"$f":"DQ20+(DQ22-DQ19)/Inputs!B22/12","v":{"v":186580.12607570016,"d":"$186,580"}},{"$f":"DR20+(DR22-DR19)/Inputs!B22/12","v":{"v":186478.6737561964,"d":"$186,479"}},{"$f":"DS20+(DS22-DS19)/Inputs!B22/12","v":{"v":186317.15482339327,"d":"$186,317"}},{"$f":"DT20+(DT22-DT19)/Inputs!B22/12","v":{"v":186247.5887371075,"d":"$186,248"}},{"$f":"DU20+(DU22-DU19)/Inputs!B22/12","v":{"v":186093.3022596716,"d":"$186,093"}},{"$f":"DV20+(DV22-DV19)/Inputs!B22/12","v":{"v":185970.87712322475,"d":"$185,971"}},{"$f":"DW20+(DW22-DW19)/Inputs!B22/12","v":{"v":185928.45791851947,"d":"$185,928"}},{"$f":"DX20+(DX22-DX19)/Inputs!B22/12","v":{"v":185956.73130952273,"d":"$185,957"}},{"$f":"DY20+(DY22-DY19)/Inputs!B22/12","v":{"v":185777.04323363953,"d":"$185,777"}},{"$f":"DZ20+(DZ22-DZ19)/Inputs!B22/12","v":{"v":185649.87231411785,"d":"$185,650"}},{"$f":"SUM(DO21:DZ21)","v":{"v":2234501.4206846934,"d":"$2,234,501"}},{"$f":"EB20+(EB22-EB19)/Inputs!B22/12","v":{"v":185495.28601217092,"d":"$185,495"}},{"$f":"EC20+(EC22-EC19)/Inputs!B22/12","v":{"v":185480.49049703122,"d":"$185,480"}},{"$f":"ED20+(ED22-ED19)/Inputs!B22/12","v":{"v":185331.85825715848,"d":"$185,332"}},{"$f":"EE20+(EE22-EE19)/Inputs!B22/12","v":{"v":185243.16325670734,"d":"$185,243"}},{"$f":"EF20+(EF22-EF19)/Inputs!B22/12","v":{"v":185179.3833227513,"d":"$185,179"}},{"$f":"EG20+(EG22-EG19)/Inputs!B22/12","v":{"v":185035.9658680227,"d":"$185,036"}},{"$f":"EH20+(EH22-EH19)/Inputs!B22/12","v":{"v":184840.48125858002,"d":"$184,840"}},{"$f":"EI20+(EI22-EI19)/Inputs!B22/12","v":{"v":184663.3581297919,"d":"$184,663"}},{"$f":"EJ20+(EJ22-EJ19)/Inputs!B22/12","v":{"v":184615.77480165573,"d":"$184,616"}},{"$f":"EK20+(EK22-EK19)/Inputs!B22/12","v":{"v":184576.96516363724,"d":"$184,577"}},{"$f":"EL20+(EL22-EL19)/Inputs!B22/12","v":{"v":184492.01113633806,"d":"$184,492"}},{"$f":"EM20+(EM22-EM19)/Inputs!B22/12","v":{"v":184475.24782637018,"d":"$184,475"}},{"$f":"SUM(EB21:EM21)","v":{"v":2219429.9855302153,"d":"$2,219,430"}}]
[{"$f":"Labels!B14","v":"Desired Capital"},{"$f":"Inputs!B20*B10/(1/Inputs!B19/12+'(Other Computations)'!B144)","v":{"v":34645298.42192645,"d":"$34,645,298"}},{"$f":"Inputs!B20*C10/(1/Inputs!B19/12+'(Other Computations)'!B144)","v":{"v":34629351.21843226,"d":"$34,629,351"}},{"$f":"Inputs!B20*D10/(1/Inputs!B19/12+'(Other Computations)'!B144)","v":{"v":34617049.75833437,"d":"$34,617,050"}},{"$f":"Inputs!B20*E10/(1/Inputs!B19/12+'(Other Computations)'!B144)","v":{"v":34604182.49391917,"d":"$34,604,182"}},{"$f":"Inputs!B20*F10/(1/Inputs!B19/12+'(Other Computations)'!B144)","v":{"v":34589684.76617489,"d":"$34,589,685"}},{"$f":"Inputs!B20*G10/(1/Inputs!B19/12+'(Other Computations)'!B144)","v":{"v":34577914.14984907,"d":"$34,577,914"}},{"$f":"Inputs!B20*H10/(1/Inputs!B19/12+'(Other Computations)'!B144)","v":{"v":34566260.88372949,"d":"$34,566,261"}},{"$f":"Inputs!B20*I10/(1/Inputs!B19/12+'(Other Computations)'!B144)","v":{"v":34554453.35097249,"d":"$34,554,453"}},{"$f":"Inputs!B20*J10/(1/Inputs!B19/12+'(Other Computations)'!B144)","v":{"v":34543224.92198004,"d":"$34,543,225"}},{"$f":"Inputs!B20*K10/(1/Inputs!B19/12+'(Other Computations)'!B144)","v":{"v":34528666.077570535,"d":"$34,528,666"}},{"$f":"Inputs!B20*L10/(1/Inputs!B19/12+'(Other Computations)'!B144)","v":{"v":34513073.17877709,"d":"$34,513,073"}},{"$f":"Inputs!B20*M10/(1/Inputs!B19/12+'(Other Computations)'!B144)","v":{"v":34498844.136459954,"d":"$34,498,844"}},{"$f":"M22","v":{"v":34498844.136459954,"d":"$34,498,844"}},{"$f":"Inputs!B20*O10/(1/Inputs!B19/12+'(Other Computations)'!B144)","v":{"v":34484183.84700325,"d":"$34,484,184"}},{"$f":"Inputs!B20*P10/(1/Inputs!B19/12+'(Other Computations)'!B144)","v":{"v":34470551.10553625,"d":"$34,470,551"}},{"$f":"Inputs!B20*Q10/(1/Inputs!B19/12+'(Other Computations)'!B144)","v":{"v":34459083.37900949,"d":"$34,459,083"}},{"$f":"Inputs!B20*R10/(1/Inputs!B19/12+'(Other Computations)'!B144)","v":{"v":34447373.68024294,"d":"$34,447,374"}},{"$f":"Inputs!B20*S10/(1/Inputs!B19/12+'(Other Computations)'!B144)","v":{"v":34435059.369046964,"d":"$34,435,059"}},{"$f":"Inputs!B20*T10/(1/Inputs!B19/12+'(Other Computations)'!B144)","v":{"v":34421831.45068094,"d":"$34,421,831"}},{"$f":"Inputs!B20*U10/(1/Inputs!B19/12+'(Other Computations)'!B144)","v":{"v":34409896.110878736,"d":"$34,409,896"}},{"$f":"Inputs!B20*V10/(1/Inputs!B19/12+'(Other Computations)'!B144)","v":{"v":34395548.466946654,"d":"$34,395,548"}},{"$f":"Inputs!B20*W10/(1/Inputs!B19/12+'(Other Computations)'!B144)","v":{"v":34383699.477435775,"d":"$34,383,699"}},{"$f":"Inputs!B20*X10/(1/Inputs!B19/12+'(Other Computations)'!B144)","v":{"v":34372665.7332627,"d":"$34,372,666"}},{"$f":"Inputs!B20*Y10/(1/Inputs!B19/12+'(Other Computations)'!B144)","v":{"v":34360637.835261755,"d":"$34,360,638"}},{"$f":"Inputs!B20*Z10/(1/Inputs!B19/12+'(Other Computations)'!B144)","v":{"v":34346779.47798373,"d":"$34,346,779"}},{"$f":"Z22","v":{"v":34346779.47798373,"d":"$34,346,779"}},{"$f":"Inputs!B20*AB10/(1/Inputs!B19/12+'(Other Computations)'!B144)","v":{"v":34329439.767561994,"d":"$34,329,440"}},{"$f":"Inputs!B20*AC10/(1/Inputs!B19/12+'(Other Computations)'!B144)","v":{"v":34311797.19223684,"d":"$34,311,797"}},{"$f":"Inputs!B20*AD10/(1/Inputs!B19/12+'(Other Computations)'!B144)","v":{"v":34297751.14641038,"d":"$34,297,751"}},{"$f":"Inputs!B20*AE10/(1/Inputs!B19/12+'(Other Computations)'!B144)","v":{"v":34284677.278024115,"d":"$34,284,677"}},{"$f":"Inputs!B20*AF10/(1/Inputs!B19/12+'(Other Computations)'!B144)","v":{"v":34272821.64464195,"d":"$34,272,822"}},{"$f":"Inputs!B20*AG10/(1/Inputs!B19/12+'(Other Computations)'!B144)","v":{"v":34257455.1601371,"d":"$34,257,455"}},{"$f":"Inputs!B20*AH10/(1/Inputs!B19/12+'(Other Computations)'!B144)","v":{"v":34244841.44715571,"d":"$34,244,841"}},{"$f":"Inputs!B20*AI10/(1/Inputs!B19/12+'(Other Computations)'!B144)","v":{"v":34232043.01617329,"d":"$34,232,043"}},{"$f":"Inputs!B20*AJ10/(1/Inputs!B19/12+'(Other Computations)'!B144)","v":{"v":34215566.52027474,"d":"$34,215,567"}},{"$f":"Inputs!B20*AK10/(1/Inputs!B19/12+'(Other Computations)'!B144)","v":{"v":34200921.14625282,"d":"$34,200,921"}},{"$f":"Inputs!B20*AL10/(1/Inputs!B19/12+'(Other Computations)'!B144)","v":{"v":34187041.882064424,"d":"$34,187,042"}},{"$f":"Inputs!B20*AM10/(1/Inputs!B19/12+'(Other Computations)'!B144)","v":{"v":34173359.048969425,"d":"$34,173,359"}},{"$f":"AM22","v":{"v":34173359.048969425,"d":"$34,173,359"}},{"$f":"Inputs!B20*AO10/(1/Inputs!B19/12+'(Other Computations)'!B144)","v":{"v":34158085.63029377,"d":"$34,158,086"}},{"$f":"Inputs!B20*AP10/(1/Inputs!B19/12+'(Other Computations)'!B144)","v":{"v":34141834.99477562,"d":"$34,141,835"}},{"$f":"Inputs!B20*AQ10/(1/Inputs!B19/12+'(Other Computations)'!B144)","v":{"v":34127319.70897747,"d":"$34,127,320"}},{"$f":"Inputs!B20*AR10/(1/Inputs!B19/12+'(Other Computations)'!B144)","v":{"v":34115141.26055764,"d":"$34,115,141"}},{"$f":"Inputs!B20*AS10/(1/Inputs!B19/12+'(Other Computations)'!B144)","v":{"v":34102811.12556092,"d":"$34,102,811"}},{"$f":"Inputs!B20*AT10/(1/Inputs!B19/12+'(Other Computations)'!B144)","v":{"v":34092212.34675265,"d":"$34,092,212"}},{"$f":"Inputs!B20*AU10/(1/Inputs!B19/12+'(Other Computations)'!B144)","v":{"v":34076623.64133585,"d":"$34,076,624"}},{"$f":"Inputs!B20*AV10/(1/Inputs!B19/12+'(Other Computations)'!B144)","v":{"v":34062213.50117952,"d":"$34,062,214"}},{"$f":"Inputs!B20*AW10/(1/Inputs!B19/12+'(Other Computations)'!B144)","v":{"v":34047718.62431008,"d":"$34,047,719"}},{"$f":"Inputs!B20*AX10/(1/Inputs!B19/12+'(Other Computations)'!B144)","v":{"v":34032253.004669815,"d":"$34,032,253"}},{"$f":"Inputs!B20*AY10/(1/Inputs!B19/12+'(Other Computations)'!B144)","v":{"v":34015943.13993496,"d":"$34,015,943"}},{"$f":"Inputs!B20*AZ10/(1/Inputs!B19/12+'(Other Computations)'!B144)","v":{"v":34000156.54412,"d":"$34,000,157"}},{"$f":"AZ22","v":{"v":34000156.54412,"d":"$34,000,157"}},{"$f":"Inputs!B20*BB10/(1/Inputs!B19/12+'(Other Computations)'!B144)","v":{"v":33983031.99158347,"d":"$33,983,032"}},{"$f":"Inputs!B20*BC10/(1/Inputs!B19/12+'(Other Computations)'!B144)","v":{"v":33968007.51425876,"d":"$33,968,008"}},{"$f":"Inputs!B20*BD10/(1/Inputs!B19/12+'(Other Computations)'!B144)","v":{"v":33952807.408842236,"d":"$33,952,807"}},{"$f":"Inputs!B20*BE10/(1/Inputs!B19/12+'(Other Computations)'!B144)","v":{"v":33939679.561346896,"d":"$33,939,680"}},{"$f":"Inputs!B20*BF10/(1/Inputs!B19/12+'(Other Computations)'!B144)","v":{"v":33924874.74524888,"d":"$33,924,875"}},{"$f":"Inputs!B20*BG10/(1/Inputs!B19/12+'(Other Computations)'!B144)","v":{"v":33911716.30980569,"d":"$33,911,716"}},{"$f":"Inputs!B20*BH10/(1/Inputs!B19/12+'(Other Computations)'!B144)","v":{"v":33899979.55148765,"d":"$33,899,980"}},{"$f":"Inputs!B20*BI10/(1/Inputs!B19/12+'(Other Computations)'!B144)","v":{"v":33883759.13680023,"d":"$33,883,759"}},{"$f":"Inputs!B20*BJ10/(1/Inputs!B19/12+'(Other Computations)'!B144)","v":{"v":33869497.29280797,"d":"$33,869,497"}},{"$f":"Inputs!B20*BK10/(1/Inputs!B19/12+'(Other Computations)'!B144)","v":{"v":33854129.227000654,"d":"$33,854,129"}},{"$f":"Inputs!B20*BL10/(1/Inputs!B19/12+'(Other Computations)'!B144)","v":{"v":33837167.99118859,"d":"$33,837,168"}},{"$f":"Inputs!B20*BM10/(1/Inputs!B19/12+'(Other Computations)'!B144)","v":{"v":33821957.73914446,"d":"$33,821,958"}},{"$f":"BM22","v":{"v":33821957.73914446,"d":"$33,821,958"}},{"$f":"Inputs!B20*BO10/(1/Inputs!B19/12+'(Other Computations)'!B144)","v":{"v":33809083.99360601,"d":"$33,809,084"}},{"$f":"Inputs!B20*BP10/(1/Inputs!B19/12+'(Other Computations)'!B144)","v":{"v":33793761.20068672,"d":"$33,793,761"}},{"$f":"Inputs!B20*BQ10/(1/Inputs!B19/12+'(Other Computations)'!B144)","v":{"v":33776192.36927358,"d":"$33,776,192"}},{"$f":"Inputs!B20*BR10/(1/Inputs!B19/12+'(Other Computations)'!B144)","v":{"v":33763418.41208847,"d":"$33,763,418"}},{"$f":"Inputs!B20*BS10/(1/Inputs!B19/12+'(Other Computations)'!B144)","v":{"v":33750572.89233444,"d":"$33,750,573"}},{"$f":"Inputs!B20*BT10/(1/Inputs!B19/12+'(Other Computations)'!B144)","v":{"v":33738894.51775991,"d":"$33,738,895"}},{"$f":"Inputs!B20*BU10/(1/Inputs!B19/12+'(Other Computations)'!B144)","v":{"v":33727712.696634606,"d":"$33,727,713"}},{"$f":"Inputs!B20*BV10/(1/Inputs!B19/12+'(Other Computations)'!B144)","v":{"v":33715678.445499666,"d":"$33,715,678"}},{"$f":"Inputs!B20*BW10/(1/Inputs!B19/12+'(Other Computations)'!B144)","v":{"v":33699665.58805462,"d":"$33,699,666"}},{"$f":"Inputs!B20*BX10/(1/Inputs!B19/12+'(Other Computations)'!B144)","v":{"v":33688491.99064784,"d":"$33,688,492"}},{"$f":"Inputs!B20*BY10/(1/Inputs!B19/12+'(Other Computations)'!B144)","v":{"v":33672704.24107913,"d":"$33,672,704"}},{"$f":"Inputs!B20*BZ10/(1/Inputs!B19/12+'(Other Computations)'!B144)","v":{"v":33655677.41778067,"d":"$33,655,677"}},{"$f":"BZ22","v":{"v":33655677.41778067,"d":"$33,655,677"}},{"$f":"Inputs!B20*CB10/(1/Inputs!B19/12+'(Other Computations)'!B144)","v":{"v":33637374.40587612,"d":"$33,637,374"}},{"$f":"Inputs!B20*CC10/(1/Inputs!B19/12+'(Other Computations)'!B144)","v":{"v":33622966.806944504,"d":"$33,622,967"}},{"$f":"Inputs!B20*CD10/(1/Inputs!B19/12+'(Other Computations)'!B144)","v":{"v":33610443.27638617,"d":"$33,610,443"}},{"$f":"Inputs!B20*CE10/(1/Inputs!B19/12+'(Other Computations)'!B144)","v":{"v":33598254.85748324,"d":"$33,598,255"}},{"$f":"Inputs!B20*CF10/(1/Inputs!B19/12+'(Other Computations)'!B144)","v":{"v":33580079.33842541,"d":"$33,580,079"}},{"$f":"Inputs!B20*CG10/(1/Inputs!B19/12+'(Other Computations)'!B144)","v":{"v":33564803.505805634,"d":"$33,564,804"}},{"$f":"Inputs!B20*CH10/(1/Inputs!B19/12+'(Other Computations)'!B144)","v":{"v":33552464.36596264,"d":"$33,552,464"}},{"$f":"Inputs!B20*CI10/(1/Inputs!B19/12+'(Other Computations)'!B144)","v":{"v":33534125.17509353,"d":"$33,534,125"}},{"$f":"Inputs!B20*CJ10/(1/Inputs!B19/12+'(Other Computations)'!B144)","v":{"v":33517983.014085643,"d":"$33,517,983"}},{"$f":"Inputs!B20*CK10/(1/Inputs!B19/12+'(Other Computations)'!B144)","v":{"v":33508103.18141197,"d":"$33,508,103"}},{"$f":"Inputs!B20*CL10/(1/Inputs!B19/12+'(Other Computations)'!B144)","v":{"v":33497742.12029746,"d":"$33,497,742"}},{"$f":"Inputs!B20*CM10/(1/Inputs!B19/12+'(Other Computations)'!B144)","v":{"v":33483241.551136672,"d":"$33,483,242"}},{"$f":"CM22","v":{"v":33483241.551136672,"d":"$33,483,242"}},{"$f":"Inputs!B20*CO10/(1/Inputs!B19/12+'(Other Computations)'!B144)","v":{"v":33471334.062937528,"d":"$33,471,334"}},{"$f":"Inputs!B20*CP10/(1/Inputs!B19/12+'(Other Computations)'!B144)","v":{"v":33461219.4243222,"d":"$33,461,219"}},{"$f":"Inputs!B20*CQ10/(1/Inputs!B19/12+'(Other Computations)'!B144)","v":{"v":33446845.42640628,"d":"$33,446,845"}},{"$f":"Inputs!B20*CR10/(1/Inputs!B19/12+'(Other Computations)'!B144)","v":{"v":33434007.292264648,"d":"$33,434,007"}},{"$f":"Inputs!B20*CS10/(1/Inputs!B19/12+'(Other Computations)'!B144)","v":{"v":33421648.36596445,"d":"$33,421,648"}},{"$f":"Inputs!B20*CT10/(1/Inputs!B19/12+'(Other Computations)'!B144)","v":{"v":33407824.92280655,"d":"$33,407,825"}},{"$f":"Inputs!B20*CU10/(1/Inputs!B19/12+'(Other Computations)'!B144)","v":{"v":33393550.5241717,"d":"$33,393,551"}},{"$f":"Inputs!B20*CV10/(1/Inputs!B19/12+'(Other Computations)'!B144)","v":{"v":33381635.398187075,"d":"$33,381,635"}},{"$f":"Inputs!B20*CW10/(1/Inputs!B19/12+'(Other Computations)'!B144)","v":{"v":33367505.77793269,"d":"$33,367,506"}},{"$f":"Inputs!B20*CX10/(1/Inputs!B19/12+'(Other Computations)'!B144)","v":{"v":33353143.49158722,"d":"$33,353,143"}},{"$f":"Inputs!B20*CY10/(1/Inputs!B19/12+'(Other Computations)'!B144)","v":{"v":33336150.620418817,"d":"$33,336,151"}},{"$f":"Inputs!B20*CZ10/(1/Inputs!B19/12+'(Other Computations)'!B144)","v":{"v":33319577.804235265,"d":"$33,319,578"}},{"$f":"CZ22","v":{"v":33319577.804235265,"d":"$33,319,578"}},{"$f":"Inputs!B20*DB10/(1/Inputs!B19/12+'(Other Computations)'!B144)","v":{"v":33306629.69101517,"d":"$33,306,630"}},{"$f":"Inputs!B20*DC10/(1/Inputs!B19/12+'(Other Computations)'!B144)","v":{"v":33296014.88286372,"d":"$33,296,015"}},{"$f":"Inputs!B20*DD10/(1/Inputs!B19/12+'(Other Computations)'!B144)","v":{"v":33284388.21883596,"d":"$33,284,388"}},{"$f":"Inputs!B20*DE10/(1/Inputs!B19/12+'(Other Computations)'!B144)","v":{"v":33270747.73491644,"d":"$33,270,748"}},{"$f":"Inputs!B20*DF10/(1/Inputs!B19/12+'(Other Computations)'!B144)","v":{"v":33257773.723053355,"d":"$33,257,774"}},{"$f":"Inputs!B20*DG10/(1/Inputs!B19/12+'(Other Computations)'!B144)","v":{"v":33244461.833606534,"d":"$33,244,462"}},{"$f":"Inputs!B20*DH10/(1/Inputs!B19/12+'(Other Computations)'!B144)","v":{"v":33227690.017533794,"d":"$33,227,690"}},{"$f":"Inputs!B20*DI10/(1/Inputs!B19/12+'(Other Computations)'!B144)","v":{"v":33210639.64791914,"d":"$33,210,640"}},{"$f":"Inputs!B20*DJ10/(1/Inputs!B19/12+'(Other Computations)'!B144)","v":{"v":33196894.207734566,"d":"$33,196,894"}},{"$f":"Inputs!B20*DK10/(1/Inputs!B19/12+'(Other Computations)'!B144)","v":{"v":33182765.071092047,"d":"$33,182,765"}},{"$f":"Inputs!B20*DL10/(1/Inputs!B19/12+'(Other Computations)'!B144)","v":{"v":33165693.553333677,"d":"$33,165,694"}},{"$f":"Inputs!B20*DM10/(1/Inputs!B19/12+'(Other Computations)'!B144)","v":{"v":33152055.967246998,"d":"$33,152,056"}},{"$f":"DM22","v":{"v":33152055.967246998,"d":"$33,152,056"}},{"$f":"Inputs!B20*DO10/(1/Inputs!B19/12+'(Other Computations)'!B144)","v":{"v":33138569.655255448,"d":"$33,138,570"}},{"$f":"Inputs!B20*DP10/(1/Inputs!B19/12+'(Other Computations)'!B144)","v":{"v":33122840.022544093,"d":"$33,122,840"}},{"$f":"Inputs!B20*DQ10/(1/Inputs!B19/12+'(Other Computations)'!B144)","v":{"v":33108730.427220937,"d":"$33,108,730"}},{"$f":"Inputs!B20*DR10/(1/Inputs!B19/12+'(Other Computations)'!B144)","v":{"v":33094498.507755548,"d":"$33,094,499"}},{"$f":"Inputs!B20*DS10/(1/Inputs!B19/12+'(Other Computations)'!B144)","v":{"v":33078086.72357833,"d":"$33,078,087"}},{"$f":"Inputs!B20*DT10/(1/Inputs!B19/12+'(Other Computations)'!B144)","v":{"v":33064908.43674927,"d":"$33,064,908"}},{"$f":"Inputs!B20*DU10/(1/Inputs!B19/12+'(Other Computations)'!B144)","v":{"v":33048708.338944048,"d":"$33,048,708"}},{"$f":"Inputs!B20*DV10/(1/Inputs!B19/12+'(Other Computations)'!B144)","v":{"v":33033579.405120507,"d":"$33,033,579"}},{"$f":"Inputs!B20*DW10/(1/Inputs!B19/12+'(Other Computations)'!B144)","v":{"v":33021304.688856814,"d":"$33,021,305"}},{"$f":"Inputs!B20*DX10/(1/Inputs!B19/12+'(Other Computations)'!B144)","v":{"v":33011622.54001145,"d":"$33,011,623"}},{"$f":"Inputs!B20*DY10/(1/Inputs!B19/12+'(Other Computations)'!B144)","v":{"v":32994555.11553646,"d":"$32,994,555"}},{"$f":"Inputs!B20*DZ10/(1/Inputs!B19/12+'(Other Computations)'!B144)","v":{"v":32979256.252452966,"d":"$32,979,256"}},{"$f":"DZ22","v":{"v":32979256.252452966,"d":"$32,979,256"}},{"$f":"Inputs!B20*EB10/(1/Inputs!B19/12+'(Other Computations)'!B144)","v":{"v":32962944.856494986,"d":"$32,962,945"}},{"$f":"Inputs!B20*EC10/(1/Inputs!B19/12+'(Other Computations)'!B144)","v":{"v":32951602.407221336,"d":"$32,951,602"}},{"$f":"Inputs!B20*ED10/(1/Inputs!B19/12+'(Other Computations)'!B144)","v":{"v":32935524.13198477,"d":"$32,935,524"}},{"$f":"Inputs!B20*EE10/(1/Inputs!B19/12+'(Other Computations)'!B144)","v":{"v":32921522.47970651,"d":"$32,921,522"}},{"$f":"Inputs!B20*EF10/(1/Inputs!B19/12+'(Other Computations)'!B144)","v":{"v":32908424.77884089,"d":"$32,908,425"}},{"$f":"Inputs!B20*EG10/(1/Inputs!B19/12+'(Other Computations)'!B144)","v":{"v":32892479.690461826,"d":"$32,892,480"}},{"$f":"Inputs!B20*EH10/(1/Inputs!B19/12+'(Other Computations)'!B144)","v":{"v":32874594.72956348,"d":"$32,874,595"}},{"$f":"Inputs!B20*EI10/(1/Inputs!B19/12+'(Other Computations)'!B144)","v":{"v":32857270.208599605,"d":"$32,857,270"}},{"$f":"Inputs!B20*EJ10/(1/Inputs!B19/12+'(Other Computations)'!B144)","v":{"v":32844538.455430996,"d":"$32,844,538"}},{"$f":"Inputs!B20*EK10/(1/Inputs!B19/12+'(Other Computations)'!B144)","v":{"v":32832178.093927085,"d":"$32,832,178"}},{"$f":"Inputs!B20*EL10/(1/Inputs!B19/12+'(Other Computations)'!B144)","v":{"v":32818193.5090161,"d":"$32,818,194"}},{"$f":"Inputs!B20*EM10/(1/Inputs!B19/12+'(Other Computations)'!B144)","v":{"v":32806652.409482125,"d":"$32,806,652"}},{"$f":"EM22","v":{"v":32806652.409482125,"d":"$32,806,652"}}]
[]
[]
[{"$f":"\"Employment\"","v":"Employment"}]
[{"$f":"\" \"","v":" "}]
[null,{"$f":"ZZZ__FnCalls!F7","v":"Jan 2010"},{"$f":"ZZZ__FnCalls!F8","v":"Feb 2010"},{"$f":"ZZZ__FnCalls!F9","v":"Mar 2010"},{"$f":"ZZZ__FnCalls!F10","v":"Apr 2010"},{"$f":"ZZZ__FnCalls!F11","v":"May 2010"},{"$f":"ZZZ__FnCalls!F12","v":"Jun 2010"},{"$f":"ZZZ__FnCalls!F13","v":"Jul 2010"},{"$f":"ZZZ__FnCalls!F14","v":"Aug 2010"},{"$f":"ZZZ__FnCalls!F15","v":"Sep 2010"},{"$f":"ZZZ__FnCalls!F16","v":"Oct 2010"},{"$f":"ZZZ__FnCalls!F17","v":"Nov 2010"},{"$f":"ZZZ__FnCalls!F18","v":"Dec 2010"},{"$f":"ZZZ__FnCalls!H7","v":"2010"},{"$f":"ZZZ__FnCalls!F19","v":"Jan 2011"},{"$f":"ZZZ__FnCalls!F20","v":"Feb 2011"},{"$f":"ZZZ__FnCalls!F21","v":"Mar 2011"},{"$f":"ZZZ__FnCalls!F22","v":"Apr 2011"},{"$f":"ZZZ__FnCalls!F23","v":"May 2011"},{"$f":"ZZZ__FnCalls!F24","v":"Jun 2011"},{"$f":"ZZZ__FnCalls!F25","v":"Jul 2011"},{"$f":"ZZZ__FnCalls!F26","v":"Aug 2011"},{"$f":"ZZZ__FnCalls!F27","v":"Sep 2011"},{"$f":"ZZZ__FnCalls!F28","v":"Oct 2011"},{"$f":"ZZZ__FnCalls!F29","v":"Nov 2011"},{"$f":"ZZZ__FnCalls!F30","v":"Dec 2011"},{"$f":"ZZZ__FnCalls!H19","v":"2011"},{"$f":"ZZZ__FnCalls!F31","v":"Jan 2012"},{"$f":"ZZZ__FnCalls!F32","v":"Feb 2012"},{"$f":"ZZZ__FnCalls!F33","v":"Mar 2012"},{"$f":"ZZZ__FnCalls!F34","v":"Apr 2012"},{"$f":"ZZZ__FnCalls!F35","v":"May 2012"},{"$f":"ZZZ__FnCalls!F36","v":"Jun 2012"},{"$f":"ZZZ__FnCalls!F37","v":"Jul 2012"},{"$f":"ZZZ__FnCalls!F38","v":"Aug 2012"},{"$f":"ZZZ__FnCalls!F39","v":"Sep 2012"},{"$f":"ZZZ__FnCalls!F40","v":"Oct 2012"},{"$f":"ZZZ__FnCalls!F41","v":"Nov 2012"},{"$f":"ZZZ__FnCalls!F42","v":"Dec 2012"},{"$f":"ZZZ__FnCalls!H31","v":"2012"},{"$f":"ZZZ__FnCalls!F43","v":"Jan 2013"},{"$f":"ZZZ__FnCalls!F44","v":"Feb 2013"},{"$f":"ZZZ__FnCalls!F45","v":"Mar 2013"},{"$f":"ZZZ__FnCalls!F46","v":"Apr 2013"},{"$f":"ZZZ__FnCalls!F47","v":"May 2013"},{"$f":"ZZZ__FnCalls!F48","v":"Jun 2013"},{"$f":"ZZZ__FnCalls!F49","v":"Jul 2013"},{"$f":"ZZZ__FnCalls!F50","v":"Aug 2013"},{"$f":"ZZZ__FnCalls!F51","v":"Sep 2013"},{"$f":"ZZZ__FnCalls!F52","v":"Oct 2013"},{"$f":"ZZZ__FnCalls!F53","v":"Nov 2013"},{"$f":"ZZZ__FnCalls!F54","v":"Dec 2013"},{"$f":"ZZZ__FnCalls!H43","v":"2013"},{"$f":"ZZZ__FnCalls!F55","v":"Jan 2014"},{"$f":"ZZZ__FnCalls!F56","v":"Feb 2014"},{"$f":"ZZZ__FnCalls!F57","v":"Mar 2014"},{"$f":"ZZZ__FnCalls!F58","v":"Apr 2014"},{"$f":"ZZZ__FnCalls!F59","v":"May 2014"},{"$f":"ZZZ__FnCalls!F60","v":"Jun 2014"},{"$f":"ZZZ__FnCalls!F61","v":"Jul 2014"},{"$f":"ZZZ__FnCalls!F62","v":"Aug 2014"},{"$f":"ZZZ__FnCalls!F63","v":"Sep 2014"},{"$f":"ZZZ__FnCalls!F64","v":"Oct 2014"},{"$f":"ZZZ__FnCalls!F65","v":"Nov 2014"},{"$f":"ZZZ__FnCalls!F66","v":"Dec 2014"},{"$f":"ZZZ__FnCalls!H55","v":"2014"},{"$f":"ZZZ__FnCalls!F67","v":"Jan 2015"},{"$f":"ZZZ__FnCalls!F68","v":"Feb 2015"},{"$f":"ZZZ__FnCalls!F69","v":"Mar 2015"},{"$f":"ZZZ__FnCalls!F70","v":"Apr 2015"},{"$f":"ZZZ__FnCalls!F71","v":"May 2015"},{"$f":"ZZZ__FnCalls!F72","v":"Jun 2015"},{"$f":"ZZZ__FnCalls!F73","v":"Jul 2015"},{"$f":"ZZZ__FnCalls!F74","v":"Aug 2015"},{"$f":"ZZZ__FnCalls!F75","v":"Sep 2015"},{"$f":"ZZZ__FnCalls!F76","v":"Oct 2015"},{"$f":"ZZZ__FnCalls!F77","v":"Nov 2015"},{"$f":"ZZZ__FnCalls!F78","v":"Dec 2015"},{"$f":"ZZZ__FnCalls!H67","v":"2015"},{"$f":"ZZZ__FnCalls!F79","v":"Jan 2016"},{"$f":"ZZZ__FnCalls!F80","v":"Feb 2016"},{"$f":"ZZZ__FnCalls!F81","v":"Mar 2016"},{"$f":"ZZZ__FnCalls!F82","v":"Apr 2016"},{"$f":"ZZZ__FnCalls!F83","v":"May 2016"},{"$f":"ZZZ__FnCalls!F84","v":"Jun 2016"},{"$f":"ZZZ__FnCalls!F85","v":"Jul 2016"},{"$f":"ZZZ__FnCalls!F86","v":"Aug 2016"},{"$f":"ZZZ__FnCalls!F87","v":"Sep 2016"},{"$f":"ZZZ__FnCalls!F88","v":"Oct 2016"},{"$f":"ZZZ__FnCalls!F89","v":"Nov 2016"},{"$f":"ZZZ__FnCalls!F90","v":"Dec 2016"},{"$f":"ZZZ__FnCalls!H79","v":"2016"},{"$f":"ZZZ__FnCalls!F91","v":"Jan 2017"},{"$f":"ZZZ__FnCalls!F92","v":"Feb 2017"},{"$f":"ZZZ__FnCalls!F93","v":"Mar 2017"},{"$f":"ZZZ__FnCalls!F94","v":"Apr 2017"},{"$f":"ZZZ__FnCalls!F95","v":"May 2017"},{"$f":"ZZZ__FnCalls!F96","v":"Jun 2017"},{"$f":"ZZZ__FnCalls!F97","v":"Jul 2017"},{"$f":"ZZZ__FnCalls!F98","v":"Aug 2017"},{"$f":"ZZZ__FnCalls!F99","v":"Sep 2017"},{"$f":"ZZZ__FnCalls!F100","v":"Oct 2017"},{"$f":"ZZZ__FnCalls!F101","v":"Nov 2017"},{"$f":"ZZZ__FnCalls!F102","v":"Dec 2017"},{"$f":"ZZZ__FnCalls!H91","v":"2017"},{"$f":"ZZZ__FnCalls!F103","v":"Jan 2018"},{"$f":"ZZZ__FnCalls!F104","v":"Feb 2018"},{"$f":"ZZZ__FnCalls!F105","v":"Mar 2018"},{"$f":"ZZZ__FnCalls!F106","v":"Apr 2018"},{"$f":"ZZZ__FnCalls!F107","v":"May 2018"},{"$f":"ZZZ__FnCalls!F108","v":"Jun 2018"},{"$f":"ZZZ__FnCalls!F109","v":"Jul 2018"},{"$f":"ZZZ__FnCalls!F110","v":"Aug 2018"},{"$f":"ZZZ__FnCalls!F111","v":"Sep 2018"},{"$f":"ZZZ__FnCalls!F112","v":"Oct 2018"},{"$f":"ZZZ__FnCalls!F113","v":"Nov 2018"},{"$f":"ZZZ__FnCalls!F114","v":"Dec 2018"},{"$f":"ZZZ__FnCalls!H103","v":"2018"},{"$f":"ZZZ__FnCalls!F115","v":"Jan 2019"},{"$f":"ZZZ__FnCalls!F116","v":"Feb 2019"},{"$f":"ZZZ__FnCalls!F117","v":"Mar 2019"},{"$f":"ZZZ__FnCalls!F118","v":"Apr 2019"},{"$f":"ZZZ__FnCalls!F119","v":"May 2019"},{"$f":"ZZZ__FnCalls!F120","v":"Jun 2019"},{"$f":"ZZZ__FnCalls!F121","v":"Jul 2019"},{"$f":"ZZZ__FnCalls!F122","v":"Aug 2019"},{"$f":"ZZZ__FnCalls!F123","v":"Sep 2019"},{"$f":"ZZZ__FnCalls!F124","v":"Oct 2019"},{"$f":"ZZZ__FnCalls!F125","v":"Nov 2019"},{"$f":"ZZZ__FnCalls!F126","v":"Dec 2019"},{"$f":"ZZZ__FnCalls!H115","v":"2019"},{"$f":"ZZZ__FnCalls!F127","v":"Jan 2020"},{"$f":"ZZZ__FnCalls!F128","v":"Feb 2020"},{"$f":"ZZZ__FnCalls!F129","v":"Mar 2020"},{"$f":"ZZZ__FnCalls!F130","v":"Apr 2020"},{"$f":"ZZZ__FnCalls!F131","v":"May 2020"},{"$f":"ZZZ__FnCalls!F132","v":"Jun 2020"},{"$f":"ZZZ__FnCalls!F133","v":"Jul 2020"},{"$f":"ZZZ__FnCalls!F134","v":"Aug 2020"},{"$f":"ZZZ__FnCalls!F135","v":"Sep 2020"},{"$f":"ZZZ__FnCalls!F136","v":"Oct 2020"},{"$f":"ZZZ__FnCalls!F137","v":"Nov 2020"},{"$f":"ZZZ__FnCalls!F138","v":"Dec 2020"},{"$f":"ZZZ__FnCalls!H127","v":"2020"}]
[{"$f":"Labels!B38","v":"Employment"},{"$f":"Inputs!B27+'(Other Computations)'!B61*0/Inputs!B28/12","v":{"v":140,"d":"140.00"}},{"$f":"B28+'(Other Computations)'!B61*(B29-B28)/Inputs!B28/12","v":{"v":140,"d":"140.00"}},{"$f":"C28+'(Other Computations)'!B61*(C29-C28)/Inputs!B28/12","v":{"v":139.99328730318734,"d":"139.99"}},{"$f":"D28+'(Other Computations)'!B61*(D29-D28)/Inputs!B28/12","v":{"v":139.98159075470167,"d":"139.98"}},{"$f":"E28+'(Other Computations)'!B61*(E29-E28)/Inputs!B28/12","v":{"v":139.96481756676343,"d":"139.96"}},{"$f":"F28+'(Other Computations)'!B61*(F29-F28)/Inputs!B28/12","v":{"v":139.94243035202317,"d":"139.94"}},{"$f":"G28+'(Other Computations)'!B61*(G29-G28)/Inputs!B28/12","v":{"v":139.91574239689666,"d":"139.92"}},{"$f":"H28+'(Other Computations)'!B61*(H29-H28)/Inputs!B28/12","v":{"v":139.88493142512922,"d":"139.88"}},{"$f":"I28+'(Other Computations)'!B61*(I29-I28)/Inputs!B28/12","v":{"v":139.85005642559872,"d":"139.85"}},{"$f":"J28+'(Other Computations)'!B61*(J29-J28)/Inputs!B28/12","v":{"v":139.81148408709817,"d":"139.81"}},{"$f":"K28+'(Other Computations)'!B61*(K29-K28)/Inputs!B28/12","v":{"v":139.76792553978382,"d":"139.77"}},{"$f":"L28+'(Other Computations)'!B61*(L29-L28)/Inputs!B28/12","v":{"v":139.7190964505018,"d":"139.72"}},{"$f":"M28","v":{"v":139.7190964505018,"d":"139.72"}},{"$f":"M28+'(Other Computations)'!B61*(M29-M28)/Inputs!B28/12","v":{"v":139.66573092495392,"d":"139.67"}},{"$f":"O28+'(Other Computations)'!B61*(O29-O28)/Inputs!B28/12","v":{"v":139.60778711030412,"d":"139.61"}},{"$f":"P28+'(Other Computations)'!B61*(P29-P28)/Inputs!B28/12","v":{"v":139.5458391896073,"d":"139.55"}},{"$f":"Q28+'(Other Computations)'!B61*(Q29-Q28)/Inputs!B28/12","v":{"v":139.4809243047165,"d":"139.48"}},{"$f":"R28+'(Other Computations)'!B61*(R29-R28)/Inputs!B28/12","v":{"v":139.41303708262876,"d":"139.41"}},{"$f":"S28+'(Other Computations)'!B61*(S29-S28)/Inputs!B28/12","v":{"v":139.34202015083346,"d":"139.34"}},{"$f":"T28+'(Other Computations)'!B61*(T29-T28)/Inputs!B28/12","v":{"v":139.26759111635766,"d":"139.27"}},{"$f":"U28+'(Other Computations)'!B61*(U29-U28)/Inputs!B28/12","v":{"v":139.19040493081994,"d":"139.19"}},{"$f":"V28+'(Other Computations)'!B61*(V29-V28)/Inputs!B28/12","v":{"v":139.10953865514443,"d":"139.11"}},{"$f":"W28+'(Other Computations)'!B61*(W29-W28)/Inputs!B28/12","v":{"v":139.02616368865893,"d":"139.03"}},{"$f":"X28+'(Other Computations)'!B61*(X29-X28)/Inputs!B28/12","v":{"v":138.94070954481575,"d":"138.94"}},{"$f":"Y28+'(Other Computations)'!B61*(Y29-Y28)/Inputs!B28/12","v":{"v":138.85283207906335,"d":"138.85"}},{"$f":"Z28","v":{"v":138.85283207906335,"d":"138.85"}},{"$f":"Z28+'(Other Computations)'!B61*(Z29-Z28)/Inputs!B28/12","v":{"v":138.76184540585402,"d":"138.76"}},{"$f":"AB28+'(Other Computations)'!B61*(AB29-AB28)/Inputs!B28/12","v":{"v":138.66638895938377,"d":"138.67"}},{"$f":"AC28+'(Other Computations)'!B61*(AC29-AC28)/Inputs!B28/12","v":{"v":138.5664799781949,"d":"138.57"}},{"$f":"AD28+'(Other Computations)'!B61*(AD29-AD28)/Inputs!B28/12","v":{"v":138.46377732677598,"d":"138.46"}},{"$f":"AE28+'(Other Computations)'!B61*(AE29-AE28)/Inputs!B28/12","v":{"v":138.35878793294614,"d":"138.36"}},{"$f":"AF28+'(Other Computations)'!B61*(AF29-AF28)/Inputs!B28/12","v":{"v":138.2521080775638,"d":"138.25"}},{"$f":"AG28+'(Other Computations)'!B61*(AG29-AG28)/Inputs!B28/12","v":{"v":138.1423265199123,"d":"138.14"}},{"$f":"AH28+'(Other Computations)'!B61*(AH29-AH28)/Inputs!B28/12","v":{"v":138.03070966982278,"d":"138.03"}},{"$f":"AI28+'(Other Computations)'!B61*(AI29-AI28)/Inputs!B28/12","v":{"v":137.91725130705413,"d":"137.92"}},{"$f":"AJ28+'(Other Computations)'!B61*(AJ29-AJ28)/Inputs!B28/12","v":{"v":137.8004752049229,"d":"137.80"}},{"$f":"AK28+'(Other Computations)'!B61*(AK29-AK28)/Inputs!B28/12","v":{"v":137.6812671250002,"d":"137.68"}},{"$f":"AL28+'(Other Computations)'!B61*(AL29-AL28)/Inputs!B28/12","v":{"v":137.56003943479288,"d":"137.56"}},{"$f":"AM28","v":{"v":137.56003943479288,"d":"137.56"}},{"$f":"AM28+'(Other Computations)'!B61*(AM29-AM28)/Inputs!B28/12","v":{"v":137.43695315190337,"d":"137.44"}},{"$f":"AO28+'(Other Computations)'!B61*(AO29-AO28)/Inputs!B28/12","v":{"v":137.31141272705344,"d":"137.31"}},{"$f":"AP28+'(Other Computations)'!B61*(AP29-AP28)/Inputs!B28/12","v":{"v":137.18309830705834,"d":"137.18"}},{"$f":"AQ28+'(Other Computations)'!B61*(AQ29-AQ28)/Inputs!B28/12","v":{"v":137.05284148124554,"d":"137.05"}},{"$f":"AR28+'(Other Computations)'!B61*(AR29-AR28)/Inputs!B28/12","v":{"v":136.92170339727696,"d":"136.92"}},{"$f":"AS28+'(Other Computations)'!B61*(AS29-AS28)/Inputs!B28/12","v":{"v":136.78966728658543,"d":"136.79"}},{"$f":"AT28+'(Other Computations)'!B61*(AT29-AT28)/Inputs!B28/12","v":{"v":136.65750960328276,"d":"136.66"}},{"$f":"AU28+'(Other Computations)'!B61*(AU29-AU28)/Inputs!B28/12","v":{"v":136.52315523421373,"d":"136.52"}},{"$f":"AV28+'(Other Computations)'!B61*(AV29-AV28)/Inputs!B28/12","v":{"v":136.3871855996617,"d":"136.39"}},{"$f":"AW28+'(Other Computations)'!B61*(AW29-AW28)/Inputs!B28/12","v":{"v":136.24963386367313,"d":"136.25"}},{"$f":"AX28+'(Other Computations)'!B61*(AX29-AX28)/Inputs!B28/12","v":{"v":136.11015951205854,"d":"136.11"}},{"$f":"AY28+'(Other Computations)'!B61*(AY29-AY28)/Inputs!B28/12","v":{"v":135.96848535429808,"d":"135.97"}},{"$f":"AZ28","v":{"v":135.96848535429808,"d":"135.97"}},{"$f":"AZ28+'(Other Computations)'!B61*(AZ29-AZ28)/Inputs!B28/12","v":{"v":135.82491813419546,"d":"135.82"}},{"$f":"BB28+'(Other Computations)'!B61*(BB29-BB28)/Inputs!B28/12","v":{"v":135.67897259967563,"d":"135.68"}},{"$f":"BC28+'(Other Computations)'!B61*(BC29-BC28)/Inputs!B28/12","v":{"v":135.53162499508042,"d":"135.53"}},{"$f":"BD28+'(Other Computations)'!B61*(BD29-BD28)/Inputs!B28/12","v":{"v":135.38286575930047,"d":"135.38"}},{"$f":"BE28+'(Other Computations)'!B61*(BE29-BE28)/Inputs!B28/12","v":{"v":135.2336320053194,"d":"135.23"}},{"$f":"BF28+'(Other Computations)'!B61*(BF29-BF28)/Inputs!B28/12","v":{"v":135.08325574946073,"d":"135.08"}},{"$f":"BG28+'(Other Computations)'!B61*(BG29-BG28)/Inputs!B28/12","v":{"v":134.93248726878238,"d":"134.93"}},{"$f":"BH28+'(Other Computations)'!B61*(BH29-BH28)/Inputs!B28/12","v":{"v":134.78196068884694,"d":"134.78"}},{"$f":"BI28+'(Other Computations)'!B61*(BI29-BI28)/Inputs!B28/12","v":{"v":134.62980605161877,"d":"134.63"}},{"$f":"BJ28+'(Other Computations)'!B61*(BJ29-BJ28)/Inputs!B28/12","v":{"v":134.4769191511105,"d":"134.48"}},{"$f":"BK28+'(Other Computations)'!B61*(BK29-BK28)/Inputs!B28/12","v":{"v":134.32288001784914,"d":"134.32"}},{"$f":"BL28+'(Other Computations)'!B61*(BL29-BL28)/Inputs!B28/12","v":{"v":134.16707593275794,"d":"134.17"}},{"$f":"BM28","v":{"v":134.16707593275794,"d":"134.17"}},{"$f":"BM28+'(Other Computations)'!B61*(BM29-BM28)/Inputs!B28/12","v":{"v":134.0103197128399,"d":"134.01"}},{"$f":"BO28+'(Other Computations)'!B61*(BO29-BO28)/Inputs!B28/12","v":{"v":133.85364737183957,"d":"133.85"}},{"$f":"BP28+'(Other Computations)'!B61*(BP29-BP28)/Inputs!B28/12","v":{"v":133.69605065896943,"d":"133.70"}},{"$f":"BQ28+'(Other Computations)'!B61*(BQ29-BQ28)/Inputs!B28/12","v":{"v":133.5366358777944,"d":"133.54"}},{"$f":"BR28+'(Other Computations)'!B61*(BR29-BR28)/Inputs!B28/12","v":{"v":133.3774990435361,"d":"133.38"}},{"$f":"BS28+'(Other Computations)'!B61*(BS29-BS28)/Inputs!B28/12","v":{"v":133.2186273397753,"d":"133.22"}},{"$f":"BT28+'(Other Computations)'!B61*(BT29-BT28)/Inputs!B28/12","v":{"v":133.06052962625057,"d":"133.06"}},{"$f":"BU28+'(Other Computations)'!B61*(BU29-BU28)/Inputs!B28/12","v":{"v":132.90341766026972,"d":"132.90"}},{"$f":"BV28+'(Other Computations)'!B61*(BV29-BV28)/Inputs!B28/12","v":{"v":132.74692904789867,"d":"132.75"}},{"$f":"BW28+'(Other Computations)'!B61*(BW29-BW28)/Inputs!B28/12","v":{"v":132.58939574241344,"d":"132.59"}},{"$f":"BX28+'(Other Computations)'!B61*(BX29-BX28)/Inputs!B28/12","v":{"v":132.43290952341144,"d":"132.43"}},{"$f":"BY28+'(Other Computations)'!B61*(BY29-BY28)/Inputs!B28/12","v":{"v":132.27552252078976,"d":"132.28"}},{"$f":"BZ28","v":{"v":132.27552252078976,"d":"132.28"}},{"$f":"BZ28+'(Other Computations)'!B61*(BZ29-BZ28)/Inputs!B28/12","v":{"v":132.1167636672888,"d":"132.12"}},{"$f":"CB28+'(Other Computations)'!B61*(CB29-CB28)/Inputs!B28/12","v":{"v":131.9561600035148,"d":"131.96"}},{"$f":"CC28+'(Other Computations)'!B61*(CC29-CC28)/Inputs!B28/12","v":{"v":131.79542933272006,"d":"131.80"}},{"$f":"CD28+'(Other Computations)'!B61*(CD29-CD28)/Inputs!B28/12","v":{"v":131.63539337687024,"d":"131.64"}},{"$f":"CE28+'(Other Computations)'!B61*(CE29-CE28)/Inputs!B28/12","v":{"v":131.47619803926477,"d":"131.48"}},{"$f":"CF28+'(Other Computations)'!B61*(CF29-CF28)/Inputs!B28/12","v":{"v":131.31532359808523,"d":"131.32"}},{"$f":"CG28+'(Other Computations)'!B61*(CG29-CG28)/Inputs!B28/12","v":{"v":131.15406377402832,"d":"131.15"}},{"$f":"CH28+'(Other Computations)'!B61*(CH29-CH28)/Inputs!B28/12","v":{"v":130.99369066646642,"d":"130.99"}},{"$f":"CI28+'(Other Computations)'!B61*(CI29-CI28)/Inputs!B28/12","v":{"v":130.83167780981523,"d":"130.83"}},{"$f":"CJ28+'(Other Computations)'!B61*(CJ29-CJ28)/Inputs!B28/12","v":{"v":130.66902204844172,"d":"130.67"}},{"$f":"CK28+'(Other Computations)'!B61*(CK29-CK28)/Inputs!B28/12","v":{"v":130.5084028278541,"d":"130.51"}},{"$f":"CL28+'(Other Computations)'!B61*(CL29-CL28)/Inputs!B28/12","v":{"v":130.34958353534623,"d":"130.35"}},{"$f":"CM28","v":{"v":130.34958353534623,"d":"130.35"}},{"$f":"CM28+'(Other Computations)'!B61*(CM29-CM28)/Inputs!B28/12","v":{"v":130.19079410348257,"d":"130.19"}},{"$f":"CO28+'(Other Computations)'!B61*(CO29-CO28)/Inputs!B28/12","v":{"v":130.03314927773368,"d":"130.03"}},{"$f":"CP28+'(Other Computations)'!B61*(CP29-CP28)/Inputs!B28/12","v":{"v":129.87739464379894,"d":"129.88"}},{"$f":"CQ28+'(Other Computations)'!B61*(CQ29-CQ28)/Inputs!B28/12","v":{"v":129.7217063871125,"d":"129.72"}},{"$f":"CR28+'(Other Computations)'!B61*(CR29-CR28)/Inputs!B28/12","v":{"v":129.56675247924707,"d":"129.57"}},{"$f":"CS28+'(Other Computations)'!B61*(CS29-CS28)/Inputs!B28/12","v":{"v":129.41273671731287,"d":"129.41"}},{"$f":"CT28+'(Other Computations)'!B61*(CT29-CT28)/Inputs!B28/12","v":{"v":129.25903864265308,"d":"129.26"}},{"$f":"CU28+'(Other Computations)'!B61*(CU29-CU28)/Inputs!B28/12","v":{"v":129.10548217369742,"d":"129.11"}},{"$f":"CV28+'(Other Computations)'!B61*(CV29-CV28)/Inputs!B28/12","v":{"v":128.95307913187244,"d":"128.95"}},{"$f":"CW28+'(Other Computations)'!B61*(CW29-CW28)/Inputs!B28/12","v":{"v":128.80088673656059,"d":"128.80"}},{"$f":"CX28+'(Other Computations)'!B61*(CX29-CX28)/Inputs!B28/12","v":{"v":128.64882344911743,"d":"128.65"}},{"$f":"CY28+'(Other Computations)'!B61*(CY29-CY28)/Inputs!B28/12","v":{"v":128.4958006394699,"d":"128.50"}},{"$f":"CZ28","v":{"v":128.4958006394699,"d":"128.50"}},{"$f":"CZ28+'(Other Computations)'!B61*(CZ29-CZ28)/Inputs!B28/12","v":{"v":128.34204521646328,"d":"128.34"}},{"$f":"DB28+'(Other Computations)'!B61*(DB29-DB28)/Inputs!B28/12","v":{"v":128.18912657930258,"d":"128.19"}},{"$f":"DC28+'(Other Computations)'!B61*(DC29-DC28)/Inputs!B28/12","v":{"v":128.03802520057027,"d":"128.04"}},{"$f":"DD28+'(Other Computations)'!B61*(DD29-DD28)/Inputs!B28/12","v":{"v":127.88828489775653,"d":"127.89"}},{"$f":"DE28+'(Other Computations)'!B61*(DE29-DE28)/Inputs!B28/12","v":{"v":127.73904056067845,"d":"127.74"}},{"$f":"DF28+'(Other Computations)'!B61*(DF29-DF28)/Inputs!B28/12","v":{"v":127.59058004551481,"d":"127.59"}},{"$f":"DG28+'(Other Computations)'!B61*(DG29-DG28)/Inputs!B28/12","v":{"v":127.44275997930467,"d":"127.44"}},{"$f":"DH28+'(Other Computations)'!B61*(DH29-DH28)/Inputs!B28/12","v":{"v":127.29412677924877,"d":"127.29"}},{"$f":"DI28+'(Other Computations)'!B61*(DI29-DI28)/Inputs!B28/12","v":{"v":127.14460790473575,"d":"127.14"}},{"$f":"DJ28+'(Other Computations)'!B61*(DJ29-DJ28)/Inputs!B28/12","v":{"v":126.99564141127522,"d":"127.00"}},{"$f":"DK28+'(Other Computations)'!B61*(DK29-DK28)/Inputs!B28/12","v":{"v":126.84707118631147,"d":"126.85"}},{"$f":"DL28+'(Other Computations)'!B61*(DL29-DL28)/Inputs!B28/12","v":{"v":126.69766845512348,"d":"126.70"}},{"$f":"DM28","v":{"v":126.69766845512348,"d":"126.70"}},{"$f":"DM28+'(Other Computations)'!B61*(DM29-DM28)/Inputs!B28/12","v":{"v":126.54892387716299,"d":"126.55"}},{"$f":"DO28+'(Other Computations)'!B61*(DO29-DO28)/Inputs!B28/12","v":{"v":126.4009032980913,"d":"126.40"}},{"$f":"DP28+'(Other Computations)'!B61*(DP29-DP28)/Inputs!B28/12","v":{"v":126.25266253172441,"d":"126.25"}},{"$f":"DQ28+'(Other Computations)'!B61*(DQ29-DQ28)/Inputs!B28/12","v":{"v":126.10491075039927,"d":"126.10"}},{"$f":"DR28+'(Other Computations)'!B61*(DR29-DR28)/Inputs!B28/12","v":{"v":125.95760317978566,"d":"125.96"}},{"$f":"DS28+'(Other Computations)'!B61*(DS29-DS28)/Inputs!B28/12","v":{"v":125.80983012188325,"d":"125.81"}},{"$f":"DT28+'(Other Computations)'!B61*(DT29-DT28)/Inputs!B28/12","v":{"v":125.66298673584622,"d":"125.66"}},{"$f":"DU28+'(Other Computations)'!B61*(DU29-DU28)/Inputs!B28/12","v":{"v":125.51579478220657,"d":"125.52"}},{"$f":"DV28+'(Other Computations)'!B61*(DV29-DV28)/Inputs!B28/12","v":{"v":125.36873566424609,"d":"125.37"}},{"$f":"DW28+'(Other Computations)'!B61*(DW29-DW28)/Inputs!B28/12","v":{"v":125.2230274144295,"d":"125.22"}},{"$f":"DX28+'(Other Computations)'!B61*(DX29-DX28)/Inputs!B28/12","v":{"v":125.07974261371407,"d":"125.08"}},{"$f":"DY28+'(Other Computations)'!B61*(DY29-DY28)/Inputs!B28/12","v":{"v":124.93572252653982,"d":"124.94"}},{"$f":"DZ28","v":{"v":124.93572252653982,"d":"124.94"}},{"$f":"DZ28+'(Other Computations)'!B61*(DZ29-DZ28)/Inputs!B28/12","v":{"v":124.79175249523735,"d":"124.79"}},{"$f":"EB28+'(Other Computations)'!B61*(EB29-EB28)/Inputs!B28/12","v":{"v":124.64742456767603,"d":"124.65"}},{"$f":"EC28+'(Other Computations)'!B61*(EC29-EC28)/Inputs!B28/12","v":{"v":124.50486034092798,"d":"124.50"}},{"$f":"ED28+'(Other Computations)'!B61*(ED29-ED28)/Inputs!B28/12","v":{"v":124.36203498553769,"d":"124.36"}},{"$f":"EE28+'(Other Computations)'!B61*(EE29-EE28)/Inputs!B28/12","v":{"v":124.21984948959926,"d":"124.22"}},{"$f":"EF28+'(Other Computations)'!B61*(EF29-EF28)/Inputs!B28/12","v":{"v":124.07868515610762,"d":"124.08"}},{"$f":"EG28+'(Other Computations)'!B61*(EG29-EG28)/Inputs!B28/12","v":{"v":123.93733303823662,"d":"123.94"}},{"$f":"EH28+'(Other Computations)'!B61*(EH29-EH28)/Inputs!B28/12","v":{"v":123.79500095066723,"d":"123.80"}},{"$f":"EI28+'(Other Computations)'!B61*(EI29-EI28)/Inputs!B28/12","v":{"v":123.65197208183936,"d":"123.65"}},{"$f":"EJ28+'(Other Computations)'!B61*(EJ29-EJ28)/Inputs!B28/12","v":{"v":123.51021889092615,"d":"123.51"}},{"$f":"EK28+'(Other Computations)'!B61*(EK29-EK28)/Inputs!B28/12","v":{"v":123.36987992630812,"d":"123.37"}},{"$f":"EL28+'(Other Computations)'!B61*(EL29-EL28)/Inputs!B28/12","v":{"v":123.23024944169248,"d":"123.23"}},{"$f":"EM28","v":{"v":123.23024944169248,"d":"123.23"}}]
[{"$f":"Labels!B39","v":"Desired Employment"},{"$f":"(1-Inputs!B20)*B11/'(Other Computations)'!B130","v":{"v":140,"d":"140.00"}},{"$f":"(1-Inputs!B20)*C11/'(Other Computations)'!B130","v":{"v":139.6133486635911,"d":"139.61"}},{"$f":"(1-Inputs!B20)*D11/'(Other Computations)'!B130","v":{"v":139.31956611041235,"d":"139.32"}},{"$f":"(1-Inputs!B20)*E11/'(Other Computations)'!B130","v":{"v":139.01545512945899,"d":"139.02"}},{"$f":"(1-Inputs!B20)*F11/'(Other Computations)'!B130","v":{"v":138.67531399772426,"d":"138.68"}},{"$f":"(1-Inputs!B20)*G11/'(Other Computations)'!B130","v":{"v":138.40520413673596,"d":"138.41"}},{"$f":"(1-Inputs!B20)*H11/'(Other Computations)'!B130","v":{"v":138.14103042309196,"d":"138.14"}},{"$f":"(1-Inputs!B20)*I11/'(Other Computations)'!B130","v":{"v":137.8761314521719,"d":"137.88"}},{"$f":"(1-Inputs!B20)*J11/'(Other Computations)'!B130","v":{"v":137.62828972796635,"d":"137.63"}},{"$f":"(1-Inputs!B20)*K11/'(Other Computations)'!B130","v":{"v":137.30251176179127,"d":"137.30"}},{"$f":"(1-Inputs!B20)*L11/'(Other Computations)'!B130","v":{"v":136.95536999714065,"d":"136.96"}},{"$f":"(1-Inputs!B20)*M11/'(Other Computations)'!B130","v":{"v":136.6452421789432,"d":"136.65"}},{"$f":"SUM(B29:M29)","v":{"v":1659.577463579028,"d":"1,659.58"}},{"$f":"(1-Inputs!B20)*O11/'(Other Computations)'!B130","v":{"v":136.32816720112473,"d":"136.33"}},{"$f":"(1-Inputs!B20)*P11/'(Other Computations)'!B130","v":{"v":136.03958687816854,"d":"136.04"}},{"$f":"(1-Inputs!B20)*Q11/'(Other Computations)'!B130","v":{"v":135.80674181989644,"d":"135.81"}},{"$f":"(1-Inputs!B20)*R11/'(Other Computations)'!B130","v":{"v":135.57062031246267,"d":"135.57"}},{"$f":"(1-Inputs!B20)*S11/'(Other Computations)'!B130","v":{"v":135.32246181121897,"d":"135.32"}},{"$f":"(1-Inputs!B20)*T11/'(Other Computations)'!B130","v":{"v":135.05490776502728,"d":"135.05"}},{"$f":"(1-Inputs!B20)*U11/'(Other Computations)'!B130","v":{"v":134.82166682938484,"d":"134.82"}},{"$f":"(1-Inputs!B20)*V11/'(Other Computations)'!B130","v":{"v":134.53250745191048,"d":"134.53"}},{"$f":"(1-Inputs!B20)*W11/'(Other Computations)'!B130","v":{"v":134.30714058557996,"d":"134.31"}},{"$f":"(1-Inputs!B20)*X11/'(Other Computations)'!B130","v":{"v":134.10400500329237,"d":"134.10"}},{"$f":"(1-Inputs!B20)*Y11/'(Other Computations)'!B130","v":{"v":133.8789675174782,"d":"133.88"}},{"$f":"(1-Inputs!B20)*Z11/'(Other Computations)'!B130","v":{"v":133.6119997022054,"d":"133.61"}},{"$f":"SUM(O29:Z29)","v":{"v":1619.37877287775,"d":"1,619.38"}},{"$f":"(1-Inputs!B20)*AB11/'(Other Computations)'!B130","v":{"v":133.26355408916703,"d":"133.26"}},{"$f":"(1-Inputs!B20)*AC11/'(Other Computations)'!B130","v":{"v":132.9116316429051,"d":"132.91"}},{"$f":"(1-Inputs!B20)*AD11/'(Other Computations)'!B130","v":{"v":132.65080725646445,"d":"132.65"}},{"$f":"(1-Inputs!B20)*AE11/'(Other Computations)'!B130","v":{"v":132.41638824217748,"d":"132.42"}},{"$f":"(1-Inputs!B20)*AF11/'(Other Computations)'!B130","v":{"v":132.2140282629234,"d":"132.21"}},{"$f":"(1-Inputs!B20)*AG11/'(Other Computations)'!B130","v":{"v":131.92869035683663,"d":"131.93"}},{"$f":"(1-Inputs!B20)*AH11/'(Other Computations)'!B130","v":{"v":131.71319595475532,"d":"131.71"}},{"$f":"(1-Inputs!B20)*AI11/'(Other Computations)'!B130","v":{"v":131.4955079743482,"d":"131.50"}},{"$f":"(1-Inputs!B20)*AJ11/'(Other Computations)'!B130","v":{"v":131.19094782429468,"d":"131.19"}},{"$f":"(1-Inputs!B20)*AK11/'(Other Computations)'!B130","v":{"v":130.93408980137698,"d":"130.93"}},{"$f":"(1-Inputs!B20)*AL11/'(Other Computations)'!B130","v":{"v":130.69855216905867,"d":"130.70"}},{"$f":"(1-Inputs!B20)*AM11/'(Other Computations)'!B130","v":{"v":130.47026954035633,"d":"130.47"}},{"$f":"SUM(AB29:AM29)","v":{"v":1581.8876631146643,"d":"1,581.89"}},{"$f":"(1-Inputs!B20)*AO11/'(Other Computations)'!B130","v":{"v":130.20582468054806,"d":"130.21"}},{"$f":"(1-Inputs!B20)*AP11/'(Other Computations)'!B130","v":{"v":129.92050213533585,"d":"129.92"}},{"$f":"(1-Inputs!B20)*AQ11/'(Other Computations)'!B130","v":{"v":129.6803051402406,"d":"129.68"}},{"$f":"(1-Inputs!B20)*AR11/'(Other Computations)'!B130","v":{"v":129.4992878446559,"d":"129.50"}},{"$f":"(1-Inputs!B20)*AS11/'(Other Computations)'!B130","v":{"v":129.31642342144482,"d":"129.32"}},{"$f":"(1-Inputs!B20)*AT11/'(Other Computations)'!B130","v":{"v":129.17738472835154,"d":"129.18"}},{"$f":"(1-Inputs!B20)*AU11/'(Other Computations)'!B130","v":{"v":128.91869794490592,"d":"128.92"}},{"$f":"(1-Inputs!B20)*AV11/'(Other Computations)'!B130","v":{"v":128.69130428401635,"d":"128.69"}},{"$f":"(1-Inputs!B20)*AW11/'(Other Computations)'!B130","v":{"v":128.46420560671942,"d":"128.46"}},{"$f":"(1-Inputs!B20)*AX11/'(Other Computations)'!B130","v":{"v":128.21591121067345,"d":"128.22"}},{"$f":"(1-Inputs!B20)*AY11/'(Other Computations)'!B130","v":{"v":127.94972802505647,"d":"127.95"}},{"$f":"(1-Inputs!B20)*AZ11/'(Other Computations)'!B130","v":{"v":127.69901347638717,"d":"127.70"}},{"$f":"SUM(AO29:AZ29)","v":{"v":1547.7385884983355,"d":"1,547.74"}},{"$f":"(1-Inputs!B20)*BB11/'(Other Computations)'!B130","v":{"v":127.41845534585312,"d":"127.42"}},{"$f":"(1-Inputs!B20)*BC11/'(Other Computations)'!B130","v":{"v":127.19175057499068,"d":"127.19"}},{"$f":"(1-Inputs!B20)*BD11/'(Other Computations)'!B130","v":{"v":126.96309301415558,"d":"126.96"}},{"$f":"(1-Inputs!B20)*BE11/'(Other Computations)'!B130","v":{"v":126.78700152999163,"d":"126.79"}},{"$f":"(1-Inputs!B20)*BF11/'(Other Computations)'!B130","v":{"v":126.57195966785953,"d":"126.57"}},{"$f":"(1-Inputs!B20)*BG11/'(Other Computations)'!B130","v":{"v":126.39899126238755,"d":"126.40"}},{"$f":"(1-Inputs!B20)*BH11/'(Other Computations)'!B130","v":{"v":126.2621562645002,"d":"126.26"}},{"$f":"(1-Inputs!B20)*BI11/'(Other Computations)'!B130","v":{"v":126.0178535845053,"d":"126.02"}},{"$f":"(1-Inputs!B20)*BJ11/'(Other Computations)'!B130","v":{"v":125.82352058234314,"d":"125.82"}},{"$f":"(1-Inputs!B20)*BK11/'(Other Computations)'!B130","v":{"v":125.60426507525582,"d":"125.60"}},{"$f":"(1-Inputs!B20)*BL11/'(Other Computations)'!B130","v":{"v":125.34856471659515,"d":"125.35"}},{"$f":"(1-Inputs!B20)*BM11/'(Other Computations)'!B130","v":{"v":125.13791766547867,"d":"125.14"}},{"$f":"SUM(BB29:BM29)","v":{"v":1515.5255292839163,"d":"1,515.53"}},{"$f":"(1-Inputs!B20)*BO11/'(Other Computations)'!B130","v":{"v":124.98599287122009,"d":"124.99"}},{"$f":"(1-Inputs!B20)*BP11/'(Other Computations)'!B130","v":{"v":124.77607671051875,"d":"124.78"}},{"$f":"(1-Inputs!B20)*BQ11/'(Other Computations)'!B130","v":{"v":124.51375926328747,"d":"124.51"}},{"$f":"(1-Inputs!B20)*BR11/'(Other Computations)'!B130","v":{"v":124.3703542245154,"d":"124.37"}},{"$f":"(1-Inputs!B20)*BS11/'(Other Computations)'!B130","v":{"v":124.22648890691478,"d":"124.23"}},{"$f":"(1-Inputs!B20)*BT11/'(Other Computations)'!B130","v":{"v":124.11219904075098,"d":"124.11"}},{"$f":"(1-Inputs!B20)*BU11/'(Other Computations)'!B130","v":{"v":124.01088038575448,"d":"124.01"}},{"$f":"(1-Inputs!B20)*BV11/'(Other Computations)'!B130","v":{"v":123.88967358769659,"d":"123.89"}},{"$f":"(1-Inputs!B20)*BW11/'(Other Computations)'!B130","v":{"v":123.67301065194934,"d":"123.67"}},{"$f":"(1-Inputs!B20)*BX11/'(Other Computations)'!B130","v":{"v":123.57578952789765,"d":"123.58"}},{"$f":"(1-Inputs!B20)*BY11/'(Other Computations)'!B130","v":{"v":123.36741817240376,"d":"123.37"}},{"$f":"(1-Inputs!B20)*BZ11/'(Other Computations)'!B130","v":{"v":123.13101255913399,"d":"123.13"}},{"$f":"SUM(BO29:BZ29)","v":{"v":1488.6326559020433,"d":"1,488.63"}},{"$f":"(1-Inputs!B20)*CB11/'(Other Computations)'!B130","v":{"v":122.86599263390654,"d":"122.87"}},{"$f":"(1-Inputs!B20)*CC11/'(Other Computations)'!B130","v":{"v":122.69807336573713,"d":"122.70"}},{"$f":"(1-Inputs!B20)*CD11/'(Other Computations)'!B130","v":{"v":122.57735827577017,"d":"122.58"}},{"$f":"(1-Inputs!B20)*CE11/'(Other Computations)'!B130","v":{"v":122.46574193079498,"d":"122.47"}},{"$f":"(1-Inputs!B20)*CF11/'(Other Computations)'!B130","v":{"v":122.20983022732297,"d":"122.21"}},{"$f":"(1-Inputs!B20)*CG11/'(Other Computations)'!B130","v":{"v":122.026757732407,"d":"122.03"}},{"$f":"(1-Inputs!B20)*CH11/'(Other Computations)'!B130","v":{"v":121.9165727784633,"d":"121.92"}},{"$f":"(1-Inputs!B20)*CI11/'(Other Computations)'!B130","v":{"v":121.66175012335785,"d":"121.66"}},{"$f":"(1-Inputs!B20)*CJ11/'(Other Computations)'!B130","v":{"v":121.46270595470159,"d":"121.46"}},{"$f":"(1-Inputs!B20)*CK11/'(Other Computations)'!B130","v":{"v":121.41735494259544,"d":"121.42"}},{"$f":"(1-Inputs!B20)*CL11/'(Other Computations)'!B130","v":{"v":121.36041157940026,"d":"121.36"}},{"$f":"(1-Inputs!B20)*CM11/'(Other Computations)'!B130","v":{"v":121.20331226000052,"d":"121.20"}},{"$f":"SUM(CB29:CM29)","v":{"v":1463.8658618044578,"d":"1,463.87"}},{"$f":"(1-Inputs!B20)*CO11/'(Other Computations)'!B130","v":{"v":121.11045214034594,"d":"121.11"}},{"$f":"(1-Inputs!B20)*CP11/'(Other Computations)'!B130","v":{"v":121.0616823630915,"d":"121.06"}},{"$f":"(1-Inputs!B20)*CQ11/'(Other Computations)'!B130","v":{"v":120.90975105866015,"d":"120.91"}},{"$f":"(1-Inputs!B20)*CR11/'(Other Computations)'!B130","v":{"v":120.79636129406298,"d":"120.80"}},{"$f":"(1-Inputs!B20)*CS11/'(Other Computations)'!B130","v":{"v":120.69544459183723,"d":"120.70"}},{"$f":"(1-Inputs!B20)*CT11/'(Other Computations)'!B130","v":{"v":120.55972761690903,"d":"120.56"}},{"$f":"(1-Inputs!B20)*CU11/'(Other Computations)'!B130","v":{"v":120.41418603080747,"d":"120.41"}},{"$f":"(1-Inputs!B20)*CV11/'(Other Computations)'!B130","v":{"v":120.32706696457882,"d":"120.33"}},{"$f":"(1-Inputs!B20)*CW11/'(Other Computations)'!B130","v":{"v":120.18679716190879,"d":"120.19"}},{"$f":"(1-Inputs!B20)*CX11/'(Other Computations)'!B130","v":{"v":120.0420413798352,"d":"120.04"}},{"$f":"(1-Inputs!B20)*CY11/'(Other Computations)'!B130","v":{"v":119.83470961342044,"d":"119.83"}},{"$f":"(1-Inputs!B20)*CZ11/'(Other Computations)'!B130","v":{"v":119.63948827428837,"d":"119.64"}},{"$f":"SUM(CO29:CZ29)","v":{"v":1445.577708489746,"d":"1,445.58"}},{"$f":"(1-Inputs!B20)*DB11/'(Other Computations)'!B130","v":{"v":119.53393171600685,"d":"119.53"}},{"$f":"(1-Inputs!B20)*DC11/'(Other Computations)'!B130","v":{"v":119.48568716432224,"d":"119.49"}},{"$f":"(1-Inputs!B20)*DD11/'(Other Computations)'!B130","v":{"v":119.41298375849891,"d":"119.41"}},{"$f":"(1-Inputs!B20)*DE11/'(Other Computations)'!B130","v":{"v":119.29181108205873,"d":"119.29"}},{"$f":"(1-Inputs!B20)*DF11/'(Other Computations)'!B130","v":{"v":119.18771488725316,"d":"119.19"}},{"$f":"(1-Inputs!B20)*DG11/'(Other Computations)'!B130","v":{"v":119.07614423181012,"d":"119.08"}},{"$f":"(1-Inputs!B20)*DH11/'(Other Computations)'!B130","v":{"v":118.88148765608457,"d":"118.88"}},{"$f":"(1-Inputs!B20)*DI11/'(Other Computations)'!B130","v":{"v":118.68183960729864,"d":"118.68"}},{"$f":"(1-Inputs!B20)*DJ11/'(Other Computations)'!B130","v":{"v":118.5641378814088,"d":"118.56"}},{"$f":"(1-Inputs!B20)*DK11/'(Other Computations)'!B130","v":{"v":118.43799645336318,"d":"118.44"}},{"$f":"(1-Inputs!B20)*DL11/'(Other Computations)'!B130","v":{"v":118.24147386988294,"d":"118.24"}},{"$f":"(1-Inputs!B20)*DM11/'(Other Computations)'!B130","v":{"v":118.12998076459948,"d":"118.13"}},{"$f":"SUM(DB29:DM29)","v":{"v":1426.9251890725875,"d":"1,426.93"}},{"$f":"(1-Inputs!B20)*DO11/'(Other Computations)'!B130","v":{"v":118.02293852263328,"d":"118.02"}},{"$f":"(1-Inputs!B20)*DP11/'(Other Computations)'!B130","v":{"v":117.86223515535922,"d":"117.86"}},{"$f":"(1-Inputs!B20)*DQ11/'(Other Computations)'!B130","v":{"v":117.74215992739647,"d":"117.74"}},{"$f":"(1-Inputs!B20)*DR11/'(Other Computations)'!B130","v":{"v":117.61999468305558,"d":"117.62"}},{"$f":"(1-Inputs!B20)*DS11/'(Other Computations)'!B130","v":{"v":117.4458750446069,"d":"117.45"}},{"$f":"(1-Inputs!B20)*DT11/'(Other Computations)'!B130","v":{"v":117.35165108614977,"d":"117.35"}},{"$f":"(1-Inputs!B20)*DU11/'(Other Computations)'!B130","v":{"v":117.18473020620267,"d":"117.18"}},{"$f":"(1-Inputs!B20)*DV11/'(Other Computations)'!B130","v":{"v":117.04518958768314,"d":"117.05"}},{"$f":"(1-Inputs!B20)*DW11/'(Other Computations)'!B130","v":{"v":116.97594047481013,"d":"116.98"}},{"$f":"(1-Inputs!B20)*DX11/'(Other Computations)'!B130","v":{"v":116.96982289322142,"d":"116.97"}},{"$f":"(1-Inputs!B20)*DY11/'(Other Computations)'!B130","v":{"v":116.78418559247736,"d":"116.78"}},{"$f":"(1-Inputs!B20)*DZ11/'(Other Computations)'!B130","v":{"v":116.64304872351775,"d":"116.64"}},{"$f":"SUM(DO29:DZ29)","v":{"v":1407.6477718971134,"d":"1,407.65"}},{"$f":"(1-Inputs!B20)*EB11/'(Other Computations)'!B130","v":{"v":116.47846386770551,"d":"116.48"}},{"$f":"(1-Inputs!B20)*EC11/'(Other Computations)'!B130","v":{"v":116.4357251069881,"d":"116.44"}},{"$f":"(1-Inputs!B20)*ED11/'(Other Computations)'!B130","v":{"v":116.27811987044785,"d":"116.28"}},{"$f":"(1-Inputs!B20)*EE11/'(Other Computations)'!B130","v":{"v":116.17215041948346,"d":"116.17"}},{"$f":"(1-Inputs!B20)*EF11/'(Other Computations)'!B130","v":{"v":116.08878388048123,"d":"116.09"}},{"$f":"(1-Inputs!B20)*EG11/'(Other Computations)'!B130","v":{"v":115.93680316673763,"d":"115.94"}},{"$f":"(1-Inputs!B20)*EH11/'(Other Computations)'!B130","v":{"v":115.73900479424027,"d":"115.74"}},{"$f":"(1-Inputs!B20)*EI11/'(Other Computations)'!B130","v":{"v":115.55653810618163,"d":"115.56"}},{"$f":"(1-Inputs!B20)*EJ11/'(Other Computations)'!B130","v":{"v":115.48698828523872,"d":"115.49"}},{"$f":"(1-Inputs!B20)*EK11/'(Other Computations)'!B130","v":{"v":115.42669452892736,"d":"115.43"}},{"$f":"(1-Inputs!B20)*EL11/'(Other Computations)'!B130","v":{"v":115.32716401244771,"d":"115.33"}},{"$f":"(1-Inputs!B20)*EM11/'(Other Computations)'!B130","v":{"v":115.28747503650692,"d":"115.29"}},{"$f":"SUM(EB29:EM29)","v":{"v":1390.2139110753862,"d":"1,390.21"}}]
[]
[]
[{"$f":"\"Income\"","v":"Income"}]
[{"$f":"\" \"","v":" "}]
[null,{"$f":"ZZZ__FnCalls!F7","v":"Jan 2010"},{"$f":"ZZZ__FnCalls!F8","v":"Feb 2010"},{"$f":"ZZZ__FnCalls!F9","v":"Mar 2010"},{"$f":"ZZZ__FnCalls!F10","v":"Apr 2010"},{"$f":"ZZZ__FnCalls!F11","v":"May 2010"},{"$f":"ZZZ__FnCalls!F12","v":"Jun 2010"},{"$f":"ZZZ__FnCalls!F13","v":"Jul 2010"},{"$f":"ZZZ__FnCalls!F14","v":"Aug 2010"},{"$f":"ZZZ__FnCalls!F15","v":"Sep 2010"},{"$f":"ZZZ__FnCalls!F16","v":"Oct 2010"},{"$f":"ZZZ__FnCalls!F17","v":"Nov 2010"},{"$f":"ZZZ__FnCalls!F18","v":"Dec 2010"},{"$f":"ZZZ__FnCalls!H7","v":"2010"},{"$f":"ZZZ__FnCalls!F19","v":"Jan 2011"},{"$f":"ZZZ__FnCalls!F20","v":"Feb 2011"},{"$f":"ZZZ__FnCalls!F21","v":"Mar 2011"},{"$f":"ZZZ__FnCalls!F22","v":"Apr 2011"},{"$f":"ZZZ__FnCalls!F23","v":"May 2011"},{"$f":"ZZZ__FnCalls!F24","v":"Jun 2011"},{"$f":"ZZZ__FnCalls!F25","v":"Jul 2011"},{"$f":"ZZZ__FnCalls!F26","v":"Aug 2011"},{"$f":"ZZZ__FnCalls!F27","v":"Sep 2011"},{"$f":"ZZZ__FnCalls!F28","v":"Oct 2011"},{"$f":"ZZZ__FnCalls!F29","v":"Nov 2011"},{"$f":"ZZZ__FnCalls!F30","v":"Dec 2011"},{"$f":"ZZZ__FnCalls!H19","v":"2011"},{"$f":"ZZZ__FnCalls!F31","v":"Jan 2012"},{"$f":"ZZZ__FnCalls!F32","v":"Feb 2012"},{"$f":"ZZZ__FnCalls!F33","v":"Mar 2012"},{"$f":"ZZZ__FnCalls!F34","v":"Apr 2012"},{"$f":"ZZZ__FnCalls!F35","v":"May 2012"},{"$f":"ZZZ__FnCalls!F36","v":"Jun 2012"},{"$f":"ZZZ__FnCalls!F37","v":"Jul 2012"},{"$f":"ZZZ__FnCalls!F38","v":"Aug 2012"},{"$f":"ZZZ__FnCalls!F39","v":"Sep 2012"},{"$f":"ZZZ__FnCalls!F40","v":"Oct 2012"},{"$f":"ZZZ__FnCalls!F41","v":"Nov 2012"},{"$f":"ZZZ__FnCalls!F42","v":"Dec 2012"},{"$f":"ZZZ__FnCalls!H31","v":"2012"},{"$f":"ZZZ__FnCalls!F43","v":"Jan 2013"},{"$f":"ZZZ__FnCalls!F44","v":"Feb 2013"},{"$f":"ZZZ__FnCalls!F45","v":"Mar 2013"},{"$f":"ZZZ__FnCalls!F46","v":"Apr 2013"},{"$f":"ZZZ__FnCalls!F47","v":"May 2013"},{"$f":"ZZZ__FnCalls!F48","v":"Jun 2013"},{"$f":"ZZZ__FnCalls!F49","v":"Jul 2013"},{"$f":"ZZZ__FnCalls!F50","v":"Aug 2013"},{"$f":"ZZZ__FnCalls!F51","v":"Sep 2013"},{"$f":"ZZZ__FnCalls!F52","v":"Oct 2013"},{"$f":"ZZZ__FnCalls!F53","v":"Nov 2013"},{"$f":"ZZZ__FnCalls!F54","v":"Dec 2013"},{"$f":"ZZZ__FnCalls!H43","v":"2013"},{"$f":"ZZZ__FnCalls!F55","v":"Jan 2014"},{"$f":"ZZZ__FnCalls!F56","v":"Feb 2014"},{"$f":"ZZZ__FnCalls!F57","v":"Mar 2014"},{"$f":"ZZZ__FnCalls!F58","v":"Apr 2014"},{"$f":"ZZZ__FnCalls!F59","v":"May 2014"},{"$f":"ZZZ__FnCalls!F60","v":"Jun 2014"},{"$f":"ZZZ__FnCalls!F61","v":"Jul 2014"},{"$f":"ZZZ__FnCalls!F62","v":"Aug 2014"},{"$f":"ZZZ__FnCalls!F63","v":"Sep 2014"},{"$f":"ZZZ__FnCalls!F64","v":"Oct 2014"},{"$f":"ZZZ__FnCalls!F65","v":"Nov 2014"},{"$f":"ZZZ__FnCalls!F66","v":"Dec 2014"},{"$f":"ZZZ__FnCalls!H55","v":"2014"},{"$f":"ZZZ__FnCalls!F67","v":"Jan 2015"},{"$f":"ZZZ__FnCalls!F68","v":"Feb 2015"},{"$f":"ZZZ__FnCalls!F69","v":"Mar 2015"},{"$f":"ZZZ__FnCalls!F70","v":"Apr 2015"},{"$f":"ZZZ__FnCalls!F71","v":"May 2015"},{"$f":"ZZZ__FnCalls!F72","v":"Jun 2015"},{"$f":"ZZZ__FnCalls!F73","v":"Jul 2015"},{"$f":"ZZZ__FnCalls!F74","v":"Aug 2015"},{"$f":"ZZZ__FnCalls!F75","v":"Sep 2015"},{"$f":"ZZZ__FnCalls!F76","v":"Oct 2015"},{"$f":"ZZZ__FnCalls!F77","v":"Nov 2015"},{"$f":"ZZZ__FnCalls!F78","v":"Dec 2015"},{"$f":"ZZZ__FnCalls!H67","v":"2015"},{"$f":"ZZZ__FnCalls!F79","v":"Jan 2016"},{"$f":"ZZZ__FnCalls!F80","v":"Feb 2016"},{"$f":"ZZZ__FnCalls!F81","v":"Mar 2016"},{"$f":"ZZZ__FnCalls!F82","v":"Apr 2016"},{"$f":"ZZZ__FnCalls!F83","v":"May 2016"},{"$f":"ZZZ__FnCalls!F84","v":"Jun 2016"},{"$f":"ZZZ__FnCalls!F85","v":"Jul 2016"},{"$f":"ZZZ__FnCalls!F86","v":"Aug 2016"},{"$f":"ZZZ__FnCalls!F87","v":"Sep 2016"},{"$f":"ZZZ__FnCalls!F88","v":"Oct 2016"},{"$f":"ZZZ__FnCalls!F89","v":"Nov 2016"},{"$f":"ZZZ__FnCalls!F90","v":"Dec 2016"},{"$f":"ZZZ__FnCalls!H79","v":"2016"},{"$f":"ZZZ__FnCalls!F91","v":"Jan 2017"},{"$f":"ZZZ__FnCalls!F92","v":"Feb 2017"},{"$f":"ZZZ__FnCalls!F93","v":"Mar 2017"},{"$f":"ZZZ__FnCalls!F94","v":"Apr 2017"},{"$f":"ZZZ__FnCalls!F95","v":"May 2017"},{"$f":"ZZZ__FnCalls!F96","v":"Jun 2017"},{"$f":"ZZZ__FnCalls!F97","v":"Jul 2017"},{"$f":"ZZZ__FnCalls!F98","v":"Aug 2017"},{"$f":"ZZZ__FnCalls!F99","v":"Sep 2017"},{"$f":"ZZZ__FnCalls!F100","v":"Oct 2017"},{"$f":"ZZZ__FnCalls!F101","v":"Nov 2017"},{"$f":"ZZZ__FnCalls!F102","v":"Dec 2017"},{"$f":"ZZZ__FnCalls!H91","v":"2017"},{"$f":"ZZZ__FnCalls!F103","v":"Jan 2018"},{"$f":"ZZZ__FnCalls!F104","v":"Feb 2018"},{"$f":"ZZZ__FnCalls!F105","v":"Mar 2018"},{"$f":"ZZZ__FnCalls!F106","v":"Apr 2018"},{"$f":"ZZZ__FnCalls!F107","v":"May 2018"},{"$f":"ZZZ__FnCalls!F108","v":"Jun 2018"},{"$f":"ZZZ__FnCalls!F109","v":"Jul 2018"},{"$f":"ZZZ__FnCalls!F110","v":"Aug 2018"},{"$f":"ZZZ__FnCalls!F111","v":"Sep 2018"},{"$f":"ZZZ__FnCalls!F112","v":"Oct 2018"},{"$f":"ZZZ__FnCalls!F113","v":"Nov 2018"},{"$f":"ZZZ__FnCalls!F114","v":"Dec 2018"},{"$f":"ZZZ__FnCalls!H103","v":"2018"},{"$f":"ZZZ__FnCalls!F115","v":"Jan 2019"},{"$f":"ZZZ__FnCalls!F116","v":"Feb 2019"},{"$f":"ZZZ__FnCalls!F117","v":"Mar 2019"},{"$f":"ZZZ__FnCalls!F118","v":"Apr 2019"},{"$f":"ZZZ__FnCalls!F119","v":"May 2019"},{"$f":"ZZZ__FnCalls!F120","v":"Jun 2019"},{"$f":"ZZZ__FnCalls!F121","v":"Jul 2019"},{"$f":"ZZZ__FnCalls!F122","v":"Aug 2019"},{"$f":"ZZZ__FnCalls!F123","v":"Sep 2019"},{"$f":"ZZZ__FnCalls!F124","v":"Oct 2019"},{"$f":"ZZZ__FnCalls!F125","v":"Nov 2019"},{"$f":"ZZZ__FnCalls!F126","v":"Dec 2019"},{"$f":"ZZZ__FnCalls!H115","v":"2019"},{"$f":"ZZZ__FnCalls!F127","v":"Jan 2020"},{"$f":"ZZZ__FnCalls!F128","v":"Feb 2020"},{"$f":"ZZZ__FnCalls!F129","v":"Mar 2020"},{"$f":"ZZZ__FnCalls!F130","v":"Apr 2020"},{"$f":"ZZZ__FnCalls!F131","v":"May 2020"},{"$f":"ZZZ__FnCalls!F132","v":"Jun 2020"},{"$f":"ZZZ__FnCalls!F133","v":"Jul 2020"},{"$f":"ZZZ__FnCalls!F134","v":"Aug 2020"},{"$f":"ZZZ__FnCalls!F135","v":"Sep 2020"},{"$f":"ZZZ__FnCalls!F136","v":"Oct 2020"},{"$f":"ZZZ__FnCalls!F137","v":"Nov 2020"},{"$f":"ZZZ__FnCalls!F138","v":"Dec 2020"},{"$f":"ZZZ__FnCalls!H127","v":"2020"}]
[{"$f":"Labels!B55","v":"Current Disposable Income"},{"$f":"B44-B54+B38","v":{"v":861759.5009400565,"d":"$861,760"}},{"v":867588.3005772143,"d":"$867,588"},{"v":803768.3130030353,"d":"$803,768"},{"v":805928.5624718518,"d":"$805,929"},{"v":792488.7006308621,"d":"$792,489"},{"v":800754.5342374834,"d":"$800,755"},{"v":845694.9732146946,"d":"$845,695"},{"v":837112.020669838,"d":"$837,112"},{"v":815064.3473936981,"d":"$815,064"},{"v":804498.0953480086,"d":"$804,498"},{"v":821236.7542164332,"d":"$821,237"},{"v":831544.6188089877,"d":"$831,545"},{"$f":"SUM(B35:M35)","v":{"v":9887438.721512163,"d":"$9,887,439"}},{"$f":"O44-O54+O38","v":{"v":819560.6433354121,"d":"$819,561"}},{"v":843965.6999455675,"d":"$843,966"},{"v":829393.081361524,"d":"$829,393"},{"v":859464.865783498,"d":"$859,465"},{"v":809012.3708458456,"d":"$809,012"},{"v":838232.2729948252,"d":"$838,232"},{"v":808302.6107138331,"d":"$808,303"},{"v":830530.8539750141,"d":"$830,531"},{"v":778822.7290780434,"d":"$778,823"},{"v":799675.8650413118,"d":"$799,676"},{"v":830689.8941407461,"d":"$830,690"},{"v":824674.395817296,"d":"$824,674"},{"$f":"SUM(O35:Z35)","v":{"v":9872325.283032916,"d":"$9,872,325"}},{"$f":"AB44-AB54+AB38","v":{"v":804515.0694134509,"d":"$804,515"}},{"v":830113.6072395785,"d":"$830,114"},{"v":826270.8421333703,"d":"$826,271"},{"v":805847.590524838,"d":"$805,848"},{"v":847617.1574290661,"d":"$847,617"},{"v":797117.7589924239,"d":"$797,118"},{"v":800329.9729951775,"d":"$800,330"},{"v":781544.8872590713,"d":"$781,545"},{"v":782351.3689894996,"d":"$782,351"},{"v":814334.3181676817,"d":"$814,334"},{"v":805651.7495054931,"d":"$805,652"},{"v":776651.3988927511,"d":"$776,651"},{"$f":"SUM(AB35:AM35)","v":{"v":9672345.721542403,"d":"$9,672,346"}},{"$f":"AO44-AO54+AO38","v":{"v":774330.892147922,"d":"$774,331"}},{"v":780985.5492034516,"d":"$780,986"},{"v":791372.6960348084,"d":"$791,373"},{"v":764803.9707757033,"d":"$764,804"},{"v":772151.5286242251,"d":"$772,152"},{"v":764700.0373140445,"d":"$764,700"},{"v":800380.2118181376,"d":"$800,380"},{"v":810666.1330697128,"d":"$810,666"},{"v":811576.3631797757,"d":"$811,576"},{"v":802179.9357268618,"d":"$802,180"},{"v":797953.6283830424,"d":"$797,954"},{"v":797976.8269322879,"d":"$797,977"},{"$f":"SUM(AO35:AZ35)","v":{"v":9469077.773209974,"d":"$9,469,078"}},{"$f":"BB44-BB54+BB38","v":{"v":777012.0136859555,"d":"$777,012"}},{"v":791083.4781017556,"d":"$791,083"},{"v":815602.6792362536,"d":"$815,603"},{"v":781427.9501265822,"d":"$781,428"},{"v":761887.192209008,"d":"$761,887"},{"v":774768.1685018056,"d":"$774,768"},{"v":762100.5129875798,"d":"$762,101"},{"v":750085.324577788,"d":"$750,085"},{"v":787772.6719742691,"d":"$787,773"},{"v":796550.2476659901,"d":"$796,550"},{"v":778276.4334900534,"d":"$778,276"},{"v":740134.1355074892,"d":"$740,134"},{"$f":"SUM(BB35:BM35)","v":{"v":9316700.80806453,"d":"$9,316,701"}},{"$f":"BO44-BO54+BO38","v":{"v":750803.190706453,"d":"$750,803"}},{"v":762032.5308751123,"d":"$762,033"},{"v":765139.5934924468,"d":"$765,140"},{"v":804670.4901768869,"d":"$804,670"},{"v":799477.3921458937,"d":"$799,477"},{"v":760701.7682855703,"d":"$760,702"},{"v":745973.6937349167,"d":"$745,974"},{"v":765477.2719313641,"d":"$765,477"},{"v":774135.2614969773,"d":"$774,135"},{"v":766091.6523013426,"d":"$766,092"},{"v":785167.3237037332,"d":"$785,167"},{"v":773585.9016162019,"d":"$773,586"},{"$f":"SUM(BO35:BZ35)","v":{"v":9253256.070466898,"d":"$9,253,256"}},{"$f":"CB44-CB54+CB38","v":{"v":759904.9561980778,"d":"$759,905"}},{"v":741079.8173973527,"d":"$741,080"},{"v":772860.5385601706,"d":"$772,861"},{"v":761397.7825480807,"d":"$761,398"},{"v":724458.3318639073,"d":"$724,458"},{"v":756278.1948431215,"d":"$756,278"},{"v":722198.4923878455,"d":"$722,198"},{"v":719360.9181676182,"d":"$719,361"},{"v":755783.8347019196,"d":"$755,784"},{"v":776325.6223283604,"d":"$776,326"},{"v":757251.3517685623,"d":"$757,251"},{"v":721467.010269774,"d":"$721,467"},{"$f":"SUM(CB35:CM35)","v":{"v":8968366.85103479,"d":"$8,968,367"}},{"$f":"CO44-CO54+CO38","v":{"v":741443.8217144723,"d":"$741,444"}},{"v":765187.0066261501,"d":"$765,187"},{"v":745990.6119577036,"d":"$745,991"},{"v":754666.1958583139,"d":"$754,666"},{"v":782834.0728809574,"d":"$782,834"},{"v":750887.0482955899,"d":"$750,887"},{"v":742875.528113119,"d":"$742,876"},{"v":758373.66093705,"d":"$758,374"},{"v":753016.525935023,"d":"$753,017"},{"v":781970.711780762,"d":"$781,971"},{"v":775683.5018174826,"d":"$775,684"},{"v":743905.3972428446,"d":"$743,905"},{"$f":"SUM(CO35:CZ35)","v":{"v":9096834.083159469,"d":"$9,096,834"}},{"$f":"DB44-DB54+DB38","v":{"v":710938.0099841206,"d":"$710,938"}},{"v":744022.5126014095,"d":"$744,023"},{"v":753064.3903345416,"d":"$753,064"},{"v":704184.5939042553,"d":"$704,185"},{"v":747605.0851945155,"d":"$747,605"},{"v":749639.6343100324,"d":"$749,640"},{"v":712258.6832347589,"d":"$712,259"},{"v":756671.6484207863,"d":"$756,672"},{"v":759054.6865138508,"d":"$759,055"},{"v":700732.721176921,"d":"$700,733"},{"v":738702.4744649704,"d":"$738,702"},{"v":759599.5660215899,"d":"$759,600"},{"$f":"SUM(DB35:DM35)","v":{"v":8836474.006161753,"d":"$8,836,474"}},{"$f":"DO44-DO54+DO38","v":{"v":722449.1798180015,"d":"$722,449"}},{"v":756647.6627829719,"d":"$756,648"},{"v":751031.9781857303,"d":"$751,032"},{"v":705598.8939213237,"d":"$705,599"},{"v":764448.8778503186,"d":"$764,449"},{"v":704466.2454206747,"d":"$704,466"},{"v":733652.3383371676,"d":"$733,652"},{"v":704876.3905027242,"d":"$704,876"},{"v":752991.1092953724,"d":"$752,991"},{"v":766488.0720608236,"d":"$766,488"},{"v":700062.7319070884,"d":"$700,063"},{"v":747546.730037137,"d":"$747,547"},{"$f":"SUM(DO35:DZ35)","v":{"v":8810260.210119335,"d":"$8,810,260"}},{"$f":"EB44-EB54+EB38","v":{"v":741268.5180845676,"d":"$741,269"}},{"v":722764.3966984885,"d":"$722,764"},{"v":725820.9765605823,"d":"$725,821"},{"v":740922.4119829411,"d":"$740,922"},{"v":742845.8810643946,"d":"$742,846"},{"v":723574.498798498,"d":"$723,574"},{"v":732898.9387783991,"d":"$732,899"},{"v":751395.3448942325,"d":"$751,395"},{"v":695561.0456421379,"d":"$695,561"},{"v":736663.83589431,"d":"$736,664"},{"v":755272.8406844962,"d":"$755,273"},{"v":708238.4867610452,"d":"$708,238"},{"$f":"SUM(EB35:EM35)","v":{"v":8777227.175844092,"d":"$8,777,227"}}]
[{"$f":"Labels!B45","v":"Final Sales"},{"$f":"B12+B21+B37","v":{"v":963388.6810828955,"d":"$963,389"}},{"v":962790.6265712049,"d":"$962,791"},{"v":962319.2074846951,"d":"$962,319"},{"v":961700.702753347,"d":"$961,701"},{"v":961049.7371561106,"d":"$961,050"},{"v":960454.4987841595,"d":"$960,454"},{"v":959886.9967775007,"d":"$959,887"},{"v":959419.2970857798,"d":"$959,419"},{"v":958955.5048766944,"d":"$958,956"},{"v":958357.2627843333,"d":"$958,357"},{"v":957715.8854135725,"d":"$957,716"},{"v":957157.2346817856,"d":"$957,157"},{"$f":"SUM(B36:M36)","v":{"v":11523195.635452079,"d":"$11,523,196"}},{"$f":"O12+O21+O37","v":{"v":956615.9699364371,"d":"$956,616"}},{"v":956084.6315941585,"d":"$956,085"},{"v":955672.6775084726,"d":"$955,673"},{"v":955226.9874828123,"d":"$955,227"},{"v":954834.7363096296,"d":"$954,835"},{"v":954312.9910136622,"d":"$954,313"},{"v":953896.432755891,"d":"$953,896"},{"v":953352.5185743066,"d":"$953,353"},{"v":952932.816540128,"d":"$952,933"},{"v":952427.7426898706,"d":"$952,428"},{"v":951944.250357737,"d":"$951,944"},{"v":951481.8113359369,"d":"$951,482"},{"$f":"SUM(O36:Z36)","v":{"v":11448783.566099042,"d":"$11,448,784"}},{"$f":"AB12+AB21+AB37","v":{"v":950915.2867306557,"d":"$950,915"}},{"v":950304.6001495234,"d":"$950,305"},{"v":949856.7846023553,"d":"$949,857"},{"v":949431.9825590552,"d":"$949,432"},{"v":949000.8662252008,"d":"$949,001"},{"v":948566.0680335088,"d":"$948,566"},{"v":948104.2456098952,"d":"$948,104"},{"v":947647.6236196076,"d":"$947,648"},{"v":947052.0077356858,"d":"$947,052"},{"v":946515.710869088,"d":"$946,516"},{"v":946074.5076019324,"d":"$946,075"},{"v":945623.8798564791,"d":"$945,624"},{"$f":"SUM(AB36:AM36)","v":{"v":11379093.563592987,"d":"$11,379,094"}},{"$f":"AO12+AO21+AO37","v":{"v":945070.1009732728,"d":"$945,070"}},{"v":944489.3598944347,"d":"$944,489"},{"v":943976.834113418,"d":"$943,977"},{"v":943555.6449563006,"d":"$943,556"},{"v":943074.9293365871,"d":"$943,075"},{"v":942661.0996083983,"d":"$942,661"},{"v":942093.9273545401,"d":"$942,094"},{"v":941642.376022874,"d":"$941,642"},{"v":941214.2523463304,"d":"$941,214"},{"v":940764.7502755888,"d":"$940,765"},{"v":940275.6980568105,"d":"$940,276"},{"v":939796.7294460115,"d":"$939,797"},{"$f":"SUM(AO36:AZ36)","v":{"v":11308615.702384567,"d":"$11,308,616"}},{"$f":"BB12+BB21+BB37","v":{"v":939284.719939588,"d":"$939,285"}},{"v":938790.7201266026,"d":"$938,791"},{"v":938325.5889701165,"d":"$938,326"},{"v":937974.733242278,"d":"$937,975"},{"v":937504.9813697111,"d":"$937,505"},{"v":937042.1650029852,"d":"$937,042"},{"v":936648.7814616128,"d":"$936,649"},{"v":936104.5028483433,"d":"$936,105"},{"v":935593.4552859255,"d":"$935,593"},{"v":935135.902332326,"d":"$935,136"},{"v":934656.5839366948,"d":"$934,657"},{"v":934190.6981677403,"d":"$934,191"},{"$f":"SUM(BB36:BM36)","v":{"v":11241252.832683925,"d":"$11,241,253"}},{"$f":"BO12+BO21+BO37","v":{"v":933709.8525219851,"d":"$933,710"}},{"v":933185.5323433796,"d":"$933,186"},{"v":932626.7886998272,"d":"$932,627"},{"v":932212.7882037711,"d":"$932,213"},{"v":931883.0693357106,"d":"$931,883"},{"v":931575.7537148277,"d":"$931,576"},{"v":931198.5523619311,"d":"$931,199"},{"v":930766.1473245308,"d":"$930,766"},{"v":930266.7093898329,"d":"$930,267"},{"v":929924.4828618123,"d":"$929,924"},{"v":929436.1521316814,"d":"$929,436"},{"v":928958.6711721496,"d":"$928,959"},{"$f":"SUM(BO36:BZ36)","v":{"v":11175744.50006144,"d":"$11,175,745"}},{"$f":"CB12+CB21+CB37","v":{"v":928424.5758823244,"d":"$928,425"}},{"v":927973.7319935756,"d":"$927,974"},{"v":927535.8788400039,"d":"$927,536"},{"v":927176.9217818885,"d":"$927,177"},{"v":926627.4161828557,"d":"$926,627"},{"v":926083.7655358111,"d":"$926,084"},{"v":925692.8448113325,"d":"$925,693"},{"v":925061.61671366,"d":"$925,062"},{"v":924490.8065890406,"d":"$924,491"},{"v":924175.6073976555,"d":"$924,176"},{"v":923889.5528821222,"d":"$923,890"},{"v":923446.5503643807,"d":"$923,447"},{"$f":"SUM(CB36:CM36)","v":{"v":11110579.26897465,"d":"$11,110,579"}},{"$f":"CO12+CO21+CO37","v":{"v":923000.677256689,"d":"$923,001"}},{"v":922647.9998308065,"d":"$922,648"},{"v":922227.5111425456,"d":"$922,228"},{"v":921810.644379965,"d":"$921,811"},{"v":921426.6133161945,"d":"$921,427"},{"v":921063.4942143235,"d":"$921,063"},{"v":920620.2388828219,"d":"$920,620"},{"v":920227.0407403129,"d":"$920,227"},{"v":919805.9119199024,"d":"$919,806"},{"v":919368.7459892826,"d":"$919,369"},{"v":918923.0858088529,"d":"$918,923"},{"v":918479.1029704652,"d":"$918,479"},{"$f":"SUM(CO36:CZ36)","v":{"v":11049601.066452162,"d":"$11,049,601"}},{"$f":"DB12+DB21+DB37","v":{"v":918069.7808042334,"d":"$918,070"}},{"v":917654.0743107704,"d":"$917,654"},{"v":917281.1890424845,"d":"$917,281"},{"v":916872.2169339829,"d":"$916,872"},{"v":916377.4616244322,"d":"$916,377"},{"v":915968.4324521528,"d":"$915,968"},{"v":915468.8461887619,"d":"$915,469"},{"v":914884.2662967724,"d":"$914,884"},{"v":914491.2402330075,"d":"$914,491"},{"v":914093.3076503251,"d":"$914,093"},{"v":913488.6991512711,"d":"$913,489"},{"v":913065.7054857761,"d":"$913,066"},{"$f":"SUM(DB36:DM36)","v":{"v":10987715.220173972,"d":"$10,987,715"}},{"$f":"DO12+DO21+DO37","v":{"v":912692.705450157,"d":"$912,693"}},{"v":912177.7473485569,"d":"$912,178"},{"v":911784.7120390009,"d":"$911,785"},{"v":911377.0570075201,"d":"$911,377"},{"v":910811.7475765891,"d":"$910,812"},{"v":910467.0209309608,"d":"$910,467"},{"v":909908.3758588054,"d":"$909,908"},{"v":909445.95188061,"d":"$909,446"},{"v":909002.1303884087,"d":"$909,002"},{"v":908734.3650556541,"d":"$908,734"},{"v":908288.7040051264,"d":"$908,289"},{"v":907752.3773544455,"d":"$907,752"},{"$f":"SUM(DO36:DZ36)","v":{"v":10922442.894895833,"d":"$10,922,443"}},{"$f":"EB12+EB21+EB37","v":{"v":907292.6538609855,"d":"$907,293"}},{"v":906959.9659650787,"d":"$906,960"},{"v":906454.2321158265,"d":"$906,454"},{"v":906016.0500446123,"d":"$906,016"},{"v":905636.4736140602,"d":"$905,636"},{"v":905182.3043915693,"d":"$905,182"},{"v":904635.1765521432,"d":"$904,635"},{"v":904127.5899334113,"d":"$904,128"},{"v":903790.5366160545,"d":"$903,791"},{"v":903342.0867570724,"d":"$903,342"},{"v":902937.6864438589,"d":"$902,938"},{"v":902642.6837091495,"d":"$902,643"},{"$f":"SUM(EB36:EM36)","v":{"v":10859017.440003823,"d":"$10,859,017"}}]
[{"$f":"Labels!B51","v":"Gov Spending"},{"$f":"'(Other Computations)'!B11/8","v":{"v":29166.66666666667,"d":"$29,167"}},{"$f":"'(Other Computations)'!B11/8","v":{"v":29166.66666666667,"d":"$29,167"}},{"$f":"'(Other Computations)'!B11/8","v":{"v":29166.66666666667,"d":"$29,167"}},{"$f":"'(Other Computations)'!B11/8","v":{"v":29166.66666666667,"d":"$29,167"}},{"$f":"'(Other Computations)'!B11/8","v":{"v":29166.66666666667,"d":"$29,167"}},{"$f":"'(Other Computations)'!B11/8","v":{"v":29166.66666666667,"d":"$29,167"}},{"$f":"'(Other Computations)'!B11/8","v":{"v":29166.66666666667,"d":"$29,167"}},{"$f":"'(Other Computations)'!B11/8","v":{"v":29166.66666666667,"d":"$29,167"}},{"$f":"'(Other Computations)'!B11/8","v":{"v":29166.66666666667,"d":"$29,167"}},{"$f":"'(Other Computations)'!B11/8","v":{"v":29166.66666666667,"d":"$29,167"}},{"$f":"'(Other Computations)'!B11/8","v":{"v":29166.66666666667,"d":"$29,167"}},{"$f":"'(Other Computations)'!B11/8","v":{"v":29166.66666666667,"d":"$29,167"}},{"$f":"SUM(B37:M37)","v":{"v":350000.0000000002,"d":"$350,000"}},{"$f":"'(Other Computations)'!B11/8","v":{"v":29166.66666666667,"d":"$29,167"}},{"$f":"'(Other Computations)'!B11/8","v":{"v":29166.66666666667,"d":"$29,167"}},{"$f":"'(Other Computations)'!B11/8","v":{"v":29166.66666666667,"d":"$29,167"}},{"$f":"'(Other Computations)'!B11/8","v":{"v":29166.66666666667,"d":"$29,167"}},{"$f":"'(Other Computations)'!B11/8","v":{"v":29166.66666666667,"d":"$29,167"}},{"$f":"'(Other Computations)'!B11/8","v":{"v":29166.66666666667,"d":"$29,167"}},{"$f":"'(Other Computations)'!B11/8","v":{"v":29166.66666666667,"d":"$29,167"}},{"$f":"'(Other Computations)'!B11/8","v":{"v":29166.66666666667,"d":"$29,167"}},{"$f":"'(Other Computations)'!B11/8","v":{"v":29166.66666666667,"d":"$29,167"}},{"$f":"'(Other Computations)'!B11/8","v":{"v":29166.66666666667,"d":"$29,167"}},{"$f":"'(Other Computations)'!B11/8","v":{"v":29166.66666666667,"d":"$29,167"}},{"$f":"'(Other Computations)'!B11/8","v":{"v":29166.66666666667,"d":"$29,167"}},{"$f":"SUM(O37:Z37)","v":{"v":350000.0000000002,"d":"$350,000"}},{"$f":"'(Other Computations)'!B11/8","v":{"v":29166.66666666667,"d":"$29,167"}},{"$f":"'(Other Computations)'!B11/8","v":{"v":29166.66666666667,"d":"$29,167"}},{"$f":"'(Other Computations)'!B11/8","v":{"v":29166.66666666667,"d":"$29,167"}},{"$f":"'(Other Computations)'!B11/8","v":{"v":29166.66666666667,"d":"$29,167"}},{"$f":"'(Other Computations)'!B11/8","v":{"v":29166.66666666667,"d":"$29,167"}},{"$f":"'(Other Computations)'!B11/8","v":{"v":29166.66666666667,"d":"$29,167"}},{"$f":"'(Other Computations)'!B11/8","v":{"v":29166.66666666667,"d":"$29,167"}},{"$f":"'(Other Computations)'!B11/8","v":{"v":29166.66666666667,"d":"$29,167"}},{"$f":"'(Other Computations)'!B11/8","v":{"v":29166.66666666667,"d":"$29,167"}},{"$f":"'(Other Computations)'!B11/8","v":{"v":29166.66666666667,"d":"$29,167"}},{"$f":"'(Other Computations)'!B11/8","v":{"v":29166.66666666667,"d":"$29,167"}},{"$f":"'(Other Computations)'!B11/8","v":{"v":29166.66666666667,"d":"$29,167"}},{"$f":"SUM(AB37:AM37)","v":{"v":350000.0000000002,"d":"$350,000"}},{"$f":"'(Other Computations)'!B11/8","v":{"v":29166.66666666667,"d":"$29,167"}},{"$f":"'(Other Computations)'!B11/8","v":{"v":29166.66666666667,"d":"$29,167"}},{"$f":"'(Other Computations)'!B11/8","v":{"v":29166.66666666667,"d":"$29,167"}},{"$f":"'(Other Computations)'!B11/8","v":{"v":29166.66666666667,"d":"$29,167"}},{"$f":"'(Other Computations)'!B11/8","v":{"v":29166.66666666667,"d":"$29,167"}},{"$f":"'(Other Computations)'!B11/8","v":{"v":29166.66666666667,"d":"$29,167"}},{"$f":"'(Other Computations)'!B11/8","v":{"v":29166.66666666667,"d":"$29,167"}},{"$f":"'(Other Computations)'!B11/8","v":{"v":29166.66666666667,"d":"$29,167"}},{"$f":"'(Other Computations)'!B11/8","v":{"v":29166.66666666667,"d":"$29,167"}},{"$f":"'(Other Computations)'!B11/8","v":{"v":29166.66666666667,"d":"$29,167"}},{"$f":"'(Other Computations)'!B11/8","v":{"v":29166.66666666667,"d":"$29,167"}},{"$f":"'(Other Computations)'!B11/8","v":{"v":29166.66666666667,"d":"$29,167"}},{"$f":"SUM(AO37:AZ37)","v":{"v":350000.0000000002,"d":"$350,000"}},{"$f":"'(Other Computations)'!B11/8","v":{"v":29166.66666666667,"d":"$29,167"}},{"$f":"'(Other Computations)'!B11/8","v":{"v":29166.66666666667,"d":"$29,167"}},{"$f":"'(Other Computations)'!B11/8","v":{"v":29166.66666666667,"d":"$29,167"}},{"$f":"'(Other Computations)'!B11/8","v":{"v":29166.66666666667,"d":"$29,167"}},{"$f":"'(Other Computations)'!B11/8","v":{"v":29166.66666666667,"d":"$29,167"}},{"$f":"'(Other Computations)'!B11/8","v":{"v":29166.66666666667,"d":"$29,167"}},{"$f":"'(Other Computations)'!B11/8","v":{"v":29166.66666666667,"d":"$29,167"}},{"$f":"'(Other Computations)'!B11/8","v":{"v":29166.66666666667,"d":"$29,167"}},{"$f":"'(Other Computations)'!B11/8","v":{"v":29166.66666666667,"d":"$29,167"}},{"$f":"'(Other Computations)'!B11/8","v":{"v":29166.66666666667,"d":"$29,167"}},{"$f":"'(Other Computations)'!B11/8","v":{"v":29166.66666666667,"d":"$29,167"}},{"$f":"'(Other Computations)'!B11/8","v":{"v":29166.66666666667,"d":"$29,167"}},{"$f":"SUM(BB37:BM37)","v":{"v":350000.0000000002,"d":"$350,000"}},{"$f":"'(Other Computations)'!B11/8","v":{"v":29166.66666666667,"d":"$29,167"}},{"$f":"'(Other Computations)'!B11/8","v":{"v":29166.66666666667,"d":"$29,167"}},{"$f":"'(Other Computations)'!B11/8","v":{"v":29166.66666666667,"d":"$29,167"}},{"$f":"'(Other Computations)'!B11/8","v":{"v":29166.66666666667,"d":"$29,167"}},{"$f":"'(Other Computations)'!B11/8","v":{"v":29166.66666666667,"d":"$29,167"}},{"$f":"'(Other Computations)'!B11/8","v":{"v":29166.66666666667,"d":"$29,167"}},{"$f":"'(Other Computations)'!B11/8","v":{"v":29166.66666666667,"d":"$29,167"}},{"$f":"'(Other Computations)'!B11/8","v":{"v":29166.66666666667,"d":"$29,167"}},{"$f":"'(Other Computations)'!B11/8","v":{"v":29166.66666666667,"d":"$29,167"}},{"$f":"'(Other Computations)'!B11/8","v":{"v":29166.66666666667,"d":"$29,167"}},{"$f":"'(Other Computations)'!B11/8","v":{"v":29166.66666666667,"d":"$29,167"}},{"$f":"'(Other Computations)'!B11/8","v":{"v":29166.66666666667,"d":"$29,167"}},{"$f":"SUM(BO37:BZ37)","v":{"v":350000.0000000002,"d":"$350,000"}},{"$f":"'(Other Computations)'!B11/8","v":{"v":29166.66666666667,"d":"$29,167"}},{"$f":"'(Other Computations)'!B11/8","v":{"v":29166.66666666667,"d":"$29,167"}},{"$f":"'(Other Computations)'!B11/8","v":{"v":29166.66666666667,"d":"$29,167"}},{"$f":"'(Other Computations)'!B11/8","v":{"v":29166.66666666667,"d":"$29,167"}},{"$f":"'(Other Computations)'!B11/8","v":{"v":29166.66666666667,"d":"$29,167"}},{"$f":"'(Other Computations)'!B11/8","v":{"v":29166.66666666667,"d":"$29,167"}},{"$f":"'(Other Computations)'!B11/8","v":{"v":29166.66666666667,"d":"$29,167"}},{"$f":"'(Other Computations)'!B11/8","v":{"v":29166.66666666667,"d":"$29,167"}},{"$f":"'(Other Computations)'!B11/8","v":{"v":29166.66666666667,"d":"$29,167"}},{"$f":"'(Other Computations)'!B11/8","v":{"v":29166.66666666667,"d":"$29,167"}},{"$f":"'(Other Computations)'!B11/8","v":{"v":29166.66666666667,"d":"$29,167"}},{"$f":"'(Other Computations)'!B11/8","v":{"v":29166.66666666667,"d":"$29,167"}},{"$f":"SUM(CB37:CM37)","v":{"v":350000.0000000002,"d":"$350,000"}},{"$f":"'(Other Computations)'!B11/8","v":{"v":29166.66666666667,"d":"$29,167"}},{"$f":"'(Other Computations)'!B11/8","v":{"v":29166.66666666667,"d":"$29,167"}},{"$f":"'(Other Computations)'!B11/8","v":{"v":29166.66666666667,"d":"$29,167"}},{"$f":"'(Other Computations)'!B11/8","v":{"v":29166.66666666667,"d":"$29,167"}},{"$f":"'(Other Computations)'!B11/8","v":{"v":29166.66666666667,"d":"$29,167"}},{"$f":"'(Other Computations)'!B11/8","v":{"v":29166.66666666667,"d":"$29,167"}},{"$f":"'(Other Computations)'!B11/8","v":{"v":29166.66666666667,"d":"$29,167"}},{"$f":"'(Other Computations)'!B11/8","v":{"v":29166.66666666667,"d":"$29,167"}},{"$f":"'(Other Computations)'!B11/8","v":{"v":29166.66666666667,"d":"$29,167"}},{"$f":"'(Other Computations)'!B11/8","v":{"v":29166.66666666667,"d":"$29,167"}},{"$f":"'(Other Computations)'!B11/8","v":{"v":29166.66666666667,"d":"$29,167"}},{"$f":"'(Other Computations)'!B11/8","v":{"v":29166.66666666667,"d":"$29,167"}},{"$f":"SUM(CO37:CZ37)","v":{"v":350000.0000000002,"d":"$350,000"}},{"$f":"'(Other Computations)'!B11/8","v":{"v":29166.66666666667,"d":"$29,167"}},{"$f":"'(Other Computations)'!B11/8","v":{"v":29166.66666666667,"d":"$29,167"}},{"$f":"'(Other Computations)'!B11/8","v":{"v":29166.66666666667,"d":"$29,167"}},{"$f":"'(Other Computations)'!B11/8","v":{"v":29166.66666666667,"d":"$29,167"}},{"$f":"'(Other Computations)'!B11/8","v":{"v":29166.66666666667,"d":"$29,167"}},{"$f":"'(Other Computations)'!B11/8","v":{"v":29166.66666666667,"d":"$29,167"}},{"$f":"'(Other Computations)'!B11/8","v":{"v":29166.66666666667,"d":"$29,167"}},{"$f":"'(Other Computations)'!B11/8","v":{"v":29166.66666666667,"d":"$29,167"}},{"$f":"'(Other Computations)'!B11/8","v":{"v":29166.66666666667,"d":"$29,167"}},{"$f":"'(Other Computations)'!B11/8","v":{"v":29166.66666666667,"d":"$29,167"}},{"$f":"'(Other Computations)'!B11/8","v":{"v":29166.66666666667,"d":"$29,167"}},{"$f":"'(Other Computations)'!B11/8","v":{"v":29166.66666666667,"d":"$29,167"}},{"$f":"SUM(DB37:DM37)","v":{"v":350000.0000000002,"d":"$350,000"}},{"$f":"'(Other Computations)'!B11/8","v":{"v":29166.66666666667,"d":"$29,167"}},{"$f":"'(Other Computations)'!B11/8","v":{"v":29166.66666666667,"d":"$29,167"}},{"$f":"'(Other Computations)'!B11/8","v":{"v":29166.66666666667,"d":"$29,167"}},{"$f":"'(Other Computations)'!B11/8","v":{"v":29166.66666666667,"d":"$29,167"}},{"$f":"'(Other Computations)'!B11/8","v":{"v":29166.66666666667,"d":"$29,167"}},{"$f":"'(Other Computations)'!B11/8","v":{"v":29166.66666666667,"d":"$29,167"}},{"$f":"'(Other Computations)'!B11/8","v":{"v":29166.66666666667,"d":"$29,167"}},{"$f":"'(Other Computations)'!B11/8","v":{"v":29166.66666666667,"d":"$29,167"}},{"$f":"'(Other Computations)'!B11/8","v":{"v":29166.66666666667,"d":"$29,167"}},{"$f":"'(Other Computations)'!B11/8","v":{"v":29166.66666666667,"d":"$29,167"}},{"$f":"'(Other Computations)'!B11/8","v":{"v":29166.66666666667,"d":"$29,167"}},{"$f":"'(Other Computations)'!B11/8","v":{"v":29166.66666666667,"d":"$29,167"}},{"$f":"SUM(DO37:DZ37)","v":{"v":350000.0000000002,"d":"$350,000"}},{"$f":"'(Other Computations)'!B11/8","v":{"v":29166.66666666667,"d":"$29,167"}},{"$f":"'(Other Computations)'!B11/8","v":{"v":29166.66666666667,"d":"$29,167"}},{"$f":"'(Other Computations)'!B11/8","v":{"v":29166.66666666667,"d":"$29,167"}},{"$f":"'(Other Computations)'!B11/8","v":{"v":29166.66666666667,"d":"$29,167"}},{"$f":"'(Other Computations)'!B11/8","v":{"v":29166.66666666667,"d":"$29,167"}},{"$f":"'(Other Computations)'!B11/8","v":{"v":29166.66666666667,"d":"$29,167"}},{"$f":"'(Other Computations)'!B11/8","v":{"v":29166.66666666667,"d":"$29,167"}},{"$f":"'(Other Computations)'!B11/8","v":{"v":29166.66666666667,"d":"$29,167"}},{"$f":"'(Other Computations)'!B11/8","v":{"v":29166.66666666667,"d":"$29,167"}},{"$f":"'(Other Computations)'!B11/8","v":{"v":29166.66666666667,"d":"$29,167"}},{"$f":"'(Other Computations)'!B11/8","v":{"v":29166.66666666667,"d":"$29,167"}},{"$f":"'(Other Computations)'!B11/8","v":{"v":29166.66666666667,"d":"$29,167"}},{"$f":"SUM(EB37:EM37)","v":{"v":350000.0000000002,"d":"$350,000"}}]
[{"$f":"Labels!B52","v":"Gov Transfers"},{"$f":"'(Other Computations)'!B14/8","v":{"v":14583.333333333336,"d":"$14,583"}},{"$f":"'(Other Computations)'!B14/8","v":{"v":14583.333333333336,"d":"$14,583"}},{"$f":"'(Other Computations)'!B14/8","v":{"v":14583.333333333336,"d":"$14,583"}},{"$f":"'(Other Computations)'!B14/8","v":{"v":14583.333333333336,"d":"$14,583"}},{"$f":"'(Other Computations)'!B14/8","v":{"v":14583.333333333336,"d":"$14,583"}},{"$f":"'(Other Computations)'!B14/8","v":{"v":14583.333333333336,"d":"$14,583"}},{"$f":"'(Other Computations)'!B14/8","v":{"v":14583.333333333336,"d":"$14,583"}},{"$f":"'(Other Computations)'!B14/8","v":{"v":14583.333333333336,"d":"$14,583"}},{"$f":"'(Other Computations)'!B14/8","v":{"v":14583.333333333336,"d":"$14,583"}},{"$f":"'(Other Computations)'!B14/8","v":{"v":14583.333333333336,"d":"$14,583"}},{"$f":"'(Other Computations)'!B14/8","v":{"v":14583.333333333336,"d":"$14,583"}},{"$f":"'(Other Computations)'!B14/8","v":{"v":14583.333333333336,"d":"$14,583"}},{"$f":"SUM(B38:M38)","v":{"v":175000.0000000001,"d":"$175,000"}},{"$f":"'(Other Computations)'!B14/8","v":{"v":14583.333333333336,"d":"$14,583"}},{"$f":"'(Other Computations)'!B14/8","v":{"v":14583.333333333336,"d":"$14,583"}},{"$f":"'(Other Computations)'!B14/8","v":{"v":14583.333333333336,"d":"$14,583"}},{"$f":"'(Other Computations)'!B14/8","v":{"v":14583.333333333336,"d":"$14,583"}},{"$f":"'(Other Computations)'!B14/8","v":{"v":14583.333333333336,"d":"$14,583"}},{"$f":"'(Other Computations)'!B14/8","v":{"v":14583.333333333336,"d":"$14,583"}},{"$f":"'(Other Computations)'!B14/8","v":{"v":14583.333333333336,"d":"$14,583"}},{"$f":"'(Other Computations)'!B14/8","v":{"v":14583.333333333336,"d":"$14,583"}},{"$f":"'(Other Computations)'!B14/8","v":{"v":14583.333333333336,"d":"$14,583"}},{"$f":"'(Other Computations)'!B14/8","v":{"v":14583.333333333336,"d":"$14,583"}},{"$f":"'(Other Computations)'!B14/8","v":{"v":14583.333333333336,"d":"$14,583"}},{"$f":"'(Other Computations)'!B14/8","v":{"v":14583.333333333336,"d":"$14,583"}},{"$f":"SUM(O38:Z38)","v":{"v":175000.0000000001,"d":"$175,000"}},{"$f":"'(Other Computations)'!B14/8","v":{"v":14583.333333333336,"d":"$14,583"}},{"$f":"'(Other Computations)'!B14/8","v":{"v":14583.333333333336,"d":"$14,583"}},{"$f":"'(Other Computations)'!B14/8","v":{"v":14583.333333333336,"d":"$14,583"}},{"$f":"'(Other Computations)'!B14/8","v":{"v":14583.333333333336,"d":"$14,583"}},{"$f":"'(Other Computations)'!B14/8","v":{"v":14583.333333333336,"d":"$14,583"}},{"$f":"'(Other Computations)'!B14/8","v":{"v":14583.333333333336,"d":"$14,583"}},{"$f":"'(Other Computations)'!B14/8","v":{"v":14583.333333333336,"d":"$14,583"}},{"$f":"'(Other Computations)'!B14/8","v":{"v":14583.333333333336,"d":"$14,583"}},{"$f":"'(Other Computations)'!B14/8","v":{"v":14583.333333333336,"d":"$14,583"}},{"$f":"'(Other Computations)'!B14/8","v":{"v":14583.333333333336,"d":"$14,583"}},{"$f":"'(Other Computations)'!B14/8","v":{"v":14583.333333333336,"d":"$14,583"}},{"$f":"'(Other Computations)'!B14/8","v":{"v":14583.333333333336,"d":"$14,583"}},{"$f":"SUM(AB38:AM38)","v":{"v":175000.0000000001,"d":"$175,000"}},{"$f":"'(Other Computations)'!B14/8","v":{"v":14583.333333333336,"d":"$14,583"}},{"$f":"'(Other Computations)'!B14/8","v":{"v":14583.333333333336,"d":"$14,583"}},{"$f":"'(Other Computations)'!B14/8","v":{"v":14583.333333333336,"d":"$14,583"}},{"$f":"'(Other Computations)'!B14/8","v":{"v":14583.333333333336,"d":"$14,583"}},{"$f":"'(Other Computations)'!B14/8","v":{"v":14583.333333333336,"d":"$14,583"}},{"$f":"'(Other Computations)'!B14/8","v":{"v":14583.333333333336,"d":"$14,583"}},{"$f":"'(Other Computations)'!B14/8","v":{"v":14583.333333333336,"d":"$14,583"}},{"$f":"'(Other Computations)'!B14/8","v":{"v":14583.333333333336,"d":"$14,583"}},{"$f":"'(Other Computations)'!B14/8","v":{"v":14583.333333333336,"d":"$14,583"}},{"$f":"'(Other Computations)'!B14/8","v":{"v":14583.333333333336,"d":"$14,583"}},{"$f":"'(Other Computations)'!B14/8","v":{"v":14583.333333333336,"d":"$14,583"}},{"$f":"'(Other Computations)'!B14/8","v":{"v":14583.333333333336,"d":"$14,583"}},{"$f":"SUM(AO38:AZ38)","v":{"v":175000.0000000001,"d":"$175,000"}},{"$f":"'(Other Computations)'!B14/8","v":{"v":14583.333333333336,"d":"$14,583"}},{"$f":"'(Other Computations)'!B14/8","v":{"v":14583.333333333336,"d":"$14,583"}},{"$f":"'(Other Computations)'!B14/8","v":{"v":14583.333333333336,"d":"$14,583"}},{"$f":"'(Other Computations)'!B14/8","v":{"v":14583.333333333336,"d":"$14,583"}},{"$f":"'(Other Computations)'!B14/8","v":{"v":14583.333333333336,"d":"$14,583"}},{"$f":"'(Other Computations)'!B14/8","v":{"v":14583.333333333336,"d":"$14,583"}},{"$f":"'(Other Computations)'!B14/8","v":{"v":14583.333333333336,"d":"$14,583"}},{"$f":"'(Other Computations)'!B14/8","v":{"v":14583.333333333336,"d":"$14,583"}},{"$f":"'(Other Computations)'!B14/8","v":{"v":14583.333333333336,"d":"$14,583"}},{"$f":"'(Other Computations)'!B14/8","v":{"v":14583.333333333336,"d":"$14,583"}},{"$f":"'(Other Computations)'!B14/8","v":{"v":14583.333333333336,"d":"$14,583"}},{"$f":"'(Other Computations)'!B14/8","v":{"v":14583.333333333336,"d":"$14,583"}},{"$f":"SUM(BB38:BM38)","v":{"v":175000.0000000001,"d":"$175,000"}},{"$f":"'(Other Computations)'!B14/8","v":{"v":14583.333333333336,"d":"$14,583"}},{"$f":"'(Other Computations)'!B14/8","v":{"v":14583.333333333336,"d":"$14,583"}},{"$f":"'(Other Computations)'!B14/8","v":{"v":14583.333333333336,"d":"$14,583"}},{"$f":"'(Other Computations)'!B14/8","v":{"v":14583.333333333336,"d":"$14,583"}},{"$f":"'(Other Computations)'!B14/8","v":{"v":14583.333333333336,"d":"$14,583"}},{"$f":"'(Other Computations)'!B14/8","v":{"v":14583.333333333336,"d":"$14,583"}},{"$f":"'(Other Computations)'!B14/8","v":{"v":14583.333333333336,"d":"$14,583"}},{"$f":"'(Other Computations)'!B14/8","v":{"v":14583.333333333336,"d":"$14,583"}},{"$f":"'(Other Computations)'!B14/8","v":{"v":14583.333333333336,"d":"$14,583"}},{"$f":"'(Other Computations)'!B14/8","v":{"v":14583.333333333336,"d":"$14,583"}},{"$f":"'(Other Computations)'!B14/8","v":{"v":14583.333333333336,"d":"$14,583"}},{"$f":"'(Other Computations)'!B14/8","v":{"v":14583.333333333336,"d":"$14,583"}},{"$f":"SUM(BO38:BZ38)","v":{"v":175000.0000000001,"d":"$175,000"}},{"$f":"'(Other Computations)'!B14/8","v":{"v":14583.333333333336,"d":"$14,583"}},{"$f":"'(Other Computations)'!B14/8","v":{"v":14583.333333333336,"d":"$14,583"}},{"$f":"'(Other Computations)'!B14/8","v":{"v":14583.333333333336,"d":"$14,583"}},{"$f":"'(Other Computations)'!B14/8","v":{"v":14583.333333333336,"d":"$14,583"}},{"$f":"'(Other Computations)'!B14/8","v":{"v":14583.333333333336,"d":"$14,583"}},{"$f":"'(Other Computations)'!B14/8","v":{"v":14583.333333333336,"d":"$14,583"}},{"$f":"'(Other Computations)'!B14/8","v":{"v":14583.333333333336,"d":"$14,583"}},{"$f":"'(Other Computations)'!B14/8","v":{"v":14583.333333333336,"d":"$14,583"}},{"$f":"'(Other Computations)'!B14/8","v":{"v":14583.333333333336,"d":"$14,583"}},{"$f":"'(Other Computations)'!B14/8","v":{"v":14583.333333333336,"d":"$14,583"}},{"$f":"'(Other Computations)'!B14/8","v":{"v":14583.333333333336,"d":"$14,583"}},{"$f":"'(Other Computations)'!B14/8","v":{"v":14583.333333333336,"d":"$14,583"}},{"$f":"SUM(CB38:CM38)","v":{"v":175000.0000000001,"d":"$175,000"}},{"$f":"'(Other Computations)'!B14/8","v":{"v":14583.333333333336,"d":"$14,583"}},{"$f":"'(Other Computations)'!B14/8","v":{"v":14583.333333333336,"d":"$14,583"}},{"$f":"'(Other Computations)'!B14/8","v":{"v":14583.333333333336,"d":"$14,583"}},{"$f":"'(Other Computations)'!B14/8","v":{"v":14583.333333333336,"d":"$14,583"}},{"$f":"'(Other Computations)'!B14/8","v":{"v":14583.333333333336,"d":"$14,583"}},{"$f":"'(Other Computations)'!B14/8","v":{"v":14583.333333333336,"d":"$14,583"}},{"$f":"'(Other Computations)'!B14/8","v":{"v":14583.333333333336,"d":"$14,583"}},{"$f":"'(Other Computations)'!B14/8","v":{"v":14583.333333333336,"d":"$14,583"}},{"$f":"'(Other Computations)'!B14/8","v":{"v":14583.333333333336,"d":"$14,583"}},{"$f":"'(Other Computations)'!B14/8","v":{"v":14583.333333333336,"d":"$14,583"}},{"$f":"'(Other Computations)'!B14/8","v":{"v":14583.333333333336,"d":"$14,583"}},{"$f":"'(Other Computations)'!B14/8","v":{"v":14583.333333333336,"d":"$14,583"}},{"$f":"SUM(CO38:CZ38)","v":{"v":175000.0000000001,"d":"$175,000"}},{"$f":"'(Other Computations)'!B14/8","v":{"v":14583.333333333336,"d":"$14,583"}},{"$f":"'(Other Computations)'!B14/8","v":{"v":14583.333333333336,"d":"$14,583"}},{"$f":"'(Other Computations)'!B14/8","v":{"v":14583.333333333336,"d":"$14,583"}},{"$f":"'(Other Computations)'!B14/8","v":{"v":14583.333333333336,"d":"$14,583"}},{"$f":"'(Other Computations)'!B14/8","v":{"v":14583.333333333336,"d":"$14,583"}},{"$f":"'(Other Computations)'!B14/8","v":{"v":14583.333333333336,"d":"$14,583"}},{"$f":"'(Other Computations)'!B14/8","v":{"v":14583.333333333336,"d":"$14,583"}},{"$f":"'(Other Computations)'!B14/8","v":{"v":14583.333333333336,"d":"$14,583"}},{"$f":"'(Other Computations)'!B14/8","v":{"v":14583.333333333336,"d":"$14,583"}},{"$f":"'(Other Computations)'!B14/8","v":{"v":14583.333333333336,"d":"$14,583"}},{"$f":"'(Other Computations)'!B14/8","v":{"v":14583.333333333336,"d":"$14,583"}},{"$f":"'(Other Computations)'!B14/8","v":{"v":14583.333333333336,"d":"$14,583"}},{"$f":"SUM(DB38:DM38)","v":{"v":175000.0000000001,"d":"$175,000"}},{"$f":"'(Other Computations)'!B14/8","v":{"v":14583.333333333336,"d":"$14,583"}},{"$f":"'(Other Computations)'!B14/8","v":{"v":14583.333333333336,"d":"$14,583"}},{"$f":"'(Other Computations)'!B14/8","v":{"v":14583.333333333336,"d":"$14,583"}},{"$f":"'(Other Computations)'!B14/8","v":{"v":14583.333333333336,"d":"$14,583"}},{"$f":"'(Other Computations)'!B14/8","v":{"v":14583.333333333336,"d":"$14,583"}},{"$f":"'(Other Computations)'!B14/8","v":{"v":14583.333333333336,"d":"$14,583"}},{"$f":"'(Other Computations)'!B14/8","v":{"v":14583.333333333336,"d":"$14,583"}},{"$f":"'(Other Computations)'!B14/8","v":{"v":14583.333333333336,"d":"$14,583"}},{"$f":"'(Other Computations)'!B14/8","v":{"v":14583.333333333336,"d":"$14,583"}},{"$f":"'(Other Computations)'!B14/8","v":{"v":14583.333333333336,"d":"$14,583"}},{"$f":"'(Other Computations)'!B14/8","v":{"v":14583.333333333336,"d":"$14,583"}},{"$f":"'(Other Computations)'!B14/8","v":{"v":14583.333333333336,"d":"$14,583"}},{"$f":"SUM(DO38:DZ38)","v":{"v":175000.0000000001,"d":"$175,000"}},{"$f":"'(Other Computations)'!B14/8","v":{"v":14583.333333333336,"d":"$14,583"}},{"$f":"'(Other Computations)'!B14/8","v":{"v":14583.333333333336,"d":"$14,583"}},{"$f":"'(Other Computations)'!B14/8","v":{"v":14583.333333333336,"d":"$14,583"}},{"$f":"'(Other Computations)'!B14/8","v":{"v":14583.333333333336,"d":"$14,583"}},{"$f":"'(Other Computations)'!B14/8","v":{"v":14583.333333333336,"d":"$14,583"}},{"$f":"'(Other Computations)'!B14/8","v":{"v":14583.333333333336,"d":"$14,583"}},{"$f":"'(Other Computations)'!B14/8","v":{"v":14583.333333333336,"d":"$14,583"}},{"$f":"'(Other Computations)'!B14/8","v":{"v":14583.333333333336,"d":"$14,583"}},{"$f":"'(Other Computations)'!B14/8","v":{"v":14583.333333333336,"d":"$14,583"}},{"$f":"'(Other Computations)'!B14/8","v":{"v":14583.333333333336,"d":"$14,583"}},{"$f":"'(Other Computations)'!B14/8","v":{"v":14583.333333333336,"d":"$14,583"}},{"$f":"'(Other Computations)'!B14/8","v":{"v":14583.333333333336,"d":"$14,583"}},{"$f":"SUM(EB38:EM38)","v":{"v":175000.0000000001,"d":"$175,000"}}]
[]
[]
[{"$f":"\"Output\"","v":"Output"}]
[{"$f":"\" \"","v":" "}]
[null,{"$f":"ZZZ__FnCalls!F7","v":"Jan 2010"},{"$f":"ZZZ__FnCalls!F8","v":"Feb 2010"},{"$f":"ZZZ__FnCalls!F9","v":"Mar 2010"},{"$f":"ZZZ__FnCalls!F10","v":"Apr 2010"},{"$f":"ZZZ__FnCalls!F11","v":"May 2010"},{"$f":"ZZZ__FnCalls!F12","v":"Jun 2010"},{"$f":"ZZZ__FnCalls!F13","v":"Jul 2010"},{"$f":"ZZZ__FnCalls!F14","v":"Aug 2010"},{"$f":"ZZZ__FnCalls!F15","v":"Sep 2010"},{"$f":"ZZZ__FnCalls!F16","v":"Oct 2010"},{"$f":"ZZZ__FnCalls!F17","v":"Nov 2010"},{"$f":"ZZZ__FnCalls!F18","v":"Dec 2010"},{"$f":"ZZZ__FnCalls!H7","v":"2010"},{"$f":"ZZZ__FnCalls!F19","v":"Jan 2011"},{"$f":"ZZZ__FnCalls!F20","v":"Feb 2011"},{"$f":"ZZZ__FnCalls!F21","v":"Mar 2011"},{"$f":"ZZZ__FnCalls!F22","v":"Apr 2011"},{"$f":"ZZZ__FnCalls!F23","v":"May 2011"},{"$f":"ZZZ__FnCalls!F24","v":"Jun 2011"},{"$f":"ZZZ__FnCalls!F25","v":"Jul 2011"},{"$f":"ZZZ__FnCalls!F26","v":"Aug 2011"},{"$f":"ZZZ__FnCalls!F27","v":"Sep 2011"},{"$f":"ZZZ__FnCalls!F28","v":"Oct 2011"},{"$f":"ZZZ__FnCalls!F29","v":"Nov 2011"},{"$f":"ZZZ__FnCalls!F30","v":"Dec 2011"},{"$f":"ZZZ__FnCalls!H19","v":"2011"},{"$f":"ZZZ__FnCalls!F31","v":"Jan 2012"},{"$f":"ZZZ__FnCalls!F32","v":"Feb 2012"},{"$f":"ZZZ__FnCalls!F33","v":"Mar 2012"},{"$f":"ZZZ__FnCalls!F34","v":"Apr 2012"},{"$f":"ZZZ__FnCalls!F35","v":"May 2012"},{"$f":"ZZZ__FnCalls!F36","v":"Jun 2012"},{"$f":"ZZZ__FnCalls!F37","v":"Jul 2012"},{"$f":"ZZZ__FnCalls!F38","v":"Aug 2012"},{"$f":"ZZZ__FnCalls!F39","v":"Sep 2012"},{"$f":"ZZZ__FnCalls!F40","v":"Oct 2012"},{"$f":"ZZZ__FnCalls!F41","v":"Nov 2012"},{"$f":"ZZZ__FnCalls!F42","v":"Dec 2012"},{"$f":"ZZZ__FnCalls!H31","v":"2012"},{"$f":"ZZZ__FnCalls!F43","v":"Jan 2013"},{"$f":"ZZZ__FnCalls!F44","v":"Feb 2013"},{"$f":"ZZZ__FnCalls!F45","v":"Mar 2013"},{"$f":"ZZZ__FnCalls!F46","v":"Apr 2013"},{"$f":"ZZZ__FnCalls!F47","v":"May 2013"},{"$f":"ZZZ__FnCalls!F48","v":"Jun 2013"},{"$f":"ZZZ__FnCalls!F49","v":"Jul 2013"},{"$f":"ZZZ__FnCalls!F50","v":"Aug 2013"},{"$f":"ZZZ__FnCalls!F51","v":"Sep 2013"},{"$f":"ZZZ__FnCalls!F52","v":"Oct 2013"},{"$f":"ZZZ__FnCalls!F53","v":"Nov 2013"},{"$f":"ZZZ__FnCalls!F54","v":"Dec 2013"},{"$f":"ZZZ__FnCalls!H43","v":"2013"},{"$f":"ZZZ__FnCalls!F55","v":"Jan 2014"},{"$f":"ZZZ__FnCalls!F56","v":"Feb 2014"},{"$f":"ZZZ__FnCalls!F57","v":"Mar 2014"},{"$f":"ZZZ__FnCalls!F58","v":"Apr 2014"},{"$f":"ZZZ__FnCalls!F59","v":"May 2014"},{"$f":"ZZZ__FnCalls!F60","v":"Jun 2014"},{"$f":"ZZZ__FnCalls!F61","v":"Jul 2014"},{"$f":"ZZZ__FnCalls!F62","v":"Aug 2014"},{"$f":"ZZZ__FnCalls!F63","v":"Sep 2014"},{"$f":"ZZZ__FnCalls!F64","v":"Oct 2014"},{"$f":"ZZZ__FnCalls!F65","v":"Nov 2014"},{"$f":"ZZZ__FnCalls!F66","v":"Dec 2014"},{"$f":"ZZZ__FnCalls!H55","v":"2014"},{"$f":"ZZZ__FnCalls!F67","v":"Jan 2015"},{"$f":"ZZZ__FnCalls!F68","v":"Feb 2015"},{"$f":"ZZZ__FnCalls!F69","v":"Mar 2015"},{"$f":"ZZZ__FnCalls!F70","v":"Apr 2015"},{"$f":"ZZZ__FnCalls!F71","v":"May 2015"},{"$f":"ZZZ__FnCalls!F72","v":"Jun 2015"},{"$f":"ZZZ__FnCalls!F73","v":"Jul 2015"},{"$f":"ZZZ__FnCalls!F74","v":"Aug 2015"},{"$f":"ZZZ__FnCalls!F75","v":"Sep 2015"},{"$f":"ZZZ__FnCalls!F76","v":"Oct 2015"},{"$f":"ZZZ__FnCalls!F77","v":"Nov 2015"},{"$f":"ZZZ__FnCalls!F78","v":"Dec 2015"},{"$f":"ZZZ__FnCalls!H67","v":"2015"},{"$f":"ZZZ__FnCalls!F79","v":"Jan 2016"},{"$f":"ZZZ__FnCalls!F80","v":"Feb 2016"},{"$f":"ZZZ__FnCalls!F81","v":"Mar 2016"},{"$f":"ZZZ__FnCalls!F82","v":"Apr 2016"},{"$f":"ZZZ__FnCalls!F83","v":"May 2016"},{"$f":"ZZZ__FnCalls!F84","v":"Jun 2016"},{"$f":"ZZZ__FnCalls!F85","v":"Jul 2016"},{"$f":"ZZZ__FnCalls!F86","v":"Aug 2016"},{"$f":"ZZZ__FnCalls!F87","v":"Sep 2016"},{"$f":"ZZZ__FnCalls!F88","v":"Oct 2016"},{"$f":"ZZZ__FnCalls!F89","v":"Nov 2016"},{"$f":"ZZZ__FnCalls!F90","v":"Dec 2016"},{"$f":"ZZZ__FnCalls!H79","v":"2016"},{"$f":"ZZZ__FnCalls!F91","v":"Jan 2017"},{"$f":"ZZZ__FnCalls!F92","v":"Feb 2017"},{"$f":"ZZZ__FnCalls!F93","v":"Mar 2017"},{"$f":"ZZZ__FnCalls!F94","v":"Apr 2017"},{"$f":"ZZZ__FnCalls!F95","v":"May 2017"},{"$f":"ZZZ__FnCalls!F96","v":"Jun 2017"},{"$f":"ZZZ__FnCalls!F97","v":"Jul 2017"},{"$f":"ZZZ__FnCalls!F98","v":"Aug 2017"},{"$f":"ZZZ__FnCalls!F99","v":"Sep 2017"},{"$f":"ZZZ__FnCalls!F100","v":"Oct 2017"},{"$f":"ZZZ__FnCalls!F101","v":"Nov 2017"},{"$f":"ZZZ__FnCalls!F102","v":"Dec 2017"},{"$f":"ZZZ__FnCalls!H91","v":"2017"},{"$f":"ZZZ__FnCalls!F103","v":"Jan 2018"},{"$f":"ZZZ__FnCalls!F104","v":"Feb 2018"},{"$f":"ZZZ__FnCalls!F105","v":"Mar 2018"},{"$f":"ZZZ__FnCalls!F106","v":"Apr 2018"},{"$f":"ZZZ__FnCalls!F107","v":"May 2018"},{"$f":"ZZZ__FnCalls!F108","v":"Jun 2018"},{"$f":"ZZZ__FnCalls!F109","v":"Jul 2018"},{"$f":"ZZZ__FnCalls!F110","v":"Aug 2018"},{"$f":"ZZZ__FnCalls!F111","v":"Sep 2018"},{"$f":"ZZZ__FnCalls!F112","v":"Oct 2018"},{"$f":"ZZZ__FnCalls!F113","v":"Nov 2018"},{"$f":"ZZZ__FnCalls!F114","v":"Dec 2018"},{"$f":"ZZZ__FnCalls!H103","v":"2018"},{"$f":"ZZZ__FnCalls!F115","v":"Jan 2019"},{"$f":"ZZZ__FnCalls!F116","v":"Feb 2019"},{"$f":"ZZZ__FnCalls!F117","v":"Mar 2019"},{"$f":"ZZZ__FnCalls!F118","v":"Apr 2019"},{"$f":"ZZZ__FnCalls!F119","v":"May 2019"},{"$f":"ZZZ__FnCalls!F120","v":"Jun 2019"},{"$f":"ZZZ__FnCalls!F121","v":"Jul 2019"},{"$f":"ZZZ__FnCalls!F122","v":"Aug 2019"},{"$f":"ZZZ__FnCalls!F123","v":"Sep 2019"},{"$f":"ZZZ__FnCalls!F124","v":"Oct 2019"},{"$f":"ZZZ__FnCalls!F125","v":"Nov 2019"},{"$f":"ZZZ__FnCalls!F126","v":"Dec 2019"},{"$f":"ZZZ__FnCalls!H115","v":"2019"},{"$f":"ZZZ__FnCalls!F127","v":"Jan 2020"},{"$f":"ZZZ__FnCalls!F128","v":"Feb 2020"},{"$f":"ZZZ__FnCalls!F129","v":"Mar 2020"},{"$f":"ZZZ__FnCalls!F130","v":"Apr 2020"},{"$f":"ZZZ__FnCalls!F131","v":"May 2020"},{"$f":"ZZZ__FnCalls!F132","v":"Jun 2020"},{"$f":"ZZZ__FnCalls!F133","v":"Jul 2020"},{"$f":"ZZZ__FnCalls!F134","v":"Aug 2020"},{"$f":"ZZZ__FnCalls!F135","v":"Sep 2020"},{"$f":"ZZZ__FnCalls!F136","v":"Oct 2020"},{"$f":"ZZZ__FnCalls!F137","v":"Nov 2020"},{"$f":"ZZZ__FnCalls!F138","v":"Dec 2020"},{"$f":"ZZZ__FnCalls!H127","v":"2020"}]
[{"$f":"Labels!B64","v":"Output"},{"$f":"B45*(1-Inputs!B21)+B11*Inputs!B21+B46","v":{"v":1210251.6680096046,"d":"$1,210,252"}},{"$f":"C45*(1-Inputs!B21)+C11*Inputs!B21+C46","v":{"v":1218578.5246341159,"d":"$1,218,579"}},{"$f":"D45*(1-Inputs!B21)+D11*Inputs!B21+D46","v":{"v":1127407.1138138599,"d":"$1,127,407"}},{"$f":"E45*(1-Inputs!B21)+E11*Inputs!B21+E46","v":{"v":1130493.1844835978,"d":"$1,130,493"}},{"$f":"F45*(1-Inputs!B21)+F11*Inputs!B21+F46","v":{"v":1111293.3818536126,"d":"$1,111,293"}},{"$f":"G45*(1-Inputs!B21)+G11*Inputs!B21+G46","v":{"v":1123101.7155773572,"d":"$1,123,102"}},{"$f":"H45*(1-Inputs!B21)+H11*Inputs!B21+H46","v":{"v":1187302.342687659,"d":"$1,187,302"}},{"$f":"I45*(1-Inputs!B21)+I11*Inputs!B21+I46","v":{"v":1175040.9819092923,"d":"$1,175,041"}},{"$f":"J45*(1-Inputs!B21)+J11*Inputs!B21+J46","v":{"v":1143544.305800521,"d":"$1,143,544"}},{"$f":"K45*(1-Inputs!B21)+K11*Inputs!B21+K46","v":{"v":1128449.6600209647,"d":"$1,128,450"}},{"$f":"L45*(1-Inputs!B21)+L11*Inputs!B21+L46","v":{"v":1152362.0298329997,"d":"$1,152,362"}},{"$f":"M45*(1-Inputs!B21)+M11*Inputs!B21+M46","v":{"v":1167087.5506795063,"d":"$1,167,088"}},{"$f":"SUM(B44:M44)","v":{"v":13874912.459303092,"d":"$13,874,912"}},{"$f":"O45*(1-Inputs!B21)+O11*Inputs!B21+O46","v":{"v":1149967.5857172555,"d":"$1,149,968"}},{"$f":"P45*(1-Inputs!B21)+P11*Inputs!B21+P46","v":{"v":1184831.9523031916,"d":"$1,184,832"}},{"$f":"Q45*(1-Inputs!B21)+Q11*Inputs!B21+Q46","v":{"v":1164013.925754558,"d":"$1,164,014"}},{"$f":"R45*(1-Inputs!B21)+R11*Inputs!B21+R46","v":{"v":1206973.6177859497,"d":"$1,206,974"}},{"$f":"S45*(1-Inputs!B21)+S11*Inputs!B21+S46","v":{"v":1134898.6250178746,"d":"$1,134,899"}},{"$f":"T45*(1-Inputs!B21)+T11*Inputs!B21+T46","v":{"v":1176641.3423735597,"d":"$1,176,641"}},{"$f":"U45*(1-Inputs!B21)+U11*Inputs!B21+U46","v":{"v":1133884.6819721425,"d":"$1,133,885"}},{"$f":"V45*(1-Inputs!B21)+V11*Inputs!B21+V46","v":{"v":1165639.315202401,"d":"$1,165,639"}},{"$f":"W45*(1-Inputs!B21)+W11*Inputs!B21+W46","v":{"v":1091770.5653495858,"d":"$1,091,771"}},{"$f":"X45*(1-Inputs!B21)+X11*Inputs!B21+X46","v":{"v":1121560.7595828264,"d":"$1,121,561"}},{"$f":"Y45*(1-Inputs!B21)+Y11*Inputs!B21+Y46","v":{"v":1165866.515439161,"d":"$1,165,867"}},{"$f":"Z45*(1-Inputs!B21)+Z11*Inputs!B21+Z46","v":{"v":1157272.946405661,"d":"$1,157,273"}},{"$f":"SUM(O44:Z44)","v":{"v":13853321.832904167,"d":"$13,853,322"}},{"$f":"AB45*(1-Inputs!B21)+AB11*Inputs!B21+AB46","v":{"v":1128473.9086858823,"d":"$1,128,474"}},{"$f":"AC45*(1-Inputs!B21)+AC11*Inputs!B21+AC46","v":{"v":1165043.248437493,"d":"$1,165,043"}},{"$f":"AD45*(1-Inputs!B21)+AD11*Inputs!B21+AD46","v":{"v":1159553.584000053,"d":"$1,159,554"}},{"$f":"AE45*(1-Inputs!B21)+AE11*Inputs!B21+AE46","v":{"v":1130377.510273578,"d":"$1,130,378"}},{"$f":"AF45*(1-Inputs!B21)+AF11*Inputs!B21+AF46","v":{"v":1190048.3201367613,"d":"$1,190,048"}},{"$f":"AG45*(1-Inputs!B21)+AG11*Inputs!B21+AG46","v":{"v":1117906.3223701294,"d":"$1,117,906"}},{"$f":"AH45*(1-Inputs!B21)+AH11*Inputs!B21+AH46","v":{"v":1122495.1995169201,"d":"$1,122,495"}},{"$f":"AI45*(1-Inputs!B21)+AI11*Inputs!B21+AI46","v":{"v":1095659.3627510543,"d":"$1,095,659"}},{"$f":"AJ45*(1-Inputs!B21)+AJ11*Inputs!B21+AJ46","v":{"v":1096811.479508809,"d":"$1,096,811"}},{"$f":"AK45*(1-Inputs!B21)+AK11*Inputs!B21+AK46","v":{"v":1142501.406906212,"d":"$1,142,501"}},{"$f":"AL45*(1-Inputs!B21)+AL11*Inputs!B21+AL46","v":{"v":1130097.7373887997,"d":"$1,130,098"}},{"$f":"AM45*(1-Inputs!B21)+AM11*Inputs!B21+AM46","v":{"v":1088668.6650848824,"d":"$1,088,669"}},{"$f":"SUM(AB44:AM44)","v":{"v":13567636.745060574,"d":"$13,567,637"}},{"$f":"AO45*(1-Inputs!B21)+AO11*Inputs!B21+AO46","v":{"v":1085353.6554494123,"d":"$1,085,354"}},{"$f":"AP45*(1-Inputs!B21)+AP11*Inputs!B21+AP46","v":{"v":1094860.3083858832,"d":"$1,094,860"}},{"$f":"AQ45*(1-Inputs!B21)+AQ11*Inputs!B21+AQ46","v":{"v":1109699.0895735358,"d":"$1,109,699"}},{"$f":"AR45*(1-Inputs!B21)+AR11*Inputs!B21+AR46","v":{"v":1071743.7677748143,"d":"$1,071,744"}},{"$f":"AS45*(1-Inputs!B21)+AS11*Inputs!B21+AS46","v":{"v":1082240.2789869881,"d":"$1,082,240"}},{"$f":"AT45*(1-Inputs!B21)+AT11*Inputs!B21+AT46","v":{"v":1071595.291401016,"d":"$1,071,595"}},{"$f":"AU45*(1-Inputs!B21)+AU11*Inputs!B21+AU46","v":{"v":1122566.969264006,"d":"$1,122,567"}},{"$f":"AV45*(1-Inputs!B21)+AV11*Inputs!B21+AV46","v":{"v":1137261.1424805422,"d":"$1,137,261"}},{"$f":"AW45*(1-Inputs!B21)+AW11*Inputs!B21+AW46","v":{"v":1138561.4712092034,"d":"$1,138,561"}},{"$f":"AX45*(1-Inputs!B21)+AX11*Inputs!B21+AX46","v":{"v":1125138.0034193264,"d":"$1,125,138"}},{"$f":"AY45*(1-Inputs!B21)+AY11*Inputs!B21+AY46","v":{"v":1119100.4214995843,"d":"$1,119,100"}},{"$f":"AZ45*(1-Inputs!B21)+AZ11*Inputs!B21+AZ46","v":{"v":1119133.5622842207,"d":"$1,119,134"}},{"$f":"SUM(AO44:AZ44)","v":{"v":13277253.961728534,"d":"$13,277,254"}},{"$f":"BB45*(1-Inputs!B21)+BB11*Inputs!B21+BB46","v":{"v":1089183.8290751746,"d":"$1,089,184"}},{"$f":"BC45*(1-Inputs!B21)+BC11*Inputs!B21+BC46","v":{"v":1109285.9210977461,"d":"$1,109,286"}},{"$f":"BD45*(1-Inputs!B21)+BD11*Inputs!B21+BD46","v":{"v":1144313.351289886,"d":"$1,144,313"}},{"$f":"BE45*(1-Inputs!B21)+BE11*Inputs!B21+BE46","v":{"v":1095492.309704641,"d":"$1,095,492"}},{"$f":"BF45*(1-Inputs!B21)+BF11*Inputs!B21+BF46","v":{"v":1067576.9412509638,"d":"$1,067,577"}},{"$f":"BG45*(1-Inputs!B21)+BG11*Inputs!B21+BG46","v":{"v":1085978.3359549604,"d":"$1,085,978"}},{"$f":"BH45*(1-Inputs!B21)+BH11*Inputs!B21+BH46","v":{"v":1067881.6852203521,"d":"$1,067,882"}},{"$f":"BI45*(1-Inputs!B21)+BI11*Inputs!B21+BI46","v":{"v":1050717.130349221,"d":"$1,050,717"}},{"$f":"BJ45*(1-Inputs!B21)+BJ11*Inputs!B21+BJ46","v":{"v":1104556.1980584797,"d":"$1,104,556"}},{"$f":"BK45*(1-Inputs!B21)+BK11*Inputs!B21+BK46","v":{"v":1117095.5919037955,"d":"$1,117,096"}},{"$f":"BL45*(1-Inputs!B21)+BL11*Inputs!B21+BL46","v":{"v":1090990.1430810287,"d":"$1,090,990"}},{"$f":"BM45*(1-Inputs!B21)+BM11*Inputs!B21+BM46","v":{"v":1036501.1459630799,"d":"$1,036,501"}},{"$f":"SUM(BB44:BM44)","v":{"v":13059572.58294933,"d":"$13,059,573"}},{"$f":"BO45*(1-Inputs!B21)+BO11*Inputs!B21+BO46","v":{"v":1051742.653390171,"d":"$1,051,743"}},{"$f":"BP45*(1-Inputs!B21)+BP11*Inputs!B21+BP46","v":{"v":1067784.567916827,"d":"$1,067,785"}},{"$f":"BQ45*(1-Inputs!B21)+BQ11*Inputs!B21+BQ46","v":{"v":1072223.2287987336,"d":"$1,072,223"}},{"$f":"BR45*(1-Inputs!B21)+BR11*Inputs!B21+BR46","v":{"v":1128695.9383479336,"d":"$1,128,696"}},{"$f":"BS45*(1-Inputs!B21)+BS11*Inputs!B21+BS46","v":{"v":1121277.226875086,"d":"$1,121,277"}},{"$f":"BT45*(1-Inputs!B21)+BT11*Inputs!B21+BT46","v":{"v":1065883.4785031958,"d":"$1,065,883"}},{"$f":"BU45*(1-Inputs!B21)+BU11*Inputs!B21+BU46","v":{"v":1044843.3720022619,"d":"$1,044,843"}},{"$f":"BV45*(1-Inputs!B21)+BV11*Inputs!B21+BV46","v":{"v":1072705.6265686154,"d":"$1,072,706"}},{"$f":"BW45*(1-Inputs!B21)+BW11*Inputs!B21+BW46","v":{"v":1085074.1830909199,"d":"$1,085,074"}},{"$f":"BX45*(1-Inputs!B21)+BX11*Inputs!B21+BX46","v":{"v":1073583.3128114417,"d":"$1,073,583"}},{"$f":"BY45*(1-Inputs!B21)+BY11*Inputs!B21+BY46","v":{"v":1100834.271957714,"d":"$1,100,834"}},{"$f":"BZ45*(1-Inputs!B21)+BZ11*Inputs!B21+BZ46","v":{"v":1084289.3832612408,"d":"$1,084,289"}},{"$f":"SUM(BO44:BZ44)","v":{"v":12968937.24352414,"d":"$12,968,937"}},{"$f":"CB45*(1-Inputs!B21)+CB11*Inputs!B21+CB46","v":{"v":1064745.1755210634,"d":"$1,064,745"}},{"$f":"CC45*(1-Inputs!B21)+CC11*Inputs!B21+CC46","v":{"v":1037852.1200914562,"d":"$1,037,852"}},{"$f":"CD45*(1-Inputs!B21)+CD11*Inputs!B21+CD46","v":{"v":1083253.1503240531,"d":"$1,083,253"}},{"$f":"CE45*(1-Inputs!B21)+CE11*Inputs!B21+CE46","v":{"v":1066877.7845924962,"d":"$1,066,878"}},{"$f":"CF45*(1-Inputs!B21)+CF11*Inputs!B21+CF46","v":{"v":1014107.1407579627,"d":"$1,014,107"}},{"$f":"CG45*(1-Inputs!B21)+CG11*Inputs!B21+CG46","v":{"v":1059564.087871126,"d":"$1,059,564"}},{"$f":"CH45*(1-Inputs!B21)+CH11*Inputs!B21+CH46","v":{"v":1010878.7986493031,"d":"$1,010,879"}},{"$f":"CI45*(1-Inputs!B21)+CI11*Inputs!B21+CI46","v":{"v":1006825.1211918355,"d":"$1,006,825"}},{"$f":"CJ45*(1-Inputs!B21)+CJ11*Inputs!B21+CJ46","v":{"v":1058857.8590979804,"d":"$1,058,858"}},{"$f":"CK45*(1-Inputs!B21)+CK11*Inputs!B21+CK46","v":{"v":1088203.269992896,"d":"$1,088,203"}},{"$f":"CL45*(1-Inputs!B21)+CL11*Inputs!B21+CL46","v":{"v":1060954.3120503272,"d":"$1,060,954"}},{"$f":"CM45*(1-Inputs!B21)+CM11*Inputs!B21+CM46","v":{"v":1009833.8241949154,"d":"$1,009,834"}},{"$f":"SUM(CB44:CM44)","v":{"v":12561952.644335415,"d":"$12,561,953"}},{"$f":"CO45*(1-Inputs!B21)+CO11*Inputs!B21+CO46","v":{"v":1038372.1262587699,"d":"$1,038,372"}},{"$f":"CP45*(1-Inputs!B21)+CP11*Inputs!B21+CP46","v":{"v":1072290.961846881,"d":"$1,072,291"}},{"$f":"CQ45*(1-Inputs!B21)+CQ11*Inputs!B21+CQ46","v":{"v":1044867.5408919576,"d":"$1,044,868"}},{"$f":"CR45*(1-Inputs!B21)+CR11*Inputs!B21+CR46","v":{"v":1057261.2321785437,"d":"$1,057,261"}},{"$f":"CS45*(1-Inputs!B21)+CS11*Inputs!B21+CS46","v":{"v":1097501.0564966057,"d":"$1,097,501"}},{"$f":"CT45*(1-Inputs!B21)+CT11*Inputs!B21+CT46","v":{"v":1051862.4499460808,"d":"$1,051,862"}},{"$f":"CU45*(1-Inputs!B21)+CU11*Inputs!B21+CU46","v":{"v":1040417.4211139794,"d":"$1,040,417"}},{"$f":"CV45*(1-Inputs!B21)+CV11*Inputs!B21+CV46","v":{"v":1062557.6108624523,"d":"$1,062,558"}},{"$f":"CW45*(1-Inputs!B21)+CW11*Inputs!B21+CW46","v":{"v":1054904.5608595565,"d":"$1,054,905"}},{"$f":"CX45*(1-Inputs!B21)+CX11*Inputs!B21+CX46","v":{"v":1096267.6834963267,"d":"$1,096,268"}},{"$f":"CY45*(1-Inputs!B21)+CY11*Inputs!B21+CY46","v":{"v":1087285.9549773561,"d":"$1,087,286"}},{"$f":"CZ45*(1-Inputs!B21)+CZ11*Inputs!B21+CZ46","v":{"v":1041888.6627278732,"d":"$1,041,889"}},{"$f":"SUM(CO44:CZ44)","v":{"v":12745477.261656383,"d":"$12,745,477"}},{"$f":"DB45*(1-Inputs!B21)+DB11*Inputs!B21+DB46","v":{"v":994792.3952154104,"d":"$994,792"}},{"$f":"DC45*(1-Inputs!B21)+DC11*Inputs!B21+DC46","v":{"v":1042055.970382966,"d":"$1,042,056"}},{"$f":"DD45*(1-Inputs!B21)+DD11*Inputs!B21+DD46","v":{"v":1054972.9385731546,"d":"$1,054,973"}},{"$f":"DE45*(1-Inputs!B21)+DE11*Inputs!B21+DE46","v":{"v":985144.6579584599,"d":"$985,145"}},{"$f":"DF45*(1-Inputs!B21)+DF11*Inputs!B21+DF46","v":{"v":1047173.9312302603,"d":"$1,047,174"}},{"$f":"DG45*(1-Inputs!B21)+DG11*Inputs!B21+DG46","v":{"v":1050080.4299667128,"d":"$1,050,080"}},{"$f":"DH45*(1-Inputs!B21)+DH11*Inputs!B21+DH46","v":{"v":996679.0712877508,"d":"$996,679"}},{"$f":"DI45*(1-Inputs!B21)+DI11*Inputs!B21+DI46","v":{"v":1060126.164410647,"d":"$1,060,126"}},{"$f":"DJ45*(1-Inputs!B21)+DJ11*Inputs!B21+DJ46","v":{"v":1063530.5045435964,"d":"$1,063,531"}},{"$f":"DK45*(1-Inputs!B21)+DK11*Inputs!B21+DK46","v":{"v":980213.4112051253,"d":"$980,213"}},{"$f":"DL45*(1-Inputs!B21)+DL11*Inputs!B21+DL46","v":{"v":1034455.9159023387,"d":"$1,034,456"}},{"$f":"DM45*(1-Inputs!B21)+DM11*Inputs!B21+DM46","v":{"v":1064308.9038403665,"d":"$1,064,309"}},{"$f":"SUM(DB44:DM44)","v":{"v":12373534.29451679,"d":"$12,373,534"}},{"$f":"DO45*(1-Inputs!B21)+DO11*Inputs!B21+DO46","v":{"v":1011236.9235495259,"d":"$1,011,237"}},{"$f":"DP45*(1-Inputs!B21)+DP11*Inputs!B21+DP46","v":{"v":1060091.8992137692,"d":"$1,060,092"}},{"$f":"DQ45*(1-Inputs!B21)+DQ11*Inputs!B21+DQ46","v":{"v":1052069.4926462814,"d":"$1,052,069"}},{"$f":"DR45*(1-Inputs!B21)+DR11*Inputs!B21+DR46","v":{"v":987165.086554272,"d":"$987,165"}},{"$f":"DS45*(1-Inputs!B21)+DS11*Inputs!B21+DS46","v":{"v":1071236.4921671217,"d":"$1,071,236"}},{"$f":"DT45*(1-Inputs!B21)+DT11*Inputs!B21+DT46","v":{"v":985547.0172676306,"d":"$985,547"}},{"$f":"DU45*(1-Inputs!B21)+DU11*Inputs!B21+DU46","v":{"v":1027241.4357197633,"d":"$1,027,241"}},{"$f":"DV45*(1-Inputs!B21)+DV11*Inputs!B21+DV46","v":{"v":986132.9388134155,"d":"$986,133"}},{"$f":"DW45*(1-Inputs!B21)+DW11*Inputs!B21+DW46","v":{"v":1054868.2513743415,"d":"$1,054,868"}},{"$f":"DX45*(1-Inputs!B21)+DX11*Inputs!B21+DX46","v":{"v":1074149.6267535575,"d":"$1,074,150"}},{"$f":"DY45*(1-Inputs!B21)+DY11*Inputs!B21+DY46","v":{"v":979256.283676793,"d":"$979,256"}},{"$f":"DZ45*(1-Inputs!B21)+DZ11*Inputs!B21+DZ46","v":{"v":1047090.5667197196,"d":"$1,047,091"}},{"$f":"SUM(DO44:DZ44)","v":{"v":12336086.014456192,"d":"$12,336,086"}},{"$f":"EB45*(1-Inputs!B21)+EB11*Inputs!B21+EB46","v":{"v":1038121.6925017633,"d":"$1,038,122"}},{"$f":"EC45*(1-Inputs!B21)+EC11*Inputs!B21+EC46","v":{"v":1011687.233378793,"d":"$1,011,687"}},{"$f":"ED45*(1-Inputs!B21)+ED11*Inputs!B21+ED46","v":{"v":1016053.7760389271,"d":"$1,016,054"}},{"$f":"EE45*(1-Inputs!B21)+EE11*Inputs!B21+EE46","v":{"v":1037627.2552137253,"d":"$1,037,627"}},{"$f":"EF45*(1-Inputs!B21)+EF11*Inputs!B21+EF46","v":{"v":1040375.0681872304,"d":"$1,040,375"}},{"$f":"EG45*(1-Inputs!B21)+EG11*Inputs!B21+EG46","v":{"v":1012844.5220930923,"d":"$1,012,845"}},{"$f":"EH45*(1-Inputs!B21)+EH11*Inputs!B21+EH46","v":{"v":1026165.1506358084,"d":"$1,026,165"}},{"$f":"EI45*(1-Inputs!B21)+EI11*Inputs!B21+EI46","v":{"v":1052588.5879441416,"d":"$1,052,589"}},{"$f":"EJ45*(1-Inputs!B21)+EJ11*Inputs!B21+EJ46","v":{"v":972825.3032982923,"d":"$972,825"}},{"$f":"EK45*(1-Inputs!B21)+EK11*Inputs!B21+EK46","v":{"v":1031543.5750871097,"d":"$1,031,544"}},{"$f":"EL45*(1-Inputs!B21)+EL11*Inputs!B21+EL46","v":{"v":1058127.8676445184,"d":"$1,058,128"}},{"$f":"EM45*(1-Inputs!B21)+EM11*Inputs!B21+EM46","v":{"v":990935.9334681598,"d":"$990,936"}},{"$f":"SUM(EB44:EM44)","v":{"v":12288895.965491561,"d":"$12,288,896"}}]
[{"$f":"Labels!B68","v":"Potential Output"},{"$f":"'(Other Computations)'!B8*(B28/Inputs!B27)^(1-Inputs!B20)*(B19/'(Other Computations)'!B194)^Inputs!B20","v":{"v":1166666.6666666667,"d":"$1,166,667"}},{"$f":"'(Other Computations)'!B8*(C28/Inputs!B27)^(1-Inputs!B20)*(C19/'(Other Computations)'!B194)^Inputs!B20","v":{"v":1166666.6666666667,"d":"$1,166,667"}},{"$f":"'(Other Computations)'!B8*(D28/Inputs!B27)^(1-Inputs!B20)*(D19/'(Other Computations)'!B194)^Inputs!B20","v":{"v":1166620.9829003513,"d":"$1,166,621"}},{"$f":"'(Other Computations)'!B8*(E28/Inputs!B27)^(1-Inputs!B20)*(E19/'(Other Computations)'!B194)^Inputs!B20","v":{"v":1166541.37619196,"d":"$1,166,541"}},{"$f":"'(Other Computations)'!B8*(F28/Inputs!B27)^(1-Inputs!B20)*(F19/'(Other Computations)'!B194)^Inputs!B20","v":{"v":1166427.2102667713,"d":"$1,166,427"}},{"$f":"'(Other Computations)'!B8*(G28/Inputs!B27)^(1-Inputs!B20)*(G19/'(Other Computations)'!B194)^Inputs!B20","v":{"v":1166274.8220188676,"d":"$1,166,275"}},{"$f":"'(Other Computations)'!B8*(H28/Inputs!B27)^(1-Inputs!B20)*(H19/'(Other Computations)'!B194)^Inputs!B20","v":{"v":1166093.1426134044,"d":"$1,166,093"}},{"$f":"'(Other Computations)'!B8*(I28/Inputs!B27)^(1-Inputs!B20)*(I19/'(Other Computations)'!B194)^Inputs!B20","v":{"v":1165883.3751734265,"d":"$1,165,883"}},{"$f":"'(Other Computations)'!B8*(J28/Inputs!B27)^(1-Inputs!B20)*(J19/'(Other Computations)'!B194)^Inputs!B20","v":{"v":1165645.9143039295,"d":"$1,165,646"}},{"$f":"'(Other Computations)'!B8*(K28/Inputs!B27)^(1-Inputs!B20)*(K19/'(Other Computations)'!B194)^Inputs!B20","v":{"v":1165383.2485523233,"d":"$1,165,383"}},{"$f":"'(Other Computations)'!B8*(L28/Inputs!B27)^(1-Inputs!B20)*(L19/'(Other Computations)'!B194)^Inputs!B20","v":{"v":1165086.59723531,"d":"$1,165,087"}},{"$f":"'(Other Computations)'!B8*(M28/Inputs!B27)^(1-Inputs!B20)*(M19/'(Other Computations)'!B194)^Inputs!B20","v":{"v":1164754.015028151,"d":"$1,164,754"}},{"$f":"SUM(B45:M45)","v":{"v":13992044.017617827,"d":"$13,992,044"}},{"$f":"'(Other Computations)'!B8*(O28/Inputs!B27)^(1-Inputs!B20)*(O19/'(Other Computations)'!B194)^Inputs!B20","v":{"v":1164390.4883900643,"d":"$1,164,390"}},{"$f":"'(Other Computations)'!B8*(P28/Inputs!B27)^(1-Inputs!B20)*(P19/'(Other Computations)'!B194)^Inputs!B20","v":{"v":1163995.7218063674,"d":"$1,163,996"}},{"$f":"'(Other Computations)'!B8*(Q28/Inputs!B27)^(1-Inputs!B20)*(Q19/'(Other Computations)'!B194)^Inputs!B20","v":{"v":1163573.6131992105,"d":"$1,163,574"}},{"$f":"'(Other Computations)'!B8*(R28/Inputs!B27)^(1-Inputs!B20)*(R19/'(Other Computations)'!B194)^Inputs!B20","v":{"v":1163131.2132865093,"d":"$1,163,131"}},{"$f":"'(Other Computations)'!B8*(S28/Inputs!B27)^(1-Inputs!B20)*(S19/'(Other Computations)'!B194)^Inputs!B20","v":{"v":1162668.4761122782,"d":"$1,162,668"}},{"$f":"'(Other Computations)'!B8*(T28/Inputs!B27)^(1-Inputs!B20)*(T19/'(Other Computations)'!B194)^Inputs!B20","v":{"v":1162184.320404003,"d":"$1,162,184"}},{"$f":"'(Other Computations)'!B8*(U28/Inputs!B27)^(1-Inputs!B20)*(U19/'(Other Computations)'!B194)^Inputs!B20","v":{"v":1161676.8128645883,"d":"$1,161,677"}},{"$f":"'(Other Computations)'!B8*(V28/Inputs!B27)^(1-Inputs!B20)*(V19/'(Other Computations)'!B194)^Inputs!B20","v":{"v":1161150.4029161485,"d":"$1,161,150"}},{"$f":"'(Other Computations)'!B8*(W28/Inputs!B27)^(1-Inputs!B20)*(W19/'(Other Computations)'!B194)^Inputs!B20","v":{"v":1160598.794469081,"d":"$1,160,599"}},{"$f":"'(Other Computations)'!B8*(X28/Inputs!B27)^(1-Inputs!B20)*(X19/'(Other Computations)'!B194)^Inputs!B20","v":{"v":1160029.9541759957,"d":"$1,160,030"}},{"$f":"'(Other Computations)'!B8*(Y28/Inputs!B27)^(1-Inputs!B20)*(Y19/'(Other Computations)'!B194)^Inputs!B20","v":{"v":1159446.7978268834,"d":"$1,159,447"}},{"$f":"'(Other Computations)'!B8*(Z28/Inputs!B27)^(1-Inputs!B20)*(Z19/'(Other Computations)'!B194)^Inputs!B20","v":{"v":1158846.9717302078,"d":"$1,158,847"}},{"$f":"SUM(O45:Z45)","v":{"v":13941693.567181336,"d":"$13,941,694"}},{"$f":"'(Other Computations)'!B8*(AB28/Inputs!B27)^(1-Inputs!B20)*(AB19/'(Other Computations)'!B194)^Inputs!B20","v":{"v":1158225.7928580458,"d":"$1,158,226"}},{"$f":"'(Other Computations)'!B8*(AC28/Inputs!B27)^(1-Inputs!B20)*(AC19/'(Other Computations)'!B194)^Inputs!B20","v":{"v":1157573.9790646315,"d":"$1,157,574"}},{"$f":"'(Other Computations)'!B8*(AD28/Inputs!B27)^(1-Inputs!B20)*(AD19/'(Other Computations)'!B194)^Inputs!B20","v":{"v":1156891.6324287236,"d":"$1,156,892"}},{"$f":"'(Other Computations)'!B8*(AE28/Inputs!B27)^(1-Inputs!B20)*(AE19/'(Other Computations)'!B194)^Inputs!B20","v":{"v":1156190.0418994362,"d":"$1,156,190"}},{"$f":"'(Other Computations)'!B8*(AF28/Inputs!B27)^(1-Inputs!B20)*(AF19/'(Other Computations)'!B194)^Inputs!B20","v":{"v":1155472.650259101,"d":"$1,155,473"}},{"$f":"'(Other Computations)'!B8*(AG28/Inputs!B27)^(1-Inputs!B20)*(AG19/'(Other Computations)'!B194)^Inputs!B20","v":{"v":1154743.5107851431,"d":"$1,154,744"}},{"$f":"'(Other Computations)'!B8*(AH28/Inputs!B27)^(1-Inputs!B20)*(AH19/'(Other Computations)'!B194)^Inputs!B20","v":{"v":1153992.993845863,"d":"$1,153,993"}},{"$f":"'(Other Computations)'!B8*(AI28/Inputs!B27)^(1-Inputs!B20)*(AI19/'(Other Computations)'!B194)^Inputs!B20","v":{"v":1153229.7197752516,"d":"$1,153,230"}},{"$f":"'(Other Computations)'!B8*(AJ28/Inputs!B27)^(1-Inputs!B20)*(AJ19/'(Other Computations)'!B194)^Inputs!B20","v":{"v":1152453.6360435782,"d":"$1,152,454"}},{"$f":"'(Other Computations)'!B8*(AK28/Inputs!B27)^(1-Inputs!B20)*(AK19/'(Other Computations)'!B194)^Inputs!B20","v":{"v":1151654.66636663,"d":"$1,151,655"}},{"$f":"'(Other Computations)'!B8*(AL28/Inputs!B27)^(1-Inputs!B20)*(AL19/'(Other Computations)'!B194)^Inputs!B20","v":{"v":1150838.8369221985,"d":"$1,150,839"}},{"$f":"'(Other Computations)'!B8*(AM28/Inputs!B27)^(1-Inputs!B20)*(AM19/'(Other Computations)'!B194)^Inputs!B20","v":{"v":1150008.9481156063,"d":"$1,150,009"}},{"$f":"SUM(AB45:AM45)","v":{"v":13851276.408364208,"d":"$13,851,276"}},{"$f":"'(Other Computations)'!B8*(AO28/Inputs!B27)^(1-Inputs!B20)*(AO19/'(Other Computations)'!B194)^Inputs!B20","v":{"v":1149166.087270407,"d":"$1,149,166"}},{"$f":"'(Other Computations)'!B8*(AP28/Inputs!B27)^(1-Inputs!B20)*(AP19/'(Other Computations)'!B194)^Inputs!B20","v":{"v":1148306.1811093718,"d":"$1,148,306"}},{"$f":"'(Other Computations)'!B8*(AQ28/Inputs!B27)^(1-Inputs!B20)*(AQ19/'(Other Computations)'!B194)^Inputs!B20","v":{"v":1147427.0350569945,"d":"$1,147,427"}},{"$f":"'(Other Computations)'!B8*(AR28/Inputs!B27)^(1-Inputs!B20)*(AR19/'(Other Computations)'!B194)^Inputs!B20","v":{"v":1146534.309917645,"d":"$1,146,534"}},{"$f":"'(Other Computations)'!B8*(AS28/Inputs!B27)^(1-Inputs!B20)*(AS19/'(Other Computations)'!B194)^Inputs!B20","v":{"v":1145635.2360843162,"d":"$1,145,635"}},{"$f":"'(Other Computations)'!B8*(AT28/Inputs!B27)^(1-Inputs!B20)*(AT19/'(Other Computations)'!B194)^Inputs!B20","v":{"v":1144729.69127068,"d":"$1,144,730"}},{"$f":"'(Other Computations)'!B8*(AU28/Inputs!B27)^(1-Inputs!B20)*(AU19/'(Other Computations)'!B194)^Inputs!B20","v":{"v":1143822.967597686,"d":"$1,143,823"}},{"$f":"'(Other Computations)'!B8*(AV28/Inputs!B27)^(1-Inputs!B20)*(AV19/'(Other Computations)'!B194)^Inputs!B20","v":{"v":1142900.8937940798,"d":"$1,142,901"}},{"$f":"'(Other Computations)'!B8*(AW28/Inputs!B27)^(1-Inputs!B20)*(AW19/'(Other Computations)'!B194)^Inputs!B20","v":{"v":1141967.4279038205,"d":"$1,141,967"}},{"$f":"'(Other Computations)'!B8*(AX28/Inputs!B27)^(1-Inputs!B20)*(AX19/'(Other Computations)'!B194)^Inputs!B20","v":{"v":1141022.786568856,"d":"$1,141,023"}},{"$f":"'(Other Computations)'!B8*(AY28/Inputs!B27)^(1-Inputs!B20)*(AY19/'(Other Computations)'!B194)^Inputs!B20","v":{"v":1140064.634667886,"d":"$1,140,065"}},{"$f":"'(Other Computations)'!B8*(AZ28/Inputs!B27)^(1-Inputs!B20)*(AZ19/'(Other Computations)'!B194)^Inputs!B20","v":{"v":1139091.0681900664,"d":"$1,139,091"}},{"$f":"SUM(AO45:AZ45)","v":{"v":13730668.319431808,"d":"$13,730,668"}},{"$f":"'(Other Computations)'!B8*(BB28/Inputs!B27)^(1-Inputs!B20)*(BB19/'(Other Computations)'!B194)^Inputs!B20","v":{"v":1138104.1707129392,"d":"$1,138,104"}},{"$f":"'(Other Computations)'!B8*(BC28/Inputs!B27)^(1-Inputs!B20)*(BC19/'(Other Computations)'!B194)^Inputs!B20","v":{"v":1137100.6162765634,"d":"$1,137,101"}},{"$f":"'(Other Computations)'!B8*(BD28/Inputs!B27)^(1-Inputs!B20)*(BD19/'(Other Computations)'!B194)^Inputs!B20","v":{"v":1136087.0627562979,"d":"$1,136,087"}},{"$f":"'(Other Computations)'!B8*(BE28/Inputs!B27)^(1-Inputs!B20)*(BE19/'(Other Computations)'!B194)^Inputs!B20","v":{"v":1135063.4355129518,"d":"$1,135,063"}},{"$f":"'(Other Computations)'!B8*(BF28/Inputs!B27)^(1-Inputs!B20)*(BF19/'(Other Computations)'!B194)^Inputs!B20","v":{"v":1134036.129958341,"d":"$1,134,036"}},{"$f":"'(Other Computations)'!B8*(BG28/Inputs!B27)^(1-Inputs!B20)*(BG19/'(Other Computations)'!B194)^Inputs!B20","v":{"v":1133000.5740475913,"d":"$1,133,001"}},{"$f":"'(Other Computations)'!B8*(BH28/Inputs!B27)^(1-Inputs!B20)*(BH19/'(Other Computations)'!B194)^Inputs!B20","v":{"v":1131961.8887231664,"d":"$1,131,962"}},{"$f":"'(Other Computations)'!B8*(BI28/Inputs!B27)^(1-Inputs!B20)*(BI19/'(Other Computations)'!B194)^Inputs!B20","v":{"v":1130924.4040971727,"d":"$1,130,924"}},{"$f":"'(Other Computations)'!B8*(BJ28/Inputs!B27)^(1-Inputs!B20)*(BJ19/'(Other Computations)'!B194)^Inputs!B20","v":{"v":1129875.3296636844,"d":"$1,129,875"}},{"$f":"'(Other Computations)'!B8*(BK28/Inputs!B27)^(1-Inputs!B20)*(BK19/'(Other Computations)'!B194)^Inputs!B20","v":{"v":1128820.78237637,"d":"$1,128,821"}},{"$f":"'(Other Computations)'!B8*(BL28/Inputs!B27)^(1-Inputs!B20)*(BL19/'(Other Computations)'!B194)^Inputs!B20","v":{"v":1127757.883146006,"d":"$1,127,758"}},{"$f":"'(Other Computations)'!B8*(BM28/Inputs!B27)^(1-Inputs!B20)*(BM19/'(Other Computations)'!B194)^Inputs!B20","v":{"v":1126682.4324791448,"d":"$1,126,682"}},{"$f":"SUM(BB45:BM45)","v":{"v":13589414.70975023,"d":"$13,589,415"}},{"$f":"'(Other Computations)'!B8*(BO28/Inputs!B27)^(1-Inputs!B20)*(BO19/'(Other Computations)'!B194)^Inputs!B20","v":{"v":1125599.9817775418,"d":"$1,125,600"}},{"$f":"'(Other Computations)'!B8*(BP28/Inputs!B27)^(1-Inputs!B20)*(BP19/'(Other Computations)'!B194)^Inputs!B20","v":{"v":1124517.6134392845,"d":"$1,124,518"}},{"$f":"'(Other Computations)'!B8*(BQ28/Inputs!B27)^(1-Inputs!B20)*(BQ19/'(Other Computations)'!B194)^Inputs!B20","v":{"v":1123428.4236344327,"d":"$1,123,428"}},{"$f":"'(Other Computations)'!B8*(BR28/Inputs!B27)^(1-Inputs!B20)*(BR19/'(Other Computations)'!B194)^Inputs!B20","v":{"v":1122326.2882303908,"d":"$1,122,326"}},{"$f":"'(Other Computations)'!B8*(BS28/Inputs!B27)^(1-Inputs!B20)*(BS19/'(Other Computations)'!B194)^Inputs!B20","v":{"v":1121225.5466123666,"d":"$1,121,226"}},{"$f":"'(Other Computations)'!B8*(BT28/Inputs!B27)^(1-Inputs!B20)*(BT19/'(Other Computations)'!B194)^Inputs!B20","v":{"v":1120126.108621901,"d":"$1,120,126"}},{"$f":"'(Other Computations)'!B8*(BU28/Inputs!B27)^(1-Inputs!B20)*(BU19/'(Other Computations)'!B194)^Inputs!B20","v":{"v":1119031.4566299953,"d":"$1,119,031"}},{"$f":"'(Other Computations)'!B8*(BV28/Inputs!B27)^(1-Inputs!B20)*(BV19/'(Other Computations)'!B194)^Inputs!B20","v":{"v":1117943.0406411842,"d":"$1,117,943"}},{"$f":"'(Other Computations)'!B8*(BW28/Inputs!B27)^(1-Inputs!B20)*(BW19/'(Other Computations)'!B194)^Inputs!B20","v":{"v":1116858.37891096,"d":"$1,116,858"}},{"$f":"'(Other Computations)'!B8*(BX28/Inputs!B27)^(1-Inputs!B20)*(BX19/'(Other Computations)'!B194)^Inputs!B20","v":{"v":1115766.0433638087,"d":"$1,115,766"}},{"$f":"'(Other Computations)'!B8*(BY28/Inputs!B27)^(1-Inputs!B20)*(BY19/'(Other Computations)'!B194)^Inputs!B20","v":{"v":1114680.3603880743,"d":"$1,114,680"}},{"$f":"'(Other Computations)'!B8*(BZ28/Inputs!B27)^(1-Inputs!B20)*(BZ19/'(Other Computations)'!B194)^Inputs!B20","v":{"v":1113587.9827765606,"d":"$1,113,588"}},{"$f":"SUM(BO45:BZ45)","v":{"v":13435091.2250265,"d":"$13,435,091"}},{"$f":"'(Other Computations)'!B8*(CB28/Inputs!B27)^(1-Inputs!B20)*(CB19/'(Other Computations)'!B194)^Inputs!B20","v":{"v":1112485.676427995,"d":"$1,112,486"}},{"$f":"'(Other Computations)'!B8*(CC28/Inputs!B27)^(1-Inputs!B20)*(CC19/'(Other Computations)'!B194)^Inputs!B20","v":{"v":1111370.1921230138,"d":"$1,111,370"}},{"$f":"'(Other Computations)'!B8*(CD28/Inputs!B27)^(1-Inputs!B20)*(CD19/'(Other Computations)'!B194)^Inputs!B20","v":{"v":1110253.297944844,"d":"$1,110,253"}},{"$f":"'(Other Computations)'!B8*(CE28/Inputs!B27)^(1-Inputs!B20)*(CE19/'(Other Computations)'!B194)^Inputs!B20","v":{"v":1109140.625598835,"d":"$1,109,141"}},{"$f":"'(Other Computations)'!B8*(CF28/Inputs!B27)^(1-Inputs!B20)*(CF19/'(Other Computations)'!B194)^Inputs!B20","v":{"v":1108033.176027319,"d":"$1,108,033"}},{"$f":"'(Other Computations)'!B8*(CG28/Inputs!B27)^(1-Inputs!B20)*(CG19/'(Other Computations)'!B194)^Inputs!B20","v":{"v":1106913.667906831,"d":"$1,106,914"}},{"$f":"'(Other Computations)'!B8*(CH28/Inputs!B27)^(1-Inputs!B20)*(CH19/'(Other Computations)'!B194)^Inputs!B20","v":{"v":1105790.9680414654,"d":"$1,105,791"}},{"$f":"'(Other Computations)'!B8*(CI28/Inputs!B27)^(1-Inputs!B20)*(CI19/'(Other Computations)'!B194)^Inputs!B20","v":{"v":1104673.800866702,"d":"$1,104,674"}},{"$f":"'(Other Computations)'!B8*(CJ28/Inputs!B27)^(1-Inputs!B20)*(CJ19/'(Other Computations)'!B194)^Inputs!B20","v":{"v":1103544.8315556233,"d":"$1,103,545"}},{"$f":"'(Other Computations)'!B8*(CK28/Inputs!B27)^(1-Inputs!B20)*(CK19/'(Other Computations)'!B194)^Inputs!B20","v":{"v":1102410.8937152487,"d":"$1,102,411"}},{"$f":"'(Other Computations)'!B8*(CL28/Inputs!B27)^(1-Inputs!B20)*(CL19/'(Other Computations)'!B194)^Inputs!B20","v":{"v":1101290.3747880661,"d":"$1,101,290"}},{"$f":"'(Other Computations)'!B8*(CM28/Inputs!B27)^(1-Inputs!B20)*(CM19/'(Other Computations)'!B194)^Inputs!B20","v":{"v":1100181.656253566,"d":"$1,100,182"}},{"$f":"SUM(CB45:CM45)","v":{"v":13276089.161249511,"d":"$13,276,089"}},{"$f":"'(Other Computations)'!B8*(CO28/Inputs!B27)^(1-Inputs!B20)*(CO19/'(Other Computations)'!B194)^Inputs!B20","v":{"v":1099072.590163648,"d":"$1,099,073"}},{"$f":"'(Other Computations)'!B8*(CP28/Inputs!B27)^(1-Inputs!B20)*(CP19/'(Other Computations)'!B194)^Inputs!B20","v":{"v":1097970.830302569,"d":"$1,097,971"}},{"$f":"'(Other Computations)'!B8*(CQ28/Inputs!B27)^(1-Inputs!B20)*(CQ19/'(Other Computations)'!B194)^Inputs!B20","v":{"v":1096881.5002744175,"d":"$1,096,882"}},{"$f":"'(Other Computations)'!B8*(CR28/Inputs!B27)^(1-Inputs!B20)*(CR19/'(Other Computations)'!B194)^Inputs!B20","v":{"v":1095792.0784274554,"d":"$1,095,792"}},{"$f":"'(Other Computations)'!B8*(CS28/Inputs!B27)^(1-Inputs!B20)*(CS19/'(Other Computations)'!B194)^Inputs!B20","v":{"v":1094707.1531327935,"d":"$1,094,707"}},{"$f":"'(Other Computations)'!B8*(CT28/Inputs!B27)^(1-Inputs!B20)*(CT19/'(Other Computations)'!B194)^Inputs!B20","v":{"v":1093628.1265968366,"d":"$1,093,628"}},{"$f":"'(Other Computations)'!B8*(CU28/Inputs!B27)^(1-Inputs!B20)*(CU19/'(Other Computations)'!B194)^Inputs!B20","v":{"v":1092550.7379893991,"d":"$1,092,551"}},{"$f":"'(Other Computations)'!B8*(CV28/Inputs!B27)^(1-Inputs!B20)*(CV19/'(Other Computations)'!B194)^Inputs!B20","v":{"v":1091473.7778919518,"d":"$1,091,474"}},{"$f":"'(Other Computations)'!B8*(CW28/Inputs!B27)^(1-Inputs!B20)*(CW19/'(Other Computations)'!B194)^Inputs!B20","v":{"v":1090404.2013834445,"d":"$1,090,404"}},{"$f":"'(Other Computations)'!B8*(CX28/Inputs!B27)^(1-Inputs!B20)*(CX19/'(Other Computations)'!B194)^Inputs!B20","v":{"v":1089335.531012183,"d":"$1,089,336"}},{"$f":"'(Other Computations)'!B8*(CY28/Inputs!B27)^(1-Inputs!B20)*(CY19/'(Other Computations)'!B194)^Inputs!B20","v":{"v":1088267.206780265,"d":"$1,088,267"}},{"$f":"'(Other Computations)'!B8*(CZ28/Inputs!B27)^(1-Inputs!B20)*(CZ19/'(Other Computations)'!B194)^Inputs!B20","v":{"v":1087191.74314216,"d":"$1,087,192"}},{"$f":"SUM(CO45:CZ45)","v":{"v":13117275.477097122,"d":"$13,117,275"}},{"$f":"'(Other Computations)'!B8*(DB28/Inputs!B27)^(1-Inputs!B20)*(DB19/'(Other Computations)'!B194)^Inputs!B20","v":{"v":1086110.6973105355,"d":"$1,086,111"}},{"$f":"'(Other Computations)'!B8*(DC28/Inputs!B27)^(1-Inputs!B20)*(DC19/'(Other Computations)'!B194)^Inputs!B20","v":{"v":1085034.86166501,"d":"$1,085,035"}},{"$f":"'(Other Computations)'!B8*(DD28/Inputs!B27)^(1-Inputs!B20)*(DD19/'(Other Computations)'!B194)^Inputs!B20","v":{"v":1083970.9840977709,"d":"$1,083,971"}},{"$f":"'(Other Computations)'!B8*(DE28/Inputs!B27)^(1-Inputs!B20)*(DE19/'(Other Computations)'!B194)^Inputs!B20","v":{"v":1082915.9322705406,"d":"$1,082,916"}},{"$f":"'(Other Computations)'!B8*(DF28/Inputs!B27)^(1-Inputs!B20)*(DF19/'(Other Computations)'!B194)^Inputs!B20","v":{"v":1081863.7580646705,"d":"$1,081,864"}},{"$f":"'(Other Computations)'!B8*(DG28/Inputs!B27)^(1-Inputs!B20)*(DG19/'(Other Computations)'!B194)^Inputs!B20","v":{"v":1080816.4446087072,"d":"$1,080,816"}},{"$f":"'(Other Computations)'!B8*(DH28/Inputs!B27)^(1-Inputs!B20)*(DH19/'(Other Computations)'!B194)^Inputs!B20","v":{"v":1079773.0081511685,"d":"$1,079,773"}},{"$f":"'(Other Computations)'!B8*(DI28/Inputs!B27)^(1-Inputs!B20)*(DI19/'(Other Computations)'!B194)^Inputs!B20","v":{"v":1078723.4449302542,"d":"$1,078,723"}},{"$f":"'(Other Computations)'!B8*(DJ28/Inputs!B27)^(1-Inputs!B20)*(DJ19/'(Other Computations)'!B194)^Inputs!B20","v":{"v":1077667.2533406783,"d":"$1,077,667"}},{"$f":"'(Other Computations)'!B8*(DK28/Inputs!B27)^(1-Inputs!B20)*(DK19/'(Other Computations)'!B194)^Inputs!B20","v":{"v":1076614.3331620444,"d":"$1,076,614"}},{"$f":"'(Other Computations)'!B8*(DL28/Inputs!B27)^(1-Inputs!B20)*(DL19/'(Other Computations)'!B194)^Inputs!B20","v":{"v":1075563.611667941,"d":"$1,075,564"}},{"$f":"'(Other Computations)'!B8*(DM28/Inputs!B27)^(1-Inputs!B20)*(DM19/'(Other Computations)'!B194)^Inputs!B20","v":{"v":1074506.627329055,"d":"$1,074,507"}},{"$f":"SUM(DB45:DM45)","v":{"v":12963560.956598375,"d":"$12,963,561"}},{"$f":"'(Other Computations)'!B8*(DO28/Inputs!B27)^(1-Inputs!B20)*(DO19/'(Other Computations)'!B194)^Inputs!B20","v":{"v":1073453.6465619535,"d":"$1,073,454"}},{"$f":"'(Other Computations)'!B8*(DP28/Inputs!B27)^(1-Inputs!B20)*(DP19/'(Other Computations)'!B194)^Inputs!B20","v":{"v":1072405.125831269,"d":"$1,072,405"}},{"$f":"'(Other Computations)'!B8*(DQ28/Inputs!B27)^(1-Inputs!B20)*(DQ19/'(Other Computations)'!B194)^Inputs!B20","v":{"v":1071354.5623296017,"d":"$1,071,355"}},{"$f":"'(Other Computations)'!B8*(DR28/Inputs!B27)^(1-Inputs!B20)*(DR19/'(Other Computations)'!B194)^Inputs!B20","v":{"v":1070306.8432382029,"d":"$1,070,307"}},{"$f":"'(Other Computations)'!B8*(DS28/Inputs!B27)^(1-Inputs!B20)*(DS19/'(Other Computations)'!B194)^Inputs!B20","v":{"v":1069261.662330598,"d":"$1,069,262"}},{"$f":"'(Other Computations)'!B8*(DT28/Inputs!B27)^(1-Inputs!B20)*(DT19/'(Other Computations)'!B194)^Inputs!B20","v":{"v":1068212.7510985034,"d":"$1,068,213"}},{"$f":"'(Other Computations)'!B8*(DU28/Inputs!B27)^(1-Inputs!B20)*(DU19/'(Other Computations)'!B194)^Inputs!B20","v":{"v":1067169.7272676865,"d":"$1,067,170"}},{"$f":"'(Other Computations)'!B8*(DV28/Inputs!B27)^(1-Inputs!B20)*(DV19/'(Other Computations)'!B194)^Inputs!B20","v":{"v":1066123.7811876235,"d":"$1,066,124"}},{"$f":"'(Other Computations)'!B8*(DW28/Inputs!B27)^(1-Inputs!B20)*(DW19/'(Other Computations)'!B194)^Inputs!B20","v":{"v":1065078.2323309104,"d":"$1,065,078"}},{"$f":"'(Other Computations)'!B8*(DX28/Inputs!B27)^(1-Inputs!B20)*(DX19/'(Other Computations)'!B194)^Inputs!B20","v":{"v":1064041.482681898,"d":"$1,064,041"}},{"$f":"'(Other Computations)'!B8*(DY28/Inputs!B27)^(1-Inputs!B20)*(DY19/'(Other Computations)'!B194)^Inputs!B20","v":{"v":1063020.9360824227,"d":"$1,063,021"}},{"$f":"'(Other Computations)'!B8*(DZ28/Inputs!B27)^(1-Inputs!B20)*(DZ19/'(Other Computations)'!B194)^Inputs!B20","v":{"v":1061994.8103395456,"d":"$1,061,995"}},{"$f":"SUM(DO45:DZ45)","v":{"v":12812423.561280215,"d":"$12,812,424"}},{"$f":"'(Other Computations)'!B8*(EB28/Inputs!B27)^(1-Inputs!B20)*(EB19/'(Other Computations)'!B194)^Inputs!B20","v":{"v":1060968.5227610797,"d":"$1,060,969"}},{"$f":"'(Other Computations)'!B8*(EC28/Inputs!B27)^(1-Inputs!B20)*(EC19/'(Other Computations)'!B194)^Inputs!B20","v":{"v":1059939.2595714491,"d":"$1,059,939"}},{"$f":"'(Other Computations)'!B8*(ED28/Inputs!B27)^(1-Inputs!B20)*(ED19/'(Other Computations)'!B194)^Inputs!B20","v":{"v":1058921.6626793174,"d":"$1,058,922"}},{"$f":"'(Other Computations)'!B8*(EE28/Inputs!B27)^(1-Inputs!B20)*(EE19/'(Other Computations)'!B194)^Inputs!B20","v":{"v":1057901.7630533308,"d":"$1,057,902"}},{"$f":"'(Other Computations)'!B8*(EF28/Inputs!B27)^(1-Inputs!B20)*(EF19/'(Other Computations)'!B194)^Inputs!B20","v":{"v":1056885.7807358121,"d":"$1,056,886"}},{"$f":"'(Other Computations)'!B8*(EG28/Inputs!B27)^(1-Inputs!B20)*(EG19/'(Other Computations)'!B194)^Inputs!B20","v":{"v":1055876.351548996,"d":"$1,055,876"}},{"$f":"'(Other Computations)'!B8*(EH28/Inputs!B27)^(1-Inputs!B20)*(EH19/'(Other Computations)'!B194)^Inputs!B20","v":{"v":1054865.1324098133,"d":"$1,054,865"}},{"$f":"'(Other Computations)'!B8*(EI28/Inputs!B27)^(1-Inputs!B20)*(EI19/'(Other Computations)'!B194)^Inputs!B20","v":{"v":1053846.6533973948,"d":"$1,053,847"}},{"$f":"'(Other Computations)'!B8*(EJ28/Inputs!B27)^(1-Inputs!B20)*(EJ19/'(Other Computations)'!B194)^Inputs!B20","v":{"v":1052822.868531562,"d":"$1,052,823"}},{"$f":"'(Other Computations)'!B8*(EK28/Inputs!B27)^(1-Inputs!B20)*(EK19/'(Other Computations)'!B194)^Inputs!B20","v":{"v":1051807.4016360105,"d":"$1,051,807"}},{"$f":"'(Other Computations)'!B8*(EL28/Inputs!B27)^(1-Inputs!B20)*(EL19/'(Other Computations)'!B194)^Inputs!B20","v":{"v":1050801.2151771006,"d":"$1,050,801"}},{"$f":"'(Other Computations)'!B8*(EM28/Inputs!B27)^(1-Inputs!B20)*(EM19/'(Other Computations)'!B194)^Inputs!B20","v":{"v":1049799.438776439,"d":"$1,049,799"}},{"$f":"SUM(EB45:EM45)","v":{"v":12664436.050278304,"d":"$12,664,436"}}]
[{"$f":"Labels!B78","v":"Output Shock"},{"$f":"NORMINV(RAND()*(1-2*Inputs!B58)+Inputs!B58,0,'(Other Computations)'!B208)","v":{"v":43585.001342937896,"d":"$43,585"}},{"$f":"NORMINV(RAND()*(1-2*Inputs!B58)+Inputs!B58,0,'(Other Computations)'!B208)","v":{"v":53522.905202486196,"d":"$53,523"}},{"$f":"NORMINV(RAND()*(1-2*Inputs!B58)+Inputs!B58,0,'(Other Computations)'!B208)","v":{"v":-36401.56976303398,"d":"($36,402)"}},{"$f":"NORMINV(RAND()*(1-2*Inputs!B58)+Inputs!B58,0,'(Other Computations)'!B208)","v":{"v":-32008.566651794852,"d":"($32,009)"}},{"$f":"NORMINV(RAND()*(1-2*Inputs!B58)+Inputs!B58,0,'(Other Computations)'!B208)","v":{"v":-49734.03160362422,"d":"($49,734)"}},{"$f":"NORMINV(RAND()*(1-2*Inputs!B58)+Inputs!B58,0,'(Other Computations)'!B208)","v":{"v":-36724.046001809824,"d":"($36,724)"}},{"$f":"NORMINV(RAND()*(1-2*Inputs!B58)+Inputs!B58,0,'(Other Computations)'!B208)","v":{"v":28668.144618073395,"d":"$28,668"}},{"$f":"NORMINV(RAND()*(1-2*Inputs!B58)+Inputs!B58,0,'(Other Computations)'!B208)","v":{"v":17615.413271862708,"d":"$17,615"}},{"$f":"NORMINV(RAND()*(1-2*Inputs!B58)+Inputs!B58,0,'(Other Computations)'!B208)","v":{"v":-12729.858551303676,"d":"($12,730)"}},{"$f":"NORMINV(RAND()*(1-2*Inputs!B58)+Inputs!B58,0,'(Other Computations)'!B208)","v":{"v":-26335.763262660774,"d":"($26,336)"}},{"$f":"NORMINV(RAND()*(1-2*Inputs!B58)+Inputs!B58,0,'(Other Computations)'!B208)","v":{"v":-828.6437727413175,"d":"($829)"}},{"$f":"NORMINV(RAND()*(1-2*Inputs!B58)+Inputs!B58,0,'(Other Computations)'!B208)","v":{"v":15355.367419834247,"d":"$15,355"}},{"$f":"SUM(B46:M46)","v":{"v":-36015.6477517742,"d":"($36,016)"}},{"$f":"NORMINV(RAND()*(1-2*Inputs!B58)+Inputs!B58,0,'(Other Computations)'!B208)","v":{"v":-261.6884824631251,"d":"($262)"}},{"$f":"NORMINV(RAND()*(1-2*Inputs!B58)+Inputs!B58,0,'(Other Computations)'!B208)","v":{"v":36002.47940763905,"d":"$36,002"}},{"$f":"NORMINV(RAND()*(1-2*Inputs!B58)+Inputs!B58,0,'(Other Computations)'!B208)","v":{"v":16365.694905384225,"d":"$16,366"}},{"$f":"NORMINV(RAND()*(1-2*Inputs!B58)+Inputs!B58,0,'(Other Computations)'!B208)","v":{"v":60530.426507433905,"d":"$60,530"}},{"$f":"NORMINV(RAND()*(1-2*Inputs!B58)+Inputs!B58,0,'(Other Computations)'!B208)","v":{"v":-10279.203918343732,"d":"($10,279)"}},{"$f":"NORMINV(RAND()*(1-2*Inputs!B58)+Inputs!B58,0,'(Other Computations)'!B208)","v":{"v":32820.3998172778,"d":"$32,820"}},{"$f":"NORMINV(RAND()*(1-2*Inputs!B58)+Inputs!B58,0,'(Other Computations)'!B208)","v":{"v":-8710.669582588422,"d":"($8,711)"}},{"$f":"NORMINV(RAND()*(1-2*Inputs!B58)+Inputs!B58,0,'(Other Computations)'!B208)","v":{"v":24511.999361366597,"d":"$24,512"}},{"$f":"NORMINV(RAND()*(1-2*Inputs!B58)+Inputs!B58,0,'(Other Computations)'!B208)","v":{"v":-48141.91765820472,"d":"($48,142)"}},{"$f":"NORMINV(RAND()*(1-2*Inputs!B58)+Inputs!B58,0,'(Other Computations)'!B208)","v":{"v":-17220.905018889785,"d":"($17,221)"}},{"$f":"NORMINV(RAND()*(1-2*Inputs!B58)+Inputs!B58,0,'(Other Computations)'!B208)","v":{"v":28314.085202893657,"d":"$28,314"}},{"$f":"NORMINV(RAND()*(1-2*Inputs!B58)+Inputs!B58,0,'(Other Computations)'!B208)","v":{"v":21132.79511470133,"d":"$21,133"}},{"$f":"SUM(O46:Z46)","v":{"v":135063.49565620677,"d":"$135,063"}},{"$f":"NORMINV(RAND()*(1-2*Inputs!B58)+Inputs!B58,0,'(Other Computations)'!B208)","v":{"v":-5903.796448003298,"d":"($5,904)"}},{"$f":"NORMINV(RAND()*(1-2*Inputs!B58)+Inputs!B58,0,'(Other Computations)'!B208)","v":{"v":32457.79372640605,"d":"$32,458"}},{"$f":"NORMINV(RAND()*(1-2*Inputs!B58)+Inputs!B58,0,'(Other Computations)'!B208)","v":{"v":28396.07088375615,"d":"$28,396"}},{"$f":"NORMINV(RAND()*(1-2*Inputs!B58)+Inputs!B58,0,'(Other Computations)'!B208)","v":{"v":547.538314787109,"d":"$548"}},{"$f":"NORMINV(RAND()*(1-2*Inputs!B58)+Inputs!B58,0,'(Other Computations)'!B208)","v":{"v":61420.210578363345,"d":"$61,420"}},{"$f":"NORMINV(RAND()*(1-2*Inputs!B58)+Inputs!B58,0,'(Other Computations)'!B208)","v":{"v":-9168.309509261173,"d":"($9,168)"}},{"$f":"NORMINV(RAND()*(1-2*Inputs!B58)+Inputs!B58,0,'(Other Computations)'!B208)","v":{"v":-3306.280550825184,"d":"($3,306)"}},{"$f":"NORMINV(RAND()*(1-2*Inputs!B58)+Inputs!B58,0,'(Other Computations)'!B208)","v":{"v":-28853.44702968888,"d":"($28,853)"}},{"$f":"NORMINV(RAND()*(1-2*Inputs!B58)+Inputs!B58,0,'(Other Computations)'!B208)","v":{"v":-26044.28778087472,"d":"($26,044)"}},{"$f":"NORMINV(RAND()*(1-2*Inputs!B58)+Inputs!B58,0,'(Other Computations)'!B208)","v":{"v":21115.36621715952,"d":"$21,115"}},{"$f":"NORMINV(RAND()*(1-2*Inputs!B58)+Inputs!B58,0,'(Other Computations)'!B208)","v":{"v":10101.018223289137,"d":"$10,101"}},{"$f":"NORMINV(RAND()*(1-2*Inputs!B58)+Inputs!B58,0,'(Other Computations)'!B208)","v":{"v":-29961.93205773884,"d":"($29,962)"}},{"$f":"SUM(AB46:AM46)","v":{"v":50799.944567369224,"d":"$50,800"}},{"$f":"NORMINV(RAND()*(1-2*Inputs!B58)+Inputs!B58,0,'(Other Computations)'!B208)","v":{"v":-31753.657688074793,"d":"($31,754)"}},{"$f":"NORMINV(RAND()*(1-2*Inputs!B58)+Inputs!B58,0,'(Other Computations)'!B208)","v":{"v":-20628.20773270187,"d":"($20,628)"}},{"$f":"NORMINV(RAND()*(1-2*Inputs!B58)+Inputs!B58,0,'(Other Computations)'!B208)","v":{"v":-4349.032705963821,"d":"($4,349)"}},{"$f":"NORMINV(RAND()*(1-2*Inputs!B58)+Inputs!B58,0,'(Other Computations)'!B208)","v":{"v":-41103.75320340778,"d":"($41,104)"}},{"$f":"NORMINV(RAND()*(1-2*Inputs!B58)+Inputs!B58,0,'(Other Computations)'!B208)","v":{"v":-29395.76997785663,"d":"($29,396)"}},{"$f":"NORMINV(RAND()*(1-2*Inputs!B58)+Inputs!B58,0,'(Other Computations)'!B208)","v":{"v":-39008.657269122,"d":"($39,009)"}},{"$f":"NORMINV(RAND()*(1-2*Inputs!B58)+Inputs!B58,0,'(Other Computations)'!B208)","v":{"v":13494.244028054794,"d":"$13,494"}},{"$f":"NORMINV(RAND()*(1-2*Inputs!B58)+Inputs!B58,0,'(Other Computations)'!B208)","v":{"v":29596.927733434226,"d":"$29,597"}},{"$f":"NORMINV(RAND()*(1-2*Inputs!B58)+Inputs!B58,0,'(Other Computations)'!B208)","v":{"v":32310.2338959622,"d":"$32,310"}},{"$f":"NORMINV(RAND()*(1-2*Inputs!B58)+Inputs!B58,0,'(Other Computations)'!B208)","v":{"v":20393.646757092247,"d":"$20,394"}},{"$f":"NORMINV(RAND()*(1-2*Inputs!B58)+Inputs!B58,0,'(Other Computations)'!B208)","v":{"v":15944.237394572776,"d":"$15,944"}},{"$f":"NORMINV(RAND()*(1-2*Inputs!B58)+Inputs!B58,0,'(Other Computations)'!B208)","v":{"v":17508.8053709075,"d":"$17,509"}},{"$f":"SUM(AO46:AZ46)","v":{"v":-36990.98339710316,"d":"($36,991)"}},{"$f":"NORMINV(RAND()*(1-2*Inputs!B58)+Inputs!B58,0,'(Other Computations)'!B208)","v":{"v":-10778.486889016394,"d":"($10,778)"}},{"$f":"NORMINV(RAND()*(1-2*Inputs!B58)+Inputs!B58,0,'(Other Computations)'!B208)","v":{"v":10769.985563669827,"d":"$10,770"}},{"$f":"NORMINV(RAND()*(1-2*Inputs!B58)+Inputs!B58,0,'(Other Computations)'!B208)","v":{"v":47256.93235275557,"d":"$47,257"}},{"$f":"NORMINV(RAND()*(1-2*Inputs!B58)+Inputs!B58,0,'(Other Computations)'!B208)","v":{"v":-318.5810934666251,"d":"($319)"}},{"$f":"NORMINV(RAND()*(1-2*Inputs!B58)+Inputs!B58,0,'(Other Computations)'!B208)","v":{"v":-26824.289010954875,"d":"($26,824)"}},{"$f":"NORMINV(RAND()*(1-2*Inputs!B58)+Inputs!B58,0,'(Other Computations)'!B208)","v":{"v":-7184.414662116715,"d":"($7,184)"}},{"$f":"NORMINV(RAND()*(1-2*Inputs!B58)+Inputs!B58,0,'(Other Computations)'!B208)","v":{"v":-24191.576909981908,"d":"($24,192)"}},{"$f":"NORMINV(RAND()*(1-2*Inputs!B58)+Inputs!B58,0,'(Other Computations)'!B208)","v":{"v":-39819.46163480417,"d":"($39,819)"}},{"$f":"NORMINV(RAND()*(1-2*Inputs!B58)+Inputs!B58,0,'(Other Computations)'!B208)","v":{"v":15353.864133541352,"d":"$15,354"}},{"$f":"NORMINV(RAND()*(1-2*Inputs!B58)+Inputs!B58,0,'(Other Computations)'!B208)","v":{"v":29334.096235377976,"d":"$29,334"}},{"$f":"NORMINV(RAND()*(1-2*Inputs!B58)+Inputs!B58,0,'(Other Computations)'!B208)","v":{"v":4825.515188879391,"d":"$4,826"}},{"$f":"NORMINV(RAND()*(1-2*Inputs!B58)+Inputs!B58,0,'(Other Computations)'!B208)","v":{"v":-48248.060549320355,"d":"($48,248)"}},{"$f":"SUM(BB46:BM46)","v":{"v":-49824.477275436926,"d":"($49,824)"}},{"$f":"NORMINV(RAND()*(1-2*Inputs!B58)+Inputs!B58,0,'(Other Computations)'!B208)","v":{"v":-31832.30779535016,"d":"($31,832)"}},{"$f":"NORMINV(RAND()*(1-2*Inputs!B58)+Inputs!B58,0,'(Other Computations)'!B208)","v":{"v":-14374.558429976672,"d":"($14,375)"}},{"$f":"NORMINV(RAND()*(1-2*Inputs!B58)+Inputs!B58,0,'(Other Computations)'!B208)","v":{"v":-8298.31328218063,"d":"($8,298)"}},{"$f":"NORMINV(RAND()*(1-2*Inputs!B58)+Inputs!B58,0,'(Other Computations)'!B208)","v":{"v":49322.984963924086,"d":"$49,323"}},{"$f":"NORMINV(RAND()*(1-2*Inputs!B58)+Inputs!B58,0,'(Other Computations)'!B208)","v":{"v":43054.08312342463,"d":"$43,054"}},{"$f":"NORMINV(RAND()*(1-2*Inputs!B58)+Inputs!B58,0,'(Other Computations)'!B208)","v":{"v":-11313.738477550103,"d":"($11,314)"}},{"$f":"NORMINV(RAND()*(1-2*Inputs!B58)+Inputs!B58,0,'(Other Computations)'!B208)","v":{"v":-31384.357920046143,"d":"($31,384)"}},{"$f":"NORMINV(RAND()*(1-2*Inputs!B58)+Inputs!B58,0,'(Other Computations)'!B208)","v":{"v":-2472.8670340456583,"d":"($2,473)"}},{"$f":"NORMINV(RAND()*(1-2*Inputs!B58)+Inputs!B58,0,'(Other Computations)'!B208)","v":{"v":11340.78258565099,"d":"$11,341"}},{"$f":"NORMINV(RAND()*(1-2*Inputs!B58)+Inputs!B58,0,'(Other Computations)'!B208)","v":{"v":801.1680966302894,"d":"$801"}},{"$f":"NORMINV(RAND()*(1-2*Inputs!B58)+Inputs!B58,0,'(Other Computations)'!B208)","v":{"v":29463.18271199472,"d":"$29,463"}},{"$f":"NORMINV(RAND()*(1-2*Inputs!B58)+Inputs!B58,0,'(Other Computations)'!B208)","v":{"v":14449.506209902162,"d":"$14,450"}},{"$f":"SUM(BO46:BZ46)","v":{"v":48755.564752377504,"d":"$48,756"}},{"$f":"NORMINV(RAND()*(1-2*Inputs!B58)+Inputs!B58,0,'(Other Computations)'!B208)","v":{"v":-3439.2986675446446,"d":"($3,439)"}},{"$f":"NORMINV(RAND()*(1-2*Inputs!B58)+Inputs!B58,0,'(Other Computations)'!B208)","v":{"v":-29074.948327288785,"d":"($29,075)"}},{"$f":"NORMINV(RAND()*(1-2*Inputs!B58)+Inputs!B58,0,'(Other Computations)'!B208)","v":{"v":17387.508535921977,"d":"$17,388"}},{"$f":"NORMINV(RAND()*(1-2*Inputs!B58)+Inputs!B58,0,'(Other Computations)'!B208)","v":{"v":2033.547081433094,"d":"$2,034"}},{"$f":"NORMINV(RAND()*(1-2*Inputs!B58)+Inputs!B58,0,'(Other Computations)'!B208)","v":{"v":-49117.07320287575,"d":"($49,117)"}},{"$f":"NORMINV(RAND()*(1-2*Inputs!B58)+Inputs!B58,0,'(Other Computations)'!B208)","v":{"v":-2337.5699673188838,"d":"($2,338)"}},{"$f":"NORMINV(RAND()*(1-2*Inputs!B58)+Inputs!B58,0,'(Other Computations)'!B208)","v":{"v":-50002.40528169318,"d":"($50,002)"}},{"$f":"NORMINV(RAND()*(1-2*Inputs!B58)+Inputs!B58,0,'(Other Computations)'!B208)","v":{"v":-52435.7380888399,"d":"($52,436)"}},{"$f":"NORMINV(RAND()*(1-2*Inputs!B58)+Inputs!B58,0,'(Other Computations)'!B208)","v":{"v":990.8351755789125,"d":"$991"}},{"$f":"NORMINV(RAND()*(1-2*Inputs!B58)+Inputs!B58,0,'(Other Computations)'!B208)","v":{"v":31092.177541123965,"d":"$31,092"}},{"$f":"NORMINV(RAND()*(1-2*Inputs!B58)+Inputs!B58,0,'(Other Computations)'!B208)","v":{"v":4640.743075459774,"d":"$4,641"}},{"$f":"NORMINV(RAND()*(1-2*Inputs!B58)+Inputs!B58,0,'(Other Computations)'!B208)","v":{"v":-45270.80501520305,"d":"($45,271)"}},{"$f":"SUM(CB46:CM46)","v":{"v":-175533.02714124648,"d":"($175,533)"}},{"$f":"NORMINV(RAND()*(1-2*Inputs!B58)+Inputs!B58,0,'(Other Computations)'!B208)","v":{"v":-15791.052741162082,"d":"($15,791)"}},{"$f":"NORMINV(RAND()*(1-2*Inputs!B58)+Inputs!B58,0,'(Other Computations)'!B208)","v":{"v":18881.870182715367,"d":"$18,882"}},{"$f":"NORMINV(RAND()*(1-2*Inputs!B58)+Inputs!B58,0,'(Other Computations)'!B208)","v":{"v":-7363.838656335019,"d":"($7,364)"}},{"$f":"NORMINV(RAND()*(1-2*Inputs!B58)+Inputs!B58,0,'(Other Computations)'!B208)","v":{"v":6047.020906220197,"d":"$6,047"}},{"$f":"NORMINV(RAND()*(1-2*Inputs!B58)+Inputs!B58,0,'(Other Computations)'!B208)","v":{"v":47249.79413088712,"d":"$47,250"}},{"$f":"NORMINV(RAND()*(1-2*Inputs!B58)+Inputs!B58,0,'(Other Computations)'!B208)","v":{"v":2716.1882438747602,"d":"$2,716"}},{"$f":"NORMINV(RAND()*(1-2*Inputs!B58)+Inputs!B58,0,'(Other Computations)'!B208)","v":{"v":-7583.723009084729,"d":"($7,584)"}},{"$f":"NORMINV(RAND()*(1-2*Inputs!B58)+Inputs!B58,0,'(Other Computations)'!B208)","v":{"v":15457.942897397976,"d":"$15,458"}},{"$f":"NORMINV(RAND()*(1-2*Inputs!B58)+Inputs!B58,0,'(Other Computations)'!B208)","v":{"v":8924.138659881042,"d":"$8,924"}},{"$f":"NORMINV(RAND()*(1-2*Inputs!B58)+Inputs!B58,0,'(Other Computations)'!B208)","v":{"v":51424.74557425516,"d":"$51,425"}},{"$f":"NORMINV(RAND()*(1-2*Inputs!B58)+Inputs!B58,0,'(Other Computations)'!B208)","v":{"v":43841.06153130517,"d":"$43,841"}},{"$f":"NORMINV(RAND()*(1-2*Inputs!B58)+Inputs!B58,0,'(Other Computations)'!B208)","v":{"v":-205.07665274159865,"d":"($205)"}},{"$f":"SUM(CO46:CZ46)","v":{"v":163599.07106721334,"d":"$163,599"}},{"$f":"NORMINV(RAND()*(1-2*Inputs!B58)+Inputs!B58,0,'(Other Computations)'!B208)","v":{"v":-46321.00225655256,"d":"($46,321)"}},{"$f":"NORMINV(RAND()*(1-2*Inputs!B58)+Inputs!B58,0,'(Other Computations)'!B208)","v":{"v":1681.509699118296,"d":"$1,682"}},{"$f":"NORMINV(RAND()*(1-2*Inputs!B58)+Inputs!B58,0,'(Other Computations)'!B208)","v":{"v":15433.34753052388,"d":"$15,433"}},{"$f":"NORMINV(RAND()*(1-2*Inputs!B58)+Inputs!B58,0,'(Other Computations)'!B208)","v":{"v":-53362.52101872177,"d":"($53,363)"}},{"$f":"NORMINV(RAND()*(1-2*Inputs!B58)+Inputs!B58,0,'(Other Computations)'!B208)","v":{"v":9626.57350103695,"d":"$9,627"}},{"$f":"NORMINV(RAND()*(1-2*Inputs!B58)+Inputs!B58,0,'(Other Computations)'!B208)","v":{"v":13521.606696483736,"d":"$13,522"}},{"$f":"NORMINV(RAND()*(1-2*Inputs!B58)+Inputs!B58,0,'(Other Computations)'!B208)","v":{"v":-38546.96468818576,"d":"($38,547)"}},{"$f":"NORMINV(RAND()*(1-2*Inputs!B58)+Inputs!B58,0,'(Other Computations)'!B208)","v":{"v":26256.77691510891,"d":"$26,257"}},{"$f":"NORMINV(RAND()*(1-2*Inputs!B58)+Inputs!B58,0,'(Other Computations)'!B208)","v":{"v":30679.636700720628,"d":"$30,680"}},{"$f":"NORMINV(RAND()*(1-2*Inputs!B58)+Inputs!B58,0,'(Other Computations)'!B208)","v":{"v":-51585.40726491019,"d":"($51,585)"}},{"$f":"NORMINV(RAND()*(1-2*Inputs!B58)+Inputs!B58,0,'(Other Computations)'!B208)","v":{"v":4001.302277189192,"d":"$4,001"}},{"$f":"NORMINV(RAND()*(1-2*Inputs!B58)+Inputs!B58,0,'(Other Computations)'!B208)","v":{"v":34847.3369900079,"d":"$34,847"}},{"$f":"SUM(DB46:DM46)","v":{"v":-53767.8049181808,"d":"($53,768)"}},{"$f":"NORMINV(RAND()*(1-2*Inputs!B58)+Inputs!B58,0,'(Other Computations)'!B208)","v":{"v":-17252.143575756156,"d":"($17,252)"}},{"$f":"NORMINV(RAND()*(1-2*Inputs!B58)+Inputs!B58,0,'(Other Computations)'!B208)","v":{"v":32796.689817471415,"d":"$32,797"}},{"$f":"NORMINV(RAND()*(1-2*Inputs!B58)+Inputs!B58,0,'(Other Computations)'!B208)","v":{"v":25799.878450661978,"d":"$25,800"}},{"$f":"NORMINV(RAND()*(1-2*Inputs!B58)+Inputs!B58,0,'(Other Computations)'!B208)","v":{"v":-38071.646244227646,"d":"($38,072)"}},{"$f":"NORMINV(RAND()*(1-2*Inputs!B58)+Inputs!B58,0,'(Other Computations)'!B208)","v":{"v":47247.84831596071,"d":"$47,248"}},{"$f":"NORMINV(RAND()*(1-2*Inputs!B58)+Inputs!B58,0,'(Other Computations)'!B208)","v":{"v":-37524.57114057848,"d":"($37,525)"}},{"$f":"NORMINV(RAND()*(1-2*Inputs!B58)+Inputs!B58,0,'(Other Computations)'!B208)","v":{"v":5386.862893408849,"d":"$5,387"}},{"$f":"NORMINV(RAND()*(1-2*Inputs!B58)+Inputs!B58,0,'(Other Computations)'!B208)","v":{"v":-34617.24172907606,"d":"($34,617)"}},{"$f":"NORMINV(RAND()*(1-2*Inputs!B58)+Inputs!B58,0,'(Other Computations)'!B208)","v":{"v":34929.38323051087,"d":"$34,929"}},{"$f":"NORMINV(RAND()*(1-2*Inputs!B58)+Inputs!B58,0,'(Other Computations)'!B208)","v":{"v":54754.623357519326,"d":"$54,755"}},{"$f":"NORMINV(RAND()*(1-2*Inputs!B58)+Inputs!B58,0,'(Other Computations)'!B208)","v":{"v":-38854.95766640745,"d":"($38,855)"}},{"$f":"NORMINV(RAND()*(1-2*Inputs!B58)+Inputs!B58,0,'(Other Computations)'!B208)","v":{"v":30080.45853528951,"d":"$30,080"}},{"$f":"SUM(DO46:DZ46)","v":{"v":64675.18424477688,"d":"$64,675"}},{"$f":"NORMINV(RAND()*(1-2*Inputs!B58)+Inputs!B58,0,'(Other Computations)'!B208)","v":{"v":22310.49833911713,"d":"$22,310"}},{"$f":"NORMINV(RAND()*(1-2*Inputs!B58)+Inputs!B58,0,'(Other Computations)'!B208)","v":{"v":-3431.2510193820567,"d":"($3,431)"}},{"$f":"NORMINV(RAND()*(1-2*Inputs!B58)+Inputs!B58,0,'(Other Computations)'!B208)","v":{"v":2100.7785724022865,"d":"$2,101"}},{"$f":"NORMINV(RAND()*(1-2*Inputs!B58)+Inputs!B58,0,'(Other Computations)'!B208)","v":{"v":24625.74693921208,"d":"$24,626"}},{"$f":"NORMINV(RAND()*(1-2*Inputs!B58)+Inputs!B58,0,'(Other Computations)'!B208)","v":{"v":28228.911650652535,"d":"$28,229"}},{"$f":"NORMINV(RAND()*(1-2*Inputs!B58)+Inputs!B58,0,'(Other Computations)'!B208)","v":{"v":1836.3331238541289,"d":"$1,836"}},{"$f":"NORMINV(RAND()*(1-2*Inputs!B58)+Inputs!B58,0,'(Other Computations)'!B208)","v":{"v":16486.731121567173,"d":"$16,487"}},{"$f":"NORMINV(RAND()*(1-2*Inputs!B58)+Inputs!B58,0,'(Other Computations)'!B208)","v":{"v":44179.68580302055,"d":"$44,180"}},{"$f":"NORMINV(RAND()*(1-2*Inputs!B58)+Inputs!B58,0,'(Other Computations)'!B208)","v":{"v":-34781.91548931662,"d":"($34,782)"}},{"$f":"NORMINV(RAND()*(1-2*Inputs!B58)+Inputs!B58,0,'(Other Computations)'!B208)","v":{"v":24695.313731907198,"d":"$24,695"}},{"$f":"NORMINV(RAND()*(1-2*Inputs!B58)+Inputs!B58,0,'(Other Computations)'!B208)","v":{"v":52197.41000410268,"d":"$52,197"}},{"$f":"NORMINV(RAND()*(1-2*Inputs!B58)+Inputs!B58,0,'(Other Computations)'!B208)","v":{"v":-14328.265238838452,"d":"($14,328)"}},{"$f":"SUM(EB46:EM46)","v":{"v":164119.97753829864,"d":"$164,120"}}]
[]
[]
[{"$f":"\"Government\"","v":"Government"}]
[{"$f":"\" \"","v":" "}]
[null,{"$f":"ZZZ__FnCalls!F7","v":"Jan 2010"},{"$f":"ZZZ__FnCalls!F8","v":"Feb 2010"},{"$f":"ZZZ__FnCalls!F9","v":"Mar 2010"},{"$f":"ZZZ__FnCalls!F10","v":"Apr 2010"},{"$f":"ZZZ__FnCalls!F11","v":"May 2010"},{"$f":"ZZZ__FnCalls!F12","v":"Jun 2010"},{"$f":"ZZZ__FnCalls!F13","v":"Jul 2010"},{"$f":"ZZZ__FnCalls!F14","v":"Aug 2010"},{"$f":"ZZZ__FnCalls!F15","v":"Sep 2010"},{"$f":"ZZZ__FnCalls!F16","v":"Oct 2010"},{"$f":"ZZZ__FnCalls!F17","v":"Nov 2010"},{"$f":"ZZZ__FnCalls!F18","v":"Dec 2010"},{"$f":"ZZZ__FnCalls!H7","v":"2010"},{"$f":"ZZZ__FnCalls!F19","v":"Jan 2011"},{"$f":"ZZZ__FnCalls!F20","v":"Feb 2011"},{"$f":"ZZZ__FnCalls!F21","v":"Mar 2011"},{"$f":"ZZZ__FnCalls!F22","v":"Apr 2011"},{"$f":"ZZZ__FnCalls!F23","v":"May 2011"},{"$f":"ZZZ__FnCalls!F24","v":"Jun 2011"},{"$f":"ZZZ__FnCalls!F25","v":"Jul 2011"},{"$f":"ZZZ__FnCalls!F26","v":"Aug 2011"},{"$f":"ZZZ__FnCalls!F27","v":"Sep 2011"},{"$f":"ZZZ__FnCalls!F28","v":"Oct 2011"},{"$f":"ZZZ__FnCalls!F29","v":"Nov 2011"},{"$f":"ZZZ__FnCalls!F30","v":"Dec 2011"},{"$f":"ZZZ__FnCalls!H19","v":"2011"},{"$f":"ZZZ__FnCalls!F31","v":"Jan 2012"},{"$f":"ZZZ__FnCalls!F32","v":"Feb 2012"},{"$f":"ZZZ__FnCalls!F33","v":"Mar 2012"},{"$f":"ZZZ__FnCalls!F34","v":"Apr 2012"},{"$f":"ZZZ__FnCalls!F35","v":"May 2012"},{"$f":"ZZZ__FnCalls!F36","v":"Jun 2012"},{"$f":"ZZZ__FnCalls!F37","v":"Jul 2012"},{"$f":"ZZZ__FnCalls!F38","v":"Aug 2012"},{"$f":"ZZZ__FnCalls!F39","v":"Sep 2012"},{"$f":"ZZZ__FnCalls!F40","v":"Oct 2012"},{"$f":"ZZZ__FnCalls!F41","v":"Nov 2012"},{"$f":"ZZZ__FnCalls!F42","v":"Dec 2012"},{"$f":"ZZZ__FnCalls!H31","v":"2012"},{"$f":"ZZZ__FnCalls!F43","v":"Jan 2013"},{"$f":"ZZZ__FnCalls!F44","v":"Feb 2013"},{"$f":"ZZZ__FnCalls!F45","v":"Mar 2013"},{"$f":"ZZZ__FnCalls!F46","v":"Apr 2013"},{"$f":"ZZZ__FnCalls!F47","v":"May 2013"},{"$f":"ZZZ__FnCalls!F48","v":"Jun 2013"},{"$f":"ZZZ__FnCalls!F49","v":"Jul 2013"},{"$f":"ZZZ__FnCalls!F50","v":"Aug 2013"},{"$f":"ZZZ__FnCalls!F51","v":"Sep 2013"},{"$f":"ZZZ__FnCalls!F52","v":"Oct 2013"},{"$f":"ZZZ__FnCalls!F53","v":"Nov 2013"},{"$f":"ZZZ__FnCalls!F54","v":"Dec 2013"},{"$f":"ZZZ__FnCalls!H43","v":"2013"},{"$f":"ZZZ__FnCalls!F55","v":"Jan 2014"},{"$f":"ZZZ__FnCalls!F56","v":"Feb 2014"},{"$f":"ZZZ__FnCalls!F57","v":"Mar 2014"},{"$f":"ZZZ__FnCalls!F58","v":"Apr 2014"},{"$f":"ZZZ__FnCalls!F59","v":"May 2014"},{"$f":"ZZZ__FnCalls!F60","v":"Jun 2014"},{"$f":"ZZZ__FnCalls!F61","v":"Jul 2014"},{"$f":"ZZZ__FnCalls!F62","v":"Aug 2014"},{"$f":"ZZZ__FnCalls!F63","v":"Sep 2014"},{"$f":"ZZZ__FnCalls!F64","v":"Oct 2014"},{"$f":"ZZZ__FnCalls!F65","v":"Nov 2014"},{"$f":"ZZZ__FnCalls!F66","v":"Dec 2014"},{"$f":"ZZZ__FnCalls!H55","v":"2014"},{"$f":"ZZZ__FnCalls!F67","v":"Jan 2015"},{"$f":"ZZZ__FnCalls!F68","v":"Feb 2015"},{"$f":"ZZZ__FnCalls!F69","v":"Mar 2015"},{"$f":"ZZZ__FnCalls!F70","v":"Apr 2015"},{"$f":"ZZZ__FnCalls!F71","v":"May 2015"},{"$f":"ZZZ__FnCalls!F72","v":"Jun 2015"},{"$f":"ZZZ__FnCalls!F73","v":"Jul 2015"},{"$f":"ZZZ__FnCalls!F74","v":"Aug 2015"},{"$f":"ZZZ__FnCalls!F75","v":"Sep 2015"},{"$f":"ZZZ__FnCalls!F76","v":"Oct 2015"},{"$f":"ZZZ__FnCalls!F77","v":"Nov 2015"},{"$f":"ZZZ__FnCalls!F78","v":"Dec 2015"},{"$f":"ZZZ__FnCalls!H67","v":"2015"},{"$f":"ZZZ__FnCalls!F79","v":"Jan 2016"},{"$f":"ZZZ__FnCalls!F80","v":"Feb 2016"},{"$f":"ZZZ__FnCalls!F81","v":"Mar 2016"},{"$f":"ZZZ__FnCalls!F82","v":"Apr 2016"},{"$f":"ZZZ__FnCalls!F83","v":"May 2016"},{"$f":"ZZZ__FnCalls!F84","v":"Jun 2016"},{"$f":"ZZZ__FnCalls!F85","v":"Jul 2016"},{"$f":"ZZZ__FnCalls!F86","v":"Aug 2016"},{"$f":"ZZZ__FnCalls!F87","v":"Sep 2016"},{"$f":"ZZZ__FnCalls!F88","v":"Oct 2016"},{"$f":"ZZZ__FnCalls!F89","v":"Nov 2016"},{"$f":"ZZZ__FnCalls!F90","v":"Dec 2016"},{"$f":"ZZZ__FnCalls!H79","v":"2016"},{"$f":"ZZZ__FnCalls!F91","v":"Jan 2017"},{"$f":"ZZZ__FnCalls!F92","v":"Feb 2017"},{"$f":"ZZZ__FnCalls!F93","v":"Mar 2017"},{"$f":"ZZZ__FnCalls!F94","v":"Apr 2017"},{"$f":"ZZZ__FnCalls!F95","v":"May 2017"},{"$f":"ZZZ__FnCalls!F96","v":"Jun 2017"},{"$f":"ZZZ__FnCalls!F97","v":"Jul 2017"},{"$f":"ZZZ__FnCalls!F98","v":"Aug 2017"},{"$f":"ZZZ__FnCalls!F99","v":"Sep 2017"},{"$f":"ZZZ__FnCalls!F100","v":"Oct 2017"},{"$f":"ZZZ__FnCalls!F101","v":"Nov 2017"},{"$f":"ZZZ__FnCalls!F102","v":"Dec 2017"},{"$f":"ZZZ__FnCalls!H91","v":"2017"},{"$f":"ZZZ__FnCalls!F103","v":"Jan 2018"},{"$f":"ZZZ__FnCalls!F104","v":"Feb 2018"},{"$f":"ZZZ__FnCalls!F105","v":"Mar 2018"},{"$f":"ZZZ__FnCalls!F106","v":"Apr 2018"},{"$f":"ZZZ__FnCalls!F107","v":"May 2018"},{"$f":"ZZZ__FnCalls!F108","v":"Jun 2018"},{"$f":"ZZZ__FnCalls!F109","v":"Jul 2018"},{"$f":"ZZZ__FnCalls!F110","v":"Aug 2018"},{"$f":"ZZZ__FnCalls!F111","v":"Sep 2018"},{"$f":"ZZZ__FnCalls!F112","v":"Oct 2018"},{"$f":"ZZZ__FnCalls!F113","v":"Nov 2018"},{"$f":"ZZZ__FnCalls!F114","v":"Dec 2018"},{"$f":"ZZZ__FnCalls!H103","v":"2018"},{"$f":"ZZZ__FnCalls!F115","v":"Jan 2019"},{"$f":"ZZZ__FnCalls!F116","v":"Feb 2019"},{"$f":"ZZZ__FnCalls!F117","v":"Mar 2019"},{"$f":"ZZZ__FnCalls!F118","v":"Apr 2019"},{"$f":"ZZZ__FnCalls!F119","v":"May 2019"},{"$f":"ZZZ__FnCalls!F120","v":"Jun 2019"},{"$f":"ZZZ__FnCalls!F121","v":"Jul 2019"},{"$f":"ZZZ__FnCalls!F122","v":"Aug 2019"},{"$f":"ZZZ__FnCalls!F123","v":"Sep 2019"},{"$f":"ZZZ__FnCalls!F124","v":"Oct 2019"},{"$f":"ZZZ__FnCalls!F125","v":"Nov 2019"},{"$f":"ZZZ__FnCalls!F126","v":"Dec 2019"},{"$f":"ZZZ__FnCalls!H115","v":"2019"},{"$f":"ZZZ__FnCalls!F127","v":"Jan 2020"},{"$f":"ZZZ__FnCalls!F128","v":"Feb 2020"},{"$f":"ZZZ__FnCalls!F129","v":"Mar 2020"},{"$f":"ZZZ__FnCalls!F130","v":"Apr 2020"},{"$f":"ZZZ__FnCalls!F131","v":"May 2020"},{"$f":"ZZZ__FnCalls!F132","v":"Jun 2020"},{"$f":"ZZZ__FnCalls!F133","v":"Jul 2020"},{"$f":"ZZZ__FnCalls!F134","v":"Aug 2020"},{"$f":"ZZZ__FnCalls!F135","v":"Sep 2020"},{"$f":"ZZZ__FnCalls!F136","v":"Oct 2020"},{"$f":"ZZZ__FnCalls!F137","v":"Nov 2020"},{"$f":"ZZZ__FnCalls!F138","v":"Dec 2020"},{"$f":"ZZZ__FnCalls!H127","v":"2020"}]
[{"$f":"Labels!B51","v":"Gov Spending"},{"$f":"B37","v":{"v":29166.66666666667,"d":"$29,167"}},{"v":29166.66666666667,"d":"$29,167"},{"v":29166.66666666667,"d":"$29,167"},{"v":29166.66666666667,"d":"$29,167"},{"v":29166.66666666667,"d":"$29,167"},{"v":29166.66666666667,"d":"$29,167"},{"v":29166.66666666667,"d":"$29,167"},{"v":29166.66666666667,"d":"$29,167"},{"v":29166.66666666667,"d":"$29,167"},{"v":29166.66666666667,"d":"$29,167"},{"v":29166.66666666667,"d":"$29,167"},{"v":29166.66666666667,"d":"$29,167"},{"$f":"SUM(B37:M37)","v":{"v":350000.0000000002,"d":"$350,000"}},{"$f":"O37","v":{"v":29166.66666666667,"d":"$29,167"}},{"v":29166.66666666667,"d":"$29,167"},{"v":29166.66666666667,"d":"$29,167"},{"v":29166.66666666667,"d":"$29,167"},{"v":29166.66666666667,"d":"$29,167"},{"v":29166.66666666667,"d":"$29,167"},{"v":29166.66666666667,"d":"$29,167"},{"v":29166.66666666667,"d":"$29,167"},{"v":29166.66666666667,"d":"$29,167"},{"v":29166.66666666667,"d":"$29,167"},{"v":29166.66666666667,"d":"$29,167"},{"v":29166.66666666667,"d":"$29,167"},{"$f":"SUM(O37:Z37)","v":{"v":350000.0000000002,"d":"$350,000"}},{"$f":"AB37","v":{"v":29166.66666666667,"d":"$29,167"}},{"v":29166.66666666667,"d":"$29,167"},{"v":29166.66666666667,"d":"$29,167"},{"v":29166.66666666667,"d":"$29,167"},{"v":29166.66666666667,"d":"$29,167"},{"v":29166.66666666667,"d":"$29,167"},{"v":29166.66666666667,"d":"$29,167"},{"v":29166.66666666667,"d":"$29,167"},{"v":29166.66666666667,"d":"$29,167"},{"v":29166.66666666667,"d":"$29,167"},{"v":29166.66666666667,"d":"$29,167"},{"v":29166.66666666667,"d":"$29,167"},{"$f":"SUM(AB37:AM37)","v":{"v":350000.0000000002,"d":"$350,000"}},{"$f":"AO37","v":{"v":29166.66666666667,"d":"$29,167"}},{"v":29166.66666666667,"d":"$29,167"},{"v":29166.66666666667,"d":"$29,167"},{"v":29166.66666666667,"d":"$29,167"},{"v":29166.66666666667,"d":"$29,167"},{"v":29166.66666666667,"d":"$29,167"},{"v":29166.66666666667,"d":"$29,167"},{"v":29166.66666666667,"d":"$29,167"},{"v":29166.66666666667,"d":"$29,167"},{"v":29166.66666666667,"d":"$29,167"},{"v":29166.66666666667,"d":"$29,167"},{"v":29166.66666666667,"d":"$29,167"},{"$f":"SUM(AO37:AZ37)","v":{"v":350000.0000000002,"d":"$350,000"}},{"$f":"BB37","v":{"v":29166.66666666667,"d":"$29,167"}},{"v":29166.66666666667,"d":"$29,167"},{"v":29166.66666666667,"d":"$29,167"},{"v":29166.66666666667,"d":"$29,167"},{"v":29166.66666666667,"d":"$29,167"},{"v":29166.66666666667,"d":"$29,167"},{"v":29166.66666666667,"d":"$29,167"},{"v":29166.66666666667,"d":"$29,167"},{"v":29166.66666666667,"d":"$29,167"},{"v":29166.66666666667,"d":"$29,167"},{"v":29166.66666666667,"d":"$29,167"},{"v":29166.66666666667,"d":"$29,167"},{"$f":"SUM(BB37:BM37)","v":{"v":350000.0000000002,"d":"$350,000"}},{"$f":"BO37","v":{"v":29166.66666666667,"d":"$29,167"}},{"v":29166.66666666667,"d":"$29,167"},{"v":29166.66666666667,"d":"$29,167"},{"v":29166.66666666667,"d":"$29,167"},{"v":29166.66666666667,"d":"$29,167"},{"v":29166.66666666667,"d":"$29,167"},{"v":29166.66666666667,"d":"$29,167"},{"v":29166.66666666667,"d":"$29,167"},{"v":29166.66666666667,"d":"$29,167"},{"v":29166.66666666667,"d":"$29,167"},{"v":29166.66666666667,"d":"$29,167"},{"v":29166.66666666667,"d":"$29,167"},{"$f":"SUM(BO37:BZ37)","v":{"v":350000.0000000002,"d":"$350,000"}},{"$f":"CB37","v":{"v":29166.66666666667,"d":"$29,167"}},{"v":29166.66666666667,"d":"$29,167"},{"v":29166.66666666667,"d":"$29,167"},{"v":29166.66666666667,"d":"$29,167"},{"v":29166.66666666667,"d":"$29,167"},{"v":29166.66666666667,"d":"$29,167"},{"v":29166.66666666667,"d":"$29,167"},{"v":29166.66666666667,"d":"$29,167"},{"v":29166.66666666667,"d":"$29,167"},{"v":29166.66666666667,"d":"$29,167"},{"v":29166.66666666667,"d":"$29,167"},{"v":29166.66666666667,"d":"$29,167"},{"$f":"SUM(CB37:CM37)","v":{"v":350000.0000000002,"d":"$350,000"}},{"$f":"CO37","v":{"v":29166.66666666667,"d":"$29,167"}},{"v":29166.66666666667,"d":"$29,167"},{"v":29166.66666666667,"d":"$29,167"},{"v":29166.66666666667,"d":"$29,167"},{"v":29166.66666666667,"d":"$29,167"},{"v":29166.66666666667,"d":"$29,167"},{"v":29166.66666666667,"d":"$29,167"},{"v":29166.66666666667,"d":"$29,167"},{"v":29166.66666666667,"d":"$29,167"},{"v":29166.66666666667,"d":"$29,167"},{"v":29166.66666666667,"d":"$29,167"},{"v":29166.66666666667,"d":"$29,167"},{"$f":"SUM(CO37:CZ37)","v":{"v":350000.0000000002,"d":"$350,000"}},{"$f":"DB37","v":{"v":29166.66666666667,"d":"$29,167"}},{"v":29166.66666666667,"d":"$29,167"},{"v":29166.66666666667,"d":"$29,167"},{"v":29166.66666666667,"d":"$29,167"},{"v":29166.66666666667,"d":"$29,167"},{"v":29166.66666666667,"d":"$29,167"},{"v":29166.66666666667,"d":"$29,167"},{"v":29166.66666666667,"d":"$29,167"},{"v":29166.66666666667,"d":"$29,167"},{"v":29166.66666666667,"d":"$29,167"},{"v":29166.66666666667,"d":"$29,167"},{"v":29166.66666666667,"d":"$29,167"},{"$f":"SUM(DB37:DM37)","v":{"v":350000.0000000002,"d":"$350,000"}},{"$f":"DO37","v":{"v":29166.66666666667,"d":"$29,167"}},{"v":29166.66666666667,"d":"$29,167"},{"v":29166.66666666667,"d":"$29,167"},{"v":29166.66666666667,"d":"$29,167"},{"v":29166.66666666667,"d":"$29,167"},{"v":29166.66666666667,"d":"$29,167"},{"v":29166.66666666667,"d":"$29,167"},{"v":29166.66666666667,"d":"$29,167"},{"v":29166.66666666667,"d":"$29,167"},{"v":29166.66666666667,"d":"$29,167"},{"v":29166.66666666667,"d":"$29,167"},{"v":29166.66666666667,"d":"$29,167"},{"$f":"SUM(DO37:DZ37)","v":{"v":350000.0000000002,"d":"$350,000"}},{"$f":"EB37","v":{"v":29166.66666666667,"d":"$29,167"}},{"v":29166.66666666667,"d":"$29,167"},{"v":29166.66666666667,"d":"$29,167"},{"v":29166.66666666667,"d":"$29,167"},{"v":29166.66666666667,"d":"$29,167"},{"v":29166.66666666667,"d":"$29,167"},{"v":29166.66666666667,"d":"$29,167"},{"v":29166.66666666667,"d":"$29,167"},{"v":29166.66666666667,"d":"$29,167"},{"v":29166.66666666667,"d":"$29,167"},{"v":29166.66666666667,"d":"$29,167"},{"v":29166.66666666667,"d":"$29,167"},{"$f":"SUM(EB37:EM37)","v":{"v":350000.0000000002,"d":"$350,000"}}]
[{"$f":"Labels!B52","v":"Gov Transfers"},{"$f":"B38","v":{"v":14583.333333333336,"d":"$14,583"}},{"v":14583.333333333336,"d":"$14,583"},{"v":14583.333333333336,"d":"$14,583"},{"v":14583.333333333336,"d":"$14,583"},{"v":14583.333333333336,"d":"$14,583"},{"v":14583.333333333336,"d":"$14,583"},{"v":14583.333333333336,"d":"$14,583"},{"v":14583.333333333336,"d":"$14,583"},{"v":14583.333333333336,"d":"$14,583"},{"v":14583.333333333336,"d":"$14,583"},{"v":14583.333333333336,"d":"$14,583"},{"v":14583.333333333336,"d":"$14,583"},{"$f":"SUM(B38:M38)","v":{"v":175000.0000000001,"d":"$175,000"}},{"$f":"O38","v":{"v":14583.333333333336,"d":"$14,583"}},{"v":14583.333333333336,"d":"$14,583"},{"v":14583.333333333336,"d":"$14,583"},{"v":14583.333333333336,"d":"$14,583"},{"v":14583.333333333336,"d":"$14,583"},{"v":14583.333333333336,"d":"$14,583"},{"v":14583.333333333336,"d":"$14,583"},{"v":14583.333333333336,"d":"$14,583"},{"v":14583.333333333336,"d":"$14,583"},{"v":14583.333333333336,"d":"$14,583"},{"v":14583.333333333336,"d":"$14,583"},{"v":14583.333333333336,"d":"$14,583"},{"$f":"SUM(O38:Z38)","v":{"v":175000.0000000001,"d":"$175,000"}},{"$f":"AB38","v":{"v":14583.333333333336,"d":"$14,583"}},{"v":14583.333333333336,"d":"$14,583"},{"v":14583.333333333336,"d":"$14,583"},{"v":14583.333333333336,"d":"$14,583"},{"v":14583.333333333336,"d":"$14,583"},{"v":14583.333333333336,"d":"$14,583"},{"v":14583.333333333336,"d":"$14,583"},{"v":14583.333333333336,"d":"$14,583"},{"v":14583.333333333336,"d":"$14,583"},{"v":14583.333333333336,"d":"$14,583"},{"v":14583.333333333336,"d":"$14,583"},{"v":14583.333333333336,"d":"$14,583"},{"$f":"SUM(AB38:AM38)","v":{"v":175000.0000000001,"d":"$175,000"}},{"$f":"AO38","v":{"v":14583.333333333336,"d":"$14,583"}},{"v":14583.333333333336,"d":"$14,583"},{"v":14583.333333333336,"d":"$14,583"},{"v":14583.333333333336,"d":"$14,583"},{"v":14583.333333333336,"d":"$14,583"},{"v":14583.333333333336,"d":"$14,583"},{"v":14583.333333333336,"d":"$14,583"},{"v":14583.333333333336,"d":"$14,583"},{"v":14583.333333333336,"d":"$14,583"},{"v":14583.333333333336,"d":"$14,583"},{"v":14583.333333333336,"d":"$14,583"},{"v":14583.333333333336,"d":"$14,583"},{"$f":"SUM(AO38:AZ38)","v":{"v":175000.0000000001,"d":"$175,000"}},{"$f":"BB38","v":{"v":14583.333333333336,"d":"$14,583"}},{"v":14583.333333333336,"d":"$14,583"},{"v":14583.333333333336,"d":"$14,583"},{"v":14583.333333333336,"d":"$14,583"},{"v":14583.333333333336,"d":"$14,583"},{"v":14583.333333333336,"d":"$14,583"},{"v":14583.333333333336,"d":"$14,583"},{"v":14583.333333333336,"d":"$14,583"},{"v":14583.333333333336,"d":"$14,583"},{"v":14583.333333333336,"d":"$14,583"},{"v":14583.333333333336,"d":"$14,583"},{"v":14583.333333333336,"d":"$14,583"},{"$f":"SUM(BB38:BM38)","v":{"v":175000.0000000001,"d":"$175,000"}},{"$f":"BO38","v":{"v":14583.333333333336,"d":"$14,583"}},{"v":14583.333333333336,"d":"$14,583"},{"v":14583.333333333336,"d":"$14,583"},{"v":14583.333333333336,"d":"$14,583"},{"v":14583.333333333336,"d":"$14,583"},{"v":14583.333333333336,"d":"$14,583"},{"v":14583.333333333336,"d":"$14,583"},{"v":14583.333333333336,"d":"$14,583"},{"v":14583.333333333336,"d":"$14,583"},{"v":14583.333333333336,"d":"$14,583"},{"v":14583.333333333336,"d":"$14,583"},{"v":14583.333333333336,"d":"$14,583"},{"$f":"SUM(BO38:BZ38)","v":{"v":175000.0000000001,"d":"$175,000"}},{"$f":"CB38","v":{"v":14583.333333333336,"d":"$14,583"}},{"v":14583.333333333336,"d":"$14,583"},{"v":14583.333333333336,"d":"$14,583"},{"v":14583.333333333336,"d":"$14,583"},{"v":14583.333333333336,"d":"$14,583"},{"v":14583.333333333336,"d":"$14,583"},{"v":14583.333333333336,"d":"$14,583"},{"v":14583.333333333336,"d":"$14,583"},{"v":14583.333333333336,"d":"$14,583"},{"v":14583.333333333336,"d":"$14,583"},{"v":14583.333333333336,"d":"$14,583"},{"v":14583.333333333336,"d":"$14,583"},{"$f":"SUM(CB38:CM38)","v":{"v":175000.0000000001,"d":"$175,000"}},{"$f":"CO38","v":{"v":14583.333333333336,"d":"$14,583"}},{"v":14583.333333333336,"d":"$14,583"},{"v":14583.333333333336,"d":"$14,583"},{"v":14583.333333333336,"d":"$14,583"},{"v":14583.333333333336,"d":"$14,583"},{"v":14583.333333333336,"d":"$14,583"},{"v":14583.333333333336,"d":"$14,583"},{"v":14583.333333333336,"d":"$14,583"},{"v":14583.333333333336,"d":"$14,583"},{"v":14583.333333333336,"d":"$14,583"},{"v":14583.333333333336,"d":"$14,583"},{"v":14583.333333333336,"d":"$14,583"},{"$f":"SUM(CO38:CZ38)","v":{"v":175000.0000000001,"d":"$175,000"}},{"$f":"DB38","v":{"v":14583.333333333336,"d":"$14,583"}},{"v":14583.333333333336,"d":"$14,583"},{"v":14583.333333333336,"d":"$14,583"},{"v":14583.333333333336,"d":"$14,583"},{"v":14583.333333333336,"d":"$14,583"},{"v":14583.333333333336,"d":"$14,583"},{"v":14583.333333333336,"d":"$14,583"},{"v":14583.333333333336,"d":"$14,583"},{"v":14583.333333333336,"d":"$14,583"},{"v":14583.333333333336,"d":"$14,583"},{"v":14583.333333333336,"d":"$14,583"},{"v":14583.333333333336,"d":"$14,583"},{"$f":"SUM(DB38:DM38)","v":{"v":175000.0000000001,"d":"$175,000"}},{"$f":"DO38","v":{"v":14583.333333333336,"d":"$14,583"}},{"v":14583.333333333336,"d":"$14,583"},{"v":14583.333333333336,"d":"$14,583"},{"v":14583.333333333336,"d":"$14,583"},{"v":14583.333333333336,"d":"$14,583"},{"v":14583.333333333336,"d":"$14,583"},{"v":14583.333333333336,"d":"$14,583"},{"v":14583.333333333336,"d":"$14,583"},{"v":14583.333333333336,"d":"$14,583"},{"v":14583.333333333336,"d":"$14,583"},{"v":14583.333333333336,"d":"$14,583"},{"v":14583.333333333336,"d":"$14,583"},{"$f":"SUM(DO38:DZ38)","v":{"v":175000.0000000001,"d":"$175,000"}},{"$f":"EB38","v":{"v":14583.333333333336,"d":"$14,583"}},{"v":14583.333333333336,"d":"$14,583"},{"v":14583.333333333336,"d":"$14,583"},{"v":14583.333333333336,"d":"$14,583"},{"v":14583.333333333336,"d":"$14,583"},{"v":14583.333333333336,"d":"$14,583"},{"v":14583.333333333336,"d":"$14,583"},{"v":14583.333333333336,"d":"$14,583"},{"v":14583.333333333336,"d":"$14,583"},{"v":14583.333333333336,"d":"$14,583"},{"v":14583.333333333336,"d":"$14,583"},{"v":14583.333333333336,"d":"$14,583"},{"$f":"SUM(EB38:EM38)","v":{"v":175000.0000000001,"d":"$175,000"}}]
[{"$f":"Labels!B83","v":"Tax"},{"$f":"Inputs!B52*B44","v":{"v":363075.5004028814,"d":"$363,076"}},{"$f":"Inputs!B52*C44","v":{"v":365573.55739023484,"d":"$365,574"}},{"$f":"Inputs!B52*D44","v":{"v":338222.134144158,"d":"$338,222"}},{"$f":"Inputs!B52*E44","v":{"v":339147.95534507936,"d":"$339,148"}},{"$f":"Inputs!B52*F44","v":{"v":333388.0145560838,"d":"$333,388"}},{"$f":"Inputs!B52*G44","v":{"v":336930.5146732072,"d":"$336,931"}},{"$f":"Inputs!B52*H44","v":{"v":356190.70280629775,"d":"$356,191"}},{"$f":"Inputs!B52*I44","v":{"v":352512.2945727877,"d":"$352,512"}},{"$f":"Inputs!B52*J44","v":{"v":343063.29174015636,"d":"$343,063"}},{"$f":"Inputs!B52*K44","v":{"v":338534.89800628944,"d":"$338,535"}},{"$f":"Inputs!B52*L44","v":{"v":345708.60894989996,"d":"$345,709"}},{"$f":"Inputs!B52*M44","v":{"v":350126.2652038519,"d":"$350,126"}},{"$f":"SUM(B54:M54)","v":{"v":4162473.7377909278,"d":"$4,162,474"}},{"$f":"Inputs!B52*O44","v":{"v":344990.2757151767,"d":"$344,990"}},{"$f":"Inputs!B52*P44","v":{"v":355449.58569095755,"d":"$355,450"}},{"$f":"Inputs!B52*Q44","v":{"v":349204.1777263675,"d":"$349,204"}},{"$f":"Inputs!B52*R44","v":{"v":362092.085335785,"d":"$362,092"}},{"$f":"Inputs!B52*S44","v":{"v":340469.58750536246,"d":"$340,470"}},{"$f":"Inputs!B52*T44","v":{"v":352992.40271206794,"d":"$352,992"}},{"$f":"Inputs!B52*U44","v":{"v":340165.4045916428,"d":"$340,165"}},{"$f":"Inputs!B52*V44","v":{"v":349691.79456072033,"d":"$349,692"}},{"$f":"Inputs!B52*W44","v":{"v":327531.1696048758,"d":"$327,531"}},{"$f":"Inputs!B52*X44","v":{"v":336468.22787484794,"d":"$336,468"}},{"$f":"Inputs!B52*Y44","v":{"v":349759.9546317484,"d":"$349,760"}},{"$f":"Inputs!B52*Z44","v":{"v":347181.8839216984,"d":"$347,182"}},{"$f":"SUM(O54:Z54)","v":{"v":4155996.5498712505,"d":"$4,155,997"}},{"$f":"Inputs!B52*AB44","v":{"v":338542.17260576476,"d":"$338,542"}},{"$f":"Inputs!B52*AC44","v":{"v":349512.974531248,"d":"$349,513"}},{"$f":"Inputs!B52*AD44","v":{"v":347866.0752000159,"d":"$347,866"}},{"$f":"Inputs!B52*AE44","v":{"v":339113.25308207347,"d":"$339,113"}},{"$f":"Inputs!B52*AF44","v":{"v":357014.49604102847,"d":"$357,014"}},{"$f":"Inputs!B52*AG44","v":{"v":335371.8967110389,"d":"$335,372"}},{"$f":"Inputs!B52*AH44","v":{"v":336748.5598550761,"d":"$336,749"}},{"$f":"Inputs!B52*AI44","v":{"v":328697.8088253164,"d":"$328,698"}},{"$f":"Inputs!B52*AJ44","v":{"v":329043.4438526428,"d":"$329,043"}},{"$f":"Inputs!B52*AK44","v":{"v":342750.42207186366,"d":"$342,750"}},{"$f":"Inputs!B52*AL44","v":{"v":339029.32121663995,"d":"$339,029"}},{"$f":"Inputs!B52*AM44","v":{"v":326600.59952546476,"d":"$326,601"}},{"$f":"SUM(AB54:AM54)","v":{"v":4070291.023518174,"d":"$4,070,291"}},{"$f":"Inputs!B52*AO44","v":{"v":325606.0966348237,"d":"$325,606"}},{"$f":"Inputs!B52*AP44","v":{"v":328458.092515765,"d":"$328,458"}},{"$f":"Inputs!B52*AQ44","v":{"v":332909.7268720608,"d":"$332,910"}},{"$f":"Inputs!B52*AR44","v":{"v":321523.1303324443,"d":"$321,523"}},{"$f":"Inputs!B52*AS44","v":{"v":324672.0836960965,"d":"$324,672"}},{"$f":"Inputs!B52*AT44","v":{"v":321478.5874203049,"d":"$321,479"}},{"$f":"Inputs!B52*AU44","v":{"v":336770.0907792018,"d":"$336,770"}},{"$f":"Inputs!B52*AV44","v":{"v":341178.3427441627,"d":"$341,178"}},{"$f":"Inputs!B52*AW44","v":{"v":341568.4413627611,"d":"$341,568"}},{"$f":"Inputs!B52*AX44","v":{"v":337541.40102579794,"d":"$337,541"}},{"$f":"Inputs!B52*AY44","v":{"v":335730.12644987536,"d":"$335,730"}},{"$f":"Inputs!B52*AZ44","v":{"v":335740.06868526625,"d":"$335,740"}},{"$f":"SUM(AO54:AZ54)","v":{"v":3983176.1885185605,"d":"$3,983,176"}},{"$f":"Inputs!B52*BB44","v":{"v":326755.14872255246,"d":"$326,755"}},{"$f":"Inputs!B52*BC44","v":{"v":332785.7763293239,"d":"$332,786"}},{"$f":"Inputs!B52*BD44","v":{"v":343294.0053869659,"d":"$343,294"}},{"$f":"Inputs!B52*BE44","v":{"v":328647.69291139237,"d":"$328,648"}},{"$f":"Inputs!B52*BF44","v":{"v":320273.0823752892,"d":"$320,273"}},{"$f":"Inputs!B52*BG44","v":{"v":325793.5007864882,"d":"$325,794"}},{"$f":"Inputs!B52*BH44","v":{"v":320364.5055661057,"d":"$320,365"}},{"$f":"Inputs!B52*BI44","v":{"v":315215.1391047663,"d":"$315,215"}},{"$f":"Inputs!B52*BJ44","v":{"v":331366.859417544,"d":"$331,367"}},{"$f":"Inputs!B52*BK44","v":{"v":335128.6775711387,"d":"$335,129"}},{"$f":"Inputs!B52*BL44","v":{"v":327297.0429243087,"d":"$327,297"}},{"$f":"Inputs!B52*BM44","v":{"v":310950.343788924,"d":"$310,950"}},{"$f":"SUM(BB54:BM54)","v":{"v":3917871.7748848,"d":"$3,917,872"}},{"$f":"Inputs!B52*BO44","v":{"v":315522.7960170513,"d":"$315,523"}},{"$f":"Inputs!B52*BP44","v":{"v":320335.37037504814,"d":"$320,335"}},{"$f":"Inputs!B52*BQ44","v":{"v":321666.9686396201,"d":"$321,667"}},{"$f":"Inputs!B52*BR44","v":{"v":338608.7815043801,"d":"$338,609"}},{"$f":"Inputs!B52*BS44","v":{"v":336383.16806252586,"d":"$336,383"}},{"$f":"Inputs!B52*BT44","v":{"v":319765.0435509588,"d":"$319,765"}},{"$f":"Inputs!B52*BU44","v":{"v":313453.0116006786,"d":"$313,453"}},{"$f":"Inputs!B52*BV44","v":{"v":321811.68797058467,"d":"$321,812"}},{"$f":"Inputs!B52*BW44","v":{"v":325522.254927276,"d":"$325,522"}},{"$f":"Inputs!B52*BX44","v":{"v":322074.9938434326,"d":"$322,075"}},{"$f":"Inputs!B52*BY44","v":{"v":330250.28158731427,"d":"$330,250"}},{"$f":"Inputs!B52*BZ44","v":{"v":325286.8149783723,"d":"$325,287"}},{"$f":"SUM(BO54:BZ54)","v":{"v":3890681.173057243,"d":"$3,890,681"}},{"$f":"Inputs!B52*CB44","v":{"v":319423.55265631905,"d":"$319,424"}},{"$f":"Inputs!B52*CC44","v":{"v":311355.63602743694,"d":"$311,356"}},{"$f":"Inputs!B52*CD44","v":{"v":324975.945097216,"d":"$324,976"}},{"$f":"Inputs!B52*CE44","v":{"v":320063.33537774894,"d":"$320,063"}},{"$f":"Inputs!B52*CF44","v":{"v":304232.14222738886,"d":"$304,232"}},{"$f":"Inputs!B52*CG44","v":{"v":317869.2263613378,"d":"$317,869"}},{"$f":"Inputs!B52*CH44","v":{"v":303263.639594791,"d":"$303,264"}},{"$f":"Inputs!B52*CI44","v":{"v":302047.5363575507,"d":"$302,048"}},{"$f":"Inputs!B52*CJ44","v":{"v":317657.35772939416,"d":"$317,657"}},{"$f":"Inputs!B52*CK44","v":{"v":326460.9809978688,"d":"$326,461"}},{"$f":"Inputs!B52*CL44","v":{"v":318286.2936150982,"d":"$318,286"}},{"$f":"Inputs!B52*CM44","v":{"v":302950.14725847467,"d":"$302,950"}},{"$f":"SUM(CB54:CM54)","v":{"v":3768585.793300625,"d":"$3,768,586"}},{"$f":"Inputs!B52*CO44","v":{"v":311511.637877631,"d":"$311,512"}},{"$f":"Inputs!B52*CP44","v":{"v":321687.28855406435,"d":"$321,687"}},{"$f":"Inputs!B52*CQ44","v":{"v":313460.2622675873,"d":"$313,460"}},{"$f":"Inputs!B52*CR44","v":{"v":317178.36965356313,"d":"$317,178"}},{"$f":"Inputs!B52*CS44","v":{"v":329250.3169489818,"d":"$329,250"}},{"$f":"Inputs!B52*CT44","v":{"v":315558.7349838243,"d":"$315,559"}},{"$f":"Inputs!B52*CU44","v":{"v":312125.2263341939,"d":"$312,125"}},{"$f":"Inputs!B52*CV44","v":{"v":318767.2832587357,"d":"$318,767"}},{"$f":"Inputs!B52*CW44","v":{"v":316471.368257867,"d":"$316,471"}},{"$f":"Inputs!B52*CX44","v":{"v":328880.30504889804,"d":"$328,880"}},{"$f":"Inputs!B52*CY44","v":{"v":326185.78649320686,"d":"$326,186"}},{"$f":"Inputs!B52*CZ44","v":{"v":312566.598818362,"d":"$312,567"}},{"$f":"SUM(CO54:CZ54)","v":{"v":3823643.178496915,"d":"$3,823,643"}},{"$f":"Inputs!B52*DB44","v":{"v":298437.71856462315,"d":"$298,438"}},{"$f":"Inputs!B52*DC44","v":{"v":312616.79111488984,"d":"$312,617"}},{"$f":"Inputs!B52*DD44","v":{"v":316491.88157194643,"d":"$316,492"}},{"$f":"Inputs!B52*DE44","v":{"v":295543.39738753805,"d":"$295,543"}},{"$f":"Inputs!B52*DF44","v":{"v":314152.17936907813,"d":"$314,152"}},{"$f":"Inputs!B52*DG44","v":{"v":315024.1289900139,"d":"$315,024"}},{"$f":"Inputs!B52*DH44","v":{"v":299003.7213863253,"d":"$299,004"}},{"$f":"Inputs!B52*DI44","v":{"v":318037.8493231941,"d":"$318,038"}},{"$f":"Inputs!B52*DJ44","v":{"v":319059.15136307897,"d":"$319,059"}},{"$f":"Inputs!B52*DK44","v":{"v":294064.0233615376,"d":"$294,064"}},{"$f":"Inputs!B52*DL44","v":{"v":310336.77477070165,"d":"$310,337"}},{"$f":"Inputs!B52*DM44","v":{"v":319292.67115211,"d":"$319,293"}},{"$f":"SUM(DB54:DM54)","v":{"v":3712060.2883550376,"d":"$3,712,060"}},{"$f":"Inputs!B52*DO44","v":{"v":303371.0770648578,"d":"$303,371"}},{"$f":"Inputs!B52*DP44","v":{"v":318027.5697641308,"d":"$318,028"}},{"$f":"Inputs!B52*DQ44","v":{"v":315620.84779388446,"d":"$315,621"}},{"$f":"Inputs!B52*DR44","v":{"v":296149.52596628165,"d":"$296,150"}},{"$f":"Inputs!B52*DS44","v":{"v":321370.94765013654,"d":"$321,371"}},{"$f":"Inputs!B52*DT44","v":{"v":295664.1051802892,"d":"$295,664"}},{"$f":"Inputs!B52*DU44","v":{"v":308172.430715929,"d":"$308,172"}},{"$f":"Inputs!B52*DV44","v":{"v":295839.8816440247,"d":"$295,840"}},{"$f":"Inputs!B52*DW44","v":{"v":316460.47541230253,"d":"$316,460"}},{"$f":"Inputs!B52*DX44","v":{"v":322244.8880260673,"d":"$322,245"}},{"$f":"Inputs!B52*DY44","v":{"v":293776.88510303793,"d":"$293,777"}},{"$f":"Inputs!B52*DZ44","v":{"v":314127.17001591594,"d":"$314,127"}},{"$f":"SUM(DO54:DZ54)","v":{"v":3700825.804336857,"d":"$3,700,826"}},{"$f":"Inputs!B52*EB44","v":{"v":311436.50775052904,"d":"$311,437"}},{"$f":"Inputs!B52*EC44","v":{"v":303506.1700136379,"d":"$303,506"}},{"$f":"Inputs!B52*ED44","v":{"v":304816.13281167817,"d":"$304,816"}},{"$f":"Inputs!B52*EE44","v":{"v":311288.1765641176,"d":"$311,288"}},{"$f":"Inputs!B52*EF44","v":{"v":312112.52045616915,"d":"$312,113"}},{"$f":"Inputs!B52*EG44","v":{"v":303853.35662792774,"d":"$303,853"}},{"$f":"Inputs!B52*EH44","v":{"v":307849.54519074253,"d":"$307,850"}},{"$f":"Inputs!B52*EI44","v":{"v":315776.5763832425,"d":"$315,777"}},{"$f":"Inputs!B52*EJ44","v":{"v":291847.59098948777,"d":"$291,848"}},{"$f":"Inputs!B52*EK44","v":{"v":309463.072526133,"d":"$309,463"}},{"$f":"Inputs!B52*EL44","v":{"v":317438.36029335554,"d":"$317,438"}},{"$f":"Inputs!B52*EM44","v":{"v":297280.78004044795,"d":"$297,281"}},{"$f":"SUM(EB54:EM54)","v":{"v":3686668.789647469,"d":"$3,686,669"}}]
[]
[]
[{"$f":"\"Stochastic Shocks\"","v":"Stochastic Shocks"}]
[{"$f":"\" \"","v":" "}]
[null,{"$f":"ZZZ__FnCalls!F7","v":"Jan 2010"},{"$f":"ZZZ__FnCalls!F8","v":"Feb 2010"},{"$f":"ZZZ__FnCalls!F9","v":"Mar 2010"},{"$f":"ZZZ__FnCalls!F10","v":"Apr 2010"},{"$f":"ZZZ__FnCalls!F11","v":"May 2010"},{"$f":"ZZZ__FnCalls!F12","v":"Jun 2010"},{"$f":"ZZZ__FnCalls!F13","v":"Jul 2010"},{"$f":"ZZZ__FnCalls!F14","v":"Aug 2010"},{"$f":"ZZZ__FnCalls!F15","v":"Sep 2010"},{"$f":"ZZZ__FnCalls!F16","v":"Oct 2010"},{"$f":"ZZZ__FnCalls!F17","v":"Nov 2010"},{"$f":"ZZZ__FnCalls!F18","v":"Dec 2010"},{"$f":"ZZZ__FnCalls!H7","v":"2010"},{"$f":"ZZZ__FnCalls!F19","v":"Jan 2011"},{"$f":"ZZZ__FnCalls!F20","v":"Feb 2011"},{"$f":"ZZZ__FnCalls!F21","v":"Mar 2011"},{"$f":"ZZZ__FnCalls!F22","v":"Apr 2011"},{"$f":"ZZZ__FnCalls!F23","v":"May 2011"},{"$f":"ZZZ__FnCalls!F24","v":"Jun 2011"},{"$f":"ZZZ__FnCalls!F25","v":"Jul 2011"},{"$f":"ZZZ__FnCalls!F26","v":"Aug 2011"},{"$f":"ZZZ__FnCalls!F27","v":"Sep 2011"},{"$f":"ZZZ__FnCalls!F28","v":"Oct 2011"},{"$f":"ZZZ__FnCalls!F29","v":"Nov 2011"},{"$f":"ZZZ__FnCalls!F30","v":"Dec 2011"},{"$f":"ZZZ__FnCalls!H19","v":"2011"},{"$f":"ZZZ__FnCalls!F31","v":"Jan 2012"},{"$f":"ZZZ__FnCalls!F32","v":"Feb 2012"},{"$f":"ZZZ__FnCalls!F33","v":"Mar 2012"},{"$f":"ZZZ__FnCalls!F34","v":"Apr 2012"},{"$f":"ZZZ__FnCalls!F35","v":"May 2012"},{"$f":"ZZZ__FnCalls!F36","v":"Jun 2012"},{"$f":"ZZZ__FnCalls!F37","v":"Jul 2012"},{"$f":"ZZZ__FnCalls!F38","v":"Aug 2012"},{"$f":"ZZZ__FnCalls!F39","v":"Sep 2012"},{"$f":"ZZZ__FnCalls!F40","v":"Oct 2012"},{"$f":"ZZZ__FnCalls!F41","v":"Nov 2012"},{"$f":"ZZZ__FnCalls!F42","v":"Dec 2012"},{"$f":"ZZZ__FnCalls!H31","v":"2012"},{"$f":"ZZZ__FnCalls!F43","v":"Jan 2013"},{"$f":"ZZZ__FnCalls!F44","v":"Feb 2013"},{"$f":"ZZZ__FnCalls!F45","v":"Mar 2013"},{"$f":"ZZZ__FnCalls!F46","v":"Apr 2013"},{"$f":"ZZZ__FnCalls!F47","v":"May 2013"},{"$f":"ZZZ__FnCalls!F48","v":"Jun 2013"},{"$f":"ZZZ__FnCalls!F49","v":"Jul 2013"},{"$f":"ZZZ__FnCalls!F50","v":"Aug 2013"},{"$f":"ZZZ__FnCalls!F51","v":"Sep 2013"},{"$f":"ZZZ__FnCalls!F52","v":"Oct 2013"},{"$f":"ZZZ__FnCalls!F53","v":"Nov 2013"},{"$f":"ZZZ__FnCalls!F54","v":"Dec 2013"},{"$f":"ZZZ__FnCalls!H43","v":"2013"},{"$f":"ZZZ__FnCalls!F55","v":"Jan 2014"},{"$f":"ZZZ__FnCalls!F56","v":"Feb 2014"},{"$f":"ZZZ__FnCalls!F57","v":"Mar 2014"},{"$f":"ZZZ__FnCalls!F58","v":"Apr 2014"},{"$f":"ZZZ__FnCalls!F59","v":"May 2014"},{"$f":"ZZZ__FnCalls!F60","v":"Jun 2014"},{"$f":"ZZZ__FnCalls!F61","v":"Jul 2014"},{"$f":"ZZZ__FnCalls!F62","v":"Aug 2014"},{"$f":"ZZZ__FnCalls!F63","v":"Sep 2014"},{"$f":"ZZZ__FnCalls!F64","v":"Oct 2014"},{"$f":"ZZZ__FnCalls!F65","v":"Nov 2014"},{"$f":"ZZZ__FnCalls!F66","v":"Dec 2014"},{"$f":"ZZZ__FnCalls!H55","v":"2014"},{"$f":"ZZZ__FnCalls!F67","v":"Jan 2015"},{"$f":"ZZZ__FnCalls!F68","v":"Feb 2015"},{"$f":"ZZZ__FnCalls!F69","v":"Mar 2015"},{"$f":"ZZZ__FnCalls!F70","v":"Apr 2015"},{"$f":"ZZZ__FnCalls!F71","v":"May 2015"},{"$f":"ZZZ__FnCalls!F72","v":"Jun 2015"},{"$f":"ZZZ__FnCalls!F73","v":"Jul 2015"},{"$f":"ZZZ__FnCalls!F74","v":"Aug 2015"},{"$f":"ZZZ__FnCalls!F75","v":"Sep 2015"},{"$f":"ZZZ__FnCalls!F76","v":"Oct 2015"},{"$f":"ZZZ__FnCalls!F77","v":"Nov 2015"},{"$f":"ZZZ__FnCalls!F78","v":"Dec 2015"},{"$f":"ZZZ__FnCalls!H67","v":"2015"},{"$f":"ZZZ__FnCalls!F79","v":"Jan 2016"},{"$f":"ZZZ__FnCalls!F80","v":"Feb 2016"},{"$f":"ZZZ__FnCalls!F81","v":"Mar 2016"},{"$f":"ZZZ__FnCalls!F82","v":"Apr 2016"},{"$f":"ZZZ__FnCalls!F83","v":"May 2016"},{"$f":"ZZZ__FnCalls!F84","v":"Jun 2016"},{"$f":"ZZZ__FnCalls!F85","v":"Jul 2016"},{"$f":"ZZZ__FnCalls!F86","v":"Aug 2016"},{"$f":"ZZZ__FnCalls!F87","v":"Sep 2016"},{"$f":"ZZZ__FnCalls!F88","v":"Oct 2016"},{"$f":"ZZZ__FnCalls!F89","v":"Nov 2016"},{"$f":"ZZZ__FnCalls!F90","v":"Dec 2016"},{"$f":"ZZZ__FnCalls!H79","v":"2016"},{"$f":"ZZZ__FnCalls!F91","v":"Jan 2017"},{"$f":"ZZZ__FnCalls!F92","v":"Feb 2017"},{"$f":"ZZZ__FnCalls!F93","v":"Mar 2017"},{"$f":"ZZZ__FnCalls!F94","v":"Apr 2017"},{"$f":"ZZZ__FnCalls!F95","v":"May 2017"},{"$f":"ZZZ__FnCalls!F96","v":"Jun 2017"},{"$f":"ZZZ__FnCalls!F97","v":"Jul 2017"},{"$f":"ZZZ__FnCalls!F98","v":"Aug 2017"},{"$f":"ZZZ__FnCalls!F99","v":"Sep 2017"},{"$f":"ZZZ__FnCalls!F100","v":"Oct 2017"},{"$f":"ZZZ__FnCalls!F101","v":"Nov 2017"},{"$f":"ZZZ__FnCalls!F102","v":"Dec 2017"},{"$f":"ZZZ__FnCalls!H91","v":"2017"},{"$f":"ZZZ__FnCalls!F103","v":"Jan 2018"},{"$f":"ZZZ__FnCalls!F104","v":"Feb 2018"},{"$f":"ZZZ__FnCalls!F105","v":"Mar 2018"},{"$f":"ZZZ__FnCalls!F106","v":"Apr 2018"},{"$f":"ZZZ__FnCalls!F107","v":"May 2018"},{"$f":"ZZZ__FnCalls!F108","v":"Jun 2018"},{"$f":"ZZZ__FnCalls!F109","v":"Jul 2018"},{"$f":"ZZZ__FnCalls!F110","v":"Aug 2018"},{"$f":"ZZZ__FnCalls!F111","v":"Sep 2018"},{"$f":"ZZZ__FnCalls!F112","v":"Oct 2018"},{"$f":"ZZZ__FnCalls!F113","v":"Nov 2018"},{"$f":"ZZZ__FnCalls!F114","v":"Dec 2018"},{"$f":"ZZZ__FnCalls!H103","v":"2018"},{"$f":"ZZZ__FnCalls!F115","v":"Jan 2019"},{"$f":"ZZZ__FnCalls!F116","v":"Feb 2019"},{"$f":"ZZZ__FnCalls!F117","v":"Mar 2019"},{"$f":"ZZZ__FnCalls!F118","v":"Apr 2019"},{"$f":"ZZZ__FnCalls!F119","v":"May 2019"},{"$f":"ZZZ__FnCalls!F120","v":"Jun 2019"},{"$f":"ZZZ__FnCalls!F121","v":"Jul 2019"},{"$f":"ZZZ__FnCalls!F122","v":"Aug 2019"},{"$f":"ZZZ__FnCalls!F123","v":"Sep 2019"},{"$f":"ZZZ__FnCalls!F124","v":"Oct 2019"},{"$f":"ZZZ__FnCalls!F125","v":"Nov 2019"},{"$f":"ZZZ__FnCalls!F126","v":"Dec 2019"},{"$f":"ZZZ__FnCalls!H115","v":"2019"},{"$f":"ZZZ__FnCalls!F127","v":"Jan 2020"},{"$f":"ZZZ__FnCalls!F128","v":"Feb 2020"},{"$f":"ZZZ__FnCalls!F129","v":"Mar 2020"},{"$f":"ZZZ__FnCalls!F130","v":"Apr 2020"},{"$f":"ZZZ__FnCalls!F131","v":"May 2020"},{"$f":"ZZZ__FnCalls!F132","v":"Jun 2020"},{"$f":"ZZZ__FnCalls!F133","v":"Jul 2020"},{"$f":"ZZZ__FnCalls!F134","v":"Aug 2020"},{"$f":"ZZZ__FnCalls!F135","v":"Sep 2020"},{"$f":"ZZZ__FnCalls!F136","v":"Oct 2020"},{"$f":"ZZZ__FnCalls!F137","v":"Nov 2020"},{"$f":"ZZZ__FnCalls!F138","v":"Dec 2020"},{"$f":"ZZZ__FnCalls!H127","v":"2020"}]
[{"$f":"Labels!B74","v":"Aggregate Demand Shock"},{"$f":"B13","v":{"v":-28712.816261575543,"d":"($28,713)"}},{"v":24384.413718131396,"d":"$24,384"},{"v":16210.58819672658,"d":"$16,211"},{"v":-7323.255715357175,"d":"($7,323)"},{"v":32511.96289862017,"d":"$32,512"},{"v":34417.97416890158,"d":"$34,418"},{"v":32348.874196227494,"d":"$32,349"},{"v":40843.43049231337,"d":"$40,843"},{"v":-7519.870182025462,"d":"($7,520)"},{"v":-22454.723559780447,"d":"($22,455)"},{"v":-2497.8263558694575,"d":"($2,498)"},{"v":-8691.869881669752,"d":"($8,692)"},{"$f":"SUM(B13:M13)","v":{"v":103516.88171464276,"d":"$103,517"}},{"$f":"O13","v":{"v":6303.89629923563,"d":"$6,304"}},{"v":37871.55742730813,"d":"$37,872"},{"v":34377.26653040209,"d":"$34,377"},{"v":25633.081041504753,"d":"$25,633"},{"v":12320.017735507192,"d":"$12,320"},{"v":31200.01230944094,"d":"$31,200"},{"v":-3878.1689956280766,"d":"($3,878)"},{"v":32531.59039330668,"d":"$32,532"},{"v":44412.00563381586,"d":"$44,412"},{"v":30083.140849055366,"d":"$30,083"},{"v":3533.123124234496,"d":"$3,533"},{"v":-47115.848307233755,"d":"($47,116)"},{"$f":"SUM(O13:Z13)","v":{"v":207271.67404094932,"d":"$207,272"}},{"$f":"AB13","v":{"v":-51539.13707810217,"d":"($51,539)"}},{"v":797.6983436095308,"d":"$798"},{"v":14915.200629333815,"d":"$14,915"},{"v":32621.93190663395,"d":"$32,622"},{"v":-18420.04101957844,"d":"($18,420)"},{"v":21543.043691351202,"d":"$21,543"},{"v":18892.9324354508,"d":"$18,893"},{"v":-34587.81386547832,"d":"($34,588)"},{"v":-7908.922950511182,"d":"($7,909)"},{"v":3279.12475140044,"d":"$3,279"},{"v":6110.516585482433,"d":"$6,111"},{"v":-17038.54957181261,"d":"($17,039)"},{"$f":"SUM(AB13:AM13)","v":{"v":-31334.01614222055,"d":"($31,334)"}},{"$f":"AO13","v":{"v":-31215.089096035397,"d":"($31,215)"}},{"v":-5936.705823783804,"d":"($5,937)"},{"v":28081.998037767684,"d":"$28,082"},{"v":25886.433155840477,"d":"$25,886"},{"v":51138.716652824376,"d":"$51,139"},{"v":-21394.963606161935,"d":"($21,395)"},{"v":-4207.641014078278,"d":"($4,208)"},{"v":-5474.046700900217,"d":"($5,474)"},{"v":-19655.84325125053,"d":"($19,656)"},{"v":-32008.7348901584,"d":"($32,009)"},{"v":-24456.693716251444,"d":"($24,457)"},{"v":-43973.16212987829,"d":"($43,973)"},{"$f":"SUM(AO13:AZ13)","v":{"v":-83215.73238206576,"d":"($83,216)"}},{"$f":"BB13","v":{"v":-13487.121241610548,"d":"($13,487)"}},{"v":-16054.001836086496,"d":"($16,054)"},{"v":14045.295649489743,"d":"$14,045"},{"v":-10441.504438274082,"d":"($10,442)"},{"v":13480.305912591013,"d":"$13,480"},{"v":34181.76345115971,"d":"$34,182"},{"v":-31045.753921049956,"d":"($31,046)"},{"v":-2555.5242747690986,"d":"($2,556)"},{"v":-18617.421352126225,"d":"($18,617)"},{"v":-41853.90856826383,"d":"($41,854)"},{"v":-16473.441968280564,"d":"($16,473)"},{"v":17470.405822767792,"d":"$17,470"},{"$f":"SUM(BB13:BM13)","v":{"v":-71350.90676445255,"d":"($71,351)"}},{"$f":"BO13","v":{"v":-18109.60834927943,"d":"($18,110)"}},{"v":-50775.36142783296,"d":"($50,775)"},{"v":18944.84856432048,"d":"$18,945"},{"v":17887.639773488776,"d":"$17,888"},{"v":34763.75185696135,"d":"$34,764"},{"v":41901.378626883634,"d":"$41,901"},{"v":29501.37201794414,"d":"$29,501"},{"v":-28349.962208732035,"d":"($28,350)"},{"v":42009.03827873556,"d":"$42,009"},{"v":-25149.050092337744,"d":"($25,149)"},{"v":-43217.70199018713,"d":"($43,218)"},{"v":-61878.85498249033,"d":"($61,879)"},{"$f":"SUM(BO13:BZ13)","v":{"v":-42472.50993252568,"d":"($42,473)"}},{"$f":"CB13","v":{"v":-5292.864834752163,"d":"($5,293)"}},{"v":22081.158740729352,"d":"$22,081"},{"v":26972.29980629384,"d":"$26,972"},{"v":-60176.09444180544,"d":"($60,176)"},{"v":-18055.661238080793,"d":"($18,056)"},{"v":24694.909868026756,"d":"$24,695"},{"v":-62614.9980540789,"d":"($62,615)"},{"v":-30640.20021277047,"d":"($30,640)"},{"v":60487.80243644492,"d":"$60,488"},{"v":53469.66587354425,"d":"$53,470"},{"v":-6812.3813603084745,"d":"($6,812)"},{"v":30864.98000954634,"d":"$30,865"},{"$f":"SUM(CB13:CM13)","v":{"v":34978.61659278922,"d":"$34,979"}},{"$f":"CO13","v":{"v":56991.22422686732,"d":"$56,991"}},{"v":-4959.429463857982,"d":"($4,959)"},{"v":17319.88892132498,"d":"$17,320"},{"v":24275.67840177374,"d":"$24,276"},{"v":2938.573325538889,"d":"$2,939"},{"v":-3724.049067682345,"d":"($3,724)"},{"v":30559.871636711658,"d":"$30,560"},{"v":-1663.364304173878,"d":"($1,663)"},{"v":-5102.738148148356,"d":"($5,103)"},{"v":-43417.461006184814,"d":"($43,417)"},{"v":-37433.30917625931,"d":"($37,433)"},{"v":15182.697679691732,"d":"$15,183"},{"$f":"SUM(CO13:CZ13)","v":{"v":50967.583025601634,"d":"$50,968"}},{"$f":"DB13","v":{"v":49099.58581839116,"d":"$49,100"}},{"v":34437.94189792042,"d":"$34,438"},{"v":5123.403080903844,"d":"$5,123"},{"v":14768.491866490705,"d":"$14,768"},{"v":9911.102503525646,"d":"$9,911"},{"v":-40461.17595572768,"d":"($40,461)"},{"v":-44578.61165961842,"d":"($44,579)"},{"v":3510.028230151854,"d":"$3,510"},{"v":-2141.6147152985586,"d":"($2,142)"},{"v":-45023.55396045691,"d":"($45,024)"},{"v":4961.053261021191,"d":"$4,961"},{"v":7125.455706158925,"d":"$7,125"},{"$f":"SUM(DB13:DM13)","v":{"v":-3267.8939265378367,"d":"($3,268)"}},{"$f":"DO13","v":{"v":-25590.238125985623,"d":"($25,590)"}},{"v":-2037.591164870638,"d":"($2,038)"},{"v":-3899.1925818989616,"d":"($3,899)"},{"v":-35682.21771793995,"d":"($35,682)"},{"v":11369.50272086124,"d":"$11,370"},{"v":-32689.123181298168,"d":"($32,689)"},{"v":-17093.328585503907,"d":"($17,093)"},{"v":24381.160292943863,"d":"$24,381"},{"v":62126.824615112164,"d":"$62,127"},{"v":-45368.22139190549,"d":"($45,368)"},{"v":-19769.278776911364,"d":"($19,769)"},{"v":-34477.88481247477,"d":"($34,478)"},{"$f":"SUM(DO13:DZ13)","v":{"v":-118729.5887098716,"d":"($118,730)"}},{"$f":"EB13","v":{"v":37717.955272784624,"d":"$37,718"}},{"v":-31225.39866433309,"d":"($31,225)"},{"v":-1051.5704407294131,"d":"($1,052)"},{"v":12065.280049744078,"d":"$12,065"},{"v":-29418.369522868994,"d":"($29,418)"},{"v":-57721.30150050924,"d":"($57,721)"},{"v":-49623.482768657035,"d":"($49,623)"},{"v":17113.668385677884,"d":"$17,114"},{"v":22424.778640778644,"d":"$22,425"},{"v":-1171.2755704572235,"d":"($1,171)"},{"v":34308.628095392785,"d":"$34,309"},{"v":29445.126701611258,"d":"$29,445"},{"$f":"SUM(EB13:EM13)","v":{"v":-17135.961321565705,"d":"($17,136)"}}]
[{"$f":"Labels!B78","v":"Output Shock"},{"$f":"B46","v":{"v":43585.001342937896,"d":"$43,585"}},{"v":53522.905202486196,"d":"$53,523"},{"v":-36401.56976303398,"d":"($36,402)"},{"v":-32008.566651794852,"d":"($32,009)"},{"v":-49734.03160362422,"d":"($49,734)"},{"v":-36724.046001809824,"d":"($36,724)"},{"v":28668.144618073395,"d":"$28,668"},{"v":17615.413271862708,"d":"$17,615"},{"v":-12729.858551303676,"d":"($12,730)"},{"v":-26335.763262660774,"d":"($26,336)"},{"v":-828.6437727413175,"d":"($829)"},{"v":15355.367419834247,"d":"$15,355"},{"$f":"SUM(B46:M46)","v":{"v":-36015.6477517742,"d":"($36,016)"}},{"$f":"O46","v":{"v":-261.6884824631251,"d":"($262)"}},{"v":36002.47940763905,"d":"$36,002"},{"v":16365.694905384225,"d":"$16,366"},{"v":60530.426507433905,"d":"$60,530"},{"v":-10279.203918343732,"d":"($10,279)"},{"v":32820.3998172778,"d":"$32,820"},{"v":-8710.669582588422,"d":"($8,711)"},{"v":24511.999361366597,"d":"$24,512"},{"v":-48141.91765820472,"d":"($48,142)"},{"v":-17220.905018889785,"d":"($17,221)"},{"v":28314.085202893657,"d":"$28,314"},{"v":21132.79511470133,"d":"$21,133"},{"$f":"SUM(O46:Z46)","v":{"v":135063.49565620677,"d":"$135,063"}},{"$f":"AB46","v":{"v":-5903.796448003298,"d":"($5,904)"}},{"v":32457.79372640605,"d":"$32,458"},{"v":28396.07088375615,"d":"$28,396"},{"v":547.538314787109,"d":"$548"},{"v":61420.210578363345,"d":"$61,420"},{"v":-9168.309509261173,"d":"($9,168)"},{"v":-3306.280550825184,"d":"($3,306)"},{"v":-28853.44702968888,"d":"($28,853)"},{"v":-26044.28778087472,"d":"($26,044)"},{"v":21115.36621715952,"d":"$21,115"},{"v":10101.018223289137,"d":"$10,101"},{"v":-29961.93205773884,"d":"($29,962)"},{"$f":"SUM(AB46:AM46)","v":{"v":50799.944567369224,"d":"$50,800"}},{"$f":"AO46","v":{"v":-31753.657688074793,"d":"($31,754)"}},{"v":-20628.20773270187,"d":"($20,628)"},{"v":-4349.032705963821,"d":"($4,349)"},{"v":-41103.75320340778,"d":"($41,104)"},{"v":-29395.76997785663,"d":"($29,396)"},{"v":-39008.657269122,"d":"($39,009)"},{"v":13494.244028054794,"d":"$13,494"},{"v":29596.927733434226,"d":"$29,597"},{"v":32310.2338959622,"d":"$32,310"},{"v":20393.646757092247,"d":"$20,394"},{"v":15944.237394572776,"d":"$15,944"},{"v":17508.8053709075,"d":"$17,509"},{"$f":"SUM(AO46:AZ46)","v":{"v":-36990.98339710316,"d":"($36,991)"}},{"$f":"BB46","v":{"v":-10778.486889016394,"d":"($10,778)"}},{"v":10769.985563669827,"d":"$10,770"},{"v":47256.93235275557,"d":"$47,257"},{"v":-318.5810934666251,"d":"($319)"},{"v":-26824.289010954875,"d":"($26,824)"},{"v":-7184.414662116715,"d":"($7,184)"},{"v":-24191.576909981908,"d":"($24,192)"},{"v":-39819.46163480417,"d":"($39,819)"},{"v":15353.864133541352,"d":"$15,354"},{"v":29334.096235377976,"d":"$29,334"},{"v":4825.515188879391,"d":"$4,826"},{"v":-48248.060549320355,"d":"($48,248)"},{"$f":"SUM(BB46:BM46)","v":{"v":-49824.477275436926,"d":"($49,824)"}},{"$f":"BO46","v":{"v":-31832.30779535016,"d":"($31,832)"}},{"v":-14374.558429976672,"d":"($14,375)"},{"v":-8298.31328218063,"d":"($8,298)"},{"v":49322.984963924086,"d":"$49,323"},{"v":43054.08312342463,"d":"$43,054"},{"v":-11313.738477550103,"d":"($11,314)"},{"v":-31384.357920046143,"d":"($31,384)"},{"v":-2472.8670340456583,"d":"($2,473)"},{"v":11340.78258565099,"d":"$11,341"},{"v":801.1680966302894,"d":"$801"},{"v":29463.18271199472,"d":"$29,463"},{"v":14449.506209902162,"d":"$14,450"},{"$f":"SUM(BO46:BZ46)","v":{"v":48755.564752377504,"d":"$48,756"}},{"$f":"CB46","v":{"v":-3439.2986675446446,"d":"($3,439)"}},{"v":-29074.948327288785,"d":"($29,075)"},{"v":17387.508535921977,"d":"$17,388"},{"v":2033.547081433094,"d":"$2,034"},{"v":-49117.07320287575,"d":"($49,117)"},{"v":-2337.5699673188838,"d":"($2,338)"},{"v":-50002.40528169318,"d":"($50,002)"},{"v":-52435.7380888399,"d":"($52,436)"},{"v":990.8351755789125,"d":"$991"},{"v":31092.177541123965,"d":"$31,092"},{"v":4640.743075459774,"d":"$4,641"},{"v":-45270.80501520305,"d":"($45,271)"},{"$f":"SUM(CB46:CM46)","v":{"v":-175533.02714124648,"d":"($175,533)"}},{"$f":"CO46","v":{"v":-15791.052741162082,"d":"($15,791)"}},{"v":18881.870182715367,"d":"$18,882"},{"v":-7363.838656335019,"d":"($7,364)"},{"v":6047.020906220197,"d":"$6,047"},{"v":47249.79413088712,"d":"$47,250"},{"v":2716.1882438747602,"d":"$2,716"},{"v":-7583.723009084729,"d":"($7,584)"},{"v":15457.942897397976,"d":"$15,458"},{"v":8924.138659881042,"d":"$8,924"},{"v":51424.74557425516,"d":"$51,425"},{"v":43841.06153130517,"d":"$43,841"},{"v":-205.07665274159865,"d":"($205)"},{"$f":"SUM(CO46:CZ46)","v":{"v":163599.07106721334,"d":"$163,599"}},{"$f":"DB46","v":{"v":-46321.00225655256,"d":"($46,321)"}},{"v":1681.509699118296,"d":"$1,682"},{"v":15433.34753052388,"d":"$15,433"},{"v":-53362.52101872177,"d":"($53,363)"},{"v":9626.57350103695,"d":"$9,627"},{"v":13521.606696483736,"d":"$13,522"},{"v":-38546.96468818576,"d":"($38,547)"},{"v":26256.77691510891,"d":"$26,257"},{"v":30679.636700720628,"d":"$30,680"},{"v":-51585.40726491019,"d":"($51,585)"},{"v":4001.302277189192,"d":"$4,001"},{"v":34847.3369900079,"d":"$34,847"},{"$f":"SUM(DB46:DM46)","v":{"v":-53767.8049181808,"d":"($53,768)"}},{"$f":"DO46","v":{"v":-17252.143575756156,"d":"($17,252)"}},{"v":32796.689817471415,"d":"$32,797"},{"v":25799.878450661978,"d":"$25,800"},{"v":-38071.646244227646,"d":"($38,072)"},{"v":47247.84831596071,"d":"$47,248"},{"v":-37524.57114057848,"d":"($37,525)"},{"v":5386.862893408849,"d":"$5,387"},{"v":-34617.24172907606,"d":"($34,617)"},{"v":34929.38323051087,"d":"$34,929"},{"v":54754.623357519326,"d":"$54,755"},{"v":-38854.95766640745,"d":"($38,855)"},{"v":30080.45853528951,"d":"$30,080"},{"$f":"SUM(DO46:DZ46)","v":{"v":64675.18424477688,"d":"$64,675"}},{"$f":"EB46","v":{"v":22310.49833911713,"d":"$22,310"}},{"v":-3431.2510193820567,"d":"($3,431)"},{"v":2100.7785724022865,"d":"$2,101"},{"v":24625.74693921208,"d":"$24,626"},{"v":28228.911650652535,"d":"$28,229"},{"v":1836.3331238541289,"d":"$1,836"},{"v":16486.731121567173,"d":"$16,487"},{"v":44179.68580302055,"d":"$44,180"},{"v":-34781.91548931662,"d":"($34,782)"},{"v":24695.313731907198,"d":"$24,695"},{"v":52197.41000410268,"d":"$52,197"},{"v":-14328.265238838452,"d":"($14,328)"},{"$f":"SUM(EB46:EM46)","v":{"v":164119.97753829864,"d":"$164,120"}}]

{"sheet":"Trial 8","index":11,"n_rows":61,"n_cols":144,"rows_kept":61,"merged":[[0,0,0,2],[1,0,1,2],[2,0,2,2],[3,0,3,2],[4,0,4,2]]}
[{"$f":"\"Equilibrium Economy with Shocks\"","v":"Equilibrium Economy with Shocks"}]
[{"$f":"\"Model: \"&Inputs!B8","v":"Model: Test Model"}]
[{"$f":"\"$ millions\"","v":"$ millions"}]
[{"$f":"\"Trial 8\"","v":"Trial 8"}]
[{"$f":"\"\"","v":""}]
[{"$f":"\"Demand\"","v":"Demand"}]
[{"$f":"\" \"","v":" "}]
[null,{"$f":"ZZZ__FnCalls!F7","v":"Jan 2010"},{"$f":"ZZZ__FnCalls!F8","v":"Feb 2010"},{"$f":"ZZZ__FnCalls!F9","v":"Mar 2010"},{"$f":"ZZZ__FnCalls!F10","v":"Apr 2010"},{"$f":"ZZZ__FnCalls!F11","v":"May 2010"},{"$f":"ZZZ__FnCalls!F12","v":"Jun 2010"},{"$f":"ZZZ__FnCalls!F13","v":"Jul 2010"},{"$f":"ZZZ__FnCalls!F14","v":"Aug 2010"},{"$f":"ZZZ__FnCalls!F15","v":"Sep 2010"},{"$f":"ZZZ__FnCalls!F16","v":"Oct 2010"},{"$f":"ZZZ__FnCalls!F17","v":"Nov 2010"},{"$f":"ZZZ__FnCalls!F18","v":"Dec 2010"},{"$f":"ZZZ__FnCalls!H7","v":"2010"},{"$f":"ZZZ__FnCalls!F19","v":"Jan 2011"},{"$f":"ZZZ__FnCalls!F20","v":"Feb 2011"},{"$f":"ZZZ__FnCalls!F21","v":"Mar 2011"},{"$f":"ZZZ__FnCalls!F22","v":"Apr 2011"},{"$f":"ZZZ__FnCalls!F23","v":"May 2011"},{"$f":"ZZZ__FnCalls!F24","v":"Jun 2011"},{"$f":"ZZZ__FnCalls!F25","v":"Jul 2011"},{"$f":"ZZZ__FnCalls!F26","v":"Aug 2011"},{"$f":"ZZZ__FnCalls!F27","v":"Sep 2011"},{"$f":"ZZZ__FnCalls!F28","v":"Oct 2011"},{"$f":"ZZZ__FnCalls!F29","v":"Nov 2011"},{"$f":"ZZZ__FnCalls!F30","v":"Dec 2011"},{"$f":"ZZZ__FnCalls!H19","v":"2011"},{"$f":"ZZZ__FnCalls!F31","v":"Jan 2012"},{"$f":"ZZZ__FnCalls!F32","v":"Feb 2012"},{"$f":"ZZZ__FnCalls!F33","v":"Mar 2012"},{"$f":"ZZZ__FnCalls!F34","v":"Apr 2012"},{"$f":"ZZZ__FnCalls!F35","v":"May 2012"},{"$f":"ZZZ__FnCalls!F36","v":"Jun 2012"},{"$f":"ZZZ__FnCalls!F37","v":"Jul 2012"},{"$f":"ZZZ__FnCalls!F38","v":"Aug 2012"},{"$f":"ZZZ__FnCalls!F39","v":"Sep 2012"},{"$f":"ZZZ__FnCalls!F40","v":"Oct 2012"},{"$f":"ZZZ__FnCalls!F41","v":"Nov 2012"},{"$f":"ZZZ__FnCalls!F42","v":"Dec 2012"},{"$f":"ZZZ__FnCalls!H31","v":"2012"},{"$f":"ZZZ__FnCalls!F43","v":"Jan 2013"},{"$f":"ZZZ__FnCalls!F44","v":"Feb 2013"},{"$f":"ZZZ__FnCalls!F45","v":"Mar 2013"},{"$f":"ZZZ__FnCalls!F46","v":"Apr 2013"},{"$f":"ZZZ__FnCalls!F47","v":"May 2013"},{"$f":"ZZZ__FnCalls!F48","v":"Jun 2013"},{"$f":"ZZZ__FnCalls!F49","v":"Jul 2013"},{"$f":"ZZZ__FnCalls!F50","v":"Aug 2013"},{"$f":"ZZZ__FnCalls!F51","v":"Sep 2013"},{"$f":"ZZZ__FnCalls!F52","v":"Oct 2013"},{"$f":"ZZZ__FnCalls!F53","v":"Nov 2013"},{"$f":"ZZZ__FnCalls!F54","v":"Dec 2013"},{"$f":"ZZZ__FnCalls!H43","v":"2013"},{"$f":"ZZZ__FnCalls!F55","v":"Jan 2014"},{"$f":"ZZZ__FnCalls!F56","v":"Feb 2014"},{"$f":"ZZZ__FnCalls!F57","v":"Mar 2014"},{"$f":"ZZZ__FnCalls!F58","v":"Apr 2014"},{"$f":"ZZZ__FnCalls!F59","v":"May 2014"},{"$f":"ZZZ__FnCalls!F60","v":"Jun 2014"},{"$f":"ZZZ__FnCalls!F61","v":"Jul 2014"},{"$f":"ZZZ__FnCalls!F62","v":"Aug 2014"},{"$f":"ZZZ__FnCalls!F63","v":"Sep 2014"},{"$f":"ZZZ__FnCalls!F64","v":"Oct 2014"},{"$f":"ZZZ__FnCalls!F65","v":"Nov 2014"},{"$f":"ZZZ__FnCalls!F66","v":"Dec 2014"},{"$f":"ZZZ__FnCalls!H55","v":"2014"},{"$f":"ZZZ__FnCalls!F67","v":"Jan 2015"},{"$f":"ZZZ__FnCalls!F68","v":"Feb 2015"},{"$f":"ZZZ__FnCalls!F69","v":"Mar 2015"},{"$f":"ZZZ__FnCalls!F70","v":"Apr 2015"},{"$f":"ZZZ__FnCalls!F71","v":"May 2015"},{"$f":"ZZZ__FnCalls!F72","v":"Jun 2015"},{"$f":"ZZZ__FnCalls!F73","v":"Jul 2015"},{"$f":"ZZZ__FnCalls!F74","v":"Aug 2015"},{"$f":"ZZZ__FnCalls!F75","v":"Sep 2015"},{"$f":"ZZZ__FnCalls!F76","v":"Oct 2015"},{"$f":"ZZZ__FnCalls!F77","v":"Nov 2015"},{"$f":"ZZZ__FnCalls!F78","v":"Dec 2015"},{"$f":"ZZZ__FnCalls!H67","v":"2015"},{"$f":"ZZZ__FnCalls!F79","v":"Jan 2016"},{"$f":"ZZZ__FnCalls!F80","v":"Feb 2016"},{"$f":"ZZZ__FnCalls!F81","v":"Mar 2016"},{"$f":"ZZZ__FnCalls!F82","v":"Apr 2016"},{"$f":"ZZZ__FnCalls!F83","v":"May 2016"},{"$f":"ZZZ__FnCalls!F84","v":"Jun 2016"},{"$f":"ZZZ__FnCalls!F85","v":"Jul 2016"},{"$f":"ZZZ__FnCalls!F86","v":"Aug 2016"},{"$f":"ZZZ__FnCalls!F87","v":"Sep 2016"},{"$f":"ZZZ__FnCalls!F88","v":"Oct 2016"},{"$f":"ZZZ__FnCalls!F89","v":"Nov 2016"},{"$f":"ZZZ__FnCalls!F90","v":"Dec 2016"},{"$f":"ZZZ__FnCalls!H79","v":"2016"},{"$f":"ZZZ__FnCalls!F91","v":"Jan 2017"},{"$f":"ZZZ__FnCalls!F92","v":"Feb 2017"},{"$f":"ZZZ__FnCalls!F93","v":"Mar 2017"},{"$f":"ZZZ__FnCalls!F94","v":"Apr 2017"},{"$f":"ZZZ__FnCalls!F95","v":"May 2017"},{"$f":"ZZZ__FnCalls!F96","v":"Jun 2017"},{"$f":"ZZZ__FnCalls!F97","v":"Jul 2017"},{"$f":"ZZZ__FnCalls!F98","v":"Aug 2017"},{"$f":"ZZZ__FnCalls!F99","v":"Sep 2017"},{"$f":"ZZZ__FnCalls!F100","v":"Oct 2017"},{"$f":"ZZZ__FnCalls!F101","v":"Nov 2017"},{"$f":"ZZZ__FnCalls!F102","v":"Dec 2017"},{"$f":"ZZZ__FnCalls!H91","v":"2017"},{"$f":"ZZZ__FnCalls!F103","v":"Jan 2018"},{"$f":"ZZZ__FnCalls!F104","v":"Feb 2018"},{"$f":"ZZZ__FnCalls!F105","v":"Mar 2018"},{"$f":"ZZZ__FnCalls!F106","v":"Apr 2018"},{"$f":"ZZZ__FnCalls!F107","v":"May 2018"},{"$f":"ZZZ__FnCalls!F108","v":"Jun 2018"},{"$f":"ZZZ__FnCalls!F109","v":"Jul 2018"},{"$f":"ZZZ__FnCalls!F110","v":"Aug 2018"},{"$f":"ZZZ__FnCalls!F111","v":"Sep 2018"},{"$f":"ZZZ__FnCalls!F112","v":"Oct 2018"},{"$f":"ZZZ__FnCalls!F113","v":"Nov 2018"},{"$f":"ZZZ__FnCalls!F114","v":"Dec 2018"},{"$f":"ZZZ__FnCalls!H103","v":"2018"},{"$f":"ZZZ__FnCalls!F115","v":"Jan 2019"},{"$f":"ZZZ__FnCalls!F116","v":"Feb 2019"},{"$f":"ZZZ__FnCalls!F117","v":"Mar 2019"},{"$f":"ZZZ__FnCalls!F118","v":"Apr 2019"},{"$f":"ZZZ__FnCalls!F119","v":"May 2019"},{"$f":"ZZZ__FnCalls!F120","v":"Jun 2019"},{"$f":"ZZZ__FnCalls!F121","v":"Jul 2019"},{"$f":"ZZZ__FnCalls!F122","v":"Aug 2019"},{"$f":"ZZZ__FnCalls!F123","v":"Sep 2019"},{"$f":"ZZZ__FnCalls!F124","v":"Oct 2019"},{"$f":"ZZZ__FnCalls!F125","v":"Nov 2019"},{"$f":"ZZZ__FnCalls!F126","v":"Dec 2019"},{"$f":"ZZZ__FnCalls!H115","v":"2019"},{"$f":"ZZZ__FnCalls!F127","v":"Jan 2020"},{"$f":"ZZZ__FnCalls!F128","v":"Feb 2020"},{"$f":"ZZZ__FnCalls!F129","v":"Mar 2020"},{"$f":"ZZZ__FnCalls!F130","v":"Apr 2020"},{"$f":"ZZZ__FnCalls!F131","v":"May 2020"},{"$f":"ZZZ__FnCalls!F132","v":"Jun 2020"},{"$f":"ZZZ__FnCalls!F133","v":"Jul 2020"},{"$f":"ZZZ__FnCalls!F134","v":"Aug 2020"},{"$f":"ZZZ__FnCalls!F135","v":"Sep 2020"},{"$f":"ZZZ__FnCalls!F136","v":"Oct 2020"},{"$f":"ZZZ__FnCalls!F137","v":"Nov 2020"},{"$f":"ZZZ__FnCalls!F138","v":"Dec 2020"},{"$f":"ZZZ__FnCalls!H127","v":"2020"}]
[{"$f":"Labels!B28","v":"Aggregate Demand"},{"$f":"B36+0+B13","v":{"v":915562.5586854157,"d":"$915,563"}},{"v":950558.61765309,"d":"$950,559"},{"v":961886.9664471752,"d":"$961,887"},{"v":972313.2918274034,"d":"$972,313"},{"v":1019382.8359965795,"d":"$1,019,383"},{"v":977816.1903937353,"d":"$977,816"},{"v":957873.4348234457,"d":"$957,873"},{"v":981861.7869959136,"d":"$981,862"},{"v":924315.4384833248,"d":"$924,315"},{"v":981822.1092904679,"d":"$981,822"},{"v":919718.1050798085,"d":"$919,718"},{"v":963552.893704421,"d":"$963,553"},{"$f":"SUM(B9:M9)","v":{"v":11526664.229380783,"d":"$11,526,664"}},{"$f":"O36+0+O13","v":{"v":1005825.3776617213,"d":"$1,005,825"}},{"v":929890.1820889483,"d":"$929,890"},{"v":905320.9909255588,"d":"$905,321"},{"v":968395.0120116676,"d":"$968,395"},{"v":956719.2020816483,"d":"$956,719"},{"v":1003971.6235284774,"d":"$1,003,972"},{"v":949969.7481243459,"d":"$949,970"},{"v":957599.081808231,"d":"$957,599"},{"v":997639.5744509137,"d":"$997,640"},{"v":926003.170108538,"d":"$926,003"},{"v":911729.4649511772,"d":"$911,729"},{"v":929522.7795653522,"d":"$929,523"},{"$f":"SUM(O9:Z9)","v":{"v":11442586.207306582,"d":"$11,442,586"}},{"$f":"AB36+0+AB13","v":{"v":950988.9287534105,"d":"$950,989"}},{"v":953423.8242478557,"d":"$953,424"},{"v":930258.6873137534,"d":"$930,259"},{"v":942177.0609666557,"d":"$942,177"},{"v":918403.6394832345,"d":"$918,404"},{"v":926627.1972220666,"d":"$926,627"},{"v":966508.1286656308,"d":"$966,508"},{"v":961308.0373649377,"d":"$961,308"},{"v":929754.8920507827,"d":"$929,755"},{"v":946931.8621635562,"d":"$946,932"},{"v":984588.6182822193,"d":"$984,589"},{"v":980755.0859797457,"d":"$980,755"},{"$f":"SUM(AB9:AM9)","v":{"v":11391725.962493848,"d":"$11,391,726"}},{"$f":"AO36+0+AO13","v":{"v":976093.5109280807,"d":"$976,094"}},{"v":947843.9066465284,"d":"$947,844"},{"v":945814.8232342938,"d":"$945,815"},{"v":909616.3241410118,"d":"$909,616"},{"v":909816.4472207079,"d":"$909,816"},{"v":931344.060385891,"d":"$931,344"},{"v":958882.9007210647,"d":"$958,883"},{"v":944208.5607075235,"d":"$944,209"},{"v":947256.6748458266,"d":"$947,257"},{"v":942633.0441600725,"d":"$942,633"},{"v":954643.0668757652,"d":"$954,643"},{"v":948012.9990700491,"d":"$948,013"},{"$f":"SUM(AO9:AZ9)","v":{"v":11316166.318936814,"d":"$11,316,166"}},{"$f":"BB36+0+BB13","v":{"v":924558.7769648223,"d":"$924,559"}},{"v":969319.6360925959,"d":"$969,320"},{"v":978648.9147707595,"d":"$978,649"},{"v":951235.8660369938,"d":"$951,236"},{"v":948911.8112317111,"d":"$948,912"},{"v":971762.6666531123,"d":"$971,763"},{"v":913102.844870721,"d":"$913,103"},{"v":935773.0702232876,"d":"$935,773"},{"v":955095.9954138589,"d":"$955,096"},{"v":952167.027845685,"d":"$952,167"},{"v":953343.0143376256,"d":"$953,343"},{"v":927760.8239392207,"d":"$927,761"},{"$f":"SUM(BB9:BM9)","v":{"v":11381680.448380394,"d":"$11,381,680"}},{"$f":"BO36+0+BO13","v":{"v":956498.7352147438,"d":"$956,499"}},{"v":974874.8312848267,"d":"$974,875"},{"v":961836.282665502,"d":"$961,836"},{"v":988541.6284762042,"d":"$988,542"},{"v":951039.360378769,"d":"$951,039"},{"v":934153.5267818966,"d":"$934,154"},{"v":946983.2550736079,"d":"$946,983"},{"v":974177.9538134125,"d":"$974,178"},{"v":959031.1326145125,"d":"$959,031"},{"v":957788.4813090012,"d":"$957,788"},{"v":921610.4691276446,"d":"$921,610"},{"v":888135.6915706479,"d":"$888,136"},{"$f":"SUM(BO9:BZ9)","v":{"v":11414671.348310767,"d":"$11,414,671"}},{"$f":"CB36+0+CB13","v":{"v":915802.4052433291,"d":"$915,802"}},{"v":930916.8984104865,"d":"$930,917"},{"v":895221.3101603,"d":"$895,221"},{"v":936421.2440242054,"d":"$936,421"},{"v":923360.5992579267,"d":"$923,361"},{"v":984729.194549623,"d":"$984,729"},{"v":930019.2149258364,"d":"$930,019"},{"v":905445.0592904945,"d":"$905,445"},{"v":944884.6070570071,"d":"$944,885"},{"v":954603.6827608639,"d":"$954,604"},{"v":893345.2523060349,"d":"$893,345"},{"v":965891.5948329954,"d":"$965,892"},{"$f":"SUM(CB9:CM9)","v":{"v":11180641.062819105,"d":"$11,180,641"}},{"$f":"CO36+0+CO13","v":{"v":967136.2250524762,"d":"$967,136"}},{"v":932735.574508615,"d":"$932,736"},{"v":945187.120767031,"d":"$945,187"},{"v":941889.4114090194,"d":"$941,889"},{"v":860535.8542379215,"d":"$860,536"},{"v":918695.9880263024,"d":"$918,696"},{"v":956639.5017825231,"d":"$956,640"},{"v":921970.641772358,"d":"$921,971"},{"v":864161.5425578287,"d":"$864,162"},{"v":958759.660138336,"d":"$958,760"},{"v":980310.1798478328,"d":"$980,310"},{"v":895321.8132715137,"d":"$895,322"},{"$f":"SUM(CO9:CZ9)","v":{"v":11143343.513371758,"d":"$11,143,344"}},{"$f":"DB36+0+DB13","v":{"v":978906.647203179,"d":"$978,907"}},{"v":899353.2168163684,"d":"$899,353"},{"v":884641.1342766733,"d":"$884,641"},{"v":908055.2362539815,"d":"$908,055"},{"v":920781.1576150046,"d":"$920,781"},{"v":898256.0568663205,"d":"$898,256"},{"v":912300.3386321815,"d":"$912,300"},{"v":879754.9157679608,"d":"$879,755"},{"v":970576.3048835535,"d":"$970,576"},{"v":901525.8770883839,"d":"$901,526"},{"v":963401.0960295126,"d":"$963,401"},{"v":906599.3152838154,"d":"$906,599"},{"$f":"SUM(DB9:DM9)","v":{"v":11024151.296716936,"d":"$11,024,151"}},{"$f":"DO36+0+DO13","v":{"v":868205.2507772925,"d":"$868,205"}},{"v":879164.6742292563,"d":"$879,165"},{"v":965344.0572935656,"d":"$965,344"},{"v":955376.4206844631,"d":"$955,376"},{"v":899272.6971101975,"d":"$899,273"},{"v":954625.7017919256,"d":"$954,626"},{"v":949196.4180503488,"d":"$949,196"},{"v":917210.5091951867,"d":"$917,211"},{"v":930568.8501836449,"d":"$930,569"},{"v":868080.477801892,"d":"$868,080"},{"v":923159.6736914449,"d":"$923,160"},{"v":910624.7418848239,"d":"$910,625"},{"$f":"SUM(DO9:DZ9)","v":{"v":11020829.47269404,"d":"$11,020,829"}},{"$f":"EB36+0+EB13","v":{"v":862134.7153947892,"d":"$862,135"}},{"v":864992.9970271043,"d":"$864,993"},{"v":926982.4189902658,"d":"$926,982"},{"v":890327.5261541941,"d":"$890,328"},{"v":884097.1657297518,"d":"$884,097"},{"v":910308.6023136881,"d":"$910,309"},{"v":946522.4274399632,"d":"$946,522"},{"v":879879.9058139385,"d":"$879,880"},{"v":910030.2990328632,"d":"$910,030"},{"v":858162.0948542017,"d":"$858,162"},{"v":879656.3001928964,"d":"$879,656"},{"v":950793.5258064192,"d":"$950,794"},{"$f":"SUM(EB9:EM9)","v":{"v":10763887.978750076,"d":"$10,763,888"}}]
[{"$f":"Labels!B31","v":"Long Expected Demand"},{"$f":"'(Other Computations)'!B8+'(Other Computations)'!B61*0/Inputs!B13/12","v":{"v":1166666.6666666667,"d":"$1,166,667"}},{"$f":"B10+'(Other Computations)'!B61*(B9-B10)/Inputs!B13/12","v":{"v":1166085.407157451,"d":"$1,166,085"}},{"$f":"C10+'(Other Computations)'!B61*(C9-C10)/Inputs!B13/12","v":{"v":1165586.5025521168,"d":"$1,165,587"}},{"$f":"D10+'(Other Computations)'!B61*(D9-D10)/Inputs!B13/12","v":{"v":1165114.9758481702,"d":"$1,165,115"}},{"$f":"E10+'(Other Computations)'!B61*(E9-E10)/Inputs!B13/12","v":{"v":1164668.6756536777,"d":"$1,164,669"}},{"$f":"F10+'(Other Computations)'!B61*(F9-F10)/Inputs!B13/12","v":{"v":1164332.3658396567,"d":"$1,164,332"}},{"$f":"G10+'(Other Computations)'!B61*(G9-G10)/Inputs!B13/12","v":{"v":1163900.6154335318,"d":"$1,163,901"}},{"$f":"H10+'(Other Computations)'!B61*(H9-H10)/Inputs!B13/12","v":{"v":1163423.700663601,"d":"$1,163,424"}},{"$f":"I10+'(Other Computations)'!B61*(I9-I10)/Inputs!B13/12","v":{"v":1163003.418456037,"d":"$1,163,003"}},{"$f":"J10+'(Other Computations)'!B61*(J9-J10)/Inputs!B13/12","v":{"v":1162450.899983878,"d":"$1,162,451"}},{"$f":"K10+'(Other Computations)'!B61*(K9-K10)/Inputs!B13/12","v":{"v":1162032.7777831987,"d":"$1,162,033"}},{"$f":"L10+'(Other Computations)'!B61*(L9-L10)/Inputs!B13/12","v":{"v":1161471.864188978,"d":"$1,161,472"}},{"$f":"SUM(B10:M10)","v":{"v":13968737.870226962,"d":"$13,968,738"}},{"$f":"M10+'(Other Computations)'!B61*(M9-M10)/Inputs!B13/12","v":{"v":1161013.7184239675,"d":"$1,161,014"}},{"$f":"O10+'(Other Computations)'!B61*(O9-O10)/Inputs!B13/12","v":{"v":1160654.4861536846,"d":"$1,160,654"}},{"$f":"P10+'(Other Computations)'!B61*(P9-P10)/Inputs!B13/12","v":{"v":1160120.3095239052,"d":"$1,160,120"}},{"$f":"Q10+'(Other Computations)'!B61*(Q9-Q10)/Inputs!B13/12","v":{"v":1159530.496286409,"d":"$1,159,530"}},{"$f":"R10+'(Other Computations)'!B61*(R9-R10)/Inputs!B13/12","v":{"v":1159088.053035773,"d":"$1,159,088"}},{"$f":"S10+'(Other Computations)'!B61*(S9-S10)/Inputs!B13/12","v":{"v":1158619.6066215273,"d":"$1,158,620"}},{"$f":"T10+'(Other Computations)'!B61*(T9-T10)/Inputs!B13/12","v":{"v":1158261.6251791823,"d":"$1,158,262"}},{"$f":"U10+'(Other Computations)'!B61*(U9-U10)/Inputs!B13/12","v":{"v":1157779.46805637,"d":"$1,157,779"}},{"$f":"V10+'(Other Computations)'!B61*(V9-V10)/Inputs!B13/12","v":{"v":1157316.0875326474,"d":"$1,157,316"}},{"$f":"W10+'(Other Computations)'!B61*(W9-W10)/Inputs!B13/12","v":{"v":1156946.465974588,"d":"$1,156,946"}},{"$f":"X10+'(Other Computations)'!B61*(X9-X10)/Inputs!B13/12","v":{"v":1156411.8750119351,"d":"$1,156,412"}},{"$f":"Y10+'(Other Computations)'!B61*(Y9-Y10)/Inputs!B13/12","v":{"v":1155845.4805442018,"d":"$1,155,845"}},{"$f":"SUM(O10:Z10)","v":{"v":13901587.672344191,"d":"$13,901,588"}},{"$f":"Z10+'(Other Computations)'!B61*(Z9-Z10)/Inputs!B13/12","v":{"v":1155321.585403047,"d":"$1,155,322"}},{"$f":"AB10+'(Other Computations)'!B61*(AB9-AB10)/Inputs!B13/12","v":{"v":1154848.593142284,"d":"$1,154,849"}},{"$f":"AC10+'(Other Computations)'!B61*(AC9-AC10)/Inputs!B13/12","v":{"v":1154382.3321031765,"d":"$1,154,382"}},{"$f":"AD10+'(Other Computations)'!B61*(AD9-AD10)/Inputs!B13/12","v":{"v":1153863.5273698675,"d":"$1,153,864"}},{"$f":"AE10+'(Other Computations)'!B61*(AE9-AE10)/Inputs!B13/12","v":{"v":1153373.5124013417,"d":"$1,153,374"}},{"$f":"AF10+'(Other Computations)'!B61*(AF9-AF10)/Inputs!B13/12","v":{"v":1152829.6006584757,"d":"$1,152,830"}},{"$f":"AG10+'(Other Computations)'!B61*(AG9-AG10)/Inputs!B13/12","v":{"v":1152305.9839838543,"d":"$1,152,306"}},{"$f":"AH10+'(Other Computations)'!B61*(AH9-AH10)/Inputs!B13/12","v":{"v":1151875.896355803,"d":"$1,151,876"}},{"$f":"AI10+'(Other Computations)'!B61*(AI9-AI10)/Inputs!B13/12","v":{"v":1151434.7670525834,"d":"$1,151,435"}},{"$f":"AJ10+'(Other Computations)'!B61*(AJ9-AJ10)/Inputs!B13/12","v":{"v":1150921.619193783,"d":"$1,150,922"}},{"$f":"AK10+'(Other Computations)'!B61*(AK9-AK10)/Inputs!B13/12","v":{"v":1150449.420682139,"d":"$1,150,449"}},{"$f":"AL10+'(Other Computations)'!B61*(AL9-AL10)/Inputs!B13/12","v":{"v":1150065.4836395467,"d":"$1,150,065"}},{"$f":"SUM(AB10:AM10)","v":{"v":13831672.3219859,"d":"$13,831,672"}},{"$f":"AM10+'(Other Computations)'!B61*(AM9-AM10)/Inputs!B13/12","v":{"v":1149673.5614227415,"d":"$1,149,674"}},{"$f":"AO10+'(Other Computations)'!B61*(AO9-AO10)/Inputs!B13/12","v":{"v":1149271.7557503001,"d":"$1,149,272"}},{"$f":"AP10+'(Other Computations)'!B61*(AP9-AP10)/Inputs!B13/12","v":{"v":1148805.4875810784,"d":"$1,148,805"}},{"$f":"AQ10+'(Other Computations)'!B61*(AQ9-AQ10)/Inputs!B13/12","v":{"v":1148335.6017839795,"d":"$1,148,336"}},{"$f":"AR10+'(Other Computations)'!B61*(AR9-AR10)/Inputs!B13/12","v":{"v":1147783.0108635097,"d":"$1,147,783"}},{"$f":"AS10+'(Other Computations)'!B61*(AS9-AS10)/Inputs!B13/12","v":{"v":1147232.1623365588,"d":"$1,147,232"}},{"$f":"AT10+'(Other Computations)'!B61*(AT9-AT10)/Inputs!B13/12","v":{"v":1146732.4213598212,"d":"$1,146,732"}},{"$f":"AU10+'(Other Computations)'!B61*(AU9-AU10)/Inputs!B13/12","v":{"v":1146297.5845064907,"d":"$1,146,298"}},{"$f":"AV10+'(Other Computations)'!B61*(AV9-AV10)/Inputs!B13/12","v":{"v":1145829.7858402894,"d":"$1,145,830"}},{"$f":"AW10+'(Other Computations)'!B61*(AW9-AW10)/Inputs!B13/12","v":{"v":1145370.1258611355,"d":"$1,145,370"}},{"$f":"AX10+'(Other Computations)'!B61*(AX9-AX10)/Inputs!B13/12","v":{"v":1144900.8270609016,"d":"$1,144,901"}},{"$f":"AY10+'(Other Computations)'!B61*(AY9-AY10)/Inputs!B13/12","v":{"v":1144460.4155789914,"d":"$1,144,460"}},{"$f":"SUM(AO10:AZ10)","v":{"v":13764692.7399458,"d":"$13,764,693"}},{"$f":"AZ10+'(Other Computations)'!B61*(AZ9-AZ10)/Inputs!B13/12","v":{"v":1144005.6761889243,"d":"$1,144,006"}},{"$f":"BB10+'(Other Computations)'!B61*(BB9-BB10)/Inputs!B13/12","v":{"v":1143497.6972555353,"d":"$1,143,498"}},{"$f":"BC10+'(Other Computations)'!B61*(BC9-BC10)/Inputs!B13/12","v":{"v":1143094.5072991396,"d":"$1,143,095"}},{"$f":"BD10+'(Other Computations)'!B61*(BD9-BD10)/Inputs!B13/12","v":{"v":1142713.846205324,"d":"$1,142,714"}},{"$f":"BE10+'(Other Computations)'!B61*(BE9-BE10)/Inputs!B13/12","v":{"v":1142270.6101401194,"d":"$1,142,271"}},{"$f":"BF10+'(Other Computations)'!B61*(BF9-BF10)/Inputs!B13/12","v":{"v":1141823.0203278314,"d":"$1,141,823"}},{"$f":"BG10+'(Other Computations)'!B61*(BG9-BG10)/Inputs!B13/12","v":{"v":1141429.3621017325,"d":"$1,141,429"}},{"$f":"BH10+'(Other Computations)'!B61*(BH9-BH10)/Inputs!B13/12","v":{"v":1140900.828497031,"d":"$1,140,901"}},{"$f":"BI10+'(Other Computations)'!B61*(BI9-BI10)/Inputs!B13/12","v":{"v":1140425.9957232492,"d":"$1,140,426"}},{"$f":"BJ10+'(Other Computations)'!B61*(BJ9-BJ10)/Inputs!B13/12","v":{"v":1139996.9910929033,"d":"$1,139,997"}},{"$f":"BK10+'(Other Computations)'!B61*(BK9-BK10)/Inputs!B13/12","v":{"v":1139562.1995113124,"d":"$1,139,562"}},{"$f":"BL10+'(Other Computations)'!B61*(BL9-BL10)/Inputs!B13/12","v":{"v":1139131.1365826696,"d":"$1,139,131"}},{"$f":"SUM(BB10:BM10)","v":{"v":13698851.870925771,"d":"$13,698,852"}},{"$f":"BM10+'(Other Computations)'!B61*(BM9-BM10)/Inputs!B13/12","v":{"v":1138641.8534515505,"d":"$1,138,642"}},{"$f":"BO10+'(Other Computations)'!B61*(BO9-BO10)/Inputs!B13/12","v":{"v":1138220.2258630393,"d":"$1,138,220"}},{"$f":"BP10+'(Other Computations)'!B61*(BP9-BP10)/Inputs!B13/12","v":{"v":1137842.111523738,"d":"$1,137,842"}},{"$f":"BQ10+'(Other Computations)'!B61*(BQ9-BQ10)/Inputs!B13/12","v":{"v":1137434.690623603,"d":"$1,137,435"}},{"$f":"BR10+'(Other Computations)'!B61*(BR9-BR10)/Inputs!B13/12","v":{"v":1137090.030757521,"d":"$1,137,090"}},{"$f":"BS10+'(Other Computations)'!B61*(BS9-BS10)/Inputs!B13/12","v":{"v":1136659.3579094221,"d":"$1,136,659"}},{"$f":"BT10+'(Other Computations)'!B61*(BT9-BT10)/Inputs!B13/12","v":{"v":1136190.5944114418,"d":"$1,136,191"}},{"$f":"BU10+'(Other Computations)'!B61*(BU9-BU10)/Inputs!B13/12","v":{"v":1135752.6144592708,"d":"$1,135,753"}},{"$f":"BV10+'(Other Computations)'!B61*(BV9-BV10)/Inputs!B13/12","v":{"v":1135378.5990411092,"d":"$1,135,379"}},{"$f":"BW10+'(Other Computations)'!B61*(BW9-BW10)/Inputs!B13/12","v":{"v":1134970.3873132698,"d":"$1,134,970"}},{"$f":"BX10+'(Other Computations)'!B61*(BX9-BX10)/Inputs!B13/12","v":{"v":1134560.244012334,"d":"$1,134,560"}},{"$f":"BY10+'(Other Computations)'!B61*(BY9-BY10)/Inputs!B13/12","v":{"v":1134067.3047186194,"d":"$1,134,067"}},{"$f":"SUM(BO10:BZ10)","v":{"v":13636808.014084918,"d":"$13,636,808"}},{"$f":"BZ10+'(Other Computations)'!B61*(BZ9-BZ10)/Inputs!B13/12","v":{"v":1133498.0185770732,"d":"$1,133,498"}},{"$f":"CB10+'(Other Computations)'!B61*(CB9-CB10)/Inputs!B13/12","v":{"v":1132994.093546208,"d":"$1,132,994"}},{"$f":"CC10+'(Other Computations)'!B61*(CC9-CC10)/Inputs!B13/12","v":{"v":1132526.3222611716,"d":"$1,132,526"}},{"$f":"CD10+'(Other Computations)'!B61*(CD9-CD10)/Inputs!B13/12","v":{"v":1131977.0051035308,"d":"$1,131,977"}},{"$f":"CE10+'(Other Computations)'!B61*(CE9-CE10)/Inputs!B13/12","v":{"v":1131524.329730662,"d":"$1,131,524"}},{"$f":"CF10+'(Other Computations)'!B61*(CF9-CF10)/Inputs!B13/12","v":{"v":1131042.4692434566,"d":"$1,131,042"}},{"$f":"CG10+'(Other Computations)'!B61*(CG9-CG10)/Inputs!B13/12","v":{"v":1130703.7811075912,"d":"$1,130,704"}},{"$f":"CH10+'(Other Computations)'!B61*(CH9-CH10)/Inputs!B13/12","v":{"v":1130239.233500689,"d":"$1,130,239"}},{"$f":"CI10+'(Other Computations)'!B61*(CI9-CI10)/Inputs!B13/12","v":{"v":1129718.8766159432,"d":"$1,129,719"}},{"$f":"CJ10+'(Other Computations)'!B61*(CJ9-CJ10)/Inputs!B13/12","v":{"v":1129291.0195104827,"d":"$1,129,291"}},{"$f":"CK10+'(Other Computations)'!B61*(CK9-CK10)/Inputs!B13/12","v":{"v":1128886.6506754141,"d":"$1,128,887"}},{"$f":"CL10+'(Other Computations)'!B61*(CL9-CL10)/Inputs!B13/12","v":{"v":1128341.4159569666,"d":"$1,128,341"}},{"$f":"SUM(CB10:CM10)","v":{"v":13570743.21582919,"d":"$13,570,743"}},{"$f":"CM10+'(Other Computations)'!B61*(CM9-CM10)/Inputs!B13/12","v":{"v":1127965.3747043647,"d":"$1,127,965"}},{"$f":"CO10+'(Other Computations)'!B61*(CO9-CO10)/Inputs!B13/12","v":{"v":1127593.0850060964,"d":"$1,127,593"}},{"$f":"CP10+'(Other Computations)'!B61*(CP9-CP10)/Inputs!B13/12","v":{"v":1127142.0259540188,"d":"$1,127,142"}},{"$f":"CQ10+'(Other Computations)'!B61*(CQ9-CQ10)/Inputs!B13/12","v":{"v":1126720.8340438637,"d":"$1,126,721"}},{"$f":"CR10+'(Other Computations)'!B61*(CR9-CR10)/Inputs!B13/12","v":{"v":1126292.9835285053,"d":"$1,126,293"}},{"$f":"CS10+'(Other Computations)'!B61*(CS9-CS10)/Inputs!B13/12","v":{"v":1125677.8049884809,"d":"$1,125,678"}},{"$f":"CT10+'(Other Computations)'!B61*(CT9-CT10)/Inputs!B13/12","v":{"v":1125198.6804121796,"d":"$1,125,199"}},{"$f":"CU10+'(Other Computations)'!B61*(CU9-CU10)/Inputs!B13/12","v":{"v":1124808.4971283146,"d":"$1,124,808"}},{"$f":"CV10+'(Other Computations)'!B61*(CV9-CV10)/Inputs!B13/12","v":{"v":1124338.9650557314,"d":"$1,124,339"}},{"$f":"CW10+'(Other Computations)'!B61*(CW9-CW10)/Inputs!B13/12","v":{"v":1123736.7025036528,"d":"$1,123,737"}},{"$f":"CX10+'(Other Computations)'!B61*(CX9-CX10)/Inputs!B13/12","v":{"v":1123354.8112018812,"d":"$1,123,355"}},{"$f":"CY10+'(Other Computations)'!B61*(CY9-CY10)/Inputs!B13/12","v":{"v":1123023.689370043,"d":"$1,123,024"}},{"$f":"SUM(CO10:CZ10)","v":{"v":13505853.453897135,"d":"$13,505,853"}},{"$f":"CZ10+'(Other Computations)'!B61*(CZ9-CZ10)/Inputs!B13/12","v":{"v":1122496.6016938891,"d":"$1,122,497"}},{"$f":"DB10+'(Other Computations)'!B61*(DB9-DB10)/Inputs!B13/12","v":{"v":1122164.2175399754,"d":"$1,122,164"}},{"$f":"DC10+'(Other Computations)'!B61*(DC9-DC10)/Inputs!B13/12","v":{"v":1121648.4513345966,"d":"$1,121,648"}},{"$f":"DD10+'(Other Computations)'!B61*(DD9-DD10)/Inputs!B13/12","v":{"v":1121099.8232858514,"d":"$1,121,100"}},{"$f":"DE10+'(Other Computations)'!B61*(DE9-DE10)/Inputs!B13/12","v":{"v":1120606.664519574,"d":"$1,120,607"}},{"$f":"DF10+'(Other Computations)'!B61*(DF9-DF10)/Inputs!B13/12","v":{"v":1120144.1054758134,"d":"$1,120,144"}},{"$f":"DG10+'(Other Computations)'!B61*(DG9-DG10)/Inputs!B13/12","v":{"v":1119630.4757336618,"d":"$1,119,630"}},{"$f":"DH10+'(Other Computations)'!B61*(DH9-DH10)/Inputs!B13/12","v":{"v":1119150.5448607416,"d":"$1,119,151"}},{"$f":"DI10+'(Other Computations)'!B61*(DI9-DI10)/Inputs!B13/12","v":{"v":1118596.3883119158,"d":"$1,118,596"}},{"$f":"DJ10+'(Other Computations)'!B61*(DJ9-DJ10)/Inputs!B13/12","v":{"v":1118253.7492299057,"d":"$1,118,254"}},{"$f":"DK10+'(Other Computations)'!B61*(DK9-DK10)/Inputs!B13/12","v":{"v":1117752.0643406892,"d":"$1,117,752"}},{"$f":"DL10+'(Other Computations)'!B61*(DL9-DL10)/Inputs!B13/12","v":{"v":1117394.7704325614,"d":"$1,117,395"}},{"$f":"SUM(DB10:DM10)","v":{"v":13438937.856759176,"d":"$13,438,938"}},{"$f":"DM10+'(Other Computations)'!B61*(DM9-DM10)/Inputs!B13/12","v":{"v":1116906.8179900874,"d":"$1,116,907"}},{"$f":"DO10+'(Other Computations)'!B61*(DO9-DO10)/Inputs!B13/12","v":{"v":1116331.1199178356,"d":"$1,116,331"}},{"$f":"DP10+'(Other Computations)'!B61*(DP9-DP10)/Inputs!B13/12","v":{"v":1115782.1235157787,"d":"$1,115,782"}},{"$f":"DQ10+'(Other Computations)'!B61*(DQ9-DQ10)/Inputs!B13/12","v":{"v":1115433.8872513755,"d":"$1,115,434"}},{"$f":"DR10+'(Other Computations)'!B61*(DR9-DR10)/Inputs!B13/12","v":{"v":1115063.3838565447,"d":"$1,115,063"}},{"$f":"DS10+'(Other Computations)'!B61*(DS9-DS10)/Inputs!B13/12","v":{"v":1114563.8683779652,"d":"$1,114,564"}},{"$f":"DT10+'(Other Computations)'!B61*(DT9-DT10)/Inputs!B13/12","v":{"v":1114193.6411404975,"d":"$1,114,194"}},{"$f":"DU10+'(Other Computations)'!B61*(DU9-DU10)/Inputs!B13/12","v":{"v":1113811.7031240852,"d":"$1,113,812"}},{"$f":"DV10+'(Other Computations)'!B61*(DV9-DV10)/Inputs!B13/12","v":{"v":1113356.6077677682,"d":"$1,113,357"}},{"$f":"DW10+'(Other Computations)'!B61*(DW9-DW10)/Inputs!B13/12","v":{"v":1112933.4879585458,"d":"$1,112,933"}},{"$f":"DX10+'(Other Computations)'!B61*(DX9-DX10)/Inputs!B13/12","v":{"v":1112366.698583183,"d":"$1,112,367"}},{"$f":"DY10+'(Other Computations)'!B61*(DY9-DY10)/Inputs!B13/12","v":{"v":1111928.7193588966,"d":"$1,111,929"}},{"$f":"SUM(DO10:DZ10)","v":{"v":13372672.058842562,"d":"$13,372,672"}},{"$f":"DZ10+'(Other Computations)'!B61*(DZ9-DZ10)/Inputs!B13/12","v":{"v":1111462.7379295584,"d":"$1,111,463"}},{"$f":"EB10+'(Other Computations)'!B61*(EB9-EB10)/Inputs!B13/12","v":{"v":1110885.5897292465,"d":"$1,110,886"}},{"$f":"EC10+'(Other Computations)'!B61*(EC9-EC10)/Inputs!B13/12","v":{"v":1110316.3939128064,"d":"$1,110,316"}},{"$f":"ED10+'(Other Computations)'!B61*(ED9-ED10)/Inputs!B13/12","v":{"v":1109892.0097115969,"d":"$1,109,892"}},{"$f":"EE10+'(Other Computations)'!B61*(EE9-EE10)/Inputs!B13/12","v":{"v":1109383.758592251,"d":"$1,109,384"}},{"$f":"EF10+'(Other Computations)'!B61*(EF9-EF10)/Inputs!B13/12","v":{"v":1108862.2618495137,"d":"$1,108,862"}},{"$f":"EG10+'(Other Computations)'!B61*(EG9-EG10)/Inputs!B13/12","v":{"v":1108402.6468968845,"d":"$1,108,403"}},{"$f":"EH10+'(Other Computations)'!B61*(EH9-EH10)/Inputs!B13/12","v":{"v":1108027.9241666603,"d":"$1,108,028"}},{"$f":"EI10+'(Other Computations)'!B61*(EI9-EI10)/Inputs!B13/12","v":{"v":1107499.8037538067,"d":"$1,107,500"}},{"$f":"EJ10+'(Other Computations)'!B61*(EJ9-EJ10)/Inputs!B13/12","v":{"v":1107042.6984188044,"d":"$1,107,043"}},{"$f":"EK10+'(Other Computations)'!B61*(EK9-EK10)/Inputs!B13/12","v":{"v":1106466.585910553,"d":"$1,106,467"}},{"$f":"EL10+'(Other Computations)'!B61*(EL9-EL10)/Inputs!B13/12","v":{"v":1105941.5621010214,"d":"$1,105,942"}},{"$f":"SUM(EB10:EM10)","v":{"v":13304183.972972704,"d":"$13,304,184"}}]
[{"$f":"Labels!B34","v":"Short Expected Demand"},{"$f":"'(Other Computations)'!B8+'(Other Computations)'!B61*0/Inputs!B14/12","v":{"v":1166666.6666666667,"d":"$1,166,667"}},{"$f":"B11+'(Other Computations)'!B61*(B9-B11)/Inputs!B14/12","v":{"v":1163179.1096113715,"d":"$1,163,179"}},{"$f":"C11+'(Other Computations)'!B61*(C9-C11)/Inputs!B14/12","v":{"v":1160226.047223062,"d":"$1,160,226"}},{"$f":"D11+'(Other Computations)'!B61*(D9-D11)/Inputs!B14/12","v":{"v":1157471.3377678413,"d":"$1,157,471"}},{"$f":"E11+'(Other Computations)'!B61*(E9-E11)/Inputs!B14/12","v":{"v":1154899.6982408909,"d":"$1,154,900"}},{"$f":"F11+'(Other Computations)'!B61*(F9-F11)/Inputs!B14/12","v":{"v":1153017.5195986088,"d":"$1,153,018"}},{"$f":"G11+'(Other Computations)'!B61*(G9-G11)/Inputs!B14/12","v":{"v":1150584.1678040966,"d":"$1,150,584"}},{"$f":"H11+'(Other Computations)'!B61*(H9-H11)/Inputs!B14/12","v":{"v":1147907.629846032,"d":"$1,147,908"}},{"$f":"I11+'(Other Computations)'!B61*(I9-I11)/Inputs!B14/12","v":{"v":1145601.4375842249,"d":"$1,145,601"}},{"$f":"J11+'(Other Computations)'!B61*(J9-J11)/Inputs!B14/12","v":{"v":1142528.0209300457,"d":"$1,142,528"}},{"$f":"K11+'(Other Computations)'!B61*(K9-K11)/Inputs!B14/12","v":{"v":1140295.994379496,"d":"$1,140,296"}},{"$f":"L11+'(Other Computations)'!B61*(L9-L11)/Inputs!B14/12","v":{"v":1137232.412583667,"d":"$1,137,232"}},{"$f":"SUM(B11:M11)","v":{"v":13819610.042236006,"d":"$13,819,610"}},{"$f":"M11+'(Other Computations)'!B61*(M9-M11)/Inputs!B14/12","v":{"v":1134820.1970436776,"d":"$1,134,820"}},{"$f":"O11+'(Other Computations)'!B61*(O9-O11)/Inputs!B14/12","v":{"v":1133028.6023300393,"d":"$1,133,029"}},{"$f":"P11+'(Other Computations)'!B61*(P9-P11)/Inputs!B14/12","v":{"v":1130207.2353822463,"d":"$1,130,207"}},{"$f":"Q11+'(Other Computations)'!B61*(Q9-Q11)/Inputs!B14/12","v":{"v":1127083.815320348,"d":"$1,127,084"}},{"$f":"R11+'(Other Computations)'!B61*(R9-R11)/Inputs!B14/12","v":{"v":1124879.804163283,"d":"$1,124,880"}},{"$f":"S11+'(Other Computations)'!B61*(S9-S11)/Inputs!B14/12","v":{"v":1122544.2402454824,"d":"$1,122,544"}},{"$f":"T11+'(Other Computations)'!B61*(T9-T11)/Inputs!B14/12","v":{"v":1120897.398346635,"d":"$1,120,897"}},{"$f":"U11+'(Other Computations)'!B61*(U9-U11)/Inputs!B14/12","v":{"v":1118523.4032046588,"d":"$1,118,523"}},{"$f":"V11+'(Other Computations)'!B61*(V9-V11)/Inputs!B14/12","v":{"v":1116288.343185264,"d":"$1,116,288"}},{"$f":"W11+'(Other Computations)'!B61*(W9-W11)/Inputs!B14/12","v":{"v":1114640.443619509,"d":"$1,114,640"}},{"$f":"X11+'(Other Computations)'!B61*(X9-X11)/Inputs!B14/12","v":{"v":1112020.4814874122,"d":"$1,112,020"}},{"$f":"Y11+'(Other Computations)'!B61*(Y9-Y11)/Inputs!B14/12","v":{"v":1109238.6618132978,"d":"$1,109,239"}},{"$f":"SUM(O11:Z11)","v":{"v":13464172.626141854,"d":"$13,464,173"}},{"$f":"Z11+'(Other Computations)'!B61*(Z9-Z11)/Inputs!B14/12","v":{"v":1106742.6078931873,"d":"$1,106,743"}},{"$f":"AB11+'(Other Computations)'!B61*(AB9-AB11)/Inputs!B14/12","v":{"v":1104579.3623495793,"d":"$1,104,579"}},{"$f":"AC11+'(Other Computations)'!B61*(AC9-AC11)/Inputs!B14/12","v":{"v":1102479.9798759443,"d":"$1,102,480"}},{"$f":"AD11+'(Other Computations)'!B61*(AD9-AD11)/Inputs!B14/12","v":{"v":1100088.0174792472,"d":"$1,100,088"}},{"$f":"AE11+'(Other Computations)'!B61*(AE9-AE11)/Inputs!B14/12","v":{"v":1097894.8097499057,"d":"$1,097,895"}},{"$f":"AF11+'(Other Computations)'!B61*(AF9-AF11)/Inputs!B14/12","v":{"v":1095401.8768295352,"d":"$1,095,402"}},{"$f":"AG11+'(Other Computations)'!B61*(AG9-AG11)/Inputs!B14/12","v":{"v":1093057.7840572093,"d":"$1,093,058"}},{"$f":"AH11+'(Other Computations)'!B61*(AH9-AH11)/Inputs!B14/12","v":{"v":1091300.1499545486,"d":"$1,091,300"}},{"$f":"AI11+'(Other Computations)'!B61*(AI9-AI11)/Inputs!B14/12","v":{"v":1089494.7039463595,"d":"$1,089,495"}},{"$f":"AJ11+'(Other Computations)'!B61*(AJ9-AJ11)/Inputs!B14/12","v":{"v":1087276.0954478097,"d":"$1,087,276"}},{"$f":"AK11+'(Other Computations)'!B61*(AK9-AK11)/Inputs!B14/12","v":{"v":1085326.8699855283,"d":"$1,085,327"}},{"$f":"AL11+'(Other Computations)'!B61*(AL9-AL11)/Inputs!B14/12","v":{"v":1083927.72760076,"d":"$1,083,928"}},{"$f":"SUM(AB11:AM11)","v":{"v":13137569.985169616,"d":"$13,137,570"}},{"$f":"AM11+'(Other Computations)'!B61*(AM9-AM11)/Inputs!B14/12","v":{"v":1082494.7742449127,"d":"$1,082,495"}},{"$f":"AO11+'(Other Computations)'!B61*(AO9-AO11)/Inputs!B14/12","v":{"v":1081016.9789210677,"d":"$1,081,017"}},{"$f":"AP11+'(Other Computations)'!B61*(AP9-AP11)/Inputs!B14/12","v":{"v":1079167.3529172547,"d":"$1,079,167"}},{"$f":"AQ11+'(Other Computations)'!B61*(AQ9-AQ11)/Inputs!B14/12","v":{"v":1077315.2344494357,"d":"$1,077,315"}},{"$f":"AR11+'(Other Computations)'!B61*(AR9-AR11)/Inputs!B14/12","v":{"v":1074986.0829173743,"d":"$1,074,986"}},{"$f":"AS11+'(Other Computations)'!B61*(AS9-AS11)/Inputs!B14/12","v":{"v":1072692.060199365,"d":"$1,072,692"}},{"$f":"AT11+'(Other Computations)'!B61*(AT9-AT11)/Inputs!B14/12","v":{"v":1070728.893535289,"d":"$1,070,729"}},{"$f":"AU11+'(Other Computations)'!B61*(AU9-AU11)/Inputs!B14/12","v":{"v":1069175.4769684249,"d":"$1,069,175"}},{"$f":"AV11+'(Other Computations)'!B61*(AV9-AV11)/Inputs!B14/12","v":{"v":1067439.8253536902,"d":"$1,067,440"}},{"$f":"AW11+'(Other Computations)'!B61*(AW9-AW11)/Inputs!B14/12","v":{"v":1065770.61492997,"d":"$1,065,771"}},{"$f":"AX11+'(Other Computations)'!B61*(AX9-AX11)/Inputs!B14/12","v":{"v":1064060.370891499,"d":"$1,064,060"}},{"$f":"AY11+'(Other Computations)'!B61*(AY9-AY11)/Inputs!B14/12","v":{"v":1062540.6861135028,"d":"$1,062,541"}},{"$f":"SUM(AO11:AZ11)","v":{"v":12867388.351441786,"d":"$12,867,388"}},{"$f":"AZ11+'(Other Computations)'!B61*(AZ9-AZ11)/Inputs!B14/12","v":{"v":1060950.0237934547,"d":"$1,060,950"}},{"$f":"BB11+'(Other Computations)'!B61*(BB9-BB11)/Inputs!B14/12","v":{"v":1059055.700920835,"d":"$1,059,056"}},{"$f":"BC11+'(Other Computations)'!B61*(BC9-BC11)/Inputs!B14/12","v":{"v":1057809.3666871095,"d":"$1,057,809"}},{"$f":"BD11+'(Other Computations)'!B61*(BD9-BD11)/Inputs!B14/12","v":{"v":1056709.915966049,"d":"$1,056,710"}},{"$f":"BE11+'(Other Computations)'!B61*(BE9-BE11)/Inputs!B14/12","v":{"v":1055244.9986059233,"d":"$1,055,245"}},{"$f":"BF11+'(Other Computations)'!B61*(BF9-BF11)/Inputs!B14/12","v":{"v":1053768.1487812814,"d":"$1,053,768"}},{"$f":"BG11+'(Other Computations)'!B61*(BG9-BG11)/Inputs!B14/12","v":{"v":1052629.1837517235,"d":"$1,052,629"}},{"$f":"BH11+'(Other Computations)'!B61*(BH9-BH11)/Inputs!B14/12","v":{"v":1050691.3179339317,"d":"$1,050,691"}},{"$f":"BI11+'(Other Computations)'!B61*(BI9-BI11)/Inputs!B14/12","v":{"v":1049095.2311601727,"d":"$1,049,095"}},{"$f":"BJ11+'(Other Computations)'!B61*(BJ9-BJ11)/Inputs!B14/12","v":{"v":1047789.6862192517,"d":"$1,047,790"}},{"$f":"BK11+'(Other Computations)'!B61*(BK9-BK11)/Inputs!B14/12","v":{"v":1046461.593741841,"d":"$1,046,462"}},{"$f":"BL11+'(Other Computations)'!B61*(BL9-BL11)/Inputs!B14/12","v":{"v":1045168.2801390047,"d":"$1,045,168"}},{"$f":"SUM(BB11:BM11)","v":{"v":12635373.447700577,"d":"$12,635,373"}},{"$f":"BM11+'(Other Computations)'!B61*(BM9-BM11)/Inputs!B14/12","v":{"v":1043537.6210251189,"d":"$1,043,538"}},{"$f":"BO11+'(Other Computations)'!B61*(BO9-BO11)/Inputs!B14/12","v":{"v":1042328.7476110859,"d":"$1,042,329"}},{"$f":"BP11+'(Other Computations)'!B61*(BP9-BP11)/Inputs!B14/12","v":{"v":1041391.88766211,"d":"$1,041,392"}},{"$f":"BQ11+'(Other Computations)'!B61*(BQ9-BQ11)/Inputs!B14/12","v":{"v":1040286.9487038238,"d":"$1,040,287"}},{"$f":"BR11+'(Other Computations)'!B61*(BR9-BR11)/Inputs!B14/12","v":{"v":1039568.2637006624,"d":"$1,039,568"}},{"$f":"BS11+'(Other Computations)'!B61*(BS9-BS11)/Inputs!B14/12","v":{"v":1038338.6955989695,"d":"$1,038,339"}},{"$f":"BT11+'(Other Computations)'!B61*(BT9-BT11)/Inputs!B14/12","v":{"v":1036891.6793653991,"d":"$1,036,892"}},{"$f":"BU11+'(Other Computations)'!B61*(BU9-BU11)/Inputs!B14/12","v":{"v":1035642.9512502353,"d":"$1,035,643"}},{"$f":"BV11+'(Other Computations)'!B61*(BV9-BV11)/Inputs!B14/12","v":{"v":1034789.2707302794,"d":"$1,034,789"}},{"$f":"BW11+'(Other Computations)'!B61*(BW9-BW11)/Inputs!B14/12","v":{"v":1033737.0743675604,"d":"$1,033,737"}},{"$f":"BX11+'(Other Computations)'!B61*(BX9-BX11)/Inputs!B14/12","v":{"v":1032682.2327973027,"d":"$1,032,682"}},{"$f":"BY11+'(Other Computations)'!B61*(BY9-BY11)/Inputs!B14/12","v":{"v":1031139.5694130019,"d":"$1,031,140"}},{"$f":"SUM(BO11:BZ11)","v":{"v":12450334.94222555,"d":"$12,450,335"}},{"$f":"BZ11+'(Other Computations)'!B61*(BZ9-BZ11)/Inputs!B14/12","v":{"v":1029153.4044429692,"d":"$1,029,153"}},{"$f":"CB11+'(Other Computations)'!B61*(CB9-CB11)/Inputs!B14/12","v":{"v":1027579.0850096409,"d":"$1,027,579"}},{"$f":"CC11+'(Other Computations)'!B61*(CC9-CC11)/Inputs!B14/12","v":{"v":1026236.5546402083,"d":"$1,026,237"}},{"$f":"CD11+'(Other Computations)'!B61*(CD9-CD11)/Inputs!B14/12","v":{"v":1024416.8984668762,"d":"$1,024,417"}},{"$f":"CE11+'(Other Computations)'!B61*(CE9-CE11)/Inputs!B14/12","v":{"v":1023194.7365996169,"d":"$1,023,195"}},{"$f":"CF11+'(Other Computations)'!B61*(CF9-CF11)/Inputs!B14/12","v":{"v":1021808.1513587601,"d":"$1,021,808"}},{"$f":"CG11+'(Other Computations)'!B61*(CG9-CG11)/Inputs!B14/12","v":{"v":1021293.1658475221,"d":"$1,021,293"}},{"$f":"CH11+'(Other Computations)'!B61*(CH9-CH11)/Inputs!B14/12","v":{"v":1020025.4720847209,"d":"$1,020,025"}},{"$f":"CI11+'(Other Computations)'!B61*(CI9-CI11)/Inputs!B14/12","v":{"v":1018434.0774625788,"d":"$1,018,434"}},{"$f":"CJ11+'(Other Computations)'!B61*(CJ9-CJ11)/Inputs!B14/12","v":{"v":1017412.5570402791,"d":"$1,017,413"}},{"$f":"CK11+'(Other Computations)'!B61*(CK9-CK11)/Inputs!B14/12","v":{"v":1016540.2115641761,"d":"$1,016,540"}},{"$f":"CL11+'(Other Computations)'!B61*(CL9-CL11)/Inputs!B14/12","v":{"v":1014829.1704633686,"d":"$1,014,829"}},{"$f":"SUM(CB11:CM11)","v":{"v":12260923.484980717,"d":"$12,260,923"}},{"$f":"CM11+'(Other Computations)'!B61*(CM9-CM11)/Inputs!B14/12","v":{"v":1014149.4819129468,"d":"$1,014,149"}},{"$f":"CO11+'(Other Computations)'!B61*(CO9-CO11)/Inputs!B14/12","v":{"v":1013496.520012107,"d":"$1,013,497"}},{"$f":"CP11+'(Other Computations)'!B61*(CP9-CP11)/Inputs!B14/12","v":{"v":1012374.8402134473,"d":"$1,012,375"}},{"$f":"CQ11+'(Other Computations)'!B61*(CQ9-CQ11)/Inputs!B14/12","v":{"v":1011441.6774433582,"d":"$1,011,442"}},{"$f":"CR11+'(Other Computations)'!B61*(CR9-CR11)/Inputs!B14/12","v":{"v":1010475.6737484368,"d":"$1,010,476"}},{"$f":"CS11+'(Other Computations)'!B61*(CS9-CS11)/Inputs!B14/12","v":{"v":1008393.1762552352,"d":"$1,008,393"}},{"$f":"CT11+'(Other Computations)'!B61*(CT9-CT11)/Inputs!B14/12","v":{"v":1007147.3819742778,"d":"$1,007,147"}},{"$f":"CU11+'(Other Computations)'!B61*(CU9-CU11)/Inputs!B14/12","v":{"v":1006445.8836382811,"d":"$1,006,446"}},{"$f":"CV11+'(Other Computations)'!B61*(CV9-CV11)/Inputs!B14/12","v":{"v":1005272.6163901433,"d":"$1,005,273"}},{"$f":"CW11+'(Other Computations)'!B61*(CW9-CW11)/Inputs!B14/12","v":{"v":1003312.7403646945,"d":"$1,003,313"}},{"$f":"CX11+'(Other Computations)'!B61*(CX9-CX11)/Inputs!B14/12","v":{"v":1002693.9475837728,"d":"$1,002,694"}},{"$f":"CY11+'(Other Computations)'!B61*(CY9-CY11)/Inputs!B14/12","v":{"v":1002383.0619207737,"d":"$1,002,383"}},{"$f":"SUM(CO11:CZ11)","v":{"v":12097587.001457473,"d":"$12,097,587"}},{"$f":"CZ11+'(Other Computations)'!B61*(CZ9-CZ11)/Inputs!B14/12","v":{"v":1000896.1001339784,"d":"$1,000,896"}},{"$f":"DB11+'(Other Computations)'!B61*(DB9-DB11)/Inputs!B14/12","v":{"v":1000590.6910654951,"d":"$1,000,591"}},{"$f":"DC11+'(Other Computations)'!B61*(DC9-DC11)/Inputs!B14/12","v":{"v":999184.6150342573,"d":"$999,185"}},{"$f":"DD11+'(Other Computations)'!B61*(DD9-DD11)/Inputs!B14/12","v":{"v":997593.7333570686,"d":"$997,594"}},{"$f":"DE11+'(Other Computations)'!B61*(DE9-DE11)/Inputs!B14/12","v":{"v":996350.1431195257,"d":"$996,350"}},{"$f":"DF11+'(Other Computations)'!B61*(DF9-DF11)/Inputs!B14/12","v":{"v":995300.5738764073,"d":"$995,301"}},{"$f":"DG11+'(Other Computations)'!B61*(DG9-DG11)/Inputs!B14/12","v":{"v":993952.7333623783,"d":"$993,953"}},{"$f":"DH11+'(Other Computations)'!B61*(DH9-DH11)/Inputs!B14/12","v":{"v":992818.672324459,"d":"$992,819"}},{"$f":"DI11+'(Other Computations)'!B61*(DI9-DI11)/Inputs!B14/12","v":{"v":991248.3423722853,"d":"$991,248"}},{"$f":"DJ11+'(Other Computations)'!B61*(DJ9-DJ11)/Inputs!B14/12","v":{"v":990961.2307404974,"d":"$990,961"}},{"$f":"DK11+'(Other Computations)'!B61*(DK9-DK11)/Inputs!B14/12","v":{"v":989719.0730508846,"d":"$989,719"}},{"$f":"DL11+'(Other Computations)'!B61*(DL9-DL11)/Inputs!B14/12","v":{"v":989353.5455922545,"d":"$989,354"}},{"$f":"SUM(DB11:DM11)","v":{"v":11937969.454029491,"d":"$11,937,969"}},{"$f":"DM11+'(Other Computations)'!B61*(DM9-DM11)/Inputs!B14/12","v":{"v":988204.181282415,"d":"$988,204"}},{"$f":"DO11+'(Other Computations)'!B61*(DO9-DO11)/Inputs!B14/12","v":{"v":986537.529469844,"d":"$986,538"}},{"$f":"DP11+'(Other Computations)'!B61*(DP9-DP11)/Inputs!B14/12","v":{"v":985046.2398137246,"d":"$985,046"}},{"$f":"DQ11+'(Other Computations)'!B61*(DQ9-DQ11)/Inputs!B14/12","v":{"v":984772.5983898336,"d":"$984,773"}},{"$f":"DR11+'(Other Computations)'!B61*(DR9-DR11)/Inputs!B14/12","v":{"v":984364.3181439256,"d":"$984,364"}},{"$f":"DS11+'(Other Computations)'!B61*(DS9-DS11)/Inputs!B14/12","v":{"v":983182.4900740128,"d":"$983,182"}},{"$f":"DT11+'(Other Computations)'!B61*(DT9-DT11)/Inputs!B14/12","v":{"v":982785.8680145394,"d":"$982,786"}},{"$f":"DU11+'(Other Computations)'!B61*(DU9-DU11)/Inputs!B14/12","v":{"v":982319.3478761478,"d":"$982,319"}},{"$f":"DV11+'(Other Computations)'!B61*(DV9-DV11)/Inputs!B14/12","v":{"v":981415.0584500234,"d":"$981,415"}},{"$f":"DW11+'(Other Computations)'!B61*(DW9-DW11)/Inputs!B14/12","v":{"v":980708.8611129904,"d":"$980,709"}},{"$f":"DX11+'(Other Computations)'!B61*(DX9-DX11)/Inputs!B14/12","v":{"v":979144.5780114473,"d":"$979,145"}},{"$f":"DY11+'(Other Computations)'!B61*(DY9-DY11)/Inputs!B14/12","v":{"v":978367.0098958918,"d":"$978,367"}},{"$f":"SUM(DO11:DZ11)","v":{"v":11796848.080534795,"d":"$11,796,848"}},{"$f":"DZ11+'(Other Computations)'!B61*(DZ9-DZ11)/Inputs!B14/12","v":{"v":977426.1450624047,"d":"$977,426"}},{"$f":"EB11+'(Other Computations)'!B61*(EB9-EB11)/Inputs!B14/12","v":{"v":975824.8752059101,"d":"$975,825"}},{"$f":"EC11+'(Other Computations)'!B61*(EC9-EC11)/Inputs!B14/12","v":{"v":974285.5435645378,"d":"$974,286"}},{"$f":"ED11+'(Other Computations)'!B61*(ED9-ED11)/Inputs!B14/12","v":{"v":973628.5557232285,"d":"$973,629"}},{"$f":"EE11+'(Other Computations)'!B61*(EE9-EE11)/Inputs!B14/12","v":{"v":972471.5969792141,"d":"$972,472"}},{"$f":"EF11+'(Other Computations)'!B61*(EF9-EF11)/Inputs!B14/12","v":{"v":971244.1743229716,"d":"$971,244"}},{"$f":"EG11+'(Other Computations)'!B61*(EG9-EG11)/Inputs!B14/12","v":{"v":970397.8469339538,"d":"$970,398"}},{"$f":"EH11+'(Other Computations)'!B61*(EH9-EH11)/Inputs!B14/12","v":{"v":970066.2438854262,"d":"$970,066"}},{"$f":"EI11+'(Other Computations)'!B61*(EI9-EI11)/Inputs!B14/12","v":{"v":968813.6558566556,"d":"$968,814"}},{"$f":"EJ11+'(Other Computations)'!B61*(EJ9-EJ11)/Inputs!B14/12","v":{"v":967997.220345214,"d":"$967,997"}},{"$f":"EK11+'(Other Computations)'!B61*(EK9-EK11)/Inputs!B14/12","v":{"v":966471.7324911722,"d":"$966,472"}},{"$f":"EL11+'(Other Computations)'!B61*(EL9-EL11)/Inputs!B14/12","v":{"v":965265.9625981406,"d":"$965,266"}},{"$f":"SUM(EB11:EM11)","v":{"v":11653893.55296883,"d":"$11,653,894"}}]
[{"$f":"Labels!B24","v":"Consumption"},{"$f":"Inputs!B34*'(Other Computations)'!B57","v":{"v":728000,"d":"$728,000"}},{"$f":"Inputs!B34*'(Other Computations)'!C57","v":{"v":727796.6528912779,"d":"$727,797"}},{"$f":"Inputs!B34*'(Other Computations)'!D57","v":{"v":727482.8730306834,"d":"$727,483"}},{"$f":"Inputs!B34*'(Other Computations)'!E57","v":{"v":727251.605816761,"d":"$727,252"}},{"$f":"Inputs!B34*'(Other Computations)'!F57","v":{"v":726991.8077666082,"d":"$726,992"}},{"$f":"Inputs!B34*'(Other Computations)'!G57","v":{"v":726770.3702603605,"d":"$726,770"}},{"$f":"Inputs!B34*'(Other Computations)'!H57","v":{"v":726479.1647460463,"d":"$726,479"}},{"$f":"Inputs!B34*'(Other Computations)'!I57","v":{"v":726296.3980095012,"d":"$726,296"}},{"$f":"Inputs!B34*'(Other Computations)'!J57","v":{"v":726046.05755082,"d":"$726,046"}},{"$f":"Inputs!B34*'(Other Computations)'!K57","v":{"v":725813.657756469,"d":"$725,814"}},{"$f":"Inputs!B34*'(Other Computations)'!L57","v":{"v":725642.5888767593,"d":"$725,643"}},{"$f":"Inputs!B34*'(Other Computations)'!M57","v":{"v":725433.0718483035,"d":"$725,433"}},{"$f":"SUM(B12:M12)","v":{"v":8720004.24855359,"d":"$8,720,004"}},{"$f":"Inputs!B34*'(Other Computations)'!O57","v":{"v":725248.4861076749,"d":"$725,248"}},{"$f":"Inputs!B34*'(Other Computations)'!P57","v":{"v":725043.4031637625,"d":"$725,043"}},{"$f":"Inputs!B34*'(Other Computations)'!Q57","v":{"v":724805.8970897667,"d":"$724,806"}},{"$f":"Inputs!B34*'(Other Computations)'!R57","v":{"v":724581.4391954464,"d":"$724,581"}},{"$f":"Inputs!B34*'(Other Computations)'!S57","v":{"v":724314.0395932852,"d":"$724,314"}},{"$f":"Inputs!B34*'(Other Computations)'!T57","v":{"v":724042.8069732059,"d":"$724,043"}},{"$f":"Inputs!B34*'(Other Computations)'!U57","v":{"v":723880.7730667557,"d":"$723,881"}},{"$f":"Inputs!B34*'(Other Computations)'!V57","v":{"v":723623.4232649998,"d":"$723,623"}},{"$f":"Inputs!B34*'(Other Computations)'!W57","v":{"v":723421.5547113591,"d":"$723,422"}},{"$f":"Inputs!B34*'(Other Computations)'!X57","v":{"v":723106.3106893563,"d":"$723,106"}},{"$f":"Inputs!B34*'(Other Computations)'!Y57","v":{"v":722864.5375993247,"d":"$722,865"}},{"$f":"Inputs!B34*'(Other Computations)'!Z57","v":{"v":722544.0628820844,"d":"$722,544"}},{"$f":"SUM(O12:Z12)","v":{"v":8687476.73433702,"d":"$8,687,477"}},{"$f":"Inputs!B34*'(Other Computations)'!AB57","v":{"v":722363.3422538507,"d":"$722,363"}},{"$f":"Inputs!B34*'(Other Computations)'!AC57","v":{"v":722151.616110531,"d":"$722,152"}},{"$f":"Inputs!B34*'(Other Computations)'!AD57","v":{"v":721828.9883125072,"d":"$721,829"}},{"$f":"Inputs!B34*'(Other Computations)'!AE57","v":{"v":721560.871013418,"d":"$721,561"}},{"$f":"Inputs!B34*'(Other Computations)'!AF57","v":{"v":721282.2998548751,"d":"$721,282"}},{"$f":"Inputs!B34*'(Other Computations)'!AG57","v":{"v":720939.2570282107,"d":"$720,939"}},{"$f":"Inputs!B34*'(Other Computations)'!AH57","v":{"v":720714.1359570959,"d":"$720,714"}},{"$f":"Inputs!B34*'(Other Computations)'!AI57","v":{"v":720479.9291495809,"d":"$720,480"}},{"$f":"Inputs!B34*'(Other Computations)'!AJ57","v":{"v":720174.0296524162,"d":"$720,174"}},{"$f":"Inputs!B34*'(Other Computations)'!AK57","v":{"v":719980.3757508749,"d":"$719,980"}},{"$f":"Inputs!B34*'(Other Computations)'!AL57","v":{"v":719749.758466252,"d":"$719,750"}},{"$f":"Inputs!B34*'(Other Computations)'!AM57","v":{"v":719471.4528296613,"d":"$719,471"}},{"$f":"SUM(AB12:AM12)","v":{"v":8650696.056379275,"d":"$8,650,696"}},{"$f":"Inputs!B34*'(Other Computations)'!AO57","v":{"v":719273.8388279646,"d":"$719,274"}},{"$f":"Inputs!B34*'(Other Computations)'!AP57","v":{"v":719001.9847103349,"d":"$719,002"}},{"$f":"Inputs!B34*'(Other Computations)'!AQ57","v":{"v":718720.5648043237,"d":"$718,721"}},{"$f":"Inputs!B34*'(Other Computations)'!AR57","v":{"v":718484.4447708898,"d":"$718,484"}},{"$f":"Inputs!B34*'(Other Computations)'!AS57","v":{"v":718191.4768033953,"d":"$718,191"}},{"$f":"Inputs!B34*'(Other Computations)'!AT57","v":{"v":717960.6651470871,"d":"$717,961"}},{"$f":"Inputs!B34*'(Other Computations)'!AU57","v":{"v":717681.844171361,"d":"$717,682"}},{"$f":"Inputs!B34*'(Other Computations)'!AV57","v":{"v":717371.7515322417,"d":"$717,372"}},{"$f":"Inputs!B34*'(Other Computations)'!AW57","v":{"v":717074.5910093596,"d":"$717,075"}},{"$f":"Inputs!B34*'(Other Computations)'!AX57","v":{"v":716796.2008063701,"d":"$716,796"}},{"$f":"Inputs!B34*'(Other Computations)'!AY57","v":{"v":716587.7581385333,"d":"$716,588"}},{"$f":"Inputs!B34*'(Other Computations)'!AZ57","v":{"v":716291.1933484074,"d":"$716,291"}},{"$f":"SUM(AO12:AZ12)","v":{"v":8613436.31407027,"d":"$8,613,436"}},{"$f":"Inputs!B34*'(Other Computations)'!BB57","v":{"v":715936.5553557379,"d":"$715,937"}},{"$f":"Inputs!B34*'(Other Computations)'!BC57","v":{"v":715594.9083170132,"d":"$715,595"}},{"$f":"Inputs!B34*'(Other Computations)'!BD57","v":{"v":715352.4304967537,"d":"$715,352"}},{"$f":"Inputs!B34*'(Other Computations)'!BE57","v":{"v":715112.6491144908,"d":"$715,113"}},{"$f":"Inputs!B34*'(Other Computations)'!BF57","v":{"v":714808.7811664017,"d":"$714,809"}},{"$f":"Inputs!B34*'(Other Computations)'!BG57","v":{"v":714552.3602297142,"d":"$714,552"}},{"$f":"Inputs!B34*'(Other Computations)'!BH57","v":{"v":714253.4693183776,"d":"$714,253"}},{"$f":"Inputs!B34*'(Other Computations)'!BI57","v":{"v":713996.9964524332,"d":"$713,997"}},{"$f":"Inputs!B34*'(Other Computations)'!BJ57","v":{"v":713724.6773801439,"d":"$713,725"}},{"$f":"Inputs!B34*'(Other Computations)'!BK57","v":{"v":713418.3203162232,"d":"$713,418"}},{"$f":"Inputs!B34*'(Other Computations)'!BL57","v":{"v":713098.1508515582,"d":"$713,098"}},{"$f":"Inputs!B34*'(Other Computations)'!BM57","v":{"v":712789.249853303,"d":"$712,789"}},{"$f":"SUM(BB12:BM12)","v":{"v":8572638.548852151,"d":"$8,572,639"}},{"$f":"Inputs!B34*'(Other Computations)'!BO57","v":{"v":712494.3931726976,"d":"$712,494"}},{"$f":"Inputs!B34*'(Other Computations)'!BP57","v":{"v":712108.5851208204,"d":"$712,109"}},{"$f":"Inputs!B34*'(Other Computations)'!BQ57","v":{"v":711881.2081447121,"d":"$711,881"}},{"$f":"Inputs!B34*'(Other Computations)'!BR57","v":{"v":711634.3648372965,"d":"$711,634"}},{"$f":"Inputs!B34*'(Other Computations)'!BS57","v":{"v":711419.9335409545,"d":"$711,420"}},{"$f":"Inputs!B34*'(Other Computations)'!BT57","v":{"v":711102.6870417641,"d":"$711,103"}},{"$f":"Inputs!B34*'(Other Computations)'!BU57","v":{"v":710877.4940900216,"d":"$710,877"}},{"$f":"Inputs!B34*'(Other Computations)'!BV57","v":{"v":710565.5883233213,"d":"$710,566"}},{"$f":"Inputs!B34*'(Other Computations)'!BW57","v":{"v":710174.0849571087,"d":"$710,174"}},{"$f":"Inputs!B34*'(Other Computations)'!BX57","v":{"v":709882.1250305952,"d":"$709,882"}},{"$f":"Inputs!B34*'(Other Computations)'!BY57","v":{"v":709519.4128805529,"d":"$709,519"}},{"$f":"Inputs!B34*'(Other Computations)'!BZ57","v":{"v":709185.0386894159,"d":"$709,185"}},{"$f":"SUM(BO12:BZ12)","v":{"v":8530844.91582926,"d":"$8,530,845"}},{"$f":"Inputs!B34*'(Other Computations)'!CB57","v":{"v":708895.9435830931,"d":"$708,896"}},{"$f":"Inputs!B34*'(Other Computations)'!CC57","v":{"v":708507.856866371,"d":"$708,508"}},{"$f":"Inputs!B34*'(Other Computations)'!CD57","v":{"v":708245.7568195255,"d":"$708,246"}},{"$f":"Inputs!B34*'(Other Computations)'!CE57","v":{"v":707906.8732876523,"d":"$707,907"}},{"$f":"Inputs!B34*'(Other Computations)'!CF57","v":{"v":707546.0190769905,"d":"$707,546"}},{"$f":"Inputs!B34*'(Other Computations)'!CG57","v":{"v":707258.6125104629,"d":"$707,259"}},{"$f":"Inputs!B34*'(Other Computations)'!CH57","v":{"v":706940.9826816914,"d":"$706,941"}},{"$f":"Inputs!B34*'(Other Computations)'!CI57","v":{"v":706633.9461146301,"d":"$706,634"}},{"$f":"Inputs!B34*'(Other Computations)'!CJ57","v":{"v":706264.4167998179,"d":"$706,264"}},{"$f":"Inputs!B34*'(Other Computations)'!CK57","v":{"v":706032.9462581383,"d":"$706,033"}},{"$f":"Inputs!B34*'(Other Computations)'!CL57","v":{"v":705680.1179036162,"d":"$705,680"}},{"$f":"Inputs!B34*'(Other Computations)'!CM57","v":{"v":705390.4070885028,"d":"$705,390"}},{"$f":"SUM(CB12:CM12)","v":{"v":8485303.878990492,"d":"$8,485,304"}},{"$f":"Inputs!B34*'(Other Computations)'!CO57","v":{"v":705002.6419826958,"d":"$705,003"}},{"$f":"Inputs!B34*'(Other Computations)'!CP57","v":{"v":704705.1942597677,"d":"$704,705"}},{"$f":"Inputs!B34*'(Other Computations)'!CQ57","v":{"v":704358.0632073062,"d":"$704,358"}},{"$f":"Inputs!B34*'(Other Computations)'!CR57","v":{"v":704097.5882288603,"d":"$704,098"}},{"$f":"Inputs!B34*'(Other Computations)'!CS57","v":{"v":703721.2776479695,"d":"$703,721"}},{"$f":"Inputs!B34*'(Other Computations)'!CT57","v":{"v":703419.3444783903,"d":"$703,419"}},{"$f":"Inputs!B34*'(Other Computations)'!CU57","v":{"v":703141.3590421976,"d":"$703,141"}},{"$f":"Inputs!B34*'(Other Computations)'!CV57","v":{"v":702868.4465543359,"d":"$702,868"}},{"$f":"Inputs!B34*'(Other Computations)'!CW57","v":{"v":702563.252071723,"d":"$702,563"}},{"$f":"Inputs!B34*'(Other Computations)'!CX57","v":{"v":702155.7477951957,"d":"$702,156"}},{"$f":"Inputs!B34*'(Other Computations)'!CY57","v":{"v":701835.1894091113,"d":"$701,835"}},{"$f":"Inputs!B34*'(Other Computations)'!CZ57","v":{"v":701474.6994476762,"d":"$701,475"}},{"$f":"SUM(CO12:CZ12)","v":{"v":8439342.804125229,"d":"$8,439,343"}},{"$f":"Inputs!B34*'(Other Computations)'!DB57","v":{"v":701202.8616306618,"d":"$701,203"}},{"$f":"Inputs!B34*'(Other Computations)'!DC57","v":{"v":700917.6952934731,"d":"$700,918"}},{"$f":"Inputs!B34*'(Other Computations)'!DD57","v":{"v":700580.9578800821,"d":"$700,581"}},{"$f":"Inputs!B34*'(Other Computations)'!DE57","v":{"v":700220.9761456264,"d":"$700,221"}},{"$f":"Inputs!B34*'(Other Computations)'!DF57","v":{"v":699976.5952370614,"d":"$699,977"}},{"$f":"Inputs!B34*'(Other Computations)'!DG57","v":{"v":699644.2780031282,"d":"$699,644"}},{"$f":"Inputs!B34*'(Other Computations)'!DH57","v":{"v":699308.0520918485,"d":"$699,308"}},{"$f":"Inputs!B34*'(Other Computations)'!DI57","v":{"v":699026.3288844428,"d":"$699,026"}},{"$f":"Inputs!B34*'(Other Computations)'!DJ57","v":{"v":698651.0098590942,"d":"$698,651"}},{"$f":"Inputs!B34*'(Other Computations)'!DK57","v":{"v":698378.4340680372,"d":"$698,378"}},{"$f":"Inputs!B34*'(Other Computations)'!DL57","v":{"v":698088.6861283338,"d":"$698,089"}},{"$f":"Inputs!B34*'(Other Computations)'!DM57","v":{"v":697725.699398961,"d":"$697,726"}},{"$f":"SUM(DB12:DM12)","v":{"v":8393721.574620752,"d":"$8,393,722"}},{"$f":"Inputs!B34*'(Other Computations)'!DO57","v":{"v":697428.7472611476,"d":"$697,429"}},{"$f":"Inputs!B34*'(Other Computations)'!DP57","v":{"v":697137.9300730348,"d":"$697,138"}},{"$f":"Inputs!B34*'(Other Computations)'!DQ57","v":{"v":696764.8532223036,"d":"$696,765"}},{"$f":"Inputs!B34*'(Other Computations)'!DR57","v":{"v":696451.5510469474,"d":"$696,452"}},{"$f":"Inputs!B34*'(Other Computations)'!DS57","v":{"v":696073.2487773517,"d":"$696,073"}},{"$f":"Inputs!B34*'(Other Computations)'!DT57","v":{"v":695760.7538143983,"d":"$695,761"}},{"$f":"Inputs!B34*'(Other Computations)'!DU57","v":{"v":695476.4557509322,"d":"$695,476"}},{"$f":"Inputs!B34*'(Other Computations)'!DV57","v":{"v":695124.2448158178,"d":"$695,124"}},{"$f":"Inputs!B34*'(Other Computations)'!DW57","v":{"v":694744.8041499874,"d":"$694,745"}},{"$f":"Inputs!B34*'(Other Computations)'!DX57","v":{"v":694404.2495915395,"d":"$694,404"}},{"$f":"Inputs!B34*'(Other Computations)'!DY57","v":{"v":694066.5701009711,"d":"$694,067"}},{"$f":"Inputs!B34*'(Other Computations)'!DZ57","v":{"v":693775.4166635599,"d":"$693,775"}},{"$f":"SUM(DO12:DZ12)","v":{"v":8347208.825267992,"d":"$8,347,209"}},{"$f":"Inputs!B34*'(Other Computations)'!EB57","v":{"v":693422.983315779,"d":"$693,423"}},{"$f":"Inputs!B34*'(Other Computations)'!EC57","v":{"v":693121.0260102862,"d":"$693,121"}},{"$f":"Inputs!B34*'(Other Computations)'!ED57","v":{"v":692721.0420319054,"d":"$692,721"}},{"$f":"Inputs!B34*'(Other Computations)'!EE57","v":{"v":692362.9810351918,"d":"$692,363"}},{"$f":"Inputs!B34*'(Other Computations)'!EF57","v":{"v":691967.521664918,"d":"$691,968"}},{"$f":"Inputs!B34*'(Other Computations)'!EG57","v":{"v":691690.3666931267,"d":"$691,690"}},{"$f":"Inputs!B34*'(Other Computations)'!EH57","v":{"v":691308.2795117807,"d":"$691,308"}},{"$f":"Inputs!B34*'(Other Computations)'!EI57","v":{"v":690960.217271476,"d":"$690,960"}},{"$f":"Inputs!B34*'(Other Computations)'!EJ57","v":{"v":690639.2197507694,"d":"$690,639"}},{"$f":"Inputs!B34*'(Other Computations)'!EK57","v":{"v":690313.2432472374,"d":"$690,313"}},{"$f":"Inputs!B34*'(Other Computations)'!EL57","v":{"v":689963.7338019098,"d":"$689,964"}},{"$f":"Inputs!B34*'(Other Computations)'!EM57","v":{"v":689524.9806116353,"d":"$689,525"}},{"$f":"SUM(EB12:EM12)","v":{"v":8297995.594946015,"d":"$8,297,996"}}]
[{"$f":"Labels!B74","v":"Aggregate Demand Shock"},{"$f":"NORMINV(RAND()*(1-2*Inputs!B58)+Inputs!B58,0,'(Other Computations)'!B208)","v":{"v":-47826.12239747987,"d":"($47,826)"}},{"$f":"NORMINV(RAND()*(1-2*Inputs!B58)+Inputs!B58,0,'(Other Computations)'!B208)","v":{"v":-12147.242293527079,"d":"($12,147)"}},{"$f":"NORMINV(RAND()*(1-2*Inputs!B58)+Inputs!B58,0,'(Other Computations)'!B208)","v":{"v":-106.89191098064019,"d":"($107)"}},{"$f":"NORMINV(RAND()*(1-2*Inputs!B58)+Inputs!B58,0,'(Other Computations)'!B208)","v":{"v":10918.131004543677,"d":"$10,918"}},{"$f":"NORMINV(RAND()*(1-2*Inputs!B58)+Inputs!B58,0,'(Other Computations)'!B208)","v":{"v":58586.33774658585,"d":"$58,586"}},{"$f":"NORMINV(RAND()*(1-2*Inputs!B58)+Inputs!B58,0,'(Other Computations)'!B208)","v":{"v":17482.166736717027,"d":"$17,482"}},{"$f":"NORMINV(RAND()*(1-2*Inputs!B58)+Inputs!B58,0,'(Other Computations)'!B208)","v":{"v":-1854.1225471585192,"d":"($1,854)"}},{"$f":"NORMINV(RAND()*(1-2*Inputs!B58)+Inputs!B58,0,'(Other Computations)'!B208)","v":{"v":22662.406731937408,"d":"$22,662"}},{"$f":"NORMINV(RAND()*(1-2*Inputs!B58)+Inputs!B58,0,'(Other Computations)'!B208)","v":{"v":-34342.3812935592,"d":"($34,342)"}},{"$f":"NORMINV(RAND()*(1-2*Inputs!B58)+Inputs!B58,0,'(Other Computations)'!B208)","v":{"v":23791.24168096148,"d":"$23,791"}},{"$f":"NORMINV(RAND()*(1-2*Inputs!B58)+Inputs!B58,0,'(Other Computations)'!B208)","v":{"v":-37866.899338643074,"d":"($37,867)"}},{"$f":"NORMINV(RAND()*(1-2*Inputs!B58)+Inputs!B58,0,'(Other Computations)'!B208)","v":{"v":6565.067257923215,"d":"$6,565"}},{"$f":"SUM(B13:M13)","v":{"v":5861.691377320271,"d":"$5,862"}},{"$f":"NORMINV(RAND()*(1-2*Inputs!B58)+Inputs!B58,0,'(Other Computations)'!B208)","v":{"v":49316.31058484056,"d":"$49,316"}},{"$f":"NORMINV(RAND()*(1-2*Inputs!B58)+Inputs!B58,0,'(Other Computations)'!B208)","v":{"v":-26206.63835261835,"d":"($26,207)"}},{"$f":"NORMINV(RAND()*(1-2*Inputs!B58)+Inputs!B58,0,'(Other Computations)'!B208)","v":{"v":-50190.35526700914,"d":"($50,190)"}},{"$f":"NORMINV(RAND()*(1-2*Inputs!B58)+Inputs!B58,0,'(Other Computations)'!B208)","v":{"v":13494.08392673475,"d":"$13,494"}},{"$f":"NORMINV(RAND()*(1-2*Inputs!B58)+Inputs!B58,0,'(Other Computations)'!B208)","v":{"v":2341.9717858087356,"d":"$2,342"}},{"$f":"NORMINV(RAND()*(1-2*Inputs!B58)+Inputs!B58,0,'(Other Computations)'!B208)","v":{"v":50139.150355975755,"d":"$50,139"}},{"$f":"NORMINV(RAND()*(1-2*Inputs!B58)+Inputs!B58,0,'(Other Computations)'!B208)","v":{"v":-3523.713359845038,"d":"($3,524)"}},{"$f":"NORMINV(RAND()*(1-2*Inputs!B58)+Inputs!B58,0,'(Other Computations)'!B208)","v":{"v":4639.762988391762,"d":"$4,640"}},{"$f":"NORMINV(RAND()*(1-2*Inputs!B58)+Inputs!B58,0,'(Other Computations)'!B208)","v":{"v":45137.49747038213,"d":"$45,137"}},{"$f":"NORMINV(RAND()*(1-2*Inputs!B58)+Inputs!B58,0,'(Other Computations)'!B208)","v":{"v":-26010.356503179744,"d":"($26,010)"}},{"$f":"NORMINV(RAND()*(1-2*Inputs!B58)+Inputs!B58,0,'(Other Computations)'!B208)","v":{"v":-39735.43977656171,"d":"($39,735)"}},{"$f":"NORMINV(RAND()*(1-2*Inputs!B58)+Inputs!B58,0,'(Other Computations)'!B208)","v":{"v":-21295.2760376979,"d":"($21,295)"}},{"$f":"SUM(O13:Z13)","v":{"v":-1893.0021847781827,"d":"($1,893)"}},{"$f":"NORMINV(RAND()*(1-2*Inputs!B58)+Inputs!B58,0,'(Other Computations)'!B208)","v":{"v":636.4699105935076,"d":"$636"}},{"$f":"NORMINV(RAND()*(1-2*Inputs!B58)+Inputs!B58,0,'(Other Computations)'!B208)","v":{"v":3520.846300335343,"d":"$3,521"}},{"$f":"NORMINV(RAND()*(1-2*Inputs!B58)+Inputs!B58,0,'(Other Computations)'!B208)","v":{"v":-19093.492536519312,"d":"($19,093)"}},{"$f":"NORMINV(RAND()*(1-2*Inputs!B58)+Inputs!B58,0,'(Other Computations)'!B208)","v":{"v":-6639.504268632639,"d":"($6,640)"}},{"$f":"NORMINV(RAND()*(1-2*Inputs!B58)+Inputs!B58,0,'(Other Computations)'!B208)","v":{"v":-29895.746727700436,"d":"($29,896)"}},{"$f":"NORMINV(RAND()*(1-2*Inputs!B58)+Inputs!B58,0,'(Other Computations)'!B208)","v":{"v":-21050.160131042598,"d":"($21,050)"}},{"$f":"NORMINV(RAND()*(1-2*Inputs!B58)+Inputs!B58,0,'(Other Computations)'!B208)","v":{"v":19312.793640394626,"d":"$19,313"}},{"$f":"NORMINV(RAND()*(1-2*Inputs!B58)+Inputs!B58,0,'(Other Computations)'!B208)","v":{"v":14522.193897137517,"d":"$14,522"}},{"$f":"NORMINV(RAND()*(1-2*Inputs!B58)+Inputs!B58,0,'(Other Computations)'!B208)","v":{"v":-16542.957061793757,"d":"($16,543)"}},{"$f":"NORMINV(RAND()*(1-2*Inputs!B58)+Inputs!B58,0,'(Other Computations)'!B208)","v":{"v":1066.2226173895515,"d":"$1,066"}},{"$f":"NORMINV(RAND()*(1-2*Inputs!B58)+Inputs!B58,0,'(Other Computations)'!B208)","v":{"v":39153.912477895174,"d":"$39,154"}},{"$f":"NORMINV(RAND()*(1-2*Inputs!B58)+Inputs!B58,0,'(Other Computations)'!B208)","v":{"v":35723.151672023945,"d":"$35,723"}},{"$f":"SUM(AB13:AM13)","v":{"v":20713.72979008092,"d":"$20,714"}},{"$f":"NORMINV(RAND()*(1-2*Inputs!B58)+Inputs!B58,0,'(Other Computations)'!B208)","v":{"v":31389.104489253266,"d":"$31,389"}},{"$f":"NORMINV(RAND()*(1-2*Inputs!B58)+Inputs!B58,0,'(Other Computations)'!B208)","v":{"v":3547.6973678113495,"d":"$3,548"}},{"$f":"NORMINV(RAND()*(1-2*Inputs!B58)+Inputs!B58,0,'(Other Computations)'!B208)","v":{"v":1987.688297976637,"d":"$1,988"}},{"$f":"NORMINV(RAND()*(1-2*Inputs!B58)+Inputs!B58,0,'(Other Computations)'!B208)","v":{"v":-33787.29192555955,"d":"($33,787)"}},{"$f":"NORMINV(RAND()*(1-2*Inputs!B58)+Inputs!B58,0,'(Other Computations)'!B208)","v":{"v":-33041.495697637736,"d":"($33,041)"}},{"$f":"NORMINV(RAND()*(1-2*Inputs!B58)+Inputs!B58,0,'(Other Computations)'!B208)","v":{"v":-11036.515401573793,"d":"($11,037)"}},{"$f":"NORMINV(RAND()*(1-2*Inputs!B58)+Inputs!B58,0,'(Other Computations)'!B208)","v":{"v":16981.407860811873,"d":"$16,981"}},{"$f":"NORMINV(RAND()*(1-2*Inputs!B58)+Inputs!B58,0,'(Other Computations)'!B208)","v":{"v":2761.0256622856828,"d":"$2,761"}},{"$f":"NORMINV(RAND()*(1-2*Inputs!B58)+Inputs!B58,0,'(Other Computations)'!B208)","v":{"v":6275.8128024413045,"d":"$6,276"}},{"$f":"NORMINV(RAND()*(1-2*Inputs!B58)+Inputs!B58,0,'(Other Computations)'!B208)","v":{"v":2090.7976827305765,"d":"$2,091"}},{"$f":"NORMINV(RAND()*(1-2*Inputs!B58)+Inputs!B58,0,'(Other Computations)'!B208)","v":{"v":14475.285587071688,"d":"$14,475"}},{"$f":"NORMINV(RAND()*(1-2*Inputs!B58)+Inputs!B58,0,'(Other Computations)'!B208)","v":{"v":8281.62150424434,"d":"$8,282"}},{"$f":"SUM(AO13:AZ13)","v":{"v":9925.138229855642,"d":"$9,925"}},{"$f":"NORMINV(RAND()*(1-2*Inputs!B58)+Inputs!B58,0,'(Other Computations)'!B208)","v":{"v":-14667.88489040115,"d":"($14,668)"}},{"$f":"NORMINV(RAND()*(1-2*Inputs!B58)+Inputs!B58,0,'(Other Computations)'!B208)","v":{"v":30626.609273492635,"d":"$30,627"}},{"$f":"NORMINV(RAND()*(1-2*Inputs!B58)+Inputs!B58,0,'(Other Computations)'!B208)","v":{"v":40300.81438590215,"d":"$40,301"}},{"$f":"NORMINV(RAND()*(1-2*Inputs!B58)+Inputs!B58,0,'(Other Computations)'!B208)","v":{"v":13211.060264784506,"d":"$13,211"}},{"$f":"NORMINV(RAND()*(1-2*Inputs!B58)+Inputs!B58,0,'(Other Computations)'!B208)","v":{"v":11325.663854652426,"d":"$11,326"}},{"$f":"NORMINV(RAND()*(1-2*Inputs!B58)+Inputs!B58,0,'(Other Computations)'!B208)","v":{"v":34569.44689892065,"d":"$34,569"}},{"$f":"NORMINV(RAND()*(1-2*Inputs!B58)+Inputs!B58,0,'(Other Computations)'!B208)","v":{"v":-23701.08034938772,"d":"($23,701)"}},{"$f":"NORMINV(RAND()*(1-2*Inputs!B58)+Inputs!B58,0,'(Other Computations)'!B208)","v":{"v":-573.034943345643,"d":"($573)"}},{"$f":"NORMINV(RAND()*(1-2*Inputs!B58)+Inputs!B58,0,'(Other Computations)'!B208)","v":{"v":19175.59923627364,"d":"$19,176"}},{"$f":"NORMINV(RAND()*(1-2*Inputs!B58)+Inputs!B58,0,'(Other Computations)'!B208)","v":{"v":16666.909854881127,"d":"$16,667"}},{"$f":"NORMINV(RAND()*(1-2*Inputs!B58)+Inputs!B58,0,'(Other Computations)'!B208)","v":{"v":18280.927497378412,"d":"$18,281"}},{"$f":"NORMINV(RAND()*(1-2*Inputs!B58)+Inputs!B58,0,'(Other Computations)'!B208)","v":{"v":-6878.743440575849,"d":"($6,879)"}},{"$f":"SUM(BB13:BM13)","v":{"v":138336.2876425752,"d":"$138,336"}},{"$f":"NORMINV(RAND()*(1-2*Inputs!B58)+Inputs!B58,0,'(Other Computations)'!B208)","v":{"v":22314.646906610255,"d":"$22,315"}},{"$f":"NORMINV(RAND()*(1-2*Inputs!B58)+Inputs!B58,0,'(Other Computations)'!B208)","v":{"v":41179.01997706538,"d":"$41,179"}},{"$f":"NORMINV(RAND()*(1-2*Inputs!B58)+Inputs!B58,0,'(Other Computations)'!B208)","v":{"v":28433.97976668102,"d":"$28,434"}},{"$f":"NORMINV(RAND()*(1-2*Inputs!B58)+Inputs!B58,0,'(Other Computations)'!B208)","v":{"v":55476.70817711031,"d":"$55,477"}},{"$f":"NORMINV(RAND()*(1-2*Inputs!B58)+Inputs!B58,0,'(Other Computations)'!B208)","v":{"v":18226.98142005088,"d":"$18,227"}},{"$f":"NORMINV(RAND()*(1-2*Inputs!B58)+Inputs!B58,0,'(Other Computations)'!B208)","v":{"v":1768.397291898762,"d":"$1,768"}},{"$f":"NORMINV(RAND()*(1-2*Inputs!B58)+Inputs!B58,0,'(Other Computations)'!B208)","v":{"v":14963.378685508858,"d":"$14,963"}},{"$f":"NORMINV(RAND()*(1-2*Inputs!B58)+Inputs!B58,0,'(Other Computations)'!B208)","v":{"v":42582.87442747298,"d":"$42,583"}},{"$f":"NORMINV(RAND()*(1-2*Inputs!B58)+Inputs!B58,0,'(Other Computations)'!B208)","v":{"v":27886.85003363278,"d":"$27,887"}},{"$f":"NORMINV(RAND()*(1-2*Inputs!B58)+Inputs!B58,0,'(Other Computations)'!B208)","v":{"v":27024.163683555773,"d":"$27,024"}},{"$f":"NORMINV(RAND()*(1-2*Inputs!B58)+Inputs!B58,0,'(Other Computations)'!B208)","v":{"v":-8702.146137753369,"d":"($8,702)"}},{"$f":"NORMINV(RAND()*(1-2*Inputs!B58)+Inputs!B58,0,'(Other Computations)'!B208)","v":{"v":-41685.72947905753,"d":"($41,686)"}},{"$f":"SUM(BO13:BZ13)","v":{"v":229469.12475277606,"d":"$229,469"}},{"$f":"NORMINV(RAND()*(1-2*Inputs!B58)+Inputs!B58,0,'(Other Computations)'!B208)","v":{"v":-13512.465360995671,"d":"($13,512)"}},{"$f":"NORMINV(RAND()*(1-2*Inputs!B58)+Inputs!B58,0,'(Other Computations)'!B208)","v":{"v":2150.0341917952605,"d":"$2,150"}},{"$f":"NORMINV(RAND()*(1-2*Inputs!B58)+Inputs!B58,0,'(Other Computations)'!B208)","v":{"v":-33155.004126574786,"d":"($33,155)"}},{"$f":"NORMINV(RAND()*(1-2*Inputs!B58)+Inputs!B58,0,'(Other Computations)'!B208)","v":{"v":8578.435614348864,"d":"$8,578"}},{"$f":"NORMINV(RAND()*(1-2*Inputs!B58)+Inputs!B58,0,'(Other Computations)'!B208)","v":{"v":-4009.560647062104,"d":"($4,010)"}},{"$f":"NORMINV(RAND()*(1-2*Inputs!B58)+Inputs!B58,0,'(Other Computations)'!B208)","v":{"v":57781.90173417524,"d":"$57,782"}},{"$f":"NORMINV(RAND()*(1-2*Inputs!B58)+Inputs!B58,0,'(Other Computations)'!B208)","v":{"v":3405.371164851308,"d":"$3,405"}},{"$f":"NORMINV(RAND()*(1-2*Inputs!B58)+Inputs!B58,0,'(Other Computations)'!B208)","v":{"v":-20740.182167968407,"d":"($20,740)"}},{"$f":"NORMINV(RAND()*(1-2*Inputs!B58)+Inputs!B58,0,'(Other Computations)'!B208)","v":{"v":19234.783204623796,"d":"$19,235"}},{"$f":"NORMINV(RAND()*(1-2*Inputs!B58)+Inputs!B58,0,'(Other Computations)'!B208)","v":{"v":29272.58872109821,"d":"$29,273"}},{"$f":"NORMINV(RAND()*(1-2*Inputs!B58)+Inputs!B58,0,'(Other Computations)'!B208)","v":{"v":-31564.99819338751,"d":"($31,565)"}},{"$f":"NORMINV(RAND()*(1-2*Inputs!B58)+Inputs!B58,0,'(Other Computations)'!B208)","v":{"v":41455.4804076309,"d":"$41,455"}},{"$f":"SUM(CB13:CM13)","v":{"v":58896.384542535096,"d":"$58,896"}},{"$f":"NORMINV(RAND()*(1-2*Inputs!B58)+Inputs!B58,0,'(Other Computations)'!B208)","v":{"v":43129.597868967154,"d":"$43,130"}},{"$f":"NORMINV(RAND()*(1-2*Inputs!B58)+Inputs!B58,0,'(Other Computations)'!B208)","v":{"v":9066.540752109511,"d":"$9,067"}},{"$f":"NORMINV(RAND()*(1-2*Inputs!B58)+Inputs!B58,0,'(Other Computations)'!B208)","v":{"v":21971.0708884695,"d":"$21,971"}},{"$f":"NORMINV(RAND()*(1-2*Inputs!B58)+Inputs!B58,0,'(Other Computations)'!B208)","v":{"v":19013.93988970874,"d":"$19,014"}},{"$f":"NORMINV(RAND()*(1-2*Inputs!B58)+Inputs!B58,0,'(Other Computations)'!B208)","v":{"v":-61877.7210881121,"d":"($61,878)"}},{"$f":"NORMINV(RAND()*(1-2*Inputs!B58)+Inputs!B58,0,'(Other Computations)'!B208)","v":{"v":-3175.8531729943998,"d":"($3,176)"}},{"$f":"NORMINV(RAND()*(1-2*Inputs!B58)+Inputs!B58,0,'(Other Computations)'!B208)","v":{"v":35168.6573155556,"d":"$35,169"}},{"$f":"NORMINV(RAND()*(1-2*Inputs!B58)+Inputs!B58,0,'(Other Computations)'!B208)","v":{"v":821.9580551133652,"d":"$822"}},{"$f":"NORMINV(RAND()*(1-2*Inputs!B58)+Inputs!B58,0,'(Other Computations)'!B208)","v":{"v":-56566.26002936249,"d":"($56,566)"}},{"$f":"NORMINV(RAND()*(1-2*Inputs!B58)+Inputs!B58,0,'(Other Computations)'!B208)","v":{"v":38663.23856319008,"d":"$38,663"}},{"$f":"NORMINV(RAND()*(1-2*Inputs!B58)+Inputs!B58,0,'(Other Computations)'!B208)","v":{"v":60572.49840844595,"d":"$60,572"}},{"$f":"NORMINV(RAND()*(1-2*Inputs!B58)+Inputs!B58,0,'(Other Computations)'!B208)","v":{"v":-24057.179052346957,"d":"($24,057)"}},{"$f":"SUM(CO13:CZ13)","v":{"v":82730.48839874395,"d":"$82,730"}},{"$f":"NORMINV(RAND()*(1-2*Inputs!B58)+Inputs!B58,0,'(Other Computations)'!B208)","v":{"v":59961.26686321616,"d":"$59,961"}},{"$f":"NORMINV(RAND()*(1-2*Inputs!B58)+Inputs!B58,0,'(Other Computations)'!B208)","v":{"v":-19308.69953258576,"d":"($19,309)"}},{"$f":"NORMINV(RAND()*(1-2*Inputs!B58)+Inputs!B58,0,'(Other Computations)'!B208)","v":{"v":-33531.842027662155,"d":"($33,532)"}},{"$f":"NORMINV(RAND()*(1-2*Inputs!B58)+Inputs!B58,0,'(Other Computations)'!B208)","v":{"v":-9581.044171254955,"d":"($9,581)"}},{"$f":"NORMINV(RAND()*(1-2*Inputs!B58)+Inputs!B58,0,'(Other Computations)'!B208)","v":{"v":3517.8400048674716,"d":"$3,518"}},{"$f":"NORMINV(RAND()*(1-2*Inputs!B58)+Inputs!B58,0,'(Other Computations)'!B208)","v":{"v":-18572.480878614086,"d":"($18,572)"}},{"$f":"NORMINV(RAND()*(1-2*Inputs!B58)+Inputs!B58,0,'(Other Computations)'!B208)","v":{"v":-4047.8077120112143,"d":"($4,048)"}},{"$f":"NORMINV(RAND()*(1-2*Inputs!B58)+Inputs!B58,0,'(Other Computations)'!B208)","v":{"v":-36196.87308398939,"d":"($36,197)"}},{"$f":"NORMINV(RAND()*(1-2*Inputs!B58)+Inputs!B58,0,'(Other Computations)'!B208)","v":{"v":55175.034876394304,"d":"$55,175"}},{"$f":"NORMINV(RAND()*(1-2*Inputs!B58)+Inputs!B58,0,'(Other Computations)'!B208)","v":{"v":-13604.60571868624,"d":"($13,605)"}},{"$f":"NORMINV(RAND()*(1-2*Inputs!B58)+Inputs!B58,0,'(Other Computations)'!B208)","v":{"v":48692.538176480055,"d":"$48,693"}},{"$f":"NORMINV(RAND()*(1-2*Inputs!B58)+Inputs!B58,0,'(Other Computations)'!B208)","v":{"v":-7735.1744308499265,"d":"($7,735)"}},{"$f":"SUM(DB13:DM13)","v":{"v":24768.15236530426,"d":"$24,768"}},{"$f":"NORMINV(RAND()*(1-2*Inputs!B58)+Inputs!B58,0,'(Other Computations)'!B208)","v":{"v":-45711.271245999,"d":"($45,711)"}},{"$f":"NORMINV(RAND()*(1-2*Inputs!B58)+Inputs!B58,0,'(Other Computations)'!B208)","v":{"v":-34269.24194317531,"d":"($34,269)"}},{"$f":"NORMINV(RAND()*(1-2*Inputs!B58)+Inputs!B58,0,'(Other Computations)'!B208)","v":{"v":52450.049152790794,"d":"$52,450"}},{"$f":"NORMINV(RAND()*(1-2*Inputs!B58)+Inputs!B58,0,'(Other Computations)'!B208)","v":{"v":42795.13376564081,"d":"$42,795"}},{"$f":"NORMINV(RAND()*(1-2*Inputs!B58)+Inputs!B58,0,'(Other Computations)'!B208)","v":{"v":-12909.788866204777,"d":"($12,910)"}},{"$f":"NORMINV(RAND()*(1-2*Inputs!B58)+Inputs!B58,0,'(Other Computations)'!B208)","v":{"v":42883.77042766165,"d":"$42,884"}},{"$f":"NORMINV(RAND()*(1-2*Inputs!B58)+Inputs!B58,0,'(Other Computations)'!B208)","v":{"v":37758.458049607594,"d":"$37,758"}},{"$f":"NORMINV(RAND()*(1-2*Inputs!B58)+Inputs!B58,0,'(Other Computations)'!B208)","v":{"v":6155.999675714803,"d":"$6,156"}},{"$f":"NORMINV(RAND()*(1-2*Inputs!B58)+Inputs!B58,0,'(Other Computations)'!B208)","v":{"v":19986.317560497893,"d":"$19,986"}},{"$f":"NORMINV(RAND()*(1-2*Inputs!B58)+Inputs!B58,0,'(Other Computations)'!B208)","v":{"v":-42096.0353961158,"d":"($42,096)"}},{"$f":"NORMINV(RAND()*(1-2*Inputs!B58)+Inputs!B58,0,'(Other Computations)'!B208)","v":{"v":13505.23223156322,"d":"$13,505"}},{"$f":"NORMINV(RAND()*(1-2*Inputs!B58)+Inputs!B58,0,'(Other Computations)'!B208)","v":{"v":1336.5476862630449,"d":"$1,337"}},{"$f":"SUM(DO13:DZ13)","v":{"v":81885.17109824493,"d":"$81,885"}},{"$f":"NORMINV(RAND()*(1-2*Inputs!B58)+Inputs!B58,0,'(Other Computations)'!B208)","v":{"v":-46702.155924081315,"d":"($46,702)"}},{"$f":"NORMINV(RAND()*(1-2*Inputs!B58)+Inputs!B58,0,'(Other Computations)'!B208)","v":{"v":-43351.923745022665,"d":"($43,352)"}},{"$f":"NORMINV(RAND()*(1-2*Inputs!B58)+Inputs!B58,0,'(Other Computations)'!B208)","v":{"v":19217.92601241737,"d":"$19,218"}},{"$f":"NORMINV(RAND()*(1-2*Inputs!B58)+Inputs!B58,0,'(Other Computations)'!B208)","v":{"v":-17020.093885932187,"d":"($17,020)"}},{"$f":"NORMINV(RAND()*(1-2*Inputs!B58)+Inputs!B58,0,'(Other Computations)'!B208)","v":{"v":-22725.841066158075,"d":"($22,726)"}},{"$f":"NORMINV(RAND()*(1-2*Inputs!B58)+Inputs!B58,0,'(Other Computations)'!B208)","v":{"v":3901.3266592372383,"d":"$3,901"}},{"$f":"NORMINV(RAND()*(1-2*Inputs!B58)+Inputs!B58,0,'(Other Computations)'!B208)","v":{"v":40583.41578620538,"d":"$40,583"}},{"$f":"NORMINV(RAND()*(1-2*Inputs!B58)+Inputs!B58,0,'(Other Computations)'!B208)","v":{"v":-25694.726587136447,"d":"($25,695)"}},{"$f":"NORMINV(RAND()*(1-2*Inputs!B58)+Inputs!B58,0,'(Other Computations)'!B208)","v":{"v":4921.320562465405,"d":"$4,921"}},{"$f":"NORMINV(RAND()*(1-2*Inputs!B58)+Inputs!B58,0,'(Other Computations)'!B208)","v":{"v":-46537.00851936002,"d":"($46,537)"}},{"$f":"NORMINV(RAND()*(1-2*Inputs!B58)+Inputs!B58,0,'(Other Computations)'!B208)","v":{"v":-24510.96496596736,"d":"($24,511)"}},{"$f":"NORMINV(RAND()*(1-2*Inputs!B58)+Inputs!B58,0,'(Other Computations)'!B208)","v":{"v":47202.37987082547,"d":"$47,202"}},{"$f":"SUM(EB13:EM13)","v":{"v":-110716.34580250722,"d":"($110,716)"}}]
[]
[]
[{"$f":"\"Capital\"","v":"Capital"}]
[{"$f":"\" \"","v":" "}]
[null,{"$f":"ZZZ__FnCalls!F7","v":"Jan 2010"},{"$f":"ZZZ__FnCalls!F8","v":"Feb 2010"},{"$f":"ZZZ__FnCalls!F9","v":"Mar 2010"},{"$f":"ZZZ__FnCalls!F10","v":"Apr 2010"},{"$f":"ZZZ__FnCalls!F11","v":"May 2010"},{"$f":"ZZZ__FnCalls!F12","v":"Jun 2010"},{"$f":"ZZZ__FnCalls!F13","v":"Jul 2010"},{"$f":"ZZZ__FnCalls!F14","v":"Aug 2010"},{"$f":"ZZZ__FnCalls!F15","v":"Sep 2010"},{"$f":"ZZZ__FnCalls!F16","v":"Oct 2010"},{"$f":"ZZZ__FnCalls!F17","v":"Nov 2010"},{"$f":"ZZZ__FnCalls!F18","v":"Dec 2010"},{"$f":"ZZZ__FnCalls!H7","v":"2010"},{"$f":"ZZZ__FnCalls!F19","v":"Jan 2011"},{"$f":"ZZZ__FnCalls!F20","v":"Feb 2011"},{"$f":"ZZZ__FnCalls!F21","v":"Mar 2011"},{"$f":"ZZZ__FnCalls!F22","v":"Apr 2011"},{"$f":"ZZZ__FnCalls!F23","v":"May 2011"},{"$f":"ZZZ__FnCalls!F24","v":"Jun 2011"},{"$f":"ZZZ__FnCalls!F25","v":"Jul 2011"},{"$f":"ZZZ__FnCalls!F26","v":"Aug 2011"},{"$f":"ZZZ__FnCalls!F27","v":"Sep 2011"},{"$f":"ZZZ__FnCalls!F28","v":"Oct 2011"},{"$f":"ZZZ__FnCalls!F29","v":"Nov 2011"},{"$f":"ZZZ__FnCalls!F30","v":"Dec 2011"},{"$f":"ZZZ__FnCalls!H19","v":"2011"},{"$f":"ZZZ__FnCalls!F31","v":"Jan 2012"},{"$f":"ZZZ__FnCalls!F32","v":"Feb 2012"},{"$f":"ZZZ__FnCalls!F33","v":"Mar 2012"},{"$f":"ZZZ__FnCalls!F34","v":"Apr 2012"},{"$f":"ZZZ__FnCalls!F35","v":"May 2012"},{"$f":"ZZZ__FnCalls!F36","v":"Jun 2012"},{"$f":"ZZZ__FnCalls!F37","v":"Jul 2012"},{"$f":"ZZZ__FnCalls!F38","v":"Aug 2012"},{"$f":"ZZZ__FnCalls!F39","v":"Sep 2012"},{"$f":"ZZZ__FnCalls!F40","v":"Oct 2012"},{"$f":"ZZZ__FnCalls!F41","v":"Nov 2012"},{"$f":"ZZZ__FnCalls!F42","v":"Dec 2012"},{"$f":"ZZZ__FnCalls!H31","v":"2012"},{"$f":"ZZZ__FnCalls!F43","v":"Jan 2013"},{"$f":"ZZZ__FnCalls!F44","v":"Feb 2013"},{"$f":"ZZZ__FnCalls!F45","v":"Mar 2013"},{"$f":"ZZZ__FnCalls!F46","v":"Apr 2013"},{"$f":"ZZZ__FnCalls!F47","v":"May 2013"},{"$f":"ZZZ__FnCalls!F48","v":"Jun 2013"},{"$f":"ZZZ__FnCalls!F49","v":"Jul 2013"},{"$f":"ZZZ__FnCalls!F50","v":"Aug 2013"},{"$f":"ZZZ__FnCalls!F51","v":"Sep 2013"},{"$f":"ZZZ__FnCalls!F52","v":"Oct 2013"},{"$f":"ZZZ__FnCalls!F53","v":"Nov 2013"},{"$f":"ZZZ__FnCalls!F54","v":"Dec 2013"},{"$f":"ZZZ__FnCalls!H43","v":"2013"},{"$f":"ZZZ__FnCalls!F55","v":"Jan 2014"},{"$f":"ZZZ__FnCalls!F56","v":"Feb 2014"},{"$f":"ZZZ__FnCalls!F57","v":"Mar 2014"},{"$f":"ZZZ__FnCalls!F58","v":"Apr 2014"},{"$f":"ZZZ__FnCalls!F59","v":"May 2014"},{"$f":"ZZZ__FnCalls!F60","v":"Jun 2014"},{"$f":"ZZZ__FnCalls!F61","v":"Jul 2014"},{"$f":"ZZZ__FnCalls!F62","v":"Aug 2014"},{"$f":"ZZZ__FnCalls!F63","v":"Sep 2014"},{"$f":"ZZZ__FnCalls!F64","v":"Oct 2014"},{"$f":"ZZZ__FnCalls!F65","v":"Nov 2014"},{"$f":"ZZZ__FnCalls!F66","v":"Dec 2014"},{"$f":"ZZZ__FnCalls!H55","v":"2014"},{"$f":"ZZZ__FnCalls!F67","v":"Jan 2015"},{"$f":"ZZZ__FnCalls!F68","v":"Feb 2015"},{"$f":"ZZZ__FnCalls!F69","v":"Mar 2015"},{"$f":"ZZZ__FnCalls!F70","v":"Apr 2015"},{"$f":"ZZZ__FnCalls!F71","v":"May 2015"},{"$f":"ZZZ__FnCalls!F72","v":"Jun 2015"},{"$f":"ZZZ__FnCalls!F73","v":"Jul 2015"},{"$f":"ZZZ__FnCalls!F74","v":"Aug 2015"},{"$f":"ZZZ__FnCalls!F75","v":"Sep 2015"},{"$f":"ZZZ__FnCalls!F76","v":"Oct 2015"},{"$f":"ZZZ__FnCalls!F77","v":"Nov 2015"},{"$f":"ZZZ__FnCalls!F78","v":"Dec 2015"},{"$f":"ZZZ__FnCalls!H67","v":"2015"},{"$f":"ZZZ__FnCalls!F79","v":"Jan 2016"},{"$f":"ZZZ__FnCalls!F80","v":"Feb 2016"},{"$f":"ZZZ__FnCalls!F81","v":"Mar 2016"},{"$f":"ZZZ__FnCalls!F82","v":"Apr 2016"},{"$f":"ZZZ__FnCalls!F83","v":"May 2016"},{"$f":"ZZZ__FnCalls!F84","v":"Jun 2016"},{"$f":"ZZZ__FnCalls!F85","v":"Jul 2016"},{"$f":"ZZZ__FnCalls!F86","v":"Aug 2016"},{"$f":"ZZZ__FnCalls!F87","v":"Sep 2016"},{"$f":"ZZZ__FnCalls!F88","v":"Oct 2016"},{"$f":"ZZZ__FnCalls!F89","v":"Nov 2016"},{"$f":"ZZZ__FnCalls!F90","v":"Dec 2016"},{"$f":"ZZZ__FnCalls!H79","v":"2016"},{"$f":"ZZZ__FnCalls!F91","v":"Jan 2017"},{"$f":"ZZZ__FnCalls!F92","v":"Feb 2017"},{"$f":"ZZZ__FnCalls!F93","v":"Mar 2017"},{"$f":"ZZZ__FnCalls!F94","v":"Apr 2017"},{"$f":"ZZZ__FnCalls!F95","v":"May 2017"},{"$f":"ZZZ__FnCalls!F96","v":"Jun 2017"},{"$f":"ZZZ__FnCalls!F97","v":"Jul 2017"},{"$f":"ZZZ__FnCalls!F98","v":"Aug 2017"},{"$f":"ZZZ__FnCalls!F99","v":"Sep 2017"},{"$f":"ZZZ__FnCalls!F100","v":"Oct 2017"},{"$f":"ZZZ__FnCalls!F101","v":"Nov 2017"},{"$f":"ZZZ__FnCalls!F102","v":"Dec 2017"},{"$f":"ZZZ__FnCalls!H91","v":"2017"},{"$f":"ZZZ__FnCalls!F103","v":"Jan 2018"},{"$f":"ZZZ__FnCalls!F104","v":"Feb 2018"},{"$f":"ZZZ__FnCalls!F105","v":"Mar 2018"},{"$f":"ZZZ__FnCalls!F106","v":"Apr 2018"},{"$f":"ZZZ__FnCalls!F107","v":"May 2018"},{"$f":"ZZZ__FnCalls!F108","v":"Jun 2018"},{"$f":"ZZZ__FnCalls!F109","v":"Jul 2018"},{"$f":"ZZZ__FnCalls!F110","v":"Aug 2018"},{"$f":"ZZZ__FnCalls!F111","v":"Sep 2018"},{"$f":"ZZZ__FnCalls!F112","v":"Oct 2018"},{"$f":"ZZZ__FnCalls!F113","v":"Nov 2018"},{"$f":"ZZZ__FnCalls!F114","v":"Dec 2018"},{"$f":"ZZZ__FnCalls!H103","v":"2018"},{"$f":"ZZZ__FnCalls!F115","v":"Jan 2019"},{"$f":"ZZZ__FnCalls!F116","v":"Feb 2019"},{"$f":"ZZZ__FnCalls!F117","v":"Mar 2019"},{"$f":"ZZZ__FnCalls!F118","v":"Apr 2019"},{"$f":"ZZZ__FnCalls!F119","v":"May 2019"},{"$f":"ZZZ__FnCalls!F120","v":"Jun 2019"},{"$f":"ZZZ__FnCalls!F121","v":"Jul 2019"},{"$f":"ZZZ__FnCalls!F122","v":"Aug 2019"},{"$f":"ZZZ__FnCalls!F123","v":"Sep 2019"},{"$f":"ZZZ__FnCalls!F124","v":"Oct 2019"},{"$f":"ZZZ__FnCalls!F125","v":"Nov 2019"},{"$f":"ZZZ__FnCalls!F126","v":"Dec 2019"},{"$f":"ZZZ__FnCalls!H115","v":"2019"},{"$f":"ZZZ__FnCalls!F127","v":"Jan 2020"},{"$f":"ZZZ__FnCalls!F128","v":"Feb 2020"},{"$f":"ZZZ__FnCalls!F129","v":"Mar 2020"},{"$f":"ZZZ__FnCalls!F130","v":"Apr 2020"},{"$f":"ZZZ__FnCalls!F131","v":"May 2020"},{"$f":"ZZZ__FnCalls!F132","v":"Jun 2020"},{"$f":"ZZZ__FnCalls!F133","v":"Jul 2020"},{"$f":"ZZZ__FnCalls!F134","v":"Aug 2020"},{"$f":"ZZZ__FnCalls!F135","v":"Sep 2020"},{"$f":"ZZZ__FnCalls!F136","v":"Oct 2020"},{"$f":"ZZZ__FnCalls!F137","v":"Nov 2020"},{"$f":"ZZZ__FnCalls!F138","v":"Dec 2020"},{"$f":"ZZZ__FnCalls!H127","v":"2020"}]
[{"$f":"Labels!B9","v":"Capital"},{"$f":"Inputs!B20*'(Other Computations)'!B8/(1/Inputs!B19/12+'(Other Computations)'!B144)","v":{"v":34645298.42192645,"d":"$34,645,298"}},{"$f":"B19+B21-B20","v":{"v":34645298.42192645,"d":"$34,645,298"}},{"v":34644818.9478989,"d":"$34,644,819"},{"v":34643941.25214348,"d":"$34,643,941"},{"v":34642698.98007875,"d":"$34,642,699"},{"v":34641123.0678708,"d":"$34,641,123"},{"v":34639313.51305271,"d":"$34,639,314"},{"v":34637198.077892326,"d":"$34,637,198"},{"v":34634748.00352149,"d":"$34,634,748"},{"v":34632019.30099819,"d":"$34,632,019"},{"v":34628910.62987789,"d":"$34,628,911"},{"v":34625543.40672316,"d":"$34,625,543"},{"$f":"M19","v":{"v":34625543.40672316,"d":"$34,625,543"}},{"$f":"M19+M21-M20","v":{"v":34621807.026619695,"d":"$34,621,807"}},{"$f":"O19+O21-O20","v":{"v":34617796.51588222,"d":"$34,617,797"}},{"v":34613601.08181109,"d":"$34,613,601"},{"v":34609081.551652685,"d":"$34,609,082"},{"v":34604201.03410282,"d":"$34,604,201"},{"v":34599091.12033125,"d":"$34,599,091"},{"v":34593736.73275613,"d":"$34,593,737"},{"v":34588235.78355255,"d":"$34,588,236"},{"v":34582489.912840985,"d":"$34,582,490"},{"v":34576521.412589006,"d":"$34,576,521"},{"v":34570413.80760159,"d":"$34,570,414"},{"v":34564034.88060745,"d":"$34,564,035"},{"$f":"Z19","v":{"v":34564034.88060745,"d":"$34,564,035"}},{"$f":"Z19+Z21-Z20","v":{"v":34557365.93399745,"d":"$34,557,366"}},{"$f":"AB19+AB21-AB20","v":{"v":34550450.081058994,"d":"$34,550,450"}},{"v":34543336.16947933,"d":"$34,543,336"},{"v":34536035.25339174,"d":"$34,536,035"},{"v":34528509.18470005,"d":"$34,528,509"},{"v":34520787.965976395,"d":"$34,520,788"},{"v":34512832.55924951,"d":"$34,512,833"},{"v":34504666.210901126,"d":"$34,504,666"},{"v":34496371.93141429,"d":"$34,496,372"},{"v":34487944.16628576,"d":"$34,487,944"},{"v":34479327.216203585,"d":"$34,479,327"},{"v":34470560.11493281,"d":"$34,470,560"},{"$f":"AM19","v":{"v":34470560.11493281,"d":"$34,470,560"}},{"$f":"AM19+AM21-AM20","v":{"v":34461719.839171566,"d":"$34,461,720"}},{"$f":"AO19+AO21-AO20","v":{"v":34452801.83466973,"d":"$34,452,802"}},{"v":34443800.107814476,"d":"$34,443,800"},{"v":34434663.80988296,"d":"$34,434,664"},{"v":34425393.6948226,"d":"$34,425,394"},{"v":34415925.25730729,"d":"$34,415,925"},{"v":34406265.44357372,"d":"$34,406,265"},{"v":34396461.727635786,"d":"$34,396,462"},{"v":34386571.64541323,"d":"$34,386,572"},{"v":34376570.40616371,"d":"$34,376,570"},{"v":34366467.811088175,"d":"$34,366,468"},{"v":34356258.72467784,"d":"$34,356,259"},{"$f":"AZ19","v":{"v":34356258.72467784,"d":"$34,356,259"}},{"$f":"AZ19+AZ21-AZ20","v":{"v":34345969.93382923,"d":"$34,345,970"}},{"$f":"BB19+BB21-BB20","v":{"v":34335591.83363421,"d":"$34,335,592"}},{"v":34325082.98824446,"d":"$34,325,083"},{"v":34314533.468646646,"d":"$34,314,533"},{"v":34303962.98846958,"d":"$34,303,963"},{"v":34293320.51260496,"d":"$34,293,321"},{"v":34282604.44957902,"d":"$34,282,604"},{"v":34271861.33100096,"d":"$34,271,861"},{"v":34260980.651324816,"d":"$34,260,981"},{"v":34250010.5288663,"d":"$34,250,011"},{"v":34238991.25123538,"d":"$34,238,991"},{"v":34227919.41026653,"d":"$34,227,919"},{"$f":"BM19","v":{"v":34227919.41026653,"d":"$34,227,919"}},{"$f":"BM19+BM21-BM20","v":{"v":34216799.54177377,"d":"$34,216,800"}},{"$f":"BO19+BO21-BO20","v":{"v":34205584.95470524,"d":"$34,205,585"}},{"v":34194334.08838162,"d":"$34,194,334"},{"v":34183083.84411962,"d":"$34,183,084"},{"v":34171810.03000772,"d":"$34,171,810"},{"v":34160565.07159144,"d":"$34,160,565"},{"v":34149277.216242,"d":"$34,149,277"},{"v":34137916.2350187,"d":"$34,137,916"},{"v":34126509.55217512,"d":"$34,126,510"},{"v":34115111.20078092,"d":"$34,115,111"},{"v":34103692.74127949,"d":"$34,103,693"},{"v":34092253.138897784,"d":"$34,092,253"},{"$f":"BZ19","v":{"v":34092253.138897784,"d":"$34,092,253"}},{"$f":"BZ19+BZ21-BZ20","v":{"v":34080724.68351236,"d":"$34,080,725"}},{"$f":"CB19+CB21-CB20","v":{"v":34069046.8656592,"d":"$34,069,047"}},{"v":34057277.74989537,"d":"$34,057,278"},{"v":34045449.69506713,"d":"$34,045,450"},{"v":34033497.07215424,"d":"$34,033,497"},{"v":34021503.060035415,"d":"$34,021,503"},{"v":34009444.73395853,"d":"$34,009,445"},{"v":33997441.98158523,"d":"$33,997,442"},{"v":33985389.439226925,"d":"$33,985,389"},{"v":33973242.45353196,"d":"$33,973,242"},{"v":33961079.949889615,"d":"$33,961,080"},{"v":33948921.734547734,"d":"$33,948,922"},{"$f":"CM19","v":{"v":33948921.734547734,"d":"$33,948,922"}},{"$f":"CM19+CM21-CM20","v":{"v":33936651.48980192,"d":"$33,936,651"}},{"$f":"CO19+CO21-CO20","v":{"v":33924411.89324947,"d":"$33,924,412"}},{"v":33912205.18816405,"d":"$33,912,205"},{"v":33899965.48499453,"d":"$33,899,965"},{"v":33887718.33740305,"d":"$33,887,718"},{"v":33875458.4595752,"d":"$33,875,458"},{"v":33863031.68047823,"d":"$33,863,032"},{"v":33850554.86554838,"d":"$33,850,555"},{"v":33838102.771279864,"d":"$33,838,103"},{"v":33825609.25711945,"d":"$33,825,609"},{"v":33812965.98583226,"d":"$33,812,966"},{"v":33800358.898951106,"d":"$33,800,359"},{"$f":"CZ19","v":{"v":33800358.898951106,"d":"$33,800,359"}},{"$f":"CZ19+CZ21-CZ20","v":{"v":33787828.870483056,"d":"$33,787,829"}},{"$f":"DB19+DB21-DB20","v":{"v":33775212.11003194,"d":"$33,775,212"}},{"v":33762671.635429785,"d":"$33,762,672"},{"v":33750054.05796099,"d":"$33,750,054"},{"v":33737334.412029706,"d":"$33,737,334"},{"v":33724561.288819686,"d":"$33,724,561"},{"v":33711761.41515656,"d":"$33,711,761"},{"v":33698893.40649926,"d":"$33,698,893"},{"v":33685986.953281306,"d":"$33,685,987"},{"v":33672981.89553354,"d":"$33,672,982"},{"v":33660055.450503044,"d":"$33,660,055"},{"v":33647074.23951623,"d":"$33,647,074"},{"$f":"DM19","v":{"v":33647074.23951623,"d":"$33,647,074"}},{"$f":"DM19+DM21-DM20","v":{"v":33634158.89024561,"d":"$33,634,159"}},{"$f":"DO19+DO21-DO20","v":{"v":33621199.79453444,"d":"$33,621,200"}},{"v":33608125.787239514,"d":"$33,608,126"},{"v":33594962.08623814,"d":"$33,594,962"},{"v":33581876.78766216,"d":"$33,581,877"},{"v":33568849.34577646,"d":"$33,568,849"},{"v":33555771.732923575,"d":"$33,555,772"},{"v":33542751.99106757,"d":"$33,542,752"},{"v":33529778.85259906,"d":"$33,529,779"},{"v":33516790.676363487,"d":"$33,516,791"},{"v":33503814.256323528,"d":"$33,503,814"},{"v":33490730.754608843,"d":"$33,490,731"},{"$f":"DZ19","v":{"v":33490730.754608843,"d":"$33,490,731"}},{"$f":"DZ19+DZ21-DZ20","v":{"v":33477649.399665724,"d":"$33,477,649"}},{"$f":"EB19+EB21-EB20","v":{"v":33464547.0331771,"d":"$33,464,547"}},{"v":33451332.538655218,"d":"$33,451,333"},{"v":33438015.590594154,"d":"$33,438,016"},{"v":33424718.48829757,"d":"$33,424,718"},{"v":33411371.499675028,"d":"$33,411,371"},{"v":33397965.084301244,"d":"$33,397,965"},{"v":33384551.938468967,"d":"$33,384,552"},{"v":33371202.27571582,"d":"$33,371,202"},{"v":33357787.796706464,"d":"$33,357,788"},{"v":33344368.881382097,"d":"$33,344,369"},{"v":33330847.485377703,"d":"$33,330,847"},{"$f":"EM19","v":{"v":33330847.485377703,"d":"$33,330,847"}}]
[{"$f":"Labels!B11","v":"Capital Depreciation"},{"$f":"B22/Inputs!B19/12","v":{"v":206222.0144162289,"d":"$206,222"}},{"$f":"B19/Inputs!B19/12","v":{"v":206222.0144162289,"d":"$206,222"}},{"$f":"C19/Inputs!B19/12","v":{"v":206222.0144162289,"d":"$206,222"}},{"$f":"D19/Inputs!B19/12","v":{"v":206219.16040416012,"d":"$206,219"}},{"$f":"E19/Inputs!B19/12","v":{"v":206213.9360246636,"d":"$206,214"}},{"$f":"F19/Inputs!B19/12","v":{"v":206206.54154808781,"d":"$206,207"}},{"$f":"G19/Inputs!B19/12","v":{"v":206197.1611182786,"d":"$206,197"}},{"$f":"H19/Inputs!B19/12","v":{"v":206186.38995864708,"d":"$206,186"}},{"$f":"I19/Inputs!B19/12","v":{"v":206173.79808269243,"d":"$206,174"}},{"$f":"J19/Inputs!B19/12","v":{"v":206159.2143066755,"d":"$206,159"}},{"$f":"K19/Inputs!B19/12","v":{"v":206142.97202975114,"d":"$206,143"}},{"$f":"L19/Inputs!B19/12","v":{"v":206124.46803498743,"d":"$206,124"}},{"$f":"SUM(B20:M20)","v":{"v":2474289.68475663,"d":"$2,474,290"}},{"$f":"M19/Inputs!B19/12","v":{"v":206104.42504001877,"d":"$206,104"}},{"$f":"O19/Inputs!B19/12","v":{"v":206082.18468226006,"d":"$206,082"}},{"$f":"P19/Inputs!B19/12","v":{"v":206058.312594537,"d":"$206,058"}},{"$f":"Q19/Inputs!B19/12","v":{"v":206033.33977268508,"d":"$206,033"}},{"$f":"R19/Inputs!B19/12","v":{"v":206006.43780745647,"d":"$206,006"}},{"$f":"S19/Inputs!B19/12","v":{"v":205977.38710775485,"d":"$205,977"}},{"$f":"T19/Inputs!B19/12","v":{"v":205946.97095435267,"d":"$205,947"}},{"$f":"U19/Inputs!B19/12","v":{"v":205915.09959973887,"d":"$205,915"}},{"$f":"V19/Inputs!B19/12","v":{"v":205882.35585447948,"d":"$205,882"}},{"$f":"W19/Inputs!B19/12","v":{"v":205848.1542431011,"d":"$205,848"}},{"$f":"X19/Inputs!B19/12","v":{"v":205812.62745588695,"d":"$205,813"}},{"$f":"Y19/Inputs!B19/12","v":{"v":205776.2726642952,"d":"$205,776"}},{"$f":"SUM(O20:Z20)","v":{"v":2471443.567776567,"d":"$2,471,444"}},{"$f":"Z19/Inputs!B19/12","v":{"v":205738.30286075862,"d":"$205,738"}},{"$f":"AB19/Inputs!B19/12","v":{"v":205698.6067499848,"d":"$205,699"}},{"$f":"AC19/Inputs!B19/12","v":{"v":205657.4409586845,"d":"$205,657"}},{"$f":"AD19/Inputs!B19/12","v":{"v":205615.09624690076,"d":"$205,615"}},{"$f":"AE19/Inputs!B19/12","v":{"v":205571.6384130461,"d":"$205,572"}},{"$f":"AF19/Inputs!B19/12","v":{"v":205526.84038511934,"d":"$205,527"}},{"$f":"AG19/Inputs!B19/12","v":{"v":205480.8807498595,"d":"$205,481"}},{"$f":"AH19/Inputs!B19/12","v":{"v":205433.52713838997,"d":"$205,434"}},{"$f":"AI19/Inputs!B19/12","v":{"v":205384.91792203052,"d":"$205,385"}},{"$f":"AJ19/Inputs!B19/12","v":{"v":205335.54721079933,"d":"$205,336"}},{"$f":"AK19/Inputs!B19/12","v":{"v":205285.38194217716,"d":"$205,285"}},{"$f":"AL19/Inputs!B19/12","v":{"v":205234.0905726404,"d":"$205,234"}},{"$f":"SUM(AB20:AM20)","v":{"v":2465962.2711503906,"d":"$2,465,962"}},{"$f":"AM19/Inputs!B19/12","v":{"v":205181.90544602866,"d":"$205,182"}},{"$f":"AO19/Inputs!B19/12","v":{"v":205129.28475697362,"d":"$205,129"}},{"$f":"AP19/Inputs!B19/12","v":{"v":205076.20139684365,"d":"$205,076"}},{"$f":"AQ19/Inputs!B19/12","v":{"v":205022.61968937187,"d":"$205,023"}},{"$f":"AR19/Inputs!B19/12","v":{"v":204968.23696358906,"d":"$204,968"}},{"$f":"AS19/Inputs!B19/12","v":{"v":204913.0577072774,"d":"$204,913"}},{"$f":"AT19/Inputs!B19/12","v":{"v":204856.69796016245,"d":"$204,857"}},{"$f":"AU19/Inputs!B19/12","v":{"v":204799.1990688912,"d":"$204,799"}},{"$f":"AV19/Inputs!B19/12","v":{"v":204740.84361687966,"d":"$204,741"}},{"$f":"AW19/Inputs!B19/12","v":{"v":204681.9740798406,"d":"$204,682"}},{"$f":"AX19/Inputs!B19/12","v":{"v":204622.4428938316,"d":"$204,622"}},{"$f":"AY19/Inputs!B19/12","v":{"v":204562.30839933435,"d":"$204,562"}},{"$f":"SUM(AO20:AZ20)","v":{"v":2458554.7719790246,"d":"$2,458,555"}},{"$f":"AZ19/Inputs!B19/12","v":{"v":204501.54002784428,"d":"$204,502"}},{"$f":"BB19/Inputs!B19/12","v":{"v":204440.297225174,"d":"$204,440"}},{"$f":"BC19/Inputs!B19/12","v":{"v":204378.52281925126,"d":"$204,379"}},{"$f":"BD19/Inputs!B19/12","v":{"v":204315.97016812177,"d":"$204,316"}},{"$f":"BE19/Inputs!B19/12","v":{"v":204253.175408611,"d":"$204,253"}},{"$f":"BF19/Inputs!B19/12","v":{"v":204190.25588374748,"d":"$204,190"}},{"$f":"BG19/Inputs!B19/12","v":{"v":204126.90781312474,"d":"$204,127"}},{"$f":"BH19/Inputs!B19/12","v":{"v":204063.1217236847,"d":"$204,063"}},{"$f":"BI19/Inputs!B19/12","v":{"v":203999.17458929145,"d":"$203,999"}},{"$f":"BJ19/Inputs!B19/12","v":{"v":203934.40863883818,"d":"$203,934"}},{"$f":"BK19/Inputs!B19/12","v":{"v":203869.1102908708,"d":"$203,869"}},{"$f":"BL19/Inputs!B19/12","v":{"v":203803.51935259157,"d":"$203,804"}},{"$f":"SUM(BB20:BM20)","v":{"v":2449876.0039411513,"d":"$2,449,876"}},{"$f":"BM19/Inputs!B19/12","v":{"v":203737.6155373008,"d":"$203,738"}},{"$f":"BO19/Inputs!B19/12","v":{"v":203671.42584389145,"d":"$203,671"}},{"$f":"BP19/Inputs!B19/12","v":{"v":203604.67234943595,"d":"$203,605"}},{"$f":"BQ19/Inputs!B19/12","v":{"v":203537.70290703347,"d":"$203,538"}},{"$f":"BR19/Inputs!B19/12","v":{"v":203470.73716737868,"d":"$203,471"}},{"$f":"BS19/Inputs!B19/12","v":{"v":203403.63113099834,"d":"$203,404"}},{"$f":"BT19/Inputs!B19/12","v":{"v":203336.69685471093,"d":"$203,337"}},{"$f":"BU19/Inputs!B19/12","v":{"v":203269.5072395357,"d":"$203,270"}},{"$f":"BV19/Inputs!B19/12","v":{"v":203201.8823513018,"d":"$203,202"}},{"$f":"BW19/Inputs!B19/12","v":{"v":203133.98542961382,"d":"$203,134"}},{"$f":"BX19/Inputs!B19/12","v":{"v":203066.13809988645,"d":"$203,066"}},{"$f":"BY19/Inputs!B19/12","v":{"v":202998.17107904458,"d":"$202,998"}},{"$f":"SUM(BO20:BZ20)","v":{"v":2440432.1659901324,"d":"$2,440,432"}},{"$f":"BZ19/Inputs!B19/12","v":{"v":202930.07820772493,"d":"$202,930"}},{"$f":"CB19/Inputs!B19/12","v":{"v":202861.4564494783,"d":"$202,861"}},{"$f":"CC19/Inputs!B19/12","v":{"v":202791.9456289238,"d":"$202,792"}},{"$f":"CD19/Inputs!B19/12","v":{"v":202721.89136842484,"d":"$202,722"}},{"$f":"CE19/Inputs!B19/12","v":{"v":202651.4862801615,"d":"$202,651"}},{"$f":"CF19/Inputs!B19/12","v":{"v":202580.33971520382,"d":"$202,580"}},{"$f":"CG19/Inputs!B19/12","v":{"v":202508.94678592507,"d":"$202,509"}},{"$f":"CH19/Inputs!B19/12","v":{"v":202437.1710354674,"d":"$202,437"}},{"$f":"CI19/Inputs!B19/12","v":{"v":202365.72608086444,"d":"$202,366"}},{"$f":"CJ19/Inputs!B19/12","v":{"v":202293.98475730314,"d":"$202,294"}},{"$f":"CK19/Inputs!B19/12","v":{"v":202221.68127102355,"d":"$202,222"}},{"$f":"CL19/Inputs!B19/12","v":{"v":202149.2854160096,"d":"$202,149"}},{"$f":"SUM(CB20:CM20)","v":{"v":2430513.992996511,"d":"$2,430,514"}},{"$f":"CM19/Inputs!B19/12","v":{"v":202076.91508659368,"d":"$202,077"}},{"$f":"CO19/Inputs!B19/12","v":{"v":202003.87791548762,"d":"$202,004"}},{"$f":"CP19/Inputs!B19/12","v":{"v":201931.02317410396,"d":"$201,931"}},{"$f":"CQ19/Inputs!B19/12","v":{"v":201858.3642152622,"d":"$201,858"}},{"$f":"CR19/Inputs!B19/12","v":{"v":201785.50883925313,"d":"$201,786"}},{"$f":"CS19/Inputs!B19/12","v":{"v":201712.60915120866,"d":"$201,713"}},{"$f":"CT19/Inputs!B19/12","v":{"v":201639.63368794761,"d":"$201,640"}},{"$f":"CU19/Inputs!B19/12","v":{"v":201565.66476475136,"d":"$201,566"}},{"$f":"CV19/Inputs!B19/12","v":{"v":201491.39800921653,"d":"$201,491"}},{"$f":"CW19/Inputs!B19/12","v":{"v":201417.2784004754,"d":"$201,417"}},{"$f":"CX19/Inputs!B19/12","v":{"v":201342.9122447586,"d":"$201,343"}},{"$f":"CY19/Inputs!B19/12","v":{"v":201267.65467757298,"d":"$201,268"}},{"$f":"SUM(CO20:CZ20)","v":{"v":2420092.840166632,"d":"$2,420,093"}},{"$f":"CZ19/Inputs!B19/12","v":{"v":201192.61249375658,"d":"$201,193"}},{"$f":"DB19/Inputs!B19/12","v":{"v":201118.02899097058,"d":"$201,118"}},{"$f":"DC19/Inputs!B19/12","v":{"v":201042.92922638057,"d":"$201,043"}},{"$f":"DD19/Inputs!B19/12","v":{"v":200968.28354422492,"d":"$200,968"}},{"$f":"DE19/Inputs!B19/12","v":{"v":200893.17891643444,"d":"$200,893"}},{"$f":"DF19/Inputs!B19/12","v":{"v":200817.46673827208,"d":"$200,817"}},{"$f":"DG19/Inputs!B19/12","v":{"v":200741.43624297433,"d":"$200,741"}},{"$f":"DH19/Inputs!B19/12","v":{"v":200665.24651878906,"d":"$200,665"}},{"$f":"DI19/Inputs!B19/12","v":{"v":200588.65122916226,"d":"$200,589"}},{"$f":"DJ19/Inputs!B19/12","v":{"v":200511.8271028649,"d":"$200,512"}},{"$f":"DK19/Inputs!B19/12","v":{"v":200434.41604484248,"d":"$200,434"}},{"$f":"DL19/Inputs!B19/12","v":{"v":200357.47291966097,"d":"$200,357"}},{"$f":"SUM(DB20:DM20)","v":{"v":2409331.5499683334,"d":"$2,409,332"}},{"$f":"DM19/Inputs!B19/12","v":{"v":200280.20380664422,"d":"$200,280"}},{"$f":"DO19/Inputs!B19/12","v":{"v":200203.32672765243,"d":"$200,203"}},{"$f":"DP19/Inputs!B19/12","v":{"v":200126.1892531812,"d":"$200,126"}},{"$f":"DQ19/Inputs!B19/12","v":{"v":200048.3677811876,"d":"$200,048"}},{"$f":"DR19/Inputs!B19/12","v":{"v":199970.01241808417,"d":"$199,970"}},{"$f":"DS19/Inputs!B19/12","v":{"v":199892.12373608432,"d":"$199,892"}},{"$f":"DT19/Inputs!B19/12","v":{"v":199814.5794391456,"d":"$199,815"}},{"$f":"DU19/Inputs!B19/12","v":{"v":199736.73650549748,"d":"$199,737"}},{"$f":"DV19/Inputs!B19/12","v":{"v":199659.23804206887,"d":"$199,659"}},{"$f":"DW19/Inputs!B19/12","v":{"v":199582.0169797563,"d":"$199,582"}},{"$f":"DX19/Inputs!B19/12","v":{"v":199504.70640692554,"d":"$199,505"}},{"$f":"DY19/Inputs!B19/12","v":{"v":199427.46581144957,"d":"$199,427"}},{"$f":"SUM(DO20:DZ20)","v":{"v":2398244.9669076772,"d":"$2,398,245"}},{"$f":"DZ19/Inputs!B19/12","v":{"v":199349.58782505264,"d":"$199,350"}},{"$f":"EB19/Inputs!B19/12","v":{"v":199271.72261705788,"d":"$199,272"}},{"$f":"EC19/Inputs!B19/12","v":{"v":199193.7323403399,"d":"$199,194"}},{"$f":"ED19/Inputs!B19/12","v":{"v":199115.07463485247,"d":"$199,115"}},{"$f":"EE19/Inputs!B19/12","v":{"v":199035.80708686996,"d":"$199,036"}},{"$f":"EF19/Inputs!B19/12","v":{"v":198956.65766843793,"d":"$198,957"}},{"$f":"EG19/Inputs!B19/12","v":{"v":198877.21130758946,"d":"$198,877"}},{"$f":"EH19/Inputs!B19/12","v":{"v":198797.41121607882,"d":"$198,797"}},{"$f":"EI19/Inputs!B19/12","v":{"v":198717.57106231528,"d":"$198,718"}},{"$f":"EJ19/Inputs!B19/12","v":{"v":198638.10878402274,"d":"$198,638"}},{"$f":"EK19/Inputs!B19/12","v":{"v":198558.26069468132,"d":"$198,558"}},{"$f":"EL19/Inputs!B19/12","v":{"v":198478.38619870297,"d":"$198,478"}},{"$f":"SUM(EB20:EM20)","v":{"v":2386989.531436001,"d":"$2,386,990"}}]
[{"$f":"Labels!B19","v":"Capital Investment"},{"$f":"B20+(B22-B19)/Inputs!B22/12","v":{"v":206222.0144162289,"d":"$206,222"}},{"$f":"C20+(C22-C19)/Inputs!B22/12","v":{"v":205742.54038867264,"d":"$205,743"}},{"$f":"D20+(D22-D19)/Inputs!B22/12","v":{"v":205344.31866080596,"d":"$205,344"}},{"$f":"E20+(E22-E19)/Inputs!B22/12","v":{"v":204976.88833943207,"d":"$204,977"}},{"$f":"F20+(F22-F19)/Inputs!B22/12","v":{"v":204638.02381671887,"d":"$204,638"}},{"$f":"G20+(G22-G19)/Inputs!B22/12","v":{"v":204396.98672999113,"d":"$204,397"}},{"$f":"H20+(H22-H19)/Inputs!B22/12","v":{"v":204081.7259578913,"d":"$204,082"}},{"$f":"I20+(I22-I19)/Inputs!B22/12","v":{"v":203736.31558780838,"d":"$203,736"}},{"$f":"J20+(J22-J19)/Inputs!B22/12","v":{"v":203445.0955593974,"d":"$203,445"}},{"$f":"K20+(K22-K19)/Inputs!B22/12","v":{"v":203050.5431863709,"d":"$203,051"}},{"$f":"L20+(L22-L19)/Inputs!B22/12","v":{"v":202775.74887502563,"d":"$202,776"}},{"$f":"M20+(M22-M19)/Inputs!B22/12","v":{"v":202388.08793152764,"d":"$202,388"}},{"$f":"SUM(B21:M21)","v":{"v":2450798.289449871,"d":"$2,450,798"}},{"$f":"O20+(O22-O19)/Inputs!B22/12","v":{"v":202093.91430253923,"d":"$202,094"}},{"$f":"P20+(P22-P19)/Inputs!B22/12","v":{"v":201886.7506111375,"d":"$201,887"}},{"$f":"Q20+(Q22-Q19)/Inputs!B22/12","v":{"v":201538.7824361346,"d":"$201,539"}},{"$f":"R20+(R22-R19)/Inputs!B22/12","v":{"v":201152.82222281973,"d":"$201,153"}},{"$f":"S20+(S22-S19)/Inputs!B22/12","v":{"v":200896.5240358878,"d":"$200,897"}},{"$f":"T20+(T22-T19)/Inputs!B22/12","v":{"v":200622.99953262912,"d":"$200,623"}},{"$f":"U20+(U22-U19)/Inputs!B22/12","v":{"v":200446.02175076853,"d":"$200,446"}},{"$f":"V20+(V22-V19)/Inputs!B22/12","v":{"v":200169.2288881728,"d":"$200,169"}},{"$f":"W20+(W22-W19)/Inputs!B22/12","v":{"v":199913.85560250582,"d":"$199,914"}},{"$f":"X20+(X22-X19)/Inputs!B22/12","v":{"v":199740.54925569482,"d":"$199,741"}},{"$f":"Y20+(Y22-Y19)/Inputs!B22/12","v":{"v":199433.70046174762,"d":"$199,434"}},{"$f":"Z20+(Z22-Z19)/Inputs!B22/12","v":{"v":199107.32605429913,"d":"$199,107"}},{"$f":"SUM(O21:Z21)","v":{"v":2407002.4751543365,"d":"$2,407,002"}},{"$f":"AB20+(AB22-AB19)/Inputs!B22/12","v":{"v":198822.44992229968,"d":"$198,822"}},{"$f":"AC20+(AC22-AC19)/Inputs!B22/12","v":{"v":198584.6951703227,"d":"$198,585"}},{"$f":"AD20+(AD22-AD19)/Inputs!B22/12","v":{"v":198356.5248710989,"d":"$198,357"}},{"$f":"AE20+(AE22-AE19)/Inputs!B22/12","v":{"v":198089.0275552038,"d":"$198,089"}},{"$f":"AF20+(AF22-AF19)/Inputs!B22/12","v":{"v":197850.41968939322,"d":"$197,850"}},{"$f":"AG20+(AG22-AG19)/Inputs!B22/12","v":{"v":197571.4336582319,"d":"$197,571"}},{"$f":"AH20+(AH22-AH19)/Inputs!B22/12","v":{"v":197314.53240147373,"d":"$197,315"}},{"$f":"AI20+(AI22-AI19)/Inputs!B22/12","v":{"v":197139.2476515527,"d":"$197,139"}},{"$f":"AJ20+(AJ22-AJ19)/Inputs!B22/12","v":{"v":196957.15279349356,"d":"$196,957"}},{"$f":"AK20+(AK22-AK19)/Inputs!B22/12","v":{"v":196718.59712862514,"d":"$196,719"}},{"$f":"AL20+(AL22-AL19)/Inputs!B22/12","v":{"v":196518.28067140546,"d":"$196,518"}},{"$f":"AM20+(AM22-AM19)/Inputs!B22/12","v":{"v":196393.8148113939,"d":"$196,394"}},{"$f":"SUM(AB21:AM21)","v":{"v":2370316.176324495,"d":"$2,370,316"}},{"$f":"AO20+(AO22-AO19)/Inputs!B22/12","v":{"v":196263.9009441962,"d":"$196,264"}},{"$f":"AP20+(AP22-AP19)/Inputs!B22/12","v":{"v":196127.55790171548,"d":"$196,128"}},{"$f":"AQ20+(AQ22-AQ19)/Inputs!B22/12","v":{"v":195939.9034653269,"d":"$195,940"}},{"$f":"AR20+(AR22-AR19)/Inputs!B22/12","v":{"v":195752.5046290149,"d":"$195,753"}},{"$f":"AS20+(AS22-AS19)/Inputs!B22/12","v":{"v":195499.7994482837,"d":"$195,500"}},{"$f":"AT20+(AT22-AT19)/Inputs!B22/12","v":{"v":195253.24397371104,"d":"$195,253"}},{"$f":"AU20+(AU22-AU19)/Inputs!B22/12","v":{"v":195052.98202222516,"d":"$195,053"}},{"$f":"AV20+(AV22-AV19)/Inputs!B22/12","v":{"v":194909.11684632953,"d":"$194,909"}},{"$f":"AW20+(AW22-AW19)/Inputs!B22/12","v":{"v":194739.60436735905,"d":"$194,740"}},{"$f":"AX20+(AX22-AX19)/Inputs!B22/12","v":{"v":194579.37900430514,"d":"$194,579"}},{"$f":"AY20+(AY22-AY19)/Inputs!B22/12","v":{"v":194413.35648349355,"d":"$194,413"}},{"$f":"AZ20+(AZ22-AZ19)/Inputs!B22/12","v":{"v":194273.51755073067,"d":"$194,274"}},{"$f":"SUM(AO21:AZ21)","v":{"v":2342804.8666366916,"d":"$2,342,805"}},{"$f":"BB20+(BB22-BB19)/Inputs!B22/12","v":{"v":194123.43983281887,"d":"$194,123"}},{"$f":"BC20+(BC22-BC19)/Inputs!B22/12","v":{"v":193931.45183542353,"d":"$193,931"}},{"$f":"BD20+(BD22-BD19)/Inputs!B22/12","v":{"v":193829.00322143716,"d":"$193,829"}},{"$f":"BE20+(BE22-BE19)/Inputs!B22/12","v":{"v":193745.48999105187,"d":"$193,745"}},{"$f":"BF20+(BF22-BF19)/Inputs!B22/12","v":{"v":193610.6995439903,"d":"$193,611"}},{"$f":"BG20+(BG22-BG19)/Inputs!B22/12","v":{"v":193474.1928578108,"d":"$193,474"}},{"$f":"BH20+(BH22-BH19)/Inputs!B22/12","v":{"v":193383.78923506453,"d":"$193,384"}},{"$f":"BI20+(BI22-BI19)/Inputs!B22/12","v":{"v":193182.44204753338,"d":"$193,182"}},{"$f":"BJ20+(BJ22-BJ19)/Inputs!B22/12","v":{"v":193029.0521307747,"d":"$193,029"}},{"$f":"BK20+(BK22-BK19)/Inputs!B22/12","v":{"v":192915.13100791405,"d":"$192,915"}},{"$f":"BL20+(BL22-BL19)/Inputs!B22/12","v":{"v":192797.26932202227,"d":"$192,797"}},{"$f":"BM20+(BM22-BM19)/Inputs!B22/12","v":{"v":192683.65085982703,"d":"$192,684"}},{"$f":"SUM(BB21:BM21)","v":{"v":2320705.6118856687,"d":"$2,320,706"}},{"$f":"BO20+(BO22-BO19)/Inputs!B22/12","v":{"v":192523.02846876933,"d":"$192,523"}},{"$f":"BP20+(BP22-BP19)/Inputs!B22/12","v":{"v":192420.55952027428,"d":"$192,421"}},{"$f":"BQ20+(BQ22-BQ19)/Inputs!B22/12","v":{"v":192354.42808744224,"d":"$192,354"}},{"$f":"BR20+(BR22-BR19)/Inputs!B22/12","v":{"v":192263.88879513077,"d":"$192,264"}},{"$f":"BS20+(BS22-BS19)/Inputs!B22/12","v":{"v":192225.778751097,"d":"$192,226"}},{"$f":"BT20+(BT22-BT19)/Inputs!B22/12","v":{"v":192115.77578156712,"d":"$192,116"}},{"$f":"BU20+(BU22-BU19)/Inputs!B22/12","v":{"v":191975.71563141083,"d":"$191,976"}},{"$f":"BV20+(BV22-BV19)/Inputs!B22/12","v":{"v":191862.82439595155,"d":"$191,863"}},{"$f":"BW20+(BW22-BW19)/Inputs!B22/12","v":{"v":191803.53095710423,"d":"$191,804"}},{"$f":"BX20+(BX22-BX19)/Inputs!B22/12","v":{"v":191715.52592818363,"d":"$191,716"}},{"$f":"BY20+(BY22-BY19)/Inputs!B22/12","v":{"v":191626.53571817835,"d":"$191,627"}},{"$f":"BZ20+(BZ22-BZ19)/Inputs!B22/12","v":{"v":191469.71569362286,"d":"$191,470"}},{"$f":"SUM(BO21:BZ21)","v":{"v":2304357.3077287325,"d":"$2,304,357"}},{"$f":"CB20+(CB22-CB19)/Inputs!B22/12","v":{"v":191252.26035456493,"d":"$191,252"}},{"$f":"CC20+(CC22-CC19)/Inputs!B22/12","v":{"v":191092.34068565367,"d":"$191,092"}},{"$f":"CD20+(CD22-CD19)/Inputs!B22/12","v":{"v":190963.89080068254,"d":"$190,964"}},{"$f":"CE20+(CE22-CE19)/Inputs!B22/12","v":{"v":190769.26845553756,"d":"$190,769"}},{"$f":"CF20+(CF22-CF19)/Inputs!B22/12","v":{"v":190657.4741613317,"d":"$190,657"}},{"$f":"CG20+(CG22-CG19)/Inputs!B22/12","v":{"v":190522.01363831814,"d":"$190,522"}},{"$f":"CH20+(CH22-CH19)/Inputs!B22/12","v":{"v":190506.19441262705,"d":"$190,506"}},{"$f":"CI20+(CI22-CI19)/Inputs!B22/12","v":{"v":190384.62867716624,"d":"$190,385"}},{"$f":"CJ20+(CJ22-CJ19)/Inputs!B22/12","v":{"v":190218.74038589877,"d":"$190,219"}},{"$f":"CK20+(CK22-CK19)/Inputs!B22/12","v":{"v":190131.48111496077,"d":"$190,131"}},{"$f":"CL20+(CL22-CL19)/Inputs!B22/12","v":{"v":190063.46592913964,"d":"$190,063"}},{"$f":"CM20+(CM22-CM19)/Inputs!B22/12","v":{"v":189879.04067019516,"d":"$189,879"}},{"$f":"SUM(CB21:CM21)","v":{"v":2286440.7992860763,"d":"$2,286,441"}},{"$f":"CO20+(CO22-CO19)/Inputs!B22/12","v":{"v":189837.31853414667,"d":"$189,837"}},{"$f":"CP20+(CP22-CP19)/Inputs!B22/12","v":{"v":189797.17283007118,"d":"$189,797"}},{"$f":"CQ20+(CQ22-CQ19)/Inputs!B22/12","v":{"v":189691.32000458872,"d":"$189,691"}},{"$f":"CR20+(CR22-CR19)/Inputs!B22/12","v":{"v":189611.2166237837,"d":"$189,611"}},{"$f":"CS20+(CS22-CS19)/Inputs!B22/12","v":{"v":189525.6310113975,"d":"$189,526"}},{"$f":"CT20+(CT22-CT19)/Inputs!B22/12","v":{"v":189285.83005423998,"d":"$189,286"}},{"$f":"CU20+(CU22-CU19)/Inputs!B22/12","v":{"v":189162.81875810333,"d":"$189,163"}},{"$f":"CV20+(CV22-CV19)/Inputs!B22/12","v":{"v":189113.57049624217,"d":"$189,114"}},{"$f":"CW20+(CW22-CW19)/Inputs!B22/12","v":{"v":188997.88384880158,"d":"$188,998"}},{"$f":"CX20+(CX22-CX19)/Inputs!B22/12","v":{"v":188774.00711328362,"d":"$188,774"}},{"$f":"CY20+(CY22-CY19)/Inputs!B22/12","v":{"v":188735.82536360892,"d":"$188,736"}},{"$f":"CZ20+(CZ22-CZ19)/Inputs!B22/12","v":{"v":188737.62620951785,"d":"$188,738"}},{"$f":"SUM(CO21:CZ21)","v":{"v":2271270.2208477855,"d":"$2,271,270"}},{"$f":"DB20+(DB22-DB19)/Inputs!B22/12","v":{"v":188575.8520426344,"d":"$188,576"}},{"$f":"DC20+(DC22-DC19)/Inputs!B22/12","v":{"v":188577.55438881446,"d":"$188,578"}},{"$f":"DD20+(DD22-DD19)/Inputs!B22/12","v":{"v":188425.35175758685,"d":"$188,425"}},{"$f":"DE20+(DE22-DE19)/Inputs!B22/12","v":{"v":188248.63761294345,"d":"$188,249"}},{"$f":"DF20+(DF22-DF19)/Inputs!B22/12","v":{"v":188120.0557064091,"d":"$188,120"}},{"$f":"DG20+(DG22-DG19)/Inputs!B22/12","v":{"v":188017.5930751398,"d":"$188,018"}},{"$f":"DH20+(DH22-DH19)/Inputs!B22/12","v":{"v":187873.42758567774,"d":"$187,873"}},{"$f":"DI20+(DI22-DI19)/Inputs!B22/12","v":{"v":187758.7933008408,"d":"$187,759"}},{"$f":"DJ20+(DJ22-DJ19)/Inputs!B22/12","v":{"v":187583.59348139848,"d":"$187,584"}},{"$f":"DK20+(DK22-DK19)/Inputs!B22/12","v":{"v":187585.38207236625,"d":"$187,585"}},{"$f":"DL20+(DL22-DL19)/Inputs!B22/12","v":{"v":187453.20505803206,"d":"$187,453"}},{"$f":"DM20+(DM22-DM19)/Inputs!B22/12","v":{"v":187442.12364903768,"d":"$187,442"}},{"$f":"SUM(DB21:DM21)","v":{"v":2255661.5697308807,"d":"$2,255,662"}},{"$f":"DO20+(DO22-DO19)/Inputs!B22/12","v":{"v":187321.10809547736,"d":"$187,321"}},{"$f":"DP20+(DP22-DP19)/Inputs!B22/12","v":{"v":187129.31943273018,"d":"$187,129"}},{"$f":"DQ20+(DQ22-DQ19)/Inputs!B22/12","v":{"v":186962.48825180467,"d":"$186,962"}},{"$f":"DR20+(DR22-DR19)/Inputs!B22/12","v":{"v":186963.06920520827,"d":"$186,963"}},{"$f":"DS20+(DS22-DS19)/Inputs!B22/12","v":{"v":186942.57053238404,"d":"$186,943"}},{"$f":"DT20+(DT22-DT19)/Inputs!B22/12","v":{"v":186814.51088319905,"d":"$186,815"}},{"$f":"DU20+(DU22-DU19)/Inputs!B22/12","v":{"v":186794.8375831423,"d":"$186,795"}},{"$f":"DV20+(DV22-DV19)/Inputs!B22/12","v":{"v":186763.59803698753,"d":"$186,764"}},{"$f":"DW20+(DW22-DW19)/Inputs!B22/12","v":{"v":186671.06180649291,"d":"$186,671"}},{"$f":"DX20+(DX22-DX19)/Inputs!B22/12","v":{"v":186605.5969398017,"d":"$186,606"}},{"$f":"DY20+(DY22-DY19)/Inputs!B22/12","v":{"v":186421.20469224395,"d":"$186,421"}},{"$f":"DZ20+(DZ22-DZ19)/Inputs!B22/12","v":{"v":186346.11086833442,"d":"$186,346"}},{"$f":"SUM(DO21:DZ21)","v":{"v":2241735.4763278062,"d":"$2,241,735"}},{"$f":"EB20+(EB22-EB19)/Inputs!B22/12","v":{"v":186247.22133642487,"d":"$186,247"}},{"$f":"EC20+(EC22-EC19)/Inputs!B22/12","v":{"v":186057.22809517404,"d":"$186,057"}},{"$f":"ED20+(ED22-ED19)/Inputs!B22/12","v":{"v":185876.78427927633,"d":"$185,877"}},{"$f":"EE20+(EE22-EE19)/Inputs!B22/12","v":{"v":185817.97233826798,"d":"$185,818"}},{"$f":"EF20+(EF22-EF19)/Inputs!B22/12","v":{"v":185688.8184643251,"d":"$185,689"}},{"$f":"EG20+(EG22-EG19)/Inputs!B22/12","v":{"v":185550.24229465748,"d":"$185,550"}},{"$f":"EH20+(EH22-EH19)/Inputs!B22/12","v":{"v":185464.0654753105,"d":"$185,464"}},{"$f":"EI20+(EI22-EI19)/Inputs!B22/12","v":{"v":185447.74846293216,"d":"$185,448"}},{"$f":"EJ20+(EJ22-EJ19)/Inputs!B22/12","v":{"v":185303.09205296185,"d":"$185,303"}},{"$f":"EK20+(EK22-EK19)/Inputs!B22/12","v":{"v":185219.19345965754,"d":"$185,219"}},{"$f":"EL20+(EL22-EL19)/Inputs!B22/12","v":{"v":185036.8646902873,"d":"$185,037"}},{"$f":"EM20+(EM22-EM19)/Inputs!B22/12","v":{"v":184899.49865729193,"d":"$184,899"}},{"$f":"SUM(EB21:EM21)","v":{"v":2226608.729606567,"d":"$2,226,609"}}]
[{"$f":"Labels!B14","v":"Desired Capital"},{"$f":"Inputs!B20*B10/(1/Inputs!B19/12+'(Other Computations)'!B144)","v":{"v":34645298.42192645,"d":"$34,645,298"}},{"$f":"Inputs!B20*C10/(1/Inputs!B19/12+'(Other Computations)'!B144)","v":{"v":34628037.35693443,"d":"$34,628,037"}},{"$f":"Inputs!B20*D10/(1/Inputs!B19/12+'(Other Computations)'!B144)","v":{"v":34613221.900703676,"d":"$34,613,222"}},{"$f":"Inputs!B20*E10/(1/Inputs!B19/12+'(Other Computations)'!B144)","v":{"v":34599219.45781327,"d":"$34,599,219"}},{"$f":"Inputs!B20*F10/(1/Inputs!B19/12+'(Other Computations)'!B144)","v":{"v":34585966.14059274,"d":"$34,585,966"}},{"$f":"Inputs!B20*G10/(1/Inputs!B19/12+'(Other Computations)'!B144)","v":{"v":34575979.09441932,"d":"$34,575,979"}},{"$f":"Inputs!B20*H10/(1/Inputs!B19/12+'(Other Computations)'!B144)","v":{"v":34563157.84727877,"d":"$34,563,158"}},{"$f":"Inputs!B20*I10/(1/Inputs!B19/12+'(Other Computations)'!B144)","v":{"v":34548995.40054213,"d":"$34,548,995"}},{"$f":"Inputs!B20*J10/(1/Inputs!B19/12+'(Other Computations)'!B144)","v":{"v":34536514.712682866,"d":"$34,536,515"}},{"$f":"Inputs!B20*K10/(1/Inputs!B19/12+'(Other Computations)'!B144)","v":{"v":34520107.14066722,"d":"$34,520,107"}},{"$f":"Inputs!B20*L10/(1/Inputs!B19/12+'(Other Computations)'!B144)","v":{"v":34507690.59630777,"d":"$34,507,691"}},{"$f":"Inputs!B20*M10/(1/Inputs!B19/12+'(Other Computations)'!B144)","v":{"v":34491033.722998604,"d":"$34,491,034"}},{"$f":"M22","v":{"v":34491033.722998604,"d":"$34,491,034"}},{"$f":"Inputs!B20*O10/(1/Inputs!B19/12+'(Other Computations)'!B144)","v":{"v":34477428.64007043,"d":"$34,477,429"}},{"$f":"Inputs!B20*P10/(1/Inputs!B19/12+'(Other Computations)'!B144)","v":{"v":34466760.889321804,"d":"$34,466,761"}},{"$f":"Inputs!B20*Q10/(1/Inputs!B19/12+'(Other Computations)'!B144)","v":{"v":34450897.99610861,"d":"$34,450,898"}},{"$f":"Inputs!B20*R10/(1/Inputs!B19/12+'(Other Computations)'!B144)","v":{"v":34433382.91985753,"d":"$34,433,383"}},{"$f":"Inputs!B20*S10/(1/Inputs!B19/12+'(Other Computations)'!B144)","v":{"v":34420244.13832635,"d":"$34,420,244"}},{"$f":"Inputs!B20*T10/(1/Inputs!B19/12+'(Other Computations)'!B144)","v":{"v":34406333.16762672,"d":"$34,406,333"}},{"$f":"Inputs!B20*U10/(1/Inputs!B19/12+'(Other Computations)'!B144)","v":{"v":34395702.5614271,"d":"$34,395,703"}},{"$f":"Inputs!B20*V10/(1/Inputs!B19/12+'(Other Computations)'!B144)","v":{"v":34381384.43793617,"d":"$34,381,384"}},{"$f":"Inputs!B20*W10/(1/Inputs!B19/12+'(Other Computations)'!B144)","v":{"v":34367623.90376993,"d":"$34,367,624"}},{"$f":"Inputs!B20*X10/(1/Inputs!B19/12+'(Other Computations)'!B144)","v":{"v":34356647.63304238,"d":"$34,356,648"}},{"$f":"Inputs!B20*Y10/(1/Inputs!B19/12+'(Other Computations)'!B144)","v":{"v":34340772.43581258,"d":"$34,340,772"}},{"$f":"Inputs!B20*Z10/(1/Inputs!B19/12+'(Other Computations)'!B144)","v":{"v":34323952.80264759,"d":"$34,323,953"}},{"$f":"Z22","v":{"v":34323952.80264759,"d":"$34,323,953"}},{"$f":"Inputs!B20*AB10/(1/Inputs!B19/12+'(Other Computations)'!B144)","v":{"v":34308395.22821293,"d":"$34,308,395"}},{"$f":"Inputs!B20*AC10/(1/Inputs!B19/12+'(Other Computations)'!B144)","v":{"v":34294349.26419116,"d":"$34,294,349"}},{"$f":"Inputs!B20*AD10/(1/Inputs!B19/12+'(Other Computations)'!B144)","v":{"v":34280503.19032625,"d":"$34,280,503"}},{"$f":"Inputs!B20*AE10/(1/Inputs!B19/12+'(Other Computations)'!B144)","v":{"v":34265096.78049065,"d":"$34,265,097"}},{"$f":"Inputs!B20*AF10/(1/Inputs!B19/12+'(Other Computations)'!B144)","v":{"v":34250545.310648546,"d":"$34,250,545"}},{"$f":"Inputs!B20*AG10/(1/Inputs!B19/12+'(Other Computations)'!B144)","v":{"v":34234393.32380845,"d":"$34,234,393"}},{"$f":"Inputs!B20*AH10/(1/Inputs!B19/12+'(Other Computations)'!B144)","v":{"v":34218844.018707626,"d":"$34,218,844"}},{"$f":"Inputs!B20*AI10/(1/Inputs!B19/12+'(Other Computations)'!B144)","v":{"v":34206072.149374984,"d":"$34,206,072"}},{"$f":"Inputs!B20*AJ10/(1/Inputs!B19/12+'(Other Computations)'!B144)","v":{"v":34192972.38678696,"d":"$34,192,972"}},{"$f":"Inputs!B20*AK10/(1/Inputs!B19/12+'(Other Computations)'!B144)","v":{"v":34177733.96332749,"d":"$34,177,734"}},{"$f":"Inputs!B20*AL10/(1/Inputs!B19/12+'(Other Computations)'!B144)","v":{"v":34163711.570455804,"d":"$34,163,712"}},{"$f":"Inputs!B20*AM10/(1/Inputs!B19/12+'(Other Computations)'!B144)","v":{"v":34152310.18752794,"d":"$34,152,310"}},{"$f":"AM22","v":{"v":34152310.18752794,"d":"$34,152,310"}},{"$f":"Inputs!B20*AO10/(1/Inputs!B19/12+'(Other Computations)'!B144)","v":{"v":34140671.6771056,"d":"$34,140,672"}},{"$f":"Inputs!B20*AP10/(1/Inputs!B19/12+'(Other Computations)'!B144)","v":{"v":34128739.66788044,"d":"$34,128,740"}},{"$f":"Inputs!B20*AQ10/(1/Inputs!B19/12+'(Other Computations)'!B144)","v":{"v":34114893.38227987,"d":"$34,114,893"}},{"$f":"Inputs!B20*AR10/(1/Inputs!B19/12+'(Other Computations)'!B144)","v":{"v":34100939.66771011,"d":"$34,100,940"}},{"$f":"Inputs!B20*AS10/(1/Inputs!B19/12+'(Other Computations)'!B144)","v":{"v":34084529.94427161,"d":"$34,084,530"}},{"$f":"Inputs!B20*AT10/(1/Inputs!B19/12+'(Other Computations)'!B144)","v":{"v":34068171.9628989,"d":"$34,068,172"}},{"$f":"Inputs!B20*AU10/(1/Inputs!B19/12+'(Other Computations)'!B144)","v":{"v":34053331.66980798,"d":"$34,053,332"}},{"$f":"Inputs!B20*AV10/(1/Inputs!B19/12+'(Other Computations)'!B144)","v":{"v":34040418.767623566,"d":"$34,040,419"}},{"$f":"Inputs!B20*AW10/(1/Inputs!B19/12+'(Other Computations)'!B144)","v":{"v":34026527.032430485,"d":"$34,026,527"}},{"$f":"Inputs!B20*AX10/(1/Inputs!B19/12+'(Other Computations)'!B144)","v":{"v":34012876.98344443,"d":"$34,012,877"}},{"$f":"Inputs!B20*AY10/(1/Inputs!B19/12+'(Other Computations)'!B144)","v":{"v":33998940.700316004,"d":"$33,998,941"}},{"$f":"Inputs!B20*AZ10/(1/Inputs!B19/12+'(Other Computations)'!B144)","v":{"v":33985862.254128106,"d":"$33,985,862"}},{"$f":"AZ22","v":{"v":33985862.254128106,"d":"$33,985,862"}},{"$f":"Inputs!B20*BB10/(1/Inputs!B19/12+'(Other Computations)'!B144)","v":{"v":33972358.32680832,"d":"$33,972,358"}},{"$f":"Inputs!B20*BC10/(1/Inputs!B19/12+'(Other Computations)'!B144)","v":{"v":33957273.399603195,"d":"$33,957,273"}},{"$f":"Inputs!B20*BD10/(1/Inputs!B19/12+'(Other Computations)'!B144)","v":{"v":33945300.28272315,"d":"$33,945,300"}},{"$f":"Inputs!B20*BE10/(1/Inputs!B19/12+'(Other Computations)'!B144)","v":{"v":33933996.18227213,"d":"$33,933,996"}},{"$f":"Inputs!B20*BF10/(1/Inputs!B19/12+'(Other Computations)'!B144)","v":{"v":33920833.857343234,"d":"$33,920,834"}},{"$f":"Inputs!B20*BG10/(1/Inputs!B19/12+'(Other Computations)'!B144)","v":{"v":33907542.24367124,"d":"$33,907,542"}},{"$f":"Inputs!B20*BH10/(1/Inputs!B19/12+'(Other Computations)'!B144)","v":{"v":33895852.180768855,"d":"$33,895,852"}},{"$f":"Inputs!B20*BI10/(1/Inputs!B19/12+'(Other Computations)'!B144)","v":{"v":33880156.862659514,"d":"$33,880,157"}},{"$f":"Inputs!B20*BJ10/(1/Inputs!B19/12+'(Other Computations)'!B144)","v":{"v":33866056.242818214,"d":"$33,866,056"}},{"$f":"Inputs!B20*BK10/(1/Inputs!B19/12+'(Other Computations)'!B144)","v":{"v":33853316.53415303,"d":"$33,853,317"}},{"$f":"Inputs!B20*BL10/(1/Inputs!B19/12+'(Other Computations)'!B144)","v":{"v":33840404.976356834,"d":"$33,840,405"}},{"$f":"Inputs!B20*BM10/(1/Inputs!B19/12+'(Other Computations)'!B144)","v":{"v":33827604.14452701,"d":"$33,827,604"}},{"$f":"BM22","v":{"v":33827604.14452701,"d":"$33,827,604"}},{"$f":"Inputs!B20*BO10/(1/Inputs!B19/12+'(Other Computations)'!B144)","v":{"v":33813074.407306634,"d":"$33,813,074"}},{"$f":"Inputs!B20*BP10/(1/Inputs!B19/12+'(Other Computations)'!B144)","v":{"v":33800553.76705502,"d":"$33,800,554"}},{"$f":"Inputs!B20*BQ10/(1/Inputs!B19/12+'(Other Computations)'!B144)","v":{"v":33789325.294949844,"d":"$33,789,325"}},{"$f":"Inputs!B20*BR10/(1/Inputs!B19/12+'(Other Computations)'!B144)","v":{"v":33777226.53609113,"d":"$33,777,227"}},{"$f":"Inputs!B20*BS10/(1/Inputs!B19/12+'(Other Computations)'!B144)","v":{"v":33766991.52702158,"d":"$33,766,992"}},{"$f":"Inputs!B20*BT10/(1/Inputs!B19/12+'(Other Computations)'!B144)","v":{"v":33754202.27901191,"d":"$33,754,202"}},{"$f":"Inputs!B20*BU10/(1/Inputs!B19/12+'(Other Computations)'!B144)","v":{"v":33740281.8922032,"d":"$33,740,282"}},{"$f":"Inputs!B20*BV10/(1/Inputs!B19/12+'(Other Computations)'!B144)","v":{"v":33727275.65264967,"d":"$33,727,276"}},{"$f":"Inputs!B20*BW10/(1/Inputs!B19/12+'(Other Computations)'!B144)","v":{"v":33716168.901984006,"d":"$33,716,169"}},{"$f":"Inputs!B20*BX10/(1/Inputs!B19/12+'(Other Computations)'!B144)","v":{"v":33704046.658729434,"d":"$33,704,047"}},{"$f":"Inputs!B20*BY10/(1/Inputs!B19/12+'(Other Computations)'!B144)","v":{"v":33691867.055538,"d":"$33,691,867"}},{"$f":"Inputs!B20*BZ10/(1/Inputs!B19/12+'(Other Computations)'!B144)","v":{"v":33677228.7450226,"d":"$33,677,229"}},{"$f":"BZ22","v":{"v":33677228.7450226,"d":"$33,677,229"}},{"$f":"Inputs!B20*CB10/(1/Inputs!B19/12+'(Other Computations)'!B144)","v":{"v":33660323.2407986,"d":"$33,660,323"}},{"$f":"Inputs!B20*CC10/(1/Inputs!B19/12+'(Other Computations)'!B144)","v":{"v":33645358.69816151,"d":"$33,645,359"}},{"$f":"Inputs!B20*CD10/(1/Inputs!B19/12+'(Other Computations)'!B144)","v":{"v":33631467.776078686,"d":"$33,631,468"}},{"$f":"Inputs!B20*CE10/(1/Inputs!B19/12+'(Other Computations)'!B144)","v":{"v":33615155.27020319,"d":"$33,615,155"}},{"$f":"Inputs!B20*CF10/(1/Inputs!B19/12+'(Other Computations)'!B144)","v":{"v":33601712.635876365,"d":"$33,601,713"}},{"$f":"Inputs!B20*CG10/(1/Inputs!B19/12+'(Other Computations)'!B144)","v":{"v":33587403.32126753,"d":"$33,587,403"}},{"$f":"Inputs!B20*CH10/(1/Inputs!B19/12+'(Other Computations)'!B144)","v":{"v":33577345.6485198,"d":"$33,577,346"}},{"$f":"Inputs!B20*CI10/(1/Inputs!B19/12+'(Other Computations)'!B144)","v":{"v":33563550.456686385,"d":"$33,563,550"}},{"$f":"Inputs!B20*CJ10/(1/Inputs!B19/12+'(Other Computations)'!B144)","v":{"v":33548097.95420816,"d":"$33,548,098"}},{"$f":"Inputs!B20*CK10/(1/Inputs!B19/12+'(Other Computations)'!B144)","v":{"v":33535392.322407633,"d":"$33,535,392"}},{"$f":"Inputs!B20*CL10/(1/Inputs!B19/12+'(Other Computations)'!B144)","v":{"v":33523384.197581794,"d":"$33,523,384"}},{"$f":"Inputs!B20*CM10/(1/Inputs!B19/12+'(Other Computations)'!B144)","v":{"v":33507192.923698414,"d":"$33,507,193"}},{"$f":"CM22","v":{"v":33507192.923698414,"d":"$33,507,193"}},{"$f":"Inputs!B20*CO10/(1/Inputs!B19/12+'(Other Computations)'!B144)","v":{"v":33496026.01391383,"d":"$33,496,026"}},{"$f":"Inputs!B20*CP10/(1/Inputs!B19/12+'(Other Computations)'!B144)","v":{"v":33484970.510174476,"d":"$33,484,971"}},{"$f":"Inputs!B20*CQ10/(1/Inputs!B19/12+'(Other Computations)'!B144)","v":{"v":33471575.8740615,"d":"$33,471,576"}},{"$f":"Inputs!B20*CR10/(1/Inputs!B19/12+'(Other Computations)'!B144)","v":{"v":33459068.171701305,"d":"$33,459,068"}},{"$f":"Inputs!B20*CS10/(1/Inputs!B19/12+'(Other Computations)'!B144)","v":{"v":33446362.735600248,"d":"$33,446,363"}},{"$f":"Inputs!B20*CT10/(1/Inputs!B19/12+'(Other Computations)'!B144)","v":{"v":33428094.412084326,"d":"$33,428,094"}},{"$f":"Inputs!B20*CU10/(1/Inputs!B19/12+'(Other Computations)'!B144)","v":{"v":33413866.343003836,"d":"$33,413,866"}},{"$f":"Inputs!B20*CV10/(1/Inputs!B19/12+'(Other Computations)'!B144)","v":{"v":33402279.47188205,"d":"$33,402,279"}},{"$f":"Inputs!B20*CW10/(1/Inputs!B19/12+'(Other Computations)'!B144)","v":{"v":33388336.261504926,"d":"$33,388,336"}},{"$f":"Inputs!B20*CX10/(1/Inputs!B19/12+'(Other Computations)'!B144)","v":{"v":33370451.490780544,"d":"$33,370,451"}},{"$f":"Inputs!B20*CY10/(1/Inputs!B19/12+'(Other Computations)'!B144)","v":{"v":33359110.85811087,"d":"$33,359,111"}},{"$f":"Inputs!B20*CZ10/(1/Inputs!B19/12+'(Other Computations)'!B144)","v":{"v":33349277.87410112,"d":"$33,349,278"}},{"$f":"CZ22","v":{"v":33349277.87410112,"d":"$33,349,278"}},{"$f":"Inputs!B20*DB10/(1/Inputs!B19/12+'(Other Computations)'!B144)","v":{"v":33333625.494242657,"d":"$33,333,625"}},{"$f":"Inputs!B20*DC10/(1/Inputs!B19/12+'(Other Computations)'!B144)","v":{"v":33323755.02435432,"d":"$33,323,755"}},{"$f":"Inputs!B20*DD10/(1/Inputs!B19/12+'(Other Computations)'!B144)","v":{"v":33308438.84655321,"d":"$33,308,439"}},{"$f":"Inputs!B20*DE10/(1/Inputs!B19/12+'(Other Computations)'!B144)","v":{"v":33292146.804434855,"d":"$33,292,147"}},{"$f":"Inputs!B20*DF10/(1/Inputs!B19/12+'(Other Computations)'!B144)","v":{"v":33277501.976468794,"d":"$33,277,502"}},{"$f":"Inputs!B20*DG10/(1/Inputs!B19/12+'(Other Computations)'!B144)","v":{"v":33263765.836946923,"d":"$33,263,766"}},{"$f":"Inputs!B20*DH10/(1/Inputs!B19/12+'(Other Computations)'!B144)","v":{"v":33248513.10349388,"d":"$33,248,513"}},{"$f":"Inputs!B20*DI10/(1/Inputs!B19/12+'(Other Computations)'!B144)","v":{"v":33234261.09065312,"d":"$33,234,261"}},{"$f":"Inputs!B20*DJ10/(1/Inputs!B19/12+'(Other Computations)'!B144)","v":{"v":33217804.87436181,"d":"$33,217,805"}},{"$f":"Inputs!B20*DK10/(1/Inputs!B19/12+'(Other Computations)'!B144)","v":{"v":33207629.87443559,"d":"$33,207,630"}},{"$f":"Inputs!B20*DL10/(1/Inputs!B19/12+'(Other Computations)'!B144)","v":{"v":33192731.85497787,"d":"$33,192,732"}},{"$f":"Inputs!B20*DM10/(1/Inputs!B19/12+'(Other Computations)'!B144)","v":{"v":33182121.66577379,"d":"$33,182,122"}},{"$f":"DM22","v":{"v":33182121.66577379,"d":"$33,182,122"}},{"$f":"Inputs!B20*DO10/(1/Inputs!B19/12+'(Other Computations)'!B144)","v":{"v":33167631.4446436,"d":"$33,167,631"}},{"$f":"Inputs!B20*DP10/(1/Inputs!B19/12+'(Other Computations)'!B144)","v":{"v":33150535.531917237,"d":"$33,150,536"}},{"$f":"Inputs!B20*DQ10/(1/Inputs!B19/12+'(Other Computations)'!B144)","v":{"v":33134232.55118996,"d":"$33,134,233"}},{"$f":"Inputs!B20*DR10/(1/Inputs!B19/12+'(Other Computations)'!B144)","v":{"v":33123891.337502882,"d":"$33,123,891"}},{"$f":"Inputs!B20*DS10/(1/Inputs!B19/12+'(Other Computations)'!B144)","v":{"v":33112888.87977696,"d":"$33,112,889"}},{"$f":"Inputs!B20*DT10/(1/Inputs!B19/12+'(Other Computations)'!B144)","v":{"v":33098055.28307259,"d":"$33,098,055"}},{"$f":"Inputs!B20*DU10/(1/Inputs!B19/12+'(Other Computations)'!B144)","v":{"v":33087061.026107457,"d":"$33,087,061"}},{"$f":"Inputs!B20*DV10/(1/Inputs!B19/12+'(Other Computations)'!B144)","v":{"v":33075719.00620121,"d":"$33,075,719"}},{"$f":"Inputs!B20*DW10/(1/Inputs!B19/12+'(Other Computations)'!B144)","v":{"v":33062204.508118324,"d":"$33,062,205"}},{"$f":"Inputs!B20*DX10/(1/Inputs!B19/12+'(Other Computations)'!B144)","v":{"v":33049639.55492512,"d":"$33,049,640"}},{"$f":"Inputs!B20*DY10/(1/Inputs!B19/12+'(Other Computations)'!B144)","v":{"v":33032808.19459499,"d":"$33,032,808"}},{"$f":"Inputs!B20*DZ10/(1/Inputs!B19/12+'(Other Computations)'!B144)","v":{"v":33019801.976656698,"d":"$33,019,802"}},{"$f":"DZ22","v":{"v":33019801.976656698,"d":"$33,019,802"}},{"$f":"Inputs!B20*EB10/(1/Inputs!B19/12+'(Other Computations)'!B144)","v":{"v":33005964.206075124,"d":"$33,005,964"}},{"$f":"Inputs!B20*EC10/(1/Inputs!B19/12+'(Other Computations)'!B144)","v":{"v":32988825.230389282,"d":"$32,988,825"}},{"$f":"Inputs!B20*ED10/(1/Inputs!B19/12+'(Other Computations)'!B144)","v":{"v":32971922.40845693,"d":"$32,971,922"}},{"$f":"Inputs!B20*EE10/(1/Inputs!B19/12+'(Other Computations)'!B144)","v":{"v":32959319.907917112,"d":"$32,959,320"}},{"$f":"Inputs!B20*EF10/(1/Inputs!B19/12+'(Other Computations)'!B144)","v":{"v":32944226.897885956,"d":"$32,944,227"}},{"$f":"Inputs!B20*EG10/(1/Inputs!B19/12+'(Other Computations)'!B144)","v":{"v":32928740.54621893,"d":"$32,928,741"}},{"$f":"Inputs!B20*EH10/(1/Inputs!B19/12+'(Other Computations)'!B144)","v":{"v":32915091.8343392,"d":"$32,915,092"}},{"$f":"Inputs!B20*EI10/(1/Inputs!B19/12+'(Other Computations)'!B144)","v":{"v":32903964.079355687,"d":"$32,903,964"}},{"$f":"Inputs!B20*EJ10/(1/Inputs!B19/12+'(Other Computations)'!B144)","v":{"v":32888281.031379096,"d":"$32,888,281"}},{"$f":"Inputs!B20*EK10/(1/Inputs!B19/12+'(Other Computations)'!B144)","v":{"v":32874706.845029317,"d":"$32,874,707"}},{"$f":"Inputs!B20*EL10/(1/Inputs!B19/12+'(Other Computations)'!B144)","v":{"v":32857598.625223912,"d":"$32,857,599"}},{"$f":"Inputs!B20*EM10/(1/Inputs!B19/12+'(Other Computations)'!B144)","v":{"v":32842007.533886906,"d":"$32,842,008"}},{"$f":"EM22","v":{"v":32842007.533886906,"d":"$32,842,008"}}]
[]
[]
[{"$f":"\"Employment\"","v":"Employment"}]
[{"$f":"\" \"","v":" "}]
[null,{"$f":"ZZZ__FnCalls!F7","v":"Jan 2010"},{"$f":"ZZZ__FnCalls!F8","v":"Feb 2010"},{"$f":"ZZZ__FnCalls!F9","v":"Mar 2010"},{"$f":"ZZZ__FnCalls!F10","v":"Apr 2010"},{"$f":"ZZZ__FnCalls!F11","v":"May 2010"},{"$f":"ZZZ__FnCalls!F12","v":"Jun 2010"},{"$f":"ZZZ__FnCalls!F13","v":"Jul 2010"},{"$f":"ZZZ__FnCalls!F14","v":"Aug 2010"},{"$f":"ZZZ__FnCalls!F15","v":"Sep 2010"},{"$f":"ZZZ__FnCalls!F16","v":"Oct 2010"},{"$f":"ZZZ__FnCalls!F17","v":"Nov 2010"},{"$f":"ZZZ__FnCalls!F18","v":"Dec 2010"},{"$f":"ZZZ__FnCalls!H7","v":"2010"},{"$f":"ZZZ__FnCalls!F19","v":"Jan 2011"},{"$f":"ZZZ__FnCalls!F20","v":"Feb 2011"},{"$f":"ZZZ__FnCalls!F21","v":"Mar 2011"},{"$f":"ZZZ__FnCalls!F22","v":"Apr 2011"},{"$f":"ZZZ__FnCalls!F23","v":"May 2011"},{"$f":"ZZZ__FnCalls!F24","v":"Jun 2011"},{"$f":"ZZZ__FnCalls!F25","v":"Jul 2011"},{"$f":"ZZZ__FnCalls!F26","v":"Aug 2011"},{"$f":"ZZZ__FnCalls!F27","v":"Sep 2011"},{"$f":"ZZZ__FnCalls!F28","v":"Oct 2011"},{"$f":"ZZZ__FnCalls!F29","v":"Nov 2011"},{"$f":"ZZZ__FnCalls!F30","v":"Dec 2011"},{"$f":"ZZZ__FnCalls!H19","v":"2011"},{"$f":"ZZZ__FnCalls!F31","v":"Jan 2012"},{"$f":"ZZZ__FnCalls!F32","v":"Feb 2012"},{"$f":"ZZZ__FnCalls!F33","v":"Mar 2012"},{"$f":"ZZZ__FnCalls!F34","v":"Apr 2012"},{"$f":"ZZZ__FnCalls!F35","v":"May 2012"},{"$f":"ZZZ__FnCalls!F36","v":"Jun 2012"},{"$f":"ZZZ__FnCalls!F37","v":"Jul 2012"},{"$f":"ZZZ__FnCalls!F38","v":"Aug 2012"},{"$f":"ZZZ__FnCalls!F39","v":"Sep 2012"},{"$f":"ZZZ__FnCalls!F40","v":"Oct 2012"},{"$f":"ZZZ__FnCalls!F41","v":"Nov 2012"},{"$f":"ZZZ__FnCalls!F42","v":"Dec 2012"},{"$f":"ZZZ__FnCalls!H31","v":"2012"},{"$f":"ZZZ__FnCalls!F43","v":"Jan 2013"},{"$f":"ZZZ__FnCalls!F44","v":"Feb 2013"},{"$f":"ZZZ__FnCalls!F45","v":"Mar 2013"},{"$f":"ZZZ__FnCalls!F46","v":"Apr 2013"},{"$f":"ZZZ__FnCalls!F47","v":"May 2013"},{"$f":"ZZZ__FnCalls!F48","v":"Jun 2013"},{"$f":"ZZZ__FnCalls!F49","v":"Jul 2013"},{"$f":"ZZZ__FnCalls!F50","v":"Aug 2013"},{"$f":"ZZZ__FnCalls!F51","v":"Sep 2013"},{"$f":"ZZZ__FnCalls!F52","v":"Oct 2013"},{"$f":"ZZZ__FnCalls!F53","v":"Nov 2013"},{"$f":"ZZZ__FnCalls!F54","v":"Dec 2013"},{"$f":"ZZZ__FnCalls!H43","v":"2013"},{"$f":"ZZZ__FnCalls!F55","v":"Jan 2014"},{"$f":"ZZZ__FnCalls!F56","v":"Feb 2014"},{"$f":"ZZZ__FnCalls!F57","v":"Mar 2014"},{"$f":"ZZZ__FnCalls!F58","v":"Apr 2014"},{"$f":"ZZZ__FnCalls!F59","v":"May 2014"},{"$f":"ZZZ__FnCalls!F60","v":"Jun 2014"},{"$f":"ZZZ__FnCalls!F61","v":"Jul 2014"},{"$f":"ZZZ__FnCalls!F62","v":"Aug 2014"},{"$f":"ZZZ__FnCalls!F63","v":"Sep 2014"},{"$f":"ZZZ__FnCalls!F64","v":"Oct 2014"},{"$f":"ZZZ__FnCalls!F65","v":"Nov 2014"},{"$f":"ZZZ__FnCalls!F66","v":"Dec 2014"},{"$f":"ZZZ__FnCalls!H55","v":"2014"},{"$f":"ZZZ__FnCalls!F67","v":"Jan 2015"},{"$f":"ZZZ__FnCalls!F68","v":"Feb 2015"},{"$f":"ZZZ__FnCalls!F69","v":"Mar 2015"},{"$f":"ZZZ__FnCalls!F70","v":"Apr 2015"},{"$f":"ZZZ__FnCalls!F71","v":"May 2015"},{"$f":"ZZZ__FnCalls!F72","v":"Jun 2015"},{"$f":"ZZZ__FnCalls!F73","v":"Jul 2015"},{"$f":"ZZZ__FnCalls!F74","v":"Aug 2015"},{"$f":"ZZZ__FnCalls!F75","v":"Sep 2015"},{"$f":"ZZZ__FnCalls!F76","v":"Oct 2015"},{"$f":"ZZZ__FnCalls!F77","v":"Nov 2015"},{"$f":"ZZZ__FnCalls!F78","v":"Dec 2015"},{"$f":"ZZZ__FnCalls!H67","v":"2015"},{"$f":"ZZZ__FnCalls!F79","v":"Jan 2016"},{"$f":"ZZZ__FnCalls!F80","v":"Feb 2016"},{"$f":"ZZZ__FnCalls!F81","v":"Mar 2016"},{"$f":"ZZZ__FnCalls!F82","v":"Apr 2016"},{"$f":"ZZZ__FnCalls!F83","v":"May 2016"},{"$f":"ZZZ__FnCalls!F84","v":"Jun 2016"},{"$f":"ZZZ__FnCalls!F85","v":"Jul 2016"},{"$f":"ZZZ__FnCalls!F86","v":"Aug 2016"},{"$f":"ZZZ__FnCalls!F87","v":"Sep 2016"},{"$f":"ZZZ__FnCalls!F88","v":"Oct 2016"},{"$f":"ZZZ__FnCalls!F89","v":"Nov 2016"},{"$f":"ZZZ__FnCalls!F90","v":"Dec 2016"},{"$f":"ZZZ__FnCalls!H79","v":"2016"},{"$f":"ZZZ__FnCalls!F91","v":"Jan 2017"},{"$f":"ZZZ__FnCalls!F92","v":"Feb 2017"},{"$f":"ZZZ__FnCalls!F93","v":"Mar 2017"},{"$f":"ZZZ__FnCalls!F94","v":"Apr 2017"},{"$f":"ZZZ__FnCalls!F95","v":"May 2017"},{"$f":"ZZZ__FnCalls!F96","v":"Jun 2017"},{"$f":"ZZZ__FnCalls!F97","v":"Jul 2017"},{"$f":"ZZZ__FnCalls!F98","v":"Aug 2017"},{"$f":"ZZZ__FnCalls!F99","v":"Sep 2017"},{"$f":"ZZZ__FnCalls!F100","v":"Oct 2017"},{"$f":"ZZZ__FnCalls!F101","v":"Nov 2017"},{"$f":"ZZZ__FnCalls!F102","v":"Dec 2017"},{"$f":"ZZZ__FnCalls!H91","v":"2017"},{"$f":"ZZZ__FnCalls!F103","v":"Jan 2018"},{"$f":"ZZZ__FnCalls!F104","v":"Feb 2018"},{"$f":"ZZZ__FnCalls!F105","v":"Mar 2018"},{"$f":"ZZZ__FnCalls!F106","v":"Apr 2018"},{"$f":"ZZZ__FnCalls!F107","v":"May 2018"},{"$f":"ZZZ__FnCalls!F108","v":"Jun 2018"},{"$f":"ZZZ__FnCalls!F109","v":"Jul 2018"},{"$f":"ZZZ__FnCalls!F110","v":"Aug 2018"},{"$f":"ZZZ__FnCalls!F111","v":"Sep 2018"},{"$f":"ZZZ__FnCalls!F112","v":"Oct 2018"},{"$f":"ZZZ__FnCalls!F113","v":"Nov 2018"},{"$f":"ZZZ__FnCalls!F114","v":"Dec 2018"},{"$f":"ZZZ__FnCalls!H103","v":"2018"},{"$f":"ZZZ__FnCalls!F115","v":"Jan 2019"},{"$f":"ZZZ__FnCalls!F116","v":"Feb 2019"},{"$f":"ZZZ__FnCalls!F117","v":"Mar 2019"},{"$f":"ZZZ__FnCalls!F118","v":"Apr 2019"},{"$f":"ZZZ__FnCalls!F119","v":"May 2019"},{"$f":"ZZZ__FnCalls!F120","v":"Jun 2019"},{"$f":"ZZZ__FnCalls!F121","v":"Jul 2019"},{"$f":"ZZZ__FnCalls!F122","v":"Aug 2019"},{"$f":"ZZZ__FnCalls!F123","v":"Sep 2019"},{"$f":"ZZZ__FnCalls!F124","v":"Oct 2019"},{"$f":"ZZZ__FnCalls!F125","v":"Nov 2019"},{"$f":"ZZZ__FnCalls!F126","v":"Dec 2019"},{"$f":"ZZZ__FnCalls!H115","v":"2019"},{"$f":"ZZZ__FnCalls!F127","v":"Jan 2020"},{"$f":"ZZZ__FnCalls!F128","v":"Feb 2020"},{"$f":"ZZZ__FnCalls!F129","v":"Mar 2020"},{"$f":"ZZZ__FnCalls!F130","v":"Apr 2020"},{"$f":"ZZZ__FnCalls!F131","v":"May 2020"},{"$f":"ZZZ__FnCalls!F132","v":"Jun 2020"},{"$f":"ZZZ__FnCalls!F133","v":"Jul 2020"},{"$f":"ZZZ__FnCalls!F134","v":"Aug 2020"},{"$f":"ZZZ__FnCalls!F135","v":"Sep 2020"},{"$f":"ZZZ__FnCalls!F136","v":"Oct 2020"},{"$f":"ZZZ__FnCalls!F137","v":"Nov 2020"},{"$f":"ZZZ__FnCalls!F138","v":"Dec 2020"},{"$f":"ZZZ__FnCalls!H127","v":"2020"}]
[{"$f":"Labels!B38","v":"Employment"},{"$f":"Inputs!B27+'(Other Computations)'!B61*0/Inputs!B28/12","v":{"v":140,"d":"140.00"}},{"$f":"B28+'(Other Computations)'!B61*(B29-B28)/Inputs!B28/12","v":{"v":140,"d":"140.00"}},{"$f":"C28+'(Other Computations)'!B61*(C29-C28)/Inputs!B28/12","v":{"v":139.9927342561348,"d":"139.99"}},{"$f":"D28+'(Other Computations)'!B61*(D29-D28)/Inputs!B28/12","v":{"v":139.97944244034719,"d":"139.98"}},{"$f":"E28+'(Other Computations)'!B61*(E29-E28)/Inputs!B28/12","v":{"v":139.96064240721861,"d":"139.96"}},{"$f":"F28+'(Other Computations)'!B61*(F29-F28)/Inputs!B28/12","v":{"v":139.93681118120625,"d":"139.94"}},{"$f":"G28+'(Other Computations)'!B61*(G29-G28)/Inputs!B28/12","v":{"v":139.90947248625184,"d":"139.91"}},{"$f":"H28+'(Other Computations)'!B61*(H29-H28)/Inputs!B28/12","v":{"v":139.87753893851294,"d":"139.88"}},{"$f":"I28+'(Other Computations)'!B61*(I29-I28)/Inputs!B28/12","v":{"v":139.84058367189854,"d":"139.84"}},{"$f":"J28+'(Other Computations)'!B61*(J29-J28)/Inputs!B28/12","v":{"v":139.7994654225619,"d":"139.80"}},{"$f":"K28+'(Other Computations)'!B61*(K29-K28)/Inputs!B28/12","v":{"v":139.7526580803578,"d":"139.75"}},{"$f":"L28+'(Other Computations)'!B61*(L29-L28)/Inputs!B28/12","v":{"v":139.70201331030887,"d":"139.70"}},{"$f":"M28","v":{"v":139.70201331030887,"d":"139.70"}},{"$f":"M28+'(Other Computations)'!B61*(M29-M28)/Inputs!B28/12","v":{"v":139.64586532766532,"d":"139.65"}},{"$f":"O28+'(Other Computations)'!B61*(O29-O28)/Inputs!B28/12","v":{"v":139.58566668734545,"d":"139.59"}},{"$f":"P28+'(Other Computations)'!B61*(P29-P28)/Inputs!B28/12","v":{"v":139.5227806733222,"d":"139.52"}},{"$f":"Q28+'(Other Computations)'!B61*(Q29-Q28)/Inputs!B28/12","v":{"v":139.4551085825678,"d":"139.46"}},{"$f":"R28+'(Other Computations)'!B61*(R29-R28)/Inputs!B28/12","v":{"v":139.38210422937115,"d":"139.38"}},{"$f":"S28+'(Other Computations)'!B61*(S29-S28)/Inputs!B28/12","v":{"v":139.30577562295142,"d":"139.31"}},{"$f":"T28+'(Other Computations)'!B61*(T29-T28)/Inputs!B28/12","v":{"v":139.2259064077866,"d":"139.23"}},{"$f":"U28+'(Other Computations)'!B61*(U29-U28)/Inputs!B28/12","v":{"v":139.143992890318,"d":"139.14"}},{"$f":"V28+'(Other Computations)'!B61*(V29-V28)/Inputs!B28/12","v":{"v":139.05855565931523,"d":"139.06"}},{"$f":"W28+'(Other Computations)'!B61*(W29-W28)/Inputs!B28/12","v":{"v":138.96994533853254,"d":"138.97"}},{"$f":"X28+'(Other Computations)'!B61*(X29-X28)/Inputs!B28/12","v":{"v":138.87944026727922,"d":"138.88"}},{"$f":"Y28+'(Other Computations)'!B61*(Y29-Y28)/Inputs!B28/12","v":{"v":138.78504821018217,"d":"138.79"}},{"$f":"Z28","v":{"v":138.78504821018217,"d":"138.79"}},{"$f":"Z28+'(Other Computations)'!B61*(Z29-Z28)/Inputs!B28/12","v":{"v":138.68649944642198,"d":"138.69"}},{"$f":"AB28+'(Other Computations)'!B61*(AB29-AB28)/Inputs!B28/12","v":{"v":138.58446148636574,"d":"138.58"}},{"$f":"AC28+'(Other Computations)'!B61*(AC29-AC28)/Inputs!B28/12","v":{"v":138.4796882571224,"d":"138.48"}},{"$f":"AD28+'(Other Computations)'!B61*(AD29-AD28)/Inputs!B28/12","v":{"v":138.37236029406668,"d":"138.37"}},{"$f":"AE28+'(Other Computations)'!B61*(AE29-AE28)/Inputs!B28/12","v":{"v":138.26191240870978,"d":"138.26"}},{"$f":"AF28+'(Other Computations)'!B61*(AF29-AF28)/Inputs!B28/12","v":{"v":138.1488128385931,"d":"138.15"}},{"$f":"AG28+'(Other Computations)'!B61*(AG29-AG28)/Inputs!B28/12","v":{"v":138.03248319242905,"d":"138.03"}},{"$f":"AH28+'(Other Computations)'!B61*(AH29-AH28)/Inputs!B28/12","v":{"v":137.91328963156857,"d":"137.91"}},{"$f":"AI28+'(Other Computations)'!B61*(AI29-AI28)/Inputs!B28/12","v":{"v":137.79250366564804,"d":"137.79"}},{"$f":"AJ28+'(Other Computations)'!B61*(AJ29-AJ28)/Inputs!B28/12","v":{"v":137.6700533324521,"d":"137.67"}},{"$f":"AK28+'(Other Computations)'!B61*(AK29-AK28)/Inputs!B28/12","v":{"v":137.54510677205775,"d":"137.55"}},{"$f":"AL28+'(Other Computations)'!B61*(AL29-AL28)/Inputs!B28/12","v":{"v":137.4182685364016,"d":"137.42"}},{"$f":"AM28","v":{"v":137.4182685364016,"d":"137.42"}},{"$f":"AM28+'(Other Computations)'!B61*(AM29-AM28)/Inputs!B28/12","v":{"v":137.29071747347953,"d":"137.29"}},{"$f":"AO28+'(Other Computations)'!B61*(AO29-AO28)/Inputs!B28/12","v":{"v":137.16239551924187,"d":"137.16"}},{"$f":"AP28+'(Other Computations)'!B61*(AP29-AP28)/Inputs!B28/12","v":{"v":137.0332226364517,"d":"137.03"}},{"$f":"AQ28+'(Other Computations)'!B61*(AQ29-AQ28)/Inputs!B28/12","v":{"v":136.90243895092425,"d":"136.90"}},{"$f":"AR28+'(Other Computations)'!B61*(AR29-AR28)/Inputs!B28/12","v":{"v":136.77006723535146,"d":"136.77"}},{"$f":"AS28+'(Other Computations)'!B61*(AS29-AS28)/Inputs!B28/12","v":{"v":136.63514124081559,"d":"136.64"}},{"$f":"AT28+'(Other Computations)'!B61*(AT29-AT28)/Inputs!B28/12","v":{"v":136.49777849746678,"d":"136.50"}},{"$f":"AU28+'(Other Computations)'!B61*(AU29-AU28)/Inputs!B28/12","v":{"v":136.3587105934176,"d":"136.36"}},{"$f":"AV28+'(Other Computations)'!B61*(AV29-AV28)/Inputs!B28/12","v":{"v":136.21882077818833,"d":"136.22"}},{"$f":"AW28+'(Other Computations)'!B61*(AW29-AW28)/Inputs!B28/12","v":{"v":136.07774366472051,"d":"136.08"}},{"$f":"AX28+'(Other Computations)'!B61*(AX29-AX28)/Inputs!B28/12","v":{"v":135.93563828497878,"d":"135.94"}},{"$f":"AY28+'(Other Computations)'!B61*(AY29-AY28)/Inputs!B28/12","v":{"v":135.79243700411075,"d":"135.79"}},{"$f":"AZ28","v":{"v":135.79243700411075,"d":"135.79"}},{"$f":"AZ28+'(Other Computations)'!B61*(AZ29-AZ28)/Inputs!B28/12","v":{"v":135.64855584663695,"d":"135.65"}},{"$f":"BB28+'(Other Computations)'!B61*(BB29-BB28)/Inputs!B28/12","v":{"v":135.50385874609142,"d":"135.50"}},{"$f":"BC28+'(Other Computations)'!B61*(BC29-BC28)/Inputs!B28/12","v":{"v":135.3577272420013,"d":"135.36"}},{"$f":"BD28+'(Other Computations)'!B61*(BD29-BD28)/Inputs!B28/12","v":{"v":135.2115362135369,"d":"135.21"}},{"$f":"BE28+'(Other Computations)'!B61*(BE29-BE28)/Inputs!B28/12","v":{"v":135.0655927014256,"d":"135.07"}},{"$f":"BF28+'(Other Computations)'!B61*(BF29-BF28)/Inputs!B28/12","v":{"v":134.91913101967708,"d":"134.92"}},{"$f":"BG28+'(Other Computations)'!B61*(BG29-BG28)/Inputs!B28/12","v":{"v":134.7721353049909,"d":"134.77"}},{"$f":"BH28+'(Other Computations)'!B61*(BH29-BH28)/Inputs!B28/12","v":{"v":134.62531875542868,"d":"134.63"}},{"$f":"BI28+'(Other Computations)'!B61*(BI29-BI28)/Inputs!B28/12","v":{"v":134.47701388384263,"d":"134.48"}},{"$f":"BJ28+'(Other Computations)'!B61*(BJ29-BJ28)/Inputs!B28/12","v":{"v":134.32795856883183,"d":"134.33"}},{"$f":"BK28+'(Other Computations)'!B61*(BK29-BK28)/Inputs!B28/12","v":{"v":134.17877113441304,"d":"134.18"}},{"$f":"BL28+'(Other Computations)'!B61*(BL29-BL28)/Inputs!B28/12","v":{"v":134.02940690029166,"d":"134.03"}},{"$f":"BM28","v":{"v":134.02940690029166,"d":"134.03"}},{"$f":"BM28+'(Other Computations)'!B61*(BM29-BM28)/Inputs!B28/12","v":{"v":133.87994139189564,"d":"133.88"}},{"$f":"BO28+'(Other Computations)'!B61*(BO29-BO28)/Inputs!B28/12","v":{"v":133.7296735643109,"d":"133.73"}},{"$f":"BP28+'(Other Computations)'!B61*(BP29-BP28)/Inputs!B28/12","v":{"v":133.57949606689803,"d":"133.58"}},{"$f":"BQ28+'(Other Computations)'!B61*(BQ29-BQ28)/Inputs!B28/12","v":{"v":133.42997402614378,"d":"133.43"}},{"$f":"BR28+'(Other Computations)'!B61*(BR29-BR28)/Inputs!B28/12","v":{"v":133.28074589798953,"d":"133.28"}},{"$f":"BS28+'(Other Computations)'!B61*(BS29-BS28)/Inputs!B28/12","v":{"v":133.13261127552582,"d":"133.13"}},{"$f":"BT28+'(Other Computations)'!B61*(BT29-BT28)/Inputs!B28/12","v":{"v":132.98448683449024,"d":"132.98"}},{"$f":"BU28+'(Other Computations)'!B61*(BU29-BU28)/Inputs!B28/12","v":{"v":132.83591938118047,"d":"132.84"}},{"$f":"BV28+'(Other Computations)'!B61*(BV29-BV28)/Inputs!B28/12","v":{"v":132.68732970702854,"d":"132.69"}},{"$f":"BW28+'(Other Computations)'!B61*(BW29-BW28)/Inputs!B28/12","v":{"v":132.53954121363626,"d":"132.54"}},{"$f":"BX28+'(Other Computations)'!B61*(BX29-BX28)/Inputs!B28/12","v":{"v":132.39212641694306,"d":"132.39"}},{"$f":"BY28+'(Other Computations)'!B61*(BY29-BY28)/Inputs!B28/12","v":{"v":132.24507331830995,"d":"132.25"}},{"$f":"BZ28","v":{"v":132.24507331830995,"d":"132.25"}},{"$f":"BZ28+'(Other Computations)'!B61*(BZ29-BZ28)/Inputs!B28/12","v":{"v":132.09735934281082,"d":"132.10"}},{"$f":"CB28+'(Other Computations)'!B61*(CB29-CB28)/Inputs!B28/12","v":{"v":131.94807200236542,"d":"131.95"}},{"$f":"CC28+'(Other Computations)'!B61*(CC29-CC28)/Inputs!B28/12","v":{"v":131.79809662387223,"d":"131.80"}},{"$f":"CD28+'(Other Computations)'!B61*(CD29-CD28)/Inputs!B28/12","v":{"v":131.64792804631932,"d":"131.65"}},{"$f":"CE28+'(Other Computations)'!B61*(CE29-CE28)/Inputs!B28/12","v":{"v":131.4965756117656,"d":"131.50"}},{"$f":"CF28+'(Other Computations)'!B61*(CF29-CF28)/Inputs!B28/12","v":{"v":131.3453046530883,"d":"131.35"}},{"$f":"CG28+'(Other Computations)'!B61*(CG29-CG28)/Inputs!B28/12","v":{"v":131.19377120708072,"d":"131.19"}},{"$f":"CH28+'(Other Computations)'!B61*(CH29-CH28)/Inputs!B28/12","v":{"v":131.04379566358458,"d":"131.04"}},{"$f":"CI28+'(Other Computations)'!B61*(CI29-CI28)/Inputs!B28/12","v":{"v":130.89378283349052,"d":"130.89"}},{"$f":"CJ28+'(Other Computations)'!B61*(CJ29-CJ28)/Inputs!B28/12","v":{"v":130.74305898734502,"d":"130.74"}},{"$f":"CK28+'(Other Computations)'!B61*(CK29-CK28)/Inputs!B28/12","v":{"v":130.5928237070931,"d":"130.59"}},{"$f":"CL28+'(Other Computations)'!B61*(CL29-CL28)/Inputs!B28/12","v":{"v":130.44337929182586,"d":"130.44"}},{"$f":"CM28","v":{"v":130.44337929182586,"d":"130.44"}},{"$f":"CM28+'(Other Computations)'!B61*(CM29-CM28)/Inputs!B28/12","v":{"v":130.29296472869703,"d":"130.29"}},{"$f":"CO28+'(Other Computations)'!B61*(CO29-CO28)/Inputs!B28/12","v":{"v":130.143745511698,"d":"130.14"}},{"$f":"CP28+'(Other Computations)'!B61*(CP29-CP28)/Inputs!B28/12","v":{"v":129.9957565688118,"d":"130.00"}},{"$f":"CQ28+'(Other Computations)'!B61*(CQ29-CQ28)/Inputs!B28/12","v":{"v":129.8480000454924,"d":"129.85"}},{"$f":"CR28+'(Other Computations)'!B61*(CR29-CR28)/Inputs!B28/12","v":{"v":129.70086465048738,"d":"129.70"}},{"$f":"CS28+'(Other Computations)'!B61*(CS29-CS28)/Inputs!B28/12","v":{"v":129.55427118172565,"d":"129.55"}},{"$f":"CT28+'(Other Computations)'!B61*(CT29-CT28)/Inputs!B28/12","v":{"v":129.4058842020191,"d":"129.41"}},{"$f":"CU28+'(Other Computations)'!B61*(CU29-CU28)/Inputs!B28/12","v":{"v":129.25747798040268,"d":"129.26"}},{"$f":"CV28+'(Other Computations)'!B61*(CV29-CV28)/Inputs!B28/12","v":{"v":129.11018680082267,"d":"129.11"}},{"$f":"CW28+'(Other Computations)'!B61*(CW29-CW28)/Inputs!B28/12","v":{"v":128.96300845301008,"d":"128.96"}},{"$f":"CX28+'(Other Computations)'!B61*(CX29-CX28)/Inputs!B28/12","v":{"v":128.814302209794,"d":"128.81"}},{"$f":"CY28+'(Other Computations)'!B61*(CY29-CY28)/Inputs!B28/12","v":{"v":128.66688852056237,"d":"128.67"}},{"$f":"CZ28","v":{"v":128.66688852056237,"d":"128.67"}},{"$f":"CZ28+'(Other Computations)'!B61*(CZ29-CZ28)/Inputs!B28/12","v":{"v":128.52138641830422,"d":"128.52"}},{"$f":"DB28+'(Other Computations)'!B61*(DB29-DB28)/Inputs!B28/12","v":{"v":128.37531255715444,"d":"128.38"}},{"$f":"DC28+'(Other Computations)'!B61*(DC29-DC28)/Inputs!B28/12","v":{"v":128.23113843164586,"d":"128.23"}},{"$f":"DD28+'(Other Computations)'!B61*(DD29-DD28)/Inputs!B28/12","v":{"v":128.0865380040845,"d":"128.09"}},{"$f":"DE28+'(Other Computations)'!B61*(DE29-DE28)/Inputs!B28/12","v":{"v":127.94113366378527,"d":"127.94"}},{"$f":"DF28+'(Other Computations)'!B61*(DF29-DF28)/Inputs!B28/12","v":{"v":127.79566289139912,"d":"127.80"}},{"$f":"DG28+'(Other Computations)'!B61*(DG29-DG28)/Inputs!B28/12","v":{"v":127.65053105066596,"d":"127.65"}},{"$f":"DH28+'(Other Computations)'!B61*(DH29-DH28)/Inputs!B28/12","v":{"v":127.50511085887463,"d":"127.51"}},{"$f":"DI28+'(Other Computations)'!B61*(DI29-DI28)/Inputs!B28/12","v":{"v":127.35985269602845,"d":"127.36"}},{"$f":"DJ28+'(Other Computations)'!B61*(DJ29-DJ28)/Inputs!B28/12","v":{"v":127.21384485555356,"d":"127.21"}},{"$f":"DK28+'(Other Computations)'!B61*(DK29-DK28)/Inputs!B28/12","v":{"v":127.06977372418734,"d":"127.07"}},{"$f":"DL28+'(Other Computations)'!B61*(DL29-DL28)/Inputs!B28/12","v":{"v":126.92561599922065,"d":"126.93"}},{"$f":"DM28","v":{"v":126.92561599922065,"d":"126.93"}},{"$f":"DM28+'(Other Computations)'!B61*(DM29-DM28)/Inputs!B28/12","v":{"v":126.78319949699582,"d":"126.78"}},{"$f":"DO28+'(Other Computations)'!B61*(DO29-DO28)/Inputs!B28/12","v":{"v":126.64086099451134,"d":"126.64"}},{"$f":"DP28+'(Other Computations)'!B61*(DP29-DP28)/Inputs!B28/12","v":{"v":126.49752145530769,"d":"126.50"}},{"$f":"DQ28+'(Other Computations)'!B61*(DQ29-DQ28)/Inputs!B28/12","v":{"v":126.35356359632053,"d":"126.35"}},{"$f":"DR28+'(Other Computations)'!B61*(DR29-DR28)/Inputs!B28/12","v":{"v":126.21153491941878,"d":"126.21"}},{"$f":"DS28+'(Other Computations)'!B61*(DS29-DS28)/Inputs!B28/12","v":{"v":126.07112143431205,"d":"126.07"}},{"$f":"DT28+'(Other Computations)'!B61*(DT29-DT28)/Inputs!B28/12","v":{"v":125.93068354150944,"d":"125.93"}},{"$f":"DU28+'(Other Computations)'!B61*(DU29-DU28)/Inputs!B28/12","v":{"v":125.79185751061074,"d":"125.79"}},{"$f":"DV28+'(Other Computations)'!B61*(DV29-DV28)/Inputs!B28/12","v":{"v":125.65446973690462,"d":"125.65"}},{"$f":"DW28+'(Other Computations)'!B61*(DW29-DW28)/Inputs!B28/12","v":{"v":125.51758323129869,"d":"125.52"}},{"$f":"DX28+'(Other Computations)'!B61*(DX29-DX28)/Inputs!B28/12","v":{"v":125.38160198307403,"d":"125.38"}},{"$f":"DY28+'(Other Computations)'!B61*(DY29-DY28)/Inputs!B28/12","v":{"v":125.24472259728063,"d":"125.24"}},{"$f":"DZ28","v":{"v":125.24472259728063,"d":"125.24"}},{"$f":"DZ28+'(Other Computations)'!B61*(DZ29-DZ28)/Inputs!B28/12","v":{"v":125.10859965613872,"d":"125.11"}},{"$f":"EB28+'(Other Computations)'!B61*(EB29-EB28)/Inputs!B28/12","v":{"v":124.97287982543298,"d":"124.97"}},{"$f":"EC28+'(Other Computations)'!B61*(EC29-EC28)/Inputs!B28/12","v":{"v":124.83618026292042,"d":"124.84"}},{"$f":"ED28+'(Other Computations)'!B61*(ED29-ED28)/Inputs!B28/12","v":{"v":124.69864701578196,"d":"124.70"}},{"$f":"EE28+'(Other Computations)'!B61*(EE29-EE28)/Inputs!B28/12","v":{"v":124.56213277395914,"d":"124.56"}},{"$f":"EF28+'(Other Computations)'!B61*(EF29-EF28)/Inputs!B28/12","v":{"v":124.42557824034016,"d":"124.43"}},{"$f":"EG28+'(Other Computations)'!B61*(EG29-EG28)/Inputs!B28/12","v":{"v":124.28883731461822,"d":"124.29"}},{"$f":"EH28+'(Other Computations)'!B61*(EH29-EH28)/Inputs!B28/12","v":{"v":124.15270718124073,"d":"124.15"}},{"$f":"EI28+'(Other Computations)'!B61*(EI29-EI28)/Inputs!B28/12","v":{"v":124.01824957854994,"d":"124.02"}},{"$f":"EJ28+'(Other Computations)'!B61*(EJ29-EJ28)/Inputs!B28/12","v":{"v":123.88351675084593,"d":"123.88"}},{"$f":"EK28+'(Other Computations)'!B61*(EK29-EK28)/Inputs!B28/12","v":{"v":123.7494221274185,"d":"123.75"}},{"$f":"EL28+'(Other Computations)'!B61*(EL29-EL28)/Inputs!B28/12","v":{"v":123.61447743595187,"d":"123.61"}},{"$f":"EM28","v":{"v":123.61447743595187,"d":"123.61"}}]
[{"$f":"Labels!B39","v":"Desired Employment"},{"$f":"(1-Inputs!B20)*B11/'(Other Computations)'!B130","v":{"v":140,"d":"140.00"}},{"$f":"(1-Inputs!B20)*C11/'(Other Computations)'!B130","v":{"v":139.5814931533646,"d":"139.58"}},{"$f":"(1-Inputs!B20)*D11/'(Other Computations)'!B130","v":{"v":139.22712566676742,"d":"139.23"}},{"$f":"(1-Inputs!B20)*E11/'(Other Computations)'!B130","v":{"v":138.89656053214097,"d":"138.90"}},{"$f":"(1-Inputs!B20)*F11/'(Other Computations)'!B130","v":{"v":138.5879637889069,"d":"138.59"}},{"$f":"(1-Inputs!B20)*G11/'(Other Computations)'!B130","v":{"v":138.36210235183307,"d":"138.36"}},{"$f":"(1-Inputs!B20)*H11/'(Other Computations)'!B130","v":{"v":138.0701001364916,"d":"138.07"}},{"$f":"(1-Inputs!B20)*I11/'(Other Computations)'!B130","v":{"v":137.74891558152385,"d":"137.75"}},{"$f":"(1-Inputs!B20)*J11/'(Other Computations)'!B130","v":{"v":137.472172510107,"d":"137.47"}},{"$f":"(1-Inputs!B20)*K11/'(Other Computations)'!B130","v":{"v":137.1033625116055,"d":"137.10"}},{"$f":"(1-Inputs!B20)*L11/'(Other Computations)'!B130","v":{"v":136.8355193255395,"d":"136.84"}},{"$f":"(1-Inputs!B20)*M11/'(Other Computations)'!B130","v":{"v":136.46788951004007,"d":"136.47"}},{"$f":"SUM(B29:M29)","v":{"v":1658.3532050683204,"d":"1,658.35"}},{"$f":"(1-Inputs!B20)*O11/'(Other Computations)'!B130","v":{"v":136.1784236452413,"d":"136.18"}},{"$f":"(1-Inputs!B20)*P11/'(Other Computations)'!B130","v":{"v":135.96343227960472,"d":"135.96"}},{"$f":"(1-Inputs!B20)*Q11/'(Other Computations)'!B130","v":{"v":135.62486824586955,"d":"135.62"}},{"$f":"(1-Inputs!B20)*R11/'(Other Computations)'!B130","v":{"v":135.25005783844176,"d":"135.25"}},{"$f":"(1-Inputs!B20)*S11/'(Other Computations)'!B130","v":{"v":134.98557649959398,"d":"134.99"}},{"$f":"(1-Inputs!B20)*T11/'(Other Computations)'!B130","v":{"v":134.7053088294579,"d":"134.71"}},{"$f":"(1-Inputs!B20)*U11/'(Other Computations)'!B130","v":{"v":134.5076878015962,"d":"134.51"}},{"$f":"(1-Inputs!B20)*V11/'(Other Computations)'!B130","v":{"v":134.22280838455904,"d":"134.22"}},{"$f":"(1-Inputs!B20)*W11/'(Other Computations)'!B130","v":{"v":133.95460118223167,"d":"133.95"}},{"$f":"(1-Inputs!B20)*X11/'(Other Computations)'!B130","v":{"v":133.75685323434107,"d":"133.76"}},{"$f":"(1-Inputs!B20)*Y11/'(Other Computations)'!B130","v":{"v":133.44245777848948,"d":"133.44"}},{"$f":"(1-Inputs!B20)*Z11/'(Other Computations)'!B130","v":{"v":133.10863941759573,"d":"133.11"}},{"$f":"SUM(O29:Z29)","v":{"v":1615.7007151370224,"d":"1,615.70"}},{"$f":"(1-Inputs!B20)*AB11/'(Other Computations)'!B130","v":{"v":132.80911294718246,"d":"132.81"}},{"$f":"(1-Inputs!B20)*AC11/'(Other Computations)'!B130","v":{"v":132.54952348194954,"d":"132.55"}},{"$f":"(1-Inputs!B20)*AD11/'(Other Computations)'!B130","v":{"v":132.29759758511332,"d":"132.30"}},{"$f":"(1-Inputs!B20)*AE11/'(Other Computations)'!B130","v":{"v":132.01056209750965,"d":"132.01"}},{"$f":"(1-Inputs!B20)*AF11/'(Other Computations)'!B130","v":{"v":131.74737716998868,"d":"131.75"}},{"$f":"(1-Inputs!B20)*AG11/'(Other Computations)'!B130","v":{"v":131.44822521954424,"d":"131.45"}},{"$f":"(1-Inputs!B20)*AH11/'(Other Computations)'!B130","v":{"v":131.16693408686513,"d":"131.17"}},{"$f":"(1-Inputs!B20)*AI11/'(Other Computations)'!B130","v":{"v":130.95601799454582,"d":"130.96"}},{"$f":"(1-Inputs!B20)*AJ11/'(Other Computations)'!B130","v":{"v":130.73936447356314,"d":"130.74"}},{"$f":"(1-Inputs!B20)*AK11/'(Other Computations)'!B130","v":{"v":130.47313145373718,"d":"130.47"}},{"$f":"(1-Inputs!B20)*AL11/'(Other Computations)'!B130","v":{"v":130.2392243982634,"d":"130.24"}},{"$f":"(1-Inputs!B20)*AM11/'(Other Computations)'!B130","v":{"v":130.07132731209123,"d":"130.07"}},{"$f":"SUM(AB29:AM29)","v":{"v":1576.5083982203537,"d":"1,576.51"}},{"$f":"(1-Inputs!B20)*AO11/'(Other Computations)'!B130","v":{"v":129.8993729093895,"d":"129.90"}},{"$f":"(1-Inputs!B20)*AP11/'(Other Computations)'!B130","v":{"v":129.7220374705281,"d":"129.72"}},{"$f":"(1-Inputs!B20)*AQ11/'(Other Computations)'!B130","v":{"v":129.50008235007056,"d":"129.50"}},{"$f":"(1-Inputs!B20)*AR11/'(Other Computations)'!B130","v":{"v":129.27782813393227,"d":"129.28"}},{"$f":"(1-Inputs!B20)*AS11/'(Other Computations)'!B130","v":{"v":128.99832995008492,"d":"129.00"}},{"$f":"(1-Inputs!B20)*AT11/'(Other Computations)'!B130","v":{"v":128.7230472239238,"d":"128.72"}},{"$f":"(1-Inputs!B20)*AU11/'(Other Computations)'!B130","v":{"v":128.48746722423468,"d":"128.49"}},{"$f":"(1-Inputs!B20)*AV11/'(Other Computations)'!B130","v":{"v":128.301057236211,"d":"128.30"}},{"$f":"(1-Inputs!B20)*AW11/'(Other Computations)'!B130","v":{"v":128.0927790424428,"d":"128.09"}},{"$f":"(1-Inputs!B20)*AX11/'(Other Computations)'!B130","v":{"v":127.89247379159639,"d":"127.89"}},{"$f":"(1-Inputs!B20)*AY11/'(Other Computations)'!B130","v":{"v":127.68724450697988,"d":"127.69"}},{"$f":"(1-Inputs!B20)*AZ11/'(Other Computations)'!B130","v":{"v":127.50488233362034,"d":"127.50"}},{"$f":"SUM(AO29:AZ29)","v":{"v":1544.0866021730142,"d":"1,544.09"}},{"$f":"(1-Inputs!B20)*BB11/'(Other Computations)'!B130","v":{"v":127.31400285521457,"d":"127.31"}},{"$f":"(1-Inputs!B20)*BC11/'(Other Computations)'!B130","v":{"v":127.08668411050017,"d":"127.09"}},{"$f":"(1-Inputs!B20)*BD11/'(Other Computations)'!B130","v":{"v":126.93712400245313,"d":"126.94"}},{"$f":"(1-Inputs!B20)*BE11/'(Other Computations)'!B130","v":{"v":126.8051899159259,"d":"126.81"}},{"$f":"(1-Inputs!B20)*BF11/'(Other Computations)'!B130","v":{"v":126.62939983271079,"d":"126.63"}},{"$f":"(1-Inputs!B20)*BG11/'(Other Computations)'!B130","v":{"v":126.45217785375377,"d":"126.45"}},{"$f":"(1-Inputs!B20)*BH11/'(Other Computations)'!B130","v":{"v":126.31550205020682,"d":"126.32"}},{"$f":"(1-Inputs!B20)*BI11/'(Other Computations)'!B130","v":{"v":126.0829581520718,"d":"126.08"}},{"$f":"(1-Inputs!B20)*BJ11/'(Other Computations)'!B130","v":{"v":125.89142773922073,"d":"125.89"}},{"$f":"(1-Inputs!B20)*BK11/'(Other Computations)'!B130","v":{"v":125.7347623463102,"d":"125.73"}},{"$f":"(1-Inputs!B20)*BL11/'(Other Computations)'!B130","v":{"v":125.57539124902092,"d":"125.58"}},{"$f":"(1-Inputs!B20)*BM11/'(Other Computations)'!B130","v":{"v":125.42019361668056,"d":"125.42"}},{"$f":"SUM(BB29:BM29)","v":{"v":1516.2448137240692,"d":"1,516.24"}},{"$f":"(1-Inputs!B20)*BO11/'(Other Computations)'!B130","v":{"v":125.22451452301426,"d":"125.22"}},{"$f":"(1-Inputs!B20)*BP11/'(Other Computations)'!B130","v":{"v":125.0794497133303,"d":"125.08"}},{"$f":"(1-Inputs!B20)*BQ11/'(Other Computations)'!B130","v":{"v":124.96702651945321,"d":"124.97"}},{"$f":"(1-Inputs!B20)*BR11/'(Other Computations)'!B130","v":{"v":124.83443384445887,"d":"124.83"}},{"$f":"(1-Inputs!B20)*BS11/'(Other Computations)'!B130","v":{"v":124.7481916440795,"d":"124.75"}},{"$f":"(1-Inputs!B20)*BT11/'(Other Computations)'!B130","v":{"v":124.60064347187634,"d":"124.60"}},{"$f":"(1-Inputs!B20)*BU11/'(Other Computations)'!B130","v":{"v":124.42700152384788,"d":"124.43"}},{"$f":"(1-Inputs!B20)*BV11/'(Other Computations)'!B130","v":{"v":124.27715415002822,"d":"124.28"}},{"$f":"(1-Inputs!B20)*BW11/'(Other Computations)'!B130","v":{"v":124.17471248763353,"d":"124.17"}},{"$f":"(1-Inputs!B20)*BX11/'(Other Computations)'!B130","v":{"v":124.04844892410725,"d":"124.05"}},{"$f":"(1-Inputs!B20)*BY11/'(Other Computations)'!B130","v":{"v":123.92186793567632,"d":"123.92"}},{"$f":"(1-Inputs!B20)*BZ11/'(Other Computations)'!B130","v":{"v":123.73674832956023,"d":"123.74"}},{"$f":"SUM(BO29:BZ29)","v":{"v":1494.040193067066,"d":"1,494.04"}},{"$f":"(1-Inputs!B20)*CB11/'(Other Computations)'!B130","v":{"v":123.49840853315631,"d":"123.50"}},{"$f":"(1-Inputs!B20)*CC11/'(Other Computations)'!B130","v":{"v":123.3094902011569,"d":"123.31"}},{"$f":"(1-Inputs!B20)*CD11/'(Other Computations)'!B130","v":{"v":123.14838655682499,"d":"123.15"}},{"$f":"(1-Inputs!B20)*CE11/'(Other Computations)'!B130","v":{"v":122.93002781602515,"d":"122.93"}},{"$f":"(1-Inputs!B20)*CF11/'(Other Computations)'!B130","v":{"v":122.78336839195404,"d":"122.78"}},{"$f":"(1-Inputs!B20)*CG11/'(Other Computations)'!B130","v":{"v":122.61697816305121,"d":"122.62"}},{"$f":"(1-Inputs!B20)*CH11/'(Other Computations)'!B130","v":{"v":122.55517990170264,"d":"122.56"}},{"$f":"(1-Inputs!B20)*CI11/'(Other Computations)'!B130","v":{"v":122.4030566501665,"d":"122.40"}},{"$f":"(1-Inputs!B20)*CJ11/'(Other Computations)'!B130","v":{"v":122.21208929550946,"d":"122.21"}},{"$f":"(1-Inputs!B20)*CK11/'(Other Computations)'!B130","v":{"v":122.0895068448335,"d":"122.09"}},{"$f":"(1-Inputs!B20)*CL11/'(Other Computations)'!B130","v":{"v":121.98482538770114,"d":"121.98"}},{"$f":"(1-Inputs!B20)*CM11/'(Other Computations)'!B130","v":{"v":121.77950045560424,"d":"121.78"}},{"$f":"SUM(CB29:CM29)","v":{"v":1471.310818197686,"d":"1,471.31"}},{"$f":"(1-Inputs!B20)*CO11/'(Other Computations)'!B130","v":{"v":121.69793782955361,"d":"121.70"}},{"$f":"(1-Inputs!B20)*CP11/'(Other Computations)'!B130","v":{"v":121.61958240145285,"d":"121.62"}},{"$f":"(1-Inputs!B20)*CQ11/'(Other Computations)'!B130","v":{"v":121.48498082561368,"d":"121.48"}},{"$f":"(1-Inputs!B20)*CR11/'(Other Computations)'!B130","v":{"v":121.37300129320299,"d":"121.37"}},{"$f":"(1-Inputs!B20)*CS11/'(Other Computations)'!B130","v":{"v":121.25708084981243,"d":"121.26"}},{"$f":"(1-Inputs!B20)*CT11/'(Other Computations)'!B130","v":{"v":121.00718115062821,"d":"121.01"}},{"$f":"(1-Inputs!B20)*CU11/'(Other Computations)'!B130","v":{"v":120.85768583691332,"d":"120.86"}},{"$f":"(1-Inputs!B20)*CV11/'(Other Computations)'!B130","v":{"v":120.77350603659373,"d":"120.77"}},{"$f":"(1-Inputs!B20)*CW11/'(Other Computations)'!B130","v":{"v":120.63271396681719,"d":"120.63"}},{"$f":"(1-Inputs!B20)*CX11/'(Other Computations)'!B130","v":{"v":120.39752884376334,"d":"120.40"}},{"$f":"(1-Inputs!B20)*CY11/'(Other Computations)'!B130","v":{"v":120.32327371005275,"d":"120.32"}},{"$f":"(1-Inputs!B20)*CZ11/'(Other Computations)'!B130","v":{"v":120.28596743049285,"d":"120.29"}},{"$f":"SUM(CO29:CZ29)","v":{"v":1451.710440174897,"d":"1,451.71"}},{"$f":"(1-Inputs!B20)*DB11/'(Other Computations)'!B130","v":{"v":120.10753201607741,"d":"120.11"}},{"$f":"(1-Inputs!B20)*DC11/'(Other Computations)'!B130","v":{"v":120.07088292785943,"d":"120.07"}},{"$f":"(1-Inputs!B20)*DD11/'(Other Computations)'!B130","v":{"v":119.90215380411088,"d":"119.90"}},{"$f":"(1-Inputs!B20)*DE11/'(Other Computations)'!B130","v":{"v":119.71124800284824,"d":"119.71"}},{"$f":"(1-Inputs!B20)*DF11/'(Other Computations)'!B130","v":{"v":119.5620171743431,"d":"119.56"}},{"$f":"(1-Inputs!B20)*DG11/'(Other Computations)'!B130","v":{"v":119.43606886516888,"d":"119.44"}},{"$f":"(1-Inputs!B20)*DH11/'(Other Computations)'!B130","v":{"v":119.2743280034854,"d":"119.27"}},{"$f":"(1-Inputs!B20)*DI11/'(Other Computations)'!B130","v":{"v":119.13824067893506,"d":"119.14"}},{"$f":"(1-Inputs!B20)*DJ11/'(Other Computations)'!B130","v":{"v":118.94980108467425,"d":"118.95"}},{"$f":"(1-Inputs!B20)*DK11/'(Other Computations)'!B130","v":{"v":118.91534768885968,"d":"118.92"}},{"$f":"(1-Inputs!B20)*DL11/'(Other Computations)'!B130","v":{"v":118.76628876610616,"d":"118.77"}},{"$f":"(1-Inputs!B20)*DM11/'(Other Computations)'!B130","v":{"v":118.72242547107054,"d":"118.72"}},{"$f":"SUM(DB29:DM29)","v":{"v":1432.5563344835386,"d":"1,432.56"}},{"$f":"(1-Inputs!B20)*DO11/'(Other Computations)'!B130","v":{"v":118.58450175388981,"d":"118.58"}},{"$f":"(1-Inputs!B20)*DP11/'(Other Computations)'!B130","v":{"v":118.38450353638127,"d":"118.38"}},{"$f":"(1-Inputs!B20)*DQ11/'(Other Computations)'!B130","v":{"v":118.20554877764697,"d":"118.21"}},{"$f":"(1-Inputs!B20)*DR11/'(Other Computations)'!B130","v":{"v":118.17271180678003,"d":"118.17"}},{"$f":"(1-Inputs!B20)*DS11/'(Other Computations)'!B130","v":{"v":118.12371817727107,"d":"118.12"}},{"$f":"(1-Inputs!B20)*DT11/'(Other Computations)'!B130","v":{"v":117.98189880888152,"d":"117.98"}},{"$f":"(1-Inputs!B20)*DU11/'(Other Computations)'!B130","v":{"v":117.93430416174472,"d":"117.93"}},{"$f":"(1-Inputs!B20)*DV11/'(Other Computations)'!B130","v":{"v":117.87832174513774,"d":"117.88"}},{"$f":"(1-Inputs!B20)*DW11/'(Other Computations)'!B130","v":{"v":117.7698070140028,"d":"117.77"}},{"$f":"(1-Inputs!B20)*DX11/'(Other Computations)'!B130","v":{"v":117.68506333355884,"d":"117.69"}},{"$f":"(1-Inputs!B20)*DY11/'(Other Computations)'!B130","v":{"v":117.49734936137367,"d":"117.50"}},{"$f":"(1-Inputs!B20)*DZ11/'(Other Computations)'!B130","v":{"v":117.404041187507,"d":"117.40"}},{"$f":"SUM(DO29:DZ29)","v":{"v":1415.6217696641756,"d":"1,415.62"}},{"$f":"(1-Inputs!B20)*EB11/'(Other Computations)'!B130","v":{"v":117.29113740748856,"d":"117.29"}},{"$f":"(1-Inputs!B20)*EC11/'(Other Computations)'!B130","v":{"v":117.09898502470922,"d":"117.10"}},{"$f":"(1-Inputs!B20)*ED11/'(Other Computations)'!B130","v":{"v":116.91426522774454,"d":"116.91"}},{"$f":"(1-Inputs!B20)*EE11/'(Other Computations)'!B130","v":{"v":116.83542668678741,"d":"116.84"}},{"$f":"(1-Inputs!B20)*EF11/'(Other Computations)'!B130","v":{"v":116.6965916375057,"d":"116.70"}},{"$f":"(1-Inputs!B20)*EG11/'(Other Computations)'!B130","v":{"v":116.54930091875659,"d":"116.55"}},{"$f":"(1-Inputs!B20)*EH11/'(Other Computations)'!B130","v":{"v":116.44774163207445,"d":"116.45"}},{"$f":"(1-Inputs!B20)*EI11/'(Other Computations)'!B130","v":{"v":116.40794926625114,"d":"116.41"}},{"$f":"(1-Inputs!B20)*EJ11/'(Other Computations)'!B130","v":{"v":116.25763870279867,"d":"116.26"}},{"$f":"(1-Inputs!B20)*EK11/'(Other Computations)'!B130","v":{"v":116.15966644142568,"d":"116.16"}},{"$f":"(1-Inputs!B20)*EL11/'(Other Computations)'!B130","v":{"v":115.97660789894067,"d":"115.98"}},{"$f":"(1-Inputs!B20)*EM11/'(Other Computations)'!B130","v":{"v":115.83191551177688,"d":"115.83"}},{"$f":"SUM(EB29:EM29)","v":{"v":1398.4672263562597,"d":"1,398.47"}}]
[]
[]
[{"$f":"\"Income\"","v":"Income"}]
[{"$f":"\" \"","v":" "}]
[null,{"$f":"ZZZ__FnCalls!F7","v":"Jan 2010"},{"$f":"ZZZ__FnCalls!F8","v":"Feb 2010"},{"$f":"ZZZ__FnCalls!F9","v":"Mar 2010"},{"$f":"ZZZ__FnCalls!F10","v":"Apr 2010"},{"$f":"ZZZ__FnCalls!F11","v":"May 2010"},{"$f":"ZZZ__FnCalls!F12","v":"Jun 2010"},{"$f":"ZZZ__FnCalls!F13","v":"Jul 2010"},{"$f":"ZZZ__FnCalls!F14","v":"Aug 2010"},{"$f":"ZZZ__FnCalls!F15","v":"Sep 2010"},{"$f":"ZZZ__FnCalls!F16","v":"Oct 2010"},{"$f":"ZZZ__FnCalls!F17","v":"Nov 2010"},{"$f":"ZZZ__FnCalls!F18","v":"Dec 2010"},{"$f":"ZZZ__FnCalls!H7","v":"2010"},{"$f":"ZZZ__FnCalls!F19","v":"Jan 2011"},{"$f":"ZZZ__FnCalls!F20","v":"Feb 2011"},{"$f":"ZZZ__FnCalls!F21","v":"Mar 2011"},{"$f":"ZZZ__FnCalls!F22","v":"Apr 2011"},{"$f":"ZZZ__FnCalls!F23","v":"May 2011"},{"$f":"ZZZ__FnCalls!F24","v":"Jun 2011"},{"$f":"ZZZ__FnCalls!F25","v":"Jul 2011"},{"$f":"ZZZ__FnCalls!F26","v":"Aug 2011"},{"$f":"ZZZ__FnCalls!F27","v":"Sep 2011"},{"$f":"ZZZ__FnCalls!F28","v":"Oct 2011"},{"$f":"ZZZ__FnCalls!F29","v":"Nov 2011"},{"$f":"ZZZ__FnCalls!F30","v":"Dec 2011"},{"$f":"ZZZ__FnCalls!H19","v":"2011"},{"$f":"ZZZ__FnCalls!F31","v":"Jan 2012"},{"$f":"ZZZ__FnCalls!F32","v":"Feb 2012"},{"$f":"ZZZ__FnCalls!F33","v":"Mar 2012"},{"$f":"ZZZ__FnCalls!F34","v":"Apr 2012"},{"$f":"ZZZ__FnCalls!F35","v":"May 2012"},{"$f":"ZZZ__FnCalls!F36","v":"Jun 2012"},{"$f":"ZZZ__FnCalls!F37","v":"Jul 2012"},{"$f":"ZZZ__FnCalls!F38","v":"Aug 2012"},{"$f":"ZZZ__FnCalls!F39","v":"Sep 2012"},{"$f":"ZZZ__FnCalls!F40","v":"Oct 2012"},{"$f":"ZZZ__FnCalls!F41","v":"Nov 2012"},{"$f":"ZZZ__FnCalls!F42","v":"Dec 2012"},{"$f":"ZZZ__FnCalls!H31","v":"2012"},{"$f":"ZZZ__FnCalls!F43","v":"Jan 2013"},{"$f":"ZZZ__FnCalls!F44","v":"Feb 2013"},{"$f":"ZZZ__FnCalls!F45","v":"Mar 2013"},{"$f":"ZZZ__FnCalls!F46","v":"Apr 2013"},{"$f":"ZZZ__FnCalls!F47","v":"May 2013"},{"$f":"ZZZ__FnCalls!F48","v":"Jun 2013"},{"$f":"ZZZ__FnCalls!F49","v":"Jul 2013"},{"$f":"ZZZ__FnCalls!F50","v":"Aug 2013"},{"$f":"ZZZ__FnCalls!F51","v":"Sep 2013"},{"$f":"ZZZ__FnCalls!F52","v":"Oct 2013"},{"$f":"ZZZ__FnCalls!F53","v":"Nov 2013"},{"$f":"ZZZ__FnCalls!F54","v":"Dec 2013"},{"$f":"ZZZ__FnCalls!H43","v":"2013"},{"$f":"ZZZ__FnCalls!F55","v":"Jan 2014"},{"$f":"ZZZ__FnCalls!F56","v":"Feb 2014"},{"$f":"ZZZ__FnCalls!F57","v":"Mar 2014"},{"$f":"ZZZ__FnCalls!F58","v":"Apr 2014"},{"$f":"ZZZ__FnCalls!F59","v":"May 2014"},{"$f":"ZZZ__FnCalls!F60","v":"Jun 2014"},{"$f":"ZZZ__FnCalls!F61","v":"Jul 2014"},{"$f":"ZZZ__FnCalls!F62","v":"Aug 2014"},{"$f":"ZZZ__FnCalls!F63","v":"Sep 2014"},{"$f":"ZZZ__FnCalls!F64","v":"Oct 2014"},{"$f":"ZZZ__FnCalls!F65","v":"Nov 2014"},{"$f":"ZZZ__FnCalls!F66","v":"Dec 2014"},{"$f":"ZZZ__FnCalls!H55","v":"2014"},{"$f":"ZZZ__FnCalls!F67","v":"Jan 2015"},{"$f":"ZZZ__FnCalls!F68","v":"Feb 2015"},{"$f":"ZZZ__FnCalls!F69","v":"Mar 2015"},{"$f":"ZZZ__FnCalls!F70","v":"Apr 2015"},{"$f":"ZZZ__FnCalls!F71","v":"May 2015"},{"$f":"ZZZ__FnCalls!F72","v":"Jun 2015"},{"$f":"ZZZ__FnCalls!F73","v":"Jul 2015"},{"$f":"ZZZ__FnCalls!F74","v":"Aug 2015"},{"$f":"ZZZ__FnCalls!F75","v":"Sep 2015"},{"$f":"ZZZ__FnCalls!F76","v":"Oct 2015"},{"$f":"ZZZ__FnCalls!F77","v":"Nov 2015"},{"$f":"ZZZ__FnCalls!F78","v":"Dec 2015"},{"$f":"ZZZ__FnCalls!H67","v":"2015"},{"$f":"ZZZ__FnCalls!F79","v":"Jan 2016"},{"$f":"ZZZ__FnCalls!F80","v":"Feb 2016"},{"$f":"ZZZ__FnCalls!F81","v":"Mar 2016"},{"$f":"ZZZ__FnCalls!F82","v":"Apr 2016"},{"$f":"ZZZ__FnCalls!F83","v":"May 2016"},{"$f":"ZZZ__FnCalls!F84","v":"Jun 2016"},{"$f":"ZZZ__FnCalls!F85","v":"Jul 2016"},{"$f":"ZZZ__FnCalls!F86","v":"Aug 2016"},{"$f":"ZZZ__FnCalls!F87","v":"Sep 2016"},{"$f":"ZZZ__FnCalls!F88","v":"Oct 2016"},{"$f":"ZZZ__FnCalls!F89","v":"Nov 2016"},{"$f":"ZZZ__FnCalls!F90","v":"Dec 2016"},{"$f":"ZZZ__FnCalls!H79","v":"2016"},{"$f":"ZZZ__FnCalls!F91","v":"Jan 2017"},{"$f":"ZZZ__FnCalls!F92","v":"Feb 2017"},{"$f":"ZZZ__FnCalls!F93","v":"Mar 2017"},{"$f":"ZZZ__FnCalls!F94","v":"Apr 2017"},{"$f":"ZZZ__FnCalls!F95","v":"May 2017"},{"$f":"ZZZ__FnCalls!F96","v":"Jun 2017"},{"$f":"ZZZ__FnCalls!F97","v":"Jul 2017"},{"$f":"ZZZ__FnCalls!F98","v":"Aug 2017"},{"$f":"ZZZ__FnCalls!F99","v":"Sep 2017"},{"$f":"ZZZ__FnCalls!F100","v":"Oct 2017"},{"$f":"ZZZ__FnCalls!F101","v":"Nov 2017"},{"$f":"ZZZ__FnCalls!F102","v":"Dec 2017"},{"$f":"ZZZ__FnCalls!H91","v":"2017"},{"$f":"ZZZ__FnCalls!F103","v":"Jan 2018"},{"$f":"ZZZ__FnCalls!F104","v":"Feb 2018"},{"$f":"ZZZ__FnCalls!F105","v":"Mar 2018"},{"$f":"ZZZ__FnCalls!F106","v":"Apr 2018"},{"$f":"ZZZ__FnCalls!F107","v":"May 2018"},{"$f":"ZZZ__FnCalls!F108","v":"Jun 2018"},{"$f":"ZZZ__FnCalls!F109","v":"Jul 2018"},{"$f":"ZZZ__FnCalls!F110","v":"Aug 2018"},{"$f":"ZZZ__FnCalls!F111","v":"Sep 2018"},{"$f":"ZZZ__FnCalls!F112","v":"Oct 2018"},{"$f":"ZZZ__FnCalls!F113","v":"Nov 2018"},{"$f":"ZZZ__FnCalls!F114","v":"Dec 2018"},{"$f":"ZZZ__FnCalls!H103","v":"2018"},{"$f":"ZZZ__FnCalls!F115","v":"Jan 2019"},{"$f":"ZZZ__FnCalls!F116","v":"Feb 2019"},{"$f":"ZZZ__FnCalls!F117","v":"Mar 2019"},{"$f":"ZZZ__FnCalls!F118","v":"Apr 2019"},{"$f":"ZZZ__FnCalls!F119","v":"May 2019"},{"$f":"ZZZ__FnCalls!F120","v":"Jun 2019"},{"$f":"ZZZ__FnCalls!F121","v":"Jul 2019"},{"$f":"ZZZ__FnCalls!F122","v":"Aug 2019"},{"$f":"ZZZ__FnCalls!F123","v":"Sep 2019"},{"$f":"ZZZ__FnCalls!F124","v":"Oct 2019"},{"$f":"ZZZ__FnCalls!F125","v":"Nov 2019"},{"$f":"ZZZ__FnCalls!F126","v":"Dec 2019"},{"$f":"ZZZ__FnCalls!H115","v":"2019"},{"$f":"ZZZ__FnCalls!F127","v":"Jan 2020"},{"$f":"ZZZ__FnCalls!F128","v":"Feb 2020"},{"$f":"ZZZ__FnCalls!F129","v":"Mar 2020"},{"$f":"ZZZ__FnCalls!F130","v":"Apr 2020"},{"$f":"ZZZ__FnCalls!F131","v":"May 2020"},{"$f":"ZZZ__FnCalls!F132","v":"Jun 2020"},{"$f":"ZZZ__FnCalls!F133","v":"Jul 2020"},{"$f":"ZZZ__FnCalls!F134","v":"Aug 2020"},{"$f":"ZZZ__FnCalls!F135","v":"Sep 2020"},{"$f":"ZZZ__FnCalls!F136","v":"Oct 2020"},{"$f":"ZZZ__FnCalls!F137","v":"Nov 2020"},{"$f":"ZZZ__FnCalls!F138","v":"Dec 2020"},{"$f":"ZZZ__FnCalls!H127","v":"2020"}]
[{"$f":"Labels!B55","v":"Current Disposable Income"},{"$f":"B44-B54+B38","v":{"v":839480.8216154232,"d":"$839,481"}},{"v":788251.1577913108,"d":"$788,251"},{"v":825931.6359213647,"d":"$825,932"},{"v":812467.0612329717,"d":"$812,467"},{"v":829838.853227515,"d":"$829,839"},{"v":797354.3398810741,"d":"$797,354"},{"v":847029.6661407481,"d":"$847,030"},{"v":815607.4780568198,"d":"$815,607"},{"v":823566.8353646128,"d":"$823,567"},{"v":851575.4628986887,"d":"$851,575"},{"v":833610.8444009039,"d":"$833,611"},{"v":844848.9810538167,"d":"$844,849"},{"$f":"SUM(B35:M35)","v":{"v":9909563.137585249,"d":"$9,909,563"}},{"$f":"O44-O54+O38","v":{"v":835152.0849989962,"d":"$835,152"}},{"v":819924.636570793,"d":"$819,925"},{"v":825642.3783775421,"d":"$825,642"},{"v":805535.3620735708,"d":"$805,535"},{"v":803423.4568778935,"d":"$803,423"},{"v":853475.129039931,"d":"$853,475"},{"v":809275.4415828394,"d":"$809,275"},{"v":834552.2358389393,"d":"$834,552"},{"v":781966.2907568574,"d":"$781,966"},{"v":815471.7926640966,"d":"$815,472"},{"v":778837.9992215534,"d":"$778,838"},{"v":842929.0214332473,"d":"$842,929"},{"$f":"SUM(O35:Z35)","v":{"v":9806185.82943626,"d":"$9,806,186"}},{"$f":"AB44-AB54+AB38","v":{"v":828387.090588179,"d":"$828,387"}},{"v":776930.2677204584,"d":"$776,930"},{"v":801675.3341543215,"d":"$801,675"},{"v":796506.735817952,"d":"$796,507"},{"v":766393.4387893451,"d":"$766,393"},{"v":820379.0659319056,"d":"$820,379"},{"v":815897.0323739845,"d":"$815,897"},{"v":782507.8335516594,"d":"$782,508"},{"v":833921.3142275609,"d":"$833,921"},{"v":816613.0170341574,"d":"$816,613"},{"v":794307.3452481915,"d":"$794,307"},{"v":831192.8361780269,"d":"$831,193"},{"$f":"SUM(AB35:AM35)","v":{"v":9664711.31161574,"d":"$9,664,711"}},{"$f":"AO44-AO54+AO38","v":{"v":796674.8160016722,"d":"$796,675"}},{"v":791911.3058285968,"d":"$791,911"},{"v":812458.144574507,"d":"$812,458"},{"v":785917.9185549326,"d":"$785,918"},{"v":814229.8468364333,"d":"$814,230"},{"v":791775.7870329147,"d":"$791,776"},{"v":776985.2488313195,"d":"$776,985"},{"v":782556.3631983019,"d":"$782,556"},{"v":790838.6127348262,"d":"$790,839"},{"v":822765.1799809247,"d":"$822,765"},{"v":781826.1970425296,"d":"$781,826"},{"v":754642.9692145864,"d":"$754,643"},{"$f":"SUM(AO35:AZ35)","v":{"v":9502582.389831545,"d":"$9,502,582"}},{"$f":"BB44-BB54+BB38","v":{"v":760184.1300190382,"d":"$760,184"}},{"v":805516.5295173905,"d":"$805,517"},{"v":806450.1703616936,"d":"$806,450"},{"v":776564.3433364473,"d":"$776,564"},{"v":798073.3896909124,"d":"$798,073"},{"v":778143.1181391083,"d":"$778,143"},{"v":797337.4840748319,"d":"$797,337"},{"v":789695.039010673,"d":"$789,695"},{"v":773636.0697034391,"d":"$773,636"},{"v":766868.3500472298,"d":"$766,868"},{"v":771658.7070251764,"d":"$771,659"},{"v":777744.6728658571,"d":"$777,745"},{"$f":"SUM(BB35:BM35)","v":{"v":9401872.003791796,"d":"$9,401,872"}},{"$f":"BO44-BO54+BO38","v":{"v":735389.0955088787,"d":"$735,389"}},{"v":808016.5047715923,"d":"$808,017"},{"v":798740.5352244964,"d":"$798,741"},{"v":813383.4591719839,"d":"$813,383"},{"v":765655.3767082345,"d":"$765,655"},{"v":807734.9030954499,"d":"$807,735"},{"v":767424.8949716999,"d":"$767,425"},{"v":730287.6621625648,"d":"$730,288"},{"v":775728.8607849486,"d":"$775,729"},{"v":742699.6807889398,"d":"$742,700"},{"v":755313.7231681985,"d":"$755,314"},{"v":775783.077452879,"d":"$775,783"},{"$f":"SUM(BO35:BZ35)","v":{"v":9276157.773809867,"d":"$9,276,158"}},{"$f":"CB44-CB54+CB38","v":{"v":729724.0071322003,"d":"$729,724"}},{"v":787374.1538486679,"d":"$787,374"},{"v":751599.5965963855,"d":"$751,600"},{"v":741024.8172428829,"d":"$741,025"},{"v":774461.0963167328,"d":"$774,461"},{"v":760143.4284009541,"d":"$760,143"},{"v":764625.4083841118,"d":"$764,625"},{"v":735388.9651054649,"d":"$735,389"},{"v":798634.6433271136,"d":"$798,635"},{"v":742326.5879874009,"d":"$742,327"},{"v":771005.4159779794,"d":"$771,005"},{"v":725378.1653819935,"d":"$725,378"},{"$f":"SUM(CB35:CM35)","v":{"v":9081686.285701886,"d":"$9,081,686"}},{"$f":"CO44-CO54+CO38","v":{"v":766565.9765751152,"d":"$766,566"}},{"v":743253.8658636105,"d":"$743,254"},{"v":782803.9371369128,"d":"$782,804"},{"v":729007.4091130946,"d":"$729,007"},{"v":762852.9956402989,"d":"$762,853"},{"v":773518.7018577032,"d":"$773,519"},{"v":775503.6710410194,"d":"$775,504"},{"v":760254.4010432226,"d":"$760,254"},{"v":712643.2211818878,"d":"$712,643"},{"v":752249.6523138698,"d":"$752,250"},{"v":733408.722169854,"d":"$733,409"},{"v":773862.9299006196,"d":"$773,863"},{"$f":"SUM(CO35:CZ35)","v":{"v":9065925.483837208,"d":"$9,065,925"}},{"$f":"DB44-DB54+DB38","v":{"v":767362.79518299,"d":"$767,363"}},{"v":743195.1621444615,"d":"$743,195"},{"v":732035.2993282629,"d":"$732,035"},{"v":784928.0116182697,"d":"$784,928"},{"v":744028.7064373015,"d":"$744,029"},{"v":741798.6537722873,"d":"$741,799"},{"v":766522.6890074402,"d":"$766,523"},{"v":722963.4355883978,"d":"$722,963"},{"v":769902.2116392186,"d":"$769,902"},{"v":761627.1484292265,"d":"$761,627"},{"v":727453.1584027897,"d":"$727,453"},{"v":757465.2945975846,"d":"$757,465"},{"$f":"SUM(DB35:DM35)","v":{"v":9019282.56614823,"d":"$9,019,283"}},{"$f":"DO44-DO54+DO38","v":{"v":759916.1019750725,"d":"$759,916"}},{"v":721577.2612945543,"d":"$721,577"},{"v":748687.2693513985,"d":"$748,687"},{"v":718285.5564006594,"d":"$718,286"},{"v":748173.1565565489,"d":"$748,173"},{"v":760786.4755982157,"d":"$760,786"},{"v":729077.5886022066,"d":"$729,078"},{"v":716058.4680986247,"d":"$716,058"},{"v":733519.4398829752,"d":"$733,519"},{"v":734409.785880671,"d":"$734,410"},{"v":755450.4264524154,"d":"$755,450"},{"v":726794.1172595742,"d":"$726,794"},{"$f":"SUM(DO35:DZ35)","v":{"v":8852735.647352917,"d":"$8,852,736"}},{"$f":"EB44-EB54+EB38","v":{"v":749638.9145363601,"d":"$749,639"}},{"v":704008.7099912959,"d":"$704,009"},{"v":722844.9784807684,"d":"$722,845"},{"v":705125.1381239245,"d":"$705,125"},{"v":759220.169000083,"d":"$759,220"},{"v":710434.5915494171,"d":"$710,435"},{"v":725648.5551308703,"d":"$725,649"},{"v":737693.7305347581,"d":"$737,694"},{"v":734984.2031784764,"d":"$734,984"},{"v":723704.9268324457,"d":"$723,705"},{"v":682067.4170552206,"d":"$682,067"},{"v":736016.8195983028,"d":"$736,017"},{"$f":"SUM(EB35:EM35)","v":{"v":8691388.154011924,"d":"$8,691,388"}}]
[{"$f":"Labels!B45","v":"Final Sales"},{"$f":"B12+B21+B37","v":{"v":963388.6810828955,"d":"$963,389"}},{"v":962705.8599466172,"d":"$962,706"},{"v":961993.8583581559,"d":"$961,994"},{"v":961395.1608228597,"d":"$961,395"},{"v":960796.4982499937,"d":"$960,796"},{"v":960334.0236570183,"d":"$960,334"},{"v":959727.5573706042,"d":"$959,728"},{"v":959199.3802639762,"d":"$959,199"},{"v":958657.819776884,"d":"$958,658"},{"v":958030.8676095065,"d":"$958,031"},{"v":957585.0044184516,"d":"$957,585"},{"v":956987.8264464978,"d":"$956,988"},{"$f":"SUM(B36:M36)","v":{"v":11520802.53800346,"d":"$11,520,803"}},{"$f":"O12+O21+O37","v":{"v":956509.0670768807,"d":"$956,509"}},{"v":956096.8204415666,"d":"$956,097"},{"v":955511.346192568,"d":"$955,511"},{"v":954900.9280849328,"d":"$954,901"},{"v":954377.2302958396,"d":"$954,377"},{"v":953832.4731725017,"d":"$953,832"},{"v":953493.4614841909,"d":"$953,493"},{"v":952959.3188198392,"d":"$952,959"},{"v":952502.0769805316,"d":"$952,502"},{"v":952013.5266117178,"d":"$952,014"},{"v":951464.9047277389,"d":"$951,465"},{"v":950818.0556030502,"d":"$950,818"},{"$f":"SUM(O36:Z36)","v":{"v":11444479.209491357,"d":"$11,444,479"}},{"$f":"AB12+AB21+AB37","v":{"v":950352.458842817,"d":"$950,352"}},{"v":949902.9779475203,"d":"$949,903"},{"v":949352.1798502727,"d":"$949,352"},{"v":948816.5652352883,"d":"$948,817"},{"v":948299.386210935,"d":"$948,299"},{"v":947677.3573531092,"d":"$947,677"},{"v":947195.3350252362,"d":"$947,195"},{"v":946785.8434678002,"d":"$946,786"},{"v":946297.8491125765,"d":"$946,298"},{"v":945865.6395461666,"d":"$945,866"},{"v":945434.7058043241,"d":"$945,435"},{"v":945031.9343077218,"d":"$945,032"},{"$f":"SUM(AB36:AM36)","v":{"v":11371012.232703768,"d":"$11,371,012"}},{"$f":"AO12+AO21+AO37","v":{"v":944704.4064388274,"d":"$944,704"}},{"v":944296.209278717,"d":"$944,296"},{"v":943827.1349363172,"d":"$943,827"},{"v":943403.6160665713,"d":"$943,404"},{"v":942857.9429183457,"d":"$942,858"},{"v":942380.5757874647,"d":"$942,381"},{"v":941901.4928602527,"d":"$941,901"},{"v":941447.5350452379,"d":"$941,448"},{"v":940980.8620433853,"d":"$940,981"},{"v":940542.2464773419,"d":"$940,542"},{"v":940167.7812886935,"d":"$940,168"},{"v":939731.3775658048,"d":"$939,731"},{"$f":"SUM(AO36:AZ36)","v":{"v":11306241.18070696,"d":"$11,306,241"}},{"$f":"BB12+BB21+BB37","v":{"v":939226.6618552235,"d":"$939,227"}},{"v":938693.0268191033,"d":"$938,693"},{"v":938348.1003848574,"d":"$938,348"},{"v":938024.8057722093,"d":"$938,025"},{"v":937586.1473770586,"d":"$937,586"},{"v":937193.2197541916,"d":"$937,193"},{"v":936803.9252201087,"d":"$936,804"},{"v":936346.1051666331,"d":"$936,346"},{"v":935920.3961775852,"d":"$935,920"},{"v":935500.1179908039,"d":"$935,500"},{"v":935062.0868402472,"d":"$935,062"},{"v":934639.5673797966,"d":"$934,640"},{"$f":"SUM(BB36:BM36)","v":{"v":11243344.16073782,"d":"$11,243,344"}},{"$f":"BO12+BO21+BO37","v":{"v":934184.0883081335,"d":"$934,184"}},{"v":933695.8113077614,"d":"$933,696"},{"v":933402.3028988211,"d":"$933,402"},{"v":933064.9202990939,"d":"$933,065"},{"v":932812.3789587182,"d":"$932,812"},{"v":932385.1294899979,"d":"$932,385"},{"v":932019.876388099,"d":"$932,020"},{"v":931595.0793859395,"d":"$931,595"},{"v":931144.2825808796,"d":"$931,144"},{"v":930764.3176254454,"d":"$930,764"},{"v":930312.6152653979,"d":"$930,313"},{"v":929821.4210497054,"d":"$929,821"},{"$f":"SUM(BO36:BZ36)","v":{"v":11185202.223557994,"d":"$11,185,202"}},{"$f":"CB12+CB21+CB37","v":{"v":929314.8706043247,"d":"$929,315"}},{"v":928766.8642186912,"d":"$928,767"},{"v":928376.3142868747,"d":"$928,376"},{"v":927842.8084098565,"d":"$927,843"},{"v":927370.1599049888,"d":"$927,370"},{"v":926947.2928154477,"d":"$926,947"},{"v":926613.8437609851,"d":"$926,614"},{"v":926185.2414584629,"d":"$926,185"},{"v":925649.8238523833,"d":"$925,650"},{"v":925331.0940397657,"d":"$925,331"},{"v":924910.2504994224,"d":"$924,910"},{"v":924436.1144253645,"d":"$924,436"},{"$f":"SUM(CB36:CM36)","v":{"v":11121744.678276567,"d":"$11,121,745"}},{"$f":"CO12+CO21+CO37","v":{"v":924006.6271835091,"d":"$924,007"}},{"v":923669.0337565055,"d":"$923,669"},{"v":923216.0498785615,"d":"$923,216"},{"v":922875.4715193106,"d":"$922,875"},{"v":922413.5753260336,"d":"$922,414"},{"v":921871.8411992969,"d":"$921,872"},{"v":921470.8444669675,"d":"$921,471"},{"v":921148.6837172447,"d":"$921,149"},{"v":920727.8025871912,"d":"$920,728"},{"v":920096.4215751459,"d":"$920,096"},{"v":919737.6814393868,"d":"$919,738"},{"v":919378.9923238606,"d":"$919,379"},{"$f":"SUM(CO36:CZ36)","v":{"v":11060613.024973014,"d":"$11,060,613"}},{"$f":"DB12+DB21+DB37","v":{"v":918945.3803399628,"d":"$918,945"}},{"v":918661.9163489542,"d":"$918,662"},{"v":918172.9763043355,"d":"$918,173"},{"v":917636.2804252364,"d":"$917,636"},{"v":917263.317610137,"d":"$917,263"},{"v":916828.5377449347,"d":"$916,829"},{"v":916348.1463441928,"d":"$916,348"},{"v":915951.7888519502,"d":"$915,952"},{"v":915401.2700071592,"d":"$915,401"},{"v":915130.4828070701,"d":"$915,130"},{"v":914708.5578530325,"d":"$914,709"},{"v":914334.4897146653,"d":"$914,334"},{"$f":"SUM(DB36:DM36)","v":{"v":10999383.144351631,"d":"$10,999,383"}},{"$f":"DO12+DO21+DO37","v":{"v":913916.5220232916,"d":"$913,917"}},{"v":913433.9161724317,"d":"$913,434"},{"v":912894.0081407748,"d":"$912,894"},{"v":912581.2869188223,"d":"$912,581"},{"v":912182.4859764023,"d":"$912,182"},{"v":911741.931364264,"d":"$911,742"},{"v":911437.9600007412,"d":"$911,438"},{"v":911054.5095194719,"d":"$911,055"},{"v":910582.532623147,"d":"$910,583"},{"v":910176.5131980078,"d":"$910,177"},{"v":909654.4414598817,"d":"$909,654"},{"v":909288.1941985609,"d":"$909,288"},{"$f":"SUM(DO36:DZ36)","v":{"v":10938944.301595796,"d":"$10,938,944"}},{"$f":"EB12+EB21+EB37","v":{"v":908836.8713188706,"d":"$908,837"}},{"v":908344.9207721269,"d":"$908,345"},{"v":907764.4929778484,"d":"$907,764"},{"v":907347.6200401264,"d":"$907,348"},{"v":906823.0067959098,"d":"$906,823"},{"v":906407.2756544509,"d":"$906,407"},{"v":905939.0116537578,"d":"$905,939"},{"v":905574.6324010749,"d":"$905,575"},{"v":905108.9784703979,"d":"$905,109"},{"v":904699.1033735616,"d":"$904,699"},{"v":904167.2651588637,"d":"$904,167"},{"v":903591.1459355938,"d":"$903,591"},{"$f":"SUM(EB36:EM36)","v":{"v":10874604.324552583,"d":"$10,874,604"}}]
[{"$f":"Labels!B51","v":"Gov Spending"},{"$f":"'(Other Computations)'!B11/8","v":{"v":29166.66666666667,"d":"$29,167"}},{"$f":"'(Other Computations)'!B11/8","v":{"v":29166.66666666667,"d":"$29,167"}},{"$f":"'(Other Computations)'!B11/8","v":{"v":29166.66666666667,"d":"$29,167"}},{"$f":"'(Other Computations)'!B11/8","v":{"v":29166.66666666667,"d":"$29,167"}},{"$f":"'(Other Computations)'!B11/8","v":{"v":29166.66666666667,"d":"$29,167"}},{"$f":"'(Other Computations)'!B11/8","v":{"v":29166.66666666667,"d":"$29,167"}},{"$f":"'(Other Computations)'!B11/8","v":{"v":29166.66666666667,"d":"$29,167"}},{"$f":"'(Other Computations)'!B11/8","v":{"v":29166.66666666667,"d":"$29,167"}},{"$f":"'(Other Computations)'!B11/8","v":{"v":29166.66666666667,"d":"$29,167"}},{"$f":"'(Other Computations)'!B11/8","v":{"v":29166.66666666667,"d":"$29,167"}},{"$f":"'(Other Computations)'!B11/8","v":{"v":29166.66666666667,"d":"$29,167"}},{"$f":"'(Other Computations)'!B11/8","v":{"v":29166.66666666667,"d":"$29,167"}},{"$f":"SUM(B37:M37)","v":{"v":350000.0000000002,"d":"$350,000"}},{"$f":"'(Other Computations)'!B11/8","v":{"v":29166.66666666667,"d":"$29,167"}},{"$f":"'(Other Computations)'!B11/8","v":{"v":29166.66666666667,"d":"$29,167"}},{"$f":"'(Other Computations)'!B11/8","v":{"v":29166.66666666667,"d":"$29,167"}},{"$f":"'(Other Computations)'!B11/8","v":{"v":29166.66666666667,"d":"$29,167"}},{"$f":"'(Other Computations)'!B11/8","v":{"v":29166.66666666667,"d":"$29,167"}},{"$f":"'(Other Computations)'!B11/8","v":{"v":29166.66666666667,"d":"$29,167"}},{"$f":"'(Other Computations)'!B11/8","v":{"v":29166.66666666667,"d":"$29,167"}},{"$f":"'(Other Computations)'!B11/8","v":{"v":29166.66666666667,"d":"$29,167"}},{"$f":"'(Other Computations)'!B11/8","v":{"v":29166.66666666667,"d":"$29,167"}},{"$f":"'(Other Computations)'!B11/8","v":{"v":29166.66666666667,"d":"$29,167"}},{"$f":"'(Other Computations)'!B11/8","v":{"v":29166.66666666667,"d":"$29,167"}},{"$f":"'(Other Computations)'!B11/8","v":{"v":29166.66666666667,"d":"$29,167"}},{"$f":"SUM(O37:Z37)","v":{"v":350000.0000000002,"d":"$350,000"}},{"$f":"'(Other Computations)'!B11/8","v":{"v":29166.66666666667,"d":"$29,167"}},{"$f":"'(Other Computations)'!B11/8","v":{"v":29166.66666666667,"d":"$29,167"}},{"$f":"'(Other Computations)'!B11/8","v":{"v":29166.66666666667,"d":"$29,167"}},{"$f":"'(Other Computations)'!B11/8","v":{"v":29166.66666666667,"d":"$29,167"}},{"$f":"'(Other Computations)'!B11/8","v":{"v":29166.66666666667,"d":"$29,167"}},{"$f":"'(Other Computations)'!B11/8","v":{"v":29166.66666666667,"d":"$29,167"}},{"$f":"'(Other Computations)'!B11/8","v":{"v":29166.66666666667,"d":"$29,167"}},{"$f":"'(Other Computations)'!B11/8","v":{"v":29166.66666666667,"d":"$29,167"}},{"$f":"'(Other Computations)'!B11/8","v":{"v":29166.66666666667,"d":"$29,167"}},{"$f":"'(Other Computations)'!B11/8","v":{"v":29166.66666666667,"d":"$29,167"}},{"$f":"'(Other Computations)'!B11/8","v":{"v":29166.66666666667,"d":"$29,167"}},{"$f":"'(Other Computations)'!B11/8","v":{"v":29166.66666666667,"d":"$29,167"}},{"$f":"SUM(AB37:AM37)","v":{"v":350000.0000000002,"d":"$350,000"}},{"$f":"'(Other Computations)'!B11/8","v":{"v":29166.66666666667,"d":"$29,167"}},{"$f":"'(Other Computations)'!B11/8","v":{"v":29166.66666666667,"d":"$29,167"}},{"$f":"'(Other Computations)'!B11/8","v":{"v":29166.66666666667,"d":"$29,167"}},{"$f":"'(Other Computations)'!B11/8","v":{"v":29166.66666666667,"d":"$29,167"}},{"$f":"'(Other Computations)'!B11/8","v":{"v":29166.66666666667,"d":"$29,167"}},{"$f":"'(Other Computations)'!B11/8","v":{"v":29166.66666666667,"d":"$29,167"}},{"$f":"'(Other Computations)'!B11/8","v":{"v":29166.66666666667,"d":"$29,167"}},{"$f":"'(Other Computations)'!B11/8","v":{"v":29166.66666666667,"d":"$29,167"}},{"$f":"'(Other Computations)'!B11/8","v":{"v":29166.66666666667,"d":"$29,167"}},{"$f":"'(Other Computations)'!B11/8","v":{"v":29166.66666666667,"d":"$29,167"}},{"$f":"'(Other Computations)'!B11/8","v":{"v":29166.66666666667,"d":"$29,167"}},{"$f":"'(Other Computations)'!B11/8","v":{"v":29166.66666666667,"d":"$29,167"}},{"$f":"SUM(AO37:AZ37)","v":{"v":350000.0000000002,"d":"$350,000"}},{"$f":"'(Other Computations)'!B11/8","v":{"v":29166.66666666667,"d":"$29,167"}},{"$f":"'(Other Computations)'!B11/8","v":{"v":29166.66666666667,"d":"$29,167"}},{"$f":"'(Other Computations)'!B11/8","v":{"v":29166.66666666667,"d":"$29,167"}},{"$f":"'(Other Computations)'!B11/8","v":{"v":29166.66666666667,"d":"$29,167"}},{"$f":"'(Other Computations)'!B11/8","v":{"v":29166.66666666667,"d":"$29,167"}},{"$f":"'(Other Computations)'!B11/8","v":{"v":29166.66666666667,"d":"$29,167"}},{"$f":"'(Other Computations)'!B11/8","v":{"v":29166.66666666667,"d":"$29,167"}},{"$f":"'(Other Computations)'!B11/8","v":{"v":29166.66666666667,"d":"$29,167"}},{"$f":"'(Other Computations)'!B11/8","v":{"v":29166.66666666667,"d":"$29,167"}},{"$f":"'(Other Computations)'!B11/8","v":{"v":29166.66666666667,"d":"$29,167"}},{"$f":"'(Other Computations)'!B11/8","v":{"v":29166.66666666667,"d":"$29,167"}},{"$f":"'(Other Computations)'!B11/8","v":{"v":29166.66666666667,"d":"$29,167"}},{"$f":"SUM(BB37:BM37)","v":{"v":350000.0000000002,"d":"$350,000"}},{"$f":"'(Other Computations)'!B11/8","v":{"v":29166.66666666667,"d":"$29,167"}},{"$f":"'(Other Computations)'!B11/8","v":{"v":29166.66666666667,"d":"$29,167"}},{"$f":"'(Other Computations)'!B11/8","v":{"v":29166.66666666667,"d":"$29,167"}},{"$f":"'(Other Computations)'!B11/8","v":{"v":29166.66666666667,"d":"$29,167"}},{"$f":"'(Other Computations)'!B11/8","v":{"v":29166.66666666667,"d":"$29,167"}},{"$f":"'(Other Computations)'!B11/8","v":{"v":29166.66666666667,"d":"$29,167"}},{"$f":"'(Other Computations)'!B11/8","v":{"v":29166.66666666667,"d":"$29,167"}},{"$f":"'(Other Computations)'!B11/8","v":{"v":29166.66666666667,"d":"$29,167"}},{"$f":"'(Other Computations)'!B11/8","v":{"v":29166.66666666667,"d":"$29,167"}},{"$f":"'(Other Computations)'!B11/8","v":{"v":29166.66666666667,"d":"$29,167"}},{"$f":"'(Other Computations)'!B11/8","v":{"v":29166.66666666667,"d":"$29,167"}},{"$f":"'(Other Computations)'!B11/8","v":{"v":29166.66666666667,"d":"$29,167"}},{"$f":"SUM(BO37:BZ37)","v":{"v":350000.0000000002,"d":"$350,000"}},{"$f":"'(Other Computations)'!B11/8","v":{"v":29166.66666666667,"d":"$29,167"}},{"$f":"'(Other Computations)'!B11/8","v":{"v":29166.66666666667,"d":"$29,167"}},{"$f":"'(Other Computations)'!B11/8","v":{"v":29166.66666666667,"d":"$29,167"}},{"$f":"'(Other Computations)'!B11/8","v":{"v":29166.66666666667,"d":"$29,167"}},{"$f":"'(Other Computations)'!B11/8","v":{"v":29166.66666666667,"d":"$29,167"}},{"$f":"'(Other Computations)'!B11/8","v":{"v":29166.66666666667,"d":"$29,167"}},{"$f":"'(Other Computations)'!B11/8","v":{"v":29166.66666666667,"d":"$29,167"}},{"$f":"'(Other Computations)'!B11/8","v":{"v":29166.66666666667,"d":"$29,167"}},{"$f":"'(Other Computations)'!B11/8","v":{"v":29166.66666666667,"d":"$29,167"}},{"$f":"'(Other Computations)'!B11/8","v":{"v":29166.66666666667,"d":"$29,167"}},{"$f":"'(Other Computations)'!B11/8","v":{"v":29166.66666666667,"d":"$29,167"}},{"$f":"'(Other Computations)'!B11/8","v":{"v":29166.66666666667,"d":"$29,167"}},{"$f":"SUM(CB37:CM37)","v":{"v":350000.0000000002,"d":"$350,000"}},{"$f":"'(Other Computations)'!B11/8","v":{"v":29166.66666666667,"d":"$29,167"}},{"$f":"'(Other Computations)'!B11/8","v":{"v":29166.66666666667,"d":"$29,167"}},{"$f":"'(Other Computations)'!B11/8","v":{"v":29166.66666666667,"d":"$29,167"}},{"$f":"'(Other Computations)'!B11/8","v":{"v":29166.66666666667,"d":"$29,167"}},{"$f":"'(Other Computations)'!B11/8","v":{"v":29166.66666666667,"d":"$29,167"}},{"$f":"'(Other Computations)'!B11/8","v":{"v":29166.66666666667,"d":"$29,167"}},{"$f":"'(Other Computations)'!B11/8","v":{"v":29166.66666666667,"d":"$29,167"}},{"$f":"'(Other Computations)'!B11/8","v":{"v":29166.66666666667,"d":"$29,167"}},{"$f":"'(Other Computations)'!B11/8","v":{"v":29166.66666666667,"d":"$29,167"}},{"$f":"'(Other Computations)'!B11/8","v":{"v":29166.66666666667,"d":"$29,167"}},{"$f":"'(Other Computations)'!B11/8","v":{"v":29166.66666666667,"d":"$29,167"}},{"$f":"'(Other Computations)'!B11/8","v":{"v":29166.66666666667,"d":"$29,167"}},{"$f":"SUM(CO37:CZ37)","v":{"v":350000.0000000002,"d":"$350,000"}},{"$f":"'(Other Computations)'!B11/8","v":{"v":29166.66666666667,"d":"$29,167"}},{"$f":"'(Other Computations)'!B11/8","v":{"v":29166.66666666667,"d":"$29,167"}},{"$f":"'(Other Computations)'!B11/8","v":{"v":29166.66666666667,"d":"$29,167"}},{"$f":"'(Other Computations)'!B11/8","v":{"v":29166.66666666667,"d":"$29,167"}},{"$f":"'(Other Computations)'!B11/8","v":{"v":29166.66666666667,"d":"$29,167"}},{"$f":"'(Other Computations)'!B11/8","v":{"v":29166.66666666667,"d":"$29,167"}},{"$f":"'(Other Computations)'!B11/8","v":{"v":29166.66666666667,"d":"$29,167"}},{"$f":"'(Other Computations)'!B11/8","v":{"v":29166.66666666667,"d":"$29,167"}},{"$f":"'(Other Computations)'!B11/8","v":{"v":29166.66666666667,"d":"$29,167"}},{"$f":"'(Other Computations)'!B11/8","v":{"v":29166.66666666667,"d":"$29,167"}},{"$f":"'(Other Computations)'!B11/8","v":{"v":29166.66666666667,"d":"$29,167"}},{"$f":"'(Other Computations)'!B11/8","v":{"v":29166.66666666667,"d":"$29,167"}},{"$f":"SUM(DB37:DM37)","v":{"v":350000.0000000002,"d":"$350,000"}},{"$f":"'(Other Computations)'!B11/8","v":{"v":29166.66666666667,"d":"$29,167"}},{"$f":"'(Other Computations)'!B11/8","v":{"v":29166.66666666667,"d":"$29,167"}},{"$f":"'(Other Computations)'!B11/8","v":{"v":29166.66666666667,"d":"$29,167"}},{"$f":"'(Other Computations)'!B11/8","v":{"v":29166.66666666667,"d":"$29,167"}},{"$f":"'(Other Computations)'!B11/8","v":{"v":29166.66666666667,"d":"$29,167"}},{"$f":"'(Other Computations)'!B11/8","v":{"v":29166.66666666667,"d":"$29,167"}},{"$f":"'(Other Computations)'!B11/8","v":{"v":29166.66666666667,"d":"$29,167"}},{"$f":"'(Other Computations)'!B11/8","v":{"v":29166.66666666667,"d":"$29,167"}},{"$f":"'(Other Computations)'!B11/8","v":{"v":29166.66666666667,"d":"$29,167"}},{"$f":"'(Other Computations)'!B11/8","v":{"v":29166.66666666667,"d":"$29,167"}},{"$f":"'(Other Computations)'!B11/8","v":{"v":29166.66666666667,"d":"$29,167"}},{"$f":"'(Other Computations)'!B11/8","v":{"v":29166.66666666667,"d":"$29,167"}},{"$f":"SUM(DO37:DZ37)","v":{"v":350000.0000000002,"d":"$350,000"}},{"$f":"'(Other Computations)'!B11/8","v":{"v":29166.66666666667,"d":"$29,167"}},{"$f":"'(Other Computations)'!B11/8","v":{"v":29166.66666666667,"d":"$29,167"}},{"$f":"'(Other Computations)'!B11/8","v":{"v":29166.66666666667,"d":"$29,167"}},{"$f":"'(Other Computations)'!B11/8","v":{"v":29166.66666666667,"d":"$29,167"}},{"$f":"'(Other Computations)'!B11/8","v":{"v":29166.66666666667,"d":"$29,167"}},{"$f":"'(Other Computations)'!B11/8","v":{"v":29166.66666666667,"d":"$29,167"}},{"$f":"'(Other Computations)'!B11/8","v":{"v":29166.66666666667,"d":"$29,167"}},{"$f":"'(Other Computations)'!B11/8","v":{"v":29166.66666666667,"d":"$29,167"}},{"$f":"'(Other Computations)'!B11/8","v":{"v":29166.66666666667,"d":"$29,167"}},{"$f":"'(Other Computations)'!B11/8","v":{"v":29166.66666666667,"d":"$29,167"}},{"$f":"'(Other Computations)'!B11/8","v":{"v":29166.66666666667,"d":"$29,167"}},{"$f":"'(Other Computations)'!B11/8","v":{"v":29166.66666666667,"d":"$29,167"}},{"$f":"SUM(EB37:EM37)","v":{"v":350000.0000000002,"d":"$350,000"}}]
[{"$f":"Labels!B52","v":"Gov Transfers"},{"$f":"'(Other Computations)'!B14/8","v":{"v":14583.333333333336,"d":"$14,583"}},{"$f":"'(Other Computations)'!B14/8","v":{"v":14583.333333333336,"d":"$14,583"}},{"$f":"'(Other Computations)'!B14/8","v":{"v":14583.333333333336,"d":"$14,583"}},{"$f":"'(Other Computations)'!B14/8","v":{"v":14583.333333333336,"d":"$14,583"}},{"$f":"'(Other Computations)'!B14/8","v":{"v":14583.333333333336,"d":"$14,583"}},{"$f":"'(Other Computations)'!B14/8","v":{"v":14583.333333333336,"d":"$14,583"}},{"$f":"'(Other Computations)'!B14/8","v":{"v":14583.333333333336,"d":"$14,583"}},{"$f":"'(Other Computations)'!B14/8","v":{"v":14583.333333333336,"d":"$14,583"}},{"$f":"'(Other Computations)'!B14/8","v":{"v":14583.333333333336,"d":"$14,583"}},{"$f":"'(Other Computations)'!B14/8","v":{"v":14583.333333333336,"d":"$14,583"}},{"$f":"'(Other Computations)'!B14/8","v":{"v":14583.333333333336,"d":"$14,583"}},{"$f":"'(Other Computations)'!B14/8","v":{"v":14583.333333333336,"d":"$14,583"}},{"$f":"SUM(B38:M38)","v":{"v":175000.0000000001,"d":"$175,000"}},{"$f":"'(Other Computations)'!B14/8","v":{"v":14583.333333333336,"d":"$14,583"}},{"$f":"'(Other Computations)'!B14/8","v":{"v":14583.333333333336,"d":"$14,583"}},{"$f":"'(Other Computations)'!B14/8","v":{"v":14583.333333333336,"d":"$14,583"}},{"$f":"'(Other Computations)'!B14/8","v":{"v":14583.333333333336,"d":"$14,583"}},{"$f":"'(Other Computations)'!B14/8","v":{"v":14583.333333333336,"d":"$14,583"}},{"$f":"'(Other Computations)'!B14/8","v":{"v":14583.333333333336,"d":"$14,583"}},{"$f":"'(Other Computations)'!B14/8","v":{"v":14583.333333333336,"d":"$14,583"}},{"$f":"'(Other Computations)'!B14/8","v":{"v":14583.333333333336,"d":"$14,583"}},{"$f":"'(Other Computations)'!B14/8","v":{"v":14583.333333333336,"d":"$14,583"}},{"$f":"'(Other Computations)'!B14/8","v":{"v":14583.333333333336,"d":"$14,583"}},{"$f":"'(Other Computations)'!B14/8","v":{"v":14583.333333333336,"d":"$14,583"}},{"$f":"'(Other Computations)'!B14/8","v":{"v":14583.333333333336,"d":"$14,583"}},{"$f":"SUM(O38:Z38)","v":{"v":175000.0000000001,"d":"$175,000"}},{"$f":"'(Other Computations)'!B14/8","v":{"v":14583.333333333336,"d":"$14,583"}},{"$f":"'(Other Computations)'!B14/8","v":{"v":14583.333333333336,"d":"$14,583"}},{"$f":"'(Other Computations)'!B14/8","v":{"v":14583.333333333336,"d":"$14,583"}},{"$f":"'(Other Computations)'!B14/8","v":{"v":14583.333333333336,"d":"$14,583"}},{"$f":"'(Other Computations)'!B14/8","v":{"v":14583.333333333336,"d":"$14,583"}},{"$f":"'(Other Computations)'!B14/8","v":{"v":14583.333333333336,"d":"$14,583"}},{"$f":"'(Other Computations)'!B14/8","v":{"v":14583.333333333336,"d":"$14,583"}},{"$f":"'(Other Computations)'!B14/8","v":{"v":14583.333333333336,"d":"$14,583"}},{"$f":"'(Other Computations)'!B14/8","v":{"v":14583.333333333336,"d":"$14,583"}},{"$f":"'(Other Computations)'!B14/8","v":{"v":14583.333333333336,"d":"$14,583"}},{"$f":"'(Other Computations)'!B14/8","v":{"v":14583.333333333336,"d":"$14,583"}},{"$f":"'(Other Computations)'!B14/8","v":{"v":14583.333333333336,"d":"$14,583"}},{"$f":"SUM(AB38:AM38)","v":{"v":175000.0000000001,"d":"$175,000"}},{"$f":"'(Other Computations)'!B14/8","v":{"v":14583.333333333336,"d":"$14,583"}},{"$f":"'(Other Computations)'!B14/8","v":{"v":14583.333333333336,"d":"$14,583"}},{"$f":"'(Other Computations)'!B14/8","v":{"v":14583.333333333336,"d":"$14,583"}},{"$f":"'(Other Computations)'!B14/8","v":{"v":14583.333333333336,"d":"$14,583"}},{"$f":"'(Other Computations)'!B14/8","v":{"v":14583.333333333336,"d":"$14,583"}},{"$f":"'(Other Computations)'!B14/8","v":{"v":14583.333333333336,"d":"$14,583"}},{"$f":"'(Other Computations)'!B14/8","v":{"v":14583.333333333336,"d":"$14,583"}},{"$f":"'(Other Computations)'!B14/8","v":{"v":14583.333333333336,"d":"$14,583"}},{"$f":"'(Other Computations)'!B14/8","v":{"v":14583.333333333336,"d":"$14,583"}},{"$f":"'(Other Computations)'!B14/8","v":{"v":14583.333333333336,"d":"$14,583"}},{"$f":"'(Other Computations)'!B14/8","v":{"v":14583.333333333336,"d":"$14,583"}},{"$f":"'(Other Computations)'!B14/8","v":{"v":14583.333333333336,"d":"$14,583"}},{"$f":"SUM(AO38:AZ38)","v":{"v":175000.0000000001,"d":"$175,000"}},{"$f":"'(Other Computations)'!B14/8","v":{"v":14583.333333333336,"d":"$14,583"}},{"$f":"'(Other Computations)'!B14/8","v":{"v":14583.333333333336,"d":"$14,583"}},{"$f":"'(Other Computations)'!B14/8","v":{"v":14583.333333333336,"d":"$14,583"}},{"$f":"'(Other Computations)'!B14/8","v":{"v":14583.333333333336,"d":"$14,583"}},{"$f":"'(Other Computations)'!B14/8","v":{"v":14583.333333333336,"d":"$14,583"}},{"$f":"'(Other Computations)'!B14/8","v":{"v":14583.333333333336,"d":"$14,583"}},{"$f":"'(Other Computations)'!B14/8","v":{"v":14583.333333333336,"d":"$14,583"}},{"$f":"'(Other Computations)'!B14/8","v":{"v":14583.333333333336,"d":"$14,583"}},{"$f":"'(Other Computations)'!B14/8","v":{"v":14583.333333333336,"d":"$14,583"}},{"$f":"'(Other Computations)'!B14/8","v":{"v":14583.333333333336,"d":"$14,583"}},{"$f":"'(Other Computations)'!B14/8","v":{"v":14583.333333333336,"d":"$14,583"}},{"$f":"'(Other Computations)'!B14/8","v":{"v":14583.333333333336,"d":"$14,583"}},{"$f":"SUM(BB38:BM38)","v":{"v":175000.0000000001,"d":"$175,000"}},{"$f":"'(Other Computations)'!B14/8","v":{"v":14583.333333333336,"d":"$14,583"}},{"$f":"'(Other Computations)'!B14/8","v":{"v":14583.333333333336,"d":"$14,583"}},{"$f":"'(Other Computations)'!B14/8","v":{"v":14583.333333333336,"d":"$14,583"}},{"$f":"'(Other Computations)'!B14/8","v":{"v":14583.333333333336,"d":"$14,583"}},{"$f":"'(Other Computations)'!B14/8","v":{"v":14583.333333333336,"d":"$14,583"}},{"$f":"'(Other Computations)'!B14/8","v":{"v":14583.333333333336,"d":"$14,583"}},{"$f":"'(Other Computations)'!B14/8","v":{"v":14583.333333333336,"d":"$14,583"}},{"$f":"'(Other Computations)'!B14/8","v":{"v":14583.333333333336,"d":"$14,583"}},{"$f":"'(Other Computations)'!B14/8","v":{"v":14583.333333333336,"d":"$14,583"}},{"$f":"'(Other Computations)'!B14/8","v":{"v":14583.333333333336,"d":"$14,583"}},{"$f":"'(Other Computations)'!B14/8","v":{"v":14583.333333333336,"d":"$14,583"}},{"$f":"'(Other Computations)'!B14/8","v":{"v":14583.333333333336,"d":"$14,583"}},{"$f":"SUM(BO38:BZ38)","v":{"v":175000.0000000001,"d":"$175,000"}},{"$f":"'(Other Computations)'!B14/8","v":{"v":14583.333333333336,"d":"$14,583"}},{"$f":"'(Other Computations)'!B14/8","v":{"v":14583.333333333336,"d":"$14,583"}},{"$f":"'(Other Computations)'!B14/8","v":{"v":14583.333333333336,"d":"$14,583"}},{"$f":"'(Other Computations)'!B14/8","v":{"v":14583.333333333336,"d":"$14,583"}},{"$f":"'(Other Computations)'!B14/8","v":{"v":14583.333333333336,"d":"$14,583"}},{"$f":"'(Other Computations)'!B14/8","v":{"v":14583.333333333336,"d":"$14,583"}},{"$f":"'(Other Computations)'!B14/8","v":{"v":14583.333333333336,"d":"$14,583"}},{"$f":"'(Other Computations)'!B14/8","v":{"v":14583.333333333336,"d":"$14,583"}},{"$f":"'(Other Computations)'!B14/8","v":{"v":14583.333333333336,"d":"$14,583"}},{"$f":"'(Other Computations)'!B14/8","v":{"v":14583.333333333336,"d":"$14,583"}},{"$f":"'(Other Computations)'!B14/8","v":{"v":14583.333333333336,"d":"$14,583"}},{"$f":"'(Other Computations)'!B14/8","v":{"v":14583.333333333336,"d":"$14,583"}},{"$f":"SUM(CB38:CM38)","v":{"v":175000.0000000001,"d":"$175,000"}},{"$f":"'(Other Computations)'!B14/8","v":{"v":14583.333333333336,"d":"$14,583"}},{"$f":"'(Other Computations)'!B14/8","v":{"v":14583.333333333336,"d":"$14,583"}},{"$f":"'(Other Computations)'!B14/8","v":{"v":14583.333333333336,"d":"$14,583"}},{"$f":"'(Other Computations)'!B14/8","v":{"v":14583.333333333336,"d":"$14,583"}},{"$f":"'(Other Computations)'!B14/8","v":{"v":14583.333333333336,"d":"$14,583"}},{"$f":"'(Other Computations)'!B14/8","v":{"v":14583.333333333336,"d":"$14,583"}},{"$f":"'(Other Computations)'!B14/8","v":{"v":14583.333333333336,"d":"$14,583"}},{"$f":"'(Other Computations)'!B14/8","v":{"v":14583.333333333336,"d":"$14,583"}},{"$f":"'(Other Computations)'!B14/8","v":{"v":14583.333333333336,"d":"$14,583"}},{"$f":"'(Other Computations)'!B14/8","v":{"v":14583.333333333336,"d":"$14,583"}},{"$f":"'(Other Computations)'!B14/8","v":{"v":14583.333333333336,"d":"$14,583"}},{"$f":"'(Other Computations)'!B14/8","v":{"v":14583.333333333336,"d":"$14,583"}},{"$f":"SUM(CO38:CZ38)","v":{"v":175000.0000000001,"d":"$175,000"}},{"$f":"'(Other Computations)'!B14/8","v":{"v":14583.333333333336,"d":"$14,583"}},{"$f":"'(Other Computations)'!B14/8","v":{"v":14583.333333333336,"d":"$14,583"}},{"$f":"'(Other Computations)'!B14/8","v":{"v":14583.333333333336,"d":"$14,583"}},{"$f":"'(Other Computations)'!B14/8","v":{"v":14583.333333333336,"d":"$14,583"}},{"$f":"'(Other Computations)'!B14/8","v":{"v":14583.333333333336,"d":"$14,583"}},{"$f":"'(Other Computations)'!B14/8","v":{"v":14583.333333333336,"d":"$14,583"}},{"$f":"'(Other Computations)'!B14/8","v":{"v":14583.333333333336,"d":"$14,583"}},{"$f":"'(Other Computations)'!B14/8","v":{"v":14583.333333333336,"d":"$14,583"}},{"$f":"'(Other Computations)'!B14/8","v":{"v":14583.333333333336,"d":"$14,583"}},{"$f":"'(Other Computations)'!B14/8","v":{"v":14583.333333333336,"d":"$14,583"}},{"$f":"'(Other Computations)'!B14/8","v":{"v":14583.333333333336,"d":"$14,583"}},{"$f":"'(Other Computations)'!B14/8","v":{"v":14583.333333333336,"d":"$14,583"}},{"$f":"SUM(DB38:DM38)","v":{"v":175000.0000000001,"d":"$175,000"}},{"$f":"'(Other Computations)'!B14/8","v":{"v":14583.333333333336,"d":"$14,583"}},{"$f":"'(Other Computations)'!B14/8","v":{"v":14583.333333333336,"d":"$14,583"}},{"$f":"'(Other Computations)'!B14/8","v":{"v":14583.333333333336,"d":"$14,583"}},{"$f":"'(Other Computations)'!B14/8","v":{"v":14583.333333333336,"d":"$14,583"}},{"$f":"'(Other Computations)'!B14/8","v":{"v":14583.333333333336,"d":"$14,583"}},{"$f":"'(Other Computations)'!B14/8","v":{"v":14583.333333333336,"d":"$14,583"}},{"$f":"'(Other Computations)'!B14/8","v":{"v":14583.333333333336,"d":"$14,583"}},{"$f":"'(Other Computations)'!B14/8","v":{"v":14583.333333333336,"d":"$14,583"}},{"$f":"'(Other Computations)'!B14/8","v":{"v":14583.333333333336,"d":"$14,583"}},{"$f":"'(Other Computations)'!B14/8","v":{"v":14583.333333333336,"d":"$14,583"}},{"$f":"'(Other Computations)'!B14/8","v":{"v":14583.333333333336,"d":"$14,583"}},{"$f":"'(Other Computations)'!B14/8","v":{"v":14583.333333333336,"d":"$14,583"}},{"$f":"SUM(DO38:DZ38)","v":{"v":175000.0000000001,"d":"$175,000"}},{"$f":"'(Other Computations)'!B14/8","v":{"v":14583.333333333336,"d":"$14,583"}},{"$f":"'(Other Computations)'!B14/8","v":{"v":14583.333333333336,"d":"$14,583"}},{"$f":"'(Other Computations)'!B14/8","v":{"v":14583.333333333336,"d":"$14,583"}},{"$f":"'(Other Computations)'!B14/8","v":{"v":14583.333333333336,"d":"$14,583"}},{"$f":"'(Other Computations)'!B14/8","v":{"v":14583.333333333336,"d":"$14,583"}},{"$f":"'(Other Computations)'!B14/8","v":{"v":14583.333333333336,"d":"$14,583"}},{"$f":"'(Other Computations)'!B14/8","v":{"v":14583.333333333336,"d":"$14,583"}},{"$f":"'(Other Computations)'!B14/8","v":{"v":14583.333333333336,"d":"$14,583"}},{"$f":"'(Other Computations)'!B14/8","v":{"v":14583.333333333336,"d":"$14,583"}},{"$f":"'(Other Computations)'!B14/8","v":{"v":14583.333333333336,"d":"$14,583"}},{"$f":"'(Other Computations)'!B14/8","v":{"v":14583.333333333336,"d":"$14,583"}},{"$f":"'(Other Computations)'!B14/8","v":{"v":14583.333333333336,"d":"$14,583"}},{"$f":"SUM(EB38:EM38)","v":{"v":175000.0000000001,"d":"$175,000"}}]
[]
[]
[{"$f":"\"Output\"","v":"Output"}]
[{"$f":"\" \"","v":" "}]
[null,{"$f":"ZZZ__FnCalls!F7","v":"Jan 2010"},{"$f":"ZZZ__FnCalls!F8","v":"Feb 2010"},{"$f":"ZZZ__FnCalls!F9","v":"Mar 2010"},{"$f":"ZZZ__FnCalls!F10","v":"Apr 2010"},{"$f":"ZZZ__FnCalls!F11","v":"May 2010"},{"$f":"ZZZ__FnCalls!F12","v":"Jun 2010"},{"$f":"ZZZ__FnCalls!F13","v":"Jul 2010"},{"$f":"ZZZ__FnCalls!F14","v":"Aug 2010"},{"$f":"ZZZ__FnCalls!F15","v":"Sep 2010"},{"$f":"ZZZ__FnCalls!F16","v":"Oct 2010"},{"$f":"ZZZ__FnCalls!F17","v":"Nov 2010"},{"$f":"ZZZ__FnCalls!F18","v":"Dec 2010"},{"$f":"ZZZ__FnCalls!H7","v":"2010"},{"$f":"ZZZ__FnCalls!F19","v":"Jan 2011"},{"$f":"ZZZ__FnCalls!F20","v":"Feb 2011"},{"$f":"ZZZ__FnCalls!F21","v":"Mar 2011"},{"$f":"ZZZ__FnCalls!F22","v":"Apr 2011"},{"$f":"ZZZ__FnCalls!F23","v":"May 2011"},{"$f":"ZZZ__FnCalls!F24","v":"Jun 2011"},{"$f":"ZZZ__FnCalls!F25","v":"Jul 2011"},{"$f":"ZZZ__FnCalls!F26","v":"Aug 2011"},{"$f":"ZZZ__FnCalls!F27","v":"Sep 2011"},{"$f":"ZZZ__FnCalls!F28","v":"Oct 2011"},{"$f":"ZZZ__FnCalls!F29","v":"Nov 2011"},{"$f":"ZZZ__FnCalls!F30","v":"Dec 2011"},{"$f":"ZZZ__FnCalls!H19","v":"2011"},{"$f":"ZZZ__FnCalls!F31","v":"Jan 2012"},{"$f":"ZZZ__FnCalls!F32","v":"Feb 2012"},{"$f":"ZZZ__FnCalls!F33","v":"Mar 2012"},{"$f":"ZZZ__FnCalls!F34","v":"Apr 2012"},{"$f":"ZZZ__FnCalls!F35","v":"May 2012"},{"$f":"ZZZ__FnCalls!F36","v":"Jun 2012"},{"$f":"ZZZ__FnCalls!F37","v":"Jul 2012"},{"$f":"ZZZ__FnCalls!F38","v":"Aug 2012"},{"$f":"ZZZ__FnCalls!F39","v":"Sep 2012"},{"$f":"ZZZ__FnCalls!F40","v":"Oct 2012"},{"$f":"ZZZ__FnCalls!F41","v":"Nov 2012"},{"$f":"ZZZ__FnCalls!F42","v":"Dec 2012"},{"$f":"ZZZ__FnCalls!H31","v":"2012"},{"$f":"ZZZ__FnCalls!F43","v":"Jan 2013"},{"$f":"ZZZ__FnCalls!F44","v":"Feb 2013"},{"$f":"ZZZ__FnCalls!F45","v":"Mar 2013"},{"$f":"ZZZ__FnCalls!F46","v":"Apr 2013"},{"$f":"ZZZ__FnCalls!F47","v":"May 2013"},{"$f":"ZZZ__FnCalls!F48","v":"Jun 2013"},{"$f":"ZZZ__FnCalls!F49","v":"Jul 2013"},{"$f":"ZZZ__FnCalls!F50","v":"Aug 2013"},{"$f":"ZZZ__FnCalls!F51","v":"Sep 2013"},{"$f":"ZZZ__FnCalls!F52","v":"Oct 2013"},{"$f":"ZZZ__FnCalls!F53","v":"Nov 2013"},{"$f":"ZZZ__FnCalls!F54","v":"Dec 2013"},{"$f":"ZZZ__FnCalls!H43","v":"2013"},{"$f":"ZZZ__FnCalls!F55","v":"Jan 2014"},{"$f":"ZZZ__FnCalls!F56","v":"Feb 2014"},{"$f":"ZZZ__FnCalls!F57","v":"Mar 2014"},{"$f":"ZZZ__FnCalls!F58","v":"Apr 2014"},{"$f":"ZZZ__FnCalls!F59","v":"May 2014"},{"$f":"ZZZ__FnCalls!F60","v":"Jun 2014"},{"$f":"ZZZ__FnCalls!F61","v":"Jul 2014"},{"$f":"ZZZ__FnCalls!F62","v":"Aug 2014"},{"$f":"ZZZ__FnCalls!F63","v":"Sep 2014"},{"$f":"ZZZ__FnCalls!F64","v":"Oct 2014"},{"$f":"ZZZ__FnCalls!F65","v":"Nov 2014"},{"$f":"ZZZ__FnCalls!F66","v":"Dec 2014"},{"$f":"ZZZ__FnCalls!H55","v":"2014"},{"$f":"ZZZ__FnCalls!F67","v":"Jan 2015"},{"$f":"ZZZ__FnCalls!F68","v":"Feb 2015"},{"$f":"ZZZ__FnCalls!F69","v":"Mar 2015"},{"$f":"ZZZ__FnCalls!F70","v":"Apr 2015"},{"$f":"ZZZ__FnCalls!F71","v":"May 2015"},{"$f":"ZZZ__FnCalls!F72","v":"Jun 2015"},{"$f":"ZZZ__FnCalls!F73","v":"Jul 2015"},{"$f":"ZZZ__FnCalls!F74","v":"Aug 2015"},{"$f":"ZZZ__FnCalls!F75","v":"Sep 2015"},{"$f":"ZZZ__FnCalls!F76","v":"Oct 2015"},{"$f":"ZZZ__FnCalls!F77","v":"Nov 2015"},{"$f":"ZZZ__FnCalls!F78","v":"Dec 2015"},{"$f":"ZZZ__FnCalls!H67","v":"2015"},{"$f":"ZZZ__FnCalls!F79","v":"Jan 2016"},{"$f":"ZZZ__FnCalls!F80","v":"Feb 2016"},{"$f":"ZZZ__FnCalls!F81","v":"Mar 2016"},{"$f":"ZZZ__FnCalls!F82","v":"Apr 2016"},{"$f":"ZZZ__FnCalls!F83","v":"May 2016"},{"$f":"ZZZ__FnCalls!F84","v":"Jun 2016"},{"$f":"ZZZ__FnCalls!F85","v":"Jul 2016"},{"$f":"ZZZ__FnCalls!F86","v":"Aug 2016"},{"$f":"ZZZ__FnCalls!F87","v":"Sep 2016"},{"$f":"ZZZ__FnCalls!F88","v":"Oct 2016"},{"$f":"ZZZ__FnCalls!F89","v":"Nov 2016"},{"$f":"ZZZ__FnCalls!F90","v":"Dec 2016"},{"$f":"ZZZ__FnCalls!H79","v":"2016"},{"$f":"ZZZ__FnCalls!F91","v":"Jan 2017"},{"$f":"ZZZ__FnCalls!F92","v":"Feb 2017"},{"$f":"ZZZ__FnCalls!F93","v":"Mar 2017"},{"$f":"ZZZ__FnCalls!F94","v":"Apr 2017"},{"$f":"ZZZ__FnCalls!F95","v":"May 2017"},{"$f":"ZZZ__FnCalls!F96","v":"Jun 2017"},{"$f":"ZZZ__FnCalls!F97","v":"Jul 2017"},{"$f":"ZZZ__FnCalls!F98","v":"Aug 2017"},{"$f":"ZZZ__FnCalls!F99","v":"Sep 2017"},{"$f":"ZZZ__FnCalls!F100","v":"Oct 2017"},{"$f":"ZZZ__FnCalls!F101","v":"Nov 2017"},{"$f":"ZZZ__FnCalls!F102","v":"Dec 2017"},{"$f":"ZZZ__FnCalls!H91","v":"2017"},{"$f":"ZZZ__FnCalls!F103","v":"Jan 2018"},{"$f":"ZZZ__FnCalls!F104","v":"Feb 2018"},{"$f":"ZZZ__FnCalls!F105","v":"Mar 2018"},{"$f":"ZZZ__FnCalls!F106","v":"Apr 2018"},{"$f":"ZZZ__FnCalls!F107","v":"May 2018"},{"$f":"ZZZ__FnCalls!F108","v":"Jun 2018"},{"$f":"ZZZ__FnCalls!F109","v":"Jul 2018"},{"$f":"ZZZ__FnCalls!F110","v":"Aug 2018"},{"$f":"ZZZ__FnCalls!F111","v":"Sep 2018"},{"$f":"ZZZ__FnCalls!F112","v":"Oct 2018"},{"$f":"ZZZ__FnCalls!F113","v":"Nov 2018"},{"$f":"ZZZ__FnCalls!F114","v":"Dec 2018"},{"$f":"ZZZ__FnCalls!H103","v":"2018"},{"$f":"ZZZ__FnCalls!F115","v":"Jan 2019"},{"$f":"ZZZ__FnCalls!F116","v":"Feb 2019"},{"$f":"ZZZ__FnCalls!F117","v":"Mar 2019"},{"$f":"ZZZ__FnCalls!F118","v":"Apr 2019"},{"$f":"ZZZ__FnCalls!F119","v":"May 2019"},{"$f":"ZZZ__FnCalls!F120","v":"Jun 2019"},{"$f":"ZZZ__FnCalls!F121","v":"Jul 2019"},{"$f":"ZZZ__FnCalls!F122","v":"Aug 2019"},{"$f":"ZZZ__FnCalls!F123","v":"Sep 2019"},{"$f":"ZZZ__FnCalls!F124","v":"Oct 2019"},{"$f":"ZZZ__FnCalls!F125","v":"Nov 2019"},{"$f":"ZZZ__FnCalls!F126","v":"Dec 2019"},{"$f":"ZZZ__FnCalls!H115","v":"2019"},{"$f":"ZZZ__FnCalls!F127","v":"Jan 2020"},{"$f":"ZZZ__FnCalls!F128","v":"Feb 2020"},{"$f":"ZZZ__FnCalls!F129","v":"Mar 2020"},{"$f":"ZZZ__FnCalls!F130","v":"Apr 2020"},{"$f":"ZZZ__FnCalls!F131","v":"May 2020"},{"$f":"ZZZ__FnCalls!F132","v":"Jun 2020"},{"$f":"ZZZ__FnCalls!F133","v":"Jul 2020"},{"$f":"ZZZ__FnCalls!F134","v":"Aug 2020"},{"$f":"ZZZ__FnCalls!F135","v":"Sep 2020"},{"$f":"ZZZ__FnCalls!F136","v":"Oct 2020"},{"$f":"ZZZ__FnCalls!F137","v":"Nov 2020"},{"$f":"ZZZ__FnCalls!F138","v":"Dec 2020"},{"$f":"ZZZ__FnCalls!H127","v":"2020"}]
[{"$f":"Labels!B64","v":"Output"},{"$f":"B45*(1-Inputs!B21)+B11*Inputs!B21+B46","v":{"v":1178424.9832601284,"d":"$1,178,425"}},{"$f":"C45*(1-Inputs!B21)+C11*Inputs!B21+C46","v":{"v":1105239.749225682,"d":"$1,105,240"}},{"$f":"D45*(1-Inputs!B21)+D11*Inputs!B21+D46","v":{"v":1159069.0036971876,"d":"$1,159,069"}},{"$f":"E45*(1-Inputs!B21)+E11*Inputs!B21+E46","v":{"v":1139833.8969994835,"d":"$1,139,834"}},{"$f":"F45*(1-Inputs!B21)+F11*Inputs!B21+F46","v":{"v":1164650.7427059738,"d":"$1,164,651"}},{"$f":"G45*(1-Inputs!B21)+G11*Inputs!B21+G46","v":{"v":1118244.2950682011,"d":"$1,118,244"}},{"$f":"H45*(1-Inputs!B21)+H11*Inputs!B21+H46","v":{"v":1189209.0468677355,"d":"$1,189,209"}},{"$f":"I45*(1-Inputs!B21)+I11*Inputs!B21+I46","v":{"v":1144320.2067478378,"d":"$1,144,320"}},{"$f":"J45*(1-Inputs!B21)+J11*Inputs!B21+J46","v":{"v":1155690.717187542,"d":"$1,155,691"}},{"$f":"K45*(1-Inputs!B21)+K11*Inputs!B21+K46","v":{"v":1195703.042236222,"d":"$1,195,703"}},{"$f":"L45*(1-Inputs!B21)+L11*Inputs!B21+L46","v":{"v":1170039.3015251008,"d":"$1,170,039"}},{"$f":"M45*(1-Inputs!B21)+M11*Inputs!B21+M46","v":{"v":1186093.7824578334,"d":"$1,186,094"}},{"$f":"SUM(B44:M44)","v":{"v":13906518.767978929,"d":"$13,906,519"}},{"$f":"O45*(1-Inputs!B21)+O11*Inputs!B21+O46","v":{"v":1172241.0738080898,"d":"$1,172,241"}},{"$f":"P45*(1-Inputs!B21)+P11*Inputs!B21+P46","v":{"v":1150487.576053514,"d":"$1,150,488"}},{"$f":"Q45*(1-Inputs!B21)+Q11*Inputs!B21+Q46","v":{"v":1158655.778634584,"d":"$1,158,656"}},{"$f":"R45*(1-Inputs!B21)+R11*Inputs!B21+R46","v":{"v":1129931.4696289108,"d":"$1,129,931"}},{"$f":"S45*(1-Inputs!B21)+S11*Inputs!B21+S46","v":{"v":1126914.4622065146,"d":"$1,126,914"}},{"$f":"T45*(1-Inputs!B21)+T11*Inputs!B21+T46","v":{"v":1198416.8510094252,"d":"$1,198,417"}},{"$f":"U45*(1-Inputs!B21)+U11*Inputs!B21+U46","v":{"v":1135274.4403564371,"d":"$1,135,274"}},{"$f":"V45*(1-Inputs!B21)+V11*Inputs!B21+V46","v":{"v":1171384.14643658,"d":"$1,171,384"}},{"$f":"W45*(1-Inputs!B21)+W11*Inputs!B21+W46","v":{"v":1096261.3677478915,"d":"$1,096,261"}},{"$f":"X45*(1-Inputs!B21)+X11*Inputs!B21+X46","v":{"v":1144126.370472519,"d":"$1,144,126"}},{"$f":"Y45*(1-Inputs!B21)+Y11*Inputs!B21+Y46","v":{"v":1091792.3798403144,"d":"$1,091,792"}},{"$f":"Z45*(1-Inputs!B21)+Z11*Inputs!B21+Z46","v":{"v":1183350.982999877,"d":"$1,183,351"}},{"$f":"SUM(O44:Z44)","v":{"v":13758836.899194658,"d":"$13,758,837"}},{"$f":"AB45*(1-Inputs!B21)+AB11*Inputs!B21+AB46","v":{"v":1162576.7960783509,"d":"$1,162,577"}},{"$f":"AC45*(1-Inputs!B21)+AC11*Inputs!B21+AC46","v":{"v":1089067.0491244644,"d":"$1,089,067"}},{"$f":"AD45*(1-Inputs!B21)+AD11*Inputs!B21+AD46","v":{"v":1124417.144029983,"d":"$1,124,417"}},{"$f":"AE45*(1-Inputs!B21)+AE11*Inputs!B21+AE46","v":{"v":1117033.4321208838,"d":"$1,117,033"}},{"$f":"AF45*(1-Inputs!B21)+AF11*Inputs!B21+AF46","v":{"v":1074014.436365731,"d":"$1,074,014"}},{"$f":"AG45*(1-Inputs!B21)+AG11*Inputs!B21+AG46","v":{"v":1151136.7608551034,"d":"$1,151,137"}},{"$f":"AH45*(1-Inputs!B21)+AH11*Inputs!B21+AH46","v":{"v":1144733.8557723588,"d":"$1,144,734"}},{"$f":"AI45*(1-Inputs!B21)+AI11*Inputs!B21+AI46","v":{"v":1097035.0003118943,"d":"$1,097,035"}},{"$f":"AJ45*(1-Inputs!B21)+AJ11*Inputs!B21+AJ46","v":{"v":1170482.8298488965,"d":"$1,170,483"}},{"$f":"AK45*(1-Inputs!B21)+AK11*Inputs!B21+AK46","v":{"v":1145756.6910011773,"d":"$1,145,757"}},{"$f":"AL45*(1-Inputs!B21)+AL11*Inputs!B21+AL46","v":{"v":1113891.4455926546,"d":"$1,113,891"}},{"$f":"AM45*(1-Inputs!B21)+AM11*Inputs!B21+AM46","v":{"v":1166585.004063848,"d":"$1,166,585"}},{"$f":"SUM(AB44:AM44)","v":{"v":13556730.445165347,"d":"$13,556,730"}},{"$f":"AO45*(1-Inputs!B21)+AO11*Inputs!B21+AO46","v":{"v":1117273.5466690555,"d":"$1,117,274"}},{"$f":"AP45*(1-Inputs!B21)+AP11*Inputs!B21+AP46","v":{"v":1110468.5321360908,"d":"$1,110,469"}},{"$f":"AQ45*(1-Inputs!B21)+AQ11*Inputs!B21+AQ46","v":{"v":1139821.1589159623,"d":"$1,139,821"}},{"$f":"AR45*(1-Inputs!B21)+AR11*Inputs!B21+AR46","v":{"v":1101906.5503165703,"d":"$1,101,907"}},{"$f":"AS45*(1-Inputs!B21)+AS11*Inputs!B21+AS46","v":{"v":1142352.1621472856,"d":"$1,142,352"}},{"$f":"AT45*(1-Inputs!B21)+AT11*Inputs!B21+AT46","v":{"v":1110274.9338565448,"d":"$1,110,275"}},{"$f":"AU45*(1-Inputs!B21)+AU11*Inputs!B21+AU46","v":{"v":1089145.5935685516,"d":"$1,089,146"}},{"$f":"AV45*(1-Inputs!B21)+AV11*Inputs!B21+AV46","v":{"v":1097104.3283785265,"d":"$1,097,104"}},{"$f":"AW45*(1-Inputs!B21)+AW11*Inputs!B21+AW46","v":{"v":1108936.113430704,"d":"$1,108,936"}},{"$f":"AX45*(1-Inputs!B21)+AX11*Inputs!B21+AX46","v":{"v":1154545.4952108448,"d":"$1,154,545"}},{"$f":"AY45*(1-Inputs!B21)+AY11*Inputs!B21+AY46","v":{"v":1096061.2338702804,"d":"$1,096,061"}},{"$f":"AZ45*(1-Inputs!B21)+AZ11*Inputs!B21+AZ46","v":{"v":1057228.051258933,"d":"$1,057,228"}},{"$f":"SUM(AO44:AZ44)","v":{"v":13325117.699759351,"d":"$13,325,118"}},{"$f":"BB45*(1-Inputs!B21)+BB11*Inputs!B21+BB46","v":{"v":1065143.9952652927,"d":"$1,065,144"}},{"$f":"BC45*(1-Inputs!B21)+BC11*Inputs!B21+BC46","v":{"v":1129904.5659772246,"d":"$1,129,905"}},{"$f":"BD45*(1-Inputs!B21)+BD11*Inputs!B21+BD46","v":{"v":1131238.3386119432,"d":"$1,131,238"}},{"$f":"BE45*(1-Inputs!B21)+BE11*Inputs!B21+BE46","v":{"v":1088544.3000044485,"d":"$1,088,544"}},{"$f":"BF45*(1-Inputs!B21)+BF11*Inputs!B21+BF46","v":{"v":1119271.509082256,"d":"$1,119,272"}},{"$f":"BG45*(1-Inputs!B21)+BG11*Inputs!B21+BG46","v":{"v":1090799.6925796785,"d":"$1,090,800"}},{"$f":"BH45*(1-Inputs!B21)+BH11*Inputs!B21+BH46","v":{"v":1118220.215344998,"d":"$1,118,220"}},{"$f":"BI45*(1-Inputs!B21)+BI11*Inputs!B21+BI46","v":{"v":1107302.4366819137,"d":"$1,107,302"}},{"$f":"BJ45*(1-Inputs!B21)+BJ11*Inputs!B21+BJ46","v":{"v":1084361.051957294,"d":"$1,084,361"}},{"$f":"BK45*(1-Inputs!B21)+BK11*Inputs!B21+BK46","v":{"v":1074692.8810198521,"d":"$1,074,693"}},{"$f":"BL45*(1-Inputs!B21)+BL11*Inputs!B21+BL46","v":{"v":1081536.2481312044,"d":"$1,081,536"}},{"$f":"BM45*(1-Inputs!B21)+BM11*Inputs!B21+BM46","v":{"v":1090230.4850464626,"d":"$1,090,230"}},{"$f":"SUM(BB44:BM44)","v":{"v":13181245.71970257,"d":"$13,181,246"}},{"$f":"BO45*(1-Inputs!B21)+BO11*Inputs!B21+BO46","v":{"v":1029722.5173936362,"d":"$1,029,723"}},{"$f":"BP45*(1-Inputs!B21)+BP11*Inputs!B21+BP46","v":{"v":1133475.9591975128,"d":"$1,133,476"}},{"$f":"BQ45*(1-Inputs!B21)+BQ11*Inputs!B21+BQ46","v":{"v":1120224.574130233,"d":"$1,120,225"}},{"$f":"BR45*(1-Inputs!B21)+BR11*Inputs!B21+BR46","v":{"v":1141143.036912358,"d":"$1,141,143"}},{"$f":"BS45*(1-Inputs!B21)+BS11*Inputs!B21+BS46","v":{"v":1072960.0619641447,"d":"$1,072,960"}},{"$f":"BT45*(1-Inputs!B21)+BT11*Inputs!B21+BT46","v":{"v":1133073.671088738,"d":"$1,133,074"}},{"$f":"BU45*(1-Inputs!B21)+BU11*Inputs!B21+BU46","v":{"v":1075487.9451976665,"d":"$1,075,488"}},{"$f":"BV45*(1-Inputs!B21)+BV11*Inputs!B21+BV46","v":{"v":1022434.7554703307,"d":"$1,022,435"}},{"$f":"BW45*(1-Inputs!B21)+BW11*Inputs!B21+BW46","v":{"v":1087350.7535023075,"d":"$1,087,351"}},{"$f":"BX45*(1-Inputs!B21)+BX11*Inputs!B21+BX46","v":{"v":1040166.2106508664,"d":"$1,040,166"}},{"$f":"BY45*(1-Inputs!B21)+BY11*Inputs!B21+BY46","v":{"v":1058186.2711926645,"d":"$1,058,186"}},{"$f":"BZ45*(1-Inputs!B21)+BZ11*Inputs!B21+BZ46","v":{"v":1087428.2058850653,"d":"$1,087,428"}},{"$f":"SUM(BO44:BZ44)","v":{"v":13001653.962585524,"d":"$13,001,654"}},{"$f":"CB45*(1-Inputs!B21)+CB11*Inputs!B21+CB46","v":{"v":1021629.5339983813,"d":"$1,021,630"}},{"$f":"CC45*(1-Inputs!B21)+CC11*Inputs!B21+CC46","v":{"v":1103986.8864504779,"d":"$1,103,987"}},{"$f":"CD45*(1-Inputs!B21)+CD11*Inputs!B21+CD46","v":{"v":1052880.3760900744,"d":"$1,052,880"}},{"$f":"CE45*(1-Inputs!B21)+CE11*Inputs!B21+CE46","v":{"v":1037773.5484422137,"d":"$1,037,774"}},{"$f":"CF45*(1-Inputs!B21)+CF11*Inputs!B21+CF46","v":{"v":1085539.6614048565,"d":"$1,085,540"}},{"$f":"CG45*(1-Inputs!B21)+CG11*Inputs!B21+CG46","v":{"v":1065085.850096601,"d":"$1,065,086"}},{"$f":"CH45*(1-Inputs!B21)+CH11*Inputs!B21+CH46","v":{"v":1071488.6786439694,"d":"$1,071,489"}},{"$f":"CI45*(1-Inputs!B21)+CI11*Inputs!B21+CI46","v":{"v":1029722.3311030451,"d":"$1,029,722"}},{"$f":"CJ45*(1-Inputs!B21)+CJ11*Inputs!B21+CJ46","v":{"v":1120073.2999911148,"d":"$1,120,073"}},{"$f":"CK45*(1-Inputs!B21)+CK11*Inputs!B21+CK46","v":{"v":1039633.2209343823,"d":"$1,039,633"}},{"$f":"CL45*(1-Inputs!B21)+CL11*Inputs!B21+CL46","v":{"v":1080602.9752066373,"d":"$1,080,603"}},{"$f":"CM45*(1-Inputs!B21)+CM11*Inputs!B21+CM46","v":{"v":1015421.1886409431,"d":"$1,015,421"}},{"$f":"SUM(CB44:CM44)","v":{"v":12723837.551002696,"d":"$12,723,838"}},{"$f":"CO45*(1-Inputs!B21)+CO11*Inputs!B21+CO46","v":{"v":1074260.9189168313,"d":"$1,074,261"}},{"$f":"CP45*(1-Inputs!B21)+CP11*Inputs!B21+CP46","v":{"v":1040957.9036146817,"d":"$1,040,958"}},{"$f":"CQ45*(1-Inputs!B21)+CQ11*Inputs!B21+CQ46","v":{"v":1097458.005433685,"d":"$1,097,458"}},{"$f":"CR45*(1-Inputs!B21)+CR11*Inputs!B21+CR46","v":{"v":1020605.822542516,"d":"$1,020,606"}},{"$f":"CS45*(1-Inputs!B21)+CS11*Inputs!B21+CS46","v":{"v":1068956.6604385222,"d":"$1,068,957"}},{"$f":"CT45*(1-Inputs!B21)+CT11*Inputs!B21+CT46","v":{"v":1084193.3836062427,"d":"$1,084,193"}},{"$f":"CU45*(1-Inputs!B21)+CU11*Inputs!B21+CU46","v":{"v":1087029.0538681229,"d":"$1,087,029"}},{"$f":"CV45*(1-Inputs!B21)+CV11*Inputs!B21+CV46","v":{"v":1065244.382442699,"d":"$1,065,244"}},{"$f":"CW45*(1-Inputs!B21)+CW11*Inputs!B21+CW46","v":{"v":997228.4112122206,"d":"$997,228"}},{"$f":"CX45*(1-Inputs!B21)+CX11*Inputs!B21+CX46","v":{"v":1053809.027115052,"d":"$1,053,809"}},{"$f":"CY45*(1-Inputs!B21)+CY11*Inputs!B21+CY46","v":{"v":1026893.4126236009,"d":"$1,026,893"}},{"$f":"CZ45*(1-Inputs!B21)+CZ11*Inputs!B21+CZ46","v":{"v":1084685.137953266,"d":"$1,084,685"}},{"$f":"SUM(CO44:CZ44)","v":{"v":12701322.119767444,"d":"$12,701,322"}},{"$f":"DB45*(1-Inputs!B21)+DB11*Inputs!B21+DB46","v":{"v":1075399.2312137953,"d":"$1,075,399"}},{"$f":"DC45*(1-Inputs!B21)+DC11*Inputs!B21+DC46","v":{"v":1040874.0411587546,"d":"$1,040,874"}},{"$f":"DD45*(1-Inputs!B21)+DD11*Inputs!B21+DD46","v":{"v":1024931.3799927565,"d":"$1,024,931"}},{"$f":"DE45*(1-Inputs!B21)+DE11*Inputs!B21+DE46","v":{"v":1100492.397549909,"d":"$1,100,492"}},{"$f":"DF45*(1-Inputs!B21)+DF11*Inputs!B21+DF46","v":{"v":1042064.8187199546,"d":"$1,042,065"}},{"$f":"DG45*(1-Inputs!B21)+DG11*Inputs!B21+DG46","v":{"v":1038879.0291985057,"d":"$1,038,879"}},{"$f":"DH45*(1-Inputs!B21)+DH11*Inputs!B21+DH46","v":{"v":1074199.0795344384,"d":"$1,074,199"}},{"$f":"DI45*(1-Inputs!B21)+DI11*Inputs!B21+DI46","v":{"v":1011971.574650092,"d":"$1,011,972"}},{"$f":"DJ45*(1-Inputs!B21)+DJ11*Inputs!B21+DJ46","v":{"v":1079026.9690084076,"d":"$1,079,027"}},{"$f":"DK45*(1-Inputs!B21)+DK11*Inputs!B21+DK46","v":{"v":1067205.4501369903,"d":"$1,067,205"}},{"$f":"DL45*(1-Inputs!B21)+DL11*Inputs!B21+DL46","v":{"v":1018385.4643849378,"d":"$1,018,385"}},{"$f":"DM45*(1-Inputs!B21)+DM11*Inputs!B21+DM46","v":{"v":1061259.9446632161,"d":"$1,061,260"}},{"$f":"SUM(DB44:DM44)","v":{"v":12634689.380211757,"d":"$12,634,689"}},{"$f":"DO45*(1-Inputs!B21)+DO11*Inputs!B21+DO46","v":{"v":1064761.0980596275,"d":"$1,064,761"}},{"$f":"DP45*(1-Inputs!B21)+DP11*Inputs!B21+DP46","v":{"v":1009991.3256588872,"d":"$1,009,991"}},{"$f":"DQ45*(1-Inputs!B21)+DQ11*Inputs!B21+DQ46","v":{"v":1048719.9085972358,"d":"$1,048,720"}},{"$f":"DR45*(1-Inputs!B21)+DR11*Inputs!B21+DR46","v":{"v":1005288.8900961801,"d":"$1,005,289"}},{"$f":"DS45*(1-Inputs!B21)+DS11*Inputs!B21+DS46","v":{"v":1047985.4617474508,"d":"$1,047,985"}},{"$f":"DT45*(1-Inputs!B21)+DT11*Inputs!B21+DT46","v":{"v":1066004.488949832,"d":"$1,066,004"}},{"$f":"DU45*(1-Inputs!B21)+DU11*Inputs!B21+DU46","v":{"v":1020706.0789555332,"d":"$1,020,706"}},{"$f":"DV45*(1-Inputs!B21)+DV11*Inputs!B21+DV46","v":{"v":1002107.3353789878,"d":"$1,002,107"}},{"$f":"DW45*(1-Inputs!B21)+DW11*Inputs!B21+DW46","v":{"v":1027051.5807852026,"d":"$1,027,052"}},{"$f":"DX45*(1-Inputs!B21)+DX11*Inputs!B21+DX46","v":{"v":1028323.5036390538,"d":"$1,028,324"}},{"$f":"DY45*(1-Inputs!B21)+DY11*Inputs!B21+DY46","v":{"v":1058381.5615986886,"d":"$1,058,382"}},{"$f":"DZ45*(1-Inputs!B21)+DZ11*Inputs!B21+DZ46","v":{"v":1017443.977037487,"d":"$1,017,444"}},{"$f":"SUM(DO44:DZ44)","v":{"v":12396765.210504165,"d":"$12,396,765"}},{"$f":"EB45*(1-Inputs!B21)+EB11*Inputs!B21+EB46","v":{"v":1050079.4017186097,"d":"$1,050,079"}},{"$f":"EC45*(1-Inputs!B21)+EC11*Inputs!B21+EC46","v":{"v":984893.3952256609,"d":"$984,893"}},{"$f":"ED45*(1-Inputs!B21)+ED11*Inputs!B21+ED46","v":{"v":1011802.3502106215,"d":"$1,011,802"}},{"$f":"EE45*(1-Inputs!B21)+EE11*Inputs!B21+EE46","v":{"v":986488.2925579875,"d":"$986,488"}},{"$f":"EF45*(1-Inputs!B21)+EF11*Inputs!B21+EF46","v":{"v":1063766.9080953568,"d":"$1,063,767"}},{"$f":"EG45*(1-Inputs!B21)+EG11*Inputs!B21+EG46","v":{"v":994073.2260229768,"d":"$994,073"}},{"$f":"EH45*(1-Inputs!B21)+EH11*Inputs!B21+EH46","v":{"v":1015807.4597107671,"d":"$1,015,807"}},{"$f":"EI45*(1-Inputs!B21)+EI11*Inputs!B21+EI46","v":{"v":1033014.8531448924,"d":"$1,033,015"}},{"$f":"EJ45*(1-Inputs!B21)+EJ11*Inputs!B21+EJ46","v":{"v":1029144.0997787758,"d":"$1,029,144"}},{"$f":"EK45*(1-Inputs!B21)+EK11*Inputs!B21+EK46","v":{"v":1013030.8478558748,"d":"$1,013,031"}},{"$f":"EL45*(1-Inputs!B21)+EL11*Inputs!B21+EL46","v":{"v":953548.6910312675,"d":"$953,549"}},{"$f":"EM45*(1-Inputs!B21)+EM11*Inputs!B21+EM46","v":{"v":1030619.2660928137,"d":"$1,030,619"}},{"$f":"SUM(EB44:EM44)","v":{"v":12166268.791445605,"d":"$12,166,269"}}]
[{"$f":"Labels!B68","v":"Potential Output"},{"$f":"'(Other Computations)'!B8*(B28/Inputs!B27)^(1-Inputs!B20)*(B19/'(Other Computations)'!B194)^Inputs!B20","v":{"v":1166666.6666666667,"d":"$1,166,667"}},{"$f":"'(Other Computations)'!B8*(C28/Inputs!B27)^(1-Inputs!B20)*(C19/'(Other Computations)'!B194)^Inputs!B20","v":{"v":1166666.6666666667,"d":"$1,166,667"}},{"$f":"'(Other Computations)'!B8*(D28/Inputs!B27)^(1-Inputs!B20)*(D19/'(Other Computations)'!B194)^Inputs!B20","v":{"v":1166617.2190847096,"d":"$1,166,617"}},{"$f":"'(Other Computations)'!B8*(E28/Inputs!B27)^(1-Inputs!B20)*(E19/'(Other Computations)'!B194)^Inputs!B20","v":{"v":1166526.7551124713,"d":"$1,166,527"}},{"$f":"'(Other Computations)'!B8*(F28/Inputs!B27)^(1-Inputs!B20)*(F19/'(Other Computations)'!B194)^Inputs!B20","v":{"v":1166398.7932722978,"d":"$1,166,399"}},{"$f":"'(Other Computations)'!B8*(G28/Inputs!B27)^(1-Inputs!B20)*(G19/'(Other Computations)'!B194)^Inputs!B20","v":{"v":1166236.5737276275,"d":"$1,166,237"}},{"$f":"'(Other Computations)'!B8*(H28/Inputs!B27)^(1-Inputs!B20)*(H19/'(Other Computations)'!B194)^Inputs!B20","v":{"v":1166050.4602780303,"d":"$1,166,050"}},{"$f":"'(Other Computations)'!B8*(I28/Inputs!B27)^(1-Inputs!B20)*(I19/'(Other Computations)'!B194)^Inputs!B20","v":{"v":1165833.046114636,"d":"$1,165,833"}},{"$f":"'(Other Computations)'!B8*(J28/Inputs!B27)^(1-Inputs!B20)*(J19/'(Other Computations)'!B194)^Inputs!B20","v":{"v":1165581.4181729401,"d":"$1,165,581"}},{"$f":"'(Other Computations)'!B8*(K28/Inputs!B27)^(1-Inputs!B20)*(K19/'(Other Computations)'!B194)^Inputs!B20","v":{"v":1165301.4127980317,"d":"$1,165,301"}},{"$f":"'(Other Computations)'!B8*(L28/Inputs!B27)^(1-Inputs!B20)*(L19/'(Other Computations)'!B194)^Inputs!B20","v":{"v":1164982.6333261936,"d":"$1,164,983"}},{"$f":"'(Other Computations)'!B8*(M28/Inputs!B27)^(1-Inputs!B20)*(M19/'(Other Computations)'!B194)^Inputs!B20","v":{"v":1164637.673374215,"d":"$1,164,638"}},{"$f":"SUM(B45:M45)","v":{"v":13991499.318594487,"d":"$13,991,499"}},{"$f":"'(Other Computations)'!B8*(O28/Inputs!B27)^(1-Inputs!B20)*(O19/'(Other Computations)'!B194)^Inputs!B20","v":{"v":1164255.183633396,"d":"$1,164,255"}},{"$f":"'(Other Computations)'!B8*(P28/Inputs!B27)^(1-Inputs!B20)*(P19/'(Other Computations)'!B194)^Inputs!B20","v":{"v":1163845.0406479395,"d":"$1,163,845"}},{"$f":"'(Other Computations)'!B8*(Q28/Inputs!B27)^(1-Inputs!B20)*(Q19/'(Other Computations)'!B194)^Inputs!B20","v":{"v":1163416.5155007334,"d":"$1,163,417"}},{"$f":"'(Other Computations)'!B8*(R28/Inputs!B27)^(1-Inputs!B20)*(R19/'(Other Computations)'!B194)^Inputs!B20","v":{"v":1162955.3097891726,"d":"$1,162,955"}},{"$f":"'(Other Computations)'!B8*(S28/Inputs!B27)^(1-Inputs!B20)*(S19/'(Other Computations)'!B194)^Inputs!B20","v":{"v":1162457.6914576737,"d":"$1,162,458"}},{"$f":"'(Other Computations)'!B8*(T28/Inputs!B27)^(1-Inputs!B20)*(T19/'(Other Computations)'!B194)^Inputs!B20","v":{"v":1161937.3198042845,"d":"$1,161,937"}},{"$f":"'(Other Computations)'!B8*(U28/Inputs!B27)^(1-Inputs!B20)*(U19/'(Other Computations)'!B194)^Inputs!B20","v":{"v":1161392.7101493631,"d":"$1,161,393"}},{"$f":"'(Other Computations)'!B8*(V28/Inputs!B27)^(1-Inputs!B20)*(V19/'(Other Computations)'!B194)^Inputs!B20","v":{"v":1160834.0413659548,"d":"$1,160,834"}},{"$f":"'(Other Computations)'!B8*(W28/Inputs!B27)^(1-Inputs!B20)*(W19/'(Other Computations)'!B194)^Inputs!B20","v":{"v":1160251.2277589655,"d":"$1,160,251"}},{"$f":"'(Other Computations)'!B8*(X28/Inputs!B27)^(1-Inputs!B20)*(X19/'(Other Computations)'!B194)^Inputs!B20","v":{"v":1159646.6452117413,"d":"$1,159,647"}},{"$f":"'(Other Computations)'!B8*(Y28/Inputs!B27)^(1-Inputs!B20)*(Y19/'(Other Computations)'!B194)^Inputs!B20","v":{"v":1159028.9901424472,"d":"$1,159,029"}},{"$f":"'(Other Computations)'!B8*(Z28/Inputs!B27)^(1-Inputs!B20)*(Z19/'(Other Computations)'!B194)^Inputs!B20","v":{"v":1158384.6804341392,"d":"$1,158,385"}},{"$f":"SUM(O45:Z45)","v":{"v":13938405.355895814,"d":"$13,938,405"}},{"$f":"'(Other Computations)'!B8*(AB28/Inputs!B27)^(1-Inputs!B20)*(AB19/'(Other Computations)'!B194)^Inputs!B20","v":{"v":1157711.8642618982,"d":"$1,157,712"}},{"$f":"'(Other Computations)'!B8*(AC28/Inputs!B27)^(1-Inputs!B20)*(AC19/'(Other Computations)'!B194)^Inputs!B20","v":{"v":1157015.0749144966,"d":"$1,157,015"}},{"$f":"'(Other Computations)'!B8*(AD28/Inputs!B27)^(1-Inputs!B20)*(AD19/'(Other Computations)'!B194)^Inputs!B20","v":{"v":1156299.4362515998,"d":"$1,156,299"}},{"$f":"'(Other Computations)'!B8*(AE28/Inputs!B27)^(1-Inputs!B20)*(AE19/'(Other Computations)'!B194)^Inputs!B20","v":{"v":1155566.1663933839,"d":"$1,155,566"}},{"$f":"'(Other Computations)'!B8*(AF28/Inputs!B27)^(1-Inputs!B20)*(AF19/'(Other Computations)'!B194)^Inputs!B20","v":{"v":1154811.4010113184,"d":"$1,154,811"}},{"$f":"'(Other Computations)'!B8*(AG28/Inputs!B27)^(1-Inputs!B20)*(AG19/'(Other Computations)'!B194)^Inputs!B20","v":{"v":1154038.3183016635,"d":"$1,154,038"}},{"$f":"'(Other Computations)'!B8*(AH28/Inputs!B27)^(1-Inputs!B20)*(AH19/'(Other Computations)'!B194)^Inputs!B20","v":{"v":1153242.9625315387,"d":"$1,153,243"}},{"$f":"'(Other Computations)'!B8*(AI28/Inputs!B27)^(1-Inputs!B20)*(AI19/'(Other Computations)'!B194)^Inputs!B20","v":{"v":1152427.8158732145,"d":"$1,152,428"}},{"$f":"'(Other Computations)'!B8*(AJ28/Inputs!B27)^(1-Inputs!B20)*(AJ19/'(Other Computations)'!B194)^Inputs!B20","v":{"v":1151601.5350242734,"d":"$1,151,602"}},{"$f":"'(Other Computations)'!B8*(AK28/Inputs!B27)^(1-Inputs!B20)*(AK19/'(Other Computations)'!B194)^Inputs!B20","v":{"v":1150763.6191453123,"d":"$1,150,764"}},{"$f":"'(Other Computations)'!B8*(AL28/Inputs!B27)^(1-Inputs!B20)*(AL19/'(Other Computations)'!B194)^Inputs!B20","v":{"v":1149908.3843652338,"d":"$1,149,908"}},{"$f":"'(Other Computations)'!B8*(AM28/Inputs!B27)^(1-Inputs!B20)*(AM19/'(Other Computations)'!B194)^Inputs!B20","v":{"v":1149039.9417142395,"d":"$1,149,040"}},{"$f":"SUM(AB45:AM45)","v":{"v":13842426.519788174,"d":"$13,842,427"}},{"$f":"'(Other Computations)'!B8*(AO28/Inputs!B27)^(1-Inputs!B20)*(AO19/'(Other Computations)'!B194)^Inputs!B20","v":{"v":1148166.322195816,"d":"$1,148,166"}},{"$f":"'(Other Computations)'!B8*(AP28/Inputs!B27)^(1-Inputs!B20)*(AP19/'(Other Computations)'!B194)^Inputs!B20","v":{"v":1147287.1221521283,"d":"$1,147,287"}},{"$f":"'(Other Computations)'!B8*(AQ28/Inputs!B27)^(1-Inputs!B20)*(AQ19/'(Other Computations)'!B194)^Inputs!B20","v":{"v":1146401.7878982923,"d":"$1,146,402"}},{"$f":"'(Other Computations)'!B8*(AR28/Inputs!B27)^(1-Inputs!B20)*(AR19/'(Other Computations)'!B194)^Inputs!B20","v":{"v":1145505.126153306,"d":"$1,145,505"}},{"$f":"'(Other Computations)'!B8*(AS28/Inputs!B27)^(1-Inputs!B20)*(AS19/'(Other Computations)'!B194)^Inputs!B20","v":{"v":1144597.2824586905,"d":"$1,144,597"}},{"$f":"'(Other Computations)'!B8*(AT28/Inputs!B27)^(1-Inputs!B20)*(AT19/'(Other Computations)'!B194)^Inputs!B20","v":{"v":1143671.6514624553,"d":"$1,143,672"}},{"$f":"'(Other Computations)'!B8*(AU28/Inputs!B27)^(1-Inputs!B20)*(AU19/'(Other Computations)'!B194)^Inputs!B20","v":{"v":1142729.0226851595,"d":"$1,142,729"}},{"$f":"'(Other Computations)'!B8*(AV28/Inputs!B27)^(1-Inputs!B20)*(AV19/'(Other Computations)'!B194)^Inputs!B20","v":{"v":1141774.3785371268,"d":"$1,141,774"}},{"$f":"'(Other Computations)'!B8*(AW28/Inputs!B27)^(1-Inputs!B20)*(AW19/'(Other Computations)'!B194)^Inputs!B20","v":{"v":1140813.7399165255,"d":"$1,140,814"}},{"$f":"'(Other Computations)'!B8*(AX28/Inputs!B27)^(1-Inputs!B20)*(AX19/'(Other Computations)'!B194)^Inputs!B20","v":{"v":1139844.6039682226,"d":"$1,139,845"}},{"$f":"'(Other Computations)'!B8*(AY28/Inputs!B27)^(1-Inputs!B20)*(AY19/'(Other Computations)'!B194)^Inputs!B20","v":{"v":1138868.048331573,"d":"$1,138,868"}},{"$f":"'(Other Computations)'!B8*(AZ28/Inputs!B27)^(1-Inputs!B20)*(AZ19/'(Other Computations)'!B194)^Inputs!B20","v":{"v":1137883.6029820193,"d":"$1,137,884"}},{"$f":"SUM(AO45:AZ45)","v":{"v":13717542.688741317,"d":"$13,717,543"}},{"$f":"'(Other Computations)'!B8*(BB28/Inputs!B27)^(1-Inputs!B20)*(BB19/'(Other Computations)'!B194)^Inputs!B20","v":{"v":1136894.1020382359,"d":"$1,136,894"}},{"$f":"'(Other Computations)'!B8*(BC28/Inputs!B27)^(1-Inputs!B20)*(BC19/'(Other Computations)'!B194)^Inputs!B20","v":{"v":1135898.6090644186,"d":"$1,135,899"}},{"$f":"'(Other Computations)'!B8*(BD28/Inputs!B27)^(1-Inputs!B20)*(BD19/'(Other Computations)'!B194)^Inputs!B20","v":{"v":1134892.8905953541,"d":"$1,134,893"}},{"$f":"'(Other Computations)'!B8*(BE28/Inputs!B27)^(1-Inputs!B20)*(BE19/'(Other Computations)'!B194)^Inputs!B20","v":{"v":1133886.334444338,"d":"$1,133,886"}},{"$f":"'(Other Computations)'!B8*(BF28/Inputs!B27)^(1-Inputs!B20)*(BF19/'(Other Computations)'!B194)^Inputs!B20","v":{"v":1132881.035008147,"d":"$1,132,881"}},{"$f":"'(Other Computations)'!B8*(BG28/Inputs!B27)^(1-Inputs!B20)*(BG19/'(Other Computations)'!B194)^Inputs!B20","v":{"v":1131871.7544857387,"d":"$1,131,872"}},{"$f":"'(Other Computations)'!B8*(BH28/Inputs!B27)^(1-Inputs!B20)*(BH19/'(Other Computations)'!B194)^Inputs!B20","v":{"v":1130858.378822157,"d":"$1,130,858"}},{"$f":"'(Other Computations)'!B8*(BI28/Inputs!B27)^(1-Inputs!B20)*(BI19/'(Other Computations)'!B194)^Inputs!B20","v":{"v":1129845.7795272332,"d":"$1,129,846"}},{"$f":"'(Other Computations)'!B8*(BJ28/Inputs!B27)^(1-Inputs!B20)*(BJ19/'(Other Computations)'!B194)^Inputs!B20","v":{"v":1128822.549310033,"d":"$1,128,823"}},{"$f":"'(Other Computations)'!B8*(BK28/Inputs!B27)^(1-Inputs!B20)*(BK19/'(Other Computations)'!B194)^Inputs!B20","v":{"v":1127793.7268441927,"d":"$1,127,794"}},{"$f":"'(Other Computations)'!B8*(BL28/Inputs!B27)^(1-Inputs!B20)*(BL19/'(Other Computations)'!B194)^Inputs!B20","v":{"v":1126763.536113315,"d":"$1,126,764"}},{"$f":"'(Other Computations)'!B8*(BM28/Inputs!B27)^(1-Inputs!B20)*(BM19/'(Other Computations)'!B194)^Inputs!B20","v":{"v":1125731.6676061226,"d":"$1,125,732"}},{"$f":"SUM(BB45:BM45)","v":{"v":13576140.363859285,"d":"$13,576,140"}},{"$f":"'(Other Computations)'!B8*(BO28/Inputs!B27)^(1-Inputs!B20)*(BO19/'(Other Computations)'!B194)^Inputs!B20","v":{"v":1124698.6343013186,"d":"$1,124,699"}},{"$f":"'(Other Computations)'!B8*(BP28/Inputs!B27)^(1-Inputs!B20)*(BP19/'(Other Computations)'!B194)^Inputs!B20","v":{"v":1123659.6349311806,"d":"$1,123,660"}},{"$f":"'(Other Computations)'!B8*(BQ28/Inputs!B27)^(1-Inputs!B20)*(BQ19/'(Other Computations)'!B194)^Inputs!B20","v":{"v":1122620.773723874,"d":"$1,122,621"}},{"$f":"'(Other Computations)'!B8*(BR28/Inputs!B27)^(1-Inputs!B20)*(BR19/'(Other Computations)'!B194)^Inputs!B20","v":{"v":1121585.9167384594,"d":"$1,121,586"}},{"$f":"'(Other Computations)'!B8*(BS28/Inputs!B27)^(1-Inputs!B20)*(BS19/'(Other Computations)'!B194)^Inputs!B20","v":{"v":1120552.5880830274,"d":"$1,120,553"}},{"$f":"'(Other Computations)'!B8*(BT28/Inputs!B27)^(1-Inputs!B20)*(BT19/'(Other Computations)'!B194)^Inputs!B20","v":{"v":1119526.261367102,"d":"$1,119,526"}},{"$f":"'(Other Computations)'!B8*(BU28/Inputs!B27)^(1-Inputs!B20)*(BU19/'(Other Computations)'!B194)^Inputs!B20","v":{"v":1118499.5187626446,"d":"$1,118,500"}},{"$f":"'(Other Computations)'!B8*(BV28/Inputs!B27)^(1-Inputs!B20)*(BV19/'(Other Computations)'!B194)^Inputs!B20","v":{"v":1117469.2539593806,"d":"$1,117,469"}},{"$f":"'(Other Computations)'!B8*(BW28/Inputs!B27)^(1-Inputs!B20)*(BW19/'(Other Computations)'!B194)^Inputs!B20","v":{"v":1116438.3458292927,"d":"$1,116,438"}},{"$f":"'(Other Computations)'!B8*(BX28/Inputs!B27)^(1-Inputs!B20)*(BX19/'(Other Computations)'!B194)^Inputs!B20","v":{"v":1115412.4334796302,"d":"$1,115,412"}},{"$f":"'(Other Computations)'!B8*(BY28/Inputs!B27)^(1-Inputs!B20)*(BY19/'(Other Computations)'!B194)^Inputs!B20","v":{"v":1114388.5884659276,"d":"$1,114,389"}},{"$f":"'(Other Computations)'!B8*(BZ28/Inputs!B27)^(1-Inputs!B20)*(BZ19/'(Other Computations)'!B194)^Inputs!B20","v":{"v":1113366.7279918776,"d":"$1,113,367"}},{"$f":"SUM(BO45:BZ45)","v":{"v":13428218.677633714,"d":"$13,428,219"}},{"$f":"'(Other Computations)'!B8*(CB28/Inputs!B27)^(1-Inputs!B20)*(CB19/'(Other Computations)'!B194)^Inputs!B20","v":{"v":1112339.8429298722,"d":"$1,112,340"}},{"$f":"'(Other Computations)'!B8*(CC28/Inputs!B27)^(1-Inputs!B20)*(CC19/'(Other Computations)'!B194)^Inputs!B20","v":{"v":1111301.6745092187,"d":"$1,111,302"}},{"$f":"'(Other Computations)'!B8*(CD28/Inputs!B27)^(1-Inputs!B20)*(CD19/'(Other Computations)'!B194)^Inputs!B20","v":{"v":1110258.2854316074,"d":"$1,110,258"}},{"$f":"'(Other Computations)'!B8*(CE28/Inputs!B27)^(1-Inputs!B20)*(CE19/'(Other Computations)'!B194)^Inputs!B20","v":{"v":1109213.0647312074,"d":"$1,109,213"}},{"$f":"'(Other Computations)'!B8*(CF28/Inputs!B27)^(1-Inputs!B20)*(CF19/'(Other Computations)'!B194)^Inputs!B20","v":{"v":1108159.216624071,"d":"$1,108,159"}},{"$f":"'(Other Computations)'!B8*(CG28/Inputs!B27)^(1-Inputs!B20)*(CG19/'(Other Computations)'!B194)^Inputs!B20","v":{"v":1107105.4139585756,"d":"$1,107,105"}},{"$f":"'(Other Computations)'!B8*(CH28/Inputs!B27)^(1-Inputs!B20)*(CH19/'(Other Computations)'!B194)^Inputs!B20","v":{"v":1106049.2961116966,"d":"$1,106,049"}},{"$f":"'(Other Computations)'!B8*(CI28/Inputs!B27)^(1-Inputs!B20)*(CI19/'(Other Computations)'!B194)^Inputs!B20","v":{"v":1105003.3495135603,"d":"$1,105,003"}},{"$f":"'(Other Computations)'!B8*(CJ28/Inputs!B27)^(1-Inputs!B20)*(CJ19/'(Other Computations)'!B194)^Inputs!B20","v":{"v":1103956.6329526221,"d":"$1,103,957"}},{"$f":"'(Other Computations)'!B8*(CK28/Inputs!B27)^(1-Inputs!B20)*(CK19/'(Other Computations)'!B194)^Inputs!B20","v":{"v":1102904.5218222307,"d":"$1,102,905"}},{"$f":"'(Other Computations)'!B8*(CL28/Inputs!B27)^(1-Inputs!B20)*(CL19/'(Other Computations)'!B194)^Inputs!B20","v":{"v":1101855.2456789936,"d":"$1,101,855"}},{"$f":"'(Other Computations)'!B8*(CM28/Inputs!B27)^(1-Inputs!B20)*(CM19/'(Other Computations)'!B194)^Inputs!B20","v":{"v":1100810.8801976724,"d":"$1,100,811"}},{"$f":"SUM(CB45:CM45)","v":{"v":13278957.424461326,"d":"$13,278,957"}},{"$f":"'(Other Computations)'!B8*(CO28/Inputs!B27)^(1-Inputs!B20)*(CO19/'(Other Computations)'!B194)^Inputs!B20","v":{"v":1099759.3375727942,"d":"$1,099,759"}},{"$f":"'(Other Computations)'!B8*(CP28/Inputs!B27)^(1-Inputs!B20)*(CP19/'(Other Computations)'!B194)^Inputs!B20","v":{"v":1098715.4821008379,"d":"$1,098,715"}},{"$f":"'(Other Computations)'!B8*(CQ28/Inputs!B27)^(1-Inputs!B20)*(CQ19/'(Other Computations)'!B194)^Inputs!B20","v":{"v":1097679.5568883994,"d":"$1,097,680"}},{"$f":"'(Other Computations)'!B8*(CR28/Inputs!B27)^(1-Inputs!B20)*(CR19/'(Other Computations)'!B194)^Inputs!B20","v":{"v":1096644.7122770215,"d":"$1,096,645"}},{"$f":"'(Other Computations)'!B8*(CS28/Inputs!B27)^(1-Inputs!B20)*(CS19/'(Other Computations)'!B194)^Inputs!B20","v":{"v":1095613.6185133706,"d":"$1,095,614"}},{"$f":"'(Other Computations)'!B8*(CT28/Inputs!B27)^(1-Inputs!B20)*(CT19/'(Other Computations)'!B194)^Inputs!B20","v":{"v":1094585.733156026,"d":"$1,094,586"}},{"$f":"'(Other Computations)'!B8*(CU28/Inputs!B27)^(1-Inputs!B20)*(CU19/'(Other Computations)'!B194)^Inputs!B20","v":{"v":1093545.0117483577,"d":"$1,093,545"}},{"$f":"'(Other Computations)'!B8*(CV28/Inputs!B27)^(1-Inputs!B20)*(CV19/'(Other Computations)'!B194)^Inputs!B20","v":{"v":1092503.6399936273,"d":"$1,092,504"}},{"$f":"'(Other Computations)'!B8*(CW28/Inputs!B27)^(1-Inputs!B20)*(CW19/'(Other Computations)'!B194)^Inputs!B20","v":{"v":1091469.4128459005,"d":"$1,091,469"}},{"$f":"'(Other Computations)'!B8*(CX28/Inputs!B27)^(1-Inputs!B20)*(CX19/'(Other Computations)'!B194)^Inputs!B20","v":{"v":1090435.4451848865,"d":"$1,090,435"}},{"$f":"'(Other Computations)'!B8*(CY28/Inputs!B27)^(1-Inputs!B20)*(CY19/'(Other Computations)'!B194)^Inputs!B20","v":{"v":1089390.4583575928,"d":"$1,089,390"}},{"$f":"'(Other Computations)'!B8*(CZ28/Inputs!B27)^(1-Inputs!B20)*(CZ19/'(Other Computations)'!B194)^Inputs!B20","v":{"v":1088353.8383737984,"d":"$1,088,354"}},{"$f":"SUM(CO45:CZ45)","v":{"v":13128696.247012613,"d":"$13,128,696"}},{"$f":"'(Other Computations)'!B8*(DB28/Inputs!B27)^(1-Inputs!B20)*(DB19/'(Other Computations)'!B194)^Inputs!B20","v":{"v":1087329.8459707152,"d":"$1,087,330"}},{"$f":"'(Other Computations)'!B8*(DC28/Inputs!B27)^(1-Inputs!B20)*(DC19/'(Other Computations)'!B194)^Inputs!B20","v":{"v":1086301.4093972824,"d":"$1,086,301"}},{"$f":"'(Other Computations)'!B8*(DD28/Inputs!B27)^(1-Inputs!B20)*(DD19/'(Other Computations)'!B194)^Inputs!B20","v":{"v":1085285.5257208555,"d":"$1,085,286"}},{"$f":"'(Other Computations)'!B8*(DE28/Inputs!B27)^(1-Inputs!B20)*(DE19/'(Other Computations)'!B194)^Inputs!B20","v":{"v":1084266.200916149,"d":"$1,084,266"}},{"$f":"'(Other Computations)'!B8*(DF28/Inputs!B27)^(1-Inputs!B20)*(DF19/'(Other Computations)'!B194)^Inputs!B20","v":{"v":1083240.836024544,"d":"$1,083,241"}},{"$f":"'(Other Computations)'!B8*(DG28/Inputs!B27)^(1-Inputs!B20)*(DG19/'(Other Computations)'!B194)^Inputs!B20","v":{"v":1082214.5030353582,"d":"$1,082,215"}},{"$f":"'(Other Computations)'!B8*(DH28/Inputs!B27)^(1-Inputs!B20)*(DH19/'(Other Computations)'!B194)^Inputs!B20","v":{"v":1081189.9915403726,"d":"$1,081,190"}},{"$f":"'(Other Computations)'!B8*(DI28/Inputs!B27)^(1-Inputs!B20)*(DI19/'(Other Computations)'!B194)^Inputs!B20","v":{"v":1080162.985725638,"d":"$1,080,163"}},{"$f":"'(Other Computations)'!B8*(DJ28/Inputs!B27)^(1-Inputs!B20)*(DJ19/'(Other Computations)'!B194)^Inputs!B20","v":{"v":1079136.5851189618,"d":"$1,079,137"}},{"$f":"'(Other Computations)'!B8*(DK28/Inputs!B27)^(1-Inputs!B20)*(DK19/'(Other Computations)'!B194)^Inputs!B20","v":{"v":1078104.5141967381,"d":"$1,078,105"}},{"$f":"'(Other Computations)'!B8*(DL28/Inputs!B27)^(1-Inputs!B20)*(DL19/'(Other Computations)'!B194)^Inputs!B20","v":{"v":1077085.267084124,"d":"$1,077,085"}},{"$f":"'(Other Computations)'!B8*(DM28/Inputs!B27)^(1-Inputs!B20)*(DM19/'(Other Computations)'!B194)^Inputs!B20","v":{"v":1076064.9179768192,"d":"$1,076,065"}},{"$f":"SUM(DB45:DM45)","v":{"v":12980382.582707558,"d":"$12,980,383"}},{"$f":"'(Other Computations)'!B8*(DO28/Inputs!B27)^(1-Inputs!B20)*(DO19/'(Other Computations)'!B194)^Inputs!B20","v":{"v":1075056.0551945553,"d":"$1,075,056"}},{"$f":"'(Other Computations)'!B8*(DP28/Inputs!B27)^(1-Inputs!B20)*(DP19/'(Other Computations)'!B194)^Inputs!B20","v":{"v":1074047.229000066,"d":"$1,074,047"}},{"$f":"'(Other Computations)'!B8*(DQ28/Inputs!B27)^(1-Inputs!B20)*(DQ19/'(Other Computations)'!B194)^Inputs!B20","v":{"v":1073031.0071929381,"d":"$1,073,031"}},{"$f":"'(Other Computations)'!B8*(DR28/Inputs!B27)^(1-Inputs!B20)*(DR19/'(Other Computations)'!B194)^Inputs!B20","v":{"v":1072010.0239865396,"d":"$1,072,010"}},{"$f":"'(Other Computations)'!B8*(DS28/Inputs!B27)^(1-Inputs!B20)*(DS19/'(Other Computations)'!B194)^Inputs!B20","v":{"v":1071001.8315404234,"d":"$1,071,002"}},{"$f":"'(Other Computations)'!B8*(DT28/Inputs!B27)^(1-Inputs!B20)*(DT19/'(Other Computations)'!B194)^Inputs!B20","v":{"v":1070004.2729403174,"d":"$1,070,004"}},{"$f":"'(Other Computations)'!B8*(DU28/Inputs!B27)^(1-Inputs!B20)*(DU19/'(Other Computations)'!B194)^Inputs!B20","v":{"v":1069006.0537112684,"d":"$1,069,006"}},{"$f":"'(Other Computations)'!B8*(DV28/Inputs!B27)^(1-Inputs!B20)*(DV19/'(Other Computations)'!B194)^Inputs!B20","v":{"v":1068018.4536309212,"d":"$1,068,018"}},{"$f":"'(Other Computations)'!B8*(DW28/Inputs!B27)^(1-Inputs!B20)*(DW19/'(Other Computations)'!B194)^Inputs!B20","v":{"v":1067040.2819359729,"d":"$1,067,040"}},{"$f":"'(Other Computations)'!B8*(DX28/Inputs!B27)^(1-Inputs!B20)*(DX19/'(Other Computations)'!B194)^Inputs!B20","v":{"v":1066065.0838986645,"d":"$1,066,065"}},{"$f":"'(Other Computations)'!B8*(DY28/Inputs!B27)^(1-Inputs!B20)*(DY19/'(Other Computations)'!B194)^Inputs!B20","v":{"v":1065095.648002265,"d":"$1,065,096"}},{"$f":"'(Other Computations)'!B8*(DZ28/Inputs!B27)^(1-Inputs!B20)*(DZ19/'(Other Computations)'!B194)^Inputs!B20","v":{"v":1064119.541284294,"d":"$1,064,120"}},{"$f":"SUM(DO45:DZ45)","v":{"v":12834495.482318226,"d":"$12,834,495"}},{"$f":"'(Other Computations)'!B8*(EB28/Inputs!B27)^(1-Inputs!B20)*(EB19/'(Other Computations)'!B194)^Inputs!B20","v":{"v":1063148.1743102258,"d":"$1,063,148"}},{"$f":"'(Other Computations)'!B8*(EC28/Inputs!B27)^(1-Inputs!B20)*(EC19/'(Other Computations)'!B194)^Inputs!B20","v":{"v":1062179.113297415,"d":"$1,062,179"}},{"$f":"'(Other Computations)'!B8*(ED28/Inputs!B27)^(1-Inputs!B20)*(ED19/'(Other Computations)'!B194)^Inputs!B20","v":{"v":1061202.820603681,"d":"$1,061,203"}},{"$f":"'(Other Computations)'!B8*(EE28/Inputs!B27)^(1-Inputs!B20)*(EE19/'(Other Computations)'!B194)^Inputs!B20","v":{"v":1060220.3021375644,"d":"$1,060,220"}},{"$f":"'(Other Computations)'!B8*(EF28/Inputs!B27)^(1-Inputs!B20)*(EF19/'(Other Computations)'!B194)^Inputs!B20","v":{"v":1059244.341215766,"d":"$1,059,244"}},{"$f":"'(Other Computations)'!B8*(EG28/Inputs!B27)^(1-Inputs!B20)*(EG19/'(Other Computations)'!B194)^Inputs!B20","v":{"v":1058267.6314536443,"d":"$1,058,268"}},{"$f":"'(Other Computations)'!B8*(EH28/Inputs!B27)^(1-Inputs!B20)*(EH19/'(Other Computations)'!B194)^Inputs!B20","v":{"v":1057289.1655062358,"d":"$1,057,289"}},{"$f":"'(Other Computations)'!B8*(EI28/Inputs!B27)^(1-Inputs!B20)*(EI19/'(Other Computations)'!B194)^Inputs!B20","v":{"v":1056314.4470756026,"d":"$1,056,314"}},{"$f":"'(Other Computations)'!B8*(EJ28/Inputs!B27)^(1-Inputs!B20)*(EJ19/'(Other Computations)'!B194)^Inputs!B20","v":{"v":1055350.8094581098,"d":"$1,055,351"}},{"$f":"'(Other Computations)'!B8*(EK28/Inputs!B27)^(1-Inputs!B20)*(EK19/'(Other Computations)'!B194)^Inputs!B20","v":{"v":1054384.810189788,"d":"$1,054,385"}},{"$f":"'(Other Computations)'!B8*(EL28/Inputs!B27)^(1-Inputs!B20)*(EL19/'(Other Computations)'!B194)^Inputs!B20","v":{"v":1053422.7575608469,"d":"$1,053,423"}},{"$f":"'(Other Computations)'!B8*(EM28/Inputs!B27)^(1-Inputs!B20)*(EM19/'(Other Computations)'!B194)^Inputs!B20","v":{"v":1052454.3761933714,"d":"$1,052,454"}},{"$f":"SUM(EB45:EM45)","v":{"v":12693478.74900225,"d":"$12,693,479"}}]
[{"$f":"Labels!B78","v":"Output Shock"},{"$f":"NORMINV(RAND()*(1-2*Inputs!B58)+Inputs!B58,0,'(Other Computations)'!B208)","v":{"v":11758.316593461632,"d":"$11,758"}},{"$f":"NORMINV(RAND()*(1-2*Inputs!B58)+Inputs!B58,0,'(Other Computations)'!B208)","v":{"v":-59683.13891333726,"d":"($59,683)"}},{"$f":"NORMINV(RAND()*(1-2*Inputs!B58)+Inputs!B58,0,'(Other Computations)'!B208)","v":{"v":-4352.629456698201,"d":"($4,353)"}},{"$f":"NORMINV(RAND()*(1-2*Inputs!B58)+Inputs!B58,0,'(Other Computations)'!B208)","v":{"v":-22165.14944067272,"d":"($22,165)"}},{"$f":"NORMINV(RAND()*(1-2*Inputs!B58)+Inputs!B58,0,'(Other Computations)'!B208)","v":{"v":4001.4969493792887,"d":"$4,001"}},{"$f":"NORMINV(RAND()*(1-2*Inputs!B58)+Inputs!B58,0,'(Other Computations)'!B208)","v":{"v":-41382.751594916896,"d":"($41,383)"}},{"$f":"NORMINV(RAND()*(1-2*Inputs!B58)+Inputs!B58,0,'(Other Computations)'!B208)","v":{"v":30891.732826672134,"d":"$30,892"}},{"$f":"NORMINV(RAND()*(1-2*Inputs!B58)+Inputs!B58,0,'(Other Computations)'!B208)","v":{"v":-12550.131232496171,"d":"($12,550)"}},{"$f":"NORMINV(RAND()*(1-2*Inputs!B58)+Inputs!B58,0,'(Other Computations)'!B208)","v":{"v":99.28930895963411,"d":"$99"}},{"$f":"NORMINV(RAND()*(1-2*Inputs!B58)+Inputs!B58,0,'(Other Computations)'!B208)","v":{"v":41788.32537218323,"d":"$41,788"}},{"$f":"NORMINV(RAND()*(1-2*Inputs!B58)+Inputs!B58,0,'(Other Computations)'!B208)","v":{"v":17399.98767225617,"d":"$17,400"}},{"$f":"NORMINV(RAND()*(1-2*Inputs!B58)+Inputs!B58,0,'(Other Computations)'!B208)","v":{"v":35158.739478892385,"d":"$35,159"}},{"$f":"SUM(B46:M46)","v":{"v":964.0875636832061,"d":"$964"}},{"$f":"NORMINV(RAND()*(1-2*Inputs!B58)+Inputs!B58,0,'(Other Computations)'!B208)","v":{"v":22703.38346955329,"d":"$22,703"}},{"$f":"NORMINV(RAND()*(1-2*Inputs!B58)+Inputs!B58,0,'(Other Computations)'!B208)","v":{"v":2050.754564524483,"d":"$2,051"}},{"$f":"NORMINV(RAND()*(1-2*Inputs!B58)+Inputs!B58,0,'(Other Computations)'!B208)","v":{"v":11843.903193094318,"d":"$11,844"}},{"$f":"NORMINV(RAND()*(1-2*Inputs!B58)+Inputs!B58,0,'(Other Computations)'!B208)","v":{"v":-15088.092925849496,"d":"($15,088)"}},{"$f":"NORMINV(RAND()*(1-2*Inputs!B58)+Inputs!B58,0,'(Other Computations)'!B208)","v":{"v":-16754.285603963814,"d":"($16,754)"}},{"$f":"NORMINV(RAND()*(1-2*Inputs!B58)+Inputs!B58,0,'(Other Computations)'!B208)","v":{"v":56176.070984542006,"d":"$56,176"}},{"$f":"NORMINV(RAND()*(1-2*Inputs!B58)+Inputs!B58,0,'(Other Computations)'!B208)","v":{"v":-5870.613891561926,"d":"($5,871)"}},{"$f":"NORMINV(RAND()*(1-2*Inputs!B58)+Inputs!B58,0,'(Other Computations)'!B208)","v":{"v":31705.424151273197,"d":"$31,705"}},{"$f":"NORMINV(RAND()*(1-2*Inputs!B58)+Inputs!B58,0,'(Other Computations)'!B208)","v":{"v":-42008.41772422307,"d":"($42,008)"}},{"$f":"NORMINV(RAND()*(1-2*Inputs!B58)+Inputs!B58,0,'(Other Computations)'!B208)","v":{"v":6982.826056893598,"d":"$6,983"}},{"$f":"NORMINV(RAND()*(1-2*Inputs!B58)+Inputs!B58,0,'(Other Computations)'!B208)","v":{"v":-43732.35597461533,"d":"($43,732)"}},{"$f":"NORMINV(RAND()*(1-2*Inputs!B58)+Inputs!B58,0,'(Other Computations)'!B208)","v":{"v":49539.31187615868,"d":"$49,539"}},{"$f":"SUM(O46:Z46)","v":{"v":57547.90817582594,"d":"$57,548"}},{"$f":"NORMINV(RAND()*(1-2*Inputs!B58)+Inputs!B58,0,'(Other Computations)'!B208)","v":{"v":30349.56000080791,"d":"$30,350"}},{"$f":"NORMINV(RAND()*(1-2*Inputs!B58)+Inputs!B58,0,'(Other Computations)'!B208)","v":{"v":-41730.16950757349,"d":"($41,730)"}},{"$f":"NORMINV(RAND()*(1-2*Inputs!B58)+Inputs!B58,0,'(Other Computations)'!B208)","v":{"v":-4972.564033788966,"d":"($4,973)"}},{"$f":"NORMINV(RAND()*(1-2*Inputs!B58)+Inputs!B58,0,'(Other Computations)'!B208)","v":{"v":-10793.659815431485,"d":"($10,794)"}},{"$f":"NORMINV(RAND()*(1-2*Inputs!B58)+Inputs!B58,0,'(Other Computations)'!B208)","v":{"v":-52338.66901488088,"d":"($52,339)"}},{"$f":"NORMINV(RAND()*(1-2*Inputs!B58)+Inputs!B58,0,'(Other Computations)'!B208)","v":{"v":26416.66328950417,"d":"$26,417"}},{"$f":"NORMINV(RAND()*(1-2*Inputs!B58)+Inputs!B58,0,'(Other Computations)'!B208)","v":{"v":21583.482477984806,"d":"$21,583"}},{"$f":"NORMINV(RAND()*(1-2*Inputs!B58)+Inputs!B58,0,'(Other Computations)'!B208)","v":{"v":-24828.982601987274,"d":"($24,829)"}},{"$f":"NORMINV(RAND()*(1-2*Inputs!B58)+Inputs!B58,0,'(Other Computations)'!B208)","v":{"v":49934.710363580045,"d":"$49,935"}},{"$f":"NORMINV(RAND()*(1-2*Inputs!B58)+Inputs!B58,0,'(Other Computations)'!B208)","v":{"v":26736.833704616478,"d":"$26,737"}},{"$f":"NORMINV(RAND()*(1-2*Inputs!B58)+Inputs!B58,0,'(Other Computations)'!B208)","v":{"v":-3726.18158272627,"d":"($3,726)"}},{"$f":"NORMINV(RAND()*(1-2*Inputs!B58)+Inputs!B58,0,'(Other Computations)'!B208)","v":{"v":50101.16940634804,"d":"$50,101"}},{"$f":"SUM(AB46:AM46)","v":{"v":66732.19268645307,"d":"$66,732"}},{"$f":"NORMINV(RAND()*(1-2*Inputs!B58)+Inputs!B58,0,'(Other Computations)'!B208)","v":{"v":1942.9984486911824,"d":"$1,943"}},{"$f":"NORMINV(RAND()*(1-2*Inputs!B58)+Inputs!B58,0,'(Other Computations)'!B208)","v":{"v":-3683.518400507295,"d":"($3,684)"}},{"$f":"NORMINV(RAND()*(1-2*Inputs!B58)+Inputs!B58,0,'(Other Computations)'!B208)","v":{"v":27036.588508188892,"d":"$27,037"}},{"$f":"NORMINV(RAND()*(1-2*Inputs!B58)+Inputs!B58,0,'(Other Computations)'!B208)","v":{"v":-9503.629984800758,"d":"($9,504)"}},{"$f":"NORMINV(RAND()*(1-2*Inputs!B58)+Inputs!B58,0,'(Other Computations)'!B208)","v":{"v":32560.47945925333,"d":"$32,560"}},{"$f":"NORMINV(RAND()*(1-2*Inputs!B58)+Inputs!B58,0,'(Other Computations)'!B208)","v":{"v":2093.0780256345506,"d":"$2,093"}},{"$f":"NORMINV(RAND()*(1-2*Inputs!B58)+Inputs!B58,0,'(Other Computations)'!B208)","v":{"v":-17583.36454167255,"d":"($17,583)"}},{"$f":"NORMINV(RAND()*(1-2*Inputs!B58)+Inputs!B58,0,'(Other Computations)'!B208)","v":{"v":-8370.59937424925,"d":"($8,371)"}},{"$f":"NORMINV(RAND()*(1-2*Inputs!B58)+Inputs!B58,0,'(Other Computations)'!B208)","v":{"v":4809.330795596237,"d":"$4,809"}},{"$f":"NORMINV(RAND()*(1-2*Inputs!B58)+Inputs!B58,0,'(Other Computations)'!B208)","v":{"v":51737.88576174847,"d":"$51,738"}},{"$f":"NORMINV(RAND()*(1-2*Inputs!B58)+Inputs!B58,0,'(Other Computations)'!B208)","v":{"v":-5402.975741255465,"d":"($5,403)"}},{"$f":"NORMINV(RAND()*(1-2*Inputs!B58)+Inputs!B58,0,'(Other Computations)'!B208)","v":{"v":-42984.09328882783,"d":"($42,984)"}},{"$f":"SUM(AO46:AZ46)","v":{"v":32652.179667799515,"d":"$32,652"}},{"$f":"NORMINV(RAND()*(1-2*Inputs!B58)+Inputs!B58,0,'(Other Computations)'!B208)","v":{"v":-33778.06765055262,"d":"($33,778)"}},{"$f":"NORMINV(RAND()*(1-2*Inputs!B58)+Inputs!B58,0,'(Other Computations)'!B208)","v":{"v":32427.410984597835,"d":"$32,427"}},{"$f":"NORMINV(RAND()*(1-2*Inputs!B58)+Inputs!B58,0,'(Other Computations)'!B208)","v":{"v":34887.20997071134,"d":"$34,887"}},{"$f":"NORMINV(RAND()*(1-2*Inputs!B58)+Inputs!B58,0,'(Other Computations)'!B208)","v":{"v":-6753.825200745093,"d":"($6,754)"}},{"$f":"NORMINV(RAND()*(1-2*Inputs!B58)+Inputs!B58,0,'(Other Computations)'!B208)","v":{"v":25208.492275220848,"d":"$25,208"}},{"$f":"NORMINV(RAND()*(1-2*Inputs!B58)+Inputs!B58,0,'(Other Computations)'!B208)","v":{"v":-2020.259053831673,"d":"($2,020)"}},{"$f":"NORMINV(RAND()*(1-2*Inputs!B58)+Inputs!B58,0,'(Other Computations)'!B208)","v":{"v":26476.434058057792,"d":"$26,476"}},{"$f":"NORMINV(RAND()*(1-2*Inputs!B58)+Inputs!B58,0,'(Other Computations)'!B208)","v":{"v":17033.887951331217,"d":"$17,034"}},{"$f":"NORMINV(RAND()*(1-2*Inputs!B58)+Inputs!B58,0,'(Other Computations)'!B208)","v":{"v":-4597.838277808737,"d":"($4,598)"}},{"$f":"NORMINV(RAND()*(1-2*Inputs!B58)+Inputs!B58,0,'(Other Computations)'!B208)","v":{"v":-13098.82551186987,"d":"($13,099)"}},{"$f":"NORMINV(RAND()*(1-2*Inputs!B58)+Inputs!B58,0,'(Other Computations)'!B208)","v":{"v":-5076.316796373514,"d":"($5,076)"}},{"$f":"NORMINV(RAND()*(1-2*Inputs!B58)+Inputs!B58,0,'(Other Computations)'!B208)","v":{"v":4780.511173899094,"d":"$4,781"}},{"$f":"SUM(BB46:BM46)","v":{"v":75488.81392263662,"d":"$75,489"}},{"$f":"NORMINV(RAND()*(1-2*Inputs!B58)+Inputs!B58,0,'(Other Computations)'!B208)","v":{"v":-54395.610269582525,"d":"($54,396)"}},{"$f":"NORMINV(RAND()*(1-2*Inputs!B58)+Inputs!B58,0,'(Other Computations)'!B208)","v":{"v":50481.767926379674,"d":"$50,482"}},{"$f":"NORMINV(RAND()*(1-2*Inputs!B58)+Inputs!B58,0,'(Other Computations)'!B208)","v":{"v":38218.24343724087,"d":"$38,218"}},{"$f":"NORMINV(RAND()*(1-2*Inputs!B58)+Inputs!B58,0,'(Other Computations)'!B208)","v":{"v":60206.604191216175,"d":"$60,207"}},{"$f":"NORMINV(RAND()*(1-2*Inputs!B58)+Inputs!B58,0,'(Other Computations)'!B208)","v":{"v":-7100.3639277003,"d":"($7,100)"}},{"$f":"NORMINV(RAND()*(1-2*Inputs!B58)+Inputs!B58,0,'(Other Computations)'!B208)","v":{"v":54141.19260570231,"d":"$54,141"}},{"$f":"NORMINV(RAND()*(1-2*Inputs!B58)+Inputs!B58,0,'(Other Computations)'!B208)","v":{"v":-2207.6538663552165,"d":"($2,208)"}},{"$f":"NORMINV(RAND()*(1-2*Inputs!B58)+Inputs!B58,0,'(Other Computations)'!B208)","v":{"v":-54121.34713447715,"d":"($54,121)"}},{"$f":"NORMINV(RAND()*(1-2*Inputs!B58)+Inputs!B58,0,'(Other Computations)'!B208)","v":{"v":11736.945222521472,"d":"$11,737"}},{"$f":"NORMINV(RAND()*(1-2*Inputs!B58)+Inputs!B58,0,'(Other Computations)'!B208)","v":{"v":-34408.54327272898,"d":"($34,409)"}},{"$f":"NORMINV(RAND()*(1-2*Inputs!B58)+Inputs!B58,0,'(Other Computations)'!B208)","v":{"v":-15349.139438950786,"d":"($15,349)"}},{"$f":"NORMINV(RAND()*(1-2*Inputs!B58)+Inputs!B58,0,'(Other Computations)'!B208)","v":{"v":15175.057182625304,"d":"$15,175"}},{"$f":"SUM(BO46:BZ46)","v":{"v":62377.15265589085,"d":"$62,377"}},{"$f":"NORMINV(RAND()*(1-2*Inputs!B58)+Inputs!B58,0,'(Other Computations)'!B208)","v":{"v":-49117.089688039356,"d":"($49,117)"}},{"$f":"NORMINV(RAND()*(1-2*Inputs!B58)+Inputs!B58,0,'(Other Computations)'!B208)","v":{"v":34546.50669104812,"d":"$34,547"}},{"$f":"NORMINV(RAND()*(1-2*Inputs!B58)+Inputs!B58,0,'(Other Computations)'!B208)","v":{"v":-15367.043945833258,"d":"($15,367)"}},{"$f":"NORMINV(RAND()*(1-2*Inputs!B58)+Inputs!B58,0,'(Other Computations)'!B208)","v":{"v":-29041.433156828047,"d":"($29,041)"}},{"$f":"NORMINV(RAND()*(1-2*Inputs!B58)+Inputs!B58,0,'(Other Computations)'!B208)","v":{"v":19862.684793012784,"d":"$19,863"}},{"$f":"NORMINV(RAND()*(1-2*Inputs!B58)+Inputs!B58,0,'(Other Computations)'!B208)","v":{"v":629.0674379333241,"d":"$629"}},{"$f":"NORMINV(RAND()*(1-2*Inputs!B58)+Inputs!B58,0,'(Other Computations)'!B208)","v":{"v":7817.447664359945,"d":"$7,817"}},{"$f":"NORMINV(RAND()*(1-2*Inputs!B58)+Inputs!B58,0,'(Other Computations)'!B208)","v":{"v":-32792.07969609547,"d":"($32,792)"}},{"$f":"NORMINV(RAND()*(1-2*Inputs!B58)+Inputs!B58,0,'(Other Computations)'!B208)","v":{"v":58877.944783514475,"d":"$58,878"}},{"$f":"NORMINV(RAND()*(1-2*Inputs!B58)+Inputs!B58,0,'(Other Computations)'!B208)","v":{"v":-20525.3184968725,"d":"($20,525)"}},{"$f":"NORMINV(RAND()*(1-2*Inputs!B58)+Inputs!B58,0,'(Other Computations)'!B208)","v":{"v":21405.24658505235,"d":"$21,405"}},{"$f":"NORMINV(RAND()*(1-2*Inputs!B58)+Inputs!B58,0,'(Other Computations)'!B208)","v":{"v":-42398.83668957733,"d":"($42,399)"}},{"$f":"SUM(CB46:CM46)","v":{"v":-46102.903718324975,"d":"($46,103)"}},{"$f":"NORMINV(RAND()*(1-2*Inputs!B58)+Inputs!B58,0,'(Other Computations)'!B208)","v":{"v":17306.50917396096,"d":"$17,307"}},{"$f":"NORMINV(RAND()*(1-2*Inputs!B58)+Inputs!B58,0,'(Other Computations)'!B208)","v":{"v":-15148.09744179057,"d":"($15,148)"}},{"$f":"NORMINV(RAND()*(1-2*Inputs!B58)+Inputs!B58,0,'(Other Computations)'!B208)","v":{"v":42430.806882761666,"d":"$42,431"}},{"$f":"NORMINV(RAND()*(1-2*Inputs!B58)+Inputs!B58,0,'(Other Computations)'!B208)","v":{"v":-33437.37231767393,"d":"($33,437)"}},{"$f":"NORMINV(RAND()*(1-2*Inputs!B58)+Inputs!B58,0,'(Other Computations)'!B208)","v":{"v":15912.014307618572,"d":"$15,912"}},{"$f":"NORMINV(RAND()*(1-2*Inputs!B58)+Inputs!B58,0,'(Other Computations)'!B208)","v":{"v":32703.928900611943,"d":"$32,704"}},{"$f":"NORMINV(RAND()*(1-2*Inputs!B58)+Inputs!B58,0,'(Other Computations)'!B208)","v":{"v":36682.857006804974,"d":"$36,683"}},{"$f":"NORMINV(RAND()*(1-2*Inputs!B58)+Inputs!B58,0,'(Other Computations)'!B208)","v":{"v":15769.620626744896,"d":"$15,770"}},{"$f":"NORMINV(RAND()*(1-2*Inputs!B58)+Inputs!B58,0,'(Other Computations)'!B208)","v":{"v":-51142.60340580129,"d":"($51,143)"}},{"$f":"NORMINV(RAND()*(1-2*Inputs!B58)+Inputs!B58,0,'(Other Computations)'!B208)","v":{"v":6934.934340261586,"d":"$6,935"}},{"$f":"NORMINV(RAND()*(1-2*Inputs!B58)+Inputs!B58,0,'(Other Computations)'!B208)","v":{"v":-19148.79034708198,"d":"($19,149)"}},{"$f":"NORMINV(RAND()*(1-2*Inputs!B58)+Inputs!B58,0,'(Other Computations)'!B208)","v":{"v":39316.68780598005,"d":"$39,317"}},{"$f":"SUM(CO46:CZ46)","v":{"v":88180.49553239689,"d":"$88,180"}},{"$f":"NORMINV(RAND()*(1-2*Inputs!B58)+Inputs!B58,0,'(Other Computations)'!B208)","v":{"v":31286.258161448473,"d":"$31,286"}},{"$f":"NORMINV(RAND()*(1-2*Inputs!B58)+Inputs!B58,0,'(Other Computations)'!B208)","v":{"v":-2572.0090726341914,"d":"($2,572)"}},{"$f":"NORMINV(RAND()*(1-2*Inputs!B58)+Inputs!B58,0,'(Other Computations)'!B208)","v":{"v":-17303.690384799876,"d":"($17,304)"}},{"$f":"NORMINV(RAND()*(1-2*Inputs!B58)+Inputs!B58,0,'(Other Computations)'!B208)","v":{"v":59562.43041330034,"d":"$59,562"}},{"$f":"NORMINV(RAND()*(1-2*Inputs!B58)+Inputs!B58,0,'(Other Computations)'!B208)","v":{"v":2269.329147919628,"d":"$2,269"}},{"$f":"NORMINV(RAND()*(1-2*Inputs!B58)+Inputs!B58,0,'(Other Computations)'!B208)","v":{"v":121.49074262293075,"d":"$121"}},{"$f":"NORMINV(RAND()*(1-2*Inputs!B58)+Inputs!B58,0,'(Other Computations)'!B208)","v":{"v":36627.71708306296,"d":"$36,628"}},{"$f":"NORMINV(RAND()*(1-2*Inputs!B58)+Inputs!B58,0,'(Other Computations)'!B208)","v":{"v":-24519.254374956516,"d":"($24,519)"}},{"$f":"NORMINV(RAND()*(1-2*Inputs!B58)+Inputs!B58,0,'(Other Computations)'!B208)","v":{"v":43834.50526278408,"d":"$43,835"}},{"$f":"NORMINV(RAND()*(1-2*Inputs!B58)+Inputs!B58,0,'(Other Computations)'!B208)","v":{"v":32672.577668372644,"d":"$32,673"}},{"$f":"NORMINV(RAND()*(1-2*Inputs!B58)+Inputs!B58,0,'(Other Computations)'!B208)","v":{"v":-15016.705682566517,"d":"($15,017)"}},{"$f":"NORMINV(RAND()*(1-2*Inputs!B58)+Inputs!B58,0,'(Other Computations)'!B208)","v":{"v":28550.712878679187,"d":"$28,551"}},{"$f":"SUM(DB46:DM46)","v":{"v":175513.36184323314,"d":"$175,513"}},{"$f":"NORMINV(RAND()*(1-2*Inputs!B58)+Inputs!B58,0,'(Other Computations)'!B208)","v":{"v":33130.97982114229,"d":"$33,131"}},{"$f":"NORMINV(RAND()*(1-2*Inputs!B58)+Inputs!B58,0,'(Other Computations)'!B208)","v":{"v":-20301.053576067785,"d":"($20,301)"}},{"$f":"NORMINV(RAND()*(1-2*Inputs!B58)+Inputs!B58,0,'(Other Computations)'!B208)","v":{"v":19681.285093904466,"d":"$19,681"}},{"$f":"NORMINV(RAND()*(1-2*Inputs!B58)+Inputs!B58,0,'(Other Computations)'!B208)","v":{"v":-23102.421092006374,"d":"($23,102)"}},{"$f":"NORMINV(RAND()*(1-2*Inputs!B58)+Inputs!B58,0,'(Other Computations)'!B208)","v":{"v":20302.38690527618,"d":"$20,302"}},{"$f":"NORMINV(RAND()*(1-2*Inputs!B58)+Inputs!B58,0,'(Other Computations)'!B208)","v":{"v":39411.10744266698,"d":"$39,411"}},{"$f":"NORMINV(RAND()*(1-2*Inputs!B58)+Inputs!B58,0,'(Other Computations)'!B208)","v":{"v":-5189.88190737059,"d":"($5,190)"}},{"$f":"NORMINV(RAND()*(1-2*Inputs!B58)+Inputs!B58,0,'(Other Computations)'!B208)","v":{"v":-23061.565374546713,"d":"($23,062)"}},{"$f":"NORMINV(RAND()*(1-2*Inputs!B58)+Inputs!B58,0,'(Other Computations)'!B208)","v":{"v":2823.9105922044837,"d":"$2,824"}},{"$f":"NORMINV(RAND()*(1-2*Inputs!B58)+Inputs!B58,0,'(Other Computations)'!B208)","v":{"v":4936.531133226399,"d":"$4,937"}},{"$f":"NORMINV(RAND()*(1-2*Inputs!B58)+Inputs!B58,0,'(Other Computations)'!B208)","v":{"v":36261.44859183239,"d":"$36,261"}},{"$f":"NORMINV(RAND()*(1-2*Inputs!B58)+Inputs!B58,0,'(Other Computations)'!B208)","v":{"v":-3799.2985526058483,"d":"($3,799)"}},{"$f":"SUM(DO46:DZ46)","v":{"v":81093.42907765588,"d":"$81,093"}},{"$f":"NORMINV(RAND()*(1-2*Inputs!B58)+Inputs!B58,0,'(Other Computations)'!B208)","v":{"v":29792.24203229446,"d":"$29,792"}},{"$f":"NORMINV(RAND()*(1-2*Inputs!B58)+Inputs!B58,0,'(Other Computations)'!B208)","v":{"v":-34108.59902600158,"d":"($34,109)"}},{"$f":"NORMINV(RAND()*(1-2*Inputs!B58)+Inputs!B58,0,'(Other Computations)'!B208)","v":{"v":-5941.831873487964,"d":"($5,942)"}},{"$f":"NORMINV(RAND()*(1-2*Inputs!B58)+Inputs!B58,0,'(Other Computations)'!B208)","v":{"v":-30436.136372408946,"d":"($30,436)"}},{"$f":"NORMINV(RAND()*(1-2*Inputs!B58)+Inputs!B58,0,'(Other Computations)'!B208)","v":{"v":47908.938997866775,"d":"$47,909"}},{"$f":"NORMINV(RAND()*(1-2*Inputs!B58)+Inputs!B58,0,'(Other Computations)'!B208)","v":{"v":-20682.676865331083,"d":"($20,683)"}},{"$f":"NORMINV(RAND()*(1-2*Inputs!B58)+Inputs!B58,0,'(Other Computations)'!B208)","v":{"v":1963.9534906723306,"d":"$1,964"}},{"$f":"NORMINV(RAND()*(1-2*Inputs!B58)+Inputs!B58,0,'(Other Computations)'!B208)","v":{"v":19824.507664377914,"d":"$19,825"}},{"$f":"NORMINV(RAND()*(1-2*Inputs!B58)+Inputs!B58,0,'(Other Computations)'!B208)","v":{"v":17061.86712139309,"d":"$17,062"}},{"$f":"NORMINV(RAND()*(1-2*Inputs!B58)+Inputs!B58,0,'(Other Computations)'!B208)","v":{"v":1839.8325883738005,"d":"$1,840"}},{"$f":"NORMINV(RAND()*(1-2*Inputs!B58)+Inputs!B58,0,'(Other Computations)'!B208)","v":{"v":-56398.55399474203,"d":"($56,399)"}},{"$f":"NORMINV(RAND()*(1-2*Inputs!B58)+Inputs!B58,0,'(Other Computations)'!B208)","v":{"v":21759.096697057677,"d":"$21,759"}},{"$f":"SUM(EB46:EM46)","v":{"v":-7417.359539935562,"d":"($7,417)"}}]
[]
[]
[{"$f":"\"Government\"","v":"Government"}]
[{"$f":"\" \"","v":" "}]
[null,{"$f":"ZZZ__FnCalls!F7","v":"Jan 2010"},{"$f":"ZZZ__FnCalls!F8","v":"Feb 2010"},{"$f":"ZZZ__FnCalls!F9","v":"Mar 2010"},{"$f":"ZZZ__FnCalls!F10","v":"Apr 2010"},{"$f":"ZZZ__FnCalls!F11","v":"May 2010"},{"$f":"ZZZ__FnCalls!F12","v":"Jun 2010"},{"$f":"ZZZ__FnCalls!F13","v":"Jul 2010"},{"$f":"ZZZ__FnCalls!F14","v":"Aug 2010"},{"$f":"ZZZ__FnCalls!F15","v":"Sep 2010"},{"$f":"ZZZ__FnCalls!F16","v":"Oct 2010"},{"$f":"ZZZ__FnCalls!F17","v":"Nov 2010"},{"$f":"ZZZ__FnCalls!F18","v":"Dec 2010"},{"$f":"ZZZ__FnCalls!H7","v":"2010"},{"$f":"ZZZ__FnCalls!F19","v":"Jan 2011"},{"$f":"ZZZ__FnCalls!F20","v":"Feb 2011"},{"$f":"ZZZ__FnCalls!F21","v":"Mar 2011"},{"$f":"ZZZ__FnCalls!F22","v":"Apr 2011"},{"$f":"ZZZ__FnCalls!F23","v":"May 2011"},{"$f":"ZZZ__FnCalls!F24","v":"Jun 2011"},{"$f":"ZZZ__FnCalls!F25","v":"Jul 2011"},{"$f":"ZZZ__FnCalls!F26","v":"Aug 2011"},{"$f":"ZZZ__FnCalls!F27","v":"Sep 2011"},{"$f":"ZZZ__FnCalls!F28","v":"Oct 2011"},{"$f":"ZZZ__FnCalls!F29","v":"Nov 2011"},{"$f":"ZZZ__FnCalls!F30","v":"Dec 2011"},{"$f":"ZZZ__FnCalls!H19","v":"2011"},{"$f":"ZZZ__FnCalls!F31","v":"Jan 2012"},{"$f":"ZZZ__FnCalls!F32","v":"Feb 2012"},{"$f":"ZZZ__FnCalls!F33","v":"Mar 2012"},{"$f":"ZZZ__FnCalls!F34","v":"Apr 2012"},{"$f":"ZZZ__FnCalls!F35","v":"May 2012"},{"$f":"ZZZ__FnCalls!F36","v":"Jun 2012"},{"$f":"ZZZ__FnCalls!F37","v":"Jul 2012"},{"$f":"ZZZ__FnCalls!F38","v":"Aug 2012"},{"$f":"ZZZ__FnCalls!F39","v":"Sep 2012"},{"$f":"ZZZ__FnCalls!F40","v":"Oct 2012"},{"$f":"ZZZ__FnCalls!F41","v":"Nov 2012"},{"$f":"ZZZ__FnCalls!F42","v":"Dec 2012"},{"$f":"ZZZ__FnCalls!H31","v":"2012"},{"$f":"ZZZ__FnCalls!F43","v":"Jan 2013"},{"$f":"ZZZ__FnCalls!F44","v":"Feb 2013"},{"$f":"ZZZ__FnCalls!F45","v":"Mar 2013"},{"$f":"ZZZ__FnCalls!F46","v":"Apr 2013"},{"$f":"ZZZ__FnCalls!F47","v":"May 2013"},{"$f":"ZZZ__FnCalls!F48","v":"Jun 2013"},{"$f":"ZZZ__FnCalls!F49","v":"Jul 2013"},{"$f":"ZZZ__FnCalls!F50","v":"Aug 2013"},{"$f":"ZZZ__FnCalls!F51","v":"Sep 2013"},{"$f":"ZZZ__FnCalls!F52","v":"Oct 2013"},{"$f":"ZZZ__FnCalls!F53","v":"Nov 2013"},{"$f":"ZZZ__FnCalls!F54","v":"Dec 2013"},{"$f":"ZZZ__FnCalls!H43","v":"2013"},{"$f":"ZZZ__FnCalls!F55","v":"Jan 2014"},{"$f":"ZZZ__FnCalls!F56","v":"Feb 2014"},{"$f":"ZZZ__FnCalls!F57","v":"Mar 2014"},{"$f":"ZZZ__FnCalls!F58","v":"Apr 2014"},{"$f":"ZZZ__FnCalls!F59","v":"May 2014"},{"$f":"ZZZ__FnCalls!F60","v":"Jun 2014"},{"$f":"ZZZ__FnCalls!F61","v":"Jul 2014"},{"$f":"ZZZ__FnCalls!F62","v":"Aug 2014"},{"$f":"ZZZ__FnCalls!F63","v":"Sep 2014"},{"$f":"ZZZ__FnCalls!F64","v":"Oct 2014"},{"$f":"ZZZ__FnCalls!F65","v":"Nov 2014"},{"$f":"ZZZ__FnCalls!F66","v":"Dec 2014"},{"$f":"ZZZ__FnCalls!H55","v":"2014"},{"$f":"ZZZ__FnCalls!F67","v":"Jan 2015"},{"$f":"ZZZ__FnCalls!F68","v":"Feb 2015"},{"$f":"ZZZ__FnCalls!F69","v":"Mar 2015"},{"$f":"ZZZ__FnCalls!F70","v":"Apr 2015"},{"$f":"ZZZ__FnCalls!F71","v":"May 2015"},{"$f":"ZZZ__FnCalls!F72","v":"Jun 2015"},{"$f":"ZZZ__FnCalls!F73","v":"Jul 2015"},{"$f":"ZZZ__FnCalls!F74","v":"Aug 2015"},{"$f":"ZZZ__FnCalls!F75","v":"Sep 2015"},{"$f":"ZZZ__FnCalls!F76","v":"Oct 2015"},{"$f":"ZZZ__FnCalls!F77","v":"Nov 2015"},{"$f":"ZZZ__FnCalls!F78","v":"Dec 2015"},{"$f":"ZZZ__FnCalls!H67","v":"2015"},{"$f":"ZZZ__FnCalls!F79","v":"Jan 2016"},{"$f":"ZZZ__FnCalls!F80","v":"Feb 2016"},{"$f":"ZZZ__FnCalls!F81","v":"Mar 2016"},{"$f":"ZZZ__FnCalls!F82","v":"Apr 2016"},{"$f":"ZZZ__FnCalls!F83","v":"May 2016"},{"$f":"ZZZ__FnCalls!F84","v":"Jun 2016"},{"$f":"ZZZ__FnCalls!F85","v":"Jul 2016"},{"$f":"ZZZ__FnCalls!F86","v":"Aug 2016"},{"$f":"ZZZ__FnCalls!F87","v":"Sep 2016"},{"$f":"ZZZ__FnCalls!F88","v":"Oct 2016"},{"$f":"ZZZ__FnCalls!F89","v":"Nov 2016"},{"$f":"ZZZ__FnCalls!F90","v":"Dec 2016"},{"$f":"ZZZ__FnCalls!H79","v":"2016"},{"$f":"ZZZ__FnCalls!F91","v":"Jan 2017"},{"$f":"ZZZ__FnCalls!F92","v":"Feb 2017"},{"$f":"ZZZ__FnCalls!F93","v":"Mar 2017"},{"$f":"ZZZ__FnCalls!F94","v":"Apr 2017"},{"$f":"ZZZ__FnCalls!F95","v":"May 2017"},{"$f":"ZZZ__FnCalls!F96","v":"Jun 2017"},{"$f":"ZZZ__FnCalls!F97","v":"Jul 2017"},{"$f":"ZZZ__FnCalls!F98","v":"Aug 2017"},{"$f":"ZZZ__FnCalls!F99","v":"Sep 2017"},{"$f":"ZZZ__FnCalls!F100","v":"Oct 2017"},{"$f":"ZZZ__FnCalls!F101","v":"Nov 2017"},{"$f":"ZZZ__FnCalls!F102","v":"Dec 2017"},{"$f":"ZZZ__FnCalls!H91","v":"2017"},{"$f":"ZZZ__FnCalls!F103","v":"Jan 2018"},{"$f":"ZZZ__FnCalls!F104","v":"Feb 2018"},{"$f":"ZZZ__FnCalls!F105","v":"Mar 2018"},{"$f":"ZZZ__FnCalls!F106","v":"Apr 2018"},{"$f":"ZZZ__FnCalls!F107","v":"May 2018"},{"$f":"ZZZ__FnCalls!F108","v":"Jun 2018"},{"$f":"ZZZ__FnCalls!F109","v":"Jul 2018"},{"$f":"ZZZ__FnCalls!F110","v":"Aug 2018"},{"$f":"ZZZ__FnCalls!F111","v":"Sep 2018"},{"$f":"ZZZ__FnCalls!F112","v":"Oct 2018"},{"$f":"ZZZ__FnCalls!F113","v":"Nov 2018"},{"$f":"ZZZ__FnCalls!F114","v":"Dec 2018"},{"$f":"ZZZ__FnCalls!H103","v":"2018"},{"$f":"ZZZ__FnCalls!F115","v":"Jan 2019"},{"$f":"ZZZ__FnCalls!F116","v":"Feb 2019"},{"$f":"ZZZ__FnCalls!F117","v":"Mar 2019"},{"$f":"ZZZ__FnCalls!F118","v":"Apr 2019"},{"$f":"ZZZ__FnCalls!F119","v":"May 2019"},{"$f":"ZZZ__FnCalls!F120","v":"Jun 2019"},{"$f":"ZZZ__FnCalls!F121","v":"Jul 2019"},{"$f":"ZZZ__FnCalls!F122","v":"Aug 2019"},{"$f":"ZZZ__FnCalls!F123","v":"Sep 2019"},{"$f":"ZZZ__FnCalls!F124","v":"Oct 2019"},{"$f":"ZZZ__FnCalls!F125","v":"Nov 2019"},{"$f":"ZZZ__FnCalls!F126","v":"Dec 2019"},{"$f":"ZZZ__FnCalls!H115","v":"2019"},{"$f":"ZZZ__FnCalls!F127","v":"Jan 2020"},{"$f":"ZZZ__FnCalls!F128","v":"Feb 2020"},{"$f":"ZZZ__FnCalls!F129","v":"Mar 2020"},{"$f":"ZZZ__FnCalls!F130","v":"Apr 2020"},{"$f":"ZZZ__FnCalls!F131","v":"May 2020"},{"$f":"ZZZ__FnCalls!F132","v":"Jun 2020"},{"$f":"ZZZ__FnCalls!F133","v":"Jul 2020"},{"$f":"ZZZ__FnCalls!F134","v":"Aug 2020"},{"$f":"ZZZ__FnCalls!F135","v":"Sep 2020"},{"$f":"ZZZ__FnCalls!F136","v":"Oct 2020"},{"$f":"ZZZ__FnCalls!F137","v":"Nov 2020"},{"$f":"ZZZ__FnCalls!F138","v":"Dec 2020"},{"$f":"ZZZ__FnCalls!H127","v":"2020"}]
[{"$f":"Labels!B51","v":"Gov Spending"},{"$f":"B37","v":{"v":29166.66666666667,"d":"$29,167"}},{"v":29166.66666666667,"d":"$29,167"},{"v":29166.66666666667,"d":"$29,167"},{"v":29166.66666666667,"d":"$29,167"},{"v":29166.66666666667,"d":"$29,167"},{"v":29166.66666666667,"d":"$29,167"},{"v":29166.66666666667,"d":"$29,167"},{"v":29166.66666666667,"d":"$29,167"},{"v":29166.66666666667,"d":"$29,167"},{"v":29166.66666666667,"d":"$29,167"},{"v":29166.66666666667,"d":"$29,167"},{"v":29166.66666666667,"d":"$29,167"},{"$f":"SUM(B37:M37)","v":{"v":350000.0000000002,"d":"$350,000"}},{"$f":"O37","v":{"v":29166.66666666667,"d":"$29,167"}},{"v":29166.66666666667,"d":"$29,167"},{"v":29166.66666666667,"d":"$29,167"},{"v":29166.66666666667,"d":"$29,167"},{"v":29166.66666666667,"d":"$29,167"},{"v":29166.66666666667,"d":"$29,167"},{"v":29166.66666666667,"d":"$29,167"},{"v":29166.66666666667,"d":"$29,167"},{"v":29166.66666666667,"d":"$29,167"},{"v":29166.66666666667,"d":"$29,167"},{"v":29166.66666666667,"d":"$29,167"},{"v":29166.66666666667,"d":"$29,167"},{"$f":"SUM(O37:Z37)","v":{"v":350000.0000000002,"d":"$350,000"}},{"$f":"AB37","v":{"v":29166.66666666667,"d":"$29,167"}},{"v":29166.66666666667,"d":"$29,167"},{"v":29166.66666666667,"d":"$29,167"},{"v":29166.66666666667,"d":"$29,167"},{"v":29166.66666666667,"d":"$29,167"},{"v":29166.66666666667,"d":"$29,167"},{"v":29166.66666666667,"d":"$29,167"},{"v":29166.66666666667,"d":"$29,167"},{"v":29166.66666666667,"d":"$29,167"},{"v":29166.66666666667,"d":"$29,167"},{"v":29166.66666666667,"d":"$29,167"},{"v":29166.66666666667,"d":"$29,167"},{"$f":"SUM(AB37:AM37)","v":{"v":350000.0000000002,"d":"$350,000"}},{"$f":"AO37","v":{"v":29166.66666666667,"d":"$29,167"}},{"v":29166.66666666667,"d":"$29,167"},{"v":29166.66666666667,"d":"$29,167"},{"v":29166.66666666667,"d":"$29,167"},{"v":29166.66666666667,"d":"$29,167"},{"v":29166.66666666667,"d":"$29,167"},{"v":29166.66666666667,"d":"$29,167"},{"v":29166.66666666667,"d":"$29,167"},{"v":29166.66666666667,"d":"$29,167"},{"v":29166.66666666667,"d":"$29,167"},{"v":29166.66666666667,"d":"$29,167"},{"v":29166.66666666667,"d":"$29,167"},{"$f":"SUM(AO37:AZ37)","v":{"v":350000.0000000002,"d":"$350,000"}},{"$f":"BB37","v":{"v":29166.66666666667,"d":"$29,167"}},{"v":29166.66666666667,"d":"$29,167"},{"v":29166.66666666667,"d":"$29,167"},{"v":29166.66666666667,"d":"$29,167"},{"v":29166.66666666667,"d":"$29,167"},{"v":29166.66666666667,"d":"$29,167"},{"v":29166.66666666667,"d":"$29,167"},{"v":29166.66666666667,"d":"$29,167"},{"v":29166.66666666667,"d":"$29,167"},{"v":29166.66666666667,"d":"$29,167"},{"v":29166.66666666667,"d":"$29,167"},{"v":29166.66666666667,"d":"$29,167"},{"$f":"SUM(BB37:BM37)","v":{"v":350000.0000000002,"d":"$350,000"}},{"$f":"BO37","v":{"v":29166.66666666667,"d":"$29,167"}},{"v":29166.66666666667,"d":"$29,167"},{"v":29166.66666666667,"d":"$29,167"},{"v":29166.66666666667,"d":"$29,167"},{"v":29166.66666666667,"d":"$29,167"},{"v":29166.66666666667,"d":"$29,167"},{"v":29166.66666666667,"d":"$29,167"},{"v":29166.66666666667,"d":"$29,167"},{"v":29166.66666666667,"d":"$29,167"},{"v":29166.66666666667,"d":"$29,167"},{"v":29166.66666666667,"d":"$29,167"},{"v":29166.66666666667,"d":"$29,167"},{"$f":"SUM(BO37:BZ37)","v":{"v":350000.0000000002,"d":"$350,000"}},{"$f":"CB37","v":{"v":29166.66666666667,"d":"$29,167"}},{"v":29166.66666666667,"d":"$29,167"},{"v":29166.66666666667,"d":"$29,167"},{"v":29166.66666666667,"d":"$29,167"},{"v":29166.66666666667,"d":"$29,167"},{"v":29166.66666666667,"d":"$29,167"},{"v":29166.66666666667,"d":"$29,167"},{"v":29166.66666666667,"d":"$29,167"},{"v":29166.66666666667,"d":"$29,167"},{"v":29166.66666666667,"d":"$29,167"},{"v":29166.66666666667,"d":"$29,167"},{"v":29166.66666666667,"d":"$29,167"},{"$f":"SUM(CB37:CM37)","v":{"v":350000.0000000002,"d":"$350,000"}},{"$f":"CO37","v":{"v":29166.66666666667,"d":"$29,167"}},{"v":29166.66666666667,"d":"$29,167"},{"v":29166.66666666667,"d":"$29,167"},{"v":29166.66666666667,"d":"$29,167"},{"v":29166.66666666667,"d":"$29,167"},{"v":29166.66666666667,"d":"$29,167"},{"v":29166.66666666667,"d":"$29,167"},{"v":29166.66666666667,"d":"$29,167"},{"v":29166.66666666667,"d":"$29,167"},{"v":29166.66666666667,"d":"$29,167"},{"v":29166.66666666667,"d":"$29,167"},{"v":29166.66666666667,"d":"$29,167"},{"$f":"SUM(CO37:CZ37)","v":{"v":350000.0000000002,"d":"$350,000"}},{"$f":"DB37","v":{"v":29166.66666666667,"d":"$29,167"}},{"v":29166.66666666667,"d":"$29,167"},{"v":29166.66666666667,"d":"$29,167"},{"v":29166.66666666667,"d":"$29,167"},{"v":29166.66666666667,"d":"$29,167"},{"v":29166.66666666667,"d":"$29,167"},{"v":29166.66666666667,"d":"$29,167"},{"v":29166.66666666667,"d":"$29,167"},{"v":29166.66666666667,"d":"$29,167"},{"v":29166.66666666667,"d":"$29,167"},{"v":29166.66666666667,"d":"$29,167"},{"v":29166.66666666667,"d":"$29,167"},{"$f":"SUM(DB37:DM37)","v":{"v":350000.0000000002,"d":"$350,000"}},{"$f":"DO37","v":{"v":29166.66666666667,"d":"$29,167"}},{"v":29166.66666666667,"d":"$29,167"},{"v":29166.66666666667,"d":"$29,167"},{"v":29166.66666666667,"d":"$29,167"},{"v":29166.66666666667,"d":"$29,167"},{"v":29166.66666666667,"d":"$29,167"},{"v":29166.66666666667,"d":"$29,167"},{"v":29166.66666666667,"d":"$29,167"},{"v":29166.66666666667,"d":"$29,167"},{"v":29166.66666666667,"d":"$29,167"},{"v":29166.66666666667,"d":"$29,167"},{"v":29166.66666666667,"d":"$29,167"},{"$f":"SUM(DO37:DZ37)","v":{"v":350000.0000000002,"d":"$350,000"}},{"$f":"EB37","v":{"v":29166.66666666667,"d":"$29,167"}},{"v":29166.66666666667,"d":"$29,167"},{"v":29166.66666666667,"d":"$29,167"},{"v":29166.66666666667,"d":"$29,167"},{"v":29166.66666666667,"d":"$29,167"},{"v":29166.66666666667,"d":"$29,167"},{"v":29166.66666666667,"d":"$29,167"},{"v":29166.66666666667,"d":"$29,167"},{"v":29166.66666666667,"d":"$29,167"},{"v":29166.66666666667,"d":"$29,167"},{"v":29166.66666666667,"d":"$29,167"},{"v":29166.66666666667,"d":"$29,167"},{"$f":"SUM(EB37:EM37)","v":{"v":350000.0000000002,"d":"$350,000"}}]
[{"$f":"Labels!B52","v":"Gov Transfers"},{"$f":"B38","v":{"v":14583.333333333336,"d":"$14,583"}},{"v":14583.333333333336,"d":"$14,583"},{"v":14583.333333333336,"d":"$14,583"},{"v":14583.333333333336,"d":"$14,583"},{"v":14583.333333333336,"d":"$14,583"},{"v":14583.333333333336,"d":"$14,583"},{"v":14583.333333333336,"d":"$14,583"},{"v":14583.333333333336,"d":"$14,583"},{"v":14583.333333333336,"d":"$14,583"},{"v":14583.333333333336,"d":"$14,583"},{"v":14583.333333333336,"d":"$14,583"},{"v":14583.333333333336,"d":"$14,583"},{"$f":"SUM(B38:M38)","v":{"v":175000.0000000001,"d":"$175,000"}},{"$f":"O38","v":{"v":14583.333333333336,"d":"$14,583"}},{"v":14583.333333333336,"d":"$14,583"},{"v":14583.333333333336,"d":"$14,583"},{"v":14583.333333333336,"d":"$14,583"},{"v":14583.333333333336,"d":"$14,583"},{"v":14583.333333333336,"d":"$14,583"},{"v":14583.333333333336,"d":"$14,583"},{"v":14583.333333333336,"d":"$14,583"},{"v":14583.333333333336,"d":"$14,583"},{"v":14583.333333333336,"d":"$14,583"},{"v":14583.333333333336,"d":"$14,583"},{"v":14583.333333333336,"d":"$14,583"},{"$f":"SUM(O38:Z38)","v":{"v":175000.0000000001,"d":"$175,000"}},{"$f":"AB38","v":{"v":14583.333333333336,"d":"$14,583"}},{"v":14583.333333333336,"d":"$14,583"},{"v":14583.333333333336,"d":"$14,583"},{"v":14583.333333333336,"d":"$14,583"},{"v":14583.333333333336,"d":"$14,583"},{"v":14583.333333333336,"d":"$14,583"},{"v":14583.333333333336,"d":"$14,583"},{"v":14583.333333333336,"d":"$14,583"},{"v":14583.333333333336,"d":"$14,583"},{"v":14583.333333333336,"d":"$14,583"},{"v":14583.333333333336,"d":"$14,583"},{"v":14583.333333333336,"d":"$14,583"},{"$f":"SUM(AB38:AM38)","v":{"v":175000.0000000001,"d":"$175,000"}},{"$f":"AO38","v":{"v":14583.333333333336,"d":"$14,583"}},{"v":14583.333333333336,"d":"$14,583"},{"v":14583.333333333336,"d":"$14,583"},{"v":14583.333333333336,"d":"$14,583"},{"v":14583.333333333336,"d":"$14,583"},{"v":14583.333333333336,"d":"$14,583"},{"v":14583.333333333336,"d":"$14,583"},{"v":14583.333333333336,"d":"$14,583"},{"v":14583.333333333336,"d":"$14,583"},{"v":14583.333333333336,"d":"$14,583"},{"v":14583.333333333336,"d":"$14,583"},{"v":14583.333333333336,"d":"$14,583"},{"$f":"SUM(AO38:AZ38)","v":{"v":175000.0000000001,"d":"$175,000"}},{"$f":"BB38","v":{"v":14583.333333333336,"d":"$14,583"}},{"v":14583.333333333336,"d":"$14,583"},{"v":14583.333333333336,"d":"$14,583"},{"v":14583.333333333336,"d":"$14,583"},{"v":14583.333333333336,"d":"$14,583"},{"v":14583.333333333336,"d":"$14,583"},{"v":14583.333333333336,"d":"$14,583"},{"v":14583.333333333336,"d":"$14,583"},{"v":14583.333333333336,"d":"$14,583"},{"v":14583.333333333336,"d":"$14,583"},{"v":14583.333333333336,"d":"$14,583"},{"v":14583.333333333336,"d":"$14,583"},{"$f":"SUM(BB38:BM38)","v":{"v":175000.0000000001,"d":"$175,000"}},{"$f":"BO38","v":{"v":14583.333333333336,"d":"$14,583"}},{"v":14583.333333333336,"d":"$14,583"},{"v":14583.333333333336,"d":"$14,583"},{"v":14583.333333333336,"d":"$14,583"},{"v":14583.333333333336,"d":"$14,583"},{"v":14583.333333333336,"d":"$14,583"},{"v":14583.333333333336,"d":"$14,583"},{"v":14583.333333333336,"d":"$14,583"},{"v":14583.333333333336,"d":"$14,583"},{"v":14583.333333333336,"d":"$14,583"},{"v":14583.333333333336,"d":"$14,583"},{"v":14583.333333333336,"d":"$14,583"},{"$f":"SUM(BO38:BZ38)","v":{"v":175000.0000000001,"d":"$175,000"}},{"$f":"CB38","v":{"v":14583.333333333336,"d":"$14,583"}},{"v":14583.333333333336,"d":"$14,583"},{"v":14583.333333333336,"d":"$14,583"},{"v":14583.333333333336,"d":"$14,583"},{"v":14583.333333333336,"d":"$14,583"},{"v":14583.333333333336,"d":"$14,583"},{"v":14583.333333333336,"d":"$14,583"},{"v":14583.333333333336,"d":"$14,583"},{"v":14583.333333333336,"d":"$14,583"},{"v":14583.333333333336,"d":"$14,583"},{"v":14583.333333333336,"d":"$14,583"},{"v":14583.333333333336,"d":"$14,583"},{"$f":"SUM(CB38:CM38)","v":{"v":175000.0000000001,"d":"$175,000"}},{"$f":"CO38","v":{"v":14583.333333333336,"d":"$14,583"}},{"v":14583.333333333336,"d":"$14,583"},{"v":14583.333333333336,"d":"$14,583"},{"v":14583.333333333336,"d":"$14,583"},{"v":14583.333333333336,"d":"$14,583"},{"v":14583.333333333336,"d":"$14,583"},{"v":14583.333333333336,"d":"$14,583"},{"v":14583.333333333336,"d":"$14,583"},{"v":14583.333333333336,"d":"$14,583"},{"v":14583.333333333336,"d":"$14,583"},{"v":14583.333333333336,"d":"$14,583"},{"v":14583.333333333336,"d":"$14,583"},{"$f":"SUM(CO38:CZ38)","v":{"v":175000.0000000001,"d":"$175,000"}},{"$f":"DB38","v":{"v":14583.333333333336,"d":"$14,583"}},{"v":14583.333333333336,"d":"$14,583"},{"v":14583.333333333336,"d":"$14,583"},{"v":14583.333333333336,"d":"$14,583"},{"v":14583.333333333336,"d":"$14,583"},{"v":14583.333333333336,"d":"$14,583"},{"v":14583.333333333336,"d":"$14,583"},{"v":14583.333333333336,"d":"$14,583"},{"v":14583.333333333336,"d":"$14,583"},{"v":14583.333333333336,"d":"$14,583"},{"v":14583.333333333336,"d":"$14,583"},{"v":14583.333333333336,"d":"$14,583"},{"$f":"SUM(DB38:DM38)","v":{"v":175000.0000000001,"d":"$175,000"}},{"$f":"DO38","v":{"v":14583.333333333336,"d":"$14,583"}},{"v":14583.333333333336,"d":"$14,583"},{"v":14583.333333333336,"d":"$14,583"},{"v":14583.333333333336,"d":"$14,583"},{"v":14583.333333333336,"d":"$14,583"},{"v":14583.333333333336,"d":"$14,583"},{"v":14583.333333333336,"d":"$14,583"},{"v":14583.333333333336,"d":"$14,583"},{"v":14583.333333333336,"d":"$14,583"},{"v":14583.333333333336,"d":"$14,583"},{"v":14583.333333333336,"d":"$14,583"},{"v":14583.333333333336,"d":"$14,583"},{"$f":"SUM(DO38:DZ38)","v":{"v":175000.0000000001,"d":"$175,000"}},{"$f":"EB38","v":{"v":14583.333333333336,"d":"$14,583"}},{"v":14583.333333333336,"d":"$14,583"},{"v":14583.333333333336,"d":"$14,583"},{"v":14583.333333333336,"d":"$14,583"},{"v":14583.333333333336,"d":"$14,583"},{"v":14583.333333333336,"d":"$14,583"},{"v":14583.333333333336,"d":"$14,583"},{"v":14583.333333333336,"d":"$14,583"},{"v":14583.333333333336,"d":"$14,583"},{"v":14583.333333333336,"d":"$14,583"},{"v":14583.333333333336,"d":"$14,583"},{"v":14583.333333333336,"d":"$14,583"},{"$f":"SUM(EB38:EM38)","v":{"v":175000.0000000001,"d":"$175,000"}}]
[{"$f":"Labels!B83","v":"Tax"},{"$f":"Inputs!B52*B44","v":{"v":353527.4949780386,"d":"$353,527"}},{"$f":"Inputs!B52*C44","v":{"v":331571.9247677047,"d":"$331,572"}},{"$f":"Inputs!B52*D44","v":{"v":347720.70110915636,"d":"$347,721"}},{"$f":"Inputs!B52*E44","v":{"v":341950.1690998451,"d":"$341,950"}},{"$f":"Inputs!B52*F44","v":{"v":349395.22281179216,"d":"$349,395"}},{"$f":"Inputs!B52*G44","v":{"v":335473.28852046037,"d":"$335,473"}},{"$f":"Inputs!B52*H44","v":{"v":356762.7140603207,"d":"$356,763"}},{"$f":"Inputs!B52*I44","v":{"v":343296.0620243514,"d":"$343,296"}},{"$f":"Inputs!B52*J44","v":{"v":346707.2151562626,"d":"$346,707"}},{"$f":"Inputs!B52*K44","v":{"v":358710.91267086664,"d":"$358,711"}},{"$f":"Inputs!B52*L44","v":{"v":351011.7904575303,"d":"$351,012"}},{"$f":"Inputs!B52*M44","v":{"v":355828.1347373501,"d":"$355,828"}},{"$f":"SUM(B54:M54)","v":{"v":4171955.630393679,"d":"$4,171,956"}},{"$f":"Inputs!B52*O44","v":{"v":351672.322142427,"d":"$351,672"}},{"$f":"Inputs!B52*P44","v":{"v":345146.27281605423,"d":"$345,146"}},{"$f":"Inputs!B52*Q44","v":{"v":347596.7335903753,"d":"$347,597"}},{"$f":"Inputs!B52*R44","v":{"v":338979.4408886733,"d":"$338,979"}},{"$f":"Inputs!B52*S44","v":{"v":338074.3386619544,"d":"$338,074"}},{"$f":"Inputs!B52*T44","v":{"v":359525.0553028276,"d":"$359,525"}},{"$f":"Inputs!B52*U44","v":{"v":340582.3321069312,"d":"$340,582"}},{"$f":"Inputs!B52*V44","v":{"v":351415.24393097404,"d":"$351,415"}},{"$f":"Inputs!B52*W44","v":{"v":328878.41032436746,"d":"$328,878"}},{"$f":"Inputs!B52*X44","v":{"v":343237.91114175576,"d":"$343,238"}},{"$f":"Inputs!B52*Y44","v":{"v":327537.7139520944,"d":"$327,538"}},{"$f":"Inputs!B52*Z44","v":{"v":355005.2948999632,"d":"$355,005"}},{"$f":"SUM(O54:Z54)","v":{"v":4127651.069758398,"d":"$4,127,651"}},{"$f":"Inputs!B52*AB44","v":{"v":348773.0388235053,"d":"$348,773"}},{"$f":"Inputs!B52*AC44","v":{"v":326720.1147373394,"d":"$326,720"}},{"$f":"Inputs!B52*AD44","v":{"v":337325.143208995,"d":"$337,325"}},{"$f":"Inputs!B52*AE44","v":{"v":335110.0296362652,"d":"$335,110"}},{"$f":"Inputs!B52*AF44","v":{"v":322204.33090971934,"d":"$322,204"}},{"$f":"Inputs!B52*AG44","v":{"v":345341.02825653105,"d":"$345,341"}},{"$f":"Inputs!B52*AH44","v":{"v":343420.1567317077,"d":"$343,420"}},{"$f":"Inputs!B52*AI44","v":{"v":329110.50009356835,"d":"$329,111"}},{"$f":"Inputs!B52*AJ44","v":{"v":351144.84895466897,"d":"$351,145"}},{"$f":"Inputs!B52*AK44","v":{"v":343727.00730035326,"d":"$343,727"}},{"$f":"Inputs!B52*AL44","v":{"v":334167.43367779645,"d":"$334,167"}},{"$f":"Inputs!B52*AM44","v":{"v":349975.50121915445,"d":"$349,976"}},{"$f":"SUM(AB54:AM54)","v":{"v":4067019.133549604,"d":"$4,067,019"}},{"$f":"Inputs!B52*AO44","v":{"v":335182.06400071667,"d":"$335,182"}},{"$f":"Inputs!B52*AP44","v":{"v":333140.5596408273,"d":"$333,141"}},{"$f":"Inputs!B52*AQ44","v":{"v":341946.34767478873,"d":"$341,946"}},{"$f":"Inputs!B52*AR44","v":{"v":330571.9650949711,"d":"$330,572"}},{"$f":"Inputs!B52*AS44","v":{"v":342705.64864418574,"d":"$342,706"}},{"$f":"Inputs!B52*AT44","v":{"v":333082.48015696346,"d":"$333,082"}},{"$f":"Inputs!B52*AU44","v":{"v":326743.6780705655,"d":"$326,744"}},{"$f":"Inputs!B52*AV44","v":{"v":329131.298513558,"d":"$329,131"}},{"$f":"Inputs!B52*AW44","v":{"v":332680.83402921126,"d":"$332,681"}},{"$f":"Inputs!B52*AX44","v":{"v":346363.64856325346,"d":"$346,364"}},{"$f":"Inputs!B52*AY44","v":{"v":328818.37016108417,"d":"$328,818"}},{"$f":"Inputs!B52*AZ44","v":{"v":317168.41537768,"d":"$317,168"}},{"$f":"SUM(AO54:AZ54)","v":{"v":3997535.3099278044,"d":"$3,997,535"}},{"$f":"Inputs!B52*BB44","v":{"v":319543.19857958786,"d":"$319,543"}},{"$f":"Inputs!B52*BC44","v":{"v":338971.36979316745,"d":"$338,971"}},{"$f":"Inputs!B52*BD44","v":{"v":339371.501583583,"d":"$339,372"}},{"$f":"Inputs!B52*BE44","v":{"v":326563.2900013346,"d":"$326,563"}},{"$f":"Inputs!B52*BF44","v":{"v":335781.4527246768,"d":"$335,781"}},{"$f":"Inputs!B52*BG44","v":{"v":327239.9077739036,"d":"$327,240"}},{"$f":"Inputs!B52*BH44","v":{"v":335466.0646034995,"d":"$335,466"}},{"$f":"Inputs!B52*BI44","v":{"v":332190.73100457416,"d":"$332,191"}},{"$f":"Inputs!B52*BJ44","v":{"v":325308.3155871883,"d":"$325,308"}},{"$f":"Inputs!B52*BK44","v":{"v":322407.8643059557,"d":"$322,408"}},{"$f":"Inputs!B52*BL44","v":{"v":324460.8744393614,"d":"$324,461"}},{"$f":"Inputs!B52*BM44","v":{"v":327069.14551393886,"d":"$327,069"}},{"$f":"SUM(BB54:BM54)","v":{"v":3954373.7159107714,"d":"$3,954,374"}},{"$f":"Inputs!B52*BO44","v":{"v":308916.7552180909,"d":"$308,917"}},{"$f":"Inputs!B52*BP44","v":{"v":340042.7877592539,"d":"$340,043"}},{"$f":"Inputs!B52*BQ44","v":{"v":336067.3722390699,"d":"$336,067"}},{"$f":"Inputs!B52*BR44","v":{"v":342342.9110737074,"d":"$342,343"}},{"$f":"Inputs!B52*BS44","v":{"v":321888.01858924347,"d":"$321,888"}},{"$f":"Inputs!B52*BT44","v":{"v":339922.1013266214,"d":"$339,922"}},{"$f":"Inputs!B52*BU44","v":{"v":322646.3835593,"d":"$322,646"}},{"$f":"Inputs!B52*BV44","v":{"v":306730.4266410993,"d":"$306,730"}},{"$f":"Inputs!B52*BW44","v":{"v":326205.22605069226,"d":"$326,205"}},{"$f":"Inputs!B52*BX44","v":{"v":312049.86319525994,"d":"$312,050"}},{"$f":"Inputs!B52*BY44","v":{"v":317455.8813577994,"d":"$317,456"}},{"$f":"Inputs!B52*BZ44","v":{"v":326228.46176551963,"d":"$326,228"}},{"$f":"SUM(BO54:BZ54)","v":{"v":3900496.188775657,"d":"$3,900,496"}},{"$f":"Inputs!B52*CB44","v":{"v":306488.8601995144,"d":"$306,489"}},{"$f":"Inputs!B52*CC44","v":{"v":331196.0659351434,"d":"$331,196"}},{"$f":"Inputs!B52*CD44","v":{"v":315864.1128270224,"d":"$315,864"}},{"$f":"Inputs!B52*CE44","v":{"v":311332.06453266414,"d":"$311,332"}},{"$f":"Inputs!B52*CF44","v":{"v":325661.898421457,"d":"$325,662"}},{"$f":"Inputs!B52*CG44","v":{"v":319525.7550289804,"d":"$319,526"}},{"$f":"Inputs!B52*CH44","v":{"v":321446.60359319084,"d":"$321,447"}},{"$f":"Inputs!B52*CI44","v":{"v":308916.6993309136,"d":"$308,917"}},{"$f":"Inputs!B52*CJ44","v":{"v":336021.9899973345,"d":"$336,022"}},{"$f":"Inputs!B52*CK44","v":{"v":311889.9662803147,"d":"$311,890"}},{"$f":"Inputs!B52*CL44","v":{"v":324180.89256199123,"d":"$324,181"}},{"$f":"Inputs!B52*CM44","v":{"v":304626.356592283,"d":"$304,626"}},{"$f":"SUM(CB54:CM54)","v":{"v":3817151.2653008094,"d":"$3,817,151"}},{"$f":"Inputs!B52*CO44","v":{"v":322278.2756750494,"d":"$322,278"}},{"$f":"Inputs!B52*CP44","v":{"v":312287.3710844045,"d":"$312,287"}},{"$f":"Inputs!B52*CQ44","v":{"v":329237.4016301055,"d":"$329,237"}},{"$f":"Inputs!B52*CR44","v":{"v":306181.74676275486,"d":"$306,182"}},{"$f":"Inputs!B52*CS44","v":{"v":320686.9981315567,"d":"$320,687"}},{"$f":"Inputs!B52*CT44","v":{"v":325258.0150818729,"d":"$325,258"}},{"$f":"Inputs!B52*CU44","v":{"v":326108.7161604369,"d":"$326,109"}},{"$f":"Inputs!B52*CV44","v":{"v":319573.3147328098,"d":"$319,573"}},{"$f":"Inputs!B52*CW44","v":{"v":299168.5233636662,"d":"$299,169"}},{"$f":"Inputs!B52*CX44","v":{"v":316142.7081345157,"d":"$316,143"}},{"$f":"Inputs!B52*CY44","v":{"v":308068.0237870803,"d":"$308,068"}},{"$f":"Inputs!B52*CZ44","v":{"v":325405.54138597986,"d":"$325,406"}},{"$f":"SUM(CO54:CZ54)","v":{"v":3810396.6359302322,"d":"$3,810,397"}},{"$f":"Inputs!B52*DB44","v":{"v":322619.7693641386,"d":"$322,620"}},{"$f":"Inputs!B52*DC44","v":{"v":312262.21234762645,"d":"$312,262"}},{"$f":"Inputs!B52*DD44","v":{"v":307479.413997827,"d":"$307,479"}},{"$f":"Inputs!B52*DE44","v":{"v":330147.7192649728,"d":"$330,148"}},{"$f":"Inputs!B52*DF44","v":{"v":312619.4456159864,"d":"$312,619"}},{"$f":"Inputs!B52*DG44","v":{"v":311663.70875955175,"d":"$311,664"}},{"$f":"Inputs!B52*DH44","v":{"v":322259.7238603316,"d":"$322,260"}},{"$f":"Inputs!B52*DI44","v":{"v":303591.47239502764,"d":"$303,591"}},{"$f":"Inputs!B52*DJ44","v":{"v":323708.0907025223,"d":"$323,708"}},{"$f":"Inputs!B52*DK44","v":{"v":320161.6350410971,"d":"$320,162"}},{"$f":"Inputs!B52*DL44","v":{"v":305515.63931548136,"d":"$305,516"}},{"$f":"Inputs!B52*DM44","v":{"v":318377.98339896486,"d":"$318,378"}},{"$f":"SUM(DB54:DM54)","v":{"v":3790406.8140635276,"d":"$3,790,407"}},{"$f":"Inputs!B52*DO44","v":{"v":319428.3294178883,"d":"$319,428"}},{"$f":"Inputs!B52*DP44","v":{"v":302997.3976976662,"d":"$302,997"}},{"$f":"Inputs!B52*DQ44","v":{"v":314615.9725791708,"d":"$314,616"}},{"$f":"Inputs!B52*DR44","v":{"v":301586.6670288541,"d":"$301,587"}},{"$f":"Inputs!B52*DS44","v":{"v":314395.6385242353,"d":"$314,396"}},{"$f":"Inputs!B52*DT44","v":{"v":319801.34668494965,"d":"$319,801"}},{"$f":"Inputs!B52*DU44","v":{"v":306211.82368666003,"d":"$306,212"}},{"$f":"Inputs!B52*DV44","v":{"v":300632.2006136964,"d":"$300,632"}},{"$f":"Inputs!B52*DW44","v":{"v":308115.4742355608,"d":"$308,115"}},{"$f":"Inputs!B52*DX44","v":{"v":308497.05109171616,"d":"$308,497"}},{"$f":"Inputs!B52*DY44","v":{"v":317514.4684796066,"d":"$317,514"}},{"$f":"Inputs!B52*DZ44","v":{"v":305233.19311124616,"d":"$305,233"}},{"$f":"SUM(DO54:DZ54)","v":{"v":3719029.5631512506,"d":"$3,719,030"}},{"$f":"Inputs!B52*EB44","v":{"v":315023.820515583,"d":"$315,024"}},{"$f":"Inputs!B52*EC44","v":{"v":295468.0185676983,"d":"$295,468"}},{"$f":"Inputs!B52*ED44","v":{"v":303540.70506318647,"d":"$303,541"}},{"$f":"Inputs!B52*EE44","v":{"v":295946.4877673963,"d":"$295,946"}},{"$f":"Inputs!B52*EF44","v":{"v":319130.0724286071,"d":"$319,130"}},{"$f":"Inputs!B52*EG44","v":{"v":298221.9678068931,"d":"$298,222"}},{"$f":"Inputs!B52*EH44","v":{"v":304742.2379132302,"d":"$304,742"}},{"$f":"Inputs!B52*EI44","v":{"v":309904.45594346774,"d":"$309,904"}},{"$f":"Inputs!B52*EJ44","v":{"v":308743.22993363277,"d":"$308,743"}},{"$f":"Inputs!B52*EK44","v":{"v":303909.2543567625,"d":"$303,909"}},{"$f":"Inputs!B52*EL44","v":{"v":286064.6073093803,"d":"$286,065"}},{"$f":"Inputs!B52*EM44","v":{"v":309185.7798278442,"d":"$309,186"}},{"$f":"SUM(EB54:EM54)","v":{"v":3649880.6374336826,"d":"$3,649,881"}}]
[]
[]
[{"$f":"\"Stochastic Shocks\"","v":"Stochastic Shocks"}]
[{"$f":"\" \"","v":" "}]
[null,{"$f":"ZZZ__FnCalls!F7","v":"Jan 2010"},{"$f":"ZZZ__FnCalls!F8","v":"Feb 2010"},{"$f":"ZZZ__FnCalls!F9","v":"Mar 2010"},{"$f":"ZZZ__FnCalls!F10","v":"Apr 2010"},{"$f":"ZZZ__FnCalls!F11","v":"May 2010"},{"$f":"ZZZ__FnCalls!F12","v":"Jun 2010"},{"$f":"ZZZ__FnCalls!F13","v":"Jul 2010"},{"$f":"ZZZ__FnCalls!F14","v":"Aug 2010"},{"$f":"ZZZ__FnCalls!F15","v":"Sep 2010"},{"$f":"ZZZ__FnCalls!F16","v":"Oct 2010"},{"$f":"ZZZ__FnCalls!F17","v":"Nov 2010"},{"$f":"ZZZ__FnCalls!F18","v":"Dec 2010"},{"$f":"ZZZ__FnCalls!H7","v":"2010"},{"$f":"ZZZ__FnCalls!F19","v":"Jan 2011"},{"$f":"ZZZ__FnCalls!F20","v":"Feb 2011"},{"$f":"ZZZ__FnCalls!F21","v":"Mar 2011"},{"$f":"ZZZ__FnCalls!F22","v":"Apr 2011"},{"$f":"ZZZ__FnCalls!F23","v":"May 2011"},{"$f":"ZZZ__FnCalls!F24","v":"Jun 2011"},{"$f":"ZZZ__FnCalls!F25","v":"Jul 2011"},{"$f":"ZZZ__FnCalls!F26","v":"Aug 2011"},{"$f":"ZZZ__FnCalls!F27","v":"Sep 2011"},{"$f":"ZZZ__FnCalls!F28","v":"Oct 2011"},{"$f":"ZZZ__FnCalls!F29","v":"Nov 2011"},{"$f":"ZZZ__FnCalls!F30","v":"Dec 2011"},{"$f":"ZZZ__FnCalls!H19","v":"2011"},{"$f":"ZZZ__FnCalls!F31","v":"Jan 2012"},{"$f":"ZZZ__FnCalls!F32","v":"Feb 2012"},{"$f":"ZZZ__FnCalls!F33","v":"Mar 2012"},{"$f":"ZZZ__FnCalls!F34","v":"Apr 2012"},{"$f":"ZZZ__FnCalls!F35","v":"May 2012"},{"$f":"ZZZ__FnCalls!F36","v":"Jun 2012"},{"$f":"ZZZ__FnCalls!F37","v":"Jul 2012"},{"$f":"ZZZ__FnCalls!F38","v":"Aug 2012"},{"$f":"ZZZ__FnCalls!F39","v":"Sep 2012"},{"$f":"ZZZ__FnCalls!F40","v":"Oct 2012"},{"$f":"ZZZ__FnCalls!F41","v":"Nov 2012"},{"$f":"ZZZ__FnCalls!F42","v":"Dec 2012"},{"$f":"ZZZ__FnCalls!H31","v":"2012"},{"$f":"ZZZ__FnCalls!F43","v":"Jan 2013"},{"$f":"ZZZ__FnCalls!F44","v":"Feb 2013"},{"$f":"ZZZ__FnCalls!F45","v":"Mar 2013"},{"$f":"ZZZ__FnCalls!F46","v":"Apr 2013"},{"$f":"ZZZ__FnCalls!F47","v":"May 2013"},{"$f":"ZZZ__FnCalls!F48","v":"Jun 2013"},{"$f":"ZZZ__FnCalls!F49","v":"Jul 2013"},{"$f":"ZZZ__FnCalls!F50","v":"Aug 2013"},{"$f":"ZZZ__FnCalls!F51","v":"Sep 2013"},{"$f":"ZZZ__FnCalls!F52","v":"Oct 2013"},{"$f":"ZZZ__FnCalls!F53","v":"Nov 2013"},{"$f":"ZZZ__FnCalls!F54","v":"Dec 2013"},{"$f":"ZZZ__FnCalls!H43","v":"2013"},{"$f":"ZZZ__FnCalls!F55","v":"Jan 2014"},{"$f":"ZZZ__FnCalls!F56","v":"Feb 2014"},{"$f":"ZZZ__FnCalls!F57","v":"Mar 2014"},{"$f":"ZZZ__FnCalls!F58","v":"Apr 2014"},{"$f":"ZZZ__FnCalls!F59","v":"May 2014"},{"$f":"ZZZ__FnCalls!F60","v":"Jun 2014"},{"$f":"ZZZ__FnCalls!F61","v":"Jul 2014"},{"$f":"ZZZ__FnCalls!F62","v":"Aug 2014"},{"$f":"ZZZ__FnCalls!F63","v":"Sep 2014"},{"$f":"ZZZ__FnCalls!F64","v":"Oct 2014"},{"$f":"ZZZ__FnCalls!F65","v":"Nov 2014"},{"$f":"ZZZ__FnCalls!F66","v":"Dec 2014"},{"$f":"ZZZ__FnCalls!H55","v":"2014"},{"$f":"ZZZ__FnCalls!F67","v":"Jan 2015"},{"$f":"ZZZ__FnCalls!F68","v":"Feb 2015"},{"$f":"ZZZ__FnCalls!F69","v":"Mar 2015"},{"$f":"ZZZ__FnCalls!F70","v":"Apr 2015"},{"$f":"ZZZ__FnCalls!F71","v":"May 2015"},{"$f":"ZZZ__FnCalls!F72","v":"Jun 2015"},{"$f":"ZZZ__FnCalls!F73","v":"Jul 2015"},{"$f":"ZZZ__FnCalls!F74","v":"Aug 2015"},{"$f":"ZZZ__FnCalls!F75","v":"Sep 2015"},{"$f":"ZZZ__FnCalls!F76","v":"Oct 2015"},{"$f":"ZZZ__FnCalls!F77","v":"Nov 2015"},{"$f":"ZZZ__FnCalls!F78","v":"Dec 2015"},{"$f":"ZZZ__FnCalls!H67","v":"2015"},{"$f":"ZZZ__FnCalls!F79","v":"Jan 2016"},{"$f":"ZZZ__FnCalls!F80","v":"Feb 2016"},{"$f":"ZZZ__FnCalls!F81","v":"Mar 2016"},{"$f":"ZZZ__FnCalls!F82","v":"Apr 2016"},{"$f":"ZZZ__FnCalls!F83","v":"May 2016"},{"$f":"ZZZ__FnCalls!F84","v":"Jun 2016"},{"$f":"ZZZ__FnCalls!F85","v":"Jul 2016"},{"$f":"ZZZ__FnCalls!F86","v":"Aug 2016"},{"$f":"ZZZ__FnCalls!F87","v":"Sep 2016"},{"$f":"ZZZ__FnCalls!F88","v":"Oct 2016"},{"$f":"ZZZ__FnCalls!F89","v":"Nov 2016"},{"$f":"ZZZ__FnCalls!F90","v":"Dec 2016"},{"$f":"ZZZ__FnCalls!H79","v":"2016"},{"$f":"ZZZ__FnCalls!F91","v":"Jan 2017"},{"$f":"ZZZ__FnCalls!F92","v":"Feb 2017"},{"$f":"ZZZ__FnCalls!F93","v":"Mar 2017"},{"$f":"ZZZ__FnCalls!F94","v":"Apr 2017"},{"$f":"ZZZ__FnCalls!F95","v":"May 2017"},{"$f":"ZZZ__FnCalls!F96","v":"Jun 2017"},{"$f":"ZZZ__FnCalls!F97","v":"Jul 2017"},{"$f":"ZZZ__FnCalls!F98","v":"Aug 2017"},{"$f":"ZZZ__FnCalls!F99","v":"Sep 2017"},{"$f":"ZZZ__FnCalls!F100","v":"Oct 2017"},{"$f":"ZZZ__FnCalls!F101","v":"Nov 2017"},{"$f":"ZZZ__FnCalls!F102","v":"Dec 2017"},{"$f":"ZZZ__FnCalls!H91","v":"2017"},{"$f":"ZZZ__FnCalls!F103","v":"Jan 2018"},{"$f":"ZZZ__FnCalls!F104","v":"Feb 2018"},{"$f":"ZZZ__FnCalls!F105","v":"Mar 2018"},{"$f":"ZZZ__FnCalls!F106","v":"Apr 2018"},{"$f":"ZZZ__FnCalls!F107","v":"May 2018"},{"$f":"ZZZ__FnCalls!F108","v":"Jun 2018"},{"$f":"ZZZ__FnCalls!F109","v":"Jul 2018"},{"$f":"ZZZ__FnCalls!F110","v":"Aug 2018"},{"$f":"ZZZ__FnCalls!F111","v":"Sep 2018"},{"$f":"ZZZ__FnCalls!F112","v":"Oct 2018"},{"$f":"ZZZ__FnCalls!F113","v":"Nov 2018"},{"$f":"ZZZ__FnCalls!F114","v":"Dec 2018"},{"$f":"ZZZ__FnCalls!H103","v":"2018"},{"$f":"ZZZ__FnCalls!F115","v":"Jan 2019"},{"$f":"ZZZ__FnCalls!F116","v":"Feb 2019"},{"$f":"ZZZ__FnCalls!F117","v":"Mar 2019"},{"$f":"ZZZ__FnCalls!F118","v":"Apr 2019"},{"$f":"ZZZ__FnCalls!F119","v":"May 2019"},{"$f":"ZZZ__FnCalls!F120","v":"Jun 2019"},{"$f":"ZZZ__FnCalls!F121","v":"Jul 2019"},{"$f":"ZZZ__FnCalls!F122","v":"Aug 2019"},{"$f":"ZZZ__FnCalls!F123","v":"Sep 2019"},{"$f":"ZZZ__FnCalls!F124","v":"Oct 2019"},{"$f":"ZZZ__FnCalls!F125","v":"Nov 2019"},{"$f":"ZZZ__FnCalls!F126","v":"Dec 2019"},{"$f":"ZZZ__FnCalls!H115","v":"2019"},{"$f":"ZZZ__FnCalls!F127","v":"Jan 2020"},{"$f":"ZZZ__FnCalls!F128","v":"Feb 2020"},{"$f":"ZZZ__FnCalls!F129","v":"Mar 2020"},{"$f":"ZZZ__FnCalls!F130","v":"Apr 2020"},{"$f":"ZZZ__FnCalls!F131","v":"May 2020"},{"$f":"ZZZ__FnCalls!F132","v":"Jun 2020"},{"$f":"ZZZ__FnCalls!F133","v":"Jul 2020"},{"$f":"ZZZ__FnCalls!F134","v":"Aug 2020"},{"$f":"ZZZ__FnCalls!F135","v":"Sep 2020"},{"$f":"ZZZ__FnCalls!F136","v":"Oct 2020"},{"$f":"ZZZ__FnCalls!F137","v":"Nov 2020"},{"$f":"ZZZ__FnCalls!F138","v":"Dec 2020"},{"$f":"ZZZ__FnCalls!H127","v":"2020"}]
[{"$f":"Labels!B74","v":"Aggregate Demand Shock"},{"$f":"B13","v":{"v":-47826.12239747987,"d":"($47,826)"}},{"v":-12147.242293527079,"d":"($12,147)"},{"v":-106.89191098064019,"d":"($107)"},{"v":10918.131004543677,"d":"$10,918"},{"v":58586.33774658585,"d":"$58,586"},{"v":17482.166736717027,"d":"$17,482"},{"v":-1854.1225471585192,"d":"($1,854)"},{"v":22662.406731937408,"d":"$22,662"},{"v":-34342.3812935592,"d":"($34,342)"},{"v":23791.24168096148,"d":"$23,791"},{"v":-37866.899338643074,"d":"($37,867)"},{"v":6565.067257923215,"d":"$6,565"},{"$f":"SUM(B13:M13)","v":{"v":5861.691377320271,"d":"$5,862"}},{"$f":"O13","v":{"v":49316.31058484056,"d":"$49,316"}},{"v":-26206.63835261835,"d":"($26,207)"},{"v":-50190.35526700914,"d":"($50,190)"},{"v":13494.08392673475,"d":"$13,494"},{"v":2341.9717858087356,"d":"$2,342"},{"v":50139.150355975755,"d":"$50,139"},{"v":-3523.713359845038,"d":"($3,524)"},{"v":4639.762988391762,"d":"$4,640"},{"v":45137.49747038213,"d":"$45,137"},{"v":-26010.356503179744,"d":"($26,010)"},{"v":-39735.43977656171,"d":"($39,735)"},{"v":-21295.2760376979,"d":"($21,295)"},{"$f":"SUM(O13:Z13)","v":{"v":-1893.0021847781827,"d":"($1,893)"}},{"$f":"AB13","v":{"v":636.4699105935076,"d":"$636"}},{"v":3520.846300335343,"d":"$3,521"},{"v":-19093.492536519312,"d":"($19,093)"},{"v":-6639.504268632639,"d":"($6,640)"},{"v":-29895.746727700436,"d":"($29,896)"},{"v":-21050.160131042598,"d":"($21,050)"},{"v":19312.793640394626,"d":"$19,313"},{"v":14522.193897137517,"d":"$14,522"},{"v":-16542.957061793757,"d":"($16,543)"},{"v":1066.2226173895515,"d":"$1,066"},{"v":39153.912477895174,"d":"$39,154"},{"v":35723.151672023945,"d":"$35,723"},{"$f":"SUM(AB13:AM13)","v":{"v":20713.72979008092,"d":"$20,714"}},{"$f":"AO13","v":{"v":31389.104489253266,"d":"$31,389"}},{"v":3547.6973678113495,"d":"$3,548"},{"v":1987.688297976637,"d":"$1,988"},{"v":-33787.29192555955,"d":"($33,787)"},{"v":-33041.495697637736,"d":"($33,041)"},{"v":-11036.515401573793,"d":"($11,037)"},{"v":16981.407860811873,"d":"$16,981"},{"v":2761.0256622856828,"d":"$2,761"},{"v":6275.8128024413045,"d":"$6,276"},{"v":2090.7976827305765,"d":"$2,091"},{"v":14475.285587071688,"d":"$14,475"},{"v":8281.62150424434,"d":"$8,282"},{"$f":"SUM(AO13:AZ13)","v":{"v":9925.138229855642,"d":"$9,925"}},{"$f":"BB13","v":{"v":-14667.88489040115,"d":"($14,668)"}},{"v":30626.609273492635,"d":"$30,627"},{"v":40300.81438590215,"d":"$40,301"},{"v":13211.060264784506,"d":"$13,211"},{"v":11325.663854652426,"d":"$11,326"},{"v":34569.44689892065,"d":"$34,569"},{"v":-23701.08034938772,"d":"($23,701)"},{"v":-573.034943345643,"d":"($573)"},{"v":19175.59923627364,"d":"$19,176"},{"v":16666.909854881127,"d":"$16,667"},{"v":18280.927497378412,"d":"$18,281"},{"v":-6878.743440575849,"d":"($6,879)"},{"$f":"SUM(BB13:BM13)","v":{"v":138336.2876425752,"d":"$138,336"}},{"$f":"BO13","v":{"v":22314.646906610255,"d":"$22,315"}},{"v":41179.01997706538,"d":"$41,179"},{"v":28433.97976668102,"d":"$28,434"},{"v":55476.70817711031,"d":"$55,477"},{"v":18226.98142005088,"d":"$18,227"},{"v":1768.397291898762,"d":"$1,768"},{"v":14963.378685508858,"d":"$14,963"},{"v":42582.87442747298,"d":"$42,583"},{"v":27886.85003363278,"d":"$27,887"},{"v":27024.163683555773,"d":"$27,024"},{"v":-8702.146137753369,"d":"($8,702)"},{"v":-41685.72947905753,"d":"($41,686)"},{"$f":"SUM(BO13:BZ13)","v":{"v":229469.12475277606,"d":"$229,469"}},{"$f":"CB13","v":{"v":-13512.465360995671,"d":"($13,512)"}},{"v":2150.0341917952605,"d":"$2,150"},{"v":-33155.004126574786,"d":"($33,155)"},{"v":8578.435614348864,"d":"$8,578"},{"v":-4009.560647062104,"d":"($4,010)"},{"v":57781.90173417524,"d":"$57,782"},{"v":3405.371164851308,"d":"$3,405"},{"v":-20740.182167968407,"d":"($20,740)"},{"v":19234.783204623796,"d":"$19,235"},{"v":29272.58872109821,"d":"$29,273"},{"v":-31564.99819338751,"d":"($31,565)"},{"v":41455.4804076309,"d":"$41,455"},{"$f":"SUM(CB13:CM13)","v":{"v":58896.384542535096,"d":"$58,896"}},{"$f":"CO13","v":{"v":43129.597868967154,"d":"$43,130"}},{"v":9066.540752109511,"d":"$9,067"},{"v":21971.0708884695,"d":"$21,971"},{"v":19013.93988970874,"d":"$19,014"},{"v":-61877.7210881121,"d":"($61,878)"},{"v":-3175.8531729943998,"d":"($3,176)"},{"v":35168.6573155556,"d":"$35,169"},{"v":821.9580551133652,"d":"$822"},{"v":-56566.26002936249,"d":"($56,566)"},{"v":38663.23856319008,"d":"$38,663"},{"v":60572.49840844595,"d":"$60,572"},{"v":-24057.179052346957,"d":"($24,057)"},{"$f":"SUM(CO13:CZ13)","v":{"v":82730.48839874395,"d":"$82,730"}},{"$f":"DB13","v":{"v":59961.26686321616,"d":"$59,961"}},{"v":-19308.69953258576,"d":"($19,309)"},{"v":-33531.842027662155,"d":"($33,532)"},{"v":-9581.044171254955,"d":"($9,581)"},{"v":3517.8400048674716,"d":"$3,518"},{"v":-18572.480878614086,"d":"($18,572)"},{"v":-4047.8077120112143,"d":"($4,048)"},{"v":-36196.87308398939,"d":"($36,197)"},{"v":55175.034876394304,"d":"$55,175"},{"v":-13604.60571868624,"d":"($13,605)"},{"v":48692.538176480055,"d":"$48,693"},{"v":-7735.1744308499265,"d":"($7,735)"},{"$f":"SUM(DB13:DM13)","v":{"v":24768.15236530426,"d":"$24,768"}},{"$f":"DO13","v":{"v":-45711.271245999,"d":"($45,711)"}},{"v":-34269.24194317531,"d":"($34,269)"},{"v":52450.049152790794,"d":"$52,450"},{"v":42795.13376564081,"d":"$42,795"},{"v":-12909.788866204777,"d":"($12,910)"},{"v":42883.77042766165,"d":"$42,884"},{"v":37758.458049607594,"d":"$37,758"},{"v":6155.999675714803,"d":"$6,156"},{"v":19986.317560497893,"d":"$19,986"},{"v":-42096.0353961158,"d":"($42,096)"},{"v":13505.23223156322,"d":"$13,505"},{"v":1336.5476862630449,"d":"$1,337"},{"$f":"SUM(DO13:DZ13)","v":{"v":81885.17109824493,"d":"$81,885"}},{"$f":"EB13","v":{"v":-46702.155924081315,"d":"($46,702)"}},{"v":-43351.923745022665,"d":"($43,352)"},{"v":19217.92601241737,"d":"$19,218"},{"v":-17020.093885932187,"d":"($17,020)"},{"v":-22725.841066158075,"d":"($22,726)"},{"v":3901.3266592372383,"d":"$3,901"},{"v":40583.41578620538,"d":"$40,583"},{"v":-25694.726587136447,"d":"($25,695)"},{"v":4921.320562465405,"d":"$4,921"},{"v":-46537.00851936002,"d":"($46,537)"},{"v":-24510.96496596736,"d":"($24,511)"},{"v":47202.37987082547,"d":"$47,202"},{"$f":"SUM(EB13:EM13)","v":{"v":-110716.34580250722,"d":"($110,716)"}}]
[{"$f":"Labels!B78","v":"Output Shock"},{"$f":"B46","v":{"v":11758.316593461632,"d":"$11,758"}},{"v":-59683.13891333726,"d":"($59,683)"},{"v":-4352.629456698201,"d":"($4,353)"},{"v":-22165.14944067272,"d":"($22,165)"},{"v":4001.4969493792887,"d":"$4,001"},{"v":-41382.751594916896,"d":"($41,383)"},{"v":30891.732826672134,"d":"$30,892"},{"v":-12550.131232496171,"d":"($12,550)"},{"v":99.28930895963411,"d":"$99"},{"v":41788.32537218323,"d":"$41,788"},{"v":17399.98767225617,"d":"$17,400"},{"v":35158.739478892385,"d":"$35,159"},{"$f":"SUM(B46:M46)","v":{"v":964.0875636832061,"d":"$964"}},{"$f":"O46","v":{"v":22703.38346955329,"d":"$22,703"}},{"v":2050.754564524483,"d":"$2,051"},{"v":11843.903193094318,"d":"$11,844"},{"v":-15088.092925849496,"d":"($15,088)"},{"v":-16754.285603963814,"d":"($16,754)"},{"v":56176.070984542006,"d":"$56,176"},{"v":-5870.613891561926,"d":"($5,871)"},{"v":31705.424151273197,"d":"$31,705"},{"v":-42008.41772422307,"d":"($42,008)"},{"v":6982.826056893598,"d":"$6,983"},{"v":-43732.35597461533,"d":"($43,732)"},{"v":49539.31187615868,"d":"$49,539"},{"$f":"SUM(O46:Z46)","v":{"v":57547.90817582594,"d":"$57,548"}},{"$f":"AB46","v":{"v":30349.56000080791,"d":"$30,350"}},{"v":-41730.16950757349,"d":"($41,730)"},{"v":-4972.564033788966,"d":"($4,973)"},{"v":-10793.659815431485,"d":"($10,794)"},{"v":-52338.66901488088,"d":"($52,339)"},{"v":26416.66328950417,"d":"$26,417"},{"v":21583.482477984806,"d":"$21,583"},{"v":-24828.982601987274,"d":"($24,829)"},{"v":49934.710363580045,"d":"$49,935"},{"v":26736.833704616478,"d":"$26,737"},{"v":-3726.18158272627,"d":"($3,726)"},{"v":50101.16940634804,"d":"$50,101"},{"$f":"SUM(AB46:AM46)","v":{"v":66732.19268645307,"d":"$66,732"}},{"$f":"AO46","v":{"v":1942.9984486911824,"d":"$1,943"}},{"v":-3683.518400507295,"d":"($3,684)"},{"v":27036.588508188892,"d":"$27,037"},{"v":-9503.629984800758,"d":"($9,504)"},{"v":32560.47945925333,"d":"$32,560"},{"v":2093.0780256345506,"d":"$2,093"},{"v":-17583.36454167255,"d":"($17,583)"},{"v":-8370.59937424925,"d":"($8,371)"},{"v":4809.330795596237,"d":"$4,809"},{"v":51737.88576174847,"d":"$51,738"},{"v":-5402.975741255465,"d":"($5,403)"},{"v":-42984.09328882783,"d":"($42,984)"},{"$f":"SUM(AO46:AZ46)","v":{"v":32652.179667799515,"d":"$32,652"}},{"$f":"BB46","v":{"v":-33778.06765055262,"d":"($33,778)"}},{"v":32427.410984597835,"d":"$32,427"},{"v":34887.20997071134,"d":"$34,887"},{"v":-6753.825200745093,"d":"($6,754)"},{"v":25208.492275220848,"d":"$25,208"},{"v":-2020.259053831673,"d":"($2,020)"},{"v":26476.434058057792,"d":"$26,476"},{"v":17033.887951331217,"d":"$17,034"},{"v":-4597.838277808737,"d":"($4,598)"},{"v":-13098.82551186987,"d":"($13,099)"},{"v":-5076.316796373514,"d":"($5,076)"},{"v":4780.511173899094,"d":"$4,781"},{"$f":"SUM(BB46:BM46)","v":{"v":75488.81392263662,"d":"$75,489"}},{"$f":"BO46","v":{"v":-54395.610269582525,"d":"($54,396)"}},{"v":50481.767926379674,"d":"$50,482"},{"v":38218.24343724087,"d":"$38,218"},{"v":60206.604191216175,"d":"$60,207"},{"v":-7100.3639277003,"d":"($7,100)"},{"v":54141.19260570231,"d":"$54,141"},{"v":-2207.6538663552165,"d":"($2,208)"},{"v":-54121.34713447715,"d":"($54,121)"},{"v":11736.945222521472,"d":"$11,737"},{"v":-34408.54327272898,"d":"($34,409)"},{"v":-15349.139438950786,"d":"($15,349)"},{"v":15175.057182625304,"d":"$15,175"},{"$f":"SUM(BO46:BZ46)","v":{"v":62377.15265589085,"d":"$62,377"}},{"$f":"CB46","v":{"v":-49117.089688039356,"d":"($49,117)"}},{"v":34546.50669104812,"d":"$34,547"},{"v":-15367.043945833258,"d":"($15,367)"},{"v":-29041.433156828047,"d":"($29,041)"},{"v":19862.684793012784,"d":"$19,863"},{"v":629.0674379333241,"d":"$629"},{"v":7817.447664359945,"d":"$7,817"},{"v":-32792.07969609547,"d":"($32,792)"},{"v":58877.944783514475,"d":"$58,878"},{"v":-20525.3184968725,"d":"($20,525)"},{"v":21405.24658505235,"d":"$21,405"},{"v":-42398.83668957733,"d":"($42,399)"},{"$f":"SUM(CB46:CM46)","v":{"v":-46102.903718324975,"d":"($46,103)"}},{"$f":"CO46","v":{"v":17306.50917396096,"d":"$17,307"}},{"v":-15148.09744179057,"d":"($15,148)"},{"v":42430.806882761666,"d":"$42,431"},{"v":-33437.37231767393,"d":"($33,437)"},{"v":15912.014307618572,"d":"$15,912"},{"v":32703.928900611943,"d":"$32,704"},{"v":36682.857006804974,"d":"$36,683"},{"v":15769.620626744896,"d":"$15,770"},{"v":-51142.60340580129,"d":"($51,143)"},{"v":6934.934340261586,"d":"$6,935"},{"v":-19148.79034708198,"d":"($19,149)"},{"v":39316.68780598005,"d":"$39,317"},{"$f":"SUM(CO46:CZ46)","v":{"v":88180.49553239689,"d":"$88,180"}},{"$f":"DB46","v":{"v":31286.258161448473,"d":"$31,286"}},{"v":-2572.0090726341914,"d":"($2,572)"},{"v":-17303.690384799876,"d":"($17,304)"},{"v":59562.43041330034,"d":"$59,562"},{"v":2269.329147919628,"d":"$2,269"},{"v":121.49074262293075,"d":"$121"},{"v":36627.71708306296,"d":"$36,628"},{"v":-24519.254374956516,"d":"($24,519)"},{"v":43834.50526278408,"d":"$43,835"},{"v":32672.577668372644,"d":"$32,673"},{"v":-15016.705682566517,"d":"($15,017)"},{"v":28550.712878679187,"d":"$28,551"},{"$f":"SUM(DB46:DM46)","v":{"v":175513.36184323314,"d":"$175,513"}},{"$f":"DO46","v":{"v":33130.97982114229,"d":"$33,131"}},{"v":-20301.053576067785,"d":"($20,301)"},{"v":19681.285093904466,"d":"$19,681"},{"v":-23102.421092006374,"d":"($23,102)"},{"v":20302.38690527618,"d":"$20,302"},{"v":39411.10744266698,"d":"$39,411"},{"v":-5189.88190737059,"d":"($5,190)"},{"v":-23061.565374546713,"d":"($23,062)"},{"v":2823.9105922044837,"d":"$2,824"},{"v":4936.531133226399,"d":"$4,937"},{"v":36261.44859183239,"d":"$36,261"},{"v":-3799.2985526058483,"d":"($3,799)"},{"$f":"SUM(DO46:DZ46)","v":{"v":81093.42907765588,"d":"$81,093"}},{"$f":"EB46","v":{"v":29792.24203229446,"d":"$29,792"}},{"v":-34108.59902600158,"d":"($34,109)"},{"v":-5941.831873487964,"d":"($5,942)"},{"v":-30436.136372408946,"d":"($30,436)"},{"v":47908.938997866775,"d":"$47,909"},{"v":-20682.676865331083,"d":"($20,683)"},{"v":1963.9534906723306,"d":"$1,964"},{"v":19824.507664377914,"d":"$19,825"},{"v":17061.86712139309,"d":"$17,062"},{"v":1839.8325883738005,"d":"$1,840"},{"v":-56398.55399474203,"d":"($56,399)"},{"v":21759.096697057677,"d":"$21,759"},{"$f":"SUM(EB46:EM46)","v":{"v":-7417.359539935562,"d":"($7,417)"}}]

{"sheet":"Formulas","index":12,"n_rows":173,"n_cols":5,"rows_kept":173,"merged":[[0,0,0,2],[1,0,1,2],[2,0,2,2],[3,0,3,2],[4,0,4,2]]}
[{"$f":"\"Equilibrium Economy with Shocks\"","v":"Equilibrium Economy with Shocks"}]
[{"$f":"\"Model: \"&Inputs!B8","v":"Model: Test Model"}]
[{"$f":"\"$ millions\"","v":"$ millions"}]
[{"$f":"\"Formulas\"","v":"Formulas"}]
[{"$f":"\"\"","v":""}]
["Variable","Display As","Dimension Index",null,"Formula / Data"]
["Capital",{"$f":"Labels!B9","v":"Capital"},"Trials","Data:","var(preve(Capital_Expon*Output_Equilib/(1/Capital_Avg_Life/periods_per(\"year\")+Interest_Rate_Long), capital+capital_investment-capital_depreciation), \"Trials\")"]
[]
["Capital_Avg_Life",{"$f":"Labels!B10","v":"Avg Life Capital"}]
[]
["Capital_Depreciation",{"$f":"Labels!B11","v":"Capital Depreciation"},"Trials","Data:","var(preve(Capital_Desired, Capital)/Capital_Avg_Life/periods_per(\"year\"), \"Trials\")"]
[]
["Capital_Depreciation_mean",{"$f":"Labels!B12","v":"Capital Depreciation"},"Global","Data:","average(ranged(\"Trials\", Capital_Depreciation))"]
[]
["Capital_Depreciation_stdev",{"$f":"Labels!B13","v":"Capital Depreciation std dev"},"Global","Data:","stdev(ranged(\"Trials\", Capital_Depreciation))"]
[]
["Capital_Desired",{"$f":"Labels!B14","v":"Desired Capital"},"Trials","Data:","var(Capital_Expon*Demand_Expected_Long/(1/Capital_Avg_Life/periods_per(\"year\")+Interest_Rate_Long), \"Trials\")"]
[]
["Capital_Desired_mean",{"$f":"Labels!B15","v":"Desired Capital"},"Global","Data:","average(ranged(\"Trials\", Capital_Desired))"]
[]
["Capital_Desired_stdev",{"$f":"Labels!B16","v":"Desired Capital std dev"},"Global","Data:","stdev(ranged(\"Trials\", Capital_Desired))"]
[]
["Capital_Equilib",{"$f":"Labels!B17","v":"Equilib Capital"},"Global","Data:","Capital_Expon*Output_Equilib/(1/Capital_Avg_Life/periods_per(\"year\")+Interest_Rate_Long)"]
[]
["Capital_Expon",{"$f":"Labels!B18","v":"Capital Exponent"}]
[]
["Capital_Investment",{"$f":"Labels!B19","v":"Capital Investment"},"Trials","Data:","var(Capital_Depreciation+(Capital_Desired-Capital)/Time_Adjust_Capital/periods_per(\"year\"), \"Trials\")"]
[]
["Capital_Investment_mean",{"$f":"Labels!B20","v":"Capital Investment"},"Global","Data:","average(ranged(\"Trials\", Capital_Investment))"]
[]
["Capital_Investment_stdev",{"$f":"Labels!B21","v":"Capital Investment std dev"},"Global","Data:","stdev(ranged(\"Trials\", Capital_Investment))"]
[]
["Capital_mean",{"$f":"Labels!B22","v":"Capital"},"Global","Data:","average(ranged(\"Trials\", Capital))"]
[]
["Capital_stdev",{"$f":"Labels!B23","v":"Capital std dev"},"Global","Data:","stdev(ranged(\"Trials\", Capital))"]
[]
["Consumption",{"$f":"Labels!B24","v":"Consumption"},"Trials","Data:","Consumption_Avg_Propensity*Income_Permanent"]
[]
["Consumption_Avg_Propensity",{"$f":"Labels!B25","v":"Avg Propensity Consume"}]
[]
["Consumption_mean",{"$f":"Labels!B26","v":"Consumption"},"Global","Data:","average(ranged(\"Trials\", Consumption))"]
[]
["Consumption_stdev",{"$f":"Labels!B27","v":"Consumption std dev"},"Global","Data:","stdev(ranged(\"Trials\", Consumption))"]
[]
["Demand_Aggregate",{"$f":"Labels!B28","v":"Aggregate Demand"},"Trials","Data:","Final_Sales+0+Shock_Aggregate_Demand"]
[]
["Demand_Aggregate_mean",{"$f":"Labels!B29","v":"Aggregate Demand"},"Global","Data:","average(ranged(\"Trials\", Demand_Aggregate))"]
[]
["Demand_Aggregate_stdev",{"$f":"Labels!B30","v":"Aggregate Demand std dev"},"Global","Data:","stdev(ranged(\"Trials\", Demand_Aggregate))"]
[]
["Demand_Expected_Long",{"$f":"Labels!B31","v":"Long Expected Demand"},"Trials","Data:","preve(Output_Equilib)+dt*preve(0, Demand_Aggregate-Demand_Expected_Long)/Time_Smooth_Long_Demand/periods_per(\"year\")"]
[]
["Demand_Expected_Long_mean",{"$f":"Labels!B32","v":"Long Expected Demand"},"Global","Data:","average(ranged(\"Trials\", Demand_Expected_Long))"]
[]
["Demand_Expected_Long_stdev",{"$f":"Labels!B33","v":"Long Expected Demand std dev"},"Global","Data:","stdev(ranged(\"Trials\", Demand_Expected_Long))"]
[]
["Demand_Expected_Short",{"$f":"Labels!B34","v":"Short Expected Demand"},"Trials","Data:","preve(Output_Equilib)+dt*preve(0, Demand_Aggregate-Demand_Expected_Short)/Time_Smooth_Short_Demand/periods_per(\"year\")"]
[]
["Demand_Expected_Short_mean",{"$f":"Labels!B35","v":"Short Expected Demand"},"Global","Data:","average(ranged(\"Trials\", Demand_Expected_Short))"]
[]
["Demand_Expected_Short_stdev",{"$f":"Labels!B36","v":"Short Expected Demand std dev"},"Global","Data:","stdev(ranged(\"Trials\", Demand_Expected_Short))"]
[]
["dt",{"$f":"Labels!B37","v":"dt"},"Global","Data:","1/periods_per(\"year\")"]
[]
["Employment",{"$f":"Labels!B38","v":"Employment"},"Trials","Data:","preve(Employment_Equilib)+dt*preve(0, Employment_Desired-Employment)/Time_Adjust_Employment/periods_per(\"year\")"]
[]
["Employment_Desired",{"$f":"Labels!B39","v":"Desired Employment"},"Trials","Data:","var((1-Capital_Expon)*Demand_Expected_Short/Real_Wage_Equilib, \"Trials\")"]
[]
["Employment_Desired_mean",{"$f":"Labels!B40","v":"Desired Employment"},"Global","Data:","average(ranged(\"Trials\", Employment_Desired))"]
[]
["Employment_Desired_stdev",{"$f":"Labels!B41","v":"Desired Employment std dev"},"Global","Data:","stdev(ranged(\"Trials\", Employment_Desired))"]
[]
["Employment_Equilib",{"$f":"Labels!B42","v":"Equilibrium Employment"}]
[]
["Employment_mean",{"$f":"Labels!B43","v":"Employment"},"Global","Data:","average(ranged(\"Trials\", Employment))"]
[]
["Employment_stdev",{"$f":"Labels!B44","v":"Employment std dev"},"Global","Data:","stdev(ranged(\"Trials\", Employment))"]
[]
["Final_Sales",{"$f":"Labels!B45","v":"Final Sales"},"Trials","Data:","Consumption+Capital_Investment+Gov_Spending"]
[]
["Final_Sales_mean",{"$f":"Labels!B46","v":"Final Sales"},"Global","Data:","average(ranged(\"Trials\", Final_Sales))"]
[]
["Final_Sales_stdev",{"$f":"Labels!B47","v":"Final Sales std dev"},"Global","Data:","stdev(ranged(\"Trials\", Final_Sales))"]
[]
["Flexibility_Capacity_Utilization",{"$f":"Labels!B48","v":"Flexibility Capacity Utilization"}]
[]
["Gov_Spend_Equilib",{"$f":"Labels!B49","v":"Equilib Gov Spending"},"Global","Data:","Gov_Spend_Equilib_pct*Output_Equilib"]
[]
["Gov_Spend_Equilib_pct",{"$f":"Labels!B50","v":"Equilibrium Gov Spend %"}]
[]
["Gov_Spending",{"$f":"Labels!B51","v":"Gov Spending"},"Trials","Data:","Gov_Spend_Equilib"]
[]
["Gov_Transfers",{"$f":"Labels!B52","v":"Gov Transfers"},"Trials","Data:","Gov_Transfers_Equilib"]
[]
["Gov_Transfers_Equilib",{"$f":"Labels!B53","v":"Equilib Gov Transfers"},"Global","Data:","Gov_Transfers_Equilib_pct*Output_Equilib"]
[]
["Gov_Transfers_Equilib_pct",{"$f":"Labels!B54","v":"Equilibrium Gov Transfers %"}]
[]
["Income_Current_Disposable",{"$f":"Labels!B55","v":"Current Disposable Income"},"Trials","Data:","Output-Tax+Gov_Transfers"]
[]
["Income_Current_Disposable_mean",{"$f":"Labels!B56","v":"Current Disposable Income"},"Global","Data:","average(ranged(\"Trials\", Income_Current_Disposable))"]
[]
["Income_Current_Disposable_stdev",{"$f":"Labels!B57","v":"Cur Disposable Income std dev"},"Global","Data:","stdev(ranged(\"Trials\", Income_Current_Disposable))"]
[]
["Income_Permanent",{"$f":"Labels!B58","v":"Permanent Income"},"Trials","Data:","var(preve(Output_Equilib-Gov_Spend_Equilib)+dt*preve(0, Income_Current_Disposable-Income_Permanent)/Time_Smooth_Income/periods_per(\"year\"), \"Trials\")"]
[]
["Income_Permanent_mean",{"$f":"Labels!B59","v":"Permanent Income"},"Global","Data:","average(ranged(\"Trials\", Income_Permanent))"]
[]
["Income_Permanent_stdev",{"$f":"Labels!B60","v":"Permanent Income std dev"},"Global","Data:","stdev(ranged(\"Trials\", Income_Permanent))"]
[]
["Interest_Rate_Long",{"$f":"Labels!B61","v":"Long Interest Rate"},"Global","Data:","(1+Interest_Rate_Long_Yr)^(1/periods_per(\"year\"))-1"]
[]
["Interest_Rate_Long_Yr",{"$f":"Labels!B62","v":"Long Annual Interest Rate"}]
[]
["Model_Name",{"$f":"Labels!B63","v":"Model Name"}]
[]
["Output",{"$f":"Labels!B64","v":"Output"},"Trials","Data:","var(Output_Potential*(1-Flexibility_Capacity_Utilization)+Demand_Expected_Short*Flexibility_Capacity_Utilization+Shock_Output, \"Trials\")"]
[]
["Output_Equilib",{"$f":"Labels!B65","v":"Equilibrium Output"},"Global","Data:","Output_Equilib_Yr/periods_per(\"year\")"]
[]
["Output_Equilib_Yr",{"$f":"Labels!B66","v":"Equilibrium Annual Output"},"Global","Data:","14*10^6"]
[]
["Output_mean",{"$f":"Labels!B67","v":"Output"},"Global","Data:","average(ranged(\"Trials\", Output))"]
[]
["Output_Potential",{"$f":"Labels!B68","v":"Potential Output"},"Trials","Data:","var(Output_Equilib*(Employment/Employment_Equilib)^(1-Capital_Expon)*(Capital/Capital_Equilib)^Capital_Expon, \"Trials\")"]
[]
["Output_Potential_mean",{"$f":"Labels!B69","v":"Potential Output"},"Global","Data:","average(ranged(\"Trials\", Output_Potential))"]
[]
["Output_Potential_stdev",{"$f":"Labels!B70","v":"Potential Output std dev"},"Global","Data:","stdev(ranged(\"Trials\", Output_Potential))"]
[]
["Output_stdev",{"$f":"Labels!B71","v":"Output std dev"},"Global","Data:","stdev(ranged(\"Trials\", Output))"]
[]
["Real_Wage_Equilib",{"$f":"Labels!B72","v":"Equilib Real Wage"},"Global","Data:","Real_Wage_Equilib_pct*Output_Equilib/Employment_Equilib"]
[]
["Real_Wage_Equilib_pct",{"$f":"Labels!B73","v":"Equilibrium Real Wage %"}]
[]
["Shock_Aggregate_Demand",{"$f":"Labels!B74","v":"Aggregate Demand Shock"},"Trials","Data:","var(norminv(rand()*(1-2*Shock_Cutoff)+Shock_Cutoff, 0.0, Shock_Std_Dev), \"Trials\")"]
[]
["Shock_Aggregate_Demand_mean",{"$f":"Labels!B75","v":"Aggregate Demand Shock"},"Global","Data:","average(ranged(\"Trials\", Shock_Aggregate_Demand))"]
[]
["Shock_Aggregate_Demand_stdev",{"$f":"Labels!B76","v":"Aggregate Demand Shock std dev"},"Global","Data:","stdev(ranged(\"Trials\", Shock_Aggregate_Demand))"]
[]
["Shock_Cutoff",{"$f":"Labels!B77","v":"Shock_Cutoff"}]
[]
["Shock_Output",{"$f":"Labels!B78","v":"Output Shock"},"Trials","Data:","var(norminv(rand()*(1-2*Shock_Cutoff)+Shock_Cutoff, 0.0, Shock_Std_Dev), \"Trials\")"]
[]
["Shock_Output_mean",{"$f":"Labels!B79","v":"Output Shock"},"Global","Data:","average(ranged(\"Trials\", Shock_Output))"]
[]
["Shock_Output_stdev",{"$f":"Labels!B80","v":"Output Shock std dev"},"Global","Data:","stdev(ranged(\"Trials\", Shock_Output))"]
[]
["Shock_Std_Dev",{"$f":"Labels!B81","v":"Shock_Std_Dev"},"Global","Data:","Shock_Std_Dev_pct*sqrt(dt)*Output_Equilib"]
[]
["Shock_Std_Dev_pct",{"$f":"Labels!B82","v":"Shock Std Deviation %"}]
[]
["Tax",{"$f":"Labels!B83","v":"Tax"},"Trials","Data:","var(Tax_Rate*Output, \"Trials\")"]
[]
["Tax_mean",{"$f":"Labels!B84","v":"Tax"},"Global","Data:","average(ranged(\"Trials\", Tax))"]
[]
["Tax_Rate",{"$f":"Labels!B85","v":"Tax Rate"},"Global","Data:","(Gov_Spend_Equilib+Gov_Transfers_Equilib)/Output_Equilib"]
[]
["Tax_stdev",{"$f":"Labels!B86","v":"Tax std dev"},"Global","Data:","stdev(ranged(\"Trials\", Tax))"]
[]
["Time",{"$f":"Labels!B87","v":"Time"},"Global","Data:","preve(0)+1/periods_per(\"year\")"]
[]
["Time_Adjust_Capital",{"$f":"Labels!B88","v":"Time Adjust Capital"}]
[]
["Time_Adjust_Employment",{"$f":"Labels!B89","v":"Time Adjust Employment"}]
[]
["Time_Smooth_Income",{"$f":"Labels!B90","v":"Time Smooth Income"}]
[]
["Time_Smooth_Long_Demand",{"$f":"Labels!B91","v":"Time Smooth Long Demand"}]
[]
["Time_Smooth_Short_Demand",{"$f":"Labels!B92","v":"Time Smooth Short Demand"}]

{"sheet":"(Intermediate Computations)","index":13,"n_rows":239,"n_cols":144,"rows_kept":239,"hidden":true,"merged":[[0,0,0,2],[1,0,1,2],[2,0,2,2],[3,0,3,2],[4,0,4,2]]}
[{"$f":"\"Equilibrium Economy with Shocks\"","v":"Equilibrium Economy with Shocks"}]
[{"$f":"\"Model: \"&Inputs!B8","v":"Model: Test Model"}]
[{"$f":"\"$ millions\"","v":"$ millions"}]
[{"$f":"\"(Intermediate Computations)\"","v":"(Intermediate Computations)"}]
[{"$f":"\"\"","v":""}]
[{"$f":"\"Demand_Aggregate_mean_1\"","v":"Demand_Aggregate_mean_1"}]
[null,{"$f":"ZZZ__FnCalls!F7","v":"Jan 2010"},{"$f":"ZZZ__FnCalls!F8","v":"Feb 2010"},{"$f":"ZZZ__FnCalls!F9","v":"Mar 2010"},{"$f":"ZZZ__FnCalls!F10","v":"Apr 2010"},{"$f":"ZZZ__FnCalls!F11","v":"May 2010"},{"$f":"ZZZ__FnCalls!F12","v":"Jun 2010"},{"$f":"ZZZ__FnCalls!F13","v":"Jul 2010"},{"$f":"ZZZ__FnCalls!F14","v":"Aug 2010"},{"$f":"ZZZ__FnCalls!F15","v":"Sep 2010"},{"$f":"ZZZ__FnCalls!F16","v":"Oct 2010"},{"$f":"ZZZ__FnCalls!F17","v":"Nov 2010"},{"$f":"ZZZ__FnCalls!F18","v":"Dec 2010"},{"$f":"ZZZ__FnCalls!H7","v":"2010"},{"$f":"ZZZ__FnCalls!F19","v":"Jan 2011"},{"$f":"ZZZ__FnCalls!F20","v":"Feb 2011"},{"$f":"ZZZ__FnCalls!F21","v":"Mar 2011"},{"$f":"ZZZ__FnCalls!F22","v":"Apr 2011"},{"$f":"ZZZ__FnCalls!F23","v":"May 2011"},{"$f":"ZZZ__FnCalls!F24","v":"Jun 2011"},{"$f":"ZZZ__FnCalls!F25","v":"Jul 2011"},{"$f":"ZZZ__FnCalls!F26","v":"Aug 2011"},{"$f":"ZZZ__FnCalls!F27","v":"Sep 2011"},{"$f":"ZZZ__FnCalls!F28","v":"Oct 2011"},{"$f":"ZZZ__FnCalls!F29","v":"Nov 2011"},{"$f":"ZZZ__FnCalls!F30","v":"Dec 2011"},{"$f":"ZZZ__FnCalls!H19","v":"2011"},{"$f":"ZZZ__FnCalls!F31","v":"Jan 2012"},{"$f":"ZZZ__FnCalls!F32","v":"Feb 2012"},{"$f":"ZZZ__FnCalls!F33","v":"Mar 2012"},{"$f":"ZZZ__FnCalls!F34","v":"Apr 2012"},{"$f":"ZZZ__FnCalls!F35","v":"May 2012"},{"$f":"ZZZ__FnCalls!F36","v":"Jun 2012"},{"$f":"ZZZ__FnCalls!F37","v":"Jul 2012"},{"$f":"ZZZ__FnCalls!F38","v":"Aug 2012"},{"$f":"ZZZ__FnCalls!F39","v":"Sep 2012"},{"$f":"ZZZ__FnCalls!F40","v":"Oct 2012"},{"$f":"ZZZ__FnCalls!F41","v":"Nov 2012"},{"$f":"ZZZ__FnCalls!F42","v":"Dec 2012"},{"$f":"ZZZ__FnCalls!H31","v":"2012"},{"$f":"ZZZ__FnCalls!F43","v":"Jan 2013"},{"$f":"ZZZ__FnCalls!F44","v":"Feb 2013"},{"$f":"ZZZ__FnCalls!F45","v":"Mar 2013"},{"$f":"ZZZ__FnCalls!F46","v":"Apr 2013"},{"$f":"ZZZ__FnCalls!F47","v":"May 2013"},{"$f":"ZZZ__FnCalls!F48","v":"Jun 2013"},{"$f":"ZZZ__FnCalls!F49","v":"Jul 2013"},{"$f":"ZZZ__FnCalls!F50","v":"Aug 2013"},{"$f":"ZZZ__FnCalls!F51","v":"Sep 2013"},{"$f":"ZZZ__FnCalls!F52","v":"Oct 2013"},{"$f":"ZZZ__FnCalls!F53","v":"Nov 2013"},{"$f":"ZZZ__FnCalls!F54","v":"Dec 2013"},{"$f":"ZZZ__FnCalls!H43","v":"2013"},{"$f":"ZZZ__FnCalls!F55","v":"Jan 2014"},{"$f":"ZZZ__FnCalls!F56","v":"Feb 2014"},{"$f":"ZZZ__FnCalls!F57","v":"Mar 2014"},{"$f":"ZZZ__FnCalls!F58","v":"Apr 2014"},{"$f":"ZZZ__FnCalls!F59","v":"May 2014"},{"$f":"ZZZ__FnCalls!F60","v":"Jun 2014"},{"$f":"ZZZ__FnCalls!F61","v":"Jul 2014"},{"$f":"ZZZ__FnCalls!F62","v":"Aug 2014"},{"$f":"ZZZ__FnCalls!F63","v":"Sep 2014"},{"$f":"ZZZ__FnCalls!F64","v":"Oct 2014"},{"$f":"ZZZ__FnCalls!F65","v":"Nov 2014"},{"$f":"ZZZ__FnCalls!F66","v":"Dec 2014"},{"$f":"ZZZ__FnCalls!H55","v":"2014"},{"$f":"ZZZ__FnCalls!F67","v":"Jan 2015"},{"$f":"ZZZ__FnCalls!F68","v":"Feb 2015"},{"$f":"ZZZ__FnCalls!F69","v":"Mar 2015"},{"$f":"ZZZ__FnCalls!F70","v":"Apr 2015"},{"$f":"ZZZ__FnCalls!F71","v":"May 2015"},{"$f":"ZZZ__FnCalls!F72","v":"Jun 2015"},{"$f":"ZZZ__FnCalls!F73","v":"Jul 2015"},{"$f":"ZZZ__FnCalls!F74","v":"Aug 2015"},{"$f":"ZZZ__FnCalls!F75","v":"Sep 2015"},{"$f":"ZZZ__FnCalls!F76","v":"Oct 2015"},{"$f":"ZZZ__FnCalls!F77","v":"Nov 2015"},{"$f":"ZZZ__FnCalls!F78","v":"Dec 2015"},{"$f":"ZZZ__FnCalls!H67","v":"2015"},{"$f":"ZZZ__FnCalls!F79","v":"Jan 2016"},{"$f":"ZZZ__FnCalls!F80","v":"Feb 2016"},{"$f":"ZZZ__FnCalls!F81","v":"Mar 2016"},{"$f":"ZZZ__FnCalls!F82","v":"Apr 2016"},{"$f":"ZZZ__FnCalls!F83","v":"May 2016"},{"$f":"ZZZ__FnCalls!F84","v":"Jun 2016"},{"$f":"ZZZ__FnCalls!F85","v":"Jul 2016"},{"$f":"ZZZ__FnCalls!F86","v":"Aug 2016"},{"$f":"ZZZ__FnCalls!F87","v":"Sep 2016"},{"$f":"ZZZ__FnCalls!F88","v":"Oct 2016"},{"$f":"ZZZ__FnCalls!F89","v":"Nov 2016"},{"$f":"ZZZ__FnCalls!F90","v":"Dec 2016"},{"$f":"ZZZ__FnCalls!H79","v":"2016"},{"$f":"ZZZ__FnCalls!F91","v":"Jan 2017"},{"$f":"ZZZ__FnCalls!F92","v":"Feb 2017"},{"$f":"ZZZ__FnCalls!F93","v":"Mar 2017"},{"$f":"ZZZ__FnCalls!F94","v":"Apr 2017"},{"$f":"ZZZ__FnCalls!F95","v":"May 2017"},{"$f":"ZZZ__FnCalls!F96","v":"Jun 2017"},{"$f":"ZZZ__FnCalls!F97","v":"Jul 2017"},{"$f":"ZZZ__FnCalls!F98","v":"Aug 2017"},{"$f":"ZZZ__FnCalls!F99","v":"Sep 2017"},{"$f":"ZZZ__FnCalls!F100","v":"Oct 2017"},{"$f":"ZZZ__FnCalls!F101","v":"Nov 2017"},{"$f":"ZZZ__FnCalls!F102","v":"Dec 2017"},{"$f":"ZZZ__FnCalls!H91","v":"2017"},{"$f":"ZZZ__FnCalls!F103","v":"Jan 2018"},{"$f":"ZZZ__FnCalls!F104","v":"Feb 2018"},{"$f":"ZZZ__FnCalls!F105","v":"Mar 2018"},{"$f":"ZZZ__FnCalls!F106","v":"Apr 2018"},{"$f":"ZZZ__FnCalls!F107","v":"May 2018"},{"$f":"ZZZ__FnCalls!F108","v":"Jun 2018"},{"$f":"ZZZ__FnCalls!F109","v":"Jul 2018"},{"$f":"ZZZ__FnCalls!F110","v":"Aug 2018"},{"$f":"ZZZ__FnCalls!F111","v":"Sep 2018"},{"$f":"ZZZ__FnCalls!F112","v":"Oct 2018"},{"$f":"ZZZ__FnCalls!F113","v":"Nov 2018"},{"$f":"ZZZ__FnCalls!F114","v":"Dec 2018"},{"$f":"ZZZ__FnCalls!H103","v":"2018"},{"$f":"ZZZ__FnCalls!F115","v":"Jan 2019"},{"$f":"ZZZ__FnCalls!F116","v":"Feb 2019"},{"$f":"ZZZ__FnCalls!F117","v":"Mar 2019"},{"$f":"ZZZ__FnCalls!F118","v":"Apr 2019"},{"$f":"ZZZ__FnCalls!F119","v":"May 2019"},{"$f":"ZZZ__FnCalls!F120","v":"Jun 2019"},{"$f":"ZZZ__FnCalls!F121","v":"Jul 2019"},{"$f":"ZZZ__FnCalls!F122","v":"Aug 2019"},{"$f":"ZZZ__FnCalls!F123","v":"Sep 2019"},{"$f":"ZZZ__FnCalls!F124","v":"Oct 2019"},{"$f":"ZZZ__FnCalls!F125","v":"Nov 2019"},{"$f":"ZZZ__FnCalls!F126","v":"Dec 2019"},{"$f":"ZZZ__FnCalls!H115","v":"2019"},{"$f":"ZZZ__FnCalls!F127","v":"Jan 2020"},{"$f":"ZZZ__FnCalls!F128","v":"Feb 2020"},{"$f":"ZZZ__FnCalls!F129","v":"Mar 2020"},{"$f":"ZZZ__FnCalls!F130","v":"Apr 2020"},{"$f":"ZZZ__FnCalls!F131","v":"May 2020"},{"$f":"ZZZ__FnCalls!F132","v":"Jun 2020"},{"$f":"ZZZ__FnCalls!F133","v":"Jul 2020"},{"$f":"ZZZ__FnCalls!F134","v":"Aug 2020"},{"$f":"ZZZ__FnCalls!F135","v":"Sep 2020"},{"$f":"ZZZ__FnCalls!F136","v":"Oct 2020"},{"$f":"ZZZ__FnCalls!F137","v":"Nov 2020"},{"$f":"ZZZ__FnCalls!F138","v":"Dec 2020"},{"$f":"ZZZ__FnCalls!H127","v":"2020"}]
[null,{"$f":"ZZZ__FnCalls!A7","v":"2010-01-01"},{"$f":"ZZZ__FnCalls!A8","v":"2010-02-01"},{"$f":"ZZZ__FnCalls!A9","v":"2010-03-01"},{"$f":"ZZZ__FnCalls!A10","v":"2010-04-01"},{"$f":"ZZZ__FnCalls!A11","v":"2010-05-01"},{"$f":"ZZZ__FnCalls!A12","v":"2010-06-01"},{"$f":"ZZZ__FnCalls!A13","v":"2010-07-01"},{"$f":"ZZZ__FnCalls!A14","v":"2010-08-01"},{"$f":"ZZZ__FnCalls!A15","v":"2010-09-01"},{"$f":"ZZZ__FnCalls!A16","v":"2010-10-01"},{"$f":"ZZZ__FnCalls!A17","v":"2010-11-01"},{"$f":"ZZZ__FnCalls!A18","v":"2010-12-01"},{"$f":"ZZZ__FnCalls!A7","v":"2010-01-01"},{"$f":"ZZZ__FnCalls!A19","v":"2011-01-01"},{"$f":"ZZZ__FnCalls!A20","v":"2011-02-01"},{"$f":"ZZZ__FnCalls!A21","v":"2011-03-01"},{"$f":"ZZZ__FnCalls!A22","v":"2011-04-01"},{"$f":"ZZZ__FnCalls!A23","v":"2011-05-01"},{"$f":"ZZZ__FnCalls!A24","v":"2011-06-01"},{"$f":"ZZZ__FnCalls!A25","v":"2011-07-01"},{"$f":"ZZZ__FnCalls!A26","v":"2011-08-01"},{"$f":"ZZZ__FnCalls!A27","v":"2011-09-01"},{"$f":"ZZZ__FnCalls!A28","v":"2011-10-01"},{"$f":"ZZZ__FnCalls!A29","v":"2011-11-01"},{"$f":"ZZZ__FnCalls!A30","v":"2011-12-01"},{"$f":"ZZZ__FnCalls!A19","v":"2011-01-01"},{"$f":"ZZZ__FnCalls!A31","v":"2012-01-01"},{"$f":"ZZZ__FnCalls!A32","v":"2012-02-01"},{"$f":"ZZZ__FnCalls!A33","v":"2012-03-01"},{"$f":"ZZZ__FnCalls!A34","v":"2012-04-01"},{"$f":"ZZZ__FnCalls!A35","v":"2012-05-01"},{"$f":"ZZZ__FnCalls!A36","v":"2012-06-01"},{"$f":"ZZZ__FnCalls!A37","v":"2012-07-01"},{"$f":"ZZZ__FnCalls!A38","v":"2012-08-01"},{"$f":"ZZZ__FnCalls!A39","v":"2012-09-01"},{"$f":"ZZZ__FnCalls!A40","v":"2012-10-01"},{"$f":"ZZZ__FnCalls!A41","v":"2012-11-01"},{"$f":"ZZZ__FnCalls!A42","v":"2012-12-01"},{"$f":"ZZZ__FnCalls!A31","v":"2012-01-01"},{"$f":"ZZZ__FnCalls!A43","v":"2013-01-01"},{"$f":"ZZZ__FnCalls!A44","v":"2013-02-01"},{"$f":"ZZZ__FnCalls!A45","v":"2013-03-01"},{"$f":"ZZZ__FnCalls!A46","v":"2013-04-01"},{"$f":"ZZZ__FnCalls!A47","v":"2013-05-01"},{"$f":"ZZZ__FnCalls!A48","v":"2013-06-01"},{"$f":"ZZZ__FnCalls!A49","v":"2013-07-01"},{"$f":"ZZZ__FnCalls!A50","v":"2013-08-01"},{"$f":"ZZZ__FnCalls!A51","v":"2013-09-01"},{"$f":"ZZZ__FnCalls!A52","v":"2013-10-01"},{"$f":"ZZZ__FnCalls!A53","v":"2013-11-01"},{"$f":"ZZZ__FnCalls!A54","v":"2013-12-01"},{"$f":"ZZZ__FnCalls!A43","v":"2013-01-01"},{"$f":"ZZZ__FnCalls!A55","v":"2014-01-01"},{"$f":"ZZZ__FnCalls!A56","v":"2014-02-01"},{"$f":"ZZZ__FnCalls!A57","v":"2014-03-01"},{"$f":"ZZZ__FnCalls!A58","v":"2014-04-01"},{"$f":"ZZZ__FnCalls!A59","v":"2014-05-01"},{"$f":"ZZZ__FnCalls!A60","v":"2014-06-01"},{"$f":"ZZZ__FnCalls!A61","v":"2014-07-01"},{"$f":"ZZZ__FnCalls!A62","v":"2014-08-01"},{"$f":"ZZZ__FnCalls!A63","v":"2014-09-01"},{"$f":"ZZZ__FnCalls!A64","v":"2014-10-01"},{"$f":"ZZZ__FnCalls!A65","v":"2014-11-01"},{"$f":"ZZZ__FnCalls!A66","v":"2014-12-01"},{"$f":"ZZZ__FnCalls!A55","v":"2014-01-01"},{"$f":"ZZZ__FnCalls!A67","v":"2015-01-01"},{"$f":"ZZZ__FnCalls!A68","v":"2015-02-01"},{"$f":"ZZZ__FnCalls!A69","v":"2015-03-01"},{"$f":"ZZZ__FnCalls!A70","v":"2015-04-01"},{"$f":"ZZZ__FnCalls!A71","v":"2015-05-01"},{"$f":"ZZZ__FnCalls!A72","v":"2015-06-01"},{"$f":"ZZZ__FnCalls!A73","v":"2015-07-01"},{"$f":"ZZZ__FnCalls!A74","v":"2015-08-01"},{"$f":"ZZZ__FnCalls!A75","v":"2015-09-01"},{"$f":"ZZZ__FnCalls!A76","v":"2015-10-01"},{"$f":"ZZZ__FnCalls!A77","v":"2015-11-01"},{"$f":"ZZZ__FnCalls!A78","v":"2015-12-01"},{"$f":"ZZZ__FnCalls!A67","v":"2015-01-01"},{"$f":"ZZZ__FnCalls!A79","v":"2016-01-01"},{"$f":"ZZZ__FnCalls!A80","v":"2016-02-01"},{"$f":"ZZZ__FnCalls!A81","v":"2016-03-01"},{"$f":"ZZZ__FnCalls!A82","v":"2016-04-01"},{"$f":"ZZZ__FnCalls!A83","v":"2016-05-01"},{"$f":"ZZZ__FnCalls!A84","v":"2016-06-01"},{"$f":"ZZZ__FnCalls!A85","v":"2016-07-01"},{"$f":"ZZZ__FnCalls!A86","v":"2016-08-01"},{"$f":"ZZZ__FnCalls!A87","v":"2016-09-01"},{"$f":"ZZZ__FnCalls!A88","v":"2016-10-01"},{"$f":"ZZZ__FnCalls!A89","v":"2016-11-01"},{"$f":"ZZZ__FnCalls!A90","v":"2016-12-01"},{"$f":"ZZZ__FnCalls!A79","v":"2016-01-01"},{"$f":"ZZZ__FnCalls!A91","v":"2017-01-01"},{"$f":"ZZZ__FnCalls!A92","v":"2017-02-01"},{"$f":"ZZZ__FnCalls!A93","v":"2017-03-01"},{"$f":"ZZZ__FnCalls!A94","v":"2017-04-01"},{"$f":"ZZZ__FnCalls!A95","v":"2017-05-01"},{"$f":"ZZZ__FnCalls!A96","v":"2017-06-01"},{"$f":"ZZZ__FnCalls!A97","v":"2017-07-01"},{"$f":"ZZZ__FnCalls!A98","v":"2017-08-01"},{"$f":"ZZZ__FnCalls!A99","v":"2017-09-01"},{"$f":"ZZZ__FnCalls!A100","v":"2017-10-01"},{"$f":"ZZZ__FnCalls!A101","v":"2017-11-01"},{"$f":"ZZZ__FnCalls!A102","v":"2017-12-01"},{"$f":"ZZZ__FnCalls!A91","v":"2017-01-01"},{"$f":"ZZZ__FnCalls!A103","v":"2018-01-01"},{"$f":"ZZZ__FnCalls!A104","v":"2018-02-01"},{"$f":"ZZZ__FnCalls!A105","v":"2018-03-01"},{"$f":"ZZZ__FnCalls!A106","v":"2018-04-01"},{"$f":"ZZZ__FnCalls!A107","v":"2018-05-01"},{"$f":"ZZZ__FnCalls!A108","v":"2018-06-01"},{"$f":"ZZZ__FnCalls!A109","v":"2018-07-01"},{"$f":"ZZZ__FnCalls!A110","v":"2018-08-01"},{"$f":"ZZZ__FnCalls!A111","v":"2018-09-01"},{"$f":"ZZZ__FnCalls!A112","v":"2018-10-01"},{"$f":"ZZZ__FnCalls!A113","v":"2018-11-01"},{"$f":"ZZZ__FnCalls!A114","v":"2018-12-01"},{"$f":"ZZZ__FnCalls!A103","v":"2018-01-01"},{"$f":"ZZZ__FnCalls!A115","v":"2019-01-01"},{"$f":"ZZZ__FnCalls!A116","v":"2019-02-01"},{"$f":"ZZZ__FnCalls!A117","v":"2019-03-01"},{"$f":"ZZZ__FnCalls!A118","v":"2019-04-01"},{"$f":"ZZZ__FnCalls!A119","v":"2019-05-01"},{"$f":"ZZZ__FnCalls!A120","v":"2019-06-01"},{"$f":"ZZZ__FnCalls!A121","v":"2019-07-01"},{"$f":"ZZZ__FnCalls!A122","v":"2019-08-01"},{"$f":"ZZZ__FnCalls!A123","v":"2019-09-01"},{"$f":"ZZZ__FnCalls!A124","v":"2019-10-01"},{"$f":"ZZZ__FnCalls!A125","v":"2019-11-01"},{"$f":"ZZZ__FnCalls!A126","v":"2019-12-01"},{"$f":"ZZZ__FnCalls!A115","v":"2019-01-01"},{"$f":"ZZZ__FnCalls!A127","v":"2020-01-01"},{"$f":"ZZZ__FnCalls!A128","v":"2020-02-01"},{"$f":"ZZZ__FnCalls!A129","v":"2020-03-01"},{"$f":"ZZZ__FnCalls!A130","v":"2020-04-01"},{"$f":"ZZZ__FnCalls!A131","v":"2020-05-01"},{"$f":"ZZZ__FnCalls!A132","v":"2020-06-01"},{"$f":"ZZZ__FnCalls!A133","v":"2020-07-01"},{"$f":"ZZZ__FnCalls!A134","v":"2020-08-01"},{"$f":"ZZZ__FnCalls!A135","v":"2020-09-01"},{"$f":"ZZZ__FnCalls!A136","v":"2020-10-01"},{"$f":"ZZZ__FnCalls!A137","v":"2020-11-01"},{"$f":"ZZZ__FnCalls!A138","v":"2020-12-01"},{"$f":"ZZZ__FnCalls!A127","v":"2020-01-01"}]
[{"$f":"\"Demand_Aggregate_mean_2\"","v":"Demand_Aggregate_mean_2"}]
[null,{"$f":"ZZZ__FnCalls!F7","v":"Jan 2010"},{"$f":"ZZZ__FnCalls!F8","v":"Feb 2010"},{"$f":"ZZZ__FnCalls!F9","v":"Mar 2010"},{"$f":"ZZZ__FnCalls!F10","v":"Apr 2010"},{"$f":"ZZZ__FnCalls!F11","v":"May 2010"},{"$f":"ZZZ__FnCalls!F12","v":"Jun 2010"},{"$f":"ZZZ__FnCalls!F13","v":"Jul 2010"},{"$f":"ZZZ__FnCalls!F14","v":"Aug 2010"},{"$f":"ZZZ__FnCalls!F15","v":"Sep 2010"},{"$f":"ZZZ__FnCalls!F16","v":"Oct 2010"},{"$f":"ZZZ__FnCalls!F17","v":"Nov 2010"},{"$f":"ZZZ__FnCalls!F18","v":"Dec 2010"},{"$f":"ZZZ__FnCalls!H7","v":"2010"},{"$f":"ZZZ__FnCalls!F19","v":"Jan 2011"},{"$f":"ZZZ__FnCalls!F20","v":"Feb 2011"},{"$f":"ZZZ__FnCalls!F21","v":"Mar 2011"},{"$f":"ZZZ__FnCalls!F22","v":"Apr 2011"},{"$f":"ZZZ__FnCalls!F23","v":"May 2011"},{"$f":"ZZZ__FnCalls!F24","v":"Jun 2011"},{"$f":"ZZZ__FnCalls!F25","v":"Jul 2011"},{"$f":"ZZZ__FnCalls!F26","v":"Aug 2011"},{"$f":"ZZZ__FnCalls!F27","v":"Sep 2011"},{"$f":"ZZZ__FnCalls!F28","v":"Oct 2011"},{"$f":"ZZZ__FnCalls!F29","v":"Nov 2011"},{"$f":"ZZZ__FnCalls!F30","v":"Dec 2011"},{"$f":"ZZZ__FnCalls!H19","v":"2011"},{"$f":"ZZZ__FnCalls!F31","v":"Jan 2012"},{"$f":"ZZZ__FnCalls!F32","v":"Feb 2012"},{"$f":"ZZZ__FnCalls!F33","v":"Mar 2012"},{"$f":"ZZZ__FnCalls!F34","v":"Apr 2012"},{"$f":"ZZZ__FnCalls!F35","v":"May 2012"},{"$f":"ZZZ__FnCalls!F36","v":"Jun 2012"},{"$f":"ZZZ__FnCalls!F37","v":"Jul 2012"},{"$f":"ZZZ__FnCalls!F38","v":"Aug 2012"},{"$f":"ZZZ__FnCalls!F39","v":"Sep 2012"},{"$f":"ZZZ__FnCalls!F40","v":"Oct 2012"},{"$f":"ZZZ__FnCalls!F41","v":"Nov 2012"},{"$f":"ZZZ__FnCalls!F42","v":"Dec 2012"},{"$f":"ZZZ__FnCalls!H31","v":"2012"},{"$f":"ZZZ__FnCalls!F43","v":"Jan 2013"},{"$f":"ZZZ__FnCalls!F44","v":"Feb 2013"},{"$f":"ZZZ__FnCalls!F45","v":"Mar 2013"},{"$f":"ZZZ__FnCalls!F46","v":"Apr 2013"},{"$f":"ZZZ__FnCalls!F47","v":"May 2013"},{"$f":"ZZZ__FnCalls!F48","v":"Jun 2013"},{"$f":"ZZZ__FnCalls!F49","v":"Jul 2013"},{"$f":"ZZZ__FnCalls!F50","v":"Aug 2013"},{"$f":"ZZZ__FnCalls!F51","v":"Sep 2013"},{"$f":"ZZZ__FnCalls!F52","v":"Oct 2013"},{"$f":"ZZZ__FnCalls!F53","v":"Nov 2013"},{"$f":"ZZZ__FnCalls!F54","v":"Dec 2013"},{"$f":"ZZZ__FnCalls!H43","v":"2013"},{"$f":"ZZZ__FnCalls!F55","v":"Jan 2014"},{"$f":"ZZZ__FnCalls!F56","v":"Feb 2014"},{"$f":"ZZZ__FnCalls!F57","v":"Mar 2014"},{"$f":"ZZZ__FnCalls!F58","v":"Apr 2014"},{"$f":"ZZZ__FnCalls!F59","v":"May 2014"},{"$f":"ZZZ__FnCalls!F60","v":"Jun 2014"},{"$f":"ZZZ__FnCalls!F61","v":"Jul 2014"},{"$f":"ZZZ__FnCalls!F62","v":"Aug 2014"},{"$f":"ZZZ__FnCalls!F63","v":"Sep 2014"},{"$f":"ZZZ__FnCalls!F64","v":"Oct 2014"},{"$f":"ZZZ__FnCalls!F65","v":"Nov 2014"},{"$f":"ZZZ__FnCalls!F66","v":"Dec 2014"},{"$f":"ZZZ__FnCalls!H55","v":"2014"},{"$f":"ZZZ__FnCalls!F67","v":"Jan 2015"},{"$f":"ZZZ__FnCalls!F68","v":"Feb 2015"},{"$f":"ZZZ__FnCalls!F69","v":"Mar 2015"},{"$f":"ZZZ__FnCalls!F70","v":"Apr 2015"},{"$f":"ZZZ__FnCalls!F71","v":"May 2015"},{"$f":"ZZZ__FnCalls!F72","v":"Jun 2015"},{"$f":"ZZZ__FnCalls!F73","v":"Jul 2015"},{"$f":"ZZZ__FnCalls!F74","v":"Aug 2015"},{"$f":"ZZZ__FnCalls!F75","v":"Sep 2015"},{"$f":"ZZZ__FnCalls!F76","v":"Oct 2015"},{"$f":"ZZZ__FnCalls!F77","v":"Nov 2015"},{"$f":"ZZZ__FnCalls!F78","v":"Dec 2015"},{"$f":"ZZZ__FnCalls!H67","v":"2015"},{"$f":"ZZZ__FnCalls!F79","v":"Jan 2016"},{"$f":"ZZZ__FnCalls!F80","v":"Feb 2016"},{"$f":"ZZZ__FnCalls!F81","v":"Mar 2016"},{"$f":"ZZZ__FnCalls!F82","v":"Apr 2016"},{"$f":"ZZZ__FnCalls!F83","v":"May 2016"},{"$f":"ZZZ__FnCalls!F84","v":"Jun 2016"},{"$f":"ZZZ__FnCalls!F85","v":"Jul 2016"},{"$f":"ZZZ__FnCalls!F86","v":"Aug 2016"},{"$f":"ZZZ__FnCalls!F87","v":"Sep 2016"},{"$f":"ZZZ__FnCalls!F88","v":"Oct 2016"},{"$f":"ZZZ__FnCalls!F89","v":"Nov 2016"},{"$f":"ZZZ__FnCalls!F90","v":"Dec 2016"},{"$f":"ZZZ__FnCalls!H79","v":"2016"},{"$f":"ZZZ__FnCalls!F91","v":"Jan 2017"},{"$f":"ZZZ__FnCalls!F92","v":"Feb 2017"},{"$f":"ZZZ__FnCalls!F93","v":"Mar 2017"},{"$f":"ZZZ__FnCalls!F94","v":"Apr 2017"},{"$f":"ZZZ__FnCalls!F95","v":"May 2017"},{"$f":"ZZZ__FnCalls!F96","v":"Jun 2017"},{"$f":"ZZZ__FnCalls!F97","v":"Jul 2017"},{"$f":"ZZZ__FnCalls!F98","v":"Aug 2017"},{"$f":"ZZZ__FnCalls!F99","v":"Sep 2017"},{"$f":"ZZZ__FnCalls!F100","v":"Oct 2017"},{"$f":"ZZZ__FnCalls!F101","v":"Nov 2017"},{"$f":"ZZZ__FnCalls!F102","v":"Dec 2017"},{"$f":"ZZZ__FnCalls!H91","v":"2017"},{"$f":"ZZZ__FnCalls!F103","v":"Jan 2018"},{"$f":"ZZZ__FnCalls!F104","v":"Feb 2018"},{"$f":"ZZZ__FnCalls!F105","v":"Mar 2018"},{"$f":"ZZZ__FnCalls!F106","v":"Apr 2018"},{"$f":"ZZZ__FnCalls!F107","v":"May 2018"},{"$f":"ZZZ__FnCalls!F108","v":"Jun 2018"},{"$f":"ZZZ__FnCalls!F109","v":"Jul 2018"},{"$f":"ZZZ__FnCalls!F110","v":"Aug 2018"},{"$f":"ZZZ__FnCalls!F111","v":"Sep 2018"},{"$f":"ZZZ__FnCalls!F112","v":"Oct 2018"},{"$f":"ZZZ__FnCalls!F113","v":"Nov 2018"},{"$f":"ZZZ__FnCalls!F114","v":"Dec 2018"},{"$f":"ZZZ__FnCalls!H103","v":"2018"},{"$f":"ZZZ__FnCalls!F115","v":"Jan 2019"},{"$f":"ZZZ__FnCalls!F116","v":"Feb 2019"},{"$f":"ZZZ__FnCalls!F117","v":"Mar 2019"},{"$f":"ZZZ__FnCalls!F118","v":"Apr 2019"},{"$f":"ZZZ__FnCalls!F119","v":"May 2019"},{"$f":"ZZZ__FnCalls!F120","v":"Jun 2019"},{"$f":"ZZZ__FnCalls!F121","v":"Jul 2019"},{"$f":"ZZZ__FnCalls!F122","v":"Aug 2019"},{"$f":"ZZZ__FnCalls!F123","v":"Sep 2019"},{"$f":"ZZZ__FnCalls!F124","v":"Oct 2019"},{"$f":"ZZZ__FnCalls!F125","v":"Nov 2019"},{"$f":"ZZZ__FnCalls!F126","v":"Dec 2019"},{"$f":"ZZZ__FnCalls!H115","v":"2019"},{"$f":"ZZZ__FnCalls!F127","v":"Jan 2020"},{"$f":"ZZZ__FnCalls!F128","v":"Feb 2020"},{"$f":"ZZZ__FnCalls!F129","v":"Mar 2020"},{"$f":"ZZZ__FnCalls!F130","v":"Apr 2020"},{"$f":"ZZZ__FnCalls!F131","v":"May 2020"},{"$f":"ZZZ__FnCalls!F132","v":"Jun 2020"},{"$f":"ZZZ__FnCalls!F133","v":"Jul 2020"},{"$f":"ZZZ__FnCalls!F134","v":"Aug 2020"},{"$f":"ZZZ__FnCalls!F135","v":"Sep 2020"},{"$f":"ZZZ__FnCalls!F136","v":"Oct 2020"},{"$f":"ZZZ__FnCalls!F137","v":"Nov 2020"},{"$f":"ZZZ__FnCalls!F138","v":"Dec 2020"},{"$f":"ZZZ__FnCalls!H127","v":"2020"}]
[null,{"$f":"ZZZ__FnCalls!F7","v":"Jan 2010"},{"$f":"ZZZ__FnCalls!F8","v":"Feb 2010"},{"$f":"ZZZ__FnCalls!F9","v":"Mar 2010"},{"$f":"ZZZ__FnCalls!F10","v":"Apr 2010"},{"$f":"ZZZ__FnCalls!F11","v":"May 2010"},{"$f":"ZZZ__FnCalls!F12","v":"Jun 2010"},{"$f":"ZZZ__FnCalls!F13","v":"Jul 2010"},{"$f":"ZZZ__FnCalls!F14","v":"Aug 2010"},{"$f":"ZZZ__FnCalls!F15","v":"Sep 2010"},{"$f":"ZZZ__FnCalls!F16","v":"Oct 2010"},{"$f":"ZZZ__FnCalls!F17","v":"Nov 2010"},{"$f":"ZZZ__FnCalls!F18","v":"Dec 2010"},{"$f":"ZZZ__FnCalls!F7","v":"Jan 2010"},{"$f":"ZZZ__FnCalls!F19","v":"Jan 2011"},{"$f":"ZZZ__FnCalls!F20","v":"Feb 2011"},{"$f":"ZZZ__FnCalls!F21","v":"Mar 2011"},{"$f":"ZZZ__FnCalls!F22","v":"Apr 2011"},{"$f":"ZZZ__FnCalls!F23","v":"May 2011"},{"$f":"ZZZ__FnCalls!F24","v":"Jun 2011"},{"$f":"ZZZ__FnCalls!F25","v":"Jul 2011"},{"$f":"ZZZ__FnCalls!F26","v":"Aug 2011"},{"$f":"ZZZ__FnCalls!F27","v":"Sep 2011"},{"$f":"ZZZ__FnCalls!F28","v":"Oct 2011"},{"$f":"ZZZ__FnCalls!F29","v":"Nov 2011"},{"$f":"ZZZ__FnCalls!F30","v":"Dec 2011"},{"$f":"ZZZ__FnCalls!F19","v":"Jan 2011"},{"$f":"ZZZ__FnCalls!F31","v":"Jan 2012"},{"$f":"ZZZ__FnCalls!F32","v":"Feb 2012"},{"$f":"ZZZ__FnCalls!F33","v":"Mar 2012"},{"$f":"ZZZ__FnCalls!F34","v":"Apr 2012"},{"$f":"ZZZ__FnCalls!F35","v":"May 2012"},{"$f":"ZZZ__FnCalls!F36","v":"Jun 2012"},{"$f":"ZZZ__FnCalls!F37","v":"Jul 2012"},{"$f":"ZZZ__FnCalls!F38","v":"Aug 2012"},{"$f":"ZZZ__FnCalls!F39","v":"Sep 2012"},{"$f":"ZZZ__FnCalls!F40","v":"Oct 2012"},{"$f":"ZZZ__FnCalls!F41","v":"Nov 2012"},{"$f":"ZZZ__FnCalls!F42","v":"Dec 2012"},{"$f":"ZZZ__FnCalls!F31","v":"Jan 2012"},{"$f":"ZZZ__FnCalls!F43","v":"Jan 2013"},{"$f":"ZZZ__FnCalls!F44","v":"Feb 2013"},{"$f":"ZZZ__FnCalls!F45","v":"Mar 2013"},{"$f":"ZZZ__FnCalls!F46","v":"Apr 2013"},{"$f":"ZZZ__FnCalls!F47","v":"May 2013"},{"$f":"ZZZ__FnCalls!F48","v":"Jun 2013"},{"$f":"ZZZ__FnCalls!F49","v":"Jul 2013"},{"$f":"ZZZ__FnCalls!F50","v":"Aug 2013"},{"$f":"ZZZ__FnCalls!F51","v":"Sep 2013"},{"$f":"ZZZ__FnCalls!F52","v":"Oct 2013"},{"$f":"ZZZ__FnCalls!F53","v":"Nov 2013"},{"$f":"ZZZ__FnCalls!F54","v":"Dec 2013"},{"$f":"ZZZ__FnCalls!F43","v":"Jan 2013"},{"$f":"ZZZ__FnCalls!F55","v":"Jan 2014"},{"$f":"ZZZ__FnCalls!F56","v":"Feb 2014"},{"$f":"ZZZ__FnCalls!F57","v":"Mar 2014"},{"$f":"ZZZ__FnCalls!F58","v":"Apr 2014"},{"$f":"ZZZ__FnCalls!F59","v":"May 2014"},{"$f":"ZZZ__FnCalls!F60","v":"Jun 2014"},{"$f":"ZZZ__FnCalls!F61","v":"Jul 2014"},{"$f":"ZZZ__FnCalls!F62","v":"Aug 2014"},{"$f":"ZZZ__FnCalls!F63","v":"Sep 2014"},{"$f":"ZZZ__FnCalls!F64","v":"Oct 2014"},{"$f":"ZZZ__FnCalls!F65","v":"Nov 2014"},{"$f":"ZZZ__FnCalls!F66","v":"Dec 2014"},{"$f":"ZZZ__FnCalls!F55","v":"Jan 2014"},{"$f":"ZZZ__FnCalls!F67","v":"Jan 2015"},{"$f":"ZZZ__FnCalls!F68","v":"Feb 2015"},{"$f":"ZZZ__FnCalls!F69","v":"Mar 2015"},{"$f":"ZZZ__FnCalls!F70","v":"Apr 2015"},{"$f":"ZZZ__FnCalls!F71","v":"May 2015"},{"$f":"ZZZ__FnCalls!F72","v":"Jun 2015"},{"$f":"ZZZ__FnCalls!F73","v":"Jul 2015"},{"$f":"ZZZ__FnCalls!F74","v":"Aug 2015"},{"$f":"ZZZ__FnCalls!F75","v":"Sep 2015"},{"$f":"ZZZ__FnCalls!F76","v":"Oct 2015"},{"$f":"ZZZ__FnCalls!F77","v":"Nov 2015"},{"$f":"ZZZ__FnCalls!F78","v":"Dec 2015"},{"$f":"ZZZ__FnCalls!F67","v":"Jan 2015"},{"$f":"ZZZ__FnCalls!F79","v":"Jan 2016"},{"$f":"ZZZ__FnCalls!F80","v":"Feb 2016"},{"$f":"ZZZ__FnCalls!F81","v":"Mar 2016"},{"$f":"ZZZ__FnCalls!F82","v":"Apr 2016"},{"$f":"ZZZ__FnCalls!F83","v":"May 2016"},{"$f":"ZZZ__FnCalls!F84","v":"Jun 2016"},{"$f":"ZZZ__FnCalls!F85","v":"Jul 2016"},{"$f":"ZZZ__FnCalls!F86","v":"Aug 2016"},{"$f":"ZZZ__FnCalls!F87","v":"Sep 2016"},{"$f":"ZZZ__FnCalls!F88","v":"Oct 2016"},{"$f":"ZZZ__FnCalls!F89","v":"Nov 2016"},{"$f":"ZZZ__FnCalls!F90","v":"Dec 2016"},{"$f":"ZZZ__FnCalls!F79","v":"Jan 2016"},{"$f":"ZZZ__FnCalls!F91","v":"Jan 2017"},{"$f":"ZZZ__FnCalls!F92","v":"Feb 2017"},{"$f":"ZZZ__FnCalls!F93","v":"Mar 2017"},{"$f":"ZZZ__FnCalls!F94","v":"Apr 2017"},{"$f":"ZZZ__FnCalls!F95","v":"May 2017"},{"$f":"ZZZ__FnCalls!F96","v":"Jun 2017"},{"$f":"ZZZ__FnCalls!F97","v":"Jul 2017"},{"$f":"ZZZ__FnCalls!F98","v":"Aug 2017"},{"$f":"ZZZ__FnCalls!F99","v":"Sep 2017"},{"$f":"ZZZ__FnCalls!F100","v":"Oct 2017"},{"$f":"ZZZ__FnCalls!F101","v":"Nov 2017"},{"$f":"ZZZ__FnCalls!F102","v":"Dec 2017"},{"$f":"ZZZ__FnCalls!F91","v":"Jan 2017"},{"$f":"ZZZ__FnCalls!F103","v":"Jan 2018"},{"$f":"ZZZ__FnCalls!F104","v":"Feb 2018"},{"$f":"ZZZ__FnCalls!F105","v":"Mar 2018"},{"$f":"ZZZ__FnCalls!F106","v":"Apr 2018"},{"$f":"ZZZ__FnCalls!F107","v":"May 2018"},{"$f":"ZZZ__FnCalls!F108","v":"Jun 2018"},{"$f":"ZZZ__FnCalls!F109","v":"Jul 2018"},{"$f":"ZZZ__FnCalls!F110","v":"Aug 2018"},{"$f":"ZZZ__FnCalls!F111","v":"Sep 2018"},{"$f":"ZZZ__FnCalls!F112","v":"Oct 2018"},{"$f":"ZZZ__FnCalls!F113","v":"Nov 2018"},{"$f":"ZZZ__FnCalls!F114","v":"Dec 2018"},{"$f":"ZZZ__FnCalls!F103","v":"Jan 2018"},{"$f":"ZZZ__FnCalls!F115","v":"Jan 2019"},{"$f":"ZZZ__FnCalls!F116","v":"Feb 2019"},{"$f":"ZZZ__FnCalls!F117","v":"Mar 2019"},{"$f":"ZZZ__FnCalls!F118","v":"Apr 2019"},{"$f":"ZZZ__FnCalls!F119","v":"May 2019"},{"$f":"ZZZ__FnCalls!F120","v":"Jun 2019"},{"$f":"ZZZ__FnCalls!F121","v":"Jul 2019"},{"$f":"ZZZ__FnCalls!F122","v":"Aug 2019"},{"$f":"ZZZ__FnCalls!F123","v":"Sep 2019"},{"$f":"ZZZ__FnCalls!F124","v":"Oct 2019"},{"$f":"ZZZ__FnCalls!F125","v":"Nov 2019"},{"$f":"ZZZ__FnCalls!F126","v":"Dec 2019"},{"$f":"ZZZ__FnCalls!F115","v":"Jan 2019"},{"$f":"ZZZ__FnCalls!F127","v":"Jan 2020"},{"$f":"ZZZ__FnCalls!F128","v":"Feb 2020"},{"$f":"ZZZ__FnCalls!F129","v":"Mar 2020"},{"$f":"ZZZ__FnCalls!F130","v":"Apr 2020"},{"$f":"ZZZ__FnCalls!F131","v":"May 2020"},{"$f":"ZZZ__FnCalls!F132","v":"Jun 2020"},{"$f":"ZZZ__FnCalls!F133","v":"Jul 2020"},{"$f":"ZZZ__FnCalls!F134","v":"Aug 2020"},{"$f":"ZZZ__FnCalls!F135","v":"Sep 2020"},{"$f":"ZZZ__FnCalls!F136","v":"Oct 2020"},{"$f":"ZZZ__FnCalls!F137","v":"Nov 2020"},{"$f":"ZZZ__FnCalls!F138","v":"Dec 2020"},{"$f":"ZZZ__FnCalls!F127","v":"Jan 2020"}]
[{"$f":"\"Demand_Aggregate_1\"","v":"Demand_Aggregate_1"}]
[null,{"$f":"ZZZ__FnCalls!F7","v":"Jan 2010"},{"$f":"ZZZ__FnCalls!F8","v":"Feb 2010"},{"$f":"ZZZ__FnCalls!F9","v":"Mar 2010"},{"$f":"ZZZ__FnCalls!F10","v":"Apr 2010"},{"$f":"ZZZ__FnCalls!F11","v":"May 2010"},{"$f":"ZZZ__FnCalls!F12","v":"Jun 2010"},{"$f":"ZZZ__FnCalls!F13","v":"Jul 2010"},{"$f":"ZZZ__FnCalls!F14","v":"Aug 2010"},{"$f":"ZZZ__FnCalls!F15","v":"Sep 2010"},{"$f":"ZZZ__FnCalls!F16","v":"Oct 2010"},{"$f":"ZZZ__FnCalls!F17","v":"Nov 2010"},{"$f":"ZZZ__FnCalls!F18","v":"Dec 2010"},{"$f":"ZZZ__FnCalls!H7","v":"2010"},{"$f":"ZZZ__FnCalls!F19","v":"Jan 2011"},{"$f":"ZZZ__FnCalls!F20","v":"Feb 2011"},{"$f":"ZZZ__FnCalls!F21","v":"Mar 2011"},{"$f":"ZZZ__FnCalls!F22","v":"Apr 2011"},{"$f":"ZZZ__FnCalls!F23","v":"May 2011"},{"$f":"ZZZ__FnCalls!F24","v":"Jun 2011"},{"$f":"ZZZ__FnCalls!F25","v":"Jul 2011"},{"$f":"ZZZ__FnCalls!F26","v":"Aug 2011"},{"$f":"ZZZ__FnCalls!F27","v":"Sep 2011"},{"$f":"ZZZ__FnCalls!F28","v":"Oct 2011"},{"$f":"ZZZ__FnCalls!F29","v":"Nov 2011"},{"$f":"ZZZ__FnCalls!F30","v":"Dec 2011"},{"$f":"ZZZ__FnCalls!H19","v":"2011"},{"$f":"ZZZ__FnCalls!F31","v":"Jan 2012"},{"$f":"ZZZ__FnCalls!F32","v":"Feb 2012"},{"$f":"ZZZ__FnCalls!F33","v":"Mar 2012"},{"$f":"ZZZ__FnCalls!F34","v":"Apr 2012"},{"$f":"ZZZ__FnCalls!F35","v":"May 2012"},{"$f":"ZZZ__FnCalls!F36","v":"Jun 2012"},{"$f":"ZZZ__FnCalls!F37","v":"Jul 2012"},{"$f":"ZZZ__FnCalls!F38","v":"Aug 2012"},{"$f":"ZZZ__FnCalls!F39","v":"Sep 2012"},{"$f":"ZZZ__FnCalls!F40","v":"Oct 2012"},{"$f":"ZZZ__FnCalls!F41","v":"Nov 2012"},{"$f":"ZZZ__FnCalls!F42","v":"Dec 2012"},{"$f":"ZZZ__FnCalls!H31","v":"2012"},{"$f":"ZZZ__FnCalls!F43","v":"Jan 2013"},{"$f":"ZZZ__FnCalls!F44","v":"Feb 2013"},{"$f":"ZZZ__FnCalls!F45","v":"Mar 2013"},{"$f":"ZZZ__FnCalls!F46","v":"Apr 2013"},{"$f":"ZZZ__FnCalls!F47","v":"May 2013"},{"$f":"ZZZ__FnCalls!F48","v":"Jun 2013"},{"$f":"ZZZ__FnCalls!F49","v":"Jul 2013"},{"$f":"ZZZ__FnCalls!F50","v":"Aug 2013"},{"$f":"ZZZ__FnCalls!F51","v":"Sep 2013"},{"$f":"ZZZ__FnCalls!F52","v":"Oct 2013"},{"$f":"ZZZ__FnCalls!F53","v":"Nov 2013"},{"$f":"ZZZ__FnCalls!F54","v":"Dec 2013"},{"$f":"ZZZ__FnCalls!H43","v":"2013"},{"$f":"ZZZ__FnCalls!F55","v":"Jan 2014"},{"$f":"ZZZ__FnCalls!F56","v":"Feb 2014"},{"$f":"ZZZ__FnCalls!F57","v":"Mar 2014"},{"$f":"ZZZ__FnCalls!F58","v":"Apr 2014"},{"$f":"ZZZ__FnCalls!F59","v":"May 2014"},{"$f":"ZZZ__FnCalls!F60","v":"Jun 2014"},{"$f":"ZZZ__FnCalls!F61","v":"Jul 2014"},{"$f":"ZZZ__FnCalls!F62","v":"Aug 2014"},{"$f":"ZZZ__FnCalls!F63","v":"Sep 2014"},{"$f":"ZZZ__FnCalls!F64","v":"Oct 2014"},{"$f":"ZZZ__FnCalls!F65","v":"Nov 2014"},{"$f":"ZZZ__FnCalls!F66","v":"Dec 2014"},{"$f":"ZZZ__FnCalls!H55","v":"2014"},{"$f":"ZZZ__FnCalls!F67","v":"Jan 2015"},{"$f":"ZZZ__FnCalls!F68","v":"Feb 2015"},{"$f":"ZZZ__FnCalls!F69","v":"Mar 2015"},{"$f":"ZZZ__FnCalls!F70","v":"Apr 2015"},{"$f":"ZZZ__FnCalls!F71","v":"May 2015"},{"$f":"ZZZ__FnCalls!F72","v":"Jun 2015"},{"$f":"ZZZ__FnCalls!F73","v":"Jul 2015"},{"$f":"ZZZ__FnCalls!F74","v":"Aug 2015"},{"$f":"ZZZ__FnCalls!F75","v":"Sep 2015"},{"$f":"ZZZ__FnCalls!F76","v":"Oct 2015"},{"$f":"ZZZ__FnCalls!F77","v":"Nov 2015"},{"$f":"ZZZ__FnCalls!F78","v":"Dec 2015"},{"$f":"ZZZ__FnCalls!H67","v":"2015"},{"$f":"ZZZ__FnCalls!F79","v":"Jan 2016"},{"$f":"ZZZ__FnCalls!F80","v":"Feb 2016"},{"$f":"ZZZ__FnCalls!F81","v":"Mar 2016"},{"$f":"ZZZ__FnCalls!F82","v":"Apr 2016"},{"$f":"ZZZ__FnCalls!F83","v":"May 2016"},{"$f":"ZZZ__FnCalls!F84","v":"Jun 2016"},{"$f":"ZZZ__FnCalls!F85","v":"Jul 2016"},{"$f":"ZZZ__FnCalls!F86","v":"Aug 2016"},{"$f":"ZZZ__FnCalls!F87","v":"Sep 2016"},{"$f":"ZZZ__FnCalls!F88","v":"Oct 2016"},{"$f":"ZZZ__FnCalls!F89","v":"Nov 2016"},{"$f":"ZZZ__FnCalls!F90","v":"Dec 2016"},{"$f":"ZZZ__FnCalls!H79","v":"2016"},{"$f":"ZZZ__FnCalls!F91","v":"Jan 2017"},{"$f":"ZZZ__FnCalls!F92","v":"Feb 2017"},{"$f":"ZZZ__FnCalls!F93","v":"Mar 2017"},{"$f":"ZZZ__FnCalls!F94","v":"Apr 2017"},{"$f":"ZZZ__FnCalls!F95","v":"May 2017"},{"$f":"ZZZ__FnCalls!F96","v":"Jun 2017"},{"$f":"ZZZ__FnCalls!F97","v":"Jul 2017"},{"$f":"ZZZ__FnCalls!F98","v":"Aug 2017"},{"$f":"ZZZ__FnCalls!F99","v":"Sep 2017"},{"$f":"ZZZ__FnCalls!F100","v":"Oct 2017"},{"$f":"ZZZ__FnCalls!F101","v":"Nov 2017"},{"$f":"ZZZ__FnCalls!F102","v":"Dec 2017"},{"$f":"ZZZ__FnCalls!H91","v":"2017"},{"$f":"ZZZ__FnCalls!F103","v":"Jan 2018"},{"$f":"ZZZ__FnCalls!F104","v":"Feb 2018"},{"$f":"ZZZ__FnCalls!F105","v":"Mar 2018"},{"$f":"ZZZ__FnCalls!F106","v":"Apr 2018"},{"$f":"ZZZ__FnCalls!F107","v":"May 2018"},{"$f":"ZZZ__FnCalls!F108","v":"Jun 2018"},{"$f":"ZZZ__FnCalls!F109","v":"Jul 2018"},{"$f":"ZZZ__FnCalls!F110","v":"Aug 2018"},{"$f":"ZZZ__FnCalls!F111","v":"Sep 2018"},{"$f":"ZZZ__FnCalls!F112","v":"Oct 2018"},{"$f":"ZZZ__FnCalls!F113","v":"Nov 2018"},{"$f":"ZZZ__FnCalls!F114","v":"Dec 2018"},{"$f":"ZZZ__FnCalls!H103","v":"2018"},{"$f":"ZZZ__FnCalls!F115","v":"Jan 2019"},{"$f":"ZZZ__FnCalls!F116","v":"Feb 2019"},{"$f":"ZZZ__FnCalls!F117","v":"Mar 2019"},{"$f":"ZZZ__FnCalls!F118","v":"Apr 2019"},{"$f":"ZZZ__FnCalls!F119","v":"May 2019"},{"$f":"ZZZ__FnCalls!F120","v":"Jun 2019"},{"$f":"ZZZ__FnCalls!F121","v":"Jul 2019"},{"$f":"ZZZ__FnCalls!F122","v":"Aug 2019"},{"$f":"ZZZ__FnCalls!F123","v":"Sep 2019"},{"$f":"ZZZ__FnCalls!F124","v":"Oct 2019"},{"$f":"ZZZ__FnCalls!F125","v":"Nov 2019"},{"$f":"ZZZ__FnCalls!F126","v":"Dec 2019"},{"$f":"ZZZ__FnCalls!H115","v":"2019"},{"$f":"ZZZ__FnCalls!F127","v":"Jan 2020"},{"$f":"ZZZ__FnCalls!F128","v":"Feb 2020"},{"$f":"ZZZ__FnCalls!F129","v":"Mar 2020"},{"$f":"ZZZ__FnCalls!F130","v":"Apr 2020"},{"$f":"ZZZ__FnCalls!F131","v":"May 2020"},{"$f":"ZZZ__FnCalls!F132","v":"Jun 2020"},{"$f":"ZZZ__FnCalls!F133","v":"Jul 2020"},{"$f":"ZZZ__FnCalls!F134","v":"Aug 2020"},{"$f":"ZZZ__FnCalls!F135","v":"Sep 2020"},{"$f":"ZZZ__FnCalls!F136","v":"Oct 2020"},{"$f":"ZZZ__FnCalls!F137","v":"Nov 2020"},{"$f":"ZZZ__FnCalls!F138","v":"Dec 2020"},{"$f":"ZZZ__FnCalls!H127","v":"2020"}]
[null,{"$f":"ZZZ__FnCalls!A7","v":"2010-01-01"},{"$f":"ZZZ__FnCalls!A8","v":"2010-02-01"},{"$f":"ZZZ__FnCalls!A9","v":"2010-03-01"},{"$f":"ZZZ__FnCalls!A10","v":"2010-04-01"},{"$f":"ZZZ__FnCalls!A11","v":"2010-05-01"},{"$f":"ZZZ__FnCalls!A12","v":"2010-06-01"},{"$f":"ZZZ__FnCalls!A13","v":"2010-07-01"},{"$f":"ZZZ__FnCalls!A14","v":"2010-08-01"},{"$f":"ZZZ__FnCalls!A15","v":"2010-09-01"},{"$f":"ZZZ__FnCalls!A16","v":"2010-10-01"},{"$f":"ZZZ__FnCalls!A17","v":"2010-11-01"},{"$f":"ZZZ__FnCalls!A18","v":"2010-12-01"},{"$f":"ZZZ__FnCalls!A7","v":"2010-01-01"},{"$f":"ZZZ__FnCalls!A19","v":"2011-01-01"},{"$f":"ZZZ__FnCalls!A20","v":"2011-02-01"},{"$f":"ZZZ__FnCalls!A21","v":"2011-03-01"},{"$f":"ZZZ__FnCalls!A22","v":"2011-04-01"},{"$f":"ZZZ__FnCalls!A23","v":"2011-05-01"},{"$f":"ZZZ__FnCalls!A24","v":"2011-06-01"},{"$f":"ZZZ__FnCalls!A25","v":"2011-07-01"},{"$f":"ZZZ__FnCalls!A26","v":"2011-08-01"},{"$f":"ZZZ__FnCalls!A27","v":"2011-09-01"},{"$f":"ZZZ__FnCalls!A28","v":"2011-10-01"},{"$f":"ZZZ__FnCalls!A29","v":"2011-11-01"},{"$f":"ZZZ__FnCalls!A30","v":"2011-12-01"},{"$f":"ZZZ__FnCalls!A19","v":"2011-01-01"},{"$f":"ZZZ__FnCalls!A31","v":"2012-01-01"},{"$f":"ZZZ__FnCalls!A32","v":"2012-02-01"},{"$f":"ZZZ__FnCalls!A33","v":"2012-03-01"},{"$f":"ZZZ__FnCalls!A34","v":"2012-04-01"},{"$f":"ZZZ__FnCalls!A35","v":"2012-05-01"},{"$f":"ZZZ__FnCalls!A36","v":"2012-06-01"},{"$f":"ZZZ__FnCalls!A37","v":"2012-07-01"},{"$f":"ZZZ__FnCalls!A38","v":"2012-08-01"},{"$f":"ZZZ__FnCalls!A39","v":"2012-09-01"},{"$f":"ZZZ__FnCalls!A40","v":"2012-10-01"},{"$f":"ZZZ__FnCalls!A41","v":"2012-11-01"},{"$f":"ZZZ__FnCalls!A42","v":"2012-12-01"},{"$f":"ZZZ__FnCalls!A31","v":"2012-01-01"},{"$f":"ZZZ__FnCalls!A43","v":"2013-01-01"},{"$f":"ZZZ__FnCalls!A44","v":"2013-02-01"},{"$f":"ZZZ__FnCalls!A45","v":"2013-03-01"},{"$f":"ZZZ__FnCalls!A46","v":"2013-04-01"},{"$f":"ZZZ__FnCalls!A47","v":"2013-05-01"},{"$f":"ZZZ__FnCalls!A48","v":"2013-06-01"},{"$f":"ZZZ__FnCalls!A49","v":"2013-07-01"},{"$f":"ZZZ__FnCalls!A50","v":"2013-08-01"},{"$f":"ZZZ__FnCalls!A51","v":"2013-09-01"},{"$f":"ZZZ__FnCalls!A52","v":"2013-10-01"},{"$f":"ZZZ__FnCalls!A53","v":"2013-11-01"},{"$f":"ZZZ__FnCalls!A54","v":"2013-12-01"},{"$f":"ZZZ__FnCalls!A43","v":"2013-01-01"},{"$f":"ZZZ__FnCalls!A55","v":"2014-01-01"},{"$f":"ZZZ__FnCalls!A56","v":"2014-02-01"},{"$f":"ZZZ__FnCalls!A57","v":"2014-03-01"},{"$f":"ZZZ__FnCalls!A58","v":"2014-04-01"},{"$f":"ZZZ__FnCalls!A59","v":"2014-05-01"},{"$f":"ZZZ__FnCalls!A60","v":"2014-06-01"},{"$f":"ZZZ__FnCalls!A61","v":"2014-07-01"},{"$f":"ZZZ__FnCalls!A62","v":"2014-08-01"},{"$f":"ZZZ__FnCalls!A63","v":"2014-09-01"},{"$f":"ZZZ__FnCalls!A64","v":"2014-10-01"},{"$f":"ZZZ__FnCalls!A65","v":"2014-11-01"},{"$f":"ZZZ__FnCalls!A66","v":"2014-12-01"},{"$f":"ZZZ__FnCalls!A55","v":"2014-01-01"},{"$f":"ZZZ__FnCalls!A67","v":"2015-01-01"},{"$f":"ZZZ__FnCalls!A68","v":"2015-02-01"},{"$f":"ZZZ__FnCalls!A69","v":"2015-03-01"},{"$f":"ZZZ__FnCalls!A70","v":"2015-04-01"},{"$f":"ZZZ__FnCalls!A71","v":"2015-05-01"},{"$f":"ZZZ__FnCalls!A72","v":"2015-06-01"},{"$f":"ZZZ__FnCalls!A73","v":"2015-07-01"},{"$f":"ZZZ__FnCalls!A74","v":"2015-08-01"},{"$f":"ZZZ__FnCalls!A75","v":"2015-09-01"},{"$f":"ZZZ__FnCalls!A76","v":"2015-10-01"},{"$f":"ZZZ__FnCalls!A77","v":"2015-11-01"},{"$f":"ZZZ__FnCalls!A78","v":"2015-12-01"},{"$f":"ZZZ__FnCalls!A67","v":"2015-01-01"},{"$f":"ZZZ__FnCalls!A79","v":"2016-01-01"},{"$f":"ZZZ__FnCalls!A80","v":"2016-02-01"},{"$f":"ZZZ__FnCalls!A81","v":"2016-03-01"},{"$f":"ZZZ__FnCalls!A82","v":"2016-04-01"},{"$f":"ZZZ__FnCalls!A83","v":"2016-05-01"},{"$f":"ZZZ__FnCalls!A84","v":"2016-06-01"},{"$f":"ZZZ__FnCalls!A85","v":"2016-07-01"},{"$f":"ZZZ__FnCalls!A86","v":"2016-08-01"},{"$f":"ZZZ__FnCalls!A87","v":"2016-09-01"},{"$f":"ZZZ__FnCalls!A88","v":"2016-10-01"},{"$f":"ZZZ__FnCalls!A89","v":"2016-11-01"},{"$f":"ZZZ__FnCalls!A90","v":"2016-12-01"},{"$f":"ZZZ__FnCalls!A79","v":"2016-01-01"},{"$f":"ZZZ__FnCalls!A91","v":"2017-01-01"},{"$f":"ZZZ__FnCalls!A92","v":"2017-02-01"},{"$f":"ZZZ__FnCalls!A93","v":"2017-03-01"},{"$f":"ZZZ__FnCalls!A94","v":"2017-04-01"},{"$f":"ZZZ__FnCalls!A95","v":"2017-05-01"},{"$f":"ZZZ__FnCalls!A96","v":"2017-06-01"},{"$f":"ZZZ__FnCalls!A97","v":"2017-07-01"},{"$f":"ZZZ__FnCalls!A98","v":"2017-08-01"},{"$f":"ZZZ__FnCalls!A99","v":"2017-09-01"},{"$f":"ZZZ__FnCalls!A100","v":"2017-10-01"},{"$f":"ZZZ__FnCalls!A101","v":"2017-11-01"},{"$f":"ZZZ__FnCalls!A102","v":"2017-12-01"},{"$f":"ZZZ__FnCalls!A91","v":"2017-01-01"},{"$f":"ZZZ__FnCalls!A103","v":"2018-01-01"},{"$f":"ZZZ__FnCalls!A104","v":"2018-02-01"},{"$f":"ZZZ__FnCalls!A105","v":"2018-03-01"},{"$f":"ZZZ__FnCalls!A106","v":"2018-04-01"},{"$f":"ZZZ__FnCalls!A107","v":"2018-05-01"},{"$f":"ZZZ__FnCalls!A108","v":"2018-06-01"},{"$f":"ZZZ__FnCalls!A109","v":"2018-07-01"},{"$f":"ZZZ__FnCalls!A110","v":"2018-08-01"},{"$f":"ZZZ__FnCalls!A111","v":"2018-09-01"},{"$f":"ZZZ__FnCalls!A112","v":"2018-10-01"},{"$f":"ZZZ__FnCalls!A113","v":"2018-11-01"},{"$f":"ZZZ__FnCalls!A114","v":"2018-12-01"},{"$f":"ZZZ__FnCalls!A103","v":"2018-01-01"},{"$f":"ZZZ__FnCalls!A115","v":"2019-01-01"},{"$f":"ZZZ__FnCalls!A116","v":"2019-02-01"},{"$f":"ZZZ__FnCalls!A117","v":"2019-03-01"},{"$f":"ZZZ__FnCalls!A118","v":"2019-04-01"},{"$f":"ZZZ__FnCalls!A119","v":"2019-05-01"},{"$f":"ZZZ__FnCalls!A120","v":"2019-06-01"},{"$f":"ZZZ__FnCalls!A121","v":"2019-07-01"},{"$f":"ZZZ__FnCalls!A122","v":"2019-08-01"},{"$f":"ZZZ__FnCalls!A123","v":"2019-09-01"},{"$f":"ZZZ__FnCalls!A124","v":"2019-10-01"},{"$f":"ZZZ__FnCalls!A125","v":"2019-11-01"},{"$f":"ZZZ__FnCalls!A126","v":"2019-12-01"},{"$f":"ZZZ__FnCalls!A115","v":"2019-01-01"},{"$f":"ZZZ__FnCalls!A127","v":"2020-01-01"},{"$f":"ZZZ__FnCalls!A128","v":"2020-02-01"},{"$f":"ZZZ__FnCalls!A129","v":"2020-03-01"},{"$f":"ZZZ__FnCalls!A130","v":"2020-04-01"},{"$f":"ZZZ__FnCalls!A131","v":"2020-05-01"},{"$f":"ZZZ__FnCalls!A132","v":"2020-06-01"},{"$f":"ZZZ__FnCalls!A133","v":"2020-07-01"},{"$f":"ZZZ__FnCalls!A134","v":"2020-08-01"},{"$f":"ZZZ__FnCalls!A135","v":"2020-09-01"},{"$f":"ZZZ__FnCalls!A136","v":"2020-10-01"},{"$f":"ZZZ__FnCalls!A137","v":"2020-11-01"},{"$f":"ZZZ__FnCalls!A138","v":"2020-12-01"},{"$f":"ZZZ__FnCalls!A127","v":"2020-01-01"}]
[{"$f":"\"Demand_Aggregate_2\"","v":"Demand_Aggregate_2"}]
[null,{"$f":"ZZZ__FnCalls!F7","v":"Jan 2010"},{"$f":"ZZZ__FnCalls!F8","v":"Feb 2010"},{"$f":"ZZZ__FnCalls!F9","v":"Mar 2010"},{"$f":"ZZZ__FnCalls!F10","v":"Apr 2010"},{"$f":"ZZZ__FnCalls!F11","v":"May 2010"},{"$f":"ZZZ__FnCalls!F12","v":"Jun 2010"},{"$f":"ZZZ__FnCalls!F13","v":"Jul 2010"},{"$f":"ZZZ__FnCalls!F14","v":"Aug 2010"},{"$f":"ZZZ__FnCalls!F15","v":"Sep 2010"},{"$f":"ZZZ__FnCalls!F16","v":"Oct 2010"},{"$f":"ZZZ__FnCalls!F17","v":"Nov 2010"},{"$f":"ZZZ__FnCalls!F18","v":"Dec 2010"},{"$f":"ZZZ__FnCalls!H7","v":"2010"},{"$f":"ZZZ__FnCalls!F19","v":"Jan 2011"},{"$f":"ZZZ__FnCalls!F20","v":"Feb 2011"},{"$f":"ZZZ__FnCalls!F21","v":"Mar 2011"},{"$f":"ZZZ__FnCalls!F22","v":"Apr 2011"},{"$f":"ZZZ__FnCalls!F23","v":"May 2011"},{"$f":"ZZZ__FnCalls!F24","v":"Jun 2011"},{"$f":"ZZZ__FnCalls!F25","v":"Jul 2011"},{"$f":"ZZZ__FnCalls!F26","v":"Aug 2011"},{"$f":"ZZZ__FnCalls!F27","v":"Sep 2011"},{"$f":"ZZZ__FnCalls!F28","v":"Oct 2011"},{"$f":"ZZZ__FnCalls!F29","v":"Nov 2011"},{"$f":"ZZZ__FnCalls!F30","v":"Dec 2011"},{"$f":"ZZZ__FnCalls!H19","v":"2011"},{"$f":"ZZZ__FnCalls!F31","v":"Jan 2012"},{"$f":"ZZZ__FnCalls!F32","v":"Feb 2012"},{"$f":"ZZZ__FnCalls!F33","v":"Mar 2012"},{"$f":"ZZZ__FnCalls!F34","v":"Apr 2012"},{"$f":"ZZZ__FnCalls!F35","v":"May 2012"},{"$f":"ZZZ__FnCalls!F36","v":"Jun 2012"},{"$f":"ZZZ__FnCalls!F37","v":"Jul 2012"},{"$f":"ZZZ__FnCalls!F38","v":"Aug 2012"},{"$f":"ZZZ__FnCalls!F39","v":"Sep 2012"},{"$f":"ZZZ__FnCalls!F40","v":"Oct 2012"},{"$f":"ZZZ__FnCalls!F41","v":"Nov 2012"},{"$f":"ZZZ__FnCalls!F42","v":"Dec 2012"},{"$f":"ZZZ__FnCalls!H31","v":"2012"},{"$f":"ZZZ__FnCalls!F43","v":"Jan 2013"},{"$f":"ZZZ__FnCalls!F44","v":"Feb 2013"},{"$f":"ZZZ__FnCalls!F45","v":"Mar 2013"},{"$f":"ZZZ__FnCalls!F46","v":"Apr 2013"},{"$f":"ZZZ__FnCalls!F47","v":"May 2013"},{"$f":"ZZZ__FnCalls!F48","v":"Jun 2013"},{"$f":"ZZZ__FnCalls!F49","v":"Jul 2013"},{"$f":"ZZZ__FnCalls!F50","v":"Aug 2013"},{"$f":"ZZZ__FnCalls!F51","v":"Sep 2013"},{"$f":"ZZZ__FnCalls!F52","v":"Oct 2013"},{"$f":"ZZZ__FnCalls!F53","v":"Nov 2013"},{"$f":"ZZZ__FnCalls!F54","v":"Dec 2013"},{"$f":"ZZZ__FnCalls!H43","v":"2013"},{"$f":"ZZZ__FnCalls!F55","v":"Jan 2014"},{"$f":"ZZZ__FnCalls!F56","v":"Feb 2014"},{"$f":"ZZZ__FnCalls!F57","v":"Mar 2014"},{"$f":"ZZZ__FnCalls!F58","v":"Apr 2014"},{"$f":"ZZZ__FnCalls!F59","v":"May 2014"},{"$f":"ZZZ__FnCalls!F60","v":"Jun 2014"},{"$f":"ZZZ__FnCalls!F61","v":"Jul 2014"},{"$f":"ZZZ__FnCalls!F62","v":"Aug 2014"},{"$f":"ZZZ__FnCalls!F63","v":"Sep 2014"},{"$f":"ZZZ__FnCalls!F64","v":"Oct 2014"},{"$f":"ZZZ__FnCalls!F65","v":"Nov 2014"},{"$f":"ZZZ__FnCalls!F66","v":"Dec 2014"},{"$f":"ZZZ__FnCalls!H55","v":"2014"},{"$f":"ZZZ__FnCalls!F67","v":"Jan 2015"},{"$f":"ZZZ__FnCalls!F68","v":"Feb 2015"},{"$f":"ZZZ__FnCalls!F69","v":"Mar 2015"},{"$f":"ZZZ__FnCalls!F70","v":"Apr 2015"},{"$f":"ZZZ__FnCalls!F71","v":"May 2015"},{"$f":"ZZZ__FnCalls!F72","v":"Jun 2015"},{"$f":"ZZZ__FnCalls!F73","v":"Jul 2015"},{"$f":"ZZZ__FnCalls!F74","v":"Aug 2015"},{"$f":"ZZZ__FnCalls!F75","v":"Sep 2015"},{"$f":"ZZZ__FnCalls!F76","v":"Oct 2015"},{"$f":"ZZZ__FnCalls!F77","v":"Nov 2015"},{"$f":"ZZZ__FnCalls!F78","v":"Dec 2015"},{"$f":"ZZZ__FnCalls!H67","v":"2015"},{"$f":"ZZZ__FnCalls!F79","v":"Jan 2016"},{"$f":"ZZZ__FnCalls!F80","v":"Feb 2016"},{"$f":"ZZZ__FnCalls!F81","v":"Mar 2016"},{"$f":"ZZZ__FnCalls!F82","v":"Apr 2016"},{"$f":"ZZZ__FnCalls!F83","v":"May 2016"},{"$f":"ZZZ__FnCalls!F84","v":"Jun 2016"},{"$f":"ZZZ__FnCalls!F85","v":"Jul 2016"},{"$f":"ZZZ__FnCalls!F86","v":"Aug 2016"},{"$f":"ZZZ__FnCalls!F87","v":"Sep 2016"},{"$f":"ZZZ__FnCalls!F88","v":"Oct 2016"},{"$f":"ZZZ__FnCalls!F89","v":"Nov 2016"},{"$f":"ZZZ__FnCalls!F90","v":"Dec 2016"},{"$f":"ZZZ__FnCalls!H79","v":"2016"},{"$f":"ZZZ__FnCalls!F91","v":"Jan 2017"},{"$f":"ZZZ__FnCalls!F92","v":"Feb 2017"},{"$f":"ZZZ__FnCalls!F93","v":"Mar 2017"},{"$f":"ZZZ__FnCalls!F94","v":"Apr 2017"},{"$f":"ZZZ__FnCalls!F95","v":"May 2017"},{"$f":"ZZZ__FnCalls!F96","v":"Jun 2017"},{"$f":"ZZZ__FnCalls!F97","v":"Jul 2017"},{"$f":"ZZZ__FnCalls!F98","v":"Aug 2017"},{"$f":"ZZZ__FnCalls!F99","v":"Sep 2017"},{"$f":"ZZZ__FnCalls!F100","v":"Oct 2017"},{"$f":"ZZZ__FnCalls!F101","v":"Nov 2017"},{"$f":"ZZZ__FnCalls!F102","v":"Dec 2017"},{"$f":"ZZZ__FnCalls!H91","v":"2017"},{"$f":"ZZZ__FnCalls!F103","v":"Jan 2018"},{"$f":"ZZZ__FnCalls!F104","v":"Feb 2018"},{"$f":"ZZZ__FnCalls!F105","v":"Mar 2018"},{"$f":"ZZZ__FnCalls!F106","v":"Apr 2018"},{"$f":"ZZZ__FnCalls!F107","v":"May 2018"},{"$f":"ZZZ__FnCalls!F108","v":"Jun 2018"},{"$f":"ZZZ__FnCalls!F109","v":"Jul 2018"},{"$f":"ZZZ__FnCalls!F110","v":"Aug 2018"},{"$f":"ZZZ__FnCalls!F111","v":"Sep 2018"},{"$f":"ZZZ__FnCalls!F112","v":"Oct 2018"},{"$f":"ZZZ__FnCalls!F113","v":"Nov 2018"},{"$f":"ZZZ__FnCalls!F114","v":"Dec 2018"},{"$f":"ZZZ__FnCalls!H103","v":"2018"},{"$f":"ZZZ__FnCalls!F115","v":"Jan 2019"},{"$f":"ZZZ__FnCalls!F116","v":"Feb 2019"},{"$f":"ZZZ__FnCalls!F117","v":"Mar 2019"},{"$f":"ZZZ__FnCalls!F118","v":"Apr 2019"},{"$f":"ZZZ__FnCalls!F119","v":"May 2019"},{"$f":"ZZZ__FnCalls!F120","v":"Jun 2019"},{"$f":"ZZZ__FnCalls!F121","v":"Jul 2019"},{"$f":"ZZZ__FnCalls!F122","v":"Aug 2019"},{"$f":"ZZZ__FnCalls!F123","v":"Sep 2019"},{"$f":"ZZZ__FnCalls!F124","v":"Oct 2019"},{"$f":"ZZZ__FnCalls!F125","v":"Nov 2019"},{"$f":"ZZZ__FnCalls!F126","v":"Dec 2019"},{"$f":"ZZZ__FnCalls!H115","v":"2019"},{"$f":"ZZZ__FnCalls!F127","v":"Jan 2020"},{"$f":"ZZZ__FnCalls!F128","v":"Feb 2020"},{"$f":"ZZZ__FnCalls!F129","v":"Mar 2020"},{"$f":"ZZZ__FnCalls!F130","v":"Apr 2020"},{"$f":"ZZZ__FnCalls!F131","v":"May 2020"},{"$f":"ZZZ__FnCalls!F132","v":"Jun 2020"},{"$f":"ZZZ__FnCalls!F133","v":"Jul 2020"},{"$f":"ZZZ__FnCalls!F134","v":"Aug 2020"},{"$f":"ZZZ__FnCalls!F135","v":"Sep 2020"},{"$f":"ZZZ__FnCalls!F136","v":"Oct 2020"},{"$f":"ZZZ__FnCalls!F137","v":"Nov 2020"},{"$f":"ZZZ__FnCalls!F138","v":"Dec 2020"},{"$f":"ZZZ__FnCalls!H127","v":"2020"}]
[null,{"$f":"ZZZ__FnCalls!F7","v":"Jan 2010"},{"$f":"ZZZ__FnCalls!F8","v":"Feb 2010"},{"$f":"ZZZ__FnCalls!F9","v":"Mar 2010"},{"$f":"ZZZ__FnCalls!F10","v":"Apr 2010"},{"$f":"ZZZ__FnCalls!F11","v":"May 2010"},{"$f":"ZZZ__FnCalls!F12","v":"Jun 2010"},{"$f":"ZZZ__FnCalls!F13","v":"Jul 2010"},{"$f":"ZZZ__FnCalls!F14","v":"Aug 2010"},{"$f":"ZZZ__FnCalls!F15","v":"Sep 2010"},{"$f":"ZZZ__FnCalls!F16","v":"Oct 2010"},{"$f":"ZZZ__FnCalls!F17","v":"Nov 2010"},{"$f":"ZZZ__FnCalls!F18","v":"Dec 2010"},{"$f":"ZZZ__FnCalls!F7","v":"Jan 2010"},{"$f":"ZZZ__FnCalls!F19","v":"Jan 2011"},{"$f":"ZZZ__FnCalls!F20","v":"Feb 2011"},{"$f":"ZZZ__FnCalls!F21","v":"Mar 2011"},{"$f":"ZZZ__FnCalls!F22","v":"Apr 2011"},{"$f":"ZZZ__FnCalls!F23","v":"May 2011"},{"$f":"ZZZ__FnCalls!F24","v":"Jun 2011"},{"$f":"ZZZ__FnCalls!F25","v":"Jul 2011"},{"$f":"ZZZ__FnCalls!F26","v":"Aug 2011"},{"$f":"ZZZ__FnCalls!F27","v":"Sep 2011"},{"$f":"ZZZ__FnCalls!F28","v":"Oct 2011"},{"$f":"ZZZ__FnCalls!F29","v":"Nov 2011"},{"$f":"ZZZ__FnCalls!F30","v":"Dec 2011"},{"$f":"ZZZ__FnCalls!F19","v":"Jan 2011"},{"$f":"ZZZ__FnCalls!F31","v":"Jan 2012"},{"$f":"ZZZ__FnCalls!F32","v":"Feb 2012"},{"$f":"ZZZ__FnCalls!F33","v":"Mar 2012"},{"$f":"ZZZ__FnCalls!F34","v":"Apr 2012"},{"$f":"ZZZ__FnCalls!F35","v":"May 2012"},{"$f":"ZZZ__FnCalls!F36","v":"Jun 2012"},{"$f":"ZZZ__FnCalls!F37","v":"Jul 2012"},{"$f":"ZZZ__FnCalls!F38","v":"Aug 2012"},{"$f":"ZZZ__FnCalls!F39","v":"Sep 2012"},{"$f":"ZZZ__FnCalls!F40","v":"Oct 2012"},{"$f":"ZZZ__FnCalls!F41","v":"Nov 2012"},{"$f":"ZZZ__FnCalls!F42","v":"Dec 2012"},{"$f":"ZZZ__FnCalls!F31","v":"Jan 2012"},{"$f":"ZZZ__FnCalls!F43","v":"Jan 2013"},{"$f":"ZZZ__FnCalls!F44","v":"Feb 2013"},{"$f":"ZZZ__FnCalls!F45","v":"Mar 2013"},{"$f":"ZZZ__FnCalls!F46","v":"Apr 2013"},{"$f":"ZZZ__FnCalls!F47","v":"May 2013"},{"$f":"ZZZ__FnCalls!F48","v":"Jun 2013"},{"$f":"ZZZ__FnCalls!F49","v":"Jul 2013"},{"$f":"ZZZ__FnCalls!F50","v":"Aug 2013"},{"$f":"ZZZ__FnCalls!F51","v":"Sep 2013"},{"$f":"ZZZ__FnCalls!F52","v":"Oct 2013"},{"$f":"ZZZ__FnCalls!F53","v":"Nov 2013"},{"$f":"ZZZ__FnCalls!F54","v":"Dec 2013"},{"$f":"ZZZ__FnCalls!F43","v":"Jan 2013"},{"$f":"ZZZ__FnCalls!F55","v":"Jan 2014"},{"$f":"ZZZ__FnCalls!F56","v":"Feb 2014"},{"$f":"ZZZ__FnCalls!F57","v":"Mar 2014"},{"$f":"ZZZ__FnCalls!F58","v":"Apr 2014"},{"$f":"ZZZ__FnCalls!F59","v":"May 2014"},{"$f":"ZZZ__FnCalls!F60","v":"Jun 2014"},{"$f":"ZZZ__FnCalls!F61","v":"Jul 2014"},{"$f":"ZZZ__FnCalls!F62","v":"Aug 2014"},{"$f":"ZZZ__FnCalls!F63","v":"Sep 2014"},{"$f":"ZZZ__FnCalls!F64","v":"Oct 2014"},{"$f":"ZZZ__FnCalls!F65","v":"Nov 2014"},{"$f":"ZZZ__FnCalls!F66","v":"Dec 2014"},{"$f":"ZZZ__FnCalls!F55","v":"Jan 2014"},{"$f":"ZZZ__FnCalls!F67","v":"Jan 2015"},{"$f":"ZZZ__FnCalls!F68","v":"Feb 2015"},{"$f":"ZZZ__FnCalls!F69","v":"Mar 2015"},{"$f":"ZZZ__FnCalls!F70","v":"Apr 2015"},{"$f":"ZZZ__FnCalls!F71","v":"May 2015"},{"$f":"ZZZ__FnCalls!F72","v":"Jun 2015"},{"$f":"ZZZ__FnCalls!F73","v":"Jul 2015"},{"$f":"ZZZ__FnCalls!F74","v":"Aug 2015"},{"$f":"ZZZ__FnCalls!F75","v":"Sep 2015"},{"$f":"ZZZ__FnCalls!F76","v":"Oct 2015"},{"$f":"ZZZ__FnCalls!F77","v":"Nov 2015"},{"$f":"ZZZ__FnCalls!F78","v":"Dec 2015"},{"$f":"ZZZ__FnCalls!F67","v":"Jan 2015"},{"$f":"ZZZ__FnCalls!F79","v":"Jan 2016"},{"$f":"ZZZ__FnCalls!F80","v":"Feb 2016"},{"$f":"ZZZ__FnCalls!F81","v":"Mar 2016"},{"$f":"ZZZ__FnCalls!F82","v":"Apr 2016"},{"$f":"ZZZ__FnCalls!F83","v":"May 2016"},{"$f":"ZZZ__FnCalls!F84","v":"Jun 2016"},{"$f":"ZZZ__FnCalls!F85","v":"Jul 2016"},{"$f":"ZZZ__FnCalls!F86","v":"Aug 2016"},{"$f":"ZZZ__FnCalls!F87","v":"Sep 2016"},{"$f":"ZZZ__FnCalls!F88","v":"Oct 2016"},{"$f":"ZZZ__FnCalls!F89","v":"Nov 2016"},{"$f":"ZZZ__FnCalls!F90","v":"Dec 2016"},{"$f":"ZZZ__FnCalls!F79","v":"Jan 2016"},{"$f":"ZZZ__FnCalls!F91","v":"Jan 2017"},{"$f":"ZZZ__FnCalls!F92","v":"Feb 2017"},{"$f":"ZZZ__FnCalls!F93","v":"Mar 2017"},{"$f":"ZZZ__FnCalls!F94","v":"Apr 2017"},{"$f":"ZZZ__FnCalls!F95","v":"May 2017"},{"$f":"ZZZ__FnCalls!F96","v":"Jun 2017"},{"$f":"ZZZ__FnCalls!F97","v":"Jul 2017"},{"$f":"ZZZ__FnCalls!F98","v":"Aug 2017"},{"$f":"ZZZ__FnCalls!F99","v":"Sep 2017"},{"$f":"ZZZ__FnCalls!F100","v":"Oct 2017"},{"$f":"ZZZ__FnCalls!F101","v":"Nov 2017"},{"$f":"ZZZ__FnCalls!F102","v":"Dec 2017"},{"$f":"ZZZ__FnCalls!F91","v":"Jan 2017"},{"$f":"ZZZ__FnCalls!F103","v":"Jan 2018"},{"$f":"ZZZ__FnCalls!F104","v":"Feb 2018"},{"$f":"ZZZ__FnCalls!F105","v":"Mar 2018"},{"$f":"ZZZ__FnCalls!F106","v":"Apr 2018"},{"$f":"ZZZ__FnCalls!F107","v":"May 2018"},{"$f":"ZZZ__FnCalls!F108","v":"Jun 2018"},{"$f":"ZZZ__FnCalls!F109","v":"Jul 2018"},{"$f":"ZZZ__FnCalls!F110","v":"Aug 2018"},{"$f":"ZZZ__FnCalls!F111","v":"Sep 2018"},{"$f":"ZZZ__FnCalls!F112","v":"Oct 2018"},{"$f":"ZZZ__FnCalls!F113","v":"Nov 2018"},{"$f":"ZZZ__FnCalls!F114","v":"Dec 2018"},{"$f":"ZZZ__FnCalls!F103","v":"Jan 2018"},{"$f":"ZZZ__FnCalls!F115","v":"Jan 2019"},{"$f":"ZZZ__FnCalls!F116","v":"Feb 2019"},{"$f":"ZZZ__FnCalls!F117","v":"Mar 2019"},{"$f":"ZZZ__FnCalls!F118","v":"Apr 2019"},{"$f":"ZZZ__FnCalls!F119","v":"May 2019"},{"$f":"ZZZ__FnCalls!F120","v":"Jun 2019"},{"$f":"ZZZ__FnCalls!F121","v":"Jul 2019"},{"$f":"ZZZ__FnCalls!F122","v":"Aug 2019"},{"$f":"ZZZ__FnCalls!F123","v":"Sep 2019"},{"$f":"ZZZ__FnCalls!F124","v":"Oct 2019"},{"$f":"ZZZ__FnCalls!F125","v":"Nov 2019"},{"$f":"ZZZ__FnCalls!F126","v":"Dec 2019"},{"$f":"ZZZ__FnCalls!F115","v":"Jan 2019"},{"$f":"ZZZ__FnCalls!F127","v":"Jan 2020"},{"$f":"ZZZ__FnCalls!F128","v":"Feb 2020"},{"$f":"ZZZ__FnCalls!F129","v":"Mar 2020"},{"$f":"ZZZ__FnCalls!F130","v":"Apr 2020"},{"$f":"ZZZ__FnCalls!F131","v":"May 2020"},{"$f":"ZZZ__FnCalls!F132","v":"Jun 2020"},{"$f":"ZZZ__FnCalls!F133","v":"Jul 2020"},{"$f":"ZZZ__FnCalls!F134","v":"Aug 2020"},{"$f":"ZZZ__FnCalls!F135","v":"Sep 2020"},{"$f":"ZZZ__FnCalls!F136","v":"Oct 2020"},{"$f":"ZZZ__FnCalls!F137","v":"Nov 2020"},{"$f":"ZZZ__FnCalls!F138","v":"Dec 2020"},{"$f":"ZZZ__FnCalls!F127","v":"Jan 2020"}]
[{"$f":"\"Final_Sales_1\"","v":"Final_Sales_1"}]
[null,{"$f":"ZZZ__FnCalls!F7","v":"Jan 2010"},{"$f":"ZZZ__FnCalls!F8","v":"Feb 2010"},{"$f":"ZZZ__FnCalls!F9","v":"Mar 2010"},{"$f":"ZZZ__FnCalls!F10","v":"Apr 2010"},{"$f":"ZZZ__FnCalls!F11","v":"May 2010"},{"$f":"ZZZ__FnCalls!F12","v":"Jun 2010"},{"$f":"ZZZ__FnCalls!F13","v":"Jul 2010"},{"$f":"ZZZ__FnCalls!F14","v":"Aug 2010"},{"$f":"ZZZ__FnCalls!F15","v":"Sep 2010"},{"$f":"ZZZ__FnCalls!F16","v":"Oct 2010"},{"$f":"ZZZ__FnCalls!F17","v":"Nov 2010"},{"$f":"ZZZ__FnCalls!F18","v":"Dec 2010"},{"$f":"ZZZ__FnCalls!H7","v":"2010"},{"$f":"ZZZ__FnCalls!F19","v":"Jan 2011"},{"$f":"ZZZ__FnCalls!F20","v":"Feb 2011"},{"$f":"ZZZ__FnCalls!F21","v":"Mar 2011"},{"$f":"ZZZ__FnCalls!F22","v":"Apr 2011"},{"$f":"ZZZ__FnCalls!F23","v":"May 2011"},{"$f":"ZZZ__FnCalls!F24","v":"Jun 2011"},{"$f":"ZZZ__FnCalls!F25","v":"Jul 2011"},{"$f":"ZZZ__FnCalls!F26","v":"Aug 2011"},{"$f":"ZZZ__FnCalls!F27","v":"Sep 2011"},{"$f":"ZZZ__FnCalls!F28","v":"Oct 2011"},{"$f":"ZZZ__FnCalls!F29","v":"Nov 2011"},{"$f":"ZZZ__FnCalls!F30","v":"Dec 2011"},{"$f":"ZZZ__FnCalls!H19","v":"2011"},{"$f":"ZZZ__FnCalls!F31","v":"Jan 2012"},{"$f":"ZZZ__FnCalls!F32","v":"Feb 2012"},{"$f":"ZZZ__FnCalls!F33","v":"Mar 2012"},{"$f":"ZZZ__FnCalls!F34","v":"Apr 2012"},{"$f":"ZZZ__FnCalls!F35","v":"May 2012"},{"$f":"ZZZ__FnCalls!F36","v":"Jun 2012"},{"$f":"ZZZ__FnCalls!F37","v":"Jul 2012"},{"$f":"ZZZ__FnCalls!F38","v":"Aug 2012"},{"$f":"ZZZ__FnCalls!F39","v":"Sep 2012"},{"$f":"ZZZ__FnCalls!F40","v":"Oct 2012"},{"$f":"ZZZ__FnCalls!F41","v":"Nov 2012"},{"$f":"ZZZ__FnCalls!F42","v":"Dec 2012"},{"$f":"ZZZ__FnCalls!H31","v":"2012"},{"$f":"ZZZ__FnCalls!F43","v":"Jan 2013"},{"$f":"ZZZ__FnCalls!F44","v":"Feb 2013"},{"$f":"ZZZ__FnCalls!F45","v":"Mar 2013"},{"$f":"ZZZ__FnCalls!F46","v":"Apr 2013"},{"$f":"ZZZ__FnCalls!F47","v":"May 2013"},{"$f":"ZZZ__FnCalls!F48","v":"Jun 2013"},{"$f":"ZZZ__FnCalls!F49","v":"Jul 2013"},{"$f":"ZZZ__FnCalls!F50","v":"Aug 2013"},{"$f":"ZZZ__FnCalls!F51","v":"Sep 2013"},{"$f":"ZZZ__FnCalls!F52","v":"Oct 2013"},{"$f":"ZZZ__FnCalls!F53","v":"Nov 2013"},{"$f":"ZZZ__FnCalls!F54","v":"Dec 2013"},{"$f":"ZZZ__FnCalls!H43","v":"2013"},{"$f":"ZZZ__FnCalls!F55","v":"Jan 2014"},{"$f":"ZZZ__FnCalls!F56","v":"Feb 2014"},{"$f":"ZZZ__FnCalls!F57","v":"Mar 2014"},{"$f":"ZZZ__FnCalls!F58","v":"Apr 2014"},{"$f":"ZZZ__FnCalls!F59","v":"May 2014"},{"$f":"ZZZ__FnCalls!F60","v":"Jun 2014"},{"$f":"ZZZ__FnCalls!F61","v":"Jul 2014"},{"$f":"ZZZ__FnCalls!F62","v":"Aug 2014"},{"$f":"ZZZ__FnCalls!F63","v":"Sep 2014"},{"$f":"ZZZ__FnCalls!F64","v":"Oct 2014"},{"$f":"ZZZ__FnCalls!F65","v":"Nov 2014"},{"$f":"ZZZ__FnCalls!F66","v":"Dec 2014"},{"$f":"ZZZ__FnCalls!H55","v":"2014"},{"$f":"ZZZ__FnCalls!F67","v":"Jan 2015"},{"$f":"ZZZ__FnCalls!F68","v":"Feb 2015"},{"$f":"ZZZ__FnCalls!F69","v":"Mar 2015"},{"$f":"ZZZ__FnCalls!F70","v":"Apr 2015"},{"$f":"ZZZ__FnCalls!F71","v":"May 2015"},{"$f":"ZZZ__FnCalls!F72","v":"Jun 2015"},{"$f":"ZZZ__FnCalls!F73","v":"Jul 2015"},{"$f":"ZZZ__FnCalls!F74","v":"Aug 2015"},{"$f":"ZZZ__FnCalls!F75","v":"Sep 2015"},{"$f":"ZZZ__FnCalls!F76","v":"Oct 2015"},{"$f":"ZZZ__FnCalls!F77","v":"Nov 2015"},{"$f":"ZZZ__FnCalls!F78","v":"Dec 2015"},{"$f":"ZZZ__FnCalls!H67","v":"2015"},{"$f":"ZZZ__FnCalls!F79","v":"Jan 2016"},{"$f":"ZZZ__FnCalls!F80","v":"Feb 2016"},{"$f":"ZZZ__FnCalls!F81","v":"Mar 2016"},{"$f":"ZZZ__FnCalls!F82","v":"Apr 2016"},{"$f":"ZZZ__FnCalls!F83","v":"May 2016"},{"$f":"ZZZ__FnCalls!F84","v":"Jun 2016"},{"$f":"ZZZ__FnCalls!F85","v":"Jul 2016"},{"$f":"ZZZ__FnCalls!F86","v":"Aug 2016"},{"$f":"ZZZ__FnCalls!F87","v":"Sep 2016"},{"$f":"ZZZ__FnCalls!F88","v":"Oct 2016"},{"$f":"ZZZ__FnCalls!F89","v":"Nov 2016"},{"$f":"ZZZ__FnCalls!F90","v":"Dec 2016"},{"$f":"ZZZ__FnCalls!H79","v":"2016"},{"$f":"ZZZ__FnCalls!F91","v":"Jan 2017"},{"$f":"ZZZ__FnCalls!F92","v":"Feb 2017"},{"$f":"ZZZ__FnCalls!F93","v":"Mar 2017"},{"$f":"ZZZ__FnCalls!F94","v":"Apr 2017"},{"$f":"ZZZ__FnCalls!F95","v":"May 2017"},{"$f":"ZZZ__FnCalls!F96","v":"Jun 2017"},{"$f":"ZZZ__FnCalls!F97","v":"Jul 2017"},{"$f":"ZZZ__FnCalls!F98","v":"Aug 2017"},{"$f":"ZZZ__FnCalls!F99","v":"Sep 2017"},{"$f":"ZZZ__FnCalls!F100","v":"Oct 2017"},{"$f":"ZZZ__FnCalls!F101","v":"Nov 2017"},{"$f":"ZZZ__FnCalls!F102","v":"Dec 2017"},{"$f":"ZZZ__FnCalls!H91","v":"2017"},{"$f":"ZZZ__FnCalls!F103","v":"Jan 2018"},{"$f":"ZZZ__FnCalls!F104","v":"Feb 2018"},{"$f":"ZZZ__FnCalls!F105","v":"Mar 2018"},{"$f":"ZZZ__FnCalls!F106","v":"Apr 2018"},{"$f":"ZZZ__FnCalls!F107","v":"May 2018"},{"$f":"ZZZ__FnCalls!F108","v":"Jun 2018"},{"$f":"ZZZ__FnCalls!F109","v":"Jul 2018"},{"$f":"ZZZ__FnCalls!F110","v":"Aug 2018"},{"$f":"ZZZ__FnCalls!F111","v":"Sep 2018"},{"$f":"ZZZ__FnCalls!F112","v":"Oct 2018"},{"$f":"ZZZ__FnCalls!F113","v":"Nov 2018"},{"$f":"ZZZ__FnCalls!F114","v":"Dec 2018"},{"$f":"ZZZ__FnCalls!H103","v":"2018"},{"$f":"ZZZ__FnCalls!F115","v":"Jan 2019"},{"$f":"ZZZ__FnCalls!F116","v":"Feb 2019"},{"$f":"ZZZ__FnCalls!F117","v":"Mar 2019"},{"$f":"ZZZ__FnCalls!F118","v":"Apr 2019"},{"$f":"ZZZ__FnCalls!F119","v":"May 2019"},{"$f":"ZZZ__FnCalls!F120","v":"Jun 2019"},{"$f":"ZZZ__FnCalls!F121","v":"Jul 2019"},{"$f":"ZZZ__FnCalls!F122","v":"Aug 2019"},{"$f":"ZZZ__FnCalls!F123","v":"Sep 2019"},{"$f":"ZZZ__FnCalls!F124","v":"Oct 2019"},{"$f":"ZZZ__FnCalls!F125","v":"Nov 2019"},{"$f":"ZZZ__FnCalls!F126","v":"Dec 2019"},{"$f":"ZZZ__FnCalls!H115","v":"2019"},{"$f":"ZZZ__FnCalls!F127","v":"Jan 2020"},{"$f":"ZZZ__FnCalls!F128","v":"Feb 2020"},{"$f":"ZZZ__FnCalls!F129","v":"Mar 2020"},{"$f":"ZZZ__FnCalls!F130","v":"Apr 2020"},{"$f":"ZZZ__FnCalls!F131","v":"May 2020"},{"$f":"ZZZ__FnCalls!F132","v":"Jun 2020"},{"$f":"ZZZ__FnCalls!F133","v":"Jul 2020"},{"$f":"ZZZ__FnCalls!F134","v":"Aug 2020"},{"$f":"ZZZ__FnCalls!F135","v":"Sep 2020"},{"$f":"ZZZ__FnCalls!F136","v":"Oct 2020"},{"$f":"ZZZ__FnCalls!F137","v":"Nov 2020"},{"$f":"ZZZ__FnCalls!F138","v":"Dec 2020"},{"$f":"ZZZ__FnCalls!H127","v":"2020"}]
[null,{"$f":"ZZZ__FnCalls!A7","v":"2010-01-01"},{"$f":"ZZZ__FnCalls!A8","v":"2010-02-01"},{"$f":"ZZZ__FnCalls!A9","v":"2010-03-01"},{"$f":"ZZZ__FnCalls!A10","v":"2010-04-01"},{"$f":"ZZZ__FnCalls!A11","v":"2010-05-01"},{"$f":"ZZZ__FnCalls!A12","v":"2010-06-01"},{"$f":"ZZZ__FnCalls!A13","v":"2010-07-01"},{"$f":"ZZZ__FnCalls!A14","v":"2010-08-01"},{"$f":"ZZZ__FnCalls!A15","v":"2010-09-01"},{"$f":"ZZZ__FnCalls!A16","v":"2010-10-01"},{"$f":"ZZZ__FnCalls!A17","v":"2010-11-01"},{"$f":"ZZZ__FnCalls!A18","v":"2010-12-01"},{"$f":"ZZZ__FnCalls!A7","v":"2010-01-01"},{"$f":"ZZZ__FnCalls!A19","v":"2011-01-01"},{"$f":"ZZZ__FnCalls!A20","v":"2011-02-01"},{"$f":"ZZZ__FnCalls!A21","v":"2011-03-01"},{"$f":"ZZZ__FnCalls!A22","v":"2011-04-01"},{"$f":"ZZZ__FnCalls!A23","v":"2011-05-01"},{"$f":"ZZZ__FnCalls!A24","v":"2011-06-01"},{"$f":"ZZZ__FnCalls!A25","v":"2011-07-01"},{"$f":"ZZZ__FnCalls!A26","v":"2011-08-01"},{"$f":"ZZZ__FnCalls!A27","v":"2011-09-01"},{"$f":"ZZZ__FnCalls!A28","v":"2011-10-01"},{"$f":"ZZZ__FnCalls!A29","v":"2011-11-01"},{"$f":"ZZZ__FnCalls!A30","v":"2011-12-01"},{"$f":"ZZZ__FnCalls!A19","v":"2011-01-01"},{"$f":"ZZZ__FnCalls!A31","v":"2012-01-01"},{"$f":"ZZZ__FnCalls!A32","v":"2012-02-01"},{"$f":"ZZZ__FnCalls!A33","v":"2012-03-01"},{"$f":"ZZZ__FnCalls!A34","v":"2012-04-01"},{"$f":"ZZZ__FnCalls!A35","v":"2012-05-01"},{"$f":"ZZZ__FnCalls!A36","v":"2012-06-01"},{"$f":"ZZZ__FnCalls!A37","v":"2012-07-01"},{"$f":"ZZZ__FnCalls!A38","v":"2012-08-01"},{"$f":"ZZZ__FnCalls!A39","v":"2012-09-01"},{"$f":"ZZZ__FnCalls!A40","v":"2012-10-01"},{"$f":"ZZZ__FnCalls!A41","v":"2012-11-01"},{"$f":"ZZZ__FnCalls!A42","v":"2012-12-01"},{"$f":"ZZZ__FnCalls!A31","v":"2012-01-01"},{"$f":"ZZZ__FnCalls!A43","v":"2013-01-01"},{"$f":"ZZZ__FnCalls!A44","v":"2013-02-01"},{"$f":"ZZZ__FnCalls!A45","v":"2013-03-01"},{"$f":"ZZZ__FnCalls!A46","v":"2013-04-01"},{"$f":"ZZZ__FnCalls!A47","v":"2013-05-01"},{"$f":"ZZZ__FnCalls!A48","v":"2013-06-01"},{"$f":"ZZZ__FnCalls!A49","v":"2013-07-01"},{"$f":"ZZZ__FnCalls!A50","v":"2013-08-01"},{"$f":"ZZZ__FnCalls!A51","v":"2013-09-01"},{"$f":"ZZZ__FnCalls!A52","v":"2013-10-01"},{"$f":"ZZZ__FnCalls!A53","v":"2013-11-01"},{"$f":"ZZZ__FnCalls!A54","v":"2013-12-01"},{"$f":"ZZZ__FnCalls!A43","v":"2013-01-01"},{"$f":"ZZZ__FnCalls!A55","v":"2014-01-01"},{"$f":"ZZZ__FnCalls!A56","v":"2014-02-01"},{"$f":"ZZZ__FnCalls!A57","v":"2014-03-01"},{"$f":"ZZZ__FnCalls!A58","v":"2014-04-01"},{"$f":"ZZZ__FnCalls!A59","v":"2014-05-01"},{"$f":"ZZZ__FnCalls!A60","v":"2014-06-01"},{"$f":"ZZZ__FnCalls!A61","v":"2014-07-01"},{"$f":"ZZZ__FnCalls!A62","v":"2014-08-01"},{"$f":"ZZZ__FnCalls!A63","v":"2014-09-01"},{"$f":"ZZZ__FnCalls!A64","v":"2014-10-01"},{"$f":"ZZZ__FnCalls!A65","v":"2014-11-01"},{"$f":"ZZZ__FnCalls!A66","v":"2014-12-01"},{"$f":"ZZZ__FnCalls!A55","v":"2014-01-01"},{"$f":"ZZZ__FnCalls!A67","v":"2015-01-01"},{"$f":"ZZZ__FnCalls!A68","v":"2015-02-01"},{"$f":"ZZZ__FnCalls!A69","v":"2015-03-01"},{"$f":"ZZZ__FnCalls!A70","v":"2015-04-01"},{"$f":"ZZZ__FnCalls!A71","v":"2015-05-01"},{"$f":"ZZZ__FnCalls!A72","v":"2015-06-01"},{"$f":"ZZZ__FnCalls!A73","v":"2015-07-01"},{"$f":"ZZZ__FnCalls!A74","v":"2015-08-01"},{"$f":"ZZZ__FnCalls!A75","v":"2015-09-01"},{"$f":"ZZZ__FnCalls!A76","v":"2015-10-01"},{"$f":"ZZZ__FnCalls!A77","v":"2015-11-01"},{"$f":"ZZZ__FnCalls!A78","v":"2015-12-01"},{"$f":"ZZZ__FnCalls!A67","v":"2015-01-01"},{"$f":"ZZZ__FnCalls!A79","v":"2016-01-01"},{"$f":"ZZZ__FnCalls!A80","v":"2016-02-01"},{"$f":"ZZZ__FnCalls!A81","v":"2016-03-01"},{"$f":"ZZZ__FnCalls!A82","v":"2016-04-01"},{"$f":"ZZZ__FnCalls!A83","v":"2016-05-01"},{"$f":"ZZZ__FnCalls!A84","v":"2016-06-01"},{"$f":"ZZZ__FnCalls!A85","v":"2016-07-01"},{"$f":"ZZZ__FnCalls!A86","v":"2016-08-01"},{"$f":"ZZZ__FnCalls!A87","v":"2016-09-01"},{"$f":"ZZZ__FnCalls!A88","v":"2016-10-01"},{"$f":"ZZZ__FnCalls!A89","v":"2016-11-01"},{"$f":"ZZZ__FnCalls!A90","v":"2016-12-01"},{"$f":"ZZZ__FnCalls!A79","v":"2016-01-01"},{"$f":"ZZZ__FnCalls!A91","v":"2017-01-01"},{"$f":"ZZZ__FnCalls!A92","v":"2017-02-01"},{"$f":"ZZZ__FnCalls!A93","v":"2017-03-01"},{"$f":"ZZZ__FnCalls!A94","v":"2017-04-01"},{"$f":"ZZZ__FnCalls!A95","v":"2017-05-01"},{"$f":"ZZZ__FnCalls!A96","v":"2017-06-01"},{"$f":"ZZZ__FnCalls!A97","v":"2017-07-01"},{"$f":"ZZZ__FnCalls!A98","v":"2017-08-01"},{"$f":"ZZZ__FnCalls!A99","v":"2017-09-01"},{"$f":"ZZZ__FnCalls!A100","v":"2017-10-01"},{"$f":"ZZZ__FnCalls!A101","v":"2017-11-01"},{"$f":"ZZZ__FnCalls!A102","v":"2017-12-01"},{"$f":"ZZZ__FnCalls!A91","v":"2017-01-01"},{"$f":"ZZZ__FnCalls!A103","v":"2018-01-01"},{"$f":"ZZZ__FnCalls!A104","v":"2018-02-01"},{"$f":"ZZZ__FnCalls!A105","v":"2018-03-01"},{"$f":"ZZZ__FnCalls!A106","v":"2018-04-01"},{"$f":"ZZZ__FnCalls!A107","v":"2018-05-01"},{"$f":"ZZZ__FnCalls!A108","v":"2018-06-01"},{"$f":"ZZZ__FnCalls!A109","v":"2018-07-01"},{"$f":"ZZZ__FnCalls!A110","v":"2018-08-01"},{"$f":"ZZZ__FnCalls!A111","v":"2018-09-01"},{"$f":"ZZZ__FnCalls!A112","v":"2018-10-01"},{"$f":"ZZZ__FnCalls!A113","v":"2018-11-01"},{"$f":"ZZZ__FnCalls!A114","v":"2018-12-01"},{"$f":"ZZZ__FnCalls!A103","v":"2018-01-01"},{"$f":"ZZZ__FnCalls!A115","v":"2019-01-01"},{"$f":"ZZZ__FnCalls!A116","v":"2019-02-01"},{"$f":"ZZZ__FnCalls!A117","v":"2019-03-01"},{"$f":"ZZZ__FnCalls!A118","v":"2019-04-01"},{"$f":"ZZZ__FnCalls!A119","v":"2019-05-01"},{"$f":"ZZZ__FnCalls!A120","v":"2019-06-01"},{"$f":"ZZZ__FnCalls!A121","v":"2019-07-01"},{"$f":"ZZZ__FnCalls!A122","v":"2019-08-01"},{"$f":"ZZZ__FnCalls!A123","v":"2019-09-01"},{"$f":"ZZZ__FnCalls!A124","v":"2019-10-01"},{"$f":"ZZZ__FnCalls!A125","v":"2019-11-01"},{"$f":"ZZZ__FnCalls!A126","v":"2019-12-01"},{"$f":"ZZZ__FnCalls!A115","v":"2019-01-01"},{"$f":"ZZZ__FnCalls!A127","v":"2020-01-01"},{"$f":"ZZZ__FnCalls!A128","v":"2020-02-01"},{"$f":"ZZZ__FnCalls!A129","v":"2020-03-01"},{"$f":"ZZZ__FnCalls!A130","v":"2020-04-01"},{"$f":"ZZZ__FnCalls!A131","v":"2020-05-01"},{"$f":"ZZZ__FnCalls!A132","v":"2020-06-01"},{"$f":"ZZZ__FnCalls!A133","v":"2020-07-01"},{"$f":"ZZZ__FnCalls!A134","v":"2020-08-01"},{"$f":"ZZZ__FnCalls!A135","v":"2020-09-01"},{"$f":"ZZZ__FnCalls!A136","v":"2020-10-01"},{"$f":"ZZZ__FnCalls!A137","v":"2020-11-01"},{"$f":"ZZZ__FnCalls!A138","v":"2020-12-01"},{"$f":"ZZZ__FnCalls!A127","v":"2020-01-01"}]
[{"$f":"\"Final_Sales_2\"","v":"Final_Sales_2"}]
[null,{"$f":"ZZZ__FnCalls!F7","v":"Jan 2010"},{"$f":"ZZZ__FnCalls!F8","v":"Feb 2010"},{"$f":"ZZZ__FnCalls!F9","v":"Mar 2010"},{"$f":"ZZZ__FnCalls!F10","v":"Apr 2010"},{"$f":"ZZZ__FnCalls!F11","v":"May 2010"},{"$f":"ZZZ__FnCalls!F12","v":"Jun 2010"},{"$f":"ZZZ__FnCalls!F13","v":"Jul 2010"},{"$f":"ZZZ__FnCalls!F14","v":"Aug 2010"},{"$f":"ZZZ__FnCalls!F15","v":"Sep 2010"},{"$f":"ZZZ__FnCalls!F16","v":"Oct 2010"},{"$f":"ZZZ__FnCalls!F17","v":"Nov 2010"},{"$f":"ZZZ__FnCalls!F18","v":"Dec 2010"},{"$f":"ZZZ__FnCalls!H7","v":"2010"},{"$f":"ZZZ__FnCalls!F19","v":"Jan 2011"},{"$f":"ZZZ__FnCalls!F20","v":"Feb 2011"},{"$f":"ZZZ__FnCalls!F21","v":"Mar 2011"},{"$f":"ZZZ__FnCalls!F22","v":"Apr 2011"},{"$f":"ZZZ__FnCalls!F23","v":"May 2011"},{"$f":"ZZZ__FnCalls!F24","v":"Jun 2011"},{"$f":"ZZZ__FnCalls!F25","v":"Jul 2011"},{"$f":"ZZZ__FnCalls!F26","v":"Aug 2011"},{"$f":"ZZZ__FnCalls!F27","v":"Sep 2011"},{"$f":"ZZZ__FnCalls!F28","v":"Oct 2011"},{"$f":"ZZZ__FnCalls!F29","v":"Nov 2011"},{"$f":"ZZZ__FnCalls!F30","v":"Dec 2011"},{"$f":"ZZZ__FnCalls!H19","v":"2011"},{"$f":"ZZZ__FnCalls!F31","v":"Jan 2012"},{"$f":"ZZZ__FnCalls!F32","v":"Feb 2012"},{"$f":"ZZZ__FnCalls!F33","v":"Mar 2012"},{"$f":"ZZZ__FnCalls!F34","v":"Apr 2012"},{"$f":"ZZZ__FnCalls!F35","v":"May 2012"},{"$f":"ZZZ__FnCalls!F36","v":"Jun 2012"},{"$f":"ZZZ__FnCalls!F37","v":"Jul 2012"},{"$f":"ZZZ__FnCalls!F38","v":"Aug 2012"},{"$f":"ZZZ__FnCalls!F39","v":"Sep 2012"},{"$f":"ZZZ__FnCalls!F40","v":"Oct 2012"},{"$f":"ZZZ__FnCalls!F41","v":"Nov 2012"},{"$f":"ZZZ__FnCalls!F42","v":"Dec 2012"},{"$f":"ZZZ__FnCalls!H31","v":"2012"},{"$f":"ZZZ__FnCalls!F43","v":"Jan 2013"},{"$f":"ZZZ__FnCalls!F44","v":"Feb 2013"},{"$f":"ZZZ__FnCalls!F45","v":"Mar 2013"},{"$f":"ZZZ__FnCalls!F46","v":"Apr 2013"},{"$f":"ZZZ__FnCalls!F47","v":"May 2013"},{"$f":"ZZZ__FnCalls!F48","v":"Jun 2013"},{"$f":"ZZZ__FnCalls!F49","v":"Jul 2013"},{"$f":"ZZZ__FnCalls!F50","v":"Aug 2013"},{"$f":"ZZZ__FnCalls!F51","v":"Sep 2013"},{"$f":"ZZZ__FnCalls!F52","v":"Oct 2013"},{"$f":"ZZZ__FnCalls!F53","v":"Nov 2013"},{"$f":"ZZZ__FnCalls!F54","v":"Dec 2013"},{"$f":"ZZZ__FnCalls!H43","v":"2013"},{"$f":"ZZZ__FnCalls!F55","v":"Jan 2014"},{"$f":"ZZZ__FnCalls!F56","v":"Feb 2014"},{"$f":"ZZZ__FnCalls!F57","v":"Mar 2014"},{"$f":"ZZZ__FnCalls!F58","v":"Apr 2014"},{"$f":"ZZZ__FnCalls!F59","v":"May 2014"},{"$f":"ZZZ__FnCalls!F60","v":"Jun 2014"},{"$f":"ZZZ__FnCalls!F61","v":"Jul 2014"},{"$f":"ZZZ__FnCalls!F62","v":"Aug 2014"},{"$f":"ZZZ__FnCalls!F63","v":"Sep 2014"},{"$f":"ZZZ__FnCalls!F64","v":"Oct 2014"},{"$f":"ZZZ__FnCalls!F65","v":"Nov 2014"},{"$f":"ZZZ__FnCalls!F66","v":"Dec 2014"},{"$f":"ZZZ__FnCalls!H55","v":"2014"},{"$f":"ZZZ__FnCalls!F67","v":"Jan 2015"},{"$f":"ZZZ__FnCalls!F68","v":"Feb 2015"},{"$f":"ZZZ__FnCalls!F69","v":"Mar 2015"},{"$f":"ZZZ__FnCalls!F70","v":"Apr 2015"},{"$f":"ZZZ__FnCalls!F71","v":"May 2015"},{"$f":"ZZZ__FnCalls!F72","v":"Jun 2015"},{"$f":"ZZZ__FnCalls!F73","v":"Jul 2015"},{"$f":"ZZZ__FnCalls!F74","v":"Aug 2015"},{"$f":"ZZZ__FnCalls!F75","v":"Sep 2015"},{"$f":"ZZZ__FnCalls!F76","v":"Oct 2015"},{"$f":"ZZZ__FnCalls!F77","v":"Nov 2015"},{"$f":"ZZZ__FnCalls!F78","v":"Dec 2015"},{"$f":"ZZZ__FnCalls!H67","v":"2015"},{"$f":"ZZZ__FnCalls!F79","v":"Jan 2016"},{"$f":"ZZZ__FnCalls!F80","v":"Feb 2016"},{"$f":"ZZZ__FnCalls!F81","v":"Mar 2016"},{"$f":"ZZZ__FnCalls!F82","v":"Apr 2016"},{"$f":"ZZZ__FnCalls!F83","v":"May 2016"},{"$f":"ZZZ__FnCalls!F84","v":"Jun 2016"},{"$f":"ZZZ__FnCalls!F85","v":"Jul 2016"},{"$f":"ZZZ__FnCalls!F86","v":"Aug 2016"},{"$f":"ZZZ__FnCalls!F87","v":"Sep 2016"},{"$f":"ZZZ__FnCalls!F88","v":"Oct 2016"},{"$f":"ZZZ__FnCalls!F89","v":"Nov 2016"},{"$f":"ZZZ__FnCalls!F90","v":"Dec 2016"},{"$f":"ZZZ__FnCalls!H79","v":"2016"},{"$f":"ZZZ__FnCalls!F91","v":"Jan 2017"},{"$f":"ZZZ__FnCalls!F92","v":"Feb 2017"},{"$f":"ZZZ__FnCalls!F93","v":"Mar 2017"},{"$f":"ZZZ__FnCalls!F94","v":"Apr 2017"},{"$f":"ZZZ__FnCalls!F95","v":"May 2017"},{"$f":"ZZZ__FnCalls!F96","v":"Jun 2017"},{"$f":"ZZZ__FnCalls!F97","v":"Jul 2017"},{"$f":"ZZZ__FnCalls!F98","v":"Aug 2017"},{"$f":"ZZZ__FnCalls!F99","v":"Sep 2017"},{"$f":"ZZZ__FnCalls!F100","v":"Oct 2017"},{"$f":"ZZZ__FnCalls!F101","v":"Nov 2017"},{"$f":"ZZZ__FnCalls!F102","v":"Dec 2017"},{"$f":"ZZZ__FnCalls!H91","v":"2017"},{"$f":"ZZZ__FnCalls!F103","v":"Jan 2018"},{"$f":"ZZZ__FnCalls!F104","v":"Feb 2018"},{"$f":"ZZZ__FnCalls!F105","v":"Mar 2018"},{"$f":"ZZZ__FnCalls!F106","v":"Apr 2018"},{"$f":"ZZZ__FnCalls!F107","v":"May 2018"},{"$f":"ZZZ__FnCalls!F108","v":"Jun 2018"},{"$f":"ZZZ__FnCalls!F109","v":"Jul 2018"},{"$f":"ZZZ__FnCalls!F110","v":"Aug 2018"},{"$f":"ZZZ__FnCalls!F111","v":"Sep 2018"},{"$f":"ZZZ__FnCalls!F112","v":"Oct 2018"},{"$f":"ZZZ__FnCalls!F113","v":"Nov 2018"},{"$f":"ZZZ__FnCalls!F114","v":"Dec 2018"},{"$f":"ZZZ__FnCalls!H103","v":"2018"},{"$f":"ZZZ__FnCalls!F115","v":"Jan 2019"},{"$f":"ZZZ__FnCalls!F116","v":"Feb 2019"},{"$f":"ZZZ__FnCalls!F117","v":"Mar 2019"},{"$f":"ZZZ__FnCalls!F118","v":"Apr 2019"},{"$f":"ZZZ__FnCalls!F119","v":"May 2019"},{"$f":"ZZZ__FnCalls!F120","v":"Jun 2019"},{"$f":"ZZZ__FnCalls!F121","v":"Jul 2019"},{"$f":"ZZZ__FnCalls!F122","v":"Aug 2019"},{"$f":"ZZZ__FnCalls!F123","v":"Sep 2019"},{"$f":"ZZZ__FnCalls!F124","v":"Oct 2019"},{"$f":"ZZZ__FnCalls!F125","v":"Nov 2019"},{"$f":"ZZZ__FnCalls!F126","v":"Dec 2019"},{"$f":"ZZZ__FnCalls!H115","v":"2019"},{"$f":"ZZZ__FnCalls!F127","v":"Jan 2020"},{"$f":"ZZZ__FnCalls!F128","v":"Feb 2020"},{"$f":"ZZZ__FnCalls!F129","v":"Mar 2020"},{"$f":"ZZZ__FnCalls!F130","v":"Apr 2020"},{"$f":"ZZZ__FnCalls!F131","v":"May 2020"},{"$f":"ZZZ__FnCalls!F132","v":"Jun 2020"},{"$f":"ZZZ__FnCalls!F133","v":"Jul 2020"},{"$f":"ZZZ__FnCalls!F134","v":"Aug 2020"},{"$f":"ZZZ__FnCalls!F135","v":"Sep 2020"},{"$f":"ZZZ__FnCalls!F136","v":"Oct 2020"},{"$f":"ZZZ__FnCalls!F137","v":"Nov 2020"},{"$f":"ZZZ__FnCalls!F138","v":"Dec 2020"},{"$f":"ZZZ__FnCalls!H127","v":"2020"}]
[null,{"$f":"ZZZ__FnCalls!F7","v":"Jan 2010"},{"$f":"ZZZ__FnCalls!F8","v":"Feb 2010"},{"$f":"ZZZ__FnCalls!F9","v":"Mar 2010"},{"$f":"ZZZ__FnCalls!F10","v":"Apr 2010"},{"$f":"ZZZ__FnCalls!F11","v":"May 2010"},{"$f":"ZZZ__FnCalls!F12","v":"Jun 2010"},{"$f":"ZZZ__FnCalls!F13","v":"Jul 2010"},{"$f":"ZZZ__FnCalls!F14","v":"Aug 2010"},{"$f":"ZZZ__FnCalls!F15","v":"Sep 2010"},{"$f":"ZZZ__FnCalls!F16","v":"Oct 2010"},{"$f":"ZZZ__FnCalls!F17","v":"Nov 2010"},{"$f":"ZZZ__FnCalls!F18","v":"Dec 2010"},{"$f":"ZZZ__FnCalls!F7","v":"Jan 2010"},{"$f":"ZZZ__FnCalls!F19","v":"Jan 2011"},{"$f":"ZZZ__FnCalls!F20","v":"Feb 2011"},{"$f":"ZZZ__FnCalls!F21","v":"Mar 2011"},{"$f":"ZZZ__FnCalls!F22","v":"Apr 2011"},{"$f":"ZZZ__FnCalls!F23","v":"May 2011"},{"$f":"ZZZ__FnCalls!F24","v":"Jun 2011"},{"$f":"ZZZ__FnCalls!F25","v":"Jul 2011"},{"$f":"ZZZ__FnCalls!F26","v":"Aug 2011"},{"$f":"ZZZ__FnCalls!F27","v":"Sep 2011"},{"$f":"ZZZ__FnCalls!F28","v":"Oct 2011"},{"$f":"ZZZ__FnCalls!F29","v":"Nov 2011"},{"$f":"ZZZ__FnCalls!F30","v":"Dec 2011"},{"$f":"ZZZ__FnCalls!F19","v":"Jan 2011"},{"$f":"ZZZ__FnCalls!F31","v":"Jan 2012"},{"$f":"ZZZ__FnCalls!F32","v":"Feb 2012"},{"$f":"ZZZ__FnCalls!F33","v":"Mar 2012"},{"$f":"ZZZ__FnCalls!F34","v":"Apr 2012"},{"$f":"ZZZ__FnCalls!F35","v":"May 2012"},{"$f":"ZZZ__FnCalls!F36","v":"Jun 2012"},{"$f":"ZZZ__FnCalls!F37","v":"Jul 2012"},{"$f":"ZZZ__FnCalls!F38","v":"Aug 2012"},{"$f":"ZZZ__FnCalls!F39","v":"Sep 2012"},{"$f":"ZZZ__FnCalls!F40","v":"Oct 2012"},{"$f":"ZZZ__FnCalls!F41","v":"Nov 2012"},{"$f":"ZZZ__FnCalls!F42","v":"Dec 2012"},{"$f":"ZZZ__FnCalls!F31","v":"Jan 2012"},{"$f":"ZZZ__FnCalls!F43","v":"Jan 2013"},{"$f":"ZZZ__FnCalls!F44","v":"Feb 2013"},{"$f":"ZZZ__FnCalls!F45","v":"Mar 2013"},{"$f":"ZZZ__FnCalls!F46","v":"Apr 2013"},{"$f":"ZZZ__FnCalls!F47","v":"May 2013"},{"$f":"ZZZ__FnCalls!F48","v":"Jun 2013"},{"$f":"ZZZ__FnCalls!F49","v":"Jul 2013"},{"$f":"ZZZ__FnCalls!F50","v":"Aug 2013"},{"$f":"ZZZ__FnCalls!F51","v":"Sep 2013"},{"$f":"ZZZ__FnCalls!F52","v":"Oct 2013"},{"$f":"ZZZ__FnCalls!F53","v":"Nov 2013"},{"$f":"ZZZ__FnCalls!F54","v":"Dec 2013"},{"$f":"ZZZ__FnCalls!F43","v":"Jan 2013"},{"$f":"ZZZ__FnCalls!F55","v":"Jan 2014"},{"$f":"ZZZ__FnCalls!F56","v":"Feb 2014"},{"$f":"ZZZ__FnCalls!F57","v":"Mar 2014"},{"$f":"ZZZ__FnCalls!F58","v":"Apr 2014"},{"$f":"ZZZ__FnCalls!F59","v":"May 2014"},{"$f":"ZZZ__FnCalls!F60","v":"Jun 2014"},{"$f":"ZZZ__FnCalls!F61","v":"Jul 2014"},{"$f":"ZZZ__FnCalls!F62","v":"Aug 2014"},{"$f":"ZZZ__FnCalls!F63","v":"Sep 2014"},{"$f":"ZZZ__FnCalls!F64","v":"Oct 2014"},{"$f":"ZZZ__FnCalls!F65","v":"Nov 2014"},{"$f":"ZZZ__FnCalls!F66","v":"Dec 2014"},{"$f":"ZZZ__FnCalls!F55","v":"Jan 2014"},{"$f":"ZZZ__FnCalls!F67","v":"Jan 2015"},{"$f":"ZZZ__FnCalls!F68","v":"Feb 2015"},{"$f":"ZZZ__FnCalls!F69","v":"Mar 2015"},{"$f":"ZZZ__FnCalls!F70","v":"Apr 2015"},{"$f":"ZZZ__FnCalls!F71","v":"May 2015"},{"$f":"ZZZ__FnCalls!F72","v":"Jun 2015"},{"$f":"ZZZ__FnCalls!F73","v":"Jul 2015"},{"$f":"ZZZ__FnCalls!F74","v":"Aug 2015"},{"$f":"ZZZ__FnCalls!F75","v":"Sep 2015"},{"$f":"ZZZ__FnCalls!F76","v":"Oct 2015"},{"$f":"ZZZ__FnCalls!F77","v":"Nov 2015"},{"$f":"ZZZ__FnCalls!F78","v":"Dec 2015"},{"$f":"ZZZ__FnCalls!F67","v":"Jan 2015"},{"$f":"ZZZ__FnCalls!F79","v":"Jan 2016"},{"$f":"ZZZ__FnCalls!F80","v":"Feb 2016"},{"$f":"ZZZ__FnCalls!F81","v":"Mar 2016"},{"$f":"ZZZ__FnCalls!F82","v":"Apr 2016"},{"$f":"ZZZ__FnCalls!F83","v":"May 2016"},{"$f":"ZZZ__FnCalls!F84","v":"Jun 2016"},{"$f":"ZZZ__FnCalls!F85","v":"Jul 2016"},{"$f":"ZZZ__FnCalls!F86","v":"Aug 2016"},{"$f":"ZZZ__FnCalls!F87","v":"Sep 2016"},{"$f":"ZZZ__FnCalls!F88","v":"Oct 2016"},{"$f":"ZZZ__FnCalls!F89","v":"Nov 2016"},{"$f":"ZZZ__FnCalls!F90","v":"Dec 2016"},{"$f":"ZZZ__FnCalls!F79","v":"Jan 2016"},{"$f":"ZZZ__FnCalls!F91","v":"Jan 2017"},{"$f":"ZZZ__FnCalls!F92","v":"Feb 2017"},{"$f":"ZZZ__FnCalls!F93","v":"Mar 2017"},{"$f":"ZZZ__FnCalls!F94","v":"Apr 2017"},{"$f":"ZZZ__FnCalls!F95","v":"May 2017"},{"$f":"ZZZ__FnCalls!F96","v":"Jun 2017"},{"$f":"ZZZ__FnCalls!F97","v":"Jul 2017"},{"$f":"ZZZ__FnCalls!F98","v":"Aug 2017"},{"$f":"ZZZ__FnCalls!F99","v":"Sep 2017"},{"$f":"ZZZ__FnCalls!F100","v":"Oct 2017"},{"$f":"ZZZ__FnCalls!F101","v":"Nov 2017"},{"$f":"ZZZ__FnCalls!F102","v":"Dec 2017"},{"$f":"ZZZ__FnCalls!F91","v":"Jan 2017"},{"$f":"ZZZ__FnCalls!F103","v":"Jan 2018"},{"$f":"ZZZ__FnCalls!F104","v":"Feb 2018"},{"$f":"ZZZ__FnCalls!F105","v":"Mar 2018"},{"$f":"ZZZ__FnCalls!F106","v":"Apr 2018"},{"$f":"ZZZ__FnCalls!F107","v":"May 2018"},{"$f":"ZZZ__FnCalls!F108","v":"Jun 2018"},{"$f":"ZZZ__FnCalls!F109","v":"Jul 2018"},{"$f":"ZZZ__FnCalls!F110","v":"Aug 2018"},{"$f":"ZZZ__FnCalls!F111","v":"Sep 2018"},{"$f":"ZZZ__FnCalls!F112","v":"Oct 2018"},{"$f":"ZZZ__FnCalls!F113","v":"Nov 2018"},{"$f":"ZZZ__FnCalls!F114","v":"Dec 2018"},{"$f":"ZZZ__FnCalls!F103","v":"Jan 2018"},{"$f":"ZZZ__FnCalls!F115","v":"Jan 2019"},{"$f":"ZZZ__FnCalls!F116","v":"Feb 2019"},{"$f":"ZZZ__FnCalls!F117","v":"Mar 2019"},{"$f":"ZZZ__FnCalls!F118","v":"Apr 2019"},{"$f":"ZZZ__FnCalls!F119","v":"May 2019"},{"$f":"ZZZ__FnCalls!F120","v":"Jun 2019"},{"$f":"ZZZ__FnCalls!F121","v":"Jul 2019"},{"$f":"ZZZ__FnCalls!F122","v":"Aug 2019"},{"$f":"ZZZ__FnCalls!F123","v":"Sep 2019"},{"$f":"ZZZ__FnCalls!F124","v":"Oct 2019"},{"$f":"ZZZ__FnCalls!F125","v":"Nov 2019"},{"$f":"ZZZ__FnCalls!F126","v":"Dec 2019"},{"$f":"ZZZ__FnCalls!F115","v":"Jan 2019"},{"$f":"ZZZ__FnCalls!F127","v":"Jan 2020"},{"$f":"ZZZ__FnCalls!F128","v":"Feb 2020"},{"$f":"ZZZ__FnCalls!F129","v":"Mar 2020"},{"$f":"ZZZ__FnCalls!F130","v":"Apr 2020"},{"$f":"ZZZ__FnCalls!F131","v":"May 2020"},{"$f":"ZZZ__FnCalls!F132","v":"Jun 2020"},{"$f":"ZZZ__FnCalls!F133","v":"Jul 2020"},{"$f":"ZZZ__FnCalls!F134","v":"Aug 2020"},{"$f":"ZZZ__FnCalls!F135","v":"Sep 2020"},{"$f":"ZZZ__FnCalls!F136","v":"Oct 2020"},{"$f":"ZZZ__FnCalls!F137","v":"Nov 2020"},{"$f":"ZZZ__FnCalls!F138","v":"Dec 2020"},{"$f":"ZZZ__FnCalls!F127","v":"Jan 2020"}]
[{"$f":"\"Consumption_1\"","v":"Consumption_1"}]
[null,{"$f":"ZZZ__FnCalls!F7","v":"Jan 2010"},{"$f":"ZZZ__FnCalls!F8","v":"Feb 2010"},{"$f":"ZZZ__FnCalls!F9","v":"Mar 2010"},{"$f":"ZZZ__FnCalls!F10","v":"Apr 2010"},{"$f":"ZZZ__FnCalls!F11","v":"May 2010"},{"$f":"ZZZ__FnCalls!F12","v":"Jun 2010"},{"$f":"ZZZ__FnCalls!F13","v":"Jul 2010"},{"$f":"ZZZ__FnCalls!F14","v":"Aug 2010"},{"$f":"ZZZ__FnCalls!F15","v":"Sep 2010"},{"$f":"ZZZ__FnCalls!F16","v":"Oct 2010"},{"$f":"ZZZ__FnCalls!F17","v":"Nov 2010"},{"$f":"ZZZ__FnCalls!F18","v":"Dec 2010"},{"$f":"ZZZ__FnCalls!H7","v":"2010"},{"$f":"ZZZ__FnCalls!F19","v":"Jan 2011"},{"$f":"ZZZ__FnCalls!F20","v":"Feb 2011"},{"$f":"ZZZ__FnCalls!F21","v":"Mar 2011"},{"$f":"ZZZ__FnCalls!F22","v":"Apr 2011"},{"$f":"ZZZ__FnCalls!F23","v":"May 2011"},{"$f":"ZZZ__FnCalls!F24","v":"Jun 2011"},{"$f":"ZZZ__FnCalls!F25","v":"Jul 2011"},{"$f":"ZZZ__FnCalls!F26","v":"Aug 2011"},{"$f":"ZZZ__FnCalls!F27","v":"Sep 2011"},{"$f":"ZZZ__FnCalls!F28","v":"Oct 2011"},{"$f":"ZZZ__FnCalls!F29","v":"Nov 2011"},{"$f":"ZZZ__FnCalls!F30","v":"Dec 2011"},{"$f":"ZZZ__FnCalls!H19","v":"2011"},{"$f":"ZZZ__FnCalls!F31","v":"Jan 2012"},{"$f":"ZZZ__FnCalls!F32","v":"Feb 2012"},{"$f":"ZZZ__FnCalls!F33","v":"Mar 2012"},{"$f":"ZZZ__FnCalls!F34","v":"Apr 2012"},{"$f":"ZZZ__FnCalls!F35","v":"May 2012"},{"$f":"ZZZ__FnCalls!F36","v":"Jun 2012"},{"$f":"ZZZ__FnCalls!F37","v":"Jul 2012"},{"$f":"ZZZ__FnCalls!F38","v":"Aug 2012"},{"$f":"ZZZ__FnCalls!F39","v":"Sep 2012"},{"$f":"ZZZ__FnCalls!F40","v":"Oct 2012"},{"$f":"ZZZ__FnCalls!F41","v":"Nov 2012"},{"$f":"ZZZ__FnCalls!F42","v":"Dec 2012"},{"$f":"ZZZ__FnCalls!H31","v":"2012"},{"$f":"ZZZ__FnCalls!F43","v":"Jan 2013"},{"$f":"ZZZ__FnCalls!F44","v":"Feb 2013"},{"$f":"ZZZ__FnCalls!F45","v":"Mar 2013"},{"$f":"ZZZ__FnCalls!F46","v":"Apr 2013"},{"$f":"ZZZ__FnCalls!F47","v":"May 2013"},{"$f":"ZZZ__FnCalls!F48","v":"Jun 2013"},{"$f":"ZZZ__FnCalls!F49","v":"Jul 2013"},{"$f":"ZZZ__FnCalls!F50","v":"Aug 2013"},{"$f":"ZZZ__FnCalls!F51","v":"Sep 2013"},{"$f":"ZZZ__FnCalls!F52","v":"Oct 2013"},{"$f":"ZZZ__FnCalls!F53","v":"Nov 2013"},{"$f":"ZZZ__FnCalls!F54","v":"Dec 2013"},{"$f":"ZZZ__FnCalls!H43","v":"2013"},{"$f":"ZZZ__FnCalls!F55","v":"Jan 2014"},{"$f":"ZZZ__FnCalls!F56","v":"Feb 2014"},{"$f":"ZZZ__FnCalls!F57","v":"Mar 2014"},{"$f":"ZZZ__FnCalls!F58","v":"Apr 2014"},{"$f":"ZZZ__FnCalls!F59","v":"May 2014"},{"$f":"ZZZ__FnCalls!F60","v":"Jun 2014"},{"$f":"ZZZ__FnCalls!F61","v":"Jul 2014"},{"$f":"ZZZ__FnCalls!F62","v":"Aug 2014"},{"$f":"ZZZ__FnCalls!F63","v":"Sep 2014"},{"$f":"ZZZ__FnCalls!F64","v":"Oct 2014"},{"$f":"ZZZ__FnCalls!F65","v":"Nov 2014"},{"$f":"ZZZ__FnCalls!F66","v":"Dec 2014"},{"$f":"ZZZ__FnCalls!H55","v":"2014"},{"$f":"ZZZ__FnCalls!F67","v":"Jan 2015"},{"$f":"ZZZ__FnCalls!F68","v":"Feb 2015"},{"$f":"ZZZ__FnCalls!F69","v":"Mar 2015"},{"$f":"ZZZ__FnCalls!F70","v":"Apr 2015"},{"$f":"ZZZ__FnCalls!F71","v":"May 2015"},{"$f":"ZZZ__FnCalls!F72","v":"Jun 2015"},{"$f":"ZZZ__FnCalls!F73","v":"Jul 2015"},{"$f":"ZZZ__FnCalls!F74","v":"Aug 2015"},{"$f":"ZZZ__FnCalls!F75","v":"Sep 2015"},{"$f":"ZZZ__FnCalls!F76","v":"Oct 2015"},{"$f":"ZZZ__FnCalls!F77","v":"Nov 2015"},{"$f":"ZZZ__FnCalls!F78","v":"Dec 2015"},{"$f":"ZZZ__FnCalls!H67","v":"2015"},{"$f":"ZZZ__FnCalls!F79","v":"Jan 2016"},{"$f":"ZZZ__FnCalls!F80","v":"Feb 2016"},{"$f":"ZZZ__FnCalls!F81","v":"Mar 2016"},{"$f":"ZZZ__FnCalls!F82","v":"Apr 2016"},{"$f":"ZZZ__FnCalls!F83","v":"May 2016"},{"$f":"ZZZ__FnCalls!F84","v":"Jun 2016"},{"$f":"ZZZ__FnCalls!F85","v":"Jul 2016"},{"$f":"ZZZ__FnCalls!F86","v":"Aug 2016"},{"$f":"ZZZ__FnCalls!F87","v":"Sep 2016"},{"$f":"ZZZ__FnCalls!F88","v":"Oct 2016"},{"$f":"ZZZ__FnCalls!F89","v":"Nov 2016"},{"$f":"ZZZ__FnCalls!F90","v":"Dec 2016"},{"$f":"ZZZ__FnCalls!H79","v":"2016"},{"$f":"ZZZ__FnCalls!F91","v":"Jan 2017"},{"$f":"ZZZ__FnCalls!F92","v":"Feb 2017"},{"$f":"ZZZ__FnCalls!F93","v":"Mar 2017"},{"$f":"ZZZ__FnCalls!F94","v":"Apr 2017"},{"$f":"ZZZ__FnCalls!F95","v":"May 2017"},{"$f":"ZZZ__FnCalls!F96","v":"Jun 2017"},{"$f":"ZZZ__FnCalls!F97","v":"Jul 2017"},{"$f":"ZZZ__FnCalls!F98","v":"Aug 2017"},{"$f":"ZZZ__FnCalls!F99","v":"Sep 2017"},{"$f":"ZZZ__FnCalls!F100","v":"Oct 2017"},{"$f":"ZZZ__FnCalls!F101","v":"Nov 2017"},{"$f":"ZZZ__FnCalls!F102","v":"Dec 2017"},{"$f":"ZZZ__FnCalls!H91","v":"2017"},{"$f":"ZZZ__FnCalls!F103","v":"Jan 2018"},{"$f":"ZZZ__FnCalls!F104","v":"Feb 2018"},{"$f":"ZZZ__FnCalls!F105","v":"Mar 2018"},{"$f":"ZZZ__FnCalls!F106","v":"Apr 2018"},{"$f":"ZZZ__FnCalls!F107","v":"May 2018"},{"$f":"ZZZ__FnCalls!F108","v":"Jun 2018"},{"$f":"ZZZ__FnCalls!F109","v":"Jul 2018"},{"$f":"ZZZ__FnCalls!F110","v":"Aug 2018"},{"$f":"ZZZ__FnCalls!F111","v":"Sep 2018"},{"$f":"ZZZ__FnCalls!F112","v":"Oct 2018"},{"$f":"ZZZ__FnCalls!F113","v":"Nov 2018"},{"$f":"ZZZ__FnCalls!F114","v":"Dec 2018"},{"$f":"ZZZ__FnCalls!H103","v":"2018"},{"$f":"ZZZ__FnCalls!F115","v":"Jan 2019"},{"$f":"ZZZ__FnCalls!F116","v":"Feb 2019"},{"$f":"ZZZ__FnCalls!F117","v":"Mar 2019"},{"$f":"ZZZ__FnCalls!F118","v":"Apr 2019"},{"$f":"ZZZ__FnCalls!F119","v":"May 2019"},{"$f":"ZZZ__FnCalls!F120","v":"Jun 2019"},{"$f":"ZZZ__FnCalls!F121","v":"Jul 2019"},{"$f":"ZZZ__FnCalls!F122","v":"Aug 2019"},{"$f":"ZZZ__FnCalls!F123","v":"Sep 2019"},{"$f":"ZZZ__FnCalls!F124","v":"Oct 2019"},{"$f":"ZZZ__FnCalls!F125","v":"Nov 2019"},{"$f":"ZZZ__FnCalls!F126","v":"Dec 2019"},{"$f":"ZZZ__FnCalls!H115","v":"2019"},{"$f":"ZZZ__FnCalls!F127","v":"Jan 2020"},{"$f":"ZZZ__FnCalls!F128","v":"Feb 2020"},{"$f":"ZZZ__FnCalls!F129","v":"Mar 2020"},{"$f":"ZZZ__FnCalls!F130","v":"Apr 2020"},{"$f":"ZZZ__FnCalls!F131","v":"May 2020"},{"$f":"ZZZ__FnCalls!F132","v":"Jun 2020"},{"$f":"ZZZ__FnCalls!F133","v":"Jul 2020"},{"$f":"ZZZ__FnCalls!F134","v":"Aug 2020"},{"$f":"ZZZ__FnCalls!F135","v":"Sep 2020"},{"$f":"ZZZ__FnCalls!F136","v":"Oct 2020"},{"$f":"ZZZ__FnCalls!F137","v":"Nov 2020"},{"$f":"ZZZ__FnCalls!F138","v":"Dec 2020"},{"$f":"ZZZ__FnCalls!H127","v":"2020"}]
[null,{"$f":"ZZZ__FnCalls!A7","v":"2010-01-01"},{"$f":"ZZZ__FnCalls!A8","v":"2010-02-01"},{"$f":"ZZZ__FnCalls!A9","v":"2010-03-01"},{"$f":"ZZZ__FnCalls!A10","v":"2010-04-01"},{"$f":"ZZZ__FnCalls!A11","v":"2010-05-01"},{"$f":"ZZZ__FnCalls!A12","v":"2010-06-01"},{"$f":"ZZZ__FnCalls!A13","v":"2010-07-01"},{"$f":"ZZZ__FnCalls!A14","v":"2010-08-01"},{"$f":"ZZZ__FnCalls!A15","v":"2010-09-01"},{"$f":"ZZZ__FnCalls!A16","v":"2010-10-01"},{"$f":"ZZZ__FnCalls!A17","v":"2010-11-01"},{"$f":"ZZZ__FnCalls!A18","v":"2010-12-01"},{"$f":"ZZZ__FnCalls!A7","v":"2010-01-01"},{"$f":"ZZZ__FnCalls!A19","v":"2011-01-01"},{"$f":"ZZZ__FnCalls!A20","v":"2011-02-01"},{"$f":"ZZZ__FnCalls!A21","v":"2011-03-01"},{"$f":"ZZZ__FnCalls!A22","v":"2011-04-01"},{"$f":"ZZZ__FnCalls!A23","v":"2011-05-01"},{"$f":"ZZZ__FnCalls!A24","v":"2011-06-01"},{"$f":"ZZZ__FnCalls!A25","v":"2011-07-01"},{"$f":"ZZZ__FnCalls!A26","v":"2011-08-01"},{"$f":"ZZZ__FnCalls!A27","v":"2011-09-01"},{"$f":"ZZZ__FnCalls!A28","v":"2011-10-01"},{"$f":"ZZZ__FnCalls!A29","v":"2011-11-01"},{"$f":"ZZZ__FnCalls!A30","v":"2011-12-01"},{"$f":"ZZZ__FnCalls!A19","v":"2011-01-01"},{"$f":"ZZZ__FnCalls!A31","v":"2012-01-01"},{"$f":"ZZZ__FnCalls!A32","v":"2012-02-01"},{"$f":"ZZZ__FnCalls!A33","v":"2012-03-01"},{"$f":"ZZZ__FnCalls!A34","v":"2012-04-01"},{"$f":"ZZZ__FnCalls!A35","v":"2012-05-01"},{"$f":"ZZZ__FnCalls!A36","v":"2012-06-01"},{"$f":"ZZZ__FnCalls!A37","v":"2012-07-01"},{"$f":"ZZZ__FnCalls!A38","v":"2012-08-01"},{"$f":"ZZZ__FnCalls!A39","v":"2012-09-01"},{"$f":"ZZZ__FnCalls!A40","v":"2012-10-01"},{"$f":"ZZZ__FnCalls!A41","v":"2012-11-01"},{"$f":"ZZZ__FnCalls!A42","v":"2012-12-01"},{"$f":"ZZZ__FnCalls!A31","v":"2012-01-01"},{"$f":"ZZZ__FnCalls!A43","v":"2013-01-01"},{"$f":"ZZZ__FnCalls!A44","v":"2013-02-01"},{"$f":"ZZZ__FnCalls!A45","v":"2013-03-01"},{"$f":"ZZZ__FnCalls!A46","v":"2013-04-01"},{"$f":"ZZZ__FnCalls!A47","v":"2013-05-01"},{"$f":"ZZZ__FnCalls!A48","v":"2013-06-01"},{"$f":"ZZZ__FnCalls!A49","v":"2013-07-01"},{"$f":"ZZZ__FnCalls!A50","v":"2013-08-01"},{"$f":"ZZZ__FnCalls!A51","v":"2013-09-01"},{"$f":"ZZZ__FnCalls!A52","v":"2013-10-01"},{"$f":"ZZZ__FnCalls!A53","v":"2013-11-01"},{"$f":"ZZZ__FnCalls!A54","v":"2013-12-01"},{"$f":"ZZZ__FnCalls!A43","v":"2013-01-01"},{"$f":"ZZZ__FnCalls!A55","v":"2014-01-01"},{"$f":"ZZZ__FnCalls!A56","v":"2014-02-01"},{"$f":"ZZZ__FnCalls!A57","v":"2014-03-01"},{"$f":"ZZZ__FnCalls!A58","v":"2014-04-01"},{"$f":"ZZZ__FnCalls!A59","v":"2014-05-01"},{"$f":"ZZZ__FnCalls!A60","v":"2014-06-01"},{"$f":"ZZZ__FnCalls!A61","v":"2014-07-01"},{"$f":"ZZZ__FnCalls!A62","v":"2014-08-01"},{"$f":"ZZZ__FnCalls!A63","v":"2014-09-01"},{"$f":"ZZZ__FnCalls!A64","v":"2014-10-01"},{"$f":"ZZZ__FnCalls!A65","v":"2014-11-01"},{"$f":"ZZZ__FnCalls!A66","v":"2014-12-01"},{"$f":"ZZZ__FnCalls!A55","v":"2014-01-01"},{"$f":"ZZZ__FnCalls!A67","v":"2015-01-01"},{"$f":"ZZZ__FnCalls!A68","v":"2015-02-01"},{"$f":"ZZZ__FnCalls!A69","v":"2015-03-01"},{"$f":"ZZZ__FnCalls!A70","v":"2015-04-01"},{"$f":"ZZZ__FnCalls!A71","v":"2015-05-01"},{"$f":"ZZZ__FnCalls!A72","v":"2015-06-01"},{"$f":"ZZZ__FnCalls!A73","v":"2015-07-01"},{"$f":"ZZZ__FnCalls!A74","v":"2015-08-01"},{"$f":"ZZZ__FnCalls!A75","v":"2015-09-01"},{"$f":"ZZZ__FnCalls!A76","v":"2015-10-01"},{"$f":"ZZZ__FnCalls!A77","v":"2015-11-01"},{"$f":"ZZZ__FnCalls!A78","v":"2015-12-01"},{"$f":"ZZZ__FnCalls!A67","v":"2015-01-01"},{"$f":"ZZZ__FnCalls!A79","v":"2016-01-01"},{"$f":"ZZZ__FnCalls!A80","v":"2016-02-01"},{"$f":"ZZZ__FnCalls!A81","v":"2016-03-01"},{"$f":"ZZZ__FnCalls!A82","v":"2016-04-01"},{"$f":"ZZZ__FnCalls!A83","v":"2016-05-01"},{"$f":"ZZZ__FnCalls!A84","v":"2016-06-01"},{"$f":"ZZZ__FnCalls!A85","v":"2016-07-01"},{"$f":"ZZZ__FnCalls!A86","v":"2016-08-01"},{"$f":"ZZZ__FnCalls!A87","v":"2016-09-01"},{"$f":"ZZZ__FnCalls!A88","v":"2016-10-01"},{"$f":"ZZZ__FnCalls!A89","v":"2016-11-01"},{"$f":"ZZZ__FnCalls!A90","v":"2016-12-01"},{"$f":"ZZZ__FnCalls!A79","v":"2016-01-01"},{"$f":"ZZZ__FnCalls!A91","v":"2017-01-01"},{"$f":"ZZZ__FnCalls!A92","v":"2017-02-01"},{"$f":"ZZZ__FnCalls!A93","v":"2017-03-01"},{"$f":"ZZZ__FnCalls!A94","v":"2017-04-01"},{"$f":"ZZZ__FnCalls!A95","v":"2017-05-01"},{"$f":"ZZZ__FnCalls!A96","v":"2017-06-01"},{"$f":"ZZZ__FnCalls!A97","v":"2017-07-01"},{"$f":"ZZZ__FnCalls!A98","v":"2017-08-01"},{"$f":"ZZZ__FnCalls!A99","v":"2017-09-01"},{"$f":"ZZZ__FnCalls!A100","v":"2017-10-01"},{"$f":"ZZZ__FnCalls!A101","v":"2017-11-01"},{"$f":"ZZZ__FnCalls!A102","v":"2017-12-01"},{"$f":"ZZZ__FnCalls!A91","v":"2017-01-01"},{"$f":"ZZZ__FnCalls!A103","v":"2018-01-01"},{"$f":"ZZZ__FnCalls!A104","v":"2018-02-01"},{"$f":"ZZZ__FnCalls!A105","v":"2018-03-01"},{"$f":"ZZZ__FnCalls!A106","v":"2018-04-01"},{"$f":"ZZZ__FnCalls!A107","v":"2018-05-01"},{"$f":"ZZZ__FnCalls!A108","v":"2018-06-01"},{"$f":"ZZZ__FnCalls!A109","v":"2018-07-01"},{"$f":"ZZZ__FnCalls!A110","v":"2018-08-01"},{"$f":"ZZZ__FnCalls!A111","v":"2018-09-01"},{"$f":"ZZZ__FnCalls!A112","v":"2018-10-01"},{"$f":"ZZZ__FnCalls!A113","v":"2018-11-01"},{"$f":"ZZZ__FnCalls!A114","v":"2018-12-01"},{"$f":"ZZZ__FnCalls!A103","v":"2018-01-01"},{"$f":"ZZZ__FnCalls!A115","v":"2019-01-01"},{"$f":"ZZZ__FnCalls!A116","v":"2019-02-01"},{"$f":"ZZZ__FnCalls!A117","v":"2019-03-01"},{"$f":"ZZZ__FnCalls!A118","v":"2019-04-01"},{"$f":"ZZZ__FnCalls!A119","v":"2019-05-01"},{"$f":"ZZZ__FnCalls!A120","v":"2019-06-01"},{"$f":"ZZZ__FnCalls!A121","v":"2019-07-01"},{"$f":"ZZZ__FnCalls!A122","v":"2019-08-01"},{"$f":"ZZZ__FnCalls!A123","v":"2019-09-01"},{"$f":"ZZZ__FnCalls!A124","v":"2019-10-01"},{"$f":"ZZZ__FnCalls!A125","v":"2019-11-01"},{"$f":"ZZZ__FnCalls!A126","v":"2019-12-01"},{"$f":"ZZZ__FnCalls!A115","v":"2019-01-01"},{"$f":"ZZZ__FnCalls!A127","v":"2020-01-01"},{"$f":"ZZZ__FnCalls!A128","v":"2020-02-01"},{"$f":"ZZZ__FnCalls!A129","v":"2020-03-01"},{"$f":"ZZZ__FnCalls!A130","v":"2020-04-01"},{"$f":"ZZZ__FnCalls!A131","v":"2020-05-01"},{"$f":"ZZZ__FnCalls!A132","v":"2020-06-01"},{"$f":"ZZZ__FnCalls!A133","v":"2020-07-01"},{"$f":"ZZZ__FnCalls!A134","v":"2020-08-01"},{"$f":"ZZZ__FnCalls!A135","v":"2020-09-01"},{"$f":"ZZZ__FnCalls!A136","v":"2020-10-01"},{"$f":"ZZZ__FnCalls!A137","v":"2020-11-01"},{"$f":"ZZZ__FnCalls!A138","v":"2020-12-01"},{"$f":"ZZZ__FnCalls!A127","v":"2020-01-01"}]
[{"$f":"\"Consumption_2\"","v":"Consumption_2"}]
[null,{"$f":"ZZZ__FnCalls!F7","v":"Jan 2010"},{"$f":"ZZZ__FnCalls!F8","v":"Feb 2010"},{"$f":"ZZZ__FnCalls!F9","v":"Mar 2010"},{"$f":"ZZZ__FnCalls!F10","v":"Apr 2010"},{"$f":"ZZZ__FnCalls!F11","v":"May 2010"},{"$f":"ZZZ__FnCalls!F12","v":"Jun 2010"},{"$f":"ZZZ__FnCalls!F13","v":"Jul 2010"},{"$f":"ZZZ__FnCalls!F14","v":"Aug 2010"},{"$f":"ZZZ__FnCalls!F15","v":"Sep 2010"},{"$f":"ZZZ__FnCalls!F16","v":"Oct 2010"},{"$f":"ZZZ__FnCalls!F17","v":"Nov 2010"},{"$f":"ZZZ__FnCalls!F18","v":"Dec 2010"},{"$f":"ZZZ__FnCalls!H7","v":"2010"},{"$f":"ZZZ__FnCalls!F19","v":"Jan 2011"},{"$f":"ZZZ__FnCalls!F20","v":"Feb 2011"},{"$f":"ZZZ__FnCalls!F21","v":"Mar 2011"},{"$f":"ZZZ__FnCalls!F22","v":"Apr 2011"},{"$f":"ZZZ__FnCalls!F23","v":"May 2011"},{"$f":"ZZZ__FnCalls!F24","v":"Jun 2011"},{"$f":"ZZZ__FnCalls!F25","v":"Jul 2011"},{"$f":"ZZZ__FnCalls!F26","v":"Aug 2011"},{"$f":"ZZZ__FnCalls!F27","v":"Sep 2011"},{"$f":"ZZZ__FnCalls!F28","v":"Oct 2011"},{"$f":"ZZZ__FnCalls!F29","v":"Nov 2011"},{"$f":"ZZZ__FnCalls!F30","v":"Dec 2011"},{"$f":"ZZZ__FnCalls!H19","v":"2011"},{"$f":"ZZZ__FnCalls!F31","v":"Jan 2012"},{"$f":"ZZZ__FnCalls!F32","v":"Feb 2012"},{"$f":"ZZZ__FnCalls!F33","v":"Mar 2012"},{"$f":"ZZZ__FnCalls!F34","v":"Apr 2012"},{"$f":"ZZZ__FnCalls!F35","v":"May 2012"},{"$f":"ZZZ__FnCalls!F36","v":"Jun 2012"},{"$f":"ZZZ__FnCalls!F37","v":"Jul 2012"},{"$f":"ZZZ__FnCalls!F38","v":"Aug 2012"},{"$f":"ZZZ__FnCalls!F39","v":"Sep 2012"},{"$f":"ZZZ__FnCalls!F40","v":"Oct 2012"},{"$f":"ZZZ__FnCalls!F41","v":"Nov 2012"},{"$f":"ZZZ__FnCalls!F42","v":"Dec 2012"},{"$f":"ZZZ__FnCalls!H31","v":"2012"},{"$f":"ZZZ__FnCalls!F43","v":"Jan 2013"},{"$f":"ZZZ__FnCalls!F44","v":"Feb 2013"},{"$f":"ZZZ__FnCalls!F45","v":"Mar 2013"},{"$f":"ZZZ__FnCalls!F46","v":"Apr 2013"},{"$f":"ZZZ__FnCalls!F47","v":"May 2013"},{"$f":"ZZZ__FnCalls!F48","v":"Jun 2013"},{"$f":"ZZZ__FnCalls!F49","v":"Jul 2013"},{"$f":"ZZZ__FnCalls!F50","v":"Aug 2013"},{"$f":"ZZZ__FnCalls!F51","v":"Sep 2013"},{"$f":"ZZZ__FnCalls!F52","v":"Oct 2013"},{"$f":"ZZZ__FnCalls!F53","v":"Nov 2013"},{"$f":"ZZZ__FnCalls!F54","v":"Dec 2013"},{"$f":"ZZZ__FnCalls!H43","v":"2013"},{"$f":"ZZZ__FnCalls!F55","v":"Jan 2014"},{"$f":"ZZZ__FnCalls!F56","v":"Feb 2014"},{"$f":"ZZZ__FnCalls!F57","v":"Mar 2014"},{"$f":"ZZZ__FnCalls!F58","v":"Apr 2014"},{"$f":"ZZZ__FnCalls!F59","v":"May 2014"},{"$f":"ZZZ__FnCalls!F60","v":"Jun 2014"},{"$f":"ZZZ__FnCalls!F61","v":"Jul 2014"},{"$f":"ZZZ__FnCalls!F62","v":"Aug 2014"},{"$f":"ZZZ__FnCalls!F63","v":"Sep 2014"},{"$f":"ZZZ__FnCalls!F64","v":"Oct 2014"},{"$f":"ZZZ__FnCalls!F65","v":"Nov 2014"},{"$f":"ZZZ__FnCalls!F66","v":"Dec 2014"},{"$f":"ZZZ__FnCalls!H55","v":"2014"},{"$f":"ZZZ__FnCalls!F67","v":"Jan 2015"},{"$f":"ZZZ__FnCalls!F68","v":"Feb 2015"},{"$f":"ZZZ__FnCalls!F69","v":"Mar 2015"},{"$f":"ZZZ__FnCalls!F70","v":"Apr 2015"},{"$f":"ZZZ__FnCalls!F71","v":"May 2015"},{"$f":"ZZZ__FnCalls!F72","v":"Jun 2015"},{"$f":"ZZZ__FnCalls!F73","v":"Jul 2015"},{"$f":"ZZZ__FnCalls!F74","v":"Aug 2015"},{"$f":"ZZZ__FnCalls!F75","v":"Sep 2015"},{"$f":"ZZZ__FnCalls!F76","v":"Oct 2015"},{"$f":"ZZZ__FnCalls!F77","v":"Nov 2015"},{"$f":"ZZZ__FnCalls!F78","v":"Dec 2015"},{"$f":"ZZZ__FnCalls!H67","v":"2015"},{"$f":"ZZZ__FnCalls!F79","v":"Jan 2016"},{"$f":"ZZZ__FnCalls!F80","v":"Feb 2016"},{"$f":"ZZZ__FnCalls!F81","v":"Mar 2016"},{"$f":"ZZZ__FnCalls!F82","v":"Apr 2016"},{"$f":"ZZZ__FnCalls!F83","v":"May 2016"},{"$f":"ZZZ__FnCalls!F84","v":"Jun 2016"},{"$f":"ZZZ__FnCalls!F85","v":"Jul 2016"},{"$f":"ZZZ__FnCalls!F86","v":"Aug 2016"},{"$f":"ZZZ__FnCalls!F87","v":"Sep 2016"},{"$f":"ZZZ__FnCalls!F88","v":"Oct 2016"},{"$f":"ZZZ__FnCalls!F89","v":"Nov 2016"},{"$f":"ZZZ__FnCalls!F90","v":"Dec 2016"},{"$f":"ZZZ__FnCalls!H79","v":"2016"},{"$f":"ZZZ__FnCalls!F91","v":"Jan 2017"},{"$f":"ZZZ__FnCalls!F92","v":"Feb 2017"},{"$f":"ZZZ__FnCalls!F93","v":"Mar 2017"},{"$f":"ZZZ__FnCalls!F94","v":"Apr 2017"},{"$f":"ZZZ__FnCalls!F95","v":"May 2017"},{"$f":"ZZZ__FnCalls!F96","v":"Jun 2017"},{"$f":"ZZZ__FnCalls!F97","v":"Jul 2017"},{"$f":"ZZZ__FnCalls!F98","v":"Aug 2017"},{"$f":"ZZZ__FnCalls!F99","v":"Sep 2017"},{"$f":"ZZZ__FnCalls!F100","v":"Oct 2017"},{"$f":"ZZZ__FnCalls!F101","v":"Nov 2017"},{"$f":"ZZZ__FnCalls!F102","v":"Dec 2017"},{"$f":"ZZZ__FnCalls!H91","v":"2017"},{"$f":"ZZZ__FnCalls!F103","v":"Jan 2018"},{"$f":"ZZZ__FnCalls!F104","v":"Feb 2018"},{"$f":"ZZZ__FnCalls!F105","v":"Mar 2018"},{"$f":"ZZZ__FnCalls!F106","v":"Apr 2018"},{"$f":"ZZZ__FnCalls!F107","v":"May 2018"},{"$f":"ZZZ__FnCalls!F108","v":"Jun 2018"},{"$f":"ZZZ__FnCalls!F109","v":"Jul 2018"},{"$f":"ZZZ__FnCalls!F110","v":"Aug 2018"},{"$f":"ZZZ__FnCalls!F111","v":"Sep 2018"},{"$f":"ZZZ__FnCalls!F112","v":"Oct 2018"},{"$f":"ZZZ__FnCalls!F113","v":"Nov 2018"},{"$f":"ZZZ__FnCalls!F114","v":"Dec 2018"},{"$f":"ZZZ__FnCalls!H103","v":"2018"},{"$f":"ZZZ__FnCalls!F115","v":"Jan 2019"},{"$f":"ZZZ__FnCalls!F116","v":"Feb 2019"},{"$f":"ZZZ__FnCalls!F117","v":"Mar 2019"},{"$f":"ZZZ__FnCalls!F118","v":"Apr 2019"},{"$f":"ZZZ__FnCalls!F119","v":"May 2019"},{"$f":"ZZZ__FnCalls!F120","v":"Jun 2019"},{"$f":"ZZZ__FnCalls!F121","v":"Jul 2019"},{"$f":"ZZZ__FnCalls!F122","v":"Aug 2019"},{"$f":"ZZZ__FnCalls!F123","v":"Sep 2019"},{"$f":"ZZZ__FnCalls!F124","v":"Oct 2019"},{"$f":"ZZZ__FnCalls!F125","v":"Nov 2019"},{"$f":"ZZZ__FnCalls!F126","v":"Dec 2019"},{"$f":"ZZZ__FnCalls!H115","v":"2019"},{"$f":"ZZZ__FnCalls!F127","v":"Jan 2020"},{"$f":"ZZZ__FnCalls!F128","v":"Feb 2020"},{"$f":"ZZZ__FnCalls!F129","v":"Mar 2020"},{"$f":"ZZZ__FnCalls!F130","v":"Apr 2020"},{"$f":"ZZZ__FnCalls!F131","v":"May 2020"},{"$f":"ZZZ__FnCalls!F132","v":"Jun 2020"},{"$f":"ZZZ__FnCalls!F133","v":"Jul 2020"},{"$f":"ZZZ__FnCalls!F134","v":"Aug 2020"},{"$f":"ZZZ__FnCalls!F135","v":"Sep 2020"},{"$f":"ZZZ__FnCalls!F136","v":"Oct 2020"},{"$f":"ZZZ__FnCalls!F137","v":"Nov 2020"},{"$f":"ZZZ__FnCalls!F138","v":"Dec 2020"},{"$f":"ZZZ__FnCalls!H127","v":"2020"}]
[null,{"$f":"ZZZ__FnCalls!F7","v":"Jan 2010"},{"$f":"ZZZ__FnCalls!F8","v":"Feb 2010"},{"$f":"ZZZ__FnCalls!F9","v":"Mar 2010"},{"$f":"ZZZ__FnCalls!F10","v":"Apr 2010"},{"$f":"ZZZ__FnCalls!F11","v":"May 2010"},{"$f":"ZZZ__FnCalls!F12","v":"Jun 2010"},{"$f":"ZZZ__FnCalls!F13","v":"Jul 2010"},{"$f":"ZZZ__FnCalls!F14","v":"Aug 2010"},{"$f":"ZZZ__FnCalls!F15","v":"Sep 2010"},{"$f":"ZZZ__FnCalls!F16","v":"Oct 2010"},{"$f":"ZZZ__FnCalls!F17","v":"Nov 2010"},{"$f":"ZZZ__FnCalls!F18","v":"Dec 2010"},{"$f":"ZZZ__FnCalls!F7","v":"Jan 2010"},{"$f":"ZZZ__FnCalls!F19","v":"Jan 2011"},{"$f":"ZZZ__FnCalls!F20","v":"Feb 2011"},{"$f":"ZZZ__FnCalls!F21","v":"Mar 2011"},{"$f":"ZZZ__FnCalls!F22","v":"Apr 2011"},{"$f":"ZZZ__FnCalls!F23","v":"May 2011"},{"$f":"ZZZ__FnCalls!F24","v":"Jun 2011"},{"$f":"ZZZ__FnCalls!F25","v":"Jul 2011"},{"$f":"ZZZ__FnCalls!F26","v":"Aug 2011"},{"$f":"ZZZ__FnCalls!F27","v":"Sep 2011"},{"$f":"ZZZ__FnCalls!F28","v":"Oct 2011"},{"$f":"ZZZ__FnCalls!F29","v":"Nov 2011"},{"$f":"ZZZ__FnCalls!F30","v":"Dec 2011"},{"$f":"ZZZ__FnCalls!F19","v":"Jan 2011"},{"$f":"ZZZ__FnCalls!F31","v":"Jan 2012"},{"$f":"ZZZ__FnCalls!F32","v":"Feb 2012"},{"$f":"ZZZ__FnCalls!F33","v":"Mar 2012"},{"$f":"ZZZ__FnCalls!F34","v":"Apr 2012"},{"$f":"ZZZ__FnCalls!F35","v":"May 2012"},{"$f":"ZZZ__FnCalls!F36","v":"Jun 2012"},{"$f":"ZZZ__FnCalls!F37","v":"Jul 2012"},{"$f":"ZZZ__FnCalls!F38","v":"Aug 2012"},{"$f":"ZZZ__FnCalls!F39","v":"Sep 2012"},{"$f":"ZZZ__FnCalls!F40","v":"Oct 2012"},{"$f":"ZZZ__FnCalls!F41","v":"Nov 2012"},{"$f":"ZZZ__FnCalls!F42","v":"Dec 2012"},{"$f":"ZZZ__FnCalls!F31","v":"Jan 2012"},{"$f":"ZZZ__FnCalls!F43","v":"Jan 2013"},{"$f":"ZZZ__FnCalls!F44","v":"Feb 2013"},{"$f":"ZZZ__FnCalls!F45","v":"Mar 2013"},{"$f":"ZZZ__FnCalls!F46","v":"Apr 2013"},{"$f":"ZZZ__FnCalls!F47","v":"May 2013"},{"$f":"ZZZ__FnCalls!F48","v":"Jun 2013"},{"$f":"ZZZ__FnCalls!F49","v":"Jul 2013"},{"$f":"ZZZ__FnCalls!F50","v":"Aug 2013"},{"$f":"ZZZ__FnCalls!F51","v":"Sep 2013"},{"$f":"ZZZ__FnCalls!F52","v":"Oct 2013"},{"$f":"ZZZ__FnCalls!F53","v":"Nov 2013"},{"$f":"ZZZ__FnCalls!F54","v":"Dec 2013"},{"$f":"ZZZ__FnCalls!F43","v":"Jan 2013"},{"$f":"ZZZ__FnCalls!F55","v":"Jan 2014"},{"$f":"ZZZ__FnCalls!F56","v":"Feb 2014"},{"$f":"ZZZ__FnCalls!F57","v":"Mar 2014"},{"$f":"ZZZ__FnCalls!F58","v":"Apr 2014"},{"$f":"ZZZ__FnCalls!F59","v":"May 2014"},{"$f":"ZZZ__FnCalls!F60","v":"Jun 2014"},{"$f":"ZZZ__FnCalls!F61","v":"Jul 2014"},{"$f":"ZZZ__FnCalls!F62","v":"Aug 2014"},{"$f":"ZZZ__FnCalls!F63","v":"Sep 2014"},{"$f":"ZZZ__FnCalls!F64","v":"Oct 2014"},{"$f":"ZZZ__FnCalls!F65","v":"Nov 2014"},{"$f":"ZZZ__FnCalls!F66","v":"Dec 2014"},{"$f":"ZZZ__FnCalls!F55","v":"Jan 2014"},{"$f":"ZZZ__FnCalls!F67","v":"Jan 2015"},{"$f":"ZZZ__FnCalls!F68","v":"Feb 2015"},{"$f":"ZZZ__FnCalls!F69","v":"Mar 2015"},{"$f":"ZZZ__FnCalls!F70","v":"Apr 2015"},{"$f":"ZZZ__FnCalls!F71","v":"May 2015"},{"$f":"ZZZ__FnCalls!F72","v":"Jun 2015"},{"$f":"ZZZ__FnCalls!F73","v":"Jul 2015"},{"$f":"ZZZ__FnCalls!F74","v":"Aug 2015"},{"$f":"ZZZ__FnCalls!F75","v":"Sep 2015"},{"$f":"ZZZ__FnCalls!F76","v":"Oct 2015"},{"$f":"ZZZ__FnCalls!F77","v":"Nov 2015"},{"$f":"ZZZ__FnCalls!F78","v":"Dec 2015"},{"$f":"ZZZ__FnCalls!F67","v":"Jan 2015"},{"$f":"ZZZ__FnCalls!F79","v":"Jan 2016"},{"$f":"ZZZ__FnCalls!F80","v":"Feb 2016"},{"$f":"ZZZ__FnCalls!F81","v":"Mar 2016"},{"$f":"ZZZ__FnCalls!F82","v":"Apr 2016"},{"$f":"ZZZ__FnCalls!F83","v":"May 2016"},{"$f":"ZZZ__FnCalls!F84","v":"Jun 2016"},{"$f":"ZZZ__FnCalls!F85","v":"Jul 2016"},{"$f":"ZZZ__FnCalls!F86","v":"Aug 2016"},{"$f":"ZZZ__FnCalls!F87","v":"Sep 2016"},{"$f":"ZZZ__FnCalls!F88","v":"Oct 2016"},{"$f":"ZZZ__FnCalls!F89","v":"Nov 2016"},{"$f":"ZZZ__FnCalls!F90","v":"Dec 2016"},{"$f":"ZZZ__FnCalls!F79","v":"Jan 2016"},{"$f":"ZZZ__FnCalls!F91","v":"Jan 2017"},{"$f":"ZZZ__FnCalls!F92","v":"Feb 2017"},{"$f":"ZZZ__FnCalls!F93","v":"Mar 2017"},{"$f":"ZZZ__FnCalls!F94","v":"Apr 2017"},{"$f":"ZZZ__FnCalls!F95","v":"May 2017"},{"$f":"ZZZ__FnCalls!F96","v":"Jun 2017"},{"$f":"ZZZ__FnCalls!F97","v":"Jul 2017"},{"$f":"ZZZ__FnCalls!F98","v":"Aug 2017"},{"$f":"ZZZ__FnCalls!F99","v":"Sep 2017"},{"$f":"ZZZ__FnCalls!F100","v":"Oct 2017"},{"$f":"ZZZ__FnCalls!F101","v":"Nov 2017"},{"$f":"ZZZ__FnCalls!F102","v":"Dec 2017"},{"$f":"ZZZ__FnCalls!F91","v":"Jan 2017"},{"$f":"ZZZ__FnCalls!F103","v":"Jan 2018"},{"$f":"ZZZ__FnCalls!F104","v":"Feb 2018"},{"$f":"ZZZ__FnCalls!F105","v":"Mar 2018"},{"$f":"ZZZ__FnCalls!F106","v":"Apr 2018"},{"$f":"ZZZ__FnCalls!F107","v":"May 2018"},{"$f":"ZZZ__FnCalls!F108","v":"Jun 2018"},{"$f":"ZZZ__FnCalls!F109","v":"Jul 2018"},{"$f":"ZZZ__FnCalls!F110","v":"Aug 2018"},{"$f":"ZZZ__FnCalls!F111","v":"Sep 2018"},{"$f":"ZZZ__FnCalls!F112","v":"Oct 2018"},{"$f":"ZZZ__FnCalls!F113","v":"Nov 2018"},{"$f":"ZZZ__FnCalls!F114","v":"Dec 2018"},{"$f":"ZZZ__FnCalls!F103","v":"Jan 2018"},{"$f":"ZZZ__FnCalls!F115","v":"Jan 2019"},{"$f":"ZZZ__FnCalls!F116","v":"Feb 2019"},{"$f":"ZZZ__FnCalls!F117","v":"Mar 2019"},{"$f":"ZZZ__FnCalls!F118","v":"Apr 2019"},{"$f":"ZZZ__FnCalls!F119","v":"May 2019"},{"$f":"ZZZ__FnCalls!F120","v":"Jun 2019"},{"$f":"ZZZ__FnCalls!F121","v":"Jul 2019"},{"$f":"ZZZ__FnCalls!F122","v":"Aug 2019"},{"$f":"ZZZ__FnCalls!F123","v":"Sep 2019"},{"$f":"ZZZ__FnCalls!F124","v":"Oct 2019"},{"$f":"ZZZ__FnCalls!F125","v":"Nov 2019"},{"$f":"ZZZ__FnCalls!F126","v":"Dec 2019"},{"$f":"ZZZ__FnCalls!F115","v":"Jan 2019"},{"$f":"ZZZ__FnCalls!F127","v":"Jan 2020"},{"$f":"ZZZ__FnCalls!F128","v":"Feb 2020"},{"$f":"ZZZ__FnCalls!F129","v":"Mar 2020"},{"$f":"ZZZ__FnCalls!F130","v":"Apr 2020"},{"$f":"ZZZ__FnCalls!F131","v":"May 2020"},{"$f":"ZZZ__FnCalls!F132","v":"Jun 2020"},{"$f":"ZZZ__FnCalls!F133","v":"Jul 2020"},{"$f":"ZZZ__FnCalls!F134","v":"Aug 2020"},{"$f":"ZZZ__FnCalls!F135","v":"Sep 2020"},{"$f":"ZZZ__FnCalls!F136","v":"Oct 2020"},{"$f":"ZZZ__FnCalls!F137","v":"Nov 2020"},{"$f":"ZZZ__FnCalls!F138","v":"Dec 2020"},{"$f":"ZZZ__FnCalls!F127","v":"Jan 2020"}]
[{"$f":"\"Income_Permanent_1\"","v":"Income_Permanent_1"}]
[null,{"$f":"ZZZ__FnCalls!F7","v":"Jan 2010"},{"$f":"ZZZ__FnCalls!F8","v":"Feb 2010"},{"$f":"ZZZ__FnCalls!F9","v":"Mar 2010"},{"$f":"ZZZ__FnCalls!F10","v":"Apr 2010"},{"$f":"ZZZ__FnCalls!F11","v":"May 2010"},{"$f":"ZZZ__FnCalls!F12","v":"Jun 2010"},{"$f":"ZZZ__FnCalls!F13","v":"Jul 2010"},{"$f":"ZZZ__FnCalls!F14","v":"Aug 2010"},{"$f":"ZZZ__FnCalls!F15","v":"Sep 2010"},{"$f":"ZZZ__FnCalls!F16","v":"Oct 2010"},{"$f":"ZZZ__FnCalls!F17","v":"Nov 2010"},{"$f":"ZZZ__FnCalls!F18","v":"Dec 2010"},{"$f":"ZZZ__FnCalls!H7","v":"2010"},{"$f":"ZZZ__FnCalls!F19","v":"Jan 2011"},{"$f":"ZZZ__FnCalls!F20","v":"Feb 2011"},{"$f":"ZZZ__FnCalls!F21","v":"Mar 2011"},{"$f":"ZZZ__FnCalls!F22","v":"Apr 2011"},{"$f":"ZZZ__FnCalls!F23","v":"May 2011"},{"$f":"ZZZ__FnCalls!F24","v":"Jun 2011"},{"$f":"ZZZ__FnCalls!F25","v":"Jul 2011"},{"$f":"ZZZ__FnCalls!F26","v":"Aug 2011"},{"$f":"ZZZ__FnCalls!F27","v":"Sep 2011"},{"$f":"ZZZ__FnCalls!F28","v":"Oct 2011"},{"$f":"ZZZ__FnCalls!F29","v":"Nov 2011"},{"$f":"ZZZ__FnCalls!F30","v":"Dec 2011"},{"$f":"ZZZ__FnCalls!H19","v":"2011"},{"$f":"ZZZ__FnCalls!F31","v":"Jan 2012"},{"$f":"ZZZ__FnCalls!F32","v":"Feb 2012"},{"$f":"ZZZ__FnCalls!F33","v":"Mar 2012"},{"$f":"ZZZ__FnCalls!F34","v":"Apr 2012"},{"$f":"ZZZ__FnCalls!F35","v":"May 2012"},{"$f":"ZZZ__FnCalls!F36","v":"Jun 2012"},{"$f":"ZZZ__FnCalls!F37","v":"Jul 2012"},{"$f":"ZZZ__FnCalls!F38","v":"Aug 2012"},{"$f":"ZZZ__FnCalls!F39","v":"Sep 2012"},{"$f":"ZZZ__FnCalls!F40","v":"Oct 2012"},{"$f":"ZZZ__FnCalls!F41","v":"Nov 2012"},{"$f":"ZZZ__FnCalls!F42","v":"Dec 2012"},{"$f":"ZZZ__FnCalls!H31","v":"2012"},{"$f":"ZZZ__FnCalls!F43","v":"Jan 2013"},{"$f":"ZZZ__FnCalls!F44","v":"Feb 2013"},{"$f":"ZZZ__FnCalls!F45","v":"Mar 2013"},{"$f":"ZZZ__FnCalls!F46","v":"Apr 2013"},{"$f":"ZZZ__FnCalls!F47","v":"May 2013"},{"$f":"ZZZ__FnCalls!F48","v":"Jun 2013"},{"$f":"ZZZ__FnCalls!F49","v":"Jul 2013"},{"$f":"ZZZ__FnCalls!F50","v":"Aug 2013"},{"$f":"ZZZ__FnCalls!F51","v":"Sep 2013"},{"$f":"ZZZ__FnCalls!F52","v":"Oct 2013"},{"$f":"ZZZ__FnCalls!F53","v":"Nov 2013"},{"$f":"ZZZ__FnCalls!F54","v":"Dec 2013"},{"$f":"ZZZ__FnCalls!H43","v":"2013"},{"$f":"ZZZ__FnCalls!F55","v":"Jan 2014"},{"$f":"ZZZ__FnCalls!F56","v":"Feb 2014"},{"$f":"ZZZ__FnCalls!F57","v":"Mar 2014"},{"$f":"ZZZ__FnCalls!F58","v":"Apr 2014"},{"$f":"ZZZ__FnCalls!F59","v":"May 2014"},{"$f":"ZZZ__FnCalls!F60","v":"Jun 2014"},{"$f":"ZZZ__FnCalls!F61","v":"Jul 2014"},{"$f":"ZZZ__FnCalls!F62","v":"Aug 2014"},{"$f":"ZZZ__FnCalls!F63","v":"Sep 2014"},{"$f":"ZZZ__FnCalls!F64","v":"Oct 2014"},{"$f":"ZZZ__FnCalls!F65","v":"Nov 2014"},{"$f":"ZZZ__FnCalls!F66","v":"Dec 2014"},{"$f":"ZZZ__FnCalls!H55","v":"2014"},{"$f":"ZZZ__FnCalls!F67","v":"Jan 2015"},{"$f":"ZZZ__FnCalls!F68","v":"Feb 2015"},{"$f":"ZZZ__FnCalls!F69","v":"Mar 2015"},{"$f":"ZZZ__FnCalls!F70","v":"Apr 2015"},{"$f":"ZZZ__FnCalls!F71","v":"May 2015"},{"$f":"ZZZ__FnCalls!F72","v":"Jun 2015"},{"$f":"ZZZ__FnCalls!F73","v":"Jul 2015"},{"$f":"ZZZ__FnCalls!F74","v":"Aug 2015"},{"$f":"ZZZ__FnCalls!F75","v":"Sep 2015"},{"$f":"ZZZ__FnCalls!F76","v":"Oct 2015"},{"$f":"ZZZ__FnCalls!F77","v":"Nov 2015"},{"$f":"ZZZ__FnCalls!F78","v":"Dec 2015"},{"$f":"ZZZ__FnCalls!H67","v":"2015"},{"$f":"ZZZ__FnCalls!F79","v":"Jan 2016"},{"$f":"ZZZ__FnCalls!F80","v":"Feb 2016"},{"$f":"ZZZ__FnCalls!F81","v":"Mar 2016"},{"$f":"ZZZ__FnCalls!F82","v":"Apr 2016"},{"$f":"ZZZ__FnCalls!F83","v":"May 2016"},{"$f":"ZZZ__FnCalls!F84","v":"Jun 2016"},{"$f":"ZZZ__FnCalls!F85","v":"Jul 2016"},{"$f":"ZZZ__FnCalls!F86","v":"Aug 2016"},{"$f":"ZZZ__FnCalls!F87","v":"Sep 2016"},{"$f":"ZZZ__FnCalls!F88","v":"Oct 2016"},{"$f":"ZZZ__FnCalls!F89","v":"Nov 2016"},{"$f":"ZZZ__FnCalls!F90","v":"Dec 2016"},{"$f":"ZZZ__FnCalls!H79","v":"2016"},{"$f":"ZZZ__FnCalls!F91","v":"Jan 2017"},{"$f":"ZZZ__FnCalls!F92","v":"Feb 2017"},{"$f":"ZZZ__FnCalls!F93","v":"Mar 2017"},{"$f":"ZZZ__FnCalls!F94","v":"Apr 2017"},{"$f":"ZZZ__FnCalls!F95","v":"May 2017"},{"$f":"ZZZ__FnCalls!F96","v":"Jun 2017"},{"$f":"ZZZ__FnCalls!F97","v":"Jul 2017"},{"$f":"ZZZ__FnCalls!F98","v":"Aug 2017"},{"$f":"ZZZ__FnCalls!F99","v":"Sep 2017"},{"$f":"ZZZ__FnCalls!F100","v":"Oct 2017"},{"$f":"ZZZ__FnCalls!F101","v":"Nov 2017"},{"$f":"ZZZ__FnCalls!F102","v":"Dec 2017"},{"$f":"ZZZ__FnCalls!H91","v":"2017"},{"$f":"ZZZ__FnCalls!F103","v":"Jan 2018"},{"$f":"ZZZ__FnCalls!F104","v":"Feb 2018"},{"$f":"ZZZ__FnCalls!F105","v":"Mar 2018"},{"$f":"ZZZ__FnCalls!F106","v":"Apr 2018"},{"$f":"ZZZ__FnCalls!F107","v":"May 2018"},{"$f":"ZZZ__FnCalls!F108","v":"Jun 2018"},{"$f":"ZZZ__FnCalls!F109","v":"Jul 2018"},{"$f":"ZZZ__FnCalls!F110","v":"Aug 2018"},{"$f":"ZZZ__FnCalls!F111","v":"Sep 2018"},{"$f":"ZZZ__FnCalls!F112","v":"Oct 2018"},{"$f":"ZZZ__FnCalls!F113","v":"Nov 2018"},{"$f":"ZZZ__FnCalls!F114","v":"Dec 2018"},{"$f":"ZZZ__FnCalls!H103","v":"2018"},{"$f":"ZZZ__FnCalls!F115","v":"Jan 2019"},{"$f":"ZZZ__FnCalls!F116","v":"Feb 2019"},{"$f":"ZZZ__FnCalls!F117","v":"Mar 2019"},{"$f":"ZZZ__FnCalls!F118","v":"Apr 2019"},{"$f":"ZZZ__FnCalls!F119","v":"May 2019"},{"$f":"ZZZ__FnCalls!F120","v":"Jun 2019"},{"$f":"ZZZ__FnCalls!F121","v":"Jul 2019"},{"$f":"ZZZ__FnCalls!F122","v":"Aug 2019"},{"$f":"ZZZ__FnCalls!F123","v":"Sep 2019"},{"$f":"ZZZ__FnCalls!F124","v":"Oct 2019"},{"$f":"ZZZ__FnCalls!F125","v":"Nov 2019"},{"$f":"ZZZ__FnCalls!F126","v":"Dec 2019"},{"$f":"ZZZ__FnCalls!H115","v":"2019"},{"$f":"ZZZ__FnCalls!F127","v":"Jan 2020"},{"$f":"ZZZ__FnCalls!F128","v":"Feb 2020"},{"$f":"ZZZ__FnCalls!F129","v":"Mar 2020"},{"$f":"ZZZ__FnCalls!F130","v":"Apr 2020"},{"$f":"ZZZ__FnCalls!F131","v":"May 2020"},{"$f":"ZZZ__FnCalls!F132","v":"Jun 2020"},{"$f":"ZZZ__FnCalls!F133","v":"Jul 2020"},{"$f":"ZZZ__FnCalls!F134","v":"Aug 2020"},{"$f":"ZZZ__FnCalls!F135","v":"Sep 2020"},{"$f":"ZZZ__FnCalls!F136","v":"Oct 2020"},{"$f":"ZZZ__FnCalls!F137","v":"Nov 2020"},{"$f":"ZZZ__FnCalls!F138","v":"Dec 2020"},{"$f":"ZZZ__FnCalls!H127","v":"2020"}]
[null,{"$f":"ZZZ__FnCalls!A7","v":"2010-01-01"},{"$f":"ZZZ__FnCalls!A8","v":"2010-02-01"},{"$f":"ZZZ__FnCalls!A9","v":"2010-03-01"},{"$f":"ZZZ__FnCalls!A10","v":"2010-04-01"},{"$f":"ZZZ__FnCalls!A11","v":"2010-05-01"},{"$f":"ZZZ__FnCalls!A12","v":"2010-06-01"},{"$f":"ZZZ__FnCalls!A13","v":"2010-07-01"},{"$f":"ZZZ__FnCalls!A14","v":"2010-08-01"},{"$f":"ZZZ__FnCalls!A15","v":"2010-09-01"},{"$f":"ZZZ__FnCalls!A16","v":"2010-10-01"},{"$f":"ZZZ__FnCalls!A17","v":"2010-11-01"},{"$f":"ZZZ__FnCalls!A18","v":"2010-12-01"},{"$f":"ZZZ__FnCalls!A7","v":"2010-01-01"},{"$f":"ZZZ__FnCalls!A19","v":"2011-01-01"},{"$f":"ZZZ__FnCalls!A20","v":"2011-02-01"},{"$f":"ZZZ__FnCalls!A21","v":"2011-03-01"},{"$f":"ZZZ__FnCalls!A22","v":"2011-04-01"},{"$f":"ZZZ__FnCalls!A23","v":"2011-05-01"},{"$f":"ZZZ__FnCalls!A24","v":"2011-06-01"},{"$f":"ZZZ__FnCalls!A25","v":"2011-07-01"},{"$f":"ZZZ__FnCalls!A26","v":"2011-08-01"},{"$f":"ZZZ__FnCalls!A27","v":"2011-09-01"},{"$f":"ZZZ__FnCalls!A28","v":"2011-10-01"},{"$f":"ZZZ__FnCalls!A29","v":"2011-11-01"},{"$f":"ZZZ__FnCalls!A30","v":"2011-12-01"},{"$f":"ZZZ__FnCalls!A19","v":"2011-01-01"},{"$f":"ZZZ__FnCalls!A31","v":"2012-01-01"},{"$f":"ZZZ__FnCalls!A32","v":"2012-02-01"},{"$f":"ZZZ__FnCalls!A33","v":"2012-03-01"},{"$f":"ZZZ__FnCalls!A34","v":"2012-04-01"},{"$f":"ZZZ__FnCalls!A35","v":"2012-05-01"},{"$f":"ZZZ__FnCalls!A36","v":"2012-06-01"},{"$f":"ZZZ__FnCalls!A37","v":"2012-07-01"},{"$f":"ZZZ__FnCalls!A38","v":"2012-08-01"},{"$f":"ZZZ__FnCalls!A39","v":"2012-09-01"},{"$f":"ZZZ__FnCalls!A40","v":"2012-10-01"},{"$f":"ZZZ__FnCalls!A41","v":"2012-11-01"},{"$f":"ZZZ__FnCalls!A42","v":"2012-12-01"},{"$f":"ZZZ__FnCalls!A31","v":"2012-01-01"},{"$f":"ZZZ__FnCalls!A43","v":"2013-01-01"},{"$f":"ZZZ__FnCalls!A44","v":"2013-02-01"},{"$f":"ZZZ__FnCalls!A45","v":"2013-03-01"},{"$f":"ZZZ__FnCalls!A46","v":"2013-04-01"},{"$f":"ZZZ__FnCalls!A47","v":"2013-05-01"},{"$f":"ZZZ__FnCalls!A48","v":"2013-06-01"},{"$f":"ZZZ__FnCalls!A49","v":"2013-07-01"},{"$f":"ZZZ__FnCalls!A50","v":"2013-08-01"},{"$f":"ZZZ__FnCalls!A51","v":"2013-09-01"},{"$f":"ZZZ__FnCalls!A52","v":"2013-10-01"},{"$f":"ZZZ__FnCalls!A53","v":"2013-11-01"},{"$f":"ZZZ__FnCalls!A54","v":"2013-12-01"},{"$f":"ZZZ__FnCalls!A43","v":"2013-01-01"},{"$f":"ZZZ__FnCalls!A55","v":"2014-01-01"},{"$f":"ZZZ__FnCalls!A56","v":"2014-02-01"},{"$f":"ZZZ__FnCalls!A57","v":"2014-03-01"},{"$f":"ZZZ__FnCalls!A58","v":"2014-04-01"},{"$f":"ZZZ__FnCalls!A59","v":"2014-05-01"},{"$f":"ZZZ__FnCalls!A60","v":"2014-06-01"},{"$f":"ZZZ__FnCalls!A61","v":"2014-07-01"},{"$f":"ZZZ__FnCalls!A62","v":"2014-08-01"},{"$f":"ZZZ__FnCalls!A63","v":"2014-09-01"},{"$f":"ZZZ__FnCalls!A64","v":"2014-10-01"},{"$f":"ZZZ__FnCalls!A65","v":"2014-11-01"},{"$f":"ZZZ__FnCalls!A66","v":"2014-12-01"},{"$f":"ZZZ__FnCalls!A55","v":"2014-01-01"},{"$f":"ZZZ__FnCalls!A67","v":"2015-01-01"},{"$f":"ZZZ__FnCalls!A68","v":"2015-02-01"},{"$f":"ZZZ__FnCalls!A69","v":"2015-03-01"},{"$f":"ZZZ__FnCalls!A70","v":"2015-04-01"},{"$f":"ZZZ__FnCalls!A71","v":"2015-05-01"},{"$f":"ZZZ__FnCalls!A72","v":"2015-06-01"},{"$f":"ZZZ__FnCalls!A73","v":"2015-07-01"},{"$f":"ZZZ__FnCalls!A74","v":"2015-08-01"},{"$f":"ZZZ__FnCalls!A75","v":"2015-09-01"},{"$f":"ZZZ__FnCalls!A76","v":"2015-10-01"},{"$f":"ZZZ__FnCalls!A77","v":"2015-11-01"},{"$f":"ZZZ__FnCalls!A78","v":"2015-12-01"},{"$f":"ZZZ__FnCalls!A67","v":"2015-01-01"},{"$f":"ZZZ__FnCalls!A79","v":"2016-01-01"},{"$f":"ZZZ__FnCalls!A80","v":"2016-02-01"},{"$f":"ZZZ__FnCalls!A81","v":"2016-03-01"},{"$f":"ZZZ__FnCalls!A82","v":"2016-04-01"},{"$f":"ZZZ__FnCalls!A83","v":"2016-05-01"},{"$f":"ZZZ__FnCalls!A84","v":"2016-06-01"},{"$f":"ZZZ__FnCalls!A85","v":"2016-07-01"},{"$f":"ZZZ__FnCalls!A86","v":"2016-08-01"},{"$f":"ZZZ__FnCalls!A87","v":"2016-09-01"},{"$f":"ZZZ__FnCalls!A88","v":"2016-10-01"},{"$f":"ZZZ__FnCalls!A89","v":"2016-11-01"},{"$f":"ZZZ__FnCalls!A90","v":"2016-12-01"},{"$f":"ZZZ__FnCalls!A79","v":"2016-01-01"},{"$f":"ZZZ__FnCalls!A91","v":"2017-01-01"},{"$f":"ZZZ__FnCalls!A92","v":"2017-02-01"},{"$f":"ZZZ__FnCalls!A93","v":"2017-03-01"},{"$f":"ZZZ__FnCalls!A94","v":"2017-04-01"},{"$f":"ZZZ__FnCalls!A95","v":"2017-05-01"},{"$f":"ZZZ__FnCalls!A96","v":"2017-06-01"},{"$f":"ZZZ__FnCalls!A97","v":"2017-07-01"},{"$f":"ZZZ__FnCalls!A98","v":"2017-08-01"},{"$f":"ZZZ__FnCalls!A99","v":"2017-09-01"},{"$f":"ZZZ__FnCalls!A100","v":"2017-10-01"},{"$f":"ZZZ__FnCalls!A101","v":"2017-11-01"},{"$f":"ZZZ__FnCalls!A102","v":"2017-12-01"},{"$f":"ZZZ__FnCalls!A91","v":"2017-01-01"},{"$f":"ZZZ__FnCalls!A103","v":"2018-01-01"},{"$f":"ZZZ__FnCalls!A104","v":"2018-02-01"},{"$f":"ZZZ__FnCalls!A105","v":"2018-03-01"},{"$f":"ZZZ__FnCalls!A106","v":"2018-04-01"},{"$f":"ZZZ__FnCalls!A107","v":"2018-05-01"},{"$f":"ZZZ__FnCalls!A108","v":"2018-06-01"},{"$f":"ZZZ__FnCalls!A109","v":"2018-07-01"},{"$f":"ZZZ__FnCalls!A110","v":"2018-08-01"},{"$f":"ZZZ__FnCalls!A111","v":"2018-09-01"},{"$f":"ZZZ__FnCalls!A112","v":"2018-10-01"},{"$f":"ZZZ__FnCalls!A113","v":"2018-11-01"},{"$f":"ZZZ__FnCalls!A114","v":"2018-12-01"},{"$f":"ZZZ__FnCalls!A103","v":"2018-01-01"},{"$f":"ZZZ__FnCalls!A115","v":"2019-01-01"},{"$f":"ZZZ__FnCalls!A116","v":"2019-02-01"},{"$f":"ZZZ__FnCalls!A117","v":"2019-03-01"},{"$f":"ZZZ__FnCalls!A118","v":"2019-04-01"},{"$f":"ZZZ__FnCalls!A119","v":"2019-05-01"},{"$f":"ZZZ__FnCalls!A120","v":"2019-06-01"},{"$f":"ZZZ__FnCalls!A121","v":"2019-07-01"},{"$f":"ZZZ__FnCalls!A122","v":"2019-08-01"},{"$f":"ZZZ__FnCalls!A123","v":"2019-09-01"},{"$f":"ZZZ__FnCalls!A124","v":"2019-10-01"},{"$f":"ZZZ__FnCalls!A125","v":"2019-11-01"},{"$f":"ZZZ__FnCalls!A126","v":"2019-12-01"},{"$f":"ZZZ__FnCalls!A115","v":"2019-01-01"},{"$f":"ZZZ__FnCalls!A127","v":"2020-01-01"},{"$f":"ZZZ__FnCalls!A128","v":"2020-02-01"},{"$f":"ZZZ__FnCalls!A129","v":"2020-03-01"},{"$f":"ZZZ__FnCalls!A130","v":"2020-04-01"},{"$f":"ZZZ__FnCalls!A131","v":"2020-05-01"},{"$f":"ZZZ__FnCalls!A132","v":"2020-06-01"},{"$f":"ZZZ__FnCalls!A133","v":"2020-07-01"},{"$f":"ZZZ__FnCalls!A134","v":"2020-08-01"},{"$f":"ZZZ__FnCalls!A135","v":"2020-09-01"},{"$f":"ZZZ__FnCalls!A136","v":"2020-10-01"},{"$f":"ZZZ__FnCalls!A137","v":"2020-11-01"},{"$f":"ZZZ__FnCalls!A138","v":"2020-12-01"},{"$f":"ZZZ__FnCalls!A127","v":"2020-01-01"}]
[{"$f":"\"Income_Permanent_2\"","v":"Income_Permanent_2"}]
[null,{"$f":"ZZZ__FnCalls!F7","v":"Jan 2010"},{"$f":"ZZZ__FnCalls!F8","v":"Feb 2010"},{"$f":"ZZZ__FnCalls!F9","v":"Mar 2010"},{"$f":"ZZZ__FnCalls!F10","v":"Apr 2010"},{"$f":"ZZZ__FnCalls!F11","v":"May 2010"},{"$f":"ZZZ__FnCalls!F12","v":"Jun 2010"},{"$f":"ZZZ__FnCalls!F13","v":"Jul 2010"},{"$f":"ZZZ__FnCalls!F14","v":"Aug 2010"},{"$f":"ZZZ__FnCalls!F15","v":"Sep 2010"},{"$f":"ZZZ__FnCalls!F16","v":"Oct 2010"},{"$f":"ZZZ__FnCalls!F17","v":"Nov 2010"},{"$f":"ZZZ__FnCalls!F18","v":"Dec 2010"},{"$f":"ZZZ__FnCalls!H7","v":"2010"},{"$f":"ZZZ__FnCalls!F19","v":"Jan 2011"},{"$f":"ZZZ__FnCalls!F20","v":"Feb 2011"},{"$f":"ZZZ__FnCalls!F21","v":"Mar 2011"},{"$f":"ZZZ__FnCalls!F22","v":"Apr 2011"},{"$f":"ZZZ__FnCalls!F23","v":"May 2011"},{"$f":"ZZZ__FnCalls!F24","v":"Jun 2011"},{"$f":"ZZZ__FnCalls!F25","v":"Jul 2011"},{"$f":"ZZZ__FnCalls!F26","v":"Aug 2011"},{"$f":"ZZZ__FnCalls!F27","v":"Sep 2011"},{"$f":"ZZZ__FnCalls!F28","v":"Oct 2011"},{"$f":"ZZZ__FnCalls!F29","v":"Nov 2011"},{"$f":"ZZZ__FnCalls!F30","v":"Dec 2011"},{"$f":"ZZZ__FnCalls!H19","v":"2011"},{"$f":"ZZZ__FnCalls!F31","v":"Jan 2012"},{"$f":"ZZZ__FnCalls!F32","v":"Feb 2012"},{"$f":"ZZZ__FnCalls!F33","v":"Mar 2012"},{"$f":"ZZZ__FnCalls!F34","v":"Apr 2012"},{"$f":"ZZZ__FnCalls!F35","v":"May 2012"},{"$f":"ZZZ__FnCalls!F36","v":"Jun 2012"},{"$f":"ZZZ__FnCalls!F37","v":"Jul 2012"},{"$f":"ZZZ__FnCalls!F38","v":"Aug 2012"},{"$f":"ZZZ__FnCalls!F39","v":"Sep 2012"},{"$f":"ZZZ__FnCalls!F40","v":"Oct 2012"},{"$f":"ZZZ__FnCalls!F41","v":"Nov 2012"},{"$f":"ZZZ__FnCalls!F42","v":"Dec 2012"},{"$f":"ZZZ__FnCalls!H31","v":"2012"},{"$f":"ZZZ__FnCalls!F43","v":"Jan 2013"},{"$f":"ZZZ__FnCalls!F44","v":"Feb 2013"},{"$f":"ZZZ__FnCalls!F45","v":"Mar 2013"},{"$f":"ZZZ__FnCalls!F46","v":"Apr 2013"},{"$f":"ZZZ__FnCalls!F47","v":"May 2013"},{"$f":"ZZZ__FnCalls!F48","v":"Jun 2013"},{"$f":"ZZZ__FnCalls!F49","v":"Jul 2013"},{"$f":"ZZZ__FnCalls!F50","v":"Aug 2013"},{"$f":"ZZZ__FnCalls!F51","v":"Sep 2013"},{"$f":"ZZZ__FnCalls!F52","v":"Oct 2013"},{"$f":"ZZZ__FnCalls!F53","v":"Nov 2013"},{"$f":"ZZZ__FnCalls!F54","v":"Dec 2013"},{"$f":"ZZZ__FnCalls!H43","v":"2013"},{"$f":"ZZZ__FnCalls!F55","v":"Jan 2014"},{"$f":"ZZZ__FnCalls!F56","v":"Feb 2014"},{"$f":"ZZZ__FnCalls!F57","v":"Mar 2014"},{"$f":"ZZZ__FnCalls!F58","v":"Apr 2014"},{"$f":"ZZZ__FnCalls!F59","v":"May 2014"},{"$f":"ZZZ__FnCalls!F60","v":"Jun 2014"},{"$f":"ZZZ__FnCalls!F61","v":"Jul 2014"},{"$f":"ZZZ__FnCalls!F62","v":"Aug 2014"},{"$f":"ZZZ__FnCalls!F63","v":"Sep 2014"},{"$f":"ZZZ__FnCalls!F64","v":"Oct 2014"},{"$f":"ZZZ__FnCalls!F65","v":"Nov 2014"},{"$f":"ZZZ__FnCalls!F66","v":"Dec 2014"},{"$f":"ZZZ__FnCalls!H55","v":"2014"},{"$f":"ZZZ__FnCalls!F67","v":"Jan 2015"},{"$f":"ZZZ__FnCalls!F68","v":"Feb 2015"},{"$f":"ZZZ__FnCalls!F69","v":"Mar 2015"},{"$f":"ZZZ__FnCalls!F70","v":"Apr 2015"},{"$f":"ZZZ__FnCalls!F71","v":"May 2015"},{"$f":"ZZZ__FnCalls!F72","v":"Jun 2015"},{"$f":"ZZZ__FnCalls!F73","v":"Jul 2015"},{"$f":"ZZZ__FnCalls!F74","v":"Aug 2015"},{"$f":"ZZZ__FnCalls!F75","v":"Sep 2015"},{"$f":"ZZZ__FnCalls!F76","v":"Oct 2015"},{"$f":"ZZZ__FnCalls!F77","v":"Nov 2015"},{"$f":"ZZZ__FnCalls!F78","v":"Dec 2015"},{"$f":"ZZZ__FnCalls!H67","v":"2015"},{"$f":"ZZZ__FnCalls!F79","v":"Jan 2016"},{"$f":"ZZZ__FnCalls!F80","v":"Feb 2016"},{"$f":"ZZZ__FnCalls!F81","v":"Mar 2016"},{"$f":"ZZZ__FnCalls!F82","v":"Apr 2016"},{"$f":"ZZZ__FnCalls!F83","v":"May 2016"},{"$f":"ZZZ__FnCalls!F84","v":"Jun 2016"},{"$f":"ZZZ__FnCalls!F85","v":"Jul 2016"},{"$f":"ZZZ__FnCalls!F86","v":"Aug 2016"},{"$f":"ZZZ__FnCalls!F87","v":"Sep 2016"},{"$f":"ZZZ__FnCalls!F88","v":"Oct 2016"},{"$f":"ZZZ__FnCalls!F89","v":"Nov 2016"},{"$f":"ZZZ__FnCalls!F90","v":"Dec 2016"},{"$f":"ZZZ__FnCalls!H79","v":"2016"},{"$f":"ZZZ__FnCalls!F91","v":"Jan 2017"},{"$f":"ZZZ__FnCalls!F92","v":"Feb 2017"},{"$f":"ZZZ__FnCalls!F93","v":"Mar 2017"},{"$f":"ZZZ__FnCalls!F94","v":"Apr 2017"},{"$f":"ZZZ__FnCalls!F95","v":"May 2017"},{"$f":"ZZZ__FnCalls!F96","v":"Jun 2017"},{"$f":"ZZZ__FnCalls!F97","v":"Jul 2017"},{"$f":"ZZZ__FnCalls!F98","v":"Aug 2017"},{"$f":"ZZZ__FnCalls!F99","v":"Sep 2017"},{"$f":"ZZZ__FnCalls!F100","v":"Oct 2017"},{"$f":"ZZZ__FnCalls!F101","v":"Nov 2017"},{"$f":"ZZZ__FnCalls!F102","v":"Dec 2017"},{"$f":"ZZZ__FnCalls!H91","v":"2017"},{"$f":"ZZZ__FnCalls!F103","v":"Jan 2018"},{"$f":"ZZZ__FnCalls!F104","v":"Feb 2018"},{"$f":"ZZZ__FnCalls!F105","v":"Mar 2018"},{"$f":"ZZZ__FnCalls!F106","v":"Apr 2018"},{"$f":"ZZZ__FnCalls!F107","v":"May 2018"},{"$f":"ZZZ__FnCalls!F108","v":"Jun 2018"},{"$f":"ZZZ__FnCalls!F109","v":"Jul 2018"},{"$f":"ZZZ__FnCalls!F110","v":"Aug 2018"},{"$f":"ZZZ__FnCalls!F111","v":"Sep 2018"},{"$f":"ZZZ__FnCalls!F112","v":"Oct 2018"},{"$f":"ZZZ__FnCalls!F113","v":"Nov 2018"},{"$f":"ZZZ__FnCalls!F114","v":"Dec 2018"},{"$f":"ZZZ__FnCalls!H103","v":"2018"},{"$f":"ZZZ__FnCalls!F115","v":"Jan 2019"},{"$f":"ZZZ__FnCalls!F116","v":"Feb 2019"},{"$f":"ZZZ__FnCalls!F117","v":"Mar 2019"},{"$f":"ZZZ__FnCalls!F118","v":"Apr 2019"},{"$f":"ZZZ__FnCalls!F119","v":"May 2019"},{"$f":"ZZZ__FnCalls!F120","v":"Jun 2019"},{"$f":"ZZZ__FnCalls!F121","v":"Jul 2019"},{"$f":"ZZZ__FnCalls!F122","v":"Aug 2019"},{"$f":"ZZZ__FnCalls!F123","v":"Sep 2019"},{"$f":"ZZZ__FnCalls!F124","v":"Oct 2019"},{"$f":"ZZZ__FnCalls!F125","v":"Nov 2019"},{"$f":"ZZZ__FnCalls!F126","v":"Dec 2019"},{"$f":"ZZZ__FnCalls!H115","v":"2019"},{"$f":"ZZZ__FnCalls!F127","v":"Jan 2020"},{"$f":"ZZZ__FnCalls!F128","v":"Feb 2020"},{"$f":"ZZZ__FnCalls!F129","v":"Mar 2020"},{"$f":"ZZZ__FnCalls!F130","v":"Apr 2020"},{"$f":"ZZZ__FnCalls!F131","v":"May 2020"},{"$f":"ZZZ__FnCalls!F132","v":"Jun 2020"},{"$f":"ZZZ__FnCalls!F133","v":"Jul 2020"},{"$f":"ZZZ__FnCalls!F134","v":"Aug 2020"},{"$f":"ZZZ__FnCalls!F135","v":"Sep 2020"},{"$f":"ZZZ__FnCalls!F136","v":"Oct 2020"},{"$f":"ZZZ__FnCalls!F137","v":"Nov 2020"},{"$f":"ZZZ__FnCalls!F138","v":"Dec 2020"},{"$f":"ZZZ__FnCalls!H127","v":"2020"}]
[null,{"$f":"ZZZ__FnCalls!F7","v":"Jan 2010"},{"$f":"ZZZ__FnCalls!F8","v":"Feb 2010"},{"$f":"ZZZ__FnCalls!F9","v":"Mar 2010"},{"$f":"ZZZ__FnCalls!F10","v":"Apr 2010"},{"$f":"ZZZ__FnCalls!F11","v":"May 2010"},{"$f":"ZZZ__FnCalls!F12","v":"Jun 2010"},{"$f":"ZZZ__FnCalls!F13","v":"Jul 2010"},{"$f":"ZZZ__FnCalls!F14","v":"Aug 2010"},{"$f":"ZZZ__FnCalls!F15","v":"Sep 2010"},{"$f":"ZZZ__FnCalls!F16","v":"Oct 2010"},{"$f":"ZZZ__FnCalls!F17","v":"Nov 2010"},{"$f":"ZZZ__FnCalls!F18","v":"Dec 2010"},{"$f":"ZZZ__FnCalls!F7","v":"Jan 2010"},{"$f":"ZZZ__FnCalls!F19","v":"Jan 2011"},{"$f":"ZZZ__FnCalls!F20","v":"Feb 2011"},{"$f":"ZZZ__FnCalls!F21","v":"Mar 2011"},{"$f":"ZZZ__FnCalls!F22","v":"Apr 2011"},{"$f":"ZZZ__FnCalls!F23","v":"May 2011"},{"$f":"ZZZ__FnCalls!F24","v":"Jun 2011"},{"$f":"ZZZ__FnCalls!F25","v":"Jul 2011"},{"$f":"ZZZ__FnCalls!F26","v":"Aug 2011"},{"$f":"ZZZ__FnCalls!F27","v":"Sep 2011"},{"$f":"ZZZ__FnCalls!F28","v":"Oct 2011"},{"$f":"ZZZ__FnCalls!F29","v":"Nov 2011"},{"$f":"ZZZ__FnCalls!F30","v":"Dec 2011"},{"$f":"ZZZ__FnCalls!F19","v":"Jan 2011"},{"$f":"ZZZ__FnCalls!F31","v":"Jan 2012"},{"$f":"ZZZ__FnCalls!F32","v":"Feb 2012"},{"$f":"ZZZ__FnCalls!F33","v":"Mar 2012"},{"$f":"ZZZ__FnCalls!F34","v":"Apr 2012"},{"$f":"ZZZ__FnCalls!F35","v":"May 2012"},{"$f":"ZZZ__FnCalls!F36","v":"Jun 2012"},{"$f":"ZZZ__FnCalls!F37","v":"Jul 2012"},{"$f":"ZZZ__FnCalls!F38","v":"Aug 2012"},{"$f":"ZZZ__FnCalls!F39","v":"Sep 2012"},{"$f":"ZZZ__FnCalls!F40","v":"Oct 2012"},{"$f":"ZZZ__FnCalls!F41","v":"Nov 2012"},{"$f":"ZZZ__FnCalls!F42","v":"Dec 2012"},{"$f":"ZZZ__FnCalls!F31","v":"Jan 2012"},{"$f":"ZZZ__FnCalls!F43","v":"Jan 2013"},{"$f":"ZZZ__FnCalls!F44","v":"Feb 2013"},{"$f":"ZZZ__FnCalls!F45","v":"Mar 2013"},{"$f":"ZZZ__FnCalls!F46","v":"Apr 2013"},{"$f":"ZZZ__FnCalls!F47","v":"May 2013"},{"$f":"ZZZ__FnCalls!F48","v":"Jun 2013"},{"$f":"ZZZ__FnCalls!F49","v":"Jul 2013"},{"$f":"ZZZ__FnCalls!F50","v":"Aug 2013"},{"$f":"ZZZ__FnCalls!F51","v":"Sep 2013"},{"$f":"ZZZ__FnCalls!F52","v":"Oct 2013"},{"$f":"ZZZ__FnCalls!F53","v":"Nov 2013"},{"$f":"ZZZ__FnCalls!F54","v":"Dec 2013"},{"$f":"ZZZ__FnCalls!F43","v":"Jan 2013"},{"$f":"ZZZ__FnCalls!F55","v":"Jan 2014"},{"$f":"ZZZ__FnCalls!F56","v":"Feb 2014"},{"$f":"ZZZ__FnCalls!F57","v":"Mar 2014"},{"$f":"ZZZ__FnCalls!F58","v":"Apr 2014"},{"$f":"ZZZ__FnCalls!F59","v":"May 2014"},{"$f":"ZZZ__FnCalls!F60","v":"Jun 2014"},{"$f":"ZZZ__FnCalls!F61","v":"Jul 2014"},{"$f":"ZZZ__FnCalls!F62","v":"Aug 2014"},{"$f":"ZZZ__FnCalls!F63","v":"Sep 2014"},{"$f":"ZZZ__FnCalls!F64","v":"Oct 2014"},{"$f":"ZZZ__FnCalls!F65","v":"Nov 2014"},{"$f":"ZZZ__FnCalls!F66","v":"Dec 2014"},{"$f":"ZZZ__FnCalls!F55","v":"Jan 2014"},{"$f":"ZZZ__FnCalls!F67","v":"Jan 2015"},{"$f":"ZZZ__FnCalls!F68","v":"Feb 2015"},{"$f":"ZZZ__FnCalls!F69","v":"Mar 2015"},{"$f":"ZZZ__FnCalls!F70","v":"Apr 2015"},{"$f":"ZZZ__FnCalls!F71","v":"May 2015"},{"$f":"ZZZ__FnCalls!F72","v":"Jun 2015"},{"$f":"ZZZ__FnCalls!F73","v":"Jul 2015"},{"$f":"ZZZ__FnCalls!F74","v":"Aug 2015"},{"$f":"ZZZ__FnCalls!F75","v":"Sep 2015"},{"$f":"ZZZ__FnCalls!F76","v":"Oct 2015"},{"$f":"ZZZ__FnCalls!F77","v":"Nov 2015"},{"$f":"ZZZ__FnCalls!F78","v":"Dec 2015"},{"$f":"ZZZ__FnCalls!F67","v":"Jan 2015"},{"$f":"ZZZ__FnCalls!F79","v":"Jan 2016"},{"$f":"ZZZ__FnCalls!F80","v":"Feb 2016"},{"$f":"ZZZ__FnCalls!F81","v":"Mar 2016"},{"$f":"ZZZ__FnCalls!F82","v":"Apr 2016"},{"$f":"ZZZ__FnCalls!F83","v":"May 2016"},{"$f":"ZZZ__FnCalls!F84","v":"Jun 2016"},{"$f":"ZZZ__FnCalls!F85","v":"Jul 2016"},{"$f":"ZZZ__FnCalls!F86","v":"Aug 2016"},{"$f":"ZZZ__FnCalls!F87","v":"Sep 2016"},{"$f":"ZZZ__FnCalls!F88","v":"Oct 2016"},{"$f":"ZZZ__FnCalls!F89","v":"Nov 2016"},{"$f":"ZZZ__FnCalls!F90","v":"Dec 2016"},{"$f":"ZZZ__FnCalls!F79","v":"Jan 2016"},{"$f":"ZZZ__FnCalls!F91","v":"Jan 2017"},{"$f":"ZZZ__FnCalls!F92","v":"Feb 2017"},{"$f":"ZZZ__FnCalls!F93","v":"Mar 2017"},{"$f":"ZZZ__FnCalls!F94","v":"Apr 2017"},{"$f":"ZZZ__FnCalls!F95","v":"May 2017"},{"$f":"ZZZ__FnCalls!F96","v":"Jun 2017"},{"$f":"ZZZ__FnCalls!F97","v":"Jul 2017"},{"$f":"ZZZ__FnCalls!F98","v":"Aug 2017"},{"$f":"ZZZ__FnCalls!F99","v":"Sep 2017"},{"$f":"ZZZ__FnCalls!F100","v":"Oct 2017"},{"$f":"ZZZ__FnCalls!F101","v":"Nov 2017"},{"$f":"ZZZ__FnCalls!F102","v":"Dec 2017"},{"$f":"ZZZ__FnCalls!F91","v":"Jan 2017"},{"$f":"ZZZ__FnCalls!F103","v":"Jan 2018"},{"$f":"ZZZ__FnCalls!F104","v":"Feb 2018"},{"$f":"ZZZ__FnCalls!F105","v":"Mar 2018"},{"$f":"ZZZ__FnCalls!F106","v":"Apr 2018"},{"$f":"ZZZ__FnCalls!F107","v":"May 2018"},{"$f":"ZZZ__FnCalls!F108","v":"Jun 2018"},{"$f":"ZZZ__FnCalls!F109","v":"Jul 2018"},{"$f":"ZZZ__FnCalls!F110","v":"Aug 2018"},{"$f":"ZZZ__FnCalls!F111","v":"Sep 2018"},{"$f":"ZZZ__FnCalls!F112","v":"Oct 2018"},{"$f":"ZZZ__FnCalls!F113","v":"Nov 2018"},{"$f":"ZZZ__FnCalls!F114","v":"Dec 2018"},{"$f":"ZZZ__FnCalls!F103","v":"Jan 2018"},{"$f":"ZZZ__FnCalls!F115","v":"Jan 2019"},{"$f":"ZZZ__FnCalls!F116","v":"Feb 2019"},{"$f":"ZZZ__FnCalls!F117","v":"Mar 2019"},{"$f":"ZZZ__FnCalls!F118","v":"Apr 2019"},{"$f":"ZZZ__FnCalls!F119","v":"May 2019"},{"$f":"ZZZ__FnCalls!F120","v":"Jun 2019"},{"$f":"ZZZ__FnCalls!F121","v":"Jul 2019"},{"$f":"ZZZ__FnCalls!F122","v":"Aug 2019"},{"$f":"ZZZ__FnCalls!F123","v":"Sep 2019"},{"$f":"ZZZ__FnCalls!F124","v":"Oct 2019"},{"$f":"ZZZ__FnCalls!F125","v":"Nov 2019"},{"$f":"ZZZ__FnCalls!F126","v":"Dec 2019"},{"$f":"ZZZ__FnCalls!F115","v":"Jan 2019"},{"$f":"ZZZ__FnCalls!F127","v":"Jan 2020"},{"$f":"ZZZ__FnCalls!F128","v":"Feb 2020"},{"$f":"ZZZ__FnCalls!F129","v":"Mar 2020"},{"$f":"ZZZ__FnCalls!F130","v":"Apr 2020"},{"$f":"ZZZ__FnCalls!F131","v":"May 2020"},{"$f":"ZZZ__FnCalls!F132","v":"Jun 2020"},{"$f":"ZZZ__FnCalls!F133","v":"Jul 2020"},{"$f":"ZZZ__FnCalls!F134","v":"Aug 2020"},{"$f":"ZZZ__FnCalls!F135","v":"Sep 2020"},{"$f":"ZZZ__FnCalls!F136","v":"Oct 2020"},{"$f":"ZZZ__FnCalls!F137","v":"Nov 2020"},{"$f":"ZZZ__FnCalls!F138","v":"Dec 2020"},{"$f":"ZZZ__FnCalls!F127","v":"Jan 2020"}]
[{"$f":"\"Income_Current_Disposable_1\"","v":"Income_Current_Disposable_1"}]
[null,{"$f":"ZZZ__FnCalls!F7","v":"Jan 2010"},{"$f":"ZZZ__FnCalls!F8","v":"Feb 2010"},{"$f":"ZZZ__FnCalls!F9","v":"Mar 2010"},{"$f":"ZZZ__FnCalls!F10","v":"Apr 2010"},{"$f":"ZZZ__FnCalls!F11","v":"May 2010"},{"$f":"ZZZ__FnCalls!F12","v":"Jun 2010"},{"$f":"ZZZ__FnCalls!F13","v":"Jul 2010"},{"$f":"ZZZ__FnCalls!F14","v":"Aug 2010"},{"$f":"ZZZ__FnCalls!F15","v":"Sep 2010"},{"$f":"ZZZ__FnCalls!F16","v":"Oct 2010"},{"$f":"ZZZ__FnCalls!F17","v":"Nov 2010"},{"$f":"ZZZ__FnCalls!F18","v":"Dec 2010"},{"$f":"ZZZ__FnCalls!H7","v":"2010"},{"$f":"ZZZ__FnCalls!F19","v":"Jan 2011"},{"$f":"ZZZ__FnCalls!F20","v":"Feb 2011"},{"$f":"ZZZ__FnCalls!F21","v":"Mar 2011"},{"$f":"ZZZ__FnCalls!F22","v":"Apr 2011"},{"$f":"ZZZ__FnCalls!F23","v":"May 2011"},{"$f":"ZZZ__FnCalls!F24","v":"Jun 2011"},{"$f":"ZZZ__FnCalls!F25","v":"Jul 2011"},{"$f":"ZZZ__FnCalls!F26","v":"Aug 2011"},{"$f":"ZZZ__FnCalls!F27","v":"Sep 2011"},{"$f":"ZZZ__FnCalls!F28","v":"Oct 2011"},{"$f":"ZZZ__FnCalls!F29","v":"Nov 2011"},{"$f":"ZZZ__FnCalls!F30","v":"Dec 2011"},{"$f":"ZZZ__FnCalls!H19","v":"2011"},{"$f":"ZZZ__FnCalls!F31","v":"Jan 2012"},{"$f":"ZZZ__FnCalls!F32","v":"Feb 2012"},{"$f":"ZZZ__FnCalls!F33","v":"Mar 2012"},{"$f":"ZZZ__FnCalls!F34","v":"Apr 2012"},{"$f":"ZZZ__FnCalls!F35","v":"May 2012"},{"$f":"ZZZ__FnCalls!F36","v":"Jun 2012"},{"$f":"ZZZ__FnCalls!F37","v":"Jul 2012"},{"$f":"ZZZ__FnCalls!F38","v":"Aug 2012"},{"$f":"ZZZ__FnCalls!F39","v":"Sep 2012"},{"$f":"ZZZ__FnCalls!F40","v":"Oct 2012"},{"$f":"ZZZ__FnCalls!F41","v":"Nov 2012"},{"$f":"ZZZ__FnCalls!F42","v":"Dec 2012"},{"$f":"ZZZ__FnCalls!H31","v":"2012"},{"$f":"ZZZ__FnCalls!F43","v":"Jan 2013"},{"$f":"ZZZ__FnCalls!F44","v":"Feb 2013"},{"$f":"ZZZ__FnCalls!F45","v":"Mar 2013"},{"$f":"ZZZ__FnCalls!F46","v":"Apr 2013"},{"$f":"ZZZ__FnCalls!F47","v":"May 2013"},{"$f":"ZZZ__FnCalls!F48","v":"Jun 2013"},{"$f":"ZZZ__FnCalls!F49","v":"Jul 2013"},{"$f":"ZZZ__FnCalls!F50","v":"Aug 2013"},{"$f":"ZZZ__FnCalls!F51","v":"Sep 2013"},{"$f":"ZZZ__FnCalls!F52","v":"Oct 2013"},{"$f":"ZZZ__FnCalls!F53","v":"Nov 2013"},{"$f":"ZZZ__FnCalls!F54","v":"Dec 2013"},{"$f":"ZZZ__FnCalls!H43","v":"2013"},{"$f":"ZZZ__FnCalls!F55","v":"Jan 2014"},{"$f":"ZZZ__FnCalls!F56","v":"Feb 2014"},{"$f":"ZZZ__FnCalls!F57","v":"Mar 2014"},{"$f":"ZZZ__FnCalls!F58","v":"Apr 2014"},{"$f":"ZZZ__FnCalls!F59","v":"May 2014"},{"$f":"ZZZ__FnCalls!F60","v":"Jun 2014"},{"$f":"ZZZ__FnCalls!F61","v":"Jul 2014"},{"$f":"ZZZ__FnCalls!F62","v":"Aug 2014"},{"$f":"ZZZ__FnCalls!F63","v":"Sep 2014"},{"$f":"ZZZ__FnCalls!F64","v":"Oct 2014"},{"$f":"ZZZ__FnCalls!F65","v":"Nov 2014"},{"$f":"ZZZ__FnCalls!F66","v":"Dec 2014"},{"$f":"ZZZ__FnCalls!H55","v":"2014"},{"$f":"ZZZ__FnCalls!F67","v":"Jan 2015"},{"$f":"ZZZ__FnCalls!F68","v":"Feb 2015"},{"$f":"ZZZ__FnCalls!F69","v":"Mar 2015"},{"$f":"ZZZ__FnCalls!F70","v":"Apr 2015"},{"$f":"ZZZ__FnCalls!F71","v":"May 2015"},{"$f":"ZZZ__FnCalls!F72","v":"Jun 2015"},{"$f":"ZZZ__FnCalls!F73","v":"Jul 2015"},{"$f":"ZZZ__FnCalls!F74","v":"Aug 2015"},{"$f":"ZZZ__FnCalls!F75","v":"Sep 2015"},{"$f":"ZZZ__FnCalls!F76","v":"Oct 2015"},{"$f":"ZZZ__FnCalls!F77","v":"Nov 2015"},{"$f":"ZZZ__FnCalls!F78","v":"Dec 2015"},{"$f":"ZZZ__FnCalls!H67","v":"2015"},{"$f":"ZZZ__FnCalls!F79","v":"Jan 2016"},{"$f":"ZZZ__FnCalls!F80","v":"Feb 2016"},{"$f":"ZZZ__FnCalls!F81","v":"Mar 2016"},{"$f":"ZZZ__FnCalls!F82","v":"Apr 2016"},{"$f":"ZZZ__FnCalls!F83","v":"May 2016"},{"$f":"ZZZ__FnCalls!F84","v":"Jun 2016"},{"$f":"ZZZ__FnCalls!F85","v":"Jul 2016"},{"$f":"ZZZ__FnCalls!F86","v":"Aug 2016"},{"$f":"ZZZ__FnCalls!F87","v":"Sep 2016"},{"$f":"ZZZ__FnCalls!F88","v":"Oct 2016"},{"$f":"ZZZ__FnCalls!F89","v":"Nov 2016"},{"$f":"ZZZ__FnCalls!F90","v":"Dec 2016"},{"$f":"ZZZ__FnCalls!H79","v":"2016"},{"$f":"ZZZ__FnCalls!F91","v":"Jan 2017"},{"$f":"ZZZ__FnCalls!F92","v":"Feb 2017"},{"$f":"ZZZ__FnCalls!F93","v":"Mar 2017"},{"$f":"ZZZ__FnCalls!F94","v":"Apr 2017"},{"$f":"ZZZ__FnCalls!F95","v":"May 2017"},{"$f":"ZZZ__FnCalls!F96","v":"Jun 2017"},{"$f":"ZZZ__FnCalls!F97","v":"Jul 2017"},{"$f":"ZZZ__FnCalls!F98","v":"Aug 2017"},{"$f":"ZZZ__FnCalls!F99","v":"Sep 2017"},{"$f":"ZZZ__FnCalls!F100","v":"Oct 2017"},{"$f":"ZZZ__FnCalls!F101","v":"Nov 2017"},{"$f":"ZZZ__FnCalls!F102","v":"Dec 2017"},{"$f":"ZZZ__FnCalls!H91","v":"2017"},{"$f":"ZZZ__FnCalls!F103","v":"Jan 2018"},{"$f":"ZZZ__FnCalls!F104","v":"Feb 2018"},{"$f":"ZZZ__FnCalls!F105","v":"Mar 2018"},{"$f":"ZZZ__FnCalls!F106","v":"Apr 2018"},{"$f":"ZZZ__FnCalls!F107","v":"May 2018"},{"$f":"ZZZ__FnCalls!F108","v":"Jun 2018"},{"$f":"ZZZ__FnCalls!F109","v":"Jul 2018"},{"$f":"ZZZ__FnCalls!F110","v":"Aug 2018"},{"$f":"ZZZ__FnCalls!F111","v":"Sep 2018"},{"$f":"ZZZ__FnCalls!F112","v":"Oct 2018"},{"$f":"ZZZ__FnCalls!F113","v":"Nov 2018"},{"$f":"ZZZ__FnCalls!F114","v":"Dec 2018"},{"$f":"ZZZ__FnCalls!H103","v":"2018"},{"$f":"ZZZ__FnCalls!F115","v":"Jan 2019"},{"$f":"ZZZ__FnCalls!F116","v":"Feb 2019"},{"$f":"ZZZ__FnCalls!F117","v":"Mar 2019"},{"$f":"ZZZ__FnCalls!F118","v":"Apr 2019"},{"$f":"ZZZ__FnCalls!F119","v":"May 2019"},{"$f":"ZZZ__FnCalls!F120","v":"Jun 2019"},{"$f":"ZZZ__FnCalls!F121","v":"Jul 2019"},{"$f":"ZZZ__FnCalls!F122","v":"Aug 2019"},{"$f":"ZZZ__FnCalls!F123","v":"Sep 2019"},{"$f":"ZZZ__FnCalls!F124","v":"Oct 2019"},{"$f":"ZZZ__FnCalls!F125","v":"Nov 2019"},{"$f":"ZZZ__FnCalls!F126","v":"Dec 2019"},{"$f":"ZZZ__FnCalls!H115","v":"2019"},{"$f":"ZZZ__FnCalls!F127","v":"Jan 2020"},{"$f":"ZZZ__FnCalls!F128","v":"Feb 2020"},{"$f":"ZZZ__FnCalls!F129","v":"Mar 2020"},{"$f":"ZZZ__FnCalls!F130","v":"Apr 2020"},{"$f":"ZZZ__FnCalls!F131","v":"May 2020"},{"$f":"ZZZ__FnCalls!F132","v":"Jun 2020"},{"$f":"ZZZ__FnCalls!F133","v":"Jul 2020"},{"$f":"ZZZ__FnCalls!F134","v":"Aug 2020"},{"$f":"ZZZ__FnCalls!F135","v":"Sep 2020"},{"$f":"ZZZ__FnCalls!F136","v":"Oct 2020"},{"$f":"ZZZ__FnCalls!F137","v":"Nov 2020"},{"$f":"ZZZ__FnCalls!F138","v":"Dec 2020"},{"$f":"ZZZ__FnCalls!H127","v":"2020"}]
[null,{"$f":"ZZZ__FnCalls!A7","v":"2010-01-01"},{"$f":"ZZZ__FnCalls!A8","v":"2010-02-01"},{"$f":"ZZZ__FnCalls!A9","v":"2010-03-01"},{"$f":"ZZZ__FnCalls!A10","v":"2010-04-01"},{"$f":"ZZZ__FnCalls!A11","v":"2010-05-01"},{"$f":"ZZZ__FnCalls!A12","v":"2010-06-01"},{"$f":"ZZZ__FnCalls!A13","v":"2010-07-01"},{"$f":"ZZZ__FnCalls!A14","v":"2010-08-01"},{"$f":"ZZZ__FnCalls!A15","v":"2010-09-01"},{"$f":"ZZZ__FnCalls!A16","v":"2010-10-01"},{"$f":"ZZZ__FnCalls!A17","v":"2010-11-01"},{"$f":"ZZZ__FnCalls!A18","v":"2010-12-01"},{"$f":"ZZZ__FnCalls!A7","v":"2010-01-01"},{"$f":"ZZZ__FnCalls!A19","v":"2011-01-01"},{"$f":"ZZZ__FnCalls!A20","v":"2011-02-01"},{"$f":"ZZZ__FnCalls!A21","v":"2011-03-01"},{"$f":"ZZZ__FnCalls!A22","v":"2011-04-01"},{"$f":"ZZZ__FnCalls!A23","v":"2011-05-01"},{"$f":"ZZZ__FnCalls!A24","v":"2011-06-01"},{"$f":"ZZZ__FnCalls!A25","v":"2011-07-01"},{"$f":"ZZZ__FnCalls!A26","v":"2011-08-01"},{"$f":"ZZZ__FnCalls!A27","v":"2011-09-01"},{"$f":"ZZZ__FnCalls!A28","v":"2011-10-01"},{"$f":"ZZZ__FnCalls!A29","v":"2011-11-01"},{"$f":"ZZZ__FnCalls!A30","v":"2011-12-01"},{"$f":"ZZZ__FnCalls!A19","v":"2011-01-01"},{"$f":"ZZZ__FnCalls!A31","v":"2012-01-01"},{"$f":"ZZZ__FnCalls!A32","v":"2012-02-01"},{"$f":"ZZZ__FnCalls!A33","v":"2012-03-01"},{"$f":"ZZZ__FnCalls!A34","v":"2012-04-01"},{"$f":"ZZZ__FnCalls!A35","v":"2012-05-01"},{"$f":"ZZZ__FnCalls!A36","v":"2012-06-01"},{"$f":"ZZZ__FnCalls!A37","v":"2012-07-01"},{"$f":"ZZZ__FnCalls!A38","v":"2012-08-01"},{"$f":"ZZZ__FnCalls!A39","v":"2012-09-01"},{"$f":"ZZZ__FnCalls!A40","v":"2012-10-01"},{"$f":"ZZZ__FnCalls!A41","v":"2012-11-01"},{"$f":"ZZZ__FnCalls!A42","v":"2012-12-01"},{"$f":"ZZZ__FnCalls!A31","v":"2012-01-01"},{"$f":"ZZZ__FnCalls!A43","v":"2013-01-01"},{"$f":"ZZZ__FnCalls!A44","v":"2013-02-01"},{"$f":"ZZZ__FnCalls!A45","v":"2013-03-01"},{"$f":"ZZZ__FnCalls!A46","v":"2013-04-01"},{"$f":"ZZZ__FnCalls!A47","v":"2013-05-01"},{"$f":"ZZZ__FnCalls!A48","v":"2013-06-01"},{"$f":"ZZZ__FnCalls!A49","v":"2013-07-01"},{"$f":"ZZZ__FnCalls!A50","v":"2013-08-01"},{"$f":"ZZZ__FnCalls!A51","v":"2013-09-01"},{"$f":"ZZZ__FnCalls!A52","v":"2013-10-01"},{"$f":"ZZZ__FnCalls!A53","v":"2013-11-01"},{"$f":"ZZZ__FnCalls!A54","v":"2013-12-01"},{"$f":"ZZZ__FnCalls!A43","v":"2013-01-01"},{"$f":"ZZZ__FnCalls!A55","v":"2014-01-01"},{"$f":"ZZZ__FnCalls!A56","v":"2014-02-01"},{"$f":"ZZZ__FnCalls!A57","v":"2014-03-01"},{"$f":"ZZZ__FnCalls!A58","v":"2014-04-01"},{"$f":"ZZZ__FnCalls!A59","v":"2014-05-01"},{"$f":"ZZZ__FnCalls!A60","v":"2014-06-01"},{"$f":"ZZZ__FnCalls!A61","v":"2014-07-01"},{"$f":"ZZZ__FnCalls!A62","v":"2014-08-01"},{"$f":"ZZZ__FnCalls!A63","v":"2014-09-01"},{"$f":"ZZZ__FnCalls!A64","v":"2014-10-01"},{"$f":"ZZZ__FnCalls!A65","v":"2014-11-01"},{"$f":"ZZZ__FnCalls!A66","v":"2014-12-01"},{"$f":"ZZZ__FnCalls!A55","v":"2014-01-01"},{"$f":"ZZZ__FnCalls!A67","v":"2015-01-01"},{"$f":"ZZZ__FnCalls!A68","v":"2015-02-01"},{"$f":"ZZZ__FnCalls!A69","v":"2015-03-01"},{"$f":"ZZZ__FnCalls!A70","v":"2015-04-01"},{"$f":"ZZZ__FnCalls!A71","v":"2015-05-01"},{"$f":"ZZZ__FnCalls!A72","v":"2015-06-01"},{"$f":"ZZZ__FnCalls!A73","v":"2015-07-01"},{"$f":"ZZZ__FnCalls!A74","v":"2015-08-01"},{"$f":"ZZZ__FnCalls!A75","v":"2015-09-01"},{"$f":"ZZZ__FnCalls!A76","v":"2015-10-01"},{"$f":"ZZZ__FnCalls!A77","v":"2015-11-01"},{"$f":"ZZZ__FnCalls!A78","v":"2015-12-01"},{"$f":"ZZZ__FnCalls!A67","v":"2015-01-01"},{"$f":"ZZZ__FnCalls!A79","v":"2016-01-01"},{"$f":"ZZZ__FnCalls!A80","v":"2016-02-01"},{"$f":"ZZZ__FnCalls!A81","v":"2016-03-01"},{"$f":"ZZZ__FnCalls!A82","v":"2016-04-01"},{"$f":"ZZZ__FnCalls!A83","v":"2016-05-01"},{"$f":"ZZZ__FnCalls!A84","v":"2016-06-01"},{"$f":"ZZZ__FnCalls!A85","v":"2016-07-01"},{"$f":"ZZZ__FnCalls!A86","v":"2016-08-01"},{"$f":"ZZZ__FnCalls!A87","v":"2016-09-01"},{"$f":"ZZZ__FnCalls!A88","v":"2016-10-01"},{"$f":"ZZZ__FnCalls!A89","v":"2016-11-01"},{"$f":"ZZZ__FnCalls!A90","v":"2016-12-01"},{"$f":"ZZZ__FnCalls!A79","v":"2016-01-01"},{"$f":"ZZZ__FnCalls!A91","v":"2017-01-01"},{"$f":"ZZZ__FnCalls!A92","v":"2017-02-01"},{"$f":"ZZZ__FnCalls!A93","v":"2017-03-01"},{"$f":"ZZZ__FnCalls!A94","v":"2017-04-01"},{"$f":"ZZZ__FnCalls!A95","v":"2017-05-01"},{"$f":"ZZZ__FnCalls!A96","v":"2017-06-01"},{"$f":"ZZZ__FnCalls!A97","v":"2017-07-01"},{"$f":"ZZZ__FnCalls!A98","v":"2017-08-01"},{"$f":"ZZZ__FnCalls!A99","v":"2017-09-01"},{"$f":"ZZZ__FnCalls!A100","v":"2017-10-01"},{"$f":"ZZZ__FnCalls!A101","v":"2017-11-01"},{"$f":"ZZZ__FnCalls!A102","v":"2017-12-01"},{"$f":"ZZZ__FnCalls!A91","v":"2017-01-01"},{"$f":"ZZZ__FnCalls!A103","v":"2018-01-01"},{"$f":"ZZZ__FnCalls!A104","v":"2018-02-01"},{"$f":"ZZZ__FnCalls!A105","v":"2018-03-01"},{"$f":"ZZZ__FnCalls!A106","v":"2018-04-01"},{"$f":"ZZZ__FnCalls!A107","v":"2018-05-01"},{"$f":"ZZZ__FnCalls!A108","v":"2018-06-01"},{"$f":"ZZZ__FnCalls!A109","v":"2018-07-01"},{"$f":"ZZZ__FnCalls!A110","v":"2018-08-01"},{"$f":"ZZZ__FnCalls!A111","v":"2018-09-01"},{"$f":"ZZZ__FnCalls!A112","v":"2018-10-01"},{"$f":"ZZZ__FnCalls!A113","v":"2018-11-01"},{"$f":"ZZZ__FnCalls!A114","v":"2018-12-01"},{"$f":"ZZZ__FnCalls!A103","v":"2018-01-01"},{"$f":"ZZZ__FnCalls!A115","v":"2019-01-01"},{"$f":"ZZZ__FnCalls!A116","v":"2019-02-01"},{"$f":"ZZZ__FnCalls!A117","v":"2019-03-01"},{"$f":"ZZZ__FnCalls!A118","v":"2019-04-01"},{"$f":"ZZZ__FnCalls!A119","v":"2019-05-01"},{"$f":"ZZZ__FnCalls!A120","v":"2019-06-01"},{"$f":"ZZZ__FnCalls!A121","v":"2019-07-01"},{"$f":"ZZZ__FnCalls!A122","v":"2019-08-01"},{"$f":"ZZZ__FnCalls!A123","v":"2019-09-01"},{"$f":"ZZZ__FnCalls!A124","v":"2019-10-01"},{"$f":"ZZZ__FnCalls!A125","v":"2019-11-01"},{"$f":"ZZZ__FnCalls!A126","v":"2019-12-01"},{"$f":"ZZZ__FnCalls!A115","v":"2019-01-01"},{"$f":"ZZZ__FnCalls!A127","v":"2020-01-01"},{"$f":"ZZZ__FnCalls!A128","v":"2020-02-01"},{"$f":"ZZZ__FnCalls!A129","v":"2020-03-01"},{"$f":"ZZZ__FnCalls!A130","v":"2020-04-01"},{"$f":"ZZZ__FnCalls!A131","v":"2020-05-01"},{"$f":"ZZZ__FnCalls!A132","v":"2020-06-01"},{"$f":"ZZZ__FnCalls!A133","v":"2020-07-01"},{"$f":"ZZZ__FnCalls!A134","v":"2020-08-01"},{"$f":"ZZZ__FnCalls!A135","v":"2020-09-01"},{"$f":"ZZZ__FnCalls!A136","v":"2020-10-01"},{"$f":"ZZZ__FnCalls!A137","v":"2020-11-01"},{"$f":"ZZZ__FnCalls!A138","v":"2020-12-01"},{"$f":"ZZZ__FnCalls!A127","v":"2020-01-01"}]
[{"$f":"\"Income_Current_Disposable_2\"","v":"Income_Current_Disposable_2"}]
[null,{"$f":"ZZZ__FnCalls!F7","v":"Jan 2010"},{"$f":"ZZZ__FnCalls!F8","v":"Feb 2010"},{"$f":"ZZZ__FnCalls!F9","v":"Mar 2010"},{"$f":"ZZZ__FnCalls!F10","v":"Apr 2010"},{"$f":"ZZZ__FnCalls!F11","v":"May 2010"},{"$f":"ZZZ__FnCalls!F12","v":"Jun 2010"},{"$f":"ZZZ__FnCalls!F13","v":"Jul 2010"},{"$f":"ZZZ__FnCalls!F14","v":"Aug 2010"},{"$f":"ZZZ__FnCalls!F15","v":"Sep 2010"},{"$f":"ZZZ__FnCalls!F16","v":"Oct 2010"},{"$f":"ZZZ__FnCalls!F17","v":"Nov 2010"},{"$f":"ZZZ__FnCalls!F18","v":"Dec 2010"},{"$f":"ZZZ__FnCalls!H7","v":"2010"},{"$f":"ZZZ__FnCalls!F19","v":"Jan 2011"},{"$f":"ZZZ__FnCalls!F20","v":"Feb 2011"},{"$f":"ZZZ__FnCalls!F21","v":"Mar 2011"},{"$f":"ZZZ__FnCalls!F22","v":"Apr 2011"},{"$f":"ZZZ__FnCalls!F23","v":"May 2011"},{"$f":"ZZZ__FnCalls!F24","v":"Jun 2011"},{"$f":"ZZZ__FnCalls!F25","v":"Jul 2011"},{"$f":"ZZZ__FnCalls!F26","v":"Aug 2011"},{"$f":"ZZZ__FnCalls!F27","v":"Sep 2011"},{"$f":"ZZZ__FnCalls!F28","v":"Oct 2011"},{"$f":"ZZZ__FnCalls!F29","v":"Nov 2011"},{"$f":"ZZZ__FnCalls!F30","v":"Dec 2011"},{"$f":"ZZZ__FnCalls!H19","v":"2011"},{"$f":"ZZZ__FnCalls!F31","v":"Jan 2012"},{"$f":"ZZZ__FnCalls!F32","v":"Feb 2012"},{"$f":"ZZZ__FnCalls!F33","v":"Mar 2012"},{"$f":"ZZZ__FnCalls!F34","v":"Apr 2012"},{"$f":"ZZZ__FnCalls!F35","v":"May 2012"},{"$f":"ZZZ__FnCalls!F36","v":"Jun 2012"},{"$f":"ZZZ__FnCalls!F37","v":"Jul 2012"},{"$f":"ZZZ__FnCalls!F38","v":"Aug 2012"},{"$f":"ZZZ__FnCalls!F39","v":"Sep 2012"},{"$f":"ZZZ__FnCalls!F40","v":"Oct 2012"},{"$f":"ZZZ__FnCalls!F41","v":"Nov 2012"},{"$f":"ZZZ__FnCalls!F42","v":"Dec 2012"},{"$f":"ZZZ__FnCalls!H31","v":"2012"},{"$f":"ZZZ__FnCalls!F43","v":"Jan 2013"},{"$f":"ZZZ__FnCalls!F44","v":"Feb 2013"},{"$f":"ZZZ__FnCalls!F45","v":"Mar 2013"},{"$f":"ZZZ__FnCalls!F46","v":"Apr 2013"},{"$f":"ZZZ__FnCalls!F47","v":"May 2013"},{"$f":"ZZZ__FnCalls!F48","v":"Jun 2013"},{"$f":"ZZZ__FnCalls!F49","v":"Jul 2013"},{"$f":"ZZZ__FnCalls!F50","v":"Aug 2013"},{"$f":"ZZZ__FnCalls!F51","v":"Sep 2013"},{"$f":"ZZZ__FnCalls!F52","v":"Oct 2013"},{"$f":"ZZZ__FnCalls!F53","v":"Nov 2013"},{"$f":"ZZZ__FnCalls!F54","v":"Dec 2013"},{"$f":"ZZZ__FnCalls!H43","v":"2013"},{"$f":"ZZZ__FnCalls!F55","v":"Jan 2014"},{"$f":"ZZZ__FnCalls!F56","v":"Feb 2014"},{"$f":"ZZZ__FnCalls!F57","v":"Mar 2014"},{"$f":"ZZZ__FnCalls!F58","v":"Apr 2014"},{"$f":"ZZZ__FnCalls!F59","v":"May 2014"},{"$f":"ZZZ__FnCalls!F60","v":"Jun 2014"},{"$f":"ZZZ__FnCalls!F61","v":"Jul 2014"},{"$f":"ZZZ__FnCalls!F62","v":"Aug 2014"},{"$f":"ZZZ__FnCalls!F63","v":"Sep 2014"},{"$f":"ZZZ__FnCalls!F64","v":"Oct 2014"},{"$f":"ZZZ__FnCalls!F65","v":"Nov 2014"},{"$f":"ZZZ__FnCalls!F66","v":"Dec 2014"},{"$f":"ZZZ__FnCalls!H55","v":"2014"},{"$f":"ZZZ__FnCalls!F67","v":"Jan 2015"},{"$f":"ZZZ__FnCalls!F68","v":"Feb 2015"},{"$f":"ZZZ__FnCalls!F69","v":"Mar 2015"},{"$f":"ZZZ__FnCalls!F70","v":"Apr 2015"},{"$f":"ZZZ__FnCalls!F71","v":"May 2015"},{"$f":"ZZZ__FnCalls!F72","v":"Jun 2015"},{"$f":"ZZZ__FnCalls!F73","v":"Jul 2015"},{"$f":"ZZZ__FnCalls!F74","v":"Aug 2015"},{"$f":"ZZZ__FnCalls!F75","v":"Sep 2015"},{"$f":"ZZZ__FnCalls!F76","v":"Oct 2015"},{"$f":"ZZZ__FnCalls!F77","v":"Nov 2015"},{"$f":"ZZZ__FnCalls!F78","v":"Dec 2015"},{"$f":"ZZZ__FnCalls!H67","v":"2015"},{"$f":"ZZZ__FnCalls!F79","v":"Jan 2016"},{"$f":"ZZZ__FnCalls!F80","v":"Feb 2016"},{"$f":"ZZZ__FnCalls!F81","v":"Mar 2016"},{"$f":"ZZZ__FnCalls!F82","v":"Apr 2016"},{"$f":"ZZZ__FnCalls!F83","v":"May 2016"},{"$f":"ZZZ__FnCalls!F84","v":"Jun 2016"},{"$f":"ZZZ__FnCalls!F85","v":"Jul 2016"},{"$f":"ZZZ__FnCalls!F86","v":"Aug 2016"},{"$f":"ZZZ__FnCalls!F87","v":"Sep 2016"},{"$f":"ZZZ__FnCalls!F88","v":"Oct 2016"},{"$f":"ZZZ__FnCalls!F89","v":"Nov 2016"},{"$f":"ZZZ__FnCalls!F90","v":"Dec 2016"},{"$f":"ZZZ__FnCalls!H79","v":"2016"},{"$f":"ZZZ__FnCalls!F91","v":"Jan 2017"},{"$f":"ZZZ__FnCalls!F92","v":"Feb 2017"},{"$f":"ZZZ__FnCalls!F93","v":"Mar 2017"},{"$f":"ZZZ__FnCalls!F94","v":"Apr 2017"},{"$f":"ZZZ__FnCalls!F95","v":"May 2017"},{"$f":"ZZZ__FnCalls!F96","v":"Jun 2017"},{"$f":"ZZZ__FnCalls!F97","v":"Jul 2017"},{"$f":"ZZZ__FnCalls!F98","v":"Aug 2017"},{"$f":"ZZZ__FnCalls!F99","v":"Sep 2017"},{"$f":"ZZZ__FnCalls!F100","v":"Oct 2017"},{"$f":"ZZZ__FnCalls!F101","v":"Nov 2017"},{"$f":"ZZZ__FnCalls!F102","v":"Dec 2017"},{"$f":"ZZZ__FnCalls!H91","v":"2017"},{"$f":"ZZZ__FnCalls!F103","v":"Jan 2018"},{"$f":"ZZZ__FnCalls!F104","v":"Feb 2018"},{"$f":"ZZZ__FnCalls!F105","v":"Mar 2018"},{"$f":"ZZZ__FnCalls!F106","v":"Apr 2018"},{"$f":"ZZZ__FnCalls!F107","v":"May 2018"},{"$f":"ZZZ__FnCalls!F108","v":"Jun 2018"},{"$f":"ZZZ__FnCalls!F109","v":"Jul 2018"},{"$f":"ZZZ__FnCalls!F110","v":"Aug 2018"},{"$f":"ZZZ__FnCalls!F111","v":"Sep 2018"},{"$f":"ZZZ__FnCalls!F112","v":"Oct 2018"},{"$f":"ZZZ__FnCalls!F113","v":"Nov 2018"},{"$f":"ZZZ__FnCalls!F114","v":"Dec 2018"},{"$f":"ZZZ__FnCalls!H103","v":"2018"},{"$f":"ZZZ__FnCalls!F115","v":"Jan 2019"},{"$f":"ZZZ__FnCalls!F116","v":"Feb 2019"},{"$f":"ZZZ__FnCalls!F117","v":"Mar 2019"},{"$f":"ZZZ__FnCalls!F118","v":"Apr 2019"},{"$f":"ZZZ__FnCalls!F119","v":"May 2019"},{"$f":"ZZZ__FnCalls!F120","v":"Jun 2019"},{"$f":"ZZZ__FnCalls!F121","v":"Jul 2019"},{"$f":"ZZZ__FnCalls!F122","v":"Aug 2019"},{"$f":"ZZZ__FnCalls!F123","v":"Sep 2019"},{"$f":"ZZZ__FnCalls!F124","v":"Oct 2019"},{"$f":"ZZZ__FnCalls!F125","v":"Nov 2019"},{"$f":"ZZZ__FnCalls!F126","v":"Dec 2019"},{"$f":"ZZZ__FnCalls!H115","v":"2019"},{"$f":"ZZZ__FnCalls!F127","v":"Jan 2020"},{"$f":"ZZZ__FnCalls!F128","v":"Feb 2020"},{"$f":"ZZZ__FnCalls!F129","v":"Mar 2020"},{"$f":"ZZZ__FnCalls!F130","v":"Apr 2020"},{"$f":"ZZZ__FnCalls!F131","v":"May 2020"},{"$f":"ZZZ__FnCalls!F132","v":"Jun 2020"},{"$f":"ZZZ__FnCalls!F133","v":"Jul 2020"},{"$f":"ZZZ__FnCalls!F134","v":"Aug 2020"},{"$f":"ZZZ__FnCalls!F135","v":"Sep 2020"},{"$f":"ZZZ__FnCalls!F136","v":"Oct 2020"},{"$f":"ZZZ__FnCalls!F137","v":"Nov 2020"},{"$f":"ZZZ__FnCalls!F138","v":"Dec 2020"},{"$f":"ZZZ__FnCalls!H127","v":"2020"}]
[null,{"$f":"ZZZ__FnCalls!F7","v":"Jan 2010"},{"$f":"ZZZ__FnCalls!F8","v":"Feb 2010"},{"$f":"ZZZ__FnCalls!F9","v":"Mar 2010"},{"$f":"ZZZ__FnCalls!F10","v":"Apr 2010"},{"$f":"ZZZ__FnCalls!F11","v":"May 2010"},{"$f":"ZZZ__FnCalls!F12","v":"Jun 2010"},{"$f":"ZZZ__FnCalls!F13","v":"Jul 2010"},{"$f":"ZZZ__FnCalls!F14","v":"Aug 2010"},{"$f":"ZZZ__FnCalls!F15","v":"Sep 2010"},{"$f":"ZZZ__FnCalls!F16","v":"Oct 2010"},{"$f":"ZZZ__FnCalls!F17","v":"Nov 2010"},{"$f":"ZZZ__FnCalls!F18","v":"Dec 2010"},{"$f":"ZZZ__FnCalls!F7","v":"Jan 2010"},{"$f":"ZZZ__FnCalls!F19","v":"Jan 2011"},{"$f":"ZZZ__FnCalls!F20","v":"Feb 2011"},{"$f":"ZZZ__FnCalls!F21","v":"Mar 2011"},{"$f":"ZZZ__FnCalls!F22","v":"Apr 2011"},{"$f":"ZZZ__FnCalls!F23","v":"May 2011"},{"$f":"ZZZ__FnCalls!F24","v":"Jun 2011"},{"$f":"ZZZ__FnCalls!F25","v":"Jul 2011"},{"$f":"ZZZ__FnCalls!F26","v":"Aug 2011"},{"$f":"ZZZ__FnCalls!F27","v":"Sep 2011"},{"$f":"ZZZ__FnCalls!F28","v":"Oct 2011"},{"$f":"ZZZ__FnCalls!F29","v":"Nov 2011"},{"$f":"ZZZ__FnCalls!F30","v":"Dec 2011"},{"$f":"ZZZ__FnCalls!F19","v":"Jan 2011"},{"$f":"ZZZ__FnCalls!F31","v":"Jan 2012"},{"$f":"ZZZ__FnCalls!F32","v":"Feb 2012"},{"$f":"ZZZ__FnCalls!F33","v":"Mar 2012"},{"$f":"ZZZ__FnCalls!F34","v":"Apr 2012"},{"$f":"ZZZ__FnCalls!F35","v":"May 2012"},{"$f":"ZZZ__FnCalls!F36","v":"Jun 2012"},{"$f":"ZZZ__FnCalls!F37","v":"Jul 2012"},{"$f":"ZZZ__FnCalls!F38","v":"Aug 2012"},{"$f":"ZZZ__FnCalls!F39","v":"Sep 2012"},{"$f":"ZZZ__FnCalls!F40","v":"Oct 2012"},{"$f":"ZZZ__FnCalls!F41","v":"Nov 2012"},{"$f":"ZZZ__FnCalls!F42","v":"Dec 2012"},{"$f":"ZZZ__FnCalls!F31","v":"Jan 2012"},{"$f":"ZZZ__FnCalls!F43","v":"Jan 2013"},{"$f":"ZZZ__FnCalls!F44","v":"Feb 2013"},{"$f":"ZZZ__FnCalls!F45","v":"Mar 2013"},{"$f":"ZZZ__FnCalls!F46","v":"Apr 2013"},{"$f":"ZZZ__FnCalls!F47","v":"May 2013"},{"$f":"ZZZ__FnCalls!F48","v":"Jun 2013"},{"$f":"ZZZ__FnCalls!F49","v":"Jul 2013"},{"$f":"ZZZ__FnCalls!F50","v":"Aug 2013"},{"$f":"ZZZ__FnCalls!F51","v":"Sep 2013"},{"$f":"ZZZ__FnCalls!F52","v":"Oct 2013"},{"$f":"ZZZ__FnCalls!F53","v":"Nov 2013"},{"$f":"ZZZ__FnCalls!F54","v":"Dec 2013"},{"$f":"ZZZ__FnCalls!F43","v":"Jan 2013"},{"$f":"ZZZ__FnCalls!F55","v":"Jan 2014"},{"$f":"ZZZ__FnCalls!F56","v":"Feb 2014"},{"$f":"ZZZ__FnCalls!F57","v":"Mar 2014"},{"$f":"ZZZ__FnCalls!F58","v":"Apr 2014"},{"$f":"ZZZ__FnCalls!F59","v":"May 2014"},{"$f":"ZZZ__FnCalls!F60","v":"Jun 2014"},{"$f":"ZZZ__FnCalls!F61","v":"Jul 2014"},{"$f":"ZZZ__FnCalls!F62","v":"Aug 2014"},{"$f":"ZZZ__FnCalls!F63","v":"Sep 2014"},{"$f":"ZZZ__FnCalls!F64","v":"Oct 2014"},{"$f":"ZZZ__FnCalls!F65","v":"Nov 2014"},{"$f":"ZZZ__FnCalls!F66","v":"Dec 2014"},{"$f":"ZZZ__FnCalls!F55","v":"Jan 2014"},{"$f":"ZZZ__FnCalls!F67","v":"Jan 2015"},{"$f":"ZZZ__FnCalls!F68","v":"Feb 2015"},{"$f":"ZZZ__FnCalls!F69","v":"Mar 2015"},{"$f":"ZZZ__FnCalls!F70","v":"Apr 2015"},{"$f":"ZZZ__FnCalls!F71","v":"May 2015"},{"$f":"ZZZ__FnCalls!F72","v":"Jun 2015"},{"$f":"ZZZ__FnCalls!F73","v":"Jul 2015"},{"$f":"ZZZ__FnCalls!F74","v":"Aug 2015"},{"$f":"ZZZ__FnCalls!F75","v":"Sep 2015"},{"$f":"ZZZ__FnCalls!F76","v":"Oct 2015"},{"$f":"ZZZ__FnCalls!F77","v":"Nov 2015"},{"$f":"ZZZ__FnCalls!F78","v":"Dec 2015"},{"$f":"ZZZ__FnCalls!F67","v":"Jan 2015"},{"$f":"ZZZ__FnCalls!F79","v":"Jan 2016"},{"$f":"ZZZ__FnCalls!F80","v":"Feb 2016"},{"$f":"ZZZ__FnCalls!F81","v":"Mar 2016"},{"$f":"ZZZ__FnCalls!F82","v":"Apr 2016"},{"$f":"ZZZ__FnCalls!F83","v":"May 2016"},{"$f":"ZZZ__FnCalls!F84","v":"Jun 2016"},{"$f":"ZZZ__FnCalls!F85","v":"Jul 2016"},{"$f":"ZZZ__FnCalls!F86","v":"Aug 2016"},{"$f":"ZZZ__FnCalls!F87","v":"Sep 2016"},{"$f":"ZZZ__FnCalls!F88","v":"Oct 2016"},{"$f":"ZZZ__FnCalls!F89","v":"Nov 2016"},{"$f":"ZZZ__FnCalls!F90","v":"Dec 2016"},{"$f":"ZZZ__FnCalls!F79","v":"Jan 2016"},{"$f":"ZZZ__FnCalls!F91","v":"Jan 2017"},{"$f":"ZZZ__FnCalls!F92","v":"Feb 2017"},{"$f":"ZZZ__FnCalls!F93","v":"Mar 2017"},{"$f":"ZZZ__FnCalls!F94","v":"Apr 2017"},{"$f":"ZZZ__FnCalls!F95","v":"May 2017"},{"$f":"ZZZ__FnCalls!F96","v":"Jun 2017"},{"$f":"ZZZ__FnCalls!F97","v":"Jul 2017"},{"$f":"ZZZ__FnCalls!F98","v":"Aug 2017"},{"$f":"ZZZ__FnCalls!F99","v":"Sep 2017"},{"$f":"ZZZ__FnCalls!F100","v":"Oct 2017"},{"$f":"ZZZ__FnCalls!F101","v":"Nov 2017"},{"$f":"ZZZ__FnCalls!F102","v":"Dec 2017"},{"$f":"ZZZ__FnCalls!F91","v":"Jan 2017"},{"$f":"ZZZ__FnCalls!F103","v":"Jan 2018"},{"$f":"ZZZ__FnCalls!F104","v":"Feb 2018"},{"$f":"ZZZ__FnCalls!F105","v":"Mar 2018"},{"$f":"ZZZ__FnCalls!F106","v":"Apr 2018"},{"$f":"ZZZ__FnCalls!F107","v":"May 2018"},{"$f":"ZZZ__FnCalls!F108","v":"Jun 2018"},{"$f":"ZZZ__FnCalls!F109","v":"Jul 2018"},{"$f":"ZZZ__FnCalls!F110","v":"Aug 2018"},{"$f":"ZZZ__FnCalls!F111","v":"Sep 2018"},{"$f":"ZZZ__FnCalls!F112","v":"Oct 2018"},{"$f":"ZZZ__FnCalls!F113","v":"Nov 2018"},{"$f":"ZZZ__FnCalls!F114","v":"Dec 2018"},{"$f":"ZZZ__FnCalls!F103","v":"Jan 2018"},{"$f":"ZZZ__FnCalls!F115","v":"Jan 2019"},{"$f":"ZZZ__FnCalls!F116","v":"Feb 2019"},{"$f":"ZZZ__FnCalls!F117","v":"Mar 2019"},{"$f":"ZZZ__FnCalls!F118","v":"Apr 2019"},{"$f":"ZZZ__FnCalls!F119","v":"May 2019"},{"$f":"ZZZ__FnCalls!F120","v":"Jun 2019"},{"$f":"ZZZ__FnCalls!F121","v":"Jul 2019"},{"$f":"ZZZ__FnCalls!F122","v":"Aug 2019"},{"$f":"ZZZ__FnCalls!F123","v":"Sep 2019"},{"$f":"ZZZ__FnCalls!F124","v":"Oct 2019"},{"$f":"ZZZ__FnCalls!F125","v":"Nov 2019"},{"$f":"ZZZ__FnCalls!F126","v":"Dec 2019"},{"$f":"ZZZ__FnCalls!F115","v":"Jan 2019"},{"$f":"ZZZ__FnCalls!F127","v":"Jan 2020"},{"$f":"ZZZ__FnCalls!F128","v":"Feb 2020"},{"$f":"ZZZ__FnCalls!F129","v":"Mar 2020"},{"$f":"ZZZ__FnCalls!F130","v":"Apr 2020"},{"$f":"ZZZ__FnCalls!F131","v":"May 2020"},{"$f":"ZZZ__FnCalls!F132","v":"Jun 2020"},{"$f":"ZZZ__FnCalls!F133","v":"Jul 2020"},{"$f":"ZZZ__FnCalls!F134","v":"Aug 2020"},{"$f":"ZZZ__FnCalls!F135","v":"Sep 2020"},{"$f":"ZZZ__FnCalls!F136","v":"Oct 2020"},{"$f":"ZZZ__FnCalls!F137","v":"Nov 2020"},{"$f":"ZZZ__FnCalls!F138","v":"Dec 2020"},{"$f":"ZZZ__FnCalls!F127","v":"Jan 2020"}]
[{"$f":"\"Output_1\"","v":"Output_1"}]
[null,{"$f":"ZZZ__FnCalls!F7","v":"Jan 2010"},{"$f":"ZZZ__FnCalls!F8","v":"Feb 2010"},{"$f":"ZZZ__FnCalls!F9","v":"Mar 2010"},{"$f":"ZZZ__FnCalls!F10","v":"Apr 2010"},{"$f":"ZZZ__FnCalls!F11","v":"May 2010"},{"$f":"ZZZ__FnCalls!F12","v":"Jun 2010"},{"$f":"ZZZ__FnCalls!F13","v":"Jul 2010"},{"$f":"ZZZ__FnCalls!F14","v":"Aug 2010"},{"$f":"ZZZ__FnCalls!F15","v":"Sep 2010"},{"$f":"ZZZ__FnCalls!F16","v":"Oct 2010"},{"$f":"ZZZ__FnCalls!F17","v":"Nov 2010"},{"$f":"ZZZ__FnCalls!F18","v":"Dec 2010"},{"$f":"ZZZ__FnCalls!H7","v":"2010"},{"$f":"ZZZ__FnCalls!F19","v":"Jan 2011"},{"$f":"ZZZ__FnCalls!F20","v":"Feb 2011"},{"$f":"ZZZ__FnCalls!F21","v":"Mar 2011"},{"$f":"ZZZ__FnCalls!F22","v":"Apr 2011"},{"$f":"ZZZ__FnCalls!F23","v":"May 2011"},{"$f":"ZZZ__FnCalls!F24","v":"Jun 2011"},{"$f":"ZZZ__FnCalls!F25","v":"Jul 2011"},{"$f":"ZZZ__FnCalls!F26","v":"Aug 2011"},{"$f":"ZZZ__FnCalls!F27","v":"Sep 2011"},{"$f":"ZZZ__FnCalls!F28","v":"Oct 2011"},{"$f":"ZZZ__FnCalls!F29","v":"Nov 2011"},{"$f":"ZZZ__FnCalls!F30","v":"Dec 2011"},{"$f":"ZZZ__FnCalls!H19","v":"2011"},{"$f":"ZZZ__FnCalls!F31","v":"Jan 2012"},{"$f":"ZZZ__FnCalls!F32","v":"Feb 2012"},{"$f":"ZZZ__FnCalls!F33","v":"Mar 2012"},{"$f":"ZZZ__FnCalls!F34","v":"Apr 2012"},{"$f":"ZZZ__FnCalls!F35","v":"May 2012"},{"$f":"ZZZ__FnCalls!F36","v":"Jun 2012"},{"$f":"ZZZ__FnCalls!F37","v":"Jul 2012"},{"$f":"ZZZ__FnCalls!F38","v":"Aug 2012"},{"$f":"ZZZ__FnCalls!F39","v":"Sep 2012"},{"$f":"ZZZ__FnCalls!F40","v":"Oct 2012"},{"$f":"ZZZ__FnCalls!F41","v":"Nov 2012"},{"$f":"ZZZ__FnCalls!F42","v":"Dec 2012"},{"$f":"ZZZ__FnCalls!H31","v":"2012"},{"$f":"ZZZ__FnCalls!F43","v":"Jan 2013"},{"$f":"ZZZ__FnCalls!F44","v":"Feb 2013"},{"$f":"ZZZ__FnCalls!F45","v":"Mar 2013"},{"$f":"ZZZ__FnCalls!F46","v":"Apr 2013"},{"$f":"ZZZ__FnCalls!F47","v":"May 2013"},{"$f":"ZZZ__FnCalls!F48","v":"Jun 2013"},{"$f":"ZZZ__FnCalls!F49","v":"Jul 2013"},{"$f":"ZZZ__FnCalls!F50","v":"Aug 2013"},{"$f":"ZZZ__FnCalls!F51","v":"Sep 2013"},{"$f":"ZZZ__FnCalls!F52","v":"Oct 2013"},{"$f":"ZZZ__FnCalls!F53","v":"Nov 2013"},{"$f":"ZZZ__FnCalls!F54","v":"Dec 2013"},{"$f":"ZZZ__FnCalls!H43","v":"2013"},{"$f":"ZZZ__FnCalls!F55","v":"Jan 2014"},{"$f":"ZZZ__FnCalls!F56","v":"Feb 2014"},{"$f":"ZZZ__FnCalls!F57","v":"Mar 2014"},{"$f":"ZZZ__FnCalls!F58","v":"Apr 2014"},{"$f":"ZZZ__FnCalls!F59","v":"May 2014"},{"$f":"ZZZ__FnCalls!F60","v":"Jun 2014"},{"$f":"ZZZ__FnCalls!F61","v":"Jul 2014"},{"$f":"ZZZ__FnCalls!F62","v":"Aug 2014"},{"$f":"ZZZ__FnCalls!F63","v":"Sep 2014"},{"$f":"ZZZ__FnCalls!F64","v":"Oct 2014"},{"$f":"ZZZ__FnCalls!F65","v":"Nov 2014"},{"$f":"ZZZ__FnCalls!F66","v":"Dec 2014"},{"$f":"ZZZ__FnCalls!H55","v":"2014"},{"$f":"ZZZ__FnCalls!F67","v":"Jan 2015"},{"$f":"ZZZ__FnCalls!F68","v":"Feb 2015"},{"$f":"ZZZ__FnCalls!F69","v":"Mar 2015"},{"$f":"ZZZ__FnCalls!F70","v":"Apr 2015"},{"$f":"ZZZ__FnCalls!F71","v":"May 2015"},{"$f":"ZZZ__FnCalls!F72","v":"Jun 2015"},{"$f":"ZZZ__FnCalls!F73","v":"Jul 2015"},{"$f":"ZZZ__FnCalls!F74","v":"Aug 2015"},{"$f":"ZZZ__FnCalls!F75","v":"Sep 2015"},{"$f":"ZZZ__FnCalls!F76","v":"Oct 2015"},{"$f":"ZZZ__FnCalls!F77","v":"Nov 2015"},{"$f":"ZZZ__FnCalls!F78","v":"Dec 2015"},{"$f":"ZZZ__FnCalls!H67","v":"2015"},{"$f":"ZZZ__FnCalls!F79","v":"Jan 2016"},{"$f":"ZZZ__FnCalls!F80","v":"Feb 2016"},{"$f":"ZZZ__FnCalls!F81","v":"Mar 2016"},{"$f":"ZZZ__FnCalls!F82","v":"Apr 2016"},{"$f":"ZZZ__FnCalls!F83","v":"May 2016"},{"$f":"ZZZ__FnCalls!F84","v":"Jun 2016"},{"$f":"ZZZ__FnCalls!F85","v":"Jul 2016"},{"$f":"ZZZ__FnCalls!F86","v":"Aug 2016"},{"$f":"ZZZ__FnCalls!F87","v":"Sep 2016"},{"$f":"ZZZ__FnCalls!F88","v":"Oct 2016"},{"$f":"ZZZ__FnCalls!F89","v":"Nov 2016"},{"$f":"ZZZ__FnCalls!F90","v":"Dec 2016"},{"$f":"ZZZ__FnCalls!H79","v":"2016"},{"$f":"ZZZ__FnCalls!F91","v":"Jan 2017"},{"$f":"ZZZ__FnCalls!F92","v":"Feb 2017"},{"$f":"ZZZ__FnCalls!F93","v":"Mar 2017"},{"$f":"ZZZ__FnCalls!F94","v":"Apr 2017"},{"$f":"ZZZ__FnCalls!F95","v":"May 2017"},{"$f":"ZZZ__FnCalls!F96","v":"Jun 2017"},{"$f":"ZZZ__FnCalls!F97","v":"Jul 2017"},{"$f":"ZZZ__FnCalls!F98","v":"Aug 2017"},{"$f":"ZZZ__FnCalls!F99","v":"Sep 2017"},{"$f":"ZZZ__FnCalls!F100","v":"Oct 2017"},{"$f":"ZZZ__FnCalls!F101","v":"Nov 2017"},{"$f":"ZZZ__FnCalls!F102","v":"Dec 2017"},{"$f":"ZZZ__FnCalls!H91","v":"2017"},{"$f":"ZZZ__FnCalls!F103","v":"Jan 2018"},{"$f":"ZZZ__FnCalls!F104","v":"Feb 2018"},{"$f":"ZZZ__FnCalls!F105","v":"Mar 2018"},{"$f":"ZZZ__FnCalls!F106","v":"Apr 2018"},{"$f":"ZZZ__FnCalls!F107","v":"May 2018"},{"$f":"ZZZ__FnCalls!F108","v":"Jun 2018"},{"$f":"ZZZ__FnCalls!F109","v":"Jul 2018"},{"$f":"ZZZ__FnCalls!F110","v":"Aug 2018"},{"$f":"ZZZ__FnCalls!F111","v":"Sep 2018"},{"$f":"ZZZ__FnCalls!F112","v":"Oct 2018"},{"$f":"ZZZ__FnCalls!F113","v":"Nov 2018"},{"$f":"ZZZ__FnCalls!F114","v":"Dec 2018"},{"$f":"ZZZ__FnCalls!H103","v":"2018"},{"$f":"ZZZ__FnCalls!F115","v":"Jan 2019"},{"$f":"ZZZ__FnCalls!F116","v":"Feb 2019"},{"$f":"ZZZ__FnCalls!F117","v":"Mar 2019"},{"$f":"ZZZ__FnCalls!F118","v":"Apr 2019"},{"$f":"ZZZ__FnCalls!F119","v":"May 2019"},{"$f":"ZZZ__FnCalls!F120","v":"Jun 2019"},{"$f":"ZZZ__FnCalls!F121","v":"Jul 2019"},{"$f":"ZZZ__FnCalls!F122","v":"Aug 2019"},{"$f":"ZZZ__FnCalls!F123","v":"Sep 2019"},{"$f":"ZZZ__FnCalls!F124","v":"Oct 2019"},{"$f":"ZZZ__FnCalls!F125","v":"Nov 2019"},{"$f":"ZZZ__FnCalls!F126","v":"Dec 2019"},{"$f":"ZZZ__FnCalls!H115","v":"2019"},{"$f":"ZZZ__FnCalls!F127","v":"Jan 2020"},{"$f":"ZZZ__FnCalls!F128","v":"Feb 2020"},{"$f":"ZZZ__FnCalls!F129","v":"Mar 2020"},{"$f":"ZZZ__FnCalls!F130","v":"Apr 2020"},{"$f":"ZZZ__FnCalls!F131","v":"May 2020"},{"$f":"ZZZ__FnCalls!F132","v":"Jun 2020"},{"$f":"ZZZ__FnCalls!F133","v":"Jul 2020"},{"$f":"ZZZ__FnCalls!F134","v":"Aug 2020"},{"$f":"ZZZ__FnCalls!F135","v":"Sep 2020"},{"$f":"ZZZ__FnCalls!F136","v":"Oct 2020"},{"$f":"ZZZ__FnCalls!F137","v":"Nov 2020"},{"$f":"ZZZ__FnCalls!F138","v":"Dec 2020"},{"$f":"ZZZ__FnCalls!H127","v":"2020"}]
[null,{"$f":"ZZZ__FnCalls!A7","v":"2010-01-01"},{"$f":"ZZZ__FnCalls!A8","v":"2010-02-01"},{"$f":"ZZZ__FnCalls!A9","v":"2010-03-01"},{"$f":"ZZZ__FnCalls!A10","v":"2010-04-01"},{"$f":"ZZZ__FnCalls!A11","v":"2010-05-01"},{"$f":"ZZZ__FnCalls!A12","v":"2010-06-01"},{"$f":"ZZZ__FnCalls!A13","v":"2010-07-01"},{"$f":"ZZZ__FnCalls!A14","v":"2010-08-01"},{"$f":"ZZZ__FnCalls!A15","v":"2010-09-01"},{"$f":"ZZZ__FnCalls!A16","v":"2010-10-01"},{"$f":"ZZZ__FnCalls!A17","v":"2010-11-01"},{"$f":"ZZZ__FnCalls!A18","v":"2010-12-01"},{"$f":"ZZZ__FnCalls!A7","v":"2010-01-01"},{"$f":"ZZZ__FnCalls!A19","v":"2011-01-01"},{"$f":"ZZZ__FnCalls!A20","v":"2011-02-01"},{"$f":"ZZZ__FnCalls!A21","v":"2011-03-01"},{"$f":"ZZZ__FnCalls!A22","v":"2011-04-01"},{"$f":"ZZZ__FnCalls!A23","v":"2011-05-01"},{"$f":"ZZZ__FnCalls!A24","v":"2011-06-01"},{"$f":"ZZZ__FnCalls!A25","v":"2011-07-01"},{"$f":"ZZZ__FnCalls!A26","v":"2011-08-01"},{"$f":"ZZZ__FnCalls!A27","v":"2011-09-01"},{"$f":"ZZZ__FnCalls!A28","v":"2011-10-01"},{"$f":"ZZZ__FnCalls!A29","v":"2011-11-01"},{"$f":"ZZZ__FnCalls!A30","v":"2011-12-01"},{"$f":"ZZZ__FnCalls!A19","v":"2011-01-01"},{"$f":"ZZZ__FnCalls!A31","v":"2012-01-01"},{"$f":"ZZZ__FnCalls!A32","v":"2012-02-01"},{"$f":"ZZZ__FnCalls!A33","v":"2012-03-01"},{"$f":"ZZZ__FnCalls!A34","v":"2012-04-01"},{"$f":"ZZZ__FnCalls!A35","v":"2012-05-01"},{"$f":"ZZZ__FnCalls!A36","v":"2012-06-01"},{"$f":"ZZZ__FnCalls!A37","v":"2012-07-01"},{"$f":"ZZZ__FnCalls!A38","v":"2012-08-01"},{"$f":"ZZZ__FnCalls!A39","v":"2012-09-01"},{"$f":"ZZZ__FnCalls!A40","v":"2012-10-01"},{"$f":"ZZZ__FnCalls!A41","v":"2012-11-01"},{"$f":"ZZZ__FnCalls!A42","v":"2012-12-01"},{"$f":"ZZZ__FnCalls!A31","v":"2012-01-01"},{"$f":"ZZZ__FnCalls!A43","v":"2013-01-01"},{"$f":"ZZZ__FnCalls!A44","v":"2013-02-01"},{"$f":"ZZZ__FnCalls!A45","v":"2013-03-01"},{"$f":"ZZZ__FnCalls!A46","v":"2013-04-01"},{"$f":"ZZZ__FnCalls!A47","v":"2013-05-01"},{"$f":"ZZZ__FnCalls!A48","v":"2013-06-01"},{"$f":"ZZZ__FnCalls!A49","v":"2013-07-01"},{"$f":"ZZZ__FnCalls!A50","v":"2013-08-01"},{"$f":"ZZZ__FnCalls!A51","v":"2013-09-01"},{"$f":"ZZZ__FnCalls!A52","v":"2013-10-01"},{"$f":"ZZZ__FnCalls!A53","v":"2013-11-01"},{"$f":"ZZZ__FnCalls!A54","v":"2013-12-01"},{"$f":"ZZZ__FnCalls!A43","v":"2013-01-01"},{"$f":"ZZZ__FnCalls!A55","v":"2014-01-01"},{"$f":"ZZZ__FnCalls!A56","v":"2014-02-01"},{"$f":"ZZZ__FnCalls!A57","v":"2014-03-01"},{"$f":"ZZZ__FnCalls!A58","v":"2014-04-01"},{"$f":"ZZZ__FnCalls!A59","v":"2014-05-01"},{"$f":"ZZZ__FnCalls!A60","v":"2014-06-01"},{"$f":"ZZZ__FnCalls!A61","v":"2014-07-01"},{"$f":"ZZZ__FnCalls!A62","v":"2014-08-01"},{"$f":"ZZZ__FnCalls!A63","v":"2014-09-01"},{"$f":"ZZZ__FnCalls!A64","v":"2014-10-01"},{"$f":"ZZZ__FnCalls!A65","v":"2014-11-01"},{"$f":"ZZZ__FnCalls!A66","v":"2014-12-01"},{"$f":"ZZZ__FnCalls!A55","v":"2014-01-01"},{"$f":"ZZZ__FnCalls!A67","v":"2015-01-01"},{"$f":"ZZZ__FnCalls!A68","v":"2015-02-01"},{"$f":"ZZZ__FnCalls!A69","v":"2015-03-01"},{"$f":"ZZZ__FnCalls!A70","v":"2015-04-01"},{"$f":"ZZZ__FnCalls!A71","v":"2015-05-01"},{"$f":"ZZZ__FnCalls!A72","v":"2015-06-01"},{"$f":"ZZZ__FnCalls!A73","v":"2015-07-01"},{"$f":"ZZZ__FnCalls!A74","v":"2015-08-01"},{"$f":"ZZZ__FnCalls!A75","v":"2015-09-01"},{"$f":"ZZZ__FnCalls!A76","v":"2015-10-01"},{"$f":"ZZZ__FnCalls!A77","v":"2015-11-01"},{"$f":"ZZZ__FnCalls!A78","v":"2015-12-01"},{"$f":"ZZZ__FnCalls!A67","v":"2015-01-01"},{"$f":"ZZZ__FnCalls!A79","v":"2016-01-01"},{"$f":"ZZZ__FnCalls!A80","v":"2016-02-01"},{"$f":"ZZZ__FnCalls!A81","v":"2016-03-01"},{"$f":"ZZZ__FnCalls!A82","v":"2016-04-01"},{"$f":"ZZZ__FnCalls!A83","v":"2016-05-01"},{"$f":"ZZZ__FnCalls!A84","v":"2016-06-01"},{"$f":"ZZZ__FnCalls!A85","v":"2016-07-01"},{"$f":"ZZZ__FnCalls!A86","v":"2016-08-01"},{"$f":"ZZZ__FnCalls!A87","v":"2016-09-01"},{"$f":"ZZZ__FnCalls!A88","v":"2016-10-01"},{"$f":"ZZZ__FnCalls!A89","v":"2016-11-01"},{"$f":"ZZZ__FnCalls!A90","v":"2016-12-01"},{"$f":"ZZZ__FnCalls!A79","v":"2016-01-01"},{"$f":"ZZZ__FnCalls!A91","v":"2017-01-01"},{"$f":"ZZZ__FnCalls!A92","v":"2017-02-01"},{"$f":"ZZZ__FnCalls!A93","v":"2017-03-01"},{"$f":"ZZZ__FnCalls!A94","v":"2017-04-01"},{"$f":"ZZZ__FnCalls!A95","v":"2017-05-01"},{"$f":"ZZZ__FnCalls!A96","v":"2017-06-01"},{"$f":"ZZZ__FnCalls!A97","v":"2017-07-01"},{"$f":"ZZZ__FnCalls!A98","v":"2017-08-01"},{"$f":"ZZZ__FnCalls!A99","v":"2017-09-01"},{"$f":"ZZZ__FnCalls!A100","v":"2017-10-01"},{"$f":"ZZZ__FnCalls!A101","v":"2017-11-01"},{"$f":"ZZZ__FnCalls!A102","v":"2017-12-01"},{"$f":"ZZZ__FnCalls!A91","v":"2017-01-01"},{"$f":"ZZZ__FnCalls!A103","v":"2018-01-01"},{"$f":"ZZZ__FnCalls!A104","v":"2018-02-01"},{"$f":"ZZZ__FnCalls!A105","v":"2018-03-01"},{"$f":"ZZZ__FnCalls!A106","v":"2018-04-01"},{"$f":"ZZZ__FnCalls!A107","v":"2018-05-01"},{"$f":"ZZZ__FnCalls!A108","v":"2018-06-01"},{"$f":"ZZZ__FnCalls!A109","v":"2018-07-01"},{"$f":"ZZZ__FnCalls!A110","v":"2018-08-01"},{"$f":"ZZZ__FnCalls!A111","v":"2018-09-01"},{"$f":"ZZZ__FnCalls!A112","v":"2018-10-01"},{"$f":"ZZZ__FnCalls!A113","v":"2018-11-01"},{"$f":"ZZZ__FnCalls!A114","v":"2018-12-01"},{"$f":"ZZZ__FnCalls!A103","v":"2018-01-01"},{"$f":"ZZZ__FnCalls!A115","v":"2019-01-01"},{"$f":"ZZZ__FnCalls!A116","v":"2019-02-01"},{"$f":"ZZZ__FnCalls!A117","v":"2019-03-01"},{"$f":"ZZZ__FnCalls!A118","v":"2019-04-01"},{"$f":"ZZZ__FnCalls!A119","v":"2019-05-01"},{"$f":"ZZZ__FnCalls!A120","v":"2019-06-01"},{"$f":"ZZZ__FnCalls!A121","v":"2019-07-01"},{"$f":"ZZZ__FnCalls!A122","v":"2019-08-01"},{"$f":"ZZZ__FnCalls!A123","v":"2019-09-01"},{"$f":"ZZZ__FnCalls!A124","v":"2019-10-01"},{"$f":"ZZZ__FnCalls!A125","v":"2019-11-01"},{"$f":"ZZZ__FnCalls!A126","v":"2019-12-01"},{"$f":"ZZZ__FnCalls!A115","v":"2019-01-01"},{"$f":"ZZZ__FnCalls!A127","v":"2020-01-01"},{"$f":"ZZZ__FnCalls!A128","v":"2020-02-01"},{"$f":"ZZZ__FnCalls!A129","v":"2020-03-01"},{"$f":"ZZZ__FnCalls!A130","v":"2020-04-01"},{"$f":"ZZZ__FnCalls!A131","v":"2020-05-01"},{"$f":"ZZZ__FnCalls!A132","v":"2020-06-01"},{"$f":"ZZZ__FnCalls!A133","v":"2020-07-01"},{"$f":"ZZZ__FnCalls!A134","v":"2020-08-01"},{"$f":"ZZZ__FnCalls!A135","v":"2020-09-01"},{"$f":"ZZZ__FnCalls!A136","v":"2020-10-01"},{"$f":"ZZZ__FnCalls!A137","v":"2020-11-01"},{"$f":"ZZZ__FnCalls!A138","v":"2020-12-01"},{"$f":"ZZZ__FnCalls!A127","v":"2020-01-01"}]
[{"$f":"\"Output_2\"","v":"Output_2"}]
[null,{"$f":"ZZZ__FnCalls!F7","v":"Jan 2010"},{"$f":"ZZZ__FnCalls!F8","v":"Feb 2010"},{"$f":"ZZZ__FnCalls!F9","v":"Mar 2010"},{"$f":"ZZZ__FnCalls!F10","v":"Apr 2010"},{"$f":"ZZZ__FnCalls!F11","v":"May 2010"},{"$f":"ZZZ__FnCalls!F12","v":"Jun 2010"},{"$f":"ZZZ__FnCalls!F13","v":"Jul 2010"},{"$f":"ZZZ__FnCalls!F14","v":"Aug 2010"},{"$f":"ZZZ__FnCalls!F15","v":"Sep 2010"},{"$f":"ZZZ__FnCalls!F16","v":"Oct 2010"},{"$f":"ZZZ__FnCalls!F17","v":"Nov 2010"},{"$f":"ZZZ__FnCalls!F18","v":"Dec 2010"},{"$f":"ZZZ__FnCalls!H7","v":"2010"},{"$f":"ZZZ__FnCalls!F19","v":"Jan 2011"},{"$f":"ZZZ__FnCalls!F20","v":"Feb 2011"},{"$f":"ZZZ__FnCalls!F21","v":"Mar 2011"},{"$f":"ZZZ__FnCalls!F22","v":"Apr 2011"},{"$f":"ZZZ__FnCalls!F23","v":"May 2011"},{"$f":"ZZZ__FnCalls!F24","v":"Jun 2011"},{"$f":"ZZZ__FnCalls!F25","v":"Jul 2011"},{"$f":"ZZZ__FnCalls!F26","v":"Aug 2011"},{"$f":"ZZZ__FnCalls!F27","v":"Sep 2011"},{"$f":"ZZZ__FnCalls!F28","v":"Oct 2011"},{"$f":"ZZZ__FnCalls!F29","v":"Nov 2011"},{"$f":"ZZZ__FnCalls!F30","v":"Dec 2011"},{"$f":"ZZZ__FnCalls!H19","v":"2011"},{"$f":"ZZZ__FnCalls!F31","v":"Jan 2012"},{"$f":"ZZZ__FnCalls!F32","v":"Feb 2012"},{"$f":"ZZZ__FnCalls!F33","v":"Mar 2012"},{"$f":"ZZZ__FnCalls!F34","v":"Apr 2012"},{"$f":"ZZZ__FnCalls!F35","v":"May 2012"},{"$f":"ZZZ__FnCalls!F36","v":"Jun 2012"},{"$f":"ZZZ__FnCalls!F37","v":"Jul 2012"},{"$f":"ZZZ__FnCalls!F38","v":"Aug 2012"},{"$f":"ZZZ__FnCalls!F39","v":"Sep 2012"},{"$f":"ZZZ__FnCalls!F40","v":"Oct 2012"},{"$f":"ZZZ__FnCalls!F41","v":"Nov 2012"},{"$f":"ZZZ__FnCalls!F42","v":"Dec 2012"},{"$f":"ZZZ__FnCalls!H31","v":"2012"},{"$f":"ZZZ__FnCalls!F43","v":"Jan 2013"},{"$f":"ZZZ__FnCalls!F44","v":"Feb 2013"},{"$f":"ZZZ__FnCalls!F45","v":"Mar 2013"},{"$f":"ZZZ__FnCalls!F46","v":"Apr 2013"},{"$f":"ZZZ__FnCalls!F47","v":"May 2013"},{"$f":"ZZZ__FnCalls!F48","v":"Jun 2013"},{"$f":"ZZZ__FnCalls!F49","v":"Jul 2013"},{"$f":"ZZZ__FnCalls!F50","v":"Aug 2013"},{"$f":"ZZZ__FnCalls!F51","v":"Sep 2013"},{"$f":"ZZZ__FnCalls!F52","v":"Oct 2013"},{"$f":"ZZZ__FnCalls!F53","v":"Nov 2013"},{"$f":"ZZZ__FnCalls!F54","v":"Dec 2013"},{"$f":"ZZZ__FnCalls!H43","v":"2013"},{"$f":"ZZZ__FnCalls!F55","v":"Jan 2014"},{"$f":"ZZZ__FnCalls!F56","v":"Feb 2014"},{"$f":"ZZZ__FnCalls!F57","v":"Mar 2014"},{"$f":"ZZZ__FnCalls!F58","v":"Apr 2014"},{"$f":"ZZZ__FnCalls!F59","v":"May 2014"},{"$f":"ZZZ__FnCalls!F60","v":"Jun 2014"},{"$f":"ZZZ__FnCalls!F61","v":"Jul 2014"},{"$f":"ZZZ__FnCalls!F62","v":"Aug 2014"},{"$f":"ZZZ__FnCalls!F63","v":"Sep 2014"},{"$f":"ZZZ__FnCalls!F64","v":"Oct 2014"},{"$f":"ZZZ__FnCalls!F65","v":"Nov 2014"},{"$f":"ZZZ__FnCalls!F66","v":"Dec 2014"},{"$f":"ZZZ__FnCalls!H55","v":"2014"},{"$f":"ZZZ__FnCalls!F67","v":"Jan 2015"},{"$f":"ZZZ__FnCalls!F68","v":"Feb 2015"},{"$f":"ZZZ__FnCalls!F69","v":"Mar 2015"},{"$f":"ZZZ__FnCalls!F70","v":"Apr 2015"},{"$f":"ZZZ__FnCalls!F71","v":"May 2015"},{"$f":"ZZZ__FnCalls!F72","v":"Jun 2015"},{"$f":"ZZZ__FnCalls!F73","v":"Jul 2015"},{"$f":"ZZZ__FnCalls!F74","v":"Aug 2015"},{"$f":"ZZZ__FnCalls!F75","v":"Sep 2015"},{"$f":"ZZZ__FnCalls!F76","v":"Oct 2015"},{"$f":"ZZZ__FnCalls!F77","v":"Nov 2015"},{"$f":"ZZZ__FnCalls!F78","v":"Dec 2015"},{"$f":"ZZZ__FnCalls!H67","v":"2015"},{"$f":"ZZZ__FnCalls!F79","v":"Jan 2016"},{"$f":"ZZZ__FnCalls!F80","v":"Feb 2016"},{"$f":"ZZZ__FnCalls!F81","v":"Mar 2016"},{"$f":"ZZZ__FnCalls!F82","v":"Apr 2016"},{"$f":"ZZZ__FnCalls!F83","v":"May 2016"},{"$f":"ZZZ__FnCalls!F84","v":"Jun 2016"},{"$f":"ZZZ__FnCalls!F85","v":"Jul 2016"},{"$f":"ZZZ__FnCalls!F86","v":"Aug 2016"},{"$f":"ZZZ__FnCalls!F87","v":"Sep 2016"},{"$f":"ZZZ__FnCalls!F88","v":"Oct 2016"},{"$f":"ZZZ__FnCalls!F89","v":"Nov 2016"},{"$f":"ZZZ__FnCalls!F90","v":"Dec 2016"},{"$f":"ZZZ__FnCalls!H79","v":"2016"},{"$f":"ZZZ__FnCalls!F91","v":"Jan 2017"},{"$f":"ZZZ__FnCalls!F92","v":"Feb 2017"},{"$f":"ZZZ__FnCalls!F93","v":"Mar 2017"},{"$f":"ZZZ__FnCalls!F94","v":"Apr 2017"},{"$f":"ZZZ__FnCalls!F95","v":"May 2017"},{"$f":"ZZZ__FnCalls!F96","v":"Jun 2017"},{"$f":"ZZZ__FnCalls!F97","v":"Jul 2017"},{"$f":"ZZZ__FnCalls!F98","v":"Aug 2017"},{"$f":"ZZZ__FnCalls!F99","v":"Sep 2017"},{"$f":"ZZZ__FnCalls!F100","v":"Oct 2017"},{"$f":"ZZZ__FnCalls!F101","v":"Nov 2017"},{"$f":"ZZZ__FnCalls!F102","v":"Dec 2017"},{"$f":"ZZZ__FnCalls!H91","v":"2017"},{"$f":"ZZZ__FnCalls!F103","v":"Jan 2018"},{"$f":"ZZZ__FnCalls!F104","v":"Feb 2018"},{"$f":"ZZZ__FnCalls!F105","v":"Mar 2018"},{"$f":"ZZZ__FnCalls!F106","v":"Apr 2018"},{"$f":"ZZZ__FnCalls!F107","v":"May 2018"},{"$f":"ZZZ__FnCalls!F108","v":"Jun 2018"},{"$f":"ZZZ__FnCalls!F109","v":"Jul 2018"},{"$f":"ZZZ__FnCalls!F110","v":"Aug 2018"},{"$f":"ZZZ__FnCalls!F111","v":"Sep 2018"},{"$f":"ZZZ__FnCalls!F112","v":"Oct 2018"},{"$f":"ZZZ__FnCalls!F113","v":"Nov 2018"},{"$f":"ZZZ__FnCalls!F114","v":"Dec 2018"},{"$f":"ZZZ__FnCalls!H103","v":"2018"},{"$f":"ZZZ__FnCalls!F115","v":"Jan 2019"},{"$f":"ZZZ__FnCalls!F116","v":"Feb 2019"},{"$f":"ZZZ__FnCalls!F117","v":"Mar 2019"},{"$f":"ZZZ__FnCalls!F118","v":"Apr 2019"},{"$f":"ZZZ__FnCalls!F119","v":"May 2019"},{"$f":"ZZZ__FnCalls!F120","v":"Jun 2019"},{"$f":"ZZZ__FnCalls!F121","v":"Jul 2019"},{"$f":"ZZZ__FnCalls!F122","v":"Aug 2019"},{"$f":"ZZZ__FnCalls!F123","v":"Sep 2019"},{"$f":"ZZZ__FnCalls!F124","v":"Oct 2019"},{"$f":"ZZZ__FnCalls!F125","v":"Nov 2019"},{"$f":"ZZZ__FnCalls!F126","v":"Dec 2019"},{"$f":"ZZZ__FnCalls!H115","v":"2019"},{"$f":"ZZZ__FnCalls!F127","v":"Jan 2020"},{"$f":"ZZZ__FnCalls!F128","v":"Feb 2020"},{"$f":"ZZZ__FnCalls!F129","v":"Mar 2020"},{"$f":"ZZZ__FnCalls!F130","v":"Apr 2020"},{"$f":"ZZZ__FnCalls!F131","v":"May 2020"},{"$f":"ZZZ__FnCalls!F132","v":"Jun 2020"},{"$f":"ZZZ__FnCalls!F133","v":"Jul 2020"},{"$f":"ZZZ__FnCalls!F134","v":"Aug 2020"},{"$f":"ZZZ__FnCalls!F135","v":"Sep 2020"},{"$f":"ZZZ__FnCalls!F136","v":"Oct 2020"},{"$f":"ZZZ__FnCalls!F137","v":"Nov 2020"},{"$f":"ZZZ__FnCalls!F138","v":"Dec 2020"},{"$f":"ZZZ__FnCalls!H127","v":"2020"}]
[null,{"$f":"ZZZ__FnCalls!F7","v":"Jan 2010"},{"$f":"ZZZ__FnCalls!F8","v":"Feb 2010"},{"$f":"ZZZ__FnCalls!F9","v":"Mar 2010"},{"$f":"ZZZ__FnCalls!F10","v":"Apr 2010"},{"$f":"ZZZ__FnCalls!F11","v":"May 2010"},{"$f":"ZZZ__FnCalls!F12","v":"Jun 2010"},{"$f":"ZZZ__FnCalls!F13","v":"Jul 2010"},{"$f":"ZZZ__FnCalls!F14","v":"Aug 2010"},{"$f":"ZZZ__FnCalls!F15","v":"Sep 2010"},{"$f":"ZZZ__FnCalls!F16","v":"Oct 2010"},{"$f":"ZZZ__FnCalls!F17","v":"Nov 2010"},{"$f":"ZZZ__FnCalls!F18","v":"Dec 2010"},{"$f":"ZZZ__FnCalls!F7","v":"Jan 2010"},{"$f":"ZZZ__FnCalls!F19","v":"Jan 2011"},{"$f":"ZZZ__FnCalls!F20","v":"Feb 2011"},{"$f":"ZZZ__FnCalls!F21","v":"Mar 2011"},{"$f":"ZZZ__FnCalls!F22","v":"Apr 2011"},{"$f":"ZZZ__FnCalls!F23","v":"May 2011"},{"$f":"ZZZ__FnCalls!F24","v":"Jun 2011"},{"$f":"ZZZ__FnCalls!F25","v":"Jul 2011"},{"$f":"ZZZ__FnCalls!F26","v":"Aug 2011"},{"$f":"ZZZ__FnCalls!F27","v":"Sep 2011"},{"$f":"ZZZ__FnCalls!F28","v":"Oct 2011"},{"$f":"ZZZ__FnCalls!F29","v":"Nov 2011"},{"$f":"ZZZ__FnCalls!F30","v":"Dec 2011"},{"$f":"ZZZ__FnCalls!F19","v":"Jan 2011"},{"$f":"ZZZ__FnCalls!F31","v":"Jan 2012"},{"$f":"ZZZ__FnCalls!F32","v":"Feb 2012"},{"$f":"ZZZ__FnCalls!F33","v":"Mar 2012"},{"$f":"ZZZ__FnCalls!F34","v":"Apr 2012"},{"$f":"ZZZ__FnCalls!F35","v":"May 2012"},{"$f":"ZZZ__FnCalls!F36","v":"Jun 2012"},{"$f":"ZZZ__FnCalls!F37","v":"Jul 2012"},{"$f":"ZZZ__FnCalls!F38","v":"Aug 2012"},{"$f":"ZZZ__FnCalls!F39","v":"Sep 2012"},{"$f":"ZZZ__FnCalls!F40","v":"Oct 2012"},{"$f":"ZZZ__FnCalls!F41","v":"Nov 2012"},{"$f":"ZZZ__FnCalls!F42","v":"Dec 2012"},{"$f":"ZZZ__FnCalls!F31","v":"Jan 2012"},{"$f":"ZZZ__FnCalls!F43","v":"Jan 2013"},{"$f":"ZZZ__FnCalls!F44","v":"Feb 2013"},{"$f":"ZZZ__FnCalls!F45","v":"Mar 2013"},{"$f":"ZZZ__FnCalls!F46","v":"Apr 2013"},{"$f":"ZZZ__FnCalls!F47","v":"May 2013"},{"$f":"ZZZ__FnCalls!F48","v":"Jun 2013"},{"$f":"ZZZ__FnCalls!F49","v":"Jul 2013"},{"$f":"ZZZ__FnCalls!F50","v":"Aug 2013"},{"$f":"ZZZ__FnCalls!F51","v":"Sep 2013"},{"$f":"ZZZ__FnCalls!F52","v":"Oct 2013"},{"$f":"ZZZ__FnCalls!F53","v":"Nov 2013"},{"$f":"ZZZ__FnCalls!F54","v":"Dec 2013"},{"$f":"ZZZ__FnCalls!F43","v":"Jan 2013"},{"$f":"ZZZ__FnCalls!F55","v":"Jan 2014"},{"$f":"ZZZ__FnCalls!F56","v":"Feb 2014"},{"$f":"ZZZ__FnCalls!F57","v":"Mar 2014"},{"$f":"ZZZ__FnCalls!F58","v":"Apr 2014"},{"$f":"ZZZ__FnCalls!F59","v":"May 2014"},{"$f":"ZZZ__FnCalls!F60","v":"Jun 2014"},{"$f":"ZZZ__FnCalls!F61","v":"Jul 2014"},{"$f":"ZZZ__FnCalls!F62","v":"Aug 2014"},{"$f":"ZZZ__FnCalls!F63","v":"Sep 2014"},{"$f":"ZZZ__FnCalls!F64","v":"Oct 2014"},{"$f":"ZZZ__FnCalls!F65","v":"Nov 2014"},{"$f":"ZZZ__FnCalls!F66","v":"Dec 2014"},{"$f":"ZZZ__FnCalls!F55","v":"Jan 2014"},{"$f":"ZZZ__FnCalls!F67","v":"Jan 2015"},{"$f":"ZZZ__FnCalls!F68","v":"Feb 2015"},{"$f":"ZZZ__FnCalls!F69","v":"Mar 2015"},{"$f":"ZZZ__FnCalls!F70","v":"Apr 2015"},{"$f":"ZZZ__FnCalls!F71","v":"May 2015"},{"$f":"ZZZ__FnCalls!F72","v":"Jun 2015"},{"$f":"ZZZ__FnCalls!F73","v":"Jul 2015"},{"$f":"ZZZ__FnCalls!F74","v":"Aug 2015"},{"$f":"ZZZ__FnCalls!F75","v":"Sep 2015"},{"$f":"ZZZ__FnCalls!F76","v":"Oct 2015"},{"$f":"ZZZ__FnCalls!F77","v":"Nov 2015"},{"$f":"ZZZ__FnCalls!F78","v":"Dec 2015"},{"$f":"ZZZ__FnCalls!F67","v":"Jan 2015"},{"$f":"ZZZ__FnCalls!F79","v":"Jan 2016"},{"$f":"ZZZ__FnCalls!F80","v":"Feb 2016"},{"$f":"ZZZ__FnCalls!F81","v":"Mar 2016"},{"$f":"ZZZ__FnCalls!F82","v":"Apr 2016"},{"$f":"ZZZ__FnCalls!F83","v":"May 2016"},{"$f":"ZZZ__FnCalls!F84","v":"Jun 2016"},{"$f":"ZZZ__FnCalls!F85","v":"Jul 2016"},{"$f":"ZZZ__FnCalls!F86","v":"Aug 2016"},{"$f":"ZZZ__FnCalls!F87","v":"Sep 2016"},{"$f":"ZZZ__FnCalls!F88","v":"Oct 2016"},{"$f":"ZZZ__FnCalls!F89","v":"Nov 2016"},{"$f":"ZZZ__FnCalls!F90","v":"Dec 2016"},{"$f":"ZZZ__FnCalls!F79","v":"Jan 2016"},{"$f":"ZZZ__FnCalls!F91","v":"Jan 2017"},{"$f":"ZZZ__FnCalls!F92","v":"Feb 2017"},{"$f":"ZZZ__FnCalls!F93","v":"Mar 2017"},{"$f":"ZZZ__FnCalls!F94","v":"Apr 2017"},{"$f":"ZZZ__FnCalls!F95","v":"May 2017"},{"$f":"ZZZ__FnCalls!F96","v":"Jun 2017"},{"$f":"ZZZ__FnCalls!F97","v":"Jul 2017"},{"$f":"ZZZ__FnCalls!F98","v":"Aug 2017"},{"$f":"ZZZ__FnCalls!F99","v":"Sep 2017"},{"$f":"ZZZ__FnCalls!F100","v":"Oct 2017"},{"$f":"ZZZ__FnCalls!F101","v":"Nov 2017"},{"$f":"ZZZ__FnCalls!F102","v":"Dec 2017"},{"$f":"ZZZ__FnCalls!F91","v":"Jan 2017"},{"$f":"ZZZ__FnCalls!F103","v":"Jan 2018"},{"$f":"ZZZ__FnCalls!F104","v":"Feb 2018"},{"$f":"ZZZ__FnCalls!F105","v":"Mar 2018"},{"$f":"ZZZ__FnCalls!F106","v":"Apr 2018"},{"$f":"ZZZ__FnCalls!F107","v":"May 2018"},{"$f":"ZZZ__FnCalls!F108","v":"Jun 2018"},{"$f":"ZZZ__FnCalls!F109","v":"Jul 2018"},{"$f":"ZZZ__FnCalls!F110","v":"Aug 2018"},{"$f":"ZZZ__FnCalls!F111","v":"Sep 2018"},{"$f":"ZZZ__FnCalls!F112","v":"Oct 2018"},{"$f":"ZZZ__FnCalls!F113","v":"Nov 2018"},{"$f":"ZZZ__FnCalls!F114","v":"Dec 2018"},{"$f":"ZZZ__FnCalls!F103","v":"Jan 2018"},{"$f":"ZZZ__FnCalls!F115","v":"Jan 2019"},{"$f":"ZZZ__FnCalls!F116","v":"Feb 2019"},{"$f":"ZZZ__FnCalls!F117","v":"Mar 2019"},{"$f":"ZZZ__FnCalls!F118","v":"Apr 2019"},{"$f":"ZZZ__FnCalls!F119","v":"May 2019"},{"$f":"ZZZ__FnCalls!F120","v":"Jun 2019"},{"$f":"ZZZ__FnCalls!F121","v":"Jul 2019"},{"$f":"ZZZ__FnCalls!F122","v":"Aug 2019"},{"$f":"ZZZ__FnCalls!F123","v":"Sep 2019"},{"$f":"ZZZ__FnCalls!F124","v":"Oct 2019"},{"$f":"ZZZ__FnCalls!F125","v":"Nov 2019"},{"$f":"ZZZ__FnCalls!F126","v":"Dec 2019"},{"$f":"ZZZ__FnCalls!F115","v":"Jan 2019"},{"$f":"ZZZ__FnCalls!F127","v":"Jan 2020"},{"$f":"ZZZ__FnCalls!F128","v":"Feb 2020"},{"$f":"ZZZ__FnCalls!F129","v":"Mar 2020"},{"$f":"ZZZ__FnCalls!F130","v":"Apr 2020"},{"$f":"ZZZ__FnCalls!F131","v":"May 2020"},{"$f":"ZZZ__FnCalls!F132","v":"Jun 2020"},{"$f":"ZZZ__FnCalls!F133","v":"Jul 2020"},{"$f":"ZZZ__FnCalls!F134","v":"Aug 2020"},{"$f":"ZZZ__FnCalls!F135","v":"Sep 2020"},{"$f":"ZZZ__FnCalls!F136","v":"Oct 2020"},{"$f":"ZZZ__FnCalls!F137","v":"Nov 2020"},{"$f":"ZZZ__FnCalls!F138","v":"Dec 2020"},{"$f":"ZZZ__FnCalls!F127","v":"Jan 2020"}]
[{"$f":"\"Output_Potential_1\"","v":"Output_Potential_1"}]
[null,{"$f":"ZZZ__FnCalls!F7","v":"Jan 2010"},{"$f":"ZZZ__FnCalls!F8","v":"Feb 2010"},{"$f":"ZZZ__FnCalls!F9","v":"Mar 2010"},{"$f":"ZZZ__FnCalls!F10","v":"Apr 2010"},{"$f":"ZZZ__FnCalls!F11","v":"May 2010"},{"$f":"ZZZ__FnCalls!F12","v":"Jun 2010"},{"$f":"ZZZ__FnCalls!F13","v":"Jul 2010"},{"$f":"ZZZ__FnCalls!F14","v":"Aug 2010"},{"$f":"ZZZ__FnCalls!F15","v":"Sep 2010"},{"$f":"ZZZ__FnCalls!F16","v":"Oct 2010"},{"$f":"ZZZ__FnCalls!F17","v":"Nov 2010"},{"$f":"ZZZ__FnCalls!F18","v":"Dec 2010"},{"$f":"ZZZ__FnCalls!H7","v":"2010"},{"$f":"ZZZ__FnCalls!F19","v":"Jan 2011"},{"$f":"ZZZ__FnCalls!F20","v":"Feb 2011"},{"$f":"ZZZ__FnCalls!F21","v":"Mar 2011"},{"$f":"ZZZ__FnCalls!F22","v":"Apr 2011"},{"$f":"ZZZ__FnCalls!F23","v":"May 2011"},{"$f":"ZZZ__FnCalls!F24","v":"Jun 2011"},{"$f":"ZZZ__FnCalls!F25","v":"Jul 2011"},{"$f":"ZZZ__FnCalls!F26","v":"Aug 2011"},{"$f":"ZZZ__FnCalls!F27","v":"Sep 2011"},{"$f":"ZZZ__FnCalls!F28","v":"Oct 2011"},{"$f":"ZZZ__FnCalls!F29","v":"Nov 2011"},{"$f":"ZZZ__FnCalls!F30","v":"Dec 2011"},{"$f":"ZZZ__FnCalls!H19","v":"2011"},{"$f":"ZZZ__FnCalls!F31","v":"Jan 2012"},{"$f":"ZZZ__FnCalls!F32","v":"Feb 2012"},{"$f":"ZZZ__FnCalls!F33","v":"Mar 2012"},{"$f":"ZZZ__FnCalls!F34","v":"Apr 2012"},{"$f":"ZZZ__FnCalls!F35","v":"May 2012"},{"$f":"ZZZ__FnCalls!F36","v":"Jun 2012"},{"$f":"ZZZ__FnCalls!F37","v":"Jul 2012"},{"$f":"ZZZ__FnCalls!F38","v":"Aug 2012"},{"$f":"ZZZ__FnCalls!F39","v":"Sep 2012"},{"$f":"ZZZ__FnCalls!F40","v":"Oct 2012"},{"$f":"ZZZ__FnCalls!F41","v":"Nov 2012"},{"$f":"ZZZ__FnCalls!F42","v":"Dec 2012"},{"$f":"ZZZ__FnCalls!H31","v":"2012"},{"$f":"ZZZ__FnCalls!F43","v":"Jan 2013"},{"$f":"ZZZ__FnCalls!F44","v":"Feb 2013"},{"$f":"ZZZ__FnCalls!F45","v":"Mar 2013"},{"$f":"ZZZ__FnCalls!F46","v":"Apr 2013"},{"$f":"ZZZ__FnCalls!F47","v":"May 2013"},{"$f":"ZZZ__FnCalls!F48","v":"Jun 2013"},{"$f":"ZZZ__FnCalls!F49","v":"Jul 2013"},{"$f":"ZZZ__FnCalls!F50","v":"Aug 2013"},{"$f":"ZZZ__FnCalls!F51","v":"Sep 2013"},{"$f":"ZZZ__FnCalls!F52","v":"Oct 2013"},{"$f":"ZZZ__FnCalls!F53","v":"Nov 2013"},{"$f":"ZZZ__FnCalls!F54","v":"Dec 2013"},{"$f":"ZZZ__FnCalls!H43","v":"2013"},{"$f":"ZZZ__FnCalls!F55","v":"Jan 2014"},{"$f":"ZZZ__FnCalls!F56","v":"Feb 2014"},{"$f":"ZZZ__FnCalls!F57","v":"Mar 2014"},{"$f":"ZZZ__FnCalls!F58","v":"Apr 2014"},{"$f":"ZZZ__FnCalls!F59","v":"May 2014"},{"$f":"ZZZ__FnCalls!F60","v":"Jun 2014"},{"$f":"ZZZ__FnCalls!F61","v":"Jul 2014"},{"$f":"ZZZ__FnCalls!F62","v":"Aug 2014"},{"$f":"ZZZ__FnCalls!F63","v":"Sep 2014"},{"$f":"ZZZ__FnCalls!F64","v":"Oct 2014"},{"$f":"ZZZ__FnCalls!F65","v":"Nov 2014"},{"$f":"ZZZ__FnCalls!F66","v":"Dec 2014"},{"$f":"ZZZ__FnCalls!H55","v":"2014"},{"$f":"ZZZ__FnCalls!F67","v":"Jan 2015"},{"$f":"ZZZ__FnCalls!F68","v":"Feb 2015"},{"$f":"ZZZ__FnCalls!F69","v":"Mar 2015"},{"$f":"ZZZ__FnCalls!F70","v":"Apr 2015"},{"$f":"ZZZ__FnCalls!F71","v":"May 2015"},{"$f":"ZZZ__FnCalls!F72","v":"Jun 2015"},{"$f":"ZZZ__FnCalls!F73","v":"Jul 2015"},{"$f":"ZZZ__FnCalls!F74","v":"Aug 2015"},{"$f":"ZZZ__FnCalls!F75","v":"Sep 2015"},{"$f":"ZZZ__FnCalls!F76","v":"Oct 2015"},{"$f":"ZZZ__FnCalls!F77","v":"Nov 2015"},{"$f":"ZZZ__FnCalls!F78","v":"Dec 2015"},{"$f":"ZZZ__FnCalls!H67","v":"2015"},{"$f":"ZZZ__FnCalls!F79","v":"Jan 2016"},{"$f":"ZZZ__FnCalls!F80","v":"Feb 2016"},{"$f":"ZZZ__FnCalls!F81","v":"Mar 2016"},{"$f":"ZZZ__FnCalls!F82","v":"Apr 2016"},{"$f":"ZZZ__FnCalls!F83","v":"May 2016"},{"$f":"ZZZ__FnCalls!F84","v":"Jun 2016"},{"$f":"ZZZ__FnCalls!F85","v":"Jul 2016"},{"$f":"ZZZ__FnCalls!F86","v":"Aug 2016"},{"$f":"ZZZ__FnCalls!F87","v":"Sep 2016"},{"$f":"ZZZ__FnCalls!F88","v":"Oct 2016"},{"$f":"ZZZ__FnCalls!F89","v":"Nov 2016"},{"$f":"ZZZ__FnCalls!F90","v":"Dec 2016"},{"$f":"ZZZ__FnCalls!H79","v":"2016"},{"$f":"ZZZ__FnCalls!F91","v":"Jan 2017"},{"$f":"ZZZ__FnCalls!F92","v":"Feb 2017"},{"$f":"ZZZ__FnCalls!F93","v":"Mar 2017"},{"$f":"ZZZ__FnCalls!F94","v":"Apr 2017"},{"$f":"ZZZ__FnCalls!F95","v":"May 2017"},{"$f":"ZZZ__FnCalls!F96","v":"Jun 2017"},{"$f":"ZZZ__FnCalls!F97","v":"Jul 2017"},{"$f":"ZZZ__FnCalls!F98","v":"Aug 2017"},{"$f":"ZZZ__FnCalls!F99","v":"Sep 2017"},{"$f":"ZZZ__FnCalls!F100","v":"Oct 2017"},{"$f":"ZZZ__FnCalls!F101","v":"Nov 2017"},{"$f":"ZZZ__FnCalls!F102","v":"Dec 2017"},{"$f":"ZZZ__FnCalls!H91","v":"2017"},{"$f":"ZZZ__FnCalls!F103","v":"Jan 2018"},{"$f":"ZZZ__FnCalls!F104","v":"Feb 2018"},{"$f":"ZZZ__FnCalls!F105","v":"Mar 2018"},{"$f":"ZZZ__FnCalls!F106","v":"Apr 2018"},{"$f":"ZZZ__FnCalls!F107","v":"May 2018"},{"$f":"ZZZ__FnCalls!F108","v":"Jun 2018"},{"$f":"ZZZ__FnCalls!F109","v":"Jul 2018"},{"$f":"ZZZ__FnCalls!F110","v":"Aug 2018"},{"$f":"ZZZ__FnCalls!F111","v":"Sep 2018"},{"$f":"ZZZ__FnCalls!F112","v":"Oct 2018"},{"$f":"ZZZ__FnCalls!F113","v":"Nov 2018"},{"$f":"ZZZ__FnCalls!F114","v":"Dec 2018"},{"$f":"ZZZ__FnCalls!H103","v":"2018"},{"$f":"ZZZ__FnCalls!F115","v":"Jan 2019"},{"$f":"ZZZ__FnCalls!F116","v":"Feb 2019"},{"$f":"ZZZ__FnCalls!F117","v":"Mar 2019"},{"$f":"ZZZ__FnCalls!F118","v":"Apr 2019"},{"$f":"ZZZ__FnCalls!F119","v":"May 2019"},{"$f":"ZZZ__FnCalls!F120","v":"Jun 2019"},{"$f":"ZZZ__FnCalls!F121","v":"Jul 2019"},{"$f":"ZZZ__FnCalls!F122","v":"Aug 2019"},{"$f":"ZZZ__FnCalls!F123","v":"Sep 2019"},{"$f":"ZZZ__FnCalls!F124","v":"Oct 2019"},{"$f":"ZZZ__FnCalls!F125","v":"Nov 2019"},{"$f":"ZZZ__FnCalls!F126","v":"Dec 2019"},{"$f":"ZZZ__FnCalls!H115","v":"2019"},{"$f":"ZZZ__FnCalls!F127","v":"Jan 2020"},{"$f":"ZZZ__FnCalls!F128","v":"Feb 2020"},{"$f":"ZZZ__FnCalls!F129","v":"Mar 2020"},{"$f":"ZZZ__FnCalls!F130","v":"Apr 2020"},{"$f":"ZZZ__FnCalls!F131","v":"May 2020"},{"$f":"ZZZ__FnCalls!F132","v":"Jun 2020"},{"$f":"ZZZ__FnCalls!F133","v":"Jul 2020"},{"$f":"ZZZ__FnCalls!F134","v":"Aug 2020"},{"$f":"ZZZ__FnCalls!F135","v":"Sep 2020"},{"$f":"ZZZ__FnCalls!F136","v":"Oct 2020"},{"$f":"ZZZ__FnCalls!F137","v":"Nov 2020"},{"$f":"ZZZ__FnCalls!F138","v":"Dec 2020"},{"$f":"ZZZ__FnCalls!H127","v":"2020"}]
[null,{"$f":"ZZZ__FnCalls!A7","v":"2010-01-01"},{"$f":"ZZZ__FnCalls!A8","v":"2010-02-01"},{"$f":"ZZZ__FnCalls!A9","v":"2010-03-01"},{"$f":"ZZZ__FnCalls!A10","v":"2010-04-01"},{"$f":"ZZZ__FnCalls!A11","v":"2010-05-01"},{"$f":"ZZZ__FnCalls!A12","v":"2010-06-01"},{"$f":"ZZZ__FnCalls!A13","v":"2010-07-01"},{"$f":"ZZZ__FnCalls!A14","v":"2010-08-01"},{"$f":"ZZZ__FnCalls!A15","v":"2010-09-01"},{"$f":"ZZZ__FnCalls!A16","v":"2010-10-01"},{"$f":"ZZZ__FnCalls!A17","v":"2010-11-01"},{"$f":"ZZZ__FnCalls!A18","v":"2010-12-01"},{"$f":"ZZZ__FnCalls!A7","v":"2010-01-01"},{"$f":"ZZZ__FnCalls!A19","v":"2011-01-01"},{"$f":"ZZZ__FnCalls!A20","v":"2011-02-01"},{"$f":"ZZZ__FnCalls!A21","v":"2011-03-01"},{"$f":"ZZZ__FnCalls!A22","v":"2011-04-01"},{"$f":"ZZZ__FnCalls!A23","v":"2011-05-01"},{"$f":"ZZZ__FnCalls!A24","v":"2011-06-01"},{"$f":"ZZZ__FnCalls!A25","v":"2011-07-01"},{"$f":"ZZZ__FnCalls!A26","v":"2011-08-01"},{"$f":"ZZZ__FnCalls!A27","v":"2011-09-01"},{"$f":"ZZZ__FnCalls!A28","v":"2011-10-01"},{"$f":"ZZZ__FnCalls!A29","v":"2011-11-01"},{"$f":"ZZZ__FnCalls!A30","v":"2011-12-01"},{"$f":"ZZZ__FnCalls!A19","v":"2011-01-01"},{"$f":"ZZZ__FnCalls!A31","v":"2012-01-01"},{"$f":"ZZZ__FnCalls!A32","v":"2012-02-01"},{"$f":"ZZZ__FnCalls!A33","v":"2012-03-01"},{"$f":"ZZZ__FnCalls!A34","v":"2012-04-01"},{"$f":"ZZZ__FnCalls!A35","v":"2012-05-01"},{"$f":"ZZZ__FnCalls!A36","v":"2012-06-01"},{"$f":"ZZZ__FnCalls!A37","v":"2012-07-01"},{"$f":"ZZZ__FnCalls!A38","v":"2012-08-01"},{"$f":"ZZZ__FnCalls!A39","v":"2012-09-01"},{"$f":"ZZZ__FnCalls!A40","v":"2012-10-01"},{"$f":"ZZZ__FnCalls!A41","v":"2012-11-01"},{"$f":"ZZZ__FnCalls!A42","v":"2012-12-01"},{"$f":"ZZZ__FnCalls!A31","v":"2012-01-01"},{"$f":"ZZZ__FnCalls!A43","v":"2013-01-01"},{"$f":"ZZZ__FnCalls!A44","v":"2013-02-01"},{"$f":"ZZZ__FnCalls!A45","v":"2013-03-01"},{"$f":"ZZZ__FnCalls!A46","v":"2013-04-01"},{"$f":"ZZZ__FnCalls!A47","v":"2013-05-01"},{"$f":"ZZZ__FnCalls!A48","v":"2013-06-01"},{"$f":"ZZZ__FnCalls!A49","v":"2013-07-01"},{"$f":"ZZZ__FnCalls!A50","v":"2013-08-01"},{"$f":"ZZZ__FnCalls!A51","v":"2013-09-01"},{"$f":"ZZZ__FnCalls!A52","v":"2013-10-01"},{"$f":"ZZZ__FnCalls!A53","v":"2013-11-01"},{"$f":"ZZZ__FnCalls!A54","v":"2013-12-01"},{"$f":"ZZZ__FnCalls!A43","v":"2013-01-01"},{"$f":"ZZZ__FnCalls!A55","v":"2014-01-01"},{"$f":"ZZZ__FnCalls!A56","v":"2014-02-01"},{"$f":"ZZZ__FnCalls!A57","v":"2014-03-01"},{"$f":"ZZZ__FnCalls!A58","v":"2014-04-01"},{"$f":"ZZZ__FnCalls!A59","v":"2014-05-01"},{"$f":"ZZZ__FnCalls!A60","v":"2014-06-01"},{"$f":"ZZZ__FnCalls!A61","v":"2014-07-01"},{"$f":"ZZZ__FnCalls!A62","v":"2014-08-01"},{"$f":"ZZZ__FnCalls!A63","v":"2014-09-01"},{"$f":"ZZZ__FnCalls!A64","v":"2014-10-01"},{"$f":"ZZZ__FnCalls!A65","v":"2014-11-01"},{"$f":"ZZZ__FnCalls!A66","v":"2014-12-01"},{"$f":"ZZZ__FnCalls!A55","v":"2014-01-01"},{"$f":"ZZZ__FnCalls!A67","v":"2015-01-01"},{"$f":"ZZZ__FnCalls!A68","v":"2015-02-01"},{"$f":"ZZZ__FnCalls!A69","v":"2015-03-01"},{"$f":"ZZZ__FnCalls!A70","v":"2015-04-01"},{"$f":"ZZZ__FnCalls!A71","v":"2015-05-01"},{"$f":"ZZZ__FnCalls!A72","v":"2015-06-01"},{"$f":"ZZZ__FnCalls!A73","v":"2015-07-01"},{"$f":"ZZZ__FnCalls!A74","v":"2015-08-01"},{"$f":"ZZZ__FnCalls!A75","v":"2015-09-01"},{"$f":"ZZZ__FnCalls!A76","v":"2015-10-01"},{"$f":"ZZZ__FnCalls!A77","v":"2015-11-01"},{"$f":"ZZZ__FnCalls!A78","v":"2015-12-01"},{"$f":"ZZZ__FnCalls!A67","v":"2015-01-01"},{"$f":"ZZZ__FnCalls!A79","v":"2016-01-01"},{"$f":"ZZZ__FnCalls!A80","v":"2016-02-01"},{"$f":"ZZZ__FnCalls!A81","v":"2016-03-01"},{"$f":"ZZZ__FnCalls!A82","v":"2016-04-01"},{"$f":"ZZZ__FnCalls!A83","v":"2016-05-01"},{"$f":"ZZZ__FnCalls!A84","v":"2016-06-01"},{"$f":"ZZZ__FnCalls!A85","v":"2016-07-01"},{"$f":"ZZZ__FnCalls!A86","v":"2016-08-01"},{"$f":"ZZZ__FnCalls!A87","v":"2016-09-01"},{"$f":"ZZZ__FnCalls!A88","v":"2016-10-01"},{"$f":"ZZZ__FnCalls!A89","v":"2016-11-01"},{"$f":"ZZZ__FnCalls!A90","v":"2016-12-01"},{"$f":"ZZZ__FnCalls!A79","v":"2016-01-01"},{"$f":"ZZZ__FnCalls!A91","v":"2017-01-01"},{"$f":"ZZZ__FnCalls!A92","v":"2017-02-01"},{"$f":"ZZZ__FnCalls!A93","v":"2017-03-01"},{"$f":"ZZZ__FnCalls!A94","v":"2017-04-01"},{"$f":"ZZZ__FnCalls!A95","v":"2017-05-01"},{"$f":"ZZZ__FnCalls!A96","v":"2017-06-01"},{"$f":"ZZZ__FnCalls!A97","v":"2017-07-01"},{"$f":"ZZZ__FnCalls!A98","v":"2017-08-01"},{"$f":"ZZZ__FnCalls!A99","v":"2017-09-01"},{"$f":"ZZZ__FnCalls!A100","v":"2017-10-01"},{"$f":"ZZZ__FnCalls!A101","v":"2017-11-01"},{"$f":"ZZZ__FnCalls!A102","v":"2017-12-01"},{"$f":"ZZZ__FnCalls!A91","v":"2017-01-01"},{"$f":"ZZZ__FnCalls!A103","v":"2018-01-01"},{"$f":"ZZZ__FnCalls!A104","v":"2018-02-01"},{"$f":"ZZZ__FnCalls!A105","v":"2018-03-01"},{"$f":"ZZZ__FnCalls!A106","v":"2018-04-01"},{"$f":"ZZZ__FnCalls!A107","v":"2018-05-01"},{"$f":"ZZZ__FnCalls!A108","v":"2018-06-01"},{"$f":"ZZZ__FnCalls!A109","v":"2018-07-01"},{"$f":"ZZZ__FnCalls!A110","v":"2018-08-01"},{"$f":"ZZZ__FnCalls!A111","v":"2018-09-01"},{"$f":"ZZZ__FnCalls!A112","v":"2018-10-01"},{"$f":"ZZZ__FnCalls!A113","v":"2018-11-01"},{"$f":"ZZZ__FnCalls!A114","v":"2018-12-01"},{"$f":"ZZZ__FnCalls!A103","v":"2018-01-01"},{"$f":"ZZZ__FnCalls!A115","v":"2019-01-01"},{"$f":"ZZZ__FnCalls!A116","v":"2019-02-01"},{"$f":"ZZZ__FnCalls!A117","v":"2019-03-01"},{"$f":"ZZZ__FnCalls!A118","v":"2019-04-01"},{"$f":"ZZZ__FnCalls!A119","v":"2019-05-01"},{"$f":"ZZZ__FnCalls!A120","v":"2019-06-01"},{"$f":"ZZZ__FnCalls!A121","v":"2019-07-01"},{"$f":"ZZZ__FnCalls!A122","v":"2019-08-01"},{"$f":"ZZZ__FnCalls!A123","v":"2019-09-01"},{"$f":"ZZZ__FnCalls!A124","v":"2019-10-01"},{"$f":"ZZZ__FnCalls!A125","v":"2019-11-01"},{"$f":"ZZZ__FnCalls!A126","v":"2019-12-01"},{"$f":"ZZZ__FnCalls!A115","v":"2019-01-01"},{"$f":"ZZZ__FnCalls!A127","v":"2020-01-01"},{"$f":"ZZZ__FnCalls!A128","v":"2020-02-01"},{"$f":"ZZZ__FnCalls!A129","v":"2020-03-01"},{"$f":"ZZZ__FnCalls!A130","v":"2020-04-01"},{"$f":"ZZZ__FnCalls!A131","v":"2020-05-01"},{"$f":"ZZZ__FnCalls!A132","v":"2020-06-01"},{"$f":"ZZZ__FnCalls!A133","v":"2020-07-01"},{"$f":"ZZZ__FnCalls!A134","v":"2020-08-01"},{"$f":"ZZZ__FnCalls!A135","v":"2020-09-01"},{"$f":"ZZZ__FnCalls!A136","v":"2020-10-01"},{"$f":"ZZZ__FnCalls!A137","v":"2020-11-01"},{"$f":"ZZZ__FnCalls!A138","v":"2020-12-01"},{"$f":"ZZZ__FnCalls!A127","v":"2020-01-01"}]
[{"$f":"\"Output_Potential_2\"","v":"Output_Potential_2"}]
[null,{"$f":"ZZZ__FnCalls!F7","v":"Jan 2010"},{"$f":"ZZZ__FnCalls!F8","v":"Feb 2010"},{"$f":"ZZZ__FnCalls!F9","v":"Mar 2010"},{"$f":"ZZZ__FnCalls!F10","v":"Apr 2010"},{"$f":"ZZZ__FnCalls!F11","v":"May 2010"},{"$f":"ZZZ__FnCalls!F12","v":"Jun 2010"},{"$f":"ZZZ__FnCalls!F13","v":"Jul 2010"},{"$f":"ZZZ__FnCalls!F14","v":"Aug 2010"},{"$f":"ZZZ__FnCalls!F15","v":"Sep 2010"},{"$f":"ZZZ__FnCalls!F16","v":"Oct 2010"},{"$f":"ZZZ__FnCalls!F17","v":"Nov 2010"},{"$f":"ZZZ__FnCalls!F18","v":"Dec 2010"},{"$f":"ZZZ__FnCalls!H7","v":"2010"},{"$f":"ZZZ__FnCalls!F19","v":"Jan 2011"},{"$f":"ZZZ__FnCalls!F20","v":"Feb 2011"},{"$f":"ZZZ__FnCalls!F21","v":"Mar 2011"},{"$f":"ZZZ__FnCalls!F22","v":"Apr 2011"},{"$f":"ZZZ__FnCalls!F23","v":"May 2011"},{"$f":"ZZZ__FnCalls!F24","v":"Jun 2011"},{"$f":"ZZZ__FnCalls!F25","v":"Jul 2011"},{"$f":"ZZZ__FnCalls!F26","v":"Aug 2011"},{"$f":"ZZZ__FnCalls!F27","v":"Sep 2011"},{"$f":"ZZZ__FnCalls!F28","v":"Oct 2011"},{"$f":"ZZZ__FnCalls!F29","v":"Nov 2011"},{"$f":"ZZZ__FnCalls!F30","v":"Dec 2011"},{"$f":"ZZZ__FnCalls!H19","v":"2011"},{"$f":"ZZZ__FnCalls!F31","v":"Jan 2012"},{"$f":"ZZZ__FnCalls!F32","v":"Feb 2012"},{"$f":"ZZZ__FnCalls!F33","v":"Mar 2012"},{"$f":"ZZZ__FnCalls!F34","v":"Apr 2012"},{"$f":"ZZZ__FnCalls!F35","v":"May 2012"},{"$f":"ZZZ__FnCalls!F36","v":"Jun 2012"},{"$f":"ZZZ__FnCalls!F37","v":"Jul 2012"},{"$f":"ZZZ__FnCalls!F38","v":"Aug 2012"},{"$f":"ZZZ__FnCalls!F39","v":"Sep 2012"},{"$f":"ZZZ__FnCalls!F40","v":"Oct 2012"},{"$f":"ZZZ__FnCalls!F41","v":"Nov 2012"},{"$f":"ZZZ__FnCalls!F42","v":"Dec 2012"},{"$f":"ZZZ__FnCalls!H31","v":"2012"},{"$f":"ZZZ__FnCalls!F43","v":"Jan 2013"},{"$f":"ZZZ__FnCalls!F44","v":"Feb 2013"},{"$f":"ZZZ__FnCalls!F45","v":"Mar 2013"},{"$f":"ZZZ__FnCalls!F46","v":"Apr 2013"},{"$f":"ZZZ__FnCalls!F47","v":"May 2013"},{"$f":"ZZZ__FnCalls!F48","v":"Jun 2013"},{"$f":"ZZZ__FnCalls!F49","v":"Jul 2013"},{"$f":"ZZZ__FnCalls!F50","v":"Aug 2013"},{"$f":"ZZZ__FnCalls!F51","v":"Sep 2013"},{"$f":"ZZZ__FnCalls!F52","v":"Oct 2013"},{"$f":"ZZZ__FnCalls!F53","v":"Nov 2013"},{"$f":"ZZZ__FnCalls!F54","v":"Dec 2013"},{"$f":"ZZZ__FnCalls!H43","v":"2013"},{"$f":"ZZZ__FnCalls!F55","v":"Jan 2014"},{"$f":"ZZZ__FnCalls!F56","v":"Feb 2014"},{"$f":"ZZZ__FnCalls!F57","v":"Mar 2014"},{"$f":"ZZZ__FnCalls!F58","v":"Apr 2014"},{"$f":"ZZZ__FnCalls!F59","v":"May 2014"},{"$f":"ZZZ__FnCalls!F60","v":"Jun 2014"},{"$f":"ZZZ__FnCalls!F61","v":"Jul 2014"},{"$f":"ZZZ__FnCalls!F62","v":"Aug 2014"},{"$f":"ZZZ__FnCalls!F63","v":"Sep 2014"},{"$f":"ZZZ__FnCalls!F64","v":"Oct 2014"},{"$f":"ZZZ__FnCalls!F65","v":"Nov 2014"},{"$f":"ZZZ__FnCalls!F66","v":"Dec 2014"},{"$f":"ZZZ__FnCalls!H55","v":"2014"},{"$f":"ZZZ__FnCalls!F67","v":"Jan 2015"},{"$f":"ZZZ__FnCalls!F68","v":"Feb 2015"},{"$f":"ZZZ__FnCalls!F69","v":"Mar 2015"},{"$f":"ZZZ__FnCalls!F70","v":"Apr 2015"},{"$f":"ZZZ__FnCalls!F71","v":"May 2015"},{"$f":"ZZZ__FnCalls!F72","v":"Jun 2015"},{"$f":"ZZZ__FnCalls!F73","v":"Jul 2015"},{"$f":"ZZZ__FnCalls!F74","v":"Aug 2015"},{"$f":"ZZZ__FnCalls!F75","v":"Sep 2015"},{"$f":"ZZZ__FnCalls!F76","v":"Oct 2015"},{"$f":"ZZZ__FnCalls!F77","v":"Nov 2015"},{"$f":"ZZZ__FnCalls!F78","v":"Dec 2015"},{"$f":"ZZZ__FnCalls!H67","v":"2015"},{"$f":"ZZZ__FnCalls!F79","v":"Jan 2016"},{"$f":"ZZZ__FnCalls!F80","v":"Feb 2016"},{"$f":"ZZZ__FnCalls!F81","v":"Mar 2016"},{"$f":"ZZZ__FnCalls!F82","v":"Apr 2016"},{"$f":"ZZZ__FnCalls!F83","v":"May 2016"},{"$f":"ZZZ__FnCalls!F84","v":"Jun 2016"},{"$f":"ZZZ__FnCalls!F85","v":"Jul 2016"},{"$f":"ZZZ__FnCalls!F86","v":"Aug 2016"},{"$f":"ZZZ__FnCalls!F87","v":"Sep 2016"},{"$f":"ZZZ__FnCalls!F88","v":"Oct 2016"},{"$f":"ZZZ__FnCalls!F89","v":"Nov 2016"},{"$f":"ZZZ__FnCalls!F90","v":"Dec 2016"},{"$f":"ZZZ__FnCalls!H79","v":"2016"},{"$f":"ZZZ__FnCalls!F91","v":"Jan 2017"},{"$f":"ZZZ__FnCalls!F92","v":"Feb 2017"},{"$f":"ZZZ__FnCalls!F93","v":"Mar 2017"},{"$f":"ZZZ__FnCalls!F94","v":"Apr 2017"},{"$f":"ZZZ__FnCalls!F95","v":"May 2017"},{"$f":"ZZZ__FnCalls!F96","v":"Jun 2017"},{"$f":"ZZZ__FnCalls!F97","v":"Jul 2017"},{"$f":"ZZZ__FnCalls!F98","v":"Aug 2017"},{"$f":"ZZZ__FnCalls!F99","v":"Sep 2017"},{"$f":"ZZZ__FnCalls!F100","v":"Oct 2017"},{"$f":"ZZZ__FnCalls!F101","v":"Nov 2017"},{"$f":"ZZZ__FnCalls!F102","v":"Dec 2017"},{"$f":"ZZZ__FnCalls!H91","v":"2017"},{"$f":"ZZZ__FnCalls!F103","v":"Jan 2018"},{"$f":"ZZZ__FnCalls!F104","v":"Feb 2018"},{"$f":"ZZZ__FnCalls!F105","v":"Mar 2018"},{"$f":"ZZZ__FnCalls!F106","v":"Apr 2018"},{"$f":"ZZZ__FnCalls!F107","v":"May 2018"},{"$f":"ZZZ__FnCalls!F108","v":"Jun 2018"},{"$f":"ZZZ__FnCalls!F109","v":"Jul 2018"},{"$f":"ZZZ__FnCalls!F110","v":"Aug 2018"},{"$f":"ZZZ__FnCalls!F111","v":"Sep 2018"},{"$f":"ZZZ__FnCalls!F112","v":"Oct 2018"},{"$f":"ZZZ__FnCalls!F113","v":"Nov 2018"},{"$f":"ZZZ__FnCalls!F114","v":"Dec 2018"},{"$f":"ZZZ__FnCalls!H103","v":"2018"},{"$f":"ZZZ__FnCalls!F115","v":"Jan 2019"},{"$f":"ZZZ__FnCalls!F116","v":"Feb 2019"},{"$f":"ZZZ__FnCalls!F117","v":"Mar 2019"},{"$f":"ZZZ__FnCalls!F118","v":"Apr 2019"},{"$f":"ZZZ__FnCalls!F119","v":"May 2019"},{"$f":"ZZZ__FnCalls!F120","v":"Jun 2019"},{"$f":"ZZZ__FnCalls!F121","v":"Jul 2019"},{"$f":"ZZZ__FnCalls!F122","v":"Aug 2019"},{"$f":"ZZZ__FnCalls!F123","v":"Sep 2019"},{"$f":"ZZZ__FnCalls!F124","v":"Oct 2019"},{"$f":"ZZZ__FnCalls!F125","v":"Nov 2019"},{"$f":"ZZZ__FnCalls!F126","v":"Dec 2019"},{"$f":"ZZZ__FnCalls!H115","v":"2019"},{"$f":"ZZZ__FnCalls!F127","v":"Jan 2020"},{"$f":"ZZZ__FnCalls!F128","v":"Feb 2020"},{"$f":"ZZZ__FnCalls!F129","v":"Mar 2020"},{"$f":"ZZZ__FnCalls!F130","v":"Apr 2020"},{"$f":"ZZZ__FnCalls!F131","v":"May 2020"},{"$f":"ZZZ__FnCalls!F132","v":"Jun 2020"},{"$f":"ZZZ__FnCalls!F133","v":"Jul 2020"},{"$f":"ZZZ__FnCalls!F134","v":"Aug 2020"},{"$f":"ZZZ__FnCalls!F135","v":"Sep 2020"},{"$f":"ZZZ__FnCalls!F136","v":"Oct 2020"},{"$f":"ZZZ__FnCalls!F137","v":"Nov 2020"},{"$f":"ZZZ__FnCalls!F138","v":"Dec 2020"},{"$f":"ZZZ__FnCalls!H127","v":"2020"}]
[null,{"$f":"ZZZ__FnCalls!F7","v":"Jan 2010"},{"$f":"ZZZ__FnCalls!F8","v":"Feb 2010"},{"$f":"ZZZ__FnCalls!F9","v":"Mar 2010"},{"$f":"ZZZ__FnCalls!F10","v":"Apr 2010"},{"$f":"ZZZ__FnCalls!F11","v":"May 2010"},{"$f":"ZZZ__FnCalls!F12","v":"Jun 2010"},{"$f":"ZZZ__FnCalls!F13","v":"Jul 2010"},{"$f":"ZZZ__FnCalls!F14","v":"Aug 2010"},{"$f":"ZZZ__FnCalls!F15","v":"Sep 2010"},{"$f":"ZZZ__FnCalls!F16","v":"Oct 2010"},{"$f":"ZZZ__FnCalls!F17","v":"Nov 2010"},{"$f":"ZZZ__FnCalls!F18","v":"Dec 2010"},{"$f":"ZZZ__FnCalls!F7","v":"Jan 2010"},{"$f":"ZZZ__FnCalls!F19","v":"Jan 2011"},{"$f":"ZZZ__FnCalls!F20","v":"Feb 2011"},{"$f":"ZZZ__FnCalls!F21","v":"Mar 2011"},{"$f":"ZZZ__FnCalls!F22","v":"Apr 2011"},{"$f":"ZZZ__FnCalls!F23","v":"May 2011"},{"$f":"ZZZ__FnCalls!F24","v":"Jun 2011"},{"$f":"ZZZ__FnCalls!F25","v":"Jul 2011"},{"$f":"ZZZ__FnCalls!F26","v":"Aug 2011"},{"$f":"ZZZ__FnCalls!F27","v":"Sep 2011"},{"$f":"ZZZ__FnCalls!F28","v":"Oct 2011"},{"$f":"ZZZ__FnCalls!F29","v":"Nov 2011"},{"$f":"ZZZ__FnCalls!F30","v":"Dec 2011"},{"$f":"ZZZ__FnCalls!F19","v":"Jan 2011"},{"$f":"ZZZ__FnCalls!F31","v":"Jan 2012"},{"$f":"ZZZ__FnCalls!F32","v":"Feb 2012"},{"$f":"ZZZ__FnCalls!F33","v":"Mar 2012"},{"$f":"ZZZ__FnCalls!F34","v":"Apr 2012"},{"$f":"ZZZ__FnCalls!F35","v":"May 2012"},{"$f":"ZZZ__FnCalls!F36","v":"Jun 2012"},{"$f":"ZZZ__FnCalls!F37","v":"Jul 2012"},{"$f":"ZZZ__FnCalls!F38","v":"Aug 2012"},{"$f":"ZZZ__FnCalls!F39","v":"Sep 2012"},{"$f":"ZZZ__FnCalls!F40","v":"Oct 2012"},{"$f":"ZZZ__FnCalls!F41","v":"Nov 2012"},{"$f":"ZZZ__FnCalls!F42","v":"Dec 2012"},{"$f":"ZZZ__FnCalls!F31","v":"Jan 2012"},{"$f":"ZZZ__FnCalls!F43","v":"Jan 2013"},{"$f":"ZZZ__FnCalls!F44","v":"Feb 2013"},{"$f":"ZZZ__FnCalls!F45","v":"Mar 2013"},{"$f":"ZZZ__FnCalls!F46","v":"Apr 2013"},{"$f":"ZZZ__FnCalls!F47","v":"May 2013"},{"$f":"ZZZ__FnCalls!F48","v":"Jun 2013"},{"$f":"ZZZ__FnCalls!F49","v":"Jul 2013"},{"$f":"ZZZ__FnCalls!F50","v":"Aug 2013"},{"$f":"ZZZ__FnCalls!F51","v":"Sep 2013"},{"$f":"ZZZ__FnCalls!F52","v":"Oct 2013"},{"$f":"ZZZ__FnCalls!F53","v":"Nov 2013"},{"$f":"ZZZ__FnCalls!F54","v":"Dec 2013"},{"$f":"ZZZ__FnCalls!F43","v":"Jan 2013"},{"$f":"ZZZ__FnCalls!F55","v":"Jan 2014"},{"$f":"ZZZ__FnCalls!F56","v":"Feb 2014"},{"$f":"ZZZ__FnCalls!F57","v":"Mar 2014"},{"$f":"ZZZ__FnCalls!F58","v":"Apr 2014"},{"$f":"ZZZ__FnCalls!F59","v":"May 2014"},{"$f":"ZZZ__FnCalls!F60","v":"Jun 2014"},{"$f":"ZZZ__FnCalls!F61","v":"Jul 2014"},{"$f":"ZZZ__FnCalls!F62","v":"Aug 2014"},{"$f":"ZZZ__FnCalls!F63","v":"Sep 2014"},{"$f":"ZZZ__FnCalls!F64","v":"Oct 2014"},{"$f":"ZZZ__FnCalls!F65","v":"Nov 2014"},{"$f":"ZZZ__FnCalls!F66","v":"Dec 2014"},{"$f":"ZZZ__FnCalls!F55","v":"Jan 2014"},{"$f":"ZZZ__FnCalls!F67","v":"Jan 2015"},{"$f":"ZZZ__FnCalls!F68","v":"Feb 2015"},{"$f":"ZZZ__FnCalls!F69","v":"Mar 2015"},{"$f":"ZZZ__FnCalls!F70","v":"Apr 2015"},{"$f":"ZZZ__FnCalls!F71","v":"May 2015"},{"$f":"ZZZ__FnCalls!F72","v":"Jun 2015"},{"$f":"ZZZ__FnCalls!F73","v":"Jul 2015"},{"$f":"ZZZ__FnCalls!F74","v":"Aug 2015"},{"$f":"ZZZ__FnCalls!F75","v":"Sep 2015"},{"$f":"ZZZ__FnCalls!F76","v":"Oct 2015"},{"$f":"ZZZ__FnCalls!F77","v":"Nov 2015"},{"$f":"ZZZ__FnCalls!F78","v":"Dec 2015"},{"$f":"ZZZ__FnCalls!F67","v":"Jan 2015"},{"$f":"ZZZ__FnCalls!F79","v":"Jan 2016"},{"$f":"ZZZ__FnCalls!F80","v":"Feb 2016"},{"$f":"ZZZ__FnCalls!F81","v":"Mar 2016"},{"$f":"ZZZ__FnCalls!F82","v":"Apr 2016"},{"$f":"ZZZ__FnCalls!F83","v":"May 2016"},{"$f":"ZZZ__FnCalls!F84","v":"Jun 2016"},{"$f":"ZZZ__FnCalls!F85","v":"Jul 2016"},{"$f":"ZZZ__FnCalls!F86","v":"Aug 2016"},{"$f":"ZZZ__FnCalls!F87","v":"Sep 2016"},{"$f":"ZZZ__FnCalls!F88","v":"Oct 2016"},{"$f":"ZZZ__FnCalls!F89","v":"Nov 2016"},{"$f":"ZZZ__FnCalls!F90","v":"Dec 2016"},{"$f":"ZZZ__FnCalls!F79","v":"Jan 2016"},{"$f":"ZZZ__FnCalls!F91","v":"Jan 2017"},{"$f":"ZZZ__FnCalls!F92","v":"Feb 2017"},{"$f":"ZZZ__FnCalls!F93","v":"Mar 2017"},{"$f":"ZZZ__FnCalls!F94","v":"Apr 2017"},{"$f":"ZZZ__FnCalls!F95","v":"May 2017"},{"$f":"ZZZ__FnCalls!F96","v":"Jun 2017"},{"$f":"ZZZ__FnCalls!F97","v":"Jul 2017"},{"$f":"ZZZ__FnCalls!F98","v":"Aug 2017"},{"$f":"ZZZ__FnCalls!F99","v":"Sep 2017"},{"$f":"ZZZ__FnCalls!F100","v":"Oct 2017"},{"$f":"ZZZ__FnCalls!F101","v":"Nov 2017"},{"$f":"ZZZ__FnCalls!F102","v":"Dec 2017"},{"$f":"ZZZ__FnCalls!F91","v":"Jan 2017"},{"$f":"ZZZ__FnCalls!F103","v":"Jan 2018"},{"$f":"ZZZ__FnCalls!F104","v":"Feb 2018"},{"$f":"ZZZ__FnCalls!F105","v":"Mar 2018"},{"$f":"ZZZ__FnCalls!F106","v":"Apr 2018"},{"$f":"ZZZ__FnCalls!F107","v":"May 2018"},{"$f":"ZZZ__FnCalls!F108","v":"Jun 2018"},{"$f":"ZZZ__FnCalls!F109","v":"Jul 2018"},{"$f":"ZZZ__FnCalls!F110","v":"Aug 2018"},{"$f":"ZZZ__FnCalls!F111","v":"Sep 2018"},{"$f":"ZZZ__FnCalls!F112","v":"Oct 2018"},{"$f":"ZZZ__FnCalls!F113","v":"Nov 2018"},{"$f":"ZZZ__FnCalls!F114","v":"Dec 2018"},{"$f":"ZZZ__FnCalls!F103","v":"Jan 2018"},{"$f":"ZZZ__FnCalls!F115","v":"Jan 2019"},{"$f":"ZZZ__FnCalls!F116","v":"Feb 2019"},{"$f":"ZZZ__FnCalls!F117","v":"Mar 2019"},{"$f":"ZZZ__FnCalls!F118","v":"Apr 2019"},{"$f":"ZZZ__FnCalls!F119","v":"May 2019"},{"$f":"ZZZ__FnCalls!F120","v":"Jun 2019"},{"$f":"ZZZ__FnCalls!F121","v":"Jul 2019"},{"$f":"ZZZ__FnCalls!F122","v":"Aug 2019"},{"$f":"ZZZ__FnCalls!F123","v":"Sep 2019"},{"$f":"ZZZ__FnCalls!F124","v":"Oct 2019"},{"$f":"ZZZ__FnCalls!F125","v":"Nov 2019"},{"$f":"ZZZ__FnCalls!F126","v":"Dec 2019"},{"$f":"ZZZ__FnCalls!F115","v":"Jan 2019"},{"$f":"ZZZ__FnCalls!F127","v":"Jan 2020"},{"$f":"ZZZ__FnCalls!F128","v":"Feb 2020"},{"$f":"ZZZ__FnCalls!F129","v":"Mar 2020"},{"$f":"ZZZ__FnCalls!F130","v":"Apr 2020"},{"$f":"ZZZ__FnCalls!F131","v":"May 2020"},{"$f":"ZZZ__FnCalls!F132","v":"Jun 2020"},{"$f":"ZZZ__FnCalls!F133","v":"Jul 2020"},{"$f":"ZZZ__FnCalls!F134","v":"Aug 2020"},{"$f":"ZZZ__FnCalls!F135","v":"Sep 2020"},{"$f":"ZZZ__FnCalls!F136","v":"Oct 2020"},{"$f":"ZZZ__FnCalls!F137","v":"Nov 2020"},{"$f":"ZZZ__FnCalls!F138","v":"Dec 2020"},{"$f":"ZZZ__FnCalls!F127","v":"Jan 2020"}]
[{"$f":"\"Employment_1\"","v":"Employment_1"}]
[null,{"$f":"ZZZ__FnCalls!F7","v":"Jan 2010"},{"$f":"ZZZ__FnCalls!F8","v":"Feb 2010"},{"$f":"ZZZ__FnCalls!F9","v":"Mar 2010"},{"$f":"ZZZ__FnCalls!F10","v":"Apr 2010"},{"$f":"ZZZ__FnCalls!F11","v":"May 2010"},{"$f":"ZZZ__FnCalls!F12","v":"Jun 2010"},{"$f":"ZZZ__FnCalls!F13","v":"Jul 2010"},{"$f":"ZZZ__FnCalls!F14","v":"Aug 2010"},{"$f":"ZZZ__FnCalls!F15","v":"Sep 2010"},{"$f":"ZZZ__FnCalls!F16","v":"Oct 2010"},{"$f":"ZZZ__FnCalls!F17","v":"Nov 2010"},{"$f":"ZZZ__FnCalls!F18","v":"Dec 2010"},{"$f":"ZZZ__FnCalls!H7","v":"2010"},{"$f":"ZZZ__FnCalls!F19","v":"Jan 2011"},{"$f":"ZZZ__FnCalls!F20","v":"Feb 2011"},{"$f":"ZZZ__FnCalls!F21","v":"Mar 2011"},{"$f":"ZZZ__FnCalls!F22","v":"Apr 2011"},{"$f":"ZZZ__FnCalls!F23","v":"May 2011"},{"$f":"ZZZ__FnCalls!F24","v":"Jun 2011"},{"$f":"ZZZ__FnCalls!F25","v":"Jul 2011"},{"$f":"ZZZ__FnCalls!F26","v":"Aug 2011"},{"$f":"ZZZ__FnCalls!F27","v":"Sep 2011"},{"$f":"ZZZ__FnCalls!F28","v":"Oct 2011"},{"$f":"ZZZ__FnCalls!F29","v":"Nov 2011"},{"$f":"ZZZ__FnCalls!F30","v":"Dec 2011"},{"$f":"ZZZ__FnCalls!H19","v":"2011"},{"$f":"ZZZ__FnCalls!F31","v":"Jan 2012"},{"$f":"ZZZ__FnCalls!F32","v":"Feb 2012"},{"$f":"ZZZ__FnCalls!F33","v":"Mar 2012"},{"$f":"ZZZ__FnCalls!F34","v":"Apr 2012"},{"$f":"ZZZ__FnCalls!F35","v":"May 2012"},{"$f":"ZZZ__FnCalls!F36","v":"Jun 2012"},{"$f":"ZZZ__FnCalls!F37","v":"Jul 2012"},{"$f":"ZZZ__FnCalls!F38","v":"Aug 2012"},{"$f":"ZZZ__FnCalls!F39","v":"Sep 2012"},{"$f":"ZZZ__FnCalls!F40","v":"Oct 2012"},{"$f":"ZZZ__FnCalls!F41","v":"Nov 2012"},{"$f":"ZZZ__FnCalls!F42","v":"Dec 2012"},{"$f":"ZZZ__FnCalls!H31","v":"2012"},{"$f":"ZZZ__FnCalls!F43","v":"Jan 2013"},{"$f":"ZZZ__FnCalls!F44","v":"Feb 2013"},{"$f":"ZZZ__FnCalls!F45","v":"Mar 2013"},{"$f":"ZZZ__FnCalls!F46","v":"Apr 2013"},{"$f":"ZZZ__FnCalls!F47","v":"May 2013"},{"$f":"ZZZ__FnCalls!F48","v":"Jun 2013"},{"$f":"ZZZ__FnCalls!F49","v":"Jul 2013"},{"$f":"ZZZ__FnCalls!F50","v":"Aug 2013"},{"$f":"ZZZ__FnCalls!F51","v":"Sep 2013"},{"$f":"ZZZ__FnCalls!F52","v":"Oct 2013"},{"$f":"ZZZ__FnCalls!F53","v":"Nov 2013"},{"$f":"ZZZ__FnCalls!F54","v":"Dec 2013"},{"$f":"ZZZ__FnCalls!H43","v":"2013"},{"$f":"ZZZ__FnCalls!F55","v":"Jan 2014"},{"$f":"ZZZ__FnCalls!F56","v":"Feb 2014"},{"$f":"ZZZ__FnCalls!F57","v":"Mar 2014"},{"$f":"ZZZ__FnCalls!F58","v":"Apr 2014"},{"$f":"ZZZ__FnCalls!F59","v":"May 2014"},{"$f":"ZZZ__FnCalls!F60","v":"Jun 2014"},{"$f":"ZZZ__FnCalls!F61","v":"Jul 2014"},{"$f":"ZZZ__FnCalls!F62","v":"Aug 2014"},{"$f":"ZZZ__FnCalls!F63","v":"Sep 2014"},{"$f":"ZZZ__FnCalls!F64","v":"Oct 2014"},{"$f":"ZZZ__FnCalls!F65","v":"Nov 2014"},{"$f":"ZZZ__FnCalls!F66","v":"Dec 2014"},{"$f":"ZZZ__FnCalls!H55","v":"2014"},{"$f":"ZZZ__FnCalls!F67","v":"Jan 2015"},{"$f":"ZZZ__FnCalls!F68","v":"Feb 2015"},{"$f":"ZZZ__FnCalls!F69","v":"Mar 2015"},{"$f":"ZZZ__FnCalls!F70","v":"Apr 2015"},{"$f":"ZZZ__FnCalls!F71","v":"May 2015"},{"$f":"ZZZ__FnCalls!F72","v":"Jun 2015"},{"$f":"ZZZ__FnCalls!F73","v":"Jul 2015"},{"$f":"ZZZ__FnCalls!F74","v":"Aug 2015"},{"$f":"ZZZ__FnCalls!F75","v":"Sep 2015"},{"$f":"ZZZ__FnCalls!F76","v":"Oct 2015"},{"$f":"ZZZ__FnCalls!F77","v":"Nov 2015"},{"$f":"ZZZ__FnCalls!F78","v":"Dec 2015"},{"$f":"ZZZ__FnCalls!H67","v":"2015"},{"$f":"ZZZ__FnCalls!F79","v":"Jan 2016"},{"$f":"ZZZ__FnCalls!F80","v":"Feb 2016"},{"$f":"ZZZ__FnCalls!F81","v":"Mar 2016"},{"$f":"ZZZ__FnCalls!F82","v":"Apr 2016"},{"$f":"ZZZ__FnCalls!F83","v":"May 2016"},{"$f":"ZZZ__FnCalls!F84","v":"Jun 2016"},{"$f":"ZZZ__FnCalls!F85","v":"Jul 2016"},{"$f":"ZZZ__FnCalls!F86","v":"Aug 2016"},{"$f":"ZZZ__FnCalls!F87","v":"Sep 2016"},{"$f":"ZZZ__FnCalls!F88","v":"Oct 2016"},{"$f":"ZZZ__FnCalls!F89","v":"Nov 2016"},{"$f":"ZZZ__FnCalls!F90","v":"Dec 2016"},{"$f":"ZZZ__FnCalls!H79","v":"2016"},{"$f":"ZZZ__FnCalls!F91","v":"Jan 2017"},{"$f":"ZZZ__FnCalls!F92","v":"Feb 2017"},{"$f":"ZZZ__FnCalls!F93","v":"Mar 2017"},{"$f":"ZZZ__FnCalls!F94","v":"Apr 2017"},{"$f":"ZZZ__FnCalls!F95","v":"May 2017"},{"$f":"ZZZ__FnCalls!F96","v":"Jun 2017"},{"$f":"ZZZ__FnCalls!F97","v":"Jul 2017"},{"$f":"ZZZ__FnCalls!F98","v":"Aug 2017"},{"$f":"ZZZ__FnCalls!F99","v":"Sep 2017"},{"$f":"ZZZ__FnCalls!F100","v":"Oct 2017"},{"$f":"ZZZ__FnCalls!F101","v":"Nov 2017"},{"$f":"ZZZ__FnCalls!F102","v":"Dec 2017"},{"$f":"ZZZ__FnCalls!H91","v":"2017"},{"$f":"ZZZ__FnCalls!F103","v":"Jan 2018"},{"$f":"ZZZ__FnCalls!F104","v":"Feb 2018"},{"$f":"ZZZ__FnCalls!F105","v":"Mar 2018"},{"$f":"ZZZ__FnCalls!F106","v":"Apr 2018"},{"$f":"ZZZ__FnCalls!F107","v":"May 2018"},{"$f":"ZZZ__FnCalls!F108","v":"Jun 2018"},{"$f":"ZZZ__FnCalls!F109","v":"Jul 2018"},{"$f":"ZZZ__FnCalls!F110","v":"Aug 2018"},{"$f":"ZZZ__FnCalls!F111","v":"Sep 2018"},{"$f":"ZZZ__FnCalls!F112","v":"Oct 2018"},{"$f":"ZZZ__FnCalls!F113","v":"Nov 2018"},{"$f":"ZZZ__FnCalls!F114","v":"Dec 2018"},{"$f":"ZZZ__FnCalls!H103","v":"2018"},{"$f":"ZZZ__FnCalls!F115","v":"Jan 2019"},{"$f":"ZZZ__FnCalls!F116","v":"Feb 2019"},{"$f":"ZZZ__FnCalls!F117","v":"Mar 2019"},{"$f":"ZZZ__FnCalls!F118","v":"Apr 2019"},{"$f":"ZZZ__FnCalls!F119","v":"May 2019"},{"$f":"ZZZ__FnCalls!F120","v":"Jun 2019"},{"$f":"ZZZ__FnCalls!F121","v":"Jul 2019"},{"$f":"ZZZ__FnCalls!F122","v":"Aug 2019"},{"$f":"ZZZ__FnCalls!F123","v":"Sep 2019"},{"$f":"ZZZ__FnCalls!F124","v":"Oct 2019"},{"$f":"ZZZ__FnCalls!F125","v":"Nov 2019"},{"$f":"ZZZ__FnCalls!F126","v":"Dec 2019"},{"$f":"ZZZ__FnCalls!H115","v":"2019"},{"$f":"ZZZ__FnCalls!F127","v":"Jan 2020"},{"$f":"ZZZ__FnCalls!F128","v":"Feb 2020"},{"$f":"ZZZ__FnCalls!F129","v":"Mar 2020"},{"$f":"ZZZ__FnCalls!F130","v":"Apr 2020"},{"$f":"ZZZ__FnCalls!F131","v":"May 2020"},{"$f":"ZZZ__FnCalls!F132","v":"Jun 2020"},{"$f":"ZZZ__FnCalls!F133","v":"Jul 2020"},{"$f":"ZZZ__FnCalls!F134","v":"Aug 2020"},{"$f":"ZZZ__FnCalls!F135","v":"Sep 2020"},{"$f":"ZZZ__FnCalls!F136","v":"Oct 2020"},{"$f":"ZZZ__FnCalls!F137","v":"Nov 2020"},{"$f":"ZZZ__FnCalls!F138","v":"Dec 2020"},{"$f":"ZZZ__FnCalls!H127","v":"2020"}]
[null,{"$f":"ZZZ__FnCalls!A7","v":"2010-01-01"},{"$f":"ZZZ__FnCalls!A8","v":"2010-02-01"},{"$f":"ZZZ__FnCalls!A9","v":"2010-03-01"},{"$f":"ZZZ__FnCalls!A10","v":"2010-04-01"},{"$f":"ZZZ__FnCalls!A11","v":"2010-05-01"},{"$f":"ZZZ__FnCalls!A12","v":"2010-06-01"},{"$f":"ZZZ__FnCalls!A13","v":"2010-07-01"},{"$f":"ZZZ__FnCalls!A14","v":"2010-08-01"},{"$f":"ZZZ__FnCalls!A15","v":"2010-09-01"},{"$f":"ZZZ__FnCalls!A16","v":"2010-10-01"},{"$f":"ZZZ__FnCalls!A17","v":"2010-11-01"},{"$f":"ZZZ__FnCalls!A18","v":"2010-12-01"},{"$f":"ZZZ__FnCalls!A7","v":"2010-01-01"},{"$f":"ZZZ__FnCalls!A19","v":"2011-01-01"},{"$f":"ZZZ__FnCalls!A20","v":"2011-02-01"},{"$f":"ZZZ__FnCalls!A21","v":"2011-03-01"},{"$f":"ZZZ__FnCalls!A22","v":"2011-04-01"},{"$f":"ZZZ__FnCalls!A23","v":"2011-05-01"},{"$f":"ZZZ__FnCalls!A24","v":"2011-06-01"},{"$f":"ZZZ__FnCalls!A25","v":"2011-07-01"},{"$f":"ZZZ__FnCalls!A26","v":"2011-08-01"},{"$f":"ZZZ__FnCalls!A27","v":"2011-09-01"},{"$f":"ZZZ__FnCalls!A28","v":"2011-10-01"},{"$f":"ZZZ__FnCalls!A29","v":"2011-11-01"},{"$f":"ZZZ__FnCalls!A30","v":"2011-12-01"},{"$f":"ZZZ__FnCalls!A19","v":"2011-01-01"},{"$f":"ZZZ__FnCalls!A31","v":"2012-01-01"},{"$f":"ZZZ__FnCalls!A32","v":"2012-02-01"},{"$f":"ZZZ__FnCalls!A33","v":"2012-03-01"},{"$f":"ZZZ__FnCalls!A34","v":"2012-04-01"},{"$f":"ZZZ__FnCalls!A35","v":"2012-05-01"},{"$f":"ZZZ__FnCalls!A36","v":"2012-06-01"},{"$f":"ZZZ__FnCalls!A37","v":"2012-07-01"},{"$f":"ZZZ__FnCalls!A38","v":"2012-08-01"},{"$f":"ZZZ__FnCalls!A39","v":"2012-09-01"},{"$f":"ZZZ__FnCalls!A40","v":"2012-10-01"},{"$f":"ZZZ__FnCalls!A41","v":"2012-11-01"},{"$f":"ZZZ__FnCalls!A42","v":"2012-12-01"},{"$f":"ZZZ__FnCalls!A31","v":"2012-01-01"},{"$f":"ZZZ__FnCalls!A43","v":"2013-01-01"},{"$f":"ZZZ__FnCalls!A44","v":"2013-02-01"},{"$f":"ZZZ__FnCalls!A45","v":"2013-03-01"},{"$f":"ZZZ__FnCalls!A46","v":"2013-04-01"},{"$f":"ZZZ__FnCalls!A47","v":"2013-05-01"},{"$f":"ZZZ__FnCalls!A48","v":"2013-06-01"},{"$f":"ZZZ__FnCalls!A49","v":"2013-07-01"},{"$f":"ZZZ__FnCalls!A50","v":"2013-08-01"},{"$f":"ZZZ__FnCalls!A51","v":"2013-09-01"},{"$f":"ZZZ__FnCalls!A52","v":"2013-10-01"},{"$f":"ZZZ__FnCalls!A53","v":"2013-11-01"},{"$f":"ZZZ__FnCalls!A54","v":"2013-12-01"},{"$f":"ZZZ__FnCalls!A43","v":"2013-01-01"},{"$f":"ZZZ__FnCalls!A55","v":"2014-01-01"},{"$f":"ZZZ__FnCalls!A56","v":"2014-02-01"},{"$f":"ZZZ__FnCalls!A57","v":"2014-03-01"},{"$f":"ZZZ__FnCalls!A58","v":"2014-04-01"},{"$f":"ZZZ__FnCalls!A59","v":"2014-05-01"},{"$f":"ZZZ__FnCalls!A60","v":"2014-06-01"},{"$f":"ZZZ__FnCalls!A61","v":"2014-07-01"},{"$f":"ZZZ__FnCalls!A62","v":"2014-08-01"},{"$f":"ZZZ__FnCalls!A63","v":"2014-09-01"},{"$f":"ZZZ__FnCalls!A64","v":"2014-10-01"},{"$f":"ZZZ__FnCalls!A65","v":"2014-11-01"},{"$f":"ZZZ__FnCalls!A66","v":"2014-12-01"},{"$f":"ZZZ__FnCalls!A55","v":"2014-01-01"},{"$f":"ZZZ__FnCalls!A67","v":"2015-01-01"},{"$f":"ZZZ__FnCalls!A68","v":"2015-02-01"},{"$f":"ZZZ__FnCalls!A69","v":"2015-03-01"},{"$f":"ZZZ__FnCalls!A70","v":"2015-04-01"},{"$f":"ZZZ__FnCalls!A71","v":"2015-05-01"},{"$f":"ZZZ__FnCalls!A72","v":"2015-06-01"},{"$f":"ZZZ__FnCalls!A73","v":"2015-07-01"},{"$f":"ZZZ__FnCalls!A74","v":"2015-08-01"},{"$f":"ZZZ__FnCalls!A75","v":"2015-09-01"},{"$f":"ZZZ__FnCalls!A76","v":"2015-10-01"},{"$f":"ZZZ__FnCalls!A77","v":"2015-11-01"},{"$f":"ZZZ__FnCalls!A78","v":"2015-12-01"},{"$f":"ZZZ__FnCalls!A67","v":"2015-01-01"},{"$f":"ZZZ__FnCalls!A79","v":"2016-01-01"},{"$f":"ZZZ__FnCalls!A80","v":"2016-02-01"},{"$f":"ZZZ__FnCalls!A81","v":"2016-03-01"},{"$f":"ZZZ__FnCalls!A82","v":"2016-04-01"},{"$f":"ZZZ__FnCalls!A83","v":"2016-05-01"},{"$f":"ZZZ__FnCalls!A84","v":"2016-06-01"},{"$f":"ZZZ__FnCalls!A85","v":"2016-07-01"},{"$f":"ZZZ__FnCalls!A86","v":"2016-08-01"},{"$f":"ZZZ__FnCalls!A87","v":"2016-09-01"},{"$f":"ZZZ__FnCalls!A88","v":"2016-10-01"},{"$f":"ZZZ__FnCalls!A89","v":"2016-11-01"},{"$f":"ZZZ__FnCalls!A90","v":"2016-12-01"},{"$f":"ZZZ__FnCalls!A79","v":"2016-01-01"},{"$f":"ZZZ__FnCalls!A91","v":"2017-01-01"},{"$f":"ZZZ__FnCalls!A92","v":"2017-02-01"},{"$f":"ZZZ__FnCalls!A93","v":"2017-03-01"},{"$f":"ZZZ__FnCalls!A94","v":"2017-04-01"},{"$f":"ZZZ__FnCalls!A95","v":"2017-05-01"},{"$f":"ZZZ__FnCalls!A96","v":"2017-06-01"},{"$f":"ZZZ__FnCalls!A97","v":"2017-07-01"},{"$f":"ZZZ__FnCalls!A98","v":"2017-08-01"},{"$f":"ZZZ__FnCalls!A99","v":"2017-09-01"},{"$f":"ZZZ__FnCalls!A100","v":"2017-10-01"},{"$f":"ZZZ__FnCalls!A101","v":"2017-11-01"},{"$f":"ZZZ__FnCalls!A102","v":"2017-12-01"},{"$f":"ZZZ__FnCalls!A91","v":"2017-01-01"},{"$f":"ZZZ__FnCalls!A103","v":"2018-01-01"},{"$f":"ZZZ__FnCalls!A104","v":"2018-02-01"},{"$f":"ZZZ__FnCalls!A105","v":"2018-03-01"},{"$f":"ZZZ__FnCalls!A106","v":"2018-04-01"},{"$f":"ZZZ__FnCalls!A107","v":"2018-05-01"},{"$f":"ZZZ__FnCalls!A108","v":"2018-06-01"},{"$f":"ZZZ__FnCalls!A109","v":"2018-07-01"},{"$f":"ZZZ__FnCalls!A110","v":"2018-08-01"},{"$f":"ZZZ__FnCalls!A111","v":"2018-09-01"},{"$f":"ZZZ__FnCalls!A112","v":"2018-10-01"},{"$f":"ZZZ__FnCalls!A113","v":"2018-11-01"},{"$f":"ZZZ__FnCalls!A114","v":"2018-12-01"},{"$f":"ZZZ__FnCalls!A103","v":"2018-01-01"},{"$f":"ZZZ__FnCalls!A115","v":"2019-01-01"},{"$f":"ZZZ__FnCalls!A116","v":"2019-02-01"},{"$f":"ZZZ__FnCalls!A117","v":"2019-03-01"},{"$f":"ZZZ__FnCalls!A118","v":"2019-04-01"},{"$f":"ZZZ__FnCalls!A119","v":"2019-05-01"},{"$f":"ZZZ__FnCalls!A120","v":"2019-06-01"},{"$f":"ZZZ__FnCalls!A121","v":"2019-07-01"},{"$f":"ZZZ__FnCalls!A122","v":"2019-08-01"},{"$f":"ZZZ__FnCalls!A123","v":"2019-09-01"},{"$f":"ZZZ__FnCalls!A124","v":"2019-10-01"},{"$f":"ZZZ__FnCalls!A125","v":"2019-11-01"},{"$f":"ZZZ__FnCalls!A126","v":"2019-12-01"},{"$f":"ZZZ__FnCalls!A115","v":"2019-01-01"},{"$f":"ZZZ__FnCalls!A127","v":"2020-01-01"},{"$f":"ZZZ__FnCalls!A128","v":"2020-02-01"},{"$f":"ZZZ__FnCalls!A129","v":"2020-03-01"},{"$f":"ZZZ__FnCalls!A130","v":"2020-04-01"},{"$f":"ZZZ__FnCalls!A131","v":"2020-05-01"},{"$f":"ZZZ__FnCalls!A132","v":"2020-06-01"},{"$f":"ZZZ__FnCalls!A133","v":"2020-07-01"},{"$f":"ZZZ__FnCalls!A134","v":"2020-08-01"},{"$f":"ZZZ__FnCalls!A135","v":"2020-09-01"},{"$f":"ZZZ__FnCalls!A136","v":"2020-10-01"},{"$f":"ZZZ__FnCalls!A137","v":"2020-11-01"},{"$f":"ZZZ__FnCalls!A138","v":"2020-12-01"},{"$f":"ZZZ__FnCalls!A127","v":"2020-01-01"}]
[{"$f":"\"Employment_2\"","v":"Employment_2"}]
[null,{"$f":"ZZZ__FnCalls!F7","v":"Jan 2010"},{"$f":"ZZZ__FnCalls!F8","v":"Feb 2010"},{"$f":"ZZZ__FnCalls!F9","v":"Mar 2010"},{"$f":"ZZZ__FnCalls!F10","v":"Apr 2010"},{"$f":"ZZZ__FnCalls!F11","v":"May 2010"},{"$f":"ZZZ__FnCalls!F12","v":"Jun 2010"},{"$f":"ZZZ__FnCalls!F13","v":"Jul 2010"},{"$f":"ZZZ__FnCalls!F14","v":"Aug 2010"},{"$f":"ZZZ__FnCalls!F15","v":"Sep 2010"},{"$f":"ZZZ__FnCalls!F16","v":"Oct 2010"},{"$f":"ZZZ__FnCalls!F17","v":"Nov 2010"},{"$f":"ZZZ__FnCalls!F18","v":"Dec 2010"},{"$f":"ZZZ__FnCalls!H7","v":"2010"},{"$f":"ZZZ__FnCalls!F19","v":"Jan 2011"},{"$f":"ZZZ__FnCalls!F20","v":"Feb 2011"},{"$f":"ZZZ__FnCalls!F21","v":"Mar 2011"},{"$f":"ZZZ__FnCalls!F22","v":"Apr 2011"},{"$f":"ZZZ__FnCalls!F23","v":"May 2011"},{"$f":"ZZZ__FnCalls!F24","v":"Jun 2011"},{"$f":"ZZZ__FnCalls!F25","v":"Jul 2011"},{"$f":"ZZZ__FnCalls!F26","v":"Aug 2011"},{"$f":"ZZZ__FnCalls!F27","v":"Sep 2011"},{"$f":"ZZZ__FnCalls!F28","v":"Oct 2011"},{"$f":"ZZZ__FnCalls!F29","v":"Nov 2011"},{"$f":"ZZZ__FnCalls!F30","v":"Dec 2011"},{"$f":"ZZZ__FnCalls!H19","v":"2011"},{"$f":"ZZZ__FnCalls!F31","v":"Jan 2012"},{"$f":"ZZZ__FnCalls!F32","v":"Feb 2012"},{"$f":"ZZZ__FnCalls!F33","v":"Mar 2012"},{"$f":"ZZZ__FnCalls!F34","v":"Apr 2012"},{"$f":"ZZZ__FnCalls!F35","v":"May 2012"},{"$f":"ZZZ__FnCalls!F36","v":"Jun 2012"},{"$f":"ZZZ__FnCalls!F37","v":"Jul 2012"},{"$f":"ZZZ__FnCalls!F38","v":"Aug 2012"},{"$f":"ZZZ__FnCalls!F39","v":"Sep 2012"},{"$f":"ZZZ__FnCalls!F40","v":"Oct 2012"},{"$f":"ZZZ__FnCalls!F41","v":"Nov 2012"},{"$f":"ZZZ__FnCalls!F42","v":"Dec 2012"},{"$f":"ZZZ__FnCalls!H31","v":"2012"},{"$f":"ZZZ__FnCalls!F43","v":"Jan 2013"},{"$f":"ZZZ__FnCalls!F44","v":"Feb 2013"},{"$f":"ZZZ__FnCalls!F45","v":"Mar 2013"},{"$f":"ZZZ__FnCalls!F46","v":"Apr 2013"},{"$f":"ZZZ__FnCalls!F47","v":"May 2013"},{"$f":"ZZZ__FnCalls!F48","v":"Jun 2013"},{"$f":"ZZZ__FnCalls!F49","v":"Jul 2013"},{"$f":"ZZZ__FnCalls!F50","v":"Aug 2013"},{"$f":"ZZZ__FnCalls!F51","v":"Sep 2013"},{"$f":"ZZZ__FnCalls!F52","v":"Oct 2013"},{"$f":"ZZZ__FnCalls!F53","v":"Nov 2013"},{"$f":"ZZZ__FnCalls!F54","v":"Dec 2013"},{"$f":"ZZZ__FnCalls!H43","v":"2013"},{"$f":"ZZZ__FnCalls!F55","v":"Jan 2014"},{"$f":"ZZZ__FnCalls!F56","v":"Feb 2014"},{"$f":"ZZZ__FnCalls!F57","v":"Mar 2014"},{"$f":"ZZZ__FnCalls!F58","v":"Apr 2014"},{"$f":"ZZZ__FnCalls!F59","v":"May 2014"},{"$f":"ZZZ__FnCalls!F60","v":"Jun 2014"},{"$f":"ZZZ__FnCalls!F61","v":"Jul 2014"},{"$f":"ZZZ__FnCalls!F62","v":"Aug 2014"},{"$f":"ZZZ__FnCalls!F63","v":"Sep 2014"},{"$f":"ZZZ__FnCalls!F64","v":"Oct 2014"},{"$f":"ZZZ__FnCalls!F65","v":"Nov 2014"},{"$f":"ZZZ__FnCalls!F66","v":"Dec 2014"},{"$f":"ZZZ__FnCalls!H55","v":"2014"},{"$f":"ZZZ__FnCalls!F67","v":"Jan 2015"},{"$f":"ZZZ__FnCalls!F68","v":"Feb 2015"},{"$f":"ZZZ__FnCalls!F69","v":"Mar 2015"},{"$f":"ZZZ__FnCalls!F70","v":"Apr 2015"},{"$f":"ZZZ__FnCalls!F71","v":"May 2015"},{"$f":"ZZZ__FnCalls!F72","v":"Jun 2015"},{"$f":"ZZZ__FnCalls!F73","v":"Jul 2015"},{"$f":"ZZZ__FnCalls!F74","v":"Aug 2015"},{"$f":"ZZZ__FnCalls!F75","v":"Sep 2015"},{"$f":"ZZZ__FnCalls!F76","v":"Oct 2015"},{"$f":"ZZZ__FnCalls!F77","v":"Nov 2015"},{"$f":"ZZZ__FnCalls!F78","v":"Dec 2015"},{"$f":"ZZZ__FnCalls!H67","v":"2015"},{"$f":"ZZZ__FnCalls!F79","v":"Jan 2016"},{"$f":"ZZZ__FnCalls!F80","v":"Feb 2016"},{"$f":"ZZZ__FnCalls!F81","v":"Mar 2016"},{"$f":"ZZZ__FnCalls!F82","v":"Apr 2016"},{"$f":"ZZZ__FnCalls!F83","v":"May 2016"},{"$f":"ZZZ__FnCalls!F84","v":"Jun 2016"},{"$f":"ZZZ__FnCalls!F85","v":"Jul 2016"},{"$f":"ZZZ__FnCalls!F86","v":"Aug 2016"},{"$f":"ZZZ__FnCalls!F87","v":"Sep 2016"},{"$f":"ZZZ__FnCalls!F88","v":"Oct 2016"},{"$f":"ZZZ__FnCalls!F89","v":"Nov 2016"},{"$f":"ZZZ__FnCalls!F90","v":"Dec 2016"},{"$f":"ZZZ__FnCalls!H79","v":"2016"},{"$f":"ZZZ__FnCalls!F91","v":"Jan 2017"},{"$f":"ZZZ__FnCalls!F92","v":"Feb 2017"},{"$f":"ZZZ__FnCalls!F93","v":"Mar 2017"},{"$f":"ZZZ__FnCalls!F94","v":"Apr 2017"},{"$f":"ZZZ__FnCalls!F95","v":"May 2017"},{"$f":"ZZZ__FnCalls!F96","v":"Jun 2017"},{"$f":"ZZZ__FnCalls!F97","v":"Jul 2017"},{"$f":"ZZZ__FnCalls!F98","v":"Aug 2017"},{"$f":"ZZZ__FnCalls!F99","v":"Sep 2017"},{"$f":"ZZZ__FnCalls!F100","v":"Oct 2017"},{"$f":"ZZZ__FnCalls!F101","v":"Nov 2017"},{"$f":"ZZZ__FnCalls!F102","v":"Dec 2017"},{"$f":"ZZZ__FnCalls!H91","v":"2017"},{"$f":"ZZZ__FnCalls!F103","v":"Jan 2018"},{"$f":"ZZZ__FnCalls!F104","v":"Feb 2018"},{"$f":"ZZZ__FnCalls!F105","v":"Mar 2018"},{"$f":"ZZZ__FnCalls!F106","v":"Apr 2018"},{"$f":"ZZZ__FnCalls!F107","v":"May 2018"},{"$f":"ZZZ__FnCalls!F108","v":"Jun 2018"},{"$f":"ZZZ__FnCalls!F109","v":"Jul 2018"},{"$f":"ZZZ__FnCalls!F110","v":"Aug 2018"},{"$f":"ZZZ__FnCalls!F111","v":"Sep 2018"},{"$f":"ZZZ__FnCalls!F112","v":"Oct 2018"},{"$f":"ZZZ__FnCalls!F113","v":"Nov 2018"},{"$f":"ZZZ__FnCalls!F114","v":"Dec 2018"},{"$f":"ZZZ__FnCalls!H103","v":"2018"},{"$f":"ZZZ__FnCalls!F115","v":"Jan 2019"},{"$f":"ZZZ__FnCalls!F116","v":"Feb 2019"},{"$f":"ZZZ__FnCalls!F117","v":"Mar 2019"},{"$f":"ZZZ__FnCalls!F118","v":"Apr 2019"},{"$f":"ZZZ__FnCalls!F119","v":"May 2019"},{"$f":"ZZZ__FnCalls!F120","v":"Jun 2019"},{"$f":"ZZZ__FnCalls!F121","v":"Jul 2019"},{"$f":"ZZZ__FnCalls!F122","v":"Aug 2019"},{"$f":"ZZZ__FnCalls!F123","v":"Sep 2019"},{"$f":"ZZZ__FnCalls!F124","v":"Oct 2019"},{"$f":"ZZZ__FnCalls!F125","v":"Nov 2019"},{"$f":"ZZZ__FnCalls!F126","v":"Dec 2019"},{"$f":"ZZZ__FnCalls!H115","v":"2019"},{"$f":"ZZZ__FnCalls!F127","v":"Jan 2020"},{"$f":"ZZZ__FnCalls!F128","v":"Feb 2020"},{"$f":"ZZZ__FnCalls!F129","v":"Mar 2020"},{"$f":"ZZZ__FnCalls!F130","v":"Apr 2020"},{"$f":"ZZZ__FnCalls!F131","v":"May 2020"},{"$f":"ZZZ__FnCalls!F132","v":"Jun 2020"},{"$f":"ZZZ__FnCalls!F133","v":"Jul 2020"},{"$f":"ZZZ__FnCalls!F134","v":"Aug 2020"},{"$f":"ZZZ__FnCalls!F135","v":"Sep 2020"},{"$f":"ZZZ__FnCalls!F136","v":"Oct 2020"},{"$f":"ZZZ__FnCalls!F137","v":"Nov 2020"},{"$f":"ZZZ__FnCalls!F138","v":"Dec 2020"},{"$f":"ZZZ__FnCalls!H127","v":"2020"}]
[null,{"$f":"ZZZ__FnCalls!F7","v":"Jan 2010"},{"$f":"ZZZ__FnCalls!F8","v":"Feb 2010"},{"$f":"ZZZ__FnCalls!F9","v":"Mar 2010"},{"$f":"ZZZ__FnCalls!F10","v":"Apr 2010"},{"$f":"ZZZ__FnCalls!F11","v":"May 2010"},{"$f":"ZZZ__FnCalls!F12","v":"Jun 2010"},{"$f":"ZZZ__FnCalls!F13","v":"Jul 2010"},{"$f":"ZZZ__FnCalls!F14","v":"Aug 2010"},{"$f":"ZZZ__FnCalls!F15","v":"Sep 2010"},{"$f":"ZZZ__FnCalls!F16","v":"Oct 2010"},{"$f":"ZZZ__FnCalls!F17","v":"Nov 2010"},{"$f":"ZZZ__FnCalls!F18","v":"Dec 2010"},{"$f":"ZZZ__FnCalls!F7","v":"Jan 2010"},{"$f":"ZZZ__FnCalls!F19","v":"Jan 2011"},{"$f":"ZZZ__FnCalls!F20","v":"Feb 2011"},{"$f":"ZZZ__FnCalls!F21","v":"Mar 2011"},{"$f":"ZZZ__FnCalls!F22","v":"Apr 2011"},{"$f":"ZZZ__FnCalls!F23","v":"May 2011"},{"$f":"ZZZ__FnCalls!F24","v":"Jun 2011"},{"$f":"ZZZ__FnCalls!F25","v":"Jul 2011"},{"$f":"ZZZ__FnCalls!F26","v":"Aug 2011"},{"$f":"ZZZ__FnCalls!F27","v":"Sep 2011"},{"$f":"ZZZ__FnCalls!F28","v":"Oct 2011"},{"$f":"ZZZ__FnCalls!F29","v":"Nov 2011"},{"$f":"ZZZ__FnCalls!F30","v":"Dec 2011"},{"$f":"ZZZ__FnCalls!F19","v":"Jan 2011"},{"$f":"ZZZ__FnCalls!F31","v":"Jan 2012"},{"$f":"ZZZ__FnCalls!F32","v":"Feb 2012"},{"$f":"ZZZ__FnCalls!F33","v":"Mar 2012"},{"$f":"ZZZ__FnCalls!F34","v":"Apr 2012"},{"$f":"ZZZ__FnCalls!F35","v":"May 2012"},{"$f":"ZZZ__FnCalls!F36","v":"Jun 2012"},{"$f":"ZZZ__FnCalls!F37","v":"Jul 2012"},{"$f":"ZZZ__FnCalls!F38","v":"Aug 2012"},{"$f":"ZZZ__FnCalls!F39","v":"Sep 2012"},{"$f":"ZZZ__FnCalls!F40","v":"Oct 2012"},{"$f":"ZZZ__FnCalls!F41","v":"Nov 2012"},{"$f":"ZZZ__FnCalls!F42","v":"Dec 2012"},{"$f":"ZZZ__FnCalls!F31","v":"Jan 2012"},{"$f":"ZZZ__FnCalls!F43","v":"Jan 2013"},{"$f":"ZZZ__FnCalls!F44","v":"Feb 2013"},{"$f":"ZZZ__FnCalls!F45","v":"Mar 2013"},{"$f":"ZZZ__FnCalls!F46","v":"Apr 2013"},{"$f":"ZZZ__FnCalls!F47","v":"May 2013"},{"$f":"ZZZ__FnCalls!F48","v":"Jun 2013"},{"$f":"ZZZ__FnCalls!F49","v":"Jul 2013"},{"$f":"ZZZ__FnCalls!F50","v":"Aug 2013"},{"$f":"ZZZ__FnCalls!F51","v":"Sep 2013"},{"$f":"ZZZ__FnCalls!F52","v":"Oct 2013"},{"$f":"ZZZ__FnCalls!F53","v":"Nov 2013"},{"$f":"ZZZ__FnCalls!F54","v":"Dec 2013"},{"$f":"ZZZ__FnCalls!F43","v":"Jan 2013"},{"$f":"ZZZ__FnCalls!F55","v":"Jan 2014"},{"$f":"ZZZ__FnCalls!F56","v":"Feb 2014"},{"$f":"ZZZ__FnCalls!F57","v":"Mar 2014"},{"$f":"ZZZ__FnCalls!F58","v":"Apr 2014"},{"$f":"ZZZ__FnCalls!F59","v":"May 2014"},{"$f":"ZZZ__FnCalls!F60","v":"Jun 2014"},{"$f":"ZZZ__FnCalls!F61","v":"Jul 2014"},{"$f":"ZZZ__FnCalls!F62","v":"Aug 2014"},{"$f":"ZZZ__FnCalls!F63","v":"Sep 2014"},{"$f":"ZZZ__FnCalls!F64","v":"Oct 2014"},{"$f":"ZZZ__FnCalls!F65","v":"Nov 2014"},{"$f":"ZZZ__FnCalls!F66","v":"Dec 2014"},{"$f":"ZZZ__FnCalls!F55","v":"Jan 2014"},{"$f":"ZZZ__FnCalls!F67","v":"Jan 2015"},{"$f":"ZZZ__FnCalls!F68","v":"Feb 2015"},{"$f":"ZZZ__FnCalls!F69","v":"Mar 2015"},{"$f":"ZZZ__FnCalls!F70","v":"Apr 2015"},{"$f":"ZZZ__FnCalls!F71","v":"May 2015"},{"$f":"ZZZ__FnCalls!F72","v":"Jun 2015"},{"$f":"ZZZ__FnCalls!F73","v":"Jul 2015"},{"$f":"ZZZ__FnCalls!F74","v":"Aug 2015"},{"$f":"ZZZ__FnCalls!F75","v":"Sep 2015"},{"$f":"ZZZ__FnCalls!F76","v":"Oct 2015"},{"$f":"ZZZ__FnCalls!F77","v":"Nov 2015"},{"$f":"ZZZ__FnCalls!F78","v":"Dec 2015"},{"$f":"ZZZ__FnCalls!F67","v":"Jan 2015"},{"$f":"ZZZ__FnCalls!F79","v":"Jan 2016"},{"$f":"ZZZ__FnCalls!F80","v":"Feb 2016"},{"$f":"ZZZ__FnCalls!F81","v":"Mar 2016"},{"$f":"ZZZ__FnCalls!F82","v":"Apr 2016"},{"$f":"ZZZ__FnCalls!F83","v":"May 2016"},{"$f":"ZZZ__FnCalls!F84","v":"Jun 2016"},{"$f":"ZZZ__FnCalls!F85","v":"Jul 2016"},{"$f":"ZZZ__FnCalls!F86","v":"Aug 2016"},{"$f":"ZZZ__FnCalls!F87","v":"Sep 2016"},{"$f":"ZZZ__FnCalls!F88","v":"Oct 2016"},{"$f":"ZZZ__FnCalls!F89","v":"Nov 2016"},{"$f":"ZZZ__FnCalls!F90","v":"Dec 2016"},{"$f":"ZZZ__FnCalls!F79","v":"Jan 2016"},{"$f":"ZZZ__FnCalls!F91","v":"Jan 2017"},{"$f":"ZZZ__FnCalls!F92","v":"Feb 2017"},{"$f":"ZZZ__FnCalls!F93","v":"Mar 2017"},{"$f":"ZZZ__FnCalls!F94","v":"Apr 2017"},{"$f":"ZZZ__FnCalls!F95","v":"May 2017"},{"$f":"ZZZ__FnCalls!F96","v":"Jun 2017"},{"$f":"ZZZ__FnCalls!F97","v":"Jul 2017"},{"$f":"ZZZ__FnCalls!F98","v":"Aug 2017"},{"$f":"ZZZ__FnCalls!F99","v":"Sep 2017"},{"$f":"ZZZ__FnCalls!F100","v":"Oct 2017"},{"$f":"ZZZ__FnCalls!F101","v":"Nov 2017"},{"$f":"ZZZ__FnCalls!F102","v":"Dec 2017"},{"$f":"ZZZ__FnCalls!F91","v":"Jan 2017"},{"$f":"ZZZ__FnCalls!F103","v":"Jan 2018"},{"$f":"ZZZ__FnCalls!F104","v":"Feb 2018"},{"$f":"ZZZ__FnCalls!F105","v":"Mar 2018"},{"$f":"ZZZ__FnCalls!F106","v":"Apr 2018"},{"$f":"ZZZ__FnCalls!F107","v":"May 2018"},{"$f":"ZZZ__FnCalls!F108","v":"Jun 2018"},{"$f":"ZZZ__FnCalls!F109","v":"Jul 2018"},{"$f":"ZZZ__FnCalls!F110","v":"Aug 2018"},{"$f":"ZZZ__FnCalls!F111","v":"Sep 2018"},{"$f":"ZZZ__FnCalls!F112","v":"Oct 2018"},{"$f":"ZZZ__FnCalls!F113","v":"Nov 2018"},{"$f":"ZZZ__FnCalls!F114","v":"Dec 2018"},{"$f":"ZZZ__FnCalls!F103","v":"Jan 2018"},{"$f":"ZZZ__FnCalls!F115","v":"Jan 2019"},{"$f":"ZZZ__FnCalls!F116","v":"Feb 2019"},{"$f":"ZZZ__FnCalls!F117","v":"Mar 2019"},{"$f":"ZZZ__FnCalls!F118","v":"Apr 2019"},{"$f":"ZZZ__FnCalls!F119","v":"May 2019"},{"$f":"ZZZ__FnCalls!F120","v":"Jun 2019"},{"$f":"ZZZ__FnCalls!F121","v":"Jul 2019"},{"$f":"ZZZ__FnCalls!F122","v":"Aug 2019"},{"$f":"ZZZ__FnCalls!F123","v":"Sep 2019"},{"$f":"ZZZ__FnCalls!F124","v":"Oct 2019"},{"$f":"ZZZ__FnCalls!F125","v":"Nov 2019"},{"$f":"ZZZ__FnCalls!F126","v":"Dec 2019"},{"$f":"ZZZ__FnCalls!F115","v":"Jan 2019"},{"$f":"ZZZ__FnCalls!F127","v":"Jan 2020"},{"$f":"ZZZ__FnCalls!F128","v":"Feb 2020"},{"$f":"ZZZ__FnCalls!F129","v":"Mar 2020"},{"$f":"ZZZ__FnCalls!F130","v":"Apr 2020"},{"$f":"ZZZ__FnCalls!F131","v":"May 2020"},{"$f":"ZZZ__FnCalls!F132","v":"Jun 2020"},{"$f":"ZZZ__FnCalls!F133","v":"Jul 2020"},{"$f":"ZZZ__FnCalls!F134","v":"Aug 2020"},{"$f":"ZZZ__FnCalls!F135","v":"Sep 2020"},{"$f":"ZZZ__FnCalls!F136","v":"Oct 2020"},{"$f":"ZZZ__FnCalls!F137","v":"Nov 2020"},{"$f":"ZZZ__FnCalls!F138","v":"Dec 2020"},{"$f":"ZZZ__FnCalls!F127","v":"Jan 2020"}]
[{"$f":"\"Employment_Desired_1\"","v":"Employment_Desired_1"}]
[null,{"$f":"ZZZ__FnCalls!F7","v":"Jan 2010"},{"$f":"ZZZ__FnCalls!F8","v":"Feb 2010"},{"$f":"ZZZ__FnCalls!F9","v":"Mar 2010"},{"$f":"ZZZ__FnCalls!F10","v":"Apr 2010"},{"$f":"ZZZ__FnCalls!F11","v":"May 2010"},{"$f":"ZZZ__FnCalls!F12","v":"Jun 2010"},{"$f":"ZZZ__FnCalls!F13","v":"Jul 2010"},{"$f":"ZZZ__FnCalls!F14","v":"Aug 2010"},{"$f":"ZZZ__FnCalls!F15","v":"Sep 2010"},{"$f":"ZZZ__FnCalls!F16","v":"Oct 2010"},{"$f":"ZZZ__FnCalls!F17","v":"Nov 2010"},{"$f":"ZZZ__FnCalls!F18","v":"Dec 2010"},{"$f":"ZZZ__FnCalls!H7","v":"2010"},{"$f":"ZZZ__FnCalls!F19","v":"Jan 2011"},{"$f":"ZZZ__FnCalls!F20","v":"Feb 2011"},{"$f":"ZZZ__FnCalls!F21","v":"Mar 2011"},{"$f":"ZZZ__FnCalls!F22","v":"Apr 2011"},{"$f":"ZZZ__FnCalls!F23","v":"May 2011"},{"$f":"ZZZ__FnCalls!F24","v":"Jun 2011"},{"$f":"ZZZ__FnCalls!F25","v":"Jul 2011"},{"$f":"ZZZ__FnCalls!F26","v":"Aug 2011"},{"$f":"ZZZ__FnCalls!F27","v":"Sep 2011"},{"$f":"ZZZ__FnCalls!F28","v":"Oct 2011"},{"$f":"ZZZ__FnCalls!F29","v":"Nov 2011"},{"$f":"ZZZ__FnCalls!F30","v":"Dec 2011"},{"$f":"ZZZ__FnCalls!H19","v":"2011"},{"$f":"ZZZ__FnCalls!F31","v":"Jan 2012"},{"$f":"ZZZ__FnCalls!F32","v":"Feb 2012"},{"$f":"ZZZ__FnCalls!F33","v":"Mar 2012"},{"$f":"ZZZ__FnCalls!F34","v":"Apr 2012"},{"$f":"ZZZ__FnCalls!F35","v":"May 2012"},{"$f":"ZZZ__FnCalls!F36","v":"Jun 2012"},{"$f":"ZZZ__FnCalls!F37","v":"Jul 2012"},{"$f":"ZZZ__FnCalls!F38","v":"Aug 2012"},{"$f":"ZZZ__FnCalls!F39","v":"Sep 2012"},{"$f":"ZZZ__FnCalls!F40","v":"Oct 2012"},{"$f":"ZZZ__FnCalls!F41","v":"Nov 2012"},{"$f":"ZZZ__FnCalls!F42","v":"Dec 2012"},{"$f":"ZZZ__FnCalls!H31","v":"2012"},{"$f":"ZZZ__FnCalls!F43","v":"Jan 2013"},{"$f":"ZZZ__FnCalls!F44","v":"Feb 2013"},{"$f":"ZZZ__FnCalls!F45","v":"Mar 2013"},{"$f":"ZZZ__FnCalls!F46","v":"Apr 2013"},{"$f":"ZZZ__FnCalls!F47","v":"May 2013"},{"$f":"ZZZ__FnCalls!F48","v":"Jun 2013"},{"$f":"ZZZ__FnCalls!F49","v":"Jul 2013"},{"$f":"ZZZ__FnCalls!F50","v":"Aug 2013"},{"$f":"ZZZ__FnCalls!F51","v":"Sep 2013"},{"$f":"ZZZ__FnCalls!F52","v":"Oct 2013"},{"$f":"ZZZ__FnCalls!F53","v":"Nov 2013"},{"$f":"ZZZ__FnCalls!F54","v":"Dec 2013"},{"$f":"ZZZ__FnCalls!H43","v":"2013"},{"$f":"ZZZ__FnCalls!F55","v":"Jan 2014"},{"$f":"ZZZ__FnCalls!F56","v":"Feb 2014"},{"$f":"ZZZ__FnCalls!F57","v":"Mar 2014"},{"$f":"ZZZ__FnCalls!F58","v":"Apr 2014"},{"$f":"ZZZ__FnCalls!F59","v":"May 2014"},{"$f":"ZZZ__FnCalls!F60","v":"Jun 2014"},{"$f":"ZZZ__FnCalls!F61","v":"Jul 2014"},{"$f":"ZZZ__FnCalls!F62","v":"Aug 2014"},{"$f":"ZZZ__FnCalls!F63","v":"Sep 2014"},{"$f":"ZZZ__FnCalls!F64","v":"Oct 2014"},{"$f":"ZZZ__FnCalls!F65","v":"Nov 2014"},{"$f":"ZZZ__FnCalls!F66","v":"Dec 2014"},{"$f":"ZZZ__FnCalls!H55","v":"2014"},{"$f":"ZZZ__FnCalls!F67","v":"Jan 2015"},{"$f":"ZZZ__FnCalls!F68","v":"Feb 2015"},{"$f":"ZZZ__FnCalls!F69","v":"Mar 2015"},{"$f":"ZZZ__FnCalls!F70","v":"Apr 2015"},{"$f":"ZZZ__FnCalls!F71","v":"May 2015"},{"$f":"ZZZ__FnCalls!F72","v":"Jun 2015"},{"$f":"ZZZ__FnCalls!F73","v":"Jul 2015"},{"$f":"ZZZ__FnCalls!F74","v":"Aug 2015"},{"$f":"ZZZ__FnCalls!F75","v":"Sep 2015"},{"$f":"ZZZ__FnCalls!F76","v":"Oct 2015"},{"$f":"ZZZ__FnCalls!F77","v":"Nov 2015"},{"$f":"ZZZ__FnCalls!F78","v":"Dec 2015"},{"$f":"ZZZ__FnCalls!H67","v":"2015"},{"$f":"ZZZ__FnCalls!F79","v":"Jan 2016"},{"$f":"ZZZ__FnCalls!F80","v":"Feb 2016"},{"$f":"ZZZ__FnCalls!F81","v":"Mar 2016"},{"$f":"ZZZ__FnCalls!F82","v":"Apr 2016"},{"$f":"ZZZ__FnCalls!F83","v":"May 2016"},{"$f":"ZZZ__FnCalls!F84","v":"Jun 2016"},{"$f":"ZZZ__FnCalls!F85","v":"Jul 2016"},{"$f":"ZZZ__FnCalls!F86","v":"Aug 2016"},{"$f":"ZZZ__FnCalls!F87","v":"Sep 2016"},{"$f":"ZZZ__FnCalls!F88","v":"Oct 2016"},{"$f":"ZZZ__FnCalls!F89","v":"Nov 2016"},{"$f":"ZZZ__FnCalls!F90","v":"Dec 2016"},{"$f":"ZZZ__FnCalls!H79","v":"2016"},{"$f":"ZZZ__FnCalls!F91","v":"Jan 2017"},{"$f":"ZZZ__FnCalls!F92","v":"Feb 2017"},{"$f":"ZZZ__FnCalls!F93","v":"Mar 2017"},{"$f":"ZZZ__FnCalls!F94","v":"Apr 2017"},{"$f":"ZZZ__FnCalls!F95","v":"May 2017"},{"$f":"ZZZ__FnCalls!F96","v":"Jun 2017"},{"$f":"ZZZ__FnCalls!F97","v":"Jul 2017"},{"$f":"ZZZ__FnCalls!F98","v":"Aug 2017"},{"$f":"ZZZ__FnCalls!F99","v":"Sep 2017"},{"$f":"ZZZ__FnCalls!F100","v":"Oct 2017"},{"$f":"ZZZ__FnCalls!F101","v":"Nov 2017"},{"$f":"ZZZ__FnCalls!F102","v":"Dec 2017"},{"$f":"ZZZ__FnCalls!H91","v":"2017"},{"$f":"ZZZ__FnCalls!F103","v":"Jan 2018"},{"$f":"ZZZ__FnCalls!F104","v":"Feb 2018"},{"$f":"ZZZ__FnCalls!F105","v":"Mar 2018"},{"$f":"ZZZ__FnCalls!F106","v":"Apr 2018"},{"$f":"ZZZ__FnCalls!F107","v":"May 2018"},{"$f":"ZZZ__FnCalls!F108","v":"Jun 2018"},{"$f":"ZZZ__FnCalls!F109","v":"Jul 2018"},{"$f":"ZZZ__FnCalls!F110","v":"Aug 2018"},{"$f":"ZZZ__FnCalls!F111","v":"Sep 2018"},{"$f":"ZZZ__FnCalls!F112","v":"Oct 2018"},{"$f":"ZZZ__FnCalls!F113","v":"Nov 2018"},{"$f":"ZZZ__FnCalls!F114","v":"Dec 2018"},{"$f":"ZZZ__FnCalls!H103","v":"2018"},{"$f":"ZZZ__FnCalls!F115","v":"Jan 2019"},{"$f":"ZZZ__FnCalls!F116","v":"Feb 2019"},{"$f":"ZZZ__FnCalls!F117","v":"Mar 2019"},{"$f":"ZZZ__FnCalls!F118","v":"Apr 2019"},{"$f":"ZZZ__FnCalls!F119","v":"May 2019"},{"$f":"ZZZ__FnCalls!F120","v":"Jun 2019"},{"$f":"ZZZ__FnCalls!F121","v":"Jul 2019"},{"$f":"ZZZ__FnCalls!F122","v":"Aug 2019"},{"$f":"ZZZ__FnCalls!F123","v":"Sep 2019"},{"$f":"ZZZ__FnCalls!F124","v":"Oct 2019"},{"$f":"ZZZ__FnCalls!F125","v":"Nov 2019"},{"$f":"ZZZ__FnCalls!F126","v":"Dec 2019"},{"$f":"ZZZ__FnCalls!H115","v":"2019"},{"$f":"ZZZ__FnCalls!F127","v":"Jan 2020"},{"$f":"ZZZ__FnCalls!F128","v":"Feb 2020"},{"$f":"ZZZ__FnCalls!F129","v":"Mar 2020"},{"$f":"ZZZ__FnCalls!F130","v":"Apr 2020"},{"$f":"ZZZ__FnCalls!F131","v":"May 2020"},{"$f":"ZZZ__FnCalls!F132","v":"Jun 2020"},{"$f":"ZZZ__FnCalls!F133","v":"Jul 2020"},{"$f":"ZZZ__FnCalls!F134","v":"Aug 2020"},{"$f":"ZZZ__FnCalls!F135","v":"Sep 2020"},{"$f":"ZZZ__FnCalls!F136","v":"Oct 2020"},{"$f":"ZZZ__FnCalls!F137","v":"Nov 2020"},{"$f":"ZZZ__FnCalls!F138","v":"Dec 2020"},{"$f":"ZZZ__FnCalls!H127","v":"2020"}]
[null,{"$f":"ZZZ__FnCalls!A7","v":"2010-01-01"},{"$f":"ZZZ__FnCalls!A8","v":"2010-02-01"},{"$f":"ZZZ__FnCalls!A9","v":"2010-03-01"},{"$f":"ZZZ__FnCalls!A10","v":"2010-04-01"},{"$f":"ZZZ__FnCalls!A11","v":"2010-05-01"},{"$f":"ZZZ__FnCalls!A12","v":"2010-06-01"},{"$f":"ZZZ__FnCalls!A13","v":"2010-07-01"},{"$f":"ZZZ__FnCalls!A14","v":"2010-08-01"},{"$f":"ZZZ__FnCalls!A15","v":"2010-09-01"},{"$f":"ZZZ__FnCalls!A16","v":"2010-10-01"},{"$f":"ZZZ__FnCalls!A17","v":"2010-11-01"},{"$f":"ZZZ__FnCalls!A18","v":"2010-12-01"},{"$f":"ZZZ__FnCalls!A7","v":"2010-01-01"},{"$f":"ZZZ__FnCalls!A19","v":"2011-01-01"},{"$f":"ZZZ__FnCalls!A20","v":"2011-02-01"},{"$f":"ZZZ__FnCalls!A21","v":"2011-03-01"},{"$f":"ZZZ__FnCalls!A22","v":"2011-04-01"},{"$f":"ZZZ__FnCalls!A23","v":"2011-05-01"},{"$f":"ZZZ__FnCalls!A24","v":"2011-06-01"},{"$f":"ZZZ__FnCalls!A25","v":"2011-07-01"},{"$f":"ZZZ__FnCalls!A26","v":"2011-08-01"},{"$f":"ZZZ__FnCalls!A27","v":"2011-09-01"},{"$f":"ZZZ__FnCalls!A28","v":"2011-10-01"},{"$f":"ZZZ__FnCalls!A29","v":"2011-11-01"},{"$f":"ZZZ__FnCalls!A30","v":"2011-12-01"},{"$f":"ZZZ__FnCalls!A19","v":"2011-01-01"},{"$f":"ZZZ__FnCalls!A31","v":"2012-01-01"},{"$f":"ZZZ__FnCalls!A32","v":"2012-02-01"},{"$f":"ZZZ__FnCalls!A33","v":"2012-03-01"},{"$f":"ZZZ__FnCalls!A34","v":"2012-04-01"},{"$f":"ZZZ__FnCalls!A35","v":"2012-05-01"},{"$f":"ZZZ__FnCalls!A36","v":"2012-06-01"},{"$f":"ZZZ__FnCalls!A37","v":"2012-07-01"},{"$f":"ZZZ__FnCalls!A38","v":"2012-08-01"},{"$f":"ZZZ__FnCalls!A39","v":"2012-09-01"},{"$f":"ZZZ__FnCalls!A40","v":"2012-10-01"},{"$f":"ZZZ__FnCalls!A41","v":"2012-11-01"},{"$f":"ZZZ__FnCalls!A42","v":"2012-12-01"},{"$f":"ZZZ__FnCalls!A31","v":"2012-01-01"},{"$f":"ZZZ__FnCalls!A43","v":"2013-01-01"},{"$f":"ZZZ__FnCalls!A44","v":"2013-02-01"},{"$f":"ZZZ__FnCalls!A45","v":"2013-03-01"},{"$f":"ZZZ__FnCalls!A46","v":"2013-04-01"},{"$f":"ZZZ__FnCalls!A47","v":"2013-05-01"},{"$f":"ZZZ__FnCalls!A48","v":"2013-06-01"},{"$f":"ZZZ__FnCalls!A49","v":"2013-07-01"},{"$f":"ZZZ__FnCalls!A50","v":"2013-08-01"},{"$f":"ZZZ__FnCalls!A51","v":"2013-09-01"},{"$f":"ZZZ__FnCalls!A52","v":"2013-10-01"},{"$f":"ZZZ__FnCalls!A53","v":"2013-11-01"},{"$f":"ZZZ__FnCalls!A54","v":"2013-12-01"},{"$f":"ZZZ__FnCalls!A43","v":"2013-01-01"},{"$f":"ZZZ__FnCalls!A55","v":"2014-01-01"},{"$f":"ZZZ__FnCalls!A56","v":"2014-02-01"},{"$f":"ZZZ__FnCalls!A57","v":"2014-03-01"},{"$f":"ZZZ__FnCalls!A58","v":"2014-04-01"},{"$f":"ZZZ__FnCalls!A59","v":"2014-05-01"},{"$f":"ZZZ__FnCalls!A60","v":"2014-06-01"},{"$f":"ZZZ__FnCalls!A61","v":"2014-07-01"},{"$f":"ZZZ__FnCalls!A62","v":"2014-08-01"},{"$f":"ZZZ__FnCalls!A63","v":"2014-09-01"},{"$f":"ZZZ__FnCalls!A64","v":"2014-10-01"},{"$f":"ZZZ__FnCalls!A65","v":"2014-11-01"},{"$f":"ZZZ__FnCalls!A66","v":"2014-12-01"},{"$f":"ZZZ__FnCalls!A55","v":"2014-01-01"},{"$f":"ZZZ__FnCalls!A67","v":"2015-01-01"},{"$f":"ZZZ__FnCalls!A68","v":"2015-02-01"},{"$f":"ZZZ__FnCalls!A69","v":"2015-03-01"},{"$f":"ZZZ__FnCalls!A70","v":"2015-04-01"},{"$f":"ZZZ__FnCalls!A71","v":"2015-05-01"},{"$f":"ZZZ__FnCalls!A72","v":"2015-06-01"},{"$f":"ZZZ__FnCalls!A73","v":"2015-07-01"},{"$f":"ZZZ__FnCalls!A74","v":"2015-08-01"},{"$f":"ZZZ__FnCalls!A75","v":"2015-09-01"},{"$f":"ZZZ__FnCalls!A76","v":"2015-10-01"},{"$f":"ZZZ__FnCalls!A77","v":"2015-11-01"},{"$f":"ZZZ__FnCalls!A78","v":"2015-12-01"},{"$f":"ZZZ__FnCalls!A67","v":"2015-01-01"},{"$f":"ZZZ__FnCalls!A79","v":"2016-01-01"},{"$f":"ZZZ__FnCalls!A80","v":"2016-02-01"},{"$f":"ZZZ__FnCalls!A81","v":"2016-03-01"},{"$f":"ZZZ__FnCalls!A82","v":"2016-04-01"},{"$f":"ZZZ__FnCalls!A83","v":"2016-05-01"},{"$f":"ZZZ__FnCalls!A84","v":"2016-06-01"},{"$f":"ZZZ__FnCalls!A85","v":"2016-07-01"},{"$f":"ZZZ__FnCalls!A86","v":"2016-08-01"},{"$f":"ZZZ__FnCalls!A87","v":"2016-09-01"},{"$f":"ZZZ__FnCalls!A88","v":"2016-10-01"},{"$f":"ZZZ__FnCalls!A89","v":"2016-11-01"},{"$f":"ZZZ__FnCalls!A90","v":"2016-12-01"},{"$f":"ZZZ__FnCalls!A79","v":"2016-01-01"},{"$f":"ZZZ__FnCalls!A91","v":"2017-01-01"},{"$f":"ZZZ__FnCalls!A92","v":"2017-02-01"},{"$f":"ZZZ__FnCalls!A93","v":"2017-03-01"},{"$f":"ZZZ__FnCalls!A94","v":"2017-04-01"},{"$f":"ZZZ__FnCalls!A95","v":"2017-05-01"},{"$f":"ZZZ__FnCalls!A96","v":"2017-06-01"},{"$f":"ZZZ__FnCalls!A97","v":"2017-07-01"},{"$f":"ZZZ__FnCalls!A98","v":"2017-08-01"},{"$f":"ZZZ__FnCalls!A99","v":"2017-09-01"},{"$f":"ZZZ__FnCalls!A100","v":"2017-10-01"},{"$f":"ZZZ__FnCalls!A101","v":"2017-11-01"},{"$f":"ZZZ__FnCalls!A102","v":"2017-12-01"},{"$f":"ZZZ__FnCalls!A91","v":"2017-01-01"},{"$f":"ZZZ__FnCalls!A103","v":"2018-01-01"},{"$f":"ZZZ__FnCalls!A104","v":"2018-02-01"},{"$f":"ZZZ__FnCalls!A105","v":"2018-03-01"},{"$f":"ZZZ__FnCalls!A106","v":"2018-04-01"},{"$f":"ZZZ__FnCalls!A107","v":"2018-05-01"},{"$f":"ZZZ__FnCalls!A108","v":"2018-06-01"},{"$f":"ZZZ__FnCalls!A109","v":"2018-07-01"},{"$f":"ZZZ__FnCalls!A110","v":"2018-08-01"},{"$f":"ZZZ__FnCalls!A111","v":"2018-09-01"},{"$f":"ZZZ__FnCalls!A112","v":"2018-10-01"},{"$f":"ZZZ__FnCalls!A113","v":"2018-11-01"},{"$f":"ZZZ__FnCalls!A114","v":"2018-12-01"},{"$f":"ZZZ__FnCalls!A103","v":"2018-01-01"},{"$f":"ZZZ__FnCalls!A115","v":"2019-01-01"},{"$f":"ZZZ__FnCalls!A116","v":"2019-02-01"},{"$f":"ZZZ__FnCalls!A117","v":"2019-03-01"},{"$f":"ZZZ__FnCalls!A118","v":"2019-04-01"},{"$f":"ZZZ__FnCalls!A119","v":"2019-05-01"},{"$f":"ZZZ__FnCalls!A120","v":"2019-06-01"},{"$f":"ZZZ__FnCalls!A121","v":"2019-07-01"},{"$f":"ZZZ__FnCalls!A122","v":"2019-08-01"},{"$f":"ZZZ__FnCalls!A123","v":"2019-09-01"},{"$f":"ZZZ__FnCalls!A124","v":"2019-10-01"},{"$f":"ZZZ__FnCalls!A125","v":"2019-11-01"},{"$f":"ZZZ__FnCalls!A126","v":"2019-12-01"},{"$f":"ZZZ__FnCalls!A115","v":"2019-01-01"},{"$f":"ZZZ__FnCalls!A127","v":"2020-01-01"},{"$f":"ZZZ__FnCalls!A128","v":"2020-02-01"},{"$f":"ZZZ__FnCalls!A129","v":"2020-03-01"},{"$f":"ZZZ__FnCalls!A130","v":"2020-04-01"},{"$f":"ZZZ__FnCalls!A131","v":"2020-05-01"},{"$f":"ZZZ__FnCalls!A132","v":"2020-06-01"},{"$f":"ZZZ__FnCalls!A133","v":"2020-07-01"},{"$f":"ZZZ__FnCalls!A134","v":"2020-08-01"},{"$f":"ZZZ__FnCalls!A135","v":"2020-09-01"},{"$f":"ZZZ__FnCalls!A136","v":"2020-10-01"},{"$f":"ZZZ__FnCalls!A137","v":"2020-11-01"},{"$f":"ZZZ__FnCalls!A138","v":"2020-12-01"},{"$f":"ZZZ__FnCalls!A127","v":"2020-01-01"}]
[{"$f":"\"Employment_Desired_2\"","v":"Employment_Desired_2"}]
[null,{"$f":"ZZZ__FnCalls!F7","v":"Jan 2010"},{"$f":"ZZZ__FnCalls!F8","v":"Feb 2010"},{"$f":"ZZZ__FnCalls!F9","v":"Mar 2010"},{"$f":"ZZZ__FnCalls!F10","v":"Apr 2010"},{"$f":"ZZZ__FnCalls!F11","v":"May 2010"},{"$f":"ZZZ__FnCalls!F12","v":"Jun 2010"},{"$f":"ZZZ__FnCalls!F13","v":"Jul 2010"},{"$f":"ZZZ__FnCalls!F14","v":"Aug 2010"},{"$f":"ZZZ__FnCalls!F15","v":"Sep 2010"},{"$f":"ZZZ__FnCalls!F16","v":"Oct 2010"},{"$f":"ZZZ__FnCalls!F17","v":"Nov 2010"},{"$f":"ZZZ__FnCalls!F18","v":"Dec 2010"},{"$f":"ZZZ__FnCalls!H7","v":"2010"},{"$f":"ZZZ__FnCalls!F19","v":"Jan 2011"},{"$f":"ZZZ__FnCalls!F20","v":"Feb 2011"},{"$f":"ZZZ__FnCalls!F21","v":"Mar 2011"},{"$f":"ZZZ__FnCalls!F22","v":"Apr 2011"},{"$f":"ZZZ__FnCalls!F23","v":"May 2011"},{"$f":"ZZZ__FnCalls!F24","v":"Jun 2011"},{"$f":"ZZZ__FnCalls!F25","v":"Jul 2011"},{"$f":"ZZZ__FnCalls!F26","v":"Aug 2011"},{"$f":"ZZZ__FnCalls!F27","v":"Sep 2011"},{"$f":"ZZZ__FnCalls!F28","v":"Oct 2011"},{"$f":"ZZZ__FnCalls!F29","v":"Nov 2011"},{"$f":"ZZZ__FnCalls!F30","v":"Dec 2011"},{"$f":"ZZZ__FnCalls!H19","v":"2011"},{"$f":"ZZZ__FnCalls!F31","v":"Jan 2012"},{"$f":"ZZZ__FnCalls!F32","v":"Feb 2012"},{"$f":"ZZZ__FnCalls!F33","v":"Mar 2012"},{"$f":"ZZZ__FnCalls!F34","v":"Apr 2012"},{"$f":"ZZZ__FnCalls!F35","v":"May 2012"},{"$f":"ZZZ__FnCalls!F36","v":"Jun 2012"},{"$f":"ZZZ__FnCalls!F37","v":"Jul 2012"},{"$f":"ZZZ__FnCalls!F38","v":"Aug 2012"},{"$f":"ZZZ__FnCalls!F39","v":"Sep 2012"},{"$f":"ZZZ__FnCalls!F40","v":"Oct 2012"},{"$f":"ZZZ__FnCalls!F41","v":"Nov 2012"},{"$f":"ZZZ__FnCalls!F42","v":"Dec 2012"},{"$f":"ZZZ__FnCalls!H31","v":"2012"},{"$f":"ZZZ__FnCalls!F43","v":"Jan 2013"},{"$f":"ZZZ__FnCalls!F44","v":"Feb 2013"},{"$f":"ZZZ__FnCalls!F45","v":"Mar 2013"},{"$f":"ZZZ__FnCalls!F46","v":"Apr 2013"},{"$f":"ZZZ__FnCalls!F47","v":"May 2013"},{"$f":"ZZZ__FnCalls!F48","v":"Jun 2013"},{"$f":"ZZZ__FnCalls!F49","v":"Jul 2013"},{"$f":"ZZZ__FnCalls!F50","v":"Aug 2013"},{"$f":"ZZZ__FnCalls!F51","v":"Sep 2013"},{"$f":"ZZZ__FnCalls!F52","v":"Oct 2013"},{"$f":"ZZZ__FnCalls!F53","v":"Nov 2013"},{"$f":"ZZZ__FnCalls!F54","v":"Dec 2013"},{"$f":"ZZZ__FnCalls!H43","v":"2013"},{"$f":"ZZZ__FnCalls!F55","v":"Jan 2014"},{"$f":"ZZZ__FnCalls!F56","v":"Feb 2014"},{"$f":"ZZZ__FnCalls!F57","v":"Mar 2014"},{"$f":"ZZZ__FnCalls!F58","v":"Apr 2014"},{"$f":"ZZZ__FnCalls!F59","v":"May 2014"},{"$f":"ZZZ__FnCalls!F60","v":"Jun 2014"},{"$f":"ZZZ__FnCalls!F61","v":"Jul 2014"},{"$f":"ZZZ__FnCalls!F62","v":"Aug 2014"},{"$f":"ZZZ__FnCalls!F63","v":"Sep 2014"},{"$f":"ZZZ__FnCalls!F64","v":"Oct 2014"},{"$f":"ZZZ__FnCalls!F65","v":"Nov 2014"},{"$f":"ZZZ__FnCalls!F66","v":"Dec 2014"},{"$f":"ZZZ__FnCalls!H55","v":"2014"},{"$f":"ZZZ__FnCalls!F67","v":"Jan 2015"},{"$f":"ZZZ__FnCalls!F68","v":"Feb 2015"},{"$f":"ZZZ__FnCalls!F69","v":"Mar 2015"},{"$f":"ZZZ__FnCalls!F70","v":"Apr 2015"},{"$f":"ZZZ__FnCalls!F71","v":"May 2015"},{"$f":"ZZZ__FnCalls!F72","v":"Jun 2015"},{"$f":"ZZZ__FnCalls!F73","v":"Jul 2015"},{"$f":"ZZZ__FnCalls!F74","v":"Aug 2015"},{"$f":"ZZZ__FnCalls!F75","v":"Sep 2015"},{"$f":"ZZZ__FnCalls!F76","v":"Oct 2015"},{"$f":"ZZZ__FnCalls!F77","v":"Nov 2015"},{"$f":"ZZZ__FnCalls!F78","v":"Dec 2015"},{"$f":"ZZZ__FnCalls!H67","v":"2015"},{"$f":"ZZZ__FnCalls!F79","v":"Jan 2016"},{"$f":"ZZZ__FnCalls!F80","v":"Feb 2016"},{"$f":"ZZZ__FnCalls!F81","v":"Mar 2016"},{"$f":"ZZZ__FnCalls!F82","v":"Apr 2016"},{"$f":"ZZZ__FnCalls!F83","v":"May 2016"},{"$f":"ZZZ__FnCalls!F84","v":"Jun 2016"},{"$f":"ZZZ__FnCalls!F85","v":"Jul 2016"},{"$f":"ZZZ__FnCalls!F86","v":"Aug 2016"},{"$f":"ZZZ__FnCalls!F87","v":"Sep 2016"},{"$f":"ZZZ__FnCalls!F88","v":"Oct 2016"},{"$f":"ZZZ__FnCalls!F89","v":"Nov 2016"},{"$f":"ZZZ__FnCalls!F90","v":"Dec 2016"},{"$f":"ZZZ__FnCalls!H79","v":"2016"},{"$f":"ZZZ__FnCalls!F91","v":"Jan 2017"},{"$f":"ZZZ__FnCalls!F92","v":"Feb 2017"},{"$f":"ZZZ__FnCalls!F93","v":"Mar 2017"},{"$f":"ZZZ__FnCalls!F94","v":"Apr 2017"},{"$f":"ZZZ__FnCalls!F95","v":"May 2017"},{"$f":"ZZZ__FnCalls!F96","v":"Jun 2017"},{"$f":"ZZZ__FnCalls!F97","v":"Jul 2017"},{"$f":"ZZZ__FnCalls!F98","v":"Aug 2017"},{"$f":"ZZZ__FnCalls!F99","v":"Sep 2017"},{"$f":"ZZZ__FnCalls!F100","v":"Oct 2017"},{"$f":"ZZZ__FnCalls!F101","v":"Nov 2017"},{"$f":"ZZZ__FnCalls!F102","v":"Dec 2017"},{"$f":"ZZZ__FnCalls!H91","v":"2017"},{"$f":"ZZZ__FnCalls!F103","v":"Jan 2018"},{"$f":"ZZZ__FnCalls!F104","v":"Feb 2018"},{"$f":"ZZZ__FnCalls!F105","v":"Mar 2018"},{"$f":"ZZZ__FnCalls!F106","v":"Apr 2018"},{"$f":"ZZZ__FnCalls!F107","v":"May 2018"},{"$f":"ZZZ__FnCalls!F108","v":"Jun 2018"},{"$f":"ZZZ__FnCalls!F109","v":"Jul 2018"},{"$f":"ZZZ__FnCalls!F110","v":"Aug 2018"},{"$f":"ZZZ__FnCalls!F111","v":"Sep 2018"},{"$f":"ZZZ__FnCalls!F112","v":"Oct 2018"},{"$f":"ZZZ__FnCalls!F113","v":"Nov 2018"},{"$f":"ZZZ__FnCalls!F114","v":"Dec 2018"},{"$f":"ZZZ__FnCalls!H103","v":"2018"},{"$f":"ZZZ__FnCalls!F115","v":"Jan 2019"},{"$f":"ZZZ__FnCalls!F116","v":"Feb 2019"},{"$f":"ZZZ__FnCalls!F117","v":"Mar 2019"},{"$f":"ZZZ__FnCalls!F118","v":"Apr 2019"},{"$f":"ZZZ__FnCalls!F119","v":"May 2019"},{"$f":"ZZZ__FnCalls!F120","v":"Jun 2019"},{"$f":"ZZZ__FnCalls!F121","v":"Jul 2019"},{"$f":"ZZZ__FnCalls!F122","v":"Aug 2019"},{"$f":"ZZZ__FnCalls!F123","v":"Sep 2019"},{"$f":"ZZZ__FnCalls!F124","v":"Oct 2019"},{"$f":"ZZZ__FnCalls!F125","v":"Nov 2019"},{"$f":"ZZZ__FnCalls!F126","v":"Dec 2019"},{"$f":"ZZZ__FnCalls!H115","v":"2019"},{"$f":"ZZZ__FnCalls!F127","v":"Jan 2020"},{"$f":"ZZZ__FnCalls!F128","v":"Feb 2020"},{"$f":"ZZZ__FnCalls!F129","v":"Mar 2020"},{"$f":"ZZZ__FnCalls!F130","v":"Apr 2020"},{"$f":"ZZZ__FnCalls!F131","v":"May 2020"},{"$f":"ZZZ__FnCalls!F132","v":"Jun 2020"},{"$f":"ZZZ__FnCalls!F133","v":"Jul 2020"},{"$f":"ZZZ__FnCalls!F134","v":"Aug 2020"},{"$f":"ZZZ__FnCalls!F135","v":"Sep 2020"},{"$f":"ZZZ__FnCalls!F136","v":"Oct 2020"},{"$f":"ZZZ__FnCalls!F137","v":"Nov 2020"},{"$f":"ZZZ__FnCalls!F138","v":"Dec 2020"},{"$f":"ZZZ__FnCalls!H127","v":"2020"}]
[null,{"$f":"ZZZ__FnCalls!F7","v":"Jan 2010"},{"$f":"ZZZ__FnCalls!F8","v":"Feb 2010"},{"$f":"ZZZ__FnCalls!F9","v":"Mar 2010"},{"$f":"ZZZ__FnCalls!F10","v":"Apr 2010"},{"$f":"ZZZ__FnCalls!F11","v":"May 2010"},{"$f":"ZZZ__FnCalls!F12","v":"Jun 2010"},{"$f":"ZZZ__FnCalls!F13","v":"Jul 2010"},{"$f":"ZZZ__FnCalls!F14","v":"Aug 2010"},{"$f":"ZZZ__FnCalls!F15","v":"Sep 2010"},{"$f":"ZZZ__FnCalls!F16","v":"Oct 2010"},{"$f":"ZZZ__FnCalls!F17","v":"Nov 2010"},{"$f":"ZZZ__FnCalls!F18","v":"Dec 2010"},{"$f":"ZZZ__FnCalls!F7","v":"Jan 2010"},{"$f":"ZZZ__FnCalls!F19","v":"Jan 2011"},{"$f":"ZZZ__FnCalls!F20","v":"Feb 2011"},{"$f":"ZZZ__FnCalls!F21","v":"Mar 2011"},{"$f":"ZZZ__FnCalls!F22","v":"Apr 2011"},{"$f":"ZZZ__FnCalls!F23","v":"May 2011"},{"$f":"ZZZ__FnCalls!F24","v":"Jun 2011"},{"$f":"ZZZ__FnCalls!F25","v":"Jul 2011"},{"$f":"ZZZ__FnCalls!F26","v":"Aug 2011"},{"$f":"ZZZ__FnCalls!F27","v":"Sep 2011"},{"$f":"ZZZ__FnCalls!F28","v":"Oct 2011"},{"$f":"ZZZ__FnCalls!F29","v":"Nov 2011"},{"$f":"ZZZ__FnCalls!F30","v":"Dec 2011"},{"$f":"ZZZ__FnCalls!F19","v":"Jan 2011"},{"$f":"ZZZ__FnCalls!F31","v":"Jan 2012"},{"$f":"ZZZ__FnCalls!F32","v":"Feb 2012"},{"$f":"ZZZ__FnCalls!F33","v":"Mar 2012"},{"$f":"ZZZ__FnCalls!F34","v":"Apr 2012"},{"$f":"ZZZ__FnCalls!F35","v":"May 2012"},{"$f":"ZZZ__FnCalls!F36","v":"Jun 2012"},{"$f":"ZZZ__FnCalls!F37","v":"Jul 2012"},{"$f":"ZZZ__FnCalls!F38","v":"Aug 2012"},{"$f":"ZZZ__FnCalls!F39","v":"Sep 2012"},{"$f":"ZZZ__FnCalls!F40","v":"Oct 2012"},{"$f":"ZZZ__FnCalls!F41","v":"Nov 2012"},{"$f":"ZZZ__FnCalls!F42","v":"Dec 2012"},{"$f":"ZZZ__FnCalls!F31","v":"Jan 2012"},{"$f":"ZZZ__FnCalls!F43","v":"Jan 2013"},{"$f":"ZZZ__FnCalls!F44","v":"Feb 2013"},{"$f":"ZZZ__FnCalls!F45","v":"Mar 2013"},{"$f":"ZZZ__FnCalls!F46","v":"Apr 2013"},{"$f":"ZZZ__FnCalls!F47","v":"May 2013"},{"$f":"ZZZ__FnCalls!F48","v":"Jun 2013"},{"$f":"ZZZ__FnCalls!F49","v":"Jul 2013"},{"$f":"ZZZ__FnCalls!F50","v":"Aug 2013"},{"$f":"ZZZ__FnCalls!F51","v":"Sep 2013"},{"$f":"ZZZ__FnCalls!F52","v":"Oct 2013"},{"$f":"ZZZ__FnCalls!F53","v":"Nov 2013"},{"$f":"ZZZ__FnCalls!F54","v":"Dec 2013"},{"$f":"ZZZ__FnCalls!F43","v":"Jan 2013"},{"$f":"ZZZ__FnCalls!F55","v":"Jan 2014"},{"$f":"ZZZ__FnCalls!F56","v":"Feb 2014"},{"$f":"ZZZ__FnCalls!F57","v":"Mar 2014"},{"$f":"ZZZ__FnCalls!F58","v":"Apr 2014"},{"$f":"ZZZ__FnCalls!F59","v":"May 2014"},{"$f":"ZZZ__FnCalls!F60","v":"Jun 2014"},{"$f":"ZZZ__FnCalls!F61","v":"Jul 2014"},{"$f":"ZZZ__FnCalls!F62","v":"Aug 2014"},{"$f":"ZZZ__FnCalls!F63","v":"Sep 2014"},{"$f":"ZZZ__FnCalls!F64","v":"Oct 2014"},{"$f":"ZZZ__FnCalls!F65","v":"Nov 2014"},{"$f":"ZZZ__FnCalls!F66","v":"Dec 2014"},{"$f":"ZZZ__FnCalls!F55","v":"Jan 2014"},{"$f":"ZZZ__FnCalls!F67","v":"Jan 2015"},{"$f":"ZZZ__FnCalls!F68","v":"Feb 2015"},{"$f":"ZZZ__FnCalls!F69","v":"Mar 2015"},{"$f":"ZZZ__FnCalls!F70","v":"Apr 2015"},{"$f":"ZZZ__FnCalls!F71","v":"May 2015"},{"$f":"ZZZ__FnCalls!F72","v":"Jun 2015"},{"$f":"ZZZ__FnCalls!F73","v":"Jul 2015"},{"$f":"ZZZ__FnCalls!F74","v":"Aug 2015"},{"$f":"ZZZ__FnCalls!F75","v":"Sep 2015"},{"$f":"ZZZ__FnCalls!F76","v":"Oct 2015"},{"$f":"ZZZ__FnCalls!F77","v":"Nov 2015"},{"$f":"ZZZ__FnCalls!F78","v":"Dec 2015"},{"$f":"ZZZ__FnCalls!F67","v":"Jan 2015"},{"$f":"ZZZ__FnCalls!F79","v":"Jan 2016"},{"$f":"ZZZ__FnCalls!F80","v":"Feb 2016"},{"$f":"ZZZ__FnCalls!F81","v":"Mar 2016"},{"$f":"ZZZ__FnCalls!F82","v":"Apr 2016"},{"$f":"ZZZ__FnCalls!F83","v":"May 2016"},{"$f":"ZZZ__FnCalls!F84","v":"Jun 2016"},{"$f":"ZZZ__FnCalls!F85","v":"Jul 2016"},{"$f":"ZZZ__FnCalls!F86","v":"Aug 2016"},{"$f":"ZZZ__FnCalls!F87","v":"Sep 2016"},{"$f":"ZZZ__FnCalls!F88","v":"Oct 2016"},{"$f":"ZZZ__FnCalls!F89","v":"Nov 2016"},{"$f":"ZZZ__FnCalls!F90","v":"Dec 2016"},{"$f":"ZZZ__FnCalls!F79","v":"Jan 2016"},{"$f":"ZZZ__FnCalls!F91","v":"Jan 2017"},{"$f":"ZZZ__FnCalls!F92","v":"Feb 2017"},{"$f":"ZZZ__FnCalls!F93","v":"Mar 2017"},{"$f":"ZZZ__FnCalls!F94","v":"Apr 2017"},{"$f":"ZZZ__FnCalls!F95","v":"May 2017"},{"$f":"ZZZ__FnCalls!F96","v":"Jun 2017"},{"$f":"ZZZ__FnCalls!F97","v":"Jul 2017"},{"$f":"ZZZ__FnCalls!F98","v":"Aug 2017"},{"$f":"ZZZ__FnCalls!F99","v":"Sep 2017"},{"$f":"ZZZ__FnCalls!F100","v":"Oct 2017"},{"$f":"ZZZ__FnCalls!F101","v":"Nov 2017"},{"$f":"ZZZ__FnCalls!F102","v":"Dec 2017"},{"$f":"ZZZ__FnCalls!F91","v":"Jan 2017"},{"$f":"ZZZ__FnCalls!F103","v":"Jan 2018"},{"$f":"ZZZ__FnCalls!F104","v":"Feb 2018"},{"$f":"ZZZ__FnCalls!F105","v":"Mar 2018"},{"$f":"ZZZ__FnCalls!F106","v":"Apr 2018"},{"$f":"ZZZ__FnCalls!F107","v":"May 2018"},{"$f":"ZZZ__FnCalls!F108","v":"Jun 2018"},{"$f":"ZZZ__FnCalls!F109","v":"Jul 2018"},{"$f":"ZZZ__FnCalls!F110","v":"Aug 2018"},{"$f":"ZZZ__FnCalls!F111","v":"Sep 2018"},{"$f":"ZZZ__FnCalls!F112","v":"Oct 2018"},{"$f":"ZZZ__FnCalls!F113","v":"Nov 2018"},{"$f":"ZZZ__FnCalls!F114","v":"Dec 2018"},{"$f":"ZZZ__FnCalls!F103","v":"Jan 2018"},{"$f":"ZZZ__FnCalls!F115","v":"Jan 2019"},{"$f":"ZZZ__FnCalls!F116","v":"Feb 2019"},{"$f":"ZZZ__FnCalls!F117","v":"Mar 2019"},{"$f":"ZZZ__FnCalls!F118","v":"Apr 2019"},{"$f":"ZZZ__FnCalls!F119","v":"May 2019"},{"$f":"ZZZ__FnCalls!F120","v":"Jun 2019"},{"$f":"ZZZ__FnCalls!F121","v":"Jul 2019"},{"$f":"ZZZ__FnCalls!F122","v":"Aug 2019"},{"$f":"ZZZ__FnCalls!F123","v":"Sep 2019"},{"$f":"ZZZ__FnCalls!F124","v":"Oct 2019"},{"$f":"ZZZ__FnCalls!F125","v":"Nov 2019"},{"$f":"ZZZ__FnCalls!F126","v":"Dec 2019"},{"$f":"ZZZ__FnCalls!F115","v":"Jan 2019"},{"$f":"ZZZ__FnCalls!F127","v":"Jan 2020"},{"$f":"ZZZ__FnCalls!F128","v":"Feb 2020"},{"$f":"ZZZ__FnCalls!F129","v":"Mar 2020"},{"$f":"ZZZ__FnCalls!F130","v":"Apr 2020"},{"$f":"ZZZ__FnCalls!F131","v":"May 2020"},{"$f":"ZZZ__FnCalls!F132","v":"Jun 2020"},{"$f":"ZZZ__FnCalls!F133","v":"Jul 2020"},{"$f":"ZZZ__FnCalls!F134","v":"Aug 2020"},{"$f":"ZZZ__FnCalls!F135","v":"Sep 2020"},{"$f":"ZZZ__FnCalls!F136","v":"Oct 2020"},{"$f":"ZZZ__FnCalls!F137","v":"Nov 2020"},{"$f":"ZZZ__FnCalls!F138","v":"Dec 2020"},{"$f":"ZZZ__FnCalls!F127","v":"Jan 2020"}]
[{"$f":"\"Demand_Expected_Short_1\"","v":"Demand_Expected_Short_1"}]
[null,{"$f":"ZZZ__FnCalls!F7","v":"Jan 2010"},{"$f":"ZZZ__FnCalls!F8","v":"Feb 2010"},{"$f":"ZZZ__FnCalls!F9","v":"Mar 2010"},{"$f":"ZZZ__FnCalls!F10","v":"Apr 2010"},{"$f":"ZZZ__FnCalls!F11","v":"May 2010"},{"$f":"ZZZ__FnCalls!F12","v":"Jun 2010"},{"$f":"ZZZ__FnCalls!F13","v":"Jul 2010"},{"$f":"ZZZ__FnCalls!F14","v":"Aug 2010"},{"$f":"ZZZ__FnCalls!F15","v":"Sep 2010"},{"$f":"ZZZ__FnCalls!F16","v":"Oct 2010"},{"$f":"ZZZ__FnCalls!F17","v":"Nov 2010"},{"$f":"ZZZ__FnCalls!F18","v":"Dec 2010"},{"$f":"ZZZ__FnCalls!H7","v":"2010"},{"$f":"ZZZ__FnCalls!F19","v":"Jan 2011"},{"$f":"ZZZ__FnCalls!F20","v":"Feb 2011"},{"$f":"ZZZ__FnCalls!F21","v":"Mar 2011"},{"$f":"ZZZ__FnCalls!F22","v":"Apr 2011"},{"$f":"ZZZ__FnCalls!F23","v":"May 2011"},{"$f":"ZZZ__FnCalls!F24","v":"Jun 2011"},{"$f":"ZZZ__FnCalls!F25","v":"Jul 2011"},{"$f":"ZZZ__FnCalls!F26","v":"Aug 2011"},{"$f":"ZZZ__FnCalls!F27","v":"Sep 2011"},{"$f":"ZZZ__FnCalls!F28","v":"Oct 2011"},{"$f":"ZZZ__FnCalls!F29","v":"Nov 2011"},{"$f":"ZZZ__FnCalls!F30","v":"Dec 2011"},{"$f":"ZZZ__FnCalls!H19","v":"2011"},{"$f":"ZZZ__FnCalls!F31","v":"Jan 2012"},{"$f":"ZZZ__FnCalls!F32","v":"Feb 2012"},{"$f":"ZZZ__FnCalls!F33","v":"Mar 2012"},{"$f":"ZZZ__FnCalls!F34","v":"Apr 2012"},{"$f":"ZZZ__FnCalls!F35","v":"May 2012"},{"$f":"ZZZ__FnCalls!F36","v":"Jun 2012"},{"$f":"ZZZ__FnCalls!F37","v":"Jul 2012"},{"$f":"ZZZ__FnCalls!F38","v":"Aug 2012"},{"$f":"ZZZ__FnCalls!F39","v":"Sep 2012"},{"$f":"ZZZ__FnCalls!F40","v":"Oct 2012"},{"$f":"ZZZ__FnCalls!F41","v":"Nov 2012"},{"$f":"ZZZ__FnCalls!F42","v":"Dec 2012"},{"$f":"ZZZ__FnCalls!H31","v":"2012"},{"$f":"ZZZ__FnCalls!F43","v":"Jan 2013"},{"$f":"ZZZ__FnCalls!F44","v":"Feb 2013"},{"$f":"ZZZ__FnCalls!F45","v":"Mar 2013"},{"$f":"ZZZ__FnCalls!F46","v":"Apr 2013"},{"$f":"ZZZ__FnCalls!F47","v":"May 2013"},{"$f":"ZZZ__FnCalls!F48","v":"Jun 2013"},{"$f":"ZZZ__FnCalls!F49","v":"Jul 2013"},{"$f":"ZZZ__FnCalls!F50","v":"Aug 2013"},{"$f":"ZZZ__FnCalls!F51","v":"Sep 2013"},{"$f":"ZZZ__FnCalls!F52","v":"Oct 2013"},{"$f":"ZZZ__FnCalls!F53","v":"Nov 2013"},{"$f":"ZZZ__FnCalls!F54","v":"Dec 2013"},{"$f":"ZZZ__FnCalls!H43","v":"2013"},{"$f":"ZZZ__FnCalls!F55","v":"Jan 2014"},{"$f":"ZZZ__FnCalls!F56","v":"Feb 2014"},{"$f":"ZZZ__FnCalls!F57","v":"Mar 2014"},{"$f":"ZZZ__FnCalls!F58","v":"Apr 2014"},{"$f":"ZZZ__FnCalls!F59","v":"May 2014"},{"$f":"ZZZ__FnCalls!F60","v":"Jun 2014"},{"$f":"ZZZ__FnCalls!F61","v":"Jul 2014"},{"$f":"ZZZ__FnCalls!F62","v":"Aug 2014"},{"$f":"ZZZ__FnCalls!F63","v":"Sep 2014"},{"$f":"ZZZ__FnCalls!F64","v":"Oct 2014"},{"$f":"ZZZ__FnCalls!F65","v":"Nov 2014"},{"$f":"ZZZ__FnCalls!F66","v":"Dec 2014"},{"$f":"ZZZ__FnCalls!H55","v":"2014"},{"$f":"ZZZ__FnCalls!F67","v":"Jan 2015"},{"$f":"ZZZ__FnCalls!F68","v":"Feb 2015"},{"$f":"ZZZ__FnCalls!F69","v":"Mar 2015"},{"$f":"ZZZ__FnCalls!F70","v":"Apr 2015"},{"$f":"ZZZ__FnCalls!F71","v":"May 2015"},{"$f":"ZZZ__FnCalls!F72","v":"Jun 2015"},{"$f":"ZZZ__FnCalls!F73","v":"Jul 2015"},{"$f":"ZZZ__FnCalls!F74","v":"Aug 2015"},{"$f":"ZZZ__FnCalls!F75","v":"Sep 2015"},{"$f":"ZZZ__FnCalls!F76","v":"Oct 2015"},{"$f":"ZZZ__FnCalls!F77","v":"Nov 2015"},{"$f":"ZZZ__FnCalls!F78","v":"Dec 2015"},{"$f":"ZZZ__FnCalls!H67","v":"2015"},{"$f":"ZZZ__FnCalls!F79","v":"Jan 2016"},{"$f":"ZZZ__FnCalls!F80","v":"Feb 2016"},{"$f":"ZZZ__FnCalls!F81","v":"Mar 2016"},{"$f":"ZZZ__FnCalls!F82","v":"Apr 2016"},{"$f":"ZZZ__FnCalls!F83","v":"May 2016"},{"$f":"ZZZ__FnCalls!F84","v":"Jun 2016"},{"$f":"ZZZ__FnCalls!F85","v":"Jul 2016"},{"$f":"ZZZ__FnCalls!F86","v":"Aug 2016"},{"$f":"ZZZ__FnCalls!F87","v":"Sep 2016"},{"$f":"ZZZ__FnCalls!F88","v":"Oct 2016"},{"$f":"ZZZ__FnCalls!F89","v":"Nov 2016"},{"$f":"ZZZ__FnCalls!F90","v":"Dec 2016"},{"$f":"ZZZ__FnCalls!H79","v":"2016"},{"$f":"ZZZ__FnCalls!F91","v":"Jan 2017"},{"$f":"ZZZ__FnCalls!F92","v":"Feb 2017"},{"$f":"ZZZ__FnCalls!F93","v":"Mar 2017"},{"$f":"ZZZ__FnCalls!F94","v":"Apr 2017"},{"$f":"ZZZ__FnCalls!F95","v":"May 2017"},{"$f":"ZZZ__FnCalls!F96","v":"Jun 2017"},{"$f":"ZZZ__FnCalls!F97","v":"Jul 2017"},{"$f":"ZZZ__FnCalls!F98","v":"Aug 2017"},{"$f":"ZZZ__FnCalls!F99","v":"Sep 2017"},{"$f":"ZZZ__FnCalls!F100","v":"Oct 2017"},{"$f":"ZZZ__FnCalls!F101","v":"Nov 2017"},{"$f":"ZZZ__FnCalls!F102","v":"Dec 2017"},{"$f":"ZZZ__FnCalls!H91","v":"2017"},{"$f":"ZZZ__FnCalls!F103","v":"Jan 2018"},{"$f":"ZZZ__FnCalls!F104","v":"Feb 2018"},{"$f":"ZZZ__FnCalls!F105","v":"Mar 2018"},{"$f":"ZZZ__FnCalls!F106","v":"Apr 2018"},{"$f":"ZZZ__FnCalls!F107","v":"May 2018"},{"$f":"ZZZ__FnCalls!F108","v":"Jun 2018"},{"$f":"ZZZ__FnCalls!F109","v":"Jul 2018"},{"$f":"ZZZ__FnCalls!F110","v":"Aug 2018"},{"$f":"ZZZ__FnCalls!F111","v":"Sep 2018"},{"$f":"ZZZ__FnCalls!F112","v":"Oct 2018"},{"$f":"ZZZ__FnCalls!F113","v":"Nov 2018"},{"$f":"ZZZ__FnCalls!F114","v":"Dec 2018"},{"$f":"ZZZ__FnCalls!H103","v":"2018"},{"$f":"ZZZ__FnCalls!F115","v":"Jan 2019"},{"$f":"ZZZ__FnCalls!F116","v":"Feb 2019"},{"$f":"ZZZ__FnCalls!F117","v":"Mar 2019"},{"$f":"ZZZ__FnCalls!F118","v":"Apr 2019"},{"$f":"ZZZ__FnCalls!F119","v":"May 2019"},{"$f":"ZZZ__FnCalls!F120","v":"Jun 2019"},{"$f":"ZZZ__FnCalls!F121","v":"Jul 2019"},{"$f":"ZZZ__FnCalls!F122","v":"Aug 2019"},{"$f":"ZZZ__FnCalls!F123","v":"Sep 2019"},{"$f":"ZZZ__FnCalls!F124","v":"Oct 2019"},{"$f":"ZZZ__FnCalls!F125","v":"Nov 2019"},{"$f":"ZZZ__FnCalls!F126","v":"Dec 2019"},{"$f":"ZZZ__FnCalls!H115","v":"2019"},{"$f":"ZZZ__FnCalls!F127","v":"Jan 2020"},{"$f":"ZZZ__FnCalls!F128","v":"Feb 2020"},{"$f":"ZZZ__FnCalls!F129","v":"Mar 2020"},{"$f":"ZZZ__FnCalls!F130","v":"Apr 2020"},{"$f":"ZZZ__FnCalls!F131","v":"May 2020"},{"$f":"ZZZ__FnCalls!F132","v":"Jun 2020"},{"$f":"ZZZ__FnCalls!F133","v":"Jul 2020"},{"$f":"ZZZ__FnCalls!F134","v":"Aug 2020"},{"$f":"ZZZ__FnCalls!F135","v":"Sep 2020"},{"$f":"ZZZ__FnCalls!F136","v":"Oct 2020"},{"$f":"ZZZ__FnCalls!F137","v":"Nov 2020"},{"$f":"ZZZ__FnCalls!F138","v":"Dec 2020"},{"$f":"ZZZ__FnCalls!H127","v":"2020"}]
[null,{"$f":"ZZZ__FnCalls!A7","v":"2010-01-01"},{"$f":"ZZZ__FnCalls!A8","v":"2010-02-01"},{"$f":"ZZZ__FnCalls!A9","v":"2010-03-01"},{"$f":"ZZZ__FnCalls!A10","v":"2010-04-01"},{"$f":"ZZZ__FnCalls!A11","v":"2010-05-01"},{"$f":"ZZZ__FnCalls!A12","v":"2010-06-01"},{"$f":"ZZZ__FnCalls!A13","v":"2010-07-01"},{"$f":"ZZZ__FnCalls!A14","v":"2010-08-01"},{"$f":"ZZZ__FnCalls!A15","v":"2010-09-01"},{"$f":"ZZZ__FnCalls!A16","v":"2010-10-01"},{"$f":"ZZZ__FnCalls!A17","v":"2010-11-01"},{"$f":"ZZZ__FnCalls!A18","v":"2010-12-01"},{"$f":"ZZZ__FnCalls!A7","v":"2010-01-01"},{"$f":"ZZZ__FnCalls!A19","v":"2011-01-01"},{"$f":"ZZZ__FnCalls!A20","v":"2011-02-01"},{"$f":"ZZZ__FnCalls!A21","v":"2011-03-01"},{"$f":"ZZZ__FnCalls!A22","v":"2011-04-01"},{"$f":"ZZZ__FnCalls!A23","v":"2011-05-01"},{"$f":"ZZZ__FnCalls!A24","v":"2011-06-01"},{"$f":"ZZZ__FnCalls!A25","v":"2011-07-01"},{"$f":"ZZZ__FnCalls!A26","v":"2011-08-01"},{"$f":"ZZZ__FnCalls!A27","v":"2011-09-01"},{"$f":"ZZZ__FnCalls!A28","v":"2011-10-01"},{"$f":"ZZZ__FnCalls!A29","v":"2011-11-01"},{"$f":"ZZZ__FnCalls!A30","v":"2011-12-01"},{"$f":"ZZZ__FnCalls!A19","v":"2011-01-01"},{"$f":"ZZZ__FnCalls!A31","v":"2012-01-01"},{"$f":"ZZZ__FnCalls!A32","v":"2012-02-01"},{"$f":"ZZZ__FnCalls!A33","v":"2012-03-01"},{"$f":"ZZZ__FnCalls!A34","v":"2012-04-01"},{"$f":"ZZZ__FnCalls!A35","v":"2012-05-01"},{"$f":"ZZZ__FnCalls!A36","v":"2012-06-01"},{"$f":"ZZZ__FnCalls!A37","v":"2012-07-01"},{"$f":"ZZZ__FnCalls!A38","v":"2012-08-01"},{"$f":"ZZZ__FnCalls!A39","v":"2012-09-01"},{"$f":"ZZZ__FnCalls!A40","v":"2012-10-01"},{"$f":"ZZZ__FnCalls!A41","v":"2012-11-01"},{"$f":"ZZZ__FnCalls!A42","v":"2012-12-01"},{"$f":"ZZZ__FnCalls!A31","v":"2012-01-01"},{"$f":"ZZZ__FnCalls!A43","v":"2013-01-01"},{"$f":"ZZZ__FnCalls!A44","v":"2013-02-01"},{"$f":"ZZZ__FnCalls!A45","v":"2013-03-01"},{"$f":"ZZZ__FnCalls!A46","v":"2013-04-01"},{"$f":"ZZZ__FnCalls!A47","v":"2013-05-01"},{"$f":"ZZZ__FnCalls!A48","v":"2013-06-01"},{"$f":"ZZZ__FnCalls!A49","v":"2013-07-01"},{"$f":"ZZZ__FnCalls!A50","v":"2013-08-01"},{"$f":"ZZZ__FnCalls!A51","v":"2013-09-01"},{"$f":"ZZZ__FnCalls!A52","v":"2013-10-01"},{"$f":"ZZZ__FnCalls!A53","v":"2013-11-01"},{"$f":"ZZZ__FnCalls!A54","v":"2013-12-01"},{"$f":"ZZZ__FnCalls!A43","v":"2013-01-01"},{"$f":"ZZZ__FnCalls!A55","v":"2014-01-01"},{"$f":"ZZZ__FnCalls!A56","v":"2014-02-01"},{"$f":"ZZZ__FnCalls!A57","v":"2014-03-01"},{"$f":"ZZZ__FnCalls!A58","v":"2014-04-01"},{"$f":"ZZZ__FnCalls!A59","v":"2014-05-01"},{"$f":"ZZZ__FnCalls!A60","v":"2014-06-01"},{"$f":"ZZZ__FnCalls!A61","v":"2014-07-01"},{"$f":"ZZZ__FnCalls!A62","v":"2014-08-01"},{"$f":"ZZZ__FnCalls!A63","v":"2014-09-01"},{"$f":"ZZZ__FnCalls!A64","v":"2014-10-01"},{"$f":"ZZZ__FnCalls!A65","v":"2014-11-01"},{"$f":"ZZZ__FnCalls!A66","v":"2014-12-01"},{"$f":"ZZZ__FnCalls!A55","v":"2014-01-01"},{"$f":"ZZZ__FnCalls!A67","v":"2015-01-01"},{"$f":"ZZZ__FnCalls!A68","v":"2015-02-01"},{"$f":"ZZZ__FnCalls!A69","v":"2015-03-01"},{"$f":"ZZZ__FnCalls!A70","v":"2015-04-01"},{"$f":"ZZZ__FnCalls!A71","v":"2015-05-01"},{"$f":"ZZZ__FnCalls!A72","v":"2015-06-01"},{"$f":"ZZZ__FnCalls!A73","v":"2015-07-01"},{"$f":"ZZZ__FnCalls!A74","v":"2015-08-01"},{"$f":"ZZZ__FnCalls!A75","v":"2015-09-01"},{"$f":"ZZZ__FnCalls!A76","v":"2015-10-01"},{"$f":"ZZZ__FnCalls!A77","v":"2015-11-01"},{"$f":"ZZZ__FnCalls!A78","v":"2015-12-01"},{"$f":"ZZZ__FnCalls!A67","v":"2015-01-01"},{"$f":"ZZZ__FnCalls!A79","v":"2016-01-01"},{"$f":"ZZZ__FnCalls!A80","v":"2016-02-01"},{"$f":"ZZZ__FnCalls!A81","v":"2016-03-01"},{"$f":"ZZZ__FnCalls!A82","v":"2016-04-01"},{"$f":"ZZZ__FnCalls!A83","v":"2016-05-01"},{"$f":"ZZZ__FnCalls!A84","v":"2016-06-01"},{"$f":"ZZZ__FnCalls!A85","v":"2016-07-01"},{"$f":"ZZZ__FnCalls!A86","v":"2016-08-01"},{"$f":"ZZZ__FnCalls!A87","v":"2016-09-01"},{"$f":"ZZZ__FnCalls!A88","v":"2016-10-01"},{"$f":"ZZZ__FnCalls!A89","v":"2016-11-01"},{"$f":"ZZZ__FnCalls!A90","v":"2016-12-01"},{"$f":"ZZZ__FnCalls!A79","v":"2016-01-01"},{"$f":"ZZZ__FnCalls!A91","v":"2017-01-01"},{"$f":"ZZZ__FnCalls!A92","v":"2017-02-01"},{"$f":"ZZZ__FnCalls!A93","v":"2017-03-01"},{"$f":"ZZZ__FnCalls!A94","v":"2017-04-01"},{"$f":"ZZZ__FnCalls!A95","v":"2017-05-01"},{"$f":"ZZZ__FnCalls!A96","v":"2017-06-01"},{"$f":"ZZZ__FnCalls!A97","v":"2017-07-01"},{"$f":"ZZZ__FnCalls!A98","v":"2017-08-01"},{"$f":"ZZZ__FnCalls!A99","v":"2017-09-01"},{"$f":"ZZZ__FnCalls!A100","v":"2017-10-01"},{"$f":"ZZZ__FnCalls!A101","v":"2017-11-01"},{"$f":"ZZZ__FnCalls!A102","v":"2017-12-01"},{"$f":"ZZZ__FnCalls!A91","v":"2017-01-01"},{"$f":"ZZZ__FnCalls!A103","v":"2018-01-01"},{"$f":"ZZZ__FnCalls!A104","v":"2018-02-01"},{"$f":"ZZZ__FnCalls!A105","v":"2018-03-01"},{"$f":"ZZZ__FnCalls!A106","v":"2018-04-01"},{"$f":"ZZZ__FnCalls!A107","v":"2018-05-01"},{"$f":"ZZZ__FnCalls!A108","v":"2018-06-01"},{"$f":"ZZZ__FnCalls!A109","v":"2018-07-01"},{"$f":"ZZZ__FnCalls!A110","v":"2018-08-01"},{"$f":"ZZZ__FnCalls!A111","v":"2018-09-01"},{"$f":"ZZZ__FnCalls!A112","v":"2018-10-01"},{"$f":"ZZZ__FnCalls!A113","v":"2018-11-01"},{"$f":"ZZZ__FnCalls!A114","v":"2018-12-01"},{"$f":"ZZZ__FnCalls!A103","v":"2018-01-01"},{"$f":"ZZZ__FnCalls!A115","v":"2019-01-01"},{"$f":"ZZZ__FnCalls!A116","v":"2019-02-01"},{"$f":"ZZZ__FnCalls!A117","v":"2019-03-01"},{"$f":"ZZZ__FnCalls!A118","v":"2019-04-01"},{"$f":"ZZZ__FnCalls!A119","v":"2019-05-01"},{"$f":"ZZZ__FnCalls!A120","v":"2019-06-01"},{"$f":"ZZZ__FnCalls!A121","v":"2019-07-01"},{"$f":"ZZZ__FnCalls!A122","v":"2019-08-01"},{"$f":"ZZZ__FnCalls!A123","v":"2019-09-01"},{"$f":"ZZZ__FnCalls!A124","v":"2019-10-01"},{"$f":"ZZZ__FnCalls!A125","v":"2019-11-01"},{"$f":"ZZZ__FnCalls!A126","v":"2019-12-01"},{"$f":"ZZZ__FnCalls!A115","v":"2019-01-01"},{"$f":"ZZZ__FnCalls!A127","v":"2020-01-01"},{"$f":"ZZZ__FnCalls!A128","v":"2020-02-01"},{"$f":"ZZZ__FnCalls!A129","v":"2020-03-01"},{"$f":"ZZZ__FnCalls!A130","v":"2020-04-01"},{"$f":"ZZZ__FnCalls!A131","v":"2020-05-01"},{"$f":"ZZZ__FnCalls!A132","v":"2020-06-01"},{"$f":"ZZZ__FnCalls!A133","v":"2020-07-01"},{"$f":"ZZZ__FnCalls!A134","v":"2020-08-01"},{"$f":"ZZZ__FnCalls!A135","v":"2020-09-01"},{"$f":"ZZZ__FnCalls!A136","v":"2020-10-01"},{"$f":"ZZZ__FnCalls!A137","v":"2020-11-01"},{"$f":"ZZZ__FnCalls!A138","v":"2020-12-01"},{"$f":"ZZZ__FnCalls!A127","v":"2020-01-01"}]
[{"$f":"\"Demand_Expected_Short_2\"","v":"Demand_Expected_Short_2"}]
[null,{"$f":"ZZZ__FnCalls!F7","v":"Jan 2010"},{"$f":"ZZZ__FnCalls!F8","v":"Feb 2010"},{"$f":"ZZZ__FnCalls!F9","v":"Mar 2010"},{"$f":"ZZZ__FnCalls!F10","v":"Apr 2010"},{"$f":"ZZZ__FnCalls!F11","v":"May 2010"},{"$f":"ZZZ__FnCalls!F12","v":"Jun 2010"},{"$f":"ZZZ__FnCalls!F13","v":"Jul 2010"},{"$f":"ZZZ__FnCalls!F14","v":"Aug 2010"},{"$f":"ZZZ__FnCalls!F15","v":"Sep 2010"},{"$f":"ZZZ__FnCalls!F16","v":"Oct 2010"},{"$f":"ZZZ__FnCalls!F17","v":"Nov 2010"},{"$f":"ZZZ__FnCalls!F18","v":"Dec 2010"},{"$f":"ZZZ__FnCalls!H7","v":"2010"},{"$f":"ZZZ__FnCalls!F19","v":"Jan 2011"},{"$f":"ZZZ__FnCalls!F20","v":"Feb 2011"},{"$f":"ZZZ__FnCalls!F21","v":"Mar 2011"},{"$f":"ZZZ__FnCalls!F22","v":"Apr 2011"},{"$f":"ZZZ__FnCalls!F23","v":"May 2011"},{"$f":"ZZZ__FnCalls!F24","v":"Jun 2011"},{"$f":"ZZZ__FnCalls!F25","v":"Jul 2011"},{"$f":"ZZZ__FnCalls!F26","v":"Aug 2011"},{"$f":"ZZZ__FnCalls!F27","v":"Sep 2011"},{"$f":"ZZZ__FnCalls!F28","v":"Oct 2011"},{"$f":"ZZZ__FnCalls!F29","v":"Nov 2011"},{"$f":"ZZZ__FnCalls!F30","v":"Dec 2011"},{"$f":"ZZZ__FnCalls!H19","v":"2011"},{"$f":"ZZZ__FnCalls!F31","v":"Jan 2012"},{"$f":"ZZZ__FnCalls!F32","v":"Feb 2012"},{"$f":"ZZZ__FnCalls!F33","v":"Mar 2012"},{"$f":"ZZZ__FnCalls!F34","v":"Apr 2012"},{"$f":"ZZZ__FnCalls!F35","v":"May 2012"},{"$f":"ZZZ__FnCalls!F36","v":"Jun 2012"},{"$f":"ZZZ__FnCalls!F37","v":"Jul 2012"},{"$f":"ZZZ__FnCalls!F38","v":"Aug 2012"},{"$f":"ZZZ__FnCalls!F39","v":"Sep 2012"},{"$f":"ZZZ__FnCalls!F40","v":"Oct 2012"},{"$f":"ZZZ__FnCalls!F41","v":"Nov 2012"},{"$f":"ZZZ__FnCalls!F42","v":"Dec 2012"},{"$f":"ZZZ__FnCalls!H31","v":"2012"},{"$f":"ZZZ__FnCalls!F43","v":"Jan 2013"},{"$f":"ZZZ__FnCalls!F44","v":"Feb 2013"},{"$f":"ZZZ__FnCalls!F45","v":"Mar 2013"},{"$f":"ZZZ__FnCalls!F46","v":"Apr 2013"},{"$f":"ZZZ__FnCalls!F47","v":"May 2013"},{"$f":"ZZZ__FnCalls!F48","v":"Jun 2013"},{"$f":"ZZZ__FnCalls!F49","v":"Jul 2013"},{"$f":"ZZZ__FnCalls!F50","v":"Aug 2013"},{"$f":"ZZZ__FnCalls!F51","v":"Sep 2013"},{"$f":"ZZZ__FnCalls!F52","v":"Oct 2013"},{"$f":"ZZZ__FnCalls!F53","v":"Nov 2013"},{"$f":"ZZZ__FnCalls!F54","v":"Dec 2013"},{"$f":"ZZZ__FnCalls!H43","v":"2013"},{"$f":"ZZZ__FnCalls!F55","v":"Jan 2014"},{"$f":"ZZZ__FnCalls!F56","v":"Feb 2014"},{"$f":"ZZZ__FnCalls!F57","v":"Mar 2014"},{"$f":"ZZZ__FnCalls!F58","v":"Apr 2014"},{"$f":"ZZZ__FnCalls!F59","v":"May 2014"},{"$f":"ZZZ__FnCalls!F60","v":"Jun 2014"},{"$f":"ZZZ__FnCalls!F61","v":"Jul 2014"},{"$f":"ZZZ__FnCalls!F62","v":"Aug 2014"},{"$f":"ZZZ__FnCalls!F63","v":"Sep 2014"},{"$f":"ZZZ__FnCalls!F64","v":"Oct 2014"},{"$f":"ZZZ__FnCalls!F65","v":"Nov 2014"},{"$f":"ZZZ__FnCalls!F66","v":"Dec 2014"},{"$f":"ZZZ__FnCalls!H55","v":"2014"},{"$f":"ZZZ__FnCalls!F67","v":"Jan 2015"},{"$f":"ZZZ__FnCalls!F68","v":"Feb 2015"},{"$f":"ZZZ__FnCalls!F69","v":"Mar 2015"},{"$f":"ZZZ__FnCalls!F70","v":"Apr 2015"},{"$f":"ZZZ__FnCalls!F71","v":"May 2015"},{"$f":"ZZZ__FnCalls!F72","v":"Jun 2015"},{"$f":"ZZZ__FnCalls!F73","v":"Jul 2015"},{"$f":"ZZZ__FnCalls!F74","v":"Aug 2015"},{"$f":"ZZZ__FnCalls!F75","v":"Sep 2015"},{"$f":"ZZZ__FnCalls!F76","v":"Oct 2015"},{"$f":"ZZZ__FnCalls!F77","v":"Nov 2015"},{"$f":"ZZZ__FnCalls!F78","v":"Dec 2015"},{"$f":"ZZZ__FnCalls!H67","v":"2015"},{"$f":"ZZZ__FnCalls!F79","v":"Jan 2016"},{"$f":"ZZZ__FnCalls!F80","v":"Feb 2016"},{"$f":"ZZZ__FnCalls!F81","v":"Mar 2016"},{"$f":"ZZZ__FnCalls!F82","v":"Apr 2016"},{"$f":"ZZZ__FnCalls!F83","v":"May 2016"},{"$f":"ZZZ__FnCalls!F84","v":"Jun 2016"},{"$f":"ZZZ__FnCalls!F85","v":"Jul 2016"},{"$f":"ZZZ__FnCalls!F86","v":"Aug 2016"},{"$f":"ZZZ__FnCalls!F87","v":"Sep 2016"},{"$f":"ZZZ__FnCalls!F88","v":"Oct 2016"},{"$f":"ZZZ__FnCalls!F89","v":"Nov 2016"},{"$f":"ZZZ__FnCalls!F90","v":"Dec 2016"},{"$f":"ZZZ__FnCalls!H79","v":"2016"},{"$f":"ZZZ__FnCalls!F91","v":"Jan 2017"},{"$f":"ZZZ__FnCalls!F92","v":"Feb 2017"},{"$f":"ZZZ__FnCalls!F93","v":"Mar 2017"},{"$f":"ZZZ__FnCalls!F94","v":"Apr 2017"},{"$f":"ZZZ__FnCalls!F95","v":"May 2017"},{"$f":"ZZZ__FnCalls!F96","v":"Jun 2017"},{"$f":"ZZZ__FnCalls!F97","v":"Jul 2017"},{"$f":"ZZZ__FnCalls!F98","v":"Aug 2017"},{"$f":"ZZZ__FnCalls!F99","v":"Sep 2017"},{"$f":"ZZZ__FnCalls!F100","v":"Oct 2017"},{"$f":"ZZZ__FnCalls!F101","v":"Nov 2017"},{"$f":"ZZZ__FnCalls!F102","v":"Dec 2017"},{"$f":"ZZZ__FnCalls!H91","v":"2017"},{"$f":"ZZZ__FnCalls!F103","v":"Jan 2018"},{"$f":"ZZZ__FnCalls!F104","v":"Feb 2018"},{"$f":"ZZZ__FnCalls!F105","v":"Mar 2018"},{"$f":"ZZZ__FnCalls!F106","v":"Apr 2018"},{"$f":"ZZZ__FnCalls!F107","v":"May 2018"},{"$f":"ZZZ__FnCalls!F108","v":"Jun 2018"},{"$f":"ZZZ__FnCalls!F109","v":"Jul 2018"},{"$f":"ZZZ__FnCalls!F110","v":"Aug 2018"},{"$f":"ZZZ__FnCalls!F111","v":"Sep 2018"},{"$f":"ZZZ__FnCalls!F112","v":"Oct 2018"},{"$f":"ZZZ__FnCalls!F113","v":"Nov 2018"},{"$f":"ZZZ__FnCalls!F114","v":"Dec 2018"},{"$f":"ZZZ__FnCalls!H103","v":"2018"},{"$f":"ZZZ__FnCalls!F115","v":"Jan 2019"},{"$f":"ZZZ__FnCalls!F116","v":"Feb 2019"},{"$f":"ZZZ__FnCalls!F117","v":"Mar 2019"},{"$f":"ZZZ__FnCalls!F118","v":"Apr 2019"},{"$f":"ZZZ__FnCalls!F119","v":"May 2019"},{"$f":"ZZZ__FnCalls!F120","v":"Jun 2019"},{"$f":"ZZZ__FnCalls!F121","v":"Jul 2019"},{"$f":"ZZZ__FnCalls!F122","v":"Aug 2019"},{"$f":"ZZZ__FnCalls!F123","v":"Sep 2019"},{"$f":"ZZZ__FnCalls!F124","v":"Oct 2019"},{"$f":"ZZZ__FnCalls!F125","v":"Nov 2019"},{"$f":"ZZZ__FnCalls!F126","v":"Dec 2019"},{"$f":"ZZZ__FnCalls!H115","v":"2019"},{"$f":"ZZZ__FnCalls!F127","v":"Jan 2020"},{"$f":"ZZZ__FnCalls!F128","v":"Feb 2020"},{"$f":"ZZZ__FnCalls!F129","v":"Mar 2020"},{"$f":"ZZZ__FnCalls!F130","v":"Apr 2020"},{"$f":"ZZZ__FnCalls!F131","v":"May 2020"},{"$f":"ZZZ__FnCalls!F132","v":"Jun 2020"},{"$f":"ZZZ__FnCalls!F133","v":"Jul 2020"},{"$f":"ZZZ__FnCalls!F134","v":"Aug 2020"},{"$f":"ZZZ__FnCalls!F135","v":"Sep 2020"},{"$f":"ZZZ__FnCalls!F136","v":"Oct 2020"},{"$f":"ZZZ__FnCalls!F137","v":"Nov 2020"},{"$f":"ZZZ__FnCalls!F138","v":"Dec 2020"},{"$f":"ZZZ__FnCalls!H127","v":"2020"}]
[null,{"$f":"ZZZ__FnCalls!F7","v":"Jan 2010"},{"$f":"ZZZ__FnCalls!F8","v":"Feb 2010"},{"$f":"ZZZ__FnCalls!F9","v":"Mar 2010"},{"$f":"ZZZ__FnCalls!F10","v":"Apr 2010"},{"$f":"ZZZ__FnCalls!F11","v":"May 2010"},{"$f":"ZZZ__FnCalls!F12","v":"Jun 2010"},{"$f":"ZZZ__FnCalls!F13","v":"Jul 2010"},{"$f":"ZZZ__FnCalls!F14","v":"Aug 2010"},{"$f":"ZZZ__FnCalls!F15","v":"Sep 2010"},{"$f":"ZZZ__FnCalls!F16","v":"Oct 2010"},{"$f":"ZZZ__FnCalls!F17","v":"Nov 2010"},{"$f":"ZZZ__FnCalls!F18","v":"Dec 2010"},{"$f":"ZZZ__FnCalls!F7","v":"Jan 2010"},{"$f":"ZZZ__FnCalls!F19","v":"Jan 2011"},{"$f":"ZZZ__FnCalls!F20","v":"Feb 2011"},{"$f":"ZZZ__FnCalls!F21","v":"Mar 2011"},{"$f":"ZZZ__FnCalls!F22","v":"Apr 2011"},{"$f":"ZZZ__FnCalls!F23","v":"May 2011"},{"$f":"ZZZ__FnCalls!F24","v":"Jun 2011"},{"$f":"ZZZ__FnCalls!F25","v":"Jul 2011"},{"$f":"ZZZ__FnCalls!F26","v":"Aug 2011"},{"$f":"ZZZ__FnCalls!F27","v":"Sep 2011"},{"$f":"ZZZ__FnCalls!F28","v":"Oct 2011"},{"$f":"ZZZ__FnCalls!F29","v":"Nov 2011"},{"$f":"ZZZ__FnCalls!F30","v":"Dec 2011"},{"$f":"ZZZ__FnCalls!F19","v":"Jan 2011"},{"$f":"ZZZ__FnCalls!F31","v":"Jan 2012"},{"$f":"ZZZ__FnCalls!F32","v":"Feb 2012"},{"$f":"ZZZ__FnCalls!F33","v":"Mar 2012"},{"$f":"ZZZ__FnCalls!F34","v":"Apr 2012"},{"$f":"ZZZ__FnCalls!F35","v":"May 2012"},{"$f":"ZZZ__FnCalls!F36","v":"Jun 2012"},{"$f":"ZZZ__FnCalls!F37","v":"Jul 2012"},{"$f":"ZZZ__FnCalls!F38","v":"Aug 2012"},{"$f":"ZZZ__FnCalls!F39","v":"Sep 2012"},{"$f":"ZZZ__FnCalls!F40","v":"Oct 2012"},{"$f":"ZZZ__FnCalls!F41","v":"Nov 2012"},{"$f":"ZZZ__FnCalls!F42","v":"Dec 2012"},{"$f":"ZZZ__FnCalls!F31","v":"Jan 2012"},{"$f":"ZZZ__FnCalls!F43","v":"Jan 2013"},{"$f":"ZZZ__FnCalls!F44","v":"Feb 2013"},{"$f":"ZZZ__FnCalls!F45","v":"Mar 2013"},{"$f":"ZZZ__FnCalls!F46","v":"Apr 2013"},{"$f":"ZZZ__FnCalls!F47","v":"May 2013"},{"$f":"ZZZ__FnCalls!F48","v":"Jun 2013"},{"$f":"ZZZ__FnCalls!F49","v":"Jul 2013"},{"$f":"ZZZ__FnCalls!F50","v":"Aug 2013"},{"$f":"ZZZ__FnCalls!F51","v":"Sep 2013"},{"$f":"ZZZ__FnCalls!F52","v":"Oct 2013"},{"$f":"ZZZ__FnCalls!F53","v":"Nov 2013"},{"$f":"ZZZ__FnCalls!F54","v":"Dec 2013"},{"$f":"ZZZ__FnCalls!F43","v":"Jan 2013"},{"$f":"ZZZ__FnCalls!F55","v":"Jan 2014"},{"$f":"ZZZ__FnCalls!F56","v":"Feb 2014"},{"$f":"ZZZ__FnCalls!F57","v":"Mar 2014"},{"$f":"ZZZ__FnCalls!F58","v":"Apr 2014"},{"$f":"ZZZ__FnCalls!F59","v":"May 2014"},{"$f":"ZZZ__FnCalls!F60","v":"Jun 2014"},{"$f":"ZZZ__FnCalls!F61","v":"Jul 2014"},{"$f":"ZZZ__FnCalls!F62","v":"Aug 2014"},{"$f":"ZZZ__FnCalls!F63","v":"Sep 2014"},{"$f":"ZZZ__FnCalls!F64","v":"Oct 2014"},{"$f":"ZZZ__FnCalls!F65","v":"Nov 2014"},{"$f":"ZZZ__FnCalls!F66","v":"Dec 2014"},{"$f":"ZZZ__FnCalls!F55","v":"Jan 2014"},{"$f":"ZZZ__FnCalls!F67","v":"Jan 2015"},{"$f":"ZZZ__FnCalls!F68","v":"Feb 2015"},{"$f":"ZZZ__FnCalls!F69","v":"Mar 2015"},{"$f":"ZZZ__FnCalls!F70","v":"Apr 2015"},{"$f":"ZZZ__FnCalls!F71","v":"May 2015"},{"$f":"ZZZ__FnCalls!F72","v":"Jun 2015"},{"$f":"ZZZ__FnCalls!F73","v":"Jul 2015"},{"$f":"ZZZ__FnCalls!F74","v":"Aug 2015"},{"$f":"ZZZ__FnCalls!F75","v":"Sep 2015"},{"$f":"ZZZ__FnCalls!F76","v":"Oct 2015"},{"$f":"ZZZ__FnCalls!F77","v":"Nov 2015"},{"$f":"ZZZ__FnCalls!F78","v":"Dec 2015"},{"$f":"ZZZ__FnCalls!F67","v":"Jan 2015"},{"$f":"ZZZ__FnCalls!F79","v":"Jan 2016"},{"$f":"ZZZ__FnCalls!F80","v":"Feb 2016"},{"$f":"ZZZ__FnCalls!F81","v":"Mar 2016"},{"$f":"ZZZ__FnCalls!F82","v":"Apr 2016"},{"$f":"ZZZ__FnCalls!F83","v":"May 2016"},{"$f":"ZZZ__FnCalls!F84","v":"Jun 2016"},{"$f":"ZZZ__FnCalls!F85","v":"Jul 2016"},{"$f":"ZZZ__FnCalls!F86","v":"Aug 2016"},{"$f":"ZZZ__FnCalls!F87","v":"Sep 2016"},{"$f":"ZZZ__FnCalls!F88","v":"Oct 2016"},{"$f":"ZZZ__FnCalls!F89","v":"Nov 2016"},{"$f":"ZZZ__FnCalls!F90","v":"Dec 2016"},{"$f":"ZZZ__FnCalls!F79","v":"Jan 2016"},{"$f":"ZZZ__FnCalls!F91","v":"Jan 2017"},{"$f":"ZZZ__FnCalls!F92","v":"Feb 2017"},{"$f":"ZZZ__FnCalls!F93","v":"Mar 2017"},{"$f":"ZZZ__FnCalls!F94","v":"Apr 2017"},{"$f":"ZZZ__FnCalls!F95","v":"May 2017"},{"$f":"ZZZ__FnCalls!F96","v":"Jun 2017"},{"$f":"ZZZ__FnCalls!F97","v":"Jul 2017"},{"$f":"ZZZ__FnCalls!F98","v":"Aug 2017"},{"$f":"ZZZ__FnCalls!F99","v":"Sep 2017"},{"$f":"ZZZ__FnCalls!F100","v":"Oct 2017"},{"$f":"ZZZ__FnCalls!F101","v":"Nov 2017"},{"$f":"ZZZ__FnCalls!F102","v":"Dec 2017"},{"$f":"ZZZ__FnCalls!F91","v":"Jan 2017"},{"$f":"ZZZ__FnCalls!F103","v":"Jan 2018"},{"$f":"ZZZ__FnCalls!F104","v":"Feb 2018"},{"$f":"ZZZ__FnCalls!F105","v":"Mar 2018"},{"$f":"ZZZ__FnCalls!F106","v":"Apr 2018"},{"$f":"ZZZ__FnCalls!F107","v":"May 2018"},{"$f":"ZZZ__FnCalls!F108","v":"Jun 2018"},{"$f":"ZZZ__FnCalls!F109","v":"Jul 2018"},{"$f":"ZZZ__FnCalls!F110","v":"Aug 2018"},{"$f":"ZZZ__FnCalls!F111","v":"Sep 2018"},{"$f":"ZZZ__FnCalls!F112","v":"Oct 2018"},{"$f":"ZZZ__FnCalls!F113","v":"Nov 2018"},{"$f":"ZZZ__FnCalls!F114","v":"Dec 2018"},{"$f":"ZZZ__FnCalls!F103","v":"Jan 2018"},{"$f":"ZZZ__FnCalls!F115","v":"Jan 2019"},{"$f":"ZZZ__FnCalls!F116","v":"Feb 2019"},{"$f":"ZZZ__FnCalls!F117","v":"Mar 2019"},{"$f":"ZZZ__FnCalls!F118","v":"Apr 2019"},{"$f":"ZZZ__FnCalls!F119","v":"May 2019"},{"$f":"ZZZ__FnCalls!F120","v":"Jun 2019"},{"$f":"ZZZ__FnCalls!F121","v":"Jul 2019"},{"$f":"ZZZ__FnCalls!F122","v":"Aug 2019"},{"$f":"ZZZ__FnCalls!F123","v":"Sep 2019"},{"$f":"ZZZ__FnCalls!F124","v":"Oct 2019"},{"$f":"ZZZ__FnCalls!F125","v":"Nov 2019"},{"$f":"ZZZ__FnCalls!F126","v":"Dec 2019"},{"$f":"ZZZ__FnCalls!F115","v":"Jan 2019"},{"$f":"ZZZ__FnCalls!F127","v":"Jan 2020"},{"$f":"ZZZ__FnCalls!F128","v":"Feb 2020"},{"$f":"ZZZ__FnCalls!F129","v":"Mar 2020"},{"$f":"ZZZ__FnCalls!F130","v":"Apr 2020"},{"$f":"ZZZ__FnCalls!F131","v":"May 2020"},{"$f":"ZZZ__FnCalls!F132","v":"Jun 2020"},{"$f":"ZZZ__FnCalls!F133","v":"Jul 2020"},{"$f":"ZZZ__FnCalls!F134","v":"Aug 2020"},{"$f":"ZZZ__FnCalls!F135","v":"Sep 2020"},{"$f":"ZZZ__FnCalls!F136","v":"Oct 2020"},{"$f":"ZZZ__FnCalls!F137","v":"Nov 2020"},{"$f":"ZZZ__FnCalls!F138","v":"Dec 2020"},{"$f":"ZZZ__FnCalls!F127","v":"Jan 2020"}]
[{"$f":"\"Capital_1\"","v":"Capital_1"}]
[null,{"$f":"ZZZ__FnCalls!F7","v":"Jan 2010"},{"$f":"ZZZ__FnCalls!F8","v":"Feb 2010"},{"$f":"ZZZ__FnCalls!F9","v":"Mar 2010"},{"$f":"ZZZ__FnCalls!F10","v":"Apr 2010"},{"$f":"ZZZ__FnCalls!F11","v":"May 2010"},{"$f":"ZZZ__FnCalls!F12","v":"Jun 2010"},{"$f":"ZZZ__FnCalls!F13","v":"Jul 2010"},{"$f":"ZZZ__FnCalls!F14","v":"Aug 2010"},{"$f":"ZZZ__FnCalls!F15","v":"Sep 2010"},{"$f":"ZZZ__FnCalls!F16","v":"Oct 2010"},{"$f":"ZZZ__FnCalls!F17","v":"Nov 2010"},{"$f":"ZZZ__FnCalls!F18","v":"Dec 2010"},{"$f":"ZZZ__FnCalls!H7","v":"2010"},{"$f":"ZZZ__FnCalls!F19","v":"Jan 2011"},{"$f":"ZZZ__FnCalls!F20","v":"Feb 2011"},{"$f":"ZZZ__FnCalls!F21","v":"Mar 2011"},{"$f":"ZZZ__FnCalls!F22","v":"Apr 2011"},{"$f":"ZZZ__FnCalls!F23","v":"May 2011"},{"$f":"ZZZ__FnCalls!F24","v":"Jun 2011"},{"$f":"ZZZ__FnCalls!F25","v":"Jul 2011"},{"$f":"ZZZ__FnCalls!F26","v":"Aug 2011"},{"$f":"ZZZ__FnCalls!F27","v":"Sep 2011"},{"$f":"ZZZ__FnCalls!F28","v":"Oct 2011"},{"$f":"ZZZ__FnCalls!F29","v":"Nov 2011"},{"$f":"ZZZ__FnCalls!F30","v":"Dec 2011"},{"$f":"ZZZ__FnCalls!H19","v":"2011"},{"$f":"ZZZ__FnCalls!F31","v":"Jan 2012"},{"$f":"ZZZ__FnCalls!F32","v":"Feb 2012"},{"$f":"ZZZ__FnCalls!F33","v":"Mar 2012"},{"$f":"ZZZ__FnCalls!F34","v":"Apr 2012"},{"$f":"ZZZ__FnCalls!F35","v":"May 2012"},{"$f":"ZZZ__FnCalls!F36","v":"Jun 2012"},{"$f":"ZZZ__FnCalls!F37","v":"Jul 2012"},{"$f":"ZZZ__FnCalls!F38","v":"Aug 2012"},{"$f":"ZZZ__FnCalls!F39","v":"Sep 2012"},{"$f":"ZZZ__FnCalls!F40","v":"Oct 2012"},{"$f":"ZZZ__FnCalls!F41","v":"Nov 2012"},{"$f":"ZZZ__FnCalls!F42","v":"Dec 2012"},{"$f":"ZZZ__FnCalls!H31","v":"2012"},{"$f":"ZZZ__FnCalls!F43","v":"Jan 2013"},{"$f":"ZZZ__FnCalls!F44","v":"Feb 2013"},{"$f":"ZZZ__FnCalls!F45","v":"Mar 2013"},{"$f":"ZZZ__FnCalls!F46","v":"Apr 2013"},{"$f":"ZZZ__FnCalls!F47","v":"May 2013"},{"$f":"ZZZ__FnCalls!F48","v":"Jun 2013"},{"$f":"ZZZ__FnCalls!F49","v":"Jul 2013"},{"$f":"ZZZ__FnCalls!F50","v":"Aug 2013"},{"$f":"ZZZ__FnCalls!F51","v":"Sep 2013"},{"$f":"ZZZ__FnCalls!F52","v":"Oct 2013"},{"$f":"ZZZ__FnCalls!F53","v":"Nov 2013"},{"$f":"ZZZ__FnCalls!F54","v":"Dec 2013"},{"$f":"ZZZ__FnCalls!H43","v":"2013"},{"$f":"ZZZ__FnCalls!F55","v":"Jan 2014"},{"$f":"ZZZ__FnCalls!F56","v":"Feb 2014"},{"$f":"ZZZ__FnCalls!F57","v":"Mar 2014"},{"$f":"ZZZ__FnCalls!F58","v":"Apr 2014"},{"$f":"ZZZ__FnCalls!F59","v":"May 2014"},{"$f":"ZZZ__FnCalls!F60","v":"Jun 2014"},{"$f":"ZZZ__FnCalls!F61","v":"Jul 2014"},{"$f":"ZZZ__FnCalls!F62","v":"Aug 2014"},{"$f":"ZZZ__FnCalls!F63","v":"Sep 2014"},{"$f":"ZZZ__FnCalls!F64","v":"Oct 2014"},{"$f":"ZZZ__FnCalls!F65","v":"Nov 2014"},{"$f":"ZZZ__FnCalls!F66","v":"Dec 2014"},{"$f":"ZZZ__FnCalls!H55","v":"2014"},{"$f":"ZZZ__FnCalls!F67","v":"Jan 2015"},{"$f":"ZZZ__FnCalls!F68","v":"Feb 2015"},{"$f":"ZZZ__FnCalls!F69","v":"Mar 2015"},{"$f":"ZZZ__FnCalls!F70","v":"Apr 2015"},{"$f":"ZZZ__FnCalls!F71","v":"May 2015"},{"$f":"ZZZ__FnCalls!F72","v":"Jun 2015"},{"$f":"ZZZ__FnCalls!F73","v":"Jul 2015"},{"$f":"ZZZ__FnCalls!F74","v":"Aug 2015"},{"$f":"ZZZ__FnCalls!F75","v":"Sep 2015"},{"$f":"ZZZ__FnCalls!F76","v":"Oct 2015"},{"$f":"ZZZ__FnCalls!F77","v":"Nov 2015"},{"$f":"ZZZ__FnCalls!F78","v":"Dec 2015"},{"$f":"ZZZ__FnCalls!H67","v":"2015"},{"$f":"ZZZ__FnCalls!F79","v":"Jan 2016"},{"$f":"ZZZ__FnCalls!F80","v":"Feb 2016"},{"$f":"ZZZ__FnCalls!F81","v":"Mar 2016"},{"$f":"ZZZ__FnCalls!F82","v":"Apr 2016"},{"$f":"ZZZ__FnCalls!F83","v":"May 2016"},{"$f":"ZZZ__FnCalls!F84","v":"Jun 2016"},{"$f":"ZZZ__FnCalls!F85","v":"Jul 2016"},{"$f":"ZZZ__FnCalls!F86","v":"Aug 2016"},{"$f":"ZZZ__FnCalls!F87","v":"Sep 2016"},{"$f":"ZZZ__FnCalls!F88","v":"Oct 2016"},{"$f":"ZZZ__FnCalls!F89","v":"Nov 2016"},{"$f":"ZZZ__FnCalls!F90","v":"Dec 2016"},{"$f":"ZZZ__FnCalls!H79","v":"2016"},{"$f":"ZZZ__FnCalls!F91","v":"Jan 2017"},{"$f":"ZZZ__FnCalls!F92","v":"Feb 2017"},{"$f":"ZZZ__FnCalls!F93","v":"Mar 2017"},{"$f":"ZZZ__FnCalls!F94","v":"Apr 2017"},{"$f":"ZZZ__FnCalls!F95","v":"May 2017"},{"$f":"ZZZ__FnCalls!F96","v":"Jun 2017"},{"$f":"ZZZ__FnCalls!F97","v":"Jul 2017"},{"$f":"ZZZ__FnCalls!F98","v":"Aug 2017"},{"$f":"ZZZ__FnCalls!F99","v":"Sep 2017"},{"$f":"ZZZ__FnCalls!F100","v":"Oct 2017"},{"$f":"ZZZ__FnCalls!F101","v":"Nov 2017"},{"$f":"ZZZ__FnCalls!F102","v":"Dec 2017"},{"$f":"ZZZ__FnCalls!H91","v":"2017"},{"$f":"ZZZ__FnCalls!F103","v":"Jan 2018"},{"$f":"ZZZ__FnCalls!F104","v":"Feb 2018"},{"$f":"ZZZ__FnCalls!F105","v":"Mar 2018"},{"$f":"ZZZ__FnCalls!F106","v":"Apr 2018"},{"$f":"ZZZ__FnCalls!F107","v":"May 2018"},{"$f":"ZZZ__FnCalls!F108","v":"Jun 2018"},{"$f":"ZZZ__FnCalls!F109","v":"Jul 2018"},{"$f":"ZZZ__FnCalls!F110","v":"Aug 2018"},{"$f":"ZZZ__FnCalls!F111","v":"Sep 2018"},{"$f":"ZZZ__FnCalls!F112","v":"Oct 2018"},{"$f":"ZZZ__FnCalls!F113","v":"Nov 2018"},{"$f":"ZZZ__FnCalls!F114","v":"Dec 2018"},{"$f":"ZZZ__FnCalls!H103","v":"2018"},{"$f":"ZZZ__FnCalls!F115","v":"Jan 2019"},{"$f":"ZZZ__FnCalls!F116","v":"Feb 2019"},{"$f":"ZZZ__FnCalls!F117","v":"Mar 2019"},{"$f":"ZZZ__FnCalls!F118","v":"Apr 2019"},{"$f":"ZZZ__FnCalls!F119","v":"May 2019"},{"$f":"ZZZ__FnCalls!F120","v":"Jun 2019"},{"$f":"ZZZ__FnCalls!F121","v":"Jul 2019"},{"$f":"ZZZ__FnCalls!F122","v":"Aug 2019"},{"$f":"ZZZ__FnCalls!F123","v":"Sep 2019"},{"$f":"ZZZ__FnCalls!F124","v":"Oct 2019"},{"$f":"ZZZ__FnCalls!F125","v":"Nov 2019"},{"$f":"ZZZ__FnCalls!F126","v":"Dec 2019"},{"$f":"ZZZ__FnCalls!H115","v":"2019"},{"$f":"ZZZ__FnCalls!F127","v":"Jan 2020"},{"$f":"ZZZ__FnCalls!F128","v":"Feb 2020"},{"$f":"ZZZ__FnCalls!F129","v":"Mar 2020"},{"$f":"ZZZ__FnCalls!F130","v":"Apr 2020"},{"$f":"ZZZ__FnCalls!F131","v":"May 2020"},{"$f":"ZZZ__FnCalls!F132","v":"Jun 2020"},{"$f":"ZZZ__FnCalls!F133","v":"Jul 2020"},{"$f":"ZZZ__FnCalls!F134","v":"Aug 2020"},{"$f":"ZZZ__FnCalls!F135","v":"Sep 2020"},{"$f":"ZZZ__FnCalls!F136","v":"Oct 2020"},{"$f":"ZZZ__FnCalls!F137","v":"Nov 2020"},{"$f":"ZZZ__FnCalls!F138","v":"Dec 2020"},{"$f":"ZZZ__FnCalls!H127","v":"2020"}]
[null,{"$f":"ZZZ__FnCalls!A7","v":"2010-01-01"},{"$f":"ZZZ__FnCalls!A8","v":"2010-02-01"},{"$f":"ZZZ__FnCalls!A9","v":"2010-03-01"},{"$f":"ZZZ__FnCalls!A10","v":"2010-04-01"},{"$f":"ZZZ__FnCalls!A11","v":"2010-05-01"},{"$f":"ZZZ__FnCalls!A12","v":"2010-06-01"},{"$f":"ZZZ__FnCalls!A13","v":"2010-07-01"},{"$f":"ZZZ__FnCalls!A14","v":"2010-08-01"},{"$f":"ZZZ__FnCalls!A15","v":"2010-09-01"},{"$f":"ZZZ__FnCalls!A16","v":"2010-10-01"},{"$f":"ZZZ__FnCalls!A17","v":"2010-11-01"},{"$f":"ZZZ__FnCalls!A18","v":"2010-12-01"},{"$f":"ZZZ__FnCalls!A7","v":"2010-01-01"},{"$f":"ZZZ__FnCalls!A19","v":"2011-01-01"},{"$f":"ZZZ__FnCalls!A20","v":"2011-02-01"},{"$f":"ZZZ__FnCalls!A21","v":"2011-03-01"},{"$f":"ZZZ__FnCalls!A22","v":"2011-04-01"},{"$f":"ZZZ__FnCalls!A23","v":"2011-05-01"},{"$f":"ZZZ__FnCalls!A24","v":"2011-06-01"},{"$f":"ZZZ__FnCalls!A25","v":"2011-07-01"},{"$f":"ZZZ__FnCalls!A26","v":"2011-08-01"},{"$f":"ZZZ__FnCalls!A27","v":"2011-09-01"},{"$f":"ZZZ__FnCalls!A28","v":"2011-10-01"},{"$f":"ZZZ__FnCalls!A29","v":"2011-11-01"},{"$f":"ZZZ__FnCalls!A30","v":"2011-12-01"},{"$f":"ZZZ__FnCalls!A19","v":"2011-01-01"},{"$f":"ZZZ__FnCalls!A31","v":"2012-01-01"},{"$f":"ZZZ__FnCalls!A32","v":"2012-02-01"},{"$f":"ZZZ__FnCalls!A33","v":"2012-03-01"},{"$f":"ZZZ__FnCalls!A34","v":"2012-04-01"},{"$f":"ZZZ__FnCalls!A35","v":"2012-05-01"},{"$f":"ZZZ__FnCalls!A36","v":"2012-06-01"},{"$f":"ZZZ__FnCalls!A37","v":"2012-07-01"},{"$f":"ZZZ__FnCalls!A38","v":"2012-08-01"},{"$f":"ZZZ__FnCalls!A39","v":"2012-09-01"},{"$f":"ZZZ__FnCalls!A40","v":"2012-10-01"},{"$f":"ZZZ__FnCalls!A41","v":"2012-11-01"},{"$f":"ZZZ__FnCalls!A42","v":"2012-12-01"},{"$f":"ZZZ__FnCalls!A31","v":"2012-01-01"},{"$f":"ZZZ__FnCalls!A43","v":"2013-01-01"},{"$f":"ZZZ__FnCalls!A44","v":"2013-02-01"},{"$f":"ZZZ__FnCalls!A45","v":"2013-03-01"},{"$f":"ZZZ__FnCalls!A46","v":"2013-04-01"},{"$f":"ZZZ__FnCalls!A47","v":"2013-05-01"},{"$f":"ZZZ__FnCalls!A48","v":"2013-06-01"},{"$f":"ZZZ__FnCalls!A49","v":"2013-07-01"},{"$f":"ZZZ__FnCalls!A50","v":"2013-08-01"},{"$f":"ZZZ__FnCalls!A51","v":"2013-09-01"},{"$f":"ZZZ__FnCalls!A52","v":"2013-10-01"},{"$f":"ZZZ__FnCalls!A53","v":"2013-11-01"},{"$f":"ZZZ__FnCalls!A54","v":"2013-12-01"},{"$f":"ZZZ__FnCalls!A43","v":"2013-01-01"},{"$f":"ZZZ__FnCalls!A55","v":"2014-01-01"},{"$f":"ZZZ__FnCalls!A56","v":"2014-02-01"},{"$f":"ZZZ__FnCalls!A57","v":"2014-03-01"},{"$f":"ZZZ__FnCalls!A58","v":"2014-04-01"},{"$f":"ZZZ__FnCalls!A59","v":"2014-05-01"},{"$f":"ZZZ__FnCalls!A60","v":"2014-06-01"},{"$f":"ZZZ__FnCalls!A61","v":"2014-07-01"},{"$f":"ZZZ__FnCalls!A62","v":"2014-08-01"},{"$f":"ZZZ__FnCalls!A63","v":"2014-09-01"},{"$f":"ZZZ__FnCalls!A64","v":"2014-10-01"},{"$f":"ZZZ__FnCalls!A65","v":"2014-11-01"},{"$f":"ZZZ__FnCalls!A66","v":"2014-12-01"},{"$f":"ZZZ__FnCalls!A55","v":"2014-01-01"},{"$f":"ZZZ__FnCalls!A67","v":"2015-01-01"},{"$f":"ZZZ__FnCalls!A68","v":"2015-02-01"},{"$f":"ZZZ__FnCalls!A69","v":"2015-03-01"},{"$f":"ZZZ__FnCalls!A70","v":"2015-04-01"},{"$f":"ZZZ__FnCalls!A71","v":"2015-05-01"},{"$f":"ZZZ__FnCalls!A72","v":"2015-06-01"},{"$f":"ZZZ__FnCalls!A73","v":"2015-07-01"},{"$f":"ZZZ__FnCalls!A74","v":"2015-08-01"},{"$f":"ZZZ__FnCalls!A75","v":"2015-09-01"},{"$f":"ZZZ__FnCalls!A76","v":"2015-10-01"},{"$f":"ZZZ__FnCalls!A77","v":"2015-11-01"},{"$f":"ZZZ__FnCalls!A78","v":"2015-12-01"},{"$f":"ZZZ__FnCalls!A67","v":"2015-01-01"},{"$f":"ZZZ__FnCalls!A79","v":"2016-01-01"},{"$f":"ZZZ__FnCalls!A80","v":"2016-02-01"},{"$f":"ZZZ__FnCalls!A81","v":"2016-03-01"},{"$f":"ZZZ__FnCalls!A82","v":"2016-04-01"},{"$f":"ZZZ__FnCalls!A83","v":"2016-05-01"},{"$f":"ZZZ__FnCalls!A84","v":"2016-06-01"},{"$f":"ZZZ__FnCalls!A85","v":"2016-07-01"},{"$f":"ZZZ__FnCalls!A86","v":"2016-08-01"},{"$f":"ZZZ__FnCalls!A87","v":"2016-09-01"},{"$f":"ZZZ__FnCalls!A88","v":"2016-10-01"},{"$f":"ZZZ__FnCalls!A89","v":"2016-11-01"},{"$f":"ZZZ__FnCalls!A90","v":"2016-12-01"},{"$f":"ZZZ__FnCalls!A79","v":"2016-01-01"},{"$f":"ZZZ__FnCalls!A91","v":"2017-01-01"},{"$f":"ZZZ__FnCalls!A92","v":"2017-02-01"},{"$f":"ZZZ__FnCalls!A93","v":"2017-03-01"},{"$f":"ZZZ__FnCalls!A94","v":"2017-04-01"},{"$f":"ZZZ__FnCalls!A95","v":"2017-05-01"},{"$f":"ZZZ__FnCalls!A96","v":"2017-06-01"},{"$f":"ZZZ__FnCalls!A97","v":"2017-07-01"},{"$f":"ZZZ__FnCalls!A98","v":"2017-08-01"},{"$f":"ZZZ__FnCalls!A99","v":"2017-09-01"},{"$f":"ZZZ__FnCalls!A100","v":"2017-10-01"},{"$f":"ZZZ__FnCalls!A101","v":"2017-11-01"},{"$f":"ZZZ__FnCalls!A102","v":"2017-12-01"},{"$f":"ZZZ__FnCalls!A91","v":"2017-01-01"},{"$f":"ZZZ__FnCalls!A103","v":"2018-01-01"},{"$f":"ZZZ__FnCalls!A104","v":"2018-02-01"},{"$f":"ZZZ__FnCalls!A105","v":"2018-03-01"},{"$f":"ZZZ__FnCalls!A106","v":"2018-04-01"},{"$f":"ZZZ__FnCalls!A107","v":"2018-05-01"},{"$f":"ZZZ__FnCalls!A108","v":"2018-06-01"},{"$f":"ZZZ__FnCalls!A109","v":"2018-07-01"},{"$f":"ZZZ__FnCalls!A110","v":"2018-08-01"},{"$f":"ZZZ__FnCalls!A111","v":"2018-09-01"},{"$f":"ZZZ__FnCalls!A112","v":"2018-10-01"},{"$f":"ZZZ__FnCalls!A113","v":"2018-11-01"},{"$f":"ZZZ__FnCalls!A114","v":"2018-12-01"},{"$f":"ZZZ__FnCalls!A103","v":"2018-01-01"},{"$f":"ZZZ__FnCalls!A115","v":"2019-01-01"},{"$f":"ZZZ__FnCalls!A116","v":"2019-02-01"},{"$f":"ZZZ__FnCalls!A117","v":"2019-03-01"},{"$f":"ZZZ__FnCalls!A118","v":"2019-04-01"},{"$f":"ZZZ__FnCalls!A119","v":"2019-05-01"},{"$f":"ZZZ__FnCalls!A120","v":"2019-06-01"},{"$f":"ZZZ__FnCalls!A121","v":"2019-07-01"},{"$f":"ZZZ__FnCalls!A122","v":"2019-08-01"},{"$f":"ZZZ__FnCalls!A123","v":"2019-09-01"},{"$f":"ZZZ__FnCalls!A124","v":"2019-10-01"},{"$f":"ZZZ__FnCalls!A125","v":"2019-11-01"},{"$f":"ZZZ__FnCalls!A126","v":"2019-12-01"},{"$f":"ZZZ__FnCalls!A115","v":"2019-01-01"},{"$f":"ZZZ__FnCalls!A127","v":"2020-01-01"},{"$f":"ZZZ__FnCalls!A128","v":"2020-02-01"},{"$f":"ZZZ__FnCalls!A129","v":"2020-03-01"},{"$f":"ZZZ__FnCalls!A130","v":"2020-04-01"},{"$f":"ZZZ__FnCalls!A131","v":"2020-05-01"},{"$f":"ZZZ__FnCalls!A132","v":"2020-06-01"},{"$f":"ZZZ__FnCalls!A133","v":"2020-07-01"},{"$f":"ZZZ__FnCalls!A134","v":"2020-08-01"},{"$f":"ZZZ__FnCalls!A135","v":"2020-09-01"},{"$f":"ZZZ__FnCalls!A136","v":"2020-10-01"},{"$f":"ZZZ__FnCalls!A137","v":"2020-11-01"},{"$f":"ZZZ__FnCalls!A138","v":"2020-12-01"},{"$f":"ZZZ__FnCalls!A127","v":"2020-01-01"}]
[{"$f":"\"Capital_2\"","v":"Capital_2"}]
[null,{"$f":"ZZZ__FnCalls!F7","v":"Jan 2010"},{"$f":"ZZZ__FnCalls!F8","v":"Feb 2010"},{"$f":"ZZZ__FnCalls!F9","v":"Mar 2010"},{"$f":"ZZZ__FnCalls!F10","v":"Apr 2010"},{"$f":"ZZZ__FnCalls!F11","v":"May 2010"},{"$f":"ZZZ__FnCalls!F12","v":"Jun 2010"},{"$f":"ZZZ__FnCalls!F13","v":"Jul 2010"},{"$f":"ZZZ__FnCalls!F14","v":"Aug 2010"},{"$f":"ZZZ__FnCalls!F15","v":"Sep 2010"},{"$f":"ZZZ__FnCalls!F16","v":"Oct 2010"},{"$f":"ZZZ__FnCalls!F17","v":"Nov 2010"},{"$f":"ZZZ__FnCalls!F18","v":"Dec 2010"},{"$f":"ZZZ__FnCalls!H7","v":"2010"},{"$f":"ZZZ__FnCalls!F19","v":"Jan 2011"},{"$f":"ZZZ__FnCalls!F20","v":"Feb 2011"},{"$f":"ZZZ__FnCalls!F21","v":"Mar 2011"},{"$f":"ZZZ__FnCalls!F22","v":"Apr 2011"},{"$f":"ZZZ__FnCalls!F23","v":"May 2011"},{"$f":"ZZZ__FnCalls!F24","v":"Jun 2011"},{"$f":"ZZZ__FnCalls!F25","v":"Jul 2011"},{"$f":"ZZZ__FnCalls!F26","v":"Aug 2011"},{"$f":"ZZZ__FnCalls!F27","v":"Sep 2011"},{"$f":"ZZZ__FnCalls!F28","v":"Oct 2011"},{"$f":"ZZZ__FnCalls!F29","v":"Nov 2011"},{"$f":"ZZZ__FnCalls!F30","v":"Dec 2011"},{"$f":"ZZZ__FnCalls!H19","v":"2011"},{"$f":"ZZZ__FnCalls!F31","v":"Jan 2012"},{"$f":"ZZZ__FnCalls!F32","v":"Feb 2012"},{"$f":"ZZZ__FnCalls!F33","v":"Mar 2012"},{"$f":"ZZZ__FnCalls!F34","v":"Apr 2012"},{"$f":"ZZZ__FnCalls!F35","v":"May 2012"},{"$f":"ZZZ__FnCalls!F36","v":"Jun 2012"},{"$f":"ZZZ__FnCalls!F37","v":"Jul 2012"},{"$f":"ZZZ__FnCalls!F38","v":"Aug 2012"},{"$f":"ZZZ__FnCalls!F39","v":"Sep 2012"},{"$f":"ZZZ__FnCalls!F40","v":"Oct 2012"},{"$f":"ZZZ__FnCalls!F41","v":"Nov 2012"},{"$f":"ZZZ__FnCalls!F42","v":"Dec 2012"},{"$f":"ZZZ__FnCalls!H31","v":"2012"},{"$f":"ZZZ__FnCalls!F43","v":"Jan 2013"},{"$f":"ZZZ__FnCalls!F44","v":"Feb 2013"},{"$f":"ZZZ__FnCalls!F45","v":"Mar 2013"},{"$f":"ZZZ__FnCalls!F46","v":"Apr 2013"},{"$f":"ZZZ__FnCalls!F47","v":"May 2013"},{"$f":"ZZZ__FnCalls!F48","v":"Jun 2013"},{"$f":"ZZZ__FnCalls!F49","v":"Jul 2013"},{"$f":"ZZZ__FnCalls!F50","v":"Aug 2013"},{"$f":"ZZZ__FnCalls!F51","v":"Sep 2013"},{"$f":"ZZZ__FnCalls!F52","v":"Oct 2013"},{"$f":"ZZZ__FnCalls!F53","v":"Nov 2013"},{"$f":"ZZZ__FnCalls!F54","v":"Dec 2013"},{"$f":"ZZZ__FnCalls!H43","v":"2013"},{"$f":"ZZZ__FnCalls!F55","v":"Jan 2014"},{"$f":"ZZZ__FnCalls!F56","v":"Feb 2014"},{"$f":"ZZZ__FnCalls!F57","v":"Mar 2014"},{"$f":"ZZZ__FnCalls!F58","v":"Apr 2014"},{"$f":"ZZZ__FnCalls!F59","v":"May 2014"},{"$f":"ZZZ__FnCalls!F60","v":"Jun 2014"},{"$f":"ZZZ__FnCalls!F61","v":"Jul 2014"},{"$f":"ZZZ__FnCalls!F62","v":"Aug 2014"},{"$f":"ZZZ__FnCalls!F63","v":"Sep 2014"},{"$f":"ZZZ__FnCalls!F64","v":"Oct 2014"},{"$f":"ZZZ__FnCalls!F65","v":"Nov 2014"},{"$f":"ZZZ__FnCalls!F66","v":"Dec 2014"},{"$f":"ZZZ__FnCalls!H55","v":"2014"},{"$f":"ZZZ__FnCalls!F67","v":"Jan 2015"},{"$f":"ZZZ__FnCalls!F68","v":"Feb 2015"},{"$f":"ZZZ__FnCalls!F69","v":"Mar 2015"},{"$f":"ZZZ__FnCalls!F70","v":"Apr 2015"},{"$f":"ZZZ__FnCalls!F71","v":"May 2015"},{"$f":"ZZZ__FnCalls!F72","v":"Jun 2015"},{"$f":"ZZZ__FnCalls!F73","v":"Jul 2015"},{"$f":"ZZZ__FnCalls!F74","v":"Aug 2015"},{"$f":"ZZZ__FnCalls!F75","v":"Sep 2015"},{"$f":"ZZZ__FnCalls!F76","v":"Oct 2015"},{"$f":"ZZZ__FnCalls!F77","v":"Nov 2015"},{"$f":"ZZZ__FnCalls!F78","v":"Dec 2015"},{"$f":"ZZZ__FnCalls!H67","v":"2015"},{"$f":"ZZZ__FnCalls!F79","v":"Jan 2016"},{"$f":"ZZZ__FnCalls!F80","v":"Feb 2016"},{"$f":"ZZZ__FnCalls!F81","v":"Mar 2016"},{"$f":"ZZZ__FnCalls!F82","v":"Apr 2016"},{"$f":"ZZZ__FnCalls!F83","v":"May 2016"},{"$f":"ZZZ__FnCalls!F84","v":"Jun 2016"},{"$f":"ZZZ__FnCalls!F85","v":"Jul 2016"},{"$f":"ZZZ__FnCalls!F86","v":"Aug 2016"},{"$f":"ZZZ__FnCalls!F87","v":"Sep 2016"},{"$f":"ZZZ__FnCalls!F88","v":"Oct 2016"},{"$f":"ZZZ__FnCalls!F89","v":"Nov 2016"},{"$f":"ZZZ__FnCalls!F90","v":"Dec 2016"},{"$f":"ZZZ__FnCalls!H79","v":"2016"},{"$f":"ZZZ__FnCalls!F91","v":"Jan 2017"},{"$f":"ZZZ__FnCalls!F92","v":"Feb 2017"},{"$f":"ZZZ__FnCalls!F93","v":"Mar 2017"},{"$f":"ZZZ__FnCalls!F94","v":"Apr 2017"},{"$f":"ZZZ__FnCalls!F95","v":"May 2017"},{"$f":"ZZZ__FnCalls!F96","v":"Jun 2017"},{"$f":"ZZZ__FnCalls!F97","v":"Jul 2017"},{"$f":"ZZZ__FnCalls!F98","v":"Aug 2017"},{"$f":"ZZZ__FnCalls!F99","v":"Sep 2017"},{"$f":"ZZZ__FnCalls!F100","v":"Oct 2017"},{"$f":"ZZZ__FnCalls!F101","v":"Nov 2017"},{"$f":"ZZZ__FnCalls!F102","v":"Dec 2017"},{"$f":"ZZZ__FnCalls!H91","v":"2017"},{"$f":"ZZZ__FnCalls!F103","v":"Jan 2018"},{"$f":"ZZZ__FnCalls!F104","v":"Feb 2018"},{"$f":"ZZZ__FnCalls!F105","v":"Mar 2018"},{"$f":"ZZZ__FnCalls!F106","v":"Apr 2018"},{"$f":"ZZZ__FnCalls!F107","v":"May 2018"},{"$f":"ZZZ__FnCalls!F108","v":"Jun 2018"},{"$f":"ZZZ__FnCalls!F109","v":"Jul 2018"},{"$f":"ZZZ__FnCalls!F110","v":"Aug 2018"},{"$f":"ZZZ__FnCalls!F111","v":"Sep 2018"},{"$f":"ZZZ__FnCalls!F112","v":"Oct 2018"},{"$f":"ZZZ__FnCalls!F113","v":"Nov 2018"},{"$f":"ZZZ__FnCalls!F114","v":"Dec 2018"},{"$f":"ZZZ__FnCalls!H103","v":"2018"},{"$f":"ZZZ__FnCalls!F115","v":"Jan 2019"},{"$f":"ZZZ__FnCalls!F116","v":"Feb 2019"},{"$f":"ZZZ__FnCalls!F117","v":"Mar 2019"},{"$f":"ZZZ__FnCalls!F118","v":"Apr 2019"},{"$f":"ZZZ__FnCalls!F119","v":"May 2019"},{"$f":"ZZZ__FnCalls!F120","v":"Jun 2019"},{"$f":"ZZZ__FnCalls!F121","v":"Jul 2019"},{"$f":"ZZZ__FnCalls!F122","v":"Aug 2019"},{"$f":"ZZZ__FnCalls!F123","v":"Sep 2019"},{"$f":"ZZZ__FnCalls!F124","v":"Oct 2019"},{"$f":"ZZZ__FnCalls!F125","v":"Nov 2019"},{"$f":"ZZZ__FnCalls!F126","v":"Dec 2019"},{"$f":"ZZZ__FnCalls!H115","v":"2019"},{"$f":"ZZZ__FnCalls!F127","v":"Jan 2020"},{"$f":"ZZZ__FnCalls!F128","v":"Feb 2020"},{"$f":"ZZZ__FnCalls!F129","v":"Mar 2020"},{"$f":"ZZZ__FnCalls!F130","v":"Apr 2020"},{"$f":"ZZZ__FnCalls!F131","v":"May 2020"},{"$f":"ZZZ__FnCalls!F132","v":"Jun 2020"},{"$f":"ZZZ__FnCalls!F133","v":"Jul 2020"},{"$f":"ZZZ__FnCalls!F134","v":"Aug 2020"},{"$f":"ZZZ__FnCalls!F135","v":"Sep 2020"},{"$f":"ZZZ__FnCalls!F136","v":"Oct 2020"},{"$f":"ZZZ__FnCalls!F137","v":"Nov 2020"},{"$f":"ZZZ__FnCalls!F138","v":"Dec 2020"},{"$f":"ZZZ__FnCalls!H127","v":"2020"}]
[null,{"$f":"ZZZ__FnCalls!F7","v":"Jan 2010"},{"$f":"ZZZ__FnCalls!F8","v":"Feb 2010"},{"$f":"ZZZ__FnCalls!F9","v":"Mar 2010"},{"$f":"ZZZ__FnCalls!F10","v":"Apr 2010"},{"$f":"ZZZ__FnCalls!F11","v":"May 2010"},{"$f":"ZZZ__FnCalls!F12","v":"Jun 2010"},{"$f":"ZZZ__FnCalls!F13","v":"Jul 2010"},{"$f":"ZZZ__FnCalls!F14","v":"Aug 2010"},{"$f":"ZZZ__FnCalls!F15","v":"Sep 2010"},{"$f":"ZZZ__FnCalls!F16","v":"Oct 2010"},{"$f":"ZZZ__FnCalls!F17","v":"Nov 2010"},{"$f":"ZZZ__FnCalls!F18","v":"Dec 2010"},{"$f":"ZZZ__FnCalls!F7","v":"Jan 2010"},{"$f":"ZZZ__FnCalls!F19","v":"Jan 2011"},{"$f":"ZZZ__FnCalls!F20","v":"Feb 2011"},{"$f":"ZZZ__FnCalls!F21","v":"Mar 2011"},{"$f":"ZZZ__FnCalls!F22","v":"Apr 2011"},{"$f":"ZZZ__FnCalls!F23","v":"May 2011"},{"$f":"ZZZ__FnCalls!F24","v":"Jun 2011"},{"$f":"ZZZ__FnCalls!F25","v":"Jul 2011"},{"$f":"ZZZ__FnCalls!F26","v":"Aug 2011"},{"$f":"ZZZ__FnCalls!F27","v":"Sep 2011"},{"$f":"ZZZ__FnCalls!F28","v":"Oct 2011"},{"$f":"ZZZ__FnCalls!F29","v":"Nov 2011"},{"$f":"ZZZ__FnCalls!F30","v":"Dec 2011"},{"$f":"ZZZ__FnCalls!F19","v":"Jan 2011"},{"$f":"ZZZ__FnCalls!F31","v":"Jan 2012"},{"$f":"ZZZ__FnCalls!F32","v":"Feb 2012"},{"$f":"ZZZ__FnCalls!F33","v":"Mar 2012"},{"$f":"ZZZ__FnCalls!F34","v":"Apr 2012"},{"$f":"ZZZ__FnCalls!F35","v":"May 2012"},{"$f":"ZZZ__FnCalls!F36","v":"Jun 2012"},{"$f":"ZZZ__FnCalls!F37","v":"Jul 2012"},{"$f":"ZZZ__FnCalls!F38","v":"Aug 2012"},{"$f":"ZZZ__FnCalls!F39","v":"Sep 2012"},{"$f":"ZZZ__FnCalls!F40","v":"Oct 2012"},{"$f":"ZZZ__FnCalls!F41","v":"Nov 2012"},{"$f":"ZZZ__FnCalls!F42","v":"Dec 2012"},{"$f":"ZZZ__FnCalls!F31","v":"Jan 2012"},{"$f":"ZZZ__FnCalls!F43","v":"Jan 2013"},{"$f":"ZZZ__FnCalls!F44","v":"Feb 2013"},{"$f":"ZZZ__FnCalls!F45","v":"Mar 2013"},{"$f":"ZZZ__FnCalls!F46","v":"Apr 2013"},{"$f":"ZZZ__FnCalls!F47","v":"May 2013"},{"$f":"ZZZ__FnCalls!F48","v":"Jun 2013"},{"$f":"ZZZ__FnCalls!F49","v":"Jul 2013"},{"$f":"ZZZ__FnCalls!F50","v":"Aug 2013"},{"$f":"ZZZ__FnCalls!F51","v":"Sep 2013"},{"$f":"ZZZ__FnCalls!F52","v":"Oct 2013"},{"$f":"ZZZ__FnCalls!F53","v":"Nov 2013"},{"$f":"ZZZ__FnCalls!F54","v":"Dec 2013"},{"$f":"ZZZ__FnCalls!F43","v":"Jan 2013"},{"$f":"ZZZ__FnCalls!F55","v":"Jan 2014"},{"$f":"ZZZ__FnCalls!F56","v":"Feb 2014"},{"$f":"ZZZ__FnCalls!F57","v":"Mar 2014"},{"$f":"ZZZ__FnCalls!F58","v":"Apr 2014"},{"$f":"ZZZ__FnCalls!F59","v":"May 2014"},{"$f":"ZZZ__FnCalls!F60","v":"Jun 2014"},{"$f":"ZZZ__FnCalls!F61","v":"Jul 2014"},{"$f":"ZZZ__FnCalls!F62","v":"Aug 2014"},{"$f":"ZZZ__FnCalls!F63","v":"Sep 2014"},{"$f":"ZZZ__FnCalls!F64","v":"Oct 2014"},{"$f":"ZZZ__FnCalls!F65","v":"Nov 2014"},{"$f":"ZZZ__FnCalls!F66","v":"Dec 2014"},{"$f":"ZZZ__FnCalls!F55","v":"Jan 2014"},{"$f":"ZZZ__FnCalls!F67","v":"Jan 2015"},{"$f":"ZZZ__FnCalls!F68","v":"Feb 2015"},{"$f":"ZZZ__FnCalls!F69","v":"Mar 2015"},{"$f":"ZZZ__FnCalls!F70","v":"Apr 2015"},{"$f":"ZZZ__FnCalls!F71","v":"May 2015"},{"$f":"ZZZ__FnCalls!F72","v":"Jun 2015"},{"$f":"ZZZ__FnCalls!F73","v":"Jul 2015"},{"$f":"ZZZ__FnCalls!F74","v":"Aug 2015"},{"$f":"ZZZ__FnCalls!F75","v":"Sep 2015"},{"$f":"ZZZ__FnCalls!F76","v":"Oct 2015"},{"$f":"ZZZ__FnCalls!F77","v":"Nov 2015"},{"$f":"ZZZ__FnCalls!F78","v":"Dec 2015"},{"$f":"ZZZ__FnCalls!F67","v":"Jan 2015"},{"$f":"ZZZ__FnCalls!F79","v":"Jan 2016"},{"$f":"ZZZ__FnCalls!F80","v":"Feb 2016"},{"$f":"ZZZ__FnCalls!F81","v":"Mar 2016"},{"$f":"ZZZ__FnCalls!F82","v":"Apr 2016"},{"$f":"ZZZ__FnCalls!F83","v":"May 2016"},{"$f":"ZZZ__FnCalls!F84","v":"Jun 2016"},{"$f":"ZZZ__FnCalls!F85","v":"Jul 2016"},{"$f":"ZZZ__FnCalls!F86","v":"Aug 2016"},{"$f":"ZZZ__FnCalls!F87","v":"Sep 2016"},{"$f":"ZZZ__FnCalls!F88","v":"Oct 2016"},{"$f":"ZZZ__FnCalls!F89","v":"Nov 2016"},{"$f":"ZZZ__FnCalls!F90","v":"Dec 2016"},{"$f":"ZZZ__FnCalls!F79","v":"Jan 2016"},{"$f":"ZZZ__FnCalls!F91","v":"Jan 2017"},{"$f":"ZZZ__FnCalls!F92","v":"Feb 2017"},{"$f":"ZZZ__FnCalls!F93","v":"Mar 2017"},{"$f":"ZZZ__FnCalls!F94","v":"Apr 2017"},{"$f":"ZZZ__FnCalls!F95","v":"May 2017"},{"$f":"ZZZ__FnCalls!F96","v":"Jun 2017"},{"$f":"ZZZ__FnCalls!F97","v":"Jul 2017"},{"$f":"ZZZ__FnCalls!F98","v":"Aug 2017"},{"$f":"ZZZ__FnCalls!F99","v":"Sep 2017"},{"$f":"ZZZ__FnCalls!F100","v":"Oct 2017"},{"$f":"ZZZ__FnCalls!F101","v":"Nov 2017"},{"$f":"ZZZ__FnCalls!F102","v":"Dec 2017"},{"$f":"ZZZ__FnCalls!F91","v":"Jan 2017"},{"$f":"ZZZ__FnCalls!F103","v":"Jan 2018"},{"$f":"ZZZ__FnCalls!F104","v":"Feb 2018"},{"$f":"ZZZ__FnCalls!F105","v":"Mar 2018"},{"$f":"ZZZ__FnCalls!F106","v":"Apr 2018"},{"$f":"ZZZ__FnCalls!F107","v":"May 2018"},{"$f":"ZZZ__FnCalls!F108","v":"Jun 2018"},{"$f":"ZZZ__FnCalls!F109","v":"Jul 2018"},{"$f":"ZZZ__FnCalls!F110","v":"Aug 2018"},{"$f":"ZZZ__FnCalls!F111","v":"Sep 2018"},{"$f":"ZZZ__FnCalls!F112","v":"Oct 2018"},{"$f":"ZZZ__FnCalls!F113","v":"Nov 2018"},{"$f":"ZZZ__FnCalls!F114","v":"Dec 2018"},{"$f":"ZZZ__FnCalls!F103","v":"Jan 2018"},{"$f":"ZZZ__FnCalls!F115","v":"Jan 2019"},{"$f":"ZZZ__FnCalls!F116","v":"Feb 2019"},{"$f":"ZZZ__FnCalls!F117","v":"Mar 2019"},{"$f":"ZZZ__FnCalls!F118","v":"Apr 2019"},{"$f":"ZZZ__FnCalls!F119","v":"May 2019"},{"$f":"ZZZ__FnCalls!F120","v":"Jun 2019"},{"$f":"ZZZ__FnCalls!F121","v":"Jul 2019"},{"$f":"ZZZ__FnCalls!F122","v":"Aug 2019"},{"$f":"ZZZ__FnCalls!F123","v":"Sep 2019"},{"$f":"ZZZ__FnCalls!F124","v":"Oct 2019"},{"$f":"ZZZ__FnCalls!F125","v":"Nov 2019"},{"$f":"ZZZ__FnCalls!F126","v":"Dec 2019"},{"$f":"ZZZ__FnCalls!F115","v":"Jan 2019"},{"$f":"ZZZ__FnCalls!F127","v":"Jan 2020"},{"$f":"ZZZ__FnCalls!F128","v":"Feb 2020"},{"$f":"ZZZ__FnCalls!F129","v":"Mar 2020"},{"$f":"ZZZ__FnCalls!F130","v":"Apr 2020"},{"$f":"ZZZ__FnCalls!F131","v":"May 2020"},{"$f":"ZZZ__FnCalls!F132","v":"Jun 2020"},{"$f":"ZZZ__FnCalls!F133","v":"Jul 2020"},{"$f":"ZZZ__FnCalls!F134","v":"Aug 2020"},{"$f":"ZZZ__FnCalls!F135","v":"Sep 2020"},{"$f":"ZZZ__FnCalls!F136","v":"Oct 2020"},{"$f":"ZZZ__FnCalls!F137","v":"Nov 2020"},{"$f":"ZZZ__FnCalls!F138","v":"Dec 2020"},{"$f":"ZZZ__FnCalls!F127","v":"Jan 2020"}]
[{"$f":"\"Capital_Desired_1\"","v":"Capital_Desired_1"}]
[null,{"$f":"ZZZ__FnCalls!F7","v":"Jan 2010"},{"$f":"ZZZ__FnCalls!F8","v":"Feb 2010"},{"$f":"ZZZ__FnCalls!F9","v":"Mar 2010"},{"$f":"ZZZ__FnCalls!F10","v":"Apr 2010"},{"$f":"ZZZ__FnCalls!F11","v":"May 2010"},{"$f":"ZZZ__FnCalls!F12","v":"Jun 2010"},{"$f":"ZZZ__FnCalls!F13","v":"Jul 2010"},{"$f":"ZZZ__FnCalls!F14","v":"Aug 2010"},{"$f":"ZZZ__FnCalls!F15","v":"Sep 2010"},{"$f":"ZZZ__FnCalls!F16","v":"Oct 2010"},{"$f":"ZZZ__FnCalls!F17","v":"Nov 2010"},{"$f":"ZZZ__FnCalls!F18","v":"Dec 2010"},{"$f":"ZZZ__FnCalls!H7","v":"2010"},{"$f":"ZZZ__FnCalls!F19","v":"Jan 2011"},{"$f":"ZZZ__FnCalls!F20","v":"Feb 2011"},{"$f":"ZZZ__FnCalls!F21","v":"Mar 2011"},{"$f":"ZZZ__FnCalls!F22","v":"Apr 2011"},{"$f":"ZZZ__FnCalls!F23","v":"May 2011"},{"$f":"ZZZ__FnCalls!F24","v":"Jun 2011"},{"$f":"ZZZ__FnCalls!F25","v":"Jul 2011"},{"$f":"ZZZ__FnCalls!F26","v":"Aug 2011"},{"$f":"ZZZ__FnCalls!F27","v":"Sep 2011"},{"$f":"ZZZ__FnCalls!F28","v":"Oct 2011"},{"$f":"ZZZ__FnCalls!F29","v":"Nov 2011"},{"$f":"ZZZ__FnCalls!F30","v":"Dec 2011"},{"$f":"ZZZ__FnCalls!H19","v":"2011"},{"$f":"ZZZ__FnCalls!F31","v":"Jan 2012"},{"$f":"ZZZ__FnCalls!F32","v":"Feb 2012"},{"$f":"ZZZ__FnCalls!F33","v":"Mar 2012"},{"$f":"ZZZ__FnCalls!F34","v":"Apr 2012"},{"$f":"ZZZ__FnCalls!F35","v":"May 2012"},{"$f":"ZZZ__FnCalls!F36","v":"Jun 2012"},{"$f":"ZZZ__FnCalls!F37","v":"Jul 2012"},{"$f":"ZZZ__FnCalls!F38","v":"Aug 2012"},{"$f":"ZZZ__FnCalls!F39","v":"Sep 2012"},{"$f":"ZZZ__FnCalls!F40","v":"Oct 2012"},{"$f":"ZZZ__FnCalls!F41","v":"Nov 2012"},{"$f":"ZZZ__FnCalls!F42","v":"Dec 2012"},{"$f":"ZZZ__FnCalls!H31","v":"2012"},{"$f":"ZZZ__FnCalls!F43","v":"Jan 2013"},{"$f":"ZZZ__FnCalls!F44","v":"Feb 2013"},{"$f":"ZZZ__FnCalls!F45","v":"Mar 2013"},{"$f":"ZZZ__FnCalls!F46","v":"Apr 2013"},{"$f":"ZZZ__FnCalls!F47","v":"May 2013"},{"$f":"ZZZ__FnCalls!F48","v":"Jun 2013"},{"$f":"ZZZ__FnCalls!F49","v":"Jul 2013"},{"$f":"ZZZ__FnCalls!F50","v":"Aug 2013"},{"$f":"ZZZ__FnCalls!F51","v":"Sep 2013"},{"$f":"ZZZ__FnCalls!F52","v":"Oct 2013"},{"$f":"ZZZ__FnCalls!F53","v":"Nov 2013"},{"$f":"ZZZ__FnCalls!F54","v":"Dec 2013"},{"$f":"ZZZ__FnCalls!H43","v":"2013"},{"$f":"ZZZ__FnCalls!F55","v":"Jan 2014"},{"$f":"ZZZ__FnCalls!F56","v":"Feb 2014"},{"$f":"ZZZ__FnCalls!F57","v":"Mar 2014"},{"$f":"ZZZ__FnCalls!F58","v":"Apr 2014"},{"$f":"ZZZ__FnCalls!F59","v":"May 2014"},{"$f":"ZZZ__FnCalls!F60","v":"Jun 2014"},{"$f":"ZZZ__FnCalls!F61","v":"Jul 2014"},{"$f":"ZZZ__FnCalls!F62","v":"Aug 2014"},{"$f":"ZZZ__FnCalls!F63","v":"Sep 2014"},{"$f":"ZZZ__FnCalls!F64","v":"Oct 2014"},{"$f":"ZZZ__FnCalls!F65","v":"Nov 2014"},{"$f":"ZZZ__FnCalls!F66","v":"Dec 2014"},{"$f":"ZZZ__FnCalls!H55","v":"2014"},{"$f":"ZZZ__FnCalls!F67","v":"Jan 2015"},{"$f":"ZZZ__FnCalls!F68","v":"Feb 2015"},{"$f":"ZZZ__FnCalls!F69","v":"Mar 2015"},{"$f":"ZZZ__FnCalls!F70","v":"Apr 2015"},{"$f":"ZZZ__FnCalls!F71","v":"May 2015"},{"$f":"ZZZ__FnCalls!F72","v":"Jun 2015"},{"$f":"ZZZ__FnCalls!F73","v":"Jul 2015"},{"$f":"ZZZ__FnCalls!F74","v":"Aug 2015"},{"$f":"ZZZ__FnCalls!F75","v":"Sep 2015"},{"$f":"ZZZ__FnCalls!F76","v":"Oct 2015"},{"$f":"ZZZ__FnCalls!F77","v":"Nov 2015"},{"$f":"ZZZ__FnCalls!F78","v":"Dec 2015"},{"$f":"ZZZ__FnCalls!H67","v":"2015"},{"$f":"ZZZ__FnCalls!F79","v":"Jan 2016"},{"$f":"ZZZ__FnCalls!F80","v":"Feb 2016"},{"$f":"ZZZ__FnCalls!F81","v":"Mar 2016"},{"$f":"ZZZ__FnCalls!F82","v":"Apr 2016"},{"$f":"ZZZ__FnCalls!F83","v":"May 2016"},{"$f":"ZZZ__FnCalls!F84","v":"Jun 2016"},{"$f":"ZZZ__FnCalls!F85","v":"Jul 2016"},{"$f":"ZZZ__FnCalls!F86","v":"Aug 2016"},{"$f":"ZZZ__FnCalls!F87","v":"Sep 2016"},{"$f":"ZZZ__FnCalls!F88","v":"Oct 2016"},{"$f":"ZZZ__FnCalls!F89","v":"Nov 2016"},{"$f":"ZZZ__FnCalls!F90","v":"Dec 2016"},{"$f":"ZZZ__FnCalls!H79","v":"2016"},{"$f":"ZZZ__FnCalls!F91","v":"Jan 2017"},{"$f":"ZZZ__FnCalls!F92","v":"Feb 2017"},{"$f":"ZZZ__FnCalls!F93","v":"Mar 2017"},{"$f":"ZZZ__FnCalls!F94","v":"Apr 2017"},{"$f":"ZZZ__FnCalls!F95","v":"May 2017"},{"$f":"ZZZ__FnCalls!F96","v":"Jun 2017"},{"$f":"ZZZ__FnCalls!F97","v":"Jul 2017"},{"$f":"ZZZ__FnCalls!F98","v":"Aug 2017"},{"$f":"ZZZ__FnCalls!F99","v":"Sep 2017"},{"$f":"ZZZ__FnCalls!F100","v":"Oct 2017"},{"$f":"ZZZ__FnCalls!F101","v":"Nov 2017"},{"$f":"ZZZ__FnCalls!F102","v":"Dec 2017"},{"$f":"ZZZ__FnCalls!H91","v":"2017"},{"$f":"ZZZ__FnCalls!F103","v":"Jan 2018"},{"$f":"ZZZ__FnCalls!F104","v":"Feb 2018"},{"$f":"ZZZ__FnCalls!F105","v":"Mar 2018"},{"$f":"ZZZ__FnCalls!F106","v":"Apr 2018"},{"$f":"ZZZ__FnCalls!F107","v":"May 2018"},{"$f":"ZZZ__FnCalls!F108","v":"Jun 2018"},{"$f":"ZZZ__FnCalls!F109","v":"Jul 2018"},{"$f":"ZZZ__FnCalls!F110","v":"Aug 2018"},{"$f":"ZZZ__FnCalls!F111","v":"Sep 2018"},{"$f":"ZZZ__FnCalls!F112","v":"Oct 2018"},{"$f":"ZZZ__FnCalls!F113","v":"Nov 2018"},{"$f":"ZZZ__FnCalls!F114","v":"Dec 2018"},{"$f":"ZZZ__FnCalls!H103","v":"2018"},{"$f":"ZZZ__FnCalls!F115","v":"Jan 2019"},{"$f":"ZZZ__FnCalls!F116","v":"Feb 2019"},{"$f":"ZZZ__FnCalls!F117","v":"Mar 2019"},{"$f":"ZZZ__FnCalls!F118","v":"Apr 2019"},{"$f":"ZZZ__FnCalls!F119","v":"May 2019"},{"$f":"ZZZ__FnCalls!F120","v":"Jun 2019"},{"$f":"ZZZ__FnCalls!F121","v":"Jul 2019"},{"$f":"ZZZ__FnCalls!F122","v":"Aug 2019"},{"$f":"ZZZ__FnCalls!F123","v":"Sep 2019"},{"$f":"ZZZ__FnCalls!F124","v":"Oct 2019"},{"$f":"ZZZ__FnCalls!F125","v":"Nov 2019"},{"$f":"ZZZ__FnCalls!F126","v":"Dec 2019"},{"$f":"ZZZ__FnCalls!H115","v":"2019"},{"$f":"ZZZ__FnCalls!F127","v":"Jan 2020"},{"$f":"ZZZ__FnCalls!F128","v":"Feb 2020"},{"$f":"ZZZ__FnCalls!F129","v":"Mar 2020"},{"$f":"ZZZ__FnCalls!F130","v":"Apr 2020"},{"$f":"ZZZ__FnCalls!F131","v":"May 2020"},{"$f":"ZZZ__FnCalls!F132","v":"Jun 2020"},{"$f":"ZZZ__FnCalls!F133","v":"Jul 2020"},{"$f":"ZZZ__FnCalls!F134","v":"Aug 2020"},{"$f":"ZZZ__FnCalls!F135","v":"Sep 2020"},{"$f":"ZZZ__FnCalls!F136","v":"Oct 2020"},{"$f":"ZZZ__FnCalls!F137","v":"Nov 2020"},{"$f":"ZZZ__FnCalls!F138","v":"Dec 2020"},{"$f":"ZZZ__FnCalls!H127","v":"2020"}]
[null,{"$f":"ZZZ__FnCalls!A7","v":"2010-01-01"},{"$f":"ZZZ__FnCalls!A8","v":"2010-02-01"},{"$f":"ZZZ__FnCalls!A9","v":"2010-03-01"},{"$f":"ZZZ__FnCalls!A10","v":"2010-04-01"},{"$f":"ZZZ__FnCalls!A11","v":"2010-05-01"},{"$f":"ZZZ__FnCalls!A12","v":"2010-06-01"},{"$f":"ZZZ__FnCalls!A13","v":"2010-07-01"},{"$f":"ZZZ__FnCalls!A14","v":"2010-08-01"},{"$f":"ZZZ__FnCalls!A15","v":"2010-09-01"},{"$f":"ZZZ__FnCalls!A16","v":"2010-10-01"},{"$f":"ZZZ__FnCalls!A17","v":"2010-11-01"},{"$f":"ZZZ__FnCalls!A18","v":"2010-12-01"},{"$f":"ZZZ__FnCalls!A7","v":"2010-01-01"},{"$f":"ZZZ__FnCalls!A19","v":"2011-01-01"},{"$f":"ZZZ__FnCalls!A20","v":"2011-02-01"},{"$f":"ZZZ__FnCalls!A21","v":"2011-03-01"},{"$f":"ZZZ__FnCalls!A22","v":"2011-04-01"},{"$f":"ZZZ__FnCalls!A23","v":"2011-05-01"},{"$f":"ZZZ__FnCalls!A24","v":"2011-06-01"},{"$f":"ZZZ__FnCalls!A25","v":"2011-07-01"},{"$f":"ZZZ__FnCalls!A26","v":"2011-08-01"},{"$f":"ZZZ__FnCalls!A27","v":"2011-09-01"},{"$f":"ZZZ__FnCalls!A28","v":"2011-10-01"},{"$f":"ZZZ__FnCalls!A29","v":"2011-11-01"},{"$f":"ZZZ__FnCalls!A30","v":"2011-12-01"},{"$f":"ZZZ__FnCalls!A19","v":"2011-01-01"},{"$f":"ZZZ__FnCalls!A31","v":"2012-01-01"},{"$f":"ZZZ__FnCalls!A32","v":"2012-02-01"},{"$f":"ZZZ__FnCalls!A33","v":"2012-03-01"},{"$f":"ZZZ__FnCalls!A34","v":"2012-04-01"},{"$f":"ZZZ__FnCalls!A35","v":"2012-05-01"},{"$f":"ZZZ__FnCalls!A36","v":"2012-06-01"},{"$f":"ZZZ__FnCalls!A37","v":"2012-07-01"},{"$f":"ZZZ__FnCalls!A38","v":"2012-08-01"},{"$f":"ZZZ__FnCalls!A39","v":"2012-09-01"},{"$f":"ZZZ__FnCalls!A40","v":"2012-10-01"},{"$f":"ZZZ__FnCalls!A41","v":"2012-11-01"},{"$f":"ZZZ__FnCalls!A42","v":"2012-12-01"},{"$f":"ZZZ__FnCalls!A31","v":"2012-01-01"},{"$f":"ZZZ__FnCalls!A43","v":"2013-01-01"},{"$f":"ZZZ__FnCalls!A44","v":"2013-02-01"},{"$f":"ZZZ__FnCalls!A45","v":"2013-03-01"},{"$f":"ZZZ__FnCalls!A46","v":"2013-04-01"},{"$f":"ZZZ__FnCalls!A47","v":"2013-05-01"},{"$f":"ZZZ__FnCalls!A48","v":"2013-06-01"},{"$f":"ZZZ__FnCalls!A49","v":"2013-07-01"},{"$f":"ZZZ__FnCalls!A50","v":"2013-08-01"},{"$f":"ZZZ__FnCalls!A51","v":"2013-09-01"},{"$f":"ZZZ__FnCalls!A52","v":"2013-10-01"},{"$f":"ZZZ__FnCalls!A53","v":"2013-11-01"},{"$f":"ZZZ__FnCalls!A54","v":"2013-12-01"},{"$f":"ZZZ__FnCalls!A43","v":"2013-01-01"},{"$f":"ZZZ__FnCalls!A55","v":"2014-01-01"},{"$f":"ZZZ__FnCalls!A56","v":"2014-02-01"},{"$f":"ZZZ__FnCalls!A57","v":"2014-03-01"},{"$f":"ZZZ__FnCalls!A58","v":"2014-04-01"},{"$f":"ZZZ__FnCalls!A59","v":"2014-05-01"},{"$f":"ZZZ__FnCalls!A60","v":"2014-06-01"},{"$f":"ZZZ__FnCalls!A61","v":"2014-07-01"},{"$f":"ZZZ__FnCalls!A62","v":"2014-08-01"},{"$f":"ZZZ__FnCalls!A63","v":"2014-09-01"},{"$f":"ZZZ__FnCalls!A64","v":"2014-10-01"},{"$f":"ZZZ__FnCalls!A65","v":"2014-11-01"},{"$f":"ZZZ__FnCalls!A66","v":"2014-12-01"},{"$f":"ZZZ__FnCalls!A55","v":"2014-01-01"},{"$f":"ZZZ__FnCalls!A67","v":"2015-01-01"},{"$f":"ZZZ__FnCalls!A68","v":"2015-02-01"},{"$f":"ZZZ__FnCalls!A69","v":"2015-03-01"},{"$f":"ZZZ__FnCalls!A70","v":"2015-04-01"},{"$f":"ZZZ__FnCalls!A71","v":"2015-05-01"},{"$f":"ZZZ__FnCalls!A72","v":"2015-06-01"},{"$f":"ZZZ__FnCalls!A73","v":"2015-07-01"},{"$f":"ZZZ__FnCalls!A74","v":"2015-08-01"},{"$f":"ZZZ__FnCalls!A75","v":"2015-09-01"},{"$f":"ZZZ__FnCalls!A76","v":"2015-10-01"},{"$f":"ZZZ__FnCalls!A77","v":"2015-11-01"},{"$f":"ZZZ__FnCalls!A78","v":"2015-12-01"},{"$f":"ZZZ__FnCalls!A67","v":"2015-01-01"},{"$f":"ZZZ__FnCalls!A79","v":"2016-01-01"},{"$f":"ZZZ__FnCalls!A80","v":"2016-02-01"},{"$f":"ZZZ__FnCalls!A81","v":"2016-03-01"},{"$f":"ZZZ__FnCalls!A82","v":"2016-04-01"},{"$f":"ZZZ__FnCalls!A83","v":"2016-05-01"},{"$f":"ZZZ__FnCalls!A84","v":"2016-06-01"},{"$f":"ZZZ__FnCalls!A85","v":"2016-07-01"},{"$f":"ZZZ__FnCalls!A86","v":"2016-08-01"},{"$f":"ZZZ__FnCalls!A87","v":"2016-09-01"},{"$f":"ZZZ__FnCalls!A88","v":"2016-10-01"},{"$f":"ZZZ__FnCalls!A89","v":"2016-11-01"},{"$f":"ZZZ__FnCalls!A90","v":"2016-12-01"},{"$f":"ZZZ__FnCalls!A79","v":"2016-01-01"},{"$f":"ZZZ__FnCalls!A91","v":"2017-01-01"},{"$f":"ZZZ__FnCalls!A92","v":"2017-02-01"},{"$f":"ZZZ__FnCalls!A93","v":"2017-03-01"},{"$f":"ZZZ__FnCalls!A94","v":"2017-04-01"},{"$f":"ZZZ__FnCalls!A95","v":"2017-05-01"},{"$f":"ZZZ__FnCalls!A96","v":"2017-06-01"},{"$f":"ZZZ__FnCalls!A97","v":"2017-07-01"},{"$f":"ZZZ__FnCalls!A98","v":"2017-08-01"},{"$f":"ZZZ__FnCalls!A99","v":"2017-09-01"},{"$f":"ZZZ__FnCalls!A100","v":"2017-10-01"},{"$f":"ZZZ__FnCalls!A101","v":"2017-11-01"},{"$f":"ZZZ__FnCalls!A102","v":"2017-12-01"},{"$f":"ZZZ__FnCalls!A91","v":"2017-01-01"},{"$f":"ZZZ__FnCalls!A103","v":"2018-01-01"},{"$f":"ZZZ__FnCalls!A104","v":"2018-02-01"},{"$f":"ZZZ__FnCalls!A105","v":"2018-03-01"},{"$f":"ZZZ__FnCalls!A106","v":"2018-04-01"},{"$f":"ZZZ__FnCalls!A107","v":"2018-05-01"},{"$f":"ZZZ__FnCalls!A108","v":"2018-06-01"},{"$f":"ZZZ__FnCalls!A109","v":"2018-07-01"},{"$f":"ZZZ__FnCalls!A110","v":"2018-08-01"},{"$f":"ZZZ__FnCalls!A111","v":"2018-09-01"},{"$f":"ZZZ__FnCalls!A112","v":"2018-10-01"},{"$f":"ZZZ__FnCalls!A113","v":"2018-11-01"},{"$f":"ZZZ__FnCalls!A114","v":"2018-12-01"},{"$f":"ZZZ__FnCalls!A103","v":"2018-01-01"},{"$f":"ZZZ__FnCalls!A115","v":"2019-01-01"},{"$f":"ZZZ__FnCalls!A116","v":"2019-02-01"},{"$f":"ZZZ__FnCalls!A117","v":"2019-03-01"},{"$f":"ZZZ__FnCalls!A118","v":"2019-04-01"},{"$f":"ZZZ__FnCalls!A119","v":"2019-05-01"},{"$f":"ZZZ__FnCalls!A120","v":"2019-06-01"},{"$f":"ZZZ__FnCalls!A121","v":"2019-07-01"},{"$f":"ZZZ__FnCalls!A122","v":"2019-08-01"},{"$f":"ZZZ__FnCalls!A123","v":"2019-09-01"},{"$f":"ZZZ__FnCalls!A124","v":"2019-10-01"},{"$f":"ZZZ__FnCalls!A125","v":"2019-11-01"},{"$f":"ZZZ__FnCalls!A126","v":"2019-12-01"},{"$f":"ZZZ__FnCalls!A115","v":"2019-01-01"},{"$f":"ZZZ__FnCalls!A127","v":"2020-01-01"},{"$f":"ZZZ__FnCalls!A128","v":"2020-02-01"},{"$f":"ZZZ__FnCalls!A129","v":"2020-03-01"},{"$f":"ZZZ__FnCalls!A130","v":"2020-04-01"},{"$f":"ZZZ__FnCalls!A131","v":"2020-05-01"},{"$f":"ZZZ__FnCalls!A132","v":"2020-06-01"},{"$f":"ZZZ__FnCalls!A133","v":"2020-07-01"},{"$f":"ZZZ__FnCalls!A134","v":"2020-08-01"},{"$f":"ZZZ__FnCalls!A135","v":"2020-09-01"},{"$f":"ZZZ__FnCalls!A136","v":"2020-10-01"},{"$f":"ZZZ__FnCalls!A137","v":"2020-11-01"},{"$f":"ZZZ__FnCalls!A138","v":"2020-12-01"},{"$f":"ZZZ__FnCalls!A127","v":"2020-01-01"}]
[{"$f":"\"Capital_Desired_2\"","v":"Capital_Desired_2"}]
[null,{"$f":"ZZZ__FnCalls!F7","v":"Jan 2010"},{"$f":"ZZZ__FnCalls!F8","v":"Feb 2010"},{"$f":"ZZZ__FnCalls!F9","v":"Mar 2010"},{"$f":"ZZZ__FnCalls!F10","v":"Apr 2010"},{"$f":"ZZZ__FnCalls!F11","v":"May 2010"},{"$f":"ZZZ__FnCalls!F12","v":"Jun 2010"},{"$f":"ZZZ__FnCalls!F13","v":"Jul 2010"},{"$f":"ZZZ__FnCalls!F14","v":"Aug 2010"},{"$f":"ZZZ__FnCalls!F15","v":"Sep 2010"},{"$f":"ZZZ__FnCalls!F16","v":"Oct 2010"},{"$f":"ZZZ__FnCalls!F17","v":"Nov 2010"},{"$f":"ZZZ__FnCalls!F18","v":"Dec 2010"},{"$f":"ZZZ__FnCalls!H7","v":"2010"},{"$f":"ZZZ__FnCalls!F19","v":"Jan 2011"},{"$f":"ZZZ__FnCalls!F20","v":"Feb 2011"},{"$f":"ZZZ__FnCalls!F21","v":"Mar 2011"},{"$f":"ZZZ__FnCalls!F22","v":"Apr 2011"},{"$f":"ZZZ__FnCalls!F23","v":"May 2011"},{"$f":"ZZZ__FnCalls!F24","v":"Jun 2011"},{"$f":"ZZZ__FnCalls!F25","v":"Jul 2011"},{"$f":"ZZZ__FnCalls!F26","v":"Aug 2011"},{"$f":"ZZZ__FnCalls!F27","v":"Sep 2011"},{"$f":"ZZZ__FnCalls!F28","v":"Oct 2011"},{"$f":"ZZZ__FnCalls!F29","v":"Nov 2011"},{"$f":"ZZZ__FnCalls!F30","v":"Dec 2011"},{"$f":"ZZZ__FnCalls!H19","v":"2011"},{"$f":"ZZZ__FnCalls!F31","v":"Jan 2012"},{"$f":"ZZZ__FnCalls!F32","v":"Feb 2012"},{"$f":"ZZZ__FnCalls!F33","v":"Mar 2012"},{"$f":"ZZZ__FnCalls!F34","v":"Apr 2012"},{"$f":"ZZZ__FnCalls!F35","v":"May 2012"},{"$f":"ZZZ__FnCalls!F36","v":"Jun 2012"},{"$f":"ZZZ__FnCalls!F37","v":"Jul 2012"},{"$f":"ZZZ__FnCalls!F38","v":"Aug 2012"},{"$f":"ZZZ__FnCalls!F39","v":"Sep 2012"},{"$f":"ZZZ__FnCalls!F40","v":"Oct 2012"},{"$f":"ZZZ__FnCalls!F41","v":"Nov 2012"},{"$f":"ZZZ__FnCalls!F42","v":"Dec 2012"},{"$f":"ZZZ__FnCalls!H31","v":"2012"},{"$f":"ZZZ__FnCalls!F43","v":"Jan 2013"},{"$f":"ZZZ__FnCalls!F44","v":"Feb 2013"},{"$f":"ZZZ__FnCalls!F45","v":"Mar 2013"},{"$f":"ZZZ__FnCalls!F46","v":"Apr 2013"},{"$f":"ZZZ__FnCalls!F47","v":"May 2013"},{"$f":"ZZZ__FnCalls!F48","v":"Jun 2013"},{"$f":"ZZZ__FnCalls!F49","v":"Jul 2013"},{"$f":"ZZZ__FnCalls!F50","v":"Aug 2013"},{"$f":"ZZZ__FnCalls!F51","v":"Sep 2013"},{"$f":"ZZZ__FnCalls!F52","v":"Oct 2013"},{"$f":"ZZZ__FnCalls!F53","v":"Nov 2013"},{"$f":"ZZZ__FnCalls!F54","v":"Dec 2013"},{"$f":"ZZZ__FnCalls!H43","v":"2013"},{"$f":"ZZZ__FnCalls!F55","v":"Jan 2014"},{"$f":"ZZZ__FnCalls!F56","v":"Feb 2014"},{"$f":"ZZZ__FnCalls!F57","v":"Mar 2014"},{"$f":"ZZZ__FnCalls!F58","v":"Apr 2014"},{"$f":"ZZZ__FnCalls!F59","v":"May 2014"},{"$f":"ZZZ__FnCalls!F60","v":"Jun 2014"},{"$f":"ZZZ__FnCalls!F61","v":"Jul 2014"},{"$f":"ZZZ__FnCalls!F62","v":"Aug 2014"},{"$f":"ZZZ__FnCalls!F63","v":"Sep 2014"},{"$f":"ZZZ__FnCalls!F64","v":"Oct 2014"},{"$f":"ZZZ__FnCalls!F65","v":"Nov 2014"},{"$f":"ZZZ__FnCalls!F66","v":"Dec 2014"},{"$f":"ZZZ__FnCalls!H55","v":"2014"},{"$f":"ZZZ__FnCalls!F67","v":"Jan 2015"},{"$f":"ZZZ__FnCalls!F68","v":"Feb 2015"},{"$f":"ZZZ__FnCalls!F69","v":"Mar 2015"},{"$f":"ZZZ__FnCalls!F70","v":"Apr 2015"},{"$f":"ZZZ__FnCalls!F71","v":"May 2015"},{"$f":"ZZZ__FnCalls!F72","v":"Jun 2015"},{"$f":"ZZZ__FnCalls!F73","v":"Jul 2015"},{"$f":"ZZZ__FnCalls!F74","v":"Aug 2015"},{"$f":"ZZZ__FnCalls!F75","v":"Sep 2015"},{"$f":"ZZZ__FnCalls!F76","v":"Oct 2015"},{"$f":"ZZZ__FnCalls!F77","v":"Nov 2015"},{"$f":"ZZZ__FnCalls!F78","v":"Dec 2015"},{"$f":"ZZZ__FnCalls!H67","v":"2015"},{"$f":"ZZZ__FnCalls!F79","v":"Jan 2016"},{"$f":"ZZZ__FnCalls!F80","v":"Feb 2016"},{"$f":"ZZZ__FnCalls!F81","v":"Mar 2016"},{"$f":"ZZZ__FnCalls!F82","v":"Apr 2016"},{"$f":"ZZZ__FnCalls!F83","v":"May 2016"},{"$f":"ZZZ__FnCalls!F84","v":"Jun 2016"},{"$f":"ZZZ__FnCalls!F85","v":"Jul 2016"},{"$f":"ZZZ__FnCalls!F86","v":"Aug 2016"},{"$f":"ZZZ__FnCalls!F87","v":"Sep 2016"},{"$f":"ZZZ__FnCalls!F88","v":"Oct 2016"},{"$f":"ZZZ__FnCalls!F89","v":"Nov 2016"},{"$f":"ZZZ__FnCalls!F90","v":"Dec 2016"},{"$f":"ZZZ__FnCalls!H79","v":"2016"},{"$f":"ZZZ__FnCalls!F91","v":"Jan 2017"},{"$f":"ZZZ__FnCalls!F92","v":"Feb 2017"},{"$f":"ZZZ__FnCalls!F93","v":"Mar 2017"},{"$f":"ZZZ__FnCalls!F94","v":"Apr 2017"},{"$f":"ZZZ__FnCalls!F95","v":"May 2017"},{"$f":"ZZZ__FnCalls!F96","v":"Jun 2017"},{"$f":"ZZZ__FnCalls!F97","v":"Jul 2017"},{"$f":"ZZZ__FnCalls!F98","v":"Aug 2017"},{"$f":"ZZZ__FnCalls!F99","v":"Sep 2017"},{"$f":"ZZZ__FnCalls!F100","v":"Oct 2017"},{"$f":"ZZZ__FnCalls!F101","v":"Nov 2017"},{"$f":"ZZZ__FnCalls!F102","v":"Dec 2017"},{"$f":"ZZZ__FnCalls!H91","v":"2017"},{"$f":"ZZZ__FnCalls!F103","v":"Jan 2018"},{"$f":"ZZZ__FnCalls!F104","v":"Feb 2018"},{"$f":"ZZZ__FnCalls!F105","v":"Mar 2018"},{"$f":"ZZZ__FnCalls!F106","v":"Apr 2018"},{"$f":"ZZZ__FnCalls!F107","v":"May 2018"},{"$f":"ZZZ__FnCalls!F108","v":"Jun 2018"},{"$f":"ZZZ__FnCalls!F109","v":"Jul 2018"},{"$f":"ZZZ__FnCalls!F110","v":"Aug 2018"},{"$f":"ZZZ__FnCalls!F111","v":"Sep 2018"},{"$f":"ZZZ__FnCalls!F112","v":"Oct 2018"},{"$f":"ZZZ__FnCalls!F113","v":"Nov 2018"},{"$f":"ZZZ__FnCalls!F114","v":"Dec 2018"},{"$f":"ZZZ__FnCalls!H103","v":"2018"},{"$f":"ZZZ__FnCalls!F115","v":"Jan 2019"},{"$f":"ZZZ__FnCalls!F116","v":"Feb 2019"},{"$f":"ZZZ__FnCalls!F117","v":"Mar 2019"},{"$f":"ZZZ__FnCalls!F118","v":"Apr 2019"},{"$f":"ZZZ__FnCalls!F119","v":"May 2019"},{"$f":"ZZZ__FnCalls!F120","v":"Jun 2019"},{"$f":"ZZZ__FnCalls!F121","v":"Jul 2019"},{"$f":"ZZZ__FnCalls!F122","v":"Aug 2019"},{"$f":"ZZZ__FnCalls!F123","v":"Sep 2019"},{"$f":"ZZZ__FnCalls!F124","v":"Oct 2019"},{"$f":"ZZZ__FnCalls!F125","v":"Nov 2019"},{"$f":"ZZZ__FnCalls!F126","v":"Dec 2019"},{"$f":"ZZZ__FnCalls!H115","v":"2019"},{"$f":"ZZZ__FnCalls!F127","v":"Jan 2020"},{"$f":"ZZZ__FnCalls!F128","v":"Feb 2020"},{"$f":"ZZZ__FnCalls!F129","v":"Mar 2020"},{"$f":"ZZZ__FnCalls!F130","v":"Apr 2020"},{"$f":"ZZZ__FnCalls!F131","v":"May 2020"},{"$f":"ZZZ__FnCalls!F132","v":"Jun 2020"},{"$f":"ZZZ__FnCalls!F133","v":"Jul 2020"},{"$f":"ZZZ__FnCalls!F134","v":"Aug 2020"},{"$f":"ZZZ__FnCalls!F135","v":"Sep 2020"},{"$f":"ZZZ__FnCalls!F136","v":"Oct 2020"},{"$f":"ZZZ__FnCalls!F137","v":"Nov 2020"},{"$f":"ZZZ__FnCalls!F138","v":"Dec 2020"},{"$f":"ZZZ__FnCalls!H127","v":"2020"}]
[null,{"$f":"ZZZ__FnCalls!F7","v":"Jan 2010"},{"$f":"ZZZ__FnCalls!F8","v":"Feb 2010"},{"$f":"ZZZ__FnCalls!F9","v":"Mar 2010"},{"$f":"ZZZ__FnCalls!F10","v":"Apr 2010"},{"$f":"ZZZ__FnCalls!F11","v":"May 2010"},{"$f":"ZZZ__FnCalls!F12","v":"Jun 2010"},{"$f":"ZZZ__FnCalls!F13","v":"Jul 2010"},{"$f":"ZZZ__FnCalls!F14","v":"Aug 2010"},{"$f":"ZZZ__FnCalls!F15","v":"Sep 2010"},{"$f":"ZZZ__FnCalls!F16","v":"Oct 2010"},{"$f":"ZZZ__FnCalls!F17","v":"Nov 2010"},{"$f":"ZZZ__FnCalls!F18","v":"Dec 2010"},{"$f":"ZZZ__FnCalls!F7","v":"Jan 2010"},{"$f":"ZZZ__FnCalls!F19","v":"Jan 2011"},{"$f":"ZZZ__FnCalls!F20","v":"Feb 2011"},{"$f":"ZZZ__FnCalls!F21","v":"Mar 2011"},{"$f":"ZZZ__FnCalls!F22","v":"Apr 2011"},{"$f":"ZZZ__FnCalls!F23","v":"May 2011"},{"$f":"ZZZ__FnCalls!F24","v":"Jun 2011"},{"$f":"ZZZ__FnCalls!F25","v":"Jul 2011"},{"$f":"ZZZ__FnCalls!F26","v":"Aug 2011"},{"$f":"ZZZ__FnCalls!F27","v":"Sep 2011"},{"$f":"ZZZ__FnCalls!F28","v":"Oct 2011"},{"$f":"ZZZ__FnCalls!F29","v":"Nov 2011"},{"$f":"ZZZ__FnCalls!F30","v":"Dec 2011"},{"$f":"ZZZ__FnCalls!F19","v":"Jan 2011"},{"$f":"ZZZ__FnCalls!F31","v":"Jan 2012"},{"$f":"ZZZ__FnCalls!F32","v":"Feb 2012"},{"$f":"ZZZ__FnCalls!F33","v":"Mar 2012"},{"$f":"ZZZ__FnCalls!F34","v":"Apr 2012"},{"$f":"ZZZ__FnCalls!F35","v":"May 2012"},{"$f":"ZZZ__FnCalls!F36","v":"Jun 2012"},{"$f":"ZZZ__FnCalls!F37","v":"Jul 2012"},{"$f":"ZZZ__FnCalls!F38","v":"Aug 2012"},{"$f":"ZZZ__FnCalls!F39","v":"Sep 2012"},{"$f":"ZZZ__FnCalls!F40","v":"Oct 2012"},{"$f":"ZZZ__FnCalls!F41","v":"Nov 2012"},{"$f":"ZZZ__FnCalls!F42","v":"Dec 2012"},{"$f":"ZZZ__FnCalls!F31","v":"Jan 2012"},{"$f":"ZZZ__FnCalls!F43","v":"Jan 2013"},{"$f":"ZZZ__FnCalls!F44","v":"Feb 2013"},{"$f":"ZZZ__FnCalls!F45","v":"Mar 2013"},{"$f":"ZZZ__FnCalls!F46","v":"Apr 2013"},{"$f":"ZZZ__FnCalls!F47","v":"May 2013"},{"$f":"ZZZ__FnCalls!F48","v":"Jun 2013"},{"$f":"ZZZ__FnCalls!F49","v":"Jul 2013"},{"$f":"ZZZ__FnCalls!F50","v":"Aug 2013"},{"$f":"ZZZ__FnCalls!F51","v":"Sep 2013"},{"$f":"ZZZ__FnCalls!F52","v":"Oct 2013"},{"$f":"ZZZ__FnCalls!F53","v":"Nov 2013"},{"$f":"ZZZ__FnCalls!F54","v":"Dec 2013"},{"$f":"ZZZ__FnCalls!F43","v":"Jan 2013"},{"$f":"ZZZ__FnCalls!F55","v":"Jan 2014"},{"$f":"ZZZ__FnCalls!F56","v":"Feb 2014"},{"$f":"ZZZ__FnCalls!F57","v":"Mar 2014"},{"$f":"ZZZ__FnCalls!F58","v":"Apr 2014"},{"$f":"ZZZ__FnCalls!F59","v":"May 2014"},{"$f":"ZZZ__FnCalls!F60","v":"Jun 2014"},{"$f":"ZZZ__FnCalls!F61","v":"Jul 2014"},{"$f":"ZZZ__FnCalls!F62","v":"Aug 2014"},{"$f":"ZZZ__FnCalls!F63","v":"Sep 2014"},{"$f":"ZZZ__FnCalls!F64","v":"Oct 2014"},{"$f":"ZZZ__FnCalls!F65","v":"Nov 2014"},{"$f":"ZZZ__FnCalls!F66","v":"Dec 2014"},{"$f":"ZZZ__FnCalls!F55","v":"Jan 2014"},{"$f":"ZZZ__FnCalls!F67","v":"Jan 2015"},{"$f":"ZZZ__FnCalls!F68","v":"Feb 2015"},{"$f":"ZZZ__FnCalls!F69","v":"Mar 2015"},{"$f":"ZZZ__FnCalls!F70","v":"Apr 2015"},{"$f":"ZZZ__FnCalls!F71","v":"May 2015"},{"$f":"ZZZ__FnCalls!F72","v":"Jun 2015"},{"$f":"ZZZ__FnCalls!F73","v":"Jul 2015"},{"$f":"ZZZ__FnCalls!F74","v":"Aug 2015"},{"$f":"ZZZ__FnCalls!F75","v":"Sep 2015"},{"$f":"ZZZ__FnCalls!F76","v":"Oct 2015"},{"$f":"ZZZ__FnCalls!F77","v":"Nov 2015"},{"$f":"ZZZ__FnCalls!F78","v":"Dec 2015"},{"$f":"ZZZ__FnCalls!F67","v":"Jan 2015"},{"$f":"ZZZ__FnCalls!F79","v":"Jan 2016"},{"$f":"ZZZ__FnCalls!F80","v":"Feb 2016"},{"$f":"ZZZ__FnCalls!F81","v":"Mar 2016"},{"$f":"ZZZ__FnCalls!F82","v":"Apr 2016"},{"$f":"ZZZ__FnCalls!F83","v":"May 2016"},{"$f":"ZZZ__FnCalls!F84","v":"Jun 2016"},{"$f":"ZZZ__FnCalls!F85","v":"Jul 2016"},{"$f":"ZZZ__FnCalls!F86","v":"Aug 2016"},{"$f":"ZZZ__FnCalls!F87","v":"Sep 2016"},{"$f":"ZZZ__FnCalls!F88","v":"Oct 2016"},{"$f":"ZZZ__FnCalls!F89","v":"Nov 2016"},{"$f":"ZZZ__FnCalls!F90","v":"Dec 2016"},{"$f":"ZZZ__FnCalls!F79","v":"Jan 2016"},{"$f":"ZZZ__FnCalls!F91","v":"Jan 2017"},{"$f":"ZZZ__FnCalls!F92","v":"Feb 2017"},{"$f":"ZZZ__FnCalls!F93","v":"Mar 2017"},{"$f":"ZZZ__FnCalls!F94","v":"Apr 2017"},{"$f":"ZZZ__FnCalls!F95","v":"May 2017"},{"$f":"ZZZ__FnCalls!F96","v":"Jun 2017"},{"$f":"ZZZ__FnCalls!F97","v":"Jul 2017"},{"$f":"ZZZ__FnCalls!F98","v":"Aug 2017"},{"$f":"ZZZ__FnCalls!F99","v":"Sep 2017"},{"$f":"ZZZ__FnCalls!F100","v":"Oct 2017"},{"$f":"ZZZ__FnCalls!F101","v":"Nov 2017"},{"$f":"ZZZ__FnCalls!F102","v":"Dec 2017"},{"$f":"ZZZ__FnCalls!F91","v":"Jan 2017"},{"$f":"ZZZ__FnCalls!F103","v":"Jan 2018"},{"$f":"ZZZ__FnCalls!F104","v":"Feb 2018"},{"$f":"ZZZ__FnCalls!F105","v":"Mar 2018"},{"$f":"ZZZ__FnCalls!F106","v":"Apr 2018"},{"$f":"ZZZ__FnCalls!F107","v":"May 2018"},{"$f":"ZZZ__FnCalls!F108","v":"Jun 2018"},{"$f":"ZZZ__FnCalls!F109","v":"Jul 2018"},{"$f":"ZZZ__FnCalls!F110","v":"Aug 2018"},{"$f":"ZZZ__FnCalls!F111","v":"Sep 2018"},{"$f":"ZZZ__FnCalls!F112","v":"Oct 2018"},{"$f":"ZZZ__FnCalls!F113","v":"Nov 2018"},{"$f":"ZZZ__FnCalls!F114","v":"Dec 2018"},{"$f":"ZZZ__FnCalls!F103","v":"Jan 2018"},{"$f":"ZZZ__FnCalls!F115","v":"Jan 2019"},{"$f":"ZZZ__FnCalls!F116","v":"Feb 2019"},{"$f":"ZZZ__FnCalls!F117","v":"Mar 2019"},{"$f":"ZZZ__FnCalls!F118","v":"Apr 2019"},{"$f":"ZZZ__FnCalls!F119","v":"May 2019"},{"$f":"ZZZ__FnCalls!F120","v":"Jun 2019"},{"$f":"ZZZ__FnCalls!F121","v":"Jul 2019"},{"$f":"ZZZ__FnCalls!F122","v":"Aug 2019"},{"$f":"ZZZ__FnCalls!F123","v":"Sep 2019"},{"$f":"ZZZ__FnCalls!F124","v":"Oct 2019"},{"$f":"ZZZ__FnCalls!F125","v":"Nov 2019"},{"$f":"ZZZ__FnCalls!F126","v":"Dec 2019"},{"$f":"ZZZ__FnCalls!F115","v":"Jan 2019"},{"$f":"ZZZ__FnCalls!F127","v":"Jan 2020"},{"$f":"ZZZ__FnCalls!F128","v":"Feb 2020"},{"$f":"ZZZ__FnCalls!F129","v":"Mar 2020"},{"$f":"ZZZ__FnCalls!F130","v":"Apr 2020"},{"$f":"ZZZ__FnCalls!F131","v":"May 2020"},{"$f":"ZZZ__FnCalls!F132","v":"Jun 2020"},{"$f":"ZZZ__FnCalls!F133","v":"Jul 2020"},{"$f":"ZZZ__FnCalls!F134","v":"Aug 2020"},{"$f":"ZZZ__FnCalls!F135","v":"Sep 2020"},{"$f":"ZZZ__FnCalls!F136","v":"Oct 2020"},{"$f":"ZZZ__FnCalls!F137","v":"Nov 2020"},{"$f":"ZZZ__FnCalls!F138","v":"Dec 2020"},{"$f":"ZZZ__FnCalls!F127","v":"Jan 2020"}]
[{"$f":"\"Demand_Expected_Long_1\"","v":"Demand_Expected_Long_1"}]
[null,{"$f":"ZZZ__FnCalls!F7","v":"Jan 2010"},{"$f":"ZZZ__FnCalls!F8","v":"Feb 2010"},{"$f":"ZZZ__FnCalls!F9","v":"Mar 2010"},{"$f":"ZZZ__FnCalls!F10","v":"Apr 2010"},{"$f":"ZZZ__FnCalls!F11","v":"May 2010"},{"$f":"ZZZ__FnCalls!F12","v":"Jun 2010"},{"$f":"ZZZ__FnCalls!F13","v":"Jul 2010"},{"$f":"ZZZ__FnCalls!F14","v":"Aug 2010"},{"$f":"ZZZ__FnCalls!F15","v":"Sep 2010"},{"$f":"ZZZ__FnCalls!F16","v":"Oct 2010"},{"$f":"ZZZ__FnCalls!F17","v":"Nov 2010"},{"$f":"ZZZ__FnCalls!F18","v":"Dec 2010"},{"$f":"ZZZ__FnCalls!H7","v":"2010"},{"$f":"ZZZ__FnCalls!F19","v":"Jan 2011"},{"$f":"ZZZ__FnCalls!F20","v":"Feb 2011"},{"$f":"ZZZ__FnCalls!F21","v":"Mar 2011"},{"$f":"ZZZ__FnCalls!F22","v":"Apr 2011"},{"$f":"ZZZ__FnCalls!F23","v":"May 2011"},{"$f":"ZZZ__FnCalls!F24","v":"Jun 2011"},{"$f":"ZZZ__FnCalls!F25","v":"Jul 2011"},{"$f":"ZZZ__FnCalls!F26","v":"Aug 2011"},{"$f":"ZZZ__FnCalls!F27","v":"Sep 2011"},{"$f":"ZZZ__FnCalls!F28","v":"Oct 2011"},{"$f":"ZZZ__FnCalls!F29","v":"Nov 2011"},{"$f":"ZZZ__FnCalls!F30","v":"Dec 2011"},{"$f":"ZZZ__FnCalls!H19","v":"2011"},{"$f":"ZZZ__FnCalls!F31","v":"Jan 2012"},{"$f":"ZZZ__FnCalls!F32","v":"Feb 2012"},{"$f":"ZZZ__FnCalls!F33","v":"Mar 2012"},{"$f":"ZZZ__FnCalls!F34","v":"Apr 2012"},{"$f":"ZZZ__FnCalls!F35","v":"May 2012"},{"$f":"ZZZ__FnCalls!F36","v":"Jun 2012"},{"$f":"ZZZ__FnCalls!F37","v":"Jul 2012"},{"$f":"ZZZ__FnCalls!F38","v":"Aug 2012"},{"$f":"ZZZ__FnCalls!F39","v":"Sep 2012"},{"$f":"ZZZ__FnCalls!F40","v":"Oct 2012"},{"$f":"ZZZ__FnCalls!F41","v":"Nov 2012"},{"$f":"ZZZ__FnCalls!F42","v":"Dec 2012"},{"$f":"ZZZ__FnCalls!H31","v":"2012"},{"$f":"ZZZ__FnCalls!F43","v":"Jan 2013"},{"$f":"ZZZ__FnCalls!F44","v":"Feb 2013"},{"$f":"ZZZ__FnCalls!F45","v":"Mar 2013"},{"$f":"ZZZ__FnCalls!F46","v":"Apr 2013"},{"$f":"ZZZ__FnCalls!F47","v":"May 2013"},{"$f":"ZZZ__FnCalls!F48","v":"Jun 2013"},{"$f":"ZZZ__FnCalls!F49","v":"Jul 2013"},{"$f":"ZZZ__FnCalls!F50","v":"Aug 2013"},{"$f":"ZZZ__FnCalls!F51","v":"Sep 2013"},{"$f":"ZZZ__FnCalls!F52","v":"Oct 2013"},{"$f":"ZZZ__FnCalls!F53","v":"Nov 2013"},{"$f":"ZZZ__FnCalls!F54","v":"Dec 2013"},{"$f":"ZZZ__FnCalls!H43","v":"2013"},{"$f":"ZZZ__FnCalls!F55","v":"Jan 2014"},{"$f":"ZZZ__FnCalls!F56","v":"Feb 2014"},{"$f":"ZZZ__FnCalls!F57","v":"Mar 2014"},{"$f":"ZZZ__FnCalls!F58","v":"Apr 2014"},{"$f":"ZZZ__FnCalls!F59","v":"May 2014"},{"$f":"ZZZ__FnCalls!F60","v":"Jun 2014"},{"$f":"ZZZ__FnCalls!F61","v":"Jul 2014"},{"$f":"ZZZ__FnCalls!F62","v":"Aug 2014"},{"$f":"ZZZ__FnCalls!F63","v":"Sep 2014"},{"$f":"ZZZ__FnCalls!F64","v":"Oct 2014"},{"$f":"ZZZ__FnCalls!F65","v":"Nov 2014"},{"$f":"ZZZ__FnCalls!F66","v":"Dec 2014"},{"$f":"ZZZ__FnCalls!H55","v":"2014"},{"$f":"ZZZ__FnCalls!F67","v":"Jan 2015"},{"$f":"ZZZ__FnCalls!F68","v":"Feb 2015"},{"$f":"ZZZ__FnCalls!F69","v":"Mar 2015"},{"$f":"ZZZ__FnCalls!F70","v":"Apr 2015"},{"$f":"ZZZ__FnCalls!F71","v":"May 2015"},{"$f":"ZZZ__FnCalls!F72","v":"Jun 2015"},{"$f":"ZZZ__FnCalls!F73","v":"Jul 2015"},{"$f":"ZZZ__FnCalls!F74","v":"Aug 2015"},{"$f":"ZZZ__FnCalls!F75","v":"Sep 2015"},{"$f":"ZZZ__FnCalls!F76","v":"Oct 2015"},{"$f":"ZZZ__FnCalls!F77","v":"Nov 2015"},{"$f":"ZZZ__FnCalls!F78","v":"Dec 2015"},{"$f":"ZZZ__FnCalls!H67","v":"2015"},{"$f":"ZZZ__FnCalls!F79","v":"Jan 2016"},{"$f":"ZZZ__FnCalls!F80","v":"Feb 2016"},{"$f":"ZZZ__FnCalls!F81","v":"Mar 2016"},{"$f":"ZZZ__FnCalls!F82","v":"Apr 2016"},{"$f":"ZZZ__FnCalls!F83","v":"May 2016"},{"$f":"ZZZ__FnCalls!F84","v":"Jun 2016"},{"$f":"ZZZ__FnCalls!F85","v":"Jul 2016"},{"$f":"ZZZ__FnCalls!F86","v":"Aug 2016"},{"$f":"ZZZ__FnCalls!F87","v":"Sep 2016"},{"$f":"ZZZ__FnCalls!F88","v":"Oct 2016"},{"$f":"ZZZ__FnCalls!F89","v":"Nov 2016"},{"$f":"ZZZ__FnCalls!F90","v":"Dec 2016"},{"$f":"ZZZ__FnCalls!H79","v":"2016"},{"$f":"ZZZ__FnCalls!F91","v":"Jan 2017"},{"$f":"ZZZ__FnCalls!F92","v":"Feb 2017"},{"$f":"ZZZ__FnCalls!F93","v":"Mar 2017"},{"$f":"ZZZ__FnCalls!F94","v":"Apr 2017"},{"$f":"ZZZ__FnCalls!F95","v":"May 2017"},{"$f":"ZZZ__FnCalls!F96","v":"Jun 2017"},{"$f":"ZZZ__FnCalls!F97","v":"Jul 2017"},{"$f":"ZZZ__FnCalls!F98","v":"Aug 2017"},{"$f":"ZZZ__FnCalls!F99","v":"Sep 2017"},{"$f":"ZZZ__FnCalls!F100","v":"Oct 2017"},{"$f":"ZZZ__FnCalls!F101","v":"Nov 2017"},{"$f":"ZZZ__FnCalls!F102","v":"Dec 2017"},{"$f":"ZZZ__FnCalls!H91","v":"2017"},{"$f":"ZZZ__FnCalls!F103","v":"Jan 2018"},{"$f":"ZZZ__FnCalls!F104","v":"Feb 2018"},{"$f":"ZZZ__FnCalls!F105","v":"Mar 2018"},{"$f":"ZZZ__FnCalls!F106","v":"Apr 2018"},{"$f":"ZZZ__FnCalls!F107","v":"May 2018"},{"$f":"ZZZ__FnCalls!F108","v":"Jun 2018"},{"$f":"ZZZ__FnCalls!F109","v":"Jul 2018"},{"$f":"ZZZ__FnCalls!F110","v":"Aug 2018"},{"$f":"ZZZ__FnCalls!F111","v":"Sep 2018"},{"$f":"ZZZ__FnCalls!F112","v":"Oct 2018"},{"$f":"ZZZ__FnCalls!F113","v":"Nov 2018"},{"$f":"ZZZ__FnCalls!F114","v":"Dec 2018"},{"$f":"ZZZ__FnCalls!H103","v":"2018"},{"$f":"ZZZ__FnCalls!F115","v":"Jan 2019"},{"$f":"ZZZ__FnCalls!F116","v":"Feb 2019"},{"$f":"ZZZ__FnCalls!F117","v":"Mar 2019"},{"$f":"ZZZ__FnCalls!F118","v":"Apr 2019"},{"$f":"ZZZ__FnCalls!F119","v":"May 2019"},{"$f":"ZZZ__FnCalls!F120","v":"Jun 2019"},{"$f":"ZZZ__FnCalls!F121","v":"Jul 2019"},{"$f":"ZZZ__FnCalls!F122","v":"Aug 2019"},{"$f":"ZZZ__FnCalls!F123","v":"Sep 2019"},{"$f":"ZZZ__FnCalls!F124","v":"Oct 2019"},{"$f":"ZZZ__FnCalls!F125","v":"Nov 2019"},{"$f":"ZZZ__FnCalls!F126","v":"Dec 2019"},{"$f":"ZZZ__FnCalls!H115","v":"2019"},{"$f":"ZZZ__FnCalls!F127","v":"Jan 2020"},{"$f":"ZZZ__FnCalls!F128","v":"Feb 2020"},{"$f":"ZZZ__FnCalls!F129","v":"Mar 2020"},{"$f":"ZZZ__FnCalls!F130","v":"Apr 2020"},{"$f":"ZZZ__FnCalls!F131","v":"May 2020"},{"$f":"ZZZ__FnCalls!F132","v":"Jun 2020"},{"$f":"ZZZ__FnCalls!F133","v":"Jul 2020"},{"$f":"ZZZ__FnCalls!F134","v":"Aug 2020"},{"$f":"ZZZ__FnCalls!F135","v":"Sep 2020"},{"$f":"ZZZ__FnCalls!F136","v":"Oct 2020"},{"$f":"ZZZ__FnCalls!F137","v":"Nov 2020"},{"$f":"ZZZ__FnCalls!F138","v":"Dec 2020"},{"$f":"ZZZ__FnCalls!H127","v":"2020"}]
[null,{"$f":"ZZZ__FnCalls!A7","v":"2010-01-01"},{"$f":"ZZZ__FnCalls!A8","v":"2010-02-01"},{"$f":"ZZZ__FnCalls!A9","v":"2010-03-01"},{"$f":"ZZZ__FnCalls!A10","v":"2010-04-01"},{"$f":"ZZZ__FnCalls!A11","v":"2010-05-01"},{"$f":"ZZZ__FnCalls!A12","v":"2010-06-01"},{"$f":"ZZZ__FnCalls!A13","v":"2010-07-01"},{"$f":"ZZZ__FnCalls!A14","v":"2010-08-01"},{"$f":"ZZZ__FnCalls!A15","v":"2010-09-01"},{"$f":"ZZZ__FnCalls!A16","v":"2010-10-01"},{"$f":"ZZZ__FnCalls!A17","v":"2010-11-01"},{"$f":"ZZZ__FnCalls!A18","v":"2010-12-01"},{"$f":"ZZZ__FnCalls!A7","v":"2010-01-01"},{"$f":"ZZZ__FnCalls!A19","v":"2011-01-01"},{"$f":"ZZZ__FnCalls!A20","v":"2011-02-01"},{"$f":"ZZZ__FnCalls!A21","v":"2011-03-01"},{"$f":"ZZZ__FnCalls!A22","v":"2011-04-01"},{"$f":"ZZZ__FnCalls!A23","v":"2011-05-01"},{"$f":"ZZZ__FnCalls!A24","v":"2011-06-01"},{"$f":"ZZZ__FnCalls!A25","v":"2011-07-01"},{"$f":"ZZZ__FnCalls!A26","v":"2011-08-01"},{"$f":"ZZZ__FnCalls!A27","v":"2011-09-01"},{"$f":"ZZZ__FnCalls!A28","v":"2011-10-01"},{"$f":"ZZZ__FnCalls!A29","v":"2011-11-01"},{"$f":"ZZZ__FnCalls!A30","v":"2011-12-01"},{"$f":"ZZZ__FnCalls!A19","v":"2011-01-01"},{"$f":"ZZZ__FnCalls!A31","v":"2012-01-01"},{"$f":"ZZZ__FnCalls!A32","v":"2012-02-01"},{"$f":"ZZZ__FnCalls!A33","v":"2012-03-01"},{"$f":"ZZZ__FnCalls!A34","v":"2012-04-01"},{"$f":"ZZZ__FnCalls!A35","v":"2012-05-01"},{"$f":"ZZZ__FnCalls!A36","v":"2012-06-01"},{"$f":"ZZZ__FnCalls!A37","v":"2012-07-01"},{"$f":"ZZZ__FnCalls!A38","v":"2012-08-01"},{"$f":"ZZZ__FnCalls!A39","v":"2012-09-01"},{"$f":"ZZZ__FnCalls!A40","v":"2012-10-01"},{"$f":"ZZZ__FnCalls!A41","v":"2012-11-01"},{"$f":"ZZZ__FnCalls!A42","v":"2012-12-01"},{"$f":"ZZZ__FnCalls!A31","v":"2012-01-01"},{"$f":"ZZZ__FnCalls!A43","v":"2013-01-01"},{"$f":"ZZZ__FnCalls!A44","v":"2013-02-01"},{"$f":"ZZZ__FnCalls!A45","v":"2013-03-01"},{"$f":"ZZZ__FnCalls!A46","v":"2013-04-01"},{"$f":"ZZZ__FnCalls!A47","v":"2013-05-01"},{"$f":"ZZZ__FnCalls!A48","v":"2013-06-01"},{"$f":"ZZZ__FnCalls!A49","v":"2013-07-01"},{"$f":"ZZZ__FnCalls!A50","v":"2013-08-01"},{"$f":"ZZZ__FnCalls!A51","v":"2013-09-01"},{"$f":"ZZZ__FnCalls!A52","v":"2013-10-01"},{"$f":"ZZZ__FnCalls!A53","v":"2013-11-01"},{"$f":"ZZZ__FnCalls!A54","v":"2013-12-01"},{"$f":"ZZZ__FnCalls!A43","v":"2013-01-01"},{"$f":"ZZZ__FnCalls!A55","v":"2014-01-01"},{"$f":"ZZZ__FnCalls!A56","v":"2014-02-01"},{"$f":"ZZZ__FnCalls!A57","v":"2014-03-01"},{"$f":"ZZZ__FnCalls!A58","v":"2014-04-01"},{"$f":"ZZZ__FnCalls!A59","v":"2014-05-01"},{"$f":"ZZZ__FnCalls!A60","v":"2014-06-01"},{"$f":"ZZZ__FnCalls!A61","v":"2014-07-01"},{"$f":"ZZZ__FnCalls!A62","v":"2014-08-01"},{"$f":"ZZZ__FnCalls!A63","v":"2014-09-01"},{"$f":"ZZZ__FnCalls!A64","v":"2014-10-01"},{"$f":"ZZZ__FnCalls!A65","v":"2014-11-01"},{"$f":"ZZZ__FnCalls!A66","v":"2014-12-01"},{"$f":"ZZZ__FnCalls!A55","v":"2014-01-01"},{"$f":"ZZZ__FnCalls!A67","v":"2015-01-01"},{"$f":"ZZZ__FnCalls!A68","v":"2015-02-01"},{"$f":"ZZZ__FnCalls!A69","v":"2015-03-01"},{"$f":"ZZZ__FnCalls!A70","v":"2015-04-01"},{"$f":"ZZZ__FnCalls!A71","v":"2015-05-01"},{"$f":"ZZZ__FnCalls!A72","v":"2015-06-01"},{"$f":"ZZZ__FnCalls!A73","v":"2015-07-01"},{"$f":"ZZZ__FnCalls!A74","v":"2015-08-01"},{"$f":"ZZZ__FnCalls!A75","v":"2015-09-01"},{"$f":"ZZZ__FnCalls!A76","v":"2015-10-01"},{"$f":"ZZZ__FnCalls!A77","v":"2015-11-01"},{"$f":"ZZZ__FnCalls!A78","v":"2015-12-01"},{"$f":"ZZZ__FnCalls!A67","v":"2015-01-01"},{"$f":"ZZZ__FnCalls!A79","v":"2016-01-01"},{"$f":"ZZZ__FnCalls!A80","v":"2016-02-01"},{"$f":"ZZZ__FnCalls!A81","v":"2016-03-01"},{"$f":"ZZZ__FnCalls!A82","v":"2016-04-01"},{"$f":"ZZZ__FnCalls!A83","v":"2016-05-01"},{"$f":"ZZZ__FnCalls!A84","v":"2016-06-01"},{"$f":"ZZZ__FnCalls!A85","v":"2016-07-01"},{"$f":"ZZZ__FnCalls!A86","v":"2016-08-01"},{"$f":"ZZZ__FnCalls!A87","v":"2016-09-01"},{"$f":"ZZZ__FnCalls!A88","v":"2016-10-01"},{"$f":"ZZZ__FnCalls!A89","v":"2016-11-01"},{"$f":"ZZZ__FnCalls!A90","v":"2016-12-01"},{"$f":"ZZZ__FnCalls!A79","v":"2016-01-01"},{"$f":"ZZZ__FnCalls!A91","v":"2017-01-01"},{"$f":"ZZZ__FnCalls!A92","v":"2017-02-01"},{"$f":"ZZZ__FnCalls!A93","v":"2017-03-01"},{"$f":"ZZZ__FnCalls!A94","v":"2017-04-01"},{"$f":"ZZZ__FnCalls!A95","v":"2017-05-01"},{"$f":"ZZZ__FnCalls!A96","v":"2017-06-01"},{"$f":"ZZZ__FnCalls!A97","v":"2017-07-01"},{"$f":"ZZZ__FnCalls!A98","v":"2017-08-01"},{"$f":"ZZZ__FnCalls!A99","v":"2017-09-01"},{"$f":"ZZZ__FnCalls!A100","v":"2017-10-01"},{"$f":"ZZZ__FnCalls!A101","v":"2017-11-01"},{"$f":"ZZZ__FnCalls!A102","v":"2017-12-01"},{"$f":"ZZZ__FnCalls!A91","v":"2017-01-01"},{"$f":"ZZZ__FnCalls!A103","v":"2018-01-01"},{"$f":"ZZZ__FnCalls!A104","v":"2018-02-01"},{"$f":"ZZZ__FnCalls!A105","v":"2018-03-01"},{"$f":"ZZZ__FnCalls!A106","v":"2018-04-01"},{"$f":"ZZZ__FnCalls!A107","v":"2018-05-01"},{"$f":"ZZZ__FnCalls!A108","v":"2018-06-01"},{"$f":"ZZZ__FnCalls!A109","v":"2018-07-01"},{"$f":"ZZZ__FnCalls!A110","v":"2018-08-01"},{"$f":"ZZZ__FnCalls!A111","v":"2018-09-01"},{"$f":"ZZZ__FnCalls!A112","v":"2018-10-01"},{"$f":"ZZZ__FnCalls!A113","v":"2018-11-01"},{"$f":"ZZZ__FnCalls!A114","v":"2018-12-01"},{"$f":"ZZZ__FnCalls!A103","v":"2018-01-01"},{"$f":"ZZZ__FnCalls!A115","v":"2019-01-01"},{"$f":"ZZZ__FnCalls!A116","v":"2019-02-01"},{"$f":"ZZZ__FnCalls!A117","v":"2019-03-01"},{"$f":"ZZZ__FnCalls!A118","v":"2019-04-01"},{"$f":"ZZZ__FnCalls!A119","v":"2019-05-01"},{"$f":"ZZZ__FnCalls!A120","v":"2019-06-01"},{"$f":"ZZZ__FnCalls!A121","v":"2019-07-01"},{"$f":"ZZZ__FnCalls!A122","v":"2019-08-01"},{"$f":"ZZZ__FnCalls!A123","v":"2019-09-01"},{"$f":"ZZZ__FnCalls!A124","v":"2019-10-01"},{"$f":"ZZZ__FnCalls!A125","v":"2019-11-01"},{"$f":"ZZZ__FnCalls!A126","v":"2019-12-01"},{"$f":"ZZZ__FnCalls!A115","v":"2019-01-01"},{"$f":"ZZZ__FnCalls!A127","v":"2020-01-01"},{"$f":"ZZZ__FnCalls!A128","v":"2020-02-01"},{"$f":"ZZZ__FnCalls!A129","v":"2020-03-01"},{"$f":"ZZZ__FnCalls!A130","v":"2020-04-01"},{"$f":"ZZZ__FnCalls!A131","v":"2020-05-01"},{"$f":"ZZZ__FnCalls!A132","v":"2020-06-01"},{"$f":"ZZZ__FnCalls!A133","v":"2020-07-01"},{"$f":"ZZZ__FnCalls!A134","v":"2020-08-01"},{"$f":"ZZZ__FnCalls!A135","v":"2020-09-01"},{"$f":"ZZZ__FnCalls!A136","v":"2020-10-01"},{"$f":"ZZZ__FnCalls!A137","v":"2020-11-01"},{"$f":"ZZZ__FnCalls!A138","v":"2020-12-01"},{"$f":"ZZZ__FnCalls!A127","v":"2020-01-01"}]
[{"$f":"\"Demand_Expected_Long_2\"","v":"Demand_Expected_Long_2"}]
[null,{"$f":"ZZZ__FnCalls!F7","v":"Jan 2010"},{"$f":"ZZZ__FnCalls!F8","v":"Feb 2010"},{"$f":"ZZZ__FnCalls!F9","v":"Mar 2010"},{"$f":"ZZZ__FnCalls!F10","v":"Apr 2010"},{"$f":"ZZZ__FnCalls!F11","v":"May 2010"},{"$f":"ZZZ__FnCalls!F12","v":"Jun 2010"},{"$f":"ZZZ__FnCalls!F13","v":"Jul 2010"},{"$f":"ZZZ__FnCalls!F14","v":"Aug 2010"},{"$f":"ZZZ__FnCalls!F15","v":"Sep 2010"},{"$f":"ZZZ__FnCalls!F16","v":"Oct 2010"},{"$f":"ZZZ__FnCalls!F17","v":"Nov 2010"},{"$f":"ZZZ__FnCalls!F18","v":"Dec 2010"},{"$f":"ZZZ__FnCalls!H7","v":"2010"},{"$f":"ZZZ__FnCalls!F19","v":"Jan 2011"},{"$f":"ZZZ__FnCalls!F20","v":"Feb 2011"},{"$f":"ZZZ__FnCalls!F21","v":"Mar 2011"},{"$f":"ZZZ__FnCalls!F22","v":"Apr 2011"},{"$f":"ZZZ__FnCalls!F23","v":"May 2011"},{"$f":"ZZZ__FnCalls!F24","v":"Jun 2011"},{"$f":"ZZZ__FnCalls!F25","v":"Jul 2011"},{"$f":"ZZZ__FnCalls!F26","v":"Aug 2011"},{"$f":"ZZZ__FnCalls!F27","v":"Sep 2011"},{"$f":"ZZZ__FnCalls!F28","v":"Oct 2011"},{"$f":"ZZZ__FnCalls!F29","v":"Nov 2011"},{"$f":"ZZZ__FnCalls!F30","v":"Dec 2011"},{"$f":"ZZZ__FnCalls!H19","v":"2011"},{"$f":"ZZZ__FnCalls!F31","v":"Jan 2012"},{"$f":"ZZZ__FnCalls!F32","v":"Feb 2012"},{"$f":"ZZZ__FnCalls!F33","v":"Mar 2012"},{"$f":"ZZZ__FnCalls!F34","v":"Apr 2012"},{"$f":"ZZZ__FnCalls!F35","v":"May 2012"},{"$f":"ZZZ__FnCalls!F36","v":"Jun 2012"},{"$f":"ZZZ__FnCalls!F37","v":"Jul 2012"},{"$f":"ZZZ__FnCalls!F38","v":"Aug 2012"},{"$f":"ZZZ__FnCalls!F39","v":"Sep 2012"},{"$f":"ZZZ__FnCalls!F40","v":"Oct 2012"},{"$f":"ZZZ__FnCalls!F41","v":"Nov 2012"},{"$f":"ZZZ__FnCalls!F42","v":"Dec 2012"},{"$f":"ZZZ__FnCalls!H31","v":"2012"},{"$f":"ZZZ__FnCalls!F43","v":"Jan 2013"},{"$f":"ZZZ__FnCalls!F44","v":"Feb 2013"},{"$f":"ZZZ__FnCalls!F45","v":"Mar 2013"},{"$f":"ZZZ__FnCalls!F46","v":"Apr 2013"},{"$f":"ZZZ__FnCalls!F47","v":"May 2013"},{"$f":"ZZZ__FnCalls!F48","v":"Jun 2013"},{"$f":"ZZZ__FnCalls!F49","v":"Jul 2013"},{"$f":"ZZZ__FnCalls!F50","v":"Aug 2013"},{"$f":"ZZZ__FnCalls!F51","v":"Sep 2013"},{"$f":"ZZZ__FnCalls!F52","v":"Oct 2013"},{"$f":"ZZZ__FnCalls!F53","v":"Nov 2013"},{"$f":"ZZZ__FnCalls!F54","v":"Dec 2013"},{"$f":"ZZZ__FnCalls!H43","v":"2013"},{"$f":"ZZZ__FnCalls!F55","v":"Jan 2014"},{"$f":"ZZZ__FnCalls!F56","v":"Feb 2014"},{"$f":"ZZZ__FnCalls!F57","v":"Mar 2014"},{"$f":"ZZZ__FnCalls!F58","v":"Apr 2014"},{"$f":"ZZZ__FnCalls!F59","v":"May 2014"},{"$f":"ZZZ__FnCalls!F60","v":"Jun 2014"},{"$f":"ZZZ__FnCalls!F61","v":"Jul 2014"},{"$f":"ZZZ__FnCalls!F62","v":"Aug 2014"},{"$f":"ZZZ__FnCalls!F63","v":"Sep 2014"},{"$f":"ZZZ__FnCalls!F64","v":"Oct 2014"},{"$f":"ZZZ__FnCalls!F65","v":"Nov 2014"},{"$f":"ZZZ__FnCalls!F66","v":"Dec 2014"},{"$f":"ZZZ__FnCalls!H55","v":"2014"},{"$f":"ZZZ__FnCalls!F67","v":"Jan 2015"},{"$f":"ZZZ__FnCalls!F68","v":"Feb 2015"},{"$f":"ZZZ__FnCalls!F69","v":"Mar 2015"},{"$f":"ZZZ__FnCalls!F70","v":"Apr 2015"},{"$f":"ZZZ__FnCalls!F71","v":"May 2015"},{"$f":"ZZZ__FnCalls!F72","v":"Jun 2015"},{"$f":"ZZZ__FnCalls!F73","v":"Jul 2015"},{"$f":"ZZZ__FnCalls!F74","v":"Aug 2015"},{"$f":"ZZZ__FnCalls!F75","v":"Sep 2015"},{"$f":"ZZZ__FnCalls!F76","v":"Oct 2015"},{"$f":"ZZZ__FnCalls!F77","v":"Nov 2015"},{"$f":"ZZZ__FnCalls!F78","v":"Dec 2015"},{"$f":"ZZZ__FnCalls!H67","v":"2015"},{"$f":"ZZZ__FnCalls!F79","v":"Jan 2016"},{"$f":"ZZZ__FnCalls!F80","v":"Feb 2016"},{"$f":"ZZZ__FnCalls!F81","v":"Mar 2016"},{"$f":"ZZZ__FnCalls!F82","v":"Apr 2016"},{"$f":"ZZZ__FnCalls!F83","v":"May 2016"},{"$f":"ZZZ__FnCalls!F84","v":"Jun 2016"},{"$f":"ZZZ__FnCalls!F85","v":"Jul 2016"},{"$f":"ZZZ__FnCalls!F86","v":"Aug 2016"},{"$f":"ZZZ__FnCalls!F87","v":"Sep 2016"},{"$f":"ZZZ__FnCalls!F88","v":"Oct 2016"},{"$f":"ZZZ__FnCalls!F89","v":"Nov 2016"},{"$f":"ZZZ__FnCalls!F90","v":"Dec 2016"},{"$f":"ZZZ__FnCalls!H79","v":"2016"},{"$f":"ZZZ__FnCalls!F91","v":"Jan 2017"},{"$f":"ZZZ__FnCalls!F92","v":"Feb 2017"},{"$f":"ZZZ__FnCalls!F93","v":"Mar 2017"},{"$f":"ZZZ__FnCalls!F94","v":"Apr 2017"},{"$f":"ZZZ__FnCalls!F95","v":"May 2017"},{"$f":"ZZZ__FnCalls!F96","v":"Jun 2017"},{"$f":"ZZZ__FnCalls!F97","v":"Jul 2017"},{"$f":"ZZZ__FnCalls!F98","v":"Aug 2017"},{"$f":"ZZZ__FnCalls!F99","v":"Sep 2017"},{"$f":"ZZZ__FnCalls!F100","v":"Oct 2017"},{"$f":"ZZZ__FnCalls!F101","v":"Nov 2017"},{"$f":"ZZZ__FnCalls!F102","v":"Dec 2017"},{"$f":"ZZZ__FnCalls!H91","v":"2017"},{"$f":"ZZZ__FnCalls!F103","v":"Jan 2018"},{"$f":"ZZZ__FnCalls!F104","v":"Feb 2018"},{"$f":"ZZZ__FnCalls!F105","v":"Mar 2018"},{"$f":"ZZZ__FnCalls!F106","v":"Apr 2018"},{"$f":"ZZZ__FnCalls!F107","v":"May 2018"},{"$f":"ZZZ__FnCalls!F108","v":"Jun 2018"},{"$f":"ZZZ__FnCalls!F109","v":"Jul 2018"},{"$f":"ZZZ__FnCalls!F110","v":"Aug 2018"},{"$f":"ZZZ__FnCalls!F111","v":"Sep 2018"},{"$f":"ZZZ__FnCalls!F112","v":"Oct 2018"},{"$f":"ZZZ__FnCalls!F113","v":"Nov 2018"},{"$f":"ZZZ__FnCalls!F114","v":"Dec 2018"},{"$f":"ZZZ__FnCalls!H103","v":"2018"},{"$f":"ZZZ__FnCalls!F115","v":"Jan 2019"},{"$f":"ZZZ__FnCalls!F116","v":"Feb 2019"},{"$f":"ZZZ__FnCalls!F117","v":"Mar 2019"},{"$f":"ZZZ__FnCalls!F118","v":"Apr 2019"},{"$f":"ZZZ__FnCalls!F119","v":"May 2019"},{"$f":"ZZZ__FnCalls!F120","v":"Jun 2019"},{"$f":"ZZZ__FnCalls!F121","v":"Jul 2019"},{"$f":"ZZZ__FnCalls!F122","v":"Aug 2019"},{"$f":"ZZZ__FnCalls!F123","v":"Sep 2019"},{"$f":"ZZZ__FnCalls!F124","v":"Oct 2019"},{"$f":"ZZZ__FnCalls!F125","v":"Nov 2019"},{"$f":"ZZZ__FnCalls!F126","v":"Dec 2019"},{"$f":"ZZZ__FnCalls!H115","v":"2019"},{"$f":"ZZZ__FnCalls!F127","v":"Jan 2020"},{"$f":"ZZZ__FnCalls!F128","v":"Feb 2020"},{"$f":"ZZZ__FnCalls!F129","v":"Mar 2020"},{"$f":"ZZZ__FnCalls!F130","v":"Apr 2020"},{"$f":"ZZZ__FnCalls!F131","v":"May 2020"},{"$f":"ZZZ__FnCalls!F132","v":"Jun 2020"},{"$f":"ZZZ__FnCalls!F133","v":"Jul 2020"},{"$f":"ZZZ__FnCalls!F134","v":"Aug 2020"},{"$f":"ZZZ__FnCalls!F135","v":"Sep 2020"},{"$f":"ZZZ__FnCalls!F136","v":"Oct 2020"},{"$f":"ZZZ__FnCalls!F137","v":"Nov 2020"},{"$f":"ZZZ__FnCalls!F138","v":"Dec 2020"},{"$f":"ZZZ__FnCalls!H127","v":"2020"}]
[null,{"$f":"ZZZ__FnCalls!F7","v":"Jan 2010"},{"$f":"ZZZ__FnCalls!F8","v":"Feb 2010"},{"$f":"ZZZ__FnCalls!F9","v":"Mar 2010"},{"$f":"ZZZ__FnCalls!F10","v":"Apr 2010"},{"$f":"ZZZ__FnCalls!F11","v":"May 2010"},{"$f":"ZZZ__FnCalls!F12","v":"Jun 2010"},{"$f":"ZZZ__FnCalls!F13","v":"Jul 2010"},{"$f":"ZZZ__FnCalls!F14","v":"Aug 2010"},{"$f":"ZZZ__FnCalls!F15","v":"Sep 2010"},{"$f":"ZZZ__FnCalls!F16","v":"Oct 2010"},{"$f":"ZZZ__FnCalls!F17","v":"Nov 2010"},{"$f":"ZZZ__FnCalls!F18","v":"Dec 2010"},{"$f":"ZZZ__FnCalls!F7","v":"Jan 2010"},{"$f":"ZZZ__FnCalls!F19","v":"Jan 2011"},{"$f":"ZZZ__FnCalls!F20","v":"Feb 2011"},{"$f":"ZZZ__FnCalls!F21","v":"Mar 2011"},{"$f":"ZZZ__FnCalls!F22","v":"Apr 2011"},{"$f":"ZZZ__FnCalls!F23","v":"May 2011"},{"$f":"ZZZ__FnCalls!F24","v":"Jun 2011"},{"$f":"ZZZ__FnCalls!F25","v":"Jul 2011"},{"$f":"ZZZ__FnCalls!F26","v":"Aug 2011"},{"$f":"ZZZ__FnCalls!F27","v":"Sep 2011"},{"$f":"ZZZ__FnCalls!F28","v":"Oct 2011"},{"$f":"ZZZ__FnCalls!F29","v":"Nov 2011"},{"$f":"ZZZ__FnCalls!F30","v":"Dec 2011"},{"$f":"ZZZ__FnCalls!F19","v":"Jan 2011"},{"$f":"ZZZ__FnCalls!F31","v":"Jan 2012"},{"$f":"ZZZ__FnCalls!F32","v":"Feb 2012"},{"$f":"ZZZ__FnCalls!F33","v":"Mar 2012"},{"$f":"ZZZ__FnCalls!F34","v":"Apr 2012"},{"$f":"ZZZ__FnCalls!F35","v":"May 2012"},{"$f":"ZZZ__FnCalls!F36","v":"Jun 2012"},{"$f":"ZZZ__FnCalls!F37","v":"Jul 2012"},{"$f":"ZZZ__FnCalls!F38","v":"Aug 2012"},{"$f":"ZZZ__FnCalls!F39","v":"Sep 2012"},{"$f":"ZZZ__FnCalls!F40","v":"Oct 2012"},{"$f":"ZZZ__FnCalls!F41","v":"Nov 2012"},{"$f":"ZZZ__FnCalls!F42","v":"Dec 2012"},{"$f":"ZZZ__FnCalls!F31","v":"Jan 2012"},{"$f":"ZZZ__FnCalls!F43","v":"Jan 2013"},{"$f":"ZZZ__FnCalls!F44","v":"Feb 2013"},{"$f":"ZZZ__FnCalls!F45","v":"Mar 2013"},{"$f":"ZZZ__FnCalls!F46","v":"Apr 2013"},{"$f":"ZZZ__FnCalls!F47","v":"May 2013"},{"$f":"ZZZ__FnCalls!F48","v":"Jun 2013"},{"$f":"ZZZ__FnCalls!F49","v":"Jul 2013"},{"$f":"ZZZ__FnCalls!F50","v":"Aug 2013"},{"$f":"ZZZ__FnCalls!F51","v":"Sep 2013"},{"$f":"ZZZ__FnCalls!F52","v":"Oct 2013"},{"$f":"ZZZ__FnCalls!F53","v":"Nov 2013"},{"$f":"ZZZ__FnCalls!F54","v":"Dec 2013"},{"$f":"ZZZ__FnCalls!F43","v":"Jan 2013"},{"$f":"ZZZ__FnCalls!F55","v":"Jan 2014"},{"$f":"ZZZ__FnCalls!F56","v":"Feb 2014"},{"$f":"ZZZ__FnCalls!F57","v":"Mar 2014"},{"$f":"ZZZ__FnCalls!F58","v":"Apr 2014"},{"$f":"ZZZ__FnCalls!F59","v":"May 2014"},{"$f":"ZZZ__FnCalls!F60","v":"Jun 2014"},{"$f":"ZZZ__FnCalls!F61","v":"Jul 2014"},{"$f":"ZZZ__FnCalls!F62","v":"Aug 2014"},{"$f":"ZZZ__FnCalls!F63","v":"Sep 2014"},{"$f":"ZZZ__FnCalls!F64","v":"Oct 2014"},{"$f":"ZZZ__FnCalls!F65","v":"Nov 2014"},{"$f":"ZZZ__FnCalls!F66","v":"Dec 2014"},{"$f":"ZZZ__FnCalls!F55","v":"Jan 2014"},{"$f":"ZZZ__FnCalls!F67","v":"Jan 2015"},{"$f":"ZZZ__FnCalls!F68","v":"Feb 2015"},{"$f":"ZZZ__FnCalls!F69","v":"Mar 2015"},{"$f":"ZZZ__FnCalls!F70","v":"Apr 2015"},{"$f":"ZZZ__FnCalls!F71","v":"May 2015"},{"$f":"ZZZ__FnCalls!F72","v":"Jun 2015"},{"$f":"ZZZ__FnCalls!F73","v":"Jul 2015"},{"$f":"ZZZ__FnCalls!F74","v":"Aug 2015"},{"$f":"ZZZ__FnCalls!F75","v":"Sep 2015"},{"$f":"ZZZ__FnCalls!F76","v":"Oct 2015"},{"$f":"ZZZ__FnCalls!F77","v":"Nov 2015"},{"$f":"ZZZ__FnCalls!F78","v":"Dec 2015"},{"$f":"ZZZ__FnCalls!F67","v":"Jan 2015"},{"$f":"ZZZ__FnCalls!F79","v":"Jan 2016"},{"$f":"ZZZ__FnCalls!F80","v":"Feb 2016"},{"$f":"ZZZ__FnCalls!F81","v":"Mar 2016"},{"$f":"ZZZ__FnCalls!F82","v":"Apr 2016"},{"$f":"ZZZ__FnCalls!F83","v":"May 2016"},{"$f":"ZZZ__FnCalls!F84","v":"Jun 2016"},{"$f":"ZZZ__FnCalls!F85","v":"Jul 2016"},{"$f":"ZZZ__FnCalls!F86","v":"Aug 2016"},{"$f":"ZZZ__FnCalls!F87","v":"Sep 2016"},{"$f":"ZZZ__FnCalls!F88","v":"Oct 2016"},{"$f":"ZZZ__FnCalls!F89","v":"Nov 2016"},{"$f":"ZZZ__FnCalls!F90","v":"Dec 2016"},{"$f":"ZZZ__FnCalls!F79","v":"Jan 2016"},{"$f":"ZZZ__FnCalls!F91","v":"Jan 2017"},{"$f":"ZZZ__FnCalls!F92","v":"Feb 2017"},{"$f":"ZZZ__FnCalls!F93","v":"Mar 2017"},{"$f":"ZZZ__FnCalls!F94","v":"Apr 2017"},{"$f":"ZZZ__FnCalls!F95","v":"May 2017"},{"$f":"ZZZ__FnCalls!F96","v":"Jun 2017"},{"$f":"ZZZ__FnCalls!F97","v":"Jul 2017"},{"$f":"ZZZ__FnCalls!F98","v":"Aug 2017"},{"$f":"ZZZ__FnCalls!F99","v":"Sep 2017"},{"$f":"ZZZ__FnCalls!F100","v":"Oct 2017"},{"$f":"ZZZ__FnCalls!F101","v":"Nov 2017"},{"$f":"ZZZ__FnCalls!F102","v":"Dec 2017"},{"$f":"ZZZ__FnCalls!F91","v":"Jan 2017"},{"$f":"ZZZ__FnCalls!F103","v":"Jan 2018"},{"$f":"ZZZ__FnCalls!F104","v":"Feb 2018"},{"$f":"ZZZ__FnCalls!F105","v":"Mar 2018"},{"$f":"ZZZ__FnCalls!F106","v":"Apr 2018"},{"$f":"ZZZ__FnCalls!F107","v":"May 2018"},{"$f":"ZZZ__FnCalls!F108","v":"Jun 2018"},{"$f":"ZZZ__FnCalls!F109","v":"Jul 2018"},{"$f":"ZZZ__FnCalls!F110","v":"Aug 2018"},{"$f":"ZZZ__FnCalls!F111","v":"Sep 2018"},{"$f":"ZZZ__FnCalls!F112","v":"Oct 2018"},{"$f":"ZZZ__FnCalls!F113","v":"Nov 2018"},{"$f":"ZZZ__FnCalls!F114","v":"Dec 2018"},{"$f":"ZZZ__FnCalls!F103","v":"Jan 2018"},{"$f":"ZZZ__FnCalls!F115","v":"Jan 2019"},{"$f":"ZZZ__FnCalls!F116","v":"Feb 2019"},{"$f":"ZZZ__FnCalls!F117","v":"Mar 2019"},{"$f":"ZZZ__FnCalls!F118","v":"Apr 2019"},{"$f":"ZZZ__FnCalls!F119","v":"May 2019"},{"$f":"ZZZ__FnCalls!F120","v":"Jun 2019"},{"$f":"ZZZ__FnCalls!F121","v":"Jul 2019"},{"$f":"ZZZ__FnCalls!F122","v":"Aug 2019"},{"$f":"ZZZ__FnCalls!F123","v":"Sep 2019"},{"$f":"ZZZ__FnCalls!F124","v":"Oct 2019"},{"$f":"ZZZ__FnCalls!F125","v":"Nov 2019"},{"$f":"ZZZ__FnCalls!F126","v":"Dec 2019"},{"$f":"ZZZ__FnCalls!F115","v":"Jan 2019"},{"$f":"ZZZ__FnCalls!F127","v":"Jan 2020"},{"$f":"ZZZ__FnCalls!F128","v":"Feb 2020"},{"$f":"ZZZ__FnCalls!F129","v":"Mar 2020"},{"$f":"ZZZ__FnCalls!F130","v":"Apr 2020"},{"$f":"ZZZ__FnCalls!F131","v":"May 2020"},{"$f":"ZZZ__FnCalls!F132","v":"Jun 2020"},{"$f":"ZZZ__FnCalls!F133","v":"Jul 2020"},{"$f":"ZZZ__FnCalls!F134","v":"Aug 2020"},{"$f":"ZZZ__FnCalls!F135","v":"Sep 2020"},{"$f":"ZZZ__FnCalls!F136","v":"Oct 2020"},{"$f":"ZZZ__FnCalls!F137","v":"Nov 2020"},{"$f":"ZZZ__FnCalls!F138","v":"Dec 2020"},{"$f":"ZZZ__FnCalls!F127","v":"Jan 2020"}]
[{"$f":"\"Demand_Aggregate_stdev_1\"","v":"Demand_Aggregate_stdev_1"}]
[null,{"$f":"ZZZ__FnCalls!F7","v":"Jan 2010"},{"$f":"ZZZ__FnCalls!F8","v":"Feb 2010"},{"$f":"ZZZ__FnCalls!F9","v":"Mar 2010"},{"$f":"ZZZ__FnCalls!F10","v":"Apr 2010"},{"$f":"ZZZ__FnCalls!F11","v":"May 2010"},{"$f":"ZZZ__FnCalls!F12","v":"Jun 2010"},{"$f":"ZZZ__FnCalls!F13","v":"Jul 2010"},{"$f":"ZZZ__FnCalls!F14","v":"Aug 2010"},{"$f":"ZZZ__FnCalls!F15","v":"Sep 2010"},{"$f":"ZZZ__FnCalls!F16","v":"Oct 2010"},{"$f":"ZZZ__FnCalls!F17","v":"Nov 2010"},{"$f":"ZZZ__FnCalls!F18","v":"Dec 2010"},{"$f":"ZZZ__FnCalls!H7","v":"2010"},{"$f":"ZZZ__FnCalls!F19","v":"Jan 2011"},{"$f":"ZZZ__FnCalls!F20","v":"Feb 2011"},{"$f":"ZZZ__FnCalls!F21","v":"Mar 2011"},{"$f":"ZZZ__FnCalls!F22","v":"Apr 2011"},{"$f":"ZZZ__FnCalls!F23","v":"May 2011"},{"$f":"ZZZ__FnCalls!F24","v":"Jun 2011"},{"$f":"ZZZ__FnCalls!F25","v":"Jul 2011"},{"$f":"ZZZ__FnCalls!F26","v":"Aug 2011"},{"$f":"ZZZ__FnCalls!F27","v":"Sep 2011"},{"$f":"ZZZ__FnCalls!F28","v":"Oct 2011"},{"$f":"ZZZ__FnCalls!F29","v":"Nov 2011"},{"$f":"ZZZ__FnCalls!F30","v":"Dec 2011"},{"$f":"ZZZ__FnCalls!H19","v":"2011"},{"$f":"ZZZ__FnCalls!F31","v":"Jan 2012"},{"$f":"ZZZ__FnCalls!F32","v":"Feb 2012"},{"$f":"ZZZ__FnCalls!F33","v":"Mar 2012"},{"$f":"ZZZ__FnCalls!F34","v":"Apr 2012"},{"$f":"ZZZ__FnCalls!F35","v":"May 2012"},{"$f":"ZZZ__FnCalls!F36","v":"Jun 2012"},{"$f":"ZZZ__FnCalls!F37","v":"Jul 2012"},{"$f":"ZZZ__FnCalls!F38","v":"Aug 2012"},{"$f":"ZZZ__FnCalls!F39","v":"Sep 2012"},{"$f":"ZZZ__FnCalls!F40","v":"Oct 2012"},{"$f":"ZZZ__FnCalls!F41","v":"Nov 2012"},{"$f":"ZZZ__FnCalls!F42","v":"Dec 2012"},{"$f":"ZZZ__FnCalls!H31","v":"2012"},{"$f":"ZZZ__FnCalls!F43","v":"Jan 2013"},{"$f":"ZZZ__FnCalls!F44","v":"Feb 2013"},{"$f":"ZZZ__FnCalls!F45","v":"Mar 2013"},{"$f":"ZZZ__FnCalls!F46","v":"Apr 2013"},{"$f":"ZZZ__FnCalls!F47","v":"May 2013"},{"$f":"ZZZ__FnCalls!F48","v":"Jun 2013"},{"$f":"ZZZ__FnCalls!F49","v":"Jul 2013"},{"$f":"ZZZ__FnCalls!F50","v":"Aug 2013"},{"$f":"ZZZ__FnCalls!F51","v":"Sep 2013"},{"$f":"ZZZ__FnCalls!F52","v":"Oct 2013"},{"$f":"ZZZ__FnCalls!F53","v":"Nov 2013"},{"$f":"ZZZ__FnCalls!F54","v":"Dec 2013"},{"$f":"ZZZ__FnCalls!H43","v":"2013"},{"$f":"ZZZ__FnCalls!F55","v":"Jan 2014"},{"$f":"ZZZ__FnCalls!F56","v":"Feb 2014"},{"$f":"ZZZ__FnCalls!F57","v":"Mar 2014"},{"$f":"ZZZ__FnCalls!F58","v":"Apr 2014"},{"$f":"ZZZ__FnCalls!F59","v":"May 2014"},{"$f":"ZZZ__FnCalls!F60","v":"Jun 2014"},{"$f":"ZZZ__FnCalls!F61","v":"Jul 2014"},{"$f":"ZZZ__FnCalls!F62","v":"Aug 2014"},{"$f":"ZZZ__FnCalls!F63","v":"Sep 2014"},{"$f":"ZZZ__FnCalls!F64","v":"Oct 2014"},{"$f":"ZZZ__FnCalls!F65","v":"Nov 2014"},{"$f":"ZZZ__FnCalls!F66","v":"Dec 2014"},{"$f":"ZZZ__FnCalls!H55","v":"2014"},{"$f":"ZZZ__FnCalls!F67","v":"Jan 2015"},{"$f":"ZZZ__FnCalls!F68","v":"Feb 2015"},{"$f":"ZZZ__FnCalls!F69","v":"Mar 2015"},{"$f":"ZZZ__FnCalls!F70","v":"Apr 2015"},{"$f":"ZZZ__FnCalls!F71","v":"May 2015"},{"$f":"ZZZ__FnCalls!F72","v":"Jun 2015"},{"$f":"ZZZ__FnCalls!F73","v":"Jul 2015"},{"$f":"ZZZ__FnCalls!F74","v":"Aug 2015"},{"$f":"ZZZ__FnCalls!F75","v":"Sep 2015"},{"$f":"ZZZ__FnCalls!F76","v":"Oct 2015"},{"$f":"ZZZ__FnCalls!F77","v":"Nov 2015"},{"$f":"ZZZ__FnCalls!F78","v":"Dec 2015"},{"$f":"ZZZ__FnCalls!H67","v":"2015"},{"$f":"ZZZ__FnCalls!F79","v":"Jan 2016"},{"$f":"ZZZ__FnCalls!F80","v":"Feb 2016"},{"$f":"ZZZ__FnCalls!F81","v":"Mar 2016"},{"$f":"ZZZ__FnCalls!F82","v":"Apr 2016"},{"$f":"ZZZ__FnCalls!F83","v":"May 2016"},{"$f":"ZZZ__FnCalls!F84","v":"Jun 2016"},{"$f":"ZZZ__FnCalls!F85","v":"Jul 2016"},{"$f":"ZZZ__FnCalls!F86","v":"Aug 2016"},{"$f":"ZZZ__FnCalls!F87","v":"Sep 2016"},{"$f":"ZZZ__FnCalls!F88","v":"Oct 2016"},{"$f":"ZZZ__FnCalls!F89","v":"Nov 2016"},{"$f":"ZZZ__FnCalls!F90","v":"Dec 2016"},{"$f":"ZZZ__FnCalls!H79","v":"2016"},{"$f":"ZZZ__FnCalls!F91","v":"Jan 2017"},{"$f":"ZZZ__FnCalls!F92","v":"Feb 2017"},{"$f":"ZZZ__FnCalls!F93","v":"Mar 2017"},{"$f":"ZZZ__FnCalls!F94","v":"Apr 2017"},{"$f":"ZZZ__FnCalls!F95","v":"May 2017"},{"$f":"ZZZ__FnCalls!F96","v":"Jun 2017"},{"$f":"ZZZ__FnCalls!F97","v":"Jul 2017"},{"$f":"ZZZ__FnCalls!F98","v":"Aug 2017"},{"$f":"ZZZ__FnCalls!F99","v":"Sep 2017"},{"$f":"ZZZ__FnCalls!F100","v":"Oct 2017"},{"$f":"ZZZ__FnCalls!F101","v":"Nov 2017"},{"$f":"ZZZ__FnCalls!F102","v":"Dec 2017"},{"$f":"ZZZ__FnCalls!H91","v":"2017"},{"$f":"ZZZ__FnCalls!F103","v":"Jan 2018"},{"$f":"ZZZ__FnCalls!F104","v":"Feb 2018"},{"$f":"ZZZ__FnCalls!F105","v":"Mar 2018"},{"$f":"ZZZ__FnCalls!F106","v":"Apr 2018"},{"$f":"ZZZ__FnCalls!F107","v":"May 2018"},{"$f":"ZZZ__FnCalls!F108","v":"Jun 2018"},{"$f":"ZZZ__FnCalls!F109","v":"Jul 2018"},{"$f":"ZZZ__FnCalls!F110","v":"Aug 2018"},{"$f":"ZZZ__FnCalls!F111","v":"Sep 2018"},{"$f":"ZZZ__FnCalls!F112","v":"Oct 2018"},{"$f":"ZZZ__FnCalls!F113","v":"Nov 2018"},{"$f":"ZZZ__FnCalls!F114","v":"Dec 2018"},{"$f":"ZZZ__FnCalls!H103","v":"2018"},{"$f":"ZZZ__FnCalls!F115","v":"Jan 2019"},{"$f":"ZZZ__FnCalls!F116","v":"Feb 2019"},{"$f":"ZZZ__FnCalls!F117","v":"Mar 2019"},{"$f":"ZZZ__FnCalls!F118","v":"Apr 2019"},{"$f":"ZZZ__FnCalls!F119","v":"May 2019"},{"$f":"ZZZ__FnCalls!F120","v":"Jun 2019"},{"$f":"ZZZ__FnCalls!F121","v":"Jul 2019"},{"$f":"ZZZ__FnCalls!F122","v":"Aug 2019"},{"$f":"ZZZ__FnCalls!F123","v":"Sep 2019"},{"$f":"ZZZ__FnCalls!F124","v":"Oct 2019"},{"$f":"ZZZ__FnCalls!F125","v":"Nov 2019"},{"$f":"ZZZ__FnCalls!F126","v":"Dec 2019"},{"$f":"ZZZ__FnCalls!H115","v":"2019"},{"$f":"ZZZ__FnCalls!F127","v":"Jan 2020"},{"$f":"ZZZ__FnCalls!F128","v":"Feb 2020"},{"$f":"ZZZ__FnCalls!F129","v":"Mar 2020"},{"$f":"ZZZ__FnCalls!F130","v":"Apr 2020"},{"$f":"ZZZ__FnCalls!F131","v":"May 2020"},{"$f":"ZZZ__FnCalls!F132","v":"Jun 2020"},{"$f":"ZZZ__FnCalls!F133","v":"Jul 2020"},{"$f":"ZZZ__FnCalls!F134","v":"Aug 2020"},{"$f":"ZZZ__FnCalls!F135","v":"Sep 2020"},{"$f":"ZZZ__FnCalls!F136","v":"Oct 2020"},{"$f":"ZZZ__FnCalls!F137","v":"Nov 2020"},{"$f":"ZZZ__FnCalls!F138","v":"Dec 2020"},{"$f":"ZZZ__FnCalls!H127","v":"2020"}]
[null,{"$f":"ZZZ__FnCalls!A7","v":"2010-01-01"},{"$f":"ZZZ__FnCalls!A8","v":"2010-02-01"},{"$f":"ZZZ__FnCalls!A9","v":"2010-03-01"},{"$f":"ZZZ__FnCalls!A10","v":"2010-04-01"},{"$f":"ZZZ__FnCalls!A11","v":"2010-05-01"},{"$f":"ZZZ__FnCalls!A12","v":"2010-06-01"},{"$f":"ZZZ__FnCalls!A13","v":"2010-07-01"},{"$f":"ZZZ__FnCalls!A14","v":"2010-08-01"},{"$f":"ZZZ__FnCalls!A15","v":"2010-09-01"},{"$f":"ZZZ__FnCalls!A16","v":"2010-10-01"},{"$f":"ZZZ__FnCalls!A17","v":"2010-11-01"},{"$f":"ZZZ__FnCalls!A18","v":"2010-12-01"},{"$f":"ZZZ__FnCalls!A7","v":"2010-01-01"},{"$f":"ZZZ__FnCalls!A19","v":"2011-01-01"},{"$f":"ZZZ__FnCalls!A20","v":"2011-02-01"},{"$f":"ZZZ__FnCalls!A21","v":"2011-03-01"},{"$f":"ZZZ__FnCalls!A22","v":"2011-04-01"},{"$f":"ZZZ__FnCalls!A23","v":"2011-05-01"},{"$f":"ZZZ__FnCalls!A24","v":"2011-06-01"},{"$f":"ZZZ__FnCalls!A25","v":"2011-07-01"},{"$f":"ZZZ__FnCalls!A26","v":"2011-08-01"},{"$f":"ZZZ__FnCalls!A27","v":"2011-09-01"},{"$f":"ZZZ__FnCalls!A28","v":"2011-10-01"},{"$f":"ZZZ__FnCalls!A29","v":"2011-11-01"},{"$f":"ZZZ__FnCalls!A30","v":"2011-12-01"},{"$f":"ZZZ__FnCalls!A19","v":"2011-01-01"},{"$f":"ZZZ__FnCalls!A31","v":"2012-01-01"},{"$f":"ZZZ__FnCalls!A32","v":"2012-02-01"},{"$f":"ZZZ__FnCalls!A33","v":"2012-03-01"},{"$f":"ZZZ__FnCalls!A34","v":"2012-04-01"},{"$f":"ZZZ__FnCalls!A35","v":"2012-05-01"},{"$f":"ZZZ__FnCalls!A36","v":"2012-06-01"},{"$f":"ZZZ__FnCalls!A37","v":"2012-07-01"},{"$f":"ZZZ__FnCalls!A38","v":"2012-08-01"},{"$f":"ZZZ__FnCalls!A39","v":"2012-09-01"},{"$f":"ZZZ__FnCalls!A40","v":"2012-10-01"},{"$f":"ZZZ__FnCalls!A41","v":"2012-11-01"},{"$f":"ZZZ__FnCalls!A42","v":"2012-12-01"},{"$f":"ZZZ__FnCalls!A31","v":"2012-01-01"},{"$f":"ZZZ__FnCalls!A43","v":"2013-01-01"},{"$f":"ZZZ__FnCalls!A44","v":"2013-02-01"},{"$f":"ZZZ__FnCalls!A45","v":"2013-03-01"},{"$f":"ZZZ__FnCalls!A46","v":"2013-04-01"},{"$f":"ZZZ__FnCalls!A47","v":"2013-05-01"},{"$f":"ZZZ__FnCalls!A48","v":"2013-06-01"},{"$f":"ZZZ__FnCalls!A49","v":"2013-07-01"},{"$f":"ZZZ__FnCalls!A50","v":"2013-08-01"},{"$f":"ZZZ__FnCalls!A51","v":"2013-09-01"},{"$f":"ZZZ__FnCalls!A52","v":"2013-10-01"},{"$f":"ZZZ__FnCalls!A53","v":"2013-11-01"},{"$f":"ZZZ__FnCalls!A54","v":"2013-12-01"},{"$f":"ZZZ__FnCalls!A43","v":"2013-01-01"},{"$f":"ZZZ__FnCalls!A55","v":"2014-01-01"},{"$f":"ZZZ__FnCalls!A56","v":"2014-02-01"},{"$f":"ZZZ__FnCalls!A57","v":"2014-03-01"},{"$f":"ZZZ__FnCalls!A58","v":"2014-04-01"},{"$f":"ZZZ__FnCalls!A59","v":"2014-05-01"},{"$f":"ZZZ__FnCalls!A60","v":"2014-06-01"},{"$f":"ZZZ__FnCalls!A61","v":"2014-07-01"},{"$f":"ZZZ__FnCalls!A62","v":"2014-08-01"},{"$f":"ZZZ__FnCalls!A63","v":"2014-09-01"},{"$f":"ZZZ__FnCalls!A64","v":"2014-10-01"},{"$f":"ZZZ__FnCalls!A65","v":"2014-11-01"},{"$f":"ZZZ__FnCalls!A66","v":"2014-12-01"},{"$f":"ZZZ__FnCalls!A55","v":"2014-01-01"},{"$f":"ZZZ__FnCalls!A67","v":"2015-01-01"},{"$f":"ZZZ__FnCalls!A68","v":"2015-02-01"},{"$f":"ZZZ__FnCalls!A69","v":"2015-03-01"},{"$f":"ZZZ__FnCalls!A70","v":"2015-04-01"},{"$f":"ZZZ__FnCalls!A71","v":"2015-05-01"},{"$f":"ZZZ__FnCalls!A72","v":"2015-06-01"},{"$f":"ZZZ__FnCalls!A73","v":"2015-07-01"},{"$f":"ZZZ__FnCalls!A74","v":"2015-08-01"},{"$f":"ZZZ__FnCalls!A75","v":"2015-09-01"},{"$f":"ZZZ__FnCalls!A76","v":"2015-10-01"},{"$f":"ZZZ__FnCalls!A77","v":"2015-11-01"},{"$f":"ZZZ__FnCalls!A78","v":"2015-12-01"},{"$f":"ZZZ__FnCalls!A67","v":"2015-01-01"},{"$f":"ZZZ__FnCalls!A79","v":"2016-01-01"},{"$f":"ZZZ__FnCalls!A80","v":"2016-02-01"},{"$f":"ZZZ__FnCalls!A81","v":"2016-03-01"},{"$f":"ZZZ__FnCalls!A82","v":"2016-04-01"},{"$f":"ZZZ__FnCalls!A83","v":"2016-05-01"},{"$f":"ZZZ__FnCalls!A84","v":"2016-06-01"},{"$f":"ZZZ__FnCalls!A85","v":"2016-07-01"},{"$f":"ZZZ__FnCalls!A86","v":"2016-08-01"},{"$f":"ZZZ__FnCalls!A87","v":"2016-09-01"},{"$f":"ZZZ__FnCalls!A88","v":"2016-10-01"},{"$f":"ZZZ__FnCalls!A89","v":"2016-11-01"},{"$f":"ZZZ__FnCalls!A90","v":"2016-12-01"},{"$f":"ZZZ__FnCalls!A79","v":"2016-01-01"},{"$f":"ZZZ__FnCalls!A91","v":"2017-01-01"},{"$f":"ZZZ__FnCalls!A92","v":"2017-02-01"},{"$f":"ZZZ__FnCalls!A93","v":"2017-03-01"},{"$f":"ZZZ__FnCalls!A94","v":"2017-04-01"},{"$f":"ZZZ__FnCalls!A95","v":"2017-05-01"},{"$f":"ZZZ__FnCalls!A96","v":"2017-06-01"},{"$f":"ZZZ__FnCalls!A97","v":"2017-07-01"},{"$f":"ZZZ__FnCalls!A98","v":"2017-08-01"},{"$f":"ZZZ__FnCalls!A99","v":"2017-09-01"},{"$f":"ZZZ__FnCalls!A100","v":"2017-10-01"},{"$f":"ZZZ__FnCalls!A101","v":"2017-11-01"},{"$f":"ZZZ__FnCalls!A102","v":"2017-12-01"},{"$f":"ZZZ__FnCalls!A91","v":"2017-01-01"},{"$f":"ZZZ__FnCalls!A103","v":"2018-01-01"},{"$f":"ZZZ__FnCalls!A104","v":"2018-02-01"},{"$f":"ZZZ__FnCalls!A105","v":"2018-03-01"},{"$f":"ZZZ__FnCalls!A106","v":"2018-04-01"},{"$f":"ZZZ__FnCalls!A107","v":"2018-05-01"},{"$f":"ZZZ__FnCalls!A108","v":"2018-06-01"},{"$f":"ZZZ__FnCalls!A109","v":"2018-07-01"},{"$f":"ZZZ__FnCalls!A110","v":"2018-08-01"},{"$f":"ZZZ__FnCalls!A111","v":"2018-09-01"},{"$f":"ZZZ__FnCalls!A112","v":"2018-10-01"},{"$f":"ZZZ__FnCalls!A113","v":"2018-11-01"},{"$f":"ZZZ__FnCalls!A114","v":"2018-12-01"},{"$f":"ZZZ__FnCalls!A103","v":"2018-01-01"},{"$f":"ZZZ__FnCalls!A115","v":"2019-01-01"},{"$f":"ZZZ__FnCalls!A116","v":"2019-02-01"},{"$f":"ZZZ__FnCalls!A117","v":"2019-03-01"},{"$f":"ZZZ__FnCalls!A118","v":"2019-04-01"},{"$f":"ZZZ__FnCalls!A119","v":"2019-05-01"},{"$f":"ZZZ__FnCalls!A120","v":"2019-06-01"},{"$f":"ZZZ__FnCalls!A121","v":"2019-07-01"},{"$f":"ZZZ__FnCalls!A122","v":"2019-08-01"},{"$f":"ZZZ__FnCalls!A123","v":"2019-09-01"},{"$f":"ZZZ__FnCalls!A124","v":"2019-10-01"},{"$f":"ZZZ__FnCalls!A125","v":"2019-11-01"},{"$f":"ZZZ__FnCalls!A126","v":"2019-12-01"},{"$f":"ZZZ__FnCalls!A115","v":"2019-01-01"},{"$f":"ZZZ__FnCalls!A127","v":"2020-01-01"},{"$f":"ZZZ__FnCalls!A128","v":"2020-02-01"},{"$f":"ZZZ__FnCalls!A129","v":"2020-03-01"},{"$f":"ZZZ__FnCalls!A130","v":"2020-04-01"},{"$f":"ZZZ__FnCalls!A131","v":"2020-05-01"},{"$f":"ZZZ__FnCalls!A132","v":"2020-06-01"},{"$f":"ZZZ__FnCalls!A133","v":"2020-07-01"},{"$f":"ZZZ__FnCalls!A134","v":"2020-08-01"},{"$f":"ZZZ__FnCalls!A135","v":"2020-09-01"},{"$f":"ZZZ__FnCalls!A136","v":"2020-10-01"},{"$f":"ZZZ__FnCalls!A137","v":"2020-11-01"},{"$f":"ZZZ__FnCalls!A138","v":"2020-12-01"},{"$f":"ZZZ__FnCalls!A127","v":"2020-01-01"}]
[{"$f":"\"Demand_Aggregate_stdev_2\"","v":"Demand_Aggregate_stdev_2"}]
[null,{"$f":"ZZZ__FnCalls!F7","v":"Jan 2010"},{"$f":"ZZZ__FnCalls!F8","v":"Feb 2010"},{"$f":"ZZZ__FnCalls!F9","v":"Mar 2010"},{"$f":"ZZZ__FnCalls!F10","v":"Apr 2010"},{"$f":"ZZZ__FnCalls!F11","v":"May 2010"},{"$f":"ZZZ__FnCalls!F12","v":"Jun 2010"},{"$f":"ZZZ__FnCalls!F13","v":"Jul 2010"},{"$f":"ZZZ__FnCalls!F14","v":"Aug 2010"},{"$f":"ZZZ__FnCalls!F15","v":"Sep 2010"},{"$f":"ZZZ__FnCalls!F16","v":"Oct 2010"},{"$f":"ZZZ__FnCalls!F17","v":"Nov 2010"},{"$f":"ZZZ__FnCalls!F18","v":"Dec 2010"},{"$f":"ZZZ__FnCalls!H7","v":"2010"},{"$f":"ZZZ__FnCalls!F19","v":"Jan 2011"},{"$f":"ZZZ__FnCalls!F20","v":"Feb 2011"},{"$f":"ZZZ__FnCalls!F21","v":"Mar 2011"},{"$f":"ZZZ__FnCalls!F22","v":"Apr 2011"},{"$f":"ZZZ__FnCalls!F23","v":"May 2011"},{"$f":"ZZZ__FnCalls!F24","v":"Jun 2011"},{"$f":"ZZZ__FnCalls!F25","v":"Jul 2011"},{"$f":"ZZZ__FnCalls!F26","v":"Aug 2011"},{"$f":"ZZZ__FnCalls!F27","v":"Sep 2011"},{"$f":"ZZZ__FnCalls!F28","v":"Oct 2011"},{"$f":"ZZZ__FnCalls!F29","v":"Nov 2011"},{"$f":"ZZZ__FnCalls!F30","v":"Dec 2011"},{"$f":"ZZZ__FnCalls!H19","v":"2011"},{"$f":"ZZZ__FnCalls!F31","v":"Jan 2012"},{"$f":"ZZZ__FnCalls!F32","v":"Feb 2012"},{"$f":"ZZZ__FnCalls!F33","v":"Mar 2012"},{"$f":"ZZZ__FnCalls!F34","v":"Apr 2012"},{"$f":"ZZZ__FnCalls!F35","v":"May 2012"},{"$f":"ZZZ__FnCalls!F36","v":"Jun 2012"},{"$f":"ZZZ__FnCalls!F37","v":"Jul 2012"},{"$f":"ZZZ__FnCalls!F38","v":"Aug 2012"},{"$f":"ZZZ__FnCalls!F39","v":"Sep 2012"},{"$f":"ZZZ__FnCalls!F40","v":"Oct 2012"},{"$f":"ZZZ__FnCalls!F41","v":"Nov 2012"},{"$f":"ZZZ__FnCalls!F42","v":"Dec 2012"},{"$f":"ZZZ__FnCalls!H31","v":"2012"},{"$f":"ZZZ__FnCalls!F43","v":"Jan 2013"},{"$f":"ZZZ__FnCalls!F44","v":"Feb 2013"},{"$f":"ZZZ__FnCalls!F45","v":"Mar 2013"},{"$f":"ZZZ__FnCalls!F46","v":"Apr 2013"},{"$f":"ZZZ__FnCalls!F47","v":"May 2013"},{"$f":"ZZZ__FnCalls!F48","v":"Jun 2013"},{"$f":"ZZZ__FnCalls!F49","v":"Jul 2013"},{"$f":"ZZZ__FnCalls!F50","v":"Aug 2013"},{"$f":"ZZZ__FnCalls!F51","v":"Sep 2013"},{"$f":"ZZZ__FnCalls!F52","v":"Oct 2013"},{"$f":"ZZZ__FnCalls!F53","v":"Nov 2013"},{"$f":"ZZZ__FnCalls!F54","v":"Dec 2013"},{"$f":"ZZZ__FnCalls!H43","v":"2013"},{"$f":"ZZZ__FnCalls!F55","v":"Jan 2014"},{"$f":"ZZZ__FnCalls!F56","v":"Feb 2014"},{"$f":"ZZZ__FnCalls!F57","v":"Mar 2014"},{"$f":"ZZZ__FnCalls!F58","v":"Apr 2014"},{"$f":"ZZZ__FnCalls!F59","v":"May 2014"},{"$f":"ZZZ__FnCalls!F60","v":"Jun 2014"},{"$f":"ZZZ__FnCalls!F61","v":"Jul 2014"},{"$f":"ZZZ__FnCalls!F62","v":"Aug 2014"},{"$f":"ZZZ__FnCalls!F63","v":"Sep 2014"},{"$f":"ZZZ__FnCalls!F64","v":"Oct 2014"},{"$f":"ZZZ__FnCalls!F65","v":"Nov 2014"},{"$f":"ZZZ__FnCalls!F66","v":"Dec 2014"},{"$f":"ZZZ__FnCalls!H55","v":"2014"},{"$f":"ZZZ__FnCalls!F67","v":"Jan 2015"},{"$f":"ZZZ__FnCalls!F68","v":"Feb 2015"},{"$f":"ZZZ__FnCalls!F69","v":"Mar 2015"},{"$f":"ZZZ__FnCalls!F70","v":"Apr 2015"},{"$f":"ZZZ__FnCalls!F71","v":"May 2015"},{"$f":"ZZZ__FnCalls!F72","v":"Jun 2015"},{"$f":"ZZZ__FnCalls!F73","v":"Jul 2015"},{"$f":"ZZZ__FnCalls!F74","v":"Aug 2015"},{"$f":"ZZZ__FnCalls!F75","v":"Sep 2015"},{"$f":"ZZZ__FnCalls!F76","v":"Oct 2015"},{"$f":"ZZZ__FnCalls!F77","v":"Nov 2015"},{"$f":"ZZZ__FnCalls!F78","v":"Dec 2015"},{"$f":"ZZZ__FnCalls!H67","v":"2015"},{"$f":"ZZZ__FnCalls!F79","v":"Jan 2016"},{"$f":"ZZZ__FnCalls!F80","v":"Feb 2016"},{"$f":"ZZZ__FnCalls!F81","v":"Mar 2016"},{"$f":"ZZZ__FnCalls!F82","v":"Apr 2016"},{"$f":"ZZZ__FnCalls!F83","v":"May 2016"},{"$f":"ZZZ__FnCalls!F84","v":"Jun 2016"},{"$f":"ZZZ__FnCalls!F85","v":"Jul 2016"},{"$f":"ZZZ__FnCalls!F86","v":"Aug 2016"},{"$f":"ZZZ__FnCalls!F87","v":"Sep 2016"},{"$f":"ZZZ__FnCalls!F88","v":"Oct 2016"},{"$f":"ZZZ__FnCalls!F89","v":"Nov 2016"},{"$f":"ZZZ__FnCalls!F90","v":"Dec 2016"},{"$f":"ZZZ__FnCalls!H79","v":"2016"},{"$f":"ZZZ__FnCalls!F91","v":"Jan 2017"},{"$f":"ZZZ__FnCalls!F92","v":"Feb 2017"},{"$f":"ZZZ__FnCalls!F93","v":"Mar 2017"},{"$f":"ZZZ__FnCalls!F94","v":"Apr 2017"},{"$f":"ZZZ__FnCalls!F95","v":"May 2017"},{"$f":"ZZZ__FnCalls!F96","v":"Jun 2017"},{"$f":"ZZZ__FnCalls!F97","v":"Jul 2017"},{"$f":"ZZZ__FnCalls!F98","v":"Aug 2017"},{"$f":"ZZZ__FnCalls!F99","v":"Sep 2017"},{"$f":"ZZZ__FnCalls!F100","v":"Oct 2017"},{"$f":"ZZZ__FnCalls!F101","v":"Nov 2017"},{"$f":"ZZZ__FnCalls!F102","v":"Dec 2017"},{"$f":"ZZZ__FnCalls!H91","v":"2017"},{"$f":"ZZZ__FnCalls!F103","v":"Jan 2018"},{"$f":"ZZZ__FnCalls!F104","v":"Feb 2018"},{"$f":"ZZZ__FnCalls!F105","v":"Mar 2018"},{"$f":"ZZZ__FnCalls!F106","v":"Apr 2018"},{"$f":"ZZZ__FnCalls!F107","v":"May 2018"},{"$f":"ZZZ__FnCalls!F108","v":"Jun 2018"},{"$f":"ZZZ__FnCalls!F109","v":"Jul 2018"},{"$f":"ZZZ__FnCalls!F110","v":"Aug 2018"},{"$f":"ZZZ__FnCalls!F111","v":"Sep 2018"},{"$f":"ZZZ__FnCalls!F112","v":"Oct 2018"},{"$f":"ZZZ__FnCalls!F113","v":"Nov 2018"},{"$f":"ZZZ__FnCalls!F114","v":"Dec 2018"},{"$f":"ZZZ__FnCalls!H103","v":"2018"},{"$f":"ZZZ__FnCalls!F115","v":"Jan 2019"},{"$f":"ZZZ__FnCalls!F116","v":"Feb 2019"},{"$f":"ZZZ__FnCalls!F117","v":"Mar 2019"},{"$f":"ZZZ__FnCalls!F118","v":"Apr 2019"},{"$f":"ZZZ__FnCalls!F119","v":"May 2019"},{"$f":"ZZZ__FnCalls!F120","v":"Jun 2019"},{"$f":"ZZZ__FnCalls!F121","v":"Jul 2019"},{"$f":"ZZZ__FnCalls!F122","v":"Aug 2019"},{"$f":"ZZZ__FnCalls!F123","v":"Sep 2019"},{"$f":"ZZZ__FnCalls!F124","v":"Oct 2019"},{"$f":"ZZZ__FnCalls!F125","v":"Nov 2019"},{"$f":"ZZZ__FnCalls!F126","v":"Dec 2019"},{"$f":"ZZZ__FnCalls!H115","v":"2019"},{"$f":"ZZZ__FnCalls!F127","v":"Jan 2020"},{"$f":"ZZZ__FnCalls!F128","v":"Feb 2020"},{"$f":"ZZZ__FnCalls!F129","v":"Mar 2020"},{"$f":"ZZZ__FnCalls!F130","v":"Apr 2020"},{"$f":"ZZZ__FnCalls!F131","v":"May 2020"},{"$f":"ZZZ__FnCalls!F132","v":"Jun 2020"},{"$f":"ZZZ__FnCalls!F133","v":"Jul 2020"},{"$f":"ZZZ__FnCalls!F134","v":"Aug 2020"},{"$f":"ZZZ__FnCalls!F135","v":"Sep 2020"},{"$f":"ZZZ__FnCalls!F136","v":"Oct 2020"},{"$f":"ZZZ__FnCalls!F137","v":"Nov 2020"},{"$f":"ZZZ__FnCalls!F138","v":"Dec 2020"},{"$f":"ZZZ__FnCalls!H127","v":"2020"}]
[null,{"$f":"ZZZ__FnCalls!F7","v":"Jan 2010"},{"$f":"ZZZ__FnCalls!F8","v":"Feb 2010"},{"$f":"ZZZ__FnCalls!F9","v":"Mar 2010"},{"$f":"ZZZ__FnCalls!F10","v":"Apr 2010"},{"$f":"ZZZ__FnCalls!F11","v":"May 2010"},{"$f":"ZZZ__FnCalls!F12","v":"Jun 2010"},{"$f":"ZZZ__FnCalls!F13","v":"Jul 2010"},{"$f":"ZZZ__FnCalls!F14","v":"Aug 2010"},{"$f":"ZZZ__FnCalls!F15","v":"Sep 2010"},{"$f":"ZZZ__FnCalls!F16","v":"Oct 2010"},{"$f":"ZZZ__FnCalls!F17","v":"Nov 2010"},{"$f":"ZZZ__FnCalls!F18","v":"Dec 2010"},{"$f":"ZZZ__FnCalls!F7","v":"Jan 2010"},{"$f":"ZZZ__FnCalls!F19","v":"Jan 2011"},{"$f":"ZZZ__FnCalls!F20","v":"Feb 2011"},{"$f":"ZZZ__FnCalls!F21","v":"Mar 2011"},{"$f":"ZZZ__FnCalls!F22","v":"Apr 2011"},{"$f":"ZZZ__FnCalls!F23","v":"May 2011"},{"$f":"ZZZ__FnCalls!F24","v":"Jun 2011"},{"$f":"ZZZ__FnCalls!F25","v":"Jul 2011"},{"$f":"ZZZ__FnCalls!F26","v":"Aug 2011"},{"$f":"ZZZ__FnCalls!F27","v":"Sep 2011"},{"$f":"ZZZ__FnCalls!F28","v":"Oct 2011"},{"$f":"ZZZ__FnCalls!F29","v":"Nov 2011"},{"$f":"ZZZ__FnCalls!F30","v":"Dec 2011"},{"$f":"ZZZ__FnCalls!F19","v":"Jan 2011"},{"$f":"ZZZ__FnCalls!F31","v":"Jan 2012"},{"$f":"ZZZ__FnCalls!F32","v":"Feb 2012"},{"$f":"ZZZ__FnCalls!F33","v":"Mar 2012"},{"$f":"ZZZ__FnCalls!F34","v":"Apr 2012"},{"$f":"ZZZ__FnCalls!F35","v":"May 2012"},{"$f":"ZZZ__FnCalls!F36","v":"Jun 2012"},{"$f":"ZZZ__FnCalls!F37","v":"Jul 2012"},{"$f":"ZZZ__FnCalls!F38","v":"Aug 2012"},{"$f":"ZZZ__FnCalls!F39","v":"Sep 2012"},{"$f":"ZZZ__FnCalls!F40","v":"Oct 2012"},{"$f":"ZZZ__FnCalls!F41","v":"Nov 2012"},{"$f":"ZZZ__FnCalls!F42","v":"Dec 2012"},{"$f":"ZZZ__FnCalls!F31","v":"Jan 2012"},{"$f":"ZZZ__FnCalls!F43","v":"Jan 2013"},{"$f":"ZZZ__FnCalls!F44","v":"Feb 2013"},{"$f":"ZZZ__FnCalls!F45","v":"Mar 2013"},{"$f":"ZZZ__FnCalls!F46","v":"Apr 2013"},{"$f":"ZZZ__FnCalls!F47","v":"May 2013"},{"$f":"ZZZ__FnCalls!F48","v":"Jun 2013"},{"$f":"ZZZ__FnCalls!F49","v":"Jul 2013"},{"$f":"ZZZ__FnCalls!F50","v":"Aug 2013"},{"$f":"ZZZ__FnCalls!F51","v":"Sep 2013"},{"$f":"ZZZ__FnCalls!F52","v":"Oct 2013"},{"$f":"ZZZ__FnCalls!F53","v":"Nov 2013"},{"$f":"ZZZ__FnCalls!F54","v":"Dec 2013"},{"$f":"ZZZ__FnCalls!F43","v":"Jan 2013"},{"$f":"ZZZ__FnCalls!F55","v":"Jan 2014"},{"$f":"ZZZ__FnCalls!F56","v":"Feb 2014"},{"$f":"ZZZ__FnCalls!F57","v":"Mar 2014"},{"$f":"ZZZ__FnCalls!F58","v":"Apr 2014"},{"$f":"ZZZ__FnCalls!F59","v":"May 2014"},{"$f":"ZZZ__FnCalls!F60","v":"Jun 2014"},{"$f":"ZZZ__FnCalls!F61","v":"Jul 2014"},{"$f":"ZZZ__FnCalls!F62","v":"Aug 2014"},{"$f":"ZZZ__FnCalls!F63","v":"Sep 2014"},{"$f":"ZZZ__FnCalls!F64","v":"Oct 2014"},{"$f":"ZZZ__FnCalls!F65","v":"Nov 2014"},{"$f":"ZZZ__FnCalls!F66","v":"Dec 2014"},{"$f":"ZZZ__FnCalls!F55","v":"Jan 2014"},{"$f":"ZZZ__FnCalls!F67","v":"Jan 2015"},{"$f":"ZZZ__FnCalls!F68","v":"Feb 2015"},{"$f":"ZZZ__FnCalls!F69","v":"Mar 2015"},{"$f":"ZZZ__FnCalls!F70","v":"Apr 2015"},{"$f":"ZZZ__FnCalls!F71","v":"May 2015"},{"$f":"ZZZ__FnCalls!F72","v":"Jun 2015"},{"$f":"ZZZ__FnCalls!F73","v":"Jul 2015"},{"$f":"ZZZ__FnCalls!F74","v":"Aug 2015"},{"$f":"ZZZ__FnCalls!F75","v":"Sep 2015"},{"$f":"ZZZ__FnCalls!F76","v":"Oct 2015"},{"$f":"ZZZ__FnCalls!F77","v":"Nov 2015"},{"$f":"ZZZ__FnCalls!F78","v":"Dec 2015"},{"$f":"ZZZ__FnCalls!F67","v":"Jan 2015"},{"$f":"ZZZ__FnCalls!F79","v":"Jan 2016"},{"$f":"ZZZ__FnCalls!F80","v":"Feb 2016"},{"$f":"ZZZ__FnCalls!F81","v":"Mar 2016"},{"$f":"ZZZ__FnCalls!F82","v":"Apr 2016"},{"$f":"ZZZ__FnCalls!F83","v":"May 2016"},{"$f":"ZZZ__FnCalls!F84","v":"Jun 2016"},{"$f":"ZZZ__FnCalls!F85","v":"Jul 2016"},{"$f":"ZZZ__FnCalls!F86","v":"Aug 2016"},{"$f":"ZZZ__FnCalls!F87","v":"Sep 2016"},{"$f":"ZZZ__FnCalls!F88","v":"Oct 2016"},{"$f":"ZZZ__FnCalls!F89","v":"Nov 2016"},{"$f":"ZZZ__FnCalls!F90","v":"Dec 2016"},{"$f":"ZZZ__FnCalls!F79","v":"Jan 2016"},{"$f":"ZZZ__FnCalls!F91","v":"Jan 2017"},{"$f":"ZZZ__FnCalls!F92","v":"Feb 2017"},{"$f":"ZZZ__FnCalls!F93","v":"Mar 2017"},{"$f":"ZZZ__FnCalls!F94","v":"Apr 2017"},{"$f":"ZZZ__FnCalls!F95","v":"May 2017"},{"$f":"ZZZ__FnCalls!F96","v":"Jun 2017"},{"$f":"ZZZ__FnCalls!F97","v":"Jul 2017"},{"$f":"ZZZ__FnCalls!F98","v":"Aug 2017"},{"$f":"ZZZ__FnCalls!F99","v":"Sep 2017"},{"$f":"ZZZ__FnCalls!F100","v":"Oct 2017"},{"$f":"ZZZ__FnCalls!F101","v":"Nov 2017"},{"$f":"ZZZ__FnCalls!F102","v":"Dec 2017"},{"$f":"ZZZ__FnCalls!F91","v":"Jan 2017"},{"$f":"ZZZ__FnCalls!F103","v":"Jan 2018"},{"$f":"ZZZ__FnCalls!F104","v":"Feb 2018"},{"$f":"ZZZ__FnCalls!F105","v":"Mar 2018"},{"$f":"ZZZ__FnCalls!F106","v":"Apr 2018"},{"$f":"ZZZ__FnCalls!F107","v":"May 2018"},{"$f":"ZZZ__FnCalls!F108","v":"Jun 2018"},{"$f":"ZZZ__FnCalls!F109","v":"Jul 2018"},{"$f":"ZZZ__FnCalls!F110","v":"Aug 2018"},{"$f":"ZZZ__FnCalls!F111","v":"Sep 2018"},{"$f":"ZZZ__FnCalls!F112","v":"Oct 2018"},{"$f":"ZZZ__FnCalls!F113","v":"Nov 2018"},{"$f":"ZZZ__FnCalls!F114","v":"Dec 2018"},{"$f":"ZZZ__FnCalls!F103","v":"Jan 2018"},{"$f":"ZZZ__FnCalls!F115","v":"Jan 2019"},{"$f":"ZZZ__FnCalls!F116","v":"Feb 2019"},{"$f":"ZZZ__FnCalls!F117","v":"Mar 2019"},{"$f":"ZZZ__FnCalls!F118","v":"Apr 2019"},{"$f":"ZZZ__FnCalls!F119","v":"May 2019"},{"$f":"ZZZ__FnCalls!F120","v":"Jun 2019"},{"$f":"ZZZ__FnCalls!F121","v":"Jul 2019"},{"$f":"ZZZ__FnCalls!F122","v":"Aug 2019"},{"$f":"ZZZ__FnCalls!F123","v":"Sep 2019"},{"$f":"ZZZ__FnCalls!F124","v":"Oct 2019"},{"$f":"ZZZ__FnCalls!F125","v":"Nov 2019"},{"$f":"ZZZ__FnCalls!F126","v":"Dec 2019"},{"$f":"ZZZ__FnCalls!F115","v":"Jan 2019"},{"$f":"ZZZ__FnCalls!F127","v":"Jan 2020"},{"$f":"ZZZ__FnCalls!F128","v":"Feb 2020"},{"$f":"ZZZ__FnCalls!F129","v":"Mar 2020"},{"$f":"ZZZ__FnCalls!F130","v":"Apr 2020"},{"$f":"ZZZ__FnCalls!F131","v":"May 2020"},{"$f":"ZZZ__FnCalls!F132","v":"Jun 2020"},{"$f":"ZZZ__FnCalls!F133","v":"Jul 2020"},{"$f":"ZZZ__FnCalls!F134","v":"Aug 2020"},{"$f":"ZZZ__FnCalls!F135","v":"Sep 2020"},{"$f":"ZZZ__FnCalls!F136","v":"Oct 2020"},{"$f":"ZZZ__FnCalls!F137","v":"Nov 2020"},{"$f":"ZZZ__FnCalls!F138","v":"Dec 2020"},{"$f":"ZZZ__FnCalls!F127","v":"Jan 2020"}]
[{"$f":"\"Demand_Expected_Short_mean_1\"","v":"Demand_Expected_Short_mean_1"}]
[null,{"$f":"ZZZ__FnCalls!F7","v":"Jan 2010"},{"$f":"ZZZ__FnCalls!F8","v":"Feb 2010"},{"$f":"ZZZ__FnCalls!F9","v":"Mar 2010"},{"$f":"ZZZ__FnCalls!F10","v":"Apr 2010"},{"$f":"ZZZ__FnCalls!F11","v":"May 2010"},{"$f":"ZZZ__FnCalls!F12","v":"Jun 2010"},{"$f":"ZZZ__FnCalls!F13","v":"Jul 2010"},{"$f":"ZZZ__FnCalls!F14","v":"Aug 2010"},{"$f":"ZZZ__FnCalls!F15","v":"Sep 2010"},{"$f":"ZZZ__FnCalls!F16","v":"Oct 2010"},{"$f":"ZZZ__FnCalls!F17","v":"Nov 2010"},{"$f":"ZZZ__FnCalls!F18","v":"Dec 2010"},{"$f":"ZZZ__FnCalls!H7","v":"2010"},{"$f":"ZZZ__FnCalls!F19","v":"Jan 2011"},{"$f":"ZZZ__FnCalls!F20","v":"Feb 2011"},{"$f":"ZZZ__FnCalls!F21","v":"Mar 2011"},{"$f":"ZZZ__FnCalls!F22","v":"Apr 2011"},{"$f":"ZZZ__FnCalls!F23","v":"May 2011"},{"$f":"ZZZ__FnCalls!F24","v":"Jun 2011"},{"$f":"ZZZ__FnCalls!F25","v":"Jul 2011"},{"$f":"ZZZ__FnCalls!F26","v":"Aug 2011"},{"$f":"ZZZ__FnCalls!F27","v":"Sep 2011"},{"$f":"ZZZ__FnCalls!F28","v":"Oct 2011"},{"$f":"ZZZ__FnCalls!F29","v":"Nov 2011"},{"$f":"ZZZ__FnCalls!F30","v":"Dec 2011"},{"$f":"ZZZ__FnCalls!H19","v":"2011"},{"$f":"ZZZ__FnCalls!F31","v":"Jan 2012"},{"$f":"ZZZ__FnCalls!F32","v":"Feb 2012"},{"$f":"ZZZ__FnCalls!F33","v":"Mar 2012"},{"$f":"ZZZ__FnCalls!F34","v":"Apr 2012"},{"$f":"ZZZ__FnCalls!F35","v":"May 2012"},{"$f":"ZZZ__FnCalls!F36","v":"Jun 2012"},{"$f":"ZZZ__FnCalls!F37","v":"Jul 2012"},{"$f":"ZZZ__FnCalls!F38","v":"Aug 2012"},{"$f":"ZZZ__FnCalls!F39","v":"Sep 2012"},{"$f":"ZZZ__FnCalls!F40","v":"Oct 2012"},{"$f":"ZZZ__FnCalls!F41","v":"Nov 2012"},{"$f":"ZZZ__FnCalls!F42","v":"Dec 2012"},{"$f":"ZZZ__FnCalls!H31","v":"2012"},{"$f":"ZZZ__FnCalls!F43","v":"Jan 2013"},{"$f":"ZZZ__FnCalls!F44","v":"Feb 2013"},{"$f":"ZZZ__FnCalls!F45","v":"Mar 2013"},{"$f":"ZZZ__FnCalls!F46","v":"Apr 2013"},{"$f":"ZZZ__FnCalls!F47","v":"May 2013"},{"$f":"ZZZ__FnCalls!F48","v":"Jun 2013"},{"$f":"ZZZ__FnCalls!F49","v":"Jul 2013"},{"$f":"ZZZ__FnCalls!F50","v":"Aug 2013"},{"$f":"ZZZ__FnCalls!F51","v":"Sep 2013"},{"$f":"ZZZ__FnCalls!F52","v":"Oct 2013"},{"$f":"ZZZ__FnCalls!F53","v":"Nov 2013"},{"$f":"ZZZ__FnCalls!F54","v":"Dec 2013"},{"$f":"ZZZ__FnCalls!H43","v":"2013"},{"$f":"ZZZ__FnCalls!F55","v":"Jan 2014"},{"$f":"ZZZ__FnCalls!F56","v":"Feb 2014"},{"$f":"ZZZ__FnCalls!F57","v":"Mar 2014"},{"$f":"ZZZ__FnCalls!F58","v":"Apr 2014"},{"$f":"ZZZ__FnCalls!F59","v":"May 2014"},{"$f":"ZZZ__FnCalls!F60","v":"Jun 2014"},{"$f":"ZZZ__FnCalls!F61","v":"Jul 2014"},{"$f":"ZZZ__FnCalls!F62","v":"Aug 2014"},{"$f":"ZZZ__FnCalls!F63","v":"Sep 2014"},{"$f":"ZZZ__FnCalls!F64","v":"Oct 2014"},{"$f":"ZZZ__FnCalls!F65","v":"Nov 2014"},{"$f":"ZZZ__FnCalls!F66","v":"Dec 2014"},{"$f":"ZZZ__FnCalls!H55","v":"2014"},{"$f":"ZZZ__FnCalls!F67","v":"Jan 2015"},{"$f":"ZZZ__FnCalls!F68","v":"Feb 2015"},{"$f":"ZZZ__FnCalls!F69","v":"Mar 2015"},{"$f":"ZZZ__FnCalls!F70","v":"Apr 2015"},{"$f":"ZZZ__FnCalls!F71","v":"May 2015"},{"$f":"ZZZ__FnCalls!F72","v":"Jun 2015"},{"$f":"ZZZ__FnCalls!F73","v":"Jul 2015"},{"$f":"ZZZ__FnCalls!F74","v":"Aug 2015"},{"$f":"ZZZ__FnCalls!F75","v":"Sep 2015"},{"$f":"ZZZ__FnCalls!F76","v":"Oct 2015"},{"$f":"ZZZ__FnCalls!F77","v":"Nov 2015"},{"$f":"ZZZ__FnCalls!F78","v":"Dec 2015"},{"$f":"ZZZ__FnCalls!H67","v":"2015"},{"$f":"ZZZ__FnCalls!F79","v":"Jan 2016"},{"$f":"ZZZ__FnCalls!F80","v":"Feb 2016"},{"$f":"ZZZ__FnCalls!F81","v":"Mar 2016"},{"$f":"ZZZ__FnCalls!F82","v":"Apr 2016"},{"$f":"ZZZ__FnCalls!F83","v":"May 2016"},{"$f":"ZZZ__FnCalls!F84","v":"Jun 2016"},{"$f":"ZZZ__FnCalls!F85","v":"Jul 2016"},{"$f":"ZZZ__FnCalls!F86","v":"Aug 2016"},{"$f":"ZZZ__FnCalls!F87","v":"Sep 2016"},{"$f":"ZZZ__FnCalls!F88","v":"Oct 2016"},{"$f":"ZZZ__FnCalls!F89","v":"Nov 2016"},{"$f":"ZZZ__FnCalls!F90","v":"Dec 2016"},{"$f":"ZZZ__FnCalls!H79","v":"2016"},{"$f":"ZZZ__FnCalls!F91","v":"Jan 2017"},{"$f":"ZZZ__FnCalls!F92","v":"Feb 2017"},{"$f":"ZZZ__FnCalls!F93","v":"Mar 2017"},{"$f":"ZZZ__FnCalls!F94","v":"Apr 2017"},{"$f":"ZZZ__FnCalls!F95","v":"May 2017"},{"$f":"ZZZ__FnCalls!F96","v":"Jun 2017"},{"$f":"ZZZ__FnCalls!F97","v":"Jul 2017"},{"$f":"ZZZ__FnCalls!F98","v":"Aug 2017"},{"$f":"ZZZ__FnCalls!F99","v":"Sep 2017"},{"$f":"ZZZ__FnCalls!F100","v":"Oct 2017"},{"$f":"ZZZ__FnCalls!F101","v":"Nov 2017"},{"$f":"ZZZ__FnCalls!F102","v":"Dec 2017"},{"$f":"ZZZ__FnCalls!H91","v":"2017"},{"$f":"ZZZ__FnCalls!F103","v":"Jan 2018"},{"$f":"ZZZ__FnCalls!F104","v":"Feb 2018"},{"$f":"ZZZ__FnCalls!F105","v":"Mar 2018"},{"$f":"ZZZ__FnCalls!F106","v":"Apr 2018"},{"$f":"ZZZ__FnCalls!F107","v":"May 2018"},{"$f":"ZZZ__FnCalls!F108","v":"Jun 2018"},{"$f":"ZZZ__FnCalls!F109","v":"Jul 2018"},{"$f":"ZZZ__FnCalls!F110","v":"Aug 2018"},{"$f":"ZZZ__FnCalls!F111","v":"Sep 2018"},{"$f":"ZZZ__FnCalls!F112","v":"Oct 2018"},{"$f":"ZZZ__FnCalls!F113","v":"Nov 2018"},{"$f":"ZZZ__FnCalls!F114","v":"Dec 2018"},{"$f":"ZZZ__FnCalls!H103","v":"2018"},{"$f":"ZZZ__FnCalls!F115","v":"Jan 2019"},{"$f":"ZZZ__FnCalls!F116","v":"Feb 2019"},{"$f":"ZZZ__FnCalls!F117","v":"Mar 2019"},{"$f":"ZZZ__FnCalls!F118","v":"Apr 2019"},{"$f":"ZZZ__FnCalls!F119","v":"May 2019"},{"$f":"ZZZ__FnCalls!F120","v":"Jun 2019"},{"$f":"ZZZ__FnCalls!F121","v":"Jul 2019"},{"$f":"ZZZ__FnCalls!F122","v":"Aug 2019"},{"$f":"ZZZ__FnCalls!F123","v":"Sep 2019"},{"$f":"ZZZ__FnCalls!F124","v":"Oct 2019"},{"$f":"ZZZ__FnCalls!F125","v":"Nov 2019"},{"$f":"ZZZ__FnCalls!F126","v":"Dec 2019"},{"$f":"ZZZ__FnCalls!H115","v":"2019"},{"$f":"ZZZ__FnCalls!F127","v":"Jan 2020"},{"$f":"ZZZ__FnCalls!F128","v":"Feb 2020"},{"$f":"ZZZ__FnCalls!F129","v":"Mar 2020"},{"$f":"ZZZ__FnCalls!F130","v":"Apr 2020"},{"$f":"ZZZ__FnCalls!F131","v":"May 2020"},{"$f":"ZZZ__FnCalls!F132","v":"Jun 2020"},{"$f":"ZZZ__FnCalls!F133","v":"Jul 2020"},{"$f":"ZZZ__FnCalls!F134","v":"Aug 2020"},{"$f":"ZZZ__FnCalls!F135","v":"Sep 2020"},{"$f":"ZZZ__FnCalls!F136","v":"Oct 2020"},{"$f":"ZZZ__FnCalls!F137","v":"Nov 2020"},{"$f":"ZZZ__FnCalls!F138","v":"Dec 2020"},{"$f":"ZZZ__FnCalls!H127","v":"2020"}]
[null,{"$f":"ZZZ__FnCalls!A7","v":"2010-01-01"},{"$f":"ZZZ__FnCalls!A8","v":"2010-02-01"},{"$f":"ZZZ__FnCalls!A9","v":"2010-03-01"},{"$f":"ZZZ__FnCalls!A10","v":"2010-04-01"},{"$f":"ZZZ__FnCalls!A11","v":"2010-05-01"},{"$f":"ZZZ__FnCalls!A12","v":"2010-06-01"},{"$f":"ZZZ__FnCalls!A13","v":"2010-07-01"},{"$f":"ZZZ__FnCalls!A14","v":"2010-08-01"},{"$f":"ZZZ__FnCalls!A15","v":"2010-09-01"},{"$f":"ZZZ__FnCalls!A16","v":"2010-10-01"},{"$f":"ZZZ__FnCalls!A17","v":"2010-11-01"},{"$f":"ZZZ__FnCalls!A18","v":"2010-12-01"},{"$f":"ZZZ__FnCalls!A7","v":"2010-01-01"},{"$f":"ZZZ__FnCalls!A19","v":"2011-01-01"},{"$f":"ZZZ__FnCalls!A20","v":"2011-02-01"},{"$f":"ZZZ__FnCalls!A21","v":"2011-03-01"},{"$f":"ZZZ__FnCalls!A22","v":"2011-04-01"},{"$f":"ZZZ__FnCalls!A23","v":"2011-05-01"},{"$f":"ZZZ__FnCalls!A24","v":"2011-06-01"},{"$f":"ZZZ__FnCalls!A25","v":"2011-07-01"},{"$f":"ZZZ__FnCalls!A26","v":"2011-08-01"},{"$f":"ZZZ__FnCalls!A27","v":"2011-09-01"},{"$f":"ZZZ__FnCalls!A28","v":"2011-10-01"},{"$f":"ZZZ__FnCalls!A29","v":"2011-11-01"},{"$f":"ZZZ__FnCalls!A30","v":"2011-12-01"},{"$f":"ZZZ__FnCalls!A19","v":"2011-01-01"},{"$f":"ZZZ__FnCalls!A31","v":"2012-01-01"},{"$f":"ZZZ__FnCalls!A32","v":"2012-02-01"},{"$f":"ZZZ__FnCalls!A33","v":"2012-03-01"},{"$f":"ZZZ__FnCalls!A34","v":"2012-04-01"},{"$f":"ZZZ__FnCalls!A35","v":"2012-05-01"},{"$f":"ZZZ__FnCalls!A36","v":"2012-06-01"},{"$f":"ZZZ__FnCalls!A37","v":"2012-07-01"},{"$f":"ZZZ__FnCalls!A38","v":"2012-08-01"},{"$f":"ZZZ__FnCalls!A39","v":"2012-09-01"},{"$f":"ZZZ__FnCalls!A40","v":"2012-10-01"},{"$f":"ZZZ__FnCalls!A41","v":"2012-11-01"},{"$f":"ZZZ__FnCalls!A42","v":"2012-12-01"},{"$f":"ZZZ__FnCalls!A31","v":"2012-01-01"},{"$f":"ZZZ__FnCalls!A43","v":"2013-01-01"},{"$f":"ZZZ__FnCalls!A44","v":"2013-02-01"},{"$f":"ZZZ__FnCalls!A45","v":"2013-03-01"},{"$f":"ZZZ__FnCalls!A46","v":"2013-04-01"},{"$f":"ZZZ__FnCalls!A47","v":"2013-05-01"},{"$f":"ZZZ__FnCalls!A48","v":"2013-06-01"},{"$f":"ZZZ__FnCalls!A49","v":"2013-07-01"},{"$f":"ZZZ__FnCalls!A50","v":"2013-08-01"},{"$f":"ZZZ__FnCalls!A51","v":"2013-09-01"},{"$f":"ZZZ__FnCalls!A52","v":"2013-10-01"},{"$f":"ZZZ__FnCalls!A53","v":"2013-11-01"},{"$f":"ZZZ__FnCalls!A54","v":"2013-12-01"},{"$f":"ZZZ__FnCalls!A43","v":"2013-01-01"},{"$f":"ZZZ__FnCalls!A55","v":"2014-01-01"},{"$f":"ZZZ__FnCalls!A56","v":"2014-02-01"},{"$f":"ZZZ__FnCalls!A57","v":"2014-03-01"},{"$f":"ZZZ__FnCalls!A58","v":"2014-04-01"},{"$f":"ZZZ__FnCalls!A59","v":"2014-05-01"},{"$f":"ZZZ__FnCalls!A60","v":"2014-06-01"},{"$f":"ZZZ__FnCalls!A61","v":"2014-07-01"},{"$f":"ZZZ__FnCalls!A62","v":"2014-08-01"},{"$f":"ZZZ__FnCalls!A63","v":"2014-09-01"},{"$f":"ZZZ__FnCalls!A64","v":"2014-10-01"},{"$f":"ZZZ__FnCalls!A65","v":"2014-11-01"},{"$f":"ZZZ__FnCalls!A66","v":"2014-12-01"},{"$f":"ZZZ__FnCalls!A55","v":"2014-01-01"},{"$f":"ZZZ__FnCalls!A67","v":"2015-01-01"},{"$f":"ZZZ__FnCalls!A68","v":"2015-02-01"},{"$f":"ZZZ__FnCalls!A69","v":"2015-03-01"},{"$f":"ZZZ__FnCalls!A70","v":"2015-04-01"},{"$f":"ZZZ__FnCalls!A71","v":"2015-05-01"},{"$f":"ZZZ__FnCalls!A72","v":"2015-06-01"},{"$f":"ZZZ__FnCalls!A73","v":"2015-07-01"},{"$f":"ZZZ__FnCalls!A74","v":"2015-08-01"},{"$f":"ZZZ__FnCalls!A75","v":"2015-09-01"},{"$f":"ZZZ__FnCalls!A76","v":"2015-10-01"},{"$f":"ZZZ__FnCalls!A77","v":"2015-11-01"},{"$f":"ZZZ__FnCalls!A78","v":"2015-12-01"},{"$f":"ZZZ__FnCalls!A67","v":"2015-01-01"},{"$f":"ZZZ__FnCalls!A79","v":"2016-01-01"},{"$f":"ZZZ__FnCalls!A80","v":"2016-02-01"},{"$f":"ZZZ__FnCalls!A81","v":"2016-03-01"},{"$f":"ZZZ__FnCalls!A82","v":"2016-04-01"},{"$f":"ZZZ__FnCalls!A83","v":"2016-05-01"},{"$f":"ZZZ__FnCalls!A84","v":"2016-06-01"},{"$f":"ZZZ__FnCalls!A85","v":"2016-07-01"},{"$f":"ZZZ__FnCalls!A86","v":"2016-08-01"},{"$f":"ZZZ__FnCalls!A87","v":"2016-09-01"},{"$f":"ZZZ__FnCalls!A88","v":"2016-10-01"},{"$f":"ZZZ__FnCalls!A89","v":"2016-11-01"},{"$f":"ZZZ__FnCalls!A90","v":"2016-12-01"},{"$f":"ZZZ__FnCalls!A79","v":"2016-01-01"},{"$f":"ZZZ__FnCalls!A91","v":"2017-01-01"},{"$f":"ZZZ__FnCalls!A92","v":"2017-02-01"},{"$f":"ZZZ__FnCalls!A93","v":"2017-03-01"},{"$f":"ZZZ__FnCalls!A94","v":"2017-04-01"},{"$f":"ZZZ__FnCalls!A95","v":"2017-05-01"},{"$f":"ZZZ__FnCalls!A96","v":"2017-06-01"},{"$f":"ZZZ__FnCalls!A97","v":"2017-07-01"},{"$f":"ZZZ__FnCalls!A98","v":"2017-08-01"},{"$f":"ZZZ__FnCalls!A99","v":"2017-09-01"},{"$f":"ZZZ__FnCalls!A100","v":"2017-10-01"},{"$f":"ZZZ__FnCalls!A101","v":"2017-11-01"},{"$f":"ZZZ__FnCalls!A102","v":"2017-12-01"},{"$f":"ZZZ__FnCalls!A91","v":"2017-01-01"},{"$f":"ZZZ__FnCalls!A103","v":"2018-01-01"},{"$f":"ZZZ__FnCalls!A104","v":"2018-02-01"},{"$f":"ZZZ__FnCalls!A105","v":"2018-03-01"},{"$f":"ZZZ__FnCalls!A106","v":"2018-04-01"},{"$f":"ZZZ__FnCalls!A107","v":"2018-05-01"},{"$f":"ZZZ__FnCalls!A108","v":"2018-06-01"},{"$f":"ZZZ__FnCalls!A109","v":"2018-07-01"},{"$f":"ZZZ__FnCalls!A110","v":"2018-08-01"},{"$f":"ZZZ__FnCalls!A111","v":"2018-09-01"},{"$f":"ZZZ__FnCalls!A112","v":"2018-10-01"},{"$f":"ZZZ__FnCalls!A113","v":"2018-11-01"},{"$f":"ZZZ__FnCalls!A114","v":"2018-12-01"},{"$f":"ZZZ__FnCalls!A103","v":"2018-01-01"},{"$f":"ZZZ__FnCalls!A115","v":"2019-01-01"},{"$f":"ZZZ__FnCalls!A116","v":"2019-02-01"},{"$f":"ZZZ__FnCalls!A117","v":"2019-03-01"},{"$f":"ZZZ__FnCalls!A118","v":"2019-04-01"},{"$f":"ZZZ__FnCalls!A119","v":"2019-05-01"},{"$f":"ZZZ__FnCalls!A120","v":"2019-06-01"},{"$f":"ZZZ__FnCalls!A121","v":"2019-07-01"},{"$f":"ZZZ__FnCalls!A122","v":"2019-08-01"},{"$f":"ZZZ__FnCalls!A123","v":"2019-09-01"},{"$f":"ZZZ__FnCalls!A124","v":"2019-10-01"},{"$f":"ZZZ__FnCalls!A125","v":"2019-11-01"},{"$f":"ZZZ__FnCalls!A126","v":"2019-12-01"},{"$f":"ZZZ__FnCalls!A115","v":"2019-01-01"},{"$f":"ZZZ__FnCalls!A127","v":"2020-01-01"},{"$f":"ZZZ__FnCalls!A128","v":"2020-02-01"},{"$f":"ZZZ__FnCalls!A129","v":"2020-03-01"},{"$f":"ZZZ__FnCalls!A130","v":"2020-04-01"},{"$f":"ZZZ__FnCalls!A131","v":"2020-05-01"},{"$f":"ZZZ__FnCalls!A132","v":"2020-06-01"},{"$f":"ZZZ__FnCalls!A133","v":"2020-07-01"},{"$f":"ZZZ__FnCalls!A134","v":"2020-08-01"},{"$f":"ZZZ__FnCalls!A135","v":"2020-09-01"},{"$f":"ZZZ__FnCalls!A136","v":"2020-10-01"},{"$f":"ZZZ__FnCalls!A137","v":"2020-11-01"},{"$f":"ZZZ__FnCalls!A138","v":"2020-12-01"},{"$f":"ZZZ__FnCalls!A127","v":"2020-01-01"}]
[{"$f":"\"Demand_Expected_Short_mean_2\"","v":"Demand_Expected_Short_mean_2"}]
[null,{"$f":"ZZZ__FnCalls!F7","v":"Jan 2010"},{"$f":"ZZZ__FnCalls!F8","v":"Feb 2010"},{"$f":"ZZZ__FnCalls!F9","v":"Mar 2010"},{"$f":"ZZZ__FnCalls!F10","v":"Apr 2010"},{"$f":"ZZZ__FnCalls!F11","v":"May 2010"},{"$f":"ZZZ__FnCalls!F12","v":"Jun 2010"},{"$f":"ZZZ__FnCalls!F13","v":"Jul 2010"},{"$f":"ZZZ__FnCalls!F14","v":"Aug 2010"},{"$f":"ZZZ__FnCalls!F15","v":"Sep 2010"},{"$f":"ZZZ__FnCalls!F16","v":"Oct 2010"},{"$f":"ZZZ__FnCalls!F17","v":"Nov 2010"},{"$f":"ZZZ__FnCalls!F18","v":"Dec 2010"},{"$f":"ZZZ__FnCalls!H7","v":"2010"},{"$f":"ZZZ__FnCalls!F19","v":"Jan 2011"},{"$f":"ZZZ__FnCalls!F20","v":"Feb 2011"},{"$f":"ZZZ__FnCalls!F21","v":"Mar 2011"},{"$f":"ZZZ__FnCalls!F22","v":"Apr 2011"},{"$f":"ZZZ__FnCalls!F23","v":"May 2011"},{"$f":"ZZZ__FnCalls!F24","v":"Jun 2011"},{"$f":"ZZZ__FnCalls!F25","v":"Jul 2011"},{"$f":"ZZZ__FnCalls!F26","v":"Aug 2011"},{"$f":"ZZZ__FnCalls!F27","v":"Sep 2011"},{"$f":"ZZZ__FnCalls!F28","v":"Oct 2011"},{"$f":"ZZZ__FnCalls!F29","v":"Nov 2011"},{"$f":"ZZZ__FnCalls!F30","v":"Dec 2011"},{"$f":"ZZZ__FnCalls!H19","v":"2011"},{"$f":"ZZZ__FnCalls!F31","v":"Jan 2012"},{"$f":"ZZZ__FnCalls!F32","v":"Feb 2012"},{"$f":"ZZZ__FnCalls!F33","v":"Mar 2012"},{"$f":"ZZZ__FnCalls!F34","v":"Apr 2012"},{"$f":"ZZZ__FnCalls!F35","v":"May 2012"},{"$f":"ZZZ__FnCalls!F36","v":"Jun 2012"},{"$f":"ZZZ__FnCalls!F37","v":"Jul 2012"},{"$f":"ZZZ__FnCalls!F38","v":"Aug 2012"},{"$f":"ZZZ__FnCalls!F39","v":"Sep 2012"},{"$f":"ZZZ__FnCalls!F40","v":"Oct 2012"},{"$f":"ZZZ__FnCalls!F41","v":"Nov 2012"},{"$f":"ZZZ__FnCalls!F42","v":"Dec 2012"},{"$f":"ZZZ__FnCalls!H31","v":"2012"},{"$f":"ZZZ__FnCalls!F43","v":"Jan 2013"},{"$f":"ZZZ__FnCalls!F44","v":"Feb 2013"},{"$f":"ZZZ__FnCalls!F45","v":"Mar 2013"},{"$f":"ZZZ__FnCalls!F46","v":"Apr 2013"},{"$f":"ZZZ__FnCalls!F47","v":"May 2013"},{"$f":"ZZZ__FnCalls!F48","v":"Jun 2013"},{"$f":"ZZZ__FnCalls!F49","v":"Jul 2013"},{"$f":"ZZZ__FnCalls!F50","v":"Aug 2013"},{"$f":"ZZZ__FnCalls!F51","v":"Sep 2013"},{"$f":"ZZZ__FnCalls!F52","v":"Oct 2013"},{"$f":"ZZZ__FnCalls!F53","v":"Nov 2013"},{"$f":"ZZZ__FnCalls!F54","v":"Dec 2013"},{"$f":"ZZZ__FnCalls!H43","v":"2013"},{"$f":"ZZZ__FnCalls!F55","v":"Jan 2014"},{"$f":"ZZZ__FnCalls!F56","v":"Feb 2014"},{"$f":"ZZZ__FnCalls!F57","v":"Mar 2014"},{"$f":"ZZZ__FnCalls!F58","v":"Apr 2014"},{"$f":"ZZZ__FnCalls!F59","v":"May 2014"},{"$f":"ZZZ__FnCalls!F60","v":"Jun 2014"},{"$f":"ZZZ__FnCalls!F61","v":"Jul 2014"},{"$f":"ZZZ__FnCalls!F62","v":"Aug 2014"},{"$f":"ZZZ__FnCalls!F63","v":"Sep 2014"},{"$f":"ZZZ__FnCalls!F64","v":"Oct 2014"},{"$f":"ZZZ__FnCalls!F65","v":"Nov 2014"},{"$f":"ZZZ__FnCalls!F66","v":"Dec 2014"},{"$f":"ZZZ__FnCalls!H55","v":"2014"},{"$f":"ZZZ__FnCalls!F67","v":"Jan 2015"},{"$f":"ZZZ__FnCalls!F68","v":"Feb 2015"},{"$f":"ZZZ__FnCalls!F69","v":"Mar 2015"},{"$f":"ZZZ__FnCalls!F70","v":"Apr 2015"},{"$f":"ZZZ__FnCalls!F71","v":"May 2015"},{"$f":"ZZZ__FnCalls!F72","v":"Jun 2015"},{"$f":"ZZZ__FnCalls!F73","v":"Jul 2015"},{"$f":"ZZZ__FnCalls!F74","v":"Aug 2015"},{"$f":"ZZZ__FnCalls!F75","v":"Sep 2015"},{"$f":"ZZZ__FnCalls!F76","v":"Oct 2015"},{"$f":"ZZZ__FnCalls!F77","v":"Nov 2015"},{"$f":"ZZZ__FnCalls!F78","v":"Dec 2015"},{"$f":"ZZZ__FnCalls!H67","v":"2015"},{"$f":"ZZZ__FnCalls!F79","v":"Jan 2016"},{"$f":"ZZZ__FnCalls!F80","v":"Feb 2016"},{"$f":"ZZZ__FnCalls!F81","v":"Mar 2016"},{"$f":"ZZZ__FnCalls!F82","v":"Apr 2016"},{"$f":"ZZZ__FnCalls!F83","v":"May 2016"},{"$f":"ZZZ__FnCalls!F84","v":"Jun 2016"},{"$f":"ZZZ__FnCalls!F85","v":"Jul 2016"},{"$f":"ZZZ__FnCalls!F86","v":"Aug 2016"},{"$f":"ZZZ__FnCalls!F87","v":"Sep 2016"},{"$f":"ZZZ__FnCalls!F88","v":"Oct 2016"},{"$f":"ZZZ__FnCalls!F89","v":"Nov 2016"},{"$f":"ZZZ__FnCalls!F90","v":"Dec 2016"},{"$f":"ZZZ__FnCalls!H79","v":"2016"},{"$f":"ZZZ__FnCalls!F91","v":"Jan 2017"},{"$f":"ZZZ__FnCalls!F92","v":"Feb 2017"},{"$f":"ZZZ__FnCalls!F93","v":"Mar 2017"},{"$f":"ZZZ__FnCalls!F94","v":"Apr 2017"},{"$f":"ZZZ__FnCalls!F95","v":"May 2017"},{"$f":"ZZZ__FnCalls!F96","v":"Jun 2017"},{"$f":"ZZZ__FnCalls!F97","v":"Jul 2017"},{"$f":"ZZZ__FnCalls!F98","v":"Aug 2017"},{"$f":"ZZZ__FnCalls!F99","v":"Sep 2017"},{"$f":"ZZZ__FnCalls!F100","v":"Oct 2017"},{"$f":"ZZZ__FnCalls!F101","v":"Nov 2017"},{"$f":"ZZZ__FnCalls!F102","v":"Dec 2017"},{"$f":"ZZZ__FnCalls!H91","v":"2017"},{"$f":"ZZZ__FnCalls!F103","v":"Jan 2018"},{"$f":"ZZZ__FnCalls!F104","v":"Feb 2018"},{"$f":"ZZZ__FnCalls!F105","v":"Mar 2018"},{"$f":"ZZZ__FnCalls!F106","v":"Apr 2018"},{"$f":"ZZZ__FnCalls!F107","v":"May 2018"},{"$f":"ZZZ__FnCalls!F108","v":"Jun 2018"},{"$f":"ZZZ__FnCalls!F109","v":"Jul 2018"},{"$f":"ZZZ__FnCalls!F110","v":"Aug 2018"},{"$f":"ZZZ__FnCalls!F111","v":"Sep 2018"},{"$f":"ZZZ__FnCalls!F112","v":"Oct 2018"},{"$f":"ZZZ__FnCalls!F113","v":"Nov 2018"},{"$f":"ZZZ__FnCalls!F114","v":"Dec 2018"},{"$f":"ZZZ__FnCalls!H103","v":"2018"},{"$f":"ZZZ__FnCalls!F115","v":"Jan 2019"},{"$f":"ZZZ__FnCalls!F116","v":"Feb 2019"},{"$f":"ZZZ__FnCalls!F117","v":"Mar 2019"},{"$f":"ZZZ__FnCalls!F118","v":"Apr 2019"},{"$f":"ZZZ__FnCalls!F119","v":"May 2019"},{"$f":"ZZZ__FnCalls!F120","v":"Jun 2019"},{"$f":"ZZZ__FnCalls!F121","v":"Jul 2019"},{"$f":"ZZZ__FnCalls!F122","v":"Aug 2019"},{"$f":"ZZZ__FnCalls!F123","v":"Sep 2019"},{"$f":"ZZZ__FnCalls!F124","v":"Oct 2019"},{"$f":"ZZZ__FnCalls!F125","v":"Nov 2019"},{"$f":"ZZZ__FnCalls!F126","v":"Dec 2019"},{"$f":"ZZZ__FnCalls!H115","v":"2019"},{"$f":"ZZZ__FnCalls!F127","v":"Jan 2020"},{"$f":"ZZZ__FnCalls!F128","v":"Feb 2020"},{"$f":"ZZZ__FnCalls!F129","v":"Mar 2020"},{"$f":"ZZZ__FnCalls!F130","v":"Apr 2020"},{"$f":"ZZZ__FnCalls!F131","v":"May 2020"},{"$f":"ZZZ__FnCalls!F132","v":"Jun 2020"},{"$f":"ZZZ__FnCalls!F133","v":"Jul 2020"},{"$f":"ZZZ__FnCalls!F134","v":"Aug 2020"},{"$f":"ZZZ__FnCalls!F135","v":"Sep 2020"},{"$f":"ZZZ__FnCalls!F136","v":"Oct 2020"},{"$f":"ZZZ__FnCalls!F137","v":"Nov 2020"},{"$f":"ZZZ__FnCalls!F138","v":"Dec 2020"},{"$f":"ZZZ__FnCalls!H127","v":"2020"}]
[null,{"$f":"ZZZ__FnCalls!F7","v":"Jan 2010"},{"$f":"ZZZ__FnCalls!F8","v":"Feb 2010"},{"$f":"ZZZ__FnCalls!F9","v":"Mar 2010"},{"$f":"ZZZ__FnCalls!F10","v":"Apr 2010"},{"$f":"ZZZ__FnCalls!F11","v":"May 2010"},{"$f":"ZZZ__FnCalls!F12","v":"Jun 2010"},{"$f":"ZZZ__FnCalls!F13","v":"Jul 2010"},{"$f":"ZZZ__FnCalls!F14","v":"Aug 2010"},{"$f":"ZZZ__FnCalls!F15","v":"Sep 2010"},{"$f":"ZZZ__FnCalls!F16","v":"Oct 2010"},{"$f":"ZZZ__FnCalls!F17","v":"Nov 2010"},{"$f":"ZZZ__FnCalls!F18","v":"Dec 2010"},{"$f":"ZZZ__FnCalls!F7","v":"Jan 2010"},{"$f":"ZZZ__FnCalls!F19","v":"Jan 2011"},{"$f":"ZZZ__FnCalls!F20","v":"Feb 2011"},{"$f":"ZZZ__FnCalls!F21","v":"Mar 2011"},{"$f":"ZZZ__FnCalls!F22","v":"Apr 2011"},{"$f":"ZZZ__FnCalls!F23","v":"May 2011"},{"$f":"ZZZ__FnCalls!F24","v":"Jun 2011"},{"$f":"ZZZ__FnCalls!F25","v":"Jul 2011"},{"$f":"ZZZ__FnCalls!F26","v":"Aug 2011"},{"$f":"ZZZ__FnCalls!F27","v":"Sep 2011"},{"$f":"ZZZ__FnCalls!F28","v":"Oct 2011"},{"$f":"ZZZ__FnCalls!F29","v":"Nov 2011"},{"$f":"ZZZ__FnCalls!F30","v":"Dec 2011"},{"$f":"ZZZ__FnCalls!F19","v":"Jan 2011"},{"$f":"ZZZ__FnCalls!F31","v":"Jan 2012"},{"$f":"ZZZ__FnCalls!F32","v":"Feb 2012"},{"$f":"ZZZ__FnCalls!F33","v":"Mar 2012"},{"$f":"ZZZ__FnCalls!F34","v":"Apr 2012"},{"$f":"ZZZ__FnCalls!F35","v":"May 2012"},{"$f":"ZZZ__FnCalls!F36","v":"Jun 2012"},{"$f":"ZZZ__FnCalls!F37","v":"Jul 2012"},{"$f":"ZZZ__FnCalls!F38","v":"Aug 2012"},{"$f":"ZZZ__FnCalls!F39","v":"Sep 2012"},{"$f":"ZZZ__FnCalls!F40","v":"Oct 2012"},{"$f":"ZZZ__FnCalls!F41","v":"Nov 2012"},{"$f":"ZZZ__FnCalls!F42","v":"Dec 2012"},{"$f":"ZZZ__FnCalls!F31","v":"Jan 2012"},{"$f":"ZZZ__FnCalls!F43","v":"Jan 2013"},{"$f":"ZZZ__FnCalls!F44","v":"Feb 2013"},{"$f":"ZZZ__FnCalls!F45","v":"Mar 2013"},{"$f":"ZZZ__FnCalls!F46","v":"Apr 2013"},{"$f":"ZZZ__FnCalls!F47","v":"May 2013"},{"$f":"ZZZ__FnCalls!F48","v":"Jun 2013"},{"$f":"ZZZ__FnCalls!F49","v":"Jul 2013"},{"$f":"ZZZ__FnCalls!F50","v":"Aug 2013"},{"$f":"ZZZ__FnCalls!F51","v":"Sep 2013"},{"$f":"ZZZ__FnCalls!F52","v":"Oct 2013"},{"$f":"ZZZ__FnCalls!F53","v":"Nov 2013"},{"$f":"ZZZ__FnCalls!F54","v":"Dec 2013"},{"$f":"ZZZ__FnCalls!F43","v":"Jan 2013"},{"$f":"ZZZ__FnCalls!F55","v":"Jan 2014"},{"$f":"ZZZ__FnCalls!F56","v":"Feb 2014"},{"$f":"ZZZ__FnCalls!F57","v":"Mar 2014"},{"$f":"ZZZ__FnCalls!F58","v":"Apr 2014"},{"$f":"ZZZ__FnCalls!F59","v":"May 2014"},{"$f":"ZZZ__FnCalls!F60","v":"Jun 2014"},{"$f":"ZZZ__FnCalls!F61","v":"Jul 2014"},{"$f":"ZZZ__FnCalls!F62","v":"Aug 2014"},{"$f":"ZZZ__FnCalls!F63","v":"Sep 2014"},{"$f":"ZZZ__FnCalls!F64","v":"Oct 2014"},{"$f":"ZZZ__FnCalls!F65","v":"Nov 2014"},{"$f":"ZZZ__FnCalls!F66","v":"Dec 2014"},{"$f":"ZZZ__FnCalls!F55","v":"Jan 2014"},{"$f":"ZZZ__FnCalls!F67","v":"Jan 2015"},{"$f":"ZZZ__FnCalls!F68","v":"Feb 2015"},{"$f":"ZZZ__FnCalls!F69","v":"Mar 2015"},{"$f":"ZZZ__FnCalls!F70","v":"Apr 2015"},{"$f":"ZZZ__FnCalls!F71","v":"May 2015"},{"$f":"ZZZ__FnCalls!F72","v":"Jun 2015"},{"$f":"ZZZ__FnCalls!F73","v":"Jul 2015"},{"$f":"ZZZ__FnCalls!F74","v":"Aug 2015"},{"$f":"ZZZ__FnCalls!F75","v":"Sep 2015"},{"$f":"ZZZ__FnCalls!F76","v":"Oct 2015"},{"$f":"ZZZ__FnCalls!F77","v":"Nov 2015"},{"$f":"ZZZ__FnCalls!F78","v":"Dec 2015"},{"$f":"ZZZ__FnCalls!F67","v":"Jan 2015"},{"$f":"ZZZ__FnCalls!F79","v":"Jan 2016"},{"$f":"ZZZ__FnCalls!F80","v":"Feb 2016"},{"$f":"ZZZ__FnCalls!F81","v":"Mar 2016"},{"$f":"ZZZ__FnCalls!F82","v":"Apr 2016"},{"$f":"ZZZ__FnCalls!F83","v":"May 2016"},{"$f":"ZZZ__FnCalls!F84","v":"Jun 2016"},{"$f":"ZZZ__FnCalls!F85","v":"Jul 2016"},{"$f":"ZZZ__FnCalls!F86","v":"Aug 2016"},{"$f":"ZZZ__FnCalls!F87","v":"Sep 2016"},{"$f":"ZZZ__FnCalls!F88","v":"Oct 2016"},{"$f":"ZZZ__FnCalls!F89","v":"Nov 2016"},{"$f":"ZZZ__FnCalls!F90","v":"Dec 2016"},{"$f":"ZZZ__FnCalls!F79","v":"Jan 2016"},{"$f":"ZZZ__FnCalls!F91","v":"Jan 2017"},{"$f":"ZZZ__FnCalls!F92","v":"Feb 2017"},{"$f":"ZZZ__FnCalls!F93","v":"Mar 2017"},{"$f":"ZZZ__FnCalls!F94","v":"Apr 2017"},{"$f":"ZZZ__FnCalls!F95","v":"May 2017"},{"$f":"ZZZ__FnCalls!F96","v":"Jun 2017"},{"$f":"ZZZ__FnCalls!F97","v":"Jul 2017"},{"$f":"ZZZ__FnCalls!F98","v":"Aug 2017"},{"$f":"ZZZ__FnCalls!F99","v":"Sep 2017"},{"$f":"ZZZ__FnCalls!F100","v":"Oct 2017"},{"$f":"ZZZ__FnCalls!F101","v":"Nov 2017"},{"$f":"ZZZ__FnCalls!F102","v":"Dec 2017"},{"$f":"ZZZ__FnCalls!F91","v":"Jan 2017"},{"$f":"ZZZ__FnCalls!F103","v":"Jan 2018"},{"$f":"ZZZ__FnCalls!F104","v":"Feb 2018"},{"$f":"ZZZ__FnCalls!F105","v":"Mar 2018"},{"$f":"ZZZ__FnCalls!F106","v":"Apr 2018"},{"$f":"ZZZ__FnCalls!F107","v":"May 2018"},{"$f":"ZZZ__FnCalls!F108","v":"Jun 2018"},{"$f":"ZZZ__FnCalls!F109","v":"Jul 2018"},{"$f":"ZZZ__FnCalls!F110","v":"Aug 2018"},{"$f":"ZZZ__FnCalls!F111","v":"Sep 2018"},{"$f":"ZZZ__FnCalls!F112","v":"Oct 2018"},{"$f":"ZZZ__FnCalls!F113","v":"Nov 2018"},{"$f":"ZZZ__FnCalls!F114","v":"Dec 2018"},{"$f":"ZZZ__FnCalls!F103","v":"Jan 2018"},{"$f":"ZZZ__FnCalls!F115","v":"Jan 2019"},{"$f":"ZZZ__FnCalls!F116","v":"Feb 2019"},{"$f":"ZZZ__FnCalls!F117","v":"Mar 2019"},{"$f":"ZZZ__FnCalls!F118","v":"Apr 2019"},{"$f":"ZZZ__FnCalls!F119","v":"May 2019"},{"$f":"ZZZ__FnCalls!F120","v":"Jun 2019"},{"$f":"ZZZ__FnCalls!F121","v":"Jul 2019"},{"$f":"ZZZ__FnCalls!F122","v":"Aug 2019"},{"$f":"ZZZ__FnCalls!F123","v":"Sep 2019"},{"$f":"ZZZ__FnCalls!F124","v":"Oct 2019"},{"$f":"ZZZ__FnCalls!F125","v":"Nov 2019"},{"$f":"ZZZ__FnCalls!F126","v":"Dec 2019"},{"$f":"ZZZ__FnCalls!F115","v":"Jan 2019"},{"$f":"ZZZ__FnCalls!F127","v":"Jan 2020"},{"$f":"ZZZ__FnCalls!F128","v":"Feb 2020"},{"$f":"ZZZ__FnCalls!F129","v":"Mar 2020"},{"$f":"ZZZ__FnCalls!F130","v":"Apr 2020"},{"$f":"ZZZ__FnCalls!F131","v":"May 2020"},{"$f":"ZZZ__FnCalls!F132","v":"Jun 2020"},{"$f":"ZZZ__FnCalls!F133","v":"Jul 2020"},{"$f":"ZZZ__FnCalls!F134","v":"Aug 2020"},{"$f":"ZZZ__FnCalls!F135","v":"Sep 2020"},{"$f":"ZZZ__FnCalls!F136","v":"Oct 2020"},{"$f":"ZZZ__FnCalls!F137","v":"Nov 2020"},{"$f":"ZZZ__FnCalls!F138","v":"Dec 2020"},{"$f":"ZZZ__FnCalls!F127","v":"Jan 2020"}]
[{"$f":"\"Demand_Expected_Short_stdev_1\"","v":"Demand_Expected_Short_stdev_1"}]
[null,{"$f":"ZZZ__FnCalls!F7","v":"Jan 2010"},{"$f":"ZZZ__FnCalls!F8","v":"Feb 2010"},{"$f":"ZZZ__FnCalls!F9","v":"Mar 2010"},{"$f":"ZZZ__FnCalls!F10","v":"Apr 2010"},{"$f":"ZZZ__FnCalls!F11","v":"May 2010"},{"$f":"ZZZ__FnCalls!F12","v":"Jun 2010"},{"$f":"ZZZ__FnCalls!F13","v":"Jul 2010"},{"$f":"ZZZ__FnCalls!F14","v":"Aug 2010"},{"$f":"ZZZ__FnCalls!F15","v":"Sep 2010"},{"$f":"ZZZ__FnCalls!F16","v":"Oct 2010"},{"$f":"ZZZ__FnCalls!F17","v":"Nov 2010"},{"$f":"ZZZ__FnCalls!F18","v":"Dec 2010"},{"$f":"ZZZ__FnCalls!H7","v":"2010"},{"$f":"ZZZ__FnCalls!F19","v":"Jan 2011"},{"$f":"ZZZ__FnCalls!F20","v":"Feb 2011"},{"$f":"ZZZ__FnCalls!F21","v":"Mar 2011"},{"$f":"ZZZ__FnCalls!F22","v":"Apr 2011"},{"$f":"ZZZ__FnCalls!F23","v":"May 2011"},{"$f":"ZZZ__FnCalls!F24","v":"Jun 2011"},{"$f":"ZZZ__FnCalls!F25","v":"Jul 2011"},{"$f":"ZZZ__FnCalls!F26","v":"Aug 2011"},{"$f":"ZZZ__FnCalls!F27","v":"Sep 2011"},{"$f":"ZZZ__FnCalls!F28","v":"Oct 2011"},{"$f":"ZZZ__FnCalls!F29","v":"Nov 2011"},{"$f":"ZZZ__FnCalls!F30","v":"Dec 2011"},{"$f":"ZZZ__FnCalls!H19","v":"2011"},{"$f":"ZZZ__FnCalls!F31","v":"Jan 2012"},{"$f":"ZZZ__FnCalls!F32","v":"Feb 2012"},{"$f":"ZZZ__FnCalls!F33","v":"Mar 2012"},{"$f":"ZZZ__FnCalls!F34","v":"Apr 2012"},{"$f":"ZZZ__FnCalls!F35","v":"May 2012"},{"$f":"ZZZ__FnCalls!F36","v":"Jun 2012"},{"$f":"ZZZ__FnCalls!F37","v":"Jul 2012"},{"$f":"ZZZ__FnCalls!F38","v":"Aug 2012"},{"$f":"ZZZ__FnCalls!F39","v":"Sep 2012"},{"$f":"ZZZ__FnCalls!F40","v":"Oct 2012"},{"$f":"ZZZ__FnCalls!F41","v":"Nov 2012"},{"$f":"ZZZ__FnCalls!F42","v":"Dec 2012"},{"$f":"ZZZ__FnCalls!H31","v":"2012"},{"$f":"ZZZ__FnCalls!F43","v":"Jan 2013"},{"$f":"ZZZ__FnCalls!F44","v":"Feb 2013"},{"$f":"ZZZ__FnCalls!F45","v":"Mar 2013"},{"$f":"ZZZ__FnCalls!F46","v":"Apr 2013"},{"$f":"ZZZ__FnCalls!F47","v":"May 2013"},{"$f":"ZZZ__FnCalls!F48","v":"Jun 2013"},{"$f":"ZZZ__FnCalls!F49","v":"Jul 2013"},{"$f":"ZZZ__FnCalls!F50","v":"Aug 2013"},{"$f":"ZZZ__FnCalls!F51","v":"Sep 2013"},{"$f":"ZZZ__FnCalls!F52","v":"Oct 2013"},{"$f":"ZZZ__FnCalls!F53","v":"Nov 2013"},{"$f":"ZZZ__FnCalls!F54","v":"Dec 2013"},{"$f":"ZZZ__FnCalls!H43","v":"2013"},{"$f":"ZZZ__FnCalls!F55","v":"Jan 2014"},{"$f":"ZZZ__FnCalls!F56","v":"Feb 2014"},{"$f":"ZZZ__FnCalls!F57","v":"Mar 2014"},{"$f":"ZZZ__FnCalls!F58","v":"Apr 2014"},{"$f":"ZZZ__FnCalls!F59","v":"May 2014"},{"$f":"ZZZ__FnCalls!F60","v":"Jun 2014"},{"$f":"ZZZ__FnCalls!F61","v":"Jul 2014"},{"$f":"ZZZ__FnCalls!F62","v":"Aug 2014"},{"$f":"ZZZ__FnCalls!F63","v":"Sep 2014"},{"$f":"ZZZ__FnCalls!F64","v":"Oct 2014"},{"$f":"ZZZ__FnCalls!F65","v":"Nov 2014"},{"$f":"ZZZ__FnCalls!F66","v":"Dec 2014"},{"$f":"ZZZ__FnCalls!H55","v":"2014"},{"$f":"ZZZ__FnCalls!F67","v":"Jan 2015"},{"$f":"ZZZ__FnCalls!F68","v":"Feb 2015"},{"$f":"ZZZ__FnCalls!F69","v":"Mar 2015"},{"$f":"ZZZ__FnCalls!F70","v":"Apr 2015"},{"$f":"ZZZ__FnCalls!F71","v":"May 2015"},{"$f":"ZZZ__FnCalls!F72","v":"Jun 2015"},{"$f":"ZZZ__FnCalls!F73","v":"Jul 2015"},{"$f":"ZZZ__FnCalls!F74","v":"Aug 2015"},{"$f":"ZZZ__FnCalls!F75","v":"Sep 2015"},{"$f":"ZZZ__FnCalls!F76","v":"Oct 2015"},{"$f":"ZZZ__FnCalls!F77","v":"Nov 2015"},{"$f":"ZZZ__FnCalls!F78","v":"Dec 2015"},{"$f":"ZZZ__FnCalls!H67","v":"2015"},{"$f":"ZZZ__FnCalls!F79","v":"Jan 2016"},{"$f":"ZZZ__FnCalls!F80","v":"Feb 2016"},{"$f":"ZZZ__FnCalls!F81","v":"Mar 2016"},{"$f":"ZZZ__FnCalls!F82","v":"Apr 2016"},{"$f":"ZZZ__FnCalls!F83","v":"May 2016"},{"$f":"ZZZ__FnCalls!F84","v":"Jun 2016"},{"$f":"ZZZ__FnCalls!F85","v":"Jul 2016"},{"$f":"ZZZ__FnCalls!F86","v":"Aug 2016"},{"$f":"ZZZ__FnCalls!F87","v":"Sep 2016"},{"$f":"ZZZ__FnCalls!F88","v":"Oct 2016"},{"$f":"ZZZ__FnCalls!F89","v":"Nov 2016"},{"$f":"ZZZ__FnCalls!F90","v":"Dec 2016"},{"$f":"ZZZ__FnCalls!H79","v":"2016"},{"$f":"ZZZ__FnCalls!F91","v":"Jan 2017"},{"$f":"ZZZ__FnCalls!F92","v":"Feb 2017"},{"$f":"ZZZ__FnCalls!F93","v":"Mar 2017"},{"$f":"ZZZ__FnCalls!F94","v":"Apr 2017"},{"$f":"ZZZ__FnCalls!F95","v":"May 2017"},{"$f":"ZZZ__FnCalls!F96","v":"Jun 2017"},{"$f":"ZZZ__FnCalls!F97","v":"Jul 2017"},{"$f":"ZZZ__FnCalls!F98","v":"Aug 2017"},{"$f":"ZZZ__FnCalls!F99","v":"Sep 2017"},{"$f":"ZZZ__FnCalls!F100","v":"Oct 2017"},{"$f":"ZZZ__FnCalls!F101","v":"Nov 2017"},{"$f":"ZZZ__FnCalls!F102","v":"Dec 2017"},{"$f":"ZZZ__FnCalls!H91","v":"2017"},{"$f":"ZZZ__FnCalls!F103","v":"Jan 2018"},{"$f":"ZZZ__FnCalls!F104","v":"Feb 2018"},{"$f":"ZZZ__FnCalls!F105","v":"Mar 2018"},{"$f":"ZZZ__FnCalls!F106","v":"Apr 2018"},{"$f":"ZZZ__FnCalls!F107","v":"May 2018"},{"$f":"ZZZ__FnCalls!F108","v":"Jun 2018"},{"$f":"ZZZ__FnCalls!F109","v":"Jul 2018"},{"$f":"ZZZ__FnCalls!F110","v":"Aug 2018"},{"$f":"ZZZ__FnCalls!F111","v":"Sep 2018"},{"$f":"ZZZ__FnCalls!F112","v":"Oct 2018"},{"$f":"ZZZ__FnCalls!F113","v":"Nov 2018"},{"$f":"ZZZ__FnCalls!F114","v":"Dec 2018"},{"$f":"ZZZ__FnCalls!H103","v":"2018"},{"$f":"ZZZ__FnCalls!F115","v":"Jan 2019"},{"$f":"ZZZ__FnCalls!F116","v":"Feb 2019"},{"$f":"ZZZ__FnCalls!F117","v":"Mar 2019"},{"$f":"ZZZ__FnCalls!F118","v":"Apr 2019"},{"$f":"ZZZ__FnCalls!F119","v":"May 2019"},{"$f":"ZZZ__FnCalls!F120","v":"Jun 2019"},{"$f":"ZZZ__FnCalls!F121","v":"Jul 2019"},{"$f":"ZZZ__FnCalls!F122","v":"Aug 2019"},{"$f":"ZZZ__FnCalls!F123","v":"Sep 2019"},{"$f":"ZZZ__FnCalls!F124","v":"Oct 2019"},{"$f":"ZZZ__FnCalls!F125","v":"Nov 2019"},{"$f":"ZZZ__FnCalls!F126","v":"Dec 2019"},{"$f":"ZZZ__FnCalls!H115","v":"2019"},{"$f":"ZZZ__FnCalls!F127","v":"Jan 2020"},{"$f":"ZZZ__FnCalls!F128","v":"Feb 2020"},{"$f":"ZZZ__FnCalls!F129","v":"Mar 2020"},{"$f":"ZZZ__FnCalls!F130","v":"Apr 2020"},{"$f":"ZZZ__FnCalls!F131","v":"May 2020"},{"$f":"ZZZ__FnCalls!F132","v":"Jun 2020"},{"$f":"ZZZ__FnCalls!F133","v":"Jul 2020"},{"$f":"ZZZ__FnCalls!F134","v":"Aug 2020"},{"$f":"ZZZ__FnCalls!F135","v":"Sep 2020"},{"$f":"ZZZ__FnCalls!F136","v":"Oct 2020"},{"$f":"ZZZ__FnCalls!F137","v":"Nov 2020"},{"$f":"ZZZ__FnCalls!F138","v":"Dec 2020"},{"$f":"ZZZ__FnCalls!H127","v":"2020"}]
[null,{"$f":"ZZZ__FnCalls!A7","v":"2010-01-01"},{"$f":"ZZZ__FnCalls!A8","v":"2010-02-01"},{"$f":"ZZZ__FnCalls!A9","v":"2010-03-01"},{"$f":"ZZZ__FnCalls!A10","v":"2010-04-01"},{"$f":"ZZZ__FnCalls!A11","v":"2010-05-01"},{"$f":"ZZZ__FnCalls!A12","v":"2010-06-01"},{"$f":"ZZZ__FnCalls!A13","v":"2010-07-01"},{"$f":"ZZZ__FnCalls!A14","v":"2010-08-01"},{"$f":"ZZZ__FnCalls!A15","v":"2010-09-01"},{"$f":"ZZZ__FnCalls!A16","v":"2010-10-01"},{"$f":"ZZZ__FnCalls!A17","v":"2010-11-01"},{"$f":"ZZZ__FnCalls!A18","v":"2010-12-01"},{"$f":"ZZZ__FnCalls!A7","v":"2010-01-01"},{"$f":"ZZZ__FnCalls!A19","v":"2011-01-01"},{"$f":"ZZZ__FnCalls!A20","v":"2011-02-01"},{"$f":"ZZZ__FnCalls!A21","v":"2011-03-01"},{"$f":"ZZZ__FnCalls!A22","v":"2011-04-01"},{"$f":"ZZZ__FnCalls!A23","v":"2011-05-01"},{"$f":"ZZZ__FnCalls!A24","v":"2011-06-01"},{"$f":"ZZZ__FnCalls!A25","v":"2011-07-01"},{"$f":"ZZZ__FnCalls!A26","v":"2011-08-01"},{"$f":"ZZZ__FnCalls!A27","v":"2011-09-01"},{"$f":"ZZZ__FnCalls!A28","v":"2011-10-01"},{"$f":"ZZZ__FnCalls!A29","v":"2011-11-01"},{"$f":"ZZZ__FnCalls!A30","v":"2011-12-01"},{"$f":"ZZZ__FnCalls!A19","v":"2011-01-01"},{"$f":"ZZZ__FnCalls!A31","v":"2012-01-01"},{"$f":"ZZZ__FnCalls!A32","v":"2012-02-01"},{"$f":"ZZZ__FnCalls!A33","v":"2012-03-01"},{"$f":"ZZZ__FnCalls!A34","v":"2012-04-01"},{"$f":"ZZZ__FnCalls!A35","v":"2012-05-01"},{"$f":"ZZZ__FnCalls!A36","v":"2012-06-01"},{"$f":"ZZZ__FnCalls!A37","v":"2012-07-01"},{"$f":"ZZZ__FnCalls!A38","v":"2012-08-01"},{"$f":"ZZZ__FnCalls!A39","v":"2012-09-01"},{"$f":"ZZZ__FnCalls!A40","v":"2012-10-01"},{"$f":"ZZZ__FnCalls!A41","v":"2012-11-01"},{"$f":"ZZZ__FnCalls!A42","v":"2012-12-01"},{"$f":"ZZZ__FnCalls!A31","v":"2012-01-01"},{"$f":"ZZZ__FnCalls!A43","v":"2013-01-01"},{"$f":"ZZZ__FnCalls!A44","v":"2013-02-01"},{"$f":"ZZZ__FnCalls!A45","v":"2013-03-01"},{"$f":"ZZZ__FnCalls!A46","v":"2013-04-01"},{"$f":"ZZZ__FnCalls!A47","v":"2013-05-01"},{"$f":"ZZZ__FnCalls!A48","v":"2013-06-01"},{"$f":"ZZZ__FnCalls!A49","v":"2013-07-01"},{"$f":"ZZZ__FnCalls!A50","v":"2013-08-01"},{"$f":"ZZZ__FnCalls!A51","v":"2013-09-01"},{"$f":"ZZZ__FnCalls!A52","v":"2013-10-01"},{"$f":"ZZZ__FnCalls!A53","v":"2013-11-01"},{"$f":"ZZZ__FnCalls!A54","v":"2013-12-01"},{"$f":"ZZZ__FnCalls!A43","v":"2013-01-01"},{"$f":"ZZZ__FnCalls!A55","v":"2014-01-01"},{"$f":"ZZZ__FnCalls!A56","v":"2014-02-01"},{"$f":"ZZZ__FnCalls!A57","v":"2014-03-01"},{"$f":"ZZZ__FnCalls!A58","v":"2014-04-01"},{"$f":"ZZZ__FnCalls!A59","v":"2014-05-01"},{"$f":"ZZZ__FnCalls!A60","v":"2014-06-01"},{"$f":"ZZZ__FnCalls!A61","v":"2014-07-01"},{"$f":"ZZZ__FnCalls!A62","v":"2014-08-01"},{"$f":"ZZZ__FnCalls!A63","v":"2014-09-01"},{"$f":"ZZZ__FnCalls!A64","v":"2014-10-01"},{"$f":"ZZZ__FnCalls!A65","v":"2014-11-01"},{"$f":"ZZZ__FnCalls!A66","v":"2014-12-01"},{"$f":"ZZZ__FnCalls!A55","v":"2014-01-01"},{"$f":"ZZZ__FnCalls!A67","v":"2015-01-01"},{"$f":"ZZZ__FnCalls!A68","v":"2015-02-01"},{"$f":"ZZZ__FnCalls!A69","v":"2015-03-01"},{"$f":"ZZZ__FnCalls!A70","v":"2015-04-01"},{"$f":"ZZZ__FnCalls!A71","v":"2015-05-01"},{"$f":"ZZZ__FnCalls!A72","v":"2015-06-01"},{"$f":"ZZZ__FnCalls!A73","v":"2015-07-01"},{"$f":"ZZZ__FnCalls!A74","v":"2015-08-01"},{"$f":"ZZZ__FnCalls!A75","v":"2015-09-01"},{"$f":"ZZZ__FnCalls!A76","v":"2015-10-01"},{"$f":"ZZZ__FnCalls!A77","v":"2015-11-01"},{"$f":"ZZZ__FnCalls!A78","v":"2015-12-01"},{"$f":"ZZZ__FnCalls!A67","v":"2015-01-01"},{"$f":"ZZZ__FnCalls!A79","v":"2016-01-01"},{"$f":"ZZZ__FnCalls!A80","v":"2016-02-01"},{"$f":"ZZZ__FnCalls!A81","v":"2016-03-01"},{"$f":"ZZZ__FnCalls!A82","v":"2016-04-01"},{"$f":"ZZZ__FnCalls!A83","v":"2016-05-01"},{"$f":"ZZZ__FnCalls!A84","v":"2016-06-01"},{"$f":"ZZZ__FnCalls!A85","v":"2016-07-01"},{"$f":"ZZZ__FnCalls!A86","v":"2016-08-01"},{"$f":"ZZZ__FnCalls!A87","v":"2016-09-01"},{"$f":"ZZZ__FnCalls!A88","v":"2016-10-01"},{"$f":"ZZZ__FnCalls!A89","v":"2016-11-01"},{"$f":"ZZZ__FnCalls!A90","v":"2016-12-01"},{"$f":"ZZZ__FnCalls!A79","v":"2016-01-01"},{"$f":"ZZZ__FnCalls!A91","v":"2017-01-01"},{"$f":"ZZZ__FnCalls!A92","v":"2017-02-01"},{"$f":"ZZZ__FnCalls!A93","v":"2017-03-01"},{"$f":"ZZZ__FnCalls!A94","v":"2017-04-01"},{"$f":"ZZZ__FnCalls!A95","v":"2017-05-01"},{"$f":"ZZZ__FnCalls!A96","v":"2017-06-01"},{"$f":"ZZZ__FnCalls!A97","v":"2017-07-01"},{"$f":"ZZZ__FnCalls!A98","v":"2017-08-01"},{"$f":"ZZZ__FnCalls!A99","v":"2017-09-01"},{"$f":"ZZZ__FnCalls!A100","v":"2017-10-01"},{"$f":"ZZZ__FnCalls!A101","v":"2017-11-01"},{"$f":"ZZZ__FnCalls!A102","v":"2017-12-01"},{"$f":"ZZZ__FnCalls!A91","v":"2017-01-01"},{"$f":"ZZZ__FnCalls!A103","v":"2018-01-01"},{"$f":"ZZZ__FnCalls!A104","v":"2018-02-01"},{"$f":"ZZZ__FnCalls!A105","v":"2018-03-01"},{"$f":"ZZZ__FnCalls!A106","v":"2018-04-01"},{"$f":"ZZZ__FnCalls!A107","v":"2018-05-01"},{"$f":"ZZZ__FnCalls!A108","v":"2018-06-01"},{"$f":"ZZZ__FnCalls!A109","v":"2018-07-01"},{"$f":"ZZZ__FnCalls!A110","v":"2018-08-01"},{"$f":"ZZZ__FnCalls!A111","v":"2018-09-01"},{"$f":"ZZZ__FnCalls!A112","v":"2018-10-01"},{"$f":"ZZZ__FnCalls!A113","v":"2018-11-01"},{"$f":"ZZZ__FnCalls!A114","v":"2018-12-01"},{"$f":"ZZZ__FnCalls!A103","v":"2018-01-01"},{"$f":"ZZZ__FnCalls!A115","v":"2019-01-01"},{"$f":"ZZZ__FnCalls!A116","v":"2019-02-01"},{"$f":"ZZZ__FnCalls!A117","v":"2019-03-01"},{"$f":"ZZZ__FnCalls!A118","v":"2019-04-01"},{"$f":"ZZZ__FnCalls!A119","v":"2019-05-01"},{"$f":"ZZZ__FnCalls!A120","v":"2019-06-01"},{"$f":"ZZZ__FnCalls!A121","v":"2019-07-01"},{"$f":"ZZZ__FnCalls!A122","v":"2019-08-01"},{"$f":"ZZZ__FnCalls!A123","v":"2019-09-01"},{"$f":"ZZZ__FnCalls!A124","v":"2019-10-01"},{"$f":"ZZZ__FnCalls!A125","v":"2019-11-01"},{"$f":"ZZZ__FnCalls!A126","v":"2019-12-01"},{"$f":"ZZZ__FnCalls!A115","v":"2019-01-01"},{"$f":"ZZZ__FnCalls!A127","v":"2020-01-01"},{"$f":"ZZZ__FnCalls!A128","v":"2020-02-01"},{"$f":"ZZZ__FnCalls!A129","v":"2020-03-01"},{"$f":"ZZZ__FnCalls!A130","v":"2020-04-01"},{"$f":"ZZZ__FnCalls!A131","v":"2020-05-01"},{"$f":"ZZZ__FnCalls!A132","v":"2020-06-01"},{"$f":"ZZZ__FnCalls!A133","v":"2020-07-01"},{"$f":"ZZZ__FnCalls!A134","v":"2020-08-01"},{"$f":"ZZZ__FnCalls!A135","v":"2020-09-01"},{"$f":"ZZZ__FnCalls!A136","v":"2020-10-01"},{"$f":"ZZZ__FnCalls!A137","v":"2020-11-01"},{"$f":"ZZZ__FnCalls!A138","v":"2020-12-01"},{"$f":"ZZZ__FnCalls!A127","v":"2020-01-01"}]
[{"$f":"\"Demand_Expected_Short_stdev_2\"","v":"Demand_Expected_Short_stdev_2"}]
[null,{"$f":"ZZZ__FnCalls!F7","v":"Jan 2010"},{"$f":"ZZZ__FnCalls!F8","v":"Feb 2010"},{"$f":"ZZZ__FnCalls!F9","v":"Mar 2010"},{"$f":"ZZZ__FnCalls!F10","v":"Apr 2010"},{"$f":"ZZZ__FnCalls!F11","v":"May 2010"},{"$f":"ZZZ__FnCalls!F12","v":"Jun 2010"},{"$f":"ZZZ__FnCalls!F13","v":"Jul 2010"},{"$f":"ZZZ__FnCalls!F14","v":"Aug 2010"},{"$f":"ZZZ__FnCalls!F15","v":"Sep 2010"},{"$f":"ZZZ__FnCalls!F16","v":"Oct 2010"},{"$f":"ZZZ__FnCalls!F17","v":"Nov 2010"},{"$f":"ZZZ__FnCalls!F18","v":"Dec 2010"},{"$f":"ZZZ__FnCalls!H7","v":"2010"},{"$f":"ZZZ__FnCalls!F19","v":"Jan 2011"},{"$f":"ZZZ__FnCalls!F20","v":"Feb 2011"},{"$f":"ZZZ__FnCalls!F21","v":"Mar 2011"},{"$f":"ZZZ__FnCalls!F22","v":"Apr 2011"},{"$f":"ZZZ__FnCalls!F23","v":"May 2011"},{"$f":"ZZZ__FnCalls!F24","v":"Jun 2011"},{"$f":"ZZZ__FnCalls!F25","v":"Jul 2011"},{"$f":"ZZZ__FnCalls!F26","v":"Aug 2011"},{"$f":"ZZZ__FnCalls!F27","v":"Sep 2011"},{"$f":"ZZZ__FnCalls!F28","v":"Oct 2011"},{"$f":"ZZZ__FnCalls!F29","v":"Nov 2011"},{"$f":"ZZZ__FnCalls!F30","v":"Dec 2011"},{"$f":"ZZZ__FnCalls!H19","v":"2011"},{"$f":"ZZZ__FnCalls!F31","v":"Jan 2012"},{"$f":"ZZZ__FnCalls!F32","v":"Feb 2012"},{"$f":"ZZZ__FnCalls!F33","v":"Mar 2012"},{"$f":"ZZZ__FnCalls!F34","v":"Apr 2012"},{"$f":"ZZZ__FnCalls!F35","v":"May 2012"},{"$f":"ZZZ__FnCalls!F36","v":"Jun 2012"},{"$f":"ZZZ__FnCalls!F37","v":"Jul 2012"},{"$f":"ZZZ__FnCalls!F38","v":"Aug 2012"},{"$f":"ZZZ__FnCalls!F39","v":"Sep 2012"},{"$f":"ZZZ__FnCalls!F40","v":"Oct 2012"},{"$f":"ZZZ__FnCalls!F41","v":"Nov 2012"},{"$f":"ZZZ__FnCalls!F42","v":"Dec 2012"},{"$f":"ZZZ__FnCalls!H31","v":"2012"},{"$f":"ZZZ__FnCalls!F43","v":"Jan 2013"},{"$f":"ZZZ__FnCalls!F44","v":"Feb 2013"},{"$f":"ZZZ__FnCalls!F45","v":"Mar 2013"},{"$f":"ZZZ__FnCalls!F46","v":"Apr 2013"},{"$f":"ZZZ__FnCalls!F47","v":"May 2013"},{"$f":"ZZZ__FnCalls!F48","v":"Jun 2013"},{"$f":"ZZZ__FnCalls!F49","v":"Jul 2013"},{"$f":"ZZZ__FnCalls!F50","v":"Aug 2013"},{"$f":"ZZZ__FnCalls!F51","v":"Sep 2013"},{"$f":"ZZZ__FnCalls!F52","v":"Oct 2013"},{"$f":"ZZZ__FnCalls!F53","v":"Nov 2013"},{"$f":"ZZZ__FnCalls!F54","v":"Dec 2013"},{"$f":"ZZZ__FnCalls!H43","v":"2013"},{"$f":"ZZZ__FnCalls!F55","v":"Jan 2014"},{"$f":"ZZZ__FnCalls!F56","v":"Feb 2014"},{"$f":"ZZZ__FnCalls!F57","v":"Mar 2014"},{"$f":"ZZZ__FnCalls!F58","v":"Apr 2014"},{"$f":"ZZZ__FnCalls!F59","v":"May 2014"},{"$f":"ZZZ__FnCalls!F60","v":"Jun 2014"},{"$f":"ZZZ__FnCalls!F61","v":"Jul 2014"},{"$f":"ZZZ__FnCalls!F62","v":"Aug 2014"},{"$f":"ZZZ__FnCalls!F63","v":"Sep 2014"},{"$f":"ZZZ__FnCalls!F64","v":"Oct 2014"},{"$f":"ZZZ__FnCalls!F65","v":"Nov 2014"},{"$f":"ZZZ__FnCalls!F66","v":"Dec 2014"},{"$f":"ZZZ__FnCalls!H55","v":"2014"},{"$f":"ZZZ__FnCalls!F67","v":"Jan 2015"},{"$f":"ZZZ__FnCalls!F68","v":"Feb 2015"},{"$f":"ZZZ__FnCalls!F69","v":"Mar 2015"},{"$f":"ZZZ__FnCalls!F70","v":"Apr 2015"},{"$f":"ZZZ__FnCalls!F71","v":"May 2015"},{"$f":"ZZZ__FnCalls!F72","v":"Jun 2015"},{"$f":"ZZZ__FnCalls!F73","v":"Jul 2015"},{"$f":"ZZZ__FnCalls!F74","v":"Aug 2015"},{"$f":"ZZZ__FnCalls!F75","v":"Sep 2015"},{"$f":"ZZZ__FnCalls!F76","v":"Oct 2015"},{"$f":"ZZZ__FnCalls!F77","v":"Nov 2015"},{"$f":"ZZZ__FnCalls!F78","v":"Dec 2015"},{"$f":"ZZZ__FnCalls!H67","v":"2015"},{"$f":"ZZZ__FnCalls!F79","v":"Jan 2016"},{"$f":"ZZZ__FnCalls!F80","v":"Feb 2016"},{"$f":"ZZZ__FnCalls!F81","v":"Mar 2016"},{"$f":"ZZZ__FnCalls!F82","v":"Apr 2016"},{"$f":"ZZZ__FnCalls!F83","v":"May 2016"},{"$f":"ZZZ__FnCalls!F84","v":"Jun 2016"},{"$f":"ZZZ__FnCalls!F85","v":"Jul 2016"},{"$f":"ZZZ__FnCalls!F86","v":"Aug 2016"},{"$f":"ZZZ__FnCalls!F87","v":"Sep 2016"},{"$f":"ZZZ__FnCalls!F88","v":"Oct 2016"},{"$f":"ZZZ__FnCalls!F89","v":"Nov 2016"},{"$f":"ZZZ__FnCalls!F90","v":"Dec 2016"},{"$f":"ZZZ__FnCalls!H79","v":"2016"},{"$f":"ZZZ__FnCalls!F91","v":"Jan 2017"},{"$f":"ZZZ__FnCalls!F92","v":"Feb 2017"},{"$f":"ZZZ__FnCalls!F93","v":"Mar 2017"},{"$f":"ZZZ__FnCalls!F94","v":"Apr 2017"},{"$f":"ZZZ__FnCalls!F95","v":"May 2017"},{"$f":"ZZZ__FnCalls!F96","v":"Jun 2017"},{"$f":"ZZZ__FnCalls!F97","v":"Jul 2017"},{"$f":"ZZZ__FnCalls!F98","v":"Aug 2017"},{"$f":"ZZZ__FnCalls!F99","v":"Sep 2017"},{"$f":"ZZZ__FnCalls!F100","v":"Oct 2017"},{"$f":"ZZZ__FnCalls!F101","v":"Nov 2017"},{"$f":"ZZZ__FnCalls!F102","v":"Dec 2017"},{"$f":"ZZZ__FnCalls!H91","v":"2017"},{"$f":"ZZZ__FnCalls!F103","v":"Jan 2018"},{"$f":"ZZZ__FnCalls!F104","v":"Feb 2018"},{"$f":"ZZZ__FnCalls!F105","v":"Mar 2018"},{"$f":"ZZZ__FnCalls!F106","v":"Apr 2018"},{"$f":"ZZZ__FnCalls!F107","v":"May 2018"},{"$f":"ZZZ__FnCalls!F108","v":"Jun 2018"},{"$f":"ZZZ__FnCalls!F109","v":"Jul 2018"},{"$f":"ZZZ__FnCalls!F110","v":"Aug 2018"},{"$f":"ZZZ__FnCalls!F111","v":"Sep 2018"},{"$f":"ZZZ__FnCalls!F112","v":"Oct 2018"},{"$f":"ZZZ__FnCalls!F113","v":"Nov 2018"},{"$f":"ZZZ__FnCalls!F114","v":"Dec 2018"},{"$f":"ZZZ__FnCalls!H103","v":"2018"},{"$f":"ZZZ__FnCalls!F115","v":"Jan 2019"},{"$f":"ZZZ__FnCalls!F116","v":"Feb 2019"},{"$f":"ZZZ__FnCalls!F117","v":"Mar 2019"},{"$f":"ZZZ__FnCalls!F118","v":"Apr 2019"},{"$f":"ZZZ__FnCalls!F119","v":"May 2019"},{"$f":"ZZZ__FnCalls!F120","v":"Jun 2019"},{"$f":"ZZZ__FnCalls!F121","v":"Jul 2019"},{"$f":"ZZZ__FnCalls!F122","v":"Aug 2019"},{"$f":"ZZZ__FnCalls!F123","v":"Sep 2019"},{"$f":"ZZZ__FnCalls!F124","v":"Oct 2019"},{"$f":"ZZZ__FnCalls!F125","v":"Nov 2019"},{"$f":"ZZZ__FnCalls!F126","v":"Dec 2019"},{"$f":"ZZZ__FnCalls!H115","v":"2019"},{"$f":"ZZZ__FnCalls!F127","v":"Jan 2020"},{"$f":"ZZZ__FnCalls!F128","v":"Feb 2020"},{"$f":"ZZZ__FnCalls!F129","v":"Mar 2020"},{"$f":"ZZZ__FnCalls!F130","v":"Apr 2020"},{"$f":"ZZZ__FnCalls!F131","v":"May 2020"},{"$f":"ZZZ__FnCalls!F132","v":"Jun 2020"},{"$f":"ZZZ__FnCalls!F133","v":"Jul 2020"},{"$f":"ZZZ__FnCalls!F134","v":"Aug 2020"},{"$f":"ZZZ__FnCalls!F135","v":"Sep 2020"},{"$f":"ZZZ__FnCalls!F136","v":"Oct 2020"},{"$f":"ZZZ__FnCalls!F137","v":"Nov 2020"},{"$f":"ZZZ__FnCalls!F138","v":"Dec 2020"},{"$f":"ZZZ__FnCalls!H127","v":"2020"}]
[null,{"$f":"ZZZ__FnCalls!F7","v":"Jan 2010"},{"$f":"ZZZ__FnCalls!F8","v":"Feb 2010"},{"$f":"ZZZ__FnCalls!F9","v":"Mar 2010"},{"$f":"ZZZ__FnCalls!F10","v":"Apr 2010"},{"$f":"ZZZ__FnCalls!F11","v":"May 2010"},{"$f":"ZZZ__FnCalls!F12","v":"Jun 2010"},{"$f":"ZZZ__FnCalls!F13","v":"Jul 2010"},{"$f":"ZZZ__FnCalls!F14","v":"Aug 2010"},{"$f":"ZZZ__FnCalls!F15","v":"Sep 2010"},{"$f":"ZZZ__FnCalls!F16","v":"Oct 2010"},{"$f":"ZZZ__FnCalls!F17","v":"Nov 2010"},{"$f":"ZZZ__FnCalls!F18","v":"Dec 2010"},{"$f":"ZZZ__FnCalls!F7","v":"Jan 2010"},{"$f":"ZZZ__FnCalls!F19","v":"Jan 2011"},{"$f":"ZZZ__FnCalls!F20","v":"Feb 2011"},{"$f":"ZZZ__FnCalls!F21","v":"Mar 2011"},{"$f":"ZZZ__FnCalls!F22","v":"Apr 2011"},{"$f":"ZZZ__FnCalls!F23","v":"May 2011"},{"$f":"ZZZ__FnCalls!F24","v":"Jun 2011"},{"$f":"ZZZ__FnCalls!F25","v":"Jul 2011"},{"$f":"ZZZ__FnCalls!F26","v":"Aug 2011"},{"$f":"ZZZ__FnCalls!F27","v":"Sep 2011"},{"$f":"ZZZ__FnCalls!F28","v":"Oct 2011"},{"$f":"ZZZ__FnCalls!F29","v":"Nov 2011"},{"$f":"ZZZ__FnCalls!F30","v":"Dec 2011"},{"$f":"ZZZ__FnCalls!F19","v":"Jan 2011"},{"$f":"ZZZ__FnCalls!F31","v":"Jan 2012"},{"$f":"ZZZ__FnCalls!F32","v":"Feb 2012"},{"$f":"ZZZ__FnCalls!F33","v":"Mar 2012"},{"$f":"ZZZ__FnCalls!F34","v":"Apr 2012"},{"$f":"ZZZ__FnCalls!F35","v":"May 2012"},{"$f":"ZZZ__FnCalls!F36","v":"Jun 2012"},{"$f":"ZZZ__FnCalls!F37","v":"Jul 2012"},{"$f":"ZZZ__FnCalls!F38","v":"Aug 2012"},{"$f":"ZZZ__FnCalls!F39","v":"Sep 2012"},{"$f":"ZZZ__FnCalls!F40","v":"Oct 2012"},{"$f":"ZZZ__FnCalls!F41","v":"Nov 2012"},{"$f":"ZZZ__FnCalls!F42","v":"Dec 2012"},{"$f":"ZZZ__FnCalls!F31","v":"Jan 2012"},{"$f":"ZZZ__FnCalls!F43","v":"Jan 2013"},{"$f":"ZZZ__FnCalls!F44","v":"Feb 2013"},{"$f":"ZZZ__FnCalls!F45","v":"Mar 2013"},{"$f":"ZZZ__FnCalls!F46","v":"Apr 2013"},{"$f":"ZZZ__FnCalls!F47","v":"May 2013"},{"$f":"ZZZ__FnCalls!F48","v":"Jun 2013"},{"$f":"ZZZ__FnCalls!F49","v":"Jul 2013"},{"$f":"ZZZ__FnCalls!F50","v":"Aug 2013"},{"$f":"ZZZ__FnCalls!F51","v":"Sep 2013"},{"$f":"ZZZ__FnCalls!F52","v":"Oct 2013"},{"$f":"ZZZ__FnCalls!F53","v":"Nov 2013"},{"$f":"ZZZ__FnCalls!F54","v":"Dec 2013"},{"$f":"ZZZ__FnCalls!F43","v":"Jan 2013"},{"$f":"ZZZ__FnCalls!F55","v":"Jan 2014"},{"$f":"ZZZ__FnCalls!F56","v":"Feb 2014"},{"$f":"ZZZ__FnCalls!F57","v":"Mar 2014"},{"$f":"ZZZ__FnCalls!F58","v":"Apr 2014"},{"$f":"ZZZ__FnCalls!F59","v":"May 2014"},{"$f":"ZZZ__FnCalls!F60","v":"Jun 2014"},{"$f":"ZZZ__FnCalls!F61","v":"Jul 2014"},{"$f":"ZZZ__FnCalls!F62","v":"Aug 2014"},{"$f":"ZZZ__FnCalls!F63","v":"Sep 2014"},{"$f":"ZZZ__FnCalls!F64","v":"Oct 2014"},{"$f":"ZZZ__FnCalls!F65","v":"Nov 2014"},{"$f":"ZZZ__FnCalls!F66","v":"Dec 2014"},{"$f":"ZZZ__FnCalls!F55","v":"Jan 2014"},{"$f":"ZZZ__FnCalls!F67","v":"Jan 2015"},{"$f":"ZZZ__FnCalls!F68","v":"Feb 2015"},{"$f":"ZZZ__FnCalls!F69","v":"Mar 2015"},{"$f":"ZZZ__FnCalls!F70","v":"Apr 2015"},{"$f":"ZZZ__FnCalls!F71","v":"May 2015"},{"$f":"ZZZ__FnCalls!F72","v":"Jun 2015"},{"$f":"ZZZ__FnCalls!F73","v":"Jul 2015"},{"$f":"ZZZ__FnCalls!F74","v":"Aug 2015"},{"$f":"ZZZ__FnCalls!F75","v":"Sep 2015"},{"$f":"ZZZ__FnCalls!F76","v":"Oct 2015"},{"$f":"ZZZ__FnCalls!F77","v":"Nov 2015"},{"$f":"ZZZ__FnCalls!F78","v":"Dec 2015"},{"$f":"ZZZ__FnCalls!F67","v":"Jan 2015"},{"$f":"ZZZ__FnCalls!F79","v":"Jan 2016"},{"$f":"ZZZ__FnCalls!F80","v":"Feb 2016"},{"$f":"ZZZ__FnCalls!F81","v":"Mar 2016"},{"$f":"ZZZ__FnCalls!F82","v":"Apr 2016"},{"$f":"ZZZ__FnCalls!F83","v":"May 2016"},{"$f":"ZZZ__FnCalls!F84","v":"Jun 2016"},{"$f":"ZZZ__FnCalls!F85","v":"Jul 2016"},{"$f":"ZZZ__FnCalls!F86","v":"Aug 2016"},{"$f":"ZZZ__FnCalls!F87","v":"Sep 2016"},{"$f":"ZZZ__FnCalls!F88","v":"Oct 2016"},{"$f":"ZZZ__FnCalls!F89","v":"Nov 2016"},{"$f":"ZZZ__FnCalls!F90","v":"Dec 2016"},{"$f":"ZZZ__FnCalls!F79","v":"Jan 2016"},{"$f":"ZZZ__FnCalls!F91","v":"Jan 2017"},{"$f":"ZZZ__FnCalls!F92","v":"Feb 2017"},{"$f":"ZZZ__FnCalls!F93","v":"Mar 2017"},{"$f":"ZZZ__FnCalls!F94","v":"Apr 2017"},{"$f":"ZZZ__FnCalls!F95","v":"May 2017"},{"$f":"ZZZ__FnCalls!F96","v":"Jun 2017"},{"$f":"ZZZ__FnCalls!F97","v":"Jul 2017"},{"$f":"ZZZ__FnCalls!F98","v":"Aug 2017"},{"$f":"ZZZ__FnCalls!F99","v":"Sep 2017"},{"$f":"ZZZ__FnCalls!F100","v":"Oct 2017"},{"$f":"ZZZ__FnCalls!F101","v":"Nov 2017"},{"$f":"ZZZ__FnCalls!F102","v":"Dec 2017"},{"$f":"ZZZ__FnCalls!F91","v":"Jan 2017"},{"$f":"ZZZ__FnCalls!F103","v":"Jan 2018"},{"$f":"ZZZ__FnCalls!F104","v":"Feb 2018"},{"$f":"ZZZ__FnCalls!F105","v":"Mar 2018"},{"$f":"ZZZ__FnCalls!F106","v":"Apr 2018"},{"$f":"ZZZ__FnCalls!F107","v":"May 2018"},{"$f":"ZZZ__FnCalls!F108","v":"Jun 2018"},{"$f":"ZZZ__FnCalls!F109","v":"Jul 2018"},{"$f":"ZZZ__FnCalls!F110","v":"Aug 2018"},{"$f":"ZZZ__FnCalls!F111","v":"Sep 2018"},{"$f":"ZZZ__FnCalls!F112","v":"Oct 2018"},{"$f":"ZZZ__FnCalls!F113","v":"Nov 2018"},{"$f":"ZZZ__FnCalls!F114","v":"Dec 2018"},{"$f":"ZZZ__FnCalls!F103","v":"Jan 2018"},{"$f":"ZZZ__FnCalls!F115","v":"Jan 2019"},{"$f":"ZZZ__FnCalls!F116","v":"Feb 2019"},{"$f":"ZZZ__FnCalls!F117","v":"Mar 2019"},{"$f":"ZZZ__FnCalls!F118","v":"Apr 2019"},{"$f":"ZZZ__FnCalls!F119","v":"May 2019"},{"$f":"ZZZ__FnCalls!F120","v":"Jun 2019"},{"$f":"ZZZ__FnCalls!F121","v":"Jul 2019"},{"$f":"ZZZ__FnCalls!F122","v":"Aug 2019"},{"$f":"ZZZ__FnCalls!F123","v":"Sep 2019"},{"$f":"ZZZ__FnCalls!F124","v":"Oct 2019"},{"$f":"ZZZ__FnCalls!F125","v":"Nov 2019"},{"$f":"ZZZ__FnCalls!F126","v":"Dec 2019"},{"$f":"ZZZ__FnCalls!F115","v":"Jan 2019"},{"$f":"ZZZ__FnCalls!F127","v":"Jan 2020"},{"$f":"ZZZ__FnCalls!F128","v":"Feb 2020"},{"$f":"ZZZ__FnCalls!F129","v":"Mar 2020"},{"$f":"ZZZ__FnCalls!F130","v":"Apr 2020"},{"$f":"ZZZ__FnCalls!F131","v":"May 2020"},{"$f":"ZZZ__FnCalls!F132","v":"Jun 2020"},{"$f":"ZZZ__FnCalls!F133","v":"Jul 2020"},{"$f":"ZZZ__FnCalls!F134","v":"Aug 2020"},{"$f":"ZZZ__FnCalls!F135","v":"Sep 2020"},{"$f":"ZZZ__FnCalls!F136","v":"Oct 2020"},{"$f":"ZZZ__FnCalls!F137","v":"Nov 2020"},{"$f":"ZZZ__FnCalls!F138","v":"Dec 2020"},{"$f":"ZZZ__FnCalls!F127","v":"Jan 2020"}]
[{"$f":"\"Demand_Expected_Long_mean_1\"","v":"Demand_Expected_Long_mean_1"}]
[null,{"$f":"ZZZ__FnCalls!F7","v":"Jan 2010"},{"$f":"ZZZ__FnCalls!F8","v":"Feb 2010"},{"$f":"ZZZ__FnCalls!F9","v":"Mar 2010"},{"$f":"ZZZ__FnCalls!F10","v":"Apr 2010"},{"$f":"ZZZ__FnCalls!F11","v":"May 2010"},{"$f":"ZZZ__FnCalls!F12","v":"Jun 2010"},{"$f":"ZZZ__FnCalls!F13","v":"Jul 2010"},{"$f":"ZZZ__FnCalls!F14","v":"Aug 2010"},{"$f":"ZZZ__FnCalls!F15","v":"Sep 2010"},{"$f":"ZZZ__FnCalls!F16","v":"Oct 2010"},{"$f":"ZZZ__FnCalls!F17","v":"Nov 2010"},{"$f":"ZZZ__FnCalls!F18","v":"Dec 2010"},{"$f":"ZZZ__FnCalls!H7","v":"2010"},{"$f":"ZZZ__FnCalls!F19","v":"Jan 2011"},{"$f":"ZZZ__FnCalls!F20","v":"Feb 2011"},{"$f":"ZZZ__FnCalls!F21","v":"Mar 2011"},{"$f":"ZZZ__FnCalls!F22","v":"Apr 2011"},{"$f":"ZZZ__FnCalls!F23","v":"May 2011"},{"$f":"ZZZ__FnCalls!F24","v":"Jun 2011"},{"$f":"ZZZ__FnCalls!F25","v":"Jul 2011"},{"$f":"ZZZ__FnCalls!F26","v":"Aug 2011"},{"$f":"ZZZ__FnCalls!F27","v":"Sep 2011"},{"$f":"ZZZ__FnCalls!F28","v":"Oct 2011"},{"$f":"ZZZ__FnCalls!F29","v":"Nov 2011"},{"$f":"ZZZ__FnCalls!F30","v":"Dec 2011"},{"$f":"ZZZ__FnCalls!H19","v":"2011"},{"$f":"ZZZ__FnCalls!F31","v":"Jan 2012"},{"$f":"ZZZ__FnCalls!F32","v":"Feb 2012"},{"$f":"ZZZ__FnCalls!F33","v":"Mar 2012"},{"$f":"ZZZ__FnCalls!F34","v":"Apr 2012"},{"$f":"ZZZ__FnCalls!F35","v":"May 2012"},{"$f":"ZZZ__FnCalls!F36","v":"Jun 2012"},{"$f":"ZZZ__FnCalls!F37","v":"Jul 2012"},{"$f":"ZZZ__FnCalls!F38","v":"Aug 2012"},{"$f":"ZZZ__FnCalls!F39","v":"Sep 2012"},{"$f":"ZZZ__FnCalls!F40","v":"Oct 2012"},{"$f":"ZZZ__FnCalls!F41","v":"Nov 2012"},{"$f":"ZZZ__FnCalls!F42","v":"Dec 2012"},{"$f":"ZZZ__FnCalls!H31","v":"2012"},{"$f":"ZZZ__FnCalls!F43","v":"Jan 2013"},{"$f":"ZZZ__FnCalls!F44","v":"Feb 2013"},{"$f":"ZZZ__FnCalls!F45","v":"Mar 2013"},{"$f":"ZZZ__FnCalls!F46","v":"Apr 2013"},{"$f":"ZZZ__FnCalls!F47","v":"May 2013"},{"$f":"ZZZ__FnCalls!F48","v":"Jun 2013"},{"$f":"ZZZ__FnCalls!F49","v":"Jul 2013"},{"$f":"ZZZ__FnCalls!F50","v":"Aug 2013"},{"$f":"ZZZ__FnCalls!F51","v":"Sep 2013"},{"$f":"ZZZ__FnCalls!F52","v":"Oct 2013"},{"$f":"ZZZ__FnCalls!F53","v":"Nov 2013"},{"$f":"ZZZ__FnCalls!F54","v":"Dec 2013"},{"$f":"ZZZ__FnCalls!H43","v":"2013"},{"$f":"ZZZ__FnCalls!F55","v":"Jan 2014"},{"$f":"ZZZ__FnCalls!F56","v":"Feb 2014"},{"$f":"ZZZ__FnCalls!F57","v":"Mar 2014"},{"$f":"ZZZ__FnCalls!F58","v":"Apr 2014"},{"$f":"ZZZ__FnCalls!F59","v":"May 2014"},{"$f":"ZZZ__FnCalls!F60","v":"Jun 2014"},{"$f":"ZZZ__FnCalls!F61","v":"Jul 2014"},{"$f":"ZZZ__FnCalls!F62","v":"Aug 2014"},{"$f":"ZZZ__FnCalls!F63","v":"Sep 2014"},{"$f":"ZZZ__FnCalls!F64","v":"Oct 2014"},{"$f":"ZZZ__FnCalls!F65","v":"Nov 2014"},{"$f":"ZZZ__FnCalls!F66","v":"Dec 2014"},{"$f":"ZZZ__FnCalls!H55","v":"2014"},{"$f":"ZZZ__FnCalls!F67","v":"Jan 2015"},{"$f":"ZZZ__FnCalls!F68","v":"Feb 2015"},{"$f":"ZZZ__FnCalls!F69","v":"Mar 2015"},{"$f":"ZZZ__FnCalls!F70","v":"Apr 2015"},{"$f":"ZZZ__FnCalls!F71","v":"May 2015"},{"$f":"ZZZ__FnCalls!F72","v":"Jun 2015"},{"$f":"ZZZ__FnCalls!F73","v":"Jul 2015"},{"$f":"ZZZ__FnCalls!F74","v":"Aug 2015"},{"$f":"ZZZ__FnCalls!F75","v":"Sep 2015"},{"$f":"ZZZ__FnCalls!F76","v":"Oct 2015"},{"$f":"ZZZ__FnCalls!F77","v":"Nov 2015"},{"$f":"ZZZ__FnCalls!F78","v":"Dec 2015"},{"$f":"ZZZ__FnCalls!H67","v":"2015"},{"$f":"ZZZ__FnCalls!F79","v":"Jan 2016"},{"$f":"ZZZ__FnCalls!F80","v":"Feb 2016"},{"$f":"ZZZ__FnCalls!F81","v":"Mar 2016"},{"$f":"ZZZ__FnCalls!F82","v":"Apr 2016"},{"$f":"ZZZ__FnCalls!F83","v":"May 2016"},{"$f":"ZZZ__FnCalls!F84","v":"Jun 2016"},{"$f":"ZZZ__FnCalls!F85","v":"Jul 2016"},{"$f":"ZZZ__FnCalls!F86","v":"Aug 2016"},{"$f":"ZZZ__FnCalls!F87","v":"Sep 2016"},{"$f":"ZZZ__FnCalls!F88","v":"Oct 2016"},{"$f":"ZZZ__FnCalls!F89","v":"Nov 2016"},{"$f":"ZZZ__FnCalls!F90","v":"Dec 2016"},{"$f":"ZZZ__FnCalls!H79","v":"2016"},{"$f":"ZZZ__FnCalls!F91","v":"Jan 2017"},{"$f":"ZZZ__FnCalls!F92","v":"Feb 2017"},{"$f":"ZZZ__FnCalls!F93","v":"Mar 2017"},{"$f":"ZZZ__FnCalls!F94","v":"Apr 2017"},{"$f":"ZZZ__FnCalls!F95","v":"May 2017"},{"$f":"ZZZ__FnCalls!F96","v":"Jun 2017"},{"$f":"ZZZ__FnCalls!F97","v":"Jul 2017"},{"$f":"ZZZ__FnCalls!F98","v":"Aug 2017"},{"$f":"ZZZ__FnCalls!F99","v":"Sep 2017"},{"$f":"ZZZ__FnCalls!F100","v":"Oct 2017"},{"$f":"ZZZ__FnCalls!F101","v":"Nov 2017"},{"$f":"ZZZ__FnCalls!F102","v":"Dec 2017"},{"$f":"ZZZ__FnCalls!H91","v":"2017"},{"$f":"ZZZ__FnCalls!F103","v":"Jan 2018"},{"$f":"ZZZ__FnCalls!F104","v":"Feb 2018"},{"$f":"ZZZ__FnCalls!F105","v":"Mar 2018"},{"$f":"ZZZ__FnCalls!F106","v":"Apr 2018"},{"$f":"ZZZ__FnCalls!F107","v":"May 2018"},{"$f":"ZZZ__FnCalls!F108","v":"Jun 2018"},{"$f":"ZZZ__FnCalls!F109","v":"Jul 2018"},{"$f":"ZZZ__FnCalls!F110","v":"Aug 2018"},{"$f":"ZZZ__FnCalls!F111","v":"Sep 2018"},{"$f":"ZZZ__FnCalls!F112","v":"Oct 2018"},{"$f":"ZZZ__FnCalls!F113","v":"Nov 2018"},{"$f":"ZZZ__FnCalls!F114","v":"Dec 2018"},{"$f":"ZZZ__FnCalls!H103","v":"2018"},{"$f":"ZZZ__FnCalls!F115","v":"Jan 2019"},{"$f":"ZZZ__FnCalls!F116","v":"Feb 2019"},{"$f":"ZZZ__FnCalls!F117","v":"Mar 2019"},{"$f":"ZZZ__FnCalls!F118","v":"Apr 2019"},{"$f":"ZZZ__FnCalls!F119","v":"May 2019"},{"$f":"ZZZ__FnCalls!F120","v":"Jun 2019"},{"$f":"ZZZ__FnCalls!F121","v":"Jul 2019"},{"$f":"ZZZ__FnCalls!F122","v":"Aug 2019"},{"$f":"ZZZ__FnCalls!F123","v":"Sep 2019"},{"$f":"ZZZ__FnCalls!F124","v":"Oct 2019"},{"$f":"ZZZ__FnCalls!F125","v":"Nov 2019"},{"$f":"ZZZ__FnCalls!F126","v":"Dec 2019"},{"$f":"ZZZ__FnCalls!H115","v":"2019"},{"$f":"ZZZ__FnCalls!F127","v":"Jan 2020"},{"$f":"ZZZ__FnCalls!F128","v":"Feb 2020"},{"$f":"ZZZ__FnCalls!F129","v":"Mar 2020"},{"$f":"ZZZ__FnCalls!F130","v":"Apr 2020"},{"$f":"ZZZ__FnCalls!F131","v":"May 2020"},{"$f":"ZZZ__FnCalls!F132","v":"Jun 2020"},{"$f":"ZZZ__FnCalls!F133","v":"Jul 2020"},{"$f":"ZZZ__FnCalls!F134","v":"Aug 2020"},{"$f":"ZZZ__FnCalls!F135","v":"Sep 2020"},{"$f":"ZZZ__FnCalls!F136","v":"Oct 2020"},{"$f":"ZZZ__FnCalls!F137","v":"Nov 2020"},{"$f":"ZZZ__FnCalls!F138","v":"Dec 2020"},{"$f":"ZZZ__FnCalls!H127","v":"2020"}]
[null,{"$f":"ZZZ__FnCalls!A7","v":"2010-01-01"},{"$f":"ZZZ__FnCalls!A8","v":"2010-02-01"},{"$f":"ZZZ__FnCalls!A9","v":"2010-03-01"},{"$f":"ZZZ__FnCalls!A10","v":"2010-04-01"},{"$f":"ZZZ__FnCalls!A11","v":"2010-05-01"},{"$f":"ZZZ__FnCalls!A12","v":"2010-06-01"},{"$f":"ZZZ__FnCalls!A13","v":"2010-07-01"},{"$f":"ZZZ__FnCalls!A14","v":"2010-08-01"},{"$f":"ZZZ__FnCalls!A15","v":"2010-09-01"},{"$f":"ZZZ__FnCalls!A16","v":"2010-10-01"},{"$f":"ZZZ__FnCalls!A17","v":"2010-11-01"},{"$f":"ZZZ__FnCalls!A18","v":"2010-12-01"},{"$f":"ZZZ__FnCalls!A7","v":"2010-01-01"},{"$f":"ZZZ__FnCalls!A19","v":"2011-01-01"},{"$f":"ZZZ__FnCalls!A20","v":"2011-02-01"},{"$f":"ZZZ__FnCalls!A21","v":"2011-03-01"},{"$f":"ZZZ__FnCalls!A22","v":"2011-04-01"},{"$f":"ZZZ__FnCalls!A23","v":"2011-05-01"},{"$f":"ZZZ__FnCalls!A24","v":"2011-06-01"},{"$f":"ZZZ__FnCalls!A25","v":"2011-07-01"},{"$f":"ZZZ__FnCalls!A26","v":"2011-08-01"},{"$f":"ZZZ__FnCalls!A27","v":"2011-09-01"},{"$f":"ZZZ__FnCalls!A28","v":"2011-10-01"},{"$f":"ZZZ__FnCalls!A29","v":"2011-11-01"},{"$f":"ZZZ__FnCalls!A30","v":"2011-12-01"},{"$f":"ZZZ__FnCalls!A19","v":"2011-01-01"},{"$f":"ZZZ__FnCalls!A31","v":"2012-01-01"},{"$f":"ZZZ__FnCalls!A32","v":"2012-02-01"},{"$f":"ZZZ__FnCalls!A33","v":"2012-03-01"},{"$f":"ZZZ__FnCalls!A34","v":"2012-04-01"},{"$f":"ZZZ__FnCalls!A35","v":"2012-05-01"},{"$f":"ZZZ__FnCalls!A36","v":"2012-06-01"},{"$f":"ZZZ__FnCalls!A37","v":"2012-07-01"},{"$f":"ZZZ__FnCalls!A38","v":"2012-08-01"},{"$f":"ZZZ__FnCalls!A39","v":"2012-09-01"},{"$f":"ZZZ__FnCalls!A40","v":"2012-10-01"},{"$f":"ZZZ__FnCalls!A41","v":"2012-11-01"},{"$f":"ZZZ__FnCalls!A42","v":"2012-12-01"},{"$f":"ZZZ__FnCalls!A31","v":"2012-01-01"},{"$f":"ZZZ__FnCalls!A43","v":"2013-01-01"},{"$f":"ZZZ__FnCalls!A44","v":"2013-02-01"},{"$f":"ZZZ__FnCalls!A45","v":"2013-03-01"},{"$f":"ZZZ__FnCalls!A46","v":"2013-04-01"},{"$f":"ZZZ__FnCalls!A47","v":"2013-05-01"},{"$f":"ZZZ__FnCalls!A48","v":"2013-06-01"},{"$f":"ZZZ__FnCalls!A49","v":"2013-07-01"},{"$f":"ZZZ__FnCalls!A50","v":"2013-08-01"},{"$f":"ZZZ__FnCalls!A51","v":"2013-09-01"},{"$f":"ZZZ__FnCalls!A52","v":"2013-10-01"},{"$f":"ZZZ__FnCalls!A53","v":"2013-11-01"},{"$f":"ZZZ__FnCalls!A54","v":"2013-12-01"},{"$f":"ZZZ__FnCalls!A43","v":"2013-01-01"},{"$f":"ZZZ__FnCalls!A55","v":"2014-01-01"},{"$f":"ZZZ__FnCalls!A56","v":"2014-02-01"},{"$f":"ZZZ__FnCalls!A57","v":"2014-03-01"},{"$f":"ZZZ__FnCalls!A58","v":"2014-04-01"},{"$f":"ZZZ__FnCalls!A59","v":"2014-05-01"},{"$f":"ZZZ__FnCalls!A60","v":"2014-06-01"},{"$f":"ZZZ__FnCalls!A61","v":"2014-07-01"},{"$f":"ZZZ__FnCalls!A62","v":"2014-08-01"},{"$f":"ZZZ__FnCalls!A63","v":"2014-09-01"},{"$f":"ZZZ__FnCalls!A64","v":"2014-10-01"},{"$f":"ZZZ__FnCalls!A65","v":"2014-11-01"},{"$f":"ZZZ__FnCalls!A66","v":"2014-12-01"},{"$f":"ZZZ__FnCalls!A55","v":"2014-01-01"},{"$f":"ZZZ__FnCalls!A67","v":"2015-01-01"},{"$f":"ZZZ__FnCalls!A68","v":"2015-02-01"},{"$f":"ZZZ__FnCalls!A69","v":"2015-03-01"},{"$f":"ZZZ__FnCalls!A70","v":"2015-04-01"},{"$f":"ZZZ__FnCalls!A71","v":"2015-05-01"},{"$f":"ZZZ__FnCalls!A72","v":"2015-06-01"},{"$f":"ZZZ__FnCalls!A73","v":"2015-07-01"},{"$f":"ZZZ__FnCalls!A74","v":"2015-08-01"},{"$f":"ZZZ__FnCalls!A75","v":"2015-09-01"},{"$f":"ZZZ__FnCalls!A76","v":"2015-10-01"},{"$f":"ZZZ__FnCalls!A77","v":"2015-11-01"},{"$f":"ZZZ__FnCalls!A78","v":"2015-12-01"},{"$f":"ZZZ__FnCalls!A67","v":"2015-01-01"},{"$f":"ZZZ__FnCalls!A79","v":"2016-01-01"},{"$f":"ZZZ__FnCalls!A80","v":"2016-02-01"},{"$f":"ZZZ__FnCalls!A81","v":"2016-03-01"},{"$f":"ZZZ__FnCalls!A82","v":"2016-04-01"},{"$f":"ZZZ__FnCalls!A83","v":"2016-05-01"},{"$f":"ZZZ__FnCalls!A84","v":"2016-06-01"},{"$f":"ZZZ__FnCalls!A85","v":"2016-07-01"},{"$f":"ZZZ__FnCalls!A86","v":"2016-08-01"},{"$f":"ZZZ__FnCalls!A87","v":"2016-09-01"},{"$f":"ZZZ__FnCalls!A88","v":"2016-10-01"},{"$f":"ZZZ__FnCalls!A89","v":"2016-11-01"},{"$f":"ZZZ__FnCalls!A90","v":"2016-12-01"},{"$f":"ZZZ__FnCalls!A79","v":"2016-01-01"},{"$f":"ZZZ__FnCalls!A91","v":"2017-01-01"},{"$f":"ZZZ__FnCalls!A92","v":"2017-02-01"},{"$f":"ZZZ__FnCalls!A93","v":"2017-03-01"},{"$f":"ZZZ__FnCalls!A94","v":"2017-04-01"},{"$f":"ZZZ__FnCalls!A95","v":"2017-05-01"},{"$f":"ZZZ__FnCalls!A96","v":"2017-06-01"},{"$f":"ZZZ__FnCalls!A97","v":"2017-07-01"},{"$f":"ZZZ__FnCalls!A98","v":"2017-08-01"},{"$f":"ZZZ__FnCalls!A99","v":"2017-09-01"},{"$f":"ZZZ__FnCalls!A100","v":"2017-10-01"},{"$f":"ZZZ__FnCalls!A101","v":"2017-11-01"},{"$f":"ZZZ__FnCalls!A102","v":"2017-12-01"},{"$f":"ZZZ__FnCalls!A91","v":"2017-01-01"},{"$f":"ZZZ__FnCalls!A103","v":"2018-01-01"},{"$f":"ZZZ__FnCalls!A104","v":"2018-02-01"},{"$f":"ZZZ__FnCalls!A105","v":"2018-03-01"},{"$f":"ZZZ__FnCalls!A106","v":"2018-04-01"},{"$f":"ZZZ__FnCalls!A107","v":"2018-05-01"},{"$f":"ZZZ__FnCalls!A108","v":"2018-06-01"},{"$f":"ZZZ__FnCalls!A109","v":"2018-07-01"},{"$f":"ZZZ__FnCalls!A110","v":"2018-08-01"},{"$f":"ZZZ__FnCalls!A111","v":"2018-09-01"},{"$f":"ZZZ__FnCalls!A112","v":"2018-10-01"},{"$f":"ZZZ__FnCalls!A113","v":"2018-11-01"},{"$f":"ZZZ__FnCalls!A114","v":"2018-12-01"},{"$f":"ZZZ__FnCalls!A103","v":"2018-01-01"},{"$f":"ZZZ__FnCalls!A115","v":"2019-01-01"},{"$f":"ZZZ__FnCalls!A116","v":"2019-02-01"},{"$f":"ZZZ__FnCalls!A117","v":"2019-03-01"},{"$f":"ZZZ__FnCalls!A118","v":"2019-04-01"},{"$f":"ZZZ__FnCalls!A119","v":"2019-05-01"},{"$f":"ZZZ__FnCalls!A120","v":"2019-06-01"},{"$f":"ZZZ__FnCalls!A121","v":"2019-07-01"},{"$f":"ZZZ__FnCalls!A122","v":"2019-08-01"},{"$f":"ZZZ__FnCalls!A123","v":"2019-09-01"},{"$f":"ZZZ__FnCalls!A124","v":"2019-10-01"},{"$f":"ZZZ__FnCalls!A125","v":"2019-11-01"},{"$f":"ZZZ__FnCalls!A126","v":"2019-12-01"},{"$f":"ZZZ__FnCalls!A115","v":"2019-01-01"},{"$f":"ZZZ__FnCalls!A127","v":"2020-01-01"},{"$f":"ZZZ__FnCalls!A128","v":"2020-02-01"},{"$f":"ZZZ__FnCalls!A129","v":"2020-03-01"},{"$f":"ZZZ__FnCalls!A130","v":"2020-04-01"},{"$f":"ZZZ__FnCalls!A131","v":"2020-05-01"},{"$f":"ZZZ__FnCalls!A132","v":"2020-06-01"},{"$f":"ZZZ__FnCalls!A133","v":"2020-07-01"},{"$f":"ZZZ__FnCalls!A134","v":"2020-08-01"},{"$f":"ZZZ__FnCalls!A135","v":"2020-09-01"},{"$f":"ZZZ__FnCalls!A136","v":"2020-10-01"},{"$f":"ZZZ__FnCalls!A137","v":"2020-11-01"},{"$f":"ZZZ__FnCalls!A138","v":"2020-12-01"},{"$f":"ZZZ__FnCalls!A127","v":"2020-01-01"}]
[{"$f":"\"Demand_Expected_Long_mean_2\"","v":"Demand_Expected_Long_mean_2"}]
[null,{"$f":"ZZZ__FnCalls!F7","v":"Jan 2010"},{"$f":"ZZZ__FnCalls!F8","v":"Feb 2010"},{"$f":"ZZZ__FnCalls!F9","v":"Mar 2010"},{"$f":"ZZZ__FnCalls!F10","v":"Apr 2010"},{"$f":"ZZZ__FnCalls!F11","v":"May 2010"},{"$f":"ZZZ__FnCalls!F12","v":"Jun 2010"},{"$f":"ZZZ__FnCalls!F13","v":"Jul 2010"},{"$f":"ZZZ__FnCalls!F14","v":"Aug 2010"},{"$f":"ZZZ__FnCalls!F15","v":"Sep 2010"},{"$f":"ZZZ__FnCalls!F16","v":"Oct 2010"},{"$f":"ZZZ__FnCalls!F17","v":"Nov 2010"},{"$f":"ZZZ__FnCalls!F18","v":"Dec 2010"},{"$f":"ZZZ__FnCalls!H7","v":"2010"},{"$f":"ZZZ__FnCalls!F19","v":"Jan 2011"},{"$f":"ZZZ__FnCalls!F20","v":"Feb 2011"},{"$f":"ZZZ__FnCalls!F21","v":"Mar 2011"},{"$f":"ZZZ__FnCalls!F22","v":"Apr 2011"},{"$f":"ZZZ__FnCalls!F23","v":"May 2011"},{"$f":"ZZZ__FnCalls!F24","v":"Jun 2011"},{"$f":"ZZZ__FnCalls!F25","v":"Jul 2011"},{"$f":"ZZZ__FnCalls!F26","v":"Aug 2011"},{"$f":"ZZZ__FnCalls!F27","v":"Sep 2011"},{"$f":"ZZZ__FnCalls!F28","v":"Oct 2011"},{"$f":"ZZZ__FnCalls!F29","v":"Nov 2011"},{"$f":"ZZZ__FnCalls!F30","v":"Dec 2011"},{"$f":"ZZZ__FnCalls!H19","v":"2011"},{"$f":"ZZZ__FnCalls!F31","v":"Jan 2012"},{"$f":"ZZZ__FnCalls!F32","v":"Feb 2012"},{"$f":"ZZZ__FnCalls!F33","v":"Mar 2012"},{"$f":"ZZZ__FnCalls!F34","v":"Apr 2012"},{"$f":"ZZZ__FnCalls!F35","v":"May 2012"},{"$f":"ZZZ__FnCalls!F36","v":"Jun 2012"},{"$f":"ZZZ__FnCalls!F37","v":"Jul 2012"},{"$f":"ZZZ__FnCalls!F38","v":"Aug 2012"},{"$f":"ZZZ__FnCalls!F39","v":"Sep 2012"},{"$f":"ZZZ__FnCalls!F40","v":"Oct 2012"},{"$f":"ZZZ__FnCalls!F41","v":"Nov 2012"},{"$f":"ZZZ__FnCalls!F42","v":"Dec 2012"},{"$f":"ZZZ__FnCalls!H31","v":"2012"},{"$f":"ZZZ__FnCalls!F43","v":"Jan 2013"},{"$f":"ZZZ__FnCalls!F44","v":"Feb 2013"},{"$f":"ZZZ__FnCalls!F45","v":"Mar 2013"},{"$f":"ZZZ__FnCalls!F46","v":"Apr 2013"},{"$f":"ZZZ__FnCalls!F47","v":"May 2013"},{"$f":"ZZZ__FnCalls!F48","v":"Jun 2013"},{"$f":"ZZZ__FnCalls!F49","v":"Jul 2013"},{"$f":"ZZZ__FnCalls!F50","v":"Aug 2013"},{"$f":"ZZZ__FnCalls!F51","v":"Sep 2013"},{"$f":"ZZZ__FnCalls!F52","v":"Oct 2013"},{"$f":"ZZZ__FnCalls!F53","v":"Nov 2013"},{"$f":"ZZZ__FnCalls!F54","v":"Dec 2013"},{"$f":"ZZZ__FnCalls!H43","v":"2013"},{"$f":"ZZZ__FnCalls!F55","v":"Jan 2014"},{"$f":"ZZZ__FnCalls!F56","v":"Feb 2014"},{"$f":"ZZZ__FnCalls!F57","v":"Mar 2014"},{"$f":"ZZZ__FnCalls!F58","v":"Apr 2014"},{"$f":"ZZZ__FnCalls!F59","v":"May 2014"},{"$f":"ZZZ__FnCalls!F60","v":"Jun 2014"},{"$f":"ZZZ__FnCalls!F61","v":"Jul 2014"},{"$f":"ZZZ__FnCalls!F62","v":"Aug 2014"},{"$f":"ZZZ__FnCalls!F63","v":"Sep 2014"},{"$f":"ZZZ__FnCalls!F64","v":"Oct 2014"},{"$f":"ZZZ__FnCalls!F65","v":"Nov 2014"},{"$f":"ZZZ__FnCalls!F66","v":"Dec 2014"},{"$f":"ZZZ__FnCalls!H55","v":"2014"},{"$f":"ZZZ__FnCalls!F67","v":"Jan 2015"},{"$f":"ZZZ__FnCalls!F68","v":"Feb 2015"},{"$f":"ZZZ__FnCalls!F69","v":"Mar 2015"},{"$f":"ZZZ__FnCalls!F70","v":"Apr 2015"},{"$f":"ZZZ__FnCalls!F71","v":"May 2015"},{"$f":"ZZZ__FnCalls!F72","v":"Jun 2015"},{"$f":"ZZZ__FnCalls!F73","v":"Jul 2015"},{"$f":"ZZZ__FnCalls!F74","v":"Aug 2015"},{"$f":"ZZZ__FnCalls!F75","v":"Sep 2015"},{"$f":"ZZZ__FnCalls!F76","v":"Oct 2015"},{"$f":"ZZZ__FnCalls!F77","v":"Nov 2015"},{"$f":"ZZZ__FnCalls!F78","v":"Dec 2015"},{"$f":"ZZZ__FnCalls!H67","v":"2015"},{"$f":"ZZZ__FnCalls!F79","v":"Jan 2016"},{"$f":"ZZZ__FnCalls!F80","v":"Feb 2016"},{"$f":"ZZZ__FnCalls!F81","v":"Mar 2016"},{"$f":"ZZZ__FnCalls!F82","v":"Apr 2016"},{"$f":"ZZZ__FnCalls!F83","v":"May 2016"},{"$f":"ZZZ__FnCalls!F84","v":"Jun 2016"},{"$f":"ZZZ__FnCalls!F85","v":"Jul 2016"},{"$f":"ZZZ__FnCalls!F86","v":"Aug 2016"},{"$f":"ZZZ__FnCalls!F87","v":"Sep 2016"},{"$f":"ZZZ__FnCalls!F88","v":"Oct 2016"},{"$f":"ZZZ__FnCalls!F89","v":"Nov 2016"},{"$f":"ZZZ__FnCalls!F90","v":"Dec 2016"},{"$f":"ZZZ__FnCalls!H79","v":"2016"},{"$f":"ZZZ__FnCalls!F91","v":"Jan 2017"},{"$f":"ZZZ__FnCalls!F92","v":"Feb 2017"},{"$f":"ZZZ__FnCalls!F93","v":"Mar 2017"},{"$f":"ZZZ__FnCalls!F94","v":"Apr 2017"},{"$f":"ZZZ__FnCalls!F95","v":"May 2017"},{"$f":"ZZZ__FnCalls!F96","v":"Jun 2017"},{"$f":"ZZZ__FnCalls!F97","v":"Jul 2017"},{"$f":"ZZZ__FnCalls!F98","v":"Aug 2017"},{"$f":"ZZZ__FnCalls!F99","v":"Sep 2017"},{"$f":"ZZZ__FnCalls!F100","v":"Oct 2017"},{"$f":"ZZZ__FnCalls!F101","v":"Nov 2017"},{"$f":"ZZZ__FnCalls!F102","v":"Dec 2017"},{"$f":"ZZZ__FnCalls!H91","v":"2017"},{"$f":"ZZZ__FnCalls!F103","v":"Jan 2018"},{"$f":"ZZZ__FnCalls!F104","v":"Feb 2018"},{"$f":"ZZZ__FnCalls!F105","v":"Mar 2018"},{"$f":"ZZZ__FnCalls!F106","v":"Apr 2018"},{"$f":"ZZZ__FnCalls!F107","v":"May 2018"},{"$f":"ZZZ__FnCalls!F108","v":"Jun 2018"},{"$f":"ZZZ__FnCalls!F109","v":"Jul 2018"},{"$f":"ZZZ__FnCalls!F110","v":"Aug 2018"},{"$f":"ZZZ__FnCalls!F111","v":"Sep 2018"},{"$f":"ZZZ__FnCalls!F112","v":"Oct 2018"},{"$f":"ZZZ__FnCalls!F113","v":"Nov 2018"},{"$f":"ZZZ__FnCalls!F114","v":"Dec 2018"},{"$f":"ZZZ__FnCalls!H103","v":"2018"},{"$f":"ZZZ__FnCalls!F115","v":"Jan 2019"},{"$f":"ZZZ__FnCalls!F116","v":"Feb 2019"},{"$f":"ZZZ__FnCalls!F117","v":"Mar 2019"},{"$f":"ZZZ__FnCalls!F118","v":"Apr 2019"},{"$f":"ZZZ__FnCalls!F119","v":"May 2019"},{"$f":"ZZZ__FnCalls!F120","v":"Jun 2019"},{"$f":"ZZZ__FnCalls!F121","v":"Jul 2019"},{"$f":"ZZZ__FnCalls!F122","v":"Aug 2019"},{"$f":"ZZZ__FnCalls!F123","v":"Sep 2019"},{"$f":"ZZZ__FnCalls!F124","v":"Oct 2019"},{"$f":"ZZZ__FnCalls!F125","v":"Nov 2019"},{"$f":"ZZZ__FnCalls!F126","v":"Dec 2019"},{"$f":"ZZZ__FnCalls!H115","v":"2019"},{"$f":"ZZZ__FnCalls!F127","v":"Jan 2020"},{"$f":"ZZZ__FnCalls!F128","v":"Feb 2020"},{"$f":"ZZZ__FnCalls!F129","v":"Mar 2020"},{"$f":"ZZZ__FnCalls!F130","v":"Apr 2020"},{"$f":"ZZZ__FnCalls!F131","v":"May 2020"},{"$f":"ZZZ__FnCalls!F132","v":"Jun 2020"},{"$f":"ZZZ__FnCalls!F133","v":"Jul 2020"},{"$f":"ZZZ__FnCalls!F134","v":"Aug 2020"},{"$f":"ZZZ__FnCalls!F135","v":"Sep 2020"},{"$f":"ZZZ__FnCalls!F136","v":"Oct 2020"},{"$f":"ZZZ__FnCalls!F137","v":"Nov 2020"},{"$f":"ZZZ__FnCalls!F138","v":"Dec 2020"},{"$f":"ZZZ__FnCalls!H127","v":"2020"}]
[null,{"$f":"ZZZ__FnCalls!F7","v":"Jan 2010"},{"$f":"ZZZ__FnCalls!F8","v":"Feb 2010"},{"$f":"ZZZ__FnCalls!F9","v":"Mar 2010"},{"$f":"ZZZ__FnCalls!F10","v":"Apr 2010"},{"$f":"ZZZ__FnCalls!F11","v":"May 2010"},{"$f":"ZZZ__FnCalls!F12","v":"Jun 2010"},{"$f":"ZZZ__FnCalls!F13","v":"Jul 2010"},{"$f":"ZZZ__FnCalls!F14","v":"Aug 2010"},{"$f":"ZZZ__FnCalls!F15","v":"Sep 2010"},{"$f":"ZZZ__FnCalls!F16","v":"Oct 2010"},{"$f":"ZZZ__FnCalls!F17","v":"Nov 2010"},{"$f":"ZZZ__FnCalls!F18","v":"Dec 2010"},{"$f":"ZZZ__FnCalls!F7","v":"Jan 2010"},{"$f":"ZZZ__FnCalls!F19","v":"Jan 2011"},{"$f":"ZZZ__FnCalls!F20","v":"Feb 2011"},{"$f":"ZZZ__FnCalls!F21","v":"Mar 2011"},{"$f":"ZZZ__FnCalls!F22","v":"Apr 2011"},{"$f":"ZZZ__FnCalls!F23","v":"May 2011"},{"$f":"ZZZ__FnCalls!F24","v":"Jun 2011"},{"$f":"ZZZ__FnCalls!F25","v":"Jul 2011"},{"$f":"ZZZ__FnCalls!F26","v":"Aug 2011"},{"$f":"ZZZ__FnCalls!F27","v":"Sep 2011"},{"$f":"ZZZ__FnCalls!F28","v":"Oct 2011"},{"$f":"ZZZ__FnCalls!F29","v":"Nov 2011"},{"$f":"ZZZ__FnCalls!F30","v":"Dec 2011"},{"$f":"ZZZ__FnCalls!F19","v":"Jan 2011"},{"$f":"ZZZ__FnCalls!F31","v":"Jan 2012"},{"$f":"ZZZ__FnCalls!F32","v":"Feb 2012"},{"$f":"ZZZ__FnCalls!F33","v":"Mar 2012"},{"$f":"ZZZ__FnCalls!F34","v":"Apr 2012"},{"$f":"ZZZ__FnCalls!F35","v":"May 2012"},{"$f":"ZZZ__FnCalls!F36","v":"Jun 2012"},{"$f":"ZZZ__FnCalls!F37","v":"Jul 2012"},{"$f":"ZZZ__FnCalls!F38","v":"Aug 2012"},{"$f":"ZZZ__FnCalls!F39","v":"Sep 2012"},{"$f":"ZZZ__FnCalls!F40","v":"Oct 2012"},{"$f":"ZZZ__FnCalls!F41","v":"Nov 2012"},{"$f":"ZZZ__FnCalls!F42","v":"Dec 2012"},{"$f":"ZZZ__FnCalls!F31","v":"Jan 2012"},{"$f":"ZZZ__FnCalls!F43","v":"Jan 2013"},{"$f":"ZZZ__FnCalls!F44","v":"Feb 2013"},{"$f":"ZZZ__FnCalls!F45","v":"Mar 2013"},{"$f":"ZZZ__FnCalls!F46","v":"Apr 2013"},{"$f":"ZZZ__FnCalls!F47","v":"May 2013"},{"$f":"ZZZ__FnCalls!F48","v":"Jun 2013"},{"$f":"ZZZ__FnCalls!F49","v":"Jul 2013"},{"$f":"ZZZ__FnCalls!F50","v":"Aug 2013"},{"$f":"ZZZ__FnCalls!F51","v":"Sep 2013"},{"$f":"ZZZ__FnCalls!F52","v":"Oct 2013"},{"$f":"ZZZ__FnCalls!F53","v":"Nov 2013"},{"$f":"ZZZ__FnCalls!F54","v":"Dec 2013"},{"$f":"ZZZ__FnCalls!F43","v":"Jan 2013"},{"$f":"ZZZ__FnCalls!F55","v":"Jan 2014"},{"$f":"ZZZ__FnCalls!F56","v":"Feb 2014"},{"$f":"ZZZ__FnCalls!F57","v":"Mar 2014"},{"$f":"ZZZ__FnCalls!F58","v":"Apr 2014"},{"$f":"ZZZ__FnCalls!F59","v":"May 2014"},{"$f":"ZZZ__FnCalls!F60","v":"Jun 2014"},{"$f":"ZZZ__FnCalls!F61","v":"Jul 2014"},{"$f":"ZZZ__FnCalls!F62","v":"Aug 2014"},{"$f":"ZZZ__FnCalls!F63","v":"Sep 2014"},{"$f":"ZZZ__FnCalls!F64","v":"Oct 2014"},{"$f":"ZZZ__FnCalls!F65","v":"Nov 2014"},{"$f":"ZZZ__FnCalls!F66","v":"Dec 2014"},{"$f":"ZZZ__FnCalls!F55","v":"Jan 2014"},{"$f":"ZZZ__FnCalls!F67","v":"Jan 2015"},{"$f":"ZZZ__FnCalls!F68","v":"Feb 2015"},{"$f":"ZZZ__FnCalls!F69","v":"Mar 2015"},{"$f":"ZZZ__FnCalls!F70","v":"Apr 2015"},{"$f":"ZZZ__FnCalls!F71","v":"May 2015"},{"$f":"ZZZ__FnCalls!F72","v":"Jun 2015"},{"$f":"ZZZ__FnCalls!F73","v":"Jul 2015"},{"$f":"ZZZ__FnCalls!F74","v":"Aug 2015"},{"$f":"ZZZ__FnCalls!F75","v":"Sep 2015"},{"$f":"ZZZ__FnCalls!F76","v":"Oct 2015"},{"$f":"ZZZ__FnCalls!F77","v":"Nov 2015"},{"$f":"ZZZ__FnCalls!F78","v":"Dec 2015"},{"$f":"ZZZ__FnCalls!F67","v":"Jan 2015"},{"$f":"ZZZ__FnCalls!F79","v":"Jan 2016"},{"$f":"ZZZ__FnCalls!F80","v":"Feb 2016"},{"$f":"ZZZ__FnCalls!F81","v":"Mar 2016"},{"$f":"ZZZ__FnCalls!F82","v":"Apr 2016"},{"$f":"ZZZ__FnCalls!F83","v":"May 2016"},{"$f":"ZZZ__FnCalls!F84","v":"Jun 2016"},{"$f":"ZZZ__FnCalls!F85","v":"Jul 2016"},{"$f":"ZZZ__FnCalls!F86","v":"Aug 2016"},{"$f":"ZZZ__FnCalls!F87","v":"Sep 2016"},{"$f":"ZZZ__FnCalls!F88","v":"Oct 2016"},{"$f":"ZZZ__FnCalls!F89","v":"Nov 2016"},{"$f":"ZZZ__FnCalls!F90","v":"Dec 2016"},{"$f":"ZZZ__FnCalls!F79","v":"Jan 2016"},{"$f":"ZZZ__FnCalls!F91","v":"Jan 2017"},{"$f":"ZZZ__FnCalls!F92","v":"Feb 2017"},{"$f":"ZZZ__FnCalls!F93","v":"Mar 2017"},{"$f":"ZZZ__FnCalls!F94","v":"Apr 2017"},{"$f":"ZZZ__FnCalls!F95","v":"May 2017"},{"$f":"ZZZ__FnCalls!F96","v":"Jun 2017"},{"$f":"ZZZ__FnCalls!F97","v":"Jul 2017"},{"$f":"ZZZ__FnCalls!F98","v":"Aug 2017"},{"$f":"ZZZ__FnCalls!F99","v":"Sep 2017"},{"$f":"ZZZ__FnCalls!F100","v":"Oct 2017"},{"$f":"ZZZ__FnCalls!F101","v":"Nov 2017"},{"$f":"ZZZ__FnCalls!F102","v":"Dec 2017"},{"$f":"ZZZ__FnCalls!F91","v":"Jan 2017"},{"$f":"ZZZ__FnCalls!F103","v":"Jan 2018"},{"$f":"ZZZ__FnCalls!F104","v":"Feb 2018"},{"$f":"ZZZ__FnCalls!F105","v":"Mar 2018"},{"$f":"ZZZ__FnCalls!F106","v":"Apr 2018"},{"$f":"ZZZ__FnCalls!F107","v":"May 2018"},{"$f":"ZZZ__FnCalls!F108","v":"Jun 2018"},{"$f":"ZZZ__FnCalls!F109","v":"Jul 2018"},{"$f":"ZZZ__FnCalls!F110","v":"Aug 2018"},{"$f":"ZZZ__FnCalls!F111","v":"Sep 2018"},{"$f":"ZZZ__FnCalls!F112","v":"Oct 2018"},{"$f":"ZZZ__FnCalls!F113","v":"Nov 2018"},{"$f":"ZZZ__FnCalls!F114","v":"Dec 2018"},{"$f":"ZZZ__FnCalls!F103","v":"Jan 2018"},{"$f":"ZZZ__FnCalls!F115","v":"Jan 2019"},{"$f":"ZZZ__FnCalls!F116","v":"Feb 2019"},{"$f":"ZZZ__FnCalls!F117","v":"Mar 2019"},{"$f":"ZZZ__FnCalls!F118","v":"Apr 2019"},{"$f":"ZZZ__FnCalls!F119","v":"May 2019"},{"$f":"ZZZ__FnCalls!F120","v":"Jun 2019"},{"$f":"ZZZ__FnCalls!F121","v":"Jul 2019"},{"$f":"ZZZ__FnCalls!F122","v":"Aug 2019"},{"$f":"ZZZ__FnCalls!F123","v":"Sep 2019"},{"$f":"ZZZ__FnCalls!F124","v":"Oct 2019"},{"$f":"ZZZ__FnCalls!F125","v":"Nov 2019"},{"$f":"ZZZ__FnCalls!F126","v":"Dec 2019"},{"$f":"ZZZ__FnCalls!F115","v":"Jan 2019"},{"$f":"ZZZ__FnCalls!F127","v":"Jan 2020"},{"$f":"ZZZ__FnCalls!F128","v":"Feb 2020"},{"$f":"ZZZ__FnCalls!F129","v":"Mar 2020"},{"$f":"ZZZ__FnCalls!F130","v":"Apr 2020"},{"$f":"ZZZ__FnCalls!F131","v":"May 2020"},{"$f":"ZZZ__FnCalls!F132","v":"Jun 2020"},{"$f":"ZZZ__FnCalls!F133","v":"Jul 2020"},{"$f":"ZZZ__FnCalls!F134","v":"Aug 2020"},{"$f":"ZZZ__FnCalls!F135","v":"Sep 2020"},{"$f":"ZZZ__FnCalls!F136","v":"Oct 2020"},{"$f":"ZZZ__FnCalls!F137","v":"Nov 2020"},{"$f":"ZZZ__FnCalls!F138","v":"Dec 2020"},{"$f":"ZZZ__FnCalls!F127","v":"Jan 2020"}]
[{"$f":"\"Demand_Expected_Long_stdev_1\"","v":"Demand_Expected_Long_stdev_1"}]
[null,{"$f":"ZZZ__FnCalls!F7","v":"Jan 2010"},{"$f":"ZZZ__FnCalls!F8","v":"Feb 2010"},{"$f":"ZZZ__FnCalls!F9","v":"Mar 2010"},{"$f":"ZZZ__FnCalls!F10","v":"Apr 2010"},{"$f":"ZZZ__FnCalls!F11","v":"May 2010"},{"$f":"ZZZ__FnCalls!F12","v":"Jun 2010"},{"$f":"ZZZ__FnCalls!F13","v":"Jul 2010"},{"$f":"ZZZ__FnCalls!F14","v":"Aug 2010"},{"$f":"ZZZ__FnCalls!F15","v":"Sep 2010"},{"$f":"ZZZ__FnCalls!F16","v":"Oct 2010"},{"$f":"ZZZ__FnCalls!F17","v":"Nov 2010"},{"$f":"ZZZ__FnCalls!F18","v":"Dec 2010"},{"$f":"ZZZ__FnCalls!H7","v":"2010"},{"$f":"ZZZ__FnCalls!F19","v":"Jan 2011"},{"$f":"ZZZ__FnCalls!F20","v":"Feb 2011"},{"$f":"ZZZ__FnCalls!F21","v":"Mar 2011"},{"$f":"ZZZ__FnCalls!F22","v":"Apr 2011"},{"$f":"ZZZ__FnCalls!F23","v":"May 2011"},{"$f":"ZZZ__FnCalls!F24","v":"Jun 2011"},{"$f":"ZZZ__FnCalls!F25","v":"Jul 2011"},{"$f":"ZZZ__FnCalls!F26","v":"Aug 2011"},{"$f":"ZZZ__FnCalls!F27","v":"Sep 2011"},{"$f":"ZZZ__FnCalls!F28","v":"Oct 2011"},{"$f":"ZZZ__FnCalls!F29","v":"Nov 2011"},{"$f":"ZZZ__FnCalls!F30","v":"Dec 2011"},{"$f":"ZZZ__FnCalls!H19","v":"2011"},{"$f":"ZZZ__FnCalls!F31","v":"Jan 2012"},{"$f":"ZZZ__FnCalls!F32","v":"Feb 2012"},{"$f":"ZZZ__FnCalls!F33","v":"Mar 2012"},{"$f":"ZZZ__FnCalls!F34","v":"Apr 2012"},{"$f":"ZZZ__FnCalls!F35","v":"May 2012"},{"$f":"ZZZ__FnCalls!F36","v":"Jun 2012"},{"$f":"ZZZ__FnCalls!F37","v":"Jul 2012"},{"$f":"ZZZ__FnCalls!F38","v":"Aug 2012"},{"$f":"ZZZ__FnCalls!F39","v":"Sep 2012"},{"$f":"ZZZ__FnCalls!F40","v":"Oct 2012"},{"$f":"ZZZ__FnCalls!F41","v":"Nov 2012"},{"$f":"ZZZ__FnCalls!F42","v":"Dec 2012"},{"$f":"ZZZ__FnCalls!H31","v":"2012"},{"$f":"ZZZ__FnCalls!F43","v":"Jan 2013"},{"$f":"ZZZ__FnCalls!F44","v":"Feb 2013"},{"$f":"ZZZ__FnCalls!F45","v":"Mar 2013"},{"$f":"ZZZ__FnCalls!F46","v":"Apr 2013"},{"$f":"ZZZ__FnCalls!F47","v":"May 2013"},{"$f":"ZZZ__FnCalls!F48","v":"Jun 2013"},{"$f":"ZZZ__FnCalls!F49","v":"Jul 2013"},{"$f":"ZZZ__FnCalls!F50","v":"Aug 2013"},{"$f":"ZZZ__FnCalls!F51","v":"Sep 2013"},{"$f":"ZZZ__FnCalls!F52","v":"Oct 2013"},{"$f":"ZZZ__FnCalls!F53","v":"Nov 2013"},{"$f":"ZZZ__FnCalls!F54","v":"Dec 2013"},{"$f":"ZZZ__FnCalls!H43","v":"2013"},{"$f":"ZZZ__FnCalls!F55","v":"Jan 2014"},{"$f":"ZZZ__FnCalls!F56","v":"Feb 2014"},{"$f":"ZZZ__FnCalls!F57","v":"Mar 2014"},{"$f":"ZZZ__FnCalls!F58","v":"Apr 2014"},{"$f":"ZZZ__FnCalls!F59","v":"May 2014"},{"$f":"ZZZ__FnCalls!F60","v":"Jun 2014"},{"$f":"ZZZ__FnCalls!F61","v":"Jul 2014"},{"$f":"ZZZ__FnCalls!F62","v":"Aug 2014"},{"$f":"ZZZ__FnCalls!F63","v":"Sep 2014"},{"$f":"ZZZ__FnCalls!F64","v":"Oct 2014"},{"$f":"ZZZ__FnCalls!F65","v":"Nov 2014"},{"$f":"ZZZ__FnCalls!F66","v":"Dec 2014"},{"$f":"ZZZ__FnCalls!H55","v":"2014"},{"$f":"ZZZ__FnCalls!F67","v":"Jan 2015"},{"$f":"ZZZ__FnCalls!F68","v":"Feb 2015"},{"$f":"ZZZ__FnCalls!F69","v":"Mar 2015"},{"$f":"ZZZ__FnCalls!F70","v":"Apr 2015"},{"$f":"ZZZ__FnCalls!F71","v":"May 2015"},{"$f":"ZZZ__FnCalls!F72","v":"Jun 2015"},{"$f":"ZZZ__FnCalls!F73","v":"Jul 2015"},{"$f":"ZZZ__FnCalls!F74","v":"Aug 2015"},{"$f":"ZZZ__FnCalls!F75","v":"Sep 2015"},{"$f":"ZZZ__FnCalls!F76","v":"Oct 2015"},{"$f":"ZZZ__FnCalls!F77","v":"Nov 2015"},{"$f":"ZZZ__FnCalls!F78","v":"Dec 2015"},{"$f":"ZZZ__FnCalls!H67","v":"2015"},{"$f":"ZZZ__FnCalls!F79","v":"Jan 2016"},{"$f":"ZZZ__FnCalls!F80","v":"Feb 2016"},{"$f":"ZZZ__FnCalls!F81","v":"Mar 2016"},{"$f":"ZZZ__FnCalls!F82","v":"Apr 2016"},{"$f":"ZZZ__FnCalls!F83","v":"May 2016"},{"$f":"ZZZ__FnCalls!F84","v":"Jun 2016"},{"$f":"ZZZ__FnCalls!F85","v":"Jul 2016"},{"$f":"ZZZ__FnCalls!F86","v":"Aug 2016"},{"$f":"ZZZ__FnCalls!F87","v":"Sep 2016"},{"$f":"ZZZ__FnCalls!F88","v":"Oct 2016"},{"$f":"ZZZ__FnCalls!F89","v":"Nov 2016"},{"$f":"ZZZ__FnCalls!F90","v":"Dec 2016"},{"$f":"ZZZ__FnCalls!H79","v":"2016"},{"$f":"ZZZ__FnCalls!F91","v":"Jan 2017"},{"$f":"ZZZ__FnCalls!F92","v":"Feb 2017"},{"$f":"ZZZ__FnCalls!F93","v":"Mar 2017"},{"$f":"ZZZ__FnCalls!F94","v":"Apr 2017"},{"$f":"ZZZ__FnCalls!F95","v":"May 2017"},{"$f":"ZZZ__FnCalls!F96","v":"Jun 2017"},{"$f":"ZZZ__FnCalls!F97","v":"Jul 2017"},{"$f":"ZZZ__FnCalls!F98","v":"Aug 2017"},{"$f":"ZZZ__FnCalls!F99","v":"Sep 2017"},{"$f":"ZZZ__FnCalls!F100","v":"Oct 2017"},{"$f":"ZZZ__FnCalls!F101","v":"Nov 2017"},{"$f":"ZZZ__FnCalls!F102","v":"Dec 2017"},{"$f":"ZZZ__FnCalls!H91","v":"2017"},{"$f":"ZZZ__FnCalls!F103","v":"Jan 2018"},{"$f":"ZZZ__FnCalls!F104","v":"Feb 2018"},{"$f":"ZZZ__FnCalls!F105","v":"Mar 2018"},{"$f":"ZZZ__FnCalls!F106","v":"Apr 2018"},{"$f":"ZZZ__FnCalls!F107","v":"May 2018"},{"$f":"ZZZ__FnCalls!F108","v":"Jun 2018"},{"$f":"ZZZ__FnCalls!F109","v":"Jul 2018"},{"$f":"ZZZ__FnCalls!F110","v":"Aug 2018"},{"$f":"ZZZ__FnCalls!F111","v":"Sep 2018"},{"$f":"ZZZ__FnCalls!F112","v":"Oct 2018"},{"$f":"ZZZ__FnCalls!F113","v":"Nov 2018"},{"$f":"ZZZ__FnCalls!F114","v":"Dec 2018"},{"$f":"ZZZ__FnCalls!H103","v":"2018"},{"$f":"ZZZ__FnCalls!F115","v":"Jan 2019"},{"$f":"ZZZ__FnCalls!F116","v":"Feb 2019"},{"$f":"ZZZ__FnCalls!F117","v":"Mar 2019"},{"$f":"ZZZ__FnCalls!F118","v":"Apr 2019"},{"$f":"ZZZ__FnCalls!F119","v":"May 2019"},{"$f":"ZZZ__FnCalls!F120","v":"Jun 2019"},{"$f":"ZZZ__FnCalls!F121","v":"Jul 2019"},{"$f":"ZZZ__FnCalls!F122","v":"Aug 2019"},{"$f":"ZZZ__FnCalls!F123","v":"Sep 2019"},{"$f":"ZZZ__FnCalls!F124","v":"Oct 2019"},{"$f":"ZZZ__FnCalls!F125","v":"Nov 2019"},{"$f":"ZZZ__FnCalls!F126","v":"Dec 2019"},{"$f":"ZZZ__FnCalls!H115","v":"2019"},{"$f":"ZZZ__FnCalls!F127","v":"Jan 2020"},{"$f":"ZZZ__FnCalls!F128","v":"Feb 2020"},{"$f":"ZZZ__FnCalls!F129","v":"Mar 2020"},{"$f":"ZZZ__FnCalls!F130","v":"Apr 2020"},{"$f":"ZZZ__FnCalls!F131","v":"May 2020"},{"$f":"ZZZ__FnCalls!F132","v":"Jun 2020"},{"$f":"ZZZ__FnCalls!F133","v":"Jul 2020"},{"$f":"ZZZ__FnCalls!F134","v":"Aug 2020"},{"$f":"ZZZ__FnCalls!F135","v":"Sep 2020"},{"$f":"ZZZ__FnCalls!F136","v":"Oct 2020"},{"$f":"ZZZ__FnCalls!F137","v":"Nov 2020"},{"$f":"ZZZ__FnCalls!F138","v":"Dec 2020"},{"$f":"ZZZ__FnCalls!H127","v":"2020"}]
[null,{"$f":"ZZZ__FnCalls!A7","v":"2010-01-01"},{"$f":"ZZZ__FnCalls!A8","v":"2010-02-01"},{"$f":"ZZZ__FnCalls!A9","v":"2010-03-01"},{"$f":"ZZZ__FnCalls!A10","v":"2010-04-01"},{"$f":"ZZZ__FnCalls!A11","v":"2010-05-01"},{"$f":"ZZZ__FnCalls!A12","v":"2010-06-01"},{"$f":"ZZZ__FnCalls!A13","v":"2010-07-01"},{"$f":"ZZZ__FnCalls!A14","v":"2010-08-01"},{"$f":"ZZZ__FnCalls!A15","v":"2010-09-01"},{"$f":"ZZZ__FnCalls!A16","v":"2010-10-01"},{"$f":"ZZZ__FnCalls!A17","v":"2010-11-01"},{"$f":"ZZZ__FnCalls!A18","v":"2010-12-01"},{"$f":"ZZZ__FnCalls!A7","v":"2010-01-01"},{"$f":"ZZZ__FnCalls!A19","v":"2011-01-01"},{"$f":"ZZZ__FnCalls!A20","v":"2011-02-01"},{"$f":"ZZZ__FnCalls!A21","v":"2011-03-01"},{"$f":"ZZZ__FnCalls!A22","v":"2011-04-01"},{"$f":"ZZZ__FnCalls!A23","v":"2011-05-01"},{"$f":"ZZZ__FnCalls!A24","v":"2011-06-01"},{"$f":"ZZZ__FnCalls!A25","v":"2011-07-01"},{"$f":"ZZZ__FnCalls!A26","v":"2011-08-01"},{"$f":"ZZZ__FnCalls!A27","v":"2011-09-01"},{"$f":"ZZZ__FnCalls!A28","v":"2011-10-01"},{"$f":"ZZZ__FnCalls!A29","v":"2011-11-01"},{"$f":"ZZZ__FnCalls!A30","v":"2011-12-01"},{"$f":"ZZZ__FnCalls!A19","v":"2011-01-01"},{"$f":"ZZZ__FnCalls!A31","v":"2012-01-01"},{"$f":"ZZZ__FnCalls!A32","v":"2012-02-01"},{"$f":"ZZZ__FnCalls!A33","v":"2012-03-01"},{"$f":"ZZZ__FnCalls!A34","v":"2012-04-01"},{"$f":"ZZZ__FnCalls!A35","v":"2012-05-01"},{"$f":"ZZZ__FnCalls!A36","v":"2012-06-01"},{"$f":"ZZZ__FnCalls!A37","v":"2012-07-01"},{"$f":"ZZZ__FnCalls!A38","v":"2012-08-01"},{"$f":"ZZZ__FnCalls!A39","v":"2012-09-01"},{"$f":"ZZZ__FnCalls!A40","v":"2012-10-01"},{"$f":"ZZZ__FnCalls!A41","v":"2012-11-01"},{"$f":"ZZZ__FnCalls!A42","v":"2012-12-01"},{"$f":"ZZZ__FnCalls!A31","v":"2012-01-01"},{"$f":"ZZZ__FnCalls!A43","v":"2013-01-01"},{"$f":"ZZZ__FnCalls!A44","v":"2013-02-01"},{"$f":"ZZZ__FnCalls!A45","v":"2013-03-01"},{"$f":"ZZZ__FnCalls!A46","v":"2013-04-01"},{"$f":"ZZZ__FnCalls!A47","v":"2013-05-01"},{"$f":"ZZZ__FnCalls!A48","v":"2013-06-01"},{"$f":"ZZZ__FnCalls!A49","v":"2013-07-01"},{"$f":"ZZZ__FnCalls!A50","v":"2013-08-01"},{"$f":"ZZZ__FnCalls!A51","v":"2013-09-01"},{"$f":"ZZZ__FnCalls!A52","v":"2013-10-01"},{"$f":"ZZZ__FnCalls!A53","v":"2013-11-01"},{"$f":"ZZZ__FnCalls!A54","v":"2013-12-01"},{"$f":"ZZZ__FnCalls!A43","v":"2013-01-01"},{"$f":"ZZZ__FnCalls!A55","v":"2014-01-01"},{"$f":"ZZZ__FnCalls!A56","v":"2014-02-01"},{"$f":"ZZZ__FnCalls!A57","v":"2014-03-01"},{"$f":"ZZZ__FnCalls!A58","v":"2014-04-01"},{"$f":"ZZZ__FnCalls!A59","v":"2014-05-01"},{"$f":"ZZZ__FnCalls!A60","v":"2014-06-01"},{"$f":"ZZZ__FnCalls!A61","v":"2014-07-01"},{"$f":"ZZZ__FnCalls!A62","v":"2014-08-01"},{"$f":"ZZZ__FnCalls!A63","v":"2014-09-01"},{"$f":"ZZZ__FnCalls!A64","v":"2014-10-01"},{"$f":"ZZZ__FnCalls!A65","v":"2014-11-01"},{"$f":"ZZZ__FnCalls!A66","v":"2014-12-01"},{"$f":"ZZZ__FnCalls!A55","v":"2014-01-01"},{"$f":"ZZZ__FnCalls!A67","v":"2015-01-01"},{"$f":"ZZZ__FnCalls!A68","v":"2015-02-01"},{"$f":"ZZZ__FnCalls!A69","v":"2015-03-01"},{"$f":"ZZZ__FnCalls!A70","v":"2015-04-01"},{"$f":"ZZZ__FnCalls!A71","v":"2015-05-01"},{"$f":"ZZZ__FnCalls!A72","v":"2015-06-01"},{"$f":"ZZZ__FnCalls!A73","v":"2015-07-01"},{"$f":"ZZZ__FnCalls!A74","v":"2015-08-01"},{"$f":"ZZZ__FnCalls!A75","v":"2015-09-01"},{"$f":"ZZZ__FnCalls!A76","v":"2015-10-01"},{"$f":"ZZZ__FnCalls!A77","v":"2015-11-01"},{"$f":"ZZZ__FnCalls!A78","v":"2015-12-01"},{"$f":"ZZZ__FnCalls!A67","v":"2015-01-01"},{"$f":"ZZZ__FnCalls!A79","v":"2016-01-01"},{"$f":"ZZZ__FnCalls!A80","v":"2016-02-01"},{"$f":"ZZZ__FnCalls!A81","v":"2016-03-01"},{"$f":"ZZZ__FnCalls!A82","v":"2016-04-01"},{"$f":"ZZZ__FnCalls!A83","v":"2016-05-01"},{"$f":"ZZZ__FnCalls!A84","v":"2016-06-01"},{"$f":"ZZZ__FnCalls!A85","v":"2016-07-01"},{"$f":"ZZZ__FnCalls!A86","v":"2016-08-01"},{"$f":"ZZZ__FnCalls!A87","v":"2016-09-01"},{"$f":"ZZZ__FnCalls!A88","v":"2016-10-01"},{"$f":"ZZZ__FnCalls!A89","v":"2016-11-01"},{"$f":"ZZZ__FnCalls!A90","v":"2016-12-01"},{"$f":"ZZZ__FnCalls!A79","v":"2016-01-01"},{"$f":"ZZZ__FnCalls!A91","v":"2017-01-01"},{"$f":"ZZZ__FnCalls!A92","v":"2017-02-01"},{"$f":"ZZZ__FnCalls!A93","v":"2017-03-01"},{"$f":"ZZZ__FnCalls!A94","v":"2017-04-01"},{"$f":"ZZZ__FnCalls!A95","v":"2017-05-01"},{"$f":"ZZZ__FnCalls!A96","v":"2017-06-01"},{"$f":"ZZZ__FnCalls!A97","v":"2017-07-01"},{"$f":"ZZZ__FnCalls!A98","v":"2017-08-01"},{"$f":"ZZZ__FnCalls!A99","v":"2017-09-01"},{"$f":"ZZZ__FnCalls!A100","v":"2017-10-01"},{"$f":"ZZZ__FnCalls!A101","v":"2017-11-01"},{"$f":"ZZZ__FnCalls!A102","v":"2017-12-01"},{"$f":"ZZZ__FnCalls!A91","v":"2017-01-01"},{"$f":"ZZZ__FnCalls!A103","v":"2018-01-01"},{"$f":"ZZZ__FnCalls!A104","v":"2018-02-01"},{"$f":"ZZZ__FnCalls!A105","v":"2018-03-01"},{"$f":"ZZZ__FnCalls!A106","v":"2018-04-01"},{"$f":"ZZZ__FnCalls!A107","v":"2018-05-01"},{"$f":"ZZZ__FnCalls!A108","v":"2018-06-01"},{"$f":"ZZZ__FnCalls!A109","v":"2018-07-01"},{"$f":"ZZZ__FnCalls!A110","v":"2018-08-01"},{"$f":"ZZZ__FnCalls!A111","v":"2018-09-01"},{"$f":"ZZZ__FnCalls!A112","v":"2018-10-01"},{"$f":"ZZZ__FnCalls!A113","v":"2018-11-01"},{"$f":"ZZZ__FnCalls!A114","v":"2018-12-01"},{"$f":"ZZZ__FnCalls!A103","v":"2018-01-01"},{"$f":"ZZZ__FnCalls!A115","v":"2019-01-01"},{"$f":"ZZZ__FnCalls!A116","v":"2019-02-01"},{"$f":"ZZZ__FnCalls!A117","v":"2019-03-01"},{"$f":"ZZZ__FnCalls!A118","v":"2019-04-01"},{"$f":"ZZZ__FnCalls!A119","v":"2019-05-01"},{"$f":"ZZZ__FnCalls!A120","v":"2019-06-01"},{"$f":"ZZZ__FnCalls!A121","v":"2019-07-01"},{"$f":"ZZZ__FnCalls!A122","v":"2019-08-01"},{"$f":"ZZZ__FnCalls!A123","v":"2019-09-01"},{"$f":"ZZZ__FnCalls!A124","v":"2019-10-01"},{"$f":"ZZZ__FnCalls!A125","v":"2019-11-01"},{"$f":"ZZZ__FnCalls!A126","v":"2019-12-01"},{"$f":"ZZZ__FnCalls!A115","v":"2019-01-01"},{"$f":"ZZZ__FnCalls!A127","v":"2020-01-01"},{"$f":"ZZZ__FnCalls!A128","v":"2020-02-01"},{"$f":"ZZZ__FnCalls!A129","v":"2020-03-01"},{"$f":"ZZZ__FnCalls!A130","v":"2020-04-01"},{"$f":"ZZZ__FnCalls!A131","v":"2020-05-01"},{"$f":"ZZZ__FnCalls!A132","v":"2020-06-01"},{"$f":"ZZZ__FnCalls!A133","v":"2020-07-01"},{"$f":"ZZZ__FnCalls!A134","v":"2020-08-01"},{"$f":"ZZZ__FnCalls!A135","v":"2020-09-01"},{"$f":"ZZZ__FnCalls!A136","v":"2020-10-01"},{"$f":"ZZZ__FnCalls!A137","v":"2020-11-01"},{"$f":"ZZZ__FnCalls!A138","v":"2020-12-01"},{"$f":"ZZZ__FnCalls!A127","v":"2020-01-01"}]
[{"$f":"\"Demand_Expected_Long_stdev_2\"","v":"Demand_Expected_Long_stdev_2"}]
[null,{"$f":"ZZZ__FnCalls!F7","v":"Jan 2010"},{"$f":"ZZZ__FnCalls!F8","v":"Feb 2010"},{"$f":"ZZZ__FnCalls!F9","v":"Mar 2010"},{"$f":"ZZZ__FnCalls!F10","v":"Apr 2010"},{"$f":"ZZZ__FnCalls!F11","v":"May 2010"},{"$f":"ZZZ__FnCalls!F12","v":"Jun 2010"},{"$f":"ZZZ__FnCalls!F13","v":"Jul 2010"},{"$f":"ZZZ__FnCalls!F14","v":"Aug 2010"},{"$f":"ZZZ__FnCalls!F15","v":"Sep 2010"},{"$f":"ZZZ__FnCalls!F16","v":"Oct 2010"},{"$f":"ZZZ__FnCalls!F17","v":"Nov 2010"},{"$f":"ZZZ__FnCalls!F18","v":"Dec 2010"},{"$f":"ZZZ__FnCalls!H7","v":"2010"},{"$f":"ZZZ__FnCalls!F19","v":"Jan 2011"},{"$f":"ZZZ__FnCalls!F20","v":"Feb 2011"},{"$f":"ZZZ__FnCalls!F21","v":"Mar 2011"},{"$f":"ZZZ__FnCalls!F22","v":"Apr 2011"},{"$f":"ZZZ__FnCalls!F23","v":"May 2011"},{"$f":"ZZZ__FnCalls!F24","v":"Jun 2011"},{"$f":"ZZZ__FnCalls!F25","v":"Jul 2011"},{"$f":"ZZZ__FnCalls!F26","v":"Aug 2011"},{"$f":"ZZZ__FnCalls!F27","v":"Sep 2011"},{"$f":"ZZZ__FnCalls!F28","v":"Oct 2011"},{"$f":"ZZZ__FnCalls!F29","v":"Nov 2011"},{"$f":"ZZZ__FnCalls!F30","v":"Dec 2011"},{"$f":"ZZZ__FnCalls!H19","v":"2011"},{"$f":"ZZZ__FnCalls!F31","v":"Jan 2012"},{"$f":"ZZZ__FnCalls!F32","v":"Feb 2012"},{"$f":"ZZZ__FnCalls!F33","v":"Mar 2012"},{"$f":"ZZZ__FnCalls!F34","v":"Apr 2012"},{"$f":"ZZZ__FnCalls!F35","v":"May 2012"},{"$f":"ZZZ__FnCalls!F36","v":"Jun 2012"},{"$f":"ZZZ__FnCalls!F37","v":"Jul 2012"},{"$f":"ZZZ__FnCalls!F38","v":"Aug 2012"},{"$f":"ZZZ__FnCalls!F39","v":"Sep 2012"},{"$f":"ZZZ__FnCalls!F40","v":"Oct 2012"},{"$f":"ZZZ__FnCalls!F41","v":"Nov 2012"},{"$f":"ZZZ__FnCalls!F42","v":"Dec 2012"},{"$f":"ZZZ__FnCalls!H31","v":"2012"},{"$f":"ZZZ__FnCalls!F43","v":"Jan 2013"},{"$f":"ZZZ__FnCalls!F44","v":"Feb 2013"},{"$f":"ZZZ__FnCalls!F45","v":"Mar 2013"},{"$f":"ZZZ__FnCalls!F46","v":"Apr 2013"},{"$f":"ZZZ__FnCalls!F47","v":"May 2013"},{"$f":"ZZZ__FnCalls!F48","v":"Jun 2013"},{"$f":"ZZZ__FnCalls!F49","v":"Jul 2013"},{"$f":"ZZZ__FnCalls!F50","v":"Aug 2013"},{"$f":"ZZZ__FnCalls!F51","v":"Sep 2013"},{"$f":"ZZZ__FnCalls!F52","v":"Oct 2013"},{"$f":"ZZZ__FnCalls!F53","v":"Nov 2013"},{"$f":"ZZZ__FnCalls!F54","v":"Dec 2013"},{"$f":"ZZZ__FnCalls!H43","v":"2013"},{"$f":"ZZZ__FnCalls!F55","v":"Jan 2014"},{"$f":"ZZZ__FnCalls!F56","v":"Feb 2014"},{"$f":"ZZZ__FnCalls!F57","v":"Mar 2014"},{"$f":"ZZZ__FnCalls!F58","v":"Apr 2014"},{"$f":"ZZZ__FnCalls!F59","v":"May 2014"},{"$f":"ZZZ__FnCalls!F60","v":"Jun 2014"},{"$f":"ZZZ__FnCalls!F61","v":"Jul 2014"},{"$f":"ZZZ__FnCalls!F62","v":"Aug 2014"},{"$f":"ZZZ__FnCalls!F63","v":"Sep 2014"},{"$f":"ZZZ__FnCalls!F64","v":"Oct 2014"},{"$f":"ZZZ__FnCalls!F65","v":"Nov 2014"},{"$f":"ZZZ__FnCalls!F66","v":"Dec 2014"},{"$f":"ZZZ__FnCalls!H55","v":"2014"},{"$f":"ZZZ__FnCalls!F67","v":"Jan 2015"},{"$f":"ZZZ__FnCalls!F68","v":"Feb 2015"},{"$f":"ZZZ__FnCalls!F69","v":"Mar 2015"},{"$f":"ZZZ__FnCalls!F70","v":"Apr 2015"},{"$f":"ZZZ__FnCalls!F71","v":"May 2015"},{"$f":"ZZZ__FnCalls!F72","v":"Jun 2015"},{"$f":"ZZZ__FnCalls!F73","v":"Jul 2015"},{"$f":"ZZZ__FnCalls!F74","v":"Aug 2015"},{"$f":"ZZZ__FnCalls!F75","v":"Sep 2015"},{"$f":"ZZZ__FnCalls!F76","v":"Oct 2015"},{"$f":"ZZZ__FnCalls!F77","v":"Nov 2015"},{"$f":"ZZZ__FnCalls!F78","v":"Dec 2015"},{"$f":"ZZZ__FnCalls!H67","v":"2015"},{"$f":"ZZZ__FnCalls!F79","v":"Jan 2016"},{"$f":"ZZZ__FnCalls!F80","v":"Feb 2016"},{"$f":"ZZZ__FnCalls!F81","v":"Mar 2016"},{"$f":"ZZZ__FnCalls!F82","v":"Apr 2016"},{"$f":"ZZZ__FnCalls!F83","v":"May 2016"},{"$f":"ZZZ__FnCalls!F84","v":"Jun 2016"},{"$f":"ZZZ__FnCalls!F85","v":"Jul 2016"},{"$f":"ZZZ__FnCalls!F86","v":"Aug 2016"},{"$f":"ZZZ__FnCalls!F87","v":"Sep 2016"},{"$f":"ZZZ__FnCalls!F88","v":"Oct 2016"},{"$f":"ZZZ__FnCalls!F89","v":"Nov 2016"},{"$f":"ZZZ__FnCalls!F90","v":"Dec 2016"},{"$f":"ZZZ__FnCalls!H79","v":"2016"},{"$f":"ZZZ__FnCalls!F91","v":"Jan 2017"},{"$f":"ZZZ__FnCalls!F92","v":"Feb 2017"},{"$f":"ZZZ__FnCalls!F93","v":"Mar 2017"},{"$f":"ZZZ__FnCalls!F94","v":"Apr 2017"},{"$f":"ZZZ__FnCalls!F95","v":"May 2017"},{"$f":"ZZZ__FnCalls!F96","v":"Jun 2017"},{"$f":"ZZZ__FnCalls!F97","v":"Jul 2017"},{"$f":"ZZZ__FnCalls!F98","v":"Aug 2017"},{"$f":"ZZZ__FnCalls!F99","v":"Sep 2017"},{"$f":"ZZZ__FnCalls!F100","v":"Oct 2017"},{"$f":"ZZZ__FnCalls!F101","v":"Nov 2017"},{"$f":"ZZZ__FnCalls!F102","v":"Dec 2017"},{"$f":"ZZZ__FnCalls!H91","v":"2017"},{"$f":"ZZZ__FnCalls!F103","v":"Jan 2018"},{"$f":"ZZZ__FnCalls!F104","v":"Feb 2018"},{"$f":"ZZZ__FnCalls!F105","v":"Mar 2018"},{"$f":"ZZZ__FnCalls!F106","v":"Apr 2018"},{"$f":"ZZZ__FnCalls!F107","v":"May 2018"},{"$f":"ZZZ__FnCalls!F108","v":"Jun 2018"},{"$f":"ZZZ__FnCalls!F109","v":"Jul 2018"},{"$f":"ZZZ__FnCalls!F110","v":"Aug 2018"},{"$f":"ZZZ__FnCalls!F111","v":"Sep 2018"},{"$f":"ZZZ__FnCalls!F112","v":"Oct 2018"},{"$f":"ZZZ__FnCalls!F113","v":"Nov 2018"},{"$f":"ZZZ__FnCalls!F114","v":"Dec 2018"},{"$f":"ZZZ__FnCalls!H103","v":"2018"},{"$f":"ZZZ__FnCalls!F115","v":"Jan 2019"},{"$f":"ZZZ__FnCalls!F116","v":"Feb 2019"},{"$f":"ZZZ__FnCalls!F117","v":"Mar 2019"},{"$f":"ZZZ__FnCalls!F118","v":"Apr 2019"},{"$f":"ZZZ__FnCalls!F119","v":"May 2019"},{"$f":"ZZZ__FnCalls!F120","v":"Jun 2019"},{"$f":"ZZZ__FnCalls!F121","v":"Jul 2019"},{"$f":"ZZZ__FnCalls!F122","v":"Aug 2019"},{"$f":"ZZZ__FnCalls!F123","v":"Sep 2019"},{"$f":"ZZZ__FnCalls!F124","v":"Oct 2019"},{"$f":"ZZZ__FnCalls!F125","v":"Nov 2019"},{"$f":"ZZZ__FnCalls!F126","v":"Dec 2019"},{"$f":"ZZZ__FnCalls!H115","v":"2019"},{"$f":"ZZZ__FnCalls!F127","v":"Jan 2020"},{"$f":"ZZZ__FnCalls!F128","v":"Feb 2020"},{"$f":"ZZZ__FnCalls!F129","v":"Mar 2020"},{"$f":"ZZZ__FnCalls!F130","v":"Apr 2020"},{"$f":"ZZZ__FnCalls!F131","v":"May 2020"},{"$f":"ZZZ__FnCalls!F132","v":"Jun 2020"},{"$f":"ZZZ__FnCalls!F133","v":"Jul 2020"},{"$f":"ZZZ__FnCalls!F134","v":"Aug 2020"},{"$f":"ZZZ__FnCalls!F135","v":"Sep 2020"},{"$f":"ZZZ__FnCalls!F136","v":"Oct 2020"},{"$f":"ZZZ__FnCalls!F137","v":"Nov 2020"},{"$f":"ZZZ__FnCalls!F138","v":"Dec 2020"},{"$f":"ZZZ__FnCalls!H127","v":"2020"}]
[null,{"$f":"ZZZ__FnCalls!F7","v":"Jan 2010"},{"$f":"ZZZ__FnCalls!F8","v":"Feb 2010"},{"$f":"ZZZ__FnCalls!F9","v":"Mar 2010"},{"$f":"ZZZ__FnCalls!F10","v":"Apr 2010"},{"$f":"ZZZ__FnCalls!F11","v":"May 2010"},{"$f":"ZZZ__FnCalls!F12","v":"Jun 2010"},{"$f":"ZZZ__FnCalls!F13","v":"Jul 2010"},{"$f":"ZZZ__FnCalls!F14","v":"Aug 2010"},{"$f":"ZZZ__FnCalls!F15","v":"Sep 2010"},{"$f":"ZZZ__FnCalls!F16","v":"Oct 2010"},{"$f":"ZZZ__FnCalls!F17","v":"Nov 2010"},{"$f":"ZZZ__FnCalls!F18","v":"Dec 2010"},{"$f":"ZZZ__FnCalls!F7","v":"Jan 2010"},{"$f":"ZZZ__FnCalls!F19","v":"Jan 2011"},{"$f":"ZZZ__FnCalls!F20","v":"Feb 2011"},{"$f":"ZZZ__FnCalls!F21","v":"Mar 2011"},{"$f":"ZZZ__FnCalls!F22","v":"Apr 2011"},{"$f":"ZZZ__FnCalls!F23","v":"May 2011"},{"$f":"ZZZ__FnCalls!F24","v":"Jun 2011"},{"$f":"ZZZ__FnCalls!F25","v":"Jul 2011"},{"$f":"ZZZ__FnCalls!F26","v":"Aug 2011"},{"$f":"ZZZ__FnCalls!F27","v":"Sep 2011"},{"$f":"ZZZ__FnCalls!F28","v":"Oct 2011"},{"$f":"ZZZ__FnCalls!F29","v":"Nov 2011"},{"$f":"ZZZ__FnCalls!F30","v":"Dec 2011"},{"$f":"ZZZ__FnCalls!F19","v":"Jan 2011"},{"$f":"ZZZ__FnCalls!F31","v":"Jan 2012"},{"$f":"ZZZ__FnCalls!F32","v":"Feb 2012"},{"$f":"ZZZ__FnCalls!F33","v":"Mar 2012"},{"$f":"ZZZ__FnCalls!F34","v":"Apr 2012"},{"$f":"ZZZ__FnCalls!F35","v":"May 2012"},{"$f":"ZZZ__FnCalls!F36","v":"Jun 2012"},{"$f":"ZZZ__FnCalls!F37","v":"Jul 2012"},{"$f":"ZZZ__FnCalls!F38","v":"Aug 2012"},{"$f":"ZZZ__FnCalls!F39","v":"Sep 2012"},{"$f":"ZZZ__FnCalls!F40","v":"Oct 2012"},{"$f":"ZZZ__FnCalls!F41","v":"Nov 2012"},{"$f":"ZZZ__FnCalls!F42","v":"Dec 2012"},{"$f":"ZZZ__FnCalls!F31","v":"Jan 2012"},{"$f":"ZZZ__FnCalls!F43","v":"Jan 2013"},{"$f":"ZZZ__FnCalls!F44","v":"Feb 2013"},{"$f":"ZZZ__FnCalls!F45","v":"Mar 2013"},{"$f":"ZZZ__FnCalls!F46","v":"Apr 2013"},{"$f":"ZZZ__FnCalls!F47","v":"May 2013"},{"$f":"ZZZ__FnCalls!F48","v":"Jun 2013"},{"$f":"ZZZ__FnCalls!F49","v":"Jul 2013"},{"$f":"ZZZ__FnCalls!F50","v":"Aug 2013"},{"$f":"ZZZ__FnCalls!F51","v":"Sep 2013"},{"$f":"ZZZ__FnCalls!F52","v":"Oct 2013"},{"$f":"ZZZ__FnCalls!F53","v":"Nov 2013"},{"$f":"ZZZ__FnCalls!F54","v":"Dec 2013"},{"$f":"ZZZ__FnCalls!F43","v":"Jan 2013"},{"$f":"ZZZ__FnCalls!F55","v":"Jan 2014"},{"$f":"ZZZ__FnCalls!F56","v":"Feb 2014"},{"$f":"ZZZ__FnCalls!F57","v":"Mar 2014"},{"$f":"ZZZ__FnCalls!F58","v":"Apr 2014"},{"$f":"ZZZ__FnCalls!F59","v":"May 2014"},{"$f":"ZZZ__FnCalls!F60","v":"Jun 2014"},{"$f":"ZZZ__FnCalls!F61","v":"Jul 2014"},{"$f":"ZZZ__FnCalls!F62","v":"Aug 2014"},{"$f":"ZZZ__FnCalls!F63","v":"Sep 2014"},{"$f":"ZZZ__FnCalls!F64","v":"Oct 2014"},{"$f":"ZZZ__FnCalls!F65","v":"Nov 2014"},{"$f":"ZZZ__FnCalls!F66","v":"Dec 2014"},{"$f":"ZZZ__FnCalls!F55","v":"Jan 2014"},{"$f":"ZZZ__FnCalls!F67","v":"Jan 2015"},{"$f":"ZZZ__FnCalls!F68","v":"Feb 2015"},{"$f":"ZZZ__FnCalls!F69","v":"Mar 2015"},{"$f":"ZZZ__FnCalls!F70","v":"Apr 2015"},{"$f":"ZZZ__FnCalls!F71","v":"May 2015"},{"$f":"ZZZ__FnCalls!F72","v":"Jun 2015"},{"$f":"ZZZ__FnCalls!F73","v":"Jul 2015"},{"$f":"ZZZ__FnCalls!F74","v":"Aug 2015"},{"$f":"ZZZ__FnCalls!F75","v":"Sep 2015"},{"$f":"ZZZ__FnCalls!F76","v":"Oct 2015"},{"$f":"ZZZ__FnCalls!F77","v":"Nov 2015"},{"$f":"ZZZ__FnCalls!F78","v":"Dec 2015"},{"$f":"ZZZ__FnCalls!F67","v":"Jan 2015"},{"$f":"ZZZ__FnCalls!F79","v":"Jan 2016"},{"$f":"ZZZ__FnCalls!F80","v":"Feb 2016"},{"$f":"ZZZ__FnCalls!F81","v":"Mar 2016"},{"$f":"ZZZ__FnCalls!F82","v":"Apr 2016"},{"$f":"ZZZ__FnCalls!F83","v":"May 2016"},{"$f":"ZZZ__FnCalls!F84","v":"Jun 2016"},{"$f":"ZZZ__FnCalls!F85","v":"Jul 2016"},{"$f":"ZZZ__FnCalls!F86","v":"Aug 2016"},{"$f":"ZZZ__FnCalls!F87","v":"Sep 2016"},{"$f":"ZZZ__FnCalls!F88","v":"Oct 2016"},{"$f":"ZZZ__FnCalls!F89","v":"Nov 2016"},{"$f":"ZZZ__FnCalls!F90","v":"Dec 2016"},{"$f":"ZZZ__FnCalls!F79","v":"Jan 2016"},{"$f":"ZZZ__FnCalls!F91","v":"Jan 2017"},{"$f":"ZZZ__FnCalls!F92","v":"Feb 2017"},{"$f":"ZZZ__FnCalls!F93","v":"Mar 2017"},{"$f":"ZZZ__FnCalls!F94","v":"Apr 2017"},{"$f":"ZZZ__FnCalls!F95","v":"May 2017"},{"$f":"ZZZ__FnCalls!F96","v":"Jun 2017"},{"$f":"ZZZ__FnCalls!F97","v":"Jul 2017"},{"$f":"ZZZ__FnCalls!F98","v":"Aug 2017"},{"$f":"ZZZ__FnCalls!F99","v":"Sep 2017"},{"$f":"ZZZ__FnCalls!F100","v":"Oct 2017"},{"$f":"ZZZ__FnCalls!F101","v":"Nov 2017"},{"$f":"ZZZ__FnCalls!F102","v":"Dec 2017"},{"$f":"ZZZ__FnCalls!F91","v":"Jan 2017"},{"$f":"ZZZ__FnCalls!F103","v":"Jan 2018"},{"$f":"ZZZ__FnCalls!F104","v":"Feb 2018"},{"$f":"ZZZ__FnCalls!F105","v":"Mar 2018"},{"$f":"ZZZ__FnCalls!F106","v":"Apr 2018"},{"$f":"ZZZ__FnCalls!F107","v":"May 2018"},{"$f":"ZZZ__FnCalls!F108","v":"Jun 2018"},{"$f":"ZZZ__FnCalls!F109","v":"Jul 2018"},{"$f":"ZZZ__FnCalls!F110","v":"Aug 2018"},{"$f":"ZZZ__FnCalls!F111","v":"Sep 2018"},{"$f":"ZZZ__FnCalls!F112","v":"Oct 2018"},{"$f":"ZZZ__FnCalls!F113","v":"Nov 2018"},{"$f":"ZZZ__FnCalls!F114","v":"Dec 2018"},{"$f":"ZZZ__FnCalls!F103","v":"Jan 2018"},{"$f":"ZZZ__FnCalls!F115","v":"Jan 2019"},{"$f":"ZZZ__FnCalls!F116","v":"Feb 2019"},{"$f":"ZZZ__FnCalls!F117","v":"Mar 2019"},{"$f":"ZZZ__FnCalls!F118","v":"Apr 2019"},{"$f":"ZZZ__FnCalls!F119","v":"May 2019"},{"$f":"ZZZ__FnCalls!F120","v":"Jun 2019"},{"$f":"ZZZ__FnCalls!F121","v":"Jul 2019"},{"$f":"ZZZ__FnCalls!F122","v":"Aug 2019"},{"$f":"ZZZ__FnCalls!F123","v":"Sep 2019"},{"$f":"ZZZ__FnCalls!F124","v":"Oct 2019"},{"$f":"ZZZ__FnCalls!F125","v":"Nov 2019"},{"$f":"ZZZ__FnCalls!F126","v":"Dec 2019"},{"$f":"ZZZ__FnCalls!F115","v":"Jan 2019"},{"$f":"ZZZ__FnCalls!F127","v":"Jan 2020"},{"$f":"ZZZ__FnCalls!F128","v":"Feb 2020"},{"$f":"ZZZ__FnCalls!F129","v":"Mar 2020"},{"$f":"ZZZ__FnCalls!F130","v":"Apr 2020"},{"$f":"ZZZ__FnCalls!F131","v":"May 2020"},{"$f":"ZZZ__FnCalls!F132","v":"Jun 2020"},{"$f":"ZZZ__FnCalls!F133","v":"Jul 2020"},{"$f":"ZZZ__FnCalls!F134","v":"Aug 2020"},{"$f":"ZZZ__FnCalls!F135","v":"Sep 2020"},{"$f":"ZZZ__FnCalls!F136","v":"Oct 2020"},{"$f":"ZZZ__FnCalls!F137","v":"Nov 2020"},{"$f":"ZZZ__FnCalls!F138","v":"Dec 2020"},{"$f":"ZZZ__FnCalls!F127","v":"Jan 2020"}]
[{"$f":"\"Consumption_mean_1\"","v":"Consumption_mean_1"}]
[null,{"$f":"ZZZ__FnCalls!F7","v":"Jan 2010"},{"$f":"ZZZ__FnCalls!F8","v":"Feb 2010"},{"$f":"ZZZ__FnCalls!F9","v":"Mar 2010"},{"$f":"ZZZ__FnCalls!F10","v":"Apr 2010"},{"$f":"ZZZ__FnCalls!F11","v":"May 2010"},{"$f":"ZZZ__FnCalls!F12","v":"Jun 2010"},{"$f":"ZZZ__FnCalls!F13","v":"Jul 2010"},{"$f":"ZZZ__FnCalls!F14","v":"Aug 2010"},{"$f":"ZZZ__FnCalls!F15","v":"Sep 2010"},{"$f":"ZZZ__FnCalls!F16","v":"Oct 2010"},{"$f":"ZZZ__FnCalls!F17","v":"Nov 2010"},{"$f":"ZZZ__FnCalls!F18","v":"Dec 2010"},{"$f":"ZZZ__FnCalls!H7","v":"2010"},{"$f":"ZZZ__FnCalls!F19","v":"Jan 2011"},{"$f":"ZZZ__FnCalls!F20","v":"Feb 2011"},{"$f":"ZZZ__FnCalls!F21","v":"Mar 2011"},{"$f":"ZZZ__FnCalls!F22","v":"Apr 2011"},{"$f":"ZZZ__FnCalls!F23","v":"May 2011"},{"$f":"ZZZ__FnCalls!F24","v":"Jun 2011"},{"$f":"ZZZ__FnCalls!F25","v":"Jul 2011"},{"$f":"ZZZ__FnCalls!F26","v":"Aug 2011"},{"$f":"ZZZ__FnCalls!F27","v":"Sep 2011"},{"$f":"ZZZ__FnCalls!F28","v":"Oct 2011"},{"$f":"ZZZ__FnCalls!F29","v":"Nov 2011"},{"$f":"ZZZ__FnCalls!F30","v":"Dec 2011"},{"$f":"ZZZ__FnCalls!H19","v":"2011"},{"$f":"ZZZ__FnCalls!F31","v":"Jan 2012"},{"$f":"ZZZ__FnCalls!F32","v":"Feb 2012"},{"$f":"ZZZ__FnCalls!F33","v":"Mar 2012"},{"$f":"ZZZ__FnCalls!F34","v":"Apr 2012"},{"$f":"ZZZ__FnCalls!F35","v":"May 2012"},{"$f":"ZZZ__FnCalls!F36","v":"Jun 2012"},{"$f":"ZZZ__FnCalls!F37","v":"Jul 2012"},{"$f":"ZZZ__FnCalls!F38","v":"Aug 2012"},{"$f":"ZZZ__FnCalls!F39","v":"Sep 2012"},{"$f":"ZZZ__FnCalls!F40","v":"Oct 2012"},{"$f":"ZZZ__FnCalls!F41","v":"Nov 2012"},{"$f":"ZZZ__FnCalls!F42","v":"Dec 2012"},{"$f":"ZZZ__FnCalls!H31","v":"2012"},{"$f":"ZZZ__FnCalls!F43","v":"Jan 2013"},{"$f":"ZZZ__FnCalls!F44","v":"Feb 2013"},{"$f":"ZZZ__FnCalls!F45","v":"Mar 2013"},{"$f":"ZZZ__FnCalls!F46","v":"Apr 2013"},{"$f":"ZZZ__FnCalls!F47","v":"May 2013"},{"$f":"ZZZ__FnCalls!F48","v":"Jun 2013"},{"$f":"ZZZ__FnCalls!F49","v":"Jul 2013"},{"$f":"ZZZ__FnCalls!F50","v":"Aug 2013"},{"$f":"ZZZ__FnCalls!F51","v":"Sep 2013"},{"$f":"ZZZ__FnCalls!F52","v":"Oct 2013"},{"$f":"ZZZ__FnCalls!F53","v":"Nov 2013"},{"$f":"ZZZ__FnCalls!F54","v":"Dec 2013"},{"$f":"ZZZ__FnCalls!H43","v":"2013"},{"$f":"ZZZ__FnCalls!F55","v":"Jan 2014"},{"$f":"ZZZ__FnCalls!F56","v":"Feb 2014"},{"$f":"ZZZ__FnCalls!F57","v":"Mar 2014"},{"$f":"ZZZ__FnCalls!F58","v":"Apr 2014"},{"$f":"ZZZ__FnCalls!F59","v":"May 2014"},{"$f":"ZZZ__FnCalls!F60","v":"Jun 2014"},{"$f":"ZZZ__FnCalls!F61","v":"Jul 2014"},{"$f":"ZZZ__FnCalls!F62","v":"Aug 2014"},{"$f":"ZZZ__FnCalls!F63","v":"Sep 2014"},{"$f":"ZZZ__FnCalls!F64","v":"Oct 2014"},{"$f":"ZZZ__FnCalls!F65","v":"Nov 2014"},{"$f":"ZZZ__FnCalls!F66","v":"Dec 2014"},{"$f":"ZZZ__FnCalls!H55","v":"2014"},{"$f":"ZZZ__FnCalls!F67","v":"Jan 2015"},{"$f":"ZZZ__FnCalls!F68","v":"Feb 2015"},{"$f":"ZZZ__FnCalls!F69","v":"Mar 2015"},{"$f":"ZZZ__FnCalls!F70","v":"Apr 2015"},{"$f":"ZZZ__FnCalls!F71","v":"May 2015"},{"$f":"ZZZ__FnCalls!F72","v":"Jun 2015"},{"$f":"ZZZ__FnCalls!F73","v":"Jul 2015"},{"$f":"ZZZ__FnCalls!F74","v":"Aug 2015"},{"$f":"ZZZ__FnCalls!F75","v":"Sep 2015"},{"$f":"ZZZ__FnCalls!F76","v":"Oct 2015"},{"$f":"ZZZ__FnCalls!F77","v":"Nov 2015"},{"$f":"ZZZ__FnCalls!F78","v":"Dec 2015"},{"$f":"ZZZ__FnCalls!H67","v":"2015"},{"$f":"ZZZ__FnCalls!F79","v":"Jan 2016"},{"$f":"ZZZ__FnCalls!F80","v":"Feb 2016"},{"$f":"ZZZ__FnCalls!F81","v":"Mar 2016"},{"$f":"ZZZ__FnCalls!F82","v":"Apr 2016"},{"$f":"ZZZ__FnCalls!F83","v":"May 2016"},{"$f":"ZZZ__FnCalls!F84","v":"Jun 2016"},{"$f":"ZZZ__FnCalls!F85","v":"Jul 2016"},{"$f":"ZZZ__FnCalls!F86","v":"Aug 2016"},{"$f":"ZZZ__FnCalls!F87","v":"Sep 2016"},{"$f":"ZZZ__FnCalls!F88","v":"Oct 2016"},{"$f":"ZZZ__FnCalls!F89","v":"Nov 2016"},{"$f":"ZZZ__FnCalls!F90","v":"Dec 2016"},{"$f":"ZZZ__FnCalls!H79","v":"2016"},{"$f":"ZZZ__FnCalls!F91","v":"Jan 2017"},{"$f":"ZZZ__FnCalls!F92","v":"Feb 2017"},{"$f":"ZZZ__FnCalls!F93","v":"Mar 2017"},{"$f":"ZZZ__FnCalls!F94","v":"Apr 2017"},{"$f":"ZZZ__FnCalls!F95","v":"May 2017"},{"$f":"ZZZ__FnCalls!F96","v":"Jun 2017"},{"$f":"ZZZ__FnCalls!F97","v":"Jul 2017"},{"$f":"ZZZ__FnCalls!F98","v":"Aug 2017"},{"$f":"ZZZ__FnCalls!F99","v":"Sep 2017"},{"$f":"ZZZ__FnCalls!F100","v":"Oct 2017"},{"$f":"ZZZ__FnCalls!F101","v":"Nov 2017"},{"$f":"ZZZ__FnCalls!F102","v":"Dec 2017"},{"$f":"ZZZ__FnCalls!H91","v":"2017"},{"$f":"ZZZ__FnCalls!F103","v":"Jan 2018"},{"$f":"ZZZ__FnCalls!F104","v":"Feb 2018"},{"$f":"ZZZ__FnCalls!F105","v":"Mar 2018"},{"$f":"ZZZ__FnCalls!F106","v":"Apr 2018"},{"$f":"ZZZ__FnCalls!F107","v":"May 2018"},{"$f":"ZZZ__FnCalls!F108","v":"Jun 2018"},{"$f":"ZZZ__FnCalls!F109","v":"Jul 2018"},{"$f":"ZZZ__FnCalls!F110","v":"Aug 2018"},{"$f":"ZZZ__FnCalls!F111","v":"Sep 2018"},{"$f":"ZZZ__FnCalls!F112","v":"Oct 2018"},{"$f":"ZZZ__FnCalls!F113","v":"Nov 2018"},{"$f":"ZZZ__FnCalls!F114","v":"Dec 2018"},{"$f":"ZZZ__FnCalls!H103","v":"2018"},{"$f":"ZZZ__FnCalls!F115","v":"Jan 2019"},{"$f":"ZZZ__FnCalls!F116","v":"Feb 2019"},{"$f":"ZZZ__FnCalls!F117","v":"Mar 2019"},{"$f":"ZZZ__FnCalls!F118","v":"Apr 2019"},{"$f":"ZZZ__FnCalls!F119","v":"May 2019"},{"$f":"ZZZ__FnCalls!F120","v":"Jun 2019"},{"$f":"ZZZ__FnCalls!F121","v":"Jul 2019"},{"$f":"ZZZ__FnCalls!F122","v":"Aug 2019"},{"$f":"ZZZ__FnCalls!F123","v":"Sep 2019"},{"$f":"ZZZ__FnCalls!F124","v":"Oct 2019"},{"$f":"ZZZ__FnCalls!F125","v":"Nov 2019"},{"$f":"ZZZ__FnCalls!F126","v":"Dec 2019"},{"$f":"ZZZ__FnCalls!H115","v":"2019"},{"$f":"ZZZ__FnCalls!F127","v":"Jan 2020"},{"$f":"ZZZ__FnCalls!F128","v":"Feb 2020"},{"$f":"ZZZ__FnCalls!F129","v":"Mar 2020"},{"$f":"ZZZ__FnCalls!F130","v":"Apr 2020"},{"$f":"ZZZ__FnCalls!F131","v":"May 2020"},{"$f":"ZZZ__FnCalls!F132","v":"Jun 2020"},{"$f":"ZZZ__FnCalls!F133","v":"Jul 2020"},{"$f":"ZZZ__FnCalls!F134","v":"Aug 2020"},{"$f":"ZZZ__FnCalls!F135","v":"Sep 2020"},{"$f":"ZZZ__FnCalls!F136","v":"Oct 2020"},{"$f":"ZZZ__FnCalls!F137","v":"Nov 2020"},{"$f":"ZZZ__FnCalls!F138","v":"Dec 2020"},{"$f":"ZZZ__FnCalls!H127","v":"2020"}]
[null,{"$f":"ZZZ__FnCalls!A7","v":"2010-01-01"},{"$f":"ZZZ__FnCalls!A8","v":"2010-02-01"},{"$f":"ZZZ__FnCalls!A9","v":"2010-03-01"},{"$f":"ZZZ__FnCalls!A10","v":"2010-04-01"},{"$f":"ZZZ__FnCalls!A11","v":"2010-05-01"},{"$f":"ZZZ__FnCalls!A12","v":"2010-06-01"},{"$f":"ZZZ__FnCalls!A13","v":"2010-07-01"},{"$f":"ZZZ__FnCalls!A14","v":"2010-08-01"},{"$f":"ZZZ__FnCalls!A15","v":"2010-09-01"},{"$f":"ZZZ__FnCalls!A16","v":"2010-10-01"},{"$f":"ZZZ__FnCalls!A17","v":"2010-11-01"},{"$f":"ZZZ__FnCalls!A18","v":"2010-12-01"},{"$f":"ZZZ__FnCalls!A7","v":"2010-01-01"},{"$f":"ZZZ__FnCalls!A19","v":"2011-01-01"},{"$f":"ZZZ__FnCalls!A20","v":"2011-02-01"},{"$f":"ZZZ__FnCalls!A21","v":"2011-03-01"},{"$f":"ZZZ__FnCalls!A22","v":"2011-04-01"},{"$f":"ZZZ__FnCalls!A23","v":"2011-05-01"},{"$f":"ZZZ__FnCalls!A24","v":"2011-06-01"},{"$f":"ZZZ__FnCalls!A25","v":"2011-07-01"},{"$f":"ZZZ__FnCalls!A26","v":"2011-08-01"},{"$f":"ZZZ__FnCalls!A27","v":"2011-09-01"},{"$f":"ZZZ__FnCalls!A28","v":"2011-10-01"},{"$f":"ZZZ__FnCalls!A29","v":"2011-11-01"},{"$f":"ZZZ__FnCalls!A30","v":"2011-12-01"},{"$f":"ZZZ__FnCalls!A19","v":"2011-01-01"},{"$f":"ZZZ__FnCalls!A31","v":"2012-01-01"},{"$f":"ZZZ__FnCalls!A32","v":"2012-02-01"},{"$f":"ZZZ__FnCalls!A33","v":"2012-03-01"},{"$f":"ZZZ__FnCalls!A34","v":"2012-04-01"},{"$f":"ZZZ__FnCalls!A35","v":"2012-05-01"},{"$f":"ZZZ__FnCalls!A36","v":"2012-06-01"},{"$f":"ZZZ__FnCalls!A37","v":"2012-07-01"},{"$f":"ZZZ__FnCalls!A38","v":"2012-08-01"},{"$f":"ZZZ__FnCalls!A39","v":"2012-09-01"},{"$f":"ZZZ__FnCalls!A40","v":"2012-10-01"},{"$f":"ZZZ__FnCalls!A41","v":"2012-11-01"},{"$f":"ZZZ__FnCalls!A42","v":"2012-12-01"},{"$f":"ZZZ__FnCalls!A31","v":"2012-01-01"},{"$f":"ZZZ__FnCalls!A43","v":"2013-01-01"},{"$f":"ZZZ__FnCalls!A44","v":"2013-02-01"},{"$f":"ZZZ__FnCalls!A45","v":"2013-03-01"},{"$f":"ZZZ__FnCalls!A46","v":"2013-04-01"},{"$f":"ZZZ__FnCalls!A47","v":"2013-05-01"},{"$f":"ZZZ__FnCalls!A48","v":"2013-06-01"},{"$f":"ZZZ__FnCalls!A49","v":"2013-07-01"},{"$f":"ZZZ__FnCalls!A50","v":"2013-08-01"},{"$f":"ZZZ__FnCalls!A51","v":"2013-09-01"},{"$f":"ZZZ__FnCalls!A52","v":"2013-10-01"},{"$f":"ZZZ__FnCalls!A53","v":"2013-11-01"},{"$f":"ZZZ__FnCalls!A54","v":"2013-12-01"},{"$f":"ZZZ__FnCalls!A43","v":"2013-01-01"},{"$f":"ZZZ__FnCalls!A55","v":"2014-01-01"},{"$f":"ZZZ__FnCalls!A56","v":"2014-02-01"},{"$f":"ZZZ__FnCalls!A57","v":"2014-03-01"},{"$f":"ZZZ__FnCalls!A58","v":"2014-04-01"},{"$f":"ZZZ__FnCalls!A59","v":"2014-05-01"},{"$f":"ZZZ__FnCalls!A60","v":"2014-06-01"},{"$f":"ZZZ__FnCalls!A61","v":"2014-07-01"},{"$f":"ZZZ__FnCalls!A62","v":"2014-08-01"},{"$f":"ZZZ__FnCalls!A63","v":"2014-09-01"},{"$f":"ZZZ__FnCalls!A64","v":"2014-10-01"},{"$f":"ZZZ__FnCalls!A65","v":"2014-11-01"},{"$f":"ZZZ__FnCalls!A66","v":"2014-12-01"},{"$f":"ZZZ__FnCalls!A55","v":"2014-01-01"},{"$f":"ZZZ__FnCalls!A67","v":"2015-01-01"},{"$f":"ZZZ__FnCalls!A68","v":"2015-02-01"},{"$f":"ZZZ__FnCalls!A69","v":"2015-03-01"},{"$f":"ZZZ__FnCalls!A70","v":"2015-04-01"},{"$f":"ZZZ__FnCalls!A71","v":"2015-05-01"},{"$f":"ZZZ__FnCalls!A72","v":"2015-06-01"},{"$f":"ZZZ__FnCalls!A73","v":"2015-07-01"},{"$f":"ZZZ__FnCalls!A74","v":"2015-08-01"},{"$f":"ZZZ__FnCalls!A75","v":"2015-09-01"},{"$f":"ZZZ__FnCalls!A76","v":"2015-10-01"},{"$f":"ZZZ__FnCalls!A77","v":"2015-11-01"},{"$f":"ZZZ__FnCalls!A78","v":"2015-12-01"},{"$f":"ZZZ__FnCalls!A67","v":"2015-01-01"},{"$f":"ZZZ__FnCalls!A79","v":"2016-01-01"},{"$f":"ZZZ__FnCalls!A80","v":"2016-02-01"},{"$f":"ZZZ__FnCalls!A81","v":"2016-03-01"},{"$f":"ZZZ__FnCalls!A82","v":"2016-04-01"},{"$f":"ZZZ__FnCalls!A83","v":"2016-05-01"},{"$f":"ZZZ__FnCalls!A84","v":"2016-06-01"},{"$f":"ZZZ__FnCalls!A85","v":"2016-07-01"},{"$f":"ZZZ__FnCalls!A86","v":"2016-08-01"},{"$f":"ZZZ__FnCalls!A87","v":"2016-09-01"},{"$f":"ZZZ__FnCalls!A88","v":"2016-10-01"},{"$f":"ZZZ__FnCalls!A89","v":"2016-11-01"},{"$f":"ZZZ__FnCalls!A90","v":"2016-12-01"},{"$f":"ZZZ__FnCalls!A79","v":"2016-01-01"},{"$f":"ZZZ__FnCalls!A91","v":"2017-01-01"},{"$f":"ZZZ__FnCalls!A92","v":"2017-02-01"},{"$f":"ZZZ__FnCalls!A93","v":"2017-03-01"},{"$f":"ZZZ__FnCalls!A94","v":"2017-04-01"},{"$f":"ZZZ__FnCalls!A95","v":"2017-05-01"},{"$f":"ZZZ__FnCalls!A96","v":"2017-06-01"},{"$f":"ZZZ__FnCalls!A97","v":"2017-07-01"},{"$f":"ZZZ__FnCalls!A98","v":"2017-08-01"},{"$f":"ZZZ__FnCalls!A99","v":"2017-09-01"},{"$f":"ZZZ__FnCalls!A100","v":"2017-10-01"},{"$f":"ZZZ__FnCalls!A101","v":"2017-11-01"},{"$f":"ZZZ__FnCalls!A102","v":"2017-12-01"},{"$f":"ZZZ__FnCalls!A91","v":"2017-01-01"},{"$f":"ZZZ__FnCalls!A103","v":"2018-01-01"},{"$f":"ZZZ__FnCalls!A104","v":"2018-02-01"},{"$f":"ZZZ__FnCalls!A105","v":"2018-03-01"},{"$f":"ZZZ__FnCalls!A106","v":"2018-04-01"},{"$f":"ZZZ__FnCalls!A107","v":"2018-05-01"},{"$f":"ZZZ__FnCalls!A108","v":"2018-06-01"},{"$f":"ZZZ__FnCalls!A109","v":"2018-07-01"},{"$f":"ZZZ__FnCalls!A110","v":"2018-08-01"},{"$f":"ZZZ__FnCalls!A111","v":"2018-09-01"},{"$f":"ZZZ__FnCalls!A112","v":"2018-10-01"},{"$f":"ZZZ__FnCalls!A113","v":"2018-11-01"},{"$f":"ZZZ__FnCalls!A114","v":"2018-12-01"},{"$f":"ZZZ__FnCalls!A103","v":"2018-01-01"},{"$f":"ZZZ__FnCalls!A115","v":"2019-01-01"},{"$f":"ZZZ__FnCalls!A116","v":"2019-02-01"},{"$f":"ZZZ__FnCalls!A117","v":"2019-03-01"},{"$f":"ZZZ__FnCalls!A118","v":"2019-04-01"},{"$f":"ZZZ__FnCalls!A119","v":"2019-05-01"},{"$f":"ZZZ__FnCalls!A120","v":"2019-06-01"},{"$f":"ZZZ__FnCalls!A121","v":"2019-07-01"},{"$f":"ZZZ__FnCalls!A122","v":"2019-08-01"},{"$f":"ZZZ__FnCalls!A123","v":"2019-09-01"},{"$f":"ZZZ__FnCalls!A124","v":"2019-10-01"},{"$f":"ZZZ__FnCalls!A125","v":"2019-11-01"},{"$f":"ZZZ__FnCalls!A126","v":"2019-12-01"},{"$f":"ZZZ__FnCalls!A115","v":"2019-01-01"},{"$f":"ZZZ__FnCalls!A127","v":"2020-01-01"},{"$f":"ZZZ__FnCalls!A128","v":"2020-02-01"},{"$f":"ZZZ__FnCalls!A129","v":"2020-03-01"},{"$f":"ZZZ__FnCalls!A130","v":"2020-04-01"},{"$f":"ZZZ__FnCalls!A131","v":"2020-05-01"},{"$f":"ZZZ__FnCalls!A132","v":"2020-06-01"},{"$f":"ZZZ__FnCalls!A133","v":"2020-07-01"},{"$f":"ZZZ__FnCalls!A134","v":"2020-08-01"},{"$f":"ZZZ__FnCalls!A135","v":"2020-09-01"},{"$f":"ZZZ__FnCalls!A136","v":"2020-10-01"},{"$f":"ZZZ__FnCalls!A137","v":"2020-11-01"},{"$f":"ZZZ__FnCalls!A138","v":"2020-12-01"},{"$f":"ZZZ__FnCalls!A127","v":"2020-01-01"}]
[{"$f":"\"Consumption_mean_2\"","v":"Consumption_mean_2"}]
[null,{"$f":"ZZZ__FnCalls!F7","v":"Jan 2010"},{"$f":"ZZZ__FnCalls!F8","v":"Feb 2010"},{"$f":"ZZZ__FnCalls!F9","v":"Mar 2010"},{"$f":"ZZZ__FnCalls!F10","v":"Apr 2010"},{"$f":"ZZZ__FnCalls!F11","v":"May 2010"},{"$f":"ZZZ__FnCalls!F12","v":"Jun 2010"},{"$f":"ZZZ__FnCalls!F13","v":"Jul 2010"},{"$f":"ZZZ__FnCalls!F14","v":"Aug 2010"},{"$f":"ZZZ__FnCalls!F15","v":"Sep 2010"},{"$f":"ZZZ__FnCalls!F16","v":"Oct 2010"},{"$f":"ZZZ__FnCalls!F17","v":"Nov 2010"},{"$f":"ZZZ__FnCalls!F18","v":"Dec 2010"},{"$f":"ZZZ__FnCalls!H7","v":"2010"},{"$f":"ZZZ__FnCalls!F19","v":"Jan 2011"},{"$f":"ZZZ__FnCalls!F20","v":"Feb 2011"},{"$f":"ZZZ__FnCalls!F21","v":"Mar 2011"},{"$f":"ZZZ__FnCalls!F22","v":"Apr 2011"},{"$f":"ZZZ__FnCalls!F23","v":"May 2011"},{"$f":"ZZZ__FnCalls!F24","v":"Jun 2011"},{"$f":"ZZZ__FnCalls!F25","v":"Jul 2011"},{"$f":"ZZZ__FnCalls!F26","v":"Aug 2011"},{"$f":"ZZZ__FnCalls!F27","v":"Sep 2011"},{"$f":"ZZZ__FnCalls!F28","v":"Oct 2011"},{"$f":"ZZZ__FnCalls!F29","v":"Nov 2011"},{"$f":"ZZZ__FnCalls!F30","v":"Dec 2011"},{"$f":"ZZZ__FnCalls!H19","v":"2011"},{"$f":"ZZZ__FnCalls!F31","v":"Jan 2012"},{"$f":"ZZZ__FnCalls!F32","v":"Feb 2012"},{"$f":"ZZZ__FnCalls!F33","v":"Mar 2012"},{"$f":"ZZZ__FnCalls!F34","v":"Apr 2012"},{"$f":"ZZZ__FnCalls!F35","v":"May 2012"},{"$f":"ZZZ__FnCalls!F36","v":"Jun 2012"},{"$f":"ZZZ__FnCalls!F37","v":"Jul 2012"},{"$f":"ZZZ__FnCalls!F38","v":"Aug 2012"},{"$f":"ZZZ__FnCalls!F39","v":"Sep 2012"},{"$f":"ZZZ__FnCalls!F40","v":"Oct 2012"},{"$f":"ZZZ__FnCalls!F41","v":"Nov 2012"},{"$f":"ZZZ__FnCalls!F42","v":"Dec 2012"},{"$f":"ZZZ__FnCalls!H31","v":"2012"},{"$f":"ZZZ__FnCalls!F43","v":"Jan 2013"},{"$f":"ZZZ__FnCalls!F44","v":"Feb 2013"},{"$f":"ZZZ__FnCalls!F45","v":"Mar 2013"},{"$f":"ZZZ__FnCalls!F46","v":"Apr 2013"},{"$f":"ZZZ__FnCalls!F47","v":"May 2013"},{"$f":"ZZZ__FnCalls!F48","v":"Jun 2013"},{"$f":"ZZZ__FnCalls!F49","v":"Jul 2013"},{"$f":"ZZZ__FnCalls!F50","v":"Aug 2013"},{"$f":"ZZZ__FnCalls!F51","v":"Sep 2013"},{"$f":"ZZZ__FnCalls!F52","v":"Oct 2013"},{"$f":"ZZZ__FnCalls!F53","v":"Nov 2013"},{"$f":"ZZZ__FnCalls!F54","v":"Dec 2013"},{"$f":"ZZZ__FnCalls!H43","v":"2013"},{"$f":"ZZZ__FnCalls!F55","v":"Jan 2014"},{"$f":"ZZZ__FnCalls!F56","v":"Feb 2014"},{"$f":"ZZZ__FnCalls!F57","v":"Mar 2014"},{"$f":"ZZZ__FnCalls!F58","v":"Apr 2014"},{"$f":"ZZZ__FnCalls!F59","v":"May 2014"},{"$f":"ZZZ__FnCalls!F60","v":"Jun 2014"},{"$f":"ZZZ__FnCalls!F61","v":"Jul 2014"},{"$f":"ZZZ__FnCalls!F62","v":"Aug 2014"},{"$f":"ZZZ__FnCalls!F63","v":"Sep 2014"},{"$f":"ZZZ__FnCalls!F64","v":"Oct 2014"},{"$f":"ZZZ__FnCalls!F65","v":"Nov 2014"},{"$f":"ZZZ__FnCalls!F66","v":"Dec 2014"},{"$f":"ZZZ__FnCalls!H55","v":"2014"},{"$f":"ZZZ__FnCalls!F67","v":"Jan 2015"},{"$f":"ZZZ__FnCalls!F68","v":"Feb 2015"},{"$f":"ZZZ__FnCalls!F69","v":"Mar 2015"},{"$f":"ZZZ__FnCalls!F70","v":"Apr 2015"},{"$f":"ZZZ__FnCalls!F71","v":"May 2015"},{"$f":"ZZZ__FnCalls!F72","v":"Jun 2015"},{"$f":"ZZZ__FnCalls!F73","v":"Jul 2015"},{"$f":"ZZZ__FnCalls!F74","v":"Aug 2015"},{"$f":"ZZZ__FnCalls!F75","v":"Sep 2015"},{"$f":"ZZZ__FnCalls!F76","v":"Oct 2015"},{"$f":"ZZZ__FnCalls!F77","v":"Nov 2015"},{"$f":"ZZZ__FnCalls!F78","v":"Dec 2015"},{"$f":"ZZZ__FnCalls!H67","v":"2015"},{"$f":"ZZZ__FnCalls!F79","v":"Jan 2016"},{"$f":"ZZZ__FnCalls!F80","v":"Feb 2016"},{"$f":"ZZZ__FnCalls!F81","v":"Mar 2016"},{"$f":"ZZZ__FnCalls!F82","v":"Apr 2016"},{"$f":"ZZZ__FnCalls!F83","v":"May 2016"},{"$f":"ZZZ__FnCalls!F84","v":"Jun 2016"},{"$f":"ZZZ__FnCalls!F85","v":"Jul 2016"},{"$f":"ZZZ__FnCalls!F86","v":"Aug 2016"},{"$f":"ZZZ__FnCalls!F87","v":"Sep 2016"},{"$f":"ZZZ__FnCalls!F88","v":"Oct 2016"},{"$f":"ZZZ__FnCalls!F89","v":"Nov 2016"},{"$f":"ZZZ__FnCalls!F90","v":"Dec 2016"},{"$f":"ZZZ__FnCalls!H79","v":"2016"},{"$f":"ZZZ__FnCalls!F91","v":"Jan 2017"},{"$f":"ZZZ__FnCalls!F92","v":"Feb 2017"},{"$f":"ZZZ__FnCalls!F93","v":"Mar 2017"},{"$f":"ZZZ__FnCalls!F94","v":"Apr 2017"},{"$f":"ZZZ__FnCalls!F95","v":"May 2017"},{"$f":"ZZZ__FnCalls!F96","v":"Jun 2017"},{"$f":"ZZZ__FnCalls!F97","v":"Jul 2017"},{"$f":"ZZZ__FnCalls!F98","v":"Aug 2017"},{"$f":"ZZZ__FnCalls!F99","v":"Sep 2017"},{"$f":"ZZZ__FnCalls!F100","v":"Oct 2017"},{"$f":"ZZZ__FnCalls!F101","v":"Nov 2017"},{"$f":"ZZZ__FnCalls!F102","v":"Dec 2017"},{"$f":"ZZZ__FnCalls!H91","v":"2017"},{"$f":"ZZZ__FnCalls!F103","v":"Jan 2018"},{"$f":"ZZZ__FnCalls!F104","v":"Feb 2018"},{"$f":"ZZZ__FnCalls!F105","v":"Mar 2018"},{"$f":"ZZZ__FnCalls!F106","v":"Apr 2018"},{"$f":"ZZZ__FnCalls!F107","v":"May 2018"},{"$f":"ZZZ__FnCalls!F108","v":"Jun 2018"},{"$f":"ZZZ__FnCalls!F109","v":"Jul 2018"},{"$f":"ZZZ__FnCalls!F110","v":"Aug 2018"},{"$f":"ZZZ__FnCalls!F111","v":"Sep 2018"},{"$f":"ZZZ__FnCalls!F112","v":"Oct 2018"},{"$f":"ZZZ__FnCalls!F113","v":"Nov 2018"},{"$f":"ZZZ__FnCalls!F114","v":"Dec 2018"},{"$f":"ZZZ__FnCalls!H103","v":"2018"},{"$f":"ZZZ__FnCalls!F115","v":"Jan 2019"},{"$f":"ZZZ__FnCalls!F116","v":"Feb 2019"},{"$f":"ZZZ__FnCalls!F117","v":"Mar 2019"},{"$f":"ZZZ__FnCalls!F118","v":"Apr 2019"},{"$f":"ZZZ__FnCalls!F119","v":"May 2019"},{"$f":"ZZZ__FnCalls!F120","v":"Jun 2019"},{"$f":"ZZZ__FnCalls!F121","v":"Jul 2019"},{"$f":"ZZZ__FnCalls!F122","v":"Aug 2019"},{"$f":"ZZZ__FnCalls!F123","v":"Sep 2019"},{"$f":"ZZZ__FnCalls!F124","v":"Oct 2019"},{"$f":"ZZZ__FnCalls!F125","v":"Nov 2019"},{"$f":"ZZZ__FnCalls!F126","v":"Dec 2019"},{"$f":"ZZZ__FnCalls!H115","v":"2019"},{"$f":"ZZZ__FnCalls!F127","v":"Jan 2020"},{"$f":"ZZZ__FnCalls!F128","v":"Feb 2020"},{"$f":"ZZZ__FnCalls!F129","v":"Mar 2020"},{"$f":"ZZZ__FnCalls!F130","v":"Apr 2020"},{"$f":"ZZZ__FnCalls!F131","v":"May 2020"},{"$f":"ZZZ__FnCalls!F132","v":"Jun 2020"},{"$f":"ZZZ__FnCalls!F133","v":"Jul 2020"},{"$f":"ZZZ__FnCalls!F134","v":"Aug 2020"},{"$f":"ZZZ__FnCalls!F135","v":"Sep 2020"},{"$f":"ZZZ__FnCalls!F136","v":"Oct 2020"},{"$f":"ZZZ__FnCalls!F137","v":"Nov 2020"},{"$f":"ZZZ__FnCalls!F138","v":"Dec 2020"},{"$f":"ZZZ__FnCalls!H127","v":"2020"}]
[null,{"$f":"ZZZ__FnCalls!F7","v":"Jan 2010"},{"$f":"ZZZ__FnCalls!F8","v":"Feb 2010"},{"$f":"ZZZ__FnCalls!F9","v":"Mar 2010"},{"$f":"ZZZ__FnCalls!F10","v":"Apr 2010"},{"$f":"ZZZ__FnCalls!F11","v":"May 2010"},{"$f":"ZZZ__FnCalls!F12","v":"Jun 2010"},{"$f":"ZZZ__FnCalls!F13","v":"Jul 2010"},{"$f":"ZZZ__FnCalls!F14","v":"Aug 2010"},{"$f":"ZZZ__FnCalls!F15","v":"Sep 2010"},{"$f":"ZZZ__FnCalls!F16","v":"Oct 2010"},{"$f":"ZZZ__FnCalls!F17","v":"Nov 2010"},{"$f":"ZZZ__FnCalls!F18","v":"Dec 2010"},{"$f":"ZZZ__FnCalls!F7","v":"Jan 2010"},{"$f":"ZZZ__FnCalls!F19","v":"Jan 2011"},{"$f":"ZZZ__FnCalls!F20","v":"Feb 2011"},{"$f":"ZZZ__FnCalls!F21","v":"Mar 2011"},{"$f":"ZZZ__FnCalls!F22","v":"Apr 2011"},{"$f":"ZZZ__FnCalls!F23","v":"May 2011"},{"$f":"ZZZ__FnCalls!F24","v":"Jun 2011"},{"$f":"ZZZ__FnCalls!F25","v":"Jul 2011"},{"$f":"ZZZ__FnCalls!F26","v":"Aug 2011"},{"$f":"ZZZ__FnCalls!F27","v":"Sep 2011"},{"$f":"ZZZ__FnCalls!F28","v":"Oct 2011"},{"$f":"ZZZ__FnCalls!F29","v":"Nov 2011"},{"$f":"ZZZ__FnCalls!F30","v":"Dec 2011"},{"$f":"ZZZ__FnCalls!F19","v":"Jan 2011"},{"$f":"ZZZ__FnCalls!F31","v":"Jan 2012"},{"$f":"ZZZ__FnCalls!F32","v":"Feb 2012"},{"$f":"ZZZ__FnCalls!F33","v":"Mar 2012"},{"$f":"ZZZ__FnCalls!F34","v":"Apr 2012"},{"$f":"ZZZ__FnCalls!F35","v":"May 2012"},{"$f":"ZZZ__FnCalls!F36","v":"Jun 2012"},{"$f":"ZZZ__FnCalls!F37","v":"Jul 2012"},{"$f":"ZZZ__FnCalls!F38","v":"Aug 2012"},{"$f":"ZZZ__FnCalls!F39","v":"Sep 2012"},{"$f":"ZZZ__FnCalls!F40","v":"Oct 2012"},{"$f":"ZZZ__FnCalls!F41","v":"Nov 2012"},{"$f":"ZZZ__FnCalls!F42","v":"Dec 2012"},{"$f":"ZZZ__FnCalls!F31","v":"Jan 2012"},{"$f":"ZZZ__FnCalls!F43","v":"Jan 2013"},{"$f":"ZZZ__FnCalls!F44","v":"Feb 2013"},{"$f":"ZZZ__FnCalls!F45","v":"Mar 2013"},{"$f":"ZZZ__FnCalls!F46","v":"Apr 2013"},{"$f":"ZZZ__FnCalls!F47","v":"May 2013"},{"$f":"ZZZ__FnCalls!F48","v":"Jun 2013"},{"$f":"ZZZ__FnCalls!F49","v":"Jul 2013"},{"$f":"ZZZ__FnCalls!F50","v":"Aug 2013"},{"$f":"ZZZ__FnCalls!F51","v":"Sep 2013"},{"$f":"ZZZ__FnCalls!F52","v":"Oct 2013"},{"$f":"ZZZ__FnCalls!F53","v":"Nov 2013"},{"$f":"ZZZ__FnCalls!F54","v":"Dec 2013"},{"$f":"ZZZ__FnCalls!F43","v":"Jan 2013"},{"$f":"ZZZ__FnCalls!F55","v":"Jan 2014"},{"$f":"ZZZ__FnCalls!F56","v":"Feb 2014"},{"$f":"ZZZ__FnCalls!F57","v":"Mar 2014"},{"$f":"ZZZ__FnCalls!F58","v":"Apr 2014"},{"$f":"ZZZ__FnCalls!F59","v":"May 2014"},{"$f":"ZZZ__FnCalls!F60","v":"Jun 2014"},{"$f":"ZZZ__FnCalls!F61","v":"Jul 2014"},{"$f":"ZZZ__FnCalls!F62","v":"Aug 2014"},{"$f":"ZZZ__FnCalls!F63","v":"Sep 2014"},{"$f":"ZZZ__FnCalls!F64","v":"Oct 2014"},{"$f":"ZZZ__FnCalls!F65","v":"Nov 2014"},{"$f":"ZZZ__FnCalls!F66","v":"Dec 2014"},{"$f":"ZZZ__FnCalls!F55","v":"Jan 2014"},{"$f":"ZZZ__FnCalls!F67","v":"Jan 2015"},{"$f":"ZZZ__FnCalls!F68","v":"Feb 2015"},{"$f":"ZZZ__FnCalls!F69","v":"Mar 2015"},{"$f":"ZZZ__FnCalls!F70","v":"Apr 2015"},{"$f":"ZZZ__FnCalls!F71","v":"May 2015"},{"$f":"ZZZ__FnCalls!F72","v":"Jun 2015"},{"$f":"ZZZ__FnCalls!F73","v":"Jul 2015"},{"$f":"ZZZ__FnCalls!F74","v":"Aug 2015"},{"$f":"ZZZ__FnCalls!F75","v":"Sep 2015"},{"$f":"ZZZ__FnCalls!F76","v":"Oct 2015"},{"$f":"ZZZ__FnCalls!F77","v":"Nov 2015"},{"$f":"ZZZ__FnCalls!F78","v":"Dec 2015"},{"$f":"ZZZ__FnCalls!F67","v":"Jan 2015"},{"$f":"ZZZ__FnCalls!F79","v":"Jan 2016"},{"$f":"ZZZ__FnCalls!F80","v":"Feb 2016"},{"$f":"ZZZ__FnCalls!F81","v":"Mar 2016"},{"$f":"ZZZ__FnCalls!F82","v":"Apr 2016"},{"$f":"ZZZ__FnCalls!F83","v":"May 2016"},{"$f":"ZZZ__FnCalls!F84","v":"Jun 2016"},{"$f":"ZZZ__FnCalls!F85","v":"Jul 2016"},{"$f":"ZZZ__FnCalls!F86","v":"Aug 2016"},{"$f":"ZZZ__FnCalls!F87","v":"Sep 2016"},{"$f":"ZZZ__FnCalls!F88","v":"Oct 2016"},{"$f":"ZZZ__FnCalls!F89","v":"Nov 2016"},{"$f":"ZZZ__FnCalls!F90","v":"Dec 2016"},{"$f":"ZZZ__FnCalls!F79","v":"Jan 2016"},{"$f":"ZZZ__FnCalls!F91","v":"Jan 2017"},{"$f":"ZZZ__FnCalls!F92","v":"Feb 2017"},{"$f":"ZZZ__FnCalls!F93","v":"Mar 2017"},{"$f":"ZZZ__FnCalls!F94","v":"Apr 2017"},{"$f":"ZZZ__FnCalls!F95","v":"May 2017"},{"$f":"ZZZ__FnCalls!F96","v":"Jun 2017"},{"$f":"ZZZ__FnCalls!F97","v":"Jul 2017"},{"$f":"ZZZ__FnCalls!F98","v":"Aug 2017"},{"$f":"ZZZ__FnCalls!F99","v":"Sep 2017"},{"$f":"ZZZ__FnCalls!F100","v":"Oct 2017"},{"$f":"ZZZ__FnCalls!F101","v":"Nov 2017"},{"$f":"ZZZ__FnCalls!F102","v":"Dec 2017"},{"$f":"ZZZ__FnCalls!F91","v":"Jan 2017"},{"$f":"ZZZ__FnCalls!F103","v":"Jan 2018"},{"$f":"ZZZ__FnCalls!F104","v":"Feb 2018"},{"$f":"ZZZ__FnCalls!F105","v":"Mar 2018"},{"$f":"ZZZ__FnCalls!F106","v":"Apr 2018"},{"$f":"ZZZ__FnCalls!F107","v":"May 2018"},{"$f":"ZZZ__FnCalls!F108","v":"Jun 2018"},{"$f":"ZZZ__FnCalls!F109","v":"Jul 2018"},{"$f":"ZZZ__FnCalls!F110","v":"Aug 2018"},{"$f":"ZZZ__FnCalls!F111","v":"Sep 2018"},{"$f":"ZZZ__FnCalls!F112","v":"Oct 2018"},{"$f":"ZZZ__FnCalls!F113","v":"Nov 2018"},{"$f":"ZZZ__FnCalls!F114","v":"Dec 2018"},{"$f":"ZZZ__FnCalls!F103","v":"Jan 2018"},{"$f":"ZZZ__FnCalls!F115","v":"Jan 2019"},{"$f":"ZZZ__FnCalls!F116","v":"Feb 2019"},{"$f":"ZZZ__FnCalls!F117","v":"Mar 2019"},{"$f":"ZZZ__FnCalls!F118","v":"Apr 2019"},{"$f":"ZZZ__FnCalls!F119","v":"May 2019"},{"$f":"ZZZ__FnCalls!F120","v":"Jun 2019"},{"$f":"ZZZ__FnCalls!F121","v":"Jul 2019"},{"$f":"ZZZ__FnCalls!F122","v":"Aug 2019"},{"$f":"ZZZ__FnCalls!F123","v":"Sep 2019"},{"$f":"ZZZ__FnCalls!F124","v":"Oct 2019"},{"$f":"ZZZ__FnCalls!F125","v":"Nov 2019"},{"$f":"ZZZ__FnCalls!F126","v":"Dec 2019"},{"$f":"ZZZ__FnCalls!F115","v":"Jan 2019"},{"$f":"ZZZ__FnCalls!F127","v":"Jan 2020"},{"$f":"ZZZ__FnCalls!F128","v":"Feb 2020"},{"$f":"ZZZ__FnCalls!F129","v":"Mar 2020"},{"$f":"ZZZ__FnCalls!F130","v":"Apr 2020"},{"$f":"ZZZ__FnCalls!F131","v":"May 2020"},{"$f":"ZZZ__FnCalls!F132","v":"Jun 2020"},{"$f":"ZZZ__FnCalls!F133","v":"Jul 2020"},{"$f":"ZZZ__FnCalls!F134","v":"Aug 2020"},{"$f":"ZZZ__FnCalls!F135","v":"Sep 2020"},{"$f":"ZZZ__FnCalls!F136","v":"Oct 2020"},{"$f":"ZZZ__FnCalls!F137","v":"Nov 2020"},{"$f":"ZZZ__FnCalls!F138","v":"Dec 2020"},{"$f":"ZZZ__FnCalls!F127","v":"Jan 2020"}]
[{"$f":"\"Consumption_stdev_1\"","v":"Consumption_stdev_1"}]
[null,{"$f":"ZZZ__FnCalls!F7","v":"Jan 2010"},{"$f":"ZZZ__FnCalls!F8","v":"Feb 2010"},{"$f":"ZZZ__FnCalls!F9","v":"Mar 2010"},{"$f":"ZZZ__FnCalls!F10","v":"Apr 2010"},{"$f":"ZZZ__FnCalls!F11","v":"May 2010"},{"$f":"ZZZ__FnCalls!F12","v":"Jun 2010"},{"$f":"ZZZ__FnCalls!F13","v":"Jul 2010"},{"$f":"ZZZ__FnCalls!F14","v":"Aug 2010"},{"$f":"ZZZ__FnCalls!F15","v":"Sep 2010"},{"$f":"ZZZ__FnCalls!F16","v":"Oct 2010"},{"$f":"ZZZ__FnCalls!F17","v":"Nov 2010"},{"$f":"ZZZ__FnCalls!F18","v":"Dec 2010"},{"$f":"ZZZ__FnCalls!H7","v":"2010"},{"$f":"ZZZ__FnCalls!F19","v":"Jan 2011"},{"$f":"ZZZ__FnCalls!F20","v":"Feb 2011"},{"$f":"ZZZ__FnCalls!F21","v":"Mar 2011"},{"$f":"ZZZ__FnCalls!F22","v":"Apr 2011"},{"$f":"ZZZ__FnCalls!F23","v":"May 2011"},{"$f":"ZZZ__FnCalls!F24","v":"Jun 2011"},{"$f":"ZZZ__FnCalls!F25","v":"Jul 2011"},{"$f":"ZZZ__FnCalls!F26","v":"Aug 2011"},{"$f":"ZZZ__FnCalls!F27","v":"Sep 2011"},{"$f":"ZZZ__FnCalls!F28","v":"Oct 2011"},{"$f":"ZZZ__FnCalls!F29","v":"Nov 2011"},{"$f":"ZZZ__FnCalls!F30","v":"Dec 2011"},{"$f":"ZZZ__FnCalls!H19","v":"2011"},{"$f":"ZZZ__FnCalls!F31","v":"Jan 2012"},{"$f":"ZZZ__FnCalls!F32","v":"Feb 2012"},{"$f":"ZZZ__FnCalls!F33","v":"Mar 2012"},{"$f":"ZZZ__FnCalls!F34","v":"Apr 2012"},{"$f":"ZZZ__FnCalls!F35","v":"May 2012"},{"$f":"ZZZ__FnCalls!F36","v":"Jun 2012"},{"$f":"ZZZ__FnCalls!F37","v":"Jul 2012"},{"$f":"ZZZ__FnCalls!F38","v":"Aug 2012"},{"$f":"ZZZ__FnCalls!F39","v":"Sep 2012"},{"$f":"ZZZ__FnCalls!F40","v":"Oct 2012"},{"$f":"ZZZ__FnCalls!F41","v":"Nov 2012"},{"$f":"ZZZ__FnCalls!F42","v":"Dec 2012"},{"$f":"ZZZ__FnCalls!H31","v":"2012"},{"$f":"ZZZ__FnCalls!F43","v":"Jan 2013"},{"$f":"ZZZ__FnCalls!F44","v":"Feb 2013"},{"$f":"ZZZ__FnCalls!F45","v":"Mar 2013"},{"$f":"ZZZ__FnCalls!F46","v":"Apr 2013"},{"$f":"ZZZ__FnCalls!F47","v":"May 2013"},{"$f":"ZZZ__FnCalls!F48","v":"Jun 2013"},{"$f":"ZZZ__FnCalls!F49","v":"Jul 2013"},{"$f":"ZZZ__FnCalls!F50","v":"Aug 2013"},{"$f":"ZZZ__FnCalls!F51","v":"Sep 2013"},{"$f":"ZZZ__FnCalls!F52","v":"Oct 2013"},{"$f":"ZZZ__FnCalls!F53","v":"Nov 2013"},{"$f":"ZZZ__FnCalls!F54","v":"Dec 2013"},{"$f":"ZZZ__FnCalls!H43","v":"2013"},{"$f":"ZZZ__FnCalls!F55","v":"Jan 2014"},{"$f":"ZZZ__FnCalls!F56","v":"Feb 2014"},{"$f":"ZZZ__FnCalls!F57","v":"Mar 2014"},{"$f":"ZZZ__FnCalls!F58","v":"Apr 2014"},{"$f":"ZZZ__FnCalls!F59","v":"May 2014"},{"$f":"ZZZ__FnCalls!F60","v":"Jun 2014"},{"$f":"ZZZ__FnCalls!F61","v":"Jul 2014"},{"$f":"ZZZ__FnCalls!F62","v":"Aug 2014"},{"$f":"ZZZ__FnCalls!F63","v":"Sep 2014"},{"$f":"ZZZ__FnCalls!F64","v":"Oct 2014"},{"$f":"ZZZ__FnCalls!F65","v":"Nov 2014"},{"$f":"ZZZ__FnCalls!F66","v":"Dec 2014"},{"$f":"ZZZ__FnCalls!H55","v":"2014"},{"$f":"ZZZ__FnCalls!F67","v":"Jan 2015"},{"$f":"ZZZ__FnCalls!F68","v":"Feb 2015"},{"$f":"ZZZ__FnCalls!F69","v":"Mar 2015"},{"$f":"ZZZ__FnCalls!F70","v":"Apr 2015"},{"$f":"ZZZ__FnCalls!F71","v":"May 2015"},{"$f":"ZZZ__FnCalls!F72","v":"Jun 2015"},{"$f":"ZZZ__FnCalls!F73","v":"Jul 2015"},{"$f":"ZZZ__FnCalls!F74","v":"Aug 2015"},{"$f":"ZZZ__FnCalls!F75","v":"Sep 2015"},{"$f":"ZZZ__FnCalls!F76","v":"Oct 2015"},{"$f":"ZZZ__FnCalls!F77","v":"Nov 2015"},{"$f":"ZZZ__FnCalls!F78","v":"Dec 2015"},{"$f":"ZZZ__FnCalls!H67","v":"2015"},{"$f":"ZZZ__FnCalls!F79","v":"Jan 2016"},{"$f":"ZZZ__FnCalls!F80","v":"Feb 2016"},{"$f":"ZZZ__FnCalls!F81","v":"Mar 2016"},{"$f":"ZZZ__FnCalls!F82","v":"Apr 2016"},{"$f":"ZZZ__FnCalls!F83","v":"May 2016"},{"$f":"ZZZ__FnCalls!F84","v":"Jun 2016"},{"$f":"ZZZ__FnCalls!F85","v":"Jul 2016"},{"$f":"ZZZ__FnCalls!F86","v":"Aug 2016"},{"$f":"ZZZ__FnCalls!F87","v":"Sep 2016"},{"$f":"ZZZ__FnCalls!F88","v":"Oct 2016"},{"$f":"ZZZ__FnCalls!F89","v":"Nov 2016"},{"$f":"ZZZ__FnCalls!F90","v":"Dec 2016"},{"$f":"ZZZ__FnCalls!H79","v":"2016"},{"$f":"ZZZ__FnCalls!F91","v":"Jan 2017"},{"$f":"ZZZ__FnCalls!F92","v":"Feb 2017"},{"$f":"ZZZ__FnCalls!F93","v":"Mar 2017"},{"$f":"ZZZ__FnCalls!F94","v":"Apr 2017"},{"$f":"ZZZ__FnCalls!F95","v":"May 2017"},{"$f":"ZZZ__FnCalls!F96","v":"Jun 2017"},{"$f":"ZZZ__FnCalls!F97","v":"Jul 2017"},{"$f":"ZZZ__FnCalls!F98","v":"Aug 2017"},{"$f":"ZZZ__FnCalls!F99","v":"Sep 2017"},{"$f":"ZZZ__FnCalls!F100","v":"Oct 2017"},{"$f":"ZZZ__FnCalls!F101","v":"Nov 2017"},{"$f":"ZZZ__FnCalls!F102","v":"Dec 2017"},{"$f":"ZZZ__FnCalls!H91","v":"2017"},{"$f":"ZZZ__FnCalls!F103","v":"Jan 2018"},{"$f":"ZZZ__FnCalls!F104","v":"Feb 2018"},{"$f":"ZZZ__FnCalls!F105","v":"Mar 2018"},{"$f":"ZZZ__FnCalls!F106","v":"Apr 2018"},{"$f":"ZZZ__FnCalls!F107","v":"May 2018"},{"$f":"ZZZ__FnCalls!F108","v":"Jun 2018"},{"$f":"ZZZ__FnCalls!F109","v":"Jul 2018"},{"$f":"ZZZ__FnCalls!F110","v":"Aug 2018"},{"$f":"ZZZ__FnCalls!F111","v":"Sep 2018"},{"$f":"ZZZ__FnCalls!F112","v":"Oct 2018"},{"$f":"ZZZ__FnCalls!F113","v":"Nov 2018"},{"$f":"ZZZ__FnCalls!F114","v":"Dec 2018"},{"$f":"ZZZ__FnCalls!H103","v":"2018"},{"$f":"ZZZ__FnCalls!F115","v":"Jan 2019"},{"$f":"ZZZ__FnCalls!F116","v":"Feb 2019"},{"$f":"ZZZ__FnCalls!F117","v":"Mar 2019"},{"$f":"ZZZ__FnCalls!F118","v":"Apr 2019"},{"$f":"ZZZ__FnCalls!F119","v":"May 2019"},{"$f":"ZZZ__FnCalls!F120","v":"Jun 2019"},{"$f":"ZZZ__FnCalls!F121","v":"Jul 2019"},{"$f":"ZZZ__FnCalls!F122","v":"Aug 2019"},{"$f":"ZZZ__FnCalls!F123","v":"Sep 2019"},{"$f":"ZZZ__FnCalls!F124","v":"Oct 2019"},{"$f":"ZZZ__FnCalls!F125","v":"Nov 2019"},{"$f":"ZZZ__FnCalls!F126","v":"Dec 2019"},{"$f":"ZZZ__FnCalls!H115","v":"2019"},{"$f":"ZZZ__FnCalls!F127","v":"Jan 2020"},{"$f":"ZZZ__FnCalls!F128","v":"Feb 2020"},{"$f":"ZZZ__FnCalls!F129","v":"Mar 2020"},{"$f":"ZZZ__FnCalls!F130","v":"Apr 2020"},{"$f":"ZZZ__FnCalls!F131","v":"May 2020"},{"$f":"ZZZ__FnCalls!F132","v":"Jun 2020"},{"$f":"ZZZ__FnCalls!F133","v":"Jul 2020"},{"$f":"ZZZ__FnCalls!F134","v":"Aug 2020"},{"$f":"ZZZ__FnCalls!F135","v":"Sep 2020"},{"$f":"ZZZ__FnCalls!F136","v":"Oct 2020"},{"$f":"ZZZ__FnCalls!F137","v":"Nov 2020"},{"$f":"ZZZ__FnCalls!F138","v":"Dec 2020"},{"$f":"ZZZ__FnCalls!H127","v":"2020"}]
[null,{"$f":"ZZZ__FnCalls!A7","v":"2010-01-01"},{"$f":"ZZZ__FnCalls!A8","v":"2010-02-01"},{"$f":"ZZZ__FnCalls!A9","v":"2010-03-01"},{"$f":"ZZZ__FnCalls!A10","v":"2010-04-01"},{"$f":"ZZZ__FnCalls!A11","v":"2010-05-01"},{"$f":"ZZZ__FnCalls!A12","v":"2010-06-01"},{"$f":"ZZZ__FnCalls!A13","v":"2010-07-01"},{"$f":"ZZZ__FnCalls!A14","v":"2010-08-01"},{"$f":"ZZZ__FnCalls!A15","v":"2010-09-01"},{"$f":"ZZZ__FnCalls!A16","v":"2010-10-01"},{"$f":"ZZZ__FnCalls!A17","v":"2010-11-01"},{"$f":"ZZZ__FnCalls!A18","v":"2010-12-01"},{"$f":"ZZZ__FnCalls!A7","v":"2010-01-01"},{"$f":"ZZZ__FnCalls!A19","v":"2011-01-01"},{"$f":"ZZZ__FnCalls!A20","v":"2011-02-01"},{"$f":"ZZZ__FnCalls!A21","v":"2011-03-01"},{"$f":"ZZZ__FnCalls!A22","v":"2011-04-01"},{"$f":"ZZZ__FnCalls!A23","v":"2011-05-01"},{"$f":"ZZZ__FnCalls!A24","v":"2011-06-01"},{"$f":"ZZZ__FnCalls!A25","v":"2011-07-01"},{"$f":"ZZZ__FnCalls!A26","v":"2011-08-01"},{"$f":"ZZZ__FnCalls!A27","v":"2011-09-01"},{"$f":"ZZZ__FnCalls!A28","v":"2011-10-01"},{"$f":"ZZZ__FnCalls!A29","v":"2011-11-01"},{"$f":"ZZZ__FnCalls!A30","v":"2011-12-01"},{"$f":"ZZZ__FnCalls!A19","v":"2011-01-01"},{"$f":"ZZZ__FnCalls!A31","v":"2012-01-01"},{"$f":"ZZZ__FnCalls!A32","v":"2012-02-01"},{"$f":"ZZZ__FnCalls!A33","v":"2012-03-01"},{"$f":"ZZZ__FnCalls!A34","v":"2012-04-01"},{"$f":"ZZZ__FnCalls!A35","v":"2012-05-01"},{"$f":"ZZZ__FnCalls!A36","v":"2012-06-01"},{"$f":"ZZZ__FnCalls!A37","v":"2012-07-01"},{"$f":"ZZZ__FnCalls!A38","v":"2012-08-01"},{"$f":"ZZZ__FnCalls!A39","v":"2012-09-01"},{"$f":"ZZZ__FnCalls!A40","v":"2012-10-01"},{"$f":"ZZZ__FnCalls!A41","v":"2012-11-01"},{"$f":"ZZZ__FnCalls!A42","v":"2012-12-01"},{"$f":"ZZZ__FnCalls!A31","v":"2012-01-01"},{"$f":"ZZZ__FnCalls!A43","v":"2013-01-01"},{"$f":"ZZZ__FnCalls!A44","v":"2013-02-01"},{"$f":"ZZZ__FnCalls!A45","v":"2013-03-01"},{"$f":"ZZZ__FnCalls!A46","v":"2013-04-01"},{"$f":"ZZZ__FnCalls!A47","v":"2013-05-01"},{"$f":"ZZZ__FnCalls!A48","v":"2013-06-01"},{"$f":"ZZZ__FnCalls!A49","v":"2013-07-01"},{"$f":"ZZZ__FnCalls!A50","v":"2013-08-01"},{"$f":"ZZZ__FnCalls!A51","v":"2013-09-01"},{"$f":"ZZZ__FnCalls!A52","v":"2013-10-01"},{"$f":"ZZZ__FnCalls!A53","v":"2013-11-01"},{"$f":"ZZZ__FnCalls!A54","v":"2013-12-01"},{"$f":"ZZZ__FnCalls!A43","v":"2013-01-01"},{"$f":"ZZZ__FnCalls!A55","v":"2014-01-01"},{"$f":"ZZZ__FnCalls!A56","v":"2014-02-01"},{"$f":"ZZZ__FnCalls!A57","v":"2014-03-01"},{"$f":"ZZZ__FnCalls!A58","v":"2014-04-01"},{"$f":"ZZZ__FnCalls!A59","v":"2014-05-01"},{"$f":"ZZZ__FnCalls!A60","v":"2014-06-01"},{"$f":"ZZZ__FnCalls!A61","v":"2014-07-01"},{"$f":"ZZZ__FnCalls!A62","v":"2014-08-01"},{"$f":"ZZZ__FnCalls!A63","v":"2014-09-01"},{"$f":"ZZZ__FnCalls!A64","v":"2014-10-01"},{"$f":"ZZZ__FnCalls!A65","v":"2014-11-01"},{"$f":"ZZZ__FnCalls!A66","v":"2014-12-01"},{"$f":"ZZZ__FnCalls!A55","v":"2014-01-01"},{"$f":"ZZZ__FnCalls!A67","v":"2015-01-01"},{"$f":"ZZZ__FnCalls!A68","v":"2015-02-01"},{"$f":"ZZZ__FnCalls!A69","v":"2015-03-01"},{"$f":"ZZZ__FnCalls!A70","v":"2015-04-01"},{"$f":"ZZZ__FnCalls!A71","v":"2015-05-01"},{"$f":"ZZZ__FnCalls!A72","v":"2015-06-01"},{"$f":"ZZZ__FnCalls!A73","v":"2015-07-01"},{"$f":"ZZZ__FnCalls!A74","v":"2015-08-01"},{"$f":"ZZZ__FnCalls!A75","v":"2015-09-01"},{"$f":"ZZZ__FnCalls!A76","v":"2015-10-01"},{"$f":"ZZZ__FnCalls!A77","v":"2015-11-01"},{"$f":"ZZZ__FnCalls!A78","v":"2015-12-01"},{"$f":"ZZZ__FnCalls!A67","v":"2015-01-01"},{"$f":"ZZZ__FnCalls!A79","v":"2016-01-01"},{"$f":"ZZZ__FnCalls!A80","v":"2016-02-01"},{"$f":"ZZZ__FnCalls!A81","v":"2016-03-01"},{"$f":"ZZZ__FnCalls!A82","v":"2016-04-01"},{"$f":"ZZZ__FnCalls!A83","v":"2016-05-01"},{"$f":"ZZZ__FnCalls!A84","v":"2016-06-01"},{"$f":"ZZZ__FnCalls!A85","v":"2016-07-01"},{"$f":"ZZZ__FnCalls!A86","v":"2016-08-01"},{"$f":"ZZZ__FnCalls!A87","v":"2016-09-01"},{"$f":"ZZZ__FnCalls!A88","v":"2016-10-01"},{"$f":"ZZZ__FnCalls!A89","v":"2016-11-01"},{"$f":"ZZZ__FnCalls!A90","v":"2016-12-01"},{"$f":"ZZZ__FnCalls!A79","v":"2016-01-01"},{"$f":"ZZZ__FnCalls!A91","v":"2017-01-01"},{"$f":"ZZZ__FnCalls!A92","v":"2017-02-01"},{"$f":"ZZZ__FnCalls!A93","v":"2017-03-01"},{"$f":"ZZZ__FnCalls!A94","v":"2017-04-01"},{"$f":"ZZZ__FnCalls!A95","v":"2017-05-01"},{"$f":"ZZZ__FnCalls!A96","v":"2017-06-01"},{"$f":"ZZZ__FnCalls!A97","v":"2017-07-01"},{"$f":"ZZZ__FnCalls!A98","v":"2017-08-01"},{"$f":"ZZZ__FnCalls!A99","v":"2017-09-01"},{"$f":"ZZZ__FnCalls!A100","v":"2017-10-01"},{"$f":"ZZZ__FnCalls!A101","v":"2017-11-01"},{"$f":"ZZZ__FnCalls!A102","v":"2017-12-01"},{"$f":"ZZZ__FnCalls!A91","v":"2017-01-01"},{"$f":"ZZZ__FnCalls!A103","v":"2018-01-01"},{"$f":"ZZZ__FnCalls!A104","v":"2018-02-01"},{"$f":"ZZZ__FnCalls!A105","v":"2018-03-01"},{"$f":"ZZZ__FnCalls!A106","v":"2018-04-01"},{"$f":"ZZZ__FnCalls!A107","v":"2018-05-01"},{"$f":"ZZZ__FnCalls!A108","v":"2018-06-01"},{"$f":"ZZZ__FnCalls!A109","v":"2018-07-01"},{"$f":"ZZZ__FnCalls!A110","v":"2018-08-01"},{"$f":"ZZZ__FnCalls!A111","v":"2018-09-01"},{"$f":"ZZZ__FnCalls!A112","v":"2018-10-01"},{"$f":"ZZZ__FnCalls!A113","v":"2018-11-01"},{"$f":"ZZZ__FnCalls!A114","v":"2018-12-01"},{"$f":"ZZZ__FnCalls!A103","v":"2018-01-01"},{"$f":"ZZZ__FnCalls!A115","v":"2019-01-01"},{"$f":"ZZZ__FnCalls!A116","v":"2019-02-01"},{"$f":"ZZZ__FnCalls!A117","v":"2019-03-01"},{"$f":"ZZZ__FnCalls!A118","v":"2019-04-01"},{"$f":"ZZZ__FnCalls!A119","v":"2019-05-01"},{"$f":"ZZZ__FnCalls!A120","v":"2019-06-01"},{"$f":"ZZZ__FnCalls!A121","v":"2019-07-01"},{"$f":"ZZZ__FnCalls!A122","v":"2019-08-01"},{"$f":"ZZZ__FnCalls!A123","v":"2019-09-01"},{"$f":"ZZZ__FnCalls!A124","v":"2019-10-01"},{"$f":"ZZZ__FnCalls!A125","v":"2019-11-01"},{"$f":"ZZZ__FnCalls!A126","v":"2019-12-01"},{"$f":"ZZZ__FnCalls!A115","v":"2019-01-01"},{"$f":"ZZZ__FnCalls!A127","v":"2020-01-01"},{"$f":"ZZZ__FnCalls!A128","v":"2020-02-01"},{"$f":"ZZZ__FnCalls!A129","v":"2020-03-01"},{"$f":"ZZZ__FnCalls!A130","v":"2020-04-01"},{"$f":"ZZZ__FnCalls!A131","v":"2020-05-01"},{"$f":"ZZZ__FnCalls!A132","v":"2020-06-01"},{"$f":"ZZZ__FnCalls!A133","v":"2020-07-01"},{"$f":"ZZZ__FnCalls!A134","v":"2020-08-01"},{"$f":"ZZZ__FnCalls!A135","v":"2020-09-01"},{"$f":"ZZZ__FnCalls!A136","v":"2020-10-01"},{"$f":"ZZZ__FnCalls!A137","v":"2020-11-01"},{"$f":"ZZZ__FnCalls!A138","v":"2020-12-01"},{"$f":"ZZZ__FnCalls!A127","v":"2020-01-01"}]
[{"$f":"\"Consumption_stdev_2\"","v":"Consumption_stdev_2"}]
[null,{"$f":"ZZZ__FnCalls!F7","v":"Jan 2010"},{"$f":"ZZZ__FnCalls!F8","v":"Feb 2010"},{"$f":"ZZZ__FnCalls!F9","v":"Mar 2010"},{"$f":"ZZZ__FnCalls!F10","v":"Apr 2010"},{"$f":"ZZZ__FnCalls!F11","v":"May 2010"},{"$f":"ZZZ__FnCalls!F12","v":"Jun 2010"},{"$f":"ZZZ__FnCalls!F13","v":"Jul 2010"},{"$f":"ZZZ__FnCalls!F14","v":"Aug 2010"},{"$f":"ZZZ__FnCalls!F15","v":"Sep 2010"},{"$f":"ZZZ__FnCalls!F16","v":"Oct 2010"},{"$f":"ZZZ__FnCalls!F17","v":"Nov 2010"},{"$f":"ZZZ__FnCalls!F18","v":"Dec 2010"},{"$f":"ZZZ__FnCalls!H7","v":"2010"},{"$f":"ZZZ__FnCalls!F19","v":"Jan 2011"},{"$f":"ZZZ__FnCalls!F20","v":"Feb 2011"},{"$f":"ZZZ__FnCalls!F21","v":"Mar 2011"},{"$f":"ZZZ__FnCalls!F22","v":"Apr 2011"},{"$f":"ZZZ__FnCalls!F23","v":"May 2011"},{"$f":"ZZZ__FnCalls!F24","v":"Jun 2011"},{"$f":"ZZZ__FnCalls!F25","v":"Jul 2011"},{"$f":"ZZZ__FnCalls!F26","v":"Aug 2011"},{"$f":"ZZZ__FnCalls!F27","v":"Sep 2011"},{"$f":"ZZZ__FnCalls!F28","v":"Oct 2011"},{"$f":"ZZZ__FnCalls!F29","v":"Nov 2011"},{"$f":"ZZZ__FnCalls!F30","v":"Dec 2011"},{"$f":"ZZZ__FnCalls!H19","v":"2011"},{"$f":"ZZZ__FnCalls!F31","v":"Jan 2012"},{"$f":"ZZZ__FnCalls!F32","v":"Feb 2012"},{"$f":"ZZZ__FnCalls!F33","v":"Mar 2012"},{"$f":"ZZZ__FnCalls!F34","v":"Apr 2012"},{"$f":"ZZZ__FnCalls!F35","v":"May 2012"},{"$f":"ZZZ__FnCalls!F36","v":"Jun 2012"},{"$f":"ZZZ__FnCalls!F37","v":"Jul 2012"},{"$f":"ZZZ__FnCalls!F38","v":"Aug 2012"},{"$f":"ZZZ__FnCalls!F39","v":"Sep 2012"},{"$f":"ZZZ__FnCalls!F40","v":"Oct 2012"},{"$f":"ZZZ__FnCalls!F41","v":"Nov 2012"},{"$f":"ZZZ__FnCalls!F42","v":"Dec 2012"},{"$f":"ZZZ__FnCalls!H31","v":"2012"},{"$f":"ZZZ__FnCalls!F43","v":"Jan 2013"},{"$f":"ZZZ__FnCalls!F44","v":"Feb 2013"},{"$f":"ZZZ__FnCalls!F45","v":"Mar 2013"},{"$f":"ZZZ__FnCalls!F46","v":"Apr 2013"},{"$f":"ZZZ__FnCalls!F47","v":"May 2013"},{"$f":"ZZZ__FnCalls!F48","v":"Jun 2013"},{"$f":"ZZZ__FnCalls!F49","v":"Jul 2013"},{"$f":"ZZZ__FnCalls!F50","v":"Aug 2013"},{"$f":"ZZZ__FnCalls!F51","v":"Sep 2013"},{"$f":"ZZZ__FnCalls!F52","v":"Oct 2013"},{"$f":"ZZZ__FnCalls!F53","v":"Nov 2013"},{"$f":"ZZZ__FnCalls!F54","v":"Dec 2013"},{"$f":"ZZZ__FnCalls!H43","v":"2013"},{"$f":"ZZZ__FnCalls!F55","v":"Jan 2014"},{"$f":"ZZZ__FnCalls!F56","v":"Feb 2014"},{"$f":"ZZZ__FnCalls!F57","v":"Mar 2014"},{"$f":"ZZZ__FnCalls!F58","v":"Apr 2014"},{"$f":"ZZZ__FnCalls!F59","v":"May 2014"},{"$f":"ZZZ__FnCalls!F60","v":"Jun 2014"},{"$f":"ZZZ__FnCalls!F61","v":"Jul 2014"},{"$f":"ZZZ__FnCalls!F62","v":"Aug 2014"},{"$f":"ZZZ__FnCalls!F63","v":"Sep 2014"},{"$f":"ZZZ__FnCalls!F64","v":"Oct 2014"},{"$f":"ZZZ__FnCalls!F65","v":"Nov 2014"},{"$f":"ZZZ__FnCalls!F66","v":"Dec 2014"},{"$f":"ZZZ__FnCalls!H55","v":"2014"},{"$f":"ZZZ__FnCalls!F67","v":"Jan 2015"},{"$f":"ZZZ__FnCalls!F68","v":"Feb 2015"},{"$f":"ZZZ__FnCalls!F69","v":"Mar 2015"},{"$f":"ZZZ__FnCalls!F70","v":"Apr 2015"},{"$f":"ZZZ__FnCalls!F71","v":"May 2015"},{"$f":"ZZZ__FnCalls!F72","v":"Jun 2015"},{"$f":"ZZZ__FnCalls!F73","v":"Jul 2015"},{"$f":"ZZZ__FnCalls!F74","v":"Aug 2015"},{"$f":"ZZZ__FnCalls!F75","v":"Sep 2015"},{"$f":"ZZZ__FnCalls!F76","v":"Oct 2015"},{"$f":"ZZZ__FnCalls!F77","v":"Nov 2015"},{"$f":"ZZZ__FnCalls!F78","v":"Dec 2015"},{"$f":"ZZZ__FnCalls!H67","v":"2015"},{"$f":"ZZZ__FnCalls!F79","v":"Jan 2016"},{"$f":"ZZZ__FnCalls!F80","v":"Feb 2016"},{"$f":"ZZZ__FnCalls!F81","v":"Mar 2016"},{"$f":"ZZZ__FnCalls!F82","v":"Apr 2016"},{"$f":"ZZZ__FnCalls!F83","v":"May 2016"},{"$f":"ZZZ__FnCalls!F84","v":"Jun 2016"},{"$f":"ZZZ__FnCalls!F85","v":"Jul 2016"},{"$f":"ZZZ__FnCalls!F86","v":"Aug 2016"},{"$f":"ZZZ__FnCalls!F87","v":"Sep 2016"},{"$f":"ZZZ__FnCalls!F88","v":"Oct 2016"},{"$f":"ZZZ__FnCalls!F89","v":"Nov 2016"},{"$f":"ZZZ__FnCalls!F90","v":"Dec 2016"},{"$f":"ZZZ__FnCalls!H79","v":"2016"},{"$f":"ZZZ__FnCalls!F91","v":"Jan 2017"},{"$f":"ZZZ__FnCalls!F92","v":"Feb 2017"},{"$f":"ZZZ__FnCalls!F93","v":"Mar 2017"},{"$f":"ZZZ__FnCalls!F94","v":"Apr 2017"},{"$f":"ZZZ__FnCalls!F95","v":"May 2017"},{"$f":"ZZZ__FnCalls!F96","v":"Jun 2017"},{"$f":"ZZZ__FnCalls!F97","v":"Jul 2017"},{"$f":"ZZZ__FnCalls!F98","v":"Aug 2017"},{"$f":"ZZZ__FnCalls!F99","v":"Sep 2017"},{"$f":"ZZZ__FnCalls!F100","v":"Oct 2017"},{"$f":"ZZZ__FnCalls!F101","v":"Nov 2017"},{"$f":"ZZZ__FnCalls!F102","v":"Dec 2017"},{"$f":"ZZZ__FnCalls!H91","v":"2017"},{"$f":"ZZZ__FnCalls!F103","v":"Jan 2018"},{"$f":"ZZZ__FnCalls!F104","v":"Feb 2018"},{"$f":"ZZZ__FnCalls!F105","v":"Mar 2018"},{"$f":"ZZZ__FnCalls!F106","v":"Apr 2018"},{"$f":"ZZZ__FnCalls!F107","v":"May 2018"},{"$f":"ZZZ__FnCalls!F108","v":"Jun 2018"},{"$f":"ZZZ__FnCalls!F109","v":"Jul 2018"},{"$f":"ZZZ__FnCalls!F110","v":"Aug 2018"},{"$f":"ZZZ__FnCalls!F111","v":"Sep 2018"},{"$f":"ZZZ__FnCalls!F112","v":"Oct 2018"},{"$f":"ZZZ__FnCalls!F113","v":"Nov 2018"},{"$f":"ZZZ__FnCalls!F114","v":"Dec 2018"},{"$f":"ZZZ__FnCalls!H103","v":"2018"},{"$f":"ZZZ__FnCalls!F115","v":"Jan 2019"},{"$f":"ZZZ__FnCalls!F116","v":"Feb 2019"},{"$f":"ZZZ__FnCalls!F117","v":"Mar 2019"},{"$f":"ZZZ__FnCalls!F118","v":"Apr 2019"},{"$f":"ZZZ__FnCalls!F119","v":"May 2019"},{"$f":"ZZZ__FnCalls!F120","v":"Jun 2019"},{"$f":"ZZZ__FnCalls!F121","v":"Jul 2019"},{"$f":"ZZZ__FnCalls!F122","v":"Aug 2019"},{"$f":"ZZZ__FnCalls!F123","v":"Sep 2019"},{"$f":"ZZZ__FnCalls!F124","v":"Oct 2019"},{"$f":"ZZZ__FnCalls!F125","v":"Nov 2019"},{"$f":"ZZZ__FnCalls!F126","v":"Dec 2019"},{"$f":"ZZZ__FnCalls!H115","v":"2019"},{"$f":"ZZZ__FnCalls!F127","v":"Jan 2020"},{"$f":"ZZZ__FnCalls!F128","v":"Feb 2020"},{"$f":"ZZZ__FnCalls!F129","v":"Mar 2020"},{"$f":"ZZZ__FnCalls!F130","v":"Apr 2020"},{"$f":"ZZZ__FnCalls!F131","v":"May 2020"},{"$f":"ZZZ__FnCalls!F132","v":"Jun 2020"},{"$f":"ZZZ__FnCalls!F133","v":"Jul 2020"},{"$f":"ZZZ__FnCalls!F134","v":"Aug 2020"},{"$f":"ZZZ__FnCalls!F135","v":"Sep 2020"},{"$f":"ZZZ__FnCalls!F136","v":"Oct 2020"},{"$f":"ZZZ__FnCalls!F137","v":"Nov 2020"},{"$f":"ZZZ__FnCalls!F138","v":"Dec 2020"},{"$f":"ZZZ__FnCalls!H127","v":"2020"}]
[null,{"$f":"ZZZ__FnCalls!F7","v":"Jan 2010"},{"$f":"ZZZ__FnCalls!F8","v":"Feb 2010"},{"$f":"ZZZ__FnCalls!F9","v":"Mar 2010"},{"$f":"ZZZ__FnCalls!F10","v":"Apr 2010"},{"$f":"ZZZ__FnCalls!F11","v":"May 2010"},{"$f":"ZZZ__FnCalls!F12","v":"Jun 2010"},{"$f":"ZZZ__FnCalls!F13","v":"Jul 2010"},{"$f":"ZZZ__FnCalls!F14","v":"Aug 2010"},{"$f":"ZZZ__FnCalls!F15","v":"Sep 2010"},{"$f":"ZZZ__FnCalls!F16","v":"Oct 2010"},{"$f":"ZZZ__FnCalls!F17","v":"Nov 2010"},{"$f":"ZZZ__FnCalls!F18","v":"Dec 2010"},{"$f":"ZZZ__FnCalls!F7","v":"Jan 2010"},{"$f":"ZZZ__FnCalls!F19","v":"Jan 2011"},{"$f":"ZZZ__FnCalls!F20","v":"Feb 2011"},{"$f":"ZZZ__FnCalls!F21","v":"Mar 2011"},{"$f":"ZZZ__FnCalls!F22","v":"Apr 2011"},{"$f":"ZZZ__FnCalls!F23","v":"May 2011"},{"$f":"ZZZ__FnCalls!F24","v":"Jun 2011"},{"$f":"ZZZ__FnCalls!F25","v":"Jul 2011"},{"$f":"ZZZ__FnCalls!F26","v":"Aug 2011"},{"$f":"ZZZ__FnCalls!F27","v":"Sep 2011"},{"$f":"ZZZ__FnCalls!F28","v":"Oct 2011"},{"$f":"ZZZ__FnCalls!F29","v":"Nov 2011"},{"$f":"ZZZ__FnCalls!F30","v":"Dec 2011"},{"$f":"ZZZ__FnCalls!F19","v":"Jan 2011"},{"$f":"ZZZ__FnCalls!F31","v":"Jan 2012"},{"$f":"ZZZ__FnCalls!F32","v":"Feb 2012"},{"$f":"ZZZ__FnCalls!F33","v":"Mar 2012"},{"$f":"ZZZ__FnCalls!F34","v":"Apr 2012"},{"$f":"ZZZ__FnCalls!F35","v":"May 2012"},{"$f":"ZZZ__FnCalls!F36","v":"Jun 2012"},{"$f":"ZZZ__FnCalls!F37","v":"Jul 2012"},{"$f":"ZZZ__FnCalls!F38","v":"Aug 2012"},{"$f":"ZZZ__FnCalls!F39","v":"Sep 2012"},{"$f":"ZZZ__FnCalls!F40","v":"Oct 2012"},{"$f":"ZZZ__FnCalls!F41","v":"Nov 2012"},{"$f":"ZZZ__FnCalls!F42","v":"Dec 2012"},{"$f":"ZZZ__FnCalls!F31","v":"Jan 2012"},{"$f":"ZZZ__FnCalls!F43","v":"Jan 2013"},{"$f":"ZZZ__FnCalls!F44","v":"Feb 2013"},{"$f":"ZZZ__FnCalls!F45","v":"Mar 2013"},{"$f":"ZZZ__FnCalls!F46","v":"Apr 2013"},{"$f":"ZZZ__FnCalls!F47","v":"May 2013"},{"$f":"ZZZ__FnCalls!F48","v":"Jun 2013"},{"$f":"ZZZ__FnCalls!F49","v":"Jul 2013"},{"$f":"ZZZ__FnCalls!F50","v":"Aug 2013"},{"$f":"ZZZ__FnCalls!F51","v":"Sep 2013"},{"$f":"ZZZ__FnCalls!F52","v":"Oct 2013"},{"$f":"ZZZ__FnCalls!F53","v":"Nov 2013"},{"$f":"ZZZ__FnCalls!F54","v":"Dec 2013"},{"$f":"ZZZ__FnCalls!F43","v":"Jan 2013"},{"$f":"ZZZ__FnCalls!F55","v":"Jan 2014"},{"$f":"ZZZ__FnCalls!F56","v":"Feb 2014"},{"$f":"ZZZ__FnCalls!F57","v":"Mar 2014"},{"$f":"ZZZ__FnCalls!F58","v":"Apr 2014"},{"$f":"ZZZ__FnCalls!F59","v":"May 2014"},{"$f":"ZZZ__FnCalls!F60","v":"Jun 2014"},{"$f":"ZZZ__FnCalls!F61","v":"Jul 2014"},{"$f":"ZZZ__FnCalls!F62","v":"Aug 2014"},{"$f":"ZZZ__FnCalls!F63","v":"Sep 2014"},{"$f":"ZZZ__FnCalls!F64","v":"Oct 2014"},{"$f":"ZZZ__FnCalls!F65","v":"Nov 2014"},{"$f":"ZZZ__FnCalls!F66","v":"Dec 2014"},{"$f":"ZZZ__FnCalls!F55","v":"Jan 2014"},{"$f":"ZZZ__FnCalls!F67","v":"Jan 2015"},{"$f":"ZZZ__FnCalls!F68","v":"Feb 2015"},{"$f":"ZZZ__FnCalls!F69","v":"Mar 2015"},{"$f":"ZZZ__FnCalls!F70","v":"Apr 2015"},{"$f":"ZZZ__FnCalls!F71","v":"May 2015"},{"$f":"ZZZ__FnCalls!F72","v":"Jun 2015"},{"$f":"ZZZ__FnCalls!F73","v":"Jul 2015"},{"$f":"ZZZ__FnCalls!F74","v":"Aug 2015"},{"$f":"ZZZ__FnCalls!F75","v":"Sep 2015"},{"$f":"ZZZ__FnCalls!F76","v":"Oct 2015"},{"$f":"ZZZ__FnCalls!F77","v":"Nov 2015"},{"$f":"ZZZ__FnCalls!F78","v":"Dec 2015"},{"$f":"ZZZ__FnCalls!F67","v":"Jan 2015"},{"$f":"ZZZ__FnCalls!F79","v":"Jan 2016"},{"$f":"ZZZ__FnCalls!F80","v":"Feb 2016"},{"$f":"ZZZ__FnCalls!F81","v":"Mar 2016"},{"$f":"ZZZ__FnCalls!F82","v":"Apr 2016"},{"$f":"ZZZ__FnCalls!F83","v":"May 2016"},{"$f":"ZZZ__FnCalls!F84","v":"Jun 2016"},{"$f":"ZZZ__FnCalls!F85","v":"Jul 2016"},{"$f":"ZZZ__FnCalls!F86","v":"Aug 2016"},{"$f":"ZZZ__FnCalls!F87","v":"Sep 2016"},{"$f":"ZZZ__FnCalls!F88","v":"Oct 2016"},{"$f":"ZZZ__FnCalls!F89","v":"Nov 2016"},{"$f":"ZZZ__FnCalls!F90","v":"Dec 2016"},{"$f":"ZZZ__FnCalls!F79","v":"Jan 2016"},{"$f":"ZZZ__FnCalls!F91","v":"Jan 2017"},{"$f":"ZZZ__FnCalls!F92","v":"Feb 2017"},{"$f":"ZZZ__FnCalls!F93","v":"Mar 2017"},{"$f":"ZZZ__FnCalls!F94","v":"Apr 2017"},{"$f":"ZZZ__FnCalls!F95","v":"May 2017"},{"$f":"ZZZ__FnCalls!F96","v":"Jun 2017"},{"$f":"ZZZ__FnCalls!F97","v":"Jul 2017"},{"$f":"ZZZ__FnCalls!F98","v":"Aug 2017"},{"$f":"ZZZ__FnCalls!F99","v":"Sep 2017"},{"$f":"ZZZ__FnCalls!F100","v":"Oct 2017"},{"$f":"ZZZ__FnCalls!F101","v":"Nov 2017"},{"$f":"ZZZ__FnCalls!F102","v":"Dec 2017"},{"$f":"ZZZ__FnCalls!F91","v":"Jan 2017"},{"$f":"ZZZ__FnCalls!F103","v":"Jan 2018"},{"$f":"ZZZ__FnCalls!F104","v":"Feb 2018"},{"$f":"ZZZ__FnCalls!F105","v":"Mar 2018"},{"$f":"ZZZ__FnCalls!F106","v":"Apr 2018"},{"$f":"ZZZ__FnCalls!F107","v":"May 2018"},{"$f":"ZZZ__FnCalls!F108","v":"Jun 2018"},{"$f":"ZZZ__FnCalls!F109","v":"Jul 2018"},{"$f":"ZZZ__FnCalls!F110","v":"Aug 2018"},{"$f":"ZZZ__FnCalls!F111","v":"Sep 2018"},{"$f":"ZZZ__FnCalls!F112","v":"Oct 2018"},{"$f":"ZZZ__FnCalls!F113","v":"Nov 2018"},{"$f":"ZZZ__FnCalls!F114","v":"Dec 2018"},{"$f":"ZZZ__FnCalls!F103","v":"Jan 2018"},{"$f":"ZZZ__FnCalls!F115","v":"Jan 2019"},{"$f":"ZZZ__FnCalls!F116","v":"Feb 2019"},{"$f":"ZZZ__FnCalls!F117","v":"Mar 2019"},{"$f":"ZZZ__FnCalls!F118","v":"Apr 2019"},{"$f":"ZZZ__FnCalls!F119","v":"May 2019"},{"$f":"ZZZ__FnCalls!F120","v":"Jun 2019"},{"$f":"ZZZ__FnCalls!F121","v":"Jul 2019"},{"$f":"ZZZ__FnCalls!F122","v":"Aug 2019"},{"$f":"ZZZ__FnCalls!F123","v":"Sep 2019"},{"$f":"ZZZ__FnCalls!F124","v":"Oct 2019"},{"$f":"ZZZ__FnCalls!F125","v":"Nov 2019"},{"$f":"ZZZ__FnCalls!F126","v":"Dec 2019"},{"$f":"ZZZ__FnCalls!F115","v":"Jan 2019"},{"$f":"ZZZ__FnCalls!F127","v":"Jan 2020"},{"$f":"ZZZ__FnCalls!F128","v":"Feb 2020"},{"$f":"ZZZ__FnCalls!F129","v":"Mar 2020"},{"$f":"ZZZ__FnCalls!F130","v":"Apr 2020"},{"$f":"ZZZ__FnCalls!F131","v":"May 2020"},{"$f":"ZZZ__FnCalls!F132","v":"Jun 2020"},{"$f":"ZZZ__FnCalls!F133","v":"Jul 2020"},{"$f":"ZZZ__FnCalls!F134","v":"Aug 2020"},{"$f":"ZZZ__FnCalls!F135","v":"Sep 2020"},{"$f":"ZZZ__FnCalls!F136","v":"Oct 2020"},{"$f":"ZZZ__FnCalls!F137","v":"Nov 2020"},{"$f":"ZZZ__FnCalls!F138","v":"Dec 2020"},{"$f":"ZZZ__FnCalls!F127","v":"Jan 2020"}]
[{"$f":"\"Capital_mean_1\"","v":"Capital_mean_1"}]
[null,{"$f":"ZZZ__FnCalls!F7","v":"Jan 2010"},{"$f":"ZZZ__FnCalls!F8","v":"Feb 2010"},{"$f":"ZZZ__FnCalls!F9","v":"Mar 2010"},{"$f":"ZZZ__FnCalls!F10","v":"Apr 2010"},{"$f":"ZZZ__FnCalls!F11","v":"May 2010"},{"$f":"ZZZ__FnCalls!F12","v":"Jun 2010"},{"$f":"ZZZ__FnCalls!F13","v":"Jul 2010"},{"$f":"ZZZ__FnCalls!F14","v":"Aug 2010"},{"$f":"ZZZ__FnCalls!F15","v":"Sep 2010"},{"$f":"ZZZ__FnCalls!F16","v":"Oct 2010"},{"$f":"ZZZ__FnCalls!F17","v":"Nov 2010"},{"$f":"ZZZ__FnCalls!F18","v":"Dec 2010"},{"$f":"ZZZ__FnCalls!H7","v":"2010"},{"$f":"ZZZ__FnCalls!F19","v":"Jan 2011"},{"$f":"ZZZ__FnCalls!F20","v":"Feb 2011"},{"$f":"ZZZ__FnCalls!F21","v":"Mar 2011"},{"$f":"ZZZ__FnCalls!F22","v":"Apr 2011"},{"$f":"ZZZ__FnCalls!F23","v":"May 2011"},{"$f":"ZZZ__FnCalls!F24","v":"Jun 2011"},{"$f":"ZZZ__FnCalls!F25","v":"Jul 2011"},{"$f":"ZZZ__FnCalls!F26","v":"Aug 2011"},{"$f":"ZZZ__FnCalls!F27","v":"Sep 2011"},{"$f":"ZZZ__FnCalls!F28","v":"Oct 2011"},{"$f":"ZZZ__FnCalls!F29","v":"Nov 2011"},{"$f":"ZZZ__FnCalls!F30","v":"Dec 2011"},{"$f":"ZZZ__FnCalls!H19","v":"2011"},{"$f":"ZZZ__FnCalls!F31","v":"Jan 2012"},{"$f":"ZZZ__FnCalls!F32","v":"Feb 2012"},{"$f":"ZZZ__FnCalls!F33","v":"Mar 2012"},{"$f":"ZZZ__FnCalls!F34","v":"Apr 2012"},{"$f":"ZZZ__FnCalls!F35","v":"May 2012"},{"$f":"ZZZ__FnCalls!F36","v":"Jun 2012"},{"$f":"ZZZ__FnCalls!F37","v":"Jul 2012"},{"$f":"ZZZ__FnCalls!F38","v":"Aug 2012"},{"$f":"ZZZ__FnCalls!F39","v":"Sep 2012"},{"$f":"ZZZ__FnCalls!F40","v":"Oct 2012"},{"$f":"ZZZ__FnCalls!F41","v":"Nov 2012"},{"$f":"ZZZ__FnCalls!F42","v":"Dec 2012"},{"$f":"ZZZ__FnCalls!H31","v":"2012"},{"$f":"ZZZ__FnCalls!F43","v":"Jan 2013"},{"$f":"ZZZ__FnCalls!F44","v":"Feb 2013"},{"$f":"ZZZ__FnCalls!F45","v":"Mar 2013"},{"$f":"ZZZ__FnCalls!F46","v":"Apr 2013"},{"$f":"ZZZ__FnCalls!F47","v":"May 2013"},{"$f":"ZZZ__FnCalls!F48","v":"Jun 2013"},{"$f":"ZZZ__FnCalls!F49","v":"Jul 2013"},{"$f":"ZZZ__FnCalls!F50","v":"Aug 2013"},{"$f":"ZZZ__FnCalls!F51","v":"Sep 2013"},{"$f":"ZZZ__FnCalls!F52","v":"Oct 2013"},{"$f":"ZZZ__FnCalls!F53","v":"Nov 2013"},{"$f":"ZZZ__FnCalls!F54","v":"Dec 2013"},{"$f":"ZZZ__FnCalls!H43","v":"2013"},{"$f":"ZZZ__FnCalls!F55","v":"Jan 2014"},{"$f":"ZZZ__FnCalls!F56","v":"Feb 2014"},{"$f":"ZZZ__FnCalls!F57","v":"Mar 2014"},{"$f":"ZZZ__FnCalls!F58","v":"Apr 2014"},{"$f":"ZZZ__FnCalls!F59","v":"May 2014"},{"$f":"ZZZ__FnCalls!F60","v":"Jun 2014"},{"$f":"ZZZ__FnCalls!F61","v":"Jul 2014"},{"$f":"ZZZ__FnCalls!F62","v":"Aug 2014"},{"$f":"ZZZ__FnCalls!F63","v":"Sep 2014"},{"$f":"ZZZ__FnCalls!F64","v":"Oct 2014"},{"$f":"ZZZ__FnCalls!F65","v":"Nov 2014"},{"$f":"ZZZ__FnCalls!F66","v":"Dec 2014"},{"$f":"ZZZ__FnCalls!H55","v":"2014"},{"$f":"ZZZ__FnCalls!F67","v":"Jan 2015"},{"$f":"ZZZ__FnCalls!F68","v":"Feb 2015"},{"$f":"ZZZ__FnCalls!F69","v":"Mar 2015"},{"$f":"ZZZ__FnCalls!F70","v":"Apr 2015"},{"$f":"ZZZ__FnCalls!F71","v":"May 2015"},{"$f":"ZZZ__FnCalls!F72","v":"Jun 2015"},{"$f":"ZZZ__FnCalls!F73","v":"Jul 2015"},{"$f":"ZZZ__FnCalls!F74","v":"Aug 2015"},{"$f":"ZZZ__FnCalls!F75","v":"Sep 2015"},{"$f":"ZZZ__FnCalls!F76","v":"Oct 2015"},{"$f":"ZZZ__FnCalls!F77","v":"Nov 2015"},{"$f":"ZZZ__FnCalls!F78","v":"Dec 2015"},{"$f":"ZZZ__FnCalls!H67","v":"2015"},{"$f":"ZZZ__FnCalls!F79","v":"Jan 2016"},{"$f":"ZZZ__FnCalls!F80","v":"Feb 2016"},{"$f":"ZZZ__FnCalls!F81","v":"Mar 2016"},{"$f":"ZZZ__FnCalls!F82","v":"Apr 2016"},{"$f":"ZZZ__FnCalls!F83","v":"May 2016"},{"$f":"ZZZ__FnCalls!F84","v":"Jun 2016"},{"$f":"ZZZ__FnCalls!F85","v":"Jul 2016"},{"$f":"ZZZ__FnCalls!F86","v":"Aug 2016"},{"$f":"ZZZ__FnCalls!F87","v":"Sep 2016"},{"$f":"ZZZ__FnCalls!F88","v":"Oct 2016"},{"$f":"ZZZ__FnCalls!F89","v":"Nov 2016"},{"$f":"ZZZ__FnCalls!F90","v":"Dec 2016"},{"$f":"ZZZ__FnCalls!H79","v":"2016"},{"$f":"ZZZ__FnCalls!F91","v":"Jan 2017"},{"$f":"ZZZ__FnCalls!F92","v":"Feb 2017"},{"$f":"ZZZ__FnCalls!F93","v":"Mar 2017"},{"$f":"ZZZ__FnCalls!F94","v":"Apr 2017"},{"$f":"ZZZ__FnCalls!F95","v":"May 2017"},{"$f":"ZZZ__FnCalls!F96","v":"Jun 2017"},{"$f":"ZZZ__FnCalls!F97","v":"Jul 2017"},{"$f":"ZZZ__FnCalls!F98","v":"Aug 2017"},{"$f":"ZZZ__FnCalls!F99","v":"Sep 2017"},{"$f":"ZZZ__FnCalls!F100","v":"Oct 2017"},{"$f":"ZZZ__FnCalls!F101","v":"Nov 2017"},{"$f":"ZZZ__FnCalls!F102","v":"Dec 2017"},{"$f":"ZZZ__FnCalls!H91","v":"2017"},{"$f":"ZZZ__FnCalls!F103","v":"Jan 2018"},{"$f":"ZZZ__FnCalls!F104","v":"Feb 2018"},{"$f":"ZZZ__FnCalls!F105","v":"Mar 2018"},{"$f":"ZZZ__FnCalls!F106","v":"Apr 2018"},{"$f":"ZZZ__FnCalls!F107","v":"May 2018"},{"$f":"ZZZ__FnCalls!F108","v":"Jun 2018"},{"$f":"ZZZ__FnCalls!F109","v":"Jul 2018"},{"$f":"ZZZ__FnCalls!F110","v":"Aug 2018"},{"$f":"ZZZ__FnCalls!F111","v":"Sep 2018"},{"$f":"ZZZ__FnCalls!F112","v":"Oct 2018"},{"$f":"ZZZ__FnCalls!F113","v":"Nov 2018"},{"$f":"ZZZ__FnCalls!F114","v":"Dec 2018"},{"$f":"ZZZ__FnCalls!H103","v":"2018"},{"$f":"ZZZ__FnCalls!F115","v":"Jan 2019"},{"$f":"ZZZ__FnCalls!F116","v":"Feb 2019"},{"$f":"ZZZ__FnCalls!F117","v":"Mar 2019"},{"$f":"ZZZ__FnCalls!F118","v":"Apr 2019"},{"$f":"ZZZ__FnCalls!F119","v":"May 2019"},{"$f":"ZZZ__FnCalls!F120","v":"Jun 2019"},{"$f":"ZZZ__FnCalls!F121","v":"Jul 2019"},{"$f":"ZZZ__FnCalls!F122","v":"Aug 2019"},{"$f":"ZZZ__FnCalls!F123","v":"Sep 2019"},{"$f":"ZZZ__FnCalls!F124","v":"Oct 2019"},{"$f":"ZZZ__FnCalls!F125","v":"Nov 2019"},{"$f":"ZZZ__FnCalls!F126","v":"Dec 2019"},{"$f":"ZZZ__FnCalls!H115","v":"2019"},{"$f":"ZZZ__FnCalls!F127","v":"Jan 2020"},{"$f":"ZZZ__FnCalls!F128","v":"Feb 2020"},{"$f":"ZZZ__FnCalls!F129","v":"Mar 2020"},{"$f":"ZZZ__FnCalls!F130","v":"Apr 2020"},{"$f":"ZZZ__FnCalls!F131","v":"May 2020"},{"$f":"ZZZ__FnCalls!F132","v":"Jun 2020"},{"$f":"ZZZ__FnCalls!F133","v":"Jul 2020"},{"$f":"ZZZ__FnCalls!F134","v":"Aug 2020"},{"$f":"ZZZ__FnCalls!F135","v":"Sep 2020"},{"$f":"ZZZ__FnCalls!F136","v":"Oct 2020"},{"$f":"ZZZ__FnCalls!F137","v":"Nov 2020"},{"$f":"ZZZ__FnCalls!F138","v":"Dec 2020"},{"$f":"ZZZ__FnCalls!H127","v":"2020"}]
[null,{"$f":"ZZZ__FnCalls!A7","v":"2010-01-01"},{"$f":"ZZZ__FnCalls!A8","v":"2010-02-01"},{"$f":"ZZZ__FnCalls!A9","v":"2010-03-01"},{"$f":"ZZZ__FnCalls!A10","v":"2010-04-01"},{"$f":"ZZZ__FnCalls!A11","v":"2010-05-01"},{"$f":"ZZZ__FnCalls!A12","v":"2010-06-01"},{"$f":"ZZZ__FnCalls!A13","v":"2010-07-01"},{"$f":"ZZZ__FnCalls!A14","v":"2010-08-01"},{"$f":"ZZZ__FnCalls!A15","v":"2010-09-01"},{"$f":"ZZZ__FnCalls!A16","v":"2010-10-01"},{"$f":"ZZZ__FnCalls!A17","v":"2010-11-01"},{"$f":"ZZZ__FnCalls!A18","v":"2010-12-01"},{"$f":"ZZZ__FnCalls!A7","v":"2010-01-01"},{"$f":"ZZZ__FnCalls!A19","v":"2011-01-01"},{"$f":"ZZZ__FnCalls!A20","v":"2011-02-01"},{"$f":"ZZZ__FnCalls!A21","v":"2011-03-01"},{"$f":"ZZZ__FnCalls!A22","v":"2011-04-01"},{"$f":"ZZZ__FnCalls!A23","v":"2011-05-01"},{"$f":"ZZZ__FnCalls!A24","v":"2011-06-01"},{"$f":"ZZZ__FnCalls!A25","v":"2011-07-01"},{"$f":"ZZZ__FnCalls!A26","v":"2011-08-01"},{"$f":"ZZZ__FnCalls!A27","v":"2011-09-01"},{"$f":"ZZZ__FnCalls!A28","v":"2011-10-01"},{"$f":"ZZZ__FnCalls!A29","v":"2011-11-01"},{"$f":"ZZZ__FnCalls!A30","v":"2011-12-01"},{"$f":"ZZZ__FnCalls!A19","v":"2011-01-01"},{"$f":"ZZZ__FnCalls!A31","v":"2012-01-01"},{"$f":"ZZZ__FnCalls!A32","v":"2012-02-01"},{"$f":"ZZZ__FnCalls!A33","v":"2012-03-01"},{"$f":"ZZZ__FnCalls!A34","v":"2012-04-01"},{"$f":"ZZZ__FnCalls!A35","v":"2012-05-01"},{"$f":"ZZZ__FnCalls!A36","v":"2012-06-01"},{"$f":"ZZZ__FnCalls!A37","v":"2012-07-01"},{"$f":"ZZZ__FnCalls!A38","v":"2012-08-01"},{"$f":"ZZZ__FnCalls!A39","v":"2012-09-01"},{"$f":"ZZZ__FnCalls!A40","v":"2012-10-01"},{"$f":"ZZZ__FnCalls!A41","v":"2012-11-01"},{"$f":"ZZZ__FnCalls!A42","v":"2012-12-01"},{"$f":"ZZZ__FnCalls!A31","v":"2012-01-01"},{"$f":"ZZZ__FnCalls!A43","v":"2013-01-01"},{"$f":"ZZZ__FnCalls!A44","v":"2013-02-01"},{"$f":"ZZZ__FnCalls!A45","v":"2013-03-01"},{"$f":"ZZZ__FnCalls!A46","v":"2013-04-01"},{"$f":"ZZZ__FnCalls!A47","v":"2013-05-01"},{"$f":"ZZZ__FnCalls!A48","v":"2013-06-01"},{"$f":"ZZZ__FnCalls!A49","v":"2013-07-01"},{"$f":"ZZZ__FnCalls!A50","v":"2013-08-01"},{"$f":"ZZZ__FnCalls!A51","v":"2013-09-01"},{"$f":"ZZZ__FnCalls!A52","v":"2013-10-01"},{"$f":"ZZZ__FnCalls!A53","v":"2013-11-01"},{"$f":"ZZZ__FnCalls!A54","v":"2013-12-01"},{"$f":"ZZZ__FnCalls!A43","v":"2013-01-01"},{"$f":"ZZZ__FnCalls!A55","v":"2014-01-01"},{"$f":"ZZZ__FnCalls!A56","v":"2014-02-01"},{"$f":"ZZZ__FnCalls!A57","v":"2014-03-01"},{"$f":"ZZZ__FnCalls!A58","v":"2014-04-01"},{"$f":"ZZZ__FnCalls!A59","v":"2014-05-01"},{"$f":"ZZZ__FnCalls!A60","v":"2014-06-01"},{"$f":"ZZZ__FnCalls!A61","v":"2014-07-01"},{"$f":"ZZZ__FnCalls!A62","v":"2014-08-01"},{"$f":"ZZZ__FnCalls!A63","v":"2014-09-01"},{"$f":"ZZZ__FnCalls!A64","v":"2014-10-01"},{"$f":"ZZZ__FnCalls!A65","v":"2014-11-01"},{"$f":"ZZZ__FnCalls!A66","v":"2014-12-01"},{"$f":"ZZZ__FnCalls!A55","v":"2014-01-01"},{"$f":"ZZZ__FnCalls!A67","v":"2015-01-01"},{"$f":"ZZZ__FnCalls!A68","v":"2015-02-01"},{"$f":"ZZZ__FnCalls!A69","v":"2015-03-01"},{"$f":"ZZZ__FnCalls!A70","v":"2015-04-01"},{"$f":"ZZZ__FnCalls!A71","v":"2015-05-01"},{"$f":"ZZZ__FnCalls!A72","v":"2015-06-01"},{"$f":"ZZZ__FnCalls!A73","v":"2015-07-01"},{"$f":"ZZZ__FnCalls!A74","v":"2015-08-01"},{"$f":"ZZZ__FnCalls!A75","v":"2015-09-01"},{"$f":"ZZZ__FnCalls!A76","v":"2015-10-01"},{"$f":"ZZZ__FnCalls!A77","v":"2015-11-01"},{"$f":"ZZZ__FnCalls!A78","v":"2015-12-01"},{"$f":"ZZZ__FnCalls!A67","v":"2015-01-01"},{"$f":"ZZZ__FnCalls!A79","v":"2016-01-01"},{"$f":"ZZZ__FnCalls!A80","v":"2016-02-01"},{"$f":"ZZZ__FnCalls!A81","v":"2016-03-01"},{"$f":"ZZZ__FnCalls!A82","v":"2016-04-01"},{"$f":"ZZZ__FnCalls!A83","v":"2016-05-01"},{"$f":"ZZZ__FnCalls!A84","v":"2016-06-01"},{"$f":"ZZZ__FnCalls!A85","v":"2016-07-01"},{"$f":"ZZZ__FnCalls!A86","v":"2016-08-01"},{"$f":"ZZZ__FnCalls!A87","v":"2016-09-01"},{"$f":"ZZZ__FnCalls!A88","v":"2016-10-01"},{"$f":"ZZZ__FnCalls!A89","v":"2016-11-01"},{"$f":"ZZZ__FnCalls!A90","v":"2016-12-01"},{"$f":"ZZZ__FnCalls!A79","v":"2016-01-01"},{"$f":"ZZZ__FnCalls!A91","v":"2017-01-01"},{"$f":"ZZZ__FnCalls!A92","v":"2017-02-01"},{"$f":"ZZZ__FnCalls!A93","v":"2017-03-01"},{"$f":"ZZZ__FnCalls!A94","v":"2017-04-01"},{"$f":"ZZZ__FnCalls!A95","v":"2017-05-01"},{"$f":"ZZZ__FnCalls!A96","v":"2017-06-01"},{"$f":"ZZZ__FnCalls!A97","v":"2017-07-01"},{"$f":"ZZZ__FnCalls!A98","v":"2017-08-01"},{"$f":"ZZZ__FnCalls!A99","v":"2017-09-01"},{"$f":"ZZZ__FnCalls!A100","v":"2017-10-01"},{"$f":"ZZZ__FnCalls!A101","v":"2017-11-01"},{"$f":"ZZZ__FnCalls!A102","v":"2017-12-01"},{"$f":"ZZZ__FnCalls!A91","v":"2017-01-01"},{"$f":"ZZZ__FnCalls!A103","v":"2018-01-01"},{"$f":"ZZZ__FnCalls!A104","v":"2018-02-01"},{"$f":"ZZZ__FnCalls!A105","v":"2018-03-01"},{"$f":"ZZZ__FnCalls!A106","v":"2018-04-01"},{"$f":"ZZZ__FnCalls!A107","v":"2018-05-01"},{"$f":"ZZZ__FnCalls!A108","v":"2018-06-01"},{"$f":"ZZZ__FnCalls!A109","v":"2018-07-01"},{"$f":"ZZZ__FnCalls!A110","v":"2018-08-01"},{"$f":"ZZZ__FnCalls!A111","v":"2018-09-01"},{"$f":"ZZZ__FnCalls!A112","v":"2018-10-01"},{"$f":"ZZZ__FnCalls!A113","v":"2018-11-01"},{"$f":"ZZZ__FnCalls!A114","v":"2018-12-01"},{"$f":"ZZZ__FnCalls!A103","v":"2018-01-01"},{"$f":"ZZZ__FnCalls!A115","v":"2019-01-01"},{"$f":"ZZZ__FnCalls!A116","v":"2019-02-01"},{"$f":"ZZZ__FnCalls!A117","v":"2019-03-01"},{"$f":"ZZZ__FnCalls!A118","v":"2019-04-01"},{"$f":"ZZZ__FnCalls!A119","v":"2019-05-01"},{"$f":"ZZZ__FnCalls!A120","v":"2019-06-01"},{"$f":"ZZZ__FnCalls!A121","v":"2019-07-01"},{"$f":"ZZZ__FnCalls!A122","v":"2019-08-01"},{"$f":"ZZZ__FnCalls!A123","v":"2019-09-01"},{"$f":"ZZZ__FnCalls!A124","v":"2019-10-01"},{"$f":"ZZZ__FnCalls!A125","v":"2019-11-01"},{"$f":"ZZZ__FnCalls!A126","v":"2019-12-01"},{"$f":"ZZZ__FnCalls!A115","v":"2019-01-01"},{"$f":"ZZZ__FnCalls!A127","v":"2020-01-01"},{"$f":"ZZZ__FnCalls!A128","v":"2020-02-01"},{"$f":"ZZZ__FnCalls!A129","v":"2020-03-01"},{"$f":"ZZZ__FnCalls!A130","v":"2020-04-01"},{"$f":"ZZZ__FnCalls!A131","v":"2020-05-01"},{"$f":"ZZZ__FnCalls!A132","v":"2020-06-01"},{"$f":"ZZZ__FnCalls!A133","v":"2020-07-01"},{"$f":"ZZZ__FnCalls!A134","v":"2020-08-01"},{"$f":"ZZZ__FnCalls!A135","v":"2020-09-01"},{"$f":"ZZZ__FnCalls!A136","v":"2020-10-01"},{"$f":"ZZZ__FnCalls!A137","v":"2020-11-01"},{"$f":"ZZZ__FnCalls!A138","v":"2020-12-01"},{"$f":"ZZZ__FnCalls!A127","v":"2020-01-01"}]
[{"$f":"\"Capital_mean_2\"","v":"Capital_mean_2"}]
[null,{"$f":"ZZZ__FnCalls!F7","v":"Jan 2010"},{"$f":"ZZZ__FnCalls!F8","v":"Feb 2010"},{"$f":"ZZZ__FnCalls!F9","v":"Mar 2010"},{"$f":"ZZZ__FnCalls!F10","v":"Apr 2010"},{"$f":"ZZZ__FnCalls!F11","v":"May 2010"},{"$f":"ZZZ__FnCalls!F12","v":"Jun 2010"},{"$f":"ZZZ__FnCalls!F13","v":"Jul 2010"},{"$f":"ZZZ__FnCalls!F14","v":"Aug 2010"},{"$f":"ZZZ__FnCalls!F15","v":"Sep 2010"},{"$f":"ZZZ__FnCalls!F16","v":"Oct 2010"},{"$f":"ZZZ__FnCalls!F17","v":"Nov 2010"},{"$f":"ZZZ__FnCalls!F18","v":"Dec 2010"},{"$f":"ZZZ__FnCalls!H7","v":"2010"},{"$f":"ZZZ__FnCalls!F19","v":"Jan 2011"},{"$f":"ZZZ__FnCalls!F20","v":"Feb 2011"},{"$f":"ZZZ__FnCalls!F21","v":"Mar 2011"},{"$f":"ZZZ__FnCalls!F22","v":"Apr 2011"},{"$f":"ZZZ__FnCalls!F23","v":"May 2011"},{"$f":"ZZZ__FnCalls!F24","v":"Jun 2011"},{"$f":"ZZZ__FnCalls!F25","v":"Jul 2011"},{"$f":"ZZZ__FnCalls!F26","v":"Aug 2011"},{"$f":"ZZZ__FnCalls!F27","v":"Sep 2011"},{"$f":"ZZZ__FnCalls!F28","v":"Oct 2011"},{"$f":"ZZZ__FnCalls!F29","v":"Nov 2011"},{"$f":"ZZZ__FnCalls!F30","v":"Dec 2011"},{"$f":"ZZZ__FnCalls!H19","v":"2011"},{"$f":"ZZZ__FnCalls!F31","v":"Jan 2012"},{"$f":"ZZZ__FnCalls!F32","v":"Feb 2012"},{"$f":"ZZZ__FnCalls!F33","v":"Mar 2012"},{"$f":"ZZZ__FnCalls!F34","v":"Apr 2012"},{"$f":"ZZZ__FnCalls!F35","v":"May 2012"},{"$f":"ZZZ__FnCalls!F36","v":"Jun 2012"},{"$f":"ZZZ__FnCalls!F37","v":"Jul 2012"},{"$f":"ZZZ__FnCalls!F38","v":"Aug 2012"},{"$f":"ZZZ__FnCalls!F39","v":"Sep 2012"},{"$f":"ZZZ__FnCalls!F40","v":"Oct 2012"},{"$f":"ZZZ__FnCalls!F41","v":"Nov 2012"},{"$f":"ZZZ__FnCalls!F42","v":"Dec 2012"},{"$f":"ZZZ__FnCalls!H31","v":"2012"},{"$f":"ZZZ__FnCalls!F43","v":"Jan 2013"},{"$f":"ZZZ__FnCalls!F44","v":"Feb 2013"},{"$f":"ZZZ__FnCalls!F45","v":"Mar 2013"},{"$f":"ZZZ__FnCalls!F46","v":"Apr 2013"},{"$f":"ZZZ__FnCalls!F47","v":"May 2013"},{"$f":"ZZZ__FnCalls!F48","v":"Jun 2013"},{"$f":"ZZZ__FnCalls!F49","v":"Jul 2013"},{"$f":"ZZZ__FnCalls!F50","v":"Aug 2013"},{"$f":"ZZZ__FnCalls!F51","v":"Sep 2013"},{"$f":"ZZZ__FnCalls!F52","v":"Oct 2013"},{"$f":"ZZZ__FnCalls!F53","v":"Nov 2013"},{"$f":"ZZZ__FnCalls!F54","v":"Dec 2013"},{"$f":"ZZZ__FnCalls!H43","v":"2013"},{"$f":"ZZZ__FnCalls!F55","v":"Jan 2014"},{"$f":"ZZZ__FnCalls!F56","v":"Feb 2014"},{"$f":"ZZZ__FnCalls!F57","v":"Mar 2014"},{"$f":"ZZZ__FnCalls!F58","v":"Apr 2014"},{"$f":"ZZZ__FnCalls!F59","v":"May 2014"},{"$f":"ZZZ__FnCalls!F60","v":"Jun 2014"},{"$f":"ZZZ__FnCalls!F61","v":"Jul 2014"},{"$f":"ZZZ__FnCalls!F62","v":"Aug 2014"},{"$f":"ZZZ__FnCalls!F63","v":"Sep 2014"},{"$f":"ZZZ__FnCalls!F64","v":"Oct 2014"},{"$f":"ZZZ__FnCalls!F65","v":"Nov 2014"},{"$f":"ZZZ__FnCalls!F66","v":"Dec 2014"},{"$f":"ZZZ__FnCalls!H55","v":"2014"},{"$f":"ZZZ__FnCalls!F67","v":"Jan 2015"},{"$f":"ZZZ__FnCalls!F68","v":"Feb 2015"},{"$f":"ZZZ__FnCalls!F69","v":"Mar 2015"},{"$f":"ZZZ__FnCalls!F70","v":"Apr 2015"},{"$f":"ZZZ__FnCalls!F71","v":"May 2015"},{"$f":"ZZZ__FnCalls!F72","v":"Jun 2015"},{"$f":"ZZZ__FnCalls!F73","v":"Jul 2015"},{"$f":"ZZZ__FnCalls!F74","v":"Aug 2015"},{"$f":"ZZZ__FnCalls!F75","v":"Sep 2015"},{"$f":"ZZZ__FnCalls!F76","v":"Oct 2015"},{"$f":"ZZZ__FnCalls!F77","v":"Nov 2015"},{"$f":"ZZZ__FnCalls!F78","v":"Dec 2015"},{"$f":"ZZZ__FnCalls!H67","v":"2015"},{"$f":"ZZZ__FnCalls!F79","v":"Jan 2016"},{"$f":"ZZZ__FnCalls!F80","v":"Feb 2016"},{"$f":"ZZZ__FnCalls!F81","v":"Mar 2016"},{"$f":"ZZZ__FnCalls!F82","v":"Apr 2016"},{"$f":"ZZZ__FnCalls!F83","v":"May 2016"},{"$f":"ZZZ__FnCalls!F84","v":"Jun 2016"},{"$f":"ZZZ__FnCalls!F85","v":"Jul 2016"},{"$f":"ZZZ__FnCalls!F86","v":"Aug 2016"},{"$f":"ZZZ__FnCalls!F87","v":"Sep 2016"},{"$f":"ZZZ__FnCalls!F88","v":"Oct 2016"},{"$f":"ZZZ__FnCalls!F89","v":"Nov 2016"},{"$f":"ZZZ__FnCalls!F90","v":"Dec 2016"},{"$f":"ZZZ__FnCalls!H79","v":"2016"},{"$f":"ZZZ__FnCalls!F91","v":"Jan 2017"},{"$f":"ZZZ__FnCalls!F92","v":"Feb 2017"},{"$f":"ZZZ__FnCalls!F93","v":"Mar 2017"},{"$f":"ZZZ__FnCalls!F94","v":"Apr 2017"},{"$f":"ZZZ__FnCalls!F95","v":"May 2017"},{"$f":"ZZZ__FnCalls!F96","v":"Jun 2017"},{"$f":"ZZZ__FnCalls!F97","v":"Jul 2017"},{"$f":"ZZZ__FnCalls!F98","v":"Aug 2017"},{"$f":"ZZZ__FnCalls!F99","v":"Sep 2017"},{"$f":"ZZZ__FnCalls!F100","v":"Oct 2017"},{"$f":"ZZZ__FnCalls!F101","v":"Nov 2017"},{"$f":"ZZZ__FnCalls!F102","v":"Dec 2017"},{"$f":"ZZZ__FnCalls!H91","v":"2017"},{"$f":"ZZZ__FnCalls!F103","v":"Jan 2018"},{"$f":"ZZZ__FnCalls!F104","v":"Feb 2018"},{"$f":"ZZZ__FnCalls!F105","v":"Mar 2018"},{"$f":"ZZZ__FnCalls!F106","v":"Apr 2018"},{"$f":"ZZZ__FnCalls!F107","v":"May 2018"},{"$f":"ZZZ__FnCalls!F108","v":"Jun 2018"},{"$f":"ZZZ__FnCalls!F109","v":"Jul 2018"},{"$f":"ZZZ__FnCalls!F110","v":"Aug 2018"},{"$f":"ZZZ__FnCalls!F111","v":"Sep 2018"},{"$f":"ZZZ__FnCalls!F112","v":"Oct 2018"},{"$f":"ZZZ__FnCalls!F113","v":"Nov 2018"},{"$f":"ZZZ__FnCalls!F114","v":"Dec 2018"},{"$f":"ZZZ__FnCalls!H103","v":"2018"},{"$f":"ZZZ__FnCalls!F115","v":"Jan 2019"},{"$f":"ZZZ__FnCalls!F116","v":"Feb 2019"},{"$f":"ZZZ__FnCalls!F117","v":"Mar 2019"},{"$f":"ZZZ__FnCalls!F118","v":"Apr 2019"},{"$f":"ZZZ__FnCalls!F119","v":"May 2019"},{"$f":"ZZZ__FnCalls!F120","v":"Jun 2019"},{"$f":"ZZZ__FnCalls!F121","v":"Jul 2019"},{"$f":"ZZZ__FnCalls!F122","v":"Aug 2019"},{"$f":"ZZZ__FnCalls!F123","v":"Sep 2019"},{"$f":"ZZZ__FnCalls!F124","v":"Oct 2019"},{"$f":"ZZZ__FnCalls!F125","v":"Nov 2019"},{"$f":"ZZZ__FnCalls!F126","v":"Dec 2019"},{"$f":"ZZZ__FnCalls!H115","v":"2019"},{"$f":"ZZZ__FnCalls!F127","v":"Jan 2020"},{"$f":"ZZZ__FnCalls!F128","v":"Feb 2020"},{"$f":"ZZZ__FnCalls!F129","v":"Mar 2020"},{"$f":"ZZZ__FnCalls!F130","v":"Apr 2020"},{"$f":"ZZZ__FnCalls!F131","v":"May 2020"},{"$f":"ZZZ__FnCalls!F132","v":"Jun 2020"},{"$f":"ZZZ__FnCalls!F133","v":"Jul 2020"},{"$f":"ZZZ__FnCalls!F134","v":"Aug 2020"},{"$f":"ZZZ__FnCalls!F135","v":"Sep 2020"},{"$f":"ZZZ__FnCalls!F136","v":"Oct 2020"},{"$f":"ZZZ__FnCalls!F137","v":"Nov 2020"},{"$f":"ZZZ__FnCalls!F138","v":"Dec 2020"},{"$f":"ZZZ__FnCalls!H127","v":"2020"}]
[null,{"$f":"ZZZ__FnCalls!F7","v":"Jan 2010"},{"$f":"ZZZ__FnCalls!F8","v":"Feb 2010"},{"$f":"ZZZ__FnCalls!F9","v":"Mar 2010"},{"$f":"ZZZ__FnCalls!F10","v":"Apr 2010"},{"$f":"ZZZ__FnCalls!F11","v":"May 2010"},{"$f":"ZZZ__FnCalls!F12","v":"Jun 2010"},{"$f":"ZZZ__FnCalls!F13","v":"Jul 2010"},{"$f":"ZZZ__FnCalls!F14","v":"Aug 2010"},{"$f":"ZZZ__FnCalls!F15","v":"Sep 2010"},{"$f":"ZZZ__FnCalls!F16","v":"Oct 2010"},{"$f":"ZZZ__FnCalls!F17","v":"Nov 2010"},{"$f":"ZZZ__FnCalls!F18","v":"Dec 2010"},{"$f":"ZZZ__FnCalls!F7","v":"Jan 2010"},{"$f":"ZZZ__FnCalls!F19","v":"Jan 2011"},{"$f":"ZZZ__FnCalls!F20","v":"Feb 2011"},{"$f":"ZZZ__FnCalls!F21","v":"Mar 2011"},{"$f":"ZZZ__FnCalls!F22","v":"Apr 2011"},{"$f":"ZZZ__FnCalls!F23","v":"May 2011"},{"$f":"ZZZ__FnCalls!F24","v":"Jun 2011"},{"$f":"ZZZ__FnCalls!F25","v":"Jul 2011"},{"$f":"ZZZ__FnCalls!F26","v":"Aug 2011"},{"$f":"ZZZ__FnCalls!F27","v":"Sep 2011"},{"$f":"ZZZ__FnCalls!F28","v":"Oct 2011"},{"$f":"ZZZ__FnCalls!F29","v":"Nov 2011"},{"$f":"ZZZ__FnCalls!F30","v":"Dec 2011"},{"$f":"ZZZ__FnCalls!F19","v":"Jan 2011"},{"$f":"ZZZ__FnCalls!F31","v":"Jan 2012"},{"$f":"ZZZ__FnCalls!F32","v":"Feb 2012"},{"$f":"ZZZ__FnCalls!F33","v":"Mar 2012"},{"$f":"ZZZ__FnCalls!F34","v":"Apr 2012"},{"$f":"ZZZ__FnCalls!F35","v":"May 2012"},{"$f":"ZZZ__FnCalls!F36","v":"Jun 2012"},{"$f":"ZZZ__FnCalls!F37","v":"Jul 2012"},{"$f":"ZZZ__FnCalls!F38","v":"Aug 2012"},{"$f":"ZZZ__FnCalls!F39","v":"Sep 2012"},{"$f":"ZZZ__FnCalls!F40","v":"Oct 2012"},{"$f":"ZZZ__FnCalls!F41","v":"Nov 2012"},{"$f":"ZZZ__FnCalls!F42","v":"Dec 2012"},{"$f":"ZZZ__FnCalls!F31","v":"Jan 2012"},{"$f":"ZZZ__FnCalls!F43","v":"Jan 2013"},{"$f":"ZZZ__FnCalls!F44","v":"Feb 2013"},{"$f":"ZZZ__FnCalls!F45","v":"Mar 2013"},{"$f":"ZZZ__FnCalls!F46","v":"Apr 2013"},{"$f":"ZZZ__FnCalls!F47","v":"May 2013"},{"$f":"ZZZ__FnCalls!F48","v":"Jun 2013"},{"$f":"ZZZ__FnCalls!F49","v":"Jul 2013"},{"$f":"ZZZ__FnCalls!F50","v":"Aug 2013"},{"$f":"ZZZ__FnCalls!F51","v":"Sep 2013"},{"$f":"ZZZ__FnCalls!F52","v":"Oct 2013"},{"$f":"ZZZ__FnCalls!F53","v":"Nov 2013"},{"$f":"ZZZ__FnCalls!F54","v":"Dec 2013"},{"$f":"ZZZ__FnCalls!F43","v":"Jan 2013"},{"$f":"ZZZ__FnCalls!F55","v":"Jan 2014"},{"$f":"ZZZ__FnCalls!F56","v":"Feb 2014"},{"$f":"ZZZ__FnCalls!F57","v":"Mar 2014"},{"$f":"ZZZ__FnCalls!F58","v":"Apr 2014"},{"$f":"ZZZ__FnCalls!F59","v":"May 2014"},{"$f":"ZZZ__FnCalls!F60","v":"Jun 2014"},{"$f":"ZZZ__FnCalls!F61","v":"Jul 2014"},{"$f":"ZZZ__FnCalls!F62","v":"Aug 2014"},{"$f":"ZZZ__FnCalls!F63","v":"Sep 2014"},{"$f":"ZZZ__FnCalls!F64","v":"Oct 2014"},{"$f":"ZZZ__FnCalls!F65","v":"Nov 2014"},{"$f":"ZZZ__FnCalls!F66","v":"Dec 2014"},{"$f":"ZZZ__FnCalls!F55","v":"Jan 2014"},{"$f":"ZZZ__FnCalls!F67","v":"Jan 2015"},{"$f":"ZZZ__FnCalls!F68","v":"Feb 2015"},{"$f":"ZZZ__FnCalls!F69","v":"Mar 2015"},{"$f":"ZZZ__FnCalls!F70","v":"Apr 2015"},{"$f":"ZZZ__FnCalls!F71","v":"May 2015"},{"$f":"ZZZ__FnCalls!F72","v":"Jun 2015"},{"$f":"ZZZ__FnCalls!F73","v":"Jul 2015"},{"$f":"ZZZ__FnCalls!F74","v":"Aug 2015"},{"$f":"ZZZ__FnCalls!F75","v":"Sep 2015"},{"$f":"ZZZ__FnCalls!F76","v":"Oct 2015"},{"$f":"ZZZ__FnCalls!F77","v":"Nov 2015"},{"$f":"ZZZ__FnCalls!F78","v":"Dec 2015"},{"$f":"ZZZ__FnCalls!F67","v":"Jan 2015"},{"$f":"ZZZ__FnCalls!F79","v":"Jan 2016"},{"$f":"ZZZ__FnCalls!F80","v":"Feb 2016"},{"$f":"ZZZ__FnCalls!F81","v":"Mar 2016"},{"$f":"ZZZ__FnCalls!F82","v":"Apr 2016"},{"$f":"ZZZ__FnCalls!F83","v":"May 2016"},{"$f":"ZZZ__FnCalls!F84","v":"Jun 2016"},{"$f":"ZZZ__FnCalls!F85","v":"Jul 2016"},{"$f":"ZZZ__FnCalls!F86","v":"Aug 2016"},{"$f":"ZZZ__FnCalls!F87","v":"Sep 2016"},{"$f":"ZZZ__FnCalls!F88","v":"Oct 2016"},{"$f":"ZZZ__FnCalls!F89","v":"Nov 2016"},{"$f":"ZZZ__FnCalls!F90","v":"Dec 2016"},{"$f":"ZZZ__FnCalls!F79","v":"Jan 2016"},{"$f":"ZZZ__FnCalls!F91","v":"Jan 2017"},{"$f":"ZZZ__FnCalls!F92","v":"Feb 2017"},{"$f":"ZZZ__FnCalls!F93","v":"Mar 2017"},{"$f":"ZZZ__FnCalls!F94","v":"Apr 2017"},{"$f":"ZZZ__FnCalls!F95","v":"May 2017"},{"$f":"ZZZ__FnCalls!F96","v":"Jun 2017"},{"$f":"ZZZ__FnCalls!F97","v":"Jul 2017"},{"$f":"ZZZ__FnCalls!F98","v":"Aug 2017"},{"$f":"ZZZ__FnCalls!F99","v":"Sep 2017"},{"$f":"ZZZ__FnCalls!F100","v":"Oct 2017"},{"$f":"ZZZ__FnCalls!F101","v":"Nov 2017"},{"$f":"ZZZ__FnCalls!F102","v":"Dec 2017"},{"$f":"ZZZ__FnCalls!F91","v":"Jan 2017"},{"$f":"ZZZ__FnCalls!F103","v":"Jan 2018"},{"$f":"ZZZ__FnCalls!F104","v":"Feb 2018"},{"$f":"ZZZ__FnCalls!F105","v":"Mar 2018"},{"$f":"ZZZ__FnCalls!F106","v":"Apr 2018"},{"$f":"ZZZ__FnCalls!F107","v":"May 2018"},{"$f":"ZZZ__FnCalls!F108","v":"Jun 2018"},{"$f":"ZZZ__FnCalls!F109","v":"Jul 2018"},{"$f":"ZZZ__FnCalls!F110","v":"Aug 2018"},{"$f":"ZZZ__FnCalls!F111","v":"Sep 2018"},{"$f":"ZZZ__FnCalls!F112","v":"Oct 2018"},{"$f":"ZZZ__FnCalls!F113","v":"Nov 2018"},{"$f":"ZZZ__FnCalls!F114","v":"Dec 2018"},{"$f":"ZZZ__FnCalls!F103","v":"Jan 2018"},{"$f":"ZZZ__FnCalls!F115","v":"Jan 2019"},{"$f":"ZZZ__FnCalls!F116","v":"Feb 2019"},{"$f":"ZZZ__FnCalls!F117","v":"Mar 2019"},{"$f":"ZZZ__FnCalls!F118","v":"Apr 2019"},{"$f":"ZZZ__FnCalls!F119","v":"May 2019"},{"$f":"ZZZ__FnCalls!F120","v":"Jun 2019"},{"$f":"ZZZ__FnCalls!F121","v":"Jul 2019"},{"$f":"ZZZ__FnCalls!F122","v":"Aug 2019"},{"$f":"ZZZ__FnCalls!F123","v":"Sep 2019"},{"$f":"ZZZ__FnCalls!F124","v":"Oct 2019"},{"$f":"ZZZ__FnCalls!F125","v":"Nov 2019"},{"$f":"ZZZ__FnCalls!F126","v":"Dec 2019"},{"$f":"ZZZ__FnCalls!F115","v":"Jan 2019"},{"$f":"ZZZ__FnCalls!F127","v":"Jan 2020"},{"$f":"ZZZ__FnCalls!F128","v":"Feb 2020"},{"$f":"ZZZ__FnCalls!F129","v":"Mar 2020"},{"$f":"ZZZ__FnCalls!F130","v":"Apr 2020"},{"$f":"ZZZ__FnCalls!F131","v":"May 2020"},{"$f":"ZZZ__FnCalls!F132","v":"Jun 2020"},{"$f":"ZZZ__FnCalls!F133","v":"Jul 2020"},{"$f":"ZZZ__FnCalls!F134","v":"Aug 2020"},{"$f":"ZZZ__FnCalls!F135","v":"Sep 2020"},{"$f":"ZZZ__FnCalls!F136","v":"Oct 2020"},{"$f":"ZZZ__FnCalls!F137","v":"Nov 2020"},{"$f":"ZZZ__FnCalls!F138","v":"Dec 2020"},{"$f":"ZZZ__FnCalls!F127","v":"Jan 2020"}]
[{"$f":"\"Capital_stdev_1\"","v":"Capital_stdev_1"}]
[null,{"$f":"ZZZ__FnCalls!F7","v":"Jan 2010"},{"$f":"ZZZ__FnCalls!F8","v":"Feb 2010"},{"$f":"ZZZ__FnCalls!F9","v":"Mar 2010"},{"$f":"ZZZ__FnCalls!F10","v":"Apr 2010"},{"$f":"ZZZ__FnCalls!F11","v":"May 2010"},{"$f":"ZZZ__FnCalls!F12","v":"Jun 2010"},{"$f":"ZZZ__FnCalls!F13","v":"Jul 2010"},{"$f":"ZZZ__FnCalls!F14","v":"Aug 2010"},{"$f":"ZZZ__FnCalls!F15","v":"Sep 2010"},{"$f":"ZZZ__FnCalls!F16","v":"Oct 2010"},{"$f":"ZZZ__FnCalls!F17","v":"Nov 2010"},{"$f":"ZZZ__FnCalls!F18","v":"Dec 2010"},{"$f":"ZZZ__FnCalls!H7","v":"2010"},{"$f":"ZZZ__FnCalls!F19","v":"Jan 2011"},{"$f":"ZZZ__FnCalls!F20","v":"Feb 2011"},{"$f":"ZZZ__FnCalls!F21","v":"Mar 2011"},{"$f":"ZZZ__FnCalls!F22","v":"Apr 2011"},{"$f":"ZZZ__FnCalls!F23","v":"May 2011"},{"$f":"ZZZ__FnCalls!F24","v":"Jun 2011"},{"$f":"ZZZ__FnCalls!F25","v":"Jul 2011"},{"$f":"ZZZ__FnCalls!F26","v":"Aug 2011"},{"$f":"ZZZ__FnCalls!F27","v":"Sep 2011"},{"$f":"ZZZ__FnCalls!F28","v":"Oct 2011"},{"$f":"ZZZ__FnCalls!F29","v":"Nov 2011"},{"$f":"ZZZ__FnCalls!F30","v":"Dec 2011"},{"$f":"ZZZ__FnCalls!H19","v":"2011"},{"$f":"ZZZ__FnCalls!F31","v":"Jan 2012"},{"$f":"ZZZ__FnCalls!F32","v":"Feb 2012"},{"$f":"ZZZ__FnCalls!F33","v":"Mar 2012"},{"$f":"ZZZ__FnCalls!F34","v":"Apr 2012"},{"$f":"ZZZ__FnCalls!F35","v":"May 2012"},{"$f":"ZZZ__FnCalls!F36","v":"Jun 2012"},{"$f":"ZZZ__FnCalls!F37","v":"Jul 2012"},{"$f":"ZZZ__FnCalls!F38","v":"Aug 2012"},{"$f":"ZZZ__FnCalls!F39","v":"Sep 2012"},{"$f":"ZZZ__FnCalls!F40","v":"Oct 2012"},{"$f":"ZZZ__FnCalls!F41","v":"Nov 2012"},{"$f":"ZZZ__FnCalls!F42","v":"Dec 2012"},{"$f":"ZZZ__FnCalls!H31","v":"2012"},{"$f":"ZZZ__FnCalls!F43","v":"Jan 2013"},{"$f":"ZZZ__FnCalls!F44","v":"Feb 2013"},{"$f":"ZZZ__FnCalls!F45","v":"Mar 2013"},{"$f":"ZZZ__FnCalls!F46","v":"Apr 2013"},{"$f":"ZZZ__FnCalls!F47","v":"May 2013"},{"$f":"ZZZ__FnCalls!F48","v":"Jun 2013"},{"$f":"ZZZ__FnCalls!F49","v":"Jul 2013"},{"$f":"ZZZ__FnCalls!F50","v":"Aug 2013"},{"$f":"ZZZ__FnCalls!F51","v":"Sep 2013"},{"$f":"ZZZ__FnCalls!F52","v":"Oct 2013"},{"$f":"ZZZ__FnCalls!F53","v":"Nov 2013"},{"$f":"ZZZ__FnCalls!F54","v":"Dec 2013"},{"$f":"ZZZ__FnCalls!H43","v":"2013"},{"$f":"ZZZ__FnCalls!F55","v":"Jan 2014"},{"$f":"ZZZ__FnCalls!F56","v":"Feb 2014"},{"$f":"ZZZ__FnCalls!F57","v":"Mar 2014"},{"$f":"ZZZ__FnCalls!F58","v":"Apr 2014"},{"$f":"ZZZ__FnCalls!F59","v":"May 2014"},{"$f":"ZZZ__FnCalls!F60","v":"Jun 2014"},{"$f":"ZZZ__FnCalls!F61","v":"Jul 2014"},{"$f":"ZZZ__FnCalls!F62","v":"Aug 2014"},{"$f":"ZZZ__FnCalls!F63","v":"Sep 2014"},{"$f":"ZZZ__FnCalls!F64","v":"Oct 2014"},{"$f":"ZZZ__FnCalls!F65","v":"Nov 2014"},{"$f":"ZZZ__FnCalls!F66","v":"Dec 2014"},{"$f":"ZZZ__FnCalls!H55","v":"2014"},{"$f":"ZZZ__FnCalls!F67","v":"Jan 2015"},{"$f":"ZZZ__FnCalls!F68","v":"Feb 2015"},{"$f":"ZZZ__FnCalls!F69","v":"Mar 2015"},{"$f":"ZZZ__FnCalls!F70","v":"Apr 2015"},{"$f":"ZZZ__FnCalls!F71","v":"May 2015"},{"$f":"ZZZ__FnCalls!F72","v":"Jun 2015"},{"$f":"ZZZ__FnCalls!F73","v":"Jul 2015"},{"$f":"ZZZ__FnCalls!F74","v":"Aug 2015"},{"$f":"ZZZ__FnCalls!F75","v":"Sep 2015"},{"$f":"ZZZ__FnCalls!F76","v":"Oct 2015"},{"$f":"ZZZ__FnCalls!F77","v":"Nov 2015"},{"$f":"ZZZ__FnCalls!F78","v":"Dec 2015"},{"$f":"ZZZ__FnCalls!H67","v":"2015"},{"$f":"ZZZ__FnCalls!F79","v":"Jan 2016"},{"$f":"ZZZ__FnCalls!F80","v":"Feb 2016"},{"$f":"ZZZ__FnCalls!F81","v":"Mar 2016"},{"$f":"ZZZ__FnCalls!F82","v":"Apr 2016"},{"$f":"ZZZ__FnCalls!F83","v":"May 2016"},{"$f":"ZZZ__FnCalls!F84","v":"Jun 2016"},{"$f":"ZZZ__FnCalls!F85","v":"Jul 2016"},{"$f":"ZZZ__FnCalls!F86","v":"Aug 2016"},{"$f":"ZZZ__FnCalls!F87","v":"Sep 2016"},{"$f":"ZZZ__FnCalls!F88","v":"Oct 2016"},{"$f":"ZZZ__FnCalls!F89","v":"Nov 2016"},{"$f":"ZZZ__FnCalls!F90","v":"Dec 2016"},{"$f":"ZZZ__FnCalls!H79","v":"2016"},{"$f":"ZZZ__FnCalls!F91","v":"Jan 2017"},{"$f":"ZZZ__FnCalls!F92","v":"Feb 2017"},{"$f":"ZZZ__FnCalls!F93","v":"Mar 2017"},{"$f":"ZZZ__FnCalls!F94","v":"Apr 2017"},{"$f":"ZZZ__FnCalls!F95","v":"May 2017"},{"$f":"ZZZ__FnCalls!F96","v":"Jun 2017"},{"$f":"ZZZ__FnCalls!F97","v":"Jul 2017"},{"$f":"ZZZ__FnCalls!F98","v":"Aug 2017"},{"$f":"ZZZ__FnCalls!F99","v":"Sep 2017"},{"$f":"ZZZ__FnCalls!F100","v":"Oct 2017"},{"$f":"ZZZ__FnCalls!F101","v":"Nov 2017"},{"$f":"ZZZ__FnCalls!F102","v":"Dec 2017"},{"$f":"ZZZ__FnCalls!H91","v":"2017"},{"$f":"ZZZ__FnCalls!F103","v":"Jan 2018"},{"$f":"ZZZ__FnCalls!F104","v":"Feb 2018"},{"$f":"ZZZ__FnCalls!F105","v":"Mar 2018"},{"$f":"ZZZ__FnCalls!F106","v":"Apr 2018"},{"$f":"ZZZ__FnCalls!F107","v":"May 2018"},{"$f":"ZZZ__FnCalls!F108","v":"Jun 2018"},{"$f":"ZZZ__FnCalls!F109","v":"Jul 2018"},{"$f":"ZZZ__FnCalls!F110","v":"Aug 2018"},{"$f":"ZZZ__FnCalls!F111","v":"Sep 2018"},{"$f":"ZZZ__FnCalls!F112","v":"Oct 2018"},{"$f":"ZZZ__FnCalls!F113","v":"Nov 2018"},{"$f":"ZZZ__FnCalls!F114","v":"Dec 2018"},{"$f":"ZZZ__FnCalls!H103","v":"2018"},{"$f":"ZZZ__FnCalls!F115","v":"Jan 2019"},{"$f":"ZZZ__FnCalls!F116","v":"Feb 2019"},{"$f":"ZZZ__FnCalls!F117","v":"Mar 2019"},{"$f":"ZZZ__FnCalls!F118","v":"Apr 2019"},{"$f":"ZZZ__FnCalls!F119","v":"May 2019"},{"$f":"ZZZ__FnCalls!F120","v":"Jun 2019"},{"$f":"ZZZ__FnCalls!F121","v":"Jul 2019"},{"$f":"ZZZ__FnCalls!F122","v":"Aug 2019"},{"$f":"ZZZ__FnCalls!F123","v":"Sep 2019"},{"$f":"ZZZ__FnCalls!F124","v":"Oct 2019"},{"$f":"ZZZ__FnCalls!F125","v":"Nov 2019"},{"$f":"ZZZ__FnCalls!F126","v":"Dec 2019"},{"$f":"ZZZ__FnCalls!H115","v":"2019"},{"$f":"ZZZ__FnCalls!F127","v":"Jan 2020"},{"$f":"ZZZ__FnCalls!F128","v":"Feb 2020"},{"$f":"ZZZ__FnCalls!F129","v":"Mar 2020"},{"$f":"ZZZ__FnCalls!F130","v":"Apr 2020"},{"$f":"ZZZ__FnCalls!F131","v":"May 2020"},{"$f":"ZZZ__FnCalls!F132","v":"Jun 2020"},{"$f":"ZZZ__FnCalls!F133","v":"Jul 2020"},{"$f":"ZZZ__FnCalls!F134","v":"Aug 2020"},{"$f":"ZZZ__FnCalls!F135","v":"Sep 2020"},{"$f":"ZZZ__FnCalls!F136","v":"Oct 2020"},{"$f":"ZZZ__FnCalls!F137","v":"Nov 2020"},{"$f":"ZZZ__FnCalls!F138","v":"Dec 2020"},{"$f":"ZZZ__FnCalls!H127","v":"2020"}]
[null,{"$f":"ZZZ__FnCalls!A7","v":"2010-01-01"},{"$f":"ZZZ__FnCalls!A8","v":"2010-02-01"},{"$f":"ZZZ__FnCalls!A9","v":"2010-03-01"},{"$f":"ZZZ__FnCalls!A10","v":"2010-04-01"},{"$f":"ZZZ__FnCalls!A11","v":"2010-05-01"},{"$f":"ZZZ__FnCalls!A12","v":"2010-06-01"},{"$f":"ZZZ__FnCalls!A13","v":"2010-07-01"},{"$f":"ZZZ__FnCalls!A14","v":"2010-08-01"},{"$f":"ZZZ__FnCalls!A15","v":"2010-09-01"},{"$f":"ZZZ__FnCalls!A16","v":"2010-10-01"},{"$f":"ZZZ__FnCalls!A17","v":"2010-11-01"},{"$f":"ZZZ__FnCalls!A18","v":"2010-12-01"},{"$f":"ZZZ__FnCalls!A7","v":"2010-01-01"},{"$f":"ZZZ__FnCalls!A19","v":"2011-01-01"},{"$f":"ZZZ__FnCalls!A20","v":"2011-02-01"},{"$f":"ZZZ__FnCalls!A21","v":"2011-03-01"},{"$f":"ZZZ__FnCalls!A22","v":"2011-04-01"},{"$f":"ZZZ__FnCalls!A23","v":"2011-05-01"},{"$f":"ZZZ__FnCalls!A24","v":"2011-06-01"},{"$f":"ZZZ__FnCalls!A25","v":"2011-07-01"},{"$f":"ZZZ__FnCalls!A26","v":"2011-08-01"},{"$f":"ZZZ__FnCalls!A27","v":"2011-09-01"},{"$f":"ZZZ__FnCalls!A28","v":"2011-10-01"},{"$f":"ZZZ__FnCalls!A29","v":"2011-11-01"},{"$f":"ZZZ__FnCalls!A30","v":"2011-12-01"},{"$f":"ZZZ__FnCalls!A19","v":"2011-01-01"},{"$f":"ZZZ__FnCalls!A31","v":"2012-01-01"},{"$f":"ZZZ__FnCalls!A32","v":"2012-02-01"},{"$f":"ZZZ__FnCalls!A33","v":"2012-03-01"},{"$f":"ZZZ__FnCalls!A34","v":"2012-04-01"},{"$f":"ZZZ__FnCalls!A35","v":"2012-05-01"},{"$f":"ZZZ__FnCalls!A36","v":"2012-06-01"},{"$f":"ZZZ__FnCalls!A37","v":"2012-07-01"},{"$f":"ZZZ__FnCalls!A38","v":"2012-08-01"},{"$f":"ZZZ__FnCalls!A39","v":"2012-09-01"},{"$f":"ZZZ__FnCalls!A40","v":"2012-10-01"},{"$f":"ZZZ__FnCalls!A41","v":"2012-11-01"},{"$f":"ZZZ__FnCalls!A42","v":"2012-12-01"},{"$f":"ZZZ__FnCalls!A31","v":"2012-01-01"},{"$f":"ZZZ__FnCalls!A43","v":"2013-01-01"},{"$f":"ZZZ__FnCalls!A44","v":"2013-02-01"},{"$f":"ZZZ__FnCalls!A45","v":"2013-03-01"},{"$f":"ZZZ__FnCalls!A46","v":"2013-04-01"},{"$f":"ZZZ__FnCalls!A47","v":"2013-05-01"},{"$f":"ZZZ__FnCalls!A48","v":"2013-06-01"},{"$f":"ZZZ__FnCalls!A49","v":"2013-07-01"},{"$f":"ZZZ__FnCalls!A50","v":"2013-08-01"},{"$f":"ZZZ__FnCalls!A51","v":"2013-09-01"},{"$f":"ZZZ__FnCalls!A52","v":"2013-10-01"},{"$f":"ZZZ__FnCalls!A53","v":"2013-11-01"},{"$f":"ZZZ__FnCalls!A54","v":"2013-12-01"},{"$f":"ZZZ__FnCalls!A43","v":"2013-01-01"},{"$f":"ZZZ__FnCalls!A55","v":"2014-01-01"},{"$f":"ZZZ__FnCalls!A56","v":"2014-02-01"},{"$f":"ZZZ__FnCalls!A57","v":"2014-03-01"},{"$f":"ZZZ__FnCalls!A58","v":"2014-04-01"},{"$f":"ZZZ__FnCalls!A59","v":"2014-05-01"},{"$f":"ZZZ__FnCalls!A60","v":"2014-06-01"},{"$f":"ZZZ__FnCalls!A61","v":"2014-07-01"},{"$f":"ZZZ__FnCalls!A62","v":"2014-08-01"},{"$f":"ZZZ__FnCalls!A63","v":"2014-09-01"},{"$f":"ZZZ__FnCalls!A64","v":"2014-10-01"},{"$f":"ZZZ__FnCalls!A65","v":"2014-11-01"},{"$f":"ZZZ__FnCalls!A66","v":"2014-12-01"},{"$f":"ZZZ__FnCalls!A55","v":"2014-01-01"},{"$f":"ZZZ__FnCalls!A67","v":"2015-01-01"},{"$f":"ZZZ__FnCalls!A68","v":"2015-02-01"},{"$f":"ZZZ__FnCalls!A69","v":"2015-03-01"},{"$f":"ZZZ__FnCalls!A70","v":"2015-04-01"},{"$f":"ZZZ__FnCalls!A71","v":"2015-05-01"},{"$f":"ZZZ__FnCalls!A72","v":"2015-06-01"},{"$f":"ZZZ__FnCalls!A73","v":"2015-07-01"},{"$f":"ZZZ__FnCalls!A74","v":"2015-08-01"},{"$f":"ZZZ__FnCalls!A75","v":"2015-09-01"},{"$f":"ZZZ__FnCalls!A76","v":"2015-10-01"},{"$f":"ZZZ__FnCalls!A77","v":"2015-11-01"},{"$f":"ZZZ__FnCalls!A78","v":"2015-12-01"},{"$f":"ZZZ__FnCalls!A67","v":"2015-01-01"},{"$f":"ZZZ__FnCalls!A79","v":"2016-01-01"},{"$f":"ZZZ__FnCalls!A80","v":"2016-02-01"},{"$f":"ZZZ__FnCalls!A81","v":"2016-03-01"},{"$f":"ZZZ__FnCalls!A82","v":"2016-04-01"},{"$f":"ZZZ__FnCalls!A83","v":"2016-05-01"},{"$f":"ZZZ__FnCalls!A84","v":"2016-06-01"},{"$f":"ZZZ__FnCalls!A85","v":"2016-07-01"},{"$f":"ZZZ__FnCalls!A86","v":"2016-08-01"},{"$f":"ZZZ__FnCalls!A87","v":"2016-09-01"},{"$f":"ZZZ__FnCalls!A88","v":"2016-10-01"},{"$f":"ZZZ__FnCalls!A89","v":"2016-11-01"},{"$f":"ZZZ__FnCalls!A90","v":"2016-12-01"},{"$f":"ZZZ__FnCalls!A79","v":"2016-01-01"},{"$f":"ZZZ__FnCalls!A91","v":"2017-01-01"},{"$f":"ZZZ__FnCalls!A92","v":"2017-02-01"},{"$f":"ZZZ__FnCalls!A93","v":"2017-03-01"},{"$f":"ZZZ__FnCalls!A94","v":"2017-04-01"},{"$f":"ZZZ__FnCalls!A95","v":"2017-05-01"},{"$f":"ZZZ__FnCalls!A96","v":"2017-06-01"},{"$f":"ZZZ__FnCalls!A97","v":"2017-07-01"},{"$f":"ZZZ__FnCalls!A98","v":"2017-08-01"},{"$f":"ZZZ__FnCalls!A99","v":"2017-09-01"},{"$f":"ZZZ__FnCalls!A100","v":"2017-10-01"},{"$f":"ZZZ__FnCalls!A101","v":"2017-11-01"},{"$f":"ZZZ__FnCalls!A102","v":"2017-12-01"},{"$f":"ZZZ__FnCalls!A91","v":"2017-01-01"},{"$f":"ZZZ__FnCalls!A103","v":"2018-01-01"},{"$f":"ZZZ__FnCalls!A104","v":"2018-02-01"},{"$f":"ZZZ__FnCalls!A105","v":"2018-03-01"},{"$f":"ZZZ__FnCalls!A106","v":"2018-04-01"},{"$f":"ZZZ__FnCalls!A107","v":"2018-05-01"},{"$f":"ZZZ__FnCalls!A108","v":"2018-06-01"},{"$f":"ZZZ__FnCalls!A109","v":"2018-07-01"},{"$f":"ZZZ__FnCalls!A110","v":"2018-08-01"},{"$f":"ZZZ__FnCalls!A111","v":"2018-09-01"},{"$f":"ZZZ__FnCalls!A112","v":"2018-10-01"},{"$f":"ZZZ__FnCalls!A113","v":"2018-11-01"},{"$f":"ZZZ__FnCalls!A114","v":"2018-12-01"},{"$f":"ZZZ__FnCalls!A103","v":"2018-01-01"},{"$f":"ZZZ__FnCalls!A115","v":"2019-01-01"},{"$f":"ZZZ__FnCalls!A116","v":"2019-02-01"},{"$f":"ZZZ__FnCalls!A117","v":"2019-03-01"},{"$f":"ZZZ__FnCalls!A118","v":"2019-04-01"},{"$f":"ZZZ__FnCalls!A119","v":"2019-05-01"},{"$f":"ZZZ__FnCalls!A120","v":"2019-06-01"},{"$f":"ZZZ__FnCalls!A121","v":"2019-07-01"},{"$f":"ZZZ__FnCalls!A122","v":"2019-08-01"},{"$f":"ZZZ__FnCalls!A123","v":"2019-09-01"},{"$f":"ZZZ__FnCalls!A124","v":"2019-10-01"},{"$f":"ZZZ__FnCalls!A125","v":"2019-11-01"},{"$f":"ZZZ__FnCalls!A126","v":"2019-12-01"},{"$f":"ZZZ__FnCalls!A115","v":"2019-01-01"},{"$f":"ZZZ__FnCalls!A127","v":"2020-01-01"},{"$f":"ZZZ__FnCalls!A128","v":"2020-02-01"},{"$f":"ZZZ__FnCalls!A129","v":"2020-03-01"},{"$f":"ZZZ__FnCalls!A130","v":"2020-04-01"},{"$f":"ZZZ__FnCalls!A131","v":"2020-05-01"},{"$f":"ZZZ__FnCalls!A132","v":"2020-06-01"},{"$f":"ZZZ__FnCalls!A133","v":"2020-07-01"},{"$f":"ZZZ__FnCalls!A134","v":"2020-08-01"},{"$f":"ZZZ__FnCalls!A135","v":"2020-09-01"},{"$f":"ZZZ__FnCalls!A136","v":"2020-10-01"},{"$f":"ZZZ__FnCalls!A137","v":"2020-11-01"},{"$f":"ZZZ__FnCalls!A138","v":"2020-12-01"},{"$f":"ZZZ__FnCalls!A127","v":"2020-01-01"}]
[{"$f":"\"Capital_stdev_2\"","v":"Capital_stdev_2"}]
[null,{"$f":"ZZZ__FnCalls!F7","v":"Jan 2010"},{"$f":"ZZZ__FnCalls!F8","v":"Feb 2010"},{"$f":"ZZZ__FnCalls!F9","v":"Mar 2010"},{"$f":"ZZZ__FnCalls!F10","v":"Apr 2010"},{"$f":"ZZZ__FnCalls!F11","v":"May 2010"},{"$f":"ZZZ__FnCalls!F12","v":"Jun 2010"},{"$f":"ZZZ__FnCalls!F13","v":"Jul 2010"},{"$f":"ZZZ__FnCalls!F14","v":"Aug 2010"},{"$f":"ZZZ__FnCalls!F15","v":"Sep 2010"},{"$f":"ZZZ__FnCalls!F16","v":"Oct 2010"},{"$f":"ZZZ__FnCalls!F17","v":"Nov 2010"},{"$f":"ZZZ__FnCalls!F18","v":"Dec 2010"},{"$f":"ZZZ__FnCalls!H7","v":"2010"},{"$f":"ZZZ__FnCalls!F19","v":"Jan 2011"},{"$f":"ZZZ__FnCalls!F20","v":"Feb 2011"},{"$f":"ZZZ__FnCalls!F21","v":"Mar 2011"},{"$f":"ZZZ__FnCalls!F22","v":"Apr 2011"},{"$f":"ZZZ__FnCalls!F23","v":"May 2011"},{"$f":"ZZZ__FnCalls!F24","v":"Jun 2011"},{"$f":"ZZZ__FnCalls!F25","v":"Jul 2011"},{"$f":"ZZZ__FnCalls!F26","v":"Aug 2011"},{"$f":"ZZZ__FnCalls!F27","v":"Sep 2011"},{"$f":"ZZZ__FnCalls!F28","v":"Oct 2011"},{"$f":"ZZZ__FnCalls!F29","v":"Nov 2011"},{"$f":"ZZZ__FnCalls!F30","v":"Dec 2011"},{"$f":"ZZZ__FnCalls!H19","v":"2011"},{"$f":"ZZZ__FnCalls!F31","v":"Jan 2012"},{"$f":"ZZZ__FnCalls!F32","v":"Feb 2012"},{"$f":"ZZZ__FnCalls!F33","v":"Mar 2012"},{"$f":"ZZZ__FnCalls!F34","v":"Apr 2012"},{"$f":"ZZZ__FnCalls!F35","v":"May 2012"},{"$f":"ZZZ__FnCalls!F36","v":"Jun 2012"},{"$f":"ZZZ__FnCalls!F37","v":"Jul 2012"},{"$f":"ZZZ__FnCalls!F38","v":"Aug 2012"},{"$f":"ZZZ__FnCalls!F39","v":"Sep 2012"},{"$f":"ZZZ__FnCalls!F40","v":"Oct 2012"},{"$f":"ZZZ__FnCalls!F41","v":"Nov 2012"},{"$f":"ZZZ__FnCalls!F42","v":"Dec 2012"},{"$f":"ZZZ__FnCalls!H31","v":"2012"},{"$f":"ZZZ__FnCalls!F43","v":"Jan 2013"},{"$f":"ZZZ__FnCalls!F44","v":"Feb 2013"},{"$f":"ZZZ__FnCalls!F45","v":"Mar 2013"},{"$f":"ZZZ__FnCalls!F46","v":"Apr 2013"},{"$f":"ZZZ__FnCalls!F47","v":"May 2013"},{"$f":"ZZZ__FnCalls!F48","v":"Jun 2013"},{"$f":"ZZZ__FnCalls!F49","v":"Jul 2013"},{"$f":"ZZZ__FnCalls!F50","v":"Aug 2013"},{"$f":"ZZZ__FnCalls!F51","v":"Sep 2013"},{"$f":"ZZZ__FnCalls!F52","v":"Oct 2013"},{"$f":"ZZZ__FnCalls!F53","v":"Nov 2013"},{"$f":"ZZZ__FnCalls!F54","v":"Dec 2013"},{"$f":"ZZZ__FnCalls!H43","v":"2013"},{"$f":"ZZZ__FnCalls!F55","v":"Jan 2014"},{"$f":"ZZZ__FnCalls!F56","v":"Feb 2014"},{"$f":"ZZZ__FnCalls!F57","v":"Mar 2014"},{"$f":"ZZZ__FnCalls!F58","v":"Apr 2014"},{"$f":"ZZZ__FnCalls!F59","v":"May 2014"},{"$f":"ZZZ__FnCalls!F60","v":"Jun 2014"},{"$f":"ZZZ__FnCalls!F61","v":"Jul 2014"},{"$f":"ZZZ__FnCalls!F62","v":"Aug 2014"},{"$f":"ZZZ__FnCalls!F63","v":"Sep 2014"},{"$f":"ZZZ__FnCalls!F64","v":"Oct 2014"},{"$f":"ZZZ__FnCalls!F65","v":"Nov 2014"},{"$f":"ZZZ__FnCalls!F66","v":"Dec 2014"},{"$f":"ZZZ__FnCalls!H55","v":"2014"},{"$f":"ZZZ__FnCalls!F67","v":"Jan 2015"},{"$f":"ZZZ__FnCalls!F68","v":"Feb 2015"},{"$f":"ZZZ__FnCalls!F69","v":"Mar 2015"},{"$f":"ZZZ__FnCalls!F70","v":"Apr 2015"},{"$f":"ZZZ__FnCalls!F71","v":"May 2015"},{"$f":"ZZZ__FnCalls!F72","v":"Jun 2015"},{"$f":"ZZZ__FnCalls!F73","v":"Jul 2015"},{"$f":"ZZZ__FnCalls!F74","v":"Aug 2015"},{"$f":"ZZZ__FnCalls!F75","v":"Sep 2015"},{"$f":"ZZZ__FnCalls!F76","v":"Oct 2015"},{"$f":"ZZZ__FnCalls!F77","v":"Nov 2015"},{"$f":"ZZZ__FnCalls!F78","v":"Dec 2015"},{"$f":"ZZZ__FnCalls!H67","v":"2015"},{"$f":"ZZZ__FnCalls!F79","v":"Jan 2016"},{"$f":"ZZZ__FnCalls!F80","v":"Feb 2016"},{"$f":"ZZZ__FnCalls!F81","v":"Mar 2016"},{"$f":"ZZZ__FnCalls!F82","v":"Apr 2016"},{"$f":"ZZZ__FnCalls!F83","v":"May 2016"},{"$f":"ZZZ__FnCalls!F84","v":"Jun 2016"},{"$f":"ZZZ__FnCalls!F85","v":"Jul 2016"},{"$f":"ZZZ__FnCalls!F86","v":"Aug 2016"},{"$f":"ZZZ__FnCalls!F87","v":"Sep 2016"},{"$f":"ZZZ__FnCalls!F88","v":"Oct 2016"},{"$f":"ZZZ__FnCalls!F89","v":"Nov 2016"},{"$f":"ZZZ__FnCalls!F90","v":"Dec 2016"},{"$f":"ZZZ__FnCalls!H79","v":"2016"},{"$f":"ZZZ__FnCalls!F91","v":"Jan 2017"},{"$f":"ZZZ__FnCalls!F92","v":"Feb 2017"},{"$f":"ZZZ__FnCalls!F93","v":"Mar 2017"},{"$f":"ZZZ__FnCalls!F94","v":"Apr 2017"},{"$f":"ZZZ__FnCalls!F95","v":"May 2017"},{"$f":"ZZZ__FnCalls!F96","v":"Jun 2017"},{"$f":"ZZZ__FnCalls!F97","v":"Jul 2017"},{"$f":"ZZZ__FnCalls!F98","v":"Aug 2017"},{"$f":"ZZZ__FnCalls!F99","v":"Sep 2017"},{"$f":"ZZZ__FnCalls!F100","v":"Oct 2017"},{"$f":"ZZZ__FnCalls!F101","v":"Nov 2017"},{"$f":"ZZZ__FnCalls!F102","v":"Dec 2017"},{"$f":"ZZZ__FnCalls!H91","v":"2017"},{"$f":"ZZZ__FnCalls!F103","v":"Jan 2018"},{"$f":"ZZZ__FnCalls!F104","v":"Feb 2018"},{"$f":"ZZZ__FnCalls!F105","v":"Mar 2018"},{"$f":"ZZZ__FnCalls!F106","v":"Apr 2018"},{"$f":"ZZZ__FnCalls!F107","v":"May 2018"},{"$f":"ZZZ__FnCalls!F108","v":"Jun 2018"},{"$f":"ZZZ__FnCalls!F109","v":"Jul 2018"},{"$f":"ZZZ__FnCalls!F110","v":"Aug 2018"},{"$f":"ZZZ__FnCalls!F111","v":"Sep 2018"},{"$f":"ZZZ__FnCalls!F112","v":"Oct 2018"},{"$f":"ZZZ__FnCalls!F113","v":"Nov 2018"},{"$f":"ZZZ__FnCalls!F114","v":"Dec 2018"},{"$f":"ZZZ__FnCalls!H103","v":"2018"},{"$f":"ZZZ__FnCalls!F115","v":"Jan 2019"},{"$f":"ZZZ__FnCalls!F116","v":"Feb 2019"},{"$f":"ZZZ__FnCalls!F117","v":"Mar 2019"},{"$f":"ZZZ__FnCalls!F118","v":"Apr 2019"},{"$f":"ZZZ__FnCalls!F119","v":"May 2019"},{"$f":"ZZZ__FnCalls!F120","v":"Jun 2019"},{"$f":"ZZZ__FnCalls!F121","v":"Jul 2019"},{"$f":"ZZZ__FnCalls!F122","v":"Aug 2019"},{"$f":"ZZZ__FnCalls!F123","v":"Sep 2019"},{"$f":"ZZZ__FnCalls!F124","v":"Oct 2019"},{"$f":"ZZZ__FnCalls!F125","v":"Nov 2019"},{"$f":"ZZZ__FnCalls!F126","v":"Dec 2019"},{"$f":"ZZZ__FnCalls!H115","v":"2019"},{"$f":"ZZZ__FnCalls!F127","v":"Jan 2020"},{"$f":"ZZZ__FnCalls!F128","v":"Feb 2020"},{"$f":"ZZZ__FnCalls!F129","v":"Mar 2020"},{"$f":"ZZZ__FnCalls!F130","v":"Apr 2020"},{"$f":"ZZZ__FnCalls!F131","v":"May 2020"},{"$f":"ZZZ__FnCalls!F132","v":"Jun 2020"},{"$f":"ZZZ__FnCalls!F133","v":"Jul 2020"},{"$f":"ZZZ__FnCalls!F134","v":"Aug 2020"},{"$f":"ZZZ__FnCalls!F135","v":"Sep 2020"},{"$f":"ZZZ__FnCalls!F136","v":"Oct 2020"},{"$f":"ZZZ__FnCalls!F137","v":"Nov 2020"},{"$f":"ZZZ__FnCalls!F138","v":"Dec 2020"},{"$f":"ZZZ__FnCalls!H127","v":"2020"}]
[null,{"$f":"ZZZ__FnCalls!F7","v":"Jan 2010"},{"$f":"ZZZ__FnCalls!F8","v":"Feb 2010"},{"$f":"ZZZ__FnCalls!F9","v":"Mar 2010"},{"$f":"ZZZ__FnCalls!F10","v":"Apr 2010"},{"$f":"ZZZ__FnCalls!F11","v":"May 2010"},{"$f":"ZZZ__FnCalls!F12","v":"Jun 2010"},{"$f":"ZZZ__FnCalls!F13","v":"Jul 2010"},{"$f":"ZZZ__FnCalls!F14","v":"Aug 2010"},{"$f":"ZZZ__FnCalls!F15","v":"Sep 2010"},{"$f":"ZZZ__FnCalls!F16","v":"Oct 2010"},{"$f":"ZZZ__FnCalls!F17","v":"Nov 2010"},{"$f":"ZZZ__FnCalls!F18","v":"Dec 2010"},{"$f":"ZZZ__FnCalls!F7","v":"Jan 2010"},{"$f":"ZZZ__FnCalls!F19","v":"Jan 2011"},{"$f":"ZZZ__FnCalls!F20","v":"Feb 2011"},{"$f":"ZZZ__FnCalls!F21","v":"Mar 2011"},{"$f":"ZZZ__FnCalls!F22","v":"Apr 2011"},{"$f":"ZZZ__FnCalls!F23","v":"May 2011"},{"$f":"ZZZ__FnCalls!F24","v":"Jun 2011"},{"$f":"ZZZ__FnCalls!F25","v":"Jul 2011"},{"$f":"ZZZ__FnCalls!F26","v":"Aug 2011"},{"$f":"ZZZ__FnCalls!F27","v":"Sep 2011"},{"$f":"ZZZ__FnCalls!F28","v":"Oct 2011"},{"$f":"ZZZ__FnCalls!F29","v":"Nov 2011"},{"$f":"ZZZ__FnCalls!F30","v":"Dec 2011"},{"$f":"ZZZ__FnCalls!F19","v":"Jan 2011"},{"$f":"ZZZ__FnCalls!F31","v":"Jan 2012"},{"$f":"ZZZ__FnCalls!F32","v":"Feb 2012"},{"$f":"ZZZ__FnCalls!F33","v":"Mar 2012"},{"$f":"ZZZ__FnCalls!F34","v":"Apr 2012"},{"$f":"ZZZ__FnCalls!F35","v":"May 2012"},{"$f":"ZZZ__FnCalls!F36","v":"Jun 2012"},{"$f":"ZZZ__FnCalls!F37","v":"Jul 2012"},{"$f":"ZZZ__FnCalls!F38","v":"Aug 2012"},{"$f":"ZZZ__FnCalls!F39","v":"Sep 2012"},{"$f":"ZZZ__FnCalls!F40","v":"Oct 2012"},{"$f":"ZZZ__FnCalls!F41","v":"Nov 2012"},{"$f":"ZZZ__FnCalls!F42","v":"Dec 2012"},{"$f":"ZZZ__FnCalls!F31","v":"Jan 2012"},{"$f":"ZZZ__FnCalls!F43","v":"Jan 2013"},{"$f":"ZZZ__FnCalls!F44","v":"Feb 2013"},{"$f":"ZZZ__FnCalls!F45","v":"Mar 2013"},{"$f":"ZZZ__FnCalls!F46","v":"Apr 2013"},{"$f":"ZZZ__FnCalls!F47","v":"May 2013"},{"$f":"ZZZ__FnCalls!F48","v":"Jun 2013"},{"$f":"ZZZ__FnCalls!F49","v":"Jul 2013"},{"$f":"ZZZ__FnCalls!F50","v":"Aug 2013"},{"$f":"ZZZ__FnCalls!F51","v":"Sep 2013"},{"$f":"ZZZ__FnCalls!F52","v":"Oct 2013"},{"$f":"ZZZ__FnCalls!F53","v":"Nov 2013"},{"$f":"ZZZ__FnCalls!F54","v":"Dec 2013"},{"$f":"ZZZ__FnCalls!F43","v":"Jan 2013"},{"$f":"ZZZ__FnCalls!F55","v":"Jan 2014"},{"$f":"ZZZ__FnCalls!F56","v":"Feb 2014"},{"$f":"ZZZ__FnCalls!F57","v":"Mar 2014"},{"$f":"ZZZ__FnCalls!F58","v":"Apr 2014"},{"$f":"ZZZ__FnCalls!F59","v":"May 2014"},{"$f":"ZZZ__FnCalls!F60","v":"Jun 2014"},{"$f":"ZZZ__FnCalls!F61","v":"Jul 2014"},{"$f":"ZZZ__FnCalls!F62","v":"Aug 2014"},{"$f":"ZZZ__FnCalls!F63","v":"Sep 2014"},{"$f":"ZZZ__FnCalls!F64","v":"Oct 2014"},{"$f":"ZZZ__FnCalls!F65","v":"Nov 2014"},{"$f":"ZZZ__FnCalls!F66","v":"Dec 2014"},{"$f":"ZZZ__FnCalls!F55","v":"Jan 2014"},{"$f":"ZZZ__FnCalls!F67","v":"Jan 2015"},{"$f":"ZZZ__FnCalls!F68","v":"Feb 2015"},{"$f":"ZZZ__FnCalls!F69","v":"Mar 2015"},{"$f":"ZZZ__FnCalls!F70","v":"Apr 2015"},{"$f":"ZZZ__FnCalls!F71","v":"May 2015"},{"$f":"ZZZ__FnCalls!F72","v":"Jun 2015"},{"$f":"ZZZ__FnCalls!F73","v":"Jul 2015"},{"$f":"ZZZ__FnCalls!F74","v":"Aug 2015"},{"$f":"ZZZ__FnCalls!F75","v":"Sep 2015"},{"$f":"ZZZ__FnCalls!F76","v":"Oct 2015"},{"$f":"ZZZ__FnCalls!F77","v":"Nov 2015"},{"$f":"ZZZ__FnCalls!F78","v":"Dec 2015"},{"$f":"ZZZ__FnCalls!F67","v":"Jan 2015"},{"$f":"ZZZ__FnCalls!F79","v":"Jan 2016"},{"$f":"ZZZ__FnCalls!F80","v":"Feb 2016"},{"$f":"ZZZ__FnCalls!F81","v":"Mar 2016"},{"$f":"ZZZ__FnCalls!F82","v":"Apr 2016"},{"$f":"ZZZ__FnCalls!F83","v":"May 2016"},{"$f":"ZZZ__FnCalls!F84","v":"Jun 2016"},{"$f":"ZZZ__FnCalls!F85","v":"Jul 2016"},{"$f":"ZZZ__FnCalls!F86","v":"Aug 2016"},{"$f":"ZZZ__FnCalls!F87","v":"Sep 2016"},{"$f":"ZZZ__FnCalls!F88","v":"Oct 2016"},{"$f":"ZZZ__FnCalls!F89","v":"Nov 2016"},{"$f":"ZZZ__FnCalls!F90","v":"Dec 2016"},{"$f":"ZZZ__FnCalls!F79","v":"Jan 2016"},{"$f":"ZZZ__FnCalls!F91","v":"Jan 2017"},{"$f":"ZZZ__FnCalls!F92","v":"Feb 2017"},{"$f":"ZZZ__FnCalls!F93","v":"Mar 2017"},{"$f":"ZZZ__FnCalls!F94","v":"Apr 2017"},{"$f":"ZZZ__FnCalls!F95","v":"May 2017"},{"$f":"ZZZ__FnCalls!F96","v":"Jun 2017"},{"$f":"ZZZ__FnCalls!F97","v":"Jul 2017"},{"$f":"ZZZ__FnCalls!F98","v":"Aug 2017"},{"$f":"ZZZ__FnCalls!F99","v":"Sep 2017"},{"$f":"ZZZ__FnCalls!F100","v":"Oct 2017"},{"$f":"ZZZ__FnCalls!F101","v":"Nov 2017"},{"$f":"ZZZ__FnCalls!F102","v":"Dec 2017"},{"$f":"ZZZ__FnCalls!F91","v":"Jan 2017"},{"$f":"ZZZ__FnCalls!F103","v":"Jan 2018"},{"$f":"ZZZ__FnCalls!F104","v":"Feb 2018"},{"$f":"ZZZ__FnCalls!F105","v":"Mar 2018"},{"$f":"ZZZ__FnCalls!F106","v":"Apr 2018"},{"$f":"ZZZ__FnCalls!F107","v":"May 2018"},{"$f":"ZZZ__FnCalls!F108","v":"Jun 2018"},{"$f":"ZZZ__FnCalls!F109","v":"Jul 2018"},{"$f":"ZZZ__FnCalls!F110","v":"Aug 2018"},{"$f":"ZZZ__FnCalls!F111","v":"Sep 2018"},{"$f":"ZZZ__FnCalls!F112","v":"Oct 2018"},{"$f":"ZZZ__FnCalls!F113","v":"Nov 2018"},{"$f":"ZZZ__FnCalls!F114","v":"Dec 2018"},{"$f":"ZZZ__FnCalls!F103","v":"Jan 2018"},{"$f":"ZZZ__FnCalls!F115","v":"Jan 2019"},{"$f":"ZZZ__FnCalls!F116","v":"Feb 2019"},{"$f":"ZZZ__FnCalls!F117","v":"Mar 2019"},{"$f":"ZZZ__FnCalls!F118","v":"Apr 2019"},{"$f":"ZZZ__FnCalls!F119","v":"May 2019"},{"$f":"ZZZ__FnCalls!F120","v":"Jun 2019"},{"$f":"ZZZ__FnCalls!F121","v":"Jul 2019"},{"$f":"ZZZ__FnCalls!F122","v":"Aug 2019"},{"$f":"ZZZ__FnCalls!F123","v":"Sep 2019"},{"$f":"ZZZ__FnCalls!F124","v":"Oct 2019"},{"$f":"ZZZ__FnCalls!F125","v":"Nov 2019"},{"$f":"ZZZ__FnCalls!F126","v":"Dec 2019"},{"$f":"ZZZ__FnCalls!F115","v":"Jan 2019"},{"$f":"ZZZ__FnCalls!F127","v":"Jan 2020"},{"$f":"ZZZ__FnCalls!F128","v":"Feb 2020"},{"$f":"ZZZ__FnCalls!F129","v":"Mar 2020"},{"$f":"ZZZ__FnCalls!F130","v":"Apr 2020"},{"$f":"ZZZ__FnCalls!F131","v":"May 2020"},{"$f":"ZZZ__FnCalls!F132","v":"Jun 2020"},{"$f":"ZZZ__FnCalls!F133","v":"Jul 2020"},{"$f":"ZZZ__FnCalls!F134","v":"Aug 2020"},{"$f":"ZZZ__FnCalls!F135","v":"Sep 2020"},{"$f":"ZZZ__FnCalls!F136","v":"Oct 2020"},{"$f":"ZZZ__FnCalls!F137","v":"Nov 2020"},{"$f":"ZZZ__FnCalls!F138","v":"Dec 2020"},{"$f":"ZZZ__FnCalls!F127","v":"Jan 2020"}]
[{"$f":"\"Capital_Desired_mean_1\"","v":"Capital_Desired_mean_1"}]
[null,{"$f":"ZZZ__FnCalls!F7","v":"Jan 2010"},{"$f":"ZZZ__FnCalls!F8","v":"Feb 2010"},{"$f":"ZZZ__FnCalls!F9","v":"Mar 2010"},{"$f":"ZZZ__FnCalls!F10","v":"Apr 2010"},{"$f":"ZZZ__FnCalls!F11","v":"May 2010"},{"$f":"ZZZ__FnCalls!F12","v":"Jun 2010"},{"$f":"ZZZ__FnCalls!F13","v":"Jul 2010"},{"$f":"ZZZ__FnCalls!F14","v":"Aug 2010"},{"$f":"ZZZ__FnCalls!F15","v":"Sep 2010"},{"$f":"ZZZ__FnCalls!F16","v":"Oct 2010"},{"$f":"ZZZ__FnCalls!F17","v":"Nov 2010"},{"$f":"ZZZ__FnCalls!F18","v":"Dec 2010"},{"$f":"ZZZ__FnCalls!H7","v":"2010"},{"$f":"ZZZ__FnCalls!F19","v":"Jan 2011"},{"$f":"ZZZ__FnCalls!F20","v":"Feb 2011"},{"$f":"ZZZ__FnCalls!F21","v":"Mar 2011"},{"$f":"ZZZ__FnCalls!F22","v":"Apr 2011"},{"$f":"ZZZ__FnCalls!F23","v":"May 2011"},{"$f":"ZZZ__FnCalls!F24","v":"Jun 2011"},{"$f":"ZZZ__FnCalls!F25","v":"Jul 2011"},{"$f":"ZZZ__FnCalls!F26","v":"Aug 2011"},{"$f":"ZZZ__FnCalls!F27","v":"Sep 2011"},{"$f":"ZZZ__FnCalls!F28","v":"Oct 2011"},{"$f":"ZZZ__FnCalls!F29","v":"Nov 2011"},{"$f":"ZZZ__FnCalls!F30","v":"Dec 2011"},{"$f":"ZZZ__FnCalls!H19","v":"2011"},{"$f":"ZZZ__FnCalls!F31","v":"Jan 2012"},{"$f":"ZZZ__FnCalls!F32","v":"Feb 2012"},{"$f":"ZZZ__FnCalls!F33","v":"Mar 2012"},{"$f":"ZZZ__FnCalls!F34","v":"Apr 2012"},{"$f":"ZZZ__FnCalls!F35","v":"May 2012"},{"$f":"ZZZ__FnCalls!F36","v":"Jun 2012"},{"$f":"ZZZ__FnCalls!F37","v":"Jul 2012"},{"$f":"ZZZ__FnCalls!F38","v":"Aug 2012"},{"$f":"ZZZ__FnCalls!F39","v":"Sep 2012"},{"$f":"ZZZ__FnCalls!F40","v":"Oct 2012"},{"$f":"ZZZ__FnCalls!F41","v":"Nov 2012"},{"$f":"ZZZ__FnCalls!F42","v":"Dec 2012"},{"$f":"ZZZ__FnCalls!H31","v":"2012"},{"$f":"ZZZ__FnCalls!F43","v":"Jan 2013"},{"$f":"ZZZ__FnCalls!F44","v":"Feb 2013"},{"$f":"ZZZ__FnCalls!F45","v":"Mar 2013"},{"$f":"ZZZ__FnCalls!F46","v":"Apr 2013"},{"$f":"ZZZ__FnCalls!F47","v":"May 2013"},{"$f":"ZZZ__FnCalls!F48","v":"Jun 2013"},{"$f":"ZZZ__FnCalls!F49","v":"Jul 2013"},{"$f":"ZZZ__FnCalls!F50","v":"Aug 2013"},{"$f":"ZZZ__FnCalls!F51","v":"Sep 2013"},{"$f":"ZZZ__FnCalls!F52","v":"Oct 2013"},{"$f":"ZZZ__FnCalls!F53","v":"Nov 2013"},{"$f":"ZZZ__FnCalls!F54","v":"Dec 2013"},{"$f":"ZZZ__FnCalls!H43","v":"2013"},{"$f":"ZZZ__FnCalls!F55","v":"Jan 2014"},{"$f":"ZZZ__FnCalls!F56","v":"Feb 2014"},{"$f":"ZZZ__FnCalls!F57","v":"Mar 2014"},{"$f":"ZZZ__FnCalls!F58","v":"Apr 2014"},{"$f":"ZZZ__FnCalls!F59","v":"May 2014"},{"$f":"ZZZ__FnCalls!F60","v":"Jun 2014"},{"$f":"ZZZ__FnCalls!F61","v":"Jul 2014"},{"$f":"ZZZ__FnCalls!F62","v":"Aug 2014"},{"$f":"ZZZ__FnCalls!F63","v":"Sep 2014"},{"$f":"ZZZ__FnCalls!F64","v":"Oct 2014"},{"$f":"ZZZ__FnCalls!F65","v":"Nov 2014"},{"$f":"ZZZ__FnCalls!F66","v":"Dec 2014"},{"$f":"ZZZ__FnCalls!H55","v":"2014"},{"$f":"ZZZ__FnCalls!F67","v":"Jan 2015"},{"$f":"ZZZ__FnCalls!F68","v":"Feb 2015"},{"$f":"ZZZ__FnCalls!F69","v":"Mar 2015"},{"$f":"ZZZ__FnCalls!F70","v":"Apr 2015"},{"$f":"ZZZ__FnCalls!F71","v":"May 2015"},{"$f":"ZZZ__FnCalls!F72","v":"Jun 2015"},{"$f":"ZZZ__FnCalls!F73","v":"Jul 2015"},{"$f":"ZZZ__FnCalls!F74","v":"Aug 2015"},{"$f":"ZZZ__FnCalls!F75","v":"Sep 2015"},{"$f":"ZZZ__FnCalls!F76","v":"Oct 2015"},{"$f":"ZZZ__FnCalls!F77","v":"Nov 2015"},{"$f":"ZZZ__FnCalls!F78","v":"Dec 2015"},{"$f":"ZZZ__FnCalls!H67","v":"2015"},{"$f":"ZZZ__FnCalls!F79","v":"Jan 2016"},{"$f":"ZZZ__FnCalls!F80","v":"Feb 2016"},{"$f":"ZZZ__FnCalls!F81","v":"Mar 2016"},{"$f":"ZZZ__FnCalls!F82","v":"Apr 2016"},{"$f":"ZZZ__FnCalls!F83","v":"May 2016"},{"$f":"ZZZ__FnCalls!F84","v":"Jun 2016"},{"$f":"ZZZ__FnCalls!F85","v":"Jul 2016"},{"$f":"ZZZ__FnCalls!F86","v":"Aug 2016"},{"$f":"ZZZ__FnCalls!F87","v":"Sep 2016"},{"$f":"ZZZ__FnCalls!F88","v":"Oct 2016"},{"$f":"ZZZ__FnCalls!F89","v":"Nov 2016"},{"$f":"ZZZ__FnCalls!F90","v":"Dec 2016"},{"$f":"ZZZ__FnCalls!H79","v":"2016"},{"$f":"ZZZ__FnCalls!F91","v":"Jan 2017"},{"$f":"ZZZ__FnCalls!F92","v":"Feb 2017"},{"$f":"ZZZ__FnCalls!F93","v":"Mar 2017"},{"$f":"ZZZ__FnCalls!F94","v":"Apr 2017"},{"$f":"ZZZ__FnCalls!F95","v":"May 2017"},{"$f":"ZZZ__FnCalls!F96","v":"Jun 2017"},{"$f":"ZZZ__FnCalls!F97","v":"Jul 2017"},{"$f":"ZZZ__FnCalls!F98","v":"Aug 2017"},{"$f":"ZZZ__FnCalls!F99","v":"Sep 2017"},{"$f":"ZZZ__FnCalls!F100","v":"Oct 2017"},{"$f":"ZZZ__FnCalls!F101","v":"Nov 2017"},{"$f":"ZZZ__FnCalls!F102","v":"Dec 2017"},{"$f":"ZZZ__FnCalls!H91","v":"2017"},{"$f":"ZZZ__FnCalls!F103","v":"Jan 2018"},{"$f":"ZZZ__FnCalls!F104","v":"Feb 2018"},{"$f":"ZZZ__FnCalls!F105","v":"Mar 2018"},{"$f":"ZZZ__FnCalls!F106","v":"Apr 2018"},{"$f":"ZZZ__FnCalls!F107","v":"May 2018"},{"$f":"ZZZ__FnCalls!F108","v":"Jun 2018"},{"$f":"ZZZ__FnCalls!F109","v":"Jul 2018"},{"$f":"ZZZ__FnCalls!F110","v":"Aug 2018"},{"$f":"ZZZ__FnCalls!F111","v":"Sep 2018"},{"$f":"ZZZ__FnCalls!F112","v":"Oct 2018"},{"$f":"ZZZ__FnCalls!F113","v":"Nov 2018"},{"$f":"ZZZ__FnCalls!F114","v":"Dec 2018"},{"$f":"ZZZ__FnCalls!H103","v":"2018"},{"$f":"ZZZ__FnCalls!F115","v":"Jan 2019"},{"$f":"ZZZ__FnCalls!F116","v":"Feb 2019"},{"$f":"ZZZ__FnCalls!F117","v":"Mar 2019"},{"$f":"ZZZ__FnCalls!F118","v":"Apr 2019"},{"$f":"ZZZ__FnCalls!F119","v":"May 2019"},{"$f":"ZZZ__FnCalls!F120","v":"Jun 2019"},{"$f":"ZZZ__FnCalls!F121","v":"Jul 2019"},{"$f":"ZZZ__FnCalls!F122","v":"Aug 2019"},{"$f":"ZZZ__FnCalls!F123","v":"Sep 2019"},{"$f":"ZZZ__FnCalls!F124","v":"Oct 2019"},{"$f":"ZZZ__FnCalls!F125","v":"Nov 2019"},{"$f":"ZZZ__FnCalls!F126","v":"Dec 2019"},{"$f":"ZZZ__FnCalls!H115","v":"2019"},{"$f":"ZZZ__FnCalls!F127","v":"Jan 2020"},{"$f":"ZZZ__FnCalls!F128","v":"Feb 2020"},{"$f":"ZZZ__FnCalls!F129","v":"Mar 2020"},{"$f":"ZZZ__FnCalls!F130","v":"Apr 2020"},{"$f":"ZZZ__FnCalls!F131","v":"May 2020"},{"$f":"ZZZ__FnCalls!F132","v":"Jun 2020"},{"$f":"ZZZ__FnCalls!F133","v":"Jul 2020"},{"$f":"ZZZ__FnCalls!F134","v":"Aug 2020"},{"$f":"ZZZ__FnCalls!F135","v":"Sep 2020"},{"$f":"ZZZ__FnCalls!F136","v":"Oct 2020"},{"$f":"ZZZ__FnCalls!F137","v":"Nov 2020"},{"$f":"ZZZ__FnCalls!F138","v":"Dec 2020"},{"$f":"ZZZ__FnCalls!H127","v":"2020"}]
[null,{"$f":"ZZZ__FnCalls!A7","v":"2010-01-01"},{"$f":"ZZZ__FnCalls!A8","v":"2010-02-01"},{"$f":"ZZZ__FnCalls!A9","v":"2010-03-01"},{"$f":"ZZZ__FnCalls!A10","v":"2010-04-01"},{"$f":"ZZZ__FnCalls!A11","v":"2010-05-01"},{"$f":"ZZZ__FnCalls!A12","v":"2010-06-01"},{"$f":"ZZZ__FnCalls!A13","v":"2010-07-01"},{"$f":"ZZZ__FnCalls!A14","v":"2010-08-01"},{"$f":"ZZZ__FnCalls!A15","v":"2010-09-01"},{"$f":"ZZZ__FnCalls!A16","v":"2010-10-01"},{"$f":"ZZZ__FnCalls!A17","v":"2010-11-01"},{"$f":"ZZZ__FnCalls!A18","v":"2010-12-01"},{"$f":"ZZZ__FnCalls!A7","v":"2010-01-01"},{"$f":"ZZZ__FnCalls!A19","v":"2011-01-01"},{"$f":"ZZZ__FnCalls!A20","v":"2011-02-01"},{"$f":"ZZZ__FnCalls!A21","v":"2011-03-01"},{"$f":"ZZZ__FnCalls!A22","v":"2011-04-01"},{"$f":"ZZZ__FnCalls!A23","v":"2011-05-01"},{"$f":"ZZZ__FnCalls!A24","v":"2011-06-01"},{"$f":"ZZZ__FnCalls!A25","v":"2011-07-01"},{"$f":"ZZZ__FnCalls!A26","v":"2011-08-01"},{"$f":"ZZZ__FnCalls!A27","v":"2011-09-01"},{"$f":"ZZZ__FnCalls!A28","v":"2011-10-01"},{"$f":"ZZZ__FnCalls!A29","v":"2011-11-01"},{"$f":"ZZZ__FnCalls!A30","v":"2011-12-01"},{"$f":"ZZZ__FnCalls!A19","v":"2011-01-01"},{"$f":"ZZZ__FnCalls!A31","v":"2012-01-01"},{"$f":"ZZZ__FnCalls!A32","v":"2012-02-01"},{"$f":"ZZZ__FnCalls!A33","v":"2012-03-01"},{"$f":"ZZZ__FnCalls!A34","v":"2012-04-01"},{"$f":"ZZZ__FnCalls!A35","v":"2012-05-01"},{"$f":"ZZZ__FnCalls!A36","v":"2012-06-01"},{"$f":"ZZZ__FnCalls!A37","v":"2012-07-01"},{"$f":"ZZZ__FnCalls!A38","v":"2012-08-01"},{"$f":"ZZZ__FnCalls!A39","v":"2012-09-01"},{"$f":"ZZZ__FnCalls!A40","v":"2012-10-01"},{"$f":"ZZZ__FnCalls!A41","v":"2012-11-01"},{"$f":"ZZZ__FnCalls!A42","v":"2012-12-01"},{"$f":"ZZZ__FnCalls!A31","v":"2012-01-01"},{"$f":"ZZZ__FnCalls!A43","v":"2013-01-01"},{"$f":"ZZZ__FnCalls!A44","v":"2013-02-01"},{"$f":"ZZZ__FnCalls!A45","v":"2013-03-01"},{"$f":"ZZZ__FnCalls!A46","v":"2013-04-01"},{"$f":"ZZZ__FnCalls!A47","v":"2013-05-01"},{"$f":"ZZZ__FnCalls!A48","v":"2013-06-01"},{"$f":"ZZZ__FnCalls!A49","v":"2013-07-01"},{"$f":"ZZZ__FnCalls!A50","v":"2013-08-01"},{"$f":"ZZZ__FnCalls!A51","v":"2013-09-01"},{"$f":"ZZZ__FnCalls!A52","v":"2013-10-01"},{"$f":"ZZZ__FnCalls!A53","v":"2013-11-01"},{"$f":"ZZZ__FnCalls!A54","v":"2013-12-01"},{"$f":"ZZZ__FnCalls!A43","v":"2013-01-01"},{"$f":"ZZZ__FnCalls!A55","v":"2014-01-01"},{"$f":"ZZZ__FnCalls!A56","v":"2014-02-01"},{"$f":"ZZZ__FnCalls!A57","v":"2014-03-01"},{"$f":"ZZZ__FnCalls!A58","v":"2014-04-01"},{"$f":"ZZZ__FnCalls!A59","v":"2014-05-01"},{"$f":"ZZZ__FnCalls!A60","v":"2014-06-01"},{"$f":"ZZZ__FnCalls!A61","v":"2014-07-01"},{"$f":"ZZZ__FnCalls!A62","v":"2014-08-01"},{"$f":"ZZZ__FnCalls!A63","v":"2014-09-01"},{"$f":"ZZZ__FnCalls!A64","v":"2014-10-01"},{"$f":"ZZZ__FnCalls!A65","v":"2014-11-01"},{"$f":"ZZZ__FnCalls!A66","v":"2014-12-01"},{"$f":"ZZZ__FnCalls!A55","v":"2014-01-01"},{"$f":"ZZZ__FnCalls!A67","v":"2015-01-01"},{"$f":"ZZZ__FnCalls!A68","v":"2015-02-01"},{"$f":"ZZZ__FnCalls!A69","v":"2015-03-01"},{"$f":"ZZZ__FnCalls!A70","v":"2015-04-01"},{"$f":"ZZZ__FnCalls!A71","v":"2015-05-01"},{"$f":"ZZZ__FnCalls!A72","v":"2015-06-01"},{"$f":"ZZZ__FnCalls!A73","v":"2015-07-01"},{"$f":"ZZZ__FnCalls!A74","v":"2015-08-01"},{"$f":"ZZZ__FnCalls!A75","v":"2015-09-01"},{"$f":"ZZZ__FnCalls!A76","v":"2015-10-01"},{"$f":"ZZZ__FnCalls!A77","v":"2015-11-01"},{"$f":"ZZZ__FnCalls!A78","v":"2015-12-01"},{"$f":"ZZZ__FnCalls!A67","v":"2015-01-01"},{"$f":"ZZZ__FnCalls!A79","v":"2016-01-01"},{"$f":"ZZZ__FnCalls!A80","v":"2016-02-01"},{"$f":"ZZZ__FnCalls!A81","v":"2016-03-01"},{"$f":"ZZZ__FnCalls!A82","v":"2016-04-01"},{"$f":"ZZZ__FnCalls!A83","v":"2016-05-01"},{"$f":"ZZZ__FnCalls!A84","v":"2016-06-01"},{"$f":"ZZZ__FnCalls!A85","v":"2016-07-01"},{"$f":"ZZZ__FnCalls!A86","v":"2016-08-01"},{"$f":"ZZZ__FnCalls!A87","v":"2016-09-01"},{"$f":"ZZZ__FnCalls!A88","v":"2016-10-01"},{"$f":"ZZZ__FnCalls!A89","v":"2016-11-01"},{"$f":"ZZZ__FnCalls!A90","v":"2016-12-01"},{"$f":"ZZZ__FnCalls!A79","v":"2016-01-01"},{"$f":"ZZZ__FnCalls!A91","v":"2017-01-01"},{"$f":"ZZZ__FnCalls!A92","v":"2017-02-01"},{"$f":"ZZZ__FnCalls!A93","v":"2017-03-01"},{"$f":"ZZZ__FnCalls!A94","v":"2017-04-01"},{"$f":"ZZZ__FnCalls!A95","v":"2017-05-01"},{"$f":"ZZZ__FnCalls!A96","v":"2017-06-01"},{"$f":"ZZZ__FnCalls!A97","v":"2017-07-01"},{"$f":"ZZZ__FnCalls!A98","v":"2017-08-01"},{"$f":"ZZZ__FnCalls!A99","v":"2017-09-01"},{"$f":"ZZZ__FnCalls!A100","v":"2017-10-01"},{"$f":"ZZZ__FnCalls!A101","v":"2017-11-01"},{"$f":"ZZZ__FnCalls!A102","v":"2017-12-01"},{"$f":"ZZZ__FnCalls!A91","v":"2017-01-01"},{"$f":"ZZZ__FnCalls!A103","v":"2018-01-01"},{"$f":"ZZZ__FnCalls!A104","v":"2018-02-01"},{"$f":"ZZZ__FnCalls!A105","v":"2018-03-01"},{"$f":"ZZZ__FnCalls!A106","v":"2018-04-01"},{"$f":"ZZZ__FnCalls!A107","v":"2018-05-01"},{"$f":"ZZZ__FnCalls!A108","v":"2018-06-01"},{"$f":"ZZZ__FnCalls!A109","v":"2018-07-01"},{"$f":"ZZZ__FnCalls!A110","v":"2018-08-01"},{"$f":"ZZZ__FnCalls!A111","v":"2018-09-01"},{"$f":"ZZZ__FnCalls!A112","v":"2018-10-01"},{"$f":"ZZZ__FnCalls!A113","v":"2018-11-01"},{"$f":"ZZZ__FnCalls!A114","v":"2018-12-01"},{"$f":"ZZZ__FnCalls!A103","v":"2018-01-01"},{"$f":"ZZZ__FnCalls!A115","v":"2019-01-01"},{"$f":"ZZZ__FnCalls!A116","v":"2019-02-01"},{"$f":"ZZZ__FnCalls!A117","v":"2019-03-01"},{"$f":"ZZZ__FnCalls!A118","v":"2019-04-01"},{"$f":"ZZZ__FnCalls!A119","v":"2019-05-01"},{"$f":"ZZZ__FnCalls!A120","v":"2019-06-01"},{"$f":"ZZZ__FnCalls!A121","v":"2019-07-01"},{"$f":"ZZZ__FnCalls!A122","v":"2019-08-01"},{"$f":"ZZZ__FnCalls!A123","v":"2019-09-01"},{"$f":"ZZZ__FnCalls!A124","v":"2019-10-01"},{"$f":"ZZZ__FnCalls!A125","v":"2019-11-01"},{"$f":"ZZZ__FnCalls!A126","v":"2019-12-01"},{"$f":"ZZZ__FnCalls!A115","v":"2019-01-01"},{"$f":"ZZZ__FnCalls!A127","v":"2020-01-01"},{"$f":"ZZZ__FnCalls!A128","v":"2020-02-01"},{"$f":"ZZZ__FnCalls!A129","v":"2020-03-01"},{"$f":"ZZZ__FnCalls!A130","v":"2020-04-01"},{"$f":"ZZZ__FnCalls!A131","v":"2020-05-01"},{"$f":"ZZZ__FnCalls!A132","v":"2020-06-01"},{"$f":"ZZZ__FnCalls!A133","v":"2020-07-01"},{"$f":"ZZZ__FnCalls!A134","v":"2020-08-01"},{"$f":"ZZZ__FnCalls!A135","v":"2020-09-01"},{"$f":"ZZZ__FnCalls!A136","v":"2020-10-01"},{"$f":"ZZZ__FnCalls!A137","v":"2020-11-01"},{"$f":"ZZZ__FnCalls!A138","v":"2020-12-01"},{"$f":"ZZZ__FnCalls!A127","v":"2020-01-01"}]
[{"$f":"\"Capital_Desired_mean_2\"","v":"Capital_Desired_mean_2"}]
[null,{"$f":"ZZZ__FnCalls!F7","v":"Jan 2010"},{"$f":"ZZZ__FnCalls!F8","v":"Feb 2010"},{"$f":"ZZZ__FnCalls!F9","v":"Mar 2010"},{"$f":"ZZZ__FnCalls!F10","v":"Apr 2010"},{"$f":"ZZZ__FnCalls!F11","v":"May 2010"},{"$f":"ZZZ__FnCalls!F12","v":"Jun 2010"},{"$f":"ZZZ__FnCalls!F13","v":"Jul 2010"},{"$f":"ZZZ__FnCalls!F14","v":"Aug 2010"},{"$f":"ZZZ__FnCalls!F15","v":"Sep 2010"},{"$f":"ZZZ__FnCalls!F16","v":"Oct 2010"},{"$f":"ZZZ__FnCalls!F17","v":"Nov 2010"},{"$f":"ZZZ__FnCalls!F18","v":"Dec 2010"},{"$f":"ZZZ__FnCalls!H7","v":"2010"},{"$f":"ZZZ__FnCalls!F19","v":"Jan 2011"},{"$f":"ZZZ__FnCalls!F20","v":"Feb 2011"},{"$f":"ZZZ__FnCalls!F21","v":"Mar 2011"},{"$f":"ZZZ__FnCalls!F22","v":"Apr 2011"},{"$f":"ZZZ__FnCalls!F23","v":"May 2011"},{"$f":"ZZZ__FnCalls!F24","v":"Jun 2011"},{"$f":"ZZZ__FnCalls!F25","v":"Jul 2011"},{"$f":"ZZZ__FnCalls!F26","v":"Aug 2011"},{"$f":"ZZZ__FnCalls!F27","v":"Sep 2011"},{"$f":"ZZZ__FnCalls!F28","v":"Oct 2011"},{"$f":"ZZZ__FnCalls!F29","v":"Nov 2011"},{"$f":"ZZZ__FnCalls!F30","v":"Dec 2011"},{"$f":"ZZZ__FnCalls!H19","v":"2011"},{"$f":"ZZZ__FnCalls!F31","v":"Jan 2012"},{"$f":"ZZZ__FnCalls!F32","v":"Feb 2012"},{"$f":"ZZZ__FnCalls!F33","v":"Mar 2012"},{"$f":"ZZZ__FnCalls!F34","v":"Apr 2012"},{"$f":"ZZZ__FnCalls!F35","v":"May 2012"},{"$f":"ZZZ__FnCalls!F36","v":"Jun 2012"},{"$f":"ZZZ__FnCalls!F37","v":"Jul 2012"},{"$f":"ZZZ__FnCalls!F38","v":"Aug 2012"},{"$f":"ZZZ__FnCalls!F39","v":"Sep 2012"},{"$f":"ZZZ__FnCalls!F40","v":"Oct 2012"},{"$f":"ZZZ__FnCalls!F41","v":"Nov 2012"},{"$f":"ZZZ__FnCalls!F42","v":"Dec 2012"},{"$f":"ZZZ__FnCalls!H31","v":"2012"},{"$f":"ZZZ__FnCalls!F43","v":"Jan 2013"},{"$f":"ZZZ__FnCalls!F44","v":"Feb 2013"},{"$f":"ZZZ__FnCalls!F45","v":"Mar 2013"},{"$f":"ZZZ__FnCalls!F46","v":"Apr 2013"},{"$f":"ZZZ__FnCalls!F47","v":"May 2013"},{"$f":"ZZZ__FnCalls!F48","v":"Jun 2013"},{"$f":"ZZZ__FnCalls!F49","v":"Jul 2013"},{"$f":"ZZZ__FnCalls!F50","v":"Aug 2013"},{"$f":"ZZZ__FnCalls!F51","v":"Sep 2013"},{"$f":"ZZZ__FnCalls!F52","v":"Oct 2013"},{"$f":"ZZZ__FnCalls!F53","v":"Nov 2013"},{"$f":"ZZZ__FnCalls!F54","v":"Dec 2013"},{"$f":"ZZZ__FnCalls!H43","v":"2013"},{"$f":"ZZZ__FnCalls!F55","v":"Jan 2014"},{"$f":"ZZZ__FnCalls!F56","v":"Feb 2014"},{"$f":"ZZZ__FnCalls!F57","v":"Mar 2014"},{"$f":"ZZZ__FnCalls!F58","v":"Apr 2014"},{"$f":"ZZZ__FnCalls!F59","v":"May 2014"},{"$f":"ZZZ__FnCalls!F60","v":"Jun 2014"},{"$f":"ZZZ__FnCalls!F61","v":"Jul 2014"},{"$f":"ZZZ__FnCalls!F62","v":"Aug 2014"},{"$f":"ZZZ__FnCalls!F63","v":"Sep 2014"},{"$f":"ZZZ__FnCalls!F64","v":"Oct 2014"},{"$f":"ZZZ__FnCalls!F65","v":"Nov 2014"},{"$f":"ZZZ__FnCalls!F66","v":"Dec 2014"},{"$f":"ZZZ__FnCalls!H55","v":"2014"},{"$f":"ZZZ__FnCalls!F67","v":"Jan 2015"},{"$f":"ZZZ__FnCalls!F68","v":"Feb 2015"},{"$f":"ZZZ__FnCalls!F69","v":"Mar 2015"},{"$f":"ZZZ__FnCalls!F70","v":"Apr 2015"},{"$f":"ZZZ__FnCalls!F71","v":"May 2015"},{"$f":"ZZZ__FnCalls!F72","v":"Jun 2015"},{"$f":"ZZZ__FnCalls!F73","v":"Jul 2015"},{"$f":"ZZZ__FnCalls!F74","v":"Aug 2015"},{"$f":"ZZZ__FnCalls!F75","v":"Sep 2015"},{"$f":"ZZZ__FnCalls!F76","v":"Oct 2015"},{"$f":"ZZZ__FnCalls!F77","v":"Nov 2015"},{"$f":"ZZZ__FnCalls!F78","v":"Dec 2015"},{"$f":"ZZZ__FnCalls!H67","v":"2015"},{"$f":"ZZZ__FnCalls!F79","v":"Jan 2016"},{"$f":"ZZZ__FnCalls!F80","v":"Feb 2016"},{"$f":"ZZZ__FnCalls!F81","v":"Mar 2016"},{"$f":"ZZZ__FnCalls!F82","v":"Apr 2016"},{"$f":"ZZZ__FnCalls!F83","v":"May 2016"},{"$f":"ZZZ__FnCalls!F84","v":"Jun 2016"},{"$f":"ZZZ__FnCalls!F85","v":"Jul 2016"},{"$f":"ZZZ__FnCalls!F86","v":"Aug 2016"},{"$f":"ZZZ__FnCalls!F87","v":"Sep 2016"},{"$f":"ZZZ__FnCalls!F88","v":"Oct 2016"},{"$f":"ZZZ__FnCalls!F89","v":"Nov 2016"},{"$f":"ZZZ__FnCalls!F90","v":"Dec 2016"},{"$f":"ZZZ__FnCalls!H79","v":"2016"},{"$f":"ZZZ__FnCalls!F91","v":"Jan 2017"},{"$f":"ZZZ__FnCalls!F92","v":"Feb 2017"},{"$f":"ZZZ__FnCalls!F93","v":"Mar 2017"},{"$f":"ZZZ__FnCalls!F94","v":"Apr 2017"},{"$f":"ZZZ__FnCalls!F95","v":"May 2017"},{"$f":"ZZZ__FnCalls!F96","v":"Jun 2017"},{"$f":"ZZZ__FnCalls!F97","v":"Jul 2017"},{"$f":"ZZZ__FnCalls!F98","v":"Aug 2017"},{"$f":"ZZZ__FnCalls!F99","v":"Sep 2017"},{"$f":"ZZZ__FnCalls!F100","v":"Oct 2017"},{"$f":"ZZZ__FnCalls!F101","v":"Nov 2017"},{"$f":"ZZZ__FnCalls!F102","v":"Dec 2017"},{"$f":"ZZZ__FnCalls!H91","v":"2017"},{"$f":"ZZZ__FnCalls!F103","v":"Jan 2018"},{"$f":"ZZZ__FnCalls!F104","v":"Feb 2018"},{"$f":"ZZZ__FnCalls!F105","v":"Mar 2018"},{"$f":"ZZZ__FnCalls!F106","v":"Apr 2018"},{"$f":"ZZZ__FnCalls!F107","v":"May 2018"},{"$f":"ZZZ__FnCalls!F108","v":"Jun 2018"},{"$f":"ZZZ__FnCalls!F109","v":"Jul 2018"},{"$f":"ZZZ__FnCalls!F110","v":"Aug 2018"},{"$f":"ZZZ__FnCalls!F111","v":"Sep 2018"},{"$f":"ZZZ__FnCalls!F112","v":"Oct 2018"},{"$f":"ZZZ__FnCalls!F113","v":"Nov 2018"},{"$f":"ZZZ__FnCalls!F114","v":"Dec 2018"},{"$f":"ZZZ__FnCalls!H103","v":"2018"},{"$f":"ZZZ__FnCalls!F115","v":"Jan 2019"},{"$f":"ZZZ__FnCalls!F116","v":"Feb 2019"},{"$f":"ZZZ__FnCalls!F117","v":"Mar 2019"},{"$f":"ZZZ__FnCalls!F118","v":"Apr 2019"},{"$f":"ZZZ__FnCalls!F119","v":"May 2019"},{"$f":"ZZZ__FnCalls!F120","v":"Jun 2019"},{"$f":"ZZZ__FnCalls!F121","v":"Jul 2019"},{"$f":"ZZZ__FnCalls!F122","v":"Aug 2019"},{"$f":"ZZZ__FnCalls!F123","v":"Sep 2019"},{"$f":"ZZZ__FnCalls!F124","v":"Oct 2019"},{"$f":"ZZZ__FnCalls!F125","v":"Nov 2019"},{"$f":"ZZZ__FnCalls!F126","v":"Dec 2019"},{"$f":"ZZZ__FnCalls!H115","v":"2019"},{"$f":"ZZZ__FnCalls!F127","v":"Jan 2020"},{"$f":"ZZZ__FnCalls!F128","v":"Feb 2020"},{"$f":"ZZZ__FnCalls!F129","v":"Mar 2020"},{"$f":"ZZZ__FnCalls!F130","v":"Apr 2020"},{"$f":"ZZZ__FnCalls!F131","v":"May 2020"},{"$f":"ZZZ__FnCalls!F132","v":"Jun 2020"},{"$f":"ZZZ__FnCalls!F133","v":"Jul 2020"},{"$f":"ZZZ__FnCalls!F134","v":"Aug 2020"},{"$f":"ZZZ__FnCalls!F135","v":"Sep 2020"},{"$f":"ZZZ__FnCalls!F136","v":"Oct 2020"},{"$f":"ZZZ__FnCalls!F137","v":"Nov 2020"},{"$f":"ZZZ__FnCalls!F138","v":"Dec 2020"},{"$f":"ZZZ__FnCalls!H127","v":"2020"}]
[null,{"$f":"ZZZ__FnCalls!F7","v":"Jan 2010"},{"$f":"ZZZ__FnCalls!F8","v":"Feb 2010"},{"$f":"ZZZ__FnCalls!F9","v":"Mar 2010"},{"$f":"ZZZ__FnCalls!F10","v":"Apr 2010"},{"$f":"ZZZ__FnCalls!F11","v":"May 2010"},{"$f":"ZZZ__FnCalls!F12","v":"Jun 2010"},{"$f":"ZZZ__FnCalls!F13","v":"Jul 2010"},{"$f":"ZZZ__FnCalls!F14","v":"Aug 2010"},{"$f":"ZZZ__FnCalls!F15","v":"Sep 2010"},{"$f":"ZZZ__FnCalls!F16","v":"Oct 2010"},{"$f":"ZZZ__FnCalls!F17","v":"Nov 2010"},{"$f":"ZZZ__FnCalls!F18","v":"Dec 2010"},{"$f":"ZZZ__FnCalls!F7","v":"Jan 2010"},{"$f":"ZZZ__FnCalls!F19","v":"Jan 2011"},{"$f":"ZZZ__FnCalls!F20","v":"Feb 2011"},{"$f":"ZZZ__FnCalls!F21","v":"Mar 2011"},{"$f":"ZZZ__FnCalls!F22","v":"Apr 2011"},{"$f":"ZZZ__FnCalls!F23","v":"May 2011"},{"$f":"ZZZ__FnCalls!F24","v":"Jun 2011"},{"$f":"ZZZ__FnCalls!F25","v":"Jul 2011"},{"$f":"ZZZ__FnCalls!F26","v":"Aug 2011"},{"$f":"ZZZ__FnCalls!F27","v":"Sep 2011"},{"$f":"ZZZ__FnCalls!F28","v":"Oct 2011"},{"$f":"ZZZ__FnCalls!F29","v":"Nov 2011"},{"$f":"ZZZ__FnCalls!F30","v":"Dec 2011"},{"$f":"ZZZ__FnCalls!F19","v":"Jan 2011"},{"$f":"ZZZ__FnCalls!F31","v":"Jan 2012"},{"$f":"ZZZ__FnCalls!F32","v":"Feb 2012"},{"$f":"ZZZ__FnCalls!F33","v":"Mar 2012"},{"$f":"ZZZ__FnCalls!F34","v":"Apr 2012"},{"$f":"ZZZ__FnCalls!F35","v":"May 2012"},{"$f":"ZZZ__FnCalls!F36","v":"Jun 2012"},{"$f":"ZZZ__FnCalls!F37","v":"Jul 2012"},{"$f":"ZZZ__FnCalls!F38","v":"Aug 2012"},{"$f":"ZZZ__FnCalls!F39","v":"Sep 2012"},{"$f":"ZZZ__FnCalls!F40","v":"Oct 2012"},{"$f":"ZZZ__FnCalls!F41","v":"Nov 2012"},{"$f":"ZZZ__FnCalls!F42","v":"Dec 2012"},{"$f":"ZZZ__FnCalls!F31","v":"Jan 2012"},{"$f":"ZZZ__FnCalls!F43","v":"Jan 2013"},{"$f":"ZZZ__FnCalls!F44","v":"Feb 2013"},{"$f":"ZZZ__FnCalls!F45","v":"Mar 2013"},{"$f":"ZZZ__FnCalls!F46","v":"Apr 2013"},{"$f":"ZZZ__FnCalls!F47","v":"May 2013"},{"$f":"ZZZ__FnCalls!F48","v":"Jun 2013"},{"$f":"ZZZ__FnCalls!F49","v":"Jul 2013"},{"$f":"ZZZ__FnCalls!F50","v":"Aug 2013"},{"$f":"ZZZ__FnCalls!F51","v":"Sep 2013"},{"$f":"ZZZ__FnCalls!F52","v":"Oct 2013"},{"$f":"ZZZ__FnCalls!F53","v":"Nov 2013"},{"$f":"ZZZ__FnCalls!F54","v":"Dec 2013"},{"$f":"ZZZ__FnCalls!F43","v":"Jan 2013"},{"$f":"ZZZ__FnCalls!F55","v":"Jan 2014"},{"$f":"ZZZ__FnCalls!F56","v":"Feb 2014"},{"$f":"ZZZ__FnCalls!F57","v":"Mar 2014"},{"$f":"ZZZ__FnCalls!F58","v":"Apr 2014"},{"$f":"ZZZ__FnCalls!F59","v":"May 2014"},{"$f":"ZZZ__FnCalls!F60","v":"Jun 2014"},{"$f":"ZZZ__FnCalls!F61","v":"Jul 2014"},{"$f":"ZZZ__FnCalls!F62","v":"Aug 2014"},{"$f":"ZZZ__FnCalls!F63","v":"Sep 2014"},{"$f":"ZZZ__FnCalls!F64","v":"Oct 2014"},{"$f":"ZZZ__FnCalls!F65","v":"Nov 2014"},{"$f":"ZZZ__FnCalls!F66","v":"Dec 2014"},{"$f":"ZZZ__FnCalls!F55","v":"Jan 2014"},{"$f":"ZZZ__FnCalls!F67","v":"Jan 2015"},{"$f":"ZZZ__FnCalls!F68","v":"Feb 2015"},{"$f":"ZZZ__FnCalls!F69","v":"Mar 2015"},{"$f":"ZZZ__FnCalls!F70","v":"Apr 2015"},{"$f":"ZZZ__FnCalls!F71","v":"May 2015"},{"$f":"ZZZ__FnCalls!F72","v":"Jun 2015"},{"$f":"ZZZ__FnCalls!F73","v":"Jul 2015"},{"$f":"ZZZ__FnCalls!F74","v":"Aug 2015"},{"$f":"ZZZ__FnCalls!F75","v":"Sep 2015"},{"$f":"ZZZ__FnCalls!F76","v":"Oct 2015"},{"$f":"ZZZ__FnCalls!F77","v":"Nov 2015"},{"$f":"ZZZ__FnCalls!F78","v":"Dec 2015"},{"$f":"ZZZ__FnCalls!F67","v":"Jan 2015"},{"$f":"ZZZ__FnCalls!F79","v":"Jan 2016"},{"$f":"ZZZ__FnCalls!F80","v":"Feb 2016"},{"$f":"ZZZ__FnCalls!F81","v":"Mar 2016"},{"$f":"ZZZ__FnCalls!F82","v":"Apr 2016"},{"$f":"ZZZ__FnCalls!F83","v":"May 2016"},{"$f":"ZZZ__FnCalls!F84","v":"Jun 2016"},{"$f":"ZZZ__FnCalls!F85","v":"Jul 2016"},{"$f":"ZZZ__FnCalls!F86","v":"Aug 2016"},{"$f":"ZZZ__FnCalls!F87","v":"Sep 2016"},{"$f":"ZZZ__FnCalls!F88","v":"Oct 2016"},{"$f":"ZZZ__FnCalls!F89","v":"Nov 2016"},{"$f":"ZZZ__FnCalls!F90","v":"Dec 2016"},{"$f":"ZZZ__FnCalls!F79","v":"Jan 2016"},{"$f":"ZZZ__FnCalls!F91","v":"Jan 2017"},{"$f":"ZZZ__FnCalls!F92","v":"Feb 2017"},{"$f":"ZZZ__FnCalls!F93","v":"Mar 2017"},{"$f":"ZZZ__FnCalls!F94","v":"Apr 2017"},{"$f":"ZZZ__FnCalls!F95","v":"May 2017"},{"$f":"ZZZ__FnCalls!F96","v":"Jun 2017"},{"$f":"ZZZ__FnCalls!F97","v":"Jul 2017"},{"$f":"ZZZ__FnCalls!F98","v":"Aug 2017"},{"$f":"ZZZ__FnCalls!F99","v":"Sep 2017"},{"$f":"ZZZ__FnCalls!F100","v":"Oct 2017"},{"$f":"ZZZ__FnCalls!F101","v":"Nov 2017"},{"$f":"ZZZ__FnCalls!F102","v":"Dec 2017"},{"$f":"ZZZ__FnCalls!F91","v":"Jan 2017"},{"$f":"ZZZ__FnCalls!F103","v":"Jan 2018"},{"$f":"ZZZ__FnCalls!F104","v":"Feb 2018"},{"$f":"ZZZ__FnCalls!F105","v":"Mar 2018"},{"$f":"ZZZ__FnCalls!F106","v":"Apr 2018"},{"$f":"ZZZ__FnCalls!F107","v":"May 2018"},{"$f":"ZZZ__FnCalls!F108","v":"Jun 2018"},{"$f":"ZZZ__FnCalls!F109","v":"Jul 2018"},{"$f":"ZZZ__FnCalls!F110","v":"Aug 2018"},{"$f":"ZZZ__FnCalls!F111","v":"Sep 2018"},{"$f":"ZZZ__FnCalls!F112","v":"Oct 2018"},{"$f":"ZZZ__FnCalls!F113","v":"Nov 2018"},{"$f":"ZZZ__FnCalls!F114","v":"Dec 2018"},{"$f":"ZZZ__FnCalls!F103","v":"Jan 2018"},{"$f":"ZZZ__FnCalls!F115","v":"Jan 2019"},{"$f":"ZZZ__FnCalls!F116","v":"Feb 2019"},{"$f":"ZZZ__FnCalls!F117","v":"Mar 2019"},{"$f":"ZZZ__FnCalls!F118","v":"Apr 2019"},{"$f":"ZZZ__FnCalls!F119","v":"May 2019"},{"$f":"ZZZ__FnCalls!F120","v":"Jun 2019"},{"$f":"ZZZ__FnCalls!F121","v":"Jul 2019"},{"$f":"ZZZ__FnCalls!F122","v":"Aug 2019"},{"$f":"ZZZ__FnCalls!F123","v":"Sep 2019"},{"$f":"ZZZ__FnCalls!F124","v":"Oct 2019"},{"$f":"ZZZ__FnCalls!F125","v":"Nov 2019"},{"$f":"ZZZ__FnCalls!F126","v":"Dec 2019"},{"$f":"ZZZ__FnCalls!F115","v":"Jan 2019"},{"$f":"ZZZ__FnCalls!F127","v":"Jan 2020"},{"$f":"ZZZ__FnCalls!F128","v":"Feb 2020"},{"$f":"ZZZ__FnCalls!F129","v":"Mar 2020"},{"$f":"ZZZ__FnCalls!F130","v":"Apr 2020"},{"$f":"ZZZ__FnCalls!F131","v":"May 2020"},{"$f":"ZZZ__FnCalls!F132","v":"Jun 2020"},{"$f":"ZZZ__FnCalls!F133","v":"Jul 2020"},{"$f":"ZZZ__FnCalls!F134","v":"Aug 2020"},{"$f":"ZZZ__FnCalls!F135","v":"Sep 2020"},{"$f":"ZZZ__FnCalls!F136","v":"Oct 2020"},{"$f":"ZZZ__FnCalls!F137","v":"Nov 2020"},{"$f":"ZZZ__FnCalls!F138","v":"Dec 2020"},{"$f":"ZZZ__FnCalls!F127","v":"Jan 2020"}]
[{"$f":"\"Capital_Desired_stdev_1\"","v":"Capital_Desired_stdev_1"}]
[null,{"$f":"ZZZ__FnCalls!F7","v":"Jan 2010"},{"$f":"ZZZ__FnCalls!F8","v":"Feb 2010"},{"$f":"ZZZ__FnCalls!F9","v":"Mar 2010"},{"$f":"ZZZ__FnCalls!F10","v":"Apr 2010"},{"$f":"ZZZ__FnCalls!F11","v":"May 2010"},{"$f":"ZZZ__FnCalls!F12","v":"Jun 2010"},{"$f":"ZZZ__FnCalls!F13","v":"Jul 2010"},{"$f":"ZZZ__FnCalls!F14","v":"Aug 2010"},{"$f":"ZZZ__FnCalls!F15","v":"Sep 2010"},{"$f":"ZZZ__FnCalls!F16","v":"Oct 2010"},{"$f":"ZZZ__FnCalls!F17","v":"Nov 2010"},{"$f":"ZZZ__FnCalls!F18","v":"Dec 2010"},{"$f":"ZZZ__FnCalls!H7","v":"2010"},{"$f":"ZZZ__FnCalls!F19","v":"Jan 2011"},{"$f":"ZZZ__FnCalls!F20","v":"Feb 2011"},{"$f":"ZZZ__FnCalls!F21","v":"Mar 2011"},{"$f":"ZZZ__FnCalls!F22","v":"Apr 2011"},{"$f":"ZZZ__FnCalls!F23","v":"May 2011"},{"$f":"ZZZ__FnCalls!F24","v":"Jun 2011"},{"$f":"ZZZ__FnCalls!F25","v":"Jul 2011"},{"$f":"ZZZ__FnCalls!F26","v":"Aug 2011"},{"$f":"ZZZ__FnCalls!F27","v":"Sep 2011"},{"$f":"ZZZ__FnCalls!F28","v":"Oct 2011"},{"$f":"ZZZ__FnCalls!F29","v":"Nov 2011"},{"$f":"ZZZ__FnCalls!F30","v":"Dec 2011"},{"$f":"ZZZ__FnCalls!H19","v":"2011"},{"$f":"ZZZ__FnCalls!F31","v":"Jan 2012"},{"$f":"ZZZ__FnCalls!F32","v":"Feb 2012"},{"$f":"ZZZ__FnCalls!F33","v":"Mar 2012"},{"$f":"ZZZ__FnCalls!F34","v":"Apr 2012"},{"$f":"ZZZ__FnCalls!F35","v":"May 2012"},{"$f":"ZZZ__FnCalls!F36","v":"Jun 2012"},{"$f":"ZZZ__FnCalls!F37","v":"Jul 2012"},{"$f":"ZZZ__FnCalls!F38","v":"Aug 2012"},{"$f":"ZZZ__FnCalls!F39","v":"Sep 2012"},{"$f":"ZZZ__FnCalls!F40","v":"Oct 2012"},{"$f":"ZZZ__FnCalls!F41","v":"Nov 2012"},{"$f":"ZZZ__FnCalls!F42","v":"Dec 2012"},{"$f":"ZZZ__FnCalls!H31","v":"2012"},{"$f":"ZZZ__FnCalls!F43","v":"Jan 2013"},{"$f":"ZZZ__FnCalls!F44","v":"Feb 2013"},{"$f":"ZZZ__FnCalls!F45","v":"Mar 2013"},{"$f":"ZZZ__FnCalls!F46","v":"Apr 2013"},{"$f":"ZZZ__FnCalls!F47","v":"May 2013"},{"$f":"ZZZ__FnCalls!F48","v":"Jun 2013"},{"$f":"ZZZ__FnCalls!F49","v":"Jul 2013"},{"$f":"ZZZ__FnCalls!F50","v":"Aug 2013"},{"$f":"ZZZ__FnCalls!F51","v":"Sep 2013"},{"$f":"ZZZ__FnCalls!F52","v":"Oct 2013"},{"$f":"ZZZ__FnCalls!F53","v":"Nov 2013"},{"$f":"ZZZ__FnCalls!F54","v":"Dec 2013"},{"$f":"ZZZ__FnCalls!H43","v":"2013"},{"$f":"ZZZ__FnCalls!F55","v":"Jan 2014"},{"$f":"ZZZ__FnCalls!F56","v":"Feb 2014"},{"$f":"ZZZ__FnCalls!F57","v":"Mar 2014"},{"$f":"ZZZ__FnCalls!F58","v":"Apr 2014"},{"$f":"ZZZ__FnCalls!F59","v":"May 2014"},{"$f":"ZZZ__FnCalls!F60","v":"Jun 2014"},{"$f":"ZZZ__FnCalls!F61","v":"Jul 2014"},{"$f":"ZZZ__FnCalls!F62","v":"Aug 2014"},{"$f":"ZZZ__FnCalls!F63","v":"Sep 2014"},{"$f":"ZZZ__FnCalls!F64","v":"Oct 2014"},{"$f":"ZZZ__FnCalls!F65","v":"Nov 2014"},{"$f":"ZZZ__FnCalls!F66","v":"Dec 2014"},{"$f":"ZZZ__FnCalls!H55","v":"2014"},{"$f":"ZZZ__FnCalls!F67","v":"Jan 2015"},{"$f":"ZZZ__FnCalls!F68","v":"Feb 2015"},{"$f":"ZZZ__FnCalls!F69","v":"Mar 2015"},{"$f":"ZZZ__FnCalls!F70","v":"Apr 2015"},{"$f":"ZZZ__FnCalls!F71","v":"May 2015"},{"$f":"ZZZ__FnCalls!F72","v":"Jun 2015"},{"$f":"ZZZ__FnCalls!F73","v":"Jul 2015"},{"$f":"ZZZ__FnCalls!F74","v":"Aug 2015"},{"$f":"ZZZ__FnCalls!F75","v":"Sep 2015"},{"$f":"ZZZ__FnCalls!F76","v":"Oct 2015"},{"$f":"ZZZ__FnCalls!F77","v":"Nov 2015"},{"$f":"ZZZ__FnCalls!F78","v":"Dec 2015"},{"$f":"ZZZ__FnCalls!H67","v":"2015"},{"$f":"ZZZ__FnCalls!F79","v":"Jan 2016"},{"$f":"ZZZ__FnCalls!F80","v":"Feb 2016"},{"$f":"ZZZ__FnCalls!F81","v":"Mar 2016"},{"$f":"ZZZ__FnCalls!F82","v":"Apr 2016"},{"$f":"ZZZ__FnCalls!F83","v":"May 2016"},{"$f":"ZZZ__FnCalls!F84","v":"Jun 2016"},{"$f":"ZZZ__FnCalls!F85","v":"Jul 2016"},{"$f":"ZZZ__FnCalls!F86","v":"Aug 2016"},{"$f":"ZZZ__FnCalls!F87","v":"Sep 2016"},{"$f":"ZZZ__FnCalls!F88","v":"Oct 2016"},{"$f":"ZZZ__FnCalls!F89","v":"Nov 2016"},{"$f":"ZZZ__FnCalls!F90","v":"Dec 2016"},{"$f":"ZZZ__FnCalls!H79","v":"2016"},{"$f":"ZZZ__FnCalls!F91","v":"Jan 2017"},{"$f":"ZZZ__FnCalls!F92","v":"Feb 2017"},{"$f":"ZZZ__FnCalls!F93","v":"Mar 2017"},{"$f":"ZZZ__FnCalls!F94","v":"Apr 2017"},{"$f":"ZZZ__FnCalls!F95","v":"May 2017"},{"$f":"ZZZ__FnCalls!F96","v":"Jun 2017"},{"$f":"ZZZ__FnCalls!F97","v":"Jul 2017"},{"$f":"ZZZ__FnCalls!F98","v":"Aug 2017"},{"$f":"ZZZ__FnCalls!F99","v":"Sep 2017"},{"$f":"ZZZ__FnCalls!F100","v":"Oct 2017"},{"$f":"ZZZ__FnCalls!F101","v":"Nov 2017"},{"$f":"ZZZ__FnCalls!F102","v":"Dec 2017"},{"$f":"ZZZ__FnCalls!H91","v":"2017"},{"$f":"ZZZ__FnCalls!F103","v":"Jan 2018"},{"$f":"ZZZ__FnCalls!F104","v":"Feb 2018"},{"$f":"ZZZ__FnCalls!F105","v":"Mar 2018"},{"$f":"ZZZ__FnCalls!F106","v":"Apr 2018"},{"$f":"ZZZ__FnCalls!F107","v":"May 2018"},{"$f":"ZZZ__FnCalls!F108","v":"Jun 2018"},{"$f":"ZZZ__FnCalls!F109","v":"Jul 2018"},{"$f":"ZZZ__FnCalls!F110","v":"Aug 2018"},{"$f":"ZZZ__FnCalls!F111","v":"Sep 2018"},{"$f":"ZZZ__FnCalls!F112","v":"Oct 2018"},{"$f":"ZZZ__FnCalls!F113","v":"Nov 2018"},{"$f":"ZZZ__FnCalls!F114","v":"Dec 2018"},{"$f":"ZZZ__FnCalls!H103","v":"2018"},{"$f":"ZZZ__FnCalls!F115","v":"Jan 2019"},{"$f":"ZZZ__FnCalls!F116","v":"Feb 2019"},{"$f":"ZZZ__FnCalls!F117","v":"Mar 2019"},{"$f":"ZZZ__FnCalls!F118","v":"Apr 2019"},{"$f":"ZZZ__FnCalls!F119","v":"May 2019"},{"$f":"ZZZ__FnCalls!F120","v":"Jun 2019"},{"$f":"ZZZ__FnCalls!F121","v":"Jul 2019"},{"$f":"ZZZ__FnCalls!F122","v":"Aug 2019"},{"$f":"ZZZ__FnCalls!F123","v":"Sep 2019"},{"$f":"ZZZ__FnCalls!F124","v":"Oct 2019"},{"$f":"ZZZ__FnCalls!F125","v":"Nov 2019"},{"$f":"ZZZ__FnCalls!F126","v":"Dec 2019"},{"$f":"ZZZ__FnCalls!H115","v":"2019"},{"$f":"ZZZ__FnCalls!F127","v":"Jan 2020"},{"$f":"ZZZ__FnCalls!F128","v":"Feb 2020"},{"$f":"ZZZ__FnCalls!F129","v":"Mar 2020"},{"$f":"ZZZ__FnCalls!F130","v":"Apr 2020"},{"$f":"ZZZ__FnCalls!F131","v":"May 2020"},{"$f":"ZZZ__FnCalls!F132","v":"Jun 2020"},{"$f":"ZZZ__FnCalls!F133","v":"Jul 2020"},{"$f":"ZZZ__FnCalls!F134","v":"Aug 2020"},{"$f":"ZZZ__FnCalls!F135","v":"Sep 2020"},{"$f":"ZZZ__FnCalls!F136","v":"Oct 2020"},{"$f":"ZZZ__FnCalls!F137","v":"Nov 2020"},{"$f":"ZZZ__FnCalls!F138","v":"Dec 2020"},{"$f":"ZZZ__FnCalls!H127","v":"2020"}]
[null,{"$f":"ZZZ__FnCalls!A7","v":"2010-01-01"},{"$f":"ZZZ__FnCalls!A8","v":"2010-02-01"},{"$f":"ZZZ__FnCalls!A9","v":"2010-03-01"},{"$f":"ZZZ__FnCalls!A10","v":"2010-04-01"},{"$f":"ZZZ__FnCalls!A11","v":"2010-05-01"},{"$f":"ZZZ__FnCalls!A12","v":"2010-06-01"},{"$f":"ZZZ__FnCalls!A13","v":"2010-07-01"},{"$f":"ZZZ__FnCalls!A14","v":"2010-08-01"},{"$f":"ZZZ__FnCalls!A15","v":"2010-09-01"},{"$f":"ZZZ__FnCalls!A16","v":"2010-10-01"},{"$f":"ZZZ__FnCalls!A17","v":"2010-11-01"},{"$f":"ZZZ__FnCalls!A18","v":"2010-12-01"},{"$f":"ZZZ__FnCalls!A7","v":"2010-01-01"},{"$f":"ZZZ__FnCalls!A19","v":"2011-01-01"},{"$f":"ZZZ__FnCalls!A20","v":"2011-02-01"},{"$f":"ZZZ__FnCalls!A21","v":"2011-03-01"},{"$f":"ZZZ__FnCalls!A22","v":"2011-04-01"},{"$f":"ZZZ__FnCalls!A23","v":"2011-05-01"},{"$f":"ZZZ__FnCalls!A24","v":"2011-06-01"},{"$f":"ZZZ__FnCalls!A25","v":"2011-07-01"},{"$f":"ZZZ__FnCalls!A26","v":"2011-08-01"},{"$f":"ZZZ__FnCalls!A27","v":"2011-09-01"},{"$f":"ZZZ__FnCalls!A28","v":"2011-10-01"},{"$f":"ZZZ__FnCalls!A29","v":"2011-11-01"},{"$f":"ZZZ__FnCalls!A30","v":"2011-12-01"},{"$f":"ZZZ__FnCalls!A19","v":"2011-01-01"},{"$f":"ZZZ__FnCalls!A31","v":"2012-01-01"},{"$f":"ZZZ__FnCalls!A32","v":"2012-02-01"},{"$f":"ZZZ__FnCalls!A33","v":"2012-03-01"},{"$f":"ZZZ__FnCalls!A34","v":"2012-04-01"},{"$f":"ZZZ__FnCalls!A35","v":"2012-05-01"},{"$f":"ZZZ__FnCalls!A36","v":"2012-06-01"},{"$f":"ZZZ__FnCalls!A37","v":"2012-07-01"},{"$f":"ZZZ__FnCalls!A38","v":"2012-08-01"},{"$f":"ZZZ__FnCalls!A39","v":"2012-09-01"},{"$f":"ZZZ__FnCalls!A40","v":"2012-10-01"},{"$f":"ZZZ__FnCalls!A41","v":"2012-11-01"},{"$f":"ZZZ__FnCalls!A42","v":"2012-12-01"},{"$f":"ZZZ__FnCalls!A31","v":"2012-01-01"},{"$f":"ZZZ__FnCalls!A43","v":"2013-01-01"},{"$f":"ZZZ__FnCalls!A44","v":"2013-02-01"},{"$f":"ZZZ__FnCalls!A45","v":"2013-03-01"},{"$f":"ZZZ__FnCalls!A46","v":"2013-04-01"},{"$f":"ZZZ__FnCalls!A47","v":"2013-05-01"},{"$f":"ZZZ__FnCalls!A48","v":"2013-06-01"},{"$f":"ZZZ__FnCalls!A49","v":"2013-07-01"},{"$f":"ZZZ__FnCalls!A50","v":"2013-08-01"},{"$f":"ZZZ__FnCalls!A51","v":"2013-09-01"},{"$f":"ZZZ__FnCalls!A52","v":"2013-10-01"},{"$f":"ZZZ__FnCalls!A53","v":"2013-11-01"},{"$f":"ZZZ__FnCalls!A54","v":"2013-12-01"},{"$f":"ZZZ__FnCalls!A43","v":"2013-01-01"},{"$f":"ZZZ__FnCalls!A55","v":"2014-01-01"},{"$f":"ZZZ__FnCalls!A56","v":"2014-02-01"},{"$f":"ZZZ__FnCalls!A57","v":"2014-03-01"},{"$f":"ZZZ__FnCalls!A58","v":"2014-04-01"},{"$f":"ZZZ__FnCalls!A59","v":"2014-05-01"},{"$f":"ZZZ__FnCalls!A60","v":"2014-06-01"},{"$f":"ZZZ__FnCalls!A61","v":"2014-07-01"},{"$f":"ZZZ__FnCalls!A62","v":"2014-08-01"},{"$f":"ZZZ__FnCalls!A63","v":"2014-09-01"},{"$f":"ZZZ__FnCalls!A64","v":"2014-10-01"},{"$f":"ZZZ__FnCalls!A65","v":"2014-11-01"},{"$f":"ZZZ__FnCalls!A66","v":"2014-12-01"},{"$f":"ZZZ__FnCalls!A55","v":"2014-01-01"},{"$f":"ZZZ__FnCalls!A67","v":"2015-01-01"},{"$f":"ZZZ__FnCalls!A68","v":"2015-02-01"},{"$f":"ZZZ__FnCalls!A69","v":"2015-03-01"},{"$f":"ZZZ__FnCalls!A70","v":"2015-04-01"},{"$f":"ZZZ__FnCalls!A71","v":"2015-05-01"},{"$f":"ZZZ__FnCalls!A72","v":"2015-06-01"},{"$f":"ZZZ__FnCalls!A73","v":"2015-07-01"},{"$f":"ZZZ__FnCalls!A74","v":"2015-08-01"},{"$f":"ZZZ__FnCalls!A75","v":"2015-09-01"},{"$f":"ZZZ__FnCalls!A76","v":"2015-10-01"},{"$f":"ZZZ__FnCalls!A77","v":"2015-11-01"},{"$f":"ZZZ__FnCalls!A78","v":"2015-12-01"},{"$f":"ZZZ__FnCalls!A67","v":"2015-01-01"},{"$f":"ZZZ__FnCalls!A79","v":"2016-01-01"},{"$f":"ZZZ__FnCalls!A80","v":"2016-02-01"},{"$f":"ZZZ__FnCalls!A81","v":"2016-03-01"},{"$f":"ZZZ__FnCalls!A82","v":"2016-04-01"},{"$f":"ZZZ__FnCalls!A83","v":"2016-05-01"},{"$f":"ZZZ__FnCalls!A84","v":"2016-06-01"},{"$f":"ZZZ__FnCalls!A85","v":"2016-07-01"},{"$f":"ZZZ__FnCalls!A86","v":"2016-08-01"},{"$f":"ZZZ__FnCalls!A87","v":"2016-09-01"},{"$f":"ZZZ__FnCalls!A88","v":"2016-10-01"},{"$f":"ZZZ__FnCalls!A89","v":"2016-11-01"},{"$f":"ZZZ__FnCalls!A90","v":"2016-12-01"},{"$f":"ZZZ__FnCalls!A79","v":"2016-01-01"},{"$f":"ZZZ__FnCalls!A91","v":"2017-01-01"},{"$f":"ZZZ__FnCalls!A92","v":"2017-02-01"},{"$f":"ZZZ__FnCalls!A93","v":"2017-03-01"},{"$f":"ZZZ__FnCalls!A94","v":"2017-04-01"},{"$f":"ZZZ__FnCalls!A95","v":"2017-05-01"},{"$f":"ZZZ__FnCalls!A96","v":"2017-06-01"},{"$f":"ZZZ__FnCalls!A97","v":"2017-07-01"},{"$f":"ZZZ__FnCalls!A98","v":"2017-08-01"},{"$f":"ZZZ__FnCalls!A99","v":"2017-09-01"},{"$f":"ZZZ__FnCalls!A100","v":"2017-10-01"},{"$f":"ZZZ__FnCalls!A101","v":"2017-11-01"},{"$f":"ZZZ__FnCalls!A102","v":"2017-12-01"},{"$f":"ZZZ__FnCalls!A91","v":"2017-01-01"},{"$f":"ZZZ__FnCalls!A103","v":"2018-01-01"},{"$f":"ZZZ__FnCalls!A104","v":"2018-02-01"},{"$f":"ZZZ__FnCalls!A105","v":"2018-03-01"},{"$f":"ZZZ__FnCalls!A106","v":"2018-04-01"},{"$f":"ZZZ__FnCalls!A107","v":"2018-05-01"},{"$f":"ZZZ__FnCalls!A108","v":"2018-06-01"},{"$f":"ZZZ__FnCalls!A109","v":"2018-07-01"},{"$f":"ZZZ__FnCalls!A110","v":"2018-08-01"},{"$f":"ZZZ__FnCalls!A111","v":"2018-09-01"},{"$f":"ZZZ__FnCalls!A112","v":"2018-10-01"},{"$f":"ZZZ__FnCalls!A113","v":"2018-11-01"},{"$f":"ZZZ__FnCalls!A114","v":"2018-12-01"},{"$f":"ZZZ__FnCalls!A103","v":"2018-01-01"},{"$f":"ZZZ__FnCalls!A115","v":"2019-01-01"},{"$f":"ZZZ__FnCalls!A116","v":"2019-02-01"},{"$f":"ZZZ__FnCalls!A117","v":"2019-03-01"},{"$f":"ZZZ__FnCalls!A118","v":"2019-04-01"},{"$f":"ZZZ__FnCalls!A119","v":"2019-05-01"},{"$f":"ZZZ__FnCalls!A120","v":"2019-06-01"},{"$f":"ZZZ__FnCalls!A121","v":"2019-07-01"},{"$f":"ZZZ__FnCalls!A122","v":"2019-08-01"},{"$f":"ZZZ__FnCalls!A123","v":"2019-09-01"},{"$f":"ZZZ__FnCalls!A124","v":"2019-10-01"},{"$f":"ZZZ__FnCalls!A125","v":"2019-11-01"},{"$f":"ZZZ__FnCalls!A126","v":"2019-12-01"},{"$f":"ZZZ__FnCalls!A115","v":"2019-01-01"},{"$f":"ZZZ__FnCalls!A127","v":"2020-01-01"},{"$f":"ZZZ__FnCalls!A128","v":"2020-02-01"},{"$f":"ZZZ__FnCalls!A129","v":"2020-03-01"},{"$f":"ZZZ__FnCalls!A130","v":"2020-04-01"},{"$f":"ZZZ__FnCalls!A131","v":"2020-05-01"},{"$f":"ZZZ__FnCalls!A132","v":"2020-06-01"},{"$f":"ZZZ__FnCalls!A133","v":"2020-07-01"},{"$f":"ZZZ__FnCalls!A134","v":"2020-08-01"},{"$f":"ZZZ__FnCalls!A135","v":"2020-09-01"},{"$f":"ZZZ__FnCalls!A136","v":"2020-10-01"},{"$f":"ZZZ__FnCalls!A137","v":"2020-11-01"},{"$f":"ZZZ__FnCalls!A138","v":"2020-12-01"},{"$f":"ZZZ__FnCalls!A127","v":"2020-01-01"}]
[{"$f":"\"Capital_Desired_stdev_2\"","v":"Capital_Desired_stdev_2"}]
[null,{"$f":"ZZZ__FnCalls!F7","v":"Jan 2010"},{"$f":"ZZZ__FnCalls!F8","v":"Feb 2010"},{"$f":"ZZZ__FnCalls!F9","v":"Mar 2010"},{"$f":"ZZZ__FnCalls!F10","v":"Apr 2010"},{"$f":"ZZZ__FnCalls!F11","v":"May 2010"},{"$f":"ZZZ__FnCalls!F12","v":"Jun 2010"},{"$f":"ZZZ__FnCalls!F13","v":"Jul 2010"},{"$f":"ZZZ__FnCalls!F14","v":"Aug 2010"},{"$f":"ZZZ__FnCalls!F15","v":"Sep 2010"},{"$f":"ZZZ__FnCalls!F16","v":"Oct 2010"},{"$f":"ZZZ__FnCalls!F17","v":"Nov 2010"},{"$f":"ZZZ__FnCalls!F18","v":"Dec 2010"},{"$f":"ZZZ__FnCalls!H7","v":"2010"},{"$f":"ZZZ__FnCalls!F19","v":"Jan 2011"},{"$f":"ZZZ__FnCalls!F20","v":"Feb 2011"},{"$f":"ZZZ__FnCalls!F21","v":"Mar 2011"},{"$f":"ZZZ__FnCalls!F22","v":"Apr 2011"},{"$f":"ZZZ__FnCalls!F23","v":"May 2011"},{"$f":"ZZZ__FnCalls!F24","v":"Jun 2011"},{"$f":"ZZZ__FnCalls!F25","v":"Jul 2011"},{"$f":"ZZZ__FnCalls!F26","v":"Aug 2011"},{"$f":"ZZZ__FnCalls!F27","v":"Sep 2011"},{"$f":"ZZZ__FnCalls!F28","v":"Oct 2011"},{"$f":"ZZZ__FnCalls!F29","v":"Nov 2011"},{"$f":"ZZZ__FnCalls!F30","v":"Dec 2011"},{"$f":"ZZZ__FnCalls!H19","v":"2011"},{"$f":"ZZZ__FnCalls!F31","v":"Jan 2012"},{"$f":"ZZZ__FnCalls!F32","v":"Feb 2012"},{"$f":"ZZZ__FnCalls!F33","v":"Mar 2012"},{"$f":"ZZZ__FnCalls!F34","v":"Apr 2012"},{"$f":"ZZZ__FnCalls!F35","v":"May 2012"},{"$f":"ZZZ__FnCalls!F36","v":"Jun 2012"},{"$f":"ZZZ__FnCalls!F37","v":"Jul 2012"},{"$f":"ZZZ__FnCalls!F38","v":"Aug 2012"},{"$f":"ZZZ__FnCalls!F39","v":"Sep 2012"},{"$f":"ZZZ__FnCalls!F40","v":"Oct 2012"},{"$f":"ZZZ__FnCalls!F41","v":"Nov 2012"},{"$f":"ZZZ__FnCalls!F42","v":"Dec 2012"},{"$f":"ZZZ__FnCalls!H31","v":"2012"},{"$f":"ZZZ__FnCalls!F43","v":"Jan 2013"},{"$f":"ZZZ__FnCalls!F44","v":"Feb 2013"},{"$f":"ZZZ__FnCalls!F45","v":"Mar 2013"},{"$f":"ZZZ__FnCalls!F46","v":"Apr 2013"},{"$f":"ZZZ__FnCalls!F47","v":"May 2013"},{"$f":"ZZZ__FnCalls!F48","v":"Jun 2013"},{"$f":"ZZZ__FnCalls!F49","v":"Jul 2013"},{"$f":"ZZZ__FnCalls!F50","v":"Aug 2013"},{"$f":"ZZZ__FnCalls!F51","v":"Sep 2013"},{"$f":"ZZZ__FnCalls!F52","v":"Oct 2013"},{"$f":"ZZZ__FnCalls!F53","v":"Nov 2013"},{"$f":"ZZZ__FnCalls!F54","v":"Dec 2013"},{"$f":"ZZZ__FnCalls!H43","v":"2013"},{"$f":"ZZZ__FnCalls!F55","v":"Jan 2014"},{"$f":"ZZZ__FnCalls!F56","v":"Feb 2014"},{"$f":"ZZZ__FnCalls!F57","v":"Mar 2014"},{"$f":"ZZZ__FnCalls!F58","v":"Apr 2014"},{"$f":"ZZZ__FnCalls!F59","v":"May 2014"},{"$f":"ZZZ__FnCalls!F60","v":"Jun 2014"},{"$f":"ZZZ__FnCalls!F61","v":"Jul 2014"},{"$f":"ZZZ__FnCalls!F62","v":"Aug 2014"},{"$f":"ZZZ__FnCalls!F63","v":"Sep 2014"},{"$f":"ZZZ__FnCalls!F64","v":"Oct 2014"},{"$f":"ZZZ__FnCalls!F65","v":"Nov 2014"},{"$f":"ZZZ__FnCalls!F66","v":"Dec 2014"},{"$f":"ZZZ__FnCalls!H55","v":"2014"},{"$f":"ZZZ__FnCalls!F67","v":"Jan 2015"},{"$f":"ZZZ__FnCalls!F68","v":"Feb 2015"},{"$f":"ZZZ__FnCalls!F69","v":"Mar 2015"},{"$f":"ZZZ__FnCalls!F70","v":"Apr 2015"},{"$f":"ZZZ__FnCalls!F71","v":"May 2015"},{"$f":"ZZZ__FnCalls!F72","v":"Jun 2015"},{"$f":"ZZZ__FnCalls!F73","v":"Jul 2015"},{"$f":"ZZZ__FnCalls!F74","v":"Aug 2015"},{"$f":"ZZZ__FnCalls!F75","v":"Sep 2015"},{"$f":"ZZZ__FnCalls!F76","v":"Oct 2015"},{"$f":"ZZZ__FnCalls!F77","v":"Nov 2015"},{"$f":"ZZZ__FnCalls!F78","v":"Dec 2015"},{"$f":"ZZZ__FnCalls!H67","v":"2015"},{"$f":"ZZZ__FnCalls!F79","v":"Jan 2016"},{"$f":"ZZZ__FnCalls!F80","v":"Feb 2016"},{"$f":"ZZZ__FnCalls!F81","v":"Mar 2016"},{"$f":"ZZZ__FnCalls!F82","v":"Apr 2016"},{"$f":"ZZZ__FnCalls!F83","v":"May 2016"},{"$f":"ZZZ__FnCalls!F84","v":"Jun 2016"},{"$f":"ZZZ__FnCalls!F85","v":"Jul 2016"},{"$f":"ZZZ__FnCalls!F86","v":"Aug 2016"},{"$f":"ZZZ__FnCalls!F87","v":"Sep 2016"},{"$f":"ZZZ__FnCalls!F88","v":"Oct 2016"},{"$f":"ZZZ__FnCalls!F89","v":"Nov 2016"},{"$f":"ZZZ__FnCalls!F90","v":"Dec 2016"},{"$f":"ZZZ__FnCalls!H79","v":"2016"},{"$f":"ZZZ__FnCalls!F91","v":"Jan 2017"},{"$f":"ZZZ__FnCalls!F92","v":"Feb 2017"},{"$f":"ZZZ__FnCalls!F93","v":"Mar 2017"},{"$f":"ZZZ__FnCalls!F94","v":"Apr 2017"},{"$f":"ZZZ__FnCalls!F95","v":"May 2017"},{"$f":"ZZZ__FnCalls!F96","v":"Jun 2017"},{"$f":"ZZZ__FnCalls!F97","v":"Jul 2017"},{"$f":"ZZZ__FnCalls!F98","v":"Aug 2017"},{"$f":"ZZZ__FnCalls!F99","v":"Sep 2017"},{"$f":"ZZZ__FnCalls!F100","v":"Oct 2017"},{"$f":"ZZZ__FnCalls!F101","v":"Nov 2017"},{"$f":"ZZZ__FnCalls!F102","v":"Dec 2017"},{"$f":"ZZZ__FnCalls!H91","v":"2017"},{"$f":"ZZZ__FnCalls!F103","v":"Jan 2018"},{"$f":"ZZZ__FnCalls!F104","v":"Feb 2018"},{"$f":"ZZZ__FnCalls!F105","v":"Mar 2018"},{"$f":"ZZZ__FnCalls!F106","v":"Apr 2018"},{"$f":"ZZZ__FnCalls!F107","v":"May 2018"},{"$f":"ZZZ__FnCalls!F108","v":"Jun 2018"},{"$f":"ZZZ__FnCalls!F109","v":"Jul 2018"},{"$f":"ZZZ__FnCalls!F110","v":"Aug 2018"},{"$f":"ZZZ__FnCalls!F111","v":"Sep 2018"},{"$f":"ZZZ__FnCalls!F112","v":"Oct 2018"},{"$f":"ZZZ__FnCalls!F113","v":"Nov 2018"},{"$f":"ZZZ__FnCalls!F114","v":"Dec 2018"},{"$f":"ZZZ__FnCalls!H103","v":"2018"},{"$f":"ZZZ__FnCalls!F115","v":"Jan 2019"},{"$f":"ZZZ__FnCalls!F116","v":"Feb 2019"},{"$f":"ZZZ__FnCalls!F117","v":"Mar 2019"},{"$f":"ZZZ__FnCalls!F118","v":"Apr 2019"},{"$f":"ZZZ__FnCalls!F119","v":"May 2019"},{"$f":"ZZZ__FnCalls!F120","v":"Jun 2019"},{"$f":"ZZZ__FnCalls!F121","v":"Jul 2019"},{"$f":"ZZZ__FnCalls!F122","v":"Aug 2019"},{"$f":"ZZZ__FnCalls!F123","v":"Sep 2019"},{"$f":"ZZZ__FnCalls!F124","v":"Oct 2019"},{"$f":"ZZZ__FnCalls!F125","v":"Nov 2019"},{"$f":"ZZZ__FnCalls!F126","v":"Dec 2019"},{"$f":"ZZZ__FnCalls!H115","v":"2019"},{"$f":"ZZZ__FnCalls!F127","v":"Jan 2020"},{"$f":"ZZZ__FnCalls!F128","v":"Feb 2020"},{"$f":"ZZZ__FnCalls!F129","v":"Mar 2020"},{"$f":"ZZZ__FnCalls!F130","v":"Apr 2020"},{"$f":"ZZZ__FnCalls!F131","v":"May 2020"},{"$f":"ZZZ__FnCalls!F132","v":"Jun 2020"},{"$f":"ZZZ__FnCalls!F133","v":"Jul 2020"},{"$f":"ZZZ__FnCalls!F134","v":"Aug 2020"},{"$f":"ZZZ__FnCalls!F135","v":"Sep 2020"},{"$f":"ZZZ__FnCalls!F136","v":"Oct 2020"},{"$f":"ZZZ__FnCalls!F137","v":"Nov 2020"},{"$f":"ZZZ__FnCalls!F138","v":"Dec 2020"},{"$f":"ZZZ__FnCalls!H127","v":"2020"}]
[null,{"$f":"ZZZ__FnCalls!F7","v":"Jan 2010"},{"$f":"ZZZ__FnCalls!F8","v":"Feb 2010"},{"$f":"ZZZ__FnCalls!F9","v":"Mar 2010"},{"$f":"ZZZ__FnCalls!F10","v":"Apr 2010"},{"$f":"ZZZ__FnCalls!F11","v":"May 2010"},{"$f":"ZZZ__FnCalls!F12","v":"Jun 2010"},{"$f":"ZZZ__FnCalls!F13","v":"Jul 2010"},{"$f":"ZZZ__FnCalls!F14","v":"Aug 2010"},{"$f":"ZZZ__FnCalls!F15","v":"Sep 2010"},{"$f":"ZZZ__FnCalls!F16","v":"Oct 2010"},{"$f":"ZZZ__FnCalls!F17","v":"Nov 2010"},{"$f":"ZZZ__FnCalls!F18","v":"Dec 2010"},{"$f":"ZZZ__FnCalls!F7","v":"Jan 2010"},{"$f":"ZZZ__FnCalls!F19","v":"Jan 2011"},{"$f":"ZZZ__FnCalls!F20","v":"Feb 2011"},{"$f":"ZZZ__FnCalls!F21","v":"Mar 2011"},{"$f":"ZZZ__FnCalls!F22","v":"Apr 2011"},{"$f":"ZZZ__FnCalls!F23","v":"May 2011"},{"$f":"ZZZ__FnCalls!F24","v":"Jun 2011"},{"$f":"ZZZ__FnCalls!F25","v":"Jul 2011"},{"$f":"ZZZ__FnCalls!F26","v":"Aug 2011"},{"$f":"ZZZ__FnCalls!F27","v":"Sep 2011"},{"$f":"ZZZ__FnCalls!F28","v":"Oct 2011"},{"$f":"ZZZ__FnCalls!F29","v":"Nov 2011"},{"$f":"ZZZ__FnCalls!F30","v":"Dec 2011"},{"$f":"ZZZ__FnCalls!F19","v":"Jan 2011"},{"$f":"ZZZ__FnCalls!F31","v":"Jan 2012"},{"$f":"ZZZ__FnCalls!F32","v":"Feb 2012"},{"$f":"ZZZ__FnCalls!F33","v":"Mar 2012"},{"$f":"ZZZ__FnCalls!F34","v":"Apr 2012"},{"$f":"ZZZ__FnCalls!F35","v":"May 2012"},{"$f":"ZZZ__FnCalls!F36","v":"Jun 2012"},{"$f":"ZZZ__FnCalls!F37","v":"Jul 2012"},{"$f":"ZZZ__FnCalls!F38","v":"Aug 2012"},{"$f":"ZZZ__FnCalls!F39","v":"Sep 2012"},{"$f":"ZZZ__FnCalls!F40","v":"Oct 2012"},{"$f":"ZZZ__FnCalls!F41","v":"Nov 2012"},{"$f":"ZZZ__FnCalls!F42","v":"Dec 2012"},{"$f":"ZZZ__FnCalls!F31","v":"Jan 2012"},{"$f":"ZZZ__FnCalls!F43","v":"Jan 2013"},{"$f":"ZZZ__FnCalls!F44","v":"Feb 2013"},{"$f":"ZZZ__FnCalls!F45","v":"Mar 2013"},{"$f":"ZZZ__FnCalls!F46","v":"Apr 2013"},{"$f":"ZZZ__FnCalls!F47","v":"May 2013"},{"$f":"ZZZ__FnCalls!F48","v":"Jun 2013"},{"$f":"ZZZ__FnCalls!F49","v":"Jul 2013"},{"$f":"ZZZ__FnCalls!F50","v":"Aug 2013"},{"$f":"ZZZ__FnCalls!F51","v":"Sep 2013"},{"$f":"ZZZ__FnCalls!F52","v":"Oct 2013"},{"$f":"ZZZ__FnCalls!F53","v":"Nov 2013"},{"$f":"ZZZ__FnCalls!F54","v":"Dec 2013"},{"$f":"ZZZ__FnCalls!F43","v":"Jan 2013"},{"$f":"ZZZ__FnCalls!F55","v":"Jan 2014"},{"$f":"ZZZ__FnCalls!F56","v":"Feb 2014"},{"$f":"ZZZ__FnCalls!F57","v":"Mar 2014"},{"$f":"ZZZ__FnCalls!F58","v":"Apr 2014"},{"$f":"ZZZ__FnCalls!F59","v":"May 2014"},{"$f":"ZZZ__FnCalls!F60","v":"Jun 2014"},{"$f":"ZZZ__FnCalls!F61","v":"Jul 2014"},{"$f":"ZZZ__FnCalls!F62","v":"Aug 2014"},{"$f":"ZZZ__FnCalls!F63","v":"Sep 2014"},{"$f":"ZZZ__FnCalls!F64","v":"Oct 2014"},{"$f":"ZZZ__FnCalls!F65","v":"Nov 2014"},{"$f":"ZZZ__FnCalls!F66","v":"Dec 2014"},{"$f":"ZZZ__FnCalls!F55","v":"Jan 2014"},{"$f":"ZZZ__FnCalls!F67","v":"Jan 2015"},{"$f":"ZZZ__FnCalls!F68","v":"Feb 2015"},{"$f":"ZZZ__FnCalls!F69","v":"Mar 2015"},{"$f":"ZZZ__FnCalls!F70","v":"Apr 2015"},{"$f":"ZZZ__FnCalls!F71","v":"May 2015"},{"$f":"ZZZ__FnCalls!F72","v":"Jun 2015"},{"$f":"ZZZ__FnCalls!F73","v":"Jul 2015"},{"$f":"ZZZ__FnCalls!F74","v":"Aug 2015"},{"$f":"ZZZ__FnCalls!F75","v":"Sep 2015"},{"$f":"ZZZ__FnCalls!F76","v":"Oct 2015"},{"$f":"ZZZ__FnCalls!F77","v":"Nov 2015"},{"$f":"ZZZ__FnCalls!F78","v":"Dec 2015"},{"$f":"ZZZ__FnCalls!F67","v":"Jan 2015"},{"$f":"ZZZ__FnCalls!F79","v":"Jan 2016"},{"$f":"ZZZ__FnCalls!F80","v":"Feb 2016"},{"$f":"ZZZ__FnCalls!F81","v":"Mar 2016"},{"$f":"ZZZ__FnCalls!F82","v":"Apr 2016"},{"$f":"ZZZ__FnCalls!F83","v":"May 2016"},{"$f":"ZZZ__FnCalls!F84","v":"Jun 2016"},{"$f":"ZZZ__FnCalls!F85","v":"Jul 2016"},{"$f":"ZZZ__FnCalls!F86","v":"Aug 2016"},{"$f":"ZZZ__FnCalls!F87","v":"Sep 2016"},{"$f":"ZZZ__FnCalls!F88","v":"Oct 2016"},{"$f":"ZZZ__FnCalls!F89","v":"Nov 2016"},{"$f":"ZZZ__FnCalls!F90","v":"Dec 2016"},{"$f":"ZZZ__FnCalls!F79","v":"Jan 2016"},{"$f":"ZZZ__FnCalls!F91","v":"Jan 2017"},{"$f":"ZZZ__FnCalls!F92","v":"Feb 2017"},{"$f":"ZZZ__FnCalls!F93","v":"Mar 2017"},{"$f":"ZZZ__FnCalls!F94","v":"Apr 2017"},{"$f":"ZZZ__FnCalls!F95","v":"May 2017"},{"$f":"ZZZ__FnCalls!F96","v":"Jun 2017"},{"$f":"ZZZ__FnCalls!F97","v":"Jul 2017"},{"$f":"ZZZ__FnCalls!F98","v":"Aug 2017"},{"$f":"ZZZ__FnCalls!F99","v":"Sep 2017"},{"$f":"ZZZ__FnCalls!F100","v":"Oct 2017"},{"$f":"ZZZ__FnCalls!F101","v":"Nov 2017"},{"$f":"ZZZ__FnCalls!F102","v":"Dec 2017"},{"$f":"ZZZ__FnCalls!F91","v":"Jan 2017"},{"$f":"ZZZ__FnCalls!F103","v":"Jan 2018"},{"$f":"ZZZ__FnCalls!F104","v":"Feb 2018"},{"$f":"ZZZ__FnCalls!F105","v":"Mar 2018"},{"$f":"ZZZ__FnCalls!F106","v":"Apr 2018"},{"$f":"ZZZ__FnCalls!F107","v":"May 2018"},{"$f":"ZZZ__FnCalls!F108","v":"Jun 2018"},{"$f":"ZZZ__FnCalls!F109","v":"Jul 2018"},{"$f":"ZZZ__FnCalls!F110","v":"Aug 2018"},{"$f":"ZZZ__FnCalls!F111","v":"Sep 2018"},{"$f":"ZZZ__FnCalls!F112","v":"Oct 2018"},{"$f":"ZZZ__FnCalls!F113","v":"Nov 2018"},{"$f":"ZZZ__FnCalls!F114","v":"Dec 2018"},{"$f":"ZZZ__FnCalls!F103","v":"Jan 2018"},{"$f":"ZZZ__FnCalls!F115","v":"Jan 2019"},{"$f":"ZZZ__FnCalls!F116","v":"Feb 2019"},{"$f":"ZZZ__FnCalls!F117","v":"Mar 2019"},{"$f":"ZZZ__FnCalls!F118","v":"Apr 2019"},{"$f":"ZZZ__FnCalls!F119","v":"May 2019"},{"$f":"ZZZ__FnCalls!F120","v":"Jun 2019"},{"$f":"ZZZ__FnCalls!F121","v":"Jul 2019"},{"$f":"ZZZ__FnCalls!F122","v":"Aug 2019"},{"$f":"ZZZ__FnCalls!F123","v":"Sep 2019"},{"$f":"ZZZ__FnCalls!F124","v":"Oct 2019"},{"$f":"ZZZ__FnCalls!F125","v":"Nov 2019"},{"$f":"ZZZ__FnCalls!F126","v":"Dec 2019"},{"$f":"ZZZ__FnCalls!F115","v":"Jan 2019"},{"$f":"ZZZ__FnCalls!F127","v":"Jan 2020"},{"$f":"ZZZ__FnCalls!F128","v":"Feb 2020"},{"$f":"ZZZ__FnCalls!F129","v":"Mar 2020"},{"$f":"ZZZ__FnCalls!F130","v":"Apr 2020"},{"$f":"ZZZ__FnCalls!F131","v":"May 2020"},{"$f":"ZZZ__FnCalls!F132","v":"Jun 2020"},{"$f":"ZZZ__FnCalls!F133","v":"Jul 2020"},{"$f":"ZZZ__FnCalls!F134","v":"Aug 2020"},{"$f":"ZZZ__FnCalls!F135","v":"Sep 2020"},{"$f":"ZZZ__FnCalls!F136","v":"Oct 2020"},{"$f":"ZZZ__FnCalls!F137","v":"Nov 2020"},{"$f":"ZZZ__FnCalls!F138","v":"Dec 2020"},{"$f":"ZZZ__FnCalls!F127","v":"Jan 2020"}]
[{"$f":"\"Employment_mean_1\"","v":"Employment_mean_1"}]
[null,{"$f":"ZZZ__FnCalls!F7","v":"Jan 2010"},{"$f":"ZZZ__FnCalls!F8","v":"Feb 2010"},{"$f":"ZZZ__FnCalls!F9","v":"Mar 2010"},{"$f":"ZZZ__FnCalls!F10","v":"Apr 2010"},{"$f":"ZZZ__FnCalls!F11","v":"May 2010"},{"$f":"ZZZ__FnCalls!F12","v":"Jun 2010"},{"$f":"ZZZ__FnCalls!F13","v":"Jul 2010"},{"$f":"ZZZ__FnCalls!F14","v":"Aug 2010"},{"$f":"ZZZ__FnCalls!F15","v":"Sep 2010"},{"$f":"ZZZ__FnCalls!F16","v":"Oct 2010"},{"$f":"ZZZ__FnCalls!F17","v":"Nov 2010"},{"$f":"ZZZ__FnCalls!F18","v":"Dec 2010"},{"$f":"ZZZ__FnCalls!H7","v":"2010"},{"$f":"ZZZ__FnCalls!F19","v":"Jan 2011"},{"$f":"ZZZ__FnCalls!F20","v":"Feb 2011"},{"$f":"ZZZ__FnCalls!F21","v":"Mar 2011"},{"$f":"ZZZ__FnCalls!F22","v":"Apr 2011"},{"$f":"ZZZ__FnCalls!F23","v":"May 2011"},{"$f":"ZZZ__FnCalls!F24","v":"Jun 2011"},{"$f":"ZZZ__FnCalls!F25","v":"Jul 2011"},{"$f":"ZZZ__FnCalls!F26","v":"Aug 2011"},{"$f":"ZZZ__FnCalls!F27","v":"Sep 2011"},{"$f":"ZZZ__FnCalls!F28","v":"Oct 2011"},{"$f":"ZZZ__FnCalls!F29","v":"Nov 2011"},{"$f":"ZZZ__FnCalls!F30","v":"Dec 2011"},{"$f":"ZZZ__FnCalls!H19","v":"2011"},{"$f":"ZZZ__FnCalls!F31","v":"Jan 2012"},{"$f":"ZZZ__FnCalls!F32","v":"Feb 2012"},{"$f":"ZZZ__FnCalls!F33","v":"Mar 2012"},{"$f":"ZZZ__FnCalls!F34","v":"Apr 2012"},{"$f":"ZZZ__FnCalls!F35","v":"May 2012"},{"$f":"ZZZ__FnCalls!F36","v":"Jun 2012"},{"$f":"ZZZ__FnCalls!F37","v":"Jul 2012"},{"$f":"ZZZ__FnCalls!F38","v":"Aug 2012"},{"$f":"ZZZ__FnCalls!F39","v":"Sep 2012"},{"$f":"ZZZ__FnCalls!F40","v":"Oct 2012"},{"$f":"ZZZ__FnCalls!F41","v":"Nov 2012"},{"$f":"ZZZ__FnCalls!F42","v":"Dec 2012"},{"$f":"ZZZ__FnCalls!H31","v":"2012"},{"$f":"ZZZ__FnCalls!F43","v":"Jan 2013"},{"$f":"ZZZ__FnCalls!F44","v":"Feb 2013"},{"$f":"ZZZ__FnCalls!F45","v":"Mar 2013"},{"$f":"ZZZ__FnCalls!F46","v":"Apr 2013"},{"$f":"ZZZ__FnCalls!F47","v":"May 2013"},{"$f":"ZZZ__FnCalls!F48","v":"Jun 2013"},{"$f":"ZZZ__FnCalls!F49","v":"Jul 2013"},{"$f":"ZZZ__FnCalls!F50","v":"Aug 2013"},{"$f":"ZZZ__FnCalls!F51","v":"Sep 2013"},{"$f":"ZZZ__FnCalls!F52","v":"Oct 2013"},{"$f":"ZZZ__FnCalls!F53","v":"Nov 2013"},{"$f":"ZZZ__FnCalls!F54","v":"Dec 2013"},{"$f":"ZZZ__FnCalls!H43","v":"2013"},{"$f":"ZZZ__FnCalls!F55","v":"Jan 2014"},{"$f":"ZZZ__FnCalls!F56","v":"Feb 2014"},{"$f":"ZZZ__FnCalls!F57","v":"Mar 2014"},{"$f":"ZZZ__FnCalls!F58","v":"Apr 2014"},{"$f":"ZZZ__FnCalls!F59","v":"May 2014"},{"$f":"ZZZ__FnCalls!F60","v":"Jun 2014"},{"$f":"ZZZ__FnCalls!F61","v":"Jul 2014"},{"$f":"ZZZ__FnCalls!F62","v":"Aug 2014"},{"$f":"ZZZ__FnCalls!F63","v":"Sep 2014"},{"$f":"ZZZ__FnCalls!F64","v":"Oct 2014"},{"$f":"ZZZ__FnCalls!F65","v":"Nov 2014"},{"$f":"ZZZ__FnCalls!F66","v":"Dec 2014"},{"$f":"ZZZ__FnCalls!H55","v":"2014"},{"$f":"ZZZ__FnCalls!F67","v":"Jan 2015"},{"$f":"ZZZ__FnCalls!F68","v":"Feb 2015"},{"$f":"ZZZ__FnCalls!F69","v":"Mar 2015"},{"$f":"ZZZ__FnCalls!F70","v":"Apr 2015"},{"$f":"ZZZ__FnCalls!F71","v":"May 2015"},{"$f":"ZZZ__FnCalls!F72","v":"Jun 2015"},{"$f":"ZZZ__FnCalls!F73","v":"Jul 2015"},{"$f":"ZZZ__FnCalls!F74","v":"Aug 2015"},{"$f":"ZZZ__FnCalls!F75","v":"Sep 2015"},{"$f":"ZZZ__FnCalls!F76","v":"Oct 2015"},{"$f":"ZZZ__FnCalls!F77","v":"Nov 2015"},{"$f":"ZZZ__FnCalls!F78","v":"Dec 2015"},{"$f":"ZZZ__FnCalls!H67","v":"2015"},{"$f":"ZZZ__FnCalls!F79","v":"Jan 2016"},{"$f":"ZZZ__FnCalls!F80","v":"Feb 2016"},{"$f":"ZZZ__FnCalls!F81","v":"Mar 2016"},{"$f":"ZZZ__FnCalls!F82","v":"Apr 2016"},{"$f":"ZZZ__FnCalls!F83","v":"May 2016"},{"$f":"ZZZ__FnCalls!F84","v":"Jun 2016"},{"$f":"ZZZ__FnCalls!F85","v":"Jul 2016"},{"$f":"ZZZ__FnCalls!F86","v":"Aug 2016"},{"$f":"ZZZ__FnCalls!F87","v":"Sep 2016"},{"$f":"ZZZ__FnCalls!F88","v":"Oct 2016"},{"$f":"ZZZ__FnCalls!F89","v":"Nov 2016"},{"$f":"ZZZ__FnCalls!F90","v":"Dec 2016"},{"$f":"ZZZ__FnCalls!H79","v":"2016"},{"$f":"ZZZ__FnCalls!F91","v":"Jan 2017"},{"$f":"ZZZ__FnCalls!F92","v":"Feb 2017"},{"$f":"ZZZ__FnCalls!F93","v":"Mar 2017"},{"$f":"ZZZ__FnCalls!F94","v":"Apr 2017"},{"$f":"ZZZ__FnCalls!F95","v":"May 2017"},{"$f":"ZZZ__FnCalls!F96","v":"Jun 2017"},{"$f":"ZZZ__FnCalls!F97","v":"Jul 2017"},{"$f":"ZZZ__FnCalls!F98","v":"Aug 2017"},{"$f":"ZZZ__FnCalls!F99","v":"Sep 2017"},{"$f":"ZZZ__FnCalls!F100","v":"Oct 2017"},{"$f":"ZZZ__FnCalls!F101","v":"Nov 2017"},{"$f":"ZZZ__FnCalls!F102","v":"Dec 2017"},{"$f":"ZZZ__FnCalls!H91","v":"2017"},{"$f":"ZZZ__FnCalls!F103","v":"Jan 2018"},{"$f":"ZZZ__FnCalls!F104","v":"Feb 2018"},{"$f":"ZZZ__FnCalls!F105","v":"Mar 2018"},{"$f":"ZZZ__FnCalls!F106","v":"Apr 2018"},{"$f":"ZZZ__FnCalls!F107","v":"May 2018"},{"$f":"ZZZ__FnCalls!F108","v":"Jun 2018"},{"$f":"ZZZ__FnCalls!F109","v":"Jul 2018"},{"$f":"ZZZ__FnCalls!F110","v":"Aug 2018"},{"$f":"ZZZ__FnCalls!F111","v":"Sep 2018"},{"$f":"ZZZ__FnCalls!F112","v":"Oct 2018"},{"$f":"ZZZ__FnCalls!F113","v":"Nov 2018"},{"$f":"ZZZ__FnCalls!F114","v":"Dec 2018"},{"$f":"ZZZ__FnCalls!H103","v":"2018"},{"$f":"ZZZ__FnCalls!F115","v":"Jan 2019"},{"$f":"ZZZ__FnCalls!F116","v":"Feb 2019"},{"$f":"ZZZ__FnCalls!F117","v":"Mar 2019"},{"$f":"ZZZ__FnCalls!F118","v":"Apr 2019"},{"$f":"ZZZ__FnCalls!F119","v":"May 2019"},{"$f":"ZZZ__FnCalls!F120","v":"Jun 2019"},{"$f":"ZZZ__FnCalls!F121","v":"Jul 2019"},{"$f":"ZZZ__FnCalls!F122","v":"Aug 2019"},{"$f":"ZZZ__FnCalls!F123","v":"Sep 2019"},{"$f":"ZZZ__FnCalls!F124","v":"Oct 2019"},{"$f":"ZZZ__FnCalls!F125","v":"Nov 2019"},{"$f":"ZZZ__FnCalls!F126","v":"Dec 2019"},{"$f":"ZZZ__FnCalls!H115","v":"2019"},{"$f":"ZZZ__FnCalls!F127","v":"Jan 2020"},{"$f":"ZZZ__FnCalls!F128","v":"Feb 2020"},{"$f":"ZZZ__FnCalls!F129","v":"Mar 2020"},{"$f":"ZZZ__FnCalls!F130","v":"Apr 2020"},{"$f":"ZZZ__FnCalls!F131","v":"May 2020"},{"$f":"ZZZ__FnCalls!F132","v":"Jun 2020"},{"$f":"ZZZ__FnCalls!F133","v":"Jul 2020"},{"$f":"ZZZ__FnCalls!F134","v":"Aug 2020"},{"$f":"ZZZ__FnCalls!F135","v":"Sep 2020"},{"$f":"ZZZ__FnCalls!F136","v":"Oct 2020"},{"$f":"ZZZ__FnCalls!F137","v":"Nov 2020"},{"$f":"ZZZ__FnCalls!F138","v":"Dec 2020"},{"$f":"ZZZ__FnCalls!H127","v":"2020"}]
[null,{"$f":"ZZZ__FnCalls!A7","v":"2010-01-01"},{"$f":"ZZZ__FnCalls!A8","v":"2010-02-01"},{"$f":"ZZZ__FnCalls!A9","v":"2010-03-01"},{"$f":"ZZZ__FnCalls!A10","v":"2010-04-01"},{"$f":"ZZZ__FnCalls!A11","v":"2010-05-01"},{"$f":"ZZZ__FnCalls!A12","v":"2010-06-01"},{"$f":"ZZZ__FnCalls!A13","v":"2010-07-01"},{"$f":"ZZZ__FnCalls!A14","v":"2010-08-01"},{"$f":"ZZZ__FnCalls!A15","v":"2010-09-01"},{"$f":"ZZZ__FnCalls!A16","v":"2010-10-01"},{"$f":"ZZZ__FnCalls!A17","v":"2010-11-01"},{"$f":"ZZZ__FnCalls!A18","v":"2010-12-01"},{"$f":"ZZZ__FnCalls!A7","v":"2010-01-01"},{"$f":"ZZZ__FnCalls!A19","v":"2011-01-01"},{"$f":"ZZZ__FnCalls!A20","v":"2011-02-01"},{"$f":"ZZZ__FnCalls!A21","v":"2011-03-01"},{"$f":"ZZZ__FnCalls!A22","v":"2011-04-01"},{"$f":"ZZZ__FnCalls!A23","v":"2011-05-01"},{"$f":"ZZZ__FnCalls!A24","v":"2011-06-01"},{"$f":"ZZZ__FnCalls!A25","v":"2011-07-01"},{"$f":"ZZZ__FnCalls!A26","v":"2011-08-01"},{"$f":"ZZZ__FnCalls!A27","v":"2011-09-01"},{"$f":"ZZZ__FnCalls!A28","v":"2011-10-01"},{"$f":"ZZZ__FnCalls!A29","v":"2011-11-01"},{"$f":"ZZZ__FnCalls!A30","v":"2011-12-01"},{"$f":"ZZZ__FnCalls!A19","v":"2011-01-01"},{"$f":"ZZZ__FnCalls!A31","v":"2012-01-01"},{"$f":"ZZZ__FnCalls!A32","v":"2012-02-01"},{"$f":"ZZZ__FnCalls!A33","v":"2012-03-01"},{"$f":"ZZZ__FnCalls!A34","v":"2012-04-01"},{"$f":"ZZZ__FnCalls!A35","v":"2012-05-01"},{"$f":"ZZZ__FnCalls!A36","v":"2012-06-01"},{"$f":"ZZZ__FnCalls!A37","v":"2012-07-01"},{"$f":"ZZZ__FnCalls!A38","v":"2012-08-01"},{"$f":"ZZZ__FnCalls!A39","v":"2012-09-01"},{"$f":"ZZZ__FnCalls!A40","v":"2012-10-01"},{"$f":"ZZZ__FnCalls!A41","v":"2012-11-01"},{"$f":"ZZZ__FnCalls!A42","v":"2012-12-01"},{"$f":"ZZZ__FnCalls!A31","v":"2012-01-01"},{"$f":"ZZZ__FnCalls!A43","v":"2013-01-01"},{"$f":"ZZZ__FnCalls!A44","v":"2013-02-01"},{"$f":"ZZZ__FnCalls!A45","v":"2013-03-01"},{"$f":"ZZZ__FnCalls!A46","v":"2013-04-01"},{"$f":"ZZZ__FnCalls!A47","v":"2013-05-01"},{"$f":"ZZZ__FnCalls!A48","v":"2013-06-01"},{"$f":"ZZZ__FnCalls!A49","v":"2013-07-01"},{"$f":"ZZZ__FnCalls!A50","v":"2013-08-01"},{"$f":"ZZZ__FnCalls!A51","v":"2013-09-01"},{"$f":"ZZZ__FnCalls!A52","v":"2013-10-01"},{"$f":"ZZZ__FnCalls!A53","v":"2013-11-01"},{"$f":"ZZZ__FnCalls!A54","v":"2013-12-01"},{"$f":"ZZZ__FnCalls!A43","v":"2013-01-01"},{"$f":"ZZZ__FnCalls!A55","v":"2014-01-01"},{"$f":"ZZZ__FnCalls!A56","v":"2014-02-01"},{"$f":"ZZZ__FnCalls!A57","v":"2014-03-01"},{"$f":"ZZZ__FnCalls!A58","v":"2014-04-01"},{"$f":"ZZZ__FnCalls!A59","v":"2014-05-01"},{"$f":"ZZZ__FnCalls!A60","v":"2014-06-01"},{"$f":"ZZZ__FnCalls!A61","v":"2014-07-01"},{"$f":"ZZZ__FnCalls!A62","v":"2014-08-01"},{"$f":"ZZZ__FnCalls!A63","v":"2014-09-01"},{"$f":"ZZZ__FnCalls!A64","v":"2014-10-01"},{"$f":"ZZZ__FnCalls!A65","v":"2014-11-01"},{"$f":"ZZZ__FnCalls!A66","v":"2014-12-01"},{"$f":"ZZZ__FnCalls!A55","v":"2014-01-01"},{"$f":"ZZZ__FnCalls!A67","v":"2015-01-01"},{"$f":"ZZZ__FnCalls!A68","v":"2015-02-01"},{"$f":"ZZZ__FnCalls!A69","v":"2015-03-01"},{"$f":"ZZZ__FnCalls!A70","v":"2015-04-01"},{"$f":"ZZZ__FnCalls!A71","v":"2015-05-01"},{"$f":"ZZZ__FnCalls!A72","v":"2015-06-01"},{"$f":"ZZZ__FnCalls!A73","v":"2015-07-01"},{"$f":"ZZZ__FnCalls!A74","v":"2015-08-01"},{"$f":"ZZZ__FnCalls!A75","v":"2015-09-01"},{"$f":"ZZZ__FnCalls!A76","v":"2015-10-01"},{"$f":"ZZZ__FnCalls!A77","v":"2015-11-01"},{"$f":"ZZZ__FnCalls!A78","v":"2015-12-01"},{"$f":"ZZZ__FnCalls!A67","v":"2015-01-01"},{"$f":"ZZZ__FnCalls!A79","v":"2016-01-01"},{"$f":"ZZZ__FnCalls!A80","v":"2016-02-01"},{"$f":"ZZZ__FnCalls!A81","v":"2016-03-01"},{"$f":"ZZZ__FnCalls!A82","v":"2016-04-01"},{"$f":"ZZZ__FnCalls!A83","v":"2016-05-01"},{"$f":"ZZZ__FnCalls!A84","v":"2016-06-01"},{"$f":"ZZZ__FnCalls!A85","v":"2016-07-01"},{"$f":"ZZZ__FnCalls!A86","v":"2016-08-01"},{"$f":"ZZZ__FnCalls!A87","v":"2016-09-01"},{"$f":"ZZZ__FnCalls!A88","v":"2016-10-01"},{"$f":"ZZZ__FnCalls!A89","v":"2016-11-01"},{"$f":"ZZZ__FnCalls!A90","v":"2016-12-01"},{"$f":"ZZZ__FnCalls!A79","v":"2016-01-01"},{"$f":"ZZZ__FnCalls!A91","v":"2017-01-01"},{"$f":"ZZZ__FnCalls!A92","v":"2017-02-01"},{"$f":"ZZZ__FnCalls!A93","v":"2017-03-01"},{"$f":"ZZZ__FnCalls!A94","v":"2017-04-01"},{"$f":"ZZZ__FnCalls!A95","v":"2017-05-01"},{"$f":"ZZZ__FnCalls!A96","v":"2017-06-01"},{"$f":"ZZZ__FnCalls!A97","v":"2017-07-01"},{"$f":"ZZZ__FnCalls!A98","v":"2017-08-01"},{"$f":"ZZZ__FnCalls!A99","v":"2017-09-01"},{"$f":"ZZZ__FnCalls!A100","v":"2017-10-01"},{"$f":"ZZZ__FnCalls!A101","v":"2017-11-01"},{"$f":"ZZZ__FnCalls!A102","v":"2017-12-01"},{"$f":"ZZZ__FnCalls!A91","v":"2017-01-01"},{"$f":"ZZZ__FnCalls!A103","v":"2018-01-01"},{"$f":"ZZZ__FnCalls!A104","v":"2018-02-01"},{"$f":"ZZZ__FnCalls!A105","v":"2018-03-01"},{"$f":"ZZZ__FnCalls!A106","v":"2018-04-01"},{"$f":"ZZZ__FnCalls!A107","v":"2018-05-01"},{"$f":"ZZZ__FnCalls!A108","v":"2018-06-01"},{"$f":"ZZZ__FnCalls!A109","v":"2018-07-01"},{"$f":"ZZZ__FnCalls!A110","v":"2018-08-01"},{"$f":"ZZZ__FnCalls!A111","v":"2018-09-01"},{"$f":"ZZZ__FnCalls!A112","v":"2018-10-01"},{"$f":"ZZZ__FnCalls!A113","v":"2018-11-01"},{"$f":"ZZZ__FnCalls!A114","v":"2018-12-01"},{"$f":"ZZZ__FnCalls!A103","v":"2018-01-01"},{"$f":"ZZZ__FnCalls!A115","v":"2019-01-01"},{"$f":"ZZZ__FnCalls!A116","v":"2019-02-01"},{"$f":"ZZZ__FnCalls!A117","v":"2019-03-01"},{"$f":"ZZZ__FnCalls!A118","v":"2019-04-01"},{"$f":"ZZZ__FnCalls!A119","v":"2019-05-01"},{"$f":"ZZZ__FnCalls!A120","v":"2019-06-01"},{"$f":"ZZZ__FnCalls!A121","v":"2019-07-01"},{"$f":"ZZZ__FnCalls!A122","v":"2019-08-01"},{"$f":"ZZZ__FnCalls!A123","v":"2019-09-01"},{"$f":"ZZZ__FnCalls!A124","v":"2019-10-01"},{"$f":"ZZZ__FnCalls!A125","v":"2019-11-01"},{"$f":"ZZZ__FnCalls!A126","v":"2019-12-01"},{"$f":"ZZZ__FnCalls!A115","v":"2019-01-01"},{"$f":"ZZZ__FnCalls!A127","v":"2020-01-01"},{"$f":"ZZZ__FnCalls!A128","v":"2020-02-01"},{"$f":"ZZZ__FnCalls!A129","v":"2020-03-01"},{"$f":"ZZZ__FnCalls!A130","v":"2020-04-01"},{"$f":"ZZZ__FnCalls!A131","v":"2020-05-01"},{"$f":"ZZZ__FnCalls!A132","v":"2020-06-01"},{"$f":"ZZZ__FnCalls!A133","v":"2020-07-01"},{"$f":"ZZZ__FnCalls!A134","v":"2020-08-01"},{"$f":"ZZZ__FnCalls!A135","v":"2020-09-01"},{"$f":"ZZZ__FnCalls!A136","v":"2020-10-01"},{"$f":"ZZZ__FnCalls!A137","v":"2020-11-01"},{"$f":"ZZZ__FnCalls!A138","v":"2020-12-01"},{"$f":"ZZZ__FnCalls!A127","v":"2020-01-01"}]
[{"$f":"\"Employment_mean_2\"","v":"Employment_mean_2"}]
[null,{"$f":"ZZZ__FnCalls!F7","v":"Jan 2010"},{"$f":"ZZZ__FnCalls!F8","v":"Feb 2010"},{"$f":"ZZZ__FnCalls!F9","v":"Mar 2010"},{"$f":"ZZZ__FnCalls!F10","v":"Apr 2010"},{"$f":"ZZZ__FnCalls!F11","v":"May 2010"},{"$f":"ZZZ__FnCalls!F12","v":"Jun 2010"},{"$f":"ZZZ__FnCalls!F13","v":"Jul 2010"},{"$f":"ZZZ__FnCalls!F14","v":"Aug 2010"},{"$f":"ZZZ__FnCalls!F15","v":"Sep 2010"},{"$f":"ZZZ__FnCalls!F16","v":"Oct 2010"},{"$f":"ZZZ__FnCalls!F17","v":"Nov 2010"},{"$f":"ZZZ__FnCalls!F18","v":"Dec 2010"},{"$f":"ZZZ__FnCalls!H7","v":"2010"},{"$f":"ZZZ__FnCalls!F19","v":"Jan 2011"},{"$f":"ZZZ__FnCalls!F20","v":"Feb 2011"},{"$f":"ZZZ__FnCalls!F21","v":"Mar 2011"},{"$f":"ZZZ__FnCalls!F22","v":"Apr 2011"},{"$f":"ZZZ__FnCalls!F23","v":"May 2011"},{"$f":"ZZZ__FnCalls!F24","v":"Jun 2011"},{"$f":"ZZZ__FnCalls!F25","v":"Jul 2011"},{"$f":"ZZZ__FnCalls!F26","v":"Aug 2011"},{"$f":"ZZZ__FnCalls!F27","v":"Sep 2011"},{"$f":"ZZZ__FnCalls!F28","v":"Oct 2011"},{"$f":"ZZZ__FnCalls!F29","v":"Nov 2011"},{"$f":"ZZZ__FnCalls!F30","v":"Dec 2011"},{"$f":"ZZZ__FnCalls!H19","v":"2011"},{"$f":"ZZZ__FnCalls!F31","v":"Jan 2012"},{"$f":"ZZZ__FnCalls!F32","v":"Feb 2012"},{"$f":"ZZZ__FnCalls!F33","v":"Mar 2012"},{"$f":"ZZZ__FnCalls!F34","v":"Apr 2012"},{"$f":"ZZZ__FnCalls!F35","v":"May 2012"},{"$f":"ZZZ__FnCalls!F36","v":"Jun 2012"},{"$f":"ZZZ__FnCalls!F37","v":"Jul 2012"},{"$f":"ZZZ__FnCalls!F38","v":"Aug 2012"},{"$f":"ZZZ__FnCalls!F39","v":"Sep 2012"},{"$f":"ZZZ__FnCalls!F40","v":"Oct 2012"},{"$f":"ZZZ__FnCalls!F41","v":"Nov 2012"},{"$f":"ZZZ__FnCalls!F42","v":"Dec 2012"},{"$f":"ZZZ__FnCalls!H31","v":"2012"},{"$f":"ZZZ__FnCalls!F43","v":"Jan 2013"},{"$f":"ZZZ__FnCalls!F44","v":"Feb 2013"},{"$f":"ZZZ__FnCalls!F45","v":"Mar 2013"},{"$f":"ZZZ__FnCalls!F46","v":"Apr 2013"},{"$f":"ZZZ__FnCalls!F47","v":"May 2013"},{"$f":"ZZZ__FnCalls!F48","v":"Jun 2013"},{"$f":"ZZZ__FnCalls!F49","v":"Jul 2013"},{"$f":"ZZZ__FnCalls!F50","v":"Aug 2013"},{"$f":"ZZZ__FnCalls!F51","v":"Sep 2013"},{"$f":"ZZZ__FnCalls!F52","v":"Oct 2013"},{"$f":"ZZZ__FnCalls!F53","v":"Nov 2013"},{"$f":"ZZZ__FnCalls!F54","v":"Dec 2013"},{"$f":"ZZZ__FnCalls!H43","v":"2013"},{"$f":"ZZZ__FnCalls!F55","v":"Jan 2014"},{"$f":"ZZZ__FnCalls!F56","v":"Feb 2014"},{"$f":"ZZZ__FnCalls!F57","v":"Mar 2014"},{"$f":"ZZZ__FnCalls!F58","v":"Apr 2014"},{"$f":"ZZZ__FnCalls!F59","v":"May 2014"},{"$f":"ZZZ__FnCalls!F60","v":"Jun 2014"},{"$f":"ZZZ__FnCalls!F61","v":"Jul 2014"},{"$f":"ZZZ__FnCalls!F62","v":"Aug 2014"},{"$f":"ZZZ__FnCalls!F63","v":"Sep 2014"},{"$f":"ZZZ__FnCalls!F64","v":"Oct 2014"},{"$f":"ZZZ__FnCalls!F65","v":"Nov 2014"},{"$f":"ZZZ__FnCalls!F66","v":"Dec 2014"},{"$f":"ZZZ__FnCalls!H55","v":"2014"},{"$f":"ZZZ__FnCalls!F67","v":"Jan 2015"},{"$f":"ZZZ__FnCalls!F68","v":"Feb 2015"},{"$f":"ZZZ__FnCalls!F69","v":"Mar 2015"},{"$f":"ZZZ__FnCalls!F70","v":"Apr 2015"},{"$f":"ZZZ__FnCalls!F71","v":"May 2015"},{"$f":"ZZZ__FnCalls!F72","v":"Jun 2015"},{"$f":"ZZZ__FnCalls!F73","v":"Jul 2015"},{"$f":"ZZZ__FnCalls!F74","v":"Aug 2015"},{"$f":"ZZZ__FnCalls!F75","v":"Sep 2015"},{"$f":"ZZZ__FnCalls!F76","v":"Oct 2015"},{"$f":"ZZZ__FnCalls!F77","v":"Nov 2015"},{"$f":"ZZZ__FnCalls!F78","v":"Dec 2015"},{"$f":"ZZZ__FnCalls!H67","v":"2015"},{"$f":"ZZZ__FnCalls!F79","v":"Jan 2016"},{"$f":"ZZZ__FnCalls!F80","v":"Feb 2016"},{"$f":"ZZZ__FnCalls!F81","v":"Mar 2016"},{"$f":"ZZZ__FnCalls!F82","v":"Apr 2016"},{"$f":"ZZZ__FnCalls!F83","v":"May 2016"},{"$f":"ZZZ__FnCalls!F84","v":"Jun 2016"},{"$f":"ZZZ__FnCalls!F85","v":"Jul 2016"},{"$f":"ZZZ__FnCalls!F86","v":"Aug 2016"},{"$f":"ZZZ__FnCalls!F87","v":"Sep 2016"},{"$f":"ZZZ__FnCalls!F88","v":"Oct 2016"},{"$f":"ZZZ__FnCalls!F89","v":"Nov 2016"},{"$f":"ZZZ__FnCalls!F90","v":"Dec 2016"},{"$f":"ZZZ__FnCalls!H79","v":"2016"},{"$f":"ZZZ__FnCalls!F91","v":"Jan 2017"},{"$f":"ZZZ__FnCalls!F92","v":"Feb 2017"},{"$f":"ZZZ__FnCalls!F93","v":"Mar 2017"},{"$f":"ZZZ__FnCalls!F94","v":"Apr 2017"},{"$f":"ZZZ__FnCalls!F95","v":"May 2017"},{"$f":"ZZZ__FnCalls!F96","v":"Jun 2017"},{"$f":"ZZZ__FnCalls!F97","v":"Jul 2017"},{"$f":"ZZZ__FnCalls!F98","v":"Aug 2017"},{"$f":"ZZZ__FnCalls!F99","v":"Sep 2017"},{"$f":"ZZZ__FnCalls!F100","v":"Oct 2017"},{"$f":"ZZZ__FnCalls!F101","v":"Nov 2017"},{"$f":"ZZZ__FnCalls!F102","v":"Dec 2017"},{"$f":"ZZZ__FnCalls!H91","v":"2017"},{"$f":"ZZZ__FnCalls!F103","v":"Jan 2018"},{"$f":"ZZZ__FnCalls!F104","v":"Feb 2018"},{"$f":"ZZZ__FnCalls!F105","v":"Mar 2018"},{"$f":"ZZZ__FnCalls!F106","v":"Apr 2018"},{"$f":"ZZZ__FnCalls!F107","v":"May 2018"},{"$f":"ZZZ__FnCalls!F108","v":"Jun 2018"},{"$f":"ZZZ__FnCalls!F109","v":"Jul 2018"},{"$f":"ZZZ__FnCalls!F110","v":"Aug 2018"},{"$f":"ZZZ__FnCalls!F111","v":"Sep 2018"},{"$f":"ZZZ__FnCalls!F112","v":"Oct 2018"},{"$f":"ZZZ__FnCalls!F113","v":"Nov 2018"},{"$f":"ZZZ__FnCalls!F114","v":"Dec 2018"},{"$f":"ZZZ__FnCalls!H103","v":"2018"},{"$f":"ZZZ__FnCalls!F115","v":"Jan 2019"},{"$f":"ZZZ__FnCalls!F116","v":"Feb 2019"},{"$f":"ZZZ__FnCalls!F117","v":"Mar 2019"},{"$f":"ZZZ__FnCalls!F118","v":"Apr 2019"},{"$f":"ZZZ__FnCalls!F119","v":"May 2019"},{"$f":"ZZZ__FnCalls!F120","v":"Jun 2019"},{"$f":"ZZZ__FnCalls!F121","v":"Jul 2019"},{"$f":"ZZZ__FnCalls!F122","v":"Aug 2019"},{"$f":"ZZZ__FnCalls!F123","v":"Sep 2019"},{"$f":"ZZZ__FnCalls!F124","v":"Oct 2019"},{"$f":"ZZZ__FnCalls!F125","v":"Nov 2019"},{"$f":"ZZZ__FnCalls!F126","v":"Dec 2019"},{"$f":"ZZZ__FnCalls!H115","v":"2019"},{"$f":"ZZZ__FnCalls!F127","v":"Jan 2020"},{"$f":"ZZZ__FnCalls!F128","v":"Feb 2020"},{"$f":"ZZZ__FnCalls!F129","v":"Mar 2020"},{"$f":"ZZZ__FnCalls!F130","v":"Apr 2020"},{"$f":"ZZZ__FnCalls!F131","v":"May 2020"},{"$f":"ZZZ__FnCalls!F132","v":"Jun 2020"},{"$f":"ZZZ__FnCalls!F133","v":"Jul 2020"},{"$f":"ZZZ__FnCalls!F134","v":"Aug 2020"},{"$f":"ZZZ__FnCalls!F135","v":"Sep 2020"},{"$f":"ZZZ__FnCalls!F136","v":"Oct 2020"},{"$f":"ZZZ__FnCalls!F137","v":"Nov 2020"},{"$f":"ZZZ__FnCalls!F138","v":"Dec 2020"},{"$f":"ZZZ__FnCalls!H127","v":"2020"}]
[null,{"$f":"ZZZ__FnCalls!F7","v":"Jan 2010"},{"$f":"ZZZ__FnCalls!F8","v":"Feb 2010"},{"$f":"ZZZ__FnCalls!F9","v":"Mar 2010"},{"$f":"ZZZ__FnCalls!F10","v":"Apr 2010"},{"$f":"ZZZ__FnCalls!F11","v":"May 2010"},{"$f":"ZZZ__FnCalls!F12","v":"Jun 2010"},{"$f":"ZZZ__FnCalls!F13","v":"Jul 2010"},{"$f":"ZZZ__FnCalls!F14","v":"Aug 2010"},{"$f":"ZZZ__FnCalls!F15","v":"Sep 2010"},{"$f":"ZZZ__FnCalls!F16","v":"Oct 2010"},{"$f":"ZZZ__FnCalls!F17","v":"Nov 2010"},{"$f":"ZZZ__FnCalls!F18","v":"Dec 2010"},{"$f":"ZZZ__FnCalls!F7","v":"Jan 2010"},{"$f":"ZZZ__FnCalls!F19","v":"Jan 2011"},{"$f":"ZZZ__FnCalls!F20","v":"Feb 2011"},{"$f":"ZZZ__FnCalls!F21","v":"Mar 2011"},{"$f":"ZZZ__FnCalls!F22","v":"Apr 2011"},{"$f":"ZZZ__FnCalls!F23","v":"May 2011"},{"$f":"ZZZ__FnCalls!F24","v":"Jun 2011"},{"$f":"ZZZ__FnCalls!F25","v":"Jul 2011"},{"$f":"ZZZ__FnCalls!F26","v":"Aug 2011"},{"$f":"ZZZ__FnCalls!F27","v":"Sep 2011"},{"$f":"ZZZ__FnCalls!F28","v":"Oct 2011"},{"$f":"ZZZ__FnCalls!F29","v":"Nov 2011"},{"$f":"ZZZ__FnCalls!F30","v":"Dec 2011"},{"$f":"ZZZ__FnCalls!F19","v":"Jan 2011"},{"$f":"ZZZ__FnCalls!F31","v":"Jan 2012"},{"$f":"ZZZ__FnCalls!F32","v":"Feb 2012"},{"$f":"ZZZ__FnCalls!F33","v":"Mar 2012"},{"$f":"ZZZ__FnCalls!F34","v":"Apr 2012"},{"$f":"ZZZ__FnCalls!F35","v":"May 2012"},{"$f":"ZZZ__FnCalls!F36","v":"Jun 2012"},{"$f":"ZZZ__FnCalls!F37","v":"Jul 2012"},{"$f":"ZZZ__FnCalls!F38","v":"Aug 2012"},{"$f":"ZZZ__FnCalls!F39","v":"Sep 2012"},{"$f":"ZZZ__FnCalls!F40","v":"Oct 2012"},{"$f":"ZZZ__FnCalls!F41","v":"Nov 2012"},{"$f":"ZZZ__FnCalls!F42","v":"Dec 2012"},{"$f":"ZZZ__FnCalls!F31","v":"Jan 2012"},{"$f":"ZZZ__FnCalls!F43","v":"Jan 2013"},{"$f":"ZZZ__FnCalls!F44","v":"Feb 2013"},{"$f":"ZZZ__FnCalls!F45","v":"Mar 2013"},{"$f":"ZZZ__FnCalls!F46","v":"Apr 2013"},{"$f":"ZZZ__FnCalls!F47","v":"May 2013"},{"$f":"ZZZ__FnCalls!F48","v":"Jun 2013"},{"$f":"ZZZ__FnCalls!F49","v":"Jul 2013"},{"$f":"ZZZ__FnCalls!F50","v":"Aug 2013"},{"$f":"ZZZ__FnCalls!F51","v":"Sep 2013"},{"$f":"ZZZ__FnCalls!F52","v":"Oct 2013"},{"$f":"ZZZ__FnCalls!F53","v":"Nov 2013"},{"$f":"ZZZ__FnCalls!F54","v":"Dec 2013"},{"$f":"ZZZ__FnCalls!F43","v":"Jan 2013"},{"$f":"ZZZ__FnCalls!F55","v":"Jan 2014"},{"$f":"ZZZ__FnCalls!F56","v":"Feb 2014"},{"$f":"ZZZ__FnCalls!F57","v":"Mar 2014"},{"$f":"ZZZ__FnCalls!F58","v":"Apr 2014"},{"$f":"ZZZ__FnCalls!F59","v":"May 2014"},{"$f":"ZZZ__FnCalls!F60","v":"Jun 2014"},{"$f":"ZZZ__FnCalls!F61","v":"Jul 2014"},{"$f":"ZZZ__FnCalls!F62","v":"Aug 2014"},{"$f":"ZZZ__FnCalls!F63","v":"Sep 2014"},{"$f":"ZZZ__FnCalls!F64","v":"Oct 2014"},{"$f":"ZZZ__FnCalls!F65","v":"Nov 2014"},{"$f":"ZZZ__FnCalls!F66","v":"Dec 2014"},{"$f":"ZZZ__FnCalls!F55","v":"Jan 2014"},{"$f":"ZZZ__FnCalls!F67","v":"Jan 2015"},{"$f":"ZZZ__FnCalls!F68","v":"Feb 2015"},{"$f":"ZZZ__FnCalls!F69","v":"Mar 2015"},{"$f":"ZZZ__FnCalls!F70","v":"Apr 2015"},{"$f":"ZZZ__FnCalls!F71","v":"May 2015"},{"$f":"ZZZ__FnCalls!F72","v":"Jun 2015"},{"$f":"ZZZ__FnCalls!F73","v":"Jul 2015"},{"$f":"ZZZ__FnCalls!F74","v":"Aug 2015"},{"$f":"ZZZ__FnCalls!F75","v":"Sep 2015"},{"$f":"ZZZ__FnCalls!F76","v":"Oct 2015"},{"$f":"ZZZ__FnCalls!F77","v":"Nov 2015"},{"$f":"ZZZ__FnCalls!F78","v":"Dec 2015"},{"$f":"ZZZ__FnCalls!F67","v":"Jan 2015"},{"$f":"ZZZ__FnCalls!F79","v":"Jan 2016"},{"$f":"ZZZ__FnCalls!F80","v":"Feb 2016"},{"$f":"ZZZ__FnCalls!F81","v":"Mar 2016"},{"$f":"ZZZ__FnCalls!F82","v":"Apr 2016"},{"$f":"ZZZ__FnCalls!F83","v":"May 2016"},{"$f":"ZZZ__FnCalls!F84","v":"Jun 2016"},{"$f":"ZZZ__FnCalls!F85","v":"Jul 2016"},{"$f":"ZZZ__FnCalls!F86","v":"Aug 2016"},{"$f":"ZZZ__FnCalls!F87","v":"Sep 2016"},{"$f":"ZZZ__FnCalls!F88","v":"Oct 2016"},{"$f":"ZZZ__FnCalls!F89","v":"Nov 2016"},{"$f":"ZZZ__FnCalls!F90","v":"Dec 2016"},{"$f":"ZZZ__FnCalls!F79","v":"Jan 2016"},{"$f":"ZZZ__FnCalls!F91","v":"Jan 2017"},{"$f":"ZZZ__FnCalls!F92","v":"Feb 2017"},{"$f":"ZZZ__FnCalls!F93","v":"Mar 2017"},{"$f":"ZZZ__FnCalls!F94","v":"Apr 2017"},{"$f":"ZZZ__FnCalls!F95","v":"May 2017"},{"$f":"ZZZ__FnCalls!F96","v":"Jun 2017"},{"$f":"ZZZ__FnCalls!F97","v":"Jul 2017"},{"$f":"ZZZ__FnCalls!F98","v":"Aug 2017"},{"$f":"ZZZ__FnCalls!F99","v":"Sep 2017"},{"$f":"ZZZ__FnCalls!F100","v":"Oct 2017"},{"$f":"ZZZ__FnCalls!F101","v":"Nov 2017"},{"$f":"ZZZ__FnCalls!F102","v":"Dec 2017"},{"$f":"ZZZ__FnCalls!F91","v":"Jan 2017"},{"$f":"ZZZ__FnCalls!F103","v":"Jan 2018"},{"$f":"ZZZ__FnCalls!F104","v":"Feb 2018"},{"$f":"ZZZ__FnCalls!F105","v":"Mar 2018"},{"$f":"ZZZ__FnCalls!F106","v":"Apr 2018"},{"$f":"ZZZ__FnCalls!F107","v":"May 2018"},{"$f":"ZZZ__FnCalls!F108","v":"Jun 2018"},{"$f":"ZZZ__FnCalls!F109","v":"Jul 2018"},{"$f":"ZZZ__FnCalls!F110","v":"Aug 2018"},{"$f":"ZZZ__FnCalls!F111","v":"Sep 2018"},{"$f":"ZZZ__FnCalls!F112","v":"Oct 2018"},{"$f":"ZZZ__FnCalls!F113","v":"Nov 2018"},{"$f":"ZZZ__FnCalls!F114","v":"Dec 2018"},{"$f":"ZZZ__FnCalls!F103","v":"Jan 2018"},{"$f":"ZZZ__FnCalls!F115","v":"Jan 2019"},{"$f":"ZZZ__FnCalls!F116","v":"Feb 2019"},{"$f":"ZZZ__FnCalls!F117","v":"Mar 2019"},{"$f":"ZZZ__FnCalls!F118","v":"Apr 2019"},{"$f":"ZZZ__FnCalls!F119","v":"May 2019"},{"$f":"ZZZ__FnCalls!F120","v":"Jun 2019"},{"$f":"ZZZ__FnCalls!F121","v":"Jul 2019"},{"$f":"ZZZ__FnCalls!F122","v":"Aug 2019"},{"$f":"ZZZ__FnCalls!F123","v":"Sep 2019"},{"$f":"ZZZ__FnCalls!F124","v":"Oct 2019"},{"$f":"ZZZ__FnCalls!F125","v":"Nov 2019"},{"$f":"ZZZ__FnCalls!F126","v":"Dec 2019"},{"$f":"ZZZ__FnCalls!F115","v":"Jan 2019"},{"$f":"ZZZ__FnCalls!F127","v":"Jan 2020"},{"$f":"ZZZ__FnCalls!F128","v":"Feb 2020"},{"$f":"ZZZ__FnCalls!F129","v":"Mar 2020"},{"$f":"ZZZ__FnCalls!F130","v":"Apr 2020"},{"$f":"ZZZ__FnCalls!F131","v":"May 2020"},{"$f":"ZZZ__FnCalls!F132","v":"Jun 2020"},{"$f":"ZZZ__FnCalls!F133","v":"Jul 2020"},{"$f":"ZZZ__FnCalls!F134","v":"Aug 2020"},{"$f":"ZZZ__FnCalls!F135","v":"Sep 2020"},{"$f":"ZZZ__FnCalls!F136","v":"Oct 2020"},{"$f":"ZZZ__FnCalls!F137","v":"Nov 2020"},{"$f":"ZZZ__FnCalls!F138","v":"Dec 2020"},{"$f":"ZZZ__FnCalls!F127","v":"Jan 2020"}]
[{"$f":"\"Employment_stdev_1\"","v":"Employment_stdev_1"}]
[null,{"$f":"ZZZ__FnCalls!F7","v":"Jan 2010"},{"$f":"ZZZ__FnCalls!F8","v":"Feb 2010"},{"$f":"ZZZ__FnCalls!F9","v":"Mar 2010"},{"$f":"ZZZ__FnCalls!F10","v":"Apr 2010"},{"$f":"ZZZ__FnCalls!F11","v":"May 2010"},{"$f":"ZZZ__FnCalls!F12","v":"Jun 2010"},{"$f":"ZZZ__FnCalls!F13","v":"Jul 2010"},{"$f":"ZZZ__FnCalls!F14","v":"Aug 2010"},{"$f":"ZZZ__FnCalls!F15","v":"Sep 2010"},{"$f":"ZZZ__FnCalls!F16","v":"Oct 2010"},{"$f":"ZZZ__FnCalls!F17","v":"Nov 2010"},{"$f":"ZZZ__FnCalls!F18","v":"Dec 2010"},{"$f":"ZZZ__FnCalls!H7","v":"2010"},{"$f":"ZZZ__FnCalls!F19","v":"Jan 2011"},{"$f":"ZZZ__FnCalls!F20","v":"Feb 2011"},{"$f":"ZZZ__FnCalls!F21","v":"Mar 2011"},{"$f":"ZZZ__FnCalls!F22","v":"Apr 2011"},{"$f":"ZZZ__FnCalls!F23","v":"May 2011"},{"$f":"ZZZ__FnCalls!F24","v":"Jun 2011"},{"$f":"ZZZ__FnCalls!F25","v":"Jul 2011"},{"$f":"ZZZ__FnCalls!F26","v":"Aug 2011"},{"$f":"ZZZ__FnCalls!F27","v":"Sep 2011"},{"$f":"ZZZ__FnCalls!F28","v":"Oct 2011"},{"$f":"ZZZ__FnCalls!F29","v":"Nov 2011"},{"$f":"ZZZ__FnCalls!F30","v":"Dec 2011"},{"$f":"ZZZ__FnCalls!H19","v":"2011"},{"$f":"ZZZ__FnCalls!F31","v":"Jan 2012"},{"$f":"ZZZ__FnCalls!F32","v":"Feb 2012"},{"$f":"ZZZ__FnCalls!F33","v":"Mar 2012"},{"$f":"ZZZ__FnCalls!F34","v":"Apr 2012"},{"$f":"ZZZ__FnCalls!F35","v":"May 2012"},{"$f":"ZZZ__FnCalls!F36","v":"Jun 2012"},{"$f":"ZZZ__FnCalls!F37","v":"Jul 2012"},{"$f":"ZZZ__FnCalls!F38","v":"Aug 2012"},{"$f":"ZZZ__FnCalls!F39","v":"Sep 2012"},{"$f":"ZZZ__FnCalls!F40","v":"Oct 2012"},{"$f":"ZZZ__FnCalls!F41","v":"Nov 2012"},{"$f":"ZZZ__FnCalls!F42","v":"Dec 2012"},{"$f":"ZZZ__FnCalls!H31","v":"2012"},{"$f":"ZZZ__FnCalls!F43","v":"Jan 2013"},{"$f":"ZZZ__FnCalls!F44","v":"Feb 2013"},{"$f":"ZZZ__FnCalls!F45","v":"Mar 2013"},{"$f":"ZZZ__FnCalls!F46","v":"Apr 2013"},{"$f":"ZZZ__FnCalls!F47","v":"May 2013"},{"$f":"ZZZ__FnCalls!F48","v":"Jun 2013"},{"$f":"ZZZ__FnCalls!F49","v":"Jul 2013"},{"$f":"ZZZ__FnCalls!F50","v":"Aug 2013"},{"$f":"ZZZ__FnCalls!F51","v":"Sep 2013"},{"$f":"ZZZ__FnCalls!F52","v":"Oct 2013"},{"$f":"ZZZ__FnCalls!F53","v":"Nov 2013"},{"$f":"ZZZ__FnCalls!F54","v":"Dec 2013"},{"$f":"ZZZ__FnCalls!H43","v":"2013"},{"$f":"ZZZ__FnCalls!F55","v":"Jan 2014"},{"$f":"ZZZ__FnCalls!F56","v":"Feb 2014"},{"$f":"ZZZ__FnCalls!F57","v":"Mar 2014"},{"$f":"ZZZ__FnCalls!F58","v":"Apr 2014"},{"$f":"ZZZ__FnCalls!F59","v":"May 2014"},{"$f":"ZZZ__FnCalls!F60","v":"Jun 2014"},{"$f":"ZZZ__FnCalls!F61","v":"Jul 2014"},{"$f":"ZZZ__FnCalls!F62","v":"Aug 2014"},{"$f":"ZZZ__FnCalls!F63","v":"Sep 2014"},{"$f":"ZZZ__FnCalls!F64","v":"Oct 2014"},{"$f":"ZZZ__FnCalls!F65","v":"Nov 2014"},{"$f":"ZZZ__FnCalls!F66","v":"Dec 2014"},{"$f":"ZZZ__FnCalls!H55","v":"2014"},{"$f":"ZZZ__FnCalls!F67","v":"Jan 2015"},{"$f":"ZZZ__FnCalls!F68","v":"Feb 2015"},{"$f":"ZZZ__FnCalls!F69","v":"Mar 2015"},{"$f":"ZZZ__FnCalls!F70","v":"Apr 2015"},{"$f":"ZZZ__FnCalls!F71","v":"May 2015"},{"$f":"ZZZ__FnCalls!F72","v":"Jun 2015"},{"$f":"ZZZ__FnCalls!F73","v":"Jul 2015"},{"$f":"ZZZ__FnCalls!F74","v":"Aug 2015"},{"$f":"ZZZ__FnCalls!F75","v":"Sep 2015"},{"$f":"ZZZ__FnCalls!F76","v":"Oct 2015"},{"$f":"ZZZ__FnCalls!F77","v":"Nov 2015"},{"$f":"ZZZ__FnCalls!F78","v":"Dec 2015"},{"$f":"ZZZ__FnCalls!H67","v":"2015"},{"$f":"ZZZ__FnCalls!F79","v":"Jan 2016"},{"$f":"ZZZ__FnCalls!F80","v":"Feb 2016"},{"$f":"ZZZ__FnCalls!F81","v":"Mar 2016"},{"$f":"ZZZ__FnCalls!F82","v":"Apr 2016"},{"$f":"ZZZ__FnCalls!F83","v":"May 2016"},{"$f":"ZZZ__FnCalls!F84","v":"Jun 2016"},{"$f":"ZZZ__FnCalls!F85","v":"Jul 2016"},{"$f":"ZZZ__FnCalls!F86","v":"Aug 2016"},{"$f":"ZZZ__FnCalls!F87","v":"Sep 2016"},{"$f":"ZZZ__FnCalls!F88","v":"Oct 2016"},{"$f":"ZZZ__FnCalls!F89","v":"Nov 2016"},{"$f":"ZZZ__FnCalls!F90","v":"Dec 2016"},{"$f":"ZZZ__FnCalls!H79","v":"2016"},{"$f":"ZZZ__FnCalls!F91","v":"Jan 2017"},{"$f":"ZZZ__FnCalls!F92","v":"Feb 2017"},{"$f":"ZZZ__FnCalls!F93","v":"Mar 2017"},{"$f":"ZZZ__FnCalls!F94","v":"Apr 2017"},{"$f":"ZZZ__FnCalls!F95","v":"May 2017"},{"$f":"ZZZ__FnCalls!F96","v":"Jun 2017"},{"$f":"ZZZ__FnCalls!F97","v":"Jul 2017"},{"$f":"ZZZ__FnCalls!F98","v":"Aug 2017"},{"$f":"ZZZ__FnCalls!F99","v":"Sep 2017"},{"$f":"ZZZ__FnCalls!F100","v":"Oct 2017"},{"$f":"ZZZ__FnCalls!F101","v":"Nov 2017"},{"$f":"ZZZ__FnCalls!F102","v":"Dec 2017"},{"$f":"ZZZ__FnCalls!H91","v":"2017"},{"$f":"ZZZ__FnCalls!F103","v":"Jan 2018"},{"$f":"ZZZ__FnCalls!F104","v":"Feb 2018"},{"$f":"ZZZ__FnCalls!F105","v":"Mar 2018"},{"$f":"ZZZ__FnCalls!F106","v":"Apr 2018"},{"$f":"ZZZ__FnCalls!F107","v":"May 2018"},{"$f":"ZZZ__FnCalls!F108","v":"Jun 2018"},{"$f":"ZZZ__FnCalls!F109","v":"Jul 2018"},{"$f":"ZZZ__FnCalls!F110","v":"Aug 2018"},{"$f":"ZZZ__FnCalls!F111","v":"Sep 2018"},{"$f":"ZZZ__FnCalls!F112","v":"Oct 2018"},{"$f":"ZZZ__FnCalls!F113","v":"Nov 2018"},{"$f":"ZZZ__FnCalls!F114","v":"Dec 2018"},{"$f":"ZZZ__FnCalls!H103","v":"2018"},{"$f":"ZZZ__FnCalls!F115","v":"Jan 2019"},{"$f":"ZZZ__FnCalls!F116","v":"Feb 2019"},{"$f":"ZZZ__FnCalls!F117","v":"Mar 2019"},{"$f":"ZZZ__FnCalls!F118","v":"Apr 2019"},{"$f":"ZZZ__FnCalls!F119","v":"May 2019"},{"$f":"ZZZ__FnCalls!F120","v":"Jun 2019"},{"$f":"ZZZ__FnCalls!F121","v":"Jul 2019"},{"$f":"ZZZ__FnCalls!F122","v":"Aug 2019"},{"$f":"ZZZ__FnCalls!F123","v":"Sep 2019"},{"$f":"ZZZ__FnCalls!F124","v":"Oct 2019"},{"$f":"ZZZ__FnCalls!F125","v":"Nov 2019"},{"$f":"ZZZ__FnCalls!F126","v":"Dec 2019"},{"$f":"ZZZ__FnCalls!H115","v":"2019"},{"$f":"ZZZ__FnCalls!F127","v":"Jan 2020"},{"$f":"ZZZ__FnCalls!F128","v":"Feb 2020"},{"$f":"ZZZ__FnCalls!F129","v":"Mar 2020"},{"$f":"ZZZ__FnCalls!F130","v":"Apr 2020"},{"$f":"ZZZ__FnCalls!F131","v":"May 2020"},{"$f":"ZZZ__FnCalls!F132","v":"Jun 2020"},{"$f":"ZZZ__FnCalls!F133","v":"Jul 2020"},{"$f":"ZZZ__FnCalls!F134","v":"Aug 2020"},{"$f":"ZZZ__FnCalls!F135","v":"Sep 2020"},{"$f":"ZZZ__FnCalls!F136","v":"Oct 2020"},{"$f":"ZZZ__FnCalls!F137","v":"Nov 2020"},{"$f":"ZZZ__FnCalls!F138","v":"Dec 2020"},{"$f":"ZZZ__FnCalls!H127","v":"2020"}]
[null,{"$f":"ZZZ__FnCalls!A7","v":"2010-01-01"},{"$f":"ZZZ__FnCalls!A8","v":"2010-02-01"},{"$f":"ZZZ__FnCalls!A9","v":"2010-03-01"},{"$f":"ZZZ__FnCalls!A10","v":"2010-04-01"},{"$f":"ZZZ__FnCalls!A11","v":"2010-05-01"},{"$f":"ZZZ__FnCalls!A12","v":"2010-06-01"},{"$f":"ZZZ__FnCalls!A13","v":"2010-07-01"},{"$f":"ZZZ__FnCalls!A14","v":"2010-08-01"},{"$f":"ZZZ__FnCalls!A15","v":"2010-09-01"},{"$f":"ZZZ__FnCalls!A16","v":"2010-10-01"},{"$f":"ZZZ__FnCalls!A17","v":"2010-11-01"},{"$f":"ZZZ__FnCalls!A18","v":"2010-12-01"},{"$f":"ZZZ__FnCalls!A7","v":"2010-01-01"},{"$f":"ZZZ__FnCalls!A19","v":"2011-01-01"},{"$f":"ZZZ__FnCalls!A20","v":"2011-02-01"},{"$f":"ZZZ__FnCalls!A21","v":"2011-03-01"},{"$f":"ZZZ__FnCalls!A22","v":"2011-04-01"},{"$f":"ZZZ__FnCalls!A23","v":"2011-05-01"},{"$f":"ZZZ__FnCalls!A24","v":"2011-06-01"},{"$f":"ZZZ__FnCalls!A25","v":"2011-07-01"},{"$f":"ZZZ__FnCalls!A26","v":"2011-08-01"},{"$f":"ZZZ__FnCalls!A27","v":"2011-09-01"},{"$f":"ZZZ__FnCalls!A28","v":"2011-10-01"},{"$f":"ZZZ__FnCalls!A29","v":"2011-11-01"},{"$f":"ZZZ__FnCalls!A30","v":"2011-12-01"},{"$f":"ZZZ__FnCalls!A19","v":"2011-01-01"},{"$f":"ZZZ__FnCalls!A31","v":"2012-01-01"},{"$f":"ZZZ__FnCalls!A32","v":"2012-02-01"},{"$f":"ZZZ__FnCalls!A33","v":"2012-03-01"},{"$f":"ZZZ__FnCalls!A34","v":"2012-04-01"},{"$f":"ZZZ__FnCalls!A35","v":"2012-05-01"},{"$f":"ZZZ__FnCalls!A36","v":"2012-06-01"},{"$f":"ZZZ__FnCalls!A37","v":"2012-07-01"},{"$f":"ZZZ__FnCalls!A38","v":"2012-08-01"},{"$f":"ZZZ__FnCalls!A39","v":"2012-09-01"},{"$f":"ZZZ__FnCalls!A40","v":"2012-10-01"},{"$f":"ZZZ__FnCalls!A41","v":"2012-11-01"},{"$f":"ZZZ__FnCalls!A42","v":"2012-12-01"},{"$f":"ZZZ__FnCalls!A31","v":"2012-01-01"},{"$f":"ZZZ__FnCalls!A43","v":"2013-01-01"},{"$f":"ZZZ__FnCalls!A44","v":"2013-02-01"},{"$f":"ZZZ__FnCalls!A45","v":"2013-03-01"},{"$f":"ZZZ__FnCalls!A46","v":"2013-04-01"},{"$f":"ZZZ__FnCalls!A47","v":"2013-05-01"},{"$f":"ZZZ__FnCalls!A48","v":"2013-06-01"},{"$f":"ZZZ__FnCalls!A49","v":"2013-07-01"},{"$f":"ZZZ__FnCalls!A50","v":"2013-08-01"},{"$f":"ZZZ__FnCalls!A51","v":"2013-09-01"},{"$f":"ZZZ__FnCalls!A52","v":"2013-10-01"},{"$f":"ZZZ__FnCalls!A53","v":"2013-11-01"},{"$f":"ZZZ__FnCalls!A54","v":"2013-12-01"},{"$f":"ZZZ__FnCalls!A43","v":"2013-01-01"},{"$f":"ZZZ__FnCalls!A55","v":"2014-01-01"},{"$f":"ZZZ__FnCalls!A56","v":"2014-02-01"},{"$f":"ZZZ__FnCalls!A57","v":"2014-03-01"},{"$f":"ZZZ__FnCalls!A58","v":"2014-04-01"},{"$f":"ZZZ__FnCalls!A59","v":"2014-05-01"},{"$f":"ZZZ__FnCalls!A60","v":"2014-06-01"},{"$f":"ZZZ__FnCalls!A61","v":"2014-07-01"},{"$f":"ZZZ__FnCalls!A62","v":"2014-08-01"},{"$f":"ZZZ__FnCalls!A63","v":"2014-09-01"},{"$f":"ZZZ__FnCalls!A64","v":"2014-10-01"},{"$f":"ZZZ__FnCalls!A65","v":"2014-11-01"},{"$f":"ZZZ__FnCalls!A66","v":"2014-12-01"},{"$f":"ZZZ__FnCalls!A55","v":"2014-01-01"},{"$f":"ZZZ__FnCalls!A67","v":"2015-01-01"},{"$f":"ZZZ__FnCalls!A68","v":"2015-02-01"},{"$f":"ZZZ__FnCalls!A69","v":"2015-03-01"},{"$f":"ZZZ__FnCalls!A70","v":"2015-04-01"},{"$f":"ZZZ__FnCalls!A71","v":"2015-05-01"},{"$f":"ZZZ__FnCalls!A72","v":"2015-06-01"},{"$f":"ZZZ__FnCalls!A73","v":"2015-07-01"},{"$f":"ZZZ__FnCalls!A74","v":"2015-08-01"},{"$f":"ZZZ__FnCalls!A75","v":"2015-09-01"},{"$f":"ZZZ__FnCalls!A76","v":"2015-10-01"},{"$f":"ZZZ__FnCalls!A77","v":"2015-11-01"},{"$f":"ZZZ__FnCalls!A78","v":"2015-12-01"},{"$f":"ZZZ__FnCalls!A67","v":"2015-01-01"},{"$f":"ZZZ__FnCalls!A79","v":"2016-01-01"},{"$f":"ZZZ__FnCalls!A80","v":"2016-02-01"},{"$f":"ZZZ__FnCalls!A81","v":"2016-03-01"},{"$f":"ZZZ__FnCalls!A82","v":"2016-04-01"},{"$f":"ZZZ__FnCalls!A83","v":"2016-05-01"},{"$f":"ZZZ__FnCalls!A84","v":"2016-06-01"},{"$f":"ZZZ__FnCalls!A85","v":"2016-07-01"},{"$f":"ZZZ__FnCalls!A86","v":"2016-08-01"},{"$f":"ZZZ__FnCalls!A87","v":"2016-09-01"},{"$f":"ZZZ__FnCalls!A88","v":"2016-10-01"},{"$f":"ZZZ__FnCalls!A89","v":"2016-11-01"},{"$f":"ZZZ__FnCalls!A90","v":"2016-12-01"},{"$f":"ZZZ__FnCalls!A79","v":"2016-01-01"},{"$f":"ZZZ__FnCalls!A91","v":"2017-01-01"},{"$f":"ZZZ__FnCalls!A92","v":"2017-02-01"},{"$f":"ZZZ__FnCalls!A93","v":"2017-03-01"},{"$f":"ZZZ__FnCalls!A94","v":"2017-04-01"},{"$f":"ZZZ__FnCalls!A95","v":"2017-05-01"},{"$f":"ZZZ__FnCalls!A96","v":"2017-06-01"},{"$f":"ZZZ__FnCalls!A97","v":"2017-07-01"},{"$f":"ZZZ__FnCalls!A98","v":"2017-08-01"},{"$f":"ZZZ__FnCalls!A99","v":"2017-09-01"},{"$f":"ZZZ__FnCalls!A100","v":"2017-10-01"},{"$f":"ZZZ__FnCalls!A101","v":"2017-11-01"},{"$f":"ZZZ__FnCalls!A102","v":"2017-12-01"},{"$f":"ZZZ__FnCalls!A91","v":"2017-01-01"},{"$f":"ZZZ__FnCalls!A103","v":"2018-01-01"},{"$f":"ZZZ__FnCalls!A104","v":"2018-02-01"},{"$f":"ZZZ__FnCalls!A105","v":"2018-03-01"},{"$f":"ZZZ__FnCalls!A106","v":"2018-04-01"},{"$f":"ZZZ__FnCalls!A107","v":"2018-05-01"},{"$f":"ZZZ__FnCalls!A108","v":"2018-06-01"},{"$f":"ZZZ__FnCalls!A109","v":"2018-07-01"},{"$f":"ZZZ__FnCalls!A110","v":"2018-08-01"},{"$f":"ZZZ__FnCalls!A111","v":"2018-09-01"},{"$f":"ZZZ__FnCalls!A112","v":"2018-10-01"},{"$f":"ZZZ__FnCalls!A113","v":"2018-11-01"},{"$f":"ZZZ__FnCalls!A114","v":"2018-12-01"},{"$f":"ZZZ__FnCalls!A103","v":"2018-01-01"},{"$f":"ZZZ__FnCalls!A115","v":"2019-01-01"},{"$f":"ZZZ__FnCalls!A116","v":"2019-02-01"},{"$f":"ZZZ__FnCalls!A117","v":"2019-03-01"},{"$f":"ZZZ__FnCalls!A118","v":"2019-04-01"},{"$f":"ZZZ__FnCalls!A119","v":"2019-05-01"},{"$f":"ZZZ__FnCalls!A120","v":"2019-06-01"},{"$f":"ZZZ__FnCalls!A121","v":"2019-07-01"},{"$f":"ZZZ__FnCalls!A122","v":"2019-08-01"},{"$f":"ZZZ__FnCalls!A123","v":"2019-09-01"},{"$f":"ZZZ__FnCalls!A124","v":"2019-10-01"},{"$f":"ZZZ__FnCalls!A125","v":"2019-11-01"},{"$f":"ZZZ__FnCalls!A126","v":"2019-12-01"},{"$f":"ZZZ__FnCalls!A115","v":"2019-01-01"},{"$f":"ZZZ__FnCalls!A127","v":"2020-01-01"},{"$f":"ZZZ__FnCalls!A128","v":"2020-02-01"},{"$f":"ZZZ__FnCalls!A129","v":"2020-03-01"},{"$f":"ZZZ__FnCalls!A130","v":"2020-04-01"},{"$f":"ZZZ__FnCalls!A131","v":"2020-05-01"},{"$f":"ZZZ__FnCalls!A132","v":"2020-06-01"},{"$f":"ZZZ__FnCalls!A133","v":"2020-07-01"},{"$f":"ZZZ__FnCalls!A134","v":"2020-08-01"},{"$f":"ZZZ__FnCalls!A135","v":"2020-09-01"},{"$f":"ZZZ__FnCalls!A136","v":"2020-10-01"},{"$f":"ZZZ__FnCalls!A137","v":"2020-11-01"},{"$f":"ZZZ__FnCalls!A138","v":"2020-12-01"},{"$f":"ZZZ__FnCalls!A127","v":"2020-01-01"}]
[{"$f":"\"Employment_stdev_2\"","v":"Employment_stdev_2"}]
[null,{"$f":"ZZZ__FnCalls!F7","v":"Jan 2010"},{"$f":"ZZZ__FnCalls!F8","v":"Feb 2010"},{"$f":"ZZZ__FnCalls!F9","v":"Mar 2010"},{"$f":"ZZZ__FnCalls!F10","v":"Apr 2010"},{"$f":"ZZZ__FnCalls!F11","v":"May 2010"},{"$f":"ZZZ__FnCalls!F12","v":"Jun 2010"},{"$f":"ZZZ__FnCalls!F13","v":"Jul 2010"},{"$f":"ZZZ__FnCalls!F14","v":"Aug 2010"},{"$f":"ZZZ__FnCalls!F15","v":"Sep 2010"},{"$f":"ZZZ__FnCalls!F16","v":"Oct 2010"},{"$f":"ZZZ__FnCalls!F17","v":"Nov 2010"},{"$f":"ZZZ__FnCalls!F18","v":"Dec 2010"},{"$f":"ZZZ__FnCalls!H7","v":"2010"},{"$f":"ZZZ__FnCalls!F19","v":"Jan 2011"},{"$f":"ZZZ__FnCalls!F20","v":"Feb 2011"},{"$f":"ZZZ__FnCalls!F21","v":"Mar 2011"},{"$f":"ZZZ__FnCalls!F22","v":"Apr 2011"},{"$f":"ZZZ__FnCalls!F23","v":"May 2011"},{"$f":"ZZZ__FnCalls!F24","v":"Jun 2011"},{"$f":"ZZZ__FnCalls!F25","v":"Jul 2011"},{"$f":"ZZZ__FnCalls!F26","v":"Aug 2011"},{"$f":"ZZZ__FnCalls!F27","v":"Sep 2011"},{"$f":"ZZZ__FnCalls!F28","v":"Oct 2011"},{"$f":"ZZZ__FnCalls!F29","v":"Nov 2011"},{"$f":"ZZZ__FnCalls!F30","v":"Dec 2011"},{"$f":"ZZZ__FnCalls!H19","v":"2011"},{"$f":"ZZZ__FnCalls!F31","v":"Jan 2012"},{"$f":"ZZZ__FnCalls!F32","v":"Feb 2012"},{"$f":"ZZZ__FnCalls!F33","v":"Mar 2012"},{"$f":"ZZZ__FnCalls!F34","v":"Apr 2012"},{"$f":"ZZZ__FnCalls!F35","v":"May 2012"},{"$f":"ZZZ__FnCalls!F36","v":"Jun 2012"},{"$f":"ZZZ__FnCalls!F37","v":"Jul 2012"},{"$f":"ZZZ__FnCalls!F38","v":"Aug 2012"},{"$f":"ZZZ__FnCalls!F39","v":"Sep 2012"},{"$f":"ZZZ__FnCalls!F40","v":"Oct 2012"},{"$f":"ZZZ__FnCalls!F41","v":"Nov 2012"},{"$f":"ZZZ__FnCalls!F42","v":"Dec 2012"},{"$f":"ZZZ__FnCalls!H31","v":"2012"},{"$f":"ZZZ__FnCalls!F43","v":"Jan 2013"},{"$f":"ZZZ__FnCalls!F44","v":"Feb 2013"},{"$f":"ZZZ__FnCalls!F45","v":"Mar 2013"},{"$f":"ZZZ__FnCalls!F46","v":"Apr 2013"},{"$f":"ZZZ__FnCalls!F47","v":"May 2013"},{"$f":"ZZZ__FnCalls!F48","v":"Jun 2013"},{"$f":"ZZZ__FnCalls!F49","v":"Jul 2013"},{"$f":"ZZZ__FnCalls!F50","v":"Aug 2013"},{"$f":"ZZZ__FnCalls!F51","v":"Sep 2013"},{"$f":"ZZZ__FnCalls!F52","v":"Oct 2013"},{"$f":"ZZZ__FnCalls!F53","v":"Nov 2013"},{"$f":"ZZZ__FnCalls!F54","v":"Dec 2013"},{"$f":"ZZZ__FnCalls!H43","v":"2013"},{"$f":"ZZZ__FnCalls!F55","v":"Jan 2014"},{"$f":"ZZZ__FnCalls!F56","v":"Feb 2014"},{"$f":"ZZZ__FnCalls!F57","v":"Mar 2014"},{"$f":"ZZZ__FnCalls!F58","v":"Apr 2014"},{"$f":"ZZZ__FnCalls!F59","v":"May 2014"},{"$f":"ZZZ__FnCalls!F60","v":"Jun 2014"},{"$f":"ZZZ__FnCalls!F61","v":"Jul 2014"},{"$f":"ZZZ__FnCalls!F62","v":"Aug 2014"},{"$f":"ZZZ__FnCalls!F63","v":"Sep 2014"},{"$f":"ZZZ__FnCalls!F64","v":"Oct 2014"},{"$f":"ZZZ__FnCalls!F65","v":"Nov 2014"},{"$f":"ZZZ__FnCalls!F66","v":"Dec 2014"},{"$f":"ZZZ__FnCalls!H55","v":"2014"},{"$f":"ZZZ__FnCalls!F67","v":"Jan 2015"},{"$f":"ZZZ__FnCalls!F68","v":"Feb 2015"},{"$f":"ZZZ__FnCalls!F69","v":"Mar 2015"},{"$f":"ZZZ__FnCalls!F70","v":"Apr 2015"},{"$f":"ZZZ__FnCalls!F71","v":"May 2015"},{"$f":"ZZZ__FnCalls!F72","v":"Jun 2015"},{"$f":"ZZZ__FnCalls!F73","v":"Jul 2015"},{"$f":"ZZZ__FnCalls!F74","v":"Aug 2015"},{"$f":"ZZZ__FnCalls!F75","v":"Sep 2015"},{"$f":"ZZZ__FnCalls!F76","v":"Oct 2015"},{"$f":"ZZZ__FnCalls!F77","v":"Nov 2015"},{"$f":"ZZZ__FnCalls!F78","v":"Dec 2015"},{"$f":"ZZZ__FnCalls!H67","v":"2015"},{"$f":"ZZZ__FnCalls!F79","v":"Jan 2016"},{"$f":"ZZZ__FnCalls!F80","v":"Feb 2016"},{"$f":"ZZZ__FnCalls!F81","v":"Mar 2016"},{"$f":"ZZZ__FnCalls!F82","v":"Apr 2016"},{"$f":"ZZZ__FnCalls!F83","v":"May 2016"},{"$f":"ZZZ__FnCalls!F84","v":"Jun 2016"},{"$f":"ZZZ__FnCalls!F85","v":"Jul 2016"},{"$f":"ZZZ__FnCalls!F86","v":"Aug 2016"},{"$f":"ZZZ__FnCalls!F87","v":"Sep 2016"},{"$f":"ZZZ__FnCalls!F88","v":"Oct 2016"},{"$f":"ZZZ__FnCalls!F89","v":"Nov 2016"},{"$f":"ZZZ__FnCalls!F90","v":"Dec 2016"},{"$f":"ZZZ__FnCalls!H79","v":"2016"},{"$f":"ZZZ__FnCalls!F91","v":"Jan 2017"},{"$f":"ZZZ__FnCalls!F92","v":"Feb 2017"},{"$f":"ZZZ__FnCalls!F93","v":"Mar 2017"},{"$f":"ZZZ__FnCalls!F94","v":"Apr 2017"},{"$f":"ZZZ__FnCalls!F95","v":"May 2017"},{"$f":"ZZZ__FnCalls!F96","v":"Jun 2017"},{"$f":"ZZZ__FnCalls!F97","v":"Jul 2017"},{"$f":"ZZZ__FnCalls!F98","v":"Aug 2017"},{"$f":"ZZZ__FnCalls!F99","v":"Sep 2017"},{"$f":"ZZZ__FnCalls!F100","v":"Oct 2017"},{"$f":"ZZZ__FnCalls!F101","v":"Nov 2017"},{"$f":"ZZZ__FnCalls!F102","v":"Dec 2017"},{"$f":"ZZZ__FnCalls!H91","v":"2017"},{"$f":"ZZZ__FnCalls!F103","v":"Jan 2018"},{"$f":"ZZZ__FnCalls!F104","v":"Feb 2018"},{"$f":"ZZZ__FnCalls!F105","v":"Mar 2018"},{"$f":"ZZZ__FnCalls!F106","v":"Apr 2018"},{"$f":"ZZZ__FnCalls!F107","v":"May 2018"},{"$f":"ZZZ__FnCalls!F108","v":"Jun 2018"},{"$f":"ZZZ__FnCalls!F109","v":"Jul 2018"},{"$f":"ZZZ__FnCalls!F110","v":"Aug 2018"},{"$f":"ZZZ__FnCalls!F111","v":"Sep 2018"},{"$f":"ZZZ__FnCalls!F112","v":"Oct 2018"},{"$f":"ZZZ__FnCalls!F113","v":"Nov 2018"},{"$f":"ZZZ__FnCalls!F114","v":"Dec 2018"},{"$f":"ZZZ__FnCalls!H103","v":"2018"},{"$f":"ZZZ__FnCalls!F115","v":"Jan 2019"},{"$f":"ZZZ__FnCalls!F116","v":"Feb 2019"},{"$f":"ZZZ__FnCalls!F117","v":"Mar 2019"},{"$f":"ZZZ__FnCalls!F118","v":"Apr 2019"},{"$f":"ZZZ__FnCalls!F119","v":"May 2019"},{"$f":"ZZZ__FnCalls!F120","v":"Jun 2019"},{"$f":"ZZZ__FnCalls!F121","v":"Jul 2019"},{"$f":"ZZZ__FnCalls!F122","v":"Aug 2019"},{"$f":"ZZZ__FnCalls!F123","v":"Sep 2019"},{"$f":"ZZZ__FnCalls!F124","v":"Oct 2019"},{"$f":"ZZZ__FnCalls!F125","v":"Nov 2019"},{"$f":"ZZZ__FnCalls!F126","v":"Dec 2019"},{"$f":"ZZZ__FnCalls!H115","v":"2019"},{"$f":"ZZZ__FnCalls!F127","v":"Jan 2020"},{"$f":"ZZZ__FnCalls!F128","v":"Feb 2020"},{"$f":"ZZZ__FnCalls!F129","v":"Mar 2020"},{"$f":"ZZZ__FnCalls!F130","v":"Apr 2020"},{"$f":"ZZZ__FnCalls!F131","v":"May 2020"},{"$f":"ZZZ__FnCalls!F132","v":"Jun 2020"},{"$f":"ZZZ__FnCalls!F133","v":"Jul 2020"},{"$f":"ZZZ__FnCalls!F134","v":"Aug 2020"},{"$f":"ZZZ__FnCalls!F135","v":"Sep 2020"},{"$f":"ZZZ__FnCalls!F136","v":"Oct 2020"},{"$f":"ZZZ__FnCalls!F137","v":"Nov 2020"},{"$f":"ZZZ__FnCalls!F138","v":"Dec 2020"},{"$f":"ZZZ__FnCalls!H127","v":"2020"}]
[null,{"$f":"ZZZ__FnCalls!F7","v":"Jan 2010"},{"$f":"ZZZ__FnCalls!F8","v":"Feb 2010"},{"$f":"ZZZ__FnCalls!F9","v":"Mar 2010"},{"$f":"ZZZ__FnCalls!F10","v":"Apr 2010"},{"$f":"ZZZ__FnCalls!F11","v":"May 2010"},{"$f":"ZZZ__FnCalls!F12","v":"Jun 2010"},{"$f":"ZZZ__FnCalls!F13","v":"Jul 2010"},{"$f":"ZZZ__FnCalls!F14","v":"Aug 2010"},{"$f":"ZZZ__FnCalls!F15","v":"Sep 2010"},{"$f":"ZZZ__FnCalls!F16","v":"Oct 2010"},{"$f":"ZZZ__FnCalls!F17","v":"Nov 2010"},{"$f":"ZZZ__FnCalls!F18","v":"Dec 2010"},{"$f":"ZZZ__FnCalls!F7","v":"Jan 2010"},{"$f":"ZZZ__FnCalls!F19","v":"Jan 2011"},{"$f":"ZZZ__FnCalls!F20","v":"Feb 2011"},{"$f":"ZZZ__FnCalls!F21","v":"Mar 2011"},{"$f":"ZZZ__FnCalls!F22","v":"Apr 2011"},{"$f":"ZZZ__FnCalls!F23","v":"May 2011"},{"$f":"ZZZ__FnCalls!F24","v":"Jun 2011"},{"$f":"ZZZ__FnCalls!F25","v":"Jul 2011"},{"$f":"ZZZ__FnCalls!F26","v":"Aug 2011"},{"$f":"ZZZ__FnCalls!F27","v":"Sep 2011"},{"$f":"ZZZ__FnCalls!F28","v":"Oct 2011"},{"$f":"ZZZ__FnCalls!F29","v":"Nov 2011"},{"$f":"ZZZ__FnCalls!F30","v":"Dec 2011"},{"$f":"ZZZ__FnCalls!F19","v":"Jan 2011"},{"$f":"ZZZ__FnCalls!F31","v":"Jan 2012"},{"$f":"ZZZ__FnCalls!F32","v":"Feb 2012"},{"$f":"ZZZ__FnCalls!F33","v":"Mar 2012"},{"$f":"ZZZ__FnCalls!F34","v":"Apr 2012"},{"$f":"ZZZ__FnCalls!F35","v":"May 2012"},{"$f":"ZZZ__FnCalls!F36","v":"Jun 2012"},{"$f":"ZZZ__FnCalls!F37","v":"Jul 2012"},{"$f":"ZZZ__FnCalls!F38","v":"Aug 2012"},{"$f":"ZZZ__FnCalls!F39","v":"Sep 2012"},{"$f":"ZZZ__FnCalls!F40","v":"Oct 2012"},{"$f":"ZZZ__FnCalls!F41","v":"Nov 2012"},{"$f":"ZZZ__FnCalls!F42","v":"Dec 2012"},{"$f":"ZZZ__FnCalls!F31","v":"Jan 2012"},{"$f":"ZZZ__FnCalls!F43","v":"Jan 2013"},{"$f":"ZZZ__FnCalls!F44","v":"Feb 2013"},{"$f":"ZZZ__FnCalls!F45","v":"Mar 2013"},{"$f":"ZZZ__FnCalls!F46","v":"Apr 2013"},{"$f":"ZZZ__FnCalls!F47","v":"May 2013"},{"$f":"ZZZ__FnCalls!F48","v":"Jun 2013"},{"$f":"ZZZ__FnCalls!F49","v":"Jul 2013"},{"$f":"ZZZ__FnCalls!F50","v":"Aug 2013"},{"$f":"ZZZ__FnCalls!F51","v":"Sep 2013"},{"$f":"ZZZ__FnCalls!F52","v":"Oct 2013"},{"$f":"ZZZ__FnCalls!F53","v":"Nov 2013"},{"$f":"ZZZ__FnCalls!F54","v":"Dec 2013"},{"$f":"ZZZ__FnCalls!F43","v":"Jan 2013"},{"$f":"ZZZ__FnCalls!F55","v":"Jan 2014"},{"$f":"ZZZ__FnCalls!F56","v":"Feb 2014"},{"$f":"ZZZ__FnCalls!F57","v":"Mar 2014"},{"$f":"ZZZ__FnCalls!F58","v":"Apr 2014"},{"$f":"ZZZ__FnCalls!F59","v":"May 2014"},{"$f":"ZZZ__FnCalls!F60","v":"Jun 2014"},{"$f":"ZZZ__FnCalls!F61","v":"Jul 2014"},{"$f":"ZZZ__FnCalls!F62","v":"Aug 2014"},{"$f":"ZZZ__FnCalls!F63","v":"Sep 2014"},{"$f":"ZZZ__FnCalls!F64","v":"Oct 2014"},{"$f":"ZZZ__FnCalls!F65","v":"Nov 2014"},{"$f":"ZZZ__FnCalls!F66","v":"Dec 2014"},{"$f":"ZZZ__FnCalls!F55","v":"Jan 2014"},{"$f":"ZZZ__FnCalls!F67","v":"Jan 2015"},{"$f":"ZZZ__FnCalls!F68","v":"Feb 2015"},{"$f":"ZZZ__FnCalls!F69","v":"Mar 2015"},{"$f":"ZZZ__FnCalls!F70","v":"Apr 2015"},{"$f":"ZZZ__FnCalls!F71","v":"May 2015"},{"$f":"ZZZ__FnCalls!F72","v":"Jun 2015"},{"$f":"ZZZ__FnCalls!F73","v":"Jul 2015"},{"$f":"ZZZ__FnCalls!F74","v":"Aug 2015"},{"$f":"ZZZ__FnCalls!F75","v":"Sep 2015"},{"$f":"ZZZ__FnCalls!F76","v":"Oct 2015"},{"$f":"ZZZ__FnCalls!F77","v":"Nov 2015"},{"$f":"ZZZ__FnCalls!F78","v":"Dec 2015"},{"$f":"ZZZ__FnCalls!F67","v":"Jan 2015"},{"$f":"ZZZ__FnCalls!F79","v":"Jan 2016"},{"$f":"ZZZ__FnCalls!F80","v":"Feb 2016"},{"$f":"ZZZ__FnCalls!F81","v":"Mar 2016"},{"$f":"ZZZ__FnCalls!F82","v":"Apr 2016"},{"$f":"ZZZ__FnCalls!F83","v":"May 2016"},{"$f":"ZZZ__FnCalls!F84","v":"Jun 2016"},{"$f":"ZZZ__FnCalls!F85","v":"Jul 2016"},{"$f":"ZZZ__FnCalls!F86","v":"Aug 2016"},{"$f":"ZZZ__FnCalls!F87","v":"Sep 2016"},{"$f":"ZZZ__FnCalls!F88","v":"Oct 2016"},{"$f":"ZZZ__FnCalls!F89","v":"Nov 2016"},{"$f":"ZZZ__FnCalls!F90","v":"Dec 2016"},{"$f":"ZZZ__FnCalls!F79","v":"Jan 2016"},{"$f":"ZZZ__FnCalls!F91","v":"Jan 2017"},{"$f":"ZZZ__FnCalls!F92","v":"Feb 2017"},{"$f":"ZZZ__FnCalls!F93","v":"Mar 2017"},{"$f":"ZZZ__FnCalls!F94","v":"Apr 2017"},{"$f":"ZZZ__FnCalls!F95","v":"May 2017"},{"$f":"ZZZ__FnCalls!F96","v":"Jun 2017"},{"$f":"ZZZ__FnCalls!F97","v":"Jul 2017"},{"$f":"ZZZ__FnCalls!F98","v":"Aug 2017"},{"$f":"ZZZ__FnCalls!F99","v":"Sep 2017"},{"$f":"ZZZ__FnCalls!F100","v":"Oct 2017"},{"$f":"ZZZ__FnCalls!F101","v":"Nov 2017"},{"$f":"ZZZ__FnCalls!F102","v":"Dec 2017"},{"$f":"ZZZ__FnCalls!F91","v":"Jan 2017"},{"$f":"ZZZ__FnCalls!F103","v":"Jan 2018"},{"$f":"ZZZ__FnCalls!F104","v":"Feb 2018"},{"$f":"ZZZ__FnCalls!F105","v":"Mar 2018"},{"$f":"ZZZ__FnCalls!F106","v":"Apr 2018"},{"$f":"ZZZ__FnCalls!F107","v":"May 2018"},{"$f":"ZZZ__FnCalls!F108","v":"Jun 2018"},{"$f":"ZZZ__FnCalls!F109","v":"Jul 2018"},{"$f":"ZZZ__FnCalls!F110","v":"Aug 2018"},{"$f":"ZZZ__FnCalls!F111","v":"Sep 2018"},{"$f":"ZZZ__FnCalls!F112","v":"Oct 2018"},{"$f":"ZZZ__FnCalls!F113","v":"Nov 2018"},{"$f":"ZZZ__FnCalls!F114","v":"Dec 2018"},{"$f":"ZZZ__FnCalls!F103","v":"Jan 2018"},{"$f":"ZZZ__FnCalls!F115","v":"Jan 2019"},{"$f":"ZZZ__FnCalls!F116","v":"Feb 2019"},{"$f":"ZZZ__FnCalls!F117","v":"Mar 2019"},{"$f":"ZZZ__FnCalls!F118","v":"Apr 2019"},{"$f":"ZZZ__FnCalls!F119","v":"May 2019"},{"$f":"ZZZ__FnCalls!F120","v":"Jun 2019"},{"$f":"ZZZ__FnCalls!F121","v":"Jul 2019"},{"$f":"ZZZ__FnCalls!F122","v":"Aug 2019"},{"$f":"ZZZ__FnCalls!F123","v":"Sep 2019"},{"$f":"ZZZ__FnCalls!F124","v":"Oct 2019"},{"$f":"ZZZ__FnCalls!F125","v":"Nov 2019"},{"$f":"ZZZ__FnCalls!F126","v":"Dec 2019"},{"$f":"ZZZ__FnCalls!F115","v":"Jan 2019"},{"$f":"ZZZ__FnCalls!F127","v":"Jan 2020"},{"$f":"ZZZ__FnCalls!F128","v":"Feb 2020"},{"$f":"ZZZ__FnCalls!F129","v":"Mar 2020"},{"$f":"ZZZ__FnCalls!F130","v":"Apr 2020"},{"$f":"ZZZ__FnCalls!F131","v":"May 2020"},{"$f":"ZZZ__FnCalls!F132","v":"Jun 2020"},{"$f":"ZZZ__FnCalls!F133","v":"Jul 2020"},{"$f":"ZZZ__FnCalls!F134","v":"Aug 2020"},{"$f":"ZZZ__FnCalls!F135","v":"Sep 2020"},{"$f":"ZZZ__FnCalls!F136","v":"Oct 2020"},{"$f":"ZZZ__FnCalls!F137","v":"Nov 2020"},{"$f":"ZZZ__FnCalls!F138","v":"Dec 2020"},{"$f":"ZZZ__FnCalls!F127","v":"Jan 2020"}]
[{"$f":"\"Employment_Desired_mean_1\"","v":"Employment_Desired_mean_1"}]
[null,{"$f":"ZZZ__FnCalls!F7","v":"Jan 2010"},{"$f":"ZZZ__FnCalls!F8","v":"Feb 2010"},{"$f":"ZZZ__FnCalls!F9","v":"Mar 2010"},{"$f":"ZZZ__FnCalls!F10","v":"Apr 2010"},{"$f":"ZZZ__FnCalls!F11","v":"May 2010"},{"$f":"ZZZ__FnCalls!F12","v":"Jun 2010"},{"$f":"ZZZ__FnCalls!F13","v":"Jul 2010"},{"$f":"ZZZ__FnCalls!F14","v":"Aug 2010"},{"$f":"ZZZ__FnCalls!F15","v":"Sep 2010"},{"$f":"ZZZ__FnCalls!F16","v":"Oct 2010"},{"$f":"ZZZ__FnCalls!F17","v":"Nov 2010"},{"$f":"ZZZ__FnCalls!F18","v":"Dec 2010"},{"$f":"ZZZ__FnCalls!H7","v":"2010"},{"$f":"ZZZ__FnCalls!F19","v":"Jan 2011"},{"$f":"ZZZ__FnCalls!F20","v":"Feb 2011"},{"$f":"ZZZ__FnCalls!F21","v":"Mar 2011"},{"$f":"ZZZ__FnCalls!F22","v":"Apr 2011"},{"$f":"ZZZ__FnCalls!F23","v":"May 2011"},{"$f":"ZZZ__FnCalls!F24","v":"Jun 2011"},{"$f":"ZZZ__FnCalls!F25","v":"Jul 2011"},{"$f":"ZZZ__FnCalls!F26","v":"Aug 2011"},{"$f":"ZZZ__FnCalls!F27","v":"Sep 2011"},{"$f":"ZZZ__FnCalls!F28","v":"Oct 2011"},{"$f":"ZZZ__FnCalls!F29","v":"Nov 2011"},{"$f":"ZZZ__FnCalls!F30","v":"Dec 2011"},{"$f":"ZZZ__FnCalls!H19","v":"2011"},{"$f":"ZZZ__FnCalls!F31","v":"Jan 2012"},{"$f":"ZZZ__FnCalls!F32","v":"Feb 2012"},{"$f":"ZZZ__FnCalls!F33","v":"Mar 2012"},{"$f":"ZZZ__FnCalls!F34","v":"Apr 2012"},{"$f":"ZZZ__FnCalls!F35","v":"May 2012"},{"$f":"ZZZ__FnCalls!F36","v":"Jun 2012"},{"$f":"ZZZ__FnCalls!F37","v":"Jul 2012"},{"$f":"ZZZ__FnCalls!F38","v":"Aug 2012"},{"$f":"ZZZ__FnCalls!F39","v":"Sep 2012"},{"$f":"ZZZ__FnCalls!F40","v":"Oct 2012"},{"$f":"ZZZ__FnCalls!F41","v":"Nov 2012"},{"$f":"ZZZ__FnCalls!F42","v":"Dec 2012"},{"$f":"ZZZ__FnCalls!H31","v":"2012"},{"$f":"ZZZ__FnCalls!F43","v":"Jan 2013"},{"$f":"ZZZ__FnCalls!F44","v":"Feb 2013"},{"$f":"ZZZ__FnCalls!F45","v":"Mar 2013"},{"$f":"ZZZ__FnCalls!F46","v":"Apr 2013"},{"$f":"ZZZ__FnCalls!F47","v":"May 2013"},{"$f":"ZZZ__FnCalls!F48","v":"Jun 2013"},{"$f":"ZZZ__FnCalls!F49","v":"Jul 2013"},{"$f":"ZZZ__FnCalls!F50","v":"Aug 2013"},{"$f":"ZZZ__FnCalls!F51","v":"Sep 2013"},{"$f":"ZZZ__FnCalls!F52","v":"Oct 2013"},{"$f":"ZZZ__FnCalls!F53","v":"Nov 2013"},{"$f":"ZZZ__FnCalls!F54","v":"Dec 2013"},{"$f":"ZZZ__FnCalls!H43","v":"2013"},{"$f":"ZZZ__FnCalls!F55","v":"Jan 2014"},{"$f":"ZZZ__FnCalls!F56","v":"Feb 2014"},{"$f":"ZZZ__FnCalls!F57","v":"Mar 2014"},{"$f":"ZZZ__FnCalls!F58","v":"Apr 2014"},{"$f":"ZZZ__FnCalls!F59","v":"May 2014"},{"$f":"ZZZ__FnCalls!F60","v":"Jun 2014"},{"$f":"ZZZ__FnCalls!F61","v":"Jul 2014"},{"$f":"ZZZ__FnCalls!F62","v":"Aug 2014"},{"$f":"ZZZ__FnCalls!F63","v":"Sep 2014"},{"$f":"ZZZ__FnCalls!F64","v":"Oct 2014"},{"$f":"ZZZ__FnCalls!F65","v":"Nov 2014"},{"$f":"ZZZ__FnCalls!F66","v":"Dec 2014"},{"$f":"ZZZ__FnCalls!H55","v":"2014"},{"$f":"ZZZ__FnCalls!F67","v":"Jan 2015"},{"$f":"ZZZ__FnCalls!F68","v":"Feb 2015"},{"$f":"ZZZ__FnCalls!F69","v":"Mar 2015"},{"$f":"ZZZ__FnCalls!F70","v":"Apr 2015"},{"$f":"ZZZ__FnCalls!F71","v":"May 2015"},{"$f":"ZZZ__FnCalls!F72","v":"Jun 2015"},{"$f":"ZZZ__FnCalls!F73","v":"Jul 2015"},{"$f":"ZZZ__FnCalls!F74","v":"Aug 2015"},{"$f":"ZZZ__FnCalls!F75","v":"Sep 2015"},{"$f":"ZZZ__FnCalls!F76","v":"Oct 2015"},{"$f":"ZZZ__FnCalls!F77","v":"Nov 2015"},{"$f":"ZZZ__FnCalls!F78","v":"Dec 2015"},{"$f":"ZZZ__FnCalls!H67","v":"2015"},{"$f":"ZZZ__FnCalls!F79","v":"Jan 2016"},{"$f":"ZZZ__FnCalls!F80","v":"Feb 2016"},{"$f":"ZZZ__FnCalls!F81","v":"Mar 2016"},{"$f":"ZZZ__FnCalls!F82","v":"Apr 2016"},{"$f":"ZZZ__FnCalls!F83","v":"May 2016"},{"$f":"ZZZ__FnCalls!F84","v":"Jun 2016"},{"$f":"ZZZ__FnCalls!F85","v":"Jul 2016"},{"$f":"ZZZ__FnCalls!F86","v":"Aug 2016"},{"$f":"ZZZ__FnCalls!F87","v":"Sep 2016"},{"$f":"ZZZ__FnCalls!F88","v":"Oct 2016"},{"$f":"ZZZ__FnCalls!F89","v":"Nov 2016"},{"$f":"ZZZ__FnCalls!F90","v":"Dec 2016"},{"$f":"ZZZ__FnCalls!H79","v":"2016"},{"$f":"ZZZ__FnCalls!F91","v":"Jan 2017"},{"$f":"ZZZ__FnCalls!F92","v":"Feb 2017"},{"$f":"ZZZ__FnCalls!F93","v":"Mar 2017"},{"$f":"ZZZ__FnCalls!F94","v":"Apr 2017"},{"$f":"ZZZ__FnCalls!F95","v":"May 2017"},{"$f":"ZZZ__FnCalls!F96","v":"Jun 2017"},{"$f":"ZZZ__FnCalls!F97","v":"Jul 2017"},{"$f":"ZZZ__FnCalls!F98","v":"Aug 2017"},{"$f":"ZZZ__FnCalls!F99","v":"Sep 2017"},{"$f":"ZZZ__FnCalls!F100","v":"Oct 2017"},{"$f":"ZZZ__FnCalls!F101","v":"Nov 2017"},{"$f":"ZZZ__FnCalls!F102","v":"Dec 2017"},{"$f":"ZZZ__FnCalls!H91","v":"2017"},{"$f":"ZZZ__FnCalls!F103","v":"Jan 2018"},{"$f":"ZZZ__FnCalls!F104","v":"Feb 2018"},{"$f":"ZZZ__FnCalls!F105","v":"Mar 2018"},{"$f":"ZZZ__FnCalls!F106","v":"Apr 2018"},{"$f":"ZZZ__FnCalls!F107","v":"May 2018"},{"$f":"ZZZ__FnCalls!F108","v":"Jun 2018"},{"$f":"ZZZ__FnCalls!F109","v":"Jul 2018"},{"$f":"ZZZ__FnCalls!F110","v":"Aug 2018"},{"$f":"ZZZ__FnCalls!F111","v":"Sep 2018"},{"$f":"ZZZ__FnCalls!F112","v":"Oct 2018"},{"$f":"ZZZ__FnCalls!F113","v":"Nov 2018"},{"$f":"ZZZ__FnCalls!F114","v":"Dec 2018"},{"$f":"ZZZ__FnCalls!H103","v":"2018"},{"$f":"ZZZ__FnCalls!F115","v":"Jan 2019"},{"$f":"ZZZ__FnCalls!F116","v":"Feb 2019"},{"$f":"ZZZ__FnCalls!F117","v":"Mar 2019"},{"$f":"ZZZ__FnCalls!F118","v":"Apr 2019"},{"$f":"ZZZ__FnCalls!F119","v":"May 2019"},{"$f":"ZZZ__FnCalls!F120","v":"Jun 2019"},{"$f":"ZZZ__FnCalls!F121","v":"Jul 2019"},{"$f":"ZZZ__FnCalls!F122","v":"Aug 2019"},{"$f":"ZZZ__FnCalls!F123","v":"Sep 2019"},{"$f":"ZZZ__FnCalls!F124","v":"Oct 2019"},{"$f":"ZZZ__FnCalls!F125","v":"Nov 2019"},{"$f":"ZZZ__FnCalls!F126","v":"Dec 2019"},{"$f":"ZZZ__FnCalls!H115","v":"2019"},{"$f":"ZZZ__FnCalls!F127","v":"Jan 2020"},{"$f":"ZZZ__FnCalls!F128","v":"Feb 2020"},{"$f":"ZZZ__FnCalls!F129","v":"Mar 2020"},{"$f":"ZZZ__FnCalls!F130","v":"Apr 2020"},{"$f":"ZZZ__FnCalls!F131","v":"May 2020"},{"$f":"ZZZ__FnCalls!F132","v":"Jun 2020"},{"$f":"ZZZ__FnCalls!F133","v":"Jul 2020"},{"$f":"ZZZ__FnCalls!F134","v":"Aug 2020"},{"$f":"ZZZ__FnCalls!F135","v":"Sep 2020"},{"$f":"ZZZ__FnCalls!F136","v":"Oct 2020"},{"$f":"ZZZ__FnCalls!F137","v":"Nov 2020"},{"$f":"ZZZ__FnCalls!F138","v":"Dec 2020"},{"$f":"ZZZ__FnCalls!H127","v":"2020"}]
[null,{"$f":"ZZZ__FnCalls!A7","v":"2010-01-01"},{"$f":"ZZZ__FnCalls!A8","v":"2010-02-01"},{"$f":"ZZZ__FnCalls!A9","v":"2010-03-01"},{"$f":"ZZZ__FnCalls!A10","v":"2010-04-01"},{"$f":"ZZZ__FnCalls!A11","v":"2010-05-01"},{"$f":"ZZZ__FnCalls!A12","v":"2010-06-01"},{"$f":"ZZZ__FnCalls!A13","v":"2010-07-01"},{"$f":"ZZZ__FnCalls!A14","v":"2010-08-01"},{"$f":"ZZZ__FnCalls!A15","v":"2010-09-01"},{"$f":"ZZZ__FnCalls!A16","v":"2010-10-01"},{"$f":"ZZZ__FnCalls!A17","v":"2010-11-01"},{"$f":"ZZZ__FnCalls!A18","v":"2010-12-01"},{"$f":"ZZZ__FnCalls!A7","v":"2010-01-01"},{"$f":"ZZZ__FnCalls!A19","v":"2011-01-01"},{"$f":"ZZZ__FnCalls!A20","v":"2011-02-01"},{"$f":"ZZZ__FnCalls!A21","v":"2011-03-01"},{"$f":"ZZZ__FnCalls!A22","v":"2011-04-01"},{"$f":"ZZZ__FnCalls!A23","v":"2011-05-01"},{"$f":"ZZZ__FnCalls!A24","v":"2011-06-01"},{"$f":"ZZZ__FnCalls!A25","v":"2011-07-01"},{"$f":"ZZZ__FnCalls!A26","v":"2011-08-01"},{"$f":"ZZZ__FnCalls!A27","v":"2011-09-01"},{"$f":"ZZZ__FnCalls!A28","v":"2011-10-01"},{"$f":"ZZZ__FnCalls!A29","v":"2011-11-01"},{"$f":"ZZZ__FnCalls!A30","v":"2011-12-01"},{"$f":"ZZZ__FnCalls!A19","v":"2011-01-01"},{"$f":"ZZZ__FnCalls!A31","v":"2012-01-01"},{"$f":"ZZZ__FnCalls!A32","v":"2012-02-01"},{"$f":"ZZZ__FnCalls!A33","v":"2012-03-01"},{"$f":"ZZZ__FnCalls!A34","v":"2012-04-01"},{"$f":"ZZZ__FnCalls!A35","v":"2012-05-01"},{"$f":"ZZZ__FnCalls!A36","v":"2012-06-01"},{"$f":"ZZZ__FnCalls!A37","v":"2012-07-01"},{"$f":"ZZZ__FnCalls!A38","v":"2012-08-01"},{"$f":"ZZZ__FnCalls!A39","v":"2012-09-01"},{"$f":"ZZZ__FnCalls!A40","v":"2012-10-01"},{"$f":"ZZZ__FnCalls!A41","v":"2012-11-01"},{"$f":"ZZZ__FnCalls!A42","v":"2012-12-01"},{"$f":"ZZZ__FnCalls!A31","v":"2012-01-01"},{"$f":"ZZZ__FnCalls!A43","v":"2013-01-01"},{"$f":"ZZZ__FnCalls!A44","v":"2013-02-01"},{"$f":"ZZZ__FnCalls!A45","v":"2013-03-01"},{"$f":"ZZZ__FnCalls!A46","v":"2013-04-01"},{"$f":"ZZZ__FnCalls!A47","v":"2013-05-01"},{"$f":"ZZZ__FnCalls!A48","v":"2013-06-01"},{"$f":"ZZZ__FnCalls!A49","v":"2013-07-01"},{"$f":"ZZZ__FnCalls!A50","v":"2013-08-01"},{"$f":"ZZZ__FnCalls!A51","v":"2013-09-01"},{"$f":"ZZZ__FnCalls!A52","v":"2013-10-01"},{"$f":"ZZZ__FnCalls!A53","v":"2013-11-01"},{"$f":"ZZZ__FnCalls!A54","v":"2013-12-01"},{"$f":"ZZZ__FnCalls!A43","v":"2013-01-01"},{"$f":"ZZZ__FnCalls!A55","v":"2014-01-01"},{"$f":"ZZZ__FnCalls!A56","v":"2014-02-01"},{"$f":"ZZZ__FnCalls!A57","v":"2014-03-01"},{"$f":"ZZZ__FnCalls!A58","v":"2014-04-01"},{"$f":"ZZZ__FnCalls!A59","v":"2014-05-01"},{"$f":"ZZZ__FnCalls!A60","v":"2014-06-01"},{"$f":"ZZZ__FnCalls!A61","v":"2014-07-01"},{"$f":"ZZZ__FnCalls!A62","v":"2014-08-01"},{"$f":"ZZZ__FnCalls!A63","v":"2014-09-01"},{"$f":"ZZZ__FnCalls!A64","v":"2014-10-01"},{"$f":"ZZZ__FnCalls!A65","v":"2014-11-01"},{"$f":"ZZZ__FnCalls!A66","v":"2014-12-01"},{"$f":"ZZZ__FnCalls!A55","v":"2014-01-01"},{"$f":"ZZZ__FnCalls!A67","v":"2015-01-01"},{"$f":"ZZZ__FnCalls!A68","v":"2015-02-01"},{"$f":"ZZZ__FnCalls!A69","v":"2015-03-01"},{"$f":"ZZZ__FnCalls!A70","v":"2015-04-01"},{"$f":"ZZZ__FnCalls!A71","v":"2015-05-01"},{"$f":"ZZZ__FnCalls!A72","v":"2015-06-01"},{"$f":"ZZZ__FnCalls!A73","v":"2015-07-01"},{"$f":"ZZZ__FnCalls!A74","v":"2015-08-01"},{"$f":"ZZZ__FnCalls!A75","v":"2015-09-01"},{"$f":"ZZZ__FnCalls!A76","v":"2015-10-01"},{"$f":"ZZZ__FnCalls!A77","v":"2015-11-01"},{"$f":"ZZZ__FnCalls!A78","v":"2015-12-01"},{"$f":"ZZZ__FnCalls!A67","v":"2015-01-01"},{"$f":"ZZZ__FnCalls!A79","v":"2016-01-01"},{"$f":"ZZZ__FnCalls!A80","v":"2016-02-01"},{"$f":"ZZZ__FnCalls!A81","v":"2016-03-01"},{"$f":"ZZZ__FnCalls!A82","v":"2016-04-01"},{"$f":"ZZZ__FnCalls!A83","v":"2016-05-01"},{"$f":"ZZZ__FnCalls!A84","v":"2016-06-01"},{"$f":"ZZZ__FnCalls!A85","v":"2016-07-01"},{"$f":"ZZZ__FnCalls!A86","v":"2016-08-01"},{"$f":"ZZZ__FnCalls!A87","v":"2016-09-01"},{"$f":"ZZZ__FnCalls!A88","v":"2016-10-01"},{"$f":"ZZZ__FnCalls!A89","v":"2016-11-01"},{"$f":"ZZZ__FnCalls!A90","v":"2016-12-01"},{"$f":"ZZZ__FnCalls!A79","v":"2016-01-01"},{"$f":"ZZZ__FnCalls!A91","v":"2017-01-01"},{"$f":"ZZZ__FnCalls!A92","v":"2017-02-01"},{"$f":"ZZZ__FnCalls!A93","v":"2017-03-01"},{"$f":"ZZZ__FnCalls!A94","v":"2017-04-01"},{"$f":"ZZZ__FnCalls!A95","v":"2017-05-01"},{"$f":"ZZZ__FnCalls!A96","v":"2017-06-01"},{"$f":"ZZZ__FnCalls!A97","v":"2017-07-01"},{"$f":"ZZZ__FnCalls!A98","v":"2017-08-01"},{"$f":"ZZZ__FnCalls!A99","v":"2017-09-01"},{"$f":"ZZZ__FnCalls!A100","v":"2017-10-01"},{"$f":"ZZZ__FnCalls!A101","v":"2017-11-01"},{"$f":"ZZZ__FnCalls!A102","v":"2017-12-01"},{"$f":"ZZZ__FnCalls!A91","v":"2017-01-01"},{"$f":"ZZZ__FnCalls!A103","v":"2018-01-01"},{"$f":"ZZZ__FnCalls!A104","v":"2018-02-01"},{"$f":"ZZZ__FnCalls!A105","v":"2018-03-01"},{"$f":"ZZZ__FnCalls!A106","v":"2018-04-01"},{"$f":"ZZZ__FnCalls!A107","v":"2018-05-01"},{"$f":"ZZZ__FnCalls!A108","v":"2018-06-01"},{"$f":"ZZZ__FnCalls!A109","v":"2018-07-01"},{"$f":"ZZZ__FnCalls!A110","v":"2018-08-01"},{"$f":"ZZZ__FnCalls!A111","v":"2018-09-01"},{"$f":"ZZZ__FnCalls!A112","v":"2018-10-01"},{"$f":"ZZZ__FnCalls!A113","v":"2018-11-01"},{"$f":"ZZZ__FnCalls!A114","v":"2018-12-01"},{"$f":"ZZZ__FnCalls!A103","v":"2018-01-01"},{"$f":"ZZZ__FnCalls!A115","v":"2019-01-01"},{"$f":"ZZZ__FnCalls!A116","v":"2019-02-01"},{"$f":"ZZZ__FnCalls!A117","v":"2019-03-01"},{"$f":"ZZZ__FnCalls!A118","v":"2019-04-01"},{"$f":"ZZZ__FnCalls!A119","v":"2019-05-01"},{"$f":"ZZZ__FnCalls!A120","v":"2019-06-01"},{"$f":"ZZZ__FnCalls!A121","v":"2019-07-01"},{"$f":"ZZZ__FnCalls!A122","v":"2019-08-01"},{"$f":"ZZZ__FnCalls!A123","v":"2019-09-01"},{"$f":"ZZZ__FnCalls!A124","v":"2019-10-01"},{"$f":"ZZZ__FnCalls!A125","v":"2019-11-01"},{"$f":"ZZZ__FnCalls!A126","v":"2019-12-01"},{"$f":"ZZZ__FnCalls!A115","v":"2019-01-01"},{"$f":"ZZZ__FnCalls!A127","v":"2020-01-01"},{"$f":"ZZZ__FnCalls!A128","v":"2020-02-01"},{"$f":"ZZZ__FnCalls!A129","v":"2020-03-01"},{"$f":"ZZZ__FnCalls!A130","v":"2020-04-01"},{"$f":"ZZZ__FnCalls!A131","v":"2020-05-01"},{"$f":"ZZZ__FnCalls!A132","v":"2020-06-01"},{"$f":"ZZZ__FnCalls!A133","v":"2020-07-01"},{"$f":"ZZZ__FnCalls!A134","v":"2020-08-01"},{"$f":"ZZZ__FnCalls!A135","v":"2020-09-01"},{"$f":"ZZZ__FnCalls!A136","v":"2020-10-01"},{"$f":"ZZZ__FnCalls!A137","v":"2020-11-01"},{"$f":"ZZZ__FnCalls!A138","v":"2020-12-01"},{"$f":"ZZZ__FnCalls!A127","v":"2020-01-01"}]
[{"$f":"\"Employment_Desired_mean_2\"","v":"Employment_Desired_mean_2"}]
[null,{"$f":"ZZZ__FnCalls!F7","v":"Jan 2010"},{"$f":"ZZZ__FnCalls!F8","v":"Feb 2010"},{"$f":"ZZZ__FnCalls!F9","v":"Mar 2010"},{"$f":"ZZZ__FnCalls!F10","v":"Apr 2010"},{"$f":"ZZZ__FnCalls!F11","v":"May 2010"},{"$f":"ZZZ__FnCalls!F12","v":"Jun 2010"},{"$f":"ZZZ__FnCalls!F13","v":"Jul 2010"},{"$f":"ZZZ__FnCalls!F14","v":"Aug 2010"},{"$f":"ZZZ__FnCalls!F15","v":"Sep 2010"},{"$f":"ZZZ__FnCalls!F16","v":"Oct 2010"},{"$f":"ZZZ__FnCalls!F17","v":"Nov 2010"},{"$f":"ZZZ__FnCalls!F18","v":"Dec 2010"},{"$f":"ZZZ__FnCalls!H7","v":"2010"},{"$f":"ZZZ__FnCalls!F19","v":"Jan 2011"},{"$f":"ZZZ__FnCalls!F20","v":"Feb 2011"},{"$f":"ZZZ__FnCalls!F21","v":"Mar 2011"},{"$f":"ZZZ__FnCalls!F22","v":"Apr 2011"},{"$f":"ZZZ__FnCalls!F23","v":"May 2011"},{"$f":"ZZZ__FnCalls!F24","v":"Jun 2011"},{"$f":"ZZZ__FnCalls!F25","v":"Jul 2011"},{"$f":"ZZZ__FnCalls!F26","v":"Aug 2011"},{"$f":"ZZZ__FnCalls!F27","v":"Sep 2011"},{"$f":"ZZZ__FnCalls!F28","v":"Oct 2011"},{"$f":"ZZZ__FnCalls!F29","v":"Nov 2011"},{"$f":"ZZZ__FnCalls!F30","v":"Dec 2011"},{"$f":"ZZZ__FnCalls!H19","v":"2011"},{"$f":"ZZZ__FnCalls!F31","v":"Jan 2012"},{"$f":"ZZZ__FnCalls!F32","v":"Feb 2012"},{"$f":"ZZZ__FnCalls!F33","v":"Mar 2012"},{"$f":"ZZZ__FnCalls!F34","v":"Apr 2012"},{"$f":"ZZZ__FnCalls!F35","v":"May 2012"},{"$f":"ZZZ__FnCalls!F36","v":"Jun 2012"},{"$f":"ZZZ__FnCalls!F37","v":"Jul 2012"},{"$f":"ZZZ__FnCalls!F38","v":"Aug 2012"},{"$f":"ZZZ__FnCalls!F39","v":"Sep 2012"},{"$f":"ZZZ__FnCalls!F40","v":"Oct 2012"},{"$f":"ZZZ__FnCalls!F41","v":"Nov 2012"},{"$f":"ZZZ__FnCalls!F42","v":"Dec 2012"},{"$f":"ZZZ__FnCalls!H31","v":"2012"},{"$f":"ZZZ__FnCalls!F43","v":"Jan 2013"},{"$f":"ZZZ__FnCalls!F44","v":"Feb 2013"},{"$f":"ZZZ__FnCalls!F45","v":"Mar 2013"},{"$f":"ZZZ__FnCalls!F46","v":"Apr 2013"},{"$f":"ZZZ__FnCalls!F47","v":"May 2013"},{"$f":"ZZZ__FnCalls!F48","v":"Jun 2013"},{"$f":"ZZZ__FnCalls!F49","v":"Jul 2013"},{"$f":"ZZZ__FnCalls!F50","v":"Aug 2013"},{"$f":"ZZZ__FnCalls!F51","v":"Sep 2013"},{"$f":"ZZZ__FnCalls!F52","v":"Oct 2013"},{"$f":"ZZZ__FnCalls!F53","v":"Nov 2013"},{"$f":"ZZZ__FnCalls!F54","v":"Dec 2013"},{"$f":"ZZZ__FnCalls!H43","v":"2013"},{"$f":"ZZZ__FnCalls!F55","v":"Jan 2014"},{"$f":"ZZZ__FnCalls!F56","v":"Feb 2014"},{"$f":"ZZZ__FnCalls!F57","v":"Mar 2014"},{"$f":"ZZZ__FnCalls!F58","v":"Apr 2014"},{"$f":"ZZZ__FnCalls!F59","v":"May 2014"},{"$f":"ZZZ__FnCalls!F60","v":"Jun 2014"},{"$f":"ZZZ__FnCalls!F61","v":"Jul 2014"},{"$f":"ZZZ__FnCalls!F62","v":"Aug 2014"},{"$f":"ZZZ__FnCalls!F63","v":"Sep 2014"},{"$f":"ZZZ__FnCalls!F64","v":"Oct 2014"},{"$f":"ZZZ__FnCalls!F65","v":"Nov 2014"},{"$f":"ZZZ__FnCalls!F66","v":"Dec 2014"},{"$f":"ZZZ__FnCalls!H55","v":"2014"},{"$f":"ZZZ__FnCalls!F67","v":"Jan 2015"},{"$f":"ZZZ__FnCalls!F68","v":"Feb 2015"},{"$f":"ZZZ__FnCalls!F69","v":"Mar 2015"},{"$f":"ZZZ__FnCalls!F70","v":"Apr 2015"},{"$f":"ZZZ__FnCalls!F71","v":"May 2015"},{"$f":"ZZZ__FnCalls!F72","v":"Jun 2015"},{"$f":"ZZZ__FnCalls!F73","v":"Jul 2015"},{"$f":"ZZZ__FnCalls!F74","v":"Aug 2015"},{"$f":"ZZZ__FnCalls!F75","v":"Sep 2015"},{"$f":"ZZZ__FnCalls!F76","v":"Oct 2015"},{"$f":"ZZZ__FnCalls!F77","v":"Nov 2015"},{"$f":"ZZZ__FnCalls!F78","v":"Dec 2015"},{"$f":"ZZZ__FnCalls!H67","v":"2015"},{"$f":"ZZZ__FnCalls!F79","v":"Jan 2016"},{"$f":"ZZZ__FnCalls!F80","v":"Feb 2016"},{"$f":"ZZZ__FnCalls!F81","v":"Mar 2016"},{"$f":"ZZZ__FnCalls!F82","v":"Apr 2016"},{"$f":"ZZZ__FnCalls!F83","v":"May 2016"},{"$f":"ZZZ__FnCalls!F84","v":"Jun 2016"},{"$f":"ZZZ__FnCalls!F85","v":"Jul 2016"},{"$f":"ZZZ__FnCalls!F86","v":"Aug 2016"},{"$f":"ZZZ__FnCalls!F87","v":"Sep 2016"},{"$f":"ZZZ__FnCalls!F88","v":"Oct 2016"},{"$f":"ZZZ__FnCalls!F89","v":"Nov 2016"},{"$f":"ZZZ__FnCalls!F90","v":"Dec 2016"},{"$f":"ZZZ__FnCalls!H79","v":"2016"},{"$f":"ZZZ__FnCalls!F91","v":"Jan 2017"},{"$f":"ZZZ__FnCalls!F92","v":"Feb 2017"},{"$f":"ZZZ__FnCalls!F93","v":"Mar 2017"},{"$f":"ZZZ__FnCalls!F94","v":"Apr 2017"},{"$f":"ZZZ__FnCalls!F95","v":"May 2017"},{"$f":"ZZZ__FnCalls!F96","v":"Jun 2017"},{"$f":"ZZZ__FnCalls!F97","v":"Jul 2017"},{"$f":"ZZZ__FnCalls!F98","v":"Aug 2017"},{"$f":"ZZZ__FnCalls!F99","v":"Sep 2017"},{"$f":"ZZZ__FnCalls!F100","v":"Oct 2017"},{"$f":"ZZZ__FnCalls!F101","v":"Nov 2017"},{"$f":"ZZZ__FnCalls!F102","v":"Dec 2017"},{"$f":"ZZZ__FnCalls!H91","v":"2017"},{"$f":"ZZZ__FnCalls!F103","v":"Jan 2018"},{"$f":"ZZZ__FnCalls!F104","v":"Feb 2018"},{"$f":"ZZZ__FnCalls!F105","v":"Mar 2018"},{"$f":"ZZZ__FnCalls!F106","v":"Apr 2018"},{"$f":"ZZZ__FnCalls!F107","v":"May 2018"},{"$f":"ZZZ__FnCalls!F108","v":"Jun 2018"},{"$f":"ZZZ__FnCalls!F109","v":"Jul 2018"},{"$f":"ZZZ__FnCalls!F110","v":"Aug 2018"},{"$f":"ZZZ__FnCalls!F111","v":"Sep 2018"},{"$f":"ZZZ__FnCalls!F112","v":"Oct 2018"},{"$f":"ZZZ__FnCalls!F113","v":"Nov 2018"},{"$f":"ZZZ__FnCalls!F114","v":"Dec 2018"},{"$f":"ZZZ__FnCalls!H103","v":"2018"},{"$f":"ZZZ__FnCalls!F115","v":"Jan 2019"},{"$f":"ZZZ__FnCalls!F116","v":"Feb 2019"},{"$f":"ZZZ__FnCalls!F117","v":"Mar 2019"},{"$f":"ZZZ__FnCalls!F118","v":"Apr 2019"},{"$f":"ZZZ__FnCalls!F119","v":"May 2019"},{"$f":"ZZZ__FnCalls!F120","v":"Jun 2019"},{"$f":"ZZZ__FnCalls!F121","v":"Jul 2019"},{"$f":"ZZZ__FnCalls!F122","v":"Aug 2019"},{"$f":"ZZZ__FnCalls!F123","v":"Sep 2019"},{"$f":"ZZZ__FnCalls!F124","v":"Oct 2019"},{"$f":"ZZZ__FnCalls!F125","v":"Nov 2019"},{"$f":"ZZZ__FnCalls!F126","v":"Dec 2019"},{"$f":"ZZZ__FnCalls!H115","v":"2019"},{"$f":"ZZZ__FnCalls!F127","v":"Jan 2020"},{"$f":"ZZZ__FnCalls!F128","v":"Feb 2020"},{"$f":"ZZZ__FnCalls!F129","v":"Mar 2020"},{"$f":"ZZZ__FnCalls!F130","v":"Apr 2020"},{"$f":"ZZZ__FnCalls!F131","v":"May 2020"},{"$f":"ZZZ__FnCalls!F132","v":"Jun 2020"},{"$f":"ZZZ__FnCalls!F133","v":"Jul 2020"},{"$f":"ZZZ__FnCalls!F134","v":"Aug 2020"},{"$f":"ZZZ__FnCalls!F135","v":"Sep 2020"},{"$f":"ZZZ__FnCalls!F136","v":"Oct 2020"},{"$f":"ZZZ__FnCalls!F137","v":"Nov 2020"},{"$f":"ZZZ__FnCalls!F138","v":"Dec 2020"},{"$f":"ZZZ__FnCalls!H127","v":"2020"}]
[null,{"$f":"ZZZ__FnCalls!F7","v":"Jan 2010"},{"$f":"ZZZ__FnCalls!F8","v":"Feb 2010"},{"$f":"ZZZ__FnCalls!F9","v":"Mar 2010"},{"$f":"ZZZ__FnCalls!F10","v":"Apr 2010"},{"$f":"ZZZ__FnCalls!F11","v":"May 2010"},{"$f":"ZZZ__FnCalls!F12","v":"Jun 2010"},{"$f":"ZZZ__FnCalls!F13","v":"Jul 2010"},{"$f":"ZZZ__FnCalls!F14","v":"Aug 2010"},{"$f":"ZZZ__FnCalls!F15","v":"Sep 2010"},{"$f":"ZZZ__FnCalls!F16","v":"Oct 2010"},{"$f":"ZZZ__FnCalls!F17","v":"Nov 2010"},{"$f":"ZZZ__FnCalls!F18","v":"Dec 2010"},{"$f":"ZZZ__FnCalls!F7","v":"Jan 2010"},{"$f":"ZZZ__FnCalls!F19","v":"Jan 2011"},{"$f":"ZZZ__FnCalls!F20","v":"Feb 2011"},{"$f":"ZZZ__FnCalls!F21","v":"Mar 2011"},{"$f":"ZZZ__FnCalls!F22","v":"Apr 2011"},{"$f":"ZZZ__FnCalls!F23","v":"May 2011"},{"$f":"ZZZ__FnCalls!F24","v":"Jun 2011"},{"$f":"ZZZ__FnCalls!F25","v":"Jul 2011"},{"$f":"ZZZ__FnCalls!F26","v":"Aug 2011"},{"$f":"ZZZ__FnCalls!F27","v":"Sep 2011"},{"$f":"ZZZ__FnCalls!F28","v":"Oct 2011"},{"$f":"ZZZ__FnCalls!F29","v":"Nov 2011"},{"$f":"ZZZ__FnCalls!F30","v":"Dec 2011"},{"$f":"ZZZ__FnCalls!F19","v":"Jan 2011"},{"$f":"ZZZ__FnCalls!F31","v":"Jan 2012"},{"$f":"ZZZ__FnCalls!F32","v":"Feb 2012"},{"$f":"ZZZ__FnCalls!F33","v":"Mar 2012"},{"$f":"ZZZ__FnCalls!F34","v":"Apr 2012"},{"$f":"ZZZ__FnCalls!F35","v":"May 2012"},{"$f":"ZZZ__FnCalls!F36","v":"Jun 2012"},{"$f":"ZZZ__FnCalls!F37","v":"Jul 2012"},{"$f":"ZZZ__FnCalls!F38","v":"Aug 2012"},{"$f":"ZZZ__FnCalls!F39","v":"Sep 2012"},{"$f":"ZZZ__FnCalls!F40","v":"Oct 2012"},{"$f":"ZZZ__FnCalls!F41","v":"Nov 2012"},{"$f":"ZZZ__FnCalls!F42","v":"Dec 2012"},{"$f":"ZZZ__FnCalls!F31","v":"Jan 2012"},{"$f":"ZZZ__FnCalls!F43","v":"Jan 2013"},{"$f":"ZZZ__FnCalls!F44","v":"Feb 2013"},{"$f":"ZZZ__FnCalls!F45","v":"Mar 2013"},{"$f":"ZZZ__FnCalls!F46","v":"Apr 2013"},{"$f":"ZZZ__FnCalls!F47","v":"May 2013"},{"$f":"ZZZ__FnCalls!F48","v":"Jun 2013"},{"$f":"ZZZ__FnCalls!F49","v":"Jul 2013"},{"$f":"ZZZ__FnCalls!F50","v":"Aug 2013"},{"$f":"ZZZ__FnCalls!F51","v":"Sep 2013"},{"$f":"ZZZ__FnCalls!F52","v":"Oct 2013"},{"$f":"ZZZ__FnCalls!F53","v":"Nov 2013"},{"$f":"ZZZ__FnCalls!F54","v":"Dec 2013"},{"$f":"ZZZ__FnCalls!F43","v":"Jan 2013"},{"$f":"ZZZ__FnCalls!F55","v":"Jan 2014"},{"$f":"ZZZ__FnCalls!F56","v":"Feb 2014"},{"$f":"ZZZ__FnCalls!F57","v":"Mar 2014"},{"$f":"ZZZ__FnCalls!F58","v":"Apr 2014"},{"$f":"ZZZ__FnCalls!F59","v":"May 2014"},{"$f":"ZZZ__FnCalls!F60","v":"Jun 2014"},{"$f":"ZZZ__FnCalls!F61","v":"Jul 2014"},{"$f":"ZZZ__FnCalls!F62","v":"Aug 2014"},{"$f":"ZZZ__FnCalls!F63","v":"Sep 2014"},{"$f":"ZZZ__FnCalls!F64","v":"Oct 2014"},{"$f":"ZZZ__FnCalls!F65","v":"Nov 2014"},{"$f":"ZZZ__FnCalls!F66","v":"Dec 2014"},{"$f":"ZZZ__FnCalls!F55","v":"Jan 2014"},{"$f":"ZZZ__FnCalls!F67","v":"Jan 2015"},{"$f":"ZZZ__FnCalls!F68","v":"Feb 2015"},{"$f":"ZZZ__FnCalls!F69","v":"Mar 2015"},{"$f":"ZZZ__FnCalls!F70","v":"Apr 2015"},{"$f":"ZZZ__FnCalls!F71","v":"May 2015"},{"$f":"ZZZ__FnCalls!F72","v":"Jun 2015"},{"$f":"ZZZ__FnCalls!F73","v":"Jul 2015"},{"$f":"ZZZ__FnCalls!F74","v":"Aug 2015"},{"$f":"ZZZ__FnCalls!F75","v":"Sep 2015"},{"$f":"ZZZ__FnCalls!F76","v":"Oct 2015"},{"$f":"ZZZ__FnCalls!F77","v":"Nov 2015"},{"$f":"ZZZ__FnCalls!F78","v":"Dec 2015"},{"$f":"ZZZ__FnCalls!F67","v":"Jan 2015"},{"$f":"ZZZ__FnCalls!F79","v":"Jan 2016"},{"$f":"ZZZ__FnCalls!F80","v":"Feb 2016"},{"$f":"ZZZ__FnCalls!F81","v":"Mar 2016"},{"$f":"ZZZ__FnCalls!F82","v":"Apr 2016"},{"$f":"ZZZ__FnCalls!F83","v":"May 2016"},{"$f":"ZZZ__FnCalls!F84","v":"Jun 2016"},{"$f":"ZZZ__FnCalls!F85","v":"Jul 2016"},{"$f":"ZZZ__FnCalls!F86","v":"Aug 2016"},{"$f":"ZZZ__FnCalls!F87","v":"Sep 2016"},{"$f":"ZZZ__FnCalls!F88","v":"Oct 2016"},{"$f":"ZZZ__FnCalls!F89","v":"Nov 2016"},{"$f":"ZZZ__FnCalls!F90","v":"Dec 2016"},{"$f":"ZZZ__FnCalls!F79","v":"Jan 2016"},{"$f":"ZZZ__FnCalls!F91","v":"Jan 2017"},{"$f":"ZZZ__FnCalls!F92","v":"Feb 2017"},{"$f":"ZZZ__FnCalls!F93","v":"Mar 2017"},{"$f":"ZZZ__FnCalls!F94","v":"Apr 2017"},{"$f":"ZZZ__FnCalls!F95","v":"May 2017"},{"$f":"ZZZ__FnCalls!F96","v":"Jun 2017"},{"$f":"ZZZ__FnCalls!F97","v":"Jul 2017"},{"$f":"ZZZ__FnCalls!F98","v":"Aug 2017"},{"$f":"ZZZ__FnCalls!F99","v":"Sep 2017"},{"$f":"ZZZ__FnCalls!F100","v":"Oct 2017"},{"$f":"ZZZ__FnCalls!F101","v":"Nov 2017"},{"$f":"ZZZ__FnCalls!F102","v":"Dec 2017"},{"$f":"ZZZ__FnCalls!F91","v":"Jan 2017"},{"$f":"ZZZ__FnCalls!F103","v":"Jan 2018"},{"$f":"ZZZ__FnCalls!F104","v":"Feb 2018"},{"$f":"ZZZ__FnCalls!F105","v":"Mar 2018"},{"$f":"ZZZ__FnCalls!F106","v":"Apr 2018"},{"$f":"ZZZ__FnCalls!F107","v":"May 2018"},{"$f":"ZZZ__FnCalls!F108","v":"Jun 2018"},{"$f":"ZZZ__FnCalls!F109","v":"Jul 2018"},{"$f":"ZZZ__FnCalls!F110","v":"Aug 2018"},{"$f":"ZZZ__FnCalls!F111","v":"Sep 2018"},{"$f":"ZZZ__FnCalls!F112","v":"Oct 2018"},{"$f":"ZZZ__FnCalls!F113","v":"Nov 2018"},{"$f":"ZZZ__FnCalls!F114","v":"Dec 2018"},{"$f":"ZZZ__FnCalls!F103","v":"Jan 2018"},{"$f":"ZZZ__FnCalls!F115","v":"Jan 2019"},{"$f":"ZZZ__FnCalls!F116","v":"Feb 2019"},{"$f":"ZZZ__FnCalls!F117","v":"Mar 2019"},{"$f":"ZZZ__FnCalls!F118","v":"Apr 2019"},{"$f":"ZZZ__FnCalls!F119","v":"May 2019"},{"$f":"ZZZ__FnCalls!F120","v":"Jun 2019"},{"$f":"ZZZ__FnCalls!F121","v":"Jul 2019"},{"$f":"ZZZ__FnCalls!F122","v":"Aug 2019"},{"$f":"ZZZ__FnCalls!F123","v":"Sep 2019"},{"$f":"ZZZ__FnCalls!F124","v":"Oct 2019"},{"$f":"ZZZ__FnCalls!F125","v":"Nov 2019"},{"$f":"ZZZ__FnCalls!F126","v":"Dec 2019"},{"$f":"ZZZ__FnCalls!F115","v":"Jan 2019"},{"$f":"ZZZ__FnCalls!F127","v":"Jan 2020"},{"$f":"ZZZ__FnCalls!F128","v":"Feb 2020"},{"$f":"ZZZ__FnCalls!F129","v":"Mar 2020"},{"$f":"ZZZ__FnCalls!F130","v":"Apr 2020"},{"$f":"ZZZ__FnCalls!F131","v":"May 2020"},{"$f":"ZZZ__FnCalls!F132","v":"Jun 2020"},{"$f":"ZZZ__FnCalls!F133","v":"Jul 2020"},{"$f":"ZZZ__FnCalls!F134","v":"Aug 2020"},{"$f":"ZZZ__FnCalls!F135","v":"Sep 2020"},{"$f":"ZZZ__FnCalls!F136","v":"Oct 2020"},{"$f":"ZZZ__FnCalls!F137","v":"Nov 2020"},{"$f":"ZZZ__FnCalls!F138","v":"Dec 2020"},{"$f":"ZZZ__FnCalls!F127","v":"Jan 2020"}]
[{"$f":"\"Employment_Desired_stdev_1\"","v":"Employment_Desired_stdev_1"}]
[null,{"$f":"ZZZ__FnCalls!F7","v":"Jan 2010"},{"$f":"ZZZ__FnCalls!F8","v":"Feb 2010"},{"$f":"ZZZ__FnCalls!F9","v":"Mar 2010"},{"$f":"ZZZ__FnCalls!F10","v":"Apr 2010"},{"$f":"ZZZ__FnCalls!F11","v":"May 2010"},{"$f":"ZZZ__FnCalls!F12","v":"Jun 2010"},{"$f":"ZZZ__FnCalls!F13","v":"Jul 2010"},{"$f":"ZZZ__FnCalls!F14","v":"Aug 2010"},{"$f":"ZZZ__FnCalls!F15","v":"Sep 2010"},{"$f":"ZZZ__FnCalls!F16","v":"Oct 2010"},{"$f":"ZZZ__FnCalls!F17","v":"Nov 2010"},{"$f":"ZZZ__FnCalls!F18","v":"Dec 2010"},{"$f":"ZZZ__FnCalls!H7","v":"2010"},{"$f":"ZZZ__FnCalls!F19","v":"Jan 2011"},{"$f":"ZZZ__FnCalls!F20","v":"Feb 2011"},{"$f":"ZZZ__FnCalls!F21","v":"Mar 2011"},{"$f":"ZZZ__FnCalls!F22","v":"Apr 2011"},{"$f":"ZZZ__FnCalls!F23","v":"May 2011"},{"$f":"ZZZ__FnCalls!F24","v":"Jun 2011"},{"$f":"ZZZ__FnCalls!F25","v":"Jul 2011"},{"$f":"ZZZ__FnCalls!F26","v":"Aug 2011"},{"$f":"ZZZ__FnCalls!F27","v":"Sep 2011"},{"$f":"ZZZ__FnCalls!F28","v":"Oct 2011"},{"$f":"ZZZ__FnCalls!F29","v":"Nov 2011"},{"$f":"ZZZ__FnCalls!F30","v":"Dec 2011"},{"$f":"ZZZ__FnCalls!H19","v":"2011"},{"$f":"ZZZ__FnCalls!F31","v":"Jan 2012"},{"$f":"ZZZ__FnCalls!F32","v":"Feb 2012"},{"$f":"ZZZ__FnCalls!F33","v":"Mar 2012"},{"$f":"ZZZ__FnCalls!F34","v":"Apr 2012"},{"$f":"ZZZ__FnCalls!F35","v":"May 2012"},{"$f":"ZZZ__FnCalls!F36","v":"Jun 2012"},{"$f":"ZZZ__FnCalls!F37","v":"Jul 2012"},{"$f":"ZZZ__FnCalls!F38","v":"Aug 2012"},{"$f":"ZZZ__FnCalls!F39","v":"Sep 2012"},{"$f":"ZZZ__FnCalls!F40","v":"Oct 2012"},{"$f":"ZZZ__FnCalls!F41","v":"Nov 2012"},{"$f":"ZZZ__FnCalls!F42","v":"Dec 2012"},{"$f":"ZZZ__FnCalls!H31","v":"2012"},{"$f":"ZZZ__FnCalls!F43","v":"Jan 2013"},{"$f":"ZZZ__FnCalls!F44","v":"Feb 2013"},{"$f":"ZZZ__FnCalls!F45","v":"Mar 2013"},{"$f":"ZZZ__FnCalls!F46","v":"Apr 2013"},{"$f":"ZZZ__FnCalls!F47","v":"May 2013"},{"$f":"ZZZ__FnCalls!F48","v":"Jun 2013"},{"$f":"ZZZ__FnCalls!F49","v":"Jul 2013"},{"$f":"ZZZ__FnCalls!F50","v":"Aug 2013"},{"$f":"ZZZ__FnCalls!F51","v":"Sep 2013"},{"$f":"ZZZ__FnCalls!F52","v":"Oct 2013"},{"$f":"ZZZ__FnCalls!F53","v":"Nov 2013"},{"$f":"ZZZ__FnCalls!F54","v":"Dec 2013"},{"$f":"ZZZ__FnCalls!H43","v":"2013"},{"$f":"ZZZ__FnCalls!F55","v":"Jan 2014"},{"$f":"ZZZ__FnCalls!F56","v":"Feb 2014"},{"$f":"ZZZ__FnCalls!F57","v":"Mar 2014"},{"$f":"ZZZ__FnCalls!F58","v":"Apr 2014"},{"$f":"ZZZ__FnCalls!F59","v":"May 2014"},{"$f":"ZZZ__FnCalls!F60","v":"Jun 2014"},{"$f":"ZZZ__FnCalls!F61","v":"Jul 2014"},{"$f":"ZZZ__FnCalls!F62","v":"Aug 2014"},{"$f":"ZZZ__FnCalls!F63","v":"Sep 2014"},{"$f":"ZZZ__FnCalls!F64","v":"Oct 2014"},{"$f":"ZZZ__FnCalls!F65","v":"Nov 2014"},{"$f":"ZZZ__FnCalls!F66","v":"Dec 2014"},{"$f":"ZZZ__FnCalls!H55","v":"2014"},{"$f":"ZZZ__FnCalls!F67","v":"Jan 2015"},{"$f":"ZZZ__FnCalls!F68","v":"Feb 2015"},{"$f":"ZZZ__FnCalls!F69","v":"Mar 2015"},{"$f":"ZZZ__FnCalls!F70","v":"Apr 2015"},{"$f":"ZZZ__FnCalls!F71","v":"May 2015"},{"$f":"ZZZ__FnCalls!F72","v":"Jun 2015"},{"$f":"ZZZ__FnCalls!F73","v":"Jul 2015"},{"$f":"ZZZ__FnCalls!F74","v":"Aug 2015"},{"$f":"ZZZ__FnCalls!F75","v":"Sep 2015"},{"$f":"ZZZ__FnCalls!F76","v":"Oct 2015"},{"$f":"ZZZ__FnCalls!F77","v":"Nov 2015"},{"$f":"ZZZ__FnCalls!F78","v":"Dec 2015"},{"$f":"ZZZ__FnCalls!H67","v":"2015"},{"$f":"ZZZ__FnCalls!F79","v":"Jan 2016"},{"$f":"ZZZ__FnCalls!F80","v":"Feb 2016"},{"$f":"ZZZ__FnCalls!F81","v":"Mar 2016"},{"$f":"ZZZ__FnCalls!F82","v":"Apr 2016"},{"$f":"ZZZ__FnCalls!F83","v":"May 2016"},{"$f":"ZZZ__FnCalls!F84","v":"Jun 2016"},{"$f":"ZZZ__FnCalls!F85","v":"Jul 2016"},{"$f":"ZZZ__FnCalls!F86","v":"Aug 2016"},{"$f":"ZZZ__FnCalls!F87","v":"Sep 2016"},{"$f":"ZZZ__FnCalls!F88","v":"Oct 2016"},{"$f":"ZZZ__FnCalls!F89","v":"Nov 2016"},{"$f":"ZZZ__FnCalls!F90","v":"Dec 2016"},{"$f":"ZZZ__FnCalls!H79","v":"2016"},{"$f":"ZZZ__FnCalls!F91","v":"Jan 2017"},{"$f":"ZZZ__FnCalls!F92","v":"Feb 2017"},{"$f":"ZZZ__FnCalls!F93","v":"Mar 2017"},{"$f":"ZZZ__FnCalls!F94","v":"Apr 2017"},{"$f":"ZZZ__FnCalls!F95","v":"May 2017"},{"$f":"ZZZ__FnCalls!F96","v":"Jun 2017"},{"$f":"ZZZ__FnCalls!F97","v":"Jul 2017"},{"$f":"ZZZ__FnCalls!F98","v":"Aug 2017"},{"$f":"ZZZ__FnCalls!F99","v":"Sep 2017"},{"$f":"ZZZ__FnCalls!F100","v":"Oct 2017"},{"$f":"ZZZ__FnCalls!F101","v":"Nov 2017"},{"$f":"ZZZ__FnCalls!F102","v":"Dec 2017"},{"$f":"ZZZ__FnCalls!H91","v":"2017"},{"$f":"ZZZ__FnCalls!F103","v":"Jan 2018"},{"$f":"ZZZ__FnCalls!F104","v":"Feb 2018"},{"$f":"ZZZ__FnCalls!F105","v":"Mar 2018"},{"$f":"ZZZ__FnCalls!F106","v":"Apr 2018"},{"$f":"ZZZ__FnCalls!F107","v":"May 2018"},{"$f":"ZZZ__FnCalls!F108","v":"Jun 2018"},{"$f":"ZZZ__FnCalls!F109","v":"Jul 2018"},{"$f":"ZZZ__FnCalls!F110","v":"Aug 2018"},{"$f":"ZZZ__FnCalls!F111","v":"Sep 2018"},{"$f":"ZZZ__FnCalls!F112","v":"Oct 2018"},{"$f":"ZZZ__FnCalls!F113","v":"Nov 2018"},{"$f":"ZZZ__FnCalls!F114","v":"Dec 2018"},{"$f":"ZZZ__FnCalls!H103","v":"2018"},{"$f":"ZZZ__FnCalls!F115","v":"Jan 2019"},{"$f":"ZZZ__FnCalls!F116","v":"Feb 2019"},{"$f":"ZZZ__FnCalls!F117","v":"Mar 2019"},{"$f":"ZZZ__FnCalls!F118","v":"Apr 2019"},{"$f":"ZZZ__FnCalls!F119","v":"May 2019"},{"$f":"ZZZ__FnCalls!F120","v":"Jun 2019"},{"$f":"ZZZ__FnCalls!F121","v":"Jul 2019"},{"$f":"ZZZ__FnCalls!F122","v":"Aug 2019"},{"$f":"ZZZ__FnCalls!F123","v":"Sep 2019"},{"$f":"ZZZ__FnCalls!F124","v":"Oct 2019"},{"$f":"ZZZ__FnCalls!F125","v":"Nov 2019"},{"$f":"ZZZ__FnCalls!F126","v":"Dec 2019"},{"$f":"ZZZ__FnCalls!H115","v":"2019"},{"$f":"ZZZ__FnCalls!F127","v":"Jan 2020"},{"$f":"ZZZ__FnCalls!F128","v":"Feb 2020"},{"$f":"ZZZ__FnCalls!F129","v":"Mar 2020"},{"$f":"ZZZ__FnCalls!F130","v":"Apr 2020"},{"$f":"ZZZ__FnCalls!F131","v":"May 2020"},{"$f":"ZZZ__FnCalls!F132","v":"Jun 2020"},{"$f":"ZZZ__FnCalls!F133","v":"Jul 2020"},{"$f":"ZZZ__FnCalls!F134","v":"Aug 2020"},{"$f":"ZZZ__FnCalls!F135","v":"Sep 2020"},{"$f":"ZZZ__FnCalls!F136","v":"Oct 2020"},{"$f":"ZZZ__FnCalls!F137","v":"Nov 2020"},{"$f":"ZZZ__FnCalls!F138","v":"Dec 2020"},{"$f":"ZZZ__FnCalls!H127","v":"2020"}]
[null,{"$f":"ZZZ__FnCalls!A7","v":"2010-01-01"},{"$f":"ZZZ__FnCalls!A8","v":"2010-02-01"},{"$f":"ZZZ__FnCalls!A9","v":"2010-03-01"},{"$f":"ZZZ__FnCalls!A10","v":"2010-04-01"},{"$f":"ZZZ__FnCalls!A11","v":"2010-05-01"},{"$f":"ZZZ__FnCalls!A12","v":"2010-06-01"},{"$f":"ZZZ__FnCalls!A13","v":"2010-07-01"},{"$f":"ZZZ__FnCalls!A14","v":"2010-08-01"},{"$f":"ZZZ__FnCalls!A15","v":"2010-09-01"},{"$f":"ZZZ__FnCalls!A16","v":"2010-10-01"},{"$f":"ZZZ__FnCalls!A17","v":"2010-11-01"},{"$f":"ZZZ__FnCalls!A18","v":"2010-12-01"},{"$f":"ZZZ__FnCalls!A7","v":"2010-01-01"},{"$f":"ZZZ__FnCalls!A19","v":"2011-01-01"},{"$f":"ZZZ__FnCalls!A20","v":"2011-02-01"},{"$f":"ZZZ__FnCalls!A21","v":"2011-03-01"},{"$f":"ZZZ__FnCalls!A22","v":"2011-04-01"},{"$f":"ZZZ__FnCalls!A23","v":"2011-05-01"},{"$f":"ZZZ__FnCalls!A24","v":"2011-06-01"},{"$f":"ZZZ__FnCalls!A25","v":"2011-07-01"},{"$f":"ZZZ__FnCalls!A26","v":"2011-08-01"},{"$f":"ZZZ__FnCalls!A27","v":"2011-09-01"},{"$f":"ZZZ__FnCalls!A28","v":"2011-10-01"},{"$f":"ZZZ__FnCalls!A29","v":"2011-11-01"},{"$f":"ZZZ__FnCalls!A30","v":"2011-12-01"},{"$f":"ZZZ__FnCalls!A19","v":"2011-01-01"},{"$f":"ZZZ__FnCalls!A31","v":"2012-01-01"},{"$f":"ZZZ__FnCalls!A32","v":"2012-02-01"},{"$f":"ZZZ__FnCalls!A33","v":"2012-03-01"},{"$f":"ZZZ__FnCalls!A34","v":"2012-04-01"},{"$f":"ZZZ__FnCalls!A35","v":"2012-05-01"},{"$f":"ZZZ__FnCalls!A36","v":"2012-06-01"},{"$f":"ZZZ__FnCalls!A37","v":"2012-07-01"},{"$f":"ZZZ__FnCalls!A38","v":"2012-08-01"},{"$f":"ZZZ__FnCalls!A39","v":"2012-09-01"},{"$f":"ZZZ__FnCalls!A40","v":"2012-10-01"},{"$f":"ZZZ__FnCalls!A41","v":"2012-11-01"},{"$f":"ZZZ__FnCalls!A42","v":"2012-12-01"},{"$f":"ZZZ__FnCalls!A31","v":"2012-01-01"},{"$f":"ZZZ__FnCalls!A43","v":"2013-01-01"},{"$f":"ZZZ__FnCalls!A44","v":"2013-02-01"},{"$f":"ZZZ__FnCalls!A45","v":"2013-03-01"},{"$f":"ZZZ__FnCalls!A46","v":"2013-04-01"},{"$f":"ZZZ__FnCalls!A47","v":"2013-05-01"},{"$f":"ZZZ__FnCalls!A48","v":"2013-06-01"},{"$f":"ZZZ__FnCalls!A49","v":"2013-07-01"},{"$f":"ZZZ__FnCalls!A50","v":"2013-08-01"},{"$f":"ZZZ__FnCalls!A51","v":"2013-09-01"},{"$f":"ZZZ__FnCalls!A52","v":"2013-10-01"},{"$f":"ZZZ__FnCalls!A53","v":"2013-11-01"},{"$f":"ZZZ__FnCalls!A54","v":"2013-12-01"},{"$f":"ZZZ__FnCalls!A43","v":"2013-01-01"},{"$f":"ZZZ__FnCalls!A55","v":"2014-01-01"},{"$f":"ZZZ__FnCalls!A56","v":"2014-02-01"},{"$f":"ZZZ__FnCalls!A57","v":"2014-03-01"},{"$f":"ZZZ__FnCalls!A58","v":"2014-04-01"},{"$f":"ZZZ__FnCalls!A59","v":"2014-05-01"},{"$f":"ZZZ__FnCalls!A60","v":"2014-06-01"},{"$f":"ZZZ__FnCalls!A61","v":"2014-07-01"},{"$f":"ZZZ__FnCalls!A62","v":"2014-08-01"},{"$f":"ZZZ__FnCalls!A63","v":"2014-09-01"},{"$f":"ZZZ__FnCalls!A64","v":"2014-10-01"},{"$f":"ZZZ__FnCalls!A65","v":"2014-11-01"},{"$f":"ZZZ__FnCalls!A66","v":"2014-12-01"},{"$f":"ZZZ__FnCalls!A55","v":"2014-01-01"},{"$f":"ZZZ__FnCalls!A67","v":"2015-01-01"},{"$f":"ZZZ__FnCalls!A68","v":"2015-02-01"},{"$f":"ZZZ__FnCalls!A69","v":"2015-03-01"},{"$f":"ZZZ__FnCalls!A70","v":"2015-04-01"},{"$f":"ZZZ__FnCalls!A71","v":"2015-05-01"},{"$f":"ZZZ__FnCalls!A72","v":"2015-06-01"},{"$f":"ZZZ__FnCalls!A73","v":"2015-07-01"},{"$f":"ZZZ__FnCalls!A74","v":"2015-08-01"},{"$f":"ZZZ__FnCalls!A75","v":"2015-09-01"},{"$f":"ZZZ__FnCalls!A76","v":"2015-10-01"},{"$f":"ZZZ__FnCalls!A77","v":"2015-11-01"},{"$f":"ZZZ__FnCalls!A78","v":"2015-12-01"},{"$f":"ZZZ__FnCalls!A67","v":"2015-01-01"},{"$f":"ZZZ__FnCalls!A79","v":"2016-01-01"},{"$f":"ZZZ__FnCalls!A80","v":"2016-02-01"},{"$f":"ZZZ__FnCalls!A81","v":"2016-03-01"},{"$f":"ZZZ__FnCalls!A82","v":"2016-04-01"},{"$f":"ZZZ__FnCalls!A83","v":"2016-05-01"},{"$f":"ZZZ__FnCalls!A84","v":"2016-06-01"},{"$f":"ZZZ__FnCalls!A85","v":"2016-07-01"},{"$f":"ZZZ__FnCalls!A86","v":"2016-08-01"},{"$f":"ZZZ__FnCalls!A87","v":"2016-09-01"},{"$f":"ZZZ__FnCalls!A88","v":"2016-10-01"},{"$f":"ZZZ__FnCalls!A89","v":"2016-11-01"},{"$f":"ZZZ__FnCalls!A90","v":"2016-12-01"},{"$f":"ZZZ__FnCalls!A79","v":"2016-01-01"},{"$f":"ZZZ__FnCalls!A91","v":"2017-01-01"},{"$f":"ZZZ__FnCalls!A92","v":"2017-02-01"},{"$f":"ZZZ__FnCalls!A93","v":"2017-03-01"},{"$f":"ZZZ__FnCalls!A94","v":"2017-04-01"},{"$f":"ZZZ__FnCalls!A95","v":"2017-05-01"},{"$f":"ZZZ__FnCalls!A96","v":"2017-06-01"},{"$f":"ZZZ__FnCalls!A97","v":"2017-07-01"},{"$f":"ZZZ__FnCalls!A98","v":"2017-08-01"},{"$f":"ZZZ__FnCalls!A99","v":"2017-09-01"},{"$f":"ZZZ__FnCalls!A100","v":"2017-10-01"},{"$f":"ZZZ__FnCalls!A101","v":"2017-11-01"},{"$f":"ZZZ__FnCalls!A102","v":"2017-12-01"},{"$f":"ZZZ__FnCalls!A91","v":"2017-01-01"},{"$f":"ZZZ__FnCalls!A103","v":"2018-01-01"},{"$f":"ZZZ__FnCalls!A104","v":"2018-02-01"},{"$f":"ZZZ__FnCalls!A105","v":"2018-03-01"},{"$f":"ZZZ__FnCalls!A106","v":"2018-04-01"},{"$f":"ZZZ__FnCalls!A107","v":"2018-05-01"},{"$f":"ZZZ__FnCalls!A108","v":"2018-06-01"},{"$f":"ZZZ__FnCalls!A109","v":"2018-07-01"},{"$f":"ZZZ__FnCalls!A110","v":"2018-08-01"},{"$f":"ZZZ__FnCalls!A111","v":"2018-09-01"},{"$f":"ZZZ__FnCalls!A112","v":"2018-10-01"},{"$f":"ZZZ__FnCalls!A113","v":"2018-11-01"},{"$f":"ZZZ__FnCalls!A114","v":"2018-12-01"},{"$f":"ZZZ__FnCalls!A103","v":"2018-01-01"},{"$f":"ZZZ__FnCalls!A115","v":"2019-01-01"},{"$f":"ZZZ__FnCalls!A116","v":"2019-02-01"},{"$f":"ZZZ__FnCalls!A117","v":"2019-03-01"},{"$f":"ZZZ__FnCalls!A118","v":"2019-04-01"},{"$f":"ZZZ__FnCalls!A119","v":"2019-05-01"},{"$f":"ZZZ__FnCalls!A120","v":"2019-06-01"},{"$f":"ZZZ__FnCalls!A121","v":"2019-07-01"},{"$f":"ZZZ__FnCalls!A122","v":"2019-08-01"},{"$f":"ZZZ__FnCalls!A123","v":"2019-09-01"},{"$f":"ZZZ__FnCalls!A124","v":"2019-10-01"},{"$f":"ZZZ__FnCalls!A125","v":"2019-11-01"},{"$f":"ZZZ__FnCalls!A126","v":"2019-12-01"},{"$f":"ZZZ__FnCalls!A115","v":"2019-01-01"},{"$f":"ZZZ__FnCalls!A127","v":"2020-01-01"},{"$f":"ZZZ__FnCalls!A128","v":"2020-02-01"},{"$f":"ZZZ__FnCalls!A129","v":"2020-03-01"},{"$f":"ZZZ__FnCalls!A130","v":"2020-04-01"},{"$f":"ZZZ__FnCalls!A131","v":"2020-05-01"},{"$f":"ZZZ__FnCalls!A132","v":"2020-06-01"},{"$f":"ZZZ__FnCalls!A133","v":"2020-07-01"},{"$f":"ZZZ__FnCalls!A134","v":"2020-08-01"},{"$f":"ZZZ__FnCalls!A135","v":"2020-09-01"},{"$f":"ZZZ__FnCalls!A136","v":"2020-10-01"},{"$f":"ZZZ__FnCalls!A137","v":"2020-11-01"},{"$f":"ZZZ__FnCalls!A138","v":"2020-12-01"},{"$f":"ZZZ__FnCalls!A127","v":"2020-01-01"}]
[{"$f":"\"Employment_Desired_stdev_2\"","v":"Employment_Desired_stdev_2"}]
[null,{"$f":"ZZZ__FnCalls!F7","v":"Jan 2010"},{"$f":"ZZZ__FnCalls!F8","v":"Feb 2010"},{"$f":"ZZZ__FnCalls!F9","v":"Mar 2010"},{"$f":"ZZZ__FnCalls!F10","v":"Apr 2010"},{"$f":"ZZZ__FnCalls!F11","v":"May 2010"},{"$f":"ZZZ__FnCalls!F12","v":"Jun 2010"},{"$f":"ZZZ__FnCalls!F13","v":"Jul 2010"},{"$f":"ZZZ__FnCalls!F14","v":"Aug 2010"},{"$f":"ZZZ__FnCalls!F15","v":"Sep 2010"},{"$f":"ZZZ__FnCalls!F16","v":"Oct 2010"},{"$f":"ZZZ__FnCalls!F17","v":"Nov 2010"},{"$f":"ZZZ__FnCalls!F18","v":"Dec 2010"},{"$f":"ZZZ__FnCalls!H7","v":"2010"},{"$f":"ZZZ__FnCalls!F19","v":"Jan 2011"},{"$f":"ZZZ__FnCalls!F20","v":"Feb 2011"},{"$f":"ZZZ__FnCalls!F21","v":"Mar 2011"},{"$f":"ZZZ__FnCalls!F22","v":"Apr 2011"},{"$f":"ZZZ__FnCalls!F23","v":"May 2011"},{"$f":"ZZZ__FnCalls!F24","v":"Jun 2011"},{"$f":"ZZZ__FnCalls!F25","v":"Jul 2011"},{"$f":"ZZZ__FnCalls!F26","v":"Aug 2011"},{"$f":"ZZZ__FnCalls!F27","v":"Sep 2011"},{"$f":"ZZZ__FnCalls!F28","v":"Oct 2011"},{"$f":"ZZZ__FnCalls!F29","v":"Nov 2011"},{"$f":"ZZZ__FnCalls!F30","v":"Dec 2011"},{"$f":"ZZZ__FnCalls!H19","v":"2011"},{"$f":"ZZZ__FnCalls!F31","v":"Jan 2012"},{"$f":"ZZZ__FnCalls!F32","v":"Feb 2012"},{"$f":"ZZZ__FnCalls!F33","v":"Mar 2012"},{"$f":"ZZZ__FnCalls!F34","v":"Apr 2012"},{"$f":"ZZZ__FnCalls!F35","v":"May 2012"},{"$f":"ZZZ__FnCalls!F36","v":"Jun 2012"},{"$f":"ZZZ__FnCalls!F37","v":"Jul 2012"},{"$f":"ZZZ__FnCalls!F38","v":"Aug 2012"},{"$f":"ZZZ__FnCalls!F39","v":"Sep 2012"},{"$f":"ZZZ__FnCalls!F40","v":"Oct 2012"},{"$f":"ZZZ__FnCalls!F41","v":"Nov 2012"},{"$f":"ZZZ__FnCalls!F42","v":"Dec 2012"},{"$f":"ZZZ__FnCalls!H31","v":"2012"},{"$f":"ZZZ__FnCalls!F43","v":"Jan 2013"},{"$f":"ZZZ__FnCalls!F44","v":"Feb 2013"},{"$f":"ZZZ__FnCalls!F45","v":"Mar 2013"},{"$f":"ZZZ__FnCalls!F46","v":"Apr 2013"},{"$f":"ZZZ__FnCalls!F47","v":"May 2013"},{"$f":"ZZZ__FnCalls!F48","v":"Jun 2013"},{"$f":"ZZZ__FnCalls!F49","v":"Jul 2013"},{"$f":"ZZZ__FnCalls!F50","v":"Aug 2013"},{"$f":"ZZZ__FnCalls!F51","v":"Sep 2013"},{"$f":"ZZZ__FnCalls!F52","v":"Oct 2013"},{"$f":"ZZZ__FnCalls!F53","v":"Nov 2013"},{"$f":"ZZZ__FnCalls!F54","v":"Dec 2013"},{"$f":"ZZZ__FnCalls!H43","v":"2013"},{"$f":"ZZZ__FnCalls!F55","v":"Jan 2014"},{"$f":"ZZZ__FnCalls!F56","v":"Feb 2014"},{"$f":"ZZZ__FnCalls!F57","v":"Mar 2014"},{"$f":"ZZZ__FnCalls!F58","v":"Apr 2014"},{"$f":"ZZZ__FnCalls!F59","v":"May 2014"},{"$f":"ZZZ__FnCalls!F60","v":"Jun 2014"},{"$f":"ZZZ__FnCalls!F61","v":"Jul 2014"},{"$f":"ZZZ__FnCalls!F62","v":"Aug 2014"},{"$f":"ZZZ__FnCalls!F63","v":"Sep 2014"},{"$f":"ZZZ__FnCalls!F64","v":"Oct 2014"},{"$f":"ZZZ__FnCalls!F65","v":"Nov 2014"},{"$f":"ZZZ__FnCalls!F66","v":"Dec 2014"},{"$f":"ZZZ__FnCalls!H55","v":"2014"},{"$f":"ZZZ__FnCalls!F67","v":"Jan 2015"},{"$f":"ZZZ__FnCalls!F68","v":"Feb 2015"},{"$f":"ZZZ__FnCalls!F69","v":"Mar 2015"},{"$f":"ZZZ__FnCalls!F70","v":"Apr 2015"},{"$f":"ZZZ__FnCalls!F71","v":"May 2015"},{"$f":"ZZZ__FnCalls!F72","v":"Jun 2015"},{"$f":"ZZZ__FnCalls!F73","v":"Jul 2015"},{"$f":"ZZZ__FnCalls!F74","v":"Aug 2015"},{"$f":"ZZZ__FnCalls!F75","v":"Sep 2015"},{"$f":"ZZZ__FnCalls!F76","v":"Oct 2015"},{"$f":"ZZZ__FnCalls!F77","v":"Nov 2015"},{"$f":"ZZZ__FnCalls!F78","v":"Dec 2015"},{"$f":"ZZZ__FnCalls!H67","v":"2015"},{"$f":"ZZZ__FnCalls!F79","v":"Jan 2016"},{"$f":"ZZZ__FnCalls!F80","v":"Feb 2016"},{"$f":"ZZZ__FnCalls!F81","v":"Mar 2016"},{"$f":"ZZZ__FnCalls!F82","v":"Apr 2016"},{"$f":"ZZZ__FnCalls!F83","v":"May 2016"},{"$f":"ZZZ__FnCalls!F84","v":"Jun 2016"},{"$f":"ZZZ__FnCalls!F85","v":"Jul 2016"},{"$f":"ZZZ__FnCalls!F86","v":"Aug 2016"},{"$f":"ZZZ__FnCalls!F87","v":"Sep 2016"},{"$f":"ZZZ__FnCalls!F88","v":"Oct 2016"},{"$f":"ZZZ__FnCalls!F89","v":"Nov 2016"},{"$f":"ZZZ__FnCalls!F90","v":"Dec 2016"},{"$f":"ZZZ__FnCalls!H79","v":"2016"},{"$f":"ZZZ__FnCalls!F91","v":"Jan 2017"},{"$f":"ZZZ__FnCalls!F92","v":"Feb 2017"},{"$f":"ZZZ__FnCalls!F93","v":"Mar 2017"},{"$f":"ZZZ__FnCalls!F94","v":"Apr 2017"},{"$f":"ZZZ__FnCalls!F95","v":"May 2017"},{"$f":"ZZZ__FnCalls!F96","v":"Jun 2017"},{"$f":"ZZZ__FnCalls!F97","v":"Jul 2017"},{"$f":"ZZZ__FnCalls!F98","v":"Aug 2017"},{"$f":"ZZZ__FnCalls!F99","v":"Sep 2017"},{"$f":"ZZZ__FnCalls!F100","v":"Oct 2017"},{"$f":"ZZZ__FnCalls!F101","v":"Nov 2017"},{"$f":"ZZZ__FnCalls!F102","v":"Dec 2017"},{"$f":"ZZZ__FnCalls!H91","v":"2017"},{"$f":"ZZZ__FnCalls!F103","v":"Jan 2018"},{"$f":"ZZZ__FnCalls!F104","v":"Feb 2018"},{"$f":"ZZZ__FnCalls!F105","v":"Mar 2018"},{"$f":"ZZZ__FnCalls!F106","v":"Apr 2018"},{"$f":"ZZZ__FnCalls!F107","v":"May 2018"},{"$f":"ZZZ__FnCalls!F108","v":"Jun 2018"},{"$f":"ZZZ__FnCalls!F109","v":"Jul 2018"},{"$f":"ZZZ__FnCalls!F110","v":"Aug 2018"},{"$f":"ZZZ__FnCalls!F111","v":"Sep 2018"},{"$f":"ZZZ__FnCalls!F112","v":"Oct 2018"},{"$f":"ZZZ__FnCalls!F113","v":"Nov 2018"},{"$f":"ZZZ__FnCalls!F114","v":"Dec 2018"},{"$f":"ZZZ__FnCalls!H103","v":"2018"},{"$f":"ZZZ__FnCalls!F115","v":"Jan 2019"},{"$f":"ZZZ__FnCalls!F116","v":"Feb 2019"},{"$f":"ZZZ__FnCalls!F117","v":"Mar 2019"},{"$f":"ZZZ__FnCalls!F118","v":"Apr 2019"},{"$f":"ZZZ__FnCalls!F119","v":"May 2019"},{"$f":"ZZZ__FnCalls!F120","v":"Jun 2019"},{"$f":"ZZZ__FnCalls!F121","v":"Jul 2019"},{"$f":"ZZZ__FnCalls!F122","v":"Aug 2019"},{"$f":"ZZZ__FnCalls!F123","v":"Sep 2019"},{"$f":"ZZZ__FnCalls!F124","v":"Oct 2019"},{"$f":"ZZZ__FnCalls!F125","v":"Nov 2019"},{"$f":"ZZZ__FnCalls!F126","v":"Dec 2019"},{"$f":"ZZZ__FnCalls!H115","v":"2019"},{"$f":"ZZZ__FnCalls!F127","v":"Jan 2020"},{"$f":"ZZZ__FnCalls!F128","v":"Feb 2020"},{"$f":"ZZZ__FnCalls!F129","v":"Mar 2020"},{"$f":"ZZZ__FnCalls!F130","v":"Apr 2020"},{"$f":"ZZZ__FnCalls!F131","v":"May 2020"},{"$f":"ZZZ__FnCalls!F132","v":"Jun 2020"},{"$f":"ZZZ__FnCalls!F133","v":"Jul 2020"},{"$f":"ZZZ__FnCalls!F134","v":"Aug 2020"},{"$f":"ZZZ__FnCalls!F135","v":"Sep 2020"},{"$f":"ZZZ__FnCalls!F136","v":"Oct 2020"},{"$f":"ZZZ__FnCalls!F137","v":"Nov 2020"},{"$f":"ZZZ__FnCalls!F138","v":"Dec 2020"},{"$f":"ZZZ__FnCalls!H127","v":"2020"}]
[null,{"$f":"ZZZ__FnCalls!F7","v":"Jan 2010"},{"$f":"ZZZ__FnCalls!F8","v":"Feb 2010"},{"$f":"ZZZ__FnCalls!F9","v":"Mar 2010"},{"$f":"ZZZ__FnCalls!F10","v":"Apr 2010"},{"$f":"ZZZ__FnCalls!F11","v":"May 2010"},{"$f":"ZZZ__FnCalls!F12","v":"Jun 2010"},{"$f":"ZZZ__FnCalls!F13","v":"Jul 2010"},{"$f":"ZZZ__FnCalls!F14","v":"Aug 2010"},{"$f":"ZZZ__FnCalls!F15","v":"Sep 2010"},{"$f":"ZZZ__FnCalls!F16","v":"Oct 2010"},{"$f":"ZZZ__FnCalls!F17","v":"Nov 2010"},{"$f":"ZZZ__FnCalls!F18","v":"Dec 2010"},{"$f":"ZZZ__FnCalls!F7","v":"Jan 2010"},{"$f":"ZZZ__FnCalls!F19","v":"Jan 2011"},{"$f":"ZZZ__FnCalls!F20","v":"Feb 2011"},{"$f":"ZZZ__FnCalls!F21","v":"Mar 2011"},{"$f":"ZZZ__FnCalls!F22","v":"Apr 2011"},{"$f":"ZZZ__FnCalls!F23","v":"May 2011"},{"$f":"ZZZ__FnCalls!F24","v":"Jun 2011"},{"$f":"ZZZ__FnCalls!F25","v":"Jul 2011"},{"$f":"ZZZ__FnCalls!F26","v":"Aug 2011"},{"$f":"ZZZ__FnCalls!F27","v":"Sep 2011"},{"$f":"ZZZ__FnCalls!F28","v":"Oct 2011"},{"$f":"ZZZ__FnCalls!F29","v":"Nov 2011"},{"$f":"ZZZ__FnCalls!F30","v":"Dec 2011"},{"$f":"ZZZ__FnCalls!F19","v":"Jan 2011"},{"$f":"ZZZ__FnCalls!F31","v":"Jan 2012"},{"$f":"ZZZ__FnCalls!F32","v":"Feb 2012"},{"$f":"ZZZ__FnCalls!F33","v":"Mar 2012"},{"$f":"ZZZ__FnCalls!F34","v":"Apr 2012"},{"$f":"ZZZ__FnCalls!F35","v":"May 2012"},{"$f":"ZZZ__FnCalls!F36","v":"Jun 2012"},{"$f":"ZZZ__FnCalls!F37","v":"Jul 2012"},{"$f":"ZZZ__FnCalls!F38","v":"Aug 2012"},{"$f":"ZZZ__FnCalls!F39","v":"Sep 2012"},{"$f":"ZZZ__FnCalls!F40","v":"Oct 2012"},{"$f":"ZZZ__FnCalls!F41","v":"Nov 2012"},{"$f":"ZZZ__FnCalls!F42","v":"Dec 2012"},{"$f":"ZZZ__FnCalls!F31","v":"Jan 2012"},{"$f":"ZZZ__FnCalls!F43","v":"Jan 2013"},{"$f":"ZZZ__FnCalls!F44","v":"Feb 2013"},{"$f":"ZZZ__FnCalls!F45","v":"Mar 2013"},{"$f":"ZZZ__FnCalls!F46","v":"Apr 2013"},{"$f":"ZZZ__FnCalls!F47","v":"May 2013"},{"$f":"ZZZ__FnCalls!F48","v":"Jun 2013"},{"$f":"ZZZ__FnCalls!F49","v":"Jul 2013"},{"$f":"ZZZ__FnCalls!F50","v":"Aug 2013"},{"$f":"ZZZ__FnCalls!F51","v":"Sep 2013"},{"$f":"ZZZ__FnCalls!F52","v":"Oct 2013"},{"$f":"ZZZ__FnCalls!F53","v":"Nov 2013"},{"$f":"ZZZ__FnCalls!F54","v":"Dec 2013"},{"$f":"ZZZ__FnCalls!F43","v":"Jan 2013"},{"$f":"ZZZ__FnCalls!F55","v":"Jan 2014"},{"$f":"ZZZ__FnCalls!F56","v":"Feb 2014"},{"$f":"ZZZ__FnCalls!F57","v":"Mar 2014"},{"$f":"ZZZ__FnCalls!F58","v":"Apr 2014"},{"$f":"ZZZ__FnCalls!F59","v":"May 2014"},{"$f":"ZZZ__FnCalls!F60","v":"Jun 2014"},{"$f":"ZZZ__FnCalls!F61","v":"Jul 2014"},{"$f":"ZZZ__FnCalls!F62","v":"Aug 2014"},{"$f":"ZZZ__FnCalls!F63","v":"Sep 2014"},{"$f":"ZZZ__FnCalls!F64","v":"Oct 2014"},{"$f":"ZZZ__FnCalls!F65","v":"Nov 2014"},{"$f":"ZZZ__FnCalls!F66","v":"Dec 2014"},{"$f":"ZZZ__FnCalls!F55","v":"Jan 2014"},{"$f":"ZZZ__FnCalls!F67","v":"Jan 2015"},{"$f":"ZZZ__FnCalls!F68","v":"Feb 2015"},{"$f":"ZZZ__FnCalls!F69","v":"Mar 2015"},{"$f":"ZZZ__FnCalls!F70","v":"Apr 2015"},{"$f":"ZZZ__FnCalls!F71","v":"May 2015"},{"$f":"ZZZ__FnCalls!F72","v":"Jun 2015"},{"$f":"ZZZ__FnCalls!F73","v":"Jul 2015"},{"$f":"ZZZ__FnCalls!F74","v":"Aug 2015"},{"$f":"ZZZ__FnCalls!F75","v":"Sep 2015"},{"$f":"ZZZ__FnCalls!F76","v":"Oct 2015"},{"$f":"ZZZ__FnCalls!F77","v":"Nov 2015"},{"$f":"ZZZ__FnCalls!F78","v":"Dec 2015"},{"$f":"ZZZ__FnCalls!F67","v":"Jan 2015"},{"$f":"ZZZ__FnCalls!F79","v":"Jan 2016"},{"$f":"ZZZ__FnCalls!F80","v":"Feb 2016"},{"$f":"ZZZ__FnCalls!F81","v":"Mar 2016"},{"$f":"ZZZ__FnCalls!F82","v":"Apr 2016"},{"$f":"ZZZ__FnCalls!F83","v":"May 2016"},{"$f":"ZZZ__FnCalls!F84","v":"Jun 2016"},{"$f":"ZZZ__FnCalls!F85","v":"Jul 2016"},{"$f":"ZZZ__FnCalls!F86","v":"Aug 2016"},{"$f":"ZZZ__FnCalls!F87","v":"Sep 2016"},{"$f":"ZZZ__FnCalls!F88","v":"Oct 2016"},{"$f":"ZZZ__FnCalls!F89","v":"Nov 2016"},{"$f":"ZZZ__FnCalls!F90","v":"Dec 2016"},{"$f":"ZZZ__FnCalls!F79","v":"Jan 2016"},{"$f":"ZZZ__FnCalls!F91","v":"Jan 2017"},{"$f":"ZZZ__FnCalls!F92","v":"Feb 2017"},{"$f":"ZZZ__FnCalls!F93","v":"Mar 2017"},{"$f":"ZZZ__FnCalls!F94","v":"Apr 2017"},{"$f":"ZZZ__FnCalls!F95","v":"May 2017"},{"$f":"ZZZ__FnCalls!F96","v":"Jun 2017"},{"$f":"ZZZ__FnCalls!F97","v":"Jul 2017"},{"$f":"ZZZ__FnCalls!F98","v":"Aug 2017"},{"$f":"ZZZ__FnCalls!F99","v":"Sep 2017"},{"$f":"ZZZ__FnCalls!F100","v":"Oct 2017"},{"$f":"ZZZ__FnCalls!F101","v":"Nov 2017"},{"$f":"ZZZ__FnCalls!F102","v":"Dec 2017"},{"$f":"ZZZ__FnCalls!F91","v":"Jan 2017"},{"$f":"ZZZ__FnCalls!F103","v":"Jan 2018"},{"$f":"ZZZ__FnCalls!F104","v":"Feb 2018"},{"$f":"ZZZ__FnCalls!F105","v":"Mar 2018"},{"$f":"ZZZ__FnCalls!F106","v":"Apr 2018"},{"$f":"ZZZ__FnCalls!F107","v":"May 2018"},{"$f":"ZZZ__FnCalls!F108","v":"Jun 2018"},{"$f":"ZZZ__FnCalls!F109","v":"Jul 2018"},{"$f":"ZZZ__FnCalls!F110","v":"Aug 2018"},{"$f":"ZZZ__FnCalls!F111","v":"Sep 2018"},{"$f":"ZZZ__FnCalls!F112","v":"Oct 2018"},{"$f":"ZZZ__FnCalls!F113","v":"Nov 2018"},{"$f":"ZZZ__FnCalls!F114","v":"Dec 2018"},{"$f":"ZZZ__FnCalls!F103","v":"Jan 2018"},{"$f":"ZZZ__FnCalls!F115","v":"Jan 2019"},{"$f":"ZZZ__FnCalls!F116","v":"Feb 2019"},{"$f":"ZZZ__FnCalls!F117","v":"Mar 2019"},{"$f":"ZZZ__FnCalls!F118","v":"Apr 2019"},{"$f":"ZZZ__FnCalls!F119","v":"May 2019"},{"$f":"ZZZ__FnCalls!F120","v":"Jun 2019"},{"$f":"ZZZ__FnCalls!F121","v":"Jul 2019"},{"$f":"ZZZ__FnCalls!F122","v":"Aug 2019"},{"$f":"ZZZ__FnCalls!F123","v":"Sep 2019"},{"$f":"ZZZ__FnCalls!F124","v":"Oct 2019"},{"$f":"ZZZ__FnCalls!F125","v":"Nov 2019"},{"$f":"ZZZ__FnCalls!F126","v":"Dec 2019"},{"$f":"ZZZ__FnCalls!F115","v":"Jan 2019"},{"$f":"ZZZ__FnCalls!F127","v":"Jan 2020"},{"$f":"ZZZ__FnCalls!F128","v":"Feb 2020"},{"$f":"ZZZ__FnCalls!F129","v":"Mar 2020"},{"$f":"ZZZ__FnCalls!F130","v":"Apr 2020"},{"$f":"ZZZ__FnCalls!F131","v":"May 2020"},{"$f":"ZZZ__FnCalls!F132","v":"Jun 2020"},{"$f":"ZZZ__FnCalls!F133","v":"Jul 2020"},{"$f":"ZZZ__FnCalls!F134","v":"Aug 2020"},{"$f":"ZZZ__FnCalls!F135","v":"Sep 2020"},{"$f":"ZZZ__FnCalls!F136","v":"Oct 2020"},{"$f":"ZZZ__FnCalls!F137","v":"Nov 2020"},{"$f":"ZZZ__FnCalls!F138","v":"Dec 2020"},{"$f":"ZZZ__FnCalls!F127","v":"Jan 2020"}]
[{"$f":"\"Income_Current_Disposable_mean_1\"","v":"Income_Current_Disposable_mean_1"}]
[null,{"$f":"ZZZ__FnCalls!F7","v":"Jan 2010"},{"$f":"ZZZ__FnCalls!F8","v":"Feb 2010"},{"$f":"ZZZ__FnCalls!F9","v":"Mar 2010"},{"$f":"ZZZ__FnCalls!F10","v":"Apr 2010"},{"$f":"ZZZ__FnCalls!F11","v":"May 2010"},{"$f":"ZZZ__FnCalls!F12","v":"Jun 2010"},{"$f":"ZZZ__FnCalls!F13","v":"Jul 2010"},{"$f":"ZZZ__FnCalls!F14","v":"Aug 2010"},{"$f":"ZZZ__FnCalls!F15","v":"Sep 2010"},{"$f":"ZZZ__FnCalls!F16","v":"Oct 2010"},{"$f":"ZZZ__FnCalls!F17","v":"Nov 2010"},{"$f":"ZZZ__FnCalls!F18","v":"Dec 2010"},{"$f":"ZZZ__FnCalls!H7","v":"2010"},{"$f":"ZZZ__FnCalls!F19","v":"Jan 2011"},{"$f":"ZZZ__FnCalls!F20","v":"Feb 2011"},{"$f":"ZZZ__FnCalls!F21","v":"Mar 2011"},{"$f":"ZZZ__FnCalls!F22","v":"Apr 2011"},{"$f":"ZZZ__FnCalls!F23","v":"May 2011"},{"$f":"ZZZ__FnCalls!F24","v":"Jun 2011"},{"$f":"ZZZ__FnCalls!F25","v":"Jul 2011"},{"$f":"ZZZ__FnCalls!F26","v":"Aug 2011"},{"$f":"ZZZ__FnCalls!F27","v":"Sep 2011"},{"$f":"ZZZ__FnCalls!F28","v":"Oct 2011"},{"$f":"ZZZ__FnCalls!F29","v":"Nov 2011"},{"$f":"ZZZ__FnCalls!F30","v":"Dec 2011"},{"$f":"ZZZ__FnCalls!H19","v":"2011"},{"$f":"ZZZ__FnCalls!F31","v":"Jan 2012"},{"$f":"ZZZ__FnCalls!F32","v":"Feb 2012"},{"$f":"ZZZ__FnCalls!F33","v":"Mar 2012"},{"$f":"ZZZ__FnCalls!F34","v":"Apr 2012"},{"$f":"ZZZ__FnCalls!F35","v":"May 2012"},{"$f":"ZZZ__FnCalls!F36","v":"Jun 2012"},{"$f":"ZZZ__FnCalls!F37","v":"Jul 2012"},{"$f":"ZZZ__FnCalls!F38","v":"Aug 2012"},{"$f":"ZZZ__FnCalls!F39","v":"Sep 2012"},{"$f":"ZZZ__FnCalls!F40","v":"Oct 2012"},{"$f":"ZZZ__FnCalls!F41","v":"Nov 2012"},{"$f":"ZZZ__FnCalls!F42","v":"Dec 2012"},{"$f":"ZZZ__FnCalls!H31","v":"2012"},{"$f":"ZZZ__FnCalls!F43","v":"Jan 2013"},{"$f":"ZZZ__FnCalls!F44","v":"Feb 2013"},{"$f":"ZZZ__FnCalls!F45","v":"Mar 2013"},{"$f":"ZZZ__FnCalls!F46","v":"Apr 2013"},{"$f":"ZZZ__FnCalls!F47","v":"May 2013"},{"$f":"ZZZ__FnCalls!F48","v":"Jun 2013"},{"$f":"ZZZ__FnCalls!F49","v":"Jul 2013"},{"$f":"ZZZ__FnCalls!F50","v":"Aug 2013"},{"$f":"ZZZ__FnCalls!F51","v":"Sep 2013"},{"$f":"ZZZ__FnCalls!F52","v":"Oct 2013"},{"$f":"ZZZ__FnCalls!F53","v":"Nov 2013"},{"$f":"ZZZ__FnCalls!F54","v":"Dec 2013"},{"$f":"ZZZ__FnCalls!H43","v":"2013"},{"$f":"ZZZ__FnCalls!F55","v":"Jan 2014"},{"$f":"ZZZ__FnCalls!F56","v":"Feb 2014"},{"$f":"ZZZ__FnCalls!F57","v":"Mar 2014"},{"$f":"ZZZ__FnCalls!F58","v":"Apr 2014"},{"$f":"ZZZ__FnCalls!F59","v":"May 2014"},{"$f":"ZZZ__FnCalls!F60","v":"Jun 2014"},{"$f":"ZZZ__FnCalls!F61","v":"Jul 2014"},{"$f":"ZZZ__FnCalls!F62","v":"Aug 2014"},{"$f":"ZZZ__FnCalls!F63","v":"Sep 2014"},{"$f":"ZZZ__FnCalls!F64","v":"Oct 2014"},{"$f":"ZZZ__FnCalls!F65","v":"Nov 2014"},{"$f":"ZZZ__FnCalls!F66","v":"Dec 2014"},{"$f":"ZZZ__FnCalls!H55","v":"2014"},{"$f":"ZZZ__FnCalls!F67","v":"Jan 2015"},{"$f":"ZZZ__FnCalls!F68","v":"Feb 2015"},{"$f":"ZZZ__FnCalls!F69","v":"Mar 2015"},{"$f":"ZZZ__FnCalls!F70","v":"Apr 2015"},{"$f":"ZZZ__FnCalls!F71","v":"May 2015"},{"$f":"ZZZ__FnCalls!F72","v":"Jun 2015"},{"$f":"ZZZ__FnCalls!F73","v":"Jul 2015"},{"$f":"ZZZ__FnCalls!F74","v":"Aug 2015"},{"$f":"ZZZ__FnCalls!F75","v":"Sep 2015"},{"$f":"ZZZ__FnCalls!F76","v":"Oct 2015"},{"$f":"ZZZ__FnCalls!F77","v":"Nov 2015"},{"$f":"ZZZ__FnCalls!F78","v":"Dec 2015"},{"$f":"ZZZ__FnCalls!H67","v":"2015"},{"$f":"ZZZ__FnCalls!F79","v":"Jan 2016"},{"$f":"ZZZ__FnCalls!F80","v":"Feb 2016"},{"$f":"ZZZ__FnCalls!F81","v":"Mar 2016"},{"$f":"ZZZ__FnCalls!F82","v":"Apr 2016"},{"$f":"ZZZ__FnCalls!F83","v":"May 2016"},{"$f":"ZZZ__FnCalls!F84","v":"Jun 2016"},{"$f":"ZZZ__FnCalls!F85","v":"Jul 2016"},{"$f":"ZZZ__FnCalls!F86","v":"Aug 2016"},{"$f":"ZZZ__FnCalls!F87","v":"Sep 2016"},{"$f":"ZZZ__FnCalls!F88","v":"Oct 2016"},{"$f":"ZZZ__FnCalls!F89","v":"Nov 2016"},{"$f":"ZZZ__FnCalls!F90","v":"Dec 2016"},{"$f":"ZZZ__FnCalls!H79","v":"2016"},{"$f":"ZZZ__FnCalls!F91","v":"Jan 2017"},{"$f":"ZZZ__FnCalls!F92","v":"Feb 2017"},{"$f":"ZZZ__FnCalls!F93","v":"Mar 2017"},{"$f":"ZZZ__FnCalls!F94","v":"Apr 2017"},{"$f":"ZZZ__FnCalls!F95","v":"May 2017"},{"$f":"ZZZ__FnCalls!F96","v":"Jun 2017"},{"$f":"ZZZ__FnCalls!F97","v":"Jul 2017"},{"$f":"ZZZ__FnCalls!F98","v":"Aug 2017"},{"$f":"ZZZ__FnCalls!F99","v":"Sep 2017"},{"$f":"ZZZ__FnCalls!F100","v":"Oct 2017"},{"$f":"ZZZ__FnCalls!F101","v":"Nov 2017"},{"$f":"ZZZ__FnCalls!F102","v":"Dec 2017"},{"$f":"ZZZ__FnCalls!H91","v":"2017"},{"$f":"ZZZ__FnCalls!F103","v":"Jan 2018"},{"$f":"ZZZ__FnCalls!F104","v":"Feb 2018"},{"$f":"ZZZ__FnCalls!F105","v":"Mar 2018"},{"$f":"ZZZ__FnCalls!F106","v":"Apr 2018"},{"$f":"ZZZ__FnCalls!F107","v":"May 2018"},{"$f":"ZZZ__FnCalls!F108","v":"Jun 2018"},{"$f":"ZZZ__FnCalls!F109","v":"Jul 2018"},{"$f":"ZZZ__FnCalls!F110","v":"Aug 2018"},{"$f":"ZZZ__FnCalls!F111","v":"Sep 2018"},{"$f":"ZZZ__FnCalls!F112","v":"Oct 2018"},{"$f":"ZZZ__FnCalls!F113","v":"Nov 2018"},{"$f":"ZZZ__FnCalls!F114","v":"Dec 2018"},{"$f":"ZZZ__FnCalls!H103","v":"2018"},{"$f":"ZZZ__FnCalls!F115","v":"Jan 2019"},{"$f":"ZZZ__FnCalls!F116","v":"Feb 2019"},{"$f":"ZZZ__FnCalls!F117","v":"Mar 2019"},{"$f":"ZZZ__FnCalls!F118","v":"Apr 2019"},{"$f":"ZZZ__FnCalls!F119","v":"May 2019"},{"$f":"ZZZ__FnCalls!F120","v":"Jun 2019"},{"$f":"ZZZ__FnCalls!F121","v":"Jul 2019"},{"$f":"ZZZ__FnCalls!F122","v":"Aug 2019"},{"$f":"ZZZ__FnCalls!F123","v":"Sep 2019"},{"$f":"ZZZ__FnCalls!F124","v":"Oct 2019"},{"$f":"ZZZ__FnCalls!F125","v":"Nov 2019"},{"$f":"ZZZ__FnCalls!F126","v":"Dec 2019"},{"$f":"ZZZ__FnCalls!H115","v":"2019"},{"$f":"ZZZ__FnCalls!F127","v":"Jan 2020"},{"$f":"ZZZ__FnCalls!F128","v":"Feb 2020"},{"$f":"ZZZ__FnCalls!F129","v":"Mar 2020"},{"$f":"ZZZ__FnCalls!F130","v":"Apr 2020"},{"$f":"ZZZ__FnCalls!F131","v":"May 2020"},{"$f":"ZZZ__FnCalls!F132","v":"Jun 2020"},{"$f":"ZZZ__FnCalls!F133","v":"Jul 2020"},{"$f":"ZZZ__FnCalls!F134","v":"Aug 2020"},{"$f":"ZZZ__FnCalls!F135","v":"Sep 2020"},{"$f":"ZZZ__FnCalls!F136","v":"Oct 2020"},{"$f":"ZZZ__FnCalls!F137","v":"Nov 2020"},{"$f":"ZZZ__FnCalls!F138","v":"Dec 2020"},{"$f":"ZZZ__FnCalls!H127","v":"2020"}]
[null,{"$f":"ZZZ__FnCalls!A7","v":"2010-01-01"},{"$f":"ZZZ__FnCalls!A8","v":"2010-02-01"},{"$f":"ZZZ__FnCalls!A9","v":"2010-03-01"},{"$f":"ZZZ__FnCalls!A10","v":"2010-04-01"},{"$f":"ZZZ__FnCalls!A11","v":"2010-05-01"},{"$f":"ZZZ__FnCalls!A12","v":"2010-06-01"},{"$f":"ZZZ__FnCalls!A13","v":"2010-07-01"},{"$f":"ZZZ__FnCalls!A14","v":"2010-08-01"},{"$f":"ZZZ__FnCalls!A15","v":"2010-09-01"},{"$f":"ZZZ__FnCalls!A16","v":"2010-10-01"},{"$f":"ZZZ__FnCalls!A17","v":"2010-11-01"},{"$f":"ZZZ__FnCalls!A18","v":"2010-12-01"},{"$f":"ZZZ__FnCalls!A7","v":"2010-01-01"},{"$f":"ZZZ__FnCalls!A19","v":"2011-01-01"},{"$f":"ZZZ__FnCalls!A20","v":"2011-02-01"},{"$f":"ZZZ__FnCalls!A21","v":"2011-03-01"},{"$f":"ZZZ__FnCalls!A22","v":"2011-04-01"},{"$f":"ZZZ__FnCalls!A23","v":"2011-05-01"},{"$f":"ZZZ__FnCalls!A24","v":"2011-06-01"},{"$f":"ZZZ__FnCalls!A25","v":"2011-07-01"},{"$f":"ZZZ__FnCalls!A26","v":"2011-08-01"},{"$f":"ZZZ__FnCalls!A27","v":"2011-09-01"},{"$f":"ZZZ__FnCalls!A28","v":"2011-10-01"},{"$f":"ZZZ__FnCalls!A29","v":"2011-11-01"},{"$f":"ZZZ__FnCalls!A30","v":"2011-12-01"},{"$f":"ZZZ__FnCalls!A19","v":"2011-01-01"},{"$f":"ZZZ__FnCalls!A31","v":"2012-01-01"},{"$f":"ZZZ__FnCalls!A32","v":"2012-02-01"},{"$f":"ZZZ__FnCalls!A33","v":"2012-03-01"},{"$f":"ZZZ__FnCalls!A34","v":"2012-04-01"},{"$f":"ZZZ__FnCalls!A35","v":"2012-05-01"},{"$f":"ZZZ__FnCalls!A36","v":"2012-06-01"},{"$f":"ZZZ__FnCalls!A37","v":"2012-07-01"},{"$f":"ZZZ__FnCalls!A38","v":"2012-08-01"},{"$f":"ZZZ__FnCalls!A39","v":"2012-09-01"},{"$f":"ZZZ__FnCalls!A40","v":"2012-10-01"},{"$f":"ZZZ__FnCalls!A41","v":"2012-11-01"},{"$f":"ZZZ__FnCalls!A42","v":"2012-12-01"},{"$f":"ZZZ__FnCalls!A31","v":"2012-01-01"},{"$f":"ZZZ__FnCalls!A43","v":"2013-01-01"},{"$f":"ZZZ__FnCalls!A44","v":"2013-02-01"},{"$f":"ZZZ__FnCalls!A45","v":"2013-03-01"},{"$f":"ZZZ__FnCalls!A46","v":"2013-04-01"},{"$f":"ZZZ__FnCalls!A47","v":"2013-05-01"},{"$f":"ZZZ__FnCalls!A48","v":"2013-06-01"},{"$f":"ZZZ__FnCalls!A49","v":"2013-07-01"},{"$f":"ZZZ__FnCalls!A50","v":"2013-08-01"},{"$f":"ZZZ__FnCalls!A51","v":"2013-09-01"},{"$f":"ZZZ__FnCalls!A52","v":"2013-10-01"},{"$f":"ZZZ__FnCalls!A53","v":"2013-11-01"},{"$f":"ZZZ__FnCalls!A54","v":"2013-12-01"},{"$f":"ZZZ__FnCalls!A43","v":"2013-01-01"},{"$f":"ZZZ__FnCalls!A55","v":"2014-01-01"},{"$f":"ZZZ__FnCalls!A56","v":"2014-02-01"},{"$f":"ZZZ__FnCalls!A57","v":"2014-03-01"},{"$f":"ZZZ__FnCalls!A58","v":"2014-04-01"},{"$f":"ZZZ__FnCalls!A59","v":"2014-05-01"},{"$f":"ZZZ__FnCalls!A60","v":"2014-06-01"},{"$f":"ZZZ__FnCalls!A61","v":"2014-07-01"},{"$f":"ZZZ__FnCalls!A62","v":"2014-08-01"},{"$f":"ZZZ__FnCalls!A63","v":"2014-09-01"},{"$f":"ZZZ__FnCalls!A64","v":"2014-10-01"},{"$f":"ZZZ__FnCalls!A65","v":"2014-11-01"},{"$f":"ZZZ__FnCalls!A66","v":"2014-12-01"},{"$f":"ZZZ__FnCalls!A55","v":"2014-01-01"},{"$f":"ZZZ__FnCalls!A67","v":"2015-01-01"},{"$f":"ZZZ__FnCalls!A68","v":"2015-02-01"},{"$f":"ZZZ__FnCalls!A69","v":"2015-03-01"},{"$f":"ZZZ__FnCalls!A70","v":"2015-04-01"},{"$f":"ZZZ__FnCalls!A71","v":"2015-05-01"},{"$f":"ZZZ__FnCalls!A72","v":"2015-06-01"},{"$f":"ZZZ__FnCalls!A73","v":"2015-07-01"},{"$f":"ZZZ__FnCalls!A74","v":"2015-08-01"},{"$f":"ZZZ__FnCalls!A75","v":"2015-09-01"},{"$f":"ZZZ__FnCalls!A76","v":"2015-10-01"},{"$f":"ZZZ__FnCalls!A77","v":"2015-11-01"},{"$f":"ZZZ__FnCalls!A78","v":"2015-12-01"},{"$f":"ZZZ__FnCalls!A67","v":"2015-01-01"},{"$f":"ZZZ__FnCalls!A79","v":"2016-01-01"},{"$f":"ZZZ__FnCalls!A80","v":"2016-02-01"},{"$f":"ZZZ__FnCalls!A81","v":"2016-03-01"},{"$f":"ZZZ__FnCalls!A82","v":"2016-04-01"},{"$f":"ZZZ__FnCalls!A83","v":"2016-05-01"},{"$f":"ZZZ__FnCalls!A84","v":"2016-06-01"},{"$f":"ZZZ__FnCalls!A85","v":"2016-07-01"},{"$f":"ZZZ__FnCalls!A86","v":"2016-08-01"},{"$f":"ZZZ__FnCalls!A87","v":"2016-09-01"},{"$f":"ZZZ__FnCalls!A88","v":"2016-10-01"},{"$f":"ZZZ__FnCalls!A89","v":"2016-11-01"},{"$f":"ZZZ__FnCalls!A90","v":"2016-12-01"},{"$f":"ZZZ__FnCalls!A79","v":"2016-01-01"},{"$f":"ZZZ__FnCalls!A91","v":"2017-01-01"},{"$f":"ZZZ__FnCalls!A92","v":"2017-02-01"},{"$f":"ZZZ__FnCalls!A93","v":"2017-03-01"},{"$f":"ZZZ__FnCalls!A94","v":"2017-04-01"},{"$f":"ZZZ__FnCalls!A95","v":"2017-05-01"},{"$f":"ZZZ__FnCalls!A96","v":"2017-06-01"},{"$f":"ZZZ__FnCalls!A97","v":"2017-07-01"},{"$f":"ZZZ__FnCalls!A98","v":"2017-08-01"},{"$f":"ZZZ__FnCalls!A99","v":"2017-09-01"},{"$f":"ZZZ__FnCalls!A100","v":"2017-10-01"},{"$f":"ZZZ__FnCalls!A101","v":"2017-11-01"},{"$f":"ZZZ__FnCalls!A102","v":"2017-12-01"},{"$f":"ZZZ__FnCalls!A91","v":"2017-01-01"},{"$f":"ZZZ__FnCalls!A103","v":"2018-01-01"},{"$f":"ZZZ__FnCalls!A104","v":"2018-02-01"},{"$f":"ZZZ__FnCalls!A105","v":"2018-03-01"},{"$f":"ZZZ__FnCalls!A106","v":"2018-04-01"},{"$f":"ZZZ__FnCalls!A107","v":"2018-05-01"},{"$f":"ZZZ__FnCalls!A108","v":"2018-06-01"},{"$f":"ZZZ__FnCalls!A109","v":"2018-07-01"},{"$f":"ZZZ__FnCalls!A110","v":"2018-08-01"},{"$f":"ZZZ__FnCalls!A111","v":"2018-09-01"},{"$f":"ZZZ__FnCalls!A112","v":"2018-10-01"},{"$f":"ZZZ__FnCalls!A113","v":"2018-11-01"},{"$f":"ZZZ__FnCalls!A114","v":"2018-12-01"},{"$f":"ZZZ__FnCalls!A103","v":"2018-01-01"},{"$f":"ZZZ__FnCalls!A115","v":"2019-01-01"},{"$f":"ZZZ__FnCalls!A116","v":"2019-02-01"},{"$f":"ZZZ__FnCalls!A117","v":"2019-03-01"},{"$f":"ZZZ__FnCalls!A118","v":"2019-04-01"},{"$f":"ZZZ__FnCalls!A119","v":"2019-05-01"},{"$f":"ZZZ__FnCalls!A120","v":"2019-06-01"},{"$f":"ZZZ__FnCalls!A121","v":"2019-07-01"},{"$f":"ZZZ__FnCalls!A122","v":"2019-08-01"},{"$f":"ZZZ__FnCalls!A123","v":"2019-09-01"},{"$f":"ZZZ__FnCalls!A124","v":"2019-10-01"},{"$f":"ZZZ__FnCalls!A125","v":"2019-11-01"},{"$f":"ZZZ__FnCalls!A126","v":"2019-12-01"},{"$f":"ZZZ__FnCalls!A115","v":"2019-01-01"},{"$f":"ZZZ__FnCalls!A127","v":"2020-01-01"},{"$f":"ZZZ__FnCalls!A128","v":"2020-02-01"},{"$f":"ZZZ__FnCalls!A129","v":"2020-03-01"},{"$f":"ZZZ__FnCalls!A130","v":"2020-04-01"},{"$f":"ZZZ__FnCalls!A131","v":"2020-05-01"},{"$f":"ZZZ__FnCalls!A132","v":"2020-06-01"},{"$f":"ZZZ__FnCalls!A133","v":"2020-07-01"},{"$f":"ZZZ__FnCalls!A134","v":"2020-08-01"},{"$f":"ZZZ__FnCalls!A135","v":"2020-09-01"},{"$f":"ZZZ__FnCalls!A136","v":"2020-10-01"},{"$f":"ZZZ__FnCalls!A137","v":"2020-11-01"},{"$f":"ZZZ__FnCalls!A138","v":"2020-12-01"},{"$f":"ZZZ__FnCalls!A127","v":"2020-01-01"}]
[{"$f":"\"Income_Current_Disposable_mean_2\"","v":"Income_Current_Disposable_mean_2"}]
[null,{"$f":"ZZZ__FnCalls!F7","v":"Jan 2010"},{"$f":"ZZZ__FnCalls!F8","v":"Feb 2010"},{"$f":"ZZZ__FnCalls!F9","v":"Mar 2010"},{"$f":"ZZZ__FnCalls!F10","v":"Apr 2010"},{"$f":"ZZZ__FnCalls!F11","v":"May 2010"},{"$f":"ZZZ__FnCalls!F12","v":"Jun 2010"},{"$f":"ZZZ__FnCalls!F13","v":"Jul 2010"},{"$f":"ZZZ__FnCalls!F14","v":"Aug 2010"},{"$f":"ZZZ__FnCalls!F15","v":"Sep 2010"},{"$f":"ZZZ__FnCalls!F16","v":"Oct 2010"},{"$f":"ZZZ__FnCalls!F17","v":"Nov 2010"},{"$f":"ZZZ__FnCalls!F18","v":"Dec 2010"},{"$f":"ZZZ__FnCalls!H7","v":"2010"},{"$f":"ZZZ__FnCalls!F19","v":"Jan 2011"},{"$f":"ZZZ__FnCalls!F20","v":"Feb 2011"},{"$f":"ZZZ__FnCalls!F21","v":"Mar 2011"},{"$f":"ZZZ__FnCalls!F22","v":"Apr 2011"},{"$f":"ZZZ__FnCalls!F23","v":"May 2011"},{"$f":"ZZZ__FnCalls!F24","v":"Jun 2011"},{"$f":"ZZZ__FnCalls!F25","v":"Jul 2011"},{"$f":"ZZZ__FnCalls!F26","v":"Aug 2011"},{"$f":"ZZZ__FnCalls!F27","v":"Sep 2011"},{"$f":"ZZZ__FnCalls!F28","v":"Oct 2011"},{"$f":"ZZZ__FnCalls!F29","v":"Nov 2011"},{"$f":"ZZZ__FnCalls!F30","v":"Dec 2011"},{"$f":"ZZZ__FnCalls!H19","v":"2011"},{"$f":"ZZZ__FnCalls!F31","v":"Jan 2012"},{"$f":"ZZZ__FnCalls!F32","v":"Feb 2012"},{"$f":"ZZZ__FnCalls!F33","v":"Mar 2012"},{"$f":"ZZZ__FnCalls!F34","v":"Apr 2012"},{"$f":"ZZZ__FnCalls!F35","v":"May 2012"},{"$f":"ZZZ__FnCalls!F36","v":"Jun 2012"},{"$f":"ZZZ__FnCalls!F37","v":"Jul 2012"},{"$f":"ZZZ__FnCalls!F38","v":"Aug 2012"},{"$f":"ZZZ__FnCalls!F39","v":"Sep 2012"},{"$f":"ZZZ__FnCalls!F40","v":"Oct 2012"},{"$f":"ZZZ__FnCalls!F41","v":"Nov 2012"},{"$f":"ZZZ__FnCalls!F42","v":"Dec 2012"},{"$f":"ZZZ__FnCalls!H31","v":"2012"},{"$f":"ZZZ__FnCalls!F43","v":"Jan 2013"},{"$f":"ZZZ__FnCalls!F44","v":"Feb 2013"},{"$f":"ZZZ__FnCalls!F45","v":"Mar 2013"},{"$f":"ZZZ__FnCalls!F46","v":"Apr 2013"},{"$f":"ZZZ__FnCalls!F47","v":"May 2013"},{"$f":"ZZZ__FnCalls!F48","v":"Jun 2013"},{"$f":"ZZZ__FnCalls!F49","v":"Jul 2013"},{"$f":"ZZZ__FnCalls!F50","v":"Aug 2013"},{"$f":"ZZZ__FnCalls!F51","v":"Sep 2013"},{"$f":"ZZZ__FnCalls!F52","v":"Oct 2013"},{"$f":"ZZZ__FnCalls!F53","v":"Nov 2013"},{"$f":"ZZZ__FnCalls!F54","v":"Dec 2013"},{"$f":"ZZZ__FnCalls!H43","v":"2013"},{"$f":"ZZZ__FnCalls!F55","v":"Jan 2014"},{"$f":"ZZZ__FnCalls!F56","v":"Feb 2014"},{"$f":"ZZZ__FnCalls!F57","v":"Mar 2014"},{"$f":"ZZZ__FnCalls!F58","v":"Apr 2014"},{"$f":"ZZZ__FnCalls!F59","v":"May 2014"},{"$f":"ZZZ__FnCalls!F60","v":"Jun 2014"},{"$f":"ZZZ__FnCalls!F61","v":"Jul 2014"},{"$f":"ZZZ__FnCalls!F62","v":"Aug 2014"},{"$f":"ZZZ__FnCalls!F63","v":"Sep 2014"},{"$f":"ZZZ__FnCalls!F64","v":"Oct 2014"},{"$f":"ZZZ__FnCalls!F65","v":"Nov 2014"},{"$f":"ZZZ__FnCalls!F66","v":"Dec 2014"},{"$f":"ZZZ__FnCalls!H55","v":"2014"},{"$f":"ZZZ__FnCalls!F67","v":"Jan 2015"},{"$f":"ZZZ__FnCalls!F68","v":"Feb 2015"},{"$f":"ZZZ__FnCalls!F69","v":"Mar 2015"},{"$f":"ZZZ__FnCalls!F70","v":"Apr 2015"},{"$f":"ZZZ__FnCalls!F71","v":"May 2015"},{"$f":"ZZZ__FnCalls!F72","v":"Jun 2015"},{"$f":"ZZZ__FnCalls!F73","v":"Jul 2015"},{"$f":"ZZZ__FnCalls!F74","v":"Aug 2015"},{"$f":"ZZZ__FnCalls!F75","v":"Sep 2015"},{"$f":"ZZZ__FnCalls!F76","v":"Oct 2015"},{"$f":"ZZZ__FnCalls!F77","v":"Nov 2015"},{"$f":"ZZZ__FnCalls!F78","v":"Dec 2015"},{"$f":"ZZZ__FnCalls!H67","v":"2015"},{"$f":"ZZZ__FnCalls!F79","v":"Jan 2016"},{"$f":"ZZZ__FnCalls!F80","v":"Feb 2016"},{"$f":"ZZZ__FnCalls!F81","v":"Mar 2016"},{"$f":"ZZZ__FnCalls!F82","v":"Apr 2016"},{"$f":"ZZZ__FnCalls!F83","v":"May 2016"},{"$f":"ZZZ__FnCalls!F84","v":"Jun 2016"},{"$f":"ZZZ__FnCalls!F85","v":"Jul 2016"},{"$f":"ZZZ__FnCalls!F86","v":"Aug 2016"},{"$f":"ZZZ__FnCalls!F87","v":"Sep 2016"},{"$f":"ZZZ__FnCalls!F88","v":"Oct 2016"},{"$f":"ZZZ__FnCalls!F89","v":"Nov 2016"},{"$f":"ZZZ__FnCalls!F90","v":"Dec 2016"},{"$f":"ZZZ__FnCalls!H79","v":"2016"},{"$f":"ZZZ__FnCalls!F91","v":"Jan 2017"},{"$f":"ZZZ__FnCalls!F92","v":"Feb 2017"},{"$f":"ZZZ__FnCalls!F93","v":"Mar 2017"},{"$f":"ZZZ__FnCalls!F94","v":"Apr 2017"},{"$f":"ZZZ__FnCalls!F95","v":"May 2017"},{"$f":"ZZZ__FnCalls!F96","v":"Jun 2017"},{"$f":"ZZZ__FnCalls!F97","v":"Jul 2017"},{"$f":"ZZZ__FnCalls!F98","v":"Aug 2017"},{"$f":"ZZZ__FnCalls!F99","v":"Sep 2017"},{"$f":"ZZZ__FnCalls!F100","v":"Oct 2017"},{"$f":"ZZZ__FnCalls!F101","v":"Nov 2017"},{"$f":"ZZZ__FnCalls!F102","v":"Dec 2017"},{"$f":"ZZZ__FnCalls!H91","v":"2017"},{"$f":"ZZZ__FnCalls!F103","v":"Jan 2018"},{"$f":"ZZZ__FnCalls!F104","v":"Feb 2018"},{"$f":"ZZZ__FnCalls!F105","v":"Mar 2018"},{"$f":"ZZZ__FnCalls!F106","v":"Apr 2018"},{"$f":"ZZZ__FnCalls!F107","v":"May 2018"},{"$f":"ZZZ__FnCalls!F108","v":"Jun 2018"},{"$f":"ZZZ__FnCalls!F109","v":"Jul 2018"},{"$f":"ZZZ__FnCalls!F110","v":"Aug 2018"},{"$f":"ZZZ__FnCalls!F111","v":"Sep 2018"},{"$f":"ZZZ__FnCalls!F112","v":"Oct 2018"},{"$f":"ZZZ__FnCalls!F113","v":"Nov 2018"},{"$f":"ZZZ__FnCalls!F114","v":"Dec 2018"},{"$f":"ZZZ__FnCalls!H103","v":"2018"},{"$f":"ZZZ__FnCalls!F115","v":"Jan 2019"},{"$f":"ZZZ__FnCalls!F116","v":"Feb 2019"},{"$f":"ZZZ__FnCalls!F117","v":"Mar 2019"},{"$f":"ZZZ__FnCalls!F118","v":"Apr 2019"},{"$f":"ZZZ__FnCalls!F119","v":"May 2019"},{"$f":"ZZZ__FnCalls!F120","v":"Jun 2019"},{"$f":"ZZZ__FnCalls!F121","v":"Jul 2019"},{"$f":"ZZZ__FnCalls!F122","v":"Aug 2019"},{"$f":"ZZZ__FnCalls!F123","v":"Sep 2019"},{"$f":"ZZZ__FnCalls!F124","v":"Oct 2019"},{"$f":"ZZZ__FnCalls!F125","v":"Nov 2019"},{"$f":"ZZZ__FnCalls!F126","v":"Dec 2019"},{"$f":"ZZZ__FnCalls!H115","v":"2019"},{"$f":"ZZZ__FnCalls!F127","v":"Jan 2020"},{"$f":"ZZZ__FnCalls!F128","v":"Feb 2020"},{"$f":"ZZZ__FnCalls!F129","v":"Mar 2020"},{"$f":"ZZZ__FnCalls!F130","v":"Apr 2020"},{"$f":"ZZZ__FnCalls!F131","v":"May 2020"},{"$f":"ZZZ__FnCalls!F132","v":"Jun 2020"},{"$f":"ZZZ__FnCalls!F133","v":"Jul 2020"},{"$f":"ZZZ__FnCalls!F134","v":"Aug 2020"},{"$f":"ZZZ__FnCalls!F135","v":"Sep 2020"},{"$f":"ZZZ__FnCalls!F136","v":"Oct 2020"},{"$f":"ZZZ__FnCalls!F137","v":"Nov 2020"},{"$f":"ZZZ__FnCalls!F138","v":"Dec 2020"},{"$f":"ZZZ__FnCalls!H127","v":"2020"}]
[null,{"$f":"ZZZ__FnCalls!F7","v":"Jan 2010"},{"$f":"ZZZ__FnCalls!F8","v":"Feb 2010"},{"$f":"ZZZ__FnCalls!F9","v":"Mar 2010"},{"$f":"ZZZ__FnCalls!F10","v":"Apr 2010"},{"$f":"ZZZ__FnCalls!F11","v":"May 2010"},{"$f":"ZZZ__FnCalls!F12","v":"Jun 2010"},{"$f":"ZZZ__FnCalls!F13","v":"Jul 2010"},{"$f":"ZZZ__FnCalls!F14","v":"Aug 2010"},{"$f":"ZZZ__FnCalls!F15","v":"Sep 2010"},{"$f":"ZZZ__FnCalls!F16","v":"Oct 2010"},{"$f":"ZZZ__FnCalls!F17","v":"Nov 2010"},{"$f":"ZZZ__FnCalls!F18","v":"Dec 2010"},{"$f":"ZZZ__FnCalls!F7","v":"Jan 2010"},{"$f":"ZZZ__FnCalls!F19","v":"Jan 2011"},{"$f":"ZZZ__FnCalls!F20","v":"Feb 2011"},{"$f":"ZZZ__FnCalls!F21","v":"Mar 2011"},{"$f":"ZZZ__FnCalls!F22","v":"Apr 2011"},{"$f":"ZZZ__FnCalls!F23","v":"May 2011"},{"$f":"ZZZ__FnCalls!F24","v":"Jun 2011"},{"$f":"ZZZ__FnCalls!F25","v":"Jul 2011"},{"$f":"ZZZ__FnCalls!F26","v":"Aug 2011"},{"$f":"ZZZ__FnCalls!F27","v":"Sep 2011"},{"$f":"ZZZ__FnCalls!F28","v":"Oct 2011"},{"$f":"ZZZ__FnCalls!F29","v":"Nov 2011"},{"$f":"ZZZ__FnCalls!F30","v":"Dec 2011"},{"$f":"ZZZ__FnCalls!F19","v":"Jan 2011"},{"$f":"ZZZ__FnCalls!F31","v":"Jan 2012"},{"$f":"ZZZ__FnCalls!F32","v":"Feb 2012"},{"$f":"ZZZ__FnCalls!F33","v":"Mar 2012"},{"$f":"ZZZ__FnCalls!F34","v":"Apr 2012"},{"$f":"ZZZ__FnCalls!F35","v":"May 2012"},{"$f":"ZZZ__FnCalls!F36","v":"Jun 2012"},{"$f":"ZZZ__FnCalls!F37","v":"Jul 2012"},{"$f":"ZZZ__FnCalls!F38","v":"Aug 2012"},{"$f":"ZZZ__FnCalls!F39","v":"Sep 2012"},{"$f":"ZZZ__FnCalls!F40","v":"Oct 2012"},{"$f":"ZZZ__FnCalls!F41","v":"Nov 2012"},{"$f":"ZZZ__FnCalls!F42","v":"Dec 2012"},{"$f":"ZZZ__FnCalls!F31","v":"Jan 2012"},{"$f":"ZZZ__FnCalls!F43","v":"Jan 2013"},{"$f":"ZZZ__FnCalls!F44","v":"Feb 2013"},{"$f":"ZZZ__FnCalls!F45","v":"Mar 2013"},{"$f":"ZZZ__FnCalls!F46","v":"Apr 2013"},{"$f":"ZZZ__FnCalls!F47","v":"May 2013"},{"$f":"ZZZ__FnCalls!F48","v":"Jun 2013"},{"$f":"ZZZ__FnCalls!F49","v":"Jul 2013"},{"$f":"ZZZ__FnCalls!F50","v":"Aug 2013"},{"$f":"ZZZ__FnCalls!F51","v":"Sep 2013"},{"$f":"ZZZ__FnCalls!F52","v":"Oct 2013"},{"$f":"ZZZ__FnCalls!F53","v":"Nov 2013"},{"$f":"ZZZ__FnCalls!F54","v":"Dec 2013"},{"$f":"ZZZ__FnCalls!F43","v":"Jan 2013"},{"$f":"ZZZ__FnCalls!F55","v":"Jan 2014"},{"$f":"ZZZ__FnCalls!F56","v":"Feb 2014"},{"$f":"ZZZ__FnCalls!F57","v":"Mar 2014"},{"$f":"ZZZ__FnCalls!F58","v":"Apr 2014"},{"$f":"ZZZ__FnCalls!F59","v":"May 2014"},{"$f":"ZZZ__FnCalls!F60","v":"Jun 2014"},{"$f":"ZZZ__FnCalls!F61","v":"Jul 2014"},{"$f":"ZZZ__FnCalls!F62","v":"Aug 2014"},{"$f":"ZZZ__FnCalls!F63","v":"Sep 2014"},{"$f":"ZZZ__FnCalls!F64","v":"Oct 2014"},{"$f":"ZZZ__FnCalls!F65","v":"Nov 2014"},{"$f":"ZZZ__FnCalls!F66","v":"Dec 2014"},{"$f":"ZZZ__FnCalls!F55","v":"Jan 2014"},{"$f":"ZZZ__FnCalls!F67","v":"Jan 2015"},{"$f":"ZZZ__FnCalls!F68","v":"Feb 2015"},{"$f":"ZZZ__FnCalls!F69","v":"Mar 2015"},{"$f":"ZZZ__FnCalls!F70","v":"Apr 2015"},{"$f":"ZZZ__FnCalls!F71","v":"May 2015"},{"$f":"ZZZ__FnCalls!F72","v":"Jun 2015"},{"$f":"ZZZ__FnCalls!F73","v":"Jul 2015"},{"$f":"ZZZ__FnCalls!F74","v":"Aug 2015"},{"$f":"ZZZ__FnCalls!F75","v":"Sep 2015"},{"$f":"ZZZ__FnCalls!F76","v":"Oct 2015"},{"$f":"ZZZ__FnCalls!F77","v":"Nov 2015"},{"$f":"ZZZ__FnCalls!F78","v":"Dec 2015"},{"$f":"ZZZ__FnCalls!F67","v":"Jan 2015"},{"$f":"ZZZ__FnCalls!F79","v":"Jan 2016"},{"$f":"ZZZ__FnCalls!F80","v":"Feb 2016"},{"$f":"ZZZ__FnCalls!F81","v":"Mar 2016"},{"$f":"ZZZ__FnCalls!F82","v":"Apr 2016"},{"$f":"ZZZ__FnCalls!F83","v":"May 2016"},{"$f":"ZZZ__FnCalls!F84","v":"Jun 2016"},{"$f":"ZZZ__FnCalls!F85","v":"Jul 2016"},{"$f":"ZZZ__FnCalls!F86","v":"Aug 2016"},{"$f":"ZZZ__FnCalls!F87","v":"Sep 2016"},{"$f":"ZZZ__FnCalls!F88","v":"Oct 2016"},{"$f":"ZZZ__FnCalls!F89","v":"Nov 2016"},{"$f":"ZZZ__FnCalls!F90","v":"Dec 2016"},{"$f":"ZZZ__FnCalls!F79","v":"Jan 2016"},{"$f":"ZZZ__FnCalls!F91","v":"Jan 2017"},{"$f":"ZZZ__FnCalls!F92","v":"Feb 2017"},{"$f":"ZZZ__FnCalls!F93","v":"Mar 2017"},{"$f":"ZZZ__FnCalls!F94","v":"Apr 2017"},{"$f":"ZZZ__FnCalls!F95","v":"May 2017"},{"$f":"ZZZ__FnCalls!F96","v":"Jun 2017"},{"$f":"ZZZ__FnCalls!F97","v":"Jul 2017"},{"$f":"ZZZ__FnCalls!F98","v":"Aug 2017"},{"$f":"ZZZ__FnCalls!F99","v":"Sep 2017"},{"$f":"ZZZ__FnCalls!F100","v":"Oct 2017"},{"$f":"ZZZ__FnCalls!F101","v":"Nov 2017"},{"$f":"ZZZ__FnCalls!F102","v":"Dec 2017"},{"$f":"ZZZ__FnCalls!F91","v":"Jan 2017"},{"$f":"ZZZ__FnCalls!F103","v":"Jan 2018"},{"$f":"ZZZ__FnCalls!F104","v":"Feb 2018"},{"$f":"ZZZ__FnCalls!F105","v":"Mar 2018"},{"$f":"ZZZ__FnCalls!F106","v":"Apr 2018"},{"$f":"ZZZ__FnCalls!F107","v":"May 2018"},{"$f":"ZZZ__FnCalls!F108","v":"Jun 2018"},{"$f":"ZZZ__FnCalls!F109","v":"Jul 2018"},{"$f":"ZZZ__FnCalls!F110","v":"Aug 2018"},{"$f":"ZZZ__FnCalls!F111","v":"Sep 2018"},{"$f":"ZZZ__FnCalls!F112","v":"Oct 2018"},{"$f":"ZZZ__FnCalls!F113","v":"Nov 2018"},{"$f":"ZZZ__FnCalls!F114","v":"Dec 2018"},{"$f":"ZZZ__FnCalls!F103","v":"Jan 2018"},{"$f":"ZZZ__FnCalls!F115","v":"Jan 2019"},{"$f":"ZZZ__FnCalls!F116","v":"Feb 2019"},{"$f":"ZZZ__FnCalls!F117","v":"Mar 2019"},{"$f":"ZZZ__FnCalls!F118","v":"Apr 2019"},{"$f":"ZZZ__FnCalls!F119","v":"May 2019"},{"$f":"ZZZ__FnCalls!F120","v":"Jun 2019"},{"$f":"ZZZ__FnCalls!F121","v":"Jul 2019"},{"$f":"ZZZ__FnCalls!F122","v":"Aug 2019"},{"$f":"ZZZ__FnCalls!F123","v":"Sep 2019"},{"$f":"ZZZ__FnCalls!F124","v":"Oct 2019"},{"$f":"ZZZ__FnCalls!F125","v":"Nov 2019"},{"$f":"ZZZ__FnCalls!F126","v":"Dec 2019"},{"$f":"ZZZ__FnCalls!F115","v":"Jan 2019"},{"$f":"ZZZ__FnCalls!F127","v":"Jan 2020"},{"$f":"ZZZ__FnCalls!F128","v":"Feb 2020"},{"$f":"ZZZ__FnCalls!F129","v":"Mar 2020"},{"$f":"ZZZ__FnCalls!F130","v":"Apr 2020"},{"$f":"ZZZ__FnCalls!F131","v":"May 2020"},{"$f":"ZZZ__FnCalls!F132","v":"Jun 2020"},{"$f":"ZZZ__FnCalls!F133","v":"Jul 2020"},{"$f":"ZZZ__FnCalls!F134","v":"Aug 2020"},{"$f":"ZZZ__FnCalls!F135","v":"Sep 2020"},{"$f":"ZZZ__FnCalls!F136","v":"Oct 2020"},{"$f":"ZZZ__FnCalls!F137","v":"Nov 2020"},{"$f":"ZZZ__FnCalls!F138","v":"Dec 2020"},{"$f":"ZZZ__FnCalls!F127","v":"Jan 2020"}]
[{"$f":"\"Income_Current_Disposable_stdev_1\"","v":"Income_Current_Disposable_stdev_1"}]
[null,{"$f":"ZZZ__FnCalls!F7","v":"Jan 2010"},{"$f":"ZZZ__FnCalls!F8","v":"Feb 2010"},{"$f":"ZZZ__FnCalls!F9","v":"Mar 2010"},{"$f":"ZZZ__FnCalls!F10","v":"Apr 2010"},{"$f":"ZZZ__FnCalls!F11","v":"May 2010"},{"$f":"ZZZ__FnCalls!F12","v":"Jun 2010"},{"$f":"ZZZ__FnCalls!F13","v":"Jul 2010"},{"$f":"ZZZ__FnCalls!F14","v":"Aug 2010"},{"$f":"ZZZ__FnCalls!F15","v":"Sep 2010"},{"$f":"ZZZ__FnCalls!F16","v":"Oct 2010"},{"$f":"ZZZ__FnCalls!F17","v":"Nov 2010"},{"$f":"ZZZ__FnCalls!F18","v":"Dec 2010"},{"$f":"ZZZ__FnCalls!H7","v":"2010"},{"$f":"ZZZ__FnCalls!F19","v":"Jan 2011"},{"$f":"ZZZ__FnCalls!F20","v":"Feb 2011"},{"$f":"ZZZ__FnCalls!F21","v":"Mar 2011"},{"$f":"ZZZ__FnCalls!F22","v":"Apr 2011"},{"$f":"ZZZ__FnCalls!F23","v":"May 2011"},{"$f":"ZZZ__FnCalls!F24","v":"Jun 2011"},{"$f":"ZZZ__FnCalls!F25","v":"Jul 2011"},{"$f":"ZZZ__FnCalls!F26","v":"Aug 2011"},{"$f":"ZZZ__FnCalls!F27","v":"Sep 2011"},{"$f":"ZZZ__FnCalls!F28","v":"Oct 2011"},{"$f":"ZZZ__FnCalls!F29","v":"Nov 2011"},{"$f":"ZZZ__FnCalls!F30","v":"Dec 2011"},{"$f":"ZZZ__FnCalls!H19","v":"2011"},{"$f":"ZZZ__FnCalls!F31","v":"Jan 2012"},{"$f":"ZZZ__FnCalls!F32","v":"Feb 2012"},{"$f":"ZZZ__FnCalls!F33","v":"Mar 2012"},{"$f":"ZZZ__FnCalls!F34","v":"Apr 2012"},{"$f":"ZZZ__FnCalls!F35","v":"May 2012"},{"$f":"ZZZ__FnCalls!F36","v":"Jun 2012"},{"$f":"ZZZ__FnCalls!F37","v":"Jul 2012"},{"$f":"ZZZ__FnCalls!F38","v":"Aug 2012"},{"$f":"ZZZ__FnCalls!F39","v":"Sep 2012"},{"$f":"ZZZ__FnCalls!F40","v":"Oct 2012"},{"$f":"ZZZ__FnCalls!F41","v":"Nov 2012"},{"$f":"ZZZ__FnCalls!F42","v":"Dec 2012"},{"$f":"ZZZ__FnCalls!H31","v":"2012"},{"$f":"ZZZ__FnCalls!F43","v":"Jan 2013"},{"$f":"ZZZ__FnCalls!F44","v":"Feb 2013"},{"$f":"ZZZ__FnCalls!F45","v":"Mar 2013"},{"$f":"ZZZ__FnCalls!F46","v":"Apr 2013"},{"$f":"ZZZ__FnCalls!F47","v":"May 2013"},{"$f":"ZZZ__FnCalls!F48","v":"Jun 2013"},{"$f":"ZZZ__FnCalls!F49","v":"Jul 2013"},{"$f":"ZZZ__FnCalls!F50","v":"Aug 2013"},{"$f":"ZZZ__FnCalls!F51","v":"Sep 2013"},{"$f":"ZZZ__FnCalls!F52","v":"Oct 2013"},{"$f":"ZZZ__FnCalls!F53","v":"Nov 2013"},{"$f":"ZZZ__FnCalls!F54","v":"Dec 2013"},{"$f":"ZZZ__FnCalls!H43","v":"2013"},{"$f":"ZZZ__FnCalls!F55","v":"Jan 2014"},{"$f":"ZZZ__FnCalls!F56","v":"Feb 2014"},{"$f":"ZZZ__FnCalls!F57","v":"Mar 2014"},{"$f":"ZZZ__FnCalls!F58","v":"Apr 2014"},{"$f":"ZZZ__FnCalls!F59","v":"May 2014"},{"$f":"ZZZ__FnCalls!F60","v":"Jun 2014"},{"$f":"ZZZ__FnCalls!F61","v":"Jul 2014"},{"$f":"ZZZ__FnCalls!F62","v":"Aug 2014"},{"$f":"ZZZ__FnCalls!F63","v":"Sep 2014"},{"$f":"ZZZ__FnCalls!F64","v":"Oct 2014"},{"$f":"ZZZ__FnCalls!F65","v":"Nov 2014"},{"$f":"ZZZ__FnCalls!F66","v":"Dec 2014"},{"$f":"ZZZ__FnCalls!H55","v":"2014"},{"$f":"ZZZ__FnCalls!F67","v":"Jan 2015"},{"$f":"ZZZ__FnCalls!F68","v":"Feb 2015"},{"$f":"ZZZ__FnCalls!F69","v":"Mar 2015"},{"$f":"ZZZ__FnCalls!F70","v":"Apr 2015"},{"$f":"ZZZ__FnCalls!F71","v":"May 2015"},{"$f":"ZZZ__FnCalls!F72","v":"Jun 2015"},{"$f":"ZZZ__FnCalls!F73","v":"Jul 2015"},{"$f":"ZZZ__FnCalls!F74","v":"Aug 2015"},{"$f":"ZZZ__FnCalls!F75","v":"Sep 2015"},{"$f":"ZZZ__FnCalls!F76","v":"Oct 2015"},{"$f":"ZZZ__FnCalls!F77","v":"Nov 2015"},{"$f":"ZZZ__FnCalls!F78","v":"Dec 2015"},{"$f":"ZZZ__FnCalls!H67","v":"2015"},{"$f":"ZZZ__FnCalls!F79","v":"Jan 2016"},{"$f":"ZZZ__FnCalls!F80","v":"Feb 2016"},{"$f":"ZZZ__FnCalls!F81","v":"Mar 2016"},{"$f":"ZZZ__FnCalls!F82","v":"Apr 2016"},{"$f":"ZZZ__FnCalls!F83","v":"May 2016"},{"$f":"ZZZ__FnCalls!F84","v":"Jun 2016"},{"$f":"ZZZ__FnCalls!F85","v":"Jul 2016"},{"$f":"ZZZ__FnCalls!F86","v":"Aug 2016"},{"$f":"ZZZ__FnCalls!F87","v":"Sep 2016"},{"$f":"ZZZ__FnCalls!F88","v":"Oct 2016"},{"$f":"ZZZ__FnCalls!F89","v":"Nov 2016"},{"$f":"ZZZ__FnCalls!F90","v":"Dec 2016"},{"$f":"ZZZ__FnCalls!H79","v":"2016"},{"$f":"ZZZ__FnCalls!F91","v":"Jan 2017"},{"$f":"ZZZ__FnCalls!F92","v":"Feb 2017"},{"$f":"ZZZ__FnCalls!F93","v":"Mar 2017"},{"$f":"ZZZ__FnCalls!F94","v":"Apr 2017"},{"$f":"ZZZ__FnCalls!F95","v":"May 2017"},{"$f":"ZZZ__FnCalls!F96","v":"Jun 2017"},{"$f":"ZZZ__FnCalls!F97","v":"Jul 2017"},{"$f":"ZZZ__FnCalls!F98","v":"Aug 2017"},{"$f":"ZZZ__FnCalls!F99","v":"Sep 2017"},{"$f":"ZZZ__FnCalls!F100","v":"Oct 2017"},{"$f":"ZZZ__FnCalls!F101","v":"Nov 2017"},{"$f":"ZZZ__FnCalls!F102","v":"Dec 2017"},{"$f":"ZZZ__FnCalls!H91","v":"2017"},{"$f":"ZZZ__FnCalls!F103","v":"Jan 2018"},{"$f":"ZZZ__FnCalls!F104","v":"Feb 2018"},{"$f":"ZZZ__FnCalls!F105","v":"Mar 2018"},{"$f":"ZZZ__FnCalls!F106","v":"Apr 2018"},{"$f":"ZZZ__FnCalls!F107","v":"May 2018"},{"$f":"ZZZ__FnCalls!F108","v":"Jun 2018"},{"$f":"ZZZ__FnCalls!F109","v":"Jul 2018"},{"$f":"ZZZ__FnCalls!F110","v":"Aug 2018"},{"$f":"ZZZ__FnCalls!F111","v":"Sep 2018"},{"$f":"ZZZ__FnCalls!F112","v":"Oct 2018"},{"$f":"ZZZ__FnCalls!F113","v":"Nov 2018"},{"$f":"ZZZ__FnCalls!F114","v":"Dec 2018"},{"$f":"ZZZ__FnCalls!H103","v":"2018"},{"$f":"ZZZ__FnCalls!F115","v":"Jan 2019"},{"$f":"ZZZ__FnCalls!F116","v":"Feb 2019"},{"$f":"ZZZ__FnCalls!F117","v":"Mar 2019"},{"$f":"ZZZ__FnCalls!F118","v":"Apr 2019"},{"$f":"ZZZ__FnCalls!F119","v":"May 2019"},{"$f":"ZZZ__FnCalls!F120","v":"Jun 2019"},{"$f":"ZZZ__FnCalls!F121","v":"Jul 2019"},{"$f":"ZZZ__FnCalls!F122","v":"Aug 2019"},{"$f":"ZZZ__FnCalls!F123","v":"Sep 2019"},{"$f":"ZZZ__FnCalls!F124","v":"Oct 2019"},{"$f":"ZZZ__FnCalls!F125","v":"Nov 2019"},{"$f":"ZZZ__FnCalls!F126","v":"Dec 2019"},{"$f":"ZZZ__FnCalls!H115","v":"2019"},{"$f":"ZZZ__FnCalls!F127","v":"Jan 2020"},{"$f":"ZZZ__FnCalls!F128","v":"Feb 2020"},{"$f":"ZZZ__FnCalls!F129","v":"Mar 2020"},{"$f":"ZZZ__FnCalls!F130","v":"Apr 2020"},{"$f":"ZZZ__FnCalls!F131","v":"May 2020"},{"$f":"ZZZ__FnCalls!F132","v":"Jun 2020"},{"$f":"ZZZ__FnCalls!F133","v":"Jul 2020"},{"$f":"ZZZ__FnCalls!F134","v":"Aug 2020"},{"$f":"ZZZ__FnCalls!F135","v":"Sep 2020"},{"$f":"ZZZ__FnCalls!F136","v":"Oct 2020"},{"$f":"ZZZ__FnCalls!F137","v":"Nov 2020"},{"$f":"ZZZ__FnCalls!F138","v":"Dec 2020"},{"$f":"ZZZ__FnCalls!H127","v":"2020"}]
[null,{"$f":"ZZZ__FnCalls!A7","v":"2010-01-01"},{"$f":"ZZZ__FnCalls!A8","v":"2010-02-01"},{"$f":"ZZZ__FnCalls!A9","v":"2010-03-01"},{"$f":"ZZZ__FnCalls!A10","v":"2010-04-01"},{"$f":"ZZZ__FnCalls!A11","v":"2010-05-01"},{"$f":"ZZZ__FnCalls!A12","v":"2010-06-01"},{"$f":"ZZZ__FnCalls!A13","v":"2010-07-01"},{"$f":"ZZZ__FnCalls!A14","v":"2010-08-01"},{"$f":"ZZZ__FnCalls!A15","v":"2010-09-01"},{"$f":"ZZZ__FnCalls!A16","v":"2010-10-01"},{"$f":"ZZZ__FnCalls!A17","v":"2010-11-01"},{"$f":"ZZZ__FnCalls!A18","v":"2010-12-01"},{"$f":"ZZZ__FnCalls!A7","v":"2010-01-01"},{"$f":"ZZZ__FnCalls!A19","v":"2011-01-01"},{"$f":"ZZZ__FnCalls!A20","v":"2011-02-01"},{"$f":"ZZZ__FnCalls!A21","v":"2011-03-01"},{"$f":"ZZZ__FnCalls!A22","v":"2011-04-01"},{"$f":"ZZZ__FnCalls!A23","v":"2011-05-01"},{"$f":"ZZZ__FnCalls!A24","v":"2011-06-01"},{"$f":"ZZZ__FnCalls!A25","v":"2011-07-01"},{"$f":"ZZZ__FnCalls!A26","v":"2011-08-01"},{"$f":"ZZZ__FnCalls!A27","v":"2011-09-01"},{"$f":"ZZZ__FnCalls!A28","v":"2011-10-01"},{"$f":"ZZZ__FnCalls!A29","v":"2011-11-01"},{"$f":"ZZZ__FnCalls!A30","v":"2011-12-01"},{"$f":"ZZZ__FnCalls!A19","v":"2011-01-01"},{"$f":"ZZZ__FnCalls!A31","v":"2012-01-01"},{"$f":"ZZZ__FnCalls!A32","v":"2012-02-01"},{"$f":"ZZZ__FnCalls!A33","v":"2012-03-01"},{"$f":"ZZZ__FnCalls!A34","v":"2012-04-01"},{"$f":"ZZZ__FnCalls!A35","v":"2012-05-01"},{"$f":"ZZZ__FnCalls!A36","v":"2012-06-01"},{"$f":"ZZZ__FnCalls!A37","v":"2012-07-01"},{"$f":"ZZZ__FnCalls!A38","v":"2012-08-01"},{"$f":"ZZZ__FnCalls!A39","v":"2012-09-01"},{"$f":"ZZZ__FnCalls!A40","v":"2012-10-01"},{"$f":"ZZZ__FnCalls!A41","v":"2012-11-01"},{"$f":"ZZZ__FnCalls!A42","v":"2012-12-01"},{"$f":"ZZZ__FnCalls!A31","v":"2012-01-01"},{"$f":"ZZZ__FnCalls!A43","v":"2013-01-01"},{"$f":"ZZZ__FnCalls!A44","v":"2013-02-01"},{"$f":"ZZZ__FnCalls!A45","v":"2013-03-01"},{"$f":"ZZZ__FnCalls!A46","v":"2013-04-01"},{"$f":"ZZZ__FnCalls!A47","v":"2013-05-01"},{"$f":"ZZZ__FnCalls!A48","v":"2013-06-01"},{"$f":"ZZZ__FnCalls!A49","v":"2013-07-01"},{"$f":"ZZZ__FnCalls!A50","v":"2013-08-01"},{"$f":"ZZZ__FnCalls!A51","v":"2013-09-01"},{"$f":"ZZZ__FnCalls!A52","v":"2013-10-01"},{"$f":"ZZZ__FnCalls!A53","v":"2013-11-01"},{"$f":"ZZZ__FnCalls!A54","v":"2013-12-01"},{"$f":"ZZZ__FnCalls!A43","v":"2013-01-01"},{"$f":"ZZZ__FnCalls!A55","v":"2014-01-01"},{"$f":"ZZZ__FnCalls!A56","v":"2014-02-01"},{"$f":"ZZZ__FnCalls!A57","v":"2014-03-01"},{"$f":"ZZZ__FnCalls!A58","v":"2014-04-01"},{"$f":"ZZZ__FnCalls!A59","v":"2014-05-01"},{"$f":"ZZZ__FnCalls!A60","v":"2014-06-01"},{"$f":"ZZZ__FnCalls!A61","v":"2014-07-01"},{"$f":"ZZZ__FnCalls!A62","v":"2014-08-01"},{"$f":"ZZZ__FnCalls!A63","v":"2014-09-01"},{"$f":"ZZZ__FnCalls!A64","v":"2014-10-01"},{"$f":"ZZZ__FnCalls!A65","v":"2014-11-01"},{"$f":"ZZZ__FnCalls!A66","v":"2014-12-01"},{"$f":"ZZZ__FnCalls!A55","v":"2014-01-01"},{"$f":"ZZZ__FnCalls!A67","v":"2015-01-01"},{"$f":"ZZZ__FnCalls!A68","v":"2015-02-01"},{"$f":"ZZZ__FnCalls!A69","v":"2015-03-01"},{"$f":"ZZZ__FnCalls!A70","v":"2015-04-01"},{"$f":"ZZZ__FnCalls!A71","v":"2015-05-01"},{"$f":"ZZZ__FnCalls!A72","v":"2015-06-01"},{"$f":"ZZZ__FnCalls!A73","v":"2015-07-01"},{"$f":"ZZZ__FnCalls!A74","v":"2015-08-01"},{"$f":"ZZZ__FnCalls!A75","v":"2015-09-01"},{"$f":"ZZZ__FnCalls!A76","v":"2015-10-01"},{"$f":"ZZZ__FnCalls!A77","v":"2015-11-01"},{"$f":"ZZZ__FnCalls!A78","v":"2015-12-01"},{"$f":"ZZZ__FnCalls!A67","v":"2015-01-01"},{"$f":"ZZZ__FnCalls!A79","v":"2016-01-01"},{"$f":"ZZZ__FnCalls!A80","v":"2016-02-01"},{"$f":"ZZZ__FnCalls!A81","v":"2016-03-01"},{"$f":"ZZZ__FnCalls!A82","v":"2016-04-01"},{"$f":"ZZZ__FnCalls!A83","v":"2016-05-01"},{"$f":"ZZZ__FnCalls!A84","v":"2016-06-01"},{"$f":"ZZZ__FnCalls!A85","v":"2016-07-01"},{"$f":"ZZZ__FnCalls!A86","v":"2016-08-01"},{"$f":"ZZZ__FnCalls!A87","v":"2016-09-01"},{"$f":"ZZZ__FnCalls!A88","v":"2016-10-01"},{"$f":"ZZZ__FnCalls!A89","v":"2016-11-01"},{"$f":"ZZZ__FnCalls!A90","v":"2016-12-01"},{"$f":"ZZZ__FnCalls!A79","v":"2016-01-01"},{"$f":"ZZZ__FnCalls!A91","v":"2017-01-01"},{"$f":"ZZZ__FnCalls!A92","v":"2017-02-01"},{"$f":"ZZZ__FnCalls!A93","v":"2017-03-01"},{"$f":"ZZZ__FnCalls!A94","v":"2017-04-01"},{"$f":"ZZZ__FnCalls!A95","v":"2017-05-01"},{"$f":"ZZZ__FnCalls!A96","v":"2017-06-01"},{"$f":"ZZZ__FnCalls!A97","v":"2017-07-01"},{"$f":"ZZZ__FnCalls!A98","v":"2017-08-01"},{"$f":"ZZZ__FnCalls!A99","v":"2017-09-01"},{"$f":"ZZZ__FnCalls!A100","v":"2017-10-01"},{"$f":"ZZZ__FnCalls!A101","v":"2017-11-01"},{"$f":"ZZZ__FnCalls!A102","v":"2017-12-01"},{"$f":"ZZZ__FnCalls!A91","v":"2017-01-01"},{"$f":"ZZZ__FnCalls!A103","v":"2018-01-01"},{"$f":"ZZZ__FnCalls!A104","v":"2018-02-01"},{"$f":"ZZZ__FnCalls!A105","v":"2018-03-01"},{"$f":"ZZZ__FnCalls!A106","v":"2018-04-01"},{"$f":"ZZZ__FnCalls!A107","v":"2018-05-01"},{"$f":"ZZZ__FnCalls!A108","v":"2018-06-01"},{"$f":"ZZZ__FnCalls!A109","v":"2018-07-01"},{"$f":"ZZZ__FnCalls!A110","v":"2018-08-01"},{"$f":"ZZZ__FnCalls!A111","v":"2018-09-01"},{"$f":"ZZZ__FnCalls!A112","v":"2018-10-01"},{"$f":"ZZZ__FnCalls!A113","v":"2018-11-01"},{"$f":"ZZZ__FnCalls!A114","v":"2018-12-01"},{"$f":"ZZZ__FnCalls!A103","v":"2018-01-01"},{"$f":"ZZZ__FnCalls!A115","v":"2019-01-01"},{"$f":"ZZZ__FnCalls!A116","v":"2019-02-01"},{"$f":"ZZZ__FnCalls!A117","v":"2019-03-01"},{"$f":"ZZZ__FnCalls!A118","v":"2019-04-01"},{"$f":"ZZZ__FnCalls!A119","v":"2019-05-01"},{"$f":"ZZZ__FnCalls!A120","v":"2019-06-01"},{"$f":"ZZZ__FnCalls!A121","v":"2019-07-01"},{"$f":"ZZZ__FnCalls!A122","v":"2019-08-01"},{"$f":"ZZZ__FnCalls!A123","v":"2019-09-01"},{"$f":"ZZZ__FnCalls!A124","v":"2019-10-01"},{"$f":"ZZZ__FnCalls!A125","v":"2019-11-01"},{"$f":"ZZZ__FnCalls!A126","v":"2019-12-01"},{"$f":"ZZZ__FnCalls!A115","v":"2019-01-01"},{"$f":"ZZZ__FnCalls!A127","v":"2020-01-01"},{"$f":"ZZZ__FnCalls!A128","v":"2020-02-01"},{"$f":"ZZZ__FnCalls!A129","v":"2020-03-01"},{"$f":"ZZZ__FnCalls!A130","v":"2020-04-01"},{"$f":"ZZZ__FnCalls!A131","v":"2020-05-01"},{"$f":"ZZZ__FnCalls!A132","v":"2020-06-01"},{"$f":"ZZZ__FnCalls!A133","v":"2020-07-01"},{"$f":"ZZZ__FnCalls!A134","v":"2020-08-01"},{"$f":"ZZZ__FnCalls!A135","v":"2020-09-01"},{"$f":"ZZZ__FnCalls!A136","v":"2020-10-01"},{"$f":"ZZZ__FnCalls!A137","v":"2020-11-01"},{"$f":"ZZZ__FnCalls!A138","v":"2020-12-01"},{"$f":"ZZZ__FnCalls!A127","v":"2020-01-01"}]
[{"$f":"\"Income_Current_Disposable_stdev_2\"","v":"Income_Current_Disposable_stdev_2"}]
[null,{"$f":"ZZZ__FnCalls!F7","v":"Jan 2010"},{"$f":"ZZZ__FnCalls!F8","v":"Feb 2010"},{"$f":"ZZZ__FnCalls!F9","v":"Mar 2010"},{"$f":"ZZZ__FnCalls!F10","v":"Apr 2010"},{"$f":"ZZZ__FnCalls!F11","v":"May 2010"},{"$f":"ZZZ__FnCalls!F12","v":"Jun 2010"},{"$f":"ZZZ__FnCalls!F13","v":"Jul 2010"},{"$f":"ZZZ__FnCalls!F14","v":"Aug 2010"},{"$f":"ZZZ__FnCalls!F15","v":"Sep 2010"},{"$f":"ZZZ__FnCalls!F16","v":"Oct 2010"},{"$f":"ZZZ__FnCalls!F17","v":"Nov 2010"},{"$f":"ZZZ__FnCalls!F18","v":"Dec 2010"},{"$f":"ZZZ__FnCalls!H7","v":"2010"},{"$f":"ZZZ__FnCalls!F19","v":"Jan 2011"},{"$f":"ZZZ__FnCalls!F20","v":"Feb 2011"},{"$f":"ZZZ__FnCalls!F21","v":"Mar 2011"},{"$f":"ZZZ__FnCalls!F22","v":"Apr 2011"},{"$f":"ZZZ__FnCalls!F23","v":"May 2011"},{"$f":"ZZZ__FnCalls!F24","v":"Jun 2011"},{"$f":"ZZZ__FnCalls!F25","v":"Jul 2011"},{"$f":"ZZZ__FnCalls!F26","v":"Aug 2011"},{"$f":"ZZZ__FnCalls!F27","v":"Sep 2011"},{"$f":"ZZZ__FnCalls!F28","v":"Oct 2011"},{"$f":"ZZZ__FnCalls!F29","v":"Nov 2011"},{"$f":"ZZZ__FnCalls!F30","v":"Dec 2011"},{"$f":"ZZZ__FnCalls!H19","v":"2011"},{"$f":"ZZZ__FnCalls!F31","v":"Jan 2012"},{"$f":"ZZZ__FnCalls!F32","v":"Feb 2012"},{"$f":"ZZZ__FnCalls!F33","v":"Mar 2012"},{"$f":"ZZZ__FnCalls!F34","v":"Apr 2012"},{"$f":"ZZZ__FnCalls!F35","v":"May 2012"},{"$f":"ZZZ__FnCalls!F36","v":"Jun 2012"},{"$f":"ZZZ__FnCalls!F37","v":"Jul 2012"},{"$f":"ZZZ__FnCalls!F38","v":"Aug 2012"},{"$f":"ZZZ__FnCalls!F39","v":"Sep 2012"},{"$f":"ZZZ__FnCalls!F40","v":"Oct 2012"},{"$f":"ZZZ__FnCalls!F41","v":"Nov 2012"},{"$f":"ZZZ__FnCalls!F42","v":"Dec 2012"},{"$f":"ZZZ__FnCalls!H31","v":"2012"},{"$f":"ZZZ__FnCalls!F43","v":"Jan 2013"},{"$f":"ZZZ__FnCalls!F44","v":"Feb 2013"},{"$f":"ZZZ__FnCalls!F45","v":"Mar 2013"},{"$f":"ZZZ__FnCalls!F46","v":"Apr 2013"},{"$f":"ZZZ__FnCalls!F47","v":"May 2013"},{"$f":"ZZZ__FnCalls!F48","v":"Jun 2013"},{"$f":"ZZZ__FnCalls!F49","v":"Jul 2013"},{"$f":"ZZZ__FnCalls!F50","v":"Aug 2013"},{"$f":"ZZZ__FnCalls!F51","v":"Sep 2013"},{"$f":"ZZZ__FnCalls!F52","v":"Oct 2013"},{"$f":"ZZZ__FnCalls!F53","v":"Nov 2013"},{"$f":"ZZZ__FnCalls!F54","v":"Dec 2013"},{"$f":"ZZZ__FnCalls!H43","v":"2013"},{"$f":"ZZZ__FnCalls!F55","v":"Jan 2014"},{"$f":"ZZZ__FnCalls!F56","v":"Feb 2014"},{"$f":"ZZZ__FnCalls!F57","v":"Mar 2014"},{"$f":"ZZZ__FnCalls!F58","v":"Apr 2014"},{"$f":"ZZZ__FnCalls!F59","v":"May 2014"},{"$f":"ZZZ__FnCalls!F60","v":"Jun 2014"},{"$f":"ZZZ__FnCalls!F61","v":"Jul 2014"},{"$f":"ZZZ__FnCalls!F62","v":"Aug 2014"},{"$f":"ZZZ__FnCalls!F63","v":"Sep 2014"},{"$f":"ZZZ__FnCalls!F64","v":"Oct 2014"},{"$f":"ZZZ__FnCalls!F65","v":"Nov 2014"},{"$f":"ZZZ__FnCalls!F66","v":"Dec 2014"},{"$f":"ZZZ__FnCalls!H55","v":"2014"},{"$f":"ZZZ__FnCalls!F67","v":"Jan 2015"},{"$f":"ZZZ__FnCalls!F68","v":"Feb 2015"},{"$f":"ZZZ__FnCalls!F69","v":"Mar 2015"},{"$f":"ZZZ__FnCalls!F70","v":"Apr 2015"},{"$f":"ZZZ__FnCalls!F71","v":"May 2015"},{"$f":"ZZZ__FnCalls!F72","v":"Jun 2015"},{"$f":"ZZZ__FnCalls!F73","v":"Jul 2015"},{"$f":"ZZZ__FnCalls!F74","v":"Aug 2015"},{"$f":"ZZZ__FnCalls!F75","v":"Sep 2015"},{"$f":"ZZZ__FnCalls!F76","v":"Oct 2015"},{"$f":"ZZZ__FnCalls!F77","v":"Nov 2015"},{"$f":"ZZZ__FnCalls!F78","v":"Dec 2015"},{"$f":"ZZZ__FnCalls!H67","v":"2015"},{"$f":"ZZZ__FnCalls!F79","v":"Jan 2016"},{"$f":"ZZZ__FnCalls!F80","v":"Feb 2016"},{"$f":"ZZZ__FnCalls!F81","v":"Mar 2016"},{"$f":"ZZZ__FnCalls!F82","v":"Apr 2016"},{"$f":"ZZZ__FnCalls!F83","v":"May 2016"},{"$f":"ZZZ__FnCalls!F84","v":"Jun 2016"},{"$f":"ZZZ__FnCalls!F85","v":"Jul 2016"},{"$f":"ZZZ__FnCalls!F86","v":"Aug 2016"},{"$f":"ZZZ__FnCalls!F87","v":"Sep 2016"},{"$f":"ZZZ__FnCalls!F88","v":"Oct 2016"},{"$f":"ZZZ__FnCalls!F89","v":"Nov 2016"},{"$f":"ZZZ__FnCalls!F90","v":"Dec 2016"},{"$f":"ZZZ__FnCalls!H79","v":"2016"},{"$f":"ZZZ__FnCalls!F91","v":"Jan 2017"},{"$f":"ZZZ__FnCalls!F92","v":"Feb 2017"},{"$f":"ZZZ__FnCalls!F93","v":"Mar 2017"},{"$f":"ZZZ__FnCalls!F94","v":"Apr 2017"},{"$f":"ZZZ__FnCalls!F95","v":"May 2017"},{"$f":"ZZZ__FnCalls!F96","v":"Jun 2017"},{"$f":"ZZZ__FnCalls!F97","v":"Jul 2017"},{"$f":"ZZZ__FnCalls!F98","v":"Aug 2017"},{"$f":"ZZZ__FnCalls!F99","v":"Sep 2017"},{"$f":"ZZZ__FnCalls!F100","v":"Oct 2017"},{"$f":"ZZZ__FnCalls!F101","v":"Nov 2017"},{"$f":"ZZZ__FnCalls!F102","v":"Dec 2017"},{"$f":"ZZZ__FnCalls!H91","v":"2017"},{"$f":"ZZZ__FnCalls!F103","v":"Jan 2018"},{"$f":"ZZZ__FnCalls!F104","v":"Feb 2018"},{"$f":"ZZZ__FnCalls!F105","v":"Mar 2018"},{"$f":"ZZZ__FnCalls!F106","v":"Apr 2018"},{"$f":"ZZZ__FnCalls!F107","v":"May 2018"},{"$f":"ZZZ__FnCalls!F108","v":"Jun 2018"},{"$f":"ZZZ__FnCalls!F109","v":"Jul 2018"},{"$f":"ZZZ__FnCalls!F110","v":"Aug 2018"},{"$f":"ZZZ__FnCalls!F111","v":"Sep 2018"},{"$f":"ZZZ__FnCalls!F112","v":"Oct 2018"},{"$f":"ZZZ__FnCalls!F113","v":"Nov 2018"},{"$f":"ZZZ__FnCalls!F114","v":"Dec 2018"},{"$f":"ZZZ__FnCalls!H103","v":"2018"},{"$f":"ZZZ__FnCalls!F115","v":"Jan 2019"},{"$f":"ZZZ__FnCalls!F116","v":"Feb 2019"},{"$f":"ZZZ__FnCalls!F117","v":"Mar 2019"},{"$f":"ZZZ__FnCalls!F118","v":"Apr 2019"},{"$f":"ZZZ__FnCalls!F119","v":"May 2019"},{"$f":"ZZZ__FnCalls!F120","v":"Jun 2019"},{"$f":"ZZZ__FnCalls!F121","v":"Jul 2019"},{"$f":"ZZZ__FnCalls!F122","v":"Aug 2019"},{"$f":"ZZZ__FnCalls!F123","v":"Sep 2019"},{"$f":"ZZZ__FnCalls!F124","v":"Oct 2019"},{"$f":"ZZZ__FnCalls!F125","v":"Nov 2019"},{"$f":"ZZZ__FnCalls!F126","v":"Dec 2019"},{"$f":"ZZZ__FnCalls!H115","v":"2019"},{"$f":"ZZZ__FnCalls!F127","v":"Jan 2020"},{"$f":"ZZZ__FnCalls!F128","v":"Feb 2020"},{"$f":"ZZZ__FnCalls!F129","v":"Mar 2020"},{"$f":"ZZZ__FnCalls!F130","v":"Apr 2020"},{"$f":"ZZZ__FnCalls!F131","v":"May 2020"},{"$f":"ZZZ__FnCalls!F132","v":"Jun 2020"},{"$f":"ZZZ__FnCalls!F133","v":"Jul 2020"},{"$f":"ZZZ__FnCalls!F134","v":"Aug 2020"},{"$f":"ZZZ__FnCalls!F135","v":"Sep 2020"},{"$f":"ZZZ__FnCalls!F136","v":"Oct 2020"},{"$f":"ZZZ__FnCalls!F137","v":"Nov 2020"},{"$f":"ZZZ__FnCalls!F138","v":"Dec 2020"},{"$f":"ZZZ__FnCalls!H127","v":"2020"}]
[null,{"$f":"ZZZ__FnCalls!F7","v":"Jan 2010"},{"$f":"ZZZ__FnCalls!F8","v":"Feb 2010"},{"$f":"ZZZ__FnCalls!F9","v":"Mar 2010"},{"$f":"ZZZ__FnCalls!F10","v":"Apr 2010"},{"$f":"ZZZ__FnCalls!F11","v":"May 2010"},{"$f":"ZZZ__FnCalls!F12","v":"Jun 2010"},{"$f":"ZZZ__FnCalls!F13","v":"Jul 2010"},{"$f":"ZZZ__FnCalls!F14","v":"Aug 2010"},{"$f":"ZZZ__FnCalls!F15","v":"Sep 2010"},{"$f":"ZZZ__FnCalls!F16","v":"Oct 2010"},{"$f":"ZZZ__FnCalls!F17","v":"Nov 2010"},{"$f":"ZZZ__FnCalls!F18","v":"Dec 2010"},{"$f":"ZZZ__FnCalls!F7","v":"Jan 2010"},{"$f":"ZZZ__FnCalls!F19","v":"Jan 2011"},{"$f":"ZZZ__FnCalls!F20","v":"Feb 2011"},{"$f":"ZZZ__FnCalls!F21","v":"Mar 2011"},{"$f":"ZZZ__FnCalls!F22","v":"Apr 2011"},{"$f":"ZZZ__FnCalls!F23","v":"May 2011"},{"$f":"ZZZ__FnCalls!F24","v":"Jun 2011"},{"$f":"ZZZ__FnCalls!F25","v":"Jul 2011"},{"$f":"ZZZ__FnCalls!F26","v":"Aug 2011"},{"$f":"ZZZ__FnCalls!F27","v":"Sep 2011"},{"$f":"ZZZ__FnCalls!F28","v":"Oct 2011"},{"$f":"ZZZ__FnCalls!F29","v":"Nov 2011"},{"$f":"ZZZ__FnCalls!F30","v":"Dec 2011"},{"$f":"ZZZ__FnCalls!F19","v":"Jan 2011"},{"$f":"ZZZ__FnCalls!F31","v":"Jan 2012"},{"$f":"ZZZ__FnCalls!F32","v":"Feb 2012"},{"$f":"ZZZ__FnCalls!F33","v":"Mar 2012"},{"$f":"ZZZ__FnCalls!F34","v":"Apr 2012"},{"$f":"ZZZ__FnCalls!F35","v":"May 2012"},{"$f":"ZZZ__FnCalls!F36","v":"Jun 2012"},{"$f":"ZZZ__FnCalls!F37","v":"Jul 2012"},{"$f":"ZZZ__FnCalls!F38","v":"Aug 2012"},{"$f":"ZZZ__FnCalls!F39","v":"Sep 2012"},{"$f":"ZZZ__FnCalls!F40","v":"Oct 2012"},{"$f":"ZZZ__FnCalls!F41","v":"Nov 2012"},{"$f":"ZZZ__FnCalls!F42","v":"Dec 2012"},{"$f":"ZZZ__FnCalls!F31","v":"Jan 2012"},{"$f":"ZZZ__FnCalls!F43","v":"Jan 2013"},{"$f":"ZZZ__FnCalls!F44","v":"Feb 2013"},{"$f":"ZZZ__FnCalls!F45","v":"Mar 2013"},{"$f":"ZZZ__FnCalls!F46","v":"Apr 2013"},{"$f":"ZZZ__FnCalls!F47","v":"May 2013"},{"$f":"ZZZ__FnCalls!F48","v":"Jun 2013"},{"$f":"ZZZ__FnCalls!F49","v":"Jul 2013"},{"$f":"ZZZ__FnCalls!F50","v":"Aug 2013"},{"$f":"ZZZ__FnCalls!F51","v":"Sep 2013"},{"$f":"ZZZ__FnCalls!F52","v":"Oct 2013"},{"$f":"ZZZ__FnCalls!F53","v":"Nov 2013"},{"$f":"ZZZ__FnCalls!F54","v":"Dec 2013"},{"$f":"ZZZ__FnCalls!F43","v":"Jan 2013"},{"$f":"ZZZ__FnCalls!F55","v":"Jan 2014"},{"$f":"ZZZ__FnCalls!F56","v":"Feb 2014"},{"$f":"ZZZ__FnCalls!F57","v":"Mar 2014"},{"$f":"ZZZ__FnCalls!F58","v":"Apr 2014"},{"$f":"ZZZ__FnCalls!F59","v":"May 2014"},{"$f":"ZZZ__FnCalls!F60","v":"Jun 2014"},{"$f":"ZZZ__FnCalls!F61","v":"Jul 2014"},{"$f":"ZZZ__FnCalls!F62","v":"Aug 2014"},{"$f":"ZZZ__FnCalls!F63","v":"Sep 2014"},{"$f":"ZZZ__FnCalls!F64","v":"Oct 2014"},{"$f":"ZZZ__FnCalls!F65","v":"Nov 2014"},{"$f":"ZZZ__FnCalls!F66","v":"Dec 2014"},{"$f":"ZZZ__FnCalls!F55","v":"Jan 2014"},{"$f":"ZZZ__FnCalls!F67","v":"Jan 2015"},{"$f":"ZZZ__FnCalls!F68","v":"Feb 2015"},{"$f":"ZZZ__FnCalls!F69","v":"Mar 2015"},{"$f":"ZZZ__FnCalls!F70","v":"Apr 2015"},{"$f":"ZZZ__FnCalls!F71","v":"May 2015"},{"$f":"ZZZ__FnCalls!F72","v":"Jun 2015"},{"$f":"ZZZ__FnCalls!F73","v":"Jul 2015"},{"$f":"ZZZ__FnCalls!F74","v":"Aug 2015"},{"$f":"ZZZ__FnCalls!F75","v":"Sep 2015"},{"$f":"ZZZ__FnCalls!F76","v":"Oct 2015"},{"$f":"ZZZ__FnCalls!F77","v":"Nov 2015"},{"$f":"ZZZ__FnCalls!F78","v":"Dec 2015"},{"$f":"ZZZ__FnCalls!F67","v":"Jan 2015"},{"$f":"ZZZ__FnCalls!F79","v":"Jan 2016"},{"$f":"ZZZ__FnCalls!F80","v":"Feb 2016"},{"$f":"ZZZ__FnCalls!F81","v":"Mar 2016"},{"$f":"ZZZ__FnCalls!F82","v":"Apr 2016"},{"$f":"ZZZ__FnCalls!F83","v":"May 2016"},{"$f":"ZZZ__FnCalls!F84","v":"Jun 2016"},{"$f":"ZZZ__FnCalls!F85","v":"Jul 2016"},{"$f":"ZZZ__FnCalls!F86","v":"Aug 2016"},{"$f":"ZZZ__FnCalls!F87","v":"Sep 2016"},{"$f":"ZZZ__FnCalls!F88","v":"Oct 2016"},{"$f":"ZZZ__FnCalls!F89","v":"Nov 2016"},{"$f":"ZZZ__FnCalls!F90","v":"Dec 2016"},{"$f":"ZZZ__FnCalls!F79","v":"Jan 2016"},{"$f":"ZZZ__FnCalls!F91","v":"Jan 2017"},{"$f":"ZZZ__FnCalls!F92","v":"Feb 2017"},{"$f":"ZZZ__FnCalls!F93","v":"Mar 2017"},{"$f":"ZZZ__FnCalls!F94","v":"Apr 2017"},{"$f":"ZZZ__FnCalls!F95","v":"May 2017"},{"$f":"ZZZ__FnCalls!F96","v":"Jun 2017"},{"$f":"ZZZ__FnCalls!F97","v":"Jul 2017"},{"$f":"ZZZ__FnCalls!F98","v":"Aug 2017"},{"$f":"ZZZ__FnCalls!F99","v":"Sep 2017"},{"$f":"ZZZ__FnCalls!F100","v":"Oct 2017"},{"$f":"ZZZ__FnCalls!F101","v":"Nov 2017"},{"$f":"ZZZ__FnCalls!F102","v":"Dec 2017"},{"$f":"ZZZ__FnCalls!F91","v":"Jan 2017"},{"$f":"ZZZ__FnCalls!F103","v":"Jan 2018"},{"$f":"ZZZ__FnCalls!F104","v":"Feb 2018"},{"$f":"ZZZ__FnCalls!F105","v":"Mar 2018"},{"$f":"ZZZ__FnCalls!F106","v":"Apr 2018"},{"$f":"ZZZ__FnCalls!F107","v":"May 2018"},{"$f":"ZZZ__FnCalls!F108","v":"Jun 2018"},{"$f":"ZZZ__FnCalls!F109","v":"Jul 2018"},{"$f":"ZZZ__FnCalls!F110","v":"Aug 2018"},{"$f":"ZZZ__FnCalls!F111","v":"Sep 2018"},{"$f":"ZZZ__FnCalls!F112","v":"Oct 2018"},{"$f":"ZZZ__FnCalls!F113","v":"Nov 2018"},{"$f":"ZZZ__FnCalls!F114","v":"Dec 2018"},{"$f":"ZZZ__FnCalls!F103","v":"Jan 2018"},{"$f":"ZZZ__FnCalls!F115","v":"Jan 2019"},{"$f":"ZZZ__FnCalls!F116","v":"Feb 2019"},{"$f":"ZZZ__FnCalls!F117","v":"Mar 2019"},{"$f":"ZZZ__FnCalls!F118","v":"Apr 2019"},{"$f":"ZZZ__FnCalls!F119","v":"May 2019"},{"$f":"ZZZ__FnCalls!F120","v":"Jun 2019"},{"$f":"ZZZ__FnCalls!F121","v":"Jul 2019"},{"$f":"ZZZ__FnCalls!F122","v":"Aug 2019"},{"$f":"ZZZ__FnCalls!F123","v":"Sep 2019"},{"$f":"ZZZ__FnCalls!F124","v":"Oct 2019"},{"$f":"ZZZ__FnCalls!F125","v":"Nov 2019"},{"$f":"ZZZ__FnCalls!F126","v":"Dec 2019"},{"$f":"ZZZ__FnCalls!F115","v":"Jan 2019"},{"$f":"ZZZ__FnCalls!F127","v":"Jan 2020"},{"$f":"ZZZ__FnCalls!F128","v":"Feb 2020"},{"$f":"ZZZ__FnCalls!F129","v":"Mar 2020"},{"$f":"ZZZ__FnCalls!F130","v":"Apr 2020"},{"$f":"ZZZ__FnCalls!F131","v":"May 2020"},{"$f":"ZZZ__FnCalls!F132","v":"Jun 2020"},{"$f":"ZZZ__FnCalls!F133","v":"Jul 2020"},{"$f":"ZZZ__FnCalls!F134","v":"Aug 2020"},{"$f":"ZZZ__FnCalls!F135","v":"Sep 2020"},{"$f":"ZZZ__FnCalls!F136","v":"Oct 2020"},{"$f":"ZZZ__FnCalls!F137","v":"Nov 2020"},{"$f":"ZZZ__FnCalls!F138","v":"Dec 2020"},{"$f":"ZZZ__FnCalls!F127","v":"Jan 2020"}]
[{"$f":"\"Final_Sales_mean_1\"","v":"Final_Sales_mean_1"}]
[null,{"$f":"ZZZ__FnCalls!F7","v":"Jan 2010"},{"$f":"ZZZ__FnCalls!F8","v":"Feb 2010"},{"$f":"ZZZ__FnCalls!F9","v":"Mar 2010"},{"$f":"ZZZ__FnCalls!F10","v":"Apr 2010"},{"$f":"ZZZ__FnCalls!F11","v":"May 2010"},{"$f":"ZZZ__FnCalls!F12","v":"Jun 2010"},{"$f":"ZZZ__FnCalls!F13","v":"Jul 2010"},{"$f":"ZZZ__FnCalls!F14","v":"Aug 2010"},{"$f":"ZZZ__FnCalls!F15","v":"Sep 2010"},{"$f":"ZZZ__FnCalls!F16","v":"Oct 2010"},{"$f":"ZZZ__FnCalls!F17","v":"Nov 2010"},{"$f":"ZZZ__FnCalls!F18","v":"Dec 2010"},{"$f":"ZZZ__FnCalls!H7","v":"2010"},{"$f":"ZZZ__FnCalls!F19","v":"Jan 2011"},{"$f":"ZZZ__FnCalls!F20","v":"Feb 2011"},{"$f":"ZZZ__FnCalls!F21","v":"Mar 2011"},{"$f":"ZZZ__FnCalls!F22","v":"Apr 2011"},{"$f":"ZZZ__FnCalls!F23","v":"May 2011"},{"$f":"ZZZ__FnCalls!F24","v":"Jun 2011"},{"$f":"ZZZ__FnCalls!F25","v":"Jul 2011"},{"$f":"ZZZ__FnCalls!F26","v":"Aug 2011"},{"$f":"ZZZ__FnCalls!F27","v":"Sep 2011"},{"$f":"ZZZ__FnCalls!F28","v":"Oct 2011"},{"$f":"ZZZ__FnCalls!F29","v":"Nov 2011"},{"$f":"ZZZ__FnCalls!F30","v":"Dec 2011"},{"$f":"ZZZ__FnCalls!H19","v":"2011"},{"$f":"ZZZ__FnCalls!F31","v":"Jan 2012"},{"$f":"ZZZ__FnCalls!F32","v":"Feb 2012"},{"$f":"ZZZ__FnCalls!F33","v":"Mar 2012"},{"$f":"ZZZ__FnCalls!F34","v":"Apr 2012"},{"$f":"ZZZ__FnCalls!F35","v":"May 2012"},{"$f":"ZZZ__FnCalls!F36","v":"Jun 2012"},{"$f":"ZZZ__FnCalls!F37","v":"Jul 2012"},{"$f":"ZZZ__FnCalls!F38","v":"Aug 2012"},{"$f":"ZZZ__FnCalls!F39","v":"Sep 2012"},{"$f":"ZZZ__FnCalls!F40","v":"Oct 2012"},{"$f":"ZZZ__FnCalls!F41","v":"Nov 2012"},{"$f":"ZZZ__FnCalls!F42","v":"Dec 2012"},{"$f":"ZZZ__FnCalls!H31","v":"2012"},{"$f":"ZZZ__FnCalls!F43","v":"Jan 2013"},{"$f":"ZZZ__FnCalls!F44","v":"Feb 2013"},{"$f":"ZZZ__FnCalls!F45","v":"Mar 2013"},{"$f":"ZZZ__FnCalls!F46","v":"Apr 2013"},{"$f":"ZZZ__FnCalls!F47","v":"May 2013"},{"$f":"ZZZ__FnCalls!F48","v":"Jun 2013"},{"$f":"ZZZ__FnCalls!F49","v":"Jul 2013"},{"$f":"ZZZ__FnCalls!F50","v":"Aug 2013"},{"$f":"ZZZ__FnCalls!F51","v":"Sep 2013"},{"$f":"ZZZ__FnCalls!F52","v":"Oct 2013"},{"$f":"ZZZ__FnCalls!F53","v":"Nov 2013"},{"$f":"ZZZ__FnCalls!F54","v":"Dec 2013"},{"$f":"ZZZ__FnCalls!H43","v":"2013"},{"$f":"ZZZ__FnCalls!F55","v":"Jan 2014"},{"$f":"ZZZ__FnCalls!F56","v":"Feb 2014"},{"$f":"ZZZ__FnCalls!F57","v":"Mar 2014"},{"$f":"ZZZ__FnCalls!F58","v":"Apr 2014"},{"$f":"ZZZ__FnCalls!F59","v":"May 2014"},{"$f":"ZZZ__FnCalls!F60","v":"Jun 2014"},{"$f":"ZZZ__FnCalls!F61","v":"Jul 2014"},{"$f":"ZZZ__FnCalls!F62","v":"Aug 2014"},{"$f":"ZZZ__FnCalls!F63","v":"Sep 2014"},{"$f":"ZZZ__FnCalls!F64","v":"Oct 2014"},{"$f":"ZZZ__FnCalls!F65","v":"Nov 2014"},{"$f":"ZZZ__FnCalls!F66","v":"Dec 2014"},{"$f":"ZZZ__FnCalls!H55","v":"2014"},{"$f":"ZZZ__FnCalls!F67","v":"Jan 2015"},{"$f":"ZZZ__FnCalls!F68","v":"Feb 2015"},{"$f":"ZZZ__FnCalls!F69","v":"Mar 2015"},{"$f":"ZZZ__FnCalls!F70","v":"Apr 2015"},{"$f":"ZZZ__FnCalls!F71","v":"May 2015"},{"$f":"ZZZ__FnCalls!F72","v":"Jun 2015"},{"$f":"ZZZ__FnCalls!F73","v":"Jul 2015"},{"$f":"ZZZ__FnCalls!F74","v":"Aug 2015"},{"$f":"ZZZ__FnCalls!F75","v":"Sep 2015"},{"$f":"ZZZ__FnCalls!F76","v":"Oct 2015"},{"$f":"ZZZ__FnCalls!F77","v":"Nov 2015"},{"$f":"ZZZ__FnCalls!F78","v":"Dec 2015"},{"$f":"ZZZ__FnCalls!H67","v":"2015"},{"$f":"ZZZ__FnCalls!F79","v":"Jan 2016"},{"$f":"ZZZ__FnCalls!F80","v":"Feb 2016"},{"$f":"ZZZ__FnCalls!F81","v":"Mar 2016"},{"$f":"ZZZ__FnCalls!F82","v":"Apr 2016"},{"$f":"ZZZ__FnCalls!F83","v":"May 2016"},{"$f":"ZZZ__FnCalls!F84","v":"Jun 2016"},{"$f":"ZZZ__FnCalls!F85","v":"Jul 2016"},{"$f":"ZZZ__FnCalls!F86","v":"Aug 2016"},{"$f":"ZZZ__FnCalls!F87","v":"Sep 2016"},{"$f":"ZZZ__FnCalls!F88","v":"Oct 2016"},{"$f":"ZZZ__FnCalls!F89","v":"Nov 2016"},{"$f":"ZZZ__FnCalls!F90","v":"Dec 2016"},{"$f":"ZZZ__FnCalls!H79","v":"2016"},{"$f":"ZZZ__FnCalls!F91","v":"Jan 2017"},{"$f":"ZZZ__FnCalls!F92","v":"Feb 2017"},{"$f":"ZZZ__FnCalls!F93","v":"Mar 2017"},{"$f":"ZZZ__FnCalls!F94","v":"Apr 2017"},{"$f":"ZZZ__FnCalls!F95","v":"May 2017"},{"$f":"ZZZ__FnCalls!F96","v":"Jun 2017"},{"$f":"ZZZ__FnCalls!F97","v":"Jul 2017"},{"$f":"ZZZ__FnCalls!F98","v":"Aug 2017"},{"$f":"ZZZ__FnCalls!F99","v":"Sep 2017"},{"$f":"ZZZ__FnCalls!F100","v":"Oct 2017"},{"$f":"ZZZ__FnCalls!F101","v":"Nov 2017"},{"$f":"ZZZ__FnCalls!F102","v":"Dec 2017"},{"$f":"ZZZ__FnCalls!H91","v":"2017"},{"$f":"ZZZ__FnCalls!F103","v":"Jan 2018"},{"$f":"ZZZ__FnCalls!F104","v":"Feb 2018"},{"$f":"ZZZ__FnCalls!F105","v":"Mar 2018"},{"$f":"ZZZ__FnCalls!F106","v":"Apr 2018"},{"$f":"ZZZ__FnCalls!F107","v":"May 2018"},{"$f":"ZZZ__FnCalls!F108","v":"Jun 2018"},{"$f":"ZZZ__FnCalls!F109","v":"Jul 2018"},{"$f":"ZZZ__FnCalls!F110","v":"Aug 2018"},{"$f":"ZZZ__FnCalls!F111","v":"Sep 2018"},{"$f":"ZZZ__FnCalls!F112","v":"Oct 2018"},{"$f":"ZZZ__FnCalls!F113","v":"Nov 2018"},{"$f":"ZZZ__FnCalls!F114","v":"Dec 2018"},{"$f":"ZZZ__FnCalls!H103","v":"2018"},{"$f":"ZZZ__FnCalls!F115","v":"Jan 2019"},{"$f":"ZZZ__FnCalls!F116","v":"Feb 2019"},{"$f":"ZZZ__FnCalls!F117","v":"Mar 2019"},{"$f":"ZZZ__FnCalls!F118","v":"Apr 2019"},{"$f":"ZZZ__FnCalls!F119","v":"May 2019"},{"$f":"ZZZ__FnCalls!F120","v":"Jun 2019"},{"$f":"ZZZ__FnCalls!F121","v":"Jul 2019"},{"$f":"ZZZ__FnCalls!F122","v":"Aug 2019"},{"$f":"ZZZ__FnCalls!F123","v":"Sep 2019"},{"$f":"ZZZ__FnCalls!F124","v":"Oct 2019"},{"$f":"ZZZ__FnCalls!F125","v":"Nov 2019"},{"$f":"ZZZ__FnCalls!F126","v":"Dec 2019"},{"$f":"ZZZ__FnCalls!H115","v":"2019"},{"$f":"ZZZ__FnCalls!F127","v":"Jan 2020"},{"$f":"ZZZ__FnCalls!F128","v":"Feb 2020"},{"$f":"ZZZ__FnCalls!F129","v":"Mar 2020"},{"$f":"ZZZ__FnCalls!F130","v":"Apr 2020"},{"$f":"ZZZ__FnCalls!F131","v":"May 2020"},{"$f":"ZZZ__FnCalls!F132","v":"Jun 2020"},{"$f":"ZZZ__FnCalls!F133","v":"Jul 2020"},{"$f":"ZZZ__FnCalls!F134","v":"Aug 2020"},{"$f":"ZZZ__FnCalls!F135","v":"Sep 2020"},{"$f":"ZZZ__FnCalls!F136","v":"Oct 2020"},{"$f":"ZZZ__FnCalls!F137","v":"Nov 2020"},{"$f":"ZZZ__FnCalls!F138","v":"Dec 2020"},{"$f":"ZZZ__FnCalls!H127","v":"2020"}]
[null,{"$f":"ZZZ__FnCalls!A7","v":"2010-01-01"},{"$f":"ZZZ__FnCalls!A8","v":"2010-02-01"},{"$f":"ZZZ__FnCalls!A9","v":"2010-03-01"},{"$f":"ZZZ__FnCalls!A10","v":"2010-04-01"},{"$f":"ZZZ__FnCalls!A11","v":"2010-05-01"},{"$f":"ZZZ__FnCalls!A12","v":"2010-06-01"},{"$f":"ZZZ__FnCalls!A13","v":"2010-07-01"},{"$f":"ZZZ__FnCalls!A14","v":"2010-08-01"},{"$f":"ZZZ__FnCalls!A15","v":"2010-09-01"},{"$f":"ZZZ__FnCalls!A16","v":"2010-10-01"},{"$f":"ZZZ__FnCalls!A17","v":"2010-11-01"},{"$f":"ZZZ__FnCalls!A18","v":"2010-12-01"},{"$f":"ZZZ__FnCalls!A7","v":"2010-01-01"},{"$f":"ZZZ__FnCalls!A19","v":"2011-01-01"},{"$f":"ZZZ__FnCalls!A20","v":"2011-02-01"},{"$f":"ZZZ__FnCalls!A21","v":"2011-03-01"},{"$f":"ZZZ__FnCalls!A22","v":"2011-04-01"},{"$f":"ZZZ__FnCalls!A23","v":"2011-05-01"},{"$f":"ZZZ__FnCalls!A24","v":"2011-06-01"},{"$f":"ZZZ__FnCalls!A25","v":"2011-07-01"},{"$f":"ZZZ__FnCalls!A26","v":"2011-08-01"},{"$f":"ZZZ__FnCalls!A27","v":"2011-09-01"},{"$f":"ZZZ__FnCalls!A28","v":"2011-10-01"},{"$f":"ZZZ__FnCalls!A29","v":"2011-11-01"},{"$f":"ZZZ__FnCalls!A30","v":"2011-12-01"},{"$f":"ZZZ__FnCalls!A19","v":"2011-01-01"},{"$f":"ZZZ__FnCalls!A31","v":"2012-01-01"},{"$f":"ZZZ__FnCalls!A32","v":"2012-02-01"},{"$f":"ZZZ__FnCalls!A33","v":"2012-03-01"},{"$f":"ZZZ__FnCalls!A34","v":"2012-04-01"},{"$f":"ZZZ__FnCalls!A35","v":"2012-05-01"},{"$f":"ZZZ__FnCalls!A36","v":"2012-06-01"},{"$f":"ZZZ__FnCalls!A37","v":"2012-07-01"},{"$f":"ZZZ__FnCalls!A38","v":"2012-08-01"},{"$f":"ZZZ__FnCalls!A39","v":"2012-09-01"},{"$f":"ZZZ__FnCalls!A40","v":"2012-10-01"},{"$f":"ZZZ__FnCalls!A41","v":"2012-11-01"},{"$f":"ZZZ__FnCalls!A42","v":"2012-12-01"},{"$f":"ZZZ__FnCalls!A31","v":"2012-01-01"},{"$f":"ZZZ__FnCalls!A43","v":"2013-01-01"},{"$f":"ZZZ__FnCalls!A44","v":"2013-02-01"},{"$f":"ZZZ__FnCalls!A45","v":"2013-03-01"},{"$f":"ZZZ__FnCalls!A46","v":"2013-04-01"},{"$f":"ZZZ__FnCalls!A47","v":"2013-05-01"},{"$f":"ZZZ__FnCalls!A48","v":"2013-06-01"},{"$f":"ZZZ__FnCalls!A49","v":"2013-07-01"},{"$f":"ZZZ__FnCalls!A50","v":"2013-08-01"},{"$f":"ZZZ__FnCalls!A51","v":"2013-09-01"},{"$f":"ZZZ__FnCalls!A52","v":"2013-10-01"},{"$f":"ZZZ__FnCalls!A53","v":"2013-11-01"},{"$f":"ZZZ__FnCalls!A54","v":"2013-12-01"},{"$f":"ZZZ__FnCalls!A43","v":"2013-01-01"},{"$f":"ZZZ__FnCalls!A55","v":"2014-01-01"},{"$f":"ZZZ__FnCalls!A56","v":"2014-02-01"},{"$f":"ZZZ__FnCalls!A57","v":"2014-03-01"},{"$f":"ZZZ__FnCalls!A58","v":"2014-04-01"},{"$f":"ZZZ__FnCalls!A59","v":"2014-05-01"},{"$f":"ZZZ__FnCalls!A60","v":"2014-06-01"},{"$f":"ZZZ__FnCalls!A61","v":"2014-07-01"},{"$f":"ZZZ__FnCalls!A62","v":"2014-08-01"},{"$f":"ZZZ__FnCalls!A63","v":"2014-09-01"},{"$f":"ZZZ__FnCalls!A64","v":"2014-10-01"},{"$f":"ZZZ__FnCalls!A65","v":"2014-11-01"},{"$f":"ZZZ__FnCalls!A66","v":"2014-12-01"},{"$f":"ZZZ__FnCalls!A55","v":"2014-01-01"},{"$f":"ZZZ__FnCalls!A67","v":"2015-01-01"},{"$f":"ZZZ__FnCalls!A68","v":"2015-02-01"},{"$f":"ZZZ__FnCalls!A69","v":"2015-03-01"},{"$f":"ZZZ__FnCalls!A70","v":"2015-04-01"},{"$f":"ZZZ__FnCalls!A71","v":"2015-05-01"},{"$f":"ZZZ__FnCalls!A72","v":"2015-06-01"},{"$f":"ZZZ__FnCalls!A73","v":"2015-07-01"},{"$f":"ZZZ__FnCalls!A74","v":"2015-08-01"},{"$f":"ZZZ__FnCalls!A75","v":"2015-09-01"},{"$f":"ZZZ__FnCalls!A76","v":"2015-10-01"},{"$f":"ZZZ__FnCalls!A77","v":"2015-11-01"},{"$f":"ZZZ__FnCalls!A78","v":"2015-12-01"},{"$f":"ZZZ__FnCalls!A67","v":"2015-01-01"},{"$f":"ZZZ__FnCalls!A79","v":"2016-01-01"},{"$f":"ZZZ__FnCalls!A80","v":"2016-02-01"},{"$f":"ZZZ__FnCalls!A81","v":"2016-03-01"},{"$f":"ZZZ__FnCalls!A82","v":"2016-04-01"},{"$f":"ZZZ__FnCalls!A83","v":"2016-05-01"},{"$f":"ZZZ__FnCalls!A84","v":"2016-06-01"},{"$f":"ZZZ__FnCalls!A85","v":"2016-07-01"},{"$f":"ZZZ__FnCalls!A86","v":"2016-08-01"},{"$f":"ZZZ__FnCalls!A87","v":"2016-09-01"},{"$f":"ZZZ__FnCalls!A88","v":"2016-10-01"},{"$f":"ZZZ__FnCalls!A89","v":"2016-11-01"},{"$f":"ZZZ__FnCalls!A90","v":"2016-12-01"},{"$f":"ZZZ__FnCalls!A79","v":"2016-01-01"},{"$f":"ZZZ__FnCalls!A91","v":"2017-01-01"},{"$f":"ZZZ__FnCalls!A92","v":"2017-02-01"},{"$f":"ZZZ__FnCalls!A93","v":"2017-03-01"},{"$f":"ZZZ__FnCalls!A94","v":"2017-04-01"},{"$f":"ZZZ__FnCalls!A95","v":"2017-05-01"},{"$f":"ZZZ__FnCalls!A96","v":"2017-06-01"},{"$f":"ZZZ__FnCalls!A97","v":"2017-07-01"},{"$f":"ZZZ__FnCalls!A98","v":"2017-08-01"},{"$f":"ZZZ__FnCalls!A99","v":"2017-09-01"},{"$f":"ZZZ__FnCalls!A100","v":"2017-10-01"},{"$f":"ZZZ__FnCalls!A101","v":"2017-11-01"},{"$f":"ZZZ__FnCalls!A102","v":"2017-12-01"},{"$f":"ZZZ__FnCalls!A91","v":"2017-01-01"},{"$f":"ZZZ__FnCalls!A103","v":"2018-01-01"},{"$f":"ZZZ__FnCalls!A104","v":"2018-02-01"},{"$f":"ZZZ__FnCalls!A105","v":"2018-03-01"},{"$f":"ZZZ__FnCalls!A106","v":"2018-04-01"},{"$f":"ZZZ__FnCalls!A107","v":"2018-05-01"},{"$f":"ZZZ__FnCalls!A108","v":"2018-06-01"},{"$f":"ZZZ__FnCalls!A109","v":"2018-07-01"},{"$f":"ZZZ__FnCalls!A110","v":"2018-08-01"},{"$f":"ZZZ__FnCalls!A111","v":"2018-09-01"},{"$f":"ZZZ__FnCalls!A112","v":"2018-10-01"},{"$f":"ZZZ__FnCalls!A113","v":"2018-11-01"},{"$f":"ZZZ__FnCalls!A114","v":"2018-12-01"},{"$f":"ZZZ__FnCalls!A103","v":"2018-01-01"},{"$f":"ZZZ__FnCalls!A115","v":"2019-01-01"},{"$f":"ZZZ__FnCalls!A116","v":"2019-02-01"},{"$f":"ZZZ__FnCalls!A117","v":"2019-03-01"},{"$f":"ZZZ__FnCalls!A118","v":"2019-04-01"},{"$f":"ZZZ__FnCalls!A119","v":"2019-05-01"},{"$f":"ZZZ__FnCalls!A120","v":"2019-06-01"},{"$f":"ZZZ__FnCalls!A121","v":"2019-07-01"},{"$f":"ZZZ__FnCalls!A122","v":"2019-08-01"},{"$f":"ZZZ__FnCalls!A123","v":"2019-09-01"},{"$f":"ZZZ__FnCalls!A124","v":"2019-10-01"},{"$f":"ZZZ__FnCalls!A125","v":"2019-11-01"},{"$f":"ZZZ__FnCalls!A126","v":"2019-12-01"},{"$f":"ZZZ__FnCalls!A115","v":"2019-01-01"},{"$f":"ZZZ__FnCalls!A127","v":"2020-01-01"},{"$f":"ZZZ__FnCalls!A128","v":"2020-02-01"},{"$f":"ZZZ__FnCalls!A129","v":"2020-03-01"},{"$f":"ZZZ__FnCalls!A130","v":"2020-04-01"},{"$f":"ZZZ__FnCalls!A131","v":"2020-05-01"},{"$f":"ZZZ__FnCalls!A132","v":"2020-06-01"},{"$f":"ZZZ__FnCalls!A133","v":"2020-07-01"},{"$f":"ZZZ__FnCalls!A134","v":"2020-08-01"},{"$f":"ZZZ__FnCalls!A135","v":"2020-09-01"},{"$f":"ZZZ__FnCalls!A136","v":"2020-10-01"},{"$f":"ZZZ__FnCalls!A137","v":"2020-11-01"},{"$f":"ZZZ__FnCalls!A138","v":"2020-12-01"},{"$f":"ZZZ__FnCalls!A127","v":"2020-01-01"}]
[{"$f":"\"Final_Sales_mean_2\"","v":"Final_Sales_mean_2"}]
[null,{"$f":"ZZZ__FnCalls!F7","v":"Jan 2010"},{"$f":"ZZZ__FnCalls!F8","v":"Feb 2010"},{"$f":"ZZZ__FnCalls!F9","v":"Mar 2010"},{"$f":"ZZZ__FnCalls!F10","v":"Apr 2010"},{"$f":"ZZZ__FnCalls!F11","v":"May 2010"},{"$f":"ZZZ__FnCalls!F12","v":"Jun 2010"},{"$f":"ZZZ__FnCalls!F13","v":"Jul 2010"},{"$f":"ZZZ__FnCalls!F14","v":"Aug 2010"},{"$f":"ZZZ__FnCalls!F15","v":"Sep 2010"},{"$f":"ZZZ__FnCalls!F16","v":"Oct 2010"},{"$f":"ZZZ__FnCalls!F17","v":"Nov 2010"},{"$f":"ZZZ__FnCalls!F18","v":"Dec 2010"},{"$f":"ZZZ__FnCalls!H7","v":"2010"},{"$f":"ZZZ__FnCalls!F19","v":"Jan 2011"},{"$f":"ZZZ__FnCalls!F20","v":"Feb 2011"},{"$f":"ZZZ__FnCalls!F21","v":"Mar 2011"},{"$f":"ZZZ__FnCalls!F22","v":"Apr 2011"},{"$f":"ZZZ__FnCalls!F23","v":"May 2011"},{"$f":"ZZZ__FnCalls!F24","v":"Jun 2011"},{"$f":"ZZZ__FnCalls!F25","v":"Jul 2011"},{"$f":"ZZZ__FnCalls!F26","v":"Aug 2011"},{"$f":"ZZZ__FnCalls!F27","v":"Sep 2011"},{"$f":"ZZZ__FnCalls!F28","v":"Oct 2011"},{"$f":"ZZZ__FnCalls!F29","v":"Nov 2011"},{"$f":"ZZZ__FnCalls!F30","v":"Dec 2011"},{"$f":"ZZZ__FnCalls!H19","v":"2011"},{"$f":"ZZZ__FnCalls!F31","v":"Jan 2012"},{"$f":"ZZZ__FnCalls!F32","v":"Feb 2012"},{"$f":"ZZZ__FnCalls!F33","v":"Mar 2012"},{"$f":"ZZZ__FnCalls!F34","v":"Apr 2012"},{"$f":"ZZZ__FnCalls!F35","v":"May 2012"},{"$f":"ZZZ__FnCalls!F36","v":"Jun 2012"},{"$f":"ZZZ__FnCalls!F37","v":"Jul 2012"},{"$f":"ZZZ__FnCalls!F38","v":"Aug 2012"},{"$f":"ZZZ__FnCalls!F39","v":"Sep 2012"},{"$f":"ZZZ__FnCalls!F40","v":"Oct 2012"},{"$f":"ZZZ__FnCalls!F41","v":"Nov 2012"},{"$f":"ZZZ__FnCalls!F42","v":"Dec 2012"},{"$f":"ZZZ__FnCalls!H31","v":"2012"},{"$f":"ZZZ__FnCalls!F43","v":"Jan 2013"},{"$f":"ZZZ__FnCalls!F44","v":"Feb 2013"},{"$f":"ZZZ__FnCalls!F45","v":"Mar 2013"},{"$f":"ZZZ__FnCalls!F46","v":"Apr 2013"},{"$f":"ZZZ__FnCalls!F47","v":"May 2013"},{"$f":"ZZZ__FnCalls!F48","v":"Jun 2013"},{"$f":"ZZZ__FnCalls!F49","v":"Jul 2013"},{"$f":"ZZZ__FnCalls!F50","v":"Aug 2013"},{"$f":"ZZZ__FnCalls!F51","v":"Sep 2013"},{"$f":"ZZZ__FnCalls!F52","v":"Oct 2013"},{"$f":"ZZZ__FnCalls!F53","v":"Nov 2013"},{"$f":"ZZZ__FnCalls!F54","v":"Dec 2013"},{"$f":"ZZZ__FnCalls!H43","v":"2013"},{"$f":"ZZZ__FnCalls!F55","v":"Jan 2014"},{"$f":"ZZZ__FnCalls!F56","v":"Feb 2014"},{"$f":"ZZZ__FnCalls!F57","v":"Mar 2014"},{"$f":"ZZZ__FnCalls!F58","v":"Apr 2014"},{"$f":"ZZZ__FnCalls!F59","v":"May 2014"},{"$f":"ZZZ__FnCalls!F60","v":"Jun 2014"},{"$f":"ZZZ__FnCalls!F61","v":"Jul 2014"},{"$f":"ZZZ__FnCalls!F62","v":"Aug 2014"},{"$f":"ZZZ__FnCalls!F63","v":"Sep 2014"},{"$f":"ZZZ__FnCalls!F64","v":"Oct 2014"},{"$f":"ZZZ__FnCalls!F65","v":"Nov 2014"},{"$f":"ZZZ__FnCalls!F66","v":"Dec 2014"},{"$f":"ZZZ__FnCalls!H55","v":"2014"},{"$f":"ZZZ__FnCalls!F67","v":"Jan 2015"},{"$f":"ZZZ__FnCalls!F68","v":"Feb 2015"},{"$f":"ZZZ__FnCalls!F69","v":"Mar 2015"},{"$f":"ZZZ__FnCalls!F70","v":"Apr 2015"},{"$f":"ZZZ__FnCalls!F71","v":"May 2015"},{"$f":"ZZZ__FnCalls!F72","v":"Jun 2015"},{"$f":"ZZZ__FnCalls!F73","v":"Jul 2015"},{"$f":"ZZZ__FnCalls!F74","v":"Aug 2015"},{"$f":"ZZZ__FnCalls!F75","v":"Sep 2015"},{"$f":"ZZZ__FnCalls!F76","v":"Oct 2015"},{"$f":"ZZZ__FnCalls!F77","v":"Nov 2015"},{"$f":"ZZZ__FnCalls!F78","v":"Dec 2015"},{"$f":"ZZZ__FnCalls!H67","v":"2015"},{"$f":"ZZZ__FnCalls!F79","v":"Jan 2016"},{"$f":"ZZZ__FnCalls!F80","v":"Feb 2016"},{"$f":"ZZZ__FnCalls!F81","v":"Mar 2016"},{"$f":"ZZZ__FnCalls!F82","v":"Apr 2016"},{"$f":"ZZZ__FnCalls!F83","v":"May 2016"},{"$f":"ZZZ__FnCalls!F84","v":"Jun 2016"},{"$f":"ZZZ__FnCalls!F85","v":"Jul 2016"},{"$f":"ZZZ__FnCalls!F86","v":"Aug 2016"},{"$f":"ZZZ__FnCalls!F87","v":"Sep 2016"},{"$f":"ZZZ__FnCalls!F88","v":"Oct 2016"},{"$f":"ZZZ__FnCalls!F89","v":"Nov 2016"},{"$f":"ZZZ__FnCalls!F90","v":"Dec 2016"},{"$f":"ZZZ__FnCalls!H79","v":"2016"},{"$f":"ZZZ__FnCalls!F91","v":"Jan 2017"},{"$f":"ZZZ__FnCalls!F92","v":"Feb 2017"},{"$f":"ZZZ__FnCalls!F93","v":"Mar 2017"},{"$f":"ZZZ__FnCalls!F94","v":"Apr 2017"},{"$f":"ZZZ__FnCalls!F95","v":"May 2017"},{"$f":"ZZZ__FnCalls!F96","v":"Jun 2017"},{"$f":"ZZZ__FnCalls!F97","v":"Jul 2017"},{"$f":"ZZZ__FnCalls!F98","v":"Aug 2017"},{"$f":"ZZZ__FnCalls!F99","v":"Sep 2017"},{"$f":"ZZZ__FnCalls!F100","v":"Oct 2017"},{"$f":"ZZZ__FnCalls!F101","v":"Nov 2017"},{"$f":"ZZZ__FnCalls!F102","v":"Dec 2017"},{"$f":"ZZZ__FnCalls!H91","v":"2017"},{"$f":"ZZZ__FnCalls!F103","v":"Jan 2018"},{"$f":"ZZZ__FnCalls!F104","v":"Feb 2018"},{"$f":"ZZZ__FnCalls!F105","v":"Mar 2018"},{"$f":"ZZZ__FnCalls!F106","v":"Apr 2018"},{"$f":"ZZZ__FnCalls!F107","v":"May 2018"},{"$f":"ZZZ__FnCalls!F108","v":"Jun 2018"},{"$f":"ZZZ__FnCalls!F109","v":"Jul 2018"},{"$f":"ZZZ__FnCalls!F110","v":"Aug 2018"},{"$f":"ZZZ__FnCalls!F111","v":"Sep 2018"},{"$f":"ZZZ__FnCalls!F112","v":"Oct 2018"},{"$f":"ZZZ__FnCalls!F113","v":"Nov 2018"},{"$f":"ZZZ__FnCalls!F114","v":"Dec 2018"},{"$f":"ZZZ__FnCalls!H103","v":"2018"},{"$f":"ZZZ__FnCalls!F115","v":"Jan 2019"},{"$f":"ZZZ__FnCalls!F116","v":"Feb 2019"},{"$f":"ZZZ__FnCalls!F117","v":"Mar 2019"},{"$f":"ZZZ__FnCalls!F118","v":"Apr 2019"},{"$f":"ZZZ__FnCalls!F119","v":"May 2019"},{"$f":"ZZZ__FnCalls!F120","v":"Jun 2019"},{"$f":"ZZZ__FnCalls!F121","v":"Jul 2019"},{"$f":"ZZZ__FnCalls!F122","v":"Aug 2019"},{"$f":"ZZZ__FnCalls!F123","v":"Sep 2019"},{"$f":"ZZZ__FnCalls!F124","v":"Oct 2019"},{"$f":"ZZZ__FnCalls!F125","v":"Nov 2019"},{"$f":"ZZZ__FnCalls!F126","v":"Dec 2019"},{"$f":"ZZZ__FnCalls!H115","v":"2019"},{"$f":"ZZZ__FnCalls!F127","v":"Jan 2020"},{"$f":"ZZZ__FnCalls!F128","v":"Feb 2020"},{"$f":"ZZZ__FnCalls!F129","v":"Mar 2020"},{"$f":"ZZZ__FnCalls!F130","v":"Apr 2020"},{"$f":"ZZZ__FnCalls!F131","v":"May 2020"},{"$f":"ZZZ__FnCalls!F132","v":"Jun 2020"},{"$f":"ZZZ__FnCalls!F133","v":"Jul 2020"},{"$f":"ZZZ__FnCalls!F134","v":"Aug 2020"},{"$f":"ZZZ__FnCalls!F135","v":"Sep 2020"},{"$f":"ZZZ__FnCalls!F136","v":"Oct 2020"},{"$f":"ZZZ__FnCalls!F137","v":"Nov 2020"},{"$f":"ZZZ__FnCalls!F138","v":"Dec 2020"},{"$f":"ZZZ__FnCalls!H127","v":"2020"}]
[null,{"$f":"ZZZ__FnCalls!F7","v":"Jan 2010"},{"$f":"ZZZ__FnCalls!F8","v":"Feb 2010"},{"$f":"ZZZ__FnCalls!F9","v":"Mar 2010"},{"$f":"ZZZ__FnCalls!F10","v":"Apr 2010"},{"$f":"ZZZ__FnCalls!F11","v":"May 2010"},{"$f":"ZZZ__FnCalls!F12","v":"Jun 2010"},{"$f":"ZZZ__FnCalls!F13","v":"Jul 2010"},{"$f":"ZZZ__FnCalls!F14","v":"Aug 2010"},{"$f":"ZZZ__FnCalls!F15","v":"Sep 2010"},{"$f":"ZZZ__FnCalls!F16","v":"Oct 2010"},{"$f":"ZZZ__FnCalls!F17","v":"Nov 2010"},{"$f":"ZZZ__FnCalls!F18","v":"Dec 2010"},{"$f":"ZZZ__FnCalls!F7","v":"Jan 2010"},{"$f":"ZZZ__FnCalls!F19","v":"Jan 2011"},{"$f":"ZZZ__FnCalls!F20","v":"Feb 2011"},{"$f":"ZZZ__FnCalls!F21","v":"Mar 2011"},{"$f":"ZZZ__FnCalls!F22","v":"Apr 2011"},{"$f":"ZZZ__FnCalls!F23","v":"May 2011"},{"$f":"ZZZ__FnCalls!F24","v":"Jun 2011"},{"$f":"ZZZ__FnCalls!F25","v":"Jul 2011"},{"$f":"ZZZ__FnCalls!F26","v":"Aug 2011"},{"$f":"ZZZ__FnCalls!F27","v":"Sep 2011"},{"$f":"ZZZ__FnCalls!F28","v":"Oct 2011"},{"$f":"ZZZ__FnCalls!F29","v":"Nov 2011"},{"$f":"ZZZ__FnCalls!F30","v":"Dec 2011"},{"$f":"ZZZ__FnCalls!F19","v":"Jan 2011"},{"$f":"ZZZ__FnCalls!F31","v":"Jan 2012"},{"$f":"ZZZ__FnCalls!F32","v":"Feb 2012"},{"$f":"ZZZ__FnCalls!F33","v":"Mar 2012"},{"$f":"ZZZ__FnCalls!F34","v":"Apr 2012"},{"$f":"ZZZ__FnCalls!F35","v":"May 2012"},{"$f":"ZZZ__FnCalls!F36","v":"Jun 2012"},{"$f":"ZZZ__FnCalls!F37","v":"Jul 2012"},{"$f":"ZZZ__FnCalls!F38","v":"Aug 2012"},{"$f":"ZZZ__FnCalls!F39","v":"Sep 2012"},{"$f":"ZZZ__FnCalls!F40","v":"Oct 2012"},{"$f":"ZZZ__FnCalls!F41","v":"Nov 2012"},{"$f":"ZZZ__FnCalls!F42","v":"Dec 2012"},{"$f":"ZZZ__FnCalls!F31","v":"Jan 2012"},{"$f":"ZZZ__FnCalls!F43","v":"Jan 2013"},{"$f":"ZZZ__FnCalls!F44","v":"Feb 2013"},{"$f":"ZZZ__FnCalls!F45","v":"Mar 2013"},{"$f":"ZZZ__FnCalls!F46","v":"Apr 2013"},{"$f":"ZZZ__FnCalls!F47","v":"May 2013"},{"$f":"ZZZ__FnCalls!F48","v":"Jun 2013"},{"$f":"ZZZ__FnCalls!F49","v":"Jul 2013"},{"$f":"ZZZ__FnCalls!F50","v":"Aug 2013"},{"$f":"ZZZ__FnCalls!F51","v":"Sep 2013"},{"$f":"ZZZ__FnCalls!F52","v":"Oct 2013"},{"$f":"ZZZ__FnCalls!F53","v":"Nov 2013"},{"$f":"ZZZ__FnCalls!F54","v":"Dec 2013"},{"$f":"ZZZ__FnCalls!F43","v":"Jan 2013"},{"$f":"ZZZ__FnCalls!F55","v":"Jan 2014"},{"$f":"ZZZ__FnCalls!F56","v":"Feb 2014"},{"$f":"ZZZ__FnCalls!F57","v":"Mar 2014"},{"$f":"ZZZ__FnCalls!F58","v":"Apr 2014"},{"$f":"ZZZ__FnCalls!F59","v":"May 2014"},{"$f":"ZZZ__FnCalls!F60","v":"Jun 2014"},{"$f":"ZZZ__FnCalls!F61","v":"Jul 2014"},{"$f":"ZZZ__FnCalls!F62","v":"Aug 2014"},{"$f":"ZZZ__FnCalls!F63","v":"Sep 2014"},{"$f":"ZZZ__FnCalls!F64","v":"Oct 2014"},{"$f":"ZZZ__FnCalls!F65","v":"Nov 2014"},{"$f":"ZZZ__FnCalls!F66","v":"Dec 2014"},{"$f":"ZZZ__FnCalls!F55","v":"Jan 2014"},{"$f":"ZZZ__FnCalls!F67","v":"Jan 2015"},{"$f":"ZZZ__FnCalls!F68","v":"Feb 2015"},{"$f":"ZZZ__FnCalls!F69","v":"Mar 2015"},{"$f":"ZZZ__FnCalls!F70","v":"Apr 2015"},{"$f":"ZZZ__FnCalls!F71","v":"May 2015"},{"$f":"ZZZ__FnCalls!F72","v":"Jun 2015"},{"$f":"ZZZ__FnCalls!F73","v":"Jul 2015"},{"$f":"ZZZ__FnCalls!F74","v":"Aug 2015"},{"$f":"ZZZ__FnCalls!F75","v":"Sep 2015"},{"$f":"ZZZ__FnCalls!F76","v":"Oct 2015"},{"$f":"ZZZ__FnCalls!F77","v":"Nov 2015"},{"$f":"ZZZ__FnCalls!F78","v":"Dec 2015"},{"$f":"ZZZ__FnCalls!F67","v":"Jan 2015"},{"$f":"ZZZ__FnCalls!F79","v":"Jan 2016"},{"$f":"ZZZ__FnCalls!F80","v":"Feb 2016"},{"$f":"ZZZ__FnCalls!F81","v":"Mar 2016"},{"$f":"ZZZ__FnCalls!F82","v":"Apr 2016"},{"$f":"ZZZ__FnCalls!F83","v":"May 2016"},{"$f":"ZZZ__FnCalls!F84","v":"Jun 2016"},{"$f":"ZZZ__FnCalls!F85","v":"Jul 2016"},{"$f":"ZZZ__FnCalls!F86","v":"Aug 2016"},{"$f":"ZZZ__FnCalls!F87","v":"Sep 2016"},{"$f":"ZZZ__FnCalls!F88","v":"Oct 2016"},{"$f":"ZZZ__FnCalls!F89","v":"Nov 2016"},{"$f":"ZZZ__FnCalls!F90","v":"Dec 2016"},{"$f":"ZZZ__FnCalls!F79","v":"Jan 2016"},{"$f":"ZZZ__FnCalls!F91","v":"Jan 2017"},{"$f":"ZZZ__FnCalls!F92","v":"Feb 2017"},{"$f":"ZZZ__FnCalls!F93","v":"Mar 2017"},{"$f":"ZZZ__FnCalls!F94","v":"Apr 2017"},{"$f":"ZZZ__FnCalls!F95","v":"May 2017"},{"$f":"ZZZ__FnCalls!F96","v":"Jun 2017"},{"$f":"ZZZ__FnCalls!F97","v":"Jul 2017"},{"$f":"ZZZ__FnCalls!F98","v":"Aug 2017"},{"$f":"ZZZ__FnCalls!F99","v":"Sep 2017"},{"$f":"ZZZ__FnCalls!F100","v":"Oct 2017"},{"$f":"ZZZ__FnCalls!F101","v":"Nov 2017"},{"$f":"ZZZ__FnCalls!F102","v":"Dec 2017"},{"$f":"ZZZ__FnCalls!F91","v":"Jan 2017"},{"$f":"ZZZ__FnCalls!F103","v":"Jan 2018"},{"$f":"ZZZ__FnCalls!F104","v":"Feb 2018"},{"$f":"ZZZ__FnCalls!F105","v":"Mar 2018"},{"$f":"ZZZ__FnCalls!F106","v":"Apr 2018"},{"$f":"ZZZ__FnCalls!F107","v":"May 2018"},{"$f":"ZZZ__FnCalls!F108","v":"Jun 2018"},{"$f":"ZZZ__FnCalls!F109","v":"Jul 2018"},{"$f":"ZZZ__FnCalls!F110","v":"Aug 2018"},{"$f":"ZZZ__FnCalls!F111","v":"Sep 2018"},{"$f":"ZZZ__FnCalls!F112","v":"Oct 2018"},{"$f":"ZZZ__FnCalls!F113","v":"Nov 2018"},{"$f":"ZZZ__FnCalls!F114","v":"Dec 2018"},{"$f":"ZZZ__FnCalls!F103","v":"Jan 2018"},{"$f":"ZZZ__FnCalls!F115","v":"Jan 2019"},{"$f":"ZZZ__FnCalls!F116","v":"Feb 2019"},{"$f":"ZZZ__FnCalls!F117","v":"Mar 2019"},{"$f":"ZZZ__FnCalls!F118","v":"Apr 2019"},{"$f":"ZZZ__FnCalls!F119","v":"May 2019"},{"$f":"ZZZ__FnCalls!F120","v":"Jun 2019"},{"$f":"ZZZ__FnCalls!F121","v":"Jul 2019"},{"$f":"ZZZ__FnCalls!F122","v":"Aug 2019"},{"$f":"ZZZ__FnCalls!F123","v":"Sep 2019"},{"$f":"ZZZ__FnCalls!F124","v":"Oct 2019"},{"$f":"ZZZ__FnCalls!F125","v":"Nov 2019"},{"$f":"ZZZ__FnCalls!F126","v":"Dec 2019"},{"$f":"ZZZ__FnCalls!F115","v":"Jan 2019"},{"$f":"ZZZ__FnCalls!F127","v":"Jan 2020"},{"$f":"ZZZ__FnCalls!F128","v":"Feb 2020"},{"$f":"ZZZ__FnCalls!F129","v":"Mar 2020"},{"$f":"ZZZ__FnCalls!F130","v":"Apr 2020"},{"$f":"ZZZ__FnCalls!F131","v":"May 2020"},{"$f":"ZZZ__FnCalls!F132","v":"Jun 2020"},{"$f":"ZZZ__FnCalls!F133","v":"Jul 2020"},{"$f":"ZZZ__FnCalls!F134","v":"Aug 2020"},{"$f":"ZZZ__FnCalls!F135","v":"Sep 2020"},{"$f":"ZZZ__FnCalls!F136","v":"Oct 2020"},{"$f":"ZZZ__FnCalls!F137","v":"Nov 2020"},{"$f":"ZZZ__FnCalls!F138","v":"Dec 2020"},{"$f":"ZZZ__FnCalls!F127","v":"Jan 2020"}]
[{"$f":"\"Final_Sales_stdev_1\"","v":"Final_Sales_stdev_1"}]
[null,{"$f":"ZZZ__FnCalls!F7","v":"Jan 2010"},{"$f":"ZZZ__FnCalls!F8","v":"Feb 2010"},{"$f":"ZZZ__FnCalls!F9","v":"Mar 2010"},{"$f":"ZZZ__FnCalls!F10","v":"Apr 2010"},{"$f":"ZZZ__FnCalls!F11","v":"May 2010"},{"$f":"ZZZ__FnCalls!F12","v":"Jun 2010"},{"$f":"ZZZ__FnCalls!F13","v":"Jul 2010"},{"$f":"ZZZ__FnCalls!F14","v":"Aug 2010"},{"$f":"ZZZ__FnCalls!F15","v":"Sep 2010"},{"$f":"ZZZ__FnCalls!F16","v":"Oct 2010"},{"$f":"ZZZ__FnCalls!F17","v":"Nov 2010"},{"$f":"ZZZ__FnCalls!F18","v":"Dec 2010"},{"$f":"ZZZ__FnCalls!H7","v":"2010"},{"$f":"ZZZ__FnCalls!F19","v":"Jan 2011"},{"$f":"ZZZ__FnCalls!F20","v":"Feb 2011"},{"$f":"ZZZ__FnCalls!F21","v":"Mar 2011"},{"$f":"ZZZ__FnCalls!F22","v":"Apr 2011"},{"$f":"ZZZ__FnCalls!F23","v":"May 2011"},{"$f":"ZZZ__FnCalls!F24","v":"Jun 2011"},{"$f":"ZZZ__FnCalls!F25","v":"Jul 2011"},{"$f":"ZZZ__FnCalls!F26","v":"Aug 2011"},{"$f":"ZZZ__FnCalls!F27","v":"Sep 2011"},{"$f":"ZZZ__FnCalls!F28","v":"Oct 2011"},{"$f":"ZZZ__FnCalls!F29","v":"Nov 2011"},{"$f":"ZZZ__FnCalls!F30","v":"Dec 2011"},{"$f":"ZZZ__FnCalls!H19","v":"2011"},{"$f":"ZZZ__FnCalls!F31","v":"Jan 2012"},{"$f":"ZZZ__FnCalls!F32","v":"Feb 2012"},{"$f":"ZZZ__FnCalls!F33","v":"Mar 2012"},{"$f":"ZZZ__FnCalls!F34","v":"Apr 2012"},{"$f":"ZZZ__FnCalls!F35","v":"May 2012"},{"$f":"ZZZ__FnCalls!F36","v":"Jun 2012"},{"$f":"ZZZ__FnCalls!F37","v":"Jul 2012"},{"$f":"ZZZ__FnCalls!F38","v":"Aug 2012"},{"$f":"ZZZ__FnCalls!F39","v":"Sep 2012"},{"$f":"ZZZ__FnCalls!F40","v":"Oct 2012"},{"$f":"ZZZ__FnCalls!F41","v":"Nov 2012"},{"$f":"ZZZ__FnCalls!F42","v":"Dec 2012"},{"$f":"ZZZ__FnCalls!H31","v":"2012"},{"$f":"ZZZ__FnCalls!F43","v":"Jan 2013"},{"$f":"ZZZ__FnCalls!F44","v":"Feb 2013"},{"$f":"ZZZ__FnCalls!F45","v":"Mar 2013"},{"$f":"ZZZ__FnCalls!F46","v":"Apr 2013"},{"$f":"ZZZ__FnCalls!F47","v":"May 2013"},{"$f":"ZZZ__FnCalls!F48","v":"Jun 2013"},{"$f":"ZZZ__FnCalls!F49","v":"Jul 2013"},{"$f":"ZZZ__FnCalls!F50","v":"Aug 2013"},{"$f":"ZZZ__FnCalls!F51","v":"Sep 2013"},{"$f":"ZZZ__FnCalls!F52","v":"Oct 2013"},{"$f":"ZZZ__FnCalls!F53","v":"Nov 2013"},{"$f":"ZZZ__FnCalls!F54","v":"Dec 2013"},{"$f":"ZZZ__FnCalls!H43","v":"2013"},{"$f":"ZZZ__FnCalls!F55","v":"Jan 2014"},{"$f":"ZZZ__FnCalls!F56","v":"Feb 2014"},{"$f":"ZZZ__FnCalls!F57","v":"Mar 2014"},{"$f":"ZZZ__FnCalls!F58","v":"Apr 2014"},{"$f":"ZZZ__FnCalls!F59","v":"May 2014"},{"$f":"ZZZ__FnCalls!F60","v":"Jun 2014"},{"$f":"ZZZ__FnCalls!F61","v":"Jul 2014"},{"$f":"ZZZ__FnCalls!F62","v":"Aug 2014"},{"$f":"ZZZ__FnCalls!F63","v":"Sep 2014"},{"$f":"ZZZ__FnCalls!F64","v":"Oct 2014"},{"$f":"ZZZ__FnCalls!F65","v":"Nov 2014"},{"$f":"ZZZ__FnCalls!F66","v":"Dec 2014"},{"$f":"ZZZ__FnCalls!H55","v":"2014"},{"$f":"ZZZ__FnCalls!F67","v":"Jan 2015"},{"$f":"ZZZ__FnCalls!F68","v":"Feb 2015"},{"$f":"ZZZ__FnCalls!F69","v":"Mar 2015"},{"$f":"ZZZ__FnCalls!F70","v":"Apr 2015"},{"$f":"ZZZ__FnCalls!F71","v":"May 2015"},{"$f":"ZZZ__FnCalls!F72","v":"Jun 2015"},{"$f":"ZZZ__FnCalls!F73","v":"Jul 2015"},{"$f":"ZZZ__FnCalls!F74","v":"Aug 2015"},{"$f":"ZZZ__FnCalls!F75","v":"Sep 2015"},{"$f":"ZZZ__FnCalls!F76","v":"Oct 2015"},{"$f":"ZZZ__FnCalls!F77","v":"Nov 2015"},{"$f":"ZZZ__FnCalls!F78","v":"Dec 2015"},{"$f":"ZZZ__FnCalls!H67","v":"2015"},{"$f":"ZZZ__FnCalls!F79","v":"Jan 2016"},{"$f":"ZZZ__FnCalls!F80","v":"Feb 2016"},{"$f":"ZZZ__FnCalls!F81","v":"Mar 2016"},{"$f":"ZZZ__FnCalls!F82","v":"Apr 2016"},{"$f":"ZZZ__FnCalls!F83","v":"May 2016"},{"$f":"ZZZ__FnCalls!F84","v":"Jun 2016"},{"$f":"ZZZ__FnCalls!F85","v":"Jul 2016"},{"$f":"ZZZ__FnCalls!F86","v":"Aug 2016"},{"$f":"ZZZ__FnCalls!F87","v":"Sep 2016"},{"$f":"ZZZ__FnCalls!F88","v":"Oct 2016"},{"$f":"ZZZ__FnCalls!F89","v":"Nov 2016"},{"$f":"ZZZ__FnCalls!F90","v":"Dec 2016"},{"$f":"ZZZ__FnCalls!H79","v":"2016"},{"$f":"ZZZ__FnCalls!F91","v":"Jan 2017"},{"$f":"ZZZ__FnCalls!F92","v":"Feb 2017"},{"$f":"ZZZ__FnCalls!F93","v":"Mar 2017"},{"$f":"ZZZ__FnCalls!F94","v":"Apr 2017"},{"$f":"ZZZ__FnCalls!F95","v":"May 2017"},{"$f":"ZZZ__FnCalls!F96","v":"Jun 2017"},{"$f":"ZZZ__FnCalls!F97","v":"Jul 2017"},{"$f":"ZZZ__FnCalls!F98","v":"Aug 2017"},{"$f":"ZZZ__FnCalls!F99","v":"Sep 2017"},{"$f":"ZZZ__FnCalls!F100","v":"Oct 2017"},{"$f":"ZZZ__FnCalls!F101","v":"Nov 2017"},{"$f":"ZZZ__FnCalls!F102","v":"Dec 2017"},{"$f":"ZZZ__FnCalls!H91","v":"2017"},{"$f":"ZZZ__FnCalls!F103","v":"Jan 2018"},{"$f":"ZZZ__FnCalls!F104","v":"Feb 2018"},{"$f":"ZZZ__FnCalls!F105","v":"Mar 2018"},{"$f":"ZZZ__FnCalls!F106","v":"Apr 2018"},{"$f":"ZZZ__FnCalls!F107","v":"May 2018"},{"$f":"ZZZ__FnCalls!F108","v":"Jun 2018"},{"$f":"ZZZ__FnCalls!F109","v":"Jul 2018"},{"$f":"ZZZ__FnCalls!F110","v":"Aug 2018"},{"$f":"ZZZ__FnCalls!F111","v":"Sep 2018"},{"$f":"ZZZ__FnCalls!F112","v":"Oct 2018"},{"$f":"ZZZ__FnCalls!F113","v":"Nov 2018"},{"$f":"ZZZ__FnCalls!F114","v":"Dec 2018"},{"$f":"ZZZ__FnCalls!H103","v":"2018"},{"$f":"ZZZ__FnCalls!F115","v":"Jan 2019"},{"$f":"ZZZ__FnCalls!F116","v":"Feb 2019"},{"$f":"ZZZ__FnCalls!F117","v":"Mar 2019"},{"$f":"ZZZ__FnCalls!F118","v":"Apr 2019"},{"$f":"ZZZ__FnCalls!F119","v":"May 2019"},{"$f":"ZZZ__FnCalls!F120","v":"Jun 2019"},{"$f":"ZZZ__FnCalls!F121","v":"Jul 2019"},{"$f":"ZZZ__FnCalls!F122","v":"Aug 2019"},{"$f":"ZZZ__FnCalls!F123","v":"Sep 2019"},{"$f":"ZZZ__FnCalls!F124","v":"Oct 2019"},{"$f":"ZZZ__FnCalls!F125","v":"Nov 2019"},{"$f":"ZZZ__FnCalls!F126","v":"Dec 2019"},{"$f":"ZZZ__FnCalls!H115","v":"2019"},{"$f":"ZZZ__FnCalls!F127","v":"Jan 2020"},{"$f":"ZZZ__FnCalls!F128","v":"Feb 2020"},{"$f":"ZZZ__FnCalls!F129","v":"Mar 2020"},{"$f":"ZZZ__FnCalls!F130","v":"Apr 2020"},{"$f":"ZZZ__FnCalls!F131","v":"May 2020"},{"$f":"ZZZ__FnCalls!F132","v":"Jun 2020"},{"$f":"ZZZ__FnCalls!F133","v":"Jul 2020"},{"$f":"ZZZ__FnCalls!F134","v":"Aug 2020"},{"$f":"ZZZ__FnCalls!F135","v":"Sep 2020"},{"$f":"ZZZ__FnCalls!F136","v":"Oct 2020"},{"$f":"ZZZ__FnCalls!F137","v":"Nov 2020"},{"$f":"ZZZ__FnCalls!F138","v":"Dec 2020"},{"$f":"ZZZ__FnCalls!H127","v":"2020"}]
[null,{"$f":"ZZZ__FnCalls!A7","v":"2010-01-01"},{"$f":"ZZZ__FnCalls!A8","v":"2010-02-01"},{"$f":"ZZZ__FnCalls!A9","v":"2010-03-01"},{"$f":"ZZZ__FnCalls!A10","v":"2010-04-01"},{"$f":"ZZZ__FnCalls!A11","v":"2010-05-01"},{"$f":"ZZZ__FnCalls!A12","v":"2010-06-01"},{"$f":"ZZZ__FnCalls!A13","v":"2010-07-01"},{"$f":"ZZZ__FnCalls!A14","v":"2010-08-01"},{"$f":"ZZZ__FnCalls!A15","v":"2010-09-01"},{"$f":"ZZZ__FnCalls!A16","v":"2010-10-01"},{"$f":"ZZZ__FnCalls!A17","v":"2010-11-01"},{"$f":"ZZZ__FnCalls!A18","v":"2010-12-01"},{"$f":"ZZZ__FnCalls!A7","v":"2010-01-01"},{"$f":"ZZZ__FnCalls!A19","v":"2011-01-01"},{"$f":"ZZZ__FnCalls!A20","v":"2011-02-01"},{"$f":"ZZZ__FnCalls!A21","v":"2011-03-01"},{"$f":"ZZZ__FnCalls!A22","v":"2011-04-01"},{"$f":"ZZZ__FnCalls!A23","v":"2011-05-01"},{"$f":"ZZZ__FnCalls!A24","v":"2011-06-01"},{"$f":"ZZZ__FnCalls!A25","v":"2011-07-01"},{"$f":"ZZZ__FnCalls!A26","v":"2011-08-01"},{"$f":"ZZZ__FnCalls!A27","v":"2011-09-01"},{"$f":"ZZZ__FnCalls!A28","v":"2011-10-01"},{"$f":"ZZZ__FnCalls!A29","v":"2011-11-01"},{"$f":"ZZZ__FnCalls!A30","v":"2011-12-01"},{"$f":"ZZZ__FnCalls!A19","v":"2011-01-01"},{"$f":"ZZZ__FnCalls!A31","v":"2012-01-01"},{"$f":"ZZZ__FnCalls!A32","v":"2012-02-01"},{"$f":"ZZZ__FnCalls!A33","v":"2012-03-01"},{"$f":"ZZZ__FnCalls!A34","v":"2012-04-01"},{"$f":"ZZZ__FnCalls!A35","v":"2012-05-01"},{"$f":"ZZZ__FnCalls!A36","v":"2012-06-01"},{"$f":"ZZZ__FnCalls!A37","v":"2012-07-01"},{"$f":"ZZZ__FnCalls!A38","v":"2012-08-01"},{"$f":"ZZZ__FnCalls!A39","v":"2012-09-01"},{"$f":"ZZZ__FnCalls!A40","v":"2012-10-01"},{"$f":"ZZZ__FnCalls!A41","v":"2012-11-01"},{"$f":"ZZZ__FnCalls!A42","v":"2012-12-01"},{"$f":"ZZZ__FnCalls!A31","v":"2012-01-01"},{"$f":"ZZZ__FnCalls!A43","v":"2013-01-01"},{"$f":"ZZZ__FnCalls!A44","v":"2013-02-01"},{"$f":"ZZZ__FnCalls!A45","v":"2013-03-01"},{"$f":"ZZZ__FnCalls!A46","v":"2013-04-01"},{"$f":"ZZZ__FnCalls!A47","v":"2013-05-01"},{"$f":"ZZZ__FnCalls!A48","v":"2013-06-01"},{"$f":"ZZZ__FnCalls!A49","v":"2013-07-01"},{"$f":"ZZZ__FnCalls!A50","v":"2013-08-01"},{"$f":"ZZZ__FnCalls!A51","v":"2013-09-01"},{"$f":"ZZZ__FnCalls!A52","v":"2013-10-01"},{"$f":"ZZZ__FnCalls!A53","v":"2013-11-01"},{"$f":"ZZZ__FnCalls!A54","v":"2013-12-01"},{"$f":"ZZZ__FnCalls!A43","v":"2013-01-01"},{"$f":"ZZZ__FnCalls!A55","v":"2014-01-01"},{"$f":"ZZZ__FnCalls!A56","v":"2014-02-01"},{"$f":"ZZZ__FnCalls!A57","v":"2014-03-01"},{"$f":"ZZZ__FnCalls!A58","v":"2014-04-01"},{"$f":"ZZZ__FnCalls!A59","v":"2014-05-01"},{"$f":"ZZZ__FnCalls!A60","v":"2014-06-01"},{"$f":"ZZZ__FnCalls!A61","v":"2014-07-01"},{"$f":"ZZZ__FnCalls!A62","v":"2014-08-01"},{"$f":"ZZZ__FnCalls!A63","v":"2014-09-01"},{"$f":"ZZZ__FnCalls!A64","v":"2014-10-01"},{"$f":"ZZZ__FnCalls!A65","v":"2014-11-01"},{"$f":"ZZZ__FnCalls!A66","v":"2014-12-01"},{"$f":"ZZZ__FnCalls!A55","v":"2014-01-01"},{"$f":"ZZZ__FnCalls!A67","v":"2015-01-01"},{"$f":"ZZZ__FnCalls!A68","v":"2015-02-01"},{"$f":"ZZZ__FnCalls!A69","v":"2015-03-01"},{"$f":"ZZZ__FnCalls!A70","v":"2015-04-01"},{"$f":"ZZZ__FnCalls!A71","v":"2015-05-01"},{"$f":"ZZZ__FnCalls!A72","v":"2015-06-01"},{"$f":"ZZZ__FnCalls!A73","v":"2015-07-01"},{"$f":"ZZZ__FnCalls!A74","v":"2015-08-01"},{"$f":"ZZZ__FnCalls!A75","v":"2015-09-01"},{"$f":"ZZZ__FnCalls!A76","v":"2015-10-01"},{"$f":"ZZZ__FnCalls!A77","v":"2015-11-01"},{"$f":"ZZZ__FnCalls!A78","v":"2015-12-01"},{"$f":"ZZZ__FnCalls!A67","v":"2015-01-01"},{"$f":"ZZZ__FnCalls!A79","v":"2016-01-01"},{"$f":"ZZZ__FnCalls!A80","v":"2016-02-01"},{"$f":"ZZZ__FnCalls!A81","v":"2016-03-01"},{"$f":"ZZZ__FnCalls!A82","v":"2016-04-01"},{"$f":"ZZZ__FnCalls!A83","v":"2016-05-01"},{"$f":"ZZZ__FnCalls!A84","v":"2016-06-01"},{"$f":"ZZZ__FnCalls!A85","v":"2016-07-01"},{"$f":"ZZZ__FnCalls!A86","v":"2016-08-01"},{"$f":"ZZZ__FnCalls!A87","v":"2016-09-01"},{"$f":"ZZZ__FnCalls!A88","v":"2016-10-01"},{"$f":"ZZZ__FnCalls!A89","v":"2016-11-01"},{"$f":"ZZZ__FnCalls!A90","v":"2016-12-01"},{"$f":"ZZZ__FnCalls!A79","v":"2016-01-01"},{"$f":"ZZZ__FnCalls!A91","v":"2017-01-01"},{"$f":"ZZZ__FnCalls!A92","v":"2017-02-01"},{"$f":"ZZZ__FnCalls!A93","v":"2017-03-01"},{"$f":"ZZZ__FnCalls!A94","v":"2017-04-01"},{"$f":"ZZZ__FnCalls!A95","v":"2017-05-01"},{"$f":"ZZZ__FnCalls!A96","v":"2017-06-01"},{"$f":"ZZZ__FnCalls!A97","v":"2017-07-01"},{"$f":"ZZZ__FnCalls!A98","v":"2017-08-01"},{"$f":"ZZZ__FnCalls!A99","v":"2017-09-01"},{"$f":"ZZZ__FnCalls!A100","v":"2017-10-01"},{"$f":"ZZZ__FnCalls!A101","v":"2017-11-01"},{"$f":"ZZZ__FnCalls!A102","v":"2017-12-01"},{"$f":"ZZZ__FnCalls!A91","v":"2017-01-01"},{"$f":"ZZZ__FnCalls!A103","v":"2018-01-01"},{"$f":"ZZZ__FnCalls!A104","v":"2018-02-01"},{"$f":"ZZZ__FnCalls!A105","v":"2018-03-01"},{"$f":"ZZZ__FnCalls!A106","v":"2018-04-01"},{"$f":"ZZZ__FnCalls!A107","v":"2018-05-01"},{"$f":"ZZZ__FnCalls!A108","v":"2018-06-01"},{"$f":"ZZZ__FnCalls!A109","v":"2018-07-01"},{"$f":"ZZZ__FnCalls!A110","v":"2018-08-01"},{"$f":"ZZZ__FnCalls!A111","v":"2018-09-01"},{"$f":"ZZZ__FnCalls!A112","v":"2018-10-01"},{"$f":"ZZZ__FnCalls!A113","v":"2018-11-01"},{"$f":"ZZZ__FnCalls!A114","v":"2018-12-01"},{"$f":"ZZZ__FnCalls!A103","v":"2018-01-01"},{"$f":"ZZZ__FnCalls!A115","v":"2019-01-01"},{"$f":"ZZZ__FnCalls!A116","v":"2019-02-01"},{"$f":"ZZZ__FnCalls!A117","v":"2019-03-01"},{"$f":"ZZZ__FnCalls!A118","v":"2019-04-01"},{"$f":"ZZZ__FnCalls!A119","v":"2019-05-01"},{"$f":"ZZZ__FnCalls!A120","v":"2019-06-01"},{"$f":"ZZZ__FnCalls!A121","v":"2019-07-01"},{"$f":"ZZZ__FnCalls!A122","v":"2019-08-01"},{"$f":"ZZZ__FnCalls!A123","v":"2019-09-01"},{"$f":"ZZZ__FnCalls!A124","v":"2019-10-01"},{"$f":"ZZZ__FnCalls!A125","v":"2019-11-01"},{"$f":"ZZZ__FnCalls!A126","v":"2019-12-01"},{"$f":"ZZZ__FnCalls!A115","v":"2019-01-01"},{"$f":"ZZZ__FnCalls!A127","v":"2020-01-01"},{"$f":"ZZZ__FnCalls!A128","v":"2020-02-01"},{"$f":"ZZZ__FnCalls!A129","v":"2020-03-01"},{"$f":"ZZZ__FnCalls!A130","v":"2020-04-01"},{"$f":"ZZZ__FnCalls!A131","v":"2020-05-01"},{"$f":"ZZZ__FnCalls!A132","v":"2020-06-01"},{"$f":"ZZZ__FnCalls!A133","v":"2020-07-01"},{"$f":"ZZZ__FnCalls!A134","v":"2020-08-01"},{"$f":"ZZZ__FnCalls!A135","v":"2020-09-01"},{"$f":"ZZZ__FnCalls!A136","v":"2020-10-01"},{"$f":"ZZZ__FnCalls!A137","v":"2020-11-01"},{"$f":"ZZZ__FnCalls!A138","v":"2020-12-01"},{"$f":"ZZZ__FnCalls!A127","v":"2020-01-01"}]
[{"$f":"\"Final_Sales_stdev_2\"","v":"Final_Sales_stdev_2"}]
[null,{"$f":"ZZZ__FnCalls!F7","v":"Jan 2010"},{"$f":"ZZZ__FnCalls!F8","v":"Feb 2010"},{"$f":"ZZZ__FnCalls!F9","v":"Mar 2010"},{"$f":"ZZZ__FnCalls!F10","v":"Apr 2010"},{"$f":"ZZZ__FnCalls!F11","v":"May 2010"},{"$f":"ZZZ__FnCalls!F12","v":"Jun 2010"},{"$f":"ZZZ__FnCalls!F13","v":"Jul 2010"},{"$f":"ZZZ__FnCalls!F14","v":"Aug 2010"},{"$f":"ZZZ__FnCalls!F15","v":"Sep 2010"},{"$f":"ZZZ__FnCalls!F16","v":"Oct 2010"},{"$f":"ZZZ__FnCalls!F17","v":"Nov 2010"},{"$f":"ZZZ__FnCalls!F18","v":"Dec 2010"},{"$f":"ZZZ__FnCalls!H7","v":"2010"},{"$f":"ZZZ__FnCalls!F19","v":"Jan 2011"},{"$f":"ZZZ__FnCalls!F20","v":"Feb 2011"},{"$f":"ZZZ__FnCalls!F21","v":"Mar 2011"},{"$f":"ZZZ__FnCalls!F22","v":"Apr 2011"},{"$f":"ZZZ__FnCalls!F23","v":"May 2011"},{"$f":"ZZZ__FnCalls!F24","v":"Jun 2011"},{"$f":"ZZZ__FnCalls!F25","v":"Jul 2011"},{"$f":"ZZZ__FnCalls!F26","v":"Aug 2011"},{"$f":"ZZZ__FnCalls!F27","v":"Sep 2011"},{"$f":"ZZZ__FnCalls!F28","v":"Oct 2011"},{"$f":"ZZZ__FnCalls!F29","v":"Nov 2011"},{"$f":"ZZZ__FnCalls!F30","v":"Dec 2011"},{"$f":"ZZZ__FnCalls!H19","v":"2011"},{"$f":"ZZZ__FnCalls!F31","v":"Jan 2012"},{"$f":"ZZZ__FnCalls!F32","v":"Feb 2012"},{"$f":"ZZZ__FnCalls!F33","v":"Mar 2012"},{"$f":"ZZZ__FnCalls!F34","v":"Apr 2012"},{"$f":"ZZZ__FnCalls!F35","v":"May 2012"},{"$f":"ZZZ__FnCalls!F36","v":"Jun 2012"},{"$f":"ZZZ__FnCalls!F37","v":"Jul 2012"},{"$f":"ZZZ__FnCalls!F38","v":"Aug 2012"},{"$f":"ZZZ__FnCalls!F39","v":"Sep 2012"},{"$f":"ZZZ__FnCalls!F40","v":"Oct 2012"},{"$f":"ZZZ__FnCalls!F41","v":"Nov 2012"},{"$f":"ZZZ__FnCalls!F42","v":"Dec 2012"},{"$f":"ZZZ__FnCalls!H31","v":"2012"},{"$f":"ZZZ__FnCalls!F43","v":"Jan 2013"},{"$f":"ZZZ__FnCalls!F44","v":"Feb 2013"},{"$f":"ZZZ__FnCalls!F45","v":"Mar 2013"},{"$f":"ZZZ__FnCalls!F46","v":"Apr 2013"},{"$f":"ZZZ__FnCalls!F47","v":"May 2013"},{"$f":"ZZZ__FnCalls!F48","v":"Jun 2013"},{"$f":"ZZZ__FnCalls!F49","v":"Jul 2013"},{"$f":"ZZZ__FnCalls!F50","v":"Aug 2013"},{"$f":"ZZZ__FnCalls!F51","v":"Sep 2013"},{"$f":"ZZZ__FnCalls!F52","v":"Oct 2013"},{"$f":"ZZZ__FnCalls!F53","v":"Nov 2013"},{"$f":"ZZZ__FnCalls!F54","v":"Dec 2013"},{"$f":"ZZZ__FnCalls!H43","v":"2013"},{"$f":"ZZZ__FnCalls!F55","v":"Jan 2014"},{"$f":"ZZZ__FnCalls!F56","v":"Feb 2014"},{"$f":"ZZZ__FnCalls!F57","v":"Mar 2014"},{"$f":"ZZZ__FnCalls!F58","v":"Apr 2014"},{"$f":"ZZZ__FnCalls!F59","v":"May 2014"},{"$f":"ZZZ__FnCalls!F60","v":"Jun 2014"},{"$f":"ZZZ__FnCalls!F61","v":"Jul 2014"},{"$f":"ZZZ__FnCalls!F62","v":"Aug 2014"},{"$f":"ZZZ__FnCalls!F63","v":"Sep 2014"},{"$f":"ZZZ__FnCalls!F64","v":"Oct 2014"},{"$f":"ZZZ__FnCalls!F65","v":"Nov 2014"},{"$f":"ZZZ__FnCalls!F66","v":"Dec 2014"},{"$f":"ZZZ__FnCalls!H55","v":"2014"},{"$f":"ZZZ__FnCalls!F67","v":"Jan 2015"},{"$f":"ZZZ__FnCalls!F68","v":"Feb 2015"},{"$f":"ZZZ__FnCalls!F69","v":"Mar 2015"},{"$f":"ZZZ__FnCalls!F70","v":"Apr 2015"},{"$f":"ZZZ__FnCalls!F71","v":"May 2015"},{"$f":"ZZZ__FnCalls!F72","v":"Jun 2015"},{"$f":"ZZZ__FnCalls!F73","v":"Jul 2015"},{"$f":"ZZZ__FnCalls!F74","v":"Aug 2015"},{"$f":"ZZZ__FnCalls!F75","v":"Sep 2015"},{"$f":"ZZZ__FnCalls!F76","v":"Oct 2015"},{"$f":"ZZZ__FnCalls!F77","v":"Nov 2015"},{"$f":"ZZZ__FnCalls!F78","v":"Dec 2015"},{"$f":"ZZZ__FnCalls!H67","v":"2015"},{"$f":"ZZZ__FnCalls!F79","v":"Jan 2016"},{"$f":"ZZZ__FnCalls!F80","v":"Feb 2016"},{"$f":"ZZZ__FnCalls!F81","v":"Mar 2016"},{"$f":"ZZZ__FnCalls!F82","v":"Apr 2016"},{"$f":"ZZZ__FnCalls!F83","v":"May 2016"},{"$f":"ZZZ__FnCalls!F84","v":"Jun 2016"},{"$f":"ZZZ__FnCalls!F85","v":"Jul 2016"},{"$f":"ZZZ__FnCalls!F86","v":"Aug 2016"},{"$f":"ZZZ__FnCalls!F87","v":"Sep 2016"},{"$f":"ZZZ__FnCalls!F88","v":"Oct 2016"},{"$f":"ZZZ__FnCalls!F89","v":"Nov 2016"},{"$f":"ZZZ__FnCalls!F90","v":"Dec 2016"},{"$f":"ZZZ__FnCalls!H79","v":"2016"},{"$f":"ZZZ__FnCalls!F91","v":"Jan 2017"},{"$f":"ZZZ__FnCalls!F92","v":"Feb 2017"},{"$f":"ZZZ__FnCalls!F93","v":"Mar 2017"},{"$f":"ZZZ__FnCalls!F94","v":"Apr 2017"},{"$f":"ZZZ__FnCalls!F95","v":"May 2017"},{"$f":"ZZZ__FnCalls!F96","v":"Jun 2017"},{"$f":"ZZZ__FnCalls!F97","v":"Jul 2017"},{"$f":"ZZZ__FnCalls!F98","v":"Aug 2017"},{"$f":"ZZZ__FnCalls!F99","v":"Sep 2017"},{"$f":"ZZZ__FnCalls!F100","v":"Oct 2017"},{"$f":"ZZZ__FnCalls!F101","v":"Nov 2017"},{"$f":"ZZZ__FnCalls!F102","v":"Dec 2017"},{"$f":"ZZZ__FnCalls!H91","v":"2017"},{"$f":"ZZZ__FnCalls!F103","v":"Jan 2018"},{"$f":"ZZZ__FnCalls!F104","v":"Feb 2018"},{"$f":"ZZZ__FnCalls!F105","v":"Mar 2018"},{"$f":"ZZZ__FnCalls!F106","v":"Apr 2018"},{"$f":"ZZZ__FnCalls!F107","v":"May 2018"},{"$f":"ZZZ__FnCalls!F108","v":"Jun 2018"},{"$f":"ZZZ__FnCalls!F109","v":"Jul 2018"},{"$f":"ZZZ__FnCalls!F110","v":"Aug 2018"},{"$f":"ZZZ__FnCalls!F111","v":"Sep 2018"},{"$f":"ZZZ__FnCalls!F112","v":"Oct 2018"},{"$f":"ZZZ__FnCalls!F113","v":"Nov 2018"},{"$f":"ZZZ__FnCalls!F114","v":"Dec 2018"},{"$f":"ZZZ__FnCalls!H103","v":"2018"},{"$f":"ZZZ__FnCalls!F115","v":"Jan 2019"},{"$f":"ZZZ__FnCalls!F116","v":"Feb 2019"},{"$f":"ZZZ__FnCalls!F117","v":"Mar 2019"},{"$f":"ZZZ__FnCalls!F118","v":"Apr 2019"},{"$f":"ZZZ__FnCalls!F119","v":"May 2019"},{"$f":"ZZZ__FnCalls!F120","v":"Jun 2019"},{"$f":"ZZZ__FnCalls!F121","v":"Jul 2019"},{"$f":"ZZZ__FnCalls!F122","v":"Aug 2019"},{"$f":"ZZZ__FnCalls!F123","v":"Sep 2019"},{"$f":"ZZZ__FnCalls!F124","v":"Oct 2019"},{"$f":"ZZZ__FnCalls!F125","v":"Nov 2019"},{"$f":"ZZZ__FnCalls!F126","v":"Dec 2019"},{"$f":"ZZZ__FnCalls!H115","v":"2019"},{"$f":"ZZZ__FnCalls!F127","v":"Jan 2020"},{"$f":"ZZZ__FnCalls!F128","v":"Feb 2020"},{"$f":"ZZZ__FnCalls!F129","v":"Mar 2020"},{"$f":"ZZZ__FnCalls!F130","v":"Apr 2020"},{"$f":"ZZZ__FnCalls!F131","v":"May 2020"},{"$f":"ZZZ__FnCalls!F132","v":"Jun 2020"},{"$f":"ZZZ__FnCalls!F133","v":"Jul 2020"},{"$f":"ZZZ__FnCalls!F134","v":"Aug 2020"},{"$f":"ZZZ__FnCalls!F135","v":"Sep 2020"},{"$f":"ZZZ__FnCalls!F136","v":"Oct 2020"},{"$f":"ZZZ__FnCalls!F137","v":"Nov 2020"},{"$f":"ZZZ__FnCalls!F138","v":"Dec 2020"},{"$f":"ZZZ__FnCalls!H127","v":"2020"}]
[null,{"$f":"ZZZ__FnCalls!F7","v":"Jan 2010"},{"$f":"ZZZ__FnCalls!F8","v":"Feb 2010"},{"$f":"ZZZ__FnCalls!F9","v":"Mar 2010"},{"$f":"ZZZ__FnCalls!F10","v":"Apr 2010"},{"$f":"ZZZ__FnCalls!F11","v":"May 2010"},{"$f":"ZZZ__FnCalls!F12","v":"Jun 2010"},{"$f":"ZZZ__FnCalls!F13","v":"Jul 2010"},{"$f":"ZZZ__FnCalls!F14","v":"Aug 2010"},{"$f":"ZZZ__FnCalls!F15","v":"Sep 2010"},{"$f":"ZZZ__FnCalls!F16","v":"Oct 2010"},{"$f":"ZZZ__FnCalls!F17","v":"Nov 2010"},{"$f":"ZZZ__FnCalls!F18","v":"Dec 2010"},{"$f":"ZZZ__FnCalls!F7","v":"Jan 2010"},{"$f":"ZZZ__FnCalls!F19","v":"Jan 2011"},{"$f":"ZZZ__FnCalls!F20","v":"Feb 2011"},{"$f":"ZZZ__FnCalls!F21","v":"Mar 2011"},{"$f":"ZZZ__FnCalls!F22","v":"Apr 2011"},{"$f":"ZZZ__FnCalls!F23","v":"May 2011"},{"$f":"ZZZ__FnCalls!F24","v":"Jun 2011"},{"$f":"ZZZ__FnCalls!F25","v":"Jul 2011"},{"$f":"ZZZ__FnCalls!F26","v":"Aug 2011"},{"$f":"ZZZ__FnCalls!F27","v":"Sep 2011"},{"$f":"ZZZ__FnCalls!F28","v":"Oct 2011"},{"$f":"ZZZ__FnCalls!F29","v":"Nov 2011"},{"$f":"ZZZ__FnCalls!F30","v":"Dec 2011"},{"$f":"ZZZ__FnCalls!F19","v":"Jan 2011"},{"$f":"ZZZ__FnCalls!F31","v":"Jan 2012"},{"$f":"ZZZ__FnCalls!F32","v":"Feb 2012"},{"$f":"ZZZ__FnCalls!F33","v":"Mar 2012"},{"$f":"ZZZ__FnCalls!F34","v":"Apr 2012"},{"$f":"ZZZ__FnCalls!F35","v":"May 2012"},{"$f":"ZZZ__FnCalls!F36","v":"Jun 2012"},{"$f":"ZZZ__FnCalls!F37","v":"Jul 2012"},{"$f":"ZZZ__FnCalls!F38","v":"Aug 2012"},{"$f":"ZZZ__FnCalls!F39","v":"Sep 2012"},{"$f":"ZZZ__FnCalls!F40","v":"Oct 2012"},{"$f":"ZZZ__FnCalls!F41","v":"Nov 2012"},{"$f":"ZZZ__FnCalls!F42","v":"Dec 2012"},{"$f":"ZZZ__FnCalls!F31","v":"Jan 2012"},{"$f":"ZZZ__FnCalls!F43","v":"Jan 2013"},{"$f":"ZZZ__FnCalls!F44","v":"Feb 2013"},{"$f":"ZZZ__FnCalls!F45","v":"Mar 2013"},{"$f":"ZZZ__FnCalls!F46","v":"Apr 2013"},{"$f":"ZZZ__FnCalls!F47","v":"May 2013"},{"$f":"ZZZ__FnCalls!F48","v":"Jun 2013"},{"$f":"ZZZ__FnCalls!F49","v":"Jul 2013"},{"$f":"ZZZ__FnCalls!F50","v":"Aug 2013"},{"$f":"ZZZ__FnCalls!F51","v":"Sep 2013"},{"$f":"ZZZ__FnCalls!F52","v":"Oct 2013"},{"$f":"ZZZ__FnCalls!F53","v":"Nov 2013"},{"$f":"ZZZ__FnCalls!F54","v":"Dec 2013"},{"$f":"ZZZ__FnCalls!F43","v":"Jan 2013"},{"$f":"ZZZ__FnCalls!F55","v":"Jan 2014"},{"$f":"ZZZ__FnCalls!F56","v":"Feb 2014"},{"$f":"ZZZ__FnCalls!F57","v":"Mar 2014"},{"$f":"ZZZ__FnCalls!F58","v":"Apr 2014"},{"$f":"ZZZ__FnCalls!F59","v":"May 2014"},{"$f":"ZZZ__FnCalls!F60","v":"Jun 2014"},{"$f":"ZZZ__FnCalls!F61","v":"Jul 2014"},{"$f":"ZZZ__FnCalls!F62","v":"Aug 2014"},{"$f":"ZZZ__FnCalls!F63","v":"Sep 2014"},{"$f":"ZZZ__FnCalls!F64","v":"Oct 2014"},{"$f":"ZZZ__FnCalls!F65","v":"Nov 2014"},{"$f":"ZZZ__FnCalls!F66","v":"Dec 2014"},{"$f":"ZZZ__FnCalls!F55","v":"Jan 2014"},{"$f":"ZZZ__FnCalls!F67","v":"Jan 2015"},{"$f":"ZZZ__FnCalls!F68","v":"Feb 2015"},{"$f":"ZZZ__FnCalls!F69","v":"Mar 2015"},{"$f":"ZZZ__FnCalls!F70","v":"Apr 2015"},{"$f":"ZZZ__FnCalls!F71","v":"May 2015"},{"$f":"ZZZ__FnCalls!F72","v":"Jun 2015"},{"$f":"ZZZ__FnCalls!F73","v":"Jul 2015"},{"$f":"ZZZ__FnCalls!F74","v":"Aug 2015"},{"$f":"ZZZ__FnCalls!F75","v":"Sep 2015"},{"$f":"ZZZ__FnCalls!F76","v":"Oct 2015"},{"$f":"ZZZ__FnCalls!F77","v":"Nov 2015"},{"$f":"ZZZ__FnCalls!F78","v":"Dec 2015"},{"$f":"ZZZ__FnCalls!F67","v":"Jan 2015"},{"$f":"ZZZ__FnCalls!F79","v":"Jan 2016"},{"$f":"ZZZ__FnCalls!F80","v":"Feb 2016"},{"$f":"ZZZ__FnCalls!F81","v":"Mar 2016"},{"$f":"ZZZ__FnCalls!F82","v":"Apr 2016"},{"$f":"ZZZ__FnCalls!F83","v":"May 2016"},{"$f":"ZZZ__FnCalls!F84","v":"Jun 2016"},{"$f":"ZZZ__FnCalls!F85","v":"Jul 2016"},{"$f":"ZZZ__FnCalls!F86","v":"Aug 2016"},{"$f":"ZZZ__FnCalls!F87","v":"Sep 2016"},{"$f":"ZZZ__FnCalls!F88","v":"Oct 2016"},{"$f":"ZZZ__FnCalls!F89","v":"Nov 2016"},{"$f":"ZZZ__FnCalls!F90","v":"Dec 2016"},{"$f":"ZZZ__FnCalls!F79","v":"Jan 2016"},{"$f":"ZZZ__FnCalls!F91","v":"Jan 2017"},{"$f":"ZZZ__FnCalls!F92","v":"Feb 2017"},{"$f":"ZZZ__FnCalls!F93","v":"Mar 2017"},{"$f":"ZZZ__FnCalls!F94","v":"Apr 2017"},{"$f":"ZZZ__FnCalls!F95","v":"May 2017"},{"$f":"ZZZ__FnCalls!F96","v":"Jun 2017"},{"$f":"ZZZ__FnCalls!F97","v":"Jul 2017"},{"$f":"ZZZ__FnCalls!F98","v":"Aug 2017"},{"$f":"ZZZ__FnCalls!F99","v":"Sep 2017"},{"$f":"ZZZ__FnCalls!F100","v":"Oct 2017"},{"$f":"ZZZ__FnCalls!F101","v":"Nov 2017"},{"$f":"ZZZ__FnCalls!F102","v":"Dec 2017"},{"$f":"ZZZ__FnCalls!F91","v":"Jan 2017"},{"$f":"ZZZ__FnCalls!F103","v":"Jan 2018"},{"$f":"ZZZ__FnCalls!F104","v":"Feb 2018"},{"$f":"ZZZ__FnCalls!F105","v":"Mar 2018"},{"$f":"ZZZ__FnCalls!F106","v":"Apr 2018"},{"$f":"ZZZ__FnCalls!F107","v":"May 2018"},{"$f":"ZZZ__FnCalls!F108","v":"Jun 2018"},{"$f":"ZZZ__FnCalls!F109","v":"Jul 2018"},{"$f":"ZZZ__FnCalls!F110","v":"Aug 2018"},{"$f":"ZZZ__FnCalls!F111","v":"Sep 2018"},{"$f":"ZZZ__FnCalls!F112","v":"Oct 2018"},{"$f":"ZZZ__FnCalls!F113","v":"Nov 2018"},{"$f":"ZZZ__FnCalls!F114","v":"Dec 2018"},{"$f":"ZZZ__FnCalls!F103","v":"Jan 2018"},{"$f":"ZZZ__FnCalls!F115","v":"Jan 2019"},{"$f":"ZZZ__FnCalls!F116","v":"Feb 2019"},{"$f":"ZZZ__FnCalls!F117","v":"Mar 2019"},{"$f":"ZZZ__FnCalls!F118","v":"Apr 2019"},{"$f":"ZZZ__FnCalls!F119","v":"May 2019"},{"$f":"ZZZ__FnCalls!F120","v":"Jun 2019"},{"$f":"ZZZ__FnCalls!F121","v":"Jul 2019"},{"$f":"ZZZ__FnCalls!F122","v":"Aug 2019"},{"$f":"ZZZ__FnCalls!F123","v":"Sep 2019"},{"$f":"ZZZ__FnCalls!F124","v":"Oct 2019"},{"$f":"ZZZ__FnCalls!F125","v":"Nov 2019"},{"$f":"ZZZ__FnCalls!F126","v":"Dec 2019"},{"$f":"ZZZ__FnCalls!F115","v":"Jan 2019"},{"$f":"ZZZ__FnCalls!F127","v":"Jan 2020"},{"$f":"ZZZ__FnCalls!F128","v":"Feb 2020"},{"$f":"ZZZ__FnCalls!F129","v":"Mar 2020"},{"$f":"ZZZ__FnCalls!F130","v":"Apr 2020"},{"$f":"ZZZ__FnCalls!F131","v":"May 2020"},{"$f":"ZZZ__FnCalls!F132","v":"Jun 2020"},{"$f":"ZZZ__FnCalls!F133","v":"Jul 2020"},{"$f":"ZZZ__FnCalls!F134","v":"Aug 2020"},{"$f":"ZZZ__FnCalls!F135","v":"Sep 2020"},{"$f":"ZZZ__FnCalls!F136","v":"Oct 2020"},{"$f":"ZZZ__FnCalls!F137","v":"Nov 2020"},{"$f":"ZZZ__FnCalls!F138","v":"Dec 2020"},{"$f":"ZZZ__FnCalls!F127","v":"Jan 2020"}]
[{"$f":"\"Income_Permanent_mean_1\"","v":"Income_Permanent_mean_1"}]
[null,{"$f":"ZZZ__FnCalls!F7","v":"Jan 2010"},{"$f":"ZZZ__FnCalls!F8","v":"Feb 2010"},{"$f":"ZZZ__FnCalls!F9","v":"Mar 2010"},{"$f":"ZZZ__FnCalls!F10","v":"Apr 2010"},{"$f":"ZZZ__FnCalls!F11","v":"May 2010"},{"$f":"ZZZ__FnCalls!F12","v":"Jun 2010"},{"$f":"ZZZ__FnCalls!F13","v":"Jul 2010"},{"$f":"ZZZ__FnCalls!F14","v":"Aug 2010"},{"$f":"ZZZ__FnCalls!F15","v":"Sep 2010"},{"$f":"ZZZ__FnCalls!F16","v":"Oct 2010"},{"$f":"ZZZ__FnCalls!F17","v":"Nov 2010"},{"$f":"ZZZ__FnCalls!F18","v":"Dec 2010"},{"$f":"ZZZ__FnCalls!H7","v":"2010"},{"$f":"ZZZ__FnCalls!F19","v":"Jan 2011"},{"$f":"ZZZ__FnCalls!F20","v":"Feb 2011"},{"$f":"ZZZ__FnCalls!F21","v":"Mar 2011"},{"$f":"ZZZ__FnCalls!F22","v":"Apr 2011"},{"$f":"ZZZ__FnCalls!F23","v":"May 2011"},{"$f":"ZZZ__FnCalls!F24","v":"Jun 2011"},{"$f":"ZZZ__FnCalls!F25","v":"Jul 2011"},{"$f":"ZZZ__FnCalls!F26","v":"Aug 2011"},{"$f":"ZZZ__FnCalls!F27","v":"Sep 2011"},{"$f":"ZZZ__FnCalls!F28","v":"Oct 2011"},{"$f":"ZZZ__FnCalls!F29","v":"Nov 2011"},{"$f":"ZZZ__FnCalls!F30","v":"Dec 2011"},{"$f":"ZZZ__FnCalls!H19","v":"2011"},{"$f":"ZZZ__FnCalls!F31","v":"Jan 2012"},{"$f":"ZZZ__FnCalls!F32","v":"Feb 2012"},{"$f":"ZZZ__FnCalls!F33","v":"Mar 2012"},{"$f":"ZZZ__FnCalls!F34","v":"Apr 2012"},{"$f":"ZZZ__FnCalls!F35","v":"May 2012"},{"$f":"ZZZ__FnCalls!F36","v":"Jun 2012"},{"$f":"ZZZ__FnCalls!F37","v":"Jul 2012"},{"$f":"ZZZ__FnCalls!F38","v":"Aug 2012"},{"$f":"ZZZ__FnCalls!F39","v":"Sep 2012"},{"$f":"ZZZ__FnCalls!F40","v":"Oct 2012"},{"$f":"ZZZ__FnCalls!F41","v":"Nov 2012"},{"$f":"ZZZ__FnCalls!F42","v":"Dec 2012"},{"$f":"ZZZ__FnCalls!H31","v":"2012"},{"$f":"ZZZ__FnCalls!F43","v":"Jan 2013"},{"$f":"ZZZ__FnCalls!F44","v":"Feb 2013"},{"$f":"ZZZ__FnCalls!F45","v":"Mar 2013"},{"$f":"ZZZ__FnCalls!F46","v":"Apr 2013"},{"$f":"ZZZ__FnCalls!F47","v":"May 2013"},{"$f":"ZZZ__FnCalls!F48","v":"Jun 2013"},{"$f":"ZZZ__FnCalls!F49","v":"Jul 2013"},{"$f":"ZZZ__FnCalls!F50","v":"Aug 2013"},{"$f":"ZZZ__FnCalls!F51","v":"Sep 2013"},{"$f":"ZZZ__FnCalls!F52","v":"Oct 2013"},{"$f":"ZZZ__FnCalls!F53","v":"Nov 2013"},{"$f":"ZZZ__FnCalls!F54","v":"Dec 2013"},{"$f":"ZZZ__FnCalls!H43","v":"2013"},{"$f":"ZZZ__FnCalls!F55","v":"Jan 2014"},{"$f":"ZZZ__FnCalls!F56","v":"Feb 2014"},{"$f":"ZZZ__FnCalls!F57","v":"Mar 2014"},{"$f":"ZZZ__FnCalls!F58","v":"Apr 2014"},{"$f":"ZZZ__FnCalls!F59","v":"May 2014"},{"$f":"ZZZ__FnCalls!F60","v":"Jun 2014"},{"$f":"ZZZ__FnCalls!F61","v":"Jul 2014"},{"$f":"ZZZ__FnCalls!F62","v":"Aug 2014"},{"$f":"ZZZ__FnCalls!F63","v":"Sep 2014"},{"$f":"ZZZ__FnCalls!F64","v":"Oct 2014"},{"$f":"ZZZ__FnCalls!F65","v":"Nov 2014"},{"$f":"ZZZ__FnCalls!F66","v":"Dec 2014"},{"$f":"ZZZ__FnCalls!H55","v":"2014"},{"$f":"ZZZ__FnCalls!F67","v":"Jan 2015"},{"$f":"ZZZ__FnCalls!F68","v":"Feb 2015"},{"$f":"ZZZ__FnCalls!F69","v":"Mar 2015"},{"$f":"ZZZ__FnCalls!F70","v":"Apr 2015"},{"$f":"ZZZ__FnCalls!F71","v":"May 2015"},{"$f":"ZZZ__FnCalls!F72","v":"Jun 2015"},{"$f":"ZZZ__FnCalls!F73","v":"Jul 2015"},{"$f":"ZZZ__FnCalls!F74","v":"Aug 2015"},{"$f":"ZZZ__FnCalls!F75","v":"Sep 2015"},{"$f":"ZZZ__FnCalls!F76","v":"Oct 2015"},{"$f":"ZZZ__FnCalls!F77","v":"Nov 2015"},{"$f":"ZZZ__FnCalls!F78","v":"Dec 2015"},{"$f":"ZZZ__FnCalls!H67","v":"2015"},{"$f":"ZZZ__FnCalls!F79","v":"Jan 2016"},{"$f":"ZZZ__FnCalls!F80","v":"Feb 2016"},{"$f":"ZZZ__FnCalls!F81","v":"Mar 2016"},{"$f":"ZZZ__FnCalls!F82","v":"Apr 2016"},{"$f":"ZZZ__FnCalls!F83","v":"May 2016"},{"$f":"ZZZ__FnCalls!F84","v":"Jun 2016"},{"$f":"ZZZ__FnCalls!F85","v":"Jul 2016"},{"$f":"ZZZ__FnCalls!F86","v":"Aug 2016"},{"$f":"ZZZ__FnCalls!F87","v":"Sep 2016"},{"$f":"ZZZ__FnCalls!F88","v":"Oct 2016"},{"$f":"ZZZ__FnCalls!F89","v":"Nov 2016"},{"$f":"ZZZ__FnCalls!F90","v":"Dec 2016"},{"$f":"ZZZ__FnCalls!H79","v":"2016"},{"$f":"ZZZ__FnCalls!F91","v":"Jan 2017"},{"$f":"ZZZ__FnCalls!F92","v":"Feb 2017"},{"$f":"ZZZ__FnCalls!F93","v":"Mar 2017"},{"$f":"ZZZ__FnCalls!F94","v":"Apr 2017"},{"$f":"ZZZ__FnCalls!F95","v":"May 2017"},{"$f":"ZZZ__FnCalls!F96","v":"Jun 2017"},{"$f":"ZZZ__FnCalls!F97","v":"Jul 2017"},{"$f":"ZZZ__FnCalls!F98","v":"Aug 2017"},{"$f":"ZZZ__FnCalls!F99","v":"Sep 2017"},{"$f":"ZZZ__FnCalls!F100","v":"Oct 2017"},{"$f":"ZZZ__FnCalls!F101","v":"Nov 2017"},{"$f":"ZZZ__FnCalls!F102","v":"Dec 2017"},{"$f":"ZZZ__FnCalls!H91","v":"2017"},{"$f":"ZZZ__FnCalls!F103","v":"Jan 2018"},{"$f":"ZZZ__FnCalls!F104","v":"Feb 2018"},{"$f":"ZZZ__FnCalls!F105","v":"Mar 2018"},{"$f":"ZZZ__FnCalls!F106","v":"Apr 2018"},{"$f":"ZZZ__FnCalls!F107","v":"May 2018"},{"$f":"ZZZ__FnCalls!F108","v":"Jun 2018"},{"$f":"ZZZ__FnCalls!F109","v":"Jul 2018"},{"$f":"ZZZ__FnCalls!F110","v":"Aug 2018"},{"$f":"ZZZ__FnCalls!F111","v":"Sep 2018"},{"$f":"ZZZ__FnCalls!F112","v":"Oct 2018"},{"$f":"ZZZ__FnCalls!F113","v":"Nov 2018"},{"$f":"ZZZ__FnCalls!F114","v":"Dec 2018"},{"$f":"ZZZ__FnCalls!H103","v":"2018"},{"$f":"ZZZ__FnCalls!F115","v":"Jan 2019"},{"$f":"ZZZ__FnCalls!F116","v":"Feb 2019"},{"$f":"ZZZ__FnCalls!F117","v":"Mar 2019"},{"$f":"ZZZ__FnCalls!F118","v":"Apr 2019"},{"$f":"ZZZ__FnCalls!F119","v":"May 2019"},{"$f":"ZZZ__FnCalls!F120","v":"Jun 2019"},{"$f":"ZZZ__FnCalls!F121","v":"Jul 2019"},{"$f":"ZZZ__FnCalls!F122","v":"Aug 2019"},{"$f":"ZZZ__FnCalls!F123","v":"Sep 2019"},{"$f":"ZZZ__FnCalls!F124","v":"Oct 2019"},{"$f":"ZZZ__FnCalls!F125","v":"Nov 2019"},{"$f":"ZZZ__FnCalls!F126","v":"Dec 2019"},{"$f":"ZZZ__FnCalls!H115","v":"2019"},{"$f":"ZZZ__FnCalls!F127","v":"Jan 2020"},{"$f":"ZZZ__FnCalls!F128","v":"Feb 2020"},{"$f":"ZZZ__FnCalls!F129","v":"Mar 2020"},{"$f":"ZZZ__FnCalls!F130","v":"Apr 2020"},{"$f":"ZZZ__FnCalls!F131","v":"May 2020"},{"$f":"ZZZ__FnCalls!F132","v":"Jun 2020"},{"$f":"ZZZ__FnCalls!F133","v":"Jul 2020"},{"$f":"ZZZ__FnCalls!F134","v":"Aug 2020"},{"$f":"ZZZ__FnCalls!F135","v":"Sep 2020"},{"$f":"ZZZ__FnCalls!F136","v":"Oct 2020"},{"$f":"ZZZ__FnCalls!F137","v":"Nov 2020"},{"$f":"ZZZ__FnCalls!F138","v":"Dec 2020"},{"$f":"ZZZ__FnCalls!H127","v":"2020"}]
[null,{"$f":"ZZZ__FnCalls!A7","v":"2010-01-01"},{"$f":"ZZZ__FnCalls!A8","v":"2010-02-01"},{"$f":"ZZZ__FnCalls!A9","v":"2010-03-01"},{"$f":"ZZZ__FnCalls!A10","v":"2010-04-01"},{"$f":"ZZZ__FnCalls!A11","v":"2010-05-01"},{"$f":"ZZZ__FnCalls!A12","v":"2010-06-01"},{"$f":"ZZZ__FnCalls!A13","v":"2010-07-01"},{"$f":"ZZZ__FnCalls!A14","v":"2010-08-01"},{"$f":"ZZZ__FnCalls!A15","v":"2010-09-01"},{"$f":"ZZZ__FnCalls!A16","v":"2010-10-01"},{"$f":"ZZZ__FnCalls!A17","v":"2010-11-01"},{"$f":"ZZZ__FnCalls!A18","v":"2010-12-01"},{"$f":"ZZZ__FnCalls!A7","v":"2010-01-01"},{"$f":"ZZZ__FnCalls!A19","v":"2011-01-01"},{"$f":"ZZZ__FnCalls!A20","v":"2011-02-01"},{"$f":"ZZZ__FnCalls!A21","v":"2011-03-01"},{"$f":"ZZZ__FnCalls!A22","v":"2011-04-01"},{"$f":"ZZZ__FnCalls!A23","v":"2011-05-01"},{"$f":"ZZZ__FnCalls!A24","v":"2011-06-01"},{"$f":"ZZZ__FnCalls!A25","v":"2011-07-01"},{"$f":"ZZZ__FnCalls!A26","v":"2011-08-01"},{"$f":"ZZZ__FnCalls!A27","v":"2011-09-01"},{"$f":"ZZZ__FnCalls!A28","v":"2011-10-01"},{"$f":"ZZZ__FnCalls!A29","v":"2011-11-01"},{"$f":"ZZZ__FnCalls!A30","v":"2011-12-01"},{"$f":"ZZZ__FnCalls!A19","v":"2011-01-01"},{"$f":"ZZZ__FnCalls!A31","v":"2012-01-01"},{"$f":"ZZZ__FnCalls!A32","v":"2012-02-01"},{"$f":"ZZZ__FnCalls!A33","v":"2012-03-01"},{"$f":"ZZZ__FnCalls!A34","v":"2012-04-01"},{"$f":"ZZZ__FnCalls!A35","v":"2012-05-01"},{"$f":"ZZZ__FnCalls!A36","v":"2012-06-01"},{"$f":"ZZZ__FnCalls!A37","v":"2012-07-01"},{"$f":"ZZZ__FnCalls!A38","v":"2012-08-01"},{"$f":"ZZZ__FnCalls!A39","v":"2012-09-01"},{"$f":"ZZZ__FnCalls!A40","v":"2012-10-01"},{"$f":"ZZZ__FnCalls!A41","v":"2012-11-01"},{"$f":"ZZZ__FnCalls!A42","v":"2012-12-01"},{"$f":"ZZZ__FnCalls!A31","v":"2012-01-01"},{"$f":"ZZZ__FnCalls!A43","v":"2013-01-01"},{"$f":"ZZZ__FnCalls!A44","v":"2013-02-01"},{"$f":"ZZZ__FnCalls!A45","v":"2013-03-01"},{"$f":"ZZZ__FnCalls!A46","v":"2013-04-01"},{"$f":"ZZZ__FnCalls!A47","v":"2013-05-01"},{"$f":"ZZZ__FnCalls!A48","v":"2013-06-01"},{"$f":"ZZZ__FnCalls!A49","v":"2013-07-01"},{"$f":"ZZZ__FnCalls!A50","v":"2013-08-01"},{"$f":"ZZZ__FnCalls!A51","v":"2013-09-01"},{"$f":"ZZZ__FnCalls!A52","v":"2013-10-01"},{"$f":"ZZZ__FnCalls!A53","v":"2013-11-01"},{"$f":"ZZZ__FnCalls!A54","v":"2013-12-01"},{"$f":"ZZZ__FnCalls!A43","v":"2013-01-01"},{"$f":"ZZZ__FnCalls!A55","v":"2014-01-01"},{"$f":"ZZZ__FnCalls!A56","v":"2014-02-01"},{"$f":"ZZZ__FnCalls!A57","v":"2014-03-01"},{"$f":"ZZZ__FnCalls!A58","v":"2014-04-01"},{"$f":"ZZZ__FnCalls!A59","v":"2014-05-01"},{"$f":"ZZZ__FnCalls!A60","v":"2014-06-01"},{"$f":"ZZZ__FnCalls!A61","v":"2014-07-01"},{"$f":"ZZZ__FnCalls!A62","v":"2014-08-01"},{"$f":"ZZZ__FnCalls!A63","v":"2014-09-01"},{"$f":"ZZZ__FnCalls!A64","v":"2014-10-01"},{"$f":"ZZZ__FnCalls!A65","v":"2014-11-01"},{"$f":"ZZZ__FnCalls!A66","v":"2014-12-01"},{"$f":"ZZZ__FnCalls!A55","v":"2014-01-01"},{"$f":"ZZZ__FnCalls!A67","v":"2015-01-01"},{"$f":"ZZZ__FnCalls!A68","v":"2015-02-01"},{"$f":"ZZZ__FnCalls!A69","v":"2015-03-01"},{"$f":"ZZZ__FnCalls!A70","v":"2015-04-01"},{"$f":"ZZZ__FnCalls!A71","v":"2015-05-01"},{"$f":"ZZZ__FnCalls!A72","v":"2015-06-01"},{"$f":"ZZZ__FnCalls!A73","v":"2015-07-01"},{"$f":"ZZZ__FnCalls!A74","v":"2015-08-01"},{"$f":"ZZZ__FnCalls!A75","v":"2015-09-01"},{"$f":"ZZZ__FnCalls!A76","v":"2015-10-01"},{"$f":"ZZZ__FnCalls!A77","v":"2015-11-01"},{"$f":"ZZZ__FnCalls!A78","v":"2015-12-01"},{"$f":"ZZZ__FnCalls!A67","v":"2015-01-01"},{"$f":"ZZZ__FnCalls!A79","v":"2016-01-01"},{"$f":"ZZZ__FnCalls!A80","v":"2016-02-01"},{"$f":"ZZZ__FnCalls!A81","v":"2016-03-01"},{"$f":"ZZZ__FnCalls!A82","v":"2016-04-01"},{"$f":"ZZZ__FnCalls!A83","v":"2016-05-01"},{"$f":"ZZZ__FnCalls!A84","v":"2016-06-01"},{"$f":"ZZZ__FnCalls!A85","v":"2016-07-01"},{"$f":"ZZZ__FnCalls!A86","v":"2016-08-01"},{"$f":"ZZZ__FnCalls!A87","v":"2016-09-01"},{"$f":"ZZZ__FnCalls!A88","v":"2016-10-01"},{"$f":"ZZZ__FnCalls!A89","v":"2016-11-01"},{"$f":"ZZZ__FnCalls!A90","v":"2016-12-01"},{"$f":"ZZZ__FnCalls!A79","v":"2016-01-01"},{"$f":"ZZZ__FnCalls!A91","v":"2017-01-01"},{"$f":"ZZZ__FnCalls!A92","v":"2017-02-01"},{"$f":"ZZZ__FnCalls!A93","v":"2017-03-01"},{"$f":"ZZZ__FnCalls!A94","v":"2017-04-01"},{"$f":"ZZZ__FnCalls!A95","v":"2017-05-01"},{"$f":"ZZZ__FnCalls!A96","v":"2017-06-01"},{"$f":"ZZZ__FnCalls!A97","v":"2017-07-01"},{"$f":"ZZZ__FnCalls!A98","v":"2017-08-01"},{"$f":"ZZZ__FnCalls!A99","v":"2017-09-01"},{"$f":"ZZZ__FnCalls!A100","v":"2017-10-01"},{"$f":"ZZZ__FnCalls!A101","v":"2017-11-01"},{"$f":"ZZZ__FnCalls!A102","v":"2017-12-01"},{"$f":"ZZZ__FnCalls!A91","v":"2017-01-01"},{"$f":"ZZZ__FnCalls!A103","v":"2018-01-01"},{"$f":"ZZZ__FnCalls!A104","v":"2018-02-01"},{"$f":"ZZZ__FnCalls!A105","v":"2018-03-01"},{"$f":"ZZZ__FnCalls!A106","v":"2018-04-01"},{"$f":"ZZZ__FnCalls!A107","v":"2018-05-01"},{"$f":"ZZZ__FnCalls!A108","v":"2018-06-01"},{"$f":"ZZZ__FnCalls!A109","v":"2018-07-01"},{"$f":"ZZZ__FnCalls!A110","v":"2018-08-01"},{"$f":"ZZZ__FnCalls!A111","v":"2018-09-01"},{"$f":"ZZZ__FnCalls!A112","v":"2018-10-01"},{"$f":"ZZZ__FnCalls!A113","v":"2018-11-01"},{"$f":"ZZZ__FnCalls!A114","v":"2018-12-01"},{"$f":"ZZZ__FnCalls!A103","v":"2018-01-01"},{"$f":"ZZZ__FnCalls!A115","v":"2019-01-01"},{"$f":"ZZZ__FnCalls!A116","v":"2019-02-01"},{"$f":"ZZZ__FnCalls!A117","v":"2019-03-01"},{"$f":"ZZZ__FnCalls!A118","v":"2019-04-01"},{"$f":"ZZZ__FnCalls!A119","v":"2019-05-01"},{"$f":"ZZZ__FnCalls!A120","v":"2019-06-01"},{"$f":"ZZZ__FnCalls!A121","v":"2019-07-01"},{"$f":"ZZZ__FnCalls!A122","v":"2019-08-01"},{"$f":"ZZZ__FnCalls!A123","v":"2019-09-01"},{"$f":"ZZZ__FnCalls!A124","v":"2019-10-01"},{"$f":"ZZZ__FnCalls!A125","v":"2019-11-01"},{"$f":"ZZZ__FnCalls!A126","v":"2019-12-01"},{"$f":"ZZZ__FnCalls!A115","v":"2019-01-01"},{"$f":"ZZZ__FnCalls!A127","v":"2020-01-01"},{"$f":"ZZZ__FnCalls!A128","v":"2020-02-01"},{"$f":"ZZZ__FnCalls!A129","v":"2020-03-01"},{"$f":"ZZZ__FnCalls!A130","v":"2020-04-01"},{"$f":"ZZZ__FnCalls!A131","v":"2020-05-01"},{"$f":"ZZZ__FnCalls!A132","v":"2020-06-01"},{"$f":"ZZZ__FnCalls!A133","v":"2020-07-01"},{"$f":"ZZZ__FnCalls!A134","v":"2020-08-01"},{"$f":"ZZZ__FnCalls!A135","v":"2020-09-01"},{"$f":"ZZZ__FnCalls!A136","v":"2020-10-01"},{"$f":"ZZZ__FnCalls!A137","v":"2020-11-01"},{"$f":"ZZZ__FnCalls!A138","v":"2020-12-01"},{"$f":"ZZZ__FnCalls!A127","v":"2020-01-01"}]
[{"$f":"\"Income_Permanent_mean_2\"","v":"Income_Permanent_mean_2"}]
[null,{"$f":"ZZZ__FnCalls!F7","v":"Jan 2010"},{"$f":"ZZZ__FnCalls!F8","v":"Feb 2010"},{"$f":"ZZZ__FnCalls!F9","v":"Mar 2010"},{"$f":"ZZZ__FnCalls!F10","v":"Apr 2010"},{"$f":"ZZZ__FnCalls!F11","v":"May 2010"},{"$f":"ZZZ__FnCalls!F12","v":"Jun 2010"},{"$f":"ZZZ__FnCalls!F13","v":"Jul 2010"},{"$f":"ZZZ__FnCalls!F14","v":"Aug 2010"},{"$f":"ZZZ__FnCalls!F15","v":"Sep 2010"},{"$f":"ZZZ__FnCalls!F16","v":"Oct 2010"},{"$f":"ZZZ__FnCalls!F17","v":"Nov 2010"},{"$f":"ZZZ__FnCalls!F18","v":"Dec 2010"},{"$f":"ZZZ__FnCalls!H7","v":"2010"},{"$f":"ZZZ__FnCalls!F19","v":"Jan 2011"},{"$f":"ZZZ__FnCalls!F20","v":"Feb 2011"},{"$f":"ZZZ__FnCalls!F21","v":"Mar 2011"},{"$f":"ZZZ__FnCalls!F22","v":"Apr 2011"},{"$f":"ZZZ__FnCalls!F23","v":"May 2011"},{"$f":"ZZZ__FnCalls!F24","v":"Jun 2011"},{"$f":"ZZZ__FnCalls!F25","v":"Jul 2011"},{"$f":"ZZZ__FnCalls!F26","v":"Aug 2011"},{"$f":"ZZZ__FnCalls!F27","v":"Sep 2011"},{"$f":"ZZZ__FnCalls!F28","v":"Oct 2011"},{"$f":"ZZZ__FnCalls!F29","v":"Nov 2011"},{"$f":"ZZZ__FnCalls!F30","v":"Dec 2011"},{"$f":"ZZZ__FnCalls!H19","v":"2011"},{"$f":"ZZZ__FnCalls!F31","v":"Jan 2012"},{"$f":"ZZZ__FnCalls!F32","v":"Feb 2012"},{"$f":"ZZZ__FnCalls!F33","v":"Mar 2012"},{"$f":"ZZZ__FnCalls!F34","v":"Apr 2012"},{"$f":"ZZZ__FnCalls!F35","v":"May 2012"},{"$f":"ZZZ__FnCalls!F36","v":"Jun 2012"},{"$f":"ZZZ__FnCalls!F37","v":"Jul 2012"},{"$f":"ZZZ__FnCalls!F38","v":"Aug 2012"},{"$f":"ZZZ__FnCalls!F39","v":"Sep 2012"},{"$f":"ZZZ__FnCalls!F40","v":"Oct 2012"},{"$f":"ZZZ__FnCalls!F41","v":"Nov 2012"},{"$f":"ZZZ__FnCalls!F42","v":"Dec 2012"},{"$f":"ZZZ__FnCalls!H31","v":"2012"},{"$f":"ZZZ__FnCalls!F43","v":"Jan 2013"},{"$f":"ZZZ__FnCalls!F44","v":"Feb 2013"},{"$f":"ZZZ__FnCalls!F45","v":"Mar 2013"},{"$f":"ZZZ__FnCalls!F46","v":"Apr 2013"},{"$f":"ZZZ__FnCalls!F47","v":"May 2013"},{"$f":"ZZZ__FnCalls!F48","v":"Jun 2013"},{"$f":"ZZZ__FnCalls!F49","v":"Jul 2013"},{"$f":"ZZZ__FnCalls!F50","v":"Aug 2013"},{"$f":"ZZZ__FnCalls!F51","v":"Sep 2013"},{"$f":"ZZZ__FnCalls!F52","v":"Oct 2013"},{"$f":"ZZZ__FnCalls!F53","v":"Nov 2013"},{"$f":"ZZZ__FnCalls!F54","v":"Dec 2013"},{"$f":"ZZZ__FnCalls!H43","v":"2013"},{"$f":"ZZZ__FnCalls!F55","v":"Jan 2014"},{"$f":"ZZZ__FnCalls!F56","v":"Feb 2014"},{"$f":"ZZZ__FnCalls!F57","v":"Mar 2014"},{"$f":"ZZZ__FnCalls!F58","v":"Apr 2014"},{"$f":"ZZZ__FnCalls!F59","v":"May 2014"},{"$f":"ZZZ__FnCalls!F60","v":"Jun 2014"},{"$f":"ZZZ__FnCalls!F61","v":"Jul 2014"},{"$f":"ZZZ__FnCalls!F62","v":"Aug 2014"},{"$f":"ZZZ__FnCalls!F63","v":"Sep 2014"},{"$f":"ZZZ__FnCalls!F64","v":"Oct 2014"},{"$f":"ZZZ__FnCalls!F65","v":"Nov 2014"},{"$f":"ZZZ__FnCalls!F66","v":"Dec 2014"},{"$f":"ZZZ__FnCalls!H55","v":"2014"},{"$f":"ZZZ__FnCalls!F67","v":"Jan 2015"},{"$f":"ZZZ__FnCalls!F68","v":"Feb 2015"},{"$f":"ZZZ__FnCalls!F69","v":"Mar 2015"},{"$f":"ZZZ__FnCalls!F70","v":"Apr 2015"},{"$f":"ZZZ__FnCalls!F71","v":"May 2015"},{"$f":"ZZZ__FnCalls!F72","v":"Jun 2015"},{"$f":"ZZZ__FnCalls!F73","v":"Jul 2015"},{"$f":"ZZZ__FnCalls!F74","v":"Aug 2015"},{"$f":"ZZZ__FnCalls!F75","v":"Sep 2015"},{"$f":"ZZZ__FnCalls!F76","v":"Oct 2015"},{"$f":"ZZZ__FnCalls!F77","v":"Nov 2015"},{"$f":"ZZZ__FnCalls!F78","v":"Dec 2015"},{"$f":"ZZZ__FnCalls!H67","v":"2015"},{"$f":"ZZZ__FnCalls!F79","v":"Jan 2016"},{"$f":"ZZZ__FnCalls!F80","v":"Feb 2016"},{"$f":"ZZZ__FnCalls!F81","v":"Mar 2016"},{"$f":"ZZZ__FnCalls!F82","v":"Apr 2016"},{"$f":"ZZZ__FnCalls!F83","v":"May 2016"},{"$f":"ZZZ__FnCalls!F84","v":"Jun 2016"},{"$f":"ZZZ__FnCalls!F85","v":"Jul 2016"},{"$f":"ZZZ__FnCalls!F86","v":"Aug 2016"},{"$f":"ZZZ__FnCalls!F87","v":"Sep 2016"},{"$f":"ZZZ__FnCalls!F88","v":"Oct 2016"},{"$f":"ZZZ__FnCalls!F89","v":"Nov 2016"},{"$f":"ZZZ__FnCalls!F90","v":"Dec 2016"},{"$f":"ZZZ__FnCalls!H79","v":"2016"},{"$f":"ZZZ__FnCalls!F91","v":"Jan 2017"},{"$f":"ZZZ__FnCalls!F92","v":"Feb 2017"},{"$f":"ZZZ__FnCalls!F93","v":"Mar 2017"},{"$f":"ZZZ__FnCalls!F94","v":"Apr 2017"},{"$f":"ZZZ__FnCalls!F95","v":"May 2017"},{"$f":"ZZZ__FnCalls!F96","v":"Jun 2017"},{"$f":"ZZZ__FnCalls!F97","v":"Jul 2017"},{"$f":"ZZZ__FnCalls!F98","v":"Aug 2017"},{"$f":"ZZZ__FnCalls!F99","v":"Sep 2017"},{"$f":"ZZZ__FnCalls!F100","v":"Oct 2017"},{"$f":"ZZZ__FnCalls!F101","v":"Nov 2017"},{"$f":"ZZZ__FnCalls!F102","v":"Dec 2017"},{"$f":"ZZZ__FnCalls!H91","v":"2017"},{"$f":"ZZZ__FnCalls!F103","v":"Jan 2018"},{"$f":"ZZZ__FnCalls!F104","v":"Feb 2018"},{"$f":"ZZZ__FnCalls!F105","v":"Mar 2018"},{"$f":"ZZZ__FnCalls!F106","v":"Apr 2018"},{"$f":"ZZZ__FnCalls!F107","v":"May 2018"},{"$f":"ZZZ__FnCalls!F108","v":"Jun 2018"},{"$f":"ZZZ__FnCalls!F109","v":"Jul 2018"},{"$f":"ZZZ__FnCalls!F110","v":"Aug 2018"},{"$f":"ZZZ__FnCalls!F111","v":"Sep 2018"},{"$f":"ZZZ__FnCalls!F112","v":"Oct 2018"},{"$f":"ZZZ__FnCalls!F113","v":"Nov 2018"},{"$f":"ZZZ__FnCalls!F114","v":"Dec 2018"},{"$f":"ZZZ__FnCalls!H103","v":"2018"},{"$f":"ZZZ__FnCalls!F115","v":"Jan 2019"},{"$f":"ZZZ__FnCalls!F116","v":"Feb 2019"},{"$f":"ZZZ__FnCalls!F117","v":"Mar 2019"},{"$f":"ZZZ__FnCalls!F118","v":"Apr 2019"},{"$f":"ZZZ__FnCalls!F119","v":"May 2019"},{"$f":"ZZZ__FnCalls!F120","v":"Jun 2019"},{"$f":"ZZZ__FnCalls!F121","v":"Jul 2019"},{"$f":"ZZZ__FnCalls!F122","v":"Aug 2019"},{"$f":"ZZZ__FnCalls!F123","v":"Sep 2019"},{"$f":"ZZZ__FnCalls!F124","v":"Oct 2019"},{"$f":"ZZZ__FnCalls!F125","v":"Nov 2019"},{"$f":"ZZZ__FnCalls!F126","v":"Dec 2019"},{"$f":"ZZZ__FnCalls!H115","v":"2019"},{"$f":"ZZZ__FnCalls!F127","v":"Jan 2020"},{"$f":"ZZZ__FnCalls!F128","v":"Feb 2020"},{"$f":"ZZZ__FnCalls!F129","v":"Mar 2020"},{"$f":"ZZZ__FnCalls!F130","v":"Apr 2020"},{"$f":"ZZZ__FnCalls!F131","v":"May 2020"},{"$f":"ZZZ__FnCalls!F132","v":"Jun 2020"},{"$f":"ZZZ__FnCalls!F133","v":"Jul 2020"},{"$f":"ZZZ__FnCalls!F134","v":"Aug 2020"},{"$f":"ZZZ__FnCalls!F135","v":"Sep 2020"},{"$f":"ZZZ__FnCalls!F136","v":"Oct 2020"},{"$f":"ZZZ__FnCalls!F137","v":"Nov 2020"},{"$f":"ZZZ__FnCalls!F138","v":"Dec 2020"},{"$f":"ZZZ__FnCalls!H127","v":"2020"}]
[null,{"$f":"ZZZ__FnCalls!F7","v":"Jan 2010"},{"$f":"ZZZ__FnCalls!F8","v":"Feb 2010"},{"$f":"ZZZ__FnCalls!F9","v":"Mar 2010"},{"$f":"ZZZ__FnCalls!F10","v":"Apr 2010"},{"$f":"ZZZ__FnCalls!F11","v":"May 2010"},{"$f":"ZZZ__FnCalls!F12","v":"Jun 2010"},{"$f":"ZZZ__FnCalls!F13","v":"Jul 2010"},{"$f":"ZZZ__FnCalls!F14","v":"Aug 2010"},{"$f":"ZZZ__FnCalls!F15","v":"Sep 2010"},{"$f":"ZZZ__FnCalls!F16","v":"Oct 2010"},{"$f":"ZZZ__FnCalls!F17","v":"Nov 2010"},{"$f":"ZZZ__FnCalls!F18","v":"Dec 2010"},{"$f":"ZZZ__FnCalls!F7","v":"Jan 2010"},{"$f":"ZZZ__FnCalls!F19","v":"Jan 2011"},{"$f":"ZZZ__FnCalls!F20","v":"Feb 2011"},{"$f":"ZZZ__FnCalls!F21","v":"Mar 2011"},{"$f":"ZZZ__FnCalls!F22","v":"Apr 2011"},{"$f":"ZZZ__FnCalls!F23","v":"May 2011"},{"$f":"ZZZ__FnCalls!F24","v":"Jun 2011"},{"$f":"ZZZ__FnCalls!F25","v":"Jul 2011"},{"$f":"ZZZ__FnCalls!F26","v":"Aug 2011"},{"$f":"ZZZ__FnCalls!F27","v":"Sep 2011"},{"$f":"ZZZ__FnCalls!F28","v":"Oct 2011"},{"$f":"ZZZ__FnCalls!F29","v":"Nov 2011"},{"$f":"ZZZ__FnCalls!F30","v":"Dec 2011"},{"$f":"ZZZ__FnCalls!F19","v":"Jan 2011"},{"$f":"ZZZ__FnCalls!F31","v":"Jan 2012"},{"$f":"ZZZ__FnCalls!F32","v":"Feb 2012"},{"$f":"ZZZ__FnCalls!F33","v":"Mar 2012"},{"$f":"ZZZ__FnCalls!F34","v":"Apr 2012"},{"$f":"ZZZ__FnCalls!F35","v":"May 2012"},{"$f":"ZZZ__FnCalls!F36","v":"Jun 2012"},{"$f":"ZZZ__FnCalls!F37","v":"Jul 2012"},{"$f":"ZZZ__FnCalls!F38","v":"Aug 2012"},{"$f":"ZZZ__FnCalls!F39","v":"Sep 2012"},{"$f":"ZZZ__FnCalls!F40","v":"Oct 2012"},{"$f":"ZZZ__FnCalls!F41","v":"Nov 2012"},{"$f":"ZZZ__FnCalls!F42","v":"Dec 2012"},{"$f":"ZZZ__FnCalls!F31","v":"Jan 2012"},{"$f":"ZZZ__FnCalls!F43","v":"Jan 2013"},{"$f":"ZZZ__FnCalls!F44","v":"Feb 2013"},{"$f":"ZZZ__FnCalls!F45","v":"Mar 2013"},{"$f":"ZZZ__FnCalls!F46","v":"Apr 2013"},{"$f":"ZZZ__FnCalls!F47","v":"May 2013"},{"$f":"ZZZ__FnCalls!F48","v":"Jun 2013"},{"$f":"ZZZ__FnCalls!F49","v":"Jul 2013"},{"$f":"ZZZ__FnCalls!F50","v":"Aug 2013"},{"$f":"ZZZ__FnCalls!F51","v":"Sep 2013"},{"$f":"ZZZ__FnCalls!F52","v":"Oct 2013"},{"$f":"ZZZ__FnCalls!F53","v":"Nov 2013"},{"$f":"ZZZ__FnCalls!F54","v":"Dec 2013"},{"$f":"ZZZ__FnCalls!F43","v":"Jan 2013"},{"$f":"ZZZ__FnCalls!F55","v":"Jan 2014"},{"$f":"ZZZ__FnCalls!F56","v":"Feb 2014"},{"$f":"ZZZ__FnCalls!F57","v":"Mar 2014"},{"$f":"ZZZ__FnCalls!F58","v":"Apr 2014"},{"$f":"ZZZ__FnCalls!F59","v":"May 2014"},{"$f":"ZZZ__FnCalls!F60","v":"Jun 2014"},{"$f":"ZZZ__FnCalls!F61","v":"Jul 2014"},{"$f":"ZZZ__FnCalls!F62","v":"Aug 2014"},{"$f":"ZZZ__FnCalls!F63","v":"Sep 2014"},{"$f":"ZZZ__FnCalls!F64","v":"Oct 2014"},{"$f":"ZZZ__FnCalls!F65","v":"Nov 2014"},{"$f":"ZZZ__FnCalls!F66","v":"Dec 2014"},{"$f":"ZZZ__FnCalls!F55","v":"Jan 2014"},{"$f":"ZZZ__FnCalls!F67","v":"Jan 2015"},{"$f":"ZZZ__FnCalls!F68","v":"Feb 2015"},{"$f":"ZZZ__FnCalls!F69","v":"Mar 2015"},{"$f":"ZZZ__FnCalls!F70","v":"Apr 2015"},{"$f":"ZZZ__FnCalls!F71","v":"May 2015"},{"$f":"ZZZ__FnCalls!F72","v":"Jun 2015"},{"$f":"ZZZ__FnCalls!F73","v":"Jul 2015"},{"$f":"ZZZ__FnCalls!F74","v":"Aug 2015"},{"$f":"ZZZ__FnCalls!F75","v":"Sep 2015"},{"$f":"ZZZ__FnCalls!F76","v":"Oct 2015"},{"$f":"ZZZ__FnCalls!F77","v":"Nov 2015"},{"$f":"ZZZ__FnCalls!F78","v":"Dec 2015"},{"$f":"ZZZ__FnCalls!F67","v":"Jan 2015"},{"$f":"ZZZ__FnCalls!F79","v":"Jan 2016"},{"$f":"ZZZ__FnCalls!F80","v":"Feb 2016"},{"$f":"ZZZ__FnCalls!F81","v":"Mar 2016"},{"$f":"ZZZ__FnCalls!F82","v":"Apr 2016"},{"$f":"ZZZ__FnCalls!F83","v":"May 2016"},{"$f":"ZZZ__FnCalls!F84","v":"Jun 2016"},{"$f":"ZZZ__FnCalls!F85","v":"Jul 2016"},{"$f":"ZZZ__FnCalls!F86","v":"Aug 2016"},{"$f":"ZZZ__FnCalls!F87","v":"Sep 2016"},{"$f":"ZZZ__FnCalls!F88","v":"Oct 2016"},{"$f":"ZZZ__FnCalls!F89","v":"Nov 2016"},{"$f":"ZZZ__FnCalls!F90","v":"Dec 2016"},{"$f":"ZZZ__FnCalls!F79","v":"Jan 2016"},{"$f":"ZZZ__FnCalls!F91","v":"Jan 2017"},{"$f":"ZZZ__FnCalls!F92","v":"Feb 2017"},{"$f":"ZZZ__FnCalls!F93","v":"Mar 2017"},{"$f":"ZZZ__FnCalls!F94","v":"Apr 2017"},{"$f":"ZZZ__FnCalls!F95","v":"May 2017"},{"$f":"ZZZ__FnCalls!F96","v":"Jun 2017"},{"$f":"ZZZ__FnCalls!F97","v":"Jul 2017"},{"$f":"ZZZ__FnCalls!F98","v":"Aug 2017"},{"$f":"ZZZ__FnCalls!F99","v":"Sep 2017"},{"$f":"ZZZ__FnCalls!F100","v":"Oct 2017"},{"$f":"ZZZ__FnCalls!F101","v":"Nov 2017"},{"$f":"ZZZ__FnCalls!F102","v":"Dec 2017"},{"$f":"ZZZ__FnCalls!F91","v":"Jan 2017"},{"$f":"ZZZ__FnCalls!F103","v":"Jan 2018"},{"$f":"ZZZ__FnCalls!F104","v":"Feb 2018"},{"$f":"ZZZ__FnCalls!F105","v":"Mar 2018"},{"$f":"ZZZ__FnCalls!F106","v":"Apr 2018"},{"$f":"ZZZ__FnCalls!F107","v":"May 2018"},{"$f":"ZZZ__FnCalls!F108","v":"Jun 2018"},{"$f":"ZZZ__FnCalls!F109","v":"Jul 2018"},{"$f":"ZZZ__FnCalls!F110","v":"Aug 2018"},{"$f":"ZZZ__FnCalls!F111","v":"Sep 2018"},{"$f":"ZZZ__FnCalls!F112","v":"Oct 2018"},{"$f":"ZZZ__FnCalls!F113","v":"Nov 2018"},{"$f":"ZZZ__FnCalls!F114","v":"Dec 2018"},{"$f":"ZZZ__FnCalls!F103","v":"Jan 2018"},{"$f":"ZZZ__FnCalls!F115","v":"Jan 2019"},{"$f":"ZZZ__FnCalls!F116","v":"Feb 2019"},{"$f":"ZZZ__FnCalls!F117","v":"Mar 2019"},{"$f":"ZZZ__FnCalls!F118","v":"Apr 2019"},{"$f":"ZZZ__FnCalls!F119","v":"May 2019"},{"$f":"ZZZ__FnCalls!F120","v":"Jun 2019"},{"$f":"ZZZ__FnCalls!F121","v":"Jul 2019"},{"$f":"ZZZ__FnCalls!F122","v":"Aug 2019"},{"$f":"ZZZ__FnCalls!F123","v":"Sep 2019"},{"$f":"ZZZ__FnCalls!F124","v":"Oct 2019"},{"$f":"ZZZ__FnCalls!F125","v":"Nov 2019"},{"$f":"ZZZ__FnCalls!F126","v":"Dec 2019"},{"$f":"ZZZ__FnCalls!F115","v":"Jan 2019"},{"$f":"ZZZ__FnCalls!F127","v":"Jan 2020"},{"$f":"ZZZ__FnCalls!F128","v":"Feb 2020"},{"$f":"ZZZ__FnCalls!F129","v":"Mar 2020"},{"$f":"ZZZ__FnCalls!F130","v":"Apr 2020"},{"$f":"ZZZ__FnCalls!F131","v":"May 2020"},{"$f":"ZZZ__FnCalls!F132","v":"Jun 2020"},{"$f":"ZZZ__FnCalls!F133","v":"Jul 2020"},{"$f":"ZZZ__FnCalls!F134","v":"Aug 2020"},{"$f":"ZZZ__FnCalls!F135","v":"Sep 2020"},{"$f":"ZZZ__FnCalls!F136","v":"Oct 2020"},{"$f":"ZZZ__FnCalls!F137","v":"Nov 2020"},{"$f":"ZZZ__FnCalls!F138","v":"Dec 2020"},{"$f":"ZZZ__FnCalls!F127","v":"Jan 2020"}]
[{"$f":"\"Income_Permanent_stdev_1\"","v":"Income_Permanent_stdev_1"}]
[null,{"$f":"ZZZ__FnCalls!F7","v":"Jan 2010"},{"$f":"ZZZ__FnCalls!F8","v":"Feb 2010"},{"$f":"ZZZ__FnCalls!F9","v":"Mar 2010"},{"$f":"ZZZ__FnCalls!F10","v":"Apr 2010"},{"$f":"ZZZ__FnCalls!F11","v":"May 2010"},{"$f":"ZZZ__FnCalls!F12","v":"Jun 2010"},{"$f":"ZZZ__FnCalls!F13","v":"Jul 2010"},{"$f":"ZZZ__FnCalls!F14","v":"Aug 2010"},{"$f":"ZZZ__FnCalls!F15","v":"Sep 2010"},{"$f":"ZZZ__FnCalls!F16","v":"Oct 2010"},{"$f":"ZZZ__FnCalls!F17","v":"Nov 2010"},{"$f":"ZZZ__FnCalls!F18","v":"Dec 2010"},{"$f":"ZZZ__FnCalls!H7","v":"2010"},{"$f":"ZZZ__FnCalls!F19","v":"Jan 2011"},{"$f":"ZZZ__FnCalls!F20","v":"Feb 2011"},{"$f":"ZZZ__FnCalls!F21","v":"Mar 2011"},{"$f":"ZZZ__FnCalls!F22","v":"Apr 2011"},{"$f":"ZZZ__FnCalls!F23","v":"May 2011"},{"$f":"ZZZ__FnCalls!F24","v":"Jun 2011"},{"$f":"ZZZ__FnCalls!F25","v":"Jul 2011"},{"$f":"ZZZ__FnCalls!F26","v":"Aug 2011"},{"$f":"ZZZ__FnCalls!F27","v":"Sep 2011"},{"$f":"ZZZ__FnCalls!F28","v":"Oct 2011"},{"$f":"ZZZ__FnCalls!F29","v":"Nov 2011"},{"$f":"ZZZ__FnCalls!F30","v":"Dec 2011"},{"$f":"ZZZ__FnCalls!H19","v":"2011"},{"$f":"ZZZ__FnCalls!F31","v":"Jan 2012"},{"$f":"ZZZ__FnCalls!F32","v":"Feb 2012"},{"$f":"ZZZ__FnCalls!F33","v":"Mar 2012"},{"$f":"ZZZ__FnCalls!F34","v":"Apr 2012"},{"$f":"ZZZ__FnCalls!F35","v":"May 2012"},{"$f":"ZZZ__FnCalls!F36","v":"Jun 2012"},{"$f":"ZZZ__FnCalls!F37","v":"Jul 2012"},{"$f":"ZZZ__FnCalls!F38","v":"Aug 2012"},{"$f":"ZZZ__FnCalls!F39","v":"Sep 2012"},{"$f":"ZZZ__FnCalls!F40","v":"Oct 2012"},{"$f":"ZZZ__FnCalls!F41","v":"Nov 2012"},{"$f":"ZZZ__FnCalls!F42","v":"Dec 2012"},{"$f":"ZZZ__FnCalls!H31","v":"2012"},{"$f":"ZZZ__FnCalls!F43","v":"Jan 2013"},{"$f":"ZZZ__FnCalls!F44","v":"Feb 2013"},{"$f":"ZZZ__FnCalls!F45","v":"Mar 2013"},{"$f":"ZZZ__FnCalls!F46","v":"Apr 2013"},{"$f":"ZZZ__FnCalls!F47","v":"May 2013"},{"$f":"ZZZ__FnCalls!F48","v":"Jun 2013"},{"$f":"ZZZ__FnCalls!F49","v":"Jul 2013"},{"$f":"ZZZ__FnCalls!F50","v":"Aug 2013"},{"$f":"ZZZ__FnCalls!F51","v":"Sep 2013"},{"$f":"ZZZ__FnCalls!F52","v":"Oct 2013"},{"$f":"ZZZ__FnCalls!F53","v":"Nov 2013"},{"$f":"ZZZ__FnCalls!F54","v":"Dec 2013"},{"$f":"ZZZ__FnCalls!H43","v":"2013"},{"$f":"ZZZ__FnCalls!F55","v":"Jan 2014"},{"$f":"ZZZ__FnCalls!F56","v":"Feb 2014"},{"$f":"ZZZ__FnCalls!F57","v":"Mar 2014"},{"$f":"ZZZ__FnCalls!F58","v":"Apr 2014"},{"$f":"ZZZ__FnCalls!F59","v":"May 2014"},{"$f":"ZZZ__FnCalls!F60","v":"Jun 2014"},{"$f":"ZZZ__FnCalls!F61","v":"Jul 2014"},{"$f":"ZZZ__FnCalls!F62","v":"Aug 2014"},{"$f":"ZZZ__FnCalls!F63","v":"Sep 2014"},{"$f":"ZZZ__FnCalls!F64","v":"Oct 2014"},{"$f":"ZZZ__FnCalls!F65","v":"Nov 2014"},{"$f":"ZZZ__FnCalls!F66","v":"Dec 2014"},{"$f":"ZZZ__FnCalls!H55","v":"2014"},{"$f":"ZZZ__FnCalls!F67","v":"Jan 2015"},{"$f":"ZZZ__FnCalls!F68","v":"Feb 2015"},{"$f":"ZZZ__FnCalls!F69","v":"Mar 2015"},{"$f":"ZZZ__FnCalls!F70","v":"Apr 2015"},{"$f":"ZZZ__FnCalls!F71","v":"May 2015"},{"$f":"ZZZ__FnCalls!F72","v":"Jun 2015"},{"$f":"ZZZ__FnCalls!F73","v":"Jul 2015"},{"$f":"ZZZ__FnCalls!F74","v":"Aug 2015"},{"$f":"ZZZ__FnCalls!F75","v":"Sep 2015"},{"$f":"ZZZ__FnCalls!F76","v":"Oct 2015"},{"$f":"ZZZ__FnCalls!F77","v":"Nov 2015"},{"$f":"ZZZ__FnCalls!F78","v":"Dec 2015"},{"$f":"ZZZ__FnCalls!H67","v":"2015"},{"$f":"ZZZ__FnCalls!F79","v":"Jan 2016"},{"$f":"ZZZ__FnCalls!F80","v":"Feb 2016"},{"$f":"ZZZ__FnCalls!F81","v":"Mar 2016"},{"$f":"ZZZ__FnCalls!F82","v":"Apr 2016"},{"$f":"ZZZ__FnCalls!F83","v":"May 2016"},{"$f":"ZZZ__FnCalls!F84","v":"Jun 2016"},{"$f":"ZZZ__FnCalls!F85","v":"Jul 2016"},{"$f":"ZZZ__FnCalls!F86","v":"Aug 2016"},{"$f":"ZZZ__FnCalls!F87","v":"Sep 2016"},{"$f":"ZZZ__FnCalls!F88","v":"Oct 2016"},{"$f":"ZZZ__FnCalls!F89","v":"Nov 2016"},{"$f":"ZZZ__FnCalls!F90","v":"Dec 2016"},{"$f":"ZZZ__FnCalls!H79","v":"2016"},{"$f":"ZZZ__FnCalls!F91","v":"Jan 2017"},{"$f":"ZZZ__FnCalls!F92","v":"Feb 2017"},{"$f":"ZZZ__FnCalls!F93","v":"Mar 2017"},{"$f":"ZZZ__FnCalls!F94","v":"Apr 2017"},{"$f":"ZZZ__FnCalls!F95","v":"May 2017"},{"$f":"ZZZ__FnCalls!F96","v":"Jun 2017"},{"$f":"ZZZ__FnCalls!F97","v":"Jul 2017"},{"$f":"ZZZ__FnCalls!F98","v":"Aug 2017"},{"$f":"ZZZ__FnCalls!F99","v":"Sep 2017"},{"$f":"ZZZ__FnCalls!F100","v":"Oct 2017"},{"$f":"ZZZ__FnCalls!F101","v":"Nov 2017"},{"$f":"ZZZ__FnCalls!F102","v":"Dec 2017"},{"$f":"ZZZ__FnCalls!H91","v":"2017"},{"$f":"ZZZ__FnCalls!F103","v":"Jan 2018"},{"$f":"ZZZ__FnCalls!F104","v":"Feb 2018"},{"$f":"ZZZ__FnCalls!F105","v":"Mar 2018"},{"$f":"ZZZ__FnCalls!F106","v":"Apr 2018"},{"$f":"ZZZ__FnCalls!F107","v":"May 2018"},{"$f":"ZZZ__FnCalls!F108","v":"Jun 2018"},{"$f":"ZZZ__FnCalls!F109","v":"Jul 2018"},{"$f":"ZZZ__FnCalls!F110","v":"Aug 2018"},{"$f":"ZZZ__FnCalls!F111","v":"Sep 2018"},{"$f":"ZZZ__FnCalls!F112","v":"Oct 2018"},{"$f":"ZZZ__FnCalls!F113","v":"Nov 2018"},{"$f":"ZZZ__FnCalls!F114","v":"Dec 2018"},{"$f":"ZZZ__FnCalls!H103","v":"2018"},{"$f":"ZZZ__FnCalls!F115","v":"Jan 2019"},{"$f":"ZZZ__FnCalls!F116","v":"Feb 2019"},{"$f":"ZZZ__FnCalls!F117","v":"Mar 2019"},{"$f":"ZZZ__FnCalls!F118","v":"Apr 2019"},{"$f":"ZZZ__FnCalls!F119","v":"May 2019"},{"$f":"ZZZ__FnCalls!F120","v":"Jun 2019"},{"$f":"ZZZ__FnCalls!F121","v":"Jul 2019"},{"$f":"ZZZ__FnCalls!F122","v":"Aug 2019"},{"$f":"ZZZ__FnCalls!F123","v":"Sep 2019"},{"$f":"ZZZ__FnCalls!F124","v":"Oct 2019"},{"$f":"ZZZ__FnCalls!F125","v":"Nov 2019"},{"$f":"ZZZ__FnCalls!F126","v":"Dec 2019"},{"$f":"ZZZ__FnCalls!H115","v":"2019"},{"$f":"ZZZ__FnCalls!F127","v":"Jan 2020"},{"$f":"ZZZ__FnCalls!F128","v":"Feb 2020"},{"$f":"ZZZ__FnCalls!F129","v":"Mar 2020"},{"$f":"ZZZ__FnCalls!F130","v":"Apr 2020"},{"$f":"ZZZ__FnCalls!F131","v":"May 2020"},{"$f":"ZZZ__FnCalls!F132","v":"Jun 2020"},{"$f":"ZZZ__FnCalls!F133","v":"Jul 2020"},{"$f":"ZZZ__FnCalls!F134","v":"Aug 2020"},{"$f":"ZZZ__FnCalls!F135","v":"Sep 2020"},{"$f":"ZZZ__FnCalls!F136","v":"Oct 2020"},{"$f":"ZZZ__FnCalls!F137","v":"Nov 2020"},{"$f":"ZZZ__FnCalls!F138","v":"Dec 2020"},{"$f":"ZZZ__FnCalls!H127","v":"2020"}]
[null,{"$f":"ZZZ__FnCalls!A7","v":"2010-01-01"},{"$f":"ZZZ__FnCalls!A8","v":"2010-02-01"},{"$f":"ZZZ__FnCalls!A9","v":"2010-03-01"},{"$f":"ZZZ__FnCalls!A10","v":"2010-04-01"},{"$f":"ZZZ__FnCalls!A11","v":"2010-05-01"},{"$f":"ZZZ__FnCalls!A12","v":"2010-06-01"},{"$f":"ZZZ__FnCalls!A13","v":"2010-07-01"},{"$f":"ZZZ__FnCalls!A14","v":"2010-08-01"},{"$f":"ZZZ__FnCalls!A15","v":"2010-09-01"},{"$f":"ZZZ__FnCalls!A16","v":"2010-10-01"},{"$f":"ZZZ__FnCalls!A17","v":"2010-11-01"},{"$f":"ZZZ__FnCalls!A18","v":"2010-12-01"},{"$f":"ZZZ__FnCalls!A7","v":"2010-01-01"},{"$f":"ZZZ__FnCalls!A19","v":"2011-01-01"},{"$f":"ZZZ__FnCalls!A20","v":"2011-02-01"},{"$f":"ZZZ__FnCalls!A21","v":"2011-03-01"},{"$f":"ZZZ__FnCalls!A22","v":"2011-04-01"},{"$f":"ZZZ__FnCalls!A23","v":"2011-05-01"},{"$f":"ZZZ__FnCalls!A24","v":"2011-06-01"},{"$f":"ZZZ__FnCalls!A25","v":"2011-07-01"},{"$f":"ZZZ__FnCalls!A26","v":"2011-08-01"},{"$f":"ZZZ__FnCalls!A27","v":"2011-09-01"},{"$f":"ZZZ__FnCalls!A28","v":"2011-10-01"},{"$f":"ZZZ__FnCalls!A29","v":"2011-11-01"},{"$f":"ZZZ__FnCalls!A30","v":"2011-12-01"},{"$f":"ZZZ__FnCalls!A19","v":"2011-01-01"},{"$f":"ZZZ__FnCalls!A31","v":"2012-01-01"},{"$f":"ZZZ__FnCalls!A32","v":"2012-02-01"},{"$f":"ZZZ__FnCalls!A33","v":"2012-03-01"},{"$f":"ZZZ__FnCalls!A34","v":"2012-04-01"},{"$f":"ZZZ__FnCalls!A35","v":"2012-05-01"},{"$f":"ZZZ__FnCalls!A36","v":"2012-06-01"},{"$f":"ZZZ__FnCalls!A37","v":"2012-07-01"},{"$f":"ZZZ__FnCalls!A38","v":"2012-08-01"},{"$f":"ZZZ__FnCalls!A39","v":"2012-09-01"},{"$f":"ZZZ__FnCalls!A40","v":"2012-10-01"},{"$f":"ZZZ__FnCalls!A41","v":"2012-11-01"},{"$f":"ZZZ__FnCalls!A42","v":"2012-12-01"},{"$f":"ZZZ__FnCalls!A31","v":"2012-01-01"},{"$f":"ZZZ__FnCalls!A43","v":"2013-01-01"},{"$f":"ZZZ__FnCalls!A44","v":"2013-02-01"},{"$f":"ZZZ__FnCalls!A45","v":"2013-03-01"},{"$f":"ZZZ__FnCalls!A46","v":"2013-04-01"},{"$f":"ZZZ__FnCalls!A47","v":"2013-05-01"},{"$f":"ZZZ__FnCalls!A48","v":"2013-06-01"},{"$f":"ZZZ__FnCalls!A49","v":"2013-07-01"},{"$f":"ZZZ__FnCalls!A50","v":"2013-08-01"},{"$f":"ZZZ__FnCalls!A51","v":"2013-09-01"},{"$f":"ZZZ__FnCalls!A52","v":"2013-10-01"},{"$f":"ZZZ__FnCalls!A53","v":"2013-11-01"},{"$f":"ZZZ__FnCalls!A54","v":"2013-12-01"},{"$f":"ZZZ__FnCalls!A43","v":"2013-01-01"},{"$f":"ZZZ__FnCalls!A55","v":"2014-01-01"},{"$f":"ZZZ__FnCalls!A56","v":"2014-02-01"},{"$f":"ZZZ__FnCalls!A57","v":"2014-03-01"},{"$f":"ZZZ__FnCalls!A58","v":"2014-04-01"},{"$f":"ZZZ__FnCalls!A59","v":"2014-05-01"},{"$f":"ZZZ__FnCalls!A60","v":"2014-06-01"},{"$f":"ZZZ__FnCalls!A61","v":"2014-07-01"},{"$f":"ZZZ__FnCalls!A62","v":"2014-08-01"},{"$f":"ZZZ__FnCalls!A63","v":"2014-09-01"},{"$f":"ZZZ__FnCalls!A64","v":"2014-10-01"},{"$f":"ZZZ__FnCalls!A65","v":"2014-11-01"},{"$f":"ZZZ__FnCalls!A66","v":"2014-12-01"},{"$f":"ZZZ__FnCalls!A55","v":"2014-01-01"},{"$f":"ZZZ__FnCalls!A67","v":"2015-01-01"},{"$f":"ZZZ__FnCalls!A68","v":"2015-02-01"},{"$f":"ZZZ__FnCalls!A69","v":"2015-03-01"},{"$f":"ZZZ__FnCalls!A70","v":"2015-04-01"},{"$f":"ZZZ__FnCalls!A71","v":"2015-05-01"},{"$f":"ZZZ__FnCalls!A72","v":"2015-06-01"},{"$f":"ZZZ__FnCalls!A73","v":"2015-07-01"},{"$f":"ZZZ__FnCalls!A74","v":"2015-08-01"},{"$f":"ZZZ__FnCalls!A75","v":"2015-09-01"},{"$f":"ZZZ__FnCalls!A76","v":"2015-10-01"},{"$f":"ZZZ__FnCalls!A77","v":"2015-11-01"},{"$f":"ZZZ__FnCalls!A78","v":"2015-12-01"},{"$f":"ZZZ__FnCalls!A67","v":"2015-01-01"},{"$f":"ZZZ__FnCalls!A79","v":"2016-01-01"},{"$f":"ZZZ__FnCalls!A80","v":"2016-02-01"},{"$f":"ZZZ__FnCalls!A81","v":"2016-03-01"},{"$f":"ZZZ__FnCalls!A82","v":"2016-04-01"},{"$f":"ZZZ__FnCalls!A83","v":"2016-05-01"},{"$f":"ZZZ__FnCalls!A84","v":"2016-06-01"},{"$f":"ZZZ__FnCalls!A85","v":"2016-07-01"},{"$f":"ZZZ__FnCalls!A86","v":"2016-08-01"},{"$f":"ZZZ__FnCalls!A87","v":"2016-09-01"},{"$f":"ZZZ__FnCalls!A88","v":"2016-10-01"},{"$f":"ZZZ__FnCalls!A89","v":"2016-11-01"},{"$f":"ZZZ__FnCalls!A90","v":"2016-12-01"},{"$f":"ZZZ__FnCalls!A79","v":"2016-01-01"},{"$f":"ZZZ__FnCalls!A91","v":"2017-01-01"},{"$f":"ZZZ__FnCalls!A92","v":"2017-02-01"},{"$f":"ZZZ__FnCalls!A93","v":"2017-03-01"},{"$f":"ZZZ__FnCalls!A94","v":"2017-04-01"},{"$f":"ZZZ__FnCalls!A95","v":"2017-05-01"},{"$f":"ZZZ__FnCalls!A96","v":"2017-06-01"},{"$f":"ZZZ__FnCalls!A97","v":"2017-07-01"},{"$f":"ZZZ__FnCalls!A98","v":"2017-08-01"},{"$f":"ZZZ__FnCalls!A99","v":"2017-09-01"},{"$f":"ZZZ__FnCalls!A100","v":"2017-10-01"},{"$f":"ZZZ__FnCalls!A101","v":"2017-11-01"},{"$f":"ZZZ__FnCalls!A102","v":"2017-12-01"},{"$f":"ZZZ__FnCalls!A91","v":"2017-01-01"},{"$f":"ZZZ__FnCalls!A103","v":"2018-01-01"},{"$f":"ZZZ__FnCalls!A104","v":"2018-02-01"},{"$f":"ZZZ__FnCalls!A105","v":"2018-03-01"},{"$f":"ZZZ__FnCalls!A106","v":"2018-04-01"},{"$f":"ZZZ__FnCalls!A107","v":"2018-05-01"},{"$f":"ZZZ__FnCalls!A108","v":"2018-06-01"},{"$f":"ZZZ__FnCalls!A109","v":"2018-07-01"},{"$f":"ZZZ__FnCalls!A110","v":"2018-08-01"},{"$f":"ZZZ__FnCalls!A111","v":"2018-09-01"},{"$f":"ZZZ__FnCalls!A112","v":"2018-10-01"},{"$f":"ZZZ__FnCalls!A113","v":"2018-11-01"},{"$f":"ZZZ__FnCalls!A114","v":"2018-12-01"},{"$f":"ZZZ__FnCalls!A103","v":"2018-01-01"},{"$f":"ZZZ__FnCalls!A115","v":"2019-01-01"},{"$f":"ZZZ__FnCalls!A116","v":"2019-02-01"},{"$f":"ZZZ__FnCalls!A117","v":"2019-03-01"},{"$f":"ZZZ__FnCalls!A118","v":"2019-04-01"},{"$f":"ZZZ__FnCalls!A119","v":"2019-05-01"},{"$f":"ZZZ__FnCalls!A120","v":"2019-06-01"},{"$f":"ZZZ__FnCalls!A121","v":"2019-07-01"},{"$f":"ZZZ__FnCalls!A122","v":"2019-08-01"},{"$f":"ZZZ__FnCalls!A123","v":"2019-09-01"},{"$f":"ZZZ__FnCalls!A124","v":"2019-10-01"},{"$f":"ZZZ__FnCalls!A125","v":"2019-11-01"},{"$f":"ZZZ__FnCalls!A126","v":"2019-12-01"},{"$f":"ZZZ__FnCalls!A115","v":"2019-01-01"},{"$f":"ZZZ__FnCalls!A127","v":"2020-01-01"},{"$f":"ZZZ__FnCalls!A128","v":"2020-02-01"},{"$f":"ZZZ__FnCalls!A129","v":"2020-03-01"},{"$f":"ZZZ__FnCalls!A130","v":"2020-04-01"},{"$f":"ZZZ__FnCalls!A131","v":"2020-05-01"},{"$f":"ZZZ__FnCalls!A132","v":"2020-06-01"},{"$f":"ZZZ__FnCalls!A133","v":"2020-07-01"},{"$f":"ZZZ__FnCalls!A134","v":"2020-08-01"},{"$f":"ZZZ__FnCalls!A135","v":"2020-09-01"},{"$f":"ZZZ__FnCalls!A136","v":"2020-10-01"},{"$f":"ZZZ__FnCalls!A137","v":"2020-11-01"},{"$f":"ZZZ__FnCalls!A138","v":"2020-12-01"},{"$f":"ZZZ__FnCalls!A127","v":"2020-01-01"}]
[{"$f":"\"Income_Permanent_stdev_2\"","v":"Income_Permanent_stdev_2"}]
[null,{"$f":"ZZZ__FnCalls!F7","v":"Jan 2010"},{"$f":"ZZZ__FnCalls!F8","v":"Feb 2010"},{"$f":"ZZZ__FnCalls!F9","v":"Mar 2010"},{"$f":"ZZZ__FnCalls!F10","v":"Apr 2010"},{"$f":"ZZZ__FnCalls!F11","v":"May 2010"},{"$f":"ZZZ__FnCalls!F12","v":"Jun 2010"},{"$f":"ZZZ__FnCalls!F13","v":"Jul 2010"},{"$f":"ZZZ__FnCalls!F14","v":"Aug 2010"},{"$f":"ZZZ__FnCalls!F15","v":"Sep 2010"},{"$f":"ZZZ__FnCalls!F16","v":"Oct 2010"},{"$f":"ZZZ__FnCalls!F17","v":"Nov 2010"},{"$f":"ZZZ__FnCalls!F18","v":"Dec 2010"},{"$f":"ZZZ__FnCalls!H7","v":"2010"},{"$f":"ZZZ__FnCalls!F19","v":"Jan 2011"},{"$f":"ZZZ__FnCalls!F20","v":"Feb 2011"},{"$f":"ZZZ__FnCalls!F21","v":"Mar 2011"},{"$f":"ZZZ__FnCalls!F22","v":"Apr 2011"},{"$f":"ZZZ__FnCalls!F23","v":"May 2011"},{"$f":"ZZZ__FnCalls!F24","v":"Jun 2011"},{"$f":"ZZZ__FnCalls!F25","v":"Jul 2011"},{"$f":"ZZZ__FnCalls!F26","v":"Aug 2011"},{"$f":"ZZZ__FnCalls!F27","v":"Sep 2011"},{"$f":"ZZZ__FnCalls!F28","v":"Oct 2011"},{"$f":"ZZZ__FnCalls!F29","v":"Nov 2011"},{"$f":"ZZZ__FnCalls!F30","v":"Dec 2011"},{"$f":"ZZZ__FnCalls!H19","v":"2011"},{"$f":"ZZZ__FnCalls!F31","v":"Jan 2012"},{"$f":"ZZZ__FnCalls!F32","v":"Feb 2012"},{"$f":"ZZZ__FnCalls!F33","v":"Mar 2012"},{"$f":"ZZZ__FnCalls!F34","v":"Apr 2012"},{"$f":"ZZZ__FnCalls!F35","v":"May 2012"},{"$f":"ZZZ__FnCalls!F36","v":"Jun 2012"},{"$f":"ZZZ__FnCalls!F37","v":"Jul 2012"},{"$f":"ZZZ__FnCalls!F38","v":"Aug 2012"},{"$f":"ZZZ__FnCalls!F39","v":"Sep 2012"},{"$f":"ZZZ__FnCalls!F40","v":"Oct 2012"},{"$f":"ZZZ__FnCalls!F41","v":"Nov 2012"},{"$f":"ZZZ__FnCalls!F42","v":"Dec 2012"},{"$f":"ZZZ__FnCalls!H31","v":"2012"},{"$f":"ZZZ__FnCalls!F43","v":"Jan 2013"},{"$f":"ZZZ__FnCalls!F44","v":"Feb 2013"},{"$f":"ZZZ__FnCalls!F45","v":"Mar 2013"},{"$f":"ZZZ__FnCalls!F46","v":"Apr 2013"},{"$f":"ZZZ__FnCalls!F47","v":"May 2013"},{"$f":"ZZZ__FnCalls!F48","v":"Jun 2013"},{"$f":"ZZZ__FnCalls!F49","v":"Jul 2013"},{"$f":"ZZZ__FnCalls!F50","v":"Aug 2013"},{"$f":"ZZZ__FnCalls!F51","v":"Sep 2013"},{"$f":"ZZZ__FnCalls!F52","v":"Oct 2013"},{"$f":"ZZZ__FnCalls!F53","v":"Nov 2013"},{"$f":"ZZZ__FnCalls!F54","v":"Dec 2013"},{"$f":"ZZZ__FnCalls!H43","v":"2013"},{"$f":"ZZZ__FnCalls!F55","v":"Jan 2014"},{"$f":"ZZZ__FnCalls!F56","v":"Feb 2014"},{"$f":"ZZZ__FnCalls!F57","v":"Mar 2014"},{"$f":"ZZZ__FnCalls!F58","v":"Apr 2014"},{"$f":"ZZZ__FnCalls!F59","v":"May 2014"},{"$f":"ZZZ__FnCalls!F60","v":"Jun 2014"},{"$f":"ZZZ__FnCalls!F61","v":"Jul 2014"},{"$f":"ZZZ__FnCalls!F62","v":"Aug 2014"},{"$f":"ZZZ__FnCalls!F63","v":"Sep 2014"},{"$f":"ZZZ__FnCalls!F64","v":"Oct 2014"},{"$f":"ZZZ__FnCalls!F65","v":"Nov 2014"},{"$f":"ZZZ__FnCalls!F66","v":"Dec 2014"},{"$f":"ZZZ__FnCalls!H55","v":"2014"},{"$f":"ZZZ__FnCalls!F67","v":"Jan 2015"},{"$f":"ZZZ__FnCalls!F68","v":"Feb 2015"},{"$f":"ZZZ__FnCalls!F69","v":"Mar 2015"},{"$f":"ZZZ__FnCalls!F70","v":"Apr 2015"},{"$f":"ZZZ__FnCalls!F71","v":"May 2015"},{"$f":"ZZZ__FnCalls!F72","v":"Jun 2015"},{"$f":"ZZZ__FnCalls!F73","v":"Jul 2015"},{"$f":"ZZZ__FnCalls!F74","v":"Aug 2015"},{"$f":"ZZZ__FnCalls!F75","v":"Sep 2015"},{"$f":"ZZZ__FnCalls!F76","v":"Oct 2015"},{"$f":"ZZZ__FnCalls!F77","v":"Nov 2015"},{"$f":"ZZZ__FnCalls!F78","v":"Dec 2015"},{"$f":"ZZZ__FnCalls!H67","v":"2015"},{"$f":"ZZZ__FnCalls!F79","v":"Jan 2016"},{"$f":"ZZZ__FnCalls!F80","v":"Feb 2016"},{"$f":"ZZZ__FnCalls!F81","v":"Mar 2016"},{"$f":"ZZZ__FnCalls!F82","v":"Apr 2016"},{"$f":"ZZZ__FnCalls!F83","v":"May 2016"},{"$f":"ZZZ__FnCalls!F84","v":"Jun 2016"},{"$f":"ZZZ__FnCalls!F85","v":"Jul 2016"},{"$f":"ZZZ__FnCalls!F86","v":"Aug 2016"},{"$f":"ZZZ__FnCalls!F87","v":"Sep 2016"},{"$f":"ZZZ__FnCalls!F88","v":"Oct 2016"},{"$f":"ZZZ__FnCalls!F89","v":"Nov 2016"},{"$f":"ZZZ__FnCalls!F90","v":"Dec 2016"},{"$f":"ZZZ__FnCalls!H79","v":"2016"},{"$f":"ZZZ__FnCalls!F91","v":"Jan 2017"},{"$f":"ZZZ__FnCalls!F92","v":"Feb 2017"},{"$f":"ZZZ__FnCalls!F93","v":"Mar 2017"},{"$f":"ZZZ__FnCalls!F94","v":"Apr 2017"},{"$f":"ZZZ__FnCalls!F95","v":"May 2017"},{"$f":"ZZZ__FnCalls!F96","v":"Jun 2017"},{"$f":"ZZZ__FnCalls!F97","v":"Jul 2017"},{"$f":"ZZZ__FnCalls!F98","v":"Aug 2017"},{"$f":"ZZZ__FnCalls!F99","v":"Sep 2017"},{"$f":"ZZZ__FnCalls!F100","v":"Oct 2017"},{"$f":"ZZZ__FnCalls!F101","v":"Nov 2017"},{"$f":"ZZZ__FnCalls!F102","v":"Dec 2017"},{"$f":"ZZZ__FnCalls!H91","v":"2017"},{"$f":"ZZZ__FnCalls!F103","v":"Jan 2018"},{"$f":"ZZZ__FnCalls!F104","v":"Feb 2018"},{"$f":"ZZZ__FnCalls!F105","v":"Mar 2018"},{"$f":"ZZZ__FnCalls!F106","v":"Apr 2018"},{"$f":"ZZZ__FnCalls!F107","v":"May 2018"},{"$f":"ZZZ__FnCalls!F108","v":"Jun 2018"},{"$f":"ZZZ__FnCalls!F109","v":"Jul 2018"},{"$f":"ZZZ__FnCalls!F110","v":"Aug 2018"},{"$f":"ZZZ__FnCalls!F111","v":"Sep 2018"},{"$f":"ZZZ__FnCalls!F112","v":"Oct 2018"},{"$f":"ZZZ__FnCalls!F113","v":"Nov 2018"},{"$f":"ZZZ__FnCalls!F114","v":"Dec 2018"},{"$f":"ZZZ__FnCalls!H103","v":"2018"},{"$f":"ZZZ__FnCalls!F115","v":"Jan 2019"},{"$f":"ZZZ__FnCalls!F116","v":"Feb 2019"},{"$f":"ZZZ__FnCalls!F117","v":"Mar 2019"},{"$f":"ZZZ__FnCalls!F118","v":"Apr 2019"},{"$f":"ZZZ__FnCalls!F119","v":"May 2019"},{"$f":"ZZZ__FnCalls!F120","v":"Jun 2019"},{"$f":"ZZZ__FnCalls!F121","v":"Jul 2019"},{"$f":"ZZZ__FnCalls!F122","v":"Aug 2019"},{"$f":"ZZZ__FnCalls!F123","v":"Sep 2019"},{"$f":"ZZZ__FnCalls!F124","v":"Oct 2019"},{"$f":"ZZZ__FnCalls!F125","v":"Nov 2019"},{"$f":"ZZZ__FnCalls!F126","v":"Dec 2019"},{"$f":"ZZZ__FnCalls!H115","v":"2019"},{"$f":"ZZZ__FnCalls!F127","v":"Jan 2020"},{"$f":"ZZZ__FnCalls!F128","v":"Feb 2020"},{"$f":"ZZZ__FnCalls!F129","v":"Mar 2020"},{"$f":"ZZZ__FnCalls!F130","v":"Apr 2020"},{"$f":"ZZZ__FnCalls!F131","v":"May 2020"},{"$f":"ZZZ__FnCalls!F132","v":"Jun 2020"},{"$f":"ZZZ__FnCalls!F133","v":"Jul 2020"},{"$f":"ZZZ__FnCalls!F134","v":"Aug 2020"},{"$f":"ZZZ__FnCalls!F135","v":"Sep 2020"},{"$f":"ZZZ__FnCalls!F136","v":"Oct 2020"},{"$f":"ZZZ__FnCalls!F137","v":"Nov 2020"},{"$f":"ZZZ__FnCalls!F138","v":"Dec 2020"},{"$f":"ZZZ__FnCalls!H127","v":"2020"}]
[null,{"$f":"ZZZ__FnCalls!F7","v":"Jan 2010"},{"$f":"ZZZ__FnCalls!F8","v":"Feb 2010"},{"$f":"ZZZ__FnCalls!F9","v":"Mar 2010"},{"$f":"ZZZ__FnCalls!F10","v":"Apr 2010"},{"$f":"ZZZ__FnCalls!F11","v":"May 2010"},{"$f":"ZZZ__FnCalls!F12","v":"Jun 2010"},{"$f":"ZZZ__FnCalls!F13","v":"Jul 2010"},{"$f":"ZZZ__FnCalls!F14","v":"Aug 2010"},{"$f":"ZZZ__FnCalls!F15","v":"Sep 2010"},{"$f":"ZZZ__FnCalls!F16","v":"Oct 2010"},{"$f":"ZZZ__FnCalls!F17","v":"Nov 2010"},{"$f":"ZZZ__FnCalls!F18","v":"Dec 2010"},{"$f":"ZZZ__FnCalls!F7","v":"Jan 2010"},{"$f":"ZZZ__FnCalls!F19","v":"Jan 2011"},{"$f":"ZZZ__FnCalls!F20","v":"Feb 2011"},{"$f":"ZZZ__FnCalls!F21","v":"Mar 2011"},{"$f":"ZZZ__FnCalls!F22","v":"Apr 2011"},{"$f":"ZZZ__FnCalls!F23","v":"May 2011"},{"$f":"ZZZ__FnCalls!F24","v":"Jun 2011"},{"$f":"ZZZ__FnCalls!F25","v":"Jul 2011"},{"$f":"ZZZ__FnCalls!F26","v":"Aug 2011"},{"$f":"ZZZ__FnCalls!F27","v":"Sep 2011"},{"$f":"ZZZ__FnCalls!F28","v":"Oct 2011"},{"$f":"ZZZ__FnCalls!F29","v":"Nov 2011"},{"$f":"ZZZ__FnCalls!F30","v":"Dec 2011"},{"$f":"ZZZ__FnCalls!F19","v":"Jan 2011"},{"$f":"ZZZ__FnCalls!F31","v":"Jan 2012"},{"$f":"ZZZ__FnCalls!F32","v":"Feb 2012"},{"$f":"ZZZ__FnCalls!F33","v":"Mar 2012"},{"$f":"ZZZ__FnCalls!F34","v":"Apr 2012"},{"$f":"ZZZ__FnCalls!F35","v":"May 2012"},{"$f":"ZZZ__FnCalls!F36","v":"Jun 2012"},{"$f":"ZZZ__FnCalls!F37","v":"Jul 2012"},{"$f":"ZZZ__FnCalls!F38","v":"Aug 2012"},{"$f":"ZZZ__FnCalls!F39","v":"Sep 2012"},{"$f":"ZZZ__FnCalls!F40","v":"Oct 2012"},{"$f":"ZZZ__FnCalls!F41","v":"Nov 2012"},{"$f":"ZZZ__FnCalls!F42","v":"Dec 2012"},{"$f":"ZZZ__FnCalls!F31","v":"Jan 2012"},{"$f":"ZZZ__FnCalls!F43","v":"Jan 2013"},{"$f":"ZZZ__FnCalls!F44","v":"Feb 2013"},{"$f":"ZZZ__FnCalls!F45","v":"Mar 2013"},{"$f":"ZZZ__FnCalls!F46","v":"Apr 2013"},{"$f":"ZZZ__FnCalls!F47","v":"May 2013"},{"$f":"ZZZ__FnCalls!F48","v":"Jun 2013"},{"$f":"ZZZ__FnCalls!F49","v":"Jul 2013"},{"$f":"ZZZ__FnCalls!F50","v":"Aug 2013"},{"$f":"ZZZ__FnCalls!F51","v":"Sep 2013"},{"$f":"ZZZ__FnCalls!F52","v":"Oct 2013"},{"$f":"ZZZ__FnCalls!F53","v":"Nov 2013"},{"$f":"ZZZ__FnCalls!F54","v":"Dec 2013"},{"$f":"ZZZ__FnCalls!F43","v":"Jan 2013"},{"$f":"ZZZ__FnCalls!F55","v":"Jan 2014"},{"$f":"ZZZ__FnCalls!F56","v":"Feb 2014"},{"$f":"ZZZ__FnCalls!F57","v":"Mar 2014"},{"$f":"ZZZ__FnCalls!F58","v":"Apr 2014"},{"$f":"ZZZ__FnCalls!F59","v":"May 2014"},{"$f":"ZZZ__FnCalls!F60","v":"Jun 2014"},{"$f":"ZZZ__FnCalls!F61","v":"Jul 2014"},{"$f":"ZZZ__FnCalls!F62","v":"Aug 2014"},{"$f":"ZZZ__FnCalls!F63","v":"Sep 2014"},{"$f":"ZZZ__FnCalls!F64","v":"Oct 2014"},{"$f":"ZZZ__FnCalls!F65","v":"Nov 2014"},{"$f":"ZZZ__FnCalls!F66","v":"Dec 2014"},{"$f":"ZZZ__FnCalls!F55","v":"Jan 2014"},{"$f":"ZZZ__FnCalls!F67","v":"Jan 2015"},{"$f":"ZZZ__FnCalls!F68","v":"Feb 2015"},{"$f":"ZZZ__FnCalls!F69","v":"Mar 2015"},{"$f":"ZZZ__FnCalls!F70","v":"Apr 2015"},{"$f":"ZZZ__FnCalls!F71","v":"May 2015"},{"$f":"ZZZ__FnCalls!F72","v":"Jun 2015"},{"$f":"ZZZ__FnCalls!F73","v":"Jul 2015"},{"$f":"ZZZ__FnCalls!F74","v":"Aug 2015"},{"$f":"ZZZ__FnCalls!F75","v":"Sep 2015"},{"$f":"ZZZ__FnCalls!F76","v":"Oct 2015"},{"$f":"ZZZ__FnCalls!F77","v":"Nov 2015"},{"$f":"ZZZ__FnCalls!F78","v":"Dec 2015"},{"$f":"ZZZ__FnCalls!F67","v":"Jan 2015"},{"$f":"ZZZ__FnCalls!F79","v":"Jan 2016"},{"$f":"ZZZ__FnCalls!F80","v":"Feb 2016"},{"$f":"ZZZ__FnCalls!F81","v":"Mar 2016"},{"$f":"ZZZ__FnCalls!F82","v":"Apr 2016"},{"$f":"ZZZ__FnCalls!F83","v":"May 2016"},{"$f":"ZZZ__FnCalls!F84","v":"Jun 2016"},{"$f":"ZZZ__FnCalls!F85","v":"Jul 2016"},{"$f":"ZZZ__FnCalls!F86","v":"Aug 2016"},{"$f":"ZZZ__FnCalls!F87","v":"Sep 2016"},{"$f":"ZZZ__FnCalls!F88","v":"Oct 2016"},{"$f":"ZZZ__FnCalls!F89","v":"Nov 2016"},{"$f":"ZZZ__FnCalls!F90","v":"Dec 2016"},{"$f":"ZZZ__FnCalls!F79","v":"Jan 2016"},{"$f":"ZZZ__FnCalls!F91","v":"Jan 2017"},{"$f":"ZZZ__FnCalls!F92","v":"Feb 2017"},{"$f":"ZZZ__FnCalls!F93","v":"Mar 2017"},{"$f":"ZZZ__FnCalls!F94","v":"Apr 2017"},{"$f":"ZZZ__FnCalls!F95","v":"May 2017"},{"$f":"ZZZ__FnCalls!F96","v":"Jun 2017"},{"$f":"ZZZ__FnCalls!F97","v":"Jul 2017"},{"$f":"ZZZ__FnCalls!F98","v":"Aug 2017"},{"$f":"ZZZ__FnCalls!F99","v":"Sep 2017"},{"$f":"ZZZ__FnCalls!F100","v":"Oct 2017"},{"$f":"ZZZ__FnCalls!F101","v":"Nov 2017"},{"$f":"ZZZ__FnCalls!F102","v":"Dec 2017"},{"$f":"ZZZ__FnCalls!F91","v":"Jan 2017"},{"$f":"ZZZ__FnCalls!F103","v":"Jan 2018"},{"$f":"ZZZ__FnCalls!F104","v":"Feb 2018"},{"$f":"ZZZ__FnCalls!F105","v":"Mar 2018"},{"$f":"ZZZ__FnCalls!F106","v":"Apr 2018"},{"$f":"ZZZ__FnCalls!F107","v":"May 2018"},{"$f":"ZZZ__FnCalls!F108","v":"Jun 2018"},{"$f":"ZZZ__FnCalls!F109","v":"Jul 2018"},{"$f":"ZZZ__FnCalls!F110","v":"Aug 2018"},{"$f":"ZZZ__FnCalls!F111","v":"Sep 2018"},{"$f":"ZZZ__FnCalls!F112","v":"Oct 2018"},{"$f":"ZZZ__FnCalls!F113","v":"Nov 2018"},{"$f":"ZZZ__FnCalls!F114","v":"Dec 2018"},{"$f":"ZZZ__FnCalls!F103","v":"Jan 2018"},{"$f":"ZZZ__FnCalls!F115","v":"Jan 2019"},{"$f":"ZZZ__FnCalls!F116","v":"Feb 2019"},{"$f":"ZZZ__FnCalls!F117","v":"Mar 2019"},{"$f":"ZZZ__FnCalls!F118","v":"Apr 2019"},{"$f":"ZZZ__FnCalls!F119","v":"May 2019"},{"$f":"ZZZ__FnCalls!F120","v":"Jun 2019"},{"$f":"ZZZ__FnCalls!F121","v":"Jul 2019"},{"$f":"ZZZ__FnCalls!F122","v":"Aug 2019"},{"$f":"ZZZ__FnCalls!F123","v":"Sep 2019"},{"$f":"ZZZ__FnCalls!F124","v":"Oct 2019"},{"$f":"ZZZ__FnCalls!F125","v":"Nov 2019"},{"$f":"ZZZ__FnCalls!F126","v":"Dec 2019"},{"$f":"ZZZ__FnCalls!F115","v":"Jan 2019"},{"$f":"ZZZ__FnCalls!F127","v":"Jan 2020"},{"$f":"ZZZ__FnCalls!F128","v":"Feb 2020"},{"$f":"ZZZ__FnCalls!F129","v":"Mar 2020"},{"$f":"ZZZ__FnCalls!F130","v":"Apr 2020"},{"$f":"ZZZ__FnCalls!F131","v":"May 2020"},{"$f":"ZZZ__FnCalls!F132","v":"Jun 2020"},{"$f":"ZZZ__FnCalls!F133","v":"Jul 2020"},{"$f":"ZZZ__FnCalls!F134","v":"Aug 2020"},{"$f":"ZZZ__FnCalls!F135","v":"Sep 2020"},{"$f":"ZZZ__FnCalls!F136","v":"Oct 2020"},{"$f":"ZZZ__FnCalls!F137","v":"Nov 2020"},{"$f":"ZZZ__FnCalls!F138","v":"Dec 2020"},{"$f":"ZZZ__FnCalls!F127","v":"Jan 2020"}]
[{"$f":"\"Output_mean_1\"","v":"Output_mean_1"}]
[null,{"$f":"ZZZ__FnCalls!F7","v":"Jan 2010"},{"$f":"ZZZ__FnCalls!F8","v":"Feb 2010"},{"$f":"ZZZ__FnCalls!F9","v":"Mar 2010"},{"$f":"ZZZ__FnCalls!F10","v":"Apr 2010"},{"$f":"ZZZ__FnCalls!F11","v":"May 2010"},{"$f":"ZZZ__FnCalls!F12","v":"Jun 2010"},{"$f":"ZZZ__FnCalls!F13","v":"Jul 2010"},{"$f":"ZZZ__FnCalls!F14","v":"Aug 2010"},{"$f":"ZZZ__FnCalls!F15","v":"Sep 2010"},{"$f":"ZZZ__FnCalls!F16","v":"Oct 2010"},{"$f":"ZZZ__FnCalls!F17","v":"Nov 2010"},{"$f":"ZZZ__FnCalls!F18","v":"Dec 2010"},{"$f":"ZZZ__FnCalls!H7","v":"2010"},{"$f":"ZZZ__FnCalls!F19","v":"Jan 2011"},{"$f":"ZZZ__FnCalls!F20","v":"Feb 2011"},{"$f":"ZZZ__FnCalls!F21","v":"Mar 2011"},{"$f":"ZZZ__FnCalls!F22","v":"Apr 2011"},{"$f":"ZZZ__FnCalls!F23","v":"May 2011"},{"$f":"ZZZ__FnCalls!F24","v":"Jun 2011"},{"$f":"ZZZ__FnCalls!F25","v":"Jul 2011"},{"$f":"ZZZ__FnCalls!F26","v":"Aug 2011"},{"$f":"ZZZ__FnCalls!F27","v":"Sep 2011"},{"$f":"ZZZ__FnCalls!F28","v":"Oct 2011"},{"$f":"ZZZ__FnCalls!F29","v":"Nov 2011"},{"$f":"ZZZ__FnCalls!F30","v":"Dec 2011"},{"$f":"ZZZ__FnCalls!H19","v":"2011"},{"$f":"ZZZ__FnCalls!F31","v":"Jan 2012"},{"$f":"ZZZ__FnCalls!F32","v":"Feb 2012"},{"$f":"ZZZ__FnCalls!F33","v":"Mar 2012"},{"$f":"ZZZ__FnCalls!F34","v":"Apr 2012"},{"$f":"ZZZ__FnCalls!F35","v":"May 2012"},{"$f":"ZZZ__FnCalls!F36","v":"Jun 2012"},{"$f":"ZZZ__FnCalls!F37","v":"Jul 2012"},{"$f":"ZZZ__FnCalls!F38","v":"Aug 2012"},{"$f":"ZZZ__FnCalls!F39","v":"Sep 2012"},{"$f":"ZZZ__FnCalls!F40","v":"Oct 2012"},{"$f":"ZZZ__FnCalls!F41","v":"Nov 2012"},{"$f":"ZZZ__FnCalls!F42","v":"Dec 2012"},{"$f":"ZZZ__FnCalls!H31","v":"2012"},{"$f":"ZZZ__FnCalls!F43","v":"Jan 2013"},{"$f":"ZZZ__FnCalls!F44","v":"Feb 2013"},{"$f":"ZZZ__FnCalls!F45","v":"Mar 2013"},{"$f":"ZZZ__FnCalls!F46","v":"Apr 2013"},{"$f":"ZZZ__FnCalls!F47","v":"May 2013"},{"$f":"ZZZ__FnCalls!F48","v":"Jun 2013"},{"$f":"ZZZ__FnCalls!F49","v":"Jul 2013"},{"$f":"ZZZ__FnCalls!F50","v":"Aug 2013"},{"$f":"ZZZ__FnCalls!F51","v":"Sep 2013"},{"$f":"ZZZ__FnCalls!F52","v":"Oct 2013"},{"$f":"ZZZ__FnCalls!F53","v":"Nov 2013"},{"$f":"ZZZ__FnCalls!F54","v":"Dec 2013"},{"$f":"ZZZ__FnCalls!H43","v":"2013"},{"$f":"ZZZ__FnCalls!F55","v":"Jan 2014"},{"$f":"ZZZ__FnCalls!F56","v":"Feb 2014"},{"$f":"ZZZ__FnCalls!F57","v":"Mar 2014"},{"$f":"ZZZ__FnCalls!F58","v":"Apr 2014"},{"$f":"ZZZ__FnCalls!F59","v":"May 2014"},{"$f":"ZZZ__FnCalls!F60","v":"Jun 2014"},{"$f":"ZZZ__FnCalls!F61","v":"Jul 2014"},{"$f":"ZZZ__FnCalls!F62","v":"Aug 2014"},{"$f":"ZZZ__FnCalls!F63","v":"Sep 2014"},{"$f":"ZZZ__FnCalls!F64","v":"Oct 2014"},{"$f":"ZZZ__FnCalls!F65","v":"Nov 2014"},{"$f":"ZZZ__FnCalls!F66","v":"Dec 2014"},{"$f":"ZZZ__FnCalls!H55","v":"2014"},{"$f":"ZZZ__FnCalls!F67","v":"Jan 2015"},{"$f":"ZZZ__FnCalls!F68","v":"Feb 2015"},{"$f":"ZZZ__FnCalls!F69","v":"Mar 2015"},{"$f":"ZZZ__FnCalls!F70","v":"Apr 2015"},{"$f":"ZZZ__FnCalls!F71","v":"May 2015"},{"$f":"ZZZ__FnCalls!F72","v":"Jun 2015"},{"$f":"ZZZ__FnCalls!F73","v":"Jul 2015"},{"$f":"ZZZ__FnCalls!F74","v":"Aug 2015"},{"$f":"ZZZ__FnCalls!F75","v":"Sep 2015"},{"$f":"ZZZ__FnCalls!F76","v":"Oct 2015"},{"$f":"ZZZ__FnCalls!F77","v":"Nov 2015"},{"$f":"ZZZ__FnCalls!F78","v":"Dec 2015"},{"$f":"ZZZ__FnCalls!H67","v":"2015"},{"$f":"ZZZ__FnCalls!F79","v":"Jan 2016"},{"$f":"ZZZ__FnCalls!F80","v":"Feb 2016"},{"$f":"ZZZ__FnCalls!F81","v":"Mar 2016"},{"$f":"ZZZ__FnCalls!F82","v":"Apr 2016"},{"$f":"ZZZ__FnCalls!F83","v":"May 2016"},{"$f":"ZZZ__FnCalls!F84","v":"Jun 2016"},{"$f":"ZZZ__FnCalls!F85","v":"Jul 2016"},{"$f":"ZZZ__FnCalls!F86","v":"Aug 2016"},{"$f":"ZZZ__FnCalls!F87","v":"Sep 2016"},{"$f":"ZZZ__FnCalls!F88","v":"Oct 2016"},{"$f":"ZZZ__FnCalls!F89","v":"Nov 2016"},{"$f":"ZZZ__FnCalls!F90","v":"Dec 2016"},{"$f":"ZZZ__FnCalls!H79","v":"2016"},{"$f":"ZZZ__FnCalls!F91","v":"Jan 2017"},{"$f":"ZZZ__FnCalls!F92","v":"Feb 2017"},{"$f":"ZZZ__FnCalls!F93","v":"Mar 2017"},{"$f":"ZZZ__FnCalls!F94","v":"Apr 2017"},{"$f":"ZZZ__FnCalls!F95","v":"May 2017"},{"$f":"ZZZ__FnCalls!F96","v":"Jun 2017"},{"$f":"ZZZ__FnCalls!F97","v":"Jul 2017"},{"$f":"ZZZ__FnCalls!F98","v":"Aug 2017"},{"$f":"ZZZ__FnCalls!F99","v":"Sep 2017"},{"$f":"ZZZ__FnCalls!F100","v":"Oct 2017"},{"$f":"ZZZ__FnCalls!F101","v":"Nov 2017"},{"$f":"ZZZ__FnCalls!F102","v":"Dec 2017"},{"$f":"ZZZ__FnCalls!H91","v":"2017"},{"$f":"ZZZ__FnCalls!F103","v":"Jan 2018"},{"$f":"ZZZ__FnCalls!F104","v":"Feb 2018"},{"$f":"ZZZ__FnCalls!F105","v":"Mar 2018"},{"$f":"ZZZ__FnCalls!F106","v":"Apr 2018"},{"$f":"ZZZ__FnCalls!F107","v":"May 2018"},{"$f":"ZZZ__FnCalls!F108","v":"Jun 2018"},{"$f":"ZZZ__FnCalls!F109","v":"Jul 2018"},{"$f":"ZZZ__FnCalls!F110","v":"Aug 2018"},{"$f":"ZZZ__FnCalls!F111","v":"Sep 2018"},{"$f":"ZZZ__FnCalls!F112","v":"Oct 2018"},{"$f":"ZZZ__FnCalls!F113","v":"Nov 2018"},{"$f":"ZZZ__FnCalls!F114","v":"Dec 2018"},{"$f":"ZZZ__FnCalls!H103","v":"2018"},{"$f":"ZZZ__FnCalls!F115","v":"Jan 2019"},{"$f":"ZZZ__FnCalls!F116","v":"Feb 2019"},{"$f":"ZZZ__FnCalls!F117","v":"Mar 2019"},{"$f":"ZZZ__FnCalls!F118","v":"Apr 2019"},{"$f":"ZZZ__FnCalls!F119","v":"May 2019"},{"$f":"ZZZ__FnCalls!F120","v":"Jun 2019"},{"$f":"ZZZ__FnCalls!F121","v":"Jul 2019"},{"$f":"ZZZ__FnCalls!F122","v":"Aug 2019"},{"$f":"ZZZ__FnCalls!F123","v":"Sep 2019"},{"$f":"ZZZ__FnCalls!F124","v":"Oct 2019"},{"$f":"ZZZ__FnCalls!F125","v":"Nov 2019"},{"$f":"ZZZ__FnCalls!F126","v":"Dec 2019"},{"$f":"ZZZ__FnCalls!H115","v":"2019"},{"$f":"ZZZ__FnCalls!F127","v":"Jan 2020"},{"$f":"ZZZ__FnCalls!F128","v":"Feb 2020"},{"$f":"ZZZ__FnCalls!F129","v":"Mar 2020"},{"$f":"ZZZ__FnCalls!F130","v":"Apr 2020"},{"$f":"ZZZ__FnCalls!F131","v":"May 2020"},{"$f":"ZZZ__FnCalls!F132","v":"Jun 2020"},{"$f":"ZZZ__FnCalls!F133","v":"Jul 2020"},{"$f":"ZZZ__FnCalls!F134","v":"Aug 2020"},{"$f":"ZZZ__FnCalls!F135","v":"Sep 2020"},{"$f":"ZZZ__FnCalls!F136","v":"Oct 2020"},{"$f":"ZZZ__FnCalls!F137","v":"Nov 2020"},{"$f":"ZZZ__FnCalls!F138","v":"Dec 2020"},{"$f":"ZZZ__FnCalls!H127","v":"2020"}]
[null,{"$f":"ZZZ__FnCalls!A7","v":"2010-01-01"},{"$f":"ZZZ__FnCalls!A8","v":"2010-02-01"},{"$f":"ZZZ__FnCalls!A9","v":"2010-03-01"},{"$f":"ZZZ__FnCalls!A10","v":"2010-04-01"},{"$f":"ZZZ__FnCalls!A11","v":"2010-05-01"},{"$f":"ZZZ__FnCalls!A12","v":"2010-06-01"},{"$f":"ZZZ__FnCalls!A13","v":"2010-07-01"},{"$f":"ZZZ__FnCalls!A14","v":"2010-08-01"},{"$f":"ZZZ__FnCalls!A15","v":"2010-09-01"},{"$f":"ZZZ__FnCalls!A16","v":"2010-10-01"},{"$f":"ZZZ__FnCalls!A17","v":"2010-11-01"},{"$f":"ZZZ__FnCalls!A18","v":"2010-12-01"},{"$f":"ZZZ__FnCalls!A7","v":"2010-01-01"},{"$f":"ZZZ__FnCalls!A19","v":"2011-01-01"},{"$f":"ZZZ__FnCalls!A20","v":"2011-02-01"},{"$f":"ZZZ__FnCalls!A21","v":"2011-03-01"},{"$f":"ZZZ__FnCalls!A22","v":"2011-04-01"},{"$f":"ZZZ__FnCalls!A23","v":"2011-05-01"},{"$f":"ZZZ__FnCalls!A24","v":"2011-06-01"},{"$f":"ZZZ__FnCalls!A25","v":"2011-07-01"},{"$f":"ZZZ__FnCalls!A26","v":"2011-08-01"},{"$f":"ZZZ__FnCalls!A27","v":"2011-09-01"},{"$f":"ZZZ__FnCalls!A28","v":"2011-10-01"},{"$f":"ZZZ__FnCalls!A29","v":"2011-11-01"},{"$f":"ZZZ__FnCalls!A30","v":"2011-12-01"},{"$f":"ZZZ__FnCalls!A19","v":"2011-01-01"},{"$f":"ZZZ__FnCalls!A31","v":"2012-01-01"},{"$f":"ZZZ__FnCalls!A32","v":"2012-02-01"},{"$f":"ZZZ__FnCalls!A33","v":"2012-03-01"},{"$f":"ZZZ__FnCalls!A34","v":"2012-04-01"},{"$f":"ZZZ__FnCalls!A35","v":"2012-05-01"},{"$f":"ZZZ__FnCalls!A36","v":"2012-06-01"},{"$f":"ZZZ__FnCalls!A37","v":"2012-07-01"},{"$f":"ZZZ__FnCalls!A38","v":"2012-08-01"},{"$f":"ZZZ__FnCalls!A39","v":"2012-09-01"},{"$f":"ZZZ__FnCalls!A40","v":"2012-10-01"},{"$f":"ZZZ__FnCalls!A41","v":"2012-11-01"},{"$f":"ZZZ__FnCalls!A42","v":"2012-12-01"},{"$f":"ZZZ__FnCalls!A31","v":"2012-01-01"},{"$f":"ZZZ__FnCalls!A43","v":"2013-01-01"},{"$f":"ZZZ__FnCalls!A44","v":"2013-02-01"},{"$f":"ZZZ__FnCalls!A45","v":"2013-03-01"},{"$f":"ZZZ__FnCalls!A46","v":"2013-04-01"},{"$f":"ZZZ__FnCalls!A47","v":"2013-05-01"},{"$f":"ZZZ__FnCalls!A48","v":"2013-06-01"},{"$f":"ZZZ__FnCalls!A49","v":"2013-07-01"},{"$f":"ZZZ__FnCalls!A50","v":"2013-08-01"},{"$f":"ZZZ__FnCalls!A51","v":"2013-09-01"},{"$f":"ZZZ__FnCalls!A52","v":"2013-10-01"},{"$f":"ZZZ__FnCalls!A53","v":"2013-11-01"},{"$f":"ZZZ__FnCalls!A54","v":"2013-12-01"},{"$f":"ZZZ__FnCalls!A43","v":"2013-01-01"},{"$f":"ZZZ__FnCalls!A55","v":"2014-01-01"},{"$f":"ZZZ__FnCalls!A56","v":"2014-02-01"},{"$f":"ZZZ__FnCalls!A57","v":"2014-03-01"},{"$f":"ZZZ__FnCalls!A58","v":"2014-04-01"},{"$f":"ZZZ__FnCalls!A59","v":"2014-05-01"},{"$f":"ZZZ__FnCalls!A60","v":"2014-06-01"},{"$f":"ZZZ__FnCalls!A61","v":"2014-07-01"},{"$f":"ZZZ__FnCalls!A62","v":"2014-08-01"},{"$f":"ZZZ__FnCalls!A63","v":"2014-09-01"},{"$f":"ZZZ__FnCalls!A64","v":"2014-10-01"},{"$f":"ZZZ__FnCalls!A65","v":"2014-11-01"},{"$f":"ZZZ__FnCalls!A66","v":"2014-12-01"},{"$f":"ZZZ__FnCalls!A55","v":"2014-01-01"},{"$f":"ZZZ__FnCalls!A67","v":"2015-01-01"},{"$f":"ZZZ__FnCalls!A68","v":"2015-02-01"},{"$f":"ZZZ__FnCalls!A69","v":"2015-03-01"},{"$f":"ZZZ__FnCalls!A70","v":"2015-04-01"},{"$f":"ZZZ__FnCalls!A71","v":"2015-05-01"},{"$f":"ZZZ__FnCalls!A72","v":"2015-06-01"},{"$f":"ZZZ__FnCalls!A73","v":"2015-07-01"},{"$f":"ZZZ__FnCalls!A74","v":"2015-08-01"},{"$f":"ZZZ__FnCalls!A75","v":"2015-09-01"},{"$f":"ZZZ__FnCalls!A76","v":"2015-10-01"},{"$f":"ZZZ__FnCalls!A77","v":"2015-11-01"},{"$f":"ZZZ__FnCalls!A78","v":"2015-12-01"},{"$f":"ZZZ__FnCalls!A67","v":"2015-01-01"},{"$f":"ZZZ__FnCalls!A79","v":"2016-01-01"},{"$f":"ZZZ__FnCalls!A80","v":"2016-02-01"},{"$f":"ZZZ__FnCalls!A81","v":"2016-03-01"},{"$f":"ZZZ__FnCalls!A82","v":"2016-04-01"},{"$f":"ZZZ__FnCalls!A83","v":"2016-05-01"},{"$f":"ZZZ__FnCalls!A84","v":"2016-06-01"},{"$f":"ZZZ__FnCalls!A85","v":"2016-07-01"},{"$f":"ZZZ__FnCalls!A86","v":"2016-08-01"},{"$f":"ZZZ__FnCalls!A87","v":"2016-09-01"},{"$f":"ZZZ__FnCalls!A88","v":"2016-10-01"},{"$f":"ZZZ__FnCalls!A89","v":"2016-11-01"},{"$f":"ZZZ__FnCalls!A90","v":"2016-12-01"},{"$f":"ZZZ__FnCalls!A79","v":"2016-01-01"},{"$f":"ZZZ__FnCalls!A91","v":"2017-01-01"},{"$f":"ZZZ__FnCalls!A92","v":"2017-02-01"},{"$f":"ZZZ__FnCalls!A93","v":"2017-03-01"},{"$f":"ZZZ__FnCalls!A94","v":"2017-04-01"},{"$f":"ZZZ__FnCalls!A95","v":"2017-05-01"},{"$f":"ZZZ__FnCalls!A96","v":"2017-06-01"},{"$f":"ZZZ__FnCalls!A97","v":"2017-07-01"},{"$f":"ZZZ__FnCalls!A98","v":"2017-08-01"},{"$f":"ZZZ__FnCalls!A99","v":"2017-09-01"},{"$f":"ZZZ__FnCalls!A100","v":"2017-10-01"},{"$f":"ZZZ__FnCalls!A101","v":"2017-11-01"},{"$f":"ZZZ__FnCalls!A102","v":"2017-12-01"},{"$f":"ZZZ__FnCalls!A91","v":"2017-01-01"},{"$f":"ZZZ__FnCalls!A103","v":"2018-01-01"},{"$f":"ZZZ__FnCalls!A104","v":"2018-02-01"},{"$f":"ZZZ__FnCalls!A105","v":"2018-03-01"},{"$f":"ZZZ__FnCalls!A106","v":"2018-04-01"},{"$f":"ZZZ__FnCalls!A107","v":"2018-05-01"},{"$f":"ZZZ__FnCalls!A108","v":"2018-06-01"},{"$f":"ZZZ__FnCalls!A109","v":"2018-07-01"},{"$f":"ZZZ__FnCalls!A110","v":"2018-08-01"},{"$f":"ZZZ__FnCalls!A111","v":"2018-09-01"},{"$f":"ZZZ__FnCalls!A112","v":"2018-10-01"},{"$f":"ZZZ__FnCalls!A113","v":"2018-11-01"},{"$f":"ZZZ__FnCalls!A114","v":"2018-12-01"},{"$f":"ZZZ__FnCalls!A103","v":"2018-01-01"},{"$f":"ZZZ__FnCalls!A115","v":"2019-01-01"},{"$f":"ZZZ__FnCalls!A116","v":"2019-02-01"},{"$f":"ZZZ__FnCalls!A117","v":"2019-03-01"},{"$f":"ZZZ__FnCalls!A118","v":"2019-04-01"},{"$f":"ZZZ__FnCalls!A119","v":"2019-05-01"},{"$f":"ZZZ__FnCalls!A120","v":"2019-06-01"},{"$f":"ZZZ__FnCalls!A121","v":"2019-07-01"},{"$f":"ZZZ__FnCalls!A122","v":"2019-08-01"},{"$f":"ZZZ__FnCalls!A123","v":"2019-09-01"},{"$f":"ZZZ__FnCalls!A124","v":"2019-10-01"},{"$f":"ZZZ__FnCalls!A125","v":"2019-11-01"},{"$f":"ZZZ__FnCalls!A126","v":"2019-12-01"},{"$f":"ZZZ__FnCalls!A115","v":"2019-01-01"},{"$f":"ZZZ__FnCalls!A127","v":"2020-01-01"},{"$f":"ZZZ__FnCalls!A128","v":"2020-02-01"},{"$f":"ZZZ__FnCalls!A129","v":"2020-03-01"},{"$f":"ZZZ__FnCalls!A130","v":"2020-04-01"},{"$f":"ZZZ__FnCalls!A131","v":"2020-05-01"},{"$f":"ZZZ__FnCalls!A132","v":"2020-06-01"},{"$f":"ZZZ__FnCalls!A133","v":"2020-07-01"},{"$f":"ZZZ__FnCalls!A134","v":"2020-08-01"},{"$f":"ZZZ__FnCalls!A135","v":"2020-09-01"},{"$f":"ZZZ__FnCalls!A136","v":"2020-10-01"},{"$f":"ZZZ__FnCalls!A137","v":"2020-11-01"},{"$f":"ZZZ__FnCalls!A138","v":"2020-12-01"},{"$f":"ZZZ__FnCalls!A127","v":"2020-01-01"}]
[{"$f":"\"Output_mean_2\"","v":"Output_mean_2"}]
[null,{"$f":"ZZZ__FnCalls!F7","v":"Jan 2010"},{"$f":"ZZZ__FnCalls!F8","v":"Feb 2010"},{"$f":"ZZZ__FnCalls!F9","v":"Mar 2010"},{"$f":"ZZZ__FnCalls!F10","v":"Apr 2010"},{"$f":"ZZZ__FnCalls!F11","v":"May 2010"},{"$f":"ZZZ__FnCalls!F12","v":"Jun 2010"},{"$f":"ZZZ__FnCalls!F13","v":"Jul 2010"},{"$f":"ZZZ__FnCalls!F14","v":"Aug 2010"},{"$f":"ZZZ__FnCalls!F15","v":"Sep 2010"},{"$f":"ZZZ__FnCalls!F16","v":"Oct 2010"},{"$f":"ZZZ__FnCalls!F17","v":"Nov 2010"},{"$f":"ZZZ__FnCalls!F18","v":"Dec 2010"},{"$f":"ZZZ__FnCalls!H7","v":"2010"},{"$f":"ZZZ__FnCalls!F19","v":"Jan 2011"},{"$f":"ZZZ__FnCalls!F20","v":"Feb 2011"},{"$f":"ZZZ__FnCalls!F21","v":"Mar 2011"},{"$f":"ZZZ__FnCalls!F22","v":"Apr 2011"},{"$f":"ZZZ__FnCalls!F23","v":"May 2011"},{"$f":"ZZZ__FnCalls!F24","v":"Jun 2011"},{"$f":"ZZZ__FnCalls!F25","v":"Jul 2011"},{"$f":"ZZZ__FnCalls!F26","v":"Aug 2011"},{"$f":"ZZZ__FnCalls!F27","v":"Sep 2011"},{"$f":"ZZZ__FnCalls!F28","v":"Oct 2011"},{"$f":"ZZZ__FnCalls!F29","v":"Nov 2011"},{"$f":"ZZZ__FnCalls!F30","v":"Dec 2011"},{"$f":"ZZZ__FnCalls!H19","v":"2011"},{"$f":"ZZZ__FnCalls!F31","v":"Jan 2012"},{"$f":"ZZZ__FnCalls!F32","v":"Feb 2012"},{"$f":"ZZZ__FnCalls!F33","v":"Mar 2012"},{"$f":"ZZZ__FnCalls!F34","v":"Apr 2012"},{"$f":"ZZZ__FnCalls!F35","v":"May 2012"},{"$f":"ZZZ__FnCalls!F36","v":"Jun 2012"},{"$f":"ZZZ__FnCalls!F37","v":"Jul 2012"},{"$f":"ZZZ__FnCalls!F38","v":"Aug 2012"},{"$f":"ZZZ__FnCalls!F39","v":"Sep 2012"},{"$f":"ZZZ__FnCalls!F40","v":"Oct 2012"},{"$f":"ZZZ__FnCalls!F41","v":"Nov 2012"},{"$f":"ZZZ__FnCalls!F42","v":"Dec 2012"},{"$f":"ZZZ__FnCalls!H31","v":"2012"},{"$f":"ZZZ__FnCalls!F43","v":"Jan 2013"},{"$f":"ZZZ__FnCalls!F44","v":"Feb 2013"},{"$f":"ZZZ__FnCalls!F45","v":"Mar 2013"},{"$f":"ZZZ__FnCalls!F46","v":"Apr 2013"},{"$f":"ZZZ__FnCalls!F47","v":"May 2013"},{"$f":"ZZZ__FnCalls!F48","v":"Jun 2013"},{"$f":"ZZZ__FnCalls!F49","v":"Jul 2013"},{"$f":"ZZZ__FnCalls!F50","v":"Aug 2013"},{"$f":"ZZZ__FnCalls!F51","v":"Sep 2013"},{"$f":"ZZZ__FnCalls!F52","v":"Oct 2013"},{"$f":"ZZZ__FnCalls!F53","v":"Nov 2013"},{"$f":"ZZZ__FnCalls!F54","v":"Dec 2013"},{"$f":"ZZZ__FnCalls!H43","v":"2013"},{"$f":"ZZZ__FnCalls!F55","v":"Jan 2014"},{"$f":"ZZZ__FnCalls!F56","v":"Feb 2014"},{"$f":"ZZZ__FnCalls!F57","v":"Mar 2014"},{"$f":"ZZZ__FnCalls!F58","v":"Apr 2014"},{"$f":"ZZZ__FnCalls!F59","v":"May 2014"},{"$f":"ZZZ__FnCalls!F60","v":"Jun 2014"},{"$f":"ZZZ__FnCalls!F61","v":"Jul 2014"},{"$f":"ZZZ__FnCalls!F62","v":"Aug 2014"},{"$f":"ZZZ__FnCalls!F63","v":"Sep 2014"},{"$f":"ZZZ__FnCalls!F64","v":"Oct 2014"},{"$f":"ZZZ__FnCalls!F65","v":"Nov 2014"},{"$f":"ZZZ__FnCalls!F66","v":"Dec 2014"},{"$f":"ZZZ__FnCalls!H55","v":"2014"},{"$f":"ZZZ__FnCalls!F67","v":"Jan 2015"},{"$f":"ZZZ__FnCalls!F68","v":"Feb 2015"},{"$f":"ZZZ__FnCalls!F69","v":"Mar 2015"},{"$f":"ZZZ__FnCalls!F70","v":"Apr 2015"},{"$f":"ZZZ__FnCalls!F71","v":"May 2015"},{"$f":"ZZZ__FnCalls!F72","v":"Jun 2015"},{"$f":"ZZZ__FnCalls!F73","v":"Jul 2015"},{"$f":"ZZZ__FnCalls!F74","v":"Aug 2015"},{"$f":"ZZZ__FnCalls!F75","v":"Sep 2015"},{"$f":"ZZZ__FnCalls!F76","v":"Oct 2015"},{"$f":"ZZZ__FnCalls!F77","v":"Nov 2015"},{"$f":"ZZZ__FnCalls!F78","v":"Dec 2015"},{"$f":"ZZZ__FnCalls!H67","v":"2015"},{"$f":"ZZZ__FnCalls!F79","v":"Jan 2016"},{"$f":"ZZZ__FnCalls!F80","v":"Feb 2016"},{"$f":"ZZZ__FnCalls!F81","v":"Mar 2016"},{"$f":"ZZZ__FnCalls!F82","v":"Apr 2016"},{"$f":"ZZZ__FnCalls!F83","v":"May 2016"},{"$f":"ZZZ__FnCalls!F84","v":"Jun 2016"},{"$f":"ZZZ__FnCalls!F85","v":"Jul 2016"},{"$f":"ZZZ__FnCalls!F86","v":"Aug 2016"},{"$f":"ZZZ__FnCalls!F87","v":"Sep 2016"},{"$f":"ZZZ__FnCalls!F88","v":"Oct 2016"},{"$f":"ZZZ__FnCalls!F89","v":"Nov 2016"},{"$f":"ZZZ__FnCalls!F90","v":"Dec 2016"},{"$f":"ZZZ__FnCalls!H79","v":"2016"},{"$f":"ZZZ__FnCalls!F91","v":"Jan 2017"},{"$f":"ZZZ__FnCalls!F92","v":"Feb 2017"},{"$f":"ZZZ__FnCalls!F93","v":"Mar 2017"},{"$f":"ZZZ__FnCalls!F94","v":"Apr 2017"},{"$f":"ZZZ__FnCalls!F95","v":"May 2017"},{"$f":"ZZZ__FnCalls!F96","v":"Jun 2017"},{"$f":"ZZZ__FnCalls!F97","v":"Jul 2017"},{"$f":"ZZZ__FnCalls!F98","v":"Aug 2017"},{"$f":"ZZZ__FnCalls!F99","v":"Sep 2017"},{"$f":"ZZZ__FnCalls!F100","v":"Oct 2017"},{"$f":"ZZZ__FnCalls!F101","v":"Nov 2017"},{"$f":"ZZZ__FnCalls!F102","v":"Dec 2017"},{"$f":"ZZZ__FnCalls!H91","v":"2017"},{"$f":"ZZZ__FnCalls!F103","v":"Jan 2018"},{"$f":"ZZZ__FnCalls!F104","v":"Feb 2018"},{"$f":"ZZZ__FnCalls!F105","v":"Mar 2018"},{"$f":"ZZZ__FnCalls!F106","v":"Apr 2018"},{"$f":"ZZZ__FnCalls!F107","v":"May 2018"},{"$f":"ZZZ__FnCalls!F108","v":"Jun 2018"},{"$f":"ZZZ__FnCalls!F109","v":"Jul 2018"},{"$f":"ZZZ__FnCalls!F110","v":"Aug 2018"},{"$f":"ZZZ__FnCalls!F111","v":"Sep 2018"},{"$f":"ZZZ__FnCalls!F112","v":"Oct 2018"},{"$f":"ZZZ__FnCalls!F113","v":"Nov 2018"},{"$f":"ZZZ__FnCalls!F114","v":"Dec 2018"},{"$f":"ZZZ__FnCalls!H103","v":"2018"},{"$f":"ZZZ__FnCalls!F115","v":"Jan 2019"},{"$f":"ZZZ__FnCalls!F116","v":"Feb 2019"},{"$f":"ZZZ__FnCalls!F117","v":"Mar 2019"},{"$f":"ZZZ__FnCalls!F118","v":"Apr 2019"},{"$f":"ZZZ__FnCalls!F119","v":"May 2019"},{"$f":"ZZZ__FnCalls!F120","v":"Jun 2019"},{"$f":"ZZZ__FnCalls!F121","v":"Jul 2019"},{"$f":"ZZZ__FnCalls!F122","v":"Aug 2019"},{"$f":"ZZZ__FnCalls!F123","v":"Sep 2019"},{"$f":"ZZZ__FnCalls!F124","v":"Oct 2019"},{"$f":"ZZZ__FnCalls!F125","v":"Nov 2019"},{"$f":"ZZZ__FnCalls!F126","v":"Dec 2019"},{"$f":"ZZZ__FnCalls!H115","v":"2019"},{"$f":"ZZZ__FnCalls!F127","v":"Jan 2020"},{"$f":"ZZZ__FnCalls!F128","v":"Feb 2020"},{"$f":"ZZZ__FnCalls!F129","v":"Mar 2020"},{"$f":"ZZZ__FnCalls!F130","v":"Apr 2020"},{"$f":"ZZZ__FnCalls!F131","v":"May 2020"},{"$f":"ZZZ__FnCalls!F132","v":"Jun 2020"},{"$f":"ZZZ__FnCalls!F133","v":"Jul 2020"},{"$f":"ZZZ__FnCalls!F134","v":"Aug 2020"},{"$f":"ZZZ__FnCalls!F135","v":"Sep 2020"},{"$f":"ZZZ__FnCalls!F136","v":"Oct 2020"},{"$f":"ZZZ__FnCalls!F137","v":"Nov 2020"},{"$f":"ZZZ__FnCalls!F138","v":"Dec 2020"},{"$f":"ZZZ__FnCalls!H127","v":"2020"}]
[null,{"$f":"ZZZ__FnCalls!F7","v":"Jan 2010"},{"$f":"ZZZ__FnCalls!F8","v":"Feb 2010"},{"$f":"ZZZ__FnCalls!F9","v":"Mar 2010"},{"$f":"ZZZ__FnCalls!F10","v":"Apr 2010"},{"$f":"ZZZ__FnCalls!F11","v":"May 2010"},{"$f":"ZZZ__FnCalls!F12","v":"Jun 2010"},{"$f":"ZZZ__FnCalls!F13","v":"Jul 2010"},{"$f":"ZZZ__FnCalls!F14","v":"Aug 2010"},{"$f":"ZZZ__FnCalls!F15","v":"Sep 2010"},{"$f":"ZZZ__FnCalls!F16","v":"Oct 2010"},{"$f":"ZZZ__FnCalls!F17","v":"Nov 2010"},{"$f":"ZZZ__FnCalls!F18","v":"Dec 2010"},{"$f":"ZZZ__FnCalls!F7","v":"Jan 2010"},{"$f":"ZZZ__FnCalls!F19","v":"Jan 2011"},{"$f":"ZZZ__FnCalls!F20","v":"Feb 2011"},{"$f":"ZZZ__FnCalls!F21","v":"Mar 2011"},{"$f":"ZZZ__FnCalls!F22","v":"Apr 2011"},{"$f":"ZZZ__FnCalls!F23","v":"May 2011"},{"$f":"ZZZ__FnCalls!F24","v":"Jun 2011"},{"$f":"ZZZ__FnCalls!F25","v":"Jul 2011"},{"$f":"ZZZ__FnCalls!F26","v":"Aug 2011"},{"$f":"ZZZ__FnCalls!F27","v":"Sep 2011"},{"$f":"ZZZ__FnCalls!F28","v":"Oct 2011"},{"$f":"ZZZ__FnCalls!F29","v":"Nov 2011"},{"$f":"ZZZ__FnCalls!F30","v":"Dec 2011"},{"$f":"ZZZ__FnCalls!F19","v":"Jan 2011"},{"$f":"ZZZ__FnCalls!F31","v":"Jan 2012"},{"$f":"ZZZ__FnCalls!F32","v":"Feb 2012"},{"$f":"ZZZ__FnCalls!F33","v":"Mar 2012"},{"$f":"ZZZ__FnCalls!F34","v":"Apr 2012"},{"$f":"ZZZ__FnCalls!F35","v":"May 2012"},{"$f":"ZZZ__FnCalls!F36","v":"Jun 2012"},{"$f":"ZZZ__FnCalls!F37","v":"Jul 2012"},{"$f":"ZZZ__FnCalls!F38","v":"Aug 2012"},{"$f":"ZZZ__FnCalls!F39","v":"Sep 2012"},{"$f":"ZZZ__FnCalls!F40","v":"Oct 2012"},{"$f":"ZZZ__FnCalls!F41","v":"Nov 2012"},{"$f":"ZZZ__FnCalls!F42","v":"Dec 2012"},{"$f":"ZZZ__FnCalls!F31","v":"Jan 2012"},{"$f":"ZZZ__FnCalls!F43","v":"Jan 2013"},{"$f":"ZZZ__FnCalls!F44","v":"Feb 2013"},{"$f":"ZZZ__FnCalls!F45","v":"Mar 2013"},{"$f":"ZZZ__FnCalls!F46","v":"Apr 2013"},{"$f":"ZZZ__FnCalls!F47","v":"May 2013"},{"$f":"ZZZ__FnCalls!F48","v":"Jun 2013"},{"$f":"ZZZ__FnCalls!F49","v":"Jul 2013"},{"$f":"ZZZ__FnCalls!F50","v":"Aug 2013"},{"$f":"ZZZ__FnCalls!F51","v":"Sep 2013"},{"$f":"ZZZ__FnCalls!F52","v":"Oct 2013"},{"$f":"ZZZ__FnCalls!F53","v":"Nov 2013"},{"$f":"ZZZ__FnCalls!F54","v":"Dec 2013"},{"$f":"ZZZ__FnCalls!F43","v":"Jan 2013"},{"$f":"ZZZ__FnCalls!F55","v":"Jan 2014"},{"$f":"ZZZ__FnCalls!F56","v":"Feb 2014"},{"$f":"ZZZ__FnCalls!F57","v":"Mar 2014"},{"$f":"ZZZ__FnCalls!F58","v":"Apr 2014"},{"$f":"ZZZ__FnCalls!F59","v":"May 2014"},{"$f":"ZZZ__FnCalls!F60","v":"Jun 2014"},{"$f":"ZZZ__FnCalls!F61","v":"Jul 2014"},{"$f":"ZZZ__FnCalls!F62","v":"Aug 2014"},{"$f":"ZZZ__FnCalls!F63","v":"Sep 2014"},{"$f":"ZZZ__FnCalls!F64","v":"Oct 2014"},{"$f":"ZZZ__FnCalls!F65","v":"Nov 2014"},{"$f":"ZZZ__FnCalls!F66","v":"Dec 2014"},{"$f":"ZZZ__FnCalls!F55","v":"Jan 2014"},{"$f":"ZZZ__FnCalls!F67","v":"Jan 2015"},{"$f":"ZZZ__FnCalls!F68","v":"Feb 2015"},{"$f":"ZZZ__FnCalls!F69","v":"Mar 2015"},{"$f":"ZZZ__FnCalls!F70","v":"Apr 2015"},{"$f":"ZZZ__FnCalls!F71","v":"May 2015"},{"$f":"ZZZ__FnCalls!F72","v":"Jun 2015"},{"$f":"ZZZ__FnCalls!F73","v":"Jul 2015"},{"$f":"ZZZ__FnCalls!F74","v":"Aug 2015"},{"$f":"ZZZ__FnCalls!F75","v":"Sep 2015"},{"$f":"ZZZ__FnCalls!F76","v":"Oct 2015"},{"$f":"ZZZ__FnCalls!F77","v":"Nov 2015"},{"$f":"ZZZ__FnCalls!F78","v":"Dec 2015"},{"$f":"ZZZ__FnCalls!F67","v":"Jan 2015"},{"$f":"ZZZ__FnCalls!F79","v":"Jan 2016"},{"$f":"ZZZ__FnCalls!F80","v":"Feb 2016"},{"$f":"ZZZ__FnCalls!F81","v":"Mar 2016"},{"$f":"ZZZ__FnCalls!F82","v":"Apr 2016"},{"$f":"ZZZ__FnCalls!F83","v":"May 2016"},{"$f":"ZZZ__FnCalls!F84","v":"Jun 2016"},{"$f":"ZZZ__FnCalls!F85","v":"Jul 2016"},{"$f":"ZZZ__FnCalls!F86","v":"Aug 2016"},{"$f":"ZZZ__FnCalls!F87","v":"Sep 2016"},{"$f":"ZZZ__FnCalls!F88","v":"Oct 2016"},{"$f":"ZZZ__FnCalls!F89","v":"Nov 2016"},{"$f":"ZZZ__FnCalls!F90","v":"Dec 2016"},{"$f":"ZZZ__FnCalls!F79","v":"Jan 2016"},{"$f":"ZZZ__FnCalls!F91","v":"Jan 2017"},{"$f":"ZZZ__FnCalls!F92","v":"Feb 2017"},{"$f":"ZZZ__FnCalls!F93","v":"Mar 2017"},{"$f":"ZZZ__FnCalls!F94","v":"Apr 2017"},{"$f":"ZZZ__FnCalls!F95","v":"May 2017"},{"$f":"ZZZ__FnCalls!F96","v":"Jun 2017"},{"$f":"ZZZ__FnCalls!F97","v":"Jul 2017"},{"$f":"ZZZ__FnCalls!F98","v":"Aug 2017"},{"$f":"ZZZ__FnCalls!F99","v":"Sep 2017"},{"$f":"ZZZ__FnCalls!F100","v":"Oct 2017"},{"$f":"ZZZ__FnCalls!F101","v":"Nov 2017"},{"$f":"ZZZ__FnCalls!F102","v":"Dec 2017"},{"$f":"ZZZ__FnCalls!F91","v":"Jan 2017"},{"$f":"ZZZ__FnCalls!F103","v":"Jan 2018"},{"$f":"ZZZ__FnCalls!F104","v":"Feb 2018"},{"$f":"ZZZ__FnCalls!F105","v":"Mar 2018"},{"$f":"ZZZ__FnCalls!F106","v":"Apr 2018"},{"$f":"ZZZ__FnCalls!F107","v":"May 2018"},{"$f":"ZZZ__FnCalls!F108","v":"Jun 2018"},{"$f":"ZZZ__FnCalls!F109","v":"Jul 2018"},{"$f":"ZZZ__FnCalls!F110","v":"Aug 2018"},{"$f":"ZZZ__FnCalls!F111","v":"Sep 2018"},{"$f":"ZZZ__FnCalls!F112","v":"Oct 2018"},{"$f":"ZZZ__FnCalls!F113","v":"Nov 2018"},{"$f":"ZZZ__FnCalls!F114","v":"Dec 2018"},{"$f":"ZZZ__FnCalls!F103","v":"Jan 2018"},{"$f":"ZZZ__FnCalls!F115","v":"Jan 2019"},{"$f":"ZZZ__FnCalls!F116","v":"Feb 2019"},{"$f":"ZZZ__FnCalls!F117","v":"Mar 2019"},{"$f":"ZZZ__FnCalls!F118","v":"Apr 2019"},{"$f":"ZZZ__FnCalls!F119","v":"May 2019"},{"$f":"ZZZ__FnCalls!F120","v":"Jun 2019"},{"$f":"ZZZ__FnCalls!F121","v":"Jul 2019"},{"$f":"ZZZ__FnCalls!F122","v":"Aug 2019"},{"$f":"ZZZ__FnCalls!F123","v":"Sep 2019"},{"$f":"ZZZ__FnCalls!F124","v":"Oct 2019"},{"$f":"ZZZ__FnCalls!F125","v":"Nov 2019"},{"$f":"ZZZ__FnCalls!F126","v":"Dec 2019"},{"$f":"ZZZ__FnCalls!F115","v":"Jan 2019"},{"$f":"ZZZ__FnCalls!F127","v":"Jan 2020"},{"$f":"ZZZ__FnCalls!F128","v":"Feb 2020"},{"$f":"ZZZ__FnCalls!F129","v":"Mar 2020"},{"$f":"ZZZ__FnCalls!F130","v":"Apr 2020"},{"$f":"ZZZ__FnCalls!F131","v":"May 2020"},{"$f":"ZZZ__FnCalls!F132","v":"Jun 2020"},{"$f":"ZZZ__FnCalls!F133","v":"Jul 2020"},{"$f":"ZZZ__FnCalls!F134","v":"Aug 2020"},{"$f":"ZZZ__FnCalls!F135","v":"Sep 2020"},{"$f":"ZZZ__FnCalls!F136","v":"Oct 2020"},{"$f":"ZZZ__FnCalls!F137","v":"Nov 2020"},{"$f":"ZZZ__FnCalls!F138","v":"Dec 2020"},{"$f":"ZZZ__FnCalls!F127","v":"Jan 2020"}]
[{"$f":"\"Output_stdev_1\"","v":"Output_stdev_1"}]
[null,{"$f":"ZZZ__FnCalls!F7","v":"Jan 2010"},{"$f":"ZZZ__FnCalls!F8","v":"Feb 2010"},{"$f":"ZZZ__FnCalls!F9","v":"Mar 2010"},{"$f":"ZZZ__FnCalls!F10","v":"Apr 2010"},{"$f":"ZZZ__FnCalls!F11","v":"May 2010"},{"$f":"ZZZ__FnCalls!F12","v":"Jun 2010"},{"$f":"ZZZ__FnCalls!F13","v":"Jul 2010"},{"$f":"ZZZ__FnCalls!F14","v":"Aug 2010"},{"$f":"ZZZ__FnCalls!F15","v":"Sep 2010"},{"$f":"ZZZ__FnCalls!F16","v":"Oct 2010"},{"$f":"ZZZ__FnCalls!F17","v":"Nov 2010"},{"$f":"ZZZ__FnCalls!F18","v":"Dec 2010"},{"$f":"ZZZ__FnCalls!H7","v":"2010"},{"$f":"ZZZ__FnCalls!F19","v":"Jan 2011"},{"$f":"ZZZ__FnCalls!F20","v":"Feb 2011"},{"$f":"ZZZ__FnCalls!F21","v":"Mar 2011"},{"$f":"ZZZ__FnCalls!F22","v":"Apr 2011"},{"$f":"ZZZ__FnCalls!F23","v":"May 2011"},{"$f":"ZZZ__FnCalls!F24","v":"Jun 2011"},{"$f":"ZZZ__FnCalls!F25","v":"Jul 2011"},{"$f":"ZZZ__FnCalls!F26","v":"Aug 2011"},{"$f":"ZZZ__FnCalls!F27","v":"Sep 2011"},{"$f":"ZZZ__FnCalls!F28","v":"Oct 2011"},{"$f":"ZZZ__FnCalls!F29","v":"Nov 2011"},{"$f":"ZZZ__FnCalls!F30","v":"Dec 2011"},{"$f":"ZZZ__FnCalls!H19","v":"2011"},{"$f":"ZZZ__FnCalls!F31","v":"Jan 2012"},{"$f":"ZZZ__FnCalls!F32","v":"Feb 2012"},{"$f":"ZZZ__FnCalls!F33","v":"Mar 2012"},{"$f":"ZZZ__FnCalls!F34","v":"Apr 2012"},{"$f":"ZZZ__FnCalls!F35","v":"May 2012"},{"$f":"ZZZ__FnCalls!F36","v":"Jun 2012"},{"$f":"ZZZ__FnCalls!F37","v":"Jul 2012"},{"$f":"ZZZ__FnCalls!F38","v":"Aug 2012"},{"$f":"ZZZ__FnCalls!F39","v":"Sep 2012"},{"$f":"ZZZ__FnCalls!F40","v":"Oct 2012"},{"$f":"ZZZ__FnCalls!F41","v":"Nov 2012"},{"$f":"ZZZ__FnCalls!F42","v":"Dec 2012"},{"$f":"ZZZ__FnCalls!H31","v":"2012"},{"$f":"ZZZ__FnCalls!F43","v":"Jan 2013"},{"$f":"ZZZ__FnCalls!F44","v":"Feb 2013"},{"$f":"ZZZ__FnCalls!F45","v":"Mar 2013"},{"$f":"ZZZ__FnCalls!F46","v":"Apr 2013"},{"$f":"ZZZ__FnCalls!F47","v":"May 2013"},{"$f":"ZZZ__FnCalls!F48","v":"Jun 2013"},{"$f":"ZZZ__FnCalls!F49","v":"Jul 2013"},{"$f":"ZZZ__FnCalls!F50","v":"Aug 2013"},{"$f":"ZZZ__FnCalls!F51","v":"Sep 2013"},{"$f":"ZZZ__FnCalls!F52","v":"Oct 2013"},{"$f":"ZZZ__FnCalls!F53","v":"Nov 2013"},{"$f":"ZZZ__FnCalls!F54","v":"Dec 2013"},{"$f":"ZZZ__FnCalls!H43","v":"2013"},{"$f":"ZZZ__FnCalls!F55","v":"Jan 2014"},{"$f":"ZZZ__FnCalls!F56","v":"Feb 2014"},{"$f":"ZZZ__FnCalls!F57","v":"Mar 2014"},{"$f":"ZZZ__FnCalls!F58","v":"Apr 2014"},{"$f":"ZZZ__FnCalls!F59","v":"May 2014"},{"$f":"ZZZ__FnCalls!F60","v":"Jun 2014"},{"$f":"ZZZ__FnCalls!F61","v":"Jul 2014"},{"$f":"ZZZ__FnCalls!F62","v":"Aug 2014"},{"$f":"ZZZ__FnCalls!F63","v":"Sep 2014"},{"$f":"ZZZ__FnCalls!F64","v":"Oct 2014"},{"$f":"ZZZ__FnCalls!F65","v":"Nov 2014"},{"$f":"ZZZ__FnCalls!F66","v":"Dec 2014"},{"$f":"ZZZ__FnCalls!H55","v":"2014"},{"$f":"ZZZ__FnCalls!F67","v":"Jan 2015"},{"$f":"ZZZ__FnCalls!F68","v":"Feb 2015"},{"$f":"ZZZ__FnCalls!F69","v":"Mar 2015"},{"$f":"ZZZ__FnCalls!F70","v":"Apr 2015"},{"$f":"ZZZ__FnCalls!F71","v":"May 2015"},{"$f":"ZZZ__FnCalls!F72","v":"Jun 2015"},{"$f":"ZZZ__FnCalls!F73","v":"Jul 2015"},{"$f":"ZZZ__FnCalls!F74","v":"Aug 2015"},{"$f":"ZZZ__FnCalls!F75","v":"Sep 2015"},{"$f":"ZZZ__FnCalls!F76","v":"Oct 2015"},{"$f":"ZZZ__FnCalls!F77","v":"Nov 2015"},{"$f":"ZZZ__FnCalls!F78","v":"Dec 2015"},{"$f":"ZZZ__FnCalls!H67","v":"2015"},{"$f":"ZZZ__FnCalls!F79","v":"Jan 2016"},{"$f":"ZZZ__FnCalls!F80","v":"Feb 2016"},{"$f":"ZZZ__FnCalls!F81","v":"Mar 2016"},{"$f":"ZZZ__FnCalls!F82","v":"Apr 2016"},{"$f":"ZZZ__FnCalls!F83","v":"May 2016"},{"$f":"ZZZ__FnCalls!F84","v":"Jun 2016"},{"$f":"ZZZ__FnCalls!F85","v":"Jul 2016"},{"$f":"ZZZ__FnCalls!F86","v":"Aug 2016"},{"$f":"ZZZ__FnCalls!F87","v":"Sep 2016"},{"$f":"ZZZ__FnCalls!F88","v":"Oct 2016"},{"$f":"ZZZ__FnCalls!F89","v":"Nov 2016"},{"$f":"ZZZ__FnCalls!F90","v":"Dec 2016"},{"$f":"ZZZ__FnCalls!H79","v":"2016"},{"$f":"ZZZ__FnCalls!F91","v":"Jan 2017"},{"$f":"ZZZ__FnCalls!F92","v":"Feb 2017"},{"$f":"ZZZ__FnCalls!F93","v":"Mar 2017"},{"$f":"ZZZ__FnCalls!F94","v":"Apr 2017"},{"$f":"ZZZ__FnCalls!F95","v":"May 2017"},{"$f":"ZZZ__FnCalls!F96","v":"Jun 2017"},{"$f":"ZZZ__FnCalls!F97","v":"Jul 2017"},{"$f":"ZZZ__FnCalls!F98","v":"Aug 2017"},{"$f":"ZZZ__FnCalls!F99","v":"Sep 2017"},{"$f":"ZZZ__FnCalls!F100","v":"Oct 2017"},{"$f":"ZZZ__FnCalls!F101","v":"Nov 2017"},{"$f":"ZZZ__FnCalls!F102","v":"Dec 2017"},{"$f":"ZZZ__FnCalls!H91","v":"2017"},{"$f":"ZZZ__FnCalls!F103","v":"Jan 2018"},{"$f":"ZZZ__FnCalls!F104","v":"Feb 2018"},{"$f":"ZZZ__FnCalls!F105","v":"Mar 2018"},{"$f":"ZZZ__FnCalls!F106","v":"Apr 2018"},{"$f":"ZZZ__FnCalls!F107","v":"May 2018"},{"$f":"ZZZ__FnCalls!F108","v":"Jun 2018"},{"$f":"ZZZ__FnCalls!F109","v":"Jul 2018"},{"$f":"ZZZ__FnCalls!F110","v":"Aug 2018"},{"$f":"ZZZ__FnCalls!F111","v":"Sep 2018"},{"$f":"ZZZ__FnCalls!F112","v":"Oct 2018"},{"$f":"ZZZ__FnCalls!F113","v":"Nov 2018"},{"$f":"ZZZ__FnCalls!F114","v":"Dec 2018"},{"$f":"ZZZ__FnCalls!H103","v":"2018"},{"$f":"ZZZ__FnCalls!F115","v":"Jan 2019"},{"$f":"ZZZ__FnCalls!F116","v":"Feb 2019"},{"$f":"ZZZ__FnCalls!F117","v":"Mar 2019"},{"$f":"ZZZ__FnCalls!F118","v":"Apr 2019"},{"$f":"ZZZ__FnCalls!F119","v":"May 2019"},{"$f":"ZZZ__FnCalls!F120","v":"Jun 2019"},{"$f":"ZZZ__FnCalls!F121","v":"Jul 2019"},{"$f":"ZZZ__FnCalls!F122","v":"Aug 2019"},{"$f":"ZZZ__FnCalls!F123","v":"Sep 2019"},{"$f":"ZZZ__FnCalls!F124","v":"Oct 2019"},{"$f":"ZZZ__FnCalls!F125","v":"Nov 2019"},{"$f":"ZZZ__FnCalls!F126","v":"Dec 2019"},{"$f":"ZZZ__FnCalls!H115","v":"2019"},{"$f":"ZZZ__FnCalls!F127","v":"Jan 2020"},{"$f":"ZZZ__FnCalls!F128","v":"Feb 2020"},{"$f":"ZZZ__FnCalls!F129","v":"Mar 2020"},{"$f":"ZZZ__FnCalls!F130","v":"Apr 2020"},{"$f":"ZZZ__FnCalls!F131","v":"May 2020"},{"$f":"ZZZ__FnCalls!F132","v":"Jun 2020"},{"$f":"ZZZ__FnCalls!F133","v":"Jul 2020"},{"$f":"ZZZ__FnCalls!F134","v":"Aug 2020"},{"$f":"ZZZ__FnCalls!F135","v":"Sep 2020"},{"$f":"ZZZ__FnCalls!F136","v":"Oct 2020"},{"$f":"ZZZ__FnCalls!F137","v":"Nov 2020"},{"$f":"ZZZ__FnCalls!F138","v":"Dec 2020"},{"$f":"ZZZ__FnCalls!H127","v":"2020"}]
[null,{"$f":"ZZZ__FnCalls!A7","v":"2010-01-01"},{"$f":"ZZZ__FnCalls!A8","v":"2010-02-01"},{"$f":"ZZZ__FnCalls!A9","v":"2010-03-01"},{"$f":"ZZZ__FnCalls!A10","v":"2010-04-01"},{"$f":"ZZZ__FnCalls!A11","v":"2010-05-01"},{"$f":"ZZZ__FnCalls!A12","v":"2010-06-01"},{"$f":"ZZZ__FnCalls!A13","v":"2010-07-01"},{"$f":"ZZZ__FnCalls!A14","v":"2010-08-01"},{"$f":"ZZZ__FnCalls!A15","v":"2010-09-01"},{"$f":"ZZZ__FnCalls!A16","v":"2010-10-01"},{"$f":"ZZZ__FnCalls!A17","v":"2010-11-01"},{"$f":"ZZZ__FnCalls!A18","v":"2010-12-01"},{"$f":"ZZZ__FnCalls!A7","v":"2010-01-01"},{"$f":"ZZZ__FnCalls!A19","v":"2011-01-01"},{"$f":"ZZZ__FnCalls!A20","v":"2011-02-01"},{"$f":"ZZZ__FnCalls!A21","v":"2011-03-01"},{"$f":"ZZZ__FnCalls!A22","v":"2011-04-01"},{"$f":"ZZZ__FnCalls!A23","v":"2011-05-01"},{"$f":"ZZZ__FnCalls!A24","v":"2011-06-01"},{"$f":"ZZZ__FnCalls!A25","v":"2011-07-01"},{"$f":"ZZZ__FnCalls!A26","v":"2011-08-01"},{"$f":"ZZZ__FnCalls!A27","v":"2011-09-01"},{"$f":"ZZZ__FnCalls!A28","v":"2011-10-01"},{"$f":"ZZZ__FnCalls!A29","v":"2011-11-01"},{"$f":"ZZZ__FnCalls!A30","v":"2011-12-01"},{"$f":"ZZZ__FnCalls!A19","v":"2011-01-01"},{"$f":"ZZZ__FnCalls!A31","v":"2012-01-01"},{"$f":"ZZZ__FnCalls!A32","v":"2012-02-01"},{"$f":"ZZZ__FnCalls!A33","v":"2012-03-01"},{"$f":"ZZZ__FnCalls!A34","v":"2012-04-01"},{"$f":"ZZZ__FnCalls!A35","v":"2012-05-01"},{"$f":"ZZZ__FnCalls!A36","v":"2012-06-01"},{"$f":"ZZZ__FnCalls!A37","v":"2012-07-01"},{"$f":"ZZZ__FnCalls!A38","v":"2012-08-01"},{"$f":"ZZZ__FnCalls!A39","v":"2012-09-01"},{"$f":"ZZZ__FnCalls!A40","v":"2012-10-01"},{"$f":"ZZZ__FnCalls!A41","v":"2012-11-01"},{"$f":"ZZZ__FnCalls!A42","v":"2012-12-01"},{"$f":"ZZZ__FnCalls!A31","v":"2012-01-01"},{"$f":"ZZZ__FnCalls!A43","v":"2013-01-01"},{"$f":"ZZZ__FnCalls!A44","v":"2013-02-01"},{"$f":"ZZZ__FnCalls!A45","v":"2013-03-01"},{"$f":"ZZZ__FnCalls!A46","v":"2013-04-01"},{"$f":"ZZZ__FnCalls!A47","v":"2013-05-01"},{"$f":"ZZZ__FnCalls!A48","v":"2013-06-01"},{"$f":"ZZZ__FnCalls!A49","v":"2013-07-01"},{"$f":"ZZZ__FnCalls!A50","v":"2013-08-01"},{"$f":"ZZZ__FnCalls!A51","v":"2013-09-01"},{"$f":"ZZZ__FnCalls!A52","v":"2013-10-01"},{"$f":"ZZZ__FnCalls!A53","v":"2013-11-01"},{"$f":"ZZZ__FnCalls!A54","v":"2013-12-01"},{"$f":"ZZZ__FnCalls!A43","v":"2013-01-01"},{"$f":"ZZZ__FnCalls!A55","v":"2014-01-01"},{"$f":"ZZZ__FnCalls!A56","v":"2014-02-01"},{"$f":"ZZZ__FnCalls!A57","v":"2014-03-01"},{"$f":"ZZZ__FnCalls!A58","v":"2014-04-01"},{"$f":"ZZZ__FnCalls!A59","v":"2014-05-01"},{"$f":"ZZZ__FnCalls!A60","v":"2014-06-01"},{"$f":"ZZZ__FnCalls!A61","v":"2014-07-01"},{"$f":"ZZZ__FnCalls!A62","v":"2014-08-01"},{"$f":"ZZZ__FnCalls!A63","v":"2014-09-01"},{"$f":"ZZZ__FnCalls!A64","v":"2014-10-01"},{"$f":"ZZZ__FnCalls!A65","v":"2014-11-01"},{"$f":"ZZZ__FnCalls!A66","v":"2014-12-01"},{"$f":"ZZZ__FnCalls!A55","v":"2014-01-01"},{"$f":"ZZZ__FnCalls!A67","v":"2015-01-01"},{"$f":"ZZZ__FnCalls!A68","v":"2015-02-01"},{"$f":"ZZZ__FnCalls!A69","v":"2015-03-01"},{"$f":"ZZZ__FnCalls!A70","v":"2015-04-01"},{"$f":"ZZZ__FnCalls!A71","v":"2015-05-01"},{"$f":"ZZZ__FnCalls!A72","v":"2015-06-01"},{"$f":"ZZZ__FnCalls!A73","v":"2015-07-01"},{"$f":"ZZZ__FnCalls!A74","v":"2015-08-01"},{"$f":"ZZZ__FnCalls!A75","v":"2015-09-01"},{"$f":"ZZZ__FnCalls!A76","v":"2015-10-01"},{"$f":"ZZZ__FnCalls!A77","v":"2015-11-01"},{"$f":"ZZZ__FnCalls!A78","v":"2015-12-01"},{"$f":"ZZZ__FnCalls!A67","v":"2015-01-01"},{"$f":"ZZZ__FnCalls!A79","v":"2016-01-01"},{"$f":"ZZZ__FnCalls!A80","v":"2016-02-01"},{"$f":"ZZZ__FnCalls!A81","v":"2016-03-01"},{"$f":"ZZZ__FnCalls!A82","v":"2016-04-01"},{"$f":"ZZZ__FnCalls!A83","v":"2016-05-01"},{"$f":"ZZZ__FnCalls!A84","v":"2016-06-01"},{"$f":"ZZZ__FnCalls!A85","v":"2016-07-01"},{"$f":"ZZZ__FnCalls!A86","v":"2016-08-01"},{"$f":"ZZZ__FnCalls!A87","v":"2016-09-01"},{"$f":"ZZZ__FnCalls!A88","v":"2016-10-01"},{"$f":"ZZZ__FnCalls!A89","v":"2016-11-01"},{"$f":"ZZZ__FnCalls!A90","v":"2016-12-01"},{"$f":"ZZZ__FnCalls!A79","v":"2016-01-01"},{"$f":"ZZZ__FnCalls!A91","v":"2017-01-01"},{"$f":"ZZZ__FnCalls!A92","v":"2017-02-01"},{"$f":"ZZZ__FnCalls!A93","v":"2017-03-01"},{"$f":"ZZZ__FnCalls!A94","v":"2017-04-01"},{"$f":"ZZZ__FnCalls!A95","v":"2017-05-01"},{"$f":"ZZZ__FnCalls!A96","v":"2017-06-01"},{"$f":"ZZZ__FnCalls!A97","v":"2017-07-01"},{"$f":"ZZZ__FnCalls!A98","v":"2017-08-01"},{"$f":"ZZZ__FnCalls!A99","v":"2017-09-01"},{"$f":"ZZZ__FnCalls!A100","v":"2017-10-01"},{"$f":"ZZZ__FnCalls!A101","v":"2017-11-01"},{"$f":"ZZZ__FnCalls!A102","v":"2017-12-01"},{"$f":"ZZZ__FnCalls!A91","v":"2017-01-01"},{"$f":"ZZZ__FnCalls!A103","v":"2018-01-01"},{"$f":"ZZZ__FnCalls!A104","v":"2018-02-01"},{"$f":"ZZZ__FnCalls!A105","v":"2018-03-01"},{"$f":"ZZZ__FnCalls!A106","v":"2018-04-01"},{"$f":"ZZZ__FnCalls!A107","v":"2018-05-01"},{"$f":"ZZZ__FnCalls!A108","v":"2018-06-01"},{"$f":"ZZZ__FnCalls!A109","v":"2018-07-01"},{"$f":"ZZZ__FnCalls!A110","v":"2018-08-01"},{"$f":"ZZZ__FnCalls!A111","v":"2018-09-01"},{"$f":"ZZZ__FnCalls!A112","v":"2018-10-01"},{"$f":"ZZZ__FnCalls!A113","v":"2018-11-01"},{"$f":"ZZZ__FnCalls!A114","v":"2018-12-01"},{"$f":"ZZZ__FnCalls!A103","v":"2018-01-01"},{"$f":"ZZZ__FnCalls!A115","v":"2019-01-01"},{"$f":"ZZZ__FnCalls!A116","v":"2019-02-01"},{"$f":"ZZZ__FnCalls!A117","v":"2019-03-01"},{"$f":"ZZZ__FnCalls!A118","v":"2019-04-01"},{"$f":"ZZZ__FnCalls!A119","v":"2019-05-01"},{"$f":"ZZZ__FnCalls!A120","v":"2019-06-01"},{"$f":"ZZZ__FnCalls!A121","v":"2019-07-01"},{"$f":"ZZZ__FnCalls!A122","v":"2019-08-01"},{"$f":"ZZZ__FnCalls!A123","v":"2019-09-01"},{"$f":"ZZZ__FnCalls!A124","v":"2019-10-01"},{"$f":"ZZZ__FnCalls!A125","v":"2019-11-01"},{"$f":"ZZZ__FnCalls!A126","v":"2019-12-01"},{"$f":"ZZZ__FnCalls!A115","v":"2019-01-01"},{"$f":"ZZZ__FnCalls!A127","v":"2020-01-01"},{"$f":"ZZZ__FnCalls!A128","v":"2020-02-01"},{"$f":"ZZZ__FnCalls!A129","v":"2020-03-01"},{"$f":"ZZZ__FnCalls!A130","v":"2020-04-01"},{"$f":"ZZZ__FnCalls!A131","v":"2020-05-01"},{"$f":"ZZZ__FnCalls!A132","v":"2020-06-01"},{"$f":"ZZZ__FnCalls!A133","v":"2020-07-01"},{"$f":"ZZZ__FnCalls!A134","v":"2020-08-01"},{"$f":"ZZZ__FnCalls!A135","v":"2020-09-01"},{"$f":"ZZZ__FnCalls!A136","v":"2020-10-01"},{"$f":"ZZZ__FnCalls!A137","v":"2020-11-01"},{"$f":"ZZZ__FnCalls!A138","v":"2020-12-01"},{"$f":"ZZZ__FnCalls!A127","v":"2020-01-01"}]
[{"$f":"\"Output_stdev_2\"","v":"Output_stdev_2"}]
[null,{"$f":"ZZZ__FnCalls!F7","v":"Jan 2010"},{"$f":"ZZZ__FnCalls!F8","v":"Feb 2010"},{"$f":"ZZZ__FnCalls!F9","v":"Mar 2010"},{"$f":"ZZZ__FnCalls!F10","v":"Apr 2010"},{"$f":"ZZZ__FnCalls!F11","v":"May 2010"},{"$f":"ZZZ__FnCalls!F12","v":"Jun 2010"},{"$f":"ZZZ__FnCalls!F13","v":"Jul 2010"},{"$f":"ZZZ__FnCalls!F14","v":"Aug 2010"},{"$f":"ZZZ__FnCalls!F15","v":"Sep 2010"},{"$f":"ZZZ__FnCalls!F16","v":"Oct 2010"},{"$f":"ZZZ__FnCalls!F17","v":"Nov 2010"},{"$f":"ZZZ__FnCalls!F18","v":"Dec 2010"},{"$f":"ZZZ__FnCalls!H7","v":"2010"},{"$f":"ZZZ__FnCalls!F19","v":"Jan 2011"},{"$f":"ZZZ__FnCalls!F20","v":"Feb 2011"},{"$f":"ZZZ__FnCalls!F21","v":"Mar 2011"},{"$f":"ZZZ__FnCalls!F22","v":"Apr 2011"},{"$f":"ZZZ__FnCalls!F23","v":"May 2011"},{"$f":"ZZZ__FnCalls!F24","v":"Jun 2011"},{"$f":"ZZZ__FnCalls!F25","v":"Jul 2011"},{"$f":"ZZZ__FnCalls!F26","v":"Aug 2011"},{"$f":"ZZZ__FnCalls!F27","v":"Sep 2011"},{"$f":"ZZZ__FnCalls!F28","v":"Oct 2011"},{"$f":"ZZZ__FnCalls!F29","v":"Nov 2011"},{"$f":"ZZZ__FnCalls!F30","v":"Dec 2011"},{"$f":"ZZZ__FnCalls!H19","v":"2011"},{"$f":"ZZZ__FnCalls!F31","v":"Jan 2012"},{"$f":"ZZZ__FnCalls!F32","v":"Feb 2012"},{"$f":"ZZZ__FnCalls!F33","v":"Mar 2012"},{"$f":"ZZZ__FnCalls!F34","v":"Apr 2012"},{"$f":"ZZZ__FnCalls!F35","v":"May 2012"},{"$f":"ZZZ__FnCalls!F36","v":"Jun 2012"},{"$f":"ZZZ__FnCalls!F37","v":"Jul 2012"},{"$f":"ZZZ__FnCalls!F38","v":"Aug 2012"},{"$f":"ZZZ__FnCalls!F39","v":"Sep 2012"},{"$f":"ZZZ__FnCalls!F40","v":"Oct 2012"},{"$f":"ZZZ__FnCalls!F41","v":"Nov 2012"},{"$f":"ZZZ__FnCalls!F42","v":"Dec 2012"},{"$f":"ZZZ__FnCalls!H31","v":"2012"},{"$f":"ZZZ__FnCalls!F43","v":"Jan 2013"},{"$f":"ZZZ__FnCalls!F44","v":"Feb 2013"},{"$f":"ZZZ__FnCalls!F45","v":"Mar 2013"},{"$f":"ZZZ__FnCalls!F46","v":"Apr 2013"},{"$f":"ZZZ__FnCalls!F47","v":"May 2013"},{"$f":"ZZZ__FnCalls!F48","v":"Jun 2013"},{"$f":"ZZZ__FnCalls!F49","v":"Jul 2013"},{"$f":"ZZZ__FnCalls!F50","v":"Aug 2013"},{"$f":"ZZZ__FnCalls!F51","v":"Sep 2013"},{"$f":"ZZZ__FnCalls!F52","v":"Oct 2013"},{"$f":"ZZZ__FnCalls!F53","v":"Nov 2013"},{"$f":"ZZZ__FnCalls!F54","v":"Dec 2013"},{"$f":"ZZZ__FnCalls!H43","v":"2013"},{"$f":"ZZZ__FnCalls!F55","v":"Jan 2014"},{"$f":"ZZZ__FnCalls!F56","v":"Feb 2014"},{"$f":"ZZZ__FnCalls!F57","v":"Mar 2014"},{"$f":"ZZZ__FnCalls!F58","v":"Apr 2014"},{"$f":"ZZZ__FnCalls!F59","v":"May 2014"},{"$f":"ZZZ__FnCalls!F60","v":"Jun 2014"},{"$f":"ZZZ__FnCalls!F61","v":"Jul 2014"},{"$f":"ZZZ__FnCalls!F62","v":"Aug 2014"},{"$f":"ZZZ__FnCalls!F63","v":"Sep 2014"},{"$f":"ZZZ__FnCalls!F64","v":"Oct 2014"},{"$f":"ZZZ__FnCalls!F65","v":"Nov 2014"},{"$f":"ZZZ__FnCalls!F66","v":"Dec 2014"},{"$f":"ZZZ__FnCalls!H55","v":"2014"},{"$f":"ZZZ__FnCalls!F67","v":"Jan 2015"},{"$f":"ZZZ__FnCalls!F68","v":"Feb 2015"},{"$f":"ZZZ__FnCalls!F69","v":"Mar 2015"},{"$f":"ZZZ__FnCalls!F70","v":"Apr 2015"},{"$f":"ZZZ__FnCalls!F71","v":"May 2015"},{"$f":"ZZZ__FnCalls!F72","v":"Jun 2015"},{"$f":"ZZZ__FnCalls!F73","v":"Jul 2015"},{"$f":"ZZZ__FnCalls!F74","v":"Aug 2015"},{"$f":"ZZZ__FnCalls!F75","v":"Sep 2015"},{"$f":"ZZZ__FnCalls!F76","v":"Oct 2015"},{"$f":"ZZZ__FnCalls!F77","v":"Nov 2015"},{"$f":"ZZZ__FnCalls!F78","v":"Dec 2015"},{"$f":"ZZZ__FnCalls!H67","v":"2015"},{"$f":"ZZZ__FnCalls!F79","v":"Jan 2016"},{"$f":"ZZZ__FnCalls!F80","v":"Feb 2016"},{"$f":"ZZZ__FnCalls!F81","v":"Mar 2016"},{"$f":"ZZZ__FnCalls!F82","v":"Apr 2016"},{"$f":"ZZZ__FnCalls!F83","v":"May 2016"},{"$f":"ZZZ__FnCalls!F84","v":"Jun 2016"},{"$f":"ZZZ__FnCalls!F85","v":"Jul 2016"},{"$f":"ZZZ__FnCalls!F86","v":"Aug 2016"},{"$f":"ZZZ__FnCalls!F87","v":"Sep 2016"},{"$f":"ZZZ__FnCalls!F88","v":"Oct 2016"},{"$f":"ZZZ__FnCalls!F89","v":"Nov 2016"},{"$f":"ZZZ__FnCalls!F90","v":"Dec 2016"},{"$f":"ZZZ__FnCalls!H79","v":"2016"},{"$f":"ZZZ__FnCalls!F91","v":"Jan 2017"},{"$f":"ZZZ__FnCalls!F92","v":"Feb 2017"},{"$f":"ZZZ__FnCalls!F93","v":"Mar 2017"},{"$f":"ZZZ__FnCalls!F94","v":"Apr 2017"},{"$f":"ZZZ__FnCalls!F95","v":"May 2017"},{"$f":"ZZZ__FnCalls!F96","v":"Jun 2017"},{"$f":"ZZZ__FnCalls!F97","v":"Jul 2017"},{"$f":"ZZZ__FnCalls!F98","v":"Aug 2017"},{"$f":"ZZZ__FnCalls!F99","v":"Sep 2017"},{"$f":"ZZZ__FnCalls!F100","v":"Oct 2017"},{"$f":"ZZZ__FnCalls!F101","v":"Nov 2017"},{"$f":"ZZZ__FnCalls!F102","v":"Dec 2017"},{"$f":"ZZZ__FnCalls!H91","v":"2017"},{"$f":"ZZZ__FnCalls!F103","v":"Jan 2018"},{"$f":"ZZZ__FnCalls!F104","v":"Feb 2018"},{"$f":"ZZZ__FnCalls!F105","v":"Mar 2018"},{"$f":"ZZZ__FnCalls!F106","v":"Apr 2018"},{"$f":"ZZZ__FnCalls!F107","v":"May 2018"},{"$f":"ZZZ__FnCalls!F108","v":"Jun 2018"},{"$f":"ZZZ__FnCalls!F109","v":"Jul 2018"},{"$f":"ZZZ__FnCalls!F110","v":"Aug 2018"},{"$f":"ZZZ__FnCalls!F111","v":"Sep 2018"},{"$f":"ZZZ__FnCalls!F112","v":"Oct 2018"},{"$f":"ZZZ__FnCalls!F113","v":"Nov 2018"},{"$f":"ZZZ__FnCalls!F114","v":"Dec 2018"},{"$f":"ZZZ__FnCalls!H103","v":"2018"},{"$f":"ZZZ__FnCalls!F115","v":"Jan 2019"},{"$f":"ZZZ__FnCalls!F116","v":"Feb 2019"},{"$f":"ZZZ__FnCalls!F117","v":"Mar 2019"},{"$f":"ZZZ__FnCalls!F118","v":"Apr 2019"},{"$f":"ZZZ__FnCalls!F119","v":"May 2019"},{"$f":"ZZZ__FnCalls!F120","v":"Jun 2019"},{"$f":"ZZZ__FnCalls!F121","v":"Jul 2019"},{"$f":"ZZZ__FnCalls!F122","v":"Aug 2019"},{"$f":"ZZZ__FnCalls!F123","v":"Sep 2019"},{"$f":"ZZZ__FnCalls!F124","v":"Oct 2019"},{"$f":"ZZZ__FnCalls!F125","v":"Nov 2019"},{"$f":"ZZZ__FnCalls!F126","v":"Dec 2019"},{"$f":"ZZZ__FnCalls!H115","v":"2019"},{"$f":"ZZZ__FnCalls!F127","v":"Jan 2020"},{"$f":"ZZZ__FnCalls!F128","v":"Feb 2020"},{"$f":"ZZZ__FnCalls!F129","v":"Mar 2020"},{"$f":"ZZZ__FnCalls!F130","v":"Apr 2020"},{"$f":"ZZZ__FnCalls!F131","v":"May 2020"},{"$f":"ZZZ__FnCalls!F132","v":"Jun 2020"},{"$f":"ZZZ__FnCalls!F133","v":"Jul 2020"},{"$f":"ZZZ__FnCalls!F134","v":"Aug 2020"},{"$f":"ZZZ__FnCalls!F135","v":"Sep 2020"},{"$f":"ZZZ__FnCalls!F136","v":"Oct 2020"},{"$f":"ZZZ__FnCalls!F137","v":"Nov 2020"},{"$f":"ZZZ__FnCalls!F138","v":"Dec 2020"},{"$f":"ZZZ__FnCalls!H127","v":"2020"}]
[null,{"$f":"ZZZ__FnCalls!F7","v":"Jan 2010"},{"$f":"ZZZ__FnCalls!F8","v":"Feb 2010"},{"$f":"ZZZ__FnCalls!F9","v":"Mar 2010"},{"$f":"ZZZ__FnCalls!F10","v":"Apr 2010"},{"$f":"ZZZ__FnCalls!F11","v":"May 2010"},{"$f":"ZZZ__FnCalls!F12","v":"Jun 2010"},{"$f":"ZZZ__FnCalls!F13","v":"Jul 2010"},{"$f":"ZZZ__FnCalls!F14","v":"Aug 2010"},{"$f":"ZZZ__FnCalls!F15","v":"Sep 2010"},{"$f":"ZZZ__FnCalls!F16","v":"Oct 2010"},{"$f":"ZZZ__FnCalls!F17","v":"Nov 2010"},{"$f":"ZZZ__FnCalls!F18","v":"Dec 2010"},{"$f":"ZZZ__FnCalls!F7","v":"Jan 2010"},{"$f":"ZZZ__FnCalls!F19","v":"Jan 2011"},{"$f":"ZZZ__FnCalls!F20","v":"Feb 2011"},{"$f":"ZZZ__FnCalls!F21","v":"Mar 2011"},{"$f":"ZZZ__FnCalls!F22","v":"Apr 2011"},{"$f":"ZZZ__FnCalls!F23","v":"May 2011"},{"$f":"ZZZ__FnCalls!F24","v":"Jun 2011"},{"$f":"ZZZ__FnCalls!F25","v":"Jul 2011"},{"$f":"ZZZ__FnCalls!F26","v":"Aug 2011"},{"$f":"ZZZ__FnCalls!F27","v":"Sep 2011"},{"$f":"ZZZ__FnCalls!F28","v":"Oct 2011"},{"$f":"ZZZ__FnCalls!F29","v":"Nov 2011"},{"$f":"ZZZ__FnCalls!F30","v":"Dec 2011"},{"$f":"ZZZ__FnCalls!F19","v":"Jan 2011"},{"$f":"ZZZ__FnCalls!F31","v":"Jan 2012"},{"$f":"ZZZ__FnCalls!F32","v":"Feb 2012"},{"$f":"ZZZ__FnCalls!F33","v":"Mar 2012"},{"$f":"ZZZ__FnCalls!F34","v":"Apr 2012"},{"$f":"ZZZ__FnCalls!F35","v":"May 2012"},{"$f":"ZZZ__FnCalls!F36","v":"Jun 2012"},{"$f":"ZZZ__FnCalls!F37","v":"Jul 2012"},{"$f":"ZZZ__FnCalls!F38","v":"Aug 2012"},{"$f":"ZZZ__FnCalls!F39","v":"Sep 2012"},{"$f":"ZZZ__FnCalls!F40","v":"Oct 2012"},{"$f":"ZZZ__FnCalls!F41","v":"Nov 2012"},{"$f":"ZZZ__FnCalls!F42","v":"Dec 2012"},{"$f":"ZZZ__FnCalls!F31","v":"Jan 2012"},{"$f":"ZZZ__FnCalls!F43","v":"Jan 2013"},{"$f":"ZZZ__FnCalls!F44","v":"Feb 2013"},{"$f":"ZZZ__FnCalls!F45","v":"Mar 2013"},{"$f":"ZZZ__FnCalls!F46","v":"Apr 2013"},{"$f":"ZZZ__FnCalls!F47","v":"May 2013"},{"$f":"ZZZ__FnCalls!F48","v":"Jun 2013"},{"$f":"ZZZ__FnCalls!F49","v":"Jul 2013"},{"$f":"ZZZ__FnCalls!F50","v":"Aug 2013"},{"$f":"ZZZ__FnCalls!F51","v":"Sep 2013"},{"$f":"ZZZ__FnCalls!F52","v":"Oct 2013"},{"$f":"ZZZ__FnCalls!F53","v":"Nov 2013"},{"$f":"ZZZ__FnCalls!F54","v":"Dec 2013"},{"$f":"ZZZ__FnCalls!F43","v":"Jan 2013"},{"$f":"ZZZ__FnCalls!F55","v":"Jan 2014"},{"$f":"ZZZ__FnCalls!F56","v":"Feb 2014"},{"$f":"ZZZ__FnCalls!F57","v":"Mar 2014"},{"$f":"ZZZ__FnCalls!F58","v":"Apr 2014"},{"$f":"ZZZ__FnCalls!F59","v":"May 2014"},{"$f":"ZZZ__FnCalls!F60","v":"Jun 2014"},{"$f":"ZZZ__FnCalls!F61","v":"Jul 2014"},{"$f":"ZZZ__FnCalls!F62","v":"Aug 2014"},{"$f":"ZZZ__FnCalls!F63","v":"Sep 2014"},{"$f":"ZZZ__FnCalls!F64","v":"Oct 2014"},{"$f":"ZZZ__FnCalls!F65","v":"Nov 2014"},{"$f":"ZZZ__FnCalls!F66","v":"Dec 2014"},{"$f":"ZZZ__FnCalls!F55","v":"Jan 2014"},{"$f":"ZZZ__FnCalls!F67","v":"Jan 2015"},{"$f":"ZZZ__FnCalls!F68","v":"Feb 2015"},{"$f":"ZZZ__FnCalls!F69","v":"Mar 2015"},{"$f":"ZZZ__FnCalls!F70","v":"Apr 2015"},{"$f":"ZZZ__FnCalls!F71","v":"May 2015"},{"$f":"ZZZ__FnCalls!F72","v":"Jun 2015"},{"$f":"ZZZ__FnCalls!F73","v":"Jul 2015"},{"$f":"ZZZ__FnCalls!F74","v":"Aug 2015"},{"$f":"ZZZ__FnCalls!F75","v":"Sep 2015"},{"$f":"ZZZ__FnCalls!F76","v":"Oct 2015"},{"$f":"ZZZ__FnCalls!F77","v":"Nov 2015"},{"$f":"ZZZ__FnCalls!F78","v":"Dec 2015"},{"$f":"ZZZ__FnCalls!F67","v":"Jan 2015"},{"$f":"ZZZ__FnCalls!F79","v":"Jan 2016"},{"$f":"ZZZ__FnCalls!F80","v":"Feb 2016"},{"$f":"ZZZ__FnCalls!F81","v":"Mar 2016"},{"$f":"ZZZ__FnCalls!F82","v":"Apr 2016"},{"$f":"ZZZ__FnCalls!F83","v":"May 2016"},{"$f":"ZZZ__FnCalls!F84","v":"Jun 2016"},{"$f":"ZZZ__FnCalls!F85","v":"Jul 2016"},{"$f":"ZZZ__FnCalls!F86","v":"Aug 2016"},{"$f":"ZZZ__FnCalls!F87","v":"Sep 2016"},{"$f":"ZZZ__FnCalls!F88","v":"Oct 2016"},{"$f":"ZZZ__FnCalls!F89","v":"Nov 2016"},{"$f":"ZZZ__FnCalls!F90","v":"Dec 2016"},{"$f":"ZZZ__FnCalls!F79","v":"Jan 2016"},{"$f":"ZZZ__FnCalls!F91","v":"Jan 2017"},{"$f":"ZZZ__FnCalls!F92","v":"Feb 2017"},{"$f":"ZZZ__FnCalls!F93","v":"Mar 2017"},{"$f":"ZZZ__FnCalls!F94","v":"Apr 2017"},{"$f":"ZZZ__FnCalls!F95","v":"May 2017"},{"$f":"ZZZ__FnCalls!F96","v":"Jun 2017"},{"$f":"ZZZ__FnCalls!F97","v":"Jul 2017"},{"$f":"ZZZ__FnCalls!F98","v":"Aug 2017"},{"$f":"ZZZ__FnCalls!F99","v":"Sep 2017"},{"$f":"ZZZ__FnCalls!F100","v":"Oct 2017"},{"$f":"ZZZ__FnCalls!F101","v":"Nov 2017"},{"$f":"ZZZ__FnCalls!F102","v":"Dec 2017"},{"$f":"ZZZ__FnCalls!F91","v":"Jan 2017"},{"$f":"ZZZ__FnCalls!F103","v":"Jan 2018"},{"$f":"ZZZ__FnCalls!F104","v":"Feb 2018"},{"$f":"ZZZ__FnCalls!F105","v":"Mar 2018"},{"$f":"ZZZ__FnCalls!F106","v":"Apr 2018"},{"$f":"ZZZ__FnCalls!F107","v":"May 2018"},{"$f":"ZZZ__FnCalls!F108","v":"Jun 2018"},{"$f":"ZZZ__FnCalls!F109","v":"Jul 2018"},{"$f":"ZZZ__FnCalls!F110","v":"Aug 2018"},{"$f":"ZZZ__FnCalls!F111","v":"Sep 2018"},{"$f":"ZZZ__FnCalls!F112","v":"Oct 2018"},{"$f":"ZZZ__FnCalls!F113","v":"Nov 2018"},{"$f":"ZZZ__FnCalls!F114","v":"Dec 2018"},{"$f":"ZZZ__FnCalls!F103","v":"Jan 2018"},{"$f":"ZZZ__FnCalls!F115","v":"Jan 2019"},{"$f":"ZZZ__FnCalls!F116","v":"Feb 2019"},{"$f":"ZZZ__FnCalls!F117","v":"Mar 2019"},{"$f":"ZZZ__FnCalls!F118","v":"Apr 2019"},{"$f":"ZZZ__FnCalls!F119","v":"May 2019"},{"$f":"ZZZ__FnCalls!F120","v":"Jun 2019"},{"$f":"ZZZ__FnCalls!F121","v":"Jul 2019"},{"$f":"ZZZ__FnCalls!F122","v":"Aug 2019"},{"$f":"ZZZ__FnCalls!F123","v":"Sep 2019"},{"$f":"ZZZ__FnCalls!F124","v":"Oct 2019"},{"$f":"ZZZ__FnCalls!F125","v":"Nov 2019"},{"$f":"ZZZ__FnCalls!F126","v":"Dec 2019"},{"$f":"ZZZ__FnCalls!F115","v":"Jan 2019"},{"$f":"ZZZ__FnCalls!F127","v":"Jan 2020"},{"$f":"ZZZ__FnCalls!F128","v":"Feb 2020"},{"$f":"ZZZ__FnCalls!F129","v":"Mar 2020"},{"$f":"ZZZ__FnCalls!F130","v":"Apr 2020"},{"$f":"ZZZ__FnCalls!F131","v":"May 2020"},{"$f":"ZZZ__FnCalls!F132","v":"Jun 2020"},{"$f":"ZZZ__FnCalls!F133","v":"Jul 2020"},{"$f":"ZZZ__FnCalls!F134","v":"Aug 2020"},{"$f":"ZZZ__FnCalls!F135","v":"Sep 2020"},{"$f":"ZZZ__FnCalls!F136","v":"Oct 2020"},{"$f":"ZZZ__FnCalls!F137","v":"Nov 2020"},{"$f":"ZZZ__FnCalls!F138","v":"Dec 2020"},{"$f":"ZZZ__FnCalls!F127","v":"Jan 2020"}]
[{"$f":"\"Output_Potential_mean_1\"","v":"Output_Potential_mean_1"}]
[null,{"$f":"ZZZ__FnCalls!F7","v":"Jan 2010"},{"$f":"ZZZ__FnCalls!F8","v":"Feb 2010"},{"$f":"ZZZ__FnCalls!F9","v":"Mar 2010"},{"$f":"ZZZ__FnCalls!F10","v":"Apr 2010"},{"$f":"ZZZ__FnCalls!F11","v":"May 2010"},{"$f":"ZZZ__FnCalls!F12","v":"Jun 2010"},{"$f":"ZZZ__FnCalls!F13","v":"Jul 2010"},{"$f":"ZZZ__FnCalls!F14","v":"Aug 2010"},{"$f":"ZZZ__FnCalls!F15","v":"Sep 2010"},{"$f":"ZZZ__FnCalls!F16","v":"Oct 2010"},{"$f":"ZZZ__FnCalls!F17","v":"Nov 2010"},{"$f":"ZZZ__FnCalls!F18","v":"Dec 2010"},{"$f":"ZZZ__FnCalls!H7","v":"2010"},{"$f":"ZZZ__FnCalls!F19","v":"Jan 2011"},{"$f":"ZZZ__FnCalls!F20","v":"Feb 2011"},{"$f":"ZZZ__FnCalls!F21","v":"Mar 2011"},{"$f":"ZZZ__FnCalls!F22","v":"Apr 2011"},{"$f":"ZZZ__FnCalls!F23","v":"May 2011"},{"$f":"ZZZ__FnCalls!F24","v":"Jun 2011"},{"$f":"ZZZ__FnCalls!F25","v":"Jul 2011"},{"$f":"ZZZ__FnCalls!F26","v":"Aug 2011"},{"$f":"ZZZ__FnCalls!F27","v":"Sep 2011"},{"$f":"ZZZ__FnCalls!F28","v":"Oct 2011"},{"$f":"ZZZ__FnCalls!F29","v":"Nov 2011"},{"$f":"ZZZ__FnCalls!F30","v":"Dec 2011"},{"$f":"ZZZ__FnCalls!H19","v":"2011"},{"$f":"ZZZ__FnCalls!F31","v":"Jan 2012"},{"$f":"ZZZ__FnCalls!F32","v":"Feb 2012"},{"$f":"ZZZ__FnCalls!F33","v":"Mar 2012"},{"$f":"ZZZ__FnCalls!F34","v":"Apr 2012"},{"$f":"ZZZ__FnCalls!F35","v":"May 2012"},{"$f":"ZZZ__FnCalls!F36","v":"Jun 2012"},{"$f":"ZZZ__FnCalls!F37","v":"Jul 2012"},{"$f":"ZZZ__FnCalls!F38","v":"Aug 2012"},{"$f":"ZZZ__FnCalls!F39","v":"Sep 2012"},{"$f":"ZZZ__FnCalls!F40","v":"Oct 2012"},{"$f":"ZZZ__FnCalls!F41","v":"Nov 2012"},{"$f":"ZZZ__FnCalls!F42","v":"Dec 2012"},{"$f":"ZZZ__FnCalls!H31","v":"2012"},{"$f":"ZZZ__FnCalls!F43","v":"Jan 2013"},{"$f":"ZZZ__FnCalls!F44","v":"Feb 2013"},{"$f":"ZZZ__FnCalls!F45","v":"Mar 2013"},{"$f":"ZZZ__FnCalls!F46","v":"Apr 2013"},{"$f":"ZZZ__FnCalls!F47","v":"May 2013"},{"$f":"ZZZ__FnCalls!F48","v":"Jun 2013"},{"$f":"ZZZ__FnCalls!F49","v":"Jul 2013"},{"$f":"ZZZ__FnCalls!F50","v":"Aug 2013"},{"$f":"ZZZ__FnCalls!F51","v":"Sep 2013"},{"$f":"ZZZ__FnCalls!F52","v":"Oct 2013"},{"$f":"ZZZ__FnCalls!F53","v":"Nov 2013"},{"$f":"ZZZ__FnCalls!F54","v":"Dec 2013"},{"$f":"ZZZ__FnCalls!H43","v":"2013"},{"$f":"ZZZ__FnCalls!F55","v":"Jan 2014"},{"$f":"ZZZ__FnCalls!F56","v":"Feb 2014"},{"$f":"ZZZ__FnCalls!F57","v":"Mar 2014"},{"$f":"ZZZ__FnCalls!F58","v":"Apr 2014"},{"$f":"ZZZ__FnCalls!F59","v":"May 2014"},{"$f":"ZZZ__FnCalls!F60","v":"Jun 2014"},{"$f":"ZZZ__FnCalls!F61","v":"Jul 2014"},{"$f":"ZZZ__FnCalls!F62","v":"Aug 2014"},{"$f":"ZZZ__FnCalls!F63","v":"Sep 2014"},{"$f":"ZZZ__FnCalls!F64","v":"Oct 2014"},{"$f":"ZZZ__FnCalls!F65","v":"Nov 2014"},{"$f":"ZZZ__FnCalls!F66","v":"Dec 2014"},{"$f":"ZZZ__FnCalls!H55","v":"2014"},{"$f":"ZZZ__FnCalls!F67","v":"Jan 2015"},{"$f":"ZZZ__FnCalls!F68","v":"Feb 2015"},{"$f":"ZZZ__FnCalls!F69","v":"Mar 2015"},{"$f":"ZZZ__FnCalls!F70","v":"Apr 2015"},{"$f":"ZZZ__FnCalls!F71","v":"May 2015"},{"$f":"ZZZ__FnCalls!F72","v":"Jun 2015"},{"$f":"ZZZ__FnCalls!F73","v":"Jul 2015"},{"$f":"ZZZ__FnCalls!F74","v":"Aug 2015"},{"$f":"ZZZ__FnCalls!F75","v":"Sep 2015"},{"$f":"ZZZ__FnCalls!F76","v":"Oct 2015"},{"$f":"ZZZ__FnCalls!F77","v":"Nov 2015"},{"$f":"ZZZ__FnCalls!F78","v":"Dec 2015"},{"$f":"ZZZ__FnCalls!H67","v":"2015"},{"$f":"ZZZ__FnCalls!F79","v":"Jan 2016"},{"$f":"ZZZ__FnCalls!F80","v":"Feb 2016"},{"$f":"ZZZ__FnCalls!F81","v":"Mar 2016"},{"$f":"ZZZ__FnCalls!F82","v":"Apr 2016"},{"$f":"ZZZ__FnCalls!F83","v":"May 2016"},{"$f":"ZZZ__FnCalls!F84","v":"Jun 2016"},{"$f":"ZZZ__FnCalls!F85","v":"Jul 2016"},{"$f":"ZZZ__FnCalls!F86","v":"Aug 2016"},{"$f":"ZZZ__FnCalls!F87","v":"Sep 2016"},{"$f":"ZZZ__FnCalls!F88","v":"Oct 2016"},{"$f":"ZZZ__FnCalls!F89","v":"Nov 2016"},{"$f":"ZZZ__FnCalls!F90","v":"Dec 2016"},{"$f":"ZZZ__FnCalls!H79","v":"2016"},{"$f":"ZZZ__FnCalls!F91","v":"Jan 2017"},{"$f":"ZZZ__FnCalls!F92","v":"Feb 2017"},{"$f":"ZZZ__FnCalls!F93","v":"Mar 2017"},{"$f":"ZZZ__FnCalls!F94","v":"Apr 2017"},{"$f":"ZZZ__FnCalls!F95","v":"May 2017"},{"$f":"ZZZ__FnCalls!F96","v":"Jun 2017"},{"$f":"ZZZ__FnCalls!F97","v":"Jul 2017"},{"$f":"ZZZ__FnCalls!F98","v":"Aug 2017"},{"$f":"ZZZ__FnCalls!F99","v":"Sep 2017"},{"$f":"ZZZ__FnCalls!F100","v":"Oct 2017"},{"$f":"ZZZ__FnCalls!F101","v":"Nov 2017"},{"$f":"ZZZ__FnCalls!F102","v":"Dec 2017"},{"$f":"ZZZ__FnCalls!H91","v":"2017"},{"$f":"ZZZ__FnCalls!F103","v":"Jan 2018"},{"$f":"ZZZ__FnCalls!F104","v":"Feb 2018"},{"$f":"ZZZ__FnCalls!F105","v":"Mar 2018"},{"$f":"ZZZ__FnCalls!F106","v":"Apr 2018"},{"$f":"ZZZ__FnCalls!F107","v":"May 2018"},{"$f":"ZZZ__FnCalls!F108","v":"Jun 2018"},{"$f":"ZZZ__FnCalls!F109","v":"Jul 2018"},{"$f":"ZZZ__FnCalls!F110","v":"Aug 2018"},{"$f":"ZZZ__FnCalls!F111","v":"Sep 2018"},{"$f":"ZZZ__FnCalls!F112","v":"Oct 2018"},{"$f":"ZZZ__FnCalls!F113","v":"Nov 2018"},{"$f":"ZZZ__FnCalls!F114","v":"Dec 2018"},{"$f":"ZZZ__FnCalls!H103","v":"2018"},{"$f":"ZZZ__FnCalls!F115","v":"Jan 2019"},{"$f":"ZZZ__FnCalls!F116","v":"Feb 2019"},{"$f":"ZZZ__FnCalls!F117","v":"Mar 2019"},{"$f":"ZZZ__FnCalls!F118","v":"Apr 2019"},{"$f":"ZZZ__FnCalls!F119","v":"May 2019"},{"$f":"ZZZ__FnCalls!F120","v":"Jun 2019"},{"$f":"ZZZ__FnCalls!F121","v":"Jul 2019"},{"$f":"ZZZ__FnCalls!F122","v":"Aug 2019"},{"$f":"ZZZ__FnCalls!F123","v":"Sep 2019"},{"$f":"ZZZ__FnCalls!F124","v":"Oct 2019"},{"$f":"ZZZ__FnCalls!F125","v":"Nov 2019"},{"$f":"ZZZ__FnCalls!F126","v":"Dec 2019"},{"$f":"ZZZ__FnCalls!H115","v":"2019"},{"$f":"ZZZ__FnCalls!F127","v":"Jan 2020"},{"$f":"ZZZ__FnCalls!F128","v":"Feb 2020"},{"$f":"ZZZ__FnCalls!F129","v":"Mar 2020"},{"$f":"ZZZ__FnCalls!F130","v":"Apr 2020"},{"$f":"ZZZ__FnCalls!F131","v":"May 2020"},{"$f":"ZZZ__FnCalls!F132","v":"Jun 2020"},{"$f":"ZZZ__FnCalls!F133","v":"Jul 2020"},{"$f":"ZZZ__FnCalls!F134","v":"Aug 2020"},{"$f":"ZZZ__FnCalls!F135","v":"Sep 2020"},{"$f":"ZZZ__FnCalls!F136","v":"Oct 2020"},{"$f":"ZZZ__FnCalls!F137","v":"Nov 2020"},{"$f":"ZZZ__FnCalls!F138","v":"Dec 2020"},{"$f":"ZZZ__FnCalls!H127","v":"2020"}]
[null,{"$f":"ZZZ__FnCalls!A7","v":"2010-01-01"},{"$f":"ZZZ__FnCalls!A8","v":"2010-02-01"},{"$f":"ZZZ__FnCalls!A9","v":"2010-03-01"},{"$f":"ZZZ__FnCalls!A10","v":"2010-04-01"},{"$f":"ZZZ__FnCalls!A11","v":"2010-05-01"},{"$f":"ZZZ__FnCalls!A12","v":"2010-06-01"},{"$f":"ZZZ__FnCalls!A13","v":"2010-07-01"},{"$f":"ZZZ__FnCalls!A14","v":"2010-08-01"},{"$f":"ZZZ__FnCalls!A15","v":"2010-09-01"},{"$f":"ZZZ__FnCalls!A16","v":"2010-10-01"},{"$f":"ZZZ__FnCalls!A17","v":"2010-11-01"},{"$f":"ZZZ__FnCalls!A18","v":"2010-12-01"},{"$f":"ZZZ__FnCalls!A7","v":"2010-01-01"},{"$f":"ZZZ__FnCalls!A19","v":"2011-01-01"},{"$f":"ZZZ__FnCalls!A20","v":"2011-02-01"},{"$f":"ZZZ__FnCalls!A21","v":"2011-03-01"},{"$f":"ZZZ__FnCalls!A22","v":"2011-04-01"},{"$f":"ZZZ__FnCalls!A23","v":"2011-05-01"},{"$f":"ZZZ__FnCalls!A24","v":"2011-06-01"},{"$f":"ZZZ__FnCalls!A25","v":"2011-07-01"},{"$f":"ZZZ__FnCalls!A26","v":"2011-08-01"},{"$f":"ZZZ__FnCalls!A27","v":"2011-09-01"},{"$f":"ZZZ__FnCalls!A28","v":"2011-10-01"},{"$f":"ZZZ__FnCalls!A29","v":"2011-11-01"},{"$f":"ZZZ__FnCalls!A30","v":"2011-12-01"},{"$f":"ZZZ__FnCalls!A19","v":"2011-01-01"},{"$f":"ZZZ__FnCalls!A31","v":"2012-01-01"},{"$f":"ZZZ__FnCalls!A32","v":"2012-02-01"},{"$f":"ZZZ__FnCalls!A33","v":"2012-03-01"},{"$f":"ZZZ__FnCalls!A34","v":"2012-04-01"},{"$f":"ZZZ__FnCalls!A35","v":"2012-05-01"},{"$f":"ZZZ__FnCalls!A36","v":"2012-06-01"},{"$f":"ZZZ__FnCalls!A37","v":"2012-07-01"},{"$f":"ZZZ__FnCalls!A38","v":"2012-08-01"},{"$f":"ZZZ__FnCalls!A39","v":"2012-09-01"},{"$f":"ZZZ__FnCalls!A40","v":"2012-10-01"},{"$f":"ZZZ__FnCalls!A41","v":"2012-11-01"},{"$f":"ZZZ__FnCalls!A42","v":"2012-12-01"},{"$f":"ZZZ__FnCalls!A31","v":"2012-01-01"},{"$f":"ZZZ__FnCalls!A43","v":"2013-01-01"},{"$f":"ZZZ__FnCalls!A44","v":"2013-02-01"},{"$f":"ZZZ__FnCalls!A45","v":"2013-03-01"},{"$f":"ZZZ__FnCalls!A46","v":"2013-04-01"},{"$f":"ZZZ__FnCalls!A47","v":"2013-05-01"},{"$f":"ZZZ__FnCalls!A48","v":"2013-06-01"},{"$f":"ZZZ__FnCalls!A49","v":"2013-07-01"},{"$f":"ZZZ__FnCalls!A50","v":"2013-08-01"},{"$f":"ZZZ__FnCalls!A51","v":"2013-09-01"},{"$f":"ZZZ__FnCalls!A52","v":"2013-10-01"},{"$f":"ZZZ__FnCalls!A53","v":"2013-11-01"},{"$f":"ZZZ__FnCalls!A54","v":"2013-12-01"},{"$f":"ZZZ__FnCalls!A43","v":"2013-01-01"},{"$f":"ZZZ__FnCalls!A55","v":"2014-01-01"},{"$f":"ZZZ__FnCalls!A56","v":"2014-02-01"},{"$f":"ZZZ__FnCalls!A57","v":"2014-03-01"},{"$f":"ZZZ__FnCalls!A58","v":"2014-04-01"},{"$f":"ZZZ__FnCalls!A59","v":"2014-05-01"},{"$f":"ZZZ__FnCalls!A60","v":"2014-06-01"},{"$f":"ZZZ__FnCalls!A61","v":"2014-07-01"},{"$f":"ZZZ__FnCalls!A62","v":"2014-08-01"},{"$f":"ZZZ__FnCalls!A63","v":"2014-09-01"},{"$f":"ZZZ__FnCalls!A64","v":"2014-10-01"},{"$f":"ZZZ__FnCalls!A65","v":"2014-11-01"},{"$f":"ZZZ__FnCalls!A66","v":"2014-12-01"},{"$f":"ZZZ__FnCalls!A55","v":"2014-01-01"},{"$f":"ZZZ__FnCalls!A67","v":"2015-01-01"},{"$f":"ZZZ__FnCalls!A68","v":"2015-02-01"},{"$f":"ZZZ__FnCalls!A69","v":"2015-03-01"},{"$f":"ZZZ__FnCalls!A70","v":"2015-04-01"},{"$f":"ZZZ__FnCalls!A71","v":"2015-05-01"},{"$f":"ZZZ__FnCalls!A72","v":"2015-06-01"},{"$f":"ZZZ__FnCalls!A73","v":"2015-07-01"},{"$f":"ZZZ__FnCalls!A74","v":"2015-08-01"},{"$f":"ZZZ__FnCalls!A75","v":"2015-09-01"},{"$f":"ZZZ__FnCalls!A76","v":"2015-10-01"},{"$f":"ZZZ__FnCalls!A77","v":"2015-11-01"},{"$f":"ZZZ__FnCalls!A78","v":"2015-12-01"},{"$f":"ZZZ__FnCalls!A67","v":"2015-01-01"},{"$f":"ZZZ__FnCalls!A79","v":"2016-01-01"},{"$f":"ZZZ__FnCalls!A80","v":"2016-02-01"},{"$f":"ZZZ__FnCalls!A81","v":"2016-03-01"},{"$f":"ZZZ__FnCalls!A82","v":"2016-04-01"},{"$f":"ZZZ__FnCalls!A83","v":"2016-05-01"},{"$f":"ZZZ__FnCalls!A84","v":"2016-06-01"},{"$f":"ZZZ__FnCalls!A85","v":"2016-07-01"},{"$f":"ZZZ__FnCalls!A86","v":"2016-08-01"},{"$f":"ZZZ__FnCalls!A87","v":"2016-09-01"},{"$f":"ZZZ__FnCalls!A88","v":"2016-10-01"},{"$f":"ZZZ__FnCalls!A89","v":"2016-11-01"},{"$f":"ZZZ__FnCalls!A90","v":"2016-12-01"},{"$f":"ZZZ__FnCalls!A79","v":"2016-01-01"},{"$f":"ZZZ__FnCalls!A91","v":"2017-01-01"},{"$f":"ZZZ__FnCalls!A92","v":"2017-02-01"},{"$f":"ZZZ__FnCalls!A93","v":"2017-03-01"},{"$f":"ZZZ__FnCalls!A94","v":"2017-04-01"},{"$f":"ZZZ__FnCalls!A95","v":"2017-05-01"},{"$f":"ZZZ__FnCalls!A96","v":"2017-06-01"},{"$f":"ZZZ__FnCalls!A97","v":"2017-07-01"},{"$f":"ZZZ__FnCalls!A98","v":"2017-08-01"},{"$f":"ZZZ__FnCalls!A99","v":"2017-09-01"},{"$f":"ZZZ__FnCalls!A100","v":"2017-10-01"},{"$f":"ZZZ__FnCalls!A101","v":"2017-11-01"},{"$f":"ZZZ__FnCalls!A102","v":"2017-12-01"},{"$f":"ZZZ__FnCalls!A91","v":"2017-01-01"},{"$f":"ZZZ__FnCalls!A103","v":"2018-01-01"},{"$f":"ZZZ__FnCalls!A104","v":"2018-02-01"},{"$f":"ZZZ__FnCalls!A105","v":"2018-03-01"},{"$f":"ZZZ__FnCalls!A106","v":"2018-04-01"},{"$f":"ZZZ__FnCalls!A107","v":"2018-05-01"},{"$f":"ZZZ__FnCalls!A108","v":"2018-06-01"},{"$f":"ZZZ__FnCalls!A109","v":"2018-07-01"},{"$f":"ZZZ__FnCalls!A110","v":"2018-08-01"},{"$f":"ZZZ__FnCalls!A111","v":"2018-09-01"},{"$f":"ZZZ__FnCalls!A112","v":"2018-10-01"},{"$f":"ZZZ__FnCalls!A113","v":"2018-11-01"},{"$f":"ZZZ__FnCalls!A114","v":"2018-12-01"},{"$f":"ZZZ__FnCalls!A103","v":"2018-01-01"},{"$f":"ZZZ__FnCalls!A115","v":"2019-01-01"},{"$f":"ZZZ__FnCalls!A116","v":"2019-02-01"},{"$f":"ZZZ__FnCalls!A117","v":"2019-03-01"},{"$f":"ZZZ__FnCalls!A118","v":"2019-04-01"},{"$f":"ZZZ__FnCalls!A119","v":"2019-05-01"},{"$f":"ZZZ__FnCalls!A120","v":"2019-06-01"},{"$f":"ZZZ__FnCalls!A121","v":"2019-07-01"},{"$f":"ZZZ__FnCalls!A122","v":"2019-08-01"},{"$f":"ZZZ__FnCalls!A123","v":"2019-09-01"},{"$f":"ZZZ__FnCalls!A124","v":"2019-10-01"},{"$f":"ZZZ__FnCalls!A125","v":"2019-11-01"},{"$f":"ZZZ__FnCalls!A126","v":"2019-12-01"},{"$f":"ZZZ__FnCalls!A115","v":"2019-01-01"},{"$f":"ZZZ__FnCalls!A127","v":"2020-01-01"},{"$f":"ZZZ__FnCalls!A128","v":"2020-02-01"},{"$f":"ZZZ__FnCalls!A129","v":"2020-03-01"},{"$f":"ZZZ__FnCalls!A130","v":"2020-04-01"},{"$f":"ZZZ__FnCalls!A131","v":"2020-05-01"},{"$f":"ZZZ__FnCalls!A132","v":"2020-06-01"},{"$f":"ZZZ__FnCalls!A133","v":"2020-07-01"},{"$f":"ZZZ__FnCalls!A134","v":"2020-08-01"},{"$f":"ZZZ__FnCalls!A135","v":"2020-09-01"},{"$f":"ZZZ__FnCalls!A136","v":"2020-10-01"},{"$f":"ZZZ__FnCalls!A137","v":"2020-11-01"},{"$f":"ZZZ__FnCalls!A138","v":"2020-12-01"},{"$f":"ZZZ__FnCalls!A127","v":"2020-01-01"}]
[{"$f":"\"Output_Potential_mean_2\"","v":"Output_Potential_mean_2"}]
[null,{"$f":"ZZZ__FnCalls!F7","v":"Jan 2010"},{"$f":"ZZZ__FnCalls!F8","v":"Feb 2010"},{"$f":"ZZZ__FnCalls!F9","v":"Mar 2010"},{"$f":"ZZZ__FnCalls!F10","v":"Apr 2010"},{"$f":"ZZZ__FnCalls!F11","v":"May 2010"},{"$f":"ZZZ__FnCalls!F12","v":"Jun 2010"},{"$f":"ZZZ__FnCalls!F13","v":"Jul 2010"},{"$f":"ZZZ__FnCalls!F14","v":"Aug 2010"},{"$f":"ZZZ__FnCalls!F15","v":"Sep 2010"},{"$f":"ZZZ__FnCalls!F16","v":"Oct 2010"},{"$f":"ZZZ__FnCalls!F17","v":"Nov 2010"},{"$f":"ZZZ__FnCalls!F18","v":"Dec 2010"},{"$f":"ZZZ__FnCalls!H7","v":"2010"},{"$f":"ZZZ__FnCalls!F19","v":"Jan 2011"},{"$f":"ZZZ__FnCalls!F20","v":"Feb 2011"},{"$f":"ZZZ__FnCalls!F21","v":"Mar 2011"},{"$f":"ZZZ__FnCalls!F22","v":"Apr 2011"},{"$f":"ZZZ__FnCalls!F23","v":"May 2011"},{"$f":"ZZZ__FnCalls!F24","v":"Jun 2011"},{"$f":"ZZZ__FnCalls!F25","v":"Jul 2011"},{"$f":"ZZZ__FnCalls!F26","v":"Aug 2011"},{"$f":"ZZZ__FnCalls!F27","v":"Sep 2011"},{"$f":"ZZZ__FnCalls!F28","v":"Oct 2011"},{"$f":"ZZZ__FnCalls!F29","v":"Nov 2011"},{"$f":"ZZZ__FnCalls!F30","v":"Dec 2011"},{"$f":"ZZZ__FnCalls!H19","v":"2011"},{"$f":"ZZZ__FnCalls!F31","v":"Jan 2012"},{"$f":"ZZZ__FnCalls!F32","v":"Feb 2012"},{"$f":"ZZZ__FnCalls!F33","v":"Mar 2012"},{"$f":"ZZZ__FnCalls!F34","v":"Apr 2012"},{"$f":"ZZZ__FnCalls!F35","v":"May 2012"},{"$f":"ZZZ__FnCalls!F36","v":"Jun 2012"},{"$f":"ZZZ__FnCalls!F37","v":"Jul 2012"},{"$f":"ZZZ__FnCalls!F38","v":"Aug 2012"},{"$f":"ZZZ__FnCalls!F39","v":"Sep 2012"},{"$f":"ZZZ__FnCalls!F40","v":"Oct 2012"},{"$f":"ZZZ__FnCalls!F41","v":"Nov 2012"},{"$f":"ZZZ__FnCalls!F42","v":"Dec 2012"},{"$f":"ZZZ__FnCalls!H31","v":"2012"},{"$f":"ZZZ__FnCalls!F43","v":"Jan 2013"},{"$f":"ZZZ__FnCalls!F44","v":"Feb 2013"},{"$f":"ZZZ__FnCalls!F45","v":"Mar 2013"},{"$f":"ZZZ__FnCalls!F46","v":"Apr 2013"},{"$f":"ZZZ__FnCalls!F47","v":"May 2013"},{"$f":"ZZZ__FnCalls!F48","v":"Jun 2013"},{"$f":"ZZZ__FnCalls!F49","v":"Jul 2013"},{"$f":"ZZZ__FnCalls!F50","v":"Aug 2013"},{"$f":"ZZZ__FnCalls!F51","v":"Sep 2013"},{"$f":"ZZZ__FnCalls!F52","v":"Oct 2013"},{"$f":"ZZZ__FnCalls!F53","v":"Nov 2013"},{"$f":"ZZZ__FnCalls!F54","v":"Dec 2013"},{"$f":"ZZZ__FnCalls!H43","v":"2013"},{"$f":"ZZZ__FnCalls!F55","v":"Jan 2014"},{"$f":"ZZZ__FnCalls!F56","v":"Feb 2014"},{"$f":"ZZZ__FnCalls!F57","v":"Mar 2014"},{"$f":"ZZZ__FnCalls!F58","v":"Apr 2014"},{"$f":"ZZZ__FnCalls!F59","v":"May 2014"},{"$f":"ZZZ__FnCalls!F60","v":"Jun 2014"},{"$f":"ZZZ__FnCalls!F61","v":"Jul 2014"},{"$f":"ZZZ__FnCalls!F62","v":"Aug 2014"},{"$f":"ZZZ__FnCalls!F63","v":"Sep 2014"},{"$f":"ZZZ__FnCalls!F64","v":"Oct 2014"},{"$f":"ZZZ__FnCalls!F65","v":"Nov 2014"},{"$f":"ZZZ__FnCalls!F66","v":"Dec 2014"},{"$f":"ZZZ__FnCalls!H55","v":"2014"},{"$f":"ZZZ__FnCalls!F67","v":"Jan 2015"},{"$f":"ZZZ__FnCalls!F68","v":"Feb 2015"},{"$f":"ZZZ__FnCalls!F69","v":"Mar 2015"},{"$f":"ZZZ__FnCalls!F70","v":"Apr 2015"},{"$f":"ZZZ__FnCalls!F71","v":"May 2015"},{"$f":"ZZZ__FnCalls!F72","v":"Jun 2015"},{"$f":"ZZZ__FnCalls!F73","v":"Jul 2015"},{"$f":"ZZZ__FnCalls!F74","v":"Aug 2015"},{"$f":"ZZZ__FnCalls!F75","v":"Sep 2015"},{"$f":"ZZZ__FnCalls!F76","v":"Oct 2015"},{"$f":"ZZZ__FnCalls!F77","v":"Nov 2015"},{"$f":"ZZZ__FnCalls!F78","v":"Dec 2015"},{"$f":"ZZZ__FnCalls!H67","v":"2015"},{"$f":"ZZZ__FnCalls!F79","v":"Jan 2016"},{"$f":"ZZZ__FnCalls!F80","v":"Feb 2016"},{"$f":"ZZZ__FnCalls!F81","v":"Mar 2016"},{"$f":"ZZZ__FnCalls!F82","v":"Apr 2016"},{"$f":"ZZZ__FnCalls!F83","v":"May 2016"},{"$f":"ZZZ__FnCalls!F84","v":"Jun 2016"},{"$f":"ZZZ__FnCalls!F85","v":"Jul 2016"},{"$f":"ZZZ__FnCalls!F86","v":"Aug 2016"},{"$f":"ZZZ__FnCalls!F87","v":"Sep 2016"},{"$f":"ZZZ__FnCalls!F88","v":"Oct 2016"},{"$f":"ZZZ__FnCalls!F89","v":"Nov 2016"},{"$f":"ZZZ__FnCalls!F90","v":"Dec 2016"},{"$f":"ZZZ__FnCalls!H79","v":"2016"},{"$f":"ZZZ__FnCalls!F91","v":"Jan 2017"},{"$f":"ZZZ__FnCalls!F92","v":"Feb 2017"},{"$f":"ZZZ__FnCalls!F93","v":"Mar 2017"},{"$f":"ZZZ__FnCalls!F94","v":"Apr 2017"},{"$f":"ZZZ__FnCalls!F95","v":"May 2017"},{"$f":"ZZZ__FnCalls!F96","v":"Jun 2017"},{"$f":"ZZZ__FnCalls!F97","v":"Jul 2017"},{"$f":"ZZZ__FnCalls!F98","v":"Aug 2017"},{"$f":"ZZZ__FnCalls!F99","v":"Sep 2017"},{"$f":"ZZZ__FnCalls!F100","v":"Oct 2017"},{"$f":"ZZZ__FnCalls!F101","v":"Nov 2017"},{"$f":"ZZZ__FnCalls!F102","v":"Dec 2017"},{"$f":"ZZZ__FnCalls!H91","v":"2017"},{"$f":"ZZZ__FnCalls!F103","v":"Jan 2018"},{"$f":"ZZZ__FnCalls!F104","v":"Feb 2018"},{"$f":"ZZZ__FnCalls!F105","v":"Mar 2018"},{"$f":"ZZZ__FnCalls!F106","v":"Apr 2018"},{"$f":"ZZZ__FnCalls!F107","v":"May 2018"},{"$f":"ZZZ__FnCalls!F108","v":"Jun 2018"},{"$f":"ZZZ__FnCalls!F109","v":"Jul 2018"},{"$f":"ZZZ__FnCalls!F110","v":"Aug 2018"},{"$f":"ZZZ__FnCalls!F111","v":"Sep 2018"},{"$f":"ZZZ__FnCalls!F112","v":"Oct 2018"},{"$f":"ZZZ__FnCalls!F113","v":"Nov 2018"},{"$f":"ZZZ__FnCalls!F114","v":"Dec 2018"},{"$f":"ZZZ__FnCalls!H103","v":"2018"},{"$f":"ZZZ__FnCalls!F115","v":"Jan 2019"},{"$f":"ZZZ__FnCalls!F116","v":"Feb 2019"},{"$f":"ZZZ__FnCalls!F117","v":"Mar 2019"},{"$f":"ZZZ__FnCalls!F118","v":"Apr 2019"},{"$f":"ZZZ__FnCalls!F119","v":"May 2019"},{"$f":"ZZZ__FnCalls!F120","v":"Jun 2019"},{"$f":"ZZZ__FnCalls!F121","v":"Jul 2019"},{"$f":"ZZZ__FnCalls!F122","v":"Aug 2019"},{"$f":"ZZZ__FnCalls!F123","v":"Sep 2019"},{"$f":"ZZZ__FnCalls!F124","v":"Oct 2019"},{"$f":"ZZZ__FnCalls!F125","v":"Nov 2019"},{"$f":"ZZZ__FnCalls!F126","v":"Dec 2019"},{"$f":"ZZZ__FnCalls!H115","v":"2019"},{"$f":"ZZZ__FnCalls!F127","v":"Jan 2020"},{"$f":"ZZZ__FnCalls!F128","v":"Feb 2020"},{"$f":"ZZZ__FnCalls!F129","v":"Mar 2020"},{"$f":"ZZZ__FnCalls!F130","v":"Apr 2020"},{"$f":"ZZZ__FnCalls!F131","v":"May 2020"},{"$f":"ZZZ__FnCalls!F132","v":"Jun 2020"},{"$f":"ZZZ__FnCalls!F133","v":"Jul 2020"},{"$f":"ZZZ__FnCalls!F134","v":"Aug 2020"},{"$f":"ZZZ__FnCalls!F135","v":"Sep 2020"},{"$f":"ZZZ__FnCalls!F136","v":"Oct 2020"},{"$f":"ZZZ__FnCalls!F137","v":"Nov 2020"},{"$f":"ZZZ__FnCalls!F138","v":"Dec 2020"},{"$f":"ZZZ__FnCalls!H127","v":"2020"}]
[null,{"$f":"ZZZ__FnCalls!F7","v":"Jan 2010"},{"$f":"ZZZ__FnCalls!F8","v":"Feb 2010"},{"$f":"ZZZ__FnCalls!F9","v":"Mar 2010"},{"$f":"ZZZ__FnCalls!F10","v":"Apr 2010"},{"$f":"ZZZ__FnCalls!F11","v":"May 2010"},{"$f":"ZZZ__FnCalls!F12","v":"Jun 2010"},{"$f":"ZZZ__FnCalls!F13","v":"Jul 2010"},{"$f":"ZZZ__FnCalls!F14","v":"Aug 2010"},{"$f":"ZZZ__FnCalls!F15","v":"Sep 2010"},{"$f":"ZZZ__FnCalls!F16","v":"Oct 2010"},{"$f":"ZZZ__FnCalls!F17","v":"Nov 2010"},{"$f":"ZZZ__FnCalls!F18","v":"Dec 2010"},{"$f":"ZZZ__FnCalls!F7","v":"Jan 2010"},{"$f":"ZZZ__FnCalls!F19","v":"Jan 2011"},{"$f":"ZZZ__FnCalls!F20","v":"Feb 2011"},{"$f":"ZZZ__FnCalls!F21","v":"Mar 2011"},{"$f":"ZZZ__FnCalls!F22","v":"Apr 2011"},{"$f":"ZZZ__FnCalls!F23","v":"May 2011"},{"$f":"ZZZ__FnCalls!F24","v":"Jun 2011"},{"$f":"ZZZ__FnCalls!F25","v":"Jul 2011"},{"$f":"ZZZ__FnCalls!F26","v":"Aug 2011"},{"$f":"ZZZ__FnCalls!F27","v":"Sep 2011"},{"$f":"ZZZ__FnCalls!F28","v":"Oct 2011"},{"$f":"ZZZ__FnCalls!F29","v":"Nov 2011"},{"$f":"ZZZ__FnCalls!F30","v":"Dec 2011"},{"$f":"ZZZ__FnCalls!F19","v":"Jan 2011"},{"$f":"ZZZ__FnCalls!F31","v":"Jan 2012"},{"$f":"ZZZ__FnCalls!F32","v":"Feb 2012"},{"$f":"ZZZ__FnCalls!F33","v":"Mar 2012"},{"$f":"ZZZ__FnCalls!F34","v":"Apr 2012"},{"$f":"ZZZ__FnCalls!F35","v":"May 2012"},{"$f":"ZZZ__FnCalls!F36","v":"Jun 2012"},{"$f":"ZZZ__FnCalls!F37","v":"Jul 2012"},{"$f":"ZZZ__FnCalls!F38","v":"Aug 2012"},{"$f":"ZZZ__FnCalls!F39","v":"Sep 2012"},{"$f":"ZZZ__FnCalls!F40","v":"Oct 2012"},{"$f":"ZZZ__FnCalls!F41","v":"Nov 2012"},{"$f":"ZZZ__FnCalls!F42","v":"Dec 2012"},{"$f":"ZZZ__FnCalls!F31","v":"Jan 2012"},{"$f":"ZZZ__FnCalls!F43","v":"Jan 2013"},{"$f":"ZZZ__FnCalls!F44","v":"Feb 2013"},{"$f":"ZZZ__FnCalls!F45","v":"Mar 2013"},{"$f":"ZZZ__FnCalls!F46","v":"Apr 2013"},{"$f":"ZZZ__FnCalls!F47","v":"May 2013"},{"$f":"ZZZ__FnCalls!F48","v":"Jun 2013"},{"$f":"ZZZ__FnCalls!F49","v":"Jul 2013"},{"$f":"ZZZ__FnCalls!F50","v":"Aug 2013"},{"$f":"ZZZ__FnCalls!F51","v":"Sep 2013"},{"$f":"ZZZ__FnCalls!F52","v":"Oct 2013"},{"$f":"ZZZ__FnCalls!F53","v":"Nov 2013"},{"$f":"ZZZ__FnCalls!F54","v":"Dec 2013"},{"$f":"ZZZ__FnCalls!F43","v":"Jan 2013"},{"$f":"ZZZ__FnCalls!F55","v":"Jan 2014"},{"$f":"ZZZ__FnCalls!F56","v":"Feb 2014"},{"$f":"ZZZ__FnCalls!F57","v":"Mar 2014"},{"$f":"ZZZ__FnCalls!F58","v":"Apr 2014"},{"$f":"ZZZ__FnCalls!F59","v":"May 2014"},{"$f":"ZZZ__FnCalls!F60","v":"Jun 2014"},{"$f":"ZZZ__FnCalls!F61","v":"Jul 2014"},{"$f":"ZZZ__FnCalls!F62","v":"Aug 2014"},{"$f":"ZZZ__FnCalls!F63","v":"Sep 2014"},{"$f":"ZZZ__FnCalls!F64","v":"Oct 2014"},{"$f":"ZZZ__FnCalls!F65","v":"Nov 2014"},{"$f":"ZZZ__FnCalls!F66","v":"Dec 2014"},{"$f":"ZZZ__FnCalls!F55","v":"Jan 2014"},{"$f":"ZZZ__FnCalls!F67","v":"Jan 2015"},{"$f":"ZZZ__FnCalls!F68","v":"Feb 2015"},{"$f":"ZZZ__FnCalls!F69","v":"Mar 2015"},{"$f":"ZZZ__FnCalls!F70","v":"Apr 2015"},{"$f":"ZZZ__FnCalls!F71","v":"May 2015"},{"$f":"ZZZ__FnCalls!F72","v":"Jun 2015"},{"$f":"ZZZ__FnCalls!F73","v":"Jul 2015"},{"$f":"ZZZ__FnCalls!F74","v":"Aug 2015"},{"$f":"ZZZ__FnCalls!F75","v":"Sep 2015"},{"$f":"ZZZ__FnCalls!F76","v":"Oct 2015"},{"$f":"ZZZ__FnCalls!F77","v":"Nov 2015"},{"$f":"ZZZ__FnCalls!F78","v":"Dec 2015"},{"$f":"ZZZ__FnCalls!F67","v":"Jan 2015"},{"$f":"ZZZ__FnCalls!F79","v":"Jan 2016"},{"$f":"ZZZ__FnCalls!F80","v":"Feb 2016"},{"$f":"ZZZ__FnCalls!F81","v":"Mar 2016"},{"$f":"ZZZ__FnCalls!F82","v":"Apr 2016"},{"$f":"ZZZ__FnCalls!F83","v":"May 2016"},{"$f":"ZZZ__FnCalls!F84","v":"Jun 2016"},{"$f":"ZZZ__FnCalls!F85","v":"Jul 2016"},{"$f":"ZZZ__FnCalls!F86","v":"Aug 2016"},{"$f":"ZZZ__FnCalls!F87","v":"Sep 2016"},{"$f":"ZZZ__FnCalls!F88","v":"Oct 2016"},{"$f":"ZZZ__FnCalls!F89","v":"Nov 2016"},{"$f":"ZZZ__FnCalls!F90","v":"Dec 2016"},{"$f":"ZZZ__FnCalls!F79","v":"Jan 2016"},{"$f":"ZZZ__FnCalls!F91","v":"Jan 2017"},{"$f":"ZZZ__FnCalls!F92","v":"Feb 2017"},{"$f":"ZZZ__FnCalls!F93","v":"Mar 2017"},{"$f":"ZZZ__FnCalls!F94","v":"Apr 2017"},{"$f":"ZZZ__FnCalls!F95","v":"May 2017"},{"$f":"ZZZ__FnCalls!F96","v":"Jun 2017"},{"$f":"ZZZ__FnCalls!F97","v":"Jul 2017"},{"$f":"ZZZ__FnCalls!F98","v":"Aug 2017"},{"$f":"ZZZ__FnCalls!F99","v":"Sep 2017"},{"$f":"ZZZ__FnCalls!F100","v":"Oct 2017"},{"$f":"ZZZ__FnCalls!F101","v":"Nov 2017"},{"$f":"ZZZ__FnCalls!F102","v":"Dec 2017"},{"$f":"ZZZ__FnCalls!F91","v":"Jan 2017"},{"$f":"ZZZ__FnCalls!F103","v":"Jan 2018"},{"$f":"ZZZ__FnCalls!F104","v":"Feb 2018"},{"$f":"ZZZ__FnCalls!F105","v":"Mar 2018"},{"$f":"ZZZ__FnCalls!F106","v":"Apr 2018"},{"$f":"ZZZ__FnCalls!F107","v":"May 2018"},{"$f":"ZZZ__FnCalls!F108","v":"Jun 2018"},{"$f":"ZZZ__FnCalls!F109","v":"Jul 2018"},{"$f":"ZZZ__FnCalls!F110","v":"Aug 2018"},{"$f":"ZZZ__FnCalls!F111","v":"Sep 2018"},{"$f":"ZZZ__FnCalls!F112","v":"Oct 2018"},{"$f":"ZZZ__FnCalls!F113","v":"Nov 2018"},{"$f":"ZZZ__FnCalls!F114","v":"Dec 2018"},{"$f":"ZZZ__FnCalls!F103","v":"Jan 2018"},{"$f":"ZZZ__FnCalls!F115","v":"Jan 2019"},{"$f":"ZZZ__FnCalls!F116","v":"Feb 2019"},{"$f":"ZZZ__FnCalls!F117","v":"Mar 2019"},{"$f":"ZZZ__FnCalls!F118","v":"Apr 2019"},{"$f":"ZZZ__FnCalls!F119","v":"May 2019"},{"$f":"ZZZ__FnCalls!F120","v":"Jun 2019"},{"$f":"ZZZ__FnCalls!F121","v":"Jul 2019"},{"$f":"ZZZ__FnCalls!F122","v":"Aug 2019"},{"$f":"ZZZ__FnCalls!F123","v":"Sep 2019"},{"$f":"ZZZ__FnCalls!F124","v":"Oct 2019"},{"$f":"ZZZ__FnCalls!F125","v":"Nov 2019"},{"$f":"ZZZ__FnCalls!F126","v":"Dec 2019"},{"$f":"ZZZ__FnCalls!F115","v":"Jan 2019"},{"$f":"ZZZ__FnCalls!F127","v":"Jan 2020"},{"$f":"ZZZ__FnCalls!F128","v":"Feb 2020"},{"$f":"ZZZ__FnCalls!F129","v":"Mar 2020"},{"$f":"ZZZ__FnCalls!F130","v":"Apr 2020"},{"$f":"ZZZ__FnCalls!F131","v":"May 2020"},{"$f":"ZZZ__FnCalls!F132","v":"Jun 2020"},{"$f":"ZZZ__FnCalls!F133","v":"Jul 2020"},{"$f":"ZZZ__FnCalls!F134","v":"Aug 2020"},{"$f":"ZZZ__FnCalls!F135","v":"Sep 2020"},{"$f":"ZZZ__FnCalls!F136","v":"Oct 2020"},{"$f":"ZZZ__FnCalls!F137","v":"Nov 2020"},{"$f":"ZZZ__FnCalls!F138","v":"Dec 2020"},{"$f":"ZZZ__FnCalls!F127","v":"Jan 2020"}]
[{"$f":"\"Output_Potential_stdev_1\"","v":"Output_Potential_stdev_1"}]
[null,{"$f":"ZZZ__FnCalls!F7","v":"Jan 2010"},{"$f":"ZZZ__FnCalls!F8","v":"Feb 2010"},{"$f":"ZZZ__FnCalls!F9","v":"Mar 2010"},{"$f":"ZZZ__FnCalls!F10","v":"Apr 2010"},{"$f":"ZZZ__FnCalls!F11","v":"May 2010"},{"$f":"ZZZ__FnCalls!F12","v":"Jun 2010"},{"$f":"ZZZ__FnCalls!F13","v":"Jul 2010"},{"$f":"ZZZ__FnCalls!F14","v":"Aug 2010"},{"$f":"ZZZ__FnCalls!F15","v":"Sep 2010"},{"$f":"ZZZ__FnCalls!F16","v":"Oct 2010"},{"$f":"ZZZ__FnCalls!F17","v":"Nov 2010"},{"$f":"ZZZ__FnCalls!F18","v":"Dec 2010"},{"$f":"ZZZ__FnCalls!H7","v":"2010"},{"$f":"ZZZ__FnCalls!F19","v":"Jan 2011"},{"$f":"ZZZ__FnCalls!F20","v":"Feb 2011"},{"$f":"ZZZ__FnCalls!F21","v":"Mar 2011"},{"$f":"ZZZ__FnCalls!F22","v":"Apr 2011"},{"$f":"ZZZ__FnCalls!F23","v":"May 2011"},{"$f":"ZZZ__FnCalls!F24","v":"Jun 2011"},{"$f":"ZZZ__FnCalls!F25","v":"Jul 2011"},{"$f":"ZZZ__FnCalls!F26","v":"Aug 2011"},{"$f":"ZZZ__FnCalls!F27","v":"Sep 2011"},{"$f":"ZZZ__FnCalls!F28","v":"Oct 2011"},{"$f":"ZZZ__FnCalls!F29","v":"Nov 2011"},{"$f":"ZZZ__FnCalls!F30","v":"Dec 2011"},{"$f":"ZZZ__FnCalls!H19","v":"2011"},{"$f":"ZZZ__FnCalls!F31","v":"Jan 2012"},{"$f":"ZZZ__FnCalls!F32","v":"Feb 2012"},{"$f":"ZZZ__FnCalls!F33","v":"Mar 2012"},{"$f":"ZZZ__FnCalls!F34","v":"Apr 2012"},{"$f":"ZZZ__FnCalls!F35","v":"May 2012"},{"$f":"ZZZ__FnCalls!F36","v":"Jun 2012"},{"$f":"ZZZ__FnCalls!F37","v":"Jul 2012"},{"$f":"ZZZ__FnCalls!F38","v":"Aug 2012"},{"$f":"ZZZ__FnCalls!F39","v":"Sep 2012"},{"$f":"ZZZ__FnCalls!F40","v":"Oct 2012"},{"$f":"ZZZ__FnCalls!F41","v":"Nov 2012"},{"$f":"ZZZ__FnCalls!F42","v":"Dec 2012"},{"$f":"ZZZ__FnCalls!H31","v":"2012"},{"$f":"ZZZ__FnCalls!F43","v":"Jan 2013"},{"$f":"ZZZ__FnCalls!F44","v":"Feb 2013"},{"$f":"ZZZ__FnCalls!F45","v":"Mar 2013"},{"$f":"ZZZ__FnCalls!F46","v":"Apr 2013"},{"$f":"ZZZ__FnCalls!F47","v":"May 2013"},{"$f":"ZZZ__FnCalls!F48","v":"Jun 2013"},{"$f":"ZZZ__FnCalls!F49","v":"Jul 2013"},{"$f":"ZZZ__FnCalls!F50","v":"Aug 2013"},{"$f":"ZZZ__FnCalls!F51","v":"Sep 2013"},{"$f":"ZZZ__FnCalls!F52","v":"Oct 2013"},{"$f":"ZZZ__FnCalls!F53","v":"Nov 2013"},{"$f":"ZZZ__FnCalls!F54","v":"Dec 2013"},{"$f":"ZZZ__FnCalls!H43","v":"2013"},{"$f":"ZZZ__FnCalls!F55","v":"Jan 2014"},{"$f":"ZZZ__FnCalls!F56","v":"Feb 2014"},{"$f":"ZZZ__FnCalls!F57","v":"Mar 2014"},{"$f":"ZZZ__FnCalls!F58","v":"Apr 2014"},{"$f":"ZZZ__FnCalls!F59","v":"May 2014"},{"$f":"ZZZ__FnCalls!F60","v":"Jun 2014"},{"$f":"ZZZ__FnCalls!F61","v":"Jul 2014"},{"$f":"ZZZ__FnCalls!F62","v":"Aug 2014"},{"$f":"ZZZ__FnCalls!F63","v":"Sep 2014"},{"$f":"ZZZ__FnCalls!F64","v":"Oct 2014"},{"$f":"ZZZ__FnCalls!F65","v":"Nov 2014"},{"$f":"ZZZ__FnCalls!F66","v":"Dec 2014"},{"$f":"ZZZ__FnCalls!H55","v":"2014"},{"$f":"ZZZ__FnCalls!F67","v":"Jan 2015"},{"$f":"ZZZ__FnCalls!F68","v":"Feb 2015"},{"$f":"ZZZ__FnCalls!F69","v":"Mar 2015"},{"$f":"ZZZ__FnCalls!F70","v":"Apr 2015"},{"$f":"ZZZ__FnCalls!F71","v":"May 2015"},{"$f":"ZZZ__FnCalls!F72","v":"Jun 2015"},{"$f":"ZZZ__FnCalls!F73","v":"Jul 2015"},{"$f":"ZZZ__FnCalls!F74","v":"Aug 2015"},{"$f":"ZZZ__FnCalls!F75","v":"Sep 2015"},{"$f":"ZZZ__FnCalls!F76","v":"Oct 2015"},{"$f":"ZZZ__FnCalls!F77","v":"Nov 2015"},{"$f":"ZZZ__FnCalls!F78","v":"Dec 2015"},{"$f":"ZZZ__FnCalls!H67","v":"2015"},{"$f":"ZZZ__FnCalls!F79","v":"Jan 2016"},{"$f":"ZZZ__FnCalls!F80","v":"Feb 2016"},{"$f":"ZZZ__FnCalls!F81","v":"Mar 2016"},{"$f":"ZZZ__FnCalls!F82","v":"Apr 2016"},{"$f":"ZZZ__FnCalls!F83","v":"May 2016"},{"$f":"ZZZ__FnCalls!F84","v":"Jun 2016"},{"$f":"ZZZ__FnCalls!F85","v":"Jul 2016"},{"$f":"ZZZ__FnCalls!F86","v":"Aug 2016"},{"$f":"ZZZ__FnCalls!F87","v":"Sep 2016"},{"$f":"ZZZ__FnCalls!F88","v":"Oct 2016"},{"$f":"ZZZ__FnCalls!F89","v":"Nov 2016"},{"$f":"ZZZ__FnCalls!F90","v":"Dec 2016"},{"$f":"ZZZ__FnCalls!H79","v":"2016"},{"$f":"ZZZ__FnCalls!F91","v":"Jan 2017"},{"$f":"ZZZ__FnCalls!F92","v":"Feb 2017"},{"$f":"ZZZ__FnCalls!F93","v":"Mar 2017"},{"$f":"ZZZ__FnCalls!F94","v":"Apr 2017"},{"$f":"ZZZ__FnCalls!F95","v":"May 2017"},{"$f":"ZZZ__FnCalls!F96","v":"Jun 2017"},{"$f":"ZZZ__FnCalls!F97","v":"Jul 2017"},{"$f":"ZZZ__FnCalls!F98","v":"Aug 2017"},{"$f":"ZZZ__FnCalls!F99","v":"Sep 2017"},{"$f":"ZZZ__FnCalls!F100","v":"Oct 2017"},{"$f":"ZZZ__FnCalls!F101","v":"Nov 2017"},{"$f":"ZZZ__FnCalls!F102","v":"Dec 2017"},{"$f":"ZZZ__FnCalls!H91","v":"2017"},{"$f":"ZZZ__FnCalls!F103","v":"Jan 2018"},{"$f":"ZZZ__FnCalls!F104","v":"Feb 2018"},{"$f":"ZZZ__FnCalls!F105","v":"Mar 2018"},{"$f":"ZZZ__FnCalls!F106","v":"Apr 2018"},{"$f":"ZZZ__FnCalls!F107","v":"May 2018"},{"$f":"ZZZ__FnCalls!F108","v":"Jun 2018"},{"$f":"ZZZ__FnCalls!F109","v":"Jul 2018"},{"$f":"ZZZ__FnCalls!F110","v":"Aug 2018"},{"$f":"ZZZ__FnCalls!F111","v":"Sep 2018"},{"$f":"ZZZ__FnCalls!F112","v":"Oct 2018"},{"$f":"ZZZ__FnCalls!F113","v":"Nov 2018"},{"$f":"ZZZ__FnCalls!F114","v":"Dec 2018"},{"$f":"ZZZ__FnCalls!H103","v":"2018"},{"$f":"ZZZ__FnCalls!F115","v":"Jan 2019"},{"$f":"ZZZ__FnCalls!F116","v":"Feb 2019"},{"$f":"ZZZ__FnCalls!F117","v":"Mar 2019"},{"$f":"ZZZ__FnCalls!F118","v":"Apr 2019"},{"$f":"ZZZ__FnCalls!F119","v":"May 2019"},{"$f":"ZZZ__FnCalls!F120","v":"Jun 2019"},{"$f":"ZZZ__FnCalls!F121","v":"Jul 2019"},{"$f":"ZZZ__FnCalls!F122","v":"Aug 2019"},{"$f":"ZZZ__FnCalls!F123","v":"Sep 2019"},{"$f":"ZZZ__FnCalls!F124","v":"Oct 2019"},{"$f":"ZZZ__FnCalls!F125","v":"Nov 2019"},{"$f":"ZZZ__FnCalls!F126","v":"Dec 2019"},{"$f":"ZZZ__FnCalls!H115","v":"2019"},{"$f":"ZZZ__FnCalls!F127","v":"Jan 2020"},{"$f":"ZZZ__FnCalls!F128","v":"Feb 2020"},{"$f":"ZZZ__FnCalls!F129","v":"Mar 2020"},{"$f":"ZZZ__FnCalls!F130","v":"Apr 2020"},{"$f":"ZZZ__FnCalls!F131","v":"May 2020"},{"$f":"ZZZ__FnCalls!F132","v":"Jun 2020"},{"$f":"ZZZ__FnCalls!F133","v":"Jul 2020"},{"$f":"ZZZ__FnCalls!F134","v":"Aug 2020"},{"$f":"ZZZ__FnCalls!F135","v":"Sep 2020"},{"$f":"ZZZ__FnCalls!F136","v":"Oct 2020"},{"$f":"ZZZ__FnCalls!F137","v":"Nov 2020"},{"$f":"ZZZ__FnCalls!F138","v":"Dec 2020"},{"$f":"ZZZ__FnCalls!H127","v":"2020"}]
[null,{"$f":"ZZZ__FnCalls!A7","v":"2010-01-01"},{"$f":"ZZZ__FnCalls!A8","v":"2010-02-01"},{"$f":"ZZZ__FnCalls!A9","v":"2010-03-01"},{"$f":"ZZZ__FnCalls!A10","v":"2010-04-01"},{"$f":"ZZZ__FnCalls!A11","v":"2010-05-01"},{"$f":"ZZZ__FnCalls!A12","v":"2010-06-01"},{"$f":"ZZZ__FnCalls!A13","v":"2010-07-01"},{"$f":"ZZZ__FnCalls!A14","v":"2010-08-01"},{"$f":"ZZZ__FnCalls!A15","v":"2010-09-01"},{"$f":"ZZZ__FnCalls!A16","v":"2010-10-01"},{"$f":"ZZZ__FnCalls!A17","v":"2010-11-01"},{"$f":"ZZZ__FnCalls!A18","v":"2010-12-01"},{"$f":"ZZZ__FnCalls!A7","v":"2010-01-01"},{"$f":"ZZZ__FnCalls!A19","v":"2011-01-01"},{"$f":"ZZZ__FnCalls!A20","v":"2011-02-01"},{"$f":"ZZZ__FnCalls!A21","v":"2011-03-01"},{"$f":"ZZZ__FnCalls!A22","v":"2011-04-01"},{"$f":"ZZZ__FnCalls!A23","v":"2011-05-01"},{"$f":"ZZZ__FnCalls!A24","v":"2011-06-01"},{"$f":"ZZZ__FnCalls!A25","v":"2011-07-01"},{"$f":"ZZZ__FnCalls!A26","v":"2011-08-01"},{"$f":"ZZZ__FnCalls!A27","v":"2011-09-01"},{"$f":"ZZZ__FnCalls!A28","v":"2011-10-01"},{"$f":"ZZZ__FnCalls!A29","v":"2011-11-01"},{"$f":"ZZZ__FnCalls!A30","v":"2011-12-01"},{"$f":"ZZZ__FnCalls!A19","v":"2011-01-01"},{"$f":"ZZZ__FnCalls!A31","v":"2012-01-01"},{"$f":"ZZZ__FnCalls!A32","v":"2012-02-01"},{"$f":"ZZZ__FnCalls!A33","v":"2012-03-01"},{"$f":"ZZZ__FnCalls!A34","v":"2012-04-01"},{"$f":"ZZZ__FnCalls!A35","v":"2012-05-01"},{"$f":"ZZZ__FnCalls!A36","v":"2012-06-01"},{"$f":"ZZZ__FnCalls!A37","v":"2012-07-01"},{"$f":"ZZZ__FnCalls!A38","v":"2012-08-01"},{"$f":"ZZZ__FnCalls!A39","v":"2012-09-01"},{"$f":"ZZZ__FnCalls!A40","v":"2012-10-01"},{"$f":"ZZZ__FnCalls!A41","v":"2012-11-01"},{"$f":"ZZZ__FnCalls!A42","v":"2012-12-01"},{"$f":"ZZZ__FnCalls!A31","v":"2012-01-01"},{"$f":"ZZZ__FnCalls!A43","v":"2013-01-01"},{"$f":"ZZZ__FnCalls!A44","v":"2013-02-01"},{"$f":"ZZZ__FnCalls!A45","v":"2013-03-01"},{"$f":"ZZZ__FnCalls!A46","v":"2013-04-01"},{"$f":"ZZZ__FnCalls!A47","v":"2013-05-01"},{"$f":"ZZZ__FnCalls!A48","v":"2013-06-01"},{"$f":"ZZZ__FnCalls!A49","v":"2013-07-01"},{"$f":"ZZZ__FnCalls!A50","v":"2013-08-01"},{"$f":"ZZZ__FnCalls!A51","v":"2013-09-01"},{"$f":"ZZZ__FnCalls!A52","v":"2013-10-01"},{"$f":"ZZZ__FnCalls!A53","v":"2013-11-01"},{"$f":"ZZZ__FnCalls!A54","v":"2013-12-01"},{"$f":"ZZZ__FnCalls!A43","v":"2013-01-01"},{"$f":"ZZZ__FnCalls!A55","v":"2014-01-01"},{"$f":"ZZZ__FnCalls!A56","v":"2014-02-01"},{"$f":"ZZZ__FnCalls!A57","v":"2014-03-01"},{"$f":"ZZZ__FnCalls!A58","v":"2014-04-01"},{"$f":"ZZZ__FnCalls!A59","v":"2014-05-01"},{"$f":"ZZZ__FnCalls!A60","v":"2014-06-01"},{"$f":"ZZZ__FnCalls!A61","v":"2014-07-01"},{"$f":"ZZZ__FnCalls!A62","v":"2014-08-01"},{"$f":"ZZZ__FnCalls!A63","v":"2014-09-01"},{"$f":"ZZZ__FnCalls!A64","v":"2014-10-01"},{"$f":"ZZZ__FnCalls!A65","v":"2014-11-01"},{"$f":"ZZZ__FnCalls!A66","v":"2014-12-01"},{"$f":"ZZZ__FnCalls!A55","v":"2014-01-01"},{"$f":"ZZZ__FnCalls!A67","v":"2015-01-01"},{"$f":"ZZZ__FnCalls!A68","v":"2015-02-01"},{"$f":"ZZZ__FnCalls!A69","v":"2015-03-01"},{"$f":"ZZZ__FnCalls!A70","v":"2015-04-01"},{"$f":"ZZZ__FnCalls!A71","v":"2015-05-01"},{"$f":"ZZZ__FnCalls!A72","v":"2015-06-01"},{"$f":"ZZZ__FnCalls!A73","v":"2015-07-01"},{"$f":"ZZZ__FnCalls!A74","v":"2015-08-01"},{"$f":"ZZZ__FnCalls!A75","v":"2015-09-01"},{"$f":"ZZZ__FnCalls!A76","v":"2015-10-01"},{"$f":"ZZZ__FnCalls!A77","v":"2015-11-01"},{"$f":"ZZZ__FnCalls!A78","v":"2015-12-01"},{"$f":"ZZZ__FnCalls!A67","v":"2015-01-01"},{"$f":"ZZZ__FnCalls!A79","v":"2016-01-01"},{"$f":"ZZZ__FnCalls!A80","v":"2016-02-01"},{"$f":"ZZZ__FnCalls!A81","v":"2016-03-01"},{"$f":"ZZZ__FnCalls!A82","v":"2016-04-01"},{"$f":"ZZZ__FnCalls!A83","v":"2016-05-01"},{"$f":"ZZZ__FnCalls!A84","v":"2016-06-01"},{"$f":"ZZZ__FnCalls!A85","v":"2016-07-01"},{"$f":"ZZZ__FnCalls!A86","v":"2016-08-01"},{"$f":"ZZZ__FnCalls!A87","v":"2016-09-01"},{"$f":"ZZZ__FnCalls!A88","v":"2016-10-01"},{"$f":"ZZZ__FnCalls!A89","v":"2016-11-01"},{"$f":"ZZZ__FnCalls!A90","v":"2016-12-01"},{"$f":"ZZZ__FnCalls!A79","v":"2016-01-01"},{"$f":"ZZZ__FnCalls!A91","v":"2017-01-01"},{"$f":"ZZZ__FnCalls!A92","v":"2017-02-01"},{"$f":"ZZZ__FnCalls!A93","v":"2017-03-01"},{"$f":"ZZZ__FnCalls!A94","v":"2017-04-01"},{"$f":"ZZZ__FnCalls!A95","v":"2017-05-01"},{"$f":"ZZZ__FnCalls!A96","v":"2017-06-01"},{"$f":"ZZZ__FnCalls!A97","v":"2017-07-01"},{"$f":"ZZZ__FnCalls!A98","v":"2017-08-01"},{"$f":"ZZZ__FnCalls!A99","v":"2017-09-01"},{"$f":"ZZZ__FnCalls!A100","v":"2017-10-01"},{"$f":"ZZZ__FnCalls!A101","v":"2017-11-01"},{"$f":"ZZZ__FnCalls!A102","v":"2017-12-01"},{"$f":"ZZZ__FnCalls!A91","v":"2017-01-01"},{"$f":"ZZZ__FnCalls!A103","v":"2018-01-01"},{"$f":"ZZZ__FnCalls!A104","v":"2018-02-01"},{"$f":"ZZZ__FnCalls!A105","v":"2018-03-01"},{"$f":"ZZZ__FnCalls!A106","v":"2018-04-01"},{"$f":"ZZZ__FnCalls!A107","v":"2018-05-01"},{"$f":"ZZZ__FnCalls!A108","v":"2018-06-01"},{"$f":"ZZZ__FnCalls!A109","v":"2018-07-01"},{"$f":"ZZZ__FnCalls!A110","v":"2018-08-01"},{"$f":"ZZZ__FnCalls!A111","v":"2018-09-01"},{"$f":"ZZZ__FnCalls!A112","v":"2018-10-01"},{"$f":"ZZZ__FnCalls!A113","v":"2018-11-01"},{"$f":"ZZZ__FnCalls!A114","v":"2018-12-01"},{"$f":"ZZZ__FnCalls!A103","v":"2018-01-01"},{"$f":"ZZZ__FnCalls!A115","v":"2019-01-01"},{"$f":"ZZZ__FnCalls!A116","v":"2019-02-01"},{"$f":"ZZZ__FnCalls!A117","v":"2019-03-01"},{"$f":"ZZZ__FnCalls!A118","v":"2019-04-01"},{"$f":"ZZZ__FnCalls!A119","v":"2019-05-01"},{"$f":"ZZZ__FnCalls!A120","v":"2019-06-01"},{"$f":"ZZZ__FnCalls!A121","v":"2019-07-01"},{"$f":"ZZZ__FnCalls!A122","v":"2019-08-01"},{"$f":"ZZZ__FnCalls!A123","v":"2019-09-01"},{"$f":"ZZZ__FnCalls!A124","v":"2019-10-01"},{"$f":"ZZZ__FnCalls!A125","v":"2019-11-01"},{"$f":"ZZZ__FnCalls!A126","v":"2019-12-01"},{"$f":"ZZZ__FnCalls!A115","v":"2019-01-01"},{"$f":"ZZZ__FnCalls!A127","v":"2020-01-01"},{"$f":"ZZZ__FnCalls!A128","v":"2020-02-01"},{"$f":"ZZZ__FnCalls!A129","v":"2020-03-01"},{"$f":"ZZZ__FnCalls!A130","v":"2020-04-01"},{"$f":"ZZZ__FnCalls!A131","v":"2020-05-01"},{"$f":"ZZZ__FnCalls!A132","v":"2020-06-01"},{"$f":"ZZZ__FnCalls!A133","v":"2020-07-01"},{"$f":"ZZZ__FnCalls!A134","v":"2020-08-01"},{"$f":"ZZZ__FnCalls!A135","v":"2020-09-01"},{"$f":"ZZZ__FnCalls!A136","v":"2020-10-01"},{"$f":"ZZZ__FnCalls!A137","v":"2020-11-01"},{"$f":"ZZZ__FnCalls!A138","v":"2020-12-01"},{"$f":"ZZZ__FnCalls!A127","v":"2020-01-01"}]
[{"$f":"\"Output_Potential_stdev_2\"","v":"Output_Potential_stdev_2"}]
[null,{"$f":"ZZZ__FnCalls!F7","v":"Jan 2010"},{"$f":"ZZZ__FnCalls!F8","v":"Feb 2010"},{"$f":"ZZZ__FnCalls!F9","v":"Mar 2010"},{"$f":"ZZZ__FnCalls!F10","v":"Apr 2010"},{"$f":"ZZZ__FnCalls!F11","v":"May 2010"},{"$f":"ZZZ__FnCalls!F12","v":"Jun 2010"},{"$f":"ZZZ__FnCalls!F13","v":"Jul 2010"},{"$f":"ZZZ__FnCalls!F14","v":"Aug 2010"},{"$f":"ZZZ__FnCalls!F15","v":"Sep 2010"},{"$f":"ZZZ__FnCalls!F16","v":"Oct 2010"},{"$f":"ZZZ__FnCalls!F17","v":"Nov 2010"},{"$f":"ZZZ__FnCalls!F18","v":"Dec 2010"},{"$f":"ZZZ__FnCalls!H7","v":"2010"},{"$f":"ZZZ__FnCalls!F19","v":"Jan 2011"},{"$f":"ZZZ__FnCalls!F20","v":"Feb 2011"},{"$f":"ZZZ__FnCalls!F21","v":"Mar 2011"},{"$f":"ZZZ__FnCalls!F22","v":"Apr 2011"},{"$f":"ZZZ__FnCalls!F23","v":"May 2011"},{"$f":"ZZZ__FnCalls!F24","v":"Jun 2011"},{"$f":"ZZZ__FnCalls!F25","v":"Jul 2011"},{"$f":"ZZZ__FnCalls!F26","v":"Aug 2011"},{"$f":"ZZZ__FnCalls!F27","v":"Sep 2011"},{"$f":"ZZZ__FnCalls!F28","v":"Oct 2011"},{"$f":"ZZZ__FnCalls!F29","v":"Nov 2011"},{"$f":"ZZZ__FnCalls!F30","v":"Dec 2011"},{"$f":"ZZZ__FnCalls!H19","v":"2011"},{"$f":"ZZZ__FnCalls!F31","v":"Jan 2012"},{"$f":"ZZZ__FnCalls!F32","v":"Feb 2012"},{"$f":"ZZZ__FnCalls!F33","v":"Mar 2012"},{"$f":"ZZZ__FnCalls!F34","v":"Apr 2012"},{"$f":"ZZZ__FnCalls!F35","v":"May 2012"},{"$f":"ZZZ__FnCalls!F36","v":"Jun 2012"},{"$f":"ZZZ__FnCalls!F37","v":"Jul 2012"},{"$f":"ZZZ__FnCalls!F38","v":"Aug 2012"},{"$f":"ZZZ__FnCalls!F39","v":"Sep 2012"},{"$f":"ZZZ__FnCalls!F40","v":"Oct 2012"},{"$f":"ZZZ__FnCalls!F41","v":"Nov 2012"},{"$f":"ZZZ__FnCalls!F42","v":"Dec 2012"},{"$f":"ZZZ__FnCalls!H31","v":"2012"},{"$f":"ZZZ__FnCalls!F43","v":"Jan 2013"},{"$f":"ZZZ__FnCalls!F44","v":"Feb 2013"},{"$f":"ZZZ__FnCalls!F45","v":"Mar 2013"},{"$f":"ZZZ__FnCalls!F46","v":"Apr 2013"},{"$f":"ZZZ__FnCalls!F47","v":"May 2013"},{"$f":"ZZZ__FnCalls!F48","v":"Jun 2013"},{"$f":"ZZZ__FnCalls!F49","v":"Jul 2013"},{"$f":"ZZZ__FnCalls!F50","v":"Aug 2013"},{"$f":"ZZZ__FnCalls!F51","v":"Sep 2013"},{"$f":"ZZZ__FnCalls!F52","v":"Oct 2013"},{"$f":"ZZZ__FnCalls!F53","v":"Nov 2013"},{"$f":"ZZZ__FnCalls!F54","v":"Dec 2013"},{"$f":"ZZZ__FnCalls!H43","v":"2013"},{"$f":"ZZZ__FnCalls!F55","v":"Jan 2014"},{"$f":"ZZZ__FnCalls!F56","v":"Feb 2014"},{"$f":"ZZZ__FnCalls!F57","v":"Mar 2014"},{"$f":"ZZZ__FnCalls!F58","v":"Apr 2014"},{"$f":"ZZZ__FnCalls!F59","v":"May 2014"},{"$f":"ZZZ__FnCalls!F60","v":"Jun 2014"},{"$f":"ZZZ__FnCalls!F61","v":"Jul 2014"},{"$f":"ZZZ__FnCalls!F62","v":"Aug 2014"},{"$f":"ZZZ__FnCalls!F63","v":"Sep 2014"},{"$f":"ZZZ__FnCalls!F64","v":"Oct 2014"},{"$f":"ZZZ__FnCalls!F65","v":"Nov 2014"},{"$f":"ZZZ__FnCalls!F66","v":"Dec 2014"},{"$f":"ZZZ__FnCalls!H55","v":"2014"},{"$f":"ZZZ__FnCalls!F67","v":"Jan 2015"},{"$f":"ZZZ__FnCalls!F68","v":"Feb 2015"},{"$f":"ZZZ__FnCalls!F69","v":"Mar 2015"},{"$f":"ZZZ__FnCalls!F70","v":"Apr 2015"},{"$f":"ZZZ__FnCalls!F71","v":"May 2015"},{"$f":"ZZZ__FnCalls!F72","v":"Jun 2015"},{"$f":"ZZZ__FnCalls!F73","v":"Jul 2015"},{"$f":"ZZZ__FnCalls!F74","v":"Aug 2015"},{"$f":"ZZZ__FnCalls!F75","v":"Sep 2015"},{"$f":"ZZZ__FnCalls!F76","v":"Oct 2015"},{"$f":"ZZZ__FnCalls!F77","v":"Nov 2015"},{"$f":"ZZZ__FnCalls!F78","v":"Dec 2015"},{"$f":"ZZZ__FnCalls!H67","v":"2015"},{"$f":"ZZZ__FnCalls!F79","v":"Jan 2016"},{"$f":"ZZZ__FnCalls!F80","v":"Feb 2016"},{"$f":"ZZZ__FnCalls!F81","v":"Mar 2016"},{"$f":"ZZZ__FnCalls!F82","v":"Apr 2016"},{"$f":"ZZZ__FnCalls!F83","v":"May 2016"},{"$f":"ZZZ__FnCalls!F84","v":"Jun 2016"},{"$f":"ZZZ__FnCalls!F85","v":"Jul 2016"},{"$f":"ZZZ__FnCalls!F86","v":"Aug 2016"},{"$f":"ZZZ__FnCalls!F87","v":"Sep 2016"},{"$f":"ZZZ__FnCalls!F88","v":"Oct 2016"},{"$f":"ZZZ__FnCalls!F89","v":"Nov 2016"},{"$f":"ZZZ__FnCalls!F90","v":"Dec 2016"},{"$f":"ZZZ__FnCalls!H79","v":"2016"},{"$f":"ZZZ__FnCalls!F91","v":"Jan 2017"},{"$f":"ZZZ__FnCalls!F92","v":"Feb 2017"},{"$f":"ZZZ__FnCalls!F93","v":"Mar 2017"},{"$f":"ZZZ__FnCalls!F94","v":"Apr 2017"},{"$f":"ZZZ__FnCalls!F95","v":"May 2017"},{"$f":"ZZZ__FnCalls!F96","v":"Jun 2017"},{"$f":"ZZZ__FnCalls!F97","v":"Jul 2017"},{"$f":"ZZZ__FnCalls!F98","v":"Aug 2017"},{"$f":"ZZZ__FnCalls!F99","v":"Sep 2017"},{"$f":"ZZZ__FnCalls!F100","v":"Oct 2017"},{"$f":"ZZZ__FnCalls!F101","v":"Nov 2017"},{"$f":"ZZZ__FnCalls!F102","v":"Dec 2017"},{"$f":"ZZZ__FnCalls!H91","v":"2017"},{"$f":"ZZZ__FnCalls!F103","v":"Jan 2018"},{"$f":"ZZZ__FnCalls!F104","v":"Feb 2018"},{"$f":"ZZZ__FnCalls!F105","v":"Mar 2018"},{"$f":"ZZZ__FnCalls!F106","v":"Apr 2018"},{"$f":"ZZZ__FnCalls!F107","v":"May 2018"},{"$f":"ZZZ__FnCalls!F108","v":"Jun 2018"},{"$f":"ZZZ__FnCalls!F109","v":"Jul 2018"},{"$f":"ZZZ__FnCalls!F110","v":"Aug 2018"},{"$f":"ZZZ__FnCalls!F111","v":"Sep 2018"},{"$f":"ZZZ__FnCalls!F112","v":"Oct 2018"},{"$f":"ZZZ__FnCalls!F113","v":"Nov 2018"},{"$f":"ZZZ__FnCalls!F114","v":"Dec 2018"},{"$f":"ZZZ__FnCalls!H103","v":"2018"},{"$f":"ZZZ__FnCalls!F115","v":"Jan 2019"},{"$f":"ZZZ__FnCalls!F116","v":"Feb 2019"},{"$f":"ZZZ__FnCalls!F117","v":"Mar 2019"},{"$f":"ZZZ__FnCalls!F118","v":"Apr 2019"},{"$f":"ZZZ__FnCalls!F119","v":"May 2019"},{"$f":"ZZZ__FnCalls!F120","v":"Jun 2019"},{"$f":"ZZZ__FnCalls!F121","v":"Jul 2019"},{"$f":"ZZZ__FnCalls!F122","v":"Aug 2019"},{"$f":"ZZZ__FnCalls!F123","v":"Sep 2019"},{"$f":"ZZZ__FnCalls!F124","v":"Oct 2019"},{"$f":"ZZZ__FnCalls!F125","v":"Nov 2019"},{"$f":"ZZZ__FnCalls!F126","v":"Dec 2019"},{"$f":"ZZZ__FnCalls!H115","v":"2019"},{"$f":"ZZZ__FnCalls!F127","v":"Jan 2020"},{"$f":"ZZZ__FnCalls!F128","v":"Feb 2020"},{"$f":"ZZZ__FnCalls!F129","v":"Mar 2020"},{"$f":"ZZZ__FnCalls!F130","v":"Apr 2020"},{"$f":"ZZZ__FnCalls!F131","v":"May 2020"},{"$f":"ZZZ__FnCalls!F132","v":"Jun 2020"},{"$f":"ZZZ__FnCalls!F133","v":"Jul 2020"},{"$f":"ZZZ__FnCalls!F134","v":"Aug 2020"},{"$f":"ZZZ__FnCalls!F135","v":"Sep 2020"},{"$f":"ZZZ__FnCalls!F136","v":"Oct 2020"},{"$f":"ZZZ__FnCalls!F137","v":"Nov 2020"},{"$f":"ZZZ__FnCalls!F138","v":"Dec 2020"},{"$f":"ZZZ__FnCalls!H127","v":"2020"}]
[null,{"$f":"ZZZ__FnCalls!F7","v":"Jan 2010"},{"$f":"ZZZ__FnCalls!F8","v":"Feb 2010"},{"$f":"ZZZ__FnCalls!F9","v":"Mar 2010"},{"$f":"ZZZ__FnCalls!F10","v":"Apr 2010"},{"$f":"ZZZ__FnCalls!F11","v":"May 2010"},{"$f":"ZZZ__FnCalls!F12","v":"Jun 2010"},{"$f":"ZZZ__FnCalls!F13","v":"Jul 2010"},{"$f":"ZZZ__FnCalls!F14","v":"Aug 2010"},{"$f":"ZZZ__FnCalls!F15","v":"Sep 2010"},{"$f":"ZZZ__FnCalls!F16","v":"Oct 2010"},{"$f":"ZZZ__FnCalls!F17","v":"Nov 2010"},{"$f":"ZZZ__FnCalls!F18","v":"Dec 2010"},{"$f":"ZZZ__FnCalls!F7","v":"Jan 2010"},{"$f":"ZZZ__FnCalls!F19","v":"Jan 2011"},{"$f":"ZZZ__FnCalls!F20","v":"Feb 2011"},{"$f":"ZZZ__FnCalls!F21","v":"Mar 2011"},{"$f":"ZZZ__FnCalls!F22","v":"Apr 2011"},{"$f":"ZZZ__FnCalls!F23","v":"May 2011"},{"$f":"ZZZ__FnCalls!F24","v":"Jun 2011"},{"$f":"ZZZ__FnCalls!F25","v":"Jul 2011"},{"$f":"ZZZ__FnCalls!F26","v":"Aug 2011"},{"$f":"ZZZ__FnCalls!F27","v":"Sep 2011"},{"$f":"ZZZ__FnCalls!F28","v":"Oct 2011"},{"$f":"ZZZ__FnCalls!F29","v":"Nov 2011"},{"$f":"ZZZ__FnCalls!F30","v":"Dec 2011"},{"$f":"ZZZ__FnCalls!F19","v":"Jan 2011"},{"$f":"ZZZ__FnCalls!F31","v":"Jan 2012"},{"$f":"ZZZ__FnCalls!F32","v":"Feb 2012"},{"$f":"ZZZ__FnCalls!F33","v":"Mar 2012"},{"$f":"ZZZ__FnCalls!F34","v":"Apr 2012"},{"$f":"ZZZ__FnCalls!F35","v":"May 2012"},{"$f":"ZZZ__FnCalls!F36","v":"Jun 2012"},{"$f":"ZZZ__FnCalls!F37","v":"Jul 2012"},{"$f":"ZZZ__FnCalls!F38","v":"Aug 2012"},{"$f":"ZZZ__FnCalls!F39","v":"Sep 2012"},{"$f":"ZZZ__FnCalls!F40","v":"Oct 2012"},{"$f":"ZZZ__FnCalls!F41","v":"Nov 2012"},{"$f":"ZZZ__FnCalls!F42","v":"Dec 2012"},{"$f":"ZZZ__FnCalls!F31","v":"Jan 2012"},{"$f":"ZZZ__FnCalls!F43","v":"Jan 2013"},{"$f":"ZZZ__FnCalls!F44","v":"Feb 2013"},{"$f":"ZZZ__FnCalls!F45","v":"Mar 2013"},{"$f":"ZZZ__FnCalls!F46","v":"Apr 2013"},{"$f":"ZZZ__FnCalls!F47","v":"May 2013"},{"$f":"ZZZ__FnCalls!F48","v":"Jun 2013"},{"$f":"ZZZ__FnCalls!F49","v":"Jul 2013"},{"$f":"ZZZ__FnCalls!F50","v":"Aug 2013"},{"$f":"ZZZ__FnCalls!F51","v":"Sep 2013"},{"$f":"ZZZ__FnCalls!F52","v":"Oct 2013"},{"$f":"ZZZ__FnCalls!F53","v":"Nov 2013"},{"$f":"ZZZ__FnCalls!F54","v":"Dec 2013"},{"$f":"ZZZ__FnCalls!F43","v":"Jan 2013"},{"$f":"ZZZ__FnCalls!F55","v":"Jan 2014"},{"$f":"ZZZ__FnCalls!F56","v":"Feb 2014"},{"$f":"ZZZ__FnCalls!F57","v":"Mar 2014"},{"$f":"ZZZ__FnCalls!F58","v":"Apr 2014"},{"$f":"ZZZ__FnCalls!F59","v":"May 2014"},{"$f":"ZZZ__FnCalls!F60","v":"Jun 2014"},{"$f":"ZZZ__FnCalls!F61","v":"Jul 2014"},{"$f":"ZZZ__FnCalls!F62","v":"Aug 2014"},{"$f":"ZZZ__FnCalls!F63","v":"Sep 2014"},{"$f":"ZZZ__FnCalls!F64","v":"Oct 2014"},{"$f":"ZZZ__FnCalls!F65","v":"Nov 2014"},{"$f":"ZZZ__FnCalls!F66","v":"Dec 2014"},{"$f":"ZZZ__FnCalls!F55","v":"Jan 2014"},{"$f":"ZZZ__FnCalls!F67","v":"Jan 2015"},{"$f":"ZZZ__FnCalls!F68","v":"Feb 2015"},{"$f":"ZZZ__FnCalls!F69","v":"Mar 2015"},{"$f":"ZZZ__FnCalls!F70","v":"Apr 2015"},{"$f":"ZZZ__FnCalls!F71","v":"May 2015"},{"$f":"ZZZ__FnCalls!F72","v":"Jun 2015"},{"$f":"ZZZ__FnCalls!F73","v":"Jul 2015"},{"$f":"ZZZ__FnCalls!F74","v":"Aug 2015"},{"$f":"ZZZ__FnCalls!F75","v":"Sep 2015"},{"$f":"ZZZ__FnCalls!F76","v":"Oct 2015"},{"$f":"ZZZ__FnCalls!F77","v":"Nov 2015"},{"$f":"ZZZ__FnCalls!F78","v":"Dec 2015"},{"$f":"ZZZ__FnCalls!F67","v":"Jan 2015"},{"$f":"ZZZ__FnCalls!F79","v":"Jan 2016"},{"$f":"ZZZ__FnCalls!F80","v":"Feb 2016"},{"$f":"ZZZ__FnCalls!F81","v":"Mar 2016"},{"$f":"ZZZ__FnCalls!F82","v":"Apr 2016"},{"$f":"ZZZ__FnCalls!F83","v":"May 2016"},{"$f":"ZZZ__FnCalls!F84","v":"Jun 2016"},{"$f":"ZZZ__FnCalls!F85","v":"Jul 2016"},{"$f":"ZZZ__FnCalls!F86","v":"Aug 2016"},{"$f":"ZZZ__FnCalls!F87","v":"Sep 2016"},{"$f":"ZZZ__FnCalls!F88","v":"Oct 2016"},{"$f":"ZZZ__FnCalls!F89","v":"Nov 2016"},{"$f":"ZZZ__FnCalls!F90","v":"Dec 2016"},{"$f":"ZZZ__FnCalls!F79","v":"Jan 2016"},{"$f":"ZZZ__FnCalls!F91","v":"Jan 2017"},{"$f":"ZZZ__FnCalls!F92","v":"Feb 2017"},{"$f":"ZZZ__FnCalls!F93","v":"Mar 2017"},{"$f":"ZZZ__FnCalls!F94","v":"Apr 2017"},{"$f":"ZZZ__FnCalls!F95","v":"May 2017"},{"$f":"ZZZ__FnCalls!F96","v":"Jun 2017"},{"$f":"ZZZ__FnCalls!F97","v":"Jul 2017"},{"$f":"ZZZ__FnCalls!F98","v":"Aug 2017"},{"$f":"ZZZ__FnCalls!F99","v":"Sep 2017"},{"$f":"ZZZ__FnCalls!F100","v":"Oct 2017"},{"$f":"ZZZ__FnCalls!F101","v":"Nov 2017"},{"$f":"ZZZ__FnCalls!F102","v":"Dec 2017"},{"$f":"ZZZ__FnCalls!F91","v":"Jan 2017"},{"$f":"ZZZ__FnCalls!F103","v":"Jan 2018"},{"$f":"ZZZ__FnCalls!F104","v":"Feb 2018"},{"$f":"ZZZ__FnCalls!F105","v":"Mar 2018"},{"$f":"ZZZ__FnCalls!F106","v":"Apr 2018"},{"$f":"ZZZ__FnCalls!F107","v":"May 2018"},{"$f":"ZZZ__FnCalls!F108","v":"Jun 2018"},{"$f":"ZZZ__FnCalls!F109","v":"Jul 2018"},{"$f":"ZZZ__FnCalls!F110","v":"Aug 2018"},{"$f":"ZZZ__FnCalls!F111","v":"Sep 2018"},{"$f":"ZZZ__FnCalls!F112","v":"Oct 2018"},{"$f":"ZZZ__FnCalls!F113","v":"Nov 2018"},{"$f":"ZZZ__FnCalls!F114","v":"Dec 2018"},{"$f":"ZZZ__FnCalls!F103","v":"Jan 2018"},{"$f":"ZZZ__FnCalls!F115","v":"Jan 2019"},{"$f":"ZZZ__FnCalls!F116","v":"Feb 2019"},{"$f":"ZZZ__FnCalls!F117","v":"Mar 2019"},{"$f":"ZZZ__FnCalls!F118","v":"Apr 2019"},{"$f":"ZZZ__FnCalls!F119","v":"May 2019"},{"$f":"ZZZ__FnCalls!F120","v":"Jun 2019"},{"$f":"ZZZ__FnCalls!F121","v":"Jul 2019"},{"$f":"ZZZ__FnCalls!F122","v":"Aug 2019"},{"$f":"ZZZ__FnCalls!F123","v":"Sep 2019"},{"$f":"ZZZ__FnCalls!F124","v":"Oct 2019"},{"$f":"ZZZ__FnCalls!F125","v":"Nov 2019"},{"$f":"ZZZ__FnCalls!F126","v":"Dec 2019"},{"$f":"ZZZ__FnCalls!F115","v":"Jan 2019"},{"$f":"ZZZ__FnCalls!F127","v":"Jan 2020"},{"$f":"ZZZ__FnCalls!F128","v":"Feb 2020"},{"$f":"ZZZ__FnCalls!F129","v":"Mar 2020"},{"$f":"ZZZ__FnCalls!F130","v":"Apr 2020"},{"$f":"ZZZ__FnCalls!F131","v":"May 2020"},{"$f":"ZZZ__FnCalls!F132","v":"Jun 2020"},{"$f":"ZZZ__FnCalls!F133","v":"Jul 2020"},{"$f":"ZZZ__FnCalls!F134","v":"Aug 2020"},{"$f":"ZZZ__FnCalls!F135","v":"Sep 2020"},{"$f":"ZZZ__FnCalls!F136","v":"Oct 2020"},{"$f":"ZZZ__FnCalls!F137","v":"Nov 2020"},{"$f":"ZZZ__FnCalls!F138","v":"Dec 2020"},{"$f":"ZZZ__FnCalls!F127","v":"Jan 2020"}]

{"sheet":"(Other Computations)","index":14,"n_rows":252,"n_cols":144,"rows_kept":252,"hidden":true,"merged":[[0,0,0,2],[1,0,1,2],[2,0,2,2],[3,0,3,2],[4,0,4,2]]}
[{"$f":"\"Equilibrium Economy with Shocks\"","v":"Equilibrium Economy with Shocks"}]
[{"$f":"\"Model: \"&Inputs!B8","v":"Model: Test Model"}]
[{"$f":"\"$ millions\"","v":"$ millions"}]
[{"$f":"\"(Other Computations)\"","v":"(Other Computations)"}]
[{"$f":"\"\"","v":""}]
[{"$f":"Labels!B65","v":"Equilibrium Output"}]
[]
[null,{"$f":"Inputs!B40/12","v":{"v":1166666.6666666667,"d":"$1,166,667"}}]
[{"$f":"Labels!B49","v":"Equilib Gov Spending"}]
[]
[null,{"$f":"Inputs!B50*B8","v":{"v":233333.33333333337,"d":"$233,333"}}]
[{"$f":"Labels!B53","v":"Equilib Gov Transfers"}]
[]
[null,{"$f":"Inputs!B51*B8","v":{"v":116666.66666666669,"d":"$116,667"}}]
[{"$f":"Labels!B28","v":"Aggregate Demand"}]
[{"$f":"Labels!D96","v":"Trials"},{"$f":"ZZZ__FnCalls!F7","v":"Jan 2010"},{"$f":"ZZZ__FnCalls!F8","v":"Feb 2010"},{"$f":"ZZZ__FnCalls!F9","v":"Mar 2010"},{"$f":"ZZZ__FnCalls!F10","v":"Apr 2010"},{"$f":"ZZZ__FnCalls!F11","v":"May 2010"},{"$f":"ZZZ__FnCalls!F12","v":"Jun 2010"},{"$f":"ZZZ__FnCalls!F13","v":"Jul 2010"},{"$f":"ZZZ__FnCalls!F14","v":"Aug 2010"},{"$f":"ZZZ__FnCalls!F15","v":"Sep 2010"},{"$f":"ZZZ__FnCalls!F16","v":"Oct 2010"},{"$f":"ZZZ__FnCalls!F17","v":"Nov 2010"},{"$f":"ZZZ__FnCalls!F18","v":"Dec 2010"},{"$f":"ZZZ__FnCalls!H7","v":"2010"},{"$f":"ZZZ__FnCalls!F19","v":"Jan 2011"},{"$f":"ZZZ__FnCalls!F20","v":"Feb 2011"},{"$f":"ZZZ__FnCalls!F21","v":"Mar 2011"},{"$f":"ZZZ__FnCalls!F22","v":"Apr 2011"},{"$f":"ZZZ__FnCalls!F23","v":"May 2011"},{"$f":"ZZZ__FnCalls!F24","v":"Jun 2011"},{"$f":"ZZZ__FnCalls!F25","v":"Jul 2011"},{"$f":"ZZZ__FnCalls!F26","v":"Aug 2011"},{"$f":"ZZZ__FnCalls!F27","v":"Sep 2011"},{"$f":"ZZZ__FnCalls!F28","v":"Oct 2011"},{"$f":"ZZZ__FnCalls!F29","v":"Nov 2011"},{"$f":"ZZZ__FnCalls!F30","v":"Dec 2011"},{"$f":"ZZZ__FnCalls!H19","v":"2011"},{"$f":"ZZZ__FnCalls!F31","v":"Jan 2012"},{"$f":"ZZZ__FnCalls!F32","v":"Feb 2012"},{"$f":"ZZZ__FnCalls!F33","v":"Mar 2012"},{"$f":"ZZZ__FnCalls!F34","v":"Apr 2012"},{"$f":"ZZZ__FnCalls!F35","v":"May 2012"},{"$f":"ZZZ__FnCalls!F36","v":"Jun 2012"},{"$f":"ZZZ__FnCalls!F37","v":"Jul 2012"},{"$f":"ZZZ__FnCalls!F38","v":"Aug 2012"},{"$f":"ZZZ__FnCalls!F39","v":"Sep 2012"},{"$f":"ZZZ__FnCalls!F40","v":"Oct 2012"},{"$f":"ZZZ__FnCalls!F41","v":"Nov 2012"},{"$f":"ZZZ__FnCalls!F42","v":"Dec 2012"},{"$f":"ZZZ__FnCalls!H31","v":"2012"},{"$f":"ZZZ__FnCalls!F43","v":"Jan 2013"},{"$f":"ZZZ__FnCalls!F44","v":"Feb 2013"},{"$f":"ZZZ__FnCalls!F45","v":"Mar 2013"},{"$f":"ZZZ__FnCalls!F46","v":"Apr 2013"},{"$f":"ZZZ__FnCalls!F47","v":"May 2013"},{"$f":"ZZZ__FnCalls!F48","v":"Jun 2013"},{"$f":"ZZZ__FnCalls!F49","v":"Jul 2013"},{"$f":"ZZZ__FnCalls!F50","v":"Aug 2013"},{"$f":"ZZZ__FnCalls!F51","v":"Sep 2013"},{"$f":"ZZZ__FnCalls!F52","v":"Oct 2013"},{"$f":"ZZZ__FnCalls!F53","v":"Nov 2013"},{"$f":"ZZZ__FnCalls!F54","v":"Dec 2013"},{"$f":"ZZZ__FnCalls!H43","v":"2013"},{"$f":"ZZZ__FnCalls!F55","v":"Jan 2014"},{"$f":"ZZZ__FnCalls!F56","v":"Feb 2014"},{"$f":"ZZZ__FnCalls!F57","v":"Mar 2014"},{"$f":"ZZZ__FnCalls!F58","v":"Apr 2014"},{"$f":"ZZZ__FnCalls!F59","v":"May 2014"},{"$f":"ZZZ__FnCalls!F60","v":"Jun 2014"},{"$f":"ZZZ__FnCalls!F61","v":"Jul 2014"},{"$f":"ZZZ__FnCalls!F62","v":"Aug 2014"},{"$f":"ZZZ__FnCalls!F63","v":"Sep 2014"},{"$f":"ZZZ__FnCalls!F64","v":"Oct 2014"},{"$f":"ZZZ__FnCalls!F65","v":"Nov 2014"},{"$f":"ZZZ__FnCalls!F66","v":"Dec 2014"},{"$f":"ZZZ__FnCalls!H55","v":"2014"},{"$f":"ZZZ__FnCalls!F67","v":"Jan 2015"},{"$f":"ZZZ__FnCalls!F68","v":"Feb 2015"},{"$f":"ZZZ__FnCalls!F69","v":"Mar 2015"},{"$f":"ZZZ__FnCalls!F70","v":"Apr 2015"},{"$f":"ZZZ__FnCalls!F71","v":"May 2015"},{"$f":"ZZZ__FnCalls!F72","v":"Jun 2015"},{"$f":"ZZZ__FnCalls!F73","v":"Jul 2015"},{"$f":"ZZZ__FnCalls!F74","v":"Aug 2015"},{"$f":"ZZZ__FnCalls!F75","v":"Sep 2015"},{"$f":"ZZZ__FnCalls!F76","v":"Oct 2015"},{"$f":"ZZZ__FnCalls!F77","v":"Nov 2015"},{"$f":"ZZZ__FnCalls!F78","v":"Dec 2015"},{"$f":"ZZZ__FnCalls!H67","v":"2015"},{"$f":"ZZZ__FnCalls!F79","v":"Jan 2016"},{"$f":"ZZZ__FnCalls!F80","v":"Feb 2016"},{"$f":"ZZZ__FnCalls!F81","v":"Mar 2016"},{"$f":"ZZZ__FnCalls!F82","v":"Apr 2016"},{"$f":"ZZZ__FnCalls!F83","v":"May 2016"},{"$f":"ZZZ__FnCalls!F84","v":"Jun 2016"},{"$f":"ZZZ__FnCalls!F85","v":"Jul 2016"},{"$f":"ZZZ__FnCalls!F86","v":"Aug 2016"},{"$f":"ZZZ__FnCalls!F87","v":"Sep 2016"},{"$f":"ZZZ__FnCalls!F88","v":"Oct 2016"},{"$f":"ZZZ__FnCalls!F89","v":"Nov 2016"},{"$f":"ZZZ__FnCalls!F90","v":"Dec 2016"},{"$f":"ZZZ__FnCalls!H79","v":"2016"},{"$f":"ZZZ__FnCalls!F91","v":"Jan 2017"},{"$f":"ZZZ__FnCalls!F92","v":"Feb 2017"},{"$f":"ZZZ__FnCalls!F93","v":"Mar 2017"},{"$f":"ZZZ__FnCalls!F94","v":"Apr 2017"},{"$f":"ZZZ__FnCalls!F95","v":"May 2017"},{"$f":"ZZZ__FnCalls!F96","v":"Jun 2017"},{"$f":"ZZZ__FnCalls!F97","v":"Jul 2017"},{"$f":"ZZZ__FnCalls!F98","v":"Aug 2017"},{"$f":"ZZZ__FnCalls!F99","v":"Sep 2017"},{"$f":"ZZZ__FnCalls!F100","v":"Oct 2017"},{"$f":"ZZZ__FnCalls!F101","v":"Nov 2017"},{"$f":"ZZZ__FnCalls!F102","v":"Dec 2017"},{"$f":"ZZZ__FnCalls!H91","v":"2017"},{"$f":"ZZZ__FnCalls!F103","v":"Jan 2018"},{"$f":"ZZZ__FnCalls!F104","v":"Feb 2018"},{"$f":"ZZZ__FnCalls!F105","v":"Mar 2018"},{"$f":"ZZZ__FnCalls!F106","v":"Apr 2018"},{"$f":"ZZZ__FnCalls!F107","v":"May 2018"},{"$f":"ZZZ__FnCalls!F108","v":"Jun 2018"},{"$f":"ZZZ__FnCalls!F109","v":"Jul 2018"},{"$f":"ZZZ__FnCalls!F110","v":"Aug 2018"},{"$f":"ZZZ__FnCalls!F111","v":"Sep 2018"},{"$f":"ZZZ__FnCalls!F112","v":"Oct 2018"},{"$f":"ZZZ__FnCalls!F113","v":"Nov 2018"},{"$f":"ZZZ__FnCalls!F114","v":"Dec 2018"},{"$f":"ZZZ__FnCalls!H103","v":"2018"},{"$f":"ZZZ__FnCalls!F115","v":"Jan 2019"},{"$f":"ZZZ__FnCalls!F116","v":"Feb 2019"},{"$f":"ZZZ__FnCalls!F117","v":"Mar 2019"},{"$f":"ZZZ__FnCalls!F118","v":"Apr 2019"},{"$f":"ZZZ__FnCalls!F119","v":"May 2019"},{"$f":"ZZZ__FnCalls!F120","v":"Jun 2019"},{"$f":"ZZZ__FnCalls!F121","v":"Jul 2019"},{"$f":"ZZZ__FnCalls!F122","v":"Aug 2019"},{"$f":"ZZZ__FnCalls!F123","v":"Sep 2019"},{"$f":"ZZZ__FnCalls!F124","v":"Oct 2019"},{"$f":"ZZZ__FnCalls!F125","v":"Nov 2019"},{"$f":"ZZZ__FnCalls!F126","v":"Dec 2019"},{"$f":"ZZZ__FnCalls!H115","v":"2019"},{"$f":"ZZZ__FnCalls!F127","v":"Jan 2020"},{"$f":"ZZZ__FnCalls!F128","v":"Feb 2020"},{"$f":"ZZZ__FnCalls!F129","v":"Mar 2020"},{"$f":"ZZZ__FnCalls!F130","v":"Apr 2020"},{"$f":"ZZZ__FnCalls!F131","v":"May 2020"},{"$f":"ZZZ__FnCalls!F132","v":"Jun 2020"},{"$f":"ZZZ__FnCalls!F133","v":"Jul 2020"},{"$f":"ZZZ__FnCalls!F134","v":"Aug 2020"},{"$f":"ZZZ__FnCalls!F135","v":"Sep 2020"},{"$f":"ZZZ__FnCalls!F136","v":"Oct 2020"},{"$f":"ZZZ__FnCalls!F137","v":"Nov 2020"},{"$f":"ZZZ__FnCalls!F138","v":"Dec 2020"},{"$f":"ZZZ__FnCalls!H127","v":"2020"}]
[{"$f":"Labels!B96","v":"Trial 01"},{"$f":"'Trial 1'!B9","v":{"v":940125.3899119024,"d":"$940,125"}},{"$f":"'Trial 1'!C9","v":{"v":1000141.3395710142,"d":"$1,000,141"}},{"$f":"'Trial 1'!D9","v":{"v":982791.9193759349,"d":"$982,792"}},{"$f":"'Trial 1'!E9","v":{"v":962118.7959621452,"d":"$962,119"}},{"$f":"'Trial 1'!F9","v":{"v":1011440.1865502738,"d":"$1,011,440"}},{"$f":"'Trial 1'!G9","v":{"v":979897.3405596861,"d":"$979,897"}},{"$f":"'Trial 1'!H9","v":{"v":948864.0920766024,"d":"$948,864"}},{"$f":"'Trial 1'!I9","v":{"v":958458.8920413471,"d":"$958,459"}},{"$f":"'Trial 1'!J9","v":{"v":975700.2129228406,"d":"$975,700"}},{"$f":"'Trial 1'!K9","v":{"v":1018334.1762723648,"d":"$1,018,334"}},{"$f":"'Trial 1'!L9","v":{"v":996220.3651157449,"d":"$996,220"}},{"$f":"'Trial 1'!M9","v":{"v":979909.5341638682,"d":"$979,910"}},{"$f":"SUM('Trial 1'!B9:M9)","v":{"v":11754002.244523725,"d":"$11,754,002"}},{"$f":"'Trial 1'!O9","v":{"v":946316.8633855407,"d":"$946,317"}},{"$f":"'Trial 1'!P9","v":{"v":963916.057744381,"d":"$963,916"}},{"$f":"'Trial 1'!Q9","v":{"v":898225.2764405463,"d":"$898,225"}},{"$f":"'Trial 1'!R9","v":{"v":977862.3569379481,"d":"$977,862"}},{"$f":"'Trial 1'!S9","v":{"v":905770.2656937237,"d":"$905,770"}},{"$f":"'Trial 1'!T9","v":{"v":925680.773142982,"d":"$925,681"}},{"$f":"'Trial 1'!U9","v":{"v":910142.0091139528,"d":"$910,142"}},{"$f":"'Trial 1'!V9","v":{"v":908565.7927859274,"d":"$908,566"}},{"$f":"'Trial 1'!W9","v":{"v":940270.2868351259,"d":"$940,270"}},{"$f":"'Trial 1'!X9","v":{"v":948686.025108659,"d":"$948,686"}},{"$f":"'Trial 1'!Y9","v":{"v":996291.6854889346,"d":"$996,292"}},{"$f":"'Trial 1'!Z9","v":{"v":930309.0505843736,"d":"$930,309"}},{"$f":"SUM('Trial 1'!O9:Z9)","v":{"v":11252036.443262095,"d":"$11,252,036"}},{"$f":"'Trial 1'!AB9","v":{"v":956338.1793877799,"d":"$956,338"}},{"$f":"'Trial 1'!AC9","v":{"v":1012652.2568716065,"d":"$1,012,652"}},{"$f":"'Trial 1'!AD9","v":{"v":932432.641230957,"d":"$932,433"}},{"$f":"'Trial 1'!AE9","v":{"v":919439.1224160253,"d":"$919,439"}},{"$f":"'Trial 1'!AF9","v":{"v":949256.7720670281,"d":"$949,257"}},{"$f":"'Trial 1'!AG9","v":{"v":945173.1311751953,"d":"$945,173"}},{"$f":"'Trial 1'!AH9","v":{"v":965241.8362848589,"d":"$965,242"}},{"$f":"'Trial 1'!AI9","v":{"v":935547.8254984007,"d":"$935,548"}},{"$f":"'Trial 1'!AJ9","v":{"v":997331.6619646876,"d":"$997,332"}},{"$f":"'Trial 1'!AK9","v":{"v":958095.6980426998,"d":"$958,096"}},{"$f":"'Trial 1'!AL9","v":{"v":937605.8966740393,"d":"$937,606"}},{"$f":"'Trial 1'!AM9","v":{"v":914924.8865556383,"d":"$914,925"}},{"$f":"SUM('Trial 1'!AB9:AM9)","v":{"v":11424039.908168918,"d":"$11,424,040"}},{"$f":"'Trial 1'!AO9","v":{"v":914668.6776290223,"d":"$914,669"}},{"$f":"'Trial 1'!AP9","v":{"v":1006433.3630026117,"d":"$1,006,433"}},{"$f":"'Trial 1'!AQ9","v":{"v":907002.5353072948,"d":"$907,003"}},{"$f":"'Trial 1'!AR9","v":{"v":974672.3486358832,"d":"$974,672"}},{"$f":"'Trial 1'!AS9","v":{"v":951481.8109181565,"d":"$951,482"}},{"$f":"'Trial 1'!AT9","v":{"v":971395.9198994696,"d":"$971,396"}},{"$f":"'Trial 1'!AU9","v":{"v":939995.4055413135,"d":"$939,995"}},{"$f":"'Trial 1'!AV9","v":{"v":920853.1579483715,"d":"$920,853"}},{"$f":"'Trial 1'!AW9","v":{"v":941342.364654794,"d":"$941,342"}},{"$f":"'Trial 1'!AX9","v":{"v":984552.4335423515,"d":"$984,552"}},{"$f":"'Trial 1'!AY9","v":{"v":957152.2231405656,"d":"$957,152"}},{"$f":"'Trial 1'!AZ9","v":{"v":906989.8242978982,"d":"$906,990"}},{"$f":"SUM('Trial 1'!AO9:AZ9)","v":{"v":11376540.064517733,"d":"$11,376,540"}},{"$f":"'Trial 1'!BB9","v":{"v":903271.0668902099,"d":"$903,271"}},{"$f":"'Trial 1'!BC9","v":{"v":947286.8684523754,"d":"$947,287"}},{"$f":"'Trial 1'!BD9","v":{"v":923370.222545814,"d":"$923,370"}},{"$f":"'Trial 1'!BE9","v":{"v":972365.4310766775,"d":"$972,365"}},{"$f":"'Trial 1'!BF9","v":{"v":952364.2000450919,"d":"$952,364"}},{"$f":"'Trial 1'!BG9","v":{"v":950103.586668661,"d":"$950,104"}},{"$f":"'Trial 1'!BH9","v":{"v":957775.87185367,"d":"$957,776"}},{"$f":"'Trial 1'!BI9","v":{"v":928661.5130431554,"d":"$928,662"}},{"$f":"'Trial 1'!BJ9","v":{"v":926593.803590551,"d":"$926,594"}},{"$f":"'Trial 1'!BK9","v":{"v":892696.8250688035,"d":"$892,697"}},{"$f":"'Trial 1'!BL9","v":{"v":947007.0217681534,"d":"$947,007"}},{"$f":"'Trial 1'!BM9","v":{"v":905590.6717314882,"d":"$905,591"}},{"$f":"SUM('Trial 1'!BB9:BM9)","v":{"v":11207087.082734652,"d":"$11,207,087"}},{"$f":"'Trial 1'!BO9","v":{"v":952968.5809225461,"d":"$952,969"}},{"$f":"'Trial 1'!BP9","v":{"v":915298.8978503227,"d":"$915,299"}},{"$f":"'Trial 1'!BQ9","v":{"v":987231.2202223833,"d":"$987,231"}},{"$f":"'Trial 1'!BR9","v":{"v":956276.2972818826,"d":"$956,276"}},{"$f":"'Trial 1'!BS9","v":{"v":937803.9802020226,"d":"$937,804"}},{"$f":"'Trial 1'!BT9","v":{"v":887854.0755468025,"d":"$887,854"}},{"$f":"'Trial 1'!BU9","v":{"v":900449.2754376834,"d":"$900,449"}},{"$f":"'Trial 1'!BV9","v":{"v":921516.8702573533,"d":"$921,517"}},{"$f":"'Trial 1'!BW9","v":{"v":961932.7093303478,"d":"$961,933"}},{"$f":"'Trial 1'!BX9","v":{"v":898338.758923451,"d":"$898,339"}},{"$f":"'Trial 1'!BY9","v":{"v":886330.3627270869,"d":"$886,330"}},{"$f":"'Trial 1'!BZ9","v":{"v":963197.3842902558,"d":"$963,197"}},{"$f":"SUM('Trial 1'!BO9:BZ9)","v":{"v":11169198.412992138,"d":"$11,169,198"}},{"$f":"'Trial 1'!CB9","v":{"v":922323.6705689724,"d":"$922,324"}},{"$f":"'Trial 1'!CC9","v":{"v":887060.1760112201,"d":"$887,060"}},{"$f":"'Trial 1'!CD9","v":{"v":967081.4644023712,"d":"$967,081"}},{"$f":"'Trial 1'!CE9","v":{"v":896209.2964475453,"d":"$896,209"}},{"$f":"'Trial 1'!CF9","v":{"v":924826.942329824,"d":"$924,827"}},{"$f":"'Trial 1'!CG9","v":{"v":939158.9123262961,"d":"$939,159"}},{"$f":"'Trial 1'!CH9","v":{"v":922940.1762617793,"d":"$922,940"}},{"$f":"'Trial 1'!CI9","v":{"v":933645.8767380554,"d":"$933,646"}},{"$f":"'Trial 1'!CJ9","v":{"v":926454.6759154611,"d":"$926,455"}},{"$f":"'Trial 1'!CK9","v":{"v":877149.4233591147,"d":"$877,149"}},{"$f":"'Trial 1'!CL9","v":{"v":952199.612759951,"d":"$952,200"}},{"$f":"'Trial 1'!CM9","v":{"v":924653.5495023878,"d":"$924,654"}},{"$f":"SUM('Trial 1'!CB9:CM9)","v":{"v":11073703.776622977,"d":"$11,073,704"}},{"$f":"'Trial 1'!CO9","v":{"v":894558.5354544858,"d":"$894,559"}},{"$f":"'Trial 1'!CP9","v":{"v":950679.8989268742,"d":"$950,680"}},{"$f":"'Trial 1'!CQ9","v":{"v":864462.871958903,"d":"$864,463"}},{"$f":"'Trial 1'!CR9","v":{"v":918046.6081706992,"d":"$918,047"}},{"$f":"'Trial 1'!CS9","v":{"v":871504.539087215,"d":"$871,505"}},{"$f":"'Trial 1'!CT9","v":{"v":930088.0386079936,"d":"$930,088"}},{"$f":"'Trial 1'!CU9","v":{"v":881523.7977704785,"d":"$881,524"}},{"$f":"'Trial 1'!CV9","v":{"v":927215.5767508047,"d":"$927,216"}},{"$f":"'Trial 1'!CW9","v":{"v":873238.0349752179,"d":"$873,238"}},{"$f":"'Trial 1'!CX9","v":{"v":953596.7782686658,"d":"$953,597"}},{"$f":"'Trial 1'!CY9","v":{"v":960901.144200619,"d":"$960,901"}},{"$f":"'Trial 1'!CZ9","v":{"v":870483.3711549899,"d":"$870,483"}},{"$f":"SUM('Trial 1'!CO9:CZ9)","v":{"v":10896299.195326947,"d":"$10,896,299"}},{"$f":"'Trial 1'!DB9","v":{"v":919617.3015187194,"d":"$919,617"}},{"$f":"'Trial 1'!DC9","v":{"v":937989.1924500772,"d":"$937,989"}},{"$f":"'Trial 1'!DD9","v":{"v":917671.6570760092,"d":"$917,672"}},{"$f":"'Trial 1'!DE9","v":{"v":942084.445065148,"d":"$942,084"}},{"$f":"'Trial 1'!DF9","v":{"v":939440.9418078044,"d":"$939,441"}},{"$f":"'Trial 1'!DG9","v":{"v":901402.9879495681,"d":"$901,403"}},{"$f":"'Trial 1'!DH9","v":{"v":929993.9776478049,"d":"$929,994"}},{"$f":"'Trial 1'!DI9","v":{"v":884633.6302042124,"d":"$884,634"}},{"$f":"'Trial 1'!DJ9","v":{"v":929959.4290459383,"d":"$929,959"}},{"$f":"'Trial 1'!DK9","v":{"v":959970.2324421674,"d":"$959,970"}},{"$f":"'Trial 1'!DL9","v":{"v":876048.8734162782,"d":"$876,049"}},{"$f":"'Trial 1'!DM9","v":{"v":919592.4346487783,"d":"$919,592"}},{"$f":"SUM('Trial 1'!DB9:DM9)","v":{"v":11058405.103272505,"d":"$11,058,405"}},{"$f":"'Trial 1'!DO9","v":{"v":957168.8596311109,"d":"$957,169"}},{"$f":"'Trial 1'!DP9","v":{"v":896679.3854062303,"d":"$896,679"}},{"$f":"'Trial 1'!DQ9","v":{"v":924831.7104675786,"d":"$924,832"}},{"$f":"'Trial 1'!DR9","v":{"v":916906.6509978609,"d":"$916,907"}},{"$f":"'Trial 1'!DS9","v":{"v":900955.3980451393,"d":"$900,955"}},{"$f":"'Trial 1'!DT9","v":{"v":898166.0517236693,"d":"$898,166"}},{"$f":"'Trial 1'!DU9","v":{"v":922329.8821568019,"d":"$922,330"}},{"$f":"'Trial 1'!DV9","v":{"v":872833.5102465769,"d":"$872,834"}},{"$f":"'Trial 1'!DW9","v":{"v":883390.9611235718,"d":"$883,391"}},{"$f":"'Trial 1'!DX9","v":{"v":941076.048513611,"d":"$941,076"}},{"$f":"'Trial 1'!DY9","v":{"v":930123.3815468275,"d":"$930,123"}},{"$f":"'Trial 1'!DZ9","v":{"v":883751.7231058432,"d":"$883,752"}},{"$f":"SUM('Trial 1'!DO9:DZ9)","v":{"v":10928213.56296482,"d":"$10,928,214"}},{"$f":"'Trial 1'!EB9","v":{"v":918982.8541654854,"d":"$918,983"}},{"$f":"'Trial 1'!EC9","v":{"v":903473.8284540024,"d":"$903,474"}},{"$f":"'Trial 1'!ED9","v":{"v":903569.1708682602,"d":"$903,569"}},{"$f":"'Trial 1'!EE9","v":{"v":860053.2936516732,"d":"$860,053"}},{"$f":"'Trial 1'!EF9","v":{"v":898855.7738666481,"d":"$898,856"}},{"$f":"'Trial 1'!EG9","v":{"v":891421.2982953101,"d":"$891,421"}},{"$f":"'Trial 1'!EH9","v":{"v":897110.0784561489,"d":"$897,110"}},{"$f":"'Trial 1'!EI9","v":{"v":872260.5473787696,"d":"$872,261"}},{"$f":"'Trial 1'!EJ9","v":{"v":909375.0628692099,"d":"$909,375"}},{"$f":"'Trial 1'!EK9","v":{"v":893210.9116097902,"d":"$893,211"}},{"$f":"'Trial 1'!EL9","v":{"v":866824.4450355411,"d":"$866,824"}},{"$f":"'Trial 1'!EM9","v":{"v":876822.3431668889,"d":"$876,822"}},{"$f":"SUM('Trial 1'!EB9:EM9)","v":{"v":10691959.607817728,"d":"$10,691,960"}}]
[{"$f":"Labels!B97","v":"Trial 02"},{"$f":"'Trial 2'!B9","v":{"v":951107.8927243656,"d":"$951,108"}},{"$f":"'Trial 2'!C9","v":{"v":921794.1714416564,"d":"$921,794"}},{"$f":"'Trial 2'!D9","v":{"v":971083.4986570094,"d":"$971,083"}},{"$f":"'Trial 2'!E9","v":{"v":1023336.2944243596,"d":"$1,023,336"}},{"$f":"'Trial 2'!F9","v":{"v":978979.1697362988,"d":"$978,979"}},{"$f":"'Trial 2'!G9","v":{"v":943295.6386489958,"d":"$943,296"}},{"$f":"'Trial 2'!H9","v":{"v":961280.0561349948,"d":"$961,280"}},{"$f":"'Trial 2'!I9","v":{"v":924080.7187444072,"d":"$924,081"}},{"$f":"'Trial 2'!J9","v":{"v":974521.8983314986,"d":"$974,522"}},{"$f":"'Trial 2'!K9","v":{"v":965550.6513097403,"d":"$965,551"}},{"$f":"'Trial 2'!L9","v":{"v":922973.7997446407,"d":"$922,974"}},{"$f":"'Trial 2'!M9","v":{"v":989583.775098678,"d":"$989,584"}},{"$f":"SUM('Trial 2'!B9:M9)","v":{"v":11527587.564996647,"d":"$11,527,588"}},{"$f":"'Trial 2'!O9","v":{"v":938946.517781034,"d":"$938,947"}},{"$f":"'Trial 2'!P9","v":{"v":986986.407439621,"d":"$986,986"}},{"$f":"'Trial 2'!Q9","v":{"v":990490.7717709483,"d":"$990,491"}},{"$f":"'Trial 2'!R9","v":{"v":949368.8057917713,"d":"$949,369"}},{"$f":"'Trial 2'!S9","v":{"v":949730.0737596801,"d":"$949,730"}},{"$f":"'Trial 2'!T9","v":{"v":949021.681187503,"d":"$949,022"}},{"$f":"'Trial 2'!U9","v":{"v":916762.3305730254,"d":"$916,762"}},{"$f":"'Trial 2'!V9","v":{"v":929145.6960890164,"d":"$929,146"}},{"$f":"'Trial 2'!W9","v":{"v":937483.4563658854,"d":"$937,483"}},{"$f":"'Trial 2'!X9","v":{"v":930111.4634042326,"d":"$930,111"}},{"$f":"'Trial 2'!Y9","v":{"v":892571.8942335083,"d":"$892,572"}},{"$f":"'Trial 2'!Z9","v":{"v":969412.2820840927,"d":"$969,412"}},{"$f":"SUM('Trial 2'!O9:Z9)","v":{"v":11340031.38048032,"d":"$11,340,031"}},{"$f":"'Trial 2'!AB9","v":{"v":951587.7675966974,"d":"$951,588"}},{"$f":"'Trial 2'!AC9","v":{"v":954118.0846276504,"d":"$954,118"}},{"$f":"'Trial 2'!AD9","v":{"v":950845.3130996162,"d":"$950,845"}},{"$f":"'Trial 2'!AE9","v":{"v":1009891.5556242634,"d":"$1,009,892"}},{"$f":"'Trial 2'!AF9","v":{"v":950203.1859188915,"d":"$950,203"}},{"$f":"'Trial 2'!AG9","v":{"v":935111.5711505333,"d":"$935,112"}},{"$f":"'Trial 2'!AH9","v":{"v":965805.8395242475,"d":"$965,806"}},{"$f":"'Trial 2'!AI9","v":{"v":901605.6777021827,"d":"$901,606"}},{"$f":"'Trial 2'!AJ9","v":{"v":951373.1558451055,"d":"$951,373"}},{"$f":"'Trial 2'!AK9","v":{"v":970385.5885588921,"d":"$970,386"}},{"$f":"'Trial 2'!AL9","v":{"v":994626.3809447876,"d":"$994,626"}},{"$f":"'Trial 2'!AM9","v":{"v":928584.8612510043,"d":"$928,585"}},{"$f":"SUM('Trial 2'!AB9:AM9)","v":{"v":11464138.981843872,"d":"$11,464,139"}},{"$f":"'Trial 2'!AO9","v":{"v":939540.9767368446,"d":"$939,541"}},{"$f":"'Trial 2'!AP9","v":{"v":963086.0990742719,"d":"$963,086"}},{"$f":"'Trial 2'!AQ9","v":{"v":960077.5575854542,"d":"$960,078"}},{"$f":"'Trial 2'!AR9","v":{"v":928350.5340864781,"d":"$928,351"}},{"$f":"'Trial 2'!AS9","v":{"v":959648.9474053493,"d":"$959,649"}},{"$f":"'Trial 2'!AT9","v":{"v":958350.4252290452,"d":"$958,350"}},{"$f":"'Trial 2'!AU9","v":{"v":949208.8192863589,"d":"$949,209"}},{"$f":"'Trial 2'!AV9","v":{"v":952420.3858363526,"d":"$952,420"}},{"$f":"'Trial 2'!AW9","v":{"v":886494.6344039178,"d":"$886,495"}},{"$f":"'Trial 2'!AX9","v":{"v":932069.2666232394,"d":"$932,069"}},{"$f":"'Trial 2'!AY9","v":{"v":978967.5993448881,"d":"$978,968"}},{"$f":"'Trial 2'!AZ9","v":{"v":934128.4661267214,"d":"$934,128"}},{"$f":"SUM('Trial 2'!AO9:AZ9)","v":{"v":11342343.711738922,"d":"$11,342,344"}},{"$f":"'Trial 2'!BB9","v":{"v":916938.877299773,"d":"$916,939"}},{"$f":"'Trial 2'!BC9","v":{"v":943069.2244132096,"d":"$943,069"}},{"$f":"'Trial 2'!BD9","v":{"v":977956.8598524713,"d":"$977,957"}},{"$f":"'Trial 2'!BE9","v":{"v":934037.1123886,"d":"$934,037"}},{"$f":"'Trial 2'!BF9","v":{"v":967167.685456324,"d":"$967,168"}},{"$f":"'Trial 2'!BG9","v":{"v":904806.0355877037,"d":"$904,806"}},{"$f":"'Trial 2'!BH9","v":{"v":916092.8590223666,"d":"$916,093"}},{"$f":"'Trial 2'!BI9","v":{"v":888185.0550407367,"d":"$888,185"}},{"$f":"'Trial 2'!BJ9","v":{"v":963098.557700036,"d":"$963,099"}},{"$f":"'Trial 2'!BK9","v":{"v":920524.4111200665,"d":"$920,524"}},{"$f":"'Trial 2'!BL9","v":{"v":943103.4816950345,"d":"$943,103"}},{"$f":"'Trial 2'!BM9","v":{"v":882021.8657605352,"d":"$882,022"}},{"$f":"SUM('Trial 2'!BB9:BM9)","v":{"v":11157002.025336858,"d":"$11,157,002"}},{"$f":"'Trial 2'!BO9","v":{"v":874081.503313615,"d":"$874,082"}},{"$f":"'Trial 2'!BP9","v":{"v":896854.0483500541,"d":"$896,854"}},{"$f":"'Trial 2'!BQ9","v":{"v":951062.2968121215,"d":"$951,062"}},{"$f":"'Trial 2'!BR9","v":{"v":967222.5557922284,"d":"$967,223"}},{"$f":"'Trial 2'!BS9","v":{"v":883853.9020477737,"d":"$883,854"}},{"$f":"'Trial 2'!BT9","v":{"v":976827.3582901546,"d":"$976,827"}},{"$f":"'Trial 2'!BU9","v":{"v":907176.5861985565,"d":"$907,177"}},{"$f":"'Trial 2'!BV9","v":{"v":949533.5530702791,"d":"$949,534"}},{"$f":"'Trial 2'!BW9","v":{"v":932878.8899975638,"d":"$932,879"}},{"$f":"'Trial 2'!BX9","v":{"v":874814.9467304227,"d":"$874,815"}},{"$f":"'Trial 2'!BY9","v":{"v":985259.6223469354,"d":"$985,260"}},{"$f":"'Trial 2'!BZ9","v":{"v":936421.1706668723,"d":"$936,421"}},{"$f":"SUM('Trial 2'!BO9:BZ9)","v":{"v":11135986.433616575,"d":"$11,135,986"}},{"$f":"'Trial 2'!CB9","v":{"v":949698.2951535177,"d":"$949,698"}},{"$f":"'Trial 2'!CC9","v":{"v":904402.9535392004,"d":"$904,403"}},{"$f":"'Trial 2'!CD9","v":{"v":920041.7565160702,"d":"$920,042"}},{"$f":"'Trial 2'!CE9","v":{"v":961846.8953134582,"d":"$961,847"}},{"$f":"'Trial 2'!CF9","v":{"v":941390.410926049,"d":"$941,390"}},{"$f":"'Trial 2'!CG9","v":{"v":956036.0700554308,"d":"$956,036"}},{"$f":"'Trial 2'!CH9","v":{"v":926767.6955836053,"d":"$926,768"}},{"$f":"'Trial 2'!CI9","v":{"v":963984.5167013179,"d":"$963,985"}},{"$f":"'Trial 2'!CJ9","v":{"v":885996.1334834686,"d":"$885,996"}},{"$f":"'Trial 2'!CK9","v":{"v":919030.397094424,"d":"$919,030"}},{"$f":"'Trial 2'!CL9","v":{"v":875314.1125557295,"d":"$875,314"}},{"$f":"'Trial 2'!CM9","v":{"v":915730.9395617073,"d":"$915,731"}},{"$f":"SUM('Trial 2'!CB9:CM9)","v":{"v":11120240.176483981,"d":"$11,120,240"}},{"$f":"'Trial 2'!CO9","v":{"v":899991.0014659415,"d":"$899,991"}},{"$f":"'Trial 2'!CP9","v":{"v":922060.6901527374,"d":"$922,061"}},{"$f":"'Trial 2'!CQ9","v":{"v":934961.5397629982,"d":"$934,962"}},{"$f":"'Trial 2'!CR9","v":{"v":907148.823869982,"d":"$907,149"}},{"$f":"'Trial 2'!CS9","v":{"v":939452.8241378231,"d":"$939,453"}},{"$f":"'Trial 2'!CT9","v":{"v":886172.6324571464,"d":"$886,173"}},{"$f":"'Trial 2'!CU9","v":{"v":956279.1924108833,"d":"$956,279"}},{"$f":"'Trial 2'!CV9","v":{"v":911363.488572925,"d":"$911,363"}},{"$f":"'Trial 2'!CW9","v":{"v":955114.9966240753,"d":"$955,115"}},{"$f":"'Trial 2'!CX9","v":{"v":859050.2699051099,"d":"$859,050"}},{"$f":"'Trial 2'!CY9","v":{"v":947100.5241201974,"d":"$947,101"}},{"$f":"'Trial 2'!CZ9","v":{"v":908545.5557956167,"d":"$908,546"}},{"$f":"SUM('Trial 2'!CO9:CZ9)","v":{"v":11027241.539275438,"d":"$11,027,242"}},{"$f":"'Trial 2'!DB9","v":{"v":904853.3517377446,"d":"$904,853"}},{"$f":"'Trial 2'!DC9","v":{"v":934305.6427580038,"d":"$934,306"}},{"$f":"'Trial 2'!DD9","v":{"v":901668.1101524776,"d":"$901,668"}},{"$f":"'Trial 2'!DE9","v":{"v":935654.7412802861,"d":"$935,655"}},{"$f":"'Trial 2'!DF9","v":{"v":945655.0131544595,"d":"$945,655"}},{"$f":"'Trial 2'!DG9","v":{"v":914030.4685598348,"d":"$914,030"}},{"$f":"'Trial 2'!DH9","v":{"v":919421.3278660936,"d":"$919,421"}},{"$f":"'Trial 2'!DI9","v":{"v":923293.1760824906,"d":"$923,293"}},{"$f":"'Trial 2'!DJ9","v":{"v":959474.8836501938,"d":"$959,475"}},{"$f":"'Trial 2'!DK9","v":{"v":881648.6072305163,"d":"$881,649"}},{"$f":"'Trial 2'!DL9","v":{"v":854847.5610936483,"d":"$854,848"}},{"$f":"'Trial 2'!DM9","v":{"v":875208.605295972,"d":"$875,209"}},{"$f":"SUM('Trial 2'!DB9:DM9)","v":{"v":10950061.488861721,"d":"$10,950,061"}},{"$f":"'Trial 2'!DO9","v":{"v":942197.3055689369,"d":"$942,197"}},{"$f":"'Trial 2'!DP9","v":{"v":865463.2628302007,"d":"$865,463"}},{"$f":"'Trial 2'!DQ9","v":{"v":914754.1727567214,"d":"$914,754"}},{"$f":"'Trial 2'!DR9","v":{"v":900774.6387495016,"d":"$900,775"}},{"$f":"'Trial 2'!DS9","v":{"v":881889.0409326062,"d":"$881,889"}},{"$f":"'Trial 2'!DT9","v":{"v":919353.5383431781,"d":"$919,354"}},{"$f":"'Trial 2'!DU9","v":{"v":935277.2441174897,"d":"$935,277"}},{"$f":"'Trial 2'!DV9","v":{"v":929567.3874692839,"d":"$929,567"}},{"$f":"'Trial 2'!DW9","v":{"v":872073.3903873011,"d":"$872,073"}},{"$f":"'Trial 2'!DX9","v":{"v":933843.1900608385,"d":"$933,843"}},{"$f":"'Trial 2'!DY9","v":{"v":905613.9772011419,"d":"$905,614"}},{"$f":"'Trial 2'!DZ9","v":{"v":869594.1798831861,"d":"$869,594"}},{"$f":"SUM('Trial 2'!DO9:DZ9)","v":{"v":10870401.328300387,"d":"$10,870,401"}},{"$f":"'Trial 2'!EB9","v":{"v":937725.6591862382,"d":"$937,726"}},{"$f":"'Trial 2'!EC9","v":{"v":922936.4830246274,"d":"$922,936"}},{"$f":"'Trial 2'!ED9","v":{"v":852603.3505104911,"d":"$852,603"}},{"$f":"'Trial 2'!EE9","v":{"v":901768.5904646419,"d":"$901,769"}},{"$f":"'Trial 2'!EF9","v":{"v":952950.1657656981,"d":"$952,950"}},{"$f":"'Trial 2'!EG9","v":{"v":871019.7338833307,"d":"$871,020"}},{"$f":"'Trial 2'!EH9","v":{"v":880686.9361869843,"d":"$880,687"}},{"$f":"'Trial 2'!EI9","v":{"v":869607.6332091615,"d":"$869,608"}},{"$f":"'Trial 2'!EJ9","v":{"v":916838.9507948875,"d":"$916,839"}},{"$f":"'Trial 2'!EK9","v":{"v":886455.1636464644,"d":"$886,455"}},{"$f":"'Trial 2'!EL9","v":{"v":922826.5660784965,"d":"$922,827"}},{"$f":"'Trial 2'!EM9","v":{"v":899612.6163959887,"d":"$899,613"}},{"$f":"SUM('Trial 2'!EB9:EM9)","v":{"v":10815031.84914701,"d":"$10,815,032"}}]
[{"$f":"Labels!B98","v":"Trial 03"},{"$f":"'Trial 3'!B9","v":{"v":908644.1191228533,"d":"$908,644"}},{"$f":"'Trial 3'!C9","v":{"v":971548.4311788123,"d":"$971,548"}},{"$f":"'Trial 3'!D9","v":{"v":931533.1640044932,"d":"$931,533"}},{"$f":"'Trial 3'!E9","v":{"v":1006242.7610823698,"d":"$1,006,243"}},{"$f":"'Trial 3'!F9","v":{"v":975655.6405177367,"d":"$975,656"}},{"$f":"'Trial 3'!G9","v":{"v":1001977.6769379871,"d":"$1,001,978"}},{"$f":"'Trial 3'!H9","v":{"v":947450.9189202542,"d":"$947,451"}},{"$f":"'Trial 3'!I9","v":{"v":987663.083691642,"d":"$987,663"}},{"$f":"'Trial 3'!J9","v":{"v":923286.6474627419,"d":"$923,287"}},{"$f":"'Trial 3'!K9","v":{"v":967916.9039283168,"d":"$967,917"}},{"$f":"'Trial 3'!L9","v":{"v":989333.880347226,"d":"$989,334"}},{"$f":"'Trial 3'!M9","v":{"v":932943.7627732146,"d":"$932,944"}},{"$f":"SUM('Trial 3'!B9:M9)","v":{"v":11544196.989967646,"d":"$11,544,197"}},{"$f":"'Trial 3'!O9","v":{"v":967044.8216508331,"d":"$967,045"}},{"$f":"'Trial 3'!P9","v":{"v":943047.5385522014,"d":"$943,048"}},{"$f":"'Trial 3'!Q9","v":{"v":997763.1195832082,"d":"$997,763"}},{"$f":"'Trial 3'!R9","v":{"v":980255.9411303008,"d":"$980,256"}},{"$f":"'Trial 3'!S9","v":{"v":955794.2568280761,"d":"$955,794"}},{"$f":"'Trial 3'!T9","v":{"v":945713.0679702156,"d":"$945,713"}},{"$f":"'Trial 3'!U9","v":{"v":891998.020529059,"d":"$891,998"}},{"$f":"'Trial 3'!V9","v":{"v":926811.9375182266,"d":"$926,812"}},{"$f":"'Trial 3'!W9","v":{"v":966193.2044177938,"d":"$966,193"}},{"$f":"'Trial 3'!X9","v":{"v":957323.1460422662,"d":"$957,323"}},{"$f":"'Trial 3'!Y9","v":{"v":937916.2431012222,"d":"$937,916"}},{"$f":"'Trial 3'!Z9","v":{"v":894334.5127299024,"d":"$894,335"}},{"$f":"SUM('Trial 3'!O9:Z9)","v":{"v":11364195.810053306,"d":"$11,364,196"}},{"$f":"'Trial 3'!AB9","v":{"v":991621.1612228093,"d":"$991,621"}},{"$f":"'Trial 3'!AC9","v":{"v":930031.4940087548,"d":"$930,031"}},{"$f":"'Trial 3'!AD9","v":{"v":915628.9545258282,"d":"$915,629"}},{"$f":"'Trial 3'!AE9","v":{"v":976724.052374943,"d":"$976,724"}},{"$f":"'Trial 3'!AF9","v":{"v":890968.8686891843,"d":"$890,969"}},{"$f":"'Trial 3'!AG9","v":{"v":972658.8058148375,"d":"$972,659"}},{"$f":"'Trial 3'!AH9","v":{"v":954509.817302213,"d":"$954,510"}},{"$f":"'Trial 3'!AI9","v":{"v":922331.8926577612,"d":"$922,332"}},{"$f":"'Trial 3'!AJ9","v":{"v":966137.3294823788,"d":"$966,137"}},{"$f":"'Trial 3'!AK9","v":{"v":952547.1618523662,"d":"$952,547"}},{"$f":"'Trial 3'!AL9","v":{"v":932943.8381912053,"d":"$932,944"}},{"$f":"'Trial 3'!AM9","v":{"v":929482.9385105749,"d":"$929,483"}},{"$f":"SUM('Trial 3'!AB9:AM9)","v":{"v":11335586.314632855,"d":"$11,335,586"}},{"$f":"'Trial 3'!AO9","v":{"v":974271.9403536422,"d":"$974,272"}},{"$f":"'Trial 3'!AP9","v":{"v":980749.1149328982,"d":"$980,749"}},{"$f":"'Trial 3'!AQ9","v":{"v":897304.4637475894,"d":"$897,304"}},{"$f":"'Trial 3'!AR9","v":{"v":934370.1623262783,"d":"$934,370"}},{"$f":"'Trial 3'!AS9","v":{"v":969282.5539698505,"d":"$969,283"}},{"$f":"'Trial 3'!AT9","v":{"v":926581.0679119895,"d":"$926,581"}},{"$f":"'Trial 3'!AU9","v":{"v":911759.5665399684,"d":"$911,760"}},{"$f":"'Trial 3'!AV9","v":{"v":953459.6579637118,"d":"$953,460"}},{"$f":"'Trial 3'!AW9","v":{"v":908922.0473697911,"d":"$908,922"}},{"$f":"'Trial 3'!AX9","v":{"v":976972.8128701105,"d":"$976,973"}},{"$f":"'Trial 3'!AY9","v":{"v":908209.2625296739,"d":"$908,209"}},{"$f":"'Trial 3'!AZ9","v":{"v":891582.8210261515,"d":"$891,583"}},{"$f":"SUM('Trial 3'!AO9:AZ9)","v":{"v":11233465.471541654,"d":"$11,233,465"}},{"$f":"'Trial 3'!BB9","v":{"v":927540.9445480566,"d":"$927,541"}},{"$f":"'Trial 3'!BC9","v":{"v":889985.7868221746,"d":"$889,986"}},{"$f":"'Trial 3'!BD9","v":{"v":964859.2631638394,"d":"$964,859"}},{"$f":"'Trial 3'!BE9","v":{"v":879396.0702326021,"d":"$879,396"}},{"$f":"'Trial 3'!BF9","v":{"v":948580.7123088364,"d":"$948,581"}},{"$f":"'Trial 3'!BG9","v":{"v":877758.1965151199,"d":"$877,758"}},{"$f":"'Trial 3'!BH9","v":{"v":904871.5993588308,"d":"$904,872"}},{"$f":"'Trial 3'!BI9","v":{"v":942654.3072784098,"d":"$942,654"}},{"$f":"'Trial 3'!BJ9","v":{"v":935695.1313910865,"d":"$935,695"}},{"$f":"'Trial 3'!BK9","v":{"v":921990.7313359622,"d":"$921,991"}},{"$f":"'Trial 3'!BL9","v":{"v":957673.5077155445,"d":"$957,674"}},{"$f":"'Trial 3'!BM9","v":{"v":930063.6639037016,"d":"$930,064"}},{"$f":"SUM('Trial 3'!BB9:BM9)","v":{"v":11081069.914574163,"d":"$11,081,070"}},{"$f":"'Trial 3'!BO9","v":{"v":930834.2120829814,"d":"$930,834"}},{"$f":"'Trial 3'!BP9","v":{"v":945888.5515067232,"d":"$945,889"}},{"$f":"'Trial 3'!BQ9","v":{"v":901236.8796267429,"d":"$901,237"}},{"$f":"'Trial 3'!BR9","v":{"v":934778.6211228372,"d":"$934,779"}},{"$f":"'Trial 3'!BS9","v":{"v":955027.2054320695,"d":"$955,027"}},{"$f":"'Trial 3'!BT9","v":{"v":920277.656381953,"d":"$920,278"}},{"$f":"'Trial 3'!BU9","v":{"v":914827.6761523356,"d":"$914,828"}},{"$f":"'Trial 3'!BV9","v":{"v":902188.18718252,"d":"$902,188"}},{"$f":"'Trial 3'!BW9","v":{"v":943855.0992995605,"d":"$943,855"}},{"$f":"'Trial 3'!BX9","v":{"v":891278.2944692001,"d":"$891,278"}},{"$f":"'Trial 3'!BY9","v":{"v":968818.5516737526,"d":"$968,819"}},{"$f":"'Trial 3'!BZ9","v":{"v":916245.3540845425,"d":"$916,245"}},{"$f":"SUM('Trial 3'!BO9:BZ9)","v":{"v":11125256.289015219,"d":"$11,125,256"}},{"$f":"'Trial 3'!CB9","v":{"v":944089.1154552806,"d":"$944,089"}},{"$f":"'Trial 3'!CC9","v":{"v":919442.7911818249,"d":"$919,443"}},{"$f":"'Trial 3'!CD9","v":{"v":929425.6013962618,"d":"$929,426"}},{"$f":"'Trial 3'!CE9","v":{"v":930370.6083813698,"d":"$930,371"}},{"$f":"'Trial 3'!CF9","v":{"v":926476.6007507923,"d":"$926,477"}},{"$f":"'Trial 3'!CG9","v":{"v":950731.3465207247,"d":"$950,731"}},{"$f":"'Trial 3'!CH9","v":{"v":954458.1874564469,"d":"$954,458"}},{"$f":"'Trial 3'!CI9","v":{"v":965740.5136063226,"d":"$965,741"}},{"$f":"'Trial 3'!CJ9","v":{"v":918316.6800380568,"d":"$918,317"}},{"$f":"'Trial 3'!CK9","v":{"v":943356.0481789397,"d":"$943,356"}},{"$f":"'Trial 3'!CL9","v":{"v":955826.4312605822,"d":"$955,826"}},{"$f":"'Trial 3'!CM9","v":{"v":969866.9038906917,"d":"$969,867"}},{"$f":"SUM('Trial 3'!CB9:CM9)","v":{"v":11308100.828117294,"d":"$11,308,101"}},{"$f":"'Trial 3'!CO9","v":{"v":888150.5498802776,"d":"$888,151"}},{"$f":"'Trial 3'!CP9","v":{"v":937701.9218117992,"d":"$937,702"}},{"$f":"'Trial 3'!CQ9","v":{"v":908754.2113933204,"d":"$908,754"}},{"$f":"'Trial 3'!CR9","v":{"v":931221.327802194,"d":"$931,221"}},{"$f":"'Trial 3'!CS9","v":{"v":916435.2252419568,"d":"$916,435"}},{"$f":"'Trial 3'!CT9","v":{"v":927326.5796386552,"d":"$927,327"}},{"$f":"'Trial 3'!CU9","v":{"v":939134.3626117085,"d":"$939,134"}},{"$f":"'Trial 3'!CV9","v":{"v":922876.3366704341,"d":"$922,876"}},{"$f":"'Trial 3'!CW9","v":{"v":890250.6203305252,"d":"$890,251"}},{"$f":"'Trial 3'!CX9","v":{"v":960304.0787257282,"d":"$960,304"}},{"$f":"'Trial 3'!CY9","v":{"v":896342.5371469519,"d":"$896,343"}},{"$f":"'Trial 3'!CZ9","v":{"v":946123.9969997247,"d":"$946,124"}},{"$f":"SUM('Trial 3'!CO9:CZ9)","v":{"v":11064621.748253277,"d":"$11,064,622"}},{"$f":"'Trial 3'!DB9","v":{"v":883915.262306991,"d":"$883,915"}},{"$f":"'Trial 3'!DC9","v":{"v":861020.1242525163,"d":"$861,020"}},{"$f":"'Trial 3'!DD9","v":{"v":911774.9205335242,"d":"$911,775"}},{"$f":"'Trial 3'!DE9","v":{"v":927943.6836648968,"d":"$927,944"}},{"$f":"'Trial 3'!DF9","v":{"v":920609.0572957644,"d":"$920,609"}},{"$f":"'Trial 3'!DG9","v":{"v":932108.1817120538,"d":"$932,108"}},{"$f":"'Trial 3'!DH9","v":{"v":926506.2731028054,"d":"$926,506"}},{"$f":"'Trial 3'!DI9","v":{"v":915976.8415694525,"d":"$915,977"}},{"$f":"'Trial 3'!DJ9","v":{"v":903259.7766405484,"d":"$903,260"}},{"$f":"'Trial 3'!DK9","v":{"v":924743.2467894087,"d":"$924,743"}},{"$f":"'Trial 3'!DL9","v":{"v":933819.290322877,"d":"$933,819"}},{"$f":"'Trial 3'!DM9","v":{"v":922780.1692573145,"d":"$922,780"}},{"$f":"SUM('Trial 3'!DB9:DM9)","v":{"v":10964456.827448154,"d":"$10,964,457"}},{"$f":"'Trial 3'!DO9","v":{"v":928805.5006559027,"d":"$928,806"}},{"$f":"'Trial 3'!DP9","v":{"v":931800.3454066952,"d":"$931,800"}},{"$f":"'Trial 3'!DQ9","v":{"v":971044.1793412057,"d":"$971,044"}},{"$f":"'Trial 3'!DR9","v":{"v":860474.0376635547,"d":"$860,474"}},{"$f":"'Trial 3'!DS9","v":{"v":895152.1151261863,"d":"$895,152"}},{"$f":"'Trial 3'!DT9","v":{"v":936006.4573356349,"d":"$936,006"}},{"$f":"'Trial 3'!DU9","v":{"v":906043.3936113787,"d":"$906,043"}},{"$f":"'Trial 3'!DV9","v":{"v":935895.4344426929,"d":"$935,895"}},{"$f":"'Trial 3'!DW9","v":{"v":948295.5802777121,"d":"$948,296"}},{"$f":"'Trial 3'!DX9","v":{"v":903815.5396087528,"d":"$903,816"}},{"$f":"'Trial 3'!DY9","v":{"v":893295.0553476675,"d":"$893,295"}},{"$f":"'Trial 3'!DZ9","v":{"v":875899.1973368519,"d":"$875,899"}},{"$f":"SUM('Trial 3'!DO9:DZ9)","v":{"v":10986526.836154237,"d":"$10,986,527"}},{"$f":"'Trial 3'!EB9","v":{"v":907858.2255427389,"d":"$907,858"}},{"$f":"'Trial 3'!EC9","v":{"v":895378.3574365198,"d":"$895,378"}},{"$f":"'Trial 3'!ED9","v":{"v":917987.0269983899,"d":"$917,987"}},{"$f":"'Trial 3'!EE9","v":{"v":917639.0683667621,"d":"$917,639"}},{"$f":"'Trial 3'!EF9","v":{"v":903990.4572852994,"d":"$903,990"}},{"$f":"'Trial 3'!EG9","v":{"v":903952.2155655749,"d":"$903,952"}},{"$f":"'Trial 3'!EH9","v":{"v":933077.6390920627,"d":"$933,078"}},{"$f":"'Trial 3'!EI9","v":{"v":865889.9278129302,"d":"$865,890"}},{"$f":"'Trial 3'!EJ9","v":{"v":853661.072906925,"d":"$853,661"}},{"$f":"'Trial 3'!EK9","v":{"v":945519.2542092126,"d":"$945,519"}},{"$f":"'Trial 3'!EL9","v":{"v":925392.5173240772,"d":"$925,393"}},{"$f":"'Trial 3'!EM9","v":{"v":894643.770749713,"d":"$894,644"}},{"$f":"SUM('Trial 3'!EB9:EM9)","v":{"v":10864989.533290206,"d":"$10,864,990"}}]
[{"$f":"Labels!B99","v":"Trial 04"},{"$f":"'Trial 4'!B9","v":{"v":949133.2202495517,"d":"$949,133"}},{"$f":"'Trial 4'!C9","v":{"v":941187.6774262296,"d":"$941,188"}},{"$f":"'Trial 4'!D9","v":{"v":939482.3194920024,"d":"$939,482"}},{"$f":"'Trial 4'!E9","v":{"v":980170.3963395489,"d":"$980,170"}},{"$f":"'Trial 4'!F9","v":{"v":999017.1433989248,"d":"$999,017"}},{"$f":"'Trial 4'!G9","v":{"v":1015979.6549284561,"d":"$1,015,980"}},{"$f":"'Trial 4'!H9","v":{"v":916288.1408850434,"d":"$916,288"}},{"$f":"'Trial 4'!I9","v":{"v":917817.0913844351,"d":"$917,817"}},{"$f":"'Trial 4'!J9","v":{"v":950586.2551576702,"d":"$950,586"}},{"$f":"'Trial 4'!K9","v":{"v":950467.8577314499,"d":"$950,468"}},{"$f":"'Trial 4'!L9","v":{"v":958897.9860853446,"d":"$958,898"}},{"$f":"'Trial 4'!M9","v":{"v":910018.6825218421,"d":"$910,019"}},{"$f":"SUM('Trial 4'!B9:M9)","v":{"v":11429046.425600499,"d":"$11,429,046"}},{"$f":"'Trial 4'!O9","v":{"v":958088.3860363538,"d":"$958,088"}},{"$f":"'Trial 4'!P9","v":{"v":970044.3283308629,"d":"$970,044"}},{"$f":"'Trial 4'!Q9","v":{"v":999063.1138890338,"d":"$999,063"}},{"$f":"'Trial 4'!R9","v":{"v":957008.1125626758,"d":"$957,008"}},{"$f":"'Trial 4'!S9","v":{"v":898611.2362265487,"d":"$898,611"}},{"$f":"'Trial 4'!T9","v":{"v":938321.6051570509,"d":"$938,322"}},{"$f":"'Trial 4'!U9","v":{"v":957048.7889470609,"d":"$957,049"}},{"$f":"'Trial 4'!V9","v":{"v":949450.2888525696,"d":"$949,450"}},{"$f":"'Trial 4'!W9","v":{"v":1013907.3189922987,"d":"$1,013,907"}},{"$f":"'Trial 4'!X9","v":{"v":946444.3487860704,"d":"$946,444"}},{"$f":"'Trial 4'!Y9","v":{"v":900555.5824394184,"d":"$900,556"}},{"$f":"'Trial 4'!Z9","v":{"v":921329.7953204834,"d":"$921,330"}},{"$f":"SUM('Trial 4'!O9:Z9)","v":{"v":11409872.905540427,"d":"$11,409,873"}},{"$f":"'Trial 4'!AB9","v":{"v":928449.41534814,"d":"$928,449"}},{"$f":"'Trial 4'!AC9","v":{"v":958727.060387083,"d":"$958,727"}},{"$f":"'Trial 4'!AD9","v":{"v":936090.6149453559,"d":"$936,091"}},{"$f":"'Trial 4'!AE9","v":{"v":905949.1714447642,"d":"$905,949"}},{"$f":"'Trial 4'!AF9","v":{"v":929181.0788227046,"d":"$929,181"}},{"$f":"'Trial 4'!AG9","v":{"v":992420.0144579633,"d":"$992,420"}},{"$f":"'Trial 4'!AH9","v":{"v":946785.8921112611,"d":"$946,786"}},{"$f":"'Trial 4'!AI9","v":{"v":945829.012173806,"d":"$945,829"}},{"$f":"'Trial 4'!AJ9","v":{"v":927260.8701416582,"d":"$927,261"}},{"$f":"'Trial 4'!AK9","v":{"v":983600.2903605652,"d":"$983,600"}},{"$f":"'Trial 4'!AL9","v":{"v":932987.4050006245,"d":"$932,987"}},{"$f":"'Trial 4'!AM9","v":{"v":886209.1245205982,"d":"$886,209"}},{"$f":"SUM('Trial 4'!AB9:AM9)","v":{"v":11273489.949714525,"d":"$11,273,490"}},{"$f":"'Trial 4'!AO9","v":{"v":943822.4262714365,"d":"$943,822"}},{"$f":"'Trial 4'!AP9","v":{"v":940403.5396017886,"d":"$940,404"}},{"$f":"'Trial 4'!AQ9","v":{"v":933094.0282118012,"d":"$933,094"}},{"$f":"'Trial 4'!AR9","v":{"v":907667.6773342944,"d":"$907,668"}},{"$f":"'Trial 4'!AS9","v":{"v":953250.4640133078,"d":"$953,250"}},{"$f":"'Trial 4'!AT9","v":{"v":972165.3963699397,"d":"$972,165"}},{"$f":"'Trial 4'!AU9","v":{"v":953797.1213375749,"d":"$953,797"}},{"$f":"'Trial 4'!AV9","v":{"v":937735.3976923374,"d":"$937,735"}},{"$f":"'Trial 4'!AW9","v":{"v":958565.4105854259,"d":"$958,565"}},{"$f":"'Trial 4'!AX9","v":{"v":907554.3149572643,"d":"$907,554"}},{"$f":"'Trial 4'!AY9","v":{"v":911803.3102498478,"d":"$911,803"}},{"$f":"'Trial 4'!AZ9","v":{"v":887722.7631068792,"d":"$887,723"}},{"$f":"SUM('Trial 4'!AO9:AZ9)","v":{"v":11207581.8497319,"d":"$11,207,582"}},{"$f":"'Trial 4'!BB9","v":{"v":994887.7864883789,"d":"$994,888"}},{"$f":"'Trial 4'!BC9","v":{"v":992481.2146104544,"d":"$992,481"}},{"$f":"'Trial 4'!BD9","v":{"v":904607.8032382441,"d":"$904,608"}},{"$f":"'Trial 4'!BE9","v":{"v":936195.1852323234,"d":"$936,195"}},{"$f":"'Trial 4'!BF9","v":{"v":905873.1947275392,"d":"$905,873"}},{"$f":"'Trial 4'!BG9","v":{"v":956568.1678425822,"d":"$956,568"}},{"$f":"'Trial 4'!BH9","v":{"v":907227.9554450936,"d":"$907,228"}},{"$f":"'Trial 4'!BI9","v":{"v":936356.6437523853,"d":"$936,357"}},{"$f":"'Trial 4'!BJ9","v":{"v":875952.8915699207,"d":"$875,953"}},{"$f":"'Trial 4'!BK9","v":{"v":963613.9462107236,"d":"$963,614"}},{"$f":"'Trial 4'!BL9","v":{"v":947852.6131909846,"d":"$947,853"}},{"$f":"'Trial 4'!BM9","v":{"v":959754.4636233789,"d":"$959,754"}},{"$f":"SUM('Trial 4'!BB9:BM9)","v":{"v":11281371.865932006,"d":"$11,281,372"}},{"$f":"'Trial 4'!BO9","v":{"v":955360.5491383851,"d":"$955,361"}},{"$f":"'Trial 4'!BP9","v":{"v":956840.3239115219,"d":"$956,840"}},{"$f":"'Trial 4'!BQ9","v":{"v":909075.7594254744,"d":"$909,076"}},{"$f":"'Trial 4'!BR9","v":{"v":937998.8524408707,"d":"$937,999"}},{"$f":"'Trial 4'!BS9","v":{"v":893668.3963083324,"d":"$893,668"}},{"$f":"'Trial 4'!BT9","v":{"v":949127.4563355307,"d":"$949,127"}},{"$f":"'Trial 4'!BU9","v":{"v":915825.5935182236,"d":"$915,826"}},{"$f":"'Trial 4'!BV9","v":{"v":903152.5936779452,"d":"$903,153"}},{"$f":"'Trial 4'!BW9","v":{"v":891564.104486502,"d":"$891,564"}},{"$f":"'Trial 4'!BX9","v":{"v":954248.9290005652,"d":"$954,249"}},{"$f":"'Trial 4'!BY9","v":{"v":921402.7568495203,"d":"$921,403"}},{"$f":"'Trial 4'!BZ9","v":{"v":944168.1988022357,"d":"$944,168"}},{"$f":"SUM('Trial 4'!BO9:BZ9)","v":{"v":11132433.513895107,"d":"$11,132,434"}},{"$f":"'Trial 4'!CB9","v":{"v":897611.716656255,"d":"$897,612"}},{"$f":"'Trial 4'!CC9","v":{"v":941346.8340774936,"d":"$941,347"}},{"$f":"'Trial 4'!CD9","v":{"v":907779.5092626195,"d":"$907,780"}},{"$f":"'Trial 4'!CE9","v":{"v":914115.7587261047,"d":"$914,116"}},{"$f":"'Trial 4'!CF9","v":{"v":929664.6198586294,"d":"$929,665"}},{"$f":"'Trial 4'!CG9","v":{"v":910701.0923454267,"d":"$910,701"}},{"$f":"'Trial 4'!CH9","v":{"v":985660.1835244193,"d":"$985,660"}},{"$f":"'Trial 4'!CI9","v":{"v":956070.3482916179,"d":"$956,070"}},{"$f":"'Trial 4'!CJ9","v":{"v":918980.253495065,"d":"$918,980"}},{"$f":"'Trial 4'!CK9","v":{"v":957509.5335018017,"d":"$957,510"}},{"$f":"'Trial 4'!CL9","v":{"v":930081.081694256,"d":"$930,081"}},{"$f":"'Trial 4'!CM9","v":{"v":899786.1860675924,"d":"$899,786"}},{"$f":"SUM('Trial 4'!CB9:CM9)","v":{"v":11149307.117501283,"d":"$11,149,307"}},{"$f":"'Trial 4'!CO9","v":{"v":952672.9794905998,"d":"$952,673"}},{"$f":"'Trial 4'!CP9","v":{"v":942997.6412536249,"d":"$942,998"}},{"$f":"'Trial 4'!CQ9","v":{"v":951823.0661272884,"d":"$951,823"}},{"$f":"'Trial 4'!CR9","v":{"v":923596.2018548569,"d":"$923,596"}},{"$f":"'Trial 4'!CS9","v":{"v":894879.4834778315,"d":"$894,879"}},{"$f":"'Trial 4'!CT9","v":{"v":870667.6579495568,"d":"$870,668"}},{"$f":"'Trial 4'!CU9","v":{"v":973093.2253873862,"d":"$973,093"}},{"$f":"'Trial 4'!CV9","v":{"v":935587.1581947025,"d":"$935,587"}},{"$f":"'Trial 4'!CW9","v":{"v":932087.5031393837,"d":"$932,088"}},{"$f":"'Trial 4'!CX9","v":{"v":869121.1526660407,"d":"$869,121"}},{"$f":"'Trial 4'!CY9","v":{"v":939136.1984735652,"d":"$939,136"}},{"$f":"'Trial 4'!CZ9","v":{"v":960072.230769163,"d":"$960,072"}},{"$f":"SUM('Trial 4'!CO9:CZ9)","v":{"v":11145734.498784,"d":"$11,145,734"}},{"$f":"'Trial 4'!DB9","v":{"v":895253.5181821894,"d":"$895,254"}},{"$f":"'Trial 4'!DC9","v":{"v":877917.7145776956,"d":"$877,918"}},{"$f":"'Trial 4'!DD9","v":{"v":937552.2403431141,"d":"$937,552"}},{"$f":"'Trial 4'!DE9","v":{"v":937376.9185899885,"d":"$937,377"}},{"$f":"'Trial 4'!DF9","v":{"v":920822.5528774846,"d":"$920,823"}},{"$f":"'Trial 4'!DG9","v":{"v":928890.1996208582,"d":"$928,890"}},{"$f":"'Trial 4'!DH9","v":{"v":876301.035574762,"d":"$876,301"}},{"$f":"'Trial 4'!DI9","v":{"v":939942.9550044967,"d":"$939,943"}},{"$f":"'Trial 4'!DJ9","v":{"v":895390.1917897273,"d":"$895,390"}},{"$f":"'Trial 4'!DK9","v":{"v":933554.5044824253,"d":"$933,555"}},{"$f":"'Trial 4'!DL9","v":{"v":922818.6364523539,"d":"$922,819"}},{"$f":"'Trial 4'!DM9","v":{"v":896766.0463165062,"d":"$896,766"}},{"$f":"SUM('Trial 4'!DB9:DM9)","v":{"v":10962586.513811603,"d":"$10,962,587"}},{"$f":"'Trial 4'!DO9","v":{"v":957545.3877370871,"d":"$957,545"}},{"$f":"'Trial 4'!DP9","v":{"v":970651.2917035138,"d":"$970,651"}},{"$f":"'Trial 4'!DQ9","v":{"v":880805.2242028507,"d":"$880,805"}},{"$f":"'Trial 4'!DR9","v":{"v":960016.2042876622,"d":"$960,016"}},{"$f":"'Trial 4'!DS9","v":{"v":965676.6340335011,"d":"$965,677"}},{"$f":"'Trial 4'!DT9","v":{"v":938506.5925786279,"d":"$938,507"}},{"$f":"'Trial 4'!DU9","v":{"v":893000.5679719029,"d":"$893,001"}},{"$f":"'Trial 4'!DV9","v":{"v":902332.9312668289,"d":"$902,333"}},{"$f":"'Trial 4'!DW9","v":{"v":849246.1884558782,"d":"$849,246"}},{"$f":"'Trial 4'!DX9","v":{"v":950391.0458704293,"d":"$950,391"}},{"$f":"'Trial 4'!DY9","v":{"v":942335.9852642003,"d":"$942,336"}},{"$f":"'Trial 4'!DZ9","v":{"v":956109.6954362595,"d":"$956,110"}},{"$f":"SUM('Trial 4'!DO9:DZ9)","v":{"v":11166617.748808742,"d":"$11,166,618"}},{"$f":"'Trial 4'!EB9","v":{"v":903210.4050801338,"d":"$903,210"}},{"$f":"'Trial 4'!EC9","v":{"v":844269.4751957054,"d":"$844,269"}},{"$f":"'Trial 4'!ED9","v":{"v":894643.3941120175,"d":"$894,643"}},{"$f":"'Trial 4'!EE9","v":{"v":943962.6646863945,"d":"$943,963"}},{"$f":"'Trial 4'!EF9","v":{"v":955059.0695886131,"d":"$955,059"}},{"$f":"'Trial 4'!EG9","v":{"v":890821.1760357283,"d":"$890,821"}},{"$f":"'Trial 4'!EH9","v":{"v":927241.2334419821,"d":"$927,241"}},{"$f":"'Trial 4'!EI9","v":{"v":853677.7427362464,"d":"$853,678"}},{"$f":"'Trial 4'!EJ9","v":{"v":852813.7134197945,"d":"$852,814"}},{"$f":"'Trial 4'!EK9","v":{"v":935031.8862983249,"d":"$935,032"}},{"$f":"'Trial 4'!EL9","v":{"v":866288.3001322225,"d":"$866,288"}},{"$f":"'Trial 4'!EM9","v":{"v":926267.1903910944,"d":"$926,267"}},{"$f":"SUM('Trial 4'!EB9:EM9)","v":{"v":10793286.251118258,"d":"$10,793,286"}}]
[{"$f":"Labels!B100","v":"Trial 05"},{"$f":"'Trial 5'!B9","v":{"v":923738.448670476,"d":"$923,738"}},{"$f":"'Trial 5'!C9","v":{"v":933408.649227766,"d":"$933,409"}},{"$f":"'Trial 5'!D9","v":{"v":999945.310821713,"d":"$999,945"}},{"$f":"'Trial 5'!E9","v":{"v":909754.3983882215,"d":"$909,754"}},{"$f":"'Trial 5'!F9","v":{"v":940760.9875784436,"d":"$940,761"}},{"$f":"'Trial 5'!G9","v":{"v":935755.0869919473,"d":"$935,755"}},{"$f":"'Trial 5'!H9","v":{"v":957530.6120783462,"d":"$957,531"}},{"$f":"'Trial 5'!I9","v":{"v":978652.2856243133,"d":"$978,652"}},{"$f":"'Trial 5'!J9","v":{"v":1018764.6421169592,"d":"$1,018,765"}},{"$f":"'Trial 5'!K9","v":{"v":930350.0790734767,"d":"$930,350"}},{"$f":"'Trial 5'!L9","v":{"v":936003.9597199886,"d":"$936,004"}},{"$f":"'Trial 5'!M9","v":{"v":955930.7935484002,"d":"$955,931"}},{"$f":"SUM('Trial 5'!B9:M9)","v":{"v":11420595.253840053,"d":"$11,420,595"}},{"$f":"'Trial 5'!O9","v":{"v":946175.9502732761,"d":"$946,176"}},{"$f":"'Trial 5'!P9","v":{"v":959793.8067702696,"d":"$959,794"}},{"$f":"'Trial 5'!Q9","v":{"v":947107.6564104268,"d":"$947,108"}},{"$f":"'Trial 5'!R9","v":{"v":961928.1586591399,"d":"$961,928"}},{"$f":"'Trial 5'!S9","v":{"v":912942.3623592738,"d":"$912,942"}},{"$f":"'Trial 5'!T9","v":{"v":1013706.1412023694,"d":"$1,013,706"}},{"$f":"'Trial 5'!U9","v":{"v":967536.0176366833,"d":"$967,536"}},{"$f":"'Trial 5'!V9","v":{"v":948979.2600223806,"d":"$948,979"}},{"$f":"'Trial 5'!W9","v":{"v":961333.4020066863,"d":"$961,333"}},{"$f":"'Trial 5'!X9","v":{"v":917539.9724895163,"d":"$917,540"}},{"$f":"'Trial 5'!Y9","v":{"v":1007770.4363511159,"d":"$1,007,770"}},{"$f":"'Trial 5'!Z9","v":{"v":937056.78479072,"d":"$937,057"}},{"$f":"SUM('Trial 5'!O9:Z9)","v":{"v":11481869.94897186,"d":"$11,481,870"}},{"$f":"'Trial 5'!AB9","v":{"v":967212.1680572735,"d":"$967,212"}},{"$f":"'Trial 5'!AC9","v":{"v":949707.736172165,"d":"$949,708"}},{"$f":"'Trial 5'!AD9","v":{"v":1001102.8242061533,"d":"$1,001,103"}},{"$f":"'Trial 5'!AE9","v":{"v":891333.5954792737,"d":"$891,334"}},{"$f":"'Trial 5'!AF9","v":{"v":900823.7727385288,"d":"$900,824"}},{"$f":"'Trial 5'!AG9","v":{"v":931709.0003718797,"d":"$931,709"}},{"$f":"'Trial 5'!AH9","v":{"v":961578.8904434014,"d":"$961,579"}},{"$f":"'Trial 5'!AI9","v":{"v":913078.4284984393,"d":"$913,078"}},{"$f":"'Trial 5'!AJ9","v":{"v":954370.5792174317,"d":"$954,371"}},{"$f":"'Trial 5'!AK9","v":{"v":910790.9103733476,"d":"$910,791"}},{"$f":"'Trial 5'!AL9","v":{"v":936636.6249399761,"d":"$936,637"}},{"$f":"'Trial 5'!AM9","v":{"v":913581.7670673335,"d":"$913,582"}},{"$f":"SUM('Trial 5'!AB9:AM9)","v":{"v":11231926.297565203,"d":"$11,231,926"}},{"$f":"'Trial 5'!AO9","v":{"v":944958.3478503797,"d":"$944,958"}},{"$f":"'Trial 5'!AP9","v":{"v":947860.8678001799,"d":"$947,861"}},{"$f":"'Trial 5'!AQ9","v":{"v":931208.8286774773,"d":"$931,209"}},{"$f":"'Trial 5'!AR9","v":{"v":958776.6666613529,"d":"$958,777"}},{"$f":"'Trial 5'!AS9","v":{"v":964043.319901824,"d":"$964,043"}},{"$f":"'Trial 5'!AT9","v":{"v":925337.3209513045,"d":"$925,337"}},{"$f":"'Trial 5'!AU9","v":{"v":954473.3741220998,"d":"$954,473"}},{"$f":"'Trial 5'!AV9","v":{"v":944134.8099339925,"d":"$944,135"}},{"$f":"'Trial 5'!AW9","v":{"v":932528.0069679854,"d":"$932,528"}},{"$f":"'Trial 5'!AX9","v":{"v":932537.2121217838,"d":"$932,537"}},{"$f":"'Trial 5'!AY9","v":{"v":948464.7194809237,"d":"$948,465"}},{"$f":"'Trial 5'!AZ9","v":{"v":932238.1727281841,"d":"$932,238"}},{"$f":"SUM('Trial 5'!AO9:AZ9)","v":{"v":11316561.647197489,"d":"$11,316,562"}},{"$f":"'Trial 5'!BB9","v":{"v":917131.5560422477,"d":"$917,132"}},{"$f":"'Trial 5'!BC9","v":{"v":897056.9017516397,"d":"$897,057"}},{"$f":"'Trial 5'!BD9","v":{"v":880015.52100851,"d":"$880,016"}},{"$f":"'Trial 5'!BE9","v":{"v":952871.2310582673,"d":"$952,871"}},{"$f":"'Trial 5'!BF9","v":{"v":920936.5856282869,"d":"$920,937"}},{"$f":"'Trial 5'!BG9","v":{"v":944756.172153294,"d":"$944,756"}},{"$f":"'Trial 5'!BH9","v":{"v":892443.3732456976,"d":"$892,443"}},{"$f":"'Trial 5'!BI9","v":{"v":945306.411481105,"d":"$945,306"}},{"$f":"'Trial 5'!BJ9","v":{"v":974069.0425867998,"d":"$974,069"}},{"$f":"'Trial 5'!BK9","v":{"v":947965.69939006,"d":"$947,966"}},{"$f":"'Trial 5'!BL9","v":{"v":974185.3089127983,"d":"$974,185"}},{"$f":"'Trial 5'!BM9","v":{"v":943479.7272712535,"d":"$943,480"}},{"$f":"SUM('Trial 5'!BB9:BM9)","v":{"v":11190217.53052996,"d":"$11,190,218"}},{"$f":"'Trial 5'!BO9","v":{"v":971536.3074708075,"d":"$971,536"}},{"$f":"'Trial 5'!BP9","v":{"v":988248.8811194685,"d":"$988,249"}},{"$f":"'Trial 5'!BQ9","v":{"v":985614.6911749173,"d":"$985,615"}},{"$f":"'Trial 5'!BR9","v":{"v":894988.9422326032,"d":"$894,989"}},{"$f":"'Trial 5'!BS9","v":{"v":931796.0829332583,"d":"$931,796"}},{"$f":"'Trial 5'!BT9","v":{"v":988634.8094090989,"d":"$988,635"}},{"$f":"'Trial 5'!BU9","v":{"v":896526.7481934418,"d":"$896,527"}},{"$f":"'Trial 5'!BV9","v":{"v":923823.332932882,"d":"$923,823"}},{"$f":"'Trial 5'!BW9","v":{"v":935433.4463843657,"d":"$935,433"}},{"$f":"'Trial 5'!BX9","v":{"v":974016.2989859054,"d":"$974,016"}},{"$f":"'Trial 5'!BY9","v":{"v":977342.447441476,"d":"$977,342"}},{"$f":"'Trial 5'!BZ9","v":{"v":964097.7319944862,"d":"$964,098"}},{"$f":"SUM('Trial 5'!BO9:BZ9)","v":{"v":11432059.72027271,"d":"$11,432,060"}},{"$f":"'Trial 5'!CB9","v":{"v":923324.4664561255,"d":"$923,324"}},{"$f":"'Trial 5'!CC9","v":{"v":930164.1287915629,"d":"$930,164"}},{"$f":"'Trial 5'!CD9","v":{"v":923399.867098097,"d":"$923,400"}},{"$f":"'Trial 5'!CE9","v":{"v":907376.8653258948,"d":"$907,377"}},{"$f":"'Trial 5'!CF9","v":{"v":933109.4192768191,"d":"$933,109"}},{"$f":"'Trial 5'!CG9","v":{"v":985260.1080956182,"d":"$985,260"}},{"$f":"'Trial 5'!CH9","v":{"v":903213.3007426122,"d":"$903,213"}},{"$f":"'Trial 5'!CI9","v":{"v":896400.2528406564,"d":"$896,400"}},{"$f":"'Trial 5'!CJ9","v":{"v":935896.0963240593,"d":"$935,896"}},{"$f":"'Trial 5'!CK9","v":{"v":979575.8384924821,"d":"$979,576"}},{"$f":"'Trial 5'!CL9","v":{"v":892480.0947918118,"d":"$892,480"}},{"$f":"'Trial 5'!CM9","v":{"v":940989.5409178147,"d":"$940,990"}},{"$f":"SUM('Trial 5'!CB9:CM9)","v":{"v":11151189.979153555,"d":"$11,151,190"}},{"$f":"'Trial 5'!CO9","v":{"v":937313.084163966,"d":"$937,313"}},{"$f":"'Trial 5'!CP9","v":{"v":890565.2406215009,"d":"$890,565"}},{"$f":"'Trial 5'!CQ9","v":{"v":969406.1818002518,"d":"$969,406"}},{"$f":"'Trial 5'!CR9","v":{"v":896239.0000566765,"d":"$896,239"}},{"$f":"'Trial 5'!CS9","v":{"v":905494.9741825534,"d":"$905,495"}},{"$f":"'Trial 5'!CT9","v":{"v":937944.7445645655,"d":"$937,945"}},{"$f":"'Trial 5'!CU9","v":{"v":928004.105100289,"d":"$928,004"}},{"$f":"'Trial 5'!CV9","v":{"v":910755.6870703362,"d":"$910,756"}},{"$f":"'Trial 5'!CW9","v":{"v":950386.0135316213,"d":"$950,386"}},{"$f":"'Trial 5'!CX9","v":{"v":904094.7116927443,"d":"$904,095"}},{"$f":"'Trial 5'!CY9","v":{"v":916095.6197996765,"d":"$916,096"}},{"$f":"'Trial 5'!CZ9","v":{"v":867643.9158454409,"d":"$867,644"}},{"$f":"SUM('Trial 5'!CO9:CZ9)","v":{"v":11013943.278429624,"d":"$11,013,943"}},{"$f":"'Trial 5'!DB9","v":{"v":936758.9774609013,"d":"$936,759"}},{"$f":"'Trial 5'!DC9","v":{"v":919020.3042439407,"d":"$919,020"}},{"$f":"'Trial 5'!DD9","v":{"v":926983.4912820138,"d":"$926,983"}},{"$f":"'Trial 5'!DE9","v":{"v":894490.2454754357,"d":"$894,490"}},{"$f":"'Trial 5'!DF9","v":{"v":886685.8409862266,"d":"$886,686"}},{"$f":"'Trial 5'!DG9","v":{"v":945333.4543062474,"d":"$945,333"}},{"$f":"'Trial 5'!DH9","v":{"v":969292.1919536958,"d":"$969,292"}},{"$f":"'Trial 5'!DI9","v":{"v":916377.3313958433,"d":"$916,377"}},{"$f":"'Trial 5'!DJ9","v":{"v":884670.5805497586,"d":"$884,671"}},{"$f":"'Trial 5'!DK9","v":{"v":907178.7557308762,"d":"$907,179"}},{"$f":"'Trial 5'!DL9","v":{"v":878974.9855721167,"d":"$878,975"}},{"$f":"'Trial 5'!DM9","v":{"v":913565.4969119215,"d":"$913,565"}},{"$f":"SUM('Trial 5'!DB9:DM9)","v":{"v":10979331.655868977,"d":"$10,979,332"}},{"$f":"'Trial 5'!DO9","v":{"v":895006.0835939602,"d":"$895,006"}},{"$f":"'Trial 5'!DP9","v":{"v":909865.645605966,"d":"$909,866"}},{"$f":"'Trial 5'!DQ9","v":{"v":960068.1298029142,"d":"$960,068"}},{"$f":"'Trial 5'!DR9","v":{"v":934181.0994787051,"d":"$934,181"}},{"$f":"'Trial 5'!DS9","v":{"v":927484.208094801,"d":"$927,484"}},{"$f":"'Trial 5'!DT9","v":{"v":944232.6308175926,"d":"$944,233"}},{"$f":"'Trial 5'!DU9","v":{"v":884442.7154696607,"d":"$884,443"}},{"$f":"'Trial 5'!DV9","v":{"v":913374.3970782605,"d":"$913,374"}},{"$f":"'Trial 5'!DW9","v":{"v":935457.1784628839,"d":"$935,457"}},{"$f":"'Trial 5'!DX9","v":{"v":891390.5505763418,"d":"$891,391"}},{"$f":"'Trial 5'!DY9","v":{"v":907314.8368183265,"d":"$907,315"}},{"$f":"'Trial 5'!DZ9","v":{"v":877907.6346212669,"d":"$877,908"}},{"$f":"SUM('Trial 5'!DO9:DZ9)","v":{"v":10980725.110420678,"d":"$10,980,725"}},{"$f":"'Trial 5'!EB9","v":{"v":904786.819212729,"d":"$904,787"}},{"$f":"'Trial 5'!EC9","v":{"v":944025.6736468422,"d":"$944,026"}},{"$f":"'Trial 5'!ED9","v":{"v":880769.4140507188,"d":"$880,769"}},{"$f":"'Trial 5'!EE9","v":{"v":911321.3238770993,"d":"$911,321"}},{"$f":"'Trial 5'!EF9","v":{"v":909003.0098695857,"d":"$909,003"}},{"$f":"'Trial 5'!EG9","v":{"v":938485.5171291063,"d":"$938,486"}},{"$f":"'Trial 5'!EH9","v":{"v":858753.7446303876,"d":"$858,754"}},{"$f":"'Trial 5'!EI9","v":{"v":870843.7929237171,"d":"$870,844"}},{"$f":"'Trial 5'!EJ9","v":{"v":884730.8800691313,"d":"$884,731"}},{"$f":"'Trial 5'!EK9","v":{"v":905306.133282507,"d":"$905,306"}},{"$f":"'Trial 5'!EL9","v":{"v":906237.8556713986,"d":"$906,238"}},{"$f":"'Trial 5'!EM9","v":{"v":899304.8592834366,"d":"$899,305"}},{"$f":"SUM('Trial 5'!EB9:EM9)","v":{"v":10813569.02364666,"d":"$10,813,569"}}]
[{"$f":"Labels!B101","v":"Trial 06"},{"$f":"'Trial 6'!B9","v":{"v":970485.9425421606,"d":"$970,486"}},{"$f":"'Trial 6'!C9","v":{"v":902710.6885535124,"d":"$902,711"}},{"$f":"'Trial 6'!D9","v":{"v":993753.6846008393,"d":"$993,754"}},{"$f":"'Trial 6'!E9","v":{"v":1010168.4255580372,"d":"$1,010,168"}},{"$f":"'Trial 6'!F9","v":{"v":977792.0330557169,"d":"$977,792"}},{"$f":"'Trial 6'!G9","v":{"v":935994.1363860844,"d":"$935,994"}},{"$f":"'Trial 6'!H9","v":{"v":954717.0576405397,"d":"$954,717"}},{"$f":"'Trial 6'!I9","v":{"v":953019.6167359789,"d":"$953,020"}},{"$f":"'Trial 6'!J9","v":{"v":991511.6779656134,"d":"$991,512"}},{"$f":"'Trial 6'!K9","v":{"v":957139.0150926289,"d":"$957,139"}},{"$f":"'Trial 6'!L9","v":{"v":1008978.2384904093,"d":"$1,008,978"}},{"$f":"'Trial 6'!M9","v":{"v":955033.2379104153,"d":"$955,033"}},{"$f":"SUM('Trial 6'!B9:M9)","v":{"v":11611303.754531937,"d":"$11,611,304"}},{"$f":"'Trial 6'!O9","v":{"v":998792.9264161845,"d":"$998,793"}},{"$f":"'Trial 6'!P9","v":{"v":946489.6710636457,"d":"$946,490"}},{"$f":"'Trial 6'!Q9","v":{"v":998452.8236753045,"d":"$998,453"}},{"$f":"'Trial 6'!R9","v":{"v":984068.1062772577,"d":"$984,068"}},{"$f":"'Trial 6'!S9","v":{"v":899230.3628316254,"d":"$899,230"}},{"$f":"'Trial 6'!T9","v":{"v":944344.8462188364,"d":"$944,345"}},{"$f":"'Trial 6'!U9","v":{"v":973904.9648328192,"d":"$973,905"}},{"$f":"'Trial 6'!V9","v":{"v":929420.3849427953,"d":"$929,420"}},{"$f":"'Trial 6'!W9","v":{"v":936268.881653643,"d":"$936,269"}},{"$f":"'Trial 6'!X9","v":{"v":963879.6494644101,"d":"$963,880"}},{"$f":"'Trial 6'!Y9","v":{"v":982173.4013657303,"d":"$982,173"}},{"$f":"'Trial 6'!Z9","v":{"v":919021.1414721637,"d":"$919,021"}},{"$f":"SUM('Trial 6'!O9:Z9)","v":{"v":11476047.160214417,"d":"$11,476,047"}},{"$f":"'Trial 6'!AB9","v":{"v":958653.7099112478,"d":"$958,654"}},{"$f":"'Trial 6'!AC9","v":{"v":969113.4442337197,"d":"$969,113"}},{"$f":"'Trial 6'!AD9","v":{"v":987041.5291811716,"d":"$987,042"}},{"$f":"'Trial 6'!AE9","v":{"v":961500.7437614652,"d":"$961,501"}},{"$f":"'Trial 6'!AF9","v":{"v":986264.2413135347,"d":"$986,264"}},{"$f":"'Trial 6'!AG9","v":{"v":958875.72430168,"d":"$958,876"}},{"$f":"'Trial 6'!AH9","v":{"v":976116.7758425665,"d":"$976,117"}},{"$f":"'Trial 6'!AI9","v":{"v":942163.6056965688,"d":"$942,164"}},{"$f":"'Trial 6'!AJ9","v":{"v":926025.1745346185,"d":"$926,025"}},{"$f":"'Trial 6'!AK9","v":{"v":951875.4387020738,"d":"$951,875"}},{"$f":"'Trial 6'!AL9","v":{"v":978083.3960151986,"d":"$978,083"}},{"$f":"'Trial 6'!AM9","v":{"v":995632.7732718065,"d":"$995,633"}},{"$f":"SUM('Trial 6'!AB9:AM9)","v":{"v":11591346.556765651,"d":"$11,591,347"}},{"$f":"'Trial 6'!AO9","v":{"v":957311.3283582043,"d":"$957,311"}},{"$f":"'Trial 6'!AP9","v":{"v":937612.9012631301,"d":"$937,613"}},{"$f":"'Trial 6'!AQ9","v":{"v":926254.4644005488,"d":"$926,254"}},{"$f":"'Trial 6'!AR9","v":{"v":950501.3073407795,"d":"$950,501"}},{"$f":"'Trial 6'!AS9","v":{"v":934337.487800145,"d":"$934,337"}},{"$f":"'Trial 6'!AT9","v":{"v":921368.482867822,"d":"$921,368"}},{"$f":"'Trial 6'!AU9","v":{"v":888057.683610995,"d":"$888,058"}},{"$f":"'Trial 6'!AV9","v":{"v":951304.6838467094,"d":"$951,305"}},{"$f":"'Trial 6'!AW9","v":{"v":924301.0399220696,"d":"$924,301"}},{"$f":"'Trial 6'!AX9","v":{"v":900293.5375794495,"d":"$900,294"}},{"$f":"'Trial 6'!AY9","v":{"v":956083.185110619,"d":"$956,083"}},{"$f":"'Trial 6'!AZ9","v":{"v":984168.1109552782,"d":"$984,168"}},{"$f":"SUM('Trial 6'!AO9:AZ9)","v":{"v":11231594.21305575,"d":"$11,231,594"}},{"$f":"'Trial 6'!BB9","v":{"v":885002.5263810436,"d":"$885,003"}},{"$f":"'Trial 6'!BC9","v":{"v":908281.7840898684,"d":"$908,282"}},{"$f":"'Trial 6'!BD9","v":{"v":918745.9817571454,"d":"$918,746"}},{"$f":"'Trial 6'!BE9","v":{"v":911304.1551564054,"d":"$911,304"}},{"$f":"'Trial 6'!BF9","v":{"v":935049.1256384067,"d":"$935,049"}},{"$f":"'Trial 6'!BG9","v":{"v":949232.0843146327,"d":"$949,232"}},{"$f":"'Trial 6'!BH9","v":{"v":965767.7258554581,"d":"$965,768"}},{"$f":"'Trial 6'!BI9","v":{"v":914298.3820568916,"d":"$914,298"}},{"$f":"'Trial 6'!BJ9","v":{"v":984304.42741934,"d":"$984,304"}},{"$f":"'Trial 6'!BK9","v":{"v":946828.7822603928,"d":"$946,829"}},{"$f":"'Trial 6'!BL9","v":{"v":885871.8178992755,"d":"$885,872"}},{"$f":"'Trial 6'!BM9","v":{"v":946469.2919891153,"d":"$946,469"}},{"$f":"SUM('Trial 6'!BB9:BM9)","v":{"v":11151156.084817978,"d":"$11,151,156"}},{"$f":"'Trial 6'!BO9","v":{"v":877687.9287608415,"d":"$877,688"}},{"$f":"'Trial 6'!BP9","v":{"v":921458.6244328492,"d":"$921,459"}},{"$f":"'Trial 6'!BQ9","v":{"v":915297.0607373328,"d":"$915,297"}},{"$f":"'Trial 6'!BR9","v":{"v":902405.0016748783,"d":"$902,405"}},{"$f":"'Trial 6'!BS9","v":{"v":873911.1115291222,"d":"$873,911"}},{"$f":"'Trial 6'!BT9","v":{"v":964238.1479616497,"d":"$964,238"}},{"$f":"'Trial 6'!BU9","v":{"v":932331.5737001562,"d":"$932,332"}},{"$f":"'Trial 6'!BV9","v":{"v":946345.1575433341,"d":"$946,345"}},{"$f":"'Trial 6'!BW9","v":{"v":956418.9538605384,"d":"$956,419"}},{"$f":"'Trial 6'!BX9","v":{"v":901488.2647061816,"d":"$901,488"}},{"$f":"'Trial 6'!BY9","v":{"v":978811.4277364552,"d":"$978,811"}},{"$f":"'Trial 6'!BZ9","v":{"v":957105.8034803661,"d":"$957,106"}},{"$f":"SUM('Trial 6'!BO9:BZ9)","v":{"v":11127499.056123706,"d":"$11,127,499"}},{"$f":"'Trial 6'!CB9","v":{"v":931230.0281401306,"d":"$931,230"}},{"$f":"'Trial 6'!CC9","v":{"v":922636.6630302087,"d":"$922,637"}},{"$f":"'Trial 6'!CD9","v":{"v":978070.5767047732,"d":"$978,071"}},{"$f":"'Trial 6'!CE9","v":{"v":917147.3397076443,"d":"$917,147"}},{"$f":"'Trial 6'!CF9","v":{"v":912365.5064692901,"d":"$912,366"}},{"$f":"'Trial 6'!CG9","v":{"v":953205.2620800581,"d":"$953,205"}},{"$f":"'Trial 6'!CH9","v":{"v":951061.8486239695,"d":"$951,062"}},{"$f":"'Trial 6'!CI9","v":{"v":964296.3791358843,"d":"$964,296"}},{"$f":"'Trial 6'!CJ9","v":{"v":927978.5108516626,"d":"$927,979"}},{"$f":"'Trial 6'!CK9","v":{"v":940377.5439050978,"d":"$940,378"}},{"$f":"'Trial 6'!CL9","v":{"v":961945.8505291634,"d":"$961,946"}},{"$f":"'Trial 6'!CM9","v":{"v":952728.1631662728,"d":"$952,728"}},{"$f":"SUM('Trial 6'!CB9:CM9)","v":{"v":11313043.672344157,"d":"$11,313,044"}},{"$f":"'Trial 6'!CO9","v":{"v":932527.4177022611,"d":"$932,527"}},{"$f":"'Trial 6'!CP9","v":{"v":960607.6963640375,"d":"$960,608"}},{"$f":"'Trial 6'!CQ9","v":{"v":925472.3383541022,"d":"$925,472"}},{"$f":"'Trial 6'!CR9","v":{"v":925989.2418942206,"d":"$925,989"}},{"$f":"'Trial 6'!CS9","v":{"v":896383.3396942505,"d":"$896,383"}},{"$f":"'Trial 6'!CT9","v":{"v":900072.4799092698,"d":"$900,072"}},{"$f":"'Trial 6'!CU9","v":{"v":972872.4473620524,"d":"$972,872"}},{"$f":"'Trial 6'!CV9","v":{"v":888212.9488256725,"d":"$888,213"}},{"$f":"'Trial 6'!CW9","v":{"v":969022.2196569552,"d":"$969,022"}},{"$f":"'Trial 6'!CX9","v":{"v":930618.0817245467,"d":"$930,618"}},{"$f":"'Trial 6'!CY9","v":{"v":893499.5447809834,"d":"$893,500"}},{"$f":"'Trial 6'!CZ9","v":{"v":936312.8902461516,"d":"$936,313"}},{"$f":"SUM('Trial 6'!CO9:CZ9)","v":{"v":11131590.646514501,"d":"$11,131,591"}},{"$f":"'Trial 6'!DB9","v":{"v":939537.0953788854,"d":"$939,537"}},{"$f":"'Trial 6'!DC9","v":{"v":868226.0554105022,"d":"$868,226"}},{"$f":"'Trial 6'!DD9","v":{"v":900459.0328157612,"d":"$900,459"}},{"$f":"'Trial 6'!DE9","v":{"v":917751.6238307108,"d":"$917,752"}},{"$f":"'Trial 6'!DF9","v":{"v":872876.1417107031,"d":"$872,876"}},{"$f":"'Trial 6'!DG9","v":{"v":908437.3524772688,"d":"$908,437"}},{"$f":"'Trial 6'!DH9","v":{"v":878364.7256735303,"d":"$878,365"}},{"$f":"'Trial 6'!DI9","v":{"v":875195.0185962507,"d":"$875,195"}},{"$f":"'Trial 6'!DJ9","v":{"v":863881.3488020931,"d":"$863,881"}},{"$f":"'Trial 6'!DK9","v":{"v":919779.914336522,"d":"$919,780"}},{"$f":"'Trial 6'!DL9","v":{"v":887243.112179648,"d":"$887,243"}},{"$f":"'Trial 6'!DM9","v":{"v":901929.4963593206,"d":"$901,929"}},{"$f":"SUM('Trial 6'!DB9:DM9)","v":{"v":10733680.917571194,"d":"$10,733,681"}},{"$f":"'Trial 6'!DO9","v":{"v":948166.8196875368,"d":"$948,167"}},{"$f":"'Trial 6'!DP9","v":{"v":889765.2702949918,"d":"$889,765"}},{"$f":"'Trial 6'!DQ9","v":{"v":892463.5871364118,"d":"$892,464"}},{"$f":"'Trial 6'!DR9","v":{"v":911541.8128589289,"d":"$911,542"}},{"$f":"'Trial 6'!DS9","v":{"v":905722.5692710272,"d":"$905,723"}},{"$f":"'Trial 6'!DT9","v":{"v":930333.3160940348,"d":"$930,333"}},{"$f":"'Trial 6'!DU9","v":{"v":944344.7665408474,"d":"$944,345"}},{"$f":"'Trial 6'!DV9","v":{"v":949600.2224007092,"d":"$949,600"}},{"$f":"'Trial 6'!DW9","v":{"v":916515.2503617348,"d":"$916,515"}},{"$f":"'Trial 6'!DX9","v":{"v":934704.330358938,"d":"$934,704"}},{"$f":"'Trial 6'!DY9","v":{"v":902323.5693278019,"d":"$902,324"}},{"$f":"'Trial 6'!DZ9","v":{"v":905829.7415235834,"d":"$905,830"}},{"$f":"SUM('Trial 6'!DO9:DZ9)","v":{"v":11031311.255856548,"d":"$11,031,311"}},{"$f":"'Trial 6'!EB9","v":{"v":942309.4931287376,"d":"$942,309"}},{"$f":"'Trial 6'!EC9","v":{"v":909168.8878407129,"d":"$909,169"}},{"$f":"'Trial 6'!ED9","v":{"v":922840.055288791,"d":"$922,840"}},{"$f":"'Trial 6'!EE9","v":{"v":931678.7061925979,"d":"$931,679"}},{"$f":"'Trial 6'!EF9","v":{"v":905639.8846881945,"d":"$905,640"}},{"$f":"'Trial 6'!EG9","v":{"v":919369.4085751083,"d":"$919,369"}},{"$f":"'Trial 6'!EH9","v":{"v":904555.4821409739,"d":"$904,555"}},{"$f":"'Trial 6'!EI9","v":{"v":917728.507836129,"d":"$917,729"}},{"$f":"'Trial 6'!EJ9","v":{"v":944450.582841971,"d":"$944,451"}},{"$f":"'Trial 6'!EK9","v":{"v":957168.0221631543,"d":"$957,168"}},{"$f":"'Trial 6'!EL9","v":{"v":867435.1260124728,"d":"$867,435"}},{"$f":"'Trial 6'!EM9","v":{"v":885373.5853859566,"d":"$885,374"}},{"$f":"SUM('Trial 6'!EB9:EM9)","v":{"v":11007717.742094798,"d":"$11,007,718"}}]
[{"$f":"Labels!B102","v":"Trial 07"},{"$f":"'Trial 7'!B9","v":{"v":934675.8648213199,"d":"$934,676"}},{"$f":"'Trial 7'!C9","v":{"v":987175.0402893362,"d":"$987,175"}},{"$f":"'Trial 7'!D9","v":{"v":978529.7956814218,"d":"$978,530"}},{"$f":"'Trial 7'!E9","v":{"v":954377.4470379899,"d":"$954,377"}},{"$f":"'Trial 7'!F9","v":{"v":993561.7000547308,"d":"$993,562"}},{"$f":"'Trial 7'!G9","v":{"v":994872.4729530611,"d":"$994,872"}},{"$f":"'Trial 7'!H9","v":{"v":992235.8709737282,"d":"$992,236"}},{"$f":"'Trial 7'!I9","v":{"v":1000262.7275780932,"d":"$1,000,263"}},{"$f":"'Trial 7'!J9","v":{"v":951435.6346946689,"d":"$951,436"}},{"$f":"'Trial 7'!K9","v":{"v":935902.5392245529,"d":"$935,903"}},{"$f":"'Trial 7'!L9","v":{"v":955218.0590577031,"d":"$955,218"}},{"$f":"'Trial 7'!M9","v":{"v":948465.3648001158,"d":"$948,465"}},{"$f":"SUM('Trial 7'!B9:M9)","v":{"v":11626712.517166723,"d":"$11,626,713"}},{"$f":"'Trial 7'!O9","v":{"v":962919.8662356727,"d":"$962,920"}},{"$f":"'Trial 7'!P9","v":{"v":993956.1890214666,"d":"$993,956"}},{"$f":"'Trial 7'!Q9","v":{"v":990049.9440388747,"d":"$990,050"}},{"$f":"'Trial 7'!R9","v":{"v":980860.068524317,"d":"$980,860"}},{"$f":"'Trial 7'!S9","v":{"v":967154.7540451369,"d":"$967,155"}},{"$f":"'Trial 7'!T9","v":{"v":985513.0033231032,"d":"$985,513"}},{"$f":"'Trial 7'!U9","v":{"v":950018.2637602629,"d":"$950,018"}},{"$f":"'Trial 7'!V9","v":{"v":985884.1089676133,"d":"$985,884"}},{"$f":"'Trial 7'!W9","v":{"v":997344.8221739439,"d":"$997,345"}},{"$f":"'Trial 7'!X9","v":{"v":982510.883538926,"d":"$982,511"}},{"$f":"'Trial 7'!Y9","v":{"v":955477.3734819714,"d":"$955,477"}},{"$f":"'Trial 7'!Z9","v":{"v":904365.9630287031,"d":"$904,366"}},{"$f":"SUM('Trial 7'!O9:Z9)","v":{"v":11656055.240139993,"d":"$11,656,055"}},{"$f":"'Trial 7'!AB9","v":{"v":899376.1496525535,"d":"$899,376"}},{"$f":"'Trial 7'!AC9","v":{"v":951102.2984931329,"d":"$951,102"}},{"$f":"'Trial 7'!AD9","v":{"v":964771.9852316892,"d":"$964,772"}},{"$f":"'Trial 7'!AE9","v":{"v":982053.9144656891,"d":"$982,054"}},{"$f":"'Trial 7'!AF9","v":{"v":930580.8252056224,"d":"$930,581"}},{"$f":"'Trial 7'!AG9","v":{"v":970109.11172486,"d":"$970,109"}},{"$f":"'Trial 7'!AH9","v":{"v":966997.178045346,"d":"$966,997"}},{"$f":"'Trial 7'!AI9","v":{"v":913059.8097541294,"d":"$913,060"}},{"$f":"'Trial 7'!AJ9","v":{"v":939143.0847851746,"d":"$939,143"}},{"$f":"'Trial 7'!AK9","v":{"v":949794.8356204884,"d":"$949,795"}},{"$f":"'Trial 7'!AL9","v":{"v":952185.0241874148,"d":"$952,185"}},{"$f":"'Trial 7'!AM9","v":{"v":928585.3302846665,"d":"$928,585"}},{"$f":"SUM('Trial 7'!AB9:AM9)","v":{"v":11347759.547450768,"d":"$11,347,760"}},{"$f":"'Trial 7'!AO9","v":{"v":913855.0118772375,"d":"$913,855"}},{"$f":"'Trial 7'!AP9","v":{"v":938552.6540706509,"d":"$938,553"}},{"$f":"'Trial 7'!AQ9","v":{"v":972058.8321511857,"d":"$972,059"}},{"$f":"'Trial 7'!AR9","v":{"v":969442.0781121411,"d":"$969,442"}},{"$f":"'Trial 7'!AS9","v":{"v":994213.6459894115,"d":"$994,214"}},{"$f":"'Trial 7'!AT9","v":{"v":921266.1360022364,"d":"$921,266"}},{"$f":"'Trial 7'!AU9","v":{"v":937886.2863404618,"d":"$937,886"}},{"$f":"'Trial 7'!AV9","v":{"v":936168.3293219738,"d":"$936,168"}},{"$f":"'Trial 7'!AW9","v":{"v":921558.4090950799,"d":"$921,558"}},{"$f":"'Trial 7'!AX9","v":{"v":908756.0153854304,"d":"$908,756"}},{"$f":"'Trial 7'!AY9","v":{"v":915819.0043405591,"d":"$915,819"}},{"$f":"'Trial 7'!AZ9","v":{"v":895823.5673161332,"d":"$895,824"}},{"$f":"SUM('Trial 7'!AO9:AZ9)","v":{"v":11225399.970002502,"d":"$11,225,400"}},{"$f":"'Trial 7'!BB9","v":{"v":925797.5986979775,"d":"$925,798"}},{"$f":"'Trial 7'!BC9","v":{"v":922736.7182905161,"d":"$922,737"}},{"$f":"'Trial 7'!BD9","v":{"v":952370.8846196062,"d":"$952,371"}},{"$f":"'Trial 7'!BE9","v":{"v":927533.2288040039,"d":"$927,533"}},{"$f":"'Trial 7'!BF9","v":{"v":950985.2872823022,"d":"$950,985"}},{"$f":"'Trial 7'!BG9","v":{"v":971223.9284541449,"d":"$971,224"}},{"$f":"'Trial 7'!BH9","v":{"v":905603.0275405628,"d":"$905,603"}},{"$f":"'Trial 7'!BI9","v":{"v":933548.9785735742,"d":"$933,549"}},{"$f":"'Trial 7'!BJ9","v":{"v":916976.0339337994,"d":"$916,976"}},{"$f":"'Trial 7'!BK9","v":{"v":893281.9937640622,"d":"$893,282"}},{"$f":"'Trial 7'!BL9","v":{"v":918183.1419684142,"d":"$918,183"}},{"$f":"'Trial 7'!BM9","v":{"v":951661.103990508,"d":"$951,661"}},{"$f":"SUM('Trial 7'!BB9:BM9)","v":{"v":11169901.925919471,"d":"$11,169,902"}},{"$f":"'Trial 7'!BO9","v":{"v":915600.2441727057,"d":"$915,600"}},{"$f":"'Trial 7'!BP9","v":{"v":882410.1709155466,"d":"$882,410"}},{"$f":"'Trial 7'!BQ9","v":{"v":951571.6372641476,"d":"$951,572"}},{"$f":"'Trial 7'!BR9","v":{"v":950100.4279772599,"d":"$950,100"}},{"$f":"'Trial 7'!BS9","v":{"v":966646.821192672,"d":"$966,647"}},{"$f":"'Trial 7'!BT9","v":{"v":973477.1323417113,"d":"$973,477"}},{"$f":"'Trial 7'!BU9","v":{"v":960699.9243798752,"d":"$960,700"}},{"$f":"'Trial 7'!BV9","v":{"v":902416.1851157987,"d":"$902,416"}},{"$f":"'Trial 7'!BW9","v":{"v":972275.7476685685,"d":"$972,276"}},{"$f":"'Trial 7'!BX9","v":{"v":904775.4327694746,"d":"$904,775"}},{"$f":"'Trial 7'!BY9","v":{"v":886218.4501414943,"d":"$886,218"}},{"$f":"'Trial 7'!BZ9","v":{"v":867079.8161896593,"d":"$867,080"}},{"$f":"SUM('Trial 7'!BO9:BZ9)","v":{"v":11133271.990128912,"d":"$11,133,272"}},{"$f":"'Trial 7'!CB9","v":{"v":923131.7110475722,"d":"$923,132"}},{"$f":"'Trial 7'!CC9","v":{"v":950054.8907343049,"d":"$950,055"}},{"$f":"'Trial 7'!CD9","v":{"v":954508.1786462977,"d":"$954,508"}},{"$f":"'Trial 7'!CE9","v":{"v":867000.827340083,"d":"$867,001"}},{"$f":"'Trial 7'!CF9","v":{"v":908571.7549447749,"d":"$908,572"}},{"$f":"'Trial 7'!CG9","v":{"v":950778.6754038378,"d":"$950,779"}},{"$f":"'Trial 7'!CH9","v":{"v":863077.8467572536,"d":"$863,078"}},{"$f":"'Trial 7'!CI9","v":{"v":894421.4165008895,"d":"$894,421"}},{"$f":"'Trial 7'!CJ9","v":{"v":984978.6090254855,"d":"$984,979"}},{"$f":"'Trial 7'!CK9","v":{"v":977645.2732711998,"d":"$977,645"}},{"$f":"'Trial 7'!CL9","v":{"v":917077.1715218137,"d":"$917,077"}},{"$f":"'Trial 7'!CM9","v":{"v":954311.5303739271,"d":"$954,312"}},{"$f":"SUM('Trial 7'!CB9:CM9)","v":{"v":11145557.885567442,"d":"$11,145,558"}},{"$f":"'Trial 7'!CO9","v":{"v":979991.9014835564,"d":"$979,992"}},{"$f":"'Trial 7'!CP9","v":{"v":917688.5703669485,"d":"$917,689"}},{"$f":"'Trial 7'!CQ9","v":{"v":939547.4000638706,"d":"$939,547"}},{"$f":"'Trial 7'!CR9","v":{"v":946086.3227817388,"d":"$946,086"}},{"$f":"'Trial 7'!CS9","v":{"v":924365.1866417334,"d":"$924,365"}},{"$f":"'Trial 7'!CT9","v":{"v":917339.4451466411,"d":"$917,339"}},{"$f":"'Trial 7'!CU9","v":{"v":951180.1105195335,"d":"$951,180"}},{"$f":"'Trial 7'!CV9","v":{"v":918563.676436139,"d":"$918,564"}},{"$f":"'Trial 7'!CW9","v":{"v":914703.173771754,"d":"$914,703"}},{"$f":"'Trial 7'!CX9","v":{"v":875951.2849830978,"d":"$875,951"}},{"$f":"'Trial 7'!CY9","v":{"v":881489.7766325936,"d":"$881,490"}},{"$f":"'Trial 7'!CZ9","v":{"v":933661.8006501569,"d":"$933,662"}},{"$f":"SUM('Trial 7'!CO9:CZ9)","v":{"v":11100568.649477765,"d":"$11,100,569"}},{"$f":"'Trial 7'!DB9","v":{"v":967169.3666226246,"d":"$967,169"}},{"$f":"'Trial 7'!DC9","v":{"v":952092.0162086908,"d":"$952,092"}},{"$f":"'Trial 7'!DD9","v":{"v":922404.5921233883,"d":"$922,405"}},{"$f":"'Trial 7'!DE9","v":{"v":931640.7088004736,"d":"$931,641"}},{"$f":"'Trial 7'!DF9","v":{"v":926288.5641279579,"d":"$926,289"}},{"$f":"'Trial 7'!DG9","v":{"v":875507.2564964251,"d":"$875,507"}},{"$f":"'Trial 7'!DH9","v":{"v":870890.2345291434,"d":"$870,890"}},{"$f":"'Trial 7'!DI9","v":{"v":918394.2945269243,"d":"$918,394"}},{"$f":"'Trial 7'!DJ9","v":{"v":912349.625517709,"d":"$912,350"}},{"$f":"'Trial 7'!DK9","v":{"v":869069.7536898683,"d":"$869,070"}},{"$f":"'Trial 7'!DL9","v":{"v":918449.7524122923,"d":"$918,450"}},{"$f":"'Trial 7'!DM9","v":{"v":920191.161191935,"d":"$920,191"}},{"$f":"SUM('Trial 7'!DB9:DM9)","v":{"v":10984447.326247433,"d":"$10,984,447"}},{"$f":"'Trial 7'!DO9","v":{"v":887102.4673241714,"d":"$887,102"}},{"$f":"'Trial 7'!DP9","v":{"v":910140.1561836862,"d":"$910,140"}},{"$f":"'Trial 7'!DQ9","v":{"v":907885.5194571019,"d":"$907,886"}},{"$f":"'Trial 7'!DR9","v":{"v":875694.8392895801,"d":"$875,695"}},{"$f":"'Trial 7'!DS9","v":{"v":922181.2502974503,"d":"$922,181"}},{"$f":"'Trial 7'!DT9","v":{"v":877777.8977496626,"d":"$877,778"}},{"$f":"'Trial 7'!DU9","v":{"v":892815.0472733015,"d":"$892,815"}},{"$f":"'Trial 7'!DV9","v":{"v":933827.1121735538,"d":"$933,827"}},{"$f":"'Trial 7'!DW9","v":{"v":971128.9550035208,"d":"$971,129"}},{"$f":"'Trial 7'!DX9","v":{"v":863366.1436637486,"d":"$863,366"}},{"$f":"'Trial 7'!DY9","v":{"v":888519.425228215,"d":"$888,519"}},{"$f":"'Trial 7'!DZ9","v":{"v":873274.4925419708,"d":"$873,274"}},{"$f":"SUM('Trial 7'!DO9:DZ9)","v":{"v":10803713.306185963,"d":"$10,803,713"}},{"$f":"'Trial 7'!EB9","v":{"v":945010.6091337701,"d":"$945,011"}},{"$f":"'Trial 7'!EC9","v":{"v":875734.5673007456,"d":"$875,735"}},{"$f":"'Trial 7'!ED9","v":{"v":905402.6616750971,"d":"$905,403"}},{"$f":"'Trial 7'!EE9","v":{"v":918081.3300943563,"d":"$918,081"}},{"$f":"'Trial 7'!EF9","v":{"v":876218.1040911912,"d":"$876,218"}},{"$f":"'Trial 7'!EG9","v":{"v":847461.0028910601,"d":"$847,461"}},{"$f":"'Trial 7'!EH9","v":{"v":855011.6937834861,"d":"$855,012"}},{"$f":"'Trial 7'!EI9","v":{"v":921241.2583190892,"d":"$921,241"}},{"$f":"'Trial 7'!EJ9","v":{"v":926215.3152568331,"d":"$926,215"}},{"$f":"'Trial 7'!EK9","v":{"v":902170.8111866151,"d":"$902,171"}},{"$f":"'Trial 7'!EL9","v":{"v":937246.3145392517,"d":"$937,246"}},{"$f":"'Trial 7'!EM9","v":{"v":932087.8104107607,"d":"$932,088"}},{"$f":"SUM('Trial 7'!EB9:EM9)","v":{"v":10841881.478682255,"d":"$10,841,881"}}]
[{"$f":"Labels!B103","v":"Trial 08"},{"$f":"'Trial 8'!B9","v":{"v":915562.5586854157,"d":"$915,563"}},{"$f":"'Trial 8'!C9","v":{"v":950558.61765309,"d":"$950,559"}},{"$f":"'Trial 8'!D9","v":{"v":961886.9664471752,"d":"$961,887"}},{"$f":"'Trial 8'!E9","v":{"v":972313.2918274034,"d":"$972,313"}},{"$f":"'Trial 8'!F9","v":{"v":1019382.8359965795,"d":"$1,019,383"}},{"$f":"'Trial 8'!G9","v":{"v":977816.1903937353,"d":"$977,816"}},{"$f":"'Trial 8'!H9","v":{"v":957873.4348234457,"d":"$957,873"}},{"$f":"'Trial 8'!I9","v":{"v":981861.7869959136,"d":"$981,862"}},{"$f":"'Trial 8'!J9","v":{"v":924315.4384833248,"d":"$924,315"}},{"$f":"'Trial 8'!K9","v":{"v":981822.1092904679,"d":"$981,822"}},{"$f":"'Trial 8'!L9","v":{"v":919718.1050798085,"d":"$919,718"}},{"$f":"'Trial 8'!M9","v":{"v":963552.893704421,"d":"$963,553"}},{"$f":"SUM('Trial 8'!B9:M9)","v":{"v":11526664.229380783,"d":"$11,526,664"}},{"$f":"'Trial 8'!O9","v":{"v":1005825.3776617213,"d":"$1,005,825"}},{"$f":"'Trial 8'!P9","v":{"v":929890.1820889483,"d":"$929,890"}},{"$f":"'Trial 8'!Q9","v":{"v":905320.9909255588,"d":"$905,321"}},{"$f":"'Trial 8'!R9","v":{"v":968395.0120116676,"d":"$968,395"}},{"$f":"'Trial 8'!S9","v":{"v":956719.2020816483,"d":"$956,719"}},{"$f":"'Trial 8'!T9","v":{"v":1003971.6235284774,"d":"$1,003,972"}},{"$f":"'Trial 8'!U9","v":{"v":949969.7481243459,"d":"$949,970"}},{"$f":"'Trial 8'!V9","v":{"v":957599.081808231,"d":"$957,599"}},{"$f":"'Trial 8'!W9","v":{"v":997639.5744509137,"d":"$997,640"}},{"$f":"'Trial 8'!X9","v":{"v":926003.170108538,"d":"$926,003"}},{"$f":"'Trial 8'!Y9","v":{"v":911729.4649511772,"d":"$911,729"}},{"$f":"'Trial 8'!Z9","v":{"v":929522.7795653522,"d":"$929,523"}},{"$f":"SUM('Trial 8'!O9:Z9)","v":{"v":11442586.207306582,"d":"$11,442,586"}},{"$f":"'Trial 8'!AB9","v":{"v":950988.9287534105,"d":"$950,989"}},{"$f":"'Trial 8'!AC9","v":{"v":953423.8242478557,"d":"$953,424"}},{"$f":"'Trial 8'!AD9","v":{"v":930258.6873137534,"d":"$930,259"}},{"$f":"'Trial 8'!AE9","v":{"v":942177.0609666557,"d":"$942,177"}},{"$f":"'Trial 8'!AF9","v":{"v":918403.6394832345,"d":"$918,404"}},{"$f":"'Trial 8'!AG9","v":{"v":926627.1972220666,"d":"$926,627"}},{"$f":"'Trial 8'!AH9","v":{"v":966508.1286656308,"d":"$966,508"}},{"$f":"'Trial 8'!AI9","v":{"v":961308.0373649377,"d":"$961,308"}},{"$f":"'Trial 8'!AJ9","v":{"v":929754.8920507827,"d":"$929,755"}},{"$f":"'Trial 8'!AK9","v":{"v":946931.8621635562,"d":"$946,932"}},{"$f":"'Trial 8'!AL9","v":{"v":984588.6182822193,"d":"$984,589"}},{"$f":"'Trial 8'!AM9","v":{"v":980755.0859797457,"d":"$980,755"}},{"$f":"SUM('Trial 8'!AB9:AM9)","v":{"v":11391725.962493848,"d":"$11,391,726"}},{"$f":"'Trial 8'!AO9","v":{"v":976093.5109280807,"d":"$976,094"}},{"$f":"'Trial 8'!AP9","v":{"v":947843.9066465284,"d":"$947,844"}},{"$f":"'Trial 8'!AQ9","v":{"v":945814.8232342938,"d":"$945,815"}},{"$f":"'Trial 8'!AR9","v":{"v":909616.3241410118,"d":"$909,616"}},{"$f":"'Trial 8'!AS9","v":{"v":909816.4472207079,"d":"$909,816"}},{"$f":"'Trial 8'!AT9","v":{"v":931344.060385891,"d":"$931,344"}},{"$f":"'Trial 8'!AU9","v":{"v":958882.9007210647,"d":"$958,883"}},{"$f":"'Trial 8'!AV9","v":{"v":944208.5607075235,"d":"$944,209"}},{"$f":"'Trial 8'!AW9","v":{"v":947256.6748458266,"d":"$947,257"}},{"$f":"'Trial 8'!AX9","v":{"v":942633.0441600725,"d":"$942,633"}},{"$f":"'Trial 8'!AY9","v":{"v":954643.0668757652,"d":"$954,643"}},{"$f":"'Trial 8'!AZ9","v":{"v":948012.9990700491,"d":"$948,013"}},{"$f":"SUM('Trial 8'!AO9:AZ9)","v":{"v":11316166.318936814,"d":"$11,316,166"}},{"$f":"'Trial 8'!BB9","v":{"v":924558.7769648223,"d":"$924,559"}},{"$f":"'Trial 8'!BC9","v":{"v":969319.6360925959,"d":"$969,320"}},{"$f":"'Trial 8'!BD9","v":{"v":978648.9147707595,"d":"$978,649"}},{"$f":"'Trial 8'!BE9","v":{"v":951235.8660369938,"d":"$951,236"}},{"$f":"'Trial 8'!BF9","v":{"v":948911.8112317111,"d":"$948,912"}},{"$f":"'Trial 8'!BG9","v":{"v":971762.6666531123,"d":"$971,763"}},{"$f":"'Trial 8'!BH9","v":{"v":913102.844870721,"d":"$913,103"}},{"$f":"'Trial 8'!BI9","v":{"v":935773.0702232876,"d":"$935,773"}},{"$f":"'Trial 8'!BJ9","v":{"v":955095.9954138589,"d":"$955,096"}},{"$f":"'Trial 8'!BK9","v":{"v":952167.027845685,"d":"$952,167"}},{"$f":"'Trial 8'!BL9","v":{"v":953343.0143376256,"d":"$953,343"}},{"$f":"'Trial 8'!BM9","v":{"v":927760.8239392207,"d":"$927,761"}},{"$f":"SUM('Trial 8'!BB9:BM9)","v":{"v":11381680.448380394,"d":"$11,381,680"}},{"$f":"'Trial 8'!BO9","v":{"v":956498.7352147438,"d":"$956,499"}},{"$f":"'Trial 8'!BP9","v":{"v":974874.8312848267,"d":"$974,875"}},{"$f":"'Trial 8'!BQ9","v":{"v":961836.282665502,"d":"$961,836"}},{"$f":"'Trial 8'!BR9","v":{"v":988541.6284762042,"d":"$988,542"}},{"$f":"'Trial 8'!BS9","v":{"v":951039.360378769,"d":"$951,039"}},{"$f":"'Trial 8'!BT9","v":{"v":934153.5267818966,"d":"$934,154"}},{"$f":"'Trial 8'!BU9","v":{"v":946983.2550736079,"d":"$946,983"}},{"$f":"'Trial 8'!BV9","v":{"v":974177.9538134125,"d":"$974,178"}},{"$f":"'Trial 8'!BW9","v":{"v":959031.1326145125,"d":"$959,031"}},{"$f":"'Trial 8'!BX9","v":{"v":957788.4813090012,"d":"$957,788"}},{"$f":"'Trial 8'!BY9","v":{"v":921610.4691276446,"d":"$921,610"}},{"$f":"'Trial 8'!BZ9","v":{"v":888135.6915706479,"d":"$888,136"}},{"$f":"SUM('Trial 8'!BO9:BZ9)","v":{"v":11414671.348310767,"d":"$11,414,671"}},{"$f":"'Trial 8'!CB9","v":{"v":915802.4052433291,"d":"$915,802"}},{"$f":"'Trial 8'!CC9","v":{"v":930916.8984104865,"d":"$930,917"}},{"$f":"'Trial 8'!CD9","v":{"v":895221.3101603,"d":"$895,221"}},{"$f":"'Trial 8'!CE9","v":{"v":936421.2440242054,"d":"$936,421"}},{"$f":"'Trial 8'!CF9","v":{"v":923360.5992579267,"d":"$923,361"}},{"$f":"'Trial 8'!CG9","v":{"v":984729.194549623,"d":"$984,729"}},{"$f":"'Trial 8'!CH9","v":{"v":930019.2149258364,"d":"$930,019"}},{"$f":"'Trial 8'!CI9","v":{"v":905445.0592904945,"d":"$905,445"}},{"$f":"'Trial 8'!CJ9","v":{"v":944884.6070570071,"d":"$944,885"}},{"$f":"'Trial 8'!CK9","v":{"v":954603.6827608639,"d":"$954,604"}},{"$f":"'Trial 8'!CL9","v":{"v":893345.2523060349,"d":"$893,345"}},{"$f":"'Trial 8'!CM9","v":{"v":965891.5948329954,"d":"$965,892"}},{"$f":"SUM('Trial 8'!CB9:CM9)","v":{"v":11180641.062819105,"d":"$11,180,641"}},{"$f":"'Trial 8'!CO9","v":{"v":967136.2250524762,"d":"$967,136"}},{"$f":"'Trial 8'!CP9","v":{"v":932735.574508615,"d":"$932,736"}},{"$f":"'Trial 8'!CQ9","v":{"v":945187.120767031,"d":"$945,187"}},{"$f":"'Trial 8'!CR9","v":{"v":941889.4114090194,"d":"$941,889"}},{"$f":"'Trial 8'!CS9","v":{"v":860535.8542379215,"d":"$860,536"}},{"$f":"'Trial 8'!CT9","v":{"v":918695.9880263024,"d":"$918,696"}},{"$f":"'Trial 8'!CU9","v":{"v":956639.5017825231,"d":"$956,640"}},{"$f":"'Trial 8'!CV9","v":{"v":921970.641772358,"d":"$921,971"}},{"$f":"'Trial 8'!CW9","v":{"v":864161.5425578287,"d":"$864,162"}},{"$f":"'Trial 8'!CX9","v":{"v":958759.660138336,"d":"$958,760"}},{"$f":"'Trial 8'!CY9","v":{"v":980310.1798478328,"d":"$980,310"}},{"$f":"'Trial 8'!CZ9","v":{"v":895321.8132715137,"d":"$895,322"}},{"$f":"SUM('Trial 8'!CO9:CZ9)","v":{"v":11143343.513371758,"d":"$11,143,344"}},{"$f":"'Trial 8'!DB9","v":{"v":978906.647203179,"d":"$978,907"}},{"$f":"'Trial 8'!DC9","v":{"v":899353.2168163684,"d":"$899,353"}},{"$f":"'Trial 8'!DD9","v":{"v":884641.1342766733,"d":"$884,641"}},{"$f":"'Trial 8'!DE9","v":{"v":908055.2362539815,"d":"$908,055"}},{"$f":"'Trial 8'!DF9","v":{"v":920781.1576150046,"d":"$920,781"}},{"$f":"'Trial 8'!DG9","v":{"v":898256.0568663205,"d":"$898,256"}},{"$f":"'Trial 8'!DH9","v":{"v":912300.3386321815,"d":"$912,300"}},{"$f":"'Trial 8'!DI9","v":{"v":879754.9157679608,"d":"$879,755"}},{"$f":"'Trial 8'!DJ9","v":{"v":970576.3048835535,"d":"$970,576"}},{"$f":"'Trial 8'!DK9","v":{"v":901525.8770883839,"d":"$901,526"}},{"$f":"'Trial 8'!DL9","v":{"v":963401.0960295126,"d":"$963,401"}},{"$f":"'Trial 8'!DM9","v":{"v":906599.3152838154,"d":"$906,599"}},{"$f":"SUM('Trial 8'!DB9:DM9)","v":{"v":11024151.296716936,"d":"$11,024,151"}},{"$f":"'Trial 8'!DO9","v":{"v":868205.2507772925,"d":"$868,205"}},{"$f":"'Trial 8'!DP9","v":{"v":879164.6742292563,"d":"$879,165"}},{"$f":"'Trial 8'!DQ9","v":{"v":965344.0572935656,"d":"$965,344"}},{"$f":"'Trial 8'!DR9","v":{"v":955376.4206844631,"d":"$955,376"}},{"$f":"'Trial 8'!DS9","v":{"v":899272.6971101975,"d":"$899,273"}},{"$f":"'Trial 8'!DT9","v":{"v":954625.7017919256,"d":"$954,626"}},{"$f":"'Trial 8'!DU9","v":{"v":949196.4180503488,"d":"$949,196"}},{"$f":"'Trial 8'!DV9","v":{"v":917210.5091951867,"d":"$917,211"}},{"$f":"'Trial 8'!DW9","v":{"v":930568.8501836449,"d":"$930,569"}},{"$f":"'Trial 8'!DX9","v":{"v":868080.477801892,"d":"$868,080"}},{"$f":"'Trial 8'!DY9","v":{"v":923159.6736914449,"d":"$923,160"}},{"$f":"'Trial 8'!DZ9","v":{"v":910624.7418848239,"d":"$910,625"}},{"$f":"SUM('Trial 8'!DO9:DZ9)","v":{"v":11020829.47269404,"d":"$11,020,829"}},{"$f":"'Trial 8'!EB9","v":{"v":862134.7153947892,"d":"$862,135"}},{"$f":"'Trial 8'!EC9","v":{"v":864992.9970271043,"d":"$864,993"}},{"$f":"'Trial 8'!ED9","v":{"v":926982.4189902658,"d":"$926,982"}},{"$f":"'Trial 8'!EE9","v":{"v":890327.5261541941,"d":"$890,328"}},{"$f":"'Trial 8'!EF9","v":{"v":884097.1657297518,"d":"$884,097"}},{"$f":"'Trial 8'!EG9","v":{"v":910308.6023136881,"d":"$910,309"}},{"$f":"'Trial 8'!EH9","v":{"v":946522.4274399632,"d":"$946,522"}},{"$f":"'Trial 8'!EI9","v":{"v":879879.9058139385,"d":"$879,880"}},{"$f":"'Trial 8'!EJ9","v":{"v":910030.2990328632,"d":"$910,030"}},{"$f":"'Trial 8'!EK9","v":{"v":858162.0948542017,"d":"$858,162"}},{"$f":"'Trial 8'!EL9","v":{"v":879656.3001928964,"d":"$879,656"}},{"$f":"'Trial 8'!EM9","v":{"v":950793.5258064192,"d":"$950,794"}},{"$f":"SUM('Trial 8'!EB9:EM9)","v":{"v":10763887.978750076,"d":"$10,763,888"}}]
[{"$f":"Labels!C95","v":"Total"},{"$f":"SUM('Trial 1'!B9,'Trial 2'!B9,'Trial 3'!B9,'Trial 4'!B9,'Trial 5'!B9,'Trial 6'!B9,'Trial 7'!B9,'Trial 8'!B9)","v":{"v":7493473.436728046,"d":"$7,493,473"}},{"$f":"SUM('Trial 1'!C9,'Trial 2'!C9,'Trial 3'!C9,'Trial 4'!C9,'Trial 5'!C9,'Trial 6'!C9,'Trial 7'!C9,'Trial 8'!C9)","v":{"v":7608524.6153414175,"d":"$7,608,525"}},{"$f":"SUM('Trial 1'!D9,'Trial 2'!D9,'Trial 3'!D9,'Trial 4'!D9,'Trial 5'!D9,'Trial 6'!D9,'Trial 7'!D9,'Trial 8'!D9)","v":{"v":7759006.659080589,"d":"$7,759,007"}},{"$f":"SUM('Trial 1'!E9,'Trial 2'!E9,'Trial 3'!E9,'Trial 4'!E9,'Trial 5'!E9,'Trial 6'!E9,'Trial 7'!E9,'Trial 8'!E9)","v":{"v":7818481.810620075,"d":"$7,818,482"}},{"$f":"SUM('Trial 1'!F9,'Trial 2'!F9,'Trial 3'!F9,'Trial 4'!F9,'Trial 5'!F9,'Trial 6'!F9,'Trial 7'!F9,'Trial 8'!F9)","v":{"v":7896589.696888706,"d":"$7,896,590"}},{"$f":"SUM('Trial 1'!G9,'Trial 2'!G9,'Trial 3'!G9,'Trial 4'!G9,'Trial 5'!G9,'Trial 6'!G9,'Trial 7'!G9,'Trial 8'!G9)","v":{"v":7785588.197799954,"d":"$7,785,588"}},{"$f":"SUM('Trial 1'!H9,'Trial 2'!H9,'Trial 3'!H9,'Trial 4'!H9,'Trial 5'!H9,'Trial 6'!H9,'Trial 7'!H9,'Trial 8'!H9)","v":{"v":7636240.183532955,"d":"$7,636,240"}},{"$f":"SUM('Trial 1'!I9,'Trial 2'!I9,'Trial 3'!I9,'Trial 4'!I9,'Trial 5'!I9,'Trial 6'!I9,'Trial 7'!I9,'Trial 8'!I9)","v":{"v":7701816.202796131,"d":"$7,701,816"}},{"$f":"SUM('Trial 1'!J9,'Trial 2'!J9,'Trial 3'!J9,'Trial 4'!J9,'Trial 5'!J9,'Trial 6'!J9,'Trial 7'!J9,'Trial 8'!J9)","v":{"v":7710122.407135318,"d":"$7,710,122"}},{"$f":"SUM('Trial 1'!K9,'Trial 2'!K9,'Trial 3'!K9,'Trial 4'!K9,'Trial 5'!K9,'Trial 6'!K9,'Trial 7'!K9,'Trial 8'!K9)","v":{"v":7707483.331922998,"d":"$7,707,483"}},{"$f":"SUM('Trial 1'!L9,'Trial 2'!L9,'Trial 3'!L9,'Trial 4'!L9,'Trial 5'!L9,'Trial 6'!L9,'Trial 7'!L9,'Trial 8'!L9)","v":{"v":7687344.393640866,"d":"$7,687,344"}},{"$f":"SUM('Trial 1'!M9,'Trial 2'!M9,'Trial 3'!M9,'Trial 4'!M9,'Trial 5'!M9,'Trial 6'!M9,'Trial 7'!M9,'Trial 8'!M9)","v":{"v":7635438.044520955,"d":"$7,635,438"}},{"$f":"SUM(B25:M25)","v":{"v":92440108.980008,"d":"$92,440,109"}},{"$f":"SUM('Trial 1'!O9,'Trial 2'!O9,'Trial 3'!O9,'Trial 4'!O9,'Trial 5'!O9,'Trial 6'!O9,'Trial 7'!O9,'Trial 8'!O9)","v":{"v":7724110.709440615,"d":"$7,724,111"}},{"$f":"SUM('Trial 1'!P9,'Trial 2'!P9,'Trial 3'!P9,'Trial 4'!P9,'Trial 5'!P9,'Trial 6'!P9,'Trial 7'!P9,'Trial 8'!P9)","v":{"v":7694124.1810113955,"d":"$7,694,124"}},{"$f":"SUM('Trial 1'!Q9,'Trial 2'!Q9,'Trial 3'!Q9,'Trial 4'!Q9,'Trial 5'!Q9,'Trial 6'!Q9,'Trial 7'!Q9,'Trial 8'!Q9)","v":{"v":7726473.696733901,"d":"$7,726,474"}},{"$f":"SUM('Trial 1'!R9,'Trial 2'!R9,'Trial 3'!R9,'Trial 4'!R9,'Trial 5'!R9,'Trial 6'!R9,'Trial 7'!R9,'Trial 8'!R9)","v":{"v":7759746.561895079,"d":"$7,759,747"}},{"$f":"SUM('Trial 1'!S9,'Trial 2'!S9,'Trial 3'!S9,'Trial 4'!S9,'Trial 5'!S9,'Trial 6'!S9,'Trial 7'!S9,'Trial 8'!S9)","v":{"v":7445952.513825714,"d":"$7,445,953"}},{"$f":"SUM('Trial 1'!T9,'Trial 2'!T9,'Trial 3'!T9,'Trial 4'!T9,'Trial 5'!T9,'Trial 6'!T9,'Trial 7'!T9,'Trial 8'!T9)","v":{"v":7706272.741730538,"d":"$7,706,273"}},{"$f":"SUM('Trial 1'!U9,'Trial 2'!U9,'Trial 3'!U9,'Trial 4'!U9,'Trial 5'!U9,'Trial 6'!U9,'Trial 7'!U9,'Trial 8'!U9)","v":{"v":7517380.14351721,"d":"$7,517,380"}},{"$f":"SUM('Trial 1'!V9,'Trial 2'!V9,'Trial 3'!V9,'Trial 4'!V9,'Trial 5'!V9,'Trial 6'!V9,'Trial 7'!V9,'Trial 8'!V9)","v":{"v":7535856.55098676,"d":"$7,535,857"}},{"$f":"SUM('Trial 1'!W9,'Trial 2'!W9,'Trial 3'!W9,'Trial 4'!W9,'Trial 5'!W9,'Trial 6'!W9,'Trial 7'!W9,'Trial 8'!W9)","v":{"v":7750440.94689629,"d":"$7,750,441"}},{"$f":"SUM('Trial 1'!X9,'Trial 2'!X9,'Trial 3'!X9,'Trial 4'!X9,'Trial 5'!X9,'Trial 6'!X9,'Trial 7'!X9,'Trial 8'!X9)","v":{"v":7572498.658942619,"d":"$7,572,499"}},{"$f":"SUM('Trial 1'!Y9,'Trial 2'!Y9,'Trial 3'!Y9,'Trial 4'!Y9,'Trial 5'!Y9,'Trial 6'!Y9,'Trial 7'!Y9,'Trial 8'!Y9)","v":{"v":7584486.081413078,"d":"$7,584,486"}},{"$f":"SUM('Trial 1'!Z9,'Trial 2'!Z9,'Trial 3'!Z9,'Trial 4'!Z9,'Trial 5'!Z9,'Trial 6'!Z9,'Trial 7'!Z9,'Trial 8'!Z9)","v":{"v":7405352.309575791,"d":"$7,405,352"}},{"$f":"SUM(O25:Z25)","v":{"v":91422695.095969,"d":"$91,422,695"}},{"$f":"SUM('Trial 1'!AB9,'Trial 2'!AB9,'Trial 3'!AB9,'Trial 4'!AB9,'Trial 5'!AB9,'Trial 6'!AB9,'Trial 7'!AB9,'Trial 8'!AB9)","v":{"v":7604227.479929912,"d":"$7,604,227"}},{"$f":"SUM('Trial 1'!AC9,'Trial 2'!AC9,'Trial 3'!AC9,'Trial 4'!AC9,'Trial 5'!AC9,'Trial 6'!AC9,'Trial 7'!AC9,'Trial 8'!AC9)","v":{"v":7678876.199041967,"d":"$7,678,876"}},{"$f":"SUM('Trial 1'!AD9,'Trial 2'!AD9,'Trial 3'!AD9,'Trial 4'!AD9,'Trial 5'!AD9,'Trial 6'!AD9,'Trial 7'!AD9,'Trial 8'!AD9)","v":{"v":7618172.549734524,"d":"$7,618,173"}},{"$f":"SUM('Trial 1'!AE9,'Trial 2'!AE9,'Trial 3'!AE9,'Trial 4'!AE9,'Trial 5'!AE9,'Trial 6'!AE9,'Trial 7'!AE9,'Trial 8'!AE9)","v":{"v":7589069.216533079,"d":"$7,589,069"}},{"$f":"SUM('Trial 1'!AF9,'Trial 2'!AF9,'Trial 3'!AF9,'Trial 4'!AF9,'Trial 5'!AF9,'Trial 6'!AF9,'Trial 7'!AF9,'Trial 8'!AF9)","v":{"v":7455682.384238729,"d":"$7,455,682"}},{"$f":"SUM('Trial 1'!AG9,'Trial 2'!AG9,'Trial 3'!AG9,'Trial 4'!AG9,'Trial 5'!AG9,'Trial 6'!AG9,'Trial 7'!AG9,'Trial 8'!AG9)","v":{"v":7632684.556219015,"d":"$7,632,685"}},{"$f":"SUM('Trial 1'!AH9,'Trial 2'!AH9,'Trial 3'!AH9,'Trial 4'!AH9,'Trial 5'!AH9,'Trial 6'!AH9,'Trial 7'!AH9,'Trial 8'!AH9)","v":{"v":7703544.358219525,"d":"$7,703,544"}},{"$f":"SUM('Trial 1'!AI9,'Trial 2'!AI9,'Trial 3'!AI9,'Trial 4'!AI9,'Trial 5'!AI9,'Trial 6'!AI9,'Trial 7'!AI9,'Trial 8'!AI9)","v":{"v":7434924.289346226,"d":"$7,434,924"}},{"$f":"SUM('Trial 1'!AJ9,'Trial 2'!AJ9,'Trial 3'!AJ9,'Trial 4'!AJ9,'Trial 5'!AJ9,'Trial 6'!AJ9,'Trial 7'!AJ9,'Trial 8'!AJ9)","v":{"v":7591396.748021839,"d":"$7,591,397"}},{"$f":"SUM('Trial 1'!AK9,'Trial 2'!AK9,'Trial 3'!AK9,'Trial 4'!AK9,'Trial 5'!AK9,'Trial 6'!AK9,'Trial 7'!AK9,'Trial 8'!AK9)","v":{"v":7624021.785673989,"d":"$7,624,022"}},{"$f":"SUM('Trial 1'!AL9,'Trial 2'!AL9,'Trial 3'!AL9,'Trial 4'!AL9,'Trial 5'!AL9,'Trial 6'!AL9,'Trial 7'!AL9,'Trial 8'!AL9)","v":{"v":7649657.184235466,"d":"$7,649,657"}},{"$f":"SUM('Trial 1'!AM9,'Trial 2'!AM9,'Trial 3'!AM9,'Trial 4'!AM9,'Trial 5'!AM9,'Trial 6'!AM9,'Trial 7'!AM9,'Trial 8'!AM9)","v":{"v":7477756.767441368,"d":"$7,477,757"}},{"$f":"SUM(AB25:AM25)","v":{"v":91060013.51863565,"d":"$91,060,014"}},{"$f":"SUM('Trial 1'!AO9,'Trial 2'!AO9,'Trial 3'!AO9,'Trial 4'!AO9,'Trial 5'!AO9,'Trial 6'!AO9,'Trial 7'!AO9,'Trial 8'!AO9)","v":{"v":7564522.220004847,"d":"$7,564,522"}},{"$f":"SUM('Trial 1'!AP9,'Trial 2'!AP9,'Trial 3'!AP9,'Trial 4'!AP9,'Trial 5'!AP9,'Trial 6'!AP9,'Trial 7'!AP9,'Trial 8'!AP9)","v":{"v":7662542.446392059,"d":"$7,662,542"}},{"$f":"SUM('Trial 1'!AQ9,'Trial 2'!AQ9,'Trial 3'!AQ9,'Trial 4'!AQ9,'Trial 5'!AQ9,'Trial 6'!AQ9,'Trial 7'!AQ9,'Trial 8'!AQ9)","v":{"v":7472815.533315645,"d":"$7,472,816"}},{"$f":"SUM('Trial 1'!AR9,'Trial 2'!AR9,'Trial 3'!AR9,'Trial 4'!AR9,'Trial 5'!AR9,'Trial 6'!AR9,'Trial 7'!AR9,'Trial 8'!AR9)","v":{"v":7533397.098638219,"d":"$7,533,397"}},{"$f":"SUM('Trial 1'!AS9,'Trial 2'!AS9,'Trial 3'!AS9,'Trial 4'!AS9,'Trial 5'!AS9,'Trial 6'!AS9,'Trial 7'!AS9,'Trial 8'!AS9)","v":{"v":7636074.677218754,"d":"$7,636,075"}},{"$f":"SUM('Trial 1'!AT9,'Trial 2'!AT9,'Trial 3'!AT9,'Trial 4'!AT9,'Trial 5'!AT9,'Trial 6'!AT9,'Trial 7'!AT9,'Trial 8'!AT9)","v":{"v":7527808.809617698,"d":"$7,527,809"}},{"$f":"SUM('Trial 1'!AU9,'Trial 2'!AU9,'Trial 3'!AU9,'Trial 4'!AU9,'Trial 5'!AU9,'Trial 6'!AU9,'Trial 7'!AU9,'Trial 8'!AU9)","v":{"v":7494061.157499838,"d":"$7,494,061"}},{"$f":"SUM('Trial 1'!AV9,'Trial 2'!AV9,'Trial 3'!AV9,'Trial 4'!AV9,'Trial 5'!AV9,'Trial 6'!AV9,'Trial 7'!AV9,'Trial 8'!AV9)","v":{"v":7540284.983250972,"d":"$7,540,285"}},{"$f":"SUM('Trial 1'!AW9,'Trial 2'!AW9,'Trial 3'!AW9,'Trial 4'!AW9,'Trial 5'!AW9,'Trial 6'!AW9,'Trial 7'!AW9,'Trial 8'!AW9)","v":{"v":7420968.587844891,"d":"$7,420,969"}},{"$f":"SUM('Trial 1'!AX9,'Trial 2'!AX9,'Trial 3'!AX9,'Trial 4'!AX9,'Trial 5'!AX9,'Trial 6'!AX9,'Trial 7'!AX9,'Trial 8'!AX9)","v":{"v":7485368.637239702,"d":"$7,485,369"}},{"$f":"SUM('Trial 1'!AY9,'Trial 2'!AY9,'Trial 3'!AY9,'Trial 4'!AY9,'Trial 5'!AY9,'Trial 6'!AY9,'Trial 7'!AY9,'Trial 8'!AY9)","v":{"v":7531142.371072843,"d":"$7,531,142"}},{"$f":"SUM('Trial 1'!AZ9,'Trial 2'!AZ9,'Trial 3'!AZ9,'Trial 4'!AZ9,'Trial 5'!AZ9,'Trial 6'!AZ9,'Trial 7'!AZ9,'Trial 8'!AZ9)","v":{"v":7380666.7246272955,"d":"$7,380,667"}},{"$f":"SUM(AO25:AZ25)","v":{"v":90249653.24672276,"d":"$90,249,653"}},{"$f":"SUM('Trial 1'!BB9,'Trial 2'!BB9,'Trial 3'!BB9,'Trial 4'!BB9,'Trial 5'!BB9,'Trial 6'!BB9,'Trial 7'!BB9,'Trial 8'!BB9)","v":{"v":7395129.133312508,"d":"$7,395,129"}},{"$f":"SUM('Trial 1'!BC9,'Trial 2'!BC9,'Trial 3'!BC9,'Trial 4'!BC9,'Trial 5'!BC9,'Trial 6'!BC9,'Trial 7'!BC9,'Trial 8'!BC9)","v":{"v":7470218.134522834,"d":"$7,470,218"}},{"$f":"SUM('Trial 1'!BD9,'Trial 2'!BD9,'Trial 3'!BD9,'Trial 4'!BD9,'Trial 5'!BD9,'Trial 6'!BD9,'Trial 7'!BD9,'Trial 8'!BD9)","v":{"v":7500575.450956389,"d":"$7,500,575"}},{"$f":"SUM('Trial 1'!BE9,'Trial 2'!BE9,'Trial 3'!BE9,'Trial 4'!BE9,'Trial 5'!BE9,'Trial 6'!BE9,'Trial 7'!BE9,'Trial 8'!BE9)","v":{"v":7464938.279985874,"d":"$7,464,938"}},{"$f":"SUM('Trial 1'!BF9,'Trial 2'!BF9,'Trial 3'!BF9,'Trial 4'!BF9,'Trial 5'!BF9,'Trial 6'!BF9,'Trial 7'!BF9,'Trial 8'!BF9)","v":{"v":7529868.602318498,"d":"$7,529,869"}},{"$f":"SUM('Trial 1'!BG9,'Trial 2'!BG9,'Trial 3'!BG9,'Trial 4'!BG9,'Trial 5'!BG9,'Trial 6'!BG9,'Trial 7'!BG9,'Trial 8'!BG9)","v":{"v":7526210.83818925,"d":"$7,526,211"}},{"$f":"SUM('Trial 1'!BH9,'Trial 2'!BH9,'Trial 3'!BH9,'Trial 4'!BH9,'Trial 5'!BH9,'Trial 6'!BH9,'Trial 7'!BH9,'Trial 8'!BH9)","v":{"v":7362885.2571924,"d":"$7,362,885"}},{"$f":"SUM('Trial 1'!BI9,'Trial 2'!BI9,'Trial 3'!BI9,'Trial 4'!BI9,'Trial 5'!BI9,'Trial 6'!BI9,'Trial 7'!BI9,'Trial 8'!BI9)","v":{"v":7424784.361449546,"d":"$7,424,784"}},{"$f":"SUM('Trial 1'!BJ9,'Trial 2'!BJ9,'Trial 3'!BJ9,'Trial 4'!BJ9,'Trial 5'!BJ9,'Trial 6'!BJ9,'Trial 7'!BJ9,'Trial 8'!BJ9)","v":{"v":7531785.883605393,"d":"$7,531,786"}},{"$f":"SUM('Trial 1'!BK9,'Trial 2'!BK9,'Trial 3'!BK9,'Trial 4'!BK9,'Trial 5'!BK9,'Trial 6'!BK9,'Trial 7'!BK9,'Trial 8'!BK9)","v":{"v":7439069.416995756,"d":"$7,439,069"}},{"$f":"SUM('Trial 1'!BL9,'Trial 2'!BL9,'Trial 3'!BL9,'Trial 4'!BL9,'Trial 5'!BL9,'Trial 6'!BL9,'Trial 7'!BL9,'Trial 8'!BL9)","v":{"v":7527219.90748783,"d":"$7,527,220"}},{"$f":"SUM('Trial 1'!BM9,'Trial 2'!BM9,'Trial 3'!BM9,'Trial 4'!BM9,'Trial 5'!BM9,'Trial 6'!BM9,'Trial 7'!BM9,'Trial 8'!BM9)","v":{"v":7446801.612209202,"d":"$7,446,802"}},{"$f":"SUM(BB25:BM25)","v":{"v":89619486.87822549,"d":"$89,619,487"}},{"$f":"SUM('Trial 1'!BO9,'Trial 2'!BO9,'Trial 3'!BO9,'Trial 4'!BO9,'Trial 5'!BO9,'Trial 6'!BO9,'Trial 7'!BO9,'Trial 8'!BO9)","v":{"v":7434568.061076626,"d":"$7,434,568"}},{"$f":"SUM('Trial 1'!BP9,'Trial 2'!BP9,'Trial 3'!BP9,'Trial 4'!BP9,'Trial 5'!BP9,'Trial 6'!BP9,'Trial 7'!BP9,'Trial 8'!BP9)","v":{"v":7481874.329371314,"d":"$7,481,874"}},{"$f":"SUM('Trial 1'!BQ9,'Trial 2'!BQ9,'Trial 3'!BQ9,'Trial 4'!BQ9,'Trial 5'!BQ9,'Trial 6'!BQ9,'Trial 7'!BQ9,'Trial 8'!BQ9)","v":{"v":7562925.827928621,"d":"$7,562,926"}},{"$f":"SUM('Trial 1'!BR9,'Trial 2'!BR9,'Trial 3'!BR9,'Trial 4'!BR9,'Trial 5'!BR9,'Trial 6'!BR9,'Trial 7'!BR9,'Trial 8'!BR9)","v":{"v":7532312.326998766,"d":"$7,532,312"}},{"$f":"SUM('Trial 1'!BS9,'Trial 2'!BS9,'Trial 3'!BS9,'Trial 4'!BS9,'Trial 5'!BS9,'Trial 6'!BS9,'Trial 7'!BS9,'Trial 8'!BS9)","v":{"v":7393746.860024019,"d":"$7,393,747"}},{"$f":"SUM('Trial 1'!BT9,'Trial 2'!BT9,'Trial 3'!BT9,'Trial 4'!BT9,'Trial 5'!BT9,'Trial 6'!BT9,'Trial 7'!BT9,'Trial 8'!BT9)","v":{"v":7594590.163048796,"d":"$7,594,590"}},{"$f":"SUM('Trial 1'!BU9,'Trial 2'!BU9,'Trial 3'!BU9,'Trial 4'!BU9,'Trial 5'!BU9,'Trial 6'!BU9,'Trial 7'!BU9,'Trial 8'!BU9)","v":{"v":7374820.63265388,"d":"$7,374,821"}},{"$f":"SUM('Trial 1'!BV9,'Trial 2'!BV9,'Trial 3'!BV9,'Trial 4'!BV9,'Trial 5'!BV9,'Trial 6'!BV9,'Trial 7'!BV9,'Trial 8'!BV9)","v":{"v":7423153.833593524,"d":"$7,423,154"}},{"$f":"SUM('Trial 1'!BW9,'Trial 2'!BW9,'Trial 3'!BW9,'Trial 4'!BW9,'Trial 5'!BW9,'Trial 6'!BW9,'Trial 7'!BW9,'Trial 8'!BW9)","v":{"v":7553390.0836419575,"d":"$7,553,390"}},{"$f":"SUM('Trial 1'!BX9,'Trial 2'!BX9,'Trial 3'!BX9,'Trial 4'!BX9,'Trial 5'!BX9,'Trial 6'!BX9,'Trial 7'!BX9,'Trial 8'!BX9)","v":{"v":7356749.406894201,"d":"$7,356,749"}},{"$f":"SUM('Trial 1'!BY9,'Trial 2'!BY9,'Trial 3'!BY9,'Trial 4'!BY9,'Trial 5'!BY9,'Trial 6'!BY9,'Trial 7'!BY9,'Trial 8'!BY9)","v":{"v":7525794.088044366,"d":"$7,525,794"}},{"$f":"SUM('Trial 1'!BZ9,'Trial 2'!BZ9,'Trial 3'!BZ9,'Trial 4'!BZ9,'Trial 5'!BZ9,'Trial 6'!BZ9,'Trial 7'!BZ9,'Trial 8'!BZ9)","v":{"v":7436451.151079065,"d":"$7,436,451"}},{"$f":"SUM(BO25:BZ25)","v":{"v":89670376.76435512,"d":"$89,670,377"}},{"$f":"SUM('Trial 1'!CB9,'Trial 2'!CB9,'Trial 3'!CB9,'Trial 4'!CB9,'Trial 5'!CB9,'Trial 6'!CB9,'Trial 7'!CB9,'Trial 8'!CB9)","v":{"v":7407211.4087211825,"d":"$7,407,211"}},{"$f":"SUM('Trial 1'!CC9,'Trial 2'!CC9,'Trial 3'!CC9,'Trial 4'!CC9,'Trial 5'!CC9,'Trial 6'!CC9,'Trial 7'!CC9,'Trial 8'!CC9)","v":{"v":7386025.335776303,"d":"$7,386,025"}},{"$f":"SUM('Trial 1'!CD9,'Trial 2'!CD9,'Trial 3'!CD9,'Trial 4'!CD9,'Trial 5'!CD9,'Trial 6'!CD9,'Trial 7'!CD9,'Trial 8'!CD9)","v":{"v":7475528.26418679,"d":"$7,475,528"}},{"$f":"SUM('Trial 1'!CE9,'Trial 2'!CE9,'Trial 3'!CE9,'Trial 4'!CE9,'Trial 5'!CE9,'Trial 6'!CE9,'Trial 7'!CE9,'Trial 8'!CE9)","v":{"v":7330488.835266305,"d":"$7,330,489"}},{"$f":"SUM('Trial 1'!CF9,'Trial 2'!CF9,'Trial 3'!CF9,'Trial 4'!CF9,'Trial 5'!CF9,'Trial 6'!CF9,'Trial 7'!CF9,'Trial 8'!CF9)","v":{"v":7399765.8538141055,"d":"$7,399,766"}},{"$f":"SUM('Trial 1'!CG9,'Trial 2'!CG9,'Trial 3'!CG9,'Trial 4'!CG9,'Trial 5'!CG9,'Trial 6'!CG9,'Trial 7'!CG9,'Trial 8'!CG9)","v":{"v":7630600.6613770155,"d":"$7,630,601"}},{"$f":"SUM('Trial 1'!CH9,'Trial 2'!CH9,'Trial 3'!CH9,'Trial 4'!CH9,'Trial 5'!CH9,'Trial 6'!CH9,'Trial 7'!CH9,'Trial 8'!CH9)","v":{"v":7437198.4538759235,"d":"$7,437,198"}},{"$f":"SUM('Trial 1'!CI9,'Trial 2'!CI9,'Trial 3'!CI9,'Trial 4'!CI9,'Trial 5'!CI9,'Trial 6'!CI9,'Trial 7'!CI9,'Trial 8'!CI9)","v":{"v":7480004.363105239,"d":"$7,480,004"}},{"$f":"SUM('Trial 1'!CJ9,'Trial 2'!CJ9,'Trial 3'!CJ9,'Trial 4'!CJ9,'Trial 5'!CJ9,'Trial 6'!CJ9,'Trial 7'!CJ9,'Trial 8'!CJ9)","v":{"v":7443485.566190266,"d":"$7,443,486"}},{"$f":"SUM('Trial 1'!CK9,'Trial 2'!CK9,'Trial 3'!CK9,'Trial 4'!CK9,'Trial 5'!CK9,'Trial 6'!CK9,'Trial 7'!CK9,'Trial 8'!CK9)","v":{"v":7549247.740563923,"d":"$7,549,248"}},{"$f":"SUM('Trial 1'!CL9,'Trial 2'!CL9,'Trial 3'!CL9,'Trial 4'!CL9,'Trial 5'!CL9,'Trial 6'!CL9,'Trial 7'!CL9,'Trial 8'!CL9)","v":{"v":7378269.607419342,"d":"$7,378,270"}},{"$f":"SUM('Trial 1'!CM9,'Trial 2'!CM9,'Trial 3'!CM9,'Trial 4'!CM9,'Trial 5'!CM9,'Trial 6'!CM9,'Trial 7'!CM9,'Trial 8'!CM9)","v":{"v":7523958.408313388,"d":"$7,523,958"}},{"$f":"SUM(CB25:CM25)","v":{"v":89441784.49860978,"d":"$89,441,784"}},{"$f":"SUM('Trial 1'!CO9,'Trial 2'!CO9,'Trial 3'!CO9,'Trial 4'!CO9,'Trial 5'!CO9,'Trial 6'!CO9,'Trial 7'!CO9,'Trial 8'!CO9)","v":{"v":7452341.6946935635,"d":"$7,452,342"}},{"$f":"SUM('Trial 1'!CP9,'Trial 2'!CP9,'Trial 3'!CP9,'Trial 4'!CP9,'Trial 5'!CP9,'Trial 6'!CP9,'Trial 7'!CP9,'Trial 8'!CP9)","v":{"v":7455037.234006138,"d":"$7,455,037"}},{"$f":"SUM('Trial 1'!CQ9,'Trial 2'!CQ9,'Trial 3'!CQ9,'Trial 4'!CQ9,'Trial 5'!CQ9,'Trial 6'!CQ9,'Trial 7'!CQ9,'Trial 8'!CQ9)","v":{"v":7439614.730227766,"d":"$7,439,615"}},{"$f":"SUM('Trial 1'!CR9,'Trial 2'!CR9,'Trial 3'!CR9,'Trial 4'!CR9,'Trial 5'!CR9,'Trial 6'!CR9,'Trial 7'!CR9,'Trial 8'!CR9)","v":{"v":7390216.937839388,"d":"$7,390,217"}},{"$f":"SUM('Trial 1'!CS9,'Trial 2'!CS9,'Trial 3'!CS9,'Trial 4'!CS9,'Trial 5'!CS9,'Trial 6'!CS9,'Trial 7'!CS9,'Trial 8'!CS9)","v":{"v":7209051.426701285,"d":"$7,209,051"}},{"$f":"SUM('Trial 1'!CT9,'Trial 2'!CT9,'Trial 3'!CT9,'Trial 4'!CT9,'Trial 5'!CT9,'Trial 6'!CT9,'Trial 7'!CT9,'Trial 8'!CT9)","v":{"v":7288307.566300131,"d":"$7,288,308"}},{"$f":"SUM('Trial 1'!CU9,'Trial 2'!CU9,'Trial 3'!CU9,'Trial 4'!CU9,'Trial 5'!CU9,'Trial 6'!CU9,'Trial 7'!CU9,'Trial 8'!CU9)","v":{"v":7558726.742944855,"d":"$7,558,727"}},{"$f":"SUM('Trial 1'!CV9,'Trial 2'!CV9,'Trial 3'!CV9,'Trial 4'!CV9,'Trial 5'!CV9,'Trial 6'!CV9,'Trial 7'!CV9,'Trial 8'!CV9)","v":{"v":7336545.514293372,"d":"$7,336,546"}},{"$f":"SUM('Trial 1'!CW9,'Trial 2'!CW9,'Trial 3'!CW9,'Trial 4'!CW9,'Trial 5'!CW9,'Trial 6'!CW9,'Trial 7'!CW9,'Trial 8'!CW9)","v":{"v":7348964.104587362,"d":"$7,348,964"}},{"$f":"SUM('Trial 1'!CX9,'Trial 2'!CX9,'Trial 3'!CX9,'Trial 4'!CX9,'Trial 5'!CX9,'Trial 6'!CX9,'Trial 7'!CX9,'Trial 8'!CX9)","v":{"v":7311496.018104269,"d":"$7,311,496"}},{"$f":"SUM('Trial 1'!CY9,'Trial 2'!CY9,'Trial 3'!CY9,'Trial 4'!CY9,'Trial 5'!CY9,'Trial 6'!CY9,'Trial 7'!CY9,'Trial 8'!CY9)","v":{"v":7414875.525002421,"d":"$7,414,876"}},{"$f":"SUM('Trial 1'!CZ9,'Trial 2'!CZ9,'Trial 3'!CZ9,'Trial 4'!CZ9,'Trial 5'!CZ9,'Trial 6'!CZ9,'Trial 7'!CZ9,'Trial 8'!CZ9)","v":{"v":7318165.574732758,"d":"$7,318,166"}},{"$f":"SUM(CO25:CZ25)","v":{"v":88523343.0694333,"d":"$88,523,343"}},{"$f":"SUM('Trial 1'!DB9,'Trial 2'!DB9,'Trial 3'!DB9,'Trial 4'!DB9,'Trial 5'!DB9,'Trial 6'!DB9,'Trial 7'!DB9,'Trial 8'!DB9)","v":{"v":7426011.520411234,"d":"$7,426,012"}},{"$f":"SUM('Trial 1'!DC9,'Trial 2'!DC9,'Trial 3'!DC9,'Trial 4'!DC9,'Trial 5'!DC9,'Trial 6'!DC9,'Trial 7'!DC9,'Trial 8'!DC9)","v":{"v":7249924.266717795,"d":"$7,249,924"}},{"$f":"SUM('Trial 1'!DD9,'Trial 2'!DD9,'Trial 3'!DD9,'Trial 4'!DD9,'Trial 5'!DD9,'Trial 6'!DD9,'Trial 7'!DD9,'Trial 8'!DD9)","v":{"v":7303155.178602962,"d":"$7,303,155"}},{"$f":"SUM('Trial 1'!DE9,'Trial 2'!DE9,'Trial 3'!DE9,'Trial 4'!DE9,'Trial 5'!DE9,'Trial 6'!DE9,'Trial 7'!DE9,'Trial 8'!DE9)","v":{"v":7394997.60296092,"d":"$7,394,998"}},{"$f":"SUM('Trial 1'!DF9,'Trial 2'!DF9,'Trial 3'!DF9,'Trial 4'!DF9,'Trial 5'!DF9,'Trial 6'!DF9,'Trial 7'!DF9,'Trial 8'!DF9)","v":{"v":7333159.269575404,"d":"$7,333,159"}},{"$f":"SUM('Trial 1'!DG9,'Trial 2'!DG9,'Trial 3'!DG9,'Trial 4'!DG9,'Trial 5'!DG9,'Trial 6'!DG9,'Trial 7'!DG9,'Trial 8'!DG9)","v":{"v":7303965.957988577,"d":"$7,303,966"}},{"$f":"SUM('Trial 1'!DH9,'Trial 2'!DH9,'Trial 3'!DH9,'Trial 4'!DH9,'Trial 5'!DH9,'Trial 6'!DH9,'Trial 7'!DH9,'Trial 8'!DH9)","v":{"v":7283070.104980016,"d":"$7,283,070"}},{"$f":"SUM('Trial 1'!DI9,'Trial 2'!DI9,'Trial 3'!DI9,'Trial 4'!DI9,'Trial 5'!DI9,'Trial 6'!DI9,'Trial 7'!DI9,'Trial 8'!DI9)","v":{"v":7253568.163147631,"d":"$7,253,568"}},{"$f":"SUM('Trial 1'!DJ9,'Trial 2'!DJ9,'Trial 3'!DJ9,'Trial 4'!DJ9,'Trial 5'!DJ9,'Trial 6'!DJ9,'Trial 7'!DJ9,'Trial 8'!DJ9)","v":{"v":7319562.140879522,"d":"$7,319,562"}},{"$f":"SUM('Trial 1'!DK9,'Trial 2'!DK9,'Trial 3'!DK9,'Trial 4'!DK9,'Trial 5'!DK9,'Trial 6'!DK9,'Trial 7'!DK9,'Trial 8'!DK9)","v":{"v":7297470.891790168,"d":"$7,297,471"}},{"$f":"SUM('Trial 1'!DL9,'Trial 2'!DL9,'Trial 3'!DL9,'Trial 4'!DL9,'Trial 5'!DL9,'Trial 6'!DL9,'Trial 7'!DL9,'Trial 8'!DL9)","v":{"v":7235603.307478727,"d":"$7,235,603"}},{"$f":"SUM('Trial 1'!DM9,'Trial 2'!DM9,'Trial 3'!DM9,'Trial 4'!DM9,'Trial 5'!DM9,'Trial 6'!DM9,'Trial 7'!DM9,'Trial 8'!DM9)","v":{"v":7256632.725265563,"d":"$7,256,633"}},{"$f":"SUM(DB25:DM25)","v":{"v":87657121.12979852,"d":"$87,657,121"}},{"$f":"SUM('Trial 1'!DO9,'Trial 2'!DO9,'Trial 3'!DO9,'Trial 4'!DO9,'Trial 5'!DO9,'Trial 6'!DO9,'Trial 7'!DO9,'Trial 8'!DO9)","v":{"v":7384197.674975999,"d":"$7,384,198"}},{"$f":"SUM('Trial 1'!DP9,'Trial 2'!DP9,'Trial 3'!DP9,'Trial 4'!DP9,'Trial 5'!DP9,'Trial 6'!DP9,'Trial 7'!DP9,'Trial 8'!DP9)","v":{"v":7253530.031660542,"d":"$7,253,530"}},{"$f":"SUM('Trial 1'!DQ9,'Trial 2'!DQ9,'Trial 3'!DQ9,'Trial 4'!DQ9,'Trial 5'!DQ9,'Trial 6'!DQ9,'Trial 7'!DQ9,'Trial 8'!DQ9)","v":{"v":7417196.5804583505,"d":"$7,417,197"}},{"$f":"SUM('Trial 1'!DR9,'Trial 2'!DR9,'Trial 3'!DR9,'Trial 4'!DR9,'Trial 5'!DR9,'Trial 6'!DR9,'Trial 7'!DR9,'Trial 8'!DR9)","v":{"v":7314965.7040102575,"d":"$7,314,966"}},{"$f":"SUM('Trial 1'!DS9,'Trial 2'!DS9,'Trial 3'!DS9,'Trial 4'!DS9,'Trial 5'!DS9,'Trial 6'!DS9,'Trial 7'!DS9,'Trial 8'!DS9)","v":{"v":7298333.912910908,"d":"$7,298,334"}},{"$f":"SUM('Trial 1'!DT9,'Trial 2'!DT9,'Trial 3'!DT9,'Trial 4'!DT9,'Trial 5'!DT9,'Trial 6'!DT9,'Trial 7'!DT9,'Trial 8'!DT9)","v":{"v":7399002.186434327,"d":"$7,399,002"}},{"$f":"SUM('Trial 1'!DU9,'Trial 2'!DU9,'Trial 3'!DU9,'Trial 4'!DU9,'Trial 5'!DU9,'Trial 6'!DU9,'Trial 7'!DU9,'Trial 8'!DU9)","v":{"v":7327450.035191732,"d":"$7,327,450"}},{"$f":"SUM('Trial 1'!DV9,'Trial 2'!DV9,'Trial 3'!DV9,'Trial 4'!DV9,'Trial 5'!DV9,'Trial 6'!DV9,'Trial 7'!DV9,'Trial 8'!DV9)","v":{"v":7354641.504273092,"d":"$7,354,642"}},{"$f":"SUM('Trial 1'!DW9,'Trial 2'!DW9,'Trial 3'!DW9,'Trial 4'!DW9,'Trial 5'!DW9,'Trial 6'!DW9,'Trial 7'!DW9,'Trial 8'!DW9)","v":{"v":7306676.354256248,"d":"$7,306,676"}},{"$f":"SUM('Trial 1'!DX9,'Trial 2'!DX9,'Trial 3'!DX9,'Trial 4'!DX9,'Trial 5'!DX9,'Trial 6'!DX9,'Trial 7'!DX9,'Trial 8'!DX9)","v":{"v":7286667.326454553,"d":"$7,286,667"}},{"$f":"SUM('Trial 1'!DY9,'Trial 2'!DY9,'Trial 3'!DY9,'Trial 4'!DY9,'Trial 5'!DY9,'Trial 6'!DY9,'Trial 7'!DY9,'Trial 8'!DY9)","v":{"v":7292685.904425625,"d":"$7,292,686"}},{"$f":"SUM('Trial 1'!DZ9,'Trial 2'!DZ9,'Trial 3'!DZ9,'Trial 4'!DZ9,'Trial 5'!DZ9,'Trial 6'!DZ9,'Trial 7'!DZ9,'Trial 8'!DZ9)","v":{"v":7152991.406333786,"d":"$7,152,991"}},{"$f":"SUM(DO25:DZ25)","v":{"v":87788338.62138543,"d":"$87,788,339"}},{"$f":"SUM('Trial 1'!EB9,'Trial 2'!EB9,'Trial 3'!EB9,'Trial 4'!EB9,'Trial 5'!EB9,'Trial 6'!EB9,'Trial 7'!EB9,'Trial 8'!EB9)","v":{"v":7322018.780844622,"d":"$7,322,019"}},{"$f":"SUM('Trial 1'!EC9,'Trial 2'!EC9,'Trial 3'!EC9,'Trial 4'!EC9,'Trial 5'!EC9,'Trial 6'!EC9,'Trial 7'!EC9,'Trial 8'!EC9)","v":{"v":7159980.269926259,"d":"$7,159,980"}},{"$f":"SUM('Trial 1'!ED9,'Trial 2'!ED9,'Trial 3'!ED9,'Trial 4'!ED9,'Trial 5'!ED9,'Trial 6'!ED9,'Trial 7'!ED9,'Trial 8'!ED9)","v":{"v":7204797.492494031,"d":"$7,204,797"}},{"$f":"SUM('Trial 1'!EE9,'Trial 2'!EE9,'Trial 3'!EE9,'Trial 4'!EE9,'Trial 5'!EE9,'Trial 6'!EE9,'Trial 7'!EE9,'Trial 8'!EE9)","v":{"v":7274832.503487719,"d":"$7,274,833"}},{"$f":"SUM('Trial 1'!EF9,'Trial 2'!EF9,'Trial 3'!EF9,'Trial 4'!EF9,'Trial 5'!EF9,'Trial 6'!EF9,'Trial 7'!EF9,'Trial 8'!EF9)","v":{"v":7285813.630884983,"d":"$7,285,814"}},{"$f":"SUM('Trial 1'!EG9,'Trial 2'!EG9,'Trial 3'!EG9,'Trial 4'!EG9,'Trial 5'!EG9,'Trial 6'!EG9,'Trial 7'!EG9,'Trial 8'!EG9)","v":{"v":7172838.954688907,"d":"$7,172,839"}},{"$f":"SUM('Trial 1'!EH9,'Trial 2'!EH9,'Trial 3'!EH9,'Trial 4'!EH9,'Trial 5'!EH9,'Trial 6'!EH9,'Trial 7'!EH9,'Trial 8'!EH9)","v":{"v":7202959.23517199,"d":"$7,202,959"}},{"$f":"SUM('Trial 1'!EI9,'Trial 2'!EI9,'Trial 3'!EI9,'Trial 4'!EI9,'Trial 5'!EI9,'Trial 6'!EI9,'Trial 7'!EI9,'Trial 8'!EI9)","v":{"v":7051129.316029981,"d":"$7,051,129"}},{"$f":"SUM('Trial 1'!EJ9,'Trial 2'!EJ9,'Trial 3'!EJ9,'Trial 4'!EJ9,'Trial 5'!EJ9,'Trial 6'!EJ9,'Trial 7'!EJ9,'Trial 8'!EJ9)","v":{"v":7198115.877191615,"d":"$7,198,116"}},{"$f":"SUM('Trial 1'!EK9,'Trial 2'!EK9,'Trial 3'!EK9,'Trial 4'!EK9,'Trial 5'!EK9,'Trial 6'!EK9,'Trial 7'!EK9,'Trial 8'!EK9)","v":{"v":7283024.277250271,"d":"$7,283,024"}},{"$f":"SUM('Trial 1'!EL9,'Trial 2'!EL9,'Trial 3'!EL9,'Trial 4'!EL9,'Trial 5'!EL9,'Trial 6'!EL9,'Trial 7'!EL9,'Trial 8'!EL9)","v":{"v":7171907.424986356,"d":"$7,171,907"}},{"$f":"SUM('Trial 1'!EM9,'Trial 2'!EM9,'Trial 3'!EM9,'Trial 4'!EM9,'Trial 5'!EM9,'Trial 6'!EM9,'Trial 7'!EM9,'Trial 8'!EM9)","v":{"v":7264905.701590258,"d":"$7,264,906"}},{"$f":"SUM(EB25:EM25)","v":{"v":86592323.464547,"d":"$86,592,323"}}]
[{"$f":"Labels!B45","v":"Final Sales"}]
[{"$f":"Labels!D96","v":"Trials"},{"$f":"ZZZ__FnCalls!F7","v":"Jan 2010"},{"$f":"ZZZ__FnCalls!F8","v":"Feb 2010"},{"$f":"ZZZ__FnCalls!F9","v":"Mar 2010"},{"$f":"ZZZ__FnCalls!F10","v":"Apr 2010"},{"$f":"ZZZ__FnCalls!F11","v":"May 2010"},{"$f":"ZZZ__FnCalls!F12","v":"Jun 2010"},{"$f":"ZZZ__FnCalls!F13","v":"Jul 2010"},{"$f":"ZZZ__FnCalls!F14","v":"Aug 2010"},{"$f":"ZZZ__FnCalls!F15","v":"Sep 2010"},{"$f":"ZZZ__FnCalls!F16","v":"Oct 2010"},{"$f":"ZZZ__FnCalls!F17","v":"Nov 2010"},{"$f":"ZZZ__FnCalls!F18","v":"Dec 2010"},{"$f":"ZZZ__FnCalls!H7","v":"2010"},{"$f":"ZZZ__FnCalls!F19","v":"Jan 2011"},{"$f":"ZZZ__FnCalls!F20","v":"Feb 2011"},{"$f":"ZZZ__FnCalls!F21","v":"Mar 2011"},{"$f":"ZZZ__FnCalls!F22","v":"Apr 2011"},{"$f":"ZZZ__FnCalls!F23","v":"May 2011"},{"$f":"ZZZ__FnCalls!F24","v":"Jun 2011"},{"$f":"ZZZ__FnCalls!F25","v":"Jul 2011"},{"$f":"ZZZ__FnCalls!F26","v":"Aug 2011"},{"$f":"ZZZ__FnCalls!F27","v":"Sep 2011"},{"$f":"ZZZ__FnCalls!F28","v":"Oct 2011"},{"$f":"ZZZ__FnCalls!F29","v":"Nov 2011"},{"$f":"ZZZ__FnCalls!F30","v":"Dec 2011"},{"$f":"ZZZ__FnCalls!H19","v":"2011"},{"$f":"ZZZ__FnCalls!F31","v":"Jan 2012"},{"$f":"ZZZ__FnCalls!F32","v":"Feb 2012"},{"$f":"ZZZ__FnCalls!F33","v":"Mar 2012"},{"$f":"ZZZ__FnCalls!F34","v":"Apr 2012"},{"$f":"ZZZ__FnCalls!F35","v":"May 2012"},{"$f":"ZZZ__FnCalls!F36","v":"Jun 2012"},{"$f":"ZZZ__FnCalls!F37","v":"Jul 2012"},{"$f":"ZZZ__FnCalls!F38","v":"Aug 2012"},{"$f":"ZZZ__FnCalls!F39","v":"Sep 2012"},{"$f":"ZZZ__FnCalls!F40","v":"Oct 2012"},{"$f":"ZZZ__FnCalls!F41","v":"Nov 2012"},{"$f":"ZZZ__FnCalls!F42","v":"Dec 2012"},{"$f":"ZZZ__FnCalls!H31","v":"2012"},{"$f":"ZZZ__FnCalls!F43","v":"Jan 2013"},{"$f":"ZZZ__FnCalls!F44","v":"Feb 2013"},{"$f":"ZZZ__FnCalls!F45","v":"Mar 2013"},{"$f":"ZZZ__FnCalls!F46","v":"Apr 2013"},{"$f":"ZZZ__FnCalls!F47","v":"May 2013"},{"$f":"ZZZ__FnCalls!F48","v":"Jun 2013"},{"$f":"ZZZ__FnCalls!F49","v":"Jul 2013"},{"$f":"ZZZ__FnCalls!F50","v":"Aug 2013"},{"$f":"ZZZ__FnCalls!F51","v":"Sep 2013"},{"$f":"ZZZ__FnCalls!F52","v":"Oct 2013"},{"$f":"ZZZ__FnCalls!F53","v":"Nov 2013"},{"$f":"ZZZ__FnCalls!F54","v":"Dec 2013"},{"$f":"ZZZ__FnCalls!H43","v":"2013"},{"$f":"ZZZ__FnCalls!F55","v":"Jan 2014"},{"$f":"ZZZ__FnCalls!F56","v":"Feb 2014"},{"$f":"ZZZ__FnCalls!F57","v":"Mar 2014"},{"$f":"ZZZ__FnCalls!F58","v":"Apr 2014"},{"$f":"ZZZ__FnCalls!F59","v":"May 2014"},{"$f":"ZZZ__FnCalls!F60","v":"Jun 2014"},{"$f":"ZZZ__FnCalls!F61","v":"Jul 2014"},{"$f":"ZZZ__FnCalls!F62","v":"Aug 2014"},{"$f":"ZZZ__FnCalls!F63","v":"Sep 2014"},{"$f":"ZZZ__FnCalls!F64","v":"Oct 2014"},{"$f":"ZZZ__FnCalls!F65","v":"Nov 2014"},{"$f":"ZZZ__FnCalls!F66","v":"Dec 2014"},{"$f":"ZZZ__FnCalls!H55","v":"2014"},{"$f":"ZZZ__FnCalls!F67","v":"Jan 2015"},{"$f":"ZZZ__FnCalls!F68","v":"Feb 2015"},{"$f":"ZZZ__FnCalls!F69","v":"Mar 2015"},{"$f":"ZZZ__FnCalls!F70","v":"Apr 2015"},{"$f":"ZZZ__FnCalls!F71","v":"May 2015"},{"$f":"ZZZ__FnCalls!F72","v":"Jun 2015"},{"$f":"ZZZ__FnCalls!F73","v":"Jul 2015"},{"$f":"ZZZ__FnCalls!F74","v":"Aug 2015"},{"$f":"ZZZ__FnCalls!F75","v":"Sep 2015"},{"$f":"ZZZ__FnCalls!F76","v":"Oct 2015"},{"$f":"ZZZ__FnCalls!F77","v":"Nov 2015"},{"$f":"ZZZ__FnCalls!F78","v":"Dec 2015"},{"$f":"ZZZ__FnCalls!H67","v":"2015"},{"$f":"ZZZ__FnCalls!F79","v":"Jan 2016"},{"$f":"ZZZ__FnCalls!F80","v":"Feb 2016"},{"$f":"ZZZ__FnCalls!F81","v":"Mar 2016"},{"$f":"ZZZ__FnCalls!F82","v":"Apr 2016"},{"$f":"ZZZ__FnCalls!F83","v":"May 2016"},{"$f":"ZZZ__FnCalls!F84","v":"Jun 2016"},{"$f":"ZZZ__FnCalls!F85","v":"Jul 2016"},{"$f":"ZZZ__FnCalls!F86","v":"Aug 2016"},{"$f":"ZZZ__FnCalls!F87","v":"Sep 2016"},{"$f":"ZZZ__FnCalls!F88","v":"Oct 2016"},{"$f":"ZZZ__FnCalls!F89","v":"Nov 2016"},{"$f":"ZZZ__FnCalls!F90","v":"Dec 2016"},{"$f":"ZZZ__FnCalls!H79","v":"2016"},{"$f":"ZZZ__FnCalls!F91","v":"Jan 2017"},{"$f":"ZZZ__FnCalls!F92","v":"Feb 2017"},{"$f":"ZZZ__FnCalls!F93","v":"Mar 2017"},{"$f":"ZZZ__FnCalls!F94","v":"Apr 2017"},{"$f":"ZZZ__FnCalls!F95","v":"May 2017"},{"$f":"ZZZ__FnCalls!F96","v":"Jun 2017"},{"$f":"ZZZ__FnCalls!F97","v":"Jul 2017"},{"$f":"ZZZ__FnCalls!F98","v":"Aug 2017"},{"$f":"ZZZ__FnCalls!F99","v":"Sep 2017"},{"$f":"ZZZ__FnCalls!F100","v":"Oct 2017"},{"$f":"ZZZ__FnCalls!F101","v":"Nov 2017"},{"$f":"ZZZ__FnCalls!F102","v":"Dec 2017"},{"$f":"ZZZ__FnCalls!H91","v":"2017"},{"$f":"ZZZ__FnCalls!F103","v":"Jan 2018"},{"$f":"ZZZ__FnCalls!F104","v":"Feb 2018"},{"$f":"ZZZ__FnCalls!F105","v":"Mar 2018"},{"$f":"ZZZ__FnCalls!F106","v":"Apr 2018"},{"$f":"ZZZ__FnCalls!F107","v":"May 2018"},{"$f":"ZZZ__FnCalls!F108","v":"Jun 2018"},{"$f":"ZZZ__FnCalls!F109","v":"Jul 2018"},{"$f":"ZZZ__FnCalls!F110","v":"Aug 2018"},{"$f":"ZZZ__FnCalls!F111","v":"Sep 2018"},{"$f":"ZZZ__FnCalls!F112","v":"Oct 2018"},{"$f":"ZZZ__FnCalls!F113","v":"Nov 2018"},{"$f":"ZZZ__FnCalls!F114","v":"Dec 2018"},{"$f":"ZZZ__FnCalls!H103","v":"2018"},{"$f":"ZZZ__FnCalls!F115","v":"Jan 2019"},{"$f":"ZZZ__FnCalls!F116","v":"Feb 2019"},{"$f":"ZZZ__FnCalls!F117","v":"Mar 2019"},{"$f":"ZZZ__FnCalls!F118","v":"Apr 2019"},{"$f":"ZZZ__FnCalls!F119","v":"May 2019"},{"$f":"ZZZ__FnCalls!F120","v":"Jun 2019"},{"$f":"ZZZ__FnCalls!F121","v":"Jul 2019"},{"$f":"ZZZ__FnCalls!F122","v":"Aug 2019"},{"$f":"ZZZ__FnCalls!F123","v":"Sep 2019"},{"$f":"ZZZ__FnCalls!F124","v":"Oct 2019"},{"$f":"ZZZ__FnCalls!F125","v":"Nov 2019"},{"$f":"ZZZ__FnCalls!F126","v":"Dec 2019"},{"$f":"ZZZ__FnCalls!H115","v":"2019"},{"$f":"ZZZ__FnCalls!F127","v":"Jan 2020"},{"$f":"ZZZ__FnCalls!F128","v":"Feb 2020"},{"$f":"ZZZ__FnCalls!F129","v":"Mar 2020"},{"$f":"ZZZ__FnCalls!F130","v":"Apr 2020"},{"$f":"ZZZ__FnCalls!F131","v":"May 2020"},{"$f":"ZZZ__FnCalls!F132","v":"Jun 2020"},{"$f":"ZZZ__FnCalls!F133","v":"Jul 2020"},{"$f":"ZZZ__FnCalls!F134","v":"Aug 2020"},{"$f":"ZZZ__FnCalls!F135","v":"Sep 2020"},{"$f":"ZZZ__FnCalls!F136","v":"Oct 2020"},{"$f":"ZZZ__FnCalls!F137","v":"Nov 2020"},{"$f":"ZZZ__FnCalls!F138","v":"Dec 2020"},{"$f":"ZZZ__FnCalls!H127","v":"2020"}]
[{"$f":"Labels!B96","v":"Trial 01"},{"$f":"'Trial 1'!B36","v":{"v":963388.6810828955,"d":"$963,389"}},{"$f":"'Trial 1'!C36","v":{"v":962788.7580836549,"d":"$962,789"}},{"$f":"'Trial 1'!D36","v":{"v":962192.3776643618,"d":"$962,192"}},{"$f":"'Trial 1'!E36","v":{"v":961656.0510731867,"d":"$961,656"}},{"$f":"'Trial 1'!F36","v":{"v":961050.092475044,"d":"$961,050"}},{"$f":"'Trial 1'!G36","v":{"v":960560.00546097,"d":"$960,560"}},{"$f":"'Trial 1'!H36","v":{"v":960029.2348064434,"d":"$960,029"}},{"$f":"'Trial 1'!I36","v":{"v":959486.4500036152,"d":"$959,486"}},{"$f":"'Trial 1'!J36","v":{"v":958919.246161763,"d":"$958,919"}},{"$f":"'Trial 1'!K36","v":{"v":958410.5482487191,"d":"$958,411"}},{"$f":"'Trial 1'!L36","v":{"v":957989.6356935522,"d":"$957,990"}},{"$f":"'Trial 1'!M36","v":{"v":957513.8221802168,"d":"$957,514"}},{"$f":"SUM('Trial 1'!B36:M36)","v":{"v":11523984.902934425,"d":"$11,523,985"}},{"$f":"'Trial 1'!O36","v":{"v":957064.6743848027,"d":"$957,065"}},{"$f":"'Trial 1'!P36","v":{"v":956467.8251333041,"d":"$956,468"}},{"$f":"'Trial 1'!Q36","v":{"v":955985.453755788,"d":"$955,985"}},{"$f":"'Trial 1'!R36","v":{"v":955330.9028481159,"d":"$955,331"}},{"$f":"'Trial 1'!S36","v":{"v":954844.9983269287,"d":"$954,845"}},{"$f":"'Trial 1'!T36","v":{"v":954199.7634342397,"d":"$954,200"}},{"$f":"'Trial 1'!U36","v":{"v":953570.5720775559,"d":"$953,571"}},{"$f":"'Trial 1'!V36","v":{"v":952937.6373976986,"d":"$952,938"}},{"$f":"'Trial 1'!W36","v":{"v":952338.5901094397,"d":"$952,339"}},{"$f":"'Trial 1'!X36","v":{"v":951827.7044930907,"d":"$951,828"}},{"$f":"'Trial 1'!Y36","v":{"v":951323.0912716924,"d":"$951,323"}},{"$f":"'Trial 1'!Z36","v":{"v":950966.1133256974,"d":"$950,966"}},{"$f":"SUM('Trial 1'!O36:Z36)","v":{"v":11446857.326558352,"d":"$11,446,857"}},{"$f":"'Trial 1'!AB36","v":{"v":950419.0343375972,"d":"$950,419"}},{"$f":"'Trial 1'!AC36","v":{"v":949923.896643172,"d":"$949,924"}},{"$f":"'Trial 1'!AD36","v":{"v":949566.8723567838,"d":"$949,567"}},{"$f":"'Trial 1'!AE36","v":{"v":949093.7022126153,"d":"$949,094"}},{"$f":"'Trial 1'!AF36","v":{"v":948506.8343039006,"d":"$948,507"}},{"$f":"'Trial 1'!AG36","v":{"v":947982.3573559042,"d":"$947,982"}},{"$f":"'Trial 1'!AH36","v":{"v":947505.6554366577,"d":"$947,506"}},{"$f":"'Trial 1'!AI36","v":{"v":947064.64785634,"d":"$947,065"}},{"$f":"'Trial 1'!AJ36","v":{"v":946532.9466548437,"d":"$946,533"}},{"$f":"'Trial 1'!AK36","v":{"v":946107.6076335415,"d":"$946,108"}},{"$f":"'Trial 1'!AL36","v":{"v":945667.0496308317,"d":"$945,667"}},{"$f":"'Trial 1'!AM36","v":{"v":945229.9796056383,"d":"$945,230"}},{"$f":"SUM('Trial 1'!AB36:AM36)","v":{"v":11373600.584027825,"d":"$11,373,601"}},{"$f":"'Trial 1'!AO36","v":{"v":944759.5028909746,"d":"$944,760"}},{"$f":"'Trial 1'!AP36","v":{"v":944145.0010951117,"d":"$944,145"}},{"$f":"'Trial 1'!AQ36","v":{"v":943784.773874388,"d":"$943,785"}},{"$f":"'Trial 1'!AR36","v":{"v":943304.6275543286,"d":"$943,305"}},{"$f":"'Trial 1'!AS36","v":{"v":942881.491271228,"d":"$942,881"}},{"$f":"'Trial 1'!AT36","v":{"v":942408.5579071079,"d":"$942,409"}},{"$f":"'Trial 1'!AU36","v":{"v":941971.3866776208,"d":"$941,971"}},{"$f":"'Trial 1'!AV36","v":{"v":941483.8017839065,"d":"$941,484"}},{"$f":"'Trial 1'!AW36","v":{"v":941026.5041628544,"d":"$941,027"}},{"$f":"'Trial 1'!AX36","v":{"v":940552.6361104007,"d":"$940,553"}},{"$f":"'Trial 1'!AY36","v":{"v":940110.9648781044,"d":"$940,111"}},{"$f":"'Trial 1'!AZ36","v":{"v":939749.0450779217,"d":"$939,749"}},{"$f":"SUM('Trial 1'!AO36:AZ36)","v":{"v":11306178.293283947,"d":"$11,306,178"}},{"$f":"'Trial 1'!BB36","v":{"v":939212.5251568437,"d":"$939,213"}},{"$f":"'Trial 1'!BC36","v":{"v":938653.5292281674,"d":"$938,654"}},{"$f":"'Trial 1'!BD36","v":{"v":938232.3007003104,"d":"$938,232"}},{"$f":"'Trial 1'!BE36","v":{"v":937799.9065044457,"d":"$937,800"}},{"$f":"'Trial 1'!BF36","v":{"v":937445.3046959377,"d":"$937,445"}},{"$f":"'Trial 1'!BG36","v":{"v":936989.7448484036,"d":"$936,990"}},{"$f":"'Trial 1'!BH36","v":{"v":936599.7328697186,"d":"$936,600"}},{"$f":"'Trial 1'!BI36","v":{"v":936231.8887508115,"d":"$936,232"}},{"$f":"'Trial 1'!BJ36","v":{"v":935853.8876065691,"d":"$935,854"}},{"$f":"'Trial 1'!BK36","v":{"v":935449.8356475824,"d":"$935,450"}},{"$f":"'Trial 1'!BL36","v":{"v":935003.1629203112,"d":"$935,003"}},{"$f":"'Trial 1'!BM36","v":{"v":934615.2741216258,"d":"$934,615"}},{"$f":"SUM('Trial 1'!BB36:BM36)","v":{"v":11242087.093050728,"d":"$11,242,087"}},{"$f":"'Trial 1'!BO36","v":{"v":934084.9012141587,"d":"$934,085"}},{"$f":"'Trial 1'!BP36","v":{"v":933733.251691204,"d":"$933,733"}},{"$f":"'Trial 1'!BQ36","v":{"v":933324.3338821771,"d":"$933,324"}},{"$f":"'Trial 1'!BR36","v":{"v":932974.6264108215,"d":"$932,975"}},{"$f":"'Trial 1'!BS36","v":{"v":932570.2792518166,"d":"$932,570"}},{"$f":"'Trial 1'!BT36","v":{"v":932096.4749564566,"d":"$932,096"}},{"$f":"'Trial 1'!BU36","v":{"v":931585.6466882575,"d":"$931,586"}},{"$f":"'Trial 1'!BV36","v":{"v":931104.1342935589,"d":"$931,104"}},{"$f":"'Trial 1'!BW36","v":{"v":930652.1000274969,"d":"$930,652"}},{"$f":"'Trial 1'!BX36","v":{"v":930325.8834276166,"d":"$930,326"}},{"$f":"'Trial 1'!BY36","v":{"v":929799.7378703518,"d":"$929,800"}},{"$f":"'Trial 1'!BZ36","v":{"v":929298.2141118775,"d":"$929,298"}},{"$f":"SUM('Trial 1'!BO36:BZ36)","v":{"v":11181549.583825793,"d":"$11,181,550"}},{"$f":"'Trial 1'!CB36","v":{"v":928941.9265496238,"d":"$928,942"}},{"$f":"'Trial 1'!CC36","v":{"v":928500.8534646168,"d":"$928,501"}},{"$f":"'Trial 1'!CD36","v":{"v":927956.6903860765,"d":"$927,957"}},{"$f":"'Trial 1'!CE36","v":{"v":927536.105218218,"d":"$927,536"}},{"$f":"'Trial 1'!CF36","v":{"v":927068.2095810336,"d":"$927,068"}},{"$f":"'Trial 1'!CG36","v":{"v":926665.5510870415,"d":"$926,666"}},{"$f":"'Trial 1'!CH36","v":{"v":926229.0167468839,"d":"$926,229"}},{"$f":"'Trial 1'!CI36","v":{"v":925823.1446986715,"d":"$925,823"}},{"$f":"'Trial 1'!CJ36","v":{"v":925342.5101757707,"d":"$925,343"}},{"$f":"'Trial 1'!CK36","v":{"v":924899.2993810842,"d":"$924,899"}},{"$f":"'Trial 1'!CL36","v":{"v":924411.3697252852,"d":"$924,411"}},{"$f":"'Trial 1'!CM36","v":{"v":924059.456281223,"d":"$924,059"}},{"$f":"SUM('Trial 1'!CB36:CM36)","v":{"v":11117434.133295529,"d":"$11,117,434"}},{"$f":"'Trial 1'!CO36","v":{"v":923579.6552519473,"d":"$923,580"}},{"$f":"'Trial 1'!CP36","v":{"v":923019.4371372731,"d":"$923,019"}},{"$f":"'Trial 1'!CQ36","v":{"v":922655.1222189806,"d":"$922,655"}},{"$f":"'Trial 1'!CR36","v":{"v":922152.4086650779,"d":"$922,152"}},{"$f":"'Trial 1'!CS36","v":{"v":921719.0762049422,"d":"$921,719"}},{"$f":"'Trial 1'!CT36","v":{"v":921154.0171354472,"d":"$921,154"}},{"$f":"'Trial 1'!CU36","v":{"v":920705.2158787284,"d":"$920,705"}},{"$f":"'Trial 1'!CV36","v":{"v":920154.8562880453,"d":"$920,155"}},{"$f":"'Trial 1'!CW36","v":{"v":919727.2310766844,"d":"$919,727"}},{"$f":"'Trial 1'!CX36","v":{"v":919159.44600639,"d":"$919,159"}},{"$f":"'Trial 1'!CY36","v":{"v":918734.6185476807,"d":"$918,735"}},{"$f":"'Trial 1'!CZ36","v":{"v":918422.3108578909,"d":"$918,422"}},{"$f":"SUM('Trial 1'!CO36:CZ36)","v":{"v":11051183.395269087,"d":"$11,051,183"}},{"$f":"'Trial 1'!DB36","v":{"v":917932.7084990339,"d":"$917,933"}},{"$f":"'Trial 1'!DC36","v":{"v":917446.176476969,"d":"$917,446"}},{"$f":"'Trial 1'!DD36","v":{"v":917056.847875839,"d":"$917,057"}},{"$f":"'Trial 1'!DE36","v":{"v":916640.0733059993,"d":"$916,640"}},{"$f":"'Trial 1'!DF36","v":{"v":916313.0381580779,"d":"$916,313"}},{"$f":"'Trial 1'!DG36","v":{"v":915867.2234387995,"d":"$915,867"}},{"$f":"'Trial 1'!DH36","v":{"v":915381.3819390865,"d":"$915,381"}},{"$f":"'Trial 1'!DI36","v":{"v":915023.4597838911,"d":"$915,023"}},{"$f":"'Trial 1'!DJ36","v":{"v":914540.0980943014,"d":"$914,540"}},{"$f":"'Trial 1'!DK36","v":{"v":914221.0098242959,"d":"$914,221"}},{"$f":"'Trial 1'!DL36","v":{"v":913877.7335833603,"d":"$913,878"}},{"$f":"'Trial 1'!DM36","v":{"v":913383.5789060493,"d":"$913,384"}},{"$f":"SUM('Trial 1'!DB36:DM36)","v":{"v":10987683.329885704,"d":"$10,987,683"}},{"$f":"'Trial 1'!DO36","v":{"v":913025.554934891,"d":"$913,026"}},{"$f":"'Trial 1'!DP36","v":{"v":912630.4134672184,"d":"$912,630"}},{"$f":"'Trial 1'!DQ36","v":{"v":912118.703496254,"d":"$912,119"}},{"$f":"'Trial 1'!DR36","v":{"v":911713.2021779884,"d":"$911,713"}},{"$f":"'Trial 1'!DS36","v":{"v":911288.6056176872,"d":"$911,289"}},{"$f":"'Trial 1'!DT36","v":{"v":910811.0124440562,"d":"$910,811"}},{"$f":"'Trial 1'!DU36","v":{"v":910339.2849916463,"d":"$910,339"}},{"$f":"'Trial 1'!DV36","v":{"v":910001.725334947,"d":"$910,002"}},{"$f":"'Trial 1'!DW36","v":{"v":909534.7101025165,"d":"$909,535"}},{"$f":"'Trial 1'!DX36","v":{"v":909009.8021323927,"d":"$909,010"}},{"$f":"'Trial 1'!DY36","v":{"v":908604.690820129,"d":"$908,605"}},{"$f":"'Trial 1'!DZ36","v":{"v":908207.9503550554,"d":"$908,208"}},{"$f":"SUM('Trial 1'!DO36:DZ36)","v":{"v":10927285.655874783,"d":"$10,927,286"}},{"$f":"'Trial 1'!EB36","v":{"v":907734.8632494423,"d":"$907,735"}},{"$f":"'Trial 1'!EC36","v":{"v":907336.037369113,"d":"$907,336"}},{"$f":"'Trial 1'!ED36","v":{"v":906849.4848580474,"d":"$906,849"}},{"$f":"'Trial 1'!EE36","v":{"v":906344.1676295892,"d":"$906,344"}},{"$f":"'Trial 1'!EF36","v":{"v":905879.9368331087,"d":"$905,880"}},{"$f":"'Trial 1'!EG36","v":{"v":905400.393399594,"d":"$905,400"}},{"$f":"'Trial 1'!EH36","v":{"v":904931.9891796878,"d":"$904,932"}},{"$f":"'Trial 1'!EI36","v":{"v":904530.5051111925,"d":"$904,531"}},{"$f":"'Trial 1'!EJ36","v":{"v":903994.4536783441,"d":"$903,994"}},{"$f":"'Trial 1'!EK36","v":{"v":903546.7566047936,"d":"$903,547"}},{"$f":"'Trial 1'!EL36","v":{"v":903051.9721617951,"d":"$903,052"}},{"$f":"'Trial 1'!EM36","v":{"v":902550.3715434641,"d":"$902,550"}},{"$f":"SUM('Trial 1'!EB36:EM36)","v":{"v":10862150.931618173,"d":"$10,862,151"}}]
[{"$f":"Labels!B97","v":"Trial 02"},{"$f":"'Trial 2'!B36","v":{"v":963388.6810828955,"d":"$963,389"}},{"$f":"'Trial 2'!C36","v":{"v":962769.5311973599,"d":"$962,770"}},{"$f":"'Trial 2'!D36","v":{"v":962169.3176039625,"d":"$962,169"}},{"$f":"'Trial 2'!E36","v":{"v":961619.9016870683,"d":"$961,620"}},{"$f":"'Trial 2'!F36","v":{"v":961165.6097252205,"d":"$961,166"}},{"$f":"'Trial 2'!G36","v":{"v":960659.5993736376,"d":"$960,660"}},{"$f":"'Trial 2'!H36","v":{"v":960090.452580528,"d":"$960,090"}},{"$f":"'Trial 2'!I36","v":{"v":959545.8120607713,"d":"$959,546"}},{"$f":"'Trial 2'!J36","v":{"v":958868.6442944771,"d":"$958,869"}},{"$f":"'Trial 2'!K36","v":{"v":958434.1782688693,"d":"$958,434"}},{"$f":"'Trial 2'!L36","v":{"v":957863.8430108911,"d":"$957,864"}},{"$f":"'Trial 2'!M36","v":{"v":957267.4616620337,"d":"$957,267"}},{"$f":"SUM('Trial 2'!B36:M36)","v":{"v":11523843.032547714,"d":"$11,523,843"}},{"$f":"'Trial 2'!O36","v":{"v":956859.6058350517,"d":"$956,860"}},{"$f":"'Trial 2'!P36","v":{"v":956255.915342925,"d":"$956,256"}},{"$f":"'Trial 2'!Q36","v":{"v":955720.8803519922,"d":"$955,721"}},{"$f":"'Trial 2'!R36","v":{"v":955338.6767755856,"d":"$955,339"}},{"$f":"'Trial 2'!S36","v":{"v":954793.5822398837,"d":"$954,794"}},{"$f":"'Trial 2'!T36","v":{"v":954298.675674421,"d":"$954,299"}},{"$f":"'Trial 2'!U36","v":{"v":953672.3132393057,"d":"$953,672"}},{"$f":"'Trial 2'!V36","v":{"v":953030.2962647211,"d":"$953,030"}},{"$f":"'Trial 2'!W36","v":{"v":952455.208504621,"d":"$952,455"}},{"$f":"'Trial 2'!X36","v":{"v":951994.5055474415,"d":"$951,995"}},{"$f":"'Trial 2'!Y36","v":{"v":951474.5505483608,"d":"$951,475"}},{"$f":"'Trial 2'!Z36","v":{"v":950909.7430877355,"d":"$950,910"}},{"$f":"SUM('Trial 2'!O36:Z36)","v":{"v":11446803.953412045,"d":"$11,446,804"}},{"$f":"'Trial 2'!AB36","v":{"v":950436.9699867046,"d":"$950,437"}},{"$f":"'Trial 2'!AC36","v":{"v":949920.9794291474,"d":"$949,921"}},{"$f":"'Trial 2'!AD36","v":{"v":949368.3187930321,"d":"$949,368"}},{"$f":"'Trial 2'!AE36","v":{"v":948909.2448199455,"d":"$948,909"}},{"$f":"'Trial 2'!AF36","v":{"v":948525.1761770776,"d":"$948,525"}},{"$f":"'Trial 2'!AG36","v":{"v":948044.1016374829,"d":"$948,044"}},{"$f":"'Trial 2'!AH36","v":{"v":947520.2156346567,"d":"$947,520"}},{"$f":"'Trial 2'!AI36","v":{"v":947077.375718272,"d":"$947,077"}},{"$f":"'Trial 2'!AJ36","v":{"v":946488.8705534408,"d":"$946,489"}},{"$f":"'Trial 2'!AK36","v":{"v":946034.7644530681,"d":"$946,035"}},{"$f":"'Trial 2'!AL36","v":{"v":945657.5145649937,"d":"$945,658"}},{"$f":"'Trial 2'!AM36","v":{"v":945267.183156492,"d":"$945,267"}},{"$f":"SUM('Trial 2'!AB36:AM36)","v":{"v":11373250.714924313,"d":"$11,373,251"}},{"$f":"'Trial 2'!AO36","v":{"v":944703.9218173333,"d":"$944,704"}},{"$f":"'Trial 2'!AP36","v":{"v":944176.567333131,"d":"$944,177"}},{"$f":"'Trial 2'!AQ36","v":{"v":943697.5744027679,"d":"$943,698"}},{"$f":"'Trial 2'!AR36","v":{"v":943285.6935615351,"d":"$943,286"}},{"$f":"'Trial 2'!AS36","v":{"v":942760.9547730527,"d":"$942,761"}},{"$f":"'Trial 2'!AT36","v":{"v":942270.2705081345,"d":"$942,270"}},{"$f":"'Trial 2'!AU36","v":{"v":941824.4597666304,"d":"$941,824"}},{"$f":"'Trial 2'!AV36","v":{"v":941424.2365852318,"d":"$941,424"}},{"$f":"'Trial 2'!AW36","v":{"v":941002.0751401973,"d":"$941,002"}},{"$f":"'Trial 2'!AX36","v":{"v":940495.6126161899,"d":"$940,496"}},{"$f":"'Trial 2'!AY36","v":{"v":940043.7339452348,"d":"$940,044"}},{"$f":"'Trial 2'!AZ36","v":{"v":939575.973006986,"d":"$939,576"}},{"$f":"SUM('Trial 2'!AO36:AZ36)","v":{"v":11305261.073456425,"d":"$11,305,261"}},{"$f":"'Trial 2'!BB36","v":{"v":939078.8934732821,"d":"$939,079"}},{"$f":"'Trial 2'!BC36","v":{"v":938581.4147511594,"d":"$938,581"}},{"$f":"'Trial 2'!BD36","v":{"v":938165.3434520974,"d":"$938,165"}},{"$f":"'Trial 2'!BE36","v":{"v":937754.3601946913,"d":"$937,754"}},{"$f":"'Trial 2'!BF36","v":{"v":937266.7528148877,"d":"$937,267"}},{"$f":"'Trial 2'!BG36","v":{"v":936924.9763366819,"d":"$936,925"}},{"$f":"'Trial 2'!BH36","v":{"v":936400.2418376853,"d":"$936,400"}},{"$f":"'Trial 2'!BI36","v":{"v":935870.1830568938,"d":"$935,870"}},{"$f":"'Trial 2'!BJ36","v":{"v":935348.5838044427,"d":"$935,349"}},{"$f":"'Trial 2'!BK36","v":{"v":934937.5326575354,"d":"$934,938"}},{"$f":"'Trial 2'!BL36","v":{"v":934386.3396309003,"d":"$934,386"}},{"$f":"'Trial 2'!BM36","v":{"v":933880.2347630614,"d":"$933,880"}},{"$f":"SUM('Trial 2'!BB36:BM36)","v":{"v":11238594.856773319,"d":"$11,238,595"}},{"$f":"'Trial 2'!BO36","v":{"v":933404.3126860487,"d":"$933,404"}},{"$f":"'Trial 2'!BP36","v":{"v":932804.7869076616,"d":"$932,805"}},{"$f":"'Trial 2'!BQ36","v":{"v":932295.8491760393,"d":"$932,296"}},{"$f":"'Trial 2'!BR36","v":{"v":931910.9537734614,"d":"$931,911"}},{"$f":"'Trial 2'!BS36","v":{"v":931550.0897687263,"d":"$931,550"}},{"$f":"'Trial 2'!BT36","v":{"v":931012.8797482699,"d":"$931,013"}},{"$f":"'Trial 2'!BU36","v":{"v":930583.8173667107,"d":"$930,584"}},{"$f":"'Trial 2'!BV36","v":{"v":930063.7736189765,"d":"$930,064"}},{"$f":"'Trial 2'!BW36","v":{"v":929714.9310608037,"d":"$929,715"}},{"$f":"'Trial 2'!BX36","v":{"v":929286.1216979736,"d":"$929,286"}},{"$f":"'Trial 2'!BY36","v":{"v":928716.2140872597,"d":"$928,716"}},{"$f":"'Trial 2'!BZ36","v":{"v":928427.3637691169,"d":"$928,427"}},{"$f":"SUM('Trial 2'!BO36:BZ36)","v":{"v":11169771.09366105,"d":"$11,169,771"}},{"$f":"'Trial 2'!CB36","v":{"v":928019.8280236901,"d":"$928,020"}},{"$f":"'Trial 2'!CC36","v":{"v":927694.6258975798,"d":"$927,695"}},{"$f":"'Trial 2'!CD36","v":{"v":927263.6087581515,"d":"$927,264"}},{"$f":"'Trial 2'!CE36","v":{"v":926811.8857260116,"d":"$926,812"}},{"$f":"'Trial 2'!CF36","v":{"v":926444.5019668295,"d":"$926,445"}},{"$f":"'Trial 2'!CG36","v":{"v":926066.3034167086,"d":"$926,066"}},{"$f":"'Trial 2'!CH36","v":{"v":925653.7045672309,"d":"$925,654"}},{"$f":"'Trial 2'!CI36","v":{"v":925247.8192040181,"d":"$925,248"}},{"$f":"'Trial 2'!CJ36","v":{"v":924917.2262268285,"d":"$924,917"}},{"$f":"'Trial 2'!CK36","v":{"v":924479.6632272837,"d":"$924,480"}},{"$f":"'Trial 2'!CL36","v":{"v":923967.6573638215,"d":"$923,968"}},{"$f":"'Trial 2'!CM36","v":{"v":923440.602157959,"d":"$923,441"}},{"$f":"SUM('Trial 2'!CB36:CM36)","v":{"v":11110007.426536115,"d":"$11,110,007"}},{"$f":"'Trial 2'!CO36","v":{"v":923056.4187417031,"d":"$923,056"}},{"$f":"'Trial 2'!CP36","v":{"v":922547.8725648221,"d":"$922,548"}},{"$f":"'Trial 2'!CQ36","v":{"v":922103.8373395571,"d":"$922,104"}},{"$f":"'Trial 2'!CR36","v":{"v":921709.6991380259,"d":"$921,710"}},{"$f":"'Trial 2'!CS36","v":{"v":921217.134201002,"d":"$921,217"}},{"$f":"'Trial 2'!CT36","v":{"v":920834.7834211456,"d":"$920,835"}},{"$f":"'Trial 2'!CU36","v":{"v":920268.8759344483,"d":"$920,269"}},{"$f":"'Trial 2'!CV36","v":{"v":919972.3181085947,"d":"$919,972"}},{"$f":"'Trial 2'!CW36","v":{"v":919435.214448257,"d":"$919,435"}},{"$f":"'Trial 2'!CX36","v":{"v":919095.2795701382,"d":"$919,095"}},{"$f":"'Trial 2'!CY36","v":{"v":918633.6301084027,"d":"$918,634"}},{"$f":"'Trial 2'!CZ36","v":{"v":918202.9019662397,"d":"$918,203"}},{"$f":"SUM('Trial 2'!CO36:CZ36)","v":{"v":11047077.965542339,"d":"$11,047,078"}},{"$f":"'Trial 2'!DB36","v":{"v":917748.952436803,"d":"$917,749"}},{"$f":"'Trial 2'!DC36","v":{"v":917292.3011249434,"d":"$917,292"}},{"$f":"'Trial 2'!DD36","v":{"v":916877.0512274222,"d":"$916,877"}},{"$f":"'Trial 2'!DE36","v":{"v":916429.2055763649,"d":"$916,429"}},{"$f":"'Trial 2'!DF36","v":{"v":916032.5121322678,"d":"$916,033"}},{"$f":"'Trial 2'!DG36","v":{"v":915699.6891456035,"d":"$915,700"}},{"$f":"'Trial 2'!DH36","v":{"v":915229.0113512139,"d":"$915,229"}},{"$f":"'Trial 2'!DI36","v":{"v":914779.7395436756,"d":"$914,780"}},{"$f":"'Trial 2'!DJ36","v":{"v":914343.591569539,"d":"$914,344"}},{"$f":"'Trial 2'!DK36","v":{"v":913999.3412067749,"d":"$913,999"}},{"$f":"'Trial 2'!DL36","v":{"v":913544.5080642068,"d":"$913,545"}},{"$f":"'Trial 2'!DM36","v":{"v":913071.0800504243,"d":"$913,071"}},{"$f":"SUM('Trial 2'!DB36:DM36)","v":{"v":10985046.983429238,"d":"$10,985,047"}},{"$f":"'Trial 2'!DO36","v":{"v":912494.5879686367,"d":"$912,495"}},{"$f":"'Trial 2'!DP36","v":{"v":912083.7504797181,"d":"$912,084"}},{"$f":"'Trial 2'!DQ36","v":{"v":911486.312580765,"d":"$911,486"}},{"$f":"'Trial 2'!DR36","v":{"v":911033.7899340949,"d":"$911,034"}},{"$f":"'Trial 2'!DS36","v":{"v":910583.8758924904,"d":"$910,584"}},{"$f":"'Trial 2'!DT36","v":{"v":910067.4933755429,"d":"$910,067"}},{"$f":"'Trial 2'!DU36","v":{"v":909642.1944864173,"d":"$909,642"}},{"$f":"'Trial 2'!DV36","v":{"v":909240.9741442996,"d":"$909,241"}},{"$f":"'Trial 2'!DW36","v":{"v":908764.2957477089,"d":"$908,764"}},{"$f":"'Trial 2'!DX36","v":{"v":908260.4502402031,"d":"$908,260"}},{"$f":"'Trial 2'!DY36","v":{"v":907870.7837946449,"d":"$907,871"}},{"$f":"'Trial 2'!DZ36","v":{"v":907417.7996717186,"d":"$907,418"}},{"$f":"SUM('Trial 2'!DO36:DZ36)","v":{"v":10918946.30831624,"d":"$10,918,946"}},{"$f":"'Trial 2'!EB36","v":{"v":906916.0414390186,"d":"$906,916"}},{"$f":"'Trial 2'!EC36","v":{"v":906546.1671680035,"d":"$906,546"}},{"$f":"'Trial 2'!ED36","v":{"v":906106.9642596828,"d":"$906,107"}},{"$f":"'Trial 2'!EE36","v":{"v":905474.2848548571,"d":"$905,474"}},{"$f":"'Trial 2'!EF36","v":{"v":905116.2041199874,"d":"$905,116"}},{"$f":"'Trial 2'!EG36","v":{"v":904796.6180019708,"d":"$904,797"}},{"$f":"'Trial 2'!EH36","v":{"v":904289.9192871936,"d":"$904,290"}},{"$f":"'Trial 2'!EI36","v":{"v":903856.0997774393,"d":"$903,856"}},{"$f":"'Trial 2'!EJ36","v":{"v":903368.781357152,"d":"$903,369"}},{"$f":"'Trial 2'!EK36","v":{"v":902952.7436372978,"d":"$902,953"}},{"$f":"'Trial 2'!EL36","v":{"v":902459.6243298395,"d":"$902,460"}},{"$f":"'Trial 2'!EM36","v":{"v":902095.0309087725,"d":"$902,095"}},{"$f":"SUM('Trial 2'!EB36:EM36)","v":{"v":10853978.479141215,"d":"$10,853,978"}}]
[{"$f":"Labels!B98","v":"Trial 03"},{"$f":"'Trial 3'!B36","v":{"v":963388.6810828955,"d":"$963,389"}},{"$f":"'Trial 3'!C36","v":{"v":962650.0576522764,"d":"$962,650"}},{"$f":"'Trial 3'!D36","v":{"v":962120.0104089021,"d":"$962,120"}},{"$f":"'Trial 3'!E36","v":{"v":961440.5646771473,"d":"$961,441"}},{"$f":"'Trial 3'!F36","v":{"v":960898.9255011125,"d":"$960,899"}},{"$f":"'Trial 3'!G36","v":{"v":960377.5758312527,"d":"$960,378"}},{"$f":"'Trial 3'!H36","v":{"v":959873.6981314364,"d":"$959,874"}},{"$f":"'Trial 3'!I36","v":{"v":959288.4595912547,"d":"$959,288"}},{"$f":"'Trial 3'!J36","v":{"v":958788.1395260411,"d":"$958,788"}},{"$f":"'Trial 3'!K36","v":{"v":958215.3588899716,"d":"$958,215"}},{"$f":"'Trial 3'!L36","v":{"v":957634.2564802354,"d":"$957,634"}},{"$f":"'Trial 3'!M36","v":{"v":957119.4156334867,"d":"$957,119"}},{"$f":"SUM('Trial 3'!B36:M36)","v":{"v":11521795.143406011,"d":"$11,521,795"}},{"$f":"'Trial 3'!O36","v":{"v":956534.6648122928,"d":"$956,535"}},{"$f":"'Trial 3'!P36","v":{"v":955997.3091334156,"d":"$955,997"}},{"$f":"'Trial 3'!Q36","v":{"v":955464.7211254669,"d":"$955,465"}},{"$f":"'Trial 3'!R36","v":{"v":954976.939980815,"d":"$954,977"}},{"$f":"'Trial 3'!S36","v":{"v":954546.278660914,"d":"$954,546"}},{"$f":"'Trial 3'!T36","v":{"v":954111.1365855507,"d":"$954,111"}},{"$f":"'Trial 3'!U36","v":{"v":953539.8672893665,"d":"$953,540"}},{"$f":"'Trial 3'!V36","v":{"v":952956.8718070297,"d":"$952,957"}},{"$f":"'Trial 3'!W36","v":{"v":952458.3010564011,"d":"$952,458"}},{"$f":"'Trial 3'!X36","v":{"v":951955.750175688,"d":"$951,956"}},{"$f":"'Trial 3'!Y36","v":{"v":951484.7969820335,"d":"$951,485"}},{"$f":"'Trial 3'!Z36","v":{"v":950879.9404473134,"d":"$950,880"}},{"$f":"SUM('Trial 3'!O36:Z36)","v":{"v":11444906.578056287,"d":"$11,444,907"}},{"$f":"'Trial 3'!AB36","v":{"v":950281.3897236864,"d":"$950,281"}},{"$f":"'Trial 3'!AC36","v":{"v":949882.547203194,"d":"$949,883"}},{"$f":"'Trial 3'!AD36","v":{"v":949405.5806663359,"d":"$949,406"}},{"$f":"'Trial 3'!AE36","v":{"v":948838.2664767933,"d":"$948,838"}},{"$f":"'Trial 3'!AF36","v":{"v":948424.4231355203,"d":"$948,424"}},{"$f":"'Trial 3'!AG36","v":{"v":947842.544030188,"d":"$947,843"}},{"$f":"'Trial 3'!AH36","v":{"v":947399.2089579761,"d":"$947,399"}},{"$f":"'Trial 3'!AI36","v":{"v":946874.5494832869,"d":"$946,875"}},{"$f":"'Trial 3'!AJ36","v":{"v":946376.9438153988,"d":"$946,377"}},{"$f":"'Trial 3'!AK36","v":{"v":945967.0560746888,"d":"$945,967"}},{"$f":"'Trial 3'!AL36","v":{"v":945519.1118167605,"d":"$945,519"}},{"$f":"'Trial 3'!AM36","v":{"v":944983.4402348619,"d":"$944,983"}},{"$f":"SUM('Trial 3'!AB36:AM36)","v":{"v":11371795.06161869,"d":"$11,371,795"}},{"$f":"'Trial 3'!AO36","v":{"v":944568.6256345666,"d":"$944,569"}},{"$f":"'Trial 3'!AP36","v":{"v":944116.4176647885,"d":"$944,116"}},{"$f":"'Trial 3'!AQ36","v":{"v":943736.0714117208,"d":"$943,736"}},{"$f":"'Trial 3'!AR36","v":{"v":943262.9426095712,"d":"$943,263"}},{"$f":"'Trial 3'!AS36","v":{"v":942833.5062422402,"d":"$942,834"}},{"$f":"'Trial 3'!AT36","v":{"v":942413.6456442992,"d":"$942,414"}},{"$f":"'Trial 3'!AU36","v":{"v":941942.2248910648,"d":"$941,942"}},{"$f":"'Trial 3'!AV36","v":{"v":941493.0219100132,"d":"$941,493"}},{"$f":"'Trial 3'!AW36","v":{"v":941111.9333633176,"d":"$941,112"}},{"$f":"'Trial 3'!AX36","v":{"v":940514.4289315472,"d":"$940,514"}},{"$f":"'Trial 3'!AY36","v":{"v":940197.7462932926,"d":"$940,198"}},{"$f":"'Trial 3'!AZ36","v":{"v":939666.7366931231,"d":"$939,667"}},{"$f":"SUM('Trial 3'!AO36:AZ36)","v":{"v":11305857.301289547,"d":"$11,305,857"}},{"$f":"'Trial 3'!BB36","v":{"v":939126.6819623524,"d":"$939,127"}},{"$f":"'Trial 3'!BC36","v":{"v":938714.4658430016,"d":"$938,714"}},{"$f":"'Trial 3'!BD36","v":{"v":938254.9529004368,"d":"$938,255"}},{"$f":"'Trial 3'!BE36","v":{"v":937859.2875139422,"d":"$937,859"}},{"$f":"'Trial 3'!BF36","v":{"v":937345.2992456952,"d":"$937,345"}},{"$f":"'Trial 3'!BG36","v":{"v":936933.6466636955,"d":"$936,934"}},{"$f":"'Trial 3'!BH36","v":{"v":936391.9297823564,"d":"$936,392"}},{"$f":"'Trial 3'!BI36","v":{"v":935971.386651053,"d":"$935,971"}},{"$f":"'Trial 3'!BJ36","v":{"v":935547.6010989068,"d":"$935,548"}},{"$f":"'Trial 3'!BK36","v":{"v":935043.8232159353,"d":"$935,044"}},{"$f":"'Trial 3'!BL36","v":{"v":934522.0702979083,"d":"$934,522"}},{"$f":"'Trial 3'!BM36","v":{"v":934143.9940796861,"d":"$934,144"}},{"$f":"SUM('Trial 3'!BB36:BM36)","v":{"v":11239855.13925497,"d":"$11,239,855"}},{"$f":"'Trial 3'!BO36","v":{"v":933624.0686545098,"d":"$933,624"}},{"$f":"'Trial 3'!BP36","v":{"v":933174.3929868472,"d":"$933,174"}},{"$f":"'Trial 3'!BQ36","v":{"v":932738.6372868262,"d":"$932,739"}},{"$f":"'Trial 3'!BR36","v":{"v":932235.1689889567,"d":"$932,235"}},{"$f":"'Trial 3'!BS36","v":{"v":931870.2980618695,"d":"$931,870"}},{"$f":"'Trial 3'!BT36","v":{"v":931486.229153024,"d":"$931,486"}},{"$f":"'Trial 3'!BU36","v":{"v":931057.0411404949,"d":"$931,057"}},{"$f":"'Trial 3'!BV36","v":{"v":930531.2654334203,"d":"$930,531"}},{"$f":"'Trial 3'!BW36","v":{"v":930051.7019940224,"d":"$930,052"}},{"$f":"'Trial 3'!BX36","v":{"v":929683.557495557,"d":"$929,684"}},{"$f":"'Trial 3'!BY36","v":{"v":929157.7552379713,"d":"$929,158"}},{"$f":"'Trial 3'!BZ36","v":{"v":928765.6293952494,"d":"$928,766"}},{"$f":"SUM('Trial 3'!BO36:BZ36)","v":{"v":11174375.74582875,"d":"$11,174,376"}},{"$f":"'Trial 3'!CB36","v":{"v":928246.7150645044,"d":"$928,247"}},{"$f":"'Trial 3'!CC36","v":{"v":927852.0014567489,"d":"$927,852"}},{"$f":"'Trial 3'!CD36","v":{"v":927433.8155175728,"d":"$927,434"}},{"$f":"'Trial 3'!CE36","v":{"v":926936.9946291485,"d":"$926,937"}},{"$f":"'Trial 3'!CF36","v":{"v":926445.3756521338,"d":"$926,445"}},{"$f":"'Trial 3'!CG36","v":{"v":926031.6256331655,"d":"$926,032"}},{"$f":"'Trial 3'!CH36","v":{"v":925622.6668234656,"d":"$925,623"}},{"$f":"'Trial 3'!CI36","v":{"v":925184.7208462966,"d":"$925,185"}},{"$f":"'Trial 3'!CJ36","v":{"v":924878.5014212535,"d":"$924,879"}},{"$f":"'Trial 3'!CK36","v":{"v":924438.831981445,"d":"$924,439"}},{"$f":"'Trial 3'!CL36","v":{"v":924049.950481577,"d":"$924,050"}},{"$f":"'Trial 3'!CM36","v":{"v":923623.991932481,"d":"$923,624"}},{"$f":"SUM('Trial 3'!CB36:CM36)","v":{"v":11110745.191439793,"d":"$11,110,745"}},{"$f":"'Trial 3'!CO36","v":{"v":923232.8690599436,"d":"$923,233"}},{"$f":"'Trial 3'!CP36","v":{"v":922745.9728942737,"d":"$922,746"}},{"$f":"'Trial 3'!CQ36","v":{"v":922339.3905521914,"d":"$922,339"}},{"$f":"'Trial 3'!CR36","v":{"v":921880.6115621426,"d":"$921,881"}},{"$f":"'Trial 3'!CS36","v":{"v":921403.6759082571,"d":"$921,404"}},{"$f":"'Trial 3'!CT36","v":{"v":920963.4897011708,"d":"$920,963"}},{"$f":"'Trial 3'!CU36","v":{"v":920622.2848780289,"d":"$920,622"}},{"$f":"'Trial 3'!CV36","v":{"v":920195.7310025244,"d":"$920,196"}},{"$f":"'Trial 3'!CW36","v":{"v":919769.0094177587,"d":"$919,769"}},{"$f":"'Trial 3'!CX36","v":{"v":919222.7488759153,"d":"$919,223"}},{"$f":"'Trial 3'!CY36","v":{"v":918889.4888529093,"d":"$918,889"}},{"$f":"'Trial 3'!CZ36","v":{"v":918465.4314458425,"d":"$918,465"}},{"$f":"SUM('Trial 3'!CO36:CZ36)","v":{"v":11049730.704150958,"d":"$11,049,731"}},{"$f":"'Trial 3'!DB36","v":{"v":918142.0622543928,"d":"$918,142"}},{"$f":"'Trial 3'!DC36","v":{"v":917635.7496148043,"d":"$917,636"}},{"$f":"'Trial 3'!DD36","v":{"v":917010.5191585278,"d":"$917,011"}},{"$f":"'Trial 3'!DE36","v":{"v":916552.7479006567,"d":"$916,553"}},{"$f":"'Trial 3'!DF36","v":{"v":916121.6755368816,"d":"$916,122"}},{"$f":"'Trial 3'!DG36","v":{"v":915674.4197910925,"d":"$915,674"}},{"$f":"'Trial 3'!DH36","v":{"v":915247.6471368173,"d":"$915,248"}},{"$f":"'Trial 3'!DI36","v":{"v":914882.3511269343,"d":"$914,882"}},{"$f":"'Trial 3'!DJ36","v":{"v":914492.531536362,"d":"$914,493"}},{"$f":"'Trial 3'!DK36","v":{"v":914092.1899991815,"d":"$914,092"}},{"$f":"'Trial 3'!DL36","v":{"v":913673.787388893,"d":"$913,674"}},{"$f":"'Trial 3'!DM36","v":{"v":913217.5474368857,"d":"$913,218"}},{"$f":"SUM('Trial 3'!DB36:DM36)","v":{"v":10986743.228881428,"d":"$10,986,743"}},{"$f":"'Trial 3'!DO36","v":{"v":912803.3512708812,"d":"$912,803"}},{"$f":"'Trial 3'!DP36","v":{"v":912462.5892521179,"d":"$912,463"}},{"$f":"'Trial 3'!DQ36","v":{"v":912127.9985114073,"d":"$912,128"}},{"$f":"'Trial 3'!DR36","v":{"v":911818.5656893105,"d":"$911,819"}},{"$f":"'Trial 3'!DS36","v":{"v":911358.2294938079,"d":"$911,358"}},{"$f":"'Trial 3'!DT36","v":{"v":910908.9862138912,"d":"$910,909"}},{"$f":"'Trial 3'!DU36","v":{"v":910518.4723926774,"d":"$910,518"}},{"$f":"'Trial 3'!DV36","v":{"v":910097.1517414835,"d":"$910,097"}},{"$f":"'Trial 3'!DW36","v":{"v":909617.9042597696,"d":"$909,618"}},{"$f":"'Trial 3'!DX36","v":{"v":909312.1377116841,"d":"$909,312"}},{"$f":"'Trial 3'!DY36","v":{"v":908867.9126486317,"d":"$908,868"}},{"$f":"'Trial 3'!DZ36","v":{"v":908472.3599916234,"d":"$908,472"}},{"$f":"SUM('Trial 3'!DO36:DZ36)","v":{"v":10928365.659177283,"d":"$10,928,366"}},{"$f":"'Trial 3'!EB36","v":{"v":907950.1177888962,"d":"$907,950"}},{"$f":"'Trial 3'!EC36","v":{"v":907551.3000585333,"d":"$907,551"}},{"$f":"'Trial 3'!ED36","v":{"v":907147.6420686741,"d":"$907,148"}},{"$f":"'Trial 3'!EE36","v":{"v":906671.9164210103,"d":"$906,672"}},{"$f":"'Trial 3'!EF36","v":{"v":906229.5199026243,"d":"$906,230"}},{"$f":"'Trial 3'!EG36","v":{"v":905752.4597234499,"d":"$905,752"}},{"$f":"'Trial 3'!EH36","v":{"v":905331.3133325896,"d":"$905,331"}},{"$f":"'Trial 3'!EI36","v":{"v":904865.7689571017,"d":"$904,866"}},{"$f":"'Trial 3'!EJ36","v":{"v":904264.6276110068,"d":"$904,265"}},{"$f":"'Trial 3'!EK36","v":{"v":903693.3097013861,"d":"$903,693"}},{"$f":"'Trial 3'!EL36","v":{"v":903326.191269965,"d":"$903,326"}},{"$f":"'Trial 3'!EM36","v":{"v":902905.4832626862,"d":"$902,905"}},{"$f":"SUM('Trial 3'!EB36:EM36)","v":{"v":10865689.650097923,"d":"$10,865,690"}}]
[{"$f":"Labels!B99","v":"Trial 04"},{"$f":"'Trial 4'!B36","v":{"v":963388.6810828955,"d":"$963,389"}},{"$f":"'Trial 4'!C36","v":{"v":962804.6544926534,"d":"$962,805"}},{"$f":"'Trial 4'!D36","v":{"v":962249.8602459532,"d":"$962,250"}},{"$f":"'Trial 4'!E36","v":{"v":961649.8253659426,"d":"$961,650"}},{"$f":"'Trial 4'!F36","v":{"v":961035.7422967289,"d":"$961,036"}},{"$f":"'Trial 4'!G36","v":{"v":960484.9990895931,"d":"$960,485"}},{"$f":"'Trial 4'!H36","v":{"v":960056.6125876381,"d":"$960,057"}},{"$f":"'Trial 4'!I36","v":{"v":959446.1162063176,"d":"$959,446"}},{"$f":"'Trial 4'!J36","v":{"v":958857.3636225142,"d":"$958,857"}},{"$f":"'Trial 4'!K36","v":{"v":958267.7772562433,"d":"$958,268"}},{"$f":"'Trial 4'!L36","v":{"v":957685.0202910928,"d":"$957,685"}},{"$f":"'Trial 4'!M36","v":{"v":957131.8953206112,"d":"$957,132"}},{"$f":"SUM('Trial 4'!B36:M36)","v":{"v":11523058.547858184,"d":"$11,523,059"}},{"$f":"'Trial 4'!O36","v":{"v":956488.8535934938,"d":"$956,489"}},{"$f":"'Trial 4'!P36","v":{"v":956001.0819954006,"d":"$956,001"}},{"$f":"'Trial 4'!Q36","v":{"v":955495.4437249107,"d":"$955,495"}},{"$f":"'Trial 4'!R36","v":{"v":955105.8423023564,"d":"$955,106"}},{"$f":"'Trial 4'!S36","v":{"v":954664.2909412159,"d":"$954,664"}},{"$f":"'Trial 4'!T36","v":{"v":954108.766224434,"d":"$954,109"}},{"$f":"'Trial 4'!U36","v":{"v":953529.0354213989,"d":"$953,529"}},{"$f":"'Trial 4'!V36","v":{"v":953022.6264557977,"d":"$953,023"}},{"$f":"'Trial 4'!W36","v":{"v":952514.5568323729,"d":"$952,515"}},{"$f":"'Trial 4'!X36","v":{"v":952121.7437757592,"d":"$952,122"}},{"$f":"'Trial 4'!Y36","v":{"v":951645.9168678765,"d":"$951,646"}},{"$f":"'Trial 4'!Z36","v":{"v":950979.5856575524,"d":"$950,980"}},{"$f":"SUM('Trial 4'!O36:Z36)","v":{"v":11445677.743792567,"d":"$11,445,678"}},{"$f":"'Trial 4'!AB36","v":{"v":950447.8738848439,"d":"$950,448"}},{"$f":"'Trial 4'!AC36","v":{"v":949933.511298958,"d":"$949,934"}},{"$f":"'Trial 4'!AD36","v":{"v":949468.7620848862,"d":"$949,469"}},{"$f":"'Trial 4'!AE36","v":{"v":948953.0589088434,"d":"$948,953"}},{"$f":"'Trial 4'!AF36","v":{"v":948327.6734661983,"d":"$948,328"}},{"$f":"'Trial 4'!AG36","v":{"v":947846.0846123031,"d":"$947,846"}},{"$f":"'Trial 4'!AH36","v":{"v":947480.8650228181,"d":"$947,481"}},{"$f":"'Trial 4'!AI36","v":{"v":947084.2350095483,"d":"$947,084"}},{"$f":"'Trial 4'!AJ36","v":{"v":946568.7323824493,"d":"$946,569"}},{"$f":"'Trial 4'!AK36","v":{"v":945978.3693504694,"d":"$945,978"}},{"$f":"'Trial 4'!AL36","v":{"v":945525.9004761769,"d":"$945,526"}},{"$f":"'Trial 4'!AM36","v":{"v":945019.8047667878,"d":"$945,020"}},{"$f":"SUM('Trial 4'!AB36:AM36)","v":{"v":11372634.87126428,"d":"$11,372,635"}},{"$f":"'Trial 4'!AO36","v":{"v":944505.1711164376,"d":"$944,505"}},{"$f":"'Trial 4'!AP36","v":{"v":944002.8126263012,"d":"$944,003"}},{"$f":"'Trial 4'!AQ36","v":{"v":943524.0079399564,"d":"$943,524"}},{"$f":"'Trial 4'!AR36","v":{"v":943024.849226998,"d":"$943,025"}},{"$f":"'Trial 4'!AS36","v":{"v":942442.272111134,"d":"$942,442"}},{"$f":"'Trial 4'!AT36","v":{"v":941943.7305844619,"d":"$941,944"}},{"$f":"'Trial 4'!AU36","v":{"v":941469.5067137855,"d":"$941,470"}},{"$f":"'Trial 4'!AV36","v":{"v":941049.4078192458,"d":"$941,049"}},{"$f":"'Trial 4'!AW36","v":{"v":940611.6772601145,"d":"$940,612"}},{"$f":"'Trial 4'!AX36","v":{"v":940181.2484721782,"d":"$940,181"}},{"$f":"'Trial 4'!AY36","v":{"v":939634.0643647715,"d":"$939,634"}},{"$f":"'Trial 4'!AZ36","v":{"v":939133.4431791805,"d":"$939,133"}},{"$f":"SUM('Trial 4'!AO36:AZ36)","v":{"v":11301522.191414567,"d":"$11,301,522"}},{"$f":"'Trial 4'!BB36","v":{"v":938575.6044239532,"d":"$938,576"}},{"$f":"'Trial 4'!BC36","v":{"v":938277.0661386045,"d":"$938,277"}},{"$f":"'Trial 4'!BD36","v":{"v":937910.0790593214,"d":"$937,910"}},{"$f":"'Trial 4'!BE36","v":{"v":937375.1379372166,"d":"$937,375"}},{"$f":"'Trial 4'!BF36","v":{"v":936910.6643519641,"d":"$936,911"}},{"$f":"'Trial 4'!BG36","v":{"v":936414.0093067589,"d":"$936,414"}},{"$f":"'Trial 4'!BH36","v":{"v":936050.6806163251,"d":"$936,051"}},{"$f":"'Trial 4'!BI36","v":{"v":935584.6880998417,"d":"$935,585"}},{"$f":"'Trial 4'!BJ36","v":{"v":935089.3196044812,"d":"$935,089"}},{"$f":"'Trial 4'!BK36","v":{"v":934550.0994712318,"d":"$934,550"}},{"$f":"'Trial 4'!BL36","v":{"v":934149.0153827191,"d":"$934,149"}},{"$f":"'Trial 4'!BM36","v":{"v":933733.5888646371,"d":"$933,734"}},{"$f":"SUM('Trial 4'!BB36:BM36)","v":{"v":11234619.953257054,"d":"$11,234,620"}},{"$f":"'Trial 4'!BO36","v":{"v":933367.0613879097,"d":"$933,367"}},{"$f":"'Trial 4'!BP36","v":{"v":932939.398412753,"d":"$932,939"}},{"$f":"'Trial 4'!BQ36","v":{"v":932564.4603409073,"d":"$932,564"}},{"$f":"'Trial 4'!BR36","v":{"v":932056.9926030025,"d":"$932,057"}},{"$f":"'Trial 4'!BS36","v":{"v":931631.2853627804,"d":"$931,631"}},{"$f":"'Trial 4'!BT36","v":{"v":931099.1191578576,"d":"$931,099"}},{"$f":"'Trial 4'!BU36","v":{"v":930721.2684597364,"d":"$930,721"}},{"$f":"'Trial 4'!BV36","v":{"v":930269.2573872068,"d":"$930,269"}},{"$f":"'Trial 4'!BW36","v":{"v":929728.3220323467,"d":"$929,728"}},{"$f":"'Trial 4'!BX36","v":{"v":929265.0356961846,"d":"$929,265"}},{"$f":"'Trial 4'!BY36","v":{"v":928941.1304299929,"d":"$928,941"}},{"$f":"'Trial 4'!BZ36","v":{"v":928485.7817688715,"d":"$928,486"}},{"$f":"SUM('Trial 4'!BO36:BZ36)","v":{"v":11171069.11303955,"d":"$11,171,069"}},{"$f":"'Trial 4'!CB36","v":{"v":928118.9956223599,"d":"$928,119"}},{"$f":"'Trial 4'!CC36","v":{"v":927630.7658614618,"d":"$927,631"}},{"$f":"'Trial 4'!CD36","v":{"v":927232.5195740862,"d":"$927,233"}},{"$f":"'Trial 4'!CE36","v":{"v":926772.6455799581,"d":"$926,773"}},{"$f":"'Trial 4'!CF36","v":{"v":926306.0291759036,"d":"$926,306"}},{"$f":"'Trial 4'!CG36","v":{"v":925870.6191217351,"d":"$925,871"}},{"$f":"'Trial 4'!CH36","v":{"v":925429.6952343886,"d":"$925,430"}},{"$f":"'Trial 4'!CI36","v":{"v":925053.4084961661,"d":"$925,053"}},{"$f":"'Trial 4'!CJ36","v":{"v":924677.1758384322,"d":"$924,677"}},{"$f":"'Trial 4'!CK36","v":{"v":924254.7368391936,"d":"$924,255"}},{"$f":"'Trial 4'!CL36","v":{"v":923870.091763481,"d":"$923,870"}},{"$f":"'Trial 4'!CM36","v":{"v":923461.5861249886,"d":"$923,462"}},{"$f":"SUM('Trial 4'!CB36:CM36)","v":{"v":11108678.269232154,"d":"$11,108,678"}},{"$f":"'Trial 4'!CO36","v":{"v":922949.0364606191,"d":"$922,949"}},{"$f":"'Trial 4'!CP36","v":{"v":922626.5549561521,"d":"$922,627"}},{"$f":"'Trial 4'!CQ36","v":{"v":922229.0291929231,"d":"$922,229"}},{"$f":"'Trial 4'!CR36","v":{"v":921806.0311709681,"d":"$921,806"}},{"$f":"'Trial 4'!CS36","v":{"v":921375.3626199412,"d":"$921,375"}},{"$f":"'Trial 4'!CT36","v":{"v":920842.7465812247,"d":"$920,843"}},{"$f":"'Trial 4'!CU36","v":{"v":920297.2198464232,"d":"$920,297"}},{"$f":"'Trial 4'!CV36","v":{"v":919948.2965911581,"d":"$919,948"}},{"$f":"'Trial 4'!CW36","v":{"v":919576.9306720386,"d":"$919,577"}},{"$f":"'Trial 4'!CX36","v":{"v":919150.1283985896,"d":"$919,150"}},{"$f":"'Trial 4'!CY36","v":{"v":918652.153335139,"d":"$918,652"}},{"$f":"'Trial 4'!CZ36","v":{"v":918267.1838119432,"d":"$918,267"}},{"$f":"SUM('Trial 4'!CO36:CZ36)","v":{"v":11047720.67363712,"d":"$11,047,721"}},{"$f":"'Trial 4'!DB36","v":{"v":917876.953610302,"d":"$917,877"}},{"$f":"'Trial 4'!DC36","v":{"v":917381.252190674,"d":"$917,381"}},{"$f":"'Trial 4'!DD36","v":{"v":916954.201017334,"d":"$916,954"}},{"$f":"'Trial 4'!DE36","v":{"v":916564.4538719032,"d":"$916,564"}},{"$f":"'Trial 4'!DF36","v":{"v":916192.970911377,"d":"$916,193"}},{"$f":"'Trial 4'!DG36","v":{"v":915772.2111942722,"d":"$915,772"}},{"$f":"'Trial 4'!DH36","v":{"v":915287.9626978993,"d":"$915,288"}},{"$f":"'Trial 4'!DI36","v":{"v":914791.8393087372,"d":"$914,792"}},{"$f":"'Trial 4'!DJ36","v":{"v":914359.3894375601,"d":"$914,359"}},{"$f":"'Trial 4'!DK36","v":{"v":913795.6997140989,"d":"$913,796"}},{"$f":"'Trial 4'!DL36","v":{"v":913401.6777345365,"d":"$913,402"}},{"$f":"'Trial 4'!DM36","v":{"v":912970.158958406,"d":"$912,970"}},{"$f":"SUM('Trial 4'!DB36:DM36)","v":{"v":10985348.7706471,"d":"$10,985,349"}},{"$f":"'Trial 4'!DO36","v":{"v":912523.6988824412,"d":"$912,524"}},{"$f":"'Trial 4'!DP36","v":{"v":912157.5206314942,"d":"$912,158"}},{"$f":"'Trial 4'!DQ36","v":{"v":911862.1387577627,"d":"$911,862"}},{"$f":"'Trial 4'!DR36","v":{"v":911412.9226335875,"d":"$911,413"}},{"$f":"'Trial 4'!DS36","v":{"v":911052.1825627685,"d":"$911,052"}},{"$f":"'Trial 4'!DT36","v":{"v":910756.3106340589,"d":"$910,756"}},{"$f":"'Trial 4'!DU36","v":{"v":910289.2380129767,"d":"$910,289"}},{"$f":"'Trial 4'!DV36","v":{"v":909726.0314416786,"d":"$909,726"}},{"$f":"'Trial 4'!DW36","v":{"v":909273.3661415161,"d":"$909,273"}},{"$f":"'Trial 4'!DX36","v":{"v":908760.865427295,"d":"$908,761"}},{"$f":"'Trial 4'!DY36","v":{"v":908336.1319896933,"d":"$908,336"}},{"$f":"'Trial 4'!DZ36","v":{"v":907980.6013991451,"d":"$907,981"}},{"$f":"SUM('Trial 4'!DO36:DZ36)","v":{"v":10924131.00851442,"d":"$10,924,131"}},{"$f":"'Trial 4'!EB36","v":{"v":907603.2909642464,"d":"$907,603"}},{"$f":"'Trial 4'!EC36","v":{"v":907195.7299565694,"d":"$907,196"}},{"$f":"'Trial 4'!ED36","v":{"v":906693.8013576041,"d":"$906,694"}},{"$f":"'Trial 4'!EE36","v":{"v":906251.1669848715,"d":"$906,251"}},{"$f":"'Trial 4'!EF36","v":{"v":905869.1364502774,"d":"$905,869"}},{"$f":"'Trial 4'!EG36","v":{"v":905480.8401831938,"d":"$905,481"}},{"$f":"'Trial 4'!EH36","v":{"v":904936.3213136446,"d":"$904,936"}},{"$f":"'Trial 4'!EI36","v":{"v":904546.3450608136,"d":"$904,546"}},{"$f":"'Trial 4'!EJ36","v":{"v":904080.382908421,"d":"$904,080"}},{"$f":"'Trial 4'!EK36","v":{"v":903564.402346799,"d":"$903,564"}},{"$f":"'Trial 4'!EL36","v":{"v":903130.5814545306,"d":"$903,131"}},{"$f":"'Trial 4'!EM36","v":{"v":902614.487286462,"d":"$902,614"}},{"$f":"SUM('Trial 4'!EB36:EM36)","v":{"v":10861966.486267433,"d":"$10,861,966"}}]
[{"$f":"Labels!B100","v":"Trial 05"},{"$f":"'Trial 5'!B36","v":{"v":963388.6810828955,"d":"$963,389"}},{"$f":"'Trial 5'!C36","v":{"v":962700.6022936836,"d":"$962,701"}},{"$f":"'Trial 5'!D36","v":{"v":962015.6634031496,"d":"$962,016"}},{"$f":"'Trial 5'!E36","v":{"v":961512.4942596393,"d":"$961,512"}},{"$f":"'Trial 5'!F36","v":{"v":960849.9068948143,"d":"$960,850"}},{"$f":"'Trial 5'!G36","v":{"v":960216.2296708537,"d":"$960,216"}},{"$f":"'Trial 5'!H36","v":{"v":959552.3065816177,"d":"$959,552"}},{"$f":"'Trial 5'!I36","v":{"v":959070.8564468963,"d":"$959,071"}},{"$f":"'Trial 5'!J36","v":{"v":958464.297829745,"d":"$958,464"}},{"$f":"'Trial 5'!K36","v":{"v":958008.427058973,"d":"$958,008"}},{"$f":"'Trial 5'!L36","v":{"v":957406.9298410141,"d":"$957,407"}},{"$f":"'Trial 5'!M36","v":{"v":956910.7841796183,"d":"$956,911"}},{"$f":"SUM('Trial 5'!B36:M36)","v":{"v":11520097.1795429,"d":"$11,520,097"}},{"$f":"'Trial 5'!O36","v":{"v":956368.4853429924,"d":"$956,368"}},{"$f":"'Trial 5'!P36","v":{"v":955792.648518561,"d":"$955,793"}},{"$f":"'Trial 5'!Q36","v":{"v":955263.7187716143,"d":"$955,264"}},{"$f":"'Trial 5'!R36","v":{"v":954733.3105707288,"d":"$954,733"}},{"$f":"'Trial 5'!S36","v":{"v":954161.3152064335,"d":"$954,161"}},{"$f":"'Trial 5'!T36","v":{"v":953527.6526481904,"d":"$953,528"}},{"$f":"'Trial 5'!U36","v":{"v":953193.5560589031,"d":"$953,194"}},{"$f":"'Trial 5'!V36","v":{"v":952749.8996657629,"d":"$952,750"}},{"$f":"'Trial 5'!W36","v":{"v":952189.8654776287,"d":"$952,190"}},{"$f":"'Trial 5'!X36","v":{"v":951702.6884707056,"d":"$951,703"}},{"$f":"'Trial 5'!Y36","v":{"v":951134.6452914288,"d":"$951,135"}},{"$f":"'Trial 5'!Z36","v":{"v":950754.230639432,"d":"$950,754"}},{"$f":"SUM('Trial 5'!O36:Z36)","v":{"v":11441572.016662382,"d":"$11,441,572"}},{"$f":"'Trial 5'!AB36","v":{"v":950186.3752784795,"d":"$950,186"}},{"$f":"'Trial 5'!AC36","v":{"v":949654.1733859753,"d":"$949,654"}},{"$f":"'Trial 5'!AD36","v":{"v":949186.351638372,"d":"$949,186"}},{"$f":"'Trial 5'!AE36","v":{"v":948846.6029852324,"d":"$948,847"}},{"$f":"'Trial 5'!AF36","v":{"v":948189.7762505856,"d":"$948,190"}},{"$f":"'Trial 5'!AG36","v":{"v":947558.3249515058,"d":"$947,558"}},{"$f":"'Trial 5'!AH36","v":{"v":947020.5114527503,"d":"$947,021"}},{"$f":"'Trial 5'!AI36","v":{"v":946617.0924649674,"d":"$946,617"}},{"$f":"'Trial 5'!AJ36","v":{"v":946067.5925639828,"d":"$946,068"}},{"$f":"'Trial 5'!AK36","v":{"v":945636.381069223,"d":"$945,636"}},{"$f":"'Trial 5'!AL36","v":{"v":945147.6431093795,"d":"$945,148"}},{"$f":"'Trial 5'!AM36","v":{"v":944700.1785522837,"d":"$944,700"}},{"$f":"SUM('Trial 5'!AB36:AM36)","v":{"v":11368811.003702737,"d":"$11,368,811"}},{"$f":"'Trial 5'!AO36","v":{"v":944146.2111566041,"d":"$944,146"}},{"$f":"'Trial 5'!AP36","v":{"v":943674.2716844958,"d":"$943,674"}},{"$f":"'Trial 5'!AQ36","v":{"v":943196.1111315098,"d":"$943,196"}},{"$f":"'Trial 5'!AR36","v":{"v":942664.4856937878,"d":"$942,664"}},{"$f":"'Trial 5'!AS36","v":{"v":942315.1512130636,"d":"$942,315"}},{"$f":"'Trial 5'!AT36","v":{"v":941860.1694163488,"d":"$941,860"}},{"$f":"'Trial 5'!AU36","v":{"v":941381.0506184736,"d":"$941,381"}},{"$f":"'Trial 5'!AV36","v":{"v":940978.4830684941,"d":"$940,978"}},{"$f":"'Trial 5'!AW36","v":{"v":940542.6632786277,"d":"$940,543"}},{"$f":"'Trial 5'!AX36","v":{"v":940008.0653541706,"d":"$940,008"}},{"$f":"'Trial 5'!AY36","v":{"v":939517.9952634374,"d":"$939,518"}},{"$f":"'Trial 5'!AZ36","v":{"v":939068.1347899165,"d":"$939,068"}},{"$f":"SUM('Trial 5'!AO36:AZ36)","v":{"v":11299352.792668927,"d":"$11,299,353"}},{"$f":"'Trial 5'!BB36","v":{"v":938644.406653749,"d":"$938,644"}},{"$f":"'Trial 5'!BC36","v":{"v":938087.7812370255,"d":"$938,088"}},{"$f":"'Trial 5'!BD36","v":{"v":937581.9771771593,"d":"$937,582"}},{"$f":"'Trial 5'!BE36","v":{"v":937109.726151408,"d":"$937,110"}},{"$f":"'Trial 5'!BF36","v":{"v":936751.5078832669,"d":"$936,752"}},{"$f":"'Trial 5'!BG36","v":{"v":936260.9318377407,"d":"$936,261"}},{"$f":"'Trial 5'!BH36","v":{"v":935764.8471597858,"d":"$935,765"}},{"$f":"'Trial 5'!BI36","v":{"v":935324.1049214152,"d":"$935,324"}},{"$f":"'Trial 5'!BJ36","v":{"v":934847.3566123834,"d":"$934,847"}},{"$f":"'Trial 5'!BK36","v":{"v":934477.3374656249,"d":"$934,477"}},{"$f":"'Trial 5'!BL36","v":{"v":934122.1656598256,"d":"$934,122"}},{"$f":"'Trial 5'!BM36","v":{"v":933699.9233426909,"d":"$933,700"}},{"$f":"SUM('Trial 5'!BB36:BM36)","v":{"v":11232672.066102078,"d":"$11,232,672"}},{"$f":"'Trial 5'!BO36","v":{"v":933297.2545806043,"d":"$933,297"}},{"$f":"'Trial 5'!BP36","v":{"v":932863.1528172103,"d":"$932,863"}},{"$f":"'Trial 5'!BQ36","v":{"v":932528.2070827683,"d":"$932,528"}},{"$f":"'Trial 5'!BR36","v":{"v":932137.4262882587,"d":"$932,137"}},{"$f":"'Trial 5'!BS36","v":{"v":931681.5775401191,"d":"$931,682"}},{"$f":"'Trial 5'!BT36","v":{"v":931209.1007474284,"d":"$931,209"}},{"$f":"'Trial 5'!BU36","v":{"v":930909.7288199271,"d":"$930,910"}},{"$f":"'Trial 5'!BV36","v":{"v":930456.8255890841,"d":"$930,457"}},{"$f":"'Trial 5'!BW36","v":{"v":929952.6259363503,"d":"$929,953"}},{"$f":"'Trial 5'!BX36","v":{"v":929518.946751397,"d":"$929,519"}},{"$f":"'Trial 5'!BY36","v":{"v":929073.5076885468,"d":"$929,074"}},{"$f":"'Trial 5'!BZ36","v":{"v":928752.2835096299,"d":"$928,752"}},{"$f":"SUM('Trial 5'!BO36:BZ36)","v":{"v":11172380.637351325,"d":"$11,172,381"}},{"$f":"'Trial 5'!CB36","v":{"v":928379.5911695614,"d":"$928,380"}},{"$f":"'Trial 5'!CC36","v":{"v":927973.7226130225,"d":"$927,974"}},{"$f":"'Trial 5'!CD36","v":{"v":927512.5529542399,"d":"$927,513"}},{"$f":"'Trial 5'!CE36","v":{"v":926977.6661872608,"d":"$926,978"}},{"$f":"'Trial 5'!CF36","v":{"v":926447.0691672094,"d":"$926,447"}},{"$f":"'Trial 5'!CG36","v":{"v":925993.0425878398,"d":"$925,993"}},{"$f":"'Trial 5'!CH36","v":{"v":925724.5566596094,"d":"$925,725"}},{"$f":"'Trial 5'!CI36","v":{"v":925316.6232338442,"d":"$925,317"}},{"$f":"'Trial 5'!CJ36","v":{"v":924851.0360288662,"d":"$924,851"}},{"$f":"'Trial 5'!CK36","v":{"v":924484.1594620679,"d":"$924,484"}},{"$f":"'Trial 5'!CL36","v":{"v":924138.6170225386,"d":"$924,139"}},{"$f":"'Trial 5'!CM36","v":{"v":923596.4356109194,"d":"$923,596"}},{"$f":"SUM('Trial 5'!CB36:CM36)","v":{"v":11111395.07269698,"d":"$11,111,395"}},{"$f":"'Trial 5'!CO36","v":{"v":923162.5199007749,"d":"$923,163"}},{"$f":"'Trial 5'!CP36","v":{"v":922708.1516583537,"d":"$922,708"}},{"$f":"'Trial 5'!CQ36","v":{"v":922176.3508945791,"d":"$922,176"}},{"$f":"'Trial 5'!CR36","v":{"v":921876.5720408612,"d":"$921,877"}},{"$f":"'Trial 5'!CS36","v":{"v":921396.4894409137,"d":"$921,396"}},{"$f":"'Trial 5'!CT36","v":{"v":920897.5247349358,"d":"$920,898"}},{"$f":"'Trial 5'!CU36","v":{"v":920422.1338275936,"d":"$920,422"}},{"$f":"'Trial 5'!CV36","v":{"v":920004.3625299855,"d":"$920,004"}},{"$f":"'Trial 5'!CW36","v":{"v":919509.3311156344,"d":"$919,509"}},{"$f":"'Trial 5'!CX36","v":{"v":919131.4893991508,"d":"$919,131"}},{"$f":"'Trial 5'!CY36","v":{"v":918593.0512103542,"d":"$918,593"}},{"$f":"'Trial 5'!CZ36","v":{"v":918145.5041492312,"d":"$918,146"}},{"$f":"SUM('Trial 5'!CO36:CZ36)","v":{"v":11048023.48090237,"d":"$11,048,023"}},{"$f":"'Trial 5'!DB36","v":{"v":917633.7042970771,"d":"$917,634"}},{"$f":"'Trial 5'!DC36","v":{"v":917240.8106705139,"d":"$917,241"}},{"$f":"'Trial 5'!DD36","v":{"v":916776.9614337016,"d":"$916,777"}},{"$f":"'Trial 5'!DE36","v":{"v":916294.6630870186,"d":"$916,295"}},{"$f":"'Trial 5'!DF36","v":{"v":915837.3707697988,"d":"$915,837"}},{"$f":"'Trial 5'!DG36","v":{"v":915418.22772706,"d":"$915,418"}},{"$f":"'Trial 5'!DH36","v":{"v":915025.7498229705,"d":"$915,026"}},{"$f":"'Trial 5'!DI36","v":{"v":914685.2085118555,"d":"$914,685"}},{"$f":"'Trial 5'!DJ36","v":{"v":914248.8501299997,"d":"$914,249"}},{"$f":"'Trial 5'!DK36","v":{"v":913716.3099482647,"d":"$913,716"}},{"$f":"'Trial 5'!DL36","v":{"v":913261.0328783687,"d":"$913,261"}},{"$f":"'Trial 5'!DM36","v":{"v":912664.3539025318,"d":"$912,664"}},{"$f":"SUM('Trial 5'!DB36:DM36)","v":{"v":10982803.243179163,"d":"$10,982,803"}},{"$f":"'Trial 5'!DO36","v":{"v":912233.8132819235,"d":"$912,234"}},{"$f":"'Trial 5'!DP36","v":{"v":911846.3565196038,"d":"$911,846"}},{"$f":"'Trial 5'!DQ36","v":{"v":911379.7171804728,"d":"$911,380"}},{"$f":"'Trial 5'!DR36","v":{"v":910961.2071097533,"d":"$910,961"}},{"$f":"'Trial 5'!DS36","v":{"v":910525.9918752515,"d":"$910,526"}},{"$f":"'Trial 5'!DT36","v":{"v":910063.7733416312,"d":"$910,064"}},{"$f":"'Trial 5'!DU36","v":{"v":909715.2648882988,"d":"$909,715"}},{"$f":"'Trial 5'!DV36","v":{"v":909234.8036655614,"d":"$909,235"}},{"$f":"'Trial 5'!DW36","v":{"v":908793.2897730257,"d":"$908,793"}},{"$f":"'Trial 5'!DX36","v":{"v":908422.2994022411,"d":"$908,422"}},{"$f":"'Trial 5'!DY36","v":{"v":907922.3544212165,"d":"$907,922"}},{"$f":"'Trial 5'!DZ36","v":{"v":907402.3168751047,"d":"$907,402"}},{"$f":"SUM('Trial 5'!DO36:DZ36)","v":{"v":10918501.188334085,"d":"$10,918,501"}},{"$f":"'Trial 5'!EB36","v":{"v":906885.7274635521,"d":"$906,886"}},{"$f":"'Trial 5'!EC36","v":{"v":906437.5589586456,"d":"$906,438"}},{"$f":"'Trial 5'!ED36","v":{"v":906144.9776036246,"d":"$906,145"}},{"$f":"'Trial 5'!EE36","v":{"v":905622.1642366644,"d":"$905,622"}},{"$f":"'Trial 5'!EF36","v":{"v":905122.5593348505,"d":"$905,123"}},{"$f":"'Trial 5'!EG36","v":{"v":904676.5281033026,"d":"$904,677"}},{"$f":"'Trial 5'!EH36","v":{"v":904278.315940824,"d":"$904,278"}},{"$f":"'Trial 5'!EI36","v":{"v":903771.2953472706,"d":"$903,771"}},{"$f":"'Trial 5'!EJ36","v":{"v":903180.3027357662,"d":"$903,180"}},{"$f":"'Trial 5'!EK36","v":{"v":902752.1842519122,"d":"$902,752"}},{"$f":"'Trial 5'!EL36","v":{"v":902271.8336707127,"d":"$902,272"}},{"$f":"'Trial 5'!EM36","v":{"v":901837.9016507687,"d":"$901,838"}},{"$f":"SUM('Trial 5'!EB36:EM36)","v":{"v":10852981.349297896,"d":"$10,852,981"}}]
[{"$f":"Labels!B101","v":"Trial 06"},{"$f":"'Trial 6'!B36","v":{"v":963388.6810828955,"d":"$963,389"}},{"$f":"'Trial 6'!C36","v":{"v":962791.9126480368,"d":"$962,792"}},{"$f":"'Trial 6'!D36","v":{"v":962007.8226340746,"d":"$962,008"}},{"$f":"'Trial 6'!E36","v":{"v":961510.4672264865,"d":"$961,510"}},{"$f":"'Trial 6'!F36","v":{"v":961019.3064957027,"d":"$961,019"}},{"$f":"'Trial 6'!G36","v":{"v":960386.5383132559,"d":"$960,387"}},{"$f":"'Trial 6'!H36","v":{"v":959787.4324490164,"d":"$959,787"}},{"$f":"'Trial 6'!I36","v":{"v":959167.5669903891,"d":"$959,168"}},{"$f":"'Trial 6'!J36","v":{"v":958629.3823242509,"d":"$958,629"}},{"$f":"'Trial 6'!K36","v":{"v":958200.7317911416,"d":"$958,201"}},{"$f":"'Trial 6'!L36","v":{"v":957622.396067121,"d":"$957,622"}},{"$f":"'Trial 6'!M36","v":{"v":957189.2043106309,"d":"$957,189"}},{"$f":"SUM('Trial 6'!B36:M36)","v":{"v":11521701.442333004,"d":"$11,521,701"}},{"$f":"'Trial 6'!O36","v":{"v":956552.6937752677,"d":"$956,553"}},{"$f":"'Trial 6'!P36","v":{"v":956027.0331871812,"d":"$956,027"}},{"$f":"'Trial 6'!Q36","v":{"v":955487.7195253981,"d":"$955,488"}},{"$f":"'Trial 6'!R36","v":{"v":955124.3139891367,"d":"$955,124"}},{"$f":"'Trial 6'!S36","v":{"v":954583.7224515688,"d":"$954,584"}},{"$f":"'Trial 6'!T36","v":{"v":953958.7049017793,"d":"$953,959"}},{"$f":"'Trial 6'!U36","v":{"v":953492.7614790577,"d":"$953,493"}},{"$f":"'Trial 6'!V36","v":{"v":952978.6636521207,"d":"$952,979"}},{"$f":"'Trial 6'!W36","v":{"v":952450.6282171033,"d":"$952,451"}},{"$f":"'Trial 6'!X36","v":{"v":951951.9575109516,"d":"$951,952"}},{"$f":"'Trial 6'!Y36","v":{"v":951463.0243266366,"d":"$951,463"}},{"$f":"'Trial 6'!Z36","v":{"v":950978.8413603884,"d":"$950,979"}},{"$f":"SUM('Trial 6'!O36:Z36)","v":{"v":11445050.06437659,"d":"$11,445,050"}},{"$f":"'Trial 6'!AB36","v":{"v":950463.2847050914,"d":"$950,463"}},{"$f":"'Trial 6'!AC36","v":{"v":949913.2182508791,"d":"$949,913"}},{"$f":"'Trial 6'!AD36","v":{"v":949417.6811554756,"d":"$949,418"}},{"$f":"'Trial 6'!AE36","v":{"v":949072.5584566889,"d":"$949,073"}},{"$f":"'Trial 6'!AF36","v":{"v":948588.2769461462,"d":"$948,588"}},{"$f":"'Trial 6'!AG36","v":{"v":948249.311429457,"d":"$948,249"}},{"$f":"'Trial 6'!AH36","v":{"v":947833.1048198724,"d":"$947,833"}},{"$f":"'Trial 6'!AI36","v":{"v":947415.936189045,"d":"$947,416"}},{"$f":"'Trial 6'!AJ36","v":{"v":946861.7454070394,"d":"$946,862"}},{"$f":"'Trial 6'!AK36","v":{"v":946426.6122338357,"d":"$946,427"}},{"$f":"'Trial 6'!AL36","v":{"v":945912.5066614897,"d":"$945,913"}},{"$f":"'Trial 6'!AM36","v":{"v":945407.6996007768,"d":"$945,408"}},{"$f":"SUM('Trial 6'!AB36:AM36)","v":{"v":11375561.935855798,"d":"$11,375,562"}},{"$f":"'Trial 6'!AO36","v":{"v":945003.0348987017,"d":"$945,003"}},{"$f":"'Trial 6'!AP36","v":{"v":944601.9719915703,"d":"$944,602"}},{"$f":"'Trial 6'!AQ36","v":{"v":944100.2941574795,"d":"$944,100"}},{"$f":"'Trial 6'!AR36","v":{"v":943611.7432548803,"d":"$943,612"}},{"$f":"'Trial 6'!AS36","v":{"v":943224.2981625755,"d":"$943,224"}},{"$f":"'Trial 6'!AT36","v":{"v":942699.2929918392,"d":"$942,699"}},{"$f":"'Trial 6'!AU36","v":{"v":942115.4806195832,"d":"$942,115"}},{"$f":"'Trial 6'!AV36","v":{"v":941585.5109479894,"d":"$941,586"}},{"$f":"'Trial 6'!AW36","v":{"v":941137.0769510722,"d":"$941,137"}},{"$f":"'Trial 6'!AX36","v":{"v":940606.3050120097,"d":"$940,606"}},{"$f":"'Trial 6'!AY36","v":{"v":940062.8034995259,"d":"$940,063"}},{"$f":"'Trial 6'!AZ36","v":{"v":939626.3229387854,"d":"$939,626"}},{"$f":"SUM('Trial 6'!AO36:AZ36)","v":{"v":11308374.135426013,"d":"$11,308,374"}},{"$f":"'Trial 6'!BB36","v":{"v":939347.8997720926,"d":"$939,348"}},{"$f":"'Trial 6'!BC36","v":{"v":938844.5470488529,"d":"$938,845"}},{"$f":"'Trial 6'!BD36","v":{"v":938338.8713925892,"d":"$938,339"}},{"$f":"'Trial 6'!BE36","v":{"v":937915.6925244826,"d":"$937,916"}},{"$f":"'Trial 6'!BF36","v":{"v":937416.7239107309,"d":"$937,417"}},{"$f":"'Trial 6'!BG36","v":{"v":936914.6561744405,"d":"$936,915"}},{"$f":"'Trial 6'!BH36","v":{"v":936449.3370569217,"d":"$936,449"}},{"$f":"'Trial 6'!BI36","v":{"v":936076.6129620337,"d":"$936,077"}},{"$f":"'Trial 6'!BJ36","v":{"v":935578.0774696347,"d":"$935,578"}},{"$f":"'Trial 6'!BK36","v":{"v":935258.1729345459,"d":"$935,258"}},{"$f":"'Trial 6'!BL36","v":{"v":934871.4313516734,"d":"$934,871"}},{"$f":"'Trial 6'!BM36","v":{"v":934378.5698266996,"d":"$934,379"}},{"$f":"SUM('Trial 6'!BB36:BM36)","v":{"v":11241390.592424696,"d":"$11,241,391"}},{"$f":"'Trial 6'!BO36","v":{"v":933928.5758869445,"d":"$933,929"}},{"$f":"'Trial 6'!BP36","v":{"v":933376.8483682319,"d":"$933,377"}},{"$f":"'Trial 6'!BQ36","v":{"v":932962.9343925684,"d":"$932,963"}},{"$f":"'Trial 6'!BR36","v":{"v":932480.7966746765,"d":"$932,481"}},{"$f":"'Trial 6'!BS36","v":{"v":931977.1122615847,"d":"$931,977"}},{"$f":"'Trial 6'!BT36","v":{"v":931479.0579265961,"d":"$931,479"}},{"$f":"'Trial 6'!BU36","v":{"v":931158.9654113137,"d":"$931,159"}},{"$f":"'Trial 6'!BV36","v":{"v":930705.2860268711,"d":"$930,705"}},{"$f":"'Trial 6'!BW36","v":{"v":930331.9109393961,"d":"$930,332"}},{"$f":"'Trial 6'!BX36","v":{"v":930000.060522635,"d":"$930,000"}},{"$f":"'Trial 6'!BY36","v":{"v":929484.386955374,"d":"$929,484"}},{"$f":"'Trial 6'!BZ36","v":{"v":929179.4818304054,"d":"$929,179"}},{"$f":"SUM('Trial 6'!BO36:BZ36)","v":{"v":11177065.417196598,"d":"$11,177,065"}},{"$f":"'Trial 6'!CB36","v":{"v":928791.4588723856,"d":"$928,791"}},{"$f":"'Trial 6'!CC36","v":{"v":928321.2294328773,"d":"$928,321"}},{"$f":"'Trial 6'!CD36","v":{"v":927860.3894010267,"d":"$927,860"}},{"$f":"'Trial 6'!CE36","v":{"v":927532.5131062313,"d":"$927,533"}},{"$f":"'Trial 6'!CF36","v":{"v":927070.1999172434,"d":"$927,070"}},{"$f":"'Trial 6'!CG36","v":{"v":926563.2296474185,"d":"$926,563"}},{"$f":"'Trial 6'!CH36","v":{"v":926208.4261739937,"d":"$926,208"}},{"$f":"'Trial 6'!CI36","v":{"v":925730.02994839,"d":"$925,730"}},{"$f":"'Trial 6'!CJ36","v":{"v":925402.6823776052,"d":"$925,403"}},{"$f":"'Trial 6'!CK36","v":{"v":924928.9482173248,"d":"$924,929"}},{"$f":"'Trial 6'!CL36","v":{"v":924569.5070923677,"d":"$924,570"}},{"$f":"'Trial 6'!CM36","v":{"v":924130.5791102446,"d":"$924,131"}},{"$f":"SUM('Trial 6'!CB36:CM36)","v":{"v":11117109.193297109,"d":"$11,117,109"}},{"$f":"'Trial 6'!CO36","v":{"v":923691.1491374893,"d":"$923,691"}},{"$f":"'Trial 6'!CP36","v":{"v":923278.0957566142,"d":"$923,278"}},{"$f":"'Trial 6'!CQ36","v":{"v":922817.6338615111,"d":"$922,818"}},{"$f":"'Trial 6'!CR36","v":{"v":922288.562283476,"d":"$922,289"}},{"$f":"'Trial 6'!CS36","v":{"v":921892.7160883854,"d":"$921,893"}},{"$f":"'Trial 6'!CT36","v":{"v":921425.2164147182,"d":"$921,425"}},{"$f":"'Trial 6'!CU36","v":{"v":920926.6378752234,"d":"$920,927"}},{"$f":"'Trial 6'!CV36","v":{"v":920627.0454045498,"d":"$920,627"}},{"$f":"'Trial 6'!CW36","v":{"v":920150.1187657636,"d":"$920,150"}},{"$f":"'Trial 6'!CX36","v":{"v":919776.7926711316,"d":"$919,777"}},{"$f":"'Trial 6'!CY36","v":{"v":919326.1626869134,"d":"$919,326"}},{"$f":"'Trial 6'!CZ36","v":{"v":918869.8046598821,"d":"$918,870"}},{"$f":"SUM('Trial 6'!CO36:CZ36)","v":{"v":11055069.93560566,"d":"$11,055,070"}},{"$f":"'Trial 6'!DB36","v":{"v":918496.119488774,"d":"$918,496"}},{"$f":"'Trial 6'!DC36","v":{"v":918101.4192038534,"d":"$918,101"}},{"$f":"'Trial 6'!DD36","v":{"v":917555.2887715638,"d":"$917,555"}},{"$f":"'Trial 6'!DE36","v":{"v":917075.3921430783,"d":"$917,075"}},{"$f":"'Trial 6'!DF36","v":{"v":916645.6521992905,"d":"$916,646"}},{"$f":"'Trial 6'!DG36","v":{"v":916088.9499488496,"d":"$916,089"}},{"$f":"'Trial 6'!DH36","v":{"v":915617.771866325,"d":"$915,618"}},{"$f":"'Trial 6'!DI36","v":{"v":915101.0270727671,"d":"$915,101"}},{"$f":"'Trial 6'!DJ36","v":{"v":914585.7357080061,"d":"$914,586"}},{"$f":"'Trial 6'!DK36","v":{"v":914037.1912215932,"d":"$914,037"}},{"$f":"'Trial 6'!DL36","v":{"v":913664.0905640052,"d":"$913,664"}},{"$f":"'Trial 6'!DM36","v":{"v":913131.9211971965,"d":"$913,132"}},{"$f":"SUM('Trial 6'!DB36:DM36)","v":{"v":10990100.559385302,"d":"$10,990,101"}},{"$f":"'Trial 6'!DO36","v":{"v":912672.0850612601,"d":"$912,672"}},{"$f":"'Trial 6'!DP36","v":{"v":912338.1799280866,"d":"$912,338"}},{"$f":"'Trial 6'!DQ36","v":{"v":911824.8550991026,"d":"$911,825"}},{"$f":"'Trial 6'!DR36","v":{"v":911375.4887375488,"d":"$911,375"}},{"$f":"'Trial 6'!DS36","v":{"v":910966.4956217635,"d":"$910,966"}},{"$f":"'Trial 6'!DT36","v":{"v":910542.6654007414,"d":"$910,543"}},{"$f":"'Trial 6'!DU36","v":{"v":910138.6193261154,"d":"$910,139"}},{"$f":"'Trial 6'!DV36","v":{"v":909825.5403346032,"d":"$909,826"}},{"$f":"'Trial 6'!DW36","v":{"v":909427.0132778523,"d":"$909,427"}},{"$f":"'Trial 6'!DX36","v":{"v":908985.6046519331,"d":"$908,986"}},{"$f":"'Trial 6'!DY36","v":{"v":908590.6013951588,"d":"$908,591"}},{"$f":"'Trial 6'!DZ36","v":{"v":908183.8692504023,"d":"$908,184"}},{"$f":"SUM('Trial 6'!DO36:DZ36)","v":{"v":10924871.018084567,"d":"$10,924,871"}},{"$f":"'Trial 6'!EB36","v":{"v":907700.8285822368,"d":"$907,701"}},{"$f":"'Trial 6'!EC36","v":{"v":907269.7643994269,"d":"$907,270"}},{"$f":"'Trial 6'!ED36","v":{"v":906869.626395431,"d":"$906,870"}},{"$f":"'Trial 6'!EE36","v":{"v":906426.7633692581,"d":"$906,427"}},{"$f":"'Trial 6'!EF36","v":{"v":906031.8777556254,"d":"$906,032"}},{"$f":"'Trial 6'!EG36","v":{"v":905538.6532942933,"d":"$905,539"}},{"$f":"'Trial 6'!EH36","v":{"v":905194.8596786786,"d":"$905,195"}},{"$f":"'Trial 6'!EI36","v":{"v":904706.2525909665,"d":"$904,706"}},{"$f":"'Trial 6'!EJ36","v":{"v":904319.1982239402,"d":"$904,319"}},{"$f":"'Trial 6'!EK36","v":{"v":904015.2803291851,"d":"$904,015"}},{"$f":"'Trial 6'!EL36","v":{"v":903690.2424860342,"d":"$903,690"}},{"$f":"'Trial 6'!EM36","v":{"v":903179.3705364728,"d":"$903,179"}},{"$f":"SUM('Trial 6'!EB36:EM36)","v":{"v":10864942.717641547,"d":"$10,864,943"}}]
[{"$f":"Labels!B102","v":"Trial 07"},{"$f":"'Trial 7'!B36","v":{"v":963388.6810828955,"d":"$963,389"}},{"$f":"'Trial 7'!C36","v":{"v":962790.6265712049,"d":"$962,791"}},{"$f":"'Trial 7'!D36","v":{"v":962319.2074846951,"d":"$962,319"}},{"$f":"'Trial 7'!E36","v":{"v":961700.702753347,"d":"$961,701"}},{"$f":"'Trial 7'!F36","v":{"v":961049.7371561106,"d":"$961,050"}},{"$f":"'Trial 7'!G36","v":{"v":960454.4987841595,"d":"$960,454"}},{"$f":"'Trial 7'!H36","v":{"v":959886.9967775007,"d":"$959,887"}},{"$f":"'Trial 7'!I36","v":{"v":959419.2970857798,"d":"$959,419"}},{"$f":"'Trial 7'!J36","v":{"v":958955.5048766944,"d":"$958,956"}},{"$f":"'Trial 7'!K36","v":{"v":958357.2627843333,"d":"$958,357"}},{"$f":"'Trial 7'!L36","v":{"v":957715.8854135725,"d":"$957,716"}},{"$f":"'Trial 7'!M36","v":{"v":957157.2346817856,"d":"$957,157"}},{"$f":"SUM('Trial 7'!B36:M36)","v":{"v":11523195.635452079,"d":"$11,523,196"}},{"$f":"'Trial 7'!O36","v":{"v":956615.9699364371,"d":"$956,616"}},{"$f":"'Trial 7'!P36","v":{"v":956084.6315941585,"d":"$956,085"}},{"$f":"'Trial 7'!Q36","v":{"v":955672.6775084726,"d":"$955,673"}},{"$f":"'Trial 7'!R36","v":{"v":955226.9874828123,"d":"$955,227"}},{"$f":"'Trial 7'!S36","v":{"v":954834.7363096296,"d":"$954,835"}},{"$f":"'Trial 7'!T36","v":{"v":954312.9910136622,"d":"$954,313"}},{"$f":"'Trial 7'!U36","v":{"v":953896.432755891,"d":"$953,896"}},{"$f":"'Trial 7'!V36","v":{"v":953352.5185743066,"d":"$953,353"}},{"$f":"'Trial 7'!W36","v":{"v":952932.816540128,"d":"$952,933"}},{"$f":"'Trial 7'!X36","v":{"v":952427.7426898706,"d":"$952,428"}},{"$f":"'Trial 7'!Y36","v":{"v":951944.250357737,"d":"$951,944"}},{"$f":"'Trial 7'!Z36","v":{"v":951481.8113359369,"d":"$951,482"}},{"$f":"SUM('Trial 7'!O36:Z36)","v":{"v":11448783.566099042,"d":"$11,448,784"}},{"$f":"'Trial 7'!AB36","v":{"v":950915.2867306557,"d":"$950,915"}},{"$f":"'Trial 7'!AC36","v":{"v":950304.6001495234,"d":"$950,305"}},{"$f":"'Trial 7'!AD36","v":{"v":949856.7846023553,"d":"$949,857"}},{"$f":"'Trial 7'!AE36","v":{"v":949431.9825590552,"d":"$949,432"}},{"$f":"'Trial 7'!AF36","v":{"v":949000.8662252008,"d":"$949,001"}},{"$f":"'Trial 7'!AG36","v":{"v":948566.0680335088,"d":"$948,566"}},{"$f":"'Trial 7'!AH36","v":{"v":948104.2456098952,"d":"$948,104"}},{"$f":"'Trial 7'!AI36","v":{"v":947647.6236196076,"d":"$947,648"}},{"$f":"'Trial 7'!AJ36","v":{"v":947052.0077356858,"d":"$947,052"}},{"$f":"'Trial 7'!AK36","v":{"v":946515.710869088,"d":"$946,516"}},{"$f":"'Trial 7'!AL36","v":{"v":946074.5076019324,"d":"$946,075"}},{"$f":"'Trial 7'!AM36","v":{"v":945623.8798564791,"d":"$945,624"}},{"$f":"SUM('Trial 7'!AB36:AM36)","v":{"v":11379093.563592987,"d":"$11,379,094"}},{"$f":"'Trial 7'!AO36","v":{"v":945070.1009732728,"d":"$945,070"}},{"$f":"'Trial 7'!AP36","v":{"v":944489.3598944347,"d":"$944,489"}},{"$f":"'Trial 7'!AQ36","v":{"v":943976.834113418,"d":"$943,977"}},{"$f":"'Trial 7'!AR36","v":{"v":943555.6449563006,"d":"$943,556"}},{"$f":"'Trial 7'!AS36","v":{"v":943074.9293365871,"d":"$943,075"}},{"$f":"'Trial 7'!AT36","v":{"v":942661.0996083983,"d":"$942,661"}},{"$f":"'Trial 7'!AU36","v":{"v":942093.9273545401,"d":"$942,094"}},{"$f":"'Trial 7'!AV36","v":{"v":941642.376022874,"d":"$941,642"}},{"$f":"'Trial 7'!AW36","v":{"v":941214.2523463304,"d":"$941,214"}},{"$f":"'Trial 7'!AX36","v":{"v":940764.7502755888,"d":"$940,765"}},{"$f":"'Trial 7'!AY36","v":{"v":940275.6980568105,"d":"$940,276"}},{"$f":"'Trial 7'!AZ36","v":{"v":939796.7294460115,"d":"$939,797"}},{"$f":"SUM('Trial 7'!AO36:AZ36)","v":{"v":11308615.702384567,"d":"$11,308,616"}},{"$f":"'Trial 7'!BB36","v":{"v":939284.719939588,"d":"$939,285"}},{"$f":"'Trial 7'!BC36","v":{"v":938790.7201266026,"d":"$938,791"}},{"$f":"'Trial 7'!BD36","v":{"v":938325.5889701165,"d":"$938,326"}},{"$f":"'Trial 7'!BE36","v":{"v":937974.733242278,"d":"$937,975"}},{"$f":"'Trial 7'!BF36","v":{"v":937504.9813697111,"d":"$937,505"}},{"$f":"'Trial 7'!BG36","v":{"v":937042.1650029852,"d":"$937,042"}},{"$f":"'Trial 7'!BH36","v":{"v":936648.7814616128,"d":"$936,649"}},{"$f":"'Trial 7'!BI36","v":{"v":936104.5028483433,"d":"$936,105"}},{"$f":"'Trial 7'!BJ36","v":{"v":935593.4552859255,"d":"$935,593"}},{"$f":"'Trial 7'!BK36","v":{"v":935135.902332326,"d":"$935,136"}},{"$f":"'Trial 7'!BL36","v":{"v":934656.5839366948,"d":"$934,657"}},{"$f":"'Trial 7'!BM36","v":{"v":934190.6981677403,"d":"$934,191"}},{"$f":"SUM('Trial 7'!BB36:BM36)","v":{"v":11241252.832683925,"d":"$11,241,253"}},{"$f":"'Trial 7'!BO36","v":{"v":933709.8525219851,"d":"$933,710"}},{"$f":"'Trial 7'!BP36","v":{"v":933185.5323433796,"d":"$933,186"}},{"$f":"'Trial 7'!BQ36","v":{"v":932626.7886998272,"d":"$932,627"}},{"$f":"'Trial 7'!BR36","v":{"v":932212.7882037711,"d":"$932,213"}},{"$f":"'Trial 7'!BS36","v":{"v":931883.0693357106,"d":"$931,883"}},{"$f":"'Trial 7'!BT36","v":{"v":931575.7537148277,"d":"$931,576"}},{"$f":"'Trial 7'!BU36","v":{"v":931198.5523619311,"d":"$931,199"}},{"$f":"'Trial 7'!BV36","v":{"v":930766.1473245308,"d":"$930,766"}},{"$f":"'Trial 7'!BW36","v":{"v":930266.7093898329,"d":"$930,267"}},{"$f":"'Trial 7'!BX36","v":{"v":929924.4828618123,"d":"$929,924"}},{"$f":"'Trial 7'!BY36","v":{"v":929436.1521316814,"d":"$929,436"}},{"$f":"'Trial 7'!BZ36","v":{"v":928958.6711721496,"d":"$928,959"}},{"$f":"SUM('Trial 7'!BO36:BZ36)","v":{"v":11175744.50006144,"d":"$11,175,745"}},{"$f":"'Trial 7'!CB36","v":{"v":928424.5758823244,"d":"$928,425"}},{"$f":"'Trial 7'!CC36","v":{"v":927973.7319935756,"d":"$927,974"}},{"$f":"'Trial 7'!CD36","v":{"v":927535.8788400039,"d":"$927,536"}},{"$f":"'Trial 7'!CE36","v":{"v":927176.9217818885,"d":"$927,177"}},{"$f":"'Trial 7'!CF36","v":{"v":926627.4161828557,"d":"$926,627"}},{"$f":"'Trial 7'!CG36","v":{"v":926083.7655358111,"d":"$926,084"}},{"$f":"'Trial 7'!CH36","v":{"v":925692.8448113325,"d":"$925,693"}},{"$f":"'Trial 7'!CI36","v":{"v":925061.61671366,"d":"$925,062"}},{"$f":"'Trial 7'!CJ36","v":{"v":924490.8065890406,"d":"$924,491"}},{"$f":"'Trial 7'!CK36","v":{"v":924175.6073976555,"d":"$924,176"}},{"$f":"'Trial 7'!CL36","v":{"v":923889.5528821222,"d":"$923,890"}},{"$f":"'Trial 7'!CM36","v":{"v":923446.5503643807,"d":"$923,447"}},{"$f":"SUM('Trial 7'!CB36:CM36)","v":{"v":11110579.26897465,"d":"$11,110,579"}},{"$f":"'Trial 7'!CO36","v":{"v":923000.677256689,"d":"$923,001"}},{"$f":"'Trial 7'!CP36","v":{"v":922647.9998308065,"d":"$922,648"}},{"$f":"'Trial 7'!CQ36","v":{"v":922227.5111425456,"d":"$922,228"}},{"$f":"'Trial 7'!CR36","v":{"v":921810.644379965,"d":"$921,811"}},{"$f":"'Trial 7'!CS36","v":{"v":921426.6133161945,"d":"$921,427"}},{"$f":"'Trial 7'!CT36","v":{"v":921063.4942143235,"d":"$921,063"}},{"$f":"'Trial 7'!CU36","v":{"v":920620.2388828219,"d":"$920,620"}},{"$f":"'Trial 7'!CV36","v":{"v":920227.0407403129,"d":"$920,227"}},{"$f":"'Trial 7'!CW36","v":{"v":919805.9119199024,"d":"$919,806"}},{"$f":"'Trial 7'!CX36","v":{"v":919368.7459892826,"d":"$919,369"}},{"$f":"'Trial 7'!CY36","v":{"v":918923.0858088529,"d":"$918,923"}},{"$f":"'Trial 7'!CZ36","v":{"v":918479.1029704652,"d":"$918,479"}},{"$f":"SUM('Trial 7'!CO36:CZ36)","v":{"v":11049601.066452162,"d":"$11,049,601"}},{"$f":"'Trial 7'!DB36","v":{"v":918069.7808042334,"d":"$918,070"}},{"$f":"'Trial 7'!DC36","v":{"v":917654.0743107704,"d":"$917,654"}},{"$f":"'Trial 7'!DD36","v":{"v":917281.1890424845,"d":"$917,281"}},{"$f":"'Trial 7'!DE36","v":{"v":916872.2169339829,"d":"$916,872"}},{"$f":"'Trial 7'!DF36","v":{"v":916377.4616244322,"d":"$916,377"}},{"$f":"'Trial 7'!DG36","v":{"v":915968.4324521528,"d":"$915,968"}},{"$f":"'Trial 7'!DH36","v":{"v":915468.8461887619,"d":"$915,469"}},{"$f":"'Trial 7'!DI36","v":{"v":914884.2662967724,"d":"$914,884"}},{"$f":"'Trial 7'!DJ36","v":{"v":914491.2402330075,"d":"$914,491"}},{"$f":"'Trial 7'!DK36","v":{"v":914093.3076503251,"d":"$914,093"}},{"$f":"'Trial 7'!DL36","v":{"v":913488.6991512711,"d":"$913,489"}},{"$f":"'Trial 7'!DM36","v":{"v":913065.7054857761,"d":"$913,066"}},{"$f":"SUM('Trial 7'!DB36:DM36)","v":{"v":10987715.220173972,"d":"$10,987,715"}},{"$f":"'Trial 7'!DO36","v":{"v":912692.705450157,"d":"$912,693"}},{"$f":"'Trial 7'!DP36","v":{"v":912177.7473485569,"d":"$912,178"}},{"$f":"'Trial 7'!DQ36","v":{"v":911784.7120390009,"d":"$911,785"}},{"$f":"'Trial 7'!DR36","v":{"v":911377.0570075201,"d":"$911,377"}},{"$f":"'Trial 7'!DS36","v":{"v":910811.7475765891,"d":"$910,812"}},{"$f":"'Trial 7'!DT36","v":{"v":910467.0209309608,"d":"$910,467"}},{"$f":"'Trial 7'!DU36","v":{"v":909908.3758588054,"d":"$909,908"}},{"$f":"'Trial 7'!DV36","v":{"v":909445.95188061,"d":"$909,446"}},{"$f":"'Trial 7'!DW36","v":{"v":909002.1303884087,"d":"$909,002"}},{"$f":"'Trial 7'!DX36","v":{"v":908734.3650556541,"d":"$908,734"}},{"$f":"'Trial 7'!DY36","v":{"v":908288.7040051264,"d":"$908,289"}},{"$f":"'Trial 7'!DZ36","v":{"v":907752.3773544455,"d":"$907,752"}},{"$f":"SUM('Trial 7'!DO36:DZ36)","v":{"v":10922442.894895833,"d":"$10,922,443"}},{"$f":"'Trial 7'!EB36","v":{"v":907292.6538609855,"d":"$907,293"}},{"$f":"'Trial 7'!EC36","v":{"v":906959.9659650787,"d":"$906,960"}},{"$f":"'Trial 7'!ED36","v":{"v":906454.2321158265,"d":"$906,454"}},{"$f":"'Trial 7'!EE36","v":{"v":906016.0500446123,"d":"$906,016"}},{"$f":"'Trial 7'!EF36","v":{"v":905636.4736140602,"d":"$905,636"}},{"$f":"'Trial 7'!EG36","v":{"v":905182.3043915693,"d":"$905,182"}},{"$f":"'Trial 7'!EH36","v":{"v":904635.1765521432,"d":"$904,635"}},{"$f":"'Trial 7'!EI36","v":{"v":904127.5899334113,"d":"$904,128"}},{"$f":"'Trial 7'!EJ36","v":{"v":903790.5366160545,"d":"$903,791"}},{"$f":"'Trial 7'!EK36","v":{"v":903342.0867570724,"d":"$903,342"}},{"$f":"'Trial 7'!EL36","v":{"v":902937.6864438589,"d":"$902,938"}},{"$f":"'Trial 7'!EM36","v":{"v":902642.6837091495,"d":"$902,643"}},{"$f":"SUM('Trial 7'!EB36:EM36)","v":{"v":10859017.440003823,"d":"$10,859,017"}}]
[{"$f":"Labels!B103","v":"Trial 08"},{"$f":"'Trial 8'!B36","v":{"v":963388.6810828955,"d":"$963,389"}},{"$f":"'Trial 8'!C36","v":{"v":962705.8599466172,"d":"$962,706"}},{"$f":"'Trial 8'!D36","v":{"v":961993.8583581559,"d":"$961,994"}},{"$f":"'Trial 8'!E36","v":{"v":961395.1608228597,"d":"$961,395"}},{"$f":"'Trial 8'!F36","v":{"v":960796.4982499937,"d":"$960,796"}},{"$f":"'Trial 8'!G36","v":{"v":960334.0236570183,"d":"$960,334"}},{"$f":"'Trial 8'!H36","v":{"v":959727.5573706042,"d":"$959,728"}},{"$f":"'Trial 8'!I36","v":{"v":959199.3802639762,"d":"$959,199"}},{"$f":"'Trial 8'!J36","v":{"v":958657.819776884,"d":"$958,658"}},{"$f":"'Trial 8'!K36","v":{"v":958030.8676095065,"d":"$958,031"}},{"$f":"'Trial 8'!L36","v":{"v":957585.0044184516,"d":"$957,585"}},{"$f":"'Trial 8'!M36","v":{"v":956987.8264464978,"d":"$956,988"}},{"$f":"SUM('Trial 8'!B36:M36)","v":{"v":11520802.53800346,"d":"$11,520,803"}},{"$f":"'Trial 8'!O36","v":{"v":956509.0670768807,"d":"$956,509"}},{"$f":"'Trial 8'!P36","v":{"v":956096.8204415666,"d":"$956,097"}},{"$f":"'Trial 8'!Q36","v":{"v":955511.346192568,"d":"$955,511"}},{"$f":"'Trial 8'!R36","v":{"v":954900.9280849328,"d":"$954,901"}},{"$f":"'Trial 8'!S36","v":{"v":954377.2302958396,"d":"$954,377"}},{"$f":"'Trial 8'!T36","v":{"v":953832.4731725017,"d":"$953,832"}},{"$f":"'Trial 8'!U36","v":{"v":953493.4614841909,"d":"$953,493"}},{"$f":"'Trial 8'!V36","v":{"v":952959.3188198392,"d":"$952,959"}},{"$f":"'Trial 8'!W36","v":{"v":952502.0769805316,"d":"$952,502"}},{"$f":"'Trial 8'!X36","v":{"v":952013.5266117178,"d":"$952,014"}},{"$f":"'Trial 8'!Y36","v":{"v":951464.9047277389,"d":"$951,465"}},{"$f":"'Trial 8'!Z36","v":{"v":950818.0556030502,"d":"$950,818"}},{"$f":"SUM('Trial 8'!O36:Z36)","v":{"v":11444479.209491357,"d":"$11,444,479"}},{"$f":"'Trial 8'!AB36","v":{"v":950352.458842817,"d":"$950,352"}},{"$f":"'Trial 8'!AC36","v":{"v":949902.9779475203,"d":"$949,903"}},{"$f":"'Trial 8'!AD36","v":{"v":949352.1798502727,"d":"$949,352"}},{"$f":"'Trial 8'!AE36","v":{"v":948816.5652352883,"d":"$948,817"}},{"$f":"'Trial 8'!AF36","v":{"v":948299.386210935,"d":"$948,299"}},{"$f":"'Trial 8'!AG36","v":{"v":947677.3573531092,"d":"$947,677"}},{"$f":"'Trial 8'!AH36","v":{"v":947195.3350252362,"d":"$947,195"}},{"$f":"'Trial 8'!AI36","v":{"v":946785.8434678002,"d":"$946,786"}},{"$f":"'Trial 8'!AJ36","v":{"v":946297.8491125765,"d":"$946,298"}},{"$f":"'Trial 8'!AK36","v":{"v":945865.6395461666,"d":"$945,866"}},{"$f":"'Trial 8'!AL36","v":{"v":945434.7058043241,"d":"$945,435"}},{"$f":"'Trial 8'!AM36","v":{"v":945031.9343077218,"d":"$945,032"}},{"$f":"SUM('Trial 8'!AB36:AM36)","v":{"v":11371012.232703768,"d":"$11,371,012"}},{"$f":"'Trial 8'!AO36","v":{"v":944704.4064388274,"d":"$944,704"}},{"$f":"'Trial 8'!AP36","v":{"v":944296.209278717,"d":"$944,296"}},{"$f":"'Trial 8'!AQ36","v":{"v":943827.1349363172,"d":"$943,827"}},{"$f":"'Trial 8'!AR36","v":{"v":943403.6160665713,"d":"$943,404"}},{"$f":"'Trial 8'!AS36","v":{"v":942857.9429183457,"d":"$942,858"}},{"$f":"'Trial 8'!AT36","v":{"v":942380.5757874647,"d":"$942,381"}},{"$f":"'Trial 8'!AU36","v":{"v":941901.4928602527,"d":"$941,901"}},{"$f":"'Trial 8'!AV36","v":{"v":941447.5350452379,"d":"$941,448"}},{"$f":"'Trial 8'!AW36","v":{"v":940980.8620433853,"d":"$940,981"}},{"$f":"'Trial 8'!AX36","v":{"v":940542.2464773419,"d":"$940,542"}},{"$f":"'Trial 8'!AY36","v":{"v":940167.7812886935,"d":"$940,168"}},{"$f":"'Trial 8'!AZ36","v":{"v":939731.3775658048,"d":"$939,731"}},{"$f":"SUM('Trial 8'!AO36:AZ36)","v":{"v":11306241.18070696,"d":"$11,306,241"}},{"$f":"'Trial 8'!BB36","v":{"v":939226.6618552235,"d":"$939,227"}},{"$f":"'Trial 8'!BC36","v":{"v":938693.0268191033,"d":"$938,693"}},{"$f":"'Trial 8'!BD36","v":{"v":938348.1003848574,"d":"$938,348"}},{"$f":"'Trial 8'!BE36","v":{"v":938024.8057722093,"d":"$938,025"}},{"$f":"'Trial 8'!BF36","v":{"v":937586.1473770586,"d":"$937,586"}},{"$f":"'Trial 8'!BG36","v":{"v":937193.2197541916,"d":"$937,193"}},{"$f":"'Trial 8'!BH36","v":{"v":936803.9252201087,"d":"$936,804"}},{"$f":"'Trial 8'!BI36","v":{"v":936346.1051666331,"d":"$936,346"}},{"$f":"'Trial 8'!BJ36","v":{"v":935920.3961775852,"d":"$935,920"}},{"$f":"'Trial 8'!BK36","v":{"v":935500.1179908039,"d":"$935,500"}},{"$f":"'Trial 8'!BL36","v":{"v":935062.0868402472,"d":"$935,062"}},{"$f":"'Trial 8'!BM36","v":{"v":934639.5673797966,"d":"$934,640"}},{"$f":"SUM('Trial 8'!BB36:BM36)","v":{"v":11243344.16073782,"d":"$11,243,344"}},{"$f":"'Trial 8'!BO36","v":{"v":934184.0883081335,"d":"$934,184"}},{"$f":"'Trial 8'!BP36","v":{"v":933695.8113077614,"d":"$933,696"}},{"$f":"'Trial 8'!BQ36","v":{"v":933402.3028988211,"d":"$933,402"}},{"$f":"'Trial 8'!BR36","v":{"v":933064.9202990939,"d":"$933,065"}},{"$f":"'Trial 8'!BS36","v":{"v":932812.3789587182,"d":"$932,812"}},{"$f":"'Trial 8'!BT36","v":{"v":932385.1294899979,"d":"$932,385"}},{"$f":"'Trial 8'!BU36","v":{"v":932019.876388099,"d":"$932,020"}},{"$f":"'Trial 8'!BV36","v":{"v":931595.0793859395,"d":"$931,595"}},{"$f":"'Trial 8'!BW36","v":{"v":931144.2825808796,"d":"$931,144"}},{"$f":"'Trial 8'!BX36","v":{"v":930764.3176254454,"d":"$930,764"}},{"$f":"'Trial 8'!BY36","v":{"v":930312.6152653979,"d":"$930,313"}},{"$f":"'Trial 8'!BZ36","v":{"v":929821.4210497054,"d":"$929,821"}},{"$f":"SUM('Trial 8'!BO36:BZ36)","v":{"v":11185202.223557994,"d":"$11,185,202"}},{"$f":"'Trial 8'!CB36","v":{"v":929314.8706043247,"d":"$929,315"}},{"$f":"'Trial 8'!CC36","v":{"v":928766.8642186912,"d":"$928,767"}},{"$f":"'Trial 8'!CD36","v":{"v":928376.3142868747,"d":"$928,376"}},{"$f":"'Trial 8'!CE36","v":{"v":927842.8084098565,"d":"$927,843"}},{"$f":"'Trial 8'!CF36","v":{"v":927370.1599049888,"d":"$927,370"}},{"$f":"'Trial 8'!CG36","v":{"v":926947.2928154477,"d":"$926,947"}},{"$f":"'Trial 8'!CH36","v":{"v":926613.8437609851,"d":"$926,614"}},{"$f":"'Trial 8'!CI36","v":{"v":926185.2414584629,"d":"$926,185"}},{"$f":"'Trial 8'!CJ36","v":{"v":925649.8238523833,"d":"$925,650"}},{"$f":"'Trial 8'!CK36","v":{"v":925331.0940397657,"d":"$925,331"}},{"$f":"'Trial 8'!CL36","v":{"v":924910.2504994224,"d":"$924,910"}},{"$f":"'Trial 8'!CM36","v":{"v":924436.1144253645,"d":"$924,436"}},{"$f":"SUM('Trial 8'!CB36:CM36)","v":{"v":11121744.678276567,"d":"$11,121,745"}},{"$f":"'Trial 8'!CO36","v":{"v":924006.6271835091,"d":"$924,007"}},{"$f":"'Trial 8'!CP36","v":{"v":923669.0337565055,"d":"$923,669"}},{"$f":"'Trial 8'!CQ36","v":{"v":923216.0498785615,"d":"$923,216"}},{"$f":"'Trial 8'!CR36","v":{"v":922875.4715193106,"d":"$922,875"}},{"$f":"'Trial 8'!CS36","v":{"v":922413.5753260336,"d":"$922,414"}},{"$f":"'Trial 8'!CT36","v":{"v":921871.8411992969,"d":"$921,872"}},{"$f":"'Trial 8'!CU36","v":{"v":921470.8444669675,"d":"$921,471"}},{"$f":"'Trial 8'!CV36","v":{"v":921148.6837172447,"d":"$921,149"}},{"$f":"'Trial 8'!CW36","v":{"v":920727.8025871912,"d":"$920,728"}},{"$f":"'Trial 8'!CX36","v":{"v":920096.4215751459,"d":"$920,096"}},{"$f":"'Trial 8'!CY36","v":{"v":919737.6814393868,"d":"$919,738"}},{"$f":"'Trial 8'!CZ36","v":{"v":919378.9923238606,"d":"$919,379"}},{"$f":"SUM('Trial 8'!CO36:CZ36)","v":{"v":11060613.024973014,"d":"$11,060,613"}},{"$f":"'Trial 8'!DB36","v":{"v":918945.3803399628,"d":"$918,945"}},{"$f":"'Trial 8'!DC36","v":{"v":918661.9163489542,"d":"$918,662"}},{"$f":"'Trial 8'!DD36","v":{"v":918172.9763043355,"d":"$918,173"}},{"$f":"'Trial 8'!DE36","v":{"v":917636.2804252364,"d":"$917,636"}},{"$f":"'Trial 8'!DF36","v":{"v":917263.317610137,"d":"$917,263"}},{"$f":"'Trial 8'!DG36","v":{"v":916828.5377449347,"d":"$916,829"}},{"$f":"'Trial 8'!DH36","v":{"v":916348.1463441928,"d":"$916,348"}},{"$f":"'Trial 8'!DI36","v":{"v":915951.7888519502,"d":"$915,952"}},{"$f":"'Trial 8'!DJ36","v":{"v":915401.2700071592,"d":"$915,401"}},{"$f":"'Trial 8'!DK36","v":{"v":915130.4828070701,"d":"$915,130"}},{"$f":"'Trial 8'!DL36","v":{"v":914708.5578530325,"d":"$914,709"}},{"$f":"'Trial 8'!DM36","v":{"v":914334.4897146653,"d":"$914,334"}},{"$f":"SUM('Trial 8'!DB36:DM36)","v":{"v":10999383.144351631,"d":"$10,999,383"}},{"$f":"'Trial 8'!DO36","v":{"v":913916.5220232916,"d":"$913,917"}},{"$f":"'Trial 8'!DP36","v":{"v":913433.9161724317,"d":"$913,434"}},{"$f":"'Trial 8'!DQ36","v":{"v":912894.0081407748,"d":"$912,894"}},{"$f":"'Trial 8'!DR36","v":{"v":912581.2869188223,"d":"$912,581"}},{"$f":"'Trial 8'!DS36","v":{"v":912182.4859764023,"d":"$912,182"}},{"$f":"'Trial 8'!DT36","v":{"v":911741.931364264,"d":"$911,742"}},{"$f":"'Trial 8'!DU36","v":{"v":911437.9600007412,"d":"$911,438"}},{"$f":"'Trial 8'!DV36","v":{"v":911054.5095194719,"d":"$911,055"}},{"$f":"'Trial 8'!DW36","v":{"v":910582.532623147,"d":"$910,583"}},{"$f":"'Trial 8'!DX36","v":{"v":910176.5131980078,"d":"$910,177"}},{"$f":"'Trial 8'!DY36","v":{"v":909654.4414598817,"d":"$909,654"}},{"$f":"'Trial 8'!DZ36","v":{"v":909288.1941985609,"d":"$909,288"}},{"$f":"SUM('Trial 8'!DO36:DZ36)","v":{"v":10938944.301595796,"d":"$10,938,944"}},{"$f":"'Trial 8'!EB36","v":{"v":908836.8713188706,"d":"$908,837"}},{"$f":"'Trial 8'!EC36","v":{"v":908344.9207721269,"d":"$908,345"}},{"$f":"'Trial 8'!ED36","v":{"v":907764.4929778484,"d":"$907,764"}},{"$f":"'Trial 8'!EE36","v":{"v":907347.6200401264,"d":"$907,348"}},{"$f":"'Trial 8'!EF36","v":{"v":906823.0067959098,"d":"$906,823"}},{"$f":"'Trial 8'!EG36","v":{"v":906407.2756544509,"d":"$906,407"}},{"$f":"'Trial 8'!EH36","v":{"v":905939.0116537578,"d":"$905,939"}},{"$f":"'Trial 8'!EI36","v":{"v":905574.6324010749,"d":"$905,575"}},{"$f":"'Trial 8'!EJ36","v":{"v":905108.9784703979,"d":"$905,109"}},{"$f":"'Trial 8'!EK36","v":{"v":904699.1033735616,"d":"$904,699"}},{"$f":"'Trial 8'!EL36","v":{"v":904167.2651588637,"d":"$904,167"}},{"$f":"'Trial 8'!EM36","v":{"v":903591.1459355938,"d":"$903,591"}},{"$f":"SUM('Trial 8'!EB36:EM36)","v":{"v":10874604.324552583,"d":"$10,874,604"}}]
[{"$f":"Labels!C95","v":"Total"},{"$f":"SUM('Trial 1'!B36,'Trial 2'!B36,'Trial 3'!B36,'Trial 4'!B36,'Trial 5'!B36,'Trial 6'!B36,'Trial 7'!B36,'Trial 8'!B36)","v":{"v":7707109.448663162,"d":"$7,707,109"}},{"$f":"SUM('Trial 1'!C36,'Trial 2'!C36,'Trial 3'!C36,'Trial 4'!C36,'Trial 5'!C36,'Trial 6'!C36,'Trial 7'!C36,'Trial 8'!C36)","v":{"v":7702002.002885487,"d":"$7,702,002"}},{"$f":"SUM('Trial 1'!D36,'Trial 2'!D36,'Trial 3'!D36,'Trial 4'!D36,'Trial 5'!D36,'Trial 6'!D36,'Trial 7'!D36,'Trial 8'!D36)","v":{"v":7697068.117803255,"d":"$7,697,068"}},{"$f":"SUM('Trial 1'!E36,'Trial 2'!E36,'Trial 3'!E36,'Trial 4'!E36,'Trial 5'!E36,'Trial 6'!E36,'Trial 7'!E36,'Trial 8'!E36)","v":{"v":7692485.167865678,"d":"$7,692,485"}},{"$f":"SUM('Trial 1'!F36,'Trial 2'!F36,'Trial 3'!F36,'Trial 4'!F36,'Trial 5'!F36,'Trial 6'!F36,'Trial 7'!F36,'Trial 8'!F36)","v":{"v":7687865.818794727,"d":"$7,687,866"}},{"$f":"SUM('Trial 1'!G36,'Trial 2'!G36,'Trial 3'!G36,'Trial 4'!G36,'Trial 5'!G36,'Trial 6'!G36,'Trial 7'!G36,'Trial 8'!G36)","v":{"v":7683473.470180741,"d":"$7,683,473"}},{"$f":"SUM('Trial 1'!H36,'Trial 2'!H36,'Trial 3'!H36,'Trial 4'!H36,'Trial 5'!H36,'Trial 6'!H36,'Trial 7'!H36,'Trial 8'!H36)","v":{"v":7679004.291284786,"d":"$7,679,004"}},{"$f":"SUM('Trial 1'!I36,'Trial 2'!I36,'Trial 3'!I36,'Trial 4'!I36,'Trial 5'!I36,'Trial 6'!I36,'Trial 7'!I36,'Trial 8'!I36)","v":{"v":7674623.938649001,"d":"$7,674,624"}},{"$f":"SUM('Trial 1'!J36,'Trial 2'!J36,'Trial 3'!J36,'Trial 4'!J36,'Trial 5'!J36,'Trial 6'!J36,'Trial 7'!J36,'Trial 8'!J36)","v":{"v":7670140.398412371,"d":"$7,670,140"}},{"$f":"SUM('Trial 1'!K36,'Trial 2'!K36,'Trial 3'!K36,'Trial 4'!K36,'Trial 5'!K36,'Trial 6'!K36,'Trial 7'!K36,'Trial 8'!K36)","v":{"v":7665925.151907757,"d":"$7,665,925"}},{"$f":"SUM('Trial 1'!L36,'Trial 2'!L36,'Trial 3'!L36,'Trial 4'!L36,'Trial 5'!L36,'Trial 6'!L36,'Trial 7'!L36,'Trial 8'!L36)","v":{"v":7661502.971215931,"d":"$7,661,503"}},{"$f":"SUM('Trial 1'!M36,'Trial 2'!M36,'Trial 3'!M36,'Trial 4'!M36,'Trial 5'!M36,'Trial 6'!M36,'Trial 7'!M36,'Trial 8'!M36)","v":{"v":7657277.644414881,"d":"$7,657,278"}},{"$f":"SUM(B36:M36)","v":{"v":92178478.42207779,"d":"$92,178,478"}},{"$f":"SUM('Trial 1'!O36,'Trial 2'!O36,'Trial 3'!O36,'Trial 4'!O36,'Trial 5'!O36,'Trial 6'!O36,'Trial 7'!O36,'Trial 8'!O36)","v":{"v":7652994.014757218,"d":"$7,652,994"}},{"$f":"SUM('Trial 1'!P36,'Trial 2'!P36,'Trial 3'!P36,'Trial 4'!P36,'Trial 5'!P36,'Trial 6'!P36,'Trial 7'!P36,'Trial 8'!P36)","v":{"v":7648723.265346512,"d":"$7,648,723"}},{"$f":"SUM('Trial 1'!Q36,'Trial 2'!Q36,'Trial 3'!Q36,'Trial 4'!Q36,'Trial 5'!Q36,'Trial 6'!Q36,'Trial 7'!Q36,'Trial 8'!Q36)","v":{"v":7644601.96095621,"d":"$7,644,602"}},{"$f":"SUM('Trial 1'!R36,'Trial 2'!R36,'Trial 3'!R36,'Trial 4'!R36,'Trial 5'!R36,'Trial 6'!R36,'Trial 7'!R36,'Trial 8'!R36)","v":{"v":7640737.902034484,"d":"$7,640,738"}},{"$f":"SUM('Trial 1'!S36,'Trial 2'!S36,'Trial 3'!S36,'Trial 4'!S36,'Trial 5'!S36,'Trial 6'!S36,'Trial 7'!S36,'Trial 8'!S36)","v":{"v":7636806.154432414,"d":"$7,636,806"}},{"$f":"SUM('Trial 1'!T36,'Trial 2'!T36,'Trial 3'!T36,'Trial 4'!T36,'Trial 5'!T36,'Trial 6'!T36,'Trial 7'!T36,'Trial 8'!T36)","v":{"v":7632350.163654778,"d":"$7,632,350"}},{"$f":"SUM('Trial 1'!U36,'Trial 2'!U36,'Trial 3'!U36,'Trial 4'!U36,'Trial 5'!U36,'Trial 6'!U36,'Trial 7'!U36,'Trial 8'!U36)","v":{"v":7628387.99980567,"d":"$7,628,388"}},{"$f":"SUM('Trial 1'!V36,'Trial 2'!V36,'Trial 3'!V36,'Trial 4'!V36,'Trial 5'!V36,'Trial 6'!V36,'Trial 7'!V36,'Trial 8'!V36)","v":{"v":7623987.832637277,"d":"$7,623,988"}},{"$f":"SUM('Trial 1'!W36,'Trial 2'!W36,'Trial 3'!W36,'Trial 4'!W36,'Trial 5'!W36,'Trial 6'!W36,'Trial 7'!W36,'Trial 8'!W36)","v":{"v":7619842.043718225,"d":"$7,619,842"}},{"$f":"SUM('Trial 1'!X36,'Trial 2'!X36,'Trial 3'!X36,'Trial 4'!X36,'Trial 5'!X36,'Trial 6'!X36,'Trial 7'!X36,'Trial 8'!X36)","v":{"v":7615995.619275225,"d":"$7,615,996"}},{"$f":"SUM('Trial 1'!Y36,'Trial 2'!Y36,'Trial 3'!Y36,'Trial 4'!Y36,'Trial 5'!Y36,'Trial 6'!Y36,'Trial 7'!Y36,'Trial 8'!Y36)","v":{"v":7611935.180373505,"d":"$7,611,935"}},{"$f":"SUM('Trial 1'!Z36,'Trial 2'!Z36,'Trial 3'!Z36,'Trial 4'!Z36,'Trial 5'!Z36,'Trial 6'!Z36,'Trial 7'!Z36,'Trial 8'!Z36)","v":{"v":7607768.321457107,"d":"$7,607,768"}},{"$f":"SUM(O36:Z36)","v":{"v":91564130.45844862,"d":"$91,564,130"}},{"$f":"SUM('Trial 1'!AB36,'Trial 2'!AB36,'Trial 3'!AB36,'Trial 4'!AB36,'Trial 5'!AB36,'Trial 6'!AB36,'Trial 7'!AB36,'Trial 8'!AB36)","v":{"v":7603502.673489875,"d":"$7,603,503"}},{"$f":"SUM('Trial 1'!AC36,'Trial 2'!AC36,'Trial 3'!AC36,'Trial 4'!AC36,'Trial 5'!AC36,'Trial 6'!AC36,'Trial 7'!AC36,'Trial 8'!AC36)","v":{"v":7599435.904308369,"d":"$7,599,436"}},{"$f":"SUM('Trial 1'!AD36,'Trial 2'!AD36,'Trial 3'!AD36,'Trial 4'!AD36,'Trial 5'!AD36,'Trial 6'!AD36,'Trial 7'!AD36,'Trial 8'!AD36)","v":{"v":7595622.531147514,"d":"$7,595,623"}},{"$f":"SUM('Trial 1'!AE36,'Trial 2'!AE36,'Trial 3'!AE36,'Trial 4'!AE36,'Trial 5'!AE36,'Trial 6'!AE36,'Trial 7'!AE36,'Trial 8'!AE36)","v":{"v":7591961.981654463,"d":"$7,591,962"}},{"$f":"SUM('Trial 1'!AF36,'Trial 2'!AF36,'Trial 3'!AF36,'Trial 4'!AF36,'Trial 5'!AF36,'Trial 6'!AF36,'Trial 7'!AF36,'Trial 8'!AF36)","v":{"v":7587862.4127155645,"d":"$7,587,862"}},{"$f":"SUM('Trial 1'!AG36,'Trial 2'!AG36,'Trial 3'!AG36,'Trial 4'!AG36,'Trial 5'!AG36,'Trial 6'!AG36,'Trial 7'!AG36,'Trial 8'!AG36)","v":{"v":7583766.149403458,"d":"$7,583,766"}},{"$f":"SUM('Trial 1'!AH36,'Trial 2'!AH36,'Trial 3'!AH36,'Trial 4'!AH36,'Trial 5'!AH36,'Trial 6'!AH36,'Trial 7'!AH36,'Trial 8'!AH36)","v":{"v":7580059.141959863,"d":"$7,580,059"}},{"$f":"SUM('Trial 1'!AI36,'Trial 2'!AI36,'Trial 3'!AI36,'Trial 4'!AI36,'Trial 5'!AI36,'Trial 6'!AI36,'Trial 7'!AI36,'Trial 8'!AI36)","v":{"v":7576567.303808868,"d":"$7,576,567"}},{"$f":"SUM('Trial 1'!AJ36,'Trial 2'!AJ36,'Trial 3'!AJ36,'Trial 4'!AJ36,'Trial 5'!AJ36,'Trial 6'!AJ36,'Trial 7'!AJ36,'Trial 8'!AJ36)","v":{"v":7572246.688225417,"d":"$7,572,247"}},{"$f":"SUM('Trial 1'!AK36,'Trial 2'!AK36,'Trial 3'!AK36,'Trial 4'!AK36,'Trial 5'!AK36,'Trial 6'!AK36,'Trial 7'!AK36,'Trial 8'!AK36)","v":{"v":7568532.14123008,"d":"$7,568,532"}},{"$f":"SUM('Trial 1'!AL36,'Trial 2'!AL36,'Trial 3'!AL36,'Trial 4'!AL36,'Trial 5'!AL36,'Trial 6'!AL36,'Trial 7'!AL36,'Trial 8'!AL36)","v":{"v":7564938.939665888,"d":"$7,564,939"}},{"$f":"SUM('Trial 1'!AM36,'Trial 2'!AM36,'Trial 3'!AM36,'Trial 4'!AM36,'Trial 5'!AM36,'Trial 6'!AM36,'Trial 7'!AM36,'Trial 8'!AM36)","v":{"v":7561264.1000810405,"d":"$7,561,264"}},{"$f":"SUM(AB36:AM36)","v":{"v":90985759.9676904,"d":"$90,985,760"}},{"$f":"SUM('Trial 1'!AO36,'Trial 2'!AO36,'Trial 3'!AO36,'Trial 4'!AO36,'Trial 5'!AO36,'Trial 6'!AO36,'Trial 7'!AO36,'Trial 8'!AO36)","v":{"v":7557460.9749267185,"d":"$7,557,461"}},{"$f":"SUM('Trial 1'!AP36,'Trial 2'!AP36,'Trial 3'!AP36,'Trial 4'!AP36,'Trial 5'!AP36,'Trial 6'!AP36,'Trial 7'!AP36,'Trial 8'!AP36)","v":{"v":7553502.611568551,"d":"$7,553,503"}},{"$f":"SUM('Trial 1'!AQ36,'Trial 2'!AQ36,'Trial 3'!AQ36,'Trial 4'!AQ36,'Trial 5'!AQ36,'Trial 6'!AQ36,'Trial 7'!AQ36,'Trial 8'!AQ36)","v":{"v":7549842.8019675575,"d":"$7,549,843"}},{"$f":"SUM('Trial 1'!AR36,'Trial 2'!AR36,'Trial 3'!AR36,'Trial 4'!AR36,'Trial 5'!AR36,'Trial 6'!AR36,'Trial 7'!AR36,'Trial 8'!AR36)","v":{"v":7546113.602923973,"d":"$7,546,114"}},{"$f":"SUM('Trial 1'!AS36,'Trial 2'!AS36,'Trial 3'!AS36,'Trial 4'!AS36,'Trial 5'!AS36,'Trial 6'!AS36,'Trial 7'!AS36,'Trial 8'!AS36)","v":{"v":7542390.546028227,"d":"$7,542,391"}},{"$f":"SUM('Trial 1'!AT36,'Trial 2'!AT36,'Trial 3'!AT36,'Trial 4'!AT36,'Trial 5'!AT36,'Trial 6'!AT36,'Trial 7'!AT36,'Trial 8'!AT36)","v":{"v":7538637.342448055,"d":"$7,538,637"}},{"$f":"SUM('Trial 1'!AU36,'Trial 2'!AU36,'Trial 3'!AU36,'Trial 4'!AU36,'Trial 5'!AU36,'Trial 6'!AU36,'Trial 7'!AU36,'Trial 8'!AU36)","v":{"v":7534699.529501951,"d":"$7,534,700"}},{"$f":"SUM('Trial 1'!AV36,'Trial 2'!AV36,'Trial 3'!AV36,'Trial 4'!AV36,'Trial 5'!AV36,'Trial 6'!AV36,'Trial 7'!AV36,'Trial 8'!AV36)","v":{"v":7531104.373182993,"d":"$7,531,104"}},{"$f":"SUM('Trial 1'!AW36,'Trial 2'!AW36,'Trial 3'!AW36,'Trial 4'!AW36,'Trial 5'!AW36,'Trial 6'!AW36,'Trial 7'!AW36,'Trial 8'!AW36)","v":{"v":7527627.044545899,"d":"$7,527,627"}},{"$f":"SUM('Trial 1'!AX36,'Trial 2'!AX36,'Trial 3'!AX36,'Trial 4'!AX36,'Trial 5'!AX36,'Trial 6'!AX36,'Trial 7'!AX36,'Trial 8'!AX36)","v":{"v":7523665.293249427,"d":"$7,523,665"}},{"$f":"SUM('Trial 1'!AY36,'Trial 2'!AY36,'Trial 3'!AY36,'Trial 4'!AY36,'Trial 5'!AY36,'Trial 6'!AY36,'Trial 7'!AY36,'Trial 8'!AY36)","v":{"v":7520010.78758987,"d":"$7,520,011"}},{"$f":"SUM('Trial 1'!AZ36,'Trial 2'!AZ36,'Trial 3'!AZ36,'Trial 4'!AZ36,'Trial 5'!AZ36,'Trial 6'!AZ36,'Trial 7'!AZ36,'Trial 8'!AZ36)","v":{"v":7516347.762697729,"d":"$7,516,348"}},{"$f":"SUM(AO36:AZ36)","v":{"v":90441402.67063096,"d":"$90,441,403"}},{"$f":"SUM('Trial 1'!BB36,'Trial 2'!BB36,'Trial 3'!BB36,'Trial 4'!BB36,'Trial 5'!BB36,'Trial 6'!BB36,'Trial 7'!BB36,'Trial 8'!BB36)","v":{"v":7512497.393237084,"d":"$7,512,497"}},{"$f":"SUM('Trial 1'!BC36,'Trial 2'!BC36,'Trial 3'!BC36,'Trial 4'!BC36,'Trial 5'!BC36,'Trial 6'!BC36,'Trial 7'!BC36,'Trial 8'!BC36)","v":{"v":7508642.551192517,"d":"$7,508,643"}},{"$f":"SUM('Trial 1'!BD36,'Trial 2'!BD36,'Trial 3'!BD36,'Trial 4'!BD36,'Trial 5'!BD36,'Trial 6'!BD36,'Trial 7'!BD36,'Trial 8'!BD36)","v":{"v":7505157.214036888,"d":"$7,505,157"}},{"$f":"SUM('Trial 1'!BE36,'Trial 2'!BE36,'Trial 3'!BE36,'Trial 4'!BE36,'Trial 5'!BE36,'Trial 6'!BE36,'Trial 7'!BE36,'Trial 8'!BE36)","v":{"v":7501813.649840674,"d":"$7,501,814"}},{"$f":"SUM('Trial 1'!BF36,'Trial 2'!BF36,'Trial 3'!BF36,'Trial 4'!BF36,'Trial 5'!BF36,'Trial 6'!BF36,'Trial 7'!BF36,'Trial 8'!BF36)","v":{"v":7498227.381649253,"d":"$7,498,227"}},{"$f":"SUM('Trial 1'!BG36,'Trial 2'!BG36,'Trial 3'!BG36,'Trial 4'!BG36,'Trial 5'!BG36,'Trial 6'!BG36,'Trial 7'!BG36,'Trial 8'!BG36)","v":{"v":7494673.349924898,"d":"$7,494,673"}},{"$f":"SUM('Trial 1'!BH36,'Trial 2'!BH36,'Trial 3'!BH36,'Trial 4'!BH36,'Trial 5'!BH36,'Trial 6'!BH36,'Trial 7'!BH36,'Trial 8'!BH36)","v":{"v":7491109.476004514,"d":"$7,491,109"}},{"$f":"SUM('Trial 1'!BI36,'Trial 2'!BI36,'Trial 3'!BI36,'Trial 4'!BI36,'Trial 5'!BI36,'Trial 6'!BI36,'Trial 7'!BI36,'Trial 8'!BI36)","v":{"v":7487509.472457025,"d":"$7,487,509"}},{"$f":"SUM('Trial 1'!BJ36,'Trial 2'!BJ36,'Trial 3'!BJ36,'Trial 4'!BJ36,'Trial 5'!BJ36,'Trial 6'!BJ36,'Trial 7'!BJ36,'Trial 8'!BJ36)","v":{"v":7483778.677659929,"d":"$7,483,779"}},{"$f":"SUM('Trial 1'!BK36,'Trial 2'!BK36,'Trial 3'!BK36,'Trial 4'!BK36,'Trial 5'!BK36,'Trial 6'!BK36,'Trial 7'!BK36,'Trial 8'!BK36)","v":{"v":7480352.821715587,"d":"$7,480,353"}},{"$f":"SUM('Trial 1'!BL36,'Trial 2'!BL36,'Trial 3'!BL36,'Trial 4'!BL36,'Trial 5'!BL36,'Trial 6'!BL36,'Trial 7'!BL36,'Trial 8'!BL36)","v":{"v":7476772.85602028,"d":"$7,476,773"}},{"$f":"SUM('Trial 1'!BM36,'Trial 2'!BM36,'Trial 3'!BM36,'Trial 4'!BM36,'Trial 5'!BM36,'Trial 6'!BM36,'Trial 7'!BM36,'Trial 8'!BM36)","v":{"v":7473281.850545938,"d":"$7,473,282"}},{"$f":"SUM(BB36:BM36)","v":{"v":89913816.6942846,"d":"$89,913,817"}},{"$f":"SUM('Trial 1'!BO36,'Trial 2'!BO36,'Trial 3'!BO36,'Trial 4'!BO36,'Trial 5'!BO36,'Trial 6'!BO36,'Trial 7'!BO36,'Trial 8'!BO36)","v":{"v":7469600.115240294,"d":"$7,469,600"}},{"$f":"SUM('Trial 1'!BP36,'Trial 2'!BP36,'Trial 3'!BP36,'Trial 4'!BP36,'Trial 5'!BP36,'Trial 6'!BP36,'Trial 7'!BP36,'Trial 8'!BP36)","v":{"v":7465773.174835049,"d":"$7,465,773"}},{"$f":"SUM('Trial 1'!BQ36,'Trial 2'!BQ36,'Trial 3'!BQ36,'Trial 4'!BQ36,'Trial 5'!BQ36,'Trial 6'!BQ36,'Trial 7'!BQ36,'Trial 8'!BQ36)","v":{"v":7462443.513759935,"d":"$7,462,444"}},{"$f":"SUM('Trial 1'!BR36,'Trial 2'!BR36,'Trial 3'!BR36,'Trial 4'!BR36,'Trial 5'!BR36,'Trial 6'!BR36,'Trial 7'!BR36,'Trial 8'!BR36)","v":{"v":7459073.673242043,"d":"$7,459,074"}},{"$f":"SUM('Trial 1'!BS36,'Trial 2'!BS36,'Trial 3'!BS36,'Trial 4'!BS36,'Trial 5'!BS36,'Trial 6'!BS36,'Trial 7'!BS36,'Trial 8'!BS36)","v":{"v":7455976.090541325,"d":"$7,455,976"}},{"$f":"SUM('Trial 1'!BT36,'Trial 2'!BT36,'Trial 3'!BT36,'Trial 4'!BT36,'Trial 5'!BT36,'Trial 6'!BT36,'Trial 7'!BT36,'Trial 8'!BT36)","v":{"v":7452343.744894458,"d":"$7,452,344"}},{"$f":"SUM('Trial 1'!BU36,'Trial 2'!BU36,'Trial 3'!BU36,'Trial 4'!BU36,'Trial 5'!BU36,'Trial 6'!BU36,'Trial 7'!BU36,'Trial 8'!BU36)","v":{"v":7449234.89663647,"d":"$7,449,235"}},{"$f":"SUM('Trial 1'!BV36,'Trial 2'!BV36,'Trial 3'!BV36,'Trial 4'!BV36,'Trial 5'!BV36,'Trial 6'!BV36,'Trial 7'!BV36,'Trial 8'!BV36)","v":{"v":7445491.769059587,"d":"$7,445,492"}},{"$f":"SUM('Trial 1'!BW36,'Trial 2'!BW36,'Trial 3'!BW36,'Trial 4'!BW36,'Trial 5'!BW36,'Trial 6'!BW36,'Trial 7'!BW36,'Trial 8'!BW36)","v":{"v":7441842.583961128,"d":"$7,441,843"}},{"$f":"SUM('Trial 1'!BX36,'Trial 2'!BX36,'Trial 3'!BX36,'Trial 4'!BX36,'Trial 5'!BX36,'Trial 6'!BX36,'Trial 7'!BX36,'Trial 8'!BX36)","v":{"v":7438768.406078622,"d":"$7,438,768"}},{"$f":"SUM('Trial 1'!BY36,'Trial 2'!BY36,'Trial 3'!BY36,'Trial 4'!BY36,'Trial 5'!BY36,'Trial 6'!BY36,'Trial 7'!BY36,'Trial 8'!BY36)","v":{"v":7434921.499666576,"d":"$7,434,921"}},{"$f":"SUM('Trial 1'!BZ36,'Trial 2'!BZ36,'Trial 3'!BZ36,'Trial 4'!BZ36,'Trial 5'!BZ36,'Trial 6'!BZ36,'Trial 7'!BZ36,'Trial 8'!BZ36)","v":{"v":7431688.846607005,"d":"$7,431,689"}},{"$f":"SUM(BO36:BZ36)","v":{"v":89407158.31452249,"d":"$89,407,158"}},{"$f":"SUM('Trial 1'!CB36,'Trial 2'!CB36,'Trial 3'!CB36,'Trial 4'!CB36,'Trial 5'!CB36,'Trial 6'!CB36,'Trial 7'!CB36,'Trial 8'!CB36)","v":{"v":7428237.9617887745,"d":"$7,428,238"}},{"$f":"SUM('Trial 1'!CC36,'Trial 2'!CC36,'Trial 3'!CC36,'Trial 4'!CC36,'Trial 5'!CC36,'Trial 6'!CC36,'Trial 7'!CC36,'Trial 8'!CC36)","v":{"v":7424713.794938575,"d":"$7,424,714"}},{"$f":"SUM('Trial 1'!CD36,'Trial 2'!CD36,'Trial 3'!CD36,'Trial 4'!CD36,'Trial 5'!CD36,'Trial 6'!CD36,'Trial 7'!CD36,'Trial 8'!CD36)","v":{"v":7421171.769718032,"d":"$7,421,172"}},{"$f":"SUM('Trial 1'!CE36,'Trial 2'!CE36,'Trial 3'!CE36,'Trial 4'!CE36,'Trial 5'!CE36,'Trial 6'!CE36,'Trial 7'!CE36,'Trial 8'!CE36)","v":{"v":7417587.540638573,"d":"$7,417,588"}},{"$f":"SUM('Trial 1'!CF36,'Trial 2'!CF36,'Trial 3'!CF36,'Trial 4'!CF36,'Trial 5'!CF36,'Trial 6'!CF36,'Trial 7'!CF36,'Trial 8'!CF36)","v":{"v":7413778.961548199,"d":"$7,413,779"}},{"$f":"SUM('Trial 1'!CG36,'Trial 2'!CG36,'Trial 3'!CG36,'Trial 4'!CG36,'Trial 5'!CG36,'Trial 6'!CG36,'Trial 7'!CG36,'Trial 8'!CG36)","v":{"v":7410221.429845167,"d":"$7,410,221"}},{"$f":"SUM('Trial 1'!CH36,'Trial 2'!CH36,'Trial 3'!CH36,'Trial 4'!CH36,'Trial 5'!CH36,'Trial 6'!CH36,'Trial 7'!CH36,'Trial 8'!CH36)","v":{"v":7407174.754777889,"d":"$7,407,175"}},{"$f":"SUM('Trial 1'!CI36,'Trial 2'!CI36,'Trial 3'!CI36,'Trial 4'!CI36,'Trial 5'!CI36,'Trial 6'!CI36,'Trial 7'!CI36,'Trial 8'!CI36)","v":{"v":7403602.604599509,"d":"$7,403,603"}},{"$f":"SUM('Trial 1'!CJ36,'Trial 2'!CJ36,'Trial 3'!CJ36,'Trial 4'!CJ36,'Trial 5'!CJ36,'Trial 6'!CJ36,'Trial 7'!CJ36,'Trial 8'!CJ36)","v":{"v":7400209.762510181,"d":"$7,400,210"}},{"$f":"SUM('Trial 1'!CK36,'Trial 2'!CK36,'Trial 3'!CK36,'Trial 4'!CK36,'Trial 5'!CK36,'Trial 6'!CK36,'Trial 7'!CK36,'Trial 8'!CK36)","v":{"v":7396992.340545822,"d":"$7,396,992"}},{"$f":"SUM('Trial 1'!CL36,'Trial 2'!CL36,'Trial 3'!CL36,'Trial 4'!CL36,'Trial 5'!CL36,'Trial 6'!CL36,'Trial 7'!CL36,'Trial 8'!CL36)","v":{"v":7393806.996830615,"d":"$7,393,807"}},{"$f":"SUM('Trial 1'!CM36,'Trial 2'!CM36,'Trial 3'!CM36,'Trial 4'!CM36,'Trial 5'!CM36,'Trial 6'!CM36,'Trial 7'!CM36,'Trial 8'!CM36)","v":{"v":7390195.316007561,"d":"$7,390,195"}},{"$f":"SUM(CB36:CM36)","v":{"v":88907693.23374888,"d":"$88,907,693"}},{"$f":"SUM('Trial 1'!CO36,'Trial 2'!CO36,'Trial 3'!CO36,'Trial 4'!CO36,'Trial 5'!CO36,'Trial 6'!CO36,'Trial 7'!CO36,'Trial 8'!CO36)","v":{"v":7386678.952992676,"d":"$7,386,679"}},{"$f":"SUM('Trial 1'!CP36,'Trial 2'!CP36,'Trial 3'!CP36,'Trial 4'!CP36,'Trial 5'!CP36,'Trial 6'!CP36,'Trial 7'!CP36,'Trial 8'!CP36)","v":{"v":7383243.118554802,"d":"$7,383,243"}},{"$f":"SUM('Trial 1'!CQ36,'Trial 2'!CQ36,'Trial 3'!CQ36,'Trial 4'!CQ36,'Trial 5'!CQ36,'Trial 6'!CQ36,'Trial 7'!CQ36,'Trial 8'!CQ36)","v":{"v":7379764.92508085,"d":"$7,379,765"}},{"$f":"SUM('Trial 1'!CR36,'Trial 2'!CR36,'Trial 3'!CR36,'Trial 4'!CR36,'Trial 5'!CR36,'Trial 6'!CR36,'Trial 7'!CR36,'Trial 8'!CR36)","v":{"v":7376400.000759828,"d":"$7,376,400"}},{"$f":"SUM('Trial 1'!CS36,'Trial 2'!CS36,'Trial 3'!CS36,'Trial 4'!CS36,'Trial 5'!CS36,'Trial 6'!CS36,'Trial 7'!CS36,'Trial 8'!CS36)","v":{"v":7372844.643105669,"d":"$7,372,845"}},{"$f":"SUM('Trial 1'!CT36,'Trial 2'!CT36,'Trial 3'!CT36,'Trial 4'!CT36,'Trial 5'!CT36,'Trial 6'!CT36,'Trial 7'!CT36,'Trial 8'!CT36)","v":{"v":7369053.113402262,"d":"$7,369,053"}},{"$f":"SUM('Trial 1'!CU36,'Trial 2'!CU36,'Trial 3'!CU36,'Trial 4'!CU36,'Trial 5'!CU36,'Trial 6'!CU36,'Trial 7'!CU36,'Trial 8'!CU36)","v":{"v":7365333.451590235,"d":"$7,365,333"}},{"$f":"SUM('Trial 1'!CV36,'Trial 2'!CV36,'Trial 3'!CV36,'Trial 4'!CV36,'Trial 5'!CV36,'Trial 6'!CV36,'Trial 7'!CV36,'Trial 8'!CV36)","v":{"v":7362278.334382415,"d":"$7,362,278"}},{"$f":"SUM('Trial 1'!CW36,'Trial 2'!CW36,'Trial 3'!CW36,'Trial 4'!CW36,'Trial 5'!CW36,'Trial 6'!CW36,'Trial 7'!CW36,'Trial 8'!CW36)","v":{"v":7358701.550003231,"d":"$7,358,702"}},{"$f":"SUM('Trial 1'!CX36,'Trial 2'!CX36,'Trial 3'!CX36,'Trial 4'!CX36,'Trial 5'!CX36,'Trial 6'!CX36,'Trial 7'!CX36,'Trial 8'!CX36)","v":{"v":7355001.0524857445,"d":"$7,355,001"}},{"$f":"SUM('Trial 1'!CY36,'Trial 2'!CY36,'Trial 3'!CY36,'Trial 4'!CY36,'Trial 5'!CY36,'Trial 6'!CY36,'Trial 7'!CY36,'Trial 8'!CY36)","v":{"v":7351489.871989639,"d":"$7,351,490"}},{"$f":"SUM('Trial 1'!CZ36,'Trial 2'!CZ36,'Trial 3'!CZ36,'Trial 4'!CZ36,'Trial 5'!CZ36,'Trial 6'!CZ36,'Trial 7'!CZ36,'Trial 8'!CZ36)","v":{"v":7348231.232185355,"d":"$7,348,231"}},{"$f":"SUM(CO36:CZ36)","v":{"v":88409020.2465327,"d":"$88,409,020"}},{"$f":"SUM('Trial 1'!DB36,'Trial 2'!DB36,'Trial 3'!DB36,'Trial 4'!DB36,'Trial 5'!DB36,'Trial 6'!DB36,'Trial 7'!DB36,'Trial 8'!DB36)","v":{"v":7344845.661730578,"d":"$7,344,846"}},{"$f":"SUM('Trial 1'!DC36,'Trial 2'!DC36,'Trial 3'!DC36,'Trial 4'!DC36,'Trial 5'!DC36,'Trial 6'!DC36,'Trial 7'!DC36,'Trial 8'!DC36)","v":{"v":7341413.699941482,"d":"$7,341,414"}},{"$f":"SUM('Trial 1'!DD36,'Trial 2'!DD36,'Trial 3'!DD36,'Trial 4'!DD36,'Trial 5'!DD36,'Trial 6'!DD36,'Trial 7'!DD36,'Trial 8'!DD36)","v":{"v":7337685.034831208,"d":"$7,337,685"}},{"$f":"SUM('Trial 1'!DE36,'Trial 2'!DE36,'Trial 3'!DE36,'Trial 4'!DE36,'Trial 5'!DE36,'Trial 6'!DE36,'Trial 7'!DE36,'Trial 8'!DE36)","v":{"v":7334065.03324424,"d":"$7,334,065"}},{"$f":"SUM('Trial 1'!DF36,'Trial 2'!DF36,'Trial 3'!DF36,'Trial 4'!DF36,'Trial 5'!DF36,'Trial 6'!DF36,'Trial 7'!DF36,'Trial 8'!DF36)","v":{"v":7330783.998942263,"d":"$7,330,784"}},{"$f":"SUM('Trial 1'!DG36,'Trial 2'!DG36,'Trial 3'!DG36,'Trial 4'!DG36,'Trial 5'!DG36,'Trial 6'!DG36,'Trial 7'!DG36,'Trial 8'!DG36)","v":{"v":7327317.691442765,"d":"$7,327,318"}},{"$f":"SUM('Trial 1'!DH36,'Trial 2'!DH36,'Trial 3'!DH36,'Trial 4'!DH36,'Trial 5'!DH36,'Trial 6'!DH36,'Trial 7'!DH36,'Trial 8'!DH36)","v":{"v":7323606.517347269,"d":"$7,323,607"}},{"$f":"SUM('Trial 1'!DI36,'Trial 2'!DI36,'Trial 3'!DI36,'Trial 4'!DI36,'Trial 5'!DI36,'Trial 6'!DI36,'Trial 7'!DI36,'Trial 8'!DI36)","v":{"v":7320099.680496583,"d":"$7,320,100"}},{"$f":"SUM('Trial 1'!DJ36,'Trial 2'!DJ36,'Trial 3'!DJ36,'Trial 4'!DJ36,'Trial 5'!DJ36,'Trial 6'!DJ36,'Trial 7'!DJ36,'Trial 8'!DJ36)","v":{"v":7316462.706715936,"d":"$7,316,463"}},{"$f":"SUM('Trial 1'!DK36,'Trial 2'!DK36,'Trial 3'!DK36,'Trial 4'!DK36,'Trial 5'!DK36,'Trial 6'!DK36,'Trial 7'!DK36,'Trial 8'!DK36)","v":{"v":7313085.532371604,"d":"$7,313,086"}},{"$f":"SUM('Trial 1'!DL36,'Trial 2'!DL36,'Trial 3'!DL36,'Trial 4'!DL36,'Trial 5'!DL36,'Trial 6'!DL36,'Trial 7'!DL36,'Trial 8'!DL36)","v":{"v":7309620.087217675,"d":"$7,309,620"}},{"$f":"SUM('Trial 1'!DM36,'Trial 2'!DM36,'Trial 3'!DM36,'Trial 4'!DM36,'Trial 5'!DM36,'Trial 6'!DM36,'Trial 7'!DM36,'Trial 8'!DM36)","v":{"v":7305838.835651935,"d":"$7,305,839"}},{"$f":"SUM(DB36:DM36)","v":{"v":87904824.47993354,"d":"$87,904,824"}},{"$f":"SUM('Trial 1'!DO36,'Trial 2'!DO36,'Trial 3'!DO36,'Trial 4'!DO36,'Trial 5'!DO36,'Trial 6'!DO36,'Trial 7'!DO36,'Trial 8'!DO36)","v":{"v":7302362.318873482,"d":"$7,302,362"}},{"$f":"SUM('Trial 1'!DP36,'Trial 2'!DP36,'Trial 3'!DP36,'Trial 4'!DP36,'Trial 5'!DP36,'Trial 6'!DP36,'Trial 7'!DP36,'Trial 8'!DP36)","v":{"v":7299130.473799229,"d":"$7,299,130"}},{"$f":"SUM('Trial 1'!DQ36,'Trial 2'!DQ36,'Trial 3'!DQ36,'Trial 4'!DQ36,'Trial 5'!DQ36,'Trial 6'!DQ36,'Trial 7'!DQ36,'Trial 8'!DQ36)","v":{"v":7295478.44580554,"d":"$7,295,478"}},{"$f":"SUM('Trial 1'!DR36,'Trial 2'!DR36,'Trial 3'!DR36,'Trial 4'!DR36,'Trial 5'!DR36,'Trial 6'!DR36,'Trial 7'!DR36,'Trial 8'!DR36)","v":{"v":7292273.520208626,"d":"$7,292,274"}},{"$f":"SUM('Trial 1'!DS36,'Trial 2'!DS36,'Trial 3'!DS36,'Trial 4'!DS36,'Trial 5'!DS36,'Trial 6'!DS36,'Trial 7'!DS36,'Trial 8'!DS36)","v":{"v":7288769.61461676,"d":"$7,288,770"}},{"$f":"SUM('Trial 1'!DT36,'Trial 2'!DT36,'Trial 3'!DT36,'Trial 4'!DT36,'Trial 5'!DT36,'Trial 6'!DT36,'Trial 7'!DT36,'Trial 8'!DT36)","v":{"v":7285359.193705147,"d":"$7,285,359"}},{"$f":"SUM('Trial 1'!DU36,'Trial 2'!DU36,'Trial 3'!DU36,'Trial 4'!DU36,'Trial 5'!DU36,'Trial 6'!DU36,'Trial 7'!DU36,'Trial 8'!DU36)","v":{"v":7281989.409957678,"d":"$7,281,989"}},{"$f":"SUM('Trial 1'!DV36,'Trial 2'!DV36,'Trial 3'!DV36,'Trial 4'!DV36,'Trial 5'!DV36,'Trial 6'!DV36,'Trial 7'!DV36,'Trial 8'!DV36)","v":{"v":7278626.688062654,"d":"$7,278,627"}},{"$f":"SUM('Trial 1'!DW36,'Trial 2'!DW36,'Trial 3'!DW36,'Trial 4'!DW36,'Trial 5'!DW36,'Trial 6'!DW36,'Trial 7'!DW36,'Trial 8'!DW36)","v":{"v":7274995.242313945,"d":"$7,274,995"}},{"$f":"SUM('Trial 1'!DX36,'Trial 2'!DX36,'Trial 3'!DX36,'Trial 4'!DX36,'Trial 5'!DX36,'Trial 6'!DX36,'Trial 7'!DX36,'Trial 8'!DX36)","v":{"v":7271662.037819411,"d":"$7,271,662"}},{"$f":"SUM('Trial 1'!DY36,'Trial 2'!DY36,'Trial 3'!DY36,'Trial 4'!DY36,'Trial 5'!DY36,'Trial 6'!DY36,'Trial 7'!DY36,'Trial 8'!DY36)","v":{"v":7268135.620534482,"d":"$7,268,136"}},{"$f":"SUM('Trial 1'!DZ36,'Trial 2'!DZ36,'Trial 3'!DZ36,'Trial 4'!DZ36,'Trial 5'!DZ36,'Trial 6'!DZ36,'Trial 7'!DZ36,'Trial 8'!DZ36)","v":{"v":7264705.469096057,"d":"$7,264,705"}},{"$f":"SUM(DO36:DZ36)","v":{"v":87403488.03479302,"d":"$87,403,488"}},{"$f":"SUM('Trial 1'!EB36,'Trial 2'!EB36,'Trial 3'!EB36,'Trial 4'!EB36,'Trial 5'!EB36,'Trial 6'!EB36,'Trial 7'!EB36,'Trial 8'!EB36)","v":{"v":7260920.394667247,"d":"$7,260,920"}},{"$f":"SUM('Trial 1'!EC36,'Trial 2'!EC36,'Trial 3'!EC36,'Trial 4'!EC36,'Trial 5'!EC36,'Trial 6'!EC36,'Trial 7'!EC36,'Trial 8'!EC36)","v":{"v":7257641.4446474975,"d":"$7,257,641"}},{"$f":"SUM('Trial 1'!ED36,'Trial 2'!ED36,'Trial 3'!ED36,'Trial 4'!ED36,'Trial 5'!ED36,'Trial 6'!ED36,'Trial 7'!ED36,'Trial 8'!ED36)","v":{"v":7254031.221636739,"d":"$7,254,031"}},{"$f":"SUM('Trial 1'!EE36,'Trial 2'!EE36,'Trial 3'!EE36,'Trial 4'!EE36,'Trial 5'!EE36,'Trial 6'!EE36,'Trial 7'!EE36,'Trial 8'!EE36)","v":{"v":7250154.133580989,"d":"$7,250,154"}},{"$f":"SUM('Trial 1'!EF36,'Trial 2'!EF36,'Trial 3'!EF36,'Trial 4'!EF36,'Trial 5'!EF36,'Trial 6'!EF36,'Trial 7'!EF36,'Trial 8'!EF36)","v":{"v":7246708.714806444,"d":"$7,246,709"}},{"$f":"SUM('Trial 1'!EG36,'Trial 2'!EG36,'Trial 3'!EG36,'Trial 4'!EG36,'Trial 5'!EG36,'Trial 6'!EG36,'Trial 7'!EG36,'Trial 8'!EG36)","v":{"v":7243235.072751825,"d":"$7,243,235"}},{"$f":"SUM('Trial 1'!EH36,'Trial 2'!EH36,'Trial 3'!EH36,'Trial 4'!EH36,'Trial 5'!EH36,'Trial 6'!EH36,'Trial 7'!EH36,'Trial 8'!EH36)","v":{"v":7239536.906938518,"d":"$7,239,537"}},{"$f":"SUM('Trial 1'!EI36,'Trial 2'!EI36,'Trial 3'!EI36,'Trial 4'!EI36,'Trial 5'!EI36,'Trial 6'!EI36,'Trial 7'!EI36,'Trial 8'!EI36)","v":{"v":7235978.48917927,"d":"$7,235,978"}},{"$f":"SUM('Trial 1'!EJ36,'Trial 2'!EJ36,'Trial 3'!EJ36,'Trial 4'!EJ36,'Trial 5'!EJ36,'Trial 6'!EJ36,'Trial 7'!EJ36,'Trial 8'!EJ36)","v":{"v":7232107.261601083,"d":"$7,232,107"}},{"$f":"SUM('Trial 1'!EK36,'Trial 2'!EK36,'Trial 3'!EK36,'Trial 4'!EK36,'Trial 5'!EK36,'Trial 6'!EK36,'Trial 7'!EK36,'Trial 8'!EK36)","v":{"v":7228565.8670020085,"d":"$7,228,566"}},{"$f":"SUM('Trial 1'!EL36,'Trial 2'!EL36,'Trial 3'!EL36,'Trial 4'!EL36,'Trial 5'!EL36,'Trial 6'!EL36,'Trial 7'!EL36,'Trial 8'!EL36)","v":{"v":7225035.3969756,"d":"$7,225,035"}},{"$f":"SUM('Trial 1'!EM36,'Trial 2'!EM36,'Trial 3'!EM36,'Trial 4'!EM36,'Trial 5'!EM36,'Trial 6'!EM36,'Trial 7'!EM36,'Trial 8'!EM36)","v":{"v":7221416.474833369,"d":"$7,221,416"}},{"$f":"SUM(EB36:EM36)","v":{"v":86895331.3786206,"d":"$86,895,331"}}]
[{"$f":"Labels!B24","v":"Consumption"}]
[{"$f":"Labels!D96","v":"Trials"},{"$f":"ZZZ__FnCalls!F7","v":"Jan 2010"},{"$f":"ZZZ__FnCalls!F8","v":"Feb 2010"},{"$f":"ZZZ__FnCalls!F9","v":"Mar 2010"},{"$f":"ZZZ__FnCalls!F10","v":"Apr 2010"},{"$f":"ZZZ__FnCalls!F11","v":"May 2010"},{"$f":"ZZZ__FnCalls!F12","v":"Jun 2010"},{"$f":"ZZZ__FnCalls!F13","v":"Jul 2010"},{"$f":"ZZZ__FnCalls!F14","v":"Aug 2010"},{"$f":"ZZZ__FnCalls!F15","v":"Sep 2010"},{"$f":"ZZZ__FnCalls!F16","v":"Oct 2010"},{"$f":"ZZZ__FnCalls!F17","v":"Nov 2010"},{"$f":"ZZZ__FnCalls!F18","v":"Dec 2010"},{"$f":"ZZZ__FnCalls!H7","v":"2010"},{"$f":"ZZZ__FnCalls!F19","v":"Jan 2011"},{"$f":"ZZZ__FnCalls!F20","v":"Feb 2011"},{"$f":"ZZZ__FnCalls!F21","v":"Mar 2011"},{"$f":"ZZZ__FnCalls!F22","v":"Apr 2011"},{"$f":"ZZZ__FnCalls!F23","v":"May 2011"},{"$f":"ZZZ__FnCalls!F24","v":"Jun 2011"},{"$f":"ZZZ__FnCalls!F25","v":"Jul 2011"},{"$f":"ZZZ__FnCalls!F26","v":"Aug 2011"},{"$f":"ZZZ__FnCalls!F27","v":"Sep 2011"},{"$f":"ZZZ__FnCalls!F28","v":"Oct 2011"},{"$f":"ZZZ__FnCalls!F29","v":"Nov 2011"},{"$f":"ZZZ__FnCalls!F30","v":"Dec 2011"},{"$f":"ZZZ__FnCalls!H19","v":"2011"},{"$f":"ZZZ__FnCalls!F31","v":"Jan 2012"},{"$f":"ZZZ__FnCalls!F32","v":"Feb 2012"},{"$f":"ZZZ__FnCalls!F33","v":"Mar 2012"},{"$f":"ZZZ__FnCalls!F34","v":"Apr 2012"},{"$f":"ZZZ__FnCalls!F35","v":"May 2012"},{"$f":"ZZZ__FnCalls!F36","v":"Jun 2012"},{"$f":"ZZZ__FnCalls!F37","v":"Jul 2012"},{"$f":"ZZZ__FnCalls!F38","v":"Aug 2012"},{"$f":"ZZZ__FnCalls!F39","v":"Sep 2012"},{"$f":"ZZZ__FnCalls!F40","v":"Oct 2012"},{"$f":"ZZZ__FnCalls!F41","v":"Nov 2012"},{"$f":"ZZZ__FnCalls!F42","v":"Dec 2012"},{"$f":"ZZZ__FnCalls!H31","v":"2012"},{"$f":"ZZZ__FnCalls!F43","v":"Jan 2013"},{"$f":"ZZZ__FnCalls!F44","v":"Feb 2013"},{"$f":"ZZZ__FnCalls!F45","v":"Mar 2013"},{"$f":"ZZZ__FnCalls!F46","v":"Apr 2013"},{"$f":"ZZZ__FnCalls!F47","v":"May 2013"},{"$f":"ZZZ__FnCalls!F48","v":"Jun 2013"},{"$f":"ZZZ__FnCalls!F49","v":"Jul 2013"},{"$f":"ZZZ__FnCalls!F50","v":"Aug 2013"},{"$f":"ZZZ__FnCalls!F51","v":"Sep 2013"},{"$f":"ZZZ__FnCalls!F52","v":"Oct 2013"},{"$f":"ZZZ__FnCalls!F53","v":"Nov 2013"},{"$f":"ZZZ__FnCalls!F54","v":"Dec 2013"},{"$f":"ZZZ__FnCalls!H43","v":"2013"},{"$f":"ZZZ__FnCalls!F55","v":"Jan 2014"},{"$f":"ZZZ__FnCalls!F56","v":"Feb 2014"},{"$f":"ZZZ__FnCalls!F57","v":"Mar 2014"},{"$f":"ZZZ__FnCalls!F58","v":"Apr 2014"},{"$f":"ZZZ__FnCalls!F59","v":"May 2014"},{"$f":"ZZZ__FnCalls!F60","v":"Jun 2014"},{"$f":"ZZZ__FnCalls!F61","v":"Jul 2014"},{"$f":"ZZZ__FnCalls!F62","v":"Aug 2014"},{"$f":"ZZZ__FnCalls!F63","v":"Sep 2014"},{"$f":"ZZZ__FnCalls!F64","v":"Oct 2014"},{"$f":"ZZZ__FnCalls!F65","v":"Nov 2014"},{"$f":"ZZZ__FnCalls!F66","v":"Dec 2014"},{"$f":"ZZZ__FnCalls!H55","v":"2014"},{"$f":"ZZZ__FnCalls!F67","v":"Jan 2015"},{"$f":"ZZZ__FnCalls!F68","v":"Feb 2015"},{"$f":"ZZZ__FnCalls!F69","v":"Mar 2015"},{"$f":"ZZZ__FnCalls!F70","v":"Apr 2015"},{"$f":"ZZZ__FnCalls!F71","v":"May 2015"},{"$f":"ZZZ__FnCalls!F72","v":"Jun 2015"},{"$f":"ZZZ__FnCalls!F73","v":"Jul 2015"},{"$f":"ZZZ__FnCalls!F74","v":"Aug 2015"},{"$f":"ZZZ__FnCalls!F75","v":"Sep 2015"},{"$f":"ZZZ__FnCalls!F76","v":"Oct 2015"},{"$f":"ZZZ__FnCalls!F77","v":"Nov 2015"},{"$f":"ZZZ__FnCalls!F78","v":"Dec 2015"},{"$f":"ZZZ__FnCalls!H67","v":"2015"},{"$f":"ZZZ__FnCalls!F79","v":"Jan 2016"},{"$f":"ZZZ__FnCalls!F80","v":"Feb 2016"},{"$f":"ZZZ__FnCalls!F81","v":"Mar 2016"},{"$f":"ZZZ__FnCalls!F82","v":"Apr 2016"},{"$f":"ZZZ__FnCalls!F83","v":"May 2016"},{"$f":"ZZZ__FnCalls!F84","v":"Jun 2016"},{"$f":"ZZZ__FnCalls!F85","v":"Jul 2016"},{"$f":"ZZZ__FnCalls!F86","v":"Aug 2016"},{"$f":"ZZZ__FnCalls!F87","v":"Sep 2016"},{"$f":"ZZZ__FnCalls!F88","v":"Oct 2016"},{"$f":"ZZZ__FnCalls!F89","v":"Nov 2016"},{"$f":"ZZZ__FnCalls!F90","v":"Dec 2016"},{"$f":"ZZZ__FnCalls!H79","v":"2016"},{"$f":"ZZZ__FnCalls!F91","v":"Jan 2017"},{"$f":"ZZZ__FnCalls!F92","v":"Feb 2017"},{"$f":"ZZZ__FnCalls!F93","v":"Mar 2017"},{"$f":"ZZZ__FnCalls!F94","v":"Apr 2017"},{"$f":"ZZZ__FnCalls!F95","v":"May 2017"},{"$f":"ZZZ__FnCalls!F96","v":"Jun 2017"},{"$f":"ZZZ__FnCalls!F97","v":"Jul 2017"},{"$f":"ZZZ__FnCalls!F98","v":"Aug 2017"},{"$f":"ZZZ__FnCalls!F99","v":"Sep 2017"},{"$f":"ZZZ__FnCalls!F100","v":"Oct 2017"},{"$f":"ZZZ__FnCalls!F101","v":"Nov 2017"},{"$f":"ZZZ__FnCalls!F102","v":"Dec 2017"},{"$f":"ZZZ__FnCalls!H91","v":"2017"},{"$f":"ZZZ__FnCalls!F103","v":"Jan 2018"},{"$f":"ZZZ__FnCalls!F104","v":"Feb 2018"},{"$f":"ZZZ__FnCalls!F105","v":"Mar 2018"},{"$f":"ZZZ__FnCalls!F106","v":"Apr 2018"},{"$f":"ZZZ__FnCalls!F107","v":"May 2018"},{"$f":"ZZZ__FnCalls!F108","v":"Jun 2018"},{"$f":"ZZZ__FnCalls!F109","v":"Jul 2018"},{"$f":"ZZZ__FnCalls!F110","v":"Aug 2018"},{"$f":"ZZZ__FnCalls!F111","v":"Sep 2018"},{"$f":"ZZZ__FnCalls!F112","v":"Oct 2018"},{"$f":"ZZZ__FnCalls!F113","v":"Nov 2018"},{"$f":"ZZZ__FnCalls!F114","v":"Dec 2018"},{"$f":"ZZZ__FnCalls!H103","v":"2018"},{"$f":"ZZZ__FnCalls!F115","v":"Jan 2019"},{"$f":"ZZZ__FnCalls!F116","v":"Feb 2019"},{"$f":"ZZZ__FnCalls!F117","v":"Mar 2019"},{"$f":"ZZZ__FnCalls!F118","v":"Apr 2019"},{"$f":"ZZZ__FnCalls!F119","v":"May 2019"},{"$f":"ZZZ__FnCalls!F120","v":"Jun 2019"},{"$f":"ZZZ__FnCalls!F121","v":"Jul 2019"},{"$f":"ZZZ__FnCalls!F122","v":"Aug 2019"},{"$f":"ZZZ__FnCalls!F123","v":"Sep 2019"},{"$f":"ZZZ__FnCalls!F124","v":"Oct 2019"},{"$f":"ZZZ__FnCalls!F125","v":"Nov 2019"},{"$f":"ZZZ__FnCalls!F126","v":"Dec 2019"},{"$f":"ZZZ__FnCalls!H115","v":"2019"},{"$f":"ZZZ__FnCalls!F127","v":"Jan 2020"},{"$f":"ZZZ__FnCalls!F128","v":"Feb 2020"},{"$f":"ZZZ__FnCalls!F129","v":"Mar 2020"},{"$f":"ZZZ__FnCalls!F130","v":"Apr 2020"},{"$f":"ZZZ__FnCalls!F131","v":"May 2020"},{"$f":"ZZZ__FnCalls!F132","v":"Jun 2020"},{"$f":"ZZZ__FnCalls!F133","v":"Jul 2020"},{"$f":"ZZZ__FnCalls!F134","v":"Aug 2020"},{"$f":"ZZZ__FnCalls!F135","v":"Sep 2020"},{"$f":"ZZZ__FnCalls!F136","v":"Oct 2020"},{"$f":"ZZZ__FnCalls!F137","v":"Nov 2020"},{"$f":"ZZZ__FnCalls!F138","v":"Dec 2020"},{"$f":"ZZZ__FnCalls!H127","v":"2020"}]
[{"$f":"Labels!B96","v":"Trial 01"},{"$f":"'Trial 1'!B12","v":{"v":728000,"d":"$728,000"}},{"$f":"'Trial 1'!C12","v":{"v":727832.6492085445,"d":"$727,833"}},{"$f":"'Trial 1'!D12","v":{"v":727541.2255367488,"d":"$727,541"}},{"$f":"'Trial 1'!E12","v":{"v":727336.3538515164,"d":"$727,336"}},{"$f":"'Trial 1'!F12","v":{"v":727093.1956668834,"d":"$727,093"}},{"$f":"'Trial 1'!G12","v":{"v":726862.8352431082,"d":"$726,863"}},{"$f":"'Trial 1'!H12","v":{"v":726646.4380292482,"d":"$726,646"}},{"$f":"'Trial 1'!I12","v":{"v":726469.4787142742,"d":"$726,469"}},{"$f":"'Trial 1'!J12","v":{"v":726240.7646197481,"d":"$726,241"}},{"$f":"'Trial 1'!K12","v":{"v":726029.771763871,"d":"$726,030"}},{"$f":"'Trial 1'!L12","v":{"v":725818.3897609586,"d":"$725,818"}},{"$f":"'Trial 1'!M12","v":{"v":725590.0040755601,"d":"$725,590"}},{"$f":"SUM('Trial 1'!B12:M12)","v":{"v":8721461.106470462,"d":"$8,721,461"}},{"$f":"'Trial 1'!O12","v":{"v":725413.4623357293,"d":"$725,413"}},{"$f":"'Trial 1'!P12","v":{"v":725146.8741572894,"d":"$725,147"}},{"$f":"'Trial 1'!Q12","v":{"v":724953.1027618427,"d":"$724,953"}},{"$f":"'Trial 1'!R12","v":{"v":724706.1441437142,"d":"$724,706"}},{"$f":"'Trial 1'!S12","v":{"v":724465.5266565881,"d":"$724,466"}},{"$f":"'Trial 1'!T12","v":{"v":724198.5994058314,"d":"$724,199"}},{"$f":"'Trial 1'!U12","v":{"v":723900.1368817012,"d":"$723,900"}},{"$f":"'Trial 1'!V12","v":{"v":723620.2681331143,"d":"$723,620"}},{"$f":"'Trial 1'!W12","v":{"v":723369.0431581875,"d":"$723,369"}},{"$f":"'Trial 1'!X12","v":{"v":723137.4996520058,"d":"$723,137"}},{"$f":"'Trial 1'!Y12","v":{"v":722890.2736541035,"d":"$722,890"}},{"$f":"'Trial 1'!Z12","v":{"v":722694.1787039854,"d":"$722,694"}},{"$f":"SUM('Trial 1'!O12:Z12)","v":{"v":8688495.109644093,"d":"$8,688,495"}},{"$f":"'Trial 1'!AB12","v":{"v":722431.1630024448,"d":"$722,431"}},{"$f":"'Trial 1'!AC12","v":{"v":722163.3175799977,"d":"$722,163"}},{"$f":"'Trial 1'!AD12","v":{"v":721921.4266295972,"d":"$721,921"}},{"$f":"'Trial 1'!AE12","v":{"v":721715.001628829,"d":"$721,715"}},{"$f":"'Trial 1'!AF12","v":{"v":721412.9150669897,"d":"$721,413"}},{"$f":"'Trial 1'!AG12","v":{"v":721109.8611793566,"d":"$721,110"}},{"$f":"'Trial 1'!AH12","v":{"v":720857.9932831294,"d":"$720,858"}},{"$f":"'Trial 1'!AI12","v":{"v":720598.6568898153,"d":"$720,599"}},{"$f":"'Trial 1'!AJ12","v":{"v":720301.8149476653,"d":"$720,302"}},{"$f":"'Trial 1'!AK12","v":{"v":719988.0093381293,"d":"$719,988"}},{"$f":"'Trial 1'!AL12","v":{"v":719732.5860711231,"d":"$719,733"}},{"$f":"'Trial 1'!AM12","v":{"v":719515.5327477482,"d":"$719,516"}},{"$f":"SUM('Trial 1'!AB12:AM12)","v":{"v":8651748.278364826,"d":"$8,651,748"}},{"$f":"'Trial 1'!AO12","v":{"v":719303.5230903772,"d":"$719,304"}},{"$f":"'Trial 1'!AP12","v":{"v":718942.1810429587,"d":"$718,942"}},{"$f":"'Trial 1'!AQ12","v":{"v":718654.4966402063,"d":"$718,654"}},{"$f":"'Trial 1'!AR12","v":{"v":718436.7788495173,"d":"$718,437"}},{"$f":"'Trial 1'!AS12","v":{"v":718140.1224980619,"d":"$718,140"}},{"$f":"'Trial 1'!AT12","v":{"v":717836.4192426656,"d":"$717,836"}},{"$f":"'Trial 1'!AU12","v":{"v":717526.8578453831,"d":"$717,527"}},{"$f":"'Trial 1'!AV12","v":{"v":717224.7510476018,"d":"$717,225"}},{"$f":"'Trial 1'!AW12","v":{"v":716985.417125937,"d":"$716,985"}},{"$f":"'Trial 1'!AX12","v":{"v":716685.6909681254,"d":"$716,686"}},{"$f":"'Trial 1'!AY12","v":{"v":716332.4774423817,"d":"$716,332"}},{"$f":"'Trial 1'!AZ12","v":{"v":716110.4932678768,"d":"$716,110"}},{"$f":"SUM('Trial 1'!AO12:AZ12)","v":{"v":8612179.209061092,"d":"$8,612,179"}},{"$f":"'Trial 1'!BB12","v":{"v":715806.8045392719,"d":"$715,807"}},{"$f":"'Trial 1'!BC12","v":{"v":715482.3599108452,"d":"$715,482"}},{"$f":"'Trial 1'!BD12","v":{"v":715206.758816982,"d":"$715,207"}},{"$f":"'Trial 1'!BE12","v":{"v":714963.4858251271,"d":"$714,963"}},{"$f":"'Trial 1'!BF12","v":{"v":714700.4580140217,"d":"$714,700"}},{"$f":"'Trial 1'!BG12","v":{"v":714373.866233242,"d":"$714,374"}},{"$f":"'Trial 1'!BH12","v":{"v":714114.6532909247,"d":"$714,115"}},{"$f":"'Trial 1'!BI12","v":{"v":713860.63661446,"d":"$713,861"}},{"$f":"'Trial 1'!BJ12","v":{"v":713650.2620605121,"d":"$713,650"}},{"$f":"'Trial 1'!BK12","v":{"v":713414.2777837949,"d":"$713,414"}},{"$f":"'Trial 1'!BL12","v":{"v":713197.1975028695,"d":"$713,197"}},{"$f":"'Trial 1'!BM12","v":{"v":712930.1588234778,"d":"$712,930"}},{"$f":"SUM('Trial 1'!BB12:BM12)","v":{"v":8571700.919415528,"d":"$8,571,701"}},{"$f":"'Trial 1'!BO12","v":{"v":712598.3228602847,"d":"$712,598"}},{"$f":"'Trial 1'!BP12","v":{"v":712350.384895082,"d":"$712,350"}},{"$f":"'Trial 1'!BQ12","v":{"v":712116.0600039647,"d":"$712,116"}},{"$f":"'Trial 1'!BR12","v":{"v":711799.8676631018,"d":"$711,800"}},{"$f":"'Trial 1'!BS12","v":{"v":711489.0795632104,"d":"$711,489"}},{"$f":"'Trial 1'!BT12","v":{"v":711142.4165757145,"d":"$711,142"}},{"$f":"'Trial 1'!BU12","v":{"v":710851.75239222,"d":"$710,852"}},{"$f":"'Trial 1'!BV12","v":{"v":710561.4017719263,"d":"$710,561"}},{"$f":"'Trial 1'!BW12","v":{"v":710256.7755657935,"d":"$710,257"}},{"$f":"'Trial 1'!BX12","v":{"v":709998.4297687318,"d":"$709,998"}},{"$f":"'Trial 1'!BY12","v":{"v":709661.365164572,"d":"$709,661"}},{"$f":"'Trial 1'!BZ12","v":{"v":709367.5205451878,"d":"$709,368"}},{"$f":"SUM('Trial 1'!BO12:BZ12)","v":{"v":8532193.37676979,"d":"$8,532,193"}},{"$f":"'Trial 1'!CB12","v":{"v":709067.9569514117,"d":"$709,068"}},{"$f":"'Trial 1'!CC12","v":{"v":708762.1400174904,"d":"$708,762"}},{"$f":"'Trial 1'!CD12","v":{"v":708417.8122226644,"d":"$708,418"}},{"$f":"'Trial 1'!CE12","v":{"v":708040.0219465428,"d":"$708,040"}},{"$f":"'Trial 1'!CF12","v":{"v":707751.119998203,"d":"$707,751"}},{"$f":"'Trial 1'!CG12","v":{"v":707468.6710254251,"d":"$707,469"}},{"$f":"'Trial 1'!CH12","v":{"v":707123.4029909574,"d":"$707,123"}},{"$f":"'Trial 1'!CI12","v":{"v":706838.7274616556,"d":"$706,839"}},{"$f":"'Trial 1'!CJ12","v":{"v":706456.739011698,"d":"$706,457"}},{"$f":"'Trial 1'!CK12","v":{"v":706124.6524647055,"d":"$706,125"}},{"$f":"'Trial 1'!CL12","v":{"v":705840.2369359623,"d":"$705,840"}},{"$f":"'Trial 1'!CM12","v":{"v":705544.0697088464,"d":"$705,544"}},{"$f":"SUM('Trial 1'!CB12:CM12)","v":{"v":8487435.550735563,"d":"$8,487,436"}},{"$f":"'Trial 1'!CO12","v":{"v":705173.1447743592,"d":"$705,173"}},{"$f":"'Trial 1'!CP12","v":{"v":704777.3443501838,"d":"$704,777"}},{"$f":"'Trial 1'!CQ12","v":{"v":704466.9964199982,"d":"$704,467"}},{"$f":"'Trial 1'!CR12","v":{"v":704183.2442868962,"d":"$704,183"}},{"$f":"'Trial 1'!CS12","v":{"v":703861.3168346676,"d":"$703,861"}},{"$f":"'Trial 1'!CT12","v":{"v":703495.4953923519,"d":"$703,495"}},{"$f":"'Trial 1'!CU12","v":{"v":703129.771688923,"d":"$703,130"}},{"$f":"'Trial 1'!CV12","v":{"v":702754.9359706977,"d":"$702,755"}},{"$f":"'Trial 1'!CW12","v":{"v":702411.849416791,"d":"$702,412"}},{"$f":"'Trial 1'!CX12","v":{"v":702031.2113474907,"d":"$702,031"}},{"$f":"'Trial 1'!CY12","v":{"v":701636.0165415265,"d":"$701,636"}},{"$f":"'Trial 1'!CZ12","v":{"v":701340.663276057,"d":"$701,341"}},{"$f":"SUM('Trial 1'!CO12:CZ12)","v":{"v":8439261.990299942,"d":"$8,439,262"}},{"$f":"'Trial 1'!DB12","v":{"v":701041.4002009855,"d":"$701,041"}},{"$f":"'Trial 1'!DC12","v":{"v":700646.8217840105,"d":"$700,647"}},{"$f":"'Trial 1'!DD12","v":{"v":700313.7762045995,"d":"$700,314"}},{"$f":"'Trial 1'!DE12","v":{"v":699991.9991635701,"d":"$699,992"}},{"$f":"'Trial 1'!DF12","v":{"v":699711.8876986959,"d":"$699,712"}},{"$f":"'Trial 1'!DG12","v":{"v":699318.2572907339,"d":"$699,318"}},{"$f":"'Trial 1'!DH12","v":{"v":698957.0063325627,"d":"$698,957"}},{"$f":"'Trial 1'!DI12","v":{"v":698666.7032392644,"d":"$698,667"}},{"$f":"'Trial 1'!DJ12","v":{"v":698337.3352231808,"d":"$698,337"}},{"$f":"'Trial 1'!DK12","v":{"v":698082.5248437176,"d":"$698,083"}},{"$f":"'Trial 1'!DL12","v":{"v":697746.2595666205,"d":"$697,746"}},{"$f":"'Trial 1'!DM12","v":{"v":697420.6021969762,"d":"$697,421"}},{"$f":"SUM('Trial 1'!DB12:DM12)","v":{"v":8390234.57374492,"d":"$8,390,235"}},{"$f":"'Trial 1'!DO12","v":{"v":697143.9712240833,"d":"$697,144"}},{"$f":"'Trial 1'!DP12","v":{"v":696758.076669512,"d":"$696,758"}},{"$f":"'Trial 1'!DQ12","v":{"v":696372.3916615235,"d":"$696,372"}},{"$f":"'Trial 1'!DR12","v":{"v":696036.4932746333,"d":"$696,036"}},{"$f":"'Trial 1'!DS12","v":{"v":695696.3433446363,"d":"$695,696"}},{"$f":"'Trial 1'!DT12","v":{"v":695332.5950844638,"d":"$695,333"}},{"$f":"'Trial 1'!DU12","v":{"v":694978.1786282154,"d":"$694,978"}},{"$f":"'Trial 1'!DV12","v":{"v":694709.9996299236,"d":"$694,710"}},{"$f":"'Trial 1'!DW12","v":{"v":694406.5526644755,"d":"$694,407"}},{"$f":"'Trial 1'!DX12","v":{"v":694021.6165584446,"d":"$694,022"}},{"$f":"'Trial 1'!DY12","v":{"v":693644.1543524982,"d":"$693,644"}},{"$f":"'Trial 1'!DZ12","v":{"v":693297.0525832518,"d":"$693,297"}},{"$f":"SUM('Trial 1'!DO12:DZ12)","v":{"v":8342397.425675661,"d":"$8,342,397"}},{"$f":"'Trial 1'!EB12","v":{"v":692961.9058783497,"d":"$692,962"}},{"$f":"'Trial 1'!EC12","v":{"v":692630.9686558668,"d":"$692,631"}},{"$f":"'Trial 1'!ED12","v":{"v":692241.7657389755,"d":"$692,242"}},{"$f":"'Trial 1'!EE12","v":{"v":691832.1717229036,"d":"$691,832"}},{"$f":"'Trial 1'!EF12","v":{"v":691545.5307272105,"d":"$691,546"}},{"$f":"'Trial 1'!EG12","v":{"v":691165.789000627,"d":"$691,166"}},{"$f":"'Trial 1'!EH12","v":{"v":690810.5101758918,"d":"$690,811"}},{"$f":"'Trial 1'!EI12","v":{"v":690509.5684334302,"d":"$690,510"}},{"$f":"'Trial 1'!EJ12","v":{"v":690120.2439181262,"d":"$690,120"}},{"$f":"'Trial 1'!EK12","v":{"v":689745.6793565617,"d":"$689,746"}},{"$f":"'Trial 1'!EL12","v":{"v":689354.654315927,"d":"$689,355"}},{"$f":"'Trial 1'!EM12","v":{"v":689005.6109411243,"d":"$689,006"}},{"$f":"SUM('Trial 1'!EB12:EM12)","v":{"v":8291924.398864995,"d":"$8,291,924"}}]
[{"$f":"Labels!B97","v":"Trial 02"},{"$f":"'Trial 2'!B12","v":{"v":728000,"d":"$728,000"}},{"$f":"'Trial 2'!C12","v":{"v":727792.4516384226,"d":"$727,792"}},{"$f":"'Trial 2'!D12","v":{"v":727647.4268810212,"d":"$727,647"}},{"$f":"'Trial 2'!E12","v":{"v":727447.8093794861,"d":"$727,448"}},{"$f":"'Trial 2'!F12","v":{"v":727235.7421560957,"d":"$727,236"}},{"$f":"'Trial 2'!G12","v":{"v":727051.5104073923,"d":"$727,052"}},{"$f":"'Trial 2'!H12","v":{"v":726864.1307199782,"d":"$726,864"}},{"$f":"'Trial 2'!I12","v":{"v":726657.4470979015,"d":"$726,657"}},{"$f":"'Trial 2'!J12","v":{"v":726381.4967534164,"d":"$726,381"}},{"$f":"'Trial 2'!K12","v":{"v":726242.0325286535,"d":"$726,242"}},{"$f":"'Trial 2'!L12","v":{"v":725977.5225937543,"d":"$725,978"}},{"$f":"'Trial 2'!M12","v":{"v":725761.0407683664,"d":"$725,761"}},{"$f":"SUM('Trial 2'!B12:M12)","v":{"v":8723058.610924488,"d":"$8,723,059"}},{"$f":"'Trial 2'!O12","v":{"v":725596.5236650602,"d":"$725,597"}},{"$f":"'Trial 2'!P12","v":{"v":725328.0593237625,"d":"$725,328"}},{"$f":"'Trial 2'!Q12","v":{"v":725028.1796834029,"d":"$725,028"}},{"$f":"'Trial 2'!R12","v":{"v":724869.6649696103,"d":"$724,870"}},{"$f":"'Trial 2'!S12","v":{"v":724621.7890609213,"d":"$724,622"}},{"$f":"'Trial 2'!T12","v":{"v":724416.1532679118,"d":"$724,416"}},{"$f":"'Trial 2'!U12","v":{"v":724073.843674456,"d":"$724,074"}},{"$f":"'Trial 2'!V12","v":{"v":723771.0413154945,"d":"$723,771"}},{"$f":"'Trial 2'!W12","v":{"v":723503.4161519842,"d":"$723,503"}},{"$f":"'Trial 2'!X12","v":{"v":723327.4490501985,"d":"$723,327"}},{"$f":"'Trial 2'!Y12","v":{"v":723100.0237484749,"d":"$723,100"}},{"$f":"'Trial 2'!Z12","v":{"v":722892.7960893587,"d":"$722,893"}},{"$f":"SUM('Trial 2'!O12:Z12)","v":{"v":8690528.940000637,"d":"$8,690,529"}},{"$f":"'Trial 2'!AB12","v":{"v":722622.3560400014,"d":"$722,622"}},{"$f":"'Trial 2'!AC12","v":{"v":722339.2863756688,"d":"$722,339"}},{"$f":"'Trial 2'!AD12","v":{"v":722009.4608407007,"d":"$722,009"}},{"$f":"'Trial 2'!AE12","v":{"v":721774.7080816443,"d":"$721,775"}},{"$f":"'Trial 2'!AF12","v":{"v":721497.363099563,"d":"$721,497"}},{"$f":"'Trial 2'!AG12","v":{"v":721235.695616984,"d":"$721,236"}},{"$f":"'Trial 2'!AH12","v":{"v":720954.6753008805,"d":"$720,955"}},{"$f":"'Trial 2'!AI12","v":{"v":720690.6916169378,"d":"$720,691"}},{"$f":"'Trial 2'!AJ12","v":{"v":720400.312765908,"d":"$720,400"}},{"$f":"'Trial 2'!AK12","v":{"v":720142.0365449936,"d":"$720,142"}},{"$f":"'Trial 2'!AL12","v":{"v":719920.8346111111,"d":"$719,921"}},{"$f":"'Trial 2'!AM12","v":{"v":719637.4047712341,"d":"$719,637"}},{"$f":"SUM('Trial 2'!AB12:AM12)","v":{"v":8653224.825665627,"d":"$8,653,225"}},{"$f":"'Trial 2'!AO12","v":{"v":719305.54217403,"d":"$719,306"}},{"$f":"'Trial 2'!AP12","v":{"v":718983.0306284388,"d":"$718,983"}},{"$f":"'Trial 2'!AQ12","v":{"v":718659.8214613998,"d":"$718,660"}},{"$f":"'Trial 2'!AR12","v":{"v":718406.7070700603,"d":"$718,407"}},{"$f":"'Trial 2'!AS12","v":{"v":718098.186915523,"d":"$718,098"}},{"$f":"'Trial 2'!AT12","v":{"v":717759.1238235809,"d":"$717,759"}},{"$f":"'Trial 2'!AU12","v":{"v":717464.8700462431,"d":"$717,465"}},{"$f":"'Trial 2'!AV12","v":{"v":717230.7521489952,"d":"$717,231"}},{"$f":"'Trial 2'!AW12","v":{"v":716965.2235980658,"d":"$716,965"}},{"$f":"'Trial 2'!AX12","v":{"v":716738.3150056673,"d":"$716,738"}},{"$f":"'Trial 2'!AY12","v":{"v":716472.2598495508,"d":"$716,472"}},{"$f":"'Trial 2'!AZ12","v":{"v":716097.6163702408,"d":"$716,098"}},{"$f":"SUM('Trial 2'!AO12:AZ12)","v":{"v":8612181.449091796,"d":"$8,612,181"}},{"$f":"'Trial 2'!BB12","v":{"v":715778.3773678781,"d":"$715,778"}},{"$f":"'Trial 2'!BC12","v":{"v":715487.5779009612,"d":"$715,488"}},{"$f":"'Trial 2'!BD12","v":{"v":715223.9371297046,"d":"$715,224"}},{"$f":"'Trial 2'!BE12","v":{"v":714896.2285234303,"d":"$714,896"}},{"$f":"'Trial 2'!BF12","v":{"v":714574.99399209,"d":"$714,575"}},{"$f":"'Trial 2'!BG12","v":{"v":714332.6612935705,"d":"$714,333"}},{"$f":"'Trial 2'!BH12","v":{"v":714025.282937873,"d":"$714,025"}},{"$f":"'Trial 2'!BI12","v":{"v":713685.9323819338,"d":"$713,686"}},{"$f":"'Trial 2'!BJ12","v":{"v":713404.7308526504,"d":"$713,405"}},{"$f":"'Trial 2'!BK12","v":{"v":713085.797603858,"d":"$713,086"}},{"$f":"'Trial 2'!BL12","v":{"v":712707.5448434523,"d":"$712,708"}},{"$f":"'Trial 2'!BM12","v":{"v":712327.505412603,"d":"$712,328"}},{"$f":"SUM('Trial 2'!BB12:BM12)","v":{"v":8569530.570240006,"d":"$8,569,531"}},{"$f":"'Trial 2'!BO12","v":{"v":712092.4042933019,"d":"$712,092"}},{"$f":"'Trial 2'!BP12","v":{"v":711743.265703353,"d":"$711,743"}},{"$f":"'Trial 2'!BQ12","v":{"v":711436.0271144937,"d":"$711,436"}},{"$f":"'Trial 2'!BR12","v":{"v":711145.6567919068,"d":"$711,146"}},{"$f":"'Trial 2'!BS12","v":{"v":710847.7483828989,"d":"$710,848"}},{"$f":"'Trial 2'!BT12","v":{"v":710532.2990664938,"d":"$710,532"}},{"$f":"'Trial 2'!BU12","v":{"v":710142.1171653351,"d":"$710,142"}},{"$f":"'Trial 2'!BV12","v":{"v":709795.0352734618,"d":"$709,795"}},{"$f":"'Trial 2'!BW12","v":{"v":709534.2672237848,"d":"$709,534"}},{"$f":"'Trial 2'!BX12","v":{"v":709224.6605509184,"d":"$709,225"}},{"$f":"'Trial 2'!BY12","v":{"v":708882.7294901012,"d":"$708,883"}},{"$f":"'Trial 2'!BZ12","v":{"v":708605.776934794,"d":"$708,606"}},{"$f":"SUM('Trial 2'!BO12:BZ12)","v":{"v":8523981.987990843,"d":"$8,523,982"}},{"$f":"'Trial 2'!CB12","v":{"v":708305.3530766944,"d":"$708,305"}},{"$f":"'Trial 2'!CC12","v":{"v":708059.7482592985,"d":"$708,060"}},{"$f":"'Trial 2'!CD12","v":{"v":707794.0320007275,"d":"$707,794"}},{"$f":"'Trial 2'!CE12","v":{"v":707474.226854529,"d":"$707,474"}},{"$f":"'Trial 2'!CF12","v":{"v":707156.9231058428,"d":"$707,157"}},{"$f":"'Trial 2'!CG12","v":{"v":706868.1294457224,"d":"$706,868"}},{"$f":"'Trial 2'!CH12","v":{"v":706515.5723593448,"d":"$706,516"}},{"$f":"'Trial 2'!CI12","v":{"v":706225.3282281223,"d":"$706,225"}},{"$f":"'Trial 2'!CJ12","v":{"v":705937.1814711086,"d":"$705,937"}},{"$f":"'Trial 2'!CK12","v":{"v":705691.3776180197,"d":"$705,691"}},{"$f":"'Trial 2'!CL12","v":{"v":705303.5312370631,"d":"$705,304"}},{"$f":"'Trial 2'!CM12","v":{"v":704982.4965124377,"d":"$704,982"}},{"$f":"SUM('Trial 2'!CB12:CM12)","v":{"v":8480313.90016891,"d":"$8,480,314"}},{"$f":"'Trial 2'!CO12","v":{"v":704722.6986487332,"d":"$704,723"}},{"$f":"'Trial 2'!CP12","v":{"v":704367.0725985537,"d":"$704,367"}},{"$f":"'Trial 2'!CQ12","v":{"v":704030.9699380872,"d":"$704,031"}},{"$f":"'Trial 2'!CR12","v":{"v":703718.8071566534,"d":"$703,719"}},{"$f":"'Trial 2'!CS12","v":{"v":703360.5248827414,"d":"$703,361"}},{"$f":"'Trial 2'!CT12","v":{"v":703048.2473972715,"d":"$703,048"}},{"$f":"'Trial 2'!CU12","v":{"v":702653.8633995488,"d":"$702,654"}},{"$f":"'Trial 2'!CV12","v":{"v":702391.2522408277,"d":"$702,391"}},{"$f":"'Trial 2'!CW12","v":{"v":701974.8837827399,"d":"$701,975"}},{"$f":"'Trial 2'!CX12","v":{"v":701669.7551774392,"d":"$701,670"}},{"$f":"'Trial 2'!CY12","v":{"v":701427.0455658421,"d":"$701,427"}},{"$f":"'Trial 2'!CZ12","v":{"v":701041.7895216033,"d":"$701,042"}},{"$f":"SUM('Trial 2'!CO12:CZ12)","v":{"v":8434406.91031004,"d":"$8,434,407"}},{"$f":"'Trial 2'!DB12","v":{"v":700707.89021205,"d":"$700,708"}},{"$f":"'Trial 2'!DC12","v":{"v":700376.0501411738,"d":"$700,376"}},{"$f":"'Trial 2'!DD12","v":{"v":700027.3715348414,"d":"$700,027"}},{"$f":"'Trial 2'!DE12","v":{"v":699708.2019827685,"d":"$699,708"}},{"$f":"'Trial 2'!DF12","v":{"v":699372.8651378565,"d":"$699,373"}},{"$f":"'Trial 2'!DG12","v":{"v":699082.2688161032,"d":"$699,082"}},{"$f":"'Trial 2'!DH12","v":{"v":698714.3542403469,"d":"$698,714"}},{"$f":"'Trial 2'!DI12","v":{"v":698355.7645787675,"d":"$698,356"}},{"$f":"'Trial 2'!DJ12","v":{"v":698001.8345565015,"d":"$698,002"}},{"$f":"'Trial 2'!DK12","v":{"v":697669.8310743737,"d":"$697,670"}},{"$f":"'Trial 2'!DL12","v":{"v":697377.0240967711,"d":"$697,377"}},{"$f":"'Trial 2'!DM12","v":{"v":697113.0514676842,"d":"$697,113"}},{"$f":"SUM('Trial 2'!DB12:DM12)","v":{"v":8386506.507839237,"d":"$8,386,507"}},{"$f":"'Trial 2'!DO12","v":{"v":696702.8365946541,"d":"$696,703"}},{"$f":"'Trial 2'!DP12","v":{"v":696327.6548419218,"d":"$696,328"}},{"$f":"'Trial 2'!DQ12","v":{"v":695913.373106939,"d":"$695,913"}},{"$f":"'Trial 2'!DR12","v":{"v":695545.6647090819,"d":"$695,546"}},{"$f":"'Trial 2'!DS12","v":{"v":695206.855312846,"d":"$695,207"}},{"$f":"'Trial 2'!DT12","v":{"v":694835.8789526569,"d":"$694,836"}},{"$f":"'Trial 2'!DU12","v":{"v":694481.8088281903,"d":"$694,482"}},{"$f":"'Trial 2'!DV12","v":{"v":694121.2086966,"d":"$694,121"}},{"$f":"'Trial 2'!DW12","v":{"v":693696.3411402818,"d":"$693,696"}},{"$f":"'Trial 2'!DX12","v":{"v":693353.8566544957,"d":"$693,354"}},{"$f":"'Trial 2'!DY12","v":{"v":693004.1365104048,"d":"$693,004"}},{"$f":"'Trial 2'!DZ12","v":{"v":692645.8305382215,"d":"$692,646"}},{"$f":"SUM('Trial 2'!DO12:DZ12)","v":{"v":8335835.445886294,"d":"$8,335,835"}},{"$f":"'Trial 2'!EB12","v":{"v":692306.0064808707,"d":"$692,306"}},{"$f":"'Trial 2'!EC12","v":{"v":691964.7402437122,"d":"$691,965"}},{"$f":"'Trial 2'!ED12","v":{"v":691583.5642717994,"d":"$691,584"}},{"$f":"'Trial 2'!EE12","v":{"v":691142.7283379671,"d":"$691,143"}},{"$f":"'Trial 2'!EF12","v":{"v":690878.2673503328,"d":"$690,878"}},{"$f":"'Trial 2'!EG12","v":{"v":690553.9700047051,"d":"$690,554"}},{"$f":"'Trial 2'!EH12","v":{"v":690200.7957622288,"d":"$690,201"}},{"$f":"'Trial 2'!EI12","v":{"v":689898.4909807723,"d":"$689,898"}},{"$f":"'Trial 2'!EJ12","v":{"v":689561.8758987113,"d":"$689,562"}},{"$f":"'Trial 2'!EK12","v":{"v":689203.6923814538,"d":"$689,204"}},{"$f":"'Trial 2'!EL12","v":{"v":688826.6916258195,"d":"$688,827"}},{"$f":"'Trial 2'!EM12","v":{"v":688506.7206652765,"d":"$688,507"}},{"$f":"SUM('Trial 2'!EB12:EM12)","v":{"v":8284627.544003649,"d":"$8,284,628"}}]
[{"$f":"Labels!B98","v":"Trial 03"},{"$f":"'Trial 3'!B12","v":{"v":728000,"d":"$728,000"}},{"$f":"'Trial 3'!C12","v":{"v":727754.0611019669,"d":"$727,754"}},{"$f":"'Trial 3'!D12","v":{"v":727581.7587737847,"d":"$727,582"}},{"$f":"'Trial 3'!E12","v":{"v":727328.60112741,"d":"$727,329"}},{"$f":"'Trial 3'!F12","v":{"v":727059.9297064816,"d":"$727,060"}},{"$f":"'Trial 3'!G12","v":{"v":726864.3288613013,"d":"$726,864"}},{"$f":"'Trial 3'!H12","v":{"v":726627.8601112564,"d":"$726,628"}},{"$f":"'Trial 3'!I12","v":{"v":726408.1507362925,"d":"$726,408"}},{"$f":"'Trial 3'!J12","v":{"v":726187.3105163415,"d":"$726,187"}},{"$f":"'Trial 3'!K12","v":{"v":726010.8541659999,"d":"$726,011"}},{"$f":"'Trial 3'!L12","v":{"v":725730.7850571743,"d":"$725,731"}},{"$f":"'Trial 3'!M12","v":{"v":725469.5851901163,"d":"$725,470"}},{"$f":"SUM('Trial 3'!B12:M12)","v":{"v":8721023.225348126,"d":"$8,721,023"}},{"$f":"'Trial 3'!O12","v":{"v":725240.5523423846,"d":"$725,241"}},{"$f":"'Trial 3'!P12","v":{"v":724984.8705759674,"d":"$724,985"}},{"$f":"'Trial 3'!Q12","v":{"v":724773.6952861117,"d":"$724,774"}},{"$f":"'Trial 3'!R12","v":{"v":724495.1648128979,"d":"$724,495"}},{"$f":"'Trial 3'!S12","v":{"v":724303.1261411051,"d":"$724,303"}},{"$f":"'Trial 3'!T12","v":{"v":724147.738839778,"d":"$724,148"}},{"$f":"'Trial 3'!U12","v":{"v":723868.8432863512,"d":"$723,869"}},{"$f":"'Trial 3'!V12","v":{"v":723674.0380602593,"d":"$723,674"}},{"$f":"'Trial 3'!W12","v":{"v":723487.6437030588,"d":"$723,488"}},{"$f":"'Trial 3'!X12","v":{"v":723215.4071775334,"d":"$723,215"}},{"$f":"'Trial 3'!Y12","v":{"v":722987.0881038686,"d":"$722,987"}},{"$f":"'Trial 3'!Z12","v":{"v":722656.4720251783,"d":"$722,656"}},{"$f":"SUM('Trial 3'!O12:Z12)","v":{"v":8687834.640354494,"d":"$8,687,835"}},{"$f":"'Trial 3'!AB12","v":{"v":722409.0631321634,"d":"$722,409"}},{"$f":"'Trial 3'!AC12","v":{"v":722167.1696264407,"d":"$722,167"}},{"$f":"'Trial 3'!AD12","v":{"v":721962.6442804664,"d":"$721,963"}},{"$f":"'Trial 3'!AE12","v":{"v":721688.5700823765,"d":"$721,689"}},{"$f":"'Trial 3'!AF12","v":{"v":721444.6621918849,"d":"$721,445"}},{"$f":"'Trial 3'!AG12","v":{"v":721193.6745849418,"d":"$721,194"}},{"$f":"'Trial 3'!AH12","v":{"v":720916.9078703455,"d":"$720,917"}},{"$f":"'Trial 3'!AI12","v":{"v":720591.0306701686,"d":"$720,591"}},{"$f":"'Trial 3'!AJ12","v":{"v":720349.3003431088,"d":"$720,349"}},{"$f":"'Trial 3'!AK12","v":{"v":720105.7690034205,"d":"$720,106"}},{"$f":"'Trial 3'!AL12","v":{"v":719847.3001289289,"d":"$719,847"}},{"$f":"'Trial 3'!AM12","v":{"v":719534.5005194104,"d":"$719,535"}},{"$f":"SUM('Trial 3'!AB12:AM12)","v":{"v":8652210.592433656,"d":"$8,652,211"}},{"$f":"'Trial 3'!AO12","v":{"v":719344.2684081016,"d":"$719,344"}},{"$f":"'Trial 3'!AP12","v":{"v":719026.3790413815,"d":"$719,026"}},{"$f":"'Trial 3'!AQ12","v":{"v":718765.9836954327,"d":"$718,766"}},{"$f":"'Trial 3'!AR12","v":{"v":718570.0551716479,"d":"$718,570"}},{"$f":"'Trial 3'!AS12","v":{"v":718340.145015551,"d":"$718,340"}},{"$f":"'Trial 3'!AT12","v":{"v":718049.5162313426,"d":"$718,050"}},{"$f":"'Trial 3'!AU12","v":{"v":717786.9149573941,"d":"$717,787"}},{"$f":"'Trial 3'!AV12","v":{"v":717570.083201373,"d":"$717,570"}},{"$f":"'Trial 3'!AW12","v":{"v":717336.7549083492,"d":"$717,337"}},{"$f":"'Trial 3'!AX12","v":{"v":716969.7671493293,"d":"$716,970"}},{"$f":"'Trial 3'!AY12","v":{"v":716748.4004403565,"d":"$716,748"}},{"$f":"'Trial 3'!AZ12","v":{"v":716443.3078396177,"d":"$716,443"}},{"$f":"SUM('Trial 3'!AO12:AZ12)","v":{"v":8614951.576059876,"d":"$8,614,952"}},{"$f":"'Trial 3'!BB12","v":{"v":716155.5075845848,"d":"$716,156"}},{"$f":"'Trial 3'!BC12","v":{"v":715921.4495977395,"d":"$715,921"}},{"$f":"'Trial 3'!BD12","v":{"v":715708.7718467615,"d":"$715,709"}},{"$f":"'Trial 3'!BE12","v":{"v":715411.4535620972,"d":"$715,411"}},{"$f":"'Trial 3'!BF12","v":{"v":715158.3606252486,"d":"$715,158"}},{"$f":"'Trial 3'!BG12","v":{"v":714869.1084480818,"d":"$714,869"}},{"$f":"'Trial 3'!BH12","v":{"v":714583.7578039077,"d":"$714,584"}},{"$f":"'Trial 3'!BI12","v":{"v":714361.7161276501,"d":"$714,362"}},{"$f":"'Trial 3'!BJ12","v":{"v":714060.7243791993,"d":"$714,061"}},{"$f":"'Trial 3'!BK12","v":{"v":713691.4229334324,"d":"$713,691"}},{"$f":"'Trial 3'!BL12","v":{"v":713327.919953665,"d":"$713,328"}},{"$f":"'Trial 3'!BM12","v":{"v":713036.9192277067,"d":"$713,037"}},{"$f":"SUM('Trial 3'!BB12:BM12)","v":{"v":8576287.112090074,"d":"$8,576,287"}},{"$f":"'Trial 3'!BO12","v":{"v":712656.0371815818,"d":"$712,656"}},{"$f":"'Trial 3'!BP12","v":{"v":712341.2064560064,"d":"$712,341"}},{"$f":"'Trial 3'!BQ12","v":{"v":712009.254099548,"d":"$712,009"}},{"$f":"'Trial 3'!BR12","v":{"v":711693.470665594,"d":"$711,693"}},{"$f":"'Trial 3'!BS12","v":{"v":711448.1566931414,"d":"$711,448"}},{"$f":"'Trial 3'!BT12","v":{"v":711143.4452042215,"d":"$711,143"}},{"$f":"'Trial 3'!BU12","v":{"v":710859.2527731293,"d":"$710,859"}},{"$f":"'Trial 3'!BV12","v":{"v":710485.953896023,"d":"$710,486"}},{"$f":"'Trial 3'!BW12","v":{"v":710180.2371415293,"d":"$710,180"}},{"$f":"'Trial 3'!BX12","v":{"v":709903.0221791343,"d":"$709,903"}},{"$f":"'Trial 3'!BY12","v":{"v":709567.8148804912,"d":"$709,568"}},{"$f":"'Trial 3'!BZ12","v":{"v":709214.0170736917,"d":"$709,214"}},{"$f":"SUM('Trial 3'!BO12:BZ12)","v":{"v":8531501.868244091,"d":"$8,531,502"}},{"$f":"'Trial 3'!CB12","v":{"v":708834.7781274437,"d":"$708,835"}},{"$f":"'Trial 3'!CC12","v":{"v":708523.6004572489,"d":"$708,524"}},{"$f":"'Trial 3'!CD12","v":{"v":708235.3168296549,"d":"$708,235"}},{"$f":"'Trial 3'!CE12","v":{"v":707846.9244486049,"d":"$707,847"}},{"$f":"'Trial 3'!CF12","v":{"v":707460.4355026337,"d":"$707,460"}},{"$f":"'Trial 3'!CG12","v":{"v":707157.7357827753,"d":"$707,158"}},{"$f":"'Trial 3'!CH12","v":{"v":706811.802877494,"d":"$706,812"}},{"$f":"'Trial 3'!CI12","v":{"v":706429.537983458,"d":"$706,430"}},{"$f":"'Trial 3'!CJ12","v":{"v":706157.1691963482,"d":"$706,157"}},{"$f":"'Trial 3'!CK12","v":{"v":705842.2281904449,"d":"$705,842"}},{"$f":"'Trial 3'!CL12","v":{"v":705527.7219525932,"d":"$705,528"}},{"$f":"'Trial 3'!CM12","v":{"v":705151.8317564152,"d":"$705,152"}},{"$f":"SUM('Trial 3'!CB12:CM12)","v":{"v":8483979.083105113,"d":"$8,483,979"}},{"$f":"'Trial 3'!CO12","v":{"v":704783.914381453,"d":"$704,784"}},{"$f":"'Trial 3'!CP12","v":{"v":704476.8684017386,"d":"$704,477"}},{"$f":"'Trial 3'!CQ12","v":{"v":704151.2551367086,"d":"$704,151"}},{"$f":"'Trial 3'!CR12","v":{"v":703828.3480161122,"d":"$703,828"}},{"$f":"'Trial 3'!CS12","v":{"v":703441.791742385,"d":"$703,442"}},{"$f":"'Trial 3'!CT12","v":{"v":703119.3153387229,"d":"$703,119"}},{"$f":"'Trial 3'!CU12","v":{"v":702873.0369731629,"d":"$702,873"}},{"$f":"'Trial 3'!CV12","v":{"v":702517.7224206561,"d":"$702,518"}},{"$f":"'Trial 3'!CW12","v":{"v":702192.7265646587,"d":"$702,193"}},{"$f":"'Trial 3'!CX12","v":{"v":701808.875456927,"d":"$701,809"}},{"$f":"'Trial 3'!CY12","v":{"v":701500.9985937306,"d":"$701,501"}},{"$f":"'Trial 3'!CZ12","v":{"v":701225.6786209013,"d":"$701,226"}},{"$f":"SUM('Trial 3'!CO12:CZ12)","v":{"v":8435920.531647157,"d":"$8,435,921"}},{"$f":"'Trial 3'!DB12","v":{"v":700952.7031751082,"d":"$700,953"}},{"$f":"'Trial 3'!DC12","v":{"v":700615.9585663201,"d":"$700,616"}},{"$f":"'Trial 3'!DD12","v":{"v":700200.2472517764,"d":"$700,200"}},{"$f":"'Trial 3'!DE12","v":{"v":699850.808334359,"d":"$699,851"}},{"$f":"'Trial 3'!DF12","v":{"v":699496.2139874753,"d":"$699,496"}},{"$f":"'Trial 3'!DG12","v":{"v":699138.8355317841,"d":"$699,139"}},{"$f":"'Trial 3'!DH12","v":{"v":698778.7851805186,"d":"$698,779"}},{"$f":"'Trial 3'!DI12","v":{"v":698490.4846567522,"d":"$698,490"}},{"$f":"'Trial 3'!DJ12","v":{"v":698196.8985242551,"d":"$698,197"}},{"$f":"'Trial 3'!DK12","v":{"v":697915.6854215147,"d":"$697,916"}},{"$f":"'Trial 3'!DL12","v":{"v":697573.4260813324,"d":"$697,573"}},{"$f":"'Trial 3'!DM12","v":{"v":697175.466173647,"d":"$697,175"}},{"$f":"SUM('Trial 3'!DB12:DM12)","v":{"v":8388385.512884842,"d":"$8,388,386"}},{"$f":"'Trial 3'!DO12","v":{"v":696840.3844674558,"d":"$696,840"}},{"$f":"'Trial 3'!DP12","v":{"v":696566.2535157821,"d":"$696,566"}},{"$f":"'Trial 3'!DQ12","v":{"v":696292.0930914286,"d":"$696,292"}},{"$f":"'Trial 3'!DR12","v":{"v":695967.7875570637,"d":"$695,968"}},{"$f":"'Trial 3'!DS12","v":{"v":695705.5680171367,"d":"$695,706"}},{"$f":"'Trial 3'!DT12","v":{"v":695383.2301608155,"d":"$695,383"}},{"$f":"'Trial 3'!DU12","v":{"v":695040.004097059,"d":"$695,040"}},{"$f":"'Trial 3'!DV12","v":{"v":694723.5703564319,"d":"$694,724"}},{"$f":"'Trial 3'!DW12","v":{"v":694290.393510767,"d":"$694,290"}},{"$f":"'Trial 3'!DX12","v":{"v":694007.3088193279,"d":"$694,007"}},{"$f":"'Trial 3'!DY12","v":{"v":693671.349023345,"d":"$693,671"}},{"$f":"'Trial 3'!DZ12","v":{"v":693402.0827007225,"d":"$693,402"}},{"$f":"SUM('Trial 3'!DO12:DZ12)","v":{"v":8341890.025317336,"d":"$8,341,890"}},{"$f":"'Trial 3'!EB12","v":{"v":693037.2324635574,"d":"$693,037"}},{"$f":"'Trial 3'!EC12","v":{"v":692731.8464009877,"d":"$692,732"}},{"$f":"'Trial 3'!ED12","v":{"v":692444.626543266,"d":"$692,445"}},{"$f":"'Trial 3'!EE12","v":{"v":692040.2836508678,"d":"$692,040"}},{"$f":"'Trial 3'!EF12","v":{"v":691669.5395356416,"d":"$691,670"}},{"$f":"'Trial 3'!EG12","v":{"v":691289.5288414008,"d":"$691,290"}},{"$f":"'Trial 3'!EH12","v":{"v":690964.0756027554,"d":"$690,964"}},{"$f":"'Trial 3'!EI12","v":{"v":690537.3708075553,"d":"$690,537"}},{"$f":"'Trial 3'!EJ12","v":{"v":690103.8269993534,"d":"$690,104"}},{"$f":"'Trial 3'!EK12","v":{"v":689719.7144837553,"d":"$689,720"}},{"$f":"'Trial 3'!EL12","v":{"v":689360.8217657777,"d":"$689,361"}},{"$f":"'Trial 3'!EM12","v":{"v":688988.7037765792,"d":"$688,989"}},{"$f":"SUM('Trial 3'!EB12:EM12)","v":{"v":8292887.5708714975,"d":"$8,292,888"}}]
[{"$f":"Labels!B99","v":"Trial 04"},{"$f":"'Trial 4'!B12","v":{"v":728000,"d":"$728,000"}},{"$f":"'Trial 4'!C12","v":{"v":727831.3454979343,"d":"$727,831"}},{"$f":"'Trial 4'!D12","v":{"v":727694.5954371891,"d":"$727,695"}},{"$f":"'Trial 4'!E12","v":{"v":727505.7267721107,"d":"$727,506"}},{"$f":"'Trial 4'!F12","v":{"v":727215.2536509885,"d":"$727,215"}},{"$f":"'Trial 4'!G12","v":{"v":726944.897078066,"d":"$726,945"}},{"$f":"'Trial 4'!H12","v":{"v":726758.0892133282,"d":"$726,758"}},{"$f":"'Trial 4'!I12","v":{"v":726574.0456240454,"d":"$726,574"}},{"$f":"'Trial 4'!J12","v":{"v":726397.5715758316,"d":"$726,398"}},{"$f":"'Trial 4'!K12","v":{"v":726147.9696523362,"d":"$726,148"}},{"$f":"'Trial 4'!L12","v":{"v":725897.8322507667,"d":"$725,898"}},{"$f":"'Trial 4'!M12","v":{"v":725653.4661878775,"d":"$725,653"}},{"$f":"SUM('Trial 4'!B12:M12)","v":{"v":8722620.792940473,"d":"$8,722,621"}},{"$f":"'Trial 4'!O12","v":{"v":725405.4509448007,"d":"$725,405"}},{"$f":"'Trial 4'!P12","v":{"v":725211.1411719979,"d":"$725,211"}},{"$f":"'Trial 4'!Q12","v":{"v":724969.9444608222,"d":"$724,970"}},{"$f":"'Trial 4'!R12","v":{"v":724783.4915342736,"d":"$724,783"}},{"$f":"'Trial 4'!S12","v":{"v":724621.1999530257,"d":"$724,621"}},{"$f":"'Trial 4'!T12","v":{"v":724449.6172356759,"d":"$724,450"}},{"$f":"'Trial 4'!U12","v":{"v":724168.48836229,"d":"$724,168"}},{"$f":"'Trial 4'!V12","v":{"v":723918.6150207899,"d":"$723,919"}},{"$f":"'Trial 4'!W12","v":{"v":723676.077979585,"d":"$723,676"}},{"$f":"'Trial 4'!X12","v":{"v":723419.7069998971,"d":"$723,420"}},{"$f":"'Trial 4'!Y12","v":{"v":723207.0819935445,"d":"$723,207"}},{"$f":"'Trial 4'!Z12","v":{"v":722884.9614491588,"d":"$722,885"}},{"$f":"SUM('Trial 4'!O12:Z12)","v":{"v":8690715.777105862,"d":"$8,690,716"}},{"$f":"'Trial 4'!AB12","v":{"v":722649.4906944479,"d":"$722,649"}},{"$f":"'Trial 4'!AC12","v":{"v":722411.4153828697,"d":"$722,411"}},{"$f":"'Trial 4'!AD12","v":{"v":722159.1256001061,"d":"$722,159"}},{"$f":"'Trial 4'!AE12","v":{"v":721894.913574771,"d":"$721,895"}},{"$f":"'Trial 4'!AF12","v":{"v":721572.8491609815,"d":"$721,573"}},{"$f":"'Trial 4'!AG12","v":{"v":721343.1781863448,"d":"$721,343"}},{"$f":"'Trial 4'!AH12","v":{"v":721103.9513160164,"d":"$721,104"}},{"$f":"'Trial 4'!AI12","v":{"v":720918.7871139162,"d":"$720,919"}},{"$f":"'Trial 4'!AJ12","v":{"v":720611.6148716811,"d":"$720,612"}},{"$f":"'Trial 4'!AK12","v":{"v":720260.6742797487,"d":"$720,261"}},{"$f":"'Trial 4'!AL12","v":{"v":719934.7485144004,"d":"$719,935"}},{"$f":"'Trial 4'!AM12","v":{"v":719650.1305429467,"d":"$719,650"}},{"$f":"SUM('Trial 4'!AB12:AM12)","v":{"v":8654510.87923823,"d":"$8,654,511"}},{"$f":"'Trial 4'!AO12","v":{"v":719441.0819116296,"d":"$719,441"}},{"$f":"'Trial 4'!AP12","v":{"v":719127.1138590729,"d":"$719,127"}},{"$f":"'Trial 4'!AQ12","v":{"v":718840.0824548914,"d":"$718,840"}},{"$f":"'Trial 4'!AR12","v":{"v":718542.740136612,"d":"$718,543"}},{"$f":"'Trial 4'!AS12","v":{"v":718206.3402685332,"d":"$718,206"}},{"$f":"'Trial 4'!AT12","v":{"v":717861.4826839439,"d":"$717,861"}},{"$f":"'Trial 4'!AU12","v":{"v":717502.4272595407,"d":"$717,502"}},{"$f":"'Trial 4'!AV12","v":{"v":717230.8032860778,"d":"$717,231"}},{"$f":"'Trial 4'!AW12","v":{"v":716969.2251802001,"d":"$716,969"}},{"$f":"'Trial 4'!AX12","v":{"v":716671.5493036036,"d":"$716,672"}},{"$f":"'Trial 4'!AY12","v":{"v":716352.37374438,"d":"$716,352"}},{"$f":"'Trial 4'!AZ12","v":{"v":716066.3878635193,"d":"$716,066"}},{"$f":"SUM('Trial 4'!AO12:AZ12)","v":{"v":8612811.607952004,"d":"$8,612,812"}},{"$f":"'Trial 4'!BB12","v":{"v":715764.8729444634,"d":"$715,765"}},{"$f":"'Trial 4'!BC12","v":{"v":715512.4218426576,"d":"$715,512"}},{"$f":"'Trial 4'!BD12","v":{"v":715197.0919919922,"d":"$715,197"}},{"$f":"'Trial 4'!BE12","v":{"v":714881.1853172716,"d":"$714,881"}},{"$f":"'Trial 4'!BF12","v":{"v":714570.0046384691,"d":"$714,570"}},{"$f":"'Trial 4'!BG12","v":{"v":714282.0776264615,"d":"$714,282"}},{"$f":"'Trial 4'!BH12","v":{"v":714026.1761327713,"d":"$714,026"}},{"$f":"'Trial 4'!BI12","v":{"v":713760.7030904116,"d":"$713,761"}},{"$f":"'Trial 4'!BJ12","v":{"v":713405.728389301,"d":"$713,406"}},{"$f":"'Trial 4'!BK12","v":{"v":713120.0924991223,"d":"$713,120"}},{"$f":"'Trial 4'!BL12","v":{"v":712799.3125241951,"d":"$712,799"}},{"$f":"'Trial 4'!BM12","v":{"v":712494.2759056608,"d":"$712,494"}},{"$f":"SUM('Trial 4'!BB12:BM12)","v":{"v":8569813.942902777,"d":"$8,569,814"}},{"$f":"'Trial 4'!BO12","v":{"v":712213.4954210715,"d":"$712,213"}},{"$f":"'Trial 4'!BP12","v":{"v":711878.9663042135,"d":"$711,879"}},{"$f":"'Trial 4'!BQ12","v":{"v":711592.9702857595,"d":"$711,593"}},{"$f":"'Trial 4'!BR12","v":{"v":711264.4531391769,"d":"$711,264"}},{"$f":"'Trial 4'!BS12","v":{"v":710958.5416480821,"d":"$710,959"}},{"$f":"'Trial 4'!BT12","v":{"v":710629.2027998021,"d":"$710,629"}},{"$f":"'Trial 4'!BU12","v":{"v":710343.8315924793,"d":"$710,344"}},{"$f":"'Trial 4'!BV12","v":{"v":710047.2493163623,"d":"$710,047"}},{"$f":"'Trial 4'!BW12","v":{"v":709682.7714172209,"d":"$709,683"}},{"$f":"'Trial 4'!BX12","v":{"v":709414.6360660451,"d":"$709,415"}},{"$f":"'Trial 4'!BY12","v":{"v":709162.3233189258,"d":"$709,162"}},{"$f":"'Trial 4'!BZ12","v":{"v":708841.2589829996,"d":"$708,841"}},{"$f":"SUM('Trial 4'!BO12:BZ12)","v":{"v":8526029.70029214,"d":"$8,526,030"}},{"$f":"'Trial 4'!CB12","v":{"v":708562.6570141091,"d":"$708,563"}},{"$f":"'Trial 4'!CC12","v":{"v":708250.6309022442,"d":"$708,251"}},{"$f":"'Trial 4'!CD12","v":{"v":707941.2861050105,"d":"$707,941"}},{"$f":"'Trial 4'!CE12","v":{"v":707633.762575256,"d":"$707,634"}},{"$f":"'Trial 4'!CF12","v":{"v":707304.3390599099,"d":"$707,304"}},{"$f":"'Trial 4'!CG12","v":{"v":706974.20103257,"d":"$706,974"}},{"$f":"'Trial 4'!CH12","v":{"v":706673.4081857223,"d":"$706,673"}},{"$f":"'Trial 4'!CI12","v":{"v":706291.5372341721,"d":"$706,292"}},{"$f":"'Trial 4'!CJ12","v":{"v":705968.2289019678,"d":"$705,968"}},{"$f":"'Trial 4'!CK12","v":{"v":705668.9319474921,"d":"$705,669"}},{"$f":"'Trial 4'!CL12","v":{"v":705331.47410762,"d":"$705,331"}},{"$f":"'Trial 4'!CM12","v":{"v":705022.844070426,"d":"$705,023"}},{"$f":"SUM('Trial 4'!CB12:CM12)","v":{"v":8481623.3011365,"d":"$8,481,623"}},{"$f":"'Trial 4'!CO12","v":{"v":704666.3052597432,"d":"$704,666"}},{"$f":"'Trial 4'!CP12","v":{"v":704395.753566206,"d":"$704,396"}},{"$f":"'Trial 4'!CQ12","v":{"v":704069.0030169365,"d":"$704,069"}},{"$f":"'Trial 4'!CR12","v":{"v":703699.1275379569,"d":"$703,699"}},{"$f":"'Trial 4'!CS12","v":{"v":703375.3154699055,"d":"$703,375"}},{"$f":"'Trial 4'!CT12","v":{"v":703002.5044946629,"d":"$703,003"}},{"$f":"'Trial 4'!CU12","v":{"v":702659.8500685634,"d":"$702,660"}},{"$f":"'Trial 4'!CV12","v":{"v":702314.0770480976,"d":"$702,314"}},{"$f":"'Trial 4'!CW12","v":{"v":702019.6058804757,"d":"$702,020"}},{"$f":"'Trial 4'!CX12","v":{"v":701675.1253661293,"d":"$701,675"}},{"$f":"'Trial 4'!CY12","v":{"v":701378.7065610617,"d":"$701,379"}},{"$f":"'Trial 4'!CZ12","v":{"v":701057.0511348444,"d":"$701,057"}},{"$f":"SUM('Trial 4'!CO12:CZ12)","v":{"v":8434312.425404582,"d":"$8,434,312"}},{"$f":"'Trial 4'!DB12","v":{"v":700690.4702049857,"d":"$700,690"}},{"$f":"'Trial 4'!DC12","v":{"v":700342.8925183137,"d":"$700,343"}},{"$f":"'Trial 4'!DD12","v":{"v":700093.7874409433,"d":"$700,094"}},{"$f":"'Trial 4'!DE12","v":{"v":699764.6665142836,"d":"$699,765"}},{"$f":"'Trial 4'!DF12","v":{"v":699454.4106454054,"d":"$699,454"}},{"$f":"'Trial 4'!DG12","v":{"v":699126.0542955272,"d":"$699,126"}},{"$f":"'Trial 4'!DH12","v":{"v":698717.4304986099,"d":"$698,717"}},{"$f":"'Trial 4'!DI12","v":{"v":698396.662209388,"d":"$698,397"}},{"$f":"'Trial 4'!DJ12","v":{"v":698014.2611693916,"d":"$698,014"}},{"$f":"'Trial 4'!DK12","v":{"v":697586.2649978264,"d":"$697,586"}},{"$f":"'Trial 4'!DL12","v":{"v":697252.3322525126,"d":"$697,252"}},{"$f":"'Trial 4'!DM12","v":{"v":696901.4442683636,"d":"$696,901"}},{"$f":"SUM('Trial 4'!DB12:DM12)","v":{"v":8386340.67701555,"d":"$8,386,341"}},{"$f":"'Trial 4'!DO12","v":{"v":696584.3474753215,"d":"$696,584"}},{"$f":"'Trial 4'!DP12","v":{"v":696229.1129800336,"d":"$696,229"}},{"$f":"'Trial 4'!DQ12","v":{"v":695921.1373465515,"d":"$695,921"}},{"$f":"'Trial 4'!DR12","v":{"v":695632.3897296273,"d":"$695,632"}},{"$f":"'Trial 4'!DS12","v":{"v":695277.0161972307,"d":"$695,277"}},{"$f":"'Trial 4'!DT12","v":{"v":694977.5291789625,"d":"$694,978"}},{"$f":"'Trial 4'!DU12","v":{"v":694559.918048681,"d":"$694,560"}},{"$f":"'Trial 4'!DV12","v":{"v":694132.6001166453,"d":"$694,133"}},{"$f":"'Trial 4'!DW12","v":{"v":693795.2435395421,"d":"$693,795"}},{"$f":"'Trial 4'!DX12","v":{"v":693497.786391868,"d":"$693,498"}},{"$f":"'Trial 4'!DY12","v":{"v":693090.2170506965,"d":"$693,090"}},{"$f":"'Trial 4'!DZ12","v":{"v":692769.0285549931,"d":"$692,769"}},{"$f":"SUM('Trial 4'!DO12:DZ12)","v":{"v":8336466.326610153,"d":"$8,336,466"}},{"$f":"'Trial 4'!EB12","v":{"v":692399.8893494895,"d":"$692,400"}},{"$f":"'Trial 4'!EC12","v":{"v":692102.5152334014,"d":"$692,103"}},{"$f":"'Trial 4'!ED12","v":{"v":691821.0984848186,"d":"$691,821"}},{"$f":"'Trial 4'!EE12","v":{"v":691497.8424479758,"d":"$691,498"}},{"$f":"'Trial 4'!EF12","v":{"v":691139.7696513854,"d":"$691,140"}},{"$f":"'Trial 4'!EG12","v":{"v":690755.2869104668,"d":"$690,755"}},{"$f":"'Trial 4'!EH12","v":{"v":690338.32951359,"d":"$690,338"}},{"$f":"'Trial 4'!EI12","v":{"v":690003.6097753749,"d":"$690,004"}},{"$f":"'Trial 4'!EJ12","v":{"v":689733.5064656441,"d":"$689,734"}},{"$f":"'Trial 4'!EK12","v":{"v":689410.5215495093,"d":"$689,411"}},{"$f":"'Trial 4'!EL12","v":{"v":689009.1003854432,"d":"$689,009"}},{"$f":"'Trial 4'!EM12","v":{"v":688657.8960944031,"d":"$688,658"}},{"$f":"SUM('Trial 4'!EB12:EM12)","v":{"v":8286869.3658615025,"d":"$8,286,869"}}]
[{"$f":"Labels!B100","v":"Trial 05"},{"$f":"'Trial 5'!B12","v":{"v":728000,"d":"$728,000"}},{"$f":"'Trial 5'!C12","v":{"v":727775.7836781372,"d":"$727,776"}},{"$f":"'Trial 5'!D12","v":{"v":727522.2835396044,"d":"$727,522"}},{"$f":"'Trial 5'!E12","v":{"v":727313.2519971956,"d":"$727,313"}},{"$f":"'Trial 5'!F12","v":{"v":727110.7606972151,"d":"$727,111"}},{"$f":"'Trial 5'!G12","v":{"v":726865.9465656712,"d":"$726,866"}},{"$f":"'Trial 5'!H12","v":{"v":726591.5572136581,"d":"$726,592"}},{"$f":"'Trial 5'!I12","v":{"v":726448.7757151786,"d":"$726,449"}},{"$f":"'Trial 5'!J12","v":{"v":726132.8316505802,"d":"$726,133"}},{"$f":"'Trial 5'!K12","v":{"v":725884.4361384497,"d":"$725,884"}},{"$f":"'Trial 5'!L12","v":{"v":725654.935419429,"d":"$725,655"}},{"$f":"'Trial 5'!M12","v":{"v":725510.2671530023,"d":"$725,510"}},{"$f":"SUM('Trial 5'!B12:M12)","v":{"v":8720810.829768121,"d":"$8,720,811"}},{"$f":"'Trial 5'!O12","v":{"v":725273.2713903241,"d":"$725,273"}},{"$f":"'Trial 5'!P12","v":{"v":725014.5420296092,"d":"$725,015"}},{"$f":"'Trial 5'!Q12","v":{"v":724769.2934872233,"d":"$724,769"}},{"$f":"'Trial 5'!R12","v":{"v":724540.4631268864,"d":"$724,540"}},{"$f":"'Trial 5'!S12","v":{"v":724234.7077255318,"d":"$724,235"}},{"$f":"'Trial 5'!T12","v":{"v":723954.9712307001,"d":"$723,955"}},{"$f":"'Trial 5'!U12","v":{"v":723773.721248783,"d":"$723,774"}},{"$f":"'Trial 5'!V12","v":{"v":723568.9818810954,"d":"$723,569"}},{"$f":"'Trial 5'!W12","v":{"v":723277.4632569443,"d":"$723,277"}},{"$f":"'Trial 5'!X12","v":{"v":723028.9958340293,"d":"$723,029"}},{"$f":"'Trial 5'!Y12","v":{"v":722778.1585614295,"d":"$722,778"}},{"$f":"'Trial 5'!Z12","v":{"v":722535.0145380012,"d":"$722,535"}},{"$f":"SUM('Trial 5'!O12:Z12)","v":{"v":8686749.584310558,"d":"$8,686,750"}},{"$f":"'Trial 5'!AB12","v":{"v":722237.7034486723,"d":"$722,238"}},{"$f":"'Trial 5'!AC12","v":{"v":721911.6688491916,"d":"$721,912"}},{"$f":"'Trial 5'!AD12","v":{"v":721679.3656691903,"d":"$721,679"}},{"$f":"'Trial 5'!AE12","v":{"v":721471.6865133768,"d":"$721,472"}},{"$f":"'Trial 5'!AF12","v":{"v":721154.5143806624,"d":"$721,155"}},{"$f":"'Trial 5'!AG12","v":{"v":720835.7419384299,"d":"$720,836"}},{"$f":"'Trial 5'!AH12","v":{"v":720544.8160432591,"d":"$720,545"}},{"$f":"'Trial 5'!AI12","v":{"v":720326.2840154568,"d":"$720,326"}},{"$f":"'Trial 5'!AJ12","v":{"v":720050.8145740939,"d":"$720,051"}},{"$f":"'Trial 5'!AK12","v":{"v":719808.2874143149,"d":"$719,808"}},{"$f":"'Trial 5'!AL12","v":{"v":719588.0491871424,"d":"$719,588"}},{"$f":"'Trial 5'!AM12","v":{"v":719353.4512476393,"d":"$719,353"}},{"$f":"SUM('Trial 5'!AB12:AM12)","v":{"v":8648962.38328143,"d":"$8,648,962"}},{"$f":"'Trial 5'!AO12","v":{"v":719052.2433930209,"d":"$719,052"}},{"$f":"'Trial 5'!AP12","v":{"v":718767.5136345782,"d":"$718,768"}},{"$f":"'Trial 5'!AQ12","v":{"v":718467.6014860338,"d":"$718,468"}},{"$f":"'Trial 5'!AR12","v":{"v":718142.5028622458,"d":"$718,143"}},{"$f":"'Trial 5'!AS12","v":{"v":717942.6419597705,"d":"$717,943"}},{"$f":"'Trial 5'!AT12","v":{"v":717624.5566595201,"d":"$717,625"}},{"$f":"'Trial 5'!AU12","v":{"v":717353.7769667625,"d":"$717,354"}},{"$f":"'Trial 5'!AV12","v":{"v":717099.2306798237,"d":"$717,099"}},{"$f":"'Trial 5'!AW12","v":{"v":716828.7312866184,"d":"$716,829"}},{"$f":"'Trial 5'!AX12","v":{"v":716478.3132979169,"d":"$716,478"}},{"$f":"'Trial 5'!AY12","v":{"v":716168.6416871924,"d":"$716,169"}},{"$f":"'Trial 5'!AZ12","v":{"v":715865.2366994785,"d":"$715,865"}},{"$f":"SUM('Trial 5'!AO12:AZ12)","v":{"v":8609790.990612961,"d":"$8,609,791"}},{"$f":"'Trial 5'!BB12","v":{"v":715616.4277630189,"d":"$715,616"}},{"$f":"'Trial 5'!BC12","v":{"v":715259.9998009886,"d":"$715,260"}},{"$f":"'Trial 5'!BD12","v":{"v":714988.5702281893,"d":"$714,989"}},{"$f":"'Trial 5'!BE12","v":{"v":714778.2091492544,"d":"$714,778"}},{"$f":"'Trial 5'!BF12","v":{"v":714537.1261939805,"d":"$714,537"}},{"$f":"'Trial 5'!BG12","v":{"v":714223.5570364253,"d":"$714,224"}},{"$f":"'Trial 5'!BH12","v":{"v":713855.2528831905,"d":"$713,855"}},{"$f":"'Trial 5'!BI12","v":{"v":713640.2697184411,"d":"$713,640"}},{"$f":"'Trial 5'!BJ12","v":{"v":713283.2022774842,"d":"$713,283"}},{"$f":"'Trial 5'!BK12","v":{"v":712976.5768626172,"d":"$712,977"}},{"$f":"'Trial 5'!BL12","v":{"v":712734.3615025782,"d":"$712,734"}},{"$f":"'Trial 5'!BM12","v":{"v":712372.9071391581,"d":"$712,373"}},{"$f":"SUM('Trial 5'!BB12:BM12)","v":{"v":8568266.460555326,"d":"$8,568,266"}},{"$f":"'Trial 5'!BO12","v":{"v":712089.4136992862,"d":"$712,089"}},{"$f":"'Trial 5'!BP12","v":{"v":711718.6115029266,"d":"$711,719"}},{"$f":"'Trial 5'!BQ12","v":{"v":711414.773320616,"d":"$711,415"}},{"$f":"'Trial 5'!BR12","v":{"v":711060.4957785218,"d":"$711,060"}},{"$f":"'Trial 5'!BS12","v":{"v":710814.2082943127,"d":"$710,814"}},{"$f":"'Trial 5'!BT12","v":{"v":710475.8422054242,"d":"$710,476"}},{"$f":"'Trial 5'!BU12","v":{"v":710200.1679147152,"d":"$710,200"}},{"$f":"'Trial 5'!BV12","v":{"v":709947.85329565,"d":"$709,948"}},{"$f":"'Trial 5'!BW12","v":{"v":709587.1638123324,"d":"$709,587"}},{"$f":"'Trial 5'!BX12","v":{"v":709272.6207194236,"d":"$709,273"}},{"$f":"'Trial 5'!BY12","v":{"v":708870.8542237105,"d":"$708,871"}},{"$f":"'Trial 5'!BZ12","v":{"v":708587.2917362748,"d":"$708,587"}},{"$f":"SUM('Trial 5'!BO12:BZ12)","v":{"v":8524039.296503194,"d":"$8,524,039"}},{"$f":"'Trial 5'!CB12","v":{"v":708277.6312128147,"d":"$708,278"}},{"$f":"'Trial 5'!CC12","v":{"v":708011.9256694972,"d":"$708,012"}},{"$f":"'Trial 5'!CD12","v":{"v":707674.9604986854,"d":"$707,675"}},{"$f":"'Trial 5'!CE12","v":{"v":707275.2305290776,"d":"$707,275"}},{"$f":"'Trial 5'!CF12","v":{"v":706908.0065299256,"d":"$706,908"}},{"$f":"'Trial 5'!CG12","v":{"v":706565.0575938972,"d":"$706,565"}},{"$f":"'Trial 5'!CH12","v":{"v":706306.6547914449,"d":"$706,307"}},{"$f":"'Trial 5'!CI12","v":{"v":706066.794712609,"d":"$706,067"}},{"$f":"'Trial 5'!CJ12","v":{"v":705778.2672677266,"d":"$705,778"}},{"$f":"'Trial 5'!CK12","v":{"v":705509.6630552469,"d":"$705,510"}},{"$f":"'Trial 5'!CL12","v":{"v":705178.0535325014,"d":"$705,178"}},{"$f":"'Trial 5'!CM12","v":{"v":704817.2593337963,"d":"$704,817"}},{"$f":"SUM('Trial 5'!CB12:CM12)","v":{"v":8478369.504727222,"d":"$8,478,370"}},{"$f":"'Trial 5'!CO12","v":{"v":704467.7155397575,"d":"$704,468"}},{"$f":"'Trial 5'!CP12","v":{"v":704104.248668179,"d":"$704,104"}},{"$f":"'Trial 5'!CQ12","v":{"v":703751.3686890258,"d":"$703,751"}},{"$f":"'Trial 5'!CR12","v":{"v":703476.110092663,"d":"$703,476"}},{"$f":"'Trial 5'!CS12","v":{"v":703161.5672604276,"d":"$703,162"}},{"$f":"'Trial 5'!CT12","v":{"v":702806.6365443082,"d":"$702,807"}},{"$f":"'Trial 5'!CU12","v":{"v":702410.9542786306,"d":"$702,411"}},{"$f":"'Trial 5'!CV12","v":{"v":702091.33045076,"d":"$702,091"}},{"$f":"'Trial 5'!CW12","v":{"v":701725.9104509876,"d":"$701,726"}},{"$f":"'Trial 5'!CX12","v":{"v":701399.6960715848,"d":"$701,400"}},{"$f":"'Trial 5'!CY12","v":{"v":701001.4997727644,"d":"$701,001"}},{"$f":"'Trial 5'!CZ12","v":{"v":700668.3819370983,"d":"$700,668"}},{"$f":"SUM('Trial 5'!CO12:CZ12)","v":{"v":8431065.419756185,"d":"$8,431,065"}},{"$f":"'Trial 5'!DB12","v":{"v":700361.9245701568,"d":"$700,362"}},{"$f":"'Trial 5'!DC12","v":{"v":700037.9177142624,"d":"$700,038"}},{"$f":"'Trial 5'!DD12","v":{"v":699676.9873325292,"d":"$699,677"}},{"$f":"'Trial 5'!DE12","v":{"v":699280.7490770248,"d":"$699,281"}},{"$f":"'Trial 5'!DF12","v":{"v":698970.6104739323,"d":"$698,971"}},{"$f":"'Trial 5'!DG12","v":{"v":698710.6378292728,"d":"$698,711"}},{"$f":"'Trial 5'!DH12","v":{"v":698362.4575697195,"d":"$698,362"}},{"$f":"'Trial 5'!DI12","v":{"v":698021.1135655063,"d":"$698,021"}},{"$f":"'Trial 5'!DJ12","v":{"v":697686.3272094321,"d":"$697,686"}},{"$f":"'Trial 5'!DK12","v":{"v":697313.8846889645,"d":"$697,314"}},{"$f":"'Trial 5'!DL12","v":{"v":696972.5432185292,"d":"$696,973"}},{"$f":"'Trial 5'!DM12","v":{"v":696542.2095845257,"d":"$696,542"}},{"$f":"SUM('Trial 5'!DB12:DM12)","v":{"v":8381937.362833855,"d":"$8,381,937"}},{"$f":"'Trial 5'!DO12","v":{"v":696208.6803892207,"d":"$696,209"}},{"$f":"'Trial 5'!DP12","v":{"v":695952.7852564865,"d":"$695,953"}},{"$f":"'Trial 5'!DQ12","v":{"v":695587.0063573896,"d":"$695,587"}},{"$f":"'Trial 5'!DR12","v":{"v":695172.2958939831,"d":"$695,172"}},{"$f":"'Trial 5'!DS12","v":{"v":694791.8549892264,"d":"$694,792"}},{"$f":"'Trial 5'!DT12","v":{"v":694396.6378457966,"d":"$694,397"}},{"$f":"'Trial 5'!DU12","v":{"v":694082.5126432177,"d":"$694,083"}},{"$f":"'Trial 5'!DV12","v":{"v":693751.017035845,"d":"$693,751"}},{"$f":"'Trial 5'!DW12","v":{"v":693399.9998566754,"d":"$693,400"}},{"$f":"'Trial 5'!DX12","v":{"v":693076.544485099,"d":"$693,077"}},{"$f":"'Trial 5'!DY12","v":{"v":692708.4408221601,"d":"$692,708"}},{"$f":"'Trial 5'!DZ12","v":{"v":692287.2094345147,"d":"$692,287"}},{"$f":"SUM('Trial 5'!DO12:DZ12)","v":{"v":8331414.985009613,"d":"$8,331,415"}},{"$f":"'Trial 5'!EB12","v":{"v":691924.4363169995,"d":"$691,924"}},{"$f":"'Trial 5'!EC12","v":{"v":691575.7747193443,"d":"$691,576"}},{"$f":"'Trial 5'!ED12","v":{"v":691306.7492090405,"d":"$691,307"}},{"$f":"'Trial 5'!EE12","v":{"v":690929.2249232896,"d":"$690,929"}},{"$f":"'Trial 5'!EF12","v":{"v":690513.4083351749,"d":"$690,513"}},{"$f":"'Trial 5'!EG12","v":{"v":690154.9894658619,"d":"$690,155"}},{"$f":"'Trial 5'!EH12","v":{"v":689787.0235078719,"d":"$689,787"}},{"$f":"'Trial 5'!EI12","v":{"v":689463.1706103801,"d":"$689,463"}},{"$f":"'Trial 5'!EJ12","v":{"v":689027.9979654647,"d":"$689,028"}},{"$f":"'Trial 5'!EK12","v":{"v":688726.637745186,"d":"$688,727"}},{"$f":"'Trial 5'!EL12","v":{"v":688331.9400272627,"d":"$688,332"}},{"$f":"'Trial 5'!EM12","v":{"v":687981.1350463713,"d":"$687,981"}},{"$f":"SUM('Trial 5'!EB12:EM12)","v":{"v":8279722.487872248,"d":"$8,279,722"}}]
[{"$f":"Labels!B101","v":"Trial 06"},{"$f":"'Trial 6'!B12","v":{"v":728000,"d":"$728,000"}},{"$f":"'Trial 6'!C12","v":{"v":727777.8314180913,"d":"$727,778"}},{"$f":"'Trial 6'!D12","v":{"v":727486.4829226624,"d":"$727,486"}},{"$f":"'Trial 6'!E12","v":{"v":727295.4035967998,"d":"$727,295"}},{"$f":"'Trial 6'!F12","v":{"v":727072.90327841,"d":"$727,073"}},{"$f":"'Trial 6'!G12","v":{"v":726764.4221859378,"d":"$726,764"}},{"$f":"'Trial 6'!H12","v":{"v":726561.3423103404,"d":"$726,561"}},{"$f":"'Trial 6'!I12","v":{"v":726291.867794664,"d":"$726,292"}},{"$f":"'Trial 6'!J12","v":{"v":726099.2538346454,"d":"$726,099"}},{"$f":"'Trial 6'!K12","v":{"v":725934.5231208288,"d":"$725,935"}},{"$f":"'Trial 6'!L12","v":{"v":725680.0429903757,"d":"$725,680"}},{"$f":"'Trial 6'!M12","v":{"v":725463.7660983669,"d":"$725,464"}},{"$f":"SUM('Trial 6'!B12:M12)","v":{"v":8720427.839551121,"d":"$8,720,428"}},{"$f":"'Trial 6'!O12","v":{"v":725142.8087446053,"d":"$725,143"}},{"$f":"'Trial 6'!P12","v":{"v":724841.2047297471,"d":"$724,841"}},{"$f":"'Trial 6'!Q12","v":{"v":724621.2258898923,"d":"$724,621"}},{"$f":"'Trial 6'!R12","v":{"v":724469.9616234689,"d":"$724,470"}},{"$f":"'Trial 6'!S12","v":{"v":724164.806282538,"d":"$724,165"}},{"$f":"'Trial 6'!T12","v":{"v":723931.742058453,"d":"$723,932"}},{"$f":"'Trial 6'!U12","v":{"v":723761.5684587882,"d":"$723,762"}},{"$f":"'Trial 6'!V12","v":{"v":723480.5908991979,"d":"$723,481"}},{"$f":"'Trial 6'!W12","v":{"v":723265.7653000026,"d":"$723,266"}},{"$f":"'Trial 6'!X12","v":{"v":723059.614314341,"d":"$723,060"}},{"$f":"'Trial 6'!Y12","v":{"v":722803.9740295518,"d":"$722,804"}},{"$f":"'Trial 6'!Z12","v":{"v":722513.3332803698,"d":"$722,513"}},{"$f":"SUM('Trial 6'!O12:Z12)","v":{"v":8686056.595610956,"d":"$8,686,057"}},{"$f":"'Trial 6'!AB12","v":{"v":722307.9536939239,"d":"$722,308"}},{"$f":"'Trial 6'!AC12","v":{"v":721984.7051097782,"d":"$721,985"}},{"$f":"'Trial 6'!AD12","v":{"v":721691.5374649402,"d":"$721,692"}},{"$f":"'Trial 6'!AE12","v":{"v":721510.345931256,"d":"$721,510"}},{"$f":"'Trial 6'!AF12","v":{"v":721235.5843155981,"d":"$721,236"}},{"$f":"'Trial 6'!AG12","v":{"v":721054.0870597796,"d":"$721,054"}},{"$f":"'Trial 6'!AH12","v":{"v":720844.7226134477,"d":"$720,845"}},{"$f":"'Trial 6'!AI12","v":{"v":720596.7741618484,"d":"$720,597"}},{"$f":"'Trial 6'!AJ12","v":{"v":720273.3651889344,"d":"$720,273"}},{"$f":"'Trial 6'!AK12","v":{"v":720094.4994788126,"d":"$720,094"}},{"$f":"'Trial 6'!AL12","v":{"v":719781.5752972707,"d":"$719,782"}},{"$f":"'Trial 6'!AM12","v":{"v":719424.0051848659,"d":"$719,424"}},{"$f":"SUM('Trial 6'!AB12:AM12)","v":{"v":8650799.155500455,"d":"$8,650,799"}},{"$f":"'Trial 6'!AO12","v":{"v":719130.4828095025,"d":"$719,130"}},{"$f":"'Trial 6'!AP12","v":{"v":718911.9297181772,"d":"$718,912"}},{"$f":"'Trial 6'!AQ12","v":{"v":718626.2149808255,"d":"$718,626"}},{"$f":"'Trial 6'!AR12","v":{"v":718370.5726767774,"d":"$718,371"}},{"$f":"'Trial 6'!AS12","v":{"v":718164.6947858175,"d":"$718,165"}},{"$f":"'Trial 6'!AT12","v":{"v":717848.7372058706,"d":"$717,849"}},{"$f":"'Trial 6'!AU12","v":{"v":717494.2382162212,"d":"$717,494"}},{"$f":"'Trial 6'!AV12","v":{"v":717252.2500481436,"d":"$717,252"}},{"$f":"'Trial 6'!AW12","v":{"v":716964.4593038289,"d":"$716,964"}},{"$f":"'Trial 6'!AX12","v":{"v":716643.5146672936,"d":"$716,644"}},{"$f":"'Trial 6'!AY12","v":{"v":716351.0942244463,"d":"$716,351"}},{"$f":"'Trial 6'!AZ12","v":{"v":716053.6307821914,"d":"$716,054"}},{"$f":"SUM('Trial 6'!AO12:AZ12)","v":{"v":8611811.819419097,"d":"$8,611,812"}},{"$f":"'Trial 6'!BB12","v":{"v":715858.6909424145,"d":"$715,859"}},{"$f":"'Trial 6'!BC12","v":{"v":715627.2960282122,"d":"$715,627"}},{"$f":"'Trial 6'!BD12","v":{"v":715342.2524924971,"d":"$715,342"}},{"$f":"'Trial 6'!BE12","v":{"v":715115.5040780471,"d":"$715,116"}},{"$f":"'Trial 6'!BF12","v":{"v":714823.4046591771,"d":"$714,823"}},{"$f":"'Trial 6'!BG12","v":{"v":714478.6491270025,"d":"$714,479"}},{"$f":"'Trial 6'!BH12","v":{"v":714140.9061107611,"d":"$714,141"}},{"$f":"'Trial 6'!BI12","v":{"v":713862.1444925788,"d":"$713,862"}},{"$f":"'Trial 6'!BJ12","v":{"v":713554.6529787015,"d":"$713,555"}},{"$f":"'Trial 6'!BK12","v":{"v":713287.8057336619,"d":"$713,288"}},{"$f":"'Trial 6'!BL12","v":{"v":713026.0921598854,"d":"$713,026"}},{"$f":"'Trial 6'!BM12","v":{"v":712772.1012000608,"d":"$712,772"}},{"$f":"SUM('Trial 6'!BB12:BM12)","v":{"v":8571889.500003,"d":"$8,571,890"}},{"$f":"'Trial 6'!BO12","v":{"v":712439.7087526926,"d":"$712,440"}},{"$f":"'Trial 6'!BP12","v":{"v":712135.6845380702,"d":"$712,136"}},{"$f":"'Trial 6'!BQ12","v":{"v":711880.0502707543,"d":"$711,880"}},{"$f":"'Trial 6'!BR12","v":{"v":711565.5692912408,"d":"$711,566"}},{"$f":"'Trial 6'!BS12","v":{"v":711250.9804312487,"d":"$711,251"}},{"$f":"'Trial 6'!BT12","v":{"v":710992.6656862769,"d":"$710,993"}},{"$f":"'Trial 6'!BU12","v":{"v":710734.6829834817,"d":"$710,735"}},{"$f":"'Trial 6'!BV12","v":{"v":710404.5379852672,"d":"$710,405"}},{"$f":"'Trial 6'!BW12","v":{"v":710125.5599484118,"d":"$710,126"}},{"$f":"'Trial 6'!BX12","v":{"v":709867.7236456013,"d":"$709,868"}},{"$f":"'Trial 6'!BY12","v":{"v":709530.2529510568,"d":"$709,530"}},{"$f":"'Trial 6'!BZ12","v":{"v":709251.9510411775,"d":"$709,252"}},{"$f":"SUM('Trial 6'!BO12:BZ12)","v":{"v":8530179.36752528,"d":"$8,530,179"}},{"$f":"'Trial 6'!CB12","v":{"v":708933.1983577148,"d":"$708,933"}},{"$f":"'Trial 6'!CC12","v":{"v":708580.704485189,"d":"$708,581"}},{"$f":"'Trial 6'!CD12","v":{"v":708251.8489906949,"d":"$708,252"}},{"$f":"'Trial 6'!CE12","v":{"v":707947.8062189461,"d":"$707,948"}},{"$f":"'Trial 6'!CF12","v":{"v":707626.6989525759,"d":"$707,627"}},{"$f":"'Trial 6'!CG12","v":{"v":707266.9434403272,"d":"$707,267"}},{"$f":"'Trial 6'!CH12","v":{"v":706978.7533625878,"d":"$706,979"}},{"$f":"'Trial 6'!CI12","v":{"v":706570.9143334642,"d":"$706,571"}},{"$f":"'Trial 6'!CJ12","v":{"v":706288.1170023803,"d":"$706,288"}},{"$f":"'Trial 6'!CK12","v":{"v":705928.3470434811,"d":"$705,928"}},{"$f":"'Trial 6'!CL12","v":{"v":705657.0188239283,"d":"$705,657"}},{"$f":"'Trial 6'!CM12","v":{"v":705264.0274498081,"d":"$705,264"}},{"$f":"SUM('Trial 6'!CB12:CM12)","v":{"v":8485294.378461098,"d":"$8,485,294"}},{"$f":"'Trial 6'!CO12","v":{"v":704888.2651099269,"d":"$704,888"}},{"$f":"'Trial 6'!CP12","v":{"v":704576.8004625012,"d":"$704,577"}},{"$f":"'Trial 6'!CQ12","v":{"v":704162.6170963787,"d":"$704,163"}},{"$f":"'Trial 6'!CR12","v":{"v":703747.1092621286,"d":"$703,747"}},{"$f":"'Trial 6'!CS12","v":{"v":703461.6884293231,"d":"$703,462"}},{"$f":"'Trial 6'!CT12","v":{"v":703159.4806054743,"d":"$703,159"}},{"$f":"'Trial 6'!CU12","v":{"v":702815.8206982438,"d":"$702,816"}},{"$f":"'Trial 6'!CV12","v":{"v":702529.4470930761,"d":"$702,529"}},{"$f":"'Trial 6'!CW12","v":{"v":702228.9148143294,"d":"$702,229"}},{"$f":"'Trial 6'!CX12","v":{"v":701873.4634082529,"d":"$701,873"}},{"$f":"'Trial 6'!CY12","v":{"v":701515.543198715,"d":"$701,516"}},{"$f":"'Trial 6'!CZ12","v":{"v":701221.103627542,"d":"$701,221"}},{"$f":"SUM('Trial 6'!CO12:CZ12)","v":{"v":8436180.253805893,"d":"$8,436,180"}},{"$f":"'Trial 6'!DB12","v":{"v":700924.2664795975,"d":"$700,924"}},{"$f":"'Trial 6'!DC12","v":{"v":700599.9092498679,"d":"$700,600"}},{"$f":"'Trial 6'!DD12","v":{"v":700259.6434045555,"d":"$700,260"}},{"$f":"'Trial 6'!DE12","v":{"v":699919.3000516325,"d":"$699,919"}},{"$f":"'Trial 6'!DF12","v":{"v":699594.1229412612,"d":"$699,594"}},{"$f":"'Trial 6'!DG12","v":{"v":699226.3783480638,"d":"$699,226"}},{"$f":"'Trial 6'!DH12","v":{"v":698872.2189224327,"d":"$698,872"}},{"$f":"'Trial 6'!DI12","v":{"v":698528.5419051885,"d":"$698,529"}},{"$f":"'Trial 6'!DJ12","v":{"v":698188.8989326432,"d":"$698,189"}},{"$f":"'Trial 6'!DK12","v":{"v":697834.387065881,"d":"$697,834"}},{"$f":"'Trial 6'!DL12","v":{"v":697544.8354754793,"d":"$697,545"}},{"$f":"'Trial 6'!DM12","v":{"v":697158.0365440692,"d":"$697,158"}},{"$f":"SUM('Trial 6'!DB12:DM12)","v":{"v":8388650.539320672,"d":"$8,388,651"}},{"$f":"'Trial 6'!DO12","v":{"v":696812.720207841,"d":"$696,813"}},{"$f":"'Trial 6'!DP12","v":{"v":696503.5277214254,"d":"$696,504"}},{"$f":"'Trial 6'!DQ12","v":{"v":696127.4406952927,"d":"$696,127"}},{"$f":"'Trial 6'!DR12","v":{"v":695807.2560636374,"d":"$695,807"}},{"$f":"'Trial 6'!DS12","v":{"v":695489.009160293,"d":"$695,489"}},{"$f":"'Trial 6'!DT12","v":{"v":695166.1480823581,"d":"$695,166"}},{"$f":"'Trial 6'!DU12","v":{"v":694814.6588279591,"d":"$694,815"}},{"$f":"'Trial 6'!DV12","v":{"v":694527.4797997031,"d":"$694,527"}},{"$f":"'Trial 6'!DW12","v":{"v":694145.4341701857,"d":"$694,145"}},{"$f":"'Trial 6'!DX12","v":{"v":693784.4205783722,"d":"$693,784"}},{"$f":"'Trial 6'!DY12","v":{"v":693433.8359337798,"d":"$693,434"}},{"$f":"'Trial 6'!DZ12","v":{"v":693133.5607177805,"d":"$693,134"}},{"$f":"SUM('Trial 6'!DO12:DZ12)","v":{"v":8339745.4919586275,"d":"$8,339,745"}},{"$f":"'Trial 6'!EB12","v":{"v":692748.4140359976,"d":"$692,748"}},{"$f":"'Trial 6'!EC12","v":{"v":692344.337934998,"d":"$692,344"}},{"$f":"'Trial 6'!ED12","v":{"v":692035.3072077306,"d":"$692,035"}},{"$f":"'Trial 6'!EE12","v":{"v":691655.9394290816,"d":"$691,656"}},{"$f":"'Trial 6'!EF12","v":{"v":691307.3662762897,"d":"$691,307"}},{"$f":"'Trial 6'!EG12","v":{"v":690910.2263429422,"d":"$690,910"}},{"$f":"'Trial 6'!EH12","v":{"v":690634.7519272789,"d":"$690,635"}},{"$f":"'Trial 6'!EI12","v":{"v":690242.3266823338,"d":"$690,242"}},{"$f":"'Trial 6'!EJ12","v":{"v":689924.8778487728,"d":"$689,925"}},{"$f":"'Trial 6'!EK12","v":{"v":689639.0797069385,"d":"$689,639"}},{"$f":"'Trial 6'!EL12","v":{"v":689308.8123134793,"d":"$689,309"}},{"$f":"'Trial 6'!EM12","v":{"v":688965.384402001,"d":"$688,965"}},{"$f":"SUM('Trial 6'!EB12:EM12)","v":{"v":8289716.824107845,"d":"$8,289,717"}}]
[{"$f":"Labels!B102","v":"Trial 07"},{"$f":"'Trial 7'!B12","v":{"v":728000,"d":"$728,000"}},{"$f":"'Trial 7'!C12","v":{"v":727844.923363148,"d":"$727,845"}},{"$f":"'Trial 7'!D12","v":{"v":727702.906560612,"d":"$727,703"}},{"$f":"'Trial 7'!E12","v":{"v":727423.0076094503,"d":"$727,423"}},{"$f":"'Trial 7'!F12","v":{"v":727148.5666958909,"d":"$727,149"}},{"$f":"'Trial 7'!G12","v":{"v":726845.7684175469,"d":"$726,846"}},{"$f":"'Trial 7'!H12","v":{"v":726561.7205516795,"d":"$726,562"}},{"$f":"'Trial 7'!I12","v":{"v":726375.8326587789,"d":"$726,376"}},{"$f":"'Trial 7'!J12","v":{"v":726171.8647239559,"d":"$726,172"}},{"$f":"'Trial 7'!K12","v":{"v":725920.6934079645,"d":"$725,921"}},{"$f":"'Trial 7'!L12","v":{"v":725647.3262439743,"d":"$725,647"}},{"$f":"'Trial 7'!M12","v":{"v":725410.9855274322,"d":"$725,411"}},{"$f":"SUM('Trial 7'!B12:M12)","v":{"v":8721053.595760435,"d":"$8,721,054"}},{"$f":"'Trial 7'!O12","v":{"v":725197.6350194977,"d":"$725,198"}},{"$f":"'Trial 7'!P12","v":{"v":724958.9118716703,"d":"$724,959"}},{"$f":"'Trial 7'!Q12","v":{"v":724773.7294663532,"d":"$724,774"}},{"$f":"'Trial 7'!R12","v":{"v":724557.4874496744,"d":"$724,557"}},{"$f":"'Trial 7'!S12","v":{"v":724407.0016381785,"d":"$724,407"}},{"$f":"'Trial 7'!T12","v":{"v":724147.6201037939,"d":"$724,148"}},{"$f":"'Trial 7'!U12","v":{"v":723952.2688616611,"d":"$723,952"}},{"$f":"'Trial 7'!V12","v":{"v":723692.6126602587,"d":"$723,693"}},{"$f":"'Trial 7'!W12","v":{"v":723481.8389198148,"d":"$723,482"}},{"$f":"'Trial 7'!X12","v":{"v":723159.6163913733,"d":"$723,160"}},{"$f":"'Trial 7'!Y12","v":{"v":722883.4707200979,"d":"$722,883"}},{"$f":"'Trial 7'!Z12","v":{"v":722675.2891831803,"d":"$722,675"}},{"$f":"SUM('Trial 7'!O12:Z12)","v":{"v":8687887.482285554,"d":"$8,687,887"}},{"$f":"'Trial 7'!AB12","v":{"v":722454.652348609,"d":"$722,455"}},{"$f":"'Trial 7'!AC12","v":{"v":722190.9498535921,"d":"$722,191"}},{"$f":"'Trial 7'!AD12","v":{"v":721983.4433641289,"d":"$721,983"}},{"$f":"'Trial 7'!AE12","v":{"v":721768.1872905176,"d":"$721,768"}},{"$f":"'Trial 7'!AF12","v":{"v":721509.2787719588,"d":"$721,509"}},{"$f":"'Trial 7'!AG12","v":{"v":721341.5901720219,"d":"$721,342"}},{"$f":"'Trial 7'!AH12","v":{"v":721064.9520104721,"d":"$721,065"}},{"$f":"'Trial 7'!AI12","v":{"v":720796.0420852659,"d":"$720,796"}},{"$f":"'Trial 7'!AJ12","v":{"v":720487.1781129792,"d":"$720,487"}},{"$f":"'Trial 7'!AK12","v":{"v":720180.9194732538,"d":"$720,181"}},{"$f":"'Trial 7'!AL12","v":{"v":719944.807941858,"d":"$719,945"}},{"$f":"'Trial 7'!AM12","v":{"v":719690.5400437259,"d":"$719,691"}},{"$f":"SUM('Trial 7'!AB12:AM12)","v":{"v":8653412.541468384,"d":"$8,653,413"}},{"$f":"'Trial 7'!AO12","v":{"v":719374.1443523165,"d":"$719,374"}},{"$f":"'Trial 7'!AP12","v":{"v":719053.5997732138,"d":"$719,054"}},{"$f":"'Trial 7'!AQ12","v":{"v":718748.3640193401,"d":"$718,748"}},{"$f":"'Trial 7'!AR12","v":{"v":718466.4816273618,"d":"$718,466"}},{"$f":"'Trial 7'!AS12","v":{"v":718127.8166706333,"d":"$718,128"}},{"$f":"'Trial 7'!AT12","v":{"v":717806.0121585673,"d":"$717,806"}},{"$f":"'Trial 7'!AU12","v":{"v":717468.956650085,"d":"$717,469"}},{"$f":"'Trial 7'!AV12","v":{"v":717210.1444516629,"d":"$717,210"}},{"$f":"'Trial 7'!AW12","v":{"v":716974.3373387259,"d":"$716,974"}},{"$f":"'Trial 7'!AX12","v":{"v":716741.1574107857,"d":"$716,741"}},{"$f":"'Trial 7'!AY12","v":{"v":716488.2662787194,"d":"$716,488"}},{"$f":"'Trial 7'!AZ12","v":{"v":716226.9206227752,"d":"$716,227"}},{"$f":"SUM('Trial 7'!AO12:AZ12)","v":{"v":8612686.201354187,"d":"$8,612,686"}},{"$f":"'Trial 7'!BB12","v":{"v":715966.3511905096,"d":"$715,966"}},{"$f":"'Trial 7'!BC12","v":{"v":715661.0818001889,"d":"$715,661"}},{"$f":"'Trial 7'!BD12","v":{"v":715387.1485532977,"d":"$715,387"}},{"$f":"'Trial 7'!BE12","v":{"v":715167.1011678838,"d":"$715,167"}},{"$f":"'Trial 7'!BF12","v":{"v":714873.6197788029,"d":"$714,874"}},{"$f":"'Trial 7'!BG12","v":{"v":714538.6153069813,"d":"$714,539"}},{"$f":"'Trial 7'!BH12","v":{"v":714232.4501851046,"d":"$714,232"}},{"$f":"'Trial 7'!BI12","v":{"v":713899.6889349525,"d":"$713,900"}},{"$f":"'Trial 7'!BJ12","v":{"v":713541.8191133849,"d":"$713,542"}},{"$f":"'Trial 7'!BK12","v":{"v":713266.5992940143,"d":"$713,267"}},{"$f":"'Trial 7'!BL12","v":{"v":713011.1620548072,"d":"$713,011"}},{"$f":"'Trial 7'!BM12","v":{"v":712716.8410994391,"d":"$712,717"}},{"$f":"SUM('Trial 7'!BB12:BM12)","v":{"v":8572262.478479367,"d":"$8,572,262"}},{"$f":"'Trial 7'!BO12","v":{"v":712340.6960566513,"d":"$712,341"}},{"$f":"'Trial 7'!BP12","v":{"v":711988.712147469,"d":"$711,989"}},{"$f":"'Trial 7'!BQ12","v":{"v":711662.0362083998,"d":"$711,662"}},{"$f":"'Trial 7'!BR12","v":{"v":711342.999671499,"d":"$711,343"}},{"$f":"'Trial 7'!BS12","v":{"v":711110.4996233503,"d":"$711,110"}},{"$f":"'Trial 7'!BT12","v":{"v":710867.3936962682,"d":"$710,867"}},{"$f":"'Trial 7'!BU12","v":{"v":710540.9492117306,"d":"$710,541"}},{"$f":"'Trial 7'!BV12","v":{"v":710183.5006892348,"d":"$710,184"}},{"$f":"'Trial 7'!BW12","v":{"v":709869.3028320605,"d":"$709,869"}},{"$f":"'Trial 7'!BX12","v":{"v":709574.7367241038,"d":"$709,575"}},{"$f":"'Trial 7'!BY12","v":{"v":709263.5610354119,"d":"$709,264"}},{"$f":"'Trial 7'!BZ12","v":{"v":708994.580345005,"d":"$708,995"}},{"$f":"SUM('Trial 7'!BO12:BZ12)","v":{"v":8527738.968241185,"d":"$8,527,739"}},{"$f":"'Trial 7'!CB12","v":{"v":708701.2537419929,"d":"$708,701"}},{"$f":"'Trial 7'!CC12","v":{"v":708379.0998866942,"d":"$708,379"}},{"$f":"'Trial 7'!CD12","v":{"v":708017.0531024811,"d":"$708,017"}},{"$f":"'Trial 7'!CE12","v":{"v":707724.8702329656,"d":"$707,725"}},{"$f":"'Trial 7'!CF12","v":{"v":707408.6630111727,"d":"$707,409"}},{"$f":"'Trial 7'!CG12","v":{"v":707013.2986662912,"d":"$707,013"}},{"$f":"'Trial 7'!CH12","v":{"v":706687.975592156,"d":"$706,688"}},{"$f":"'Trial 7'!CI12","v":{"v":706289.7168379071,"d":"$706,290"}},{"$f":"'Trial 7'!CJ12","v":{"v":705886.4162804983,"d":"$705,886"}},{"$f":"'Trial 7'!CK12","v":{"v":705563.1523215732,"d":"$705,563"}},{"$f":"'Trial 7'!CL12","v":{"v":705285.2935246137,"d":"$705,285"}},{"$f":"'Trial 7'!CM12","v":{"v":704966.8789714328,"d":"$704,967"}},{"$f":"SUM('Trial 7'!CB12:CM12)","v":{"v":8481923.672169778,"d":"$8,481,924"}},{"$f":"'Trial 7'!CO12","v":{"v":704571.8161632078,"d":"$704,572"}},{"$f":"'Trial 7'!CP12","v":{"v":704221.1338431358,"d":"$704,221"}},{"$f":"'Trial 7'!CQ12","v":{"v":703922.8692079281,"d":"$703,923"}},{"$f":"'Trial 7'!CR12","v":{"v":703583.8408971478,"d":"$703,584"}},{"$f":"'Trial 7'!CS12","v":{"v":703264.5514301265,"d":"$703,265"}},{"$f":"'Trial 7'!CT12","v":{"v":703007.1792785071,"d":"$703,007"}},{"$f":"'Trial 7'!CU12","v":{"v":702681.3034962629,"d":"$702,681"}},{"$f":"'Trial 7'!CV12","v":{"v":702338.9746307961,"d":"$702,339"}},{"$f":"'Trial 7'!CW12","v":{"v":702031.1759666298,"d":"$702,031"}},{"$f":"'Trial 7'!CX12","v":{"v":701712.6251729149,"d":"$701,713"}},{"$f":"'Trial 7'!CY12","v":{"v":701457.6933118486,"d":"$701,458"}},{"$f":"'Trial 7'!CZ12","v":{"v":701189.8473065868,"d":"$701,190"}},{"$f":"SUM('Trial 7'!CO12:CZ12)","v":{"v":8433983.010705091,"d":"$8,433,983"}},{"$f":"'Trial 7'!DB12","v":{"v":700853.8927580947,"d":"$700,854"}},{"$f":"'Trial 7'!DC12","v":{"v":700447.4420776211,"d":"$700,447"}},{"$f":"'Trial 7'!DD12","v":{"v":700113.8035158197,"d":"$700,114"}},{"$f":"'Trial 7'!DE12","v":{"v":699800.6824628895,"d":"$699,801"}},{"$f":"'Trial 7'!DF12","v":{"v":699382.5249650629,"d":"$699,383"}},{"$f":"'Trial 7'!DG12","v":{"v":699059.6067469703,"d":"$699,060"}},{"$f":"'Trial 7'!DH12","v":{"v":698741.9937136782,"d":"$698,742"}},{"$f":"'Trial 7'!DI12","v":{"v":698344.2708781488,"d":"$698,344"}},{"$f":"'Trial 7'!DJ12","v":{"v":698043.8809195101,"d":"$698,044"}},{"$f":"'Trial 7'!DK12","v":{"v":697749.4886266248,"d":"$697,749"}},{"$f":"'Trial 7'!DL12","v":{"v":697329.5498318786,"d":"$697,330"}},{"$f":"'Trial 7'!DM12","v":{"v":696993.0453325752,"d":"$696,993"}},{"$f":"SUM('Trial 7'!DB12:DM12)","v":{"v":8386860.181828874,"d":"$8,386,860"}},{"$f":"'Trial 7'!DO12","v":{"v":696702.7525996981,"d":"$696,703"}},{"$f":"'Trial 7'!DP12","v":{"v":696332.7737320825,"d":"$696,333"}},{"$f":"'Trial 7'!DQ12","v":{"v":696037.9192966342,"d":"$696,038"}},{"$f":"'Trial 7'!DR12","v":{"v":695731.7165846571,"d":"$695,732"}},{"$f":"'Trial 7'!DS12","v":{"v":695327.9260865292,"d":"$695,328"}},{"$f":"'Trial 7'!DT12","v":{"v":695052.7655271867,"d":"$695,053"}},{"$f":"'Trial 7'!DU12","v":{"v":694648.4069324671,"d":"$694,648"}},{"$f":"'Trial 7'!DV12","v":{"v":694308.4080907186,"d":"$694,308"}},{"$f":"'Trial 7'!DW12","v":{"v":693907.0058032225,"d":"$693,907"}},{"$f":"'Trial 7'!DX12","v":{"v":693610.9670794647,"d":"$693,611"}},{"$f":"'Trial 7'!DY12","v":{"v":693344.9941048202,"d":"$693,345"}},{"$f":"'Trial 7'!DZ12","v":{"v":692935.838373661,"d":"$692,936"}},{"$f":"SUM('Trial 7'!DO12:DZ12)","v":{"v":8337941.4742111415,"d":"$8,337,941"}},{"$f":"'Trial 7'!EB12","v":{"v":692630.701182148,"d":"$692,631"}},{"$f":"'Trial 7'!EC12","v":{"v":692312.8088013808,"d":"$692,313"}},{"$f":"'Trial 7'!ED12","v":{"v":691955.7071920014,"d":"$691,956"}},{"$f":"'Trial 7'!EE12","v":{"v":691606.2201212383,"d":"$691,606"}},{"$f":"'Trial 7'!EF12","v":{"v":691290.4236246423,"d":"$691,290"}},{"$f":"'Trial 7'!EG12","v":{"v":690979.6718568801,"d":"$690,980"}},{"$f":"'Trial 7'!EH12","v":{"v":690628.0286268966,"d":"$690,628"}},{"$f":"'Trial 7'!EI12","v":{"v":690297.5651369528,"d":"$690,298"}},{"$f":"'Trial 7'!EJ12","v":{"v":690008.0951477321,"d":"$690,008"}},{"$f":"'Trial 7'!EK12","v":{"v":689598.4549267686,"d":"$689,598"}},{"$f":"'Trial 7'!EL12","v":{"v":689279.0086408542,"d":"$689,279"}},{"$f":"'Trial 7'!EM12","v":{"v":689000.7692161127,"d":"$689,001"}},{"$f":"SUM('Trial 7'!EB12:EM12)","v":{"v":8289587.454473607,"d":"$8,289,587"}}]
[{"$f":"Labels!B103","v":"Trial 08"},{"$f":"'Trial 8'!B12","v":{"v":728000,"d":"$728,000"}},{"$f":"'Trial 8'!C12","v":{"v":727796.6528912779,"d":"$727,797"}},{"$f":"'Trial 8'!D12","v":{"v":727482.8730306834,"d":"$727,483"}},{"$f":"'Trial 8'!E12","v":{"v":727251.605816761,"d":"$727,252"}},{"$f":"'Trial 8'!F12","v":{"v":726991.8077666082,"d":"$726,992"}},{"$f":"'Trial 8'!G12","v":{"v":726770.3702603605,"d":"$726,770"}},{"$f":"'Trial 8'!H12","v":{"v":726479.1647460463,"d":"$726,479"}},{"$f":"'Trial 8'!I12","v":{"v":726296.3980095012,"d":"$726,296"}},{"$f":"'Trial 8'!J12","v":{"v":726046.05755082,"d":"$726,046"}},{"$f":"'Trial 8'!K12","v":{"v":725813.657756469,"d":"$725,814"}},{"$f":"'Trial 8'!L12","v":{"v":725642.5888767593,"d":"$725,643"}},{"$f":"'Trial 8'!M12","v":{"v":725433.0718483035,"d":"$725,433"}},{"$f":"SUM('Trial 8'!B12:M12)","v":{"v":8720004.24855359,"d":"$8,720,004"}},{"$f":"'Trial 8'!O12","v":{"v":725248.4861076749,"d":"$725,248"}},{"$f":"'Trial 8'!P12","v":{"v":725043.4031637625,"d":"$725,043"}},{"$f":"'Trial 8'!Q12","v":{"v":724805.8970897667,"d":"$724,806"}},{"$f":"'Trial 8'!R12","v":{"v":724581.4391954464,"d":"$724,581"}},{"$f":"'Trial 8'!S12","v":{"v":724314.0395932852,"d":"$724,314"}},{"$f":"'Trial 8'!T12","v":{"v":724042.8069732059,"d":"$724,043"}},{"$f":"'Trial 8'!U12","v":{"v":723880.7730667557,"d":"$723,881"}},{"$f":"'Trial 8'!V12","v":{"v":723623.4232649998,"d":"$723,623"}},{"$f":"'Trial 8'!W12","v":{"v":723421.5547113591,"d":"$723,422"}},{"$f":"'Trial 8'!X12","v":{"v":723106.3106893563,"d":"$723,106"}},{"$f":"'Trial 8'!Y12","v":{"v":722864.5375993247,"d":"$722,865"}},{"$f":"'Trial 8'!Z12","v":{"v":722544.0628820844,"d":"$722,544"}},{"$f":"SUM('Trial 8'!O12:Z12)","v":{"v":8687476.73433702,"d":"$8,687,477"}},{"$f":"'Trial 8'!AB12","v":{"v":722363.3422538507,"d":"$722,363"}},{"$f":"'Trial 8'!AC12","v":{"v":722151.616110531,"d":"$722,152"}},{"$f":"'Trial 8'!AD12","v":{"v":721828.9883125072,"d":"$721,829"}},{"$f":"'Trial 8'!AE12","v":{"v":721560.871013418,"d":"$721,561"}},{"$f":"'Trial 8'!AF12","v":{"v":721282.2998548751,"d":"$721,282"}},{"$f":"'Trial 8'!AG12","v":{"v":720939.2570282107,"d":"$720,939"}},{"$f":"'Trial 8'!AH12","v":{"v":720714.1359570959,"d":"$720,714"}},{"$f":"'Trial 8'!AI12","v":{"v":720479.9291495809,"d":"$720,480"}},{"$f":"'Trial 8'!AJ12","v":{"v":720174.0296524162,"d":"$720,174"}},{"$f":"'Trial 8'!AK12","v":{"v":719980.3757508749,"d":"$719,980"}},{"$f":"'Trial 8'!AL12","v":{"v":719749.758466252,"d":"$719,750"}},{"$f":"'Trial 8'!AM12","v":{"v":719471.4528296613,"d":"$719,471"}},{"$f":"SUM('Trial 8'!AB12:AM12)","v":{"v":8650696.056379275,"d":"$8,650,696"}},{"$f":"'Trial 8'!AO12","v":{"v":719273.8388279646,"d":"$719,274"}},{"$f":"'Trial 8'!AP12","v":{"v":719001.9847103349,"d":"$719,002"}},{"$f":"'Trial 8'!AQ12","v":{"v":718720.5648043237,"d":"$718,721"}},{"$f":"'Trial 8'!AR12","v":{"v":718484.4447708898,"d":"$718,484"}},{"$f":"'Trial 8'!AS12","v":{"v":718191.4768033953,"d":"$718,191"}},{"$f":"'Trial 8'!AT12","v":{"v":717960.6651470871,"d":"$717,961"}},{"$f":"'Trial 8'!AU12","v":{"v":717681.844171361,"d":"$717,682"}},{"$f":"'Trial 8'!AV12","v":{"v":717371.7515322417,"d":"$717,372"}},{"$f":"'Trial 8'!AW12","v":{"v":717074.5910093596,"d":"$717,075"}},{"$f":"'Trial 8'!AX12","v":{"v":716796.2008063701,"d":"$716,796"}},{"$f":"'Trial 8'!AY12","v":{"v":716587.7581385333,"d":"$716,588"}},{"$f":"'Trial 8'!AZ12","v":{"v":716291.1933484074,"d":"$716,291"}},{"$f":"SUM('Trial 8'!AO12:AZ12)","v":{"v":8613436.31407027,"d":"$8,613,436"}},{"$f":"'Trial 8'!BB12","v":{"v":715936.5553557379,"d":"$715,937"}},{"$f":"'Trial 8'!BC12","v":{"v":715594.9083170132,"d":"$715,595"}},{"$f":"'Trial 8'!BD12","v":{"v":715352.4304967537,"d":"$715,352"}},{"$f":"'Trial 8'!BE12","v":{"v":715112.6491144908,"d":"$715,113"}},{"$f":"'Trial 8'!BF12","v":{"v":714808.7811664017,"d":"$714,809"}},{"$f":"'Trial 8'!BG12","v":{"v":714552.3602297142,"d":"$714,552"}},{"$f":"'Trial 8'!BH12","v":{"v":714253.4693183776,"d":"$714,253"}},{"$f":"'Trial 8'!BI12","v":{"v":713996.9964524332,"d":"$713,997"}},{"$f":"'Trial 8'!BJ12","v":{"v":713724.6773801439,"d":"$713,725"}},{"$f":"'Trial 8'!BK12","v":{"v":713418.3203162232,"d":"$713,418"}},{"$f":"'Trial 8'!BL12","v":{"v":713098.1508515582,"d":"$713,098"}},{"$f":"'Trial 8'!BM12","v":{"v":712789.249853303,"d":"$712,789"}},{"$f":"SUM('Trial 8'!BB12:BM12)","v":{"v":8572638.548852151,"d":"$8,572,639"}},{"$f":"'Trial 8'!BO12","v":{"v":712494.3931726976,"d":"$712,494"}},{"$f":"'Trial 8'!BP12","v":{"v":712108.5851208204,"d":"$712,109"}},{"$f":"'Trial 8'!BQ12","v":{"v":711881.2081447121,"d":"$711,881"}},{"$f":"'Trial 8'!BR12","v":{"v":711634.3648372965,"d":"$711,634"}},{"$f":"'Trial 8'!BS12","v":{"v":711419.9335409545,"d":"$711,420"}},{"$f":"'Trial 8'!BT12","v":{"v":711102.6870417641,"d":"$711,103"}},{"$f":"'Trial 8'!BU12","v":{"v":710877.4940900216,"d":"$710,877"}},{"$f":"'Trial 8'!BV12","v":{"v":710565.5883233213,"d":"$710,566"}},{"$f":"'Trial 8'!BW12","v":{"v":710174.0849571087,"d":"$710,174"}},{"$f":"'Trial 8'!BX12","v":{"v":709882.1250305952,"d":"$709,882"}},{"$f":"'Trial 8'!BY12","v":{"v":709519.4128805529,"d":"$709,519"}},{"$f":"'Trial 8'!BZ12","v":{"v":709185.0386894159,"d":"$709,185"}},{"$f":"SUM('Trial 8'!BO12:BZ12)","v":{"v":8530844.91582926,"d":"$8,530,845"}},{"$f":"'Trial 8'!CB12","v":{"v":708895.9435830931,"d":"$708,896"}},{"$f":"'Trial 8'!CC12","v":{"v":708507.856866371,"d":"$708,508"}},{"$f":"'Trial 8'!CD12","v":{"v":708245.7568195255,"d":"$708,246"}},{"$f":"'Trial 8'!CE12","v":{"v":707906.8732876523,"d":"$707,907"}},{"$f":"'Trial 8'!CF12","v":{"v":707546.0190769905,"d":"$707,546"}},{"$f":"'Trial 8'!CG12","v":{"v":707258.6125104629,"d":"$707,259"}},{"$f":"'Trial 8'!CH12","v":{"v":706940.9826816914,"d":"$706,941"}},{"$f":"'Trial 8'!CI12","v":{"v":706633.9461146301,"d":"$706,634"}},{"$f":"'Trial 8'!CJ12","v":{"v":706264.4167998179,"d":"$706,264"}},{"$f":"'Trial 8'!CK12","v":{"v":706032.9462581383,"d":"$706,033"}},{"$f":"'Trial 8'!CL12","v":{"v":705680.1179036162,"d":"$705,680"}},{"$f":"'Trial 8'!CM12","v":{"v":705390.4070885028,"d":"$705,390"}},{"$f":"SUM('Trial 8'!CB12:CM12)","v":{"v":8485303.878990492,"d":"$8,485,304"}},{"$f":"'Trial 8'!CO12","v":{"v":705002.6419826958,"d":"$705,003"}},{"$f":"'Trial 8'!CP12","v":{"v":704705.1942597677,"d":"$704,705"}},{"$f":"'Trial 8'!CQ12","v":{"v":704358.0632073062,"d":"$704,358"}},{"$f":"'Trial 8'!CR12","v":{"v":704097.5882288603,"d":"$704,098"}},{"$f":"'Trial 8'!CS12","v":{"v":703721.2776479695,"d":"$703,721"}},{"$f":"'Trial 8'!CT12","v":{"v":703419.3444783903,"d":"$703,419"}},{"$f":"'Trial 8'!CU12","v":{"v":703141.3590421976,"d":"$703,141"}},{"$f":"'Trial 8'!CV12","v":{"v":702868.4465543359,"d":"$702,868"}},{"$f":"'Trial 8'!CW12","v":{"v":702563.252071723,"d":"$702,563"}},{"$f":"'Trial 8'!CX12","v":{"v":702155.7477951957,"d":"$702,156"}},{"$f":"'Trial 8'!CY12","v":{"v":701835.1894091113,"d":"$701,835"}},{"$f":"'Trial 8'!CZ12","v":{"v":701474.6994476762,"d":"$701,475"}},{"$f":"SUM('Trial 8'!CO12:CZ12)","v":{"v":8439342.804125229,"d":"$8,439,343"}},{"$f":"'Trial 8'!DB12","v":{"v":701202.8616306618,"d":"$701,203"}},{"$f":"'Trial 8'!DC12","v":{"v":700917.6952934731,"d":"$700,918"}},{"$f":"'Trial 8'!DD12","v":{"v":700580.9578800821,"d":"$700,581"}},{"$f":"'Trial 8'!DE12","v":{"v":700220.9761456264,"d":"$700,221"}},{"$f":"'Trial 8'!DF12","v":{"v":699976.5952370614,"d":"$699,977"}},{"$f":"'Trial 8'!DG12","v":{"v":699644.2780031282,"d":"$699,644"}},{"$f":"'Trial 8'!DH12","v":{"v":699308.0520918485,"d":"$699,308"}},{"$f":"'Trial 8'!DI12","v":{"v":699026.3288844428,"d":"$699,026"}},{"$f":"'Trial 8'!DJ12","v":{"v":698651.0098590942,"d":"$698,651"}},{"$f":"'Trial 8'!DK12","v":{"v":698378.4340680372,"d":"$698,378"}},{"$f":"'Trial 8'!DL12","v":{"v":698088.6861283338,"d":"$698,089"}},{"$f":"'Trial 8'!DM12","v":{"v":697725.699398961,"d":"$697,726"}},{"$f":"SUM('Trial 8'!DB12:DM12)","v":{"v":8393721.574620752,"d":"$8,393,722"}},{"$f":"'Trial 8'!DO12","v":{"v":697428.7472611476,"d":"$697,429"}},{"$f":"'Trial 8'!DP12","v":{"v":697137.9300730348,"d":"$697,138"}},{"$f":"'Trial 8'!DQ12","v":{"v":696764.8532223036,"d":"$696,765"}},{"$f":"'Trial 8'!DR12","v":{"v":696451.5510469474,"d":"$696,452"}},{"$f":"'Trial 8'!DS12","v":{"v":696073.2487773517,"d":"$696,073"}},{"$f":"'Trial 8'!DT12","v":{"v":695760.7538143983,"d":"$695,761"}},{"$f":"'Trial 8'!DU12","v":{"v":695476.4557509322,"d":"$695,476"}},{"$f":"'Trial 8'!DV12","v":{"v":695124.2448158178,"d":"$695,124"}},{"$f":"'Trial 8'!DW12","v":{"v":694744.8041499874,"d":"$694,745"}},{"$f":"'Trial 8'!DX12","v":{"v":694404.2495915395,"d":"$694,404"}},{"$f":"'Trial 8'!DY12","v":{"v":694066.5701009711,"d":"$694,067"}},{"$f":"'Trial 8'!DZ12","v":{"v":693775.4166635599,"d":"$693,775"}},{"$f":"SUM('Trial 8'!DO12:DZ12)","v":{"v":8347208.825267992,"d":"$8,347,209"}},{"$f":"'Trial 8'!EB12","v":{"v":693422.983315779,"d":"$693,423"}},{"$f":"'Trial 8'!EC12","v":{"v":693121.0260102862,"d":"$693,121"}},{"$f":"'Trial 8'!ED12","v":{"v":692721.0420319054,"d":"$692,721"}},{"$f":"'Trial 8'!EE12","v":{"v":692362.9810351918,"d":"$692,363"}},{"$f":"'Trial 8'!EF12","v":{"v":691967.521664918,"d":"$691,968"}},{"$f":"'Trial 8'!EG12","v":{"v":691690.3666931267,"d":"$691,690"}},{"$f":"'Trial 8'!EH12","v":{"v":691308.2795117807,"d":"$691,308"}},{"$f":"'Trial 8'!EI12","v":{"v":690960.217271476,"d":"$690,960"}},{"$f":"'Trial 8'!EJ12","v":{"v":690639.2197507694,"d":"$690,639"}},{"$f":"'Trial 8'!EK12","v":{"v":690313.2432472374,"d":"$690,313"}},{"$f":"'Trial 8'!EL12","v":{"v":689963.7338019098,"d":"$689,964"}},{"$f":"'Trial 8'!EM12","v":{"v":689524.9806116353,"d":"$689,525"}},{"$f":"SUM('Trial 8'!EB12:EM12)","v":{"v":8297995.594946015,"d":"$8,297,996"}}]
[{"$f":"Labels!C95","v":"Total"},{"$f":"SUM('Trial 1'!B12,'Trial 2'!B12,'Trial 3'!B12,'Trial 4'!B12,'Trial 5'!B12,'Trial 6'!B12,'Trial 7'!B12,'Trial 8'!B12)","v":{"v":5824000,"d":"$5,824,000"}},{"$f":"SUM('Trial 1'!C12,'Trial 2'!C12,'Trial 3'!C12,'Trial 4'!C12,'Trial 5'!C12,'Trial 6'!C12,'Trial 7'!C12,'Trial 8'!C12)","v":{"v":5822405.698797523,"d":"$5,822,406"}},{"$f":"SUM('Trial 1'!D12,'Trial 2'!D12,'Trial 3'!D12,'Trial 4'!D12,'Trial 5'!D12,'Trial 6'!D12,'Trial 7'!D12,'Trial 8'!D12)","v":{"v":5820659.552682306,"d":"$5,820,660"}},{"$f":"SUM('Trial 1'!E12,'Trial 2'!E12,'Trial 3'!E12,'Trial 4'!E12,'Trial 5'!E12,'Trial 6'!E12,'Trial 7'!E12,'Trial 8'!E12)","v":{"v":5818901.76015073,"d":"$5,818,902"}},{"$f":"SUM('Trial 1'!F12,'Trial 2'!F12,'Trial 3'!F12,'Trial 4'!F12,'Trial 5'!F12,'Trial 6'!F12,'Trial 7'!F12,'Trial 8'!F12)","v":{"v":5816928.159618574,"d":"$5,816,928"}},{"$f":"SUM('Trial 1'!G12,'Trial 2'!G12,'Trial 3'!G12,'Trial 4'!G12,'Trial 5'!G12,'Trial 6'!G12,'Trial 7'!G12,'Trial 8'!G12)","v":{"v":5814970.079019384,"d":"$5,814,970"}},{"$f":"SUM('Trial 1'!H12,'Trial 2'!H12,'Trial 3'!H12,'Trial 4'!H12,'Trial 5'!H12,'Trial 6'!H12,'Trial 7'!H12,'Trial 8'!H12)","v":{"v":5813090.302895536,"d":"$5,813,090"}},{"$f":"SUM('Trial 1'!I12,'Trial 2'!I12,'Trial 3'!I12,'Trial 4'!I12,'Trial 5'!I12,'Trial 6'!I12,'Trial 7'!I12,'Trial 8'!I12)","v":{"v":5811521.996350637,"d":"$5,811,522"}},{"$f":"SUM('Trial 1'!J12,'Trial 2'!J12,'Trial 3'!J12,'Trial 4'!J12,'Trial 5'!J12,'Trial 6'!J12,'Trial 7'!J12,'Trial 8'!J12)","v":{"v":5809657.15122534,"d":"$5,809,657"}},{"$f":"SUM('Trial 1'!K12,'Trial 2'!K12,'Trial 3'!K12,'Trial 4'!K12,'Trial 5'!K12,'Trial 6'!K12,'Trial 7'!K12,'Trial 8'!K12)","v":{"v":5807983.938534573,"d":"$5,807,984"}},{"$f":"SUM('Trial 1'!L12,'Trial 2'!L12,'Trial 3'!L12,'Trial 4'!L12,'Trial 5'!L12,'Trial 6'!L12,'Trial 7'!L12,'Trial 8'!L12)","v":{"v":5806049.423193192,"d":"$5,806,049"}},{"$f":"SUM('Trial 1'!M12,'Trial 2'!M12,'Trial 3'!M12,'Trial 4'!M12,'Trial 5'!M12,'Trial 6'!M12,'Trial 7'!M12,'Trial 8'!M12)","v":{"v":5804292.186849026,"d":"$5,804,292"}},{"$f":"SUM(B47:M47)","v":{"v":69770460.24931683,"d":"$69,770,460"}},{"$f":"SUM('Trial 1'!O12,'Trial 2'!O12,'Trial 3'!O12,'Trial 4'!O12,'Trial 5'!O12,'Trial 6'!O12,'Trial 7'!O12,'Trial 8'!O12)","v":{"v":5802518.190550078,"d":"$5,802,518"}},{"$f":"SUM('Trial 1'!P12,'Trial 2'!P12,'Trial 3'!P12,'Trial 4'!P12,'Trial 5'!P12,'Trial 6'!P12,'Trial 7'!P12,'Trial 8'!P12)","v":{"v":5800529.007023806,"d":"$5,800,529"}},{"$f":"SUM('Trial 1'!Q12,'Trial 2'!Q12,'Trial 3'!Q12,'Trial 4'!Q12,'Trial 5'!Q12,'Trial 6'!Q12,'Trial 7'!Q12,'Trial 8'!Q12)","v":{"v":5798695.068125415,"d":"$5,798,695"}},{"$f":"SUM('Trial 1'!R12,'Trial 2'!R12,'Trial 3'!R12,'Trial 4'!R12,'Trial 5'!R12,'Trial 6'!R12,'Trial 7'!R12,'Trial 8'!R12)","v":{"v":5797003.816855973,"d":"$5,797,004"}},{"$f":"SUM('Trial 1'!S12,'Trial 2'!S12,'Trial 3'!S12,'Trial 4'!S12,'Trial 5'!S12,'Trial 6'!S12,'Trial 7'!S12,'Trial 8'!S12)","v":{"v":5795132.197051174,"d":"$5,795,132"}},{"$f":"SUM('Trial 1'!T12,'Trial 2'!T12,'Trial 3'!T12,'Trial 4'!T12,'Trial 5'!T12,'Trial 6'!T12,'Trial 7'!T12,'Trial 8'!T12)","v":{"v":5793289.249115351,"d":"$5,793,289"}},{"$f":"SUM('Trial 1'!U12,'Trial 2'!U12,'Trial 3'!U12,'Trial 4'!U12,'Trial 5'!U12,'Trial 6'!U12,'Trial 7'!U12,'Trial 8'!U12)","v":{"v":5791379.643840786,"d":"$5,791,380"}},{"$f":"SUM('Trial 1'!V12,'Trial 2'!V12,'Trial 3'!V12,'Trial 4'!V12,'Trial 5'!V12,'Trial 6'!V12,'Trial 7'!V12,'Trial 8'!V12)","v":{"v":5789349.571235211,"d":"$5,789,350"}},{"$f":"SUM('Trial 1'!W12,'Trial 2'!W12,'Trial 3'!W12,'Trial 4'!W12,'Trial 5'!W12,'Trial 6'!W12,'Trial 7'!W12,'Trial 8'!W12)","v":{"v":5787482.803180937,"d":"$5,787,483"}},{"$f":"SUM('Trial 1'!X12,'Trial 2'!X12,'Trial 3'!X12,'Trial 4'!X12,'Trial 5'!X12,'Trial 6'!X12,'Trial 7'!X12,'Trial 8'!X12)","v":{"v":5785454.600108735,"d":"$5,785,455"}},{"$f":"SUM('Trial 1'!Y12,'Trial 2'!Y12,'Trial 3'!Y12,'Trial 4'!Y12,'Trial 5'!Y12,'Trial 6'!Y12,'Trial 7'!Y12,'Trial 8'!Y12)","v":{"v":5783514.608410396,"d":"$5,783,515"}},{"$f":"SUM('Trial 1'!Z12,'Trial 2'!Z12,'Trial 3'!Z12,'Trial 4'!Z12,'Trial 5'!Z12,'Trial 6'!Z12,'Trial 7'!Z12,'Trial 8'!Z12)","v":{"v":5781396.108151317,"d":"$5,781,396"}},{"$f":"SUM(O47:Z47)","v":{"v":69505744.86364917,"d":"$69,505,745"}},{"$f":"SUM('Trial 1'!AB12,'Trial 2'!AB12,'Trial 3'!AB12,'Trial 4'!AB12,'Trial 5'!AB12,'Trial 6'!AB12,'Trial 7'!AB12,'Trial 8'!AB12)","v":{"v":5779475.724614113,"d":"$5,779,476"}},{"$f":"SUM('Trial 1'!AC12,'Trial 2'!AC12,'Trial 3'!AC12,'Trial 4'!AC12,'Trial 5'!AC12,'Trial 6'!AC12,'Trial 7'!AC12,'Trial 8'!AC12)","v":{"v":5777320.12888807,"d":"$5,777,320"}},{"$f":"SUM('Trial 1'!AD12,'Trial 2'!AD12,'Trial 3'!AD12,'Trial 4'!AD12,'Trial 5'!AD12,'Trial 6'!AD12,'Trial 7'!AD12,'Trial 8'!AD12)","v":{"v":5775235.992161637,"d":"$5,775,236"}},{"$f":"SUM('Trial 1'!AE12,'Trial 2'!AE12,'Trial 3'!AE12,'Trial 4'!AE12,'Trial 5'!AE12,'Trial 6'!AE12,'Trial 7'!AE12,'Trial 8'!AE12)","v":{"v":5773384.284116189,"d":"$5,773,384"}},{"$f":"SUM('Trial 1'!AF12,'Trial 2'!AF12,'Trial 3'!AF12,'Trial 4'!AF12,'Trial 5'!AF12,'Trial 6'!AF12,'Trial 7'!AF12,'Trial 8'!AF12)","v":{"v":5771109.4668425135,"d":"$5,771,109"}},{"$f":"SUM('Trial 1'!AG12,'Trial 2'!AG12,'Trial 3'!AG12,'Trial 4'!AG12,'Trial 5'!AG12,'Trial 6'!AG12,'Trial 7'!AG12,'Trial 8'!AG12)","v":{"v":5769053.08576607,"d":"$5,769,053"}},{"$f":"SUM('Trial 1'!AH12,'Trial 2'!AH12,'Trial 3'!AH12,'Trial 4'!AH12,'Trial 5'!AH12,'Trial 6'!AH12,'Trial 7'!AH12,'Trial 8'!AH12)","v":{"v":5767002.154394646,"d":"$5,767,002"}},{"$f":"SUM('Trial 1'!AI12,'Trial 2'!AI12,'Trial 3'!AI12,'Trial 4'!AI12,'Trial 5'!AI12,'Trial 6'!AI12,'Trial 7'!AI12,'Trial 8'!AI12)","v":{"v":5764998.19570299,"d":"$5,764,998"}},{"$f":"SUM('Trial 1'!AJ12,'Trial 2'!AJ12,'Trial 3'!AJ12,'Trial 4'!AJ12,'Trial 5'!AJ12,'Trial 6'!AJ12,'Trial 7'!AJ12,'Trial 8'!AJ12)","v":{"v":5762648.430456787,"d":"$5,762,648"}},{"$f":"SUM('Trial 1'!AK12,'Trial 2'!AK12,'Trial 3'!AK12,'Trial 4'!AK12,'Trial 5'!AK12,'Trial 6'!AK12,'Trial 7'!AK12,'Trial 8'!AK12)","v":{"v":5760560.571283549,"d":"$5,760,561"}},{"$f":"SUM('Trial 1'!AL12,'Trial 2'!AL12,'Trial 3'!AL12,'Trial 4'!AL12,'Trial 5'!AL12,'Trial 6'!AL12,'Trial 7'!AL12,'Trial 8'!AL12)","v":{"v":5758499.660218086,"d":"$5,758,500"}},{"$f":"SUM('Trial 1'!AM12,'Trial 2'!AM12,'Trial 3'!AM12,'Trial 4'!AM12,'Trial 5'!AM12,'Trial 6'!AM12,'Trial 7'!AM12,'Trial 8'!AM12)","v":{"v":5756277.017887231,"d":"$5,756,277"}},{"$f":"SUM(AB47:AM47)","v":{"v":69215564.71233189,"d":"$69,215,565"}},{"$f":"SUM('Trial 1'!AO12,'Trial 2'!AO12,'Trial 3'!AO12,'Trial 4'!AO12,'Trial 5'!AO12,'Trial 6'!AO12,'Trial 7'!AO12,'Trial 8'!AO12)","v":{"v":5754225.124966944,"d":"$5,754,225"}},{"$f":"SUM('Trial 1'!AP12,'Trial 2'!AP12,'Trial 3'!AP12,'Trial 4'!AP12,'Trial 5'!AP12,'Trial 6'!AP12,'Trial 7'!AP12,'Trial 8'!AP12)","v":{"v":5751813.732408157,"d":"$5,751,814"}},{"$f":"SUM('Trial 1'!AQ12,'Trial 2'!AQ12,'Trial 3'!AQ12,'Trial 4'!AQ12,'Trial 5'!AQ12,'Trial 6'!AQ12,'Trial 7'!AQ12,'Trial 8'!AQ12)","v":{"v":5749483.129542453,"d":"$5,749,483"}},{"$f":"SUM('Trial 1'!AR12,'Trial 2'!AR12,'Trial 3'!AR12,'Trial 4'!AR12,'Trial 5'!AR12,'Trial 6'!AR12,'Trial 7'!AR12,'Trial 8'!AR12)","v":{"v":5747420.283165112,"d":"$5,747,420"}},{"$f":"SUM('Trial 1'!AS12,'Trial 2'!AS12,'Trial 3'!AS12,'Trial 4'!AS12,'Trial 5'!AS12,'Trial 6'!AS12,'Trial 7'!AS12,'Trial 8'!AS12)","v":{"v":5745211.424917284,"d":"$5,745,211"}},{"$f":"SUM('Trial 1'!AT12,'Trial 2'!AT12,'Trial 3'!AT12,'Trial 4'!AT12,'Trial 5'!AT12,'Trial 6'!AT12,'Trial 7'!AT12,'Trial 8'!AT12)","v":{"v":5742746.513152579,"d":"$5,742,747"}},{"$f":"SUM('Trial 1'!AU12,'Trial 2'!AU12,'Trial 3'!AU12,'Trial 4'!AU12,'Trial 5'!AU12,'Trial 6'!AU12,'Trial 7'!AU12,'Trial 8'!AU12)","v":{"v":5740279.886112991,"d":"$5,740,280"}},{"$f":"SUM('Trial 1'!AV12,'Trial 2'!AV12,'Trial 3'!AV12,'Trial 4'!AV12,'Trial 5'!AV12,'Trial 6'!AV12,'Trial 7'!AV12,'Trial 8'!AV12)","v":{"v":5738189.76639592,"d":"$5,738,190"}},{"$f":"SUM('Trial 1'!AW12,'Trial 2'!AW12,'Trial 3'!AW12,'Trial 4'!AW12,'Trial 5'!AW12,'Trial 6'!AW12,'Trial 7'!AW12,'Trial 8'!AW12)","v":{"v":5736098.739751085,"d":"$5,736,099"}},{"$f":"SUM('Trial 1'!AX12,'Trial 2'!AX12,'Trial 3'!AX12,'Trial 4'!AX12,'Trial 5'!AX12,'Trial 6'!AX12,'Trial 7'!AX12,'Trial 8'!AX12)","v":{"v":5733724.508609092,"d":"$5,733,725"}},{"$f":"SUM('Trial 1'!AY12,'Trial 2'!AY12,'Trial 3'!AY12,'Trial 4'!AY12,'Trial 5'!AY12,'Trial 6'!AY12,'Trial 7'!AY12,'Trial 8'!AY12)","v":{"v":5731501.27180556,"d":"$5,731,501"}},{"$f":"SUM('Trial 1'!AZ12,'Trial 2'!AZ12,'Trial 3'!AZ12,'Trial 4'!AZ12,'Trial 5'!AZ12,'Trial 6'!AZ12,'Trial 7'!AZ12,'Trial 8'!AZ12)","v":{"v":5729154.786794107,"d":"$5,729,155"}},{"$f":"SUM(AO47:AZ47)","v":{"v":68899849.16762128,"d":"$68,899,849"}},{"$f":"SUM('Trial 1'!BB12,'Trial 2'!BB12,'Trial 3'!BB12,'Trial 4'!BB12,'Trial 5'!BB12,'Trial 6'!BB12,'Trial 7'!BB12,'Trial 8'!BB12)","v":{"v":5726883.587687879,"d":"$5,726,884"}},{"$f":"SUM('Trial 1'!BC12,'Trial 2'!BC12,'Trial 3'!BC12,'Trial 4'!BC12,'Trial 5'!BC12,'Trial 6'!BC12,'Trial 7'!BC12,'Trial 8'!BC12)","v":{"v":5724547.095198605,"d":"$5,724,547"}},{"$f":"SUM('Trial 1'!BD12,'Trial 2'!BD12,'Trial 3'!BD12,'Trial 4'!BD12,'Trial 5'!BD12,'Trial 6'!BD12,'Trial 7'!BD12,'Trial 8'!BD12)","v":{"v":5722406.961556178,"d":"$5,722,407"}},{"$f":"SUM('Trial 1'!BE12,'Trial 2'!BE12,'Trial 3'!BE12,'Trial 4'!BE12,'Trial 5'!BE12,'Trial 6'!BE12,'Trial 7'!BE12,'Trial 8'!BE12)","v":{"v":5720325.816737602,"d":"$5,720,326"}},{"$f":"SUM('Trial 1'!BF12,'Trial 2'!BF12,'Trial 3'!BF12,'Trial 4'!BF12,'Trial 5'!BF12,'Trial 6'!BF12,'Trial 7'!BF12,'Trial 8'!BF12)","v":{"v":5718046.749068191,"d":"$5,718,047"}},{"$f":"SUM('Trial 1'!BG12,'Trial 2'!BG12,'Trial 3'!BG12,'Trial 4'!BG12,'Trial 5'!BG12,'Trial 6'!BG12,'Trial 7'!BG12,'Trial 8'!BG12)","v":{"v":5715650.895301479,"d":"$5,715,651"}},{"$f":"SUM('Trial 1'!BH12,'Trial 2'!BH12,'Trial 3'!BH12,'Trial 4'!BH12,'Trial 5'!BH12,'Trial 6'!BH12,'Trial 7'!BH12,'Trial 8'!BH12)","v":{"v":5713231.94866291,"d":"$5,713,232"}},{"$f":"SUM('Trial 1'!BI12,'Trial 2'!BI12,'Trial 3'!BI12,'Trial 4'!BI12,'Trial 5'!BI12,'Trial 6'!BI12,'Trial 7'!BI12,'Trial 8'!BI12)","v":{"v":5711068.0878128605,"d":"$5,711,068"}},{"$f":"SUM('Trial 1'!BJ12,'Trial 2'!BJ12,'Trial 3'!BJ12,'Trial 4'!BJ12,'Trial 5'!BJ12,'Trial 6'!BJ12,'Trial 7'!BJ12,'Trial 8'!BJ12)","v":{"v":5708625.797431377,"d":"$5,708,626"}},{"$f":"SUM('Trial 1'!BK12,'Trial 2'!BK12,'Trial 3'!BK12,'Trial 4'!BK12,'Trial 5'!BK12,'Trial 6'!BK12,'Trial 7'!BK12,'Trial 8'!BK12)","v":{"v":5706260.893026724,"d":"$5,706,261"}},{"$f":"SUM('Trial 1'!BL12,'Trial 2'!BL12,'Trial 3'!BL12,'Trial 4'!BL12,'Trial 5'!BL12,'Trial 6'!BL12,'Trial 7'!BL12,'Trial 8'!BL12)","v":{"v":5703901.74139301,"d":"$5,703,902"}},{"$f":"SUM('Trial 1'!BM12,'Trial 2'!BM12,'Trial 3'!BM12,'Trial 4'!BM12,'Trial 5'!BM12,'Trial 6'!BM12,'Trial 7'!BM12,'Trial 8'!BM12)","v":{"v":5701439.958661409,"d":"$5,701,440"}},{"$f":"SUM(BB47:BM47)","v":{"v":68572389.53253822,"d":"$68,572,390"}},{"$f":"SUM('Trial 1'!BO12,'Trial 2'!BO12,'Trial 3'!BO12,'Trial 4'!BO12,'Trial 5'!BO12,'Trial 6'!BO12,'Trial 7'!BO12,'Trial 8'!BO12)","v":{"v":5698924.471437568,"d":"$5,698,924"}},{"$f":"SUM('Trial 1'!BP12,'Trial 2'!BP12,'Trial 3'!BP12,'Trial 4'!BP12,'Trial 5'!BP12,'Trial 6'!BP12,'Trial 7'!BP12,'Trial 8'!BP12)","v":{"v":5696265.416667941,"d":"$5,696,265"}},{"$f":"SUM('Trial 1'!BQ12,'Trial 2'!BQ12,'Trial 3'!BQ12,'Trial 4'!BQ12,'Trial 5'!BQ12,'Trial 6'!BQ12,'Trial 7'!BQ12,'Trial 8'!BQ12)","v":{"v":5693992.379448248,"d":"$5,693,992"}},{"$f":"SUM('Trial 1'!BR12,'Trial 2'!BR12,'Trial 3'!BR12,'Trial 4'!BR12,'Trial 5'!BR12,'Trial 6'!BR12,'Trial 7'!BR12,'Trial 8'!BR12)","v":{"v":5691506.877838338,"d":"$5,691,507"}},{"$f":"SUM('Trial 1'!BS12,'Trial 2'!BS12,'Trial 3'!BS12,'Trial 4'!BS12,'Trial 5'!BS12,'Trial 6'!BS12,'Trial 7'!BS12,'Trial 8'!BS12)","v":{"v":5689339.148177198,"d":"$5,689,339"}},{"$f":"SUM('Trial 1'!BT12,'Trial 2'!BT12,'Trial 3'!BT12,'Trial 4'!BT12,'Trial 5'!BT12,'Trial 6'!BT12,'Trial 7'!BT12,'Trial 8'!BT12)","v":{"v":5686885.952275965,"d":"$5,686,886"}},{"$f":"SUM('Trial 1'!BU12,'Trial 2'!BU12,'Trial 3'!BU12,'Trial 4'!BU12,'Trial 5'!BU12,'Trial 6'!BU12,'Trial 7'!BU12,'Trial 8'!BU12)","v":{"v":5684550.248123112,"d":"$5,684,550"}},{"$f":"SUM('Trial 1'!BV12,'Trial 2'!BV12,'Trial 3'!BV12,'Trial 4'!BV12,'Trial 5'!BV12,'Trial 6'!BV12,'Trial 7'!BV12,'Trial 8'!BV12)","v":{"v":5681991.120551246,"d":"$5,681,991"}},{"$f":"SUM('Trial 1'!BW12,'Trial 2'!BW12,'Trial 3'!BW12,'Trial 4'!BW12,'Trial 5'!BW12,'Trial 6'!BW12,'Trial 7'!BW12,'Trial 8'!BW12)","v":{"v":5679410.1628982425,"d":"$5,679,410"}},{"$f":"SUM('Trial 1'!BX12,'Trial 2'!BX12,'Trial 3'!BX12,'Trial 4'!BX12,'Trial 5'!BX12,'Trial 6'!BX12,'Trial 7'!BX12,'Trial 8'!BX12)","v":{"v":5677137.954684553,"d":"$5,677,138"}},{"$f":"SUM('Trial 1'!BY12,'Trial 2'!BY12,'Trial 3'!BY12,'Trial 4'!BY12,'Trial 5'!BY12,'Trial 6'!BY12,'Trial 7'!BY12,'Trial 8'!BY12)","v":{"v":5674458.313944822,"d":"$5,674,458"}},{"$f":"SUM('Trial 1'!BZ12,'Trial 2'!BZ12,'Trial 3'!BZ12,'Trial 4'!BZ12,'Trial 5'!BZ12,'Trial 6'!BZ12,'Trial 7'!BZ12,'Trial 8'!BZ12)","v":{"v":5672047.435348546,"d":"$5,672,047"}},{"$f":"SUM(BO47:BZ47)","v":{"v":68226509.48139578,"d":"$68,226,509"}},{"$f":"SUM('Trial 1'!CB12,'Trial 2'!CB12,'Trial 3'!CB12,'Trial 4'!CB12,'Trial 5'!CB12,'Trial 6'!CB12,'Trial 7'!CB12,'Trial 8'!CB12)","v":{"v":5669578.772065274,"d":"$5,669,579"}},{"$f":"SUM('Trial 1'!CC12,'Trial 2'!CC12,'Trial 3'!CC12,'Trial 4'!CC12,'Trial 5'!CC12,'Trial 6'!CC12,'Trial 7'!CC12,'Trial 8'!CC12)","v":{"v":5667075.706544033,"d":"$5,667,076"}},{"$f":"SUM('Trial 1'!CD12,'Trial 2'!CD12,'Trial 3'!CD12,'Trial 4'!CD12,'Trial 5'!CD12,'Trial 6'!CD12,'Trial 7'!CD12,'Trial 8'!CD12)","v":{"v":5664578.066569445,"d":"$5,664,578"}},{"$f":"SUM('Trial 1'!CE12,'Trial 2'!CE12,'Trial 3'!CE12,'Trial 4'!CE12,'Trial 5'!CE12,'Trial 6'!CE12,'Trial 7'!CE12,'Trial 8'!CE12)","v":{"v":5661849.716093576,"d":"$5,661,850"}},{"$f":"SUM('Trial 1'!CF12,'Trial 2'!CF12,'Trial 3'!CF12,'Trial 4'!CF12,'Trial 5'!CF12,'Trial 6'!CF12,'Trial 7'!CF12,'Trial 8'!CF12)","v":{"v":5659162.2052372545,"d":"$5,659,162"}},{"$f":"SUM('Trial 1'!CG12,'Trial 2'!CG12,'Trial 3'!CG12,'Trial 4'!CG12,'Trial 5'!CG12,'Trial 6'!CG12,'Trial 7'!CG12,'Trial 8'!CG12)","v":{"v":5656572.649497472,"d":"$5,656,573"}},{"$f":"SUM('Trial 1'!CH12,'Trial 2'!CH12,'Trial 3'!CH12,'Trial 4'!CH12,'Trial 5'!CH12,'Trial 6'!CH12,'Trial 7'!CH12,'Trial 8'!CH12)","v":{"v":5654038.552841399,"d":"$5,654,039"}},{"$f":"SUM('Trial 1'!CI12,'Trial 2'!CI12,'Trial 3'!CI12,'Trial 4'!CI12,'Trial 5'!CI12,'Trial 6'!CI12,'Trial 7'!CI12,'Trial 8'!CI12)","v":{"v":5651346.502906019,"d":"$5,651,347"}},{"$f":"SUM('Trial 1'!CJ12,'Trial 2'!CJ12,'Trial 3'!CJ12,'Trial 4'!CJ12,'Trial 5'!CJ12,'Trial 6'!CJ12,'Trial 7'!CJ12,'Trial 8'!CJ12)","v":{"v":5648736.535931545,"d":"$5,648,737"}},{"$f":"SUM('Trial 1'!CK12,'Trial 2'!CK12,'Trial 3'!CK12,'Trial 4'!CK12,'Trial 5'!CK12,'Trial 6'!CK12,'Trial 7'!CK12,'Trial 8'!CK12)","v":{"v":5646361.298899101,"d":"$5,646,361"}},{"$f":"SUM('Trial 1'!CL12,'Trial 2'!CL12,'Trial 3'!CL12,'Trial 4'!CL12,'Trial 5'!CL12,'Trial 6'!CL12,'Trial 7'!CL12,'Trial 8'!CL12)","v":{"v":5643803.448017898,"d":"$5,643,803"}},{"$f":"SUM('Trial 1'!CM12,'Trial 2'!CM12,'Trial 3'!CM12,'Trial 4'!CM12,'Trial 5'!CM12,'Trial 6'!CM12,'Trial 7'!CM12,'Trial 8'!CM12)","v":{"v":5641139.814891666,"d":"$5,641,140"}},{"$f":"SUM(CB47:CM47)","v":{"v":67864243.26949468,"d":"$67,864,243"}},{"$f":"SUM('Trial 1'!CO12,'Trial 2'!CO12,'Trial 3'!CO12,'Trial 4'!CO12,'Trial 5'!CO12,'Trial 6'!CO12,'Trial 7'!CO12,'Trial 8'!CO12)","v":{"v":5638276.501859876,"d":"$5,638,277"}},{"$f":"SUM('Trial 1'!CP12,'Trial 2'!CP12,'Trial 3'!CP12,'Trial 4'!CP12,'Trial 5'!CP12,'Trial 6'!CP12,'Trial 7'!CP12,'Trial 8'!CP12)","v":{"v":5635624.416150266,"d":"$5,635,624"}},{"$f":"SUM('Trial 1'!CQ12,'Trial 2'!CQ12,'Trial 3'!CQ12,'Trial 4'!CQ12,'Trial 5'!CQ12,'Trial 6'!CQ12,'Trial 7'!CQ12,'Trial 8'!CQ12)","v":{"v":5632913.142712369,"d":"$5,632,913"}},{"$f":"SUM('Trial 1'!CR12,'Trial 2'!CR12,'Trial 3'!CR12,'Trial 4'!CR12,'Trial 5'!CR12,'Trial 6'!CR12,'Trial 7'!CR12,'Trial 8'!CR12)","v":{"v":5630334.175478417,"d":"$5,630,334"}},{"$f":"SUM('Trial 1'!CS12,'Trial 2'!CS12,'Trial 3'!CS12,'Trial 4'!CS12,'Trial 5'!CS12,'Trial 6'!CS12,'Trial 7'!CS12,'Trial 8'!CS12)","v":{"v":5627648.0336975455,"d":"$5,627,648"}},{"$f":"SUM('Trial 1'!CT12,'Trial 2'!CT12,'Trial 3'!CT12,'Trial 4'!CT12,'Trial 5'!CT12,'Trial 6'!CT12,'Trial 7'!CT12,'Trial 8'!CT12)","v":{"v":5625058.2035296885,"d":"$5,625,058"}},{"$f":"SUM('Trial 1'!CU12,'Trial 2'!CU12,'Trial 3'!CU12,'Trial 4'!CU12,'Trial 5'!CU12,'Trial 6'!CU12,'Trial 7'!CU12,'Trial 8'!CU12)","v":{"v":5622365.959645533,"d":"$5,622,366"}},{"$f":"SUM('Trial 1'!CV12,'Trial 2'!CV12,'Trial 3'!CV12,'Trial 4'!CV12,'Trial 5'!CV12,'Trial 6'!CV12,'Trial 7'!CV12,'Trial 8'!CV12)","v":{"v":5619806.186409247,"d":"$5,619,806"}},{"$f":"SUM('Trial 1'!CW12,'Trial 2'!CW12,'Trial 3'!CW12,'Trial 4'!CW12,'Trial 5'!CW12,'Trial 6'!CW12,'Trial 7'!CW12,'Trial 8'!CW12)","v":{"v":5617148.318948335,"d":"$5,617,148"}},{"$f":"SUM('Trial 1'!CX12,'Trial 2'!CX12,'Trial 3'!CX12,'Trial 4'!CX12,'Trial 5'!CX12,'Trial 6'!CX12,'Trial 7'!CX12,'Trial 8'!CX12)","v":{"v":5614326.499795934,"d":"$5,614,326"}},{"$f":"SUM('Trial 1'!CY12,'Trial 2'!CY12,'Trial 3'!CY12,'Trial 4'!CY12,'Trial 5'!CY12,'Trial 6'!CY12,'Trial 7'!CY12,'Trial 8'!CY12)","v":{"v":5611752.6929546,"d":"$5,611,753"}},{"$f":"SUM('Trial 1'!CZ12,'Trial 2'!CZ12,'Trial 3'!CZ12,'Trial 4'!CZ12,'Trial 5'!CZ12,'Trial 6'!CZ12,'Trial 7'!CZ12,'Trial 8'!CZ12)","v":{"v":5609219.21487231,"d":"$5,609,219"}},{"$f":"SUM(CO47:CZ47)","v":{"v":67484473.34605412,"d":"$67,484,473"}},{"$f":"SUM('Trial 1'!DB12,'Trial 2'!DB12,'Trial 3'!DB12,'Trial 4'!DB12,'Trial 5'!DB12,'Trial 6'!DB12,'Trial 7'!DB12,'Trial 8'!DB12)","v":{"v":5606735.40923164,"d":"$5,606,735"}},{"$f":"SUM('Trial 1'!DC12,'Trial 2'!DC12,'Trial 3'!DC12,'Trial 4'!DC12,'Trial 5'!DC12,'Trial 6'!DC12,'Trial 7'!DC12,'Trial 8'!DC12)","v":{"v":5603984.687345043,"d":"$5,603,985"}},{"$f":"SUM('Trial 1'!DD12,'Trial 2'!DD12,'Trial 3'!DD12,'Trial 4'!DD12,'Trial 5'!DD12,'Trial 6'!DD12,'Trial 7'!DD12,'Trial 8'!DD12)","v":{"v":5601266.574565148,"d":"$5,601,267"}},{"$f":"SUM('Trial 1'!DE12,'Trial 2'!DE12,'Trial 3'!DE12,'Trial 4'!DE12,'Trial 5'!DE12,'Trial 6'!DE12,'Trial 7'!DE12,'Trial 8'!DE12)","v":{"v":5598537.383732154,"d":"$5,598,537"}},{"$f":"SUM('Trial 1'!DF12,'Trial 2'!DF12,'Trial 3'!DF12,'Trial 4'!DF12,'Trial 5'!DF12,'Trial 6'!DF12,'Trial 7'!DF12,'Trial 8'!DF12)","v":{"v":5595959.2310867505,"d":"$5,595,959"}},{"$f":"SUM('Trial 1'!DG12,'Trial 2'!DG12,'Trial 3'!DG12,'Trial 4'!DG12,'Trial 5'!DG12,'Trial 6'!DG12,'Trial 7'!DG12,'Trial 8'!DG12)","v":{"v":5593306.316861584,"d":"$5,593,306"}},{"$f":"SUM('Trial 1'!DH12,'Trial 2'!DH12,'Trial 3'!DH12,'Trial 4'!DH12,'Trial 5'!DH12,'Trial 6'!DH12,'Trial 7'!DH12,'Trial 8'!DH12)","v":{"v":5590452.298549716,"d":"$5,590,452"}},{"$f":"SUM('Trial 1'!DI12,'Trial 2'!DI12,'Trial 3'!DI12,'Trial 4'!DI12,'Trial 5'!DI12,'Trial 6'!DI12,'Trial 7'!DI12,'Trial 8'!DI12)","v":{"v":5587829.869917458,"d":"$5,587,830"}},{"$f":"SUM('Trial 1'!DJ12,'Trial 2'!DJ12,'Trial 3'!DJ12,'Trial 4'!DJ12,'Trial 5'!DJ12,'Trial 6'!DJ12,'Trial 7'!DJ12,'Trial 8'!DJ12)","v":{"v":5585120.4463940095,"d":"$5,585,120"}},{"$f":"SUM('Trial 1'!DK12,'Trial 2'!DK12,'Trial 3'!DK12,'Trial 4'!DK12,'Trial 5'!DK12,'Trial 6'!DK12,'Trial 7'!DK12,'Trial 8'!DK12)","v":{"v":5582530.50078694,"d":"$5,582,531"}},{"$f":"SUM('Trial 1'!DL12,'Trial 2'!DL12,'Trial 3'!DL12,'Trial 4'!DL12,'Trial 5'!DL12,'Trial 6'!DL12,'Trial 7'!DL12,'Trial 8'!DL12)","v":{"v":5579884.656651458,"d":"$5,579,885"}},{"$f":"SUM('Trial 1'!DM12,'Trial 2'!DM12,'Trial 3'!DM12,'Trial 4'!DM12,'Trial 5'!DM12,'Trial 6'!DM12,'Trial 7'!DM12,'Trial 8'!DM12)","v":{"v":5577029.554966802,"d":"$5,577,030"}},{"$f":"SUM(DB47:DM47)","v":{"v":67102636.93008871,"d":"$67,102,637"}},{"$f":"SUM('Trial 1'!DO12,'Trial 2'!DO12,'Trial 3'!DO12,'Trial 4'!DO12,'Trial 5'!DO12,'Trial 6'!DO12,'Trial 7'!DO12,'Trial 8'!DO12)","v":{"v":5574424.440219423,"d":"$5,574,424"}},{"$f":"SUM('Trial 1'!DP12,'Trial 2'!DP12,'Trial 3'!DP12,'Trial 4'!DP12,'Trial 5'!DP12,'Trial 6'!DP12,'Trial 7'!DP12,'Trial 8'!DP12)","v":{"v":5571808.1147902785,"d":"$5,571,808"}},{"$f":"SUM('Trial 1'!DQ12,'Trial 2'!DQ12,'Trial 3'!DQ12,'Trial 4'!DQ12,'Trial 5'!DQ12,'Trial 6'!DQ12,'Trial 7'!DQ12,'Trial 8'!DQ12)","v":{"v":5569016.214778062,"d":"$5,569,016"}},{"$f":"SUM('Trial 1'!DR12,'Trial 2'!DR12,'Trial 3'!DR12,'Trial 4'!DR12,'Trial 5'!DR12,'Trial 6'!DR12,'Trial 7'!DR12,'Trial 8'!DR12)","v":{"v":5566345.15485963,"d":"$5,566,345"}},{"$f":"SUM('Trial 1'!DS12,'Trial 2'!DS12,'Trial 3'!DS12,'Trial 4'!DS12,'Trial 5'!DS12,'Trial 6'!DS12,'Trial 7'!DS12,'Trial 8'!DS12)","v":{"v":5563567.82188525,"d":"$5,563,568"}},{"$f":"SUM('Trial 1'!DT12,'Trial 2'!DT12,'Trial 3'!DT12,'Trial 4'!DT12,'Trial 5'!DT12,'Trial 6'!DT12,'Trial 7'!DT12,'Trial 8'!DT12)","v":{"v":5560905.538646638,"d":"$5,560,906"}},{"$f":"SUM('Trial 1'!DU12,'Trial 2'!DU12,'Trial 3'!DU12,'Trial 4'!DU12,'Trial 5'!DU12,'Trial 6'!DU12,'Trial 7'!DU12,'Trial 8'!DU12)","v":{"v":5558081.943756721,"d":"$5,558,082"}},{"$f":"SUM('Trial 1'!DV12,'Trial 2'!DV12,'Trial 3'!DV12,'Trial 4'!DV12,'Trial 5'!DV12,'Trial 6'!DV12,'Trial 7'!DV12,'Trial 8'!DV12)","v":{"v":5555398.528541686,"d":"$5,555,399"}},{"$f":"SUM('Trial 1'!DW12,'Trial 2'!DW12,'Trial 3'!DW12,'Trial 4'!DW12,'Trial 5'!DW12,'Trial 6'!DW12,'Trial 7'!DW12,'Trial 8'!DW12)","v":{"v":5552385.774835138,"d":"$5,552,386"}},{"$f":"SUM('Trial 1'!DX12,'Trial 2'!DX12,'Trial 3'!DX12,'Trial 4'!DX12,'Trial 5'!DX12,'Trial 6'!DX12,'Trial 7'!DX12,'Trial 8'!DX12)","v":{"v":5549756.750158612,"d":"$5,549,757"}},{"$f":"SUM('Trial 1'!DY12,'Trial 2'!DY12,'Trial 3'!DY12,'Trial 4'!DY12,'Trial 5'!DY12,'Trial 6'!DY12,'Trial 7'!DY12,'Trial 8'!DY12)","v":{"v":5546963.697898676,"d":"$5,546,964"}},{"$f":"SUM('Trial 1'!DZ12,'Trial 2'!DZ12,'Trial 3'!DZ12,'Trial 4'!DZ12,'Trial 5'!DZ12,'Trial 6'!DZ12,'Trial 7'!DZ12,'Trial 8'!DZ12)","v":{"v":5544246.019566705,"d":"$5,544,246"}},{"$f":"SUM(DO47:DZ47)","v":{"v":66712899.99993682,"d":"$66,712,900"}},{"$f":"SUM('Trial 1'!EB12,'Trial 2'!EB12,'Trial 3'!EB12,'Trial 4'!EB12,'Trial 5'!EB12,'Trial 6'!EB12,'Trial 7'!EB12,'Trial 8'!EB12)","v":{"v":5541431.569023192,"d":"$5,541,432"}},{"$f":"SUM('Trial 1'!EC12,'Trial 2'!EC12,'Trial 3'!EC12,'Trial 4'!EC12,'Trial 5'!EC12,'Trial 6'!EC12,'Trial 7'!EC12,'Trial 8'!EC12)","v":{"v":5538784.017999978,"d":"$5,538,784"}},{"$f":"SUM('Trial 1'!ED12,'Trial 2'!ED12,'Trial 3'!ED12,'Trial 4'!ED12,'Trial 5'!ED12,'Trial 6'!ED12,'Trial 7'!ED12,'Trial 8'!ED12)","v":{"v":5536109.860679538,"d":"$5,536,110"}},{"$f":"SUM('Trial 1'!EE12,'Trial 2'!EE12,'Trial 3'!EE12,'Trial 4'!EE12,'Trial 5'!EE12,'Trial 6'!EE12,'Trial 7'!EE12,'Trial 8'!EE12)","v":{"v":5533067.391668514,"d":"$5,533,067"}},{"$f":"SUM('Trial 1'!EF12,'Trial 2'!EF12,'Trial 3'!EF12,'Trial 4'!EF12,'Trial 5'!EF12,'Trial 6'!EF12,'Trial 7'!EF12,'Trial 8'!EF12)","v":{"v":5530311.827165596,"d":"$5,530,312"}},{"$f":"SUM('Trial 1'!EG12,'Trial 2'!EG12,'Trial 3'!EG12,'Trial 4'!EG12,'Trial 5'!EG12,'Trial 6'!EG12,'Trial 7'!EG12,'Trial 8'!EG12)","v":{"v":5527499.829116011,"d":"$5,527,500"}},{"$f":"SUM('Trial 1'!EH12,'Trial 2'!EH12,'Trial 3'!EH12,'Trial 4'!EH12,'Trial 5'!EH12,'Trial 6'!EH12,'Trial 7'!EH12,'Trial 8'!EH12)","v":{"v":5524671.794628293,"d":"$5,524,672"}},{"$f":"SUM('Trial 1'!EI12,'Trial 2'!EI12,'Trial 3'!EI12,'Trial 4'!EI12,'Trial 5'!EI12,'Trial 6'!EI12,'Trial 7'!EI12,'Trial 8'!EI12)","v":{"v":5521912.319698275,"d":"$5,521,912"}},{"$f":"SUM('Trial 1'!EJ12,'Trial 2'!EJ12,'Trial 3'!EJ12,'Trial 4'!EJ12,'Trial 5'!EJ12,'Trial 6'!EJ12,'Trial 7'!EJ12,'Trial 8'!EJ12)","v":{"v":5519119.6439945735,"d":"$5,519,120"}},{"$f":"SUM('Trial 1'!EK12,'Trial 2'!EK12,'Trial 3'!EK12,'Trial 4'!EK12,'Trial 5'!EK12,'Trial 6'!EK12,'Trial 7'!EK12,'Trial 8'!EK12)","v":{"v":5516357.02339741,"d":"$5,516,357"}},{"$f":"SUM('Trial 1'!EL12,'Trial 2'!EL12,'Trial 3'!EL12,'Trial 4'!EL12,'Trial 5'!EL12,'Trial 6'!EL12,'Trial 7'!EL12,'Trial 8'!EL12)","v":{"v":5513434.762876473,"d":"$5,513,435"}},{"$f":"SUM('Trial 1'!EM12,'Trial 2'!EM12,'Trial 3'!EM12,'Trial 4'!EM12,'Trial 5'!EM12,'Trial 6'!EM12,'Trial 7'!EM12,'Trial 8'!EM12)","v":{"v":5510631.2007535035,"d":"$5,510,631"}},{"$f":"SUM(EB47:EM47)","v":{"v":66313331.241001345,"d":"$66,313,331"}}]
[{"$f":"Labels!B58","v":"Permanent Income"}]
[{"$f":"Labels!D96","v":"Trials"},{"$f":"ZZZ__FnCalls!F7","v":"Jan 2010"},{"$f":"ZZZ__FnCalls!F8","v":"Feb 2010"},{"$f":"ZZZ__FnCalls!F9","v":"Mar 2010"},{"$f":"ZZZ__FnCalls!F10","v":"Apr 2010"},{"$f":"ZZZ__FnCalls!F11","v":"May 2010"},{"$f":"ZZZ__FnCalls!F12","v":"Jun 2010"},{"$f":"ZZZ__FnCalls!F13","v":"Jul 2010"},{"$f":"ZZZ__FnCalls!F14","v":"Aug 2010"},{"$f":"ZZZ__FnCalls!F15","v":"Sep 2010"},{"$f":"ZZZ__FnCalls!F16","v":"Oct 2010"},{"$f":"ZZZ__FnCalls!F17","v":"Nov 2010"},{"$f":"ZZZ__FnCalls!F18","v":"Dec 2010"},{"$f":"ZZZ__FnCalls!H7","v":"2010"},{"$f":"ZZZ__FnCalls!F19","v":"Jan 2011"},{"$f":"ZZZ__FnCalls!F20","v":"Feb 2011"},{"$f":"ZZZ__FnCalls!F21","v":"Mar 2011"},{"$f":"ZZZ__FnCalls!F22","v":"Apr 2011"},{"$f":"ZZZ__FnCalls!F23","v":"May 2011"},{"$f":"ZZZ__FnCalls!F24","v":"Jun 2011"},{"$f":"ZZZ__FnCalls!F25","v":"Jul 2011"},{"$f":"ZZZ__FnCalls!F26","v":"Aug 2011"},{"$f":"ZZZ__FnCalls!F27","v":"Sep 2011"},{"$f":"ZZZ__FnCalls!F28","v":"Oct 2011"},{"$f":"ZZZ__FnCalls!F29","v":"Nov 2011"},{"$f":"ZZZ__FnCalls!F30","v":"Dec 2011"},{"$f":"ZZZ__FnCalls!H19","v":"2011"},{"$f":"ZZZ__FnCalls!F31","v":"Jan 2012"},{"$f":"ZZZ__FnCalls!F32","v":"Feb 2012"},{"$f":"ZZZ__FnCalls!F33","v":"Mar 2012"},{"$f":"ZZZ__FnCalls!F34","v":"Apr 2012"},{"$f":"ZZZ__FnCalls!F35","v":"May 2012"},{"$f":"ZZZ__FnCalls!F36","v":"Jun 2012"},{"$f":"ZZZ__FnCalls!F37","v":"Jul 2012"},{"$f":"ZZZ__FnCalls!F38","v":"Aug 2012"},{"$f":"ZZZ__FnCalls!F39","v":"Sep 2012"},{"$f":"ZZZ__FnCalls!F40","v":"Oct 2012"},{"$f":"ZZZ__FnCalls!F41","v":"Nov 2012"},{"$f":"ZZZ__FnCalls!F42","v":"Dec 2012"},{"$f":"ZZZ__FnCalls!H31","v":"2012"},{"$f":"ZZZ__FnCalls!F43","v":"Jan 2013"},{"$f":"ZZZ__FnCalls!F44","v":"Feb 2013"},{"$f":"ZZZ__FnCalls!F45","v":"Mar 2013"},{"$f":"ZZZ__FnCalls!F46","v":"Apr 2013"},{"$f":"ZZZ__FnCalls!F47","v":"May 2013"},{"$f":"ZZZ__FnCalls!F48","v":"Jun 2013"},{"$f":"ZZZ__FnCalls!F49","v":"Jul 2013"},{"$f":"ZZZ__FnCalls!F50","v":"Aug 2013"},{"$f":"ZZZ__FnCalls!F51","v":"Sep 2013"},{"$f":"ZZZ__FnCalls!F52","v":"Oct 2013"},{"$f":"ZZZ__FnCalls!F53","v":"Nov 2013"},{"$f":"ZZZ__FnCalls!F54","v":"Dec 2013"},{"$f":"ZZZ__FnCalls!H43","v":"2013"},{"$f":"ZZZ__FnCalls!F55","v":"Jan 2014"},{"$f":"ZZZ__FnCalls!F56","v":"Feb 2014"},{"$f":"ZZZ__FnCalls!F57","v":"Mar 2014"},{"$f":"ZZZ__FnCalls!F58","v":"Apr 2014"},{"$f":"ZZZ__FnCalls!F59","v":"May 2014"},{"$f":"ZZZ__FnCalls!F60","v":"Jun 2014"},{"$f":"ZZZ__FnCalls!F61","v":"Jul 2014"},{"$f":"ZZZ__FnCalls!F62","v":"Aug 2014"},{"$f":"ZZZ__FnCalls!F63","v":"Sep 2014"},{"$f":"ZZZ__FnCalls!F64","v":"Oct 2014"},{"$f":"ZZZ__FnCalls!F65","v":"Nov 2014"},{"$f":"ZZZ__FnCalls!F66","v":"Dec 2014"},{"$f":"ZZZ__FnCalls!H55","v":"2014"},{"$f":"ZZZ__FnCalls!F67","v":"Jan 2015"},{"$f":"ZZZ__FnCalls!F68","v":"Feb 2015"},{"$f":"ZZZ__FnCalls!F69","v":"Mar 2015"},{"$f":"ZZZ__FnCalls!F70","v":"Apr 2015"},{"$f":"ZZZ__FnCalls!F71","v":"May 2015"},{"$f":"ZZZ__FnCalls!F72","v":"Jun 2015"},{"$f":"ZZZ__FnCalls!F73","v":"Jul 2015"},{"$f":"ZZZ__FnCalls!F74","v":"Aug 2015"},{"$f":"ZZZ__FnCalls!F75","v":"Sep 2015"},{"$f":"ZZZ__FnCalls!F76","v":"Oct 2015"},{"$f":"ZZZ__FnCalls!F77","v":"Nov 2015"},{"$f":"ZZZ__FnCalls!F78","v":"Dec 2015"},{"$f":"ZZZ__FnCalls!H67","v":"2015"},{"$f":"ZZZ__FnCalls!F79","v":"Jan 2016"},{"$f":"ZZZ__FnCalls!F80","v":"Feb 2016"},{"$f":"ZZZ__FnCalls!F81","v":"Mar 2016"},{"$f":"ZZZ__FnCalls!F82","v":"Apr 2016"},{"$f":"ZZZ__FnCalls!F83","v":"May 2016"},{"$f":"ZZZ__FnCalls!F84","v":"Jun 2016"},{"$f":"ZZZ__FnCalls!F85","v":"Jul 2016"},{"$f":"ZZZ__FnCalls!F86","v":"Aug 2016"},{"$f":"ZZZ__FnCalls!F87","v":"Sep 2016"},{"$f":"ZZZ__FnCalls!F88","v":"Oct 2016"},{"$f":"ZZZ__FnCalls!F89","v":"Nov 2016"},{"$f":"ZZZ__FnCalls!F90","v":"Dec 2016"},{"$f":"ZZZ__FnCalls!H79","v":"2016"},{"$f":"ZZZ__FnCalls!F91","v":"Jan 2017"},{"$f":"ZZZ__FnCalls!F92","v":"Feb 2017"},{"$f":"ZZZ__FnCalls!F93","v":"Mar 2017"},{"$f":"ZZZ__FnCalls!F94","v":"Apr 2017"},{"$f":"ZZZ__FnCalls!F95","v":"May 2017"},{"$f":"ZZZ__FnCalls!F96","v":"Jun 2017"},{"$f":"ZZZ__FnCalls!F97","v":"Jul 2017"},{"$f":"ZZZ__FnCalls!F98","v":"Aug 2017"},{"$f":"ZZZ__FnCalls!F99","v":"Sep 2017"},{"$f":"ZZZ__FnCalls!F100","v":"Oct 2017"},{"$f":"ZZZ__FnCalls!F101","v":"Nov 2017"},{"$f":"ZZZ__FnCalls!F102","v":"Dec 2017"},{"$f":"ZZZ__FnCalls!H91","v":"2017"},{"$f":"ZZZ__FnCalls!F103","v":"Jan 2018"},{"$f":"ZZZ__FnCalls!F104","v":"Feb 2018"},{"$f":"ZZZ__FnCalls!F105","v":"Mar 2018"},{"$f":"ZZZ__FnCalls!F106","v":"Apr 2018"},{"$f":"ZZZ__FnCalls!F107","v":"May 2018"},{"$f":"ZZZ__FnCalls!F108","v":"Jun 2018"},{"$f":"ZZZ__FnCalls!F109","v":"Jul 2018"},{"$f":"ZZZ__FnCalls!F110","v":"Aug 2018"},{"$f":"ZZZ__FnCalls!F111","v":"Sep 2018"},{"$f":"ZZZ__FnCalls!F112","v":"Oct 2018"},{"$f":"ZZZ__FnCalls!F113","v":"Nov 2018"},{"$f":"ZZZ__FnCalls!F114","v":"Dec 2018"},{"$f":"ZZZ__FnCalls!H103","v":"2018"},{"$f":"ZZZ__FnCalls!F115","v":"Jan 2019"},{"$f":"ZZZ__FnCalls!F116","v":"Feb 2019"},{"$f":"ZZZ__FnCalls!F117","v":"Mar 2019"},{"$f":"ZZZ__FnCalls!F118","v":"Apr 2019"},{"$f":"ZZZ__FnCalls!F119","v":"May 2019"},{"$f":"ZZZ__FnCalls!F120","v":"Jun 2019"},{"$f":"ZZZ__FnCalls!F121","v":"Jul 2019"},{"$f":"ZZZ__FnCalls!F122","v":"Aug 2019"},{"$f":"ZZZ__FnCalls!F123","v":"Sep 2019"},{"$f":"ZZZ__FnCalls!F124","v":"Oct 2019"},{"$f":"ZZZ__FnCalls!F125","v":"Nov 2019"},{"$f":"ZZZ__FnCalls!F126","v":"Dec 2019"},{"$f":"ZZZ__FnCalls!H115","v":"2019"},{"$f":"ZZZ__FnCalls!F127","v":"Jan 2020"},{"$f":"ZZZ__FnCalls!F128","v":"Feb 2020"},{"$f":"ZZZ__FnCalls!F129","v":"Mar 2020"},{"$f":"ZZZ__FnCalls!F130","v":"Apr 2020"},{"$f":"ZZZ__FnCalls!F131","v":"May 2020"},{"$f":"ZZZ__FnCalls!F132","v":"Jun 2020"},{"$f":"ZZZ__FnCalls!F133","v":"Jul 2020"},{"$f":"ZZZ__FnCalls!F134","v":"Aug 2020"},{"$f":"ZZZ__FnCalls!F135","v":"Sep 2020"},{"$f":"ZZZ__FnCalls!F136","v":"Oct 2020"},{"$f":"ZZZ__FnCalls!F137","v":"Nov 2020"},{"$f":"ZZZ__FnCalls!F138","v":"Dec 2020"},{"$f":"ZZZ__FnCalls!H127","v":"2020"}]
[{"$f":"Labels!B96","v":"Trial 01"},{"$f":"B8-B11+B61*0/Inputs!B35/12","v":{"v":933333.3333333334,"d":"$933,333"}},{"$f":"B50+B61*('Trial 1'!B35-B50)/Inputs!B35/12","v":{"v":933118.7810365955,"d":"$933,119"}},{"$f":"C50+B61*('Trial 1'!C35-C50)/Inputs!B35/12","v":{"v":932745.1609445497,"d":"$932,745"}},{"$f":"D50+B61*('Trial 1'!D35-D50)/Inputs!B35/12","v":{"v":932482.5049378414,"d":"$932,483"}},{"$f":"E50+B61*('Trial 1'!E35-E50)/Inputs!B35/12","v":{"v":932170.7636754914,"d":"$932,171"}},{"$f":"F50+B61*('Trial 1'!F35-F50)/Inputs!B35/12","v":{"v":931875.4297988566,"d":"$931,875"}},{"$f":"G50+B61*('Trial 1'!G35-G50)/Inputs!B35/12","v":{"v":931597.9974733951,"d":"$931,598"}},{"$f":"H50+B61*('Trial 1'!H35-H50)/Inputs!B35/12","v":{"v":931371.1265567618,"d":"$931,371"}},{"$f":"I50+B61*('Trial 1'!I35-I50)/Inputs!B35/12","v":{"v":931077.9033586513,"d":"$931,078"}},{"$f":"J50+B61*('Trial 1'!J35-J50)/Inputs!B35/12","v":{"v":930807.3996972705,"d":"$930,807"}},{"$f":"K50+B61*('Trial 1'!K35-K50)/Inputs!B35/12","v":{"v":930536.3971294342,"d":"$930,536"}},{"$f":"L50+B61*('Trial 1'!L35-L50)/Inputs!B35/12","v":{"v":930243.5949686668,"d":"$930,244"}},{"$f":"SUM(B50:M50)","v":{"v":11181360.392910847,"d":"$11,181,360"}},{"$f":"M50+B61*('Trial 1'!M35-M50)/Inputs!B35/12","v":{"v":930017.2594047812,"d":"$930,017"}},{"$f":"O50+B61*('Trial 1'!O35-O50)/Inputs!B35/12","v":{"v":929675.4796888325,"d":"$929,675"}},{"$f":"P50+B61*('Trial 1'!P35-P50)/Inputs!B35/12","v":{"v":929427.0548228752,"d":"$929,427"}},{"$f":"Q50+B61*('Trial 1'!Q35-Q50)/Inputs!B35/12","v":{"v":929110.44120989,"d":"$929,110"}},{"$f":"R50+B61*('Trial 1'!R35-R50)/Inputs!B35/12","v":{"v":928801.957252036,"d":"$928,802"}},{"$f":"S50+B61*('Trial 1'!S35-S50)/Inputs!B35/12","v":{"v":928459.7428279889,"d":"$928,460"}},{"$f":"T50+B61*('Trial 1'!T35-T50)/Inputs!B35/12","v":{"v":928077.0985662835,"d":"$928,077"}},{"$f":"U50+B61*('Trial 1'!U35-U50)/Inputs!B35/12","v":{"v":927718.2924783517,"d":"$927,718"}},{"$f":"V50+B61*('Trial 1'!V35-V50)/Inputs!B35/12","v":{"v":927396.2091771634,"d":"$927,396"}},{"$f":"W50+B61*('Trial 1'!W35-W50)/Inputs!B35/12","v":{"v":927099.3585282125,"d":"$927,099"}},{"$f":"X50+B61*('Trial 1'!X35-X50)/Inputs!B35/12","v":{"v":926782.4021206455,"d":"$926,782"}},{"$f":"Y50+B61*('Trial 1'!Y35-Y50)/Inputs!B35/12","v":{"v":926530.9983384428,"d":"$926,531"}},{"$f":"SUM(O50:Z50)","v":{"v":11139096.294415504,"d":"$11,139,096"}},{"$f":"Z50+B61*('Trial 1'!Z35-Z50)/Inputs!B35/12","v":{"v":926193.7987210831,"d":"$926,194"}},{"$f":"AB50+B61*('Trial 1'!AB35-AB50)/Inputs!B35/12","v":{"v":925850.4071538432,"d":"$925,850"}},{"$f":"AC50+B61*('Trial 1'!AC35-AC50)/Inputs!B35/12","v":{"v":925540.2905507656,"d":"$925,540"}},{"$f":"AD50+B61*('Trial 1'!AD35-AD50)/Inputs!B35/12","v":{"v":925275.6431138833,"d":"$925,276"}},{"$f":"AE50+B61*('Trial 1'!AE35-AE50)/Inputs!B35/12","v":{"v":924888.3526499869,"d":"$924,888"}},{"$f":"AF50+B61*('Trial 1'!AF35-AF50)/Inputs!B35/12","v":{"v":924499.8220248161,"d":"$924,500"}},{"$f":"AG50+B61*('Trial 1'!AG35-AG50)/Inputs!B35/12","v":{"v":924176.9144655504,"d":"$924,177"}},{"$f":"AH50+B61*('Trial 1'!AH35-AH50)/Inputs!B35/12","v":{"v":923844.4319100196,"d":"$923,844"}},{"$f":"AI50+B61*('Trial 1'!AI35-AI50)/Inputs!B35/12","v":{"v":923463.8653175196,"d":"$923,464"}},{"$f":"AJ50+B61*('Trial 1'!AJ35-AJ50)/Inputs!B35/12","v":{"v":923061.550433499,"d":"$923,062"}},{"$f":"AK50+B61*('Trial 1'!AK35-AK50)/Inputs!B35/12","v":{"v":922734.084706568,"d":"$922,734"}},{"$f":"AL50+B61*('Trial 1'!AL35-AL50)/Inputs!B35/12","v":{"v":922455.8112150618,"d":"$922,456"}},{"$f":"SUM(AB50:AM50)","v":{"v":11091984.972262595,"d":"$11,091,985"}},{"$f":"AM50+B61*('Trial 1'!AM35-AM50)/Inputs!B35/12","v":{"v":922184.003962022,"d":"$922,184"}},{"$f":"AO50+B61*('Trial 1'!AO35-AO50)/Inputs!B35/12","v":{"v":921720.7449268701,"d":"$921,721"}},{"$f":"AP50+B61*('Trial 1'!AP35-AP50)/Inputs!B35/12","v":{"v":921351.9187694952,"d":"$921,352"}},{"$f":"AQ50+B61*('Trial 1'!AQ35-AQ50)/Inputs!B35/12","v":{"v":921072.793396817,"d":"$921,073"}},{"$f":"AR50+B61*('Trial 1'!AR35-AR50)/Inputs!B35/12","v":{"v":920692.464741105,"d":"$920,692"}},{"$f":"AS50+B61*('Trial 1'!AS35-AS50)/Inputs!B35/12","v":{"v":920303.101593161,"d":"$920,303"}},{"$f":"AT50+B61*('Trial 1'!AT35-AT50)/Inputs!B35/12","v":{"v":919906.2280069015,"d":"$919,906"}},{"$f":"AU50+B61*('Trial 1'!AU35-AU50)/Inputs!B35/12","v":{"v":919518.9115994894,"d":"$919,519"}},{"$f":"AV50+B61*('Trial 1'!AV35-AV50)/Inputs!B35/12","v":{"v":919212.0732383807,"d":"$919,212"}},{"$f":"AW50+B61*('Trial 1'!AW35-AW50)/Inputs!B35/12","v":{"v":918827.808933494,"d":"$918,828"}},{"$f":"AX50+B61*('Trial 1'!AX35-AX50)/Inputs!B35/12","v":{"v":918374.9710799764,"d":"$918,375"}},{"$f":"AY50+B61*('Trial 1'!AY35-AY50)/Inputs!B35/12","v":{"v":918090.3759844574,"d":"$918,090"}},{"$f":"SUM(AO50:AZ50)","v":{"v":11041255.396232171,"d":"$11,041,255"}},{"$f":"AZ50+B61*('Trial 1'!AZ35-AZ50)/Inputs!B35/12","v":{"v":917701.031460605,"d":"$917,701"}},{"$f":"BB50+B61*('Trial 1'!BB35-BB50)/Inputs!B35/12","v":{"v":917285.0768087758,"d":"$917,285"}},{"$f":"BC50+B61*('Trial 1'!BC35-BC50)/Inputs!B35/12","v":{"v":916931.7420730538,"d":"$916,932"}},{"$f":"BD50+B61*('Trial 1'!BD35-BD50)/Inputs!B35/12","v":{"v":916619.8536219578,"d":"$916,620"}},{"$f":"BE50+B61*('Trial 1'!BE35-BE50)/Inputs!B35/12","v":{"v":916282.638479515,"d":"$916,283"}},{"$f":"BF50+B61*('Trial 1'!BF35-BF50)/Inputs!B35/12","v":{"v":915863.931068259,"d":"$915,864"}},{"$f":"BG50+B61*('Trial 1'!BG35-BG50)/Inputs!B35/12","v":{"v":915531.6067832368,"d":"$915,532"}},{"$f":"BH50+B61*('Trial 1'!BH35-BH50)/Inputs!B35/12","v":{"v":915205.9443775129,"d":"$915,206"}},{"$f":"BI50+B61*('Trial 1'!BI35-BI50)/Inputs!B35/12","v":{"v":914936.2334109129,"d":"$914,936"}},{"$f":"BJ50+B61*('Trial 1'!BJ35-BJ50)/Inputs!B35/12","v":{"v":914633.6894664037,"d":"$914,634"}},{"$f":"BK50+B61*('Trial 1'!BK35-BK50)/Inputs!B35/12","v":{"v":914355.3814139353,"d":"$914,355"}},{"$f":"BL50+B61*('Trial 1'!BL35-BL50)/Inputs!B35/12","v":{"v":914013.0241326638,"d":"$914,013"}},{"$f":"SUM(BB50:BM50)","v":{"v":10989360.15309683,"d":"$10,989,360"}},{"$f":"BM50+B61*('Trial 1'!BM35-BM50)/Inputs!B35/12","v":{"v":913587.5934106214,"d":"$913,588"}},{"$f":"BO50+B61*('Trial 1'!BO35-BO50)/Inputs!B35/12","v":{"v":913269.724224464,"d":"$913,270"}},{"$f":"BP50+B61*('Trial 1'!BP35-BP50)/Inputs!B35/12","v":{"v":912969.3076973907,"d":"$912,969"}},{"$f":"BQ50+B61*('Trial 1'!BQ35-BQ50)/Inputs!B35/12","v":{"v":912563.9329014125,"d":"$912,564"}},{"$f":"BR50+B61*('Trial 1'!BR35-BR50)/Inputs!B35/12","v":{"v":912165.4866195004,"d":"$912,165"}},{"$f":"BS50+B61*('Trial 1'!BS35-BS50)/Inputs!B35/12","v":{"v":911721.0468919416,"d":"$911,721"}},{"$f":"BT50+B61*('Trial 1'!BT35-BT50)/Inputs!B35/12","v":{"v":911348.4005028461,"d":"$911,348"}},{"$f":"BU50+B61*('Trial 1'!BU35-BU50)/Inputs!B35/12","v":{"v":910976.1561178542,"d":"$910,976"}},{"$f":"BV50+B61*('Trial 1'!BV35-BV50)/Inputs!B35/12","v":{"v":910585.6096997352,"d":"$910,586"}},{"$f":"BW50+B61*('Trial 1'!BW35-BW50)/Inputs!B35/12","v":{"v":910254.3971393997,"d":"$910,254"}},{"$f":"BX50+B61*('Trial 1'!BX35-BX50)/Inputs!B35/12","v":{"v":909822.2630315026,"d":"$909,822"}},{"$f":"BY50+B61*('Trial 1'!BY35-BY50)/Inputs!B35/12","v":{"v":909445.5391604971,"d":"$909,446"}},{"$f":"SUM(BO50:BZ50)","v":{"v":10938709.457397169,"d":"$10,938,709"}},{"$f":"BZ50+B61*('Trial 1'!BZ35-BZ50)/Inputs!B35/12","v":{"v":909061.4832710406,"d":"$909,061"}},{"$f":"CB50+B61*('Trial 1'!CB35-CB50)/Inputs!B35/12","v":{"v":908669.4102788338,"d":"$908,669"}},{"$f":"CC50+B61*('Trial 1'!CC35-CC50)/Inputs!B35/12","v":{"v":908227.9643880312,"d":"$908,228"}},{"$f":"CD50+B61*('Trial 1'!CD35-CD50)/Inputs!B35/12","v":{"v":907743.617880183,"d":"$907,744"}},{"$f":"CE50+B61*('Trial 1'!CE35-CE50)/Inputs!B35/12","v":{"v":907373.2307669269,"d":"$907,373"}},{"$f":"CF50+B61*('Trial 1'!CF35-CF50)/Inputs!B35/12","v":{"v":907011.1166992629,"d":"$907,011"}},{"$f":"CG50+B61*('Trial 1'!CG35-CG50)/Inputs!B35/12","v":{"v":906568.4653730222,"d":"$906,568"}},{"$f":"CH50+B61*('Trial 1'!CH35-CH50)/Inputs!B35/12","v":{"v":906203.4967457122,"d":"$906,203"}},{"$f":"CI50+B61*('Trial 1'!CI35-CI50)/Inputs!B35/12","v":{"v":905713.7679637155,"d":"$905,714"}},{"$f":"CJ50+B61*('Trial 1'!CJ35-CJ50)/Inputs!B35/12","v":{"v":905288.0159803916,"d":"$905,288"}},{"$f":"CK50+B61*('Trial 1'!CK35-CK50)/Inputs!B35/12","v":{"v":904923.3806871312,"d":"$904,923"}},{"$f":"CL50+B61*('Trial 1'!CL35-CL50)/Inputs!B35/12","v":{"v":904543.6791139056,"d":"$904,544"}},{"$f":"SUM(CB50:CM50)","v":{"v":10881327.629148155,"d":"$10,881,328"}},{"$f":"CM50+B61*('Trial 1'!CM35-CM50)/Inputs!B35/12","v":{"v":904068.1343261015,"d":"$904,068"}},{"$f":"CO50+B61*('Trial 1'!CO35-CO50)/Inputs!B35/12","v":{"v":903560.697884851,"d":"$903,561"}},{"$f":"CP50+B61*('Trial 1'!CP35-CP50)/Inputs!B35/12","v":{"v":903162.8159230746,"d":"$903,163"}},{"$f":"CQ50+B61*('Trial 1'!CQ35-CQ50)/Inputs!B35/12","v":{"v":902799.0311370464,"d":"$902,799"}},{"$f":"CR50+B61*('Trial 1'!CR35-CR50)/Inputs!B35/12","v":{"v":902386.3036341892,"d":"$902,386"}},{"$f":"CS50+B61*('Trial 1'!CS35-CS50)/Inputs!B35/12","v":{"v":901917.3017850665,"d":"$901,917"}},{"$f":"CT50+B61*('Trial 1'!CT35-CT50)/Inputs!B35/12","v":{"v":901448.425242209,"d":"$901,448"}},{"$f":"CU50+B61*('Trial 1'!CU35-CU50)/Inputs!B35/12","v":{"v":900967.8666290996,"d":"$900,968"}},{"$f":"CV50+B61*('Trial 1'!CV35-CV50)/Inputs!B35/12","v":{"v":900528.0120728089,"d":"$900,528"}},{"$f":"CW50+B61*('Trial 1'!CW35-CW50)/Inputs!B35/12","v":{"v":900040.0145480649,"d":"$900,040"}},{"$f":"CX50+B61*('Trial 1'!CX35-CX50)/Inputs!B35/12","v":{"v":899533.3545404186,"d":"$899,533"}},{"$f":"CY50+B61*('Trial 1'!CY35-CY50)/Inputs!B35/12","v":{"v":899154.6965077653,"d":"$899,155"}},{"$f":"SUM(CO50:CZ50)","v":{"v":10819566.654230695,"d":"$10,819,567"}},{"$f":"CZ50+B61*('Trial 1'!CZ35-CZ50)/Inputs!B35/12","v":{"v":898771.0258986993,"d":"$898,771"}},{"$f":"DB50+B61*('Trial 1'!DB35-DB50)/Inputs!B35/12","v":{"v":898265.1561333468,"d":"$898,265"}},{"$f":"DC50+B61*('Trial 1'!DC35-DC50)/Inputs!B35/12","v":{"v":897838.1746212814,"d":"$897,838"}},{"$f":"DD50+B61*('Trial 1'!DD35-DD50)/Inputs!B35/12","v":{"v":897425.639953295,"d":"$897,426"}},{"$f":"DE50+B61*('Trial 1'!DE35-DE50)/Inputs!B35/12","v":{"v":897066.5226906356,"d":"$897,067"}},{"$f":"DF50+B61*('Trial 1'!DF35-DF50)/Inputs!B35/12","v":{"v":896561.8683214537,"d":"$896,562"}},{"$f":"DG50+B61*('Trial 1'!DG35-DG50)/Inputs!B35/12","v":{"v":896098.726067388,"d":"$896,099"}},{"$f":"DH50+B61*('Trial 1'!DH35-DH50)/Inputs!B35/12","v":{"v":895726.5426144415,"d":"$895,727"}},{"$f":"DI50+B61*('Trial 1'!DI35-DI50)/Inputs!B35/12","v":{"v":895304.2759271549,"d":"$895,304"}},{"$f":"DJ50+B61*('Trial 1'!DJ35-DJ50)/Inputs!B35/12","v":{"v":894977.5959534841,"d":"$894,978"}},{"$f":"DK50+B61*('Trial 1'!DK35-DK50)/Inputs!B35/12","v":{"v":894546.4866238723,"d":"$894,546"}},{"$f":"DL50+B61*('Trial 1'!DL35-DL50)/Inputs!B35/12","v":{"v":894128.9771756105,"d":"$894,129"}},{"$f":"SUM(DB50:DM50)","v":{"v":10756710.991980664,"d":"$10,756,711"}},{"$f":"DM50+B61*('Trial 1'!DM35-DM50)/Inputs!B35/12","v":{"v":893774.3220821581,"d":"$893,774"}},{"$f":"DO50+B61*('Trial 1'!DO35-DO50)/Inputs!B35/12","v":{"v":893279.5854737333,"d":"$893,280"}},{"$f":"DP50+B61*('Trial 1'!DP35-DP50)/Inputs!B35/12","v":{"v":892785.1175147736,"d":"$892,785"}},{"$f":"DQ50+B61*('Trial 1'!DQ35-DQ50)/Inputs!B35/12","v":{"v":892354.4785572222,"d":"$892,354"}},{"$f":"DR50+B61*('Trial 1'!DR35-DR50)/Inputs!B35/12","v":{"v":891918.3889033798,"d":"$891,918"}},{"$f":"DS50+B61*('Trial 1'!DS35-DS50)/Inputs!B35/12","v":{"v":891452.0449800818,"d":"$891,452"}},{"$f":"DT50+B61*('Trial 1'!DT35-DT50)/Inputs!B35/12","v":{"v":890997.6649079685,"d":"$890,998"}},{"$f":"DU50+B61*('Trial 1'!DU35-DU50)/Inputs!B35/12","v":{"v":890653.8456793892,"d":"$890,654"}},{"$f":"DV50+B61*('Trial 1'!DV35-DV50)/Inputs!B35/12","v":{"v":890264.811108302,"d":"$890,265"}},{"$f":"DW50+B61*('Trial 1'!DW35-DW50)/Inputs!B35/12","v":{"v":889771.303280057,"d":"$889,771"}},{"$f":"DX50+B61*('Trial 1'!DX35-DX50)/Inputs!B35/12","v":{"v":889287.3773749977,"d":"$889,287"}},{"$f":"DY50+B61*('Trial 1'!DY35-DY50)/Inputs!B35/12","v":{"v":888842.3751067331,"d":"$888,842"}},{"$f":"SUM(DO50:DZ50)","v":{"v":10695381.314968796,"d":"$10,695,381"}},{"$f":"DZ50+B61*('Trial 1'!DZ35-DZ50)/Inputs!B35/12","v":{"v":888412.699844038,"d":"$888,413"}},{"$f":"EB50+B61*('Trial 1'!EB35-EB50)/Inputs!B35/12","v":{"v":887988.4213536753,"d":"$887,988"}},{"$f":"EC50+B61*('Trial 1'!EC35-EC50)/Inputs!B35/12","v":{"v":887489.4432550968,"d":"$887,489"}},{"$f":"ED50+B61*('Trial 1'!ED35-ED50)/Inputs!B35/12","v":{"v":886964.3227216713,"d":"$886,964"}},{"$f":"EE50+B61*('Trial 1'!EE35-EE50)/Inputs!B35/12","v":{"v":886596.8342656543,"d":"$886,597"}},{"$f":"EF50+B61*('Trial 1'!EF35-EF50)/Inputs!B35/12","v":{"v":886109.9858982398,"d":"$886,110"}},{"$f":"EG50+B61*('Trial 1'!EG35-EG50)/Inputs!B35/12","v":{"v":885654.5002255023,"d":"$885,655"}},{"$f":"EH50+B61*('Trial 1'!EH35-EH50)/Inputs!B35/12","v":{"v":885268.6774787565,"d":"$885,269"}},{"$f":"EI50+B61*('Trial 1'!EI35-EI50)/Inputs!B35/12","v":{"v":884769.5434847771,"d":"$884,770"}},{"$f":"EJ50+B61*('Trial 1'!EJ35-EJ50)/Inputs!B35/12","v":{"v":884289.3325084124,"d":"$884,289"}},{"$f":"EK50+B61*('Trial 1'!EK35-EK50)/Inputs!B35/12","v":{"v":883788.0183537524,"d":"$883,788"}},{"$f":"EL50+B61*('Trial 1'!EL35-EL50)/Inputs!B35/12","v":{"v":883340.5268475952,"d":"$883,341"}},{"$f":"SUM(EB50:EM50)","v":{"v":10630672.306237172,"d":"$10,630,672"}}]
[{"$f":"Labels!B97","v":"Trial 02"},{"$f":"B8-B11+B61*0/Inputs!B35/12","v":{"v":933333.3333333334,"d":"$933,333"}},{"$f":"B51+B61*('Trial 2'!B35-B51)/Inputs!B35/12","v":{"v":933067.2456902852,"d":"$933,067"}},{"$f":"C51+B61*('Trial 2'!C35-C51)/Inputs!B35/12","v":{"v":932881.3165141298,"d":"$932,881"}},{"$f":"D51+B61*('Trial 2'!D35-D51)/Inputs!B35/12","v":{"v":932625.3966403669,"d":"$932,625"}},{"$f":"E51+B61*('Trial 2'!E35-E51)/Inputs!B35/12","v":{"v":932353.515584738,"d":"$932,354"}},{"$f":"F51+B61*('Trial 2'!F35-F51)/Inputs!B35/12","v":{"v":932117.3210351183,"d":"$932,117"}},{"$f":"G51+B61*('Trial 2'!G35-G51)/Inputs!B35/12","v":{"v":931877.0906666387,"d":"$931,877"}},{"$f":"H51+B61*('Trial 2'!H35-H51)/Inputs!B35/12","v":{"v":931612.1116639762,"d":"$931,612"}},{"$f":"I51+B61*('Trial 2'!I35-I51)/Inputs!B35/12","v":{"v":931258.3291710466,"d":"$931,258"}},{"$f":"J51+B61*('Trial 2'!J35-J51)/Inputs!B35/12","v":{"v":931079.5288828891,"d":"$931,080"}},{"$f":"K51+B61*('Trial 2'!K35-K51)/Inputs!B35/12","v":{"v":930740.4135817363,"d":"$930,740"}},{"$f":"L51+B61*('Trial 2'!L35-L51)/Inputs!B35/12","v":{"v":930462.8727799569,"d":"$930,463"}},{"v":11183408.475544216,"d":"$11,183,408"},{"$f":"M51+B61*('Trial 2'!M35-M51)/Inputs!B35/12","v":{"v":930251.9534167438,"d":"$930,252"}},{"$f":"O51+B61*('Trial 2'!O35-O51)/Inputs!B35/12","v":{"v":929907.768363798,"d":"$929,908"}},{"$f":"P51+B61*('Trial 2'!P35-P51)/Inputs!B35/12","v":{"v":929523.3072864139,"d":"$929,523"}},{"$f":"Q51+B61*('Trial 2'!Q35-Q51)/Inputs!B35/12","v":{"v":929320.0832943722,"d":"$929,320"}},{"$f":"R51+B61*('Trial 2'!R35-R51)/Inputs!B35/12","v":{"v":929002.2936678478,"d":"$929,002"}},{"$f":"S51+B61*('Trial 2'!S35-S51)/Inputs!B35/12","v":{"v":928738.6580357843,"d":"$928,739"}},{"$f":"T51+B61*('Trial 2'!T35-T51)/Inputs!B35/12","v":{"v":928299.7995826359,"d":"$928,300"}},{"$f":"U51+B61*('Trial 2'!U35-U51)/Inputs!B35/12","v":{"v":927911.5914301211,"d":"$927,912"}},{"$f":"V51+B61*('Trial 2'!V35-V51)/Inputs!B35/12","v":{"v":927568.4822461336,"d":"$927,568"}},{"$f":"W51+B61*('Trial 2'!W35-W51)/Inputs!B35/12","v":{"v":927342.8833976904,"d":"$927,343"}},{"$f":"X51+B61*('Trial 2'!X35-X51)/Inputs!B35/12","v":{"v":927051.3124980447,"d":"$927,051"}},{"$f":"Y51+B61*('Trial 2'!Y35-Y51)/Inputs!B35/12","v":{"v":926785.6360119984,"d":"$926,786"}},{"v":11141703.769231584,"d":"$11,141,704"},{"$f":"Z51+B61*('Trial 2'!Z35-Z51)/Inputs!B35/12","v":{"v":926438.9180000018,"d":"$926,439"}},{"$f":"AB51+B61*('Trial 2'!AB35-AB51)/Inputs!B35/12","v":{"v":926076.0081739343,"d":"$926,076"}},{"$f":"AC51+B61*('Trial 2'!AC35-AC51)/Inputs!B35/12","v":{"v":925653.1549239751,"d":"$925,653"}},{"$f":"AD51+B61*('Trial 2'!AD35-AD51)/Inputs!B35/12","v":{"v":925352.1898482619,"d":"$925,352"}},{"$f":"AE51+B61*('Trial 2'!AE35-AE51)/Inputs!B35/12","v":{"v":924996.6193584142,"d":"$924,997"}},{"$f":"AF51+B61*('Trial 2'!AF35-AF51)/Inputs!B35/12","v":{"v":924661.1482269026,"d":"$924,661"}},{"$f":"AG51+B61*('Trial 2'!AG35-AG51)/Inputs!B35/12","v":{"v":924300.8657703595,"d":"$924,301"}},{"$f":"AH51+B61*('Trial 2'!AH35-AH51)/Inputs!B35/12","v":{"v":923962.4251499202,"d":"$923,962"}},{"$f":"AI51+B61*('Trial 2'!AI35-AI51)/Inputs!B35/12","v":{"v":923590.1445716769,"d":"$923,590"}},{"$f":"AJ51+B61*('Trial 2'!AJ35-AJ51)/Inputs!B35/12","v":{"v":923259.0212115302,"d":"$923,259"}},{"$f":"AK51+B61*('Trial 2'!AK35-AK51)/Inputs!B35/12","v":{"v":922975.428988604,"d":"$922,975"}},{"$f":"AL51+B61*('Trial 2'!AL35-AL51)/Inputs!B35/12","v":{"v":922612.0573990181,"d":"$922,612"}},{"v":11093877.981622599,"d":"$11,093,878"},{"$f":"AM51+B61*('Trial 2'!AM35-AM51)/Inputs!B35/12","v":{"v":922186.5925308076,"d":"$922,187"}},{"$f":"AO51+B61*('Trial 2'!AO35-AO51)/Inputs!B35/12","v":{"v":921773.1161903061,"d":"$921,773"}},{"$f":"AP51+B61*('Trial 2'!AP35-AP51)/Inputs!B35/12","v":{"v":921358.745463333,"d":"$921,359"}},{"$f":"AQ51+B61*('Trial 2'!AQ35-AQ51)/Inputs!B35/12","v":{"v":921034.2398334106,"d":"$921,034"}},{"$f":"AR51+B61*('Trial 2'!AR35-AR51)/Inputs!B35/12","v":{"v":920638.7011737474,"d":"$920,639"}},{"$f":"AS51+B61*('Trial 2'!AS35-AS51)/Inputs!B35/12","v":{"v":920204.0049020268,"d":"$920,204"}},{"$f":"AT51+B61*('Trial 2'!AT35-AT51)/Inputs!B35/12","v":{"v":919826.7564695424,"d":"$919,827"}},{"$f":"AU51+B61*('Trial 2'!AU35-AU51)/Inputs!B35/12","v":{"v":919526.6053192245,"d":"$919,527"}},{"$f":"AV51+B61*('Trial 2'!AV35-AV51)/Inputs!B35/12","v":{"v":919186.1841000842,"d":"$919,186"}},{"$f":"AW51+B61*('Trial 2'!AW35-AW51)/Inputs!B35/12","v":{"v":918895.2756482913,"d":"$918,895"}},{"$f":"AX51+B61*('Trial 2'!AX35-AX51)/Inputs!B35/12","v":{"v":918554.1792942958,"d":"$918,554"}},{"$f":"AY51+B61*('Trial 2'!AY35-AY51)/Inputs!B35/12","v":{"v":918073.8671413343,"d":"$918,074"}},{"v":11041258.268066403,"d":"$11,041,258"},{"$f":"AZ51+B61*('Trial 2'!AZ35-AZ51)/Inputs!B35/12","v":{"v":917664.5863690744,"d":"$917,665"}},{"$f":"BB51+B61*('Trial 2'!BB35-BB51)/Inputs!B35/12","v":{"v":917291.7665396938,"d":"$917,292"}},{"$f":"BC51+B61*('Trial 2'!BC35-BC51)/Inputs!B35/12","v":{"v":916953.7655509033,"d":"$916,954"}},{"$f":"BD51+B61*('Trial 2'!BD35-BD51)/Inputs!B35/12","v":{"v":916533.6263120901,"d":"$916,534"}},{"$f":"BE51+B61*('Trial 2'!BE35-BE51)/Inputs!B35/12","v":{"v":916121.7871693461,"d":"$916,122"}},{"$f":"BF51+B61*('Trial 2'!BF35-BF51)/Inputs!B35/12","v":{"v":915811.1042225263,"d":"$915,811"}},{"$f":"BG51+B61*('Trial 2'!BG35-BG51)/Inputs!B35/12","v":{"v":915417.0294075295,"d":"$915,417"}},{"$f":"BH51+B61*('Trial 2'!BH35-BH51)/Inputs!B35/12","v":{"v":914981.9645922227,"d":"$914,982"}},{"$f":"BI51+B61*('Trial 2'!BI35-BI51)/Inputs!B35/12","v":{"v":914621.4498110901,"d":"$914,621"}},{"$f":"BJ51+B61*('Trial 2'!BJ35-BJ51)/Inputs!B35/12","v":{"v":914212.5610305872,"d":"$914,213"}},{"$f":"BK51+B61*('Trial 2'!BK35-BK51)/Inputs!B35/12","v":{"v":913727.6215941695,"d":"$913,728"}},{"$f":"BL51+B61*('Trial 2'!BL35-BL51)/Inputs!B35/12","v":{"v":913240.3915546193,"d":"$913,240"}},{"v":10986577.654153856,"d":"$10,986,578"},{"$f":"BM51+B61*('Trial 2'!BM35-BM51)/Inputs!B35/12","v":{"v":912938.9798632076,"d":"$912,939"}},{"$f":"BO51+B61*('Trial 2'!BO35-BO51)/Inputs!B35/12","v":{"v":912491.36628635,"d":"$912,491"}},{"$f":"BP51+B61*('Trial 2'!BP35-BP51)/Inputs!B35/12","v":{"v":912097.4706596072,"d":"$912,097"}},{"$f":"BQ51+B61*('Trial 2'!BQ35-BQ51)/Inputs!B35/12","v":{"v":911725.2010152651,"d":"$911,725"}},{"$f":"BR51+B61*('Trial 2'!BR35-BR51)/Inputs!B35/12","v":{"v":911343.2671575625,"d":"$911,343"}},{"$f":"BS51+B61*('Trial 2'!BS35-BS51)/Inputs!B35/12","v":{"v":910938.8449570432,"d":"$910,939"}},{"$f":"BT51+B61*('Trial 2'!BT35-BT51)/Inputs!B35/12","v":{"v":910438.6117504296,"d":"$910,439"}},{"$f":"BU51+B61*('Trial 2'!BU35-BU51)/Inputs!B35/12","v":{"v":909993.6349659767,"d":"$909,994"}},{"$f":"BV51+B61*('Trial 2'!BV35-BV51)/Inputs!B35/12","v":{"v":909659.3169535702,"d":"$909,659"}},{"$f":"BW51+B61*('Trial 2'!BW35-BW51)/Inputs!B35/12","v":{"v":909262.3853216902,"d":"$909,262"}},{"$f":"BX51+B61*('Trial 2'!BX35-BX51)/Inputs!B35/12","v":{"v":908824.0121667964,"d":"$908,824"}},{"$f":"BY51+B61*('Trial 2'!BY35-BY51)/Inputs!B35/12","v":{"v":908468.9447881974,"d":"$908,469"}},{"v":10928182.035885695,"d":"$10,928,182"},{"$f":"BZ51+B61*('Trial 2'!BZ35-BZ51)/Inputs!B35/12","v":{"v":908083.785995762,"d":"$908,084"}},{"$f":"CB51+B61*('Trial 2'!CB35-CB51)/Inputs!B35/12","v":{"v":907768.9080247416,"d":"$907,769"}},{"$f":"CC51+B61*('Trial 2'!CC35-CC51)/Inputs!B35/12","v":{"v":907428.2461547788,"d":"$907,428"}},{"$f":"CD51+B61*('Trial 2'!CD35-CD51)/Inputs!B35/12","v":{"v":907018.2395570885,"d":"$907,018"}},{"$f":"CE51+B61*('Trial 2'!CE35-CE51)/Inputs!B35/12","v":{"v":906611.4398792855,"d":"$906,611"}},{"$f":"CF51+B61*('Trial 2'!CF35-CF51)/Inputs!B35/12","v":{"v":906241.1915970801,"d":"$906,241"}},{"$f":"CG51+B61*('Trial 2'!CG35-CG51)/Inputs!B35/12","v":{"v":905789.1953324933,"d":"$905,789"}},{"$f":"CH51+B61*('Trial 2'!CH35-CH51)/Inputs!B35/12","v":{"v":905417.0874719517,"d":"$905,417"}},{"$f":"CI51+B61*('Trial 2'!CI35-CI51)/Inputs!B35/12","v":{"v":905047.6685527032,"d":"$905,048"}},{"$f":"CJ51+B61*('Trial 2'!CJ35-CJ51)/Inputs!B35/12","v":{"v":904732.5354077176,"d":"$904,733"}},{"$f":"CK51+B61*('Trial 2'!CK35-CK51)/Inputs!B35/12","v":{"v":904235.2964577732,"d":"$904,235"}},{"$f":"CL51+B61*('Trial 2'!CL35-CL51)/Inputs!B35/12","v":{"v":903823.7134774842,"d":"$903,824"}},{"v":10872197.307908861,"d":"$10,872,197"},{"$f":"CM51+B61*('Trial 2'!CM35-CM51)/Inputs!B35/12","v":{"v":903490.6392932477,"d":"$903,491"}},{"$f":"CO51+B61*('Trial 2'!CO35-CO51)/Inputs!B35/12","v":{"v":903034.7084596843,"d":"$903,035"}},{"$f":"CP51+B61*('Trial 2'!CP35-CP51)/Inputs!B35/12","v":{"v":902603.8076129322,"d":"$902,604"}},{"$f":"CQ51+B61*('Trial 2'!CQ35-CQ51)/Inputs!B35/12","v":{"v":902203.5989187864,"d":"$902,204"}},{"$f":"CR51+B61*('Trial 2'!CR35-CR51)/Inputs!B35/12","v":{"v":901744.2626701812,"d":"$901,744"}},{"$f":"CS51+B61*('Trial 2'!CS35-CS51)/Inputs!B35/12","v":{"v":901343.9069195788,"d":"$901,344"}},{"$f":"CT51+B61*('Trial 2'!CT35-CT51)/Inputs!B35/12","v":{"v":900838.2864096779,"d":"$900,838"}},{"$f":"CU51+B61*('Trial 2'!CU35-CU51)/Inputs!B35/12","v":{"v":900501.6054369585,"d":"$900,502"}},{"$f":"CV51+B61*('Trial 2'!CV35-CV51)/Inputs!B35/12","v":{"v":899967.7997214614,"d":"$899,968"}},{"$f":"CW51+B61*('Trial 2'!CW35-CW51)/Inputs!B35/12","v":{"v":899576.6092018451,"d":"$899,577"}},{"$f":"CX51+B61*('Trial 2'!CX35-CX51)/Inputs!B35/12","v":{"v":899265.4430331308,"d":"$899,265"}},{"$f":"CY51+B61*('Trial 2'!CY35-CY51)/Inputs!B35/12","v":{"v":898771.5250276964,"d":"$898,772"}},{"v":10813342.19270518,"d":"$10,813,342"},{"$f":"CZ51+B61*('Trial 2'!CZ35-CZ51)/Inputs!B35/12","v":{"v":898343.4489898077,"d":"$898,343"}},{"$f":"DB51+B61*('Trial 2'!DB35-DB51)/Inputs!B35/12","v":{"v":897918.0130015048,"d":"$897,918"}},{"$f":"DC51+B61*('Trial 2'!DC35-DC51)/Inputs!B35/12","v":{"v":897470.9891472325,"d":"$897,471"}},{"$f":"DD51+B61*('Trial 2'!DD35-DD51)/Inputs!B35/12","v":{"v":897061.7974138057,"d":"$897,062"}},{"$f":"DE51+B61*('Trial 2'!DE35-DE51)/Inputs!B35/12","v":{"v":896631.8783818672,"d":"$896,632"}},{"$f":"DF51+B61*('Trial 2'!DF35-DF51)/Inputs!B35/12","v":{"v":896259.3189950042,"d":"$896,259"}},{"$f":"DG51+B61*('Trial 2'!DG35-DG51)/Inputs!B35/12","v":{"v":895787.6336414703,"d":"$895,788"}},{"$f":"DH51+B61*('Trial 2'!DH35-DH51)/Inputs!B35/12","v":{"v":895327.903306112,"d":"$895,328"}},{"$f":"DI51+B61*('Trial 2'!DI35-DI51)/Inputs!B35/12","v":{"v":894874.1468673096,"d":"$894,874"}},{"$f":"DJ51+B61*('Trial 2'!DJ35-DJ51)/Inputs!B35/12","v":{"v":894448.5013774021,"d":"$894,449"}},{"$f":"DK51+B61*('Trial 2'!DK35-DK51)/Inputs!B35/12","v":{"v":894073.1078163732,"d":"$894,073"}},{"$f":"DL51+B61*('Trial 2'!DL35-DL51)/Inputs!B35/12","v":{"v":893734.681368826,"d":"$893,735"}},{"v":10751931.420306716,"d":"$10,751,931"},{"$f":"DM51+B61*('Trial 2'!DM35-DM51)/Inputs!B35/12","v":{"v":893208.7648649411,"d":"$893,209"}},{"$f":"DO51+B61*('Trial 2'!DO35-DO51)/Inputs!B35/12","v":{"v":892727.7626178483,"d":"$892,728"}},{"$f":"DP51+B61*('Trial 2'!DP35-DP51)/Inputs!B35/12","v":{"v":892196.6321883833,"d":"$892,197"}},{"$f":"DQ51+B61*('Trial 2'!DQ35-DQ51)/Inputs!B35/12","v":{"v":891725.2111654895,"d":"$891,725"}},{"$f":"DR51+B61*('Trial 2'!DR35-DR51)/Inputs!B35/12","v":{"v":891290.8401446743,"d":"$891,291"}},{"$f":"DS51+B61*('Trial 2'!DS35-DS51)/Inputs!B35/12","v":{"v":890815.2294264832,"d":"$890,815"}},{"$f":"DT51+B61*('Trial 2'!DT35-DT51)/Inputs!B35/12","v":{"v":890361.2933694747,"d":"$890,361"}},{"$f":"DU51+B61*('Trial 2'!DU35-DU51)/Inputs!B35/12","v":{"v":889898.9855084616,"d":"$889,899"}},{"$f":"DV51+B61*('Trial 2'!DV35-DV51)/Inputs!B35/12","v":{"v":889354.2835131817,"d":"$889,354"}},{"$f":"DW51+B61*('Trial 2'!DW35-DW51)/Inputs!B35/12","v":{"v":888915.200839097,"d":"$888,915"}},{"$f":"DX51+B61*('Trial 2'!DX35-DX51)/Inputs!B35/12","v":{"v":888466.8416800061,"d":"$888,467"}},{"$f":"DY51+B61*('Trial 2'!DY35-DY51)/Inputs!B35/12","v":{"v":888007.475049002,"d":"$888,007"}},{"v":10686968.520367043,"d":"$10,686,969"},{"$f":"DZ51+B61*('Trial 2'!DZ35-DZ51)/Inputs!B35/12","v":{"v":887571.8031806034,"d":"$887,572"}},{"$f":"EB51+B61*('Trial 2'!EB35-EB51)/Inputs!B35/12","v":{"v":887134.2823637335,"d":"$887,134"}},{"$f":"EC51+B61*('Trial 2'!EC35-EC51)/Inputs!B35/12","v":{"v":886645.5952202557,"d":"$886,646"}},{"$f":"ED51+B61*('Trial 2'!ED35-ED51)/Inputs!B35/12","v":{"v":886080.4209461117,"d":"$886,080"}},{"$f":"EE51+B61*('Trial 2'!EE35-EE51)/Inputs!B35/12","v":{"v":885741.3683978625,"d":"$885,741"}},{"$f":"EF51+B61*('Trial 2'!EF35-EF51)/Inputs!B35/12","v":{"v":885325.6025701348,"d":"$885,326"}},{"$f":"EG51+B61*('Trial 2'!EG35-EG51)/Inputs!B35/12","v":{"v":884872.8150797805,"d":"$884,873"}},{"$f":"EH51+B61*('Trial 2'!EH35-EH51)/Inputs!B35/12","v":{"v":884485.2448471439,"d":"$884,485"}},{"$f":"EI51+B61*('Trial 2'!EI35-EI51)/Inputs!B35/12","v":{"v":884053.6870496297,"d":"$884,054"}},{"$f":"EJ51+B61*('Trial 2'!EJ35-EJ51)/Inputs!B35/12","v":{"v":883594.4774121202,"d":"$883,594"}},{"$f":"EK51+B61*('Trial 2'!EK35-EK51)/Inputs!B35/12","v":{"v":883111.1431100251,"d":"$883,111"}},{"$f":"EL51+B61*('Trial 2'!EL35-EL51)/Inputs!B35/12","v":{"v":882700.9239298417,"d":"$882,701"}},{"v":10621317.364107244,"d":"$10,621,317"}]
[{"$f":"Labels!B98","v":"Trial 03"},{"$f":"B8-B11+B61*0/Inputs!B35/12","v":{"v":933333.3333333334,"d":"$933,333"}},{"$f":"B52+B61*('Trial 3'!B35-B52)/Inputs!B35/12","v":{"v":933018.0270538037,"d":"$933,018"}},{"$f":"C52+B61*('Trial 3'!C35-C52)/Inputs!B35/12","v":{"v":932797.1266330573,"d":"$932,797"}},{"$f":"D52+B61*('Trial 3'!D35-D52)/Inputs!B35/12","v":{"v":932472.5655479615,"d":"$932,473"}},{"$f":"E52+B61*('Trial 3'!E35-E52)/Inputs!B35/12","v":{"v":932128.1150083097,"d":"$932,128"}},{"$f":"F52+B61*('Trial 3'!F35-F52)/Inputs!B35/12","v":{"v":931877.344693976,"d":"$931,877"}},{"$f":"G52+B61*('Trial 3'!G35-G52)/Inputs!B35/12","v":{"v":931574.1796298159,"d":"$931,574"}},{"$f":"H52+B61*('Trial 3'!H35-H52)/Inputs!B35/12","v":{"v":931292.5009439647,"d":"$931,293"}},{"$f":"I52+B61*('Trial 3'!I35-I52)/Inputs!B35/12","v":{"v":931009.372456848,"d":"$931,009"}},{"$f":"J52+B61*('Trial 3'!J35-J52)/Inputs!B35/12","v":{"v":930783.1463666665,"d":"$930,783"}},{"$f":"K52+B61*('Trial 3'!K35-K52)/Inputs!B35/12","v":{"v":930424.0834066336,"d":"$930,424"}},{"$f":"L52+B61*('Trial 3'!L35-L52)/Inputs!B35/12","v":{"v":930089.2117822004,"d":"$930,089"}},{"v":11180799.00685657,"d":"$11,180,799"},{"$f":"M52+B61*('Trial 3'!M35-M52)/Inputs!B35/12","v":{"v":929795.5799261341,"d":"$929,796"}},{"$f":"O52+B61*('Trial 3'!O35-O52)/Inputs!B35/12","v":{"v":929467.7827897017,"d":"$929,468"}},{"$f":"P52+B61*('Trial 3'!P35-P52)/Inputs!B35/12","v":{"v":929197.0452386047,"d":"$929,197"}},{"$f":"Q52+B61*('Trial 3'!Q35-Q52)/Inputs!B35/12","v":{"v":928839.9548883307,"d":"$928,840"}},{"$f":"R52+B61*('Trial 3'!R35-R52)/Inputs!B35/12","v":{"v":928593.7514629553,"d":"$928,594"}},{"$f":"S52+B61*('Trial 3'!S35-S52)/Inputs!B35/12","v":{"v":928394.5369740743,"d":"$928,395"}},{"$f":"T52+B61*('Trial 3'!T35-T52)/Inputs!B35/12","v":{"v":928036.9785722451,"d":"$928,037"}},{"$f":"U52+B61*('Trial 3'!U35-U52)/Inputs!B35/12","v":{"v":927787.2282823836,"d":"$927,787"}},{"$f":"V52+B61*('Trial 3'!V35-V52)/Inputs!B35/12","v":{"v":927548.2611577677,"d":"$927,548"}},{"$f":"W52+B61*('Trial 3'!W35-W52)/Inputs!B35/12","v":{"v":927199.2399711966,"d":"$927,199"}},{"$f":"X52+B61*('Trial 3'!X35-X52)/Inputs!B35/12","v":{"v":926906.523210088,"d":"$926,907"}},{"$f":"Y52+B61*('Trial 3'!Y35-Y52)/Inputs!B35/12","v":{"v":926482.6564425362,"d":"$926,483"}},{"v":11138249.538916018,"d":"$11,138,250"},{"$f":"Z52+B61*('Trial 3'!Z35-Z52)/Inputs!B35/12","v":{"v":926165.4655540556,"d":"$926,165"}},{"$f":"AB52+B61*('Trial 3'!AB35-AB52)/Inputs!B35/12","v":{"v":925855.345674924,"d":"$925,855"}},{"$f":"AC52+B61*('Trial 3'!AC35-AC52)/Inputs!B35/12","v":{"v":925593.1336929055,"d":"$925,593"}},{"$f":"AD52+B61*('Trial 3'!AD35-AD52)/Inputs!B35/12","v":{"v":925241.7565158672,"d":"$925,242"}},{"$f":"AE52+B61*('Trial 3'!AE35-AE52)/Inputs!B35/12","v":{"v":924929.0540921601,"d":"$924,929"}},{"$f":"AF52+B61*('Trial 3'!AF35-AF52)/Inputs!B35/12","v":{"v":924607.2751088998,"d":"$924,607"}},{"$f":"AG52+B61*('Trial 3'!AG35-AG52)/Inputs!B35/12","v":{"v":924252.4459876225,"d":"$924,252"}},{"$f":"AH52+B61*('Trial 3'!AH35-AH52)/Inputs!B35/12","v":{"v":923834.6547053442,"d":"$923,835"}},{"$f":"AI52+B61*('Trial 3'!AI35-AI52)/Inputs!B35/12","v":{"v":923524.7440296266,"d":"$923,525"}},{"$f":"AJ52+B61*('Trial 3'!AJ35-AJ52)/Inputs!B35/12","v":{"v":923212.5243633596,"d":"$923,213"}},{"$f":"AK52+B61*('Trial 3'!AK35-AK52)/Inputs!B35/12","v":{"v":922881.1540114472,"d":"$922,881"}},{"$f":"AL52+B61*('Trial 3'!AL35-AL52)/Inputs!B35/12","v":{"v":922480.1288710389,"d":"$922,480"}},{"v":11092577.68260725,"d":"$11,092,578"},{"$f":"AM52+B61*('Trial 3'!AM35-AM52)/Inputs!B35/12","v":{"v":922236.2415488482,"d":"$922,236"}},{"$f":"AO52+B61*('Trial 3'!AO35-AO52)/Inputs!B35/12","v":{"v":921828.6910786943,"d":"$921,829"}},{"$f":"AP52+B61*('Trial 3'!AP35-AP52)/Inputs!B35/12","v":{"v":921494.8508915803,"d":"$921,495"}},{"$f":"AQ52+B61*('Trial 3'!AQ35-AQ52)/Inputs!B35/12","v":{"v":921243.6604764716,"d":"$921,244"}},{"$f":"AR52+B61*('Trial 3'!AR35-AR52)/Inputs!B35/12","v":{"v":920948.903866091,"d":"$920,949"}},{"$f":"AS52+B61*('Trial 3'!AS35-AS52)/Inputs!B35/12","v":{"v":920576.3028606955,"d":"$920,576"}},{"$f":"AT52+B61*('Trial 3'!AT35-AT52)/Inputs!B35/12","v":{"v":920239.6345607617,"d":"$920,240"}},{"$f":"AU52+B61*('Trial 3'!AU35-AU52)/Inputs!B35/12","v":{"v":919961.6451299654,"d":"$919,962"}},{"$f":"AV52+B61*('Trial 3'!AV35-AV52)/Inputs!B35/12","v":{"v":919662.5062927554,"d":"$919,663"}},{"$f":"AW52+B61*('Trial 3'!AW35-AW52)/Inputs!B35/12","v":{"v":919192.0091658067,"d":"$919,192"}},{"$f":"AX52+B61*('Trial 3'!AX35-AX52)/Inputs!B35/12","v":{"v":918908.2056927647,"d":"$918,908"}},{"$f":"AY52+B61*('Trial 3'!AY35-AY52)/Inputs!B35/12","v":{"v":918517.0613328433,"d":"$918,517"}},{"v":11044809.712897278,"d":"$11,044,810"},{"$f":"AZ52+B61*('Trial 3'!AZ35-AZ52)/Inputs!B35/12","v":{"v":918148.0866469035,"d":"$918,148"}},{"$f":"BB52+B61*('Trial 3'!BB35-BB52)/Inputs!B35/12","v":{"v":917848.0123047942,"d":"$917,848"}},{"$f":"BC52+B61*('Trial 3'!BC35-BC52)/Inputs!B35/12","v":{"v":917575.3485214891,"d":"$917,575"}},{"$f":"BD52+B61*('Trial 3'!BD35-BD52)/Inputs!B35/12","v":{"v":917194.1712334579,"d":"$917,194"}},{"$f":"BE52+B61*('Trial 3'!BE35-BE52)/Inputs!B35/12","v":{"v":916869.6931092931,"d":"$916,870"}},{"$f":"BF52+B61*('Trial 3'!BF35-BF52)/Inputs!B35/12","v":{"v":916498.8569847202,"d":"$916,499"}},{"$f":"BG52+B61*('Trial 3'!BG35-BG52)/Inputs!B35/12","v":{"v":916133.0228255227,"d":"$916,133"}},{"$f":"BH52+B61*('Trial 3'!BH35-BH52)/Inputs!B35/12","v":{"v":915848.3540098078,"d":"$915,848"}},{"$f":"BI52+B61*('Trial 3'!BI35-BI52)/Inputs!B35/12","v":{"v":915462.4671528196,"d":"$915,462"}},{"$f":"BJ52+B61*('Trial 3'!BJ35-BJ52)/Inputs!B35/12","v":{"v":914989.0037608107,"d":"$914,989"}},{"$f":"BK52+B61*('Trial 3'!BK35-BK52)/Inputs!B35/12","v":{"v":914522.9742995705,"d":"$914,523"}},{"$f":"BL52+B61*('Trial 3'!BL35-BL52)/Inputs!B35/12","v":{"v":914149.8964457778,"d":"$914,150"}},{"v":10995239.887294967,"d":"$10,995,240"},{"$f":"BM52+B61*('Trial 3'!BM35-BM52)/Inputs!B35/12","v":{"v":913661.5861302331,"d":"$913,662"}},{"$f":"BO52+B61*('Trial 3'!BO35-BO52)/Inputs!B35/12","v":{"v":913257.95699488,"d":"$913,258"}},{"$f":"BP52+B61*('Trial 3'!BP35-BP52)/Inputs!B35/12","v":{"v":912832.3770507026,"d":"$912,832"}},{"$f":"BQ52+B61*('Trial 3'!BQ35-BQ52)/Inputs!B35/12","v":{"v":912427.5264943512,"d":"$912,428"}},{"$f":"BR52+B61*('Trial 3'!BR35-BR52)/Inputs!B35/12","v":{"v":912113.0214014634,"d":"$912,113"}},{"$f":"BS52+B61*('Trial 3'!BS35-BS52)/Inputs!B35/12","v":{"v":911722.3656464379,"d":"$911,722"}},{"$f":"BT52+B61*('Trial 3'!BT35-BT52)/Inputs!B35/12","v":{"v":911358.0163758066,"d":"$911,358"}},{"$f":"BU52+B61*('Trial 3'!BU35-BU52)/Inputs!B35/12","v":{"v":910879.4280718244,"d":"$910,879"}},{"$f":"BV52+B61*('Trial 3'!BV35-BV52)/Inputs!B35/12","v":{"v":910487.4835147811,"d":"$910,487"}},{"$f":"BW52+B61*('Trial 3'!BW35-BW52)/Inputs!B35/12","v":{"v":910132.0797168389,"d":"$910,132"}},{"$f":"BX52+B61*('Trial 3'!BX35-BX52)/Inputs!B35/12","v":{"v":909702.3267698606,"d":"$909,702"}},{"$f":"BY52+B61*('Trial 3'!BY35-BY52)/Inputs!B35/12","v":{"v":909248.7398380663,"d":"$909,249"}},{"v":10937822.908005245,"d":"$10,937,823"},{"$f":"BZ52+B61*('Trial 3'!BZ35-BZ52)/Inputs!B35/12","v":{"v":908762.5360608252,"d":"$908,763"}},{"$f":"CB52+B61*('Trial 3'!CB35-CB52)/Inputs!B35/12","v":{"v":908363.5903298062,"d":"$908,364"}},{"$f":"CC52+B61*('Trial 3'!CC35-CC52)/Inputs!B35/12","v":{"v":907993.9959354548,"d":"$907,994"}},{"$f":"CD52+B61*('Trial 3'!CD35-CD52)/Inputs!B35/12","v":{"v":907496.0569853908,"d":"$907,496"}},{"$f":"CE52+B61*('Trial 3'!CE35-CE52)/Inputs!B35/12","v":{"v":907000.5583367099,"d":"$907,001"}},{"$f":"CF52+B61*('Trial 3'!CF35-CF52)/Inputs!B35/12","v":{"v":906612.4817727889,"d":"$906,612"}},{"$f":"CG52+B61*('Trial 3'!CG35-CG52)/Inputs!B35/12","v":{"v":906168.9780480693,"d":"$906,169"}},{"$f":"CH52+B61*('Trial 3'!CH35-CH52)/Inputs!B35/12","v":{"v":905678.8948505872,"d":"$905,679"}},{"$f":"CI52+B61*('Trial 3'!CI35-CI52)/Inputs!B35/12","v":{"v":905329.7040978823,"d":"$905,330"}},{"$f":"CJ52+B61*('Trial 3'!CJ35-CJ52)/Inputs!B35/12","v":{"v":904925.9335774934,"d":"$904,926"}},{"$f":"CK52+B61*('Trial 3'!CK35-CK52)/Inputs!B35/12","v":{"v":904522.7204520425,"d":"$904,523"}},{"$f":"CL52+B61*('Trial 3'!CL35-CL52)/Inputs!B35/12","v":{"v":904040.809944122,"d":"$904,041"}},{"v":10876896.260391172,"d":"$10,876,896"},{"$f":"CM52+B61*('Trial 3'!CM35-CM52)/Inputs!B35/12","v":{"v":903569.1210018627,"d":"$903,569"}},{"$f":"CO52+B61*('Trial 3'!CO35-CO52)/Inputs!B35/12","v":{"v":903175.4723099212,"d":"$903,175"}},{"$f":"CP52+B61*('Trial 3'!CP35-CP52)/Inputs!B35/12","v":{"v":902758.0194060366,"d":"$902,758"}},{"$f":"CQ52+B61*('Trial 3'!CQ35-CQ52)/Inputs!B35/12","v":{"v":902344.0359180926,"d":"$902,344"}},{"$f":"CR52+B61*('Trial 3'!CR35-CR52)/Inputs!B35/12","v":{"v":901848.4509517757,"d":"$901,848"}},{"$f":"CS52+B61*('Trial 3'!CS35-CS52)/Inputs!B35/12","v":{"v":901435.0196650294,"d":"$901,435"}},{"$f":"CT52+B61*('Trial 3'!CT35-CT52)/Inputs!B35/12","v":{"v":901119.2781707216,"d":"$901,119"}},{"$f":"CU52+B61*('Trial 3'!CU35-CU52)/Inputs!B35/12","v":{"v":900663.7466931489,"d":"$900,664"}},{"$f":"CV52+B61*('Trial 3'!CV35-CV52)/Inputs!B35/12","v":{"v":900247.0853393059,"d":"$900,247"}},{"$f":"CW52+B61*('Trial 3'!CW35-CW52)/Inputs!B35/12","v":{"v":899754.9685345218,"d":"$899,755"}},{"$f":"CX52+B61*('Trial 3'!CX35-CX52)/Inputs!B35/12","v":{"v":899360.254607347,"d":"$899,360"}},{"$f":"CY52+B61*('Trial 3'!CY35-CY52)/Inputs!B35/12","v":{"v":899007.2802832068,"d":"$899,007"}},{"v":10815282.73288097,"d":"$10,815,283"},{"$f":"CZ52+B61*('Trial 3'!CZ35-CZ52)/Inputs!B35/12","v":{"v":898657.3117629592,"d":"$898,657"}},{"$f":"DB52+B61*('Trial 3'!DB35-DB52)/Inputs!B35/12","v":{"v":898225.5879055386,"d":"$898,226"}},{"$f":"DC52+B61*('Trial 3'!DC35-DC52)/Inputs!B35/12","v":{"v":897692.6246817646,"d":"$897,693"}},{"$f":"DD52+B61*('Trial 3'!DD35-DD52)/Inputs!B35/12","v":{"v":897244.6260696909,"d":"$897,245"}},{"$f":"DE52+B61*('Trial 3'!DE35-DE52)/Inputs!B35/12","v":{"v":896790.0179326605,"d":"$896,790"}},{"$f":"DF52+B61*('Trial 3'!DF35-DF52)/Inputs!B35/12","v":{"v":896331.8404253642,"d":"$896,332"}},{"$f":"DG52+B61*('Trial 3'!DG35-DG52)/Inputs!B35/12","v":{"v":895870.2374109213,"d":"$895,870"}},{"$f":"DH52+B61*('Trial 3'!DH35-DH52)/Inputs!B35/12","v":{"v":895500.6213548104,"d":"$895,501"}},{"$f":"DI52+B61*('Trial 3'!DI35-DI52)/Inputs!B35/12","v":{"v":895124.2288772501,"d":"$895,124"}},{"$f":"DJ52+B61*('Trial 3'!DJ35-DJ52)/Inputs!B35/12","v":{"v":894763.6992583522,"d":"$894,764"}},{"$f":"DK52+B61*('Trial 3'!DK35-DK52)/Inputs!B35/12","v":{"v":894324.9052324774,"d":"$894,325"}},{"$f":"DL52+B61*('Trial 3'!DL35-DL52)/Inputs!B35/12","v":{"v":893814.7002226243,"d":"$893,815"}},{"v":10754340.401134415,"d":"$10,754,340"},{"$f":"DM52+B61*('Trial 3'!DM35-DM52)/Inputs!B35/12","v":{"v":893385.1082916099,"d":"$893,385"}},{"$f":"DO52+B61*('Trial 3'!DO35-DO52)/Inputs!B35/12","v":{"v":893033.6583535667,"d":"$893,034"}},{"$f":"DP52+B61*('Trial 3'!DP35-DP52)/Inputs!B35/12","v":{"v":892682.1706300366,"d":"$892,682"}},{"$f":"DQ52+B61*('Trial 3'!DQ35-DQ52)/Inputs!B35/12","v":{"v":892266.3943039278,"d":"$892,266"}},{"$f":"DR52+B61*('Trial 3'!DR35-DR52)/Inputs!B35/12","v":{"v":891930.2154065855,"d":"$891,930"}},{"$f":"DS52+B61*('Trial 3'!DS35-DS52)/Inputs!B35/12","v":{"v":891516.9617446352,"d":"$891,517"}},{"$f":"DT52+B61*('Trial 3'!DT35-DT52)/Inputs!B35/12","v":{"v":891076.9283295628,"d":"$891,077"}},{"$f":"DU52+B61*('Trial 3'!DU35-DU52)/Inputs!B35/12","v":{"v":890671.2440467075,"d":"$890,671"}},{"$f":"DV52+B61*('Trial 3'!DV35-DV52)/Inputs!B35/12","v":{"v":890115.8891163679,"d":"$890,116"}},{"$f":"DW52+B61*('Trial 3'!DW35-DW52)/Inputs!B35/12","v":{"v":889752.9600247793,"d":"$889,753"}},{"$f":"DX52+B61*('Trial 3'!DX35-DX52)/Inputs!B35/12","v":{"v":889322.2423376217,"d":"$889,322"}},{"$f":"DY52+B61*('Trial 3'!DY35-DY52)/Inputs!B35/12","v":{"v":888977.0291034903,"d":"$888,977"}},{"v":10694730.80168889,"d":"$10,694,731"},{"$f":"DZ52+B61*('Trial 3'!DZ35-DZ52)/Inputs!B35/12","v":{"v":888509.2723891761,"d":"$888,509"}},{"$f":"EB52+B61*('Trial 3'!EB35-EB52)/Inputs!B35/12","v":{"v":888117.7517961381,"d":"$888,118"}},{"$f":"EC52+B61*('Trial 3'!EC35-EC52)/Inputs!B35/12","v":{"v":887749.5212093154,"d":"$887,750"}},{"$f":"ED52+B61*('Trial 3'!ED35-ED52)/Inputs!B35/12","v":{"v":887231.1328857279,"d":"$887,231"}},{"$f":"EE52+B61*('Trial 3'!EE35-EE52)/Inputs!B35/12","v":{"v":886755.8199174892,"d":"$886,756"}},{"$f":"EF52+B61*('Trial 3'!EF35-EF52)/Inputs!B35/12","v":{"v":886268.6267197445,"d":"$886,269"}},{"$f":"EG52+B61*('Trial 3'!EG35-EG52)/Inputs!B35/12","v":{"v":885851.3789778915,"d":"$885,851"}},{"$f":"EH52+B61*('Trial 3'!EH35-EH52)/Inputs!B35/12","v":{"v":885304.3215481477,"d":"$885,304"}},{"$f":"EI52+B61*('Trial 3'!EI35-EI52)/Inputs!B35/12","v":{"v":884748.4961530172,"d":"$884,748"}},{"$f":"EJ52+B61*('Trial 3'!EJ35-EJ52)/Inputs!B35/12","v":{"v":884256.0442099427,"d":"$884,256"}},{"$f":"EK52+B61*('Trial 3'!EK35-EK52)/Inputs!B35/12","v":{"v":883795.9253407406,"d":"$883,796"}},{"$f":"EL52+B61*('Trial 3'!EL35-EL52)/Inputs!B35/12","v":{"v":883318.8509956143,"d":"$883,319"}},{"v":10631907.142142948,"d":"$10,631,907"}]
[{"$f":"Labels!B99","v":"Trial 04"},{"$f":"B8-B11+B61*0/Inputs!B35/12","v":{"v":933333.3333333334,"d":"$933,333"}},{"$f":"B53+B61*('Trial 4'!B35-B53)/Inputs!B35/12","v":{"v":933117.1096127363,"d":"$933,117"}},{"$f":"C53+B61*('Trial 4'!C35-C53)/Inputs!B35/12","v":{"v":932941.7890220373,"d":"$932,942"}},{"$f":"D53+B61*('Trial 4'!D35-D53)/Inputs!B35/12","v":{"v":932699.6497078341,"d":"$932,700"}},{"$f":"E53+B61*('Trial 4'!E35-E53)/Inputs!B35/12","v":{"v":932327.248270498,"d":"$932,327"}},{"$f":"F53+B61*('Trial 4'!F35-F53)/Inputs!B35/12","v":{"v":931980.6372795717,"d":"$931,981"}},{"$f":"G53+B61*('Trial 4'!G35-G53)/Inputs!B35/12","v":{"v":931741.1400170875,"d":"$931,741"}},{"$f":"H53+B61*('Trial 4'!H35-H53)/Inputs!B35/12","v":{"v":931505.1866974941,"d":"$931,505"}},{"$f":"I53+B61*('Trial 4'!I35-I53)/Inputs!B35/12","v":{"v":931278.9379177329,"d":"$931,279"}},{"$f":"J53+B61*('Trial 4'!J35-J53)/Inputs!B35/12","v":{"v":930958.935451713,"d":"$930,959"}},{"$f":"K53+B61*('Trial 4'!K35-K53)/Inputs!B35/12","v":{"v":930638.2464753418,"d":"$930,638"}},{"$f":"L53+B61*('Trial 4'!L35-L53)/Inputs!B35/12","v":{"v":930324.956651125,"d":"$930,325"}},{"v":11182847.170436505,"d":"$11,182,847"},{"$f":"M53+B61*('Trial 4'!M35-M53)/Inputs!B35/12","v":{"v":930006.9883907702,"d":"$930,007"}},{"$f":"O53+B61*('Trial 4'!O35-O53)/Inputs!B35/12","v":{"v":929757.8732974331,"d":"$929,758"}},{"$f":"P53+B61*('Trial 4'!P35-P53)/Inputs!B35/12","v":{"v":929448.6467446437,"d":"$929,449"}},{"$f":"Q53+B61*('Trial 4'!Q35-Q53)/Inputs!B35/12","v":{"v":929209.60453112,"d":"$929,210"}},{"$f":"R53+B61*('Trial 4'!R35-R53)/Inputs!B35/12","v":{"v":929001.538401315,"d":"$929,002"}},{"$f":"S53+B61*('Trial 4'!S35-S53)/Inputs!B35/12","v":{"v":928781.5605585588,"d":"$928,782"}},{"$f":"T53+B61*('Trial 4'!T35-T53)/Inputs!B35/12","v":{"v":928421.1389260127,"d":"$928,421"}},{"$f":"U53+B61*('Trial 4'!U35-U53)/Inputs!B35/12","v":{"v":928100.7884881921,"d":"$928,101"}},{"$f":"V53+B61*('Trial 4'!V35-V53)/Inputs!B35/12","v":{"v":927789.8435635705,"d":"$927,790"}},{"$f":"W53+B61*('Trial 4'!W35-W53)/Inputs!B35/12","v":{"v":927461.1628203809,"d":"$927,461"}},{"$f":"X53+B61*('Trial 4'!X35-X53)/Inputs!B35/12","v":{"v":927188.5666583903,"d":"$927,189"}},{"$f":"Y53+B61*('Trial 4'!Y35-Y53)/Inputs!B35/12","v":{"v":926775.5916014857,"d":"$926,776"}},{"v":11141943.303981872,"d":"$11,141,943"},{"$f":"Z53+B61*('Trial 4'!Z35-Z53)/Inputs!B35/12","v":{"v":926473.7060185228,"d":"$926,474"}},{"$f":"AB53+B61*('Trial 4'!AB35-AB53)/Inputs!B35/12","v":{"v":926168.4812600893,"d":"$926,168"}},{"$f":"AC53+B61*('Trial 4'!AC35-AC53)/Inputs!B35/12","v":{"v":925845.0328206487,"d":"$925,845"}},{"$f":"AD53+B61*('Trial 4'!AD35-AD53)/Inputs!B35/12","v":{"v":925506.2994548345,"d":"$925,506"}},{"$f":"AE53+B61*('Trial 4'!AE35-AE53)/Inputs!B35/12","v":{"v":925093.3963602326,"d":"$925,093"}},{"$f":"AF53+B61*('Trial 4'!AF35-AF53)/Inputs!B35/12","v":{"v":924798.9463927497,"d":"$924,799"}},{"$f":"AG53+B61*('Trial 4'!AG35-AG53)/Inputs!B35/12","v":{"v":924492.245276944,"d":"$924,492"}},{"$f":"AH53+B61*('Trial 4'!AH35-AH53)/Inputs!B35/12","v":{"v":924254.8552742515,"d":"$924,255"}},{"$f":"AI53+B61*('Trial 4'!AI35-AI53)/Inputs!B35/12","v":{"v":923861.0447072834,"d":"$923,861"}},{"$f":"AJ53+B61*('Trial 4'!AJ35-AJ53)/Inputs!B35/12","v":{"v":923411.1208714726,"d":"$923,411"}},{"$f":"AK53+B61*('Trial 4'!AK35-AK53)/Inputs!B35/12","v":{"v":922993.2673261544,"d":"$922,993"}},{"$f":"AL53+B61*('Trial 4'!AL35-AL53)/Inputs!B35/12","v":{"v":922628.3724909573,"d":"$922,628"}},{"v":11095526.76825414,"d":"$11,095,527"},{"$f":"AM53+B61*('Trial 4'!AM35-AM53)/Inputs!B35/12","v":{"v":922360.3614251661,"d":"$922,360"}},{"$f":"AO53+B61*('Trial 4'!AO35-AO53)/Inputs!B35/12","v":{"v":921957.8382808627,"d":"$921,958"}},{"$f":"AP53+B61*('Trial 4'!AP35-AP53)/Inputs!B35/12","v":{"v":921589.8493011429,"d":"$921,590"}},{"$f":"AQ53+B61*('Trial 4'!AQ35-AQ53)/Inputs!B35/12","v":{"v":921208.6412007845,"d":"$921,209"}},{"$f":"AR53+B61*('Trial 4'!AR35-AR53)/Inputs!B35/12","v":{"v":920777.3593186323,"d":"$920,777"}},{"$f":"AS53+B61*('Trial 4'!AS35-AS53)/Inputs!B35/12","v":{"v":920335.2342101844,"d":"$920,335"}},{"$f":"AT53+B61*('Trial 4'!AT35-AT53)/Inputs!B35/12","v":{"v":919874.9067430008,"d":"$919,875"}},{"$f":"AU53+B61*('Trial 4'!AU35-AU53)/Inputs!B35/12","v":{"v":919526.670879587,"d":"$919,527"}},{"$f":"AV53+B61*('Trial 4'!AV35-AV53)/Inputs!B35/12","v":{"v":919191.3143335897,"d":"$919,191"}},{"$f":"AW53+B61*('Trial 4'!AW35-AW53)/Inputs!B35/12","v":{"v":918809.6785943635,"d":"$918,810"}},{"$f":"AX53+B61*('Trial 4'!AX35-AX53)/Inputs!B35/12","v":{"v":918400.4791594615,"d":"$918,400"}},{"$f":"AY53+B61*('Trial 4'!AY35-AY53)/Inputs!B35/12","v":{"v":918033.8305942555,"d":"$918,034"}},{"v":11042066.164041031,"d":"$11,042,066"},{"$f":"AZ53+B61*('Trial 4'!AZ35-AZ53)/Inputs!B35/12","v":{"v":917647.2730057223,"d":"$917,647"}},{"$f":"BB53+B61*('Trial 4'!BB35-BB53)/Inputs!B35/12","v":{"v":917323.6177469969,"d":"$917,324"}},{"$f":"BC53+B61*('Trial 4'!BC35-BC53)/Inputs!B35/12","v":{"v":916919.3487076823,"d":"$916,919"}},{"$f":"BD53+B61*('Trial 4'!BD35-BD53)/Inputs!B35/12","v":{"v":916514.3401503483,"d":"$916,514"}},{"$f":"BE53+B61*('Trial 4'!BE35-BE53)/Inputs!B35/12","v":{"v":916115.3905621398,"d":"$916,115"}},{"$f":"BF53+B61*('Trial 4'!BF35-BF53)/Inputs!B35/12","v":{"v":915746.2533672584,"d":"$915,746"}},{"$f":"BG53+B61*('Trial 4'!BG35-BG53)/Inputs!B35/12","v":{"v":915418.1745291939,"d":"$915,418"}},{"$f":"BH53+B61*('Trial 4'!BH35-BH53)/Inputs!B35/12","v":{"v":915077.8244748866,"d":"$915,078"}},{"$f":"BI53+B61*('Trial 4'!BI35-BI53)/Inputs!B35/12","v":{"v":914622.728704232,"d":"$914,623"}},{"$f":"BJ53+B61*('Trial 4'!BJ35-BJ53)/Inputs!B35/12","v":{"v":914256.5288450285,"d":"$914,257"}},{"$f":"BK53+B61*('Trial 4'!BK35-BK53)/Inputs!B35/12","v":{"v":913845.2724669167,"d":"$913,845"}},{"$f":"BL53+B61*('Trial 4'!BL35-BL53)/Inputs!B35/12","v":{"v":913454.1998790522,"d":"$913,454"}},{"v":10986940.952439457,"d":"$10,986,941"},{"$f":"BM53+B61*('Trial 4'!BM35-BM53)/Inputs!B35/12","v":{"v":913094.2248988096,"d":"$913,094"}},{"$f":"BO53+B61*('Trial 4'!BO35-BO53)/Inputs!B35/12","v":{"v":912665.3414156582,"d":"$912,665"}},{"$f":"BP53+B61*('Trial 4'!BP35-BP53)/Inputs!B35/12","v":{"v":912298.6798535378,"d":"$912,299"}},{"$f":"BQ53+B61*('Trial 4'!BQ35-BQ53)/Inputs!B35/12","v":{"v":911877.5040245858,"d":"$911,878"}},{"$f":"BR53+B61*('Trial 4'!BR35-BR53)/Inputs!B35/12","v":{"v":911485.3098052334,"d":"$911,485"}},{"$f":"BS53+B61*('Trial 4'!BS35-BS53)/Inputs!B35/12","v":{"v":911063.0805125667,"d":"$911,063"}},{"$f":"BT53+B61*('Trial 4'!BT35-BT53)/Inputs!B35/12","v":{"v":910697.219990358,"d":"$910,697"}},{"$f":"BU53+B61*('Trial 4'!BU35-BU53)/Inputs!B35/12","v":{"v":910316.9863030285,"d":"$910,317"}},{"$f":"BV53+B61*('Trial 4'!BV35-BV53)/Inputs!B35/12","v":{"v":909849.706945155,"d":"$909,850"}},{"$f":"BW53+B61*('Trial 4'!BW35-BW53)/Inputs!B35/12","v":{"v":909505.9436744169,"d":"$909,506"}},{"$f":"BX53+B61*('Trial 4'!BX35-BX53)/Inputs!B35/12","v":{"v":909182.4657934946,"d":"$909,182"}},{"$f":"BY53+B61*('Trial 4'!BY35-BY53)/Inputs!B35/12","v":{"v":908770.8448499994,"d":"$908,771"}},{"v":10930807.308066843,"d":"$10,930,807"},{"$f":"BZ53+B61*('Trial 4'!BZ35-BZ53)/Inputs!B35/12","v":{"v":908413.6628386014,"d":"$908,414"}},{"$f":"CB53+B61*('Trial 4'!CB35-CB53)/Inputs!B35/12","v":{"v":908013.6293618515,"d":"$908,014"}},{"$f":"CC53+B61*('Trial 4'!CC35-CC53)/Inputs!B35/12","v":{"v":907617.0334679622,"d":"$907,617"}},{"$f":"CD53+B61*('Trial 4'!CD35-CD53)/Inputs!B35/12","v":{"v":907222.7725323795,"d":"$907,223"}},{"$f":"CE53+B61*('Trial 4'!CE35-CE53)/Inputs!B35/12","v":{"v":906800.4346921922,"d":"$906,800"}},{"$f":"CF53+B61*('Trial 4'!CF35-CF53)/Inputs!B35/12","v":{"v":906377.1808109871,"d":"$906,377"}},{"$f":"CG53+B61*('Trial 4'!CG35-CG53)/Inputs!B35/12","v":{"v":905991.5489560541,"d":"$905,992"}},{"$f":"CH53+B61*('Trial 4'!CH35-CH53)/Inputs!B35/12","v":{"v":905501.9708130411,"d":"$905,502"}},{"$f":"CI53+B61*('Trial 4'!CI35-CI53)/Inputs!B35/12","v":{"v":905087.4729512407,"d":"$905,087"}},{"$f":"CJ53+B61*('Trial 4'!CJ35-CJ53)/Inputs!B35/12","v":{"v":904703.758907041,"d":"$904,704"}},{"$f":"CK53+B61*('Trial 4'!CK35-CK53)/Inputs!B35/12","v":{"v":904271.1206507948,"d":"$904,271"}},{"$f":"CL53+B61*('Trial 4'!CL35-CL53)/Inputs!B35/12","v":{"v":903875.4411159307,"d":"$903,875"}},{"v":10873876.027098075,"d":"$10,873,876"},{"$f":"CM53+B61*('Trial 4'!CM35-CM53)/Inputs!B35/12","v":{"v":903418.3400765938,"d":"$903,418"}},{"$f":"CO53+B61*('Trial 4'!CO35-CO53)/Inputs!B35/12","v":{"v":903071.4789310333,"d":"$903,071"}},{"$f":"CP53+B61*('Trial 4'!CP35-CP53)/Inputs!B35/12","v":{"v":902652.5679704313,"d":"$902,653"}},{"$f":"CQ53+B61*('Trial 4'!CQ35-CQ53)/Inputs!B35/12","v":{"v":902178.3686384063,"d":"$902,178"}},{"$f":"CR53+B61*('Trial 4'!CR35-CR53)/Inputs!B35/12","v":{"v":901763.2249614173,"d":"$901,763"}},{"$f":"CS53+B61*('Trial 4'!CS35-CS53)/Inputs!B35/12","v":{"v":901285.2621726447,"d":"$901,285"}},{"$f":"CT53+B61*('Trial 4'!CT35-CT53)/Inputs!B35/12","v":{"v":900845.9616263632,"d":"$900,846"}},{"$f":"CU53+B61*('Trial 4'!CU35-CU53)/Inputs!B35/12","v":{"v":900402.6628821763,"d":"$900,403"}},{"$f":"CV53+B61*('Trial 4'!CV35-CV53)/Inputs!B35/12","v":{"v":900025.1357441996,"d":"$900,025"}},{"$f":"CW53+B61*('Trial 4'!CW35-CW53)/Inputs!B35/12","v":{"v":899583.4940591401,"d":"$899,583"}},{"$f":"CX53+B61*('Trial 4'!CX35-CX53)/Inputs!B35/12","v":{"v":899203.4699500791,"d":"$899,203"}},{"$f":"CY53+B61*('Trial 4'!CY35-CY53)/Inputs!B35/12","v":{"v":898791.0911985184,"d":"$898,791"}},{"v":10813221.058211004,"d":"$10,813,221"},{"$f":"CZ53+B61*('Trial 4'!CZ35-CZ53)/Inputs!B35/12","v":{"v":898321.1156474175,"d":"$898,321"}},{"$f":"DB53+B61*('Trial 4'!DB35-DB53)/Inputs!B35/12","v":{"v":897875.5032286074,"d":"$897,876"}},{"$f":"DC53+B61*('Trial 4'!DC35-DC53)/Inputs!B35/12","v":{"v":897556.137744799,"d":"$897,556"}},{"$f":"DD53+B61*('Trial 4'!DD35-DD53)/Inputs!B35/12","v":{"v":897134.1878388252,"d":"$897,134"}},{"$f":"DE53+B61*('Trial 4'!DE35-DE53)/Inputs!B35/12","v":{"v":896736.4239043659,"d":"$896,736"}},{"$f":"DF53+B61*('Trial 4'!DF35-DF53)/Inputs!B35/12","v":{"v":896315.4542250348,"d":"$896,315"}},{"$f":"DG53+B61*('Trial 4'!DG35-DG53)/Inputs!B35/12","v":{"v":895791.5775623204,"d":"$895,792"}},{"$f":"DH53+B61*('Trial 4'!DH35-DH53)/Inputs!B35/12","v":{"v":895380.3361658821,"d":"$895,380"}},{"$f":"DI53+B61*('Trial 4'!DI35-DI53)/Inputs!B35/12","v":{"v":894890.0784222968,"d":"$894,890"}},{"$f":"DJ53+B61*('Trial 4'!DJ35-DJ53)/Inputs!B35/12","v":{"v":894341.3653818287,"d":"$894,341"}},{"$f":"DK53+B61*('Trial 4'!DK35-DK53)/Inputs!B35/12","v":{"v":893913.2464775802,"d":"$893,913"}},{"$f":"DL53+B61*('Trial 4'!DL35-DL53)/Inputs!B35/12","v":{"v":893463.3900876456,"d":"$893,463"}},{"v":10751718.816686602,"d":"$10,751,719"},{"$f":"DM53+B61*('Trial 4'!DM35-DM53)/Inputs!B35/12","v":{"v":893056.8557375916,"d":"$893,057"}},{"$f":"DO53+B61*('Trial 4'!DO35-DO53)/Inputs!B35/12","v":{"v":892601.426897479,"d":"$892,601"}},{"$f":"DP53+B61*('Trial 4'!DP35-DP53)/Inputs!B35/12","v":{"v":892206.5863417326,"d":"$892,207"}},{"$f":"DQ53+B61*('Trial 4'!DQ35-DQ53)/Inputs!B35/12","v":{"v":891836.3970892658,"d":"$891,836"}},{"$f":"DR53+B61*('Trial 4'!DR35-DR53)/Inputs!B35/12","v":{"v":891380.7899964496,"d":"$891,381"}},{"$f":"DS53+B61*('Trial 4'!DS35-DS53)/Inputs!B35/12","v":{"v":890996.832280721,"d":"$890,997"}},{"$f":"DT53+B61*('Trial 4'!DT35-DT53)/Inputs!B35/12","v":{"v":890461.4333957449,"d":"$890,461"}},{"$f":"DU53+B61*('Trial 4'!DU35-DU53)/Inputs!B35/12","v":{"v":889913.589893135,"d":"$889,914"}},{"$f":"DV53+B61*('Trial 4'!DV35-DV53)/Inputs!B35/12","v":{"v":889481.0814609514,"d":"$889,481"}},{"$f":"DW53+B61*('Trial 4'!DW35-DW53)/Inputs!B35/12","v":{"v":889099.7261434204,"d":"$889,100"}},{"$f":"DX53+B61*('Trial 4'!DX35-DX53)/Inputs!B35/12","v":{"v":888577.2013470468,"d":"$888,577"}},{"$f":"DY53+B61*('Trial 4'!DY35-DY53)/Inputs!B35/12","v":{"v":888165.4212243501,"d":"$888,165"}},{"v":10687777.341807889,"d":"$10,687,777"},{"$f":"DZ53+B61*('Trial 4'!DZ35-DZ53)/Inputs!B35/12","v":{"v":887692.1658326788,"d":"$887,692"}},{"$f":"EB53+B61*('Trial 4'!EB35-EB53)/Inputs!B35/12","v":{"v":887310.9169658993,"d":"$887,311"}},{"$f":"EC53+B61*('Trial 4'!EC35-EC53)/Inputs!B35/12","v":{"v":886950.1262625878,"d":"$886,950"}},{"$f":"ED53+B61*('Trial 4'!ED35-ED53)/Inputs!B35/12","v":{"v":886535.6954461228,"d":"$886,536"}},{"$f":"EE53+B61*('Trial 4'!EE35-EE53)/Inputs!B35/12","v":{"v":886076.6277581863,"d":"$886,077"}},{"$f":"EF53+B61*('Trial 4'!EF35-EF53)/Inputs!B35/12","v":{"v":885583.7011672652,"d":"$885,584"}},{"$f":"EG53+B61*('Trial 4'!EG35-EG53)/Inputs!B35/12","v":{"v":885049.1404020383,"d":"$885,049"}},{"$f":"EH53+B61*('Trial 4'!EH35-EH53)/Inputs!B35/12","v":{"v":884620.0125325319,"d":"$884,620"}},{"$f":"EI53+B61*('Trial 4'!EI35-EI53)/Inputs!B35/12","v":{"v":884273.7262380052,"d":"$884,274"}},{"$f":"EJ53+B61*('Trial 4'!EJ35-EJ53)/Inputs!B35/12","v":{"v":883859.6430121913,"d":"$883,860"}},{"$f":"EK53+B61*('Trial 4'!EK35-EK53)/Inputs!B35/12","v":{"v":883345.0004941579,"d":"$883,345"}},{"$f":"EL53+B61*('Trial 4'!EL35-EL53)/Inputs!B35/12","v":{"v":882894.738582568,"d":"$882,895"}},{"v":10624191.494694233,"d":"$10,624,191"}]
[{"$f":"Labels!B100","v":"Trial 05"},{"$f":"B8-B11+B61*0/Inputs!B35/12","v":{"v":933333.3333333334,"d":"$933,333"}},{"$f":"B54+B61*('Trial 5'!B35-B54)/Inputs!B35/12","v":{"v":933045.8765104323,"d":"$933,046"}},{"$f":"C54+B61*('Trial 5'!C35-C54)/Inputs!B35/12","v":{"v":932720.8763328261,"d":"$932,721"}},{"$f":"D54+B61*('Trial 5'!D35-D54)/Inputs!B35/12","v":{"v":932452.8871758918,"d":"$932,453"}},{"$f":"E54+B61*('Trial 5'!E35-E54)/Inputs!B35/12","v":{"v":932193.2829451475,"d":"$932,193"}},{"$f":"F54+B61*('Trial 5'!F35-F54)/Inputs!B35/12","v":{"v":931879.4186739374,"d":"$931,879"}},{"$f":"G54+B61*('Trial 5'!G35-G54)/Inputs!B35/12","v":{"v":931527.6374534077,"d":"$931,528"}},{"$f":"H54+B61*('Trial 5'!H35-H54)/Inputs!B35/12","v":{"v":931344.584250229,"d":"$931,345"}},{"$f":"I54+B61*('Trial 5'!I35-I54)/Inputs!B35/12","v":{"v":930939.527757154,"d":"$930,940"}},{"$f":"J54+B61*('Trial 5'!J35-J54)/Inputs!B35/12","v":{"v":930621.0719723713,"d":"$930,621"}},{"$f":"K54+B61*('Trial 5'!K35-K54)/Inputs!B35/12","v":{"v":930326.8402813191,"d":"$930,327"}},{"$f":"L54+B61*('Trial 5'!L35-L54)/Inputs!B35/12","v":{"v":930141.3681448748,"d":"$930,141"}},{"v":11180526.704830926,"d":"$11,180,527"},{"$f":"M54+B61*('Trial 5'!M35-M54)/Inputs!B35/12","v":{"v":929837.5274234924,"d":"$929,838"}},{"$f":"O54+B61*('Trial 5'!O35-O54)/Inputs!B35/12","v":{"v":929505.8231148835,"d":"$929,506"}},{"$f":"P54+B61*('Trial 5'!P35-P54)/Inputs!B35/12","v":{"v":929191.4019066966,"d":"$929,191"}},{"$f":"Q54+B61*('Trial 5'!Q35-Q54)/Inputs!B35/12","v":{"v":928898.0296498544,"d":"$928,898"}},{"$f":"R54+B61*('Trial 5'!R35-R54)/Inputs!B35/12","v":{"v":928506.0355455535,"d":"$928,506"}},{"$f":"S54+B61*('Trial 5'!S35-S54)/Inputs!B35/12","v":{"v":928147.3990137181,"d":"$928,147"}},{"$f":"T54+B61*('Trial 5'!T35-T54)/Inputs!B35/12","v":{"v":927915.0272420296,"d":"$927,915"}},{"$f":"U54+B61*('Trial 5'!U35-U54)/Inputs!B35/12","v":{"v":927652.5408731992,"d":"$927,653"}},{"$f":"V54+B61*('Trial 5'!V35-V54)/Inputs!B35/12","v":{"v":927278.7990473645,"d":"$927,279"}},{"$f":"W54+B61*('Trial 5'!W35-W54)/Inputs!B35/12","v":{"v":926960.2510692682,"d":"$926,960"}},{"$f":"X54+B61*('Trial 5'!X35-X54)/Inputs!B35/12","v":{"v":926638.6648223455,"d":"$926,639"}},{"$f":"Y54+B61*('Trial 5'!Y35-Y54)/Inputs!B35/12","v":{"v":926326.941715386,"d":"$926,327"}},{"v":11136858.44142379,"d":"$11,136,858"},{"$f":"Z54+B61*('Trial 5'!Z35-Z54)/Inputs!B35/12","v":{"v":925945.7736521439,"d":"$925,946"}},{"$f":"AB54+B61*('Trial 5'!AB35-AB54)/Inputs!B35/12","v":{"v":925527.7805758866,"d":"$925,528"}},{"$f":"AC54+B61*('Trial 5'!AC35-AC54)/Inputs!B35/12","v":{"v":925229.9559861413,"d":"$925,230"}},{"$f":"AD54+B61*('Trial 5'!AD35-AD54)/Inputs!B35/12","v":{"v":924963.7006581753,"d":"$924,964"}},{"$f":"AE54+B61*('Trial 5'!AE35-AE54)/Inputs!B35/12","v":{"v":924557.0697187978,"d":"$924,557"}},{"$f":"AF54+B61*('Trial 5'!AF35-AF54)/Inputs!B35/12","v":{"v":924148.387100551,"d":"$924,148"}},{"$f":"AG54+B61*('Trial 5'!AG35-AG54)/Inputs!B35/12","v":{"v":923775.4051836655,"d":"$923,775"}},{"$f":"AH54+B61*('Trial 5'!AH35-AH54)/Inputs!B35/12","v":{"v":923495.2359172523,"d":"$923,495"}},{"$f":"AI54+B61*('Trial 5'!AI35-AI54)/Inputs!B35/12","v":{"v":923142.069966787,"d":"$923,142"}},{"$f":"AJ54+B61*('Trial 5'!AJ35-AJ54)/Inputs!B35/12","v":{"v":922831.1377106601,"d":"$922,831"}},{"$f":"AK54+B61*('Trial 5'!AK35-AK54)/Inputs!B35/12","v":{"v":922548.781009157,"d":"$922,549"}},{"$f":"AL54+B61*('Trial 5'!AL35-AL54)/Inputs!B35/12","v":{"v":922248.0144200503,"d":"$922,248"}},{"v":11088413.311899269,"d":"$11,088,413"},{"$f":"AM54+B61*('Trial 5'!AM35-AM54)/Inputs!B35/12","v":{"v":921861.850503873,"d":"$921,862"}},{"$f":"AO54+B61*('Trial 5'!AO35-AO54)/Inputs!B35/12","v":{"v":921496.8123520233,"d":"$921,497"}},{"$f":"AP54+B61*('Trial 5'!AP35-AP54)/Inputs!B35/12","v":{"v":921112.3095974792,"d":"$921,112"}},{"$f":"AQ54+B61*('Trial 5'!AQ35-AQ54)/Inputs!B35/12","v":{"v":920695.5164900586,"d":"$920,696"}},{"$f":"AR54+B61*('Trial 5'!AR35-AR54)/Inputs!B35/12","v":{"v":920439.2845638082,"d":"$920,439"}},{"$f":"AS54+B61*('Trial 5'!AS35-AS54)/Inputs!B35/12","v":{"v":920031.4828968206,"d":"$920,031"}},{"$f":"AT54+B61*('Trial 5'!AT35-AT54)/Inputs!B35/12","v":{"v":919684.3294445673,"d":"$919,684"}},{"$f":"AU54+B61*('Trial 5'!AU35-AU54)/Inputs!B35/12","v":{"v":919357.9880510559,"d":"$919,358"}},{"$f":"AV54+B61*('Trial 5'!AV35-AV54)/Inputs!B35/12","v":{"v":919011.1939572031,"d":"$919,011"}},{"$f":"AW54+B61*('Trial 5'!AW35-AW54)/Inputs!B35/12","v":{"v":918561.9401255344,"d":"$918,562"}},{"$f":"AX54+B61*('Trial 5'!AX35-AX54)/Inputs!B35/12","v":{"v":918164.9252399901,"d":"$918,165"}},{"$f":"AY54+B61*('Trial 5'!AY35-AY54)/Inputs!B35/12","v":{"v":917775.9444865108,"d":"$917,776"}},{"v":11038193.577708924,"d":"$11,038,194"},{"$f":"AZ54+B61*('Trial 5'!AZ35-AZ54)/Inputs!B35/12","v":{"v":917456.958670537,"d":"$917,457"}},{"$f":"BB54+B61*('Trial 5'!BB35-BB54)/Inputs!B35/12","v":{"v":916999.9997448571,"d":"$917,000"}},{"$f":"BC54+B61*('Trial 5'!BC35-BC54)/Inputs!B35/12","v":{"v":916652.0131130632,"d":"$916,652"}},{"$f":"BD54+B61*('Trial 5'!BD35-BD54)/Inputs!B35/12","v":{"v":916382.3194221209,"d":"$916,382"}},{"$f":"BE54+B61*('Trial 5'!BE35-BE54)/Inputs!B35/12","v":{"v":916073.2387102314,"d":"$916,073"}},{"$f":"BF54+B61*('Trial 5'!BF35-BF54)/Inputs!B35/12","v":{"v":915671.226969776,"d":"$915,671"}},{"$f":"BG54+B61*('Trial 5'!BG35-BG54)/Inputs!B35/12","v":{"v":915199.0421579365,"d":"$915,199"}},{"$f":"BH54+B61*('Trial 5'!BH35-BH54)/Inputs!B35/12","v":{"v":914923.4227159501,"d":"$914,923"}},{"$f":"BI54+B61*('Trial 5'!BI35-BI54)/Inputs!B35/12","v":{"v":914465.6439454926,"d":"$914,466"}},{"$f":"BJ54+B61*('Trial 5'!BJ35-BJ54)/Inputs!B35/12","v":{"v":914072.5344392528,"d":"$914,073"}},{"$f":"BK54+B61*('Trial 5'!BK35-BK54)/Inputs!B35/12","v":{"v":913762.0019263823,"d":"$913,762"}},{"$f":"BL54+B61*('Trial 5'!BL35-BL54)/Inputs!B35/12","v":{"v":913298.5988963565,"d":"$913,299"}},{"v":10984957.000711957,"d":"$10,984,957"},{"$f":"BM54+B61*('Trial 5'!BM35-BM54)/Inputs!B35/12","v":{"v":912935.1457683156,"d":"$912,935"}},{"$f":"BO54+B61*('Trial 5'!BO35-BO54)/Inputs!B35/12","v":{"v":912459.7583370853,"d":"$912,460"}},{"$f":"BP54+B61*('Trial 5'!BP35-BP54)/Inputs!B35/12","v":{"v":912070.2222059179,"d":"$912,070"}},{"$f":"BQ54+B61*('Trial 5'!BQ35-BQ54)/Inputs!B35/12","v":{"v":911616.020228874,"d":"$911,616"}},{"$f":"BR54+B61*('Trial 5'!BR35-BR54)/Inputs!B35/12","v":{"v":911300.2670439907,"d":"$911,300"}},{"$f":"BS54+B61*('Trial 5'!BS35-BS54)/Inputs!B35/12","v":{"v":910866.4643659284,"d":"$910,866"}},{"$f":"BT54+B61*('Trial 5'!BT35-BT54)/Inputs!B35/12","v":{"v":910513.0357880964,"d":"$910,513"}},{"$f":"BU54+B61*('Trial 5'!BU35-BU54)/Inputs!B35/12","v":{"v":910189.5555072435,"d":"$910,190"}},{"$f":"BV54+B61*('Trial 5'!BV35-BV54)/Inputs!B35/12","v":{"v":909727.1330927338,"d":"$909,727"}},{"$f":"BW54+B61*('Trial 5'!BW35-BW54)/Inputs!B35/12","v":{"v":909323.8727172097,"d":"$909,324"}},{"$f":"BX54+B61*('Trial 5'!BX35-BX54)/Inputs!B35/12","v":{"v":908808.7874662955,"d":"$908,809"}},{"$f":"BY54+B61*('Trial 5'!BY35-BY54)/Inputs!B35/12","v":{"v":908445.2458157369,"d":"$908,445"}},{"v":10928255.508337429,"d":"$10,928,256"},{"$f":"BZ54+B61*('Trial 5'!BZ35-BZ54)/Inputs!B35/12","v":{"v":908048.2451446342,"d":"$908,048"}},{"$f":"CB54+B61*('Trial 5'!CB35-CB54)/Inputs!B35/12","v":{"v":907707.597012176,"d":"$907,708"}},{"$f":"CC54+B61*('Trial 5'!CC35-CC54)/Inputs!B35/12","v":{"v":907275.5903829299,"d":"$907,276"}},{"$f":"CD54+B61*('Trial 5'!CD35-CD54)/Inputs!B35/12","v":{"v":906763.11606292,"d":"$906,763"}},{"$f":"CE54+B61*('Trial 5'!CE35-CE54)/Inputs!B35/12","v":{"v":906292.3160640072,"d":"$906,292"}},{"$f":"CF54+B61*('Trial 5'!CF35-CF54)/Inputs!B35/12","v":{"v":905852.6379408938,"d":"$905,853"}},{"$f":"CG54+B61*('Trial 5'!CG35-CG54)/Inputs!B35/12","v":{"v":905521.3522967242,"d":"$905,521"}},{"$f":"CH54+B61*('Trial 5'!CH35-CH54)/Inputs!B35/12","v":{"v":905213.8393751398,"d":"$905,214"}},{"$f":"CI54+B61*('Trial 5'!CI35-CI54)/Inputs!B35/12","v":{"v":904843.9323945212,"d":"$904,844"}},{"$f":"CJ54+B61*('Trial 5'!CJ35-CJ54)/Inputs!B35/12","v":{"v":904499.5680195474,"d":"$904,500"}},{"$f":"CK54+B61*('Trial 5'!CK35-CK54)/Inputs!B35/12","v":{"v":904074.427605771,"d":"$904,074"}},{"$f":"CL54+B61*('Trial 5'!CL35-CL54)/Inputs!B35/12","v":{"v":903611.8709407644,"d":"$903,612"}},{"v":10869704.493240029,"d":"$10,869,704"},{"$f":"CM54+B61*('Trial 5'!CM35-CM54)/Inputs!B35/12","v":{"v":903163.7378714839,"d":"$903,164"}},{"$f":"CO54+B61*('Trial 5'!CO35-CO54)/Inputs!B35/12","v":{"v":902697.7547027936,"d":"$902,698"}},{"$f":"CP54+B61*('Trial 5'!CP35-CP54)/Inputs!B35/12","v":{"v":902245.3444731099,"d":"$902,245"}},{"$f":"CQ54+B61*('Trial 5'!CQ35-CQ54)/Inputs!B35/12","v":{"v":901892.4488367474,"d":"$901,892"}},{"$f":"CR54+B61*('Trial 5'!CR35-CR54)/Inputs!B35/12","v":{"v":901489.18879542,"d":"$901,489"}},{"$f":"CS54+B61*('Trial 5'!CS35-CS54)/Inputs!B35/12","v":{"v":901034.1494157796,"d":"$901,034"}},{"$f":"CT54+B61*('Trial 5'!CT35-CT54)/Inputs!B35/12","v":{"v":900526.8644597827,"d":"$900,527"}},{"$f":"CU54+B61*('Trial 5'!CU35-CU54)/Inputs!B35/12","v":{"v":900117.090321487,"d":"$900,117"}},{"$f":"CV54+B61*('Trial 5'!CV35-CV54)/Inputs!B35/12","v":{"v":899648.6031422918,"d":"$899,649"}},{"$f":"CW54+B61*('Trial 5'!CW35-CW54)/Inputs!B35/12","v":{"v":899230.3795789549,"d":"$899,230"}},{"$f":"CX54+B61*('Trial 5'!CX35-CX54)/Inputs!B35/12","v":{"v":898719.871503544,"d":"$898,720"}},{"$f":"CY54+B61*('Trial 5'!CY35-CY54)/Inputs!B35/12","v":{"v":898292.7973552542,"d":"$898,293"}},{"v":10809058.23045665,"d":"$10,809,058"},{"$f":"CZ54+B61*('Trial 5'!CZ35-CZ54)/Inputs!B35/12","v":{"v":897899.9032950728,"d":"$897,900"}},{"$f":"DB54+B61*('Trial 5'!DB35-DB54)/Inputs!B35/12","v":{"v":897484.50989008,"d":"$897,485"}},{"$f":"DC54+B61*('Trial 5'!DC35-DC54)/Inputs!B35/12","v":{"v":897021.7786314476,"d":"$897,022"}},{"$f":"DD54+B61*('Trial 5'!DD35-DD54)/Inputs!B35/12","v":{"v":896513.7808679804,"d":"$896,514"}},{"$f":"DE54+B61*('Trial 5'!DE35-DE54)/Inputs!B35/12","v":{"v":896116.1672742722,"d":"$896,116"}},{"$f":"DF54+B61*('Trial 5'!DF35-DF54)/Inputs!B35/12","v":{"v":895782.8690118882,"d":"$895,783"}},{"$f":"DG54+B61*('Trial 5'!DG35-DG54)/Inputs!B35/12","v":{"v":895336.4840637429,"d":"$895,336"}},{"$f":"DH54+B61*('Trial 5'!DH35-DH54)/Inputs!B35/12","v":{"v":894898.8635455209,"d":"$894,899"}},{"$f":"DI54+B61*('Trial 5'!DI35-DI54)/Inputs!B35/12","v":{"v":894469.6502685026,"d":"$894,470"}},{"$f":"DJ54+B61*('Trial 5'!DJ35-DJ54)/Inputs!B35/12","v":{"v":893992.1598576467,"d":"$893,992"}},{"$f":"DK54+B61*('Trial 5'!DK35-DK54)/Inputs!B35/12","v":{"v":893554.5425878579,"d":"$893,555"}},{"$f":"DL54+B61*('Trial 5'!DL35-DL54)/Inputs!B35/12","v":{"v":893002.8328006739,"d":"$893,003"}},{"v":10746073.542094685,"d":"$10,746,074"},{"$f":"DM54+B61*('Trial 5'!DM35-DM54)/Inputs!B35/12","v":{"v":892575.2312682316,"d":"$892,575"}},{"$f":"DO54+B61*('Trial 5'!DO35-DO54)/Inputs!B35/12","v":{"v":892247.1605852391,"d":"$892,247"}},{"$f":"DP54+B61*('Trial 5'!DP35-DP54)/Inputs!B35/12","v":{"v":891778.2132787047,"d":"$891,778"}},{"$f":"DQ54+B61*('Trial 5'!DQ35-DQ54)/Inputs!B35/12","v":{"v":891246.5331974142,"d":"$891,247"}},{"$f":"DR54+B61*('Trial 5'!DR35-DR54)/Inputs!B35/12","v":{"v":890758.7884477262,"d":"$890,759"}},{"$f":"DS54+B61*('Trial 5'!DS35-DS54)/Inputs!B35/12","v":{"v":890252.0998023034,"d":"$890,252"}},{"$f":"DT54+B61*('Trial 5'!DT35-DT54)/Inputs!B35/12","v":{"v":889849.3751836123,"d":"$889,849"}},{"$f":"DU54+B61*('Trial 5'!DU35-DU54)/Inputs!B35/12","v":{"v":889424.3808151858,"d":"$889,424"}},{"$f":"DV54+B61*('Trial 5'!DV35-DV54)/Inputs!B35/12","v":{"v":888974.3587906094,"d":"$888,974"}},{"$f":"DW54+B61*('Trial 5'!DW35-DW54)/Inputs!B35/12","v":{"v":888559.6724167936,"d":"$888,560"}},{"$f":"DX54+B61*('Trial 5'!DX35-DX54)/Inputs!B35/12","v":{"v":888087.744643795,"d":"$888,088"}},{"$f":"DY54+B61*('Trial 5'!DY35-DY54)/Inputs!B35/12","v":{"v":887547.704403224,"d":"$887,548"}},{"v":10681301.262832837,"d":"$10,681,301"},{"$f":"DZ54+B61*('Trial 5'!DZ35-DZ54)/Inputs!B35/12","v":{"v":887082.6106628198,"d":"$887,083"}},{"$f":"EB54+B61*('Trial 5'!EB35-EB54)/Inputs!B35/12","v":{"v":886635.6086145439,"d":"$886,636"}},{"$f":"EC54+B61*('Trial 5'!EC35-EC54)/Inputs!B35/12","v":{"v":886290.7041141546,"d":"$886,291"}},{"$f":"ED54+B61*('Trial 5'!ED35-ED54)/Inputs!B35/12","v":{"v":885806.698619602,"d":"$885,807"}},{"$f":"EE54+B61*('Trial 5'!EE35-EE54)/Inputs!B35/12","v":{"v":885273.6004297114,"d":"$885,274"}},{"$f":"EF54+B61*('Trial 5'!EF35-EF54)/Inputs!B35/12","v":{"v":884814.0890587973,"d":"$884,814"}},{"$f":"EG54+B61*('Trial 5'!EG35-EG54)/Inputs!B35/12","v":{"v":884342.337830605,"d":"$884,342"}},{"$f":"EH54+B61*('Trial 5'!EH35-EH54)/Inputs!B35/12","v":{"v":883927.1418081797,"d":"$883,927"}},{"$f":"EI54+B61*('Trial 5'!EI35-EI54)/Inputs!B35/12","v":{"v":883369.2281608521,"d":"$883,369"}},{"$f":"EJ54+B61*('Trial 5'!EJ35-EJ54)/Inputs!B35/12","v":{"v":882982.8689040845,"d":"$882,983"}},{"$f":"EK54+B61*('Trial 5'!EK35-EK54)/Inputs!B35/12","v":{"v":882476.8461887982,"d":"$882,477"}},{"$f":"EL54+B61*('Trial 5'!EL35-EL54)/Inputs!B35/12","v":{"v":882027.0962132965,"d":"$882,027"}},{"v":10615028.830605445,"d":"$10,615,029"}]
[{"$f":"Labels!B101","v":"Trial 06"},{"$f":"B8-B11+B61*0/Inputs!B35/12","v":{"v":933333.3333333334,"d":"$933,333"}},{"$f":"B55+B61*('Trial 6'!B35-B55)/Inputs!B35/12","v":{"v":933048.5018180658,"d":"$933,049"}},{"$f":"C55+B61*('Trial 6'!C35-C55)/Inputs!B35/12","v":{"v":932674.9781059774,"d":"$932,675"}},{"$f":"D55+B61*('Trial 6'!D35-D55)/Inputs!B35/12","v":{"v":932430.0046112818,"d":"$932,430"}},{"$f":"E55+B61*('Trial 6'!E35-E55)/Inputs!B35/12","v":{"v":932144.7477928333,"d":"$932,145"}},{"$f":"F55+B61*('Trial 6'!F35-F55)/Inputs!B35/12","v":{"v":931749.2592127407,"d":"$931,749"}},{"$f":"G55+B61*('Trial 6'!G35-G55)/Inputs!B35/12","v":{"v":931488.9003978723,"d":"$931,489"}},{"$f":"H55+B61*('Trial 6'!H35-H55)/Inputs!B35/12","v":{"v":931143.4202495692,"d":"$931,143"}},{"$f":"I55+B61*('Trial 6'!I35-I55)/Inputs!B35/12","v":{"v":930896.4792751863,"d":"$930,896"}},{"$f":"J55+B61*('Trial 6'!J35-J55)/Inputs!B35/12","v":{"v":930685.2860523446,"d":"$930,685"}},{"$f":"K55+B61*('Trial 6'!K35-K55)/Inputs!B35/12","v":{"v":930359.0294748405,"d":"$930,359"}},{"$f":"L55+B61*('Trial 6'!L35-L55)/Inputs!B35/12","v":{"v":930081.7514081628,"d":"$930,082"}},{"v":11180035.69173221,"d":"$11,180,036"},{"$f":"M55+B61*('Trial 6'!M35-M55)/Inputs!B35/12","v":{"v":929670.2676212888,"d":"$929,670"}},{"$f":"O55+B61*('Trial 6'!O35-O55)/Inputs!B35/12","v":{"v":929283.595807368,"d":"$929,284"}},{"$f":"P55+B61*('Trial 6'!P35-P55)/Inputs!B35/12","v":{"v":929001.571653708,"d":"$929,002"}},{"$f":"Q55+B61*('Trial 6'!Q35-Q55)/Inputs!B35/12","v":{"v":928807.6431070113,"d":"$928,808"}},{"$f":"R55+B61*('Trial 6'!R35-R55)/Inputs!B35/12","v":{"v":928416.4183109461,"d":"$928,416"}},{"$f":"S55+B61*('Trial 6'!S35-S55)/Inputs!B35/12","v":{"v":928117.6180236577,"d":"$928,118"}},{"$f":"T55+B61*('Trial 6'!T35-T55)/Inputs!B35/12","v":{"v":927899.4467420361,"d":"$927,899"}},{"$f":"U55+B61*('Trial 6'!U35-U55)/Inputs!B35/12","v":{"v":927539.2191015356,"d":"$927,539"}},{"$f":"V55+B61*('Trial 6'!V35-V55)/Inputs!B35/12","v":{"v":927263.80166667,"d":"$927,264"}},{"$f":"W55+B61*('Trial 6'!W35-W55)/Inputs!B35/12","v":{"v":926999.5055312064,"d":"$927,000"}},{"$f":"X55+B61*('Trial 6'!X35-X55)/Inputs!B35/12","v":{"v":926671.7615763485,"d":"$926,672"}},{"$f":"Y55+B61*('Trial 6'!Y35-Y55)/Inputs!B35/12","v":{"v":926299.1452312432,"d":"$926,299"}},{"v":11135969.994373022,"d":"$11,135,970"},{"$f":"Z55+B61*('Trial 6'!Z35-Z55)/Inputs!B35/12","v":{"v":926035.8380691332,"d":"$926,036"}},{"$f":"AB55+B61*('Trial 6'!AB35-AB55)/Inputs!B35/12","v":{"v":925621.416807408,"d":"$925,621"}},{"$f":"AC55+B61*('Trial 6'!AC35-AC55)/Inputs!B35/12","v":{"v":925245.5608524875,"d":"$925,246"}},{"$f":"AD55+B61*('Trial 6'!AD35-AD55)/Inputs!B35/12","v":{"v":925013.2640144307,"d":"$925,013"}},{"$f":"AE55+B61*('Trial 6'!AE35-AE55)/Inputs!B35/12","v":{"v":924661.005532818,"d":"$924,661"}},{"$f":"AF55+B61*('Trial 6'!AF35-AF55)/Inputs!B35/12","v":{"v":924428.3167433072,"d":"$924,428"}},{"$f":"AG55+B61*('Trial 6'!AG35-AG55)/Inputs!B35/12","v":{"v":924159.9007864714,"d":"$924,160"}},{"$f":"AH55+B61*('Trial 6'!AH35-AH55)/Inputs!B35/12","v":{"v":923842.0181562158,"d":"$923,842"}},{"$f":"AI55+B61*('Trial 6'!AI35-AI55)/Inputs!B35/12","v":{"v":923427.3912678645,"d":"$923,427"}},{"$f":"AJ55+B61*('Trial 6'!AJ35-AJ55)/Inputs!B35/12","v":{"v":923198.0762548879,"d":"$923,198"}},{"$f":"AK55+B61*('Trial 6'!AK35-AK55)/Inputs!B35/12","v":{"v":922796.8914067573,"d":"$922,797"}},{"$f":"AL55+B61*('Trial 6'!AL35-AL55)/Inputs!B35/12","v":{"v":922338.4681857255,"d":"$922,338"}},{"v":11090768.148077507,"d":"$11,090,768"},{"$f":"AM55+B61*('Trial 6'!AM35-AM55)/Inputs!B35/12","v":{"v":921962.1574480801,"d":"$921,962"}},{"$f":"AO55+B61*('Trial 6'!AO35-AO55)/Inputs!B35/12","v":{"v":921681.9611771503,"d":"$921,682"}},{"$f":"AP55+B61*('Trial 6'!AP35-AP55)/Inputs!B35/12","v":{"v":921315.6602318275,"d":"$921,316"}},{"$f":"AQ55+B61*('Trial 6'!AQ35-AQ55)/Inputs!B35/12","v":{"v":920987.9136881761,"d":"$920,988"}},{"$f":"AR55+B61*('Trial 6'!AR35-AR55)/Inputs!B35/12","v":{"v":920723.967674125,"d":"$920,724"}},{"$f":"AS55+B61*('Trial 6'!AS35-AS55)/Inputs!B35/12","v":{"v":920318.8938536801,"d":"$920,319"}},{"$f":"AT55+B61*('Trial 6'!AT35-AT55)/Inputs!B35/12","v":{"v":919864.4079695144,"d":"$919,864"}},{"$f":"AU55+B61*('Trial 6'!AU35-AU55)/Inputs!B35/12","v":{"v":919554.1667283892,"d":"$919,554"}},{"$f":"AV55+B61*('Trial 6'!AV35-AV55)/Inputs!B35/12","v":{"v":919185.2042356781,"d":"$919,185"}},{"$f":"AW55+B61*('Trial 6'!AW35-AW55)/Inputs!B35/12","v":{"v":918773.7367529405,"d":"$918,774"}},{"$f":"AX55+B61*('Trial 6'!AX35-AX55)/Inputs!B35/12","v":{"v":918398.8387492902,"d":"$918,399"}},{"$f":"AY55+B61*('Trial 6'!AY35-AY55)/Inputs!B35/12","v":{"v":918017.4753617838,"d":"$918,017"}},{"v":11040784.383870633,"d":"$11,040,784"},{"$f":"AZ55+B61*('Trial 6'!AZ35-AZ55)/Inputs!B35/12","v":{"v":917767.5524902749,"d":"$917,768"}},{"$f":"BB55+B61*('Trial 6'!BB35-BB55)/Inputs!B35/12","v":{"v":917470.8923438617,"d":"$917,471"}},{"$f":"BC55+B61*('Trial 6'!BC35-BC55)/Inputs!B35/12","v":{"v":917105.4519134578,"d":"$917,105"}},{"$f":"BD55+B61*('Trial 6'!BD35-BD55)/Inputs!B35/12","v":{"v":916814.7488180092,"d":"$916,815"}},{"$f":"BE55+B61*('Trial 6'!BE35-BE55)/Inputs!B35/12","v":{"v":916440.2623835603,"d":"$916,440"}},{"$f":"BF55+B61*('Trial 6'!BF35-BF55)/Inputs!B35/12","v":{"v":915998.2681115416,"d":"$915,998"}},{"$f":"BG55+B61*('Trial 6'!BG35-BG55)/Inputs!B35/12","v":{"v":915565.2642445655,"d":"$915,565"}},{"$f":"BH55+B61*('Trial 6'!BH35-BH55)/Inputs!B35/12","v":{"v":915207.8775545883,"d":"$915,208"}},{"$f":"BI55+B61*('Trial 6'!BI35-BI55)/Inputs!B35/12","v":{"v":914813.6576650019,"d":"$914,814"}},{"$f":"BJ55+B61*('Trial 6'!BJ35-BJ55)/Inputs!B35/12","v":{"v":914471.545812387,"d":"$914,472"}},{"$f":"BK55+B61*('Trial 6'!BK35-BK55)/Inputs!B35/12","v":{"v":914136.0155895967,"d":"$914,136"}},{"$f":"BL55+B61*('Trial 6'!BL35-BL55)/Inputs!B35/12","v":{"v":913810.386153924,"d":"$913,810"}},{"v":10989601.923080768,"d":"$10,989,602"},{"$f":"BM55+B61*('Trial 6'!BM35-BM55)/Inputs!B35/12","v":{"v":913384.2419906314,"d":"$913,384"}},{"$f":"BO55+B61*('Trial 6'!BO35-BO55)/Inputs!B35/12","v":{"v":912994.4673565003,"d":"$912,994"}},{"$f":"BP55+B61*('Trial 6'!BP35-BP55)/Inputs!B35/12","v":{"v":912666.7311163516,"d":"$912,667"}},{"$f":"BQ55+B61*('Trial 6'!BQ35-BQ55)/Inputs!B35/12","v":{"v":912263.5503733855,"d":"$912,264"}},{"$f":"BR55+B61*('Trial 6'!BR35-BR55)/Inputs!B35/12","v":{"v":911860.2313221137,"d":"$911,860"}},{"$f":"BS55+B61*('Trial 6'!BS35-BS55)/Inputs!B35/12","v":{"v":911529.0585721497,"d":"$911,529"}},{"$f":"BT55+B61*('Trial 6'!BT35-BT55)/Inputs!B35/12","v":{"v":911198.3115172841,"d":"$911,198"}},{"$f":"BU55+B61*('Trial 6'!BU35-BU55)/Inputs!B35/12","v":{"v":910775.0486990606,"d":"$910,775"}},{"$f":"BV55+B61*('Trial 6'!BV35-BV55)/Inputs!B35/12","v":{"v":910417.3845492458,"d":"$910,417"}},{"$f":"BW55+B61*('Trial 6'!BW35-BW55)/Inputs!B35/12","v":{"v":910086.8251866683,"d":"$910,087"}},{"$f":"BX55+B61*('Trial 6'!BX35-BX55)/Inputs!B35/12","v":{"v":909654.1704500727,"d":"$909,654"}},{"$f":"BY55+B61*('Trial 6'!BY35-BY55)/Inputs!B35/12","v":{"v":909297.3731297147,"d":"$909,297"}},{"v":10936127.394263178,"d":"$10,936,127"},{"$f":"BZ55+B61*('Trial 6'!BZ35-BZ55)/Inputs!B35/12","v":{"v":908888.7158432241,"d":"$908,889"}},{"$f":"CB55+B61*('Trial 6'!CB35-CB55)/Inputs!B35/12","v":{"v":908436.8006220371,"d":"$908,437"}},{"$f":"CC55+B61*('Trial 6'!CC35-CC55)/Inputs!B35/12","v":{"v":908015.1910137114,"d":"$908,015"}},{"$f":"CD55+B61*('Trial 6'!CD35-CD55)/Inputs!B35/12","v":{"v":907625.3925883924,"d":"$907,625"}},{"$f":"CE55+B61*('Trial 6'!CE35-CE55)/Inputs!B35/12","v":{"v":907213.7166058666,"d":"$907,214"}},{"$f":"CF55+B61*('Trial 6'!CF35-CF55)/Inputs!B35/12","v":{"v":906752.4915901631,"d":"$906,752"}},{"$f":"CG55+B61*('Trial 6'!CG35-CG55)/Inputs!B35/12","v":{"v":906383.0171315228,"d":"$906,383"}},{"$f":"CH55+B61*('Trial 6'!CH35-CH55)/Inputs!B35/12","v":{"v":905860.1465813643,"d":"$905,860"}},{"$f":"CI55+B61*('Trial 6'!CI35-CI55)/Inputs!B35/12","v":{"v":905497.5859004876,"d":"$905,498"}},{"$f":"CJ55+B61*('Trial 6'!CJ35-CJ55)/Inputs!B35/12","v":{"v":905036.3423634373,"d":"$905,036"}},{"$f":"CK55+B61*('Trial 6'!CK35-CK55)/Inputs!B35/12","v":{"v":904688.485671703,"d":"$904,688"}},{"$f":"CL55+B61*('Trial 6'!CL35-CL55)/Inputs!B35/12","v":{"v":904184.6505766769,"d":"$904,185"}},{"v":10878582.536488587,"d":"$10,878,583"},{"$f":"CM55+B61*('Trial 6'!CM35-CM55)/Inputs!B35/12","v":{"v":903702.9039870858,"d":"$903,703"}},{"$f":"CO55+B61*('Trial 6'!CO35-CO55)/Inputs!B35/12","v":{"v":903303.59033654,"d":"$903,304"}},{"$f":"CP55+B61*('Trial 6'!CP35-CP55)/Inputs!B35/12","v":{"v":902772.5860209983,"d":"$902,773"}},{"$f":"CQ55+B61*('Trial 6'!CQ35-CQ55)/Inputs!B35/12","v":{"v":902239.8836693956,"d":"$902,240"}},{"$f":"CR55+B61*('Trial 6'!CR35-CR55)/Inputs!B35/12","v":{"v":901873.9595247733,"d":"$901,874"}},{"$f":"CS55+B61*('Trial 6'!CS35-CS55)/Inputs!B35/12","v":{"v":901486.5135967619,"d":"$901,487"}},{"$f":"CT55+B61*('Trial 6'!CT35-CT55)/Inputs!B35/12","v":{"v":901045.9239721075,"d":"$901,046"}},{"$f":"CU55+B61*('Trial 6'!CU35-CU55)/Inputs!B35/12","v":{"v":900678.7783244564,"d":"$900,679"}},{"$f":"CV55+B61*('Trial 6'!CV35-CV55)/Inputs!B35/12","v":{"v":900293.4805311915,"d":"$900,293"}},{"$f":"CW55+B61*('Trial 6'!CW35-CW55)/Inputs!B35/12","v":{"v":899837.7736003242,"d":"$899,838"}},{"$f":"CX55+B61*('Trial 6'!CX35-CX55)/Inputs!B35/12","v":{"v":899378.901536814,"d":"$899,379"}},{"$f":"CY55+B61*('Trial 6'!CY35-CY55)/Inputs!B35/12","v":{"v":899001.4149071052,"d":"$899,001"}},{"v":10815615.710007556,"d":"$10,815,616"},{"$f":"CZ55+B61*('Trial 6'!CZ35-CZ55)/Inputs!B35/12","v":{"v":898620.8544610224,"d":"$898,621"}},{"$f":"DB55+B61*('Trial 6'!DB35-DB55)/Inputs!B35/12","v":{"v":898205.011858805,"d":"$898,205"}},{"$f":"DC55+B61*('Trial 6'!DC35-DC55)/Inputs!B35/12","v":{"v":897768.773595584,"d":"$897,769"}},{"$f":"DD55+B61*('Trial 6'!DD35-DD55)/Inputs!B35/12","v":{"v":897332.4359636313,"d":"$897,332"}},{"$f":"DE55+B61*('Trial 6'!DE35-DE55)/Inputs!B35/12","v":{"v":896915.5422323861,"d":"$896,916"}},{"$f":"DF55+B61*('Trial 6'!DF35-DF55)/Inputs!B35/12","v":{"v":896444.07480521,"d":"$896,444"}},{"$f":"DG55+B61*('Trial 6'!DG35-DG55)/Inputs!B35/12","v":{"v":895990.0242595291,"d":"$895,990"}},{"$f":"DH55+B61*('Trial 6'!DH35-DH55)/Inputs!B35/12","v":{"v":895549.4126989596,"d":"$895,549"}},{"$f":"DI55+B61*('Trial 6'!DI35-DI55)/Inputs!B35/12","v":{"v":895113.9729905681,"d":"$895,114"}},{"$f":"DJ55+B61*('Trial 6'!DJ35-DJ55)/Inputs!B35/12","v":{"v":894659.4705972833,"d":"$894,659"}},{"$f":"DK55+B61*('Trial 6'!DK35-DK55)/Inputs!B35/12","v":{"v":894288.2506095888,"d":"$894,288"}},{"$f":"DL55+B61*('Trial 6'!DL35-DL55)/Inputs!B35/12","v":{"v":893792.3545436785,"d":"$893,792"}},{"v":10754680.178616248,"d":"$10,754,680"},{"$f":"DM55+B61*('Trial 6'!DM35-DM55)/Inputs!B35/12","v":{"v":893349.6412921038,"d":"$893,350"}},{"$f":"DO55+B61*('Trial 6'!DO35-DO55)/Inputs!B35/12","v":{"v":892953.2406684941,"d":"$892,953"}},{"$f":"DP55+B61*('Trial 6'!DP35-DP55)/Inputs!B35/12","v":{"v":892471.0778144777,"d":"$892,471"}},{"$f":"DQ55+B61*('Trial 6'!DQ35-DQ55)/Inputs!B35/12","v":{"v":892060.584696971,"d":"$892,061"}},{"$f":"DR55+B61*('Trial 6'!DR35-DR55)/Inputs!B35/12","v":{"v":891652.5758465296,"d":"$891,653"}},{"$f":"DS55+B61*('Trial 6'!DS35-DS55)/Inputs!B35/12","v":{"v":891238.6513876385,"d":"$891,239"}},{"$f":"DT55+B61*('Trial 6'!DT35-DT55)/Inputs!B35/12","v":{"v":890788.0241384091,"d":"$890,788"}},{"$f":"DU55+B61*('Trial 6'!DU35-DU55)/Inputs!B35/12","v":{"v":890419.8458970552,"d":"$890,420"}},{"$f":"DV55+B61*('Trial 6'!DV35-DV55)/Inputs!B35/12","v":{"v":889930.0438079304,"d":"$889,930"}},{"$f":"DW55+B61*('Trial 6'!DW35-DW55)/Inputs!B35/12","v":{"v":889467.2058697079,"d":"$889,467"}},{"$f":"DX55+B61*('Trial 6'!DX35-DX55)/Inputs!B35/12","v":{"v":889017.7383766408,"d":"$889,018"}},{"$f":"DY55+B61*('Trial 6'!DY35-DY55)/Inputs!B35/12","v":{"v":888632.7701510006,"d":"$888,633"}},{"v":10691981.399946958,"d":"$10,691,981"},{"$f":"DZ55+B61*('Trial 6'!DZ35-DZ55)/Inputs!B35/12","v":{"v":888138.9923538431,"d":"$888,139"}},{"$f":"EB55+B61*('Trial 6'!EB35-EB55)/Inputs!B35/12","v":{"v":887620.9460705102,"d":"$887,621"}},{"$f":"EC55+B61*('Trial 6'!EC35-EC55)/Inputs!B35/12","v":{"v":887224.7528304238,"d":"$887,225"}},{"$f":"ED55+B61*('Trial 6'!ED35-ED55)/Inputs!B35/12","v":{"v":886738.383883438,"d":"$886,738"}},{"$f":"EE55+B61*('Trial 6'!EE35-EE55)/Inputs!B35/12","v":{"v":886291.4952260124,"d":"$886,291"}},{"$f":"EF55+B61*('Trial 6'!EF35-EF55)/Inputs!B35/12","v":{"v":885782.3414653105,"d":"$885,782"}},{"$f":"EG55+B61*('Trial 6'!EG35-EG55)/Inputs!B35/12","v":{"v":885429.1691375371,"d":"$885,429"}},{"$f":"EH55+B61*('Trial 6'!EH35-EH55)/Inputs!B35/12","v":{"v":884926.0598491459,"d":"$884,926"}},{"$f":"EI55+B61*('Trial 6'!EI35-EI55)/Inputs!B35/12","v":{"v":884519.0741650934,"d":"$884,519"}},{"$f":"EJ55+B61*('Trial 6'!EJ35-EJ55)/Inputs!B35/12","v":{"v":884152.6662909467,"d":"$884,153"}},{"$f":"EK55+B61*('Trial 6'!EK35-EK55)/Inputs!B35/12","v":{"v":883729.2465557426,"d":"$883,729"}},{"$f":"EL55+B61*('Trial 6'!EL35-EL55)/Inputs!B35/12","v":{"v":883288.9543615398,"d":"$883,289"}},{"v":10627842.082189543,"d":"$10,627,842"}]
[{"$f":"Labels!B102","v":"Trial 07"},{"$f":"B8-B11+B61*0/Inputs!B35/12","v":{"v":933333.3333333334,"d":"$933,333"}},{"$f":"B56+B61*('Trial 7'!B35-B56)/Inputs!B35/12","v":{"v":933134.5171322409,"d":"$933,135"}},{"$f":"C56+B61*('Trial 7'!C35-C56)/Inputs!B35/12","v":{"v":932952.444308477,"d":"$932,952"}},{"$f":"D56+B61*('Trial 7'!D35-D56)/Inputs!B35/12","v":{"v":932593.5994992952,"d":"$932,594"}},{"$f":"E56+B61*('Trial 7'!E35-E56)/Inputs!B35/12","v":{"v":932241.752174219,"d":"$932,242"}},{"$f":"F56+B61*('Trial 7'!F35-F56)/Inputs!B35/12","v":{"v":931853.5492532653,"d":"$931,854"}},{"$f":"G56+B61*('Trial 7'!G35-G56)/Inputs!B35/12","v":{"v":931489.3853226659,"d":"$931,489"}},{"$f":"H56+B61*('Trial 7'!H35-H56)/Inputs!B35/12","v":{"v":931251.0675112549,"d":"$931,251"}},{"$f":"I56+B61*('Trial 7'!I35-I56)/Inputs!B35/12","v":{"v":930989.5701589177,"d":"$930,990"}},{"$f":"J56+B61*('Trial 7'!J35-J56)/Inputs!B35/12","v":{"v":930667.5556512366,"d":"$930,668"}},{"$f":"K56+B61*('Trial 7'!K35-K56)/Inputs!B35/12","v":{"v":930317.0849281721,"d":"$930,317"}},{"$f":"L56+B61*('Trial 7'!L35-L56)/Inputs!B35/12","v":{"v":930014.0840095284,"d":"$930,014"}},{"v":11180837.943282606,"d":"$11,180,838"},{"$f":"M56+B61*('Trial 7'!M35-M56)/Inputs!B35/12","v":{"v":929740.5577173047,"d":"$929,741"}},{"$f":"O56+B61*('Trial 7'!O35-O56)/Inputs!B35/12","v":{"v":929434.5023995772,"d":"$929,435"}},{"$f":"P56+B61*('Trial 7'!P35-P56)/Inputs!B35/12","v":{"v":929197.0890594271,"d":"$929,197"}},{"$f":"Q56+B61*('Trial 7'!Q35-Q56)/Inputs!B35/12","v":{"v":928919.8557047107,"d":"$928,920"}},{"$f":"R56+B61*('Trial 7'!R35-R56)/Inputs!B35/12","v":{"v":928726.9251771518,"d":"$928,727"}},{"$f":"S56+B61*('Trial 7'!S35-S56)/Inputs!B35/12","v":{"v":928394.3847484537,"d":"$928,394"}},{"$f":"T56+B61*('Trial 7'!T35-T56)/Inputs!B35/12","v":{"v":928143.934438027,"d":"$928,144"}},{"$f":"U56+B61*('Trial 7'!U35-U56)/Inputs!B35/12","v":{"v":927811.0418721264,"d":"$927,811"}},{"$f":"V56+B61*('Trial 7'!V35-V56)/Inputs!B35/12","v":{"v":927540.8191279677,"d":"$927,541"}},{"$f":"W56+B61*('Trial 7'!W35-W56)/Inputs!B35/12","v":{"v":927127.7133222735,"d":"$927,128"}},{"$f":"X56+B61*('Trial 7'!X35-X56)/Inputs!B35/12","v":{"v":926773.6804103819,"d":"$926,774"}},{"$f":"Y56+B61*('Trial 7'!Y35-Y56)/Inputs!B35/12","v":{"v":926506.7810040773,"d":"$926,507"}},{"v":11138317.284981478,"d":"$11,138,317"},{"$f":"Z56+B61*('Trial 7'!Z35-Z56)/Inputs!B35/12","v":{"v":926223.9132674474,"d":"$926,224"}},{"$f":"AB56+B61*('Trial 7'!AB35-AB56)/Inputs!B35/12","v":{"v":925885.8331456308,"d":"$925,886"}},{"$f":"AC56+B61*('Trial 7'!AC35-AC56)/Inputs!B35/12","v":{"v":925619.7991847807,"d":"$925,620"}},{"$f":"AD56+B61*('Trial 7'!AD35-AD56)/Inputs!B35/12","v":{"v":925343.8298596379,"d":"$925,344"}},{"$f":"AE56+B61*('Trial 7'!AE35-AE56)/Inputs!B35/12","v":{"v":925011.8958614856,"d":"$925,012"}},{"$f":"AF56+B61*('Trial 7'!AF35-AF56)/Inputs!B35/12","v":{"v":924796.9104769512,"d":"$924,797"}},{"$f":"AG56+B61*('Trial 7'!AG35-AG56)/Inputs!B35/12","v":{"v":924442.2461672719,"d":"$924,442"}},{"$f":"AH56+B61*('Trial 7'!AH35-AH56)/Inputs!B35/12","v":{"v":924097.4898529049,"d":"$924,097"}},{"$f":"AI56+B61*('Trial 7'!AI35-AI56)/Inputs!B35/12","v":{"v":923701.5104012553,"d":"$923,702"}},{"$f":"AJ56+B61*('Trial 7'!AJ35-AJ56)/Inputs!B35/12","v":{"v":923308.871119556,"d":"$923,309"}},{"$f":"AK56+B61*('Trial 7'!AK35-AK56)/Inputs!B35/12","v":{"v":923006.164028023,"d":"$923,006"}},{"$f":"AL56+B61*('Trial 7'!AL35-AL56)/Inputs!B35/12","v":{"v":922680.1795432382,"d":"$922,680"}},{"v":11094118.642908182,"d":"$11,094,119"},{"$f":"AM56+B61*('Trial 7'!AM35-AM56)/Inputs!B35/12","v":{"v":922274.5440414314,"d":"$922,275"}},{"$f":"AO56+B61*('Trial 7'!AO35-AO56)/Inputs!B35/12","v":{"v":921863.5894528383,"d":"$921,864"}},{"$f":"AP56+B61*('Trial 7'!AP35-AP56)/Inputs!B35/12","v":{"v":921472.2615632566,"d":"$921,472"}},{"$f":"AQ56+B61*('Trial 7'!AQ35-AQ56)/Inputs!B35/12","v":{"v":921110.8738812332,"d":"$921,111"}},{"$f":"AR56+B61*('Trial 7'!AR35-AR56)/Inputs!B35/12","v":{"v":920676.6880392734,"d":"$920,677"}},{"$f":"AS56+B61*('Trial 7'!AS35-AS56)/Inputs!B35/12","v":{"v":920264.1181520093,"d":"$920,264"}},{"$f":"AT56+B61*('Trial 7'!AT35-AT56)/Inputs!B35/12","v":{"v":919831.9957052371,"d":"$919,832"}},{"$f":"AU56+B61*('Trial 7'!AU35-AU56)/Inputs!B35/12","v":{"v":919500.1851944396,"d":"$919,500"}},{"$f":"AV56+B61*('Trial 7'!AV35-AV56)/Inputs!B35/12","v":{"v":919197.868382982,"d":"$919,198"}},{"$f":"AW56+B61*('Trial 7'!AW35-AW56)/Inputs!B35/12","v":{"v":918898.9197574175,"d":"$918,899"}},{"$f":"AX56+B61*('Trial 7'!AX35-AX56)/Inputs!B35/12","v":{"v":918574.7003573326,"d":"$918,575"}},{"$f":"AY56+B61*('Trial 7'!AY35-AY56)/Inputs!B35/12","v":{"v":918239.6418240707,"d":"$918,240"}},{"v":11041905.386351522,"d":"$11,041,905"},{"$f":"AZ56+B61*('Trial 7'!AZ35-AZ56)/Inputs!B35/12","v":{"v":917905.5784493713,"d":"$917,906"}},{"$f":"BB56+B61*('Trial 7'!BB35-BB56)/Inputs!B35/12","v":{"v":917514.2074361396,"d":"$917,514"}},{"$f":"BC56+B61*('Trial 7'!BC35-BC56)/Inputs!B35/12","v":{"v":917163.0109657663,"d":"$917,163"}},{"$f":"BD56+B61*('Trial 7'!BD35-BD56)/Inputs!B35/12","v":{"v":916880.8989331843,"d":"$916,881"}},{"$f":"BE56+B61*('Trial 7'!BE35-BE56)/Inputs!B35/12","v":{"v":916504.6407420549,"d":"$916,505"}},{"$f":"BF56+B61*('Trial 7'!BF35-BF56)/Inputs!B35/12","v":{"v":916075.1478294631,"d":"$916,075"}},{"$f":"BG56+B61*('Trial 7'!BG35-BG56)/Inputs!B35/12","v":{"v":915682.6284424418,"d":"$915,683"}},{"$f":"BH56+B61*('Trial 7'!BH35-BH56)/Inputs!B35/12","v":{"v":915256.0114550672,"d":"$915,256"}},{"$f":"BI56+B61*('Trial 7'!BI35-BI56)/Inputs!B35/12","v":{"v":914797.2039915192,"d":"$914,797"}},{"$f":"BJ56+B61*('Trial 7'!BJ35-BJ56)/Inputs!B35/12","v":{"v":914444.3580692491,"d":"$914,444"}},{"$f":"BK56+B61*('Trial 7'!BK35-BK56)/Inputs!B35/12","v":{"v":914116.87442924,"d":"$914,117"}},{"$f":"BL56+B61*('Trial 7'!BL35-BL56)/Inputs!B35/12","v":{"v":913739.5398710757,"d":"$913,740"}},{"v":10990080.100614574,"d":"$10,990,080"},{"$f":"BM56+B61*('Trial 7'!BM35-BM56)/Inputs!B35/12","v":{"v":913257.3026367323,"d":"$913,257"}},{"$f":"BO56+B61*('Trial 7'!BO35-BO56)/Inputs!B35/12","v":{"v":912806.0412147038,"d":"$912,806"}},{"$f":"BP56+B61*('Trial 7'!BP35-BP56)/Inputs!B35/12","v":{"v":912387.2259082049,"d":"$912,387"}},{"$f":"BQ56+B61*('Trial 7'!BQ35-BQ56)/Inputs!B35/12","v":{"v":911978.20470705,"d":"$911,978"}},{"$f":"BR56+B61*('Trial 7'!BR35-BR56)/Inputs!B35/12","v":{"v":911680.127722244,"d":"$911,680"}},{"$f":"BS56+B61*('Trial 7'!BS35-BS56)/Inputs!B35/12","v":{"v":911368.4534567541,"d":"$911,368"}},{"$f":"BT56+B61*('Trial 7'!BT35-BT56)/Inputs!B35/12","v":{"v":910949.9348868341,"d":"$910,950"}},{"$f":"BU56+B61*('Trial 7'!BU35-BU56)/Inputs!B35/12","v":{"v":910491.6675503011,"d":"$910,492"}},{"$f":"BV56+B61*('Trial 7'!BV35-BV56)/Inputs!B35/12","v":{"v":910088.8497846929,"d":"$910,089"}},{"$f":"BW56+B61*('Trial 7'!BW35-BW56)/Inputs!B35/12","v":{"v":909711.2009283381,"d":"$909,711"}},{"$f":"BX56+B61*('Trial 7'!BX35-BX56)/Inputs!B35/12","v":{"v":909312.2577377076,"d":"$909,312"}},{"$f":"BY56+B61*('Trial 7'!BY35-BY56)/Inputs!B35/12","v":{"v":908967.4106987243,"d":"$908,967"}},{"v":10932998.677232286,"d":"$10,932,999"},{"$f":"BZ56+B61*('Trial 7'!BZ35-BZ56)/Inputs!B35/12","v":{"v":908591.3509512729,"d":"$908,591"}},{"$f":"CB56+B61*('Trial 7'!CB35-CB56)/Inputs!B35/12","v":{"v":908178.3331880695,"d":"$908,178"}},{"$f":"CC56+B61*('Trial 7'!CC35-CC56)/Inputs!B35/12","v":{"v":907714.1706442065,"d":"$907,714"}},{"$f":"CD56+B61*('Trial 7'!CD35-CD56)/Inputs!B35/12","v":{"v":907339.5772217507,"d":"$907,340"}},{"$f":"CE56+B61*('Trial 7'!CE35-CE56)/Inputs!B35/12","v":{"v":906934.1833476572,"d":"$906,934"}},{"$f":"CF56+B61*('Trial 7'!CF35-CF56)/Inputs!B35/12","v":{"v":906427.3059824245,"d":"$906,427"}},{"$f":"CG56+B61*('Trial 7'!CG35-CG56)/Inputs!B35/12","v":{"v":906010.2251181487,"d":"$906,010"}},{"$f":"CH56+B61*('Trial 7'!CH35-CH56)/Inputs!B35/12","v":{"v":905499.6369716757,"d":"$905,500"}},{"$f":"CI56+B61*('Trial 7'!CI35-CI56)/Inputs!B35/12","v":{"v":904982.5849749978,"d":"$904,983"}},{"$f":"CJ56+B61*('Trial 7'!CJ35-CJ56)/Inputs!B35/12","v":{"v":904568.144002017,"d":"$904,568"}},{"$f":"CK56+B61*('Trial 7'!CK35-CK56)/Inputs!B35/12","v":{"v":904211.9147751457,"d":"$904,212"}},{"$f":"CL56+B61*('Trial 7'!CL35-CL56)/Inputs!B35/12","v":{"v":903803.6909890163,"d":"$903,804"}},{"v":10874261.118166383,"d":"$10,874,261"},{"$f":"CM56+B61*('Trial 7'!CM35-CM56)/Inputs!B35/12","v":{"v":903297.2002092407,"d":"$903,297"}},{"$f":"CO56+B61*('Trial 7'!CO35-CO56)/Inputs!B35/12","v":{"v":902847.6074911996,"d":"$902,848"}},{"$f":"CP56+B61*('Trial 7'!CP35-CP56)/Inputs!B35/12","v":{"v":902465.2169332411,"d":"$902,465"}},{"$f":"CQ56+B61*('Trial 7'!CQ35-CQ56)/Inputs!B35/12","v":{"v":902030.5652527536,"d":"$902,031"}},{"$f":"CR56+B61*('Trial 7'!CR35-CR56)/Inputs!B35/12","v":{"v":901621.2197822134,"d":"$901,621"}},{"$f":"CS56+B61*('Trial 7'!CS35-CS56)/Inputs!B35/12","v":{"v":901291.2554852655,"d":"$901,291"}},{"$f":"CT56+B61*('Trial 7'!CT35-CT56)/Inputs!B35/12","v":{"v":900873.4660208498,"d":"$900,873"}},{"$f":"CU56+B61*('Trial 7'!CU35-CU56)/Inputs!B35/12","v":{"v":900434.582859995,"d":"$900,435"}},{"$f":"CV56+B61*('Trial 7'!CV35-CV56)/Inputs!B35/12","v":{"v":900039.9691879868,"d":"$900,040"}},{"$f":"CW56+B61*('Trial 7'!CW35-CW56)/Inputs!B35/12","v":{"v":899631.5707345064,"d":"$899,632"}},{"$f":"CX56+B61*('Trial 7'!CX35-CX56)/Inputs!B35/12","v":{"v":899304.7350151904,"d":"$899,305"}},{"$f":"CY56+B61*('Trial 7'!CY35-CY56)/Inputs!B35/12","v":{"v":898961.3427007523,"d":"$898,961"}},{"v":10812798.731673194,"d":"$10,812,799"},{"$f":"CZ56+B61*('Trial 7'!CZ35-CZ56)/Inputs!B35/12","v":{"v":898530.631741147,"d":"$898,531"}},{"$f":"DB56+B61*('Trial 7'!DB35-DB56)/Inputs!B35/12","v":{"v":898009.5411251553,"d":"$898,010"}},{"$f":"DC56+B61*('Trial 7'!DC35-DC56)/Inputs!B35/12","v":{"v":897581.799379256,"d":"$897,582"}},{"$f":"DD56+B61*('Trial 7'!DD35-DD56)/Inputs!B35/12","v":{"v":897180.3621319096,"d":"$897,180"}},{"$f":"DE56+B61*('Trial 7'!DE35-DE56)/Inputs!B35/12","v":{"v":896644.2627757216,"d":"$896,644"}},{"$f":"DF56+B61*('Trial 7'!DF35-DF56)/Inputs!B35/12","v":{"v":896230.2650602183,"d":"$896,230"}},{"$f":"DG56+B61*('Trial 7'!DG35-DG56)/Inputs!B35/12","v":{"v":895823.06886369,"d":"$895,823"}},{"$f":"DH56+B61*('Trial 7'!DH35-DH56)/Inputs!B35/12","v":{"v":895313.1677924985,"d":"$895,313"}},{"$f":"DI56+B61*('Trial 7'!DI35-DI56)/Inputs!B35/12","v":{"v":894928.0524609104,"d":"$894,928"}},{"$f":"DJ56+B61*('Trial 7'!DJ35-DJ56)/Inputs!B35/12","v":{"v":894550.6264443907,"d":"$894,551"}},{"$f":"DK56+B61*('Trial 7'!DK35-DK56)/Inputs!B35/12","v":{"v":894012.2433742033,"d":"$894,012"}},{"$f":"DL56+B61*('Trial 7'!DL35-DL56)/Inputs!B35/12","v":{"v":893580.8273494554,"d":"$893,581"}},{"v":10752384.848498555,"d":"$10,752,385"},{"$f":"DM56+B61*('Trial 7'!DM35-DM56)/Inputs!B35/12","v":{"v":893208.6571791002,"d":"$893,209"}},{"$f":"DO56+B61*('Trial 7'!DO35-DO56)/Inputs!B35/12","v":{"v":892734.3252975416,"d":"$892,734"}},{"$f":"DP56+B61*('Trial 7'!DP35-DP56)/Inputs!B35/12","v":{"v":892356.3067905566,"d":"$892,356"}},{"$f":"DQ56+B61*('Trial 7'!DQ35-DQ56)/Inputs!B35/12","v":{"v":891963.7392110988,"d":"$891,964"}},{"$f":"DR56+B61*('Trial 7'!DR35-DR56)/Inputs!B35/12","v":{"v":891446.0590852938,"d":"$891,446"}},{"$f":"DS56+B61*('Trial 7'!DS35-DS56)/Inputs!B35/12","v":{"v":891093.2891374188,"d":"$891,093"}},{"$f":"DT56+B61*('Trial 7'!DT35-DT56)/Inputs!B35/12","v":{"v":890574.8806826501,"d":"$890,575"}},{"$f":"DU56+B61*('Trial 7'!DU35-DU56)/Inputs!B35/12","v":{"v":890138.9847316905,"d":"$890,139"}},{"$f":"DV56+B61*('Trial 7'!DV35-DV56)/Inputs!B35/12","v":{"v":889624.3664143878,"d":"$889,624"}},{"$f":"DW56+B61*('Trial 7'!DW35-DW56)/Inputs!B35/12","v":{"v":889244.8295890572,"d":"$889,245"}},{"$f":"DX56+B61*('Trial 7'!DX35-DX56)/Inputs!B35/12","v":{"v":888903.8385959233,"d":"$888,904"}},{"$f":"DY56+B61*('Trial 7'!DY35-DY56)/Inputs!B35/12","v":{"v":888379.279966232,"d":"$888,379"}},{"v":10689668.55668095,"d":"$10,689,669"},{"$f":"DZ56+B61*('Trial 7'!DZ35-DZ56)/Inputs!B35/12","v":{"v":887988.0784386512,"d":"$887,988"}},{"$f":"EB56+B61*('Trial 7'!EB35-EB56)/Inputs!B35/12","v":{"v":887580.5241043343,"d":"$887,581"}},{"$f":"EC56+B61*('Trial 7'!EC35-EC56)/Inputs!B35/12","v":{"v":887122.7015282069,"d":"$887,123"}},{"$f":"ED56+B61*('Trial 7'!ED35-ED56)/Inputs!B35/12","v":{"v":886674.6411810747,"d":"$886,675"}},{"$f":"EE56+B61*('Trial 7'!EE35-EE56)/Inputs!B35/12","v":{"v":886269.7738777465,"d":"$886,270"}},{"$f":"EF56+B61*('Trial 7'!EF35-EF56)/Inputs!B35/12","v":{"v":885871.3741754872,"d":"$885,871"}},{"$f":"EG56+B61*('Trial 7'!EG35-EG56)/Inputs!B35/12","v":{"v":885420.5495216622,"d":"$885,421"}},{"$f":"EH56+B61*('Trial 7'!EH35-EH56)/Inputs!B35/12","v":{"v":884996.8783807086,"d":"$884,997"}},{"$f":"EI56+B61*('Trial 7'!EI35-EI56)/Inputs!B35/12","v":{"v":884625.7630099129,"d":"$884,626"}},{"$f":"EJ56+B61*('Trial 7'!EJ35-EJ56)/Inputs!B35/12","v":{"v":884100.5832394469,"d":"$884,101"}},{"$f":"EK56+B61*('Trial 7'!EK35-EK56)/Inputs!B35/12","v":{"v":883691.0367190437,"d":"$883,691"}},{"$f":"EL56+B61*('Trial 7'!EL35-EL56)/Inputs!B35/12","v":{"v":883334.3195078367,"d":"$883,334"}},{"v":10627676.223684113,"d":"$10,627,676"}]
[{"$f":"Labels!B103","v":"Trial 08"},{"$f":"B8-B11+B61*0/Inputs!B35/12","v":{"v":933333.3333333334,"d":"$933,333"}},{"$f":"B57+B61*('Trial 8'!B35-B57)/Inputs!B35/12","v":{"v":933072.6319118948,"d":"$933,073"}},{"$f":"C57+B61*('Trial 8'!C35-C57)/Inputs!B35/12","v":{"v":932670.3500393376,"d":"$932,670"}},{"$f":"D57+B61*('Trial 8'!D35-D57)/Inputs!B35/12","v":{"v":932373.8536112321,"d":"$932,374"}},{"$f":"E57+B61*('Trial 8'!E35-E57)/Inputs!B35/12","v":{"v":932040.7791879592,"d":"$932,041"}},{"$f":"F57+B61*('Trial 8'!F35-F57)/Inputs!B35/12","v":{"v":931756.8849491802,"d":"$931,757"}},{"$f":"G57+B61*('Trial 8'!G35-G57)/Inputs!B35/12","v":{"v":931383.5445462132,"d":"$931,384"}},{"$f":"H57+B61*('Trial 8'!H35-H57)/Inputs!B35/12","v":{"v":931149.2282173091,"d":"$931,149"}},{"$f":"I57+B61*('Trial 8'!I35-I57)/Inputs!B35/12","v":{"v":930828.2789113078,"d":"$930,828"}},{"$f":"J57+B61*('Trial 8'!J35-J57)/Inputs!B35/12","v":{"v":930530.3304570115,"d":"$930,530"}},{"$f":"K57+B61*('Trial 8'!K35-K57)/Inputs!B35/12","v":{"v":930311.0113804606,"d":"$930,311"}},{"$f":"L57+B61*('Trial 8'!L35-L57)/Inputs!B35/12","v":{"v":930042.3998055174,"d":"$930,042"}},{"v":11179492.626350757,"d":"$11,179,493"},{"$f":"M57+B61*('Trial 8'!M35-M57)/Inputs!B35/12","v":{"v":929805.751420096,"d":"$929,806"}},{"$f":"O57+B61*('Trial 8'!O35-O57)/Inputs!B35/12","v":{"v":929542.8245689264,"d":"$929,543"}},{"$f":"P57+B61*('Trial 8'!P35-P57)/Inputs!B35/12","v":{"v":929238.3296022649,"d":"$929,238"}},{"$f":"Q57+B61*('Trial 8'!Q35-Q57)/Inputs!B35/12","v":{"v":928950.5630710851,"d":"$928,951"}},{"$f":"R57+B61*('Trial 8'!R35-R57)/Inputs!B35/12","v":{"v":928607.7430683143,"d":"$928,608"}},{"$f":"S57+B61*('Trial 8'!S35-S57)/Inputs!B35/12","v":{"v":928260.0089400075,"d":"$928,260"}},{"$f":"T57+B61*('Trial 8'!T35-T57)/Inputs!B35/12","v":{"v":928052.2731625073,"d":"$928,052"}},{"$f":"U57+B61*('Trial 8'!U35-U57)/Inputs!B35/12","v":{"v":927722.3375192304,"d":"$927,722"}},{"$f":"V57+B61*('Trial 8'!V35-V57)/Inputs!B35/12","v":{"v":927463.5316812296,"d":"$927,464"}},{"$f":"W57+B61*('Trial 8'!W35-W57)/Inputs!B35/12","v":{"v":927059.3726786618,"d":"$927,059"}},{"$f":"X57+B61*('Trial 8'!X35-X57)/Inputs!B35/12","v":{"v":926749.4071786214,"d":"$926,749"}},{"$f":"Y57+B61*('Trial 8'!Y35-Y57)/Inputs!B35/12","v":{"v":926338.5421565184,"d":"$926,339"}},{"v":11137790.685047463,"d":"$11,137,791"},{"$f":"Z57+B61*('Trial 8'!Z35-Z57)/Inputs!B35/12","v":{"v":926106.8490433983,"d":"$926,107"}},{"$f":"AB57+B61*('Trial 8'!AB35-AB57)/Inputs!B35/12","v":{"v":925835.4052699115,"d":"$925,835"}},{"$f":"AC57+B61*('Trial 8'!AC35-AC57)/Inputs!B35/12","v":{"v":925421.7798878297,"d":"$925,422"}},{"$f":"AD57+B61*('Trial 8'!AD35-AD57)/Inputs!B35/12","v":{"v":925078.0397607922,"d":"$925,078"}},{"$f":"AE57+B61*('Trial 8'!AE35-AE57)/Inputs!B35/12","v":{"v":924720.8972498399,"d":"$924,721"}},{"$f":"AF57+B61*('Trial 8'!AF35-AF57)/Inputs!B35/12","v":{"v":924281.0987541162,"d":"$924,281"}},{"$f":"AG57+B61*('Trial 8'!AG35-AG57)/Inputs!B35/12","v":{"v":923992.4819962768,"d":"$923,992"}},{"$f":"AH57+B61*('Trial 8'!AH35-AH57)/Inputs!B35/12","v":{"v":923692.216858437,"d":"$923,692"}},{"$f":"AI57+B61*('Trial 8'!AI35-AI57)/Inputs!B35/12","v":{"v":923300.0380159182,"d":"$923,300"}},{"$f":"AJ57+B61*('Trial 8'!AJ35-AJ57)/Inputs!B35/12","v":{"v":923051.7637831728,"d":"$923,052"}},{"$f":"AK57+B61*('Trial 8'!AK35-AK57)/Inputs!B35/12","v":{"v":922756.1005977589,"d":"$922,756"}},{"$f":"AL57+B61*('Trial 8'!AL35-AL57)/Inputs!B35/12","v":{"v":922399.2984995657,"d":"$922,399"}},{"v":11090635.969717018,"d":"$11,090,636"},{"$f":"AM57+B61*('Trial 8'!AM35-AM57)/Inputs!B35/12","v":{"v":922145.9472153392,"d":"$922,146"}},{"$f":"AO57+B61*('Trial 8'!AO35-AO57)/Inputs!B35/12","v":{"v":921797.4162953012,"d":"$921,797"}},{"$f":"AP57+B61*('Trial 8'!AP35-AP57)/Inputs!B35/12","v":{"v":921436.6215440048,"d":"$921,437"}},{"$f":"AQ57+B61*('Trial 8'!AQ35-AQ57)/Inputs!B35/12","v":{"v":921133.9035524229,"d":"$921,134"}},{"$f":"AR57+B61*('Trial 8'!AR35-AR57)/Inputs!B35/12","v":{"v":920758.3035940966,"d":"$920,758"}},{"$f":"AS57+B61*('Trial 8'!AS35-AS57)/Inputs!B35/12","v":{"v":920462.3912142141,"d":"$920,462"}},{"$f":"AT57+B61*('Trial 8'!AT35-AT57)/Inputs!B35/12","v":{"v":920104.9284248217,"d":"$920,105"}},{"$f":"AU57+B61*('Trial 8'!AU35-AU57)/Inputs!B35/12","v":{"v":919707.3737592841,"d":"$919,707"}},{"$f":"AV57+B61*('Trial 8'!AV35-AV57)/Inputs!B35/12","v":{"v":919326.3987299481,"d":"$919,326"}},{"$f":"AW57+B61*('Trial 8'!AW35-AW57)/Inputs!B35/12","v":{"v":918969.488213295,"d":"$918,969"}},{"$f":"AX57+B61*('Trial 8'!AX35-AX57)/Inputs!B35/12","v":{"v":918702.2540237607,"d":"$918,702"}},{"$f":"AY57+B61*('Trial 8'!AY35-AY57)/Inputs!B35/12","v":{"v":918322.0427543684,"d":"$918,322"}},{"v":11042867.069320858,"d":"$11,042,867"},{"$f":"AZ57+B61*('Trial 8'!AZ35-AZ57)/Inputs!B35/12","v":{"v":917867.3786612024,"d":"$917,867"}},{"$f":"BB57+B61*('Trial 8'!BB35-BB57)/Inputs!B35/12","v":{"v":917429.3696371964,"d":"$917,429"}},{"$f":"BC57+B61*('Trial 8'!BC35-BC57)/Inputs!B35/12","v":{"v":917118.5006368636,"d":"$917,119"}},{"$f":"BD57+B61*('Trial 8'!BD35-BD57)/Inputs!B35/12","v":{"v":916811.0886083215,"d":"$916,811"}},{"$f":"BE57+B61*('Trial 8'!BE35-BE57)/Inputs!B35/12","v":{"v":916421.5143158996,"d":"$916,422"}},{"$f":"BF57+B61*('Trial 8'!BF35-BF57)/Inputs!B35/12","v":{"v":916092.7695252746,"d":"$916,093"}},{"$f":"BG57+B61*('Trial 8'!BG35-BG57)/Inputs!B35/12","v":{"v":915709.576049202,"d":"$915,710"}},{"$f":"BH57+B61*('Trial 8'!BH35-BH57)/Inputs!B35/12","v":{"v":915380.7646826066,"d":"$915,381"}},{"$f":"BI57+B61*('Trial 8'!BI35-BI57)/Inputs!B35/12","v":{"v":915031.6376668512,"d":"$915,032"}},{"$f":"BJ57+B61*('Trial 8'!BJ35-BJ57)/Inputs!B35/12","v":{"v":914638.8722002861,"d":"$914,639"}},{"$f":"BK57+B61*('Trial 8'!BK35-BK57)/Inputs!B35/12","v":{"v":914228.3985276388,"d":"$914,228"}},{"$f":"BL57+B61*('Trial 8'!BL35-BL57)/Inputs!B35/12","v":{"v":913832.3716067986,"d":"$913,832"}},{"v":10990562.242118143,"d":"$10,990,562"},{"$f":"BM57+B61*('Trial 8'!BM35-BM57)/Inputs!B35/12","v":{"v":913454.3502214071,"d":"$913,454"}},{"$f":"BO57+B61*('Trial 8'!BO35-BO57)/Inputs!B35/12","v":{"v":912959.7245138723,"d":"$912,960"}},{"$f":"BP57+B61*('Trial 8'!BP35-BP57)/Inputs!B35/12","v":{"v":912668.2155701438,"d":"$912,668"}},{"$f":"BQ57+B61*('Trial 8'!BQ35-BQ57)/Inputs!B35/12","v":{"v":912351.7497914059,"d":"$912,352"}},{"$f":"BR57+B61*('Trial 8'!BR35-BR57)/Inputs!B35/12","v":{"v":912076.8378730186,"d":"$912,077"}},{"$f":"BS57+B61*('Trial 8'!BS35-BS57)/Inputs!B35/12","v":{"v":911670.1115920052,"d":"$911,670"}},{"$f":"BT57+B61*('Trial 8'!BT35-BT57)/Inputs!B35/12","v":{"v":911381.4026795148,"d":"$911,381"}},{"$f":"BU57+B61*('Trial 8'!BU35-BU57)/Inputs!B35/12","v":{"v":910981.5234914375,"d":"$910,982"}},{"$f":"BV57+B61*('Trial 8'!BV35-BV57)/Inputs!B35/12","v":{"v":910479.5960988573,"d":"$910,480"}},{"$f":"BW57+B61*('Trial 8'!BW35-BW57)/Inputs!B35/12","v":{"v":910105.2885007631,"d":"$910,105"}},{"$f":"BX57+B61*('Trial 8'!BX35-BX57)/Inputs!B35/12","v":{"v":909640.2729237858,"d":"$909,640"}},{"$f":"BY57+B61*('Trial 8'!BY35-BY57)/Inputs!B35/12","v":{"v":909211.5880633537,"d":"$909,212"}},{"v":10936980.661319565,"d":"$10,936,981"},{"$f":"BZ57+B61*('Trial 8'!BZ35-BZ57)/Inputs!B35/12","v":{"v":908840.9533116579,"d":"$908,841"}},{"$f":"CB57+B61*('Trial 8'!CB35-CB57)/Inputs!B35/12","v":{"v":908343.4062389372,"d":"$908,343"}},{"$f":"CC57+B61*('Trial 8'!CC35-CC57)/Inputs!B35/12","v":{"v":908007.3805378531,"d":"$908,007"}},{"$f":"CD57+B61*('Trial 8'!CD35-CD57)/Inputs!B35/12","v":{"v":907572.914471349,"d":"$907,573"}},{"$f":"CE57+B61*('Trial 8'!CE35-CE57)/Inputs!B35/12","v":{"v":907110.2808679366,"d":"$907,110"}},{"$f":"CF57+B61*('Trial 8'!CF35-CF57)/Inputs!B35/12","v":{"v":906741.8109108498,"d":"$906,742"}},{"$f":"CG57+B61*('Trial 8'!CG35-CG57)/Inputs!B35/12","v":{"v":906334.5931816556,"d":"$906,335"}},{"$f":"CH57+B61*('Trial 8'!CH35-CH57)/Inputs!B35/12","v":{"v":905940.956557218,"d":"$905,941"}},{"$f":"CI57+B61*('Trial 8'!CI35-CI57)/Inputs!B35/12","v":{"v":905467.2010254075,"d":"$905,467"}},{"$f":"CJ57+B61*('Trial 8'!CJ35-CJ57)/Inputs!B35/12","v":{"v":905170.4439206901,"d":"$905,170"}},{"$f":"CK57+B61*('Trial 8'!CK35-CK57)/Inputs!B35/12","v":{"v":904718.0998764309,"d":"$904,718"}},{"$f":"CL57+B61*('Trial 8'!CL35-CL57)/Inputs!B35/12","v":{"v":904346.6757544908,"d":"$904,347"}},{"v":10878594.716654478,"d":"$10,878,595"},{"$f":"CM57+B61*('Trial 8'!CM35-CM57)/Inputs!B35/12","v":{"v":903849.5410034561,"d":"$903,850"}},{"$f":"CO57+B61*('Trial 8'!CO35-CO57)/Inputs!B35/12","v":{"v":903468.1977689329,"d":"$903,468"}},{"$f":"CP57+B61*('Trial 8'!CP35-CP57)/Inputs!B35/12","v":{"v":903023.1579580848,"d":"$903,023"}},{"$f":"CQ57+B61*('Trial 8'!CQ35-CQ57)/Inputs!B35/12","v":{"v":902689.215678026,"d":"$902,689"}},{"$f":"CR57+B61*('Trial 8'!CR35-CR57)/Inputs!B35/12","v":{"v":902206.7662153456,"d":"$902,207"}},{"$f":"CS57+B61*('Trial 8'!CS35-CS57)/Inputs!B35/12","v":{"v":901819.6724081927,"d":"$901,820"}},{"$f":"CT57+B61*('Trial 8'!CT35-CT57)/Inputs!B35/12","v":{"v":901463.2808233302,"d":"$901,463"}},{"$f":"CU57+B61*('Trial 8'!CU35-CU57)/Inputs!B35/12","v":{"v":901113.3930183793,"d":"$901,113"}},{"$f":"CV57+B61*('Trial 8'!CV35-CV57)/Inputs!B35/12","v":{"v":900722.1180406705,"d":"$900,722"}},{"$f":"CW57+B61*('Trial 8'!CW35-CW57)/Inputs!B35/12","v":{"v":900199.6766605072,"d":"$900,200"}},{"$f":"CX57+B61*('Trial 8'!CX35-CX57)/Inputs!B35/12","v":{"v":899788.7043706555,"d":"$899,789"}},{"$f":"CY57+B61*('Trial 8'!CY35-CY57)/Inputs!B35/12","v":{"v":899326.537753431,"d":"$899,327"}},{"v":10819670.261699012,"d":"$10,819,670"},{"$f":"CZ57+B61*('Trial 8'!CZ35-CZ57)/Inputs!B35/12","v":{"v":898978.0277316177,"d":"$898,978"}},{"$f":"DB57+B61*('Trial 8'!DB35-DB57)/Inputs!B35/12","v":{"v":898612.4298634271,"d":"$898,612"}},{"$f":"DC57+B61*('Trial 8'!DC35-DC57)/Inputs!B35/12","v":{"v":898180.7152308744,"d":"$898,181"}},{"$f":"DD57+B61*('Trial 8'!DD35-DD57)/Inputs!B35/12","v":{"v":897719.2001867004,"d":"$897,719"}},{"$f":"DE57+B61*('Trial 8'!DE35-DE57)/Inputs!B35/12","v":{"v":897405.8913295659,"d":"$897,406"}},{"$f":"DF57+B61*('Trial 8'!DF35-DF57)/Inputs!B35/12","v":{"v":896979.8435937541,"d":"$896,980"}},{"$f":"DG57+B61*('Trial 8'!DG35-DG57)/Inputs!B35/12","v":{"v":896548.784733139,"d":"$896,549"}},{"$f":"DH57+B61*('Trial 8'!DH35-DH57)/Inputs!B35/12","v":{"v":896187.6011339009,"d":"$896,188"}},{"$f":"DI57+B61*('Trial 8'!DI35-DI57)/Inputs!B35/12","v":{"v":895706.4228962745,"d":"$895,706"}},{"$f":"DJ57+B61*('Trial 8'!DJ35-DJ57)/Inputs!B35/12","v":{"v":895356.9667538938,"d":"$895,357"}},{"$f":"DK57+B61*('Trial 8'!DK35-DK57)/Inputs!B35/12","v":{"v":894985.4950363253,"d":"$894,985"}},{"$f":"DL57+B61*('Trial 8'!DL35-DL57)/Inputs!B35/12","v":{"v":894520.1274345655,"d":"$894,520"}},{"v":10761181.505924037,"d":"$10,761,182"},{"$f":"DM57+B61*('Trial 8'!DM35-DM57)/Inputs!B35/12","v":{"v":894139.4195655738,"d":"$894,139"}},{"$f":"DO57+B61*('Trial 8'!DO35-DO57)/Inputs!B35/12","v":{"v":893766.5770167114,"d":"$893,767"}},{"$f":"DP57+B61*('Trial 8'!DP35-DP57)/Inputs!B35/12","v":{"v":893288.2733619276,"d":"$893,288"}},{"$f":"DQ57+B61*('Trial 8'!DQ35-DQ57)/Inputs!B35/12","v":{"v":892886.6039063428,"d":"$892,887"}},{"$f":"DR57+B61*('Trial 8'!DR35-DR57)/Inputs!B35/12","v":{"v":892401.6009966048,"d":"$892,402"}},{"$f":"DS57+B61*('Trial 8'!DS35-DS57)/Inputs!B35/12","v":{"v":892000.9664287157,"d":"$892,001"}},{"$f":"DT57+B61*('Trial 8'!DT35-DT57)/Inputs!B35/12","v":{"v":891636.4817319644,"d":"$891,636"}},{"$f":"DU57+B61*('Trial 8'!DU35-DU57)/Inputs!B35/12","v":{"v":891184.9292510484,"d":"$891,185"}},{"$f":"DV57+B61*('Trial 8'!DV35-DV57)/Inputs!B35/12","v":{"v":890698.4668589582,"d":"$890,698"}},{"$f":"DW57+B61*('Trial 8'!DW35-DW57)/Inputs!B35/12","v":{"v":890261.8584506917,"d":"$890,262"}},{"$f":"DX57+B61*('Trial 8'!DX35-DX57)/Inputs!B35/12","v":{"v":889828.9360268861,"d":"$889,829"}},{"$f":"DY57+B61*('Trial 8'!DY35-DY57)/Inputs!B35/12","v":{"v":889455.6623891792,"d":"$889,456"}},{"v":10701549.775984604,"d":"$10,701,550"},{"$f":"DZ57+B61*('Trial 8'!DZ35-DZ57)/Inputs!B35/12","v":{"v":889003.8247638192,"d":"$889,004"}},{"$f":"EB57+B61*('Trial 8'!EB35-EB57)/Inputs!B35/12","v":{"v":888616.7000131874,"d":"$888,617"}},{"$f":"EC57+B61*('Trial 8'!EC35-EC57)/Inputs!B35/12","v":{"v":888103.9000409043,"d":"$888,104"}},{"$f":"ED57+B61*('Trial 8'!ED35-ED57)/Inputs!B35/12","v":{"v":887644.847481015,"d":"$887,645"}},{"$f":"EE57+B61*('Trial 8'!EE35-EE57)/Inputs!B35/12","v":{"v":887137.8482883564,"d":"$887,138"}},{"$f":"EF57+B61*('Trial 8'!EF35-EF57)/Inputs!B35/12","v":{"v":886782.5214014446,"d":"$886,783"}},{"$f":"EG57+B61*('Trial 8'!EG35-EG57)/Inputs!B35/12","v":{"v":886292.6660407445,"d":"$886,293"}},{"$f":"EH57+B61*('Trial 8'!EH35-EH57)/Inputs!B35/12","v":{"v":885846.4323993282,"d":"$885,846"}},{"$f":"EI57+B61*('Trial 8'!EI35-EI57)/Inputs!B35/12","v":{"v":885434.8971163711,"d":"$885,435"}},{"$f":"EJ57+B61*('Trial 8'!EJ35-EJ57)/Inputs!B35/12","v":{"v":885016.9785220992,"d":"$885,017"}},{"$f":"EK57+B61*('Trial 8'!EK35-EK57)/Inputs!B35/12","v":{"v":884568.8894896279,"d":"$884,569"}},{"$f":"EL57+B61*('Trial 8'!EL35-EL57)/Inputs!B35/12","v":{"v":884006.3853995324,"d":"$884,006"}},{"v":10638455.89095643,"d":"$10,638,456"}]
[{"$f":"Labels!C95","v":"Total"},{"$f":"SUM(B50:B57)","v":{"v":7466666.666666666,"d":"$7,466,667"}},{"v":7464622.690766055,"d":"$7,464,623"},{"v":7462384.041900392,"d":"$7,462,384"},{"v":7460130.461731705,"d":"$7,460,130"},{"v":7457600.204639196,"d":"$7,457,600"},{"v":7455089.844896646,"d":"$7,455,090"},{"v":7452679.875507096,"d":"$7,452,680"},{"v":7450669.226090559,"d":"$7,450,669"},{"v":7448278.3990068445,"d":"$7,448,278"},{"v":7446133.254531503,"d":"$7,446,133"},{"v":7443653.106657937,"d":"$7,443,653"},{"v":7441400.239550032,"d":"$7,441,400"},{"v":89449308.01194462,"d":"$89,449,308"},{"$f":"SUM(O50:O57)","v":{"v":7439125.885320611,"d":"$7,439,126"}},{"v":7436575.65003052,"d":"$7,436,576"},{"v":7434224.446314635,"d":"$7,434,224"},{"v":7432056.175456374,"d":"$7,432,056"},{"v":7429656.662886119,"d":"$7,429,657"},{"v":7427293.9091222435,"d":"$7,427,294"},{"v":7424845.697231778,"d":"$7,424,846"},{"v":7422243.040045139,"d":"$7,422,243"},{"v":7419849.747667867,"d":"$7,419,850"},{"v":7417249.48731889,"d":"$7,417,249"},{"v":7414762.318474865,"d":"$7,414,762"},{"v":7412046.292501689,"d":"$7,412,046"},{"v":89109929.31237073,"d":"$89,109,929"},{"$f":"SUM(AB50:AB57)","v":{"v":7409584.262325787,"d":"$7,409,584"}},{"v":7406820.678061628,"d":"$7,406,821"},{"v":7404148.707899534,"d":"$7,404,149"},{"v":7401774.723225882,"d":"$7,401,775"},{"v":7398858.290823735,"d":"$7,398,858"},{"v":7396221.904828293,"d":"$7,396,222"},{"v":7393592.505634162,"d":"$7,393,593"},{"v":7391023.327824346,"d":"$7,391,023"},{"v":7388010.808277931,"d":"$7,388,011"},{"v":7385334.065748137,"d":"$7,385,334"},{"v":7382691.87207447,"d":"$7,382,692"},{"v":7379842.330624656,"d":"$7,379,842"},{"v":88737903.47734857,"d":"$88,737,903"},{"$f":"SUM(AO50:AO57)","v":{"v":7377211.698675568,"d":"$7,377,212"}},{"v":7374120.169754047,"d":"$7,374,120"},{"v":7371132.217362119,"d":"$7,371,132"},{"v":7368487.542519375,"d":"$7,368,488"},{"v":7365655.672970879,"d":"$7,365,656"},{"v":7362495.529682792,"d":"$7,362,496"},{"v":7359333.187324347,"d":"$7,359,333"},{"v":7356653.546661435,"d":"$7,356,654"},{"v":7353972.743270622,"d":"$7,353,973"},{"v":7350928.857191143,"d":"$7,350,929"},{"v":7348078.553596873,"d":"$7,348,079"},{"v":7345070.239479624,"d":"$7,345,070"},{"v":88333139.95848882,"d":"$88,333,140"},{"$f":"SUM(BB50:BB57)","v":{"v":7342158.445753691,"d":"$7,342,158"}},{"v":7339162.942562316,"d":"$7,339,163"},{"v":7336419.181482279,"d":"$7,336,419"},{"v":7333751.047099491,"d":"$7,333,751"},{"v":7330829.165472041,"d":"$7,330,829"},{"v":7327757.558078819,"d":"$7,327,758"},{"v":7324656.344439629,"d":"$7,324,656"},{"v":7321882.163862643,"d":"$7,321,882"},{"v":7318751.022347921,"d":"$7,318,751"},{"v":7315719.093624006,"d":"$7,315,719"},{"v":7312694.54024745,"d":"$7,312,695"},{"v":7309538.4085402675,"d":"$7,309,538"},{"v":87913319.91351055,"d":"$87,913,320"},{"$f":"SUM(BO50:BO57)","v":{"v":7306313.424919959,"d":"$7,306,313"}},{"v":7302904.380343514,"d":"$7,302,904"},{"v":7299990.230061856,"d":"$7,299,990"},{"v":7296803.68953633,"d":"$7,296,804"},{"v":7294024.548945126,"d":"$7,294,025"},{"v":7290879.4259948265,"d":"$7,290,879"},{"v":7287884.9334911695,"d":"$7,287,885"},{"v":7284604.000706727,"d":"$7,284,604"},{"v":7281295.080638772,"d":"$7,281,295"},{"v":7278381.993185325,"d":"$7,278,382"},{"v":7274946.556339515,"d":"$7,274,947"},{"v":7271855.686344289,"d":"$7,271,856"},{"v":87469883.95050742,"d":"$87,469,884"},{"$f":"SUM(CB50:CB57)","v":{"v":7268690.733417018,"d":"$7,268,691"}},{"v":7265481.675056453,"d":"$7,265,482"},{"v":7262279.572524928,"d":"$7,262,280"},{"v":7258781.687299455,"d":"$7,258,782"},{"v":7255336.160560582,"d":"$7,255,336"},{"v":7252016.2173044495,"d":"$7,252,016"},{"v":7248767.375437691,"d":"$7,248,767"},{"v":7245316.02936669,"d":"$7,245,316"},{"v":7241969.917860956,"d":"$7,241,970"},{"v":7238924.742178336,"d":"$7,238,925"},{"v":7235645.4461767925,"d":"$7,235,645"},{"v":7232230.531912392,"d":"$7,232,231"},{"v":87005440.08909574,"d":"$87,005,440"},{"$f":"SUM(CO50:CO57)","v":{"v":7228559.617769072,"d":"$7,228,560"}},{"v":7225159.507884956,"d":"$7,225,160"},{"v":7221683.516297909,"d":"$7,221,684"},{"v":7218377.148049255,"d":"$7,218,377"},{"v":7214933.376535316,"d":"$7,214,933"},{"v":7211613.081448319,"d":"$7,211,613"},{"v":7208161.486725042,"d":"$7,208,161"},{"v":7204879.726165701,"d":"$7,204,880"},{"v":7201472.203779917,"d":"$7,201,472"},{"v":7197854.486917864,"d":"$7,197,854"},{"v":7194554.734557179,"d":"$7,194,555"},{"v":7191306.68573373,"d":"$7,191,307"},{"v":86518555.57186428,"d":"$86,518,556"},{"$f":"SUM(DB50:DB57)","v":{"v":7188122.319527743,"d":"$7,188,122"}},{"v":7184595.753006464,"d":"$7,184,596"},{"v":7181110.993032239,"d":"$7,181,111"},{"v":7177612.030425839,"d":"$7,177,612"},{"v":7174306.706521476,"d":"$7,174,307"},{"v":7170905.534437927,"d":"$7,170,906"},{"v":7167246.536602201,"d":"$7,167,247"},{"v":7163884.448612126,"d":"$7,163,884"},{"v":7160410.828710267,"d":"$7,160,411"},{"v":7157090.385624281,"d":"$7,157,090"},{"v":7153698.277758279,"d":"$7,153,698"},{"v":7150037.89098308,"d":"$7,150,038"},{"v":86029021.70524192,"d":"$86,029,022"},{"$f":"SUM(DO50:DO57)","v":{"v":7146698.00028131,"d":"$7,146,698"}},{"v":7143343.736910613,"d":"$7,143,344"},{"v":7139764.377920593,"d":"$7,139,764"},{"v":7136339.942127733,"d":"$7,136,340"},{"v":7132779.258827244,"d":"$7,132,779"},{"v":7129366.075187998,"d":"$7,129,366"},{"v":7125746.081739387,"d":"$7,125,746"},{"v":7122305.805822674,"d":"$7,122,306"},{"v":7118443.301070688,"d":"$7,118,443"},{"v":7115072.756613605,"d":"$7,115,073"},{"v":7111491.920382918,"d":"$7,111,492"},{"v":7108007.717393212,"d":"$7,108,008"},{"v":85529358.97427797,"d":"$85,529,359"},{"$f":"SUM(EB50:EB57)","v":{"v":7104399.44746563,"d":"$7,104,399"}},{"v":7101005.151282022,"d":"$7,101,005"},{"v":7097576.744460944,"d":"$7,097,577"},{"v":7093676.143164764,"d":"$7,093,676"},{"v":7090143.368161019,"d":"$7,090,143"},{"v":7086538.242456424,"d":"$7,086,538"},{"v":7082912.557215762,"d":"$7,082,913"},{"v":7079374.768843941,"d":"$7,079,375"},{"v":7075794.41537766,"d":"$7,075,794"},{"v":7072252.594099244,"d":"$7,072,253"},{"v":7068506.106251888,"d":"$7,068,506"},{"v":7064911.795837823,"d":"$7,064,912"},{"v":85017091.33461711,"d":"$85,017,091"}]
[{"$f":"Labels!B37","v":"dt"}]
[]
[null,{"$f":"1/12","v":{"v":0.08333333333333333,"d":"0.08"}}]
[{"$f":"Labels!B55","v":"Current Disposable Income"}]
[{"$f":"Labels!D96","v":"Trials"},{"$f":"ZZZ__FnCalls!F7","v":"Jan 2010"},{"$f":"ZZZ__FnCalls!F8","v":"Feb 2010"},{"$f":"ZZZ__FnCalls!F9","v":"Mar 2010"},{"$f":"ZZZ__FnCalls!F10","v":"Apr 2010"},{"$f":"ZZZ__FnCalls!F11","v":"May 2010"},{"$f":"ZZZ__FnCalls!F12","v":"Jun 2010"},{"$f":"ZZZ__FnCalls!F13","v":"Jul 2010"},{"$f":"ZZZ__FnCalls!F14","v":"Aug 2010"},{"$f":"ZZZ__FnCalls!F15","v":"Sep 2010"},{"$f":"ZZZ__FnCalls!F16","v":"Oct 2010"},{"$f":"ZZZ__FnCalls!F17","v":"Nov 2010"},{"$f":"ZZZ__FnCalls!F18","v":"Dec 2010"},{"$f":"ZZZ__FnCalls!H7","v":"2010"},{"$f":"ZZZ__FnCalls!F19","v":"Jan 2011"},{"$f":"ZZZ__FnCalls!F20","v":"Feb 2011"},{"$f":"ZZZ__FnCalls!F21","v":"Mar 2011"},{"$f":"ZZZ__FnCalls!F22","v":"Apr 2011"},{"$f":"ZZZ__FnCalls!F23","v":"May 2011"},{"$f":"ZZZ__FnCalls!F24","v":"Jun 2011"},{"$f":"ZZZ__FnCalls!F25","v":"Jul 2011"},{"$f":"ZZZ__FnCalls!F26","v":"Aug 2011"},{"$f":"ZZZ__FnCalls!F27","v":"Sep 2011"},{"$f":"ZZZ__FnCalls!F28","v":"Oct 2011"},{"$f":"ZZZ__FnCalls!F29","v":"Nov 2011"},{"$f":"ZZZ__FnCalls!F30","v":"Dec 2011"},{"$f":"ZZZ__FnCalls!H19","v":"2011"},{"$f":"ZZZ__FnCalls!F31","v":"Jan 2012"},{"$f":"ZZZ__FnCalls!F32","v":"Feb 2012"},{"$f":"ZZZ__FnCalls!F33","v":"Mar 2012"},{"$f":"ZZZ__FnCalls!F34","v":"Apr 2012"},{"$f":"ZZZ__FnCalls!F35","v":"May 2012"},{"$f":"ZZZ__FnCalls!F36","v":"Jun 2012"},{"$f":"ZZZ__FnCalls!F37","v":"Jul 2012"},{"$f":"ZZZ__FnCalls!F38","v":"Aug 2012"},{"$f":"ZZZ__FnCalls!F39","v":"Sep 2012"},{"$f":"ZZZ__FnCalls!F40","v":"Oct 2012"},{"$f":"ZZZ__FnCalls!F41","v":"Nov 2012"},{"$f":"ZZZ__FnCalls!F42","v":"Dec 2012"},{"$f":"ZZZ__FnCalls!H31","v":"2012"},{"$f":"ZZZ__FnCalls!F43","v":"Jan 2013"},{"$f":"ZZZ__FnCalls!F44","v":"Feb 2013"},{"$f":"ZZZ__FnCalls!F45","v":"Mar 2013"},{"$f":"ZZZ__FnCalls!F46","v":"Apr 2013"},{"$f":"ZZZ__FnCalls!F47","v":"May 2013"},{"$f":"ZZZ__FnCalls!F48","v":"Jun 2013"},{"$f":"ZZZ__FnCalls!F49","v":"Jul 2013"},{"$f":"ZZZ__FnCalls!F50","v":"Aug 2013"},{"$f":"ZZZ__FnCalls!F51","v":"Sep 2013"},{"$f":"ZZZ__FnCalls!F52","v":"Oct 2013"},{"$f":"ZZZ__FnCalls!F53","v":"Nov 2013"},{"$f":"ZZZ__FnCalls!F54","v":"Dec 2013"},{"$f":"ZZZ__FnCalls!H43","v":"2013"},{"$f":"ZZZ__FnCalls!F55","v":"Jan 2014"},{"$f":"ZZZ__FnCalls!F56","v":"Feb 2014"},{"$f":"ZZZ__FnCalls!F57","v":"Mar 2014"},{"$f":"ZZZ__FnCalls!F58","v":"Apr 2014"},{"$f":"ZZZ__FnCalls!F59","v":"May 2014"},{"$f":"ZZZ__FnCalls!F60","v":"Jun 2014"},{"$f":"ZZZ__FnCalls!F61","v":"Jul 2014"},{"$f":"ZZZ__FnCalls!F62","v":"Aug 2014"},{"$f":"ZZZ__FnCalls!F63","v":"Sep 2014"},{"$f":"ZZZ__FnCalls!F64","v":"Oct 2014"},{"$f":"ZZZ__FnCalls!F65","v":"Nov 2014"},{"$f":"ZZZ__FnCalls!F66","v":"Dec 2014"},{"$f":"ZZZ__FnCalls!H55","v":"2014"},{"$f":"ZZZ__FnCalls!F67","v":"Jan 2015"},{"$f":"ZZZ__FnCalls!F68","v":"Feb 2015"},{"$f":"ZZZ__FnCalls!F69","v":"Mar 2015"},{"$f":"ZZZ__FnCalls!F70","v":"Apr 2015"},{"$f":"ZZZ__FnCalls!F71","v":"May 2015"},{"$f":"ZZZ__FnCalls!F72","v":"Jun 2015"},{"$f":"ZZZ__FnCalls!F73","v":"Jul 2015"},{"$f":"ZZZ__FnCalls!F74","v":"Aug 2015"},{"$f":"ZZZ__FnCalls!F75","v":"Sep 2015"},{"$f":"ZZZ__FnCalls!F76","v":"Oct 2015"},{"$f":"ZZZ__FnCalls!F77","v":"Nov 2015"},{"$f":"ZZZ__FnCalls!F78","v":"Dec 2015"},{"$f":"ZZZ__FnCalls!H67","v":"2015"},{"$f":"ZZZ__FnCalls!F79","v":"Jan 2016"},{"$f":"ZZZ__FnCalls!F80","v":"Feb 2016"},{"$f":"ZZZ__FnCalls!F81","v":"Mar 2016"},{"$f":"ZZZ__FnCalls!F82","v":"Apr 2016"},{"$f":"ZZZ__FnCalls!F83","v":"May 2016"},{"$f":"ZZZ__FnCalls!F84","v":"Jun 2016"},{"$f":"ZZZ__FnCalls!F85","v":"Jul 2016"},{"$f":"ZZZ__FnCalls!F86","v":"Aug 2016"},{"$f":"ZZZ__FnCalls!F87","v":"Sep 2016"},{"$f":"ZZZ__FnCalls!F88","v":"Oct 2016"},{"$f":"ZZZ__FnCalls!F89","v":"Nov 2016"},{"$f":"ZZZ__FnCalls!F90","v":"Dec 2016"},{"$f":"ZZZ__FnCalls!H79","v":"2016"},{"$f":"ZZZ__FnCalls!F91","v":"Jan 2017"},{"$f":"ZZZ__FnCalls!F92","v":"Feb 2017"},{"$f":"ZZZ__FnCalls!F93","v":"Mar 2017"},{"$f":"ZZZ__FnCalls!F94","v":"Apr 2017"},{"$f":"ZZZ__FnCalls!F95","v":"May 2017"},{"$f":"ZZZ__FnCalls!F96","v":"Jun 2017"},{"$f":"ZZZ__FnCalls!F97","v":"Jul 2017"},{"$f":"ZZZ__FnCalls!F98","v":"Aug 2017"},{"$f":"ZZZ__FnCalls!F99","v":"Sep 2017"},{"$f":"ZZZ__FnCalls!F100","v":"Oct 2017"},{"$f":"ZZZ__FnCalls!F101","v":"Nov 2017"},{"$f":"ZZZ__FnCalls!F102","v":"Dec 2017"},{"$f":"ZZZ__FnCalls!H91","v":"2017"},{"$f":"ZZZ__FnCalls!F103","v":"Jan 2018"},{"$f":"ZZZ__FnCalls!F104","v":"Feb 2018"},{"$f":"ZZZ__FnCalls!F105","v":"Mar 2018"},{"$f":"ZZZ__FnCalls!F106","v":"Apr 2018"},{"$f":"ZZZ__FnCalls!F107","v":"May 2018"},{"$f":"ZZZ__FnCalls!F108","v":"Jun 2018"},{"$f":"ZZZ__FnCalls!F109","v":"Jul 2018"},{"$f":"ZZZ__FnCalls!F110","v":"Aug 2018"},{"$f":"ZZZ__FnCalls!F111","v":"Sep 2018"},{"$f":"ZZZ__FnCalls!F112","v":"Oct 2018"},{"$f":"ZZZ__FnCalls!F113","v":"Nov 2018"},{"$f":"ZZZ__FnCalls!F114","v":"Dec 2018"},{"$f":"ZZZ__FnCalls!H103","v":"2018"},{"$f":"ZZZ__FnCalls!F115","v":"Jan 2019"},{"$f":"ZZZ__FnCalls!F116","v":"Feb 2019"},{"$f":"ZZZ__FnCalls!F117","v":"Mar 2019"},{"$f":"ZZZ__FnCalls!F118","v":"Apr 2019"},{"$f":"ZZZ__FnCalls!F119","v":"May 2019"},{"$f":"ZZZ__FnCalls!F120","v":"Jun 2019"},{"$f":"ZZZ__FnCalls!F121","v":"Jul 2019"},{"$f":"ZZZ__FnCalls!F122","v":"Aug 2019"},{"$f":"ZZZ__FnCalls!F123","v":"Sep 2019"},{"$f":"ZZZ__FnCalls!F124","v":"Oct 2019"},{"$f":"ZZZ__FnCalls!F125","v":"Nov 2019"},{"$f":"ZZZ__FnCalls!F126","v":"Dec 2019"},{"$f":"ZZZ__FnCalls!H115","v":"2019"},{"$f":"ZZZ__FnCalls!F127","v":"Jan 2020"},{"$f":"ZZZ__FnCalls!F128","v":"Feb 2020"},{"$f":"ZZZ__FnCalls!F129","v":"Mar 2020"},{"$f":"ZZZ__FnCalls!F130","v":"Apr 2020"},{"$f":"ZZZ__FnCalls!F131","v":"May 2020"},{"$f":"ZZZ__FnCalls!F132","v":"Jun 2020"},{"$f":"ZZZ__FnCalls!F133","v":"Jul 2020"},{"$f":"ZZZ__FnCalls!F134","v":"Aug 2020"},{"$f":"ZZZ__FnCalls!F135","v":"Sep 2020"},{"$f":"ZZZ__FnCalls!F136","v":"Oct 2020"},{"$f":"ZZZ__FnCalls!F137","v":"Nov 2020"},{"$f":"ZZZ__FnCalls!F138","v":"Dec 2020"},{"$f":"ZZZ__FnCalls!H127","v":"2020"}]
[{"$f":"Labels!B96","v":"Trial 01"},{"$f":"'Trial 1'!B35","v":{"v":856094.50650769,"d":"$856,095"}},{"$f":"'Trial 1'!C35","v":{"v":798615.5479001122,"d":"$798,616"}},{"$f":"'Trial 1'!D35","v":{"v":838188.9985295675,"d":"$838,189"}},{"$f":"'Trial 1'!E35","v":{"v":820255.6504918513,"d":"$820,256"}},{"$f":"'Trial 1'!F35","v":{"v":825850.5680869435,"d":"$825,851"}},{"$f":"'Trial 1'!G35","v":{"v":831999.7926326884,"d":"$832,000"}},{"$f":"'Trial 1'!H35","v":{"v":849924.4674854004,"d":"$849,924"}},{"$f":"'Trial 1'!I35","v":{"v":825810.7752369939,"d":"$825,811"}},{"$f":"'Trial 1'!J35","v":{"v":833696.5852615488,"d":"$833,697"}},{"$f":"'Trial 1'!K35","v":{"v":833246.4752762147,"d":"$833,246"}},{"$f":"'Trial 1'!L35","v":{"v":825127.6192531639,"d":"$825,128"}},{"$f":"'Trial 1'!M35","v":{"v":848762.7919698409,"d":"$848,763"}},{"$f":"SUM('Trial 1'!B35:M35)","v":{"v":9987573.778632017,"d":"$9,987,574"}},{"$f":"'Trial 1'!O35","v":{"v":806976.5616632713,"d":"$806,977"}},{"$f":"'Trial 1'!P35","v":{"v":840242.5279441848,"d":"$840,243"}},{"$f":"'Trial 1'!Q35","v":{"v":815446.1541481734,"d":"$815,446"}},{"$f":"'Trial 1'!R35","v":{"v":818056.2163824551,"d":"$818,056"}},{"$f":"'Trial 1'!S35","v":{"v":805604.7645951052,"d":"$805,605"}},{"$f":"'Trial 1'!T35","v":{"v":790707.8086140425,"d":"$790,708"}},{"$f":"'Trial 1'!U35","v":{"v":798906.9069108533,"d":"$798,907"}},{"$f":"'Trial 1'!V35","v":{"v":811768.3040505677,"d":"$811,768"}},{"$f":"'Trial 1'!W35","v":{"v":820529.975554833,"d":"$820,530"}},{"$f":"'Trial 1'!X35","v":{"v":812995.0518040854,"d":"$812,995"}},{"$f":"'Trial 1'!Y35","v":{"v":836277.0405276549,"d":"$836,277"}},{"$f":"'Trial 1'!Z35","v":{"v":805139.1360889733,"d":"$805,139"}},{"$f":"SUM('Trial 1'!O35:Z35)","v":{"v":9762650.4482842,"d":"$9,762,650"}},{"$f":"'Trial 1'!AB35","v":{"v":802572.8345147391,"d":"$802,573"}},{"$f":"'Trial 1'!AC35","v":{"v":814208.4300458914,"d":"$814,208"}},{"$f":"'Trial 1'!AD35","v":{"v":830267.2132731696,"d":"$830,267"}},{"$f":"'Trial 1'!AE35","v":{"v":785851.0761111706,"d":"$785,851"}},{"$f":"'Trial 1'!AF35","v":{"v":785017.3275885208,"d":"$785,017"}},{"$f":"'Trial 1'!AG35","v":{"v":808253.1006892126,"d":"$808,253"}},{"$f":"'Trial 1'!AH35","v":{"v":804483.1944744554,"d":"$804,483"}},{"$f":"'Trial 1'!AI35","v":{"v":786840.4586100356,"d":"$786,840"}},{"$f":"'Trial 1'!AJ35","v":{"v":778630.5070700848,"d":"$778,631"}},{"$f":"'Trial 1'!AK35","v":{"v":805173.8887383475,"d":"$805,174"}},{"$f":"'Trial 1'!AL35","v":{"v":822555.627764312,"d":"$822,556"}},{"$f":"'Trial 1'!AM35","v":{"v":824605.2001207498,"d":"$824,605"}},{"$f":"SUM('Trial 1'!AB35:AM35)","v":{"v":9648458.859000688,"d":"$9,648,459"}},{"$f":"'Trial 1'!AO35","v":{"v":755410.7513073303,"d":"$755,411"}},{"$f":"'Trial 1'!AP35","v":{"v":788943.3282719059,"d":"$788,943"}},{"$f":"'Trial 1'!AQ35","v":{"v":820866.7846053763,"d":"$820,867"}},{"$f":"'Trial 1'!AR35","v":{"v":784154.4773404506,"d":"$784,154"}},{"$f":"'Trial 1'!AS35","v":{"v":780521.7314812654,"d":"$780,522"}},{"$f":"'Trial 1'!AT35","v":{"v":777428.6105397206,"d":"$777,429"}},{"$f":"'Trial 1'!AU35","v":{"v":780472.3213385456,"d":"$780,472"}},{"$f":"'Trial 1'!AV35","v":{"v":809057.1016003564,"d":"$809,057"}},{"$f":"'Trial 1'!AW35","v":{"v":780876.9234791884,"d":"$780,877"}},{"$f":"'Trial 1'!AX35","v":{"v":755806.1816671524,"d":"$755,806"}},{"$f":"'Trial 1'!AY35","v":{"v":815920.7366931586,"d":"$815,921"}},{"$f":"'Trial 1'!AZ35","v":{"v":777926.3473975911,"d":"$777,926"}},{"$f":"SUM('Trial 1'!AO35:AZ35)","v":{"v":9427385.295722041,"d":"$9,427,385"}},{"$f":"'Trial 1'!BB35","v":{"v":767957.3568020767,"d":"$767,957"}},{"$f":"'Trial 1'!BC35","v":{"v":790084.5719488935,"d":"$790,085"}},{"$f":"'Trial 1'!BD35","v":{"v":804651.899678487,"d":"$804,652"}},{"$f":"'Trial 1'!BE35","v":{"v":795222.4023425184,"d":"$795,222"}},{"$f":"'Trial 1'!BF35","v":{"v":765547.9704273258,"d":"$765,548"}},{"$f":"'Trial 1'!BG35","v":{"v":796227.1884603015,"d":"$796,227"}},{"$f":"'Trial 1'!BH35","v":{"v":798293.1407226392,"d":"$798,293"}},{"$f":"'Trial 1'!BI35","v":{"v":818109.9964015353,"d":"$818,110"}},{"$f":"'Trial 1'!BJ35","v":{"v":806020.4133876042,"d":"$806,020"}},{"$f":"'Trial 1'!BK35","v":{"v":814442.7905777843,"d":"$814,443"}},{"$f":"'Trial 1'!BL35","v":{"v":791106.7601561841,"d":"$791,107"}},{"$f":"'Trial 1'!BM35","v":{"v":760857.9641973778,"d":"$760,858"}},{"$f":"SUM('Trial 1'!BB35:BM35)","v":{"v":9508522.455102729,"d":"$9,508,522"}},{"$f":"'Trial 1'!BO35","v":{"v":799154.6863939514,"d":"$799,155"}},{"$f":"'Trial 1'!BP35","v":{"v":805119.7744780538,"d":"$805,120"}},{"$f":"'Trial 1'!BQ35","v":{"v":767034.3811452627,"d":"$767,034"}},{"$f":"'Trial 1'!BR35","v":{"v":769123.2714130876,"d":"$769,123"}},{"$f":"'Trial 1'!BS35","v":{"v":752167.1846983122,"d":"$752,167"}},{"$f":"'Trial 1'!BT35","v":{"v":777568.3468175886,"d":"$777,568"}},{"$f":"'Trial 1'!BU35","v":{"v":777340.4219057552,"d":"$777,340"}},{"$f":"'Trial 1'!BV35","v":{"v":770379.4455950322,"d":"$770,379"}},{"$f":"'Trial 1'!BW35","v":{"v":791349.0879789296,"d":"$791,349"}},{"$f":"'Trial 1'!BX35","v":{"v":754686.1182964564,"d":"$754,686"}},{"$f":"'Trial 1'!BY35","v":{"v":774201.669469554,"d":"$774,202"}},{"$f":"'Trial 1'!BZ35","v":{"v":771185.4189561275,"d":"$771,185"}},{"$f":"SUM('Trial 1'!BO35:BZ35)","v":{"v":9309309.80714811,"d":"$9,309,310"}},{"$f":"'Trial 1'!CB35","v":{"v":767915.2060766115,"d":"$767,915"}},{"$f":"'Trial 1'!CC35","v":{"v":749748.8895898659,"d":"$749,749"}},{"$f":"'Trial 1'!CD35","v":{"v":733863.2215626935,"d":"$733,863"}},{"$f":"'Trial 1'!CE35","v":{"v":774404.2571079824,"d":"$774,404"}},{"$f":"'Trial 1'!CF35","v":{"v":777012.1664078786,"d":"$777,012"}},{"$f":"'Trial 1'!CG35","v":{"v":747656.639252626,"d":"$747,657"}},{"$f":"'Trial 1'!CH35","v":{"v":775179.7595414269,"d":"$775,180"}},{"$f":"'Trial 1'!CI35","v":{"v":729901.1352268738,"d":"$729,901"}},{"$f":"'Trial 1'!CJ35","v":{"v":752443.0539671454,"d":"$752,443"}},{"$f":"'Trial 1'!CK35","v":{"v":774019.3104066491,"d":"$774,019"}},{"$f":"'Trial 1'!CL35","v":{"v":768230.8143259437,"d":"$768,231"}},{"$f":"'Trial 1'!CM35","v":{"v":733347.5555044216,"d":"$733,348"}},{"$f":"SUM('Trial 1'!CB35:CM35)","v":{"v":9083722.008970117,"d":"$9,083,722"}},{"$f":"'Trial 1'!CO35","v":{"v":721391.0154759273,"d":"$721,391"}},{"$f":"'Trial 1'!CP35","v":{"v":760323.1916453559,"d":"$760,323"}},{"$f":"'Trial 1'!CQ35","v":{"v":772200.2929529148,"d":"$772,200"}},{"$f":"'Trial 1'!CR35","v":{"v":754217.1301084646,"d":"$754,217"}},{"$f":"'Trial 1'!CS35","v":{"v":733545.6379500173,"d":"$733,546"}},{"$f":"'Trial 1'!CT35","v":{"v":733121.7463563565,"d":"$733,122"}},{"$f":"'Trial 1'!CU35","v":{"v":728447.3245228449,"d":"$728,447"}},{"$f":"'Trial 1'!CV35","v":{"v":742620.226364463,"d":"$742,620"}},{"$f":"'Trial 1'!CW35","v":{"v":724848.9031649654,"d":"$724,849"}},{"$f":"'Trial 1'!CX35","v":{"v":717642.4117953753,"d":"$717,642"}},{"$f":"'Trial 1'!CY35","v":{"v":763216.4627852361,"d":"$763,216"}},{"$f":"'Trial 1'!CZ35","v":{"v":761033.277243991,"d":"$761,033"}},{"$f":"SUM('Trial 1'!CO35:CZ35)","v":{"v":8912607.62036591,"d":"$8,912,608"}},{"$f":"'Trial 1'!DB35","v":{"v":716657.9103718017,"d":"$716,658"}},{"$f":"'Trial 1'!DC35","v":{"v":744551.8117898089,"d":"$744,552"}},{"$f":"'Trial 1'!DD35","v":{"v":749325.6941461476,"d":"$749,326"}},{"$f":"'Trial 1'!DE35","v":{"v":768143.4253959119,"d":"$768,143"}},{"$f":"'Trial 1'!DF35","v":{"v":715390.9497851316,"d":"$715,391"}},{"$f":"'Trial 1'!DG35","v":{"v":729830.656857804,"d":"$729,831"}},{"$f":"'Trial 1'!DH35","v":{"v":762112.6830066661,"d":"$762,113"}},{"$f":"'Trial 1'!DI35","v":{"v":743710.5351912844,"d":"$743,711"}},{"$f":"'Trial 1'!DJ35","v":{"v":777699.4854056528,"d":"$777,699"}},{"$f":"'Trial 1'!DK35","v":{"v":739778.2372932648,"d":"$739,778"}},{"$f":"'Trial 1'!DL35","v":{"v":744243.0852496052,"d":"$744,243"}},{"$f":"'Trial 1'!DM35","v":{"v":766453.1435327294,"d":"$766,453"}},{"$f":"SUM('Trial 1'!DB35:DM35)","v":{"v":8957897.61802581,"d":"$8,957,898"}},{"$f":"'Trial 1'!DO35","v":{"v":715669.1430492428,"d":"$715,669"}},{"$f":"'Trial 1'!DP35","v":{"v":715271.1202482855,"d":"$715,271"}},{"$f":"'Trial 1'!DQ35","v":{"v":737755.092796245,"d":"$737,755"}},{"$f":"'Trial 1'!DR35","v":{"v":735362.2031739502,"d":"$735,362"}},{"$f":"'Trial 1'!DS35","v":{"v":724034.576516102,"d":"$724,035"}},{"$f":"'Trial 1'!DT35","v":{"v":727875.2190192796,"d":"$727,875"}},{"$f":"'Trial 1'!DU35","v":{"v":767222.7426194357,"d":"$767,223"}},{"$f":"'Trial 1'!DV35","v":{"v":750601.4000879778,"d":"$750,601"}},{"$f":"'Trial 1'!DW35","v":{"v":712601.9929401038,"d":"$712,602"}},{"$f":"'Trial 1'!DX35","v":{"v":715557.9774586959,"d":"$715,558"}},{"$f":"'Trial 1'!DY35","v":{"v":729086.5607997376,"d":"$729,087"}},{"$f":"'Trial 1'!DZ35","v":{"v":734159.280536499,"d":"$734,159"}},{"$f":"SUM('Trial 1'!DO35:DZ35)","v":{"v":8765197.309245555,"d":"$8,765,197"}},{"$f":"'Trial 1'!EB35","v":{"v":735672.4433134863,"d":"$735,672"}},{"$f":"'Trial 1'!EC35","v":{"v":708356.3058653934,"d":"$708,356"}},{"$f":"'Trial 1'!ED35","v":{"v":698446.0512219226,"d":"$698,446"}},{"$f":"'Trial 1'!EE35","v":{"v":754668.478555538,"d":"$754,668"}},{"$f":"'Trial 1'!EF35","v":{"v":711331.4219964243,"d":"$711,331"}},{"$f":"'Trial 1'!EG35","v":{"v":722135.1437127416,"d":"$722,135"}},{"$f":"'Trial 1'!EH35","v":{"v":746758.3113970025,"d":"$746,758"}},{"$f":"'Trial 1'!EI35","v":{"v":705580.4396461834,"d":"$705,580"}},{"$f":"'Trial 1'!EJ35","v":{"v":711893.5919935121,"d":"$711,894"}},{"$f":"'Trial 1'!EK35","v":{"v":703816.236830819,"d":"$703,816"}},{"$f":"'Trial 1'!EL35","v":{"v":722691.0761371701,"d":"$722,691"}},{"$f":"'Trial 1'!EM35","v":{"v":710436.5638030702,"d":"$710,437"}},{"$f":"SUM('Trial 1'!EB35:EM35)","v":{"v":8631786.064473264,"d":"$8,631,786"}}]
[{"$f":"Labels!B97","v":"Trial 02"},{"$f":"'Trial 2'!B35","v":{"v":837541.7818359938,"d":"$837,542"}},{"$f":"'Trial 2'!C35","v":{"v":866132.7422743094,"d":"$866,133"}},{"$f":"'Trial 2'!D35","v":{"v":840750.1619595153,"d":"$840,750"}},{"$f":"'Trial 2'!E35","v":{"v":834748.2166139763,"d":"$834,748"}},{"$f":"'Trial 2'!F35","v":{"v":847323.4777216415,"d":"$847,323"}},{"$f":"'Trial 2'!G35","v":{"v":845634.3883824378,"d":"$845,634"}},{"$f":"'Trial 2'!H35","v":{"v":836484.6497081503,"d":"$836,485"}},{"$f":"'Trial 2'!I35","v":{"v":804250.4142093275,"d":"$804,250"}},{"$f":"'Trial 2'!J35","v":{"v":866890.2254343512,"d":"$866,890"}},{"$f":"'Trial 2'!K35","v":{"v":808998.0204678949,"d":"$808,998"}},{"$f":"'Trial 2'!L35","v":{"v":830825.7249411613,"d":"$830,826"}},{"$f":"'Trial 2'!M35","v":{"v":854531.9020232487,"d":"$854,532"}},{"$f":"SUM('Trial 2'!B35:M35)","v":{"v":10074111.705572005,"d":"$10,074,112"}},{"$f":"'Trial 2'!O35","v":{"v":806345.3343562657,"d":"$806,345"}},{"$f":"'Trial 2'!P35","v":{"v":791501.7805054787,"d":"$791,502"}},{"$f":"'Trial 2'!Q35","v":{"v":856362.6701514078,"d":"$856,363"}},{"$f":"'Trial 2'!R35","v":{"v":814915.8177455746,"d":"$814,916"}},{"$f":"'Trial 2'!S35","v":{"v":834093.4661250027,"d":"$834,093"}},{"$f":"'Trial 2'!T35","v":{"v":770749.6149023651,"d":"$770,750"}},{"$f":"'Trial 2'!U35","v":{"v":788544.8646773306,"d":"$788,545"}},{"$f":"'Trial 2'!V35","v":{"v":804392.2851946201,"d":"$804,392"}},{"$f":"'Trial 2'!W35","v":{"v":846352.8968065843,"d":"$846,353"}},{"$f":"'Trial 2'!X35","v":{"v":822377.3595252653,"d":"$822,377"}},{"$f":"'Trial 2'!Y35","v":{"v":831407.7775213706,"d":"$831,408"}},{"$f":"'Trial 2'!Z35","v":{"v":801967.1516932172,"d":"$801,967"}},{"$f":"SUM('Trial 2'!O35:Z35)","v":{"v":9769011.019204484,"d":"$9,769,011"}},{"$f":"'Trial 2'!AB35","v":{"v":795791.3806157062,"d":"$795,791"}},{"$f":"'Trial 2'!AC35","v":{"v":773848.838188647,"d":"$773,849"}},{"$f":"'Trial 2'!AD35","v":{"v":817305.7276672268,"d":"$817,306"}},{"$f":"'Trial 2'!AE35","v":{"v":797346.8135031129,"d":"$797,347"}},{"$f":"'Trial 2'!AF35","v":{"v":804227.0120142332,"d":"$804,227"}},{"$f":"'Trial 2'!AG35","v":{"v":794959.463871385,"d":"$794,959"}},{"$f":"'Trial 2'!AH35","v":{"v":802462.2424121805,"d":"$802,462"}},{"$f":"'Trial 2'!AI35","v":{"v":789941.4169823412,"d":"$789,941"}},{"$f":"'Trial 2'!AJ35","v":{"v":804385.7349189002,"d":"$804,386"}},{"$f":"'Trial 2'!AK35","v":{"v":821165.8209580858,"d":"$821,166"}},{"$f":"'Trial 2'!AL35","v":{"v":792161.6567376583,"d":"$792,162"}},{"$f":"'Trial 2'!AM35","v":{"v":769444.7048432404,"d":"$769,445"}},{"$f":"SUM('Trial 2'!AB35:AM35)","v":{"v":9563040.812712718,"d":"$9,563,041"}},{"$f":"'Trial 2'!AO35","v":{"v":773335.1099502636,"d":"$773,335"}},{"$f":"'Trial 2'!AP35","v":{"v":772599.654479968,"d":"$772,600"}},{"$f":"'Trial 2'!AQ35","v":{"v":804536.7186912745,"d":"$804,537"}},{"$f":"'Trial 2'!AR35","v":{"v":778640.3223546689,"d":"$778,640"}},{"$f":"'Trial 2'!AS35","v":{"v":764148.0433543519,"d":"$764,148"}},{"$f":"'Trial 2'!AT35","v":{"v":784394.5692076046,"d":"$784,395"}},{"$f":"'Trial 2'!AU35","v":{"v":811772.3423551222,"d":"$811,772"}},{"$f":"'Trial 2'!AV35","v":{"v":796974.9664287361,"d":"$796,975"}},{"$f":"'Trial 2'!AW35","v":{"v":814459.1414546276,"d":"$814,459"}},{"$f":"'Trial 2'!AX35","v":{"v":796100.5882099293,"d":"$796,101"}},{"$f":"'Trial 2'!AY35","v":{"v":745641.8042281381,"d":"$745,642"}},{"$f":"'Trial 2'!AZ35","v":{"v":770732.7891277708,"d":"$770,733"}},{"$f":"SUM('Trial 2'!AO35:AZ35)","v":{"v":9413336.049842454,"d":"$9,413,336"}},{"$f":"'Trial 2'!BB35","v":{"v":783449.4477920394,"d":"$783,449"}},{"$f":"'Trial 2'!BC35","v":{"v":795611.4105750924,"d":"$795,611"}},{"$f":"'Trial 2'!BD35","v":{"v":765703.6395781651,"d":"$765,704"}},{"$f":"'Trial 2'!BE35","v":{"v":768271.5349242506,"d":"$768,272"}},{"$f":"'Trial 2'!BF35","v":{"v":804275.9263142162,"d":"$804,276"}},{"$f":"'Trial 2'!BG35","v":{"v":773944.1708236599,"d":"$773,944"}},{"$f":"'Trial 2'!BH35","v":{"v":758793.6958970878,"d":"$758,794"}},{"$f":"'Trial 2'!BI35","v":{"v":785196.6433844756,"d":"$785,197"}},{"$f":"'Trial 2'!BJ35","v":{"v":767421.4888300322,"d":"$767,421"}},{"$f":"'Trial 2'!BK35","v":{"v":739634.3639202345,"d":"$739,634"}},{"$f":"'Trial 2'!BL35","v":{"v":738324.8073560859,"d":"$738,325"}},{"$f":"'Trial 2'!BM35","v":{"v":804732.1826463887,"d":"$804,732"}},{"$f":"SUM('Trial 2'!BB35:BM35)","v":{"v":9285359.312041726,"d":"$9,285,359"}},{"$f":"'Trial 2'!BO35","v":{"v":751798.0921944735,"d":"$751,798"}},{"$f":"'Trial 2'!BP35","v":{"v":770688.9406589464,"d":"$770,689"}},{"$f":"'Trial 2'!BQ35","v":{"v":778080.3986964443,"d":"$778,080"}},{"$f":"'Trial 2'!BR35","v":{"v":774229.0122423454,"d":"$774,229"}},{"$f":"'Trial 2'!BS35","v":{"v":765751.274970582,"d":"$765,751"}},{"$f":"'Trial 2'!BT35","v":{"v":730854.8905761401,"d":"$730,855"}},{"$f":"'Trial 2'!BU35","v":{"v":750246.9693473912,"d":"$750,247"}},{"$f":"'Trial 2'!BV35","v":{"v":789639.15049963,"d":"$789,639"}},{"$f":"'Trial 2'!BW35","v":{"v":766763.9294767571,"d":"$766,764"}},{"$f":"'Trial 2'!BX35","v":{"v":751448.0495599065,"d":"$751,448"}},{"$f":"'Trial 2'!BY35","v":{"v":780999.7558711746,"d":"$781,000"}},{"$f":"'Trial 2'!BZ35","v":{"v":769811.7795114642,"d":"$769,812"}},{"$f":"SUM('Trial 2'!BO35:BZ35)","v":{"v":9180312.243605256,"d":"$9,180,312"}},{"$f":"'Trial 2'!CB35","v":{"v":794727.7164284055,"d":"$794,728"}},{"$f":"'Trial 2'!CC35","v":{"v":785130.6348381435,"d":"$785,131"}},{"$f":"'Trial 2'!CD35","v":{"v":759825.8709862859,"d":"$759,826"}},{"$f":"'Trial 2'!CE35","v":{"v":760570.3555480203,"d":"$760,570"}},{"$f":"'Trial 2'!CF35","v":{"v":773322.0582853368,"d":"$773,322"}},{"$f":"'Trial 2'!CG35","v":{"v":743522.5363458494,"d":"$743,523"}},{"$f":"'Trial 2'!CH35","v":{"v":771830.3655375323,"d":"$771,830"}},{"$f":"'Trial 2'!CI35","v":{"v":772426.276542477,"d":"$772,426"}},{"$f":"'Trial 2'!CJ35","v":{"v":791599.7363578812,"d":"$791,600"}},{"$f":"'Trial 2'!CK35","v":{"v":725726.5134277599,"d":"$725,727"}},{"$f":"'Trial 2'!CL35","v":{"v":756065.4235537119,"d":"$756,065"}},{"$f":"'Trial 2'!CM35","v":{"v":783917.0071523364,"d":"$783,917"}},{"$f":"SUM('Trial 2'!CB35:CM35)","v":{"v":9218664.49500374,"d":"$9,218,664"}},{"$f":"'Trial 2'!CO35","v":{"v":739355.5392104149,"d":"$739,356"}},{"$f":"'Trial 2'!CP35","v":{"v":747910.4036289055,"d":"$747,910"}},{"$f":"'Trial 2'!CQ35","v":{"v":758528.6777204479,"d":"$758,529"}},{"$f":"'Trial 2'!CR35","v":{"v":736842.5494209251,"d":"$736,843"}},{"$f":"'Trial 2'!CS35","v":{"v":757616.1924533189,"d":"$757,616"}},{"$f":"'Trial 2'!CT35","v":{"v":719320.5233552688,"d":"$719,321"}},{"$f":"'Trial 2'!CU35","v":{"v":779633.1362306915,"d":"$779,633"}},{"$f":"'Trial 2'!CV35","v":{"v":708331.5478580032,"d":"$708,332"}},{"$f":"'Trial 2'!CW35","v":{"v":759139.2126596003,"d":"$759,139"}},{"$f":"'Trial 2'!CX35","v":{"v":787556.7884647007,"d":"$787,557"}},{"$f":"'Trial 2'!CY35","v":{"v":721454.9610767431,"d":"$721,455"}},{"$f":"'Trial 2'!CZ35","v":{"v":744664.1513877743,"d":"$744,664"}},{"$f":"SUM('Trial 2'!CO35:CZ35)","v":{"v":8960353.683466794,"d":"$8,960,354"}},{"$f":"'Trial 2'!DB35","v":{"v":745186.4932007666,"d":"$745,186"}},{"$f":"'Trial 2'!DC35","v":{"v":736989.4254634619,"d":"$736,989"}},{"$f":"'Trial 2'!DD35","v":{"v":750161.9651136122,"d":"$750,162"}},{"$f":"'Trial 2'!DE35","v":{"v":742290.9459159496,"d":"$742,291"}},{"$f":"'Trial 2'!DF35","v":{"v":762510.4991111901,"d":"$762,510"}},{"$f":"'Trial 2'!DG35","v":{"v":726452.5917228163,"d":"$726,453"}},{"$f":"'Trial 2'!DH35","v":{"v":730284.7129124765,"d":"$730,285"}},{"$f":"'Trial 2'!DI35","v":{"v":731975.5853372321,"d":"$731,976"}},{"$f":"'Trial 2'!DJ35","v":{"v":741641.7705006074,"d":"$741,642"}},{"$f":"'Trial 2'!DK35","v":{"v":759306.8194069884,"d":"$759,307"}},{"$f":"'Trial 2'!DL35","v":{"v":772239.5866993688,"d":"$772,240"}},{"$f":"'Trial 2'!DM35","v":{"v":704404.7399702795,"d":"$704,405"}},{"$f":"SUM('Trial 2'!DB35:DM35)","v":{"v":8903445.13535475,"d":"$8,903,445"}},{"$f":"'Trial 2'!DO35","v":{"v":720047.9559115373,"d":"$720,048"}},{"$f":"'Trial 2'!DP35","v":{"v":701520.808010407,"d":"$701,521"}},{"$f":"'Trial 2'!DQ35","v":{"v":722485.0639466447,"d":"$722,485"}},{"$f":"'Trial 2'!DR35","v":{"v":735351.6436719903,"d":"$735,352"}},{"$f":"'Trial 2'!DS35","v":{"v":720070.9815958586,"d":"$720,071"}},{"$f":"'Trial 2'!DT35","v":{"v":727398.2489034402,"d":"$727,398"}},{"$f":"'Trial 2'!DU35","v":{"v":723930.4634047447,"d":"$723,930"}},{"$f":"'Trial 2'!DV35","v":{"v":693806.2672077125,"d":"$693,806"}},{"$f":"'Trial 2'!DW35","v":{"v":731284.5208426751,"d":"$731,285"}},{"$f":"'Trial 2'!DX35","v":{"v":727505.9035663636,"d":"$727,506"}},{"$f":"'Trial 2'!DY35","v":{"v":723094.8545185286,"d":"$723,095"}},{"$f":"'Trial 2'!DZ35","v":{"v":731165.6024255276,"d":"$731,166"}},{"$f":"SUM('Trial 2'!DO35:DZ35)","v":{"v":8657662.314005429,"d":"$8,657,662"}},{"$f":"'Trial 2'!EB35","v":{"v":730064.3091074231,"d":"$730,064"}},{"$f":"'Trial 2'!EC35","v":{"v":711206.9107116932,"d":"$711,207"}},{"$f":"'Trial 2'!ED35","v":{"v":683182.8565284148,"d":"$683,183"}},{"$f":"'Trial 2'!EE35","v":{"v":764021.5035764417,"d":"$764,022"}},{"$f":"'Trial 2'!EF35","v":{"v":736065.6704158704,"d":"$736,066"}},{"$f":"'Trial 2'!EG35","v":{"v":722322.1060426042,"d":"$722,322"}},{"$f":"'Trial 2'!EH35","v":{"v":745347.5313306005,"d":"$745,348"}},{"$f":"'Trial 2'!EI35","v":{"v":729124.4377420519,"d":"$729,124"}},{"$f":"'Trial 2'!EJ35","v":{"v":718738.2175461742,"d":"$718,738"}},{"$f":"'Trial 2'!EK35","v":{"v":709594.1286578588,"d":"$709,594"}},{"$f":"'Trial 2'!EL35","v":{"v":735432.2382439983,"d":"$735,432"}},{"$f":"'Trial 2'!EM35","v":{"v":717224.2748422635,"d":"$717,224"}},{"$f":"SUM('Trial 2'!EB35:EM35)","v":{"v":8702324.184745394,"d":"$8,702,324"}}]
[{"$f":"Labels!B98","v":"Trial 03"},{"$f":"'Trial 3'!B35","v":{"v":819823.0727026226,"d":"$819,823"}},{"$f":"'Trial 3'!C35","v":{"v":853493.8755850921,"d":"$853,494"}},{"$f":"'Trial 3'!D35","v":{"v":815955.1359985956,"d":"$815,955"}},{"$f":"'Trial 3'!E35","v":{"v":808470.3712733049,"d":"$808,470"}},{"$f":"'Trial 3'!F35","v":{"v":841850.8018481486,"d":"$841,851"}},{"$f":"'Trial 3'!G35","v":{"v":822737.9215963477,"d":"$822,738"}},{"$f":"'Trial 3'!H35","v":{"v":830169.8527234172,"d":"$830,170"}},{"$f":"'Trial 3'!I35","v":{"v":829366.245581959,"d":"$829,366"}},{"$f":"'Trial 3'!J35","v":{"v":849567.9799914908,"d":"$849,568"}},{"$f":"'Trial 3'!K35","v":{"v":801520.4807548019,"d":"$801,520"}},{"$f":"'Trial 3'!L35","v":{"v":809870.2986106689,"d":"$809,870"}},{"$f":"'Trial 3'!M35","v":{"v":824381.7435983516,"d":"$824,382"}},{"$f":"SUM('Trial 3'!B35:M35)","v":{"v":9907207.7802648,"d":"$9,907,208"}},{"$f":"'Trial 3'!O35","v":{"v":811788.6108104863,"d":"$811,789"}},{"$f":"'Trial 3'!P35","v":{"v":832002.2643947542,"d":"$832,002"}},{"$f":"'Trial 3'!Q35","v":{"v":800644.5191399471,"d":"$800,645"}},{"$f":"'Trial 3'!R35","v":{"v":840206.7217531876,"d":"$840,207"}},{"$f":"'Trial 3'!S35","v":{"v":856876.5354658185,"d":"$856,877"}},{"$f":"'Trial 3'!T35","v":{"v":799673.512315563,"d":"$799,674"}},{"$f":"'Trial 3'!U35","v":{"v":838126.8742221253,"d":"$838,127"}},{"$f":"'Trial 3'!V35","v":{"v":841759.0634206486,"d":"$841,759"}},{"$f":"'Trial 3'!W35","v":{"v":801900.6339921689,"d":"$801,901"}},{"$f":"'Trial 3'!X35","v":{"v":821821.2059720887,"d":"$821,821"}},{"$f":"'Trial 3'!Y35","v":{"v":774314.4868914107,"d":"$774,314"}},{"$f":"'Trial 3'!Z35","v":{"v":812293.9365895346,"d":"$812,294"}},{"$f":"SUM('Trial 3'!O35:Z35)","v":{"v":9831408.364967734,"d":"$9,831,408"}},{"$f":"'Trial 3'!AB35","v":{"v":814522.309066637,"d":"$814,522"}},{"$f":"'Trial 3'!AC35","v":{"v":831459.0321482896,"d":"$831,459"}},{"$f":"'Trial 3'!AD35","v":{"v":799097.3499590891,"d":"$799,097"}},{"$f":"'Trial 3'!AE35","v":{"v":812668.8839813186,"d":"$812,669"}},{"$f":"'Trial 3'!AF35","v":{"v":809088.6201184609,"d":"$809,089"}},{"$f":"'Trial 3'!AG35","v":{"v":796868.7914490536,"d":"$796,869"}},{"$f":"'Trial 3'!AH35","v":{"v":773847.5843674482,"d":"$773,848"}},{"$f":"'Trial 3'!AI35","v":{"v":812266.8114469805,"d":"$812,267"}},{"$f":"'Trial 3'!AJ35","v":{"v":811125.6641734694,"d":"$811,126"}},{"$f":"'Trial 3'!AK35","v":{"v":803919.1976749051,"d":"$803,919"}},{"$f":"'Trial 3'!AL35","v":{"v":778512.1034644445,"d":"$778,512"}},{"$f":"'Trial 3'!AM35","v":{"v":834680.6928823858,"d":"$834,681"}},{"$f":"SUM('Trial 3'!AB35:AM35)","v":{"v":9678057.04073248,"d":"$9,678,057"}},{"$f":"'Trial 3'!AO35","v":{"v":775518.0722934256,"d":"$775,518"}},{"$f":"'Trial 3'!AP35","v":{"v":801646.2237176817,"d":"$801,646"}},{"$f":"'Trial 3'!AQ35","v":{"v":831066.3014524417,"d":"$831,066"}},{"$f":"'Trial 3'!AR35","v":{"v":815131.2807394406,"d":"$815,131"}},{"$f":"'Trial 3'!AS35","v":{"v":786812.5419237129,"d":"$786,813"}},{"$f":"'Trial 3'!AT35","v":{"v":799375.7148845305,"d":"$799,376"}},{"$f":"'Trial 3'!AU35","v":{"v":820163.4394740894,"d":"$820,163"}},{"$f":"'Trial 3'!AV35","v":{"v":812271.6637343437,"d":"$812,272"}},{"$f":"'Trial 3'!AW35","v":{"v":750283.5405912186,"d":"$750,284"}},{"$f":"'Trial 3'!AX35","v":{"v":817022.7588706863,"d":"$817,023"}},{"$f":"'Trial 3'!AY35","v":{"v":778096.2361210566,"d":"$778,096"}},{"$f":"'Trial 3'!AZ35","v":{"v":785686.1743945506,"d":"$785,686"}},{"$f":"SUM('Trial 3'!AO35:AZ35)","v":{"v":9573073.948197177,"d":"$9,573,074"}},{"$f":"'Trial 3'!BB35","v":{"v":810121.3234875288,"d":"$810,121"}},{"$f":"'Trial 3'!BC35","v":{"v":819689.0503149455,"d":"$819,689"}},{"$f":"'Trial 3'!BD35","v":{"v":780351.5248302673,"d":"$780,352"}},{"$f":"'Trial 3'!BE35","v":{"v":800382.0465341631,"d":"$800,382"}},{"$f":"'Trial 3'!BF35","v":{"v":783368.6882630631,"d":"$783,369"}},{"$f":"'Trial 3'!BG35","v":{"v":784798.5596735942,"d":"$784,799"}},{"$f":"'Trial 3'!BH35","v":{"v":813652.2491681575,"d":"$813,652"}},{"$f":"'Trial 3'!BI35","v":{"v":776929.0854940788,"d":"$776,929"}},{"$f":"'Trial 3'!BJ35","v":{"v":745015.6460295975,"d":"$745,016"}},{"$f":"'Trial 3'!BK35","v":{"v":747218.3977143372,"d":"$747,218"}},{"$f":"'Trial 3'!BL35","v":{"v":780214.946934187,"d":"$780,215"}},{"$f":"'Trial 3'!BM35","v":{"v":738358.1828496837,"d":"$738,358"}},{"$f":"SUM('Trial 3'!BB35:BM35)","v":{"v":9380099.701293603,"d":"$9,380,100"}},{"$f":"'Trial 3'!BO35","v":{"v":768355.0974031135,"d":"$768,355"}},{"$f":"'Trial 3'!BP35","v":{"v":760049.1770910075,"d":"$760,049"}},{"$f":"'Trial 3'!BQ35","v":{"v":767086.176764229,"d":"$767,086"}},{"$f":"'Trial 3'!BR35","v":{"v":799205.6930547464,"d":"$799,206"}},{"$f":"'Trial 3'!BS35","v":{"v":771476.9495922778,"d":"$771,477"}},{"$f":"'Trial 3'!BT35","v":{"v":780556.6282191823,"d":"$780,557"}},{"$f":"'Trial 3'!BU35","v":{"v":739066.2269421889,"d":"$739,066"}},{"$f":"'Trial 3'!BV35","v":{"v":769779.3875362576,"d":"$769,779"}},{"$f":"'Trial 3'!BW35","v":{"v":782542.1162556045,"d":"$782,542"}},{"$f":"'Trial 3'!BX35","v":{"v":755421.0188046617,"d":"$755,421"}},{"$f":"'Trial 3'!BY35","v":{"v":746411.0313238942,"d":"$746,411"}},{"$f":"'Trial 3'!BZ35","v":{"v":734215.3800312739,"d":"$734,215"}},{"$f":"SUM('Trial 3'!BO35:BZ35)","v":{"v":9174164.883018438,"d":"$9,174,165"}},{"$f":"'Trial 3'!CB35","v":{"v":765142.072893971,"d":"$765,142"}},{"$f":"'Trial 3'!CC35","v":{"v":775309.6083633021,"d":"$775,310"}},{"$f":"'Trial 3'!CD35","v":{"v":728735.9739124099,"d":"$728,736"}},{"$f":"'Trial 3'!CE35","v":{"v":729116.5434602193,"d":"$729,117"}},{"$f":"'Trial 3'!CF35","v":{"v":767292.9953251693,"d":"$767,293"}},{"$f":"'Trial 3'!CG35","v":{"v":746951.1408737208,"d":"$746,951"}},{"$f":"'Trial 3'!CH35","v":{"v":729739.0269545387,"d":"$729,739"}},{"$f":"'Trial 3'!CI35","v":{"v":779970.2238768098,"d":"$779,970"}},{"$f":"'Trial 3'!CJ35","v":{"v":759972.3167579066,"d":"$759,972"}},{"$f":"'Trial 3'!CK35","v":{"v":759769.2084151811,"d":"$759,769"}},{"$f":"'Trial 3'!CL35","v":{"v":731034.937600645,"d":"$731,035"}},{"$f":"'Trial 3'!CM35","v":{"v":734232.7907307593,"d":"$734,233"}},{"$f":"SUM('Trial 3'!CB35:CM35)","v":{"v":9007266.839164633,"d":"$9,007,267"}},{"$f":"'Trial 3'!CO35","v":{"v":761855.591902928,"d":"$761,856"}},{"$f":"'Trial 3'!CP35","v":{"v":752892.4269114727,"d":"$752,892"}},{"$f":"'Trial 3'!CQ35","v":{"v":753723.9637462053,"d":"$753,724"}},{"$f":"'Trial 3'!CR35","v":{"v":723933.4480440092,"d":"$723,933"}},{"$f":"'Trial 3'!CS35","v":{"v":753013.1877231097,"d":"$753,013"}},{"$f":"'Trial 3'!CT35","v":{"v":787768.0817142379,"d":"$787,768"}},{"$f":"'Trial 3'!CU35","v":{"v":737127.9462445354,"d":"$737,128"}},{"$f":"'Trial 3'!CV35","v":{"v":750665.6593096802,"d":"$750,666"}},{"$f":"'Trial 3'!CW35","v":{"v":723085.0356170252,"d":"$723,085"}},{"$f":"'Trial 3'!CX35","v":{"v":757657.9547515797,"d":"$757,658"}},{"$f":"'Trial 3'!CY35","v":{"v":772289.497916887,"d":"$772,289"}},{"$f":"'Trial 3'!CZ35","v":{"v":773018.6129940484,"d":"$773,019"}},{"$f":"SUM('Trial 3'!CO35:CZ35)","v":{"v":9047031.40687572,"d":"$9,047,031"}},{"$f":"'Trial 3'!DB35","v":{"v":743236.723091541,"d":"$743,237"}},{"$f":"'Trial 3'!DC35","v":{"v":706358.8273468919,"d":"$706,359"}},{"$f":"'Trial 3'!DD35","v":{"v":736413.1243352155,"d":"$736,413"}},{"$f":"'Trial 3'!DE35","v":{"v":733585.6967387357,"d":"$733,586"}},{"$f":"'Trial 3'!DF35","v":{"v":731846.1153059681,"d":"$731,846"}},{"$f":"'Trial 3'!DG35","v":{"v":730154.7552259191,"d":"$730,155"}},{"$f":"'Trial 3'!DH35","v":{"v":762808.4572110042,"d":"$762,808"}},{"$f":"'Trial 3'!DI35","v":{"v":759999.329433093,"d":"$759,999"}},{"$f":"'Trial 3'!DJ35","v":{"v":765333.5660739893,"d":"$765,334"}},{"$f":"'Trial 3'!DK35","v":{"v":736797.8499434235,"d":"$736,798"}},{"$f":"'Trial 3'!DL35","v":{"v":710651.1016854121,"d":"$710,651"}},{"$f":"'Trial 3'!DM35","v":{"v":739161.6050574247,"d":"$739,162"}},{"$f":"SUM('Trial 3'!DB35:DM35)","v":{"v":8856347.151448619,"d":"$8,856,347"}},{"$f":"'Trial 3'!DO35","v":{"v":766863.1305960506,"d":"$766,863"}},{"$f":"'Trial 3'!DP35","v":{"v":766498.0778827459,"d":"$766,498"}},{"$f":"'Trial 3'!DQ35","v":{"v":743002.6932308535,"d":"$743,003"}},{"$f":"'Trial 3'!DR35","v":{"v":771241.9912607113,"d":"$771,242"}},{"$f":"'Trial 3'!DS35","v":{"v":743158.8971045151,"d":"$743,159"}},{"$f":"'Trial 3'!DT35","v":{"v":733104.9323185413,"d":"$733,105"}},{"$f":"'Trial 3'!DU35","v":{"v":745030.5865016818,"d":"$745,031"}},{"$f":"'Trial 3'!DV35","v":{"v":690743.4691244344,"d":"$690,743"}},{"$f":"'Trial 3'!DW35","v":{"v":759461.4161444738,"d":"$759,461"}},{"$f":"'Trial 3'!DX35","v":{"v":734694.5926480443,"d":"$734,695"}},{"$f":"'Trial 3'!DY35","v":{"v":765045.4780502814,"d":"$765,045"}},{"$f":"'Trial 3'!DZ35","v":{"v":720584.6119503587,"d":"$720,585"}},{"$f":"SUM('Trial 3'!DO35:DZ35)","v":{"v":8939429.876812693,"d":"$8,939,430"}},{"$f":"'Trial 3'!EB35","v":{"v":747561.8588954961,"d":"$747,562"}},{"$f":"'Trial 3'!EC35","v":{"v":755554.7405399512,"d":"$755,555"}},{"$f":"'Trial 3'!ED35","v":{"v":701129.7247178246,"d":"$701,130"}},{"$f":"'Trial 3'!EE35","v":{"v":716118.4643197994,"d":"$716,118"}},{"$f":"'Trial 3'!EF35","v":{"v":711366.2687294121,"d":"$711,366"}},{"$f":"'Trial 3'!EG35","v":{"v":736059.4396526489,"d":"$736,059"}},{"$f":"'Trial 3'!EH35","v":{"v":688910.7042701292,"d":"$688,911"}},{"$f":"'Trial 3'!EI35","v":{"v":685207.1793011591,"d":"$685,207"}},{"$f":"'Trial 3'!EJ35","v":{"v":707465.7966462012,"d":"$707,466"}},{"$f":"'Trial 3'!EK35","v":{"v":718613.251297198,"d":"$718,613"}},{"$f":"'Trial 3'!EL35","v":{"v":712049.1610952752,"d":"$712,049"}},{"$f":"'Trial 3'!EM35","v":{"v":758593.9892758512,"d":"$758,594"}},{"$f":"SUM('Trial 3'!EB35:EM35)","v":{"v":8638630.578740947,"d":"$8,638,631"}}]
[{"$f":"Labels!B99","v":"Trial 04"},{"$f":"'Trial 4'!B35","v":{"v":855492.7939183748,"d":"$855,493"}},{"$f":"'Trial 4'!C35","v":{"v":870001.696961098,"d":"$870,002"}},{"$f":"'Trial 4'!D35","v":{"v":845771.6359089069,"d":"$845,772"}},{"$f":"'Trial 4'!E35","v":{"v":798635.1322668182,"d":"$798,635"}},{"$f":"'Trial 4'!F35","v":{"v":807547.2915370219,"d":"$807,547"}},{"$f":"'Trial 4'!G35","v":{"v":845761.6227852188,"d":"$845,762"}},{"$f":"'Trial 4'!H35","v":{"v":846797.9449635037,"d":"$846,798"}},{"$f":"'Trial 4'!I35","v":{"v":850055.6259834437,"d":"$850,056"}},{"$f":"'Trial 4'!J35","v":{"v":816078.0501505971,"d":"$816,078"}},{"$f":"'Trial 4'!K35","v":{"v":815510.9039580974,"d":"$815,511"}},{"$f":"'Trial 4'!L35","v":{"v":817853.9097572907,"d":"$817,854"}},{"$f":"'Trial 4'!M35","v":{"v":815856.3829233759,"d":"$815,856"}},{"$f":"SUM('Trial 4'!B35:M35)","v":{"v":9985362.991113747,"d":"$9,985,363"}},{"$f":"'Trial 4'!O35","v":{"v":840325.5547894526,"d":"$840,326"}},{"$f":"'Trial 4'!P35","v":{"v":818436.3142932245,"d":"$818,436"}},{"$f":"'Trial 4'!Q35","v":{"v":843393.4498761507,"d":"$843,393"}},{"$f":"'Trial 4'!R35","v":{"v":854305.797801318,"d":"$854,306"}},{"$f":"'Trial 4'!S35","v":{"v":849809.5150090941,"d":"$849,810"}},{"$f":"'Trial 4'!T35","v":{"v":799029.772841946,"d":"$799,030"}},{"$f":"'Trial 4'!U35","v":{"v":813094.9813106257,"d":"$813,095"}},{"$f":"'Trial 4'!V35","v":{"v":816160.6156243939,"d":"$816,161"}},{"$f":"'Trial 4'!W35","v":{"v":809464.7760152884,"d":"$809,465"}},{"$f":"'Trial 4'!X35","v":{"v":829326.5445037788,"d":"$829,327"}},{"$f":"'Trial 4'!Y35","v":{"v":778517.5461727233,"d":"$778,518"}},{"$f":"'Trial 4'!Z35","v":{"v":818096.7817348348,"d":"$818,097"}},{"$f":"SUM('Trial 4'!O35:Z35)","v":{"v":9869961.649972832,"d":"$9,869,962"}},{"$f":"'Trial 4'!AB35","v":{"v":816592.7929824716,"d":"$816,593"}},{"$f":"'Trial 4'!AC35","v":{"v":809727.04306149,"d":"$809,727"}},{"$f":"'Trial 4'!AD35","v":{"v":803901.0211275305,"d":"$803,901"}},{"$f":"'Trial 4'!AE35","v":{"v":776861.1853981494,"d":"$776,861"}},{"$f":"'Trial 4'!AF35","v":{"v":819091.4080663837,"d":"$819,091"}},{"$f":"'Trial 4'!AG35","v":{"v":814386.5447027195,"d":"$814,387"}},{"$f":"'Trial 4'!AH35","v":{"v":839031.8443076765,"d":"$839,032"}},{"$f":"'Trial 4'!AI35","v":{"v":782483.051165731,"d":"$782,483"}},{"$f":"'Trial 4'!AJ35","v":{"v":761888.4638154329,"d":"$761,888"}},{"$f":"'Trial 4'!AK35","v":{"v":772983.8445569022,"d":"$772,984"}},{"$f":"'Trial 4'!AL35","v":{"v":791631.1266551943,"d":"$791,631"}},{"$f":"'Trial 4'!AM35","v":{"v":826144.3888061397,"d":"$826,144"}},{"$f":"SUM('Trial 4'!AB35:AM35)","v":{"v":9614722.714645822,"d":"$9,614,723"}},{"$f":"'Trial 4'!AO35","v":{"v":777452.0294759005,"d":"$777,452"}},{"$f":"'Trial 4'!AP35","v":{"v":789481.805581725,"d":"$789,482"}},{"$f":"'Trial 4'!AQ35","v":{"v":784354.9331721105,"d":"$784,355"}},{"$f":"'Trial 4'!AR35","v":{"v":765947.1636259843,"d":"$765,947"}},{"$f":"'Trial 4'!AS35","v":{"v":761612.32027742,"d":"$761,612"}},{"$f":"'Trial 4'!AT35","v":{"v":754617.3460240854,"d":"$754,617"}},{"$f":"'Trial 4'!AU35","v":{"v":794509.9959140052,"d":"$794,510"}},{"$f":"'Trial 4'!AV35","v":{"v":798798.3143205993,"d":"$798,798"}},{"$f":"'Trial 4'!AW35","v":{"v":781802.4482121539,"d":"$781,802"}},{"$f":"'Trial 4'!AX35","v":{"v":771497.8820296392,"d":"$771,498"}},{"$f":"'Trial 4'!AY35","v":{"v":786406.9956853156,"d":"$786,407"}},{"$f":"'Trial 4'!AZ35","v":{"v":778873.0987223269,"d":"$778,873"}},{"$f":"SUM('Trial 4'!AO35:AZ35)","v":{"v":9345354.333041267,"d":"$9,345,354"}},{"$f":"'Trial 4'!BB35","v":{"v":801131.3798645588,"d":"$801,131"}},{"$f":"'Trial 4'!BC35","v":{"v":771786.7635937369,"d":"$771,787"}},{"$f":"'Trial 4'!BD35","v":{"v":771116.2680674063,"d":"$771,116"}},{"$f":"'Trial 4'!BE35","v":{"v":772892.4883952826,"d":"$772,892"}},{"$f":"'Trial 4'!BF35","v":{"v":783226.000404816,"d":"$783,226"}},{"$f":"'Trial 4'!BG35","v":{"v":797637.871664048,"d":"$797,638"}},{"$f":"'Trial 4'!BH35","v":{"v":792892.1549785713,"d":"$792,892"}},{"$f":"'Trial 4'!BI35","v":{"v":751243.3470392287,"d":"$751,243"}},{"$f":"'Trial 4'!BJ35","v":{"v":782790.7793909489,"d":"$782,791"}},{"$f":"'Trial 4'!BK35","v":{"v":766204.2327247725,"d":"$766,204"}},{"$f":"'Trial 4'!BL35","v":{"v":773059.1408357165,"d":"$773,059"}},{"$f":"'Trial 4'!BM35","v":{"v":783863.2069917088,"d":"$783,863"}},{"$f":"SUM('Trial 4'!BB35:BM35)","v":{"v":9347843.633950796,"d":"$9,347,844"}},{"$f":"'Trial 4'!BO35","v":{"v":758696.1709643172,"d":"$758,696"}},{"$f":"'Trial 4'!BP35","v":{"v":780667.179052325,"d":"$780,667"}},{"$f":"'Trial 4'!BQ35","v":{"v":760675.3814308398,"d":"$760,675"}},{"$f":"'Trial 4'!BR35","v":{"v":770687.5850577089,"d":"$770,688"}},{"$f":"'Trial 4'!BS35","v":{"v":759482.764445258,"d":"$759,483"}},{"$f":"'Trial 4'!BT35","v":{"v":779353.2925174377,"d":"$779,353"}},{"$f":"'Trial 4'!BU35","v":{"v":773813.0925517655,"d":"$773,813"}},{"$f":"'Trial 4'!BV35","v":{"v":742096.4174685817,"d":"$742,096"}},{"$f":"'Trial 4'!BW35","v":{"v":786094.9294794062,"d":"$786,095"}},{"$f":"'Trial 4'!BX35","v":{"v":793053.9065424082,"d":"$793,054"}},{"$f":"'Trial 4'!BY35","v":{"v":760998.9261352232,"d":"$760,999"}},{"$f":"'Trial 4'!BZ35","v":{"v":780185.3207467269,"d":"$780,185"}},{"$f":"SUM('Trial 4'!BO35:BZ35)","v":{"v":9245804.966392,"d":"$9,245,805"}},{"$f":"'Trial 4'!CB35","v":{"v":764401.6112086169,"d":"$764,402"}},{"$f":"'Trial 4'!CC35","v":{"v":765239.1075616911,"d":"$765,239"}},{"$f":"'Trial 4'!CD35","v":{"v":765683.0966581906,"d":"$765,683"}},{"$f":"'Trial 4'!CE35","v":{"v":755181.1500649725,"d":"$755,181"}},{"$f":"'Trial 4'!CF35","v":{"v":754429.0374583452,"d":"$754,429"}},{"$f":"'Trial 4'!CG35","v":{"v":767549.7130351296,"d":"$767,550"}},{"$f":"'Trial 4'!CH35","v":{"v":729743.4174713521,"d":"$729,743"}},{"$f":"'Trial 4'!CI35","v":{"v":756282.740564928,"d":"$756,283"}},{"$f":"'Trial 4'!CJ35","v":{"v":766950.4170393745,"d":"$766,950"}},{"$f":"'Trial 4'!CK35","v":{"v":748953.9866583983,"d":"$748,954"}},{"$f":"'Trial 4'!CL35","v":{"v":761826.488099691,"d":"$761,826"}},{"$f":"'Trial 4'!CM35","v":{"v":739319.0669546728,"d":"$739,319"}},{"$f":"SUM('Trial 4'!CB35:CM35)","v":{"v":9075559.832775364,"d":"$9,075,560"}},{"$f":"'Trial 4'!CO35","v":{"v":778548.3276748072,"d":"$778,548"}},{"$f":"'Trial 4'!CP35","v":{"v":752263.5331143124,"d":"$752,264"}},{"$f":"'Trial 4'!CQ35","v":{"v":731940.8084414281,"d":"$731,941"}},{"$f":"'Trial 4'!CR35","v":{"v":752726.644922348,"d":"$752,727"}},{"$f":"'Trial 4'!CS35","v":{"v":729696.6210033133,"d":"$729,697"}},{"$f":"'Trial 4'!CT35","v":{"v":743137.0655113049,"d":"$743,137"}},{"$f":"'Trial 4'!CU35","v":{"v":741258.4137190998,"d":"$741,258"}},{"$f":"'Trial 4'!CV35","v":{"v":764492.8932105752,"d":"$764,493"}},{"$f":"'Trial 4'!CW35","v":{"v":741034.1291227886,"d":"$741,034"}},{"$f":"'Trial 4'!CX35","v":{"v":762774.8147971896,"d":"$762,775"}},{"$f":"'Trial 4'!CY35","v":{"v":750747.1193882482,"d":"$750,747"}},{"$f":"'Trial 4'!CZ35","v":{"v":729599.892802205,"d":"$729,600"}},{"$f":"SUM('Trial 4'!CO35:CZ35)","v":{"v":8978220.263707621,"d":"$8,978,220"}},{"$f":"'Trial 4'!DB35","v":{"v":737900.6448757601,"d":"$737,901"}},{"$f":"'Trial 4'!DC35","v":{"v":782903.9290576081,"d":"$782,904"}},{"$f":"'Trial 4'!DD35","v":{"v":745654.1715941901,"d":"$745,654"}},{"$f":"'Trial 4'!DE35","v":{"v":753939.1714334824,"d":"$753,939"}},{"$f":"'Trial 4'!DF35","v":{"v":745187.3393452044,"d":"$745,187"}},{"$f":"'Trial 4'!DG35","v":{"v":707719.8556478587,"d":"$707,720"}},{"$f":"'Trial 4'!DH35","v":{"v":747744.6748445362,"d":"$747,745"}},{"$f":"'Trial 4'!DI35","v":{"v":718887.5484751788,"d":"$718,888"}},{"$f":"'Trial 4'!DJ35","v":{"v":697353.3838538154,"d":"$697,353"}},{"$f":"'Trial 4'!DK35","v":{"v":740218.559852321,"d":"$740,219"}},{"$f":"'Trial 4'!DL35","v":{"v":731964.9461011529,"d":"$731,965"}},{"$f":"'Trial 4'!DM35","v":{"v":747111.0240682138,"d":"$747,111"}},{"$f":"SUM('Trial 4'!DB35:DM35)","v":{"v":8856585.249149323,"d":"$8,856,585"}},{"$f":"'Trial 4'!DO35","v":{"v":729102.4732970286,"d":"$729,102"}},{"$f":"'Trial 4'!DP35","v":{"v":750458.8268287993,"d":"$750,459"}},{"$f":"'Trial 4'!DQ35","v":{"v":758938.4554536607,"d":"$758,938"}},{"$f":"'Trial 4'!DR35","v":{"v":727817.8436754592,"d":"$727,818"}},{"$f":"'Trial 4'!DS35","v":{"v":753156.0123341741,"d":"$753,156"}},{"$f":"'Trial 4'!DT35","v":{"v":698253.233689312,"d":"$698,253"}},{"$f":"'Trial 4'!DU35","v":{"v":693237.7724561983,"d":"$693,238"}},{"$f":"'Trial 4'!DV35","v":{"v":734210.554307013,"d":"$734,211"}},{"$f":"'Trial 4'!DW35","v":{"v":752193.1671498378,"d":"$752,193"}},{"$f":"'Trial 4'!DX35","v":{"v":700990.799448883,"d":"$700,991"}},{"$f":"'Trial 4'!DY35","v":{"v":740336.3571762631,"d":"$740,336"}},{"$f":"'Trial 4'!DZ35","v":{"v":717793.4802226821,"d":"$717,793"}},{"$f":"SUM('Trial 4'!DO35:DZ35)","v":{"v":8756488.97603931,"d":"$8,756,489"}},{"$f":"'Trial 4'!EB35","v":{"v":750442.5737920686,"d":"$750,443"}},{"$f":"'Trial 4'!EC35","v":{"v":757426.2637737615,"d":"$757,426"}},{"$f":"'Trial 4'!ED35","v":{"v":737755.0323351678,"d":"$737,755"}},{"$f":"'Trial 4'!EE35","v":{"v":721271.3277889866,"d":"$721,271"}},{"$f":"'Trial 4'!EF35","v":{"v":708623.0550265639,"d":"$708,623"}},{"$f":"'Trial 4'!EG35","v":{"v":693141.8256855856,"d":"$693,142"}},{"$f":"'Trial 4'!EH35","v":{"v":730563.1073797216,"d":"$730,563"}},{"$f":"'Trial 4'!EI35","v":{"v":759956.9465029263,"d":"$759,957"}},{"$f":"'Trial 4'!EJ35","v":{"v":735203.7649449894,"d":"$735,204"}},{"$f":"'Trial 4'!EK35","v":{"v":698588.3365201794,"d":"$698,588"}},{"$f":"'Trial 4'!EL35","v":{"v":721250.7123218116,"d":"$721,251"}},{"$f":"'Trial 4'!EM35","v":{"v":736816.1826119283,"d":"$736,816"}},{"$f":"SUM('Trial 4'!EB35:EM35)","v":{"v":8751039.12868369,"d":"$8,751,039"}}]
[{"$f":"Labels!B100","v":"Trial 05"},{"$f":"'Trial 5'!B35","v":{"v":829848.8770889734,"d":"$829,849"}},{"$f":"'Trial 5'!C35","v":{"v":816045.8125721654,"d":"$816,046"}},{"$f":"'Trial 5'!D35","v":{"v":836244.7798364572,"d":"$836,245"}},{"$f":"'Trial 5'!E35","v":{"v":838995.3641079573,"d":"$838,995"}},{"$f":"'Trial 5'!F35","v":{"v":819202.1453095468,"d":"$819,202"}},{"$f":"'Trial 5'!G35","v":{"v":805238.1792832307,"d":"$805,238"}},{"$f":"'Trial 5'!H35","v":{"v":865628.4843090278,"d":"$865,628"}},{"$f":"'Trial 5'!I35","v":{"v":785524.2467432201,"d":"$785,524"}},{"$f":"'Trial 5'!J35","v":{"v":816295.4452353856,"d":"$816,295"}},{"$f":"'Trial 5'!K35","v":{"v":824697.6631935969,"d":"$824,698"}},{"$f":"'Trial 5'!L35","v":{"v":863556.8711613883,"d":"$863,557"}},{"$f":"'Trial 5'!M35","v":{"v":820758.7084472199,"d":"$820,759"}},{"$f":"SUM('Trial 5'!B35:M35)","v":{"v":9922036.57728817,"d":"$9,922,037"}},{"$f":"'Trial 5'!O35","v":{"v":810423.976324278,"d":"$810,424"}},{"$f":"'Trial 5'!P35","v":{"v":816314.1881675884,"d":"$816,314"}},{"$f":"'Trial 5'!Q35","v":{"v":823577.3894434953,"d":"$823,577"}},{"$f":"'Trial 5'!R35","v":{"v":787780.1521015536,"d":"$787,780"}},{"$f":"'Trial 5'!S35","v":{"v":799396.8840848127,"d":"$799,397"}},{"$f":"'Trial 5'!T35","v":{"v":844493.5612058312,"d":"$844,494"}},{"$f":"'Trial 5'!U35","v":{"v":833419.934463114,"d":"$833,420"}},{"$f":"'Trial 5'!V35","v":{"v":793105.4835726827,"d":"$793,105"}},{"$f":"'Trial 5'!W35","v":{"v":812601.5269326973,"d":"$812,602"}},{"$f":"'Trial 5'!X35","v":{"v":811189.2021771028,"d":"$811,189"}},{"$f":"'Trial 5'!Y35","v":{"v":814418.3463169504,"d":"$814,418"}},{"$f":"'Trial 5'!Z35","v":{"v":789106.4389482302,"d":"$789,106"}},{"$f":"SUM('Trial 5'!O35:Z35)","v":{"v":9735827.083738336,"d":"$9,735,827"}},{"$f":"'Trial 5'!AB35","v":{"v":775468.2661995239,"d":"$775,468"}},{"$f":"'Trial 5'!AC35","v":{"v":818310.9282676064,"d":"$818,311"}},{"$f":"'Trial 5'!AD35","v":{"v":829378.0379183686,"d":"$829,378"}},{"$f":"'Trial 5'!AE35","v":{"v":778576.5624822787,"d":"$778,577"}},{"$f":"'Trial 5'!AF35","v":{"v":777431.3271499649,"d":"$777,431"}},{"$f":"'Trial 5'!AG35","v":{"v":789874.8970217294,"d":"$789,875"}},{"$f":"'Trial 5'!AH35","v":{"v":822914.4692749035,"d":"$822,914"}},{"$f":"'Trial 5'!AI35","v":{"v":796355.4937497549,"d":"$796,355"}},{"$f":"'Trial 5'!AJ35","v":{"v":811206.4577611029,"d":"$811,206"}},{"$f":"'Trial 5'!AK35","v":{"v":821182.7251695284,"d":"$821,183"}},{"$f":"'Trial 5'!AL35","v":{"v":814272.808930777,"d":"$814,273"}},{"$f":"'Trial 5'!AM35","v":{"v":783229.0045961986,"d":"$783,229"}},{"$f":"SUM('Trial 5'!AB35:AM35)","v":{"v":9618200.978521736,"d":"$9,618,201"}},{"$f":"'Trial 5'!AO35","v":{"v":790448.1158380167,"d":"$790,448"}},{"$f":"'Trial 5'!AP35","v":{"v":783075.8207161509,"d":"$783,076"}},{"$f":"'Trial 5'!AQ35","v":{"v":771066.7909260745,"d":"$771,067"}},{"$f":"'Trial 5'!AR35","v":{"v":828452.0230399285,"d":"$828,452"}},{"$f":"'Trial 5'!AS35","v":{"v":773630.6844482567,"d":"$773,631"}},{"$f":"'Trial 5'!AT35","v":{"v":795056.2400856408,"d":"$795,056"}},{"$f":"'Trial 5'!AU35","v":{"v":802201.4277804672,"d":"$802,201"}},{"$f":"'Trial 5'!AV35","v":{"v":794512.114264038,"d":"$794,512"}},{"$f":"'Trial 5'!AW35","v":{"v":757279.8145564768,"d":"$757,280"}},{"$f":"'Trial 5'!AX35","v":{"v":775636.5813296001,"d":"$775,637"}},{"$f":"'Trial 5'!AY35","v":{"v":778131.8539874639,"d":"$778,132"}},{"$f":"'Trial 5'!AZ35","v":{"v":802941.0507359443,"d":"$802,941"}},{"$f":"SUM('Trial 5'!AO35:AZ35)","v":{"v":9452432.51770806,"d":"$9,452,433"}},{"$f":"'Trial 5'!BB35","v":{"v":752951.745425776,"d":"$752,952"}},{"$f":"'Trial 5'!BC35","v":{"v":791724.8122990417,"d":"$791,725"}},{"$f":"'Trial 5'!BD35","v":{"v":819562.2843738584,"d":"$819,562"}},{"$f":"'Trial 5'!BE35","v":{"v":805113.2631418975,"d":"$805,113"}},{"$f":"'Trial 5'!BF35","v":{"v":771349.0121462842,"d":"$771,349"}},{"$f":"'Trial 5'!BG35","v":{"v":745684.6947075481,"d":"$745,685"}},{"$f":"'Trial 5'!BH35","v":{"v":815976.0430428286,"d":"$815,976"}},{"$f":"'Trial 5'!BI35","v":{"v":750123.0653512342,"d":"$750,123"}},{"$f":"'Trial 5'!BJ35","v":{"v":772946.2216991893,"d":"$772,946"}},{"$f":"'Trial 5'!BK35","v":{"v":802280.8298058658,"d":"$802,281"}},{"$f":"'Trial 5'!BL35","v":{"v":746936.91111711,"d":"$746,937"}},{"$f":"'Trial 5'!BM35","v":{"v":782455.4728016412,"d":"$782,455"}},{"$f":"SUM('Trial 5'!BB35:BM35)","v":{"v":9357104.355912274,"d":"$9,357,104"}},{"$f":"'Trial 5'!BO35","v":{"v":741795.670525391,"d":"$741,796"}},{"$f":"'Trial 5'!BP35","v":{"v":772226.7511168591,"d":"$772,227"}},{"$f":"'Trial 5'!BQ35","v":{"v":748557.5104701066,"d":"$748,558"}},{"$f":"'Trial 5'!BR35","v":{"v":797944.8736708622,"d":"$797,945"}},{"$f":"'Trial 5'!BS35","v":{"v":755131.3029415872,"d":"$755,131"}},{"$f":"'Trial 5'!BT35","v":{"v":783632.1763463854,"d":"$783,632"}},{"$f":"'Trial 5'!BU35","v":{"v":794060.1346810631,"d":"$794,060"}},{"$f":"'Trial 5'!BV35","v":{"v":743717.4862837469,"d":"$743,717"}},{"$f":"'Trial 5'!BW35","v":{"v":764553.3979040624,"d":"$764,553"}},{"$f":"'Trial 5'!BX35","v":{"v":723893.1823881131,"d":"$723,893"}},{"$f":"'Trial 5'!BY35","v":{"v":777933.7932652121,"d":"$777,934"}},{"$f":"'Trial 5'!BZ35","v":{"v":765525.0042187261,"d":"$765,525"}},{"$f":"SUM('Trial 5'!BO35:BZ35)","v":{"v":9168971.283812113,"d":"$9,168,971"}},{"$f":"'Trial 5'!CB35","v":{"v":785414.9174596604,"d":"$785,415"}},{"$f":"'Trial 5'!CC35","v":{"v":752185.2104835819,"d":"$752,185"}},{"$f":"'Trial 5'!CD35","v":{"v":722784.8351793349,"d":"$722,785"}},{"$f":"'Trial 5'!CE35","v":{"v":737275.1164543204,"d":"$737,275"}},{"$f":"'Trial 5'!CF35","v":{"v":748008.1917431435,"d":"$748,008"}},{"$f":"'Trial 5'!CG35","v":{"v":786589.8060398429,"d":"$786,590"}},{"$f":"'Trial 5'!CH35","v":{"v":794816.7005263425,"d":"$794,817"}},{"$f":"'Trial 5'!CI35","v":{"v":772047.3263524454,"d":"$772,047"}},{"$f":"'Trial 5'!CJ35","v":{"v":780872.7574039324,"d":"$780,873"}},{"$f":"'Trial 5'!CK35","v":{"v":751449.0190600478,"d":"$751,449"}},{"$f":"'Trial 5'!CL35","v":{"v":737554.0282034285,"d":"$737,554"}},{"$f":"'Trial 5'!CM35","v":{"v":742283.9659997603,"d":"$742,284"}},{"$f":"SUM('Trial 5'!CB35:CM35)","v":{"v":9111281.874905841,"d":"$9,111,282"}},{"$f":"'Trial 5'!CO35","v":{"v":735409.7971429614,"d":"$735,410"}},{"$f":"'Trial 5'!CP35","v":{"v":739830.0720166763,"d":"$739,830"}},{"$f":"'Trial 5'!CQ35","v":{"v":775202.9153826077,"d":"$775,203"}},{"$f":"'Trial 5'!CR35","v":{"v":756718.8339588795,"d":"$756,719"}},{"$f":"'Trial 5'!CS35","v":{"v":737675.0121248674,"d":"$737,675"}},{"$f":"'Trial 5'!CT35","v":{"v":718411.5652569017,"d":"$718,412"}},{"$f":"'Trial 5'!CU35","v":{"v":753008.1746733455,"d":"$753,008"}},{"$f":"'Trial 5'!CV35","v":{"v":731461.7058111957,"d":"$731,462"}},{"$f":"'Trial 5'!CW35","v":{"v":749088.1203410336,"d":"$749,088"}},{"$f":"'Trial 5'!CX35","v":{"v":715447.4724310603,"d":"$715,447"}},{"$f":"'Trial 5'!CY35","v":{"v":744973.1781191762,"d":"$744,973"}},{"$f":"'Trial 5'!CZ35","v":{"v":756850.9356899563,"d":"$756,851"}},{"$f":"SUM('Trial 5'!CO35:CZ35)","v":{"v":8914077.782948662,"d":"$8,914,078"}},{"$f":"'Trial 5'!DB35","v":{"v":748358.2774976324,"d":"$748,358"}},{"$f":"'Trial 5'!DC35","v":{"v":730901.2567824187,"d":"$730,901"}},{"$f":"'Trial 5'!DD35","v":{"v":714142.583783271,"d":"$714,143"}},{"$f":"'Trial 5'!DE35","v":{"v":753372.887133019,"d":"$753,373"}},{"$f":"'Trial 5'!DF35","v":{"v":776128.7928160103,"d":"$776,129"}},{"$f":"'Trial 5'!DG35","v":{"v":735084.287679592,"d":"$735,084"}},{"$f":"'Trial 5'!DH35","v":{"v":737793.0975038137,"d":"$737,793"}},{"$f":"'Trial 5'!DI35","v":{"v":740382.0838189385,"d":"$740,382"}},{"$f":"'Trial 5'!DJ35","v":{"v":722573.1023603413,"d":"$722,573"}},{"$f":"'Trial 5'!DK35","v":{"v":736449.9427336814,"d":"$736,450"}},{"$f":"'Trial 5'!DL35","v":{"v":694939.0192016134,"d":"$694,939"}},{"$f":"'Trial 5'!DM35","v":{"v":739066.2811214445,"d":"$739,066"}},{"$f":"SUM('Trial 5'!DB35:DM35)","v":{"v":8829191.612431778,"d":"$8,829,192"}},{"$f":"'Trial 5'!DO35","v":{"v":774469.7853908907,"d":"$774,470"}},{"$f":"'Trial 5'!DP35","v":{"v":723426.1302328623,"d":"$723,426"}},{"$f":"'Trial 5'!DQ35","v":{"v":700373.3840141499,"d":"$700,373"}},{"$f":"'Trial 5'!DR35","v":{"v":715658.4233097205,"d":"$715,658"}},{"$f":"'Trial 5'!DS35","v":{"v":708350.8760955088,"d":"$708,351"}},{"$f":"'Trial 5'!DT35","v":{"v":745271.2370735435,"d":"$745,271"}},{"$f":"'Trial 5'!DU35","v":{"v":736851.4025500666,"d":"$736,851"}},{"$f":"'Trial 5'!DV35","v":{"v":727416.4519676686,"d":"$727,416"}},{"$f":"'Trial 5'!DW35","v":{"v":739687.2642169521,"d":"$739,687"}},{"$f":"'Trial 5'!DX35","v":{"v":718665.6741372474,"d":"$718,666"}},{"$f":"'Trial 5'!DY35","v":{"v":693673.258038265,"d":"$693,673"}},{"$f":"'Trial 5'!DZ35","v":{"v":720113.9578576883,"d":"$720,114"}},{"$f":"SUM('Trial 5'!DO35:DZ35)","v":{"v":8703957.844884563,"d":"$8,703,958"}},{"$f":"'Trial 5'!EB35","v":{"v":726161.873283512,"d":"$726,162"}},{"$f":"'Trial 5'!EC35","v":{"v":762469.9884743664,"d":"$762,470"}},{"$f":"'Trial 5'!ED35","v":{"v":712048.7260752333,"d":"$712,049"}},{"$f":"'Trial 5'!EE35","v":{"v":693891.350258964,"d":"$693,891"}},{"$f":"'Trial 5'!EF35","v":{"v":719849.5069006415,"d":"$719,850"}},{"$f":"'Trial 5'!EG35","v":{"v":714983.646909569,"d":"$714,984"}},{"$f":"'Trial 5'!EH35","v":{"v":734871.7697575054,"d":"$734,872"}},{"$f":"'Trial 5'!EI35","v":{"v":683078.2287702492,"d":"$683,078"}},{"$f":"'Trial 5'!EJ35","v":{"v":744279.895724523,"d":"$744,280"}},{"$f":"'Trial 5'!EK35","v":{"v":700814.6914010019,"d":"$700,815"}},{"$f":"'Trial 5'!EL35","v":{"v":720566.8550082026,"d":"$720,567"}},{"$f":"'Trial 5'!EM35","v":{"v":745587.0711315697,"d":"$745,587"}},{"$f":"SUM('Trial 5'!EB35:EM35)","v":{"v":8658603.603695339,"d":"$8,658,604"}}]
[{"$f":"Labels!B101","v":"Trial 06"},{"$f":"'Trial 6'!B35","v":{"v":830793.9878369995,"d":"$830,794"}},{"$f":"'Trial 6'!C35","v":{"v":798579.9654662417,"d":"$798,580"}},{"$f":"'Trial 6'!D35","v":{"v":844484.5200155418,"d":"$844,485"}},{"$f":"'Trial 6'!E35","v":{"v":829737.5499698165,"d":"$829,738"}},{"$f":"'Trial 6'!F35","v":{"v":789768.8589595292,"d":"$789,769"}},{"$f":"'Trial 6'!G35","v":{"v":838020.0858601225,"d":"$838,020"}},{"$f":"'Trial 6'!H35","v":{"v":807116.0470087474,"d":"$807,116"}},{"$f":"'Trial 6'!I35","v":{"v":842244.6694717061,"d":"$842,245"}},{"$f":"'Trial 6'!J35","v":{"v":854866.9190521823,"d":"$854,867"}},{"$f":"'Trial 6'!K35","v":{"v":813232.9181508586,"d":"$813,233"}},{"$f":"'Trial 6'!L35","v":{"v":830538.9254708692,"d":"$830,539"}},{"$f":"'Trial 6'!M35","v":{"v":781947.5881335086,"d":"$781,948"}},{"$f":"SUM('Trial 6'!B35:M35)","v":{"v":9861332.035396125,"d":"$9,861,332"}},{"$f":"'Trial 6'!O35","v":{"v":790468.4146098301,"d":"$790,468"}},{"$f":"'Trial 6'!P35","v":{"v":827754.9004897331,"d":"$827,755"}},{"$f":"'Trial 6'!Q35","v":{"v":859187.2948429001,"d":"$859,187"}},{"$f":"'Trial 6'!R35","v":{"v":787966.71652352,"d":"$787,967"}},{"$f":"'Trial 6'!S35","v":{"v":820848.3148871415,"d":"$820,848"}},{"$f":"'Trial 6'!T35","v":{"v":849575.9566398942,"d":"$849,576"}},{"$f":"'Trial 6'!U35","v":{"v":798217.4961618388,"d":"$798,217"}},{"$f":"'Trial 6'!V35","v":{"v":828388.9425499245,"d":"$828,389"}},{"$f":"'Trial 6'!W35","v":{"v":832117.1928997556,"d":"$832,117"}},{"$f":"'Trial 6'!X35","v":{"v":809011.681782363,"d":"$809,012"}},{"$f":"'Trial 6'!Y35","v":{"v":792529.8773384466,"d":"$792,530"}},{"$f":"'Trial 6'!Z35","v":{"v":831508.5668716304,"d":"$831,509"}},{"$f":"SUM('Trial 6'!O35:Z35)","v":{"v":9827575.355596976,"d":"$9,827,575"}},{"$f":"'Trial 6'!AB35","v":{"v":776844.1838480554,"d":"$776,844"}},{"$f":"'Trial 6'!AC35","v":{"v":790313.2730360093,"d":"$790,313"}},{"$f":"'Trial 6'!AD35","v":{"v":841618.6991520448,"d":"$841,619"}},{"$f":"'Trial 6'!AE35","v":{"v":798200.2106338699,"d":"$798,200"}},{"$f":"'Trial 6'!AF35","v":{"v":840893.0413089237,"d":"$840,893"}},{"$f":"'Trial 6'!AG35","v":{"v":827798.5722824357,"d":"$827,799"}},{"$f":"'Trial 6'!AH35","v":{"v":809722.15389444,"d":"$809,722"}},{"$f":"'Trial 6'!AI35","v":{"v":774576.3383497723,"d":"$774,576"}},{"$f":"'Trial 6'!AJ35","v":{"v":840873.9865962734,"d":"$840,874"}},{"$f":"'Trial 6'!AK35","v":{"v":778771.5309278738,"d":"$778,772"}},{"$f":"'Trial 6'!AL35","v":{"v":757764.531835306,"d":"$757,765"}},{"$f":"'Trial 6'!AM35","v":{"v":786866.6026333947,"d":"$786,867"}},{"$f":"SUM('Trial 6'!AB35:AM35)","v":{"v":9624243.124498399,"d":"$9,624,243"}},{"$f":"'Trial 6'!AO35","v":{"v":821091.4999133078,"d":"$821,091"}},{"$f":"'Trial 6'!AP35","v":{"v":789813.6208609723,"d":"$789,814"}},{"$f":"'Trial 6'!AQ35","v":{"v":803326.9045173252,"d":"$803,327"}},{"$f":"'Trial 6'!AR35","v":{"v":825967.3486297865,"d":"$825,967"}},{"$f":"'Trial 6'!AS35","v":{"v":774897.392313989,"d":"$774,897"}},{"$f":"'Trial 6'!AT35","v":{"v":756703.9755539936,"d":"$756,704"}},{"$f":"'Trial 6'!AU35","v":{"v":808177.5611644496,"d":"$808,178"}},{"$f":"'Trial 6'!AV35","v":{"v":786727.6693523639,"d":"$786,728"}},{"$f":"'Trial 6'!AW35","v":{"v":771056.9104501313,"d":"$771,057"}},{"$f":"'Trial 6'!AX35","v":{"v":783810.4554388652,"d":"$783,810"}},{"$f":"'Trial 6'!AY35","v":{"v":781108.0192469709,"d":"$781,108"}},{"$f":"'Trial 6'!AZ35","v":{"v":828045.2416185973,"d":"$828,045"}},{"$f":"SUM('Trial 6'!AO35:AZ35)","v":{"v":9530726.599060753,"d":"$9,530,727"}},{"$f":"'Trial 6'!BB35","v":{"v":810969.8997815485,"d":"$810,970"}},{"$f":"'Trial 6'!BC35","v":{"v":785912.3373984514,"d":"$785,912"}},{"$f":"'Trial 6'!BD35","v":{"v":812452.3375519332,"d":"$812,452"}},{"$f":"'Trial 6'!BE35","v":{"v":781999.6324164114,"d":"$782,000"}},{"$f":"'Trial 6'!BF35","v":{"v":757322.3244568215,"d":"$757,322"}},{"$f":"'Trial 6'!BG35","v":{"v":760116.876000129,"d":"$760,117"}},{"$f":"'Trial 6'!BH35","v":{"v":786906.0558527613,"d":"$786,906"}},{"$f":"'Trial 6'!BI35","v":{"v":773288.717303495,"d":"$773,289"}},{"$f":"'Trial 6'!BJ35","v":{"v":791653.3907236167,"d":"$791,653"}},{"$f":"'Trial 6'!BK35","v":{"v":793680.6656078886,"d":"$793,681"}},{"$f":"'Trial 6'!BL35","v":{"v":796909.4187474274,"d":"$796,909"}},{"$f":"'Trial 6'!BM35","v":{"v":760398.4873685747,"d":"$760,398"}},{"$f":"SUM('Trial 6'!BB35:BM35)","v":{"v":9411610.143209059,"d":"$9,411,610"}},{"$f":"'Trial 6'!BO35","v":{"v":773065.3737034444,"d":"$773,065"}},{"$f":"'Trial 6'!BP35","v":{"v":795009.4209029377,"d":"$795,009"}},{"$f":"'Trial 6'!BQ35","v":{"v":767521.6636485782,"d":"$767,522"}},{"$f":"'Trial 6'!BR35","v":{"v":767068.6919155268,"d":"$767,069"}},{"$f":"'Trial 6'!BS35","v":{"v":792638.0413351046,"d":"$792,638"}},{"$f":"'Trial 6'!BT35","v":{"v":792460.1188205242,"d":"$792,460"}},{"$f":"'Trial 6'!BU35","v":{"v":758823.6969568174,"d":"$758,824"}},{"$f":"'Trial 6'!BV35","v":{"v":782015.9547657389,"d":"$782,016"}},{"$f":"'Trial 6'!BW35","v":{"v":791416.0140213353,"d":"$791,416"}},{"$f":"'Trial 6'!BX35","v":{"v":754331.1200122568,"d":"$754,331"}},{"$f":"'Trial 6'!BY35","v":{"v":781207.1351211821,"d":"$781,207"}},{"$f":"'Trial 6'!BZ35","v":{"v":762180.749993065,"d":"$762,181"}},{"$f":"SUM('Trial 6'!BO35:BZ35)","v":{"v":9317737.981196512,"d":"$9,317,738"}},{"$f":"'Trial 6'!CB35","v":{"v":746199.2362159418,"d":"$746,199"}},{"$f":"'Trial 6'!CC35","v":{"v":756657.3416247711,"d":"$756,657"}},{"$f":"'Trial 6'!CD35","v":{"v":767687.757898843,"d":"$767,688"}},{"$f":"'Trial 6'!CE35","v":{"v":759422.0388791176,"d":"$759,422"}},{"$f":"'Trial 6'!CF35","v":{"v":741172.7109526189,"d":"$741,173"}},{"$f":"'Trial 6'!CG35","v":{"v":773741.6864796575,"d":"$773,742"}},{"$f":"'Trial 6'!CH35","v":{"v":718149.6190744987,"d":"$718,150"}},{"$f":"'Trial 6'!CI35","v":{"v":775338.3014657324,"d":"$775,338"}},{"$f":"'Trial 6'!CJ35","v":{"v":739449.9125623849,"d":"$739,450"}},{"$f":"'Trial 6'!CK35","v":{"v":779807.9333390837,"d":"$779,808"}},{"$f":"'Trial 6'!CL35","v":{"v":723307.8514623335,"d":"$723,308"}},{"$f":"'Trial 6'!CM35","v":{"v":730755.8783238517,"d":"$730,756"}},{"$f":"SUM('Trial 6'!CB35:CM35)","v":{"v":9011690.268278833,"d":"$9,011,690"}},{"$f":"'Trial 6'!CO35","v":{"v":759949.9897905978,"d":"$759,950"}},{"$f":"'Trial 6'!CP35","v":{"v":712142.0367415395,"d":"$712,142"}},{"$f":"'Trial 6'!CQ35","v":{"v":710999.7394440129,"d":"$711,000"}},{"$f":"'Trial 6'!CR35","v":{"v":770507.191605369,"d":"$770,507"}},{"$f":"'Trial 6'!CS35","v":{"v":762393.4254406736,"d":"$762,393"}},{"$f":"'Trial 6'!CT35","v":{"v":742874.2487211935,"d":"$742,874"}},{"$f":"'Trial 6'!CU35","v":{"v":768873.4908177134,"d":"$768,873"}},{"$f":"'Trial 6'!CV35","v":{"v":761971.5727490806,"d":"$761,972"}},{"$f":"'Trial 6'!CW35","v":{"v":736238.985418954,"d":"$736,239"}},{"$f":"'Trial 6'!CX35","v":{"v":734643.8307366865,"d":"$734,644"}},{"$f":"'Trial 6'!CY35","v":{"v":763483.7148416118,"d":"$763,484"}},{"$f":"'Trial 6'!CZ35","v":{"v":761999.6543173064,"d":"$762,000"}},{"$f":"SUM('Trial 6'!CO35:CZ35)","v":{"v":8986077.88062474,"d":"$8,986,078"}},{"$f":"'Trial 6'!DB35","v":{"v":748917.5176627255,"d":"$748,918"}},{"$f":"'Trial 6'!DC35","v":{"v":741159.2370992518,"d":"$741,159"}},{"$f":"'Trial 6'!DD35","v":{"v":740687.2260925932,"d":"$740,687"}},{"$f":"'Trial 6'!DE35","v":{"v":747250.6927153653,"d":"$747,251"}},{"$f":"'Trial 6'!DF35","v":{"v":727187.2684489816,"d":"$727,187"}},{"$f":"'Trial 6'!DG35","v":{"v":732985.8783600841,"d":"$732,986"}},{"$f":"'Trial 6'!DH35","v":{"v":737369.8624545197,"d":"$737,370"}},{"$f":"'Trial 6'!DI35","v":{"v":738791.1176780611,"d":"$738,791"}},{"$f":"'Trial 6'!DJ35","v":{"v":731493.1114080191,"d":"$731,493"}},{"$f":"'Trial 6'!DK35","v":{"v":761020.2750272515,"d":"$761,020"}},{"$f":"'Trial 6'!DL35","v":{"v":715765.6668818829,"d":"$715,766"}},{"$f":"'Trial 6'!DM35","v":{"v":734415.5839767869,"d":"$734,416"}},{"$f":"SUM('Trial 6'!DB35:DM35)","v":{"v":8857043.437805522,"d":"$8,857,043"}},{"$f":"'Trial 6'!DO35","v":{"v":750645.416792632,"d":"$750,645"}},{"$f":"'Trial 6'!DP35","v":{"v":719374.6132225828,"d":"$719,375"}},{"$f":"'Trial 6'!DQ35","v":{"v":744693.5555120427,"d":"$744,694"}},{"$f":"'Trial 6'!DR35","v":{"v":745177.3985380484,"d":"$745,177"}},{"$f":"'Trial 6'!DS35","v":{"v":742639.7706457407,"d":"$742,640"}},{"$f":"'Trial 6'!DT35","v":{"v":729012.8416650336,"d":"$729,013"}},{"$f":"'Trial 6'!DU35","v":{"v":758243.8572510456,"d":"$758,244"}},{"$f":"'Trial 6'!DV35","v":{"v":714091.0938121424,"d":"$714,091"}},{"$f":"'Trial 6'!DW35","v":{"v":723308.3860477981,"d":"$723,308"}},{"$f":"'Trial 6'!DX35","v":{"v":727658.9083655741,"d":"$727,659"}},{"$f":"'Trial 6'!DY35","v":{"v":750429.1771461567,"d":"$750,429"}},{"$f":"'Trial 6'!DZ35","v":{"v":710872.7631742904,"d":"$710,873"}},{"$f":"SUM('Trial 6'!DO35:DZ35)","v":{"v":8816147.782173086,"d":"$8,816,148"}},{"$f":"'Trial 6'!EB35","v":{"v":701642.3303540255,"d":"$701,642"}},{"$f":"'Trial 6'!EC35","v":{"v":744991.3796394017,"d":"$744,991"}},{"$f":"'Trial 6'!ED35","v":{"v":712131.9319155536,"d":"$712,132"}},{"$f":"'Trial 6'!EE35","v":{"v":725858.4672102487,"d":"$725,858"}},{"$f":"'Trial 6'!EF35","v":{"v":702996.1413733348,"d":"$702,996"}},{"$f":"'Trial 6'!EG35","v":{"v":758640.3034668976,"d":"$758,640"}},{"$f":"'Trial 6'!EH35","v":{"v":704309.8253167132,"d":"$704,310"}},{"$f":"'Trial 6'!EI35","v":{"v":738411.2135902065,"d":"$738,411"}},{"$f":"'Trial 6'!EJ35","v":{"v":752612.2394722743,"d":"$752,612"}},{"$f":"'Trial 6'!EK35","v":{"v":731721.561617493,"d":"$731,722"}},{"$f":"'Trial 6'!EL35","v":{"v":725224.0566427574,"d":"$725,224"}},{"$f":"'Trial 6'!EM35","v":{"v":726078.736071214,"d":"$726,079"}},{"$f":"SUM('Trial 6'!EB35:EM35)","v":{"v":8724618.18667012,"d":"$8,724,618"}}]
[{"$f":"Labels!B102","v":"Trial 07"},{"$f":"'Trial 7'!B35","v":{"v":861759.5009400565,"d":"$861,760"}},{"$f":"'Trial 7'!C35","v":{"v":867588.3005772143,"d":"$867,588"}},{"$f":"'Trial 7'!D35","v":{"v":803768.3130030353,"d":"$803,768"}},{"$f":"'Trial 7'!E35","v":{"v":805928.5624718518,"d":"$805,929"}},{"$f":"'Trial 7'!F35","v":{"v":792488.7006308621,"d":"$792,489"}},{"$f":"'Trial 7'!G35","v":{"v":800754.5342374834,"d":"$800,755"}},{"$f":"'Trial 7'!H35","v":{"v":845694.9732146946,"d":"$845,695"}},{"$f":"'Trial 7'!I35","v":{"v":837112.020669838,"d":"$837,112"}},{"$f":"'Trial 7'!J35","v":{"v":815064.3473936981,"d":"$815,064"}},{"$f":"'Trial 7'!K35","v":{"v":804498.0953480086,"d":"$804,498"}},{"$f":"'Trial 7'!L35","v":{"v":821236.7542164332,"d":"$821,237"}},{"$f":"'Trial 7'!M35","v":{"v":831544.6188089877,"d":"$831,545"}},{"$f":"SUM('Trial 7'!B35:M35)","v":{"v":9887438.721512163,"d":"$9,887,439"}},{"$f":"'Trial 7'!O35","v":{"v":819560.6433354121,"d":"$819,561"}},{"$f":"'Trial 7'!P35","v":{"v":843965.6999455675,"d":"$843,966"}},{"$f":"'Trial 7'!Q35","v":{"v":829393.081361524,"d":"$829,393"}},{"$f":"'Trial 7'!R35","v":{"v":859464.865783498,"d":"$859,465"}},{"$f":"'Trial 7'!S35","v":{"v":809012.3708458456,"d":"$809,012"}},{"$f":"'Trial 7'!T35","v":{"v":838232.2729948252,"d":"$838,232"}},{"$f":"'Trial 7'!U35","v":{"v":808302.6107138331,"d":"$808,303"}},{"$f":"'Trial 7'!V35","v":{"v":830530.8539750141,"d":"$830,531"}},{"$f":"'Trial 7'!W35","v":{"v":778822.7290780434,"d":"$778,823"}},{"$f":"'Trial 7'!X35","v":{"v":799675.8650413118,"d":"$799,676"}},{"$f":"'Trial 7'!Y35","v":{"v":830689.8941407461,"d":"$830,690"}},{"$f":"'Trial 7'!Z35","v":{"v":824674.395817296,"d":"$824,674"}},{"$f":"SUM('Trial 7'!O35:Z35)","v":{"v":9872325.283032916,"d":"$9,872,325"}},{"$f":"'Trial 7'!AB35","v":{"v":804515.0694134509,"d":"$804,515"}},{"$f":"'Trial 7'!AC35","v":{"v":830113.6072395785,"d":"$830,114"}},{"$f":"'Trial 7'!AD35","v":{"v":826270.8421333703,"d":"$826,271"}},{"$f":"'Trial 7'!AE35","v":{"v":805847.590524838,"d":"$805,848"}},{"$f":"'Trial 7'!AF35","v":{"v":847617.1574290661,"d":"$847,617"}},{"$f":"'Trial 7'!AG35","v":{"v":797117.7589924239,"d":"$797,118"}},{"$f":"'Trial 7'!AH35","v":{"v":800329.9729951775,"d":"$800,330"}},{"$f":"'Trial 7'!AI35","v":{"v":781544.8872590713,"d":"$781,545"}},{"$f":"'Trial 7'!AJ35","v":{"v":782351.3689894996,"d":"$782,351"}},{"$f":"'Trial 7'!AK35","v":{"v":814334.3181676817,"d":"$814,334"}},{"$f":"'Trial 7'!AL35","v":{"v":805651.7495054931,"d":"$805,652"}},{"$f":"'Trial 7'!AM35","v":{"v":776651.3988927511,"d":"$776,651"}},{"$f":"SUM('Trial 7'!AB35:AM35)","v":{"v":9672345.721542403,"d":"$9,672,346"}},{"$f":"'Trial 7'!AO35","v":{"v":774330.892147922,"d":"$774,331"}},{"$f":"'Trial 7'!AP35","v":{"v":780985.5492034516,"d":"$780,986"}},{"$f":"'Trial 7'!AQ35","v":{"v":791372.6960348084,"d":"$791,373"}},{"$f":"'Trial 7'!AR35","v":{"v":764803.9707757033,"d":"$764,804"}},{"$f":"'Trial 7'!AS35","v":{"v":772151.5286242251,"d":"$772,152"}},{"$f":"'Trial 7'!AT35","v":{"v":764700.0373140445,"d":"$764,700"}},{"$f":"'Trial 7'!AU35","v":{"v":800380.2118181376,"d":"$800,380"}},{"$f":"'Trial 7'!AV35","v":{"v":810666.1330697128,"d":"$810,666"}},{"$f":"'Trial 7'!AW35","v":{"v":811576.3631797757,"d":"$811,576"}},{"$f":"'Trial 7'!AX35","v":{"v":802179.9357268618,"d":"$802,180"}},{"$f":"'Trial 7'!AY35","v":{"v":797953.6283830424,"d":"$797,954"}},{"$f":"'Trial 7'!AZ35","v":{"v":797976.8269322879,"d":"$797,977"}},{"$f":"SUM('Trial 7'!AO35:AZ35)","v":{"v":9469077.773209974,"d":"$9,469,078"}},{"$f":"'Trial 7'!BB35","v":{"v":777012.0136859555,"d":"$777,012"}},{"$f":"'Trial 7'!BC35","v":{"v":791083.4781017556,"d":"$791,083"}},{"$f":"'Trial 7'!BD35","v":{"v":815602.6792362536,"d":"$815,603"}},{"$f":"'Trial 7'!BE35","v":{"v":781427.9501265822,"d":"$781,428"}},{"$f":"'Trial 7'!BF35","v":{"v":761887.192209008,"d":"$761,887"}},{"$f":"'Trial 7'!BG35","v":{"v":774768.1685018056,"d":"$774,768"}},{"$f":"'Trial 7'!BH35","v":{"v":762100.5129875798,"d":"$762,101"}},{"$f":"'Trial 7'!BI35","v":{"v":750085.324577788,"d":"$750,085"}},{"$f":"'Trial 7'!BJ35","v":{"v":787772.6719742691,"d":"$787,773"}},{"$f":"'Trial 7'!BK35","v":{"v":796550.2476659901,"d":"$796,550"}},{"$f":"'Trial 7'!BL35","v":{"v":778276.4334900534,"d":"$778,276"}},{"$f":"'Trial 7'!BM35","v":{"v":740134.1355074892,"d":"$740,134"}},{"$f":"SUM('Trial 7'!BB35:BM35)","v":{"v":9316700.80806453,"d":"$9,316,701"}},{"$f":"'Trial 7'!BO35","v":{"v":750803.190706453,"d":"$750,803"}},{"$f":"'Trial 7'!BP35","v":{"v":762032.5308751123,"d":"$762,033"}},{"$f":"'Trial 7'!BQ35","v":{"v":765139.5934924468,"d":"$765,140"}},{"$f":"'Trial 7'!BR35","v":{"v":804670.4901768869,"d":"$804,670"}},{"$f":"'Trial 7'!BS35","v":{"v":799477.3921458937,"d":"$799,477"}},{"$f":"'Trial 7'!BT35","v":{"v":760701.7682855703,"d":"$760,702"}},{"$f":"'Trial 7'!BU35","v":{"v":745973.6937349167,"d":"$745,974"}},{"$f":"'Trial 7'!BV35","v":{"v":765477.2719313641,"d":"$765,477"}},{"$f":"'Trial 7'!BW35","v":{"v":774135.2614969773,"d":"$774,135"}},{"$f":"'Trial 7'!BX35","v":{"v":766091.6523013426,"d":"$766,092"}},{"$f":"'Trial 7'!BY35","v":{"v":785167.3237037332,"d":"$785,167"}},{"$f":"'Trial 7'!BZ35","v":{"v":773585.9016162019,"d":"$773,586"}},{"$f":"SUM('Trial 7'!BO35:BZ35)","v":{"v":9253256.070466898,"d":"$9,253,256"}},{"$f":"'Trial 7'!CB35","v":{"v":759904.9561980778,"d":"$759,905"}},{"$f":"'Trial 7'!CC35","v":{"v":741079.8173973527,"d":"$741,080"}},{"$f":"'Trial 7'!CD35","v":{"v":772860.5385601706,"d":"$772,861"}},{"$f":"'Trial 7'!CE35","v":{"v":761397.7825480807,"d":"$761,398"}},{"$f":"'Trial 7'!CF35","v":{"v":724458.3318639073,"d":"$724,458"}},{"$f":"'Trial 7'!CG35","v":{"v":756278.1948431215,"d":"$756,278"}},{"$f":"'Trial 7'!CH35","v":{"v":722198.4923878455,"d":"$722,198"}},{"$f":"'Trial 7'!CI35","v":{"v":719360.9181676182,"d":"$719,361"}},{"$f":"'Trial 7'!CJ35","v":{"v":755783.8347019196,"d":"$755,784"}},{"$f":"'Trial 7'!CK35","v":{"v":776325.6223283604,"d":"$776,326"}},{"$f":"'Trial 7'!CL35","v":{"v":757251.3517685623,"d":"$757,251"}},{"$f":"'Trial 7'!CM35","v":{"v":721467.010269774,"d":"$721,467"}},{"$f":"SUM('Trial 7'!CB35:CM35)","v":{"v":8968366.85103479,"d":"$8,968,367"}},{"$f":"'Trial 7'!CO35","v":{"v":741443.8217144723,"d":"$741,444"}},{"$f":"'Trial 7'!CP35","v":{"v":765187.0066261501,"d":"$765,187"}},{"$f":"'Trial 7'!CQ35","v":{"v":745990.6119577036,"d":"$745,991"}},{"$f":"'Trial 7'!CR35","v":{"v":754666.1958583139,"d":"$754,666"}},{"$f":"'Trial 7'!CS35","v":{"v":782834.0728809574,"d":"$782,834"}},{"$f":"'Trial 7'!CT35","v":{"v":750887.0482955899,"d":"$750,887"}},{"$f":"'Trial 7'!CU35","v":{"v":742875.528113119,"d":"$742,876"}},{"$f":"'Trial 7'!CV35","v":{"v":758373.66093705,"d":"$758,374"}},{"$f":"'Trial 7'!CW35","v":{"v":753016.525935023,"d":"$753,017"}},{"$f":"'Trial 7'!CX35","v":{"v":781970.711780762,"d":"$781,971"}},{"$f":"'Trial 7'!CY35","v":{"v":775683.5018174826,"d":"$775,684"}},{"$f":"'Trial 7'!CZ35","v":{"v":743905.3972428446,"d":"$743,905"}},{"$f":"SUM('Trial 7'!CO35:CZ35)","v":{"v":9096834.083159469,"d":"$9,096,834"}},{"$f":"'Trial 7'!DB35","v":{"v":710938.0099841206,"d":"$710,938"}},{"$f":"'Trial 7'!DC35","v":{"v":744022.5126014095,"d":"$744,023"}},{"$f":"'Trial 7'!DD35","v":{"v":753064.3903345416,"d":"$753,064"}},{"$f":"'Trial 7'!DE35","v":{"v":704184.5939042553,"d":"$704,185"}},{"$f":"'Trial 7'!DF35","v":{"v":747605.0851945155,"d":"$747,605"}},{"$f":"'Trial 7'!DG35","v":{"v":749639.6343100324,"d":"$749,640"}},{"$f":"'Trial 7'!DH35","v":{"v":712258.6832347589,"d":"$712,259"}},{"$f":"'Trial 7'!DI35","v":{"v":756671.6484207863,"d":"$756,672"}},{"$f":"'Trial 7'!DJ35","v":{"v":759054.6865138508,"d":"$759,055"}},{"$f":"'Trial 7'!DK35","v":{"v":700732.721176921,"d":"$700,733"}},{"$f":"'Trial 7'!DL35","v":{"v":738702.4744649704,"d":"$738,702"}},{"$f":"'Trial 7'!DM35","v":{"v":759599.5660215899,"d":"$759,600"}},{"$f":"SUM('Trial 7'!DB35:DM35)","v":{"v":8836474.006161753,"d":"$8,836,474"}},{"$f":"'Trial 7'!DO35","v":{"v":722449.1798180015,"d":"$722,449"}},{"$f":"'Trial 7'!DP35","v":{"v":756647.6627829719,"d":"$756,648"}},{"$f":"'Trial 7'!DQ35","v":{"v":751031.9781857303,"d":"$751,032"}},{"$f":"'Trial 7'!DR35","v":{"v":705598.8939213237,"d":"$705,599"}},{"$f":"'Trial 7'!DS35","v":{"v":764448.8778503186,"d":"$764,449"}},{"$f":"'Trial 7'!DT35","v":{"v":704466.2454206747,"d":"$704,466"}},{"$f":"'Trial 7'!DU35","v":{"v":733652.3383371676,"d":"$733,652"}},{"$f":"'Trial 7'!DV35","v":{"v":704876.3905027242,"d":"$704,876"}},{"$f":"'Trial 7'!DW35","v":{"v":752991.1092953724,"d":"$752,991"}},{"$f":"'Trial 7'!DX35","v":{"v":766488.0720608236,"d":"$766,488"}},{"$f":"'Trial 7'!DY35","v":{"v":700062.7319070884,"d":"$700,063"}},{"$f":"'Trial 7'!DZ35","v":{"v":747546.730037137,"d":"$747,547"}},{"$f":"SUM('Trial 7'!DO35:DZ35)","v":{"v":8810260.210119335,"d":"$8,810,260"}},{"$f":"'Trial 7'!EB35","v":{"v":741268.5180845676,"d":"$741,269"}},{"$f":"'Trial 7'!EC35","v":{"v":722764.3966984885,"d":"$722,764"}},{"$f":"'Trial 7'!ED35","v":{"v":725820.9765605823,"d":"$725,821"}},{"$f":"'Trial 7'!EE35","v":{"v":740922.4119829411,"d":"$740,922"}},{"$f":"'Trial 7'!EF35","v":{"v":742845.8810643946,"d":"$742,846"}},{"$f":"'Trial 7'!EG35","v":{"v":723574.498798498,"d":"$723,574"}},{"$f":"'Trial 7'!EH35","v":{"v":732898.9387783991,"d":"$732,899"}},{"$f":"'Trial 7'!EI35","v":{"v":751395.3448942325,"d":"$751,395"}},{"$f":"'Trial 7'!EJ35","v":{"v":695561.0456421379,"d":"$695,561"}},{"$f":"'Trial 7'!EK35","v":{"v":736663.83589431,"d":"$736,664"}},{"$f":"'Trial 7'!EL35","v":{"v":755272.8406844962,"d":"$755,273"}},{"$f":"'Trial 7'!EM35","v":{"v":708238.4867610452,"d":"$708,238"}},{"$f":"SUM('Trial 7'!EB35:EM35)","v":{"v":8777227.175844092,"d":"$8,777,227"}}]
[{"$f":"Labels!B103","v":"Trial 08"},{"$f":"'Trial 8'!B35","v":{"v":839480.8216154232,"d":"$839,481"}},{"$f":"'Trial 8'!C35","v":{"v":788251.1577913108,"d":"$788,251"}},{"$f":"'Trial 8'!D35","v":{"v":825931.6359213647,"d":"$825,932"}},{"$f":"'Trial 8'!E35","v":{"v":812467.0612329717,"d":"$812,467"}},{"$f":"'Trial 8'!F35","v":{"v":829838.853227515,"d":"$829,839"}},{"$f":"'Trial 8'!G35","v":{"v":797354.3398810741,"d":"$797,354"}},{"$f":"'Trial 8'!H35","v":{"v":847029.6661407481,"d":"$847,030"}},{"$f":"'Trial 8'!I35","v":{"v":815607.4780568198,"d":"$815,607"}},{"$f":"'Trial 8'!J35","v":{"v":823566.8353646128,"d":"$823,567"}},{"$f":"'Trial 8'!K35","v":{"v":851575.4628986887,"d":"$851,575"}},{"$f":"'Trial 8'!L35","v":{"v":833610.8444009039,"d":"$833,611"}},{"$f":"'Trial 8'!M35","v":{"v":844848.9810538167,"d":"$844,849"}},{"$f":"SUM('Trial 8'!B35:M35)","v":{"v":9909563.137585249,"d":"$9,909,563"}},{"$f":"'Trial 8'!O35","v":{"v":835152.0849989962,"d":"$835,152"}},{"$f":"'Trial 8'!P35","v":{"v":819924.636570793,"d":"$819,925"}},{"$f":"'Trial 8'!Q35","v":{"v":825642.3783775421,"d":"$825,642"}},{"$f":"'Trial 8'!R35","v":{"v":805535.3620735708,"d":"$805,535"}},{"$f":"'Trial 8'!S35","v":{"v":803423.4568778935,"d":"$803,423"}},{"$f":"'Trial 8'!T35","v":{"v":853475.129039931,"d":"$853,475"}},{"$f":"'Trial 8'!U35","v":{"v":809275.4415828394,"d":"$809,275"}},{"$f":"'Trial 8'!V35","v":{"v":834552.2358389393,"d":"$834,552"}},{"$f":"'Trial 8'!W35","v":{"v":781966.2907568574,"d":"$781,966"}},{"$f":"'Trial 8'!X35","v":{"v":815471.7926640966,"d":"$815,472"}},{"$f":"'Trial 8'!Y35","v":{"v":778837.9992215534,"d":"$778,838"}},{"$f":"'Trial 8'!Z35","v":{"v":842929.0214332473,"d":"$842,929"}},{"$f":"SUM('Trial 8'!O35:Z35)","v":{"v":9806185.82943626,"d":"$9,806,186"}},{"$f":"'Trial 8'!AB35","v":{"v":828387.090588179,"d":"$828,387"}},{"$f":"'Trial 8'!AC35","v":{"v":776930.2677204584,"d":"$776,930"}},{"$f":"'Trial 8'!AD35","v":{"v":801675.3341543215,"d":"$801,675"}},{"$f":"'Trial 8'!AE35","v":{"v":796506.735817952,"d":"$796,507"}},{"$f":"'Trial 8'!AF35","v":{"v":766393.4387893451,"d":"$766,393"}},{"$f":"'Trial 8'!AG35","v":{"v":820379.0659319056,"d":"$820,379"}},{"$f":"'Trial 8'!AH35","v":{"v":815897.0323739845,"d":"$815,897"}},{"$f":"'Trial 8'!AI35","v":{"v":782507.8335516594,"d":"$782,508"}},{"$f":"'Trial 8'!AJ35","v":{"v":833921.3142275609,"d":"$833,921"}},{"$f":"'Trial 8'!AK35","v":{"v":816613.0170341574,"d":"$816,613"}},{"$f":"'Trial 8'!AL35","v":{"v":794307.3452481915,"d":"$794,307"}},{"$f":"'Trial 8'!AM35","v":{"v":831192.8361780269,"d":"$831,193"}},{"$f":"SUM('Trial 8'!AB35:AM35)","v":{"v":9664711.31161574,"d":"$9,664,711"}},{"$f":"'Trial 8'!AO35","v":{"v":796674.8160016722,"d":"$796,675"}},{"$f":"'Trial 8'!AP35","v":{"v":791911.3058285968,"d":"$791,911"}},{"$f":"'Trial 8'!AQ35","v":{"v":812458.144574507,"d":"$812,458"}},{"$f":"'Trial 8'!AR35","v":{"v":785917.9185549326,"d":"$785,918"}},{"$f":"'Trial 8'!AS35","v":{"v":814229.8468364333,"d":"$814,230"}},{"$f":"'Trial 8'!AT35","v":{"v":791775.7870329147,"d":"$791,776"}},{"$f":"'Trial 8'!AU35","v":{"v":776985.2488313195,"d":"$776,985"}},{"$f":"'Trial 8'!AV35","v":{"v":782556.3631983019,"d":"$782,556"}},{"$f":"'Trial 8'!AW35","v":{"v":790838.6127348262,"d":"$790,839"}},{"$f":"'Trial 8'!AX35","v":{"v":822765.1799809247,"d":"$822,765"}},{"$f":"'Trial 8'!AY35","v":{"v":781826.1970425296,"d":"$781,826"}},{"$f":"'Trial 8'!AZ35","v":{"v":754642.9692145864,"d":"$754,643"}},{"$f":"SUM('Trial 8'!AO35:AZ35)","v":{"v":9502582.389831545,"d":"$9,502,582"}},{"$f":"'Trial 8'!BB35","v":{"v":760184.1300190382,"d":"$760,184"}},{"$f":"'Trial 8'!BC35","v":{"v":805516.5295173905,"d":"$805,517"}},{"$f":"'Trial 8'!BD35","v":{"v":806450.1703616936,"d":"$806,450"}},{"$f":"'Trial 8'!BE35","v":{"v":776564.3433364473,"d":"$776,564"}},{"$f":"'Trial 8'!BF35","v":{"v":798073.3896909124,"d":"$798,073"}},{"$f":"'Trial 8'!BG35","v":{"v":778143.1181391083,"d":"$778,143"}},{"$f":"'Trial 8'!BH35","v":{"v":797337.4840748319,"d":"$797,337"}},{"$f":"'Trial 8'!BI35","v":{"v":789695.039010673,"d":"$789,695"}},{"$f":"'Trial 8'!BJ35","v":{"v":773636.0697034391,"d":"$773,636"}},{"$f":"'Trial 8'!BK35","v":{"v":766868.3500472298,"d":"$766,868"}},{"$f":"'Trial 8'!BL35","v":{"v":771658.7070251764,"d":"$771,659"}},{"$f":"'Trial 8'!BM35","v":{"v":777744.6728658571,"d":"$777,745"}},{"$f":"SUM('Trial 8'!BB35:BM35)","v":{"v":9401872.003791796,"d":"$9,401,872"}},{"$f":"'Trial 8'!BO35","v":{"v":735389.0955088787,"d":"$735,389"}},{"$f":"'Trial 8'!BP35","v":{"v":808016.5047715923,"d":"$808,017"}},{"$f":"'Trial 8'!BQ35","v":{"v":798740.5352244964,"d":"$798,741"}},{"$f":"'Trial 8'!BR35","v":{"v":813383.4591719839,"d":"$813,383"}},{"$f":"'Trial 8'!BS35","v":{"v":765655.3767082345,"d":"$765,655"}},{"$f":"'Trial 8'!BT35","v":{"v":807734.9030954499,"d":"$807,735"}},{"$f":"'Trial 8'!BU35","v":{"v":767424.8949716999,"d":"$767,425"}},{"$f":"'Trial 8'!BV35","v":{"v":730287.6621625648,"d":"$730,288"}},{"$f":"'Trial 8'!BW35","v":{"v":775728.8607849486,"d":"$775,729"}},{"$f":"'Trial 8'!BX35","v":{"v":742699.6807889398,"d":"$742,700"}},{"$f":"'Trial 8'!BY35","v":{"v":755313.7231681985,"d":"$755,314"}},{"$f":"'Trial 8'!BZ35","v":{"v":775783.077452879,"d":"$775,783"}},{"$f":"SUM('Trial 8'!BO35:BZ35)","v":{"v":9276157.773809867,"d":"$9,276,158"}},{"$f":"'Trial 8'!CB35","v":{"v":729724.0071322003,"d":"$729,724"}},{"$f":"'Trial 8'!CC35","v":{"v":787374.1538486679,"d":"$787,374"}},{"$f":"'Trial 8'!CD35","v":{"v":751599.5965963855,"d":"$751,600"}},{"$f":"'Trial 8'!CE35","v":{"v":741024.8172428829,"d":"$741,025"}},{"$f":"'Trial 8'!CF35","v":{"v":774461.0963167328,"d":"$774,461"}},{"$f":"'Trial 8'!CG35","v":{"v":760143.4284009541,"d":"$760,143"}},{"$f":"'Trial 8'!CH35","v":{"v":764625.4083841118,"d":"$764,625"}},{"$f":"'Trial 8'!CI35","v":{"v":735388.9651054649,"d":"$735,389"}},{"$f":"'Trial 8'!CJ35","v":{"v":798634.6433271136,"d":"$798,635"}},{"$f":"'Trial 8'!CK35","v":{"v":742326.5879874009,"d":"$742,327"}},{"$f":"'Trial 8'!CL35","v":{"v":771005.4159779794,"d":"$771,005"}},{"$f":"'Trial 8'!CM35","v":{"v":725378.1653819935,"d":"$725,378"}},{"$f":"SUM('Trial 8'!CB35:CM35)","v":{"v":9081686.285701886,"d":"$9,081,686"}},{"$f":"'Trial 8'!CO35","v":{"v":766565.9765751152,"d":"$766,566"}},{"$f":"'Trial 8'!CP35","v":{"v":743253.8658636105,"d":"$743,254"}},{"$f":"'Trial 8'!CQ35","v":{"v":782803.9371369128,"d":"$782,804"}},{"$f":"'Trial 8'!CR35","v":{"v":729007.4091130946,"d":"$729,007"}},{"$f":"'Trial 8'!CS35","v":{"v":762852.9956402989,"d":"$762,853"}},{"$f":"'Trial 8'!CT35","v":{"v":773518.7018577032,"d":"$773,519"}},{"$f":"'Trial 8'!CU35","v":{"v":775503.6710410194,"d":"$775,504"}},{"$f":"'Trial 8'!CV35","v":{"v":760254.4010432226,"d":"$760,254"}},{"$f":"'Trial 8'!CW35","v":{"v":712643.2211818878,"d":"$712,643"}},{"$f":"'Trial 8'!CX35","v":{"v":752249.6523138698,"d":"$752,250"}},{"$f":"'Trial 8'!CY35","v":{"v":733408.722169854,"d":"$733,409"}},{"$f":"'Trial 8'!CZ35","v":{"v":773862.9299006196,"d":"$773,863"}},{"$f":"SUM('Trial 8'!CO35:CZ35)","v":{"v":9065925.483837208,"d":"$9,065,925"}},{"$f":"'Trial 8'!DB35","v":{"v":767362.79518299,"d":"$767,363"}},{"$f":"'Trial 8'!DC35","v":{"v":743195.1621444615,"d":"$743,195"}},{"$f":"'Trial 8'!DD35","v":{"v":732035.2993282629,"d":"$732,035"}},{"$f":"'Trial 8'!DE35","v":{"v":784928.0116182697,"d":"$784,928"}},{"$f":"'Trial 8'!DF35","v":{"v":744028.7064373015,"d":"$744,029"}},{"$f":"'Trial 8'!DG35","v":{"v":741798.6537722873,"d":"$741,799"}},{"$f":"'Trial 8'!DH35","v":{"v":766522.6890074402,"d":"$766,523"}},{"$f":"'Trial 8'!DI35","v":{"v":722963.4355883978,"d":"$722,963"}},{"$f":"'Trial 8'!DJ35","v":{"v":769902.2116392186,"d":"$769,902"}},{"$f":"'Trial 8'!DK35","v":{"v":761627.1484292265,"d":"$761,627"}},{"$f":"'Trial 8'!DL35","v":{"v":727453.1584027897,"d":"$727,453"}},{"$f":"'Trial 8'!DM35","v":{"v":757465.2945975846,"d":"$757,465"}},{"$f":"SUM('Trial 8'!DB35:DM35)","v":{"v":9019282.56614823,"d":"$9,019,283"}},{"$f":"'Trial 8'!DO35","v":{"v":759916.1019750725,"d":"$759,916"}},{"$f":"'Trial 8'!DP35","v":{"v":721577.2612945543,"d":"$721,577"}},{"$f":"'Trial 8'!DQ35","v":{"v":748687.2693513985,"d":"$748,687"}},{"$f":"'Trial 8'!DR35","v":{"v":718285.5564006594,"d":"$718,286"}},{"$f":"'Trial 8'!DS35","v":{"v":748173.1565565489,"d":"$748,173"}},{"$f":"'Trial 8'!DT35","v":{"v":760786.4755982157,"d":"$760,786"}},{"$f":"'Trial 8'!DU35","v":{"v":729077.5886022066,"d":"$729,078"}},{"$f":"'Trial 8'!DV35","v":{"v":716058.4680986247,"d":"$716,058"}},{"$f":"'Trial 8'!DW35","v":{"v":733519.4398829752,"d":"$733,519"}},{"$f":"'Trial 8'!DX35","v":{"v":734409.785880671,"d":"$734,410"}},{"$f":"'Trial 8'!DY35","v":{"v":755450.4264524154,"d":"$755,450"}},{"$f":"'Trial 8'!DZ35","v":{"v":726794.1172595742,"d":"$726,794"}},{"$f":"SUM('Trial 8'!DO35:DZ35)","v":{"v":8852735.647352917,"d":"$8,852,736"}},{"$f":"'Trial 8'!EB35","v":{"v":749638.9145363601,"d":"$749,639"}},{"$f":"'Trial 8'!EC35","v":{"v":704008.7099912959,"d":"$704,009"}},{"$f":"'Trial 8'!ED35","v":{"v":722844.9784807684,"d":"$722,845"}},{"$f":"'Trial 8'!EE35","v":{"v":705125.1381239245,"d":"$705,125"}},{"$f":"'Trial 8'!EF35","v":{"v":759220.169000083,"d":"$759,220"}},{"$f":"'Trial 8'!EG35","v":{"v":710434.5915494171,"d":"$710,435"}},{"$f":"'Trial 8'!EH35","v":{"v":725648.5551308703,"d":"$725,649"}},{"$f":"'Trial 8'!EI35","v":{"v":737693.7305347581,"d":"$737,694"}},{"$f":"'Trial 8'!EJ35","v":{"v":734984.2031784764,"d":"$734,984"}},{"$f":"'Trial 8'!EK35","v":{"v":723704.9268324457,"d":"$723,705"}},{"$f":"'Trial 8'!EL35","v":{"v":682067.4170552206,"d":"$682,067"}},{"$f":"'Trial 8'!EM35","v":{"v":736016.8195983028,"d":"$736,017"}},{"$f":"SUM('Trial 8'!EB35:EM35)","v":{"v":8691388.154011924,"d":"$8,691,388"}}]
[{"$f":"Labels!C95","v":"Total"},{"$f":"SUM('Trial 1'!B35,'Trial 2'!B35,'Trial 3'!B35,'Trial 4'!B35,'Trial 5'!B35,'Trial 6'!B35,'Trial 7'!B35,'Trial 8'!B35)","v":{"v":6730835.342446134,"d":"$6,730,835"}},{"$f":"SUM('Trial 1'!C35,'Trial 2'!C35,'Trial 3'!C35,'Trial 4'!C35,'Trial 5'!C35,'Trial 6'!C35,'Trial 7'!C35,'Trial 8'!C35)","v":{"v":6658709.099127543,"d":"$6,658,709"}},{"$f":"SUM('Trial 1'!D35,'Trial 2'!D35,'Trial 3'!D35,'Trial 4'!D35,'Trial 5'!D35,'Trial 6'!D35,'Trial 7'!D35,'Trial 8'!D35)","v":{"v":6651095.181172984,"d":"$6,651,095"}},{"$f":"SUM('Trial 1'!E35,'Trial 2'!E35,'Trial 3'!E35,'Trial 4'!E35,'Trial 5'!E35,'Trial 6'!E35,'Trial 7'!E35,'Trial 8'!E35)","v":{"v":6549237.908428548,"d":"$6,549,238"}},{"$f":"SUM('Trial 1'!F35,'Trial 2'!F35,'Trial 3'!F35,'Trial 4'!F35,'Trial 5'!F35,'Trial 6'!F35,'Trial 7'!F35,'Trial 8'!F35)","v":{"v":6553870.697321208,"d":"$6,553,871"}},{"$f":"SUM('Trial 1'!G35,'Trial 2'!G35,'Trial 3'!G35,'Trial 4'!G35,'Trial 5'!G35,'Trial 6'!G35,'Trial 7'!G35,'Trial 8'!G35)","v":{"v":6587500.864658603,"d":"$6,587,501"}},{"$f":"SUM('Trial 1'!H35,'Trial 2'!H35,'Trial 3'!H35,'Trial 4'!H35,'Trial 5'!H35,'Trial 6'!H35,'Trial 7'!H35,'Trial 8'!H35)","v":{"v":6728846.085553689,"d":"$6,728,846"}},{"$f":"SUM('Trial 1'!I35,'Trial 2'!I35,'Trial 3'!I35,'Trial 4'!I35,'Trial 5'!I35,'Trial 6'!I35,'Trial 7'!I35,'Trial 8'!I35)","v":{"v":6589971.475953309,"d":"$6,589,971"}},{"$f":"SUM('Trial 1'!J35,'Trial 2'!J35,'Trial 3'!J35,'Trial 4'!J35,'Trial 5'!J35,'Trial 6'!J35,'Trial 7'!J35,'Trial 8'!J35)","v":{"v":6676026.387883867,"d":"$6,676,026"}},{"$f":"SUM('Trial 1'!K35,'Trial 2'!K35,'Trial 3'!K35,'Trial 4'!K35,'Trial 5'!K35,'Trial 6'!K35,'Trial 7'!K35,'Trial 8'!K35)","v":{"v":6553280.020048162,"d":"$6,553,280"}},{"$f":"SUM('Trial 1'!L35,'Trial 2'!L35,'Trial 3'!L35,'Trial 4'!L35,'Trial 5'!L35,'Trial 6'!L35,'Trial 7'!L35,'Trial 8'!L35)","v":{"v":6632620.94781188,"d":"$6,632,621"}},{"$f":"SUM('Trial 1'!M35,'Trial 2'!M35,'Trial 3'!M35,'Trial 4'!M35,'Trial 5'!M35,'Trial 6'!M35,'Trial 7'!M35,'Trial 8'!M35)","v":{"v":6622632.7169583505,"d":"$6,622,633"}},{"$f":"SUM(B72:M72)","v":{"v":79534626.72736427,"d":"$79,534,627"}},{"$f":"SUM('Trial 1'!O35,'Trial 2'!O35,'Trial 3'!O35,'Trial 4'!O35,'Trial 5'!O35,'Trial 6'!O35,'Trial 7'!O35,'Trial 8'!O35)","v":{"v":6521041.180887992,"d":"$6,521,041"}},{"$f":"SUM('Trial 1'!P35,'Trial 2'!P35,'Trial 3'!P35,'Trial 4'!P35,'Trial 5'!P35,'Trial 6'!P35,'Trial 7'!P35,'Trial 8'!P35)","v":{"v":6590142.312311323,"d":"$6,590,142"}},{"$f":"SUM('Trial 1'!Q35,'Trial 2'!Q35,'Trial 3'!Q35,'Trial 4'!Q35,'Trial 5'!Q35,'Trial 6'!Q35,'Trial 7'!Q35,'Trial 8'!Q35)","v":{"v":6653646.937341141,"d":"$6,653,647"}},{"$f":"SUM('Trial 1'!R35,'Trial 2'!R35,'Trial 3'!R35,'Trial 4'!R35,'Trial 5'!R35,'Trial 6'!R35,'Trial 7'!R35,'Trial 8'!R35)","v":{"v":6568231.650164677,"d":"$6,568,232"}},{"$f":"SUM('Trial 1'!S35,'Trial 2'!S35,'Trial 3'!S35,'Trial 4'!S35,'Trial 5'!S35,'Trial 6'!S35,'Trial 7'!S35,'Trial 8'!S35)","v":{"v":6579065.307890714,"d":"$6,579,065"}},{"$f":"SUM('Trial 1'!T35,'Trial 2'!T35,'Trial 3'!T35,'Trial 4'!T35,'Trial 5'!T35,'Trial 6'!T35,'Trial 7'!T35,'Trial 8'!T35)","v":{"v":6545937.628554399,"d":"$6,545,938"}},{"$f":"SUM('Trial 1'!U35,'Trial 2'!U35,'Trial 3'!U35,'Trial 4'!U35,'Trial 5'!U35,'Trial 6'!U35,'Trial 7'!U35,'Trial 8'!U35)","v":{"v":6487889.11004256,"d":"$6,487,889"}},{"$f":"SUM('Trial 1'!V35,'Trial 2'!V35,'Trial 3'!V35,'Trial 4'!V35,'Trial 5'!V35,'Trial 6'!V35,'Trial 7'!V35,'Trial 8'!V35)","v":{"v":6560657.784226791,"d":"$6,560,658"}},{"$f":"SUM('Trial 1'!W35,'Trial 2'!W35,'Trial 3'!W35,'Trial 4'!W35,'Trial 5'!W35,'Trial 6'!W35,'Trial 7'!W35,'Trial 8'!W35)","v":{"v":6483756.022036228,"d":"$6,483,756"}},{"$f":"SUM('Trial 1'!X35,'Trial 2'!X35,'Trial 3'!X35,'Trial 4'!X35,'Trial 5'!X35,'Trial 6'!X35,'Trial 7'!X35,'Trial 8'!X35)","v":{"v":6521868.703470092,"d":"$6,521,869"}},{"$f":"SUM('Trial 1'!Y35,'Trial 2'!Y35,'Trial 3'!Y35,'Trial 4'!Y35,'Trial 5'!Y35,'Trial 6'!Y35,'Trial 7'!Y35,'Trial 8'!Y35)","v":{"v":6436992.968130856,"d":"$6,436,993"}},{"$f":"SUM('Trial 1'!Z35,'Trial 2'!Z35,'Trial 3'!Z35,'Trial 4'!Z35,'Trial 5'!Z35,'Trial 6'!Z35,'Trial 7'!Z35,'Trial 8'!Z35)","v":{"v":6525715.429176963,"d":"$6,525,715"}},{"$f":"SUM(O72:Z72)","v":{"v":78474945.03423373,"d":"$78,474,945"}},{"$f":"SUM('Trial 1'!AB35,'Trial 2'!AB35,'Trial 3'!AB35,'Trial 4'!AB35,'Trial 5'!AB35,'Trial 6'!AB35,'Trial 7'!AB35,'Trial 8'!AB35)","v":{"v":6414693.927228762,"d":"$6,414,694"}},{"$f":"SUM('Trial 1'!AC35,'Trial 2'!AC35,'Trial 3'!AC35,'Trial 4'!AC35,'Trial 5'!AC35,'Trial 6'!AC35,'Trial 7'!AC35,'Trial 8'!AC35)","v":{"v":6444911.419707971,"d":"$6,444,911"}},{"$f":"SUM('Trial 1'!AD35,'Trial 2'!AD35,'Trial 3'!AD35,'Trial 4'!AD35,'Trial 5'!AD35,'Trial 6'!AD35,'Trial 7'!AD35,'Trial 8'!AD35)","v":{"v":6549514.225385121,"d":"$6,549,514"}},{"$f":"SUM('Trial 1'!AE35,'Trial 2'!AE35,'Trial 3'!AE35,'Trial 4'!AE35,'Trial 5'!AE35,'Trial 6'!AE35,'Trial 7'!AE35,'Trial 8'!AE35)","v":{"v":6351859.058452691,"d":"$6,351,859"}},{"$f":"SUM('Trial 1'!AF35,'Trial 2'!AF35,'Trial 3'!AF35,'Trial 4'!AF35,'Trial 5'!AF35,'Trial 6'!AF35,'Trial 7'!AF35,'Trial 8'!AF35)","v":{"v":6449759.332464899,"d":"$6,449,759"}},{"$f":"SUM('Trial 1'!AG35,'Trial 2'!AG35,'Trial 3'!AG35,'Trial 4'!AG35,'Trial 5'!AG35,'Trial 6'!AG35,'Trial 7'!AG35,'Trial 8'!AG35)","v":{"v":6449638.194940866,"d":"$6,449,638"}},{"$f":"SUM('Trial 1'!AH35,'Trial 2'!AH35,'Trial 3'!AH35,'Trial 4'!AH35,'Trial 5'!AH35,'Trial 6'!AH35,'Trial 7'!AH35,'Trial 8'!AH35)","v":{"v":6468688.494100266,"d":"$6,468,688"}},{"$f":"SUM('Trial 1'!AI35,'Trial 2'!AI35,'Trial 3'!AI35,'Trial 4'!AI35,'Trial 5'!AI35,'Trial 6'!AI35,'Trial 7'!AI35,'Trial 8'!AI35)","v":{"v":6306516.291115346,"d":"$6,306,516"}},{"$f":"SUM('Trial 1'!AJ35,'Trial 2'!AJ35,'Trial 3'!AJ35,'Trial 4'!AJ35,'Trial 5'!AJ35,'Trial 6'!AJ35,'Trial 7'!AJ35,'Trial 8'!AJ35)","v":{"v":6424383.497552323,"d":"$6,424,383"}},{"$f":"SUM('Trial 1'!AK35,'Trial 2'!AK35,'Trial 3'!AK35,'Trial 4'!AK35,'Trial 5'!AK35,'Trial 6'!AK35,'Trial 7'!AK35,'Trial 8'!AK35)","v":{"v":6434144.3432274815,"d":"$6,434,144"}},{"$f":"SUM('Trial 1'!AL35,'Trial 2'!AL35,'Trial 3'!AL35,'Trial 4'!AL35,'Trial 5'!AL35,'Trial 6'!AL35,'Trial 7'!AL35,'Trial 8'!AL35)","v":{"v":6356856.950141377,"d":"$6,356,857"}},{"$f":"SUM('Trial 1'!AM35,'Trial 2'!AM35,'Trial 3'!AM35,'Trial 4'!AM35,'Trial 5'!AM35,'Trial 6'!AM35,'Trial 7'!AM35,'Trial 8'!AM35)","v":{"v":6432814.828952886,"d":"$6,432,815"}},{"$f":"SUM(AB72:AM72)","v":{"v":77083780.56326997,"d":"$77,083,781"}},{"$f":"SUM('Trial 1'!AO35,'Trial 2'!AO35,'Trial 3'!AO35,'Trial 4'!AO35,'Trial 5'!AO35,'Trial 6'!AO35,'Trial 7'!AO35,'Trial 8'!AO35)","v":{"v":6264261.286927839,"d":"$6,264,261"}},{"$f":"SUM('Trial 1'!AP35,'Trial 2'!AP35,'Trial 3'!AP35,'Trial 4'!AP35,'Trial 5'!AP35,'Trial 6'!AP35,'Trial 7'!AP35,'Trial 8'!AP35)","v":{"v":6298457.308660452,"d":"$6,298,457"}},{"$f":"SUM('Trial 1'!AQ35,'Trial 2'!AQ35,'Trial 3'!AQ35,'Trial 4'!AQ35,'Trial 5'!AQ35,'Trial 6'!AQ35,'Trial 7'!AQ35,'Trial 8'!AQ35)","v":{"v":6419049.2739739185,"d":"$6,419,049"}},{"$f":"SUM('Trial 1'!AR35,'Trial 2'!AR35,'Trial 3'!AR35,'Trial 4'!AR35,'Trial 5'!AR35,'Trial 6'!AR35,'Trial 7'!AR35,'Trial 8'!AR35)","v":{"v":6349014.505060895,"d":"$6,349,015"}},{"$f":"SUM('Trial 1'!AS35,'Trial 2'!AS35,'Trial 3'!AS35,'Trial 4'!AS35,'Trial 5'!AS35,'Trial 6'!AS35,'Trial 7'!AS35,'Trial 8'!AS35)","v":{"v":6228004.089259654,"d":"$6,228,004"}},{"$f":"SUM('Trial 1'!AT35,'Trial 2'!AT35,'Trial 3'!AT35,'Trial 4'!AT35,'Trial 5'!AT35,'Trial 6'!AT35,'Trial 7'!AT35,'Trial 8'!AT35)","v":{"v":6224052.280642535,"d":"$6,224,052"}},{"$f":"SUM('Trial 1'!AU35,'Trial 2'!AU35,'Trial 3'!AU35,'Trial 4'!AU35,'Trial 5'!AU35,'Trial 6'!AU35,'Trial 7'!AU35,'Trial 8'!AU35)","v":{"v":6394662.548676136,"d":"$6,394,663"}},{"$f":"SUM('Trial 1'!AV35,'Trial 2'!AV35,'Trial 3'!AV35,'Trial 4'!AV35,'Trial 5'!AV35,'Trial 6'!AV35,'Trial 7'!AV35,'Trial 8'!AV35)","v":{"v":6391564.325968452,"d":"$6,391,564"}},{"$f":"SUM('Trial 1'!AW35,'Trial 2'!AW35,'Trial 3'!AW35,'Trial 4'!AW35,'Trial 5'!AW35,'Trial 6'!AW35,'Trial 7'!AW35,'Trial 8'!AW35)","v":{"v":6258173.754658398,"d":"$6,258,174"}},{"$f":"SUM('Trial 1'!AX35,'Trial 2'!AX35,'Trial 3'!AX35,'Trial 4'!AX35,'Trial 5'!AX35,'Trial 6'!AX35,'Trial 7'!AX35,'Trial 8'!AX35)","v":{"v":6324819.563253658,"d":"$6,324,820"}},{"$f":"SUM('Trial 1'!AY35,'Trial 2'!AY35,'Trial 3'!AY35,'Trial 4'!AY35,'Trial 5'!AY35,'Trial 6'!AY35,'Trial 7'!AY35,'Trial 8'!AY35)","v":{"v":6265085.471387676,"d":"$6,265,085"}},{"$f":"SUM('Trial 1'!AZ35,'Trial 2'!AZ35,'Trial 3'!AZ35,'Trial 4'!AZ35,'Trial 5'!AZ35,'Trial 6'!AZ35,'Trial 7'!AZ35,'Trial 8'!AZ35)","v":{"v":6296824.498143655,"d":"$6,296,824"}},{"$f":"SUM(AO72:AZ72)","v":{"v":75713968.90661326,"d":"$75,713,969"}},{"$f":"SUM('Trial 1'!BB35,'Trial 2'!BB35,'Trial 3'!BB35,'Trial 4'!BB35,'Trial 5'!BB35,'Trial 6'!BB35,'Trial 7'!BB35,'Trial 8'!BB35)","v":{"v":6263777.296858522,"d":"$6,263,777"}},{"$f":"SUM('Trial 1'!BC35,'Trial 2'!BC35,'Trial 3'!BC35,'Trial 4'!BC35,'Trial 5'!BC35,'Trial 6'!BC35,'Trial 7'!BC35,'Trial 8'!BC35)","v":{"v":6351408.953749307,"d":"$6,351,409"}},{"$f":"SUM('Trial 1'!BD35,'Trial 2'!BD35,'Trial 3'!BD35,'Trial 4'!BD35,'Trial 5'!BD35,'Trial 6'!BD35,'Trial 7'!BD35,'Trial 8'!BD35)","v":{"v":6375890.803678066,"d":"$6,375,891"}},{"$f":"SUM('Trial 1'!BE35,'Trial 2'!BE35,'Trial 3'!BE35,'Trial 4'!BE35,'Trial 5'!BE35,'Trial 6'!BE35,'Trial 7'!BE35,'Trial 8'!BE35)","v":{"v":6281873.661217553,"d":"$6,281,874"}},{"$f":"SUM('Trial 1'!BF35,'Trial 2'!BF35,'Trial 3'!BF35,'Trial 4'!BF35,'Trial 5'!BF35,'Trial 6'!BF35,'Trial 7'!BF35,'Trial 8'!BF35)","v":{"v":6225050.503912448,"d":"$6,225,051"}},{"$f":"SUM('Trial 1'!BG35,'Trial 2'!BG35,'Trial 3'!BG35,'Trial 4'!BG35,'Trial 5'!BG35,'Trial 6'!BG35,'Trial 7'!BG35,'Trial 8'!BG35)","v":{"v":6211320.647970195,"d":"$6,211,321"}},{"$f":"SUM('Trial 1'!BH35,'Trial 2'!BH35,'Trial 3'!BH35,'Trial 4'!BH35,'Trial 5'!BH35,'Trial 6'!BH35,'Trial 7'!BH35,'Trial 8'!BH35)","v":{"v":6325951.336724458,"d":"$6,325,951"}},{"$f":"SUM('Trial 1'!BI35,'Trial 2'!BI35,'Trial 3'!BI35,'Trial 4'!BI35,'Trial 5'!BI35,'Trial 6'!BI35,'Trial 7'!BI35,'Trial 8'!BI35)","v":{"v":6194671.218562509,"d":"$6,194,671"}},{"$f":"SUM('Trial 1'!BJ35,'Trial 2'!BJ35,'Trial 3'!BJ35,'Trial 4'!BJ35,'Trial 5'!BJ35,'Trial 6'!BJ35,'Trial 7'!BJ35,'Trial 8'!BJ35)","v":{"v":6227256.681738697,"d":"$6,227,257"}},{"$f":"SUM('Trial 1'!BK35,'Trial 2'!BK35,'Trial 3'!BK35,'Trial 4'!BK35,'Trial 5'!BK35,'Trial 6'!BK35,'Trial 7'!BK35,'Trial 8'!BK35)","v":{"v":6226879.8780641025,"d":"$6,226,880"}},{"$f":"SUM('Trial 1'!BL35,'Trial 2'!BL35,'Trial 3'!BL35,'Trial 4'!BL35,'Trial 5'!BL35,'Trial 6'!BL35,'Trial 7'!BL35,'Trial 8'!BL35)","v":{"v":6176487.125661941,"d":"$6,176,487"}},{"$f":"SUM('Trial 1'!BM35,'Trial 2'!BM35,'Trial 3'!BM35,'Trial 4'!BM35,'Trial 5'!BM35,'Trial 6'!BM35,'Trial 7'!BM35,'Trial 8'!BM35)","v":{"v":6148544.305228721,"d":"$6,148,544"}},{"$f":"SUM(BB72:BM72)","v":{"v":75009112.41336653,"d":"$75,009,112"}},{"$f":"SUM('Trial 1'!BO35,'Trial 2'!BO35,'Trial 3'!BO35,'Trial 4'!BO35,'Trial 5'!BO35,'Trial 6'!BO35,'Trial 7'!BO35,'Trial 8'!BO35)","v":{"v":6079057.377400023,"d":"$6,079,057"}},{"$f":"SUM('Trial 1'!BP35,'Trial 2'!BP35,'Trial 3'!BP35,'Trial 4'!BP35,'Trial 5'!BP35,'Trial 6'!BP35,'Trial 7'!BP35,'Trial 8'!BP35)","v":{"v":6253810.278946834,"d":"$6,253,810"}},{"$f":"SUM('Trial 1'!BQ35,'Trial 2'!BQ35,'Trial 3'!BQ35,'Trial 4'!BQ35,'Trial 5'!BQ35,'Trial 6'!BQ35,'Trial 7'!BQ35,'Trial 8'!BQ35)","v":{"v":6152835.640872403,"d":"$6,152,836"}},{"$f":"SUM('Trial 1'!BR35,'Trial 2'!BR35,'Trial 3'!BR35,'Trial 4'!BR35,'Trial 5'!BR35,'Trial 6'!BR35,'Trial 7'!BR35,'Trial 8'!BR35)","v":{"v":6296313.076703148,"d":"$6,296,313"}},{"$f":"SUM('Trial 1'!BS35,'Trial 2'!BS35,'Trial 3'!BS35,'Trial 4'!BS35,'Trial 5'!BS35,'Trial 6'!BS35,'Trial 7'!BS35,'Trial 8'!BS35)","v":{"v":6161780.28683725,"d":"$6,161,780"}},{"$f":"SUM('Trial 1'!BT35,'Trial 2'!BT35,'Trial 3'!BT35,'Trial 4'!BT35,'Trial 5'!BT35,'Trial 6'!BT35,'Trial 7'!BT35,'Trial 8'!BT35)","v":{"v":6212862.124678279,"d":"$6,212,862"}},{"$f":"SUM('Trial 1'!BU35,'Trial 2'!BU35,'Trial 3'!BU35,'Trial 4'!BU35,'Trial 5'!BU35,'Trial 6'!BU35,'Trial 7'!BU35,'Trial 8'!BU35)","v":{"v":6106749.131091598,"d":"$6,106,749"}},{"$f":"SUM('Trial 1'!BV35,'Trial 2'!BV35,'Trial 3'!BV35,'Trial 4'!BV35,'Trial 5'!BV35,'Trial 6'!BV35,'Trial 7'!BV35,'Trial 8'!BV35)","v":{"v":6093392.7762429165,"d":"$6,093,393"}},{"$f":"SUM('Trial 1'!BW35,'Trial 2'!BW35,'Trial 3'!BW35,'Trial 4'!BW35,'Trial 5'!BW35,'Trial 6'!BW35,'Trial 7'!BW35,'Trial 8'!BW35)","v":{"v":6232583.597398021,"d":"$6,232,584"}},{"$f":"SUM('Trial 1'!BX35,'Trial 2'!BX35,'Trial 3'!BX35,'Trial 4'!BX35,'Trial 5'!BX35,'Trial 6'!BX35,'Trial 7'!BX35,'Trial 8'!BX35)","v":{"v":6041624.728694084,"d":"$6,041,625"}},{"$f":"SUM('Trial 1'!BY35,'Trial 2'!BY35,'Trial 3'!BY35,'Trial 4'!BY35,'Trial 5'!BY35,'Trial 6'!BY35,'Trial 7'!BY35,'Trial 8'!BY35)","v":{"v":6162233.358058173,"d":"$6,162,233"}},{"$f":"SUM('Trial 1'!BZ35,'Trial 2'!BZ35,'Trial 3'!BZ35,'Trial 4'!BZ35,'Trial 5'!BZ35,'Trial 6'!BZ35,'Trial 7'!BZ35,'Trial 8'!BZ35)","v":{"v":6132472.632526465,"d":"$6,132,473"}},{"$f":"SUM(BO72:BZ72)","v":{"v":73925715.00944918,"d":"$73,925,715"}},{"$f":"SUM('Trial 1'!CB35,'Trial 2'!CB35,'Trial 3'!CB35,'Trial 4'!CB35,'Trial 5'!CB35,'Trial 6'!CB35,'Trial 7'!CB35,'Trial 8'!CB35)","v":{"v":6113429.723613485,"d":"$6,113,430"}},{"$f":"SUM('Trial 1'!CC35,'Trial 2'!CC35,'Trial 3'!CC35,'Trial 4'!CC35,'Trial 5'!CC35,'Trial 6'!CC35,'Trial 7'!CC35,'Trial 8'!CC35)","v":{"v":6112724.763707375,"d":"$6,112,725"}},{"$f":"SUM('Trial 1'!CD35,'Trial 2'!CD35,'Trial 3'!CD35,'Trial 4'!CD35,'Trial 5'!CD35,'Trial 6'!CD35,'Trial 7'!CD35,'Trial 8'!CD35)","v":{"v":6003040.891354314,"d":"$6,003,041"}},{"$f":"SUM('Trial 1'!CE35,'Trial 2'!CE35,'Trial 3'!CE35,'Trial 4'!CE35,'Trial 5'!CE35,'Trial 6'!CE35,'Trial 7'!CE35,'Trial 8'!CE35)","v":{"v":6018392.061305596,"d":"$6,018,392"}},{"$f":"SUM('Trial 1'!CF35,'Trial 2'!CF35,'Trial 3'!CF35,'Trial 4'!CF35,'Trial 5'!CF35,'Trial 6'!CF35,'Trial 7'!CF35,'Trial 8'!CF35)","v":{"v":6060156.588353132,"d":"$6,060,157"}},{"$f":"SUM('Trial 1'!CG35,'Trial 2'!CG35,'Trial 3'!CG35,'Trial 4'!CG35,'Trial 5'!CG35,'Trial 6'!CG35,'Trial 7'!CG35,'Trial 8'!CG35)","v":{"v":6082433.145270902,"d":"$6,082,433"}},{"$f":"SUM('Trial 1'!CH35,'Trial 2'!CH35,'Trial 3'!CH35,'Trial 4'!CH35,'Trial 5'!CH35,'Trial 6'!CH35,'Trial 7'!CH35,'Trial 8'!CH35)","v":{"v":6006282.7898776475,"d":"$6,006,283"}},{"$f":"SUM('Trial 1'!CI35,'Trial 2'!CI35,'Trial 3'!CI35,'Trial 4'!CI35,'Trial 5'!CI35,'Trial 6'!CI35,'Trial 7'!CI35,'Trial 8'!CI35)","v":{"v":6040715.887302349,"d":"$6,040,716"}},{"$f":"SUM('Trial 1'!CJ35,'Trial 2'!CJ35,'Trial 3'!CJ35,'Trial 4'!CJ35,'Trial 5'!CJ35,'Trial 6'!CJ35,'Trial 7'!CJ35,'Trial 8'!CJ35)","v":{"v":6145706.672117658,"d":"$6,145,707"}},{"$f":"SUM('Trial 1'!CK35,'Trial 2'!CK35,'Trial 3'!CK35,'Trial 4'!CK35,'Trial 5'!CK35,'Trial 6'!CK35,'Trial 7'!CK35,'Trial 8'!CK35)","v":{"v":6058378.181622881,"d":"$6,058,378"}},{"$f":"SUM('Trial 1'!CL35,'Trial 2'!CL35,'Trial 3'!CL35,'Trial 4'!CL35,'Trial 5'!CL35,'Trial 6'!CL35,'Trial 7'!CL35,'Trial 8'!CL35)","v":{"v":6006276.310992295,"d":"$6,006,276"}},{"$f":"SUM('Trial 1'!CM35,'Trial 2'!CM35,'Trial 3'!CM35,'Trial 4'!CM35,'Trial 5'!CM35,'Trial 6'!CM35,'Trial 7'!CM35,'Trial 8'!CM35)","v":{"v":5910701.440317569,"d":"$5,910,701"}},{"$f":"SUM(CB72:CM72)","v":{"v":72558238.4558352,"d":"$72,558,238"}},{"$f":"SUM('Trial 1'!CO35,'Trial 2'!CO35,'Trial 3'!CO35,'Trial 4'!CO35,'Trial 5'!CO35,'Trial 6'!CO35,'Trial 7'!CO35,'Trial 8'!CO35)","v":{"v":6004520.059487224,"d":"$6,004,520"}},{"$f":"SUM('Trial 1'!CP35,'Trial 2'!CP35,'Trial 3'!CP35,'Trial 4'!CP35,'Trial 5'!CP35,'Trial 6'!CP35,'Trial 7'!CP35,'Trial 8'!CP35)","v":{"v":5973802.536548022,"d":"$5,973,803"}},{"$f":"SUM('Trial 1'!CQ35,'Trial 2'!CQ35,'Trial 3'!CQ35,'Trial 4'!CQ35,'Trial 5'!CQ35,'Trial 6'!CQ35,'Trial 7'!CQ35,'Trial 8'!CQ35)","v":{"v":6031390.946782233,"d":"$6,031,391"}},{"$f":"SUM('Trial 1'!CR35,'Trial 2'!CR35,'Trial 3'!CR35,'Trial 4'!CR35,'Trial 5'!CR35,'Trial 6'!CR35,'Trial 7'!CR35,'Trial 8'!CR35)","v":{"v":5978619.403031403,"d":"$5,978,619"}},{"$f":"SUM('Trial 1'!CS35,'Trial 2'!CS35,'Trial 3'!CS35,'Trial 4'!CS35,'Trial 5'!CS35,'Trial 6'!CS35,'Trial 7'!CS35,'Trial 8'!CS35)","v":{"v":6019627.145216557,"d":"$6,019,627"}},{"$f":"SUM('Trial 1'!CT35,'Trial 2'!CT35,'Trial 3'!CT35,'Trial 4'!CT35,'Trial 5'!CT35,'Trial 6'!CT35,'Trial 7'!CT35,'Trial 8'!CT35)","v":{"v":5969038.981068556,"d":"$5,969,039"}},{"$f":"SUM('Trial 1'!CU35,'Trial 2'!CU35,'Trial 3'!CU35,'Trial 4'!CU35,'Trial 5'!CU35,'Trial 6'!CU35,'Trial 7'!CU35,'Trial 8'!CU35)","v":{"v":6026727.685362369,"d":"$6,026,728"}},{"$f":"SUM('Trial 1'!CV35,'Trial 2'!CV35,'Trial 3'!CV35,'Trial 4'!CV35,'Trial 5'!CV35,'Trial 6'!CV35,'Trial 7'!CV35,'Trial 8'!CV35)","v":{"v":5978171.6672832705,"d":"$5,978,172"}},{"$f":"SUM('Trial 1'!CW35,'Trial 2'!CW35,'Trial 3'!CW35,'Trial 4'!CW35,'Trial 5'!CW35,'Trial 6'!CW35,'Trial 7'!CW35,'Trial 8'!CW35)","v":{"v":5899094.133441279,"d":"$5,899,094"}},{"$f":"SUM('Trial 1'!CX35,'Trial 2'!CX35,'Trial 3'!CX35,'Trial 4'!CX35,'Trial 5'!CX35,'Trial 6'!CX35,'Trial 7'!CX35,'Trial 8'!CX35)","v":{"v":6009943.637071224,"d":"$6,009,944"}},{"$f":"SUM('Trial 1'!CY35,'Trial 2'!CY35,'Trial 3'!CY35,'Trial 4'!CY35,'Trial 5'!CY35,'Trial 6'!CY35,'Trial 7'!CY35,'Trial 8'!CY35)","v":{"v":6025257.158115239,"d":"$6,025,257"}},{"$f":"SUM('Trial 1'!CZ35,'Trial 2'!CZ35,'Trial 3'!CZ35,'Trial 4'!CZ35,'Trial 5'!CZ35,'Trial 6'!CZ35,'Trial 7'!CZ35,'Trial 8'!CZ35)","v":{"v":6044934.851578745,"d":"$6,044,935"}},{"$f":"SUM(CO72:CZ72)","v":{"v":71961128.20498613,"d":"$71,961,128"}},{"$f":"SUM('Trial 1'!DB35,'Trial 2'!DB35,'Trial 3'!DB35,'Trial 4'!DB35,'Trial 5'!DB35,'Trial 6'!DB35,'Trial 7'!DB35,'Trial 8'!DB35)","v":{"v":5918558.371867338,"d":"$5,918,558"}},{"$f":"SUM('Trial 1'!DC35,'Trial 2'!DC35,'Trial 3'!DC35,'Trial 4'!DC35,'Trial 5'!DC35,'Trial 6'!DC35,'Trial 7'!DC35,'Trial 8'!DC35)","v":{"v":5930082.162285312,"d":"$5,930,082"}},{"$f":"SUM('Trial 1'!DD35,'Trial 2'!DD35,'Trial 3'!DD35,'Trial 4'!DD35,'Trial 5'!DD35,'Trial 6'!DD35,'Trial 7'!DD35,'Trial 8'!DD35)","v":{"v":5921484.454727834,"d":"$5,921,484"}},{"$f":"SUM('Trial 1'!DE35,'Trial 2'!DE35,'Trial 3'!DE35,'Trial 4'!DE35,'Trial 5'!DE35,'Trial 6'!DE35,'Trial 7'!DE35,'Trial 8'!DE35)","v":{"v":5987695.424854988,"d":"$5,987,695"}},{"$f":"SUM('Trial 1'!DF35,'Trial 2'!DF35,'Trial 3'!DF35,'Trial 4'!DF35,'Trial 5'!DF35,'Trial 6'!DF35,'Trial 7'!DF35,'Trial 8'!DF35)","v":{"v":5949884.756444304,"d":"$5,949,885"}},{"$f":"SUM('Trial 1'!DG35,'Trial 2'!DG35,'Trial 3'!DG35,'Trial 4'!DG35,'Trial 5'!DG35,'Trial 6'!DG35,'Trial 7'!DG35,'Trial 8'!DG35)","v":{"v":5853666.313576394,"d":"$5,853,666"}},{"$f":"SUM('Trial 1'!DH35,'Trial 2'!DH35,'Trial 3'!DH35,'Trial 4'!DH35,'Trial 5'!DH35,'Trial 6'!DH35,'Trial 7'!DH35,'Trial 8'!DH35)","v":{"v":5956894.860175216,"d":"$5,956,895"}},{"$f":"SUM('Trial 1'!DI35,'Trial 2'!DI35,'Trial 3'!DI35,'Trial 4'!DI35,'Trial 5'!DI35,'Trial 6'!DI35,'Trial 7'!DI35,'Trial 8'!DI35)","v":{"v":5913381.283942972,"d":"$5,913,381"}},{"$f":"SUM('Trial 1'!DJ35,'Trial 2'!DJ35,'Trial 3'!DJ35,'Trial 4'!DJ35,'Trial 5'!DJ35,'Trial 6'!DJ35,'Trial 7'!DJ35,'Trial 8'!DJ35)","v":{"v":5965051.317755494,"d":"$5,965,051"}},{"$f":"SUM('Trial 1'!DK35,'Trial 2'!DK35,'Trial 3'!DK35,'Trial 4'!DK35,'Trial 5'!DK35,'Trial 6'!DK35,'Trial 7'!DK35,'Trial 8'!DK35)","v":{"v":5935931.553863078,"d":"$5,935,932"}},{"$f":"SUM('Trial 1'!DL35,'Trial 2'!DL35,'Trial 3'!DL35,'Trial 4'!DL35,'Trial 5'!DL35,'Trial 6'!DL35,'Trial 7'!DL35,'Trial 8'!DL35)","v":{"v":5835959.038686795,"d":"$5,835,959"}},{"$f":"SUM('Trial 1'!DM35,'Trial 2'!DM35,'Trial 3'!DM35,'Trial 4'!DM35,'Trial 5'!DM35,'Trial 6'!DM35,'Trial 7'!DM35,'Trial 8'!DM35)","v":{"v":5947677.238346053,"d":"$5,947,677"}},{"$f":"SUM(DB72:DM72)","v":{"v":71116266.77652578,"d":"$71,116,267"}},{"$f":"SUM('Trial 1'!DO35,'Trial 2'!DO35,'Trial 3'!DO35,'Trial 4'!DO35,'Trial 5'!DO35,'Trial 6'!DO35,'Trial 7'!DO35,'Trial 8'!DO35)","v":{"v":5939163.186830455,"d":"$5,939,163"}},{"$f":"SUM('Trial 1'!DP35,'Trial 2'!DP35,'Trial 3'!DP35,'Trial 4'!DP35,'Trial 5'!DP35,'Trial 6'!DP35,'Trial 7'!DP35,'Trial 8'!DP35)","v":{"v":5854774.5005032085,"d":"$5,854,775"}},{"$f":"SUM('Trial 1'!DQ35,'Trial 2'!DQ35,'Trial 3'!DQ35,'Trial 4'!DQ35,'Trial 5'!DQ35,'Trial 6'!DQ35,'Trial 7'!DQ35,'Trial 8'!DQ35)","v":{"v":5906967.492490726,"d":"$5,906,967"}},{"$f":"SUM('Trial 1'!DR35,'Trial 2'!DR35,'Trial 3'!DR35,'Trial 4'!DR35,'Trial 5'!DR35,'Trial 6'!DR35,'Trial 7'!DR35,'Trial 8'!DR35)","v":{"v":5854493.953951864,"d":"$5,854,494"}},{"$f":"SUM('Trial 1'!DS35,'Trial 2'!DS35,'Trial 3'!DS35,'Trial 4'!DS35,'Trial 5'!DS35,'Trial 6'!DS35,'Trial 7'!DS35,'Trial 8'!DS35)","v":{"v":5904033.148698766,"d":"$5,904,033"}},{"$f":"SUM('Trial 1'!DT35,'Trial 2'!DT35,'Trial 3'!DT35,'Trial 4'!DT35,'Trial 5'!DT35,'Trial 6'!DT35,'Trial 7'!DT35,'Trial 8'!DT35)","v":{"v":5826168.433688041,"d":"$5,826,168"}},{"$f":"SUM('Trial 1'!DU35,'Trial 2'!DU35,'Trial 3'!DU35,'Trial 4'!DU35,'Trial 5'!DU35,'Trial 6'!DU35,'Trial 7'!DU35,'Trial 8'!DU35)","v":{"v":5887246.751722547,"d":"$5,887,247"}},{"$f":"SUM('Trial 1'!DV35,'Trial 2'!DV35,'Trial 3'!DV35,'Trial 4'!DV35,'Trial 5'!DV35,'Trial 6'!DV35,'Trial 7'!DV35,'Trial 8'!DV35)","v":{"v":5731804.095108298,"d":"$5,731,804"}},{"$f":"SUM('Trial 1'!DW35,'Trial 2'!DW35,'Trial 3'!DW35,'Trial 4'!DW35,'Trial 5'!DW35,'Trial 6'!DW35,'Trial 7'!DW35,'Trial 8'!DW35)","v":{"v":5905047.296520188,"d":"$5,905,047"}},{"$f":"SUM('Trial 1'!DX35,'Trial 2'!DX35,'Trial 3'!DX35,'Trial 4'!DX35,'Trial 5'!DX35,'Trial 6'!DX35,'Trial 7'!DX35,'Trial 8'!DX35)","v":{"v":5825971.713566302,"d":"$5,825,972"}},{"$f":"SUM('Trial 1'!DY35,'Trial 2'!DY35,'Trial 3'!DY35,'Trial 4'!DY35,'Trial 5'!DY35,'Trial 6'!DY35,'Trial 7'!DY35,'Trial 8'!DY35)","v":{"v":5857178.844088736,"d":"$5,857,179"}},{"$f":"SUM('Trial 1'!DZ35,'Trial 2'!DZ35,'Trial 3'!DZ35,'Trial 4'!DZ35,'Trial 5'!DZ35,'Trial 6'!DZ35,'Trial 7'!DZ35,'Trial 8'!DZ35)","v":{"v":5809030.543463757,"d":"$5,809,031"}},{"$f":"SUM(DO72:DZ72)","v":{"v":70301879.96063289,"d":"$70,301,880"}},{"$f":"SUM('Trial 1'!EB35,'Trial 2'!EB35,'Trial 3'!EB35,'Trial 4'!EB35,'Trial 5'!EB35,'Trial 6'!EB35,'Trial 7'!EB35,'Trial 8'!EB35)","v":{"v":5882452.821366939,"d":"$5,882,453"}},{"$f":"SUM('Trial 1'!EC35,'Trial 2'!EC35,'Trial 3'!EC35,'Trial 4'!EC35,'Trial 5'!EC35,'Trial 6'!EC35,'Trial 7'!EC35,'Trial 8'!EC35)","v":{"v":5866778.6956943525,"d":"$5,866,779"}},{"$f":"SUM('Trial 1'!ED35,'Trial 2'!ED35,'Trial 3'!ED35,'Trial 4'!ED35,'Trial 5'!ED35,'Trial 6'!ED35,'Trial 7'!ED35,'Trial 8'!ED35)","v":{"v":5693360.277835468,"d":"$5,693,360"}},{"$f":"SUM('Trial 1'!EE35,'Trial 2'!EE35,'Trial 3'!EE35,'Trial 4'!EE35,'Trial 5'!EE35,'Trial 6'!EE35,'Trial 7'!EE35,'Trial 8'!EE35)","v":{"v":5821877.141816845,"d":"$5,821,877"}},{"$f":"SUM('Trial 1'!EF35,'Trial 2'!EF35,'Trial 3'!EF35,'Trial 4'!EF35,'Trial 5'!EF35,'Trial 6'!EF35,'Trial 7'!EF35,'Trial 8'!EF35)","v":{"v":5792298.114506724,"d":"$5,792,298"}},{"$f":"SUM('Trial 1'!EG35,'Trial 2'!EG35,'Trial 3'!EG35,'Trial 4'!EG35,'Trial 5'!EG35,'Trial 6'!EG35,'Trial 7'!EG35,'Trial 8'!EG35)","v":{"v":5781291.555817962,"d":"$5,781,292"}},{"$f":"SUM('Trial 1'!EH35,'Trial 2'!EH35,'Trial 3'!EH35,'Trial 4'!EH35,'Trial 5'!EH35,'Trial 6'!EH35,'Trial 7'!EH35,'Trial 8'!EH35)","v":{"v":5809308.743360942,"d":"$5,809,309"}},{"$f":"SUM('Trial 1'!EI35,'Trial 2'!EI35,'Trial 3'!EI35,'Trial 4'!EI35,'Trial 5'!EI35,'Trial 6'!EI35,'Trial 7'!EI35,'Trial 8'!EI35)","v":{"v":5790447.520981766,"d":"$5,790,448"}},{"$f":"SUM('Trial 1'!EJ35,'Trial 2'!EJ35,'Trial 3'!EJ35,'Trial 4'!EJ35,'Trial 5'!EJ35,'Trial 6'!EJ35,'Trial 7'!EJ35,'Trial 8'!EJ35)","v":{"v":5800738.755148288,"d":"$5,800,739"}},{"$f":"SUM('Trial 1'!EK35,'Trial 2'!EK35,'Trial 3'!EK35,'Trial 4'!EK35,'Trial 5'!EK35,'Trial 6'!EK35,'Trial 7'!EK35,'Trial 8'!EK35)","v":{"v":5723516.969051305,"d":"$5,723,517"}},{"$f":"SUM('Trial 1'!EL35,'Trial 2'!EL35,'Trial 3'!EL35,'Trial 4'!EL35,'Trial 5'!EL35,'Trial 6'!EL35,'Trial 7'!EL35,'Trial 8'!EL35)","v":{"v":5774554.357188932,"d":"$5,774,554"}},{"$f":"SUM('Trial 1'!EM35,'Trial 2'!EM35,'Trial 3'!EM35,'Trial 4'!EM35,'Trial 5'!EM35,'Trial 6'!EM35,'Trial 7'!EM35,'Trial 8'!EM35)","v":{"v":5838992.124095245,"d":"$5,838,992"}},{"$f":"SUM(EB72:EM72)","v":{"v":69575617.07686476,"d":"$69,575,617"}}]
[{"$f":"Labels!B64","v":"Output"}]
[{"$f":"Labels!D96","v":"Trials"},{"$f":"ZZZ__FnCalls!F7","v":"Jan 2010"},{"$f":"ZZZ__FnCalls!F8","v":"Feb 2010"},{"$f":"ZZZ__FnCalls!F9","v":"Mar 2010"},{"$f":"ZZZ__FnCalls!F10","v":"Apr 2010"},{"$f":"ZZZ__FnCalls!F11","v":"May 2010"},{"$f":"ZZZ__FnCalls!F12","v":"Jun 2010"},{"$f":"ZZZ__FnCalls!F13","v":"Jul 2010"},{"$f":"ZZZ__FnCalls!F14","v":"Aug 2010"},{"$f":"ZZZ__FnCalls!F15","v":"Sep 2010"},{"$f":"ZZZ__FnCalls!F16","v":"Oct 2010"},{"$f":"ZZZ__FnCalls!F17","v":"Nov 2010"},{"$f":"ZZZ__FnCalls!F18","v":"Dec 2010"},{"$f":"ZZZ__FnCalls!H7","v":"2010"},{"$f":"ZZZ__FnCalls!F19","v":"Jan 2011"},{"$f":"ZZZ__FnCalls!F20","v":"Feb 2011"},{"$f":"ZZZ__FnCalls!F21","v":"Mar 2011"},{"$f":"ZZZ__FnCalls!F22","v":"Apr 2011"},{"$f":"ZZZ__FnCalls!F23","v":"May 2011"},{"$f":"ZZZ__FnCalls!F24","v":"Jun 2011"},{"$f":"ZZZ__FnCalls!F25","v":"Jul 2011"},{"$f":"ZZZ__FnCalls!F26","v":"Aug 2011"},{"$f":"ZZZ__FnCalls!F27","v":"Sep 2011"},{"$f":"ZZZ__FnCalls!F28","v":"Oct 2011"},{"$f":"ZZZ__FnCalls!F29","v":"Nov 2011"},{"$f":"ZZZ__FnCalls!F30","v":"Dec 2011"},{"$f":"ZZZ__FnCalls!H19","v":"2011"},{"$f":"ZZZ__FnCalls!F31","v":"Jan 2012"},{"$f":"ZZZ__FnCalls!F32","v":"Feb 2012"},{"$f":"ZZZ__FnCalls!F33","v":"Mar 2012"},{"$f":"ZZZ__FnCalls!F34","v":"Apr 2012"},{"$f":"ZZZ__FnCalls!F35","v":"May 2012"},{"$f":"ZZZ__FnCalls!F36","v":"Jun 2012"},{"$f":"ZZZ__FnCalls!F37","v":"Jul 2012"},{"$f":"ZZZ__FnCalls!F38","v":"Aug 2012"},{"$f":"ZZZ__FnCalls!F39","v":"Sep 2012"},{"$f":"ZZZ__FnCalls!F40","v":"Oct 2012"},{"$f":"ZZZ__FnCalls!F41","v":"Nov 2012"},{"$f":"ZZZ__FnCalls!F42","v":"Dec 2012"},{"$f":"ZZZ__FnCalls!H31","v":"2012"},{"$f":"ZZZ__FnCalls!F43","v":"Jan 2013"},{"$f":"ZZZ__FnCalls!F44","v":"Feb 2013"},{"$f":"ZZZ__FnCalls!F45","v":"Mar 2013"},{"$f":"ZZZ__FnCalls!F46","v":"Apr 2013"},{"$f":"ZZZ__FnCalls!F47","v":"May 2013"},{"$f":"ZZZ__FnCalls!F48","v":"Jun 2013"},{"$f":"ZZZ__FnCalls!F49","v":"Jul 2013"},{"$f":"ZZZ__FnCalls!F50","v":"Aug 2013"},{"$f":"ZZZ__FnCalls!F51","v":"Sep 2013"},{"$f":"ZZZ__FnCalls!F52","v":"Oct 2013"},{"$f":"ZZZ__FnCalls!F53","v":"Nov 2013"},{"$f":"ZZZ__FnCalls!F54","v":"Dec 2013"},{"$f":"ZZZ__FnCalls!H43","v":"2013"},{"$f":"ZZZ__FnCalls!F55","v":"Jan 2014"},{"$f":"ZZZ__FnCalls!F56","v":"Feb 2014"},{"$f":"ZZZ__FnCalls!F57","v":"Mar 2014"},{"$f":"ZZZ__FnCalls!F58","v":"Apr 2014"},{"$f":"ZZZ__FnCalls!F59","v":"May 2014"},{"$f":"ZZZ__FnCalls!F60","v":"Jun 2014"},{"$f":"ZZZ__FnCalls!F61","v":"Jul 2014"},{"$f":"ZZZ__FnCalls!F62","v":"Aug 2014"},{"$f":"ZZZ__FnCalls!F63","v":"Sep 2014"},{"$f":"ZZZ__FnCalls!F64","v":"Oct 2014"},{"$f":"ZZZ__FnCalls!F65","v":"Nov 2014"},{"$f":"ZZZ__FnCalls!F66","v":"Dec 2014"},{"$f":"ZZZ__FnCalls!H55","v":"2014"},{"$f":"ZZZ__FnCalls!F67","v":"Jan 2015"},{"$f":"ZZZ__FnCalls!F68","v":"Feb 2015"},{"$f":"ZZZ__FnCalls!F69","v":"Mar 2015"},{"$f":"ZZZ__FnCalls!F70","v":"Apr 2015"},{"$f":"ZZZ__FnCalls!F71","v":"May 2015"},{"$f":"ZZZ__FnCalls!F72","v":"Jun 2015"},{"$f":"ZZZ__FnCalls!F73","v":"Jul 2015"},{"$f":"ZZZ__FnCalls!F74","v":"Aug 2015"},{"$f":"ZZZ__FnCalls!F75","v":"Sep 2015"},{"$f":"ZZZ__FnCalls!F76","v":"Oct 2015"},{"$f":"ZZZ__FnCalls!F77","v":"Nov 2015"},{"$f":"ZZZ__FnCalls!F78","v":"Dec 2015"},{"$f":"ZZZ__FnCalls!H67","v":"2015"},{"$f":"ZZZ__FnCalls!F79","v":"Jan 2016"},{"$f":"ZZZ__FnCalls!F80","v":"Feb 2016"},{"$f":"ZZZ__FnCalls!F81","v":"Mar 2016"},{"$f":"ZZZ__FnCalls!F82","v":"Apr 2016"},{"$f":"ZZZ__FnCalls!F83","v":"May 2016"},{"$f":"ZZZ__FnCalls!F84","v":"Jun 2016"},{"$f":"ZZZ__FnCalls!F85","v":"Jul 2016"},{"$f":"ZZZ__FnCalls!F86","v":"Aug 2016"},{"$f":"ZZZ__FnCalls!F87","v":"Sep 2016"},{"$f":"ZZZ__FnCalls!F88","v":"Oct 2016"},{"$f":"ZZZ__FnCalls!F89","v":"Nov 2016"},{"$f":"ZZZ__FnCalls!F90","v":"Dec 2016"},{"$f":"ZZZ__FnCalls!H79","v":"2016"},{"$f":"ZZZ__FnCalls!F91","v":"Jan 2017"},{"$f":"ZZZ__FnCalls!F92","v":"Feb 2017"},{"$f":"ZZZ__FnCalls!F93","v":"Mar 2017"},{"$f":"ZZZ__FnCalls!F94","v":"Apr 2017"},{"$f":"ZZZ__FnCalls!F95","v":"May 2017"},{"$f":"ZZZ__FnCalls!F96","v":"Jun 2017"},{"$f":"ZZZ__FnCalls!F97","v":"Jul 2017"},{"$f":"ZZZ__FnCalls!F98","v":"Aug 2017"},{"$f":"ZZZ__FnCalls!F99","v":"Sep 2017"},{"$f":"ZZZ__FnCalls!F100","v":"Oct 2017"},{"$f":"ZZZ__FnCalls!F101","v":"Nov 2017"},{"$f":"ZZZ__FnCalls!F102","v":"Dec 2017"},{"$f":"ZZZ__FnCalls!H91","v":"2017"},{"$f":"ZZZ__FnCalls!F103","v":"Jan 2018"},{"$f":"ZZZ__FnCalls!F104","v":"Feb 2018"},{"$f":"ZZZ__FnCalls!F105","v":"Mar 2018"},{"$f":"ZZZ__FnCalls!F106","v":"Apr 2018"},{"$f":"ZZZ__FnCalls!F107","v":"May 2018"},{"$f":"ZZZ__FnCalls!F108","v":"Jun 2018"},{"$f":"ZZZ__FnCalls!F109","v":"Jul 2018"},{"$f":"ZZZ__FnCalls!F110","v":"Aug 2018"},{"$f":"ZZZ__FnCalls!F111","v":"Sep 2018"},{"$f":"ZZZ__FnCalls!F112","v":"Oct 2018"},{"$f":"ZZZ__FnCalls!F113","v":"Nov 2018"},{"$f":"ZZZ__FnCalls!F114","v":"Dec 2018"},{"$f":"ZZZ__FnCalls!H103","v":"2018"},{"$f":"ZZZ__FnCalls!F115","v":"Jan 2019"},{"$f":"ZZZ__FnCalls!F116","v":"Feb 2019"},{"$f":"ZZZ__FnCalls!F117","v":"Mar 2019"},{"$f":"ZZZ__FnCalls!F118","v":"Apr 2019"},{"$f":"ZZZ__FnCalls!F119","v":"May 2019"},{"$f":"ZZZ__FnCalls!F120","v":"Jun 2019"},{"$f":"ZZZ__FnCalls!F121","v":"Jul 2019"},{"$f":"ZZZ__FnCalls!F122","v":"Aug 2019"},{"$f":"ZZZ__FnCalls!F123","v":"Sep 2019"},{"$f":"ZZZ__FnCalls!F124","v":"Oct 2019"},{"$f":"ZZZ__FnCalls!F125","v":"Nov 2019"},{"$f":"ZZZ__FnCalls!F126","v":"Dec 2019"},{"$f":"ZZZ__FnCalls!H115","v":"2019"},{"$f":"ZZZ__FnCalls!F127","v":"Jan 2020"},{"$f":"ZZZ__FnCalls!F128","v":"Feb 2020"},{"$f":"ZZZ__FnCalls!F129","v":"Mar 2020"},{"$f":"ZZZ__FnCalls!F130","v":"Apr 2020"},{"$f":"ZZZ__FnCalls!F131","v":"May 2020"},{"$f":"ZZZ__FnCalls!F132","v":"Jun 2020"},{"$f":"ZZZ__FnCalls!F133","v":"Jul 2020"},{"$f":"ZZZ__FnCalls!F134","v":"Aug 2020"},{"$f":"ZZZ__FnCalls!F135","v":"Sep 2020"},{"$f":"ZZZ__FnCalls!F136","v":"Oct 2020"},{"$f":"ZZZ__FnCalls!F137","v":"Nov 2020"},{"$f":"ZZZ__FnCalls!F138","v":"Dec 2020"},{"$f":"ZZZ__FnCalls!H127","v":"2020"}]
[{"$f":"Labels!B96","v":"Trial 01"},{"$f":"'Trial 1'!B44","v":{"v":1202158.8188205096,"d":"$1,202,159"}},{"$f":"'Trial 1'!C44","v":{"v":1120046.0208096842,"d":"$1,120,046"}},{"$f":"'Trial 1'!D44","v":{"v":1176579.521708906,"d":"$1,176,580"}},{"$f":"'Trial 1'!E44","v":{"v":1150960.4530835971,"d":"$1,150,960"}},{"$f":"'Trial 1'!F44","v":{"v":1158953.1925051573,"d":"$1,158,953"}},{"$f":"'Trial 1'!G44","v":{"v":1167737.7989990788,"d":"$1,167,738"}},{"$f":"'Trial 1'!H44","v":{"v":1193344.4773600958,"d":"$1,193,344"}},{"$f":"'Trial 1'!I44","v":{"v":1158896.345576658,"d":"$1,158,896"}},{"$f":"'Trial 1'!J44","v":{"v":1170161.7884688792,"d":"$1,170,162"}},{"$f":"'Trial 1'!K44","v":{"v":1169518.774204116,"d":"$1,169,519"}},{"$f":"'Trial 1'!L44","v":{"v":1157920.4084569009,"d":"$1,157,920"}},{"$f":"'Trial 1'!M44","v":{"v":1191684.9409092965,"d":"$1,191,685"}},{"$f":"SUM('Trial 1'!B44:M44)","v":{"v":14017962.54090288,"d":"$14,017,963"}},{"$f":"'Trial 1'!O44","v":{"v":1131990.3261856257,"d":"$1,131,990"}},{"$f":"'Trial 1'!P44","v":{"v":1179513.1351583593,"d":"$1,179,513"}},{"$f":"'Trial 1'!Q44","v":{"v":1144089.7440212,"d":"$1,144,090"}},{"$f":"'Trial 1'!R44","v":{"v":1147818.4043558883,"d":"$1,147,818"}},{"$f":"'Trial 1'!S44","v":{"v":1130030.6160882455,"d":"$1,130,031"}},{"$f":"'Trial 1'!T44","v":{"v":1108749.250401013,"d":"$1,108,749"}},{"$f":"'Trial 1'!U44","v":{"v":1120462.2479678858,"d":"$1,120,462"}},{"$f":"'Trial 1'!V44","v":{"v":1138835.6724531918,"d":"$1,138,836"}},{"$f":"'Trial 1'!W44","v":{"v":1151352.3460307138,"d":"$1,151,352"}},{"$f":"'Trial 1'!X44","v":{"v":1140588.1692439315,"d":"$1,140,588"}},{"$f":"'Trial 1'!Y44","v":{"v":1173848.153134745,"d":"$1,173,848"}},{"$f":"'Trial 1'!Z44","v":{"v":1129365.432508057,"d":"$1,129,365"}},{"$f":"SUM('Trial 1'!O44:Z44)","v":{"v":13696643.497548856,"d":"$13,696,643"}},{"$f":"'Trial 1'!AB44","v":{"v":1125699.2874020082,"d":"$1,125,699"}},{"$f":"'Trial 1'!AC44","v":{"v":1142321.566732226,"d":"$1,142,322"}},{"$f":"'Trial 1'!AD44","v":{"v":1165262.6856283376,"d":"$1,165,263"}},{"$f":"'Trial 1'!AE44","v":{"v":1101811.0611111962,"d":"$1,101,811"}},{"$f":"'Trial 1'!AF44","v":{"v":1100619.991793125,"d":"$1,100,620"}},{"$f":"'Trial 1'!AG44","v":{"v":1133813.9533655418,"d":"$1,133,814"}},{"$f":"'Trial 1'!AH44","v":{"v":1128428.3730587459,"d":"$1,128,428"}},{"$f":"'Trial 1'!AI44","v":{"v":1103224.4646810032,"d":"$1,103,224"}},{"$f":"'Trial 1'!AJ44","v":{"v":1091495.9624810736,"d":"$1,091,496"}},{"$f":"'Trial 1'!AK44","v":{"v":1129415.0791500201,"d":"$1,129,415"}},{"$f":"'Trial 1'!AL44","v":{"v":1154246.134901398,"d":"$1,154,246"}},{"$f":"'Trial 1'!AM44","v":{"v":1157174.095410595,"d":"$1,157,174"}},{"$f":"SUM('Trial 1'!AB44:AM44)","v":{"v":13533512.655715272,"d":"$13,533,513"}},{"$f":"'Trial 1'!AO44","v":{"v":1058324.8828199957,"d":"$1,058,325"}},{"$f":"'Trial 1'!AP44","v":{"v":1106228.5641979608,"d":"$1,106,229"}},{"$f":"'Trial 1'!AQ44","v":{"v":1151833.5018172043,"d":"$1,151,834"}},{"$f":"'Trial 1'!AR44","v":{"v":1099387.348581596,"d":"$1,099,387"}},{"$f":"'Trial 1'!AS44","v":{"v":1094197.711639903,"d":"$1,094,198"}},{"$f":"'Trial 1'!AT44","v":{"v":1089778.9674376962,"d":"$1,089,779"}},{"$f":"'Trial 1'!AU44","v":{"v":1094127.125721732,"d":"$1,094,127"}},{"$f":"'Trial 1'!AV44","v":{"v":1134962.5260957472,"d":"$1,134,963"}},{"$f":"'Trial 1'!AW44","v":{"v":1094705.128779793,"d":"$1,094,705"}},{"$f":"'Trial 1'!AX44","v":{"v":1058889.7833340273,"d":"$1,058,890"}},{"$f":"'Trial 1'!AY44","v":{"v":1144767.7190854647,"d":"$1,144,768"}},{"$f":"'Trial 1'!AZ44","v":{"v":1090490.0200917968,"d":"$1,090,490"}},{"$f":"SUM('Trial 1'!AO44:AZ44)","v":{"v":13217693.279602917,"d":"$13,217,693"}},{"$f":"'Trial 1'!BB44","v":{"v":1076248.6049553477,"d":"$1,076,249"}},{"$f":"'Trial 1'!BC44","v":{"v":1107858.912307943,"d":"$1,107,859"}},{"$f":"'Trial 1'!BD44","v":{"v":1128669.3804930768,"d":"$1,128,669"}},{"$f":"'Trial 1'!BE44","v":{"v":1115198.6700131216,"d":"$1,115,199"}},{"$f":"'Trial 1'!BF44","v":{"v":1072806.6244199893,"d":"$1,072,807"}},{"$f":"'Trial 1'!BG44","v":{"v":1116634.0787528118,"d":"$1,116,634"}},{"$f":"'Trial 1'!BH44","v":{"v":1119585.4391275798,"d":"$1,119,585"}},{"$f":"'Trial 1'!BI44","v":{"v":1147895.2329545743,"d":"$1,147,895"}},{"$f":"'Trial 1'!BJ44","v":{"v":1130624.4000775297,"d":"$1,130,624"}},{"$f":"'Trial 1'!BK44","v":{"v":1142656.3674920727,"d":"$1,142,656"}},{"$f":"'Trial 1'!BL44","v":{"v":1109319.181175501,"d":"$1,109,319"}},{"$f":"'Trial 1'!BM44","v":{"v":1066106.6155200636,"d":"$1,066,107"}},{"$f":"SUM('Trial 1'!BB44:BM44)","v":{"v":13333603.50728961,"d":"$13,333,604"}},{"$f":"'Trial 1'!BO44","v":{"v":1120816.2186580258,"d":"$1,120,816"}},{"$f":"'Trial 1'!BP44","v":{"v":1129337.7730638864,"d":"$1,129,338"}},{"$f":"'Trial 1'!BQ44","v":{"v":1074930.0683027564,"d":"$1,074,930"}},{"$f":"'Trial 1'!BR44","v":{"v":1077914.1972567919,"d":"$1,077,914"}},{"$f":"'Trial 1'!BS44","v":{"v":1053691.216235684,"d":"$1,053,691"}},{"$f":"'Trial 1'!BT44","v":{"v":1089978.5906917932,"d":"$1,089,979"}},{"$f":"'Trial 1'!BU44","v":{"v":1089652.9836748883,"d":"$1,089,653"}},{"$f":"'Trial 1'!BV44","v":{"v":1079708.731802427,"d":"$1,079,709"}},{"$f":"'Trial 1'!BW44","v":{"v":1109665.3637794233,"d":"$1,109,665"}},{"$f":"'Trial 1'!BX44","v":{"v":1057289.6928044616,"d":"$1,057,290"}},{"$f":"'Trial 1'!BY44","v":{"v":1085169.0516231724,"d":"$1,085,169"}},{"$f":"'Trial 1'!BZ44","v":{"v":1080860.1223182774,"d":"$1,080,860"}},{"$f":"SUM('Trial 1'!BO44:BZ44)","v":{"v":13049014.010211589,"d":"$13,049,014"}},{"$f":"'Trial 1'!CB44","v":{"v":1076188.3896332546,"d":"$1,076,188"}},{"$f":"'Trial 1'!CC44","v":{"v":1050236.5089379037,"d":"$1,050,237"}},{"$f":"'Trial 1'!CD44","v":{"v":1027542.6974705146,"d":"$1,027,543"}},{"$f":"'Trial 1'!CE44","v":{"v":1085458.462535213,"d":"$1,085,458"}},{"$f":"'Trial 1'!CF44","v":{"v":1089184.0472493505,"d":"$1,089,184"}},{"$f":"'Trial 1'!CG44","v":{"v":1047247.5798847037,"d":"$1,047,248"}},{"$f":"'Trial 1'!CH44","v":{"v":1086566.3231544194,"d":"$1,086,566"}},{"$f":"'Trial 1'!CI44","v":{"v":1021882.5741336292,"d":"$1,021,883"}},{"$f":"'Trial 1'!CJ44","v":{"v":1054085.3151911602,"d":"$1,054,085"}},{"$f":"'Trial 1'!CK44","v":{"v":1084908.5386761655,"d":"$1,084,909"}},{"$f":"'Trial 1'!CL44","v":{"v":1076639.258560872,"d":"$1,076,639"}},{"$f":"'Trial 1'!CM44","v":{"v":1026806.0316729833,"d":"$1,026,806"}},{"$f":"SUM('Trial 1'!CB44:CM44)","v":{"v":12726745.72710017,"d":"$12,726,746"}},{"$f":"'Trial 1'!CO44","v":{"v":1009725.2602037055,"d":"$1,009,725"}},{"$f":"'Trial 1'!CP44","v":{"v":1065342.6547314608,"d":"$1,065,343"}},{"$f":"'Trial 1'!CQ44","v":{"v":1082309.9423136879,"d":"$1,082,310"}},{"$f":"'Trial 1'!CR44","v":{"v":1056619.709678759,"d":"$1,056,620"}},{"$f":"'Trial 1'!CS44","v":{"v":1027089.0065952629,"d":"$1,027,089"}},{"$f":"'Trial 1'!CT44","v":{"v":1026483.4471757475,"d":"$1,026,483"}},{"$f":"'Trial 1'!CU44","v":{"v":1019805.7016993022,"d":"$1,019,806"}},{"$f":"'Trial 1'!CV44","v":{"v":1040052.7043301852,"d":"$1,040,053"}},{"$f":"'Trial 1'!CW44","v":{"v":1014665.0997594745,"d":"$1,014,665"}},{"$f":"'Trial 1'!CX44","v":{"v":1004370.1120886315,"d":"$1,004,370"}},{"$f":"'Trial 1'!CY44","v":{"v":1069475.899217004,"d":"$1,069,476"}},{"$f":"'Trial 1'!CZ44","v":{"v":1066357.062729511,"d":"$1,066,357"}},{"$f":"SUM('Trial 1'!CO44:CZ44)","v":{"v":12482296.600522734,"d":"$12,482,297"}},{"$f":"'Trial 1'!DB44","v":{"v":1002963.6814835262,"d":"$1,002,964"}},{"$f":"'Trial 1'!DC44","v":{"v":1042812.1120806794,"d":"$1,042,812"}},{"$f":"'Trial 1'!DD44","v":{"v":1049631.944018306,"d":"$1,049,632"}},{"$f":"'Trial 1'!DE44","v":{"v":1076514.4172322552,"d":"$1,076,514"}},{"$f":"'Trial 1'!DF44","v":{"v":1001153.7377882834,"d":"$1,001,154"}},{"$f":"'Trial 1'!DG44","v":{"v":1021781.8907492439,"d":"$1,021,782"}},{"$f":"'Trial 1'!DH44","v":{"v":1067899.070961904,"d":"$1,067,899"}},{"$f":"'Trial 1'!DI44","v":{"v":1041610.2883685015,"d":"$1,041,610"}},{"$f":"'Trial 1'!DJ44","v":{"v":1090165.931531885,"d":"$1,090,166"}},{"$f":"'Trial 1'!DK44","v":{"v":1035992.7199427593,"d":"$1,035,993"}},{"$f":"'Trial 1'!DL44","v":{"v":1042371.0741661028,"d":"$1,042,371"}},{"$f":"'Trial 1'!DM44","v":{"v":1074099.72885628,"d":"$1,074,100"}},{"$f":"SUM('Trial 1'!DB44:DM44)","v":{"v":12546996.597179728,"d":"$12,546,997"}},{"$f":"'Trial 1'!DO44","v":{"v":1001551.1567370136,"d":"$1,001,551"}},{"$f":"'Trial 1'!DP44","v":{"v":1000982.552735646,"d":"$1,000,983"}},{"$f":"'Trial 1'!DQ44","v":{"v":1033102.5135184453,"d":"$1,033,103"}},{"$f":"'Trial 1'!DR44","v":{"v":1029684.0997723099,"d":"$1,029,684"}},{"$f":"'Trial 1'!DS44","v":{"v":1013501.7759753838,"d":"$1,013,502"}},{"$f":"'Trial 1'!DT44","v":{"v":1018988.4081227804,"d":"$1,018,988"}},{"$f":"'Trial 1'!DU44","v":{"v":1075199.1561230032,"d":"$1,075,199"}},{"$f":"'Trial 1'!DV44","v":{"v":1051454.3810780635,"d":"$1,051,454"}},{"$f":"'Trial 1'!DW44","v":{"v":997169.5137239577,"d":"$997,170"}},{"$f":"'Trial 1'!DX44","v":{"v":1001392.3487505179,"d":"$1,001,392"}},{"$f":"'Trial 1'!DY44","v":{"v":1020718.8963805776,"d":"$1,020,719"}},{"$f":"'Trial 1'!DZ44","v":{"v":1027965.6388616653,"d":"$1,027,966"}},{"$f":"SUM('Trial 1'!DO44:DZ44)","v":{"v":12271710.441779366,"d":"$12,271,710"}},{"$f":"'Trial 1'!EB44","v":{"v":1030127.2999716471,"d":"$1,030,127"}},{"$f":"'Trial 1'!EC44","v":{"v":991104.2464743715,"d":"$991,104"}},{"$f":"'Trial 1'!ED44","v":{"v":976946.7398408419,"d":"$976,947"}},{"$f":"'Trial 1'!EE44","v":{"v":1057264.493174578,"d":"$1,057,264"}},{"$f":"'Trial 1'!EF44","v":{"v":995354.4123758442,"d":"$995,354"}},{"$f":"'Trial 1'!EG44","v":{"v":1010788.3005420117,"d":"$1,010,788"}},{"$f":"'Trial 1'!EH44","v":{"v":1045964.2543766703,"d":"$1,045,964"}},{"$f":"'Trial 1'!EI44","v":{"v":987138.7233040716,"d":"$987,139"}},{"$f":"'Trial 1'!EJ44","v":{"v":996157.512371684,"d":"$996,158"}},{"$f":"'Trial 1'!EK44","v":{"v":984618.4335678366,"d":"$984,618"}},{"$f":"'Trial 1'!EL44","v":{"v":1011582.4897197669,"d":"$1,011,582"}},{"$f":"'Trial 1'!EM44","v":{"v":994076.0435281956,"d":"$994,076"}},{"$f":"SUM('Trial 1'!EB44:EM44)","v":{"v":12081122.94924752,"d":"$12,081,123"}}]
[{"$f":"Labels!B97","v":"Trial 02"},{"$f":"'Trial 2'!B44","v":{"v":1175654.926432372,"d":"$1,175,655"}},{"$f":"'Trial 2'!C44","v":{"v":1216499.1556299657,"d":"$1,216,499"}},{"$f":"'Trial 2'!D44","v":{"v":1180238.3266088313,"d":"$1,180,238"}},{"$f":"'Trial 2'!E44","v":{"v":1171664.1189723471,"d":"$1,171,664"}},{"$f":"'Trial 2'!F44","v":{"v":1189628.7776975832,"d":"$1,189,629"}},{"$f":"'Trial 2'!G44","v":{"v":1187215.7929272922,"d":"$1,187,216"}},{"$f":"'Trial 2'!H44","v":{"v":1174144.73767831,"d":"$1,174,145"}},{"$f":"'Trial 2'!I44","v":{"v":1128095.8298228488,"d":"$1,128,096"}},{"$f":"'Trial 2'!J44","v":{"v":1217581.2744300256,"d":"$1,217,581"}},{"$f":"'Trial 2'!K44","v":{"v":1134878.124477945,"d":"$1,134,878"}},{"$f":"'Trial 2'!L44","v":{"v":1166060.5594397543,"d":"$1,166,061"}},{"$f":"'Trial 2'!M44","v":{"v":1199926.5266998792,"d":"$1,199,927"}},{"$f":"SUM('Trial 2'!B44:M44)","v":{"v":14141588.150817152,"d":"$14,141,588"}},{"$f":"'Trial 2'!O44","v":{"v":1131088.5728899033,"d":"$1,131,089"}},{"$f":"'Trial 2'!P44","v":{"v":1109883.4959602077,"d":"$1,109,883"}},{"$f":"'Trial 2'!Q44","v":{"v":1202541.9097401064,"d":"$1,202,542"}},{"$f":"'Trial 2'!R44","v":{"v":1143332.1205889161,"d":"$1,143,332"}},{"$f":"'Trial 2'!S44","v":{"v":1170728.7611309562,"d":"$1,170,729"}},{"$f":"'Trial 2'!T44","v":{"v":1080237.545098617,"d":"$1,080,238"}},{"$f":"'Trial 2'!U44","v":{"v":1105659.3304914248,"d":"$1,105,659"}},{"$f":"'Trial 2'!V44","v":{"v":1128298.5026589811,"d":"$1,128,299"}},{"$f":"'Trial 2'!W44","v":{"v":1188242.2335332157,"d":"$1,188,242"}},{"$f":"'Trial 2'!X44","v":{"v":1153991.4659884742,"d":"$1,153,991"}},{"$f":"'Trial 2'!Y44","v":{"v":1166892.0631257675,"d":"$1,166,892"}},{"$f":"'Trial 2'!Z44","v":{"v":1124834.0262284055,"d":"$1,124,834"}},{"$f":"SUM('Trial 2'!O44:Z44)","v":{"v":13705730.027434973,"d":"$13,705,730"}},{"$f":"'Trial 2'!AB44","v":{"v":1116011.4961176754,"d":"$1,116,011"}},{"$f":"'Trial 2'!AC44","v":{"v":1084665.0069361622,"d":"$1,084,665"}},{"$f":"'Trial 2'!AD44","v":{"v":1146746.2776198478,"d":"$1,146,746"}},{"$f":"'Trial 2'!AE44","v":{"v":1118233.543099685,"d":"$1,118,234"}},{"$f":"'Trial 2'!AF44","v":{"v":1128062.3981155711,"d":"$1,128,062"}},{"$f":"'Trial 2'!AG44","v":{"v":1114823.043625788,"d":"$1,114,823"}},{"$f":"'Trial 2'!AH44","v":{"v":1125541.2986840673,"d":"$1,125,541"}},{"$f":"'Trial 2'!AI44","v":{"v":1107654.4052128685,"d":"$1,107,654"}},{"$f":"'Trial 2'!AJ44","v":{"v":1128289.1451222384,"d":"$1,128,289"}},{"$f":"'Trial 2'!AK44","v":{"v":1152260.6966067892,"d":"$1,152,261"}},{"$f":"'Trial 2'!AL44","v":{"v":1110826.1762918928,"d":"$1,110,826"}},{"$f":"'Trial 2'!AM44","v":{"v":1078373.387871296,"d":"$1,078,373"}},{"$f":"SUM('Trial 2'!AB44:AM44)","v":{"v":13411486.875303881,"d":"$13,411,487"}},{"$f":"'Trial 2'!AO44","v":{"v":1083931.1094527575,"d":"$1,083,931"}},{"$f":"'Trial 2'!AP44","v":{"v":1082880.4587809066,"d":"$1,082,880"}},{"$f":"'Trial 2'!AQ44","v":{"v":1128504.8362256302,"d":"$1,128,505"}},{"$f":"'Trial 2'!AR44","v":{"v":1091509.9843161937,"d":"$1,091,510"}},{"$f":"'Trial 2'!AS44","v":{"v":1070806.728601455,"d":"$1,070,807"}},{"$f":"'Trial 2'!AT44","v":{"v":1099730.3369632447,"d":"$1,099,730"}},{"$f":"'Trial 2'!AU44","v":{"v":1138841.4414596984,"d":"$1,138,841"}},{"$f":"'Trial 2'!AV44","v":{"v":1117702.3329934326,"d":"$1,117,702"}},{"$f":"'Trial 2'!AW44","v":{"v":1142679.7258875633,"d":"$1,142,680"}},{"$f":"'Trial 2'!AX44","v":{"v":1116453.22125228,"d":"$1,116,453"}},{"$f":"'Trial 2'!AY44","v":{"v":1044369.2441354354,"d":"$1,044,369"}},{"$f":"'Trial 2'!AZ44","v":{"v":1080213.5082777678,"d":"$1,080,214"}},{"$f":"SUM('Trial 2'!AO44:AZ44)","v":{"v":13197622.928346366,"d":"$13,197,623"}},{"$f":"'Trial 2'!BB44","v":{"v":1098380.1635124371,"d":"$1,098,380"}},{"$f":"'Trial 2'!BC44","v":{"v":1115754.3960596558,"d":"$1,115,754"}},{"$f":"'Trial 2'!BD44","v":{"v":1073029.0089211883,"d":"$1,073,029"}},{"$f":"'Trial 2'!BE44","v":{"v":1076697.4308441675,"d":"$1,076,697"}},{"$f":"'Trial 2'!BF44","v":{"v":1128132.2756869756,"d":"$1,128,132"}},{"$f":"'Trial 2'!BG44","v":{"v":1084801.1964147522,"d":"$1,084,801"}},{"$f":"'Trial 2'!BH44","v":{"v":1063157.6608053634,"d":"$1,063,158"}},{"$f":"'Trial 2'!BI44","v":{"v":1100876.1572159175,"d":"$1,100,876"}},{"$f":"'Trial 2'!BJ44","v":{"v":1075483.0792809983,"d":"$1,075,483"}},{"$f":"'Trial 2'!BK44","v":{"v":1035787.186552716,"d":"$1,035,787"}},{"$f":"'Trial 2'!BL44","v":{"v":1033916.391461075,"d":"$1,033,916"}},{"$f":"'Trial 2'!BM44","v":{"v":1128784.0704472219,"d":"$1,128,784"}},{"$f":"SUM('Trial 2'!BB44:BM44)","v":{"v":13014799.017202469,"d":"$13,014,799"}},{"$f":"'Trial 2'!BO44","v":{"v":1053163.9412302002,"d":"$1,053,164"}},{"$f":"'Trial 2'!BP44","v":{"v":1080150.8676080187,"d":"$1,080,151"}},{"$f":"'Trial 2'!BQ44","v":{"v":1090710.0933758728,"d":"$1,090,710"}},{"$f":"'Trial 2'!BR44","v":{"v":1085208.11272716,"d":"$1,085,208"}},{"$f":"'Trial 2'!BS44","v":{"v":1073097.0594817838,"d":"$1,073,097"}},{"$f":"'Trial 2'!BT44","v":{"v":1023245.0817754384,"d":"$1,023,245"}},{"$f":"'Trial 2'!BU44","v":{"v":1050948.0514486542,"d":"$1,050,948"}},{"$f":"'Trial 2'!BV44","v":{"v":1107222.5959518524,"d":"$1,107,223"}},{"$f":"'Trial 2'!BW44","v":{"v":1074543.7087763196,"d":"$1,074,544"}},{"$f":"'Trial 2'!BX44","v":{"v":1052663.880323676,"d":"$1,052,664"}},{"$f":"'Trial 2'!BY44","v":{"v":1094880.6036254875,"d":"$1,094,881"}},{"$f":"'Trial 2'!BZ44","v":{"v":1078897.7802544727,"d":"$1,078,898"}},{"$f":"SUM('Trial 2'!BO44:BZ44)","v":{"v":12864731.776578937,"d":"$12,864,732"}},{"$f":"'Trial 2'!CB44","v":{"v":1114491.9758501032,"d":"$1,114,492"}},{"$f":"'Trial 2'!CC44","v":{"v":1100781.8592925859,"d":"$1,100,782"}},{"$f":"'Trial 2'!CD44","v":{"v":1064632.196647075,"d":"$1,064,632"}},{"$f":"'Trial 2'!CE44","v":{"v":1065695.7460209813,"d":"$1,065,696"}},{"$f":"'Trial 2'!CF44","v":{"v":1083912.4642171478,"d":"$1,083,912"}},{"$f":"'Trial 2'!CG44","v":{"v":1041341.7185893086,"d":"$1,041,342"}},{"$f":"'Trial 2'!CH44","v":{"v":1081781.4745774271,"d":"$1,081,781"}},{"$f":"'Trial 2'!CI44","v":{"v":1082632.7760130623,"d":"$1,082,633"}},{"$f":"'Trial 2'!CJ44","v":{"v":1110023.4328922112,"d":"$1,110,023"}},{"$f":"'Trial 2'!CK44","v":{"v":1015918.8287063236,"d":"$1,015,919"}},{"$f":"'Trial 2'!CL44","v":{"v":1059260.128886255,"d":"$1,059,260"}},{"$f":"'Trial 2'!CM44","v":{"v":1099048.1054557187,"d":"$1,099,048"}},{"$f":"SUM('Trial 2'!CB44:CM44)","v":{"v":12919520.7071482,"d":"$12,919,521"}},{"$f":"'Trial 2'!CO44","v":{"v":1035388.8655386878,"d":"$1,035,389"}},{"$f":"'Trial 2'!CP44","v":{"v":1047610.100422246,"d":"$1,047,610"}},{"$f":"'Trial 2'!CQ44","v":{"v":1062779.0634101636,"d":"$1,062,779"}},{"$f":"'Trial 2'!CR44","v":{"v":1031798.8801251311,"d":"$1,031,799"}},{"$f":"'Trial 2'!CS44","v":{"v":1061475.5130285507,"d":"$1,061,476"}},{"$f":"'Trial 2'!CT44","v":{"v":1006767.4143170507,"d":"$1,006,767"}},{"$f":"'Trial 2'!CU44","v":{"v":1092928.2898533687,"d":"$1,092,928"}},{"$f":"'Trial 2'!CV44","v":{"v":991068.8778923855,"d":"$991,069"}},{"$f":"'Trial 2'!CW44","v":{"v":1063651.2561803814,"d":"$1,063,651"}},{"$f":"'Trial 2'!CX44","v":{"v":1104247.7930448104,"d":"$1,104,248"}},{"$f":"'Trial 2'!CY44","v":{"v":1009816.6110620139,"d":"$1,009,817"}},{"$f":"'Trial 2'!CZ44","v":{"v":1042972.59722063,"d":"$1,042,973"}},{"$f":"SUM('Trial 2'!CO44:CZ44)","v":{"v":12550505.262095422,"d":"$12,550,505"}},{"$f":"'Trial 2'!DB44","v":{"v":1043718.799810619,"d":"$1,043,719"}},{"$f":"'Trial 2'!DC44","v":{"v":1032008.7030430408,"d":"$1,032,009"}},{"$f":"'Trial 2'!DD44","v":{"v":1050826.61682897,"d":"$1,050,827"}},{"$f":"'Trial 2'!DE44","v":{"v":1039582.3036894519,"d":"$1,039,582"}},{"$f":"'Trial 2'!DF44","v":{"v":1068467.3796826524,"d":"$1,068,467"}},{"$f":"'Trial 2'!DG44","v":{"v":1016956.0834135473,"d":"$1,016,956"}},{"$f":"'Trial 2'!DH44","v":{"v":1022430.5422559188,"d":"$1,022,431"}},{"$f":"'Trial 2'!DI44","v":{"v":1024846.074291284,"d":"$1,024,846"}},{"$f":"'Trial 2'!DJ44","v":{"v":1038654.9102389631,"d":"$1,038,655"}},{"$f":"'Trial 2'!DK44","v":{"v":1063890.6943909358,"d":"$1,063,891"}},{"$f":"'Trial 2'!DL44","v":{"v":1082366.0762371935,"d":"$1,082,366"}},{"$f":"'Trial 2'!DM44","v":{"v":985459.1523384944,"d":"$985,459"}},{"$f":"SUM('Trial 2'!DB44:DM44)","v":{"v":12469207.336221071,"d":"$12,469,207"}},{"$f":"'Trial 2'!DO44","v":{"v":1007806.6036831485,"d":"$1,007,807"}},{"$f":"'Trial 2'!DP44","v":{"v":981339.2495386767,"d":"$981,339"}},{"$f":"'Trial 2'!DQ44","v":{"v":1011288.1865904448,"d":"$1,011,288"}},{"$f":"'Trial 2'!DR44","v":{"v":1029669.01476951,"d":"$1,029,669"}},{"$f":"'Trial 2'!DS44","v":{"v":1007839.4975178933,"d":"$1,007,839"}},{"$f":"'Trial 2'!DT44","v":{"v":1018307.0222430099,"d":"$1,018,307"}},{"$f":"'Trial 2'!DU44","v":{"v":1013353.0429591592,"d":"$1,013,353"}},{"$f":"'Trial 2'!DV44","v":{"v":970318.4769633987,"d":"$970,318"}},{"$f":"'Trial 2'!DW44","v":{"v":1023858.8392990597,"d":"$1,023,859"}},{"$f":"'Trial 2'!DX44","v":{"v":1018460.8146186146,"d":"$1,018,461"}},{"$f":"'Trial 2'!DY44","v":{"v":1012159.3159788504,"d":"$1,012,159"}},{"$f":"'Trial 2'!DZ44","v":{"v":1023688.9558459918,"d":"$1,023,689"}},{"$f":"SUM('Trial 2'!DO44:DZ44)","v":{"v":12118089.02000776,"d":"$12,118,089"}},{"$f":"'Trial 2'!EB44","v":{"v":1022115.679677271,"d":"$1,022,116"}},{"$f":"'Trial 2'!EC44","v":{"v":995176.5391119426,"d":"$995,177"}},{"$f":"'Trial 2'!ED44","v":{"v":955142.1759929734,"d":"$955,142"}},{"$f":"'Trial 2'!EE44","v":{"v":1070625.9574901548,"d":"$1,070,626"}},{"$f":"'Trial 2'!EF44","v":{"v":1030689.052975053,"d":"$1,030,689"}},{"$f":"'Trial 2'!EG44","v":{"v":1011055.3895846726,"d":"$1,011,055"}},{"$f":"'Trial 2'!EH44","v":{"v":1043948.8542818102,"d":"$1,043,949"}},{"$f":"'Trial 2'!EI44","v":{"v":1020773.0062981694,"d":"$1,020,773"}},{"$f":"'Trial 2'!EJ44","v":{"v":1005935.5488754868,"d":"$1,005,936"}},{"$f":"'Trial 2'!EK44","v":{"v":992872.5647493221,"d":"$992,873"}},{"$f":"'Trial 2'!EL44","v":{"v":1029784.1498723784,"d":"$1,029,784"}},{"$f":"'Trial 2'!EM44","v":{"v":1003772.7735841861,"d":"$1,003,773"}},{"$f":"SUM('Trial 2'!EB44:EM44)","v":{"v":12181891.692493424,"d":"$12,181,892"}}]
[{"$f":"Labels!B98","v":"Trial 03"},{"$f":"'Trial 3'!B44","v":{"v":1150342.4848132704,"d":"$1,150,342"}},{"$f":"'Trial 3'!C44","v":{"v":1198443.6317882268,"d":"$1,198,444"}},{"$f":"'Trial 3'!D44","v":{"v":1144816.8609503747,"d":"$1,144,817"}},{"$f":"'Trial 3'!E44","v":{"v":1134124.339914245,"d":"$1,134,124"}},{"$f":"'Trial 3'!F44","v":{"v":1181810.669306879,"d":"$1,181,811"}},{"$f":"'Trial 3'!G44","v":{"v":1154506.554661449,"d":"$1,154,507"}},{"$f":"'Trial 3'!H44","v":{"v":1165123.5991286912,"d":"$1,165,124"}},{"$f":"'Trial 3'!I44","v":{"v":1163975.5889266082,"d":"$1,163,976"}},{"$f":"'Trial 3'!J44","v":{"v":1192835.2095116535,"d":"$1,192,835"}},{"$f":"'Trial 3'!K44","v":{"v":1124195.9248878122,"d":"$1,124,196"}},{"$f":"'Trial 3'!L44","v":{"v":1136124.2361104793,"d":"$1,136,124"}},{"$f":"'Trial 3'!M44","v":{"v":1156854.871807169,"d":"$1,156,855"}},{"$f":"SUM('Trial 3'!B44:M44)","v":{"v":13903153.97180686,"d":"$13,903,154"}},{"$f":"'Trial 3'!O44","v":{"v":1138864.6821102186,"d":"$1,138,865"}},{"$f":"'Trial 3'!P44","v":{"v":1167741.3300877442,"d":"$1,167,741"}},{"$f":"'Trial 3'!Q44","v":{"v":1122944.5511523054,"d":"$1,122,945"}},{"$f":"'Trial 3'!R44","v":{"v":1179461.9834569346,"d":"$1,179,462"}},{"$f":"'Trial 3'!S44","v":{"v":1203276.0030464074,"d":"$1,203,276"}},{"$f":"'Trial 3'!T44","v":{"v":1121557.3985460424,"d":"$1,121,557"}},{"$f":"'Trial 3'!U44","v":{"v":1176490.772698274,"d":"$1,176,491"}},{"$f":"'Trial 3'!V44","v":{"v":1181679.6144104504,"d":"$1,181,680"}},{"$f":"'Trial 3'!W44","v":{"v":1124739.0009411937,"d":"$1,124,739"}},{"$f":"'Trial 3'!X44","v":{"v":1153196.9609125077,"d":"$1,153,197"}},{"$f":"'Trial 3'!Y44","v":{"v":1085330.219368682,"d":"$1,085,330"}},{"$f":"'Trial 3'!Z44","v":{"v":1139586.5760802876,"d":"$1,139,587"}},{"$f":"SUM('Trial 3'!O44:Z44)","v":{"v":13794869.092811046,"d":"$13,794,869"}},{"$f":"'Trial 3'!AB44","v":{"v":1142769.9653332909,"d":"$1,142,770"}},{"$f":"'Trial 3'!AC44","v":{"v":1166965.2840213662,"d":"$1,166,965"}},{"$f":"'Trial 3'!AD44","v":{"v":1120734.3094653653,"d":"$1,120,734"}},{"$f":"'Trial 3'!AE44","v":{"v":1140122.2152114075,"d":"$1,140,122"}},{"$f":"'Trial 3'!AF44","v":{"v":1135007.5525501822,"d":"$1,135,008"}},{"$f":"'Trial 3'!AG44","v":{"v":1117550.654451029,"d":"$1,117,551"}},{"$f":"'Trial 3'!AH44","v":{"v":1084663.2157630213,"d":"$1,084,663"}},{"$f":"'Trial 3'!AI44","v":{"v":1139547.8258766388,"d":"$1,139,548"}},{"$f":"'Trial 3'!AJ44","v":{"v":1137917.6154859087,"d":"$1,137,918"}},{"$f":"'Trial 3'!AK44","v":{"v":1127622.6633451025,"d":"$1,127,623"}},{"$f":"'Trial 3'!AL44","v":{"v":1091326.814473016,"d":"$1,091,327"}},{"$f":"'Trial 3'!AM44","v":{"v":1171567.6564986464,"d":"$1,171,568"}},{"$f":"SUM('Trial 3'!AB44:AM44)","v":{"v":13575795.772474974,"d":"$13,575,796"}},{"$f":"'Trial 3'!AO44","v":{"v":1087049.6270858462,"d":"$1,087,050"}},{"$f":"'Trial 3'!AP44","v":{"v":1124375.5576919264,"d":"$1,124,376"}},{"$f":"'Trial 3'!AQ44","v":{"v":1166404.240170155,"d":"$1,166,404"}},{"$f":"'Trial 3'!AR44","v":{"v":1143639.9248658675,"d":"$1,143,640"}},{"$f":"'Trial 3'!AS44","v":{"v":1103184.5837005423,"d":"$1,103,185"}},{"$f":"'Trial 3'!AT44","v":{"v":1121131.9736445674,"d":"$1,121,132"}},{"$f":"'Trial 3'!AU44","v":{"v":1150828.723058223,"d":"$1,150,829"}},{"$f":"'Trial 3'!AV44","v":{"v":1139554.757715729,"d":"$1,139,555"}},{"$f":"'Trial 3'!AW44","v":{"v":1051000.2960826934,"d":"$1,051,000"}},{"$f":"'Trial 3'!AX44","v":{"v":1146342.0364819327,"d":"$1,146,342"}},{"$f":"'Trial 3'!AY44","v":{"v":1090732.718268176,"d":"$1,090,733"}},{"$f":"'Trial 3'!AZ44","v":{"v":1101575.4872303104,"d":"$1,101,575"}},{"$f":"SUM('Trial 3'!AO44:AZ44)","v":{"v":13425819.925995968,"d":"$13,425,820"}},{"$f":"'Trial 3'!BB44","v":{"v":1136482.8430774221,"d":"$1,136,483"}},{"$f":"'Trial 3'!BC44","v":{"v":1150151.024259446,"d":"$1,150,151"}},{"$f":"'Trial 3'!BD44","v":{"v":1093954.5592813343,"d":"$1,093,955"}},{"$f":"'Trial 3'!BE44","v":{"v":1122569.5902868996,"d":"$1,122,570"}},{"$f":"'Trial 3'!BF44","v":{"v":1098264.7927567568,"d":"$1,098,265"}},{"$f":"'Trial 3'!BG44","v":{"v":1100307.4662003727,"d":"$1,100,307"}},{"$f":"'Trial 3'!BH44","v":{"v":1141527.0226211774,"d":"$1,141,527"}},{"$f":"'Trial 3'!BI44","v":{"v":1089065.3602296363,"d":"$1,089,065"}},{"$f":"'Trial 3'!BJ44","v":{"v":1043474.7324232346,"d":"$1,043,475"}},{"$f":"'Trial 3'!BK44","v":{"v":1046621.5205442912,"d":"$1,046,622"}},{"$f":"'Trial 3'!BL44","v":{"v":1093759.4480012194,"d":"$1,093,759"}},{"$f":"'Trial 3'!BM44","v":{"v":1033964.0707376434,"d":"$1,033,964"}},{"$f":"SUM('Trial 3'!BB44:BM44)","v":{"v":13150142.430419432,"d":"$13,150,142"}},{"$f":"'Trial 3'!BO44","v":{"v":1076816.8058139717,"d":"$1,076,817"}},{"$f":"'Trial 3'!BP44","v":{"v":1064951.205368106,"d":"$1,064,951"}},{"$f":"'Trial 3'!BQ44","v":{"v":1075004.0620441367,"d":"$1,075,004"}},{"$f":"'Trial 3'!BR44","v":{"v":1120889.0853163044,"d":"$1,120,889"}},{"$f":"'Trial 3'!BS44","v":{"v":1081276.5946556348,"d":"$1,081,277"}},{"$f":"'Trial 3'!BT44","v":{"v":1094247.5641226412,"d":"$1,094,248"}},{"$f":"'Trial 3'!BU44","v":{"v":1034975.562298365,"d":"$1,034,976"}},{"$f":"'Trial 3'!BV44","v":{"v":1078851.5060041775,"d":"$1,078,852"}},{"$f":"'Trial 3'!BW44","v":{"v":1097083.9756032445,"d":"$1,097,084"}},{"$f":"'Trial 3'!BX44","v":{"v":1058339.5506733262,"d":"$1,058,340"}},{"$f":"'Trial 3'!BY44","v":{"v":1045468.1399865155,"d":"$1,045,468"}},{"$f":"'Trial 3'!BZ44","v":{"v":1028045.780997058,"d":"$1,028,046"}},{"$f":"SUM('Trial 3'!BO44:BZ44)","v":{"v":12855949.832883483,"d":"$12,855,950"}},{"$f":"'Trial 3'!CB44","v":{"v":1072226.770800911,"d":"$1,072,227"}},{"$f":"'Trial 3'!CC44","v":{"v":1086751.821471384,"d":"$1,086,752"}},{"$f":"'Trial 3'!CD44","v":{"v":1020218.0579701094,"d":"$1,020,218"}},{"$f":"'Trial 3'!CE44","v":{"v":1020761.7287526942,"d":"$1,020,762"}},{"$f":"'Trial 3'!CF44","v":{"v":1075299.5171311942,"d":"$1,075,300"}},{"$f":"'Trial 3'!CG44","v":{"v":1046239.7250576962,"d":"$1,046,240"}},{"$f":"'Trial 3'!CH44","v":{"v":1021650.9908874362,"d":"$1,021,651"}},{"$f":"'Trial 3'!CI44","v":{"v":1093409.8436335379,"d":"$1,093,410"}},{"$f":"'Trial 3'!CJ44","v":{"v":1064841.4048922474,"d":"$1,064,841"}},{"$f":"'Trial 3'!CK44","v":{"v":1064551.2501169255,"d":"$1,064,551"}},{"$f":"'Trial 3'!CL44","v":{"v":1023502.2918104453,"d":"$1,023,502"}},{"$f":"'Trial 3'!CM44","v":{"v":1028070.6534248942,"d":"$1,028,071"}},{"$f":"SUM('Trial 3'!CB44:CM44)","v":{"v":12617524.055949476,"d":"$12,617,524"}},{"$f":"'Trial 3'!CO44","v":{"v":1067531.7979565638,"d":"$1,067,532"}},{"$f":"'Trial 3'!CP44","v":{"v":1054727.276540199,"d":"$1,054,727"}},{"$f":"'Trial 3'!CQ44","v":{"v":1055915.186304103,"d":"$1,055,915"}},{"$f":"'Trial 3'!CR44","v":{"v":1013357.306729537,"d":"$1,013,357"}},{"$f":"'Trial 3'!CS44","v":{"v":1054899.791985395,"d":"$1,054,900"}},{"$f":"'Trial 3'!CT44","v":{"v":1104549.6405441493,"d":"$1,104,550"}},{"$f":"'Trial 3'!CU44","v":{"v":1032206.5898731458,"d":"$1,032,207"}},{"$f":"'Trial 3'!CV44","v":{"v":1051546.17996621,"d":"$1,051,546"}},{"$f":"'Trial 3'!CW44","v":{"v":1012145.2889767027,"d":"$1,012,145"}},{"$f":"'Trial 3'!CX44","v":{"v":1061535.1734546376,"d":"$1,061,535"}},{"$f":"'Trial 3'!CY44","v":{"v":1082437.3779765053,"d":"$1,082,437"}},{"$f":"'Trial 3'!CZ44","v":{"v":1083478.9709438786,"d":"$1,083,479"}},{"$f":"SUM('Trial 3'!CO44:CZ44)","v":{"v":12674330.581251027,"d":"$12,674,331"}},{"$f":"'Trial 3'!DB44","v":{"v":1040933.4139402967,"d":"$1,040,933"}},{"$f":"'Trial 3'!DC44","v":{"v":988250.705733655,"d":"$988,251"}},{"$f":"'Trial 3'!DD44","v":{"v":1031185.4157169745,"d":"$1,031,185"}},{"$f":"'Trial 3'!DE44","v":{"v":1027146.2334362891,"d":"$1,027,146"}},{"$f":"'Trial 3'!DF44","v":{"v":1024661.117103764,"d":"$1,024,661"}},{"$f":"'Trial 3'!DG44","v":{"v":1022244.8884179797,"d":"$1,022,245"}},{"$f":"'Trial 3'!DH44","v":{"v":1068893.0341109585,"d":"$1,068,893"}},{"$f":"'Trial 3'!DI44","v":{"v":1064879.9944282281,"d":"$1,064,880"}},{"$f":"'Trial 3'!DJ44","v":{"v":1072500.3324866514,"d":"$1,072,500"}},{"$f":"'Trial 3'!DK44","v":{"v":1031735.0237287002,"d":"$1,031,735"}},{"$f":"'Trial 3'!DL44","v":{"v":994382.5262172555,"d":"$994,383"}},{"$f":"'Trial 3'!DM44","v":{"v":1035111.8167487021,"d":"$1,035,112"}},{"$f":"SUM('Trial 3'!DB44:DM44)","v":{"v":12401924.502069457,"d":"$12,401,925"}},{"$f":"'Trial 3'!DO44","v":{"v":1074685.4246610247,"d":"$1,074,685"}},{"$f":"'Trial 3'!DP44","v":{"v":1074163.920784875,"d":"$1,074,164"}},{"$f":"'Trial 3'!DQ44","v":{"v":1040599.0855678861,"d":"$1,040,599"}},{"$f":"'Trial 3'!DR44","v":{"v":1080940.9398962543,"d":"$1,080,941"}},{"$f":"'Trial 3'!DS44","v":{"v":1040822.233958831,"d":"$1,040,822"}},{"$f":"'Trial 3'!DT44","v":{"v":1026459.4271217257,"d":"$1,026,459"}},{"$f":"'Trial 3'!DU44","v":{"v":1043496.0759547836,"d":"$1,043,496"}},{"$f":"'Trial 3'!DV44","v":{"v":965943.0511301444,"d":"$965,943"}},{"$f":"'Trial 3'!DW44","v":{"v":1064111.546873058,"d":"$1,064,112"}},{"$f":"'Trial 3'!DX44","v":{"v":1028730.3704495872,"d":"$1,028,730"}},{"$f":"'Trial 3'!DY44","v":{"v":1072088.7781670687,"d":"$1,072,089"}},{"$f":"'Trial 3'!DZ44","v":{"v":1008573.2551671792,"d":"$1,008,573"}},{"$f":"SUM('Trial 3'!DO44:DZ44)","v":{"v":12520614.109732417,"d":"$12,520,614"}},{"$f":"'Trial 3'!EB44","v":{"v":1047112.1793745182,"d":"$1,047,112"}},{"$f":"'Trial 3'!EC44","v":{"v":1058530.5817237399,"d":"$1,058,531"}},{"$f":"'Trial 3'!ED44","v":{"v":980780.5591207019,"d":"$980,781"}},{"$f":"'Trial 3'!EE44","v":{"v":1002193.0442663803,"d":"$1,002,193"}},{"$f":"'Trial 3'!EF44","v":{"v":995404.1934229697,"d":"$995,404"}},{"$f":"'Trial 3'!EG44","v":{"v":1030680.1518847366,"d":"$1,030,680"}},{"$f":"'Trial 3'!EH44","v":{"v":963324.8156239942,"d":"$963,325"}},{"$f":"'Trial 3'!EI44","v":{"v":958034.0656683226,"d":"$958,034"}},{"$f":"'Trial 3'!EJ44","v":{"v":989832.090446954,"d":"$989,832"}},{"$f":"'Trial 3'!EK44","v":{"v":1005757.0256626639,"d":"$1,005,757"}},{"$f":"'Trial 3'!EL44","v":{"v":996379.7539456313,"d":"$996,380"}},{"$f":"'Trial 3'!EM44","v":{"v":1062872.3656321683,"d":"$1,062,872"}},{"$f":"SUM('Trial 3'!EB44:EM44)","v":{"v":12090900.826772783,"d":"$12,090,901"}}]
[{"$f":"Labels!B99","v":"Trial 04"},{"$f":"'Trial 4'!B44","v":{"v":1201299.2294072022,"d":"$1,201,299"}},{"$f":"'Trial 4'!C44","v":{"v":1222026.2337539496,"d":"$1,222,026"}},{"$f":"'Trial 4'!D44","v":{"v":1187411.860822248,"d":"$1,187,412"}},{"$f":"'Trial 4'!E44","v":{"v":1120073.998476407,"d":"$1,120,074"}},{"$f":"'Trial 4'!F44","v":{"v":1132805.6545766979,"d":"$1,132,806"}},{"$f":"'Trial 4'!G44","v":{"v":1187397.5563598364,"d":"$1,187,398"}},{"$f":"'Trial 4'!H44","v":{"v":1188878.016614529,"d":"$1,188,878"}},{"$f":"'Trial 4'!I44","v":{"v":1193531.8466430148,"d":"$1,193,532"}},{"$f":"'Trial 4'!J44","v":{"v":1144992.4525960912,"d":"$1,144,992"}},{"$f":"'Trial 4'!K44","v":{"v":1144182.243749663,"d":"$1,144,182"}},{"$f":"'Trial 4'!L44","v":{"v":1147529.3948913678,"d":"$1,147,529"}},{"$f":"'Trial 4'!M44","v":{"v":1144675.7851286323,"d":"$1,144,676"}},{"$f":"SUM('Trial 4'!B44:M44)","v":{"v":14014804.273019642,"d":"$14,014,804"}},{"$f":"'Trial 4'!O44","v":{"v":1179631.7449373133,"d":"$1,179,632"}},{"$f":"'Trial 4'!P44","v":{"v":1148361.401371273,"d":"$1,148,361"}},{"$f":"'Trial 4'!Q44","v":{"v":1184014.452204025,"d":"$1,184,014"}},{"$f":"'Trial 4'!R44","v":{"v":1199603.5206685495,"d":"$1,199,604"}},{"$f":"'Trial 4'!S44","v":{"v":1193180.2595368011,"d":"$1,193,180"}},{"$f":"'Trial 4'!T44","v":{"v":1120637.7707265895,"d":"$1,120,638"}},{"$f":"'Trial 4'!U44","v":{"v":1140730.9256818462,"d":"$1,140,731"}},{"$f":"'Trial 4'!V44","v":{"v":1145110.4032729438,"d":"$1,145,110"}},{"$f":"'Trial 4'!W44","v":{"v":1135544.9181170787,"d":"$1,135,545"}},{"$f":"'Trial 4'!X44","v":{"v":1163918.8731006363,"d":"$1,163,919"}},{"$f":"'Trial 4'!Y44","v":{"v":1091334.5897705571,"d":"$1,091,335"}},{"$f":"'Trial 4'!Z44","v":{"v":1147876.3548592879,"d":"$1,147,876"}},{"$f":"SUM('Trial 4'!O44:Z44)","v":{"v":13849945.214246899,"d":"$13,849,945"}},{"$f":"'Trial 4'!AB44","v":{"v":1145727.799498769,"d":"$1,145,728"}},{"$f":"'Trial 4'!AC44","v":{"v":1135919.5853259382,"d":"$1,135,920"}},{"$f":"'Trial 4'!AD44","v":{"v":1127596.696848853,"d":"$1,127,597"}},{"$f":"'Trial 4'!AE44","v":{"v":1088968.3600925945,"d":"$1,088,968"}},{"$f":"'Trial 4'!AF44","v":{"v":1149297.2496186434,"d":"$1,149,297"}},{"$f":"'Trial 4'!AG44","v":{"v":1142576.0162419803,"d":"$1,142,576"}},{"$f":"'Trial 4'!AH44","v":{"v":1177783.5871062046,"d":"$1,177,784"}},{"$f":"'Trial 4'!AI44","v":{"v":1096999.5969034254,"d":"$1,097,000"}},{"$f":"'Trial 4'!AJ44","v":{"v":1067578.7578315707,"d":"$1,067,579"}},{"$f":"'Trial 4'!AK44","v":{"v":1083429.3017479556,"d":"$1,083,429"}},{"$f":"'Trial 4'!AL44","v":{"v":1110068.276174087,"d":"$1,110,068"}},{"$f":"'Trial 4'!AM44","v":{"v":1159372.9363897233,"d":"$1,159,373"}},{"$f":"SUM('Trial 4'!AB44:AM44)","v":{"v":13485318.163779745,"d":"$13,485,318"}},{"$f":"'Trial 4'!AO44","v":{"v":1089812.4230608102,"d":"$1,089,812"}},{"$f":"'Trial 4'!AP44","v":{"v":1106997.8174977023,"d":"$1,106,998"}},{"$f":"'Trial 4'!AQ44","v":{"v":1099673.714055396,"d":"$1,099,674"}},{"$f":"'Trial 4'!AR44","v":{"v":1073376.900418073,"d":"$1,073,377"}},{"$f":"'Trial 4'!AS44","v":{"v":1067184.267062981,"d":"$1,067,184"}},{"$f":"'Trial 4'!AT44","v":{"v":1057191.4467010745,"d":"$1,057,191"}},{"$f":"'Trial 4'!AU44","v":{"v":1114180.946543817,"d":"$1,114,181"}},{"$f":"'Trial 4'!AV44","v":{"v":1120307.1156960942,"d":"$1,120,307"}},{"$f":"'Trial 4'!AW44","v":{"v":1096027.3069697437,"d":"$1,096,027"}},{"$f":"'Trial 4'!AX44","v":{"v":1081306.4981375798,"d":"$1,081,306"}},{"$f":"'Trial 4'!AY44","v":{"v":1102605.2319314033,"d":"$1,102,605"}},{"$f":"'Trial 4'!AZ44","v":{"v":1091842.5219842766,"d":"$1,091,843"}},{"$f":"SUM('Trial 4'!AO44:AZ44)","v":{"v":13100506.190058952,"d":"$13,100,506"}},{"$f":"'Trial 4'!BB44","v":{"v":1123640.0664731793,"d":"$1,123,640"}},{"$f":"'Trial 4'!BC44","v":{"v":1081719.1860862907,"d":"$1,081,719"}},{"$f":"'Trial 4'!BD44","v":{"v":1080761.33533439,"d":"$1,080,761"}},{"$f":"'Trial 4'!BE44","v":{"v":1083298.7929456418,"d":"$1,083,299"}},{"$f":"'Trial 4'!BF44","v":{"v":1098060.952959261,"d":"$1,098,061"}},{"$f":"'Trial 4'!BG44","v":{"v":1118649.3404724495,"d":"$1,118,649"}},{"$f":"'Trial 4'!BH44","v":{"v":1111869.745207483,"d":"$1,111,870"}},{"$f":"'Trial 4'!BI44","v":{"v":1052371.448151279,"d":"$1,052,371"}},{"$f":"'Trial 4'!BJ44","v":{"v":1097439.2086537366,"d":"$1,097,439"}},{"$f":"'Trial 4'!BK44","v":{"v":1073744.1419877703,"d":"$1,073,744"}},{"$f":"'Trial 4'!BL44","v":{"v":1083536.8678605475,"d":"$1,083,537"}},{"$f":"'Trial 4'!BM44","v":{"v":1098971.2480833936,"d":"$1,098,971"}},{"$f":"SUM('Trial 4'!BB44:BM44)","v":{"v":13104062.334215423,"d":"$13,104,062"}},{"$f":"'Trial 4'!BO44","v":{"v":1063018.339472834,"d":"$1,063,018"}},{"$f":"'Trial 4'!BP44","v":{"v":1094405.4938842738,"d":"$1,094,405"}},{"$f":"'Trial 4'!BQ44","v":{"v":1065845.7829964377,"d":"$1,065,846"}},{"$f":"'Trial 4'!BR44","v":{"v":1080148.9310348222,"d":"$1,080,149"}},{"$f":"'Trial 4'!BS44","v":{"v":1064142.0444456066,"d":"$1,064,142"}},{"$f":"'Trial 4'!BT44","v":{"v":1092528.513120149,"d":"$1,092,529"}},{"$f":"'Trial 4'!BU44","v":{"v":1084613.9417406174,"d":"$1,084,614"}},{"$f":"'Trial 4'!BV44","v":{"v":1039304.4059074977,"d":"$1,039,304"}},{"$f":"'Trial 4'!BW44","v":{"v":1102159.4230658184,"d":"$1,102,159"}},{"$f":"'Trial 4'!BX44","v":{"v":1112100.818870107,"d":"$1,112,101"}},{"$f":"'Trial 4'!BY44","v":{"v":1066307.9897169855,"d":"$1,066,308"}},{"$f":"'Trial 4'!BZ44","v":{"v":1093717.1248762766,"d":"$1,093,717"}},{"$f":"SUM('Trial 4'!BO44:BZ44)","v":{"v":12958292.809131425,"d":"$12,958,293"}},{"$f":"'Trial 4'!CB44","v":{"v":1071168.9683932622,"d":"$1,071,169"}},{"$f":"'Trial 4'!CC44","v":{"v":1072365.3917547967,"d":"$1,072,365"}},{"$f":"'Trial 4'!CD44","v":{"v":1072999.6618926532,"d":"$1,073,000"}},{"$f":"'Trial 4'!CE44","v":{"v":1057996.8810451988,"d":"$1,057,997"}},{"$f":"'Trial 4'!CF44","v":{"v":1056922.4344643026,"d":"$1,056,922"}},{"$f":"'Trial 4'!CG44","v":{"v":1075666.2567168518,"d":"$1,075,666"}},{"$f":"'Trial 4'!CH44","v":{"v":1021657.2630543127,"d":"$1,021,657"}},{"$f":"'Trial 4'!CI44","v":{"v":1059570.581759421,"d":"$1,059,571"}},{"$f":"'Trial 4'!CJ44","v":{"v":1074810.1195800588,"d":"$1,074,810"}},{"$f":"'Trial 4'!CK44","v":{"v":1049100.9333215214,"d":"$1,049,101"}},{"$f":"'Trial 4'!CL44","v":{"v":1067490.2210947967,"d":"$1,067,490"}},{"$f":"'Trial 4'!CM44","v":{"v":1035336.7623161993,"d":"$1,035,337"}},{"$f":"SUM('Trial 4'!CB44:CM44)","v":{"v":12715085.475393375,"d":"$12,715,085"}},{"$f":"'Trial 4'!CO44","v":{"v":1091378.5633449627,"d":"$1,091,379"}},{"$f":"'Trial 4'!CP44","v":{"v":1053828.8568299701,"d":"$1,053,829"}},{"$f":"'Trial 4'!CQ44","v":{"v":1024796.393011564,"d":"$1,024,796"}},{"$f":"'Trial 4'!CR44","v":{"v":1054490.4451271638,"d":"$1,054,490"}},{"$f":"'Trial 4'!CS44","v":{"v":1021590.4109571142,"d":"$1,021,590"}},{"$f":"'Trial 4'!CT44","v":{"v":1040791.0459685308,"d":"$1,040,791"}},{"$f":"'Trial 4'!CU44","v":{"v":1038107.2576939522,"d":"$1,038,107"}},{"$f":"'Trial 4'!CV44","v":{"v":1071299.3712532027,"d":"$1,071,299"}},{"$f":"'Trial 4'!CW44","v":{"v":1037786.8511277932,"d":"$1,037,787"}},{"$f":"'Trial 4'!CX44","v":{"v":1068844.9735197946,"d":"$1,068,845"}},{"$f":"'Trial 4'!CY44","v":{"v":1051662.5515070213,"d":"$1,051,663"}},{"$f":"'Trial 4'!CZ44","v":{"v":1021452.2278126739,"d":"$1,021,452"}},{"$f":"SUM('Trial 4'!CO44:CZ44)","v":{"v":12576028.948153742,"d":"$12,576,029"}},{"$f":"'Trial 4'!DB44","v":{"v":1033310.4450606097,"d":"$1,033,310"}},{"$f":"'Trial 4'!DC44","v":{"v":1097600.8510346783,"d":"$1,097,601"}},{"$f":"'Trial 4'!DD44","v":{"v":1044386.911801224,"d":"$1,044,387"}},{"$f":"'Trial 4'!DE44","v":{"v":1056222.6258573558,"d":"$1,056,223"}},{"$f":"'Trial 4'!DF44","v":{"v":1043720.0085883873,"d":"$1,043,720"}},{"$f":"'Trial 4'!DG44","v":{"v":990195.0318778934,"d":"$990,195"}},{"$f":"'Trial 4'!DH44","v":{"v":1047373.3450160042,"d":"$1,047,373"}},{"$f":"'Trial 4'!DI44","v":{"v":1006148.878774065,"d":"$1,006,149"}},{"$f":"'Trial 4'!DJ44","v":{"v":975385.7864578316,"d":"$975,386"}},{"$f":"'Trial 4'!DK44","v":{"v":1036621.7521699824,"d":"$1,036,622"}},{"$f":"'Trial 4'!DL44","v":{"v":1024830.8753825995,"d":"$1,024,831"}},{"$f":"'Trial 4'!DM44","v":{"v":1046468.1296212578,"d":"$1,046,468"}},{"$f":"SUM('Trial 4'!DB44:DM44)","v":{"v":12402264.641641889,"d":"$12,402,265"}},{"$f":"'Trial 4'!DO44","v":{"v":1020741.6285195646,"d":"$1,020,742"}},{"$f":"'Trial 4'!DP44","v":{"v":1051250.704993523,"d":"$1,051,251"}},{"$f":"'Trial 4'!DQ44","v":{"v":1063364.4601718963,"d":"$1,063,364"}},{"$f":"'Trial 4'!DR44","v":{"v":1018906.443345894,"d":"$1,018,906"}},{"$f":"'Trial 4'!DS44","v":{"v":1055103.8271440582,"d":"$1,055,104"}},{"$f":"'Trial 4'!DT44","v":{"v":976671.2862228267,"d":"$976,671"}},{"$f":"'Trial 4'!DU44","v":{"v":969506.3416040929,"d":"$969,506"}},{"$f":"'Trial 4'!DV44","v":{"v":1028038.8871052568,"d":"$1,028,039"}},{"$f":"'Trial 4'!DW44","v":{"v":1053728.3340235779,"d":"$1,053,728"}},{"$f":"'Trial 4'!DX44","v":{"v":980582.0944507854,"d":"$980,582"}},{"$f":"'Trial 4'!DY44","v":{"v":1036790.0340613283,"d":"$1,036,790"}},{"$f":"'Trial 4'!DZ44","v":{"v":1004585.924127641,"d":"$1,004,586"}},{"$f":"SUM('Trial 4'!DO44:DZ44)","v":{"v":12259269.965770444,"d":"$12,259,270"}},{"$f":"'Trial 4'!EB44","v":{"v":1051227.486369622,"d":"$1,051,227"}},{"$f":"'Trial 4'!EC44","v":{"v":1061204.1863434687,"d":"$1,061,204"}},{"$f":"'Trial 4'!ED44","v":{"v":1033102.4271454777,"d":"$1,033,102"}},{"$f":"'Trial 4'!EE44","v":{"v":1009554.2777937904,"d":"$1,009,554"}},{"$f":"'Trial 4'!EF44","v":{"v":991485.3167046153,"d":"$991,485"}},{"$f":"'Trial 4'!EG44","v":{"v":969369.2747889318,"d":"$969,369"}},{"$f":"'Trial 4'!EH44","v":{"v":1022828.2486376974,"d":"$1,022,828"}},{"$f":"'Trial 4'!EI44","v":{"v":1064819.4473851328,"d":"$1,064,819"}},{"$f":"'Trial 4'!EJ44","v":{"v":1029457.7594452228,"d":"$1,029,458"}},{"$f":"'Trial 4'!EK44","v":{"v":977150.0045526372,"d":"$977,150"}},{"$f":"'Trial 4'!EL44","v":{"v":1009524.8271263975,"d":"$1,009,525"}},{"$f":"'Trial 4'!EM44","v":{"v":1031761.2132551357,"d":"$1,031,761"}},{"$f":"SUM('Trial 4'!EB44:EM44)","v":{"v":12251484.469548129,"d":"$12,251,484"}}]
[{"$f":"Labels!B100","v":"Trial 05"},{"$f":"'Trial 5'!B44","v":{"v":1164665.0625080573,"d":"$1,164,665"}},{"$f":"'Trial 5'!C44","v":{"v":1144946.3989126172,"d":"$1,144,946"}},{"$f":"'Trial 5'!D44","v":{"v":1173802.0664330341,"d":"$1,173,802"}},{"$f":"'Trial 5'!E44","v":{"v":1177731.4725351771,"d":"$1,177,731"}},{"$f":"'Trial 5'!F44","v":{"v":1149455.4456803051,"d":"$1,149,455"}},{"$f":"'Trial 5'!G44","v":{"v":1129506.9227855676,"d":"$1,129,507"}},{"$f":"'Trial 5'!H44","v":{"v":1215778.787108135,"d":"$1,215,779"}},{"$f":"'Trial 5'!I44","v":{"v":1101344.162014124,"d":"$1,101,344"}},{"$f":"'Trial 5'!J44","v":{"v":1145303.0170029318,"d":"$1,145,303"}},{"$f":"'Trial 5'!K44","v":{"v":1157306.1855146622,"d":"$1,157,306"}},{"$f":"'Trial 5'!L44","v":{"v":1212819.3397543642,"d":"$1,212,819"}},{"$f":"'Trial 5'!M44","v":{"v":1151679.1073055523,"d":"$1,151,679"}},{"$f":"SUM('Trial 5'!B44:M44)","v":{"v":13924337.96755453,"d":"$13,924,338"}},{"$f":"'Trial 5'!O44","v":{"v":1136915.2042727782,"d":"$1,136,915"}},{"$f":"'Trial 5'!P44","v":{"v":1145329.7926203643,"d":"$1,145,330"}},{"$f":"'Trial 5'!Q44","v":{"v":1155705.7944430886,"d":"$1,155,706"}},{"$f":"'Trial 5'!R44","v":{"v":1104566.8839546004,"d":"$1,104,567"}},{"$f":"'Trial 5'!S44","v":{"v":1121162.2153592564,"d":"$1,121,162"}},{"$f":"'Trial 5'!T44","v":{"v":1185586.0398178543,"d":"$1,185,586"}},{"$f":"'Trial 5'!U44","v":{"v":1169766.5730425438,"d":"$1,169,767"}},{"$f":"'Trial 5'!V44","v":{"v":1112174.5003419276,"d":"$1,112,175"}},{"$f":"'Trial 5'!W44","v":{"v":1140025.9908562342,"d":"$1,140,026"}},{"$f":"'Trial 5'!X44","v":{"v":1138008.384062528,"d":"$1,138,008"}},{"$f":"'Trial 5'!Y44","v":{"v":1142621.447119453,"d":"$1,142,621"}},{"$f":"'Trial 5'!Z44","v":{"v":1106461.5794498527,"d":"$1,106,462"}},{"$f":"SUM('Trial 5'!O44:Z44)","v":{"v":13658324.405340483,"d":"$13,658,324"}},{"$f":"'Trial 5'!AB44","v":{"v":1086978.4755231293,"d":"$1,086,978"}},{"$f":"'Trial 5'!AC44","v":{"v":1148182.278477533,"d":"$1,148,182"}},{"$f":"'Trial 5'!AD44","v":{"v":1163992.435121479,"d":"$1,163,992"}},{"$f":"'Trial 5'!AE44","v":{"v":1091418.8987842076,"d":"$1,091,419"}},{"$f":"'Trial 5'!AF44","v":{"v":1089782.8483094736,"d":"$1,089,783"}},{"$f":"'Trial 5'!AG44","v":{"v":1107559.3766977086,"d":"$1,107,559"}},{"$f":"'Trial 5'!AH44","v":{"v":1154758.7656308145,"d":"$1,154,759"}},{"$f":"'Trial 5'!AI44","v":{"v":1116817.3720234593,"d":"$1,116,817"}},{"$f":"'Trial 5'!AJ44","v":{"v":1138033.0348968138,"d":"$1,138,033"}},{"$f":"'Trial 5'!AK44","v":{"v":1152284.8454802786,"d":"$1,152,285"}},{"$f":"'Trial 5'!AL44","v":{"v":1142413.5365677767,"d":"$1,142,414"}},{"$f":"'Trial 5'!AM44","v":{"v":1098065.244661236,"d":"$1,098,065"}},{"$f":"SUM('Trial 5'!AB44:AM44)","v":{"v":13490287.112173911,"d":"$13,490,287"}},{"$f":"'Trial 5'!AO44","v":{"v":1108378.2607209764,"d":"$1,108,378"}},{"$f":"'Trial 5'!AP44","v":{"v":1097846.4105468823,"d":"$1,097,846"}},{"$f":"'Trial 5'!AQ44","v":{"v":1080690.653703916,"d":"$1,080,691"}},{"$f":"'Trial 5'!AR44","v":{"v":1162669.5567237074,"d":"$1,162,670"}},{"$f":"'Trial 5'!AS44","v":{"v":1084353.358735605,"d":"$1,084,353"}},{"$f":"'Trial 5'!AT44","v":{"v":1114961.2953604392,"d":"$1,114,961"}},{"$f":"'Trial 5'!AU44","v":{"v":1125168.7063530483,"d":"$1,125,169"}},{"$f":"'Trial 5'!AV44","v":{"v":1114183.9727581495,"d":"$1,114,184"}},{"$f":"'Trial 5'!AW44","v":{"v":1060994.9731759191,"d":"$1,060,995"}},{"$f":"'Trial 5'!AX44","v":{"v":1087218.9257089526,"d":"$1,087,219"}},{"$f":"'Trial 5'!AY44","v":{"v":1090783.6009344722,"d":"$1,090,784"}},{"$f":"'Trial 5'!AZ44","v":{"v":1126225.3105751586,"d":"$1,126,225"}},{"$f":"SUM('Trial 5'!AO44:AZ44)","v":{"v":13253475.025297228,"d":"$13,253,475"}},{"$f":"'Trial 5'!BB44","v":{"v":1054812.017274918,"d":"$1,054,812"}},{"$f":"'Trial 5'!BC44","v":{"v":1110202.1128081547,"d":"$1,110,202"}},{"$f":"'Trial 5'!BD44","v":{"v":1149969.9300578928,"d":"$1,149,970"}},{"$f":"'Trial 5'!BE44","v":{"v":1129328.4711550917,"d":"$1,129,328"}},{"$f":"'Trial 5'!BF44","v":{"v":1081093.826875644,"d":"$1,081,094"}},{"$f":"'Trial 5'!BG44","v":{"v":1044430.5162488783,"d":"$1,044,431"}},{"$f":"'Trial 5'!BH44","v":{"v":1144846.7281564218,"d":"$1,144,847"}},{"$f":"'Trial 5'!BI44","v":{"v":1050771.0457398584,"d":"$1,050,771"}},{"$f":"'Trial 5'!BJ44","v":{"v":1083375.5548083656,"d":"$1,083,376"}},{"$f":"'Trial 5'!BK44","v":{"v":1125282.1378179034,"d":"$1,125,282"}},{"$f":"'Trial 5'!BL44","v":{"v":1046219.3968339668,"d":"$1,046,219"}},{"$f":"'Trial 5'!BM44","v":{"v":1096960.1992404398,"d":"$1,096,960"}},{"$f":"SUM('Trial 5'!BB44:BM44)","v":{"v":13117291.937017536,"d":"$13,117,292"}},{"$f":"'Trial 5'!BO44","v":{"v":1038874.7674172252,"d":"$1,038,875"}},{"$f":"'Trial 5'!BP44","v":{"v":1082347.739690751,"d":"$1,082,348"}},{"$f":"'Trial 5'!BQ44","v":{"v":1048534.5387668189,"d":"$1,048,535"}},{"$f":"'Trial 5'!BR44","v":{"v":1119087.9147678984,"d":"$1,119,088"}},{"$f":"'Trial 5'!BS44","v":{"v":1057925.6708689341,"d":"$1,057,926"}},{"$f":"'Trial 5'!BT44","v":{"v":1098641.20430436,"d":"$1,098,641"}},{"$f":"'Trial 5'!BU44","v":{"v":1113538.287639614,"d":"$1,113,538"}},{"$f":"'Trial 5'!BV44","v":{"v":1041620.2185005908,"d":"$1,041,620"}},{"$f":"'Trial 5'!BW44","v":{"v":1071385.806529613,"d":"$1,071,386"}},{"$f":"'Trial 5'!BX44","v":{"v":1013299.7843639711,"d":"$1,013,300"}},{"$f":"'Trial 5'!BY44","v":{"v":1090500.657045541,"d":"$1,090,501"}},{"$f":"'Trial 5'!BZ44","v":{"v":1072773.815550561,"d":"$1,072,774"}},{"$f":"SUM('Trial 5'!BO44:BZ44)","v":{"v":12848530.405445877,"d":"$12,848,530"}},{"$f":"'Trial 5'!CB44","v":{"v":1101187.9773233244,"d":"$1,101,188"}},{"$f":"'Trial 5'!CC44","v":{"v":1053716.967357498,"d":"$1,053,717"}},{"$f":"'Trial 5'!CD44","v":{"v":1011716.4312085736,"d":"$1,011,716"}},{"$f":"'Trial 5'!CE44","v":{"v":1032416.8330299816,"d":"$1,032,417"}},{"$f":"'Trial 5'!CF44","v":{"v":1047749.7977283002,"d":"$1,047,750"}},{"$f":"'Trial 5'!CG44","v":{"v":1102866.389580728,"d":"$1,102,866"}},{"$f":"'Trial 5'!CH44","v":{"v":1114619.095990013,"d":"$1,114,619"}},{"$f":"'Trial 5'!CI44","v":{"v":1082091.4185987315,"d":"$1,082,091"}},{"$f":"'Trial 5'!CJ44","v":{"v":1094699.177243713,"d":"$1,094,699"}},{"$f":"'Trial 5'!CK44","v":{"v":1052665.2653238778,"d":"$1,052,665"}},{"$f":"'Trial 5'!CL44","v":{"v":1032815.2783858503,"d":"$1,032,815"}},{"$f":"'Trial 5'!CM44","v":{"v":1039572.33238061,"d":"$1,039,572"}},{"$f":"SUM('Trial 5'!CB44:CM44)","v":{"v":12766116.9641512,"d":"$12,766,117"}},{"$f":"'Trial 5'!CO44","v":{"v":1029752.0911566115,"d":"$1,029,752"}},{"$f":"'Trial 5'!CP44","v":{"v":1036066.7695476328,"d":"$1,036,067"}},{"$f":"'Trial 5'!CQ44","v":{"v":1086599.402927535,"d":"$1,086,599"}},{"$f":"'Trial 5'!CR44","v":{"v":1060193.5723222087,"d":"$1,060,194"}},{"$f":"'Trial 5'!CS44","v":{"v":1032988.1125593344,"d":"$1,032,988"}},{"$f":"'Trial 5'!CT44","v":{"v":1005468.9027479548,"d":"$1,005,469"}},{"$f":"'Trial 5'!CU44","v":{"v":1054892.6304857316,"d":"$1,054,893"}},{"$f":"'Trial 5'!CV44","v":{"v":1024111.9606826605,"d":"$1,024,112"}},{"$f":"'Trial 5'!CW44","v":{"v":1049292.5528681432,"d":"$1,049,293"}},{"$f":"'Trial 5'!CX44","v":{"v":1001234.4844253241,"d":"$1,001,234"}},{"$f":"'Trial 5'!CY44","v":{"v":1043414.0639797754,"d":"$1,043,414"}},{"$f":"'Trial 5'!CZ44","v":{"v":1060382.28908089,"d":"$1,060,382"}},{"$f":"SUM('Trial 5'!CO44:CZ44)","v":{"v":12484396.832783801,"d":"$12,484,397"}},{"$f":"'Trial 5'!DB44","v":{"v":1048249.920234713,"d":"$1,048,250"}},{"$f":"'Trial 5'!DC44","v":{"v":1023311.3192129792,"d":"$1,023,311"}},{"$f":"'Trial 5'!DD44","v":{"v":999370.3577856253,"d":"$999,370"}},{"$f":"'Trial 5'!DE44","v":{"v":1055413.6482852653,"d":"$1,055,414"}},{"$f":"'Trial 5'!DF44","v":{"v":1087922.0849752529,"d":"$1,087,922"}},{"$f":"'Trial 5'!DG44","v":{"v":1029287.0776375125,"d":"$1,029,287"}},{"$f":"'Trial 5'!DH44","v":{"v":1033156.8059578291,"d":"$1,033,157"}},{"$f":"'Trial 5'!DI44","v":{"v":1036855.3578365787,"d":"$1,036,855"}},{"$f":"'Trial 5'!DJ44","v":{"v":1011413.9557528686,"d":"$1,011,414"}},{"$f":"'Trial 5'!DK44","v":{"v":1031238.0134290687,"d":"$1,031,238"}},{"$f":"'Trial 5'!DL44","v":{"v":971936.6940975429,"d":"$971,937"}},{"$f":"'Trial 5'!DM44","v":{"v":1034975.6396973018,"d":"$1,034,976"}},{"$f":"SUM('Trial 5'!DB44:DM44)","v":{"v":12363130.874902539,"d":"$12,363,131"}},{"$f":"'Trial 5'!DO44","v":{"v":1085552.074367939,"d":"$1,085,552"}},{"$f":"'Trial 5'!DP44","v":{"v":1012632.5669993272,"d":"$1,012,633"}},{"$f":"'Trial 5'!DQ44","v":{"v":979700.0724011665,"d":"$979,700"}},{"$f":"'Trial 5'!DR44","v":{"v":1001535.8428234102,"d":"$1,001,536"}},{"$f":"'Trial 5'!DS44","v":{"v":991096.4896602507,"d":"$991,096"}},{"$f":"'Trial 5'!DT44","v":{"v":1043839.8624860145,"d":"$1,043,840"}},{"$f":"'Trial 5'!DU44","v":{"v":1031811.5274524761,"d":"$1,031,812"}},{"$f":"'Trial 5'!DV44","v":{"v":1018333.026620479,"d":"$1,018,333"}},{"$f":"'Trial 5'!DW44","v":{"v":1035862.7584051698,"d":"$1,035,863"}},{"$f":"'Trial 5'!DX44","v":{"v":1005831.915434163,"d":"$1,005,832"}},{"$f":"'Trial 5'!DY44","v":{"v":970128.4638641882,"d":"$970,128"}},{"$f":"'Trial 5'!DZ44","v":{"v":1007900.8921776499,"d":"$1,007,901"}},{"$f":"SUM('Trial 5'!DO44:DZ44)","v":{"v":12184225.492692236,"d":"$12,184,225"}},{"$f":"'Trial 5'!EB44","v":{"v":1016540.771357398,"d":"$1,016,541"}},{"$f":"'Trial 5'!EC44","v":{"v":1068409.507344333,"d":"$1,068,410"}},{"$f":"'Trial 5'!ED44","v":{"v":996379.1324884285,"d":"$996,379"}},{"$f":"'Trial 5'!EE44","v":{"v":970440.0241794725,"d":"$970,440"}},{"$f":"'Trial 5'!EF44","v":{"v":1007523.1050961545,"d":"$1,007,523"}},{"$f":"'Trial 5'!EG44","v":{"v":1000571.8765374796,"d":"$1,000,572"}},{"$f":"'Trial 5'!EH44","v":{"v":1028983.4806059601,"d":"$1,028,983"}},{"$f":"'Trial 5'!EI44","v":{"v":954992.7077670227,"d":"$954,993"}},{"$f":"'Trial 5'!EJ44","v":{"v":1042423.6605588425,"d":"$1,042,424"}},{"$f":"'Trial 5'!EK44","v":{"v":980330.5115252407,"d":"$980,331"}},{"$f":"'Trial 5'!EL44","v":{"v":1008547.8881069561,"d":"$1,008,548"}},{"$f":"'Trial 5'!EM44","v":{"v":1044291.0539974804,"d":"$1,044,291"}},{"$f":"SUM('Trial 5'!EB44:EM44)","v":{"v":12119433.719564771,"d":"$12,119,434"}}]
[{"$f":"Labels!B101","v":"Trial 06"},{"$f":"'Trial 6'!B44","v":{"v":1166015.220719523,"d":"$1,166,015"}},{"$f":"'Trial 6'!C44","v":{"v":1119995.1887612976,"d":"$1,119,995"}},{"$f":"'Trial 6'!D44","v":{"v":1185573.1238317264,"d":"$1,185,573"}},{"$f":"'Trial 6'!E44","v":{"v":1164506.0237664045,"d":"$1,164,506"}},{"$f":"'Trial 6'!F44","v":{"v":1107407.8937517083,"d":"$1,107,408"}},{"$f":"'Trial 6'!G44","v":{"v":1176338.217895413,"d":"$1,176,338"}},{"$f":"'Trial 6'!H44","v":{"v":1132189.5909648773,"d":"$1,132,190"}},{"$f":"'Trial 6'!I44","v":{"v":1182373.3373405326,"d":"$1,182,373"}},{"$f":"'Trial 6'!J44","v":{"v":1200405.1224554987,"d":"$1,200,405"}},{"$f":"'Trial 6'!K44","v":{"v":1140927.9783107503,"d":"$1,140,928"}},{"$f":"'Trial 6'!L44","v":{"v":1165650.8459107655,"d":"$1,165,651"}},{"$f":"'Trial 6'!M44","v":{"v":1096234.649714536,"d":"$1,096,235"}},{"$f":"SUM('Trial 6'!B44:M44)","v":{"v":13837617.193423033,"d":"$13,837,617"}},{"$f":"'Trial 6'!O44","v":{"v":1108407.258966424,"d":"$1,108,407"}},{"$f":"'Trial 6'!P44","v":{"v":1161673.6673662853,"d":"$1,161,674"}},{"$f":"'Trial 6'!Q44","v":{"v":1206577.0878708097,"d":"$1,206,577"}},{"$f":"'Trial 6'!R44","v":{"v":1104833.4045574095,"d":"$1,104,833"}},{"$f":"'Trial 6'!S44","v":{"v":1151807.11650544,"d":"$1,151,807"}},{"$f":"'Trial 6'!T44","v":{"v":1192846.6047236584,"d":"$1,192,847"}},{"$f":"'Trial 6'!U44","v":{"v":1119477.3754692934,"d":"$1,119,477"}},{"$f":"'Trial 6'!V44","v":{"v":1162579.4417379873,"d":"$1,162,579"}},{"$f":"'Trial 6'!W44","v":{"v":1167905.5136663176,"d":"$1,167,906"}},{"$f":"'Trial 6'!X44","v":{"v":1134897.640641471,"d":"$1,134,898"}},{"$f":"'Trial 6'!Y44","v":{"v":1111352.2057215904,"d":"$1,111,352"}},{"$f":"'Trial 6'!Z44","v":{"v":1167036.0479118528,"d":"$1,167,036"}},{"$f":"SUM('Trial 6'!O44:Z44)","v":{"v":13789393.36513854,"d":"$13,789,393"}},{"$f":"'Trial 6'!AB44","v":{"v":1088944.0721638887,"d":"$1,088,944"}},{"$f":"'Trial 6'!AC44","v":{"v":1108185.6281466798,"d":"$1,108,186"}},{"$f":"'Trial 6'!AD44","v":{"v":1181479.0940267306,"d":"$1,181,479"}},{"$f":"'Trial 6'!AE44","v":{"v":1119452.6818579093,"d":"$1,119,453"}},{"$f":"'Trial 6'!AF44","v":{"v":1180442.4399651291,"d":"$1,180,442"}},{"$f":"'Trial 6'!AG44","v":{"v":1161736.0556415748,"d":"$1,161,736"}},{"$f":"'Trial 6'!AH44","v":{"v":1135912.600801581,"d":"$1,135,913"}},{"$f":"'Trial 6'!AI44","v":{"v":1085704.292880627,"d":"$1,085,704"}},{"$f":"'Trial 6'!AJ44","v":{"v":1180415.2189470571,"d":"$1,180,415"}},{"$f":"'Trial 6'!AK44","v":{"v":1091697.425135058,"d":"$1,091,697"}},{"$f":"'Trial 6'!AL44","v":{"v":1061687.4264313895,"d":"$1,061,687"}},{"$f":"'Trial 6'!AM44","v":{"v":1103261.8132858018,"d":"$1,103,262"}},{"$f":"SUM('Trial 6'!AB44:AM44)","v":{"v":13498918.749283424,"d":"$13,498,919"}},{"$f":"'Trial 6'!AO44","v":{"v":1152154.523685678,"d":"$1,152,155"}},{"$f":"'Trial 6'!AP44","v":{"v":1107471.8393251987,"d":"$1,107,472"}},{"$f":"'Trial 6'!AQ44","v":{"v":1126776.5302628456,"d":"$1,126,777"}},{"$f":"'Trial 6'!AR44","v":{"v":1159120.021852076,"d":"$1,159,120"}},{"$f":"'Trial 6'!AS44","v":{"v":1086162.9414009366,"d":"$1,086,163"}},{"$f":"'Trial 6'!AT44","v":{"v":1060172.3460295147,"d":"$1,060,172"}},{"$f":"'Trial 6'!AU44","v":{"v":1133706.0397587374,"d":"$1,133,706"}},{"$f":"'Trial 6'!AV44","v":{"v":1103063.3371700437,"d":"$1,103,063"}},{"$f":"'Trial 6'!AW44","v":{"v":1080676.5387382829,"d":"$1,080,677"}},{"$f":"'Trial 6'!AX44","v":{"v":1098895.8887221885,"d":"$1,098,896"}},{"$f":"'Trial 6'!AY44","v":{"v":1095035.2655909108,"d":"$1,095,035"}},{"$f":"'Trial 6'!AZ44","v":{"v":1162088.44040752,"d":"$1,162,088"}},{"$f":"SUM('Trial 6'!AO44:AZ44)","v":{"v":13365323.712943932,"d":"$13,365,324"}},{"$f":"'Trial 6'!BB44","v":{"v":1137695.0949260218,"d":"$1,137,695"}},{"$f":"'Trial 6'!BC44","v":{"v":1101898.5772358829,"d":"$1,101,899"}},{"$f":"'Trial 6'!BD44","v":{"v":1139812.8631694284,"d":"$1,139,813"}},{"$f":"'Trial 6'!BE44","v":{"v":1096308.9986901116,"d":"$1,096,309"}},{"$f":"'Trial 6'!BF44","v":{"v":1061055.701604983,"d":"$1,061,056"}},{"$f":"'Trial 6'!BG44","v":{"v":1065047.9180954224,"d":"$1,065,048"}},{"$f":"'Trial 6'!BH44","v":{"v":1103318.1750277542,"d":"$1,103,318"}},{"$f":"'Trial 6'!BI44","v":{"v":1083864.8342430883,"d":"$1,083,865"}},{"$f":"'Trial 6'!BJ44","v":{"v":1110100.081986119,"d":"$1,110,100"}},{"$f":"'Trial 6'!BK44","v":{"v":1112996.1889636505,"d":"$1,112,996"}},{"$f":"'Trial 6'!BL44","v":{"v":1117608.6934487058,"d":"$1,117,609"}},{"$f":"'Trial 6'!BM44","v":{"v":1065450.220050345,"d":"$1,065,450"}},{"$f":"SUM('Trial 6'!BB44:BM44)","v":{"v":13195157.347441511,"d":"$13,195,157"}},{"$f":"'Trial 6'!BO44","v":{"v":1083545.7719573015,"d":"$1,083,546"}},{"$f":"'Trial 6'!BP44","v":{"v":1114894.4108137204,"d":"$1,114,894"}},{"$f":"'Trial 6'!BQ44","v":{"v":1075626.1861646355,"d":"$1,075,626"}},{"$f":"'Trial 6'!BR44","v":{"v":1074979.0836888477,"d":"$1,074,979"}},{"$f":"'Trial 6'!BS44","v":{"v":1111506.725716816,"d":"$1,111,507"}},{"$f":"'Trial 6'!BT44","v":{"v":1111252.550695987,"d":"$1,111,253"}},{"$f":"'Trial 6'!BU44","v":{"v":1063200.51946212,"d":"$1,063,201"}},{"$f":"'Trial 6'!BV44","v":{"v":1096332.316332008,"d":"$1,096,332"}},{"$f":"'Trial 6'!BW44","v":{"v":1109760.9724114314,"d":"$1,109,761"}},{"$f":"'Trial 6'!BX44","v":{"v":1056782.552398462,"d":"$1,056,783"}},{"$f":"'Trial 6'!BY44","v":{"v":1095176.8596969268,"d":"$1,095,177"}},{"$f":"'Trial 6'!BZ44","v":{"v":1067996.3095139025,"d":"$1,067,996"}},{"$f":"SUM('Trial 6'!BO44:BZ44)","v":{"v":13061054.25885216,"d":"$13,061,054"}},{"$f":"'Trial 6'!CB44","v":{"v":1045165.5755465836,"d":"$1,045,166"}},{"$f":"'Trial 6'!CC44","v":{"v":1060105.7261306255,"d":"$1,060,106"}},{"$f":"'Trial 6'!CD44","v":{"v":1075863.463665014,"d":"$1,075,863"}},{"$f":"'Trial 6'!CE44","v":{"v":1064055.2936368347,"d":"$1,064,055"}},{"$f":"'Trial 6'!CF44","v":{"v":1037984.8251704079,"d":"$1,037,985"}},{"$f":"'Trial 6'!CG44","v":{"v":1084511.9330661774,"d":"$1,084,512"}},{"$f":"'Trial 6'!CH44","v":{"v":1005094.6939159504,"d":"$1,005,095"}},{"$f":"'Trial 6'!CI44","v":{"v":1086792.811617713,"d":"$1,086,793"}},{"$f":"'Trial 6'!CJ44","v":{"v":1035523.6846129306,"d":"$1,035,524"}},{"$f":"'Trial 6'!CK44","v":{"v":1093178.0000082147,"d":"$1,093,178"}},{"$f":"'Trial 6'!CL44","v":{"v":1012463.5973271431,"d":"$1,012,464"}},{"$f":"'Trial 6'!CM44","v":{"v":1023103.6357007406,"d":"$1,023,104"}},{"$f":"SUM('Trial 6'!CB44:CM44)","v":{"v":12623843.240398334,"d":"$12,623,843"}},{"$f":"'Trial 6'!CO44","v":{"v":1064809.5092246635,"d":"$1,064,810"}},{"$f":"'Trial 6'!CP44","v":{"v":996512.4334402946,"d":"$996,512"}},{"$f":"'Trial 6'!CQ44","v":{"v":994880.5801581137,"d":"$994,881"}},{"$f":"'Trial 6'!CR44","v":{"v":1079891.2261029081,"d":"$1,079,891"}},{"$f":"'Trial 6'!CS44","v":{"v":1068300.1315819146,"d":"$1,068,300"}},{"$f":"'Trial 6'!CT44","v":{"v":1040415.5934112289,"d":"$1,040,416"}},{"$f":"'Trial 6'!CU44","v":{"v":1077557.3678348288,"d":"$1,077,557"}},{"$f":"'Trial 6'!CV44","v":{"v":1067697.484879639,"d":"$1,067,697"}},{"$f":"'Trial 6'!CW44","v":{"v":1030936.645836601,"d":"$1,030,937"}},{"$f":"'Trial 6'!CX44","v":{"v":1028657.8534333616,"d":"$1,028,658"}},{"$f":"'Trial 6'!CY44","v":{"v":1069857.6878689693,"d":"$1,069,858"}},{"$f":"'Trial 6'!CZ44","v":{"v":1067737.6014056758,"d":"$1,067,738"}},{"$f":"SUM('Trial 6'!CO44:CZ44)","v":{"v":12587254.1151782,"d":"$12,587,254"}},{"$f":"'Trial 6'!DB44","v":{"v":1049048.8347562745,"d":"$1,049,049"}},{"$f":"'Trial 6'!DC44","v":{"v":1037965.5768084549,"d":"$1,037,966"}},{"$f":"'Trial 6'!DD44","v":{"v":1037291.2753703713,"d":"$1,037,291"}},{"$f":"'Trial 6'!DE44","v":{"v":1046667.6562600458,"d":"$1,046,668"}},{"$f":"'Trial 6'!DF44","v":{"v":1018005.6215937831,"d":"$1,018,006"}},{"$f":"'Trial 6'!DG44","v":{"v":1026289.3500382154,"d":"$1,026,289"}},{"$f":"'Trial 6'!DH44","v":{"v":1032552.1844588376,"d":"$1,032,552"}},{"$f":"'Trial 6'!DI44","v":{"v":1034582.5490638969,"d":"$1,034,583"}},{"$f":"'Trial 6'!DJ44","v":{"v":1024156.8258209797,"d":"$1,024,157"}},{"$f":"'Trial 6'!DK44","v":{"v":1066338.4881341688,"d":"$1,066,338"}},{"$f":"'Trial 6'!DL44","v":{"v":1001689.0479264995,"d":"$1,001,689"}},{"$f":"'Trial 6'!DM44","v":{"v":1028331.7866335053,"d":"$1,028,332"}},{"$f":"SUM('Trial 6'!DB44:DM44)","v":{"v":12402919.196865031,"d":"$12,402,919"}},{"$f":"'Trial 6'!DO44","v":{"v":1051517.2620847123,"d":"$1,051,517"}},{"$f":"'Trial 6'!DP44","v":{"v":1006844.6855560706,"d":"$1,006,845"}},{"$f":"'Trial 6'!DQ44","v":{"v":1043014.603112442,"d":"$1,043,015"}},{"$f":"'Trial 6'!DR44","v":{"v":1043705.8074353072,"d":"$1,043,706"}},{"$f":"'Trial 6'!DS44","v":{"v":1040080.6247320105,"d":"$1,040,081"}},{"$f":"'Trial 6'!DT44","v":{"v":1020613.5833310003,"d":"$1,020,614"}},{"$f":"'Trial 6'!DU44","v":{"v":1062372.1770253032,"d":"$1,062,372"}},{"$f":"'Trial 6'!DV44","v":{"v":999296.800684013,"d":"$999,297"}},{"$f":"'Trial 6'!DW44","v":{"v":1012464.3610206639,"d":"$1,012,464"}},{"$f":"'Trial 6'!DX44","v":{"v":1018679.392903201,"d":"$1,018,679"}},{"$f":"'Trial 6'!DY44","v":{"v":1051208.3483040333,"d":"$1,051,208"}},{"$f":"'Trial 6'!DZ44","v":{"v":994699.1854870815,"d":"$994,699"}},{"$f":"SUM('Trial 6'!DO44:DZ44)","v":{"v":12344496.83167584,"d":"$12,344,497"}},{"$f":"'Trial 6'!EB44","v":{"v":981512.8528867031,"d":"$981,513"}},{"$f":"'Trial 6'!EC44","v":{"v":1043440.0661515262,"d":"$1,043,440"}},{"$f":"'Trial 6'!ED44","v":{"v":996497.9979746004,"d":"$996,498"}},{"$f":"'Trial 6'!EE44","v":{"v":1016107.3341098791,"d":"$1,016,107"}},{"$f":"'Trial 6'!EF44","v":{"v":983446.8686285735,"d":"$983,447"}},{"$f":"'Trial 6'!EG44","v":{"v":1062938.5287622346,"d":"$1,062,939"}},{"$f":"'Trial 6'!EH44","v":{"v":985323.5599762569,"d":"$985,324"}},{"$f":"'Trial 6'!EI44","v":{"v":1034039.8289383902,"d":"$1,034,040"}},{"$f":"'Trial 6'!EJ44","v":{"v":1054327.0087699157,"d":"$1,054,327"}},{"$f":"'Trial 6'!EK44","v":{"v":1024483.1832630854,"d":"$1,024,483"}},{"$f":"'Trial 6'!EL44","v":{"v":1015201.0332991773,"d":"$1,015,201"}},{"$f":"'Trial 6'!EM44","v":{"v":1016422.003911258,"d":"$1,016,422"}},{"$f":"SUM('Trial 6'!EB44:EM44)","v":{"v":12213740.266671602,"d":"$12,213,740"}}]
[{"$f":"Labels!B102","v":"Trial 07"},{"$f":"'Trial 7'!B44","v":{"v":1210251.6680096046,"d":"$1,210,252"}},{"$f":"'Trial 7'!C44","v":{"v":1218578.5246341159,"d":"$1,218,579"}},{"$f":"'Trial 7'!D44","v":{"v":1127407.1138138599,"d":"$1,127,407"}},{"$f":"'Trial 7'!E44","v":{"v":1130493.1844835978,"d":"$1,130,493"}},{"$f":"'Trial 7'!F44","v":{"v":1111293.3818536126,"d":"$1,111,293"}},{"$f":"'Trial 7'!G44","v":{"v":1123101.7155773572,"d":"$1,123,102"}},{"$f":"'Trial 7'!H44","v":{"v":1187302.342687659,"d":"$1,187,302"}},{"$f":"'Trial 7'!I44","v":{"v":1175040.9819092923,"d":"$1,175,041"}},{"$f":"'Trial 7'!J44","v":{"v":1143544.305800521,"d":"$1,143,544"}},{"$f":"'Trial 7'!K44","v":{"v":1128449.6600209647,"d":"$1,128,450"}},{"$f":"'Trial 7'!L44","v":{"v":1152362.0298329997,"d":"$1,152,362"}},{"$f":"'Trial 7'!M44","v":{"v":1167087.5506795063,"d":"$1,167,088"}},{"$f":"SUM('Trial 7'!B44:M44)","v":{"v":13874912.459303092,"d":"$13,874,912"}},{"$f":"'Trial 7'!O44","v":{"v":1149967.5857172555,"d":"$1,149,968"}},{"$f":"'Trial 7'!P44","v":{"v":1184831.9523031916,"d":"$1,184,832"}},{"$f":"'Trial 7'!Q44","v":{"v":1164013.925754558,"d":"$1,164,014"}},{"$f":"'Trial 7'!R44","v":{"v":1206973.6177859497,"d":"$1,206,974"}},{"$f":"'Trial 7'!S44","v":{"v":1134898.6250178746,"d":"$1,134,899"}},{"$f":"'Trial 7'!T44","v":{"v":1176641.3423735597,"d":"$1,176,641"}},{"$f":"'Trial 7'!U44","v":{"v":1133884.6819721425,"d":"$1,133,885"}},{"$f":"'Trial 7'!V44","v":{"v":1165639.315202401,"d":"$1,165,639"}},{"$f":"'Trial 7'!W44","v":{"v":1091770.5653495858,"d":"$1,091,771"}},{"$f":"'Trial 7'!X44","v":{"v":1121560.7595828264,"d":"$1,121,561"}},{"$f":"'Trial 7'!Y44","v":{"v":1165866.515439161,"d":"$1,165,867"}},{"$f":"'Trial 7'!Z44","v":{"v":1157272.946405661,"d":"$1,157,273"}},{"$f":"SUM('Trial 7'!O44:Z44)","v":{"v":13853321.832904167,"d":"$13,853,322"}},{"$f":"'Trial 7'!AB44","v":{"v":1128473.9086858823,"d":"$1,128,474"}},{"$f":"'Trial 7'!AC44","v":{"v":1165043.248437493,"d":"$1,165,043"}},{"$f":"'Trial 7'!AD44","v":{"v":1159553.584000053,"d":"$1,159,554"}},{"$f":"'Trial 7'!AE44","v":{"v":1130377.510273578,"d":"$1,130,378"}},{"$f":"'Trial 7'!AF44","v":{"v":1190048.3201367613,"d":"$1,190,048"}},{"$f":"'Trial 7'!AG44","v":{"v":1117906.3223701294,"d":"$1,117,906"}},{"$f":"'Trial 7'!AH44","v":{"v":1122495.1995169201,"d":"$1,122,495"}},{"$f":"'Trial 7'!AI44","v":{"v":1095659.3627510543,"d":"$1,095,659"}},{"$f":"'Trial 7'!AJ44","v":{"v":1096811.479508809,"d":"$1,096,811"}},{"$f":"'Trial 7'!AK44","v":{"v":1142501.406906212,"d":"$1,142,501"}},{"$f":"'Trial 7'!AL44","v":{"v":1130097.7373887997,"d":"$1,130,098"}},{"$f":"'Trial 7'!AM44","v":{"v":1088668.6650848824,"d":"$1,088,669"}},{"$f":"SUM('Trial 7'!AB44:AM44)","v":{"v":13567636.745060574,"d":"$13,567,637"}},{"$f":"'Trial 7'!AO44","v":{"v":1085353.6554494123,"d":"$1,085,354"}},{"$f":"'Trial 7'!AP44","v":{"v":1094860.3083858832,"d":"$1,094,860"}},{"$f":"'Trial 7'!AQ44","v":{"v":1109699.0895735358,"d":"$1,109,699"}},{"$f":"'Trial 7'!AR44","v":{"v":1071743.7677748143,"d":"$1,071,744"}},{"$f":"'Trial 7'!AS44","v":{"v":1082240.2789869881,"d":"$1,082,240"}},{"$f":"'Trial 7'!AT44","v":{"v":1071595.291401016,"d":"$1,071,595"}},{"$f":"'Trial 7'!AU44","v":{"v":1122566.969264006,"d":"$1,122,567"}},{"$f":"'Trial 7'!AV44","v":{"v":1137261.1424805422,"d":"$1,137,261"}},{"$f":"'Trial 7'!AW44","v":{"v":1138561.4712092034,"d":"$1,138,561"}},{"$f":"'Trial 7'!AX44","v":{"v":1125138.0034193264,"d":"$1,125,138"}},{"$f":"'Trial 7'!AY44","v":{"v":1119100.4214995843,"d":"$1,119,100"}},{"$f":"'Trial 7'!AZ44","v":{"v":1119133.5622842207,"d":"$1,119,134"}},{"$f":"SUM('Trial 7'!AO44:AZ44)","v":{"v":13277253.961728534,"d":"$13,277,254"}},{"$f":"'Trial 7'!BB44","v":{"v":1089183.8290751746,"d":"$1,089,184"}},{"$f":"'Trial 7'!BC44","v":{"v":1109285.9210977461,"d":"$1,109,286"}},{"$f":"'Trial 7'!BD44","v":{"v":1144313.351289886,"d":"$1,144,313"}},{"$f":"'Trial 7'!BE44","v":{"v":1095492.309704641,"d":"$1,095,492"}},{"$f":"'Trial 7'!BF44","v":{"v":1067576.9412509638,"d":"$1,067,577"}},{"$f":"'Trial 7'!BG44","v":{"v":1085978.3359549604,"d":"$1,085,978"}},{"$f":"'Trial 7'!BH44","v":{"v":1067881.6852203521,"d":"$1,067,882"}},{"$f":"'Trial 7'!BI44","v":{"v":1050717.130349221,"d":"$1,050,717"}},{"$f":"'Trial 7'!BJ44","v":{"v":1104556.1980584797,"d":"$1,104,556"}},{"$f":"'Trial 7'!BK44","v":{"v":1117095.5919037955,"d":"$1,117,096"}},{"$f":"'Trial 7'!BL44","v":{"v":1090990.1430810287,"d":"$1,090,990"}},{"$f":"'Trial 7'!BM44","v":{"v":1036501.1459630799,"d":"$1,036,501"}},{"$f":"SUM('Trial 7'!BB44:BM44)","v":{"v":13059572.58294933,"d":"$13,059,573"}},{"$f":"'Trial 7'!BO44","v":{"v":1051742.653390171,"d":"$1,051,743"}},{"$f":"'Trial 7'!BP44","v":{"v":1067784.567916827,"d":"$1,067,785"}},{"$f":"'Trial 7'!BQ44","v":{"v":1072223.2287987336,"d":"$1,072,223"}},{"$f":"'Trial 7'!BR44","v":{"v":1128695.9383479336,"d":"$1,128,696"}},{"$f":"'Trial 7'!BS44","v":{"v":1121277.226875086,"d":"$1,121,277"}},{"$f":"'Trial 7'!BT44","v":{"v":1065883.4785031958,"d":"$1,065,883"}},{"$f":"'Trial 7'!BU44","v":{"v":1044843.3720022619,"d":"$1,044,843"}},{"$f":"'Trial 7'!BV44","v":{"v":1072705.6265686154,"d":"$1,072,706"}},{"$f":"'Trial 7'!BW44","v":{"v":1085074.1830909199,"d":"$1,085,074"}},{"$f":"'Trial 7'!BX44","v":{"v":1073583.3128114417,"d":"$1,073,583"}},{"$f":"'Trial 7'!BY44","v":{"v":1100834.271957714,"d":"$1,100,834"}},{"$f":"'Trial 7'!BZ44","v":{"v":1084289.3832612408,"d":"$1,084,289"}},{"$f":"SUM('Trial 7'!BO44:BZ44)","v":{"v":12968937.24352414,"d":"$12,968,937"}},{"$f":"'Trial 7'!CB44","v":{"v":1064745.1755210634,"d":"$1,064,745"}},{"$f":"'Trial 7'!CC44","v":{"v":1037852.1200914562,"d":"$1,037,852"}},{"$f":"'Trial 7'!CD44","v":{"v":1083253.1503240531,"d":"$1,083,253"}},{"$f":"'Trial 7'!CE44","v":{"v":1066877.7845924962,"d":"$1,066,878"}},{"$f":"'Trial 7'!CF44","v":{"v":1014107.1407579627,"d":"$1,014,107"}},{"$f":"'Trial 7'!CG44","v":{"v":1059564.087871126,"d":"$1,059,564"}},{"$f":"'Trial 7'!CH44","v":{"v":1010878.7986493031,"d":"$1,010,879"}},{"$f":"'Trial 7'!CI44","v":{"v":1006825.1211918355,"d":"$1,006,825"}},{"$f":"'Trial 7'!CJ44","v":{"v":1058857.8590979804,"d":"$1,058,858"}},{"$f":"'Trial 7'!CK44","v":{"v":1088203.269992896,"d":"$1,088,203"}},{"$f":"'Trial 7'!CL44","v":{"v":1060954.3120503272,"d":"$1,060,954"}},{"$f":"'Trial 7'!CM44","v":{"v":1009833.8241949154,"d":"$1,009,834"}},{"$f":"SUM('Trial 7'!CB44:CM44)","v":{"v":12561952.644335415,"d":"$12,561,953"}},{"$f":"'Trial 7'!CO44","v":{"v":1038372.1262587699,"d":"$1,038,372"}},{"$f":"'Trial 7'!CP44","v":{"v":1072290.961846881,"d":"$1,072,291"}},{"$f":"'Trial 7'!CQ44","v":{"v":1044867.5408919576,"d":"$1,044,868"}},{"$f":"'Trial 7'!CR44","v":{"v":1057261.2321785437,"d":"$1,057,261"}},{"$f":"'Trial 7'!CS44","v":{"v":1097501.0564966057,"d":"$1,097,501"}},{"$f":"'Trial 7'!CT44","v":{"v":1051862.4499460808,"d":"$1,051,862"}},{"$f":"'Trial 7'!CU44","v":{"v":1040417.4211139794,"d":"$1,040,417"}},{"$f":"'Trial 7'!CV44","v":{"v":1062557.6108624523,"d":"$1,062,558"}},{"$f":"'Trial 7'!CW44","v":{"v":1054904.5608595565,"d":"$1,054,905"}},{"$f":"'Trial 7'!CX44","v":{"v":1096267.6834963267,"d":"$1,096,268"}},{"$f":"'Trial 7'!CY44","v":{"v":1087285.9549773561,"d":"$1,087,286"}},{"$f":"'Trial 7'!CZ44","v":{"v":1041888.6627278732,"d":"$1,041,889"}},{"$f":"SUM('Trial 7'!CO44:CZ44)","v":{"v":12745477.261656383,"d":"$12,745,477"}},{"$f":"'Trial 7'!DB44","v":{"v":994792.3952154104,"d":"$994,792"}},{"$f":"'Trial 7'!DC44","v":{"v":1042055.970382966,"d":"$1,042,056"}},{"$f":"'Trial 7'!DD44","v":{"v":1054972.9385731546,"d":"$1,054,973"}},{"$f":"'Trial 7'!DE44","v":{"v":985144.6579584599,"d":"$985,145"}},{"$f":"'Trial 7'!DF44","v":{"v":1047173.9312302603,"d":"$1,047,174"}},{"$f":"'Trial 7'!DG44","v":{"v":1050080.4299667128,"d":"$1,050,080"}},{"$f":"'Trial 7'!DH44","v":{"v":996679.0712877508,"d":"$996,679"}},{"$f":"'Trial 7'!DI44","v":{"v":1060126.164410647,"d":"$1,060,126"}},{"$f":"'Trial 7'!DJ44","v":{"v":1063530.5045435964,"d":"$1,063,531"}},{"$f":"'Trial 7'!DK44","v":{"v":980213.4112051253,"d":"$980,213"}},{"$f":"'Trial 7'!DL44","v":{"v":1034455.9159023387,"d":"$1,034,456"}},{"$f":"'Trial 7'!DM44","v":{"v":1064308.9038403665,"d":"$1,064,309"}},{"$f":"SUM('Trial 7'!DB44:DM44)","v":{"v":12373534.29451679,"d":"$12,373,534"}},{"$f":"'Trial 7'!DO44","v":{"v":1011236.9235495259,"d":"$1,011,237"}},{"$f":"'Trial 7'!DP44","v":{"v":1060091.8992137692,"d":"$1,060,092"}},{"$f":"'Trial 7'!DQ44","v":{"v":1052069.4926462814,"d":"$1,052,069"}},{"$f":"'Trial 7'!DR44","v":{"v":987165.086554272,"d":"$987,165"}},{"$f":"'Trial 7'!DS44","v":{"v":1071236.4921671217,"d":"$1,071,236"}},{"$f":"'Trial 7'!DT44","v":{"v":985547.0172676306,"d":"$985,547"}},{"$f":"'Trial 7'!DU44","v":{"v":1027241.4357197633,"d":"$1,027,241"}},{"$f":"'Trial 7'!DV44","v":{"v":986132.9388134155,"d":"$986,133"}},{"$f":"'Trial 7'!DW44","v":{"v":1054868.2513743415,"d":"$1,054,868"}},{"$f":"'Trial 7'!DX44","v":{"v":1074149.6267535575,"d":"$1,074,150"}},{"$f":"'Trial 7'!DY44","v":{"v":979256.283676793,"d":"$979,256"}},{"$f":"'Trial 7'!DZ44","v":{"v":1047090.5667197196,"d":"$1,047,091"}},{"$f":"SUM('Trial 7'!DO44:DZ44)","v":{"v":12336086.014456192,"d":"$12,336,086"}},{"$f":"'Trial 7'!EB44","v":{"v":1038121.6925017633,"d":"$1,038,122"}},{"$f":"'Trial 7'!EC44","v":{"v":1011687.233378793,"d":"$1,011,687"}},{"$f":"'Trial 7'!ED44","v":{"v":1016053.7760389271,"d":"$1,016,054"}},{"$f":"'Trial 7'!EE44","v":{"v":1037627.2552137253,"d":"$1,037,627"}},{"$f":"'Trial 7'!EF44","v":{"v":1040375.0681872304,"d":"$1,040,375"}},{"$f":"'Trial 7'!EG44","v":{"v":1012844.5220930923,"d":"$1,012,845"}},{"$f":"'Trial 7'!EH44","v":{"v":1026165.1506358084,"d":"$1,026,165"}},{"$f":"'Trial 7'!EI44","v":{"v":1052588.5879441416,"d":"$1,052,589"}},{"$f":"'Trial 7'!EJ44","v":{"v":972825.3032982923,"d":"$972,825"}},{"$f":"'Trial 7'!EK44","v":{"v":1031543.5750871097,"d":"$1,031,544"}},{"$f":"'Trial 7'!EL44","v":{"v":1058127.8676445184,"d":"$1,058,128"}},{"$f":"'Trial 7'!EM44","v":{"v":990935.9334681598,"d":"$990,936"}},{"$f":"SUM('Trial 7'!EB44:EM44)","v":{"v":12288895.965491561,"d":"$12,288,896"}}]
[{"$f":"Labels!B103","v":"Trial 08"},{"$f":"'Trial 8'!B44","v":{"v":1178424.9832601284,"d":"$1,178,425"}},{"$f":"'Trial 8'!C44","v":{"v":1105239.749225682,"d":"$1,105,240"}},{"$f":"'Trial 8'!D44","v":{"v":1159069.0036971876,"d":"$1,159,069"}},{"$f":"'Trial 8'!E44","v":{"v":1139833.8969994835,"d":"$1,139,834"}},{"$f":"'Trial 8'!F44","v":{"v":1164650.7427059738,"d":"$1,164,651"}},{"$f":"'Trial 8'!G44","v":{"v":1118244.2950682011,"d":"$1,118,244"}},{"$f":"'Trial 8'!H44","v":{"v":1189209.0468677355,"d":"$1,189,209"}},{"$f":"'Trial 8'!I44","v":{"v":1144320.2067478378,"d":"$1,144,320"}},{"$f":"'Trial 8'!J44","v":{"v":1155690.717187542,"d":"$1,155,691"}},{"$f":"'Trial 8'!K44","v":{"v":1195703.042236222,"d":"$1,195,703"}},{"$f":"'Trial 8'!L44","v":{"v":1170039.3015251008,"d":"$1,170,039"}},{"$f":"'Trial 8'!M44","v":{"v":1186093.7824578334,"d":"$1,186,094"}},{"$f":"SUM('Trial 8'!B44:M44)","v":{"v":13906518.767978929,"d":"$13,906,519"}},{"$f":"'Trial 8'!O44","v":{"v":1172241.0738080898,"d":"$1,172,241"}},{"$f":"'Trial 8'!P44","v":{"v":1150487.576053514,"d":"$1,150,488"}},{"$f":"'Trial 8'!Q44","v":{"v":1158655.778634584,"d":"$1,158,656"}},{"$f":"'Trial 8'!R44","v":{"v":1129931.4696289108,"d":"$1,129,931"}},{"$f":"'Trial 8'!S44","v":{"v":1126914.4622065146,"d":"$1,126,914"}},{"$f":"'Trial 8'!T44","v":{"v":1198416.8510094252,"d":"$1,198,417"}},{"$f":"'Trial 8'!U44","v":{"v":1135274.4403564371,"d":"$1,135,274"}},{"$f":"'Trial 8'!V44","v":{"v":1171384.14643658,"d":"$1,171,384"}},{"$f":"'Trial 8'!W44","v":{"v":1096261.3677478915,"d":"$1,096,261"}},{"$f":"'Trial 8'!X44","v":{"v":1144126.370472519,"d":"$1,144,126"}},{"$f":"'Trial 8'!Y44","v":{"v":1091792.3798403144,"d":"$1,091,792"}},{"$f":"'Trial 8'!Z44","v":{"v":1183350.982999877,"d":"$1,183,351"}},{"$f":"SUM('Trial 8'!O44:Z44)","v":{"v":13758836.899194658,"d":"$13,758,837"}},{"$f":"'Trial 8'!AB44","v":{"v":1162576.7960783509,"d":"$1,162,577"}},{"$f":"'Trial 8'!AC44","v":{"v":1089067.0491244644,"d":"$1,089,067"}},{"$f":"'Trial 8'!AD44","v":{"v":1124417.144029983,"d":"$1,124,417"}},{"$f":"'Trial 8'!AE44","v":{"v":1117033.4321208838,"d":"$1,117,033"}},{"$f":"'Trial 8'!AF44","v":{"v":1074014.436365731,"d":"$1,074,014"}},{"$f":"'Trial 8'!AG44","v":{"v":1151136.7608551034,"d":"$1,151,137"}},{"$f":"'Trial 8'!AH44","v":{"v":1144733.8557723588,"d":"$1,144,734"}},{"$f":"'Trial 8'!AI44","v":{"v":1097035.0003118943,"d":"$1,097,035"}},{"$f":"'Trial 8'!AJ44","v":{"v":1170482.8298488965,"d":"$1,170,483"}},{"$f":"'Trial 8'!AK44","v":{"v":1145756.6910011773,"d":"$1,145,757"}},{"$f":"'Trial 8'!AL44","v":{"v":1113891.4455926546,"d":"$1,113,891"}},{"$f":"'Trial 8'!AM44","v":{"v":1166585.004063848,"d":"$1,166,585"}},{"$f":"SUM('Trial 8'!AB44:AM44)","v":{"v":13556730.445165347,"d":"$13,556,730"}},{"$f":"'Trial 8'!AO44","v":{"v":1117273.5466690555,"d":"$1,117,274"}},{"$f":"'Trial 8'!AP44","v":{"v":1110468.5321360908,"d":"$1,110,469"}},{"$f":"'Trial 8'!AQ44","v":{"v":1139821.1589159623,"d":"$1,139,821"}},{"$f":"'Trial 8'!AR44","v":{"v":1101906.5503165703,"d":"$1,101,907"}},{"$f":"'Trial 8'!AS44","v":{"v":1142352.1621472856,"d":"$1,142,352"}},{"$f":"'Trial 8'!AT44","v":{"v":1110274.9338565448,"d":"$1,110,275"}},{"$f":"'Trial 8'!AU44","v":{"v":1089145.5935685516,"d":"$1,089,146"}},{"$f":"'Trial 8'!AV44","v":{"v":1097104.3283785265,"d":"$1,097,104"}},{"$f":"'Trial 8'!AW44","v":{"v":1108936.113430704,"d":"$1,108,936"}},{"$f":"'Trial 8'!AX44","v":{"v":1154545.4952108448,"d":"$1,154,545"}},{"$f":"'Trial 8'!AY44","v":{"v":1096061.2338702804,"d":"$1,096,061"}},{"$f":"'Trial 8'!AZ44","v":{"v":1057228.051258933,"d":"$1,057,228"}},{"$f":"SUM('Trial 8'!AO44:AZ44)","v":{"v":13325117.699759351,"d":"$13,325,118"}},{"$f":"'Trial 8'!BB44","v":{"v":1065143.9952652927,"d":"$1,065,144"}},{"$f":"'Trial 8'!BC44","v":{"v":1129904.5659772246,"d":"$1,129,905"}},{"$f":"'Trial 8'!BD44","v":{"v":1131238.3386119432,"d":"$1,131,238"}},{"$f":"'Trial 8'!BE44","v":{"v":1088544.3000044485,"d":"$1,088,544"}},{"$f":"'Trial 8'!BF44","v":{"v":1119271.509082256,"d":"$1,119,272"}},{"$f":"'Trial 8'!BG44","v":{"v":1090799.6925796785,"d":"$1,090,800"}},{"$f":"'Trial 8'!BH44","v":{"v":1118220.215344998,"d":"$1,118,220"}},{"$f":"'Trial 8'!BI44","v":{"v":1107302.4366819137,"d":"$1,107,302"}},{"$f":"'Trial 8'!BJ44","v":{"v":1084361.051957294,"d":"$1,084,361"}},{"$f":"'Trial 8'!BK44","v":{"v":1074692.8810198521,"d":"$1,074,693"}},{"$f":"'Trial 8'!BL44","v":{"v":1081536.2481312044,"d":"$1,081,536"}},{"$f":"'Trial 8'!BM44","v":{"v":1090230.4850464626,"d":"$1,090,230"}},{"$f":"SUM('Trial 8'!BB44:BM44)","v":{"v":13181245.71970257,"d":"$13,181,246"}},{"$f":"'Trial 8'!BO44","v":{"v":1029722.5173936362,"d":"$1,029,723"}},{"$f":"'Trial 8'!BP44","v":{"v":1133475.9591975128,"d":"$1,133,476"}},{"$f":"'Trial 8'!BQ44","v":{"v":1120224.574130233,"d":"$1,120,225"}},{"$f":"'Trial 8'!BR44","v":{"v":1141143.036912358,"d":"$1,141,143"}},{"$f":"'Trial 8'!BS44","v":{"v":1072960.0619641447,"d":"$1,072,960"}},{"$f":"'Trial 8'!BT44","v":{"v":1133073.671088738,"d":"$1,133,074"}},{"$f":"'Trial 8'!BU44","v":{"v":1075487.9451976665,"d":"$1,075,488"}},{"$f":"'Trial 8'!BV44","v":{"v":1022434.7554703307,"d":"$1,022,435"}},{"$f":"'Trial 8'!BW44","v":{"v":1087350.7535023075,"d":"$1,087,351"}},{"$f":"'Trial 8'!BX44","v":{"v":1040166.2106508664,"d":"$1,040,166"}},{"$f":"'Trial 8'!BY44","v":{"v":1058186.2711926645,"d":"$1,058,186"}},{"$f":"'Trial 8'!BZ44","v":{"v":1087428.2058850653,"d":"$1,087,428"}},{"$f":"SUM('Trial 8'!BO44:BZ44)","v":{"v":13001653.962585524,"d":"$13,001,654"}},{"$f":"'Trial 8'!CB44","v":{"v":1021629.5339983813,"d":"$1,021,630"}},{"$f":"'Trial 8'!CC44","v":{"v":1103986.8864504779,"d":"$1,103,987"}},{"$f":"'Trial 8'!CD44","v":{"v":1052880.3760900744,"d":"$1,052,880"}},{"$f":"'Trial 8'!CE44","v":{"v":1037773.5484422137,"d":"$1,037,774"}},{"$f":"'Trial 8'!CF44","v":{"v":1085539.6614048565,"d":"$1,085,540"}},{"$f":"'Trial 8'!CG44","v":{"v":1065085.850096601,"d":"$1,065,086"}},{"$f":"'Trial 8'!CH44","v":{"v":1071488.6786439694,"d":"$1,071,489"}},{"$f":"'Trial 8'!CI44","v":{"v":1029722.3311030451,"d":"$1,029,722"}},{"$f":"'Trial 8'!CJ44","v":{"v":1120073.2999911148,"d":"$1,120,073"}},{"$f":"'Trial 8'!CK44","v":{"v":1039633.2209343823,"d":"$1,039,633"}},{"$f":"'Trial 8'!CL44","v":{"v":1080602.9752066373,"d":"$1,080,603"}},{"$f":"'Trial 8'!CM44","v":{"v":1015421.1886409431,"d":"$1,015,421"}},{"$f":"SUM('Trial 8'!CB44:CM44)","v":{"v":12723837.551002696,"d":"$12,723,838"}},{"$f":"'Trial 8'!CO44","v":{"v":1074260.9189168313,"d":"$1,074,261"}},{"$f":"'Trial 8'!CP44","v":{"v":1040957.9036146817,"d":"$1,040,958"}},{"$f":"'Trial 8'!CQ44","v":{"v":1097458.005433685,"d":"$1,097,458"}},{"$f":"'Trial 8'!CR44","v":{"v":1020605.822542516,"d":"$1,020,606"}},{"$f":"'Trial 8'!CS44","v":{"v":1068956.6604385222,"d":"$1,068,957"}},{"$f":"'Trial 8'!CT44","v":{"v":1084193.3836062427,"d":"$1,084,193"}},{"$f":"'Trial 8'!CU44","v":{"v":1087029.0538681229,"d":"$1,087,029"}},{"$f":"'Trial 8'!CV44","v":{"v":1065244.382442699,"d":"$1,065,244"}},{"$f":"'Trial 8'!CW44","v":{"v":997228.4112122206,"d":"$997,228"}},{"$f":"'Trial 8'!CX44","v":{"v":1053809.027115052,"d":"$1,053,809"}},{"$f":"'Trial 8'!CY44","v":{"v":1026893.4126236009,"d":"$1,026,893"}},{"$f":"'Trial 8'!CZ44","v":{"v":1084685.137953266,"d":"$1,084,685"}},{"$f":"SUM('Trial 8'!CO44:CZ44)","v":{"v":12701322.119767444,"d":"$12,701,322"}},{"$f":"'Trial 8'!DB44","v":{"v":1075399.2312137953,"d":"$1,075,399"}},{"$f":"'Trial 8'!DC44","v":{"v":1040874.0411587546,"d":"$1,040,874"}},{"$f":"'Trial 8'!DD44","v":{"v":1024931.3799927565,"d":"$1,024,931"}},{"$f":"'Trial 8'!DE44","v":{"v":1100492.397549909,"d":"$1,100,492"}},{"$f":"'Trial 8'!DF44","v":{"v":1042064.8187199546,"d":"$1,042,065"}},{"$f":"'Trial 8'!DG44","v":{"v":1038879.0291985057,"d":"$1,038,879"}},{"$f":"'Trial 8'!DH44","v":{"v":1074199.0795344384,"d":"$1,074,199"}},{"$f":"'Trial 8'!DI44","v":{"v":1011971.574650092,"d":"$1,011,972"}},{"$f":"'Trial 8'!DJ44","v":{"v":1079026.9690084076,"d":"$1,079,027"}},{"$f":"'Trial 8'!DK44","v":{"v":1067205.4501369903,"d":"$1,067,205"}},{"$f":"'Trial 8'!DL44","v":{"v":1018385.4643849378,"d":"$1,018,385"}},{"$f":"'Trial 8'!DM44","v":{"v":1061259.9446632161,"d":"$1,061,260"}},{"$f":"SUM('Trial 8'!DB44:DM44)","v":{"v":12634689.380211757,"d":"$12,634,689"}},{"$f":"'Trial 8'!DO44","v":{"v":1064761.0980596275,"d":"$1,064,761"}},{"$f":"'Trial 8'!DP44","v":{"v":1009991.3256588872,"d":"$1,009,991"}},{"$f":"'Trial 8'!DQ44","v":{"v":1048719.9085972358,"d":"$1,048,720"}},{"$f":"'Trial 8'!DR44","v":{"v":1005288.8900961801,"d":"$1,005,289"}},{"$f":"'Trial 8'!DS44","v":{"v":1047985.4617474508,"d":"$1,047,985"}},{"$f":"'Trial 8'!DT44","v":{"v":1066004.488949832,"d":"$1,066,004"}},{"$f":"'Trial 8'!DU44","v":{"v":1020706.0789555332,"d":"$1,020,706"}},{"$f":"'Trial 8'!DV44","v":{"v":1002107.3353789878,"d":"$1,002,107"}},{"$f":"'Trial 8'!DW44","v":{"v":1027051.5807852026,"d":"$1,027,052"}},{"$f":"'Trial 8'!DX44","v":{"v":1028323.5036390538,"d":"$1,028,324"}},{"$f":"'Trial 8'!DY44","v":{"v":1058381.5615986886,"d":"$1,058,382"}},{"$f":"'Trial 8'!DZ44","v":{"v":1017443.977037487,"d":"$1,017,444"}},{"$f":"SUM('Trial 8'!DO44:DZ44)","v":{"v":12396765.210504165,"d":"$12,396,765"}},{"$f":"'Trial 8'!EB44","v":{"v":1050079.4017186097,"d":"$1,050,079"}},{"$f":"'Trial 8'!EC44","v":{"v":984893.3952256609,"d":"$984,893"}},{"$f":"'Trial 8'!ED44","v":{"v":1011802.3502106215,"d":"$1,011,802"}},{"$f":"'Trial 8'!EE44","v":{"v":986488.2925579875,"d":"$986,488"}},{"$f":"'Trial 8'!EF44","v":{"v":1063766.9080953568,"d":"$1,063,767"}},{"$f":"'Trial 8'!EG44","v":{"v":994073.2260229768,"d":"$994,073"}},{"$f":"'Trial 8'!EH44","v":{"v":1015807.4597107671,"d":"$1,015,807"}},{"$f":"'Trial 8'!EI44","v":{"v":1033014.8531448924,"d":"$1,033,015"}},{"$f":"'Trial 8'!EJ44","v":{"v":1029144.0997787758,"d":"$1,029,144"}},{"$f":"'Trial 8'!EK44","v":{"v":1013030.8478558748,"d":"$1,013,031"}},{"$f":"'Trial 8'!EL44","v":{"v":953548.6910312675,"d":"$953,549"}},{"$f":"'Trial 8'!EM44","v":{"v":1030619.2660928137,"d":"$1,030,619"}},{"$f":"SUM('Trial 8'!EB44:EM44)","v":{"v":12166268.791445605,"d":"$12,166,269"}}]
[{"$f":"Labels!C95","v":"Total"},{"$f":"SUM('Trial 1'!B44,'Trial 2'!B44,'Trial 3'!B44,'Trial 4'!B44,'Trial 5'!B44,'Trial 6'!B44,'Trial 7'!B44,'Trial 8'!B44)","v":{"v":9448812.393970668,"d":"$9,448,812"}},{"$f":"SUM('Trial 1'!C44,'Trial 2'!C44,'Trial 3'!C44,'Trial 4'!C44,'Trial 5'!C44,'Trial 6'!C44,'Trial 7'!C44,'Trial 8'!C44)","v":{"v":9345774.903515538,"d":"$9,345,775"}},{"$f":"SUM('Trial 1'!D44,'Trial 2'!D44,'Trial 3'!D44,'Trial 4'!D44,'Trial 5'!D44,'Trial 6'!D44,'Trial 7'!D44,'Trial 8'!D44)","v":{"v":9334897.877866168,"d":"$9,334,898"}},{"$f":"SUM('Trial 1'!E44,'Trial 2'!E44,'Trial 3'!E44,'Trial 4'!E44,'Trial 5'!E44,'Trial 6'!E44,'Trial 7'!E44,'Trial 8'!E44)","v":{"v":9189387.488231258,"d":"$9,189,387"}},{"$f":"SUM('Trial 1'!F44,'Trial 2'!F44,'Trial 3'!F44,'Trial 4'!F44,'Trial 5'!F44,'Trial 6'!F44,'Trial 7'!F44,'Trial 8'!F44)","v":{"v":9196005.758077916,"d":"$9,196,006"}},{"$f":"SUM('Trial 1'!G44,'Trial 2'!G44,'Trial 3'!G44,'Trial 4'!G44,'Trial 5'!G44,'Trial 6'!G44,'Trial 7'!G44,'Trial 8'!G44)","v":{"v":9244048.854274195,"d":"$9,244,049"}},{"$f":"SUM('Trial 1'!H44,'Trial 2'!H44,'Trial 3'!H44,'Trial 4'!H44,'Trial 5'!H44,'Trial 6'!H44,'Trial 7'!H44,'Trial 8'!H44)","v":{"v":9445970.598410033,"d":"$9,445,971"}},{"$f":"SUM('Trial 1'!I44,'Trial 2'!I44,'Trial 3'!I44,'Trial 4'!I44,'Trial 5'!I44,'Trial 6'!I44,'Trial 7'!I44,'Trial 8'!I44)","v":{"v":9247578.298980916,"d":"$9,247,578"}},{"$f":"SUM('Trial 1'!J44,'Trial 2'!J44,'Trial 3'!J44,'Trial 4'!J44,'Trial 5'!J44,'Trial 6'!J44,'Trial 7'!J44,'Trial 8'!J44)","v":{"v":9370513.887453143,"d":"$9,370,514"}},{"$f":"SUM('Trial 1'!K44,'Trial 2'!K44,'Trial 3'!K44,'Trial 4'!K44,'Trial 5'!K44,'Trial 6'!K44,'Trial 7'!K44,'Trial 8'!K44)","v":{"v":9195161.933402136,"d":"$9,195,162"}},{"$f":"SUM('Trial 1'!L44,'Trial 2'!L44,'Trial 3'!L44,'Trial 4'!L44,'Trial 5'!L44,'Trial 6'!L44,'Trial 7'!L44,'Trial 8'!L44)","v":{"v":9308506.115921732,"d":"$9,308,506"}},{"$f":"SUM('Trial 1'!M44,'Trial 2'!M44,'Trial 3'!M44,'Trial 4'!M44,'Trial 5'!M44,'Trial 6'!M44,'Trial 7'!M44,'Trial 8'!M44)","v":{"v":9294237.214702405,"d":"$9,294,237"}},{"$f":"SUM(B83:M83)","v":{"v":111620895.32480612,"d":"$111,620,895"}},{"$f":"SUM('Trial 1'!O44,'Trial 2'!O44,'Trial 3'!O44,'Trial 4'!O44,'Trial 5'!O44,'Trial 6'!O44,'Trial 7'!O44,'Trial 8'!O44)","v":{"v":9149106.448887609,"d":"$9,149,106"}},{"$f":"SUM('Trial 1'!P44,'Trial 2'!P44,'Trial 3'!P44,'Trial 4'!P44,'Trial 5'!P44,'Trial 6'!P44,'Trial 7'!P44,'Trial 8'!P44)","v":{"v":9247822.350920938,"d":"$9,247,822"}},{"$f":"SUM('Trial 1'!Q44,'Trial 2'!Q44,'Trial 3'!Q44,'Trial 4'!Q44,'Trial 5'!Q44,'Trial 6'!Q44,'Trial 7'!Q44,'Trial 8'!Q44)","v":{"v":9338543.243820677,"d":"$9,338,543"}},{"$f":"SUM('Trial 1'!R44,'Trial 2'!R44,'Trial 3'!R44,'Trial 4'!R44,'Trial 5'!R44,'Trial 6'!R44,'Trial 7'!R44,'Trial 8'!R44)","v":{"v":9216521.40499716,"d":"$9,216,521"}},{"$f":"SUM('Trial 1'!S44,'Trial 2'!S44,'Trial 3'!S44,'Trial 4'!S44,'Trial 5'!S44,'Trial 6'!S44,'Trial 7'!S44,'Trial 8'!S44)","v":{"v":9231998.058891498,"d":"$9,231,998"}},{"$f":"SUM('Trial 1'!T44,'Trial 2'!T44,'Trial 3'!T44,'Trial 4'!T44,'Trial 5'!T44,'Trial 6'!T44,'Trial 7'!T44,'Trial 8'!T44)","v":{"v":9184672.802696759,"d":"$9,184,673"}},{"$f":"SUM('Trial 1'!U44,'Trial 2'!U44,'Trial 3'!U44,'Trial 4'!U44,'Trial 5'!U44,'Trial 6'!U44,'Trial 7'!U44,'Trial 8'!U44)","v":{"v":9101746.347679846,"d":"$9,101,746"}},{"$f":"SUM('Trial 1'!V44,'Trial 2'!V44,'Trial 3'!V44,'Trial 4'!V44,'Trial 5'!V44,'Trial 6'!V44,'Trial 7'!V44,'Trial 8'!V44)","v":{"v":9205701.596514463,"d":"$9,205,702"}},{"$f":"SUM('Trial 1'!W44,'Trial 2'!W44,'Trial 3'!W44,'Trial 4'!W44,'Trial 5'!W44,'Trial 6'!W44,'Trial 7'!W44,'Trial 8'!W44)","v":{"v":9095841.936242232,"d":"$9,095,842"}},{"$f":"SUM('Trial 1'!X44,'Trial 2'!X44,'Trial 3'!X44,'Trial 4'!X44,'Trial 5'!X44,'Trial 6'!X44,'Trial 7'!X44,'Trial 8'!X44)","v":{"v":9150288.624004895,"d":"$9,150,289"}},{"$f":"SUM('Trial 1'!Y44,'Trial 2'!Y44,'Trial 3'!Y44,'Trial 4'!Y44,'Trial 5'!Y44,'Trial 6'!Y44,'Trial 7'!Y44,'Trial 8'!Y44)","v":{"v":9029037.573520271,"d":"$9,029,038"}},{"$f":"SUM('Trial 1'!Z44,'Trial 2'!Z44,'Trial 3'!Z44,'Trial 4'!Z44,'Trial 5'!Z44,'Trial 6'!Z44,'Trial 7'!Z44,'Trial 8'!Z44)","v":{"v":9155783.946443282,"d":"$9,155,784"}},{"$f":"SUM(O83:Z83)","v":{"v":110107064.33461964,"d":"$110,107,064"}},{"$f":"SUM('Trial 1'!AB44,'Trial 2'!AB44,'Trial 3'!AB44,'Trial 4'!AB44,'Trial 5'!AB44,'Trial 6'!AB44,'Trial 7'!AB44,'Trial 8'!AB44)","v":{"v":8997181.800802995,"d":"$8,997,182"}},{"$f":"SUM('Trial 1'!AC44,'Trial 2'!AC44,'Trial 3'!AC44,'Trial 4'!AC44,'Trial 5'!AC44,'Trial 6'!AC44,'Trial 7'!AC44,'Trial 8'!AC44)","v":{"v":9040349.647201862,"d":"$9,040,350"}},{"$f":"SUM('Trial 1'!AD44,'Trial 2'!AD44,'Trial 3'!AD44,'Trial 4'!AD44,'Trial 5'!AD44,'Trial 6'!AD44,'Trial 7'!AD44,'Trial 8'!AD44)","v":{"v":9189782.226740649,"d":"$9,189,782"}},{"$f":"SUM('Trial 1'!AE44,'Trial 2'!AE44,'Trial 3'!AE44,'Trial 4'!AE44,'Trial 5'!AE44,'Trial 6'!AE44,'Trial 7'!AE44,'Trial 8'!AE44)","v":{"v":8907417.702551462,"d":"$8,907,418"}},{"$f":"SUM('Trial 1'!AF44,'Trial 2'!AF44,'Trial 3'!AF44,'Trial 4'!AF44,'Trial 5'!AF44,'Trial 6'!AF44,'Trial 7'!AF44,'Trial 8'!AF44)","v":{"v":9047275.236854617,"d":"$9,047,275"}},{"$f":"SUM('Trial 1'!AG44,'Trial 2'!AG44,'Trial 3'!AG44,'Trial 4'!AG44,'Trial 5'!AG44,'Trial 6'!AG44,'Trial 7'!AG44,'Trial 8'!AG44)","v":{"v":9047102.183248855,"d":"$9,047,102"}},{"$f":"SUM('Trial 1'!AH44,'Trial 2'!AH44,'Trial 3'!AH44,'Trial 4'!AH44,'Trial 5'!AH44,'Trial 6'!AH44,'Trial 7'!AH44,'Trial 8'!AH44)","v":{"v":9074316.896333713,"d":"$9,074,317"}},{"$f":"SUM('Trial 1'!AI44,'Trial 2'!AI44,'Trial 3'!AI44,'Trial 4'!AI44,'Trial 5'!AI44,'Trial 6'!AI44,'Trial 7'!AI44,'Trial 8'!AI44)","v":{"v":8842642.320640972,"d":"$8,842,642"}},{"$f":"SUM('Trial 1'!AJ44,'Trial 2'!AJ44,'Trial 3'!AJ44,'Trial 4'!AJ44,'Trial 5'!AJ44,'Trial 6'!AJ44,'Trial 7'!AJ44,'Trial 8'!AJ44)","v":{"v":9011024.044122366,"d":"$9,011,024"}},{"$f":"SUM('Trial 1'!AK44,'Trial 2'!AK44,'Trial 3'!AK44,'Trial 4'!AK44,'Trial 5'!AK44,'Trial 6'!AK44,'Trial 7'!AK44,'Trial 8'!AK44)","v":{"v":9024968.109372592,"d":"$9,024,968"}},{"$f":"SUM('Trial 1'!AL44,'Trial 2'!AL44,'Trial 3'!AL44,'Trial 4'!AL44,'Trial 5'!AL44,'Trial 6'!AL44,'Trial 7'!AL44,'Trial 8'!AL44)","v":{"v":8914557.547821015,"d":"$8,914,558"}},{"$f":"SUM('Trial 1'!AM44,'Trial 2'!AM44,'Trial 3'!AM44,'Trial 4'!AM44,'Trial 5'!AM44,'Trial 6'!AM44,'Trial 7'!AM44,'Trial 8'!AM44)","v":{"v":9023068.803266028,"d":"$9,023,069"}},{"$f":"SUM(AB83:AM83)","v":{"v":108119686.51895712,"d":"$108,119,687"}},{"$f":"SUM('Trial 1'!AO44,'Trial 2'!AO44,'Trial 3'!AO44,'Trial 4'!AO44,'Trial 5'!AO44,'Trial 6'!AO44,'Trial 7'!AO44,'Trial 8'!AO44)","v":{"v":8782278.028944531,"d":"$8,782,278"}},{"$f":"SUM('Trial 1'!AP44,'Trial 2'!AP44,'Trial 3'!AP44,'Trial 4'!AP44,'Trial 5'!AP44,'Trial 6'!AP44,'Trial 7'!AP44,'Trial 8'!AP44)","v":{"v":8831129.48856255,"d":"$8,831,129"}},{"$f":"SUM('Trial 1'!AQ44,'Trial 2'!AQ44,'Trial 3'!AQ44,'Trial 4'!AQ44,'Trial 5'!AQ44,'Trial 6'!AQ44,'Trial 7'!AQ44,'Trial 8'!AQ44)","v":{"v":9003403.724724645,"d":"$9,003,404"}},{"$f":"SUM('Trial 1'!AR44,'Trial 2'!AR44,'Trial 3'!AR44,'Trial 4'!AR44,'Trial 5'!AR44,'Trial 6'!AR44,'Trial 7'!AR44,'Trial 8'!AR44)","v":{"v":8903354.054848898,"d":"$8,903,354"}},{"$f":"SUM('Trial 1'!AS44,'Trial 2'!AS44,'Trial 3'!AS44,'Trial 4'!AS44,'Trial 5'!AS44,'Trial 6'!AS44,'Trial 7'!AS44,'Trial 8'!AS44)","v":{"v":8730482.032275697,"d":"$8,730,482"}},{"$f":"SUM('Trial 1'!AT44,'Trial 2'!AT44,'Trial 3'!AT44,'Trial 4'!AT44,'Trial 5'!AT44,'Trial 6'!AT44,'Trial 7'!AT44,'Trial 8'!AT44)","v":{"v":8724836.591394098,"d":"$8,724,837"}},{"$f":"SUM('Trial 1'!AU44,'Trial 2'!AU44,'Trial 3'!AU44,'Trial 4'!AU44,'Trial 5'!AU44,'Trial 6'!AU44,'Trial 7'!AU44,'Trial 8'!AU44)","v":{"v":8968565.545727814,"d":"$8,968,566"}},{"$f":"SUM('Trial 1'!AV44,'Trial 2'!AV44,'Trial 3'!AV44,'Trial 4'!AV44,'Trial 5'!AV44,'Trial 6'!AV44,'Trial 7'!AV44,'Trial 8'!AV44)","v":{"v":8964139.513288265,"d":"$8,964,140"}},{"$f":"SUM('Trial 1'!AW44,'Trial 2'!AW44,'Trial 3'!AW44,'Trial 4'!AW44,'Trial 5'!AW44,'Trial 6'!AW44,'Trial 7'!AW44,'Trial 8'!AW44)","v":{"v":8773581.554273903,"d":"$8,773,582"}},{"$f":"SUM('Trial 1'!AX44,'Trial 2'!AX44,'Trial 3'!AX44,'Trial 4'!AX44,'Trial 5'!AX44,'Trial 6'!AX44,'Trial 7'!AX44,'Trial 8'!AX44)","v":{"v":8868789.852267131,"d":"$8,868,790"}},{"$f":"SUM('Trial 1'!AY44,'Trial 2'!AY44,'Trial 3'!AY44,'Trial 4'!AY44,'Trial 5'!AY44,'Trial 6'!AY44,'Trial 7'!AY44,'Trial 8'!AY44)","v":{"v":8783455.435315728,"d":"$8,783,455"}},{"$f":"SUM('Trial 1'!AZ44,'Trial 2'!AZ44,'Trial 3'!AZ44,'Trial 4'!AZ44,'Trial 5'!AZ44,'Trial 6'!AZ44,'Trial 7'!AZ44,'Trial 8'!AZ44)","v":{"v":8828796.902109984,"d":"$8,828,797"}},{"$f":"SUM(AO83:AZ83)","v":{"v":106162812.72373323,"d":"$106,162,813"}},{"$f":"SUM('Trial 1'!BB44,'Trial 2'!BB44,'Trial 3'!BB44,'Trial 4'!BB44,'Trial 5'!BB44,'Trial 6'!BB44,'Trial 7'!BB44,'Trial 8'!BB44)","v":{"v":8781586.614559794,"d":"$8,781,587"}},{"$f":"SUM('Trial 1'!BC44,'Trial 2'!BC44,'Trial 3'!BC44,'Trial 4'!BC44,'Trial 5'!BC44,'Trial 6'!BC44,'Trial 7'!BC44,'Trial 8'!BC44)","v":{"v":8906774.695832344,"d":"$8,906,775"}},{"$f":"SUM('Trial 1'!BD44,'Trial 2'!BD44,'Trial 3'!BD44,'Trial 4'!BD44,'Trial 5'!BD44,'Trial 6'!BD44,'Trial 7'!BD44,'Trial 8'!BD44)","v":{"v":8941748.767159138,"d":"$8,941,749"}},{"$f":"SUM('Trial 1'!BE44,'Trial 2'!BE44,'Trial 3'!BE44,'Trial 4'!BE44,'Trial 5'!BE44,'Trial 6'!BE44,'Trial 7'!BE44,'Trial 8'!BE44)","v":{"v":8807438.563644124,"d":"$8,807,439"}},{"$f":"SUM('Trial 1'!BF44,'Trial 2'!BF44,'Trial 3'!BF44,'Trial 4'!BF44,'Trial 5'!BF44,'Trial 6'!BF44,'Trial 7'!BF44,'Trial 8'!BF44)","v":{"v":8726262.624636829,"d":"$8,726,263"}},{"$f":"SUM('Trial 1'!BG44,'Trial 2'!BG44,'Trial 3'!BG44,'Trial 4'!BG44,'Trial 5'!BG44,'Trial 6'!BG44,'Trial 7'!BG44,'Trial 8'!BG44)","v":{"v":8706648.544719327,"d":"$8,706,649"}},{"$f":"SUM('Trial 1'!BH44,'Trial 2'!BH44,'Trial 3'!BH44,'Trial 4'!BH44,'Trial 5'!BH44,'Trial 6'!BH44,'Trial 7'!BH44,'Trial 8'!BH44)","v":{"v":8870406.67151113,"d":"$8,870,407"}},{"$f":"SUM('Trial 1'!BI44,'Trial 2'!BI44,'Trial 3'!BI44,'Trial 4'!BI44,'Trial 5'!BI44,'Trial 6'!BI44,'Trial 7'!BI44,'Trial 8'!BI44)","v":{"v":8682863.645565487,"d":"$8,682,864"}},{"$f":"SUM('Trial 1'!BJ44,'Trial 2'!BJ44,'Trial 3'!BJ44,'Trial 4'!BJ44,'Trial 5'!BJ44,'Trial 6'!BJ44,'Trial 7'!BJ44,'Trial 8'!BJ44)","v":{"v":8729414.307245757,"d":"$8,729,414"}},{"$f":"SUM('Trial 1'!BK44,'Trial 2'!BK44,'Trial 3'!BK44,'Trial 4'!BK44,'Trial 5'!BK44,'Trial 6'!BK44,'Trial 7'!BK44,'Trial 8'!BK44)","v":{"v":8728876.016282052,"d":"$8,728,876"}},{"$f":"SUM('Trial 1'!BL44,'Trial 2'!BL44,'Trial 3'!BL44,'Trial 4'!BL44,'Trial 5'!BL44,'Trial 6'!BL44,'Trial 7'!BL44,'Trial 8'!BL44)","v":{"v":8656886.369993249,"d":"$8,656,886"}},{"$f":"SUM('Trial 1'!BM44,'Trial 2'!BM44,'Trial 3'!BM44,'Trial 4'!BM44,'Trial 5'!BM44,'Trial 6'!BM44,'Trial 7'!BM44,'Trial 8'!BM44)","v":{"v":8616968.05508865,"d":"$8,616,968"}},{"$f":"SUM(BB83:BM83)","v":{"v":105155874.8762379,"d":"$105,155,875"}},{"$f":"SUM('Trial 1'!BO44,'Trial 2'!BO44,'Trial 3'!BO44,'Trial 4'!BO44,'Trial 5'!BO44,'Trial 6'!BO44,'Trial 7'!BO44,'Trial 8'!BO44)","v":{"v":8517701.015333366,"d":"$8,517,701"}},{"$f":"SUM('Trial 1'!BP44,'Trial 2'!BP44,'Trial 3'!BP44,'Trial 4'!BP44,'Trial 5'!BP44,'Trial 6'!BP44,'Trial 7'!BP44,'Trial 8'!BP44)","v":{"v":8767348.017543096,"d":"$8,767,348"}},{"$f":"SUM('Trial 1'!BQ44,'Trial 2'!BQ44,'Trial 3'!BQ44,'Trial 4'!BQ44,'Trial 5'!BQ44,'Trial 6'!BQ44,'Trial 7'!BQ44,'Trial 8'!BQ44)","v":{"v":8623098.534579625,"d":"$8,623,099"}},{"$f":"SUM('Trial 1'!BR44,'Trial 2'!BR44,'Trial 3'!BR44,'Trial 4'!BR44,'Trial 5'!BR44,'Trial 6'!BR44,'Trial 7'!BR44,'Trial 8'!BR44)","v":{"v":8828066.300052116,"d":"$8,828,066"}},{"$f":"SUM('Trial 1'!BS44,'Trial 2'!BS44,'Trial 3'!BS44,'Trial 4'!BS44,'Trial 5'!BS44,'Trial 6'!BS44,'Trial 7'!BS44,'Trial 8'!BS44)","v":{"v":8635876.600243691,"d":"$8,635,877"}},{"$f":"SUM('Trial 1'!BT44,'Trial 2'!BT44,'Trial 3'!BT44,'Trial 4'!BT44,'Trial 5'!BT44,'Trial 6'!BT44,'Trial 7'!BT44,'Trial 8'!BT44)","v":{"v":8708850.654302303,"d":"$8,708,851"}},{"$f":"SUM('Trial 1'!BU44,'Trial 2'!BU44,'Trial 3'!BU44,'Trial 4'!BU44,'Trial 5'!BU44,'Trial 6'!BU44,'Trial 7'!BU44,'Trial 8'!BU44)","v":{"v":8557260.663464187,"d":"$8,557,261"}},{"$f":"SUM('Trial 1'!BV44,'Trial 2'!BV44,'Trial 3'!BV44,'Trial 4'!BV44,'Trial 5'!BV44,'Trial 6'!BV44,'Trial 7'!BV44,'Trial 8'!BV44)","v":{"v":8538180.1565375,"d":"$8,538,180"}},{"$f":"SUM('Trial 1'!BW44,'Trial 2'!BW44,'Trial 3'!BW44,'Trial 4'!BW44,'Trial 5'!BW44,'Trial 6'!BW44,'Trial 7'!BW44,'Trial 8'!BW44)","v":{"v":8737024.186759077,"d":"$8,737,024"}},{"$f":"SUM('Trial 1'!BX44,'Trial 2'!BX44,'Trial 3'!BX44,'Trial 4'!BX44,'Trial 5'!BX44,'Trial 6'!BX44,'Trial 7'!BX44,'Trial 8'!BX44)","v":{"v":8464225.802896312,"d":"$8,464,226"}},{"$f":"SUM('Trial 1'!BY44,'Trial 2'!BY44,'Trial 3'!BY44,'Trial 4'!BY44,'Trial 5'!BY44,'Trial 6'!BY44,'Trial 7'!BY44,'Trial 8'!BY44)","v":{"v":8636523.844845008,"d":"$8,636,524"}},{"$f":"SUM('Trial 1'!BZ44,'Trial 2'!BZ44,'Trial 3'!BZ44,'Trial 4'!BZ44,'Trial 5'!BZ44,'Trial 6'!BZ44,'Trial 7'!BZ44,'Trial 8'!BZ44)","v":{"v":8594008.522656854,"d":"$8,594,009"}},{"$f":"SUM(BO83:BZ83)","v":{"v":103608164.29921314,"d":"$103,608,164"}},{"$f":"SUM('Trial 1'!CB44,'Trial 2'!CB44,'Trial 3'!CB44,'Trial 4'!CB44,'Trial 5'!CB44,'Trial 6'!CB44,'Trial 7'!CB44,'Trial 8'!CB44)","v":{"v":8566804.367066883,"d":"$8,566,804"}},{"$f":"SUM('Trial 1'!CC44,'Trial 2'!CC44,'Trial 3'!CC44,'Trial 4'!CC44,'Trial 5'!CC44,'Trial 6'!CC44,'Trial 7'!CC44,'Trial 8'!CC44)","v":{"v":8565797.281486727,"d":"$8,565,797"}},{"$f":"SUM('Trial 1'!CD44,'Trial 2'!CD44,'Trial 3'!CD44,'Trial 4'!CD44,'Trial 5'!CD44,'Trial 6'!CD44,'Trial 7'!CD44,'Trial 8'!CD44)","v":{"v":8409106.035268066,"d":"$8,409,106"}},{"$f":"SUM('Trial 1'!CE44,'Trial 2'!CE44,'Trial 3'!CE44,'Trial 4'!CE44,'Trial 5'!CE44,'Trial 6'!CE44,'Trial 7'!CE44,'Trial 8'!CE44)","v":{"v":8431036.278055612,"d":"$8,431,036"}},{"$f":"SUM('Trial 1'!CF44,'Trial 2'!CF44,'Trial 3'!CF44,'Trial 4'!CF44,'Trial 5'!CF44,'Trial 6'!CF44,'Trial 7'!CF44,'Trial 8'!CF44)","v":{"v":8490699.888123523,"d":"$8,490,700"}},{"$f":"SUM('Trial 1'!CG44,'Trial 2'!CG44,'Trial 3'!CG44,'Trial 4'!CG44,'Trial 5'!CG44,'Trial 6'!CG44,'Trial 7'!CG44,'Trial 8'!CG44)","v":{"v":8522523.540863194,"d":"$8,522,524"}},{"$f":"SUM('Trial 1'!CH44,'Trial 2'!CH44,'Trial 3'!CH44,'Trial 4'!CH44,'Trial 5'!CH44,'Trial 6'!CH44,'Trial 7'!CH44,'Trial 8'!CH44)","v":{"v":8413737.318872832,"d":"$8,413,737"}},{"$f":"SUM('Trial 1'!CI44,'Trial 2'!CI44,'Trial 3'!CI44,'Trial 4'!CI44,'Trial 5'!CI44,'Trial 6'!CI44,'Trial 7'!CI44,'Trial 8'!CI44)","v":{"v":8462927.458050976,"d":"$8,462,927"}},{"$f":"SUM('Trial 1'!CJ44,'Trial 2'!CJ44,'Trial 3'!CJ44,'Trial 4'!CJ44,'Trial 5'!CJ44,'Trial 6'!CJ44,'Trial 7'!CJ44,'Trial 8'!CJ44)","v":{"v":8612914.293501416,"d":"$8,612,914"}},{"$f":"SUM('Trial 1'!CK44,'Trial 2'!CK44,'Trial 3'!CK44,'Trial 4'!CK44,'Trial 5'!CK44,'Trial 6'!CK44,'Trial 7'!CK44,'Trial 8'!CK44)","v":{"v":8488159.307080306,"d":"$8,488,159"}},{"$f":"SUM('Trial 1'!CL44,'Trial 2'!CL44,'Trial 3'!CL44,'Trial 4'!CL44,'Trial 5'!CL44,'Trial 6'!CL44,'Trial 7'!CL44,'Trial 8'!CL44)","v":{"v":8413728.063322328,"d":"$8,413,728"}},{"$f":"SUM('Trial 1'!CM44,'Trial 2'!CM44,'Trial 3'!CM44,'Trial 4'!CM44,'Trial 5'!CM44,'Trial 6'!CM44,'Trial 7'!CM44,'Trial 8'!CM44)","v":{"v":8277192.533787004,"d":"$8,277,193"}},{"$f":"SUM(CB83:CM83)","v":{"v":101654626.36547889,"d":"$101,654,626"}},{"$f":"SUM('Trial 1'!CO44,'Trial 2'!CO44,'Trial 3'!CO44,'Trial 4'!CO44,'Trial 5'!CO44,'Trial 6'!CO44,'Trial 7'!CO44,'Trial 8'!CO44)","v":{"v":8411219.132600795,"d":"$8,411,219"}},{"$f":"SUM('Trial 1'!CP44,'Trial 2'!CP44,'Trial 3'!CP44,'Trial 4'!CP44,'Trial 5'!CP44,'Trial 6'!CP44,'Trial 7'!CP44,'Trial 8'!CP44)","v":{"v":8367336.956973365,"d":"$8,367,337"}},{"$f":"SUM('Trial 1'!CQ44,'Trial 2'!CQ44,'Trial 3'!CQ44,'Trial 4'!CQ44,'Trial 5'!CQ44,'Trial 6'!CQ44,'Trial 7'!CQ44,'Trial 8'!CQ44)","v":{"v":8449606.114450809,"d":"$8,449,606"}},{"$f":"SUM('Trial 1'!CR44,'Trial 2'!CR44,'Trial 3'!CR44,'Trial 4'!CR44,'Trial 5'!CR44,'Trial 6'!CR44,'Trial 7'!CR44,'Trial 8'!CR44)","v":{"v":8374218.194806768,"d":"$8,374,218"}},{"$f":"SUM('Trial 1'!CS44,'Trial 2'!CS44,'Trial 3'!CS44,'Trial 4'!CS44,'Trial 5'!CS44,'Trial 6'!CS44,'Trial 7'!CS44,'Trial 8'!CS44)","v":{"v":8432800.6836427,"d":"$8,432,801"}},{"$f":"SUM('Trial 1'!CT44,'Trial 2'!CT44,'Trial 3'!CT44,'Trial 4'!CT44,'Trial 5'!CT44,'Trial 6'!CT44,'Trial 7'!CT44,'Trial 8'!CT44)","v":{"v":8360531.8777169855,"d":"$8,360,532"}},{"$f":"SUM('Trial 1'!CU44,'Trial 2'!CU44,'Trial 3'!CU44,'Trial 4'!CU44,'Trial 5'!CU44,'Trial 6'!CU44,'Trial 7'!CU44,'Trial 8'!CU44)","v":{"v":8442944.31242243,"d":"$8,442,944"}},{"$f":"SUM('Trial 1'!CV44,'Trial 2'!CV44,'Trial 3'!CV44,'Trial 4'!CV44,'Trial 5'!CV44,'Trial 6'!CV44,'Trial 7'!CV44,'Trial 8'!CV44)","v":{"v":8373578.572309434,"d":"$8,373,579"}},{"$f":"SUM('Trial 1'!CW44,'Trial 2'!CW44,'Trial 3'!CW44,'Trial 4'!CW44,'Trial 5'!CW44,'Trial 6'!CW44,'Trial 7'!CW44,'Trial 8'!CW44)","v":{"v":8260610.6668208735,"d":"$8,260,611"}},{"$f":"SUM('Trial 1'!CX44,'Trial 2'!CX44,'Trial 3'!CX44,'Trial 4'!CX44,'Trial 5'!CX44,'Trial 6'!CX44,'Trial 7'!CX44,'Trial 8'!CX44)","v":{"v":8418967.10057794,"d":"$8,418,967"}},{"$f":"SUM('Trial 1'!CY44,'Trial 2'!CY44,'Trial 3'!CY44,'Trial 4'!CY44,'Trial 5'!CY44,'Trial 6'!CY44,'Trial 7'!CY44,'Trial 8'!CY44)","v":{"v":8440843.559212247,"d":"$8,440,844"}},{"$f":"SUM('Trial 1'!CZ44,'Trial 2'!CZ44,'Trial 3'!CZ44,'Trial 4'!CZ44,'Trial 5'!CZ44,'Trial 6'!CZ44,'Trial 7'!CZ44,'Trial 8'!CZ44)","v":{"v":8468954.549874397,"d":"$8,468,955"}},{"$f":"SUM(CO83:CZ83)","v":{"v":100801611.72140874,"d":"$100,801,612"}},{"$f":"SUM('Trial 1'!DB44,'Trial 2'!DB44,'Trial 3'!DB44,'Trial 4'!DB44,'Trial 5'!DB44,'Trial 6'!DB44,'Trial 7'!DB44,'Trial 8'!DB44)","v":{"v":8288416.721715245,"d":"$8,288,417"}},{"$f":"SUM('Trial 1'!DC44,'Trial 2'!DC44,'Trial 3'!DC44,'Trial 4'!DC44,'Trial 5'!DC44,'Trial 6'!DC44,'Trial 7'!DC44,'Trial 8'!DC44)","v":{"v":8304879.279455207,"d":"$8,304,879"}},{"$f":"SUM('Trial 1'!DD44,'Trial 2'!DD44,'Trial 3'!DD44,'Trial 4'!DD44,'Trial 5'!DD44,'Trial 6'!DD44,'Trial 7'!DD44,'Trial 8'!DD44)","v":{"v":8292596.840087382,"d":"$8,292,597"}},{"$f":"SUM('Trial 1'!DE44,'Trial 2'!DE44,'Trial 3'!DE44,'Trial 4'!DE44,'Trial 5'!DE44,'Trial 6'!DE44,'Trial 7'!DE44,'Trial 8'!DE44)","v":{"v":8387183.9402690325,"d":"$8,387,184"}},{"$f":"SUM('Trial 1'!DF44,'Trial 2'!DF44,'Trial 3'!DF44,'Trial 4'!DF44,'Trial 5'!DF44,'Trial 6'!DF44,'Trial 7'!DF44,'Trial 8'!DF44)","v":{"v":8333168.699682337,"d":"$8,333,169"}},{"$f":"SUM('Trial 1'!DG44,'Trial 2'!DG44,'Trial 3'!DG44,'Trial 4'!DG44,'Trial 5'!DG44,'Trial 6'!DG44,'Trial 7'!DG44,'Trial 8'!DG44)","v":{"v":8195713.781299611,"d":"$8,195,714"}},{"$f":"SUM('Trial 1'!DH44,'Trial 2'!DH44,'Trial 3'!DH44,'Trial 4'!DH44,'Trial 5'!DH44,'Trial 6'!DH44,'Trial 7'!DH44,'Trial 8'!DH44)","v":{"v":8343183.133583643,"d":"$8,343,183"}},{"$f":"SUM('Trial 1'!DI44,'Trial 2'!DI44,'Trial 3'!DI44,'Trial 4'!DI44,'Trial 5'!DI44,'Trial 6'!DI44,'Trial 7'!DI44,'Trial 8'!DI44)","v":{"v":8281020.881823293,"d":"$8,281,021"}},{"$f":"SUM('Trial 1'!DJ44,'Trial 2'!DJ44,'Trial 3'!DJ44,'Trial 4'!DJ44,'Trial 5'!DJ44,'Trial 6'!DJ44,'Trial 7'!DJ44,'Trial 8'!DJ44)","v":{"v":8354835.2158411825,"d":"$8,354,835"}},{"$f":"SUM('Trial 1'!DK44,'Trial 2'!DK44,'Trial 3'!DK44,'Trial 4'!DK44,'Trial 5'!DK44,'Trial 6'!DK44,'Trial 7'!DK44,'Trial 8'!DK44)","v":{"v":8313235.553137731,"d":"$8,313,236"}},{"$f":"SUM('Trial 1'!DL44,'Trial 2'!DL44,'Trial 3'!DL44,'Trial 4'!DL44,'Trial 5'!DL44,'Trial 6'!DL44,'Trial 7'!DL44,'Trial 8'!DL44)","v":{"v":8170417.674314471,"d":"$8,170,418"}},{"$f":"SUM('Trial 1'!DM44,'Trial 2'!DM44,'Trial 3'!DM44,'Trial 4'!DM44,'Trial 5'!DM44,'Trial 6'!DM44,'Trial 7'!DM44,'Trial 8'!DM44)","v":{"v":8330015.102399125,"d":"$8,330,015"}},{"$f":"SUM(DB83:DM83)","v":{"v":99594666.82360826,"d":"$99,594,667"}},{"$f":"SUM('Trial 1'!DO44,'Trial 2'!DO44,'Trial 3'!DO44,'Trial 4'!DO44,'Trial 5'!DO44,'Trial 6'!DO44,'Trial 7'!DO44,'Trial 8'!DO44)","v":{"v":8317852.171662557,"d":"$8,317,852"}},{"$f":"SUM('Trial 1'!DP44,'Trial 2'!DP44,'Trial 3'!DP44,'Trial 4'!DP44,'Trial 5'!DP44,'Trial 6'!DP44,'Trial 7'!DP44,'Trial 8'!DP44)","v":{"v":8197296.905480776,"d":"$8,197,297"}},{"$f":"SUM('Trial 1'!DQ44,'Trial 2'!DQ44,'Trial 3'!DQ44,'Trial 4'!DQ44,'Trial 5'!DQ44,'Trial 6'!DQ44,'Trial 7'!DQ44,'Trial 8'!DQ44)","v":{"v":8271858.322605798,"d":"$8,271,858"}},{"$f":"SUM('Trial 1'!DR44,'Trial 2'!DR44,'Trial 3'!DR44,'Trial 4'!DR44,'Trial 5'!DR44,'Trial 6'!DR44,'Trial 7'!DR44,'Trial 8'!DR44)","v":{"v":8196896.1246931385,"d":"$8,196,896"}},{"$f":"SUM('Trial 1'!DS44,'Trial 2'!DS44,'Trial 3'!DS44,'Trial 4'!DS44,'Trial 5'!DS44,'Trial 6'!DS44,'Trial 7'!DS44,'Trial 8'!DS44)","v":{"v":8267666.402903001,"d":"$8,267,666"}},{"$f":"SUM('Trial 1'!DT44,'Trial 2'!DT44,'Trial 3'!DT44,'Trial 4'!DT44,'Trial 5'!DT44,'Trial 6'!DT44,'Trial 7'!DT44,'Trial 8'!DT44)","v":{"v":8156431.09574482,"d":"$8,156,431"}},{"$f":"SUM('Trial 1'!DU44,'Trial 2'!DU44,'Trial 3'!DU44,'Trial 4'!DU44,'Trial 5'!DU44,'Trial 6'!DU44,'Trial 7'!DU44,'Trial 8'!DU44)","v":{"v":8243685.8357941145,"d":"$8,243,686"}},{"$f":"SUM('Trial 1'!DV44,'Trial 2'!DV44,'Trial 3'!DV44,'Trial 4'!DV44,'Trial 5'!DV44,'Trial 6'!DV44,'Trial 7'!DV44,'Trial 8'!DV44)","v":{"v":8021624.8977737585,"d":"$8,021,625"}},{"$f":"SUM('Trial 1'!DW44,'Trial 2'!DW44,'Trial 3'!DW44,'Trial 4'!DW44,'Trial 5'!DW44,'Trial 6'!DW44,'Trial 7'!DW44,'Trial 8'!DW44)","v":{"v":8269115.185505031,"d":"$8,269,115"}},{"$f":"SUM('Trial 1'!DX44,'Trial 2'!DX44,'Trial 3'!DX44,'Trial 4'!DX44,'Trial 5'!DX44,'Trial 6'!DX44,'Trial 7'!DX44,'Trial 8'!DX44)","v":{"v":8156150.06699948,"d":"$8,156,150"}},{"$f":"SUM('Trial 1'!DY44,'Trial 2'!DY44,'Trial 3'!DY44,'Trial 4'!DY44,'Trial 5'!DY44,'Trial 6'!DY44,'Trial 7'!DY44,'Trial 8'!DY44)","v":{"v":8200731.682031528,"d":"$8,200,732"}},{"$f":"SUM('Trial 1'!DZ44,'Trial 2'!DZ44,'Trial 3'!DZ44,'Trial 4'!DZ44,'Trial 5'!DZ44,'Trial 6'!DZ44,'Trial 7'!DZ44,'Trial 8'!DZ44)","v":{"v":8131948.395424414,"d":"$8,131,948"}},{"$f":"SUM(DO83:DZ83)","v":{"v":98431257.08661841,"d":"$98,431,257"}},{"$f":"SUM('Trial 1'!EB44,'Trial 2'!EB44,'Trial 3'!EB44,'Trial 4'!EB44,'Trial 5'!EB44,'Trial 6'!EB44,'Trial 7'!EB44,'Trial 8'!EB44)","v":{"v":8236837.363857533,"d":"$8,236,837"}},{"$f":"SUM('Trial 1'!EC44,'Trial 2'!EC44,'Trial 3'!EC44,'Trial 4'!EC44,'Trial 5'!EC44,'Trial 6'!EC44,'Trial 7'!EC44,'Trial 8'!EC44)","v":{"v":8214445.755753836,"d":"$8,214,446"}},{"$f":"SUM('Trial 1'!ED44,'Trial 2'!ED44,'Trial 3'!ED44,'Trial 4'!ED44,'Trial 5'!ED44,'Trial 6'!ED44,'Trial 7'!ED44,'Trial 8'!ED44)","v":{"v":7966705.158812573,"d":"$7,966,705"}},{"$f":"SUM('Trial 1'!EE44,'Trial 2'!EE44,'Trial 3'!EE44,'Trial 4'!EE44,'Trial 5'!EE44,'Trial 6'!EE44,'Trial 7'!EE44,'Trial 8'!EE44)","v":{"v":8150300.678785968,"d":"$8,150,301"}},{"$f":"SUM('Trial 1'!EF44,'Trial 2'!EF44,'Trial 3'!EF44,'Trial 4'!EF44,'Trial 5'!EF44,'Trial 6'!EF44,'Trial 7'!EF44,'Trial 8'!EF44)","v":{"v":8108044.925485797,"d":"$8,108,045"}},{"$f":"SUM('Trial 1'!EG44,'Trial 2'!EG44,'Trial 3'!EG44,'Trial 4'!EG44,'Trial 5'!EG44,'Trial 6'!EG44,'Trial 7'!EG44,'Trial 8'!EG44)","v":{"v":8092321.270216135,"d":"$8,092,321"}},{"$f":"SUM('Trial 1'!EH44,'Trial 2'!EH44,'Trial 3'!EH44,'Trial 4'!EH44,'Trial 5'!EH44,'Trial 6'!EH44,'Trial 7'!EH44,'Trial 8'!EH44)","v":{"v":8132345.823848965,"d":"$8,132,346"}},{"$f":"SUM('Trial 1'!EI44,'Trial 2'!EI44,'Trial 3'!EI44,'Trial 4'!EI44,'Trial 5'!EI44,'Trial 6'!EI44,'Trial 7'!EI44,'Trial 8'!EI44)","v":{"v":8105401.220450143,"d":"$8,105,401"}},{"$f":"SUM('Trial 1'!EJ44,'Trial 2'!EJ44,'Trial 3'!EJ44,'Trial 4'!EJ44,'Trial 5'!EJ44,'Trial 6'!EJ44,'Trial 7'!EJ44,'Trial 8'!EJ44)","v":{"v":8120102.983545174,"d":"$8,120,103"}},{"$f":"SUM('Trial 1'!EK44,'Trial 2'!EK44,'Trial 3'!EK44,'Trial 4'!EK44,'Trial 5'!EK44,'Trial 6'!EK44,'Trial 7'!EK44,'Trial 8'!EK44)","v":{"v":8009786.146263771,"d":"$8,009,786"}},{"$f":"SUM('Trial 1'!EL44,'Trial 2'!EL44,'Trial 3'!EL44,'Trial 4'!EL44,'Trial 5'!EL44,'Trial 6'!EL44,'Trial 7'!EL44,'Trial 8'!EL44)","v":{"v":8082696.700746094,"d":"$8,082,697"}},{"$f":"SUM('Trial 1'!EM44,'Trial 2'!EM44,'Trial 3'!EM44,'Trial 4'!EM44,'Trial 5'!EM44,'Trial 6'!EM44,'Trial 7'!EM44,'Trial 8'!EM44)","v":{"v":8174750.653469398,"d":"$8,174,751"}},{"$f":"SUM(EB83:EM83)","v":{"v":97393738.68123539,"d":"$97,393,739"}}]
[{"$f":"Labels!B68","v":"Potential Output"}]
[{"$f":"Labels!D96","v":"Trials"},{"$f":"ZZZ__FnCalls!F7","v":"Jan 2010"},{"$f":"ZZZ__FnCalls!F8","v":"Feb 2010"},{"$f":"ZZZ__FnCalls!F9","v":"Mar 2010"},{"$f":"ZZZ__FnCalls!F10","v":"Apr 2010"},{"$f":"ZZZ__FnCalls!F11","v":"May 2010"},{"$f":"ZZZ__FnCalls!F12","v":"Jun 2010"},{"$f":"ZZZ__FnCalls!F13","v":"Jul 2010"},{"$f":"ZZZ__FnCalls!F14","v":"Aug 2010"},{"$f":"ZZZ__FnCalls!F15","v":"Sep 2010"},{"$f":"ZZZ__FnCalls!F16","v":"Oct 2010"},{"$f":"ZZZ__FnCalls!F17","v":"Nov 2010"},{"$f":"ZZZ__FnCalls!F18","v":"Dec 2010"},{"$f":"ZZZ__FnCalls!H7","v":"2010"},{"$f":"ZZZ__FnCalls!F19","v":"Jan 2011"},{"$f":"ZZZ__FnCalls!F20","v":"Feb 2011"},{"$f":"ZZZ__FnCalls!F21","v":"Mar 2011"},{"$f":"ZZZ__FnCalls!F22","v":"Apr 2011"},{"$f":"ZZZ__FnCalls!F23","v":"May 2011"},{"$f":"ZZZ__FnCalls!F24","v":"Jun 2011"},{"$f":"ZZZ__FnCalls!F25","v":"Jul 2011"},{"$f":"ZZZ__FnCalls!F26","v":"Aug 2011"},{"$f":"ZZZ__FnCalls!F27","v":"Sep 2011"},{"$f":"ZZZ__FnCalls!F28","v":"Oct 2011"},{"$f":"ZZZ__FnCalls!F29","v":"Nov 2011"},{"$f":"ZZZ__FnCalls!F30","v":"Dec 2011"},{"$f":"ZZZ__FnCalls!H19","v":"2011"},{"$f":"ZZZ__FnCalls!F31","v":"Jan 2012"},{"$f":"ZZZ__FnCalls!F32","v":"Feb 2012"},{"$f":"ZZZ__FnCalls!F33","v":"Mar 2012"},{"$f":"ZZZ__FnCalls!F34","v":"Apr 2012"},{"$f":"ZZZ__FnCalls!F35","v":"May 2012"},{"$f":"ZZZ__FnCalls!F36","v":"Jun 2012"},{"$f":"ZZZ__FnCalls!F37","v":"Jul 2012"},{"$f":"ZZZ__FnCalls!F38","v":"Aug 2012"},{"$f":"ZZZ__FnCalls!F39","v":"Sep 2012"},{"$f":"ZZZ__FnCalls!F40","v":"Oct 2012"},{"$f":"ZZZ__FnCalls!F41","v":"Nov 2012"},{"$f":"ZZZ__FnCalls!F42","v":"Dec 2012"},{"$f":"ZZZ__FnCalls!H31","v":"2012"},{"$f":"ZZZ__FnCalls!F43","v":"Jan 2013"},{"$f":"ZZZ__FnCalls!F44","v":"Feb 2013"},{"$f":"ZZZ__FnCalls!F45","v":"Mar 2013"},{"$f":"ZZZ__FnCalls!F46","v":"Apr 2013"},{"$f":"ZZZ__FnCalls!F47","v":"May 2013"},{"$f":"ZZZ__FnCalls!F48","v":"Jun 2013"},{"$f":"ZZZ__FnCalls!F49","v":"Jul 2013"},{"$f":"ZZZ__FnCalls!F50","v":"Aug 2013"},{"$f":"ZZZ__FnCalls!F51","v":"Sep 2013"},{"$f":"ZZZ__FnCalls!F52","v":"Oct 2013"},{"$f":"ZZZ__FnCalls!F53","v":"Nov 2013"},{"$f":"ZZZ__FnCalls!F54","v":"Dec 2013"},{"$f":"ZZZ__FnCalls!H43","v":"2013"},{"$f":"ZZZ__FnCalls!F55","v":"Jan 2014"},{"$f":"ZZZ__FnCalls!F56","v":"Feb 2014"},{"$f":"ZZZ__FnCalls!F57","v":"Mar 2014"},{"$f":"ZZZ__FnCalls!F58","v":"Apr 2014"},{"$f":"ZZZ__FnCalls!F59","v":"May 2014"},{"$f":"ZZZ__FnCalls!F60","v":"Jun 2014"},{"$f":"ZZZ__FnCalls!F61","v":"Jul 2014"},{"$f":"ZZZ__FnCalls!F62","v":"Aug 2014"},{"$f":"ZZZ__FnCalls!F63","v":"Sep 2014"},{"$f":"ZZZ__FnCalls!F64","v":"Oct 2014"},{"$f":"ZZZ__FnCalls!F65","v":"Nov 2014"},{"$f":"ZZZ__FnCalls!F66","v":"Dec 2014"},{"$f":"ZZZ__FnCalls!H55","v":"2014"},{"$f":"ZZZ__FnCalls!F67","v":"Jan 2015"},{"$f":"ZZZ__FnCalls!F68","v":"Feb 2015"},{"$f":"ZZZ__FnCalls!F69","v":"Mar 2015"},{"$f":"ZZZ__FnCalls!F70","v":"Apr 2015"},{"$f":"ZZZ__FnCalls!F71","v":"May 2015"},{"$f":"ZZZ__FnCalls!F72","v":"Jun 2015"},{"$f":"ZZZ__FnCalls!F73","v":"Jul 2015"},{"$f":"ZZZ__FnCalls!F74","v":"Aug 2015"},{"$f":"ZZZ__FnCalls!F75","v":"Sep 2015"},{"$f":"ZZZ__FnCalls!F76","v":"Oct 2015"},{"$f":"ZZZ__FnCalls!F77","v":"Nov 2015"},{"$f":"ZZZ__FnCalls!F78","v":"Dec 2015"},{"$f":"ZZZ__FnCalls!H67","v":"2015"},{"$f":"ZZZ__FnCalls!F79","v":"Jan 2016"},{"$f":"ZZZ__FnCalls!F80","v":"Feb 2016"},{"$f":"ZZZ__FnCalls!F81","v":"Mar 2016"},{"$f":"ZZZ__FnCalls!F82","v":"Apr 2016"},{"$f":"ZZZ__FnCalls!F83","v":"May 2016"},{"$f":"ZZZ__FnCalls!F84","v":"Jun 2016"},{"$f":"ZZZ__FnCalls!F85","v":"Jul 2016"},{"$f":"ZZZ__FnCalls!F86","v":"Aug 2016"},{"$f":"ZZZ__FnCalls!F87","v":"Sep 2016"},{"$f":"ZZZ__FnCalls!F88","v":"Oct 2016"},{"$f":"ZZZ__FnCalls!F89","v":"Nov 2016"},{"$f":"ZZZ__FnCalls!F90","v":"Dec 2016"},{"$f":"ZZZ__FnCalls!H79","v":"2016"},{"$f":"ZZZ__FnCalls!F91","v":"Jan 2017"},{"$f":"ZZZ__FnCalls!F92","v":"Feb 2017"},{"$f":"ZZZ__FnCalls!F93","v":"Mar 2017"},{"$f":"ZZZ__FnCalls!F94","v":"Apr 2017"},{"$f":"ZZZ__FnCalls!F95","v":"May 2017"},{"$f":"ZZZ__FnCalls!F96","v":"Jun 2017"},{"$f":"ZZZ__FnCalls!F97","v":"Jul 2017"},{"$f":"ZZZ__FnCalls!F98","v":"Aug 2017"},{"$f":"ZZZ__FnCalls!F99","v":"Sep 2017"},{"$f":"ZZZ__FnCalls!F100","v":"Oct 2017"},{"$f":"ZZZ__FnCalls!F101","v":"Nov 2017"},{"$f":"ZZZ__FnCalls!F102","v":"Dec 2017"},{"$f":"ZZZ__FnCalls!H91","v":"2017"},{"$f":"ZZZ__FnCalls!F103","v":"Jan 2018"},{"$f":"ZZZ__FnCalls!F104","v":"Feb 2018"},{"$f":"ZZZ__FnCalls!F105","v":"Mar 2018"},{"$f":"ZZZ__FnCalls!F106","v":"Apr 2018"},{"$f":"ZZZ__FnCalls!F107","v":"May 2018"},{"$f":"ZZZ__FnCalls!F108","v":"Jun 2018"},{"$f":"ZZZ__FnCalls!F109","v":"Jul 2018"},{"$f":"ZZZ__FnCalls!F110","v":"Aug 2018"},{"$f":"ZZZ__FnCalls!F111","v":"Sep 2018"},{"$f":"ZZZ__FnCalls!F112","v":"Oct 2018"},{"$f":"ZZZ__FnCalls!F113","v":"Nov 2018"},{"$f":"ZZZ__FnCalls!F114","v":"Dec 2018"},{"$f":"ZZZ__FnCalls!H103","v":"2018"},{"$f":"ZZZ__FnCalls!F115","v":"Jan 2019"},{"$f":"ZZZ__FnCalls!F116","v":"Feb 2019"},{"$f":"ZZZ__FnCalls!F117","v":"Mar 2019"},{"$f":"ZZZ__FnCalls!F118","v":"Apr 2019"},{"$f":"ZZZ__FnCalls!F119","v":"May 2019"},{"$f":"ZZZ__FnCalls!F120","v":"Jun 2019"},{"$f":"ZZZ__FnCalls!F121","v":"Jul 2019"},{"$f":"ZZZ__FnCalls!F122","v":"Aug 2019"},{"$f":"ZZZ__FnCalls!F123","v":"Sep 2019"},{"$f":"ZZZ__FnCalls!F124","v":"Oct 2019"},{"$f":"ZZZ__FnCalls!F125","v":"Nov 2019"},{"$f":"ZZZ__FnCalls!F126","v":"Dec 2019"},{"$f":"ZZZ__FnCalls!H115","v":"2019"},{"$f":"ZZZ__FnCalls!F127","v":"Jan 2020"},{"$f":"ZZZ__FnCalls!F128","v":"Feb 2020"},{"$f":"ZZZ__FnCalls!F129","v":"Mar 2020"},{"$f":"ZZZ__FnCalls!F130","v":"Apr 2020"},{"$f":"ZZZ__FnCalls!F131","v":"May 2020"},{"$f":"ZZZ__FnCalls!F132","v":"Jun 2020"},{"$f":"ZZZ__FnCalls!F133","v":"Jul 2020"},{"$f":"ZZZ__FnCalls!F134","v":"Aug 2020"},{"$f":"ZZZ__FnCalls!F135","v":"Sep 2020"},{"$f":"ZZZ__FnCalls!F136","v":"Oct 2020"},{"$f":"ZZZ__FnCalls!F137","v":"Nov 2020"},{"$f":"ZZZ__FnCalls!F138","v":"Dec 2020"},{"$f":"ZZZ__FnCalls!H127","v":"2020"}]
[{"$f":"Labels!B96","v":"Trial 01"},{"$f":"'Trial 1'!B45","v":{"v":1166666.6666666667,"d":"$1,166,667"}},{"$f":"'Trial 1'!C45","v":{"v":1166666.6666666667,"d":"$1,166,667"}},{"$f":"'Trial 1'!D45","v":{"v":1166622.0560271668,"d":"$1,166,622"}},{"$f":"'Trial 1'!E45","v":{"v":1166546.0423975303,"d":"$1,166,546"}},{"$f":"'Trial 1'!F45","v":{"v":1166436.1967943555,"d":"$1,166,436"}},{"$f":"'Trial 1'!G45","v":{"v":1166289.5179010401,"d":"$1,166,290"}},{"$f":"'Trial 1'!H45","v":{"v":1166116.8891189452,"d":"$1,166,117"}},{"$f":"'Trial 1'!I45","v":{"v":1165912.9383423086,"d":"$1,165,913"}},{"$f":"'Trial 1'!J45","v":{"v":1165672.566120229,"d":"$1,165,673"}},{"$f":"'Trial 1'!K45","v":{"v":1165398.839591055,"d":"$1,165,399"}},{"$f":"'Trial 1'!L45","v":{"v":1165096.2445109335,"d":"$1,165,096"}},{"$f":"'Trial 1'!M45","v":{"v":1164774.136208803,"d":"$1,164,774"}},{"$f":"SUM('Trial 1'!B45:M45)","v":{"v":13992198.760345701,"d":"$13,992,199"}},{"$f":"'Trial 1'!O45","v":{"v":1164428.8324985108,"d":"$1,164,429"}},{"$f":"'Trial 1'!P45","v":{"v":1164057.9125221919,"d":"$1,164,058"}},{"$f":"'Trial 1'!Q45","v":{"v":1163655.6308311766,"d":"$1,163,656"}},{"$f":"'Trial 1'!R45","v":{"v":1163226.5103387223,"d":"$1,163,227"}},{"$f":"'Trial 1'!S45","v":{"v":1162758.5309245891,"d":"$1,162,759"}},{"$f":"'Trial 1'!T45","v":{"v":1162268.6838496763,"d":"$1,162,269"}},{"$f":"'Trial 1'!U45","v":{"v":1161743.5460251763,"d":"$1,161,744"}},{"$f":"'Trial 1'!V45","v":{"v":1161188.2434133948,"d":"$1,161,188"}},{"$f":"'Trial 1'!W45","v":{"v":1160600.7649462742,"d":"$1,160,601"}},{"$f":"'Trial 1'!X45","v":{"v":1159981.9197269,"d":"$1,159,982"}},{"$f":"'Trial 1'!Y45","v":{"v":1159339.0584354158,"d":"$1,159,339"}},{"$f":"'Trial 1'!Z45","v":{"v":1158674.7209754537,"d":"$1,158,675"}},{"$f":"SUM('Trial 1'!O45:Z45)","v":{"v":13941924.354487482,"d":"$13,941,924"}},{"$f":"'Trial 1'!AB45","v":{"v":1157999.0999914398,"d":"$1,157,999"}},{"$f":"'Trial 1'!AC45","v":{"v":1157299.6837368058,"d":"$1,157,300"}},{"$f":"'Trial 1'!AD45","v":{"v":1156582.4907418704,"d":"$1,156,582"}},{"$f":"'Trial 1'!AE45","v":{"v":1155859.331344066,"d":"$1,155,859"}},{"$f":"'Trial 1'!AF45","v":{"v":1155114.7296318505,"d":"$1,155,115"}},{"$f":"'Trial 1'!AG45","v":{"v":1154346.9464232249,"d":"$1,154,347"}},{"$f":"'Trial 1'!AH45","v":{"v":1153562.7452038305,"d":"$1,153,563"}},{"$f":"'Trial 1'!AI45","v":{"v":1152761.9984471358,"d":"$1,152,762"}},{"$f":"'Trial 1'!AJ45","v":{"v":1151949.3511543937,"d":"$1,151,949"}},{"$f":"'Trial 1'!AK45","v":{"v":1151119.4899749192,"d":"$1,151,119"}},{"$f":"'Trial 1'!AL45","v":{"v":1150285.319476732,"d":"$1,150,285"}},{"$f":"'Trial 1'!AM45","v":{"v":1149439.414033881,"d":"$1,149,439"}},{"$f":"SUM('Trial 1'!AB45:AM45)","v":{"v":13846320.60016015,"d":"$13,846,321"}},{"$f":"'Trial 1'!AO45","v":{"v":1148578.2771689033,"d":"$1,148,578"}},{"$f":"'Trial 1'!AP45","v":{"v":1147698.0896550945,"d":"$1,147,698"}},{"$f":"'Trial 1'!AQ45","v":{"v":1146799.5799622322,"d":"$1,146,800"}},{"$f":"'Trial 1'!AR45","v":{"v":1145901.6278891505,"d":"$1,145,902"}},{"$f":"'Trial 1'!AS45","v":{"v":1144984.7812690223,"d":"$1,144,985"}},{"$f":"'Trial 1'!AT45","v":{"v":1144063.186878619,"d":"$1,144,063"}},{"$f":"'Trial 1'!AU45","v":{"v":1143132.6144283698,"d":"$1,143,133"}},{"$f":"'Trial 1'!AV45","v":{"v":1142197.4795720372,"d":"$1,142,197"}},{"$f":"'Trial 1'!AW45","v":{"v":1141251.9260737759,"d":"$1,141,252"}},{"$f":"'Trial 1'!AX45","v":{"v":1140292.700391948,"d":"$1,140,293"}},{"$f":"'Trial 1'!AY45","v":{"v":1139324.482913419,"d":"$1,139,324"}},{"$f":"'Trial 1'!AZ45","v":{"v":1138356.304101694,"d":"$1,138,356"}},{"$f":"SUM('Trial 1'!AO45:AZ45)","v":{"v":13722581.050304268,"d":"$13,722,581"}},{"$f":"'Trial 1'!BB45","v":{"v":1137382.9618120156,"d":"$1,137,383"}},{"$f":"'Trial 1'!BC45","v":{"v":1136394.913269549,"d":"$1,136,395"}},{"$f":"'Trial 1'!BD45","v":{"v":1135392.0921328007,"d":"$1,135,392"}},{"$f":"'Trial 1'!BE45","v":{"v":1134383.8766015735,"d":"$1,134,384"}},{"$f":"'Trial 1'!BF45","v":{"v":1133365.9252913739,"d":"$1,133,366"}},{"$f":"'Trial 1'!BG45","v":{"v":1132348.4529915059,"d":"$1,132,348"}},{"$f":"'Trial 1'!BH45","v":{"v":1131327.714195114,"d":"$1,131,328"}},{"$f":"'Trial 1'!BI45","v":{"v":1130303.588018257,"d":"$1,130,304"}},{"$f":"'Trial 1'!BJ45","v":{"v":1129277.9234548116,"d":"$1,129,278"}},{"$f":"'Trial 1'!BK45","v":{"v":1128245.2331639058,"d":"$1,128,245"}},{"$f":"'Trial 1'!BL45","v":{"v":1127205.551578681,"d":"$1,127,206"}},{"$f":"'Trial 1'!BM45","v":{"v":1126152.6125115878,"d":"$1,126,153"}},{"$f":"SUM('Trial 1'!BB45:BM45)","v":{"v":13581780.845021175,"d":"$13,581,781"}},{"$f":"'Trial 1'!BO45","v":{"v":1125097.807111956,"d":"$1,125,098"}},{"$f":"'Trial 1'!BP45","v":{"v":1124033.225111279,"d":"$1,124,033"}},{"$f":"'Trial 1'!BQ45","v":{"v":1122968.783919912,"d":"$1,122,969"}},{"$f":"'Trial 1'!BR45","v":{"v":1121897.2538558836,"d":"$1,121,897"}},{"$f":"'Trial 1'!BS45","v":{"v":1120833.3385888548,"d":"$1,120,833"}},{"$f":"'Trial 1'!BT45","v":{"v":1119770.908404451,"d":"$1,119,771"}},{"$f":"'Trial 1'!BU45","v":{"v":1118706.4929875128,"d":"$1,118,706"}},{"$f":"'Trial 1'!BV45","v":{"v":1117630.4895203235,"d":"$1,117,630"}},{"$f":"'Trial 1'!BW45","v":{"v":1116545.98651897,"d":"$1,116,546"}},{"$f":"'Trial 1'!BX45","v":{"v":1115457.6599493893,"d":"$1,115,458"}},{"$f":"'Trial 1'!BY45","v":{"v":1114373.8805970622,"d":"$1,114,374"}},{"$f":"'Trial 1'!BZ45","v":{"v":1113282.1391699072,"d":"$1,113,282"}},{"$f":"SUM('Trial 1'!BO45:BZ45)","v":{"v":13430597.9657355,"d":"$13,430,598"}},{"$f":"'Trial 1'!CB45","v":{"v":1112180.5386936495,"d":"$1,112,181"}},{"$f":"'Trial 1'!CC45","v":{"v":1111084.87055607,"d":"$1,111,085"}},{"$f":"'Trial 1'!CD45","v":{"v":1109987.0875425343,"d":"$1,109,987"}},{"$f":"'Trial 1'!CE45","v":{"v":1108880.5003739216,"d":"$1,108,881"}},{"$f":"'Trial 1'!CF45","v":{"v":1107781.5017373431,"d":"$1,107,782"}},{"$f":"'Trial 1'!CG45","v":{"v":1106676.03727994,"d":"$1,106,676"}},{"$f":"'Trial 1'!CH45","v":{"v":1105570.2291751874,"d":"$1,105,570"}},{"$f":"'Trial 1'!CI45","v":{"v":1104467.1775906775,"d":"$1,104,467"}},{"$f":"'Trial 1'!CJ45","v":{"v":1103363.821918606,"d":"$1,103,364"}},{"$f":"'Trial 1'!CK45","v":{"v":1102262.54121286,"d":"$1,102,263"}},{"$f":"'Trial 1'!CL45","v":{"v":1101162.0872310116,"d":"$1,101,162"}},{"$f":"'Trial 1'!CM45","v":{"v":1100052.8838922658,"d":"$1,100,053"}},{"$f":"SUM('Trial 1'!CB45:CM45)","v":{"v":13273469.27720407,"d":"$13,273,469"}},{"$f":"'Trial 1'!CO45","v":{"v":1098950.353205544,"d":"$1,098,950"}},{"$f":"'Trial 1'!CP45","v":{"v":1097849.0617329914,"d":"$1,097,849"}},{"$f":"'Trial 1'!CQ45","v":{"v":1096743.2341924922,"d":"$1,096,743"}},{"$f":"'Trial 1'!CR45","v":{"v":1095644.4074374307,"d":"$1,095,644"}},{"$f":"'Trial 1'!CS45","v":{"v":1094535.4719781722,"d":"$1,094,535"}},{"$f":"'Trial 1'!CT45","v":{"v":1093427.6340112016,"d":"$1,093,428"}},{"$f":"'Trial 1'!CU45","v":{"v":1092311.8500699755,"d":"$1,092,312"}},{"$f":"'Trial 1'!CV45","v":{"v":1091200.259146545,"d":"$1,091,200"}},{"$f":"'Trial 1'!CW45","v":{"v":1090083.3191727593,"d":"$1,090,083"}},{"$f":"'Trial 1'!CX45","v":{"v":1088970.5289532624,"d":"$1,088,971"}},{"$f":"'Trial 1'!CY45","v":{"v":1087851.268109156,"d":"$1,087,851"}},{"$f":"'Trial 1'!CZ45","v":{"v":1086741.9709045852,"d":"$1,086,742"}},{"$f":"SUM('Trial 1'!CO45:CZ45)","v":{"v":13114309.358914115,"d":"$13,114,309"}},{"$f":"'Trial 1'!DB45","v":{"v":1085644.0314691782,"d":"$1,085,644"}},{"$f":"'Trial 1'!DC45","v":{"v":1084539.34833311,"d":"$1,084,539"}},{"$f":"'Trial 1'!DD45","v":{"v":1083438.1517592457,"d":"$1,083,438"}},{"$f":"'Trial 1'!DE45","v":{"v":1082344.2357400018,"d":"$1,082,344"}},{"$f":"'Trial 1'!DF45","v":{"v":1081253.5732790492,"d":"$1,081,254"}},{"$f":"'Trial 1'!DG45","v":{"v":1080171.1671611087,"d":"$1,080,171"}},{"$f":"'Trial 1'!DH45","v":{"v":1079096.4771552254,"d":"$1,079,096"}},{"$f":"'Trial 1'!DI45","v":{"v":1078021.9268081314,"d":"$1,078,022"}},{"$f":"'Trial 1'!DJ45","v":{"v":1076953.4447479362,"d":"$1,076,953"}},{"$f":"'Trial 1'!DK45","v":{"v":1075882.0421888814,"d":"$1,075,882"}},{"$f":"'Trial 1'!DL45","v":{"v":1074817.0770760935,"d":"$1,074,817"}},{"$f":"'Trial 1'!DM45","v":{"v":1073764.5688175138,"d":"$1,073,765"}},{"$f":"SUM('Trial 1'!DB45:DM45)","v":{"v":12955926.044535475,"d":"$12,955,926"}},{"$f":"'Trial 1'!DO45","v":{"v":1072707.6392237472,"d":"$1,072,708"}},{"$f":"'Trial 1'!DP45","v":{"v":1071655.3371150019,"d":"$1,071,655"}},{"$f":"'Trial 1'!DQ45","v":{"v":1070615.2452030797,"d":"$1,070,615"}},{"$f":"'Trial 1'!DR45","v":{"v":1069575.156076281,"d":"$1,069,575"}},{"$f":"'Trial 1'!DS45","v":{"v":1068540.9132569616,"d":"$1,068,541"}},{"$f":"'Trial 1'!DT45","v":{"v":1067510.9845427636,"d":"$1,067,511"}},{"$f":"'Trial 1'!DU45","v":{"v":1066482.2820842892,"d":"$1,066,482"}},{"$f":"'Trial 1'!DV45","v":{"v":1065454.437825043,"d":"$1,065,454"}},{"$f":"'Trial 1'!DW45","v":{"v":1064432.4732810766,"d":"$1,064,432"}},{"$f":"'Trial 1'!DX45","v":{"v":1063406.5546664954,"d":"$1,063,407"}},{"$f":"'Trial 1'!DY45","v":{"v":1062379.1353600286,"d":"$1,062,379"}},{"$f":"'Trial 1'!DZ45","v":{"v":1061362.0025297306,"d":"$1,061,362"}},{"$f":"SUM('Trial 1'!DO45:DZ45)","v":{"v":12804122.161164498,"d":"$12,804,122"}},{"$f":"'Trial 1'!EB45","v":{"v":1060352.8782216252,"d":"$1,060,353"}},{"$f":"'Trial 1'!EC45","v":{"v":1059342.4794202216,"d":"$1,059,342"}},{"$f":"'Trial 1'!ED45","v":{"v":1058338.1026475492,"d":"$1,058,338"}},{"$f":"'Trial 1'!EE45","v":{"v":1057336.686407422,"d":"$1,057,337"}},{"$f":"'Trial 1'!EF45","v":{"v":1056338.3787963754,"d":"$1,056,338"}},{"$f":"'Trial 1'!EG45","v":{"v":1055334.609867137,"d":"$1,055,335"}},{"$f":"'Trial 1'!EH45","v":{"v":1054333.5196119444,"d":"$1,054,334"}},{"$f":"'Trial 1'!EI45","v":{"v":1053333.7598364446,"d":"$1,053,334"}},{"$f":"'Trial 1'!EJ45","v":{"v":1052336.64582653,"d":"$1,052,337"}},{"$f":"'Trial 1'!EK45","v":{"v":1051337.3480823315,"d":"$1,051,337"}},{"$f":"'Trial 1'!EL45","v":{"v":1050343.5716701273,"d":"$1,050,344"}},{"$f":"'Trial 1'!EM45","v":{"v":1049352.133599743,"d":"$1,049,352"}},{"$f":"SUM('Trial 1'!EB45:EM45)","v":{"v":12658080.113987453,"d":"$12,658,080"}}]
[{"$f":"Labels!B97","v":"Trial 02"},{"$f":"'Trial 2'!B45","v":{"v":1166666.6666666667,"d":"$1,166,667"}},{"$f":"'Trial 2'!C45","v":{"v":1166666.6666666667,"d":"$1,166,667"}},{"$f":"'Trial 2'!D45","v":{"v":1166624.2187139338,"d":"$1,166,624"}},{"$f":"'Trial 2'!E45","v":{"v":1166534.8720595671,"d":"$1,166,535"}},{"$f":"'Trial 2'!F45","v":{"v":1166409.80225496,"d":"$1,166,410"}},{"$f":"'Trial 2'!G45","v":{"v":1166260.4309479278,"d":"$1,166,260"}},{"$f":"'Trial 2'!H45","v":{"v":1166078.8066857564,"d":"$1,166,079"}},{"$f":"'Trial 2'!I45","v":{"v":1165858.9383054685,"d":"$1,165,859"}},{"$f":"'Trial 2'!J45","v":{"v":1165605.5971022455,"d":"$1,165,606"}},{"$f":"'Trial 2'!K45","v":{"v":1165312.5457392437,"d":"$1,165,313"}},{"$f":"'Trial 2'!L45","v":{"v":1164991.0091331275,"d":"$1,164,991"}},{"$f":"'Trial 2'!M45","v":{"v":1164640.170218871,"d":"$1,164,640"}},{"$f":"SUM('Trial 2'!B45:M45)","v":{"v":13991649.724494435,"d":"$13,991,650"}},{"$f":"'Trial 2'!O45","v":{"v":1164252.6235697335,"d":"$1,164,253"}},{"$f":"'Trial 2'!P45","v":{"v":1163842.7080241237,"d":"$1,163,843"}},{"$f":"'Trial 2'!Q45","v":{"v":1163401.2284825528,"d":"$1,163,401"}},{"$f":"'Trial 2'!R45","v":{"v":1162938.7197828842,"d":"$1,162,939"}},{"$f":"'Trial 2'!S45","v":{"v":1162456.6230649697,"d":"$1,162,457"}},{"$f":"'Trial 2'!T45","v":{"v":1161947.5462196763,"d":"$1,161,948"}},{"$f":"'Trial 2'!U45","v":{"v":1161412.5040316018,"d":"$1,161,413"}},{"$f":"'Trial 2'!V45","v":{"v":1160852.2748195797,"d":"$1,160,852"}},{"$f":"'Trial 2'!W45","v":{"v":1160261.4001573145,"d":"$1,160,261"}},{"$f":"'Trial 2'!X45","v":{"v":1159643.3942739053,"d":"$1,159,643"}},{"$f":"'Trial 2'!Y45","v":{"v":1159000.871973843,"d":"$1,159,001"}},{"$f":"'Trial 2'!Z45","v":{"v":1158333.2762300794,"d":"$1,158,333"}},{"$f":"SUM('Trial 2'!O45:Z45)","v":{"v":13938343.170630263,"d":"$13,938,343"}},{"$f":"'Trial 2'!AB45","v":{"v":1157634.1247260794,"d":"$1,157,634"}},{"$f":"'Trial 2'!AC45","v":{"v":1156919.6921184312,"d":"$1,156,920"}},{"$f":"'Trial 2'!AD45","v":{"v":1156187.091933866,"d":"$1,156,187"}},{"$f":"'Trial 2'!AE45","v":{"v":1155437.543849275,"d":"$1,155,438"}},{"$f":"'Trial 2'!AF45","v":{"v":1154671.0893032067,"d":"$1,154,671"}},{"$f":"'Trial 2'!AG45","v":{"v":1153900.0642284197,"d":"$1,153,900"}},{"$f":"'Trial 2'!AH45","v":{"v":1153113.006379867,"d":"$1,153,113"}},{"$f":"'Trial 2'!AI45","v":{"v":1152307.605253306,"d":"$1,152,308"}},{"$f":"'Trial 2'!AJ45","v":{"v":1151490.658645558,"d":"$1,151,491"}},{"$f":"'Trial 2'!AK45","v":{"v":1150650.0338046642,"d":"$1,150,650"}},{"$f":"'Trial 2'!AL45","v":{"v":1149796.464796544,"d":"$1,149,796"}},{"$f":"'Trial 2'!AM45","v":{"v":1148934.2907194137,"d":"$1,148,934"}},{"$f":"SUM('Trial 2'!AB45:AM45)","v":{"v":13841041.66575863,"d":"$13,841,042"}},{"$f":"'Trial 2'!AO45","v":{"v":1148068.7521982563,"d":"$1,148,069"}},{"$f":"'Trial 2'!AP45","v":{"v":1147187.1073069538,"d":"$1,147,187"}},{"$f":"'Trial 2'!AQ45","v":{"v":1146292.2085144343,"d":"$1,146,292"}},{"$f":"'Trial 2'!AR45","v":{"v":1145389.3099924938,"d":"$1,145,389"}},{"$f":"'Trial 2'!AS45","v":{"v":1144478.2633979092,"d":"$1,144,478"}},{"$f":"'Trial 2'!AT45","v":{"v":1143553.2543371585,"d":"$1,143,553"}},{"$f":"'Trial 2'!AU45","v":{"v":1142621.0982922043,"d":"$1,142,621"}},{"$f":"'Trial 2'!AV45","v":{"v":1141681.9647371517,"d":"$1,141,682"}},{"$f":"'Trial 2'!AW45","v":{"v":1140734.46974563,"d":"$1,140,734"}},{"$f":"'Trial 2'!AX45","v":{"v":1139779.7143739017,"d":"$1,139,780"}},{"$f":"'Trial 2'!AY45","v":{"v":1138805.1036975426,"d":"$1,138,805"}},{"$f":"'Trial 2'!AZ45","v":{"v":1137820.469518119,"d":"$1,137,820"}},{"$f":"SUM('Trial 2'!AO45:AZ45)","v":{"v":13716411.716111755,"d":"$13,716,412"}},{"$f":"'Trial 2'!BB45","v":{"v":1136835.6081474456,"d":"$1,136,836"}},{"$f":"'Trial 2'!BC45","v":{"v":1135841.8802178802,"d":"$1,135,842"}},{"$f":"'Trial 2'!BD45","v":{"v":1134836.378423485,"d":"$1,134,836"}},{"$f":"'Trial 2'!BE45","v":{"v":1133824.853454022,"d":"$1,133,825"}},{"$f":"'Trial 2'!BF45","v":{"v":1132814.614392434,"d":"$1,132,815"}},{"$f":"'Trial 2'!BG45","v":{"v":1131797.1582848276,"d":"$1,131,797"}},{"$f":"'Trial 2'!BH45","v":{"v":1130779.4861253912,"d":"$1,130,779"}},{"$f":"'Trial 2'!BI45","v":{"v":1129749.4910042118,"d":"$1,129,749"}},{"$f":"'Trial 2'!BJ45","v":{"v":1128710.0114783866,"d":"$1,128,710"}},{"$f":"'Trial 2'!BK45","v":{"v":1127656.0442033315,"d":"$1,127,656"}},{"$f":"'Trial 2'!BL45","v":{"v":1126603.094482114,"d":"$1,126,603"}},{"$f":"'Trial 2'!BM45","v":{"v":1125542.9360400634,"d":"$1,125,543"}},{"$f":"SUM('Trial 2'!BB45:BM45)","v":{"v":13574991.556253593,"d":"$13,574,992"}},{"$f":"'Trial 2'!BO45","v":{"v":1124480.4948181426,"d":"$1,124,480"}},{"$f":"'Trial 2'!BP45","v":{"v":1123403.979849821,"d":"$1,123,404"}},{"$f":"'Trial 2'!BQ45","v":{"v":1122312.4866025567,"d":"$1,122,312"}},{"$f":"'Trial 2'!BR45","v":{"v":1121211.2250201376,"d":"$1,121,211"}},{"$f":"'Trial 2'!BS45","v":{"v":1120111.4768033796,"d":"$1,120,111"}},{"$f":"'Trial 2'!BT45","v":{"v":1119016.641482197,"d":"$1,119,017"}},{"$f":"'Trial 2'!BU45","v":{"v":1117910.2899433058,"d":"$1,117,910"}},{"$f":"'Trial 2'!BV45","v":{"v":1116811.4463295545,"d":"$1,116,811"}},{"$f":"'Trial 2'!BW45","v":{"v":1115706.3177281402,"d":"$1,115,706"}},{"$f":"'Trial 2'!BX45","v":{"v":1114603.7383196168,"d":"$1,114,604"}},{"$f":"'Trial 2'!BY45","v":{"v":1113500.571891761,"d":"$1,113,501"}},{"$f":"'Trial 2'!BZ45","v":{"v":1112385.5652560617,"d":"$1,112,386"}},{"$f":"SUM('Trial 2'!BO45:BZ45)","v":{"v":13421454.234044673,"d":"$13,421,454"}},{"$f":"'Trial 2'!CB45","v":{"v":1111281.2328834445,"d":"$1,111,281"}},{"$f":"'Trial 2'!CC45","v":{"v":1110177.8049668176,"d":"$1,110,178"}},{"$f":"'Trial 2'!CD45","v":{"v":1109078.1322449902,"d":"$1,109,078"}},{"$f":"'Trial 2'!CE45","v":{"v":1107973.3551980245,"d":"$1,107,973"}},{"$f":"'Trial 2'!CF45","v":{"v":1106866.977591607,"d":"$1,106,867"}},{"$f":"'Trial 2'!CG45","v":{"v":1105767.5908488424,"d":"$1,105,768"}},{"$f":"'Trial 2'!CH45","v":{"v":1104671.163664658,"d":"$1,104,671"}},{"$f":"'Trial 2'!CI45","v":{"v":1103580.7559526488,"d":"$1,103,581"}},{"$f":"'Trial 2'!CJ45","v":{"v":1102490.6129896264,"d":"$1,102,491"}},{"$f":"'Trial 2'!CK45","v":{"v":1101408.359033326,"d":"$1,101,408"}},{"$f":"'Trial 2'!CL45","v":{"v":1100318.5013804147,"d":"$1,100,319"}},{"$f":"'Trial 2'!CM45","v":{"v":1099228.0754732904,"d":"$1,099,228"}},{"$f":"SUM('Trial 2'!CB45:CM45)","v":{"v":13262842.562227689,"d":"$13,262,843"}},{"$f":"'Trial 2'!CO45","v":{"v":1098128.6535262265,"d":"$1,098,129"}},{"$f":"'Trial 2'!CP45","v":{"v":1097028.7843883573,"d":"$1,097,029"}},{"$f":"'Trial 2'!CQ45","v":{"v":1095925.5962708027,"d":"$1,095,926"}},{"$f":"'Trial 2'!CR45","v":{"v":1094823.8208696595,"d":"$1,094,824"}},{"$f":"'Trial 2'!CS45","v":{"v":1093726.222970742,"d":"$1,093,726"}},{"$f":"'Trial 2'!CT45","v":{"v":1092627.3872337674,"d":"$1,092,627"}},{"$f":"'Trial 2'!CU45","v":{"v":1091534.0178523469,"d":"$1,091,534"}},{"$f":"'Trial 2'!CV45","v":{"v":1090435.5923683904,"d":"$1,090,436"}},{"$f":"'Trial 2'!CW45","v":{"v":1089346.4527285872,"d":"$1,089,346"}},{"$f":"'Trial 2'!CX45","v":{"v":1088257.6199468982,"d":"$1,088,258"}},{"$f":"'Trial 2'!CY45","v":{"v":1087178.0300905784,"d":"$1,087,178"}},{"$f":"'Trial 2'!CZ45","v":{"v":1086088.5220733096,"d":"$1,086,089"}},{"$f":"SUM('Trial 2'!CO45:CZ45)","v":{"v":13105100.700319665,"d":"$13,105,101"}},{"$f":"'Trial 2'!DB45","v":{"v":1085007.163304483,"d":"$1,085,007"}},{"$f":"'Trial 2'!DC45","v":{"v":1083926.2687074852,"d":"$1,083,926"}},{"$f":"'Trial 2'!DD45","v":{"v":1082845.3272104661,"d":"$1,082,845"}},{"$f":"'Trial 2'!DE45","v":{"v":1081770.44267508,"d":"$1,081,770"}},{"$f":"'Trial 2'!DF45","v":{"v":1080695.1675135423,"d":"$1,080,695"}},{"$f":"'Trial 2'!DG45","v":{"v":1079626.5194640376,"d":"$1,079,627"}},{"$f":"'Trial 2'!DH45","v":{"v":1078566.5234709198,"d":"$1,078,567"}},{"$f":"'Trial 2'!DI45","v":{"v":1077508.8483989402,"d":"$1,077,509"}},{"$f":"'Trial 2'!DJ45","v":{"v":1076454.7302869847,"d":"$1,076,455"}},{"$f":"'Trial 2'!DK45","v":{"v":1075405.0640383407,"d":"$1,075,405"}},{"$f":"'Trial 2'!DL45","v":{"v":1074367.1556992838,"d":"$1,074,367"}},{"$f":"'Trial 2'!DM45","v":{"v":1073325.3614749634,"d":"$1,073,325"}},{"$f":"SUM('Trial 2'!DB45:DM45)","v":{"v":12949498.572244523,"d":"$12,949,499"}},{"$f":"'Trial 2'!DO45","v":{"v":1072274.6862827525,"d":"$1,072,275"}},{"$f":"'Trial 2'!DP45","v":{"v":1071219.6920326632,"d":"$1,071,220"}},{"$f":"'Trial 2'!DQ45","v":{"v":1070174.1006907301,"d":"$1,070,174"}},{"$f":"'Trial 2'!DR45","v":{"v":1069122.5514295602,"d":"$1,069,123"}},{"$f":"'Trial 2'!DS45","v":{"v":1068075.2889766768,"d":"$1,068,075"}},{"$f":"'Trial 2'!DT45","v":{"v":1067029.6237462375,"d":"$1,067,030"}},{"$f":"'Trial 2'!DU45","v":{"v":1065981.9687070844,"d":"$1,065,982"}},{"$f":"'Trial 2'!DV45","v":{"v":1064940.0904661783,"d":"$1,064,940"}},{"$f":"'Trial 2'!DW45","v":{"v":1063907.2191937745,"d":"$1,063,907"}},{"$f":"'Trial 2'!DX45","v":{"v":1062882.1668139861,"d":"$1,062,882"}},{"$f":"'Trial 2'!DY45","v":{"v":1061853.4425053066,"d":"$1,061,853"}},{"$f":"'Trial 2'!DZ45","v":{"v":1060833.7162735248,"d":"$1,060,834"}},{"$f":"SUM('Trial 2'!DO45:DZ45)","v":{"v":12798294.547118478,"d":"$12,798,295"}},{"$f":"'Trial 2'!EB45","v":{"v":1059817.3003355209,"d":"$1,059,817"}},{"$f":"'Trial 2'!EC45","v":{"v":1058797.1234758557,"d":"$1,058,797"}},{"$f":"'Trial 2'!ED45","v":{"v":1057787.13172076,"d":"$1,057,787"}},{"$f":"'Trial 2'!EE45","v":{"v":1056784.2811309535,"d":"$1,056,784"}},{"$f":"'Trial 2'!EF45","v":{"v":1055774.5226793028,"d":"$1,055,775"}},{"$f":"'Trial 2'!EG45","v":{"v":1054768.1119198054,"d":"$1,054,768"}},{"$f":"'Trial 2'!EH45","v":{"v":1053775.394267391,"d":"$1,053,775"}},{"$f":"'Trial 2'!EI45","v":{"v":1052779.7950311182,"d":"$1,052,780"}},{"$f":"'Trial 2'!EJ45","v":{"v":1051783.5525804677,"d":"$1,051,784"}},{"$f":"'Trial 2'!EK45","v":{"v":1050784.6900369453,"d":"$1,050,785"}},{"$f":"'Trial 2'!EL45","v":{"v":1049792.9487485108,"d":"$1,049,793"}},{"$f":"'Trial 2'!EM45","v":{"v":1048802.2529572179,"d":"$1,048,802"}},{"$f":"SUM('Trial 2'!EB45:EM45)","v":{"v":12651447.10488385,"d":"$12,651,447"}}]
[{"$f":"Labels!B98","v":"Trial 03"},{"$f":"'Trial 3'!B45","v":{"v":1166666.6666666667,"d":"$1,166,667"}},{"$f":"'Trial 3'!C45","v":{"v":1166666.6666666667,"d":"$1,166,667"}},{"$f":"'Trial 3'!D45","v":{"v":1166615.8566966692,"d":"$1,166,616"}},{"$f":"'Trial 3'!E45","v":{"v":1166528.2061401985,"d":"$1,166,528"}},{"$f":"'Trial 3'!F45","v":{"v":1166396.9929771663,"d":"$1,166,397"}},{"$f":"'Trial 3'!G45","v":{"v":1166238.3047140029,"d":"$1,166,238"}},{"$f":"'Trial 3'!H45","v":{"v":1166047.001647945,"d":"$1,166,047"}},{"$f":"'Trial 3'!I45","v":{"v":1165829.3172762448,"d":"$1,165,829"}},{"$f":"'Trial 3'!J45","v":{"v":1165575.3756011236,"d":"$1,165,575"}},{"$f":"'Trial 3'!K45","v":{"v":1165294.2718349008,"d":"$1,165,294"}},{"$f":"'Trial 3'!L45","v":{"v":1164974.2268017493,"d":"$1,164,974"}},{"$f":"'Trial 3'!M45","v":{"v":1164625.3032545222,"d":"$1,164,625"}},{"$f":"SUM('Trial 3'!B45:M45)","v":{"v":13991458.190277858,"d":"$13,991,458"}},{"$f":"'Trial 3'!O45","v":{"v":1164252.6879094737,"d":"$1,164,253"}},{"$f":"'Trial 3'!P45","v":{"v":1163846.0856866164,"d":"$1,163,846"}},{"$f":"'Trial 3'!Q45","v":{"v":1163413.3520446431,"d":"$1,163,413"}},{"$f":"'Trial 3'!R45","v":{"v":1162950.6604229207,"d":"$1,162,951"}},{"$f":"'Trial 3'!S45","v":{"v":1162469.816609165,"d":"$1,162,470"}},{"$f":"'Trial 3'!T45","v":{"v":1161968.0371495697,"d":"$1,161,968"}},{"$f":"'Trial 3'!U45","v":{"v":1161441.258024253,"d":"$1,161,441"}},{"$f":"'Trial 3'!V45","v":{"v":1160888.379045682,"d":"$1,160,888"}},{"$f":"'Trial 3'!W45","v":{"v":1160299.7397594438,"d":"$1,160,300"}},{"$f":"'Trial 3'!X45","v":{"v":1159683.4320016715,"d":"$1,159,683"}},{"$f":"'Trial 3'!Y45","v":{"v":1159048.2058305435,"d":"$1,159,048"}},{"$f":"'Trial 3'!Z45","v":{"v":1158393.0355645476,"d":"$1,158,393"}},{"$f":"SUM('Trial 3'!O45:Z45)","v":{"v":13938654.690048529,"d":"$13,938,655"}},{"$f":"'Trial 3'!AB45","v":{"v":1157714.8537811185,"d":"$1,157,715"}},{"$f":"'Trial 3'!AC45","v":{"v":1157005.925234633,"d":"$1,157,006"}},{"$f":"'Trial 3'!AD45","v":{"v":1156286.5347667052,"d":"$1,156,287"}},{"$f":"'Trial 3'!AE45","v":{"v":1155545.0182548754,"d":"$1,155,545"}},{"$f":"'Trial 3'!AF45","v":{"v":1154779.379075374,"d":"$1,154,779"}},{"$f":"'Trial 3'!AG45","v":{"v":1154002.578059614,"d":"$1,154,003"}},{"$f":"'Trial 3'!AH45","v":{"v":1153198.2142429508,"d":"$1,153,198"}},{"$f":"'Trial 3'!AI45","v":{"v":1152383.427580166,"d":"$1,152,383"}},{"$f":"'Trial 3'!AJ45","v":{"v":1151555.1381832145,"d":"$1,151,555"}},{"$f":"'Trial 3'!AK45","v":{"v":1150707.5946620272,"d":"$1,150,708"}},{"$f":"'Trial 3'!AL45","v":{"v":1149850.2204448476,"d":"$1,149,850"}},{"$f":"'Trial 3'!AM45","v":{"v":1148980.825268915,"d":"$1,148,981"}},{"$f":"SUM('Trial 3'!AB45:AM45)","v":{"v":13842009.70955444,"d":"$13,842,010"}},{"$f":"'Trial 3'!AO45","v":{"v":1148096.1011973007,"d":"$1,148,096"}},{"$f":"'Trial 3'!AP45","v":{"v":1147196.0311445545,"d":"$1,147,196"}},{"$f":"'Trial 3'!AQ45","v":{"v":1146290.1283029236,"d":"$1,146,290"}},{"$f":"'Trial 3'!AR45","v":{"v":1145380.051895274,"d":"$1,145,380"}},{"$f":"'Trial 3'!AS45","v":{"v":1144449.652833477,"d":"$1,144,450"}},{"$f":"'Trial 3'!AT45","v":{"v":1143507.0806586382,"d":"$1,143,507"}},{"$f":"'Trial 3'!AU45","v":{"v":1142559.8138626465,"d":"$1,142,560"}},{"$f":"'Trial 3'!AV45","v":{"v":1141599.7705303447,"d":"$1,141,600"}},{"$f":"'Trial 3'!AW45","v":{"v":1140624.6262129506,"d":"$1,140,625"}},{"$f":"'Trial 3'!AX45","v":{"v":1139643.2997775387,"d":"$1,139,643"}},{"$f":"'Trial 3'!AY45","v":{"v":1138647.3959586613,"d":"$1,138,647"}},{"$f":"'Trial 3'!AZ45","v":{"v":1137651.032773917,"d":"$1,137,651"}},{"$f":"SUM('Trial 3'!AO45:AZ45)","v":{"v":13715644.985148229,"d":"$13,715,645"}},{"$f":"'Trial 3'!BB45","v":{"v":1136640.851771392,"d":"$1,136,641"}},{"$f":"'Trial 3'!BC45","v":{"v":1135614.2121470845,"d":"$1,135,614"}},{"$f":"'Trial 3'!BD45","v":{"v":1134578.9551096717,"d":"$1,134,579"}},{"$f":"'Trial 3'!BE45","v":{"v":1133528.146351898,"d":"$1,133,528"}},{"$f":"'Trial 3'!BF45","v":{"v":1132477.303867812,"d":"$1,132,477"}},{"$f":"'Trial 3'!BG45","v":{"v":1131409.7550538767,"d":"$1,131,410"}},{"$f":"'Trial 3'!BH45","v":{"v":1130339.9352403055,"d":"$1,130,340"}},{"$f":"'Trial 3'!BI45","v":{"v":1129254.1365577218,"d":"$1,129,254"}},{"$f":"'Trial 3'!BJ45","v":{"v":1128158.4534911122,"d":"$1,128,158"}},{"$f":"'Trial 3'!BK45","v":{"v":1127060.9092882155,"d":"$1,127,061"}},{"$f":"'Trial 3'!BL45","v":{"v":1125960.4263643383,"d":"$1,125,960"}},{"$f":"'Trial 3'!BM45","v":{"v":1124854.6248893386,"d":"$1,124,855"}},{"$f":"SUM('Trial 3'!BB45:BM45)","v":{"v":13569877.710132767,"d":"$13,569,878"}},{"$f":"'Trial 3'!BO45","v":{"v":1123750.9783049189,"d":"$1,123,751"}},{"$f":"'Trial 3'!BP45","v":{"v":1122644.197180516,"d":"$1,122,644"}},{"$f":"'Trial 3'!BQ45","v":{"v":1121534.77499917,"d":"$1,121,535"}},{"$f":"'Trial 3'!BR45","v":{"v":1120426.0205462426,"d":"$1,120,426"}},{"$f":"'Trial 3'!BS45","v":{"v":1119309.3117052238,"d":"$1,119,309"}},{"$f":"'Trial 3'!BT45","v":{"v":1118191.7853950814,"d":"$1,118,192"}},{"$f":"'Trial 3'!BU45","v":{"v":1117077.727243377,"d":"$1,117,078"}},{"$f":"'Trial 3'!BV45","v":{"v":1115960.3897502793,"d":"$1,115,960"}},{"$f":"'Trial 3'!BW45","v":{"v":1114839.0397779923,"d":"$1,114,839"}},{"$f":"'Trial 3'!BX45","v":{"v":1113711.5416437585,"d":"$1,113,712"}},{"$f":"'Trial 3'!BY45","v":{"v":1112586.5955747191,"d":"$1,112,587"}},{"$f":"'Trial 3'!BZ45","v":{"v":1111453.944234053,"d":"$1,111,454"}},{"$f":"SUM('Trial 3'!BO45:BZ45)","v":{"v":13411486.306355333,"d":"$13,411,486"}},{"$f":"'Trial 3'!CB45","v":{"v":1110329.4552138448,"d":"$1,110,329"}},{"$f":"'Trial 3'!CC45","v":{"v":1109202.697508818,"d":"$1,109,203"}},{"$f":"'Trial 3'!CD45","v":{"v":1108079.5146201965,"d":"$1,108,080"}},{"$f":"'Trial 3'!CE45","v":{"v":1106955.1544739574,"d":"$1,106,955"}},{"$f":"'Trial 3'!CF45","v":{"v":1105831.8830533524,"d":"$1,105,832"}},{"$f":"'Trial 3'!CG45","v":{"v":1104710.1030401664,"d":"$1,104,710"}},{"$f":"'Trial 3'!CH45","v":{"v":1103589.2437064254,"d":"$1,103,589"}},{"$f":"'Trial 3'!CI45","v":{"v":1102474.341139226,"d":"$1,102,474"}},{"$f":"'Trial 3'!CJ45","v":{"v":1101366.2001292836,"d":"$1,101,366"}},{"$f":"'Trial 3'!CK45","v":{"v":1100267.1002763081,"d":"$1,100,267"}},{"$f":"'Trial 3'!CL45","v":{"v":1099167.5870388602,"d":"$1,099,168"}},{"$f":"'Trial 3'!CM45","v":{"v":1098072.891039724,"d":"$1,098,073"}},{"$f":"SUM('Trial 3'!CB45:CM45)","v":{"v":13250046.171240162,"d":"$13,250,046"}},{"$f":"'Trial 3'!CO45","v":{"v":1096985.5851565534,"d":"$1,096,986"}},{"$f":"'Trial 3'!CP45","v":{"v":1095908.474465621,"d":"$1,095,908"}},{"$f":"'Trial 3'!CQ45","v":{"v":1094825.24222842,"d":"$1,094,825"}},{"$f":"'Trial 3'!CR45","v":{"v":1093746.1654883847,"d":"$1,093,746"}},{"$f":"'Trial 3'!CS45","v":{"v":1092665.5997979501,"d":"$1,092,666"}},{"$f":"'Trial 3'!CT45","v":{"v":1091588.2968859456,"d":"$1,091,588"}},{"$f":"'Trial 3'!CU45","v":{"v":1090511.4540494508,"d":"$1,090,511"}},{"$f":"'Trial 3'!CV45","v":{"v":1089437.4612560868,"d":"$1,089,437"}},{"$f":"'Trial 3'!CW45","v":{"v":1088368.8174605,"d":"$1,088,369"}},{"$f":"'Trial 3'!CX45","v":{"v":1087302.360128701,"d":"$1,087,302"}},{"$f":"'Trial 3'!CY45","v":{"v":1086231.7651560297,"d":"$1,086,232"}},{"$f":"'Trial 3'!CZ45","v":{"v":1085171.33735319,"d":"$1,085,171"}},{"$f":"SUM('Trial 3'!CO45:CZ45)","v":{"v":13092742.559426835,"d":"$13,092,743"}},{"$f":"'Trial 3'!DB45","v":{"v":1084108.2682275197,"d":"$1,084,108"}},{"$f":"'Trial 3'!DC45","v":{"v":1083052.7832177354,"d":"$1,083,053"}},{"$f":"'Trial 3'!DD45","v":{"v":1081992.4970361108,"d":"$1,081,992"}},{"$f":"'Trial 3'!DE45","v":{"v":1080923.230622694,"d":"$1,080,923"}},{"$f":"'Trial 3'!DF45","v":{"v":1079855.6021200048,"d":"$1,079,856"}},{"$f":"'Trial 3'!DG45","v":{"v":1078793.0172533083,"d":"$1,078,793"}},{"$f":"'Trial 3'!DH45","v":{"v":1077734.0947581374,"d":"$1,077,734"}},{"$f":"'Trial 3'!DI45","v":{"v":1076681.2470055732,"d":"$1,076,681"}},{"$f":"'Trial 3'!DJ45","v":{"v":1075633.4038743714,"d":"$1,075,633"}},{"$f":"'Trial 3'!DK45","v":{"v":1074588.5445778512,"d":"$1,074,589"}},{"$f":"'Trial 3'!DL45","v":{"v":1073544.2730178453,"d":"$1,073,544"}},{"$f":"'Trial 3'!DM45","v":{"v":1072505.0836645495,"d":"$1,072,505"}},{"$f":"SUM('Trial 3'!DB45:DM45)","v":{"v":12939412.045375701,"d":"$12,939,412"}},{"$f":"'Trial 3'!DO45","v":{"v":1071472.859338843,"d":"$1,071,473"}},{"$f":"'Trial 3'!DP45","v":{"v":1070445.4129641172,"d":"$1,070,445"}},{"$f":"'Trial 3'!DQ45","v":{"v":1069424.0260272531,"d":"$1,069,424"}},{"$f":"'Trial 3'!DR45","v":{"v":1068409.335175262,"d":"$1,068,409"}},{"$f":"'Trial 3'!DS45","v":{"v":1067409.187065869,"d":"$1,067,409"}},{"$f":"'Trial 3'!DT45","v":{"v":1066401.2976385804,"d":"$1,066,401"}},{"$f":"'Trial 3'!DU45","v":{"v":1065393.044188025,"d":"$1,065,393"}},{"$f":"'Trial 3'!DV45","v":{"v":1064392.8119456512,"d":"$1,064,393"}},{"$f":"'Trial 3'!DW45","v":{"v":1063394.595267793,"d":"$1,063,395"}},{"$f":"'Trial 3'!DX45","v":{"v":1062404.510262495,"d":"$1,062,405"}},{"$f":"'Trial 3'!DY45","v":{"v":1061425.001015416,"d":"$1,061,425"}},{"$f":"'Trial 3'!DZ45","v":{"v":1060447.0784054508,"d":"$1,060,447"}},{"$f":"SUM('Trial 3'!DO45:DZ45)","v":{"v":12791019.159294754,"d":"$12,791,019"}},{"$f":"'Trial 3'!EB45","v":{"v":1059468.8076870071,"d":"$1,059,469"}},{"$f":"'Trial 3'!EC45","v":{"v":1058486.9400210069,"d":"$1,058,487"}},{"$f":"'Trial 3'!ED45","v":{"v":1057508.1837569121,"d":"$1,057,508"}},{"$f":"'Trial 3'!EE45","v":{"v":1056530.1654123405,"d":"$1,056,530"}},{"$f":"'Trial 3'!EF45","v":{"v":1055557.593416733,"d":"$1,055,558"}},{"$f":"'Trial 3'!EG45","v":{"v":1054590.4447638395,"d":"$1,054,590"}},{"$f":"'Trial 3'!EH45","v":{"v":1053626.0381034664,"d":"$1,053,626"}},{"$f":"'Trial 3'!EI45","v":{"v":1052664.4931146153,"d":"$1,052,664"}},{"$f":"'Trial 3'!EJ45","v":{"v":1051711.7540986321,"d":"$1,051,712"}},{"$f":"'Trial 3'!EK45","v":{"v":1050754.3297505556,"d":"$1,050,754"}},{"$f":"'Trial 3'!EL45","v":{"v":1049790.1281574713,"d":"$1,049,790"}},{"$f":"'Trial 3'!EM45","v":{"v":1048837.9338852328,"d":"$1,048,838"}},{"$f":"SUM('Trial 3'!EB45:EM45)","v":{"v":12649526.81216781,"d":"$12,649,527"}}]
[{"$f":"Labels!B99","v":"Trial 04"},{"$f":"'Trial 4'!B45","v":{"v":1166666.6666666667,"d":"$1,166,667"}},{"$f":"'Trial 4'!C45","v":{"v":1166666.6666666667,"d":"$1,166,667"}},{"$f":"'Trial 4'!D45","v":{"v":1166623.8298592607,"d":"$1,166,624"}},{"$f":"'Trial 4'!E45","v":{"v":1166537.9254903637,"d":"$1,166,538"}},{"$f":"'Trial 4'!F45","v":{"v":1166409.9678105214,"d":"$1,166,410"}},{"$f":"'Trial 4'!G45","v":{"v":1166249.2971256338,"d":"$1,166,249"}},{"$f":"'Trial 4'!H45","v":{"v":1166060.6711370025,"d":"$1,166,061"}},{"$f":"'Trial 4'!I45","v":{"v":1165848.3357024011,"d":"$1,165,848"}},{"$f":"'Trial 4'!J45","v":{"v":1165593.4362115888,"d":"$1,165,593"}},{"$f":"'Trial 4'!K45","v":{"v":1165297.6436786922,"d":"$1,165,298"}},{"$f":"'Trial 4'!L45","v":{"v":1164968.7393338957,"d":"$1,164,969"}},{"$f":"'Trial 4'!M45","v":{"v":1164607.7939671972,"d":"$1,164,608"}},{"$f":"SUM('Trial 4'!B45:M45)","v":{"v":13991530.97364989,"d":"$13,991,531"}},{"$f":"'Trial 4'!O45","v":{"v":1164217.536075832,"d":"$1,164,218"}},{"$f":"'Trial 4'!P45","v":{"v":1163789.3268833398,"d":"$1,163,789"}},{"$f":"'Trial 4'!Q45","v":{"v":1163333.9003409625,"d":"$1,163,334"}},{"$f":"'Trial 4'!R45","v":{"v":1162854.5514765568,"d":"$1,162,855"}},{"$f":"'Trial 4'!S45","v":{"v":1162357.841128403,"d":"$1,162,358"}},{"$f":"'Trial 4'!T45","v":{"v":1161836.1279215068,"d":"$1,161,836"}},{"$f":"'Trial 4'!U45","v":{"v":1161278.7898312877,"d":"$1,161,279"}},{"$f":"'Trial 4'!V45","v":{"v":1160694.872074748,"d":"$1,160,695"}},{"$f":"'Trial 4'!W45","v":{"v":1160089.0127174587,"d":"$1,160,089"}},{"$f":"'Trial 4'!X45","v":{"v":1159460.5234763527,"d":"$1,159,461"}},{"$f":"'Trial 4'!Y45","v":{"v":1158822.9455155435,"d":"$1,158,823"}},{"$f":"'Trial 4'!Z45","v":{"v":1158163.4011084826,"d":"$1,158,163"}},{"$f":"SUM('Trial 4'!O45:Z45)","v":{"v":13936898.828550475,"d":"$13,936,899"}},{"$f":"'Trial 4'!AB45","v":{"v":1157473.6646669398,"d":"$1,157,474"}},{"$f":"'Trial 4'!AC45","v":{"v":1156758.912605821,"d":"$1,156,759"}},{"$f":"'Trial 4'!AD45","v":{"v":1156021.475683058,"d":"$1,156,021"}},{"$f":"'Trial 4'!AE45","v":{"v":1155268.1851707157,"d":"$1,155,268"}},{"$f":"'Trial 4'!AF45","v":{"v":1154495.2306366824,"d":"$1,154,495"}},{"$f":"'Trial 4'!AG45","v":{"v":1153697.4417627163,"d":"$1,153,697"}},{"$f":"'Trial 4'!AH45","v":{"v":1152880.340337882,"d":"$1,152,880"}},{"$f":"'Trial 4'!AI45","v":{"v":1152057.1767736748,"d":"$1,152,057"}},{"$f":"'Trial 4'!AJ45","v":{"v":1151219.3160803241,"d":"$1,151,219"}},{"$f":"'Trial 4'!AK45","v":{"v":1150367.2062760035,"d":"$1,150,367"}},{"$f":"'Trial 4'!AL45","v":{"v":1149497.8089337961,"d":"$1,149,498"}},{"$f":"'Trial 4'!AM45","v":{"v":1148622.967305115,"d":"$1,148,623"}},{"$f":"SUM('Trial 4'!AB45:AM45)","v":{"v":13838359.726232728,"d":"$13,838,360"}},{"$f":"'Trial 4'!AO45","v":{"v":1147733.0517611357,"d":"$1,147,733"}},{"$f":"'Trial 4'!AP45","v":{"v":1146819.4864017216,"d":"$1,146,819"}},{"$f":"'Trial 4'!AQ45","v":{"v":1145894.5739122294,"d":"$1,145,895"}},{"$f":"'Trial 4'!AR45","v":{"v":1144958.1920966918,"d":"$1,144,958"}},{"$f":"'Trial 4'!AS45","v":{"v":1144009.4564576535,"d":"$1,144,009"}},{"$f":"'Trial 4'!AT45","v":{"v":1143043.9334458155,"d":"$1,143,044"}},{"$f":"'Trial 4'!AU45","v":{"v":1142071.3558970965,"d":"$1,142,071"}},{"$f":"'Trial 4'!AV45","v":{"v":1141095.8928938655,"d":"$1,141,096"}},{"$f":"'Trial 4'!AW45","v":{"v":1140114.2199721674,"d":"$1,140,114"}},{"$f":"'Trial 4'!AX45","v":{"v":1139123.5709529875,"d":"$1,139,124"}},{"$f":"'Trial 4'!AY45","v":{"v":1138128.5574460824,"d":"$1,138,129"}},{"$f":"'Trial 4'!AZ45","v":{"v":1137119.450149952,"d":"$1,137,119"}},{"$f":"SUM('Trial 4'!AO45:AZ45)","v":{"v":13710111.741387399,"d":"$13,710,112"}},{"$f":"'Trial 4'!BB45","v":{"v":1136097.7438690327,"d":"$1,136,098"}},{"$f":"'Trial 4'!BC45","v":{"v":1135059.2888662822,"d":"$1,135,059"}},{"$f":"'Trial 4'!BD45","v":{"v":1134026.0200753673,"d":"$1,134,026"}},{"$f":"'Trial 4'!BE45","v":{"v":1132997.5325899594,"d":"$1,132,998"}},{"$f":"'Trial 4'!BF45","v":{"v":1131956.5263091114,"d":"$1,131,957"}},{"$f":"'Trial 4'!BG45","v":{"v":1130909.8638235673,"d":"$1,130,910"}},{"$f":"'Trial 4'!BH45","v":{"v":1129851.95040204,"d":"$1,129,852"}},{"$f":"'Trial 4'!BI45","v":{"v":1128793.3965212766,"d":"$1,128,793"}},{"$f":"'Trial 4'!BJ45","v":{"v":1127724.691047291,"d":"$1,127,725"}},{"$f":"'Trial 4'!BK45","v":{"v":1126652.1469154044,"d":"$1,126,652"}},{"$f":"'Trial 4'!BL45","v":{"v":1125564.1604972382,"d":"$1,125,564"}},{"$f":"'Trial 4'!BM45","v":{"v":1124478.8017245624,"d":"$1,124,479"}},{"$f":"SUM('Trial 4'!BB45:BM45)","v":{"v":13564112.122641133,"d":"$13,564,112"}},{"$f":"'Trial 4'!BO45","v":{"v":1123393.1097010295,"d":"$1,123,393"}},{"$f":"'Trial 4'!BP45","v":{"v":1122309.6925413625,"d":"$1,122,310"}},{"$f":"'Trial 4'!BQ45","v":{"v":1121227.8505227785,"d":"$1,121,228"}},{"$f":"'Trial 4'!BR45","v":{"v":1120148.0684655171,"d":"$1,120,148"}},{"$f":"'Trial 4'!BS45","v":{"v":1119061.0583171998,"d":"$1,119,061"}},{"$f":"'Trial 4'!BT45","v":{"v":1117973.0132977045,"d":"$1,117,973"}},{"$f":"'Trial 4'!BU45","v":{"v":1116875.4194870626,"d":"$1,116,875"}},{"$f":"'Trial 4'!BV45","v":{"v":1115779.8050822064,"d":"$1,115,780"}},{"$f":"'Trial 4'!BW45","v":{"v":1114679.7497789946,"d":"$1,114,680"}},{"$f":"'Trial 4'!BX45","v":{"v":1113573.119647992,"d":"$1,113,573"}},{"$f":"'Trial 4'!BY45","v":{"v":1112458.061967827,"d":"$1,112,458"}},{"$f":"'Trial 4'!BZ45","v":{"v":1111347.5139486408,"d":"$1,111,348"}},{"$f":"SUM('Trial 4'!BO45:BZ45)","v":{"v":13408826.462758318,"d":"$13,408,826"}},{"$f":"'Trial 4'!CB45","v":{"v":1110235.0677740758,"d":"$1,110,235"}},{"$f":"'Trial 4'!CC45","v":{"v":1109125.5442044204,"d":"$1,109,126"}},{"$f":"'Trial 4'!CD45","v":{"v":1108009.861045445,"d":"$1,108,010"}},{"$f":"'Trial 4'!CE45","v":{"v":1106897.1327292211,"d":"$1,106,897"}},{"$f":"'Trial 4'!CF45","v":{"v":1105780.8522562163,"d":"$1,105,781"}},{"$f":"'Trial 4'!CG45","v":{"v":1104662.6326203924,"d":"$1,104,663"}},{"$f":"'Trial 4'!CH45","v":{"v":1103545.8673455524,"d":"$1,103,546"}},{"$f":"'Trial 4'!CI45","v":{"v":1102426.9930667975,"d":"$1,102,427"}},{"$f":"'Trial 4'!CJ45","v":{"v":1101321.2088344472,"d":"$1,101,321"}},{"$f":"'Trial 4'!CK45","v":{"v":1100222.4819044063,"d":"$1,100,222"}},{"$f":"'Trial 4'!CL45","v":{"v":1099123.4711147978,"d":"$1,099,123"}},{"$f":"'Trial 4'!CM45","v":{"v":1098032.0833796905,"d":"$1,098,032"}},{"$f":"SUM('Trial 4'!CB45:CM45)","v":{"v":13249383.196275461,"d":"$13,249,383"}},{"$f":"'Trial 4'!CO45","v":{"v":1096942.8764399618,"d":"$1,096,943"}},{"$f":"'Trial 4'!CP45","v":{"v":1095850.003125521,"d":"$1,095,850"}},{"$f":"'Trial 4'!CQ45","v":{"v":1094764.3293340136,"d":"$1,094,764"}},{"$f":"'Trial 4'!CR45","v":{"v":1093683.951444883,"d":"$1,093,684"}},{"$f":"'Trial 4'!CS45","v":{"v":1092610.70103134,"d":"$1,092,611"}},{"$f":"'Trial 4'!CT45","v":{"v":1091538.9841072771,"d":"$1,091,539"}},{"$f":"'Trial 4'!CU45","v":{"v":1090463.2788686824,"d":"$1,090,463"}},{"$f":"'Trial 4'!CV45","v":{"v":1089379.1282076028,"d":"$1,089,379"}},{"$f":"'Trial 4'!CW45","v":{"v":1088307.4060567003,"d":"$1,088,307"}},{"$f":"'Trial 4'!CX45","v":{"v":1087240.5066434692,"d":"$1,087,241"}},{"$f":"'Trial 4'!CY45","v":{"v":1086177.821512283,"d":"$1,086,178"}},{"$f":"'Trial 4'!CZ45","v":{"v":1085106.9242449626,"d":"$1,085,107"}},{"$f":"SUM('Trial 4'!CO45:CZ45)","v":{"v":13092065.911016697,"d":"$13,092,066"}},{"$f":"'Trial 4'!DB45","v":{"v":1084042.238389486,"d":"$1,084,042"}},{"$f":"'Trial 4'!DC45","v":{"v":1082987.976867765,"d":"$1,082,988"}},{"$f":"'Trial 4'!DD45","v":{"v":1081931.1476651195,"d":"$1,081,931"}},{"$f":"'Trial 4'!DE45","v":{"v":1080868.6098070538,"d":"$1,080,869"}},{"$f":"'Trial 4'!DF45","v":{"v":1079812.648598731,"d":"$1,079,813"}},{"$f":"'Trial 4'!DG45","v":{"v":1078763.2607877634,"d":"$1,078,763"}},{"$f":"'Trial 4'!DH45","v":{"v":1077717.1787353,"d":"$1,077,717"}},{"$f":"'Trial 4'!DI45","v":{"v":1076676.1391458863,"d":"$1,076,676"}},{"$f":"'Trial 4'!DJ45","v":{"v":1075629.7376796037,"d":"$1,075,630"}},{"$f":"'Trial 4'!DK45","v":{"v":1074591.051938939,"d":"$1,074,591"}},{"$f":"'Trial 4'!DL45","v":{"v":1073551.1943563109,"d":"$1,073,551"}},{"$f":"'Trial 4'!DM45","v":{"v":1072518.0374489157,"d":"$1,072,518"}},{"$f":"SUM('Trial 4'!DB45:DM45)","v":{"v":12939089.221420877,"d":"$12,939,089"}},{"$f":"'Trial 4'!DO45","v":{"v":1071489.4632319428,"d":"$1,071,489"}},{"$f":"'Trial 4'!DP45","v":{"v":1070460.3629148037,"d":"$1,070,460"}},{"$f":"'Trial 4'!DQ45","v":{"v":1069443.0998155056,"d":"$1,069,443"}},{"$f":"'Trial 4'!DR45","v":{"v":1068440.1497597815,"d":"$1,068,440"}},{"$f":"'Trial 4'!DS45","v":{"v":1067433.3733853127,"d":"$1,067,433"}},{"$f":"'Trial 4'!DT45","v":{"v":1066438.9115988181,"d":"$1,066,439"}},{"$f":"'Trial 4'!DU45","v":{"v":1065457.7357527285,"d":"$1,065,458"}},{"$f":"'Trial 4'!DV45","v":{"v":1064484.233223324,"d":"$1,064,484"}},{"$f":"'Trial 4'!DW45","v":{"v":1063509.301157439,"d":"$1,063,509"}},{"$f":"'Trial 4'!DX45","v":{"v":1062535.0599655185,"d":"$1,062,535"}},{"$f":"'Trial 4'!DY45","v":{"v":1061551.1048685717,"d":"$1,061,551"}},{"$f":"'Trial 4'!DZ45","v":{"v":1060578.1422228375,"d":"$1,060,578"}},{"$f":"SUM('Trial 4'!DO45:DZ45)","v":{"v":12791820.937896587,"d":"$12,791,821"}},{"$f":"'Trial 4'!EB45","v":{"v":1059614.440873771,"d":"$1,059,614"}},{"$f":"'Trial 4'!EC45","v":{"v":1058662.6794127128,"d":"$1,058,663"}},{"$f":"'Trial 4'!ED45","v":{"v":1057712.1361672673,"d":"$1,057,712"}},{"$f":"'Trial 4'!EE45","v":{"v":1056751.209110117,"d":"$1,056,751"}},{"$f":"'Trial 4'!EF45","v":{"v":1055790.4894905798,"d":"$1,055,790"}},{"$f":"'Trial 4'!EG45","v":{"v":1054840.0349689268,"d":"$1,054,840"}},{"$f":"'Trial 4'!EH45","v":{"v":1053901.9568625318,"d":"$1,053,902"}},{"$f":"'Trial 4'!EI45","v":{"v":1052963.2447442217,"d":"$1,052,963"}},{"$f":"'Trial 4'!EJ45","v":{"v":1052031.402384338,"d":"$1,052,031"}},{"$f":"'Trial 4'!EK45","v":{"v":1051091.7194047035,"d":"$1,051,092"}},{"$f":"'Trial 4'!EL45","v":{"v":1050144.46860246,"d":"$1,050,144"}},{"$f":"'Trial 4'!EM45","v":{"v":1049206.5265561438,"d":"$1,049,207"}},{"$f":"SUM('Trial 4'!EB45:EM45)","v":{"v":12652710.308577772,"d":"$12,652,710"}}]
[{"$f":"Labels!B100","v":"Trial 05"},{"$f":"'Trial 5'!B45","v":{"v":1166666.6666666667,"d":"$1,166,667"}},{"$f":"'Trial 5'!C45","v":{"v":1166666.6666666667,"d":"$1,166,667"}},{"$f":"'Trial 5'!D45","v":{"v":1166618.8290911987,"d":"$1,166,619"}},{"$f":"'Trial 5'!E45","v":{"v":1166526.5477691463,"d":"$1,166,527"}},{"$f":"'Trial 5'!F45","v":{"v":1166404.319491447,"d":"$1,166,404"}},{"$f":"'Trial 5'!G45","v":{"v":1166235.3353795926,"d":"$1,166,235"}},{"$f":"'Trial 5'!H45","v":{"v":1166027.1830759363,"d":"$1,166,027"}},{"$f":"'Trial 5'!I45","v":{"v":1165780.132064827,"d":"$1,165,780"}},{"$f":"'Trial 5'!J45","v":{"v":1165499.7262522148,"d":"$1,165,500"}},{"$f":"'Trial 5'!K45","v":{"v":1165191.2170506725,"d":"$1,165,191"}},{"$f":"'Trial 5'!L45","v":{"v":1164863.4407080554,"d":"$1,164,863"}},{"$f":"'Trial 5'!M45","v":{"v":1164499.6491361554,"d":"$1,164,500"}},{"$f":"SUM('Trial 5'!B45:M45)","v":{"v":13990979.71335258,"d":"$13,990,980"}},{"$f":"'Trial 5'!O45","v":{"v":1164102.146951975,"d":"$1,164,102"}},{"$f":"'Trial 5'!P45","v":{"v":1163675.9866970326,"d":"$1,163,676"}},{"$f":"'Trial 5'!Q45","v":{"v":1163220.2241910868,"d":"$1,163,220"}},{"$f":"'Trial 5'!R45","v":{"v":1162738.5553514578,"d":"$1,162,739"}},{"$f":"'Trial 5'!S45","v":{"v":1162229.3853483796,"d":"$1,162,229"}},{"$f":"'Trial 5'!T45","v":{"v":1161696.594151235,"d":"$1,161,697"}},{"$f":"'Trial 5'!U45","v":{"v":1161131.3739752492,"d":"$1,161,131"}},{"$f":"'Trial 5'!V45","v":{"v":1160554.7058453467,"d":"$1,160,555"}},{"$f":"'Trial 5'!W45","v":{"v":1159957.9709363205,"d":"$1,159,958"}},{"$f":"'Trial 5'!X45","v":{"v":1159338.2614736503,"d":"$1,159,338"}},{"$f":"'Trial 5'!Y45","v":{"v":1158698.8568148883,"d":"$1,158,699"}},{"$f":"'Trial 5'!Z45","v":{"v":1158031.871115806,"d":"$1,158,032"}},{"$f":"SUM('Trial 5'!O45:Z45)","v":{"v":13935375.932852427,"d":"$13,935,376"}},{"$f":"'Trial 5'!AB45","v":{"v":1157356.0894752154,"d":"$1,157,356"}},{"$f":"'Trial 5'!AC45","v":{"v":1156657.9899396107,"d":"$1,156,658"}},{"$f":"'Trial 5'!AD45","v":{"v":1155944.3595431487,"d":"$1,155,944"}},{"$f":"'Trial 5'!AE45","v":{"v":1155212.3819586204,"d":"$1,155,212"}},{"$f":"'Trial 5'!AF45","v":{"v":1154472.919972251,"d":"$1,154,473"}},{"$f":"'Trial 5'!AG45","v":{"v":1153704.7161476691,"d":"$1,153,705"}},{"$f":"'Trial 5'!AH45","v":{"v":1152910.694869484,"d":"$1,152,911"}},{"$f":"'Trial 5'!AI45","v":{"v":1152097.9176378513,"d":"$1,152,098"}},{"$f":"'Trial 5'!AJ45","v":{"v":1151273.033964202,"d":"$1,151,273"}},{"$f":"'Trial 5'!AK45","v":{"v":1150427.027721318,"d":"$1,150,427"}},{"$f":"'Trial 5'!AL45","v":{"v":1149568.8834937175,"d":"$1,149,569"}},{"$f":"'Trial 5'!AM45","v":{"v":1148690.5623575894,"d":"$1,148,691"}},{"$f":"SUM('Trial 5'!AB45:AM45)","v":{"v":13838316.577080678,"d":"$13,838,317"}},{"$f":"'Trial 5'!AO45","v":{"v":1147797.9794800896,"d":"$1,147,798"}},{"$f":"'Trial 5'!AP45","v":{"v":1146887.2184063361,"d":"$1,146,887"}},{"$f":"'Trial 5'!AQ45","v":{"v":1145965.2333105619,"d":"$1,145,965"}},{"$f":"'Trial 5'!AR45","v":{"v":1145033.1459243314,"d":"$1,145,033"}},{"$f":"'Trial 5'!AS45","v":{"v":1144088.183903427,"d":"$1,144,088"}},{"$f":"'Trial 5'!AT45","v":{"v":1143136.396469453,"d":"$1,143,136"}},{"$f":"'Trial 5'!AU45","v":{"v":1142179.2444913315,"d":"$1,142,179"}},{"$f":"'Trial 5'!AV45","v":{"v":1141209.4576440426,"d":"$1,141,209"}},{"$f":"'Trial 5'!AW45","v":{"v":1140233.395023742,"d":"$1,140,233"}},{"$f":"'Trial 5'!AX45","v":{"v":1139249.4223336962,"d":"$1,139,249"}},{"$f":"'Trial 5'!AY45","v":{"v":1138255.705975082,"d":"$1,138,256"}},{"$f":"'Trial 5'!AZ45","v":{"v":1137252.766350554,"d":"$1,137,253"}},{"$f":"SUM('Trial 5'!AO45:AZ45)","v":{"v":13711288.149312647,"d":"$13,711,288"}},{"$f":"'Trial 5'!BB45","v":{"v":1136244.2570002663,"d":"$1,136,244"}},{"$f":"'Trial 5'!BC45","v":{"v":1135227.3637037394,"d":"$1,135,227"}},{"$f":"'Trial 5'!BD45","v":{"v":1134199.5810294303,"d":"$1,134,200"}},{"$f":"'Trial 5'!BE45","v":{"v":1133157.499390734,"d":"$1,133,157"}},{"$f":"'Trial 5'!BF45","v":{"v":1132098.4158086984,"d":"$1,132,098"}},{"$f":"'Trial 5'!BG45","v":{"v":1131037.4978746884,"d":"$1,131,037"}},{"$f":"'Trial 5'!BH45","v":{"v":1129968.7182886994,"d":"$1,129,969"}},{"$f":"'Trial 5'!BI45","v":{"v":1128897.2678315893,"d":"$1,128,897"}},{"$f":"'Trial 5'!BJ45","v":{"v":1127813.1119489612,"d":"$1,127,813"}},{"$f":"'Trial 5'!BK45","v":{"v":1126727.3429458775,"d":"$1,126,727"}},{"$f":"'Trial 5'!BL45","v":{"v":1125645.9451096538,"d":"$1,125,646"}},{"$f":"'Trial 5'!BM45","v":{"v":1124563.8562161592,"d":"$1,124,564"}},{"$f":"SUM('Trial 5'!BB45:BM45)","v":{"v":13565580.857148496,"d":"$13,565,581"}},{"$f":"'Trial 5'!BO45","v":{"v":1123486.529560871,"d":"$1,123,487"}},{"$f":"'Trial 5'!BP45","v":{"v":1122407.9770418615,"d":"$1,122,408"}},{"$f":"'Trial 5'!BQ45","v":{"v":1121334.0327879097,"d":"$1,121,334"}},{"$f":"'Trial 5'!BR45","v":{"v":1120268.105165214,"d":"$1,120,268"}},{"$f":"'Trial 5'!BS45","v":{"v":1119209.6637203053,"d":"$1,119,210"}},{"$f":"'Trial 5'!BT45","v":{"v":1118140.755068884,"d":"$1,118,141"}},{"$f":"'Trial 5'!BU45","v":{"v":1117069.2306437632,"d":"$1,117,069"}},{"$f":"'Trial 5'!BV45","v":{"v":1116006.6745558681,"d":"$1,116,007"}},{"$f":"'Trial 5'!BW45","v":{"v":1114934.7875712966,"d":"$1,114,935"}},{"$f":"'Trial 5'!BX45","v":{"v":1113859.5042645228,"d":"$1,113,860"}},{"$f":"'Trial 5'!BY45","v":{"v":1112783.4687428866,"d":"$1,112,783"}},{"$f":"'Trial 5'!BZ45","v":{"v":1111714.5945688856,"d":"$1,111,715"}},{"$f":"SUM('Trial 5'!BO45:BZ45)","v":{"v":13411215.323692268,"d":"$13,411,215"}},{"$f":"'Trial 5'!CB45","v":{"v":1110653.5594914637,"d":"$1,110,654"}},{"$f":"'Trial 5'!CC45","v":{"v":1109597.7313471895,"d":"$1,109,598"}},{"$f":"'Trial 5'!CD45","v":{"v":1108539.094572434,"d":"$1,108,539"}},{"$f":"'Trial 5'!CE45","v":{"v":1107479.326433877,"d":"$1,107,479"}},{"$f":"'Trial 5'!CF45","v":{"v":1106417.3533529113,"d":"$1,106,417"}},{"$f":"'Trial 5'!CG45","v":{"v":1105350.296903779,"d":"$1,105,350"}},{"$f":"'Trial 5'!CH45","v":{"v":1104283.656884309,"d":"$1,104,284"}},{"$f":"'Trial 5'!CI45","v":{"v":1103228.0112776426,"d":"$1,103,228"}},{"$f":"'Trial 5'!CJ45","v":{"v":1102166.9645410592,"d":"$1,102,167"}},{"$f":"'Trial 5'!CK45","v":{"v":1101099.562919428,"d":"$1,101,100"}},{"$f":"'Trial 5'!CL45","v":{"v":1100034.0817072361,"d":"$1,100,034"}},{"$f":"'Trial 5'!CM45","v":{"v":1098979.3753773053,"d":"$1,098,979"}},{"$f":"SUM('Trial 5'!CB45:CM45)","v":{"v":13257829.014808634,"d":"$13,257,829"}},{"$f":"'Trial 5'!CO45","v":{"v":1097918.0425182774,"d":"$1,097,918"}},{"$f":"'Trial 5'!CP45","v":{"v":1096860.15971496,"d":"$1,096,860"}},{"$f":"'Trial 5'!CQ45","v":{"v":1095805.1245299578,"d":"$1,095,805"}},{"$f":"'Trial 5'!CR45","v":{"v":1094743.790603767,"d":"$1,094,744"}},{"$f":"'Trial 5'!CS45","v":{"v":1093692.2583499434,"d":"$1,093,692"}},{"$f":"'Trial 5'!CT45","v":{"v":1092635.9127086473,"d":"$1,092,636"}},{"$f":"'Trial 5'!CU45","v":{"v":1091576.9743680663,"d":"$1,091,577"}},{"$f":"'Trial 5'!CV45","v":{"v":1090522.209869504,"d":"$1,090,522"}},{"$f":"'Trial 5'!CW45","v":{"v":1089469.7471100008,"d":"$1,089,470"}},{"$f":"'Trial 5'!CX45","v":{"v":1088416.3165369334,"d":"$1,088,416"}},{"$f":"'Trial 5'!CY45","v":{"v":1087370.0650506744,"d":"$1,087,370"}},{"$f":"'Trial 5'!CZ45","v":{"v":1086321.7924545216,"d":"$1,086,322"}},{"$f":"SUM('Trial 5'!CO45:CZ45)","v":{"v":13105332.393815255,"d":"$13,105,332"}},{"$f":"'Trial 5'!DB45","v":{"v":1085274.1799459395,"d":"$1,085,274"}},{"$f":"'Trial 5'!DC45","v":{"v":1084217.7941239118,"d":"$1,084,218"}},{"$f":"'Trial 5'!DD45","v":{"v":1083166.894619683,"d":"$1,083,167"}},{"$f":"'Trial 5'!DE45","v":{"v":1082118.013623328,"d":"$1,082,118"}},{"$f":"'Trial 5'!DF45","v":{"v":1081072.9061920142,"d":"$1,081,073"}},{"$f":"'Trial 5'!DG45","v":{"v":1080025.2160846745,"d":"$1,080,025"}},{"$f":"'Trial 5'!DH45","v":{"v":1078973.6983755284,"d":"$1,078,974"}},{"$f":"'Trial 5'!DI45","v":{"v":1077930.3844508019,"d":"$1,077,930"}},{"$f":"'Trial 5'!DJ45","v":{"v":1076900.0267251441,"d":"$1,076,900"}},{"$f":"'Trial 5'!DK45","v":{"v":1075871.9123457375,"d":"$1,075,872"}},{"$f":"'Trial 5'!DL45","v":{"v":1074839.880280679,"d":"$1,074,840"}},{"$f":"'Trial 5'!DM45","v":{"v":1073808.763375711,"d":"$1,073,809"}},{"$f":"SUM('Trial 5'!DB45:DM45)","v":{"v":12954199.670143152,"d":"$12,954,200"}},{"$f":"'Trial 5'!DO45","v":{"v":1072773.1383628615,"d":"$1,072,773"}},{"$f":"'Trial 5'!DP45","v":{"v":1071740.2667936655,"d":"$1,071,740"}},{"$f":"'Trial 5'!DQ45","v":{"v":1070706.591047873,"d":"$1,070,707"}},{"$f":"'Trial 5'!DR45","v":{"v":1069675.3261389276,"d":"$1,069,675"}},{"$f":"'Trial 5'!DS45","v":{"v":1068656.6375411989,"d":"$1,068,657"}},{"$f":"'Trial 5'!DT45","v":{"v":1067645.201129661,"d":"$1,067,645"}},{"$f":"'Trial 5'!DU45","v":{"v":1066639.6814536978,"d":"$1,066,640"}},{"$f":"'Trial 5'!DV45","v":{"v":1065643.4601101999,"d":"$1,065,643"}},{"$f":"'Trial 5'!DW45","v":{"v":1064644.5409278015,"d":"$1,064,645"}},{"$f":"'Trial 5'!DX45","v":{"v":1063648.9995069196,"d":"$1,063,649"}},{"$f":"'Trial 5'!DY45","v":{"v":1062661.3586520355,"d":"$1,062,661"}},{"$f":"'Trial 5'!DZ45","v":{"v":1061672.7970505503,"d":"$1,061,673"}},{"$f":"SUM('Trial 5'!DO45:DZ45)","v":{"v":12806107.998715391,"d":"$12,806,108"}},{"$f":"'Trial 5'!EB45","v":{"v":1060686.7388848518,"d":"$1,060,687"}},{"$f":"'Trial 5'!EC45","v":{"v":1059697.4522416603,"d":"$1,059,697"}},{"$f":"'Trial 5'!ED45","v":{"v":1058710.620322361,"d":"$1,058,711"}},{"$f":"'Trial 5'!EE45","v":{"v":1057734.2210541426,"d":"$1,057,734"}},{"$f":"'Trial 5'!EF45","v":{"v":1056755.5146042944,"d":"$1,056,756"}},{"$f":"'Trial 5'!EG45","v":{"v":1055780.8891913628,"d":"$1,055,781"}},{"$f":"'Trial 5'!EH45","v":{"v":1054809.9703687404,"d":"$1,054,810"}},{"$f":"'Trial 5'!EI45","v":{"v":1053848.748409824,"d":"$1,053,849"}},{"$f":"'Trial 5'!EJ45","v":{"v":1052881.203919261,"d":"$1,052,881"}},{"$f":"'Trial 5'!EK45","v":{"v":1051910.1584443199,"d":"$1,051,910"}},{"$f":"'Trial 5'!EL45","v":{"v":1050938.7074458932,"d":"$1,050,939"}},{"$f":"'Trial 5'!EM45","v":{"v":1049971.1891044227,"d":"$1,049,971"}},{"$f":"SUM('Trial 5'!EB45:EM45)","v":{"v":12663725.413991135,"d":"$12,663,725"}}]
[{"$f":"Labels!B101","v":"Trial 06"},{"$f":"'Trial 6'!B45","v":{"v":1166666.6666666667,"d":"$1,166,667"}},{"$f":"'Trial 6'!C45","v":{"v":1166666.6666666667,"d":"$1,166,667"}},{"$f":"'Trial 6'!D45","v":{"v":1166628.0346597508,"d":"$1,166,628"}},{"$f":"'Trial 6'!E45","v":{"v":1166538.6271674994,"d":"$1,166,539"}},{"$f":"'Trial 6'!F45","v":{"v":1166417.961931174,"d":"$1,166,418"}},{"$f":"'Trial 6'!G45","v":{"v":1166270.2641442849,"d":"$1,166,270"}},{"$f":"'Trial 6'!H45","v":{"v":1166090.0257414728,"d":"$1,166,090"}},{"$f":"'Trial 6'!I45","v":{"v":1165870.0599882873,"d":"$1,165,870"}},{"$f":"'Trial 6'!J45","v":{"v":1165615.3293943082,"d":"$1,165,615"}},{"$f":"'Trial 6'!K45","v":{"v":1165326.6290117765,"d":"$1,165,327"}},{"$f":"'Trial 6'!L45","v":{"v":1165012.6523706939,"d":"$1,165,013"}},{"$f":"'Trial 6'!M45","v":{"v":1164667.4785875895,"d":"$1,164,667"}},{"$f":"SUM('Trial 6'!B45:M45)","v":{"v":13991770.39633017,"d":"$13,991,770"}},{"$f":"'Trial 6'!O45","v":{"v":1164302.3575547028,"d":"$1,164,302"}},{"$f":"'Trial 6'!P45","v":{"v":1163907.3590340633,"d":"$1,163,907"}},{"$f":"'Trial 6'!Q45","v":{"v":1163492.1122444351,"d":"$1,163,492"}},{"$f":"'Trial 6'!R45","v":{"v":1163047.0292899895,"d":"$1,163,047"}},{"$f":"'Trial 6'!S45","v":{"v":1162583.3660276213,"d":"$1,162,583"}},{"$f":"'Trial 6'!T45","v":{"v":1162098.9637551315,"d":"$1,162,099"}},{"$f":"'Trial 6'!U45","v":{"v":1161577.8516804655,"d":"$1,161,578"}},{"$f":"'Trial 6'!V45","v":{"v":1161030.1654102628,"d":"$1,161,030"}},{"$f":"'Trial 6'!W45","v":{"v":1160462.6699152184,"d":"$1,160,463"}},{"$f":"'Trial 6'!X45","v":{"v":1159867.3332910414,"d":"$1,159,867"}},{"$f":"'Trial 6'!Y45","v":{"v":1159246.4937427915,"d":"$1,159,246"}},{"$f":"'Trial 6'!Z45","v":{"v":1158606.5159798663,"d":"$1,158,607"}},{"$f":"SUM('Trial 6'!O45:Z45)","v":{"v":13940222.21792559,"d":"$13,940,222"}},{"$f":"'Trial 6'!AB45","v":{"v":1157951.7371221525,"d":"$1,157,952"}},{"$f":"'Trial 6'!AC45","v":{"v":1157270.3068082011,"d":"$1,157,270"}},{"$f":"'Trial 6'!AD45","v":{"v":1156571.0096602004,"d":"$1,156,571"}},{"$f":"'Trial 6'!AE45","v":{"v":1155856.612626113,"d":"$1,155,857"}},{"$f":"'Trial 6'!AF45","v":{"v":1155131.2741099214,"d":"$1,155,131"}},{"$f":"'Trial 6'!AG45","v":{"v":1154390.4541904083,"d":"$1,154,390"}},{"$f":"'Trial 6'!AH45","v":{"v":1153639.67761974,"d":"$1,153,640"}},{"$f":"'Trial 6'!AI45","v":{"v":1152874.0142831386,"d":"$1,152,874"}},{"$f":"'Trial 6'!AJ45","v":{"v":1152097.4928803009,"d":"$1,152,097"}},{"$f":"'Trial 6'!AK45","v":{"v":1151303.9200751467,"d":"$1,151,304"}},{"$f":"'Trial 6'!AL45","v":{"v":1150490.8106474783,"d":"$1,150,491"}},{"$f":"'Trial 6'!AM45","v":{"v":1149664.0459864715,"d":"$1,149,664"}},{"$f":"SUM('Trial 6'!AB45:AM45)","v":{"v":13847241.356009275,"d":"$13,847,241"}},{"$f":"'Trial 6'!AO45","v":{"v":1148829.401456336,"d":"$1,148,829"}},{"$f":"'Trial 6'!AP45","v":{"v":1147990.7686683214,"d":"$1,147,991"}},{"$f":"'Trial 6'!AQ45","v":{"v":1147140.891321768,"d":"$1,147,141"}},{"$f":"'Trial 6'!AR45","v":{"v":1146276.4137733309,"d":"$1,146,276"}},{"$f":"'Trial 6'!AS45","v":{"v":1145395.732611163,"d":"$1,145,396"}},{"$f":"'Trial 6'!AT45","v":{"v":1144504.3282846962,"d":"$1,144,504"}},{"$f":"'Trial 6'!AU45","v":{"v":1143599.5348665626,"d":"$1,143,600"}},{"$f":"'Trial 6'!AV45","v":{"v":1142679.401544067,"d":"$1,142,679"}},{"$f":"'Trial 6'!AW45","v":{"v":1141738.0214165566,"d":"$1,141,738"}},{"$f":"'Trial 6'!AX45","v":{"v":1140788.750114143,"d":"$1,140,789"}},{"$f":"'Trial 6'!AY45","v":{"v":1139826.703913404,"d":"$1,139,827"}},{"$f":"'Trial 6'!AZ45","v":{"v":1138847.7425597028,"d":"$1,138,848"}},{"$f":"SUM('Trial 6'!AO45:AZ45)","v":{"v":13727617.69053005,"d":"$13,727,618"}},{"$f":"'Trial 6'!BB45","v":{"v":1137863.6279431286,"d":"$1,137,864"}},{"$f":"'Trial 6'!BC45","v":{"v":1136880.2882424886,"d":"$1,136,880"}},{"$f":"'Trial 6'!BD45","v":{"v":1135878.3123135646,"d":"$1,135,878"}},{"$f":"'Trial 6'!BE45","v":{"v":1134863.0952740873,"d":"$1,134,863"}},{"$f":"'Trial 6'!BF45","v":{"v":1133837.3365006186,"d":"$1,133,837"}},{"$f":"'Trial 6'!BG45","v":{"v":1132800.1138078005,"d":"$1,132,800"}},{"$f":"'Trial 6'!BH45","v":{"v":1131756.7046832626,"d":"$1,131,757"}},{"$f":"'Trial 6'!BI45","v":{"v":1130710.3356290602,"d":"$1,130,710"}},{"$f":"'Trial 6'!BJ45","v":{"v":1129664.601159619,"d":"$1,129,665"}},{"$f":"'Trial 6'!BK45","v":{"v":1128609.5282496754,"d":"$1,128,610"}},{"$f":"'Trial 6'!BL45","v":{"v":1127559.4920613759,"d":"$1,127,559"}},{"$f":"'Trial 6'!BM45","v":{"v":1126507.1533370512,"d":"$1,126,507"}},{"$f":"SUM('Trial 6'!BB45:BM45)","v":{"v":13586930.589201733,"d":"$13,586,931"}},{"$f":"'Trial 6'!BO45","v":{"v":1125440.7474938333,"d":"$1,125,441"}},{"$f":"'Trial 6'!BP45","v":{"v":1124372.9391915922,"d":"$1,124,373"}},{"$f":"'Trial 6'!BQ45","v":{"v":1123290.3867703972,"d":"$1,123,290"}},{"$f":"'Trial 6'!BR45","v":{"v":1122202.449552436,"d":"$1,122,202"}},{"$f":"'Trial 6'!BS45","v":{"v":1121108.3123675738,"d":"$1,121,108"}},{"$f":"'Trial 6'!BT45","v":{"v":1120005.852597681,"d":"$1,120,006"}},{"$f":"'Trial 6'!BU45","v":{"v":1118889.922269397,"d":"$1,118,890"}},{"$f":"'Trial 6'!BV45","v":{"v":1117779.0803878047,"d":"$1,117,779"}},{"$f":"'Trial 6'!BW45","v":{"v":1116667.0935081535,"d":"$1,116,667"}},{"$f":"'Trial 6'!BX45","v":{"v":1115557.0207341712,"d":"$1,115,557"}},{"$f":"'Trial 6'!BY45","v":{"v":1114451.0466659681,"d":"$1,114,451"}},{"$f":"'Trial 6'!BZ45","v":{"v":1113338.3985570704,"d":"$1,113,338"}},{"$f":"SUM('Trial 6'!BO45:BZ45)","v":{"v":13433103.250096079,"d":"$13,433,103"}},{"$f":"'Trial 6'!CB45","v":{"v":1112234.8612371373,"d":"$1,112,235"}},{"$f":"'Trial 6'!CC45","v":{"v":1111136.0955366693,"d":"$1,111,136"}},{"$f":"'Trial 6'!CD45","v":{"v":1110037.065694406,"d":"$1,110,037"}},{"$f":"'Trial 6'!CE45","v":{"v":1108936.3178774444,"d":"$1,108,936"}},{"$f":"'Trial 6'!CF45","v":{"v":1107845.1481312194,"d":"$1,107,845"}},{"$f":"'Trial 6'!CG45","v":{"v":1106751.414299345,"d":"$1,106,751"}},{"$f":"'Trial 6'!CH45","v":{"v":1105654.4872986302,"d":"$1,105,654"}},{"$f":"'Trial 6'!CI45","v":{"v":1104562.8146869654,"d":"$1,104,563"}},{"$f":"'Trial 6'!CJ45","v":{"v":1103476.051843477,"d":"$1,103,476"}},{"$f":"'Trial 6'!CK45","v":{"v":1102396.917211628,"d":"$1,102,397"}},{"$f":"'Trial 6'!CL45","v":{"v":1101318.2034692564,"d":"$1,101,318"}},{"$f":"'Trial 6'!CM45","v":{"v":1100242.5989938406,"d":"$1,100,243"}},{"$f":"SUM('Trial 6'!CB45:CM45)","v":{"v":13274591.976280019,"d":"$13,274,592"}},{"$f":"'Trial 6'!CO45","v":{"v":1099174.5313060049,"d":"$1,099,175"}},{"$f":"'Trial 6'!CP45","v":{"v":1098112.1747946031,"d":"$1,098,112"}},{"$f":"'Trial 6'!CQ45","v":{"v":1097051.5755036992,"d":"$1,097,052"}},{"$f":"'Trial 6'!CR45","v":{"v":1095998.494781119,"d":"$1,095,998"}},{"$f":"'Trial 6'!CS45","v":{"v":1094945.9516754197,"d":"$1,094,946"}},{"$f":"'Trial 6'!CT45","v":{"v":1093894.2648901746,"d":"$1,093,894"}},{"$f":"'Trial 6'!CU45","v":{"v":1092837.7540072296,"d":"$1,092,838"}},{"$f":"'Trial 6'!CV45","v":{"v":1091777.5330728954,"d":"$1,091,778"}},{"$f":"'Trial 6'!CW45","v":{"v":1090728.4277253759,"d":"$1,090,728"}},{"$f":"'Trial 6'!CX45","v":{"v":1089673.4906280455,"d":"$1,089,673"}},{"$f":"'Trial 6'!CY45","v":{"v":1088629.2082194434,"d":"$1,088,629"}},{"$f":"'Trial 6'!CZ45","v":{"v":1087587.8444925216,"d":"$1,087,588"}},{"$f":"SUM('Trial 6'!CO45:CZ45)","v":{"v":13120411.251096532,"d":"$13,120,411"}},{"$f":"'Trial 6'!DB45","v":{"v":1086542.1538085113,"d":"$1,086,542"}},{"$f":"'Trial 6'!DC45","v":{"v":1085501.019273952,"d":"$1,085,501"}},{"$f":"'Trial 6'!DD45","v":{"v":1084465.1729413304,"d":"$1,084,465"}},{"$f":"'Trial 6'!DE45","v":{"v":1083420.4858933173,"d":"$1,083,420"}},{"$f":"'Trial 6'!DF45","v":{"v":1082373.8756938493,"d":"$1,082,374"}},{"$f":"'Trial 6'!DG45","v":{"v":1081329.0749275365,"d":"$1,081,329"}},{"$f":"'Trial 6'!DH45","v":{"v":1080277.3216081406,"d":"$1,080,277"}},{"$f":"'Trial 6'!DI45","v":{"v":1079226.142529363,"d":"$1,079,226"}},{"$f":"'Trial 6'!DJ45","v":{"v":1078169.7610708238,"d":"$1,078,170"}},{"$f":"'Trial 6'!DK45","v":{"v":1077107.9371281886,"d":"$1,077,108"}},{"$f":"'Trial 6'!DL45","v":{"v":1076038.816254235,"d":"$1,076,039"}},{"$f":"'Trial 6'!DM45","v":{"v":1074973.996113715,"d":"$1,074,974"}},{"$f":"SUM('Trial 6'!DB45:DM45)","v":{"v":12969425.757242963,"d":"$12,969,426"}},{"$f":"'Trial 6'!DO45","v":{"v":1073907.0947049991,"d":"$1,073,907"}},{"$f":"'Trial 6'!DP45","v":{"v":1072841.3377778644,"d":"$1,072,841"}},{"$f":"'Trial 6'!DQ45","v":{"v":1071786.1428144984,"d":"$1,071,786"}},{"$f":"'Trial 6'!DR45","v":{"v":1070729.7744877965,"d":"$1,070,730"}},{"$f":"'Trial 6'!DS45","v":{"v":1069673.0389343726,"d":"$1,069,673"}},{"$f":"'Trial 6'!DT45","v":{"v":1068619.9846696528,"d":"$1,068,620"}},{"$f":"'Trial 6'!DU45","v":{"v":1067569.5698731157,"d":"$1,067,570"}},{"$f":"'Trial 6'!DV45","v":{"v":1066526.854488003,"d":"$1,066,527"}},{"$f":"'Trial 6'!DW45","v":{"v":1065494.6279633509,"d":"$1,065,495"}},{"$f":"'Trial 6'!DX45","v":{"v":1064473.8452338902,"d":"$1,064,474"}},{"$f":"'Trial 6'!DY45","v":{"v":1063457.7777597914,"d":"$1,063,458"}},{"$f":"'Trial 6'!DZ45","v":{"v":1062450.1350279057,"d":"$1,062,450"}},{"$f":"SUM('Trial 6'!DO45:DZ45)","v":{"v":12817530.183735238,"d":"$12,817,530"}},{"$f":"'Trial 6'!EB45","v":{"v":1061444.4166244264,"d":"$1,061,444"}},{"$f":"'Trial 6'!EC45","v":{"v":1060441.4844065884,"d":"$1,060,441"}},{"$f":"'Trial 6'!ED45","v":{"v":1059448.757352162,"d":"$1,059,449"}},{"$f":"'Trial 6'!EE45","v":{"v":1058459.5229693593,"d":"$1,058,460"}},{"$f":"'Trial 6'!EF45","v":{"v":1057476.6218471914,"d":"$1,057,477"}},{"$f":"'Trial 6'!EG45","v":{"v":1056501.8413002987,"d":"$1,056,502"}},{"$f":"'Trial 6'!EH45","v":{"v":1055529.9447369266,"d":"$1,055,530"}},{"$f":"'Trial 6'!EI45","v":{"v":1054563.8000199029,"d":"$1,054,564"}},{"$f":"'Trial 6'!EJ45","v":{"v":1053600.4827063677,"d":"$1,053,600"}},{"$f":"'Trial 6'!EK45","v":{"v":1052642.7498319335,"d":"$1,052,643"}},{"$f":"'Trial 6'!EL45","v":{"v":1051695.9811385109,"d":"$1,051,696"}},{"$f":"'Trial 6'!EM45","v":{"v":1050762.5904759867,"d":"$1,050,763"}},{"$f":"SUM('Trial 6'!EB45:EM45)","v":{"v":12672568.193409655,"d":"$12,672,568"}}]
[{"$f":"Labels!B102","v":"Trial 07"},{"$f":"'Trial 7'!B45","v":{"v":1166666.6666666667,"d":"$1,166,667"}},{"$f":"'Trial 7'!C45","v":{"v":1166666.6666666667,"d":"$1,166,667"}},{"$f":"'Trial 7'!D45","v":{"v":1166620.9829003513,"d":"$1,166,621"}},{"$f":"'Trial 7'!E45","v":{"v":1166541.37619196,"d":"$1,166,541"}},{"$f":"'Trial 7'!F45","v":{"v":1166427.2102667713,"d":"$1,166,427"}},{"$f":"'Trial 7'!G45","v":{"v":1166274.8220188676,"d":"$1,166,275"}},{"$f":"'Trial 7'!H45","v":{"v":1166093.1426134044,"d":"$1,166,093"}},{"$f":"'Trial 7'!I45","v":{"v":1165883.3751734265,"d":"$1,165,883"}},{"$f":"'Trial 7'!J45","v":{"v":1165645.9143039295,"d":"$1,165,646"}},{"$f":"'Trial 7'!K45","v":{"v":1165383.2485523233,"d":"$1,165,383"}},{"$f":"'Trial 7'!L45","v":{"v":1165086.59723531,"d":"$1,165,087"}},{"$f":"'Trial 7'!M45","v":{"v":1164754.015028151,"d":"$1,164,754"}},{"$f":"SUM('Trial 7'!B45:M45)","v":{"v":13992044.017617827,"d":"$13,992,044"}},{"$f":"'Trial 7'!O45","v":{"v":1164390.4883900643,"d":"$1,164,390"}},{"$f":"'Trial 7'!P45","v":{"v":1163995.7218063674,"d":"$1,163,996"}},{"$f":"'Trial 7'!Q45","v":{"v":1163573.6131992105,"d":"$1,163,574"}},{"$f":"'Trial 7'!R45","v":{"v":1163131.2132865093,"d":"$1,163,131"}},{"$f":"'Trial 7'!S45","v":{"v":1162668.4761122782,"d":"$1,162,668"}},{"$f":"'Trial 7'!T45","v":{"v":1162184.320404003,"d":"$1,162,184"}},{"$f":"'Trial 7'!U45","v":{"v":1161676.8128645883,"d":"$1,161,677"}},{"$f":"'Trial 7'!V45","v":{"v":1161150.4029161485,"d":"$1,161,150"}},{"$f":"'Trial 7'!W45","v":{"v":1160598.794469081,"d":"$1,160,599"}},{"$f":"'Trial 7'!X45","v":{"v":1160029.9541759957,"d":"$1,160,030"}},{"$f":"'Trial 7'!Y45","v":{"v":1159446.7978268834,"d":"$1,159,447"}},{"$f":"'Trial 7'!Z45","v":{"v":1158846.9717302078,"d":"$1,158,847"}},{"$f":"SUM('Trial 7'!O45:Z45)","v":{"v":13941693.567181336,"d":"$13,941,694"}},{"$f":"'Trial 7'!AB45","v":{"v":1158225.7928580458,"d":"$1,158,226"}},{"$f":"'Trial 7'!AC45","v":{"v":1157573.9790646315,"d":"$1,157,574"}},{"$f":"'Trial 7'!AD45","v":{"v":1156891.6324287236,"d":"$1,156,892"}},{"$f":"'Trial 7'!AE45","v":{"v":1156190.0418994362,"d":"$1,156,190"}},{"$f":"'Trial 7'!AF45","v":{"v":1155472.650259101,"d":"$1,155,473"}},{"$f":"'Trial 7'!AG45","v":{"v":1154743.5107851431,"d":"$1,154,744"}},{"$f":"'Trial 7'!AH45","v":{"v":1153992.993845863,"d":"$1,153,993"}},{"$f":"'Trial 7'!AI45","v":{"v":1153229.7197752516,"d":"$1,153,230"}},{"$f":"'Trial 7'!AJ45","v":{"v":1152453.6360435782,"d":"$1,152,454"}},{"$f":"'Trial 7'!AK45","v":{"v":1151654.66636663,"d":"$1,151,655"}},{"$f":"'Trial 7'!AL45","v":{"v":1150838.8369221985,"d":"$1,150,839"}},{"$f":"'Trial 7'!AM45","v":{"v":1150008.9481156063,"d":"$1,150,009"}},{"$f":"SUM('Trial 7'!AB45:AM45)","v":{"v":13851276.408364208,"d":"$13,851,276"}},{"$f":"'Trial 7'!AO45","v":{"v":1149166.087270407,"d":"$1,149,166"}},{"$f":"'Trial 7'!AP45","v":{"v":1148306.1811093718,"d":"$1,148,306"}},{"$f":"'Trial 7'!AQ45","v":{"v":1147427.0350569945,"d":"$1,147,427"}},{"$f":"'Trial 7'!AR45","v":{"v":1146534.309917645,"d":"$1,146,534"}},{"$f":"'Trial 7'!AS45","v":{"v":1145635.2360843162,"d":"$1,145,635"}},{"$f":"'Trial 7'!AT45","v":{"v":1144729.69127068,"d":"$1,144,730"}},{"$f":"'Trial 7'!AU45","v":{"v":1143822.967597686,"d":"$1,143,823"}},{"$f":"'Trial 7'!AV45","v":{"v":1142900.8937940798,"d":"$1,142,901"}},{"$f":"'Trial 7'!AW45","v":{"v":1141967.4279038205,"d":"$1,141,967"}},{"$f":"'Trial 7'!AX45","v":{"v":1141022.786568856,"d":"$1,141,023"}},{"$f":"'Trial 7'!AY45","v":{"v":1140064.634667886,"d":"$1,140,065"}},{"$f":"'Trial 7'!AZ45","v":{"v":1139091.0681900664,"d":"$1,139,091"}},{"$f":"SUM('Trial 7'!AO45:AZ45)","v":{"v":13730668.319431808,"d":"$13,730,668"}},{"$f":"'Trial 7'!BB45","v":{"v":1138104.1707129392,"d":"$1,138,104"}},{"$f":"'Trial 7'!BC45","v":{"v":1137100.6162765634,"d":"$1,137,101"}},{"$f":"'Trial 7'!BD45","v":{"v":1136087.0627562979,"d":"$1,136,087"}},{"$f":"'Trial 7'!BE45","v":{"v":1135063.4355129518,"d":"$1,135,063"}},{"$f":"'Trial 7'!BF45","v":{"v":1134036.129958341,"d":"$1,134,036"}},{"$f":"'Trial 7'!BG45","v":{"v":1133000.5740475913,"d":"$1,133,001"}},{"$f":"'Trial 7'!BH45","v":{"v":1131961.8887231664,"d":"$1,131,962"}},{"$f":"'Trial 7'!BI45","v":{"v":1130924.4040971727,"d":"$1,130,924"}},{"$f":"'Trial 7'!BJ45","v":{"v":1129875.3296636844,"d":"$1,129,875"}},{"$f":"'Trial 7'!BK45","v":{"v":1128820.78237637,"d":"$1,128,821"}},{"$f":"'Trial 7'!BL45","v":{"v":1127757.883146006,"d":"$1,127,758"}},{"$f":"'Trial 7'!BM45","v":{"v":1126682.4324791448,"d":"$1,126,682"}},{"$f":"SUM('Trial 7'!BB45:BM45)","v":{"v":13589414.70975023,"d":"$13,589,415"}},{"$f":"'Trial 7'!BO45","v":{"v":1125599.9817775418,"d":"$1,125,600"}},{"$f":"'Trial 7'!BP45","v":{"v":1124517.6134392845,"d":"$1,124,518"}},{"$f":"'Trial 7'!BQ45","v":{"v":1123428.4236344327,"d":"$1,123,428"}},{"$f":"'Trial 7'!BR45","v":{"v":1122326.2882303908,"d":"$1,122,326"}},{"$f":"'Trial 7'!BS45","v":{"v":1121225.5466123666,"d":"$1,121,226"}},{"$f":"'Trial 7'!BT45","v":{"v":1120126.108621901,"d":"$1,120,126"}},{"$f":"'Trial 7'!BU45","v":{"v":1119031.4566299953,"d":"$1,119,031"}},{"$f":"'Trial 7'!BV45","v":{"v":1117943.0406411842,"d":"$1,117,943"}},{"$f":"'Trial 7'!BW45","v":{"v":1116858.37891096,"d":"$1,116,858"}},{"$f":"'Trial 7'!BX45","v":{"v":1115766.0433638087,"d":"$1,115,766"}},{"$f":"'Trial 7'!BY45","v":{"v":1114680.3603880743,"d":"$1,114,680"}},{"$f":"'Trial 7'!BZ45","v":{"v":1113587.9827765606,"d":"$1,113,588"}},{"$f":"SUM('Trial 7'!BO45:BZ45)","v":{"v":13435091.2250265,"d":"$13,435,091"}},{"$f":"'Trial 7'!CB45","v":{"v":1112485.676427995,"d":"$1,112,486"}},{"$f":"'Trial 7'!CC45","v":{"v":1111370.1921230138,"d":"$1,111,370"}},{"$f":"'Trial 7'!CD45","v":{"v":1110253.297944844,"d":"$1,110,253"}},{"$f":"'Trial 7'!CE45","v":{"v":1109140.625598835,"d":"$1,109,141"}},{"$f":"'Trial 7'!CF45","v":{"v":1108033.176027319,"d":"$1,108,033"}},{"$f":"'Trial 7'!CG45","v":{"v":1106913.667906831,"d":"$1,106,914"}},{"$f":"'Trial 7'!CH45","v":{"v":1105790.9680414654,"d":"$1,105,791"}},{"$f":"'Trial 7'!CI45","v":{"v":1104673.800866702,"d":"$1,104,674"}},{"$f":"'Trial 7'!CJ45","v":{"v":1103544.8315556233,"d":"$1,103,545"}},{"$f":"'Trial 7'!CK45","v":{"v":1102410.8937152487,"d":"$1,102,411"}},{"$f":"'Trial 7'!CL45","v":{"v":1101290.3747880661,"d":"$1,101,290"}},{"$f":"'Trial 7'!CM45","v":{"v":1100181.656253566,"d":"$1,100,182"}},{"$f":"SUM('Trial 7'!CB45:CM45)","v":{"v":13276089.161249511,"d":"$13,276,089"}},{"$f":"'Trial 7'!CO45","v":{"v":1099072.590163648,"d":"$1,099,073"}},{"$f":"'Trial 7'!CP45","v":{"v":1097970.830302569,"d":"$1,097,971"}},{"$f":"'Trial 7'!CQ45","v":{"v":1096881.5002744175,"d":"$1,096,882"}},{"$f":"'Trial 7'!CR45","v":{"v":1095792.0784274554,"d":"$1,095,792"}},{"$f":"'Trial 7'!CS45","v":{"v":1094707.1531327935,"d":"$1,094,707"}},{"$f":"'Trial 7'!CT45","v":{"v":1093628.1265968366,"d":"$1,093,628"}},{"$f":"'Trial 7'!CU45","v":{"v":1092550.7379893991,"d":"$1,092,551"}},{"$f":"'Trial 7'!CV45","v":{"v":1091473.7778919518,"d":"$1,091,474"}},{"$f":"'Trial 7'!CW45","v":{"v":1090404.2013834445,"d":"$1,090,404"}},{"$f":"'Trial 7'!CX45","v":{"v":1089335.531012183,"d":"$1,089,336"}},{"$f":"'Trial 7'!CY45","v":{"v":1088267.206780265,"d":"$1,088,267"}},{"$f":"'Trial 7'!CZ45","v":{"v":1087191.74314216,"d":"$1,087,192"}},{"$f":"SUM('Trial 7'!CO45:CZ45)","v":{"v":13117275.477097122,"d":"$13,117,275"}},{"$f":"'Trial 7'!DB45","v":{"v":1086110.6973105355,"d":"$1,086,111"}},{"$f":"'Trial 7'!DC45","v":{"v":1085034.86166501,"d":"$1,085,035"}},{"$f":"'Trial 7'!DD45","v":{"v":1083970.9840977709,"d":"$1,083,971"}},{"$f":"'Trial 7'!DE45","v":{"v":1082915.9322705406,"d":"$1,082,916"}},{"$f":"'Trial 7'!DF45","v":{"v":1081863.7580646705,"d":"$1,081,864"}},{"$f":"'Trial 7'!DG45","v":{"v":1080816.4446087072,"d":"$1,080,816"}},{"$f":"'Trial 7'!DH45","v":{"v":1079773.0081511685,"d":"$1,079,773"}},{"$f":"'Trial 7'!DI45","v":{"v":1078723.4449302542,"d":"$1,078,723"}},{"$f":"'Trial 7'!DJ45","v":{"v":1077667.2533406783,"d":"$1,077,667"}},{"$f":"'Trial 7'!DK45","v":{"v":1076614.3331620444,"d":"$1,076,614"}},{"$f":"'Trial 7'!DL45","v":{"v":1075563.611667941,"d":"$1,075,564"}},{"$f":"'Trial 7'!DM45","v":{"v":1074506.627329055,"d":"$1,074,507"}},{"$f":"SUM('Trial 7'!DB45:DM45)","v":{"v":12963560.956598375,"d":"$12,963,561"}},{"$f":"'Trial 7'!DO45","v":{"v":1073453.6465619535,"d":"$1,073,454"}},{"$f":"'Trial 7'!DP45","v":{"v":1072405.125831269,"d":"$1,072,405"}},{"$f":"'Trial 7'!DQ45","v":{"v":1071354.5623296017,"d":"$1,071,355"}},{"$f":"'Trial 7'!DR45","v":{"v":1070306.8432382029,"d":"$1,070,307"}},{"$f":"'Trial 7'!DS45","v":{"v":1069261.662330598,"d":"$1,069,262"}},{"$f":"'Trial 7'!DT45","v":{"v":1068212.7510985034,"d":"$1,068,213"}},{"$f":"'Trial 7'!DU45","v":{"v":1067169.7272676865,"d":"$1,067,170"}},{"$f":"'Trial 7'!DV45","v":{"v":1066123.7811876235,"d":"$1,066,124"}},{"$f":"'Trial 7'!DW45","v":{"v":1065078.2323309104,"d":"$1,065,078"}},{"$f":"'Trial 7'!DX45","v":{"v":1064041.482681898,"d":"$1,064,041"}},{"$f":"'Trial 7'!DY45","v":{"v":1063020.9360824227,"d":"$1,063,021"}},{"$f":"'Trial 7'!DZ45","v":{"v":1061994.8103395456,"d":"$1,061,995"}},{"$f":"SUM('Trial 7'!DO45:DZ45)","v":{"v":12812423.561280215,"d":"$12,812,424"}},{"$f":"'Trial 7'!EB45","v":{"v":1060968.5227610797,"d":"$1,060,969"}},{"$f":"'Trial 7'!EC45","v":{"v":1059939.2595714491,"d":"$1,059,939"}},{"$f":"'Trial 7'!ED45","v":{"v":1058921.6626793174,"d":"$1,058,922"}},{"$f":"'Trial 7'!EE45","v":{"v":1057901.7630533308,"d":"$1,057,902"}},{"$f":"'Trial 7'!EF45","v":{"v":1056885.7807358121,"d":"$1,056,886"}},{"$f":"'Trial 7'!EG45","v":{"v":1055876.351548996,"d":"$1,055,876"}},{"$f":"'Trial 7'!EH45","v":{"v":1054865.1324098133,"d":"$1,054,865"}},{"$f":"'Trial 7'!EI45","v":{"v":1053846.6533973948,"d":"$1,053,847"}},{"$f":"'Trial 7'!EJ45","v":{"v":1052822.868531562,"d":"$1,052,823"}},{"$f":"'Trial 7'!EK45","v":{"v":1051807.4016360105,"d":"$1,051,807"}},{"$f":"'Trial 7'!EL45","v":{"v":1050801.2151771006,"d":"$1,050,801"}},{"$f":"'Trial 7'!EM45","v":{"v":1049799.438776439,"d":"$1,049,799"}},{"$f":"SUM('Trial 7'!EB45:EM45)","v":{"v":12664436.050278304,"d":"$12,664,436"}}]
[{"$f":"Labels!B103","v":"Trial 08"},{"$f":"'Trial 8'!B45","v":{"v":1166666.6666666667,"d":"$1,166,667"}},{"$f":"'Trial 8'!C45","v":{"v":1166666.6666666667,"d":"$1,166,667"}},{"$f":"'Trial 8'!D45","v":{"v":1166617.2190847096,"d":"$1,166,617"}},{"$f":"'Trial 8'!E45","v":{"v":1166526.7551124713,"d":"$1,166,527"}},{"$f":"'Trial 8'!F45","v":{"v":1166398.7932722978,"d":"$1,166,399"}},{"$f":"'Trial 8'!G45","v":{"v":1166236.5737276275,"d":"$1,166,237"}},{"$f":"'Trial 8'!H45","v":{"v":1166050.4602780303,"d":"$1,166,050"}},{"$f":"'Trial 8'!I45","v":{"v":1165833.046114636,"d":"$1,165,833"}},{"$f":"'Trial 8'!J45","v":{"v":1165581.4181729401,"d":"$1,165,581"}},{"$f":"'Trial 8'!K45","v":{"v":1165301.4127980317,"d":"$1,165,301"}},{"$f":"'Trial 8'!L45","v":{"v":1164982.6333261936,"d":"$1,164,983"}},{"$f":"'Trial 8'!M45","v":{"v":1164637.673374215,"d":"$1,164,638"}},{"$f":"SUM('Trial 8'!B45:M45)","v":{"v":13991499.318594487,"d":"$13,991,499"}},{"$f":"'Trial 8'!O45","v":{"v":1164255.183633396,"d":"$1,164,255"}},{"$f":"'Trial 8'!P45","v":{"v":1163845.0406479395,"d":"$1,163,845"}},{"$f":"'Trial 8'!Q45","v":{"v":1163416.5155007334,"d":"$1,163,417"}},{"$f":"'Trial 8'!R45","v":{"v":1162955.3097891726,"d":"$1,162,955"}},{"$f":"'Trial 8'!S45","v":{"v":1162457.6914576737,"d":"$1,162,458"}},{"$f":"'Trial 8'!T45","v":{"v":1161937.3198042845,"d":"$1,161,937"}},{"$f":"'Trial 8'!U45","v":{"v":1161392.7101493631,"d":"$1,161,393"}},{"$f":"'Trial 8'!V45","v":{"v":1160834.0413659548,"d":"$1,160,834"}},{"$f":"'Trial 8'!W45","v":{"v":1160251.2277589655,"d":"$1,160,251"}},{"$f":"'Trial 8'!X45","v":{"v":1159646.6452117413,"d":"$1,159,647"}},{"$f":"'Trial 8'!Y45","v":{"v":1159028.9901424472,"d":"$1,159,029"}},{"$f":"'Trial 8'!Z45","v":{"v":1158384.6804341392,"d":"$1,158,385"}},{"$f":"SUM('Trial 8'!O45:Z45)","v":{"v":13938405.355895814,"d":"$13,938,405"}},{"$f":"'Trial 8'!AB45","v":{"v":1157711.8642618982,"d":"$1,157,712"}},{"$f":"'Trial 8'!AC45","v":{"v":1157015.0749144966,"d":"$1,157,015"}},{"$f":"'Trial 8'!AD45","v":{"v":1156299.4362515998,"d":"$1,156,299"}},{"$f":"'Trial 8'!AE45","v":{"v":1155566.1663933839,"d":"$1,155,566"}},{"$f":"'Trial 8'!AF45","v":{"v":1154811.4010113184,"d":"$1,154,811"}},{"$f":"'Trial 8'!AG45","v":{"v":1154038.3183016635,"d":"$1,154,038"}},{"$f":"'Trial 8'!AH45","v":{"v":1153242.9625315387,"d":"$1,153,243"}},{"$f":"'Trial 8'!AI45","v":{"v":1152427.8158732145,"d":"$1,152,428"}},{"$f":"'Trial 8'!AJ45","v":{"v":1151601.5350242734,"d":"$1,151,602"}},{"$f":"'Trial 8'!AK45","v":{"v":1150763.6191453123,"d":"$1,150,764"}},{"$f":"'Trial 8'!AL45","v":{"v":1149908.3843652338,"d":"$1,149,908"}},{"$f":"'Trial 8'!AM45","v":{"v":1149039.9417142395,"d":"$1,149,040"}},{"$f":"SUM('Trial 8'!AB45:AM45)","v":{"v":13842426.519788174,"d":"$13,842,427"}},{"$f":"'Trial 8'!AO45","v":{"v":1148166.322195816,"d":"$1,148,166"}},{"$f":"'Trial 8'!AP45","v":{"v":1147287.1221521283,"d":"$1,147,287"}},{"$f":"'Trial 8'!AQ45","v":{"v":1146401.7878982923,"d":"$1,146,402"}},{"$f":"'Trial 8'!AR45","v":{"v":1145505.126153306,"d":"$1,145,505"}},{"$f":"'Trial 8'!AS45","v":{"v":1144597.2824586905,"d":"$1,144,597"}},{"$f":"'Trial 8'!AT45","v":{"v":1143671.6514624553,"d":"$1,143,672"}},{"$f":"'Trial 8'!AU45","v":{"v":1142729.0226851595,"d":"$1,142,729"}},{"$f":"'Trial 8'!AV45","v":{"v":1141774.3785371268,"d":"$1,141,774"}},{"$f":"'Trial 8'!AW45","v":{"v":1140813.7399165255,"d":"$1,140,814"}},{"$f":"'Trial 8'!AX45","v":{"v":1139844.6039682226,"d":"$1,139,845"}},{"$f":"'Trial 8'!AY45","v":{"v":1138868.048331573,"d":"$1,138,868"}},{"$f":"'Trial 8'!AZ45","v":{"v":1137883.6029820193,"d":"$1,137,884"}},{"$f":"SUM('Trial 8'!AO45:AZ45)","v":{"v":13717542.688741317,"d":"$13,717,543"}},{"$f":"'Trial 8'!BB45","v":{"v":1136894.1020382359,"d":"$1,136,894"}},{"$f":"'Trial 8'!BC45","v":{"v":1135898.6090644186,"d":"$1,135,899"}},{"$f":"'Trial 8'!BD45","v":{"v":1134892.8905953541,"d":"$1,134,893"}},{"$f":"'Trial 8'!BE45","v":{"v":1133886.334444338,"d":"$1,133,886"}},{"$f":"'Trial 8'!BF45","v":{"v":1132881.035008147,"d":"$1,132,881"}},{"$f":"'Trial 8'!BG45","v":{"v":1131871.7544857387,"d":"$1,131,872"}},{"$f":"'Trial 8'!BH45","v":{"v":1130858.378822157,"d":"$1,130,858"}},{"$f":"'Trial 8'!BI45","v":{"v":1129845.7795272332,"d":"$1,129,846"}},{"$f":"'Trial 8'!BJ45","v":{"v":1128822.549310033,"d":"$1,128,823"}},{"$f":"'Trial 8'!BK45","v":{"v":1127793.7268441927,"d":"$1,127,794"}},{"$f":"'Trial 8'!BL45","v":{"v":1126763.536113315,"d":"$1,126,764"}},{"$f":"'Trial 8'!BM45","v":{"v":1125731.6676061226,"d":"$1,125,732"}},{"$f":"SUM('Trial 8'!BB45:BM45)","v":{"v":13576140.363859285,"d":"$13,576,140"}},{"$f":"'Trial 8'!BO45","v":{"v":1124698.6343013186,"d":"$1,124,699"}},{"$f":"'Trial 8'!BP45","v":{"v":1123659.6349311806,"d":"$1,123,660"}},{"$f":"'Trial 8'!BQ45","v":{"v":1122620.773723874,"d":"$1,122,621"}},{"$f":"'Trial 8'!BR45","v":{"v":1121585.9167384594,"d":"$1,121,586"}},{"$f":"'Trial 8'!BS45","v":{"v":1120552.5880830274,"d":"$1,120,553"}},{"$f":"'Trial 8'!BT45","v":{"v":1119526.261367102,"d":"$1,119,526"}},{"$f":"'Trial 8'!BU45","v":{"v":1118499.5187626446,"d":"$1,118,500"}},{"$f":"'Trial 8'!BV45","v":{"v":1117469.2539593806,"d":"$1,117,469"}},{"$f":"'Trial 8'!BW45","v":{"v":1116438.3458292927,"d":"$1,116,438"}},{"$f":"'Trial 8'!BX45","v":{"v":1115412.4334796302,"d":"$1,115,412"}},{"$f":"'Trial 8'!BY45","v":{"v":1114388.5884659276,"d":"$1,114,389"}},{"$f":"'Trial 8'!BZ45","v":{"v":1113366.7279918776,"d":"$1,113,367"}},{"$f":"SUM('Trial 8'!BO45:BZ45)","v":{"v":13428218.677633714,"d":"$13,428,219"}},{"$f":"'Trial 8'!CB45","v":{"v":1112339.8429298722,"d":"$1,112,340"}},{"$f":"'Trial 8'!CC45","v":{"v":1111301.6745092187,"d":"$1,111,302"}},{"$f":"'Trial 8'!CD45","v":{"v":1110258.2854316074,"d":"$1,110,258"}},{"$f":"'Trial 8'!CE45","v":{"v":1109213.0647312074,"d":"$1,109,213"}},{"$f":"'Trial 8'!CF45","v":{"v":1108159.216624071,"d":"$1,108,159"}},{"$f":"'Trial 8'!CG45","v":{"v":1107105.4139585756,"d":"$1,107,105"}},{"$f":"'Trial 8'!CH45","v":{"v":1106049.2961116966,"d":"$1,106,049"}},{"$f":"'Trial 8'!CI45","v":{"v":1105003.3495135603,"d":"$1,105,003"}},{"$f":"'Trial 8'!CJ45","v":{"v":1103956.6329526221,"d":"$1,103,957"}},{"$f":"'Trial 8'!CK45","v":{"v":1102904.5218222307,"d":"$1,102,905"}},{"$f":"'Trial 8'!CL45","v":{"v":1101855.2456789936,"d":"$1,101,855"}},{"$f":"'Trial 8'!CM45","v":{"v":1100810.8801976724,"d":"$1,100,811"}},{"$f":"SUM('Trial 8'!CB45:CM45)","v":{"v":13278957.424461326,"d":"$13,278,957"}},{"$f":"'Trial 8'!CO45","v":{"v":1099759.3375727942,"d":"$1,099,759"}},{"$f":"'Trial 8'!CP45","v":{"v":1098715.4821008379,"d":"$1,098,715"}},{"$f":"'Trial 8'!CQ45","v":{"v":1097679.5568883994,"d":"$1,097,680"}},{"$f":"'Trial 8'!CR45","v":{"v":1096644.7122770215,"d":"$1,096,645"}},{"$f":"'Trial 8'!CS45","v":{"v":1095613.6185133706,"d":"$1,095,614"}},{"$f":"'Trial 8'!CT45","v":{"v":1094585.733156026,"d":"$1,094,586"}},{"$f":"'Trial 8'!CU45","v":{"v":1093545.0117483577,"d":"$1,093,545"}},{"$f":"'Trial 8'!CV45","v":{"v":1092503.6399936273,"d":"$1,092,504"}},{"$f":"'Trial 8'!CW45","v":{"v":1091469.4128459005,"d":"$1,091,469"}},{"$f":"'Trial 8'!CX45","v":{"v":1090435.4451848865,"d":"$1,090,435"}},{"$f":"'Trial 8'!CY45","v":{"v":1089390.4583575928,"d":"$1,089,390"}},{"$f":"'Trial 8'!CZ45","v":{"v":1088353.8383737984,"d":"$1,088,354"}},{"$f":"SUM('Trial 8'!CO45:CZ45)","v":{"v":13128696.247012613,"d":"$13,128,696"}},{"$f":"'Trial 8'!DB45","v":{"v":1087329.8459707152,"d":"$1,087,330"}},{"$f":"'Trial 8'!DC45","v":{"v":1086301.4093972824,"d":"$1,086,301"}},{"$f":"'Trial 8'!DD45","v":{"v":1085285.5257208555,"d":"$1,085,286"}},{"$f":"'Trial 8'!DE45","v":{"v":1084266.200916149,"d":"$1,084,266"}},{"$f":"'Trial 8'!DF45","v":{"v":1083240.836024544,"d":"$1,083,241"}},{"$f":"'Trial 8'!DG45","v":{"v":1082214.5030353582,"d":"$1,082,215"}},{"$f":"'Trial 8'!DH45","v":{"v":1081189.9915403726,"d":"$1,081,190"}},{"$f":"'Trial 8'!DI45","v":{"v":1080162.985725638,"d":"$1,080,163"}},{"$f":"'Trial 8'!DJ45","v":{"v":1079136.5851189618,"d":"$1,079,137"}},{"$f":"'Trial 8'!DK45","v":{"v":1078104.5141967381,"d":"$1,078,105"}},{"$f":"'Trial 8'!DL45","v":{"v":1077085.267084124,"d":"$1,077,085"}},{"$f":"'Trial 8'!DM45","v":{"v":1076064.9179768192,"d":"$1,076,065"}},{"$f":"SUM('Trial 8'!DB45:DM45)","v":{"v":12980382.582707558,"d":"$12,980,383"}},{"$f":"'Trial 8'!DO45","v":{"v":1075056.0551945553,"d":"$1,075,056"}},{"$f":"'Trial 8'!DP45","v":{"v":1074047.229000066,"d":"$1,074,047"}},{"$f":"'Trial 8'!DQ45","v":{"v":1073031.0071929381,"d":"$1,073,031"}},{"$f":"'Trial 8'!DR45","v":{"v":1072010.0239865396,"d":"$1,072,010"}},{"$f":"'Trial 8'!DS45","v":{"v":1071001.8315404234,"d":"$1,071,002"}},{"$f":"'Trial 8'!DT45","v":{"v":1070004.2729403174,"d":"$1,070,004"}},{"$f":"'Trial 8'!DU45","v":{"v":1069006.0537112684,"d":"$1,069,006"}},{"$f":"'Trial 8'!DV45","v":{"v":1068018.4536309212,"d":"$1,068,018"}},{"$f":"'Trial 8'!DW45","v":{"v":1067040.2819359729,"d":"$1,067,040"}},{"$f":"'Trial 8'!DX45","v":{"v":1066065.0838986645,"d":"$1,066,065"}},{"$f":"'Trial 8'!DY45","v":{"v":1065095.648002265,"d":"$1,065,096"}},{"$f":"'Trial 8'!DZ45","v":{"v":1064119.541284294,"d":"$1,064,120"}},{"$f":"SUM('Trial 8'!DO45:DZ45)","v":{"v":12834495.482318226,"d":"$12,834,495"}},{"$f":"'Trial 8'!EB45","v":{"v":1063148.1743102258,"d":"$1,063,148"}},{"$f":"'Trial 8'!EC45","v":{"v":1062179.113297415,"d":"$1,062,179"}},{"$f":"'Trial 8'!ED45","v":{"v":1061202.820603681,"d":"$1,061,203"}},{"$f":"'Trial 8'!EE45","v":{"v":1060220.3021375644,"d":"$1,060,220"}},{"$f":"'Trial 8'!EF45","v":{"v":1059244.341215766,"d":"$1,059,244"}},{"$f":"'Trial 8'!EG45","v":{"v":1058267.6314536443,"d":"$1,058,268"}},{"$f":"'Trial 8'!EH45","v":{"v":1057289.1655062358,"d":"$1,057,289"}},{"$f":"'Trial 8'!EI45","v":{"v":1056314.4470756026,"d":"$1,056,314"}},{"$f":"'Trial 8'!EJ45","v":{"v":1055350.8094581098,"d":"$1,055,351"}},{"$f":"'Trial 8'!EK45","v":{"v":1054384.810189788,"d":"$1,054,385"}},{"$f":"'Trial 8'!EL45","v":{"v":1053422.7575608469,"d":"$1,053,423"}},{"$f":"'Trial 8'!EM45","v":{"v":1052454.3761933714,"d":"$1,052,454"}},{"$f":"SUM('Trial 8'!EB45:EM45)","v":{"v":12693478.74900225,"d":"$12,693,479"}}]
[{"$f":"Labels!C95","v":"Total"},{"$f":"SUM('Trial 1'!B45,'Trial 2'!B45,'Trial 3'!B45,'Trial 4'!B45,'Trial 5'!B45,'Trial 6'!B45,'Trial 7'!B45,'Trial 8'!B45)","v":{"v":9333333.333333334,"d":"$9,333,333"}},{"$f":"SUM('Trial 1'!C45,'Trial 2'!C45,'Trial 3'!C45,'Trial 4'!C45,'Trial 5'!C45,'Trial 6'!C45,'Trial 7'!C45,'Trial 8'!C45)","v":{"v":9333333.333333334,"d":"$9,333,333"}},{"$f":"SUM('Trial 1'!D45,'Trial 2'!D45,'Trial 3'!D45,'Trial 4'!D45,'Trial 5'!D45,'Trial 6'!D45,'Trial 7'!D45,'Trial 8'!D45)","v":{"v":9332971.02703304,"d":"$9,332,971"}},{"$f":"SUM('Trial 1'!E45,'Trial 2'!E45,'Trial 3'!E45,'Trial 4'!E45,'Trial 5'!E45,'Trial 6'!E45,'Trial 7'!E45,'Trial 8'!E45)","v":{"v":9332280.352328736,"d":"$9,332,280"}},{"$f":"SUM('Trial 1'!F45,'Trial 2'!F45,'Trial 3'!F45,'Trial 4'!F45,'Trial 5'!F45,'Trial 6'!F45,'Trial 7'!F45,'Trial 8'!F45)","v":{"v":9331301.244798692,"d":"$9,331,301"}},{"$f":"SUM('Trial 1'!G45,'Trial 2'!G45,'Trial 3'!G45,'Trial 4'!G45,'Trial 5'!G45,'Trial 6'!G45,'Trial 7'!G45,'Trial 8'!G45)","v":{"v":9330054.545958977,"d":"$9,330,055"}},{"$f":"SUM('Trial 1'!H45,'Trial 2'!H45,'Trial 3'!H45,'Trial 4'!H45,'Trial 5'!H45,'Trial 6'!H45,'Trial 7'!H45,'Trial 8'!H45)","v":{"v":9328564.180298492,"d":"$9,328,564"}},{"$f":"SUM('Trial 1'!I45,'Trial 2'!I45,'Trial 3'!I45,'Trial 4'!I45,'Trial 5'!I45,'Trial 6'!I45,'Trial 7'!I45,'Trial 8'!I45)","v":{"v":9326816.1429676,"d":"$9,326,816"}},{"$f":"SUM('Trial 1'!J45,'Trial 2'!J45,'Trial 3'!J45,'Trial 4'!J45,'Trial 5'!J45,'Trial 6'!J45,'Trial 7'!J45,'Trial 8'!J45)","v":{"v":9324789.36315858,"d":"$9,324,789"}},{"$f":"SUM('Trial 1'!K45,'Trial 2'!K45,'Trial 3'!K45,'Trial 4'!K45,'Trial 5'!K45,'Trial 6'!K45,'Trial 7'!K45,'Trial 8'!K45)","v":{"v":9322505.808256695,"d":"$9,322,506"}},{"$f":"SUM('Trial 1'!L45,'Trial 2'!L45,'Trial 3'!L45,'Trial 4'!L45,'Trial 5'!L45,'Trial 6'!L45,'Trial 7'!L45,'Trial 8'!L45)","v":{"v":9319975.543419959,"d":"$9,319,976"}},{"$f":"SUM('Trial 1'!M45,'Trial 2'!M45,'Trial 3'!M45,'Trial 4'!M45,'Trial 5'!M45,'Trial 6'!M45,'Trial 7'!M45,'Trial 8'!M45)","v":{"v":9317206.219775504,"d":"$9,317,206"}},{"$f":"SUM(B94:M94)","v":{"v":111933131.09466295,"d":"$111,933,131"}},{"$f":"SUM('Trial 1'!O45,'Trial 2'!O45,'Trial 3'!O45,'Trial 4'!O45,'Trial 5'!O45,'Trial 6'!O45,'Trial 7'!O45,'Trial 8'!O45)","v":{"v":9314201.856583688,"d":"$9,314,202"}},{"$f":"SUM('Trial 1'!P45,'Trial 2'!P45,'Trial 3'!P45,'Trial 4'!P45,'Trial 5'!P45,'Trial 6'!P45,'Trial 7'!P45,'Trial 8'!P45)","v":{"v":9310960.141301675,"d":"$9,310,960"}},{"$f":"SUM('Trial 1'!Q45,'Trial 2'!Q45,'Trial 3'!Q45,'Trial 4'!Q45,'Trial 5'!Q45,'Trial 6'!Q45,'Trial 7'!Q45,'Trial 8'!Q45)","v":{"v":9307506.5768348,"d":"$9,307,507"}},{"$f":"SUM('Trial 1'!R45,'Trial 2'!R45,'Trial 3'!R45,'Trial 4'!R45,'Trial 5'!R45,'Trial 6'!R45,'Trial 7'!R45,'Trial 8'!R45)","v":{"v":9303842.549738213,"d":"$9,303,843"}},{"$f":"SUM('Trial 1'!S45,'Trial 2'!S45,'Trial 3'!S45,'Trial 4'!S45,'Trial 5'!S45,'Trial 6'!S45,'Trial 7'!S45,'Trial 8'!S45)","v":{"v":9299981.73067308,"d":"$9,299,982"}},{"$f":"SUM('Trial 1'!T45,'Trial 2'!T45,'Trial 3'!T45,'Trial 4'!T45,'Trial 5'!T45,'Trial 6'!T45,'Trial 7'!T45,'Trial 8'!T45)","v":{"v":9295937.593255084,"d":"$9,295,938"}},{"$f":"SUM('Trial 1'!U45,'Trial 2'!U45,'Trial 3'!U45,'Trial 4'!U45,'Trial 5'!U45,'Trial 6'!U45,'Trial 7'!U45,'Trial 8'!U45)","v":{"v":9291654.846581984,"d":"$9,291,655"}},{"$f":"SUM('Trial 1'!V45,'Trial 2'!V45,'Trial 3'!V45,'Trial 4'!V45,'Trial 5'!V45,'Trial 6'!V45,'Trial 7'!V45,'Trial 8'!V45)","v":{"v":9287193.084891116,"d":"$9,287,193"}},{"$f":"SUM('Trial 1'!W45,'Trial 2'!W45,'Trial 3'!W45,'Trial 4'!W45,'Trial 5'!W45,'Trial 6'!W45,'Trial 7'!W45,'Trial 8'!W45)","v":{"v":9282521.580660075,"d":"$9,282,522"}},{"$f":"SUM('Trial 1'!X45,'Trial 2'!X45,'Trial 3'!X45,'Trial 4'!X45,'Trial 5'!X45,'Trial 6'!X45,'Trial 7'!X45,'Trial 8'!X45)","v":{"v":9277651.463631257,"d":"$9,277,651"}},{"$f":"SUM('Trial 1'!Y45,'Trial 2'!Y45,'Trial 3'!Y45,'Trial 4'!Y45,'Trial 5'!Y45,'Trial 6'!Y45,'Trial 7'!Y45,'Trial 8'!Y45)","v":{"v":9272632.220282355,"d":"$9,272,632"}},{"$f":"SUM('Trial 1'!Z45,'Trial 2'!Z45,'Trial 3'!Z45,'Trial 4'!Z45,'Trial 5'!Z45,'Trial 6'!Z45,'Trial 7'!Z45,'Trial 8'!Z45)","v":{"v":9267434.473138582,"d":"$9,267,434"}},{"$f":"SUM(O94:Z94)","v":{"v":111511518.1175719,"d":"$111,511,518"}},{"$f":"SUM('Trial 1'!AB45,'Trial 2'!AB45,'Trial 3'!AB45,'Trial 4'!AB45,'Trial 5'!AB45,'Trial 6'!AB45,'Trial 7'!AB45,'Trial 8'!AB45)","v":{"v":9262067.22688289,"d":"$9,262,067"}},{"$f":"SUM('Trial 1'!AC45,'Trial 2'!AC45,'Trial 3'!AC45,'Trial 4'!AC45,'Trial 5'!AC45,'Trial 6'!AC45,'Trial 7'!AC45,'Trial 8'!AC45)","v":{"v":9256501.564422632,"d":"$9,256,502"}},{"$f":"SUM('Trial 1'!AD45,'Trial 2'!AD45,'Trial 3'!AD45,'Trial 4'!AD45,'Trial 5'!AD45,'Trial 6'!AD45,'Trial 7'!AD45,'Trial 8'!AD45)","v":{"v":9250784.031009171,"d":"$9,250,784"}},{"$f":"SUM('Trial 1'!AE45,'Trial 2'!AE45,'Trial 3'!AE45,'Trial 4'!AE45,'Trial 5'!AE45,'Trial 6'!AE45,'Trial 7'!AE45,'Trial 8'!AE45)","v":{"v":9244935.281496486,"d":"$9,244,935"}},{"$f":"SUM('Trial 1'!AF45,'Trial 2'!AF45,'Trial 3'!AF45,'Trial 4'!AF45,'Trial 5'!AF45,'Trial 6'!AF45,'Trial 7'!AF45,'Trial 8'!AF45)","v":{"v":9238948.673999706,"d":"$9,238,949"}},{"$f":"SUM('Trial 1'!AG45,'Trial 2'!AG45,'Trial 3'!AG45,'Trial 4'!AG45,'Trial 5'!AG45,'Trial 6'!AG45,'Trial 7'!AG45,'Trial 8'!AG45)","v":{"v":9232824.02989886,"d":"$9,232,824"}},{"$f":"SUM('Trial 1'!AH45,'Trial 2'!AH45,'Trial 3'!AH45,'Trial 4'!AH45,'Trial 5'!AH45,'Trial 6'!AH45,'Trial 7'!AH45,'Trial 8'!AH45)","v":{"v":9226540.635031156,"d":"$9,226,541"}},{"$f":"SUM('Trial 1'!AI45,'Trial 2'!AI45,'Trial 3'!AI45,'Trial 4'!AI45,'Trial 5'!AI45,'Trial 6'!AI45,'Trial 7'!AI45,'Trial 8'!AI45)","v":{"v":9220139.67562374,"d":"$9,220,140"}},{"$f":"SUM('Trial 1'!AJ45,'Trial 2'!AJ45,'Trial 3'!AJ45,'Trial 4'!AJ45,'Trial 5'!AJ45,'Trial 6'!AJ45,'Trial 7'!AJ45,'Trial 8'!AJ45)","v":{"v":9213640.161975846,"d":"$9,213,640"}},{"$f":"SUM('Trial 1'!AK45,'Trial 2'!AK45,'Trial 3'!AK45,'Trial 4'!AK45,'Trial 5'!AK45,'Trial 6'!AK45,'Trial 7'!AK45,'Trial 8'!AK45)","v":{"v":9206993.558026021,"d":"$9,206,994"}},{"$f":"SUM('Trial 1'!AL45,'Trial 2'!AL45,'Trial 3'!AL45,'Trial 4'!AL45,'Trial 5'!AL45,'Trial 6'!AL45,'Trial 7'!AL45,'Trial 8'!AL45)","v":{"v":9200236.729080549,"d":"$9,200,237"}},{"$f":"SUM('Trial 1'!AM45,'Trial 2'!AM45,'Trial 3'!AM45,'Trial 4'!AM45,'Trial 5'!AM45,'Trial 6'!AM45,'Trial 7'!AM45,'Trial 8'!AM45)","v":{"v":9193380.995501231,"d":"$9,193,381"}},{"$f":"SUM(AB94:AM94)","v":{"v":110746992.56294827,"d":"$110,746,993"}},{"$f":"SUM('Trial 1'!AO45,'Trial 2'!AO45,'Trial 3'!AO45,'Trial 4'!AO45,'Trial 5'!AO45,'Trial 6'!AO45,'Trial 7'!AO45,'Trial 8'!AO45)","v":{"v":9186435.972728245,"d":"$9,186,436"}},{"$f":"SUM('Trial 1'!AP45,'Trial 2'!AP45,'Trial 3'!AP45,'Trial 4'!AP45,'Trial 5'!AP45,'Trial 6'!AP45,'Trial 7'!AP45,'Trial 8'!AP45)","v":{"v":9179372.004844483,"d":"$9,179,372"}},{"$f":"SUM('Trial 1'!AQ45,'Trial 2'!AQ45,'Trial 3'!AQ45,'Trial 4'!AQ45,'Trial 5'!AQ45,'Trial 6'!AQ45,'Trial 7'!AQ45,'Trial 8'!AQ45)","v":{"v":9172211.438279435,"d":"$9,172,211"}},{"$f":"SUM('Trial 1'!AR45,'Trial 2'!AR45,'Trial 3'!AR45,'Trial 4'!AR45,'Trial 5'!AR45,'Trial 6'!AR45,'Trial 7'!AR45,'Trial 8'!AR45)","v":{"v":9164978.177642222,"d":"$9,164,978"}},{"$f":"SUM('Trial 1'!AS45,'Trial 2'!AS45,'Trial 3'!AS45,'Trial 4'!AS45,'Trial 5'!AS45,'Trial 6'!AS45,'Trial 7'!AS45,'Trial 8'!AS45)","v":{"v":9157638.589015659,"d":"$9,157,639"}},{"$f":"SUM('Trial 1'!AT45,'Trial 2'!AT45,'Trial 3'!AT45,'Trial 4'!AT45,'Trial 5'!AT45,'Trial 6'!AT45,'Trial 7'!AT45,'Trial 8'!AT45)","v":{"v":9150209.522807516,"d":"$9,150,210"}},{"$f":"SUM('Trial 1'!AU45,'Trial 2'!AU45,'Trial 3'!AU45,'Trial 4'!AU45,'Trial 5'!AU45,'Trial 6'!AU45,'Trial 7'!AU45,'Trial 8'!AU45)","v":{"v":9142715.652121056,"d":"$9,142,716"}},{"$f":"SUM('Trial 1'!AV45,'Trial 2'!AV45,'Trial 3'!AV45,'Trial 4'!AV45,'Trial 5'!AV45,'Trial 6'!AV45,'Trial 7'!AV45,'Trial 8'!AV45)","v":{"v":9135139.239252716,"d":"$9,135,139"}},{"$f":"SUM('Trial 1'!AW45,'Trial 2'!AW45,'Trial 3'!AW45,'Trial 4'!AW45,'Trial 5'!AW45,'Trial 6'!AW45,'Trial 7'!AW45,'Trial 8'!AW45)","v":{"v":9127477.826265167,"d":"$9,127,478"}},{"$f":"SUM('Trial 1'!AX45,'Trial 2'!AX45,'Trial 3'!AX45,'Trial 4'!AX45,'Trial 5'!AX45,'Trial 6'!AX45,'Trial 7'!AX45,'Trial 8'!AX45)","v":{"v":9119744.848481294,"d":"$9,119,745"}},{"$f":"SUM('Trial 1'!AY45,'Trial 2'!AY45,'Trial 3'!AY45,'Trial 4'!AY45,'Trial 5'!AY45,'Trial 6'!AY45,'Trial 7'!AY45,'Trial 8'!AY45)","v":{"v":9111920.63290365,"d":"$9,111,921"}},{"$f":"SUM('Trial 1'!AZ45,'Trial 2'!AZ45,'Trial 3'!AZ45,'Trial 4'!AZ45,'Trial 5'!AZ45,'Trial 6'!AZ45,'Trial 7'!AZ45,'Trial 8'!AZ45)","v":{"v":9104022.436626025,"d":"$9,104,022"}},{"$f":"SUM(AO94:AZ94)","v":{"v":109751866.34096748,"d":"$109,751,866"}},{"$f":"SUM('Trial 1'!BB45,'Trial 2'!BB45,'Trial 3'!BB45,'Trial 4'!BB45,'Trial 5'!BB45,'Trial 6'!BB45,'Trial 7'!BB45,'Trial 8'!BB45)","v":{"v":9096063.323294457,"d":"$9,096,063"}},{"$f":"SUM('Trial 1'!BC45,'Trial 2'!BC45,'Trial 3'!BC45,'Trial 4'!BC45,'Trial 5'!BC45,'Trial 6'!BC45,'Trial 7'!BC45,'Trial 8'!BC45)","v":{"v":9088017.171788005,"d":"$9,088,017"}},{"$f":"SUM('Trial 1'!BD45,'Trial 2'!BD45,'Trial 3'!BD45,'Trial 4'!BD45,'Trial 5'!BD45,'Trial 6'!BD45,'Trial 7'!BD45,'Trial 8'!BD45)","v":{"v":9079891.292435972,"d":"$9,079,891"}},{"$f":"SUM('Trial 1'!BE45,'Trial 2'!BE45,'Trial 3'!BE45,'Trial 4'!BE45,'Trial 5'!BE45,'Trial 6'!BE45,'Trial 7'!BE45,'Trial 8'!BE45)","v":{"v":9071704.773619564,"d":"$9,071,705"}},{"$f":"SUM('Trial 1'!BF45,'Trial 2'!BF45,'Trial 3'!BF45,'Trial 4'!BF45,'Trial 5'!BF45,'Trial 6'!BF45,'Trial 7'!BF45,'Trial 8'!BF45)","v":{"v":9063467.287136536,"d":"$9,063,467"}},{"$f":"SUM('Trial 1'!BG45,'Trial 2'!BG45,'Trial 3'!BG45,'Trial 4'!BG45,'Trial 5'!BG45,'Trial 6'!BG45,'Trial 7'!BG45,'Trial 8'!BG45)","v":{"v":9055175.170369597,"d":"$9,055,175"}},{"$f":"SUM('Trial 1'!BH45,'Trial 2'!BH45,'Trial 3'!BH45,'Trial 4'!BH45,'Trial 5'!BH45,'Trial 6'!BH45,'Trial 7'!BH45,'Trial 8'!BH45)","v":{"v":9046844.776480136,"d":"$9,046,845"}},{"$f":"SUM('Trial 1'!BI45,'Trial 2'!BI45,'Trial 3'!BI45,'Trial 4'!BI45,'Trial 5'!BI45,'Trial 6'!BI45,'Trial 7'!BI45,'Trial 8'!BI45)","v":{"v":9038478.399186522,"d":"$9,038,478"}},{"$f":"SUM('Trial 1'!BJ45,'Trial 2'!BJ45,'Trial 3'!BJ45,'Trial 4'!BJ45,'Trial 5'!BJ45,'Trial 6'!BJ45,'Trial 7'!BJ45,'Trial 8'!BJ45)","v":{"v":9030046.671553899,"d":"$9,030,047"}},{"$f":"SUM('Trial 1'!BK45,'Trial 2'!BK45,'Trial 3'!BK45,'Trial 4'!BK45,'Trial 5'!BK45,'Trial 6'!BK45,'Trial 7'!BK45,'Trial 8'!BK45)","v":{"v":9021565.713986972,"d":"$9,021,566"}},{"$f":"SUM('Trial 1'!BL45,'Trial 2'!BL45,'Trial 3'!BL45,'Trial 4'!BL45,'Trial 5'!BL45,'Trial 6'!BL45,'Trial 7'!BL45,'Trial 8'!BL45)","v":{"v":9013060.089352721,"d":"$9,013,060"}},{"$f":"SUM('Trial 1'!BM45,'Trial 2'!BM45,'Trial 3'!BM45,'Trial 4'!BM45,'Trial 5'!BM45,'Trial 6'!BM45,'Trial 7'!BM45,'Trial 8'!BM45)","v":{"v":9004514.08480403,"d":"$9,004,514"}},{"$f":"SUM(BB94:BM94)","v":{"v":108608828.75400841,"d":"$108,608,829"}},{"$f":"SUM('Trial 1'!BO45,'Trial 2'!BO45,'Trial 3'!BO45,'Trial 4'!BO45,'Trial 5'!BO45,'Trial 6'!BO45,'Trial 7'!BO45,'Trial 8'!BO45)","v":{"v":8995948.28306961,"d":"$8,995,948"}},{"$f":"SUM('Trial 1'!BP45,'Trial 2'!BP45,'Trial 3'!BP45,'Trial 4'!BP45,'Trial 5'!BP45,'Trial 6'!BP45,'Trial 7'!BP45,'Trial 8'!BP45)","v":{"v":8987349.259286895,"d":"$8,987,349"}},{"$f":"SUM('Trial 1'!BQ45,'Trial 2'!BQ45,'Trial 3'!BQ45,'Trial 4'!BQ45,'Trial 5'!BQ45,'Trial 6'!BQ45,'Trial 7'!BQ45,'Trial 8'!BQ45)","v":{"v":8978717.512961032,"d":"$8,978,718"}},{"$f":"SUM('Trial 1'!BR45,'Trial 2'!BR45,'Trial 3'!BR45,'Trial 4'!BR45,'Trial 5'!BR45,'Trial 6'!BR45,'Trial 7'!BR45,'Trial 8'!BR45)","v":{"v":8970065.327574283,"d":"$8,970,065"}},{"$f":"SUM('Trial 1'!BS45,'Trial 2'!BS45,'Trial 3'!BS45,'Trial 4'!BS45,'Trial 5'!BS45,'Trial 6'!BS45,'Trial 7'!BS45,'Trial 8'!BS45)","v":{"v":8961411.29619793,"d":"$8,961,411"}},{"$f":"SUM('Trial 1'!BT45,'Trial 2'!BT45,'Trial 3'!BT45,'Trial 4'!BT45,'Trial 5'!BT45,'Trial 6'!BT45,'Trial 7'!BT45,'Trial 8'!BT45)","v":{"v":8952751.326235002,"d":"$8,952,751"}},{"$f":"SUM('Trial 1'!BU45,'Trial 2'!BU45,'Trial 3'!BU45,'Trial 4'!BU45,'Trial 5'!BU45,'Trial 6'!BU45,'Trial 7'!BU45,'Trial 8'!BU45)","v":{"v":8944060.057967057,"d":"$8,944,060"}},{"$f":"SUM('Trial 1'!BV45,'Trial 2'!BV45,'Trial 3'!BV45,'Trial 4'!BV45,'Trial 5'!BV45,'Trial 6'!BV45,'Trial 7'!BV45,'Trial 8'!BV45)","v":{"v":8935380.180226602,"d":"$8,935,380"}},{"$f":"SUM('Trial 1'!BW45,'Trial 2'!BW45,'Trial 3'!BW45,'Trial 4'!BW45,'Trial 5'!BW45,'Trial 6'!BW45,'Trial 7'!BW45,'Trial 8'!BW45)","v":{"v":8926669.699623799,"d":"$8,926,670"}},{"$f":"SUM('Trial 1'!BX45,'Trial 2'!BX45,'Trial 3'!BX45,'Trial 4'!BX45,'Trial 5'!BX45,'Trial 6'!BX45,'Trial 7'!BX45,'Trial 8'!BX45)","v":{"v":8917941.061402889,"d":"$8,917,941"}},{"$f":"SUM('Trial 1'!BY45,'Trial 2'!BY45,'Trial 3'!BY45,'Trial 4'!BY45,'Trial 5'!BY45,'Trial 6'!BY45,'Trial 7'!BY45,'Trial 8'!BY45)","v":{"v":8909222.574294224,"d":"$8,909,223"}},{"$f":"SUM('Trial 1'!BZ45,'Trial 2'!BZ45,'Trial 3'!BZ45,'Trial 4'!BZ45,'Trial 5'!BZ45,'Trial 6'!BZ45,'Trial 7'!BZ45,'Trial 8'!BZ45)","v":{"v":8900476.866503058,"d":"$8,900,477"}},{"$f":"SUM(BO94:BZ94)","v":{"v":107379993.44534238,"d":"$107,379,993"}},{"$f":"SUM('Trial 1'!CB45,'Trial 2'!CB45,'Trial 3'!CB45,'Trial 4'!CB45,'Trial 5'!CB45,'Trial 6'!CB45,'Trial 7'!CB45,'Trial 8'!CB45)","v":{"v":8891740.234651484,"d":"$8,891,740"}},{"$f":"SUM('Trial 1'!CC45,'Trial 2'!CC45,'Trial 3'!CC45,'Trial 4'!CC45,'Trial 5'!CC45,'Trial 6'!CC45,'Trial 7'!CC45,'Trial 8'!CC45)","v":{"v":8882996.610752217,"d":"$8,882,997"}},{"$f":"SUM('Trial 1'!CD45,'Trial 2'!CD45,'Trial 3'!CD45,'Trial 4'!CD45,'Trial 5'!CD45,'Trial 6'!CD45,'Trial 7'!CD45,'Trial 8'!CD45)","v":{"v":8874242.339096457,"d":"$8,874,242"}},{"$f":"SUM('Trial 1'!CE45,'Trial 2'!CE45,'Trial 3'!CE45,'Trial 4'!CE45,'Trial 5'!CE45,'Trial 6'!CE45,'Trial 7'!CE45,'Trial 8'!CE45)","v":{"v":8865475.47741649,"d":"$8,865,475"}},{"$f":"SUM('Trial 1'!CF45,'Trial 2'!CF45,'Trial 3'!CF45,'Trial 4'!CF45,'Trial 5'!CF45,'Trial 6'!CF45,'Trial 7'!CF45,'Trial 8'!CF45)","v":{"v":8856716.10877404,"d":"$8,856,716"}},{"$f":"SUM('Trial 1'!CG45,'Trial 2'!CG45,'Trial 3'!CG45,'Trial 4'!CG45,'Trial 5'!CG45,'Trial 6'!CG45,'Trial 7'!CG45,'Trial 8'!CG45)","v":{"v":8847937.15685787,"d":"$8,847,937"}},{"$f":"SUM('Trial 1'!CH45,'Trial 2'!CH45,'Trial 3'!CH45,'Trial 4'!CH45,'Trial 5'!CH45,'Trial 6'!CH45,'Trial 7'!CH45,'Trial 8'!CH45)","v":{"v":8839154.912227925,"d":"$8,839,155"}},{"$f":"SUM('Trial 1'!CI45,'Trial 2'!CI45,'Trial 3'!CI45,'Trial 4'!CI45,'Trial 5'!CI45,'Trial 6'!CI45,'Trial 7'!CI45,'Trial 8'!CI45)","v":{"v":8830417.24409422,"d":"$8,830,417"}},{"$f":"SUM('Trial 1'!CJ45,'Trial 2'!CJ45,'Trial 3'!CJ45,'Trial 4'!CJ45,'Trial 5'!CJ45,'Trial 6'!CJ45,'Trial 7'!CJ45,'Trial 8'!CJ45)","v":{"v":8821686.324764743,"d":"$8,821,686"}},{"$f":"SUM('Trial 1'!CK45,'Trial 2'!CK45,'Trial 3'!CK45,'Trial 4'!CK45,'Trial 5'!CK45,'Trial 6'!CK45,'Trial 7'!CK45,'Trial 8'!CK45)","v":{"v":8812972.378095435,"d":"$8,812,972"}},{"$f":"SUM('Trial 1'!CL45,'Trial 2'!CL45,'Trial 3'!CL45,'Trial 4'!CL45,'Trial 5'!CL45,'Trial 6'!CL45,'Trial 7'!CL45,'Trial 8'!CL45)","v":{"v":8804269.552408636,"d":"$8,804,270"}},{"$f":"SUM('Trial 1'!CM45,'Trial 2'!CM45,'Trial 3'!CM45,'Trial 4'!CM45,'Trial 5'!CM45,'Trial 6'!CM45,'Trial 7'!CM45,'Trial 8'!CM45)","v":{"v":8795600.444607355,"d":"$8,795,600"}},{"$f":"SUM(CB94:CM94)","v":{"v":106123208.78374687,"d":"$106,123,209"}},{"$f":"SUM('Trial 1'!CO45,'Trial 2'!CO45,'Trial 3'!CO45,'Trial 4'!CO45,'Trial 5'!CO45,'Trial 6'!CO45,'Trial 7'!CO45,'Trial 8'!CO45)","v":{"v":8786931.969889011,"d":"$8,786,932"}},{"$f":"SUM('Trial 1'!CP45,'Trial 2'!CP45,'Trial 3'!CP45,'Trial 4'!CP45,'Trial 5'!CP45,'Trial 6'!CP45,'Trial 7'!CP45,'Trial 8'!CP45)","v":{"v":8778294.97062546,"d":"$8,778,295"}},{"$f":"SUM('Trial 1'!CQ45,'Trial 2'!CQ45,'Trial 3'!CQ45,'Trial 4'!CQ45,'Trial 5'!CQ45,'Trial 6'!CQ45,'Trial 7'!CQ45,'Trial 8'!CQ45)","v":{"v":8769676.159222202,"d":"$8,769,676"}},{"$f":"SUM('Trial 1'!CR45,'Trial 2'!CR45,'Trial 3'!CR45,'Trial 4'!CR45,'Trial 5'!CR45,'Trial 6'!CR45,'Trial 7'!CR45,'Trial 8'!CR45)","v":{"v":8761077.421329722,"d":"$8,761,077"}},{"$f":"SUM('Trial 1'!CS45,'Trial 2'!CS45,'Trial 3'!CS45,'Trial 4'!CS45,'Trial 5'!CS45,'Trial 6'!CS45,'Trial 7'!CS45,'Trial 8'!CS45)","v":{"v":8752496.977449732,"d":"$8,752,497"}},{"$f":"SUM('Trial 1'!CT45,'Trial 2'!CT45,'Trial 3'!CT45,'Trial 4'!CT45,'Trial 5'!CT45,'Trial 6'!CT45,'Trial 7'!CT45,'Trial 8'!CT45)","v":{"v":8743926.339589877,"d":"$8,743,926"}},{"$f":"SUM('Trial 1'!CU45,'Trial 2'!CU45,'Trial 3'!CU45,'Trial 4'!CU45,'Trial 5'!CU45,'Trial 6'!CU45,'Trial 7'!CU45,'Trial 8'!CU45)","v":{"v":8735331.078953508,"d":"$8,735,331"}},{"$f":"SUM('Trial 1'!CV45,'Trial 2'!CV45,'Trial 3'!CV45,'Trial 4'!CV45,'Trial 5'!CV45,'Trial 6'!CV45,'Trial 7'!CV45,'Trial 8'!CV45)","v":{"v":8726729.601806603,"d":"$8,726,730"}},{"$f":"SUM('Trial 1'!CW45,'Trial 2'!CW45,'Trial 3'!CW45,'Trial 4'!CW45,'Trial 5'!CW45,'Trial 6'!CW45,'Trial 7'!CW45,'Trial 8'!CW45)","v":{"v":8718177.784483269,"d":"$8,718,178"}},{"$f":"SUM('Trial 1'!CX45,'Trial 2'!CX45,'Trial 3'!CX45,'Trial 4'!CX45,'Trial 5'!CX45,'Trial 6'!CX45,'Trial 7'!CX45,'Trial 8'!CX45)","v":{"v":8709631.79903438,"d":"$8,709,632"}},{"$f":"SUM('Trial 1'!CY45,'Trial 2'!CY45,'Trial 3'!CY45,'Trial 4'!CY45,'Trial 5'!CY45,'Trial 6'!CY45,'Trial 7'!CY45,'Trial 8'!CY45)","v":{"v":8701095.823276022,"d":"$8,701,096"}},{"$f":"SUM('Trial 1'!CZ45,'Trial 2'!CZ45,'Trial 3'!CZ45,'Trial 4'!CZ45,'Trial 5'!CZ45,'Trial 6'!CZ45,'Trial 7'!CZ45,'Trial 8'!CZ45)","v":{"v":8692563.97303905,"d":"$8,692,564"}},{"$f":"SUM(CO94:CZ94)","v":{"v":104875933.89869884,"d":"$104,875,934"}},{"$f":"SUM('Trial 1'!DB45,'Trial 2'!DB45,'Trial 3'!DB45,'Trial 4'!DB45,'Trial 5'!DB45,'Trial 6'!DB45,'Trial 7'!DB45,'Trial 8'!DB45)","v":{"v":8684058.578426367,"d":"$8,684,059"}},{"$f":"SUM('Trial 1'!DC45,'Trial 2'!DC45,'Trial 3'!DC45,'Trial 4'!DC45,'Trial 5'!DC45,'Trial 6'!DC45,'Trial 7'!DC45,'Trial 8'!DC45)","v":{"v":8675561.461586252,"d":"$8,675,561"}},{"$f":"SUM('Trial 1'!DD45,'Trial 2'!DD45,'Trial 3'!DD45,'Trial 4'!DD45,'Trial 5'!DD45,'Trial 6'!DD45,'Trial 7'!DD45,'Trial 8'!DD45)","v":{"v":8667095.701050581,"d":"$8,667,096"}},{"$f":"SUM('Trial 1'!DE45,'Trial 2'!DE45,'Trial 3'!DE45,'Trial 4'!DE45,'Trial 5'!DE45,'Trial 6'!DE45,'Trial 7'!DE45,'Trial 8'!DE45)","v":{"v":8658627.151548164,"d":"$8,658,627"}},{"$f":"SUM('Trial 1'!DF45,'Trial 2'!DF45,'Trial 3'!DF45,'Trial 4'!DF45,'Trial 5'!DF45,'Trial 6'!DF45,'Trial 7'!DF45,'Trial 8'!DF45)","v":{"v":8650168.367486406,"d":"$8,650,168"}},{"$f":"SUM('Trial 1'!DG45,'Trial 2'!DG45,'Trial 3'!DG45,'Trial 4'!DG45,'Trial 5'!DG45,'Trial 6'!DG45,'Trial 7'!DG45,'Trial 8'!DG45)","v":{"v":8641739.203322496,"d":"$8,641,739"}},{"$f":"SUM('Trial 1'!DH45,'Trial 2'!DH45,'Trial 3'!DH45,'Trial 4'!DH45,'Trial 5'!DH45,'Trial 6'!DH45,'Trial 7'!DH45,'Trial 8'!DH45)","v":{"v":8633328.293794792,"d":"$8,633,328"}},{"$f":"SUM('Trial 1'!DI45,'Trial 2'!DI45,'Trial 3'!DI45,'Trial 4'!DI45,'Trial 5'!DI45,'Trial 6'!DI45,'Trial 7'!DI45,'Trial 8'!DI45)","v":{"v":8624931.118994588,"d":"$8,624,931"}},{"$f":"SUM('Trial 1'!DJ45,'Trial 2'!DJ45,'Trial 3'!DJ45,'Trial 4'!DJ45,'Trial 5'!DJ45,'Trial 6'!DJ45,'Trial 7'!DJ45,'Trial 8'!DJ45)","v":{"v":8616544.942844504,"d":"$8,616,545"}},{"$f":"SUM('Trial 1'!DK45,'Trial 2'!DK45,'Trial 3'!DK45,'Trial 4'!DK45,'Trial 5'!DK45,'Trial 6'!DK45,'Trial 7'!DK45,'Trial 8'!DK45)","v":{"v":8608165.39957672,"d":"$8,608,165"}},{"$f":"SUM('Trial 1'!DL45,'Trial 2'!DL45,'Trial 3'!DL45,'Trial 4'!DL45,'Trial 5'!DL45,'Trial 6'!DL45,'Trial 7'!DL45,'Trial 8'!DL45)","v":{"v":8599807.275436513,"d":"$8,599,807"}},{"$f":"SUM('Trial 1'!DM45,'Trial 2'!DM45,'Trial 3'!DM45,'Trial 4'!DM45,'Trial 5'!DM45,'Trial 6'!DM45,'Trial 7'!DM45,'Trial 8'!DM45)","v":{"v":8591467.356201243,"d":"$8,591,467"}},{"$f":"SUM(DB94:DM94)","v":{"v":103651494.85026865,"d":"$103,651,495"}},{"$f":"SUM('Trial 1'!DO45,'Trial 2'!DO45,'Trial 3'!DO45,'Trial 4'!DO45,'Trial 5'!DO45,'Trial 6'!DO45,'Trial 7'!DO45,'Trial 8'!DO45)","v":{"v":8583134.582901655,"d":"$8,583,135"}},{"$f":"SUM('Trial 1'!DP45,'Trial 2'!DP45,'Trial 3'!DP45,'Trial 4'!DP45,'Trial 5'!DP45,'Trial 6'!DP45,'Trial 7'!DP45,'Trial 8'!DP45)","v":{"v":8574814.76442945,"d":"$8,574,815"}},{"$f":"SUM('Trial 1'!DQ45,'Trial 2'!DQ45,'Trial 3'!DQ45,'Trial 4'!DQ45,'Trial 5'!DQ45,'Trial 6'!DQ45,'Trial 7'!DQ45,'Trial 8'!DQ45)","v":{"v":8566534.775121478,"d":"$8,566,535"}},{"$f":"SUM('Trial 1'!DR45,'Trial 2'!DR45,'Trial 3'!DR45,'Trial 4'!DR45,'Trial 5'!DR45,'Trial 6'!DR45,'Trial 7'!DR45,'Trial 8'!DR45)","v":{"v":8558269.160292352,"d":"$8,558,269"}},{"$f":"SUM('Trial 1'!DS45,'Trial 2'!DS45,'Trial 3'!DS45,'Trial 4'!DS45,'Trial 5'!DS45,'Trial 6'!DS45,'Trial 7'!DS45,'Trial 8'!DS45)","v":{"v":8550051.933031414,"d":"$8,550,052"}},{"$f":"SUM('Trial 1'!DT45,'Trial 2'!DT45,'Trial 3'!DT45,'Trial 4'!DT45,'Trial 5'!DT45,'Trial 6'!DT45,'Trial 7'!DT45,'Trial 8'!DT45)","v":{"v":8541863.027364535,"d":"$8,541,863"}},{"$f":"SUM('Trial 1'!DU45,'Trial 2'!DU45,'Trial 3'!DU45,'Trial 4'!DU45,'Trial 5'!DU45,'Trial 6'!DU45,'Trial 7'!DU45,'Trial 8'!DU45)","v":{"v":8533700.063037895,"d":"$8,533,700"}},{"$f":"SUM('Trial 1'!DV45,'Trial 2'!DV45,'Trial 3'!DV45,'Trial 4'!DV45,'Trial 5'!DV45,'Trial 6'!DV45,'Trial 7'!DV45,'Trial 8'!DV45)","v":{"v":8525584.122876944,"d":"$8,525,584"}},{"$f":"SUM('Trial 1'!DW45,'Trial 2'!DW45,'Trial 3'!DW45,'Trial 4'!DW45,'Trial 5'!DW45,'Trial 6'!DW45,'Trial 7'!DW45,'Trial 8'!DW45)","v":{"v":8517501.27205812,"d":"$8,517,501"}},{"$f":"SUM('Trial 1'!DX45,'Trial 2'!DX45,'Trial 3'!DX45,'Trial 4'!DX45,'Trial 5'!DX45,'Trial 6'!DX45,'Trial 7'!DX45,'Trial 8'!DX45)","v":{"v":8509457.703029867,"d":"$8,509,458"}},{"$f":"SUM('Trial 1'!DY45,'Trial 2'!DY45,'Trial 3'!DY45,'Trial 4'!DY45,'Trial 5'!DY45,'Trial 6'!DY45,'Trial 7'!DY45,'Trial 8'!DY45)","v":{"v":8501444.404245839,"d":"$8,501,444"}},{"$f":"SUM('Trial 1'!DZ45,'Trial 2'!DZ45,'Trial 3'!DZ45,'Trial 4'!DZ45,'Trial 5'!DZ45,'Trial 6'!DZ45,'Trial 7'!DZ45,'Trial 8'!DZ45)","v":{"v":8493458.22313384,"d":"$8,493,458"}},{"$f":"SUM(DO94:DZ94)","v":{"v":102455814.0315234,"d":"$102,455,814"}},{"$f":"SUM('Trial 1'!EB45,'Trial 2'!EB45,'Trial 3'!EB45,'Trial 4'!EB45,'Trial 5'!EB45,'Trial 6'!EB45,'Trial 7'!EB45,'Trial 8'!EB45)","v":{"v":8485501.279698508,"d":"$8,485,501"}},{"$f":"SUM('Trial 1'!EC45,'Trial 2'!EC45,'Trial 3'!EC45,'Trial 4'!EC45,'Trial 5'!EC45,'Trial 6'!EC45,'Trial 7'!EC45,'Trial 8'!EC45)","v":{"v":8477546.53184691,"d":"$8,477,547"}},{"$f":"SUM('Trial 1'!ED45,'Trial 2'!ED45,'Trial 3'!ED45,'Trial 4'!ED45,'Trial 5'!ED45,'Trial 6'!ED45,'Trial 7'!ED45,'Trial 8'!ED45)","v":{"v":8469629.41525001,"d":"$8,469,629"}},{"$f":"SUM('Trial 1'!EE45,'Trial 2'!EE45,'Trial 3'!EE45,'Trial 4'!EE45,'Trial 5'!EE45,'Trial 6'!EE45,'Trial 7'!EE45,'Trial 8'!EE45)","v":{"v":8461718.151275229,"d":"$8,461,718"}},{"$f":"SUM('Trial 1'!EF45,'Trial 2'!EF45,'Trial 3'!EF45,'Trial 4'!EF45,'Trial 5'!EF45,'Trial 6'!EF45,'Trial 7'!EF45,'Trial 8'!EF45)","v":{"v":8453823.242786055,"d":"$8,453,823"}},{"$f":"SUM('Trial 1'!EG45,'Trial 2'!EG45,'Trial 3'!EG45,'Trial 4'!EG45,'Trial 5'!EG45,'Trial 6'!EG45,'Trial 7'!EG45,'Trial 8'!EG45)","v":{"v":8445959.91501401,"d":"$8,445,960"}},{"$f":"SUM('Trial 1'!EH45,'Trial 2'!EH45,'Trial 3'!EH45,'Trial 4'!EH45,'Trial 5'!EH45,'Trial 6'!EH45,'Trial 7'!EH45,'Trial 8'!EH45)","v":{"v":8438131.12186705,"d":"$8,438,131"}},{"$f":"SUM('Trial 1'!EI45,'Trial 2'!EI45,'Trial 3'!EI45,'Trial 4'!EI45,'Trial 5'!EI45,'Trial 6'!EI45,'Trial 7'!EI45,'Trial 8'!EI45)","v":{"v":8430314.941629123,"d":"$8,430,315"}},{"$f":"SUM('Trial 1'!EJ45,'Trial 2'!EJ45,'Trial 3'!EJ45,'Trial 4'!EJ45,'Trial 5'!EJ45,'Trial 6'!EJ45,'Trial 7'!EJ45,'Trial 8'!EJ45)","v":{"v":8422518.71950527,"d":"$8,422,519"}},{"$f":"SUM('Trial 1'!EK45,'Trial 2'!EK45,'Trial 3'!EK45,'Trial 4'!EK45,'Trial 5'!EK45,'Trial 6'!EK45,'Trial 7'!EK45,'Trial 8'!EK45)","v":{"v":8414713.207376588,"d":"$8,414,713"}},{"$f":"SUM('Trial 1'!EL45,'Trial 2'!EL45,'Trial 3'!EL45,'Trial 4'!EL45,'Trial 5'!EL45,'Trial 6'!EL45,'Trial 7'!EL45,'Trial 8'!EL45)","v":{"v":8406929.778500922,"d":"$8,406,930"}},{"$f":"SUM('Trial 1'!EM45,'Trial 2'!EM45,'Trial 3'!EM45,'Trial 4'!EM45,'Trial 5'!EM45,'Trial 6'!EM45,'Trial 7'!EM45,'Trial 8'!EM45)","v":{"v":8399186.441548556,"d":"$8,399,186"}},{"$f":"SUM(EB94:EM94)","v":{"v":101305972.74629822,"d":"$101,305,973"}}]
[{"$f":"Labels!B38","v":"Employment"}]
[{"$f":"Labels!D96","v":"Trials"},{"$f":"ZZZ__FnCalls!F7","v":"Jan 2010"},{"$f":"ZZZ__FnCalls!F8","v":"Feb 2010"},{"$f":"ZZZ__FnCalls!F9","v":"Mar 2010"},{"$f":"ZZZ__FnCalls!F10","v":"Apr 2010"},{"$f":"ZZZ__FnCalls!F11","v":"May 2010"},{"$f":"ZZZ__FnCalls!F12","v":"Jun 2010"},{"$f":"ZZZ__FnCalls!F13","v":"Jul 2010"},{"$f":"ZZZ__FnCalls!F14","v":"Aug 2010"},{"$f":"ZZZ__FnCalls!F15","v":"Sep 2010"},{"$f":"ZZZ__FnCalls!F16","v":"Oct 2010"},{"$f":"ZZZ__FnCalls!F17","v":"Nov 2010"},{"$f":"ZZZ__FnCalls!F18","v":"Dec 2010"},{"$f":"ZZZ__FnCalls!H7","v":"2010"},{"$f":"ZZZ__FnCalls!F19","v":"Jan 2011"},{"$f":"ZZZ__FnCalls!F20","v":"Feb 2011"},{"$f":"ZZZ__FnCalls!F21","v":"Mar 2011"},{"$f":"ZZZ__FnCalls!F22","v":"Apr 2011"},{"$f":"ZZZ__FnCalls!F23","v":"May 2011"},{"$f":"ZZZ__FnCalls!F24","v":"Jun 2011"},{"$f":"ZZZ__FnCalls!F25","v":"Jul 2011"},{"$f":"ZZZ__FnCalls!F26","v":"Aug 2011"},{"$f":"ZZZ__FnCalls!F27","v":"Sep 2011"},{"$f":"ZZZ__FnCalls!F28","v":"Oct 2011"},{"$f":"ZZZ__FnCalls!F29","v":"Nov 2011"},{"$f":"ZZZ__FnCalls!F30","v":"Dec 2011"},{"$f":"ZZZ__FnCalls!H19","v":"2011"},{"$f":"ZZZ__FnCalls!F31","v":"Jan 2012"},{"$f":"ZZZ__FnCalls!F32","v":"Feb 2012"},{"$f":"ZZZ__FnCalls!F33","v":"Mar 2012"},{"$f":"ZZZ__FnCalls!F34","v":"Apr 2012"},{"$f":"ZZZ__FnCalls!F35","v":"May 2012"},{"$f":"ZZZ__FnCalls!F36","v":"Jun 2012"},{"$f":"ZZZ__FnCalls!F37","v":"Jul 2012"},{"$f":"ZZZ__FnCalls!F38","v":"Aug 2012"},{"$f":"ZZZ__FnCalls!F39","v":"Sep 2012"},{"$f":"ZZZ__FnCalls!F40","v":"Oct 2012"},{"$f":"ZZZ__FnCalls!F41","v":"Nov 2012"},{"$f":"ZZZ__FnCalls!F42","v":"Dec 2012"},{"$f":"ZZZ__FnCalls!H31","v":"2012"},{"$f":"ZZZ__FnCalls!F43","v":"Jan 2013"},{"$f":"ZZZ__FnCalls!F44","v":"Feb 2013"},{"$f":"ZZZ__FnCalls!F45","v":"Mar 2013"},{"$f":"ZZZ__FnCalls!F46","v":"Apr 2013"},{"$f":"ZZZ__FnCalls!F47","v":"May 2013"},{"$f":"ZZZ__FnCalls!F48","v":"Jun 2013"},{"$f":"ZZZ__FnCalls!F49","v":"Jul 2013"},{"$f":"ZZZ__FnCalls!F50","v":"Aug 2013"},{"$f":"ZZZ__FnCalls!F51","v":"Sep 2013"},{"$f":"ZZZ__FnCalls!F52","v":"Oct 2013"},{"$f":"ZZZ__FnCalls!F53","v":"Nov 2013"},{"$f":"ZZZ__FnCalls!F54","v":"Dec 2013"},{"$f":"ZZZ__FnCalls!H43","v":"2013"},{"$f":"ZZZ__FnCalls!F55","v":"Jan 2014"},{"$f":"ZZZ__FnCalls!F56","v":"Feb 2014"},{"$f":"ZZZ__FnCalls!F57","v":"Mar 2014"},{"$f":"ZZZ__FnCalls!F58","v":"Apr 2014"},{"$f":"ZZZ__FnCalls!F59","v":"May 2014"},{"$f":"ZZZ__FnCalls!F60","v":"Jun 2014"},{"$f":"ZZZ__FnCalls!F61","v":"Jul 2014"},{"$f":"ZZZ__FnCalls!F62","v":"Aug 2014"},{"$f":"ZZZ__FnCalls!F63","v":"Sep 2014"},{"$f":"ZZZ__FnCalls!F64","v":"Oct 2014"},{"$f":"ZZZ__FnCalls!F65","v":"Nov 2014"},{"$f":"ZZZ__FnCalls!F66","v":"Dec 2014"},{"$f":"ZZZ__FnCalls!H55","v":"2014"},{"$f":"ZZZ__FnCalls!F67","v":"Jan 2015"},{"$f":"ZZZ__FnCalls!F68","v":"Feb 2015"},{"$f":"ZZZ__FnCalls!F69","v":"Mar 2015"},{"$f":"ZZZ__FnCalls!F70","v":"Apr 2015"},{"$f":"ZZZ__FnCalls!F71","v":"May 2015"},{"$f":"ZZZ__FnCalls!F72","v":"Jun 2015"},{"$f":"ZZZ__FnCalls!F73","v":"Jul 2015"},{"$f":"ZZZ__FnCalls!F74","v":"Aug 2015"},{"$f":"ZZZ__FnCalls!F75","v":"Sep 2015"},{"$f":"ZZZ__FnCalls!F76","v":"Oct 2015"},{"$f":"ZZZ__FnCalls!F77","v":"Nov 2015"},{"$f":"ZZZ__FnCalls!F78","v":"Dec 2015"},{"$f":"ZZZ__FnCalls!H67","v":"2015"},{"$f":"ZZZ__FnCalls!F79","v":"Jan 2016"},{"$f":"ZZZ__FnCalls!F80","v":"Feb 2016"},{"$f":"ZZZ__FnCalls!F81","v":"Mar 2016"},{"$f":"ZZZ__FnCalls!F82","v":"Apr 2016"},{"$f":"ZZZ__FnCalls!F83","v":"May 2016"},{"$f":"ZZZ__FnCalls!F84","v":"Jun 2016"},{"$f":"ZZZ__FnCalls!F85","v":"Jul 2016"},{"$f":"ZZZ__FnCalls!F86","v":"Aug 2016"},{"$f":"ZZZ__FnCalls!F87","v":"Sep 2016"},{"$f":"ZZZ__FnCalls!F88","v":"Oct 2016"},{"$f":"ZZZ__FnCalls!F89","v":"Nov 2016"},{"$f":"ZZZ__FnCalls!F90","v":"Dec 2016"},{"$f":"ZZZ__FnCalls!H79","v":"2016"},{"$f":"ZZZ__FnCalls!F91","v":"Jan 2017"},{"$f":"ZZZ__FnCalls!F92","v":"Feb 2017"},{"$f":"ZZZ__FnCalls!F93","v":"Mar 2017"},{"$f":"ZZZ__FnCalls!F94","v":"Apr 2017"},{"$f":"ZZZ__FnCalls!F95","v":"May 2017"},{"$f":"ZZZ__FnCalls!F96","v":"Jun 2017"},{"$f":"ZZZ__FnCalls!F97","v":"Jul 2017"},{"$f":"ZZZ__FnCalls!F98","v":"Aug 2017"},{"$f":"ZZZ__FnCalls!F99","v":"Sep 2017"},{"$f":"ZZZ__FnCalls!F100","v":"Oct 2017"},{"$f":"ZZZ__FnCalls!F101","v":"Nov 2017"},{"$f":"ZZZ__FnCalls!F102","v":"Dec 2017"},{"$f":"ZZZ__FnCalls!H91","v":"2017"},{"$f":"ZZZ__FnCalls!F103","v":"Jan 2018"},{"$f":"ZZZ__FnCalls!F104","v":"Feb 2018"},{"$f":"ZZZ__FnCalls!F105","v":"Mar 2018"},{"$f":"ZZZ__FnCalls!F106","v":"Apr 2018"},{"$f":"ZZZ__FnCalls!F107","v":"May 2018"},{"$f":"ZZZ__FnCalls!F108","v":"Jun 2018"},{"$f":"ZZZ__FnCalls!F109","v":"Jul 2018"},{"$f":"ZZZ__FnCalls!F110","v":"Aug 2018"},{"$f":"ZZZ__FnCalls!F111","v":"Sep 2018"},{"$f":"ZZZ__FnCalls!F112","v":"Oct 2018"},{"$f":"ZZZ__FnCalls!F113","v":"Nov 2018"},{"$f":"ZZZ__FnCalls!F114","v":"Dec 2018"},{"$f":"ZZZ__FnCalls!H103","v":"2018"},{"$f":"ZZZ__FnCalls!F115","v":"Jan 2019"},{"$f":"ZZZ__FnCalls!F116","v":"Feb 2019"},{"$f":"ZZZ__FnCalls!F117","v":"Mar 2019"},{"$f":"ZZZ__FnCalls!F118","v":"Apr 2019"},{"$f":"ZZZ__FnCalls!F119","v":"May 2019"},{"$f":"ZZZ__FnCalls!F120","v":"Jun 2019"},{"$f":"ZZZ__FnCalls!F121","v":"Jul 2019"},{"$f":"ZZZ__FnCalls!F122","v":"Aug 2019"},{"$f":"ZZZ__FnCalls!F123","v":"Sep 2019"},{"$f":"ZZZ__FnCalls!F124","v":"Oct 2019"},{"$f":"ZZZ__FnCalls!F125","v":"Nov 2019"},{"$f":"ZZZ__FnCalls!F126","v":"Dec 2019"},{"$f":"ZZZ__FnCalls!H115","v":"2019"},{"$f":"ZZZ__FnCalls!F127","v":"Jan 2020"},{"$f":"ZZZ__FnCalls!F128","v":"Feb 2020"},{"$f":"ZZZ__FnCalls!F129","v":"Mar 2020"},{"$f":"ZZZ__FnCalls!F130","v":"Apr 2020"},{"$f":"ZZZ__FnCalls!F131","v":"May 2020"},{"$f":"ZZZ__FnCalls!F132","v":"Jun 2020"},{"$f":"ZZZ__FnCalls!F133","v":"Jul 2020"},{"$f":"ZZZ__FnCalls!F134","v":"Aug 2020"},{"$f":"ZZZ__FnCalls!F135","v":"Sep 2020"},{"$f":"ZZZ__FnCalls!F136","v":"Oct 2020"},{"$f":"ZZZ__FnCalls!F137","v":"Nov 2020"},{"$f":"ZZZ__FnCalls!F138","v":"Dec 2020"},{"$f":"ZZZ__FnCalls!H127","v":"2020"}]
[{"$f":"Labels!B96","v":"Trial 01"},{"$f":"'Trial 1'!B28","v":{"v":140,"d":"140.00"}},{"$f":"'Trial 1'!C28","v":{"v":140,"d":"140.00"}},{"$f":"'Trial 1'!D28","v":{"v":139.99344498620502,"d":"139.99"}},{"$f":"'Trial 1'!E28","v":{"v":139.9822763754136,"d":"139.98"}},{"$f":"'Trial 1'!F28","v":{"v":139.96613791443346,"d":"139.97"}},{"$f":"'Trial 1'!G28","v":{"v":139.94458942347723,"d":"139.94"}},{"$f":"'Trial 1'!H28","v":{"v":139.9192309809632,"d":"139.92"}},{"$f":"'Trial 1'!I28","v":{"v":139.88927414570068,"d":"139.89"}},{"$f":"'Trial 1'!J28","v":{"v":139.85397077926493,"d":"139.85"}},{"$f":"'Trial 1'!K28","v":{"v":139.813772811457,"d":"139.81"}},{"$f":"'Trial 1'!L28","v":{"v":139.76934059196103,"d":"139.77"}},{"$f":"'Trial 1'!M28","v":{"v":139.722049755564,"d":"139.72"}},{"$f":"'Trial 1'!M28","v":{"v":139.722049755564,"d":"139.72"}},{"$f":"'Trial 1'!O28","v":{"v":139.6713604806106,"d":"139.67"}},{"$f":"'Trial 1'!P28","v":{"v":139.61691841446748,"d":"139.62"}},{"$f":"'Trial 1'!Q28","v":{"v":139.55788104423914,"d":"139.56"}},{"$f":"'Trial 1'!R28","v":{"v":139.49491433655336,"d":"139.49"}},{"$f":"'Trial 1'!S28","v":{"v":139.4262545437607,"d":"139.43"}},{"$f":"'Trial 1'!T28","v":{"v":139.3543990713871,"d":"139.35"}},{"$f":"'Trial 1'!U28","v":{"v":139.2773783421074,"d":"139.28"}},{"$f":"'Trial 1'!V28","v":{"v":139.1959472106818,"d":"139.20"}},{"$f":"'Trial 1'!W28","v":{"v":139.1098124569048,"d":"139.11"}},{"$f":"'Trial 1'!X28","v":{"v":139.01909509607077,"d":"139.02"}},{"$f":"'Trial 1'!Y28","v":{"v":138.9248764794322,"d":"138.92"}},{"$f":"'Trial 1'!Z28","v":{"v":138.82753140654205,"d":"138.83"}},{"$f":"'Trial 1'!Z28","v":{"v":138.82753140654205,"d":"138.83"}},{"$f":"'Trial 1'!AB28","v":{"v":138.72855777636644,"d":"138.73"}},{"$f":"'Trial 1'!AC28","v":{"v":138.6261207340415,"d":"138.63"}},{"$f":"'Trial 1'!AD28","v":{"v":138.52110553402835,"d":"138.52"}},{"$f":"'Trial 1'!AE28","v":{"v":138.4152469023052,"d":"138.42"}},{"$f":"'Trial 1'!AF28","v":{"v":138.3062753486311,"d":"138.31"}},{"$f":"'Trial 1'!AG28","v":{"v":138.1939377072698,"d":"138.19"}},{"$f":"'Trial 1'!AH28","v":{"v":138.07922822361007,"d":"138.08"}},{"$f":"'Trial 1'!AI28","v":{"v":137.9621299444054,"d":"137.96"}},{"$f":"'Trial 1'!AJ28","v":{"v":137.84332587071663,"d":"137.84"}},{"$f":"'Trial 1'!AK28","v":{"v":137.72203834242364,"d":"137.72"}},{"$f":"'Trial 1'!AL28","v":{"v":137.60016134104808,"d":"137.60"}},{"$f":"'Trial 1'!AM28","v":{"v":137.47660723338416,"d":"137.48"}},{"$f":"'Trial 1'!AM28","v":{"v":137.47660723338416,"d":"137.48"}},{"$f":"'Trial 1'!AO28","v":{"v":137.35086494058643,"d":"137.35"}},{"$f":"'Trial 1'!AP28","v":{"v":137.22237635638726,"d":"137.22"}},{"$f":"'Trial 1'!AQ28","v":{"v":137.09125020874458,"d":"137.09"}},{"$f":"'Trial 1'!AR28","v":{"v":136.9602551316889,"d":"136.96"}},{"$f":"'Trial 1'!AS28","v":{"v":136.8265415978466,"d":"136.83"}},{"$f":"'Trial 1'!AT28","v":{"v":136.6921841839625,"d":"136.69"}},{"$f":"'Trial 1'!AU28","v":{"v":136.55656423066665,"d":"136.56"}},{"$f":"'Trial 1'!AV28","v":{"v":136.42032980788565,"d":"136.42"}},{"$f":"'Trial 1'!AW28","v":{"v":136.28262423966356,"d":"136.28"}},{"$f":"'Trial 1'!AX28","v":{"v":136.1429724645519,"d":"136.14"}},{"$f":"'Trial 1'!AY28","v":{"v":136.0020613649739,"d":"136.00"}},{"$f":"'Trial 1'!AZ28","v":{"v":135.86121425991414,"d":"135.86"}},{"$f":"'Trial 1'!AZ28","v":{"v":135.86121425991414,"d":"135.86"}},{"$f":"'Trial 1'!BB28","v":{"v":135.7196702967881,"d":"135.72"}},{"$f":"'Trial 1'!BC28","v":{"v":135.5760337560861,"d":"135.58"}},{"$f":"'Trial 1'!BD28","v":{"v":135.4302965579297,"d":"135.43"}},{"$f":"'Trial 1'!BE28","v":{"v":135.2838325878161,"d":"135.28"}},{"$f":"'Trial 1'!BF28","v":{"v":135.13600766589752,"d":"135.14"}},{"$f":"'Trial 1'!BG28","v":{"v":134.98831732370067,"d":"134.99"}},{"$f":"'Trial 1'!BH28","v":{"v":134.84021426079786,"d":"134.84"}},{"$f":"'Trial 1'!BI28","v":{"v":134.69168157550615,"d":"134.69"}},{"$f":"'Trial 1'!BJ28","v":{"v":134.54299040409742,"d":"134.54"}},{"$f":"'Trial 1'!BK28","v":{"v":134.39333908507203,"d":"134.39"}},{"$f":"'Trial 1'!BL28","v":{"v":134.24273364687528,"d":"134.24"}},{"$f":"'Trial 1'!BM28","v":{"v":134.09025917528575,"d":"134.09"}},{"$f":"'Trial 1'!BM28","v":{"v":134.09025917528575,"d":"134.09"}},{"$f":"'Trial 1'!BO28","v":{"v":133.9375818681646,"d":"133.94"}},{"$f":"'Trial 1'!BP28","v":{"v":133.7835464400065,"d":"133.78"}},{"$f":"'Trial 1'!BQ28","v":{"v":133.62960303522118,"d":"133.63"}},{"$f":"'Trial 1'!BR28","v":{"v":133.47469594085308,"d":"133.47"}},{"$f":"'Trial 1'!BS28","v":{"v":133.32097376711133,"d":"133.32"}},{"$f":"'Trial 1'!BT28","v":{"v":133.16754115101085,"d":"133.17"}},{"$f":"'Trial 1'!BU28","v":{"v":133.01389161045623,"d":"133.01"}},{"$f":"'Trial 1'!BV28","v":{"v":132.8586236112718,"d":"132.86"}},{"$f":"'Trial 1'!BW28","v":{"v":132.70218922371362,"d":"132.70"}},{"$f":"'Trial 1'!BX28","v":{"v":132.54527193141178,"d":"132.55"}},{"$f":"'Trial 1'!BY28","v":{"v":132.38909398541065,"d":"132.39"}},{"$f":"'Trial 1'!BZ28","v":{"v":132.2318300153309,"d":"132.23"}},{"$f":"'Trial 1'!BZ28","v":{"v":132.2318300153309,"d":"132.23"}},{"$f":"'Trial 1'!CB28","v":{"v":132.0732041529055,"d":"132.07"}},{"$f":"'Trial 1'!CC28","v":{"v":131.91552103929132,"d":"131.92"}},{"$f":"'Trial 1'!CD28","v":{"v":131.75760677401811,"d":"131.76"}},{"$f":"'Trial 1'!CE28","v":{"v":131.59848624641407,"d":"131.60"}},{"$f":"'Trial 1'!CF28","v":{"v":131.44055066029625,"d":"131.44"}},{"$f":"'Trial 1'!CG28","v":{"v":131.28175065512178,"d":"131.28"}},{"$f":"'Trial 1'!CH28","v":{"v":131.12297938333126,"d":"131.12"}},{"$f":"'Trial 1'!CI28","v":{"v":130.96468893610864,"d":"130.96"}},{"$f":"'Trial 1'!CJ28","v":{"v":130.80643327952262,"d":"130.81"}},{"$f":"'Trial 1'!CK28","v":{"v":130.64855926582,"d":"130.65"}},{"$f":"'Trial 1'!CL28","v":{"v":130.4908850495726,"d":"130.49"}},{"$f":"'Trial 1'!CM28","v":{"v":130.33201579811177,"d":"130.33"}},{"$f":"'Trial 1'!CM28","v":{"v":130.33201579811177,"d":"130.33"}},{"$f":"'Trial 1'!CO28","v":{"v":130.17419846685516,"d":"130.17"}},{"$f":"'Trial 1'!CP28","v":{"v":130.01664144044832,"d":"130.02"}},{"$f":"'Trial 1'!CQ28","v":{"v":129.85850383350765,"d":"129.86"}},{"$f":"'Trial 1'!CR28","v":{"v":129.70146566240086,"d":"129.70"}},{"$f":"'Trial 1'!CS28","v":{"v":129.54303599529123,"d":"129.54"}},{"$f":"'Trial 1'!CT28","v":{"v":129.3848466378304,"d":"129.38"}},{"$f":"'Trial 1'!CU28","v":{"v":129.22558157855198,"d":"129.23"}},{"$f":"'Trial 1'!CV28","v":{"v":129.06700770119812,"d":"129.07"}},{"$f":"'Trial 1'!CW28","v":{"v":128.9077365940649,"d":"128.91"}},{"$f":"'Trial 1'!CX28","v":{"v":128.74915038204,"d":"128.75"}},{"$f":"'Trial 1'!CY28","v":{"v":128.58970421647572,"d":"128.59"}},{"$f":"'Trial 1'!CZ28","v":{"v":128.4317884053837,"d":"128.43"}},{"$f":"'Trial 1'!CZ28","v":{"v":128.4317884053837,"d":"128.43"}},{"$f":"'Trial 1'!DB28","v":{"v":128.27560492507033,"d":"128.28"}},{"$f":"'Trial 1'!DC28","v":{"v":128.11852146288527,"d":"128.12"}},{"$f":"'Trial 1'!DD28","v":{"v":127.9620255026187,"d":"127.96"}},{"$f":"'Trial 1'!DE28","v":{"v":127.8066681558942,"d":"127.81"}},{"$f":"'Trial 1'!DF28","v":{"v":127.65186368471996,"d":"127.65"}},{"$f":"'Trial 1'!DG28","v":{"v":127.49833866105634,"d":"127.50"}},{"$f":"'Trial 1'!DH28","v":{"v":127.34601393937936,"d":"127.35"}},{"$f":"'Trial 1'!DI28","v":{"v":127.19378839397126,"d":"127.19"}},{"$f":"'Trial 1'!DJ28","v":{"v":127.04252294068874,"d":"127.04"}},{"$f":"'Trial 1'!DK28","v":{"v":126.8909117722191,"d":"126.89"}},{"$f":"'Trial 1'!DL28","v":{"v":126.74031367666093,"d":"126.74"}},{"$f":"'Trial 1'!DM28","v":{"v":126.59160192111656,"d":"126.59"}},{"$f":"'Trial 1'!DM28","v":{"v":126.59160192111656,"d":"126.59"}},{"$f":"'Trial 1'!DO28","v":{"v":126.44232559059434,"d":"126.44"}},{"$f":"'Trial 1'!DP28","v":{"v":126.29379812742174,"d":"126.29"}},{"$f":"'Trial 1'!DQ28","v":{"v":126.14711940479513,"d":"126.15"}},{"$f":"'Trial 1'!DR28","v":{"v":126.00051718934776,"d":"126.00"}},{"$f":"'Trial 1'!DS28","v":{"v":125.85483905110267,"d":"125.85"}},{"$f":"'Trial 1'!DT28","v":{"v":125.70986214926937,"d":"125.71"}},{"$f":"'Trial 1'!DU28","v":{"v":125.56513814461776,"d":"125.57"}},{"$f":"'Trial 1'!DV28","v":{"v":125.42061338163774,"d":"125.42"}},{"$f":"'Trial 1'!DW28","v":{"v":125.2770157157344,"d":"125.28"}},{"$f":"'Trial 1'!DX28","v":{"v":125.13291883719337,"d":"125.13"}},{"$f":"'Trial 1'!DY28","v":{"v":124.98867845341461,"d":"124.99"}},{"$f":"'Trial 1'!DZ28","v":{"v":124.84600292320503,"d":"124.85"}},{"$f":"'Trial 1'!DZ28","v":{"v":124.84600292320503,"d":"124.85"}},{"$f":"'Trial 1'!EB28","v":{"v":124.7045612076288,"d":"124.70"}},{"$f":"'Trial 1'!EC28","v":{"v":124.56300738031167,"d":"124.56"}},{"$f":"'Trial 1'!ED28","v":{"v":124.422398469399,"d":"124.42"}},{"$f":"'Trial 1'!EE28","v":{"v":124.28229032210719,"d":"124.28"}},{"$f":"'Trial 1'!EF28","v":{"v":124.14270395286412,"d":"124.14"}},{"$f":"'Trial 1'!EG28","v":{"v":124.00239769993328,"d":"124.00"}},{"$f":"'Trial 1'!EH28","v":{"v":123.86255047460925,"d":"123.86"}},{"$f":"'Trial 1'!EI28","v":{"v":123.72296664591366,"d":"123.72"}},{"$f":"'Trial 1'!EJ28","v":{"v":123.58383630948732,"d":"123.58"}},{"$f":"'Trial 1'!EK28","v":{"v":123.44445992527946,"d":"123.44"}},{"$f":"'Trial 1'!EL28","v":{"v":123.30595264567907,"d":"123.31"}},{"$f":"'Trial 1'!EM28","v":{"v":123.16785320580286,"d":"123.17"}},{"$f":"'Trial 1'!EM28","v":{"v":123.16785320580286,"d":"123.17"}}]
[{"$f":"Labels!B97","v":"Trial 02"},{"$f":"'Trial 2'!B28","v":{"v":140,"d":"140.00"}},{"$f":"'Trial 2'!C28","v":{"v":140,"d":"140.00"}},{"$f":"'Trial 2'!D28","v":{"v":139.9937627669577,"d":"139.99"}},{"$f":"'Trial 2'!E28","v":{"v":139.98063501645186,"d":"139.98"}},{"$f":"'Trial 2'!F28","v":{"v":139.96225977692632,"d":"139.96"}},{"$f":"'Trial 2'!G28","v":{"v":139.940316142184,"d":"139.94"}},{"$f":"'Trial 2'!H28","v":{"v":139.91363657371627,"d":"139.91"}},{"$f":"'Trial 2'!I28","v":{"v":139.8813418510648,"d":"139.88"}},{"$f":"'Trial 2'!J28","v":{"v":139.84413426340032,"d":"139.84"}},{"$f":"'Trial 2'!K28","v":{"v":139.8010987551532,"d":"139.80"}},{"$f":"'Trial 2'!L28","v":{"v":139.75388594545092,"d":"139.75"}},{"$f":"'Trial 2'!M28","v":{"v":139.70237716727337,"d":"139.70"}},{"$f":"'Trial 2'!M28","v":{"v":139.70237716727337,"d":"139.70"}},{"$f":"'Trial 2'!O28","v":{"v":139.64548608481238,"d":"139.65"}},{"$f":"'Trial 2'!P28","v":{"v":139.5853206871825,"d":"139.59"}},{"$f":"'Trial 2'!Q28","v":{"v":139.52053181626505,"d":"139.52"}},{"$f":"'Trial 2'!R28","v":{"v":139.45266850617813,"d":"139.45"}},{"$f":"'Trial 2'!S28","v":{"v":139.3819438548932,"d":"139.38"}},{"$f":"'Trial 2'!T28","v":{"v":139.30727377126723,"d":"139.31"}},{"$f":"'Trial 2'!U28","v":{"v":139.22880905700717,"d":"139.23"}},{"$f":"'Trial 2'!V28","v":{"v":139.14666580178917,"d":"139.15"}},{"$f":"'Trial 2'!W28","v":{"v":139.06004444965953,"d":"139.06"}},{"$f":"'Trial 2'!X28","v":{"v":138.96946306304034,"d":"138.97"}},{"$f":"'Trial 2'!Y28","v":{"v":138.87530753435422,"d":"138.88"}},{"$f":"'Trial 2'!Z28","v":{"v":138.77749808713588,"d":"138.78"}},{"$f":"'Trial 2'!Z28","v":{"v":138.77749808713588,"d":"138.78"}},{"$f":"'Trial 2'!AB28","v":{"v":138.6750853953509,"d":"138.68"}},{"$f":"'Trial 2'!AC28","v":{"v":138.570460285698,"d":"138.57"}},{"$f":"'Trial 2'!AD28","v":{"v":138.46320083502644,"d":"138.46"}},{"$f":"'Trial 2'!AE28","v":{"v":138.3534878095759,"d":"138.35"}},{"$f":"'Trial 2'!AF28","v":{"v":138.24132904840857,"d":"138.24"}},{"$f":"'Trial 2'!AG28","v":{"v":138.1285359494501,"d":"138.13"}},{"$f":"'Trial 2'!AH28","v":{"v":138.01342828618004,"d":"138.01"}},{"$f":"'Trial 2'!AI28","v":{"v":137.89566890747508,"d":"137.90"}},{"$f":"'Trial 2'!AJ28","v":{"v":137.77625657929502,"d":"137.78"}},{"$f":"'Trial 2'!AK28","v":{"v":137.65341370765165,"d":"137.65"}},{"$f":"'Trial 2'!AL28","v":{"v":137.52871632170636,"d":"137.53"}},{"$f":"'Trial 2'!AM28","v":{"v":137.40280212396948,"d":"137.40"}},{"$f":"'Trial 2'!AM28","v":{"v":137.40280212396948,"d":"137.40"}},{"$f":"'Trial 2'!AO28","v":{"v":137.27644061947584,"d":"137.28"}},{"$f":"'Trial 2'!AP28","v":{"v":137.14776522421457,"d":"137.15"}},{"$f":"'Trial 2'!AQ28","v":{"v":137.01719573361544,"d":"137.02"}},{"$f":"'Trial 2'!AR28","v":{"v":136.88550364768605,"d":"136.89"}},{"$f":"'Trial 2'!AS28","v":{"v":136.75266847859527,"d":"136.75"}},{"$f":"'Trial 2'!AT28","v":{"v":136.61783967484902,"d":"136.62"}},{"$f":"'Trial 2'!AU28","v":{"v":136.48201719300081,"d":"136.48"}},{"$f":"'Trial 2'!AV28","v":{"v":136.34522702331506,"d":"136.35"}},{"$f":"'Trial 2'!AW28","v":{"v":136.2072676423814,"d":"136.21"}},{"$f":"'Trial 2'!AX28","v":{"v":136.06830149906494,"d":"136.07"}},{"$f":"'Trial 2'!AY28","v":{"v":135.9264857465326,"d":"135.93"}},{"$f":"'Trial 2'!AZ28","v":{"v":135.78326165392113,"d":"135.78"}},{"$f":"'Trial 2'!AZ28","v":{"v":135.78326165392113,"d":"135.78"}},{"$f":"'Trial 2'!BB28","v":{"v":135.6400644393424,"d":"135.64"}},{"$f":"'Trial 2'!BC28","v":{"v":135.49563036936502,"d":"135.50"}},{"$f":"'Trial 2'!BD28","v":{"v":135.34953524043357,"d":"135.35"}},{"$f":"'Trial 2'!BE28","v":{"v":135.20262187396105,"d":"135.20"}},{"$f":"'Trial 2'!BF28","v":{"v":135.05596054747616,"d":"135.06"}},{"$f":"'Trial 2'!BG28","v":{"v":134.90830798341537,"d":"134.91"}},{"$f":"'Trial 2'!BH28","v":{"v":134.76068916115858,"d":"134.76"}},{"$f":"'Trial 2'!BI28","v":{"v":134.61133418333938,"d":"134.61"}},{"$f":"'Trial 2'!BJ28","v":{"v":134.46065948596166,"d":"134.46"}},{"$f":"'Trial 2'!BK28","v":{"v":134.3079348062348,"d":"134.31"}},{"$f":"'Trial 2'!BL28","v":{"v":134.1554281738485,"d":"134.16"}},{"$f":"'Trial 2'!BM28","v":{"v":134.001937709982,"d":"134.00"}},{"$f":"'Trial 2'!BM28","v":{"v":134.001937709982,"d":"134.00"}},{"$f":"'Trial 2'!BO28","v":{"v":133.84818426235458,"d":"133.85"}},{"$f":"'Trial 2'!BP28","v":{"v":133.69244565196524,"d":"133.69"}},{"$f":"'Trial 2'!BQ28","v":{"v":133.5345912333298,"d":"133.53"}},{"$f":"'Trial 2'!BR28","v":{"v":133.37538360597645,"d":"133.38"}},{"$f":"'Trial 2'!BS28","v":{"v":133.21647164627578,"d":"133.22"}},{"$f":"'Trial 2'!BT28","v":{"v":133.0583521038847,"d":"133.06"}},{"$f":"'Trial 2'!BU28","v":{"v":132.89862624621904,"d":"132.90"}},{"$f":"'Trial 2'!BV28","v":{"v":132.7400726016235,"d":"132.74"}},{"$f":"'Trial 2'!BW28","v":{"v":132.5806776945948,"d":"132.58"}},{"$f":"'Trial 2'!BX28","v":{"v":132.42173165275653,"d":"132.42"}},{"$f":"'Trial 2'!BY28","v":{"v":132.26277697765423,"d":"132.26"}},{"$f":"'Trial 2'!BZ28","v":{"v":132.102172174236,"d":"132.10"}},{"$f":"'Trial 2'!BZ28","v":{"v":132.102172174236,"d":"132.10"}},{"$f":"'Trial 2'!CB28","v":{"v":131.9432028743447,"d":"131.94"}},{"$f":"'Trial 2'!CC28","v":{"v":131.78444354493269,"d":"131.78"}},{"$f":"'Trial 2'!CD28","v":{"v":131.62631013219598,"d":"131.63"}},{"$f":"'Trial 2'!CE28","v":{"v":131.46751072822917,"d":"131.47"}},{"$f":"'Trial 2'!CF28","v":{"v":131.30855678708159,"d":"131.31"}},{"$f":"'Trial 2'!CG28","v":{"v":131.15070106822424,"d":"131.15"}},{"$f":"'Trial 2'!CH28","v":{"v":130.99335566806093,"d":"130.99"}},{"$f":"'Trial 2'!CI28","v":{"v":130.83696647719538,"d":"130.84"}},{"$f":"'Trial 2'!CJ28","v":{"v":130.68069466840402,"d":"130.68"}},{"$f":"'Trial 2'!CK28","v":{"v":130.52565115869308,"d":"130.53"}},{"$f":"'Trial 2'!CL28","v":{"v":130.36957863668667,"d":"130.37"}},{"$f":"'Trial 2'!CM28","v":{"v":130.21350249665957,"d":"130.21"}},{"$f":"'Trial 2'!CM28","v":{"v":130.21350249665957,"d":"130.21"}},{"$f":"'Trial 2'!CO28","v":{"v":130.05619554611394,"d":"130.06"}},{"$f":"'Trial 2'!CP28","v":{"v":129.8989033503526,"d":"129.90"}},{"$f":"'Trial 2'!CQ28","v":{"v":129.74120794114617,"d":"129.74"}},{"$f":"'Trial 2'!CR28","v":{"v":129.58379843676735,"d":"129.58"}},{"$f":"'Trial 2'!CS28","v":{"v":129.42707721571173,"d":"129.43"}},{"$f":"'Trial 2'!CT28","v":{"v":129.27025595865024,"d":"129.27"}},{"$f":"'Trial 2'!CU28","v":{"v":129.1143103035843,"d":"129.11"}},{"$f":"'Trial 2'!CV28","v":{"v":128.9577090295062,"d":"128.96"}},{"$f":"'Trial 2'!CW28","v":{"v":128.80253877344174,"d":"128.80"}},{"$f":"'Trial 2'!CX28","v":{"v":128.64749293259362,"d":"128.65"}},{"$f":"'Trial 2'!CY28","v":{"v":128.49387099264138,"d":"128.49"}},{"$f":"'Trial 2'!CZ28","v":{"v":128.3388861916923,"d":"128.34"}},{"$f":"'Trial 2'!CZ28","v":{"v":128.3388861916923,"d":"128.34"}},{"$f":"'Trial 2'!DB28","v":{"v":128.18516591189115,"d":"128.19"}},{"$f":"'Trial 2'!DC28","v":{"v":128.0315924127531,"d":"128.03"}},{"$f":"'Trial 2'!DD28","v":{"v":127.87809133881397,"d":"127.88"}},{"$f":"'Trial 2'!DE28","v":{"v":127.72554966492807,"d":"127.73"}},{"$f":"'Trial 2'!DF28","v":{"v":127.57303004997713,"d":"127.57"}},{"$f":"'Trial 2'!DG28","v":{"v":127.42155199593147,"d":"127.42"}},{"$f":"'Trial 2'!DH28","v":{"v":127.27140909025889,"d":"127.27"}},{"$f":"'Trial 2'!DI28","v":{"v":127.12168107289804,"d":"127.12"}},{"$f":"'Trial 2'!DJ28","v":{"v":126.97254716754135,"d":"126.97"}},{"$f":"'Trial 2'!DK28","v":{"v":126.82413694423309,"d":"126.82"}},{"$f":"'Trial 2'!DL28","v":{"v":126.6775106724611,"d":"126.68"}},{"$f":"'Trial 2'!DM28","v":{"v":126.53039647166352,"d":"126.53"}},{"$f":"'Trial 2'!DM28","v":{"v":126.53039647166352,"d":"126.53"}},{"$f":"'Trial 2'!DO28","v":{"v":126.38206945187534,"d":"126.38"}},{"$f":"'Trial 2'!DP28","v":{"v":126.23319213741325,"d":"126.23"}},{"$f":"'Trial 2'!DQ28","v":{"v":126.08575582101508,"d":"126.09"}},{"$f":"'Trial 2'!DR28","v":{"v":125.93753105602688,"d":"125.94"}},{"$f":"'Trial 2'!DS28","v":{"v":125.79000427388307,"d":"125.79"}},{"$f":"'Trial 2'!DT28","v":{"v":125.64278490313966,"d":"125.64"}},{"$f":"'Trial 2'!DU28","v":{"v":125.49535245154323,"d":"125.50"}},{"$f":"'Trial 2'!DV28","v":{"v":125.34883311853885,"d":"125.35"}},{"$f":"'Trial 2'!DW28","v":{"v":125.20369467442335,"d":"125.20"}},{"$f":"'Trial 2'!DX28","v":{"v":125.05976408035971,"d":"125.06"}},{"$f":"'Trial 2'!DY28","v":{"v":124.91537498831255,"d":"124.92"}},{"$f":"'Trial 2'!DZ28","v":{"v":124.77236375242286,"d":"124.77"}},{"$f":"'Trial 2'!DZ28","v":{"v":124.77236375242286,"d":"124.77"}},{"$f":"'Trial 2'!EB28","v":{"v":124.62990531322663,"d":"124.63"}},{"$f":"'Trial 2'!EC28","v":{"v":124.48697464012642,"d":"124.49"}},{"$f":"'Trial 2'!ED28","v":{"v":124.3455922379133,"d":"124.35"}},{"$f":"'Trial 2'!EE28","v":{"v":124.20531625995018,"d":"124.21"}},{"$f":"'Trial 2'!EF28","v":{"v":124.06411111931523,"d":"124.06"}},{"$f":"'Trial 2'!EG28","v":{"v":123.92346228192635,"d":"123.92"}},{"$f":"'Trial 2'!EH28","v":{"v":123.78486735997394,"d":"123.78"}},{"$f":"'Trial 2'!EI28","v":{"v":123.64592541054978,"d":"123.65"}},{"$f":"'Trial 2'!EJ28","v":{"v":123.50696041946566,"d":"123.51"}},{"$f":"'Trial 2'!EK28","v":{"v":123.36768602768204,"d":"123.37"}},{"$f":"'Trial 2'!EL28","v":{"v":123.22951205903959,"d":"123.23"}},{"$f":"'Trial 2'!EM28","v":{"v":123.09155854756004,"d":"123.09"}},{"$f":"'Trial 2'!EM28","v":{"v":123.09155854756004,"d":"123.09"}}]
[{"$f":"Labels!B98","v":"Trial 03"},{"$f":"'Trial 3'!B28","v":{"v":140,"d":"140.00"}},{"$f":"'Trial 3'!C28","v":{"v":140,"d":"140.00"}},{"$f":"'Trial 3'!D28","v":{"v":139.99253406980486,"d":"139.99"}},{"$f":"'Trial 3'!E28","v":{"v":139.97965566765149,"d":"139.98"}},{"$f":"'Trial 3'!F28","v":{"v":139.96037788435657,"d":"139.96"}},{"$f":"'Trial 3'!G28","v":{"v":139.93706554193193,"d":"139.94"}},{"$f":"'Trial 3'!H28","v":{"v":139.9089643247378,"d":"139.91"}},{"$f":"'Trial 3'!I28","v":{"v":139.87699113933357,"d":"139.88"}},{"$f":"'Trial 3'!J28","v":{"v":139.83969601883436,"d":"139.84"}},{"$f":"'Trial 3'!K28","v":{"v":139.7984165297299,"d":"139.80"}},{"$f":"'Trial 3'!L28","v":{"v":139.75142343227876,"d":"139.75"}},{"$f":"'Trial 3'!M28","v":{"v":139.70019661505796,"d":"139.70"}},{"$f":"'Trial 3'!M28","v":{"v":139.70019661505796,"d":"139.70"}},{"$f":"'Trial 3'!O28","v":{"v":139.64549941727228,"d":"139.65"}},{"$f":"'Trial 3'!P28","v":{"v":139.58582098196507,"d":"139.59"}},{"$f":"'Trial 3'!Q28","v":{"v":139.52231688220874,"d":"139.52"}},{"$f":"'Trial 3'!R28","v":{"v":139.45442669424176,"d":"139.45"}},{"$f":"'Trial 3'!S28","v":{"v":139.38388600131438,"d":"139.38"}},{"$f":"'Trial 3'!T28","v":{"v":139.31028742838237,"d":"139.31"}},{"$f":"'Trial 3'!U28","v":{"v":139.23303574006408,"d":"139.23"}},{"$f":"'Trial 3'!V28","v":{"v":139.15197114171832,"d":"139.15"}},{"$f":"'Trial 3'!W28","v":{"v":139.0656771593711,"d":"139.07"}},{"$f":"'Trial 3'!X28","v":{"v":138.9753441052339,"d":"138.98"}},{"$f":"'Trial 3'!Y28","v":{"v":138.8822585123204,"d":"138.88"}},{"$f":"'Trial 3'!Z28","v":{"v":138.78627152238275,"d":"138.79"}},{"$f":"'Trial 3'!Z28","v":{"v":138.78627152238275,"d":"138.79"}},{"$f":"'Trial 3'!AB28","v":{"v":138.6869347071547,"d":"138.69"}},{"$f":"'Trial 3'!AC28","v":{"v":138.58311484824873,"d":"138.58"}},{"$f":"'Trial 3'!AD28","v":{"v":138.47779100071276,"d":"138.48"}},{"$f":"'Trial 3'!AE28","v":{"v":138.3692530894889,"d":"138.37"}},{"$f":"'Trial 3'!AF28","v":{"v":138.25721021029554,"d":"138.26"}},{"$f":"'Trial 3'!AG28","v":{"v":138.14356586272328,"d":"138.14"}},{"$f":"'Trial 3'!AH28","v":{"v":138.02591576705055,"d":"138.03"}},{"$f":"'Trial 3'!AI28","v":{"v":137.90677621903268,"d":"137.91"}},{"$f":"'Trial 3'!AJ28","v":{"v":137.7856969882728,"d":"137.79"}},{"$f":"'Trial 3'!AK28","v":{"v":137.6618363433555,"d":"137.66"}},{"$f":"'Trial 3'!AL28","v":{"v":137.53657791731624,"d":"137.54"}},{"$f":"'Trial 3'!AM28","v":{"v":137.4096020228871,"d":"137.41"}},{"$f":"'Trial 3'!AM28","v":{"v":137.4096020228871,"d":"137.41"}},{"$f":"'Trial 3'!AO28","v":{"v":137.2804253082862,"d":"137.28"}},{"$f":"'Trial 3'!AP28","v":{"v":137.14904702462923,"d":"137.15"}},{"$f":"'Trial 3'!AQ28","v":{"v":137.01686309694642,"d":"137.02"}},{"$f":"'Trial 3'!AR28","v":{"v":136.88411779865092,"d":"136.88"}},{"$f":"'Trial 3'!AS28","v":{"v":136.74844605919316,"d":"136.75"}},{"$f":"'Trial 3'!AT28","v":{"v":136.61104384112676,"d":"136.61"}},{"$f":"'Trial 3'!AU28","v":{"v":136.47300813248324,"d":"136.47"}},{"$f":"'Trial 3'!AV28","v":{"v":136.33315628575826,"d":"136.33"}},{"$f":"'Trial 3'!AW28","v":{"v":136.1911494764532,"d":"136.19"}},{"$f":"'Trial 3'!AX28","v":{"v":136.04829536900863,"d":"136.05"}},{"$f":"'Trial 3'!AY28","v":{"v":135.9033659790922,"d":"135.90"}},{"$f":"'Trial 3'!AZ28","v":{"v":135.7584296667,"d":"135.76"}},{"$f":"'Trial 3'!AZ28","v":{"v":135.7584296667,"d":"135.76"}},{"$f":"'Trial 3'!BB28","v":{"v":135.61153190841915,"d":"135.61"}},{"$f":"'Trial 3'!BC28","v":{"v":135.46228785826176,"d":"135.46"}},{"$f":"'Trial 3'!BD28","v":{"v":135.31184671376064,"d":"135.31"}},{"$f":"'Trial 3'!BE28","v":{"v":135.15919520537253,"d":"135.16"}},{"$f":"'Trial 3'!BF28","v":{"v":135.00660516022538,"d":"135.01"}},{"$f":"'Trial 3'!BG28","v":{"v":134.8516385726095,"d":"134.85"}},{"$f":"'Trial 3'!BH28","v":{"v":134.69640837341757,"d":"134.70"}},{"$f":"'Trial 3'!BI28","v":{"v":134.53891090445916,"d":"134.54"}},{"$f":"'Trial 3'!BJ28","v":{"v":134.3800389793681,"d":"134.38"}},{"$f":"'Trial 3'!BK28","v":{"v":134.22096677636924,"d":"134.22"}},{"$f":"'Trial 3'!BL28","v":{"v":134.06153749734227,"d":"134.06"}},{"$f":"'Trial 3'!BM28","v":{"v":133.90140411809006,"d":"133.90"}},{"$f":"'Trial 3'!BM28","v":{"v":133.90140411809006,"d":"133.90"}},{"$f":"'Trial 3'!BO28","v":{"v":133.741659572118,"d":"133.74"}},{"$f":"'Trial 3'!BP28","v":{"v":133.58153142485074,"d":"133.58"}},{"$f":"'Trial 3'!BQ28","v":{"v":133.4210924784331,"d":"133.42"}},{"$f":"'Trial 3'!BR28","v":{"v":133.26082665658427,"d":"133.26"}},{"$f":"'Trial 3'!BS28","v":{"v":133.09947523085532,"d":"133.10"}},{"$f":"'Trial 3'!BT28","v":{"v":132.93808130721274,"d":"132.94"}},{"$f":"'Trial 3'!BU28","v":{"v":132.77727101636458,"d":"132.78"}},{"$f":"'Trial 3'!BV28","v":{"v":132.61605955150807,"d":"132.62"}},{"$f":"'Trial 3'!BW28","v":{"v":132.45434052877332,"d":"132.45"}},{"$f":"'Trial 3'!BX28","v":{"v":132.29180295575327,"d":"132.29"}},{"$f":"'Trial 3'!BY28","v":{"v":132.12971704671145,"d":"132.13"}},{"$f":"'Trial 3'!BZ28","v":{"v":131.96658655968747,"d":"131.97"}},{"$f":"'Trial 3'!BZ28","v":{"v":131.96658655968747,"d":"131.97"}},{"$f":"'Trial 3'!CB28","v":{"v":131.80472686265975,"d":"131.80"}},{"$f":"'Trial 3'!CC28","v":{"v":131.6426163633233,"d":"131.64"}},{"$f":"'Trial 3'!CD28","v":{"v":131.48110759231102,"d":"131.48"}},{"$f":"'Trial 3'!CE28","v":{"v":131.31950768880012,"d":"131.32"}},{"$f":"'Trial 3'!CF28","v":{"v":131.15814729919504,"d":"131.16"}},{"$f":"'Trial 3'!CG28","v":{"v":130.99708524866446,"d":"131.00"}},{"$f":"'Trial 3'!CH28","v":{"v":130.83623844855336,"d":"130.84"}},{"$f":"'Trial 3'!CI28","v":{"v":130.6763408241821,"d":"130.68"}},{"$f":"'Trial 3'!CJ28","v":{"v":130.5175093350743,"d":"130.52"}},{"$f":"'Trial 3'!CK28","v":{"v":130.36007567626092,"d":"130.36"}},{"$f":"'Trial 3'!CL28","v":{"v":130.20266224662666,"d":"130.20"}},{"$f":"'Trial 3'!CM28","v":{"v":130.0460308941977,"d":"130.05"}},{"$f":"'Trial 3'!CM28","v":{"v":130.0460308941977,"d":"130.05"}},{"$f":"'Trial 3'!CO28","v":{"v":129.89055596846134,"d":"129.89"}},{"$f":"'Trial 3'!CP28","v":{"v":129.7366453627356,"d":"129.74"}},{"$f":"'Trial 3'!CQ28","v":{"v":129.58192320331563,"d":"129.58"}},{"$f":"'Trial 3'!CR28","v":{"v":129.4278857413097,"d":"129.43"}},{"$f":"'Trial 3'!CS28","v":{"v":129.27371128018143,"d":"129.27"}},{"$f":"'Trial 3'!CT28","v":{"v":129.120091333848,"d":"129.12"}},{"$f":"'Trial 3'!CU28","v":{"v":128.96661791066117,"d":"128.97"}},{"$f":"'Trial 3'!CV28","v":{"v":128.81363861697565,"d":"128.81"}},{"$f":"'Trial 3'!CW28","v":{"v":128.66151667814748,"d":"128.66"}},{"$f":"'Trial 3'!CX28","v":{"v":128.50979176021428,"d":"128.51"}},{"$f":"'Trial 3'!CY28","v":{"v":128.35754410576624,"d":"128.36"}},{"$f":"'Trial 3'!CZ28","v":{"v":128.20685364501597,"d":"128.21"}},{"$f":"'Trial 3'!CZ28","v":{"v":128.20685364501597,"d":"128.21"}},{"$f":"'Trial 3'!DB28","v":{"v":128.05585768756072,"d":"128.06"}},{"$f":"'Trial 3'!DC28","v":{"v":127.90604255140204,"d":"127.91"}},{"$f":"'Trial 3'!DD28","v":{"v":127.7556077237492,"d":"127.76"}},{"$f":"'Trial 3'!DE28","v":{"v":127.60394621930784,"d":"127.60"}},{"$f":"'Trial 3'!DF28","v":{"v":127.45260124498704,"d":"127.45"}},{"$f":"'Trial 3'!DG28","v":{"v":127.30206732499022,"d":"127.30"}},{"$f":"'Trial 3'!DH28","v":{"v":127.152143378388,"d":"127.15"}},{"$f":"'Trial 3'!DI28","v":{"v":127.00317937053002,"d":"127.00"}},{"$f":"'Trial 3'!DJ28","v":{"v":126.8550193617105,"d":"126.86"}},{"$f":"'Trial 3'!DK28","v":{"v":126.70736947508448,"d":"126.71"}},{"$f":"'Trial 3'!DL28","v":{"v":126.55988152401542,"d":"126.56"}},{"$f":"'Trial 3'!DM28","v":{"v":126.41320767851114,"d":"126.41"}},{"$f":"'Trial 3'!DM28","v":{"v":126.41320767851114,"d":"126.41"}},{"$f":"'Trial 3'!DO28","v":{"v":126.26762067803291,"d":"126.27"}},{"$f":"'Trial 3'!DP28","v":{"v":126.12280250661871,"d":"126.12"}},{"$f":"'Trial 3'!DQ28","v":{"v":125.97893858733028,"d":"125.98"}},{"$f":"'Trial 3'!DR28","v":{"v":125.8361206756812,"d":"125.84"}},{"$f":"'Trial 3'!DS28","v":{"v":125.69548630094458,"d":"125.70"}},{"$f":"'Trial 3'!DT28","v":{"v":125.55380229725586,"d":"125.55"}},{"$f":"'Trial 3'!DU28","v":{"v":125.41213879279366,"d":"125.41"}},{"$f":"'Trial 3'!DV28","v":{"v":125.27171143868864,"d":"125.27"}},{"$f":"'Trial 3'!DW28","v":{"v":125.1316487772757,"d":"125.13"}},{"$f":"'Trial 3'!DX28","v":{"v":124.9928370470003,"d":"124.99"}},{"$f":"'Trial 3'!DY28","v":{"v":124.85562972960581,"d":"124.86"}},{"$f":"'Trial 3'!DZ28","v":{"v":124.71872312016859,"d":"124.72"}},{"$f":"'Trial 3'!DZ28","v":{"v":124.71872312016859,"d":"124.72"}},{"$f":"'Trial 3'!EB28","v":{"v":124.58183649373078,"d":"124.58"}},{"$f":"'Trial 3'!EC28","v":{"v":124.44449888526813,"d":"124.44"}},{"$f":"'Trial 3'!ED28","v":{"v":124.30768213536744,"d":"124.31"}},{"$f":"'Trial 3'!EE28","v":{"v":124.1710419756467,"d":"124.17"}},{"$f":"'Trial 3'!EF28","v":{"v":124.03526006385329,"d":"124.04"}},{"$f":"'Trial 3'!EG28","v":{"v":123.90033245906142,"d":"123.90"}},{"$f":"'Trial 3'!EH28","v":{"v":123.76587027971115,"d":"123.77"}},{"$f":"'Trial 3'!EI28","v":{"v":123.63189040935312,"d":"123.63"}},{"$f":"'Trial 3'!EJ28","v":{"v":123.49925294775515,"d":"123.50"}},{"$f":"'Trial 3'!EK28","v":{"v":123.36600416187846,"d":"123.37"}},{"$f":"'Trial 3'!EL28","v":{"v":123.23184129383807,"d":"123.23"}},{"$f":"'Trial 3'!EM28","v":{"v":123.09948297200748,"d":"123.10"}},{"$f":"'Trial 3'!EM28","v":{"v":123.09948297200748,"d":"123.10"}}]
[{"$f":"Labels!B99","v":"Trial 04"},{"$f":"'Trial 4'!B28","v":{"v":140,"d":"140.00"}},{"$f":"'Trial 4'!C28","v":{"v":140,"d":"140.00"}},{"$f":"'Trial 4'!D28","v":{"v":139.99370562944395,"d":"139.99"}},{"$f":"'Trial 4'!E28","v":{"v":139.98108368165873,"d":"139.98"}},{"$f":"'Trial 4'!F28","v":{"v":139.96228406632494,"d":"139.96"}},{"$f":"'Trial 4'!G28","v":{"v":139.93868019607854,"d":"139.94"}},{"$f":"'Trial 4'!H28","v":{"v":139.91097207108808,"d":"139.91"}},{"$f":"'Trial 4'!I28","v":{"v":139.87978445424628,"d":"139.88"}},{"$f":"'Trial 4'!J28","v":{"v":139.84234816841763,"d":"139.84"}},{"$f":"'Trial 4'!K28","v":{"v":139.79891024513608,"d":"139.80"}},{"$f":"'Trial 4'!L28","v":{"v":139.75061544427635,"d":"139.75"}},{"$f":"'Trial 4'!M28","v":{"v":139.69762259144758,"d":"139.70"}},{"$f":"'Trial 4'!M28","v":{"v":139.69762259144758,"d":"139.70"}},{"$f":"'Trial 4'!O28","v":{"v":139.64033407325726,"d":"139.64"}},{"$f":"'Trial 4'!P28","v":{"v":139.57748257553104,"d":"139.58"}},{"$f":"'Trial 4'!Q28","v":{"v":139.51064666093473,"d":"139.51"}},{"$f":"'Trial 4'!R28","v":{"v":139.44031194506428,"d":"139.44"}},{"$f":"'Trial 4'!S28","v":{"v":139.36744354530651,"d":"139.37"}},{"$f":"'Trial 4'!T28","v":{"v":139.2909207295985,"d":"139.29"}},{"$f":"'Trial 4'!U28","v":{"v":139.209185544513,"d":"139.21"}},{"$f":"'Trial 4'!V28","v":{"v":139.12356835515382,"d":"139.12"}},{"$f":"'Trial 4'!W28","v":{"v":139.03475205720815,"d":"139.03"}},{"$f":"'Trial 4'!X28","v":{"v":138.94263740338886,"d":"138.94"}},{"$f":"'Trial 4'!Y28","v":{"v":138.8492139593875,"d":"138.85"}},{"$f":"'Trial 4'!Z28","v":{"v":138.75259278264923,"d":"138.75"}},{"$f":"'Trial 4'!Z28","v":{"v":138.75259278264923,"d":"138.75"}},{"$f":"'Trial 4'!AB28","v":{"v":138.65156852924204,"d":"138.65"}},{"$f":"'Trial 4'!AC28","v":{"v":138.54690319893896,"d":"138.55"}},{"$f":"'Trial 4'!AD28","v":{"v":138.43894094254594,"d":"138.44"}},{"$f":"'Trial 4'!AE28","v":{"v":138.32868611585874,"d":"138.33"}},{"$f":"'Trial 4'!AF28","v":{"v":138.215581404524,"d":"138.22"}},{"$f":"'Trial 4'!AG28","v":{"v":138.09887030455266,"d":"138.10"}},{"$f":"'Trial 4'!AH28","v":{"v":137.97936500767995,"d":"137.98"}},{"$f":"'Trial 4'!AI28","v":{"v":137.8590108050166,"d":"137.86"}},{"$f":"'Trial 4'!AJ28","v":{"v":137.73654260898684,"d":"137.74"}},{"$f":"'Trial 4'!AK28","v":{"v":137.61202781497803,"d":"137.61"}},{"$f":"'Trial 4'!AL28","v":{"v":137.48502263688155,"d":"137.49"}},{"$f":"'Trial 4'!AM28","v":{"v":137.35726511457923,"d":"137.36"}},{"$f":"'Trial 4'!AM28","v":{"v":137.35726511457923,"d":"137.36"}},{"$f":"'Trial 4'!AO28","v":{"v":137.22734488993643,"d":"137.23"}},{"$f":"'Trial 4'!AP28","v":{"v":137.0940068149227,"d":"137.09"}},{"$f":"'Trial 4'!AQ28","v":{"v":136.95905607613204,"d":"136.96"}},{"$f":"'Trial 4'!AR28","v":{"v":136.82247629453772,"d":"136.82"}},{"$f":"'Trial 4'!AS28","v":{"v":136.68413941586678,"d":"136.68"}},{"$f":"'Trial 4'!AT28","v":{"v":136.54339756624228,"d":"136.54"}},{"$f":"'Trial 4'!AU28","v":{"v":136.40167820407365,"d":"136.40"}},{"$f":"'Trial 4'!AV28","v":{"v":136.2595931202941,"d":"136.26"}},{"$f":"'Trial 4'!AW28","v":{"v":136.1166564265643,"d":"136.12"}},{"$f":"'Trial 4'!AX28","v":{"v":135.9724642472322,"d":"135.97"}},{"$f":"'Trial 4'!AY28","v":{"v":135.82769300233423,"d":"135.83"}},{"$f":"'Trial 4'!AZ28","v":{"v":135.68091954073253,"d":"135.68"}},{"$f":"'Trial 4'!AZ28","v":{"v":135.68091954073253,"d":"135.68"}},{"$f":"'Trial 4'!BB28","v":{"v":135.53236428535462,"d":"135.53"}},{"$f":"'Trial 4'!BC28","v":{"v":135.38142153314246,"d":"135.38"}},{"$f":"'Trial 4'!BD28","v":{"v":135.23130255378427,"d":"135.23"}},{"$f":"'Trial 4'!BE28","v":{"v":135.08194836607947,"d":"135.08"}},{"$f":"'Trial 4'!BF28","v":{"v":134.93082863452855,"d":"134.93"}},{"$f":"'Trial 4'!BG28","v":{"v":134.7789485323832,"d":"134.78"}},{"$f":"'Trial 4'!BH28","v":{"v":134.62549088779252,"d":"134.63"}},{"$f":"'Trial 4'!BI28","v":{"v":134.472008489717,"d":"134.47"}},{"$f":"'Trial 4'!BJ28","v":{"v":134.31711144623165,"d":"134.32"}},{"$f":"'Trial 4'!BK28","v":{"v":134.16172381767595,"d":"134.16"}},{"$f":"'Trial 4'!BL28","v":{"v":134.00415049086672,"d":"134.00"}},{"$f":"'Trial 4'!BM28","v":{"v":133.8470337258057,"d":"133.85"}},{"$f":"'Trial 4'!BM28","v":{"v":133.8470337258057,"d":"133.85"}},{"$f":"'Trial 4'!BO28","v":{"v":133.6899411929601,"d":"133.69"}},{"$f":"'Trial 4'!BP28","v":{"v":133.533254402342,"d":"133.53"}},{"$f":"'Trial 4'!BQ28","v":{"v":133.37687141495687,"d":"133.38"}},{"$f":"'Trial 4'!BR28","v":{"v":133.22086333585494,"d":"133.22"}},{"$f":"'Trial 4'!BS28","v":{"v":133.06387408072285,"d":"133.06"}},{"$f":"'Trial 4'!BT28","v":{"v":132.9068088240529,"d":"132.91"}},{"$f":"'Trial 4'!BU28","v":{"v":132.748425085212,"d":"132.75"}},{"$f":"'Trial 4'!BV28","v":{"v":132.5904066575425,"d":"132.59"}},{"$f":"'Trial 4'!BW28","v":{"v":132.4318167200261,"d":"132.43"}},{"$f":"'Trial 4'!BX28","v":{"v":132.2723445391855,"d":"132.27"}},{"$f":"'Trial 4'!BY28","v":{"v":132.11172061028725,"d":"132.11"}},{"$f":"'Trial 4'!BZ28","v":{"v":131.95183317543948,"d":"131.95"}},{"$f":"'Trial 4'!BZ28","v":{"v":131.95183317543948,"d":"131.95"}},{"$f":"'Trial 4'!CB28","v":{"v":131.791747539822,"d":"131.79"}},{"$f":"'Trial 4'!CC28","v":{"v":131.6321671725921,"d":"131.63"}},{"$f":"'Trial 4'!CD28","v":{"v":131.4717677645761,"d":"131.47"}},{"$f":"'Trial 4'!CE28","v":{"v":131.31187887358257,"d":"131.31"}},{"$f":"'Trial 4'!CF28","v":{"v":131.15155194574965,"d":"131.15"}},{"$f":"'Trial 4'!CG28","v":{"v":130.99102256373575,"d":"130.99"}},{"$f":"'Trial 4'!CH28","v":{"v":130.83078562248824,"d":"130.83"}},{"$f":"'Trial 4'!CI28","v":{"v":130.67032197794774,"d":"130.67"}},{"$f":"'Trial 4'!CJ28","v":{"v":130.5118463071565,"d":"130.51"}},{"$f":"'Trial 4'!CK28","v":{"v":130.3544789906167,"d":"130.35"}},{"$f":"'Trial 4'!CL28","v":{"v":130.19715039618723,"d":"130.20"}},{"$f":"'Trial 4'!CM28","v":{"v":130.04101211109116,"d":"130.04"}},{"$f":"'Trial 4'!CM28","v":{"v":130.04101211109116,"d":"130.04"}},{"$f":"'Trial 4'!CO28","v":{"v":129.8852712269296,"d":"129.89"}},{"$f":"'Trial 4'!CP28","v":{"v":129.72907638559317,"d":"129.73"}},{"$f":"'Trial 4'!CQ28","v":{"v":129.57400961566617,"d":"129.57"}},{"$f":"'Trial 4'!CR28","v":{"v":129.41979336993558,"d":"129.42"}},{"$f":"'Trial 4'!CS28","v":{"v":129.26669382553752,"d":"129.27"}},{"$f":"'Trial 4'!CT28","v":{"v":129.11389652164067,"d":"129.11"}},{"$f":"'Trial 4'!CU28","v":{"v":128.96059800602913,"d":"128.96"}},{"$f":"'Trial 4'!CV28","v":{"v":128.80615021139937,"d":"128.81"}},{"$f":"'Trial 4'!CW28","v":{"v":128.65358971982334,"d":"128.65"}},{"$f":"'Trial 4'!CX28","v":{"v":128.50180954954365,"d":"128.50"}},{"$f":"'Trial 4'!CY28","v":{"v":128.35072083873666,"d":"128.35"}},{"$f":"'Trial 4'!CZ28","v":{"v":128.19851663451024,"d":"128.20"}},{"$f":"'Trial 4'!CZ28","v":{"v":128.19851663451024,"d":"128.20"}},{"$f":"'Trial 4'!DB28","v":{"v":128.0472941258485,"d":"128.05"}},{"$f":"'Trial 4'!DC28","v":{"v":127.8976651232102,"d":"127.90"}},{"$f":"'Trial 4'!DD28","v":{"v":127.7477407518407,"d":"127.75"}},{"$f":"'Trial 4'!DE28","v":{"v":127.59706470684937,"d":"127.60"}},{"$f":"'Trial 4'!DF28","v":{"v":127.44742216482877,"d":"127.45"}},{"$f":"'Trial 4'!DG28","v":{"v":127.29881208783753,"d":"127.30"}},{"$f":"'Trial 4'!DH28","v":{"v":127.15075929049488,"d":"127.15"}},{"$f":"'Trial 4'!DI28","v":{"v":127.00351563049844,"d":"127.00"}},{"$f":"'Trial 4'!DJ28","v":{"v":126.855569844565,"d":"126.86"}},{"$f":"'Trial 4'!DK28","v":{"v":126.70882086920905,"d":"126.71"}},{"$f":"'Trial 4'!DL28","v":{"v":126.56197783530187,"d":"126.56"}},{"$f":"'Trial 4'!DM28","v":{"v":126.41618335870157,"d":"126.42"}},{"$f":"'Trial 4'!DM28","v":{"v":126.41618335870157,"d":"126.42"}},{"$f":"'Trial 4'!DO28","v":{"v":126.27112943541589,"d":"126.27"}},{"$f":"'Trial 4'!DP28","v":{"v":126.12607424155176,"d":"126.13"}},{"$f":"'Trial 4'!DQ28","v":{"v":125.98281145466531,"d":"125.98"}},{"$f":"'Trial 4'!DR28","v":{"v":125.84169926045425,"d":"125.84"}},{"$f":"'Trial 4'!DS28","v":{"v":125.70010528475675,"d":"125.70"}},{"$f":"'Trial 4'!DT28","v":{"v":125.56037059351729,"d":"125.56"}},{"$f":"'Trial 4'!DU28","v":{"v":125.42263501174541,"d":"125.42"}},{"$f":"'Trial 4'!DV28","v":{"v":125.28608359083232,"d":"125.29"}},{"$f":"'Trial 4'!DW28","v":{"v":125.14939581220685,"d":"125.15"}},{"$f":"'Trial 4'!DX28","v":{"v":125.01287889687976,"d":"125.01"}},{"$f":"'Trial 4'!DY28","v":{"v":124.87502438969041,"d":"124.88"}},{"$f":"'Trial 4'!DZ28","v":{"v":124.73883365341622,"d":"124.74"}},{"$f":"'Trial 4'!DZ28","v":{"v":124.73883365341622,"d":"124.74"}},{"$f":"'Trial 4'!EB28","v":{"v":124.60405486092655,"d":"124.60"}},{"$f":"'Trial 4'!EC28","v":{"v":124.4710752730341,"d":"124.47"}},{"$f":"'Trial 4'!ED28","v":{"v":124.33834051257692,"d":"124.34"}},{"$f":"'Trial 4'!EE28","v":{"v":124.20416952688481,"d":"124.20"}},{"$f":"'Trial 4'!EF28","v":{"v":124.07009678254266,"d":"124.07"}},{"$f":"'Trial 4'!EG28","v":{"v":123.93757862392154,"d":"123.94"}},{"$f":"'Trial 4'!EH28","v":{"v":123.80691987524577,"d":"123.81"}},{"$f":"'Trial 4'!EI28","v":{"v":123.6762356482542,"d":"123.68"}},{"$f":"'Trial 4'!EJ28","v":{"v":123.54661206554213,"d":"123.55"}},{"$f":"'Trial 4'!EK28","v":{"v":123.41591892018529,"d":"123.42"}},{"$f":"'Trial 4'!EL28","v":{"v":123.28419589085445,"d":"123.28"}},{"$f":"'Trial 4'!EM28","v":{"v":123.153885673068,"d":"123.15"}},{"$f":"'Trial 4'!EM28","v":{"v":123.153885673068,"d":"123.15"}}]
[{"$f":"Labels!B100","v":"Trial 05"},{"$f":"'Trial 5'!B28","v":{"v":140,"d":"140.00"}},{"$f":"'Trial 5'!C28","v":{"v":140,"d":"140.00"}},{"$f":"'Trial 5'!D28","v":{"v":139.99297082702557,"d":"139.99"}},{"$f":"'Trial 5'!E28","v":{"v":139.9794119517761,"d":"139.98"}},{"$f":"'Trial 5'!F28","v":{"v":139.96145437299262,"d":"139.96"}},{"$f":"'Trial 5'!G28","v":{"v":139.93662912881206,"d":"139.94"}},{"$f":"'Trial 5'!H28","v":{"v":139.90605234522712,"d":"139.91"}},{"$f":"'Trial 5'!I28","v":{"v":139.86976489720905,"d":"139.87"}},{"$f":"'Trial 5'!J28","v":{"v":139.82858269474636,"d":"139.83"}},{"$f":"'Trial 5'!K28","v":{"v":139.78327860831783,"d":"139.78"}},{"$f":"'Trial 5'!L28","v":{"v":139.73515203538284,"d":"139.74"}},{"$f":"'Trial 5'!M28","v":{"v":139.68174381090773,"d":"139.68"}},{"$f":"'Trial 5'!M28","v":{"v":139.68174381090773,"d":"139.68"}},{"$f":"'Trial 5'!O28","v":{"v":139.62339418718085,"d":"139.62"}},{"$f":"'Trial 5'!P28","v":{"v":139.5608470476963,"d":"139.56"}},{"$f":"'Trial 5'!Q28","v":{"v":139.49396537626802,"d":"139.49"}},{"$f":"'Trial 5'!R28","v":{"v":139.4232937439943,"d":"139.42"}},{"$f":"'Trial 5'!S28","v":{"v":139.34859963798786,"d":"139.35"}},{"$f":"'Trial 5'!T28","v":{"v":139.27045463533634,"d":"139.27"}},{"$f":"'Trial 5'!U28","v":{"v":139.1875671742041,"d":"139.19"}},{"$f":"'Trial 5'!V28","v":{"v":139.1030199178538,"d":"139.10"}},{"$f":"'Trial 5'!W28","v":{"v":139.0155487801776,"d":"139.02"}},{"$f":"'Trial 5'!X28","v":{"v":138.92472857583658,"d":"138.92"}},{"$f":"'Trial 5'!Y28","v":{"v":138.8310425241632,"d":"138.83"}},{"$f":"'Trial 5'!Z28","v":{"v":138.73333491105555,"d":"138.73"}},{"$f":"'Trial 5'!Z28","v":{"v":138.73333491105555,"d":"138.73"}},{"$f":"'Trial 5'!AB28","v":{"v":138.6343648356834,"d":"138.63"}},{"$f":"'Trial 5'!AC28","v":{"v":138.53214919728853,"d":"138.53"}},{"$f":"'Trial 5'!AD28","v":{"v":138.42768583562665,"d":"138.43"}},{"$f":"'Trial 5'!AE28","v":{"v":138.32056314497527,"d":"138.32"}},{"$f":"'Trial 5'!AF28","v":{"v":138.21237654464448,"d":"138.21"}},{"$f":"'Trial 5'!AG28","v":{"v":138.10000891897502,"d":"138.10"}},{"$f":"'Trial 5'!AH28","v":{"v":137.9838916117061,"d":"137.98"}},{"$f":"'Trial 5'!AI28","v":{"v":137.86506256498592,"d":"137.87"}},{"$f":"'Trial 5'!AJ28","v":{"v":137.7444988104379,"d":"137.74"}},{"$f":"'Trial 5'!AK28","v":{"v":137.620879840671,"d":"137.62"}},{"$f":"'Trial 5'!AL28","v":{"v":137.49552499830992,"d":"137.50"}},{"$f":"'Trial 5'!AM28","v":{"v":137.3672573513998,"d":"137.37"}},{"$f":"'Trial 5'!AM28","v":{"v":137.3672573513998,"d":"137.37"}},{"$f":"'Trial 5'!AO28","v":{"v":137.2369460019998,"d":"137.24"}},{"$f":"'Trial 5'!AP28","v":{"v":137.1040186479651,"d":"137.10"}},{"$f":"'Trial 5'!AQ28","v":{"v":136.96949634814115,"d":"136.97"}},{"$f":"'Trial 5'!AR28","v":{"v":136.83354498184954,"d":"136.83"}},{"$f":"'Trial 5'!AS28","v":{"v":136.69575981447878,"d":"136.70"}},{"$f":"'Trial 5'!AT28","v":{"v":136.5570286142928,"d":"136.56"}},{"$f":"'Trial 5'!AU28","v":{"v":136.417566560065,"d":"136.42"}},{"$f":"'Trial 5'!AV28","v":{"v":136.27630997751157,"d":"136.28"}},{"$f":"'Trial 5'!AW28","v":{"v":136.13419163073974,"d":"136.13"}},{"$f":"'Trial 5'!AX28","v":{"v":135.99097336232347,"d":"135.99"}},{"$f":"'Trial 5'!AY28","v":{"v":135.8463879683266,"d":"135.85"}},{"$f":"'Trial 5'!AZ28","v":{"v":135.70051297150238,"d":"135.70"}},{"$f":"'Trial 5'!AZ28","v":{"v":135.70051297150238,"d":"135.70"}},{"$f":"'Trial 5'!BB28","v":{"v":135.55388440069035,"d":"135.55"}},{"$f":"'Trial 5'!BC28","v":{"v":135.40609146127616,"d":"135.41"}},{"$f":"'Trial 5'!BD28","v":{"v":135.2567687830677,"d":"135.26"}},{"$f":"'Trial 5'!BE28","v":{"v":135.10541894336347,"d":"135.11"}},{"$f":"'Trial 5'!BF28","v":{"v":134.9516482011138,"d":"134.95"}},{"$f":"'Trial 5'!BG28","v":{"v":134.79767679744904,"d":"134.80"}},{"$f":"'Trial 5'!BH28","v":{"v":134.64262404636654,"d":"134.64"}},{"$f":"'Trial 5'!BI28","v":{"v":134.4872500907126,"d":"134.49"}},{"$f":"'Trial 5'!BJ28","v":{"v":134.33008867493996,"d":"134.33"}},{"$f":"'Trial 5'!BK28","v":{"v":134.17276272376301,"d":"134.17"}},{"$f":"'Trial 5'!BL28","v":{"v":134.01614752675948,"d":"134.02"}},{"$f":"'Trial 5'!BM28","v":{"v":133.85950350325487,"d":"133.86"}},{"$f":"'Trial 5'!BM28","v":{"v":133.85950350325487,"d":"133.86"}},{"$f":"'Trial 5'!BO28","v":{"v":133.70362798741542,"d":"133.70"}},{"$f":"'Trial 5'!BP28","v":{"v":133.54764626271748,"d":"133.55"}},{"$f":"'Trial 5'!BQ28","v":{"v":133.39241105625592,"d":"133.39"}},{"$f":"'Trial 5'!BR28","v":{"v":133.2384202320834,"d":"133.24"}},{"$f":"'Trial 5'!BS28","v":{"v":133.0855961138082,"d":"133.09"}},{"$f":"'Trial 5'!BT28","v":{"v":132.931317100318,"d":"132.93"}},{"$f":"'Trial 5'!BU28","v":{"v":132.77673052847194,"d":"132.78"}},{"$f":"'Trial 5'!BV28","v":{"v":132.6235278493101,"d":"132.62"}},{"$f":"'Trial 5'!BW28","v":{"v":132.46903792730348,"d":"132.47"}},{"$f":"'Trial 5'!BX28","v":{"v":132.31412776175776,"d":"132.31"}},{"$f":"'Trial 5'!BY28","v":{"v":132.15918367768714,"d":"132.16"}},{"$f":"'Trial 5'!BZ28","v":{"v":132.00536048998325,"d":"132.01"}},{"$f":"'Trial 5'!BZ28","v":{"v":132.00536048998325,"d":"132.01"}},{"$f":"'Trial 5'!CB28","v":{"v":131.85275677448755,"d":"131.85"}},{"$f":"'Trial 5'!CC28","v":{"v":131.70098827525283,"d":"131.70"}},{"$f":"'Trial 5'!CD28","v":{"v":131.5488859065884,"d":"131.55"}},{"$f":"'Trial 5'!CE28","v":{"v":131.3966946042238,"d":"131.40"}},{"$f":"'Trial 5'!CF28","v":{"v":131.24425809809077,"d":"131.24"}},{"$f":"'Trial 5'!CG28","v":{"v":131.09115711964623,"d":"131.09"}},{"$f":"'Trial 5'!CH28","v":{"v":130.93819376635156,"d":"130.94"}},{"$f":"'Trial 5'!CI28","v":{"v":130.78690964396904,"d":"130.79"}},{"$f":"'Trial 5'!CJ28","v":{"v":130.63491512049265,"d":"130.63"}},{"$f":"'Trial 5'!CK28","v":{"v":130.48207173777135,"d":"130.48"}},{"$f":"'Trial 5'!CL28","v":{"v":130.3295854921158,"d":"130.33"}},{"$f":"'Trial 5'!CM28","v":{"v":130.1787459590177,"d":"130.18"}},{"$f":"'Trial 5'!CM28","v":{"v":130.1787459590177,"d":"130.18"}},{"$f":"'Trial 5'!CO28","v":{"v":130.02701831571812,"d":"130.03"}},{"$f":"'Trial 5'!CP28","v":{"v":129.87587031688292,"d":"129.88"}},{"$f":"'Trial 5'!CQ28","v":{"v":129.72521405522775,"d":"129.73"}},{"$f":"'Trial 5'!CR28","v":{"v":129.5737179522503,"d":"129.57"}},{"$f":"'Trial 5'!CS28","v":{"v":129.42372585744863,"d":"129.42"}},{"$f":"'Trial 5'!CT28","v":{"v":129.2731101943457,"d":"129.27"}},{"$f":"'Trial 5'!CU28","v":{"v":129.1221944398516,"d":"129.12"}},{"$f":"'Trial 5'!CV28","v":{"v":128.97196322937174,"d":"128.97"}},{"$f":"'Trial 5'!CW28","v":{"v":128.8221439264561,"d":"128.82"}},{"$f":"'Trial 5'!CX28","v":{"v":128.67226079755594,"d":"128.67"}},{"$f":"'Trial 5'!CY28","v":{"v":128.52349867347897,"d":"128.52"}},{"$f":"'Trial 5'!CZ28","v":{"v":128.37451921623406,"d":"128.37"}},{"$f":"'Trial 5'!CZ28","v":{"v":128.37451921623406,"d":"128.37"}},{"$f":"'Trial 5'!DB28","v":{"v":128.22571233647793,"d":"128.23"}},{"$f":"'Trial 5'!DC28","v":{"v":128.07570660503913,"d":"128.08"}},{"$f":"'Trial 5'!DD28","v":{"v":127.92657522442818,"d":"127.93"}},{"$f":"'Trial 5'!DE28","v":{"v":127.77781376975072,"d":"127.78"}},{"$f":"'Trial 5'!DF28","v":{"v":127.62967705664725,"d":"127.63"}},{"$f":"'Trial 5'!DG28","v":{"v":127.48124123419423,"d":"127.48"}},{"$f":"'Trial 5'!DH28","v":{"v":127.33232554736321,"d":"127.33"}},{"$f":"'Trial 5'!DI28","v":{"v":127.18467776328487,"d":"127.18"}},{"$f":"'Trial 5'!DJ28","v":{"v":127.03898741803359,"d":"127.04"}},{"$f":"'Trial 5'!DK28","v":{"v":126.89369784215653,"d":"126.89"}},{"$f":"'Trial 5'!DL28","v":{"v":126.74791420071273,"d":"126.75"}},{"$f":"'Trial 5'!DM28","v":{"v":126.60233824464139,"d":"126.60"}},{"$f":"'Trial 5'!DM28","v":{"v":126.60233824464139,"d":"126.60"}},{"$f":"'Trial 5'!DO28","v":{"v":126.45618255476768,"d":"126.46"}},{"$f":"'Trial 5'!DP28","v":{"v":126.31050123285125,"d":"126.31"}},{"$f":"'Trial 5'!DQ28","v":{"v":126.16477767684842,"d":"126.16"}},{"$f":"'Trial 5'!DR28","v":{"v":126.01947829838653,"d":"126.02"}},{"$f":"'Trial 5'!DS28","v":{"v":125.87607759791176,"d":"125.88"}},{"$f":"'Trial 5'!DT28","v":{"v":125.73380223125754,"d":"125.73"}},{"$f":"'Trial 5'!DU28","v":{"v":125.59245783366482,"d":"125.59"}},{"$f":"'Trial 5'!DV28","v":{"v":125.45253423743083,"d":"125.45"}},{"$f":"'Trial 5'!DW28","v":{"v":125.31229109212627,"d":"125.31"}},{"$f":"'Trial 5'!DX28","v":{"v":125.17260926651777,"d":"125.17"}},{"$f":"'Trial 5'!DY28","v":{"v":125.0341440050784,"d":"125.03"}},{"$f":"'Trial 5'!DZ28","v":{"v":124.89561589513528,"d":"124.90"}},{"$f":"'Trial 5'!DZ28","v":{"v":124.89561589513528,"d":"124.90"}},{"$f":"'Trial 5'!EB28","v":{"v":124.75752106052533,"d":"124.76"}},{"$f":"'Trial 5'!EC28","v":{"v":124.61902846135733,"d":"124.62"}},{"$f":"'Trial 5'!ED28","v":{"v":124.48096158028761,"d":"124.48"}},{"$f":"'Trial 5'!EE28","v":{"v":124.34447589138681,"d":"124.34"}},{"$f":"'Trial 5'!EF28","v":{"v":124.20772494240386,"d":"124.21"}},{"$f":"'Trial 5'!EG28","v":{"v":124.07163395820729,"d":"124.07"}},{"$f":"'Trial 5'!EH28","v":{"v":123.936148208336,"d":"123.94"}},{"$f":"'Trial 5'!EI28","v":{"v":123.80213467617318,"d":"123.80"}},{"$f":"'Trial 5'!EJ28","v":{"v":123.66727297052358,"d":"123.67"}},{"$f":"'Trial 5'!EK28","v":{"v":123.53197173881469,"d":"123.53"}},{"$f":"'Trial 5'!EL28","v":{"v":123.39667906041097,"d":"123.40"}},{"$f":"'Trial 5'!EM28","v":{"v":123.2620226415019,"d":"123.26"}},{"$f":"'Trial 5'!EM28","v":{"v":123.2620226415019,"d":"123.26"}}]
[{"$f":"Labels!B101","v":"Trial 06"},{"$f":"'Trial 6'!B28","v":{"v":140,"d":"140.00"}},{"$f":"'Trial 6'!C28","v":{"v":140,"d":"140.00"}},{"$f":"'Trial 6'!D28","v":{"v":139.99432347441768,"d":"139.99"}},{"$f":"'Trial 6'!E28","v":{"v":139.98118672515238,"d":"139.98"}},{"$f":"'Trial 6'!F28","v":{"v":139.96345859890562,"d":"139.96"}},{"$f":"'Trial 6'!G28","v":{"v":139.94176070739636,"d":"139.94"}},{"$f":"'Trial 6'!H28","v":{"v":139.91528456359816,"d":"139.92"}},{"$f":"'Trial 6'!I28","v":{"v":139.88297528995218,"d":"139.88"}},{"$f":"'Trial 6'!J28","v":{"v":139.84556330706087,"d":"139.85"}},{"$f":"'Trial 6'!K28","v":{"v":139.8031667494447,"d":"139.80"}},{"$f":"'Trial 6'!L28","v":{"v":139.75706418100577,"d":"139.76"}},{"$f":"'Trial 6'!M28","v":{"v":139.70638705815216,"d":"139.71"}},{"$f":"'Trial 6'!M28","v":{"v":139.70638705815216,"d":"139.71"}},{"$f":"'Trial 6'!O28","v":{"v":139.65278942979114,"d":"139.65"}},{"$f":"'Trial 6'!P28","v":{"v":139.59481387273766,"d":"139.59"}},{"$f":"'Trial 6'!Q28","v":{"v":139.5338763157648,"d":"139.53"}},{"$f":"'Trial 6'!R28","v":{"v":139.46856989643624,"d":"139.47"}},{"$f":"'Trial 6'!S28","v":{"v":139.40054939880673,"d":"139.40"}},{"$f":"'Trial 6'!T28","v":{"v":139.32949916047258,"d":"139.33"}},{"$f":"'Trial 6'!U28","v":{"v":139.25307546656094,"d":"139.25"}},{"$f":"'Trial 6'!V28","v":{"v":139.17276876558833,"d":"139.17"}},{"$f":"'Trial 6'!W28","v":{"v":139.08957415681272,"d":"139.09"}},{"$f":"'Trial 6'!X28","v":{"v":139.00231408187315,"d":"139.00"}},{"$f":"'Trial 6'!Y28","v":{"v":138.91133380953627,"d":"138.91"}},{"$f":"'Trial 6'!Z28","v":{"v":138.81756955937067,"d":"138.82"}},{"$f":"'Trial 6'!Z28","v":{"v":138.81756955937067,"d":"138.82"}},{"$f":"'Trial 6'!AB28","v":{"v":138.72165960154103,"d":"138.72"}},{"$f":"'Trial 6'!AC28","v":{"v":138.62186627612655,"d":"138.62"}},{"$f":"'Trial 6'!AD28","v":{"v":138.51948084050795,"d":"138.52"}},{"$f":"'Trial 6'!AE28","v":{"v":138.41491101529832,"d":"138.41"}},{"$f":"'Trial 6'!AF28","v":{"v":138.3087685029765,"d":"138.31"}},{"$f":"'Trial 6'!AG28","v":{"v":138.20038863721936,"d":"138.20"}},{"$f":"'Trial 6'!AH28","v":{"v":138.09058346548633,"d":"138.09"}},{"$f":"'Trial 6'!AI28","v":{"v":137.97863117003985,"d":"137.98"}},{"$f":"'Trial 6'!AJ28","v":{"v":137.86512419845658,"d":"137.87"}},{"$f":"'Trial 6'!AK28","v":{"v":137.74915568776998,"d":"137.75"}},{"$f":"'Trial 6'!AL28","v":{"v":137.6303629621265,"d":"137.63"}},{"$f":"'Trial 6'!AM28","v":{"v":137.50961022351035,"d":"137.51"}},{"$f":"'Trial 6'!AM28","v":{"v":137.50961022351035,"d":"137.51"}},{"$f":"'Trial 6'!AO28","v":{"v":137.38774569850443,"d":"137.39"}},{"$f":"'Trial 6'!AP28","v":{"v":137.26534104160467,"d":"137.27"}},{"$f":"'Trial 6'!AQ28","v":{"v":137.1413336785993,"d":"137.14"}},{"$f":"'Trial 6'!AR28","v":{"v":137.01523323143002,"d":"137.02"}},{"$f":"'Trial 6'!AS28","v":{"v":136.88680635196968,"d":"136.89"}},{"$f":"'Trial 6'!AT28","v":{"v":136.75685773428296,"d":"136.76"}},{"$f":"'Trial 6'!AU28","v":{"v":136.62499819670722,"d":"136.62"}},{"$f":"'Trial 6'!AV28","v":{"v":136.49094352899058,"d":"136.49"}},{"$f":"'Trial 6'!AW28","v":{"v":136.35383026963927,"d":"136.35"}},{"$f":"'Trial 6'!AX28","v":{"v":136.21561638744473,"d":"136.22"}},{"$f":"'Trial 6'!AY28","v":{"v":136.07558798307943,"d":"136.08"}},{"$f":"'Trial 6'!AZ28","v":{"v":135.93314042587073,"d":"135.93"}},{"$f":"'Trial 6'!AZ28","v":{"v":135.93314042587073,"d":"135.93"}},{"$f":"'Trial 6'!BB28","v":{"v":135.78999736269282,"d":"135.79"}},{"$f":"'Trial 6'!BC28","v":{"v":135.64702751852448,"d":"135.65"}},{"$f":"'Trial 6'!BD28","v":{"v":135.50139062131007,"d":"135.50"}},{"$f":"'Trial 6'!BE28","v":{"v":135.35387807991432,"d":"135.35"}},{"$f":"'Trial 6'!BF28","v":{"v":135.20488640863684,"d":"135.20"}},{"$f":"'Trial 6'!BG28","v":{"v":135.0542820688448,"d":"135.05"}},{"$f":"'Trial 6'!BH28","v":{"v":134.90283844739406,"d":"134.90"}},{"$f":"'Trial 6'!BI28","v":{"v":134.75102847307608,"d":"134.75"}},{"$f":"'Trial 6'!BJ28","v":{"v":134.599378573345,"d":"134.60"}},{"$f":"'Trial 6'!BK28","v":{"v":134.44643107629017,"d":"134.45"}},{"$f":"'Trial 6'!BL28","v":{"v":134.2942887365307,"d":"134.29"}},{"$f":"'Trial 6'!BM28","v":{"v":134.14187890786974,"d":"134.14"}},{"$f":"'Trial 6'!BM28","v":{"v":134.14187890786974,"d":"134.14"}},{"$f":"'Trial 6'!BO28","v":{"v":133.9874828338398,"d":"133.99"}},{"$f":"'Trial 6'!BP28","v":{"v":133.83295273379838,"d":"133.83"}},{"$f":"'Trial 6'!BQ28","v":{"v":133.67633982356762,"d":"133.68"}},{"$f":"'Trial 6'!BR28","v":{"v":133.51901296545975,"d":"133.52"}},{"$f":"'Trial 6'!BS28","v":{"v":133.36085394788904,"d":"133.36"}},{"$f":"'Trial 6'!BT28","v":{"v":133.20155367740375,"d":"133.20"}},{"$f":"'Trial 6'!BU28","v":{"v":133.04036147850667,"d":"133.04"}},{"$f":"'Trial 6'!BV28","v":{"v":132.87998851501058,"d":"132.88"}},{"$f":"'Trial 6'!BW28","v":{"v":132.71952483089206,"d":"132.72"}},{"$f":"'Trial 6'!BX28","v":{"v":132.55941741699246,"d":"132.56"}},{"$f":"'Trial 6'!BY28","v":{"v":132.39998531908287,"d":"132.40"}},{"$f":"'Trial 6'!BZ28","v":{"v":132.23965661002282,"d":"132.24"}},{"$f":"'Trial 6'!BZ28","v":{"v":132.23965661002282,"d":"132.24"}},{"$f":"'Trial 6'!CB28","v":{"v":132.0807351122628,"d":"132.08"}},{"$f":"'Trial 6'!CC28","v":{"v":131.92258745369966,"d":"131.92"}},{"$f":"'Trial 6'!CD28","v":{"v":131.76447905169863,"d":"131.76"}},{"$f":"'Trial 6'!CE28","v":{"v":131.60619816247953,"d":"131.61"}},{"$f":"'Trial 6'!CF28","v":{"v":131.4493922909581,"d":"131.45"}},{"$f":"'Trial 6'!CG28","v":{"v":131.2922906834103,"d":"131.29"}},{"$f":"'Trial 6'!CH28","v":{"v":131.1348020284145,"d":"131.13"}},{"$f":"'Trial 6'!CI28","v":{"v":130.9781580084625,"d":"130.98"}},{"$f":"'Trial 6'!CJ28","v":{"v":130.82230818333886,"d":"130.82"}},{"$f":"'Trial 6'!CK28","v":{"v":130.66764844907746,"d":"130.67"}},{"$f":"'Trial 6'!CL28","v":{"v":130.5131283306241,"d":"130.51"}},{"$f":"'Trial 6'!CM28","v":{"v":130.35913952586944,"d":"130.36"}},{"$f":"'Trial 6'!CM28","v":{"v":130.35913952586944,"d":"130.36"}},{"$f":"'Trial 6'!CO28","v":{"v":130.20632677310866,"d":"130.21"}},{"$f":"'Trial 6'!CP28","v":{"v":130.05442373601431,"d":"130.05"}},{"$f":"'Trial 6'!CQ28","v":{"v":129.9028543208718,"d":"129.90"}},{"$f":"'Trial 6'!CR28","v":{"v":129.75245723791247,"d":"129.75"}},{"$f":"'Trial 6'!CS28","v":{"v":129.60221575107417,"d":"129.60"}},{"$f":"'Trial 6'!CT28","v":{"v":129.4521762194065,"d":"129.45"}},{"$f":"'Trial 6'!CU28","v":{"v":129.30151190675804,"d":"129.30"}},{"$f":"'Trial 6'!CV28","v":{"v":129.1503852620033,"d":"129.15"}},{"$f":"'Trial 6'!CW28","v":{"v":129.00095354272526,"d":"129.00"}},{"$f":"'Trial 6'!CX28","v":{"v":128.85075058488033,"d":"128.85"}},{"$f":"'Trial 6'!CY28","v":{"v":128.70217475284386,"d":"128.70"}},{"$f":"'Trial 6'!CZ28","v":{"v":128.5541001860114,"d":"128.55"}},{"$f":"'Trial 6'!CZ28","v":{"v":128.5541001860114,"d":"128.55"}},{"$f":"'Trial 6'!DB28","v":{"v":128.4054730136818,"d":"128.41"}},{"$f":"'Trial 6'!DC28","v":{"v":128.25758502156478,"d":"128.26"}},{"$f":"'Trial 6'!DD28","v":{"v":128.1105422412075,"d":"128.11"}},{"$f":"'Trial 6'!DE28","v":{"v":127.96229052131561,"d":"127.96"}},{"$f":"'Trial 6'!DF28","v":{"v":127.81383576433717,"d":"127.81"}},{"$f":"'Trial 6'!DG28","v":{"v":127.66572042692923,"d":"127.67"}},{"$f":"'Trial 6'!DH28","v":{"v":127.51667121822716,"d":"127.52"}},{"$f":"'Trial 6'!DI28","v":{"v":127.36778200646717,"d":"127.37"}},{"$f":"'Trial 6'!DJ28","v":{"v":127.21821357443969,"d":"127.22"}},{"$f":"'Trial 6'!DK28","v":{"v":127.06793133285777,"d":"127.07"}},{"$f":"'Trial 6'!DL28","v":{"v":126.91666629005836,"d":"126.92"}},{"$f":"'Trial 6'!DM28","v":{"v":126.76610283096225,"d":"126.77"}},{"$f":"'Trial 6'!DM28","v":{"v":126.76610283096225,"d":"126.77"}},{"$f":"'Trial 6'!DO28","v":{"v":126.61531404669985,"d":"126.62"}},{"$f":"'Trial 6'!DP28","v":{"v":126.46476823677497,"d":"126.46"}},{"$f":"'Trial 6'!DQ28","v":{"v":126.31583205293084,"d":"126.32"}},{"$f":"'Trial 6'!DR28","v":{"v":126.1668016352964,"d":"126.17"}},{"$f":"'Trial 6'!DS28","v":{"v":126.01779391744225,"d":"126.02"}},{"$f":"'Trial 6'!DT28","v":{"v":125.869396157184,"d":"125.87"}},{"$f":"'Trial 6'!DU28","v":{"v":125.72145684217183,"d":"125.72"}},{"$f":"'Trial 6'!DV28","v":{"v":125.57470954514763,"d":"125.57"}},{"$f":"'Trial 6'!DW28","v":{"v":125.42955811155828,"d":"125.43"}},{"$f":"'Trial 6'!DX28","v":{"v":125.28614012292846,"d":"125.29"}},{"$f":"'Trial 6'!DY28","v":{"v":125.1434790891738,"d":"125.14"}},{"$f":"'Trial 6'!DZ28","v":{"v":125.00211224173634,"d":"125.00"}},{"$f":"'Trial 6'!DZ28","v":{"v":125.00211224173634,"d":"125.00"}},{"$f":"'Trial 6'!EB28","v":{"v":124.86109659333874,"d":"124.86"}},{"$f":"'Trial 6'!EC28","v":{"v":124.72055670805202,"d":"124.72"}},{"$f":"'Trial 6'!ED28","v":{"v":124.58156726926299,"d":"124.58"}},{"$f":"'Trial 6'!EE28","v":{"v":124.44315478386417,"d":"124.44"}},{"$f":"'Trial 6'!EF28","v":{"v":124.30573031386686,"d":"124.31"}},{"$f":"'Trial 6'!EG28","v":{"v":124.16955210671458,"d":"124.17"}},{"$f":"'Trial 6'!EH28","v":{"v":124.03386091525857,"d":"124.03"}},{"$f":"'Trial 6'!EI28","v":{"v":123.89907162275487,"d":"123.90"}},{"$f":"'Trial 6'!EJ28","v":{"v":123.76476011990447,"d":"123.76"}},{"$f":"'Trial 6'!EK28","v":{"v":123.63132514099479,"d":"123.63"}},{"$f":"'Trial 6'!EL28","v":{"v":123.49954488890992,"d":"123.50"}},{"$f":"'Trial 6'!EM28","v":{"v":123.36976780961363,"d":"123.37"}},{"$f":"'Trial 6'!EM28","v":{"v":123.36976780961363,"d":"123.37"}}]
[{"$f":"Labels!B102","v":"Trial 07"},{"$f":"'Trial 7'!B28","v":{"v":140,"d":"140.00"}},{"$f":"'Trial 7'!C28","v":{"v":140,"d":"140.00"}},{"$f":"'Trial 7'!D28","v":{"v":139.99328730318734,"d":"139.99"}},{"$f":"'Trial 7'!E28","v":{"v":139.98159075470167,"d":"139.98"}},{"$f":"'Trial 7'!F28","v":{"v":139.96481756676343,"d":"139.96"}},{"$f":"'Trial 7'!G28","v":{"v":139.94243035202317,"d":"139.94"}},{"$f":"'Trial 7'!H28","v":{"v":139.91574239689666,"d":"139.92"}},{"$f":"'Trial 7'!I28","v":{"v":139.88493142512922,"d":"139.88"}},{"$f":"'Trial 7'!J28","v":{"v":139.85005642559872,"d":"139.85"}},{"$f":"'Trial 7'!K28","v":{"v":139.81148408709817,"d":"139.81"}},{"$f":"'Trial 7'!L28","v":{"v":139.76792553978382,"d":"139.77"}},{"$f":"'Trial 7'!M28","v":{"v":139.7190964505018,"d":"139.72"}},{"$f":"'Trial 7'!M28","v":{"v":139.7190964505018,"d":"139.72"}},{"$f":"'Trial 7'!O28","v":{"v":139.66573092495392,"d":"139.67"}},{"$f":"'Trial 7'!P28","v":{"v":139.60778711030412,"d":"139.61"}},{"$f":"'Trial 7'!Q28","v":{"v":139.5458391896073,"d":"139.55"}},{"$f":"'Trial 7'!R28","v":{"v":139.4809243047165,"d":"139.48"}},{"$f":"'Trial 7'!S28","v":{"v":139.41303708262876,"d":"139.41"}},{"$f":"'Trial 7'!T28","v":{"v":139.34202015083346,"d":"139.34"}},{"$f":"'Trial 7'!U28","v":{"v":139.26759111635766,"d":"139.27"}},{"$f":"'Trial 7'!V28","v":{"v":139.19040493081994,"d":"139.19"}},{"$f":"'Trial 7'!W28","v":{"v":139.10953865514443,"d":"139.11"}},{"$f":"'Trial 7'!X28","v":{"v":139.02616368865893,"d":"139.03"}},{"$f":"'Trial 7'!Y28","v":{"v":138.94070954481575,"d":"138.94"}},{"$f":"'Trial 7'!Z28","v":{"v":138.85283207906335,"d":"138.85"}},{"$f":"'Trial 7'!Z28","v":{"v":138.85283207906335,"d":"138.85"}},{"$f":"'Trial 7'!AB28","v":{"v":138.76184540585402,"d":"138.76"}},{"$f":"'Trial 7'!AC28","v":{"v":138.66638895938377,"d":"138.67"}},{"$f":"'Trial 7'!AD28","v":{"v":138.5664799781949,"d":"138.57"}},{"$f":"'Trial 7'!AE28","v":{"v":138.46377732677598,"d":"138.46"}},{"$f":"'Trial 7'!AF28","v":{"v":138.35878793294614,"d":"138.36"}},{"$f":"'Trial 7'!AG28","v":{"v":138.2521080775638,"d":"138.25"}},{"$f":"'Trial 7'!AH28","v":{"v":138.1423265199123,"d":"138.14"}},{"$f":"'Trial 7'!AI28","v":{"v":138.03070966982278,"d":"138.03"}},{"$f":"'Trial 7'!AJ28","v":{"v":137.91725130705413,"d":"137.92"}},{"$f":"'Trial 7'!AK28","v":{"v":137.8004752049229,"d":"137.80"}},{"$f":"'Trial 7'!AL28","v":{"v":137.6812671250002,"d":"137.68"}},{"$f":"'Trial 7'!AM28","v":{"v":137.56003943479288,"d":"137.56"}},{"$f":"'Trial 7'!AM28","v":{"v":137.56003943479288,"d":"137.56"}},{"$f":"'Trial 7'!AO28","v":{"v":137.43695315190337,"d":"137.44"}},{"$f":"'Trial 7'!AP28","v":{"v":137.31141272705344,"d":"137.31"}},{"$f":"'Trial 7'!AQ28","v":{"v":137.18309830705834,"d":"137.18"}},{"$f":"'Trial 7'!AR28","v":{"v":137.05284148124554,"d":"137.05"}},{"$f":"'Trial 7'!AS28","v":{"v":136.92170339727696,"d":"136.92"}},{"$f":"'Trial 7'!AT28","v":{"v":136.78966728658543,"d":"136.79"}},{"$f":"'Trial 7'!AU28","v":{"v":136.65750960328276,"d":"136.66"}},{"$f":"'Trial 7'!AV28","v":{"v":136.52315523421373,"d":"136.52"}},{"$f":"'Trial 7'!AW28","v":{"v":136.3871855996617,"d":"136.39"}},{"$f":"'Trial 7'!AX28","v":{"v":136.24963386367313,"d":"136.25"}},{"$f":"'Trial 7'!AY28","v":{"v":136.11015951205854,"d":"136.11"}},{"$f":"'Trial 7'!AZ28","v":{"v":135.96848535429808,"d":"135.97"}},{"$f":"'Trial 7'!AZ28","v":{"v":135.96848535429808,"d":"135.97"}},{"$f":"'Trial 7'!BB28","v":{"v":135.82491813419546,"d":"135.82"}},{"$f":"'Trial 7'!BC28","v":{"v":135.67897259967563,"d":"135.68"}},{"$f":"'Trial 7'!BD28","v":{"v":135.53162499508042,"d":"135.53"}},{"$f":"'Trial 7'!BE28","v":{"v":135.38286575930047,"d":"135.38"}},{"$f":"'Trial 7'!BF28","v":{"v":135.2336320053194,"d":"135.23"}},{"$f":"'Trial 7'!BG28","v":{"v":135.08325574946073,"d":"135.08"}},{"$f":"'Trial 7'!BH28","v":{"v":134.93248726878238,"d":"134.93"}},{"$f":"'Trial 7'!BI28","v":{"v":134.78196068884694,"d":"134.78"}},{"$f":"'Trial 7'!BJ28","v":{"v":134.62980605161877,"d":"134.63"}},{"$f":"'Trial 7'!BK28","v":{"v":134.4769191511105,"d":"134.48"}},{"$f":"'Trial 7'!BL28","v":{"v":134.32288001784914,"d":"134.32"}},{"$f":"'Trial 7'!BM28","v":{"v":134.16707593275794,"d":"134.17"}},{"$f":"'Trial 7'!BM28","v":{"v":134.16707593275794,"d":"134.17"}},{"$f":"'Trial 7'!BO28","v":{"v":134.0103197128399,"d":"134.01"}},{"$f":"'Trial 7'!BP28","v":{"v":133.85364737183957,"d":"133.85"}},{"$f":"'Trial 7'!BQ28","v":{"v":133.69605065896943,"d":"133.70"}},{"$f":"'Trial 7'!BR28","v":{"v":133.5366358777944,"d":"133.54"}},{"$f":"'Trial 7'!BS28","v":{"v":133.3774990435361,"d":"133.38"}},{"$f":"'Trial 7'!BT28","v":{"v":133.2186273397753,"d":"133.22"}},{"$f":"'Trial 7'!BU28","v":{"v":133.06052962625057,"d":"133.06"}},{"$f":"'Trial 7'!BV28","v":{"v":132.90341766026972,"d":"132.90"}},{"$f":"'Trial 7'!BW28","v":{"v":132.74692904789867,"d":"132.75"}},{"$f":"'Trial 7'!BX28","v":{"v":132.58939574241344,"d":"132.59"}},{"$f":"'Trial 7'!BY28","v":{"v":132.43290952341144,"d":"132.43"}},{"$f":"'Trial 7'!BZ28","v":{"v":132.27552252078976,"d":"132.28"}},{"$f":"'Trial 7'!BZ28","v":{"v":132.27552252078976,"d":"132.28"}},{"$f":"'Trial 7'!CB28","v":{"v":132.1167636672888,"d":"132.12"}},{"$f":"'Trial 7'!CC28","v":{"v":131.9561600035148,"d":"131.96"}},{"$f":"'Trial 7'!CD28","v":{"v":131.79542933272006,"d":"131.80"}},{"$f":"'Trial 7'!CE28","v":{"v":131.63539337687024,"d":"131.64"}},{"$f":"'Trial 7'!CF28","v":{"v":131.47619803926477,"d":"131.48"}},{"$f":"'Trial 7'!CG28","v":{"v":131.31532359808523,"d":"131.32"}},{"$f":"'Trial 7'!CH28","v":{"v":131.15406377402832,"d":"131.15"}},{"$f":"'Trial 7'!CI28","v":{"v":130.99369066646642,"d":"130.99"}},{"$f":"'Trial 7'!CJ28","v":{"v":130.83167780981523,"d":"130.83"}},{"$f":"'Trial 7'!CK28","v":{"v":130.66902204844172,"d":"130.67"}},{"$f":"'Trial 7'!CL28","v":{"v":130.5084028278541,"d":"130.51"}},{"$f":"'Trial 7'!CM28","v":{"v":130.34958353534623,"d":"130.35"}},{"$f":"'Trial 7'!CM28","v":{"v":130.34958353534623,"d":"130.35"}},{"$f":"'Trial 7'!CO28","v":{"v":130.19079410348257,"d":"130.19"}},{"$f":"'Trial 7'!CP28","v":{"v":130.03314927773368,"d":"130.03"}},{"$f":"'Trial 7'!CQ28","v":{"v":129.87739464379894,"d":"129.88"}},{"$f":"'Trial 7'!CR28","v":{"v":129.7217063871125,"d":"129.72"}},{"$f":"'Trial 7'!CS28","v":{"v":129.56675247924707,"d":"129.57"}},{"$f":"'Trial 7'!CT28","v":{"v":129.41273671731287,"d":"129.41"}},{"$f":"'Trial 7'!CU28","v":{"v":129.25903864265308,"d":"129.26"}},{"$f":"'Trial 7'!CV28","v":{"v":129.10548217369742,"d":"129.11"}},{"$f":"'Trial 7'!CW28","v":{"v":128.95307913187244,"d":"128.95"}},{"$f":"'Trial 7'!CX28","v":{"v":128.80088673656059,"d":"128.80"}},{"$f":"'Trial 7'!CY28","v":{"v":128.64882344911743,"d":"128.65"}},{"$f":"'Trial 7'!CZ28","v":{"v":128.4958006394699,"d":"128.50"}},{"$f":"'Trial 7'!CZ28","v":{"v":128.4958006394699,"d":"128.50"}},{"$f":"'Trial 7'!DB28","v":{"v":128.34204521646328,"d":"128.34"}},{"$f":"'Trial 7'!DC28","v":{"v":128.18912657930258,"d":"128.19"}},{"$f":"'Trial 7'!DD28","v":{"v":128.03802520057027,"d":"128.04"}},{"$f":"'Trial 7'!DE28","v":{"v":127.88828489775653,"d":"127.89"}},{"$f":"'Trial 7'!DF28","v":{"v":127.73904056067845,"d":"127.74"}},{"$f":"'Trial 7'!DG28","v":{"v":127.59058004551481,"d":"127.59"}},{"$f":"'Trial 7'!DH28","v":{"v":127.44275997930467,"d":"127.44"}},{"$f":"'Trial 7'!DI28","v":{"v":127.29412677924877,"d":"127.29"}},{"$f":"'Trial 7'!DJ28","v":{"v":127.14460790473575,"d":"127.14"}},{"$f":"'Trial 7'!DK28","v":{"v":126.99564141127522,"d":"127.00"}},{"$f":"'Trial 7'!DL28","v":{"v":126.84707118631147,"d":"126.85"}},{"$f":"'Trial 7'!DM28","v":{"v":126.69766845512348,"d":"126.70"}},{"$f":"'Trial 7'!DM28","v":{"v":126.69766845512348,"d":"126.70"}},{"$f":"'Trial 7'!DO28","v":{"v":126.54892387716299,"d":"126.55"}},{"$f":"'Trial 7'!DP28","v":{"v":126.4009032980913,"d":"126.40"}},{"$f":"'Trial 7'!DQ28","v":{"v":126.25266253172441,"d":"126.25"}},{"$f":"'Trial 7'!DR28","v":{"v":126.10491075039927,"d":"126.10"}},{"$f":"'Trial 7'!DS28","v":{"v":125.95760317978566,"d":"125.96"}},{"$f":"'Trial 7'!DT28","v":{"v":125.80983012188325,"d":"125.81"}},{"$f":"'Trial 7'!DU28","v":{"v":125.66298673584622,"d":"125.66"}},{"$f":"'Trial 7'!DV28","v":{"v":125.51579478220657,"d":"125.52"}},{"$f":"'Trial 7'!DW28","v":{"v":125.36873566424609,"d":"125.37"}},{"$f":"'Trial 7'!DX28","v":{"v":125.2230274144295,"d":"125.22"}},{"$f":"'Trial 7'!DY28","v":{"v":125.07974261371407,"d":"125.08"}},{"$f":"'Trial 7'!DZ28","v":{"v":124.93572252653982,"d":"124.94"}},{"$f":"'Trial 7'!DZ28","v":{"v":124.93572252653982,"d":"124.94"}},{"$f":"'Trial 7'!EB28","v":{"v":124.79175249523735,"d":"124.79"}},{"$f":"'Trial 7'!EC28","v":{"v":124.64742456767603,"d":"124.65"}},{"$f":"'Trial 7'!ED28","v":{"v":124.50486034092798,"d":"124.50"}},{"$f":"'Trial 7'!EE28","v":{"v":124.36203498553769,"d":"124.36"}},{"$f":"'Trial 7'!EF28","v":{"v":124.21984948959926,"d":"124.22"}},{"$f":"'Trial 7'!EG28","v":{"v":124.07868515610762,"d":"124.08"}},{"$f":"'Trial 7'!EH28","v":{"v":123.93733303823662,"d":"123.94"}},{"$f":"'Trial 7'!EI28","v":{"v":123.79500095066723,"d":"123.80"}},{"$f":"'Trial 7'!EJ28","v":{"v":123.65197208183936,"d":"123.65"}},{"$f":"'Trial 7'!EK28","v":{"v":123.51021889092615,"d":"123.51"}},{"$f":"'Trial 7'!EL28","v":{"v":123.36987992630812,"d":"123.37"}},{"$f":"'Trial 7'!EM28","v":{"v":123.23024944169248,"d":"123.23"}},{"$f":"'Trial 7'!EM28","v":{"v":123.23024944169248,"d":"123.23"}}]
[{"$f":"Labels!B103","v":"Trial 08"},{"$f":"'Trial 8'!B28","v":{"v":140,"d":"140.00"}},{"$f":"'Trial 8'!C28","v":{"v":140,"d":"140.00"}},{"$f":"'Trial 8'!D28","v":{"v":139.9927342561348,"d":"139.99"}},{"$f":"'Trial 8'!E28","v":{"v":139.97944244034719,"d":"139.98"}},{"$f":"'Trial 8'!F28","v":{"v":139.96064240721861,"d":"139.96"}},{"$f":"'Trial 8'!G28","v":{"v":139.93681118120625,"d":"139.94"}},{"$f":"'Trial 8'!H28","v":{"v":139.90947248625184,"d":"139.91"}},{"$f":"'Trial 8'!I28","v":{"v":139.87753893851294,"d":"139.88"}},{"$f":"'Trial 8'!J28","v":{"v":139.84058367189854,"d":"139.84"}},{"$f":"'Trial 8'!K28","v":{"v":139.7994654225619,"d":"139.80"}},{"$f":"'Trial 8'!L28","v":{"v":139.7526580803578,"d":"139.75"}},{"$f":"'Trial 8'!M28","v":{"v":139.70201331030887,"d":"139.70"}},{"$f":"'Trial 8'!M28","v":{"v":139.70201331030887,"d":"139.70"}},{"$f":"'Trial 8'!O28","v":{"v":139.64586532766532,"d":"139.65"}},{"$f":"'Trial 8'!P28","v":{"v":139.58566668734545,"d":"139.59"}},{"$f":"'Trial 8'!Q28","v":{"v":139.5227806733222,"d":"139.52"}},{"$f":"'Trial 8'!R28","v":{"v":139.4551085825678,"d":"139.46"}},{"$f":"'Trial 8'!S28","v":{"v":139.38210422937115,"d":"139.38"}},{"$f":"'Trial 8'!T28","v":{"v":139.30577562295142,"d":"139.31"}},{"$f":"'Trial 8'!U28","v":{"v":139.2259064077866,"d":"139.23"}},{"$f":"'Trial 8'!V28","v":{"v":139.143992890318,"d":"139.14"}},{"$f":"'Trial 8'!W28","v":{"v":139.05855565931523,"d":"139.06"}},{"$f":"'Trial 8'!X28","v":{"v":138.96994533853254,"d":"138.97"}},{"$f":"'Trial 8'!Y28","v":{"v":138.87944026727922,"d":"138.88"}},{"$f":"'Trial 8'!Z28","v":{"v":138.78504821018217,"d":"138.79"}},{"$f":"'Trial 8'!Z28","v":{"v":138.78504821018217,"d":"138.79"}},{"$f":"'Trial 8'!AB28","v":{"v":138.68649944642198,"d":"138.69"}},{"$f":"'Trial 8'!AC28","v":{"v":138.58446148636574,"d":"138.58"}},{"$f":"'Trial 8'!AD28","v":{"v":138.4796882571224,"d":"138.48"}},{"$f":"'Trial 8'!AE28","v":{"v":138.37236029406668,"d":"138.37"}},{"$f":"'Trial 8'!AF28","v":{"v":138.26191240870978,"d":"138.26"}},{"$f":"'Trial 8'!AG28","v":{"v":138.1488128385931,"d":"138.15"}},{"$f":"'Trial 8'!AH28","v":{"v":138.03248319242905,"d":"138.03"}},{"$f":"'Trial 8'!AI28","v":{"v":137.91328963156857,"d":"137.91"}},{"$f":"'Trial 8'!AJ28","v":{"v":137.79250366564804,"d":"137.79"}},{"$f":"'Trial 8'!AK28","v":{"v":137.6700533324521,"d":"137.67"}},{"$f":"'Trial 8'!AL28","v":{"v":137.54510677205775,"d":"137.55"}},{"$f":"'Trial 8'!AM28","v":{"v":137.4182685364016,"d":"137.42"}},{"$f":"'Trial 8'!AM28","v":{"v":137.4182685364016,"d":"137.42"}},{"$f":"'Trial 8'!AO28","v":{"v":137.29071747347953,"d":"137.29"}},{"$f":"'Trial 8'!AP28","v":{"v":137.16239551924187,"d":"137.16"}},{"$f":"'Trial 8'!AQ28","v":{"v":137.0332226364517,"d":"137.03"}},{"$f":"'Trial 8'!AR28","v":{"v":136.90243895092425,"d":"136.90"}},{"$f":"'Trial 8'!AS28","v":{"v":136.77006723535146,"d":"136.77"}},{"$f":"'Trial 8'!AT28","v":{"v":136.63514124081559,"d":"136.64"}},{"$f":"'Trial 8'!AU28","v":{"v":136.49777849746678,"d":"136.50"}},{"$f":"'Trial 8'!AV28","v":{"v":136.3587105934176,"d":"136.36"}},{"$f":"'Trial 8'!AW28","v":{"v":136.21882077818833,"d":"136.22"}},{"$f":"'Trial 8'!AX28","v":{"v":136.07774366472051,"d":"136.08"}},{"$f":"'Trial 8'!AY28","v":{"v":135.93563828497878,"d":"135.94"}},{"$f":"'Trial 8'!AZ28","v":{"v":135.79243700411075,"d":"135.79"}},{"$f":"'Trial 8'!AZ28","v":{"v":135.79243700411075,"d":"135.79"}},{"$f":"'Trial 8'!BB28","v":{"v":135.64855584663695,"d":"135.65"}},{"$f":"'Trial 8'!BC28","v":{"v":135.50385874609142,"d":"135.50"}},{"$f":"'Trial 8'!BD28","v":{"v":135.3577272420013,"d":"135.36"}},{"$f":"'Trial 8'!BE28","v":{"v":135.2115362135369,"d":"135.21"}},{"$f":"'Trial 8'!BF28","v":{"v":135.0655927014256,"d":"135.07"}},{"$f":"'Trial 8'!BG28","v":{"v":134.91913101967708,"d":"134.92"}},{"$f":"'Trial 8'!BH28","v":{"v":134.7721353049909,"d":"134.77"}},{"$f":"'Trial 8'!BI28","v":{"v":134.62531875542868,"d":"134.63"}},{"$f":"'Trial 8'!BJ28","v":{"v":134.47701388384263,"d":"134.48"}},{"$f":"'Trial 8'!BK28","v":{"v":134.32795856883183,"d":"134.33"}},{"$f":"'Trial 8'!BL28","v":{"v":134.17877113441304,"d":"134.18"}},{"$f":"'Trial 8'!BM28","v":{"v":134.02940690029166,"d":"134.03"}},{"$f":"'Trial 8'!BM28","v":{"v":134.02940690029166,"d":"134.03"}},{"$f":"'Trial 8'!BO28","v":{"v":133.87994139189564,"d":"133.88"}},{"$f":"'Trial 8'!BP28","v":{"v":133.7296735643109,"d":"133.73"}},{"$f":"'Trial 8'!BQ28","v":{"v":133.57949606689803,"d":"133.58"}},{"$f":"'Trial 8'!BR28","v":{"v":133.42997402614378,"d":"133.43"}},{"$f":"'Trial 8'!BS28","v":{"v":133.28074589798953,"d":"133.28"}},{"$f":"'Trial 8'!BT28","v":{"v":133.13261127552582,"d":"133.13"}},{"$f":"'Trial 8'!BU28","v":{"v":132.98448683449024,"d":"132.98"}},{"$f":"'Trial 8'!BV28","v":{"v":132.83591938118047,"d":"132.84"}},{"$f":"'Trial 8'!BW28","v":{"v":132.68732970702854,"d":"132.69"}},{"$f":"'Trial 8'!BX28","v":{"v":132.53954121363626,"d":"132.54"}},{"$f":"'Trial 8'!BY28","v":{"v":132.39212641694306,"d":"132.39"}},{"$f":"'Trial 8'!BZ28","v":{"v":132.24507331830995,"d":"132.25"}},{"$f":"'Trial 8'!BZ28","v":{"v":132.24507331830995,"d":"132.25"}},{"$f":"'Trial 8'!CB28","v":{"v":132.09735934281082,"d":"132.10"}},{"$f":"'Trial 8'!CC28","v":{"v":131.94807200236542,"d":"131.95"}},{"$f":"'Trial 8'!CD28","v":{"v":131.79809662387223,"d":"131.80"}},{"$f":"'Trial 8'!CE28","v":{"v":131.64792804631932,"d":"131.65"}},{"$f":"'Trial 8'!CF28","v":{"v":131.4965756117656,"d":"131.50"}},{"$f":"'Trial 8'!CG28","v":{"v":131.3453046530883,"d":"131.35"}},{"$f":"'Trial 8'!CH28","v":{"v":131.19377120708072,"d":"131.19"}},{"$f":"'Trial 8'!CI28","v":{"v":131.04379566358458,"d":"131.04"}},{"$f":"'Trial 8'!CJ28","v":{"v":130.89378283349052,"d":"130.89"}},{"$f":"'Trial 8'!CK28","v":{"v":130.74305898734502,"d":"130.74"}},{"$f":"'Trial 8'!CL28","v":{"v":130.5928237070931,"d":"130.59"}},{"$f":"'Trial 8'!CM28","v":{"v":130.44337929182586,"d":"130.44"}},{"$f":"'Trial 8'!CM28","v":{"v":130.44337929182586,"d":"130.44"}},{"$f":"'Trial 8'!CO28","v":{"v":130.29296472869703,"d":"130.29"}},{"$f":"'Trial 8'!CP28","v":{"v":130.143745511698,"d":"130.14"}},{"$f":"'Trial 8'!CQ28","v":{"v":129.9957565688118,"d":"130.00"}},{"$f":"'Trial 8'!CR28","v":{"v":129.8480000454924,"d":"129.85"}},{"$f":"'Trial 8'!CS28","v":{"v":129.70086465048738,"d":"129.70"}},{"$f":"'Trial 8'!CT28","v":{"v":129.55427118172565,"d":"129.55"}},{"$f":"'Trial 8'!CU28","v":{"v":129.4058842020191,"d":"129.41"}},{"$f":"'Trial 8'!CV28","v":{"v":129.25747798040268,"d":"129.26"}},{"$f":"'Trial 8'!CW28","v":{"v":129.11018680082267,"d":"129.11"}},{"$f":"'Trial 8'!CX28","v":{"v":128.96300845301008,"d":"128.96"}},{"$f":"'Trial 8'!CY28","v":{"v":128.814302209794,"d":"128.81"}},{"$f":"'Trial 8'!CZ28","v":{"v":128.66688852056237,"d":"128.67"}},{"$f":"'Trial 8'!CZ28","v":{"v":128.66688852056237,"d":"128.67"}},{"$f":"'Trial 8'!DB28","v":{"v":128.52138641830422,"d":"128.52"}},{"$f":"'Trial 8'!DC28","v":{"v":128.37531255715444,"d":"128.38"}},{"$f":"'Trial 8'!DD28","v":{"v":128.23113843164586,"d":"128.23"}},{"$f":"'Trial 8'!DE28","v":{"v":128.0865380040845,"d":"128.09"}},{"$f":"'Trial 8'!DF28","v":{"v":127.94113366378527,"d":"127.94"}},{"$f":"'Trial 8'!DG28","v":{"v":127.79566289139912,"d":"127.80"}},{"$f":"'Trial 8'!DH28","v":{"v":127.65053105066596,"d":"127.65"}},{"$f":"'Trial 8'!DI28","v":{"v":127.50511085887463,"d":"127.51"}},{"$f":"'Trial 8'!DJ28","v":{"v":127.35985269602845,"d":"127.36"}},{"$f":"'Trial 8'!DK28","v":{"v":127.21384485555356,"d":"127.21"}},{"$f":"'Trial 8'!DL28","v":{"v":127.06977372418734,"d":"127.07"}},{"$f":"'Trial 8'!DM28","v":{"v":126.92561599922065,"d":"126.93"}},{"$f":"'Trial 8'!DM28","v":{"v":126.92561599922065,"d":"126.93"}},{"$f":"'Trial 8'!DO28","v":{"v":126.78319949699582,"d":"126.78"}},{"$f":"'Trial 8'!DP28","v":{"v":126.64086099451134,"d":"126.64"}},{"$f":"'Trial 8'!DQ28","v":{"v":126.49752145530769,"d":"126.50"}},{"$f":"'Trial 8'!DR28","v":{"v":126.35356359632053,"d":"126.35"}},{"$f":"'Trial 8'!DS28","v":{"v":126.21153491941878,"d":"126.21"}},{"$f":"'Trial 8'!DT28","v":{"v":126.07112143431205,"d":"126.07"}},{"$f":"'Trial 8'!DU28","v":{"v":125.93068354150944,"d":"125.93"}},{"$f":"'Trial 8'!DV28","v":{"v":125.79185751061074,"d":"125.79"}},{"$f":"'Trial 8'!DW28","v":{"v":125.65446973690462,"d":"125.65"}},{"$f":"'Trial 8'!DX28","v":{"v":125.51758323129869,"d":"125.52"}},{"$f":"'Trial 8'!DY28","v":{"v":125.38160198307403,"d":"125.38"}},{"$f":"'Trial 8'!DZ28","v":{"v":125.24472259728063,"d":"125.24"}},{"$f":"'Trial 8'!DZ28","v":{"v":125.24472259728063,"d":"125.24"}},{"$f":"'Trial 8'!EB28","v":{"v":125.10859965613872,"d":"125.11"}},{"$f":"'Trial 8'!EC28","v":{"v":124.97287982543298,"d":"124.97"}},{"$f":"'Trial 8'!ED28","v":{"v":124.83618026292042,"d":"124.84"}},{"$f":"'Trial 8'!EE28","v":{"v":124.69864701578196,"d":"124.70"}},{"$f":"'Trial 8'!EF28","v":{"v":124.56213277395914,"d":"124.56"}},{"$f":"'Trial 8'!EG28","v":{"v":124.42557824034016,"d":"124.43"}},{"$f":"'Trial 8'!EH28","v":{"v":124.28883731461822,"d":"124.29"}},{"$f":"'Trial 8'!EI28","v":{"v":124.15270718124073,"d":"124.15"}},{"$f":"'Trial 8'!EJ28","v":{"v":124.01824957854994,"d":"124.02"}},{"$f":"'Trial 8'!EK28","v":{"v":123.88351675084593,"d":"123.88"}},{"$f":"'Trial 8'!EL28","v":{"v":123.7494221274185,"d":"123.75"}},{"$f":"'Trial 8'!EM28","v":{"v":123.61447743595187,"d":"123.61"}},{"$f":"'Trial 8'!EM28","v":{"v":123.61447743595187,"d":"123.61"}}]
[{"$f":"Labels!C95","v":"Total"},{"$f":"SUM('Trial 1'!B28,'Trial 2'!B28,'Trial 3'!B28,'Trial 4'!B28,'Trial 5'!B28,'Trial 6'!B28,'Trial 7'!B28,'Trial 8'!B28)","v":{"v":1120,"d":"1,120.00"}},{"$f":"SUM('Trial 1'!C28,'Trial 2'!C28,'Trial 3'!C28,'Trial 4'!C28,'Trial 5'!C28,'Trial 6'!C28,'Trial 7'!C28,'Trial 8'!C28)","v":{"v":1120,"d":"1,120.00"}},{"$f":"SUM('Trial 1'!D28,'Trial 2'!D28,'Trial 3'!D28,'Trial 4'!D28,'Trial 5'!D28,'Trial 6'!D28,'Trial 7'!D28,'Trial 8'!D28)","v":{"v":1119.946763313177,"d":"1,119.95"}},{"$f":"SUM('Trial 1'!E28,'Trial 2'!E28,'Trial 3'!E28,'Trial 4'!E28,'Trial 5'!E28,'Trial 6'!E28,'Trial 7'!E28,'Trial 8'!E28)","v":{"v":1119.845282613153,"d":"1,119.85"}},{"$f":"SUM('Trial 1'!F28,'Trial 2'!F28,'Trial 3'!F28,'Trial 4'!F28,'Trial 5'!F28,'Trial 6'!F28,'Trial 7'!F28,'Trial 8'!F28)","v":{"v":1119.7014325879215,"d":"1,119.70"}},{"$f":"SUM('Trial 1'!G28,'Trial 2'!G28,'Trial 3'!G28,'Trial 4'!G28,'Trial 5'!G28,'Trial 6'!G28,'Trial 7'!G28,'Trial 8'!G28)","v":{"v":1119.5182826731095,"d":"1,119.52"}},{"$f":"SUM('Trial 1'!H28,'Trial 2'!H28,'Trial 3'!H28,'Trial 4'!H28,'Trial 5'!H28,'Trial 6'!H28,'Trial 7'!H28,'Trial 8'!H28)","v":{"v":1119.2993557424793,"d":"1,119.30"}},{"$f":"SUM('Trial 1'!I28,'Trial 2'!I28,'Trial 3'!I28,'Trial 4'!I28,'Trial 5'!I28,'Trial 6'!I28,'Trial 7'!I28,'Trial 8'!I28)","v":{"v":1119.0426021411488,"d":"1,119.04"}},{"$f":"SUM('Trial 1'!J28,'Trial 2'!J28,'Trial 3'!J28,'Trial 4'!J28,'Trial 5'!J28,'Trial 6'!J28,'Trial 7'!J28,'Trial 8'!J28)","v":{"v":1118.7449353292218,"d":"1,118.74"}},{"$f":"SUM('Trial 1'!K28,'Trial 2'!K28,'Trial 3'!K28,'Trial 4'!K28,'Trial 5'!K28,'Trial 6'!K28,'Trial 7'!K28,'Trial 8'!K28)","v":{"v":1118.4095932088987,"d":"1,118.41"}},{"$f":"SUM('Trial 1'!L28,'Trial 2'!L28,'Trial 3'!L28,'Trial 4'!L28,'Trial 5'!L28,'Trial 6'!L28,'Trial 7'!L28,'Trial 8'!L28)","v":{"v":1118.0380652504973,"d":"1,118.04"}},{"$f":"SUM('Trial 1'!M28,'Trial 2'!M28,'Trial 3'!M28,'Trial 4'!M28,'Trial 5'!M28,'Trial 6'!M28,'Trial 7'!M28,'Trial 8'!M28)","v":{"v":1117.6314867592137,"d":"1,117.63"}},{"$f":"M105","v":{"v":1117.6314867592137,"d":"1,117.63"}},{"$f":"SUM('Trial 1'!O28,'Trial 2'!O28,'Trial 3'!O28,'Trial 4'!O28,'Trial 5'!O28,'Trial 6'!O28,'Trial 7'!O28,'Trial 8'!O28)","v":{"v":1117.1904599255436,"d":"1,117.19"}},{"$f":"SUM('Trial 1'!P28,'Trial 2'!P28,'Trial 3'!P28,'Trial 4'!P28,'Trial 5'!P28,'Trial 6'!P28,'Trial 7'!P28,'Trial 8'!P28)","v":{"v":1116.7146573772297,"d":"1,116.71"}},{"$f":"SUM('Trial 1'!Q28,'Trial 2'!Q28,'Trial 3'!Q28,'Trial 4'!Q28,'Trial 5'!Q28,'Trial 6'!Q28,'Trial 7'!Q28,'Trial 8'!Q28)","v":{"v":1116.20783795861,"d":"1,116.21"}},{"$f":"SUM('Trial 1'!R28,'Trial 2'!R28,'Trial 3'!R28,'Trial 4'!R28,'Trial 5'!R28,'Trial 6'!R28,'Trial 7'!R28,'Trial 8'!R28)","v":{"v":1115.6702180097523,"d":"1,115.67"}},{"$f":"SUM('Trial 1'!S28,'Trial 2'!S28,'Trial 3'!S28,'Trial 4'!S28,'Trial 5'!S28,'Trial 6'!S28,'Trial 7'!S28,'Trial 8'!S28)","v":{"v":1115.1038182940692,"d":"1,115.10"}},{"$f":"SUM('Trial 1'!T28,'Trial 2'!T28,'Trial 3'!T28,'Trial 4'!T28,'Trial 5'!T28,'Trial 6'!T28,'Trial 7'!T28,'Trial 8'!T28)","v":{"v":1114.510630570229,"d":"1,114.51"}},{"$f":"SUM('Trial 1'!U28,'Trial 2'!U28,'Trial 3'!U28,'Trial 4'!U28,'Trial 5'!U28,'Trial 6'!U28,'Trial 7'!U28,'Trial 8'!U28)","v":{"v":1113.8825488486011,"d":"1,113.88"}},{"$f":"SUM('Trial 1'!V28,'Trial 2'!V28,'Trial 3'!V28,'Trial 4'!V28,'Trial 5'!V28,'Trial 6'!V28,'Trial 7'!V28,'Trial 8'!V28)","v":{"v":1113.228339013923,"d":"1,113.23"}},{"$f":"SUM('Trial 1'!W28,'Trial 2'!W28,'Trial 3'!W28,'Trial 4'!W28,'Trial 5'!W28,'Trial 6'!W28,'Trial 7'!W28,'Trial 8'!W28)","v":{"v":1112.5435033745935,"d":"1,112.54"}},{"$f":"SUM('Trial 1'!X28,'Trial 2'!X28,'Trial 3'!X28,'Trial 4'!X28,'Trial 5'!X28,'Trial 6'!X28,'Trial 7'!X28,'Trial 8'!X28)","v":{"v":1111.8296913526349,"d":"1,111.83"}},{"$f":"SUM('Trial 1'!Y28,'Trial 2'!Y28,'Trial 3'!Y28,'Trial 4'!Y28,'Trial 5'!Y28,'Trial 6'!Y28,'Trial 7'!Y28,'Trial 8'!Y28)","v":{"v":1111.0941826312887,"d":"1,111.09"}},{"$f":"SUM('Trial 1'!Z28,'Trial 2'!Z28,'Trial 3'!Z28,'Trial 4'!Z28,'Trial 5'!Z28,'Trial 6'!Z28,'Trial 7'!Z28,'Trial 8'!Z28)","v":{"v":1110.3326785583815,"d":"1,110.33"}},{"$f":"Z105","v":{"v":1110.3326785583815,"d":"1,110.33"}},{"$f":"SUM('Trial 1'!AB28,'Trial 2'!AB28,'Trial 3'!AB28,'Trial 4'!AB28,'Trial 5'!AB28,'Trial 6'!AB28,'Trial 7'!AB28,'Trial 8'!AB28)","v":{"v":1109.5465156976145,"d":"1,109.55"}},{"$f":"SUM('Trial 1'!AC28,'Trial 2'!AC28,'Trial 3'!AC28,'Trial 4'!AC28,'Trial 5'!AC28,'Trial 6'!AC28,'Trial 7'!AC28,'Trial 8'!AC28)","v":{"v":1108.7314649860919,"d":"1,108.73"}},{"$f":"SUM('Trial 1'!AD28,'Trial 2'!AD28,'Trial 3'!AD28,'Trial 4'!AD28,'Trial 5'!AD28,'Trial 6'!AD28,'Trial 7'!AD28,'Trial 8'!AD28)","v":{"v":1107.8943732237656,"d":"1,107.89"}},{"$f":"SUM('Trial 1'!AE28,'Trial 2'!AE28,'Trial 3'!AE28,'Trial 4'!AE28,'Trial 5'!AE28,'Trial 6'!AE28,'Trial 7'!AE28,'Trial 8'!AE28)","v":{"v":1107.0382856983451,"d":"1,107.04"}},{"$f":"SUM('Trial 1'!AF28,'Trial 2'!AF28,'Trial 3'!AF28,'Trial 4'!AF28,'Trial 5'!AF28,'Trial 6'!AF28,'Trial 7'!AF28,'Trial 8'!AF28)","v":{"v":1106.162241401136,"d":"1,106.16"}},{"$f":"SUM('Trial 1'!AG28,'Trial 2'!AG28,'Trial 3'!AG28,'Trial 4'!AG28,'Trial 5'!AG28,'Trial 6'!AG28,'Trial 7'!AG28,'Trial 8'!AG28)","v":{"v":1105.2662282963472,"d":"1,105.27"}},{"$f":"SUM('Trial 1'!AH28,'Trial 2'!AH28,'Trial 3'!AH28,'Trial 4'!AH28,'Trial 5'!AH28,'Trial 6'!AH28,'Trial 7'!AH28,'Trial 8'!AH28)","v":{"v":1104.3472220740546,"d":"1,104.35"}},{"$f":"SUM('Trial 1'!AI28,'Trial 2'!AI28,'Trial 3'!AI28,'Trial 4'!AI28,'Trial 5'!AI28,'Trial 6'!AI28,'Trial 7'!AI28,'Trial 8'!AI28)","v":{"v":1103.411278912347,"d":"1,103.41"}},{"$f":"SUM('Trial 1'!AJ28,'Trial 2'!AJ28,'Trial 3'!AJ28,'Trial 4'!AJ28,'Trial 5'!AJ28,'Trial 6'!AJ28,'Trial 7'!AJ28,'Trial 8'!AJ28)","v":{"v":1102.461200028868,"d":"1,102.46"}},{"$f":"SUM('Trial 1'!AK28,'Trial 2'!AK28,'Trial 3'!AK28,'Trial 4'!AK28,'Trial 5'!AK28,'Trial 6'!AK28,'Trial 7'!AK28,'Trial 8'!AK28)","v":{"v":1101.489880274225,"d":"1,101.49"}},{"$f":"SUM('Trial 1'!AL28,'Trial 2'!AL28,'Trial 3'!AL28,'Trial 4'!AL28,'Trial 5'!AL28,'Trial 6'!AL28,'Trial 7'!AL28,'Trial 8'!AL28)","v":{"v":1100.5027400744466,"d":"1,100.50"}},{"$f":"SUM('Trial 1'!AM28,'Trial 2'!AM28,'Trial 3'!AM28,'Trial 4'!AM28,'Trial 5'!AM28,'Trial 6'!AM28,'Trial 7'!AM28,'Trial 8'!AM28)","v":{"v":1099.5014520409245,"d":"1,099.50"}},{"$f":"AM105","v":{"v":1099.5014520409245,"d":"1,099.50"}},{"$f":"SUM('Trial 1'!AO28,'Trial 2'!AO28,'Trial 3'!AO28,'Trial 4'!AO28,'Trial 5'!AO28,'Trial 6'!AO28,'Trial 7'!AO28,'Trial 8'!AO28)","v":{"v":1098.487438084172,"d":"1,098.49"}},{"$f":"SUM('Trial 1'!AP28,'Trial 2'!AP28,'Trial 3'!AP28,'Trial 4'!AP28,'Trial 5'!AP28,'Trial 6'!AP28,'Trial 7'!AP28,'Trial 8'!AP28)","v":{"v":1097.4563633560188,"d":"1,097.46"}},{"$f":"SUM('Trial 1'!AQ28,'Trial 2'!AQ28,'Trial 3'!AQ28,'Trial 4'!AQ28,'Trial 5'!AQ28,'Trial 6'!AQ28,'Trial 7'!AQ28,'Trial 8'!AQ28)","v":{"v":1096.4115160856888,"d":"1,096.41"}},{"$f":"SUM('Trial 1'!AR28,'Trial 2'!AR28,'Trial 3'!AR28,'Trial 4'!AR28,'Trial 5'!AR28,'Trial 6'!AR28,'Trial 7'!AR28,'Trial 8'!AR28)","v":{"v":1095.356411518013,"d":"1,095.36"}},{"$f":"SUM('Trial 1'!AS28,'Trial 2'!AS28,'Trial 3'!AS28,'Trial 4'!AS28,'Trial 5'!AS28,'Trial 6'!AS28,'Trial 7'!AS28,'Trial 8'!AS28)","v":{"v":1094.2861323505786,"d":"1,094.29"}},{"$f":"SUM('Trial 1'!AT28,'Trial 2'!AT28,'Trial 3'!AT28,'Trial 4'!AT28,'Trial 5'!AT28,'Trial 6'!AT28,'Trial 7'!AT28,'Trial 8'!AT28)","v":{"v":1093.2031601421572,"d":"1,093.20"}},{"$f":"SUM('Trial 1'!AU28,'Trial 2'!AU28,'Trial 3'!AU28,'Trial 4'!AU28,'Trial 5'!AU28,'Trial 6'!AU28,'Trial 7'!AU28,'Trial 8'!AU28)","v":{"v":1092.111120617746,"d":"1,092.11"}},{"$f":"SUM('Trial 1'!AV28,'Trial 2'!AV28,'Trial 3'!AV28,'Trial 4'!AV28,'Trial 5'!AV28,'Trial 6'!AV28,'Trial 7'!AV28,'Trial 8'!AV28)","v":{"v":1091.0074255713864,"d":"1,091.01"}},{"$f":"SUM('Trial 1'!AW28,'Trial 2'!AW28,'Trial 3'!AW28,'Trial 4'!AW28,'Trial 5'!AW28,'Trial 6'!AW28,'Trial 7'!AW28,'Trial 8'!AW28)","v":{"v":1089.8917260632916,"d":"1,089.89"}},{"$f":"SUM('Trial 1'!AX28,'Trial 2'!AX28,'Trial 3'!AX28,'Trial 4'!AX28,'Trial 5'!AX28,'Trial 6'!AX28,'Trial 7'!AX28,'Trial 8'!AX28)","v":{"v":1088.7660008580197,"d":"1,088.77"}},{"$f":"SUM('Trial 1'!AY28,'Trial 2'!AY28,'Trial 3'!AY28,'Trial 4'!AY28,'Trial 5'!AY28,'Trial 6'!AY28,'Trial 7'!AY28,'Trial 8'!AY28)","v":{"v":1087.6273798413763,"d":"1,087.63"}},{"$f":"SUM('Trial 1'!AZ28,'Trial 2'!AZ28,'Trial 3'!AZ28,'Trial 4'!AZ28,'Trial 5'!AZ28,'Trial 6'!AZ28,'Trial 7'!AZ28,'Trial 8'!AZ28)","v":{"v":1086.4784008770498,"d":"1,086.48"}},{"$f":"AZ105","v":{"v":1086.4784008770498,"d":"1,086.48"}},{"$f":"SUM('Trial 1'!BB28,'Trial 2'!BB28,'Trial 3'!BB28,'Trial 4'!BB28,'Trial 5'!BB28,'Trial 6'!BB28,'Trial 7'!BB28,'Trial 8'!BB28)","v":{"v":1085.32098667412,"d":"1,085.32"}},{"$f":"SUM('Trial 1'!BC28,'Trial 2'!BC28,'Trial 3'!BC28,'Trial 4'!BC28,'Trial 5'!BC28,'Trial 6'!BC28,'Trial 7'!BC28,'Trial 8'!BC28)","v":{"v":1084.151323842423,"d":"1,084.15"}},{"$f":"SUM('Trial 1'!BD28,'Trial 2'!BD28,'Trial 3'!BD28,'Trial 4'!BD28,'Trial 5'!BD28,'Trial 6'!BD28,'Trial 7'!BD28,'Trial 8'!BD28)","v":{"v":1082.9704927073676,"d":"1,082.97"}},{"$f":"SUM('Trial 1'!BE28,'Trial 2'!BE28,'Trial 3'!BE28,'Trial 4'!BE28,'Trial 5'!BE28,'Trial 6'!BE28,'Trial 7'!BE28,'Trial 8'!BE28)","v":{"v":1081.7812970293444,"d":"1,081.78"}},{"$f":"SUM('Trial 1'!BF28,'Trial 2'!BF28,'Trial 3'!BF28,'Trial 4'!BF28,'Trial 5'!BF28,'Trial 6'!BF28,'Trial 7'!BF28,'Trial 8'!BF28)","v":{"v":1080.5851613246234,"d":"1,080.59"}},{"$f":"SUM('Trial 1'!BG28,'Trial 2'!BG28,'Trial 3'!BG28,'Trial 4'!BG28,'Trial 5'!BG28,'Trial 6'!BG28,'Trial 7'!BG28,'Trial 8'!BG28)","v":{"v":1079.3815580475405,"d":"1,079.38"}},{"$f":"SUM('Trial 1'!BH28,'Trial 2'!BH28,'Trial 3'!BH28,'Trial 4'!BH28,'Trial 5'!BH28,'Trial 6'!BH28,'Trial 7'!BH28,'Trial 8'!BH28)","v":{"v":1078.1728877507003,"d":"1,078.17"}},{"$f":"SUM('Trial 1'!BI28,'Trial 2'!BI28,'Trial 3'!BI28,'Trial 4'!BI28,'Trial 5'!BI28,'Trial 6'!BI28,'Trial 7'!BI28,'Trial 8'!BI28)","v":{"v":1076.959493161086,"d":"1,076.96"}},{"$f":"SUM('Trial 1'!BJ28,'Trial 2'!BJ28,'Trial 3'!BJ28,'Trial 4'!BJ28,'Trial 5'!BJ28,'Trial 6'!BJ28,'Trial 7'!BJ28,'Trial 8'!BJ28)","v":{"v":1075.737087499405,"d":"1,075.74"}},{"$f":"SUM('Trial 1'!BK28,'Trial 2'!BK28,'Trial 3'!BK28,'Trial 4'!BK28,'Trial 5'!BK28,'Trial 6'!BK28,'Trial 7'!BK28,'Trial 8'!BK28)","v":{"v":1074.5080360053475,"d":"1,074.51"}},{"$f":"SUM('Trial 1'!BL28,'Trial 2'!BL28,'Trial 3'!BL28,'Trial 4'!BL28,'Trial 5'!BL28,'Trial 6'!BL28,'Trial 7'!BL28,'Trial 8'!BL28)","v":{"v":1073.275937224485,"d":"1,073.28"}},{"$f":"SUM('Trial 1'!BM28,'Trial 2'!BM28,'Trial 3'!BM28,'Trial 4'!BM28,'Trial 5'!BM28,'Trial 6'!BM28,'Trial 7'!BM28,'Trial 8'!BM28)","v":{"v":1072.0384999733378,"d":"1,072.04"}},{"$f":"BM105","v":{"v":1072.0384999733378,"d":"1,072.04"}},{"$f":"SUM('Trial 1'!BO28,'Trial 2'!BO28,'Trial 3'!BO28,'Trial 4'!BO28,'Trial 5'!BO28,'Trial 6'!BO28,'Trial 7'!BO28,'Trial 8'!BO28)","v":{"v":1070.7987388215881,"d":"1,070.80"}},{"$f":"SUM('Trial 1'!BP28,'Trial 2'!BP28,'Trial 3'!BP28,'Trial 4'!BP28,'Trial 5'!BP28,'Trial 6'!BP28,'Trial 7'!BP28,'Trial 8'!BP28)","v":{"v":1069.5546978518307,"d":"1,069.55"}},{"$f":"SUM('Trial 1'!BQ28,'Trial 2'!BQ28,'Trial 3'!BQ28,'Trial 4'!BQ28,'Trial 5'!BQ28,'Trial 6'!BQ28,'Trial 7'!BQ28,'Trial 8'!BQ28)","v":{"v":1068.3064557676319,"d":"1,068.31"}},{"$f":"SUM('Trial 1'!BR28,'Trial 2'!BR28,'Trial 3'!BR28,'Trial 4'!BR28,'Trial 5'!BR28,'Trial 6'!BR28,'Trial 7'!BR28,'Trial 8'!BR28)","v":{"v":1067.05581264075,"d":"1,067.06"}},{"$f":"SUM('Trial 1'!BS28,'Trial 2'!BS28,'Trial 3'!BS28,'Trial 4'!BS28,'Trial 5'!BS28,'Trial 6'!BS28,'Trial 7'!BS28,'Trial 8'!BS28)","v":{"v":1065.8054897281881,"d":"1,065.81"}},{"$f":"SUM('Trial 1'!BT28,'Trial 2'!BT28,'Trial 3'!BT28,'Trial 4'!BT28,'Trial 5'!BT28,'Trial 6'!BT28,'Trial 7'!BT28,'Trial 8'!BT28)","v":{"v":1064.554892779184,"d":"1,064.55"}},{"$f":"SUM('Trial 1'!BU28,'Trial 2'!BU28,'Trial 3'!BU28,'Trial 4'!BU28,'Trial 5'!BU28,'Trial 6'!BU28,'Trial 7'!BU28,'Trial 8'!BU28)","v":{"v":1063.3003224259714,"d":"1,063.30"}},{"$f":"SUM('Trial 1'!BV28,'Trial 2'!BV28,'Trial 3'!BV28,'Trial 4'!BV28,'Trial 5'!BV28,'Trial 6'!BV28,'Trial 7'!BV28,'Trial 8'!BV28)","v":{"v":1062.0480158277169,"d":"1,062.05"}},{"$f":"SUM('Trial 1'!BW28,'Trial 2'!BW28,'Trial 3'!BW28,'Trial 4'!BW28,'Trial 5'!BW28,'Trial 6'!BW28,'Trial 7'!BW28,'Trial 8'!BW28)","v":{"v":1060.7918456802304,"d":"1,060.79"}},{"$f":"SUM('Trial 1'!BX28,'Trial 2'!BX28,'Trial 3'!BX28,'Trial 4'!BX28,'Trial 5'!BX28,'Trial 6'!BX28,'Trial 7'!BX28,'Trial 8'!BX28)","v":{"v":1059.533633213907,"d":"1,059.53"}},{"$f":"SUM('Trial 1'!BY28,'Trial 2'!BY28,'Trial 3'!BY28,'Trial 4'!BY28,'Trial 5'!BY28,'Trial 6'!BY28,'Trial 7'!BY28,'Trial 8'!BY28)","v":{"v":1058.2775135571883,"d":"1,058.28"}},{"$f":"SUM('Trial 1'!BZ28,'Trial 2'!BZ28,'Trial 3'!BZ28,'Trial 4'!BZ28,'Trial 5'!BZ28,'Trial 6'!BZ28,'Trial 7'!BZ28,'Trial 8'!BZ28)","v":{"v":1057.0180348637996,"d":"1,057.02"}},{"$f":"BZ105","v":{"v":1057.0180348637996,"d":"1,057.02"}},{"$f":"SUM('Trial 1'!CB28,'Trial 2'!CB28,'Trial 3'!CB28,'Trial 4'!CB28,'Trial 5'!CB28,'Trial 6'!CB28,'Trial 7'!CB28,'Trial 8'!CB28)","v":{"v":1055.7604963265821,"d":"1,055.76"}},{"$f":"SUM('Trial 1'!CC28,'Trial 2'!CC28,'Trial 3'!CC28,'Trial 4'!CC28,'Trial 5'!CC28,'Trial 6'!CC28,'Trial 7'!CC28,'Trial 8'!CC28)","v":{"v":1054.5025558549721,"d":"1,054.50"}},{"$f":"SUM('Trial 1'!CD28,'Trial 2'!CD28,'Trial 3'!CD28,'Trial 4'!CD28,'Trial 5'!CD28,'Trial 6'!CD28,'Trial 7'!CD28,'Trial 8'!CD28)","v":{"v":1053.2436831779803,"d":"1,053.24"}},{"$f":"SUM('Trial 1'!CE28,'Trial 2'!CE28,'Trial 3'!CE28,'Trial 4'!CE28,'Trial 5'!CE28,'Trial 6'!CE28,'Trial 7'!CE28,'Trial 8'!CE28)","v":{"v":1051.9835977269188,"d":"1,051.98"}},{"$f":"SUM('Trial 1'!CF28,'Trial 2'!CF28,'Trial 3'!CF28,'Trial 4'!CF28,'Trial 5'!CF28,'Trial 6'!CF28,'Trial 7'!CF28,'Trial 8'!CF28)","v":{"v":1050.7252307324018,"d":"1,050.73"}},{"$f":"SUM('Trial 1'!CG28,'Trial 2'!CG28,'Trial 3'!CG28,'Trial 4'!CG28,'Trial 5'!CG28,'Trial 6'!CG28,'Trial 7'!CG28,'Trial 8'!CG28)","v":{"v":1049.4646355899763,"d":"1,049.46"}},{"$f":"SUM('Trial 1'!CH28,'Trial 2'!CH28,'Trial 3'!CH28,'Trial 4'!CH28,'Trial 5'!CH28,'Trial 6'!CH28,'Trial 7'!CH28,'Trial 8'!CH28)","v":{"v":1048.2041898983089,"d":"1,048.20"}},{"$f":"SUM('Trial 1'!CI28,'Trial 2'!CI28,'Trial 3'!CI28,'Trial 4'!CI28,'Trial 5'!CI28,'Trial 6'!CI28,'Trial 7'!CI28,'Trial 8'!CI28)","v":{"v":1046.9508721979164,"d":"1,046.95"}},{"$f":"SUM('Trial 1'!CJ28,'Trial 2'!CJ28,'Trial 3'!CJ28,'Trial 4'!CJ28,'Trial 5'!CJ28,'Trial 6'!CJ28,'Trial 7'!CJ28,'Trial 8'!CJ28)","v":{"v":1045.6991675372947,"d":"1,045.70"}},{"$f":"SUM('Trial 1'!CK28,'Trial 2'!CK28,'Trial 3'!CK28,'Trial 4'!CK28,'Trial 5'!CK28,'Trial 6'!CK28,'Trial 7'!CK28,'Trial 8'!CK28)","v":{"v":1044.4505663140262,"d":"1,044.45"}},{"$f":"SUM('Trial 1'!CL28,'Trial 2'!CL28,'Trial 3'!CL28,'Trial 4'!CL28,'Trial 5'!CL28,'Trial 6'!CL28,'Trial 7'!CL28,'Trial 8'!CL28)","v":{"v":1043.2042166867602,"d":"1,043.20"}},{"$f":"SUM('Trial 1'!CM28,'Trial 2'!CM28,'Trial 3'!CM28,'Trial 4'!CM28,'Trial 5'!CM28,'Trial 6'!CM28,'Trial 7'!CM28,'Trial 8'!CM28)","v":{"v":1041.9634096121194,"d":"1,041.96"}},{"$f":"CM105","v":{"v":1041.9634096121194,"d":"1,041.96"}},{"$f":"SUM('Trial 1'!CO28,'Trial 2'!CO28,'Trial 3'!CO28,'Trial 4'!CO28,'Trial 5'!CO28,'Trial 6'!CO28,'Trial 7'!CO28,'Trial 8'!CO28)","v":{"v":1040.7233251293665,"d":"1,040.72"}},{"$f":"SUM('Trial 1'!CP28,'Trial 2'!CP28,'Trial 3'!CP28,'Trial 4'!CP28,'Trial 5'!CP28,'Trial 6'!CP28,'Trial 7'!CP28,'Trial 8'!CP28)","v":{"v":1039.4884553814586,"d":"1,039.49"}},{"$f":"SUM('Trial 1'!CQ28,'Trial 2'!CQ28,'Trial 3'!CQ28,'Trial 4'!CQ28,'Trial 5'!CQ28,'Trial 6'!CQ28,'Trial 7'!CQ28,'Trial 8'!CQ28)","v":{"v":1038.2568641823461,"d":"1,038.26"}},{"$f":"SUM('Trial 1'!CR28,'Trial 2'!CR28,'Trial 3'!CR28,'Trial 4'!CR28,'Trial 5'!CR28,'Trial 6'!CR28,'Trial 7'!CR28,'Trial 8'!CR28)","v":{"v":1037.028824833181,"d":"1,037.03"}},{"$f":"SUM('Trial 1'!CS28,'Trial 2'!CS28,'Trial 3'!CS28,'Trial 4'!CS28,'Trial 5'!CS28,'Trial 6'!CS28,'Trial 7'!CS28,'Trial 8'!CS28)","v":{"v":1035.8040770549792,"d":"1,035.80"}},{"$f":"SUM('Trial 1'!CT28,'Trial 2'!CT28,'Trial 3'!CT28,'Trial 4'!CT28,'Trial 5'!CT28,'Trial 6'!CT28,'Trial 7'!CT28,'Trial 8'!CT28)","v":{"v":1034.58138476476,"d":"1,034.58"}},{"$f":"SUM('Trial 1'!CU28,'Trial 2'!CU28,'Trial 3'!CU28,'Trial 4'!CU28,'Trial 5'!CU28,'Trial 6'!CU28,'Trial 7'!CU28,'Trial 8'!CU28)","v":{"v":1033.3557369901084,"d":"1,033.36"}},{"$f":"SUM('Trial 1'!CV28,'Trial 2'!CV28,'Trial 3'!CV28,'Trial 4'!CV28,'Trial 5'!CV28,'Trial 6'!CV28,'Trial 7'!CV28,'Trial 8'!CV28)","v":{"v":1032.1298142045546,"d":"1,032.13"}},{"$f":"SUM('Trial 1'!CW28,'Trial 2'!CW28,'Trial 3'!CW28,'Trial 4'!CW28,'Trial 5'!CW28,'Trial 6'!CW28,'Trial 7'!CW28,'Trial 8'!CW28)","v":{"v":1030.9117451673537,"d":"1,030.91"}},{"$f":"SUM('Trial 1'!CX28,'Trial 2'!CX28,'Trial 3'!CX28,'Trial 4'!CX28,'Trial 5'!CX28,'Trial 6'!CX28,'Trial 7'!CX28,'Trial 8'!CX28)","v":{"v":1029.6951511963985,"d":"1,029.70"}},{"$f":"SUM('Trial 1'!CY28,'Trial 2'!CY28,'Trial 3'!CY28,'Trial 4'!CY28,'Trial 5'!CY28,'Trial 6'!CY28,'Trial 7'!CY28,'Trial 8'!CY28)","v":{"v":1028.480639238854,"d":"1,028.48"}},{"$f":"SUM('Trial 1'!CZ28,'Trial 2'!CZ28,'Trial 3'!CZ28,'Trial 4'!CZ28,'Trial 5'!CZ28,'Trial 6'!CZ28,'Trial 7'!CZ28,'Trial 8'!CZ28)","v":{"v":1027.26735343888,"d":"1,027.27"}},{"$f":"CZ105","v":{"v":1027.26735343888,"d":"1,027.27"}},{"$f":"SUM('Trial 1'!DB28,'Trial 2'!DB28,'Trial 3'!DB28,'Trial 4'!DB28,'Trial 5'!DB28,'Trial 6'!DB28,'Trial 7'!DB28,'Trial 8'!DB28)","v":{"v":1026.0585396352978,"d":"1,026.06"}},{"$f":"SUM('Trial 1'!DC28,'Trial 2'!DC28,'Trial 3'!DC28,'Trial 4'!DC28,'Trial 5'!DC28,'Trial 6'!DC28,'Trial 7'!DC28,'Trial 8'!DC28)","v":{"v":1024.8515523133117,"d":"1,024.85"}},{"$f":"SUM('Trial 1'!DD28,'Trial 2'!DD28,'Trial 3'!DD28,'Trial 4'!DD28,'Trial 5'!DD28,'Trial 6'!DD28,'Trial 7'!DD28,'Trial 8'!DD28)","v":{"v":1023.6497464148742,"d":"1,023.65"}},{"$f":"SUM('Trial 1'!DE28,'Trial 2'!DE28,'Trial 3'!DE28,'Trial 4'!DE28,'Trial 5'!DE28,'Trial 6'!DE28,'Trial 7'!DE28,'Trial 8'!DE28)","v":{"v":1022.4481559398869,"d":"1,022.45"}},{"$f":"SUM('Trial 1'!DF28,'Trial 2'!DF28,'Trial 3'!DF28,'Trial 4'!DF28,'Trial 5'!DF28,'Trial 6'!DF28,'Trial 7'!DF28,'Trial 8'!DF28)","v":{"v":1021.2486041899609,"d":"1,021.25"}},{"$f":"SUM('Trial 1'!DG28,'Trial 2'!DG28,'Trial 3'!DG28,'Trial 4'!DG28,'Trial 5'!DG28,'Trial 6'!DG28,'Trial 7'!DG28,'Trial 8'!DG28)","v":{"v":1020.053974667853,"d":"1,020.05"}},{"$f":"SUM('Trial 1'!DH28,'Trial 2'!DH28,'Trial 3'!DH28,'Trial 4'!DH28,'Trial 5'!DH28,'Trial 6'!DH28,'Trial 7'!DH28,'Trial 8'!DH28)","v":{"v":1018.8626134940823,"d":"1,018.86"}},{"$f":"SUM('Trial 1'!DI28,'Trial 2'!DI28,'Trial 3'!DI28,'Trial 4'!DI28,'Trial 5'!DI28,'Trial 6'!DI28,'Trial 7'!DI28,'Trial 8'!DI28)","v":{"v":1017.6738618757734,"d":"1,017.67"}},{"$f":"SUM('Trial 1'!DJ28,'Trial 2'!DJ28,'Trial 3'!DJ28,'Trial 4'!DJ28,'Trial 5'!DJ28,'Trial 6'!DJ28,'Trial 7'!DJ28,'Trial 8'!DJ28)","v":{"v":1016.4873209077431,"d":"1,016.49"}},{"$f":"SUM('Trial 1'!DK28,'Trial 2'!DK28,'Trial 3'!DK28,'Trial 4'!DK28,'Trial 5'!DK28,'Trial 6'!DK28,'Trial 7'!DK28,'Trial 8'!DK28)","v":{"v":1015.3023545025889,"d":"1,015.30"}},{"$f":"SUM('Trial 1'!DL28,'Trial 2'!DL28,'Trial 3'!DL28,'Trial 4'!DL28,'Trial 5'!DL28,'Trial 6'!DL28,'Trial 7'!DL28,'Trial 8'!DL28)","v":{"v":1014.1211091097093,"d":"1,014.12"}},{"$f":"SUM('Trial 1'!DM28,'Trial 2'!DM28,'Trial 3'!DM28,'Trial 4'!DM28,'Trial 5'!DM28,'Trial 6'!DM28,'Trial 7'!DM28,'Trial 8'!DM28)","v":{"v":1012.9431149599405,"d":"1,012.94"}},{"$f":"DM105","v":{"v":1012.9431149599405,"d":"1,012.94"}},{"$f":"SUM('Trial 1'!DO28,'Trial 2'!DO28,'Trial 3'!DO28,'Trial 4'!DO28,'Trial 5'!DO28,'Trial 6'!DO28,'Trial 7'!DO28,'Trial 8'!DO28)","v":{"v":1011.7667651315448,"d":"1,011.77"}},{"$f":"SUM('Trial 1'!DP28,'Trial 2'!DP28,'Trial 3'!DP28,'Trial 4'!DP28,'Trial 5'!DP28,'Trial 6'!DP28,'Trial 7'!DP28,'Trial 8'!DP28)","v":{"v":1010.5929007752343,"d":"1,010.59"}},{"$f":"SUM('Trial 1'!DQ28,'Trial 2'!DQ28,'Trial 3'!DQ28,'Trial 4'!DQ28,'Trial 5'!DQ28,'Trial 6'!DQ28,'Trial 7'!DQ28,'Trial 8'!DQ28)","v":{"v":1009.4254189846173,"d":"1,009.43"}},{"$f":"SUM('Trial 1'!DR28,'Trial 2'!DR28,'Trial 3'!DR28,'Trial 4'!DR28,'Trial 5'!DR28,'Trial 6'!DR28,'Trial 7'!DR28,'Trial 8'!DR28)","v":{"v":1008.2606224619128,"d":"1,008.26"}},{"$f":"SUM('Trial 1'!DS28,'Trial 2'!DS28,'Trial 3'!DS28,'Trial 4'!DS28,'Trial 5'!DS28,'Trial 6'!DS28,'Trial 7'!DS28,'Trial 8'!DS28)","v":{"v":1007.1034445252455,"d":"1,007.10"}},{"$f":"SUM('Trial 1'!DT28,'Trial 2'!DT28,'Trial 3'!DT28,'Trial 4'!DT28,'Trial 5'!DT28,'Trial 6'!DT28,'Trial 7'!DT28,'Trial 8'!DT28)","v":{"v":1005.950969887819,"d":"1,005.95"}},{"$f":"SUM('Trial 1'!DU28,'Trial 2'!DU28,'Trial 3'!DU28,'Trial 4'!DU28,'Trial 5'!DU28,'Trial 6'!DU28,'Trial 7'!DU28,'Trial 8'!DU28)","v":{"v":1004.8028493538924,"d":"1,004.80"}},{"$f":"SUM('Trial 1'!DV28,'Trial 2'!DV28,'Trial 3'!DV28,'Trial 4'!DV28,'Trial 5'!DV28,'Trial 6'!DV28,'Trial 7'!DV28,'Trial 8'!DV28)","v":{"v":1003.6621376050932,"d":"1,003.66"}},{"$f":"SUM('Trial 1'!DW28,'Trial 2'!DW28,'Trial 3'!DW28,'Trial 4'!DW28,'Trial 5'!DW28,'Trial 6'!DW28,'Trial 7'!DW28,'Trial 8'!DW28)","v":{"v":1002.5268095844756,"d":"1,002.53"}},{"$f":"SUM('Trial 1'!DX28,'Trial 2'!DX28,'Trial 3'!DX28,'Trial 4'!DX28,'Trial 5'!DX28,'Trial 6'!DX28,'Trial 7'!DX28,'Trial 8'!DX28)","v":{"v":1001.3977588966075,"d":"1,001.40"}},{"$f":"SUM('Trial 1'!DY28,'Trial 2'!DY28,'Trial 3'!DY28,'Trial 4'!DY28,'Trial 5'!DY28,'Trial 6'!DY28,'Trial 7'!DY28,'Trial 8'!DY28)","v":{"v":1000.2736752520636,"d":"1,000.27"}},{"$f":"SUM('Trial 1'!DZ28,'Trial 2'!DZ28,'Trial 3'!DZ28,'Trial 4'!DZ28,'Trial 5'!DZ28,'Trial 6'!DZ28,'Trial 7'!DZ28,'Trial 8'!DZ28)","v":{"v":999.1540967099048,"d":"999.15"}},{"$f":"DZ105","v":{"v":999.1540967099048,"d":"999.15"}},{"$f":"SUM('Trial 1'!EB28,'Trial 2'!EB28,'Trial 3'!EB28,'Trial 4'!EB28,'Trial 5'!EB28,'Trial 6'!EB28,'Trial 7'!EB28,'Trial 8'!EB28)","v":{"v":998.039327680753,"d":"998.04"}},{"$f":"SUM('Trial 1'!EC28,'Trial 2'!EC28,'Trial 3'!EC28,'Trial 4'!EC28,'Trial 5'!EC28,'Trial 6'!EC28,'Trial 7'!EC28,'Trial 8'!EC28)","v":{"v":996.9254457412586,"d":"996.93"}},{"$f":"SUM('Trial 1'!ED28,'Trial 2'!ED28,'Trial 3'!ED28,'Trial 4'!ED28,'Trial 5'!ED28,'Trial 6'!ED28,'Trial 7'!ED28,'Trial 8'!ED28)","v":{"v":995.8175828086556,"d":"995.82"}},{"$f":"SUM('Trial 1'!EE28,'Trial 2'!EE28,'Trial 3'!EE28,'Trial 4'!EE28,'Trial 5'!EE28,'Trial 6'!EE28,'Trial 7'!EE28,'Trial 8'!EE28)","v":{"v":994.7111307611594,"d":"994.71"}},{"$f":"SUM('Trial 1'!EF28,'Trial 2'!EF28,'Trial 3'!EF28,'Trial 4'!EF28,'Trial 5'!EF28,'Trial 6'!EF28,'Trial 7'!EF28,'Trial 8'!EF28)","v":{"v":993.6076094384044,"d":"993.61"}},{"$f":"SUM('Trial 1'!EG28,'Trial 2'!EG28,'Trial 3'!EG28,'Trial 4'!EG28,'Trial 5'!EG28,'Trial 6'!EG28,'Trial 7'!EG28,'Trial 8'!EG28)","v":{"v":992.5092205262123,"d":"992.51"}},{"$f":"SUM('Trial 1'!EH28,'Trial 2'!EH28,'Trial 3'!EH28,'Trial 4'!EH28,'Trial 5'!EH28,'Trial 6'!EH28,'Trial 7'!EH28,'Trial 8'!EH28)","v":{"v":991.4163874659895,"d":"991.42"}},{"$f":"SUM('Trial 1'!EI28,'Trial 2'!EI28,'Trial 3'!EI28,'Trial 4'!EI28,'Trial 5'!EI28,'Trial 6'!EI28,'Trial 7'!EI28,'Trial 8'!EI28)","v":{"v":990.3259325449068,"d":"990.33"}},{"$f":"SUM('Trial 1'!EJ28,'Trial 2'!EJ28,'Trial 3'!EJ28,'Trial 4'!EJ28,'Trial 5'!EJ28,'Trial 6'!EJ28,'Trial 7'!EJ28,'Trial 8'!EJ28)","v":{"v":989.2389164930677,"d":"989.24"}},{"$f":"SUM('Trial 1'!EK28,'Trial 2'!EK28,'Trial 3'!EK28,'Trial 4'!EK28,'Trial 5'!EK28,'Trial 6'!EK28,'Trial 7'!EK28,'Trial 8'!EK28)","v":{"v":988.1511015566068,"d":"988.15"}},{"$f":"SUM('Trial 1'!EL28,'Trial 2'!EL28,'Trial 3'!EL28,'Trial 4'!EL28,'Trial 5'!EL28,'Trial 6'!EL28,'Trial 7'!EL28,'Trial 8'!EL28)","v":{"v":987.0670278924587,"d":"987.07"}},{"$f":"SUM('Trial 1'!EM28,'Trial 2'!EM28,'Trial 3'!EM28,'Trial 4'!EM28,'Trial 5'!EM28,'Trial 6'!EM28,'Trial 7'!EM28,'Trial 8'!EM28)","v":{"v":985.9892977271982,"d":"985.99"}},{"$f":"EM105","v":{"v":985.9892977271982,"d":"985.99"}}]
[{"$f":"Labels!B39","v":"Desired Employment"}]
[{"$f":"Labels!D96","v":"Trials"},{"$f":"ZZZ__FnCalls!F7","v":"Jan 2010"},{"$f":"ZZZ__FnCalls!F8","v":"Feb 2010"},{"$f":"ZZZ__FnCalls!F9","v":"Mar 2010"},{"$f":"ZZZ__FnCalls!F10","v":"Apr 2010"},{"$f":"ZZZ__FnCalls!F11","v":"May 2010"},{"$f":"ZZZ__FnCalls!F12","v":"Jun 2010"},{"$f":"ZZZ__FnCalls!F13","v":"Jul 2010"},{"$f":"ZZZ__FnCalls!F14","v":"Aug 2010"},{"$f":"ZZZ__FnCalls!F15","v":"Sep 2010"},{"$f":"ZZZ__FnCalls!F16","v":"Oct 2010"},{"$f":"ZZZ__FnCalls!F17","v":"Nov 2010"},{"$f":"ZZZ__FnCalls!F18","v":"Dec 2010"},{"$f":"ZZZ__FnCalls!H7","v":"2010"},{"$f":"ZZZ__FnCalls!F19","v":"Jan 2011"},{"$f":"ZZZ__FnCalls!F20","v":"Feb 2011"},{"$f":"ZZZ__FnCalls!F21","v":"Mar 2011"},{"$f":"ZZZ__FnCalls!F22","v":"Apr 2011"},{"$f":"ZZZ__FnCalls!F23","v":"May 2011"},{"$f":"ZZZ__FnCalls!F24","v":"Jun 2011"},{"$f":"ZZZ__FnCalls!F25","v":"Jul 2011"},{"$f":"ZZZ__FnCalls!F26","v":"Aug 2011"},{"$f":"ZZZ__FnCalls!F27","v":"Sep 2011"},{"$f":"ZZZ__FnCalls!F28","v":"Oct 2011"},{"$f":"ZZZ__FnCalls!F29","v":"Nov 2011"},{"$f":"ZZZ__FnCalls!F30","v":"Dec 2011"},{"$f":"ZZZ__FnCalls!H19","v":"2011"},{"$f":"ZZZ__FnCalls!F31","v":"Jan 2012"},{"$f":"ZZZ__FnCalls!F32","v":"Feb 2012"},{"$f":"ZZZ__FnCalls!F33","v":"Mar 2012"},{"$f":"ZZZ__FnCalls!F34","v":"Apr 2012"},{"$f":"ZZZ__FnCalls!F35","v":"May 2012"},{"$f":"ZZZ__FnCalls!F36","v":"Jun 2012"},{"$f":"ZZZ__FnCalls!F37","v":"Jul 2012"},{"$f":"ZZZ__FnCalls!F38","v":"Aug 2012"},{"$f":"ZZZ__FnCalls!F39","v":"Sep 2012"},{"$f":"ZZZ__FnCalls!F40","v":"Oct 2012"},{"$f":"ZZZ__FnCalls!F41","v":"Nov 2012"},{"$f":"ZZZ__FnCalls!F42","v":"Dec 2012"},{"$f":"ZZZ__FnCalls!H31","v":"2012"},{"$f":"ZZZ__FnCalls!F43","v":"Jan 2013"},{"$f":"ZZZ__FnCalls!F44","v":"Feb 2013"},{"$f":"ZZZ__FnCalls!F45","v":"Mar 2013"},{"$f":"ZZZ__FnCalls!F46","v":"Apr 2013"},{"$f":"ZZZ__FnCalls!F47","v":"May 2013"},{"$f":"ZZZ__FnCalls!F48","v":"Jun 2013"},{"$f":"ZZZ__FnCalls!F49","v":"Jul 2013"},{"$f":"ZZZ__FnCalls!F50","v":"Aug 2013"},{"$f":"ZZZ__FnCalls!F51","v":"Sep 2013"},{"$f":"ZZZ__FnCalls!F52","v":"Oct 2013"},{"$f":"ZZZ__FnCalls!F53","v":"Nov 2013"},{"$f":"ZZZ__FnCalls!F54","v":"Dec 2013"},{"$f":"ZZZ__FnCalls!H43","v":"2013"},{"$f":"ZZZ__FnCalls!F55","v":"Jan 2014"},{"$f":"ZZZ__FnCalls!F56","v":"Feb 2014"},{"$f":"ZZZ__FnCalls!F57","v":"Mar 2014"},{"$f":"ZZZ__FnCalls!F58","v":"Apr 2014"},{"$f":"ZZZ__FnCalls!F59","v":"May 2014"},{"$f":"ZZZ__FnCalls!F60","v":"Jun 2014"},{"$f":"ZZZ__FnCalls!F61","v":"Jul 2014"},{"$f":"ZZZ__FnCalls!F62","v":"Aug 2014"},{"$f":"ZZZ__FnCalls!F63","v":"Sep 2014"},{"$f":"ZZZ__FnCalls!F64","v":"Oct 2014"},{"$f":"ZZZ__FnCalls!F65","v":"Nov 2014"},{"$f":"ZZZ__FnCalls!F66","v":"Dec 2014"},{"$f":"ZZZ__FnCalls!H55","v":"2014"},{"$f":"ZZZ__FnCalls!F67","v":"Jan 2015"},{"$f":"ZZZ__FnCalls!F68","v":"Feb 2015"},{"$f":"ZZZ__FnCalls!F69","v":"Mar 2015"},{"$f":"ZZZ__FnCalls!F70","v":"Apr 2015"},{"$f":"ZZZ__FnCalls!F71","v":"May 2015"},{"$f":"ZZZ__FnCalls!F72","v":"Jun 2015"},{"$f":"ZZZ__FnCalls!F73","v":"Jul 2015"},{"$f":"ZZZ__FnCalls!F74","v":"Aug 2015"},{"$f":"ZZZ__FnCalls!F75","v":"Sep 2015"},{"$f":"ZZZ__FnCalls!F76","v":"Oct 2015"},{"$f":"ZZZ__FnCalls!F77","v":"Nov 2015"},{"$f":"ZZZ__FnCalls!F78","v":"Dec 2015"},{"$f":"ZZZ__FnCalls!H67","v":"2015"},{"$f":"ZZZ__FnCalls!F79","v":"Jan 2016"},{"$f":"ZZZ__FnCalls!F80","v":"Feb 2016"},{"$f":"ZZZ__FnCalls!F81","v":"Mar 2016"},{"$f":"ZZZ__FnCalls!F82","v":"Apr 2016"},{"$f":"ZZZ__FnCalls!F83","v":"May 2016"},{"$f":"ZZZ__FnCalls!F84","v":"Jun 2016"},{"$f":"ZZZ__FnCalls!F85","v":"Jul 2016"},{"$f":"ZZZ__FnCalls!F86","v":"Aug 2016"},{"$f":"ZZZ__FnCalls!F87","v":"Sep 2016"},{"$f":"ZZZ__FnCalls!F88","v":"Oct 2016"},{"$f":"ZZZ__FnCalls!F89","v":"Nov 2016"},{"$f":"ZZZ__FnCalls!F90","v":"Dec 2016"},{"$f":"ZZZ__FnCalls!H79","v":"2016"},{"$f":"ZZZ__FnCalls!F91","v":"Jan 2017"},{"$f":"ZZZ__FnCalls!F92","v":"Feb 2017"},{"$f":"ZZZ__FnCalls!F93","v":"Mar 2017"},{"$f":"ZZZ__FnCalls!F94","v":"Apr 2017"},{"$f":"ZZZ__FnCalls!F95","v":"May 2017"},{"$f":"ZZZ__FnCalls!F96","v":"Jun 2017"},{"$f":"ZZZ__FnCalls!F97","v":"Jul 2017"},{"$f":"ZZZ__FnCalls!F98","v":"Aug 2017"},{"$f":"ZZZ__FnCalls!F99","v":"Sep 2017"},{"$f":"ZZZ__FnCalls!F100","v":"Oct 2017"},{"$f":"ZZZ__FnCalls!F101","v":"Nov 2017"},{"$f":"ZZZ__FnCalls!F102","v":"Dec 2017"},{"$f":"ZZZ__FnCalls!H91","v":"2017"},{"$f":"ZZZ__FnCalls!F103","v":"Jan 2018"},{"$f":"ZZZ__FnCalls!F104","v":"Feb 2018"},{"$f":"ZZZ__FnCalls!F105","v":"Mar 2018"},{"$f":"ZZZ__FnCalls!F106","v":"Apr 2018"},{"$f":"ZZZ__FnCalls!F107","v":"May 2018"},{"$f":"ZZZ__FnCalls!F108","v":"Jun 2018"},{"$f":"ZZZ__FnCalls!F109","v":"Jul 2018"},{"$f":"ZZZ__FnCalls!F110","v":"Aug 2018"},{"$f":"ZZZ__FnCalls!F111","v":"Sep 2018"},{"$f":"ZZZ__FnCalls!F112","v":"Oct 2018"},{"$f":"ZZZ__FnCalls!F113","v":"Nov 2018"},{"$f":"ZZZ__FnCalls!F114","v":"Dec 2018"},{"$f":"ZZZ__FnCalls!H103","v":"2018"},{"$f":"ZZZ__FnCalls!F115","v":"Jan 2019"},{"$f":"ZZZ__FnCalls!F116","v":"Feb 2019"},{"$f":"ZZZ__FnCalls!F117","v":"Mar 2019"},{"$f":"ZZZ__FnCalls!F118","v":"Apr 2019"},{"$f":"ZZZ__FnCalls!F119","v":"May 2019"},{"$f":"ZZZ__FnCalls!F120","v":"Jun 2019"},{"$f":"ZZZ__FnCalls!F121","v":"Jul 2019"},{"$f":"ZZZ__FnCalls!F122","v":"Aug 2019"},{"$f":"ZZZ__FnCalls!F123","v":"Sep 2019"},{"$f":"ZZZ__FnCalls!F124","v":"Oct 2019"},{"$f":"ZZZ__FnCalls!F125","v":"Nov 2019"},{"$f":"ZZZ__FnCalls!F126","v":"Dec 2019"},{"$f":"ZZZ__FnCalls!H115","v":"2019"},{"$f":"ZZZ__FnCalls!F127","v":"Jan 2020"},{"$f":"ZZZ__FnCalls!F128","v":"Feb 2020"},{"$f":"ZZZ__FnCalls!F129","v":"Mar 2020"},{"$f":"ZZZ__FnCalls!F130","v":"Apr 2020"},{"$f":"ZZZ__FnCalls!F131","v":"May 2020"},{"$f":"ZZZ__FnCalls!F132","v":"Jun 2020"},{"$f":"ZZZ__FnCalls!F133","v":"Jul 2020"},{"$f":"ZZZ__FnCalls!F134","v":"Aug 2020"},{"$f":"ZZZ__FnCalls!F135","v":"Sep 2020"},{"$f":"ZZZ__FnCalls!F136","v":"Oct 2020"},{"$f":"ZZZ__FnCalls!F137","v":"Nov 2020"},{"$f":"ZZZ__FnCalls!F138","v":"Dec 2020"},{"$f":"ZZZ__FnCalls!H127","v":"2020"}]
[{"$f":"Labels!B96","v":"Trial 01"},{"$f":"'Trial 1'!B29","v":{"v":140,"d":"140.00"}},{"$f":"'Trial 1'!C29","v":{"v":139.62243120540873,"d":"139.62"}},{"$f":"'Trial 1'!D29","v":{"v":139.3501330046186,"d":"139.35"}},{"$f":"'Trial 1'!E29","v":{"v":139.05270102295881,"d":"139.05"}},{"$f":"'Trial 1'!F29","v":{"v":138.72494483535462,"d":"138.72"}},{"$f":"'Trial 1'!G29","v":{"v":138.48394313466963,"d":"138.48"}},{"$f":"'Trial 1'!H29","v":{"v":138.19371726984315,"d":"138.19"}},{"$f":"'Trial 1'!I29","v":{"v":137.85580023900076,"d":"137.86"}},{"$f":"'Trial 1'!J29","v":{"v":137.538567833528,"d":"137.54"}},{"$f":"'Trial 1'!K29","v":{"v":137.25447696848929,"d":"137.25"}},{"$f":"'Trial 1'!L29","v":{"v":137.045388415492,"d":"137.05"}},{"$f":"'Trial 1'!M29","v":{"v":136.8023475182475,"d":"136.80"}},{"$f":"SUM('Trial 1'!B29:M29)","v":{"v":1659.924451447611,"d":"1,659.92"}},{"$f":"'Trial 1'!O29","v":{"v":136.5354974707672,"d":"136.54"}},{"$f":"'Trial 1'!P29","v":{"v":136.21636588931577,"d":"136.22"}},{"$f":"'Trial 1'!Q29","v":{"v":135.93099868153814,"d":"135.93"}},{"$f":"'Trial 1'!R29","v":{"v":135.54011027169545,"d":"135.54"}},{"$f":"'Trial 1'!S29","v":{"v":135.28737933504073,"d":"135.29"}},{"$f":"'Trial 1'!T29","v":{"v":134.91800506487692,"d":"134.92"}},{"$f":"'Trial 1'!U29","v":{"v":134.5869451719919,"d":"134.59"}},{"$f":"'Trial 1'!V29","v":{"v":134.23458539312642,"d":"134.23"}},{"$f":"'Trial 1'!W29","v":{"v":133.88449247286508,"d":"133.88"}},{"$f":"'Trial 1'!X29","v":{"v":133.5921027776894,"d":"133.59"}},{"$f":"'Trial 1'!Y29","v":{"v":133.31780028095812,"d":"133.32"}},{"$f":"'Trial 1'!Z29","v":{"v":133.12665030842638,"d":"133.13"}},{"$f":"SUM('Trial 1'!O29:Z29)","v":{"v":1617.1709331182917,"d":"1,617.17"}},{"$f":"'Trial 1'!AB29","v":{"v":132.82818413844998,"d":"132.83"}},{"$f":"'Trial 1'!AC29","v":{"v":132.57724521328444,"d":"132.58"}},{"$f":"'Trial 1'!AD29","v":{"v":132.42364834677485,"d":"132.42"}},{"$f":"'Trial 1'!AE29","v":{"v":132.1384854106768,"d":"132.14"}},{"$f":"'Trial 1'!AF29","v":{"v":131.8356272062219,"d":"131.84"}},{"$f":"'Trial 1'!AG29","v":{"v":131.58667144846942,"d":"131.59"}},{"$f":"'Trial 1'!AH29","v":{"v":131.33436734142154,"d":"131.33"}},{"$f":"'Trial 1'!AI29","v":{"v":131.11901529993213,"d":"131.12"}},{"$f":"'Trial 1'!AJ29","v":{"v":130.85716424104152,"d":"130.86"}},{"$f":"'Trial 1'!AK29","v":{"v":130.7019230631904,"d":"130.70"}},{"$f":"'Trial 1'!AL29","v":{"v":130.4834447396061,"d":"130.48"}},{"$f":"'Trial 1'!AM29","v":{"v":130.23385116823502,"d":"130.23"}},{"$f":"SUM('Trial 1'!AB29:AM29)","v":{"v":1578.119627617304,"d":"1,578.12"}},{"$f":"'Trial 1'!AO29","v":{"v":129.94992249071336,"d":"129.95"}},{"$f":"'Trial 1'!AP29","v":{"v":129.6695102521685,"d":"129.67"}},{"$f":"'Trial 1'!AQ29","v":{"v":129.54593377033717,"d":"129.55"}},{"$f":"'Trial 1'!AR29","v":{"v":129.25835558237242,"d":"129.26"}},{"$f":"'Trial 1'!AS29","v":{"v":129.0875545581215,"d":"129.09"}},{"$f":"'Trial 1'!AT29","v":{"v":128.88047487412229,"d":"128.88"}},{"$f":"'Trial 1'!AU29","v":{"v":128.7094614784808,"d":"128.71"}},{"$f":"'Trial 1'!AV29","v":{"v":128.48848907829296,"d":"128.49"}},{"$f":"'Trial 1'!AW29","v":{"v":128.23868199323064,"d":"128.24"}},{"$f":"'Trial 1'!AX29","v":{"v":128.0264931288604,"d":"128.03"}},{"$f":"'Trial 1'!AY29","v":{"v":127.88926811353016,"d":"127.89"}},{"$f":"'Trial 1'!AZ29","v":{"v":127.7082819838543,"d":"127.71"}},{"$f":"SUM('Trial 1'!AO29:AZ29)","v":{"v":1545.4524273040843,"d":"1,545.45"}},{"$f":"'Trial 1'!BB29","v":{"v":127.44620555235282,"d":"127.45"}},{"$f":"'Trial 1'!BC29","v":{"v":127.18157114227604,"d":"127.18"}},{"$f":"'Trial 1'!BD29","v":{"v":126.99397187938727,"d":"126.99"}},{"$f":"'Trial 1'!BE29","v":{"v":126.7691170853055,"d":"126.77"}},{"$f":"'Trial 1'!BF29","v":{"v":126.62904395535959,"d":"126.63"}},{"$f":"'Trial 1'!BG29","v":{"v":126.45758090049918,"d":"126.46"}},{"$f":"'Trial 1'!BH29","v":{"v":126.2847315879956,"d":"126.28"}},{"$f":"'Trial 1'!BI29","v":{"v":126.1270701023629,"d":"126.13"}},{"$f":"'Trial 1'!BJ29","v":{"v":125.92307442823532,"d":"125.92"}},{"$f":"'Trial 1'!BK29","v":{"v":125.71846584493855,"d":"125.72"}},{"$f":"'Trial 1'!BL29","v":{"v":125.46020408331796,"d":"125.46"}},{"$f":"'Trial 1'!BM29","v":{"v":125.29604628510769,"d":"125.30"}},{"$f":"SUM('Trial 1'!BB29:BM29)","v":{"v":1516.2870828471382,"d":"1,516.29"}},{"$f":"'Trial 1'!BO29","v":{"v":125.06514120625589,"d":"125.07"}},{"$f":"'Trial 1'!BP29","v":{"v":124.91640632437324,"d":"124.92"}},{"$f":"'Trial 1'!BQ29","v":{"v":124.7069543996186,"d":"124.71"}},{"$f":"'Trial 1'!BR29","v":{"v":124.62029873332787,"d":"124.62"}},{"$f":"'Trial 1'!BS29","v":{"v":124.48325507972368,"d":"124.48"}},{"$f":"'Trial 1'!BT29","v":{"v":124.31732761506422,"d":"124.32"}},{"$f":"'Trial 1'!BU29","v":{"v":124.07045485743299,"d":"124.07"}},{"$f":"'Trial 1'!BV29","v":{"v":123.84800288792034,"d":"123.85"}},{"$f":"'Trial 1'!BW29","v":{"v":123.66375318712815,"d":"123.66"}},{"$f":"'Trial 1'!BX29","v":{"v":123.54942224174641,"d":"123.55"}},{"$f":"'Trial 1'!BY29","v":{"v":123.33068930881679,"d":"123.33"}},{"$f":"'Trial 1'!BZ29","v":{"v":123.09498033962836,"d":"123.09"}},{"$f":"SUM('Trial 1'!BO29:BZ29)","v":{"v":1489.6666861810365,"d":"1,489.67"}},{"$f":"'Trial 1'!CB29","v":{"v":122.99065680872839,"d":"122.99"}},{"$f":"'Trial 1'!CC29","v":{"v":122.81965935955544,"d":"122.82"}},{"$f":"'Trial 1'!CD29","v":{"v":122.59226438402477,"d":"122.59"}},{"$f":"'Trial 1'!CE29","v":{"v":122.50139648602838,"d":"122.50"}},{"$f":"'Trial 1'!CF29","v":{"v":122.29367036224612,"d":"122.29"}},{"$f":"'Trial 1'!CG29","v":{"v":122.13652539998684,"d":"122.14"}},{"$f":"'Trial 1'!CH29","v":{"v":122.00544962330865,"d":"122.01"}},{"$f":"'Trial 1'!CI29","v":{"v":121.84916311675455,"d":"121.85"}},{"$f":"'Trial 1'!CJ29","v":{"v":121.71289009025193,"d":"121.71"}},{"$f":"'Trial 1'!CK29","v":{"v":121.56652440996865,"d":"121.57"}},{"$f":"'Trial 1'!CL29","v":{"v":121.34001616542872,"d":"121.34"}},{"$f":"'Trial 1'!CM29","v":{"v":121.24173751773102,"d":"121.24"}},{"$f":"SUM('Trial 1'!CB29:CM29)","v":{"v":1465.0499537240137,"d":"1,465.05"}},{"$f":"'Trial 1'!CO29","v":{"v":121.09891374582207,"d":"121.10"}},{"$f":"'Trial 1'!CP29","v":{"v":120.90791528066535,"d":"120.91"}},{"$f":"'Trial 1'!CQ29","v":{"v":120.81310517775646,"d":"120.81"}},{"$f":"'Trial 1'!CR29","v":{"v":120.5759168368858,"d":"120.58"}},{"$f":"'Trial 1'!CS29","v":{"v":120.43132900554687,"d":"120.43"}},{"$f":"'Trial 1'!CT29","v":{"v":120.21117922339297,"d":"120.21"}},{"$f":"'Trial 1'!CU29","v":{"v":120.09172624297027,"d":"120.09"}},{"$f":"'Trial 1'!CV29","v":{"v":119.89299193032427,"d":"119.89"}},{"$f":"'Trial 1'!CW29","v":{"v":119.77317078143223,"d":"119.77"}},{"$f":"'Trial 1'!CX29","v":{"v":119.5650512455377,"d":"119.57"}},{"$f":"'Trial 1'!CY29","v":{"v":119.49375349757523,"d":"119.49"}},{"$f":"'Trial 1'!CZ29","v":{"v":119.43561993933214,"d":"119.44"}},{"$f":"SUM('Trial 1'!CO29:CZ29)","v":{"v":1442.2906729072413,"d":"1,442.29"}},{"$f":"'Trial 1'!DB29","v":{"v":119.22759750321084,"d":"119.23"}},{"$f":"'Trial 1'!DC29","v":{"v":119.10435415153079,"d":"119.10"}},{"$f":"'Trial 1'!DD29","v":{"v":119.01344233128744,"d":"119.01"}},{"$f":"'Trial 1'!DE29","v":{"v":118.88993061625735,"d":"118.89"}},{"$f":"'Trial 1'!DF29","v":{"v":118.80882232169569,"d":"118.81"}},{"$f":"'Trial 1'!DG29","v":{"v":118.7244346924629,"d":"118.72"}},{"$f":"'Trial 1'!DH29","v":{"v":118.57782252387244,"d":"118.58"}},{"$f":"'Trial 1'!DI29","v":{"v":118.48089828489833,"d":"118.48"}},{"$f":"'Trial 1'!DJ29","v":{"v":118.30971963683731,"d":"118.31"}},{"$f":"'Trial 1'!DK29","v":{"v":118.21646146806891,"d":"118.22"}},{"$f":"'Trial 1'!DL29","v":{"v":118.17451655730491,"d":"118.17"}},{"$f":"'Trial 1'!DM29","v":{"v":117.99328528303614,"d":"117.99"}},{"$f":"SUM('Trial 1'!DB29:DM29)","v":{"v":1423.5212853704631,"d":"1,423.52"}},{"$f":"'Trial 1'!DO29","v":{"v":117.88714371185304,"d":"117.89"}},{"$f":"'Trial 1'!DP29","v":{"v":117.84510370412916,"d":"117.85"}},{"$f":"'Trial 1'!DQ29","v":{"v":117.70283179502664,"d":"117.70"}},{"$f":"'Trial 1'!DR29","v":{"v":117.60945642643057,"d":"117.61"}},{"$f":"'Trial 1'!DS29","v":{"v":117.50416950550435,"d":"117.50"}},{"$f":"'Trial 1'!DT29","v":{"v":117.37375948133645,"d":"117.37"}},{"$f":"'Trial 1'!DU29","v":{"v":117.24051179696846,"d":"117.24"}},{"$f":"'Trial 1'!DV29","v":{"v":117.14938782560523,"d":"117.15"}},{"$f":"'Trial 1'!DW29","v":{"v":116.97703551177169,"d":"116.98"}},{"$f":"'Trial 1'!DX29","v":{"v":116.82467273153637,"d":"116.82"}},{"$f":"'Trial 1'!DY29","v":{"v":116.77056791334326,"d":"116.77"}},{"$f":"'Trial 1'!DZ29","v":{"v":116.69896010601376,"d":"116.70"}},{"$f":"SUM('Trial 1'!DO29:DZ29)","v":{"v":1407.583600509519,"d":"1,407.58"}},{"$f":"'Trial 1'!EB29","v":{"v":116.55106075416218,"d":"116.55"}},{"$f":"'Trial 1'!EC29","v":{"v":116.4639341117413,"d":"116.46"}},{"$f":"'Trial 1'!ED29","v":{"v":116.35216918539045,"d":"116.35"}},{"$f":"'Trial 1'!EE29","v":{"v":116.24211545370713,"d":"116.24"}},{"$f":"'Trial 1'!EF29","v":{"v":116.06106378404733,"d":"116.06"}},{"$f":"'Trial 1'!EG29","v":{"v":115.94719752126883,"d":"115.95"}},{"$f":"'Trial 1'!EH29","v":{"v":115.82252194174342,"d":"115.82"}},{"$f":"'Trial 1'!EI29","v":{"v":115.70905926775724,"d":"115.71"}},{"$f":"'Trial 1'!EJ29","v":{"v":115.5557565791141,"d":"115.56"}},{"$f":"'Trial 1'!EK29","v":{"v":115.4664406202973,"d":"115.47"}},{"$f":"'Trial 1'!EL29","v":{"v":115.35142490880952,"d":"115.35"}},{"$f":"'Trial 1'!EM29","v":{"v":115.19402919346861,"d":"115.19"}},{"$f":"SUM('Trial 1'!EB29:EM29)","v":{"v":1390.7167733215074,"d":"1,390.72"}}]
[{"$f":"Labels!B97","v":"Trial 02"},{"$f":"'Trial 2'!B29","v":{"v":140,"d":"140.00"}},{"$f":"'Trial 2'!C29","v":{"v":139.64073537676285,"d":"139.64"}},{"$f":"'Trial 2'!D29","v":{"v":139.23760433782167,"d":"139.24"}},{"$f":"'Trial 2'!E29","v":{"v":138.92222121978028,"d":"138.92"}},{"$f":"'Trial 2'!F29","v":{"v":138.6983064157684,"d":"138.70"}},{"$f":"'Trial 2'!G29","v":{"v":138.4035729984432,"d":"138.40"}},{"$f":"'Trial 2'!H29","v":{"v":138.05346054899093,"d":"138.05"}},{"$f":"'Trial 2'!I29","v":{"v":137.73818480159107,"d":"137.74"}},{"$f":"'Trial 2'!J29","v":{"v":137.3652889883652,"d":"137.37"}},{"$f":"'Trial 2'!K29","v":{"v":137.0816409163015,"d":"137.08"}},{"$f":"'Trial 2'!L29","v":{"v":136.78698032242465,"d":"136.79"}},{"$f":"'Trial 2'!M29","v":{"v":136.42545081752093,"d":"136.43"}},{"$f":"SUM('Trial 2'!B29:M29)","v":{"v":1658.3534467437705,"d":"1,658.35"}},{"$f":"'Trial 2'!O29","v":{"v":136.17995918133096,"d":"136.18"}},{"$f":"'Trial 2'!P29","v":{"v":135.8534817223364,"d":"135.85"}},{"$f":"'Trial 2'!Q29","v":{"v":135.6116051552589,"d":"135.61"}},{"$f":"'Trial 2'!R29","v":{"v":135.3789285921652,"d":"135.38"}},{"$f":"'Trial 2'!S29","v":{"v":135.08094703803806,"d":"135.08"}},{"$f":"'Trial 2'!T29","v":{"v":134.78770622988702,"d":"134.79"}},{"$f":"'Trial 2'!U29","v":{"v":134.49735755645108,"d":"134.50"}},{"$f":"'Trial 2'!V29","v":{"v":134.15727591912207,"d":"134.16"}},{"$f":"'Trial 2'!W29","v":{"v":133.84255658039373,"d":"133.84"}},{"$f":"'Trial 2'!X29","v":{"v":133.5461046107203,"d":"133.55"}},{"$f":"'Trial 2'!Y29","v":{"v":133.24148337457845,"d":"133.24"}},{"$f":"'Trial 2'!Z29","v":{"v":132.8785270403207,"d":"132.88"}},{"$f":"SUM('Trial 2'!O29:Z29)","v":{"v":1615.0559330006029,"d":"1,615.06"}},{"$f":"'Trial 2'!AB29","v":{"v":132.64867907934527,"d":"132.65"}},{"$f":"'Trial 2'!AC29","v":{"v":132.39231592701555,"d":"132.39"}},{"$f":"'Trial 2'!AD29","v":{"v":132.1437305690753,"d":"132.14"}},{"$f":"'Trial 2'!AE29","v":{"v":131.8931431663375,"d":"131.89"}},{"$f":"'Trial 2'!AF29","v":{"v":131.74444654840102,"d":"131.74"}},{"$f":"'Trial 2'!AG29","v":{"v":131.4983345450936,"d":"131.50"}},{"$f":"'Trial 2'!AH29","v":{"v":131.23048807277374,"d":"131.23"}},{"$f":"'Trial 2'!AI29","v":{"v":131.01751880430342,"d":"131.02"}},{"$f":"'Trial 2'!AJ29","v":{"v":130.70050717263618,"d":"130.70"}},{"$f":"'Trial 2'!AK29","v":{"v":130.47084427720253,"d":"130.47"}},{"$f":"'Trial 2'!AL29","v":{"v":130.27605853206177,"d":"130.28"}},{"$f":"'Trial 2'!AM29","v":{"v":130.12437946513555,"d":"130.12"}},{"$f":"SUM('Trial 2'!AB29:AM29)","v":{"v":1576.1404461593813,"d":"1,576.14"}},{"$f":"'Trial 2'!AO29","v":{"v":129.864737852427,"d":"129.86"}},{"$f":"'Trial 2'!AP29","v":{"v":129.6269625657047,"d":"129.63"}},{"$f":"'Trial 2'!AQ29","v":{"v":129.43173158408257,"d":"129.43"}},{"$f":"'Trial 2'!AR29","v":{"v":129.2341979080572,"d":"129.23"}},{"$f":"'Trial 2'!AS29","v":{"v":128.98652938281163,"d":"128.99"}},{"$f":"'Trial 2'!AT29","v":{"v":128.7944647203926,"d":"128.79"}},{"$f":"'Trial 2'!AU29","v":{"v":128.60290341910223,"d":"128.60"}},{"$f":"'Trial 2'!AV29","v":{"v":128.39876668153642,"d":"128.40"}},{"$f":"'Trial 2'!AW29","v":{"v":128.20281778735344,"d":"128.20"}},{"$f":"'Trial 2'!AX29","v":{"v":127.89971415320227,"d":"127.90"}},{"$f":"'Trial 2'!AY29","v":{"v":127.67677801211318,"d":"127.68"}},{"$f":"'Trial 2'!AZ29","v":{"v":127.53510209418643,"d":"127.54"}},{"$f":"SUM('Trial 2'!AO29:AZ29)","v":{"v":1544.2547061609696,"d":"1,544.25"}},{"$f":"'Trial 2'!BB29","v":{"v":127.32066200864503,"d":"127.32"}},{"$f":"'Trial 2'!BC29","v":{"v":127.08055094291348,"d":"127.08"}},{"$f":"'Trial 2'!BD29","v":{"v":126.88732533161722,"d":"126.89"}},{"$f":"'Trial 2'!BE29","v":{"v":126.75492946843222,"d":"126.75"}},{"$f":"'Trial 2'!BF29","v":{"v":126.55117285757387,"d":"126.55"}},{"$f":"'Trial 2'!BG29","v":{"v":126.40546382142367,"d":"126.41"}},{"$f":"'Trial 2'!BH29","v":{"v":126.1578424387723,"d":"126.16"}},{"$f":"'Trial 2'!BI29","v":{"v":125.9324716143822,"d":"125.93"}},{"$f":"'Trial 2'!BJ29","v":{"v":125.66371793369477,"d":"125.66"}},{"$f":"'Trial 2'!BK29","v":{"v":125.52355278078241,"d":"125.52"}},{"$f":"'Trial 2'!BL29","v":{"v":125.31437745513833,"d":"125.31"}},{"$f":"'Trial 2'!BM29","v":{"v":125.14573912664201,"d":"125.15"}},{"$f":"SUM('Trial 2'!BB29:BM29)","v":{"v":1514.7378057800174,"d":"1,514.74"}},{"$f":"'Trial 2'!BO29","v":{"v":124.87764030392843,"d":"124.88"}},{"$f":"'Trial 2'!BP29","v":{"v":124.60003113856322,"d":"124.60"}},{"$f":"'Trial 2'!BQ29","v":{"v":124.36423189777771,"d":"124.36"}},{"$f":"'Trial 2'!BR29","v":{"v":124.22205472721767,"d":"124.22"}},{"$f":"'Trial 2'!BS29","v":{"v":124.10878600454893,"d":"124.11"}},{"$f":"'Trial 2'!BT29","v":{"v":123.85814270234314,"d":"123.86"}},{"$f":"'Trial 2'!BU29","v":{"v":123.76593631751642,"d":"123.77"}},{"$f":"'Trial 2'!BV29","v":{"v":123.55892595677072,"d":"123.56"}},{"$f":"'Trial 2'!BW29","v":{"v":123.42538568471048,"d":"123.43"}},{"$f":"'Trial 2'!BX29","v":{"v":123.26594236686323,"d":"123.27"}},{"$f":"'Trial 2'!BY29","v":{"v":123.01194030076306,"d":"123.01"}},{"$f":"'Trial 2'!BZ29","v":{"v":122.94554050049736,"d":"122.95"}},{"$f":"SUM('Trial 2'!BO29:BZ29)","v":{"v":1486.0045579015004,"d":"1,486.00"}},{"$f":"'Trial 2'!CB29","v":{"v":122.798665500213,"d":"122.80"}},{"$f":"'Trial 2'!CC29","v":{"v":122.67595897129925,"d":"122.68"}},{"$f":"'Trial 2'!CD29","v":{"v":122.47946446370766,"d":"122.48"}},{"$f":"'Trial 2'!CE29","v":{"v":122.31176371812738,"d":"122.31"}},{"$f":"'Trial 2'!CF29","v":{"v":122.21606738089805,"d":"122.22"}},{"$f":"'Trial 2'!CG29","v":{"v":122.0876060188179,"d":"122.09"}},{"$f":"'Trial 2'!CH29","v":{"v":121.98533827420447,"d":"121.99"}},{"$f":"'Trial 2'!CI29","v":{"v":121.83571029081318,"d":"121.84"}},{"$f":"'Trial 2'!CJ29","v":{"v":121.75018850905408,"d":"121.75"}},{"$f":"'Trial 2'!CK29","v":{"v":121.53587389112302,"d":"121.54"}},{"$f":"'Trial 2'!CL29","v":{"v":121.3795929711259,"d":"121.38"}},{"$f":"'Trial 2'!CM29","v":{"v":121.15262214523092,"d":"121.15"}},{"$f":"SUM('Trial 2'!CB29:CM29)","v":{"v":1464.2088521346147,"d":"1,464.21"}},{"$f":"'Trial 2'!CO29","v":{"v":120.9961650702611,"d":"121.00"}},{"$f":"'Trial 2'!CP29","v":{"v":120.81564778006182,"d":"120.82"}},{"$f":"'Trial 2'!CQ29","v":{"v":120.67442048892666,"d":"120.67"}},{"$f":"'Trial 2'!CR29","v":{"v":120.55665610396322,"d":"120.56"}},{"$f":"'Trial 2'!CS29","v":{"v":120.39417280896926,"d":"120.39"}},{"$f":"'Trial 2'!CT29","v":{"v":120.28778622685216,"d":"120.29"}},{"$f":"'Trial 2'!CU29","v":{"v":120.0940769166856,"d":"120.09"}},{"$f":"'Trial 2'!CV29","v":{"v":120.0199022801942,"d":"120.02"}},{"$f":"'Trial 2'!CW29","v":{"v":119.87189834059082,"d":"119.87"}},{"$f":"'Trial 2'!CX29","v":{"v":119.79886919134496,"d":"119.80"}},{"$f":"'Trial 2'!CY29","v":{"v":119.56674645797368,"d":"119.57"}},{"$f":"'Trial 2'!CZ29","v":{"v":119.48459807514661,"d":"119.48"}},{"$f":"SUM('Trial 2'!CO29:CZ29)","v":{"v":1442.56093974097,"d":"1,442.56"}},{"$f":"'Trial 2'!DB29","v":{"v":119.33933236154004,"d":"119.34"}},{"$f":"'Trial 2'!DC29","v":{"v":119.18993055385934,"d":"119.19"}},{"$f":"'Trial 2'!DD29","v":{"v":119.09169092298575,"d":"119.09"}},{"$f":"'Trial 2'!DE29","v":{"v":118.94041984375394,"d":"118.94"}},{"$f":"'Trial 2'!DF29","v":{"v":118.84789413694673,"d":"118.85"}},{"$f":"'Trial 2'!DG29","v":{"v":118.77332062919102,"d":"118.77"}},{"$f":"'Trial 2'!DH29","v":{"v":118.64707529027422,"d":"118.65"}},{"$f":"'Trial 2'!DI29","v":{"v":118.53156812435279,"d":"118.53"}},{"$f":"'Trial 2'!DJ29","v":{"v":118.42411830498537,"d":"118.42"}},{"$f":"'Trial 2'!DK29","v":{"v":118.37846369016646,"d":"118.38"}},{"$f":"'Trial 2'!DL29","v":{"v":118.20373270652055,"d":"118.20"}},{"$f":"'Trial 2'!DM29","v":{"v":117.98676013186385,"d":"117.99"}},{"$f":"SUM('Trial 2'!DB29:DM29)","v":{"v":1424.3543066964398,"d":"1,424.35"}},{"$f":"'Trial 2'!DO29","v":{"v":117.80673613885902,"d":"117.81"}},{"$f":"'Trial 2'!DP29","v":{"v":117.74086031287865,"d":"117.74"}},{"$f":"'Trial 2'!DQ29","v":{"v":117.54800935769457,"d":"117.55"}},{"$f":"'Trial 2'!DR29","v":{"v":117.43998840454334,"d":"117.44"}},{"$f":"'Trial 2'!DS29","v":{"v":117.31016851906274,"d":"117.31"}},{"$f":"'Trial 2'!DT29","v":{"v":117.15067569118567,"d":"117.15"}},{"$f":"'Trial 2'!DU29","v":{"v":117.05583887049116,"d":"117.06"}},{"$f":"'Trial 2'!DV29","v":{"v":116.98885873748571,"d":"116.99"}},{"$f":"'Trial 2'!DW29","v":{"v":116.91329245635832,"d":"116.91"}},{"$f":"'Trial 2'!DX29","v":{"v":116.74295237844329,"d":"116.74"}},{"$f":"'Trial 2'!DY29","v":{"v":116.6779278010663,"d":"116.68"}},{"$f":"'Trial 2'!DZ29","v":{"v":116.56675765472008,"d":"116.57"}},{"$f":"SUM('Trial 2'!DO29:DZ29)","v":{"v":1405.9420663227888,"d":"1,405.94"}},{"$f":"'Trial 2'!EB29","v":{"v":116.39709854265428,"d":"116.40"}},{"$f":"'Trial 2'!EC29","v":{"v":116.34334827265002,"d":"116.34"}},{"$f":"'Trial 2'!ED29","v":{"v":116.2656959072376,"d":"116.27"}},{"$f":"'Trial 2'!EE29","v":{"v":116.07190015937678,"d":"116.07"}},{"$f":"'Trial 2'!EF29","v":{"v":115.9627380857154,"d":"115.96"}},{"$f":"'Trial 2'!EG29","v":{"v":115.94039477746773,"d":"115.94"}},{"$f":"'Trial 2'!EH29","v":{"v":115.78181107314178,"d":"115.78"}},{"$f":"'Trial 2'!EI29","v":{"v":115.64154192410425,"d":"115.64"}},{"$f":"'Trial 2'!EJ29","v":{"v":115.48475545272916,"d":"115.48"}},{"$f":"'Trial 2'!EK29","v":{"v":115.40886543387718,"d":"115.41"}},{"$f":"'Trial 2'!EL29","v":{"v":115.28338979781743,"d":"115.28"}},{"$f":"'Trial 2'!EM29","v":{"v":115.22027588297858,"d":"115.22"}},{"$f":"SUM('Trial 2'!EB29:EM29)","v":{"v":1389.80181530975,"d":"1,389.80"}}]
[{"$f":"Labels!B98","v":"Trial 03"},{"$f":"'Trial 3'!B29","v":{"v":140,"d":"140.00"}},{"$f":"'Trial 3'!C29","v":{"v":139.5699624207603,"d":"139.57"}},{"$f":"'Trial 3'!D29","v":{"v":139.25073810577,"d":"139.25"}},{"$f":"'Trial 3'!E29","v":{"v":138.86925534986403,"d":"138.87"}},{"$f":"'Trial 3'!F29","v":{"v":138.61758696069765,"d":"138.62"}},{"$f":"'Trial 3'!G29","v":{"v":138.31843543155085,"d":"138.32"}},{"$f":"'Trial 3'!H29","v":{"v":138.06730884545374,"d":"138.07"}},{"$f":"'Trial 3'!I29","v":{"v":137.72879219857845,"d":"137.73"}},{"$f":"'Trial 3'!J29","v":{"v":137.4619974464176,"d":"137.46"}},{"$f":"'Trial 3'!K29","v":{"v":137.09161411654412,"d":"137.09"}},{"$f":"'Trial 3'!L29","v":{"v":136.80075876036156,"d":"136.80"}},{"$f":"'Trial 3'!M29","v":{"v":136.5496380226019,"d":"136.55"}},{"$f":"SUM('Trial 3'!B29:M29)","v":{"v":1658.3260876586003,"d":"1,658.33"}},{"$f":"'Trial 3'!O29","v":{"v":136.20802154357668,"d":"136.21"}},{"$f":"'Trial 3'!P29","v":{"v":135.9279848360006,"d":"135.93"}},{"$f":"'Trial 3'!Q29","v":{"v":135.61184205530984,"d":"135.61"}},{"$f":"'Trial 3'!R29","v":{"v":135.39128278162477,"d":"135.39"}},{"$f":"'Trial 3'!S29","v":{"v":135.14460820043047,"d":"135.14"}},{"$f":"'Trial 3'!T29","v":{"v":134.86059018124908,"d":"134.86"}},{"$f":"'Trial 3'!U29","v":{"v":134.56371487534878,"d":"134.56"}},{"$f":"'Trial 3'!V29","v":{"v":134.18143775851735,"d":"134.18"}},{"$f":"'Trial 3'!W29","v":{"v":133.86249324106834,"d":"133.86"}},{"$f":"'Trial 3'!X29","v":{"v":133.61361395341646,"d":"133.61"}},{"$f":"'Trial 3'!Y29","v":{"v":133.35340789191167,"d":"133.35"}},{"$f":"'Trial 3'!Z29","v":{"v":133.06447096524826,"d":"133.06"}},{"$f":"SUM('Trial 3'!O29:Z29)","v":{"v":1615.7834682837024,"d":"1,615.78"}},{"$f":"'Trial 3'!AB29","v":{"v":132.70691083416966,"d":"132.71"}},{"$f":"'Trial 3'!AC29","v":{"v":132.51646123017755,"d":"132.52"}},{"$f":"'Trial 3'!AD29","v":{"v":132.22600731421747,"d":"132.23"}},{"$f":"'Trial 3'!AE29","v":{"v":131.9155832479519,"d":"131.92"}},{"$f":"'Trial 3'!AF29","v":{"v":131.71129579013302,"d":"131.71"}},{"$f":"'Trial 3'!AG29","v":{"v":131.36692035197424,"d":"131.37"}},{"$f":"'Trial 3'!AH29","v":{"v":131.16347780122157,"d":"131.16"}},{"$f":"'Trial 3'!AI29","v":{"v":130.93261252726384,"d":"130.93"}},{"$f":"'Trial 3'!AJ29","v":{"v":130.65132384103703,"d":"130.65"}},{"$f":"'Trial 3'!AK29","v":{"v":130.44695100349327,"d":"130.45"}},{"$f":"'Trial 3'!AL29","v":{"v":130.22276639819867,"d":"130.22"}},{"$f":"'Trial 3'!AM29","v":{"v":129.9690232618757,"d":"129.97"}},{"$f":"SUM('Trial 3'!AB29:AM29)","v":{"v":1575.829333601714,"d":"1,575.83"}},{"$f":"'Trial 3'!AO29","v":{"v":129.71303616964505,"d":"129.71"}},{"$f":"'Trial 3'!AP29","v":{"v":129.5352527901005,"d":"129.54"}},{"$f":"'Trial 3'!AQ29","v":{"v":129.37073391512615,"d":"129.37"}},{"$f":"'Trial 3'!AR29","v":{"v":129.06942560588428,"d":"129.07"}},{"$f":"'Trial 3'!AS29","v":{"v":128.83407829856858,"d":"128.83"}},{"$f":"'Trial 3'!AT29","v":{"v":128.66018702326045,"d":"128.66"}},{"$f":"'Trial 3'!AU29","v":{"v":128.41754176112403,"d":"128.42"}},{"$f":"'Trial 3'!AV29","v":{"v":128.15356406978614,"d":"128.15"}},{"$f":"'Trial 3'!AW29","v":{"v":127.9627528876453,"d":"127.96"}},{"$f":"'Trial 3'!AX29","v":{"v":127.7003625098221,"d":"127.70"}},{"$f":"'Trial 3'!AY29","v":{"v":127.55503438530255,"d":"127.56"}},{"$f":"'Trial 3'!AZ29","v":{"v":127.2971187897228,"d":"127.30"}},{"$f":"SUM('Trial 3'!AO29:AZ29)","v":{"v":1542.269088205988,"d":"1,542.27"}},{"$f":"'Trial 3'!BB29","v":{"v":127.01507461935357,"d":"127.02"}},{"$f":"'Trial 3'!BC29","v":{"v":126.7968779349982,"d":"126.80"}},{"$f":"'Trial 3'!BD29","v":{"v":126.51911983060461,"d":"126.52"}},{"$f":"'Trial 3'!BE29","v":{"v":126.37000860489708,"d":"126.37"}},{"$f":"'Trial 3'!BF29","v":{"v":126.08052971355006,"d":"126.08"}},{"$f":"'Trial 3'!BG29","v":{"v":125.91037909915438,"d":"125.91"}},{"$f":"'Trial 3'!BH29","v":{"v":125.62455416141356,"d":"125.62"}},{"$f":"'Trial 3'!BI29","v":{"v":125.38788801921417,"d":"125.39"}},{"$f":"'Trial 3'!BJ29","v":{"v":125.21748008663356,"d":"125.22"}},{"$f":"'Trial 3'!BK29","v":{"v":125.03784030441547,"d":"125.04"}},{"$f":"'Trial 3'!BL29","v":{"v":124.83785485241407,"d":"124.84"}},{"$f":"'Trial 3'!BM29","v":{"v":124.70011827010092,"d":"124.70"}},{"$f":"SUM('Trial 3'!BB29:BM29)","v":{"v":1509.4977254967498,"d":"1,509.50"}},{"$f":"'Trial 3'!BO29","v":{"v":124.51827828952234,"d":"124.52"}},{"$f":"'Trial 3'!BP29","v":{"v":124.34024811119507,"d":"124.34"}},{"$f":"'Trial 3'!BQ29","v":{"v":124.18978113993967,"d":"124.19"}},{"$f":"'Trial 3'!BR29","v":{"v":123.96698453459621,"d":"123.97"}},{"$f":"'Trial 3'!BS29","v":{"v":123.80318522904265,"d":"123.80"}},{"$f":"'Trial 3'!BT29","v":{"v":123.6754085543594,"d":"123.68"}},{"$f":"'Trial 3'!BU29","v":{"v":123.49149064062988,"d":"123.49"}},{"$f":"'Trial 3'!BV29","v":{"v":123.30104384198613,"d":"123.30"}},{"$f":"'Trial 3'!BW29","v":{"v":123.09217632281829,"d":"123.09"}},{"$f":"'Trial 3'!BX29","v":{"v":122.95565459494509,"d":"122.96"}},{"$f":"'Trial 3'!BY29","v":{"v":122.73340099413063,"d":"122.73"}},{"$f":"'Trial 3'!BZ29","v":{"v":122.64346801089063,"d":"122.64"}},{"$f":"SUM('Trial 3'!BO29:BZ29)","v":{"v":1482.711120264056,"d":"1,482.71"}},{"$f":"'Trial 3'!CB29","v":{"v":122.46716210088027,"d":"122.47"}},{"$f":"'Trial 3'!CC29","v":{"v":122.33971115301574,"d":"122.34"}},{"$f":"'Trial 3'!CD29","v":{"v":122.17295315008245,"d":"122.17"}},{"$f":"'Trial 3'!CE29","v":{"v":122.02514924754729,"d":"122.03"}},{"$f":"'Trial 3'!CF29","v":{"v":121.88097318863363,"d":"121.88"}},{"$f":"'Trial 3'!CG29","v":{"v":121.73230956226506,"d":"121.73"}},{"$f":"'Trial 3'!CH29","v":{"v":121.62613528476814,"d":"121.63"}},{"$f":"'Trial 3'!CI29","v":{"v":121.52764705157377,"d":"121.53"}},{"$f":"'Trial 3'!CJ29","v":{"v":121.44933058742356,"d":"121.45"}},{"$f":"'Trial 3'!CK29","v":{"v":121.29306212932832,"d":"121.29"}},{"$f":"'Trial 3'!CL29","v":{"v":121.18069634671922,"d":"121.18"}},{"$f":"'Trial 3'!CM29","v":{"v":121.09067517178241,"d":"121.09"}},{"$f":"SUM('Trial 3'!CB29:CM29)","v":{"v":1460.7858049740198,"d":"1,460.79"}},{"$f":"'Trial 3'!CO29","v":{"v":121.02530507865882,"d":"121.03"}},{"$f":"'Trial 3'!CP29","v":{"v":120.82464898014457,"d":"120.82"}},{"$f":"'Trial 3'!CQ29","v":{"v":120.70936539177336,"d":"120.71"}},{"$f":"'Trial 3'!CR29","v":{"v":120.54743678032092,"d":"120.55"}},{"$f":"'Trial 3'!CS29","v":{"v":120.42520237137568,"d":"120.43"}},{"$f":"'Trial 3'!CT29","v":{"v":120.2800221582876,"d":"120.28"}},{"$f":"'Trial 3'!CU29","v":{"v":120.15501059437581,"d":"120.16"}},{"$f":"'Trial 3'!CV29","v":{"v":120.05141494047344,"d":"120.05"}},{"$f":"'Trial 3'!CW29","v":{"v":119.92216140519535,"d":"119.92"}},{"$f":"'Trial 3'!CX29","v":{"v":119.74032686400741,"d":"119.74"}},{"$f":"'Trial 3'!CY29","v":{"v":119.67777356655019,"d":"119.68"}},{"$f":"'Trial 3'!CZ29","v":{"v":119.50948649559302,"d":"119.51"}},{"$f":"SUM('Trial 3'!CO29:CZ29)","v":{"v":1442.8681546267562,"d":"1,442.87"}},{"$f":"'Trial 3'!DB29","v":{"v":119.42650584482044,"d":"119.43"}},{"$f":"'Trial 3'!DC29","v":{"v":119.24099647859849,"d":"119.24"}},{"$f":"'Trial 3'!DD29","v":{"v":119.01990506792771,"d":"119.02"}},{"$f":"'Trial 3'!DE29","v":{"v":118.88647569842902,"d":"118.89"}},{"$f":"'Trial 3'!DF29","v":{"v":118.78184745317012,"d":"118.78"}},{"$f":"'Trial 3'!DG29","v":{"v":118.66644800070236,"d":"118.67"}},{"$f":"'Trial 3'!DH29","v":{"v":118.57181652576824,"d":"118.57"}},{"$f":"'Trial 3'!DI29","v":{"v":118.46916286252615,"d":"118.47"}},{"$f":"'Trial 3'!DJ29","v":{"v":118.35038589205125,"d":"118.35"}},{"$f":"'Trial 3'!DK29","v":{"v":118.21206349350702,"d":"118.21"}},{"$f":"'Trial 3'!DL29","v":{"v":118.11146802296844,"d":"118.11"}},{"$f":"'Trial 3'!DM29","v":{"v":118.02739645096533,"d":"118.03"}},{"$f":"SUM('Trial 3'!DB29:DM29)","v":{"v":1423.7644717914345,"d":"1,423.76"}},{"$f":"'Trial 3'!DO29","v":{"v":117.92609400457523,"d":"117.93"}},{"$f":"'Trial 3'!DP29","v":{"v":117.83624075560486,"d":"117.84"}},{"$f":"'Trial 3'!DQ29","v":{"v":117.75262687634373,"d":"117.75"}},{"$f":"'Trial 3'!DR29","v":{"v":117.73558069085209,"d":"117.74"}},{"$f":"'Trial 3'!DS29","v":{"v":117.53448768847394,"d":"117.53"}},{"$f":"'Trial 3'!DT29","v":{"v":117.39398444023324,"d":"117.39"}},{"$f":"'Trial 3'!DU29","v":{"v":117.32352319634494,"d":"117.32"}},{"$f":"'Trial 3'!DV29","v":{"v":117.20410214130357,"d":"117.20"}},{"$f":"'Trial 3'!DW29","v":{"v":117.13609311341214,"d":"117.14"}},{"$f":"'Trial 3'!DX29","v":{"v":117.08969556507762,"d":"117.09"}},{"$f":"'Trial 3'!DY29","v":{"v":116.9698090260217,"d":"116.97"}},{"$f":"'Trial 3'!DZ29","v":{"v":116.83405343735082,"d":"116.83"}},{"$f":"SUM('Trial 3'!DO29:DZ29)","v":{"v":1408.7362909355938,"d":"1,408.74"}},{"$f":"'Trial 3'!EB29","v":{"v":116.67119024628236,"d":"116.67"}},{"$f":"'Trial 3'!EC29","v":{"v":116.56385409098856,"d":"116.56"}},{"$f":"'Trial 3'!ED29","v":{"v":116.43720893545236,"d":"116.44"}},{"$f":"'Trial 3'!EE29","v":{"v":116.35000385634618,"d":"116.35"}},{"$f":"'Trial 3'!EF29","v":{"v":116.26343002784154,"d":"116.26"}},{"$f":"'Trial 3'!EG29","v":{"v":116.1553109284859,"d":"116.16"}},{"$f":"'Trial 3'!EH29","v":{"v":116.04862974708844,"d":"116.05"}},{"$f":"'Trial 3'!EI29","v":{"v":115.9919726213101,"d":"115.99"}},{"$f":"'Trial 3'!EJ29","v":{"v":115.8241228812579,"d":"115.82"}},{"$f":"'Trial 3'!EK29","v":{"v":115.63822296275197,"d":"115.64"}},{"$f":"'Trial 3'!EL29","v":{"v":115.60800195639577,"d":"115.61"}},{"$f":"'Trial 3'!EM29","v":{"v":115.54465612476373,"d":"115.54"}},{"$f":"SUM('Trial 3'!EB29:EM29)","v":{"v":1393.0966043789651,"d":"1,393.10"}}]
[{"$f":"Labels!B99","v":"Trial 04"},{"$f":"'Trial 4'!B29","v":{"v":140,"d":"140.00"}},{"$f":"'Trial 4'!C29","v":{"v":139.63744425597147,"d":"139.64"}},{"$f":"'Trial 4'!D29","v":{"v":139.2666814370156,"d":"139.27"}},{"$f":"'Trial 4'!E29","v":{"v":138.8982258384326,"d":"138.90"}},{"$f":"'Trial 4'!F29","v":{"v":138.6027011401314,"d":"138.60"}},{"$f":"'Trial 4'!G29","v":{"v":138.34269219662775,"d":"138.34"}},{"$f":"'Trial 4'!H29","v":{"v":138.1145653409998,"d":"138.11"}},{"$f":"'Trial 4'!I29","v":{"v":137.72345439051654,"d":"137.72"}},{"$f":"'Trial 4'!J29","v":{"v":137.34032378740008,"d":"137.34"}},{"$f":"'Trial 4'!K29","v":{"v":137.01712971561565,"d":"137.02"}},{"$f":"'Trial 4'!L29","v":{"v":136.69822712134007,"d":"136.70"}},{"$f":"'Trial 4'!M29","v":{"v":136.39780394368591,"d":"136.40"}},{"$f":"SUM('Trial 4'!B29:M29)","v":{"v":1658.039249167737,"d":"1,658.04"}},{"$f":"'Trial 4'!O29","v":{"v":136.02008780422665,"d":"136.02"}},{"$f":"'Trial 4'!P29","v":{"v":135.7277338947841,"d":"135.73"}},{"$f":"'Trial 4'!Q29","v":{"v":135.4593670267969,"d":"135.46"}},{"$f":"'Trial 4'!R29","v":{"v":135.24309211901755,"d":"135.24"}},{"$f":"'Trial 4'!S29","v":{"v":134.95972936052453,"d":"134.96"}},{"$f":"'Trial 4'!T29","v":{"v":134.58297406867263,"d":"134.58"}},{"$f":"'Trial 4'!U29","v":{"v":134.27763543742503,"d":"134.28"}},{"$f":"'Trial 4'!V29","v":{"v":134.00774959348368,"d":"134.01"}},{"$f":"'Trial 4'!W29","v":{"v":133.72894799721738,"d":"133.73"}},{"$f":"'Trial 4'!X29","v":{"v":133.56144702890984,"d":"133.56"}},{"$f":"'Trial 4'!Y29","v":{"v":133.2838341792629,"d":"133.28"}},{"$f":"'Trial 4'!Z29","v":{"v":132.9335957863944,"d":"132.93"}},{"$f":"SUM('Trial 4'!O29:Z29)","v":{"v":1613.7861942967154,"d":"1,613.79"}},{"$f":"'Trial 4'!AB29","v":{"v":132.62284550378416,"d":"132.62"}},{"$f":"'Trial 4'!AC29","v":{"v":132.32827723070073,"d":"132.33"}},{"$f":"'Trial 4'!AD29","v":{"v":132.08826292536392,"d":"132.09"}},{"$f":"'Trial 4'!AE29","v":{"v":131.81385474297613,"d":"131.81"}},{"$f":"'Trial 4'!AF29","v":{"v":131.4930220461761,"d":"131.49"}},{"$f":"'Trial 4'!AG29","v":{"v":131.21536520468368,"d":"131.22"}},{"$f":"'Trial 4'!AH29","v":{"v":131.0469629342708,"d":"131.05"}},{"$f":"'Trial 4'!AI29","v":{"v":130.80484271370247,"d":"130.80"}},{"$f":"'Trial 4'!AJ29","v":{"v":130.56449047407963,"d":"130.56"}},{"$f":"'Trial 4'!AK29","v":{"v":130.29652955662016,"d":"130.30"}},{"$f":"'Trial 4'!AL29","v":{"v":130.12618935226806,"d":"130.13"}},{"$f":"'Trial 4'!AM29","v":{"v":129.87386017515428,"d":"129.87"}},{"$f":"SUM('Trial 4'!AB29:AM29)","v":{"v":1574.27450285978,"d":"1,574.27"}},{"$f":"'Trial 4'!AO29","v":{"v":129.5470717691448,"d":"129.55"}},{"$f":"'Trial 4'!AP29","v":{"v":129.32084426058128,"d":"129.32"}},{"$f":"'Trial 4'!AQ29","v":{"v":129.09206065629843,"d":"129.09"}},{"$f":"'Trial 4'!AR29","v":{"v":128.85427208309173,"d":"128.85"}},{"$f":"'Trial 4'!AS29","v":{"v":128.57740887749483,"d":"128.58"}},{"$f":"'Trial 4'!AT29","v":{"v":128.38036230532956,"d":"128.38"}},{"$f":"'Trial 4'!AU29","v":{"v":128.2175773783721,"d":"128.22"}},{"$f":"'Trial 4'!AV29","v":{"v":128.02643956145732,"d":"128.03"}},{"$f":"'Trial 4'!AW29","v":{"v":127.81118689703547,"d":"127.81"}},{"$f":"'Trial 4'!AX29","v":{"v":127.63364054110791,"d":"127.63"}},{"$f":"'Trial 4'!AY29","v":{"v":127.37354161407683,"d":"127.37"}},{"$f":"'Trial 4'!AZ29","v":{"v":127.12413683096439,"d":"127.12"}},{"$f":"SUM('Trial 4'!AO29:AZ29)","v":{"v":1539.9585427749546,"d":"1,539.96"}},{"$f":"'Trial 4'!BB29","v":{"v":126.8380617579347,"d":"126.84"}},{"$f":"'Trial 4'!BC29","v":{"v":126.7345683221107,"d":"126.73"}},{"$f":"'Trial 4'!BD29","v":{"v":126.62850134198769,"d":"126.63"}},{"$f":"'Trial 4'!BE29","v":{"v":126.37745182874605,"d":"126.38"}},{"$f":"'Trial 4'!BF29","v":{"v":126.18253475095622,"d":"126.18"}},{"$f":"'Trial 4'!BG29","v":{"v":125.93978820396107,"d":"125.94"}},{"$f":"'Trial 4'!BH29","v":{"v":125.78490475864369,"d":"125.78"}},{"$f":"'Trial 4'!BI29","v":{"v":125.5499387849599,"d":"125.55"}},{"$f":"'Trial 4'!BJ29","v":{"v":125.36678404142278,"d":"125.37"}},{"$f":"'Trial 4'!BK29","v":{"v":125.08550019346399,"d":"125.09"}},{"$f":"'Trial 4'!BL29","v":{"v":124.95422482335042,"d":"124.95"}},{"$f":"'Trial 4'!BM29","v":{"v":124.79850383389999,"d":"124.80"}},{"$f":"SUM('Trial 4'!BB29:BM29)","v":{"v":1510.2407626414372,"d":"1,510.24"}},{"$f":"'Trial 4'!BO29","v":{"v":124.66478205335699,"d":"124.66"}},{"$f":"'Trial 4'!BP29","v":{"v":124.52559432895768,"d":"124.53"}},{"$f":"'Trial 4'!BQ29","v":{"v":124.3908060586858,"d":"124.39"}},{"$f":"'Trial 4'!BR29","v":{"v":124.17828224024652,"d":"124.18"}},{"$f":"'Trial 4'!BS29","v":{"v":124.01691529653343,"d":"124.02"}},{"$f":"'Trial 4'!BT29","v":{"v":123.78390546681769,"d":"123.78"}},{"$f":"'Trial 4'!BU29","v":{"v":123.64656365144889,"d":"123.65"}},{"$f":"'Trial 4'!BV29","v":{"v":123.45562625659801,"d":"123.46"}},{"$f":"'Trial 4'!BW29","v":{"v":123.24621910360852,"d":"123.25"}},{"$f":"'Trial 4'!BX29","v":{"v":123.02040623464701,"d":"123.02"}},{"$f":"'Trial 4'!BY29","v":{"v":122.90220436305565,"d":"122.90"}},{"$f":"'Trial 4'!BZ29","v":{"v":122.7309005638735,"d":"122.73"}},{"$f":"SUM('Trial 4'!BO29:BZ29)","v":{"v":1484.56220561783,"d":"1,484.56"}},{"$f":"'Trial 4'!CB29","v":{"v":122.59991838737899,"d":"122.60"}},{"$f":"'Trial 4'!CC29","v":{"v":122.39316127087027,"d":"122.39"}},{"$f":"'Trial 4'!CD29","v":{"v":122.26216764334845,"d":"122.26"}},{"$f":"'Trial 4'!CE29","v":{"v":122.07704783040631,"d":"122.08"}},{"$f":"'Trial 4'!CF29","v":{"v":121.90505954174974,"d":"121.91"}},{"$f":"'Trial 4'!CG29","v":{"v":121.76137474787869,"d":"121.76"}},{"$f":"'Trial 4'!CH29","v":{"v":121.58807969695609,"d":"121.59"}},{"$f":"'Trial 4'!CI29","v":{"v":121.5421233403724,"d":"121.54"}},{"$f":"'Trial 4'!CJ29","v":{"v":121.44748887446437,"d":"121.45"}},{"$f":"'Trial 4'!CK29","v":{"v":121.29235195147747,"d":"121.29"}},{"$f":"'Trial 4'!CL29","v":{"v":121.20358517465439,"d":"121.20"}},{"$f":"'Trial 4'!CM29","v":{"v":121.07033718338573,"d":"121.07"}},{"$f":"SUM('Trial 4'!CB29:CM29)","v":{"v":1461.1426956429427,"d":"1,461.14"}},{"$f":"'Trial 4'!CO29","v":{"v":120.88844836595136,"d":"120.89"}},{"$f":"'Trial 4'!CP29","v":{"v":120.79723043779748,"d":"120.80"}},{"$f":"'Trial 4'!CQ29","v":{"v":120.69115386158413,"d":"120.69"}},{"$f":"'Trial 4'!CR29","v":{"v":120.6012596126076,"d":"120.60"}},{"$f":"'Trial 4'!CS29","v":{"v":120.46556912107948,"d":"120.47"}},{"$f":"'Trial 4'!CT29","v":{"v":120.28390202241644,"d":"120.28"}},{"$f":"'Trial 4'!CU29","v":{"v":120.06440503535434,"d":"120.06"}},{"$f":"'Trial 4'!CV29","v":{"v":120.01866589662008,"d":"120.02"}},{"$f":"'Trial 4'!CW29","v":{"v":119.91105191171374,"d":"119.91"}},{"$f":"'Trial 4'!CX29","v":{"v":119.79909980706114,"d":"119.80"}},{"$f":"'Trial 4'!CY29","v":{"v":119.58375867529536,"d":"119.58"}},{"$f":"'Trial 4'!CZ29","v":{"v":119.48810013559442,"d":"119.49"}},{"$f":"SUM('Trial 4'!CO29:CZ29)","v":{"v":1442.5926448830753,"d":"1,442.59"}},{"$f":"'Trial 4'!DB29","v":{"v":119.428663573882,"d":"119.43"}},{"$f":"'Trial 4'!DC29","v":{"v":119.26202133232617,"d":"119.26"}},{"$f":"'Trial 4'!DD29","v":{"v":119.06880056034002,"d":"119.07"}},{"$f":"'Trial 4'!DE29","v":{"v":118.97765428646272,"d":"118.98"}},{"$f":"'Trial 4'!DF29","v":{"v":118.88748173013406,"d":"118.89"}},{"$f":"'Trial 4'!DG29","v":{"v":118.77097096090023,"d":"118.77"}},{"$f":"'Trial 4'!DH29","v":{"v":118.66952447470027,"d":"118.67"}},{"$f":"'Trial 4'!DI29","v":{"v":118.48183836073183,"d":"118.48"}},{"$f":"'Trial 4'!DJ29","v":{"v":118.40282886406249,"d":"118.40"}},{"$f":"'Trial 4'!DK29","v":{"v":118.25066211615561,"d":"118.25"}},{"$f":"'Trial 4'!DL29","v":{"v":118.16421598312415,"d":"118.16"}},{"$f":"'Trial 4'!DM29","v":{"v":118.06107737744578,"d":"118.06"}},{"$f":"SUM('Trial 4'!DB29:DM29)","v":{"v":1424.4257396202652,"d":"1,424.43"}},{"$f":"'Trial 4'!DO29","v":{"v":117.91595026884211,"d":"117.92"}},{"$f":"'Trial 4'!DP29","v":{"v":117.8741377168922,"d":"117.87"}},{"$f":"'Trial 4'!DQ29","v":{"v":117.8547490681079,"d":"117.85"}},{"$f":"'Trial 4'!DR29","v":{"v":117.68588626027784,"d":"117.69"}},{"$f":"'Trial 4'!DS29","v":{"v":117.65138706936453,"d":"117.65"}},{"$f":"'Trial 4'!DT29","v":{"v":117.62680108345697,"d":"117.63"}},{"$f":"'Trial 4'!DU29","v":{"v":117.5572731671511,"d":"117.56"}},{"$f":"'Trial 4'!DV29","v":{"v":117.41286754200496,"d":"117.41"}},{"$f":"'Trial 4'!DW29","v":{"v":117.28602148936625,"d":"117.29"}},{"$f":"'Trial 4'!DX29","v":{"v":117.07245928277375,"d":"117.07"}},{"$f":"'Trial 4'!DY29","v":{"v":117.03043798029707,"d":"117.03"}},{"$f":"'Trial 4'!DZ29","v":{"v":116.97557520601103,"d":"116.98"}},{"$f":"SUM('Trial 4'!DO29:DZ29)","v":{"v":1409.9435461345456,"d":"1,409.94"}},{"$f":"'Trial 4'!EB29","v":{"v":116.94443059832132,"d":"116.94"}},{"$f":"'Trial 4'!EC29","v":{"v":116.82555307070041,"d":"116.83"}},{"$f":"'Trial 4'!ED29","v":{"v":116.6100917367113,"d":"116.61"}},{"$f":"'Trial 4'!EE29","v":{"v":116.481579452777,"d":"116.48"}},{"$f":"'Trial 4'!EF29","v":{"v":116.43705084596576,"d":"116.44"}},{"$f":"'Trial 4'!EG29","v":{"v":116.41163470019725,"d":"116.41"}},{"$f":"'Trial 4'!EH29","v":{"v":116.27950840053184,"d":"116.28"}},{"$f":"'Trial 4'!EI29","v":{"v":116.20991728403888,"d":"116.21"}},{"$f":"'Trial 4'!EJ29","v":{"v":116.01868689298765,"d":"116.02"}},{"$f":"'Trial 4'!EK29","v":{"v":115.82867243072913,"d":"115.83"}},{"$f":"'Trial 4'!EL29","v":{"v":115.7783273463551,"d":"115.78"}},{"$f":"'Trial 4'!EM29","v":{"v":115.61410885565385,"d":"115.61"}},{"$f":"SUM('Trial 4'!EB29:EM29)","v":{"v":1395.4395616149695,"d":"1,395.44"}}]
[{"$f":"Labels!B100","v":"Trial 05"},{"$f":"'Trial 5'!B29","v":{"v":140,"d":"140.00"}},{"$f":"'Trial 5'!C29","v":{"v":139.59511963667305,"d":"139.60"}},{"$f":"'Trial 5'!D29","v":{"v":139.2119796126544,"d":"139.21"}},{"$f":"'Trial 5'!E29","v":{"v":138.9450554138482,"d":"138.95"}},{"$f":"'Trial 5'!F29","v":{"v":138.53152030819177,"d":"138.53"}},{"$f":"'Trial 5'!G29","v":{"v":138.17540639431988,"d":"138.18"}},{"$f":"'Trial 5'!H29","v":{"v":137.81589533938535,"d":"137.82"}},{"$f":"'Trial 5'!I29","v":{"v":137.49767003535777,"d":"137.50"}},{"$f":"'Trial 5'!J29","v":{"v":137.2190673164628,"d":"137.22"}},{"$f":"'Trial 5'!K29","v":{"v":137.0111880072624,"d":"137.01"}},{"$f":"'Trial 5'!L29","v":{"v":136.65883830561734,"d":"136.66"}},{"$f":"'Trial 5'!M29","v":{"v":136.32080548423932,"d":"136.32"}},{"$f":"SUM('Trial 5'!B29:M29)","v":{"v":1656.9825458540124,"d":"1,656.98"}},{"$f":"'Trial 5'!O29","v":{"v":136.0206789528722,"d":"136.02"}},{"$f":"'Trial 5'!P29","v":{"v":135.70846277342665,"d":"135.71"}},{"$f":"'Trial 5'!Q29","v":{"v":135.42327935730174,"d":"135.42"}},{"$f":"'Trial 5'!R29","v":{"v":135.12091323802326,"d":"135.12"}},{"$f":"'Trial 5'!S29","v":{"v":134.8474474852604,"d":"134.85"}},{"$f":"'Trial 5'!T29","v":{"v":134.49613687411946,"d":"134.50"}},{"$f":"'Trial 5'!U29","v":{"v":134.3176452084273,"d":"134.32"}},{"$f":"'Trial 5'!V29","v":{"v":134.06468238770475,"d":"134.06"}},{"$f":"'Trial 5'!W29","v":{"v":133.78430501013503,"d":"133.78"}},{"$f":"'Trial 5'!X29","v":{"v":133.52841199944987,"d":"133.53"}},{"$f":"'Trial 5'!Y29","v":{"v":133.20308400916227,"d":"133.20"}},{"$f":"'Trial 5'!Z29","v":{"v":133.03265856962022,"d":"133.03"}},{"$f":"SUM('Trial 5'!O29:Z29)","v":{"v":1613.5477058655033,"d":"1,613.55"}},{"$f":"'Trial 5'!AB29","v":{"v":132.7467440641378,"d":"132.75"}},{"$f":"'Trial 5'!AC29","v":{"v":132.51505956556468,"d":"132.52"}},{"$f":"'Trial 5'!AD29","v":{"v":132.25741885410767,"d":"132.26"}},{"$f":"'Trial 5'!AE29","v":{"v":132.08901496592196,"d":"132.09"}},{"$f":"'Trial 5'!AF29","v":{"v":131.74000130608297,"d":"131.74"}},{"$f":"'Trial 5'!AG29","v":{"v":131.41165202028495,"d":"131.41"}},{"$f":"'Trial 5'!AH29","v":{"v":131.139338520623,"d":"131.14"}},{"$f":"'Trial 5'!AI29","v":{"v":130.92059030302,"d":"130.92"}},{"$f":"'Trial 5'!AJ29","v":{"v":130.62404615186435,"d":"130.62"}},{"$f":"'Trial 5'!AK29","v":{"v":130.40044092067308,"d":"130.40"}},{"$f":"'Trial 5'!AL29","v":{"v":130.10730853628596,"d":"130.11"}},{"$f":"'Trial 5'!AM29","v":{"v":129.86132362595973,"d":"129.86"}},{"$f":"SUM('Trial 5'!AB29:AM29)","v":{"v":1575.812938834526,"d":"1,575.81"}},{"$f":"'Trial 5'!AO29","v":{"v":129.58033040960026,"d":"129.58"}},{"$f":"'Trial 5'!AP29","v":{"v":129.35553417810644,"d":"129.36"}},{"$f":"'Trial 5'!AQ29","v":{"v":129.1386976497442,"d":"129.14"}},{"$f":"'Trial 5'!AR29","v":{"v":128.89711934129355,"d":"128.90"}},{"$f":"'Trial 5'!AS29","v":{"v":128.7048426837667,"d":"128.70"}},{"$f":"'Trial 5'!AT29","v":{"v":128.52401429077298,"d":"128.52"}},{"$f":"'Trial 5'!AU29","v":{"v":128.28118740498667,"d":"128.28"}},{"$f":"'Trial 5'!AV29","v":{"v":128.09029320345422,"d":"128.09"}},{"$f":"'Trial 5'!AW29","v":{"v":127.88481936996288,"d":"127.88"}},{"$f":"'Trial 5'!AX29","v":{"v":127.6628546681045,"d":"127.66"}},{"$f":"'Trial 5'!AY29","v":{"v":127.44398815125045,"d":"127.44"}},{"$f":"'Trial 5'!AZ29","v":{"v":127.25470729272905,"d":"127.25"}},{"$f":"SUM('Trial 5'!AO29:AZ29)","v":{"v":1540.818388643772,"d":"1,540.82"}},{"$f":"'Trial 5'!BB29","v":{"v":127.04101109043255,"d":"127.04"}},{"$f":"'Trial 5'!BC29","v":{"v":126.8051051964692,"d":"126.81"}},{"$f":"'Trial 5'!BD29","v":{"v":126.53901801610432,"d":"126.54"}},{"$f":"'Trial 5'!BE29","v":{"v":126.24822418978371,"d":"126.25"}},{"$f":"'Trial 5'!BF29","v":{"v":126.08289535002272,"d":"126.08"}},{"$f":"'Trial 5'!BG29","v":{"v":125.86663833509732,"d":"125.87"}},{"$f":"'Trial 5'!BH29","v":{"v":125.69308420069869,"d":"125.69"}},{"$f":"'Trial 5'!BI29","v":{"v":125.4347525422096,"d":"125.43"}},{"$f":"'Trial 5'!BJ29","v":{"v":125.26811388714742,"d":"125.27"}},{"$f":"'Trial 5'!BK29","v":{"v":125.15172737635947,"d":"125.15"}},{"$f":"'Trial 5'!BL29","v":{"v":124.99345177289348,"d":"124.99"}},{"$f":"'Trial 5'!BM29","v":{"v":124.88107379090238,"d":"124.88"}},{"$f":"SUM('Trial 5'!BB29:BM29)","v":{"v":1510.0050957481208,"d":"1,510.01"}},{"$f":"'Trial 5'!BO29","v":{"v":124.71908064481418,"d":"124.72"}},{"$f":"'Trial 5'!BP29","v":{"v":124.60609837053198,"d":"124.61"}},{"$f":"'Trial 5'!BQ29","v":{"v":124.52253958391817,"d":"124.52"}},{"$f":"'Trial 5'!BR29","v":{"v":124.43575101943304,"d":"124.44"}},{"$f":"'Trial 5'!BS29","v":{"v":124.19912493677305,"d":"124.20"}},{"$f":"'Trial 5'!BT29","v":{"v":124.02713056198441,"d":"124.03"}},{"$f":"'Trial 5'!BU29","v":{"v":123.95225620874979,"d":"123.95"}},{"$f":"'Trial 5'!BV29","v":{"v":123.72490834172845,"d":"123.72"}},{"$f":"'Trial 5'!BW29","v":{"v":123.54621239187036,"d":"123.55"}},{"$f":"'Trial 5'!BX29","v":{"v":123.38934851929054,"d":"123.39"}},{"$f":"'Trial 5'!BY29","v":{"v":123.29896806594357,"d":"123.30"}},{"$f":"'Trial 5'!BZ29","v":{"v":123.21538647743014,"d":"123.22"}},{"$f":"SUM('Trial 5'!BO29:BZ29)","v":{"v":1487.6368051224679,"d":"1,487.64"}},{"$f":"'Trial 5'!CB29","v":{"v":123.11089121856776,"d":"123.11"}},{"$f":"'Trial 5'!CC29","v":{"v":122.93989184018119,"d":"122.94"}},{"$f":"'Trial 5'!CD29","v":{"v":122.78266689038682,"d":"122.78"}},{"$f":"'Trial 5'!CE29","v":{"v":122.61635185096162,"d":"122.62"}},{"$f":"'Trial 5'!CF29","v":{"v":122.42564173968587,"d":"122.43"}},{"$f":"'Trial 5'!CG29","v":{"v":122.28046796987381,"d":"122.28"}},{"$f":"'Trial 5'!CH29","v":{"v":122.22422831711827,"d":"122.22"}},{"$f":"'Trial 5'!CI29","v":{"v":122.03202509172931,"d":"122.03"}},{"$f":"'Trial 5'!CJ29","v":{"v":121.83113627574525,"d":"121.83"}},{"$f":"'Trial 5'!CK29","v":{"v":121.69886398801113,"d":"121.70"}},{"$f":"'Trial 5'!CL29","v":{"v":121.6412283856651,"d":"121.64"}},{"$f":"'Trial 5'!CM29","v":{"v":121.43923370496167,"d":"121.44"}},{"$f":"SUM('Trial 5'!CB29:CM29)","v":{"v":1467.0226272728878,"d":"1,467.02"}},{"$f":"'Trial 5'!CO29","v":{"v":121.32089358281132,"d":"121.32"}},{"$f":"'Trial 5'!CP29","v":{"v":121.19806964554556,"d":"121.20"}},{"$f":"'Trial 5'!CQ29","v":{"v":120.9990385237266,"d":"121.00"}},{"$f":"'Trial 5'!CR29","v":{"v":120.93417329167526,"d":"120.93"}},{"$f":"'Trial 5'!CS29","v":{"v":120.74826366271867,"d":"120.75"}},{"$f":"'Trial 5'!CT29","v":{"v":120.58036273548517,"d":"120.58"}},{"$f":"'Trial 5'!CU29","v":{"v":120.46887671621103,"d":"120.47"}},{"$f":"'Trial 5'!CV29","v":{"v":120.3423713814308,"d":"120.34"}},{"$f":"'Trial 5'!CW29","v":{"v":120.18887570180593,"d":"120.19"}},{"$f":"'Trial 5'!CX29","v":{"v":120.10356245072244,"d":"120.10"}},{"$f":"'Trial 5'!CY29","v":{"v":119.94228193617252,"d":"119.94"}},{"$f":"'Trial 5'!CZ29","v":{"v":119.80324294228069,"d":"119.80"}},{"$f":"SUM('Trial 5'!CO29:CZ29)","v":{"v":1446.6300125705861,"d":"1,446.63"}},{"$f":"'Trial 5'!DB29","v":{"v":119.58538220560253,"d":"119.59"}},{"$f":"'Trial 5'!DC29","v":{"v":119.48573908184845,"d":"119.49"}},{"$f":"'Trial 5'!DD29","v":{"v":119.35791543500711,"d":"119.36"}},{"$f":"'Trial 5'!DE29","v":{"v":119.24513909499093,"d":"119.25"}},{"$f":"'Trial 5'!DF29","v":{"v":119.0797736833529,"d":"119.08"}},{"$f":"'Trial 5'!DG29","v":{"v":118.90369767272782,"d":"118.90"}},{"$f":"'Trial 5'!DH29","v":{"v":118.82781318445035,"d":"118.83"}},{"$f":"'Trial 5'!DI29","v":{"v":118.79291387681135,"d":"118.79"}},{"$f":"'Trial 5'!DJ29","v":{"v":118.67030784751539,"d":"118.67"}},{"$f":"'Trial 5'!DK29","v":{"v":118.49656009499394,"d":"118.50"}},{"$f":"'Trial 5'!DL29","v":{"v":118.36273913100382,"d":"118.36"}},{"$f":"'Trial 5'!DM29","v":{"v":118.18377050791564,"d":"118.18"}},{"$f":"SUM('Trial 5'!DB29:DM29)","v":{"v":1426.9917518162204,"d":"1,426.99"}},{"$f":"'Trial 5'!DO29","v":{"v":118.06493841238111,"d":"118.06"}},{"$f":"'Trial 5'!DP29","v":{"v":117.91682440708797,"d":"117.92"}},{"$f":"'Trial 5'!DQ29","v":{"v":117.79553347744393,"d":"117.80"}},{"$f":"'Trial 5'!DR29","v":{"v":117.75959795103982,"d":"117.76"}},{"$f":"'Trial 5'!DS29","v":{"v":117.68101647862878,"d":"117.68"}},{"$f":"'Trial 5'!DT29","v":{"v":117.59236492991694,"d":"117.59"}},{"$f":"'Trial 5'!DU29","v":{"v":117.5328586905863,"d":"117.53"}},{"$f":"'Trial 5'!DV29","v":{"v":117.3745290678887,"d":"117.37"}},{"$f":"'Trial 5'!DW29","v":{"v":117.26661793707625,"d":"117.27"}},{"$f":"'Trial 5'!DX29","v":{"v":117.19701020761055,"d":"117.20"}},{"$f":"'Trial 5'!DY29","v":{"v":117.0549248723543,"d":"117.05"}},{"$f":"'Trial 5'!DZ29","v":{"v":116.94135342160213,"d":"116.94"}},{"$f":"SUM('Trial 5'!DO29:DZ29)","v":{"v":1410.1775698536167,"d":"1,410.18"}},{"$f":"'Trial 5'!EB29","v":{"v":116.78034734844867,"d":"116.78"}},{"$f":"'Trial 5'!EC29","v":{"v":116.66637611174144,"d":"116.67"}},{"$f":"'Trial 5'!ED29","v":{"v":116.61938589960087,"d":"116.62"}},{"$f":"'Trial 5'!EE29","v":{"v":116.46762122996873,"d":"116.47"}},{"$f":"'Trial 5'!EF29","v":{"v":116.36888425268099,"d":"116.37"}},{"$f":"'Trial 5'!EG29","v":{"v":116.26765476562083,"d":"116.27"}},{"$f":"'Trial 5'!EH29","v":{"v":116.21696875575796,"d":"116.22"}},{"$f":"'Trial 5'!EI29","v":{"v":116.0341004307564,"d":"116.03"}},{"$f":"'Trial 5'!EJ29","v":{"v":115.87392202409097,"d":"115.87"}},{"$f":"'Trial 5'!EK29","v":{"v":115.73911346276049,"d":"115.74"}},{"$f":"'Trial 5'!EL29","v":{"v":115.64046933124855,"d":"115.64"}},{"$f":"'Trial 5'!EM29","v":{"v":115.54474812776688,"d":"115.54"}},{"$f":"SUM('Trial 5'!EB29:EM29)","v":{"v":1394.219591740443,"d":"1,394.22"}}]
[{"$f":"Labels!B101","v":"Trial 06"},{"$f":"'Trial 6'!B29","v":{"v":140,"d":"140.00"}},{"$f":"'Trial 6'!C29","v":{"v":139.6730321264592,"d":"139.67"}},{"$f":"'Trial 6'!D29","v":{"v":139.2376467167364,"d":"139.24"}},{"$f":"'Trial 6'!E29","v":{"v":138.9600466533387,"d":"138.96"}},{"$f":"'Trial 6'!F29","v":{"v":138.71366004797238,"d":"138.71"}},{"$f":"'Trial 6'!G29","v":{"v":138.4167348246212,"d":"138.42"}},{"$f":"'Trial 6'!H29","v":{"v":138.05427040158935,"d":"138.05"}},{"$f":"'Trial 6'!I29","v":{"v":137.7280450754126,"d":"137.73"}},{"$f":"'Trial 6'!J29","v":{"v":137.40352158836964,"d":"137.40"}},{"$f":"'Trial 6'!K29","v":{"v":137.14765880736277,"d":"137.15"}},{"$f":"'Trial 6'!L29","v":{"v":136.8380619046371,"d":"136.84"}},{"$f":"'Trial 6'!M29","v":{"v":136.61916366455674,"d":"136.62"}},{"$f":"SUM('Trial 6'!B29:M29)","v":{"v":1658.791841811056,"d":"1,658.79"}},{"$f":"'Trial 6'!O29","v":{"v":136.3133973435108,"d":"136.31"}},{"$f":"'Trial 6'!P29","v":{"v":136.0848105911001,"d":"136.08"}},{"$f":"'Trial 6'!Q29","v":{"v":135.77222656244092,"d":"135.77"}},{"$f":"'Trial 6'!R29","v":{"v":135.55058923297696,"d":"135.55"}},{"$f":"'Trial 6'!S29","v":{"v":135.30805567075882,"d":"135.31"}},{"$f":"'Trial 6'!T29","v":{"v":134.9274943911621,"d":"134.93"}},{"$f":"'Trial 6'!U29","v":{"v":134.62740949053844,"d":"134.63"}},{"$f":"'Trial 6'!V29","v":{"v":134.38075930011343,"d":"134.38"}},{"$f":"'Trial 6'!W29","v":{"v":134.0633938402943,"d":"134.06"}},{"$f":"'Trial 6'!X29","v":{"v":133.76185039526854,"d":"133.76"}},{"$f":"'Trial 6'!Y29","v":{"v":133.51051299999716,"d":"133.51"}},{"$f":"'Trial 6'!Z29","v":{"v":133.2931559883845,"d":"133.29"}},{"$f":"SUM('Trial 6'!O29:Z29)","v":{"v":1617.5936558065462,"d":"1,617.59"}},{"$f":"'Trial 6'!AB29","v":{"v":132.97356405766612,"d":"132.97"}},{"$f":"'Trial 6'!AC29","v":{"v":132.72446518449507,"d":"132.72"}},{"$f":"'Trial 6'!AD29","v":{"v":132.49625890843328,"d":"132.50"}},{"$f":"'Trial 6'!AE29","v":{"v":132.30110230556252,"d":"132.30"}},{"$f":"'Trial 6'!AF29","v":{"v":132.0660882353655,"d":"132.07"}},{"$f":"'Trial 6'!AG29","v":{"v":131.87561074539687,"d":"131.88"}},{"$f":"'Trial 6'!AH29","v":{"v":131.64213124776916,"d":"131.64"}},{"$f":"'Trial 6'!AI29","v":{"v":131.44062960684332,"d":"131.44"}},{"$f":"'Trial 6'!AJ29","v":{"v":131.18533798290923,"d":"131.19"}},{"$f":"'Trial 6'!AK29","v":{"v":130.9066946907043,"d":"130.91"}},{"$f":"'Trial 6'!AL29","v":{"v":130.67500521783688,"d":"130.68"}},{"$f":"'Trial 6'!AM29","v":{"v":130.49021358317003,"d":"130.49"}},{"$f":"SUM('Trial 6'!AB29:AM29)","v":{"v":1580.7771017661523,"d":"1,580.78"}},{"$f":"'Trial 6'!AO29","v":{"v":130.33723746107898,"d":"130.34"}},{"$f":"'Trial 6'!AP29","v":{"v":130.12251693249434,"d":"130.12"}},{"$f":"'Trial 6'!AQ29","v":{"v":129.87794792164826,"d":"129.88"}},{"$f":"'Trial 6'!AR29","v":{"v":129.61784497451515,"d":"129.62"}},{"$f":"'Trial 6'!AS29","v":{"v":129.40176597321485,"d":"129.40"}},{"$f":"'Trial 6'!AT29","v":{"v":129.16174836992045,"d":"129.16"}},{"$f":"'Trial 6'!AU29","v":{"v":128.90344933622902,"d":"128.90"}},{"$f":"'Trial 6'!AV29","v":{"v":128.59321979035528,"d":"128.59"}},{"$f":"'Trial 6'!AW29","v":{"v":128.39271065523377,"d":"128.39"}},{"$f":"'Trial 6'!AX29","v":{"v":128.1499802960034,"d":"128.15"}},{"$f":"'Trial 6'!AY29","v":{"v":127.87060868785798,"d":"127.87"}},{"$f":"'Trial 6'!AZ29","v":{"v":127.68809998682212,"d":"127.69"}},{"$f":"SUM('Trial 6'!AO29:AZ29)","v":{"v":1548.1171303853737,"d":"1,548.12"}},{"$f":"'Trial 6'!BB29","v":{"v":127.55493433859728,"d":"127.55"}},{"$f":"'Trial 6'!BC29","v":{"v":127.25834223897405,"d":"127.26"}},{"$f":"'Trial 6'!BD29","v":{"v":127.00466823691585,"d":"127.00"}},{"$f":"'Trial 6'!BE29","v":{"v":126.77195781433169,"d":"126.77"}},{"$f":"'Trial 6'!BF29","v":{"v":126.53007643661552,"d":"126.53"}},{"$f":"'Trial 6'!BG29","v":{"v":126.3311294732821,"d":"126.33"}},{"$f":"'Trial 6'!BH29","v":{"v":126.1585839266776,"d":"126.16"}},{"$f":"'Trial 6'!BI29","v":{"v":126.01599424856616,"d":"126.02"}},{"$f":"'Trial 6'!BJ29","v":{"v":125.78960274298646,"d":"125.79"}},{"$f":"'Trial 6'!BK29","v":{"v":125.68303230614389,"d":"125.68"}},{"$f":"'Trial 6'!BL29","v":{"v":125.51548260565922,"d":"125.52"}},{"$f":"'Trial 6'!BM29","v":{"v":125.24866504374606,"d":"125.25"}},{"$f":"SUM('Trial 6'!BB29:BM29)","v":{"v":1515.8624694124958,"d":"1,515.86"}},{"$f":"'Trial 6'!BO29","v":{"v":125.08654907145366,"d":"125.09"}},{"$f":"'Trial 6'!BP29","v":{"v":124.8120491045071,"d":"124.81"}},{"$f":"'Trial 6'!BQ29","v":{"v":124.61431279655483,"d":"124.61"}},{"$f":"'Trial 6'!BR29","v":{"v":124.40905355338711,"d":"124.41"}},{"$f":"'Trial 6'!BS29","v":{"v":124.18515836793709,"d":"124.19"}},{"$f":"'Trial 6'!BT29","v":{"v":123.91688302093097,"d":"123.92"}},{"$f":"'Trial 6'!BU29","v":{"v":123.80287878113188,"d":"123.80"}},{"$f":"'Trial 6'!BV29","v":{"v":123.6372803097831,"d":"123.64"}},{"$f":"'Trial 6'!BW29","v":{"v":123.497337790275,"d":"123.50"}},{"$f":"'Trial 6'!BX29","v":{"v":123.37612857739985,"d":"123.38"}},{"$f":"'Trial 6'!BY29","v":{"v":123.16505167722404,"d":"123.17"}},{"$f":"'Trial 6'!BZ29","v":{"v":123.08577833904558,"d":"123.09"}},{"$f":"SUM('Trial 6'!BO29:BZ29)","v":{"v":1487.5884613896303,"d":"1,487.59"}},{"$f":"'Trial 6'!CB29","v":{"v":122.97142997902611,"d":"122.97"}},{"$f":"'Trial 6'!CC29","v":{"v":122.81554349843987,"d":"122.82"}},{"$f":"'Trial 6'!CD29","v":{"v":122.64749983267853,"d":"122.65"}},{"$f":"'Trial 6'!CE29","v":{"v":122.57417996284373,"d":"122.57"}},{"$f":"'Trial 6'!CF29","v":{"v":122.40033969620588,"d":"122.40"}},{"$f":"'Trial 6'!CG29","v":{"v":122.22094415565184,"d":"122.22"}},{"$f":"'Trial 6'!CH29","v":{"v":122.11210647917899,"d":"122.11"}},{"$f":"'Trial 6'!CI29","v":{"v":122.00120808134145,"d":"122.00"}},{"$f":"'Trial 6'!CJ29","v":{"v":121.91390748988262,"d":"121.91"}},{"$f":"'Trial 6'!CK29","v":{"v":121.7672896261648,"d":"121.77"}},{"$f":"'Trial 6'!CL29","v":{"v":121.64337317675434,"d":"121.64"}},{"$f":"'Trial 6'!CM29","v":{"v":121.55712496684801,"d":"121.56"}},{"$f":"SUM('Trial 6'!CB29:CM29)","v":{"v":1466.6249469450163,"d":"1,466.62"}},{"$f":"'Trial 6'!CO29","v":{"v":121.45671183647447,"d":"121.46"}},{"$f":"'Trial 6'!CP29","v":{"v":121.32402542380497,"d":"121.32"}},{"$f":"'Trial 6'!CQ29","v":{"v":121.23998234241441,"d":"121.24"}},{"$f":"'Trial 6'!CR29","v":{"v":121.0985475960266,"d":"121.10"}},{"$f":"'Trial 6'!CS29","v":{"v":120.95993872701659,"d":"120.96"}},{"$f":"'Trial 6'!CT29","v":{"v":120.773911810854,"d":"120.77"}},{"$f":"'Trial 6'!CU29","v":{"v":120.59661716888537,"d":"120.60"}},{"$f":"'Trial 6'!CV29","v":{"v":120.5431182315876,"d":"120.54"}},{"$f":"'Trial 6'!CW29","v":{"v":120.34926317085834,"d":"120.35"}},{"$f":"'Trial 6'!CX29","v":{"v":120.29278265958023,"d":"120.29"}},{"$f":"'Trial 6'!CY29","v":{"v":120.17307970329362,"d":"120.17"}},{"$f":"'Trial 6'!CZ29","v":{"v":119.99317505982731,"d":"119.99"}},{"$f":"SUM('Trial 6'!CO29:CZ29)","v":{"v":1448.8011537306236,"d":"1,448.80"}},{"$f":"'Trial 6'!DB29","v":{"v":119.88712466773997,"d":"119.89"}},{"$f":"'Trial 6'!DC29","v":{"v":119.78792087298616,"d":"119.79"}},{"$f":"'Trial 6'!DD29","v":{"v":119.57124317543442,"d":"119.57"}},{"$f":"'Trial 6'!DE29","v":{"v":119.41129651935744,"d":"119.41"}},{"$f":"'Trial 6'!DF29","v":{"v":119.28239232963975,"d":"119.28"}},{"$f":"'Trial 6'!DG29","v":{"v":119.08048600569039,"d":"119.08"}},{"$f":"'Trial 6'!DH29","v":{"v":118.94065262085125,"d":"118.94"}},{"$f":"'Trial 6'!DI29","v":{"v":118.75264032168418,"d":"118.75"}},{"$f":"'Trial 6'!DJ29","v":{"v":118.56195645932121,"d":"118.56"}},{"$f":"'Trial 6'!DK29","v":{"v":118.3550648676119,"d":"118.36"}},{"$f":"'Trial 6'!DL29","v":{"v":118.24421104612262,"d":"118.24"}},{"$f":"'Trial 6'!DM29","v":{"v":118.0806688574481,"d":"118.08"}},{"$f":"SUM('Trial 6'!DB29:DM29)","v":{"v":1427.9556577438873,"d":"1,427.96"}},{"$f":"'Trial 6'!DO29","v":{"v":117.94387539502686,"d":"117.94"}},{"$f":"'Trial 6'!DP29","v":{"v":117.88604404735294,"d":"117.89"}},{"$f":"'Trial 6'!DQ29","v":{"v":117.73167999718692,"d":"117.73"}},{"$f":"'Trial 6'!DR29","v":{"v":117.58395708689777,"d":"117.58"}},{"$f":"'Trial 6'!DS29","v":{"v":117.47008292656686,"d":"117.47"}},{"$f":"'Trial 6'!DT29","v":{"v":117.3480916124829,"d":"117.35"}},{"$f":"'Trial 6'!DU29","v":{"v":117.26881253357739,"d":"117.27"}},{"$f":"'Trial 6'!DV29","v":{"v":117.21398697040134,"d":"117.21"}},{"$f":"'Trial 6'!DW29","v":{"v":117.16868196648028,"d":"117.17"}},{"$f":"'Trial 6'!DX29","v":{"v":117.06886457865981,"d":"117.07"}},{"$f":"'Trial 6'!DY29","v":{"v":117.00074867677667,"d":"117.00"}},{"$f":"'Trial 6'!DZ29","v":{"v":116.87961089403443,"d":"116.88"}},{"$f":"SUM('Trial 6'!DO29:DZ29)","v":{"v":1408.5644366854442,"d":"1,408.56"}},{"$f":"'Trial 6'!EB29","v":{"v":116.76599920082327,"d":"116.77"}},{"$f":"'Trial 6'!EC29","v":{"v":116.71476503380418,"d":"116.71"}},{"$f":"'Trial 6'!ED29","v":{"v":116.6090081102914,"d":"116.61"}},{"$f":"'Trial 6'!EE29","v":{"v":116.52750531201868,"d":"116.53"}},{"$f":"'Trial 6'!EF29","v":{"v":116.46186558189497,"d":"116.46"}},{"$f":"'Trial 6'!EG29","v":{"v":116.353739478849,"d":"116.35"}},{"$f":"'Trial 6'!EH29","v":{"v":116.2699976670457,"d":"116.27"}},{"$f":"'Trial 6'!EI29","v":{"v":116.1627290585717,"d":"116.16"}},{"$f":"'Trial 6'!EJ29","v":{"v":116.07890533470731,"d":"116.08"}},{"$f":"'Trial 6'!EK29","v":{"v":116.04078262090631,"d":"116.04"}},{"$f":"'Trial 6'!EL29","v":{"v":116.02438512144342,"d":"116.02"}},{"$f":"'Trial 6'!EM29","v":{"v":115.85866053811083,"d":"115.86"}},{"$f":"SUM('Trial 6'!EB29:EM29)","v":{"v":1395.8683430584667,"d":"1,395.87"}}]
[{"$f":"Labels!B102","v":"Trial 07"},{"$f":"'Trial 7'!B29","v":{"v":140,"d":"140.00"}},{"$f":"'Trial 7'!C29","v":{"v":139.6133486635911,"d":"139.61"}},{"$f":"'Trial 7'!D29","v":{"v":139.31956611041235,"d":"139.32"}},{"$f":"'Trial 7'!E29","v":{"v":139.01545512945899,"d":"139.02"}},{"$f":"'Trial 7'!F29","v":{"v":138.67531399772426,"d":"138.68"}},{"$f":"'Trial 7'!G29","v":{"v":138.40520413673596,"d":"138.41"}},{"$f":"'Trial 7'!H29","v":{"v":138.14103042309196,"d":"138.14"}},{"$f":"'Trial 7'!I29","v":{"v":137.8761314521719,"d":"137.88"}},{"$f":"'Trial 7'!J29","v":{"v":137.62828972796635,"d":"137.63"}},{"$f":"'Trial 7'!K29","v":{"v":137.30251176179127,"d":"137.30"}},{"$f":"'Trial 7'!L29","v":{"v":136.95536999714065,"d":"136.96"}},{"$f":"'Trial 7'!M29","v":{"v":136.6452421789432,"d":"136.65"}},{"$f":"SUM('Trial 7'!B29:M29)","v":{"v":1659.577463579028,"d":"1,659.58"}},{"$f":"'Trial 7'!O29","v":{"v":136.32816720112473,"d":"136.33"}},{"$f":"'Trial 7'!P29","v":{"v":136.03958687816854,"d":"136.04"}},{"$f":"'Trial 7'!Q29","v":{"v":135.80674181989644,"d":"135.81"}},{"$f":"'Trial 7'!R29","v":{"v":135.57062031246267,"d":"135.57"}},{"$f":"'Trial 7'!S29","v":{"v":135.32246181121897,"d":"135.32"}},{"$f":"'Trial 7'!T29","v":{"v":135.05490776502728,"d":"135.05"}},{"$f":"'Trial 7'!U29","v":{"v":134.82166682938484,"d":"134.82"}},{"$f":"'Trial 7'!V29","v":{"v":134.53250745191048,"d":"134.53"}},{"$f":"'Trial 7'!W29","v":{"v":134.30714058557996,"d":"134.31"}},{"$f":"'Trial 7'!X29","v":{"v":134.10400500329237,"d":"134.10"}},{"$f":"'Trial 7'!Y29","v":{"v":133.8789675174782,"d":"133.88"}},{"$f":"'Trial 7'!Z29","v":{"v":133.6119997022054,"d":"133.61"}},{"$f":"SUM('Trial 7'!O29:Z29)","v":{"v":1619.37877287775,"d":"1,619.38"}},{"$f":"'Trial 7'!AB29","v":{"v":133.26355408916703,"d":"133.26"}},{"$f":"'Trial 7'!AC29","v":{"v":132.9116316429051,"d":"132.91"}},{"$f":"'Trial 7'!AD29","v":{"v":132.65080725646445,"d":"132.65"}},{"$f":"'Trial 7'!AE29","v":{"v":132.41638824217748,"d":"132.42"}},{"$f":"'Trial 7'!AF29","v":{"v":132.2140282629234,"d":"132.21"}},{"$f":"'Trial 7'!AG29","v":{"v":131.92869035683663,"d":"131.93"}},{"$f":"'Trial 7'!AH29","v":{"v":131.71319595475532,"d":"131.71"}},{"$f":"'Trial 7'!AI29","v":{"v":131.4955079743482,"d":"131.50"}},{"$f":"'Trial 7'!AJ29","v":{"v":131.19094782429468,"d":"131.19"}},{"$f":"'Trial 7'!AK29","v":{"v":130.93408980137698,"d":"130.93"}},{"$f":"'Trial 7'!AL29","v":{"v":130.69855216905867,"d":"130.70"}},{"$f":"'Trial 7'!AM29","v":{"v":130.47026954035633,"d":"130.47"}},{"$f":"SUM('Trial 7'!AB29:AM29)","v":{"v":1581.8876631146643,"d":"1,581.89"}},{"$f":"'Trial 7'!AO29","v":{"v":130.20582468054806,"d":"130.21"}},{"$f":"'Trial 7'!AP29","v":{"v":129.92050213533585,"d":"129.92"}},{"$f":"'Trial 7'!AQ29","v":{"v":129.6803051402406,"d":"129.68"}},{"$f":"'Trial 7'!AR29","v":{"v":129.4992878446559,"d":"129.50"}},{"$f":"'Trial 7'!AS29","v":{"v":129.31642342144482,"d":"129.32"}},{"$f":"'Trial 7'!AT29","v":{"v":129.17738472835154,"d":"129.18"}},{"$f":"'Trial 7'!AU29","v":{"v":128.91869794490592,"d":"128.92"}},{"$f":"'Trial 7'!AV29","v":{"v":128.69130428401635,"d":"128.69"}},{"$f":"'Trial 7'!AW29","v":{"v":128.46420560671942,"d":"128.46"}},{"$f":"'Trial 7'!AX29","v":{"v":128.21591121067345,"d":"128.22"}},{"$f":"'Trial 7'!AY29","v":{"v":127.94972802505647,"d":"127.95"}},{"$f":"'Trial 7'!AZ29","v":{"v":127.69901347638717,"d":"127.70"}},{"$f":"SUM('Trial 7'!AO29:AZ29)","v":{"v":1547.7385884983355,"d":"1,547.74"}},{"$f":"'Trial 7'!BB29","v":{"v":127.41845534585312,"d":"127.42"}},{"$f":"'Trial 7'!BC29","v":{"v":127.19175057499068,"d":"127.19"}},{"$f":"'Trial 7'!BD29","v":{"v":126.96309301415558,"d":"126.96"}},{"$f":"'Trial 7'!BE29","v":{"v":126.78700152999163,"d":"126.79"}},{"$f":"'Trial 7'!BF29","v":{"v":126.57195966785953,"d":"126.57"}},{"$f":"'Trial 7'!BG29","v":{"v":126.39899126238755,"d":"126.40"}},{"$f":"'Trial 7'!BH29","v":{"v":126.2621562645002,"d":"126.26"}},{"$f":"'Trial 7'!BI29","v":{"v":126.0178535845053,"d":"126.02"}},{"$f":"'Trial 7'!BJ29","v":{"v":125.82352058234314,"d":"125.82"}},{"$f":"'Trial 7'!BK29","v":{"v":125.60426507525582,"d":"125.60"}},{"$f":"'Trial 7'!BL29","v":{"v":125.34856471659515,"d":"125.35"}},{"$f":"'Trial 7'!BM29","v":{"v":125.13791766547867,"d":"125.14"}},{"$f":"SUM('Trial 7'!BB29:BM29)","v":{"v":1515.5255292839163,"d":"1,515.53"}},{"$f":"'Trial 7'!BO29","v":{"v":124.98599287122009,"d":"124.99"}},{"$f":"'Trial 7'!BP29","v":{"v":124.77607671051875,"d":"124.78"}},{"$f":"'Trial 7'!BQ29","v":{"v":124.51375926328747,"d":"124.51"}},{"$f":"'Trial 7'!BR29","v":{"v":124.3703542245154,"d":"124.37"}},{"$f":"'Trial 7'!BS29","v":{"v":124.22648890691478,"d":"124.23"}},{"$f":"'Trial 7'!BT29","v":{"v":124.11219904075098,"d":"124.11"}},{"$f":"'Trial 7'!BU29","v":{"v":124.01088038575448,"d":"124.01"}},{"$f":"'Trial 7'!BV29","v":{"v":123.88967358769659,"d":"123.89"}},{"$f":"'Trial 7'!BW29","v":{"v":123.67301065194934,"d":"123.67"}},{"$f":"'Trial 7'!BX29","v":{"v":123.57578952789765,"d":"123.58"}},{"$f":"'Trial 7'!BY29","v":{"v":123.36741817240376,"d":"123.37"}},{"$f":"'Trial 7'!BZ29","v":{"v":123.13101255913399,"d":"123.13"}},{"$f":"SUM('Trial 7'!BO29:BZ29)","v":{"v":1488.6326559020433,"d":"1,488.63"}},{"$f":"'Trial 7'!CB29","v":{"v":122.86599263390654,"d":"122.87"}},{"$f":"'Trial 7'!CC29","v":{"v":122.69807336573713,"d":"122.70"}},{"$f":"'Trial 7'!CD29","v":{"v":122.57735827577017,"d":"122.58"}},{"$f":"'Trial 7'!CE29","v":{"v":122.46574193079498,"d":"122.47"}},{"$f":"'Trial 7'!CF29","v":{"v":122.20983022732297,"d":"122.21"}},{"$f":"'Trial 7'!CG29","v":{"v":122.026757732407,"d":"122.03"}},{"$f":"'Trial 7'!CH29","v":{"v":121.9165727784633,"d":"121.92"}},{"$f":"'Trial 7'!CI29","v":{"v":121.66175012335785,"d":"121.66"}},{"$f":"'Trial 7'!CJ29","v":{"v":121.46270595470159,"d":"121.46"}},{"$f":"'Trial 7'!CK29","v":{"v":121.41735494259544,"d":"121.42"}},{"$f":"'Trial 7'!CL29","v":{"v":121.36041157940026,"d":"121.36"}},{"$f":"'Trial 7'!CM29","v":{"v":121.20331226000052,"d":"121.20"}},{"$f":"SUM('Trial 7'!CB29:CM29)","v":{"v":1463.8658618044578,"d":"1,463.87"}},{"$f":"'Trial 7'!CO29","v":{"v":121.11045214034594,"d":"121.11"}},{"$f":"'Trial 7'!CP29","v":{"v":121.0616823630915,"d":"121.06"}},{"$f":"'Trial 7'!CQ29","v":{"v":120.90975105866015,"d":"120.91"}},{"$f":"'Trial 7'!CR29","v":{"v":120.79636129406298,"d":"120.80"}},{"$f":"'Trial 7'!CS29","v":{"v":120.69544459183723,"d":"120.70"}},{"$f":"'Trial 7'!CT29","v":{"v":120.55972761690903,"d":"120.56"}},{"$f":"'Trial 7'!CU29","v":{"v":120.41418603080747,"d":"120.41"}},{"$f":"'Trial 7'!CV29","v":{"v":120.32706696457882,"d":"120.33"}},{"$f":"'Trial 7'!CW29","v":{"v":120.18679716190879,"d":"120.19"}},{"$f":"'Trial 7'!CX29","v":{"v":120.0420413798352,"d":"120.04"}},{"$f":"'Trial 7'!CY29","v":{"v":119.83470961342044,"d":"119.83"}},{"$f":"'Trial 7'!CZ29","v":{"v":119.63948827428837,"d":"119.64"}},{"$f":"SUM('Trial 7'!CO29:CZ29)","v":{"v":1445.577708489746,"d":"1,445.58"}},{"$f":"'Trial 7'!DB29","v":{"v":119.53393171600685,"d":"119.53"}},{"$f":"'Trial 7'!DC29","v":{"v":119.48568716432224,"d":"119.49"}},{"$f":"'Trial 7'!DD29","v":{"v":119.41298375849891,"d":"119.41"}},{"$f":"'Trial 7'!DE29","v":{"v":119.29181108205873,"d":"119.29"}},{"$f":"'Trial 7'!DF29","v":{"v":119.18771488725316,"d":"119.19"}},{"$f":"'Trial 7'!DG29","v":{"v":119.07614423181012,"d":"119.08"}},{"$f":"'Trial 7'!DH29","v":{"v":118.88148765608457,"d":"118.88"}},{"$f":"'Trial 7'!DI29","v":{"v":118.68183960729864,"d":"118.68"}},{"$f":"'Trial 7'!DJ29","v":{"v":118.5641378814088,"d":"118.56"}},{"$f":"'Trial 7'!DK29","v":{"v":118.43799645336318,"d":"118.44"}},{"$f":"'Trial 7'!DL29","v":{"v":118.24147386988294,"d":"118.24"}},{"$f":"'Trial 7'!DM29","v":{"v":118.12998076459948,"d":"118.13"}},{"$f":"SUM('Trial 7'!DB29:DM29)","v":{"v":1426.9251890725875,"d":"1,426.93"}},{"$f":"'Trial 7'!DO29","v":{"v":118.02293852263328,"d":"118.02"}},{"$f":"'Trial 7'!DP29","v":{"v":117.86223515535922,"d":"117.86"}},{"$f":"'Trial 7'!DQ29","v":{"v":117.74215992739647,"d":"117.74"}},{"$f":"'Trial 7'!DR29","v":{"v":117.61999468305558,"d":"117.62"}},{"$f":"'Trial 7'!DS29","v":{"v":117.4458750446069,"d":"117.45"}},{"$f":"'Trial 7'!DT29","v":{"v":117.35165108614977,"d":"117.35"}},{"$f":"'Trial 7'!DU29","v":{"v":117.18473020620267,"d":"117.18"}},{"$f":"'Trial 7'!DV29","v":{"v":117.04518958768314,"d":"117.05"}},{"$f":"'Trial 7'!DW29","v":{"v":116.97594047481013,"d":"116.98"}},{"$f":"'Trial 7'!DX29","v":{"v":116.96982289322142,"d":"116.97"}},{"$f":"'Trial 7'!DY29","v":{"v":116.78418559247736,"d":"116.78"}},{"$f":"'Trial 7'!DZ29","v":{"v":116.64304872351775,"d":"116.64"}},{"$f":"SUM('Trial 7'!DO29:DZ29)","v":{"v":1407.6477718971134,"d":"1,407.65"}},{"$f":"'Trial 7'!EB29","v":{"v":116.47846386770551,"d":"116.48"}},{"$f":"'Trial 7'!EC29","v":{"v":116.4357251069881,"d":"116.44"}},{"$f":"'Trial 7'!ED29","v":{"v":116.27811987044785,"d":"116.28"}},{"$f":"'Trial 7'!EE29","v":{"v":116.17215041948346,"d":"116.17"}},{"$f":"'Trial 7'!EF29","v":{"v":116.08878388048123,"d":"116.09"}},{"$f":"'Trial 7'!EG29","v":{"v":115.93680316673763,"d":"115.94"}},{"$f":"'Trial 7'!EH29","v":{"v":115.73900479424027,"d":"115.74"}},{"$f":"'Trial 7'!EI29","v":{"v":115.55653810618163,"d":"115.56"}},{"$f":"'Trial 7'!EJ29","v":{"v":115.48698828523872,"d":"115.49"}},{"$f":"'Trial 7'!EK29","v":{"v":115.42669452892736,"d":"115.43"}},{"$f":"'Trial 7'!EL29","v":{"v":115.32716401244771,"d":"115.33"}},{"$f":"'Trial 7'!EM29","v":{"v":115.28747503650692,"d":"115.29"}},{"$f":"SUM('Trial 7'!EB29:EM29)","v":{"v":1390.2139110753862,"d":"1,390.21"}}]
[{"$f":"Labels!B103","v":"Trial 08"},{"$f":"'Trial 8'!B29","v":{"v":140,"d":"140.00"}},{"$f":"'Trial 8'!C29","v":{"v":139.5814931533646,"d":"139.58"}},{"$f":"'Trial 8'!D29","v":{"v":139.22712566676742,"d":"139.23"}},{"$f":"'Trial 8'!E29","v":{"v":138.89656053214097,"d":"138.90"}},{"$f":"'Trial 8'!F29","v":{"v":138.5879637889069,"d":"138.59"}},{"$f":"'Trial 8'!G29","v":{"v":138.36210235183307,"d":"138.36"}},{"$f":"'Trial 8'!H29","v":{"v":138.0701001364916,"d":"138.07"}},{"$f":"'Trial 8'!I29","v":{"v":137.74891558152385,"d":"137.75"}},{"$f":"'Trial 8'!J29","v":{"v":137.472172510107,"d":"137.47"}},{"$f":"'Trial 8'!K29","v":{"v":137.1033625116055,"d":"137.10"}},{"$f":"'Trial 8'!L29","v":{"v":136.8355193255395,"d":"136.84"}},{"$f":"'Trial 8'!M29","v":{"v":136.46788951004007,"d":"136.47"}},{"$f":"SUM('Trial 8'!B29:M29)","v":{"v":1658.3532050683204,"d":"1,658.35"}},{"$f":"'Trial 8'!O29","v":{"v":136.1784236452413,"d":"136.18"}},{"$f":"'Trial 8'!P29","v":{"v":135.96343227960472,"d":"135.96"}},{"$f":"'Trial 8'!Q29","v":{"v":135.62486824586955,"d":"135.62"}},{"$f":"'Trial 8'!R29","v":{"v":135.25005783844176,"d":"135.25"}},{"$f":"'Trial 8'!S29","v":{"v":134.98557649959398,"d":"134.99"}},{"$f":"'Trial 8'!T29","v":{"v":134.7053088294579,"d":"134.71"}},{"$f":"'Trial 8'!U29","v":{"v":134.5076878015962,"d":"134.51"}},{"$f":"'Trial 8'!V29","v":{"v":134.22280838455904,"d":"134.22"}},{"$f":"'Trial 8'!W29","v":{"v":133.95460118223167,"d":"133.95"}},{"$f":"'Trial 8'!X29","v":{"v":133.75685323434107,"d":"133.76"}},{"$f":"'Trial 8'!Y29","v":{"v":133.44245777848948,"d":"133.44"}},{"$f":"'Trial 8'!Z29","v":{"v":133.10863941759573,"d":"133.11"}},{"$f":"SUM('Trial 8'!O29:Z29)","v":{"v":1615.7007151370224,"d":"1,615.70"}},{"$f":"'Trial 8'!AB29","v":{"v":132.80911294718246,"d":"132.81"}},{"$f":"'Trial 8'!AC29","v":{"v":132.54952348194954,"d":"132.55"}},{"$f":"'Trial 8'!AD29","v":{"v":132.29759758511332,"d":"132.30"}},{"$f":"'Trial 8'!AE29","v":{"v":132.01056209750965,"d":"132.01"}},{"$f":"'Trial 8'!AF29","v":{"v":131.74737716998868,"d":"131.75"}},{"$f":"'Trial 8'!AG29","v":{"v":131.44822521954424,"d":"131.45"}},{"$f":"'Trial 8'!AH29","v":{"v":131.16693408686513,"d":"131.17"}},{"$f":"'Trial 8'!AI29","v":{"v":130.95601799454582,"d":"130.96"}},{"$f":"'Trial 8'!AJ29","v":{"v":130.73936447356314,"d":"130.74"}},{"$f":"'Trial 8'!AK29","v":{"v":130.47313145373718,"d":"130.47"}},{"$f":"'Trial 8'!AL29","v":{"v":130.2392243982634,"d":"130.24"}},{"$f":"'Trial 8'!AM29","v":{"v":130.07132731209123,"d":"130.07"}},{"$f":"SUM('Trial 8'!AB29:AM29)","v":{"v":1576.5083982203537,"d":"1,576.51"}},{"$f":"'Trial 8'!AO29","v":{"v":129.8993729093895,"d":"129.90"}},{"$f":"'Trial 8'!AP29","v":{"v":129.7220374705281,"d":"129.72"}},{"$f":"'Trial 8'!AQ29","v":{"v":129.50008235007056,"d":"129.50"}},{"$f":"'Trial 8'!AR29","v":{"v":129.27782813393227,"d":"129.28"}},{"$f":"'Trial 8'!AS29","v":{"v":128.99832995008492,"d":"129.00"}},{"$f":"'Trial 8'!AT29","v":{"v":128.7230472239238,"d":"128.72"}},{"$f":"'Trial 8'!AU29","v":{"v":128.48746722423468,"d":"128.49"}},{"$f":"'Trial 8'!AV29","v":{"v":128.301057236211,"d":"128.30"}},{"$f":"'Trial 8'!AW29","v":{"v":128.0927790424428,"d":"128.09"}},{"$f":"'Trial 8'!AX29","v":{"v":127.89247379159639,"d":"127.89"}},{"$f":"'Trial 8'!AY29","v":{"v":127.68724450697988,"d":"127.69"}},{"$f":"'Trial 8'!AZ29","v":{"v":127.50488233362034,"d":"127.50"}},{"$f":"SUM('Trial 8'!AO29:AZ29)","v":{"v":1544.0866021730142,"d":"1,544.09"}},{"$f":"'Trial 8'!BB29","v":{"v":127.31400285521457,"d":"127.31"}},{"$f":"'Trial 8'!BC29","v":{"v":127.08668411050017,"d":"127.09"}},{"$f":"'Trial 8'!BD29","v":{"v":126.93712400245313,"d":"126.94"}},{"$f":"'Trial 8'!BE29","v":{"v":126.8051899159259,"d":"126.81"}},{"$f":"'Trial 8'!BF29","v":{"v":126.62939983271079,"d":"126.63"}},{"$f":"'Trial 8'!BG29","v":{"v":126.45217785375377,"d":"126.45"}},{"$f":"'Trial 8'!BH29","v":{"v":126.31550205020682,"d":"126.32"}},{"$f":"'Trial 8'!BI29","v":{"v":126.0829581520718,"d":"126.08"}},{"$f":"'Trial 8'!BJ29","v":{"v":125.89142773922073,"d":"125.89"}},{"$f":"'Trial 8'!BK29","v":{"v":125.7347623463102,"d":"125.73"}},{"$f":"'Trial 8'!BL29","v":{"v":125.57539124902092,"d":"125.58"}},{"$f":"'Trial 8'!BM29","v":{"v":125.42019361668056,"d":"125.42"}},{"$f":"SUM('Trial 8'!BB29:BM29)","v":{"v":1516.2448137240692,"d":"1,516.24"}},{"$f":"'Trial 8'!BO29","v":{"v":125.22451452301426,"d":"125.22"}},{"$f":"'Trial 8'!BP29","v":{"v":125.0794497133303,"d":"125.08"}},{"$f":"'Trial 8'!BQ29","v":{"v":124.96702651945321,"d":"124.97"}},{"$f":"'Trial 8'!BR29","v":{"v":124.83443384445887,"d":"124.83"}},{"$f":"'Trial 8'!BS29","v":{"v":124.7481916440795,"d":"124.75"}},{"$f":"'Trial 8'!BT29","v":{"v":124.60064347187634,"d":"124.60"}},{"$f":"'Trial 8'!BU29","v":{"v":124.42700152384788,"d":"124.43"}},{"$f":"'Trial 8'!BV29","v":{"v":124.27715415002822,"d":"124.28"}},{"$f":"'Trial 8'!BW29","v":{"v":124.17471248763353,"d":"124.17"}},{"$f":"'Trial 8'!BX29","v":{"v":124.04844892410725,"d":"124.05"}},{"$f":"'Trial 8'!BY29","v":{"v":123.92186793567632,"d":"123.92"}},{"$f":"'Trial 8'!BZ29","v":{"v":123.73674832956023,"d":"123.74"}},{"$f":"SUM('Trial 8'!BO29:BZ29)","v":{"v":1494.040193067066,"d":"1,494.04"}},{"$f":"'Trial 8'!CB29","v":{"v":123.49840853315631,"d":"123.50"}},{"$f":"'Trial 8'!CC29","v":{"v":123.3094902011569,"d":"123.31"}},{"$f":"'Trial 8'!CD29","v":{"v":123.14838655682499,"d":"123.15"}},{"$f":"'Trial 8'!CE29","v":{"v":122.93002781602515,"d":"122.93"}},{"$f":"'Trial 8'!CF29","v":{"v":122.78336839195404,"d":"122.78"}},{"$f":"'Trial 8'!CG29","v":{"v":122.61697816305121,"d":"122.62"}},{"$f":"'Trial 8'!CH29","v":{"v":122.55517990170264,"d":"122.56"}},{"$f":"'Trial 8'!CI29","v":{"v":122.4030566501665,"d":"122.40"}},{"$f":"'Trial 8'!CJ29","v":{"v":122.21208929550946,"d":"122.21"}},{"$f":"'Trial 8'!CK29","v":{"v":122.0895068448335,"d":"122.09"}},{"$f":"'Trial 8'!CL29","v":{"v":121.98482538770114,"d":"121.98"}},{"$f":"'Trial 8'!CM29","v":{"v":121.77950045560424,"d":"121.78"}},{"$f":"SUM('Trial 8'!CB29:CM29)","v":{"v":1471.310818197686,"d":"1,471.31"}},{"$f":"'Trial 8'!CO29","v":{"v":121.69793782955361,"d":"121.70"}},{"$f":"'Trial 8'!CP29","v":{"v":121.61958240145285,"d":"121.62"}},{"$f":"'Trial 8'!CQ29","v":{"v":121.48498082561368,"d":"121.48"}},{"$f":"'Trial 8'!CR29","v":{"v":121.37300129320299,"d":"121.37"}},{"$f":"'Trial 8'!CS29","v":{"v":121.25708084981243,"d":"121.26"}},{"$f":"'Trial 8'!CT29","v":{"v":121.00718115062821,"d":"121.01"}},{"$f":"'Trial 8'!CU29","v":{"v":120.85768583691332,"d":"120.86"}},{"$f":"'Trial 8'!CV29","v":{"v":120.77350603659373,"d":"120.77"}},{"$f":"'Trial 8'!CW29","v":{"v":120.63271396681719,"d":"120.63"}},{"$f":"'Trial 8'!CX29","v":{"v":120.39752884376334,"d":"120.40"}},{"$f":"'Trial 8'!CY29","v":{"v":120.32327371005275,"d":"120.32"}},{"$f":"'Trial 8'!CZ29","v":{"v":120.28596743049285,"d":"120.29"}},{"$f":"SUM('Trial 8'!CO29:CZ29)","v":{"v":1451.710440174897,"d":"1,451.71"}},{"$f":"'Trial 8'!DB29","v":{"v":120.10753201607741,"d":"120.11"}},{"$f":"'Trial 8'!DC29","v":{"v":120.07088292785943,"d":"120.07"}},{"$f":"'Trial 8'!DD29","v":{"v":119.90215380411088,"d":"119.90"}},{"$f":"'Trial 8'!DE29","v":{"v":119.71124800284824,"d":"119.71"}},{"$f":"'Trial 8'!DF29","v":{"v":119.5620171743431,"d":"119.56"}},{"$f":"'Trial 8'!DG29","v":{"v":119.43606886516888,"d":"119.44"}},{"$f":"'Trial 8'!DH29","v":{"v":119.2743280034854,"d":"119.27"}},{"$f":"'Trial 8'!DI29","v":{"v":119.13824067893506,"d":"119.14"}},{"$f":"'Trial 8'!DJ29","v":{"v":118.94980108467425,"d":"118.95"}},{"$f":"'Trial 8'!DK29","v":{"v":118.91534768885968,"d":"118.92"}},{"$f":"'Trial 8'!DL29","v":{"v":118.76628876610616,"d":"118.77"}},{"$f":"'Trial 8'!DM29","v":{"v":118.72242547107054,"d":"118.72"}},{"$f":"SUM('Trial 8'!DB29:DM29)","v":{"v":1432.5563344835386,"d":"1,432.56"}},{"$f":"'Trial 8'!DO29","v":{"v":118.58450175388981,"d":"118.58"}},{"$f":"'Trial 8'!DP29","v":{"v":118.38450353638127,"d":"118.38"}},{"$f":"'Trial 8'!DQ29","v":{"v":118.20554877764697,"d":"118.21"}},{"$f":"'Trial 8'!DR29","v":{"v":118.17271180678003,"d":"118.17"}},{"$f":"'Trial 8'!DS29","v":{"v":118.12371817727107,"d":"118.12"}},{"$f":"'Trial 8'!DT29","v":{"v":117.98189880888152,"d":"117.98"}},{"$f":"'Trial 8'!DU29","v":{"v":117.93430416174472,"d":"117.93"}},{"$f":"'Trial 8'!DV29","v":{"v":117.87832174513774,"d":"117.88"}},{"$f":"'Trial 8'!DW29","v":{"v":117.7698070140028,"d":"117.77"}},{"$f":"'Trial 8'!DX29","v":{"v":117.68506333355884,"d":"117.69"}},{"$f":"'Trial 8'!DY29","v":{"v":117.49734936137367,"d":"117.50"}},{"$f":"'Trial 8'!DZ29","v":{"v":117.404041187507,"d":"117.40"}},{"$f":"SUM('Trial 8'!DO29:DZ29)","v":{"v":1415.6217696641756,"d":"1,415.62"}},{"$f":"'Trial 8'!EB29","v":{"v":117.29113740748856,"d":"117.29"}},{"$f":"'Trial 8'!EC29","v":{"v":117.09898502470922,"d":"117.10"}},{"$f":"'Trial 8'!ED29","v":{"v":116.91426522774454,"d":"116.91"}},{"$f":"'Trial 8'!EE29","v":{"v":116.83542668678741,"d":"116.84"}},{"$f":"'Trial 8'!EF29","v":{"v":116.6965916375057,"d":"116.70"}},{"$f":"'Trial 8'!EG29","v":{"v":116.54930091875659,"d":"116.55"}},{"$f":"'Trial 8'!EH29","v":{"v":116.44774163207445,"d":"116.45"}},{"$f":"'Trial 8'!EI29","v":{"v":116.40794926625114,"d":"116.41"}},{"$f":"'Trial 8'!EJ29","v":{"v":116.25763870279867,"d":"116.26"}},{"$f":"'Trial 8'!EK29","v":{"v":116.15966644142568,"d":"116.16"}},{"$f":"'Trial 8'!EL29","v":{"v":115.97660789894067,"d":"115.98"}},{"$f":"'Trial 8'!EM29","v":{"v":115.83191551177688,"d":"115.83"}},{"$f":"SUM('Trial 8'!EB29:EM29)","v":{"v":1398.4672263562597,"d":"1,398.47"}}]
[{"$f":"Labels!C95","v":"Total"},{"$f":"SUM('Trial 1'!B29,'Trial 2'!B29,'Trial 3'!B29,'Trial 4'!B29,'Trial 5'!B29,'Trial 6'!B29,'Trial 7'!B29,'Trial 8'!B29)","v":{"v":1120,"d":"1,120.00"}},{"$f":"SUM('Trial 1'!C29,'Trial 2'!C29,'Trial 3'!C29,'Trial 4'!C29,'Trial 5'!C29,'Trial 6'!C29,'Trial 7'!C29,'Trial 8'!C29)","v":{"v":1116.9335668389913,"d":"1,116.93"}},{"$f":"SUM('Trial 1'!D29,'Trial 2'!D29,'Trial 3'!D29,'Trial 4'!D29,'Trial 5'!D29,'Trial 6'!D29,'Trial 7'!D29,'Trial 8'!D29)","v":{"v":1114.1014749917965,"d":"1,114.10"}},{"$f":"SUM('Trial 1'!E29,'Trial 2'!E29,'Trial 3'!E29,'Trial 4'!E29,'Trial 5'!E29,'Trial 6'!E29,'Trial 7'!E29,'Trial 8'!E29)","v":{"v":1111.5595211598227,"d":"1,111.56"}},{"$f":"SUM('Trial 1'!F29,'Trial 2'!F29,'Trial 3'!F29,'Trial 4'!F29,'Trial 5'!F29,'Trial 6'!F29,'Trial 7'!F29,'Trial 8'!F29)","v":{"v":1109.1519974947473,"d":"1,109.15"}},{"$f":"SUM('Trial 1'!G29,'Trial 2'!G29,'Trial 3'!G29,'Trial 4'!G29,'Trial 5'!G29,'Trial 6'!G29,'Trial 7'!G29,'Trial 8'!G29)","v":{"v":1106.9080914688016,"d":"1,106.91"}},{"$f":"SUM('Trial 1'!H29,'Trial 2'!H29,'Trial 3'!H29,'Trial 4'!H29,'Trial 5'!H29,'Trial 6'!H29,'Trial 7'!H29,'Trial 8'!H29)","v":{"v":1104.5103483058458,"d":"1,104.51"}},{"$f":"SUM('Trial 1'!I29,'Trial 2'!I29,'Trial 3'!I29,'Trial 4'!I29,'Trial 5'!I29,'Trial 6'!I29,'Trial 7'!I29,'Trial 8'!I29)","v":{"v":1101.8969937741529,"d":"1,101.90"}},{"$f":"SUM('Trial 1'!J29,'Trial 2'!J29,'Trial 3'!J29,'Trial 4'!J29,'Trial 5'!J29,'Trial 6'!J29,'Trial 7'!J29,'Trial 8'!J29)","v":{"v":1099.4292291986167,"d":"1,099.43"}},{"$f":"SUM('Trial 1'!K29,'Trial 2'!K29,'Trial 3'!K29,'Trial 4'!K29,'Trial 5'!K29,'Trial 6'!K29,'Trial 7'!K29,'Trial 8'!K29)","v":{"v":1097.0095828049725,"d":"1,097.01"}},{"$f":"SUM('Trial 1'!L29,'Trial 2'!L29,'Trial 3'!L29,'Trial 4'!L29,'Trial 5'!L29,'Trial 6'!L29,'Trial 7'!L29,'Trial 8'!L29)","v":{"v":1094.619144152553,"d":"1,094.62"}},{"$f":"SUM('Trial 1'!M29,'Trial 2'!M29,'Trial 3'!M29,'Trial 4'!M29,'Trial 5'!M29,'Trial 6'!M29,'Trial 7'!M29,'Trial 8'!M29)","v":{"v":1092.2283411398355,"d":"1,092.23"}},{"$f":"SUM(B116:M116)","v":{"v":13268.348291330136,"d":"13,268.35"}},{"$f":"SUM('Trial 1'!O29,'Trial 2'!O29,'Trial 3'!O29,'Trial 4'!O29,'Trial 5'!O29,'Trial 6'!O29,'Trial 7'!O29,'Trial 8'!O29)","v":{"v":1089.7842331426505,"d":"1,089.78"}},{"$f":"SUM('Trial 1'!P29,'Trial 2'!P29,'Trial 3'!P29,'Trial 4'!P29,'Trial 5'!P29,'Trial 6'!P29,'Trial 7'!P29,'Trial 8'!P29)","v":{"v":1087.5218588647367,"d":"1,087.52"}},{"$f":"SUM('Trial 1'!Q29,'Trial 2'!Q29,'Trial 3'!Q29,'Trial 4'!Q29,'Trial 5'!Q29,'Trial 6'!Q29,'Trial 7'!Q29,'Trial 8'!Q29)","v":{"v":1085.2409289044124,"d":"1,085.24"}},{"$f":"SUM('Trial 1'!R29,'Trial 2'!R29,'Trial 3'!R29,'Trial 4'!R29,'Trial 5'!R29,'Trial 6'!R29,'Trial 7'!R29,'Trial 8'!R29)","v":{"v":1083.0455943864076,"d":"1,083.05"}},{"$f":"SUM('Trial 1'!S29,'Trial 2'!S29,'Trial 3'!S29,'Trial 4'!S29,'Trial 5'!S29,'Trial 6'!S29,'Trial 7'!S29,'Trial 8'!S29)","v":{"v":1080.936205400866,"d":"1,080.94"}},{"$f":"SUM('Trial 1'!T29,'Trial 2'!T29,'Trial 3'!T29,'Trial 4'!T29,'Trial 5'!T29,'Trial 6'!T29,'Trial 7'!T29,'Trial 8'!T29)","v":{"v":1078.3331234044524,"d":"1,078.33"}},{"$f":"SUM('Trial 1'!U29,'Trial 2'!U29,'Trial 3'!U29,'Trial 4'!U29,'Trial 5'!U29,'Trial 6'!U29,'Trial 7'!U29,'Trial 8'!U29)","v":{"v":1076.2000623711635,"d":"1,076.20"}},{"$f":"SUM('Trial 1'!V29,'Trial 2'!V29,'Trial 3'!V29,'Trial 4'!V29,'Trial 5'!V29,'Trial 6'!V29,'Trial 7'!V29,'Trial 8'!V29)","v":{"v":1073.7818061885373,"d":"1,073.78"}},{"$f":"SUM('Trial 1'!W29,'Trial 2'!W29,'Trial 3'!W29,'Trial 4'!W29,'Trial 5'!W29,'Trial 6'!W29,'Trial 7'!W29,'Trial 8'!W29)","v":{"v":1071.4279309097856,"d":"1,071.43"}},{"$f":"SUM('Trial 1'!X29,'Trial 2'!X29,'Trial 3'!X29,'Trial 4'!X29,'Trial 5'!X29,'Trial 6'!X29,'Trial 7'!X29,'Trial 8'!X29)","v":{"v":1069.464389003088,"d":"1,069.46"}},{"$f":"SUM('Trial 1'!Y29,'Trial 2'!Y29,'Trial 3'!Y29,'Trial 4'!Y29,'Trial 5'!Y29,'Trial 6'!Y29,'Trial 7'!Y29,'Trial 8'!Y29)","v":{"v":1067.2315480318384,"d":"1,067.23"}},{"$f":"SUM('Trial 1'!Z29,'Trial 2'!Z29,'Trial 3'!Z29,'Trial 4'!Z29,'Trial 5'!Z29,'Trial 6'!Z29,'Trial 7'!Z29,'Trial 8'!Z29)","v":{"v":1065.0496977781957,"d":"1,065.05"}},{"$f":"SUM(O116:Z116)","v":{"v":12928.017378386132,"d":"12,928.02"}},{"$f":"SUM('Trial 1'!AB29,'Trial 2'!AB29,'Trial 3'!AB29,'Trial 4'!AB29,'Trial 5'!AB29,'Trial 6'!AB29,'Trial 7'!AB29,'Trial 8'!AB29)","v":{"v":1062.5995947139024,"d":"1,062.60"}},{"$f":"SUM('Trial 1'!AC29,'Trial 2'!AC29,'Trial 3'!AC29,'Trial 4'!AC29,'Trial 5'!AC29,'Trial 6'!AC29,'Trial 7'!AC29,'Trial 8'!AC29)","v":{"v":1060.5149794760928,"d":"1,060.51"}},{"$f":"SUM('Trial 1'!AD29,'Trial 2'!AD29,'Trial 3'!AD29,'Trial 4'!AD29,'Trial 5'!AD29,'Trial 6'!AD29,'Trial 7'!AD29,'Trial 8'!AD29)","v":{"v":1058.5837317595501,"d":"1,058.58"}},{"$f":"SUM('Trial 1'!AE29,'Trial 2'!AE29,'Trial 3'!AE29,'Trial 4'!AE29,'Trial 5'!AE29,'Trial 6'!AE29,'Trial 7'!AE29,'Trial 8'!AE29)","v":{"v":1056.578134179114,"d":"1,056.58"}},{"$f":"SUM('Trial 1'!AF29,'Trial 2'!AF29,'Trial 3'!AF29,'Trial 4'!AF29,'Trial 5'!AF29,'Trial 6'!AF29,'Trial 7'!AF29,'Trial 8'!AF29)","v":{"v":1054.5518865652925,"d":"1,054.55"}},{"$f":"SUM('Trial 1'!AG29,'Trial 2'!AG29,'Trial 3'!AG29,'Trial 4'!AG29,'Trial 5'!AG29,'Trial 6'!AG29,'Trial 7'!AG29,'Trial 8'!AG29)","v":{"v":1052.3314698922834,"d":"1,052.33"}},{"$f":"SUM('Trial 1'!AH29,'Trial 2'!AH29,'Trial 3'!AH29,'Trial 4'!AH29,'Trial 5'!AH29,'Trial 6'!AH29,'Trial 7'!AH29,'Trial 8'!AH29)","v":{"v":1050.4368959597002,"d":"1,050.44"}},{"$f":"SUM('Trial 1'!AI29,'Trial 2'!AI29,'Trial 3'!AI29,'Trial 4'!AI29,'Trial 5'!AI29,'Trial 6'!AI29,'Trial 7'!AI29,'Trial 8'!AI29)","v":{"v":1048.6867352239592,"d":"1,048.69"}},{"$f":"SUM('Trial 1'!AJ29,'Trial 2'!AJ29,'Trial 3'!AJ29,'Trial 4'!AJ29,'Trial 5'!AJ29,'Trial 6'!AJ29,'Trial 7'!AJ29,'Trial 8'!AJ29)","v":{"v":1046.5131821614257,"d":"1,046.51"}},{"$f":"SUM('Trial 1'!AK29,'Trial 2'!AK29,'Trial 3'!AK29,'Trial 4'!AK29,'Trial 5'!AK29,'Trial 6'!AK29,'Trial 7'!AK29,'Trial 8'!AK29)","v":{"v":1044.630604766998,"d":"1,044.63"}},{"$f":"SUM('Trial 1'!AL29,'Trial 2'!AL29,'Trial 3'!AL29,'Trial 4'!AL29,'Trial 5'!AL29,'Trial 6'!AL29,'Trial 7'!AL29,'Trial 8'!AL29)","v":{"v":1042.8285493435794,"d":"1,042.83"}},{"$f":"SUM('Trial 1'!AM29,'Trial 2'!AM29,'Trial 3'!AM29,'Trial 4'!AM29,'Trial 5'!AM29,'Trial 6'!AM29,'Trial 7'!AM29,'Trial 8'!AM29)","v":{"v":1041.0942481319778,"d":"1,041.09"}},{"$f":"SUM(AB116:AM116)","v":{"v":12619.350012173876,"d":"12,619.35"}},{"$f":"SUM('Trial 1'!AO29,'Trial 2'!AO29,'Trial 3'!AO29,'Trial 4'!AO29,'Trial 5'!AO29,'Trial 6'!AO29,'Trial 7'!AO29,'Trial 8'!AO29)","v":{"v":1039.097533742547,"d":"1,039.10"}},{"$f":"SUM('Trial 1'!AP29,'Trial 2'!AP29,'Trial 3'!AP29,'Trial 4'!AP29,'Trial 5'!AP29,'Trial 6'!AP29,'Trial 7'!AP29,'Trial 8'!AP29)","v":{"v":1037.2731605850197,"d":"1,037.27"}},{"$f":"SUM('Trial 1'!AQ29,'Trial 2'!AQ29,'Trial 3'!AQ29,'Trial 4'!AQ29,'Trial 5'!AQ29,'Trial 6'!AQ29,'Trial 7'!AQ29,'Trial 8'!AQ29)","v":{"v":1035.6374929875478,"d":"1,035.64"}},{"$f":"SUM('Trial 1'!AR29,'Trial 2'!AR29,'Trial 3'!AR29,'Trial 4'!AR29,'Trial 5'!AR29,'Trial 6'!AR29,'Trial 7'!AR29,'Trial 8'!AR29)","v":{"v":1033.7083314738024,"d":"1,033.71"}},{"$f":"SUM('Trial 1'!AS29,'Trial 2'!AS29,'Trial 3'!AS29,'Trial 4'!AS29,'Trial 5'!AS29,'Trial 6'!AS29,'Trial 7'!AS29,'Trial 8'!AS29)","v":{"v":1031.906933145508,"d":"1,031.91"}},{"$f":"SUM('Trial 1'!AT29,'Trial 2'!AT29,'Trial 3'!AT29,'Trial 4'!AT29,'Trial 5'!AT29,'Trial 6'!AT29,'Trial 7'!AT29,'Trial 8'!AT29)","v":{"v":1030.3016835360736,"d":"1,030.30"}},{"$f":"SUM('Trial 1'!AU29,'Trial 2'!AU29,'Trial 3'!AU29,'Trial 4'!AU29,'Trial 5'!AU29,'Trial 6'!AU29,'Trial 7'!AU29,'Trial 8'!AU29)","v":{"v":1028.5382859474355,"d":"1,028.54"}},{"$f":"SUM('Trial 1'!AV29,'Trial 2'!AV29,'Trial 3'!AV29,'Trial 4'!AV29,'Trial 5'!AV29,'Trial 6'!AV29,'Trial 7'!AV29,'Trial 8'!AV29)","v":{"v":1026.7431339051097,"d":"1,026.74"}},{"$f":"SUM('Trial 1'!AW29,'Trial 2'!AW29,'Trial 3'!AW29,'Trial 4'!AW29,'Trial 5'!AW29,'Trial 6'!AW29,'Trial 7'!AW29,'Trial 8'!AW29)","v":{"v":1025.0499542396237,"d":"1,025.05"}},{"$f":"SUM('Trial 1'!AX29,'Trial 2'!AX29,'Trial 3'!AX29,'Trial 4'!AX29,'Trial 5'!AX29,'Trial 6'!AX29,'Trial 7'!AX29,'Trial 8'!AX29)","v":{"v":1023.1814302993705,"d":"1,023.18"}},{"$f":"SUM('Trial 1'!AY29,'Trial 2'!AY29,'Trial 3'!AY29,'Trial 4'!AY29,'Trial 5'!AY29,'Trial 6'!AY29,'Trial 7'!AY29,'Trial 8'!AY29)","v":{"v":1021.4461914961676,"d":"1,021.45"}},{"$f":"SUM('Trial 1'!AZ29,'Trial 2'!AZ29,'Trial 3'!AZ29,'Trial 4'!AZ29,'Trial 5'!AZ29,'Trial 6'!AZ29,'Trial 7'!AZ29,'Trial 8'!AZ29)","v":{"v":1019.8113427882865,"d":"1,019.81"}},{"$f":"SUM(AO116:AZ116)","v":{"v":12352.695474146492,"d":"12,352.70"}},{"$f":"SUM('Trial 1'!BB29,'Trial 2'!BB29,'Trial 3'!BB29,'Trial 4'!BB29,'Trial 5'!BB29,'Trial 6'!BB29,'Trial 7'!BB29,'Trial 8'!BB29)","v":{"v":1017.9484075683836,"d":"1,017.95"}},{"$f":"SUM('Trial 1'!BC29,'Trial 2'!BC29,'Trial 3'!BC29,'Trial 4'!BC29,'Trial 5'!BC29,'Trial 6'!BC29,'Trial 7'!BC29,'Trial 8'!BC29)","v":{"v":1016.1354504632325,"d":"1,016.14"}},{"$f":"SUM('Trial 1'!BD29,'Trial 2'!BD29,'Trial 3'!BD29,'Trial 4'!BD29,'Trial 5'!BD29,'Trial 6'!BD29,'Trial 7'!BD29,'Trial 8'!BD29)","v":{"v":1014.4728216532257,"d":"1,014.47"}},{"$f":"SUM('Trial 1'!BE29,'Trial 2'!BE29,'Trial 3'!BE29,'Trial 4'!BE29,'Trial 5'!BE29,'Trial 6'!BE29,'Trial 7'!BE29,'Trial 8'!BE29)","v":{"v":1012.8838804374137,"d":"1,012.88"}},{"$f":"SUM('Trial 1'!BF29,'Trial 2'!BF29,'Trial 3'!BF29,'Trial 4'!BF29,'Trial 5'!BF29,'Trial 6'!BF29,'Trial 7'!BF29,'Trial 8'!BF29)","v":{"v":1011.2576125646483,"d":"1,011.26"}},{"$f":"SUM('Trial 1'!BG29,'Trial 2'!BG29,'Trial 3'!BG29,'Trial 4'!BG29,'Trial 5'!BG29,'Trial 6'!BG29,'Trial 7'!BG29,'Trial 8'!BG29)","v":{"v":1009.7621489495591,"d":"1,009.76"}},{"$f":"SUM('Trial 1'!BH29,'Trial 2'!BH29,'Trial 3'!BH29,'Trial 4'!BH29,'Trial 5'!BH29,'Trial 6'!BH29,'Trial 7'!BH29,'Trial 8'!BH29)","v":{"v":1008.2813593889084,"d":"1,008.28"}},{"$f":"SUM('Trial 1'!BI29,'Trial 2'!BI29,'Trial 3'!BI29,'Trial 4'!BI29,'Trial 5'!BI29,'Trial 6'!BI29,'Trial 7'!BI29,'Trial 8'!BI29)","v":{"v":1006.5489270482719,"d":"1,006.55"}},{"$f":"SUM('Trial 1'!BJ29,'Trial 2'!BJ29,'Trial 3'!BJ29,'Trial 4'!BJ29,'Trial 5'!BJ29,'Trial 6'!BJ29,'Trial 7'!BJ29,'Trial 8'!BJ29)","v":{"v":1004.9437214416843,"d":"1,004.94"}},{"$f":"SUM('Trial 1'!BK29,'Trial 2'!BK29,'Trial 3'!BK29,'Trial 4'!BK29,'Trial 5'!BK29,'Trial 6'!BK29,'Trial 7'!BK29,'Trial 8'!BK29)","v":{"v":1003.5391462276698,"d":"1,003.54"}},{"$f":"SUM('Trial 1'!BL29,'Trial 2'!BL29,'Trial 3'!BL29,'Trial 4'!BL29,'Trial 5'!BL29,'Trial 6'!BL29,'Trial 7'!BL29,'Trial 8'!BL29)","v":{"v":1001.9995515583896,"d":"1,002.00"}},{"$f":"SUM('Trial 1'!BM29,'Trial 2'!BM29,'Trial 3'!BM29,'Trial 4'!BM29,'Trial 5'!BM29,'Trial 6'!BM29,'Trial 7'!BM29,'Trial 8'!BM29)","v":{"v":1000.6282576325583,"d":"1,000.63"}},{"$f":"SUM(BB116:BM116)","v":{"v":12108.401284933945,"d":"12,108.40"}},{"$f":"SUM('Trial 1'!BO29,'Trial 2'!BO29,'Trial 3'!BO29,'Trial 4'!BO29,'Trial 5'!BO29,'Trial 6'!BO29,'Trial 7'!BO29,'Trial 8'!BO29)","v":{"v":999.1419789635659,"d":"999.14"}},{"$f":"SUM('Trial 1'!BP29,'Trial 2'!BP29,'Trial 3'!BP29,'Trial 4'!BP29,'Trial 5'!BP29,'Trial 6'!BP29,'Trial 7'!BP29,'Trial 8'!BP29)","v":{"v":997.6559538019773,"d":"997.66"}},{"$f":"SUM('Trial 1'!BQ29,'Trial 2'!BQ29,'Trial 3'!BQ29,'Trial 4'!BQ29,'Trial 5'!BQ29,'Trial 6'!BQ29,'Trial 7'!BQ29,'Trial 8'!BQ29)","v":{"v":996.2694116592354,"d":"996.27"}},{"$f":"SUM('Trial 1'!BR29,'Trial 2'!BR29,'Trial 3'!BR29,'Trial 4'!BR29,'Trial 5'!BR29,'Trial 6'!BR29,'Trial 7'!BR29,'Trial 8'!BR29)","v":{"v":995.0372128771827,"d":"995.04"}},{"$f":"SUM('Trial 1'!BS29,'Trial 2'!BS29,'Trial 3'!BS29,'Trial 4'!BS29,'Trial 5'!BS29,'Trial 6'!BS29,'Trial 7'!BS29,'Trial 8'!BS29)","v":{"v":993.7711054655532,"d":"993.77"}},{"$f":"SUM('Trial 1'!BT29,'Trial 2'!BT29,'Trial 3'!BT29,'Trial 4'!BT29,'Trial 5'!BT29,'Trial 6'!BT29,'Trial 7'!BT29,'Trial 8'!BT29)","v":{"v":992.2916404341272,"d":"992.29"}},{"$f":"SUM('Trial 1'!BU29,'Trial 2'!BU29,'Trial 3'!BU29,'Trial 4'!BU29,'Trial 5'!BU29,'Trial 6'!BU29,'Trial 7'!BU29,'Trial 8'!BU29)","v":{"v":991.1674623665122,"d":"991.17"}},{"$f":"SUM('Trial 1'!BV29,'Trial 2'!BV29,'Trial 3'!BV29,'Trial 4'!BV29,'Trial 5'!BV29,'Trial 6'!BV29,'Trial 7'!BV29,'Trial 8'!BV29)","v":{"v":989.6926153325117,"d":"989.69"}},{"$f":"SUM('Trial 1'!BW29,'Trial 2'!BW29,'Trial 3'!BW29,'Trial 4'!BW29,'Trial 5'!BW29,'Trial 6'!BW29,'Trial 7'!BW29,'Trial 8'!BW29)","v":{"v":988.3188076199935,"d":"988.32"}},{"$f":"SUM('Trial 1'!BX29,'Trial 2'!BX29,'Trial 3'!BX29,'Trial 4'!BX29,'Trial 5'!BX29,'Trial 6'!BX29,'Trial 7'!BX29,'Trial 8'!BX29)","v":{"v":987.1811409868969,"d":"987.18"}},{"$f":"SUM('Trial 1'!BY29,'Trial 2'!BY29,'Trial 3'!BY29,'Trial 4'!BY29,'Trial 5'!BY29,'Trial 6'!BY29,'Trial 7'!BY29,'Trial 8'!BY29)","v":{"v":985.7315408180139,"d":"985.73"}},{"$f":"SUM('Trial 1'!BZ29,'Trial 2'!BZ29,'Trial 3'!BZ29,'Trial 4'!BZ29,'Trial 5'!BZ29,'Trial 6'!BZ29,'Trial 7'!BZ29,'Trial 8'!BZ29)","v":{"v":984.5838151200597,"d":"984.58"}},{"$f":"SUM(BO116:BZ116)","v":{"v":11900.842685445632,"d":"11,900.84"}},{"$f":"SUM('Trial 1'!CB29,'Trial 2'!CB29,'Trial 3'!CB29,'Trial 4'!CB29,'Trial 5'!CB29,'Trial 6'!CB29,'Trial 7'!CB29,'Trial 8'!CB29)","v":{"v":983.3031251618573,"d":"983.30"}},{"$f":"SUM('Trial 1'!CC29,'Trial 2'!CC29,'Trial 3'!CC29,'Trial 4'!CC29,'Trial 5'!CC29,'Trial 6'!CC29,'Trial 7'!CC29,'Trial 8'!CC29)","v":{"v":981.9914896602559,"d":"981.99"}},{"$f":"SUM('Trial 1'!CD29,'Trial 2'!CD29,'Trial 3'!CD29,'Trial 4'!CD29,'Trial 5'!CD29,'Trial 6'!CD29,'Trial 7'!CD29,'Trial 8'!CD29)","v":{"v":980.6627611968238,"d":"980.66"}},{"$f":"SUM('Trial 1'!CE29,'Trial 2'!CE29,'Trial 3'!CE29,'Trial 4'!CE29,'Trial 5'!CE29,'Trial 6'!CE29,'Trial 7'!CE29,'Trial 8'!CE29)","v":{"v":979.5016588427347,"d":"979.50"}},{"$f":"SUM('Trial 1'!CF29,'Trial 2'!CF29,'Trial 3'!CF29,'Trial 4'!CF29,'Trial 5'!CF29,'Trial 6'!CF29,'Trial 7'!CF29,'Trial 8'!CF29)","v":{"v":978.1149505286962,"d":"978.11"}},{"$f":"SUM('Trial 1'!CG29,'Trial 2'!CG29,'Trial 3'!CG29,'Trial 4'!CG29,'Trial 5'!CG29,'Trial 6'!CG29,'Trial 7'!CG29,'Trial 8'!CG29)","v":{"v":976.8629637499323,"d":"976.86"}},{"$f":"SUM('Trial 1'!CH29,'Trial 2'!CH29,'Trial 3'!CH29,'Trial 4'!CH29,'Trial 5'!CH29,'Trial 6'!CH29,'Trial 7'!CH29,'Trial 8'!CH29)","v":{"v":976.0130903557007,"d":"976.01"}},{"$f":"SUM('Trial 1'!CI29,'Trial 2'!CI29,'Trial 3'!CI29,'Trial 4'!CI29,'Trial 5'!CI29,'Trial 6'!CI29,'Trial 7'!CI29,'Trial 8'!CI29)","v":{"v":974.852683746109,"d":"974.85"}},{"$f":"SUM('Trial 1'!CJ29,'Trial 2'!CJ29,'Trial 3'!CJ29,'Trial 4'!CJ29,'Trial 5'!CJ29,'Trial 6'!CJ29,'Trial 7'!CJ29,'Trial 8'!CJ29)","v":{"v":973.7797370770329,"d":"973.78"}},{"$f":"SUM('Trial 1'!CK29,'Trial 2'!CK29,'Trial 3'!CK29,'Trial 4'!CK29,'Trial 5'!CK29,'Trial 6'!CK29,'Trial 7'!CK29,'Trial 8'!CK29)","v":{"v":972.6608277835024,"d":"972.66"}},{"$f":"SUM('Trial 1'!CL29,'Trial 2'!CL29,'Trial 3'!CL29,'Trial 4'!CL29,'Trial 5'!CL29,'Trial 6'!CL29,'Trial 7'!CL29,'Trial 8'!CL29)","v":{"v":971.7337291874492,"d":"971.73"}},{"$f":"SUM('Trial 1'!CM29,'Trial 2'!CM29,'Trial 3'!CM29,'Trial 4'!CM29,'Trial 5'!CM29,'Trial 6'!CM29,'Trial 7'!CM29,'Trial 8'!CM29)","v":{"v":970.5345434055446,"d":"970.53"}},{"$f":"SUM(CB116:CM116)","v":{"v":11720.011560695639,"d":"11,720.01"}},{"$f":"SUM('Trial 1'!CO29,'Trial 2'!CO29,'Trial 3'!CO29,'Trial 4'!CO29,'Trial 5'!CO29,'Trial 6'!CO29,'Trial 7'!CO29,'Trial 8'!CO29)","v":{"v":969.5948276498787,"d":"969.59"}},{"$f":"SUM('Trial 1'!CP29,'Trial 2'!CP29,'Trial 3'!CP29,'Trial 4'!CP29,'Trial 5'!CP29,'Trial 6'!CP29,'Trial 7'!CP29,'Trial 8'!CP29)","v":{"v":968.5488023125642,"d":"968.55"}},{"$f":"SUM('Trial 1'!CQ29,'Trial 2'!CQ29,'Trial 3'!CQ29,'Trial 4'!CQ29,'Trial 5'!CQ29,'Trial 6'!CQ29,'Trial 7'!CQ29,'Trial 8'!CQ29)","v":{"v":967.5217976704553,"d":"967.52"}},{"$f":"SUM('Trial 1'!CR29,'Trial 2'!CR29,'Trial 3'!CR29,'Trial 4'!CR29,'Trial 5'!CR29,'Trial 6'!CR29,'Trial 7'!CR29,'Trial 8'!CR29)","v":{"v":966.4833528087454,"d":"966.48"}},{"$f":"SUM('Trial 1'!CS29,'Trial 2'!CS29,'Trial 3'!CS29,'Trial 4'!CS29,'Trial 5'!CS29,'Trial 6'!CS29,'Trial 7'!CS29,'Trial 8'!CS29)","v":{"v":965.3770011383563,"d":"965.38"}},{"$f":"SUM('Trial 1'!CT29,'Trial 2'!CT29,'Trial 3'!CT29,'Trial 4'!CT29,'Trial 5'!CT29,'Trial 6'!CT29,'Trial 7'!CT29,'Trial 8'!CT29)","v":{"v":963.9840729448256,"d":"963.98"}},{"$f":"SUM('Trial 1'!CU29,'Trial 2'!CU29,'Trial 3'!CU29,'Trial 4'!CU29,'Trial 5'!CU29,'Trial 6'!CU29,'Trial 7'!CU29,'Trial 8'!CU29)","v":{"v":962.7425845422033,"d":"962.74"}},{"$f":"SUM('Trial 1'!CV29,'Trial 2'!CV29,'Trial 3'!CV29,'Trial 4'!CV29,'Trial 5'!CV29,'Trial 6'!CV29,'Trial 7'!CV29,'Trial 8'!CV29)","v":{"v":961.969037661803,"d":"961.97"}},{"$f":"SUM('Trial 1'!CW29,'Trial 2'!CW29,'Trial 3'!CW29,'Trial 4'!CW29,'Trial 5'!CW29,'Trial 6'!CW29,'Trial 7'!CW29,'Trial 8'!CW29)","v":{"v":960.8359324403223,"d":"960.84"}},{"$f":"SUM('Trial 1'!CX29,'Trial 2'!CX29,'Trial 3'!CX29,'Trial 4'!CX29,'Trial 5'!CX29,'Trial 6'!CX29,'Trial 7'!CX29,'Trial 8'!CX29)","v":{"v":959.7392624418522,"d":"959.74"}},{"$f":"SUM('Trial 1'!CY29,'Trial 2'!CY29,'Trial 3'!CY29,'Trial 4'!CY29,'Trial 5'!CY29,'Trial 6'!CY29,'Trial 7'!CY29,'Trial 8'!CY29)","v":{"v":958.5953771603338,"d":"958.60"}},{"$f":"SUM('Trial 1'!CZ29,'Trial 2'!CZ29,'Trial 3'!CZ29,'Trial 4'!CZ29,'Trial 5'!CZ29,'Trial 6'!CZ29,'Trial 7'!CZ29,'Trial 8'!CZ29)","v":{"v":957.6396783525555,"d":"957.64"}},{"$f":"SUM(CO116:CZ116)","v":{"v":11563.031727123896,"d":"11,563.03"}},{"$f":"SUM('Trial 1'!DB29,'Trial 2'!DB29,'Trial 3'!DB29,'Trial 4'!DB29,'Trial 5'!DB29,'Trial 6'!DB29,'Trial 7'!DB29,'Trial 8'!DB29)","v":{"v":956.5360698888801,"d":"956.54"}},{"$f":"SUM('Trial 1'!DC29,'Trial 2'!DC29,'Trial 3'!DC29,'Trial 4'!DC29,'Trial 5'!DC29,'Trial 6'!DC29,'Trial 7'!DC29,'Trial 8'!DC29)","v":{"v":955.6275325633311,"d":"955.63"}},{"$f":"SUM('Trial 1'!DD29,'Trial 2'!DD29,'Trial 3'!DD29,'Trial 4'!DD29,'Trial 5'!DD29,'Trial 6'!DD29,'Trial 7'!DD29,'Trial 8'!DD29)","v":{"v":954.4381350555923,"d":"954.44"}},{"$f":"SUM('Trial 1'!DE29,'Trial 2'!DE29,'Trial 3'!DE29,'Trial 4'!DE29,'Trial 5'!DE29,'Trial 6'!DE29,'Trial 7'!DE29,'Trial 8'!DE29)","v":{"v":953.3539751441584,"d":"953.35"}},{"$f":"SUM('Trial 1'!DF29,'Trial 2'!DF29,'Trial 3'!DF29,'Trial 4'!DF29,'Trial 5'!DF29,'Trial 6'!DF29,'Trial 7'!DF29,'Trial 8'!DF29)","v":{"v":952.4379437165354,"d":"952.44"}},{"$f":"SUM('Trial 1'!DG29,'Trial 2'!DG29,'Trial 3'!DG29,'Trial 4'!DG29,'Trial 5'!DG29,'Trial 6'!DG29,'Trial 7'!DG29,'Trial 8'!DG29)","v":{"v":951.4315710586537,"d":"951.43"}},{"$f":"SUM('Trial 1'!DH29,'Trial 2'!DH29,'Trial 3'!DH29,'Trial 4'!DH29,'Trial 5'!DH29,'Trial 6'!DH29,'Trial 7'!DH29,'Trial 8'!DH29)","v":{"v":950.3905202794866,"d":"950.39"}},{"$f":"SUM('Trial 1'!DI29,'Trial 2'!DI29,'Trial 3'!DI29,'Trial 4'!DI29,'Trial 5'!DI29,'Trial 6'!DI29,'Trial 7'!DI29,'Trial 8'!DI29)","v":{"v":949.3291021172384,"d":"949.33"}},{"$f":"SUM('Trial 1'!DJ29,'Trial 2'!DJ29,'Trial 3'!DJ29,'Trial 4'!DJ29,'Trial 5'!DJ29,'Trial 6'!DJ29,'Trial 7'!DJ29,'Trial 8'!DJ29)","v":{"v":948.233255970856,"d":"948.23"}},{"$f":"SUM('Trial 1'!DK29,'Trial 2'!DK29,'Trial 3'!DK29,'Trial 4'!DK29,'Trial 5'!DK29,'Trial 6'!DK29,'Trial 7'!DK29,'Trial 8'!DK29)","v":{"v":947.2626198727266,"d":"947.26"}},{"$f":"SUM('Trial 1'!DL29,'Trial 2'!DL29,'Trial 3'!DL29,'Trial 4'!DL29,'Trial 5'!DL29,'Trial 6'!DL29,'Trial 7'!DL29,'Trial 8'!DL29)","v":{"v":946.2686460830336,"d":"946.27"}},{"$f":"SUM('Trial 1'!DM29,'Trial 2'!DM29,'Trial 3'!DM29,'Trial 4'!DM29,'Trial 5'!DM29,'Trial 6'!DM29,'Trial 7'!DM29,'Trial 8'!DM29)","v":{"v":945.1853648443449,"d":"945.19"}},{"$f":"SUM(DB116:DM116)","v":{"v":11410.494736594837,"d":"11,410.49"}},{"$f":"SUM('Trial 1'!DO29,'Trial 2'!DO29,'Trial 3'!DO29,'Trial 4'!DO29,'Trial 5'!DO29,'Trial 6'!DO29,'Trial 7'!DO29,'Trial 8'!DO29)","v":{"v":944.1521782080604,"d":"944.15"}},{"$f":"SUM('Trial 1'!DP29,'Trial 2'!DP29,'Trial 3'!DP29,'Trial 4'!DP29,'Trial 5'!DP29,'Trial 6'!DP29,'Trial 7'!DP29,'Trial 8'!DP29)","v":{"v":943.3459496356863,"d":"943.35"}},{"$f":"SUM('Trial 1'!DQ29,'Trial 2'!DQ29,'Trial 3'!DQ29,'Trial 4'!DQ29,'Trial 5'!DQ29,'Trial 6'!DQ29,'Trial 7'!DQ29,'Trial 8'!DQ29)","v":{"v":942.3331392768471,"d":"942.33"}},{"$f":"SUM('Trial 1'!DR29,'Trial 2'!DR29,'Trial 3'!DR29,'Trial 4'!DR29,'Trial 5'!DR29,'Trial 6'!DR29,'Trial 7'!DR29,'Trial 8'!DR29)","v":{"v":941.607173309877,"d":"941.61"}},{"$f":"SUM('Trial 1'!DS29,'Trial 2'!DS29,'Trial 3'!DS29,'Trial 4'!DS29,'Trial 5'!DS29,'Trial 6'!DS29,'Trial 7'!DS29,'Trial 8'!DS29)","v":{"v":940.7209054094791,"d":"940.72"}},{"$f":"SUM('Trial 1'!DT29,'Trial 2'!DT29,'Trial 3'!DT29,'Trial 4'!DT29,'Trial 5'!DT29,'Trial 6'!DT29,'Trial 7'!DT29,'Trial 8'!DT29)","v":{"v":939.8192271336435,"d":"939.82"}},{"$f":"SUM('Trial 1'!DU29,'Trial 2'!DU29,'Trial 3'!DU29,'Trial 4'!DU29,'Trial 5'!DU29,'Trial 6'!DU29,'Trial 7'!DU29,'Trial 8'!DU29)","v":{"v":939.0978526230667,"d":"939.10"}},{"$f":"SUM('Trial 1'!DV29,'Trial 2'!DV29,'Trial 3'!DV29,'Trial 4'!DV29,'Trial 5'!DV29,'Trial 6'!DV29,'Trial 7'!DV29,'Trial 8'!DV29)","v":{"v":938.2672436175104,"d":"938.27"}},{"$f":"SUM('Trial 1'!DW29,'Trial 2'!DW29,'Trial 3'!DW29,'Trial 4'!DW29,'Trial 5'!DW29,'Trial 6'!DW29,'Trial 7'!DW29,'Trial 8'!DW29)","v":{"v":937.493489963278,"d":"937.49"}},{"$f":"SUM('Trial 1'!DX29,'Trial 2'!DX29,'Trial 3'!DX29,'Trial 4'!DX29,'Trial 5'!DX29,'Trial 6'!DX29,'Trial 7'!DX29,'Trial 8'!DX29)","v":{"v":936.6505409708816,"d":"936.65"}},{"$f":"SUM('Trial 1'!DY29,'Trial 2'!DY29,'Trial 3'!DY29,'Trial 4'!DY29,'Trial 5'!DY29,'Trial 6'!DY29,'Trial 7'!DY29,'Trial 8'!DY29)","v":{"v":935.7859512237103,"d":"935.79"}},{"$f":"SUM('Trial 1'!DZ29,'Trial 2'!DZ29,'Trial 3'!DZ29,'Trial 4'!DZ29,'Trial 5'!DZ29,'Trial 6'!DZ29,'Trial 7'!DZ29,'Trial 8'!DZ29)","v":{"v":934.9434006307569,"d":"934.94"}},{"$f":"SUM(DO116:DZ116)","v":{"v":11274.217052002796,"d":"11,274.22"}},{"$f":"SUM('Trial 1'!EB29,'Trial 2'!EB29,'Trial 3'!EB29,'Trial 4'!EB29,'Trial 5'!EB29,'Trial 6'!EB29,'Trial 7'!EB29,'Trial 8'!EB29)","v":{"v":933.8797279658862,"d":"933.88"}},{"$f":"SUM('Trial 1'!EC29,'Trial 2'!EC29,'Trial 3'!EC29,'Trial 4'!EC29,'Trial 5'!EC29,'Trial 6'!EC29,'Trial 7'!EC29,'Trial 8'!EC29)","v":{"v":933.1125408233232,"d":"933.11"}},{"$f":"SUM('Trial 1'!ED29,'Trial 2'!ED29,'Trial 3'!ED29,'Trial 4'!ED29,'Trial 5'!ED29,'Trial 6'!ED29,'Trial 7'!ED29,'Trial 8'!ED29)","v":{"v":932.0859448728763,"d":"932.09"}},{"$f":"SUM('Trial 1'!EE29,'Trial 2'!EE29,'Trial 3'!EE29,'Trial 4'!EE29,'Trial 5'!EE29,'Trial 6'!EE29,'Trial 7'!EE29,'Trial 8'!EE29)","v":{"v":931.1483025704654,"d":"931.15"}},{"$f":"SUM('Trial 1'!EF29,'Trial 2'!EF29,'Trial 3'!EF29,'Trial 4'!EF29,'Trial 5'!EF29,'Trial 6'!EF29,'Trial 7'!EF29,'Trial 8'!EF29)","v":{"v":930.3404080961329,"d":"930.34"}},{"$f":"SUM('Trial 1'!EG29,'Trial 2'!EG29,'Trial 3'!EG29,'Trial 4'!EG29,'Trial 5'!EG29,'Trial 6'!EG29,'Trial 7'!EG29,'Trial 8'!EG29)","v":{"v":929.5620362573837,"d":"929.56"}},{"$f":"SUM('Trial 1'!EH29,'Trial 2'!EH29,'Trial 3'!EH29,'Trial 4'!EH29,'Trial 5'!EH29,'Trial 6'!EH29,'Trial 7'!EH29,'Trial 8'!EH29)","v":{"v":928.6061840116238,"d":"928.61"}},{"$f":"SUM('Trial 1'!EI29,'Trial 2'!EI29,'Trial 3'!EI29,'Trial 4'!EI29,'Trial 5'!EI29,'Trial 6'!EI29,'Trial 7'!EI29,'Trial 8'!EI29)","v":{"v":927.7138079589713,"d":"927.71"}},{"$f":"SUM('Trial 1'!EJ29,'Trial 2'!EJ29,'Trial 3'!EJ29,'Trial 4'!EJ29,'Trial 5'!EJ29,'Trial 6'!EJ29,'Trial 7'!EJ29,'Trial 8'!EJ29)","v":{"v":926.5807761529244,"d":"926.58"}},{"$f":"SUM('Trial 1'!EK29,'Trial 2'!EK29,'Trial 3'!EK29,'Trial 4'!EK29,'Trial 5'!EK29,'Trial 6'!EK29,'Trial 7'!EK29,'Trial 8'!EK29)","v":{"v":925.7084585016753,"d":"925.71"}},{"$f":"SUM('Trial 1'!EL29,'Trial 2'!EL29,'Trial 3'!EL29,'Trial 4'!EL29,'Trial 5'!EL29,'Trial 6'!EL29,'Trial 7'!EL29,'Trial 8'!EL29)","v":{"v":924.9897703734582,"d":"924.99"}},{"$f":"SUM('Trial 1'!EM29,'Trial 2'!EM29,'Trial 3'!EM29,'Trial 4'!EM29,'Trial 5'!EM29,'Trial 6'!EM29,'Trial 7'!EM29,'Trial 8'!EM29)","v":{"v":924.0958692710263,"d":"924.10"}},{"$f":"SUM(EB116:EM116)","v":{"v":11147.823826855747,"d":"11,147.82"}}]
[{"$f":"Labels!B34","v":"Short Expected Demand"}]
[{"$f":"Labels!D96","v":"Trials"},{"$f":"ZZZ__FnCalls!F7","v":"Jan 2010"},{"$f":"ZZZ__FnCalls!F8","v":"Feb 2010"},{"$f":"ZZZ__FnCalls!F9","v":"Mar 2010"},{"$f":"ZZZ__FnCalls!F10","v":"Apr 2010"},{"$f":"ZZZ__FnCalls!F11","v":"May 2010"},{"$f":"ZZZ__FnCalls!F12","v":"Jun 2010"},{"$f":"ZZZ__FnCalls!F13","v":"Jul 2010"},{"$f":"ZZZ__FnCalls!F14","v":"Aug 2010"},{"$f":"ZZZ__FnCalls!F15","v":"Sep 2010"},{"$f":"ZZZ__FnCalls!F16","v":"Oct 2010"},{"$f":"ZZZ__FnCalls!F17","v":"Nov 2010"},{"$f":"ZZZ__FnCalls!F18","v":"Dec 2010"},{"$f":"ZZZ__FnCalls!H7","v":"2010"},{"$f":"ZZZ__FnCalls!F19","v":"Jan 2011"},{"$f":"ZZZ__FnCalls!F20","v":"Feb 2011"},{"$f":"ZZZ__FnCalls!F21","v":"Mar 2011"},{"$f":"ZZZ__FnCalls!F22","v":"Apr 2011"},{"$f":"ZZZ__FnCalls!F23","v":"May 2011"},{"$f":"ZZZ__FnCalls!F24","v":"Jun 2011"},{"$f":"ZZZ__FnCalls!F25","v":"Jul 2011"},{"$f":"ZZZ__FnCalls!F26","v":"Aug 2011"},{"$f":"ZZZ__FnCalls!F27","v":"Sep 2011"},{"$f":"ZZZ__FnCalls!F28","v":"Oct 2011"},{"$f":"ZZZ__FnCalls!F29","v":"Nov 2011"},{"$f":"ZZZ__FnCalls!F30","v":"Dec 2011"},{"$f":"ZZZ__FnCalls!H19","v":"2011"},{"$f":"ZZZ__FnCalls!F31","v":"Jan 2012"},{"$f":"ZZZ__FnCalls!F32","v":"Feb 2012"},{"$f":"ZZZ__FnCalls!F33","v":"Mar 2012"},{"$f":"ZZZ__FnCalls!F34","v":"Apr 2012"},{"$f":"ZZZ__FnCalls!F35","v":"May 2012"},{"$f":"ZZZ__FnCalls!F36","v":"Jun 2012"},{"$f":"ZZZ__FnCalls!F37","v":"Jul 2012"},{"$f":"ZZZ__FnCalls!F38","v":"Aug 2012"},{"$f":"ZZZ__FnCalls!F39","v":"Sep 2012"},{"$f":"ZZZ__FnCalls!F40","v":"Oct 2012"},{"$f":"ZZZ__FnCalls!F41","v":"Nov 2012"},{"$f":"ZZZ__FnCalls!F42","v":"Dec 2012"},{"$f":"ZZZ__FnCalls!H31","v":"2012"},{"$f":"ZZZ__FnCalls!F43","v":"Jan 2013"},{"$f":"ZZZ__FnCalls!F44","v":"Feb 2013"},{"$f":"ZZZ__FnCalls!F45","v":"Mar 2013"},{"$f":"ZZZ__FnCalls!F46","v":"Apr 2013"},{"$f":"ZZZ__FnCalls!F47","v":"May 2013"},{"$f":"ZZZ__FnCalls!F48","v":"Jun 2013"},{"$f":"ZZZ__FnCalls!F49","v":"Jul 2013"},{"$f":"ZZZ__FnCalls!F50","v":"Aug 2013"},{"$f":"ZZZ__FnCalls!F51","v":"Sep 2013"},{"$f":"ZZZ__FnCalls!F52","v":"Oct 2013"},{"$f":"ZZZ__FnCalls!F53","v":"Nov 2013"},{"$f":"ZZZ__FnCalls!F54","v":"Dec 2013"},{"$f":"ZZZ__FnCalls!H43","v":"2013"},{"$f":"ZZZ__FnCalls!F55","v":"Jan 2014"},{"$f":"ZZZ__FnCalls!F56","v":"Feb 2014"},{"$f":"ZZZ__FnCalls!F57","v":"Mar 2014"},{"$f":"ZZZ__FnCalls!F58","v":"Apr 2014"},{"$f":"ZZZ__FnCalls!F59","v":"May 2014"},{"$f":"ZZZ__FnCalls!F60","v":"Jun 2014"},{"$f":"ZZZ__FnCalls!F61","v":"Jul 2014"},{"$f":"ZZZ__FnCalls!F62","v":"Aug 2014"},{"$f":"ZZZ__FnCalls!F63","v":"Sep 2014"},{"$f":"ZZZ__FnCalls!F64","v":"Oct 2014"},{"$f":"ZZZ__FnCalls!F65","v":"Nov 2014"},{"$f":"ZZZ__FnCalls!F66","v":"Dec 2014"},{"$f":"ZZZ__FnCalls!H55","v":"2014"},{"$f":"ZZZ__FnCalls!F67","v":"Jan 2015"},{"$f":"ZZZ__FnCalls!F68","v":"Feb 2015"},{"$f":"ZZZ__FnCalls!F69","v":"Mar 2015"},{"$f":"ZZZ__FnCalls!F70","v":"Apr 2015"},{"$f":"ZZZ__FnCalls!F71","v":"May 2015"},{"$f":"ZZZ__FnCalls!F72","v":"Jun 2015"},{"$f":"ZZZ__FnCalls!F73","v":"Jul 2015"},{"$f":"ZZZ__FnCalls!F74","v":"Aug 2015"},{"$f":"ZZZ__FnCalls!F75","v":"Sep 2015"},{"$f":"ZZZ__FnCalls!F76","v":"Oct 2015"},{"$f":"ZZZ__FnCalls!F77","v":"Nov 2015"},{"$f":"ZZZ__FnCalls!F78","v":"Dec 2015"},{"$f":"ZZZ__FnCalls!H67","v":"2015"},{"$f":"ZZZ__FnCalls!F79","v":"Jan 2016"},{"$f":"ZZZ__FnCalls!F80","v":"Feb 2016"},{"$f":"ZZZ__FnCalls!F81","v":"Mar 2016"},{"$f":"ZZZ__FnCalls!F82","v":"Apr 2016"},{"$f":"ZZZ__FnCalls!F83","v":"May 2016"},{"$f":"ZZZ__FnCalls!F84","v":"Jun 2016"},{"$f":"ZZZ__FnCalls!F85","v":"Jul 2016"},{"$f":"ZZZ__FnCalls!F86","v":"Aug 2016"},{"$f":"ZZZ__FnCalls!F87","v":"Sep 2016"},{"$f":"ZZZ__FnCalls!F88","v":"Oct 2016"},{"$f":"ZZZ__FnCalls!F89","v":"Nov 2016"},{"$f":"ZZZ__FnCalls!F90","v":"Dec 2016"},{"$f":"ZZZ__FnCalls!H79","v":"2016"},{"$f":"ZZZ__FnCalls!F91","v":"Jan 2017"},{"$f":"ZZZ__FnCalls!F92","v":"Feb 2017"},{"$f":"ZZZ__FnCalls!F93","v":"Mar 2017"},{"$f":"ZZZ__FnCalls!F94","v":"Apr 2017"},{"$f":"ZZZ__FnCalls!F95","v":"May 2017"},{"$f":"ZZZ__FnCalls!F96","v":"Jun 2017"},{"$f":"ZZZ__FnCalls!F97","v":"Jul 2017"},{"$f":"ZZZ__FnCalls!F98","v":"Aug 2017"},{"$f":"ZZZ__FnCalls!F99","v":"Sep 2017"},{"$f":"ZZZ__FnCalls!F100","v":"Oct 2017"},{"$f":"ZZZ__FnCalls!F101","v":"Nov 2017"},{"$f":"ZZZ__FnCalls!F102","v":"Dec 2017"},{"$f":"ZZZ__FnCalls!H91","v":"2017"},{"$f":"ZZZ__FnCalls!F103","v":"Jan 2018"},{"$f":"ZZZ__FnCalls!F104","v":"Feb 2018"},{"$f":"ZZZ__FnCalls!F105","v":"Mar 2018"},{"$f":"ZZZ__FnCalls!F106","v":"Apr 2018"},{"$f":"ZZZ__FnCalls!F107","v":"May 2018"},{"$f":"ZZZ__FnCalls!F108","v":"Jun 2018"},{"$f":"ZZZ__FnCalls!F109","v":"Jul 2018"},{"$f":"ZZZ__FnCalls!F110","v":"Aug 2018"},{"$f":"ZZZ__FnCalls!F111","v":"Sep 2018"},{"$f":"ZZZ__FnCalls!F112","v":"Oct 2018"},{"$f":"ZZZ__FnCalls!F113","v":"Nov 2018"},{"$f":"ZZZ__FnCalls!F114","v":"Dec 2018"},{"$f":"ZZZ__FnCalls!H103","v":"2018"},{"$f":"ZZZ__FnCalls!F115","v":"Jan 2019"},{"$f":"ZZZ__FnCalls!F116","v":"Feb 2019"},{"$f":"ZZZ__FnCalls!F117","v":"Mar 2019"},{"$f":"ZZZ__FnCalls!F118","v":"Apr 2019"},{"$f":"ZZZ__FnCalls!F119","v":"May 2019"},{"$f":"ZZZ__FnCalls!F120","v":"Jun 2019"},{"$f":"ZZZ__FnCalls!F121","v":"Jul 2019"},{"$f":"ZZZ__FnCalls!F122","v":"Aug 2019"},{"$f":"ZZZ__FnCalls!F123","v":"Sep 2019"},{"$f":"ZZZ__FnCalls!F124","v":"Oct 2019"},{"$f":"ZZZ__FnCalls!F125","v":"Nov 2019"},{"$f":"ZZZ__FnCalls!F126","v":"Dec 2019"},{"$f":"ZZZ__FnCalls!H115","v":"2019"},{"$f":"ZZZ__FnCalls!F127","v":"Jan 2020"},{"$f":"ZZZ__FnCalls!F128","v":"Feb 2020"},{"$f":"ZZZ__FnCalls!F129","v":"Mar 2020"},{"$f":"ZZZ__FnCalls!F130","v":"Apr 2020"},{"$f":"ZZZ__FnCalls!F131","v":"May 2020"},{"$f":"ZZZ__FnCalls!F132","v":"Jun 2020"},{"$f":"ZZZ__FnCalls!F133","v":"Jul 2020"},{"$f":"ZZZ__FnCalls!F134","v":"Aug 2020"},{"$f":"ZZZ__FnCalls!F135","v":"Sep 2020"},{"$f":"ZZZ__FnCalls!F136","v":"Oct 2020"},{"$f":"ZZZ__FnCalls!F137","v":"Nov 2020"},{"$f":"ZZZ__FnCalls!F138","v":"Dec 2020"},{"$f":"ZZZ__FnCalls!H127","v":"2020"}]
[{"$f":"Labels!B96","v":"Trial 01"},{"$f":"'Trial 1'!B11","v":{"v":1166666.6666666667,"d":"$1,166,667"}},{"$f":"'Trial 1'!C11","v":{"v":1163520.2600450728,"d":"$1,163,520"}},{"$f":"'Trial 1'!D11","v":{"v":1161251.108371822,"d":"$1,161,251"}},{"$f":"'Trial 1'!E11","v":{"v":1158772.5085246568,"d":"$1,158,773"}},{"$f":"'Trial 1'!F11","v":{"v":1156041.2069612886,"d":"$1,156,041"}},{"$f":"'Trial 1'!G11","v":{"v":1154032.8594555801,"d":"$1,154,033"}},{"$f":"'Trial 1'!H11","v":{"v":1151614.3105820261,"d":"$1,151,614"}},{"$f":"'Trial 1'!I11","v":{"v":1148798.3353250064,"d":"$1,148,798"}},{"$f":"'Trial 1'!J11","v":{"v":1146154.7319460667,"d":"$1,146,155"}},{"$f":"'Trial 1'!K11","v":{"v":1143787.3080707442,"d":"$1,143,787"}},{"$f":"'Trial 1'!L11","v":{"v":1142044.9034624333,"d":"$1,142,045"}},{"$f":"'Trial 1'!M11","v":{"v":1140019.5626520626,"d":"$1,140,020"}},{"$f":"SUM('Trial 1'!B11:M11)","v":{"v":13832703.762063425,"d":"$13,832,704"}},{"$f":"'Trial 1'!O11","v":{"v":1137795.8122563933,"d":"$1,137,796"}},{"$f":"'Trial 1'!P11","v":{"v":1135136.3824109647,"d":"$1,135,136"}},{"$f":"'Trial 1'!Q11","v":{"v":1132758.322346151,"d":"$1,132,758"}},{"$f":"'Trial 1'!R11","v":{"v":1129500.9189307955,"d":"$1,129,501"}},{"$f":"'Trial 1'!S11","v":{"v":1127394.827792006,"d":"$1,127,395"}},{"$f":"'Trial 1'!T11","v":{"v":1124316.7088739744,"d":"$1,124,317"}},{"$f":"'Trial 1'!U11","v":{"v":1121557.876433266,"d":"$1,121,558"}},{"$f":"'Trial 1'!V11","v":{"v":1118621.54494272,"d":"$1,118,622"}},{"$f":"'Trial 1'!W11","v":{"v":1115704.1039405423,"d":"$1,115,704"}},{"$f":"'Trial 1'!X11","v":{"v":1113267.5231474116,"d":"$1,113,268"}},{"$f":"'Trial 1'!Y11","v":{"v":1110981.6690079845,"d":"$1,110,982"}},{"$f":"'Trial 1'!Z11","v":{"v":1109388.7525702198,"d":"$1,109,389"}},{"$f":"SUM('Trial 1'!O11:Z11)","v":{"v":13476424.442652429,"d":"$13,476,424"}},{"$f":"'Trial 1'!AB11","v":{"v":1106901.534487083,"d":"$1,106,902"}},{"$f":"'Trial 1'!AC11","v":{"v":1104810.3767773705,"d":"$1,104,810"}},{"$f":"'Trial 1'!AD11","v":{"v":1103530.4028897905,"d":"$1,103,530"}},{"$f":"'Trial 1'!AE11","v":{"v":1101154.0450889734,"d":"$1,101,154"}},{"$f":"'Trial 1'!AF11","v":{"v":1098630.2267185159,"d":"$1,098,630"}},{"$f":"'Trial 1'!AG11","v":{"v":1096555.5954039118,"d":"$1,096,556"}},{"$f":"'Trial 1'!AH11","v":{"v":1094453.0611785129,"d":"$1,094,453"}},{"$f":"'Trial 1'!AI11","v":{"v":1092658.4608327677,"d":"$1,092,658"}},{"$f":"'Trial 1'!AJ11","v":{"v":1090476.3686753458,"d":"$1,090,476"}},{"$f":"'Trial 1'!AK11","v":{"v":1089182.6921932532,"d":"$1,089,183"}},{"$f":"'Trial 1'!AL11","v":{"v":1087362.0394967177,"d":"$1,087,362"}},{"$f":"'Trial 1'!AM11","v":{"v":1085282.093068625,"d":"$1,085,282"}},{"$f":"SUM('Trial 1'!AB11:AM11)","v":{"v":13150996.896810869,"d":"$13,150,997"}},{"$f":"'Trial 1'!AO11","v":{"v":1082916.0207559448,"d":"$1,082,916"}},{"$f":"'Trial 1'!AP11","v":{"v":1080579.2521014041,"d":"$1,080,579"}},{"$f":"'Trial 1'!AQ11","v":{"v":1079549.448086143,"d":"$1,079,549"}},{"$f":"'Trial 1'!AR11","v":{"v":1077152.9631864368,"d":"$1,077,153"}},{"$f":"'Trial 1'!AS11","v":{"v":1075729.621317679,"d":"$1,075,730"}},{"$f":"'Trial 1'!AT11","v":{"v":1074003.9572843523,"d":"$1,074,004"}},{"$f":"'Trial 1'!AU11","v":{"v":1072578.8456540066,"d":"$1,072,579"}},{"$f":"'Trial 1'!AV11","v":{"v":1070737.4089857747,"d":"$1,070,737"}},{"$f":"'Trial 1'!AW11","v":{"v":1068655.683276922,"d":"$1,068,656"}},{"$f":"'Trial 1'!AX11","v":{"v":1066887.4427405035,"d":"$1,066,887"}},{"$f":"'Trial 1'!AY11","v":{"v":1065743.9009460846,"d":"$1,065,744"}},{"$f":"'Trial 1'!AZ11","v":{"v":1064235.6831987859,"d":"$1,064,236"}},{"$f":"SUM('Trial 1'!AO11:AZ11)","v":{"v":12878770.227534037,"d":"$12,878,770"}},{"$f":"'Trial 1'!BB11","v":{"v":1062051.7129362735,"d":"$1,062,052"}},{"$f":"'Trial 1'!BC11","v":{"v":1059846.4261856338,"d":"$1,059,846"}},{"$f":"'Trial 1'!BD11","v":{"v":1058283.098994894,"d":"$1,058,283"}},{"$f":"'Trial 1'!BE11","v":{"v":1056409.3090442123,"d":"$1,056,409"}},{"$f":"'Trial 1'!BF11","v":{"v":1055242.03296133,"d":"$1,055,242"}},{"$f":"'Trial 1'!BG11","v":{"v":1053813.1741708266,"d":"$1,053,813"}},{"$f":"'Trial 1'!BH11","v":{"v":1052372.7632332966,"d":"$1,052,373"}},{"$f":"'Trial 1'!BI11","v":{"v":1051058.9175196907,"d":"$1,051,059"}},{"$f":"'Trial 1'!BJ11","v":{"v":1049358.9535686278,"d":"$1,049,359"}},{"$f":"'Trial 1'!BK11","v":{"v":1047653.8820411545,"d":"$1,047,654"}},{"$f":"'Trial 1'!BL11","v":{"v":1045501.7006943163,"d":"$1,045,502"}},{"$f":"'Trial 1'!BM11","v":{"v":1044133.719042564,"d":"$1,044,134"}},{"$f":"SUM('Trial 1'!BB11:BM11)","v":{"v":12635725.690392822,"d":"$12,635,726"}},{"$f":"'Trial 1'!BO11","v":{"v":1042209.5100521324,"d":"$1,042,210"}},{"$f":"'Trial 1'!BP11","v":{"v":1040970.0527031104,"d":"$1,040,970"}},{"$f":"'Trial 1'!BQ11","v":{"v":1039224.6199968216,"d":"$1,039,225"}},{"$f":"'Trial 1'!BR11","v":{"v":1038502.4894443989,"d":"$1,038,502"}},{"$f":"'Trial 1'!BS11","v":{"v":1037360.4589976973,"d":"$1,037,360"}},{"$f":"'Trial 1'!BT11","v":{"v":1035977.7301255352,"d":"$1,035,978"}},{"$f":"'Trial 1'!BU11","v":{"v":1033920.457145275,"d":"$1,033,920"}},{"$f":"'Trial 1'!BV11","v":{"v":1032066.6907326696,"d":"$1,032,067"}},{"$f":"'Trial 1'!BW11","v":{"v":1030531.2765594013,"d":"$1,030,531"}},{"$f":"'Trial 1'!BX11","v":{"v":1029578.51868122,"d":"$1,029,579"}},{"$f":"'Trial 1'!BY11","v":{"v":1027755.7442401398,"d":"$1,027,756"}},{"$f":"'Trial 1'!BZ11","v":{"v":1025791.5028302363,"d":"$1,025,792"}},{"$f":"SUM('Trial 1'!BO11:BZ11)","v":{"v":12413889.051508639,"d":"$12,413,889"}},{"$f":"'Trial 1'!CB11","v":{"v":1024922.1400727367,"d":"$1,024,922"}},{"$f":"'Trial 1'!CC11","v":{"v":1023497.1613296288,"d":"$1,023,497"}},{"$f":"'Trial 1'!CD11","v":{"v":1021602.2032002064,"d":"$1,021,602"}},{"$f":"'Trial 1'!CE11","v":{"v":1020844.9707169031,"d":"$1,020,845"}},{"$f":"'Trial 1'!CF11","v":{"v":1019113.9196853843,"d":"$1,019,114"}},{"$f":"'Trial 1'!CG11","v":{"v":1017804.3783332238,"d":"$1,017,804"}},{"$f":"'Trial 1'!CH11","v":{"v":1016712.0801942387,"d":"$1,016,712"}},{"$f":"'Trial 1'!CI11","v":{"v":1015409.6926396212,"d":"$1,015,410"}},{"$f":"'Trial 1'!CJ11","v":{"v":1014274.0840854328,"d":"$1,014,274"}},{"$f":"'Trial 1'!CK11","v":{"v":1013054.3700830721,"d":"$1,013,054"}},{"$f":"'Trial 1'!CL11","v":{"v":1011166.8013785727,"d":"$1,011,167"}},{"$f":"'Trial 1'!CM11","v":{"v":1010347.8126477585,"d":"$1,010,348"}},{"$f":"SUM('Trial 1'!CB11:CM11)","v":{"v":12208749.614366777,"d":"$12,208,750"}},{"$f":"'Trial 1'!CO11","v":{"v":1009157.6145485173,"d":"$1,009,158"}},{"$f":"'Trial 1'!CP11","v":{"v":1007565.9606722113,"d":"$1,007,566"}},{"$f":"'Trial 1'!CQ11","v":{"v":1006775.8764813038,"d":"$1,006,776"}},{"$f":"'Trial 1'!CR11","v":{"v":1004799.3069740483,"d":"$1,004,799"}},{"$f":"'Trial 1'!CS11","v":{"v":1003594.4083795573,"d":"$1,003,594"}},{"$f":"'Trial 1'!CT11","v":{"v":1001759.8268616081,"d":"$1,001,760"}},{"$f":"'Trial 1'!CU11","v":{"v":1000764.3853580856,"d":"$1,000,764"}},{"$f":"'Trial 1'!CV11","v":{"v":999108.2660860355,"d":"$999,108"}},{"$f":"'Trial 1'!CW11","v":{"v":998109.7565119351,"d":"$998,110"}},{"$f":"'Trial 1'!CX11","v":{"v":996375.4270461474,"d":"$996,375"}},{"$f":"'Trial 1'!CY11","v":{"v":995781.2791464601,"d":"$995,781"}},{"$f":"'Trial 1'!CZ11","v":{"v":995296.8328277678,"d":"$995,297"}},{"$f":"SUM('Trial 1'!CO11:CZ11)","v":{"v":12019088.940893678,"d":"$12,019,089"}},{"$f":"'Trial 1'!DB11","v":{"v":993563.312526757,"d":"$993,563"}},{"$f":"'Trial 1'!DC11","v":{"v":992536.2845960899,"d":"$992,536"}},{"$f":"'Trial 1'!DD11","v":{"v":991778.6860940619,"d":"$991,779"}},{"$f":"'Trial 1'!DE11","v":{"v":990749.4218021445,"d":"$990,749"}},{"$f":"'Trial 1'!DF11","v":{"v":990073.519347464,"d":"$990,074"}},{"$f":"'Trial 1'!DG11","v":{"v":989370.2891038576,"d":"$989,370"}},{"$f":"'Trial 1'!DH11","v":{"v":988148.5210322703,"d":"$988,149"}},{"$f":"'Trial 1'!DI11","v":{"v":987340.8190408194,"d":"$987,341"}},{"$f":"'Trial 1'!DJ11","v":{"v":985914.3303069776,"d":"$985,914"}},{"$f":"'Trial 1'!DK11","v":{"v":985137.1789005743,"d":"$985,137"}},{"$f":"'Trial 1'!DL11","v":{"v":984787.637977541,"d":"$984,788"}},{"$f":"'Trial 1'!DM11","v":{"v":983277.3773586345,"d":"$983,277"}},{"$f":"SUM('Trial 1'!DB11:DM11)","v":{"v":11862677.378087189,"d":"$11,862,677"}},{"$f":"'Trial 1'!DO11","v":{"v":982392.864265442,"d":"$982,393"}},{"$f":"'Trial 1'!DP11","v":{"v":982042.530867743,"d":"$982,043"}},{"$f":"'Trial 1'!DQ11","v":{"v":980856.931625222,"d":"$980,857"}},{"$f":"'Trial 1'!DR11","v":{"v":980078.803553588,"d":"$980,079"}},{"$f":"'Trial 1'!DS11","v":{"v":979201.4125458696,"d":"$979,201"}},{"$f":"'Trial 1'!DT11","v":{"v":978114.6623444705,"d":"$978,115"}},{"$f":"'Trial 1'!DU11","v":{"v":977004.2649747372,"d":"$977,004"}},{"$f":"'Trial 1'!DV11","v":{"v":976244.8985467103,"d":"$976,245"}},{"$f":"'Trial 1'!DW11","v":{"v":974808.629264764,"d":"$974,809"}},{"$f":"'Trial 1'!DX11","v":{"v":973538.9394294696,"d":"$973,539"}},{"$f":"'Trial 1'!DY11","v":{"v":973088.0659445272,"d":"$973,088"}},{"$f":"'Trial 1'!DZ11","v":{"v":972491.3342167813,"d":"$972,491"}},{"$f":"SUM('Trial 1'!DO11:DZ11)","v":{"v":11729863.337579325,"d":"$11,729,863"}},{"$f":"'Trial 1'!EB11","v":{"v":971258.8396180182,"d":"$971,259"}},{"$f":"'Trial 1'!EC11","v":{"v":970532.7842645108,"d":"$970,533"}},{"$f":"'Trial 1'!ED11","v":{"v":969601.4098782538,"d":"$969,601"}},{"$f":"'Trial 1'!EE11","v":{"v":968684.2954475594,"d":"$968,684"}},{"$f":"'Trial 1'!EF11","v":{"v":967175.5315337277,"d":"$967,176"}},{"$f":"'Trial 1'!EG11","v":{"v":966226.6460105737,"d":"$966,227"}},{"$f":"'Trial 1'!EH11","v":{"v":965187.6828478618,"d":"$965,188"}},{"$f":"'Trial 1'!EI11","v":{"v":964242.1605646436,"d":"$964,242"}},{"$f":"'Trial 1'!EJ11","v":{"v":962964.6381592843,"d":"$962,965"}},{"$f":"'Trial 1'!EK11","v":{"v":962220.3385024776,"d":"$962,220"}},{"$f":"'Trial 1'!EL11","v":{"v":961261.8742400792,"d":"$961,262"}},{"$f":"'Trial 1'!EM11","v":{"v":959950.243278905,"d":"$959,950"}},{"$f":"SUM('Trial 1'!EB11:EM11)","v":{"v":11589306.444345897,"d":"$11,589,306"}}]
[{"$f":"Labels!B97","v":"Trial 02"},{"$f":"'Trial 2'!B11","v":{"v":1166666.6666666667,"d":"$1,166,667"}},{"$f":"'Trial 2'!C11","v":{"v":1163672.794806357,"d":"$1,163,673"}},{"$f":"'Trial 2'!D11","v":{"v":1160313.3694818474,"d":"$1,160,313"}},{"$f":"'Trial 2'!E11","v":{"v":1157685.1768315025,"d":"$1,157,685"}},{"$f":"'Trial 2'!F11","v":{"v":1155819.2201314033,"d":"$1,155,819"}},{"$f":"'Trial 2'!G11","v":{"v":1153363.10832036,"d":"$1,153,363"}},{"$f":"'Trial 2'!H11","v":{"v":1150445.5045749245,"d":"$1,150,446"}},{"$f":"'Trial 2'!I11","v":{"v":1147818.2066799256,"d":"$1,147,818"}},{"$f":"'Trial 2'!J11","v":{"v":1144710.74156971,"d":"$1,144,711"}},{"$f":"'Trial 2'!K11","v":{"v":1142347.0076358458,"d":"$1,142,347"}},{"$f":"'Trial 2'!L11","v":{"v":1139891.5026868721,"d":"$1,139,892"}},{"$f":"'Trial 2'!M11","v":{"v":1136878.7568126745,"d":"$1,136,879"}},{"$f":"SUM('Trial 2'!B11:M11)","v":{"v":13819612.056198092,"d":"$13,819,612"}},{"$f":"'Trial 2'!O11","v":{"v":1134832.9931777578,"d":"$1,134,833"}},{"$f":"'Trial 2'!P11","v":{"v":1132112.3476861366,"d":"$1,132,112"}},{"$f":"'Trial 2'!Q11","v":{"v":1130096.7096271573,"d":"$1,130,097"}},{"$f":"'Trial 2'!R11","v":{"v":1128157.7382680434,"d":"$1,128,158"}},{"$f":"'Trial 2'!S11","v":{"v":1125674.5586503174,"d":"$1,125,675"}},{"$f":"'Trial 2'!T11","v":{"v":1123230.8852490585,"d":"$1,123,231"}},{"$f":"'Trial 2'!U11","v":{"v":1120811.3129704257,"d":"$1,120,811"}},{"$f":"'Trial 2'!V11","v":{"v":1117977.2993260173,"d":"$1,117,977"}},{"$f":"'Trial 2'!W11","v":{"v":1115354.6381699478,"d":"$1,115,355"}},{"$f":"'Trial 2'!X11","v":{"v":1112884.2050893358,"d":"$1,112,884"}},{"$f":"'Trial 2'!Y11","v":{"v":1110345.6947881537,"d":"$1,110,346"}},{"$f":"'Trial 2'!Z11","v":{"v":1107321.0586693392,"d":"$1,107,321"}},{"$f":"SUM('Trial 2'!O11:Z11)","v":{"v":13458799.441671694,"d":"$13,458,799"}},{"$f":"'Trial 2'!AB11","v":{"v":1105405.658994544,"d":"$1,105,406"}},{"$f":"'Trial 2'!AC11","v":{"v":1103269.299391796,"d":"$1,103,269"}},{"$f":"'Trial 2'!AD11","v":{"v":1101197.754742294,"d":"$1,101,198"}},{"$f":"'Trial 2'!AE11","v":{"v":1099109.5263861457,"d":"$1,099,110"}},{"$f":"'Trial 2'!AF11","v":{"v":1097870.3879033418,"d":"$1,097,870"}},{"$f":"'Trial 2'!AG11","v":{"v":1095819.4545424466,"d":"$1,095,819"}},{"$f":"'Trial 2'!AH11","v":{"v":1093587.4006064478,"d":"$1,093,587"}},{"$f":"'Trial 2'!AI11","v":{"v":1091812.6567025285,"d":"$1,091,813"}},{"$f":"'Trial 2'!AJ11","v":{"v":1089170.8931053015,"d":"$1,089,171"}},{"$f":"'Trial 2'!AK11","v":{"v":1087257.0356433543,"d":"$1,087,257"}},{"$f":"'Trial 2'!AL11","v":{"v":1085633.8211005146,"d":"$1,085,634"}},{"$f":"'Trial 2'!AM11","v":{"v":1084369.8288761296,"d":"$1,084,370"}},{"$f":"SUM('Trial 2'!AB11:AM11)","v":{"v":13134503.717994846,"d":"$13,134,504"}},{"$f":"'Trial 2'!AO11","v":{"v":1082206.148770225,"d":"$1,082,206"}},{"$f":"'Trial 2'!AP11","v":{"v":1080224.6880475392,"d":"$1,080,225"}},{"$f":"'Trial 2'!AQ11","v":{"v":1078597.7632006882,"d":"$1,078,598"}},{"$f":"'Trial 2'!AR11","v":{"v":1076951.64923381,"d":"$1,076,952"}},{"$f":"'Trial 2'!AS11","v":{"v":1074887.7448567636,"d":"$1,074,888"}},{"$f":"'Trial 2'!AT11","v":{"v":1073287.2060032717,"d":"$1,073,287"}},{"$f":"'Trial 2'!AU11","v":{"v":1071690.861825852,"d":"$1,071,691"}},{"$f":"'Trial 2'!AV11","v":{"v":1069989.7223461368,"d":"$1,069,990"}},{"$f":"'Trial 2'!AW11","v":{"v":1068356.814894612,"d":"$1,068,357"}},{"$f":"'Trial 2'!AX11","v":{"v":1065830.9512766856,"d":"$1,065,831"}},{"$f":"'Trial 2'!AY11","v":{"v":1063973.1501009432,"d":"$1,063,973"}},{"$f":"'Trial 2'!AZ11","v":{"v":1062792.5174515536,"d":"$1,062,793"}},{"$f":"SUM('Trial 2'!AO11:AZ11)","v":{"v":12868789.218008082,"d":"$12,868,789"}},{"$f":"'Trial 2'!BB11","v":{"v":1061005.5167387086,"d":"$1,061,006"}},{"$f":"'Trial 2'!BC11","v":{"v":1059004.5911909456,"d":"$1,059,005"}},{"$f":"'Trial 2'!BD11","v":{"v":1057394.377763477,"d":"$1,057,394"}},{"$f":"'Trial 2'!BE11","v":{"v":1056291.0789036017,"d":"$1,056,291"}},{"$f":"'Trial 2'!BF11","v":{"v":1054593.107146449,"d":"$1,054,593"}},{"$f":"'Trial 2'!BG11","v":{"v":1053378.8651785306,"d":"$1,053,379"}},{"$f":"'Trial 2'!BH11","v":{"v":1051315.3536564359,"d":"$1,051,315"}},{"$f":"'Trial 2'!BI11","v":{"v":1049437.2634531849,"d":"$1,049,437"}},{"$f":"'Trial 2'!BJ11","v":{"v":1047197.6494474565,"d":"$1,047,198"}},{"$f":"'Trial 2'!BK11","v":{"v":1046029.6065065201,"d":"$1,046,030"}},{"$f":"'Trial 2'!BL11","v":{"v":1044286.4787928193,"d":"$1,044,286"}},{"$f":"'Trial 2'!BM11","v":{"v":1042881.1593886834,"d":"$1,042,881"}},{"$f":"SUM('Trial 2'!BB11:BM11)","v":{"v":12622815.048166815,"d":"$12,622,815"}},{"$f":"'Trial 2'!BO11","v":{"v":1040647.0025327369,"d":"$1,040,647"}},{"$f":"'Trial 2'!BP11","v":{"v":1038333.5928213602,"d":"$1,038,334"}},{"$f":"'Trial 2'!BQ11","v":{"v":1036368.5991481476,"d":"$1,036,369"}},{"$f":"'Trial 2'!BR11","v":{"v":1035183.7893934806,"d":"$1,035,184"}},{"$f":"'Trial 2'!BS11","v":{"v":1034239.883371241,"d":"$1,034,240"}},{"$f":"'Trial 2'!BT11","v":{"v":1032151.1891861929,"d":"$1,032,151"}},{"$f":"'Trial 2'!BU11","v":{"v":1031382.8026459701,"d":"$1,031,383"}},{"$f":"'Trial 2'!BV11","v":{"v":1029657.7163064227,"d":"$1,029,658"}},{"$f":"'Trial 2'!BW11","v":{"v":1028544.8807059207,"d":"$1,028,545"}},{"$f":"'Trial 2'!BX11","v":{"v":1027216.186390527,"d":"$1,027,216"}},{"$f":"'Trial 2'!BY11","v":{"v":1025099.5025063588,"d":"$1,025,100"}},{"$f":"'Trial 2'!BZ11","v":{"v":1024546.1708374779,"d":"$1,024,546"}},{"$f":"SUM('Trial 2'!BO11:BZ11)","v":{"v":12383371.315845838,"d":"$12,383,371"}},{"$f":"'Trial 2'!CB11","v":{"v":1023322.212501775,"d":"$1,023,322"}},{"$f":"'Trial 2'!CC11","v":{"v":1022299.6580941604,"d":"$1,022,300"}},{"$f":"'Trial 2'!CD11","v":{"v":1020662.2038642304,"d":"$1,020,662"}},{"$f":"'Trial 2'!CE11","v":{"v":1019264.6976510616,"d":"$1,019,265"}},{"$f":"'Trial 2'!CF11","v":{"v":1018467.2281741505,"d":"$1,018,467"}},{"$f":"'Trial 2'!CG11","v":{"v":1017396.7168234824,"d":"$1,017,397"}},{"$f":"'Trial 2'!CH11","v":{"v":1016544.4856183706,"d":"$1,016,544"}},{"$f":"'Trial 2'!CI11","v":{"v":1015297.5857567766,"d":"$1,015,298"}},{"$f":"'Trial 2'!CJ11","v":{"v":1014584.9042421174,"d":"$1,014,585"}},{"$f":"'Trial 2'!CK11","v":{"v":1012798.9490926918,"d":"$1,012,799"}},{"$f":"'Trial 2'!CL11","v":{"v":1011496.6080927158,"d":"$1,011,497"}},{"$f":"'Trial 2'!CM11","v":{"v":1009605.184543591,"d":"$1,009,605"}},{"$f":"SUM('Trial 2'!CB11:CM11)","v":{"v":12201740.434455125,"d":"$12,201,740"}},{"$f":"'Trial 2'!CO11","v":{"v":1008301.3755855092,"d":"$1,008,301"}},{"$f":"'Trial 2'!CP11","v":{"v":1006797.0648338486,"d":"$1,006,797"}},{"$f":"'Trial 2'!CQ11","v":{"v":1005620.1707410554,"d":"$1,005,620"}},{"$f":"'Trial 2'!CR11","v":{"v":1004638.8008663602,"d":"$1,004,639"}},{"$f":"'Trial 2'!CS11","v":{"v":1003284.7734080772,"d":"$1,003,285"}},{"$f":"'Trial 2'!CT11","v":{"v":1002398.2185571014,"d":"$1,002,398"}},{"$f":"'Trial 2'!CU11","v":{"v":1000783.9743057132,"d":"$1,000,784"}},{"$f":"'Trial 2'!CV11","v":{"v":1000165.8523349516,"d":"$1,000,166"}},{"$f":"'Trial 2'!CW11","v":{"v":998932.4861715902,"d":"$998,932"}},{"$f":"'Trial 2'!CX11","v":{"v":998323.9099278747,"d":"$998,324"}},{"$f":"'Trial 2'!CY11","v":{"v":996389.5538164474,"d":"$996,390"}},{"$f":"'Trial 2'!CZ11","v":{"v":995704.983959555,"d":"$995,705"}},{"$f":"SUM('Trial 2'!CO11:CZ11)","v":{"v":12021341.164508086,"d":"$12,021,341"}},{"$f":"'Trial 2'!DB11","v":{"v":994494.436346167,"d":"$994,494"}},{"$f":"'Trial 2'!DC11","v":{"v":993249.4212821611,"d":"$993,249"}},{"$f":"'Trial 2'!DD11","v":{"v":992430.7576915479,"d":"$992,431"}},{"$f":"'Trial 2'!DE11","v":{"v":991170.1653646163,"d":"$991,170"}},{"$f":"'Trial 2'!DF11","v":{"v":990399.1178078895,"d":"$990,399"}},{"$f":"'Trial 2'!DG11","v":{"v":989777.6719099252,"d":"$989,778"}},{"$f":"'Trial 2'!DH11","v":{"v":988725.6274189517,"d":"$988,726"}},{"$f":"'Trial 2'!DI11","v":{"v":987763.0677029399,"d":"$987,763"}},{"$f":"'Trial 2'!DJ11","v":{"v":986867.6525415448,"d":"$986,868"}},{"$f":"'Trial 2'!DK11","v":{"v":986487.1974180538,"d":"$986,487"}},{"$f":"'Trial 2'!DL11","v":{"v":985031.1058876712,"d":"$985,031"}},{"$f":"'Trial 2'!DM11","v":{"v":983223.0010988654,"d":"$983,223"}},{"$f":"SUM('Trial 2'!DB11:DM11)","v":{"v":11869619.222470336,"d":"$11,869,619"}},{"$f":"'Trial 2'!DO11","v":{"v":981722.8011571586,"d":"$981,723"}},{"$f":"'Trial 2'!DP11","v":{"v":981173.8359406554,"d":"$981,174"}},{"$f":"'Trial 2'!DQ11","v":{"v":979566.7446474547,"d":"$979,567"}},{"$f":"'Trial 2'!DR11","v":{"v":978666.5700378612,"d":"$978,667"}},{"$f":"'Trial 2'!DS11","v":{"v":977584.7376588562,"d":"$977,585"}},{"$f":"'Trial 2'!DT11","v":{"v":976255.6307598805,"d":"$976,256"}},{"$f":"'Trial 2'!DU11","v":{"v":975465.3239207596,"d":"$975,465"}},{"$f":"'Trial 2'!DV11","v":{"v":974907.1561457142,"d":"$974,907"}},{"$f":"'Trial 2'!DW11","v":{"v":974277.4371363193,"d":"$974,277"}},{"$f":"'Trial 2'!DX11","v":{"v":972857.9364870274,"d":"$972,858"}},{"$f":"'Trial 2'!DY11","v":{"v":972316.0650088859,"d":"$972,316"}},{"$f":"'Trial 2'!DZ11","v":{"v":971389.6471226673,"d":"$971,390"}},{"$f":"SUM('Trial 2'!DO11:DZ11)","v":{"v":11716183.88602324,"d":"$11,716,184"}},{"$f":"'Trial 2'!EB11","v":{"v":969975.8211887856,"d":"$969,976"}},{"$f":"'Trial 2'!EC11","v":{"v":969527.9022720836,"d":"$969,528"}},{"$f":"'Trial 2'!ED11","v":{"v":968880.79922698,"d":"$968,881"}},{"$f":"'Trial 2'!EE11","v":{"v":967265.8346614732,"d":"$967,266"}},{"$f":"'Trial 2'!EF11","v":{"v":966356.150714295,"d":"$966,356"}},{"$f":"'Trial 2'!EG11","v":{"v":966169.9564788978,"d":"$966,170"}},{"$f":"'Trial 2'!EH11","v":{"v":964848.4256095149,"d":"$964,848"}},{"$f":"'Trial 2'!EI11","v":{"v":963679.516034202,"d":"$963,680"}},{"$f":"'Trial 2'!EJ11","v":{"v":962372.9621060764,"d":"$962,373"}},{"$f":"'Trial 2'!EK11","v":{"v":961740.5452823099,"d":"$961,741"}},{"$f":"'Trial 2'!EL11","v":{"v":960694.914981812,"d":"$960,695"}},{"$f":"'Trial 2'!EM11","v":{"v":960168.9656914882,"d":"$960,169"}},{"$f":"SUM('Trial 2'!EB11:EM11)","v":{"v":11581681.794247918,"d":"$11,581,682"}}]
[{"$f":"Labels!B98","v":"Trial 03"},{"$f":"'Trial 3'!B11","v":{"v":1166666.6666666667,"d":"$1,166,667"}},{"$f":"'Trial 3'!C11","v":{"v":1163083.0201730027,"d":"$1,163,083"}},{"$f":"'Trial 3'!D11","v":{"v":1160422.8175480834,"d":"$1,160,423"}},{"$f":"'Trial 3'!E11","v":{"v":1157243.7945822002,"d":"$1,157,244"}},{"$f":"'Trial 3'!F11","v":{"v":1155146.5580058137,"d":"$1,155,147"}},{"$f":"'Trial 3'!G11","v":{"v":1152653.6285962572,"d":"$1,152,654"}},{"$f":"'Trial 3'!H11","v":{"v":1150560.907045448,"d":"$1,150,561"}},{"$f":"'Trial 3'!I11","v":{"v":1147739.9349881536,"d":"$1,147,740"}},{"$f":"'Trial 3'!J11","v":{"v":1145516.6453868132,"d":"$1,145,517"}},{"$f":"'Trial 3'!K11","v":{"v":1142430.1176378678,"d":"$1,142,430"}},{"$f":"'Trial 3'!L11","v":{"v":1140006.323003013,"d":"$1,140,006"}},{"$f":"'Trial 3'!M11","v":{"v":1137913.6501883492,"d":"$1,137,914"}},{"$f":"SUM('Trial 3'!B11:M11)","v":{"v":13819384.063821668,"d":"$13,819,384"}},{"$f":"'Trial 3'!O11","v":{"v":1135066.8461964724,"d":"$1,135,067"}},{"$f":"'Trial 3'!P11","v":{"v":1132733.2069666719,"d":"$1,132,733"}},{"$f":"'Trial 3'!Q11","v":{"v":1130098.6837942486,"d":"$1,130,099"}},{"$f":"'Trial 3'!R11","v":{"v":1128260.689846873,"d":"$1,128,261"}},{"$f":"'Trial 3'!S11","v":{"v":1126205.0683369206,"d":"$1,126,205"}},{"$f":"'Trial 3'!T11","v":{"v":1123838.251510409,"d":"$1,123,838"}},{"$f":"'Trial 3'!U11","v":{"v":1121364.2906279063,"d":"$1,121,364"}},{"$f":"'Trial 3'!V11","v":{"v":1118178.6479876447,"d":"$1,118,179"}},{"$f":"'Trial 3'!W11","v":{"v":1115520.7770089027,"d":"$1,115,521"}},{"$f":"'Trial 3'!X11","v":{"v":1113446.7829451372,"d":"$1,113,447"}},{"$f":"'Trial 3'!Y11","v":{"v":1111278.399099264,"d":"$1,111,278"}},{"$f":"'Trial 3'!Z11","v":{"v":1108870.591377069,"d":"$1,108,871"}},{"$f":"SUM('Trial 3'!O11:Z11)","v":{"v":13464862.235697519,"d":"$13,464,862"}},{"$f":"'Trial 3'!AB11","v":{"v":1105890.9236180806,"d":"$1,105,891"}},{"$f":"'Trial 3'!AC11","v":{"v":1104303.843584813,"d":"$1,104,304"}},{"$f":"'Trial 3'!AD11","v":{"v":1101883.3942851454,"d":"$1,101,883"}},{"$f":"'Trial 3'!AE11","v":{"v":1099296.527066266,"d":"$1,099,297"}},{"$f":"'Trial 3'!AF11","v":{"v":1097594.131584442,"d":"$1,097,594"}},{"$f":"'Trial 3'!AG11","v":{"v":1094724.3362664522,"d":"$1,094,724"}},{"$f":"'Trial 3'!AH11","v":{"v":1093028.9816768465,"d":"$1,093,029"}},{"$f":"'Trial 3'!AI11","v":{"v":1091105.1043938654,"d":"$1,091,105"}},{"$f":"'Trial 3'!AJ11","v":{"v":1088761.0320086419,"d":"$1,088,761"}},{"$f":"'Trial 3'!AK11","v":{"v":1087057.9250291104,"d":"$1,087,058"}},{"$f":"'Trial 3'!AL11","v":{"v":1085189.719984989,"d":"$1,085,190"}},{"$f":"'Trial 3'!AM11","v":{"v":1083075.193848964,"d":"$1,083,075"}},{"$f":"SUM('Trial 3'!AB11:AM11)","v":{"v":13131911.113347618,"d":"$13,131,911"}},{"$f":"'Trial 3'!AO11","v":{"v":1080941.9680803753,"d":"$1,080,942"}},{"$f":"'Trial 3'!AP11","v":{"v":1079460.439917504,"d":"$1,079,460"}},{"$f":"'Trial 3'!AQ11","v":{"v":1078089.449292718,"d":"$1,078,089"}},{"$f":"'Trial 3'!AR11","v":{"v":1075578.5467157024,"d":"$1,075,579"}},{"$f":"'Trial 3'!AS11","v":{"v":1073617.3191547382,"d":"$1,073,617"}},{"$f":"'Trial 3'!AT11","v":{"v":1072168.225193837,"d":"$1,072,168"}},{"$f":"'Trial 3'!AU11","v":{"v":1070146.1813427003,"d":"$1,070,146"}},{"$f":"'Trial 3'!AV11","v":{"v":1067946.3672482178,"d":"$1,067,946"}},{"$f":"'Trial 3'!AW11","v":{"v":1066356.2740637108,"d":"$1,066,356"}},{"$f":"'Trial 3'!AX11","v":{"v":1064169.687581851,"d":"$1,064,170"}},{"$f":"'Trial 3'!AY11","v":{"v":1062958.6198775212,"d":"$1,062,959"}},{"$f":"'Trial 3'!AZ11","v":{"v":1060809.32324769,"d":"$1,060,809"}},{"$f":"SUM('Trial 3'!AO11:AZ11)","v":{"v":12852242.401716564,"d":"$12,852,242"}},{"$f":"'Trial 3'!BB11","v":{"v":1058458.9551612798,"d":"$1,058,459"}},{"$f":"'Trial 3'!BC11","v":{"v":1056640.6494583183,"d":"$1,056,641"}},{"$f":"'Trial 3'!BD11","v":{"v":1054325.9985883718,"d":"$1,054,326"}},{"$f":"'Trial 3'!BE11","v":{"v":1053083.405040809,"d":"$1,053,083"}},{"$f":"'Trial 3'!BF11","v":{"v":1050671.0809462506,"d":"$1,050,671"}},{"$f":"'Trial 3'!BG11","v":{"v":1049253.1591596198,"d":"$1,049,253"}},{"$f":"'Trial 3'!BH11","v":{"v":1046871.2846784462,"d":"$1,046,871"}},{"$f":"'Trial 3'!BI11","v":{"v":1044899.0668267849,"d":"$1,044,899"}},{"$f":"'Trial 3'!BJ11","v":{"v":1043479.0007219464,"d":"$1,043,479"}},{"$f":"'Trial 3'!BK11","v":{"v":1041982.0025367956,"d":"$1,041,982"}},{"$f":"'Trial 3'!BL11","v":{"v":1040315.4571034507,"d":"$1,040,315"}},{"$f":"'Trial 3'!BM11","v":{"v":1039167.6522508409,"d":"$1,039,168"}},{"$f":"SUM('Trial 3'!BB11:BM11)","v":{"v":12579147.712472914,"d":"$12,579,148"}},{"$f":"'Trial 3'!BO11","v":{"v":1037652.3190793529,"d":"$1,037,652"}},{"$f":"'Trial 3'!BP11","v":{"v":1036168.7342599588,"d":"$1,036,169"}},{"$f":"'Trial 3'!BQ11","v":{"v":1034914.8428328306,"d":"$1,034,915"}},{"$f":"'Trial 3'!BR11","v":{"v":1033058.2044549683,"d":"$1,033,058"}},{"$f":"'Trial 3'!BS11","v":{"v":1031693.2102420221,"d":"$1,031,693"}},{"$f":"'Trial 3'!BT11","v":{"v":1030628.4046196616,"d":"$1,030,628"}},{"$f":"'Trial 3'!BU11","v":{"v":1029095.7553385823,"d":"$1,029,096"}},{"$f":"'Trial 3'!BV11","v":{"v":1027508.6986832177,"d":"$1,027,509"}},{"$f":"'Trial 3'!BW11","v":{"v":1025768.1360234858,"d":"$1,025,768"}},{"$f":"'Trial 3'!BX11","v":{"v":1024630.4549578758,"d":"$1,024,630"}},{"$f":"'Trial 3'!BY11","v":{"v":1022778.3416177552,"d":"$1,022,778"}},{"$f":"'Trial 3'!BZ11","v":{"v":1022028.9000907552,"d":"$1,022,029"}},{"$f":"SUM('Trial 3'!BO11:BZ11)","v":{"v":12355926.00220047,"d":"$12,355,926"}},{"$f":"'Trial 3'!CB11","v":{"v":1020559.6841740023,"d":"$1,020,560"}},{"$f":"'Trial 3'!CC11","v":{"v":1019497.5929417978,"d":"$1,019,498"}},{"$f":"'Trial 3'!CD11","v":{"v":1018107.9429173537,"d":"$1,018,108"}},{"$f":"'Trial 3'!CE11","v":{"v":1016876.2437295608,"d":"$1,016,876"}},{"$f":"'Trial 3'!CF11","v":{"v":1015674.776571947,"d":"$1,015,675"}},{"$f":"'Trial 3'!CG11","v":{"v":1014435.9130188754,"d":"$1,014,436"}},{"$f":"'Trial 3'!CH11","v":{"v":1013551.1273730678,"d":"$1,013,551"}},{"$f":"'Trial 3'!CI11","v":{"v":1012730.392096448,"d":"$1,012,730"}},{"$f":"'Trial 3'!CJ11","v":{"v":1012077.7548951963,"d":"$1,012,078"}},{"$f":"'Trial 3'!CK11","v":{"v":1010775.5177444026,"d":"$1,010,776"}},{"$f":"'Trial 3'!CL11","v":{"v":1009839.1362226601,"d":"$1,009,839"}},{"$f":"'Trial 3'!CM11","v":{"v":1009088.9597648535,"d":"$1,009,089"}},{"$f":"SUM('Trial 3'!CB11:CM11)","v":{"v":12173215.041450165,"d":"$12,173,215"}},{"$f":"'Trial 3'!CO11","v":{"v":1008544.2089888235,"d":"$1,008,544"}},{"$f":"'Trial 3'!CP11","v":{"v":1006872.0748345382,"d":"$1,006,872"}},{"$f":"'Trial 3'!CQ11","v":{"v":1005911.378264778,"d":"$1,005,911"}},{"$f":"'Trial 3'!CR11","v":{"v":1004561.973169341,"d":"$1,004,562"}},{"$f":"'Trial 3'!CS11","v":{"v":1003543.3530947972,"d":"$1,003,543"}},{"$f":"'Trial 3'!CT11","v":{"v":1002333.51798573,"d":"$1,002,334"}},{"$f":"'Trial 3'!CU11","v":{"v":1001291.7549531317,"d":"$1,001,292"}},{"$f":"'Trial 3'!CV11","v":{"v":1000428.4578372786,"d":"$1,000,428"}},{"$f":"'Trial 3'!CW11","v":{"v":999351.3450432946,"d":"$999,351"}},{"$f":"'Trial 3'!CX11","v":{"v":997836.0572000617,"d":"$997,836"}},{"$f":"'Trial 3'!CY11","v":{"v":997314.7797212516,"d":"$997,315"}},{"$f":"'Trial 3'!CZ11","v":{"v":995912.3874632752,"d":"$995,912"}},{"$f":"SUM('Trial 3'!CO11:CZ11)","v":{"v":12023901.2885563,"d":"$12,023,901"}},{"$f":"'Trial 3'!DB11","v":{"v":995220.8820401704,"d":"$995,221"}},{"$f":"'Trial 3'!DC11","v":{"v":993674.9706549874,"d":"$993,675"}},{"$f":"'Trial 3'!DD11","v":{"v":991832.5422327309,"d":"$991,833"}},{"$f":"'Trial 3'!DE11","v":{"v":990720.6308202419,"d":"$990,721"}},{"$f":"'Trial 3'!DF11","v":{"v":989848.7287764177,"d":"$989,849"}},{"$f":"'Trial 3'!DG11","v":{"v":988887.0666725197,"d":"$988,887"}},{"$f":"'Trial 3'!DH11","v":{"v":988098.4710480687,"d":"$988,098"}},{"$f":"'Trial 3'!DI11","v":{"v":987243.0238543845,"d":"$987,243"}},{"$f":"'Trial 3'!DJ11","v":{"v":986253.2157670938,"d":"$986,253"}},{"$f":"'Trial 3'!DK11","v":{"v":985100.5291125585,"d":"$985,101"}},{"$f":"'Trial 3'!DL11","v":{"v":984262.233524737,"d":"$984,262"}},{"$f":"'Trial 3'!DM11","v":{"v":983561.6370913778,"d":"$983,562"}},{"$f":"SUM('Trial 3'!DB11:DM11)","v":{"v":11864703.931595286,"d":"$11,864,704"}},{"$f":"'Trial 3'!DO11","v":{"v":982717.4500381269,"d":"$982,717"}},{"$f":"'Trial 3'!DP11","v":{"v":981968.6729633738,"d":"$981,969"}},{"$f":"'Trial 3'!DQ11","v":{"v":981271.8906361978,"d":"$981,272"}},{"$f":"'Trial 3'!DR11","v":{"v":981129.839090434,"d":"$981,130"}},{"$f":"'Trial 3'!DS11","v":{"v":979454.0640706163,"d":"$979,454"}},{"$f":"'Trial 3'!DT11","v":{"v":978283.2036686103,"d":"$978,283"}},{"$f":"'Trial 3'!DU11","v":{"v":977696.0266362078,"d":"$977,696"}},{"$f":"'Trial 3'!DV11","v":{"v":976700.8511775297,"d":"$976,701"}},{"$f":"'Trial 3'!DW11","v":{"v":976134.1092784347,"d":"$976,134"}},{"$f":"'Trial 3'!DX11","v":{"v":975747.4630423135,"d":"$975,747"}},{"$f":"'Trial 3'!DY11","v":{"v":974748.4085501807,"d":"$974,748"}},{"$f":"'Trial 3'!DZ11","v":{"v":973617.1119779235,"d":"$973,617"}},{"$f":"SUM('Trial 3'!DO11:DZ11)","v":{"v":11739469.091129947,"d":"$11,739,469"}},{"$f":"'Trial 3'!EB11","v":{"v":972259.9187190197,"d":"$972,260"}},{"$f":"'Trial 3'!EC11","v":{"v":971365.4507582381,"d":"$971,365"}},{"$f":"'Trial 3'!ED11","v":{"v":970310.0744621031,"d":"$970,310"}},{"$f":"'Trial 3'!EE11","v":{"v":969583.3654695515,"d":"$969,583"}},{"$f":"'Trial 3'!EF11","v":{"v":968861.9168986795,"d":"$968,862"}},{"$f":"'Trial 3'!EG11","v":{"v":967960.9244040492,"d":"$967,961"}},{"$f":"'Trial 3'!EH11","v":{"v":967071.9145590704,"d":"$967,072"}},{"$f":"'Trial 3'!EI11","v":{"v":966599.7718442508,"d":"$966,600"}},{"$f":"'Trial 3'!EJ11","v":{"v":965201.0240104825,"d":"$965,201"}},{"$f":"'Trial 3'!EK11","v":{"v":963651.858022933,"d":"$963,652"}},{"$f":"'Trial 3'!EL11","v":{"v":963400.0163032981,"d":"$963,400"}},{"$f":"'Trial 3'!EM11","v":{"v":962872.1343730311,"d":"$962,872"}},{"$f":"SUM('Trial 3'!EB11:EM11)","v":{"v":11609138.369824708,"d":"$11,609,138"}}]
[{"$f":"Labels!B99","v":"Trial 04"},{"$f":"'Trial 4'!B11","v":{"v":1166666.6666666667,"d":"$1,166,667"}},{"$f":"'Trial 4'!C11","v":{"v":1163645.3687997623,"d":"$1,163,645"}},{"$f":"'Trial 4'!D11","v":{"v":1160555.6786417966,"d":"$1,160,556"}},{"$f":"'Trial 4'!E11","v":{"v":1157485.2153202717,"d":"$1,157,485"}},{"$f":"'Trial 4'!F11","v":{"v":1155022.509501095,"d":"$1,155,023"}},{"$f":"'Trial 4'!G11","v":{"v":1152855.7683052314,"d":"$1,152,856"}},{"$f":"'Trial 4'!H11","v":{"v":1150954.7111749984,"d":"$1,150,955"}},{"$f":"'Trial 4'!I11","v":{"v":1147695.4532543046,"d":"$1,147,695"}},{"$f":"'Trial 4'!J11","v":{"v":1144502.698228334,"d":"$1,144,503"}},{"$f":"'Trial 4'!K11","v":{"v":1141809.414296797,"d":"$1,141,809"}},{"$f":"'Trial 4'!L11","v":{"v":1139151.8926778338,"d":"$1,139,152"}},{"$f":"'Trial 4'!M11","v":{"v":1136648.3661973826,"d":"$1,136,648"}},{"$f":"SUM('Trial 4'!B11:M11)","v":{"v":13816993.743064476,"d":"$13,816,994"}},{"$f":"'Trial 4'!O11","v":{"v":1133500.7317018888,"d":"$1,133,501"}},{"$f":"'Trial 4'!P11","v":{"v":1131064.449123201,"d":"$1,131,064"}},{"$f":"'Trial 4'!Q11","v":{"v":1128828.0585566408,"d":"$1,128,828"}},{"$f":"'Trial 4'!R11","v":{"v":1127025.7676584795,"d":"$1,127,026"}},{"$f":"'Trial 4'!S11","v":{"v":1124664.4113377044,"d":"$1,124,664"}},{"$f":"'Trial 4'!T11","v":{"v":1121524.783905605,"d":"$1,121,525"}},{"$f":"'Trial 4'!U11","v":{"v":1118980.2953118752,"d":"$1,118,980"}},{"$f":"'Trial 4'!V11","v":{"v":1116731.246612364,"d":"$1,116,731"}},{"$f":"'Trial 4'!W11","v":{"v":1114407.8999768114,"d":"$1,114,408"}},{"$f":"'Trial 4'!X11","v":{"v":1113012.0585742488,"d":"$1,113,012"}},{"$f":"'Trial 4'!Y11","v":{"v":1110698.6181605242,"d":"$1,110,699"}},{"$f":"'Trial 4'!Z11","v":{"v":1107779.96488662,"d":"$1,107,780"}},{"$f":"SUM('Trial 4'!O11:Z11)","v":{"v":13448218.285805963,"d":"$13,448,218"}},{"$f":"'Trial 4'!AB11","v":{"v":1105190.3791982015,"d":"$1,105,190"}},{"$f":"'Trial 4'!AC11","v":{"v":1102735.6435891727,"d":"$1,102,736"}},{"$f":"'Trial 4'!AD11","v":{"v":1100735.5243780327,"d":"$1,100,736"}},{"$f":"'Trial 4'!AE11","v":{"v":1098448.789524801,"d":"$1,098,449"}},{"$f":"'Trial 4'!AF11","v":{"v":1095775.183718134,"d":"$1,095,775"}},{"$f":"'Trial 4'!AG11","v":{"v":1093461.3767056975,"d":"$1,093,461"}},{"$f":"'Trial 4'!AH11","v":{"v":1092058.0244522567,"d":"$1,092,058"}},{"$f":"'Trial 4'!AI11","v":{"v":1090040.3559475206,"d":"$1,090,040"}},{"$f":"'Trial 4'!AJ11","v":{"v":1088037.4206173301,"d":"$1,088,037"}},{"$f":"'Trial 4'!AK11","v":{"v":1085804.4129718347,"d":"$1,085,804"}},{"$f":"'Trial 4'!AL11","v":{"v":1084384.9112689004,"d":"$1,084,385"}},{"$f":"'Trial 4'!AM11","v":{"v":1082282.1681262855,"d":"$1,082,282"}},{"$f":"SUM('Trial 4'!AB11:AM11)","v":{"v":13118954.19049817,"d":"$13,118,954"}},{"$f":"'Trial 4'!AO11","v":{"v":1079558.93140954,"d":"$1,079,559"}},{"$f":"'Trial 4'!AP11","v":{"v":1077673.7021715108,"d":"$1,077,674"}},{"$f":"'Trial 4'!AQ11","v":{"v":1075767.1721358201,"d":"$1,075,767"}},{"$f":"'Trial 4'!AR11","v":{"v":1073785.600692431,"d":"$1,073,786"}},{"$f":"'Trial 4'!AS11","v":{"v":1071478.4073124568,"d":"$1,071,478"}},{"$f":"'Trial 4'!AT11","v":{"v":1069836.352544413,"d":"$1,069,836"}},{"$f":"'Trial 4'!AU11","v":{"v":1068479.8114864342,"d":"$1,068,480"}},{"$f":"'Trial 4'!AV11","v":{"v":1066886.9963454779,"d":"$1,066,887"}},{"$f":"'Trial 4'!AW11","v":{"v":1065093.2241419621,"d":"$1,065,093"}},{"$f":"'Trial 4'!AX11","v":{"v":1063613.6711758992,"d":"$1,063,614"}},{"$f":"'Trial 4'!AY11","v":{"v":1061446.180117307,"d":"$1,061,446"}},{"$f":"'Trial 4'!AZ11","v":{"v":1059367.8069247033,"d":"$1,059,368"}},{"$f":"SUM('Trial 4'!AO11:AZ11)","v":{"v":12832987.856457954,"d":"$12,832,988"}},{"$f":"'Trial 4'!BB11","v":{"v":1056983.8479827892,"d":"$1,056,984"}},{"$f":"'Trial 4'!BC11","v":{"v":1056121.4026842557,"d":"$1,056,121"}},{"$f":"'Trial 4'!BD11","v":{"v":1055237.5111832307,"d":"$1,055,238"}},{"$f":"'Trial 4'!BE11","v":{"v":1053145.431906217,"d":"$1,053,145"}},{"$f":"'Trial 4'!BF11","v":{"v":1051521.1229246352,"d":"$1,051,521"}},{"$f":"'Trial 4'!BG11","v":{"v":1049498.235033009,"d":"$1,049,498"}},{"$f":"'Trial 4'!BH11","v":{"v":1048207.5396553641,"d":"$1,048,208"}},{"$f":"'Trial 4'!BI11","v":{"v":1046249.4898746659,"d":"$1,046,249"}},{"$f":"'Trial 4'!BJ11","v":{"v":1044723.2003451898,"d":"$1,044,723"}},{"$f":"'Trial 4'!BK11","v":{"v":1042379.1682788666,"d":"$1,042,379"}},{"$f":"'Trial 4'!BL11","v":{"v":1041285.2068612535,"d":"$1,041,285"}},{"$f":"'Trial 4'!BM11","v":{"v":1039987.5319491664,"d":"$1,039,988"}},{"$f":"SUM('Trial 4'!BB11:BM11)","v":{"v":12585339.688678645,"d":"$12,585,340"}},{"$f":"'Trial 4'!BO11","v":{"v":1038873.1837779749,"d":"$1,038,873"}},{"$f":"'Trial 4'!BP11","v":{"v":1037713.2860746473,"d":"$1,037,713"}},{"$f":"'Trial 4'!BQ11","v":{"v":1036590.0504890484,"d":"$1,036,590"}},{"$f":"'Trial 4'!BR11","v":{"v":1034819.018668721,"d":"$1,034,819"}},{"$f":"'Trial 4'!BS11","v":{"v":1033474.2941377786,"d":"$1,033,474"}},{"$f":"'Trial 4'!BT11","v":{"v":1031532.5455568141,"d":"$1,031,533"}},{"$f":"'Trial 4'!BU11","v":{"v":1030388.0304287407,"d":"$1,030,388"}},{"$f":"'Trial 4'!BV11","v":{"v":1028796.8854716502,"d":"$1,028,797"}},{"$f":"'Trial 4'!BW11","v":{"v":1027051.8258634043,"d":"$1,027,052"}},{"$f":"'Trial 4'!BX11","v":{"v":1025170.0519553918,"d":"$1,025,170"}},{"$f":"'Trial 4'!BY11","v":{"v":1024185.036358797,"d":"$1,024,185"}},{"$f":"'Trial 4'!BZ11","v":{"v":1022757.5046989459,"d":"$1,022,758"}},{"$f":"SUM('Trial 4'!BO11:BZ11)","v":{"v":12371351.713481916,"d":"$12,371,352"}},{"$f":"'Trial 4'!CB11","v":{"v":1021665.9865614916,"d":"$1,021,666"}},{"$f":"'Trial 4'!CC11","v":{"v":1019943.0105905855,"d":"$1,019,943"}},{"$f":"'Trial 4'!CD11","v":{"v":1018851.3970279037,"d":"$1,018,851"}},{"$f":"'Trial 4'!CE11","v":{"v":1017308.7319200526,"d":"$1,017,309"}},{"$f":"'Trial 4'!CF11","v":{"v":1015875.4961812478,"d":"$1,015,875"}},{"$f":"'Trial 4'!CG11","v":{"v":1014678.1228989891,"d":"$1,014,678"}},{"$f":"'Trial 4'!CH11","v":{"v":1013233.9974746341,"d":"$1,013,234"}},{"$f":"'Trial 4'!CI11","v":{"v":1012851.0278364366,"d":"$1,012,851"}},{"$f":"'Trial 4'!CJ11","v":{"v":1012062.407287203,"d":"$1,012,062"}},{"$f":"'Trial 4'!CK11","v":{"v":1010769.5995956456,"d":"$1,010,770"}},{"$f":"'Trial 4'!CL11","v":{"v":1010029.8764554532,"d":"$1,010,030"}},{"$f":"'Trial 4'!CM11","v":{"v":1008919.4765282144,"d":"$1,008,919"}},{"$f":"SUM('Trial 4'!CB11:CM11)","v":{"v":12176189.130357856,"d":"$12,176,189"}},{"$f":"'Trial 4'!CO11","v":{"v":1007403.736382928,"d":"$1,007,404"}},{"$f":"'Trial 4'!CP11","v":{"v":1006643.5869816457,"d":"$1,006,644"}},{"$f":"'Trial 4'!CQ11","v":{"v":1005759.615513201,"d":"$1,005,760"}},{"$f":"'Trial 4'!CR11","v":{"v":1005010.49677173,"d":"$1,005,010"}},{"$f":"'Trial 4'!CS11","v":{"v":1003879.7426756624,"d":"$1,003,880"}},{"$f":"'Trial 4'!CT11","v":{"v":1002365.8501868036,"d":"$1,002,366"}},{"$f":"'Trial 4'!CU11","v":{"v":1000536.708627953,"d":"$1,000,537"}},{"$f":"'Trial 4'!CV11","v":{"v":1000155.5491385006,"d":"$1,000,156"}},{"$f":"'Trial 4'!CW11","v":{"v":999258.7659309478,"d":"$999,259"}},{"$f":"'Trial 4'!CX11","v":{"v":998325.8317255095,"d":"$998,326"}},{"$f":"'Trial 4'!CY11","v":{"v":996531.322294128,"d":"$996,531"}},{"$f":"'Trial 4'!CZ11","v":{"v":995734.1677966202,"d":"$995,734"}},{"$f":"SUM('Trial 4'!CO11:CZ11)","v":{"v":12021605.374025628,"d":"$12,021,605"}},{"$f":"'Trial 4'!DB11","v":{"v":995238.8631156833,"d":"$995,239"}},{"$f":"'Trial 4'!DC11","v":{"v":993850.1777693848,"d":"$993,850"}},{"$f":"'Trial 4'!DD11","v":{"v":992240.0046695003,"d":"$992,240"}},{"$f":"'Trial 4'!DE11","v":{"v":991480.4523871894,"d":"$991,480"}},{"$f":"'Trial 4'!DF11","v":{"v":990729.0144177838,"d":"$990,729"}},{"$f":"'Trial 4'!DG11","v":{"v":989758.0913408352,"d":"$989,758"}},{"$f":"'Trial 4'!DH11","v":{"v":988912.7039558355,"d":"$988,913"}},{"$f":"'Trial 4'!DI11","v":{"v":987348.6530060985,"d":"$987,349"}},{"$f":"'Trial 4'!DJ11","v":{"v":986690.240533854,"d":"$986,690"}},{"$f":"'Trial 4'!DK11","v":{"v":985422.1843012967,"d":"$985,422"}},{"$f":"'Trial 4'!DL11","v":{"v":984701.7998593679,"d":"$984,702"}},{"$f":"'Trial 4'!DM11","v":{"v":983842.3114787149,"d":"$983,842"}},{"$f":"SUM('Trial 4'!DB11:DM11)","v":{"v":11870214.496835543,"d":"$11,870,214"}},{"$f":"'Trial 4'!DO11","v":{"v":982632.9189070176,"d":"$982,633"}},{"$f":"'Trial 4'!DP11","v":{"v":982284.4809741018,"d":"$982,284"}},{"$f":"'Trial 4'!DQ11","v":{"v":982122.9089008992,"d":"$982,123"}},{"$f":"'Trial 4'!DR11","v":{"v":980715.7188356486,"d":"$980,716"}},{"$f":"'Trial 4'!DS11","v":{"v":980428.2255780377,"d":"$980,428"}},{"$f":"'Trial 4'!DT11","v":{"v":980223.3423621414,"d":"$980,223"}},{"$f":"'Trial 4'!DU11","v":{"v":979643.9430595925,"d":"$979,644"}},{"$f":"'Trial 4'!DV11","v":{"v":978440.5628500413,"d":"$978,441"}},{"$f":"'Trial 4'!DW11","v":{"v":977383.5124113855,"d":"$977,384"}},{"$f":"'Trial 4'!DX11","v":{"v":975603.8273564479,"d":"$975,604"}},{"$f":"'Trial 4'!DY11","v":{"v":975253.6498358088,"d":"$975,254"}},{"$f":"'Trial 4'!DZ11","v":{"v":974796.460050092,"d":"$974,796"}},{"$f":"SUM('Trial 4'!DO11:DZ11)","v":{"v":11749529.551121213,"d":"$11,749,530"}},{"$f":"'Trial 4'!EB11","v":{"v":974536.9216526776,"d":"$974,537"}},{"$f":"'Trial 4'!EC11","v":{"v":973546.27558917,"d":"$973,546"}},{"$f":"'Trial 4'!ED11","v":{"v":971750.7644725941,"d":"$971,751"}},{"$f":"'Trial 4'!EE11","v":{"v":970679.8287731417,"d":"$970,680"}},{"$f":"'Trial 4'!EF11","v":{"v":970308.7570497147,"d":"$970,309"}},{"$f":"'Trial 4'!EG11","v":{"v":970096.9558349772,"d":"$970,097"}},{"$f":"'Trial 4'!EH11","v":{"v":968995.9033377654,"d":"$968,996"}},{"$f":"'Trial 4'!EI11","v":{"v":968415.9773669906,"d":"$968,416"}},{"$f":"'Trial 4'!EJ11","v":{"v":966822.390774897,"d":"$966,822"}},{"$f":"'Trial 4'!EK11","v":{"v":965238.9369227428,"d":"$965,239"}},{"$f":"'Trial 4'!EL11","v":{"v":964819.3945529591,"d":"$964,819"}},{"$f":"'Trial 4'!EM11","v":{"v":963450.9071304488,"d":"$963,451"}},{"$f":"SUM('Trial 4'!EB11:EM11)","v":{"v":11628663.013458079,"d":"$11,628,663"}}]
[{"$f":"Labels!B100","v":"Trial 05"},{"$f":"'Trial 5'!B11","v":{"v":1166666.6666666667,"d":"$1,166,667"}},{"$f":"'Trial 5'!C11","v":{"v":1163292.663638942,"d":"$1,163,293"}},{"$f":"'Trial 5'!D11","v":{"v":1160099.8301054535,"d":"$1,160,100"}},{"$f":"'Trial 5'!E11","v":{"v":1157875.4617820682,"d":"$1,157,875"}},{"$f":"'Trial 5'!F11","v":{"v":1154429.3359015982,"d":"$1,154,429"}},{"$f":"'Trial 5'!G11","v":{"v":1151461.7199526655,"d":"$1,151,462"}},{"$f":"'Trial 5'!H11","v":{"v":1148465.7944948778,"d":"$1,148,466"}},{"$f":"'Trial 5'!I11","v":{"v":1145813.9169613149,"d":"$1,145,814"}},{"$f":"'Trial 5'!J11","v":{"v":1143492.22763719,"d":"$1,143,492"}},{"$f":"'Trial 5'!K11","v":{"v":1141759.90006052,"d":"$1,141,760"}},{"$f":"'Trial 5'!L11","v":{"v":1138823.6525468112,"d":"$1,138,824"}},{"$f":"'Trial 5'!M11","v":{"v":1136006.7123686608,"d":"$1,136,007"}},{"$f":"SUM('Trial 5'!B11:M11)","v":{"v":13808187.88211677,"d":"$13,808,188"}},{"$f":"'Trial 5'!O11","v":{"v":1133505.6579406017,"d":"$1,133,506"}},{"$f":"'Trial 5'!P11","v":{"v":1130903.8564452222,"d":"$1,130,904"}},{"$f":"'Trial 5'!Q11","v":{"v":1128527.3279775146,"d":"$1,128,527"}},{"$f":"'Trial 5'!R11","v":{"v":1126007.6103168605,"d":"$1,126,008"}},{"$f":"'Trial 5'!S11","v":{"v":1123728.7290438367,"d":"$1,123,729"}},{"$f":"'Trial 5'!T11","v":{"v":1120801.140617662,"d":"$1,120,801"}},{"$f":"'Trial 5'!U11","v":{"v":1119313.7100702275,"d":"$1,119,314"}},{"$f":"'Trial 5'!V11","v":{"v":1117205.6865642061,"d":"$1,117,206"}},{"$f":"'Trial 5'!W11","v":{"v":1114869.2084177919,"d":"$1,114,869"}},{"$f":"'Trial 5'!X11","v":{"v":1112736.7666620822,"d":"$1,112,737"}},{"$f":"'Trial 5'!Y11","v":{"v":1110025.700076352,"d":"$1,110,026"}},{"$f":"'Trial 5'!Z11","v":{"v":1108605.4880801684,"d":"$1,108,605"}},{"$f":"SUM('Trial 5'!O11:Z11)","v":{"v":13446230.882212527,"d":"$13,446,231"}},{"$f":"'Trial 5'!AB11","v":{"v":1106222.8672011483,"d":"$1,106,223"}},{"$f":"'Trial 5'!AC11","v":{"v":1104292.1630463724,"d":"$1,104,292"}},{"$f":"'Trial 5'!AD11","v":{"v":1102145.157117564,"d":"$1,102,145"}},{"$f":"'Trial 5'!AE11","v":{"v":1100741.7913826832,"d":"$1,100,742"}},{"$f":"'Trial 5'!AF11","v":{"v":1097833.3442173582,"d":"$1,097,833"}},{"$f":"'Trial 5'!AG11","v":{"v":1095097.1001690412,"d":"$1,095,097"}},{"$f":"'Trial 5'!AH11","v":{"v":1092827.8210051917,"d":"$1,092,828"}},{"$f":"'Trial 5'!AI11","v":{"v":1091004.9191918334,"d":"$1,091,005"}},{"$f":"'Trial 5'!AJ11","v":{"v":1088533.7179322029,"d":"$1,088,534"}},{"$f":"'Trial 5'!AK11","v":{"v":1086670.341005609,"d":"$1,086,670"}},{"$f":"'Trial 5'!AL11","v":{"v":1084227.5711357163,"d":"$1,084,228"}},{"$f":"'Trial 5'!AM11","v":{"v":1082177.6968829976,"d":"$1,082,178"}},{"$f":"SUM('Trial 5'!AB11:AM11)","v":{"v":13131774.490287717,"d":"$13,131,774"}},{"$f":"'Trial 5'!AO11","v":{"v":1079836.086746669,"d":"$1,079,836"}},{"$f":"'Trial 5'!AP11","v":{"v":1077962.7848175538,"d":"$1,077,963"}},{"$f":"'Trial 5'!AQ11","v":{"v":1076155.8137478682,"d":"$1,076,156"}},{"$f":"'Trial 5'!AR11","v":{"v":1074142.6611774461,"d":"$1,074,143"}},{"$f":"'Trial 5'!AS11","v":{"v":1072540.355698056,"d":"$1,072,540"}},{"$f":"'Trial 5'!AT11","v":{"v":1071033.4524231083,"d":"$1,071,033"}},{"$f":"'Trial 5'!AU11","v":{"v":1069009.8950415554,"d":"$1,069,010"}},{"$f":"'Trial 5'!AV11","v":{"v":1067419.1100287852,"d":"$1,067,419"}},{"$f":"'Trial 5'!AW11","v":{"v":1065706.8280830241,"d":"$1,065,707"}},{"$f":"'Trial 5'!AX11","v":{"v":1063857.122234204,"d":"$1,063,857"}},{"$f":"'Trial 5'!AY11","v":{"v":1062033.2345937537,"d":"$1,062,033"}},{"$f":"'Trial 5'!AZ11","v":{"v":1060455.8941060754,"d":"$1,060,456"}},{"$f":"SUM('Trial 5'!AO11:AZ11)","v":{"v":12840153.238698099,"d":"$12,840,153"}},{"$f":"'Trial 5'!BB11","v":{"v":1058675.0924202714,"d":"$1,058,675"}},{"$f":"'Trial 5'!BC11","v":{"v":1056709.2099705767,"d":"$1,056,709"}},{"$f":"'Trial 5'!BD11","v":{"v":1054491.8168008693,"d":"$1,054,492"}},{"$f":"'Trial 5'!BE11","v":{"v":1052068.5349148642,"d":"$1,052,069"}},{"$f":"'Trial 5'!BF11","v":{"v":1050690.7945835227,"d":"$1,050,691"}},{"$f":"'Trial 5'!BG11","v":{"v":1048888.6527924777,"d":"$1,048,889"}},{"$f":"'Trial 5'!BH11","v":{"v":1047442.3683391558,"d":"$1,047,442"}},{"$f":"'Trial 5'!BI11","v":{"v":1045289.6045184133,"d":"$1,045,290"}},{"$f":"'Trial 5'!BJ11","v":{"v":1043900.9490595618,"d":"$1,043,901"}},{"$f":"'Trial 5'!BK11","v":{"v":1042931.0614696624,"d":"$1,042,931"}},{"$f":"'Trial 5'!BL11","v":{"v":1041612.0981074456,"d":"$1,041,612"}},{"$f":"'Trial 5'!BM11","v":{"v":1040675.6149241866,"d":"$1,040,676"}},{"$f":"SUM('Trial 5'!BB11:BM11)","v":{"v":12583375.79790101,"d":"$12,583,376"}},{"$f":"'Trial 5'!BO11","v":{"v":1039325.6720401181,"d":"$1,039,326"}},{"$f":"'Trial 5'!BP11","v":{"v":1038384.1530877666,"d":"$1,038,384"}},{"$f":"'Trial 5'!BQ11","v":{"v":1037687.8298659847,"d":"$1,037,688"}},{"$f":"'Trial 5'!BR11","v":{"v":1036964.5918286088,"d":"$1,036,965"}},{"$f":"'Trial 5'!BS11","v":{"v":1034992.707806442,"d":"$1,034,993"}},{"$f":"'Trial 5'!BT11","v":{"v":1033559.42134987,"d":"$1,033,559"}},{"$f":"'Trial 5'!BU11","v":{"v":1032935.4684062483,"d":"$1,032,935"}},{"$f":"'Trial 5'!BV11","v":{"v":1031040.9028477371,"d":"$1,031,041"}},{"$f":"'Trial 5'!BW11","v":{"v":1029551.7699322529,"d":"$1,029,552"}},{"$f":"'Trial 5'!BX11","v":{"v":1028244.5709940878,"d":"$1,028,245"}},{"$f":"'Trial 5'!BY11","v":{"v":1027491.4005495297,"d":"$1,027,491"}},{"$f":"'Trial 5'!BZ11","v":{"v":1026794.8873119178,"d":"$1,026,795"}},{"$f":"SUM('Trial 5'!BO11:BZ11)","v":{"v":12396973.376020564,"d":"$12,396,973"}},{"$f":"'Trial 5'!CB11","v":{"v":1025924.0934880646,"d":"$1,025,924"}},{"$f":"'Trial 5'!CC11","v":{"v":1024499.0986681766,"d":"$1,024,499"}},{"$f":"'Trial 5'!CD11","v":{"v":1023188.8907532236,"d":"$1,023,189"}},{"$f":"'Trial 5'!CE11","v":{"v":1021802.9320913468,"d":"$1,021,803"}},{"$f":"'Trial 5'!CF11","v":{"v":1020213.6811640488,"d":"$1,020,214"}},{"$f":"'Trial 5'!CG11","v":{"v":1019003.8997489484,"d":"$1,019,004"}},{"$f":"'Trial 5'!CH11","v":{"v":1018535.2359759855,"d":"$1,018,535"}},{"$f":"'Trial 5'!CI11","v":{"v":1016933.5424310776,"d":"$1,016,934"}},{"$f":"'Trial 5'!CJ11","v":{"v":1015259.4689645439,"d":"$1,015,259"}},{"$f":"'Trial 5'!CK11","v":{"v":1014157.1999000927,"d":"$1,014,157"}},{"$f":"'Trial 5'!CL11","v":{"v":1013676.9032138758,"d":"$1,013,677"}},{"$f":"'Trial 5'!CM11","v":{"v":1011993.6142080139,"d":"$1,011,994"}},{"$f":"SUM('Trial 5'!CB11:CM11)","v":{"v":12225188.560607398,"d":"$12,225,189"}},{"$f":"'Trial 5'!CO11","v":{"v":1011007.4465234277,"d":"$1,011,007"}},{"$f":"'Trial 5'!CP11","v":{"v":1009983.9137128796,"d":"$1,009,984"}},{"$f":"'Trial 5'!CQ11","v":{"v":1008325.321031055,"d":"$1,008,325"}},{"$f":"'Trial 5'!CR11","v":{"v":1007784.7774306271,"d":"$1,007,785"}},{"$f":"'Trial 5'!CS11","v":{"v":1006235.5305226556,"d":"$1,006,236"}},{"$f":"'Trial 5'!CT11","v":{"v":1004836.356129043,"d":"$1,004,836"}},{"$f":"'Trial 5'!CU11","v":{"v":1003907.3059684252,"d":"$1,003,907"}},{"$f":"'Trial 5'!CV11","v":{"v":1002853.0948452567,"d":"$1,002,853"}},{"$f":"'Trial 5'!CW11","v":{"v":1001573.9641817161,"d":"$1,001,574"}},{"$f":"'Trial 5'!CX11","v":{"v":1000863.0204226869,"d":"$1,000,863"}},{"$f":"'Trial 5'!CY11","v":{"v":999519.016134771,"d":"$999,519"}},{"$f":"'Trial 5'!CZ11","v":{"v":998360.3578523392,"d":"$998,360"}},{"$f":"SUM('Trial 5'!CO11:CZ11)","v":{"v":12055250.104754884,"d":"$12,055,250"}},{"$f":"'Trial 5'!DB11","v":{"v":996544.8517133545,"d":"$996,545"}},{"$f":"'Trial 5'!DC11","v":{"v":995714.4923487371,"d":"$995,714"}},{"$f":"'Trial 5'!DD11","v":{"v":994649.295291726,"d":"$994,649"}},{"$f":"'Trial 5'!DE11","v":{"v":993709.4924582578,"d":"$993,709"}},{"$f":"'Trial 5'!DF11","v":{"v":992331.4473612742,"d":"$992,331"}},{"$f":"'Trial 5'!DG11","v":{"v":990864.1472727319,"d":"$990,864"}},{"$f":"'Trial 5'!DH11","v":{"v":990231.7765370862,"d":"$990,232"}},{"$f":"'Trial 5'!DI11","v":{"v":989940.948973428,"d":"$989,941"}},{"$f":"'Trial 5'!DJ11","v":{"v":988919.2320626283,"d":"$988,919"}},{"$f":"'Trial 5'!DK11","v":{"v":987471.3341249495,"d":"$987,471"}},{"$f":"'Trial 5'!DL11","v":{"v":986356.1594250319,"d":"$986,356"}},{"$f":"'Trial 5'!DM11","v":{"v":984864.7542326303,"d":"$984,865"}},{"$f":"SUM('Trial 5'!DB11:DM11)","v":{"v":11891597.931801833,"d":"$11,891,598"}},{"$f":"'Trial 5'!DO11","v":{"v":983874.4867698427,"d":"$983,874"}},{"$f":"'Trial 5'!DP11","v":{"v":982640.2033923998,"d":"$982,640"}},{"$f":"'Trial 5'!DQ11","v":{"v":981629.445645366,"d":"$981,629"}},{"$f":"'Trial 5'!DR11","v":{"v":981329.9829253319,"d":"$981,330"}},{"$f":"'Trial 5'!DS11","v":{"v":980675.1373219065,"d":"$980,675"}},{"$f":"'Trial 5'!DT11","v":{"v":979936.3744159745,"d":"$979,936"}},{"$f":"'Trial 5'!DU11","v":{"v":979440.4890882191,"d":"$979,440"}},{"$f":"'Trial 5'!DV11","v":{"v":978121.0755657392,"d":"$978,121"}},{"$f":"'Trial 5'!DW11","v":{"v":977221.816142302,"d":"$977,222"}},{"$f":"'Trial 5'!DX11","v":{"v":976641.7517300879,"d":"$976,642"}},{"$f":"'Trial 5'!DY11","v":{"v":975457.7072696192,"d":"$975,458"}},{"$f":"'Trial 5'!DZ11","v":{"v":974511.2785133512,"d":"$974,511"}},{"$f":"SUM('Trial 5'!DO11:DZ11)","v":{"v":11751479.74878014,"d":"$11,751,480"}},{"$f":"'Trial 5'!EB11","v":{"v":973169.5612370722,"d":"$973,170"}},{"$f":"'Trial 5'!EC11","v":{"v":972219.8009311786,"d":"$972,220"}},{"$f":"'Trial 5'!ED11","v":{"v":971828.2158300073,"d":"$971,828"}},{"$f":"'Trial 5'!EE11","v":{"v":970563.5102497394,"d":"$970,564"}},{"$f":"'Trial 5'!EF11","v":{"v":969740.7021056749,"d":"$969,741"}},{"$f":"'Trial 5'!EG11","v":{"v":968897.1230468403,"d":"$968,897"}},{"$f":"'Trial 5'!EH11","v":{"v":968474.7396313163,"d":"$968,475"}},{"$f":"'Trial 5'!EI11","v":{"v":966950.83692297,"d":"$966,951"}},{"$f":"'Trial 5'!EJ11","v":{"v":965616.0168674248,"d":"$965,616"}},{"$f":"'Trial 5'!EK11","v":{"v":964492.6121896708,"d":"$964,493"}},{"$f":"'Trial 5'!EL11","v":{"v":963670.5777604047,"d":"$963,671"}},{"$f":"'Trial 5'!EM11","v":{"v":962872.9010647241,"d":"$962,873"}},{"$f":"SUM('Trial 5'!EB11:EM11)","v":{"v":11618496.597837023,"d":"$11,618,497"}}]
[{"$f":"Labels!B101","v":"Trial 06"},{"$f":"'Trial 6'!B11","v":{"v":1166666.6666666667,"d":"$1,166,667"}},{"$f":"'Trial 6'!C11","v":{"v":1163941.9343871598,"d":"$1,163,942"}},{"$f":"'Trial 6'!D11","v":{"v":1160313.7226394701,"d":"$1,160,314"}},{"$f":"'Trial 6'!E11","v":{"v":1158000.3887778225,"d":"$1,158,000"}},{"$f":"'Trial 6'!F11","v":{"v":1155947.1670664365,"d":"$1,155,947"}},{"$f":"'Trial 6'!G11","v":{"v":1153472.7902051765,"d":"$1,153,473"}},{"$f":"'Trial 6'!H11","v":{"v":1150452.253346578,"d":"$1,150,452"}},{"$f":"'Trial 6'!I11","v":{"v":1147733.7089617718,"d":"$1,147,734"}},{"$f":"'Trial 6'!J11","v":{"v":1145029.346569747,"d":"$1,145,029"}},{"$f":"'Trial 6'!K11","v":{"v":1142897.156728023,"d":"$1,142,897"}},{"$f":"'Trial 6'!L11","v":{"v":1140317.1825386425,"d":"$1,140,317"}},{"$f":"'Trial 6'!M11","v":{"v":1138493.0305379727,"d":"$1,138,493"}},{"$f":"SUM('Trial 6'!B11:M11)","v":{"v":13823265.348425465,"d":"$13,823,265"}},{"$f":"'Trial 6'!O11","v":{"v":1135944.97786259,"d":"$1,135,945"}},{"$f":"'Trial 6'!P11","v":{"v":1134040.0882591677,"d":"$1,134,040"}},{"$f":"'Trial 6'!Q11","v":{"v":1131435.2213536743,"d":"$1,131,435"}},{"$f":"'Trial 6'!R11","v":{"v":1129588.2436081413,"d":"$1,129,588"}},{"$f":"'Trial 6'!S11","v":{"v":1127567.1305896568,"d":"$1,127,567"}},{"$f":"'Trial 6'!T11","v":{"v":1124395.7865930174,"d":"$1,124,396"}},{"$f":"'Trial 6'!U11","v":{"v":1121895.0790878204,"d":"$1,121,895"}},{"$f":"'Trial 6'!V11","v":{"v":1119839.6608342787,"d":"$1,119,840"}},{"$f":"'Trial 6'!W11","v":{"v":1117194.9486691193,"d":"$1,117,195"}},{"$f":"'Trial 6'!X11","v":{"v":1114682.0866272377,"d":"$1,114,682"}},{"$f":"'Trial 6'!Y11","v":{"v":1112587.6083333096,"d":"$1,112,588"}},{"$f":"'Trial 6'!Z11","v":{"v":1110776.2999032044,"d":"$1,110,776"}},{"$f":"SUM('Trial 6'!O11:Z11)","v":{"v":13479947.131721217,"d":"$13,479,947"}},{"$f":"'Trial 6'!AB11","v":{"v":1108113.0338138845,"d":"$1,108,113"}},{"$f":"'Trial 6'!AC11","v":{"v":1106037.2098707922,"d":"$1,106,037"}},{"$f":"'Trial 6'!AD11","v":{"v":1104135.4909036106,"d":"$1,104,135"}},{"$f":"'Trial 6'!AE11","v":{"v":1102509.1858796878,"d":"$1,102,509"}},{"$f":"'Trial 6'!AF11","v":{"v":1100550.7352947125,"d":"$1,100,551"}},{"$f":"'Trial 6'!AG11","v":{"v":1098963.4228783073,"d":"$1,098,963"}},{"$f":"'Trial 6'!AH11","v":{"v":1097017.7603980764,"d":"$1,097,018"}},{"$f":"'Trial 6'!AI11","v":{"v":1095338.5800570277,"d":"$1,095,339"}},{"$f":"'Trial 6'!AJ11","v":{"v":1093211.149857577,"d":"$1,093,211"}},{"$f":"'Trial 6'!AK11","v":{"v":1090889.122422536,"d":"$1,090,889"}},{"$f":"'Trial 6'!AL11","v":{"v":1088958.3768153072,"d":"$1,088,958"}},{"$f":"'Trial 6'!AM11","v":{"v":1087418.4465264168,"d":"$1,087,418"}},{"$f":"SUM('Trial 6'!AB11:AM11)","v":{"v":13173142.514717935,"d":"$13,173,143"}},{"$f":"'Trial 6'!AO11","v":{"v":1086143.6455089916,"d":"$1,086,144"}},{"$f":"'Trial 6'!AP11","v":{"v":1084354.307770786,"d":"$1,084,354"}},{"$f":"'Trial 6'!AQ11","v":{"v":1082316.232680402,"d":"$1,082,316"}},{"$f":"'Trial 6'!AR11","v":{"v":1080148.7081209596,"d":"$1,080,149"}},{"$f":"'Trial 6'!AS11","v":{"v":1078348.0497767904,"d":"$1,078,348"}},{"$f":"'Trial 6'!AT11","v":{"v":1076347.9030826704,"d":"$1,076,348"}},{"$f":"'Trial 6'!AU11","v":{"v":1074195.4111352419,"d":"$1,074,195"}},{"$f":"'Trial 6'!AV11","v":{"v":1071610.1649196274,"d":"$1,071,610"}},{"$f":"'Trial 6'!AW11","v":{"v":1069939.2554602814,"d":"$1,069,939"}},{"$f":"'Trial 6'!AX11","v":{"v":1067916.5024666952,"d":"$1,067,917"}},{"$f":"'Trial 6'!AY11","v":{"v":1065588.40573215,"d":"$1,065,588"}},{"$f":"'Trial 6'!AZ11","v":{"v":1064067.4998901843,"d":"$1,064,067"}},{"$f":"SUM('Trial 6'!AO11:AZ11)","v":{"v":12900976.08654478,"d":"$12,900,976"}},{"$f":"'Trial 6'!BB11","v":{"v":1062957.7861549773,"d":"$1,062,958"}},{"$f":"'Trial 6'!BC11","v":{"v":1060486.1853247837,"d":"$1,060,486"}},{"$f":"'Trial 6'!BD11","v":{"v":1058372.235307632,"d":"$1,058,372"}},{"$f":"'Trial 6'!BE11","v":{"v":1056432.9817860974,"d":"$1,056,433"}},{"$f":"'Trial 6'!BF11","v":{"v":1054417.3036384627,"d":"$1,054,417"}},{"$f":"'Trial 6'!BG11","v":{"v":1052759.412277351,"d":"$1,052,759"}},{"$f":"'Trial 6'!BH11","v":{"v":1051321.5327223132,"d":"$1,051,322"}},{"$f":"'Trial 6'!BI11","v":{"v":1050133.285404718,"d":"$1,050,133"}},{"$f":"'Trial 6'!BJ11","v":{"v":1048246.6895248871,"d":"$1,048,247"}},{"$f":"'Trial 6'!BK11","v":{"v":1047358.602551199,"d":"$1,047,359"}},{"$f":"'Trial 6'!BL11","v":{"v":1045962.3550471601,"d":"$1,045,962"}},{"$f":"'Trial 6'!BM11","v":{"v":1043738.8753645505,"d":"$1,043,739"}},{"$f":"SUM('Trial 6'!BB11:BM11)","v":{"v":12632187.245104134,"d":"$12,632,187"}},{"$f":"'Trial 6'!BO11","v":{"v":1042387.9089287806,"d":"$1,042,388"}},{"$f":"'Trial 6'!BP11","v":{"v":1040100.4092042259,"d":"$1,040,100"}},{"$f":"'Trial 6'!BQ11","v":{"v":1038452.6066379568,"d":"$1,038,453"}},{"$f":"'Trial 6'!BR11","v":{"v":1036742.1129448926,"d":"$1,036,742"}},{"$f":"'Trial 6'!BS11","v":{"v":1034876.3197328091,"d":"$1,034,876"}},{"$f":"'Trial 6'!BT11","v":{"v":1032640.6918410913,"d":"$1,032,641"}},{"$f":"'Trial 6'!BU11","v":{"v":1031690.6565094324,"d":"$1,031,691"}},{"$f":"'Trial 6'!BV11","v":{"v":1030310.6692481925,"d":"$1,030,311"}},{"$f":"'Trial 6'!BW11","v":{"v":1029144.481585625,"d":"$1,029,144"}},{"$f":"'Trial 6'!BX11","v":{"v":1028134.4048116654,"d":"$1,028,134"}},{"$f":"'Trial 6'!BY11","v":{"v":1026375.4306435337,"d":"$1,026,375"}},{"$f":"'Trial 6'!BZ11","v":{"v":1025714.8194920465,"d":"$1,025,715"}},{"$f":"SUM('Trial 6'!BO11:BZ11)","v":{"v":12396570.511580251,"d":"$12,396,571"}},{"$f":"'Trial 6'!CB11","v":{"v":1024761.9164918843,"d":"$1,024,762"}},{"$f":"'Trial 6'!CC11","v":{"v":1023462.8624869988,"d":"$1,023,463"}},{"$f":"'Trial 6'!CD11","v":{"v":1022062.4986056545,"d":"$1,022,062"}},{"$f":"'Trial 6'!CE11","v":{"v":1021451.4996903645,"d":"$1,021,451"}},{"$f":"'Trial 6'!CF11","v":{"v":1020002.8308017156,"d":"$1,020,003"}},{"$f":"'Trial 6'!CG11","v":{"v":1018507.8679637653,"d":"$1,018,508"}},{"$f":"'Trial 6'!CH11","v":{"v":1017600.8873264915,"d":"$1,017,601"}},{"$f":"'Trial 6'!CI11","v":{"v":1016676.7340111787,"d":"$1,016,677"}},{"$f":"'Trial 6'!CJ11","v":{"v":1015949.2290823552,"d":"$1,015,949"}},{"$f":"'Trial 6'!CK11","v":{"v":1014727.4135513733,"d":"$1,014,727"}},{"$f":"'Trial 6'!CL11","v":{"v":1013694.7764729528,"d":"$1,013,695"}},{"$f":"'Trial 6'!CM11","v":{"v":1012976.0413904001,"d":"$1,012,976"}},{"$f":"SUM('Trial 6'!CB11:CM11)","v":{"v":12221874.557875134,"d":"$12,221,875"}},{"$f":"'Trial 6'!CO11","v":{"v":1012139.2653039539,"d":"$1,012,139"}},{"$f":"'Trial 6'!CP11","v":{"v":1011033.5451983748,"d":"$1,011,034"}},{"$f":"'Trial 6'!CQ11","v":{"v":1010333.1861867867,"d":"$1,010,333"}},{"$f":"'Trial 6'!CR11","v":{"v":1009154.5633002217,"d":"$1,009,155"}},{"$f":"'Trial 6'!CS11","v":{"v":1007999.489391805,"d":"$1,007,999"}},{"$f":"'Trial 6'!CT11","v":{"v":1006449.2650904501,"d":"$1,006,449"}},{"$f":"'Trial 6'!CU11","v":{"v":1004971.8097407115,"d":"$1,004,972"}},{"$f":"'Trial 6'!CV11","v":{"v":1004525.98526323,"d":"$1,004,526"}},{"$f":"'Trial 6'!CW11","v":{"v":1002910.5264238195,"d":"$1,002,911"}},{"$f":"'Trial 6'!CX11","v":{"v":1002439.8554965019,"d":"$1,002,440"}},{"$f":"'Trial 6'!CY11","v":{"v":1001442.3308607803,"d":"$1,001,442"}},{"$f":"'Trial 6'!CZ11","v":{"v":999943.125498561,"d":"$999,943"}},{"$f":"SUM('Trial 6'!CO11:CZ11)","v":{"v":12073342.947755197,"d":"$12,073,343"}},{"$f":"'Trial 6'!DB11","v":{"v":999059.3722311663,"d":"$999,059"}},{"$f":"'Trial 6'!DC11","v":{"v":998232.6739415514,"d":"$998,233"}},{"$f":"'Trial 6'!DD11","v":{"v":996427.0264619534,"d":"$996,427"}},{"$f":"'Trial 6'!DE11","v":{"v":995094.1376613119,"d":"$995,094"}},{"$f":"'Trial 6'!DF11","v":{"v":994019.9360803313,"d":"$994,020"}},{"$f":"'Trial 6'!DG11","v":{"v":992337.3833807532,"d":"$992,337"}},{"$f":"'Trial 6'!DH11","v":{"v":991172.1051737603,"d":"$991,172"}},{"$f":"'Trial 6'!DI11","v":{"v":989605.3360140349,"d":"$989,605"}},{"$f":"'Trial 6'!DJ11","v":{"v":988016.3038276768,"d":"$988,016"}},{"$f":"'Trial 6'!DK11","v":{"v":986292.2072300992,"d":"$986,292"}},{"$f":"'Trial 6'!DL11","v":{"v":985368.4253843551,"d":"$985,368"}},{"$f":"'Trial 6'!DM11","v":{"v":984005.5738120675,"d":"$984,006"}},{"$f":"SUM('Trial 6'!DB11:DM11)","v":{"v":11899630.48119906,"d":"$11,899,630"}},{"$f":"'Trial 6'!DO11","v":{"v":982865.6282918905,"d":"$982,866"}},{"$f":"'Trial 6'!DP11","v":{"v":982383.7003946078,"d":"$982,384"}},{"$f":"'Trial 6'!DQ11","v":{"v":981097.3333098909,"d":"$981,097"}},{"$f":"'Trial 6'!DR11","v":{"v":979866.3090574815,"d":"$979,866"}},{"$f":"'Trial 6'!DS11","v":{"v":978917.3577213904,"d":"$978,917"}},{"$f":"'Trial 6'!DT11","v":{"v":977900.7634373576,"d":"$977,901"}},{"$f":"'Trial 6'!DU11","v":{"v":977240.1044464782,"d":"$977,240"}},{"$f":"'Trial 6'!DV11","v":{"v":976783.2247533444,"d":"$976,783"}},{"$f":"'Trial 6'!DW11","v":{"v":976405.6830540022,"d":"$976,406"}},{"$f":"'Trial 6'!DX11","v":{"v":975573.8714888318,"d":"$975,574"}},{"$f":"'Trial 6'!DY11","v":{"v":975006.2389731389,"d":"$975,006"}},{"$f":"'Trial 6'!DZ11","v":{"v":973996.757450287,"d":"$973,997"}},{"$f":"SUM('Trial 6'!DO11:DZ11)","v":{"v":11738036.972378701,"d":"$11,738,037"}},{"$f":"'Trial 6'!EB11","v":{"v":973049.9933401939,"d":"$973,050"}},{"$f":"'Trial 6'!EC11","v":{"v":972623.0419483681,"d":"$972,623"}},{"$f":"'Trial 6'!ED11","v":{"v":971741.7342524284,"d":"$971,742"}},{"$f":"'Trial 6'!EE11","v":{"v":971062.5442668223,"d":"$971,063"}},{"$f":"'Trial 6'!EF11","v":{"v":970515.5465157914,"d":"$970,516"}},{"$f":"'Trial 6'!EG11","v":{"v":969614.4956570748,"d":"$969,614"}},{"$f":"'Trial 6'!EH11","v":{"v":968916.6472253809,"d":"$968,917"}},{"$f":"'Trial 6'!EI11","v":{"v":968022.7421547641,"d":"$968,023"}},{"$f":"'Trial 6'!EJ11","v":{"v":967324.2111225609,"d":"$967,324"}},{"$f":"'Trial 6'!EK11","v":{"v":967006.521840886,"d":"$967,007"}},{"$f":"'Trial 6'!EL11","v":{"v":966869.8760120285,"d":"$966,870"}},{"$f":"'Trial 6'!EM11","v":{"v":965488.8378175902,"d":"$965,489"}},{"$f":"SUM('Trial 6'!EB11:EM11)","v":{"v":11632236.19215389,"d":"$11,632,236"}}]
[{"$f":"Labels!B102","v":"Trial 07"},{"$f":"'Trial 7'!B11","v":{"v":1166666.6666666667,"d":"$1,166,667"}},{"$f":"'Trial 7'!C11","v":{"v":1163444.5721965926,"d":"$1,163,445"}},{"$f":"'Trial 7'!D11","v":{"v":1160996.3842534362,"d":"$1,160,996"}},{"$f":"'Trial 7'!E11","v":{"v":1158462.126078825,"d":"$1,158,462"}},{"$f":"'Trial 7'!F11","v":{"v":1155627.6166477022,"d":"$1,155,628"}},{"$f":"'Trial 7'!G11","v":{"v":1153376.7011394664,"d":"$1,153,377"}},{"$f":"'Trial 7'!H11","v":{"v":1151175.2535257663,"d":"$1,151,175"}},{"$f":"'Trial 7'!I11","v":{"v":1148967.7621014325,"d":"$1,148,968"}},{"$f":"'Trial 7'!J11","v":{"v":1146902.4143997196,"d":"$1,146,902"}},{"$f":"'Trial 7'!K11","v":{"v":1144187.5980149272,"d":"$1,144,188"}},{"$f":"'Trial 7'!L11","v":{"v":1141294.749976172,"d":"$1,141,295"}},{"$f":"'Trial 7'!M11","v":{"v":1138710.3514911933,"d":"$1,138,710"}},{"$f":"SUM('Trial 7'!B11:M11)","v":{"v":13829812.1964919,"d":"$13,829,812"}},{"$f":"'Trial 7'!O11","v":{"v":1136068.0600093727,"d":"$1,136,068"}},{"$f":"'Trial 7'!P11","v":{"v":1133663.2239847379,"d":"$1,133,663"}},{"$f":"'Trial 7'!Q11","v":{"v":1131722.848499137,"d":"$1,131,723"}},{"$f":"'Trial 7'!R11","v":{"v":1129755.1692705222,"d":"$1,129,755"}},{"$f":"'Trial 7'!S11","v":{"v":1127687.1817601582,"d":"$1,127,687"}},{"$f":"'Trial 7'!T11","v":{"v":1125457.5647085607,"d":"$1,125,458"}},{"$f":"'Trial 7'!U11","v":{"v":1123513.8902448737,"d":"$1,123,514"}},{"$f":"'Trial 7'!V11","v":{"v":1121104.2287659207,"d":"$1,121,104"}},{"$f":"'Trial 7'!W11","v":{"v":1119226.1715464997,"d":"$1,119,226"}},{"$f":"'Trial 7'!X11","v":{"v":1117533.3750274365,"d":"$1,117,533"}},{"$f":"'Trial 7'!Y11","v":{"v":1115658.0626456516,"d":"$1,115,658"}},{"$f":"'Trial 7'!Z11","v":{"v":1113433.3308517116,"d":"$1,113,433"}},{"$f":"SUM('Trial 7'!O11:Z11)","v":{"v":13494823.107314583,"d":"$13,494,823"}},{"$f":"'Trial 7'!AB11","v":{"v":1110529.6174097254,"d":"$1,110,530"}},{"$f":"'Trial 7'!AC11","v":{"v":1107596.9303575426,"d":"$1,107,597"}},{"$f":"'Trial 7'!AD11","v":{"v":1105423.3938038703,"d":"$1,105,423"}},{"$f":"'Trial 7'!AE11","v":{"v":1103469.9020181457,"d":"$1,103,470"}},{"$f":"'Trial 7'!AF11","v":{"v":1101783.568857695,"d":"$1,101,784"}},{"$f":"'Trial 7'!AG11","v":{"v":1099405.7529736385,"d":"$1,099,406"}},{"$f":"'Trial 7'!AH11","v":{"v":1097609.9662896276,"d":"$1,097,610"}},{"$f":"'Trial 7'!AI11","v":{"v":1095795.8997862348,"d":"$1,095,796"}},{"$f":"'Trial 7'!AJ11","v":{"v":1093257.898535789,"d":"$1,093,258"}},{"$f":"'Trial 7'!AK11","v":{"v":1091117.4150114749,"d":"$1,091,117"}},{"$f":"'Trial 7'!AL11","v":{"v":1089154.6014088222,"d":"$1,089,155"}},{"$f":"'Trial 7'!AM11","v":{"v":1087252.246169636,"d":"$1,087,252"}},{"$f":"SUM('Trial 7'!AB11:AM11)","v":{"v":13182397.192622202,"d":"$13,182,397"}},{"$f":"'Trial 7'!AO11","v":{"v":1085048.539004567,"d":"$1,085,049"}},{"$f":"'Trial 7'!AP11","v":{"v":1082670.8511277987,"d":"$1,082,671"}},{"$f":"'Trial 7'!AQ11","v":{"v":1080669.209502005,"d":"$1,080,669"}},{"$f":"'Trial 7'!AR11","v":{"v":1079160.7320387992,"d":"$1,079,161"}},{"$f":"'Trial 7'!AS11","v":{"v":1077636.8618453734,"d":"$1,077,637"}},{"$f":"'Trial 7'!AT11","v":{"v":1076478.206069596,"d":"$1,076,478"}},{"$f":"'Trial 7'!AU11","v":{"v":1074322.482874216,"d":"$1,074,322"}},{"$f":"'Trial 7'!AV11","v":{"v":1072427.535700136,"d":"$1,072,428"}},{"$f":"'Trial 7'!AW11","v":{"v":1070535.0467226617,"d":"$1,070,535"}},{"$f":"'Trial 7'!AX11","v":{"v":1068465.926755612,"d":"$1,068,466"}},{"$f":"'Trial 7'!AY11","v":{"v":1066247.7335421373,"d":"$1,066,248"}},{"$f":"'Trial 7'!AZ11","v":{"v":1064158.4456365597,"d":"$1,064,158"}},{"$f":"SUM('Trial 7'!AO11:AZ11)","v":{"v":12897821.570819462,"d":"$12,897,822"}},{"$f":"'Trial 7'!BB11","v":{"v":1061820.4612154427,"d":"$1,061,820"}},{"$f":"'Trial 7'!BC11","v":{"v":1059931.254791589,"d":"$1,059,931"}},{"$f":"'Trial 7'!BD11","v":{"v":1058025.775117963,"d":"$1,058,026"}},{"$f":"'Trial 7'!BE11","v":{"v":1056558.3460832636,"d":"$1,056,558"}},{"$f":"'Trial 7'!BF11","v":{"v":1054766.330565496,"d":"$1,054,766"}},{"$f":"'Trial 7'!BG11","v":{"v":1053324.927186563,"d":"$1,053,325"}},{"$f":"'Trial 7'!BH11","v":{"v":1052184.6355375017,"d":"$1,052,185"}},{"$f":"'Trial 7'!BI11","v":{"v":1050148.7798708775,"d":"$1,050,149"}},{"$f":"'Trial 7'!BJ11","v":{"v":1048529.3381861928,"d":"$1,048,529"}},{"$f":"'Trial 7'!BK11","v":{"v":1046702.2089604652,"d":"$1,046,702"}},{"$f":"'Trial 7'!BL11","v":{"v":1044571.3726382928,"d":"$1,044,571"}},{"$f":"'Trial 7'!BM11","v":{"v":1042815.9805456556,"d":"$1,042,816"}},{"$f":"SUM('Trial 7'!BB11:BM11)","v":{"v":12629379.4106993,"d":"$12,629,379"}},{"$f":"'Trial 7'!BO11","v":{"v":1041549.9405935007,"d":"$1,041,550"}},{"$f":"'Trial 7'!BP11","v":{"v":1039800.639254323,"d":"$1,039,801"}},{"$f":"'Trial 7'!BQ11","v":{"v":1037614.6605273956,"d":"$1,037,615"}},{"$f":"'Trial 7'!BR11","v":{"v":1036419.6185376282,"d":"$1,036,420"}},{"$f":"'Trial 7'!BS11","v":{"v":1035220.7408909565,"d":"$1,035,221"}},{"$f":"'Trial 7'!BT11","v":{"v":1034268.3253395914,"d":"$1,034,268"}},{"$f":"'Trial 7'!BU11","v":{"v":1033424.0032146208,"d":"$1,033,424"}},{"$f":"'Trial 7'!BV11","v":{"v":1032413.9465641382,"d":"$1,032,414"}},{"$f":"'Trial 7'!BW11","v":{"v":1030608.4220995778,"d":"$1,030,608"}},{"$f":"'Trial 7'!BX11","v":{"v":1029798.2460658138,"d":"$1,029,798"}},{"$f":"'Trial 7'!BY11","v":{"v":1028061.8181033647,"d":"$1,028,062"}},{"$f":"'Trial 7'!BZ11","v":{"v":1026091.7713261165,"d":"$1,026,092"}},{"$f":"SUM('Trial 7'!BO11:BZ11)","v":{"v":12405272.132517029,"d":"$12,405,272"}},{"$f":"'Trial 7'!CB11","v":{"v":1023883.2719492213,"d":"$1,023,883"}},{"$f":"'Trial 7'!CC11","v":{"v":1022483.9447144761,"d":"$1,022,484"}},{"$f":"'Trial 7'!CD11","v":{"v":1021477.9856314182,"d":"$1,021,478"}},{"$f":"'Trial 7'!CE11","v":{"v":1020547.8494232915,"d":"$1,020,548"}},{"$f":"'Trial 7'!CF11","v":{"v":1018415.2518943581,"d":"$1,018,415"}},{"$f":"'Trial 7'!CG11","v":{"v":1016889.6477700584,"d":"$1,016,890"}},{"$f":"'Trial 7'!CH11","v":{"v":1015971.4398205276,"d":"$1,015,971"}},{"$f":"'Trial 7'!CI11","v":{"v":1013847.9176946487,"d":"$1,013,848"}},{"$f":"'Trial 7'!CJ11","v":{"v":1012189.2162891799,"d":"$1,012,189"}},{"$f":"'Trial 7'!CK11","v":{"v":1011811.2911882952,"d":"$1,011,811"}},{"$f":"'Trial 7'!CL11","v":{"v":1011336.7631616689,"d":"$1,011,337"}},{"$f":"'Trial 7'!CM11","v":{"v":1010027.602166671,"d":"$1,010,028"}},{"$f":"SUM('Trial 7'!CB11:CM11)","v":{"v":12198882.181703815,"d":"$12,198,882"}},{"$f":"'Trial 7'!CO11","v":{"v":1009253.7678362161,"d":"$1,009,254"}},{"$f":"'Trial 7'!CP11","v":{"v":1008847.3530257625,"d":"$1,008,847"}},{"$f":"'Trial 7'!CQ11","v":{"v":1007581.2588221679,"d":"$1,007,581"}},{"$f":"'Trial 7'!CR11","v":{"v":1006636.3441171915,"d":"$1,006,636"}},{"$f":"'Trial 7'!CS11","v":{"v":1005795.3715986436,"d":"$1,005,795"}},{"$f":"'Trial 7'!CT11","v":{"v":1004664.3968075754,"d":"$1,004,664"}},{"$f":"'Trial 7'!CU11","v":{"v":1003451.550256729,"d":"$1,003,452"}},{"$f":"'Trial 7'!CV11","v":{"v":1002725.5580381568,"d":"$1,002,726"}},{"$f":"'Trial 7'!CW11","v":{"v":1001556.6430159066,"d":"$1,001,557"}},{"$f":"'Trial 7'!CX11","v":{"v":1000350.34483196,"d":"$1,000,350"}},{"$f":"'Trial 7'!CY11","v":{"v":998622.580111837,"d":"$998,623"}},{"$f":"'Trial 7'!CZ11","v":{"v":996995.7356190698,"d":"$996,996"}},{"$f":"SUM('Trial 7'!CO11:CZ11)","v":{"v":12046480.904081216,"d":"$12,046,481"}},{"$f":"'Trial 7'!DB11","v":{"v":996116.0976333905,"d":"$996,116"}},{"$f":"'Trial 7'!DC11","v":{"v":995714.0597026853,"d":"$995,714"}},{"$f":"'Trial 7'!DD11","v":{"v":995108.1979874909,"d":"$995,108"}},{"$f":"'Trial 7'!DE11","v":{"v":994098.4256838228,"d":"$994,098"}},{"$f":"'Trial 7'!DF11","v":{"v":993230.9573937763,"d":"$993,231"}},{"$f":"'Trial 7'!DG11","v":{"v":992301.201931751,"d":"$992,301"}},{"$f":"'Trial 7'!DH11","v":{"v":990679.0638007048,"d":"$990,679"}},{"$f":"'Trial 7'!DI11","v":{"v":989015.330060822,"d":"$989,015"}},{"$f":"'Trial 7'!DJ11","v":{"v":988034.4823450734,"d":"$988,034"}},{"$f":"'Trial 7'!DK11","v":{"v":986983.3037780266,"d":"$986,983"}},{"$f":"'Trial 7'!DL11","v":{"v":985345.6155823577,"d":"$985,346"}},{"$f":"'Trial 7'!DM11","v":{"v":984416.5063716624,"d":"$984,417"}},{"$f":"SUM('Trial 7'!DB11:DM11)","v":{"v":11891043.242271563,"d":"$11,891,043"}},{"$f":"'Trial 7'!DO11","v":{"v":983524.4876886106,"d":"$983,524"}},{"$f":"'Trial 7'!DP11","v":{"v":982185.2929613267,"d":"$982,185"}},{"$f":"'Trial 7'!DQ11","v":{"v":981184.6660616372,"d":"$981,185"}},{"$f":"'Trial 7'!DR11","v":{"v":980166.6223587964,"d":"$980,167"}},{"$f":"'Trial 7'!DS11","v":{"v":978715.625371724,"d":"$978,716"}},{"$f":"'Trial 7'!DT11","v":{"v":977930.4257179147,"d":"$977,930"}},{"$f":"'Trial 7'!DU11","v":{"v":976539.4183850223,"d":"$976,539"}},{"$f":"'Trial 7'!DV11","v":{"v":975376.5798973595,"d":"$975,377"}},{"$f":"'Trial 7'!DW11","v":{"v":974799.5039567511,"d":"$974,800"}},{"$f":"'Trial 7'!DX11","v":{"v":974748.5241101785,"d":"$974,749"}},{"$f":"'Trial 7'!DY11","v":{"v":973201.546603978,"d":"$973,202"}},{"$f":"'Trial 7'!DZ11","v":{"v":972025.4060293146,"d":"$972,025"}},{"$f":"SUM('Trial 7'!DO11:DZ11)","v":{"v":11730398.099142615,"d":"$11,730,398"}},{"$f":"'Trial 7'!EB11","v":{"v":970653.8655642127,"d":"$970,654"}},{"$f":"'Trial 7'!EC11","v":{"v":970297.7092249009,"d":"$970,298"}},{"$f":"'Trial 7'!ED11","v":{"v":968984.3322537321,"d":"$968,984"}},{"$f":"'Trial 7'!EE11","v":{"v":968101.2534956955,"d":"$968,101"}},{"$f":"'Trial 7'!EF11","v":{"v":967406.5323373436,"d":"$967,407"}},{"$f":"'Trial 7'!EG11","v":{"v":966140.0263894803,"d":"$966,140"}},{"$f":"'Trial 7'!EH11","v":{"v":964491.706618669,"d":"$964,492"}},{"$f":"'Trial 7'!EI11","v":{"v":962971.150884847,"d":"$962,971"}},{"$f":"'Trial 7'!EJ11","v":{"v":962391.569043656,"d":"$962,392"}},{"$f":"'Trial 7'!EK11","v":{"v":961889.1210743946,"d":"$961,889"}},{"$f":"'Trial 7'!EL11","v":{"v":961059.7001037309,"d":"$961,060"}},{"$f":"'Trial 7'!EM11","v":{"v":960728.9586375576,"d":"$960,729"}},{"$f":"SUM('Trial 7'!EB11:EM11)","v":{"v":11585115.925628223,"d":"$11,585,116"}}]
[{"$f":"Labels!B103","v":"Trial 08"},{"$f":"'Trial 8'!B11","v":{"v":1166666.6666666667,"d":"$1,166,667"}},{"$f":"'Trial 8'!C11","v":{"v":1163179.1096113715,"d":"$1,163,179"}},{"$f":"'Trial 8'!D11","v":{"v":1160226.047223062,"d":"$1,160,226"}},{"$f":"'Trial 8'!E11","v":{"v":1157471.3377678413,"d":"$1,157,471"}},{"$f":"'Trial 8'!F11","v":{"v":1154899.6982408909,"d":"$1,154,900"}},{"$f":"'Trial 8'!G11","v":{"v":1153017.5195986088,"d":"$1,153,018"}},{"$f":"'Trial 8'!H11","v":{"v":1150584.1678040966,"d":"$1,150,584"}},{"$f":"'Trial 8'!I11","v":{"v":1147907.629846032,"d":"$1,147,908"}},{"$f":"'Trial 8'!J11","v":{"v":1145601.4375842249,"d":"$1,145,601"}},{"$f":"'Trial 8'!K11","v":{"v":1142528.0209300457,"d":"$1,142,528"}},{"$f":"'Trial 8'!L11","v":{"v":1140295.994379496,"d":"$1,140,296"}},{"$f":"'Trial 8'!M11","v":{"v":1137232.412583667,"d":"$1,137,232"}},{"$f":"SUM('Trial 8'!B11:M11)","v":{"v":13819610.042236006,"d":"$13,819,610"}},{"$f":"'Trial 8'!O11","v":{"v":1134820.1970436776,"d":"$1,134,820"}},{"$f":"'Trial 8'!P11","v":{"v":1133028.6023300393,"d":"$1,133,029"}},{"$f":"'Trial 8'!Q11","v":{"v":1130207.2353822463,"d":"$1,130,207"}},{"$f":"'Trial 8'!R11","v":{"v":1127083.815320348,"d":"$1,127,084"}},{"$f":"'Trial 8'!S11","v":{"v":1124879.804163283,"d":"$1,124,880"}},{"$f":"'Trial 8'!T11","v":{"v":1122544.2402454824,"d":"$1,122,544"}},{"$f":"'Trial 8'!U11","v":{"v":1120897.398346635,"d":"$1,120,897"}},{"$f":"'Trial 8'!V11","v":{"v":1118523.4032046588,"d":"$1,118,523"}},{"$f":"'Trial 8'!W11","v":{"v":1116288.343185264,"d":"$1,116,288"}},{"$f":"'Trial 8'!X11","v":{"v":1114640.443619509,"d":"$1,114,640"}},{"$f":"'Trial 8'!Y11","v":{"v":1112020.4814874122,"d":"$1,112,020"}},{"$f":"'Trial 8'!Z11","v":{"v":1109238.6618132978,"d":"$1,109,239"}},{"$f":"SUM('Trial 8'!O11:Z11)","v":{"v":13464172.626141854,"d":"$13,464,173"}},{"$f":"'Trial 8'!AB11","v":{"v":1106742.6078931873,"d":"$1,106,743"}},{"$f":"'Trial 8'!AC11","v":{"v":1104579.3623495793,"d":"$1,104,579"}},{"$f":"'Trial 8'!AD11","v":{"v":1102479.9798759443,"d":"$1,102,480"}},{"$f":"'Trial 8'!AE11","v":{"v":1100088.0174792472,"d":"$1,100,088"}},{"$f":"'Trial 8'!AF11","v":{"v":1097894.8097499057,"d":"$1,097,895"}},{"$f":"'Trial 8'!AG11","v":{"v":1095401.8768295352,"d":"$1,095,402"}},{"$f":"'Trial 8'!AH11","v":{"v":1093057.7840572093,"d":"$1,093,058"}},{"$f":"'Trial 8'!AI11","v":{"v":1091300.1499545486,"d":"$1,091,300"}},{"$f":"'Trial 8'!AJ11","v":{"v":1089494.7039463595,"d":"$1,089,495"}},{"$f":"'Trial 8'!AK11","v":{"v":1087276.0954478097,"d":"$1,087,276"}},{"$f":"'Trial 8'!AL11","v":{"v":1085326.8699855283,"d":"$1,085,327"}},{"$f":"'Trial 8'!AM11","v":{"v":1083927.72760076,"d":"$1,083,928"}},{"$f":"SUM('Trial 8'!AB11:AM11)","v":{"v":13137569.985169616,"d":"$13,137,570"}},{"$f":"'Trial 8'!AO11","v":{"v":1082494.7742449127,"d":"$1,082,495"}},{"$f":"'Trial 8'!AP11","v":{"v":1081016.9789210677,"d":"$1,081,017"}},{"$f":"'Trial 8'!AQ11","v":{"v":1079167.3529172547,"d":"$1,079,167"}},{"$f":"'Trial 8'!AR11","v":{"v":1077315.2344494357,"d":"$1,077,315"}},{"$f":"'Trial 8'!AS11","v":{"v":1074986.0829173743,"d":"$1,074,986"}},{"$f":"'Trial 8'!AT11","v":{"v":1072692.060199365,"d":"$1,072,692"}},{"$f":"'Trial 8'!AU11","v":{"v":1070728.893535289,"d":"$1,070,729"}},{"$f":"'Trial 8'!AV11","v":{"v":1069175.4769684249,"d":"$1,069,175"}},{"$f":"'Trial 8'!AW11","v":{"v":1067439.8253536902,"d":"$1,067,440"}},{"$f":"'Trial 8'!AX11","v":{"v":1065770.61492997,"d":"$1,065,771"}},{"$f":"'Trial 8'!AY11","v":{"v":1064060.370891499,"d":"$1,064,060"}},{"$f":"'Trial 8'!AZ11","v":{"v":1062540.6861135028,"d":"$1,062,541"}},{"$f":"SUM('Trial 8'!AO11:AZ11)","v":{"v":12867388.351441786,"d":"$12,867,388"}},{"$f":"'Trial 8'!BB11","v":{"v":1060950.0237934547,"d":"$1,060,950"}},{"$f":"'Trial 8'!BC11","v":{"v":1059055.700920835,"d":"$1,059,056"}},{"$f":"'Trial 8'!BD11","v":{"v":1057809.3666871095,"d":"$1,057,809"}},{"$f":"'Trial 8'!BE11","v":{"v":1056709.915966049,"d":"$1,056,710"}},{"$f":"'Trial 8'!BF11","v":{"v":1055244.9986059233,"d":"$1,055,245"}},{"$f":"'Trial 8'!BG11","v":{"v":1053768.1487812814,"d":"$1,053,768"}},{"$f":"'Trial 8'!BH11","v":{"v":1052629.1837517235,"d":"$1,052,629"}},{"$f":"'Trial 8'!BI11","v":{"v":1050691.3179339317,"d":"$1,050,691"}},{"$f":"'Trial 8'!BJ11","v":{"v":1049095.2311601727,"d":"$1,049,095"}},{"$f":"'Trial 8'!BK11","v":{"v":1047789.6862192517,"d":"$1,047,790"}},{"$f":"'Trial 8'!BL11","v":{"v":1046461.593741841,"d":"$1,046,462"}},{"$f":"'Trial 8'!BM11","v":{"v":1045168.2801390047,"d":"$1,045,168"}},{"$f":"SUM('Trial 8'!BB11:BM11)","v":{"v":12635373.447700577,"d":"$12,635,373"}},{"$f":"'Trial 8'!BO11","v":{"v":1043537.6210251189,"d":"$1,043,538"}},{"$f":"'Trial 8'!BP11","v":{"v":1042328.7476110859,"d":"$1,042,329"}},{"$f":"'Trial 8'!BQ11","v":{"v":1041391.88766211,"d":"$1,041,392"}},{"$f":"'Trial 8'!BR11","v":{"v":1040286.9487038238,"d":"$1,040,287"}},{"$f":"'Trial 8'!BS11","v":{"v":1039568.2637006624,"d":"$1,039,568"}},{"$f":"'Trial 8'!BT11","v":{"v":1038338.6955989695,"d":"$1,038,339"}},{"$f":"'Trial 8'!BU11","v":{"v":1036891.6793653991,"d":"$1,036,892"}},{"$f":"'Trial 8'!BV11","v":{"v":1035642.9512502353,"d":"$1,035,643"}},{"$f":"'Trial 8'!BW11","v":{"v":1034789.2707302794,"d":"$1,034,789"}},{"$f":"'Trial 8'!BX11","v":{"v":1033737.0743675604,"d":"$1,033,737"}},{"$f":"'Trial 8'!BY11","v":{"v":1032682.2327973027,"d":"$1,032,682"}},{"$f":"'Trial 8'!BZ11","v":{"v":1031139.5694130019,"d":"$1,031,140"}},{"$f":"SUM('Trial 8'!BO11:BZ11)","v":{"v":12450334.94222555,"d":"$12,450,335"}},{"$f":"'Trial 8'!CB11","v":{"v":1029153.4044429692,"d":"$1,029,153"}},{"$f":"'Trial 8'!CC11","v":{"v":1027579.0850096409,"d":"$1,027,579"}},{"$f":"'Trial 8'!CD11","v":{"v":1026236.5546402083,"d":"$1,026,237"}},{"$f":"'Trial 8'!CE11","v":{"v":1024416.8984668762,"d":"$1,024,417"}},{"$f":"'Trial 8'!CF11","v":{"v":1023194.7365996169,"d":"$1,023,195"}},{"$f":"'Trial 8'!CG11","v":{"v":1021808.1513587601,"d":"$1,021,808"}},{"$f":"'Trial 8'!CH11","v":{"v":1021293.1658475221,"d":"$1,021,293"}},{"$f":"'Trial 8'!CI11","v":{"v":1020025.4720847209,"d":"$1,020,025"}},{"$f":"'Trial 8'!CJ11","v":{"v":1018434.0774625788,"d":"$1,018,434"}},{"$f":"'Trial 8'!CK11","v":{"v":1017412.5570402791,"d":"$1,017,413"}},{"$f":"'Trial 8'!CL11","v":{"v":1016540.2115641761,"d":"$1,016,540"}},{"$f":"'Trial 8'!CM11","v":{"v":1014829.1704633686,"d":"$1,014,829"}},{"$f":"SUM('Trial 8'!CB11:CM11)","v":{"v":12260923.484980717,"d":"$12,260,923"}},{"$f":"'Trial 8'!CO11","v":{"v":1014149.4819129468,"d":"$1,014,149"}},{"$f":"'Trial 8'!CP11","v":{"v":1013496.520012107,"d":"$1,013,497"}},{"$f":"'Trial 8'!CQ11","v":{"v":1012374.8402134473,"d":"$1,012,375"}},{"$f":"'Trial 8'!CR11","v":{"v":1011441.6774433582,"d":"$1,011,442"}},{"$f":"'Trial 8'!CS11","v":{"v":1010475.6737484368,"d":"$1,010,476"}},{"$f":"'Trial 8'!CT11","v":{"v":1008393.1762552352,"d":"$1,008,393"}},{"$f":"'Trial 8'!CU11","v":{"v":1007147.3819742778,"d":"$1,007,147"}},{"$f":"'Trial 8'!CV11","v":{"v":1006445.8836382811,"d":"$1,006,446"}},{"$f":"'Trial 8'!CW11","v":{"v":1005272.6163901433,"d":"$1,005,273"}},{"$f":"'Trial 8'!CX11","v":{"v":1003312.7403646945,"d":"$1,003,313"}},{"$f":"'Trial 8'!CY11","v":{"v":1002693.9475837728,"d":"$1,002,694"}},{"$f":"'Trial 8'!CZ11","v":{"v":1002383.0619207737,"d":"$1,002,383"}},{"$f":"SUM('Trial 8'!CO11:CZ11)","v":{"v":12097587.001457473,"d":"$12,097,587"}},{"$f":"'Trial 8'!DB11","v":{"v":1000896.1001339784,"d":"$1,000,896"}},{"$f":"'Trial 8'!DC11","v":{"v":1000590.6910654951,"d":"$1,000,591"}},{"$f":"'Trial 8'!DD11","v":{"v":999184.6150342573,"d":"$999,185"}},{"$f":"'Trial 8'!DE11","v":{"v":997593.7333570686,"d":"$997,594"}},{"$f":"'Trial 8'!DF11","v":{"v":996350.1431195257,"d":"$996,350"}},{"$f":"'Trial 8'!DG11","v":{"v":995300.5738764073,"d":"$995,301"}},{"$f":"'Trial 8'!DH11","v":{"v":993952.7333623783,"d":"$993,953"}},{"$f":"'Trial 8'!DI11","v":{"v":992818.672324459,"d":"$992,819"}},{"$f":"'Trial 8'!DJ11","v":{"v":991248.3423722853,"d":"$991,248"}},{"$f":"'Trial 8'!DK11","v":{"v":990961.2307404974,"d":"$990,961"}},{"$f":"'Trial 8'!DL11","v":{"v":989719.0730508846,"d":"$989,719"}},{"$f":"'Trial 8'!DM11","v":{"v":989353.5455922545,"d":"$989,354"}},{"$f":"SUM('Trial 8'!DB11:DM11)","v":{"v":11937969.454029491,"d":"$11,937,969"}},{"$f":"'Trial 8'!DO11","v":{"v":988204.181282415,"d":"$988,204"}},{"$f":"'Trial 8'!DP11","v":{"v":986537.529469844,"d":"$986,538"}},{"$f":"'Trial 8'!DQ11","v":{"v":985046.2398137246,"d":"$985,046"}},{"$f":"'Trial 8'!DR11","v":{"v":984772.5983898336,"d":"$984,773"}},{"$f":"'Trial 8'!DS11","v":{"v":984364.3181439256,"d":"$984,364"}},{"$f":"'Trial 8'!DT11","v":{"v":983182.4900740128,"d":"$983,182"}},{"$f":"'Trial 8'!DU11","v":{"v":982785.8680145394,"d":"$982,786"}},{"$f":"'Trial 8'!DV11","v":{"v":982319.3478761478,"d":"$982,319"}},{"$f":"'Trial 8'!DW11","v":{"v":981415.0584500234,"d":"$981,415"}},{"$f":"'Trial 8'!DX11","v":{"v":980708.8611129904,"d":"$980,709"}},{"$f":"'Trial 8'!DY11","v":{"v":979144.5780114473,"d":"$979,145"}},{"$f":"'Trial 8'!DZ11","v":{"v":978367.0098958918,"d":"$978,367"}},{"$f":"SUM('Trial 8'!DO11:DZ11)","v":{"v":11796848.080534795,"d":"$11,796,848"}},{"$f":"'Trial 8'!EB11","v":{"v":977426.1450624047,"d":"$977,426"}},{"$f":"'Trial 8'!EC11","v":{"v":975824.8752059101,"d":"$975,825"}},{"$f":"'Trial 8'!ED11","v":{"v":974285.5435645378,"d":"$974,286"}},{"$f":"'Trial 8'!EE11","v":{"v":973628.5557232285,"d":"$973,629"}},{"$f":"'Trial 8'!EF11","v":{"v":972471.5969792141,"d":"$972,472"}},{"$f":"'Trial 8'!EG11","v":{"v":971244.1743229716,"d":"$971,244"}},{"$f":"'Trial 8'!EH11","v":{"v":970397.8469339538,"d":"$970,398"}},{"$f":"'Trial 8'!EI11","v":{"v":970066.2438854262,"d":"$970,066"}},{"$f":"'Trial 8'!EJ11","v":{"v":968813.6558566556,"d":"$968,814"}},{"$f":"'Trial 8'!EK11","v":{"v":967997.220345214,"d":"$967,997"}},{"$f":"'Trial 8'!EL11","v":{"v":966471.7324911722,"d":"$966,472"}},{"$f":"'Trial 8'!EM11","v":{"v":965265.9625981406,"d":"$965,266"}},{"$f":"SUM('Trial 8'!EB11:EM11)","v":{"v":11653893.55296883,"d":"$11,653,894"}}]
[{"$f":"Labels!C95","v":"Total"},{"$f":"SUM('Trial 1'!B11,'Trial 2'!B11,'Trial 3'!B11,'Trial 4'!B11,'Trial 5'!B11,'Trial 6'!B11,'Trial 7'!B11,'Trial 8'!B11)","v":{"v":9333333.333333334,"d":"$9,333,333"}},{"$f":"SUM('Trial 1'!C11,'Trial 2'!C11,'Trial 3'!C11,'Trial 4'!C11,'Trial 5'!C11,'Trial 6'!C11,'Trial 7'!C11,'Trial 8'!C11)","v":{"v":9307779.72365826,"d":"$9,307,780"}},{"$f":"SUM('Trial 1'!D11,'Trial 2'!D11,'Trial 3'!D11,'Trial 4'!D11,'Trial 5'!D11,'Trial 6'!D11,'Trial 7'!D11,'Trial 8'!D11)","v":{"v":9284178.958264971,"d":"$9,284,179"}},{"$f":"SUM('Trial 1'!E11,'Trial 2'!E11,'Trial 3'!E11,'Trial 4'!E11,'Trial 5'!E11,'Trial 6'!E11,'Trial 7'!E11,'Trial 8'!E11)","v":{"v":9262996.009665187,"d":"$9,262,996"}},{"$f":"SUM('Trial 1'!F11,'Trial 2'!F11,'Trial 3'!F11,'Trial 4'!F11,'Trial 5'!F11,'Trial 6'!F11,'Trial 7'!F11,'Trial 8'!F11)","v":{"v":9242933.312456228,"d":"$9,242,933"}},{"$f":"SUM('Trial 1'!G11,'Trial 2'!G11,'Trial 3'!G11,'Trial 4'!G11,'Trial 5'!G11,'Trial 6'!G11,'Trial 7'!G11,'Trial 8'!G11)","v":{"v":9224234.095573347,"d":"$9,224,234"}},{"$f":"SUM('Trial 1'!H11,'Trial 2'!H11,'Trial 3'!H11,'Trial 4'!H11,'Trial 5'!H11,'Trial 6'!H11,'Trial 7'!H11,'Trial 8'!H11)","v":{"v":9204252.902548715,"d":"$9,204,253"}},{"$f":"SUM('Trial 1'!I11,'Trial 2'!I11,'Trial 3'!I11,'Trial 4'!I11,'Trial 5'!I11,'Trial 6'!I11,'Trial 7'!I11,'Trial 8'!I11)","v":{"v":9182474.948117942,"d":"$9,182,475"}},{"$f":"SUM('Trial 1'!J11,'Trial 2'!J11,'Trial 3'!J11,'Trial 4'!J11,'Trial 5'!J11,'Trial 6'!J11,'Trial 7'!J11,'Trial 8'!J11)","v":{"v":9161910.243321804,"d":"$9,161,910"}},{"$f":"SUM('Trial 1'!K11,'Trial 2'!K11,'Trial 3'!K11,'Trial 4'!K11,'Trial 5'!K11,'Trial 6'!K11,'Trial 7'!K11,'Trial 8'!K11)","v":{"v":9141746.523374772,"d":"$9,141,747"}},{"$f":"SUM('Trial 1'!L11,'Trial 2'!L11,'Trial 3'!L11,'Trial 4'!L11,'Trial 5'!L11,'Trial 6'!L11,'Trial 7'!L11,'Trial 8'!L11)","v":{"v":9121826.201271273,"d":"$9,121,826"}},{"$f":"SUM('Trial 1'!M11,'Trial 2'!M11,'Trial 3'!M11,'Trial 4'!M11,'Trial 5'!M11,'Trial 6'!M11,'Trial 7'!M11,'Trial 8'!M11)","v":{"v":9101902.842831962,"d":"$9,101,903"}},{"$f":"SUM(B127:M127)","v":{"v":110569569.09441778,"d":"$110,569,569"}},{"$f":"SUM('Trial 1'!O11,'Trial 2'!O11,'Trial 3'!O11,'Trial 4'!O11,'Trial 5'!O11,'Trial 6'!O11,'Trial 7'!O11,'Trial 8'!O11)","v":{"v":9081535.276188754,"d":"$9,081,535"}},{"$f":"SUM('Trial 1'!P11,'Trial 2'!P11,'Trial 3'!P11,'Trial 4'!P11,'Trial 5'!P11,'Trial 6'!P11,'Trial 7'!P11,'Trial 8'!P11)","v":{"v":9062682.15720614,"d":"$9,062,682"}},{"$f":"SUM('Trial 1'!Q11,'Trial 2'!Q11,'Trial 3'!Q11,'Trial 4'!Q11,'Trial 5'!Q11,'Trial 6'!Q11,'Trial 7'!Q11,'Trial 8'!Q11)","v":{"v":9043674.40753677,"d":"$9,043,674"}},{"$f":"SUM('Trial 1'!R11,'Trial 2'!R11,'Trial 3'!R11,'Trial 4'!R11,'Trial 5'!R11,'Trial 6'!R11,'Trial 7'!R11,'Trial 8'!R11)","v":{"v":9025379.953220064,"d":"$9,025,380"}},{"$f":"SUM('Trial 1'!S11,'Trial 2'!S11,'Trial 3'!S11,'Trial 4'!S11,'Trial 5'!S11,'Trial 6'!S11,'Trial 7'!S11,'Trial 8'!S11)","v":{"v":9007801.711673884,"d":"$9,007,802"}},{"$f":"SUM('Trial 1'!T11,'Trial 2'!T11,'Trial 3'!T11,'Trial 4'!T11,'Trial 5'!T11,'Trial 6'!T11,'Trial 7'!T11,'Trial 8'!T11)","v":{"v":8986109.361703768,"d":"$8,986,109"}},{"$f":"SUM('Trial 1'!U11,'Trial 2'!U11,'Trial 3'!U11,'Trial 4'!U11,'Trial 5'!U11,'Trial 6'!U11,'Trial 7'!U11,'Trial 8'!U11)","v":{"v":8968333.85309303,"d":"$8,968,334"}},{"$f":"SUM('Trial 1'!V11,'Trial 2'!V11,'Trial 3'!V11,'Trial 4'!V11,'Trial 5'!V11,'Trial 6'!V11,'Trial 7'!V11,'Trial 8'!V11)","v":{"v":8948181.71823781,"d":"$8,948,182"}},{"$f":"SUM('Trial 1'!W11,'Trial 2'!W11,'Trial 3'!W11,'Trial 4'!W11,'Trial 5'!W11,'Trial 6'!W11,'Trial 7'!W11,'Trial 8'!W11)","v":{"v":8928566.090914879,"d":"$8,928,566"}},{"$f":"SUM('Trial 1'!X11,'Trial 2'!X11,'Trial 3'!X11,'Trial 4'!X11,'Trial 5'!X11,'Trial 6'!X11,'Trial 7'!X11,'Trial 8'!X11)","v":{"v":8912203.241692398,"d":"$8,912,203"}},{"$f":"SUM('Trial 1'!Y11,'Trial 2'!Y11,'Trial 3'!Y11,'Trial 4'!Y11,'Trial 5'!Y11,'Trial 6'!Y11,'Trial 7'!Y11,'Trial 8'!Y11)","v":{"v":8893596.233598651,"d":"$8,893,596"}},{"$f":"SUM('Trial 1'!Z11,'Trial 2'!Z11,'Trial 3'!Z11,'Trial 4'!Z11,'Trial 5'!Z11,'Trial 6'!Z11,'Trial 7'!Z11,'Trial 8'!Z11)","v":{"v":8875414.14815163,"d":"$8,875,414"}},{"$f":"SUM(O127:Z127)","v":{"v":107733478.15321776,"d":"$107,733,478"}},{"$f":"SUM('Trial 1'!AB11,'Trial 2'!AB11,'Trial 3'!AB11,'Trial 4'!AB11,'Trial 5'!AB11,'Trial 6'!AB11,'Trial 7'!AB11,'Trial 8'!AB11)","v":{"v":8854996.622615855,"d":"$8,854,997"}},{"$f":"SUM('Trial 1'!AC11,'Trial 2'!AC11,'Trial 3'!AC11,'Trial 4'!AC11,'Trial 5'!AC11,'Trial 6'!AC11,'Trial 7'!AC11,'Trial 8'!AC11)","v":{"v":8837624.828967439,"d":"$8,837,625"}},{"$f":"SUM('Trial 1'!AD11,'Trial 2'!AD11,'Trial 3'!AD11,'Trial 4'!AD11,'Trial 5'!AD11,'Trial 6'!AD11,'Trial 7'!AD11,'Trial 8'!AD11)","v":{"v":8821531.097996252,"d":"$8,821,531"}},{"$f":"SUM('Trial 1'!AE11,'Trial 2'!AE11,'Trial 3'!AE11,'Trial 4'!AE11,'Trial 5'!AE11,'Trial 6'!AE11,'Trial 7'!AE11,'Trial 8'!AE11)","v":{"v":8804817.78482595,"d":"$8,804,818"}},{"$f":"SUM('Trial 1'!AF11,'Trial 2'!AF11,'Trial 3'!AF11,'Trial 4'!AF11,'Trial 5'!AF11,'Trial 6'!AF11,'Trial 7'!AF11,'Trial 8'!AF11)","v":{"v":8787932.388044104,"d":"$8,787,932"}},{"$f":"SUM('Trial 1'!AG11,'Trial 2'!AG11,'Trial 3'!AG11,'Trial 4'!AG11,'Trial 5'!AG11,'Trial 6'!AG11,'Trial 7'!AG11,'Trial 8'!AG11)","v":{"v":8769428.915769031,"d":"$8,769,429"}},{"$f":"SUM('Trial 1'!AH11,'Trial 2'!AH11,'Trial 3'!AH11,'Trial 4'!AH11,'Trial 5'!AH11,'Trial 6'!AH11,'Trial 7'!AH11,'Trial 8'!AH11)","v":{"v":8753640.79966417,"d":"$8,753,641"}},{"$f":"SUM('Trial 1'!AI11,'Trial 2'!AI11,'Trial 3'!AI11,'Trial 4'!AI11,'Trial 5'!AI11,'Trial 6'!AI11,'Trial 7'!AI11,'Trial 8'!AI11)","v":{"v":8739056.126866326,"d":"$8,739,056"}},{"$f":"SUM('Trial 1'!AJ11,'Trial 2'!AJ11,'Trial 3'!AJ11,'Trial 4'!AJ11,'Trial 5'!AJ11,'Trial 6'!AJ11,'Trial 7'!AJ11,'Trial 8'!AJ11)","v":{"v":8720943.184678547,"d":"$8,720,943"}},{"$f":"SUM('Trial 1'!AK11,'Trial 2'!AK11,'Trial 3'!AK11,'Trial 4'!AK11,'Trial 5'!AK11,'Trial 6'!AK11,'Trial 7'!AK11,'Trial 8'!AK11)","v":{"v":8705255.039724981,"d":"$8,705,255"}},{"$f":"SUM('Trial 1'!AL11,'Trial 2'!AL11,'Trial 3'!AL11,'Trial 4'!AL11,'Trial 5'!AL11,'Trial 6'!AL11,'Trial 7'!AL11,'Trial 8'!AL11)","v":{"v":8690237.911196496,"d":"$8,690,238"}},{"$f":"SUM('Trial 1'!AM11,'Trial 2'!AM11,'Trial 3'!AM11,'Trial 4'!AM11,'Trial 5'!AM11,'Trial 6'!AM11,'Trial 7'!AM11,'Trial 8'!AM11)","v":{"v":8675785.401099816,"d":"$8,675,785"}},{"$f":"SUM(AB127:AM127)","v":{"v":105161250.10144897,"d":"$105,161,250"}},{"$f":"SUM('Trial 1'!AO11,'Trial 2'!AO11,'Trial 3'!AO11,'Trial 4'!AO11,'Trial 5'!AO11,'Trial 6'!AO11,'Trial 7'!AO11,'Trial 8'!AO11)","v":{"v":8659146.114521226,"d":"$8,659,146"}},{"$f":"SUM('Trial 1'!AP11,'Trial 2'!AP11,'Trial 3'!AP11,'Trial 4'!AP11,'Trial 5'!AP11,'Trial 6'!AP11,'Trial 7'!AP11,'Trial 8'!AP11)","v":{"v":8643943.004875164,"d":"$8,643,943"}},{"$f":"SUM('Trial 1'!AQ11,'Trial 2'!AQ11,'Trial 3'!AQ11,'Trial 4'!AQ11,'Trial 5'!AQ11,'Trial 6'!AQ11,'Trial 7'!AQ11,'Trial 8'!AQ11)","v":{"v":8630312.441562898,"d":"$8,630,312"}},{"$f":"SUM('Trial 1'!AR11,'Trial 2'!AR11,'Trial 3'!AR11,'Trial 4'!AR11,'Trial 5'!AR11,'Trial 6'!AR11,'Trial 7'!AR11,'Trial 8'!AR11)","v":{"v":8614236.09561502,"d":"$8,614,236"}},{"$f":"SUM('Trial 1'!AS11,'Trial 2'!AS11,'Trial 3'!AS11,'Trial 4'!AS11,'Trial 5'!AS11,'Trial 6'!AS11,'Trial 7'!AS11,'Trial 8'!AS11)","v":{"v":8599224.442879232,"d":"$8,599,224"}},{"$f":"SUM('Trial 1'!AT11,'Trial 2'!AT11,'Trial 3'!AT11,'Trial 4'!AT11,'Trial 5'!AT11,'Trial 6'!AT11,'Trial 7'!AT11,'Trial 8'!AT11)","v":{"v":8585847.362800613,"d":"$8,585,847"}},{"$f":"SUM('Trial 1'!AU11,'Trial 2'!AU11,'Trial 3'!AU11,'Trial 4'!AU11,'Trial 5'!AU11,'Trial 6'!AU11,'Trial 7'!AU11,'Trial 8'!AU11)","v":{"v":8571152.382895295,"d":"$8,571,152"}},{"$f":"SUM('Trial 1'!AV11,'Trial 2'!AV11,'Trial 3'!AV11,'Trial 4'!AV11,'Trial 5'!AV11,'Trial 6'!AV11,'Trial 7'!AV11,'Trial 8'!AV11)","v":{"v":8556192.78254258,"d":"$8,556,193"}},{"$f":"SUM('Trial 1'!AW11,'Trial 2'!AW11,'Trial 3'!AW11,'Trial 4'!AW11,'Trial 5'!AW11,'Trial 6'!AW11,'Trial 7'!AW11,'Trial 8'!AW11)","v":{"v":8542082.951996863,"d":"$8,542,083"}},{"$f":"SUM('Trial 1'!AX11,'Trial 2'!AX11,'Trial 3'!AX11,'Trial 4'!AX11,'Trial 5'!AX11,'Trial 6'!AX11,'Trial 7'!AX11,'Trial 8'!AX11)","v":{"v":8526511.91916142,"d":"$8,526,512"}},{"$f":"SUM('Trial 1'!AY11,'Trial 2'!AY11,'Trial 3'!AY11,'Trial 4'!AY11,'Trial 5'!AY11,'Trial 6'!AY11,'Trial 7'!AY11,'Trial 8'!AY11)","v":{"v":8512051.595801396,"d":"$8,512,052"}},{"$f":"SUM('Trial 1'!AZ11,'Trial 2'!AZ11,'Trial 3'!AZ11,'Trial 4'!AZ11,'Trial 5'!AZ11,'Trial 6'!AZ11,'Trial 7'!AZ11,'Trial 8'!AZ11)","v":{"v":8498427.856569055,"d":"$8,498,428"}},{"$f":"SUM(AO127:AZ127)","v":{"v":102939128.95122077,"d":"$102,939,129"}},{"$f":"SUM('Trial 1'!BB11,'Trial 2'!BB11,'Trial 3'!BB11,'Trial 4'!BB11,'Trial 5'!BB11,'Trial 6'!BB11,'Trial 7'!BB11,'Trial 8'!BB11)","v":{"v":8482903.396403197,"d":"$8,482,903"}},{"$f":"SUM('Trial 1'!BC11,'Trial 2'!BC11,'Trial 3'!BC11,'Trial 4'!BC11,'Trial 5'!BC11,'Trial 6'!BC11,'Trial 7'!BC11,'Trial 8'!BC11)","v":{"v":8467795.420526937,"d":"$8,467,795"}},{"$f":"SUM('Trial 1'!BD11,'Trial 2'!BD11,'Trial 3'!BD11,'Trial 4'!BD11,'Trial 5'!BD11,'Trial 6'!BD11,'Trial 7'!BD11,'Trial 8'!BD11)","v":{"v":8453940.180443548,"d":"$8,453,940"}},{"$f":"SUM('Trial 1'!BE11,'Trial 2'!BE11,'Trial 3'!BE11,'Trial 4'!BE11,'Trial 5'!BE11,'Trial 6'!BE11,'Trial 7'!BE11,'Trial 8'!BE11)","v":{"v":8440699.003645115,"d":"$8,440,699"}},{"$f":"SUM('Trial 1'!BF11,'Trial 2'!BF11,'Trial 3'!BF11,'Trial 4'!BF11,'Trial 5'!BF11,'Trial 6'!BF11,'Trial 7'!BF11,'Trial 8'!BF11)","v":{"v":8427146.77137207,"d":"$8,427,147"}},{"$f":"SUM('Trial 1'!BG11,'Trial 2'!BG11,'Trial 3'!BG11,'Trial 4'!BG11,'Trial 5'!BG11,'Trial 6'!BG11,'Trial 7'!BG11,'Trial 8'!BG11)","v":{"v":8414684.57457966,"d":"$8,414,685"}},{"$f":"SUM('Trial 1'!BH11,'Trial 2'!BH11,'Trial 3'!BH11,'Trial 4'!BH11,'Trial 5'!BH11,'Trial 6'!BH11,'Trial 7'!BH11,'Trial 8'!BH11)","v":{"v":8402344.661574237,"d":"$8,402,345"}},{"$f":"SUM('Trial 1'!BI11,'Trial 2'!BI11,'Trial 3'!BI11,'Trial 4'!BI11,'Trial 5'!BI11,'Trial 6'!BI11,'Trial 7'!BI11,'Trial 8'!BI11)","v":{"v":8387907.725402268,"d":"$8,387,908"}},{"$f":"SUM('Trial 1'!BJ11,'Trial 2'!BJ11,'Trial 3'!BJ11,'Trial 4'!BJ11,'Trial 5'!BJ11,'Trial 6'!BJ11,'Trial 7'!BJ11,'Trial 8'!BJ11)","v":{"v":8374531.012014035,"d":"$8,374,531"}},{"$f":"SUM('Trial 1'!BK11,'Trial 2'!BK11,'Trial 3'!BK11,'Trial 4'!BK11,'Trial 5'!BK11,'Trial 6'!BK11,'Trial 7'!BK11,'Trial 8'!BK11)","v":{"v":8362826.218563914,"d":"$8,362,826"}},{"$f":"SUM('Trial 1'!BL11,'Trial 2'!BL11,'Trial 3'!BL11,'Trial 4'!BL11,'Trial 5'!BL11,'Trial 6'!BL11,'Trial 7'!BL11,'Trial 8'!BL11)","v":{"v":8349996.262986579,"d":"$8,349,996"}},{"$f":"SUM('Trial 1'!BM11,'Trial 2'!BM11,'Trial 3'!BM11,'Trial 4'!BM11,'Trial 5'!BM11,'Trial 6'!BM11,'Trial 7'!BM11,'Trial 8'!BM11)","v":{"v":8338568.813604653,"d":"$8,338,569"}},{"$f":"SUM(BB127:BM127)","v":{"v":100903344.04111622,"d":"$100,903,344"}},{"$f":"SUM('Trial 1'!BO11,'Trial 2'!BO11,'Trial 3'!BO11,'Trial 4'!BO11,'Trial 5'!BO11,'Trial 6'!BO11,'Trial 7'!BO11,'Trial 8'!BO11)","v":{"v":8326183.1580297155,"d":"$8,326,183"}},{"$f":"SUM('Trial 1'!BP11,'Trial 2'!BP11,'Trial 3'!BP11,'Trial 4'!BP11,'Trial 5'!BP11,'Trial 6'!BP11,'Trial 7'!BP11,'Trial 8'!BP11)","v":{"v":8313799.615016478,"d":"$8,313,800"}},{"$f":"SUM('Trial 1'!BQ11,'Trial 2'!BQ11,'Trial 3'!BQ11,'Trial 4'!BQ11,'Trial 5'!BQ11,'Trial 6'!BQ11,'Trial 7'!BQ11,'Trial 8'!BQ11)","v":{"v":8302245.097160296,"d":"$8,302,245"}},{"$f":"SUM('Trial 1'!BR11,'Trial 2'!BR11,'Trial 3'!BR11,'Trial 4'!BR11,'Trial 5'!BR11,'Trial 6'!BR11,'Trial 7'!BR11,'Trial 8'!BR11)","v":{"v":8291976.773976522,"d":"$8,291,977"}},{"$f":"SUM('Trial 1'!BS11,'Trial 2'!BS11,'Trial 3'!BS11,'Trial 4'!BS11,'Trial 5'!BS11,'Trial 6'!BS11,'Trial 7'!BS11,'Trial 8'!BS11)","v":{"v":8281425.8788796095,"d":"$8,281,426"}},{"$f":"SUM('Trial 1'!BT11,'Trial 2'!BT11,'Trial 3'!BT11,'Trial 4'!BT11,'Trial 5'!BT11,'Trial 6'!BT11,'Trial 7'!BT11,'Trial 8'!BT11)","v":{"v":8269097.003617725,"d":"$8,269,097"}},{"$f":"SUM('Trial 1'!BU11,'Trial 2'!BU11,'Trial 3'!BU11,'Trial 4'!BU11,'Trial 5'!BU11,'Trial 6'!BU11,'Trial 7'!BU11,'Trial 8'!BU11)","v":{"v":8259728.853054268,"d":"$8,259,729"}},{"$f":"SUM('Trial 1'!BV11,'Trial 2'!BV11,'Trial 3'!BV11,'Trial 4'!BV11,'Trial 5'!BV11,'Trial 6'!BV11,'Trial 7'!BV11,'Trial 8'!BV11)","v":{"v":8247438.461104264,"d":"$8,247,438"}},{"$f":"SUM('Trial 1'!BW11,'Trial 2'!BW11,'Trial 3'!BW11,'Trial 4'!BW11,'Trial 5'!BW11,'Trial 6'!BW11,'Trial 7'!BW11,'Trial 8'!BW11)","v":{"v":8235990.063499947,"d":"$8,235,990"}},{"$f":"SUM('Trial 1'!BX11,'Trial 2'!BX11,'Trial 3'!BX11,'Trial 4'!BX11,'Trial 5'!BX11,'Trial 6'!BX11,'Trial 7'!BX11,'Trial 8'!BX11)","v":{"v":8226509.508224142,"d":"$8,226,510"}},{"$f":"SUM('Trial 1'!BY11,'Trial 2'!BY11,'Trial 3'!BY11,'Trial 4'!BY11,'Trial 5'!BY11,'Trial 6'!BY11,'Trial 7'!BY11,'Trial 8'!BY11)","v":{"v":8214429.506816781,"d":"$8,214,430"}},{"$f":"SUM('Trial 1'!BZ11,'Trial 2'!BZ11,'Trial 3'!BZ11,'Trial 4'!BZ11,'Trial 5'!BZ11,'Trial 6'!BZ11,'Trial 7'!BZ11,'Trial 8'!BZ11)","v":{"v":8204865.1260004975,"d":"$8,204,865"}},{"$f":"SUM(BO127:BZ127)","v":{"v":99173689.04538023,"d":"$99,173,689"}},{"$f":"SUM('Trial 1'!CB11,'Trial 2'!CB11,'Trial 3'!CB11,'Trial 4'!CB11,'Trial 5'!CB11,'Trial 6'!CB11,'Trial 7'!CB11,'Trial 8'!CB11)","v":{"v":8194192.709682144,"d":"$8,194,193"}},{"$f":"SUM('Trial 1'!CC11,'Trial 2'!CC11,'Trial 3'!CC11,'Trial 4'!CC11,'Trial 5'!CC11,'Trial 6'!CC11,'Trial 7'!CC11,'Trial 8'!CC11)","v":{"v":8183262.413835465,"d":"$8,183,262"}},{"$f":"SUM('Trial 1'!CD11,'Trial 2'!CD11,'Trial 3'!CD11,'Trial 4'!CD11,'Trial 5'!CD11,'Trial 6'!CD11,'Trial 7'!CD11,'Trial 8'!CD11)","v":{"v":8172189.676640199,"d":"$8,172,190"}},{"$f":"SUM('Trial 1'!CE11,'Trial 2'!CE11,'Trial 3'!CE11,'Trial 4'!CE11,'Trial 5'!CE11,'Trial 6'!CE11,'Trial 7'!CE11,'Trial 8'!CE11)","v":{"v":8162513.823689457,"d":"$8,162,514"}},{"$f":"SUM('Trial 1'!CF11,'Trial 2'!CF11,'Trial 3'!CF11,'Trial 4'!CF11,'Trial 5'!CF11,'Trial 6'!CF11,'Trial 7'!CF11,'Trial 8'!CF11)","v":{"v":8150957.92107247,"d":"$8,150,958"}},{"$f":"SUM('Trial 1'!CG11,'Trial 2'!CG11,'Trial 3'!CG11,'Trial 4'!CG11,'Trial 5'!CG11,'Trial 6'!CG11,'Trial 7'!CG11,'Trial 8'!CG11)","v":{"v":8140524.697916103,"d":"$8,140,525"}},{"$f":"SUM('Trial 1'!CH11,'Trial 2'!CH11,'Trial 3'!CH11,'Trial 4'!CH11,'Trial 5'!CH11,'Trial 6'!CH11,'Trial 7'!CH11,'Trial 8'!CH11)","v":{"v":8133442.419630838,"d":"$8,133,442"}},{"$f":"SUM('Trial 1'!CI11,'Trial 2'!CI11,'Trial 3'!CI11,'Trial 4'!CI11,'Trial 5'!CI11,'Trial 6'!CI11,'Trial 7'!CI11,'Trial 8'!CI11)","v":{"v":8123772.364550908,"d":"$8,123,772"}},{"$f":"SUM('Trial 1'!CJ11,'Trial 2'!CJ11,'Trial 3'!CJ11,'Trial 4'!CJ11,'Trial 5'!CJ11,'Trial 6'!CJ11,'Trial 7'!CJ11,'Trial 8'!CJ11)","v":{"v":8114831.142308609,"d":"$8,114,831"}},{"$f":"SUM('Trial 1'!CK11,'Trial 2'!CK11,'Trial 3'!CK11,'Trial 4'!CK11,'Trial 5'!CK11,'Trial 6'!CK11,'Trial 7'!CK11,'Trial 8'!CK11)","v":{"v":8105506.898195852,"d":"$8,105,507"}},{"$f":"SUM('Trial 1'!CL11,'Trial 2'!CL11,'Trial 3'!CL11,'Trial 4'!CL11,'Trial 5'!CL11,'Trial 6'!CL11,'Trial 7'!CL11,'Trial 8'!CL11)","v":{"v":8097781.076562076,"d":"$8,097,781"}},{"$f":"SUM('Trial 1'!CM11,'Trial 2'!CM11,'Trial 3'!CM11,'Trial 4'!CM11,'Trial 5'!CM11,'Trial 6'!CM11,'Trial 7'!CM11,'Trial 8'!CM11)","v":{"v":8087787.861712871,"d":"$8,087,788"}},{"$f":"SUM(CB127:CM127)","v":{"v":97666763.005797,"d":"$97,666,763"}},{"$f":"SUM('Trial 1'!CO11,'Trial 2'!CO11,'Trial 3'!CO11,'Trial 4'!CO11,'Trial 5'!CO11,'Trial 6'!CO11,'Trial 7'!CO11,'Trial 8'!CO11)","v":{"v":8079956.897082321,"d":"$8,079,957"}},{"$f":"SUM('Trial 1'!CP11,'Trial 2'!CP11,'Trial 3'!CP11,'Trial 4'!CP11,'Trial 5'!CP11,'Trial 6'!CP11,'Trial 7'!CP11,'Trial 8'!CP11)","v":{"v":8071240.019271367,"d":"$8,071,240"}},{"$f":"SUM('Trial 1'!CQ11,'Trial 2'!CQ11,'Trial 3'!CQ11,'Trial 4'!CQ11,'Trial 5'!CQ11,'Trial 6'!CQ11,'Trial 7'!CQ11,'Trial 8'!CQ11)","v":{"v":8062681.647253795,"d":"$8,062,682"}},{"$f":"SUM('Trial 1'!CR11,'Trial 2'!CR11,'Trial 3'!CR11,'Trial 4'!CR11,'Trial 5'!CR11,'Trial 6'!CR11,'Trial 7'!CR11,'Trial 8'!CR11)","v":{"v":8054027.940072877,"d":"$8,054,028"}},{"$f":"SUM('Trial 1'!CS11,'Trial 2'!CS11,'Trial 3'!CS11,'Trial 4'!CS11,'Trial 5'!CS11,'Trial 6'!CS11,'Trial 7'!CS11,'Trial 8'!CS11)","v":{"v":8044808.342819635,"d":"$8,044,808"}},{"$f":"SUM('Trial 1'!CT11,'Trial 2'!CT11,'Trial 3'!CT11,'Trial 4'!CT11,'Trial 5'!CT11,'Trial 6'!CT11,'Trial 7'!CT11,'Trial 8'!CT11)","v":{"v":8033200.607873547,"d":"$8,033,201"}},{"$f":"SUM('Trial 1'!CU11,'Trial 2'!CU11,'Trial 3'!CU11,'Trial 4'!CU11,'Trial 5'!CU11,'Trial 6'!CU11,'Trial 7'!CU11,'Trial 8'!CU11)","v":{"v":8022854.871185027,"d":"$8,022,855"}},{"$f":"SUM('Trial 1'!CV11,'Trial 2'!CV11,'Trial 3'!CV11,'Trial 4'!CV11,'Trial 5'!CV11,'Trial 6'!CV11,'Trial 7'!CV11,'Trial 8'!CV11)","v":{"v":8016408.647181692,"d":"$8,016,409"}},{"$f":"SUM('Trial 1'!CW11,'Trial 2'!CW11,'Trial 3'!CW11,'Trial 4'!CW11,'Trial 5'!CW11,'Trial 6'!CW11,'Trial 7'!CW11,'Trial 8'!CW11)","v":{"v":8006966.103669353,"d":"$8,006,966"}},{"$f":"SUM('Trial 1'!CX11,'Trial 2'!CX11,'Trial 3'!CX11,'Trial 4'!CX11,'Trial 5'!CX11,'Trial 6'!CX11,'Trial 7'!CX11,'Trial 8'!CX11)","v":{"v":7997827.187015437,"d":"$7,997,827"}},{"$f":"SUM('Trial 1'!CY11,'Trial 2'!CY11,'Trial 3'!CY11,'Trial 4'!CY11,'Trial 5'!CY11,'Trial 6'!CY11,'Trial 7'!CY11,'Trial 8'!CY11)","v":{"v":7988294.809669449,"d":"$7,988,295"}},{"$f":"SUM('Trial 1'!CZ11,'Trial 2'!CZ11,'Trial 3'!CZ11,'Trial 4'!CZ11,'Trial 5'!CZ11,'Trial 6'!CZ11,'Trial 7'!CZ11,'Trial 8'!CZ11)","v":{"v":7980330.652937962,"d":"$7,980,331"}},{"$f":"SUM(CO127:CZ127)","v":{"v":96358597.72603247,"d":"$96,358,598"}},{"$f":"SUM('Trial 1'!DB11,'Trial 2'!DB11,'Trial 3'!DB11,'Trial 4'!DB11,'Trial 5'!DB11,'Trial 6'!DB11,'Trial 7'!DB11,'Trial 8'!DB11)","v":{"v":7971133.915740669,"d":"$7,971,134"}},{"$f":"SUM('Trial 1'!DC11,'Trial 2'!DC11,'Trial 3'!DC11,'Trial 4'!DC11,'Trial 5'!DC11,'Trial 6'!DC11,'Trial 7'!DC11,'Trial 8'!DC11)","v":{"v":7963562.771361092,"d":"$7,963,563"}},{"$f":"SUM('Trial 1'!DD11,'Trial 2'!DD11,'Trial 3'!DD11,'Trial 4'!DD11,'Trial 5'!DD11,'Trial 6'!DD11,'Trial 7'!DD11,'Trial 8'!DD11)","v":{"v":7953651.125463269,"d":"$7,953,651"}},{"$f":"SUM('Trial 1'!DE11,'Trial 2'!DE11,'Trial 3'!DE11,'Trial 4'!DE11,'Trial 5'!DE11,'Trial 6'!DE11,'Trial 7'!DE11,'Trial 8'!DE11)","v":{"v":7944616.4595346525,"d":"$7,944,616"}},{"$f":"SUM('Trial 1'!DF11,'Trial 2'!DF11,'Trial 3'!DF11,'Trial 4'!DF11,'Trial 5'!DF11,'Trial 6'!DF11,'Trial 7'!DF11,'Trial 8'!DF11)","v":{"v":7936982.864304463,"d":"$7,936,983"}},{"$f":"SUM('Trial 1'!DG11,'Trial 2'!DG11,'Trial 3'!DG11,'Trial 4'!DG11,'Trial 5'!DG11,'Trial 6'!DG11,'Trial 7'!DG11,'Trial 8'!DG11)","v":{"v":7928596.425488781,"d":"$7,928,596"}},{"$f":"SUM('Trial 1'!DH11,'Trial 2'!DH11,'Trial 3'!DH11,'Trial 4'!DH11,'Trial 5'!DH11,'Trial 6'!DH11,'Trial 7'!DH11,'Trial 8'!DH11)","v":{"v":7919921.002329056,"d":"$7,919,921"}},{"$f":"SUM('Trial 1'!DI11,'Trial 2'!DI11,'Trial 3'!DI11,'Trial 4'!DI11,'Trial 5'!DI11,'Trial 6'!DI11,'Trial 7'!DI11,'Trial 8'!DI11)","v":{"v":7911075.850976986,"d":"$7,911,076"}},{"$f":"SUM('Trial 1'!DJ11,'Trial 2'!DJ11,'Trial 3'!DJ11,'Trial 4'!DJ11,'Trial 5'!DJ11,'Trial 6'!DJ11,'Trial 7'!DJ11,'Trial 8'!DJ11)","v":{"v":7901943.799757134,"d":"$7,901,944"}},{"$f":"SUM('Trial 1'!DK11,'Trial 2'!DK11,'Trial 3'!DK11,'Trial 4'!DK11,'Trial 5'!DK11,'Trial 6'!DK11,'Trial 7'!DK11,'Trial 8'!DK11)","v":{"v":7893855.165606055,"d":"$7,893,855"}},{"$f":"SUM('Trial 1'!DL11,'Trial 2'!DL11,'Trial 3'!DL11,'Trial 4'!DL11,'Trial 5'!DL11,'Trial 6'!DL11,'Trial 7'!DL11,'Trial 8'!DL11)","v":{"v":7885572.050691946,"d":"$7,885,572"}},{"$f":"SUM('Trial 1'!DM11,'Trial 2'!DM11,'Trial 3'!DM11,'Trial 4'!DM11,'Trial 5'!DM11,'Trial 6'!DM11,'Trial 7'!DM11,'Trial 8'!DM11)","v":{"v":7876544.7070362065,"d":"$7,876,545"}},{"$f":"SUM(DB127:DM127)","v":{"v":95087456.13829032,"d":"$95,087,456"}},{"$f":"SUM('Trial 1'!DO11,'Trial 2'!DO11,'Trial 3'!DO11,'Trial 4'!DO11,'Trial 5'!DO11,'Trial 6'!DO11,'Trial 7'!DO11,'Trial 8'!DO11)","v":{"v":7867934.818400503,"d":"$7,867,935"}},{"$f":"SUM('Trial 1'!DP11,'Trial 2'!DP11,'Trial 3'!DP11,'Trial 4'!DP11,'Trial 5'!DP11,'Trial 6'!DP11,'Trial 7'!DP11,'Trial 8'!DP11)","v":{"v":7861216.246964052,"d":"$7,861,216"}},{"$f":"SUM('Trial 1'!DQ11,'Trial 2'!DQ11,'Trial 3'!DQ11,'Trial 4'!DQ11,'Trial 5'!DQ11,'Trial 6'!DQ11,'Trial 7'!DQ11,'Trial 8'!DQ11)","v":{"v":7852776.160640392,"d":"$7,852,776"}},{"$f":"SUM('Trial 1'!DR11,'Trial 2'!DR11,'Trial 3'!DR11,'Trial 4'!DR11,'Trial 5'!DR11,'Trial 6'!DR11,'Trial 7'!DR11,'Trial 8'!DR11)","v":{"v":7846726.444248974,"d":"$7,846,726"}},{"$f":"SUM('Trial 1'!DS11,'Trial 2'!DS11,'Trial 3'!DS11,'Trial 4'!DS11,'Trial 5'!DS11,'Trial 6'!DS11,'Trial 7'!DS11,'Trial 8'!DS11)","v":{"v":7839340.878412326,"d":"$7,839,341"}},{"$f":"SUM('Trial 1'!DT11,'Trial 2'!DT11,'Trial 3'!DT11,'Trial 4'!DT11,'Trial 5'!DT11,'Trial 6'!DT11,'Trial 7'!DT11,'Trial 8'!DT11)","v":{"v":7831826.892780362,"d":"$7,831,827"}},{"$f":"SUM('Trial 1'!DU11,'Trial 2'!DU11,'Trial 3'!DU11,'Trial 4'!DU11,'Trial 5'!DU11,'Trial 6'!DU11,'Trial 7'!DU11,'Trial 8'!DU11)","v":{"v":7825815.438525557,"d":"$7,825,815"}},{"$f":"SUM('Trial 1'!DV11,'Trial 2'!DV11,'Trial 3'!DV11,'Trial 4'!DV11,'Trial 5'!DV11,'Trial 6'!DV11,'Trial 7'!DV11,'Trial 8'!DV11)","v":{"v":7818893.696812587,"d":"$7,818,894"}},{"$f":"SUM('Trial 1'!DW11,'Trial 2'!DW11,'Trial 3'!DW11,'Trial 4'!DW11,'Trial 5'!DW11,'Trial 6'!DW11,'Trial 7'!DW11,'Trial 8'!DW11)","v":{"v":7812445.749693982,"d":"$7,812,446"}},{"$f":"SUM('Trial 1'!DX11,'Trial 2'!DX11,'Trial 3'!DX11,'Trial 4'!DX11,'Trial 5'!DX11,'Trial 6'!DX11,'Trial 7'!DX11,'Trial 8'!DX11)","v":{"v":7805421.174757347,"d":"$7,805,421"}},{"$f":"SUM('Trial 1'!DY11,'Trial 2'!DY11,'Trial 3'!DY11,'Trial 4'!DY11,'Trial 5'!DY11,'Trial 6'!DY11,'Trial 7'!DY11,'Trial 8'!DY11)","v":{"v":7798216.260197585,"d":"$7,798,216"}},{"$f":"SUM('Trial 1'!DZ11,'Trial 2'!DZ11,'Trial 3'!DZ11,'Trial 4'!DZ11,'Trial 5'!DZ11,'Trial 6'!DZ11,'Trial 7'!DZ11,'Trial 8'!DZ11)","v":{"v":7791195.005256309,"d":"$7,791,195"}},{"$f":"SUM(DO127:DZ127)","v":{"v":93951808.76668997,"d":"$93,951,809"}},{"$f":"SUM('Trial 1'!EB11,'Trial 2'!EB11,'Trial 3'!EB11,'Trial 4'!EB11,'Trial 5'!EB11,'Trial 6'!EB11,'Trial 7'!EB11,'Trial 8'!EB11)","v":{"v":7782331.066382385,"d":"$7,782,331"}},{"$f":"SUM('Trial 1'!EC11,'Trial 2'!EC11,'Trial 3'!EC11,'Trial 4'!EC11,'Trial 5'!EC11,'Trial 6'!EC11,'Trial 7'!EC11,'Trial 8'!EC11)","v":{"v":7775937.84019436,"d":"$7,775,938"}},{"$f":"SUM('Trial 1'!ED11,'Trial 2'!ED11,'Trial 3'!ED11,'Trial 4'!ED11,'Trial 5'!ED11,'Trial 6'!ED11,'Trial 7'!ED11,'Trial 8'!ED11)","v":{"v":7767382.873940636,"d":"$7,767,383"}},{"$f":"SUM('Trial 1'!EE11,'Trial 2'!EE11,'Trial 3'!EE11,'Trial 4'!EE11,'Trial 5'!EE11,'Trial 6'!EE11,'Trial 7'!EE11,'Trial 8'!EE11)","v":{"v":7759569.188087211,"d":"$7,759,569"}},{"$f":"SUM('Trial 1'!EF11,'Trial 2'!EF11,'Trial 3'!EF11,'Trial 4'!EF11,'Trial 5'!EF11,'Trial 6'!EF11,'Trial 7'!EF11,'Trial 8'!EF11)","v":{"v":7752836.73413444,"d":"$7,752,837"}},{"$f":"SUM('Trial 1'!EG11,'Trial 2'!EG11,'Trial 3'!EG11,'Trial 4'!EG11,'Trial 5'!EG11,'Trial 6'!EG11,'Trial 7'!EG11,'Trial 8'!EG11)","v":{"v":7746350.302144866,"d":"$7,746,350"}},{"$f":"SUM('Trial 1'!EH11,'Trial 2'!EH11,'Trial 3'!EH11,'Trial 4'!EH11,'Trial 5'!EH11,'Trial 6'!EH11,'Trial 7'!EH11,'Trial 8'!EH11)","v":{"v":7738384.866763532,"d":"$7,738,385"}},{"$f":"SUM('Trial 1'!EI11,'Trial 2'!EI11,'Trial 3'!EI11,'Trial 4'!EI11,'Trial 5'!EI11,'Trial 6'!EI11,'Trial 7'!EI11,'Trial 8'!EI11)","v":{"v":7730948.399658093,"d":"$7,730,948"}},{"$f":"SUM('Trial 1'!EJ11,'Trial 2'!EJ11,'Trial 3'!EJ11,'Trial 4'!EJ11,'Trial 5'!EJ11,'Trial 6'!EJ11,'Trial 7'!EJ11,'Trial 8'!EJ11)","v":{"v":7721506.467941037,"d":"$7,721,506"}},{"$f":"SUM('Trial 1'!EK11,'Trial 2'!EK11,'Trial 3'!EK11,'Trial 4'!EK11,'Trial 5'!EK11,'Trial 6'!EK11,'Trial 7'!EK11,'Trial 8'!EK11)","v":{"v":7714237.154180629,"d":"$7,714,237"}},{"$f":"SUM('Trial 1'!EL11,'Trial 2'!EL11,'Trial 3'!EL11,'Trial 4'!EL11,'Trial 5'!EL11,'Trial 6'!EL11,'Trial 7'!EL11,'Trial 8'!EL11)","v":{"v":7708248.086445484,"d":"$7,708,248"}},{"$f":"SUM('Trial 1'!EM11,'Trial 2'!EM11,'Trial 3'!EM11,'Trial 4'!EM11,'Trial 5'!EM11,'Trial 6'!EM11,'Trial 7'!EM11,'Trial 8'!EM11)","v":{"v":7700798.910591886,"d":"$7,700,799"}},{"$f":"SUM(EB127:EM127)","v":{"v":92898531.89046456,"d":"$92,898,532"}}]
[{"$f":"Labels!B72","v":"Equilib Real Wage"}]
[]
[null,{"$f":"Inputs!B29*B8/Inputs!B27","v":{"v":6250,"d":"$6,250"}}]
[{"$f":"Labels!B9","v":"Capital"}]
[{"$f":"Labels!D96","v":"Trials"},{"$f":"ZZZ__FnCalls!F7","v":"Jan 2010"},{"$f":"ZZZ__FnCalls!F8","v":"Feb 2010"},{"$f":"ZZZ__FnCalls!F9","v":"Mar 2010"},{"$f":"ZZZ__FnCalls!F10","v":"Apr 2010"},{"$f":"ZZZ__FnCalls!F11","v":"May 2010"},{"$f":"ZZZ__FnCalls!F12","v":"Jun 2010"},{"$f":"ZZZ__FnCalls!F13","v":"Jul 2010"},{"$f":"ZZZ__FnCalls!F14","v":"Aug 2010"},{"$f":"ZZZ__FnCalls!F15","v":"Sep 2010"},{"$f":"ZZZ__FnCalls!F16","v":"Oct 2010"},{"$f":"ZZZ__FnCalls!F17","v":"Nov 2010"},{"$f":"ZZZ__FnCalls!F18","v":"Dec 2010"},{"$f":"ZZZ__FnCalls!H7","v":"2010"},{"$f":"ZZZ__FnCalls!F19","v":"Jan 2011"},{"$f":"ZZZ__FnCalls!F20","v":"Feb 2011"},{"$f":"ZZZ__FnCalls!F21","v":"Mar 2011"},{"$f":"ZZZ__FnCalls!F22","v":"Apr 2011"},{"$f":"ZZZ__FnCalls!F23","v":"May 2011"},{"$f":"ZZZ__FnCalls!F24","v":"Jun 2011"},{"$f":"ZZZ__FnCalls!F25","v":"Jul 2011"},{"$f":"ZZZ__FnCalls!F26","v":"Aug 2011"},{"$f":"ZZZ__FnCalls!F27","v":"Sep 2011"},{"$f":"ZZZ__FnCalls!F28","v":"Oct 2011"},{"$f":"ZZZ__FnCalls!F29","v":"Nov 2011"},{"$f":"ZZZ__FnCalls!F30","v":"Dec 2011"},{"$f":"ZZZ__FnCalls!H19","v":"2011"},{"$f":"ZZZ__FnCalls!F31","v":"Jan 2012"},{"$f":"ZZZ__FnCalls!F32","v":"Feb 2012"},{"$f":"ZZZ__FnCalls!F33","v":"Mar 2012"},{"$f":"ZZZ__FnCalls!F34","v":"Apr 2012"},{"$f":"ZZZ__FnCalls!F35","v":"May 2012"},{"$f":"ZZZ__FnCalls!F36","v":"Jun 2012"},{"$f":"ZZZ__FnCalls!F37","v":"Jul 2012"},{"$f":"ZZZ__FnCalls!F38","v":"Aug 2012"},{"$f":"ZZZ__FnCalls!F39","v":"Sep 2012"},{"$f":"ZZZ__FnCalls!F40","v":"Oct 2012"},{"$f":"ZZZ__FnCalls!F41","v":"Nov 2012"},{"$f":"ZZZ__FnCalls!F42","v":"Dec 2012"},{"$f":"ZZZ__FnCalls!H31","v":"2012"},{"$f":"ZZZ__FnCalls!F43","v":"Jan 2013"},{"$f":"ZZZ__FnCalls!F44","v":"Feb 2013"},{"$f":"ZZZ__FnCalls!F45","v":"Mar 2013"},{"$f":"ZZZ__FnCalls!F46","v":"Apr 2013"},{"$f":"ZZZ__FnCalls!F47","v":"May 2013"},{"$f":"ZZZ__FnCalls!F48","v":"Jun 2013"},{"$f":"ZZZ__FnCalls!F49","v":"Jul 2013"},{"$f":"ZZZ__FnCalls!F50","v":"Aug 2013"},{"$f":"ZZZ__FnCalls!F51","v":"Sep 2013"},{"$f":"ZZZ__FnCalls!F52","v":"Oct 2013"},{"$f":"ZZZ__FnCalls!F53","v":"Nov 2013"},{"$f":"ZZZ__FnCalls!F54","v":"Dec 2013"},{"$f":"ZZZ__FnCalls!H43","v":"2013"},{"$f":"ZZZ__FnCalls!F55","v":"Jan 2014"},{"$f":"ZZZ__FnCalls!F56","v":"Feb 2014"},{"$f":"ZZZ__FnCalls!F57","v":"Mar 2014"},{"$f":"ZZZ__FnCalls!F58","v":"Apr 2014"},{"$f":"ZZZ__FnCalls!F59","v":"May 2014"},{"$f":"ZZZ__FnCalls!F60","v":"Jun 2014"},{"$f":"ZZZ__FnCalls!F61","v":"Jul 2014"},{"$f":"ZZZ__FnCalls!F62","v":"Aug 2014"},{"$f":"ZZZ__FnCalls!F63","v":"Sep 2014"},{"$f":"ZZZ__FnCalls!F64","v":"Oct 2014"},{"$f":"ZZZ__FnCalls!F65","v":"Nov 2014"},{"$f":"ZZZ__FnCalls!F66","v":"Dec 2014"},{"$f":"ZZZ__FnCalls!H55","v":"2014"},{"$f":"ZZZ__FnCalls!F67","v":"Jan 2015"},{"$f":"ZZZ__FnCalls!F68","v":"Feb 2015"},{"$f":"ZZZ__FnCalls!F69","v":"Mar 2015"},{"$f":"ZZZ__FnCalls!F70","v":"Apr 2015"},{"$f":"ZZZ__FnCalls!F71","v":"May 2015"},{"$f":"ZZZ__FnCalls!F72","v":"Jun 2015"},{"$f":"ZZZ__FnCalls!F73","v":"Jul 2015"},{"$f":"ZZZ__FnCalls!F74","v":"Aug 2015"},{"$f":"ZZZ__FnCalls!F75","v":"Sep 2015"},{"$f":"ZZZ__FnCalls!F76","v":"Oct 2015"},{"$f":"ZZZ__FnCalls!F77","v":"Nov 2015"},{"$f":"ZZZ__FnCalls!F78","v":"Dec 2015"},{"$f":"ZZZ__FnCalls!H67","v":"2015"},{"$f":"ZZZ__FnCalls!F79","v":"Jan 2016"},{"$f":"ZZZ__FnCalls!F80","v":"Feb 2016"},{"$f":"ZZZ__FnCalls!F81","v":"Mar 2016"},{"$f":"ZZZ__FnCalls!F82","v":"Apr 2016"},{"$f":"ZZZ__FnCalls!F83","v":"May 2016"},{"$f":"ZZZ__FnCalls!F84","v":"Jun 2016"},{"$f":"ZZZ__FnCalls!F85","v":"Jul 2016"},{"$f":"ZZZ__FnCalls!F86","v":"Aug 2016"},{"$f":"ZZZ__FnCalls!F87","v":"Sep 2016"},{"$f":"ZZZ__FnCalls!F88","v":"Oct 2016"},{"$f":"ZZZ__FnCalls!F89","v":"Nov 2016"},{"$f":"ZZZ__FnCalls!F90","v":"Dec 2016"},{"$f":"ZZZ__FnCalls!H79","v":"2016"},{"$f":"ZZZ__FnCalls!F91","v":"Jan 2017"},{"$f":"ZZZ__FnCalls!F92","v":"Feb 2017"},{"$f":"ZZZ__FnCalls!F93","v":"Mar 2017"},{"$f":"ZZZ__FnCalls!F94","v":"Apr 2017"},{"$f":"ZZZ__FnCalls!F95","v":"May 2017"},{"$f":"ZZZ__FnCalls!F96","v":"Jun 2017"},{"$f":"ZZZ__FnCalls!F97","v":"Jul 2017"},{"$f":"ZZZ__FnCalls!F98","v":"Aug 2017"},{"$f":"ZZZ__FnCalls!F99","v":"Sep 2017"},{"$f":"ZZZ__FnCalls!F100","v":"Oct 2017"},{"$f":"ZZZ__FnCalls!F101","v":"Nov 2017"},{"$f":"ZZZ__FnCalls!F102","v":"Dec 2017"},{"$f":"ZZZ__FnCalls!H91","v":"2017"},{"$f":"ZZZ__FnCalls!F103","v":"Jan 2018"},{"$f":"ZZZ__FnCalls!F104","v":"Feb 2018"},{"$f":"ZZZ__FnCalls!F105","v":"Mar 2018"},{"$f":"ZZZ__FnCalls!F106","v":"Apr 2018"},{"$f":"ZZZ__FnCalls!F107","v":"May 2018"},{"$f":"ZZZ__FnCalls!F108","v":"Jun 2018"},{"$f":"ZZZ__FnCalls!F109","v":"Jul 2018"},{"$f":"ZZZ__FnCalls!F110","v":"Aug 2018"},{"$f":"ZZZ__FnCalls!F111","v":"Sep 2018"},{"$f":"ZZZ__FnCalls!F112","v":"Oct 2018"},{"$f":"ZZZ__FnCalls!F113","v":"Nov 2018"},{"$f":"ZZZ__FnCalls!F114","v":"Dec 2018"},{"$f":"ZZZ__FnCalls!H103","v":"2018"},{"$f":"ZZZ__FnCalls!F115","v":"Jan 2019"},{"$f":"ZZZ__FnCalls!F116","v":"Feb 2019"},{"$f":"ZZZ__FnCalls!F117","v":"Mar 2019"},{"$f":"ZZZ__FnCalls!F118","v":"Apr 2019"},{"$f":"ZZZ__FnCalls!F119","v":"May 2019"},{"$f":"ZZZ__FnCalls!F120","v":"Jun 2019"},{"$f":"ZZZ__FnCalls!F121","v":"Jul 2019"},{"$f":"ZZZ__FnCalls!F122","v":"Aug 2019"},{"$f":"ZZZ__FnCalls!F123","v":"Sep 2019"},{"$f":"ZZZ__FnCalls!F124","v":"Oct 2019"},{"$f":"ZZZ__FnCalls!F125","v":"Nov 2019"},{"$f":"ZZZ__FnCalls!F126","v":"Dec 2019"},{"$f":"ZZZ__FnCalls!H115","v":"2019"},{"$f":"ZZZ__FnCalls!F127","v":"Jan 2020"},{"$f":"ZZZ__FnCalls!F128","v":"Feb 2020"},{"$f":"ZZZ__FnCalls!F129","v":"Mar 2020"},{"$f":"ZZZ__FnCalls!F130","v":"Apr 2020"},{"$f":"ZZZ__FnCalls!F131","v":"May 2020"},{"$f":"ZZZ__FnCalls!F132","v":"Jun 2020"},{"$f":"ZZZ__FnCalls!F133","v":"Jul 2020"},{"$f":"ZZZ__FnCalls!F134","v":"Aug 2020"},{"$f":"ZZZ__FnCalls!F135","v":"Sep 2020"},{"$f":"ZZZ__FnCalls!F136","v":"Oct 2020"},{"$f":"ZZZ__FnCalls!F137","v":"Nov 2020"},{"$f":"ZZZ__FnCalls!F138","v":"Dec 2020"},{"$f":"ZZZ__FnCalls!H127","v":"2020"}]
[{"$f":"Labels!B96","v":"Trial 01"},{"$f":"'Trial 1'!B19","v":{"v":34645298.42192645,"d":"$34,645,298"}},{"$f":"'Trial 1'!C19","v":{"v":34645298.42192645,"d":"$34,645,298"}},{"$f":"'Trial 1'!D19","v":{"v":34644865.849718675,"d":"$34,644,866"}},{"$f":"'Trial 1'!E19","v":{"v":34644128.320763394,"d":"$34,644,128"}},{"$f":"'Trial 1'!F19","v":{"v":34643061.911736734,"d":"$34,643,062"}},{"$f":"'Trial 1'!G19","v":{"v":34641637.09234987,"d":"$34,641,637"}},{"$f":"'Trial 1'!H19","v":{"v":34639958.89404549,"d":"$34,639,959"}},{"$f":"'Trial 1'!I19","v":{"v":34637974.803368226,"d":"$34,637,975"}},{"$f":"'Trial 1'!J19","v":{"v":34635634.876478724,"d":"$34,635,635"}},{"$f":"'Trial 1'!K19","v":{"v":34632968.269905455,"d":"$34,632,968"}},{"$f":"'Trial 1'!L19","v":{"v":34630017.886411265,"d":"$34,630,018"}},{"$f":"'Trial 1'!M19","v":{"v":34626873.845023,"d":"$34,626,874"}},{"$f":"'Trial 1'!M19","v":{"v":34626873.845023,"d":"$34,626,874"}},{"$f":"'Trial 1'!O19","v":{"v":34623499.9376133,"d":"$34,623,500"}},{"$f":"'Trial 1'!P19","v":{"v":34619872.1386801,"d":"$34,619,872"}},{"$f":"'Trial 1'!Q19","v":{"v":34615934.16145604,"d":"$34,615,934"}},{"$f":"'Trial 1'!R19","v":{"v":34611729.17829118,"d":"$34,611,729"}},{"$f":"'Trial 1'!S19","v":{"v":34607140.043177396,"d":"$34,607,140"}},{"$f":"'Trial 1'!T19","v":{"v":34602330.65069124,"d":"$34,602,331"}},{"$f":"'Trial 1'!U19","v":{"v":34597170.266843595,"d":"$34,597,170"}},{"$f":"'Trial 1'!V19","v":{"v":34591707.781499624,"d":"$34,591,708"}},{"$f":"'Trial 1'!W19","v":{"v":34585922.9467949,"d":"$34,585,923"}},{"$f":"'Trial 1'!X19","v":{"v":34579822.804570556,"d":"$34,579,823"}},{"$f":"'Trial 1'!Y19","v":{"v":34573477.75377596,"d":"$34,573,478"}},{"$f":"'Trial 1'!Z19","v":{"v":34566911.62612825,"d":"$34,566,912"}},{"$f":"'Trial 1'!Z19","v":{"v":34566911.62612825,"d":"$34,566,912"}},{"$f":"'Trial 1'!AB19","v":{"v":34560222.38364415,"d":"$34,560,222"}},{"$f":"'Trial 1'!AC19","v":{"v":34553288.16196663,"d":"$34,553,288"}},{"$f":"'Trial 1'!AD19","v":{"v":34546166.46493668,"d":"$34,546,166"}},{"$f":"'Trial 1'!AE19","v":{"v":34538970.90969978,"d":"$34,538,971"}},{"$f":"'Trial 1'!AF19","v":{"v":34531551.00037324,"d":"$34,531,551"}},{"$f":"'Trial 1'!AG19","v":{"v":34523889.14038574,"d":"$34,523,889"}},{"$f":"'Trial 1'!AH19","v":{"v":34516050.02346483,"d":"$34,516,050"}},{"$f":"'Trial 1'!AI19","v":{"v":34508031.67883035,"d":"$34,508,032"}},{"$f":"'Trial 1'!AJ19","v":{"v":34499878.3244191,"d":"$34,499,878"}},{"$f":"'Trial 1'!AK19","v":{"v":34491537.83899039,"d":"$34,491,538"}},{"$f":"'Trial 1'!AL19","v":{"v":34483134.3520214,"d":"$34,483,134"}},{"$f":"'Trial 1'!AM19","v":{"v":34474595.37606332,"d":"$34,474,595"}},{"$f":"'Trial 1'!AM19","v":{"v":34474595.37606332,"d":"$34,474,595"}},{"$f":"'Trial 1'!AO19","v":{"v":34465886.40415917,"d":"$34,465,886"}},{"$f":"'Trial 1'!AP19","v":{"v":34456969.79243559,"d":"$34,456,970"}},{"$f":"'Trial 1'!AQ19","v":{"v":34447851.86008202,"d":"$34,447,852"}},{"$f":"'Trial 1'!AR19","v":{"v":34438714.45998028,"d":"$34,438,714"}},{"$f":"'Trial 1'!AS19","v":{"v":34429368.90475603,"d":"$34,429,369"}},{"$f":"'Trial 1'!AT19","v":{"v":34419951.25888646,"d":"$34,419,951"}},{"$f":"'Trial 1'!AU19","v":{"v":34410420.011213064,"d":"$34,410,420"}},{"$f":"'Trial 1'!AV19","v":{"v":34400817.211123355,"d":"$34,400,817"}},{"$f":"'Trial 1'!AW19","v":{"v":34391085.666554816,"d":"$34,391,086"}},{"$f":"'Trial 1'!AX19","v":{"v":34381193.317811236,"d":"$34,381,193"}},{"$f":"'Trial 1'!AY19","v":{"v":34371184.75303354,"d":"$34,371,185"}},{"$f":"'Trial 1'!AZ19","v":{"v":34361146.61357753,"d":"$34,361,147"}},{"$f":"'Trial 1'!AZ19","v":{"v":34361146.61357753,"d":"$34,361,147"}},{"$f":"'Trial 1'!BB19","v":{"v":34351028.11328618,"d":"$34,351,028"}},{"$f":"'Trial 1'!BC19","v":{"v":34340736.53263246,"d":"$34,340,737"}},{"$f":"'Trial 1'!BD19","v":{"v":34330270.62984689,"d":"$34,330,271"}},{"$f":"'Trial 1'!BE19","v":{"v":34319720.35903598,"d":"$34,319,720"}},{"$f":"'Trial 1'!BF19","v":{"v":34309043.26406145,"d":"$34,309,043"}},{"$f":"'Trial 1'!BG19","v":{"v":34298337.39432053,"d":"$34,298,337"}},{"$f":"'Trial 1'!BH19","v":{"v":34287566.11064961,"d":"$34,287,566"}},{"$f":"'Trial 1'!BI19","v":{"v":34276727.75335745,"d":"$34,276,728"}},{"$f":"'Trial 1'!BJ19","v":{"v":34265839.6834066,"d":"$34,265,840"}},{"$f":"'Trial 1'!BK19","v":{"v":34254848.50089695,"d":"$34,254,849"}},{"$f":"'Trial 1'!BL19","v":{"v":34243754.06064523,"d":"$34,243,754"}},{"$f":"'Trial 1'!BM19","v":{"v":34232495.45165257,"d":"$34,232,495"}},{"$f":"'Trial 1'!BM19","v":{"v":34232495.45165257,"d":"$34,232,495"}},{"$f":"'Trial 1'!BO19","v":{"v":34221182.03087545,"d":"$34,221,182"}},{"$f":"'Trial 1'!BP19","v":{"v":34209737.08868378,"d":"$34,209,737"}},{"$f":"'Trial 1'!BQ19","v":{"v":34198255.77672469,"d":"$34,198,256"}},{"$f":"'Trial 1'!BR19","v":{"v":34186667.99650359,"d":"$34,186,668"}},{"$f":"'Trial 1'!BS19","v":{"v":34175115.04229462,"d":"$34,175,115"}},{"$f":"'Trial 1'!BT19","v":{"v":34163537.503908806,"d":"$34,163,538"}},{"$f":"'Trial 1'!BU19","v":{"v":34151901.5917997,"d":"$34,151,902"}},{"$f":"'Trial 1'!BV19","v":{"v":34140114.429524854,"d":"$34,140,114"}},{"$f":"'Trial 1'!BW19","v":{"v":34128205.3668572,"d":"$34,128,205"}},{"$f":"'Trial 1'!BX19","v":{"v":34116219.05780982,"d":"$34,116,219"}},{"$f":"'Trial 1'!BY19","v":{"v":34104235.76523741,"d":"$34,104,236"}},{"$f":"'Trial 1'!BZ19","v":{"v":34092134.738789566,"d":"$34,092,135"}},{"$f":"'Trial 1'!BZ19","v":{"v":34092134.738789566,"d":"$34,092,135"}},{"$f":"'Trial 1'!CB19","v":{"v":34079897.36232508,"d":"$34,079,897"}},{"$f":"'Trial 1'!CC19","v":{"v":34067675.29181145,"d":"$34,067,675"}},{"$f":"'Trial 1'!CD19","v":{"v":34055390.80667331,"d":"$34,055,391"}},{"$f":"'Trial 1'!CE19","v":{"v":34042979.23667118,"d":"$34,042,979"}},{"$f":"'Trial 1'!CF19","v":{"v":34030597.993712656,"d":"$34,030,598"}},{"$f":"'Trial 1'!CG19","v":{"v":34018111.635458164,"d":"$34,018,112"}},{"$f":"'Trial 1'!CH19","v":{"v":34005578.7655572,"d":"$34,005,579"}},{"$f":"'Trial 1'!CI19","v":{"v":33993028.95291159,"d":"$33,993,029"}},{"$f":"'Trial 1'!CJ19","v":{"v":33980432.54416315,"d":"$33,980,433"}},{"$f":"'Trial 1'!CK19","v":{"v":33967812.19060751,"d":"$33,967,812"}},{"$f":"'Trial 1'!CL19","v":{"v":33955155.69142768,"d":"$33,955,156"}},{"$f":"'Trial 1'!CM19","v":{"v":33942370.79927291,"d":"$33,942,371"}},{"$f":"'Trial 1'!CM19","v":{"v":33942370.79927291,"d":"$33,942,371"}},{"$f":"'Trial 1'!CO19","v":{"v":33929605.49720584,"d":"$33,929,605"}},{"$f":"'Trial 1'!CP19","v":{"v":33916807.41959252,"d":"$33,916,807"}},{"$f":"'Trial 1'!CQ19","v":{"v":33903920.908229575,"d":"$33,903,921"}},{"$f":"'Trial 1'!CR19","v":{"v":33891056.60891193,"d":"$33,891,057"}},{"$f":"'Trial 1'!CS19","v":{"v":33878050.05359827,"d":"$33,878,050"}},{"$f":"'Trial 1'!CT19","v":{"v":33865008.66648693,"d":"$33,865,009"}},{"$f":"'Trial 1'!CU19","v":{"v":33851845.46172051,"d":"$33,851,845"}},{"$f":"'Trial 1'!CV19","v":{"v":33838676.806705035,"d":"$33,838,677"}},{"$f":"'Trial 1'!CW19","v":{"v":33825410.98022643,"d":"$33,825,411"}},{"$f":"'Trial 1'!CX19","v":{"v":33812138.99994165,"d":"$33,812,139"}},{"$f":"'Trial 1'!CY19","v":{"v":33798758.835908726,"d":"$33,798,759"}},{"$f":"'Trial 1'!CZ19","v":{"v":33785428.039105706,"d":"$33,785,428"}},{"$f":"'Trial 1'!CZ19","v":{"v":33785428.039105706,"d":"$33,785,428"}},{"$f":"'Trial 1'!DB19","v":{"v":33772159.93171189,"d":"$33,772,160"}},{"$f":"'Trial 1'!DC19","v":{"v":33758780.83501526,"d":"$33,758,781"}},{"$f":"'Trial 1'!DD19","v":{"v":33745388.76154327,"d":"$33,745,389"}},{"$f":"'Trial 1'!DE19","v":{"v":33732020.042529896,"d":"$33,732,020"}},{"$f":"'Trial 1'!DF19","v":{"v":33718636.040710755,"d":"$33,718,636"}},{"$f":"'Trial 1'!DG19","v":{"v":33705284.690916985,"d":"$33,705,285"}},{"$f":"'Trial 1'!DH19","v":{"v":33691960.82348939,"d":"$33,691,961"}},{"$f":"'Trial 1'!DI19","v":{"v":33678591.83784045,"d":"$33,678,592"}},{"$f":"'Trial 1'!DJ19","v":{"v":33665234.54186431,"d":"$33,665,235"}},{"$f":"'Trial 1'!DK19","v":{"v":33651802.82951019,"d":"$33,651,803"}},{"$f":"'Trial 1'!DL19","v":{"v":33638386.34697967,"d":"$33,638,386"}},{"$f":"'Trial 1'!DM19","v":{"v":33625042.80415409,"d":"$33,625,043"}},{"$f":"'Trial 1'!DM19","v":{"v":33625042.80415409,"d":"$33,625,043"}},{"$f":"'Trial 1'!DO19","v":{"v":33611610.6240359,"d":"$33,611,611"}},{"$f":"'Trial 1'!DP19","v":{"v":33598176.476769604,"d":"$33,598,176"}},{"$f":"'Trial 1'!DQ19","v":{"v":33584813.03604329,"d":"$33,584,813"}},{"$f":"'Trial 1'!DR19","v":{"v":33571403.53551629,"d":"$33,571,404"}},{"$f":"'Trial 1'!DS19","v":{"v":33558003.97634796,"d":"$33,558,004"}},{"$f":"'Trial 1'!DT19","v":{"v":33544599.789004844,"d":"$33,544,600"}},{"$f":"'Trial 1'!DU19","v":{"v":33531161.51602903,"d":"$33,531,162"}},{"$f":"'Trial 1'!DV19","v":{"v":33517685.718886483,"d":"$33,517,686"}},{"$f":"'Trial 1'!DW19","v":{"v":33504220.53080562,"d":"$33,504,221"}},{"$f":"'Trial 1'!DX19","v":{"v":33490671.987536002,"d":"$33,490,672"}},{"$f":"'Trial 1'!DY19","v":{"v":33477063.622331347,"d":"$33,477,064"}},{"$f":"'Trial 1'!DZ19","v":{"v":33463508.254111268,"d":"$33,463,508"}},{"$f":"'Trial 1'!DZ19","v":{"v":33463508.254111268,"d":"$33,463,508"}},{"$f":"'Trial 1'!EB19","v":{"v":33449984.249369193,"d":"$33,449,984"}},{"$f":"'Trial 1'!EC19","v":{"v":33436402.990942005,"d":"$33,436,403"}},{"$f":"'Trial 1'!ED19","v":{"v":33422834.3438852,"d":"$33,422,834"}},{"$f":"'Trial 1'!EE19","v":{"v":33409249.18805819,"d":"$33,409,249"}},{"$f":"'Trial 1'!EF19","v":{"v":33395649.07477508,"d":"$33,395,649"}},{"$f":"'Trial 1'!EG19","v":{"v":33381952.235713966,"d":"$33,381,952"}},{"$f":"'Trial 1'!EH19","v":{"v":33368236.548001178,"d":"$33,368,237"}},{"$f":"'Trial 1'!EI19","v":{"v":33354489.263697155,"d":"$33,354,489"}},{"$f":"'Trial 1'!EJ19","v":{"v":33340723.078065388,"d":"$33,340,723"}},{"$f":"'Trial 1'!EK19","v":{"v":33326891.994589314,"d":"$33,326,892"}},{"$f":"'Trial 1'!EL19","v":{"v":33313069.720182396,"d":"$33,313,070"}},{"$f":"'Trial 1'!EM19","v":{"v":33299226.01425095,"d":"$33,299,226"}},{"$f":"'Trial 1'!EM19","v":{"v":33299226.01425095,"d":"$33,299,226"}}]
[{"$f":"Labels!B97","v":"Trial 02"},{"$f":"'Trial 2'!B19","v":{"v":34645298.42192645,"d":"$34,645,298"}},{"$f":"'Trial 2'!C19","v":{"v":34645298.42192645,"d":"$34,645,298"}},{"$f":"'Trial 2'!D19","v":{"v":34644886.820402496,"d":"$34,644,887"}},{"$f":"'Trial 2'!E19","v":{"v":34644020.030042544,"d":"$34,644,020"}},{"$f":"'Trial 2'!F19","v":{"v":34642805.89127631,"d":"$34,642,806"}},{"$f":"'Trial 2'!G19","v":{"v":34641354.68723803,"d":"$34,641,355"}},{"$f":"'Trial 2'!H19","v":{"v":34639588.93161335,"d":"$34,639,589"}},{"$f":"'Trial 2'!I19","v":{"v":34637450.04700224,"d":"$34,637,450"}},{"$f":"'Trial 2'!J19","v":{"v":34634983.715943605,"d":"$34,634,984"}},{"$f":"'Trial 2'!K19","v":{"v":34632128.89891918,"d":"$34,632,129"}},{"$f":"'Trial 2'!L19","v":{"v":34628993.76063592,"d":"$34,628,994"}},{"$f":"'Trial 2'!M19","v":{"v":34625569.78998806,"d":"$34,625,570"}},{"$f":"'Trial 2'!M19","v":{"v":34625569.78998806,"d":"$34,625,570"}},{"$f":"'Trial 2'!O19","v":{"v":34621784.581354134,"d":"$34,621,785"}},{"$f":"'Trial 2'!P19","v":{"v":34617776.414774194,"d":"$34,617,776"}},{"$f":"'Trial 2'!Q19","v":{"v":34613455.5530472,"d":"$34,613,456"}},{"$f":"'Trial 2'!R19","v":{"v":34608923.39410404,"d":"$34,608,923"}},{"$f":"'Trial 2'!S19","v":{"v":34604193.26571331,"d":"$34,604,193"}},{"$f":"'Trial 2'!T19","v":{"v":34599192.89583213,"d":"$34,599,193"}},{"$f":"'Trial 2'!U19","v":{"v":34593931.41070463,"d":"$34,593,931"}},{"$f":"'Trial 2'!V19","v":{"v":34588415.63684191,"d":"$34,588,416"}},{"$f":"'Trial 2'!W19","v":{"v":34582591.96672742,"d":"$34,582,592"}},{"$f":"'Trial 2'!X19","v":{"v":34576493.666003615,"d":"$34,576,494"}},{"$f":"'Trial 2'!Y19","v":{"v":34570145.29412748,"d":"$34,570,145"}},{"$f":"'Trial 2'!Z19","v":{"v":34563540.691963054,"d":"$34,563,541"}},{"$f":"'Trial 2'!Z19","v":{"v":34563540.691963054,"d":"$34,563,541"}},{"$f":"'Trial 2'!AB19","v":{"v":34556616.29792496,"d":"$34,556,616"}},{"$f":"'Trial 2'!AC19","v":{"v":34549528.883943304,"d":"$34,549,529"}},{"$f":"'Trial 2'!AD19","v":{"v":34542249.76569961,"d":"$34,542,250"}},{"$f":"'Trial 2'!AE19","v":{"v":34534789.999342754,"d":"$34,534,790"}},{"$f":"'Trial 2'!AF19","v":{"v":34527149.23985665,"d":"$34,527,149"}},{"$f":"'Trial 2'!AG19","v":{"v":34519446.16008093,"d":"$34,519,446"}},{"$f":"'Trial 2'!AH19","v":{"v":34511569.15395943,"d":"$34,511,569"}},{"$f":"'Trial 2'!AI19","v":{"v":34503495.13381653,"d":"$34,503,495"}},{"$f":"'Trial 2'!AJ19","v":{"v":34495289.14438239,"d":"$34,495,289"}},{"$f":"'Trial 2'!AK19","v":{"v":34486833.08827815,"d":"$34,486,833"}},{"$f":"'Trial 2'!AL19","v":{"v":34478230.04746967,"d":"$34,478,230"}},{"$f":"'Trial 2'!AM19","v":{"v":34469521.292374276,"d":"$34,469,521"}},{"$f":"'Trial 2'!AM19","v":{"v":34469521.292374276,"d":"$34,469,521"}},{"$f":"'Trial 2'!AO19","v":{"v":34460756.844286494,"d":"$34,460,757"}},{"$f":"'Trial 2'!AP19","v":{"v":34451812.83528471,"d":"$34,451,813"}},{"$f":"'Trial 2'!AQ19","v":{"v":34442716.15267817,"d":"$34,442,716"}},{"$f":"'Trial 2'!AR19","v":{"v":34433516.924457125,"d":"$34,433,517"}},{"$f":"'Trial 2'!AS19","v":{"v":34424213.07670647,"d":"$34,424,213"}},{"$f":"'Trial 2'!AT19","v":{"v":34414747.76763271,"d":"$34,414,748"}},{"$f":"'Trial 2'!AU19","v":{"v":34405186.217432104,"d":"$34,405,186"}},{"$f":"'Trial 2'!AV19","v":{"v":34395529.45139277,"d":"$34,395,529"}},{"$f":"'Trial 2'!AW19","v":{"v":34385763.49405858,"d":"$34,385,763"}},{"$f":"'Trial 2'!AX19","v":{"v":34375898.384580515,"d":"$34,375,898"}},{"$f":"'Trial 2'!AY19","v":{"v":34365811.85186926,"d":"$34,365,812"}},{"$f":"'Trial 2'!AZ19","v":{"v":34355598.216532916,"d":"$34,355,598"}},{"$f":"'Trial 2'!AZ19","v":{"v":34355598.216532916,"d":"$34,355,598"}},{"$f":"'Trial 2'!BB19","v":{"v":34345351.50262282,"d":"$34,345,352"}},{"$f":"'Trial 2'!BC19","v":{"v":34334987.74362981,"d":"$34,334,988"}},{"$f":"'Trial 2'!BD19","v":{"v":34324478.2977263,"d":"$34,324,478"}},{"$f":"'Trial 2'!BE19","v":{"v":34313878.11033662,"d":"$34,313,878"}},{"$f":"'Trial 2'!BF19","v":{"v":34303257.20452141,"d":"$34,303,257"}},{"$f":"'Trial 2'!BG19","v":{"v":34292533.02221125,"d":"$34,292,533"}},{"$f":"'Trial 2'!BH19","v":{"v":34281772.615798876,"d":"$34,281,773"}},{"$f":"'Trial 2'!BI19","v":{"v":34270858.687661715,"d":"$34,270,859"}},{"$f":"'Trial 2'!BJ19","v":{"v":34259818.10133787,"d":"$34,259,818"}},{"$f":"'Trial 2'!BK19","v":{"v":34248602.08114882,"d":"$34,248,602"}},{"$f":"'Trial 2'!BL19","v":{"v":34237359.66083739,"d":"$34,237,360"}},{"$f":"'Trial 2'!BM19","v":{"v":34226011.06228466,"d":"$34,226,011"}},{"$f":"'Trial 2'!BM19","v":{"v":34226011.06228466,"d":"$34,226,011"}},{"$f":"'Trial 2'!BO19","v":{"v":34214603.31746347,"d":"$34,214,603"}},{"$f":"'Trial 2'!BP19","v":{"v":34203022.30286643,"d":"$34,203,022"}},{"$f":"'Trial 2'!BQ19","v":{"v":34191258.804323934,"d":"$34,191,259"}},{"$f":"'Trial 2'!BR19","v":{"v":34179362.54124937,"d":"$34,179,363"}},{"$f":"'Trial 2'!BS19","v":{"v":34167441.77391947,"d":"$34,167,442"}},{"$f":"'Trial 2'!BT19","v":{"v":34155528.86208358,"d":"$34,155,529"}},{"$f":"'Trial 2'!BU19","v":{"v":34143465.14649202,"d":"$34,143,465"}},{"$f":"'Trial 2'!BV19","v":{"v":34131433.46060956,"d":"$34,131,433"}},{"$f":"'Trial 2'!BW19","v":{"v":34119300.62070215,"d":"$34,119,301"}},{"$f":"'Trial 2'!BX19","v":{"v":34107151.32346411,"d":"$34,107,151"}},{"$f":"'Trial 2'!BY19","v":{"v":34094955.04282127,"d":"$34,094,955"}},{"$f":"'Trial 2'!BZ19","v":{"v":34082603.102874,"d":"$34,082,603"}},{"$f":"'Trial 2'!BZ19","v":{"v":34082603.102874,"d":"$34,082,603"}},{"$f":"'Trial 2'!CB19","v":{"v":34070311.86207248,"d":"$34,070,312"}},{"$f":"'Trial 2'!CC19","v":{"v":34057987.0328357,"d":"$34,057,987"}},{"$f":"'Trial 2'!CD19","v":{"v":34045655.76843784,"d":"$34,045,656"}},{"$f":"'Trial 2'!CE19","v":{"v":34033232.56523791,"d":"$34,033,233"}},{"$f":"'Trial 2'!CF19","v":{"v":34020750.84453536,"d":"$34,020,751"}},{"$f":"'Trial 2'!CG19","v":{"v":34008292.991460405,"d":"$34,008,293"}},{"$f":"'Trial 2'!CH19","v":{"v":33995820.02945201,"d":"$33,995,820"}},{"$f":"'Trial 2'!CI19","v":{"v":33983361.17956787,"d":"$33,983,361"}},{"$f":"'Trial 2'!CJ19","v":{"v":33970860.932273224,"d":"$33,970,861"}},{"$f":"'Trial 2'!CK19","v":{"v":33958392.398579136,"d":"$33,958,392"}},{"$f":"'Trial 2'!CL19","v":{"v":33945806.51197249,"d":"$33,945,807"}},{"$f":"'Trial 2'!CM19","v":{"v":33933170.6833458,"d":"$33,933,171"}},{"$f":"'Trial 2'!CM19","v":{"v":33933170.6833458,"d":"$33,933,171"}},{"$f":"'Trial 2'!CO19","v":{"v":33920403.75022959,"d":"$33,920,404"}},{"$f":"'Trial 2'!CP19","v":{"v":33907587.64482646,"d":"$33,907,588"}},{"$f":"'Trial 2'!CQ19","v":{"v":33894694.61294612,"d":"$33,894,695"}},{"$f":"'Trial 2'!CR19","v":{"v":33881769.93484267,"d":"$33,881,770"}},{"$f":"'Trial 2'!CS19","v":{"v":33868840.025556505,"d":"$33,868,840"}},{"$f":"'Trial 2'!CT19","v":{"v":33855852.76621499,"d":"$33,855,853"}},{"$f":"'Trial 2'!CU19","v":{"v":33842872.39732484,"d":"$33,842,872"}},{"$f":"'Trial 2'!CV19","v":{"v":33829797.81006084,"d":"$33,829,798"}},{"$f":"'Trial 2'!CW19","v":{"v":33816766.540230244,"d":"$33,816,767"}},{"$f":"'Trial 2'!CX19","v":{"v":33803692.360121585,"d":"$33,803,692"}},{"$f":"'Trial 2'!CY19","v":{"v":33790660.94082244,"d":"$33,790,661"}},{"$f":"'Trial 2'!CZ19","v":{"v":33777488.4041738,"d":"$33,777,488"}},{"$f":"'Trial 2'!CZ19","v":{"v":33777488.4041738,"d":"$33,777,488"}},{"$f":"'Trial 2'!DB19","v":{"v":33764347.963399254,"d":"$33,764,348"}},{"$f":"'Trial 2'!DC19","v":{"v":33751165.88036107,"d":"$33,751,166"}},{"$f":"'Trial 2'!DD19","v":{"v":33737937.20299128,"d":"$33,737,937"}},{"$f":"'Trial 2'!DE19","v":{"v":33724720.41911028,"d":"$33,724,720"}},{"$f":"'Trial 2'!DF19","v":{"v":33711453.701257505,"d":"$33,711,454"}},{"$f":"'Trial 2'!DG19","v":{"v":33698204.298138164,"d":"$33,698,204"}},{"$f":"'Trial 2'!DH19","v":{"v":33684991.63691256,"d":"$33,684,992"}},{"$f":"'Trial 2'!DI19","v":{"v":33671755.077963084,"d":"$33,671,755"}},{"$f":"'Trial 2'!DJ19","v":{"v":33658506.48366066,"d":"$33,658,506"}},{"$f":"'Trial 2'!DK19","v":{"v":33645254.46044773,"d":"$33,645,254"}},{"$f":"'Trial 2'!DL19","v":{"v":33632069.05103453,"d":"$33,632,069"}},{"$f":"'Trial 2'!DM19","v":{"v":33618800.49654692,"d":"$33,618,800"}},{"$f":"'Trial 2'!DM19","v":{"v":33618800.49654692,"d":"$33,618,800"}},{"$f":"'Trial 2'!DO19","v":{"v":33605400.97125445,"d":"$33,605,401"}},{"$f":"'Trial 2'!DP19","v":{"v":33591914.148244224,"d":"$33,591,914"}},{"$f":"'Trial 2'!DQ19","v":{"v":33578471.42857693,"d":"$33,578,471"}},{"$f":"'Trial 2'!DR19","v":{"v":33564925.83145407,"d":"$33,564,926"}},{"$f":"'Trial 2'!DS19","v":{"v":33551375.43627088,"d":"$33,551,375"}},{"$f":"'Trial 2'!DT19","v":{"v":33537794.56499663,"d":"$33,537,795"}},{"$f":"'Trial 2'!DU19","v":{"v":33524148.944679804,"d":"$33,524,149"}},{"$f":"'Trial 2'!DV19","v":{"v":33510512.934117816,"d":"$33,510,513"}},{"$f":"'Trial 2'!DW19","v":{"v":33496917.527275756,"d":"$33,496,918"}},{"$f":"'Trial 2'!DX19","v":{"v":33483351.47632296,"d":"$33,483,351"}},{"$f":"'Trial 2'!DY19","v":{"v":33469704.989389166,"d":"$33,469,705"}},{"$f":"'Trial 2'!DZ19","v":{"v":33456099.3064572,"d":"$33,456,099"}},{"$f":"'Trial 2'!DZ19","v":{"v":33456099.3064572,"d":"$33,456,099"}},{"$f":"'Trial 2'!EB19","v":{"v":33442480.17446338,"d":"$33,442,480"}},{"$f":"'Trial 2'!EC19","v":{"v":33428780.094502136,"d":"$33,428,780"}},{"$f":"'Trial 2'!ED19","v":{"v":33415132.472768907,"d":"$33,415,132"}},{"$f":"'Trial 2'!EE19","v":{"v":33401508.372194275,"d":"$33,401,508"}},{"$f":"'Trial 2'!EF19","v":{"v":33387773.6639923,"d":"$33,387,774"}},{"$f":"'Trial 2'!EG19","v":{"v":33374026.431879845,"d":"$33,374,026"}},{"$f":"'Trial 2'!EH19","v":{"v":33360365.66521049,"d":"$33,360,366"}},{"$f":"'Trial 2'!EI19","v":{"v":33346633.20283141,"d":"$33,346,633"}},{"$f":"'Trial 2'!EJ19","v":{"v":33332850.539811347,"d":"$33,332,851"}},{"$f":"'Trial 2'!EK19","v":{"v":33318998.914300554,"d":"$33,318,999"}},{"$f":"'Trial 2'!EL19","v":{"v":33305171.474247996,"d":"$33,305,171"}},{"$f":"'Trial 2'!EM19","v":{"v":33291310.365795463,"d":"$33,291,310"}},{"$f":"'Trial 2'!EM19","v":{"v":33291310.365795463,"d":"$33,291,310"}}]
[{"$f":"Labels!B98","v":"Trial 03"},{"$f":"'Trial 3'!B19","v":{"v":34645298.42192645,"d":"$34,645,298"}},{"$f":"'Trial 3'!C19","v":{"v":34645298.42192645,"d":"$34,645,298"}},{"$f":"'Trial 3'!D19","v":{"v":34644805.73739387,"d":"$34,644,806"}},{"$f":"'Trial 3'!E19","v":{"v":34643955.30794609,"d":"$34,643,955"}},{"$f":"'Trial 3'!F19","v":{"v":34642681.52305896,"d":"$34,642,682"}},{"$f":"'Trial 3'!G19","v":{"v":34641139.83249677,"d":"$34,641,140"}},{"$f":"'Trial 3'!H19","v":{"v":34639279.9751628,"d":"$34,639,280"}},{"$f":"'Trial 3'!I19","v":{"v":34637161.88560859,"d":"$34,637,162"}},{"$f":"'Trial 3'!J19","v":{"v":34634689.337468535,"d":"$34,634,689"}},{"$f":"'Trial 3'!K19","v":{"v":34631949.91715913,"d":"$34,631,950"}},{"$f":"'Trial 3'!L19","v":{"v":34628828.89011245,"d":"$34,628,829"}},{"$f":"'Trial 3'!M19","v":{"v":34625423.135838136,"d":"$34,625,423"}},{"$f":"'Trial 3'!M19","v":{"v":34625423.135838136,"d":"$34,625,423"}},{"$f":"'Trial 3'!O19","v":{"v":34621782.318126075,"d":"$34,621,782"}},{"$f":"'Trial 3'!P19","v":{"v":34617806.05478742,"d":"$34,617,806"}},{"$f":"'Trial 3'!Q19","v":{"v":34613569.78907031,"d":"$34,613,570"}},{"$f":"'Trial 3'!R19","v":{"v":34609035.778869264,"d":"$34,609,036"}},{"$f":"'Trial 3'!S19","v":{"v":34604317.73386414,"d":"$34,604,318"}},{"$f":"'Trial 3'!T19","v":{"v":34599388.05436687,"d":"$34,599,388"}},{"$f":"'Trial 3'!U19","v":{"v":34594206.70369679,"d":"$34,594,207"}},{"$f":"'Trial 3'!V19","v":{"v":34588762.32261429,"d":"$34,588,762"}},{"$f":"'Trial 3'!W19","v":{"v":34582960.59264858,"d":"$34,582,961"}},{"$f":"'Trial 3'!X19","v":{"v":34576879.0933197,"d":"$34,576,879"}},{"$f":"'Trial 3'!Y19","v":{"v":34570601.81374257,"d":"$34,570,602"}},{"$f":"'Trial 3'!Z19","v":{"v":34564118.09944621,"d":"$34,564,118"}},{"$f":"'Trial 3'!Z19","v":{"v":34564118.09944621,"d":"$34,564,118"}},{"$f":"'Trial 3'!AB19","v":{"v":34557397.50945321,"d":"$34,557,398"}},{"$f":"'Trial 3'!AC19","v":{"v":34550364.37116708,"d":"$34,550,364"}},{"$f":"'Trial 3'!AD19","v":{"v":34543214.28737804,"d":"$34,543,214"}},{"$f":"'Trial 3'!AE19","v":{"v":34535833.626316495,"d":"$34,535,834"}},{"$f":"'Trial 3'!AF19","v":{"v":34528202.28528604,"d":"$34,528,202"}},{"$f":"'Trial 3'!AG19","v":{"v":34520444.94131113,"d":"$34,520,445"}},{"$f":"'Trial 3'!AH19","v":{"v":34512402.130486816,"d":"$34,512,402"}},{"$f":"'Trial 3'!AI19","v":{"v":34504238.9259714,"d":"$34,504,239"}},{"$f":"'Trial 3'!AJ19","v":{"v":34495924.81305543,"d":"$34,495,925"}},{"$f":"'Trial 3'!AK19","v":{"v":34487403.4153017,"d":"$34,487,403"}},{"$f":"'Trial 3'!AL19","v":{"v":34478765.14991431,"d":"$34,478,765"}},{"$f":"'Trial 3'!AM19","v":{"v":34469988.13174915,"d":"$34,469,988"}},{"$f":"'Trial 3'!AM19","v":{"v":34469988.13174915,"d":"$34,469,988"}},{"$f":"'Trial 3'!AO19","v":{"v":34461039.65985797,"d":"$34,461,040"}},{"$f":"'Trial 3'!AP19","v":{"v":34451918.84963355,"d":"$34,451,919"}},{"$f":"'Trial 3'!AQ19","v":{"v":34442716.985519715,"d":"$34,442,717"}},{"$f":"'Trial 3'!AR19","v":{"v":34433449.4610358,"d":"$34,433,449"}},{"$f":"'Trial 3'!AS19","v":{"v":34423959.5092742,"d":"$34,423,960"}},{"$f":"'Trial 3'!AT19","v":{"v":34414325.19513758,"d":"$34,414,325"}},{"$f":"'Trial 3'!AU19","v":{"v":34404618.13699534,"d":"$34,404,618"}},{"$f":"'Trial 3'!AV19","v":{"v":34394759.60648176,"d":"$34,394,760"}},{"$f":"'Trial 3'!AW19","v":{"v":34384726.484851144,"d":"$34,384,726"}},{"$f":"'Trial 3'!AX19","v":{"v":34374604.2846961,"d":"$34,374,604"}},{"$f":"'Trial 3'!AY19","v":{"v":34364311.28883039,"d":"$34,364,311"}},{"$f":"'Trial 3'!AZ19","v":{"v":34353983.2282268,"d":"$34,353,983"}},{"$f":"'Trial 3'!AZ19","v":{"v":34353983.2282268,"d":"$34,353,983"}},{"$f":"'Trial 3'!BB19","v":{"v":34343490.51845632,"d":"$34,343,491"}},{"$f":"'Trial 3'!BC19","v":{"v":34332807.0307613,"d":"$34,332,807"}},{"$f":"'Trial 3'!BD19","v":{"v":34322007.84153956,"d":"$34,322,008"}},{"$f":"'Trial 3'!BE19","v":{"v":34311025.4093149,"d":"$34,311,025"}},{"$f":"'Trial 3'!BF19","v":{"v":34300008.91087663,"d":"$34,300,009"}},{"$f":"'Trial 3'!BG19","v":{"v":34288796.888727345,"d":"$34,288,797"}},{"$f":"'Trial 3'!BH19","v":{"v":34277528.040568694,"d":"$34,277,528"}},{"$f":"'Trial 3'!BI19","v":{"v":34266069.56439996,"d":"$34,266,070"}},{"$f":"'Trial 3'!BJ19","v":{"v":34254479.66325331,"d":"$34,254,480"}},{"$f":"'Trial 3'!BK19","v":{"v":34242835.173518255,"d":"$34,242,835"}},{"$f":"'Trial 3'!BL19","v":{"v":34231125.19485282,"d":"$34,231,125"}},{"$f":"'Trial 3'!BM19","v":{"v":34219326.27868802,"d":"$34,219,326"}},{"$f":"'Trial 3'!BM19","v":{"v":34219326.27868802,"d":"$34,219,326"}},{"$f":"'Trial 3'!BO19","v":{"v":34207509.989284925,"d":"$34,207,510"}},{"$f":"'Trial 3'!BP19","v":{"v":34195624.88814662,"d":"$34,195,625"}},{"$f":"'Trial 3'!BQ19","v":{"v":34183675.277122185,"d":"$34,183,675"}},{"$f":"'Trial 3'!BR19","v":{"v":34171692.60740383,"d":"$34,171,693"}},{"$f":"'Trial 3'!BS19","v":{"v":34159593.38145861,"d":"$34,159,593"}},{"$f":"'Trial 3'!BT19","v":{"v":34147445.92397375,"d":"$34,147,446"}},{"$f":"'Trial 3'!BU19","v":{"v":34135291.12827101,"d":"$34,135,291"}},{"$f":"'Trial 3'!BV19","v":{"v":34123063.64328139,"d":"$34,123,064"}},{"$f":"'Trial 3'!BW19","v":{"v":34110756.03143622,"d":"$34,110,756"}},{"$f":"'Trial 3'!BX19","v":{"v":34098347.35555489,"d":"$34,098,347"}},{"$f":"'Trial 3'!BY19","v":{"v":34085921.009731814,"d":"$34,085,921"}},{"$f":"'Trial 3'!BZ19","v":{"v":34073377.93011575,"d":"$34,073,378"}},{"$f":"'Trial 3'!BZ19","v":{"v":34073377.93011575,"d":"$34,073,378"}},{"$f":"'Trial 3'!CB19","v":{"v":34060870.488807954,"d":"$34,060,870"}},{"$f":"'Trial 3'!CC19","v":{"v":34048298.03330385,"d":"$34,048,298"}},{"$f":"'Trial 3'!CD19","v":{"v":34035716.490917586,"d":"$34,035,716"}},{"$f":"'Trial 3'!CE19","v":{"v":34023079.88226441,"d":"$34,023,080"}},{"$f":"'Trial 3'!CF19","v":{"v":34010409.735237114,"d":"$34,010,410"}},{"$f":"'Trial 3'!CG19","v":{"v":33997709.676087424,"d":"$33,997,710"}},{"$f":"'Trial 3'!CH19","v":{"v":33984973.98418045,"d":"$33,984,974"}},{"$f":"'Trial 3'!CI19","v":{"v":33972250.861959234,"d":"$33,972,251"}},{"$f":"'Trial 3'!CJ19","v":{"v":33959547.8663448,"d":"$33,959,548"}},{"$f":"'Trial 3'!CK19","v":{"v":33946886.75296281,"d":"$33,946,887"}},{"$f":"'Trial 3'!CL19","v":{"v":33934176.52421605,"d":"$33,934,177"}},{"$f":"'Trial 3'!CM19","v":{"v":33921467.2839774,"d":"$33,921,467"}},{"$f":"'Trial 3'!CM19","v":{"v":33921467.2839774,"d":"$33,921,467"}},{"$f":"'Trial 3'!CO19","v":{"v":33908783.63150932,"d":"$33,908,784"}},{"$f":"'Trial 3'!CP19","v":{"v":33896152.42378318,"d":"$33,896,152"}},{"$f":"'Trial 3'!CQ19","v":{"v":33883416.86380245,"d":"$33,883,417"}},{"$f":"'Trial 3'!CR19","v":{"v":33870675.52050494,"d":"$33,870,676"}},{"$f":"'Trial 3'!CS19","v":{"v":33857874.11224262,"d":"$33,857,874"}},{"$f":"'Trial 3'!CT19","v":{"v":33845058.16592929,"d":"$33,845,058"}},{"$f":"'Trial 3'!CU19","v":{"v":33832200.70867124,"d":"$33,832,201"}},{"$f":"'Trial 3'!CV19","v":{"v":33819324.61035034,"d":"$33,819,325"}},{"$f":"'Trial 3'!CW19","v":{"v":33806453.80519012,"d":"$33,806,454"}},{"$f":"'Trial 3'!CX19","v":{"v":33793557.91774352,"d":"$33,793,558"}},{"$f":"'Trial 3'!CY19","v":{"v":33780576.23279828,"d":"$33,780,576"}},{"$f":"'Trial 3'!CZ19","v":{"v":33767645.925928034,"d":"$33,767,646"}},{"$f":"'Trial 3'!CZ19","v":{"v":33767645.925928034,"d":"$33,767,646"}},{"$f":"'Trial 3'!DB19","v":{"v":33754644.15355775,"d":"$33,754,644"}},{"$f":"'Trial 3'!DC19","v":{"v":33741668.95355412,"d":"$33,741,669"}},{"$f":"'Trial 3'!DD19","v":{"v":33728601.577021904,"d":"$33,728,602"}},{"$f":"'Trial 3'!DE19","v":{"v":33715401.91468131,"d":"$33,715,402"}},{"$f":"'Trial 3'!DF19","v":{"v":33702171.70200343,"d":"$33,702,172"}},{"$f":"'Trial 3'!DG19","v":{"v":33688943.580727346,"d":"$33,688,944"}},{"$f":"'Trial 3'!DH19","v":{"v":33675704.33342712,"d":"$33,675,704"}},{"$f":"'Trial 3'!DI19","v":{"v":33662477.102640994,"d":"$33,662,477"}},{"$f":"'Trial 3'!DJ19","v":{"v":33649251.681412205,"d":"$33,649,252"}},{"$f":"'Trial 3'!DK19","v":{"v":33636008.76024192,"d":"$33,636,009"}},{"$f":"'Trial 3'!DL19","v":{"v":33622725.43338261,"d":"$33,622,725"}},{"$f":"'Trial 3'!DM19","v":{"v":33609444.790164925,"d":"$33,609,445"}},{"$f":"'Trial 3'!DM19","v":{"v":33609444.790164925,"d":"$33,609,445"}},{"$f":"'Trial 3'!DO19","v":{"v":33596184.9343247,"d":"$33,596,185"}},{"$f":"'Trial 3'!DP19","v":{"v":33582925.01547238,"d":"$33,582,925"}},{"$f":"'Trial 3'!DQ19","v":{"v":33569677.39326631,"d":"$33,569,677"}},{"$f":"'Trial 3'!DR19","v":{"v":33556448.26883229,"d":"$33,556,448"}},{"$f":"'Trial 3'!DS19","v":{"v":33543312.872004617,"d":"$33,543,313"}},{"$f":"'Trial 3'!DT19","v":{"v":33530058.103309665,"d":"$33,530,058"}},{"$f":"'Trial 3'!DU19","v":{"v":33516754.616077,"d":"$33,516,755"}},{"$f":"'Trial 3'!DV19","v":{"v":33503482.738519587,"d":"$33,503,483"}},{"$f":"'Trial 3'!DW19","v":{"v":33490185.161475606,"d":"$33,490,185"}},{"$f":"'Trial 3'!DX19","v":{"v":33476920.51306675,"d":"$33,476,921"}},{"$f":"'Trial 3'!DY19","v":{"v":33463712.33504556,"d":"$33,463,712"}},{"$f":"'Trial 3'!DZ19","v":{"v":33450474.84799783,"d":"$33,450,475"}},{"$f":"'Trial 3'!DZ19","v":{"v":33450474.84799783,"d":"$33,450,475"}},{"$f":"'Trial 3'!EB19","v":{"v":33437189.69472298,"d":"$33,437,190"}},{"$f":"'Trial 3'!EC19","v":{"v":33423825.94404833,"d":"$33,423,826"}},{"$f":"'Trial 3'!ED19","v":{"v":33410447.839999195,"d":"$33,410,448"}},{"$f":"'Trial 3'!EE19","v":{"v":33397032.843952887,"d":"$33,397,033"}},{"$f":"'Trial 3'!EF19","v":{"v":33383626.09672304,"d":"$33,383,626"}},{"$f":"'Trial 3'!EG19","v":{"v":33370227.548256967,"d":"$33,370,228"}},{"$f":"'Trial 3'!EH19","v":{"v":33356811.75237281,"d":"$33,356,812"}},{"$f":"'Trial 3'!EI19","v":{"v":33343380.016601115,"d":"$33,343,380"}},{"$f":"'Trial 3'!EJ19","v":{"v":33329989.297177013,"d":"$33,329,989"}},{"$f":"'Trial 3'!EK19","v":{"v":33316510.931023184,"d":"$33,316,511"}},{"$f":"'Trial 3'!EL19","v":{"v":33302925.066138573,"d":"$33,302,925"}},{"$f":"'Trial 3'!EM19","v":{"v":33289411.203910477,"d":"$33,289,411"}},{"$f":"'Trial 3'!EM19","v":{"v":33289411.203910477,"d":"$33,289,411"}}]
[{"$f":"Labels!B99","v":"Trial 04"},{"$f":"'Trial 4'!B19","v":{"v":34645298.42192645,"d":"$34,645,298"}},{"$f":"'Trial 4'!C19","v":{"v":34645298.42192645,"d":"$34,645,298"}},{"$f":"'Trial 4'!D19","v":{"v":34644883.04983828,"d":"$34,644,883"}},{"$f":"'Trial 4'!E19","v":{"v":34644049.63356415,"d":"$34,644,050"}},{"$f":"'Trial 4'!F19","v":{"v":34642807.523527995,"d":"$34,642,808"}},{"$f":"'Trial 4'!G19","v":{"v":34641246.7643549,"d":"$34,641,247"}},{"$f":"'Trial 4'!H19","v":{"v":34639413.01205971,"d":"$34,639,413"}},{"$f":"'Trial 4'!I19","v":{"v":34637346.971360475,"d":"$34,637,347"}},{"$f":"'Trial 4'!J19","v":{"v":34634865.39306144,"d":"$34,634,865"}},{"$f":"'Trial 4'!K19","v":{"v":34631983.83408812,"d":"$34,631,984"}},{"$f":"'Trial 4'!L19","v":{"v":34628777.06197142,"d":"$34,628,777"}},{"$f":"'Trial 4'!M19","v":{"v":34625254.822427884,"d":"$34,625,255"}},{"$f":"'Trial 4'!M19","v":{"v":34625254.822427884,"d":"$34,625,255"}},{"$f":"'Trial 4'!O19","v":{"v":34621442.91190603,"d":"$34,621,443"}},{"$f":"'Trial 4'!P19","v":{"v":34617256.94061169,"d":"$34,617,257"}},{"$f":"'Trial 4'!Q19","v":{"v":34612800.19743565,"d":"$34,612,800"}},{"$f":"'Trial 4'!R19","v":{"v":34608103.92919609,"d":"$34,608,104"}},{"$f":"'Trial 4'!S19","v":{"v":34603231.04069372,"d":"$34,603,231"}},{"$f":"'Trial 4'!T19","v":{"v":34598106.84638908,"d":"$34,598,107"}},{"$f":"'Trial 4'!U19","v":{"v":34592627.7153737,"d":"$34,592,628"}},{"$f":"'Trial 4'!V19","v":{"v":34586880.48358525,"d":"$34,586,880"}},{"$f":"'Trial 4'!W19","v":{"v":34580909.33004779,"d":"$34,580,909"}},{"$f":"'Trial 4'!X19","v":{"v":34574706.853641145,"d":"$34,574,707"}},{"$f":"'Trial 4'!Y19","v":{"v":34568403.47773815,"d":"$34,568,403"}},{"$f":"'Trial 4'!Z19","v":{"v":34561873.81943605,"d":"$34,561,874"}},{"$f":"'Trial 4'!Z19","v":{"v":34561873.81943605,"d":"$34,561,874"}},{"$f":"'Trial 4'!AB19","v":{"v":34555037.47056267,"d":"$34,555,037"}},{"$f":"'Trial 4'!AC19","v":{"v":34547943.74768499,"d":"$34,547,944"}},{"$f":"'Trial 4'!AD19","v":{"v":34540614.43008582,"d":"$34,540,614"}},{"$f":"'Trial 4'!AE19","v":{"v":34533114.87759629,"d":"$34,533,115"}},{"$f":"'Trial 4'!AF19","v":{"v":34525407.46084652,"d":"$34,525,407"}},{"$f":"'Trial 4'!AG19","v":{"v":34517441.36326128,"d":"$34,517,441"}},{"$f":"'Trial 4'!AH19","v":{"v":34509269.22527744,"d":"$34,509,269"}},{"$f":"'Trial 4'!AI19","v":{"v":34501018.51182197,"d":"$34,501,019"}},{"$f":"'Trial 4'!AJ19","v":{"v":34492604.97623381,"d":"$34,492,605"}},{"$f":"'Trial 4'!AK19","v":{"v":34484032.2216504,"d":"$34,484,032"}},{"$f":"'Trial 4'!AL19","v":{"v":34475270.12519592,"d":"$34,475,270"}},{"$f":"'Trial 4'!AM19","v":{"v":34466432.513933584,"d":"$34,466,433"}},{"$f":"'Trial 4'!AM19","v":{"v":34466432.513933584,"d":"$34,466,433"}},{"$f":"'Trial 4'!AO19","v":{"v":34457425.58026936,"d":"$34,457,426"}},{"$f":"'Trial 4'!AP19","v":{"v":34448165.666415036,"d":"$34,448,166"}},{"$f":"'Trial 4'!AQ19","v":{"v":34438770.97482351,"d":"$34,438,771"}},{"$f":"'Trial 4'!AR19","v":{"v":34429239.628484674,"d":"$34,429,240"}},{"$f":"'Trial 4'!AS19","v":{"v":34419562.38653444,"d":"$34,419,562"}},{"$f":"'Trial 4'!AT19","v":{"v":34409695.70154082,"d":"$34,409,696"}},{"$f":"'Trial 4'!AU19","v":{"v":34399732.935235776,"d":"$34,399,733"}},{"$f":"'Trial 4'!AV19","v":{"v":34389713.73075228,"d":"$34,389,714"}},{"$f":"'Trial 4'!AW19","v":{"v":34379605.3535281,"d":"$34,379,605"}},{"$f":"'Trial 4'!AX19","v":{"v":34369380.46197259,"d":"$34,369,380"}},{"$f":"'Trial 4'!AY19","v":{"v":34359082.98641778,"d":"$34,359,083"}},{"$f":"'Trial 4'!AZ19","v":{"v":34348618.36476453,"d":"$34,348,618"}},{"$f":"'Trial 4'!AZ19","v":{"v":34348618.36476453,"d":"$34,348,618"}},{"$f":"'Trial 4'!BB19","v":{"v":34338000.40230389,"d":"$34,338,000"}},{"$f":"'Trial 4'!BC19","v":{"v":34327188.40542169,"d":"$34,327,188"}},{"$f":"'Trial 4'!BD19","v":{"v":34316393.52351345,"d":"$34,316,394"}},{"$f":"'Trial 4'!BE19","v":{"v":34305611.34150089,"d":"$34,305,611"}},{"$f":"'Trial 4'!BF19","v":{"v":34294674.3802904,"d":"$34,294,674"}},{"$f":"'Trial 4'!BG19","v":{"v":34283648.30582829,"d":"$34,283,648"}},{"$f":"'Trial 4'!BH19","v":{"v":34272478.60429257,"d":"$34,272,479"}},{"$f":"'Trial 4'!BI19","v":{"v":34261267.10695572,"d":"$34,261,267"}},{"$f":"'Trial 4'!BJ19","v":{"v":34249921.57646341,"d":"$34,249,922"}},{"$f":"'Trial 4'!BK19","v":{"v":34238502.38728005,"d":"$34,238,502"}},{"$f":"'Trial 4'!BL19","v":{"v":34226897.146773204,"d":"$34,226,897"}},{"$f":"'Trial 4'!BM19","v":{"v":34215279.573516965,"d":"$34,215,280"}},{"$f":"'Trial 4'!BM19","v":{"v":34215279.573516965,"d":"$34,215,280"}},{"$f":"'Trial 4'!BO19","v":{"v":34203620.68917371,"d":"$34,203,621"}},{"$f":"'Trial 4'!BP19","v":{"v":34191945.2100601,"d":"$34,191,945"}},{"$f":"'Trial 4'!BQ19","v":{"v":34180245.99520927,"d":"$34,180,246"}},{"$f":"'Trial 4'!BR19","v":{"v":34168527.335204534,"d":"$34,168,527"}},{"$f":"'Trial 4'!BS19","v":{"v":34156699.36279212,"d":"$34,156,699"}},{"$f":"'Trial 4'!BT19","v":{"v":34144821.34855917,"d":"$34,144,821"}},{"$f":"'Trial 4'!BU19","v":{"v":34132810.91156727,"d":"$34,132,811"}},{"$f":"'Trial 4'!BV19","v":{"v":34120778.697550245,"d":"$34,120,779"}},{"$f":"'Trial 4'!BW19","v":{"v":34108662.545433186,"d":"$34,108,663"}},{"$f":"'Trial 4'!BX19","v":{"v":34096441.556181945,"d":"$34,096,442"}},{"$f":"'Trial 4'!BY19","v":{"v":34084097.53589879,"d":"$34,084,098"}},{"$f":"'Trial 4'!BZ19","v":{"v":34071754.6670802,"d":"$34,071,755"}},{"$f":"'Trial 4'!BZ19","v":{"v":34071754.6670802,"d":"$34,071,755"}},{"$f":"'Trial 4'!CB19","v":{"v":34059350.99024763,"d":"$34,059,351"}},{"$f":"'Trial 4'!CC19","v":{"v":34046932.59869469,"d":"$34,046,933"}},{"$f":"'Trial 4'!CD19","v":{"v":34034411.83490243,"d":"$34,034,412"}},{"$f":"'Trial 4'!CE19","v":{"v":34021876.08861737,"d":"$34,021,876"}},{"$f":"'Trial 4'!CF19","v":{"v":34009262.52022385,"d":"$34,009,263"}},{"$f":"'Trial 4'!CG19","v":{"v":33996586.37647902,"d":"$33,996,586"}},{"$f":"'Trial 4'!CH19","v":{"v":33983880.04147162,"d":"$33,983,880"}},{"$f":"'Trial 4'!CI19","v":{"v":33971109.02866029,"d":"$33,971,109"}},{"$f":"'Trial 4'!CJ19","v":{"v":33958419.233008765,"d":"$33,958,419"}},{"$f":"'Trial 4'!CK19","v":{"v":33945752.530965105,"d":"$33,945,753"}},{"$f":"'Trial 4'!CL19","v":{"v":33933038.22137461,"d":"$33,933,038"}},{"$f":"'Trial 4'!CM19","v":{"v":33920352.12158425,"d":"$33,920,352"}},{"$f":"'Trial 4'!CM19","v":{"v":33920352.12158425,"d":"$33,920,352"}},{"$f":"'Trial 4'!CO19","v":{"v":33907641.826606825,"d":"$33,907,642"}},{"$f":"'Trial 4'!CP19","v":{"v":33894851.033274464,"d":"$33,894,851"}},{"$f":"'Trial 4'!CQ19","v":{"v":33882083.96664889,"d":"$33,882,084"}},{"$f":"'Trial 4'!CR19","v":{"v":33869322.26048396,"d":"$33,869,322"}},{"$f":"'Trial 4'!CS19","v":{"v":33856583.426220246,"d":"$33,856,583"}},{"$f":"'Trial 4'!CT19","v":{"v":33843813.69801026,"d":"$33,843,814"}},{"$f":"'Trial 4'!CU19","v":{"v":33830959.991131224,"d":"$33,830,960"}},{"$f":"'Trial 4'!CV19","v":{"v":33817979.42223045,"d":"$33,817,979"}},{"$f":"'Trial 4'!CW19","v":{"v":33805072.21325487,"d":"$33,805,072"}},{"$f":"'Trial 4'!CX19","v":{"v":33792165.37481887,"d":"$33,792,165"}},{"$f":"'Trial 4'!CY19","v":{"v":33779253.04324862,"d":"$33,779,253"}},{"$f":"'Trial 4'!CZ19","v":{"v":33766215.981839254,"d":"$33,766,216"}},{"$f":"'Trial 4'!CZ19","v":{"v":33766215.981839254,"d":"$33,766,216"}},{"$f":"'Trial 4'!DB19","v":{"v":33753192.46544939,"d":"$33,753,192"}},{"$f":"'Trial 4'!DC19","v":{"v":33740222.90134376,"d":"$33,740,223"}},{"$f":"'Trial 4'!DD19","v":{"v":33727182.73443607,"d":"$33,727,183"}},{"$f":"'Trial 4'!DE19","v":{"v":33714041.82121875,"d":"$33,714,042"}},{"$f":"'Trial 4'!DF19","v":{"v":33700917.901823774,"d":"$33,700,918"}},{"$f":"'Trial 4'!DG19","v":{"v":33687810.975058675,"d":"$33,687,811"}},{"$f":"'Trial 4'!DH19","v":{"v":33674689.763494186,"d":"$33,674,690"}},{"$f":"'Trial 4'!DI19","v":{"v":33661570.94465146,"d":"$33,661,571"}},{"$f":"'Trial 4'!DJ19","v":{"v":33648354.87315858,"d":"$33,648,355"}},{"$f":"'Trial 4'!DK19","v":{"v":33635166.84104192,"d":"$33,635,167"}},{"$f":"'Trial 4'!DL19","v":{"v":33621921.782465585,"d":"$33,621,922"}},{"$f":"'Trial 4'!DM19","v":{"v":33608695.134846166,"d":"$33,608,695"}},{"$f":"'Trial 4'!DM19","v":{"v":33608695.134846166,"d":"$33,608,695"}},{"$f":"'Trial 4'!DO19","v":{"v":33595466.69606915,"d":"$33,595,467"}},{"$f":"'Trial 4'!DP19","v":{"v":33582187.624054566,"d":"$33,582,188"}},{"$f":"'Trial 4'!DQ19","v":{"v":33568976.348991334,"d":"$33,568,976"}},{"$f":"'Trial 4'!DR19","v":{"v":33555856.709783174,"d":"$33,555,857"}},{"$f":"'Trial 4'!DS19","v":{"v":33542655.240609802,"d":"$33,542,655"}},{"$f":"'Trial 4'!DT19","v":{"v":33529526.497988533,"d":"$33,529,526"}},{"$f":"'Trial 4'!DU19","v":{"v":33516479.95063048,"d":"$33,516,480"}},{"$f":"'Trial 4'!DV19","v":{"v":33503462.089059126,"d":"$33,503,462"}},{"$f":"'Trial 4'!DW19","v":{"v":33490385.9968685,"d":"$33,490,386"}},{"$f":"'Trial 4'!DX19","v":{"v":33477272.083226074,"d":"$33,477,272"}},{"$f":"'Trial 4'!DY19","v":{"v":33464020.95989919,"d":"$33,464,021"}},{"$f":"'Trial 4'!DZ19","v":{"v":33450830.731485654,"d":"$33,450,831"}},{"$f":"'Trial 4'!DZ19","v":{"v":33450830.731485654,"d":"$33,450,831"}},{"$f":"'Trial 4'!EB19","v":{"v":33437685.03671136,"d":"$33,437,685"}},{"$f":"'Trial 4'!EC19","v":{"v":33424609.683972035,"d":"$33,424,610"}},{"$f":"'Trial 4'!ED19","v":{"v":33411502.392524302,"d":"$33,411,502"}},{"$f":"'Trial 4'!EE19","v":{"v":33398252.41870678,"d":"$33,398,252"}},{"$f":"'Trial 4'!EF19","v":{"v":33384961.086145315,"d":"$33,384,961"}},{"$f":"'Trial 4'!EG19","v":{"v":33371724.66473762,"d":"$33,371,725"}},{"$f":"'Trial 4'!EH19","v":{"v":33358563.544878528,"d":"$33,358,564"}},{"$f":"'Trial 4'!EI19","v":{"v":33345353.65176943,"d":"$33,345,354"}},{"$f":"'Trial 4'!EJ19","v":{"v":33332166.842144877,"d":"$33,332,167"}},{"$f":"'Trial 4'!EK19","v":{"v":33318862.803993788,"d":"$33,318,863"}},{"$f":"'Trial 4'!EL19","v":{"v":33305444.263111643,"d":"$33,305,444"}},{"$f":"'Trial 4'!EM19","v":{"v":33292072.51320458,"d":"$33,292,073"}},{"$f":"'Trial 4'!EM19","v":{"v":33292072.51320458,"d":"$33,292,073"}}]
[{"$f":"Labels!B100","v":"Trial 05"},{"$f":"'Trial 5'!B19","v":{"v":34645298.42192645,"d":"$34,645,298"}},{"$f":"'Trial 5'!C19","v":{"v":34645298.42192645,"d":"$34,645,298"}},{"$f":"'Trial 5'!D19","v":{"v":34644834.559459105,"d":"$34,644,835"}},{"$f":"'Trial 5'!E19","v":{"v":34643939.25823976,"d":"$34,643,939"}},{"$f":"'Trial 5'!F19","v":{"v":34642752.58050542,"d":"$34,642,753"}},{"$f":"'Trial 5'!G19","v":{"v":34641111.135880165,"d":"$34,641,111"}},{"$f":"'Trial 5'!H19","v":{"v":34639087.89172044,"d":"$34,639,088"}},{"$f":"'Trial 5'!I19","v":{"v":34636684.88432721,"d":"$34,636,685"}},{"$f":"'Trial 5'!J19","v":{"v":34633955.251417734,"d":"$34,633,955"}},{"$f":"'Trial 5'!K19","v":{"v":34630949.30757114,"d":"$34,630,949"}},{"$f":"'Trial 5'!L19","v":{"v":34627752.13628085,"d":"$34,627,752"}},{"$f":"'Trial 5'!M19","v":{"v":34624200.86101451,"d":"$34,624,201"}},{"$f":"'Trial 5'!M19","v":{"v":34624200.86101451,"d":"$34,624,201"}},{"$f":"'Trial 5'!O19","v":{"v":34620317.13913469,"d":"$34,620,317"}},{"$f":"'Trial 5'!P19","v":{"v":34616149.25272418,"d":"$34,616,149"}},{"$f":"'Trial 5'!Q19","v":{"v":34611687.376242094,"d":"$34,611,687"}},{"$f":"'Trial 5'!R19","v":{"v":34606966.627403125,"d":"$34,606,967"}},{"$f":"'Trial 5'!S19","v":{"v":34601970.859512195,"d":"$34,601,971"}},{"$f":"'Trial 5'!T19","v":{"v":34596736.95135379,"d":"$34,596,737"}},{"$f":"'Trial 5'!U19","v":{"v":34591178.85384561,"d":"$34,591,179"}},{"$f":"'Trial 5'!V19","v":{"v":34585499.06394529,"d":"$34,585,499"}},{"$f":"'Trial 5'!W19","v":{"v":34579613.440933265,"d":"$34,579,613"}},{"$f":"'Trial 5'!X19","v":{"v":34573493.11063047,"d":"$34,573,493"}},{"$f":"'Trial 5'!Y19","v":{"v":34567169.104213975,"d":"$34,567,169"}},{"$f":"'Trial 5'!Z19","v":{"v":34560564.322428316,"d":"$34,560,564"}},{"$f":"'Trial 5'!Z19","v":{"v":34560564.322428316,"d":"$34,560,564"}},{"$f":"'Trial 5'!AB19","v":{"v":34553859.912909426,"d":"$34,553,860"}},{"$f":"'Trial 5'!AC19","v":{"v":34546924.27329621,"d":"$34,546,924"}},{"$f":"'Trial 5'!AD19","v":{"v":34539822.37358948,"d":"$34,539,822"}},{"$f":"'Trial 5'!AE19","v":{"v":34532526.23888428,"d":"$34,532,526"}},{"$f":"'Trial 5'!AF19","v":{"v":34525140.30789429,"d":"$34,525,140"}},{"$f":"'Trial 5'!AG19","v":{"v":34517458.15167562,"d":"$34,517,458"}},{"$f":"'Trial 5'!AH19","v":{"v":34509507.280475035,"d":"$34,509,507"}},{"$f":"'Trial 5'!AI19","v":{"v":34501355.248791225,"d":"$34,501,355"}},{"$f":"'Trial 5'!AJ19","v":{"v":34493065.65676171,"d":"$34,493,066"}},{"$f":"'Trial 5'!AK19","v":{"v":34484550.5582707,"d":"$34,484,551"}},{"$f":"'Trial 5'!AL19","v":{"v":34475896.11825441,"d":"$34,475,896"}},{"$f":"'Trial 5'!AM19","v":{"v":34467023.86361551,"d":"$34,467,024"}},{"$f":"'Trial 5'!AM19","v":{"v":34467023.86361551,"d":"$34,467,024"}},{"$f":"'Trial 5'!AO19","v":{"v":34457990.25688293,"d":"$34,457,990"}},{"$f":"'Trial 5'!AP19","v":{"v":34448756.7016488,"d":"$34,448,757"}},{"$f":"'Trial 5'!AQ19","v":{"v":34439389.708169654,"d":"$34,439,390"}},{"$f":"'Trial 5'!AR19","v":{"v":34429899.427924365,"d":"$34,429,899"}},{"$f":"'Trial 5'!AS19","v":{"v":34420258.37677871,"d":"$34,420,258"}},{"$f":"'Trial 5'!AT19","v":{"v":34410524.34181817,"d":"$34,410,524"}},{"$f":"'Trial 5'!AU19","v":{"v":34400710.79757036,"d":"$34,400,711"}},{"$f":"'Trial 5'!AV19","v":{"v":34390746.85490173,"d":"$34,390,747"}},{"$f":"'Trial 5'!AW19","v":{"v":34380693.304923914,"d":"$34,380,693"}},{"$f":"'Trial 5'!AX19","v":{"v":34370533.74373199,"d":"$34,370,534"}},{"$f":"'Trial 5'!AY19","v":{"v":34360249.845163696,"d":"$34,360,250"}},{"$f":"'Trial 5'!AZ19","v":{"v":34349846.021693915,"d":"$34,349,846"}},{"$f":"'Trial 5'!AZ19","v":{"v":34349846.021693915,"d":"$34,349,846"}},{"$f":"'Trial 5'!BB19","v":{"v":34339356.95642029,"d":"$34,339,357"}},{"$f":"'Trial 5'!BC19","v":{"v":34328754.899467595,"d":"$34,328,755"}},{"$f":"'Trial 5'!BD19","v":{"v":34318015.07997256,"d":"$34,318,015"}},{"$f":"'Trial 5'!BE19","v":{"v":34307103.993472315,"d":"$34,307,104"}},{"$f":"'Trial 5'!BF19","v":{"v":34295994.944522254,"d":"$34,295,995"}},{"$f":"'Trial 5'!BG19","v":{"v":34284833.70720277,"d":"$34,284,834"}},{"$f":"'Trial 5'!BH19","v":{"v":34273561.58828669,"d":"$34,273,562"}},{"$f":"'Trial 5'!BI19","v":{"v":34262228.12478232,"d":"$34,262,228"}},{"$f":"'Trial 5'!BJ19","v":{"v":34250735.99815025,"d":"$34,250,736"}},{"$f":"'Trial 5'!BK19","v":{"v":34239191.6517424,"d":"$34,239,192"}},{"$f":"'Trial 5'!BL19","v":{"v":34227652.31711832,"d":"$34,227,652"}},{"$f":"'Trial 5'!BM19","v":{"v":34216068.742396146,"d":"$34,216,069"}},{"$f":"'Trial 5'!BM19","v":{"v":34216068.742396146,"d":"$34,216,069"}},{"$f":"'Trial 5'!BO19","v":{"v":34204493.06623588,"d":"$34,204,493"}},{"$f":"'Trial 5'!BP19","v":{"v":34192867.164602935,"d":"$34,192,867"}},{"$f":"'Trial 5'!BQ19","v":{"v":34181246.866237246,"d":"$34,181,247"}},{"$f":"'Trial 5'!BR19","v":{"v":34169664.66211485,"d":"$34,169,665"}},{"$f":"'Trial 5'!BS19","v":{"v":34158115.1231827,"d":"$34,158,115"}},{"$f":"'Trial 5'!BT19","v":{"v":34146424.964677826,"d":"$34,146,425"}},{"$f":"'Trial 5'!BU19","v":{"v":34134669.4427247,"d":"$34,134,669"}},{"$f":"'Trial 5'!BV19","v":{"v":34122959.80741159,"d":"$34,122,960"}},{"$f":"'Trial 5'!BW19","v":{"v":34111119.55683166,"d":"$34,111,120"}},{"$f":"'Trial 5'!BX19","v":{"v":34099205.49629251,"d":"$34,099,205"}},{"$f":"'Trial 5'!BY19","v":{"v":34087242.77734334,"d":"$34,087,243"}},{"$f":"'Trial 5'!BZ19","v":{"v":34075307.30285405,"d":"$34,075,307"}},{"$f":"'Trial 5'!BZ19","v":{"v":34075307.30285405,"d":"$34,075,307"}},{"$f":"'Trial 5'!CB19","v":{"v":34063405.3733337,"d":"$34,063,405"}},{"$f":"'Trial 5'!CC19","v":{"v":34051511.456487745,"d":"$34,051,511"}},{"$f":"'Trial 5'!CD19","v":{"v":34039548.22144714,"d":"$34,039,548"}},{"$f":"'Trial 5'!CE19","v":{"v":34027531.57904265,"d":"$34,027,532"}},{"$f":"'Trial 5'!CF19","v":{"v":34015450.98957317,"d":"$34,015,451"}},{"$f":"'Trial 5'!CG19","v":{"v":34003278.554716155,"d":"$34,003,279"}},{"$f":"'Trial 5'!CH19","v":{"v":33991066.95048645,"d":"$33,991,067"}},{"$f":"'Trial 5'!CI19","v":{"v":33978917.718100354,"d":"$33,978,918"}},{"$f":"'Trial 5'!CJ19","v":{"v":33966673.10048774,"d":"$33,966,673"}},{"$f":"'Trial 5'!CK19","v":{"v":33954323.73997447,"d":"$33,954,324"}},{"$f":"'Trial 5'!CL19","v":{"v":33941948.991735525,"d":"$33,941,949"}},{"$f":"'Trial 5'!CM19","v":{"v":33929633.818678096,"d":"$33,929,634"}},{"$f":"'Trial 5'!CM19","v":{"v":33929633.818678096,"d":"$33,929,634"}},{"$f":"'Trial 5'!CO19","v":{"v":33917210.91762346,"d":"$33,917,211"}},{"$f":"'Trial 5'!CP19","v":{"v":33904776.94925425,"d":"$33,904,777"}},{"$f":"'Trial 5'!CQ19","v":{"v":33892326.02535381,"d":"$33,892,326"}},{"$f":"'Trial 5'!CR19","v":{"v":33879770.19238523,"d":"$33,879,770"}},{"$f":"'Trial 5'!CS19","v":{"v":33867263.95180155,"d":"$33,867,264"}},{"$f":"'Trial 5'!CT19","v":{"v":33854666.90855117,"d":"$33,854,667"}},{"$f":"'Trial 5'!CU19","v":{"v":33842000.273219176,"d":"$33,842,000"}},{"$f":"'Trial 5'!CV19","v":{"v":33829328.911645815,"d":"$33,829,329"}},{"$f":"'Trial 5'!CW19","v":{"v":33816634.79924159,"d":"$33,816,635"}},{"$f":"'Trial 5'!CX19","v":{"v":33803886.50019406,"d":"$33,803,887"}},{"$f":"'Trial 5'!CY19","v":{"v":33791162.13400233,"d":"$33,791,162"}},{"$f":"'Trial 5'!CZ19","v":{"v":33778373.40865305,"d":"$33,778,373"}},{"$f":"'Trial 5'!CZ19","v":{"v":33778373.40865305,"d":"$33,778,373"}},{"$f":"'Trial 5'!DB19","v":{"v":33765545.994353265,"d":"$33,765,546"}},{"$f":"'Trial 5'!DC19","v":{"v":33752589.36093344,"d":"$33,752,589"}},{"$f":"'Trial 5'!DD19","v":{"v":33739640.19439949,"d":"$33,739,640"}},{"$f":"'Trial 5'!DE19","v":{"v":33726665.23182844,"d":"$33,726,665"}},{"$f":"'Trial 5'!DF19","v":{"v":33713681.28753844,"d":"$33,713,681"}},{"$f":"'Trial 5'!DG19","v":{"v":33700627.42145437,"d":"$33,700,627"}},{"$f":"'Trial 5'!DH19","v":{"v":33687491.6703549,"d":"$33,687,492"}},{"$f":"'Trial 5'!DI19","v":{"v":33674389.323194735,"d":"$33,674,389"}},{"$f":"'Trial 5'!DJ19","v":{"v":33661365.967722304,"d":"$33,661,366"}},{"$f":"'Trial 5'!DK19","v":{"v":33648319.03038576,"d":"$33,648,319"}},{"$f":"'Trial 5'!DL19","v":{"v":33635189.515361,"d":"$33,635,190"}},{"$f":"'Trial 5'!DM19","v":{"v":33622023.72507807,"d":"$33,622,024"}},{"$f":"'Trial 5'!DM19","v":{"v":33622023.72507807,"d":"$33,622,024"}},{"$f":"'Trial 5'!DO19","v":{"v":33608769.741328456,"d":"$33,608,770"}},{"$f":"'Trial 5'!DP19","v":{"v":33595497.11395284,"d":"$33,595,497"}},{"$f":"'Trial 5'!DQ19","v":{"v":33582171.817708045,"d":"$33,582,172"}},{"$f":"'Trial 5'!DR19","v":{"v":33568824.6647576,"d":"$33,568,825"}},{"$f":"'Trial 5'!DS19","v":{"v":33555553.0294394,"d":"$33,555,553"}},{"$f":"'Trial 5'!DT19","v":{"v":33542306.067130435,"d":"$33,542,306"}},{"$f":"'Trial 5'!DU19","v":{"v":33529071.101260558,"d":"$33,529,071"}},{"$f":"'Trial 5'!DV19","v":{"v":33515880.60310605,"d":"$33,515,881"}},{"$f":"'Trial 5'!DW19","v":{"v":33502619.91889493,"d":"$33,502,620"}},{"$f":"'Trial 5'!DX19","v":{"v":33489347.252840415,"d":"$33,489,347"}},{"$f":"'Trial 5'!DY19","v":{"v":33476105.984430797,"d":"$33,476,106"}},{"$f":"'Trial 5'!DZ19","v":{"v":33462811.878667705,"d":"$33,462,812"}},{"$f":"'Trial 5'!DZ19","v":{"v":33462811.878667705,"d":"$33,462,812"}},{"$f":"'Trial 5'!EB19","v":{"v":33449497.78382002,"d":"$33,449,498"}},{"$f":"'Trial 5'!EC19","v":{"v":33436109.004260212,"d":"$33,436,109"}},{"$f":"'Trial 5'!ED19","v":{"v":33422699.968357727,"d":"$33,422,700"}},{"$f":"'Trial 5'!EE19","v":{"v":33409347.071726955,"d":"$33,409,347"}},{"$f":"'Trial 5'!EF19","v":{"v":33395928.70170487,"d":"$33,395,929"}},{"$f":"'Trial 5'!EG19","v":{"v":33382506.02489665,"d":"$33,382,506"}},{"$f":"'Trial 5'!EH19","v":{"v":33369075.606976323,"d":"$33,369,076"}},{"$f":"'Trial 5'!EI19","v":{"v":33355694.83973727,"d":"$33,355,695"}},{"$f":"'Trial 5'!EJ19","v":{"v":33342210.847765967,"d":"$33,342,211"}},{"$f":"'Trial 5'!EK19","v":{"v":33328650.68325212,"d":"$33,328,651"}},{"$f":"'Trial 5'!EL19","v":{"v":33315044.022331666,"d":"$33,315,044"}},{"$f":"'Trial 5'!EM19","v":{"v":33301432.4238129,"d":"$33,301,432"}},{"$f":"'Trial 5'!EM19","v":{"v":33301432.4238129,"d":"$33,301,432"}}]
[{"$f":"Labels!B101","v":"Trial 06"},{"$f":"'Trial 6'!B19","v":{"v":34645298.42192645,"d":"$34,645,298"}},{"$f":"'Trial 6'!C19","v":{"v":34645298.42192645,"d":"$34,645,298"}},{"$f":"'Trial 6'!D19","v":{"v":34644923.822073504,"d":"$34,644,924"}},{"$f":"'Trial 6'!E19","v":{"v":34644056.48070203,"d":"$34,644,056"}},{"$f":"'Trial 6'!F19","v":{"v":34642885.09300985,"d":"$34,642,885"}},{"$f":"'Trial 6'!G19","v":{"v":34641450.20765154,"d":"$34,641,450"}},{"$f":"'Trial 6'!H19","v":{"v":34639698.007749036,"d":"$34,639,698"}},{"$f":"'Trial 6'!I19","v":{"v":34637558.322842166,"d":"$34,637,558"}},{"$f":"'Trial 6'!J19","v":{"v":34635078.67675367,"d":"$34,635,079"}},{"$f":"'Trial 6'!K19","v":{"v":34632266.19617874,"d":"$34,632,266"}},{"$f":"'Trial 6'!L19","v":{"v":34629204.555582665,"d":"$34,629,205"}},{"$f":"'Trial 6'!M19","v":{"v":34625835.80034882,"d":"$34,625,836"}},{"$f":"'Trial 6'!M19","v":{"v":34625835.80034882,"d":"$34,625,836"}},{"$f":"'Trial 6'!O19","v":{"v":34622268.35430166,"d":"$34,622,268"}},{"$f":"'Trial 6'!P19","v":{"v":34618405.40718739,"d":"$34,618,405"}},{"$f":"'Trial 6'!Q19","v":{"v":34614339.63829779,"d":"$34,614,340"}},{"$f":"'Trial 6'!R19","v":{"v":34609977.52831908,"d":"$34,609,978"}},{"$f":"'Trial 6'!S19","v":{"v":34605427.47807583,"d":"$34,605,427"}},{"$f":"'Trial 6'!T19","v":{"v":34600667.956576295,"d":"$34,600,668"}},{"$f":"'Trial 6'!U19","v":{"v":34595543.56538346,"d":"$34,595,544"}},{"$f":"'Trial 6'!V19","v":{"v":34590151.73485268,"d":"$34,590,152"}},{"$f":"'Trial 6'!W19","v":{"v":34584557.286383085,"d":"$34,584,557"}},{"$f":"'Trial 6'!X19","v":{"v":34578681.72230701,"d":"$34,578,682"}},{"$f":"'Trial 6'!Y19","v":{"v":34572546.938798964,"d":"$34,572,547"}},{"$f":"'Trial 6'!Z19","v":{"v":34566213.835987076,"d":"$34,566,214"}},{"$f":"'Trial 6'!Z19","v":{"v":34566213.835987076,"d":"$34,566,214"}},{"$f":"'Trial 6'!AB19","v":{"v":34559723.707526624,"d":"$34,559,724"}},{"$f":"'Trial 6'!AC19","v":{"v":34552961.09903787,"d":"$34,552,961"}},{"$f":"'Trial 6'!AD19","v":{"v":34546010.30439607,"d":"$34,546,010"}},{"$f":"'Trial 6'!AE19","v":{"v":34538897.39392567,"d":"$34,538,897"}},{"$f":"'Trial 6'!AF19","v":{"v":34531661.926067784,"d":"$34,531,662"}},{"$f":"'Trial 6'!AG19","v":{"v":34524259.27706782,"d":"$34,524,259"}},{"$f":"'Trial 6'!AH19","v":{"v":34516742.228068046,"d":"$34,516,742"}},{"$f":"'Trial 6'!AI19","v":{"v":34509062.40029193,"d":"$34,509,062"}},{"$f":"'Trial 6'!AJ19","v":{"v":34501258.096675865,"d":"$34,501,258"}},{"$f":"'Trial 6'!AK19","v":{"v":34493268.72451128,"d":"$34,493,269"}},{"$f":"'Trial 6'!AL19","v":{"v":34485069.539071806,"d":"$34,485,070"}},{"$f":"'Trial 6'!AM19","v":{"v":34476716.728028215,"d":"$34,476,717"}},{"$f":"'Trial 6'!AM19","v":{"v":34476716.728028215,"d":"$34,476,717"}},{"$f":"'Trial 6'!AO19","v":{"v":34468265.48471156,"d":"$34,468,265"}},{"$f":"'Trial 6'!AP19","v":{"v":34459752.818181545,"d":"$34,459,753"}},{"$f":"'Trial 6'!AQ19","v":{"v":34451107.94685546,"d":"$34,451,108"}},{"$f":"'Trial 6'!AR19","v":{"v":34442297.78306675,"d":"$34,442,298"}},{"$f":"'Trial 6'!AS19","v":{"v":34433306.1682469,"d":"$34,433,306"}},{"$f":"'Trial 6'!AT19","v":{"v":34424185.427676834,"d":"$34,424,185"}},{"$f":"'Trial 6'!AU19","v":{"v":34414909.161032766,"d":"$34,414,909"}},{"$f":"'Trial 6'!AV19","v":{"v":34405457.87112853,"d":"$34,405,458"}},{"$f":"'Trial 6'!AW19","v":{"v":34395773.81559365,"d":"$34,395,774"}},{"$f":"'Trial 6'!AX19","v":{"v":34385985.374484174,"d":"$34,385,985"}},{"$f":"'Trial 6'!AY19","v":{"v":34376044.74925988,"d":"$34,376,045"}},{"$f":"'Trial 6'!AZ19","v":{"v":34365911.30749636,"d":"$34,365,911"}},{"$f":"'Trial 6'!AZ19","v":{"v":34365911.30749636,"d":"$34,365,911"}},{"$f":"'Trial 6'!BB19","v":{"v":34355698.0190026,"d":"$34,355,698"}},{"$f":"'Trial 6'!BC19","v":{"v":34345461.565287665,"d":"$34,345,462"}},{"$f":"'Trial 6'!BD19","v":{"v":34335013.94714758,"d":"$34,335,014"}},{"$f":"'Trial 6'!BE19","v":{"v":34324406.62815905,"d":"$34,324,407"}},{"$f":"'Trial 6'!BF19","v":{"v":34313665.06692009,"d":"$34,313,665"}},{"$f":"'Trial 6'!BG19","v":{"v":34302779.775289744,"d":"$34,302,780"}},{"$f":"'Trial 6'!BH19","v":{"v":34291801.1093198,"d":"$34,291,801"}},{"$f":"'Trial 6'!BI19","v":{"v":34280759.66065114,"d":"$34,280,760"}},{"$f":"'Trial 6'!BJ19","v":{"v":34269689.59870798,"d":"$34,269,690"}},{"$f":"'Trial 6'!BK19","v":{"v":34258494.21569504,"d":"$34,258,494"}},{"$f":"'Trial 6'!BL19","v":{"v":34247311.6686179,"d":"$34,247,312"}},{"$f":"'Trial 6'!BM19","v":{"v":34236070.73271626,"d":"$34,236,071"}},{"$f":"'Trial 6'!BM19","v":{"v":34236070.73271626,"d":"$34,236,071"}},{"$f":"'Trial 6'!BO19","v":{"v":34224657.4890297,"d":"$34,224,657"}},{"$f":"'Trial 6'!BP19","v":{"v":34213193.5541835,"d":"$34,213,194"}},{"$f":"'Trial 6'!BQ19","v":{"v":34201549.85200753,"d":"$34,201,550"}},{"$f":"'Trial 6'!BR19","v":{"v":34189816.107830636,"d":"$34,189,816"}},{"$f":"'Trial 6'!BS19","v":{"v":34177984.01466641,"d":"$34,177,984"}},{"$f":"'Trial 6'!BT19","v":{"v":34166032.66966442,"d":"$34,166,033"}},{"$f":"'Trial 6'!BU19","v":{"v":34153912.01419839,"d":"$34,153,912"}},{"$f":"'Trial 6'!BV19","v":{"v":34141800.387878224,"d":"$34,141,800"}},{"$f":"'Trial 6'!BW19","v":{"v":34129637.37393055,"d":"$34,129,637"}},{"$f":"'Trial 6'!BX19","v":{"v":34117452.05594607,"d":"$34,117,452"}},{"$f":"'Trial 6'!BY19","v":{"v":34105265.12274018,"d":"$34,105,265"}},{"$f":"'Trial 6'!BZ19","v":{"v":34092972.51831625,"d":"$34,092,973"}},{"$f":"'Trial 6'!BZ19","v":{"v":34092972.51831625,"d":"$34,092,973"}},{"$f":"'Trial 6'!CB19","v":{"v":34080725.85194631,"d":"$34,080,726"}},{"$f":"'Trial 6'!CC19","v":{"v":34068483.08556624,"d":"$34,068,483"}},{"$f":"'Trial 6'!CD19","v":{"v":34056195.48044282,"d":"$34,056,195"}},{"$f":"'Trial 6'!CE19","v":{"v":34043848.76439145,"d":"$34,043,849"}},{"$f":"'Trial 6'!CF19","v":{"v":34031551.35532372,"d":"$34,031,551"}},{"$f":"'Trial 6'!CG19","v":{"v":34019186.23269082,"d":"$34,019,186"}},{"$f":"'Trial 6'!CH19","v":{"v":34006747.094163835,"d":"$34,006,747"}},{"$f":"'Trial 6'!CI19","v":{"v":33994314.94416161,"d":"$33,994,315"}},{"$f":"'Trial 6'!CJ19","v":{"v":33981886.27945413,"d":"$33,981,886"}},{"$f":"'Trial 6'!CK19","v":{"v":33969487.06539982,"d":"$33,969,487"}},{"$f":"'Trial 6'!CL19","v":{"v":33957047.8672912,"d":"$33,957,048"}},{"$f":"'Trial 6'!CM19","v":{"v":33944594.36112273,"d":"$33,944,594"}},{"$f":"'Trial 6'!CM19","v":{"v":33944594.36112273,"d":"$33,944,594"}},{"$f":"'Trial 6'!CO19","v":{"v":33932168.961192146,"d":"$33,932,169"}},{"$f":"'Trial 6'!CP19","v":{"v":33919754.0216416,"d":"$33,919,754"}},{"$f":"'Trial 6'!CQ19","v":{"v":33907311.45407148,"d":"$33,907,311"}},{"$f":"'Trial 6'!CR19","v":{"v":33894896.50642208,"d":"$33,894,897"}},{"$f":"'Trial 6'!CS19","v":{"v":33882442.0579311,"d":"$33,882,442"}},{"$f":"'Trial 6'!CT19","v":{"v":33869951.082575746,"d":"$33,869,951"}},{"$f":"'Trial 6'!CU19","v":{"v":33857368.94899254,"d":"$33,857,369"}},{"$f":"'Trial 6'!CV19","v":{"v":33844706.247820854,"d":"$33,844,706"}},{"$f":"'Trial 6'!CW19","v":{"v":33832105.22143594,"d":"$33,832,105"}},{"$f":"'Trial 6'!CX19","v":{"v":33819403.17391226,"d":"$33,819,403"}},{"$f":"'Trial 6'!CY19","v":{"v":33806758.257809445,"d":"$33,806,758"}},{"$f":"'Trial 6'!CZ19","v":{"v":33794096.23935769,"d":"$33,794,096"}},{"$f":"'Trial 6'!CZ19","v":{"v":33794096.23935769,"d":"$33,794,096"}},{"$f":"'Trial 6'!DB19","v":{"v":33781347.569807835,"d":"$33,781,348"}},{"$f":"'Trial 6'!DC19","v":{"v":33768597.42139226,"d":"$33,768,597"}},{"$f":"'Trial 6'!DD19","v":{"v":33755852.81485929,"d":"$33,755,853"}},{"$f":"'Trial 6'!DE19","v":{"v":33742978.23747992,"d":"$33,742,978"}},{"$f":"'Trial 6'!DF19","v":{"v":33730039.96757815,"d":"$33,730,040"}},{"$f":"'Trial 6'!DG19","v":{"v":33717073.76923213,"d":"$33,717,074"}},{"$f":"'Trial 6'!DH19","v":{"v":33703995.62674019,"d":"$33,703,996"}},{"$f":"'Trial 6'!DI19","v":{"v":33690877.645343415,"d":"$33,690,878"}},{"$f":"'Trial 6'!DJ19","v":{"v":33677664.44225659,"d":"$33,677,664"}},{"$f":"'Trial 6'!DK19","v":{"v":33664353.67400015,"d":"$33,664,354"}},{"$f":"'Trial 6'!DL19","v":{"v":33650927.52314243,"d":"$33,650,928"}},{"$f":"'Trial 6'!DM19","v":{"v":33637497.053980954,"d":"$33,637,497"}},{"$f":"'Trial 6'!DM19","v":{"v":33637497.053980954,"d":"$33,637,497"}},{"$f":"'Trial 6'!DO19","v":{"v":33624001.13194871,"d":"$33,624,001"}},{"$f":"'Trial 6'!DP19","v":{"v":33610470.63338558,"d":"$33,610,471"}},{"$f":"'Trial 6'!DQ19","v":{"v":33596995.75504492,"d":"$33,596,996"}},{"$f":"'Trial 6'!DR19","v":{"v":33583464.177583344,"d":"$33,583,464"}},{"$f":"'Trial 6'!DS19","v":{"v":33569883.62600103,"d":"$33,569,884"}},{"$f":"'Trial 6'!DT19","v":{"v":33556292.873310216,"d":"$33,556,293"}},{"$f":"'Trial 6'!DU19","v":{"v":33542681.98809288,"d":"$33,542,682"}},{"$f":"'Trial 6'!DV19","v":{"v":33529099.443392757,"d":"$33,529,099"}},{"$f":"'Trial 6'!DW19","v":{"v":33515572.015903294,"d":"$33,515,572"}},{"$f":"'Trial 6'!DX19","v":{"v":33502108.955466956,"d":"$33,502,109"}},{"$f":"'Trial 6'!DY19","v":{"v":33488646.020398237,"d":"$33,488,646"}},{"$f":"'Trial 6'!DZ19","v":{"v":33475218.803981837,"d":"$33,475,219"}},{"$f":"'Trial 6'!DZ19","v":{"v":33475218.803981837,"d":"$33,475,219"}},{"$f":"'Trial 6'!EB19","v":{"v":33461765.267154947,"d":"$33,461,765"}},{"$f":"'Trial 6'!EC19","v":{"v":33448293.760248914,"d":"$33,448,294"}},{"$f":"'Trial 6'!ED19","v":{"v":33434875.345837418,"d":"$33,434,875"}},{"$f":"'Trial 6'!EE19","v":{"v":33421446.011690304,"d":"$33,421,446"}},{"$f":"'Trial 6'!EF19","v":{"v":33408033.05381002,"d":"$33,408,033"}},{"$f":"'Trial 6'!EG19","v":{"v":33394653.719981678,"d":"$33,394,654"}},{"$f":"'Trial 6'!EH19","v":{"v":33381258.14066035,"d":"$33,381,258"}},{"$f":"'Trial 6'!EI19","v":{"v":33367873.881030902,"d":"$33,367,874"}},{"$f":"'Trial 6'!EJ19","v":{"v":33354473.175149888,"d":"$33,354,473"}},{"$f":"'Trial 6'!EK19","v":{"v":33341082.531947494,"d":"$33,341,083"}},{"$f":"'Trial 6'!EL19","v":{"v":33327753.535098612,"d":"$33,327,754"}},{"$f":"'Trial 6'!EM19","v":{"v":33314509.474009573,"d":"$33,314,509"}},{"$f":"'Trial 6'!EM19","v":{"v":33314509.474009573,"d":"$33,314,509"}}]
[{"$f":"Labels!B102","v":"Trial 07"},{"$f":"'Trial 7'!B19","v":{"v":34645298.42192645,"d":"$34,645,298"}},{"$f":"'Trial 7'!C19","v":{"v":34645298.42192645,"d":"$34,645,298"}},{"$f":"'Trial 7'!D19","v":{"v":34644855.444051616,"d":"$34,644,855"}},{"$f":"'Trial 7'!E19","v":{"v":34644083.063892804,"d":"$34,644,083"}},{"$f":"'Trial 7'!F19","v":{"v":34642974.714726865,"d":"$34,642,975"}},{"$f":"'Trial 7'!G19","v":{"v":34641494.4383782,"d":"$34,641,494"}},{"$f":"'Trial 7'!H19","v":{"v":34639728.319252394,"d":"$34,639,728"}},{"$f":"'Trial 7'!I19","v":{"v":34637687.557154536,"d":"$34,637,688"}},{"$f":"'Trial 7'!J19","v":{"v":34635375.49587171,"d":"$34,635,375"}},{"$f":"'Trial 7'!K19","v":{"v":34632815.75770805,"d":"$34,632,816"}},{"$f":"'Trial 7'!L19","v":{"v":34629922.71103756,"d":"$34,629,923"}},{"$f":"'Trial 7'!M19","v":{"v":34626676.890696995,"d":"$34,626,677"}},{"$f":"'Trial 7'!M19","v":{"v":34626676.890696995,"d":"$34,626,677"}},{"$f":"'Trial 7'!O19","v":{"v":34623125.980857074,"d":"$34,623,126"}},{"$f":"'Trial 7'!P19","v":{"v":34619266.47713891,"d":"$34,619,266"}},{"$f":"'Trial 7'!Q19","v":{"v":34615135.49459439,"d":"$34,615,135"}},{"$f":"'Trial 7'!R19","v":{"v":34610800.71360592,"d":"$34,610,801"}},{"$f":"'Trial 7'!S19","v":{"v":34606261.073790275,"d":"$34,606,261"}},{"$f":"'Trial 7'!T19","v":{"v":34601505.47088074,"d":"$34,601,505"}},{"$f":"'Trial 7'!U19","v":{"v":34596514.52587519,"d":"$34,596,515"}},{"$f":"'Trial 7'!V19","v":{"v":34591330.68101418,"d":"$34,591,331"}},{"$f":"'Trial 7'!W19","v":{"v":34585892.28617897,"d":"$34,585,892"}},{"$f":"'Trial 7'!X19","v":{"v":34580275.81926943,"d":"$34,580,276"}},{"$f":"'Trial 7'!Y19","v":{"v":34574508.87243591,"d":"$34,574,509"}},{"$f":"'Trial 7'!Z19","v":{"v":34568568.01029219,"d":"$34,568,568"}},{"$f":"'Trial 7'!Z19","v":{"v":34568568.01029219,"d":"$34,568,568"}},{"$f":"'Trial 7'!AB19","v":{"v":34562407.21772806,"d":"$34,562,407"}},{"$f":"'Trial 7'!AC19","v":{"v":34555935.8996679,"d":"$34,555,936"}},{"$f":"'Trial 7'!AD19","v":{"v":34549154.26890592,"d":"$34,549,154"}},{"$f":"'Trial 7'!AE19","v":{"v":34542170.8488366,"d":"$34,542,171"}},{"$f":"'Trial 7'!AF19","v":{"v":34535018.249647364,"d":"$34,535,018"}},{"$f":"'Trial 7'!AG19","v":{"v":34527735.01061943,"d":"$34,527,735"}},{"$f":"'Trial 7'!AH19","v":{"v":34520227.23699492,"d":"$34,520,227"}},{"$f":"'Trial 7'!AI19","v":{"v":34512577.63172161,"d":"$34,512,578"}},{"$f":"'Trial 7'!AJ19","v":{"v":34504785.003511935,"d":"$34,504,785"}},{"$f":"'Trial 7'!AK19","v":{"v":34496751.15675534,"d":"$34,496,751"}},{"$f":"'Trial 7'!AL19","v":{"v":34488533.6564636,"d":"$34,488,534"}},{"$f":"'Trial 7'!AM19","v":{"v":34480158.88495251,"d":"$34,480,159"}},{"$f":"'Trial 7'!AM19","v":{"v":34480158.88495251,"d":"$34,480,159"}},{"$f":"'Trial 7'!AO19","v":{"v":34471636.66728631,"d":"$34,471,637"}},{"$f":"'Trial 7'!AP19","v":{"v":34462926.91625874,"d":"$34,462,927"}},{"$f":"'Trial 7'!AQ19","v":{"v":34454007.69621754,"d":"$34,454,008"}},{"$f":"'Trial 7'!AR19","v":{"v":34444933.02990531,"d":"$34,444,933"}},{"$f":"'Trial 7'!AS19","v":{"v":34435772.14742343,"d":"$34,435,772"}},{"$f":"'Trial 7'!AT19","v":{"v":34426523.23014947,"d":"$34,426,523"}},{"$f":"'Trial 7'!AU19","v":{"v":34417236.81672178,"d":"$34,417,237"}},{"$f":"'Trial 7'!AV19","v":{"v":34407775.33962773,"d":"$34,407,775"}},{"$f":"'Trial 7'!AW19","v":{"v":34398176.39967083,"d":"$34,398,176"}},{"$f":"'Trial 7'!AX19","v":{"v":34388441.461466365,"d":"$34,388,441"}},{"$f":"'Trial 7'!AY19","v":{"v":34378547.33766647,"d":"$34,378,547"}},{"$f":"'Trial 7'!AZ19","v":{"v":34368474.99884059,"d":"$34,368,475"}},{"$f":"'Trial 7'!AZ19","v":{"v":34368474.99884059,"d":"$34,368,475"}},{"$f":"'Trial 7'!BB19","v":{"v":34358243.930653915,"d":"$34,358,244"}},{"$f":"'Trial 7'!BC19","v":{"v":34347821.376790844,"d":"$34,347,821"}},{"$f":"'Trial 7'!BD19","v":{"v":34337270.99172051,"d":"$34,337,271"}},{"$f":"'Trial 7'!BE19","v":{"v":34326591.44775167,"d":"$34,326,591"}},{"$f":"'Trial 7'!BF19","v":{"v":34315843.89535154,"d":"$34,315,844"}},{"$f":"'Trial 7'!BG19","v":{"v":34304983.64118202,"d":"$34,304,984"}},{"$f":"'Trial 7'!BH19","v":{"v":34294059.54864378,"d":"$34,294,060"}},{"$f":"'Trial 7'!BI19","v":{"v":34283112.88205611,"d":"$34,283,113"}},{"$f":"'Trial 7'!BJ19","v":{"v":34272019.72246567,"d":"$34,272,020"}},{"$f":"'Trial 7'!BK19","v":{"v":34260838.54386407,"d":"$34,260,839"}},{"$f":"'Trial 7'!BL19","v":{"v":34249541.06284008,"d":"$34,249,541"}},{"$f":"'Trial 7'!BM19","v":{"v":34238086.255294204,"d":"$34,238,086"}},{"$f":"'Trial 7'!BM19","v":{"v":34238086.255294204,"d":"$34,238,086"}},{"$f":"'Trial 7'!BO19","v":{"v":34226527.129845604,"d":"$34,226,527"}},{"$f":"'Trial 7'!BP19","v":{"v":34214931.48717228,"d":"$34,214,931"}},{"$f":"'Trial 7'!BQ19","v":{"v":34203232.31254768,"d":"$34,203,232"}},{"$f":"'Trial 7'!BR19","v":{"v":34191370.091901176,"d":"$34,191,370"}},{"$f":"'Trial 7'!BS19","v":{"v":34179482.54523972,"d":"$34,179,483"}},{"$f":"'Trial 7'!BT19","v":{"v":34167568.388214566,"d":"$34,167,568"}},{"$f":"'Trial 7'!BU19","v":{"v":34155660.780701935,"d":"$34,155,661"}},{"$f":"'Trial 7'!BV19","v":{"v":34143773.33392228,"d":"$34,143,773"}},{"$f":"'Trial 7'!BW19","v":{"v":34131881.80924387,"d":"$34,131,882"}},{"$f":"'Trial 7'!BX19","v":{"v":34119875.80309973,"d":"$34,119,876"}},{"$f":"'Trial 7'!BY19","v":{"v":34107892.91942051,"d":"$34,107,893"}},{"$f":"'Trial 7'!BZ19","v":{"v":34095804.34502214,"d":"$34,095,804"}},{"$f":"'Trial 7'!BZ19","v":{"v":34095804.34502214,"d":"$34,095,804"}},{"$f":"'Trial 7'!CB19","v":{"v":34083578.597043216,"d":"$34,083,579"}},{"$f":"'Trial 7'!CC19","v":{"v":34071184.036177464,"d":"$34,071,184"}},{"$f":"'Trial 7'!CD19","v":{"v":34058733.55758766,"d":"$34,058,734"}},{"$f":"'Trial 7'!CE19","v":{"v":34046281.04977651,"d":"$34,046,281"}},{"$f":"'Trial 7'!CF19","v":{"v":34033835.87776836,"d":"$34,033,836"}},{"$f":"'Trial 7'!CG19","v":{"v":34021231.52945328,"d":"$34,021,232"}},{"$f":"'Trial 7'!CH19","v":{"v":34008552.973240845,"d":"$34,008,553"}},{"$f":"'Trial 7'!CI19","v":{"v":33995883.845260896,"d":"$33,995,884"}},{"$f":"'Trial 7'!CJ19","v":{"v":33983057.215534024,"d":"$33,983,057"}},{"$f":"'Trial 7'!CK19","v":{"v":33970138.48771601,"d":"$33,970,138"}},{"$f":"'Trial 7'!CL19","v":{"v":33957304.173652016,"d":"$33,957,304"}},{"$f":"'Trial 7'!CM19","v":{"v":33944538.561058834,"d":"$33,944,539"}},{"$f":"'Trial 7'!CM19","v":{"v":33944538.561058834,"d":"$33,944,539"}},{"$f":"'Trial 7'!CO19","v":{"v":33931724.75522766,"d":"$33,931,725"}},{"$f":"'Trial 7'!CP19","v":{"v":33918936.12488627,"d":"$33,918,936"}},{"$f":"'Trial 7'!CQ19","v":{"v":33906221.77209282,"d":"$33,906,222"}},{"$f":"'Trial 7'!CR19","v":{"v":33893461.318045974,"d":"$33,893,461"}},{"$f":"'Trial 7'!CS19","v":{"v":33880698.70621871,"d":"$33,880,699"}},{"$f":"'Trial 7'!CT19","v":{"v":33867947.307878315,"d":"$33,867,947"}},{"$f":"'Trial 7'!CU19","v":{"v":33855166.13051521,"d":"$33,855,166"}},{"$f":"'Trial 7'!CV19","v":{"v":33842343.47478344,"d":"$33,842,343"}},{"$f":"'Trial 7'!CW19","v":{"v":33829546.028211325,"d":"$33,829,546"}},{"$f":"'Trial 7'!CX19","v":{"v":33816711.576814696,"d":"$33,816,712"}},{"$f":"'Trial 7'!CY19","v":{"v":33803834.68555838,"d":"$33,803,835"}},{"$f":"'Trial 7'!CZ19","v":{"v":33790843.46152672,"d":"$33,790,843"}},{"$f":"'Trial 7'!CZ19","v":{"v":33790843.46152672,"d":"$33,790,843"}},{"$f":"'Trial 7'!DB19","v":{"v":33777752.74882419,"d":"$33,777,753"}},{"$f":"'Trial 7'!DC19","v":{"v":33764665.997218385,"d":"$33,764,666"}},{"$f":"'Trial 7'!DD19","v":{"v":33751647.91070854,"d":"$33,751,648"}},{"$f":"'Trial 7'!DE19","v":{"v":33738668.47482319,"d":"$33,738,668"}},{"$f":"'Trial 7'!DF19","v":{"v":33725670.67649245,"d":"$33,725,671"}},{"$f":"'Trial 7'!DG19","v":{"v":33712673.53889692,"d":"$33,712,674"}},{"$f":"'Trial 7'!DH19","v":{"v":33699667.65819441,"d":"$33,699,668"}},{"$f":"'Trial 7'!DI19","v":{"v":33686557.16817606,"d":"$33,686,557"}},{"$f":"'Trial 7'!DJ19","v":{"v":33673337.23705782,"d":"$33,673,337"}},{"$f":"'Trial 7'!DK19","v":{"v":33660102.70846551,"d":"$33,660,103"}},{"$f":"'Trial 7'!DL19","v":{"v":33646843.32964958,"d":"$33,646,843"}},{"$f":"'Trial 7'!DM19","v":{"v":33633478.05808525,"d":"$33,633,478"}},{"$f":"'Trial 7'!DM19","v":{"v":33633478.05808525,"d":"$33,633,478"}},{"$f":"'Trial 7'!DO19","v":{"v":33620105.222228624,"d":"$33,620,105"}},{"$f":"'Trial 7'!DP19","v":{"v":33606729.23425715,"d":"$33,606,729"}},{"$f":"'Trial 7'!DQ19","v":{"v":33593287.86726512,"d":"$33,593,288"}},{"$f":"'Trial 7'!DR19","v":{"v":33579827.938375,"d":"$33,579,828"}},{"$f":"'Trial 7'!DS19","v":{"v":33566346.565302245,"d":"$33,566,347"}},{"$f":"'Trial 7'!DT19","v":{"v":33552783.791921023,"d":"$33,552,784"}},{"$f":"'Trial 7'!DU19","v":{"v":33539231.698721804,"d":"$33,539,232"}},{"$f":"'Trial 7'!DV19","v":{"v":33525606.049839087,"d":"$33,525,606"}},{"$f":"'Trial 7'!DW19","v":{"v":33511938.643041346,"d":"$33,511,939"}},{"$f":"'Trial 7'!DX19","v":{"v":33498309.92209178,"d":"$33,498,310"}},{"$f":"'Trial 7'!DY19","v":{"v":33484790.8281451,"d":"$33,484,791"}},{"$f":"'Trial 7'!DZ19","v":{"v":33471173.16946153,"d":"$33,471,173"}},{"$f":"'Trial 7'!DZ19","v":{"v":33471173.16946153,"d":"$33,471,173"}},{"$f":"'Trial 7'!EB19","v":{"v":33457508.81065573,"d":"$33,457,509"}},{"$f":"'Trial 7'!EC19","v":{"v":33443770.923040155,"d":"$33,443,771"}},{"$f":"'Trial 7'!ED19","v":{"v":33430099.575378526,"d":"$33,430,100"}},{"$f":"'Trial 7'!EE19","v":{"v":33416361.368617587,"d":"$33,416,361"}},{"$f":"'Trial 7'!EF19","v":{"v":33402615.84392561,"d":"$33,402,616"}},{"$f":"'Trial 7'!EG19","v":{"v":33388888.314339925,"d":"$33,388,888"}},{"$f":"'Trial 7'!EH19","v":{"v":33375099.185898867,"d":"$33,375,099"}},{"$f":"'Trial 7'!EI19","v":{"v":33361196.284333996,"d":"$33,361,196"}},{"$f":"'Trial 7'!EJ19","v":{"v":33347198.337785818,"d":"$33,347,198"}},{"$f":"'Trial 7'!EK19","v":{"v":33333235.563275963,"d":"$33,333,236"}},{"$f":"'Trial 7'!EL19","v":{"v":33319317.300238494,"d":"$33,319,317"}},{"$f":"'Trial 7'!EM19","v":{"v":33305397.19492676,"d":"$33,305,397"}},{"$f":"'Trial 7'!EM19","v":{"v":33305397.19492676,"d":"$33,305,397"}}]
[{"$f":"Labels!B103","v":"Trial 08"},{"$f":"'Trial 8'!B19","v":{"v":34645298.42192645,"d":"$34,645,298"}},{"$f":"'Trial 8'!C19","v":{"v":34645298.42192645,"d":"$34,645,298"}},{"$f":"'Trial 8'!D19","v":{"v":34644818.9478989,"d":"$34,644,819"}},{"$f":"'Trial 8'!E19","v":{"v":34643941.25214348,"d":"$34,643,941"}},{"$f":"'Trial 8'!F19","v":{"v":34642698.98007875,"d":"$34,642,699"}},{"$f":"'Trial 8'!G19","v":{"v":34641123.0678708,"d":"$34,641,123"}},{"$f":"'Trial 8'!H19","v":{"v":34639313.51305271,"d":"$34,639,314"}},{"$f":"'Trial 8'!I19","v":{"v":34637198.077892326,"d":"$34,637,198"}},{"$f":"'Trial 8'!J19","v":{"v":34634748.00352149,"d":"$34,634,748"}},{"$f":"'Trial 8'!K19","v":{"v":34632019.30099819,"d":"$34,632,019"}},{"$f":"'Trial 8'!L19","v":{"v":34628910.62987789,"d":"$34,628,911"}},{"$f":"'Trial 8'!M19","v":{"v":34625543.40672316,"d":"$34,625,543"}},{"$f":"'Trial 8'!M19","v":{"v":34625543.40672316,"d":"$34,625,543"}},{"$f":"'Trial 8'!O19","v":{"v":34621807.026619695,"d":"$34,621,807"}},{"$f":"'Trial 8'!P19","v":{"v":34617796.51588222,"d":"$34,617,797"}},{"$f":"'Trial 8'!Q19","v":{"v":34613601.08181109,"d":"$34,613,601"}},{"$f":"'Trial 8'!R19","v":{"v":34609081.551652685,"d":"$34,609,082"}},{"$f":"'Trial 8'!S19","v":{"v":34604201.03410282,"d":"$34,604,201"}},{"$f":"'Trial 8'!T19","v":{"v":34599091.12033125,"d":"$34,599,091"}},{"$f":"'Trial 8'!U19","v":{"v":34593736.73275613,"d":"$34,593,737"}},{"$f":"'Trial 8'!V19","v":{"v":34588235.78355255,"d":"$34,588,236"}},{"$f":"'Trial 8'!W19","v":{"v":34582489.912840985,"d":"$34,582,490"}},{"$f":"'Trial 8'!X19","v":{"v":34576521.412589006,"d":"$34,576,521"}},{"$f":"'Trial 8'!Y19","v":{"v":34570413.80760159,"d":"$34,570,414"}},{"$f":"'Trial 8'!Z19","v":{"v":34564034.88060745,"d":"$34,564,035"}},{"$f":"'Trial 8'!Z19","v":{"v":34564034.88060745,"d":"$34,564,035"}},{"$f":"'Trial 8'!AB19","v":{"v":34557365.93399745,"d":"$34,557,366"}},{"$f":"'Trial 8'!AC19","v":{"v":34550450.081058994,"d":"$34,550,450"}},{"$f":"'Trial 8'!AD19","v":{"v":34543336.16947933,"d":"$34,543,336"}},{"$f":"'Trial 8'!AE19","v":{"v":34536035.25339174,"d":"$34,536,035"}},{"$f":"'Trial 8'!AF19","v":{"v":34528509.18470005,"d":"$34,528,509"}},{"$f":"'Trial 8'!AG19","v":{"v":34520787.965976395,"d":"$34,520,788"}},{"$f":"'Trial 8'!AH19","v":{"v":34512832.55924951,"d":"$34,512,833"}},{"$f":"'Trial 8'!AI19","v":{"v":34504666.210901126,"d":"$34,504,666"}},{"$f":"'Trial 8'!AJ19","v":{"v":34496371.93141429,"d":"$34,496,372"}},{"$f":"'Trial 8'!AK19","v":{"v":34487944.16628576,"d":"$34,487,944"}},{"$f":"'Trial 8'!AL19","v":{"v":34479327.216203585,"d":"$34,479,327"}},{"$f":"'Trial 8'!AM19","v":{"v":34470560.11493281,"d":"$34,470,560"}},{"$f":"'Trial 8'!AM19","v":{"v":34470560.11493281,"d":"$34,470,560"}},{"$f":"'Trial 8'!AO19","v":{"v":34461719.839171566,"d":"$34,461,720"}},{"$f":"'Trial 8'!AP19","v":{"v":34452801.83466973,"d":"$34,452,802"}},{"$f":"'Trial 8'!AQ19","v":{"v":34443800.107814476,"d":"$34,443,800"}},{"$f":"'Trial 8'!AR19","v":{"v":34434663.80988296,"d":"$34,434,664"}},{"$f":"'Trial 8'!AS19","v":{"v":34425393.6948226,"d":"$34,425,394"}},{"$f":"'Trial 8'!AT19","v":{"v":34415925.25730729,"d":"$34,415,925"}},{"$f":"'Trial 8'!AU19","v":{"v":34406265.44357372,"d":"$34,406,265"}},{"$f":"'Trial 8'!AV19","v":{"v":34396461.727635786,"d":"$34,396,462"}},{"$f":"'Trial 8'!AW19","v":{"v":34386571.64541323,"d":"$34,386,572"}},{"$f":"'Trial 8'!AX19","v":{"v":34376570.40616371,"d":"$34,376,570"}},{"$f":"'Trial 8'!AY19","v":{"v":34366467.811088175,"d":"$34,366,468"}},{"$f":"'Trial 8'!AZ19","v":{"v":34356258.72467784,"d":"$34,356,259"}},{"$f":"'Trial 8'!AZ19","v":{"v":34356258.72467784,"d":"$34,356,259"}},{"$f":"'Trial 8'!BB19","v":{"v":34345969.93382923,"d":"$34,345,970"}},{"$f":"'Trial 8'!BC19","v":{"v":34335591.83363421,"d":"$34,335,592"}},{"$f":"'Trial 8'!BD19","v":{"v":34325082.98824446,"d":"$34,325,083"}},{"$f":"'Trial 8'!BE19","v":{"v":34314533.468646646,"d":"$34,314,533"}},{"$f":"'Trial 8'!BF19","v":{"v":34303962.98846958,"d":"$34,303,963"}},{"$f":"'Trial 8'!BG19","v":{"v":34293320.51260496,"d":"$34,293,321"}},{"$f":"'Trial 8'!BH19","v":{"v":34282604.44957902,"d":"$34,282,604"}},{"$f":"'Trial 8'!BI19","v":{"v":34271861.33100096,"d":"$34,271,861"}},{"$f":"'Trial 8'!BJ19","v":{"v":34260980.651324816,"d":"$34,260,981"}},{"$f":"'Trial 8'!BK19","v":{"v":34250010.5288663,"d":"$34,250,011"}},{"$f":"'Trial 8'!BL19","v":{"v":34238991.25123538,"d":"$34,238,991"}},{"$f":"'Trial 8'!BM19","v":{"v":34227919.41026653,"d":"$34,227,919"}},{"$f":"'Trial 8'!BM19","v":{"v":34227919.41026653,"d":"$34,227,919"}},{"$f":"'Trial 8'!BO19","v":{"v":34216799.54177377,"d":"$34,216,800"}},{"$f":"'Trial 8'!BP19","v":{"v":34205584.95470524,"d":"$34,205,585"}},{"$f":"'Trial 8'!BQ19","v":{"v":34194334.08838162,"d":"$34,194,334"}},{"$f":"'Trial 8'!BR19","v":{"v":34183083.84411962,"d":"$34,183,084"}},{"$f":"'Trial 8'!BS19","v":{"v":34171810.03000772,"d":"$34,171,810"}},{"$f":"'Trial 8'!BT19","v":{"v":34160565.07159144,"d":"$34,160,565"}},{"$f":"'Trial 8'!BU19","v":{"v":34149277.216242,"d":"$34,149,277"}},{"$f":"'Trial 8'!BV19","v":{"v":34137916.2350187,"d":"$34,137,916"}},{"$f":"'Trial 8'!BW19","v":{"v":34126509.55217512,"d":"$34,126,510"}},{"$f":"'Trial 8'!BX19","v":{"v":34115111.20078092,"d":"$34,115,111"}},{"$f":"'Trial 8'!BY19","v":{"v":34103692.74127949,"d":"$34,103,693"}},{"$f":"'Trial 8'!BZ19","v":{"v":34092253.138897784,"d":"$34,092,253"}},{"$f":"'Trial 8'!BZ19","v":{"v":34092253.138897784,"d":"$34,092,253"}},{"$f":"'Trial 8'!CB19","v":{"v":34080724.68351236,"d":"$34,080,725"}},{"$f":"'Trial 8'!CC19","v":{"v":34069046.8656592,"d":"$34,069,047"}},{"$f":"'Trial 8'!CD19","v":{"v":34057277.74989537,"d":"$34,057,278"}},{"$f":"'Trial 8'!CE19","v":{"v":34045449.69506713,"d":"$34,045,450"}},{"$f":"'Trial 8'!CF19","v":{"v":34033497.07215424,"d":"$34,033,497"}},{"$f":"'Trial 8'!CG19","v":{"v":34021503.060035415,"d":"$34,021,503"}},{"$f":"'Trial 8'!CH19","v":{"v":34009444.73395853,"d":"$34,009,445"}},{"$f":"'Trial 8'!CI19","v":{"v":33997441.98158523,"d":"$33,997,442"}},{"$f":"'Trial 8'!CJ19","v":{"v":33985389.439226925,"d":"$33,985,389"}},{"$f":"'Trial 8'!CK19","v":{"v":33973242.45353196,"d":"$33,973,242"}},{"$f":"'Trial 8'!CL19","v":{"v":33961079.949889615,"d":"$33,961,080"}},{"$f":"'Trial 8'!CM19","v":{"v":33948921.734547734,"d":"$33,948,922"}},{"$f":"'Trial 8'!CM19","v":{"v":33948921.734547734,"d":"$33,948,922"}},{"$f":"'Trial 8'!CO19","v":{"v":33936651.48980192,"d":"$33,936,651"}},{"$f":"'Trial 8'!CP19","v":{"v":33924411.89324947,"d":"$33,924,412"}},{"$f":"'Trial 8'!CQ19","v":{"v":33912205.18816405,"d":"$33,912,205"}},{"$f":"'Trial 8'!CR19","v":{"v":33899965.48499453,"d":"$33,899,965"}},{"$f":"'Trial 8'!CS19","v":{"v":33887718.33740305,"d":"$33,887,718"}},{"$f":"'Trial 8'!CT19","v":{"v":33875458.4595752,"d":"$33,875,458"}},{"$f":"'Trial 8'!CU19","v":{"v":33863031.68047823,"d":"$33,863,032"}},{"$f":"'Trial 8'!CV19","v":{"v":33850554.86554838,"d":"$33,850,555"}},{"$f":"'Trial 8'!CW19","v":{"v":33838102.771279864,"d":"$33,838,103"}},{"$f":"'Trial 8'!CX19","v":{"v":33825609.25711945,"d":"$33,825,609"}},{"$f":"'Trial 8'!CY19","v":{"v":33812965.98583226,"d":"$33,812,966"}},{"$f":"'Trial 8'!CZ19","v":{"v":33800358.898951106,"d":"$33,800,359"}},{"$f":"'Trial 8'!CZ19","v":{"v":33800358.898951106,"d":"$33,800,359"}},{"$f":"'Trial 8'!DB19","v":{"v":33787828.870483056,"d":"$33,787,829"}},{"$f":"'Trial 8'!DC19","v":{"v":33775212.11003194,"d":"$33,775,212"}},{"$f":"'Trial 8'!DD19","v":{"v":33762671.635429785,"d":"$33,762,672"}},{"$f":"'Trial 8'!DE19","v":{"v":33750054.05796099,"d":"$33,750,054"}},{"$f":"'Trial 8'!DF19","v":{"v":33737334.412029706,"d":"$33,737,334"}},{"$f":"'Trial 8'!DG19","v":{"v":33724561.288819686,"d":"$33,724,561"}},{"$f":"'Trial 8'!DH19","v":{"v":33711761.41515656,"d":"$33,711,761"}},{"$f":"'Trial 8'!DI19","v":{"v":33698893.40649926,"d":"$33,698,893"}},{"$f":"'Trial 8'!DJ19","v":{"v":33685986.953281306,"d":"$33,685,987"}},{"$f":"'Trial 8'!DK19","v":{"v":33672981.89553354,"d":"$33,672,982"}},{"$f":"'Trial 8'!DL19","v":{"v":33660055.450503044,"d":"$33,660,055"}},{"$f":"'Trial 8'!DM19","v":{"v":33647074.23951623,"d":"$33,647,074"}},{"$f":"'Trial 8'!DM19","v":{"v":33647074.23951623,"d":"$33,647,074"}},{"$f":"'Trial 8'!DO19","v":{"v":33634158.89024561,"d":"$33,634,159"}},{"$f":"'Trial 8'!DP19","v":{"v":33621199.79453444,"d":"$33,621,200"}},{"$f":"'Trial 8'!DQ19","v":{"v":33608125.787239514,"d":"$33,608,126"}},{"$f":"'Trial 8'!DR19","v":{"v":33594962.08623814,"d":"$33,594,962"}},{"$f":"'Trial 8'!DS19","v":{"v":33581876.78766216,"d":"$33,581,877"}},{"$f":"'Trial 8'!DT19","v":{"v":33568849.34577646,"d":"$33,568,849"}},{"$f":"'Trial 8'!DU19","v":{"v":33555771.732923575,"d":"$33,555,772"}},{"$f":"'Trial 8'!DV19","v":{"v":33542751.99106757,"d":"$33,542,752"}},{"$f":"'Trial 8'!DW19","v":{"v":33529778.85259906,"d":"$33,529,779"}},{"$f":"'Trial 8'!DX19","v":{"v":33516790.676363487,"d":"$33,516,791"}},{"$f":"'Trial 8'!DY19","v":{"v":33503814.256323528,"d":"$33,503,814"}},{"$f":"'Trial 8'!DZ19","v":{"v":33490730.754608843,"d":"$33,490,731"}},{"$f":"'Trial 8'!DZ19","v":{"v":33490730.754608843,"d":"$33,490,731"}},{"$f":"'Trial 8'!EB19","v":{"v":33477649.399665724,"d":"$33,477,649"}},{"$f":"'Trial 8'!EC19","v":{"v":33464547.0331771,"d":"$33,464,547"}},{"$f":"'Trial 8'!ED19","v":{"v":33451332.538655218,"d":"$33,451,333"}},{"$f":"'Trial 8'!EE19","v":{"v":33438015.590594154,"d":"$33,438,016"}},{"$f":"'Trial 8'!EF19","v":{"v":33424718.48829757,"d":"$33,424,718"}},{"$f":"'Trial 8'!EG19","v":{"v":33411371.499675028,"d":"$33,411,371"}},{"$f":"'Trial 8'!EH19","v":{"v":33397965.084301244,"d":"$33,397,965"}},{"$f":"'Trial 8'!EI19","v":{"v":33384551.938468967,"d":"$33,384,552"}},{"$f":"'Trial 8'!EJ19","v":{"v":33371202.27571582,"d":"$33,371,202"}},{"$f":"'Trial 8'!EK19","v":{"v":33357787.796706464,"d":"$33,357,788"}},{"$f":"'Trial 8'!EL19","v":{"v":33344368.881382097,"d":"$33,344,369"}},{"$f":"'Trial 8'!EM19","v":{"v":33330847.485377703,"d":"$33,330,847"}},{"$f":"'Trial 8'!EM19","v":{"v":33330847.485377703,"d":"$33,330,847"}}]
[{"$f":"Labels!C95","v":"Total"},{"$f":"SUM('Trial 1'!B19,'Trial 2'!B19,'Trial 3'!B19,'Trial 4'!B19,'Trial 5'!B19,'Trial 6'!B19,'Trial 7'!B19,'Trial 8'!B19)","v":{"v":277162387.37541157,"d":"$277,162,387"}},{"$f":"SUM('Trial 1'!C19,'Trial 2'!C19,'Trial 3'!C19,'Trial 4'!C19,'Trial 5'!C19,'Trial 6'!C19,'Trial 7'!C19,'Trial 8'!C19)","v":{"v":277162387.37541157,"d":"$277,162,387"}},{"$f":"SUM('Trial 1'!D19,'Trial 2'!D19,'Trial 3'!D19,'Trial 4'!D19,'Trial 5'!D19,'Trial 6'!D19,'Trial 7'!D19,'Trial 8'!D19)","v":{"v":277158874.2308365,"d":"$277,158,874"}},{"$f":"SUM('Trial 1'!E19,'Trial 2'!E19,'Trial 3'!E19,'Trial 4'!E19,'Trial 5'!E19,'Trial 6'!E19,'Trial 7'!E19,'Trial 8'!E19)","v":{"v":277152173.3472943,"d":"$277,152,173"}},{"$f":"SUM('Trial 1'!F19,'Trial 2'!F19,'Trial 3'!F19,'Trial 4'!F19,'Trial 5'!F19,'Trial 6'!F19,'Trial 7'!F19,'Trial 8'!F19)","v":{"v":277142668.2179209,"d":"$277,142,668"}},{"$f":"SUM('Trial 1'!G19,'Trial 2'!G19,'Trial 3'!G19,'Trial 4'!G19,'Trial 5'!G19,'Trial 6'!G19,'Trial 7'!G19,'Trial 8'!G19)","v":{"v":277130557.2262203,"d":"$277,130,557"}},{"$f":"SUM('Trial 1'!H19,'Trial 2'!H19,'Trial 3'!H19,'Trial 4'!H19,'Trial 5'!H19,'Trial 6'!H19,'Trial 7'!H19,'Trial 8'!H19)","v":{"v":277116068.544656,"d":"$277,116,069"}},{"$f":"SUM('Trial 1'!I19,'Trial 2'!I19,'Trial 3'!I19,'Trial 4'!I19,'Trial 5'!I19,'Trial 6'!I19,'Trial 7'!I19,'Trial 8'!I19)","v":{"v":277099062.5495557,"d":"$277,099,063"}},{"$f":"SUM('Trial 1'!J19,'Trial 2'!J19,'Trial 3'!J19,'Trial 4'!J19,'Trial 5'!J19,'Trial 6'!J19,'Trial 7'!J19,'Trial 8'!J19)","v":{"v":277079330.7505169,"d":"$277,079,331"}},{"$f":"SUM('Trial 1'!K19,'Trial 2'!K19,'Trial 3'!K19,'Trial 4'!K19,'Trial 5'!K19,'Trial 6'!K19,'Trial 7'!K19,'Trial 8'!K19)","v":{"v":277057081.48252803,"d":"$277,057,081"}},{"$f":"SUM('Trial 1'!L19,'Trial 2'!L19,'Trial 3'!L19,'Trial 4'!L19,'Trial 5'!L19,'Trial 6'!L19,'Trial 7'!L19,'Trial 8'!L19)","v":{"v":277032407.63191,"d":"$277,032,408"}},{"$f":"SUM('Trial 1'!M19,'Trial 2'!M19,'Trial 3'!M19,'Trial 4'!M19,'Trial 5'!M19,'Trial 6'!M19,'Trial 7'!M19,'Trial 8'!M19)","v":{"v":277005378.5520606,"d":"$277,005,379"}},{"$f":"M141","v":{"v":277005378.5520606,"d":"$277,005,379"}},{"$f":"SUM('Trial 1'!O19,'Trial 2'!O19,'Trial 3'!O19,'Trial 4'!O19,'Trial 5'!O19,'Trial 6'!O19,'Trial 7'!O19,'Trial 8'!O19)","v":{"v":276976028.2499127,"d":"$276,976,028"}},{"$f":"SUM('Trial 1'!P19,'Trial 2'!P19,'Trial 3'!P19,'Trial 4'!P19,'Trial 5'!P19,'Trial 6'!P19,'Trial 7'!P19,'Trial 8'!P19)","v":{"v":276944329.2017861,"d":"$276,944,329"}},{"$f":"SUM('Trial 1'!Q19,'Trial 2'!Q19,'Trial 3'!Q19,'Trial 4'!Q19,'Trial 5'!Q19,'Trial 6'!Q19,'Trial 7'!Q19,'Trial 8'!Q19)","v":{"v":276910523.2919546,"d":"$276,910,523"}},{"$f":"SUM('Trial 1'!R19,'Trial 2'!R19,'Trial 3'!R19,'Trial 4'!R19,'Trial 5'!R19,'Trial 6'!R19,'Trial 7'!R19,'Trial 8'!R19)","v":{"v":276874618.70144135,"d":"$276,874,619"}},{"$f":"SUM('Trial 1'!S19,'Trial 2'!S19,'Trial 3'!S19,'Trial 4'!S19,'Trial 5'!S19,'Trial 6'!S19,'Trial 7'!S19,'Trial 8'!S19)","v":{"v":276836742.52892965,"d":"$276,836,743"}},{"$f":"SUM('Trial 1'!T19,'Trial 2'!T19,'Trial 3'!T19,'Trial 4'!T19,'Trial 5'!T19,'Trial 6'!T19,'Trial 7'!T19,'Trial 8'!T19)","v":{"v":276797019.9464214,"d":"$276,797,020"}},{"$f":"SUM('Trial 1'!U19,'Trial 2'!U19,'Trial 3'!U19,'Trial 4'!U19,'Trial 5'!U19,'Trial 6'!U19,'Trial 7'!U19,'Trial 8'!U19)","v":{"v":276754909.7744791,"d":"$276,754,910"}},{"$f":"SUM('Trial 1'!V19,'Trial 2'!V19,'Trial 3'!V19,'Trial 4'!V19,'Trial 5'!V19,'Trial 6'!V19,'Trial 7'!V19,'Trial 8'!V19)","v":{"v":276710983.48790574,"d":"$276,710,983"}},{"$f":"SUM('Trial 1'!W19,'Trial 2'!W19,'Trial 3'!W19,'Trial 4'!W19,'Trial 5'!W19,'Trial 6'!W19,'Trial 7'!W19,'Trial 8'!W19)","v":{"v":276664937.762555,"d":"$276,664,938"}},{"$f":"SUM('Trial 1'!X19,'Trial 2'!X19,'Trial 3'!X19,'Trial 4'!X19,'Trial 5'!X19,'Trial 6'!X19,'Trial 7'!X19,'Trial 8'!X19)","v":{"v":276616874.4823309,"d":"$276,616,874"}},{"$f":"SUM('Trial 1'!Y19,'Trial 2'!Y19,'Trial 3'!Y19,'Trial 4'!Y19,'Trial 5'!Y19,'Trial 6'!Y19,'Trial 7'!Y19,'Trial 8'!Y19)","v":{"v":276567267.0624346,"d":"$276,567,267"}},{"$f":"SUM('Trial 1'!Z19,'Trial 2'!Z19,'Trial 3'!Z19,'Trial 4'!Z19,'Trial 5'!Z19,'Trial 6'!Z19,'Trial 7'!Z19,'Trial 8'!Z19)","v":{"v":276515825.28628856,"d":"$276,515,825"}},{"$f":"Z141","v":{"v":276515825.28628856,"d":"$276,515,825"}},{"$f":"SUM('Trial 1'!AB19,'Trial 2'!AB19,'Trial 3'!AB19,'Trial 4'!AB19,'Trial 5'!AB19,'Trial 6'!AB19,'Trial 7'!AB19,'Trial 8'!AB19)","v":{"v":276462630.4337465,"d":"$276,462,630"}},{"$f":"SUM('Trial 1'!AC19,'Trial 2'!AC19,'Trial 3'!AC19,'Trial 4'!AC19,'Trial 5'!AC19,'Trial 6'!AC19,'Trial 7'!AC19,'Trial 8'!AC19)","v":{"v":276407396.517823,"d":"$276,407,397"}},{"$f":"SUM('Trial 1'!AD19,'Trial 2'!AD19,'Trial 3'!AD19,'Trial 4'!AD19,'Trial 5'!AD19,'Trial 6'!AD19,'Trial 7'!AD19,'Trial 8'!AD19)","v":{"v":276350568.06447095,"d":"$276,350,568"}},{"$f":"SUM('Trial 1'!AE19,'Trial 2'!AE19,'Trial 3'!AE19,'Trial 4'!AE19,'Trial 5'!AE19,'Trial 6'!AE19,'Trial 7'!AE19,'Trial 8'!AE19)","v":{"v":276292339.14799356,"d":"$276,292,339"}},{"$f":"SUM('Trial 1'!AF19,'Trial 2'!AF19,'Trial 3'!AF19,'Trial 4'!AF19,'Trial 5'!AF19,'Trial 6'!AF19,'Trial 7'!AF19,'Trial 8'!AF19)","v":{"v":276232639.65467197,"d":"$276,232,640"}},{"$f":"SUM('Trial 1'!AG19,'Trial 2'!AG19,'Trial 3'!AG19,'Trial 4'!AG19,'Trial 5'!AG19,'Trial 6'!AG19,'Trial 7'!AG19,'Trial 8'!AG19)","v":{"v":276171462.01037836,"d":"$276,171,462"}},{"$f":"SUM('Trial 1'!AH19,'Trial 2'!AH19,'Trial 3'!AH19,'Trial 4'!AH19,'Trial 5'!AH19,'Trial 6'!AH19,'Trial 7'!AH19,'Trial 8'!AH19)","v":{"v":276108599.83797604,"d":"$276,108,600"}},{"$f":"SUM('Trial 1'!AI19,'Trial 2'!AI19,'Trial 3'!AI19,'Trial 4'!AI19,'Trial 5'!AI19,'Trial 6'!AI19,'Trial 7'!AI19,'Trial 8'!AI19)","v":{"v":276044445.74214613,"d":"$276,044,446"}},{"$f":"SUM('Trial 1'!AJ19,'Trial 2'!AJ19,'Trial 3'!AJ19,'Trial 4'!AJ19,'Trial 5'!AJ19,'Trial 6'!AJ19,'Trial 7'!AJ19,'Trial 8'!AJ19)","v":{"v":275979177.9464545,"d":"$275,979,178"}},{"$f":"SUM('Trial 1'!AK19,'Trial 2'!AK19,'Trial 3'!AK19,'Trial 4'!AK19,'Trial 5'!AK19,'Trial 6'!AK19,'Trial 7'!AK19,'Trial 8'!AK19)","v":{"v":275912321.1700437,"d":"$275,912,321"}},{"$f":"SUM('Trial 1'!AL19,'Trial 2'!AL19,'Trial 3'!AL19,'Trial 4'!AL19,'Trial 5'!AL19,'Trial 6'!AL19,'Trial 7'!AL19,'Trial 8'!AL19)","v":{"v":275844226.20459473,"d":"$275,844,226"}},{"$f":"SUM('Trial 1'!AM19,'Trial 2'!AM19,'Trial 3'!AM19,'Trial 4'!AM19,'Trial 5'!AM19,'Trial 6'!AM19,'Trial 7'!AM19,'Trial 8'!AM19)","v":{"v":275774996.9056494,"d":"$275,774,997"}},{"$f":"AM141","v":{"v":275774996.9056494,"d":"$275,774,997"}},{"$f":"SUM('Trial 1'!AO19,'Trial 2'!AO19,'Trial 3'!AO19,'Trial 4'!AO19,'Trial 5'!AO19,'Trial 6'!AO19,'Trial 7'!AO19,'Trial 8'!AO19)","v":{"v":275704720.7366254,"d":"$275,704,721"}},{"$f":"SUM('Trial 1'!AP19,'Trial 2'!AP19,'Trial 3'!AP19,'Trial 4'!AP19,'Trial 5'!AP19,'Trial 6'!AP19,'Trial 7'!AP19,'Trial 8'!AP19)","v":{"v":275633105.41452765,"d":"$275,633,105"}},{"$f":"SUM('Trial 1'!AQ19,'Trial 2'!AQ19,'Trial 3'!AQ19,'Trial 4'!AQ19,'Trial 5'!AQ19,'Trial 6'!AQ19,'Trial 7'!AQ19,'Trial 8'!AQ19)","v":{"v":275560361.4321605,"d":"$275,560,361"}},{"$f":"SUM('Trial 1'!AR19,'Trial 2'!AR19,'Trial 3'!AR19,'Trial 4'!AR19,'Trial 5'!AR19,'Trial 6'!AR19,'Trial 7'!AR19,'Trial 8'!AR19)","v":{"v":275486714.5247373,"d":"$275,486,715"}},{"$f":"SUM('Trial 1'!AS19,'Trial 2'!AS19,'Trial 3'!AS19,'Trial 4'!AS19,'Trial 5'!AS19,'Trial 6'!AS19,'Trial 7'!AS19,'Trial 8'!AS19)","v":{"v":275411834.26454276,"d":"$275,411,834"}},{"$f":"SUM('Trial 1'!AT19,'Trial 2'!AT19,'Trial 3'!AT19,'Trial 4'!AT19,'Trial 5'!AT19,'Trial 6'!AT19,'Trial 7'!AT19,'Trial 8'!AT19)","v":{"v":275335878.1801493,"d":"$275,335,878"}},{"$f":"SUM('Trial 1'!AU19,'Trial 2'!AU19,'Trial 3'!AU19,'Trial 4'!AU19,'Trial 5'!AU19,'Trial 6'!AU19,'Trial 7'!AU19,'Trial 8'!AU19)","v":{"v":275259079.5197749,"d":"$275,259,080"}},{"$f":"SUM('Trial 1'!AV19,'Trial 2'!AV19,'Trial 3'!AV19,'Trial 4'!AV19,'Trial 5'!AV19,'Trial 6'!AV19,'Trial 7'!AV19,'Trial 8'!AV19)","v":{"v":275181261.793044,"d":"$275,181,262"}},{"$f":"SUM('Trial 1'!AW19,'Trial 2'!AW19,'Trial 3'!AW19,'Trial 4'!AW19,'Trial 5'!AW19,'Trial 6'!AW19,'Trial 7'!AW19,'Trial 8'!AW19)","v":{"v":275102396.1645943,"d":"$275,102,396"}},{"$f":"SUM('Trial 1'!AX19,'Trial 2'!AX19,'Trial 3'!AX19,'Trial 4'!AX19,'Trial 5'!AX19,'Trial 6'!AX19,'Trial 7'!AX19,'Trial 8'!AX19)","v":{"v":275022607.43490666,"d":"$275,022,607"}},{"$f":"SUM('Trial 1'!AY19,'Trial 2'!AY19,'Trial 3'!AY19,'Trial 4'!AY19,'Trial 5'!AY19,'Trial 6'!AY19,'Trial 7'!AY19,'Trial 8'!AY19)","v":{"v":274941700.62332916,"d":"$274,941,701"}},{"$f":"SUM('Trial 1'!AZ19,'Trial 2'!AZ19,'Trial 3'!AZ19,'Trial 4'!AZ19,'Trial 5'!AZ19,'Trial 6'!AZ19,'Trial 7'!AZ19,'Trial 8'!AZ19)","v":{"v":274859837.4758105,"d":"$274,859,837"}},{"$f":"AZ141","v":{"v":274859837.4758105,"d":"$274,859,837"}},{"$f":"SUM('Trial 1'!BB19,'Trial 2'!BB19,'Trial 3'!BB19,'Trial 4'!BB19,'Trial 5'!BB19,'Trial 6'!BB19,'Trial 7'!BB19,'Trial 8'!BB19)","v":{"v":274777139.3765753,"d":"$274,777,139"}},{"$f":"SUM('Trial 1'!BC19,'Trial 2'!BC19,'Trial 3'!BC19,'Trial 4'!BC19,'Trial 5'!BC19,'Trial 6'!BC19,'Trial 7'!BC19,'Trial 8'!BC19)","v":{"v":274693349.3876256,"d":"$274,693,349"}},{"$f":"SUM('Trial 1'!BD19,'Trial 2'!BD19,'Trial 3'!BD19,'Trial 4'!BD19,'Trial 5'!BD19,'Trial 6'!BD19,'Trial 7'!BD19,'Trial 8'!BD19)","v":{"v":274608533.29971135,"d":"$274,608,533"}},{"$f":"SUM('Trial 1'!BE19,'Trial 2'!BE19,'Trial 3'!BE19,'Trial 4'!BE19,'Trial 5'!BE19,'Trial 6'!BE19,'Trial 7'!BE19,'Trial 8'!BE19)","v":{"v":274522870.75821805,"d":"$274,522,871"}},{"$f":"SUM('Trial 1'!BF19,'Trial 2'!BF19,'Trial 3'!BF19,'Trial 4'!BF19,'Trial 5'!BF19,'Trial 6'!BF19,'Trial 7'!BF19,'Trial 8'!BF19)","v":{"v":274436450.6550134,"d":"$274,436,451"}},{"$f":"SUM('Trial 1'!BG19,'Trial 2'!BG19,'Trial 3'!BG19,'Trial 4'!BG19,'Trial 5'!BG19,'Trial 6'!BG19,'Trial 7'!BG19,'Trial 8'!BG19)","v":{"v":274349233.2473669,"d":"$274,349,233"}},{"$f":"SUM('Trial 1'!BH19,'Trial 2'!BH19,'Trial 3'!BH19,'Trial 4'!BH19,'Trial 5'!BH19,'Trial 6'!BH19,'Trial 7'!BH19,'Trial 8'!BH19)","v":{"v":274261372.067139,"d":"$274,261,372"}},{"$f":"SUM('Trial 1'!BI19,'Trial 2'!BI19,'Trial 3'!BI19,'Trial 4'!BI19,'Trial 5'!BI19,'Trial 6'!BI19,'Trial 7'!BI19,'Trial 8'!BI19)","v":{"v":274172885.1108654,"d":"$274,172,885"}},{"$f":"SUM('Trial 1'!BJ19,'Trial 2'!BJ19,'Trial 3'!BJ19,'Trial 4'!BJ19,'Trial 5'!BJ19,'Trial 6'!BJ19,'Trial 7'!BJ19,'Trial 8'!BJ19)","v":{"v":274083484.9951099,"d":"$274,083,485"}},{"$f":"SUM('Trial 1'!BK19,'Trial 2'!BK19,'Trial 3'!BK19,'Trial 4'!BK19,'Trial 5'!BK19,'Trial 6'!BK19,'Trial 7'!BK19,'Trial 8'!BK19)","v":{"v":273993323.08301187,"d":"$273,993,323"}},{"$f":"SUM('Trial 1'!BL19,'Trial 2'!BL19,'Trial 3'!BL19,'Trial 4'!BL19,'Trial 5'!BL19,'Trial 6'!BL19,'Trial 7'!BL19,'Trial 8'!BL19)","v":{"v":273902632.3629203,"d":"$273,902,632"}},{"$f":"SUM('Trial 1'!BM19,'Trial 2'!BM19,'Trial 3'!BM19,'Trial 4'!BM19,'Trial 5'!BM19,'Trial 6'!BM19,'Trial 7'!BM19,'Trial 8'!BM19)","v":{"v":273811257.5068154,"d":"$273,811,258"}},{"$f":"BM141","v":{"v":273811257.5068154,"d":"$273,811,258"}},{"$f":"SUM('Trial 1'!BO19,'Trial 2'!BO19,'Trial 3'!BO19,'Trial 4'!BO19,'Trial 5'!BO19,'Trial 6'!BO19,'Trial 7'!BO19,'Trial 8'!BO19)","v":{"v":273719393.2536825,"d":"$273,719,393"}},{"$f":"SUM('Trial 1'!BP19,'Trial 2'!BP19,'Trial 3'!BP19,'Trial 4'!BP19,'Trial 5'!BP19,'Trial 6'!BP19,'Trial 7'!BP19,'Trial 8'!BP19)","v":{"v":273626906.6504209,"d":"$273,626,907"}},{"$f":"SUM('Trial 1'!BQ19,'Trial 2'!BQ19,'Trial 3'!BQ19,'Trial 4'!BQ19,'Trial 5'!BQ19,'Trial 6'!BQ19,'Trial 7'!BQ19,'Trial 8'!BQ19)","v":{"v":273533798.9725542,"d":"$273,533,799"}},{"$f":"SUM('Trial 1'!BR19,'Trial 2'!BR19,'Trial 3'!BR19,'Trial 4'!BR19,'Trial 5'!BR19,'Trial 6'!BR19,'Trial 7'!BR19,'Trial 8'!BR19)","v":{"v":273440185.18632764,"d":"$273,440,185"}},{"$f":"SUM('Trial 1'!BS19,'Trial 2'!BS19,'Trial 3'!BS19,'Trial 4'!BS19,'Trial 5'!BS19,'Trial 6'!BS19,'Trial 7'!BS19,'Trial 8'!BS19)","v":{"v":273346241.27356136,"d":"$273,346,241"}},{"$f":"SUM('Trial 1'!BT19,'Trial 2'!BT19,'Trial 3'!BT19,'Trial 4'!BT19,'Trial 5'!BT19,'Trial 6'!BT19,'Trial 7'!BT19,'Trial 8'!BT19)","v":{"v":273251924.7326735,"d":"$273,251,925"}},{"$f":"SUM('Trial 1'!BU19,'Trial 2'!BU19,'Trial 3'!BU19,'Trial 4'!BU19,'Trial 5'!BU19,'Trial 6'!BU19,'Trial 7'!BU19,'Trial 8'!BU19)","v":{"v":273156988.231997,"d":"$273,156,988"}},{"$f":"SUM('Trial 1'!BV19,'Trial 2'!BV19,'Trial 3'!BV19,'Trial 4'!BV19,'Trial 5'!BV19,'Trial 6'!BV19,'Trial 7'!BV19,'Trial 8'!BV19)","v":{"v":273061839.9951968,"d":"$273,061,840"}},{"$f":"SUM('Trial 1'!BW19,'Trial 2'!BW19,'Trial 3'!BW19,'Trial 4'!BW19,'Trial 5'!BW19,'Trial 6'!BW19,'Trial 7'!BW19,'Trial 8'!BW19)","v":{"v":272966072.85660994,"d":"$272,966,073"}},{"$f":"SUM('Trial 1'!BX19,'Trial 2'!BX19,'Trial 3'!BX19,'Trial 4'!BX19,'Trial 5'!BX19,'Trial 6'!BX19,'Trial 7'!BX19,'Trial 8'!BX19)","v":{"v":272869803.84913,"d":"$272,869,804"}},{"$f":"SUM('Trial 1'!BY19,'Trial 2'!BY19,'Trial 3'!BY19,'Trial 4'!BY19,'Trial 5'!BY19,'Trial 6'!BY19,'Trial 7'!BY19,'Trial 8'!BY19)","v":{"v":272773302.9144728,"d":"$272,773,303"}},{"$f":"SUM('Trial 1'!BZ19,'Trial 2'!BZ19,'Trial 3'!BZ19,'Trial 4'!BZ19,'Trial 5'!BZ19,'Trial 6'!BZ19,'Trial 7'!BZ19,'Trial 8'!BZ19)","v":{"v":272676207.7439498,"d":"$272,676,208"}},{"$f":"BZ141","v":{"v":272676207.7439498,"d":"$272,676,208"}},{"$f":"SUM('Trial 1'!CB19,'Trial 2'!CB19,'Trial 3'!CB19,'Trial 4'!CB19,'Trial 5'!CB19,'Trial 6'!CB19,'Trial 7'!CB19,'Trial 8'!CB19)","v":{"v":272578865.2092887,"d":"$272,578,865"}},{"$f":"SUM('Trial 1'!CC19,'Trial 2'!CC19,'Trial 3'!CC19,'Trial 4'!CC19,'Trial 5'!CC19,'Trial 6'!CC19,'Trial 7'!CC19,'Trial 8'!CC19)","v":{"v":272481118.4005363,"d":"$272,481,118"}},{"$f":"SUM('Trial 1'!CD19,'Trial 2'!CD19,'Trial 3'!CD19,'Trial 4'!CD19,'Trial 5'!CD19,'Trial 6'!CD19,'Trial 7'!CD19,'Trial 8'!CD19)","v":{"v":272382929.9103042,"d":"$272,382,930"}},{"$f":"SUM('Trial 1'!CE19,'Trial 2'!CE19,'Trial 3'!CE19,'Trial 4'!CE19,'Trial 5'!CE19,'Trial 6'!CE19,'Trial 7'!CE19,'Trial 8'!CE19)","v":{"v":272284278.86106855,"d":"$272,284,279"}},{"$f":"SUM('Trial 1'!CF19,'Trial 2'!CF19,'Trial 3'!CF19,'Trial 4'!CF19,'Trial 5'!CF19,'Trial 6'!CF19,'Trial 7'!CF19,'Trial 8'!CF19)","v":{"v":272185356.3885285,"d":"$272,185,356"}},{"$f":"SUM('Trial 1'!CG19,'Trial 2'!CG19,'Trial 3'!CG19,'Trial 4'!CG19,'Trial 5'!CG19,'Trial 6'!CG19,'Trial 7'!CG19,'Trial 8'!CG19)","v":{"v":272085900.0563807,"d":"$272,085,900"}},{"$f":"SUM('Trial 1'!CH19,'Trial 2'!CH19,'Trial 3'!CH19,'Trial 4'!CH19,'Trial 5'!CH19,'Trial 6'!CH19,'Trial 7'!CH19,'Trial 8'!CH19)","v":{"v":271986064.57251096,"d":"$271,986,065"}},{"$f":"SUM('Trial 1'!CI19,'Trial 2'!CI19,'Trial 3'!CI19,'Trial 4'!CI19,'Trial 5'!CI19,'Trial 6'!CI19,'Trial 7'!CI19,'Trial 8'!CI19)","v":{"v":271886308.51220703,"d":"$271,886,309"}},{"$f":"SUM('Trial 1'!CJ19,'Trial 2'!CJ19,'Trial 3'!CJ19,'Trial 4'!CJ19,'Trial 5'!CJ19,'Trial 6'!CJ19,'Trial 7'!CJ19,'Trial 8'!CJ19)","v":{"v":271786266.61049277,"d":"$271,786,267"}},{"$f":"SUM('Trial 1'!CK19,'Trial 2'!CK19,'Trial 3'!CK19,'Trial 4'!CK19,'Trial 5'!CK19,'Trial 6'!CK19,'Trial 7'!CK19,'Trial 8'!CK19)","v":{"v":271686035.61973685,"d":"$271,686,036"}},{"$f":"SUM('Trial 1'!CL19,'Trial 2'!CL19,'Trial 3'!CL19,'Trial 4'!CL19,'Trial 5'!CL19,'Trial 6'!CL19,'Trial 7'!CL19,'Trial 8'!CL19)","v":{"v":271585557.9315592,"d":"$271,585,558"}},{"$f":"SUM('Trial 1'!CM19,'Trial 2'!CM19,'Trial 3'!CM19,'Trial 4'!CM19,'Trial 5'!CM19,'Trial 6'!CM19,'Trial 7'!CM19,'Trial 8'!CM19)","v":{"v":271485049.36358774,"d":"$271,485,049"}},{"$f":"CM141","v":{"v":271485049.36358774,"d":"$271,485,049"}},{"$f":"SUM('Trial 1'!CO19,'Trial 2'!CO19,'Trial 3'!CO19,'Trial 4'!CO19,'Trial 5'!CO19,'Trial 6'!CO19,'Trial 7'!CO19,'Trial 8'!CO19)","v":{"v":271384190.8293967,"d":"$271,384,191"}},{"$f":"SUM('Trial 1'!CP19,'Trial 2'!CP19,'Trial 3'!CP19,'Trial 4'!CP19,'Trial 5'!CP19,'Trial 6'!CP19,'Trial 7'!CP19,'Trial 8'!CP19)","v":{"v":271283277.5105082,"d":"$271,283,278"}},{"$f":"SUM('Trial 1'!CQ19,'Trial 2'!CQ19,'Trial 3'!CQ19,'Trial 4'!CQ19,'Trial 5'!CQ19,'Trial 6'!CQ19,'Trial 7'!CQ19,'Trial 8'!CQ19)","v":{"v":271182180.79130924,"d":"$271,182,181"}},{"$f":"SUM('Trial 1'!CR19,'Trial 2'!CR19,'Trial 3'!CR19,'Trial 4'!CR19,'Trial 5'!CR19,'Trial 6'!CR19,'Trial 7'!CR19,'Trial 8'!CR19)","v":{"v":271080917.8265913,"d":"$271,080,918"}},{"$f":"SUM('Trial 1'!CS19,'Trial 2'!CS19,'Trial 3'!CS19,'Trial 4'!CS19,'Trial 5'!CS19,'Trial 6'!CS19,'Trial 7'!CS19,'Trial 8'!CS19)","v":{"v":270979470.67097205,"d":"$270,979,471"}},{"$f":"SUM('Trial 1'!CT19,'Trial 2'!CT19,'Trial 3'!CT19,'Trial 4'!CT19,'Trial 5'!CT19,'Trial 6'!CT19,'Trial 7'!CT19,'Trial 8'!CT19)","v":{"v":270877757.05522186,"d":"$270,877,757"}},{"$f":"SUM('Trial 1'!CU19,'Trial 2'!CU19,'Trial 3'!CU19,'Trial 4'!CU19,'Trial 5'!CU19,'Trial 6'!CU19,'Trial 7'!CU19,'Trial 8'!CU19)","v":{"v":270775445.592053,"d":"$270,775,446"}},{"$f":"SUM('Trial 1'!CV19,'Trial 2'!CV19,'Trial 3'!CV19,'Trial 4'!CV19,'Trial 5'!CV19,'Trial 6'!CV19,'Trial 7'!CV19,'Trial 8'!CV19)","v":{"v":270672712.1491452,"d":"$270,672,712"}},{"$f":"SUM('Trial 1'!CW19,'Trial 2'!CW19,'Trial 3'!CW19,'Trial 4'!CW19,'Trial 5'!CW19,'Trial 6'!CW19,'Trial 7'!CW19,'Trial 8'!CW19)","v":{"v":270570092.35907036,"d":"$270,570,092"}},{"$f":"SUM('Trial 1'!CX19,'Trial 2'!CX19,'Trial 3'!CX19,'Trial 4'!CX19,'Trial 5'!CX19,'Trial 6'!CX19,'Trial 7'!CX19,'Trial 8'!CX19)","v":{"v":270467165.1606661,"d":"$270,467,165"}},{"$f":"SUM('Trial 1'!CY19,'Trial 2'!CY19,'Trial 3'!CY19,'Trial 4'!CY19,'Trial 5'!CY19,'Trial 6'!CY19,'Trial 7'!CY19,'Trial 8'!CY19)","v":{"v":270363970.1159805,"d":"$270,363,970"}},{"$f":"SUM('Trial 1'!CZ19,'Trial 2'!CZ19,'Trial 3'!CZ19,'Trial 4'!CZ19,'Trial 5'!CZ19,'Trial 6'!CZ19,'Trial 7'!CZ19,'Trial 8'!CZ19)","v":{"v":270260450.35953534,"d":"$270,260,450"}},{"$f":"CZ141","v":{"v":270260450.35953534,"d":"$270,260,450"}},{"$f":"SUM('Trial 1'!DB19,'Trial 2'!DB19,'Trial 3'!DB19,'Trial 4'!DB19,'Trial 5'!DB19,'Trial 6'!DB19,'Trial 7'!DB19,'Trial 8'!DB19)","v":{"v":270156819.6975866,"d":"$270,156,820"}},{"$f":"SUM('Trial 1'!DC19,'Trial 2'!DC19,'Trial 3'!DC19,'Trial 4'!DC19,'Trial 5'!DC19,'Trial 6'!DC19,'Trial 7'!DC19,'Trial 8'!DC19)","v":{"v":270052903.45985025,"d":"$270,052,903"}},{"$f":"SUM('Trial 1'!DD19,'Trial 2'!DD19,'Trial 3'!DD19,'Trial 4'!DD19,'Trial 5'!DD19,'Trial 6'!DD19,'Trial 7'!DD19,'Trial 8'!DD19)","v":{"v":269948922.8313896,"d":"$269,948,923"}},{"$f":"SUM('Trial 1'!DE19,'Trial 2'!DE19,'Trial 3'!DE19,'Trial 4'!DE19,'Trial 5'!DE19,'Trial 6'!DE19,'Trial 7'!DE19,'Trial 8'!DE19)","v":{"v":269844550.1996328,"d":"$269,844,550"}},{"$f":"SUM('Trial 1'!DF19,'Trial 2'!DF19,'Trial 3'!DF19,'Trial 4'!DF19,'Trial 5'!DF19,'Trial 6'!DF19,'Trial 7'!DF19,'Trial 8'!DF19)","v":{"v":269739905.6894342,"d":"$269,739,906"}},{"$f":"SUM('Trial 1'!DG19,'Trial 2'!DG19,'Trial 3'!DG19,'Trial 4'!DG19,'Trial 5'!DG19,'Trial 6'!DG19,'Trial 7'!DG19,'Trial 8'!DG19)","v":{"v":269635179.5632443,"d":"$269,635,180"}},{"$f":"SUM('Trial 1'!DH19,'Trial 2'!DH19,'Trial 3'!DH19,'Trial 4'!DH19,'Trial 5'!DH19,'Trial 6'!DH19,'Trial 7'!DH19,'Trial 8'!DH19)","v":{"v":269530262.9277693,"d":"$269,530,263"}},{"$f":"SUM('Trial 1'!DI19,'Trial 2'!DI19,'Trial 3'!DI19,'Trial 4'!DI19,'Trial 5'!DI19,'Trial 6'!DI19,'Trial 7'!DI19,'Trial 8'!DI19)","v":{"v":269425112.50630945,"d":"$269,425,113"}},{"$f":"SUM('Trial 1'!DJ19,'Trial 2'!DJ19,'Trial 3'!DJ19,'Trial 4'!DJ19,'Trial 5'!DJ19,'Trial 6'!DJ19,'Trial 7'!DJ19,'Trial 8'!DJ19)","v":{"v":269319702.1804138,"d":"$269,319,702"}},{"$f":"SUM('Trial 1'!DK19,'Trial 2'!DK19,'Trial 3'!DK19,'Trial 4'!DK19,'Trial 5'!DK19,'Trial 6'!DK19,'Trial 7'!DK19,'Trial 8'!DK19)","v":{"v":269213990.19962674,"d":"$269,213,990"}},{"$f":"SUM('Trial 1'!DL19,'Trial 2'!DL19,'Trial 3'!DL19,'Trial 4'!DL19,'Trial 5'!DL19,'Trial 6'!DL19,'Trial 7'!DL19,'Trial 8'!DL19)","v":{"v":269108118.4325185,"d":"$269,108,118"}},{"$f":"SUM('Trial 1'!DM19,'Trial 2'!DM19,'Trial 3'!DM19,'Trial 4'!DM19,'Trial 5'!DM19,'Trial 6'!DM19,'Trial 7'!DM19,'Trial 8'!DM19)","v":{"v":269002056.3023726,"d":"$269,002,056"}},{"$f":"DM141","v":{"v":269002056.3023726,"d":"$269,002,056"}},{"$f":"SUM('Trial 1'!DO19,'Trial 2'!DO19,'Trial 3'!DO19,'Trial 4'!DO19,'Trial 5'!DO19,'Trial 6'!DO19,'Trial 7'!DO19,'Trial 8'!DO19)","v":{"v":268895698.2114356,"d":"$268,895,698"}},{"$f":"SUM('Trial 1'!DP19,'Trial 2'!DP19,'Trial 3'!DP19,'Trial 4'!DP19,'Trial 5'!DP19,'Trial 6'!DP19,'Trial 7'!DP19,'Trial 8'!DP19)","v":{"v":268789100.0406708,"d":"$268,789,100"}},{"$f":"SUM('Trial 1'!DQ19,'Trial 2'!DQ19,'Trial 3'!DQ19,'Trial 4'!DQ19,'Trial 5'!DQ19,'Trial 6'!DQ19,'Trial 7'!DQ19,'Trial 8'!DQ19)","v":{"v":268682519.43413544,"d":"$268,682,519"}},{"$f":"SUM('Trial 1'!DR19,'Trial 2'!DR19,'Trial 3'!DR19,'Trial 4'!DR19,'Trial 5'!DR19,'Trial 6'!DR19,'Trial 7'!DR19,'Trial 8'!DR19)","v":{"v":268575713.2125399,"d":"$268,575,713"}},{"$f":"SUM('Trial 1'!DS19,'Trial 2'!DS19,'Trial 3'!DS19,'Trial 4'!DS19,'Trial 5'!DS19,'Trial 6'!DS19,'Trial 7'!DS19,'Trial 8'!DS19)","v":{"v":268469007.5336381,"d":"$268,469,008"}},{"$f":"SUM('Trial 1'!DT19,'Trial 2'!DT19,'Trial 3'!DT19,'Trial 4'!DT19,'Trial 5'!DT19,'Trial 6'!DT19,'Trial 7'!DT19,'Trial 8'!DT19)","v":{"v":268362211.03343782,"d":"$268,362,211"}},{"$f":"SUM('Trial 1'!DU19,'Trial 2'!DU19,'Trial 3'!DU19,'Trial 4'!DU19,'Trial 5'!DU19,'Trial 6'!DU19,'Trial 7'!DU19,'Trial 8'!DU19)","v":{"v":268255301.54841512,"d":"$268,255,302"}},{"$f":"SUM('Trial 1'!DV19,'Trial 2'!DV19,'Trial 3'!DV19,'Trial 4'!DV19,'Trial 5'!DV19,'Trial 6'!DV19,'Trial 7'!DV19,'Trial 8'!DV19)","v":{"v":268148481.56798849,"d":"$268,148,482"}},{"$f":"SUM('Trial 1'!DW19,'Trial 2'!DW19,'Trial 3'!DW19,'Trial 4'!DW19,'Trial 5'!DW19,'Trial 6'!DW19,'Trial 7'!DW19,'Trial 8'!DW19)","v":{"v":268041618.64686412,"d":"$268,041,619"}},{"$f":"SUM('Trial 1'!DX19,'Trial 2'!DX19,'Trial 3'!DX19,'Trial 4'!DX19,'Trial 5'!DX19,'Trial 6'!DX19,'Trial 7'!DX19,'Trial 8'!DX19)","v":{"v":267934772.86691445,"d":"$267,934,773"}},{"$f":"SUM('Trial 1'!DY19,'Trial 2'!DY19,'Trial 3'!DY19,'Trial 4'!DY19,'Trial 5'!DY19,'Trial 6'!DY19,'Trial 7'!DY19,'Trial 8'!DY19)","v":{"v":267827858.99596292,"d":"$267,827,859"}},{"$f":"SUM('Trial 1'!DZ19,'Trial 2'!DZ19,'Trial 3'!DZ19,'Trial 4'!DZ19,'Trial 5'!DZ19,'Trial 6'!DZ19,'Trial 7'!DZ19,'Trial 8'!DZ19)","v":{"v":267720847.74677184,"d":"$267,720,848"}},{"$f":"DZ141","v":{"v":267720847.74677184,"d":"$267,720,848"}},{"$f":"SUM('Trial 1'!EB19,'Trial 2'!EB19,'Trial 3'!EB19,'Trial 4'!EB19,'Trial 5'!EB19,'Trial 6'!EB19,'Trial 7'!EB19,'Trial 8'!EB19)","v":{"v":267613760.4165633,"d":"$267,613,760"}},{"$f":"SUM('Trial 1'!EC19,'Trial 2'!EC19,'Trial 3'!EC19,'Trial 4'!EC19,'Trial 5'!EC19,'Trial 6'!EC19,'Trial 7'!EC19,'Trial 8'!EC19)","v":{"v":267506339.4341909,"d":"$267,506,339"}},{"$f":"SUM('Trial 1'!ED19,'Trial 2'!ED19,'Trial 3'!ED19,'Trial 4'!ED19,'Trial 5'!ED19,'Trial 6'!ED19,'Trial 7'!ED19,'Trial 8'!ED19)","v":{"v":267398924.4774065,"d":"$267,398,924"}},{"$f":"SUM('Trial 1'!EE19,'Trial 2'!EE19,'Trial 3'!EE19,'Trial 4'!EE19,'Trial 5'!EE19,'Trial 6'!EE19,'Trial 7'!EE19,'Trial 8'!EE19)","v":{"v":267291212.86554113,"d":"$267,291,213"}},{"$f":"SUM('Trial 1'!EF19,'Trial 2'!EF19,'Trial 3'!EF19,'Trial 4'!EF19,'Trial 5'!EF19,'Trial 6'!EF19,'Trial 7'!EF19,'Trial 8'!EF19)","v":{"v":267183306.00937384,"d":"$267,183,306"}},{"$f":"SUM('Trial 1'!EG19,'Trial 2'!EG19,'Trial 3'!EG19,'Trial 4'!EG19,'Trial 5'!EG19,'Trial 6'!EG19,'Trial 7'!EG19,'Trial 8'!EG19)","v":{"v":267075350.43948168,"d":"$267,075,350"}},{"$f":"SUM('Trial 1'!EH19,'Trial 2'!EH19,'Trial 3'!EH19,'Trial 4'!EH19,'Trial 5'!EH19,'Trial 6'!EH19,'Trial 7'!EH19,'Trial 8'!EH19)","v":{"v":266967375.52829978,"d":"$266,967,376"}},{"$f":"SUM('Trial 1'!EI19,'Trial 2'!EI19,'Trial 3'!EI19,'Trial 4'!EI19,'Trial 5'!EI19,'Trial 6'!EI19,'Trial 7'!EI19,'Trial 8'!EI19)","v":{"v":266859173.07847026,"d":"$266,859,173"}},{"$f":"SUM('Trial 1'!EJ19,'Trial 2'!EJ19,'Trial 3'!EJ19,'Trial 4'!EJ19,'Trial 5'!EJ19,'Trial 6'!EJ19,'Trial 7'!EJ19,'Trial 8'!EJ19)","v":{"v":266750814.39361614,"d":"$266,750,814"}},{"$f":"SUM('Trial 1'!EK19,'Trial 2'!EK19,'Trial 3'!EK19,'Trial 4'!EK19,'Trial 5'!EK19,'Trial 6'!EK19,'Trial 7'!EK19,'Trial 8'!EK19)","v":{"v":266642021.21908888,"d":"$266,642,021"}},{"$f":"SUM('Trial 1'!EL19,'Trial 2'!EL19,'Trial 3'!EL19,'Trial 4'!EL19,'Trial 5'!EL19,'Trial 6'!EL19,'Trial 7'!EL19,'Trial 8'!EL19)","v":{"v":266533094.2627315,"d":"$266,533,094"}},{"$f":"SUM('Trial 1'!EM19,'Trial 2'!EM19,'Trial 3'!EM19,'Trial 4'!EM19,'Trial 5'!EM19,'Trial 6'!EM19,'Trial 7'!EM19,'Trial 8'!EM19)","v":{"v":266424206.6752884,"d":"$266,424,207"}},{"$f":"EM141","v":{"v":266424206.6752884,"d":"$266,424,207"}}]
[{"$f":"Labels!B61","v":"Long Interest Rate"}]
[]
[null,{"$f":"(1+Inputs!B45)^(1/12)-1","v":{"v":2.4662697723036864E-3,"d":"0.25%"}}]
[{"$f":"Labels!B19","v":"Capital Investment"}]
[{"$f":"Labels!D96","v":"Trials"},{"$f":"ZZZ__FnCalls!F7","v":"Jan 2010"},{"$f":"ZZZ__FnCalls!F8","v":"Feb 2010"},{"$f":"ZZZ__FnCalls!F9","v":"Mar 2010"},{"$f":"ZZZ__FnCalls!F10","v":"Apr 2010"},{"$f":"ZZZ__FnCalls!F11","v":"May 2010"},{"$f":"ZZZ__FnCalls!F12","v":"Jun 2010"},{"$f":"ZZZ__FnCalls!F13","v":"Jul 2010"},{"$f":"ZZZ__FnCalls!F14","v":"Aug 2010"},{"$f":"ZZZ__FnCalls!F15","v":"Sep 2010"},{"$f":"ZZZ__FnCalls!F16","v":"Oct 2010"},{"$f":"ZZZ__FnCalls!F17","v":"Nov 2010"},{"$f":"ZZZ__FnCalls!F18","v":"Dec 2010"},{"$f":"ZZZ__FnCalls!H7","v":"2010"},{"$f":"ZZZ__FnCalls!F19","v":"Jan 2011"},{"$f":"ZZZ__FnCalls!F20","v":"Feb 2011"},{"$f":"ZZZ__FnCalls!F21","v":"Mar 2011"},{"$f":"ZZZ__FnCalls!F22","v":"Apr 2011"},{"$f":"ZZZ__FnCalls!F23","v":"May 2011"},{"$f":"ZZZ__FnCalls!F24","v":"Jun 2011"},{"$f":"ZZZ__FnCalls!F25","v":"Jul 2011"},{"$f":"ZZZ__FnCalls!F26","v":"Aug 2011"},{"$f":"ZZZ__FnCalls!F27","v":"Sep 2011"},{"$f":"ZZZ__FnCalls!F28","v":"Oct 2011"},{"$f":"ZZZ__FnCalls!F29","v":"Nov 2011"},{"$f":"ZZZ__FnCalls!F30","v":"Dec 2011"},{"$f":"ZZZ__FnCalls!H19","v":"2011"},{"$f":"ZZZ__FnCalls!F31","v":"Jan 2012"},{"$f":"ZZZ__FnCalls!F32","v":"Feb 2012"},{"$f":"ZZZ__FnCalls!F33","v":"Mar 2012"},{"$f":"ZZZ__FnCalls!F34","v":"Apr 2012"},{"$f":"ZZZ__FnCalls!F35","v":"May 2012"},{"$f":"ZZZ__FnCalls!F36","v":"Jun 2012"},{"$f":"ZZZ__FnCalls!F37","v":"Jul 2012"},{"$f":"ZZZ__FnCalls!F38","v":"Aug 2012"},{"$f":"ZZZ__FnCalls!F39","v":"Sep 2012"},{"$f":"ZZZ__FnCalls!F40","v":"Oct 2012"},{"$f":"ZZZ__FnCalls!F41","v":"Nov 2012"},{"$f":"ZZZ__FnCalls!F42","v":"Dec 2012"},{"$f":"ZZZ__FnCalls!H31","v":"2012"},{"$f":"ZZZ__FnCalls!F43","v":"Jan 2013"},{"$f":"ZZZ__FnCalls!F44","v":"Feb 2013"},{"$f":"ZZZ__FnCalls!F45","v":"Mar 2013"},{"$f":"ZZZ__FnCalls!F46","v":"Apr 2013"},{"$f":"ZZZ__FnCalls!F47","v":"May 2013"},{"$f":"ZZZ__FnCalls!F48","v":"Jun 2013"},{"$f":"ZZZ__FnCalls!F49","v":"Jul 2013"},{"$f":"ZZZ__FnCalls!F50","v":"Aug 2013"},{"$f":"ZZZ__FnCalls!F51","v":"Sep 2013"},{"$f":"ZZZ__FnCalls!F52","v":"Oct 2013"},{"$f":"ZZZ__FnCalls!F53","v":"Nov 2013"},{"$f":"ZZZ__FnCalls!F54","v":"Dec 2013"},{"$f":"ZZZ__FnCalls!H43","v":"2013"},{"$f":"ZZZ__FnCalls!F55","v":"Jan 2014"},{"$f":"ZZZ__FnCalls!F56","v":"Feb 2014"},{"$f":"ZZZ__FnCalls!F57","v":"Mar 2014"},{"$f":"ZZZ__FnCalls!F58","v":"Apr 2014"},{"$f":"ZZZ__FnCalls!F59","v":"May 2014"},{"$f":"ZZZ__FnCalls!F60","v":"Jun 2014"},{"$f":"ZZZ__FnCalls!F61","v":"Jul 2014"},{"$f":"ZZZ__FnCalls!F62","v":"Aug 2014"},{"$f":"ZZZ__FnCalls!F63","v":"Sep 2014"},{"$f":"ZZZ__FnCalls!F64","v":"Oct 2014"},{"$f":"ZZZ__FnCalls!F65","v":"Nov 2014"},{"$f":"ZZZ__FnCalls!F66","v":"Dec 2014"},{"$f":"ZZZ__FnCalls!H55","v":"2014"},{"$f":"ZZZ__FnCalls!F67","v":"Jan 2015"},{"$f":"ZZZ__FnCalls!F68","v":"Feb 2015"},{"$f":"ZZZ__FnCalls!F69","v":"Mar 2015"},{"$f":"ZZZ__FnCalls!F70","v":"Apr 2015"},{"$f":"ZZZ__FnCalls!F71","v":"May 2015"},{"$f":"ZZZ__FnCalls!F72","v":"Jun 2015"},{"$f":"ZZZ__FnCalls!F73","v":"Jul 2015"},{"$f":"ZZZ__FnCalls!F74","v":"Aug 2015"},{"$f":"ZZZ__FnCalls!F75","v":"Sep 2015"},{"$f":"ZZZ__FnCalls!F76","v":"Oct 2015"},{"$f":"ZZZ__FnCalls!F77","v":"Nov 2015"},{"$f":"ZZZ__FnCalls!F78","v":"Dec 2015"},{"$f":"ZZZ__FnCalls!H67","v":"2015"},{"$f":"ZZZ__FnCalls!F79","v":"Jan 2016"},{"$f":"ZZZ__FnCalls!F80","v":"Feb 2016"},{"$f":"ZZZ__FnCalls!F81","v":"Mar 2016"},{"$f":"ZZZ__FnCalls!F82","v":"Apr 2016"},{"$f":"ZZZ__FnCalls!F83","v":"May 2016"},{"$f":"ZZZ__FnCalls!F84","v":"Jun 2016"},{"$f":"ZZZ__FnCalls!F85","v":"Jul 2016"},{"$f":"ZZZ__FnCalls!F86","v":"Aug 2016"},{"$f":"ZZZ__FnCalls!F87","v":"Sep 2016"},{"$f":"ZZZ__FnCalls!F88","v":"Oct 2016"},{"$f":"ZZZ__FnCalls!F89","v":"Nov 2016"},{"$f":"ZZZ__FnCalls!F90","v":"Dec 2016"},{"$f":"ZZZ__FnCalls!H79","v":"2016"},{"$f":"ZZZ__FnCalls!F91","v":"Jan 2017"},{"$f":"ZZZ__FnCalls!F92","v":"Feb 2017"},{"$f":"ZZZ__FnCalls!F93","v":"Mar 2017"},{"$f":"ZZZ__FnCalls!F94","v":"Apr 2017"},{"$f":"ZZZ__FnCalls!F95","v":"May 2017"},{"$f":"ZZZ__FnCalls!F96","v":"Jun 2017"},{"$f":"ZZZ__FnCalls!F97","v":"Jul 2017"},{"$f":"ZZZ__FnCalls!F98","v":"Aug 2017"},{"$f":"ZZZ__FnCalls!F99","v":"Sep 2017"},{"$f":"ZZZ__FnCalls!F100","v":"Oct 2017"},{"$f":"ZZZ__FnCalls!F101","v":"Nov 2017"},{"$f":"ZZZ__FnCalls!F102","v":"Dec 2017"},{"$f":"ZZZ__FnCalls!H91","v":"2017"},{"$f":"ZZZ__FnCalls!F103","v":"Jan 2018"},{"$f":"ZZZ__FnCalls!F104","v":"Feb 2018"},{"$f":"ZZZ__FnCalls!F105","v":"Mar 2018"},{"$f":"ZZZ__FnCalls!F106","v":"Apr 2018"},{"$f":"ZZZ__FnCalls!F107","v":"May 2018"},{"$f":"ZZZ__FnCalls!F108","v":"Jun 2018"},{"$f":"ZZZ__FnCalls!F109","v":"Jul 2018"},{"$f":"ZZZ__FnCalls!F110","v":"Aug 2018"},{"$f":"ZZZ__FnCalls!F111","v":"Sep 2018"},{"$f":"ZZZ__FnCalls!F112","v":"Oct 2018"},{"$f":"ZZZ__FnCalls!F113","v":"Nov 2018"},{"$f":"ZZZ__FnCalls!F114","v":"Dec 2018"},{"$f":"ZZZ__FnCalls!H103","v":"2018"},{"$f":"ZZZ__FnCalls!F115","v":"Jan 2019"},{"$f":"ZZZ__FnCalls!F116","v":"Feb 2019"},{"$f":"ZZZ__FnCalls!F117","v":"Mar 2019"},{"$f":"ZZZ__FnCalls!F118","v":"Apr 2019"},{"$f":"ZZZ__FnCalls!F119","v":"May 2019"},{"$f":"ZZZ__FnCalls!F120","v":"Jun 2019"},{"$f":"ZZZ__FnCalls!F121","v":"Jul 2019"},{"$f":"ZZZ__FnCalls!F122","v":"Aug 2019"},{"$f":"ZZZ__FnCalls!F123","v":"Sep 2019"},{"$f":"ZZZ__FnCalls!F124","v":"Oct 2019"},{"$f":"ZZZ__FnCalls!F125","v":"Nov 2019"},{"$f":"ZZZ__FnCalls!F126","v":"Dec 2019"},{"$f":"ZZZ__FnCalls!H115","v":"2019"},{"$f":"ZZZ__FnCalls!F127","v":"Jan 2020"},{"$f":"ZZZ__FnCalls!F128","v":"Feb 2020"},{"$f":"ZZZ__FnCalls!F129","v":"Mar 2020"},{"$f":"ZZZ__FnCalls!F130","v":"Apr 2020"},{"$f":"ZZZ__FnCalls!F131","v":"May 2020"},{"$f":"ZZZ__FnCalls!F132","v":"Jun 2020"},{"$f":"ZZZ__FnCalls!F133","v":"Jul 2020"},{"$f":"ZZZ__FnCalls!F134","v":"Aug 2020"},{"$f":"ZZZ__FnCalls!F135","v":"Sep 2020"},{"$f":"ZZZ__FnCalls!F136","v":"Oct 2020"},{"$f":"ZZZ__FnCalls!F137","v":"Nov 2020"},{"$f":"ZZZ__FnCalls!F138","v":"Dec 2020"},{"$f":"ZZZ__FnCalls!H127","v":"2020"}]
[{"$f":"Labels!B96","v":"Trial 01"},{"$f":"'Trial 1'!B21","v":{"v":206222.0144162289,"d":"$206,222"}},{"$f":"'Trial 1'!C21","v":{"v":205789.4422084438,"d":"$205,789"}},{"$f":"'Trial 1'!D21","v":{"v":205484.48546094645,"d":"$205,484"}},{"$f":"'Trial 1'!E21","v":{"v":205153.03055500373,"d":"$205,153"}},{"$f":"'Trial 1'!F21","v":{"v":204790.230141494,"d":"$204,790"}},{"$f":"'Trial 1'!G21","v":{"v":204530.50355119517,"d":"$204,531"}},{"$f":"'Trial 1'!H21","v":{"v":204216.13011052867,"d":"$204,216"}},{"$f":"'Trial 1'!I21","v":{"v":203850.30462267442,"d":"$203,850"}},{"$f":"'Trial 1'!J21","v":{"v":203511.8148753483,"d":"$203,512"}},{"$f":"'Trial 1'!K21","v":{"v":203214.10981818146,"d":"$203,214"}},{"$f":"'Trial 1'!L21","v":{"v":203004.57926592696,"d":"$203,005"}},{"$f":"'Trial 1'!M21","v":{"v":202757.15143798996,"d":"$202,757"}},{"$f":"SUM('Trial 1'!B21:M21)","v":{"v":2452523.7964639612,"d":"$2,452,524"}},{"$f":"'Trial 1'!O21","v":{"v":202484.54538240674,"d":"$202,485"}},{"$f":"'Trial 1'!P21","v":{"v":202154.28430934812,"d":"$202,154"}},{"$f":"'Trial 1'!Q21","v":{"v":201865.68432727875,"d":"$201,866"}},{"$f":"'Trial 1'!R21","v":{"v":201458.09203773507,"d":"$201,458"}},{"$f":"'Trial 1'!S21","v":{"v":201212.80500367403,"d":"$201,213"}},{"$f":"'Trial 1'!T21","v":{"v":200834.4973617416,"d":"$200,834"}},{"$f":"'Trial 1'!U21","v":{"v":200503.7685291881,"d":"$200,504"}},{"$f":"'Trial 1'!V21","v":{"v":200150.70259791767,"d":"$200,151"}},{"$f":"'Trial 1'!W21","v":{"v":199802.88028458552,"d":"$199,803"}},{"$f":"'Trial 1'!X21","v":{"v":199523.5381744183,"d":"$199,524"}},{"$f":"'Trial 1'!Y21","v":{"v":199266.15095092225,"d":"$199,266"}},{"$f":"'Trial 1'!Z21","v":{"v":199105.26795504536,"d":"$199,105"}},{"$f":"SUM('Trial 1'!O21:Z21)","v":{"v":2408362.216914261,"d":"$2,408,362"}},{"$f":"'Trial 1'!AB21","v":{"v":198821.20466848582,"d":"$198,821"}},{"$f":"'Trial 1'!AC21","v":{"v":198593.91239650772,"d":"$198,594"}},{"$f":"'Trial 1'!AD21","v":{"v":198478.77906052,"d":"$198,479"}},{"$f":"'Trial 1'!AE21","v":{"v":198212.03391711964,"d":"$198,212"}},{"$f":"'Trial 1'!AF21","v":{"v":197927.25257024425,"d":"$197,927"}},{"$f":"'Trial 1'!AG21","v":{"v":197705.82950988103,"d":"$197,706"}},{"$f":"'Trial 1'!AH21","v":{"v":197480.99548686168,"d":"$197,481"}},{"$f":"'Trial 1'!AI21","v":{"v":197299.32429985804,"d":"$197,299"}},{"$f":"'Trial 1'!AJ21","v":{"v":197064.46504051186,"d":"$197,064"}},{"$f":"'Trial 1'!AK21","v":{"v":196952.93162874546,"d":"$196,953"}},{"$f":"'Trial 1'!AL21","v":{"v":196767.79689304196,"d":"$196,768"}},{"$f":"'Trial 1'!AM21","v":{"v":196547.7801912235,"d":"$196,548"}},{"$f":"SUM('Trial 1'!AB21:AM21)","v":{"v":2371852.3056630013,"d":"$2,371,852"}},{"$f":"'Trial 1'!AO21","v":{"v":196289.3131339308,"d":"$196,289"}},{"$f":"'Trial 1'!AP21","v":{"v":196036.15338548634,"d":"$196,036"}},{"$f":"'Trial 1'!AQ21","v":{"v":195963.610567515,"d":"$195,964"}},{"$f":"'Trial 1'!AR21","v":{"v":195701.18203814467,"d":"$195,701"}},{"$f":"'Trial 1'!AS21","v":{"v":195574.7021064995,"d":"$195,575"}},{"$f":"'Trial 1'!AT21","v":{"v":195405.4719977756,"d":"$195,405"}},{"$f":"'Trial 1'!AU21","v":{"v":195277.86216557102,"d":"$195,278"}},{"$f":"'Trial 1'!AV21","v":{"v":195092.38406963806,"d":"$195,092"}},{"$f":"'Trial 1'!AW21","v":{"v":194874.42037025085,"d":"$194,874"}},{"$f":"'Trial 1'!AX21","v":{"v":194700.27847560865,"d":"$194,700"}},{"$f":"'Trial 1'!AY21","v":{"v":194611.82076905612,"d":"$194,612"}},{"$f":"'Trial 1'!AZ21","v":{"v":194471.88514337823,"d":"$194,472"}},{"$f":"SUM('Trial 1'!AO21:AZ21)","v":{"v":2343999.084222855,"d":"$2,343,999"}},{"$f":"'Trial 1'!BB21","v":{"v":194239.05395090525,"d":"$194,239"}},{"$f":"'Trial 1'!BC21","v":{"v":194004.5026506556,"d":"$194,005"}},{"$f":"'Trial 1'!BD21","v":{"v":193858.87521666172,"d":"$193,859"}},{"$f":"'Trial 1'!BE21","v":{"v":193669.75401265197,"d":"$193,670"}},{"$f":"'Trial 1'!BF21","v":{"v":193578.18001524932,"d":"$193,578"}},{"$f":"'Trial 1'!BG21","v":{"v":193449.211948495,"d":"$193,449"}},{"$f":"'Trial 1'!BH21","v":{"v":193318.41291212724,"d":"$193,318"}},{"$f":"'Trial 1'!BI21","v":{"v":193204.58546968477,"d":"$193,205"}},{"$f":"'Trial 1'!BJ21","v":{"v":193036.95887939035,"d":"$193,037"}},{"$f":"'Trial 1'!BK21","v":{"v":192868.8911971209,"d":"$192,869"}},{"$f":"'Trial 1'!BL21","v":{"v":192639.29875077505,"d":"$192,639"}},{"$f":"'Trial 1'!BM21","v":{"v":192518.4486314814,"d":"$192,518"}},{"$f":"SUM('Trial 1'!BB21:BM21)","v":{"v":2320386.1736351983,"d":"$2,320,386"}},{"$f":"'Trial 1'!BO21","v":{"v":192319.91168720738,"d":"$192,320"}},{"$f":"'Trial 1'!BP21","v":{"v":192216.20012945545,"d":"$192,216"}},{"$f":"'Trial 1'!BQ21","v":{"v":192041.60721154584,"d":"$192,042"}},{"$f":"'Trial 1'!BR21","v":{"v":192008.09208105307,"d":"$192,008"}},{"$f":"'Trial 1'!BS21","v":{"v":191914.53302193963,"d":"$191,915"}},{"$f":"'Trial 1'!BT21","v":{"v":191787.3917140755,"d":"$191,787"}},{"$f":"'Trial 1'!BU21","v":{"v":191567.2276293708,"d":"$191,567"}},{"$f":"'Trial 1'!BV21","v":{"v":191376.06585496594,"d":"$191,376"}},{"$f":"'Trial 1'!BW21","v":{"v":191228.65779503682,"d":"$191,229"}},{"$f":"'Trial 1'!BX21","v":{"v":191160.7869922181,"d":"$191,161"}},{"$f":"'Trial 1'!BY21","v":{"v":190971.70603911308,"d":"$190,972"}},{"$f":"'Trial 1'!BZ21","v":{"v":190764.0269000231,"d":"$190,764"}},{"$f":"SUM('Trial 1'!BO21:BZ21)","v":{"v":2299356.207056005,"d":"$2,299,356"}},{"$f":"'Trial 1'!CB21","v":{"v":190707.30293154548,"d":"$190,707"}},{"$f":"'Trial 1'!CC21","v":{"v":190572.04678045982,"d":"$190,572"}},{"$f":"'Trial 1'!CD21","v":{"v":190372.21149674547,"d":"$190,372"}},{"$f":"'Trial 1'!CE21","v":{"v":190329.41660500868,"d":"$190,329"}},{"$f":"'Trial 1'!CF21","v":{"v":190150.42291616392,"d":"$190,150"}},{"$f":"'Trial 1'!CG21","v":{"v":190030.21339494985,"d":"$190,030"}},{"$f":"'Trial 1'!CH21","v":{"v":189938.9470892598,"d":"$189,939"}},{"$f":"'Trial 1'!CI21","v":{"v":189817.7505703493,"d":"$189,818"}},{"$f":"'Trial 1'!CJ21","v":{"v":189719.10449740605,"d":"$189,719"}},{"$f":"'Trial 1'!CK21","v":{"v":189607.980249712,"d":"$189,608"}},{"$f":"'Trial 1'!CL21","v":{"v":189404.46612265622,"d":"$189,404"}},{"$f":"'Trial 1'!CM21","v":{"v":189348.71990571002,"d":"$189,349"}},{"$f":"SUM('Trial 1'!CB21:CM21)","v":{"v":2279998.5825599665,"d":"$2,279,999"}},{"$f":"'Trial 1'!CO21","v":{"v":189239.84381092156,"d":"$189,240"}},{"$f":"'Trial 1'!CP21","v":{"v":189075.42612042263,"d":"$189,075"}},{"$f":"'Trial 1'!CQ21","v":{"v":189021.45913231577,"d":"$189,021"}},{"$f":"'Trial 1'!CR21","v":{"v":188802.49771151508,"d":"$188,802"}},{"$f":"'Trial 1'!CS21","v":{"v":188691.09270360792,"d":"$188,691"}},{"$f":"'Trial 1'!CT21","v":{"v":188491.8550764288,"d":"$188,492"}},{"$f":"'Trial 1'!CU21","v":{"v":188408.7775231388,"d":"$188,409"}},{"$f":"'Trial 1'!CV21","v":{"v":188233.253650681,"d":"$188,233"}},{"$f":"'Trial 1'!CW21","v":{"v":188148.71499322684,"d":"$188,149"}},{"$f":"'Trial 1'!CX21","v":{"v":187961.5679922327,"d":"$187,962"}},{"$f":"'Trial 1'!CY21","v":{"v":187931.93533948748,"d":"$187,932"}},{"$f":"'Trial 1'!CZ21","v":{"v":187914.98091516728,"d":"$187,915"}},{"$f":"SUM('Trial 1'!CO21:CZ21)","v":{"v":2261921.4049691455,"d":"$2,261,921"}},{"$f":"'Trial 1'!DB21","v":{"v":187724.6416313818,"d":"$187,725"}},{"$f":"'Trial 1'!DC21","v":{"v":187632.68802629187,"d":"$187,633"}},{"$f":"'Trial 1'!DD21","v":{"v":187576.40500457285,"d":"$187,576"}},{"$f":"'Trial 1'!DE21","v":{"v":187481.4074757625,"d":"$187,481"}},{"$f":"'Trial 1'!DF21","v":{"v":187434.4837927154,"d":"$187,434"}},{"$f":"'Trial 1'!DG21","v":{"v":187382.29948139907,"d":"$187,382"}},{"$f":"'Trial 1'!DH21","v":{"v":187257.70893985726,"d":"$187,258"}},{"$f":"'Trial 1'!DI21","v":{"v":187190.08987796007,"d":"$187,190"}},{"$f":"'Trial 1'!DJ21","v":{"v":187036.09620445396,"d":"$187,036"}},{"$f":"'Trial 1'!DK21","v":{"v":186971.81831391167,"d":"$186,972"}},{"$f":"'Trial 1'!DL21","v":{"v":186964.80735007324,"d":"$186,965"}},{"$f":"'Trial 1'!DM21","v":{"v":186796.31004240646,"d":"$186,796"}},{"$f":"SUM('Trial 1'!DB21:DM21)","v":{"v":2247448.756140786,"d":"$2,247,449"}},{"$f":"'Trial 1'!DO21","v":{"v":186714.91704414116,"d":"$186,715"}},{"$f":"'Trial 1'!DP21","v":{"v":186705.67013103983,"d":"$186,706"}},{"$f":"'Trial 1'!DQ21","v":{"v":186579.64516806393,"d":"$186,580"}},{"$f":"'Trial 1'!DR21","v":{"v":186510.04223668843,"d":"$186,510"}},{"$f":"'Trial 1'!DS21","v":{"v":186425.59560638436,"d":"$186,426"}},{"$f":"'Trial 1'!DT21","v":{"v":186311.7506929258,"d":"$186,312"}},{"$f":"'Trial 1'!DU21","v":{"v":186194.4396967642,"d":"$186,194"}},{"$f":"'Trial 1'!DV21","v":{"v":186125.0590383568,"d":"$186,125"}},{"$f":"'Trial 1'!DW21","v":{"v":185961.49077137432,"d":"$185,961"}},{"$f":"'Trial 1'!DX21","v":{"v":185821.5189072814,"d":"$185,822"}},{"$f":"'Trial 1'!DY21","v":{"v":185793.8698009641,"d":"$185,794"}},{"$f":"'Trial 1'!DZ21","v":{"v":185744.2311051369,"d":"$185,744"}},{"$f":"SUM('Trial 1'!DO21:DZ21)","v":{"v":2234888.230199121,"d":"$2,234,888"}},{"$f":"'Trial 1'!EB21","v":{"v":185606.29070442598,"d":"$185,606"}},{"$f":"'Trial 1'!EC21","v":{"v":185538.4020465795,"d":"$185,538"}},{"$f":"'Trial 1'!ED21","v":{"v":185441.0524524053,"d":"$185,441"}},{"$f":"'Trial 1'!EE21","v":{"v":185345.329240019,"d":"$185,345"}},{"$f":"'Trial 1'!EF21","v":{"v":185167.73943923163,"d":"$185,168"}},{"$f":"'Trial 1'!EG21","v":{"v":185067.93773230037,"d":"$185,068"}},{"$f":"'Trial 1'!EH21","v":{"v":184954.8123371294,"d":"$184,955"}},{"$f":"'Trial 1'!EI21","v":{"v":184854.27001109568,"d":"$184,854"}},{"$f":"'Trial 1'!EJ21","v":{"v":184707.54309355127,"d":"$184,708"}},{"$f":"'Trial 1'!EK21","v":{"v":184634.4105815652,"d":"$184,634"}},{"$f":"'Trial 1'!EL21","v":{"v":184530.65117920155,"d":"$184,531"}},{"$f":"'Trial 1'!EM21","v":{"v":184378.09393567327,"d":"$184,378"}},{"$f":"SUM('Trial 1'!EB21:EM21)","v":{"v":2220226.532753178,"d":"$2,220,227"}}]
[{"$f":"Labels!B97","v":"Trial 02"},{"$f":"'Trial 2'!B21","v":{"v":206222.0144162289,"d":"$206,222"}},{"$f":"'Trial 2'!C21","v":{"v":205810.41289227075,"d":"$205,810"}},{"$f":"'Trial 2'!D21","v":{"v":205355.22405627466,"d":"$205,355"}},{"$f":"'Trial 2'!E21","v":{"v":205005.42564091552,"d":"$205,005"}},{"$f":"'Trial 2'!F21","v":{"v":204763.20090245813,"d":"$204,763"}},{"$f":"'Trial 2'!G21","v":{"v":204441.4222995787,"d":"$204,441"}},{"$f":"'Trial 2'!H21","v":{"v":204059.65519388314,"d":"$204,060"}},{"$f":"'Trial 2'!I21","v":{"v":203721.6982962032,"d":"$203,722"}},{"$f":"'Trial 2'!J21","v":{"v":203320.48087439404,"d":"$203,320"}},{"$f":"'Trial 2'!K21","v":{"v":203025.4790735491,"d":"$203,025"}},{"$f":"'Trial 2'!L21","v":{"v":202719.6537504702,"d":"$202,720"}},{"$f":"'Trial 2'!M21","v":{"v":202339.7542270007,"d":"$202,340"}},{"$f":"SUM('Trial 2'!B21:M21)","v":{"v":2450784.4216232277,"d":"$2,450,784"}},{"$f":"'Trial 2'!O21","v":{"v":202096.4155033249,"d":"$202,096"}},{"$f":"'Trial 2'!P21","v":{"v":201761.18935249583,"d":"$201,761"}},{"$f":"'Trial 2'!Q21","v":{"v":201526.03400192273,"d":"$201,526"}},{"$f":"'Trial 2'!R21","v":{"v":201302.3451393087,"d":"$201,302"}},{"$f":"'Trial 2'!S21","v":{"v":201005.12651229577,"d":"$201,005"}},{"$f":"'Trial 2'!T21","v":{"v":200715.85573984263,"d":"$200,716"}},{"$f":"'Trial 2'!U21","v":{"v":200431.8028981831,"d":"$200,432"}},{"$f":"'Trial 2'!V21","v":{"v":200092.58828256003,"d":"$200,093"}},{"$f":"'Trial 2'!W21","v":{"v":199785.12568597015,"d":"$199,785"}},{"$f":"'Trial 2'!X21","v":{"v":199500.3898305764,"d":"$199,500"}},{"$f":"'Trial 2'!Y21","v":{"v":199207.8601332193,"d":"$199,208"}},{"$f":"'Trial 2'!Z21","v":{"v":198850.28033171015,"d":"$198,850"}},{"$f":"SUM('Trial 2'!O21:Z21)","v":{"v":2406275.01341141,"d":"$2,406,275"}},{"$f":"'Trial 2'!AB21","v":{"v":198647.94728003666,"d":"$198,648"}},{"$f":"'Trial 2'!AC21","v":{"v":198415.026386812,"d":"$198,415"}},{"$f":"'Trial 2'!AD21","v":{"v":198192.19128566483,"d":"$198,192"}},{"$f":"'Trial 2'!AE21","v":{"v":197967.87007163462,"d":"$197,968"}},{"$f":"'Trial 2'!AF21","v":{"v":197861.14641084793,"d":"$197,861"}},{"$f":"'Trial 2'!AG21","v":{"v":197641.73935383218,"d":"$197,642"}},{"$f":"'Trial 2'!AH21","v":{"v":197398.87366710964,"d":"$197,399"}},{"$f":"'Trial 2'!AI21","v":{"v":197220.01743466756,"d":"$197,220"}},{"$f":"'Trial 2'!AJ21","v":{"v":196921.89112086617,"d":"$196,922"}},{"$f":"'Trial 2'!AK21","v":{"v":196726.0612414079,"d":"$196,726"}},{"$f":"'Trial 2'!AL21","v":{"v":196570.013287216,"d":"$196,570"}},{"$f":"'Trial 2'!AM21","v":{"v":196463.1117185912,"d":"$196,463"}},{"$f":"SUM('Trial 2'!AB21:AM21)","v":{"v":2370025.889258687,"d":"$2,370,026"}},{"$f":"'Trial 2'!AO21","v":{"v":196231.71297663674,"d":"$196,232"}},{"$f":"'Trial 2'!AP21","v":{"v":196026.87003802558,"d":"$196,027"}},{"$f":"'Trial 2'!AQ21","v":{"v":195871.0862747015,"d":"$195,871"}},{"$f":"'Trial 2'!AR21","v":{"v":195712.31982480816,"d":"$195,712"}},{"$f":"'Trial 2'!AS21","v":{"v":195496.101190863,"d":"$195,496"}},{"$f":"'Trial 2'!AT21","v":{"v":195344.480017887,"d":"$195,344"}},{"$f":"'Trial 2'!AU21","v":{"v":195192.9230537207,"d":"$195,193"}},{"$f":"'Trial 2'!AV21","v":{"v":195026.81776957004,"d":"$195,027"}},{"$f":"'Trial 2'!AW21","v":{"v":194870.1848754649,"d":"$194,870"}},{"$f":"'Trial 2'!AX21","v":{"v":194590.63094385597,"d":"$194,591"}},{"$f":"'Trial 2'!AY21","v":{"v":194404.8074290174,"d":"$194,405"}},{"$f":"'Trial 2'!AZ21","v":{"v":194311.6899700786,"d":"$194,312"}},{"$f":"SUM('Trial 2'!AO21:AZ21)","v":{"v":2343079.6243646294,"d":"$2,343,080"}},{"$f":"'Trial 2'!BB21","v":{"v":194133.84943873735,"d":"$194,134"}},{"$f":"'Trial 2'!BC21","v":{"v":193927.17018353156,"d":"$193,927"}},{"$f":"'Trial 2'!BD21","v":{"v":193774.73965572615,"d":"$193,775"}},{"$f":"'Trial 2'!BE21","v":{"v":193691.46500459439,"d":"$193,691"}},{"$f":"'Trial 2'!BF21","v":{"v":193525.09215613102,"d":"$193,525"}},{"$f":"'Trial 2'!BG21","v":{"v":193425.64837644473,"d":"$193,426"}},{"$f":"'Trial 2'!BH21","v":{"v":193208.2922331457,"d":"$193,208"}},{"$f":"'Trial 2'!BI21","v":{"v":193017.58400829337,"d":"$193,018"}},{"$f":"'Trial 2'!BJ21","v":{"v":192777.18628512567,"d":"$192,777"}},{"$f":"'Trial 2'!BK21","v":{"v":192685.0683870107,"d":"$192,685"}},{"$f":"'Trial 2'!BL21","v":{"v":192512.12812078136,"d":"$192,512"}},{"$f":"'Trial 2'!BM21","v":{"v":192386.06268379177,"d":"$192,386"}},{"$f":"SUM('Trial 2'!BB21:BM21)","v":{"v":2319064.2865333143,"d":"$2,319,064"}},{"$f":"'Trial 2'!BO21","v":{"v":192145.24172608022,"d":"$192,145"}},{"$f":"'Trial 2'!BP21","v":{"v":191894.85453764198,"d":"$191,895"}},{"$f":"'Trial 2'!BQ21","v":{"v":191693.155394879,"d":"$191,693"}},{"$f":"'Trial 2'!BR21","v":{"v":191598.630314888,"d":"$191,599"}},{"$f":"'Trial 2'!BS21","v":{"v":191535.67471916074,"d":"$191,536"}},{"$f":"'Trial 2'!BT21","v":{"v":191313.9140151095,"d":"$191,314"}},{"$f":"'Trial 2'!BU21","v":{"v":191275.033534709,"d":"$191,275"}},{"$f":"'Trial 2'!BV21","v":{"v":191102.07167884806,"d":"$191,102"}},{"$f":"'Trial 2'!BW21","v":{"v":191013.99717035223,"d":"$191,014"}},{"$f":"'Trial 2'!BX21","v":{"v":190894.79448038855,"d":"$190,895"}},{"$f":"'Trial 2'!BY21","v":{"v":190666.81793049187,"d":"$190,667"}},{"$f":"'Trial 2'!BZ21","v":{"v":190654.92016765627,"d":"$190,655"}},{"$f":"SUM('Trial 2'!BO21:BZ21)","v":{"v":2295789.105670205,"d":"$2,295,789"}},{"$f":"'Trial 2'!CB21","v":{"v":190547.80828032905,"d":"$190,548"}},{"$f":"'Trial 2'!CC21","v":{"v":190468.21097161472,"d":"$190,468"}},{"$f":"'Trial 2'!CD21","v":{"v":190302.9100907574,"d":"$190,303"}},{"$f":"'Trial 2'!CE21","v":{"v":190170.99220481596,"d":"$190,171"}},{"$f":"'Trial 2'!CF21","v":{"v":190120.91219432012,"d":"$190,121"}},{"$f":"'Trial 2'!CG21","v":{"v":190031.50730431947,"d":"$190,032"}},{"$f":"'Trial 2'!CH21","v":{"v":189971.46554121946,"d":"$189,971"}},{"$f":"'Trial 2'!CI21","v":{"v":189855.82430922912,"d":"$189,856"}},{"$f":"'Trial 2'!CJ21","v":{"v":189813.37808905332,"d":"$189,813"}},{"$f":"'Trial 2'!CK21","v":{"v":189621.61894259744,"d":"$189,622"}},{"$f":"'Trial 2'!CL21","v":{"v":189497.4594600918,"d":"$189,497"}},{"$f":"'Trial 2'!CM21","v":{"v":189291.43897885468,"d":"$189,291"}},{"$f":"SUM('Trial 2'!CB21:CM21)","v":{"v":2279693.5263672024,"d":"$2,279,694"}},{"$f":"'Trial 2'!CO21","v":{"v":189167.05342630338,"d":"$189,167"}},{"$f":"'Trial 2'!CP21","v":{"v":189014.13329960176,"d":"$189,014"}},{"$f":"'Trial 2'!CQ21","v":{"v":188906.20073480328,"d":"$188,906"}},{"$f":"'Trial 2'!CR21","v":{"v":188824.2253147058,"d":"$188,824"}},{"$f":"'Trial 2'!CS21","v":{"v":188689.94265159388,"d":"$188,690"}},{"$f":"'Trial 2'!CT21","v":{"v":188619.86935720762,"d":"$188,620"}},{"$f":"'Trial 2'!CU21","v":{"v":188448.3458682329,"d":"$188,448"}},{"$f":"'Trial 2'!CV21","v":{"v":188414.3992011005,"d":"$188,414"}},{"$f":"'Trial 2'!CW21","v":{"v":188293.66399885045,"d":"$188,294"}},{"$f":"'Trial 2'!CX21","v":{"v":188258.85772603232,"d":"$188,259"}},{"$f":"'Trial 2'!CY21","v":{"v":188039.91787589397,"d":"$188,040"}},{"$f":"'Trial 2'!CZ21","v":{"v":187994.44577796984,"d":"$187,994"}},{"$f":"SUM('Trial 2'!CO21:CZ21)","v":{"v":2262671.0552322953,"d":"$2,262,671"}},{"$f":"'Trial 2'!DB21","v":{"v":187874.39555808628,"d":"$187,874"}},{"$f":"'Trial 2'!DC21","v":{"v":187749.58431710303,"d":"$187,750"}},{"$f":"'Trial 2'!DD21","v":{"v":187683.01302591423,"d":"$187,683"}},{"$f":"'Trial 2'!DE21","v":{"v":187554.3369269298,"d":"$187,554"}},{"$f":"'Trial 2'!DF21","v":{"v":187492.9803277448,"d":"$187,493"}},{"$f":"'Trial 2'!DG21","v":{"v":187450.75366283362,"d":"$187,451"}},{"$f":"'Trial 2'!DH21","v":{"v":187347.99044420035,"d":"$187,348"}},{"$f":"'Trial 2'!DI21","v":{"v":187257.30829824143,"d":"$187,257"}},{"$f":"'Trial 2'!DJ21","v":{"v":187175.09034637097,"d":"$187,175"}},{"$f":"'Trial 2'!DK21","v":{"v":187162.84346573462,"d":"$187,163"}},{"$f":"'Trial 2'!DL21","v":{"v":187000.817300769,"d":"$187,001"}},{"$f":"'Trial 2'!DM21","v":{"v":186791.3619160735,"d":"$186,791"}},{"$f":"SUM('Trial 2'!DB21:DM21)","v":{"v":2248540.475590002,"d":"$2,248,540"}},{"$f":"'Trial 2'!DO21","v":{"v":186625.08470731592,"d":"$186,625"}},{"$f":"'Trial 2'!DP21","v":{"v":186589.42897112976,"d":"$186,589"}},{"$f":"'Trial 2'!DQ21","v":{"v":186406.27280715932,"d":"$186,406"}},{"$f":"'Trial 2'!DR21","v":{"v":186321.45855834632,"d":"$186,321"}},{"$f":"'Trial 2'!DS21","v":{"v":186210.35391297776,"d":"$186,210"}},{"$f":"'Trial 2'!DT21","v":{"v":186064.94775621948,"d":"$186,065"}},{"$f":"'Trial 2'!DU21","v":{"v":185993.71899156042,"d":"$185,994"}},{"$f":"'Trial 2'!DV21","v":{"v":185953.09878103295,"d":"$185,953"}},{"$f":"'Trial 2'!DW21","v":{"v":185901.2879407605,"d":"$185,901"}},{"$f":"'Trial 2'!DX21","v":{"v":185739.9269190407,"d":"$185,740"}},{"$f":"'Trial 2'!DY21","v":{"v":185699.9806175735,"d":"$185,700"}},{"$f":"'Trial 2'!DZ21","v":{"v":185605.30246683047,"d":"$185,605"}},{"$f":"SUM('Trial 2'!DO21:DZ21)","v":{"v":2233110.8624299467,"d":"$2,233,111"}},{"$f":"'Trial 2'!EB21","v":{"v":185443.36829148125,"d":"$185,443"}},{"$f":"'Trial 2'!EC21","v":{"v":185414.76025762467,"d":"$185,415"}},{"$f":"'Trial 2'!ED21","v":{"v":185356.73332121677,"d":"$185,357"}},{"$f":"'Trial 2'!EE21","v":{"v":185164.8898502235,"d":"$185,165"}},{"$f":"'Trial 2'!EF21","v":{"v":185071.270102988,"d":"$185,071"}},{"$f":"'Trial 2'!EG21","v":{"v":185075.98133059902,"d":"$185,076"}},{"$f":"'Trial 2'!EH21","v":{"v":184922.45685829813,"d":"$184,922"}},{"$f":"'Trial 2'!EI21","v":{"v":184790.9421300003,"d":"$184,791"}},{"$f":"'Trial 2'!EJ21","v":{"v":184640.2387917742,"d":"$184,640"}},{"$f":"'Trial 2'!EK21","v":{"v":184582.3845891773,"d":"$184,582"}},{"$f":"'Trial 2'!EL21","v":{"v":184466.26603735326,"d":"$184,466"}},{"$f":"'Trial 2'!EM21","v":{"v":184421.64357682937,"d":"$184,422"}},{"$f":"SUM('Trial 2'!EB21:EM21)","v":{"v":2219350.9351375657,"d":"$2,219,351"}}]
[{"$f":"Labels!B98","v":"Trial 03"},{"$f":"'Trial 3'!B21","v":{"v":206222.0144162289,"d":"$206,222"}},{"$f":"'Trial 3'!C21","v":{"v":205729.32988364281,"d":"$205,729"}},{"$f":"'Trial 3'!D21","v":{"v":205371.5849684507,"d":"$205,372"}},{"$f":"'Trial 3'!E21","v":{"v":204945.2968830707,"d":"$204,945"}},{"$f":"'Trial 3'!F21","v":{"v":204672.3291279642,"d":"$204,672"}},{"$f":"'Trial 3'!G21","v":{"v":204346.58030328475,"d":"$204,347"}},{"$f":"'Trial 3'!H21","v":{"v":204079.17135351335,"d":"$204,079"}},{"$f":"'Trial 3'!I21","v":{"v":203713.6421882956,"d":"$203,714"}},{"$f":"'Trial 3'!J21","v":{"v":203434.16234303298,"d":"$203,434"}},{"$f":"'Trial 3'!K21","v":{"v":203037.8380573051,"d":"$203,038"}},{"$f":"'Trial 3'!L21","v":{"v":202736.80475639444,"d":"$202,737"}},{"$f":"'Trial 3'!M21","v":{"v":202483.1637767037,"d":"$202,483"}},{"$f":"SUM('Trial 3'!B21:M21)","v":{"v":2450771.9180578873,"d":"$2,450,772"}},{"$f":"'Trial 3'!O21","v":{"v":202127.44580324154,"d":"$202,127"}},{"$f":"'Trial 3'!P21","v":{"v":201845.7718907816,"d":"$201,846"}},{"$f":"'Trial 3'!Q21","v":{"v":201524.35917268862,"d":"$201,524"}},{"$f":"'Trial 3'!R21","v":{"v":201315.10850125054,"d":"$201,315"}},{"$f":"'Trial 3'!S21","v":{"v":201076.48585314237,"d":"$201,076"}},{"$f":"'Trial 3'!T21","v":{"v":200796.73107910613,"d":"$200,797"}},{"$f":"'Trial 3'!U21","v":{"v":200504.35733634877,"d":"$200,504"}},{"$f":"'Trial 3'!V21","v":{"v":200116.1670801038,"d":"$200,116"}},{"$f":"'Trial 3'!W21","v":{"v":199803.99068667562,"d":"$199,804"}},{"$f":"'Trial 3'!X21","v":{"v":199573.67633148792,"d":"$199,574"}},{"$f":"'Trial 3'!Y21","v":{"v":199331.04221149825,"d":"$199,331"}},{"$f":"'Trial 3'!Z21","v":{"v":199056.80175546848,"d":"$199,057"}},{"$f":"SUM('Trial 3'!O21:Z21)","v":{"v":2407071.9377017934,"d":"$2,407,072"}},{"$f":"'Trial 3'!AB21","v":{"v":198705.65992485636,"d":"$198,706"}},{"$f":"'Trial 3'!AC21","v":{"v":198548.71091008664,"d":"$198,549"}},{"$f":"'Trial 3'!AD21","v":{"v":198276.26971920292,"d":"$198,276"}},{"$f":"'Trial 3'!AE21","v":{"v":197983.02972775022,"d":"$197,983"}},{"$f":"'Trial 3'!AF21","v":{"v":197813.0942769687,"d":"$197,813"}},{"$f":"'Trial 3'!AG21","v":{"v":197482.20277857958,"d":"$197,482"}},{"$f":"'Trial 3'!AH21","v":{"v":197315.63442096394,"d":"$197,316"}},{"$f":"'Trial 3'!AI21","v":{"v":197116.85214645174,"d":"$197,117"}},{"$f":"'Trial 3'!AJ21","v":{"v":196860.9768056234,"d":"$196,861"}},{"$f":"'Trial 3'!AK21","v":{"v":196694.62040460162,"d":"$196,695"}},{"$f":"'Trial 3'!AL21","v":{"v":196505.14502116508,"d":"$196,505"}},{"$f":"'Trial 3'!AM21","v":{"v":196282.273048785,"d":"$196,282"}},{"$f":"SUM('Trial 3'!AB21:AM21)","v":{"v":2369584.469185035,"d":"$2,369,584"}},{"$f":"'Trial 3'!AO21","v":{"v":196057.69055979836,"d":"$196,058"}},{"$f":"'Trial 3'!AP21","v":{"v":195923.37195674033,"d":"$195,923"}},{"$f":"'Trial 3'!AQ21","v":{"v":195803.42104962154,"d":"$195,803"}},{"$f":"'Trial 3'!AR21","v":{"v":195526.22077125663,"d":"$195,526"}},{"$f":"'Trial 3'!AS21","v":{"v":195326.69456002253,"d":"$195,327"}},{"$f":"'Trial 3'!AT21","v":{"v":195197.46274629002,"d":"$195,197"}},{"$f":"'Trial 3'!AU21","v":{"v":194988.6432670041,"d":"$194,989"}},{"$f":"'Trial 3'!AV21","v":{"v":194756.27204197357,"d":"$194,756"}},{"$f":"'Trial 3'!AW21","v":{"v":194608.51178830172,"d":"$194,609"}},{"$f":"'Trial 3'!AX21","v":{"v":194377.99511555128,"d":"$194,378"}},{"$f":"'Trial 3'!AY21","v":{"v":194282.67918626955,"d":"$194,283"}},{"$f":"'Trial 3'!AZ21","v":{"v":194056.7621868388,"d":"$194,057"}},{"$f":"SUM('Trial 3'!AO21:AZ21)","v":{"v":2340905.7252296684,"d":"$2,340,906"}},{"$f":"'Trial 3'!BB21","v":{"v":193804.50771110095,"d":"$193,805"}},{"$f":"'Trial 3'!BC21","v":{"v":193626.34957859546,"d":"$193,626"}},{"$f":"'Trial 3'!BD21","v":{"v":193379.51438700876,"d":"$193,380"}},{"$f":"'Trial 3'!BE21","v":{"v":193281.1672851784,"d":"$193,281"}},{"$f":"'Trial 3'!BF21","v":{"v":193020.27195378,"d":"$193,020"}},{"$f":"'Trial 3'!BG21","v":{"v":192897.87154894703,"d":"$192,898"}},{"$f":"'Trial 3'!BH21","v":{"v":192641.50531178204,"d":"$192,642"}},{"$f":"'Trial 3'!BI21","v":{"v":192443.0038567362,"d":"$192,443"}},{"$f":"'Trial 3'!BJ21","v":{"v":192320.21005304094,"d":"$192,320"}},{"$f":"'Trial 3'!BK21","v":{"v":192185.73361583627,"d":"$192,186"}},{"$f":"'Trial 3'!BL21","v":{"v":192027.48367757667,"d":"$192,027"}},{"$f":"'Trial 3'!BM21","v":{"v":191940.40818531276,"d":"$191,940"}},{"$f":"SUM('Trial 3'!BB21:BM21)","v":{"v":2313568.027164895,"d":"$2,313,568"}},{"$f":"'Trial 3'!BO21","v":{"v":191801.36480626144,"d":"$191,801"}},{"$f":"'Trial 3'!BP21","v":{"v":191666.51986417425,"d":"$191,667"}},{"$f":"'Trial 3'!BQ21","v":{"v":191562.71652061158,"d":"$191,563"}},{"$f":"'Trial 3'!BR21","v":{"v":191375.03165669608,"d":"$191,375"}},{"$f":"'Trial 3'!BS21","v":{"v":191255.4747020614,"d":"$191,255"}},{"$f":"'Trial 3'!BT21","v":{"v":191176.11728213585,"d":"$191,176"}},{"$f":"'Trial 3'!BU21","v":{"v":191031.12170069898,"d":"$191,031"}},{"$f":"'Trial 3'!BV21","v":{"v":190878.64487073073,"d":"$190,879"}},{"$f":"'Trial 3'!BW21","v":{"v":190704.79818582642,"d":"$190,705"}},{"$f":"'Trial 3'!BX21","v":{"v":190613.8686497561,"d":"$190,614"}},{"$f":"'Trial 3'!BY21","v":{"v":190423.27369081348,"d":"$190,423"}},{"$f":"'Trial 3'!BZ21","v":{"v":190384.94565489114,"d":"$190,385"}},{"$f":"SUM('Trial 3'!BO21:BZ21)","v":{"v":2292873.8775846576,"d":"$2,292,874"}},{"$f":"'Trial 3'!CB21","v":{"v":190245.27027039404,"d":"$190,245"}},{"$f":"'Trial 3'!CC21","v":{"v":190161.7343328334,"d":"$190,162"}},{"$f":"'Trial 3'!CD21","v":{"v":190031.8320212513,"d":"$190,032"}},{"$f":"'Trial 3'!CE21","v":{"v":189923.4035138769,"d":"$189,923"}},{"$f":"'Trial 3'!CF21","v":{"v":189818.2734828335,"d":"$189,818"}},{"$f":"'Trial 3'!CG21","v":{"v":189707.22318372352,"d":"$189,707"}},{"$f":"'Trial 3'!CH21","v":{"v":189644.19727930496,"d":"$189,644"}},{"$f":"'Trial 3'!CI21","v":{"v":189588.51619617204,"d":"$189,589"}},{"$f":"'Trial 3'!CJ21","v":{"v":189554.66555823875,"d":"$189,555"}},{"$f":"'Trial 3'!CK21","v":{"v":189429.93712433346,"d":"$189,430"}},{"$f":"'Trial 3'!CL21","v":{"v":189355.56186231718,"d":"$189,356"}},{"$f":"'Trial 3'!CM21","v":{"v":189305.49350939918,"d":"$189,305"}},{"$f":"SUM('Trial 3'!CB21:CM21)","v":{"v":2276766.108334678,"d":"$2,276,766"}},{"$f":"'Trial 3'!CO21","v":{"v":189282.288011824,"d":"$189,282"}},{"$f":"'Trial 3'!CP21","v":{"v":189102.43782586852,"d":"$189,102"}},{"$f":"'Trial 3'!CQ21","v":{"v":189021.4687488162,"d":"$189,021"}},{"$f":"'Trial 3'!CR21","v":{"v":188885.5968793638,"d":"$188,886"}},{"$f":"'Trial 3'!CS21","v":{"v":188795.21749920552,"d":"$188,795"}},{"$f":"'Trial 3'!CT21","v":{"v":188677.5076957813,"d":"$188,678"}},{"$f":"'Trial 3'!CU21","v":{"v":188582.58123819943,"d":"$188,583"}},{"$f":"'Trial 3'!CV21","v":{"v":188511.3419152017,"d":"$188,511"}},{"$f":"'Trial 3'!CW21","v":{"v":188409.6161864334,"d":"$188,410"}},{"$f":"'Trial 3'!CX21","v":{"v":188247.20675232168,"d":"$188,247"}},{"$f":"'Trial 3'!CY21","v":{"v":188221.82359251202,"d":"$188,222"}},{"$f":"'Trial 3'!CZ21","v":{"v":188073.0861582745,"d":"$188,073"}},{"$f":"SUM('Trial 3'!CO21:CZ21)","v":{"v":2263810.172503802,"d":"$2,263,810"}},{"$f":"'Trial 3'!DB21","v":{"v":188022.69241261794,"d":"$188,023"}},{"$f":"'Trial 3'!DC21","v":{"v":187853.12438181753,"d":"$187,853"}},{"$f":"'Trial 3'!DD21","v":{"v":187643.60524008484,"d":"$187,644"}},{"$f":"'Trial 3'!DE21","v":{"v":187535.27289963103,"d":"$187,535"}},{"$f":"'Trial 3'!DF21","v":{"v":187458.79488273972,"d":"$187,459"}},{"$f":"'Trial 3'!DG21","v":{"v":187368.91759264178,"d":"$187,369"}},{"$f":"'Trial 3'!DH21","v":{"v":187302.19528963213,"d":"$187,302"}},{"$f":"'Trial 3'!DI21","v":{"v":187225.19980351545,"d":"$187,225"}},{"$f":"'Trial 3'!DJ21","v":{"v":187128.96634544022,"d":"$187,129"}},{"$f":"'Trial 3'!DK21","v":{"v":187009.83791100027,"d":"$187,010"}},{"$f":"'Trial 3'!DL21","v":{"v":186933.6946408939,"d":"$186,934"}},{"$f":"'Trial 3'!DM21","v":{"v":186875.41459657202,"d":"$186,875"}},{"$f":"SUM('Trial 3'!DB21:DM21)","v":{"v":2248357.7159965867,"d":"$2,248,358"}},{"$f":"'Trial 3'!DO21","v":{"v":186796.30013675886,"d":"$186,796"}},{"$f":"'Trial 3'!DP21","v":{"v":186729.66906966918,"d":"$186,730"}},{"$f":"'Trial 3'!DQ21","v":{"v":186669.23875331206,"d":"$186,669"}},{"$f":"'Trial 3'!DR21","v":{"v":186684.11146558018,"d":"$186,684"}},{"$f":"'Trial 3'!DS21","v":{"v":186485.99481000454,"d":"$186,486"}},{"$f":"'Trial 3'!DT21","v":{"v":186359.08938640897,"d":"$186,359"}},{"$f":"'Trial 3'!DU21","v":{"v":186311.80162895174,"d":"$186,312"}},{"$f":"'Trial 3'!DV21","v":{"v":186206.914718385,"d":"$186,207"}},{"$f":"'Trial 3'!DW21","v":{"v":186160.8440823359,"d":"$186,161"}},{"$f":"'Trial 3'!DX21","v":{"v":186138.16222568965,"d":"$186,138"}},{"$f":"'Trial 3'!DY21","v":{"v":186029.89695862003,"d":"$186,030"}},{"$f":"'Trial 3'!DZ21","v":{"v":185903.61062423425,"d":"$185,904"}},{"$f":"SUM('Trial 3'!DO21:DZ21)","v":{"v":2236475.6338599506,"d":"$2,236,476"}},{"$f":"'Trial 3'!EB21","v":{"v":185746.2186586722,"d":"$185,746"}},{"$f":"'Trial 3'!EC21","v":{"v":185652.78699087902,"d":"$185,653"}},{"$f":"'Trial 3'!ED21","v":{"v":185536.34885874146,"d":"$185,536"}},{"$f":"'Trial 3'!EE21","v":{"v":185464.96610347592,"d":"$185,465"}},{"$f":"'Trial 3'!EF21","v":{"v":185393.31370031618,"d":"$185,393"}},{"$f":"'Trial 3'!EG21","v":{"v":185296.2642153825,"d":"$185,296"}},{"$f":"'Trial 3'!EH21","v":{"v":185200.57106316756,"d":"$185,201"}},{"$f":"'Trial 3'!EI21","v":{"v":185161.7314828798,"d":"$185,162"}},{"$f":"'Trial 3'!EJ21","v":{"v":184994.13394498682,"d":"$184,994"}},{"$f":"'Trial 3'!EK21","v":{"v":184806.92855096425,"d":"$184,807"}},{"$f":"'Trial 3'!EL21","v":{"v":184798.70283752072,"d":"$184,799"}},{"$f":"'Trial 3'!EM21","v":{"v":184750.11281944028,"d":"$184,750"}},{"$f":"SUM('Trial 3'!EB21:EM21)","v":{"v":2222802.079226427,"d":"$2,222,802"}}]
[{"$f":"Labels!B99","v":"Trial 04"},{"$f":"'Trial 4'!B21","v":{"v":206222.0144162289,"d":"$206,222"}},{"$f":"'Trial 4'!C21","v":{"v":205806.64232805258,"d":"$205,807"}},{"$f":"'Trial 4'!D21","v":{"v":205388.5981420975,"d":"$205,389"}},{"$f":"'Trial 4'!E21","v":{"v":204977.43192716522,"d":"$204,977"}},{"$f":"'Trial 4'!F21","v":{"v":204653.82197907378,"d":"$204,654"}},{"$f":"'Trial 4'!G21","v":{"v":204373.43534486045,"d":"$204,373"}},{"$f":"'Trial 4'!H21","v":{"v":204131.8567076433,"d":"$204,132"}},{"$f":"'Trial 4'!I21","v":{"v":203705.4039156055,"d":"$203,705"}},{"$f":"'Trial 4'!J21","v":{"v":203293.1253800159,"d":"$203,293"}},{"$f":"'Trial 4'!K21","v":{"v":202953.14093724047,"d":"$202,953"}},{"$f":"'Trial 4'!L21","v":{"v":202620.52137365946,"d":"$202,621"}},{"$f":"'Trial 4'!M21","v":{"v":202311.76246606707,"d":"$202,312"}},{"$f":"SUM('Trial 4'!B21:M21)","v":{"v":2450437.75491771,"d":"$2,450,438"}},{"$f":"'Trial 4'!O21","v":{"v":201916.7359820264,"d":"$201,917"}},{"$f":"'Trial 4'!P21","v":{"v":201623.27415673612,"d":"$201,623"}},{"$f":"'Trial 4'!Q21","v":{"v":201358.83259742198,"d":"$201,359"}},{"$f":"'Trial 4'!R21","v":{"v":201155.68410141615,"d":"$201,156"}},{"$f":"'Trial 4'!S21","v":{"v":200876.42432152358,"d":"$200,876"}},{"$f":"'Trial 4'!T21","v":{"v":200492.48232209153,"d":"$200,492"}},{"$f":"'Trial 4'!U21","v":{"v":200193.8803924423,"d":"$200,194"}},{"$f":"'Trial 4'!V21","v":{"v":199937.34476834114,"d":"$199,937"}},{"$f":"'Trial 4'!W21","v":{"v":199671.81218612124,"d":"$199,672"}},{"$f":"'Trial 4'!X21","v":{"v":199535.3701091954,"d":"$199,535"}},{"$f":"'Trial 4'!Y21","v":{"v":199272.16820766544,"d":"$199,272"}},{"$f":"'Trial 4'!Z21","v":{"v":198927.95754172685,"d":"$198,928"}},{"$f":"SUM('Trial 4'!O21:Z21)","v":{"v":2404961.9666867084,"d":"$2,404,962"}},{"$f":"'Trial 4'!AB21","v":{"v":198631.71652372938,"d":"$198,632"}},{"$f":"'Trial 4'!AC21","v":{"v":198355.42924942172,"d":"$198,355"}},{"$f":"'Trial 4'!AD21","v":{"v":198142.9698181135,"d":"$198,143"}},{"$f":"'Trial 4'!AE21","v":{"v":197891.4786674058,"d":"$197,891"}},{"$f":"'Trial 4'!AF21","v":{"v":197588.15763855015,"d":"$197,588"}},{"$f":"'Trial 4'!AG21","v":{"v":197336.2397592916,"d":"$197,336"}},{"$f":"'Trial 4'!AH21","v":{"v":197210.2470401351,"d":"$197,210"}},{"$f":"'Trial 4'!AI21","v":{"v":196998.78122896538,"d":"$196,999"}},{"$f":"'Trial 4'!AJ21","v":{"v":196790.4508441016,"d":"$196,790"}},{"$f":"'Trial 4'!AK21","v":{"v":196551.02840405412,"d":"$196,551"}},{"$f":"'Trial 4'!AL21","v":{"v":196424.48529510977,"d":"$196,424"}},{"$f":"'Trial 4'!AM21","v":{"v":196203.00755717445,"d":"$196,203"}},{"$f":"SUM('Trial 4'!AB21:AM21)","v":{"v":2368123.992026053,"d":"$2,368,124"}},{"$f":"'Trial 4'!AO21","v":{"v":195897.4225381414,"d":"$195,897"}},{"$f":"'Trial 4'!AP21","v":{"v":195709.03210056172,"d":"$195,709"}},{"$f":"'Trial 4'!AQ21","v":{"v":195517.25881839835,"d":"$195,517"}},{"$f":"'Trial 4'!AR21","v":{"v":195315.4424237194,"d":"$195,315"}},{"$f":"'Trial 4'!AS21","v":{"v":195069.26517593418,"d":"$195,069"}},{"$f":"'Trial 4'!AT21","v":{"v":194915.58123385138,"d":"$194,916"}},{"$f":"'Trial 4'!AU21","v":{"v":194800.4127875782,"d":"$194,800"}},{"$f":"'Trial 4'!AV21","v":{"v":194651.93786650145,"d":"$194,652"}},{"$f":"'Trial 4'!AW21","v":{"v":194475.78541324774,"d":"$194,476"}},{"$f":"'Trial 4'!AX21","v":{"v":194343.03250190796,"d":"$194,343"}},{"$f":"'Trial 4'!AY21","v":{"v":194115.02395372483,"d":"$194,115"}},{"$f":"'Trial 4'!AZ21","v":{"v":193900.3886489946,"d":"$193,900"}},{"$f":"SUM('Trial 4'!AO21:AZ21)","v":{"v":2338710.5834625615,"d":"$2,338,711"}},{"$f":"'Trial 4'!BB21","v":{"v":193644.06481282317,"d":"$193,644"}},{"$f":"'Trial 4'!BC21","v":{"v":193597.97762928024,"d":"$193,598"}},{"$f":"'Trial 4'!BD21","v":{"v":193546.32040066263,"d":"$193,546"}},{"$f":"'Trial 4'!BE21","v":{"v":193327.28595327833,"d":"$193,327"}},{"$f":"'Trial 4'!BF21","v":{"v":193173.99304682846,"d":"$193,174"}},{"$f":"'Trial 4'!BG21","v":{"v":192965.26501363073,"d":"$192,965"}},{"$f":"'Trial 4'!BH21","v":{"v":192857.83781688713,"d":"$192,858"}},{"$f":"'Trial 4'!BI21","v":{"v":192657.3183427635,"d":"$192,657"}},{"$f":"'Trial 4'!BJ21","v":{"v":192516.92454851355,"d":"$192,517"}},{"$f":"'Trial 4'!BK21","v":{"v":192263.34030544298,"d":"$192,263"}},{"$f":"'Trial 4'!BL21","v":{"v":192183.03619185748,"d":"$192,183"}},{"$f":"'Trial 4'!BM21","v":{"v":192072.6462923096,"d":"$192,073"}},{"$f":"SUM('Trial 4'!BB21:BM21)","v":{"v":2314806.0103542777,"d":"$2,314,806"}},{"$f":"'Trial 4'!BO21","v":{"v":191986.89930017147,"d":"$191,987"}},{"$f":"'Trial 4'!BP21","v":{"v":191893.76544187282,"d":"$191,894"}},{"$f":"'Trial 4'!BQ21","v":{"v":191804.82338848113,"d":"$191,805"}},{"$f":"'Trial 4'!BR21","v":{"v":191625.87279715895,"d":"$191,626"}},{"$f":"'Trial 4'!BS21","v":{"v":191506.07704803176,"d":"$191,506"}},{"$f":"'Trial 4'!BT21","v":{"v":191303.2496913889,"d":"$191,303"}},{"$f":"'Trial 4'!BU21","v":{"v":191210.7702005905,"d":"$191,211"}},{"$f":"'Trial 4'!BV21","v":{"v":191055.3414041778,"d":"$191,055"}},{"$f":"'Trial 4'!BW21","v":{"v":190878.88394845923,"d":"$190,879"}},{"$f":"'Trial 4'!BX21","v":{"v":190683.73296347284,"d":"$190,684"}},{"$f":"'Trial 4'!BY21","v":{"v":190612.14044440046,"d":"$190,612"}},{"$f":"'Trial 4'!BZ21","v":{"v":190477.85611920521,"d":"$190,478"}},{"$f":"SUM('Trial 4'!BO21:BZ21)","v":{"v":2295039.412747411,"d":"$2,295,039"}},{"$f":"'Trial 4'!CB21","v":{"v":190389.67194158418,"d":"$190,390"}},{"$f":"'Trial 4'!CC21","v":{"v":190213.46829255082,"d":"$190,213"}},{"$f":"'Trial 4'!CD21","v":{"v":190124.566802409,"d":"$190,125"}},{"$f":"'Trial 4'!CE21","v":{"v":189972.21633803545,"d":"$189,972"}},{"$f":"'Trial 4'!CF21","v":{"v":189835.02344932707,"d":"$189,835"}},{"$f":"'Trial 4'!CG21","v":{"v":189729.75142249855,"d":"$189,730"}},{"$f":"'Trial 4'!CH21","v":{"v":189589.62038199962,"d":"$189,590"}},{"$f":"'Trial 4'!CI21","v":{"v":189595.20459532735,"d":"$189,595"}},{"$f":"'Trial 4'!CJ21","v":{"v":189542.28026979775,"d":"$189,542"}},{"$f":"'Trial 4'!CK21","v":{"v":189419.13822503493,"d":"$189,419"}},{"$f":"'Trial 4'!CL21","v":{"v":189371.95098919445,"d":"$189,372"}},{"$f":"'Trial 4'!CM21","v":{"v":189272.07538789604,"d":"$189,272"}},{"$f":"SUM('Trial 4'!CB21:CM21)","v":{"v":2277054.9680956546,"d":"$2,277,055"}},{"$f":"'Trial 4'!CO21","v":{"v":189116.06453420923,"d":"$189,116"}},{"$f":"'Trial 4'!CP21","v":{"v":189064.13472327948,"d":"$189,064"}},{"$f":"'Trial 4'!CQ21","v":{"v":188993.35950931997,"d":"$188,993"}},{"$f":"'Trial 4'!CR21","v":{"v":188940.2369663445,"d":"$188,940"}},{"$f":"'Trial 4'!CS21","v":{"v":188833.38048336908,"d":"$188,833"}},{"$f":"'Trial 4'!CT21","v":{"v":188673.57541989526,"d":"$188,674"}},{"$f":"'Trial 4'!CU21","v":{"v":188470.70311119326,"d":"$188,471"}},{"$f":"'Trial 4'!CV21","v":{"v":188467.55287639386,"d":"$188,468"}},{"$f":"'Trial 4'!CW21","v":{"v":188390.65812489623,"d":"$188,391"}},{"$f":"'Trial 4'!CX21","v":{"v":188308.3363657936,"d":"$188,308"}},{"$f":"'Trial 4'!CY21","v":{"v":188106.7801074107,"d":"$188,107"}},{"$f":"'Trial 4'!CZ21","v":{"v":188043.46601043217,"d":"$188,043"}},{"$f":"SUM('Trial 4'!CO21:CZ21)","v":{"v":2263408.248232537,"d":"$2,263,408"}},{"$f":"'Trial 4'!DB21","v":{"v":188019.81673864962,"d":"$188,020"}},{"$f":"'Trial 4'!DC21","v":{"v":187871.69300569358,"d":"$187,872"}},{"$f":"'Trial 4'!DD21","v":{"v":187693.74690972402,"d":"$187,694"}},{"$f":"'Trial 4'!DE21","v":{"v":187633.12069095296,"d":"$187,633"}},{"$f":"'Trial 4'!DF21","v":{"v":187571.893599305,"d":"$187,572"}},{"$f":"'Trial 4'!DG21","v":{"v":187479.4902320784,"d":"$187,479"}},{"$f":"'Trial 4'!DH21","v":{"v":187403.8655326228,"d":"$187,404"}},{"$f":"'Trial 4'!DI21","v":{"v":187228.51043268252,"d":"$187,229"}},{"$f":"'Trial 4'!DJ21","v":{"v":187178.46160150188,"d":"$187,178"}},{"$f":"'Trial 4'!DK21","v":{"v":187042.76804960592,"d":"$187,043"}},{"$f":"'Trial 4'!DL21","v":{"v":186982.67881535724,"d":"$186,983"}},{"$f":"'Trial 4'!DM21","v":{"v":186902.04802337565,"d":"$186,902"}},{"$f":"SUM('Trial 4'!DB21:DM21)","v":{"v":2249008.0936315493,"d":"$2,249,008"}},{"$f":"'Trial 4'!DO21","v":{"v":186772.68474045309,"d":"$186,773"}},{"$f":"'Trial 4'!DP21","v":{"v":186761.740984794,"d":"$186,762"}},{"$f":"'Trial 4'!DQ21","v":{"v":186774.33474454458,"d":"$186,774"}},{"$f":"'Trial 4'!DR21","v":{"v":186613.86623729358,"d":"$186,614"}},{"$f":"'Trial 4'!DS21","v":{"v":186608.49969887114,"d":"$186,608"}},{"$f":"'Trial 4'!DT21","v":{"v":186612.11478842978,"d":"$186,612"}},{"$f":"'Trial 4'!DU21","v":{"v":186562.65329762912,"d":"$186,563"}},{"$f":"'Trial 4'!DV21","v":{"v":186426.7646583667,"d":"$186,427"}},{"$f":"'Trial 4'!DW21","v":{"v":186311.4559353075,"d":"$186,311"}},{"$f":"'Trial 4'!DX21","v":{"v":186096.41236876033,"d":"$186,096"}},{"$f":"'Trial 4'!DY21","v":{"v":186079.24827233015,"d":"$186,079"}},{"$f":"'Trial 4'!DZ21","v":{"v":186044.9061774854,"d":"$186,045"}},{"$f":"SUM('Trial 4'!DO21:DZ21)","v":{"v":2237664.6819042657,"d":"$2,237,665"}},{"$f":"'Trial 4'!EB21","v":{"v":186036.73494809034,"d":"$186,037"}},{"$f":"'Trial 4'!EC21","v":{"v":185926.54805650128,"d":"$185,927"}},{"$f":"'Trial 4'!ED21","v":{"v":185706.03620611888,"d":"$185,706"}},{"$f":"'Trial 4'!EE21","v":{"v":185586.65787022913,"d":"$185,587"}},{"$f":"'Trial 4'!EF21","v":{"v":185562.70013222544,"d":"$185,563"}},{"$f":"'Trial 4'!EG21","v":{"v":185558.88660606032,"d":"$185,559"}},{"$f":"'Trial 4'!EH21","v":{"v":185431.32513338805,"d":"$185,431"}},{"$f":"'Trial 4'!EI21","v":{"v":185376.06861877206,"d":"$185,376"}},{"$f":"'Trial 4'!EJ21","v":{"v":185180.2097761103,"d":"$185,180"}},{"$f":"'Trial 4'!EK21","v":{"v":184987.2141306232,"d":"$184,987"}},{"$f":"'Trial 4'!EL21","v":{"v":184954.81440242074,"d":"$184,955"}},{"$f":"'Trial 4'!EM21","v":{"v":184789.92452539224,"d":"$184,790"}},{"$f":"SUM('Trial 4'!EB21:EM21)","v":{"v":2225097.120405932,"d":"$2,225,097"}}]
[{"$f":"Labels!B100","v":"Trial 05"},{"$f":"'Trial 5'!B21","v":{"v":206222.0144162289,"d":"$206,222"}},{"$f":"'Trial 5'!C21","v":{"v":205758.1519488797,"d":"$205,758"}},{"$f":"'Trial 5'!D21","v":{"v":205326.71319687855,"d":"$205,327"}},{"$f":"'Trial 5'!E21","v":{"v":205032.57559577702,"d":"$205,033"}},{"$f":"'Trial 5'!F21","v":{"v":204572.47953093267,"d":"$204,572"}},{"$f":"'Trial 5'!G21","v":{"v":204183.6164385158,"d":"$204,184"}},{"$f":"'Trial 5'!H21","v":{"v":203794.08270129297,"d":"$203,794"}},{"$f":"'Trial 5'!I21","v":{"v":203455.4140650511,"d":"$203,455"}},{"$f":"'Trial 5'!J21","v":{"v":203164.79951249826,"d":"$203,165"}},{"$f":"'Trial 5'!K21","v":{"v":202957.32425385673,"d":"$202,957"}},{"$f":"'Trial 5'!L21","v":{"v":202585.3277549185,"d":"$202,585"}},{"$f":"'Trial 5'!M21","v":{"v":202233.8503599494,"d":"$202,234"}},{"$f":"SUM('Trial 5'!B21:M21)","v":{"v":2449286.3497747798,"d":"$2,449,286"}},{"$f":"'Trial 5'!O21","v":{"v":201928.54728600165,"d":"$201,929"}},{"$f":"'Trial 5'!P21","v":{"v":201611.43982228526,"d":"$201,611"}},{"$f":"'Trial 5'!Q21","v":{"v":201327.75861772423,"d":"$201,328"}},{"$f":"'Trial 5'!R21","v":{"v":201026.18077717588,"d":"$201,026"}},{"$f":"'Trial 5'!S21","v":{"v":200759.94081423516,"d":"$200,760"}},{"$f":"'Trial 5'!T21","v":{"v":200406.01475082358,"d":"$200,406"}},{"$f":"'Trial 5'!U21","v":{"v":200253.16814345348,"d":"$200,253"}},{"$f":"'Trial 5'!V21","v":{"v":200014.25111800083,"d":"$200,014"}},{"$f":"'Trial 5'!W21","v":{"v":199745.73555401768,"d":"$199,746"}},{"$f":"'Trial 5'!X21","v":{"v":199507.02597000977,"d":"$199,507"}},{"$f":"'Trial 5'!Y21","v":{"v":199189.82006333265,"d":"$199,190"}},{"$f":"'Trial 5'!Z21","v":{"v":199052.54943476414,"d":"$199,053"}},{"$f":"SUM('Trial 5'!O21:Z21)","v":{"v":2404822.4323518244,"d":"$2,404,822"}},{"$f":"'Trial 5'!AB21","v":{"v":198782.0051631406,"d":"$198,782"}},{"$f":"'Trial 5'!AC21","v":{"v":198575.837870117,"d":"$198,576"}},{"$f":"'Trial 5'!AD21","v":{"v":198340.31930251516,"d":"$198,340"}},{"$f":"'Trial 5'!AE21","v":{"v":198208.24980518897,"d":"$198,208"}},{"$f":"'Trial 5'!AF21","v":{"v":197868.5952032566,"d":"$197,869"}},{"$f":"'Trial 5'!AG21","v":{"v":197555.91634640927,"d":"$197,556"}},{"$f":"'Trial 5'!AH21","v":{"v":197309.02874282454,"d":"$197,309"}},{"$f":"'Trial 5'!AI21","v":{"v":197124.141782844,"d":"$197,124"}},{"$f":"'Trial 5'!AJ21","v":{"v":196850.11132322229,"d":"$196,850"}},{"$f":"'Trial 5'!AK21","v":{"v":196661.42698824155,"d":"$196,661"}},{"$f":"'Trial 5'!AL21","v":{"v":196392.9272555704,"d":"$196,393"}},{"$f":"'Trial 5'!AM21","v":{"v":196180.06063797782,"d":"$196,180"}},{"$f":"SUM('Trial 5'!AB21:AM21)","v":{"v":2369848.620421308,"d":"$2,369,849"}},{"$f":"'Trial 5'!AO21","v":{"v":195927.30109691652,"d":"$195,927"}},{"$f":"'Trial 5'!AP21","v":{"v":195740.091383251,"d":"$195,740"}},{"$f":"'Trial 5'!AQ21","v":{"v":195561.84297880935,"d":"$195,562"}},{"$f":"'Trial 5'!AR21","v":{"v":195355.31616487534,"d":"$195,355"}},{"$f":"'Trial 5'!AS21","v":{"v":195205.84258662656,"d":"$195,206"}},{"$f":"'Trial 5'!AT21","v":{"v":195068.946090162,"d":"$195,069"}},{"$f":"'Trial 5'!AU21","v":{"v":194860.60698504437,"d":"$194,861"}},{"$f":"'Trial 5'!AV21","v":{"v":194712.58572200383,"d":"$194,713"}},{"$f":"'Trial 5'!AW21","v":{"v":194547.26532534268,"d":"$194,547"}},{"$f":"'Trial 5'!AX21","v":{"v":194363.08538958716,"d":"$194,363"}},{"$f":"'Trial 5'!AY21","v":{"v":194182.68690957833,"d":"$194,183"}},{"$f":"'Trial 5'!AZ21","v":{"v":194036.2314237714,"d":"$194,036"}},{"$f":"SUM('Trial 5'!AO21:AZ21)","v":{"v":2339561.802055969,"d":"$2,339,562"}},{"$f":"'Trial 5'!BB21","v":{"v":193861.31222406356,"d":"$193,861"}},{"$f":"'Trial 5'!BC21","v":{"v":193661.11476937032,"d":"$193,661"}},{"$f":"'Trial 5'!BD21","v":{"v":193426.74028230325,"d":"$193,427"}},{"$f":"'Trial 5'!BE21","v":{"v":193164.85033548705,"d":"$193,165"}},{"$f":"'Trial 5'!BF21","v":{"v":193047.71502261978,"d":"$193,048"}},{"$f":"'Trial 5'!BG21","v":{"v":192870.7081346487,"d":"$192,871"}},{"$f":"'Trial 5'!BH21","v":{"v":192742.9276099286,"d":"$192,743"}},{"$f":"'Trial 5'!BI21","v":{"v":192517.16853630752,"d":"$192,517"}},{"$f":"'Trial 5'!BJ21","v":{"v":192397.48766823256,"d":"$192,397"}},{"$f":"'Trial 5'!BK21","v":{"v":192334.0939363411,"d":"$192,334"}},{"$f":"'Trial 5'!BL21","v":{"v":192221.1374905807,"d":"$192,221"}},{"$f":"'Trial 5'!BM21","v":{"v":192160.3495368662,"d":"$192,160"}},{"$f":"SUM('Trial 5'!BB21:BM21)","v":{"v":2314405.6055467497,"d":"$2,314,406"}},{"$f":"'Trial 5'!BO21","v":{"v":192041.1742146514,"d":"$192,041"}},{"$f":"'Trial 5'!BP21","v":{"v":191977.8746476171,"d":"$191,978"}},{"$f":"'Trial 5'!BQ21","v":{"v":191946.7670954857,"d":"$191,947"}},{"$f":"'Trial 5'!BR21","v":{"v":191910.2638430704,"d":"$191,910"}},{"$f":"'Trial 5'!BS21","v":{"v":191700.70257913973,"d":"$191,701"}},{"$f":"'Trial 5'!BT21","v":{"v":191566.5918753375,"d":"$191,567"}},{"$f":"'Trial 5'!BU21","v":{"v":191542.89423854518,"d":"$191,543"}},{"$f":"'Trial 5'!BV21","v":{"v":191342.30562676748,"d":"$191,342"}},{"$f":"'Trial 5'!BW21","v":{"v":191198.79545735128,"d":"$191,199"}},{"$f":"'Trial 5'!BX21","v":{"v":191079.6593653067,"d":"$191,080"}},{"$f":"'Trial 5'!BY21","v":{"v":191035.98679816967,"d":"$191,036"}},{"$f":"'Trial 5'!BZ21","v":{"v":190998.32510668837,"d":"$190,998"}},{"$f":"SUM('Trial 5'!BO21:BZ21)","v":{"v":2298341.34084813,"d":"$2,298,341"}},{"$f":"'Trial 5'!CB21","v":{"v":190935.29329008004,"d":"$190,935"}},{"$f":"'Trial 5'!CC21","v":{"v":190795.1302768587,"d":"$190,795"}},{"$f":"'Trial 5'!CD21","v":{"v":190670.92578888795,"d":"$190,671"}},{"$f":"'Trial 5'!CE21","v":{"v":190535.76899151652,"d":"$190,536"}},{"$f":"'Trial 5'!CF21","v":{"v":190372.39597061713,"d":"$190,372"}},{"$f":"'Trial 5'!CG21","v":{"v":190261.31832727592,"d":"$190,261"}},{"$f":"'Trial 5'!CH21","v":{"v":190251.2352014979,"d":"$190,251"}},{"$f":"'Trial 5'!CI21","v":{"v":190083.16185456852,"d":"$190,083"}},{"$f":"'Trial 5'!CJ21","v":{"v":189906.10209447297,"d":"$189,906"}},{"$f":"'Trial 5'!CK21","v":{"v":189807.8297401543,"d":"$189,808"}},{"$f":"'Trial 5'!CL21","v":{"v":189793.8968233705,"d":"$189,794"}},{"$f":"'Trial 5'!CM21","v":{"v":189612.50961045636,"d":"$189,613"}},{"$f":"SUM('Trial 5'!CB21:CM21)","v":{"v":2283025.5679697567,"d":"$2,283,026"}},{"$f":"'Trial 5'!CO21","v":{"v":189528.13769435076,"d":"$189,528"}},{"$f":"'Trial 5'!CP21","v":{"v":189437.23632350808,"d":"$189,437"}},{"$f":"'Trial 5'!CQ21","v":{"v":189258.31553888673,"d":"$189,258"}},{"$f":"'Trial 5'!CR21","v":{"v":189233.79528153167,"d":"$189,234"}},{"$f":"'Trial 5'!CS21","v":{"v":189068.25551381934,"d":"$189,068"}},{"$f":"'Trial 5'!CT21","v":{"v":188924.22152396105,"d":"$188,924"}},{"$f":"'Trial 5'!CU21","v":{"v":188844.51288229643,"d":"$188,845"}},{"$f":"'Trial 5'!CV21","v":{"v":188746.36541255892,"d":"$188,746"}},{"$f":"'Trial 5'!CW21","v":{"v":188616.75399798018,"d":"$188,617"}},{"$f":"'Trial 5'!CX21","v":{"v":188565.1266608994,"d":"$188,565"}},{"$f":"'Trial 5'!CY21","v":{"v":188424.8847709232,"d":"$188,425"}},{"$f":"'Trial 5'!CZ21","v":{"v":188310.45554546625,"d":"$188,310"}},{"$f":"SUM('Trial 5'!CO21:CZ21)","v":{"v":2266958.061146182,"d":"$2,266,958"}},{"$f":"'Trial 5'!DB21","v":{"v":188105.11306025367,"d":"$188,105"}},{"$f":"'Trial 5'!DC21","v":{"v":188036.22628958485,"d":"$188,036"}},{"$f":"'Trial 5'!DD21","v":{"v":187933.3074345058,"d":"$187,933"}},{"$f":"'Trial 5'!DE21","v":{"v":187847.2473433273,"d":"$187,847"}},{"$f":"'Trial 5'!DF21","v":{"v":187700.0936291998,"d":"$187,700"}},{"$f":"'Trial 5'!DG21","v":{"v":187540.92323112054,"d":"$187,541"}},{"$f":"'Trial 5'!DH21","v":{"v":187496.62558658433,"d":"$187,497"}},{"$f":"'Trial 5'!DI21","v":{"v":187497.42827968256,"d":"$187,497"}},{"$f":"'Trial 5'!DJ21","v":{"v":187395.85625390094,"d":"$187,396"}},{"$f":"'Trial 5'!DK21","v":{"v":187235.7585926336,"d":"$187,236"}},{"$f":"'Trial 5'!DL21","v":{"v":187121.8229931729,"d":"$187,122"}},{"$f":"'Trial 5'!DM21","v":{"v":186955.4776513395,"d":"$186,955"}},{"$f":"SUM('Trial 5'!DB21:DM21)","v":{"v":2250865.8803453054,"d":"$2,250,866"}},{"$f":"'Trial 5'!DO21","v":{"v":186858.46622603622,"d":"$186,858"}},{"$f":"'Trial 5'!DP21","v":{"v":186726.90459645056,"d":"$186,727"}},{"$f":"'Trial 5'!DQ21","v":{"v":186626.04415641652,"d":"$186,626"}},{"$f":"'Trial 5'!DR21","v":{"v":186622.24454910358,"d":"$186,622"}},{"$f":"'Trial 5'!DS21","v":{"v":186567.47021935842,"d":"$186,567"}},{"$f":"'Trial 5'!DT21","v":{"v":186500.46882916786,"d":"$186,500"}},{"$f":"'Trial 5'!DU21","v":{"v":186466.08557841452,"d":"$186,466"}},{"$f":"'Trial 5'!DV21","v":{"v":186317.11996304977,"d":"$186,317"}},{"$f":"'Trial 5'!DW21","v":{"v":186226.6232496836,"d":"$186,227"}},{"$f":"'Trial 5'!DX21","v":{"v":186179.08825047547,"d":"$186,179"}},{"$f":"'Trial 5'!DY21","v":{"v":186047.24693238977,"d":"$186,047"}},{"$f":"'Trial 5'!DZ21","v":{"v":185948.44077392333,"d":"$185,948"}},{"$f":"SUM('Trial 5'!DO21:DZ21)","v":{"v":2237086.2033244697,"d":"$2,237,086"}},{"$f":"'Trial 5'!EB21","v":{"v":185794.62447988606,"d":"$185,795"}},{"$f":"'Trial 5'!EC21","v":{"v":185695.11757263463,"d":"$185,695"}},{"$f":"'Trial 5'!ED21","v":{"v":185671.56172791737,"d":"$185,672"}},{"$f":"'Trial 5'!EE21","v":{"v":185526.27264670824,"d":"$185,526"}},{"$f":"'Trial 5'!EF21","v":{"v":185442.48433300896,"d":"$185,442"}},{"$f":"'Trial 5'!EG21","v":{"v":185354.871970774,"d":"$185,355"}},{"$f":"'Trial 5'!EH21","v":{"v":185324.62576628546,"d":"$185,325"}},{"$f":"'Trial 5'!EI21","v":{"v":185141.45807022377,"d":"$185,141"}},{"$f":"'Trial 5'!EJ21","v":{"v":184985.63810363482,"d":"$184,986"}},{"$f":"'Trial 5'!EK21","v":{"v":184858.87984005953,"d":"$184,859"}},{"$f":"'Trial 5'!EL21","v":{"v":184773.2269767833,"d":"$184,773"}},{"$f":"'Trial 5'!EM21","v":{"v":184690.09993773082,"d":"$184,690"}},{"$f":"SUM('Trial 5'!EB21:EM21)","v":{"v":2223258.8614256466,"d":"$2,223,259"}}]
[{"$f":"Labels!B101","v":"Trial 06"},{"$f":"'Trial 6'!B21","v":{"v":206222.0144162289,"d":"$206,222"}},{"$f":"'Trial 6'!C21","v":{"v":205847.4145632789,"d":"$205,847"}},{"$f":"'Trial 6'!D21","v":{"v":205354.6730447456,"d":"$205,355"}},{"$f":"'Trial 6'!E21","v":{"v":205048.3969630201,"d":"$205,048"}},{"$f":"'Trial 6'!F21","v":{"v":204779.73655062608,"d":"$204,780"}},{"$f":"'Trial 6'!G21","v":{"v":204455.44946065146,"d":"$204,455"}},{"$f":"'Trial 6'!H21","v":{"v":204059.42347200934,"d":"$204,059"}},{"$f":"'Trial 6'!I21","v":{"v":203709.03252905855,"d":"$203,709"}},{"$f":"'Trial 6'!J21","v":{"v":203363.4618229389,"d":"$203,363"}},{"$f":"'Trial 6'!K21","v":{"v":203099.54200364614,"d":"$203,100"}},{"$f":"'Trial 6'!L21","v":{"v":202775.6864100786,"d":"$202,776"}},{"$f":"'Trial 6'!M21","v":{"v":202558.77154559732,"d":"$202,559"}},{"$f":"SUM('Trial 6'!B21:M21)","v":{"v":2451273.60278188,"d":"$2,451,274"}},{"$f":"'Trial 6'!O21","v":{"v":202243.21836399578,"d":"$202,243"}},{"$f":"'Trial 6'!P21","v":{"v":202019.16179076745,"d":"$202,019"}},{"$f":"'Trial 6'!Q21","v":{"v":201699.82696883916,"d":"$201,700"}},{"$f":"'Trial 6'!R21","v":{"v":201487.68569900125,"d":"$201,488"}},{"$f":"'Trial 6'!S21","v":{"v":201252.24950236423,"d":"$201,252"}},{"$f":"'Trial 6'!T21","v":{"v":200860.29617665964,"d":"$200,860"}},{"$f":"'Trial 6'!U21","v":{"v":200564.52635360285,"d":"$200,565"}},{"$f":"'Trial 6'!V21","v":{"v":200331.40608625626,"d":"$200,331"}},{"$f":"'Trial 6'!W21","v":{"v":200018.1962504341,"d":"$200,018"}},{"$f":"'Trial 6'!X21","v":{"v":199725.67652994397,"d":"$199,726"}},{"$f":"'Trial 6'!Y21","v":{"v":199492.38363041804,"d":"$199,492"}},{"$f":"'Trial 6'!Z21","v":{"v":199298.841413352,"d":"$199,299"}},{"$f":"SUM('Trial 6'!O21:Z21)","v":{"v":2408993.468765635,"d":"$2,408,993"}},{"$f":"'Trial 6'!AB21","v":{"v":198988.6643445009,"d":"$198,989"}},{"$f":"'Trial 6'!AC21","v":{"v":198761.84647443422,"d":"$198,762"}},{"$f":"'Trial 6'!AD21","v":{"v":198559.4770238687,"d":"$198,559"}},{"$f":"'Trial 6'!AE21","v":{"v":198395.5458587663,"d":"$198,396"}},{"$f":"'Trial 6'!AF21","v":{"v":198186.02596388137,"d":"$198,186"}},{"$f":"'Trial 6'!AG21","v":{"v":198028.55770301088,"d":"$198,029"}},{"$f":"'Trial 6'!AH21","v":{"v":197821.7155397581,"d":"$197,822"}},{"$f":"'Trial 6'!AI21","v":{"v":197652.49536052998,"d":"$197,652"}},{"$f":"'Trial 6'!AJ21","v":{"v":197421.71355143847,"d":"$197,422"}},{"$f":"'Trial 6'!AK21","v":{"v":197165.44608835658,"d":"$197,165"}},{"$f":"'Trial 6'!AL21","v":{"v":196964.2646975524,"d":"$196,964"}},{"$f":"'Trial 6'!AM21","v":{"v":196817.0277492443,"d":"$196,817"}},{"$f":"SUM('Trial 6'!AB21:AM21)","v":{"v":2374762.780355342,"d":"$2,374,763"}},{"$f":"'Trial 6'!AO21","v":{"v":196705.8854225325,"d":"$196,706"}},{"$f":"'Trial 6'!AP21","v":{"v":196523.37560672648,"d":"$196,523"}},{"$f":"'Trial 6'!AQ21","v":{"v":196307.41250998742,"d":"$196,307"}},{"$f":"'Trial 6'!AR21","v":{"v":196074.5039114363,"d":"$196,075"}},{"$f":"'Trial 6'!AS21","v":{"v":195892.93671009128,"d":"$195,893"}},{"$f":"'Trial 6'!AT21","v":{"v":195683.889119302,"d":"$195,684"}},{"$f":"'Trial 6'!AU21","v":{"v":195454.5757366953,"d":"$195,455"}},{"$f":"'Trial 6'!AV21","v":{"v":195166.59423317923,"d":"$195,167"}},{"$f":"'Trial 6'!AW21","v":{"v":195005.95098057663,"d":"$195,006"}},{"$f":"'Trial 6'!AX21","v":{"v":194796.12367804945,"d":"$194,796"}},{"$f":"'Trial 6'!AY21","v":{"v":194545.0426084129,"d":"$194,545"}},{"$f":"'Trial 6'!AZ21","v":{"v":194406.02548992736,"d":"$194,406"}},{"$f":"SUM('Trial 6'!AO21:AZ21)","v":{"v":2346562.3160069166,"d":"$2,346,562"}},{"$f":"'Trial 6'!BB21","v":{"v":194322.54216301156,"d":"$194,323"}},{"$f":"'Trial 6'!BC21","v":{"v":194050.5843539741,"d":"$194,051"}},{"$f":"'Trial 6'!BD21","v":{"v":193829.9522334254,"d":"$193,830"}},{"$f":"'Trial 6'!BE21","v":{"v":193633.52177976893,"d":"$193,634"}},{"$f":"'Trial 6'!BF21","v":{"v":193426.6525848872,"d":"$193,427"}},{"$f":"'Trial 6'!BG21","v":{"v":193269.34038077138,"d":"$193,269"}},{"$f":"'Trial 6'!BH21","v":{"v":193141.7642794939,"d":"$193,142"}},{"$f":"'Trial 6'!BI21","v":{"v":193047.80180278834,"d":"$193,048"}},{"$f":"'Trial 6'!BJ21","v":{"v":192856.75782426662,"d":"$192,857"}},{"$f":"'Trial 6'!BK21","v":{"v":192803.70053421738,"d":"$192,804"}},{"$f":"'Trial 6'!BL21","v":{"v":192678.6725251214,"d":"$192,679"}},{"$f":"'Trial 6'!BM21","v":{"v":192439.8019599721,"d":"$192,440"}},{"$f":"SUM('Trial 6'!BB21:BM21)","v":{"v":2319501.092421698,"d":"$2,319,501"}},{"$f":"'Trial 6'!BO21","v":{"v":192322.20046758535,"d":"$192,322"}},{"$f":"'Trial 6'!BP21","v":{"v":192074.49716349508,"d":"$192,074"}},{"$f":"'Trial 6'!BQ21","v":{"v":191916.21745514753,"d":"$191,916"}},{"$f":"'Trial 6'!BR21","v":{"v":191748.5607167691,"d":"$191,749"}},{"$f":"'Trial 6'!BS21","v":{"v":191559.4651636694,"d":"$191,559"}},{"$f":"'Trial 6'!BT21","v":{"v":191319.72557365263,"d":"$191,320"}},{"$f":"'Trial 6'!BU21","v":{"v":191257.6157611654,"d":"$191,258"}},{"$f":"'Trial 6'!BV21","v":{"v":191134.08137493717,"d":"$191,134"}},{"$f":"'Trial 6'!BW21","v":{"v":191039.68432431773,"d":"$191,040"}},{"$f":"'Trial 6'!BX21","v":{"v":190965.67021036704,"d":"$190,966"}},{"$f":"'Trial 6'!BY21","v":{"v":190787.46733765057,"d":"$190,787"}},{"$f":"'Trial 6'!BZ21","v":{"v":190760.86412256124,"d":"$190,761"}},{"$f":"SUM('Trial 6'!BO21:BZ21)","v":{"v":2296886.0496713184,"d":"$2,296,886"}},{"$f":"'Trial 6'!CB21","v":{"v":190691.59384800415,"d":"$190,692"}},{"$f":"'Trial 6'!CC21","v":{"v":190573.85828102153,"d":"$190,574"}},{"$f":"'Trial 6'!CD21","v":{"v":190441.87374366517,"d":"$190,442"}},{"$f":"'Trial 6'!CE21","v":{"v":190418.0402206186,"d":"$190,418"}},{"$f":"'Trial 6'!CF21","v":{"v":190276.83429800085,"d":"$190,277"}},{"$f":"'Trial 6'!CG21","v":{"v":190129.6195404247,"d":"$190,130"}},{"$f":"'Trial 6'!CH21","v":{"v":190063.0061447394,"d":"$190,063"}},{"$f":"'Trial 6'!CI21","v":{"v":189992.44894825917,"d":"$189,992"}},{"$f":"'Trial 6'!CJ21","v":{"v":189947.89870855832,"d":"$189,948"}},{"$f":"'Trial 6'!CK21","v":{"v":189833.93450717704,"d":"$189,834"}},{"$f":"'Trial 6'!CL21","v":{"v":189745.8216017728,"d":"$189,746"}},{"$f":"'Trial 6'!CM21","v":{"v":189699.88499376996,"d":"$189,700"}},{"$f":"SUM('Trial 6'!CB21:CM21)","v":{"v":2281814.814836012,"d":"$2,281,815"}},{"$f":"'Trial 6'!CO21","v":{"v":189636.2173608957,"d":"$189,636"}},{"$f":"'Trial 6'!CP21","v":{"v":189534.6286274464,"d":"$189,535"}},{"$f":"'Trial 6'!CQ21","v":{"v":189488.35009846583,"d":"$189,488"}},{"$f":"'Trial 6'!CR21","v":{"v":189374.78635468078,"d":"$189,375"}},{"$f":"'Trial 6'!CS21","v":{"v":189264.3609923956,"d":"$189,264"}},{"$f":"'Trial 6'!CT21","v":{"v":189099.06914257724,"d":"$189,099"}},{"$f":"'Trial 6'!CU21","v":{"v":188944.15051031296,"d":"$188,944"}},{"$f":"'Trial 6'!CV21","v":{"v":188930.93164480707,"d":"$188,931"}},{"$f":"'Trial 6'!CW21","v":{"v":188754.53728476766,"d":"$188,755"}},{"$f":"'Trial 6'!CX21","v":{"v":188736.66259621197,"d":"$188,737"}},{"$f":"'Trial 6'!CY21","v":{"v":188643.95282153177,"d":"$188,644"}},{"$f":"'Trial 6'!CZ21","v":{"v":188482.0343656734,"d":"$188,482"}},{"$f":"SUM('Trial 6'!CO21:CZ21)","v":{"v":2268889.6817997666,"d":"$2,268,890"}},{"$f":"'Trial 6'!DB21","v":{"v":188405.18634250987,"d":"$188,405"}},{"$f":"'Trial 6'!DC21","v":{"v":188334.84328731883,"d":"$188,335"}},{"$f":"'Trial 6'!DD21","v":{"v":188128.9787003416,"d":"$188,129"}},{"$f":"'Trial 6'!DE21","v":{"v":187989.42542477924,"d":"$187,989"}},{"$f":"'Trial 6'!DF21","v":{"v":187884.8625913627,"d":"$187,885"}},{"$f":"'Trial 6'!DG21","v":{"v":187695.9049341192,"d":"$187,696"}},{"$f":"'Trial 6'!DH21","v":{"v":187578.8862772257,"d":"$187,579"}},{"$f":"'Trial 6'!DI21","v":{"v":187405.81850091205,"d":"$187,406"}},{"$f":"'Trial 6'!DJ21","v":{"v":187230.17010869624,"d":"$187,230"}},{"$f":"'Trial 6'!DK21","v":{"v":187036.13748904553,"d":"$187,036"}},{"$f":"'Trial 6'!DL21","v":{"v":186952.58842185928,"d":"$186,953"}},{"$f":"'Trial 6'!DM21","v":{"v":186807.21798646063,"d":"$186,807"}},{"$f":"SUM('Trial 6'!DB21:DM21)","v":{"v":2251450.020064631,"d":"$2,251,450"}},{"$f":"'Trial 6'!DO21","v":{"v":186692.6981867525,"d":"$186,693"}},{"$f":"'Trial 6'!DP21","v":{"v":186667.98553999455,"d":"$186,668"}},{"$f":"'Trial 6'!DQ21","v":{"v":186530.74773714325,"d":"$186,531"}},{"$f":"'Trial 6'!DR21","v":{"v":186401.56600724475,"d":"$186,402"}},{"$f":"'Trial 6'!DS21","v":{"v":186310.81979480383,"d":"$186,311"}},{"$f":"'Trial 6'!DT21","v":{"v":186209.8506517167,"d":"$186,210"}},{"$f":"'Trial 6'!DU21","v":{"v":186157.2938314896,"d":"$186,157"}},{"$f":"'Trial 6'!DV21","v":{"v":186131.39386823343,"d":"$186,131"}},{"$f":"'Trial 6'!DW21","v":{"v":186114.91244099996,"d":"$186,115"}},{"$f":"'Trial 6'!DX21","v":{"v":186034.5174068942,"d":"$186,035"}},{"$f":"'Trial 6'!DY21","v":{"v":185990.0987947123,"d":"$185,990"}},{"$f":"'Trial 6'!DZ21","v":{"v":185883.64186595523,"d":"$185,884"}},{"$f":"SUM('Trial 6'!DO21:DZ21)","v":{"v":2235125.52612594,"d":"$2,235,126"}},{"$f":"'Trial 6'!EB21","v":{"v":185785.74787957256,"d":"$185,786"}},{"$f":"'Trial 6'!EC21","v":{"v":185758.75979776226,"d":"$185,759"}},{"$f":"'Trial 6'!ED21","v":{"v":185667.6525210338,"d":"$185,668"}},{"$f":"'Trial 6'!EE21","v":{"v":185604.15727350992,"d":"$185,604"}},{"$f":"'Trial 6'!EF21","v":{"v":185557.8448126691,"d":"$185,558"}},{"$f":"'Trial 6'!EG21","v":{"v":185461.7602846845,"d":"$185,462"}},{"$f":"'Trial 6'!EH21","v":{"v":185393.44108473303,"d":"$185,393"}},{"$f":"'Trial 6'!EI21","v":{"v":185297.259241966,"d":"$185,297"}},{"$f":"'Trial 6'!EJ21","v":{"v":185227.65370850085,"d":"$185,228"}},{"$f":"'Trial 6'!EK21","v":{"v":185209.53395558,"d":"$185,210"}},{"$f":"'Trial 6'!EL21","v":{"v":185214.76350588823,"d":"$185,215"}},{"$f":"'Trial 6'!EM21","v":{"v":185047.3194678051,"d":"$185,047"}},{"$f":"SUM('Trial 6'!EB21:EM21)","v":{"v":2225225.8935337053,"d":"$2,225,226"}}]
[{"$f":"Labels!B102","v":"Trial 07"},{"$f":"'Trial 7'!B21","v":{"v":206222.0144162289,"d":"$206,222"}},{"$f":"'Trial 7'!C21","v":{"v":205779.03654139026,"d":"$205,779"}},{"$f":"'Trial 7'!D21","v":{"v":205449.63425741647,"d":"$205,450"}},{"$f":"'Trial 7'!E21","v":{"v":205111.0284772301,"d":"$205,111"}},{"$f":"'Trial 7'!F21","v":{"v":204734.5037935531,"d":"$204,735"}},{"$f":"'Trial 7'!G21","v":{"v":204442.063699946,"d":"$204,442"}},{"$f":"'Trial 7'!H21","v":{"v":204158.60955915457,"d":"$204,159"}},{"$f":"'Trial 7'!I21","v":{"v":203876.7977603344,"d":"$203,877"}},{"$f":"'Trial 7'!J21","v":{"v":203616.9734860719,"d":"$203,617"}},{"$f":"'Trial 7'!K21","v":{"v":203269.9027097022,"d":"$203,270"}},{"$f":"'Trial 7'!L21","v":{"v":202901.8925029317,"d":"$202,902"}},{"$f":"'Trial 7'!M21","v":{"v":202579.58248768674,"d":"$202,580"}},{"$f":"SUM('Trial 7'!B21:M21)","v":{"v":2452142.039691646,"d":"$2,452,142"}},{"$f":"'Trial 7'!O21","v":{"v":202251.66825027275,"d":"$202,252"}},{"$f":"'Trial 7'!P21","v":{"v":201959.05305582154,"d":"$201,959"}},{"$f":"'Trial 7'!Q21","v":{"v":201732.28137545273,"d":"$201,732"}},{"$f":"'Trial 7'!R21","v":{"v":201502.8333664712,"d":"$201,503"}},{"$f":"'Trial 7'!S21","v":{"v":201261.06800478452,"d":"$201,261"}},{"$f":"'Trial 7'!T21","v":{"v":200998.70424320168,"d":"$200,999"}},{"$f":"'Trial 7'!U21","v":{"v":200777.49722756326,"d":"$200,777"}},{"$f":"'Trial 7'!V21","v":{"v":200493.23924738137,"d":"$200,493"}},{"$f":"'Trial 7'!W21","v":{"v":200284.3109536465,"d":"$200,284"}},{"$f":"'Trial 7'!X21","v":{"v":200101.4596318307,"d":"$200,101"}},{"$f":"'Trial 7'!Y21","v":{"v":199894.1129709724,"d":"$199,894"}},{"$f":"'Trial 7'!Z21","v":{"v":199639.85548608992,"d":"$199,640"}},{"$f":"SUM('Trial 7'!O21:Z21)","v":{"v":2410896.0838134885,"d":"$2,410,896"}},{"$f":"'Trial 7'!AB21","v":{"v":199293.96771538016,"d":"$199,294"}},{"$f":"'Trial 7'!AC21","v":{"v":198946.9836292647,"d":"$198,947"}},{"$f":"'Trial 7'!AD21","v":{"v":198706.6745715598,"d":"$198,707"}},{"$f":"'Trial 7'!AE21","v":{"v":198497.12860187097,"d":"$198,497"}},{"$f":"'Trial 7'!AF21","v":{"v":198324.92078657544,"d":"$198,325"}},{"$f":"'Trial 7'!AG21","v":{"v":198057.8111948204,"d":"$198,058"}},{"$f":"'Trial 7'!AH21","v":{"v":197872.62693275648,"d":"$197,873"}},{"$f":"'Trial 7'!AI21","v":{"v":197684.91486767516,"d":"$197,685"}},{"$f":"'Trial 7'!AJ21","v":{"v":197398.16295603997,"d":"$197,398"}},{"$f":"'Trial 7'!AK21","v":{"v":197168.12472916758,"d":"$197,168"}},{"$f":"'Trial 7'!AL21","v":{"v":196963.03299340783,"d":"$196,963"}},{"$f":"'Trial 7'!AM21","v":{"v":196766.6731460866,"d":"$196,767"}},{"$f":"SUM('Trial 7'!AB21:AM21)","v":{"v":2375681.0221246053,"d":"$2,375,681"}},{"$f":"'Trial 7'!AO21","v":{"v":196529.28995428974,"d":"$196,529"}},{"$f":"'Trial 7'!AP21","v":{"v":196269.0934545542,"d":"$196,269"}},{"$f":"'Trial 7'!AQ21","v":{"v":196061.80342741124,"d":"$196,062"}},{"$f":"'Trial 7'!AR21","v":{"v":195922.49666227214,"d":"$195,922"}},{"$f":"'Trial 7'!AS21","v":{"v":195780.44599928716,"d":"$195,780"}},{"$f":"'Trial 7'!AT21","v":{"v":195688.42078316433,"d":"$195,688"}},{"$f":"'Trial 7'!AU21","v":{"v":195458.30403778848,"d":"$195,458"}},{"$f":"'Trial 7'!AV21","v":{"v":195265.56490454444,"d":"$195,266"}},{"$f":"'Trial 7'!AW21","v":{"v":195073.2483409379,"d":"$195,073"}},{"$f":"'Trial 7'!AX21","v":{"v":194856.92619813653,"d":"$194,857"}},{"$f":"'Trial 7'!AY21","v":{"v":194620.76511142452,"d":"$194,621"}},{"$f":"'Trial 7'!AZ21","v":{"v":194403.1421565696,"d":"$194,403"}},{"$f":"SUM('Trial 7'!AO21:AZ21)","v":{"v":2345929.5010303804,"d":"$2,345,930"}},{"$f":"'Trial 7'!BB21","v":{"v":194151.70208241174,"d":"$194,152"}},{"$f":"'Trial 7'!BC21","v":{"v":193962.97165974707,"d":"$193,963"}},{"$f":"'Trial 7'!BD21","v":{"v":193771.77375015212,"d":"$193,772"}},{"$f":"'Trial 7'!BE21","v":{"v":193640.96540772755,"d":"$193,641"}},{"$f":"'Trial 7'!BF21","v":{"v":193464.69492424163,"d":"$193,465"}},{"$f":"'Trial 7'!BG21","v":{"v":193336.8830293373,"d":"$193,337"}},{"$f":"'Trial 7'!BH21","v":{"v":193249.66460984157,"d":"$193,250"}},{"$f":"'Trial 7'!BI21","v":{"v":193038.14724672426,"d":"$193,038"}},{"$f":"'Trial 7'!BJ21","v":{"v":192884.96950587395,"d":"$192,885"}},{"$f":"'Trial 7'!BK21","v":{"v":192702.63637164515,"d":"$192,703"}},{"$f":"'Trial 7'!BL21","v":{"v":192478.755215221,"d":"$192,479"}},{"$f":"'Trial 7'!BM21","v":{"v":192307.19040163458,"d":"$192,307"}},{"$f":"SUM('Trial 7'!BB21:BM21)","v":{"v":2318990.354204558,"d":"$2,318,990"}},{"$f":"'Trial 7'!BO21","v":{"v":192202.48979866717,"d":"$192,202"}},{"$f":"'Trial 7'!BP21","v":{"v":192030.15352924395,"d":"$192,030"}},{"$f":"'Trial 7'!BQ21","v":{"v":191798.08582476075,"d":"$191,798"}},{"$f":"'Trial 7'!BR21","v":{"v":191703.12186560544,"d":"$191,703"}},{"$f":"'Trial 7'!BS21","v":{"v":191605.9030456937,"d":"$191,606"}},{"$f":"'Trial 7'!BT21","v":{"v":191541.69335189284,"d":"$191,542"}},{"$f":"'Trial 7'!BU21","v":{"v":191490.93648353388,"d":"$191,491"}},{"$f":"'Trial 7'!BV21","v":{"v":191415.97996862937,"d":"$191,416"}},{"$f":"'Trial 7'!BW21","v":{"v":191230.73989110577,"d":"$191,231"}},{"$f":"'Trial 7'!BX21","v":{"v":191183.07947104197,"d":"$191,183"}},{"$f":"'Trial 7'!BY21","v":{"v":191005.92442960286,"d":"$191,006"}},{"$f":"'Trial 7'!BZ21","v":{"v":190797.42416047797,"d":"$190,797"}},{"$f":"SUM('Trial 7'!BO21:BZ21)","v":{"v":2298005.531820256,"d":"$2,298,006"}},{"$f":"'Trial 7'!CB21","v":{"v":190556.6554736649,"d":"$190,557"}},{"$f":"'Trial 7'!CC21","v":{"v":190427.9654402147,"d":"$190,428"}},{"$f":"'Trial 7'!CD21","v":{"v":190352.1590708562,"d":"$190,352"}},{"$f":"'Trial 7'!CE21","v":{"v":190285.3848822563,"d":"$190,285"}},{"$f":"'Trial 7'!CF21","v":{"v":190052.08650501637,"d":"$190,052"}},{"$f":"'Trial 7'!CG21","v":{"v":189903.8002028533,"d":"$189,904"}},{"$f":"'Trial 7'!CH21","v":{"v":189838.2025525098,"d":"$189,838"}},{"$f":"'Trial 7'!CI21","v":{"v":189605.23320908617,"d":"$189,605"}},{"$f":"'Trial 7'!CJ21","v":{"v":189437.7236418757,"d":"$189,438"}},{"$f":"'Trial 7'!CK21","v":{"v":189445.78840941566,"d":"$189,446"}},{"$f":"'Trial 7'!CL21","v":{"v":189437.59269084185,"d":"$189,438"}},{"$f":"'Trial 7'!CM21","v":{"v":189313.0047262813,"d":"$189,313"}},{"$f":"SUM('Trial 7'!CB21:CM21)","v":{"v":2278655.5968048717,"d":"$2,278,656"}},{"$f":"'Trial 7'!CO21","v":{"v":189262.19442681473,"d":"$189,262"}},{"$f":"'Trial 7'!CP21","v":{"v":189260.19932100404,"d":"$189,260"}},{"$f":"'Trial 7'!CQ21","v":{"v":189137.97526795088,"d":"$189,138"}},{"$f":"'Trial 7'!CR21","v":{"v":189060.1368161506,"d":"$189,060"}},{"$f":"'Trial 7'!CS21","v":{"v":188995.39521940128,"d":"$188,995"}},{"$f":"'Trial 7'!CT21","v":{"v":188889.64826914965,"d":"$188,890"}},{"$f":"'Trial 7'!CU21","v":{"v":188772.26871989242,"d":"$188,772"}},{"$f":"'Trial 7'!CV21","v":{"v":188721.39944285015,"d":"$188,721"}},{"$f":"'Trial 7'!CW21","v":{"v":188608.06928660598,"d":"$188,608"}},{"$f":"'Trial 7'!CX21","v":{"v":188489.45414970105,"d":"$188,489"}},{"$f":"'Trial 7'!CY21","v":{"v":188298.72583033773,"d":"$188,299"}},{"$f":"'Trial 7'!CZ21","v":{"v":188122.58899721177,"d":"$188,123"}},{"$f":"SUM('Trial 7'!CO21:CZ21)","v":{"v":2265618.0557470703,"d":"$2,265,618"}},{"$f":"'Trial 7'!DB21","v":{"v":188049.22137947206,"d":"$188,049"}},{"$f":"'Trial 7'!DC21","v":{"v":188039.9655664826,"d":"$188,040"}},{"$f":"'Trial 7'!DD21","v":{"v":188000.71885999813,"d":"$188,001"}},{"$f":"'Trial 7'!DE21","v":{"v":187904.86780442682,"d":"$187,905"}},{"$f":"'Trial 7'!DF21","v":{"v":187828.2699927028,"d":"$187,828"}},{"$f":"'Trial 7'!DG21","v":{"v":187742.15903851582,"d":"$187,742"}},{"$f":"'Trial 7'!DH21","v":{"v":187560.18580841698,"d":"$187,560"}},{"$f":"'Trial 7'!DI21","v":{"v":187373.328751957,"d":"$187,373"}},{"$f":"'Trial 7'!DJ21","v":{"v":187280.69264683066,"d":"$187,281"}},{"$f":"'Trial 7'!DK21","v":{"v":187177.1523570337,"d":"$187,177"}},{"$f":"'Trial 7'!DL21","v":{"v":186992.48265272588,"d":"$186,992"}},{"$f":"'Trial 7'!DM21","v":{"v":186905.99348653422,"d":"$186,906"}},{"$f":"SUM('Trial 7'!DB21:DM21)","v":{"v":2250855.0383450966,"d":"$2,250,855"}},{"$f":"'Trial 7'!DO21","v":{"v":186823.28618379225,"d":"$186,823"}},{"$f":"'Trial 7'!DP21","v":{"v":186678.3069498078,"d":"$186,678"}},{"$f":"'Trial 7'!DQ21","v":{"v":186580.12607570016,"d":"$186,580"}},{"$f":"'Trial 7'!DR21","v":{"v":186478.6737561964,"d":"$186,479"}},{"$f":"'Trial 7'!DS21","v":{"v":186317.15482339327,"d":"$186,317"}},{"$f":"'Trial 7'!DT21","v":{"v":186247.5887371075,"d":"$186,248"}},{"$f":"'Trial 7'!DU21","v":{"v":186093.3022596716,"d":"$186,093"}},{"$f":"'Trial 7'!DV21","v":{"v":185970.87712322475,"d":"$185,971"}},{"$f":"'Trial 7'!DW21","v":{"v":185928.45791851947,"d":"$185,928"}},{"$f":"'Trial 7'!DX21","v":{"v":185956.73130952273,"d":"$185,957"}},{"$f":"'Trial 7'!DY21","v":{"v":185777.04323363953,"d":"$185,777"}},{"$f":"'Trial 7'!DZ21","v":{"v":185649.87231411785,"d":"$185,650"}},{"$f":"SUM('Trial 7'!DO21:DZ21)","v":{"v":2234501.4206846934,"d":"$2,234,501"}},{"$f":"'Trial 7'!EB21","v":{"v":185495.28601217092,"d":"$185,495"}},{"$f":"'Trial 7'!EC21","v":{"v":185480.49049703122,"d":"$185,480"}},{"$f":"'Trial 7'!ED21","v":{"v":185331.85825715848,"d":"$185,332"}},{"$f":"'Trial 7'!EE21","v":{"v":185243.16325670734,"d":"$185,243"}},{"$f":"'Trial 7'!EF21","v":{"v":185179.3833227513,"d":"$185,179"}},{"$f":"'Trial 7'!EG21","v":{"v":185035.9658680227,"d":"$185,036"}},{"$f":"'Trial 7'!EH21","v":{"v":184840.48125858002,"d":"$184,840"}},{"$f":"'Trial 7'!EI21","v":{"v":184663.3581297919,"d":"$184,663"}},{"$f":"'Trial 7'!EJ21","v":{"v":184615.77480165573,"d":"$184,616"}},{"$f":"'Trial 7'!EK21","v":{"v":184576.96516363724,"d":"$184,577"}},{"$f":"'Trial 7'!EL21","v":{"v":184492.01113633806,"d":"$184,492"}},{"$f":"'Trial 7'!EM21","v":{"v":184475.24782637018,"d":"$184,475"}},{"$f":"SUM('Trial 7'!EB21:EM21)","v":{"v":2219429.9855302153,"d":"$2,219,430"}}]
[{"$f":"Labels!B103","v":"Trial 08"},{"$f":"'Trial 8'!B21","v":{"v":206222.0144162289,"d":"$206,222"}},{"$f":"'Trial 8'!C21","v":{"v":205742.54038867264,"d":"$205,743"}},{"$f":"'Trial 8'!D21","v":{"v":205344.31866080596,"d":"$205,344"}},{"$f":"'Trial 8'!E21","v":{"v":204976.88833943207,"d":"$204,977"}},{"$f":"'Trial 8'!F21","v":{"v":204638.02381671887,"d":"$204,638"}},{"$f":"'Trial 8'!G21","v":{"v":204396.98672999113,"d":"$204,397"}},{"$f":"'Trial 8'!H21","v":{"v":204081.7259578913,"d":"$204,082"}},{"$f":"'Trial 8'!I21","v":{"v":203736.31558780838,"d":"$203,736"}},{"$f":"'Trial 8'!J21","v":{"v":203445.0955593974,"d":"$203,445"}},{"$f":"'Trial 8'!K21","v":{"v":203050.5431863709,"d":"$203,051"}},{"$f":"'Trial 8'!L21","v":{"v":202775.74887502563,"d":"$202,776"}},{"$f":"'Trial 8'!M21","v":{"v":202388.08793152764,"d":"$202,388"}},{"$f":"SUM('Trial 8'!B21:M21)","v":{"v":2450798.289449871,"d":"$2,450,798"}},{"$f":"'Trial 8'!O21","v":{"v":202093.91430253923,"d":"$202,094"}},{"$f":"'Trial 8'!P21","v":{"v":201886.7506111375,"d":"$201,887"}},{"$f":"'Trial 8'!Q21","v":{"v":201538.7824361346,"d":"$201,539"}},{"$f":"'Trial 8'!R21","v":{"v":201152.82222281973,"d":"$201,153"}},{"$f":"'Trial 8'!S21","v":{"v":200896.5240358878,"d":"$200,897"}},{"$f":"'Trial 8'!T21","v":{"v":200622.99953262912,"d":"$200,623"}},{"$f":"'Trial 8'!U21","v":{"v":200446.02175076853,"d":"$200,446"}},{"$f":"'Trial 8'!V21","v":{"v":200169.2288881728,"d":"$200,169"}},{"$f":"'Trial 8'!W21","v":{"v":199913.85560250582,"d":"$199,914"}},{"$f":"'Trial 8'!X21","v":{"v":199740.54925569482,"d":"$199,741"}},{"$f":"'Trial 8'!Y21","v":{"v":199433.70046174762,"d":"$199,434"}},{"$f":"'Trial 8'!Z21","v":{"v":199107.32605429913,"d":"$199,107"}},{"$f":"SUM('Trial 8'!O21:Z21)","v":{"v":2407002.4751543365,"d":"$2,407,002"}},{"$f":"'Trial 8'!AB21","v":{"v":198822.44992229968,"d":"$198,822"}},{"$f":"'Trial 8'!AC21","v":{"v":198584.6951703227,"d":"$198,585"}},{"$f":"'Trial 8'!AD21","v":{"v":198356.5248710989,"d":"$198,357"}},{"$f":"'Trial 8'!AE21","v":{"v":198089.0275552038,"d":"$198,089"}},{"$f":"'Trial 8'!AF21","v":{"v":197850.41968939322,"d":"$197,850"}},{"$f":"'Trial 8'!AG21","v":{"v":197571.4336582319,"d":"$197,571"}},{"$f":"'Trial 8'!AH21","v":{"v":197314.53240147373,"d":"$197,315"}},{"$f":"'Trial 8'!AI21","v":{"v":197139.2476515527,"d":"$197,139"}},{"$f":"'Trial 8'!AJ21","v":{"v":196957.15279349356,"d":"$196,957"}},{"$f":"'Trial 8'!AK21","v":{"v":196718.59712862514,"d":"$196,719"}},{"$f":"'Trial 8'!AL21","v":{"v":196518.28067140546,"d":"$196,518"}},{"$f":"'Trial 8'!AM21","v":{"v":196393.8148113939,"d":"$196,394"}},{"$f":"SUM('Trial 8'!AB21:AM21)","v":{"v":2370316.176324495,"d":"$2,370,316"}},{"$f":"'Trial 8'!AO21","v":{"v":196263.9009441962,"d":"$196,264"}},{"$f":"'Trial 8'!AP21","v":{"v":196127.55790171548,"d":"$196,128"}},{"$f":"'Trial 8'!AQ21","v":{"v":195939.9034653269,"d":"$195,940"}},{"$f":"'Trial 8'!AR21","v":{"v":195752.5046290149,"d":"$195,753"}},{"$f":"'Trial 8'!AS21","v":{"v":195499.7994482837,"d":"$195,500"}},{"$f":"'Trial 8'!AT21","v":{"v":195253.24397371104,"d":"$195,253"}},{"$f":"'Trial 8'!AU21","v":{"v":195052.98202222516,"d":"$195,053"}},{"$f":"'Trial 8'!AV21","v":{"v":194909.11684632953,"d":"$194,909"}},{"$f":"'Trial 8'!AW21","v":{"v":194739.60436735905,"d":"$194,740"}},{"$f":"'Trial 8'!AX21","v":{"v":194579.37900430514,"d":"$194,579"}},{"$f":"'Trial 8'!AY21","v":{"v":194413.35648349355,"d":"$194,413"}},{"$f":"'Trial 8'!AZ21","v":{"v":194273.51755073067,"d":"$194,274"}},{"$f":"SUM('Trial 8'!AO21:AZ21)","v":{"v":2342804.8666366916,"d":"$2,342,805"}},{"$f":"'Trial 8'!BB21","v":{"v":194123.43983281887,"d":"$194,123"}},{"$f":"'Trial 8'!BC21","v":{"v":193931.45183542353,"d":"$193,931"}},{"$f":"'Trial 8'!BD21","v":{"v":193829.00322143716,"d":"$193,829"}},{"$f":"'Trial 8'!BE21","v":{"v":193745.48999105187,"d":"$193,745"}},{"$f":"'Trial 8'!BF21","v":{"v":193610.6995439903,"d":"$193,611"}},{"$f":"'Trial 8'!BG21","v":{"v":193474.1928578108,"d":"$193,474"}},{"$f":"'Trial 8'!BH21","v":{"v":193383.78923506453,"d":"$193,384"}},{"$f":"'Trial 8'!BI21","v":{"v":193182.44204753338,"d":"$193,182"}},{"$f":"'Trial 8'!BJ21","v":{"v":193029.0521307747,"d":"$193,029"}},{"$f":"'Trial 8'!BK21","v":{"v":192915.13100791405,"d":"$192,915"}},{"$f":"'Trial 8'!BL21","v":{"v":192797.26932202227,"d":"$192,797"}},{"$f":"'Trial 8'!BM21","v":{"v":192683.65085982703,"d":"$192,684"}},{"$f":"SUM('Trial 8'!BB21:BM21)","v":{"v":2320705.6118856687,"d":"$2,320,706"}},{"$f":"'Trial 8'!BO21","v":{"v":192523.02846876933,"d":"$192,523"}},{"$f":"'Trial 8'!BP21","v":{"v":192420.55952027428,"d":"$192,421"}},{"$f":"'Trial 8'!BQ21","v":{"v":192354.42808744224,"d":"$192,354"}},{"$f":"'Trial 8'!BR21","v":{"v":192263.88879513077,"d":"$192,264"}},{"$f":"'Trial 8'!BS21","v":{"v":192225.778751097,"d":"$192,226"}},{"$f":"'Trial 8'!BT21","v":{"v":192115.77578156712,"d":"$192,116"}},{"$f":"'Trial 8'!BU21","v":{"v":191975.71563141083,"d":"$191,976"}},{"$f":"'Trial 8'!BV21","v":{"v":191862.82439595155,"d":"$191,863"}},{"$f":"'Trial 8'!BW21","v":{"v":191803.53095710423,"d":"$191,804"}},{"$f":"'Trial 8'!BX21","v":{"v":191715.52592818363,"d":"$191,716"}},{"$f":"'Trial 8'!BY21","v":{"v":191626.53571817835,"d":"$191,627"}},{"$f":"'Trial 8'!BZ21","v":{"v":191469.71569362286,"d":"$191,470"}},{"$f":"SUM('Trial 8'!BO21:BZ21)","v":{"v":2304357.3077287325,"d":"$2,304,357"}},{"$f":"'Trial 8'!CB21","v":{"v":191252.26035456493,"d":"$191,252"}},{"$f":"'Trial 8'!CC21","v":{"v":191092.34068565367,"d":"$191,092"}},{"$f":"'Trial 8'!CD21","v":{"v":190963.89080068254,"d":"$190,964"}},{"$f":"'Trial 8'!CE21","v":{"v":190769.26845553756,"d":"$190,769"}},{"$f":"'Trial 8'!CF21","v":{"v":190657.4741613317,"d":"$190,657"}},{"$f":"'Trial 8'!CG21","v":{"v":190522.01363831814,"d":"$190,522"}},{"$f":"'Trial 8'!CH21","v":{"v":190506.19441262705,"d":"$190,506"}},{"$f":"'Trial 8'!CI21","v":{"v":190384.62867716624,"d":"$190,385"}},{"$f":"'Trial 8'!CJ21","v":{"v":190218.74038589877,"d":"$190,219"}},{"$f":"'Trial 8'!CK21","v":{"v":190131.48111496077,"d":"$190,131"}},{"$f":"'Trial 8'!CL21","v":{"v":190063.46592913964,"d":"$190,063"}},{"$f":"'Trial 8'!CM21","v":{"v":189879.04067019516,"d":"$189,879"}},{"$f":"SUM('Trial 8'!CB21:CM21)","v":{"v":2286440.7992860763,"d":"$2,286,441"}},{"$f":"'Trial 8'!CO21","v":{"v":189837.31853414667,"d":"$189,837"}},{"$f":"'Trial 8'!CP21","v":{"v":189797.17283007118,"d":"$189,797"}},{"$f":"'Trial 8'!CQ21","v":{"v":189691.32000458872,"d":"$189,691"}},{"$f":"'Trial 8'!CR21","v":{"v":189611.2166237837,"d":"$189,611"}},{"$f":"'Trial 8'!CS21","v":{"v":189525.6310113975,"d":"$189,526"}},{"$f":"'Trial 8'!CT21","v":{"v":189285.83005423998,"d":"$189,286"}},{"$f":"'Trial 8'!CU21","v":{"v":189162.81875810333,"d":"$189,163"}},{"$f":"'Trial 8'!CV21","v":{"v":189113.57049624217,"d":"$189,114"}},{"$f":"'Trial 8'!CW21","v":{"v":188997.88384880158,"d":"$188,998"}},{"$f":"'Trial 8'!CX21","v":{"v":188774.00711328362,"d":"$188,774"}},{"$f":"'Trial 8'!CY21","v":{"v":188735.82536360892,"d":"$188,736"}},{"$f":"'Trial 8'!CZ21","v":{"v":188737.62620951785,"d":"$188,738"}},{"$f":"SUM('Trial 8'!CO21:CZ21)","v":{"v":2271270.2208477855,"d":"$2,271,270"}},{"$f":"'Trial 8'!DB21","v":{"v":188575.8520426344,"d":"$188,576"}},{"$f":"'Trial 8'!DC21","v":{"v":188577.55438881446,"d":"$188,578"}},{"$f":"'Trial 8'!DD21","v":{"v":188425.35175758685,"d":"$188,425"}},{"$f":"'Trial 8'!DE21","v":{"v":188248.63761294345,"d":"$188,249"}},{"$f":"'Trial 8'!DF21","v":{"v":188120.0557064091,"d":"$188,120"}},{"$f":"'Trial 8'!DG21","v":{"v":188017.5930751398,"d":"$188,018"}},{"$f":"'Trial 8'!DH21","v":{"v":187873.42758567774,"d":"$187,873"}},{"$f":"'Trial 8'!DI21","v":{"v":187758.7933008408,"d":"$187,759"}},{"$f":"'Trial 8'!DJ21","v":{"v":187583.59348139848,"d":"$187,584"}},{"$f":"'Trial 8'!DK21","v":{"v":187585.38207236625,"d":"$187,585"}},{"$f":"'Trial 8'!DL21","v":{"v":187453.20505803206,"d":"$187,453"}},{"$f":"'Trial 8'!DM21","v":{"v":187442.12364903768,"d":"$187,442"}},{"$f":"SUM('Trial 8'!DB21:DM21)","v":{"v":2255661.5697308807,"d":"$2,255,662"}},{"$f":"'Trial 8'!DO21","v":{"v":187321.10809547736,"d":"$187,321"}},{"$f":"'Trial 8'!DP21","v":{"v":187129.31943273018,"d":"$187,129"}},{"$f":"'Trial 8'!DQ21","v":{"v":186962.48825180467,"d":"$186,962"}},{"$f":"'Trial 8'!DR21","v":{"v":186963.06920520827,"d":"$186,963"}},{"$f":"'Trial 8'!DS21","v":{"v":186942.57053238404,"d":"$186,943"}},{"$f":"'Trial 8'!DT21","v":{"v":186814.51088319905,"d":"$186,815"}},{"$f":"'Trial 8'!DU21","v":{"v":186794.8375831423,"d":"$186,795"}},{"$f":"'Trial 8'!DV21","v":{"v":186763.59803698753,"d":"$186,764"}},{"$f":"'Trial 8'!DW21","v":{"v":186671.06180649291,"d":"$186,671"}},{"$f":"'Trial 8'!DX21","v":{"v":186605.5969398017,"d":"$186,606"}},{"$f":"'Trial 8'!DY21","v":{"v":186421.20469224395,"d":"$186,421"}},{"$f":"'Trial 8'!DZ21","v":{"v":186346.11086833442,"d":"$186,346"}},{"$f":"SUM('Trial 8'!DO21:DZ21)","v":{"v":2241735.4763278062,"d":"$2,241,735"}},{"$f":"'Trial 8'!EB21","v":{"v":186247.22133642487,"d":"$186,247"}},{"$f":"'Trial 8'!EC21","v":{"v":186057.22809517404,"d":"$186,057"}},{"$f":"'Trial 8'!ED21","v":{"v":185876.78427927633,"d":"$185,877"}},{"$f":"'Trial 8'!EE21","v":{"v":185817.97233826798,"d":"$185,818"}},{"$f":"'Trial 8'!EF21","v":{"v":185688.8184643251,"d":"$185,689"}},{"$f":"'Trial 8'!EG21","v":{"v":185550.24229465748,"d":"$185,550"}},{"$f":"'Trial 8'!EH21","v":{"v":185464.0654753105,"d":"$185,464"}},{"$f":"'Trial 8'!EI21","v":{"v":185447.74846293216,"d":"$185,448"}},{"$f":"'Trial 8'!EJ21","v":{"v":185303.09205296185,"d":"$185,303"}},{"$f":"'Trial 8'!EK21","v":{"v":185219.19345965754,"d":"$185,219"}},{"$f":"'Trial 8'!EL21","v":{"v":185036.8646902873,"d":"$185,037"}},{"$f":"'Trial 8'!EM21","v":{"v":184899.49865729193,"d":"$184,899"}},{"$f":"SUM('Trial 8'!EB21:EM21)","v":{"v":2226608.729606567,"d":"$2,226,609"}}]
[{"$f":"Labels!C95","v":"Total"},{"$f":"SUM('Trial 1'!B21,'Trial 2'!B21,'Trial 3'!B21,'Trial 4'!B21,'Trial 5'!B21,'Trial 6'!B21,'Trial 7'!B21,'Trial 8'!B21)","v":{"v":1649776.1153298314,"d":"$1,649,776"}},{"$f":"SUM('Trial 1'!C21,'Trial 2'!C21,'Trial 3'!C21,'Trial 4'!C21,'Trial 5'!C21,'Trial 6'!C21,'Trial 7'!C21,'Trial 8'!C21)","v":{"v":1646262.9707546313,"d":"$1,646,263"}},{"$f":"SUM('Trial 1'!D21,'Trial 2'!D21,'Trial 3'!D21,'Trial 4'!D21,'Trial 5'!D21,'Trial 6'!D21,'Trial 7'!D21,'Trial 8'!D21)","v":{"v":1643075.231787616,"d":"$1,643,075"}},{"$f":"SUM('Trial 1'!E21,'Trial 2'!E21,'Trial 3'!E21,'Trial 4'!E21,'Trial 5'!E21,'Trial 6'!E21,'Trial 7'!E21,'Trial 8'!E21)","v":{"v":1640250.0743816146,"d":"$1,640,250"}},{"$f":"SUM('Trial 1'!F21,'Trial 2'!F21,'Trial 3'!F21,'Trial 4'!F21,'Trial 5'!F21,'Trial 6'!F21,'Trial 7'!F21,'Trial 8'!F21)","v":{"v":1637604.3258428208,"d":"$1,637,604"}},{"$f":"SUM('Trial 1'!G21,'Trial 2'!G21,'Trial 3'!G21,'Trial 4'!G21,'Trial 5'!G21,'Trial 6'!G21,'Trial 7'!G21,'Trial 8'!G21)","v":{"v":1635170.0578280236,"d":"$1,635,170"}},{"$f":"SUM('Trial 1'!H21,'Trial 2'!H21,'Trial 3'!H21,'Trial 4'!H21,'Trial 5'!H21,'Trial 6'!H21,'Trial 7'!H21,'Trial 8'!H21)","v":{"v":1632580.6550559164,"d":"$1,632,581"}},{"$f":"SUM('Trial 1'!I21,'Trial 2'!I21,'Trial 3'!I21,'Trial 4'!I21,'Trial 5'!I21,'Trial 6'!I21,'Trial 7'!I21,'Trial 8'!I21)","v":{"v":1629768.608965031,"d":"$1,629,769"}},{"$f":"SUM('Trial 1'!J21,'Trial 2'!J21,'Trial 3'!J21,'Trial 4'!J21,'Trial 5'!J21,'Trial 6'!J21,'Trial 7'!J21,'Trial 8'!J21)","v":{"v":1627149.9138536977,"d":"$1,627,150"}},{"$f":"SUM('Trial 1'!K21,'Trial 2'!K21,'Trial 3'!K21,'Trial 4'!K21,'Trial 5'!K21,'Trial 6'!K21,'Trial 7'!K21,'Trial 8'!K21)","v":{"v":1624607.880039852,"d":"$1,624,608"}},{"$f":"SUM('Trial 1'!L21,'Trial 2'!L21,'Trial 3'!L21,'Trial 4'!L21,'Trial 5'!L21,'Trial 6'!L21,'Trial 7'!L21,'Trial 8'!L21)","v":{"v":1622120.2146894054,"d":"$1,622,120"}},{"$f":"SUM('Trial 1'!M21,'Trial 2'!M21,'Trial 3'!M21,'Trial 4'!M21,'Trial 5'!M21,'Trial 6'!M21,'Trial 7'!M21,'Trial 8'!M21)","v":{"v":1619652.1242325227,"d":"$1,619,652"}},{"$f":"SUM(B155:M155)","v":{"v":19608018.172760963,"d":"$19,608,018"}},{"$f":"SUM('Trial 1'!O21,'Trial 2'!O21,'Trial 3'!O21,'Trial 4'!O21,'Trial 5'!O21,'Trial 6'!O21,'Trial 7'!O21,'Trial 8'!O21)","v":{"v":1617142.490873809,"d":"$1,617,142"}},{"$f":"SUM('Trial 1'!P21,'Trial 2'!P21,'Trial 3'!P21,'Trial 4'!P21,'Trial 5'!P21,'Trial 6'!P21,'Trial 7'!P21,'Trial 8'!P21)","v":{"v":1614860.9249893734,"d":"$1,614,861"}},{"$f":"SUM('Trial 1'!Q21,'Trial 2'!Q21,'Trial 3'!Q21,'Trial 4'!Q21,'Trial 5'!Q21,'Trial 6'!Q21,'Trial 7'!Q21,'Trial 8'!Q21)","v":{"v":1612573.5594974626,"d":"$1,612,574"}},{"$f":"SUM('Trial 1'!R21,'Trial 2'!R21,'Trial 3'!R21,'Trial 4'!R21,'Trial 5'!R21,'Trial 6'!R21,'Trial 7'!R21,'Trial 8'!R21)","v":{"v":1610400.7518451784,"d":"$1,610,401"}},{"$f":"SUM('Trial 1'!S21,'Trial 2'!S21,'Trial 3'!S21,'Trial 4'!S21,'Trial 5'!S21,'Trial 6'!S21,'Trial 7'!S21,'Trial 8'!S21)","v":{"v":1608340.6240479075,"d":"$1,608,341"}},{"$f":"SUM('Trial 1'!T21,'Trial 2'!T21,'Trial 3'!T21,'Trial 4'!T21,'Trial 5'!T21,'Trial 6'!T21,'Trial 7'!T21,'Trial 8'!T21)","v":{"v":1605727.5812060959,"d":"$1,605,728"}},{"$f":"SUM('Trial 1'!U21,'Trial 2'!U21,'Trial 3'!U21,'Trial 4'!U21,'Trial 5'!U21,'Trial 6'!U21,'Trial 7'!U21,'Trial 8'!U21)","v":{"v":1603675.0226315502,"d":"$1,603,675"}},{"$f":"SUM('Trial 1'!V21,'Trial 2'!V21,'Trial 3'!V21,'Trial 4'!V21,'Trial 5'!V21,'Trial 6'!V21,'Trial 7'!V21,'Trial 8'!V21)","v":{"v":1601304.9280687342,"d":"$1,601,305"}},{"$f":"SUM('Trial 1'!W21,'Trial 2'!W21,'Trial 3'!W21,'Trial 4'!W21,'Trial 5'!W21,'Trial 6'!W21,'Trial 7'!W21,'Trial 8'!W21)","v":{"v":1599025.9072039567,"d":"$1,599,026"}},{"$f":"SUM('Trial 1'!X21,'Trial 2'!X21,'Trial 3'!X21,'Trial 4'!X21,'Trial 5'!X21,'Trial 6'!X21,'Trial 7'!X21,'Trial 8'!X21)","v":{"v":1597207.6858331573,"d":"$1,597,208"}},{"$f":"SUM('Trial 1'!Y21,'Trial 2'!Y21,'Trial 3'!Y21,'Trial 4'!Y21,'Trial 5'!Y21,'Trial 6'!Y21,'Trial 7'!Y21,'Trial 8'!Y21)","v":{"v":1595087.238629776,"d":"$1,595,087"}},{"$f":"SUM('Trial 1'!Z21,'Trial 2'!Z21,'Trial 3'!Z21,'Trial 4'!Z21,'Trial 5'!Z21,'Trial 6'!Z21,'Trial 7'!Z21,'Trial 8'!Z21)","v":{"v":1593038.879972456,"d":"$1,593,039"}},{"$f":"SUM(O155:Z155)","v":{"v":19258385.59479946,"d":"$19,258,386"}},{"$f":"SUM('Trial 1'!AB21,'Trial 2'!AB21,'Trial 3'!AB21,'Trial 4'!AB21,'Trial 5'!AB21,'Trial 6'!AB21,'Trial 7'!AB21,'Trial 8'!AB21)","v":{"v":1590693.6155424297,"d":"$1,590,694"}},{"$f":"SUM('Trial 1'!AC21,'Trial 2'!AC21,'Trial 3'!AC21,'Trial 4'!AC21,'Trial 5'!AC21,'Trial 6'!AC21,'Trial 7'!AC21,'Trial 8'!AC21)","v":{"v":1588782.4420869667,"d":"$1,588,782"}},{"$f":"SUM('Trial 1'!AD21,'Trial 2'!AD21,'Trial 3'!AD21,'Trial 4'!AD21,'Trial 5'!AD21,'Trial 6'!AD21,'Trial 7'!AD21,'Trial 8'!AD21)","v":{"v":1587053.2056525436,"d":"$1,587,053"}},{"$f":"SUM('Trial 1'!AE21,'Trial 2'!AE21,'Trial 3'!AE21,'Trial 4'!AE21,'Trial 5'!AE21,'Trial 6'!AE21,'Trial 7'!AE21,'Trial 8'!AE21)","v":{"v":1585244.3642049402,"d":"$1,585,244"}},{"$f":"SUM('Trial 1'!AF21,'Trial 2'!AF21,'Trial 3'!AF21,'Trial 4'!AF21,'Trial 5'!AF21,'Trial 6'!AF21,'Trial 7'!AF21,'Trial 8'!AF21)","v":{"v":1583419.6125397175,"d":"$1,583,420"}},{"$f":"SUM('Trial 1'!AG21,'Trial 2'!AG21,'Trial 3'!AG21,'Trial 4'!AG21,'Trial 5'!AG21,'Trial 6'!AG21,'Trial 7'!AG21,'Trial 8'!AG21)","v":{"v":1581379.7303040568,"d":"$1,581,380"}},{"$f":"SUM('Trial 1'!AH21,'Trial 2'!AH21,'Trial 3'!AH21,'Trial 4'!AH21,'Trial 5'!AH21,'Trial 6'!AH21,'Trial 7'!AH21,'Trial 8'!AH21)","v":{"v":1579723.6542318831,"d":"$1,579,724"}},{"$f":"SUM('Trial 1'!AI21,'Trial 2'!AI21,'Trial 3'!AI21,'Trial 4'!AI21,'Trial 5'!AI21,'Trial 6'!AI21,'Trial 7'!AI21,'Trial 8'!AI21)","v":{"v":1578235.7747725446,"d":"$1,578,236"}},{"$f":"SUM('Trial 1'!AJ21,'Trial 2'!AJ21,'Trial 3'!AJ21,'Trial 4'!AJ21,'Trial 5'!AJ21,'Trial 6'!AJ21,'Trial 7'!AJ21,'Trial 8'!AJ21)","v":{"v":1576264.9244352973,"d":"$1,576,265"}},{"$f":"SUM('Trial 1'!AK21,'Trial 2'!AK21,'Trial 3'!AK21,'Trial 4'!AK21,'Trial 5'!AK21,'Trial 6'!AK21,'Trial 7'!AK21,'Trial 8'!AK21)","v":{"v":1574638.2366132,"d":"$1,574,638"}},{"$f":"SUM('Trial 1'!AL21,'Trial 2'!AL21,'Trial 3'!AL21,'Trial 4'!AL21,'Trial 5'!AL21,'Trial 6'!AL21,'Trial 7'!AL21,'Trial 8'!AL21)","v":{"v":1573105.9461144689,"d":"$1,573,106"}},{"$f":"SUM('Trial 1'!AM21,'Trial 2'!AM21,'Trial 3'!AM21,'Trial 4'!AM21,'Trial 5'!AM21,'Trial 6'!AM21,'Trial 7'!AM21,'Trial 8'!AM21)","v":{"v":1571653.7488604765,"d":"$1,571,654"}},{"$f":"SUM(AB155:AM155)","v":{"v":18970195.255358525,"d":"$18,970,195"}},{"$f":"SUM('Trial 1'!AO21,'Trial 2'!AO21,'Trial 3'!AO21,'Trial 4'!AO21,'Trial 5'!AO21,'Trial 6'!AO21,'Trial 7'!AO21,'Trial 8'!AO21)","v":{"v":1569902.5166264423,"d":"$1,569,903"}},{"$f":"SUM('Trial 1'!AP21,'Trial 2'!AP21,'Trial 3'!AP21,'Trial 4'!AP21,'Trial 5'!AP21,'Trial 6'!AP21,'Trial 7'!AP21,'Trial 8'!AP21)","v":{"v":1568355.5458270612,"d":"$1,568,356"}},{"$f":"SUM('Trial 1'!AQ21,'Trial 2'!AQ21,'Trial 3'!AQ21,'Trial 4'!AQ21,'Trial 5'!AQ21,'Trial 6'!AQ21,'Trial 7'!AQ21,'Trial 8'!AQ21)","v":{"v":1567026.3390917713,"d":"$1,567,026"}},{"$f":"SUM('Trial 1'!AR21,'Trial 2'!AR21,'Trial 3'!AR21,'Trial 4'!AR21,'Trial 5'!AR21,'Trial 6'!AR21,'Trial 7'!AR21,'Trial 8'!AR21)","v":{"v":1565359.9864255276,"d":"$1,565,360"}},{"$f":"SUM('Trial 1'!AS21,'Trial 2'!AS21,'Trial 3'!AS21,'Trial 4'!AS21,'Trial 5'!AS21,'Trial 6'!AS21,'Trial 7'!AS21,'Trial 8'!AS21)","v":{"v":1563845.7877776078,"d":"$1,563,846"}},{"$f":"SUM('Trial 1'!AT21,'Trial 2'!AT21,'Trial 3'!AT21,'Trial 4'!AT21,'Trial 5'!AT21,'Trial 6'!AT21,'Trial 7'!AT21,'Trial 8'!AT21)","v":{"v":1562557.4959621434,"d":"$1,562,557"}},{"$f":"SUM('Trial 1'!AU21,'Trial 2'!AU21,'Trial 3'!AU21,'Trial 4'!AU21,'Trial 5'!AU21,'Trial 6'!AU21,'Trial 7'!AU21,'Trial 8'!AU21)","v":{"v":1561086.310055627,"d":"$1,561,086"}},{"$f":"SUM('Trial 1'!AV21,'Trial 2'!AV21,'Trial 3'!AV21,'Trial 4'!AV21,'Trial 5'!AV21,'Trial 6'!AV21,'Trial 7'!AV21,'Trial 8'!AV21)","v":{"v":1559581.2734537402,"d":"$1,559,581"}},{"$f":"SUM('Trial 1'!AW21,'Trial 2'!AW21,'Trial 3'!AW21,'Trial 4'!AW21,'Trial 5'!AW21,'Trial 6'!AW21,'Trial 7'!AW21,'Trial 8'!AW21)","v":{"v":1558194.9714614814,"d":"$1,558,195"}},{"$f":"SUM('Trial 1'!AX21,'Trial 2'!AX21,'Trial 3'!AX21,'Trial 4'!AX21,'Trial 5'!AX21,'Trial 6'!AX21,'Trial 7'!AX21,'Trial 8'!AX21)","v":{"v":1556607.4513070022,"d":"$1,556,607"}},{"$f":"SUM('Trial 1'!AY21,'Trial 2'!AY21,'Trial 3'!AY21,'Trial 4'!AY21,'Trial 5'!AY21,'Trial 6'!AY21,'Trial 7'!AY21,'Trial 8'!AY21)","v":{"v":1555176.1824509772,"d":"$1,555,176"}},{"$f":"SUM('Trial 1'!AZ21,'Trial 2'!AZ21,'Trial 3'!AZ21,'Trial 4'!AZ21,'Trial 5'!AZ21,'Trial 6'!AZ21,'Trial 7'!AZ21,'Trial 8'!AZ21)","v":{"v":1553859.642570289,"d":"$1,553,860"}},{"$f":"SUM(AO155:AZ155)","v":{"v":18741553.50300967,"d":"$18,741,554"}},{"$f":"SUM('Trial 1'!BB21,'Trial 2'!BB21,'Trial 3'!BB21,'Trial 4'!BB21,'Trial 5'!BB21,'Trial 6'!BB21,'Trial 7'!BB21,'Trial 8'!BB21)","v":{"v":1552280.4722158725,"d":"$1,552,280"}},{"$f":"SUM('Trial 1'!BC21,'Trial 2'!BC21,'Trial 3'!BC21,'Trial 4'!BC21,'Trial 5'!BC21,'Trial 6'!BC21,'Trial 7'!BC21,'Trial 8'!BC21)","v":{"v":1550762.122660578,"d":"$1,550,762"}},{"$f":"SUM('Trial 1'!BD21,'Trial 2'!BD21,'Trial 3'!BD21,'Trial 4'!BD21,'Trial 5'!BD21,'Trial 6'!BD21,'Trial 7'!BD21,'Trial 8'!BD21)","v":{"v":1549416.9191473771,"d":"$1,549,417"}},{"$f":"SUM('Trial 1'!BE21,'Trial 2'!BE21,'Trial 3'!BE21,'Trial 4'!BE21,'Trial 5'!BE21,'Trial 6'!BE21,'Trial 7'!BE21,'Trial 8'!BE21)","v":{"v":1548154.4997697384,"d":"$1,548,154"}},{"$f":"SUM('Trial 1'!BF21,'Trial 2'!BF21,'Trial 3'!BF21,'Trial 4'!BF21,'Trial 5'!BF21,'Trial 6'!BF21,'Trial 7'!BF21,'Trial 8'!BF21)","v":{"v":1546847.2992477277,"d":"$1,546,847"}},{"$f":"SUM('Trial 1'!BG21,'Trial 2'!BG21,'Trial 3'!BG21,'Trial 4'!BG21,'Trial 5'!BG21,'Trial 6'!BG21,'Trial 7'!BG21,'Trial 8'!BG21)","v":{"v":1545689.1212900856,"d":"$1,545,689"}},{"$f":"SUM('Trial 1'!BH21,'Trial 2'!BH21,'Trial 3'!BH21,'Trial 4'!BH21,'Trial 5'!BH21,'Trial 6'!BH21,'Trial 7'!BH21,'Trial 8'!BH21)","v":{"v":1544544.1940082707,"d":"$1,544,544"}},{"$f":"SUM('Trial 1'!BI21,'Trial 2'!BI21,'Trial 3'!BI21,'Trial 4'!BI21,'Trial 5'!BI21,'Trial 6'!BI21,'Trial 7'!BI21,'Trial 8'!BI21)","v":{"v":1543108.0513108312,"d":"$1,543,108"}},{"$f":"SUM('Trial 1'!BJ21,'Trial 2'!BJ21,'Trial 3'!BJ21,'Trial 4'!BJ21,'Trial 5'!BJ21,'Trial 6'!BJ21,'Trial 7'!BJ21,'Trial 8'!BJ21)","v":{"v":1541819.546895218,"d":"$1,541,820"}},{"$f":"SUM('Trial 1'!BK21,'Trial 2'!BK21,'Trial 3'!BK21,'Trial 4'!BK21,'Trial 5'!BK21,'Trial 6'!BK21,'Trial 7'!BK21,'Trial 8'!BK21)","v":{"v":1540758.5953555284,"d":"$1,540,759"}},{"$f":"SUM('Trial 1'!BL21,'Trial 2'!BL21,'Trial 3'!BL21,'Trial 4'!BL21,'Trial 5'!BL21,'Trial 6'!BL21,'Trial 7'!BL21,'Trial 8'!BL21)","v":{"v":1539537.781293936,"d":"$1,539,538"}},{"$f":"SUM('Trial 1'!BM21,'Trial 2'!BM21,'Trial 3'!BM21,'Trial 4'!BM21,'Trial 5'!BM21,'Trial 6'!BM21,'Trial 7'!BM21,'Trial 8'!BM21)","v":{"v":1538508.5585511953,"d":"$1,538,509"}},{"$f":"SUM(BB155:BM155)","v":{"v":18541427.16174636,"d":"$18,541,427"}},{"$f":"SUM('Trial 1'!BO21,'Trial 2'!BO21,'Trial 3'!BO21,'Trial 4'!BO21,'Trial 5'!BO21,'Trial 6'!BO21,'Trial 7'!BO21,'Trial 8'!BO21)","v":{"v":1537342.3104693936,"d":"$1,537,342"}},{"$f":"SUM('Trial 1'!BP21,'Trial 2'!BP21,'Trial 3'!BP21,'Trial 4'!BP21,'Trial 5'!BP21,'Trial 6'!BP21,'Trial 7'!BP21,'Trial 8'!BP21)","v":{"v":1536174.424833775,"d":"$1,536,174"}},{"$f":"SUM('Trial 1'!BQ21,'Trial 2'!BQ21,'Trial 3'!BQ21,'Trial 4'!BQ21,'Trial 5'!BQ21,'Trial 6'!BQ21,'Trial 7'!BQ21,'Trial 8'!BQ21)","v":{"v":1535117.800978354,"d":"$1,535,118"}},{"$f":"SUM('Trial 1'!BR21,'Trial 2'!BR21,'Trial 3'!BR21,'Trial 4'!BR21,'Trial 5'!BR21,'Trial 6'!BR21,'Trial 7'!BR21,'Trial 8'!BR21)","v":{"v":1534233.462070372,"d":"$1,534,233"}},{"$f":"SUM('Trial 1'!BS21,'Trial 2'!BS21,'Trial 3'!BS21,'Trial 4'!BS21,'Trial 5'!BS21,'Trial 6'!BS21,'Trial 7'!BS21,'Trial 8'!BS21)","v":{"v":1533303.6090307932,"d":"$1,533,304"}},{"$f":"SUM('Trial 1'!BT21,'Trial 2'!BT21,'Trial 3'!BT21,'Trial 4'!BT21,'Trial 5'!BT21,'Trial 6'!BT21,'Trial 7'!BT21,'Trial 8'!BT21)","v":{"v":1532124.4592851598,"d":"$1,532,124"}},{"$f":"SUM('Trial 1'!BU21,'Trial 2'!BU21,'Trial 3'!BU21,'Trial 4'!BU21,'Trial 5'!BU21,'Trial 6'!BU21,'Trial 7'!BU21,'Trial 8'!BU21)","v":{"v":1531351.3151800246,"d":"$1,531,351"}},{"$f":"SUM('Trial 1'!BV21,'Trial 2'!BV21,'Trial 3'!BV21,'Trial 4'!BV21,'Trial 5'!BV21,'Trial 6'!BV21,'Trial 7'!BV21,'Trial 8'!BV21)","v":{"v":1530167.315175008,"d":"$1,530,167"}},{"$f":"SUM('Trial 1'!BW21,'Trial 2'!BW21,'Trial 3'!BW21,'Trial 4'!BW21,'Trial 5'!BW21,'Trial 6'!BW21,'Trial 7'!BW21,'Trial 8'!BW21)","v":{"v":1529099.0877295537,"d":"$1,529,099"}},{"$f":"SUM('Trial 1'!BX21,'Trial 2'!BX21,'Trial 3'!BX21,'Trial 4'!BX21,'Trial 5'!BX21,'Trial 6'!BX21,'Trial 7'!BX21,'Trial 8'!BX21)","v":{"v":1528297.1180607348,"d":"$1,528,297"}},{"$f":"SUM('Trial 1'!BY21,'Trial 2'!BY21,'Trial 3'!BY21,'Trial 4'!BY21,'Trial 5'!BY21,'Trial 6'!BY21,'Trial 7'!BY21,'Trial 8'!BY21)","v":{"v":1527129.8523884204,"d":"$1,527,130"}},{"$f":"SUM('Trial 1'!BZ21,'Trial 2'!BZ21,'Trial 3'!BZ21,'Trial 4'!BZ21,'Trial 5'!BZ21,'Trial 6'!BZ21,'Trial 7'!BZ21,'Trial 8'!BZ21)","v":{"v":1526308.077925126,"d":"$1,526,308"}},{"$f":"SUM(BO155:BZ155)","v":{"v":18380648.833126713,"d":"$18,380,649"}},{"$f":"SUM('Trial 1'!CB21,'Trial 2'!CB21,'Trial 3'!CB21,'Trial 4'!CB21,'Trial 5'!CB21,'Trial 6'!CB21,'Trial 7'!CB21,'Trial 8'!CB21)","v":{"v":1525325.8563901668,"d":"$1,525,326"}},{"$f":"SUM('Trial 1'!CC21,'Trial 2'!CC21,'Trial 3'!CC21,'Trial 4'!CC21,'Trial 5'!CC21,'Trial 6'!CC21,'Trial 7'!CC21,'Trial 8'!CC21)","v":{"v":1524304.7550612073,"d":"$1,524,305"}},{"$f":"SUM('Trial 1'!CD21,'Trial 2'!CD21,'Trial 3'!CD21,'Trial 4'!CD21,'Trial 5'!CD21,'Trial 6'!CD21,'Trial 7'!CD21,'Trial 8'!CD21)","v":{"v":1523260.369815255,"d":"$1,523,260"}},{"$f":"SUM('Trial 1'!CE21,'Trial 2'!CE21,'Trial 3'!CE21,'Trial 4'!CE21,'Trial 5'!CE21,'Trial 6'!CE21,'Trial 7'!CE21,'Trial 8'!CE21)","v":{"v":1522404.491211666,"d":"$1,522,404"}},{"$f":"SUM('Trial 1'!CF21,'Trial 2'!CF21,'Trial 3'!CF21,'Trial 4'!CF21,'Trial 5'!CF21,'Trial 6'!CF21,'Trial 7'!CF21,'Trial 8'!CF21)","v":{"v":1521283.4229776107,"d":"$1,521,283"}},{"$f":"SUM('Trial 1'!CG21,'Trial 2'!CG21,'Trial 3'!CG21,'Trial 4'!CG21,'Trial 5'!CG21,'Trial 6'!CG21,'Trial 7'!CG21,'Trial 8'!CG21)","v":{"v":1520315.4470143632,"d":"$1,520,315"}},{"$f":"SUM('Trial 1'!CH21,'Trial 2'!CH21,'Trial 3'!CH21,'Trial 4'!CH21,'Trial 5'!CH21,'Trial 6'!CH21,'Trial 7'!CH21,'Trial 8'!CH21)","v":{"v":1519802.868603158,"d":"$1,519,803"}},{"$f":"SUM('Trial 1'!CI21,'Trial 2'!CI21,'Trial 3'!CI21,'Trial 4'!CI21,'Trial 5'!CI21,'Trial 6'!CI21,'Trial 7'!CI21,'Trial 8'!CI21)","v":{"v":1518922.768360158,"d":"$1,518,923"}},{"$f":"SUM('Trial 1'!CJ21,'Trial 2'!CJ21,'Trial 3'!CJ21,'Trial 4'!CJ21,'Trial 5'!CJ21,'Trial 6'!CJ21,'Trial 7'!CJ21,'Trial 8'!CJ21)","v":{"v":1518139.8932453017,"d":"$1,518,140"}},{"$f":"SUM('Trial 1'!CK21,'Trial 2'!CK21,'Trial 3'!CK21,'Trial 4'!CK21,'Trial 5'!CK21,'Trial 6'!CK21,'Trial 7'!CK21,'Trial 8'!CK21)","v":{"v":1517297.7083133855,"d":"$1,517,298"}},{"$f":"SUM('Trial 1'!CL21,'Trial 2'!CL21,'Trial 3'!CL21,'Trial 4'!CL21,'Trial 5'!CL21,'Trial 6'!CL21,'Trial 7'!CL21,'Trial 8'!CL21)","v":{"v":1516670.2154793844,"d":"$1,516,670"}},{"$f":"SUM('Trial 1'!CM21,'Trial 2'!CM21,'Trial 3'!CM21,'Trial 4'!CM21,'Trial 5'!CM21,'Trial 6'!CM21,'Trial 7'!CM21,'Trial 8'!CM21)","v":{"v":1515722.1677825628,"d":"$1,515,722"}},{"$f":"SUM(CB155:CM155)","v":{"v":18243449.96425422,"d":"$18,243,450"}},{"$f":"SUM('Trial 1'!CO21,'Trial 2'!CO21,'Trial 3'!CO21,'Trial 4'!CO21,'Trial 5'!CO21,'Trial 6'!CO21,'Trial 7'!CO21,'Trial 8'!CO21)","v":{"v":1515069.1177994662,"d":"$1,515,069"}},{"$f":"SUM('Trial 1'!CP21,'Trial 2'!CP21,'Trial 3'!CP21,'Trial 4'!CP21,'Trial 5'!CP21,'Trial 6'!CP21,'Trial 7'!CP21,'Trial 8'!CP21)","v":{"v":1514285.3690712024,"d":"$1,514,285"}},{"$f":"SUM('Trial 1'!CQ21,'Trial 2'!CQ21,'Trial 3'!CQ21,'Trial 4'!CQ21,'Trial 5'!CQ21,'Trial 6'!CQ21,'Trial 7'!CQ21,'Trial 8'!CQ21)","v":{"v":1513518.4490351474,"d":"$1,513,518"}},{"$f":"SUM('Trial 1'!CR21,'Trial 2'!CR21,'Trial 3'!CR21,'Trial 4'!CR21,'Trial 5'!CR21,'Trial 6'!CR21,'Trial 7'!CR21,'Trial 8'!CR21)","v":{"v":1512732.4919480756,"d":"$1,512,732"}},{"$f":"SUM('Trial 1'!CS21,'Trial 2'!CS21,'Trial 3'!CS21,'Trial 4'!CS21,'Trial 5'!CS21,'Trial 6'!CS21,'Trial 7'!CS21,'Trial 8'!CS21)","v":{"v":1511863.2760747902,"d":"$1,511,863"}},{"$f":"SUM('Trial 1'!CT21,'Trial 2'!CT21,'Trial 3'!CT21,'Trial 4'!CT21,'Trial 5'!CT21,'Trial 6'!CT21,'Trial 7'!CT21,'Trial 8'!CT21)","v":{"v":1510661.576539241,"d":"$1,510,662"}},{"$f":"SUM('Trial 1'!CU21,'Trial 2'!CU21,'Trial 3'!CU21,'Trial 4'!CU21,'Trial 5'!CU21,'Trial 6'!CU21,'Trial 7'!CU21,'Trial 8'!CU21)","v":{"v":1509634.1586113696,"d":"$1,509,634"}},{"$f":"SUM('Trial 1'!CV21,'Trial 2'!CV21,'Trial 3'!CV21,'Trial 4'!CV21,'Trial 5'!CV21,'Trial 6'!CV21,'Trial 7'!CV21,'Trial 8'!CV21)","v":{"v":1509138.8146398354,"d":"$1,509,139"}},{"$f":"SUM('Trial 1'!CW21,'Trial 2'!CW21,'Trial 3'!CW21,'Trial 4'!CW21,'Trial 5'!CW21,'Trial 6'!CW21,'Trial 7'!CW21,'Trial 8'!CW21)","v":{"v":1508219.8977215623,"d":"$1,508,220"}},{"$f":"SUM('Trial 1'!CX21,'Trial 2'!CX21,'Trial 3'!CX21,'Trial 4'!CX21,'Trial 5'!CX21,'Trial 6'!CX21,'Trial 7'!CX21,'Trial 8'!CX21)","v":{"v":1507341.2193564763,"d":"$1,507,341"}},{"$f":"SUM('Trial 1'!CY21,'Trial 2'!CY21,'Trial 3'!CY21,'Trial 4'!CY21,'Trial 5'!CY21,'Trial 6'!CY21,'Trial 7'!CY21,'Trial 8'!CY21)","v":{"v":1506403.845701706,"d":"$1,506,404"}},{"$f":"SUM('Trial 1'!CZ21,'Trial 2'!CZ21,'Trial 3'!CZ21,'Trial 4'!CZ21,'Trial 5'!CZ21,'Trial 6'!CZ21,'Trial 7'!CZ21,'Trial 8'!CZ21)","v":{"v":1505678.6839797134,"d":"$1,505,679"}},{"$f":"SUM(CO155:CZ155)","v":{"v":18124546.900478587,"d":"$18,124,547"}},{"$f":"SUM('Trial 1'!DB21,'Trial 2'!DB21,'Trial 3'!DB21,'Trial 4'!DB21,'Trial 5'!DB21,'Trial 6'!DB21,'Trial 7'!DB21,'Trial 8'!DB21)","v":{"v":1504776.9191656057,"d":"$1,504,777"}},{"$f":"SUM('Trial 1'!DC21,'Trial 2'!DC21,'Trial 3'!DC21,'Trial 4'!DC21,'Trial 5'!DC21,'Trial 6'!DC21,'Trial 7'!DC21,'Trial 8'!DC21)","v":{"v":1504095.6792631068,"d":"$1,504,096"}},{"$f":"SUM('Trial 1'!DD21,'Trial 2'!DD21,'Trial 3'!DD21,'Trial 4'!DD21,'Trial 5'!DD21,'Trial 6'!DD21,'Trial 7'!DD21,'Trial 8'!DD21)","v":{"v":1503085.1269327283,"d":"$1,503,085"}},{"$f":"SUM('Trial 1'!DE21,'Trial 2'!DE21,'Trial 3'!DE21,'Trial 4'!DE21,'Trial 5'!DE21,'Trial 6'!DE21,'Trial 7'!DE21,'Trial 8'!DE21)","v":{"v":1502194.316178753,"d":"$1,502,194"}},{"$f":"SUM('Trial 1'!DF21,'Trial 2'!DF21,'Trial 3'!DF21,'Trial 4'!DF21,'Trial 5'!DF21,'Trial 6'!DF21,'Trial 7'!DF21,'Trial 8'!DF21)","v":{"v":1501491.4345221794,"d":"$1,501,491"}},{"$f":"SUM('Trial 1'!DG21,'Trial 2'!DG21,'Trial 3'!DG21,'Trial 4'!DG21,'Trial 5'!DG21,'Trial 6'!DG21,'Trial 7'!DG21,'Trial 8'!DG21)","v":{"v":1500678.0412478484,"d":"$1,500,678"}},{"$f":"SUM('Trial 1'!DH21,'Trial 2'!DH21,'Trial 3'!DH21,'Trial 4'!DH21,'Trial 5'!DH21,'Trial 6'!DH21,'Trial 7'!DH21,'Trial 8'!DH21)","v":{"v":1499820.8854642173,"d":"$1,499,821"}},{"$f":"SUM('Trial 1'!DI21,'Trial 2'!DI21,'Trial 3'!DI21,'Trial 4'!DI21,'Trial 5'!DI21,'Trial 6'!DI21,'Trial 7'!DI21,'Trial 8'!DI21)","v":{"v":1498936.4772457918,"d":"$1,498,936"}},{"$f":"SUM('Trial 1'!DJ21,'Trial 2'!DJ21,'Trial 3'!DJ21,'Trial 4'!DJ21,'Trial 5'!DJ21,'Trial 6'!DJ21,'Trial 7'!DJ21,'Trial 8'!DJ21)","v":{"v":1498008.9269885933,"d":"$1,498,009"}},{"$f":"SUM('Trial 1'!DK21,'Trial 2'!DK21,'Trial 3'!DK21,'Trial 4'!DK21,'Trial 5'!DK21,'Trial 6'!DK21,'Trial 7'!DK21,'Trial 8'!DK21)","v":{"v":1497221.6982513315,"d":"$1,497,222"}},{"$f":"SUM('Trial 1'!DL21,'Trial 2'!DL21,'Trial 3'!DL21,'Trial 4'!DL21,'Trial 5'!DL21,'Trial 6'!DL21,'Trial 7'!DL21,'Trial 8'!DL21)","v":{"v":1496402.0972328838,"d":"$1,496,402"}},{"$f":"SUM('Trial 1'!DM21,'Trial 2'!DM21,'Trial 3'!DM21,'Trial 4'!DM21,'Trial 5'!DM21,'Trial 6'!DM21,'Trial 7'!DM21,'Trial 8'!DM21)","v":{"v":1495475.9473517996,"d":"$1,495,476"}},{"$f":"SUM(DB155:DM155)","v":{"v":18002187.54984484,"d":"$18,002,188"}},{"$f":"SUM('Trial 1'!DO21,'Trial 2'!DO21,'Trial 3'!DO21,'Trial 4'!DO21,'Trial 5'!DO21,'Trial 6'!DO21,'Trial 7'!DO21,'Trial 8'!DO21)","v":{"v":1494604.5453207274,"d":"$1,494,605"}},{"$f":"SUM('Trial 1'!DP21,'Trial 2'!DP21,'Trial 3'!DP21,'Trial 4'!DP21,'Trial 5'!DP21,'Trial 6'!DP21,'Trial 7'!DP21,'Trial 8'!DP21)","v":{"v":1493989.025675616,"d":"$1,493,989"}},{"$f":"SUM('Trial 1'!DQ21,'Trial 2'!DQ21,'Trial 3'!DQ21,'Trial 4'!DQ21,'Trial 5'!DQ21,'Trial 6'!DQ21,'Trial 7'!DQ21,'Trial 8'!DQ21)","v":{"v":1493128.8976941444,"d":"$1,493,129"}},{"$f":"SUM('Trial 1'!DR21,'Trial 2'!DR21,'Trial 3'!DR21,'Trial 4'!DR21,'Trial 5'!DR21,'Trial 6'!DR21,'Trial 7'!DR21,'Trial 8'!DR21)","v":{"v":1492595.0320156615,"d":"$1,492,595"}},{"$f":"SUM('Trial 1'!DS21,'Trial 2'!DS21,'Trial 3'!DS21,'Trial 4'!DS21,'Trial 5'!DS21,'Trial 6'!DS21,'Trial 7'!DS21,'Trial 8'!DS21)","v":{"v":1491868.4593981775,"d":"$1,491,868"}},{"$f":"SUM('Trial 1'!DT21,'Trial 2'!DT21,'Trial 3'!DT21,'Trial 4'!DT21,'Trial 5'!DT21,'Trial 6'!DT21,'Trial 7'!DT21,'Trial 8'!DT21)","v":{"v":1491120.3217251753,"d":"$1,491,120"}},{"$f":"SUM('Trial 1'!DU21,'Trial 2'!DU21,'Trial 3'!DU21,'Trial 4'!DU21,'Trial 5'!DU21,'Trial 6'!DU21,'Trial 7'!DU21,'Trial 8'!DU21)","v":{"v":1490574.1328676234,"d":"$1,490,574"}},{"$f":"SUM('Trial 1'!DV21,'Trial 2'!DV21,'Trial 3'!DV21,'Trial 4'!DV21,'Trial 5'!DV21,'Trial 6'!DV21,'Trial 7'!DV21,'Trial 8'!DV21)","v":{"v":1489894.8261876367,"d":"$1,489,895"}},{"$f":"SUM('Trial 1'!DW21,'Trial 2'!DW21,'Trial 3'!DW21,'Trial 4'!DW21,'Trial 5'!DW21,'Trial 6'!DW21,'Trial 7'!DW21,'Trial 8'!DW21)","v":{"v":1489276.134145474,"d":"$1,489,276"}},{"$f":"SUM('Trial 1'!DX21,'Trial 2'!DX21,'Trial 3'!DX21,'Trial 4'!DX21,'Trial 5'!DX21,'Trial 6'!DX21,'Trial 7'!DX21,'Trial 8'!DX21)","v":{"v":1488571.954327466,"d":"$1,488,572"}},{"$f":"SUM('Trial 1'!DY21,'Trial 2'!DY21,'Trial 3'!DY21,'Trial 4'!DY21,'Trial 5'!DY21,'Trial 6'!DY21,'Trial 7'!DY21,'Trial 8'!DY21)","v":{"v":1487838.5893024732,"d":"$1,487,839"}},{"$f":"SUM('Trial 1'!DZ21,'Trial 2'!DZ21,'Trial 3'!DZ21,'Trial 4'!DZ21,'Trial 5'!DZ21,'Trial 6'!DZ21,'Trial 7'!DZ21,'Trial 8'!DZ21)","v":{"v":1487126.1161960177,"d":"$1,487,126"}},{"$f":"SUM(DO155:DZ155)","v":{"v":17890588.034856193,"d":"$17,890,588"}},{"$f":"SUM('Trial 1'!EB21,'Trial 2'!EB21,'Trial 3'!EB21,'Trial 4'!EB21,'Trial 5'!EB21,'Trial 6'!EB21,'Trial 7'!EB21,'Trial 8'!EB21)","v":{"v":1486155.492310724,"d":"$1,486,155"}},{"$f":"SUM('Trial 1'!EC21,'Trial 2'!EC21,'Trial 3'!EC21,'Trial 4'!EC21,'Trial 5'!EC21,'Trial 6'!EC21,'Trial 7'!EC21,'Trial 8'!EC21)","v":{"v":1485524.0933141867,"d":"$1,485,524"}},{"$f":"SUM('Trial 1'!ED21,'Trial 2'!ED21,'Trial 3'!ED21,'Trial 4'!ED21,'Trial 5'!ED21,'Trial 6'!ED21,'Trial 7'!ED21,'Trial 8'!ED21)","v":{"v":1484588.0276238685,"d":"$1,484,588"}},{"$f":"SUM('Trial 1'!EE21,'Trial 2'!EE21,'Trial 3'!EE21,'Trial 4'!EE21,'Trial 5'!EE21,'Trial 6'!EE21,'Trial 7'!EE21,'Trial 8'!EE21)","v":{"v":1483753.4085791411,"d":"$1,483,753"}},{"$f":"SUM('Trial 1'!EF21,'Trial 2'!EF21,'Trial 3'!EF21,'Trial 4'!EF21,'Trial 5'!EF21,'Trial 6'!EF21,'Trial 7'!EF21,'Trial 8'!EF21)","v":{"v":1483063.5543075157,"d":"$1,483,064"}},{"$f":"SUM('Trial 1'!EG21,'Trial 2'!EG21,'Trial 3'!EG21,'Trial 4'!EG21,'Trial 5'!EG21,'Trial 6'!EG21,'Trial 7'!EG21,'Trial 8'!EG21)","v":{"v":1482401.9103024811,"d":"$1,482,402"}},{"$f":"SUM('Trial 1'!EH21,'Trial 2'!EH21,'Trial 3'!EH21,'Trial 4'!EH21,'Trial 5'!EH21,'Trial 6'!EH21,'Trial 7'!EH21,'Trial 8'!EH21)","v":{"v":1481531.7789768921,"d":"$1,481,532"}},{"$f":"SUM('Trial 1'!EI21,'Trial 2'!EI21,'Trial 3'!EI21,'Trial 4'!EI21,'Trial 5'!EI21,'Trial 6'!EI21,'Trial 7'!EI21,'Trial 8'!EI21)","v":{"v":1480732.8361476618,"d":"$1,480,733"}},{"$f":"SUM('Trial 1'!EJ21,'Trial 2'!EJ21,'Trial 3'!EJ21,'Trial 4'!EJ21,'Trial 5'!EJ21,'Trial 6'!EJ21,'Trial 7'!EJ21,'Trial 8'!EJ21)","v":{"v":1479654.2842731758,"d":"$1,479,654"}},{"$f":"SUM('Trial 1'!EK21,'Trial 2'!EK21,'Trial 3'!EK21,'Trial 4'!EK21,'Trial 5'!EK21,'Trial 6'!EK21,'Trial 7'!EK21,'Trial 8'!EK21)","v":{"v":1478875.5102712642,"d":"$1,478,876"}},{"$f":"SUM('Trial 1'!EL21,'Trial 2'!EL21,'Trial 3'!EL21,'Trial 4'!EL21,'Trial 5'!EL21,'Trial 6'!EL21,'Trial 7'!EL21,'Trial 8'!EL21)","v":{"v":1478267.300765793,"d":"$1,478,267"}},{"$f":"SUM('Trial 1'!EM21,'Trial 2'!EM21,'Trial 3'!EM21,'Trial 4'!EM21,'Trial 5'!EM21,'Trial 6'!EM21,'Trial 7'!EM21,'Trial 8'!EM21)","v":{"v":1477451.9407465332,"d":"$1,477,452"}},{"$f":"SUM(EB155:EM155)","v":{"v":17782000.13761924,"d":"$17,782,000"}}]
[{"$f":"Labels!B11","v":"Capital Depreciation"}]
[{"$f":"Labels!D96","v":"Trials"},{"$f":"ZZZ__FnCalls!F7","v":"Jan 2010"},{"$f":"ZZZ__FnCalls!F8","v":"Feb 2010"},{"$f":"ZZZ__FnCalls!F9","v":"Mar 2010"},{"$f":"ZZZ__FnCalls!F10","v":"Apr 2010"},{"$f":"ZZZ__FnCalls!F11","v":"May 2010"},{"$f":"ZZZ__FnCalls!F12","v":"Jun 2010"},{"$f":"ZZZ__FnCalls!F13","v":"Jul 2010"},{"$f":"ZZZ__FnCalls!F14","v":"Aug 2010"},{"$f":"ZZZ__FnCalls!F15","v":"Sep 2010"},{"$f":"ZZZ__FnCalls!F16","v":"Oct 2010"},{"$f":"ZZZ__FnCalls!F17","v":"Nov 2010"},{"$f":"ZZZ__FnCalls!F18","v":"Dec 2010"},{"$f":"ZZZ__FnCalls!H7","v":"2010"},{"$f":"ZZZ__FnCalls!F19","v":"Jan 2011"},{"$f":"ZZZ__FnCalls!F20","v":"Feb 2011"},{"$f":"ZZZ__FnCalls!F21","v":"Mar 2011"},{"$f":"ZZZ__FnCalls!F22","v":"Apr 2011"},{"$f":"ZZZ__FnCalls!F23","v":"May 2011"},{"$f":"ZZZ__FnCalls!F24","v":"Jun 2011"},{"$f":"ZZZ__FnCalls!F25","v":"Jul 2011"},{"$f":"ZZZ__FnCalls!F26","v":"Aug 2011"},{"$f":"ZZZ__FnCalls!F27","v":"Sep 2011"},{"$f":"ZZZ__FnCalls!F28","v":"Oct 2011"},{"$f":"ZZZ__FnCalls!F29","v":"Nov 2011"},{"$f":"ZZZ__FnCalls!F30","v":"Dec 2011"},{"$f":"ZZZ__FnCalls!H19","v":"2011"},{"$f":"ZZZ__FnCalls!F31","v":"Jan 2012"},{"$f":"ZZZ__FnCalls!F32","v":"Feb 2012"},{"$f":"ZZZ__FnCalls!F33","v":"Mar 2012"},{"$f":"ZZZ__FnCalls!F34","v":"Apr 2012"},{"$f":"ZZZ__FnCalls!F35","v":"May 2012"},{"$f":"ZZZ__FnCalls!F36","v":"Jun 2012"},{"$f":"ZZZ__FnCalls!F37","v":"Jul 2012"},{"$f":"ZZZ__FnCalls!F38","v":"Aug 2012"},{"$f":"ZZZ__FnCalls!F39","v":"Sep 2012"},{"$f":"ZZZ__FnCalls!F40","v":"Oct 2012"},{"$f":"ZZZ__FnCalls!F41","v":"Nov 2012"},{"$f":"ZZZ__FnCalls!F42","v":"Dec 2012"},{"$f":"ZZZ__FnCalls!H31","v":"2012"},{"$f":"ZZZ__FnCalls!F43","v":"Jan 2013"},{"$f":"ZZZ__FnCalls!F44","v":"Feb 2013"},{"$f":"ZZZ__FnCalls!F45","v":"Mar 2013"},{"$f":"ZZZ__FnCalls!F46","v":"Apr 2013"},{"$f":"ZZZ__FnCalls!F47","v":"May 2013"},{"$f":"ZZZ__FnCalls!F48","v":"Jun 2013"},{"$f":"ZZZ__FnCalls!F49","v":"Jul 2013"},{"$f":"ZZZ__FnCalls!F50","v":"Aug 2013"},{"$f":"ZZZ__FnCalls!F51","v":"Sep 2013"},{"$f":"ZZZ__FnCalls!F52","v":"Oct 2013"},{"$f":"ZZZ__FnCalls!F53","v":"Nov 2013"},{"$f":"ZZZ__FnCalls!F54","v":"Dec 2013"},{"$f":"ZZZ__FnCalls!H43","v":"2013"},{"$f":"ZZZ__FnCalls!F55","v":"Jan 2014"},{"$f":"ZZZ__FnCalls!F56","v":"Feb 2014"},{"$f":"ZZZ__FnCalls!F57","v":"Mar 2014"},{"$f":"ZZZ__FnCalls!F58","v":"Apr 2014"},{"$f":"ZZZ__FnCalls!F59","v":"May 2014"},{"$f":"ZZZ__FnCalls!F60","v":"Jun 2014"},{"$f":"ZZZ__FnCalls!F61","v":"Jul 2014"},{"$f":"ZZZ__FnCalls!F62","v":"Aug 2014"},{"$f":"ZZZ__FnCalls!F63","v":"Sep 2014"},{"$f":"ZZZ__FnCalls!F64","v":"Oct 2014"},{"$f":"ZZZ__FnCalls!F65","v":"Nov 2014"},{"$f":"ZZZ__FnCalls!F66","v":"Dec 2014"},{"$f":"ZZZ__FnCalls!H55","v":"2014"},{"$f":"ZZZ__FnCalls!F67","v":"Jan 2015"},{"$f":"ZZZ__FnCalls!F68","v":"Feb 2015"},{"$f":"ZZZ__FnCalls!F69","v":"Mar 2015"},{"$f":"ZZZ__FnCalls!F70","v":"Apr 2015"},{"$f":"ZZZ__FnCalls!F71","v":"May 2015"},{"$f":"ZZZ__FnCalls!F72","v":"Jun 2015"},{"$f":"ZZZ__FnCalls!F73","v":"Jul 2015"},{"$f":"ZZZ__FnCalls!F74","v":"Aug 2015"},{"$f":"ZZZ__FnCalls!F75","v":"Sep 2015"},{"$f":"ZZZ__FnCalls!F76","v":"Oct 2015"},{"$f":"ZZZ__FnCalls!F77","v":"Nov 2015"},{"$f":"ZZZ__FnCalls!F78","v":"Dec 2015"},{"$f":"ZZZ__FnCalls!H67","v":"2015"},{"$f":"ZZZ__FnCalls!F79","v":"Jan 2016"},{"$f":"ZZZ__FnCalls!F80","v":"Feb 2016"},{"$f":"ZZZ__FnCalls!F81","v":"Mar 2016"},{"$f":"ZZZ__FnCalls!F82","v":"Apr 2016"},{"$f":"ZZZ__FnCalls!F83","v":"May 2016"},{"$f":"ZZZ__FnCalls!F84","v":"Jun 2016"},{"$f":"ZZZ__FnCalls!F85","v":"Jul 2016"},{"$f":"ZZZ__FnCalls!F86","v":"Aug 2016"},{"$f":"ZZZ__FnCalls!F87","v":"Sep 2016"},{"$f":"ZZZ__FnCalls!F88","v":"Oct 2016"},{"$f":"ZZZ__FnCalls!F89","v":"Nov 2016"},{"$f":"ZZZ__FnCalls!F90","v":"Dec 2016"},{"$f":"ZZZ__FnCalls!H79","v":"2016"},{"$f":"ZZZ__FnCalls!F91","v":"Jan 2017"},{"$f":"ZZZ__FnCalls!F92","v":"Feb 2017"},{"$f":"ZZZ__FnCalls!F93","v":"Mar 2017"},{"$f":"ZZZ__FnCalls!F94","v":"Apr 2017"},{"$f":"ZZZ__FnCalls!F95","v":"May 2017"},{"$f":"ZZZ__FnCalls!F96","v":"Jun 2017"},{"$f":"ZZZ__FnCalls!F97","v":"Jul 2017"},{"$f":"ZZZ__FnCalls!F98","v":"Aug 2017"},{"$f":"ZZZ__FnCalls!F99","v":"Sep 2017"},{"$f":"ZZZ__FnCalls!F100","v":"Oct 2017"},{"$f":"ZZZ__FnCalls!F101","v":"Nov 2017"},{"$f":"ZZZ__FnCalls!F102","v":"Dec 2017"},{"$f":"ZZZ__FnCalls!H91","v":"2017"},{"$f":"ZZZ__FnCalls!F103","v":"Jan 2018"},{"$f":"ZZZ__FnCalls!F104","v":"Feb 2018"},{"$f":"ZZZ__FnCalls!F105","v":"Mar 2018"},{"$f":"ZZZ__FnCalls!F106","v":"Apr 2018"},{"$f":"ZZZ__FnCalls!F107","v":"May 2018"},{"$f":"ZZZ__FnCalls!F108","v":"Jun 2018"},{"$f":"ZZZ__FnCalls!F109","v":"Jul 2018"},{"$f":"ZZZ__FnCalls!F110","v":"Aug 2018"},{"$f":"ZZZ__FnCalls!F111","v":"Sep 2018"},{"$f":"ZZZ__FnCalls!F112","v":"Oct 2018"},{"$f":"ZZZ__FnCalls!F113","v":"Nov 2018"},{"$f":"ZZZ__FnCalls!F114","v":"Dec 2018"},{"$f":"ZZZ__FnCalls!H103","v":"2018"},{"$f":"ZZZ__FnCalls!F115","v":"Jan 2019"},{"$f":"ZZZ__FnCalls!F116","v":"Feb 2019"},{"$f":"ZZZ__FnCalls!F117","v":"Mar 2019"},{"$f":"ZZZ__FnCalls!F118","v":"Apr 2019"},{"$f":"ZZZ__FnCalls!F119","v":"May 2019"},{"$f":"ZZZ__FnCalls!F120","v":"Jun 2019"},{"$f":"ZZZ__FnCalls!F121","v":"Jul 2019"},{"$f":"ZZZ__FnCalls!F122","v":"Aug 2019"},{"$f":"ZZZ__FnCalls!F123","v":"Sep 2019"},{"$f":"ZZZ__FnCalls!F124","v":"Oct 2019"},{"$f":"ZZZ__FnCalls!F125","v":"Nov 2019"},{"$f":"ZZZ__FnCalls!F126","v":"Dec 2019"},{"$f":"ZZZ__FnCalls!H115","v":"2019"},{"$f":"ZZZ__FnCalls!F127","v":"Jan 2020"},{"$f":"ZZZ__FnCalls!F128","v":"Feb 2020"},{"$f":"ZZZ__FnCalls!F129","v":"Mar 2020"},{"$f":"ZZZ__FnCalls!F130","v":"Apr 2020"},{"$f":"ZZZ__FnCalls!F131","v":"May 2020"},{"$f":"ZZZ__FnCalls!F132","v":"Jun 2020"},{"$f":"ZZZ__FnCalls!F133","v":"Jul 2020"},{"$f":"ZZZ__FnCalls!F134","v":"Aug 2020"},{"$f":"ZZZ__FnCalls!F135","v":"Sep 2020"},{"$f":"ZZZ__FnCalls!F136","v":"Oct 2020"},{"$f":"ZZZ__FnCalls!F137","v":"Nov 2020"},{"$f":"ZZZ__FnCalls!F138","v":"Dec 2020"},{"$f":"ZZZ__FnCalls!H127","v":"2020"}]
[{"$f":"Labels!B96","v":"Trial 01"},{"$f":"'Trial 1'!B20","v":{"v":206222.0144162289,"d":"$206,222"}},{"$f":"'Trial 1'!C20","v":{"v":206222.0144162289,"d":"$206,222"}},{"$f":"'Trial 1'!D20","v":{"v":206222.0144162289,"d":"$206,222"}},{"$f":"'Trial 1'!E20","v":{"v":206219.43958165878,"d":"$206,219"}},{"$f":"'Trial 1'!F20","v":{"v":206215.04952835353,"d":"$206,215"}},{"$f":"'Trial 1'!G20","v":{"v":206208.70185557578,"d":"$206,209"}},{"$f":"'Trial 1'!H20","v":{"v":206200.22078779686,"d":"$206,200"}},{"$f":"'Trial 1'!I20","v":{"v":206190.23151217552,"d":"$206,190"}},{"$f":"'Trial 1'!J20","v":{"v":206178.4214486204,"d":"$206,178"}},{"$f":"'Trial 1'!K20","v":{"v":206164.49331237338,"d":"$206,164"}},{"$f":"'Trial 1'!L20","v":{"v":206148.62065419916,"d":"$206,149"}},{"$f":"'Trial 1'!M20","v":{"v":206131.05884768607,"d":"$206,131"}},{"$f":"SUM('Trial 1'!B20:M20)","v":{"v":2474322.2807771266,"d":"$2,474,322"}},{"$f":"'Trial 1'!O20","v":{"v":206112.34431561307,"d":"$206,112"}},{"$f":"'Trial 1'!P20","v":{"v":206092.2615334125,"d":"$206,092"}},{"$f":"'Trial 1'!Q20","v":{"v":206070.66749214346,"d":"$206,071"}},{"$f":"'Trial 1'!R20","v":{"v":206047.22715152404,"d":"$206,047"}},{"$f":"'Trial 1'!S20","v":{"v":206022.19748982845,"d":"$206,022"}},{"$f":"'Trial 1'!T20","v":{"v":205994.88120938928,"d":"$205,995"}},{"$f":"'Trial 1'!U20","v":{"v":205966.25387316218,"d":"$205,966"}},{"$f":"'Trial 1'!V20","v":{"v":205935.53730264047,"d":"$205,936"}},{"$f":"'Trial 1'!W20","v":{"v":205903.02250892634,"d":"$205,903"}},{"$f":"'Trial 1'!X20","v":{"v":205868.58896901726,"d":"$205,869"}},{"$f":"'Trial 1'!Y20","v":{"v":205832.27859863426,"d":"$205,832"}},{"$f":"'Trial 1'!Z20","v":{"v":205794.5104391426,"d":"$205,795"}},{"$f":"SUM('Trial 1'!O20:Z20)","v":{"v":2471639.770883434,"d":"$2,471,640"}},{"$f":"'Trial 1'!AB20","v":{"v":205755.42634600148,"d":"$205,755"}},{"$f":"'Trial 1'!AC20","v":{"v":205715.60942645327,"d":"$205,716"}},{"$f":"'Trial 1'!AD20","v":{"v":205674.33429742043,"d":"$205,674"}},{"$f":"'Trial 1'!AE20","v":{"v":205631.9432436707,"d":"$205,632"}},{"$f":"'Trial 1'!AF20","v":{"v":205589.1125577368,"d":"$205,589"}},{"$f":"'Trial 1'!AG20","v":{"v":205544.94643079306,"d":"$205,545"}},{"$f":"'Trial 1'!AH20","v":{"v":205499.3401213437,"d":"$205,499"}},{"$f":"'Trial 1'!AI20","v":{"v":205452.67871110016,"d":"$205,453"}},{"$f":"'Trial 1'!AJ20","v":{"v":205404.95046922824,"d":"$205,405"}},{"$f":"'Trial 1'!AK20","v":{"v":205356.41859773276,"d":"$205,356"}},{"$f":"'Trial 1'!AL20","v":{"v":205306.77285113328,"d":"$205,307"}},{"$f":"'Trial 1'!AM20","v":{"v":205256.75209536552,"d":"$205,257"}},{"$f":"SUM('Trial 1'!AB20:AM20)","v":{"v":2466188.2851479794,"d":"$2,466,188"}},{"$f":"'Trial 1'!AO20","v":{"v":205205.92485751977,"d":"$205,206"}},{"$f":"'Trial 1'!AP20","v":{"v":205154.0857390427,"d":"$205,154"}},{"$f":"'Trial 1'!AQ20","v":{"v":205101.01066925944,"d":"$205,101"}},{"$f":"'Trial 1'!AR20","v":{"v":205046.737262393,"d":"$205,047"}},{"$f":"'Trial 1'!AS20","v":{"v":204992.34797607307,"d":"$204,992"}},{"$f":"'Trial 1'!AT20","v":{"v":204936.71967116685,"d":"$204,937"}},{"$f":"'Trial 1'!AU20","v":{"v":204880.66225527655,"d":"$204,881"}},{"$f":"'Trial 1'!AV20","v":{"v":204823.928638173,"d":"$204,824"}},{"$f":"'Trial 1'!AW20","v":{"v":204766.76911382948,"d":"$204,767"}},{"$f":"'Trial 1'!AX20","v":{"v":204708.84325330248,"d":"$204,709"}},{"$f":"'Trial 1'!AY20","v":{"v":204649.96022506687,"d":"$204,650"}},{"$f":"'Trial 1'!AZ20","v":{"v":204590.38543472346,"d":"$204,590"}},{"$f":"SUM('Trial 1'!AO20:AZ20)","v":{"v":2458857.3750958266,"d":"$2,458,857"}},{"$f":"'Trial 1'!BB20","v":{"v":204530.63460462817,"d":"$204,531"}},{"$f":"'Trial 1'!BC20","v":{"v":204470.4054362273,"d":"$204,470"}},{"$f":"'Trial 1'!BD20","v":{"v":204409.1460275742,"d":"$204,409"}},{"$f":"'Trial 1'!BE20","v":{"v":204346.84898718388,"d":"$204,347"}},{"$f":"'Trial 1'!BF20","v":{"v":204284.04975616655,"d":"$204,284"}},{"$f":"'Trial 1'!BG20","v":{"v":204220.4956194134,"d":"$204,220"}},{"$f":"'Trial 1'!BH20","v":{"v":204156.77020428888,"d":"$204,157"}},{"$f":"'Trial 1'!BI20","v":{"v":204092.65542053338,"d":"$204,093"}},{"$f":"'Trial 1'!BJ20","v":{"v":204028.14138903245,"d":"$204,028"}},{"$f":"'Trial 1'!BK20","v":{"v":203963.3314488488,"d":"$203,963"}},{"$f":"'Trial 1'!BL20","v":{"v":203897.90774343422,"d":"$203,898"}},{"$f":"'Trial 1'!BM20","v":{"v":203831.86940860256,"d":"$203,832"}},{"$f":"SUM('Trial 1'!BB20:BM20)","v":{"v":2450232.2560459333,"d":"$2,450,232"}},{"$f":"'Trial 1'!BO20","v":{"v":203764.85387888434,"d":"$203,765"}},{"$f":"'Trial 1'!BP20","v":{"v":203697.51208854435,"d":"$203,698"}},{"$f":"'Trial 1'!BQ20","v":{"v":203629.38743264155,"d":"$203,629"}},{"$f":"'Trial 1'!BR20","v":{"v":203561.0462900279,"d":"$203,561"}},{"$f":"'Trial 1'!BS20","v":{"v":203492.07140775947,"d":"$203,492"}},{"$f":"'Trial 1'!BT20","v":{"v":203423.30382318227,"d":"$203,423"}},{"$f":"'Trial 1'!BU20","v":{"v":203354.38990421908,"d":"$203,354"}},{"$f":"'Trial 1'!BV20","v":{"v":203285.12852261725,"d":"$203,285"}},{"$f":"'Trial 1'!BW20","v":{"v":203214.96684240983,"d":"$203,215"}},{"$f":"'Trial 1'!BX20","v":{"v":203144.0795646262,"d":"$203,144"}},{"$f":"'Trial 1'!BY20","v":{"v":203072.73248696324,"d":"$203,073"}},{"$f":"'Trial 1'!BZ20","v":{"v":203001.4033645084,"d":"$203,001"}},{"$f":"SUM('Trial 1'!BO20:BZ20)","v":{"v":2440640.875606384,"d":"$2,440,641"}},{"$f":"'Trial 1'!CB20","v":{"v":202929.37344517597,"d":"$202,929"}},{"$f":"'Trial 1'!CC20","v":{"v":202856.5319186017,"d":"$202,857"}},{"$f":"'Trial 1'!CD20","v":{"v":202783.78149887768,"d":"$202,784"}},{"$f":"'Trial 1'!CE20","v":{"v":202710.6595635316,"d":"$202,711"}},{"$f":"'Trial 1'!CF20","v":{"v":202636.7811706618,"d":"$202,637"}},{"$f":"'Trial 1'!CG20","v":{"v":202563.08329590867,"d":"$202,563"}},{"$f":"'Trial 1'!CH20","v":{"v":202488.75973487002,"d":"$202,489"}},{"$f":"'Trial 1'!CI20","v":{"v":202414.15931879287,"d":"$202,414"}},{"$f":"'Trial 1'!CJ20","v":{"v":202339.4580530452,"d":"$202,339"}},{"$f":"'Trial 1'!CK20","v":{"v":202264.47942954258,"d":"$202,264"}},{"$f":"'Trial 1'!CL20","v":{"v":202189.35827742566,"d":"$202,189"}},{"$f":"'Trial 1'!CM20","v":{"v":202114.0219727838,"d":"$202,114"}},{"$f":"SUM('Trial 1'!CB20:CM20)","v":{"v":2430290.4476792174,"d":"$2,430,290"}},{"$f":"'Trial 1'!CO20","v":{"v":202037.9214242435,"d":"$202,038"}},{"$f":"'Trial 1'!CP20","v":{"v":201961.9374833681,"d":"$201,962"}},{"$f":"'Trial 1'!CQ20","v":{"v":201885.7584499555,"d":"$201,886"}},{"$f":"'Trial 1'!CR20","v":{"v":201809.05302517605,"d":"$201,809"}},{"$f":"'Trial 1'!CS20","v":{"v":201732.47981495198,"d":"$201,732"}},{"$f":"'Trial 1'!CT20","v":{"v":201655.05984284685,"d":"$201,655"}},{"$f":"'Trial 1'!CU20","v":{"v":201577.43253861266,"d":"$201,577"}},{"$f":"'Trial 1'!CV20","v":{"v":201499.08012928875,"d":"$201,499"}},{"$f":"'Trial 1'!CW20","v":{"v":201420.69527800617,"d":"$201,421"}},{"$f":"'Trial 1'!CX20","v":{"v":201341.7320251573,"d":"$201,342"}},{"$f":"'Trial 1'!CY20","v":{"v":201262.7321425098,"d":"$201,263"}},{"$f":"'Trial 1'!CZ20","v":{"v":201183.08830898048,"d":"$201,183"}},{"$f":"SUM('Trial 1'!CO20:CZ20)","v":{"v":2419366.9704630976,"d":"$2,419,367"}},{"$f":"'Trial 1'!DB20","v":{"v":201103.73832801016,"d":"$201,104"}},{"$f":"'Trial 1'!DC20","v":{"v":201024.76149828508,"d":"$201,025"}},{"$f":"'Trial 1'!DD20","v":{"v":200945.12401794796,"d":"$200,945"}},{"$f":"'Trial 1'!DE20","v":{"v":200865.4092949004,"d":"$200,865"}},{"$f":"'Trial 1'!DF20","v":{"v":200785.83358648748,"d":"$200,786"}},{"$f":"'Trial 1'!DG20","v":{"v":200706.16690899257,"d":"$200,706"}},{"$f":"'Trial 1'!DH20","v":{"v":200626.69458879158,"d":"$200,627"}},{"$f":"'Trial 1'!DI20","v":{"v":200547.38585410352,"d":"$200,547"}},{"$f":"'Trial 1'!DJ20","v":{"v":200467.80855857415,"d":"$200,468"}},{"$f":"'Trial 1'!DK20","v":{"v":200388.30084443043,"d":"$200,388"}},{"$f":"'Trial 1'!DL20","v":{"v":200308.35017565588,"d":"$200,308"}},{"$f":"'Trial 1'!DM20","v":{"v":200228.49016059327,"d":"$200,228"}},{"$f":"SUM('Trial 1'!DB20:DM20)","v":{"v":2407998.0638167723,"d":"$2,407,998"}},{"$f":"'Trial 1'!DO20","v":{"v":200149.06431044103,"d":"$200,149"}},{"$f":"'Trial 1'!DP20","v":{"v":200069.11085735657,"d":"$200,069"}},{"$f":"'Trial 1'!DQ20","v":{"v":199989.14569505714,"d":"$199,989"}},{"$f":"'Trial 1'!DR20","v":{"v":199909.60140501955,"d":"$199,910"}},{"$f":"'Trial 1'!DS20","v":{"v":199829.78294950174,"d":"$199,830"}},{"$f":"'Trial 1'!DT20","v":{"v":199750.02366873785,"d":"$199,750"}},{"$f":"'Trial 1'!DU20","v":{"v":199670.23683931454,"d":"$199,670"}},{"$f":"'Trial 1'!DV20","v":{"v":199590.2471192204,"d":"$199,590"}},{"$f":"'Trial 1'!DW20","v":{"v":199510.03404099098,"d":"$199,510"}},{"$f":"'Trial 1'!DX20","v":{"v":199429.8841119382,"d":"$199,430"}},{"$f":"'Trial 1'!DY20","v":{"v":199349.23802104764,"d":"$199,349"}},{"$f":"'Trial 1'!DZ20","v":{"v":199268.2358472104,"d":"$199,268"}},{"$f":"SUM('Trial 1'!DO20:DZ20)","v":{"v":2396514.6048658364,"d":"$2,396,515"}},{"$f":"'Trial 1'!EB20","v":{"v":199187.5491316147,"d":"$199,188"}},{"$f":"'Trial 1'!EC20","v":{"v":199107.04910338807,"d":"$199,107"}},{"$f":"'Trial 1'!ED20","v":{"v":199026.2082794167,"d":"$199,026"}},{"$f":"'Trial 1'!EE20","v":{"v":198945.44252312617,"d":"$198,945"}},{"$f":"'Trial 1'!EF20","v":{"v":198864.57850034637,"d":"$198,865"}},{"$f":"'Trial 1'!EG20","v":{"v":198783.62544508977,"d":"$198,784"}},{"$f":"'Trial 1'!EH20","v":{"v":198702.09664115458,"d":"$198,702"}},{"$f":"'Trial 1'!EI20","v":{"v":198620.45564286414,"d":"$198,620"}},{"$f":"'Trial 1'!EJ20","v":{"v":198538.62656962592,"d":"$198,539"}},{"$f":"'Trial 1'!EK20","v":{"v":198456.68498848446,"d":"$198,457"}},{"$f":"'Trial 1'!EL20","v":{"v":198374.35711065066,"d":"$198,374"}},{"$f":"'Trial 1'!EM20","v":{"v":198292.08166775235,"d":"$198,292"}},{"$f":"SUM('Trial 1'!EB20:EM20)","v":{"v":2384898.7556035137,"d":"$2,384,899"}}]
[{"$f":"Labels!B97","v":"Trial 02"},{"$f":"'Trial 2'!B20","v":{"v":206222.0144162289,"d":"$206,222"}},{"$f":"'Trial 2'!C20","v":{"v":206222.0144162289,"d":"$206,222"}},{"$f":"'Trial 2'!D20","v":{"v":206222.0144162289,"d":"$206,222"}},{"$f":"'Trial 2'!E20","v":{"v":206219.5644071577,"d":"$206,220"}},{"$f":"'Trial 2'!F20","v":{"v":206214.4049407294,"d":"$206,214"}},{"$f":"'Trial 2'!G20","v":{"v":206207.17792426373,"d":"$206,207"}},{"$f":"'Trial 2'!H20","v":{"v":206198.53980498828,"d":"$206,199"}},{"$f":"'Trial 2'!I20","v":{"v":206188.02935484136,"d":"$206,188"}},{"$f":"'Trial 2'!J20","v":{"v":206175.29789882284,"d":"$206,175"}},{"$f":"'Trial 2'!K20","v":{"v":206160.6173568072,"d":"$206,161"}},{"$f":"'Trial 2'!L20","v":{"v":206143.62439832845,"d":"$206,144"}},{"$f":"'Trial 2'!M20","v":{"v":206124.96286092812,"d":"$206,125"}},{"$f":"SUM('Trial 2'!B20:M20)","v":{"v":2474298.2621955536,"d":"$2,474,298"}},{"$f":"'Trial 2'!O20","v":{"v":206104.58208326227,"d":"$206,105"}},{"$f":"'Trial 2'!P20","v":{"v":206082.0510794889,"d":"$206,082"}},{"$f":"'Trial 2'!Q20","v":{"v":206058.1929450845,"d":"$206,058"}},{"$f":"'Trial 2'!R20","v":{"v":206032.4735300429,"d":"$206,032"}},{"$f":"'Trial 2'!S20","v":{"v":206005.4963934764,"d":"$206,005"}},{"$f":"'Trial 2'!T20","v":{"v":205977.34086734115,"d":"$205,977"}},{"$f":"'Trial 2'!U20","v":{"v":205947.57676090553,"d":"$205,948"}},{"$f":"'Trial 2'!V20","v":{"v":205916.25839705137,"d":"$205,916"}},{"$f":"'Trial 2'!W20","v":{"v":205883.42640977327,"d":"$205,883"}},{"$f":"'Trial 2'!X20","v":{"v":205848.76170671082,"d":"$205,849"}},{"$f":"'Trial 2'!Y20","v":{"v":205812.46229764054,"d":"$205,812"}},{"$f":"'Trial 2'!Z20","v":{"v":205774.67436980642,"d":"$205,775"}},{"$f":"SUM('Trial 2'!O20:Z20)","v":{"v":2471443.2968405844,"d":"$2,471,443"}},{"$f":"'Trial 2'!AB20","v":{"v":205735.36126168483,"d":"$205,735"}},{"$f":"'Trial 2'!AC20","v":{"v":205694.1446305057,"d":"$205,694"}},{"$f":"'Trial 2'!AD20","v":{"v":205651.95764251964,"d":"$205,652"}},{"$f":"'Trial 2'!AE20","v":{"v":205608.62955773578,"d":"$205,609"}},{"$f":"'Trial 2'!AF20","v":{"v":205564.226186564,"d":"$205,564"}},{"$f":"'Trial 2'!AG20","v":{"v":205518.74547533723,"d":"$205,519"}},{"$f":"'Trial 2'!AH20","v":{"v":205472.89381000554,"d":"$205,473"}},{"$f":"'Trial 2'!AI20","v":{"v":205426.00686880611,"d":"$205,426"}},{"$f":"'Trial 2'!AJ20","v":{"v":205377.9472250984,"d":"$205,378"}},{"$f":"'Trial 2'!AK20","v":{"v":205329.10204989518,"d":"$205,329"}},{"$f":"'Trial 2'!AL20","v":{"v":205278.76838260805,"d":"$205,279"}},{"$f":"'Trial 2'!AM20","v":{"v":205227.55980636706,"d":"$205,228"}},{"$f":"SUM('Trial 2'!AB20:AM20)","v":{"v":2465885.3428971274,"d":"$2,465,885"}},{"$f":"'Trial 2'!AO20","v":{"v":205175.7219784183,"d":"$205,176"}},{"$f":"'Trial 2'!AP20","v":{"v":205123.55264456247,"d":"$205,124"}},{"$f":"'Trial 2'!AQ20","v":{"v":205070.31449574232,"d":"$205,070"}},{"$f":"'Trial 2'!AR20","v":{"v":205016.16757546528,"d":"$205,016"}},{"$f":"'Trial 2'!AS20","v":{"v":204961.41026462577,"d":"$204,961"}},{"$f":"'Trial 2'!AT20","v":{"v":204906.0302184909,"d":"$204,906"}},{"$f":"'Trial 2'!AU20","v":{"v":204849.68909305183,"d":"$204,850"}},{"$f":"'Trial 2'!AV20","v":{"v":204792.7751037625,"d":"$204,793"}},{"$f":"'Trial 2'!AW20","v":{"v":204735.29435352838,"d":"$204,735"}},{"$f":"'Trial 2'!AX20","v":{"v":204677.1636551106,"d":"$204,677"}},{"$f":"'Trial 2'!AY20","v":{"v":204618.4427653602,"d":"$204,618"}},{"$f":"'Trial 2'!AZ20","v":{"v":204558.40388017418,"d":"$204,558"}},{"$f":"SUM('Trial 2'!AO20:AZ20)","v":{"v":2458484.9660282927,"d":"$2,458,485"}},{"$f":"'Trial 2'!BB20","v":{"v":204497.60843174355,"d":"$204,498"}},{"$f":"'Trial 2'!BC20","v":{"v":204436.6160870406,"d":"$204,437"}},{"$f":"'Trial 2'!BD20","v":{"v":204374.92704541553,"d":"$204,375"}},{"$f":"'Trial 2'!BE20","v":{"v":204312.3708197994,"d":"$204,312"}},{"$f":"'Trial 2'!BF20","v":{"v":204249.2744662894,"d":"$204,249"}},{"$f":"'Trial 2'!BG20","v":{"v":204186.0547888179,"d":"$204,186"}},{"$f":"'Trial 2'!BH20","v":{"v":204122.2203703051,"d":"$204,122"}},{"$f":"'Trial 2'!BI20","v":{"v":204058.1703321362,"d":"$204,058"}},{"$f":"'Trial 2'!BJ20","v":{"v":203993.20647417687,"d":"$203,993"}},{"$f":"'Trial 2'!BK20","v":{"v":203927.4886984397,"d":"$203,927"}},{"$f":"'Trial 2'!BL20","v":{"v":203860.7266735049,"d":"$203,861"}},{"$f":"'Trial 2'!BM20","v":{"v":203793.80750498446,"d":"$203,794"}},{"$f":"SUM('Trial 2'!BB20:BM20)","v":{"v":2449812.4716926534,"d":"$2,449,812"}},{"$f":"'Trial 2'!BO20","v":{"v":203726.256323123,"d":"$203,726"}},{"$f":"'Trial 2'!BP20","v":{"v":203658.35308013973,"d":"$203,658"}},{"$f":"'Trial 2'!BQ20","v":{"v":203589.41846944302,"d":"$203,589"}},{"$f":"'Trial 2'!BR20","v":{"v":203519.39764478532,"d":"$203,519"}},{"$f":"'Trial 2'!BS20","v":{"v":203448.58655505578,"d":"$203,449"}},{"$f":"'Trial 2'!BT20","v":{"v":203377.6296066635,"d":"$203,378"}},{"$f":"'Trial 2'!BU20","v":{"v":203306.71941716413,"d":"$203,307"}},{"$f":"'Trial 2'!BV20","v":{"v":203234.91158626202,"d":"$203,235"}},{"$f":"'Trial 2'!BW20","v":{"v":203163.29440839027,"d":"$203,163"}},{"$f":"'Trial 2'!BX20","v":{"v":203091.07512322708,"d":"$203,091"}},{"$f":"'Trial 2'!BY20","v":{"v":203018.75787776255,"d":"$203,019"}},{"$f":"'Trial 2'!BZ20","v":{"v":202946.16096917423,"d":"$202,946"}},{"$f":"SUM('Trial 2'!BO20:BZ20)","v":{"v":2440080.5610611904,"d":"$2,440,081"}},{"$f":"'Trial 2'!CB20","v":{"v":202872.63751710716,"d":"$202,873"}},{"$f":"'Trial 2'!CC20","v":{"v":202799.47536947907,"d":"$202,799"}},{"$f":"'Trial 2'!CD20","v":{"v":202726.1132906887,"d":"$202,726"}},{"$f":"'Trial 2'!CE20","v":{"v":202652.71290736808,"d":"$202,653"}},{"$f":"'Trial 2'!CF20","v":{"v":202578.76526927328,"d":"$202,579"}},{"$f":"'Trial 2'!CG20","v":{"v":202504.46931271045,"d":"$202,504"}},{"$f":"'Trial 2'!CH20","v":{"v":202430.31542535956,"d":"$202,430"}},{"$f":"'Trial 2'!CI20","v":{"v":202356.071603881,"d":"$202,356"}},{"$f":"'Trial 2'!CJ20","v":{"v":202281.9117831421,"d":"$202,282"}},{"$f":"'Trial 2'!CK20","v":{"v":202207.5055492454,"d":"$202,208"}},{"$f":"'Trial 2'!CL20","v":{"v":202133.28808678058,"d":"$202,133"}},{"$f":"'Trial 2'!CM20","v":{"v":202058.3720950743,"d":"$202,058"}},{"$f":"SUM('Trial 2'!CB20:CM20)","v":{"v":2429601.6382101094,"d":"$2,429,602"}},{"$f":"'Trial 2'!CO20","v":{"v":201983.15882943932,"d":"$201,983"}},{"$f":"'Trial 2'!CP20","v":{"v":201907.16517993805,"d":"$201,907"}},{"$f":"'Trial 2'!CQ20","v":{"v":201830.8788382527,"d":"$201,831"}},{"$f":"'Trial 2'!CR20","v":{"v":201754.13460086976,"d":"$201,754"}},{"$f":"'Trial 2'!CS20","v":{"v":201677.20199311114,"d":"$201,677"}},{"$f":"'Trial 2'!CT20","v":{"v":201600.23824736013,"d":"$201,600"}},{"$f":"'Trial 2'!CU20","v":{"v":201522.93313223208,"d":"$201,523"}},{"$f":"'Trial 2'!CV20","v":{"v":201445.66903169546,"d":"$201,446"}},{"$f":"'Trial 2'!CW20","v":{"v":201367.84410750496,"d":"$201,368"}},{"$f":"'Trial 2'!CX20","v":{"v":201290.27702518002,"d":"$201,290"}},{"$f":"'Trial 2'!CY20","v":{"v":201212.45452453324,"d":"$201,212"}},{"$f":"'Trial 2'!CZ20","v":{"v":201134.8865525145,"d":"$201,135"}},{"$f":"SUM('Trial 2'!CO20:CZ20)","v":{"v":2418726.8420626316,"d":"$2,418,727"}},{"$f":"'Trial 2'!DB20","v":{"v":201056.47859627262,"d":"$201,056"}},{"$f":"'Trial 2'!DC20","v":{"v":200978.2616869003,"d":"$200,978"}},{"$f":"'Trial 2'!DD20","v":{"v":200899.79690691116,"d":"$200,900"}},{"$f":"'Trial 2'!DE20","v":{"v":200821.05477971,"d":"$200,821"}},{"$f":"'Trial 2'!DF20","v":{"v":200742.383447085,"d":"$200,742"}},{"$f":"'Trial 2'!DG20","v":{"v":200663.41488843752,"d":"$200,663"}},{"$f":"'Trial 2'!DH20","v":{"v":200584.54939367957,"d":"$200,585"}},{"$f":"'Trial 2'!DI20","v":{"v":200505.90260067,"d":"$200,506"}},{"$f":"'Trial 2'!DJ20","v":{"v":200427.11355930407,"d":"$200,427"}},{"$f":"'Trial 2'!DK20","v":{"v":200348.25287893252,"d":"$200,348"}},{"$f":"'Trial 2'!DL20","v":{"v":200269.37178837936,"d":"$200,269"}},{"$f":"'Trial 2'!DM20","v":{"v":200190.88720853886,"d":"$200,191"}},{"$f":"SUM('Trial 2'!DB20:DM20)","v":{"v":2407487.467734821,"d":"$2,407,487"}},{"$f":"'Trial 2'!DO20","v":{"v":200111.90771754118,"d":"$200,112"}},{"$f":"'Trial 2'!DP20","v":{"v":200032.14863841937,"d":"$200,032"}},{"$f":"'Trial 2'!DQ20","v":{"v":199951.86993002516,"d":"$199,952"}},{"$f":"'Trial 2'!DR20","v":{"v":199871.85374152937,"d":"$199,872"}},{"$f":"'Trial 2'!DS20","v":{"v":199791.22518722658,"d":"$199,791"}},{"$f":"'Trial 2'!DT20","v":{"v":199710.56807304095,"d":"$199,711"}},{"$f":"'Trial 2'!DU20","v":{"v":199629.72955355138,"d":"$199,630"}},{"$f":"'Trial 2'!DV20","v":{"v":199548.50562309407,"d":"$199,549"}},{"$f":"'Trial 2'!DW20","v":{"v":199467.33889355845,"d":"$199,467"}},{"$f":"'Trial 2'!DX20","v":{"v":199386.4138528319,"d":"$199,386"}},{"$f":"'Trial 2'!DY20","v":{"v":199305.6635495414,"d":"$199,306"}},{"$f":"'Trial 2'!DZ20","v":{"v":199224.43446064982,"d":"$199,224"}},{"$f":"SUM('Trial 2'!DO20:DZ20)","v":{"v":2396031.6592210094,"d":"$2,396,032"}},{"$f":"'Trial 2'!EB20","v":{"v":199143.44825272143,"d":"$199,143"}},{"$f":"'Trial 2'!EC20","v":{"v":199062.38199085346,"d":"$199,062"}},{"$f":"'Trial 2'!ED20","v":{"v":198980.83389584604,"d":"$198,981"}},{"$f":"'Trial 2'!EE20","v":{"v":198899.59805219586,"d":"$198,900"}},{"$f":"'Trial 2'!EF20","v":{"v":198818.50221544213,"d":"$198,819"}},{"$f":"'Trial 2'!EG20","v":{"v":198736.74799995415,"d":"$198,737"}},{"$f":"'Trial 2'!EH20","v":{"v":198654.91923738003,"d":"$198,655"}},{"$f":"'Trial 2'!EI20","v":{"v":198573.60515006245,"d":"$198,574"}},{"$f":"'Trial 2'!EJ20","v":{"v":198491.8643025679,"d":"$198,492"}},{"$f":"'Trial 2'!EK20","v":{"v":198409.82464173422,"d":"$198,410"}},{"$f":"'Trial 2'!EL20","v":{"v":198327.37448988424,"d":"$198,327"}},{"$f":"'Trial 2'!EM20","v":{"v":198245.06829909523,"d":"$198,245"}},{"$f":"SUM('Trial 2'!EB20:EM20)","v":{"v":2384344.168527737,"d":"$2,384,344"}}]
[{"$f":"Labels!B98","v":"Trial 03"},{"$f":"'Trial 3'!B20","v":{"v":206222.0144162289,"d":"$206,222"}},{"$f":"'Trial 3'!C20","v":{"v":206222.0144162289,"d":"$206,222"}},{"$f":"'Trial 3'!D20","v":{"v":206222.0144162289,"d":"$206,222"}},{"$f":"'Trial 3'!E20","v":{"v":206219.0817702016,"d":"$206,219"}},{"$f":"'Trial 3'!F20","v":{"v":206214.0196901553,"d":"$206,214"}},{"$f":"'Trial 3'!G20","v":{"v":206206.43763725573,"d":"$206,206"}},{"$f":"'Trial 3'!H20","v":{"v":206197.26090771888,"d":"$206,197"}},{"$f":"'Trial 3'!I20","v":{"v":206186.19032834997,"d":"$206,186"}},{"$f":"'Trial 3'!J20","v":{"v":206173.58265243212,"d":"$206,174"}},{"$f":"'Trial 3'!K20","v":{"v":206158.86510397936,"d":"$206,159"}},{"$f":"'Trial 3'!L20","v":{"v":206142.55903070912,"d":"$206,143"}},{"$f":"'Trial 3'!M20","v":{"v":206123.9814887646,"d":"$206,124"}},{"$f":"SUM('Trial 3'!B20:M20)","v":{"v":2474288.0218582535,"d":"$2,474,288"}},{"$f":"'Trial 3'!O20","v":{"v":206103.70914189366,"d":"$206,104"}},{"$f":"'Trial 3'!P20","v":{"v":206082.03760789332,"d":"$206,082"}},{"$f":"'Trial 3'!Q20","v":{"v":206058.36937373466,"d":"$206,058"}},{"$f":"'Trial 3'!R20","v":{"v":206033.15350637087,"d":"$206,033"}},{"$f":"'Trial 3'!S20","v":{"v":206006.16535041228,"d":"$206,006"}},{"$f":"'Trial 3'!T20","v":{"v":205978.0817491913,"d":"$205,978"}},{"$f":"'Trial 3'!U20","v":{"v":205948.73841885044,"d":"$205,949"}},{"$f":"'Trial 3'!V20","v":{"v":205917.8970458142,"d":"$205,918"}},{"$f":"'Trial 3'!W20","v":{"v":205885.49001556126,"d":"$205,885"}},{"$f":"'Trial 3'!X20","v":{"v":205850.9559086225,"d":"$205,851"}},{"$f":"'Trial 3'!Y20","v":{"v":205814.75650785535,"d":"$205,815"}},{"$f":"'Trial 3'!Z20","v":{"v":205777.3917484677,"d":"$205,777"}},{"$f":"SUM('Trial 3'!O20:Z20)","v":{"v":2471456.7463746676,"d":"$2,471,457"}},{"$f":"'Trial 3'!AB20","v":{"v":205738.79821098933,"d":"$205,739"}},{"$f":"'Trial 3'!AC20","v":{"v":205698.79469912624,"d":"$205,699"}},{"$f":"'Trial 3'!AD20","v":{"v":205656.9307807564,"d":"$205,657"}},{"$f":"'Trial 3'!AE20","v":{"v":205614.37075820263,"d":"$205,614"}},{"$f":"'Trial 3'!AF20","v":{"v":205570.43825188393,"d":"$205,570"}},{"$f":"'Trial 3'!AG20","v":{"v":205525.0136028931,"d":"$205,525"}},{"$f":"'Trial 3'!AH20","v":{"v":205478.83893637577,"d":"$205,479"}},{"$f":"'Trial 3'!AI20","v":{"v":205430.9650624215,"d":"$205,431"}},{"$f":"'Trial 3'!AJ20","v":{"v":205382.3745593536,"d":"$205,382"}},{"$f":"'Trial 3'!AK20","v":{"v":205332.8857919966,"d":"$205,333"}},{"$f":"'Trial 3'!AL20","v":{"v":205282.16318631967,"d":"$205,282"}},{"$f":"'Trial 3'!AM20","v":{"v":205230.74493996613,"d":"$205,231"}},{"$f":"SUM('Trial 3'!AB20:AM20)","v":{"v":2465942.318780285,"d":"$2,465,942"}},{"$f":"'Trial 3'!AO20","v":{"v":205178.50078422113,"d":"$205,179"}},{"$f":"'Trial 3'!AP20","v":{"v":205125.2360705832,"d":"$205,125"}},{"$f":"'Trial 3'!AQ20","v":{"v":205070.94553353303,"d":"$205,071"}},{"$f":"'Trial 3'!AR20","v":{"v":205016.17253285545,"d":"$205,016"}},{"$f":"'Trial 3'!AS20","v":{"v":204961.0086966417,"d":"$204,961"}},{"$f":"'Trial 3'!AT20","v":{"v":204904.5208885369,"d":"$204,905"}},{"$f":"'Trial 3'!AU20","v":{"v":204847.17378058087,"d":"$204,847"}},{"$f":"'Trial 3'!AV20","v":{"v":204789.3936725913,"d":"$204,789"}},{"$f":"'Trial 3'!AW20","v":{"v":204730.71194334383,"d":"$204,731"}},{"$f":"'Trial 3'!AX20","v":{"v":204670.99098125682,"d":"$204,671"}},{"$f":"'Trial 3'!AY20","v":{"v":204610.73978985776,"d":"$204,611"}},{"$f":"'Trial 3'!AZ20","v":{"v":204549.47195732375,"d":"$204,549"}},{"$f":"SUM('Trial 3'!AO20:AZ20)","v":{"v":2458454.866631326,"d":"$2,458,455"}},{"$f":"'Trial 3'!BB20","v":{"v":204487.99540611194,"d":"$204,488"}},{"$f":"'Trial 3'!BC20","v":{"v":204425.53880033523,"d":"$204,426"}},{"$f":"'Trial 3'!BD20","v":{"v":204361.94661167442,"d":"$204,362"}},{"$f":"'Trial 3'!BE20","v":{"v":204297.66572344978,"d":"$204,298"}},{"$f":"'Trial 3'!BF20","v":{"v":204232.2941030649,"d":"$204,232"}},{"$f":"'Trial 3'!BG20","v":{"v":204166.719707599,"d":"$204,167"}},{"$f":"'Trial 3'!BH20","v":{"v":204099.9814805199,"d":"$204,100"}},{"$f":"'Trial 3'!BI20","v":{"v":204032.90500338507,"d":"$204,033"}},{"$f":"'Trial 3'!BJ20","v":{"v":203964.699788095,"d":"$203,965"}},{"$f":"'Trial 3'!BK20","v":{"v":203895.7122812697,"d":"$203,896"}},{"$f":"'Trial 3'!BL20","v":{"v":203826.39984237056,"d":"$203,826"}},{"$f":"'Trial 3'!BM20","v":{"v":203756.69758840965,"d":"$203,757"}},{"$f":"SUM('Trial 3'!BB20:BM20)","v":{"v":2449548.5563362855,"d":"$2,449,549"}},{"$f":"'Trial 3'!BO20","v":{"v":203686.46594457154,"d":"$203,686"}},{"$f":"'Trial 3'!BP20","v":{"v":203616.13088860075,"d":"$203,616"}},{"$f":"'Trial 3'!BQ20","v":{"v":203545.38623896797,"d":"$203,545"}},{"$f":"'Trial 3'!BR20","v":{"v":203474.25760191775,"d":"$203,474"}},{"$f":"'Trial 3'!BS20","v":{"v":203402.93218692756,"d":"$203,403"}},{"$f":"'Trial 3'!BT20","v":{"v":203330.91298487267,"d":"$203,331"}},{"$f":"'Trial 3'!BU20","v":{"v":203258.60669031992,"d":"$203,259"}},{"$f":"'Trial 3'!BV20","v":{"v":203186.2567158989,"d":"$203,186"}},{"$f":"'Trial 3'!BW20","v":{"v":203113.47406715117,"d":"$203,113"}},{"$f":"'Trial 3'!BX20","v":{"v":203040.21447283463,"d":"$203,040"}},{"$f":"'Trial 3'!BY20","v":{"v":202966.35330687437,"d":"$202,966"}},{"$f":"'Trial 3'!BZ20","v":{"v":202892.38696268937,"d":"$202,892"}},{"$f":"SUM('Trial 3'!BO20:BZ20)","v":{"v":2439513.3780616266,"d":"$2,439,513"}},{"$f":"'Trial 3'!CB20","v":{"v":202817.72577449854,"d":"$202,818"}},{"$f":"'Trial 3'!CC20","v":{"v":202743.27671909495,"d":"$202,743"}},{"$f":"'Trial 3'!CD20","v":{"v":202668.44067442766,"d":"$202,668"}},{"$f":"'Trial 3'!CE20","v":{"v":202593.5505411761,"d":"$202,594"}},{"$f":"'Trial 3'!CF20","v":{"v":202518.33263252626,"d":"$202,518"}},{"$f":"'Trial 3'!CG20","v":{"v":202442.91509069712,"d":"$202,443"}},{"$f":"'Trial 3'!CH20","v":{"v":202367.3195005204,"d":"$202,367"}},{"$f":"'Trial 3'!CI20","v":{"v":202291.51181059793,"d":"$202,292"}},{"$f":"'Trial 3'!CJ20","v":{"v":202215.77894023352,"d":"$202,216"}},{"$f":"'Trial 3'!CK20","v":{"v":202140.1658711,"d":"$202,140"}},{"$f":"'Trial 3'!CL20","v":{"v":202064.80210096913,"d":"$202,065"}},{"$f":"'Trial 3'!CM20","v":{"v":201989.1459774765,"d":"$201,989"}},{"$f":"SUM('Trial 3'!CB20:CM20)","v":{"v":2428852.9656333183,"d":"$2,428,853"}},{"$f":"'Trial 3'!CO20","v":{"v":201913.49573796068,"d":"$201,913"}},{"$f":"'Trial 3'!CP20","v":{"v":201837.9978066031,"d":"$201,838"}},{"$f":"'Trial 3'!CQ20","v":{"v":201762.81204632847,"d":"$201,763"}},{"$f":"'Trial 3'!CR20","v":{"v":201687.00514168126,"d":"$201,687"}},{"$f":"'Trial 3'!CS20","v":{"v":201611.16381252938,"d":"$201,611"}},{"$f":"'Trial 3'!CT20","v":{"v":201534.9649538251,"d":"$201,535"}},{"$f":"'Trial 3'!CU20","v":{"v":201458.6795591029,"d":"$201,459"}},{"$f":"'Trial 3'!CV20","v":{"v":201382.14707542406,"d":"$201,382"}},{"$f":"'Trial 3'!CW20","v":{"v":201305.50363303776,"d":"$201,306"}},{"$f":"'Trial 3'!CX20","v":{"v":201228.89169756023,"d":"$201,229"}},{"$f":"'Trial 3'!CY20","v":{"v":201152.13046275906,"d":"$201,152"}},{"$f":"'Trial 3'!CZ20","v":{"v":201074.8585285612,"d":"$201,075"}},{"$f":"SUM('Trial 3'!CO20:CZ20)","v":{"v":2417949.6504553733,"d":"$2,417,950"}},{"$f":"'Trial 3'!DB20","v":{"v":200997.8924162383,"d":"$200,998"}},{"$f":"'Trial 3'!DC20","v":{"v":200920.5009140342,"d":"$200,921"}},{"$f":"'Trial 3'!DD20","v":{"v":200843.2675806793,"d":"$200,843"}},{"$f":"'Trial 3'!DE20","v":{"v":200765.48557751134,"d":"$200,765"}},{"$f":"'Trial 3'!DF20","v":{"v":200686.91615881733,"d":"$200,687"}},{"$f":"'Trial 3'!DG20","v":{"v":200608.16489287754,"d":"$200,608"}},{"$f":"'Trial 3'!DH20","v":{"v":200529.42607575803,"d":"$200,529"}},{"$f":"'Trial 3'!DI20","v":{"v":200450.62103230425,"d":"$200,451"}},{"$f":"'Trial 3'!DJ20","v":{"v":200371.8875157202,"d":"$200,372"}},{"$f":"'Trial 3'!DK20","v":{"v":200293.16477031074,"d":"$200,293"}},{"$f":"'Trial 3'!DL20","v":{"v":200214.33785858285,"d":"$200,214"}},{"$f":"'Trial 3'!DM20","v":{"v":200135.27043680125,"d":"$200,135"}},{"$f":"SUM('Trial 3'!DB20:DM20)","v":{"v":2406816.935229635,"d":"$2,406,817"}},{"$f":"'Trial 3'!DO20","v":{"v":200056.21898907694,"d":"$200,056"}},{"$f":"'Trial 3'!DP20","v":{"v":199977.29127574223,"d":"$199,977"}},{"$f":"'Trial 3'!DQ20","v":{"v":199898.36318733564,"d":"$199,898"}},{"$f":"'Trial 3'!DR20","v":{"v":199819.50829325186,"d":"$199,820"}},{"$f":"'Trial 3'!DS20","v":{"v":199740.76350495408,"d":"$199,741"}},{"$f":"'Trial 3'!DT20","v":{"v":199662.57661907512,"d":"$199,663"}},{"$f":"'Trial 3'!DU20","v":{"v":199583.67918636705,"d":"$199,584"}},{"$f":"'Trial 3'!DV20","v":{"v":199504.4917623631,"d":"$199,504"}},{"$f":"'Trial 3'!DW20","v":{"v":199425.49249118802,"d":"$199,425"}},{"$f":"'Trial 3'!DX20","v":{"v":199346.3402468786,"d":"$199,346"}},{"$f":"'Trial 3'!DY20","v":{"v":199267.38400634972,"d":"$199,267"}},{"$f":"'Trial 3'!DZ20","v":{"v":199188.76389908072,"d":"$199,189"}},{"$f":"SUM('Trial 3'!DO20:DZ20)","v":{"v":2395470.8734616633,"d":"$2,395,471"}},{"$f":"'Trial 3'!EB20","v":{"v":199109.96933332042,"d":"$199,110"}},{"$f":"'Trial 3'!EC20","v":{"v":199030.89104001774,"d":"$199,031"}},{"$f":"'Trial 3'!ED20","v":{"v":198951.34490504957,"d":"$198,951"}},{"$f":"'Trial 3'!EE20","v":{"v":198871.71333332852,"d":"$198,872"}},{"$f":"'Trial 3'!EF20","v":{"v":198791.8621663862,"d":"$198,792"}},{"$f":"'Trial 3'!EG20","v":{"v":198712.0600995419,"d":"$198,712"}},{"$f":"'Trial 3'!EH20","v":{"v":198632.30683486292,"d":"$198,632"}},{"$f":"'Trial 3'!EI20","v":{"v":198552.45090698102,"d":"$198,552"}},{"$f":"'Trial 3'!EJ20","v":{"v":198472.50009881615,"d":"$198,473"}},{"$f":"'Trial 3'!EK20","v":{"v":198392.79343557745,"d":"$198,393"}},{"$f":"'Trial 3'!EL20","v":{"v":198312.56506561418,"d":"$198,313"}},{"$f":"'Trial 3'!EM20","v":{"v":198231.6968222534,"d":"$198,232"}},{"$f":"SUM('Trial 3'!EB20:EM20)","v":{"v":2384062.15404175,"d":"$2,384,062"}}]
[{"$f":"Labels!B99","v":"Trial 04"},{"$f":"'Trial 4'!B20","v":{"v":206222.0144162289,"d":"$206,222"}},{"$f":"'Trial 4'!C20","v":{"v":206222.0144162289,"d":"$206,222"}},{"$f":"'Trial 4'!D20","v":{"v":206222.0144162289,"d":"$206,222"}},{"$f":"'Trial 4'!E20","v":{"v":206219.5419633231,"d":"$206,220"}},{"$f":"'Trial 4'!F20","v":{"v":206214.58115216755,"d":"$206,215"}},{"$f":"'Trial 4'!G20","v":{"v":206207.1876400476,"d":"$206,207"}},{"$f":"'Trial 4'!H20","v":{"v":206197.89740687443,"d":"$206,198"}},{"$f":"'Trial 4'!I20","v":{"v":206186.98221464115,"d":"$206,187"}},{"$f":"'Trial 4'!J20","v":{"v":206174.68435333614,"d":"$206,175"}},{"$f":"'Trial 4'!K20","v":{"v":206159.91305393714,"d":"$206,160"}},{"$f":"'Trial 4'!L20","v":{"v":206142.76091719116,"d":"$206,143"}},{"$f":"'Trial 4'!M20","v":{"v":206123.67298792512,"d":"$206,124"}},{"$f":"SUM('Trial 4'!B20:M20)","v":{"v":2474293.26493813,"d":"$2,474,293"}},{"$f":"'Trial 4'!O20","v":{"v":206102.70727635644,"d":"$206,103"}},{"$f":"'Trial 4'!P20","v":{"v":206080.01733277398,"d":"$206,080"}},{"$f":"'Trial 4'!Q20","v":{"v":206055.10083697434,"d":"$206,055"}},{"$f":"'Trial 4'!R20","v":{"v":206028.5726037836,"d":"$206,029"}},{"$f":"'Trial 4'!S20","v":{"v":206000.61862616718,"d":"$206,001"}},{"$f":"'Trial 4'!T20","v":{"v":205971.61333746265,"d":"$205,972"}},{"$f":"'Trial 4'!U20","v":{"v":205941.11218088737,"d":"$205,941"}},{"$f":"'Trial 4'!V20","v":{"v":205908.49830579583,"d":"$205,908"}},{"$f":"'Trial 4'!W20","v":{"v":205874.2885927694,"d":"$205,874"}},{"$f":"'Trial 4'!X20","v":{"v":205838.74601218922,"d":"$205,839"}},{"$f":"'Trial 4'!Y20","v":{"v":205801.82650976873,"d":"$205,802"}},{"$f":"'Trial 4'!Z20","v":{"v":205764.30641510803,"d":"$205,764"}},{"$f":"SUM('Trial 4'!O20:Z20)","v":{"v":2471367.4080300364,"d":"$2,471,367"}},{"$f":"'Trial 4'!AB20","v":{"v":205725.43940140505,"d":"$205,725"}},{"$f":"'Trial 4'!AC20","v":{"v":205684.7468485873,"d":"$205,685"}},{"$f":"'Trial 4'!AD20","v":{"v":205642.52230764876,"d":"$205,643"}},{"$f":"'Trial 4'!AE20","v":{"v":205598.8954171775,"d":"$205,599"}},{"$f":"'Trial 4'!AF20","v":{"v":205554.25522378742,"d":"$205,554"}},{"$f":"'Trial 4'!AG20","v":{"v":205508.37774313404,"d":"$205,508"}},{"$f":"'Trial 4'!AH20","v":{"v":205460.9604956029,"d":"$205,461"}},{"$f":"'Trial 4'!AI20","v":{"v":205412.3168171276,"d":"$205,412"}},{"$f":"'Trial 4'!AJ20","v":{"v":205363.2054275117,"d":"$205,363"}},{"$f":"'Trial 4'!AK20","v":{"v":205313.12485853457,"d":"$205,313"}},{"$f":"'Trial 4'!AL20","v":{"v":205262.09655744283,"d":"$205,262"}},{"$f":"'Trial 4'!AM20","v":{"v":205209.94122140427,"d":"$205,210"}},{"$f":"SUM('Trial 4'!AB20:AM20)","v":{"v":2465735.8823193638,"d":"$2,465,736"}},{"$f":"'Trial 4'!AO20","v":{"v":205157.33639246182,"d":"$205,157"}},{"$f":"'Trial 4'!AP20","v":{"v":205103.7236920795,"d":"$205,104"}},{"$f":"'Trial 4'!AQ20","v":{"v":205048.60515723235,"d":"$205,049"}},{"$f":"'Trial 4'!AR20","v":{"v":204992.68437394945,"d":"$204,993"}},{"$f":"'Trial 4'!AS20","v":{"v":204935.95016955162,"d":"$204,936"}},{"$f":"'Trial 4'!AT20","v":{"v":204878.34753889547,"d":"$204,878"}},{"$f":"'Trial 4'!AU20","v":{"v":204819.6172710763,"d":"$204,820"}},{"$f":"'Trial 4'!AV20","v":{"v":204760.31509068914,"d":"$204,760"}},{"$f":"'Trial 4'!AW20","v":{"v":204700.67696876358,"d":"$204,701"}},{"$f":"'Trial 4'!AX20","v":{"v":204640.50805671487,"d":"$204,641"}},{"$f":"'Trial 4'!AY20","v":{"v":204579.6456069797,"d":"$204,580"}},{"$f":"'Trial 4'!AZ20","v":{"v":204518.3511096296,"d":"$204,518"}},{"$f":"SUM('Trial 4'!AO20:AZ20)","v":{"v":2458135.761428023,"d":"$2,458,136"}},{"$f":"'Trial 4'!BB20","v":{"v":204456.06169502693,"d":"$204,456"}},{"$f":"'Trial 4'!BC20","v":{"v":204392.85953752315,"d":"$204,393"}},{"$f":"'Trial 4'!BD20","v":{"v":204328.50241322434,"d":"$204,329"}},{"$f":"'Trial 4'!BE20","v":{"v":204264.24716377052,"d":"$204,264"}},{"$f":"'Trial 4'!BF20","v":{"v":204200.06750893386,"d":"$204,200"}},{"$f":"'Trial 4'!BG20","v":{"v":204134.9665493476,"d":"$204,135"}},{"$f":"'Trial 4'!BH20","v":{"v":204069.3351537398,"d":"$204,069"}},{"$f":"'Trial 4'!BI20","v":{"v":204002.84883507484,"d":"$204,003"}},{"$f":"'Trial 4'!BJ20","v":{"v":203936.1137318793,"d":"$203,936"}},{"$f":"'Trial 4'!BK20","v":{"v":203868.5808122822,"d":"$203,869"}},{"$f":"'Trial 4'!BL20","v":{"v":203800.60944809552,"d":"$203,801"}},{"$f":"'Trial 4'!BM20","v":{"v":203731.53063555478,"d":"$203,732"}},{"$f":"SUM('Trial 4'!BB20:BM20)","v":{"v":2449185.723484453,"d":"$2,449,186"}},{"$f":"'Trial 4'!BO20","v":{"v":203662.37841379145,"d":"$203,662"}},{"$f":"'Trial 4'!BP20","v":{"v":203592.98029270067,"d":"$203,593"}},{"$f":"'Trial 4'!BQ20","v":{"v":203523.48339321488,"d":"$203,523"}},{"$f":"'Trial 4'!BR20","v":{"v":203453.84520957898,"d":"$203,454"}},{"$f":"'Trial 4'!BS20","v":{"v":203384.09128097937,"d":"$203,384"}},{"$f":"'Trial 4'!BT20","v":{"v":203313.68668328642,"d":"$203,314"}},{"$f":"'Trial 4'!BU20","v":{"v":203242.98421761414,"d":"$203,243"}},{"$f":"'Trial 4'!BV20","v":{"v":203171.49352123376,"d":"$203,171"}},{"$f":"'Trial 4'!BW20","v":{"v":203099.87319970384,"d":"$203,100"}},{"$f":"'Trial 4'!BX20","v":{"v":203027.75324662612,"d":"$203,028"}},{"$f":"'Trial 4'!BY20","v":{"v":202955.00926298776,"d":"$202,955"}},{"$f":"'Trial 4'!BZ20","v":{"v":202881.5329517785,"d":"$202,882"}},{"$f":"SUM('Trial 4'!BO20:BZ20)","v":{"v":2439309.1116734957,"d":"$2,439,309"}},{"$f":"'Trial 4'!CB20","v":{"v":202808.063494525,"d":"$202,808"}},{"$f":"'Trial 4'!CC20","v":{"v":202734.23208480733,"d":"$202,734"}},{"$f":"'Trial 4'!CD20","v":{"v":202660.31308746838,"d":"$202,660"}},{"$f":"'Trial 4'!CE20","v":{"v":202585.78473156205,"d":"$202,586"}},{"$f":"'Trial 4'!CF20","v":{"v":202511.167194151,"d":"$202,511"}},{"$f":"'Trial 4'!CG20","v":{"v":202436.08642990387,"d":"$202,436"}},{"$f":"'Trial 4'!CH20","v":{"v":202360.6331933275,"d":"$202,361"}},{"$f":"'Trial 4'!CI20","v":{"v":202285.00024685488,"d":"$202,285"}},{"$f":"'Trial 4'!CJ20","v":{"v":202208.98231345412,"d":"$202,209"}},{"$f":"'Trial 4'!CK20","v":{"v":202133.44781552837,"d":"$202,133"}},{"$f":"'Trial 4'!CL20","v":{"v":202058.05077955418,"d":"$202,058"}},{"$f":"'Trial 4'!CM20","v":{"v":201982.37036532504,"d":"$201,982"}},{"$f":"SUM('Trial 4'!CB20:CM20)","v":{"v":2428764.1317364615,"d":"$2,428,764"}},{"$f":"'Trial 4'!CO20","v":{"v":201906.85786657291,"d":"$201,907"}},{"$f":"'Trial 4'!CP20","v":{"v":201831.20134885015,"d":"$201,831"}},{"$f":"'Trial 4'!CQ20","v":{"v":201755.06567425278,"d":"$201,755"}},{"$f":"'Trial 4'!CR20","v":{"v":201679.07123005294,"d":"$201,679"}},{"$f":"'Trial 4'!CS20","v":{"v":201603.1086933569,"d":"$201,603"}},{"$f":"'Trial 4'!CT20","v":{"v":201527.28229893002,"d":"$201,527"}},{"$f":"'Trial 4'!CU20","v":{"v":201451.27201196583,"d":"$201,451"}},{"$f":"'Trial 4'!CV20","v":{"v":201374.7618519716,"d":"$201,375"}},{"$f":"'Trial 4'!CW20","v":{"v":201297.49656089555,"d":"$201,297"}},{"$f":"'Trial 4'!CX20","v":{"v":201220.6679360409,"d":"$201,221"}},{"$f":"'Trial 4'!CY20","v":{"v":201143.841516779,"d":"$201,144"}},{"$f":"'Trial 4'!CZ20","v":{"v":201066.98240028942,"d":"$201,067"}},{"$f":"SUM('Trial 4'!CO20:CZ20)","v":{"v":2417857.6093899575,"d":"$2,417,858"}},{"$f":"'Trial 4'!DB20","v":{"v":200989.3808442813,"d":"$200,989"}},{"$f":"'Trial 4'!DC20","v":{"v":200911.85991338923,"d":"$200,912"}},{"$f":"'Trial 4'!DD20","v":{"v":200834.6601270462,"d":"$200,835"}},{"$f":"'Trial 4'!DE20","v":{"v":200757.040085929,"d":"$200,757"}},{"$f":"'Trial 4'!DF20","v":{"v":200678.82036439734,"d":"$200,679"}},{"$f":"'Trial 4'!DG20","v":{"v":200600.7017965701,"d":"$200,601"}},{"$f":"'Trial 4'!DH20","v":{"v":200522.68437534923,"d":"$200,523"}},{"$f":"'Trial 4'!DI20","v":{"v":200444.58192556063,"d":"$200,445"}},{"$f":"'Trial 4'!DJ20","v":{"v":200366.49371816346,"d":"$200,366"}},{"$f":"'Trial 4'!DK20","v":{"v":200287.8266259439,"d":"$200,288"}},{"$f":"'Trial 4'!DL20","v":{"v":200209.32643477336,"d":"$200,209"}},{"$f":"'Trial 4'!DM20","v":{"v":200130.48680039038,"d":"$200,130"}},{"$f":"SUM('Trial 4'!DB20:DM20)","v":{"v":2406733.8630117937,"d":"$2,406,734"}},{"$f":"'Trial 4'!DO20","v":{"v":200051.75675503668,"d":"$200,052"}},{"$f":"'Trial 4'!DP20","v":{"v":199973.01604803067,"d":"$199,973"}},{"$f":"'Trial 4'!DQ20","v":{"v":199893.97395270574,"d":"$199,894"}},{"$f":"'Trial 4'!DR20","v":{"v":199815.3354106627,"d":"$199,815"}},{"$f":"'Trial 4'!DS20","v":{"v":199737.24232013794,"d":"$199,737"}},{"$f":"'Trial 4'!DT20","v":{"v":199658.66214648692,"d":"$199,659"}},{"$f":"'Trial 4'!DU20","v":{"v":199580.51486897937,"d":"$199,581"}},{"$f":"'Trial 4'!DV20","v":{"v":199502.85684899092,"d":"$199,503"}},{"$f":"'Trial 4'!DW20","v":{"v":199425.3695777329,"d":"$199,425"}},{"$f":"'Trial 4'!DX20","v":{"v":199347.53569564584,"d":"$199,348"}},{"$f":"'Trial 4'!DY20","v":{"v":199269.47668586948,"d":"$199,269"}},{"$f":"'Trial 4'!DZ20","v":{"v":199190.6009517809,"d":"$199,191"}},{"$f":"SUM('Trial 4'!DO20:DZ20)","v":{"v":2395446.34126206,"d":"$2,395,446"}},{"$f":"'Trial 4'!EB20","v":{"v":199112.0876874146,"d":"$199,112"}},{"$f":"'Trial 4'!EC20","v":{"v":199033.8395042343,"d":"$199,034"}},{"$f":"'Trial 4'!ED20","v":{"v":198956.01002364306,"d":"$198,956"}},{"$f":"'Trial 4'!EE20","v":{"v":198877.99043169225,"d":"$198,878"}},{"$f":"'Trial 4'!EF20","v":{"v":198799.1215399213,"d":"$198,799"}},{"$f":"'Trial 4'!EG20","v":{"v":198720.0064651507,"d":"$198,720"}},{"$f":"'Trial 4'!EH20","v":{"v":198641.2182424858,"d":"$198,641"}},{"$f":"'Trial 4'!EI20","v":{"v":198562.87824332458,"d":"$198,563"}},{"$f":"'Trial 4'!EJ20","v":{"v":198484.247927199,"d":"$198,484"}},{"$f":"'Trial 4'!EK20","v":{"v":198405.75501276713,"d":"$198,406"}},{"$f":"'Trial 4'!EL20","v":{"v":198326.56430948686,"d":"$198,327"}},{"$f":"'Trial 4'!EM20","v":{"v":198246.6920423312,"d":"$198,247"}},{"$f":"SUM('Trial 4'!EB20:EM20)","v":{"v":2384166.4114296506,"d":"$2,384,166"}}]
[{"$f":"Labels!B100","v":"Trial 05"},{"$f":"'Trial 5'!B20","v":{"v":206222.0144162289,"d":"$206,222"}},{"$f":"'Trial 5'!C20","v":{"v":206222.0144162289,"d":"$206,222"}},{"$f":"'Trial 5'!D20","v":{"v":206222.0144162289,"d":"$206,222"}},{"$f":"'Trial 5'!E20","v":{"v":206219.25333011372,"d":"$206,219"}},{"$f":"'Trial 5'!F20","v":{"v":206213.92415618905,"d":"$206,214"}},{"$f":"'Trial 5'!G20","v":{"v":206206.86059824657,"d":"$206,207"}},{"$f":"'Trial 5'!H20","v":{"v":206197.09009452478,"d":"$206,197"}},{"$f":"'Trial 5'!I20","v":{"v":206185.0469745264,"d":"$206,185"}},{"$f":"'Trial 5'!J20","v":{"v":206170.74335909053,"d":"$206,171"}},{"$f":"'Trial 5'!K20","v":{"v":206154.49554415318,"d":"$206,154"}},{"$f":"'Trial 5'!L20","v":{"v":206136.60302125683,"d":"$206,137"}},{"$f":"'Trial 5'!M20","v":{"v":206117.57223976695,"d":"$206,118"}},{"$f":"SUM('Trial 5'!B20:M20)","v":{"v":2474267.6325665545,"d":"$2,474,268"}},{"$f":"'Trial 5'!O20","v":{"v":206096.43369651493,"d":"$206,096"}},{"$f":"'Trial 5'!P20","v":{"v":206073.31630437318,"d":"$206,073"}},{"$f":"'Trial 5'!Q20","v":{"v":206048.50745669156,"d":"$206,049"}},{"$f":"'Trial 5'!R20","v":{"v":206021.9486681077,"d":"$206,022"}},{"$f":"'Trial 5'!S20","v":{"v":205993.84897263764,"d":"$205,994"}},{"$f":"'Trial 5'!T20","v":{"v":205964.11225900115,"d":"$205,964"}},{"$f":"'Trial 5'!U20","v":{"v":205932.95804377252,"d":"$205,933"}},{"$f":"'Trial 5'!V20","v":{"v":205899.8741300334,"d":"$205,900"}},{"$f":"'Trial 5'!W20","v":{"v":205866.0658568172,"d":"$205,866"}},{"$f":"'Trial 5'!X20","v":{"v":205831.03238650752,"d":"$205,831"}},{"$f":"'Trial 5'!Y20","v":{"v":205794.6018489909,"d":"$205,795"}},{"$f":"'Trial 5'!Z20","v":{"v":205756.95895365463,"d":"$205,757"}},{"$f":"SUM('Trial 5'!O20:Z20)","v":{"v":2471279.6585771022,"d":"$2,471,280"}},{"$f":"'Trial 5'!AB20","v":{"v":205717.644776359,"d":"$205,718"}},{"$f":"'Trial 5'!AC20","v":{"v":205677.7375768418,"d":"$205,678"}},{"$f":"'Trial 5'!AD20","v":{"v":205636.45400771554,"d":"$205,636"}},{"$f":"'Trial 5'!AE20","v":{"v":205594.18079517546,"d":"$205,594"}},{"$f":"'Trial 5'!AF20","v":{"v":205550.75142193024,"d":"$205,551"}},{"$f":"'Trial 5'!AG20","v":{"v":205506.78754698983,"d":"$205,507"}},{"$f":"'Trial 5'!AH20","v":{"v":205461.0604266406,"d":"$205,461"}},{"$f":"'Trial 5'!AI20","v":{"v":205413.7338123514,"d":"$205,414"}},{"$f":"'Trial 5'!AJ20","v":{"v":205365.20981423347,"d":"$205,365"}},{"$f":"'Trial 5'!AK20","v":{"v":205315.867004534,"d":"$205,316"}},{"$f":"'Trial 5'!AL20","v":{"v":205265.18189446846,"d":"$205,265"}},{"$f":"'Trial 5'!AM20","v":{"v":205213.66737056195,"d":"$205,214"}},{"$f":"SUM('Trial 5'!AB20:AM20)","v":{"v":2465718.276447802,"d":"$2,465,718"}},{"$f":"'Trial 5'!AO20","v":{"v":205160.85633104472,"d":"$205,161"}},{"$f":"'Trial 5'!AP20","v":{"v":205107.08486239836,"d":"$205,107"}},{"$f":"'Trial 5'!AQ20","v":{"v":205052.1232241,"d":"$205,052"}},{"$f":"'Trial 5'!AR20","v":{"v":204996.36731053365,"d":"$204,996"}},{"$f":"'Trial 5'!AS20","v":{"v":204939.87754716884,"d":"$204,940"}},{"$f":"'Trial 5'!AT20","v":{"v":204882.49033796848,"d":"$204,882"}},{"$f":"'Trial 5'!AU20","v":{"v":204824.54965367957,"d":"$204,825"}},{"$f":"'Trial 5'!AV20","v":{"v":204766.1356998236,"d":"$204,766"}},{"$f":"'Trial 5'!AW20","v":{"v":204706.8265172722,"d":"$204,707"}},{"$f":"'Trial 5'!AX20","v":{"v":204646.98395788044,"d":"$204,647"}},{"$f":"'Trial 5'!AY20","v":{"v":204586.51037935706,"d":"$204,587"}},{"$f":"'Trial 5'!AZ20","v":{"v":204525.29669740296,"d":"$204,525"}},{"$f":"SUM('Trial 5'!AO20:AZ20)","v":{"v":2458195.1025186297,"d":"$2,458,195"}},{"$f":"'Trial 5'!BB20","v":{"v":204463.3691767495,"d":"$204,463"}},{"$f":"'Trial 5'!BC20","v":{"v":204400.93426440647,"d":"$204,401"}},{"$f":"'Trial 5'!BD20","v":{"v":204337.8267825452,"d":"$204,338"}},{"$f":"'Trial 5'!BE20","v":{"v":204273.89928555093,"d":"$204,274"}},{"$f":"'Trial 5'!BF20","v":{"v":204208.9523420971,"d":"$204,209"}},{"$f":"'Trial 5'!BG20","v":{"v":204142.8270507277,"d":"$204,143"}},{"$f":"'Trial 5'!BH20","v":{"v":204076.3911143022,"d":"$204,076"}},{"$f":"'Trial 5'!BI20","v":{"v":204009.29516837315,"d":"$204,009"}},{"$f":"'Trial 5'!BJ20","v":{"v":203941.83407608522,"d":"$203,942"}},{"$f":"'Trial 5'!BK20","v":{"v":203873.42856041816,"d":"$203,873"}},{"$f":"'Trial 5'!BL20","v":{"v":203804.71221275235,"d":"$203,805"}},{"$f":"'Trial 5'!BM20","v":{"v":203736.02569713283,"d":"$203,736"}},{"$f":"SUM('Trial 5'!BB20:BM20)","v":{"v":2449269.495731141,"d":"$2,449,269"}},{"$f":"'Trial 5'!BO20","v":{"v":203667.07584759613,"d":"$203,667"}},{"$f":"'Trial 5'!BP20","v":{"v":203598.17301330878,"d":"$203,598"}},{"$f":"'Trial 5'!BQ20","v":{"v":203528.97121787464,"d":"$203,529"}},{"$f":"'Trial 5'!BR20","v":{"v":203459.80277522167,"d":"$203,460"}},{"$f":"'Trial 5'!BS20","v":{"v":203390.86108401697,"d":"$203,391"}},{"$f":"'Trial 5'!BT20","v":{"v":203322.11382846846,"d":"$203,322"}},{"$f":"'Trial 5'!BU20","v":{"v":203252.52955165374,"d":"$203,253"}},{"$f":"'Trial 5'!BV20","v":{"v":203182.5562066946,"d":"$203,183"}},{"$f":"'Trial 5'!BW20","v":{"v":203112.85599649756,"d":"$203,113"}},{"$f":"'Trial 5'!BX20","v":{"v":203042.37831447416,"d":"$203,042"}},{"$f":"'Trial 5'!BY20","v":{"v":202971.4612874554,"d":"$202,971"}},{"$f":"'Trial 5'!BZ20","v":{"v":202900.2546270437,"d":"$202,900"}},{"$f":"SUM('Trial 5'!BO20:BZ20)","v":{"v":2439429.0337503054,"d":"$2,439,429"}},{"$f":"'Trial 5'!CB20","v":{"v":202829.21013603604,"d":"$202,829"}},{"$f":"'Trial 5'!CC20","v":{"v":202758.3653174625,"d":"$202,758"}},{"$f":"'Trial 5'!CD20","v":{"v":202687.56819337944,"d":"$202,688"}},{"$f":"'Trial 5'!CE20","v":{"v":202616.35846099487,"d":"$202,616"}},{"$f":"'Trial 5'!CF20","v":{"v":202544.8308276348,"d":"$202,545"}},{"$f":"'Trial 5'!CG20","v":{"v":202472.9225569832,"d":"$202,473"}},{"$f":"'Trial 5'!CH20","v":{"v":202400.46758759615,"d":"$202,400"}},{"$f":"'Trial 5'!CI20","v":{"v":202327.77946718127,"d":"$202,328"}},{"$f":"'Trial 5'!CJ20","v":{"v":202255.4626077402,"d":"$202,255"}},{"$f":"'Trial 5'!CK20","v":{"v":202182.57797909368,"d":"$202,183"}},{"$f":"'Trial 5'!CL20","v":{"v":202109.0698808004,"d":"$202,109"}},{"$f":"'Trial 5'!CM20","v":{"v":202035.4106650924,"d":"$202,035"}},{"$f":"SUM('Trial 5'!CB20:CM20)","v":{"v":2429220.023679995,"d":"$2,429,220"}},{"$f":"'Trial 5'!CO20","v":{"v":201962.1060635601,"d":"$201,962"}},{"$f":"'Trial 5'!CP20","v":{"v":201888.16022394915,"d":"$201,888"}},{"$f":"'Trial 5'!CQ20","v":{"v":201814.1485074658,"d":"$201,814"}},{"$f":"'Trial 5'!CR20","v":{"v":201740.03586520127,"d":"$201,740"}},{"$f":"'Trial 5'!CS20","v":{"v":201665.29876419777,"d":"$201,665"}},{"$f":"'Trial 5'!CT20","v":{"v":201590.8568559616,"d":"$201,591"}},{"$f":"'Trial 5'!CU20","v":{"v":201515.87445566175,"d":"$201,516"}},{"$f":"'Trial 5'!CV20","v":{"v":201440.4778167808,"d":"$201,440"}},{"$f":"'Trial 5'!CW20","v":{"v":201365.0530455108,"d":"$201,365"}},{"$f":"'Trial 5'!CX20","v":{"v":201289.4928526285,"d":"$201,289"}},{"$f":"'Trial 5'!CY20","v":{"v":201213.61012020273,"d":"$201,214"}},{"$f":"'Trial 5'!CZ20","v":{"v":201137.86984525193,"d":"$201,138"}},{"$f":"SUM('Trial 5'!CO20:CZ20)","v":{"v":2418622.984416372,"d":"$2,418,623"}},{"$f":"'Trial 5'!DB20","v":{"v":201061.7464800777,"d":"$201,062"}},{"$f":"'Trial 5'!DC20","v":{"v":200985.39282353132,"d":"$200,985"}},{"$f":"'Trial 5'!DD20","v":{"v":200908.27000555617,"d":"$200,908"}},{"$f":"'Trial 5'!DE20","v":{"v":200831.1916333303,"d":"$200,831"}},{"$f":"'Trial 5'!DF20","v":{"v":200753.95971326457,"d":"$200,754"}},{"$f":"'Trial 5'!DG20","v":{"v":200676.67433058596,"d":"$200,677"}},{"$f":"'Trial 5'!DH20","v":{"v":200598.9727467522,"d":"$200,599"}},{"$f":"'Trial 5'!DI20","v":{"v":200520.78375211253,"d":"$200,521"}},{"$f":"'Trial 5'!DJ20","v":{"v":200442.79359044484,"d":"$200,443"}},{"$f":"'Trial 5'!DK20","v":{"v":200365.27361739465,"d":"$200,365"}},{"$f":"'Trial 5'!DL20","v":{"v":200287.61327610572,"d":"$200,288"}},{"$f":"'Trial 5'!DM20","v":{"v":200209.46140095836,"d":"$200,209"}},{"$f":"SUM('Trial 5'!DB20:DM20)","v":{"v":2407642.133370114,"d":"$2,407,642"}},{"$f":"'Trial 5'!DO20","v":{"v":200131.0936016552,"d":"$200,131"}},{"$f":"'Trial 5'!DP20","v":{"v":200052.20084124082,"d":"$200,052"}},{"$f":"'Trial 5'!DQ20","v":{"v":199973.19710686212,"d":"$199,973"}},{"$f":"'Trial 5'!DR20","v":{"v":199893.8798673098,"d":"$199,894"}},{"$f":"'Trial 5'!DS20","v":{"v":199814.43252831907,"d":"$199,814"}},{"$f":"'Trial 5'!DT20","v":{"v":199735.434699044,"d":"$199,735"}},{"$f":"'Trial 5'!DU20","v":{"v":199656.58373291927,"d":"$199,657"}},{"$f":"'Trial 5'!DV20","v":{"v":199577.80417416999,"d":"$199,578"}},{"$f":"'Trial 5'!DW20","v":{"v":199499.28930420268,"d":"$199,499"}},{"$f":"'Trial 5'!DX20","v":{"v":199420.35666008887,"d":"$199,420"}},{"$f":"'Trial 5'!DY20","v":{"v":199341.35269547868,"d":"$199,341"}},{"$f":"'Trial 5'!DZ20","v":{"v":199262.5356216119,"d":"$199,263"}},{"$f":"SUM('Trial 5'!DO20:DZ20)","v":{"v":2396358.1608329024,"d":"$2,396,358"}},{"$f":"'Trial 5'!EB20","v":{"v":199183.40403968873,"d":"$199,183"}},{"$f":"'Trial 5'!EC20","v":{"v":199104.15347511915,"d":"$199,104"}},{"$f":"'Trial 5'!ED20","v":{"v":199024.45835869174,"d":"$199,024"}},{"$f":"'Trial 5'!EE20","v":{"v":198944.642668796,"d":"$198,945"}},{"$f":"'Trial 5'!EF20","v":{"v":198865.1611412319,"d":"$198,865"}},{"$f":"'Trial 5'!EG20","v":{"v":198785.2898911004,"d":"$198,785"}},{"$f":"'Trial 5'!EH20","v":{"v":198705.39300533722,"d":"$198,705"}},{"$f":"'Trial 5'!EI20","v":{"v":198625.45004152574,"d":"$198,625"}},{"$f":"'Trial 5'!EJ20","v":{"v":198545.80261748374,"d":"$198,546"}},{"$f":"'Trial 5'!EK20","v":{"v":198465.54076051174,"d":"$198,466"}},{"$f":"'Trial 5'!EL20","v":{"v":198384.8254955483,"d":"$198,385"}},{"$f":"'Trial 5'!EM20","v":{"v":198303.8334662599,"d":"$198,304"}},{"$f":"SUM('Trial 5'!EB20:EM20)","v":{"v":2384937.9549612943,"d":"$2,384,938"}}]
[{"$f":"Labels!B101","v":"Trial 06"},{"$f":"'Trial 6'!B20","v":{"v":206222.0144162289,"d":"$206,222"}},{"$f":"'Trial 6'!C20","v":{"v":206222.0144162289,"d":"$206,222"}},{"$f":"'Trial 6'!D20","v":{"v":206222.0144162289,"d":"$206,222"}},{"$f":"'Trial 6'!E20","v":{"v":206219.78465519942,"d":"$206,220"}},{"$f":"'Trial 6'!F20","v":{"v":206214.62190894064,"d":"$206,215"}},{"$f":"'Trial 6'!G20","v":{"v":206207.64936315388,"d":"$206,208"}},{"$f":"'Trial 6'!H20","v":{"v":206199.1083788782,"d":"$206,199"}},{"$f":"'Trial 6'!I20","v":{"v":206188.67861755379,"d":"$206,189"}},{"$f":"'Trial 6'!J20","v":{"v":206175.94239787004,"d":"$206,176"}},{"$f":"'Trial 6'!K20","v":{"v":206161.18259972424,"d":"$206,161"}},{"$f":"'Trial 6'!L20","v":{"v":206144.44164392108,"d":"$206,144"}},{"$f":"'Trial 6'!M20","v":{"v":206126.21759275396,"d":"$206,126"}},{"$f":"SUM('Trial 6'!B20:M20)","v":{"v":2474303.670406682,"d":"$2,474,304"}},{"$f":"'Trial 6'!O20","v":{"v":206106.16547826678,"d":"$206,106"}},{"$f":"'Trial 6'!P20","v":{"v":206084.93068036705,"d":"$206,085"}},{"$f":"'Trial 6'!Q20","v":{"v":206061.936947544,"d":"$206,062"}},{"$f":"'Trial 6'!R20","v":{"v":206037.73594224875,"d":"$206,038"}},{"$f":"'Trial 6'!S20","v":{"v":206011.7710018993,"d":"$206,012"}},{"$f":"'Trial 6'!T20","v":{"v":205984.687369499,"d":"$205,985"}},{"$f":"'Trial 6'!U20","v":{"v":205956.3568843827,"d":"$205,956"}},{"$f":"'Trial 6'!V20","v":{"v":205925.8545558539,"d":"$205,926"}},{"$f":"'Trial 6'!W20","v":{"v":205893.76032650404,"d":"$205,894"}},{"$f":"'Trial 6'!X20","v":{"v":205860.46003799455,"d":"$205,860"}},{"$f":"'Trial 6'!Y20","v":{"v":205825.48644230363,"d":"$205,825"}},{"$f":"'Trial 6'!Z20","v":{"v":205788.96987380335,"d":"$205,789"}},{"$f":"SUM('Trial 6'!O20:Z20)","v":{"v":2471538.115540667,"d":"$2,471,538"}},{"$f":"'Trial 6'!AB20","v":{"v":205751.2728332564,"d":"$205,751"}},{"$f":"'Trial 6'!AC20","v":{"v":205712.6411162299,"d":"$205,713"}},{"$f":"'Trial 6'!AD20","v":{"v":205672.38749427305,"d":"$205,672"}},{"$f":"'Trial 6'!AE20","v":{"v":205631.0137166433,"d":"$205,631"}},{"$f":"'Trial 6'!AF20","v":{"v":205588.67496384328,"d":"$205,589"}},{"$f":"'Trial 6'!AG20","v":{"v":205545.60670278443,"d":"$205,546"}},{"$f":"'Trial 6'!AH20","v":{"v":205501.54331587988,"d":"$205,502"}},{"$f":"'Trial 6'!AI20","v":{"v":205456.7989765955,"d":"$205,457"}},{"$f":"'Trial 6'!AJ20","v":{"v":205411.08571602337,"d":"$205,411"}},{"$f":"'Trial 6'!AK20","v":{"v":205364.6315278325,"d":"$205,365"}},{"$f":"'Trial 6'!AL20","v":{"v":205317.07574113857,"d":"$205,317"}},{"$f":"'Trial 6'!AM20","v":{"v":205268.2710659036,"d":"$205,268"}},{"$f":"SUM('Trial 6'!AB20:AM20)","v":{"v":2466221.0031704037,"d":"$2,466,221"}},{"$f":"'Trial 6'!AO20","v":{"v":205218.5519525489,"d":"$205,219"}},{"$f":"'Trial 6'!AP20","v":{"v":205168.24693280688,"d":"$205,168"}},{"$f":"'Trial 6'!AQ20","v":{"v":205117.57629869969,"d":"$205,118"}},{"$f":"'Trial 6'!AR20","v":{"v":205066.11873128254,"d":"$205,066"}},{"$f":"'Trial 6'!AS20","v":{"v":205013.67728015923,"d":"$205,014"}},{"$f":"'Trial 6'!AT20","v":{"v":204960.1557633744,"d":"$204,960"}},{"$f":"'Trial 6'!AU20","v":{"v":204905.86564093354,"d":"$204,906"}},{"$f":"'Trial 6'!AV20","v":{"v":204850.6497680522,"d":"$204,851"}},{"$f":"'Trial 6'!AW20","v":{"v":204794.39209005077,"d":"$204,794"}},{"$f":"'Trial 6'!AX20","v":{"v":204736.74890234318,"d":"$204,737"}},{"$f":"'Trial 6'!AY20","v":{"v":204678.48437192963,"d":"$204,678"}},{"$f":"'Trial 6'!AZ20","v":{"v":204619.31398368976,"d":"$204,619"}},{"$f":"SUM('Trial 6'!AO20:AZ20)","v":{"v":2459129.781715871,"d":"$2,459,130"}},{"$f":"'Trial 6'!BB20","v":{"v":204558.99587795453,"d":"$204,559"}},{"$f":"'Trial 6'!BC20","v":{"v":204498.2024940631,"d":"$204,498"}},{"$f":"'Trial 6'!BD20","v":{"v":204437.2712219504,"d":"$204,437"}},{"$f":"'Trial 6'!BE20","v":{"v":204375.0830187356,"d":"$204,375"}},{"$f":"'Trial 6'!BF20","v":{"v":204311.94421523248,"d":"$204,312"}},{"$f":"'Trial 6'!BG20","v":{"v":204248.0063507148,"d":"$204,248"}},{"$f":"'Trial 6'!BH20","v":{"v":204183.21294815323,"d":"$204,183"}},{"$f":"'Trial 6'!BI20","v":{"v":204117.86374595118,"d":"$204,118"}},{"$f":"'Trial 6'!BJ20","v":{"v":204052.14083720918,"d":"$204,052"}},{"$f":"'Trial 6'!BK20","v":{"v":203986.24761135702,"d":"$203,986"}},{"$f":"'Trial 6'!BL20","v":{"v":203919.6084267562,"d":"$203,920"}},{"$f":"'Trial 6'!BM20","v":{"v":203853.04564653512,"d":"$203,853"}},{"$f":"SUM('Trial 6'!BB20:BM20)","v":{"v":2450541.622394613,"d":"$2,450,542"}},{"$f":"'Trial 6'!BO20","v":{"v":203786.13531378726,"d":"$203,786"}},{"$f":"'Trial 6'!BP20","v":{"v":203718.19933946247,"d":"$203,718"}},{"$f":"'Trial 6'!BQ20","v":{"v":203649.96163204464,"d":"$203,650"}},{"$f":"'Trial 6'!BR20","v":{"v":203580.6538809972,"d":"$203,581"}},{"$f":"'Trial 6'!BS20","v":{"v":203510.81016565856,"d":"$203,511"}},{"$f":"'Trial 6'!BT20","v":{"v":203440.381039681,"d":"$203,440"}},{"$f":"'Trial 6'!BU20","v":{"v":203369.24208133583,"d":"$203,369"}},{"$f":"'Trial 6'!BV20","v":{"v":203297.0953226095,"d":"$203,297"}},{"$f":"'Trial 6'!BW20","v":{"v":203225.00230879895,"d":"$203,225"}},{"$f":"'Trial 6'!BX20","v":{"v":203152.60341625326,"d":"$203,153"}},{"$f":"'Trial 6'!BY20","v":{"v":203080.0717615837,"d":"$203,080"}},{"$f":"'Trial 6'!BZ20","v":{"v":203007.53049250107,"d":"$203,008"}},{"$f":"SUM('Trial 6'!BO20:BZ20)","v":{"v":2440817.6867547133,"d":"$2,440,818"}},{"$f":"'Trial 6'!CB20","v":{"v":202934.36022807288,"d":"$202,934"}},{"$f":"'Trial 6'!CC20","v":{"v":202861.4634044423,"d":"$202,861"}},{"$f":"'Trial 6'!CD20","v":{"v":202788.58979503714,"d":"$202,789"}},{"$f":"'Trial 6'!CE20","v":{"v":202715.44928835015,"d":"$202,715"}},{"$f":"'Trial 6'!CF20","v":{"v":202641.9569309015,"d":"$202,642"}},{"$f":"'Trial 6'!CG20","v":{"v":202568.75806740308,"d":"$202,569"}},{"$f":"'Trial 6'!CH20","v":{"v":202495.15614696915,"d":"$202,495"}},{"$f":"'Trial 6'!CI20","v":{"v":202421.1136557371,"d":"$202,421"}},{"$f":"'Trial 6'!CJ20","v":{"v":202347.11276286675,"d":"$202,347"}},{"$f":"'Trial 6'!CK20","v":{"v":202273.1326157984,"d":"$202,273"}},{"$f":"'Trial 6'!CL20","v":{"v":202199.327770237,"d":"$202,199"}},{"$f":"'Trial 6'!CM20","v":{"v":202125.28492435234,"d":"$202,125"}},{"$f":"SUM('Trial 6'!CB20:CM20)","v":{"v":2430371.705590168,"d":"$2,430,372"}},{"$f":"'Trial 6'!CO20","v":{"v":202051.15691144482,"d":"$202,051"}},{"$f":"'Trial 6'!CP20","v":{"v":201977.19619757228,"d":"$201,977"}},{"$f":"'Trial 6'!CQ20","v":{"v":201903.29774786663,"d":"$201,903"}},{"$f":"'Trial 6'!CR20","v":{"v":201829.23484566354,"d":"$201,829"}},{"$f":"'Trial 6'!CS20","v":{"v":201755.33634775048,"d":"$201,755"}},{"$f":"'Trial 6'!CT20","v":{"v":201681.2027257804,"d":"$201,681"}},{"$f":"'Trial 6'!CU20","v":{"v":201606.8516819985,"d":"$201,607"}},{"$f":"'Trial 6'!CV20","v":{"v":201531.95802971753,"d":"$201,532"}},{"$f":"'Trial 6'!CW20","v":{"v":201456.58480845744,"d":"$201,457"}},{"$f":"'Trial 6'!CX20","v":{"v":201381.57869902346,"d":"$201,382"}},{"$f":"'Trial 6'!CY20","v":{"v":201305.97127328723,"d":"$201,306"}},{"$f":"'Trial 6'!CZ20","v":{"v":201230.70391553242,"d":"$201,231"}},{"$f":"SUM('Trial 6'!CO20:CZ20)","v":{"v":2419711.0731840944,"d":"$2,419,711"}},{"$f":"'Trial 6'!DB20","v":{"v":201155.33475808147,"d":"$201,155"}},{"$f":"'Trial 6'!DC20","v":{"v":201079.44982028473,"d":"$201,079"}},{"$f":"'Trial 6'!DD20","v":{"v":201003.55607971584,"d":"$201,004"}},{"$f":"'Trial 6'!DE20","v":{"v":200927.6953265434,"d":"$200,928"}},{"$f":"'Trial 6'!DF20","v":{"v":200851.06093738045,"d":"$200,851"}},{"$f":"'Trial 6'!DG20","v":{"v":200774.04742606042,"d":"$200,774"}},{"$f":"'Trial 6'!DH20","v":{"v":200696.8676740008,"d":"$200,697"}},{"$f":"'Trial 6'!DI20","v":{"v":200619.0215877392,"d":"$200,619"}},{"$f":"'Trial 6'!DJ20","v":{"v":200540.9383651394,"d":"$200,541"}},{"$f":"'Trial 6'!DK20","v":{"v":200462.28834676545,"d":"$200,462"}},{"$f":"'Trial 6'!DL20","v":{"v":200383.05758333424,"d":"$200,383"}},{"$f":"'Trial 6'!DM20","v":{"v":200303.14001870493,"d":"$200,303"}},{"$f":"SUM('Trial 6'!DB20:DM20)","v":{"v":2408796.4579237504,"d":"$2,408,796"}},{"$f":"'Trial 6'!DO20","v":{"v":200223.1967498866,"d":"$200,223"}},{"$f":"'Trial 6'!DP20","v":{"v":200142.86388064708,"d":"$200,143"}},{"$f":"'Trial 6'!DQ20","v":{"v":200062.32519872367,"d":"$200,062"}},{"$f":"'Trial 6'!DR20","v":{"v":199982.11758955312,"d":"$199,982"}},{"$f":"'Trial 6'!DS20","v":{"v":199901.57248561515,"d":"$199,902"}},{"$f":"'Trial 6'!DT20","v":{"v":199820.73586905375,"d":"$199,821"}},{"$f":"'Trial 6'!DU20","v":{"v":199739.83853160843,"d":"$199,740"}},{"$f":"'Trial 6'!DV20","v":{"v":199658.82135769574,"d":"$199,659"}},{"$f":"'Trial 6'!DW20","v":{"v":199577.97287733783,"d":"$199,578"}},{"$f":"'Trial 6'!DX20","v":{"v":199497.45247561485,"d":"$199,497"}},{"$f":"'Trial 6'!DY20","v":{"v":199417.31521111284,"d":"$199,417"}},{"$f":"'Trial 6'!DZ20","v":{"v":199337.17869284665,"d":"$199,337"}},{"$f":"SUM('Trial 6'!DO20:DZ20)","v":{"v":2397361.3909196956,"d":"$2,397,361"}},{"$f":"'Trial 6'!EB20","v":{"v":199257.25478560617,"d":"$199,257"}},{"$f":"'Trial 6'!EC20","v":{"v":199177.17420925564,"d":"$199,177"}},{"$f":"'Trial 6'!ED20","v":{"v":199096.9866681483,"d":"$199,097"}},{"$f":"'Trial 6'!EE20","v":{"v":199017.11515379415,"d":"$199,017"}},{"$f":"'Trial 6'!EF20","v":{"v":198937.1786410137,"d":"$198,937"}},{"$f":"'Trial 6'!EG20","v":{"v":198857.339606012,"d":"$198,857"}},{"$f":"'Trial 6'!EH20","v":{"v":198777.70071417664,"d":"$198,778"}},{"$f":"'Trial 6'!EI20","v":{"v":198697.9651229783,"d":"$198,698"}},{"$f":"'Trial 6'!EJ20","v":{"v":198618.2969108982,"d":"$198,618"}},{"$f":"'Trial 6'!EK20","v":{"v":198538.53080446363,"d":"$198,539"}},{"$f":"'Trial 6'!EL20","v":{"v":198458.82459492554,"d":"$198,459"}},{"$f":"'Trial 6'!EM20","v":{"v":198379.48532796794,"d":"$198,379"}},{"$f":"SUM('Trial 6'!EB20:EM20)","v":{"v":2385813.8525392404,"d":"$2,385,814"}}]
[{"$f":"Labels!B102","v":"Trial 07"},{"$f":"'Trial 7'!B20","v":{"v":206222.0144162289,"d":"$206,222"}},{"$f":"'Trial 7'!C20","v":{"v":206222.0144162289,"d":"$206,222"}},{"$f":"'Trial 7'!D20","v":{"v":206222.0144162289,"d":"$206,222"}},{"$f":"'Trial 7'!E20","v":{"v":206219.37764316436,"d":"$206,219"}},{"$f":"'Trial 7'!F20","v":{"v":206214.78014221907,"d":"$206,215"}},{"$f":"'Trial 7'!G20","v":{"v":206208.18282575512,"d":"$206,208"}},{"$f":"'Trial 7'!H20","v":{"v":206199.37165701308,"d":"$206,199"}},{"$f":"'Trial 7'!I20","v":{"v":206188.85904316904,"d":"$206,189"}},{"$f":"'Trial 7'!J20","v":{"v":206176.71164972938,"d":"$206,177"}},{"$f":"'Trial 7'!K20","v":{"v":206162.94938018874,"d":"$206,163"}},{"$f":"'Trial 7'!L20","v":{"v":206147.7128435003,"d":"$206,148"}},{"$f":"'Trial 7'!M20","v":{"v":206130.49232760453,"d":"$206,130"}},{"$f":"SUM('Trial 7'!B20:M20)","v":{"v":2474314.48076103,"d":"$2,474,314"}},{"$f":"'Trial 7'!O20","v":{"v":206111.1719684345,"d":"$206,111"}},{"$f":"'Trial 7'!P20","v":{"v":206090.03560033973,"d":"$206,090"}},{"$f":"'Trial 7'!Q20","v":{"v":206067.06236392204,"d":"$206,067"}},{"$f":"'Trial 7'!R20","v":{"v":206042.47318210945,"d":"$206,042"}},{"$f":"'Trial 7'!S20","v":{"v":206016.67091432094,"d":"$206,017"}},{"$f":"'Trial 7'!T20","v":{"v":205989.6492487516,"d":"$205,990"}},{"$f":"'Trial 7'!U20","v":{"v":205961.34208857582,"d":"$205,961"}},{"$f":"'Trial 7'!V20","v":{"v":205931.63408259043,"d":"$205,932"}},{"$f":"'Trial 7'!W20","v":{"v":205900.77786317965,"d":"$205,901"}},{"$f":"'Trial 7'!X20","v":{"v":205868.406465351,"d":"$205,868"}},{"$f":"'Trial 7'!Y20","v":{"v":205834.97511469902,"d":"$205,835"}},{"$f":"'Trial 7'!Z20","v":{"v":205800.6480502138,"d":"$205,801"}},{"$f":"SUM('Trial 7'!O20:Z20)","v":{"v":2471614.846942488,"d":"$2,471,615"}},{"$f":"'Trial 7'!AB20","v":{"v":205765.28577554875,"d":"$205,765"}},{"$f":"'Trial 7'!AC20","v":{"v":205728.61439123846,"d":"$205,729"}},{"$f":"'Trial 7'!AD20","v":{"v":205690.09464088033,"d":"$205,690"}},{"$f":"'Trial 7'!AE20","v":{"v":205649.72779110668,"d":"$205,650"}},{"$f":"'Trial 7'!AF20","v":{"v":205608.1598145036,"d":"$205,608"}},{"$f":"'Trial 7'!AG20","v":{"v":205565.58481932955,"d":"$205,566"}},{"$f":"'Trial 7'!AH20","v":{"v":205522.23220606803,"d":"$205,522"}},{"$f":"'Trial 7'!AI20","v":{"v":205477.5430773507,"d":"$205,478"}},{"$f":"'Trial 7'!AJ20","v":{"v":205432.00971262864,"d":"$205,432"}},{"$f":"'Trial 7'!AK20","v":{"v":205385.62502090438,"d":"$205,386"}},{"$f":"'Trial 7'!AL20","v":{"v":205337.80450449607,"d":"$205,338"}},{"$f":"'Trial 7'!AM20","v":{"v":205288.89081228335,"d":"$205,289"}},{"$f":"SUM('Trial 7'!AB20:AM20)","v":{"v":2466451.5725663383,"d":"$2,466,452"}},{"$f":"'Trial 7'!AO20","v":{"v":205239.04098186016,"d":"$205,239"}},{"$f":"'Trial 7'!AP20","v":{"v":205188.31349575182,"d":"$205,188"}},{"$f":"'Trial 7'!AQ20","v":{"v":205136.46973963536,"d":"$205,136"}},{"$f":"'Trial 7'!AR20","v":{"v":205083.37914415202,"d":"$205,083"}},{"$f":"'Trial 7'!AS20","v":{"v":205029.3632732459,"d":"$205,029"}},{"$f":"'Trial 7'!AT20","v":{"v":204974.83421085376,"d":"$204,975"}},{"$f":"'Trial 7'!AU20","v":{"v":204919.7811318421,"d":"$204,920"}},{"$f":"'Trial 7'!AV20","v":{"v":204864.5048614392,"d":"$204,865"}},{"$f":"'Trial 7'!AW20","v":{"v":204808.18654540312,"d":"$204,808"}},{"$f":"'Trial 7'!AX20","v":{"v":204751.04999804066,"d":"$204,751"}},{"$f":"'Trial 7'!AY20","v":{"v":204693.1039372998,"d":"$204,693"}},{"$f":"'Trial 7'!AZ20","v":{"v":204634.21034325278,"d":"$204,634"}},{"$f":"SUM('Trial 7'!AO20:AZ20)","v":{"v":2459322.237662777,"d":"$2,459,322"}},{"$f":"'Trial 7'!BB20","v":{"v":204574.25594547973,"d":"$204,574"}},{"$f":"'Trial 7'!BC20","v":{"v":204513.3567300828,"d":"$204,513"}},{"$f":"'Trial 7'!BD20","v":{"v":204451.31771899314,"d":"$204,451"}},{"$f":"'Trial 7'!BE20","v":{"v":204388.5178078602,"d":"$204,389"}},{"$f":"'Trial 7'!BF20","v":{"v":204324.94909375996,"d":"$204,325"}},{"$f":"'Trial 7'!BG20","v":{"v":204260.97556756868,"d":"$204,261"}},{"$f":"'Trial 7'!BH20","v":{"v":204196.33119751202,"d":"$204,196"}},{"$f":"'Trial 7'!BI20","v":{"v":204131.30683716538,"d":"$204,131"}},{"$f":"'Trial 7'!BJ20","v":{"v":204066.14810747685,"d":"$204,066"}},{"$f":"'Trial 7'!BK20","v":{"v":204000.11739562897,"d":"$204,000"}},{"$f":"'Trial 7'!BL20","v":{"v":203933.56276109567,"d":"$203,934"}},{"$f":"'Trial 7'!BM20","v":{"v":203866.31585023858,"d":"$203,866"}},{"$f":"SUM('Trial 7'!BB20:BM20)","v":{"v":2450707.1550128623,"d":"$2,450,707"}},{"$f":"'Trial 7'!BO20","v":{"v":203798.1324719893,"d":"$203,798"}},{"$f":"'Trial 7'!BP20","v":{"v":203729.32815384286,"d":"$203,729"}},{"$f":"'Trial 7'!BQ20","v":{"v":203660.3064712636,"d":"$203,660"}},{"$f":"'Trial 7'!BR20","v":{"v":203590.66852706953,"d":"$203,591"}},{"$f":"'Trial 7'!BS20","v":{"v":203520.06007084032,"d":"$203,520"}},{"$f":"'Trial 7'!BT20","v":{"v":203449.3008645221,"d":"$203,449"}},{"$f":"'Trial 7'!BU20","v":{"v":203378.38326318192,"d":"$203,378"}},{"$f":"'Trial 7'!BV20","v":{"v":203307.50464703536,"d":"$203,308"}},{"$f":"'Trial 7'!BW20","v":{"v":203236.74603525168,"d":"$203,237"}},{"$f":"'Trial 7'!BX20","v":{"v":203165.96315026117,"d":"$203,166"}},{"$f":"'Trial 7'!BY20","v":{"v":203094.49882797457,"d":"$203,094"}},{"$f":"'Trial 7'!BZ20","v":{"v":203023.1721394078,"d":"$203,023"}},{"$f":"SUM('Trial 7'!BO20:BZ20)","v":{"v":2440954.06462264,"d":"$2,440,954"}},{"$f":"'Trial 7'!CB20","v":{"v":202951.2163394175,"d":"$202,951"}},{"$f":"'Trial 7'!CC20","v":{"v":202878.44403001913,"d":"$202,878"}},{"$f":"'Trial 7'!CD20","v":{"v":202804.6668820087,"d":"$202,805"}},{"$f":"'Trial 7'!CE20","v":{"v":202730.55689040272,"d":"$202,731"}},{"$f":"'Trial 7'!CF20","v":{"v":202656.43482009825,"d":"$202,656"}},{"$f":"'Trial 7'!CG20","v":{"v":202582.35641528785,"d":"$202,582"}},{"$f":"'Trial 7'!CH20","v":{"v":202507.33053245998,"d":"$202,507"}},{"$f":"'Trial 7'!CI20","v":{"v":202431.8629359574,"d":"$202,432"}},{"$f":"'Trial 7'!CJ20","v":{"v":202356.45145988627,"d":"$202,356"}},{"$f":"'Trial 7'!CK20","v":{"v":202280.1024734168,"d":"$202,280"}},{"$f":"'Trial 7'!CL20","v":{"v":202203.2052840239,"d":"$202,203"}},{"$f":"'Trial 7'!CM20","v":{"v":202126.81055745247,"d":"$202,127"}},{"$f":"SUM('Trial 7'!CB20:CM20)","v":{"v":2430509.438620431,"d":"$2,430,509"}},{"$f":"'Trial 7'!CO20","v":{"v":202050.82476820736,"d":"$202,051"}},{"$f":"'Trial 7'!CP20","v":{"v":201974.55211445037,"d":"$201,975"}},{"$f":"'Trial 7'!CQ20","v":{"v":201898.42931479923,"d":"$201,898"}},{"$f":"'Trial 7'!CR20","v":{"v":201822.74864340966,"d":"$201,823"}},{"$f":"'Trial 7'!CS20","v":{"v":201746.79355979746,"d":"$201,747"}},{"$f":"'Trial 7'!CT20","v":{"v":201670.82563225424,"d":"$201,671"}},{"$f":"'Trial 7'!CU20","v":{"v":201594.92445165664,"d":"$201,595"}},{"$f":"'Trial 7'!CV20","v":{"v":201518.8460149715,"d":"$201,519"}},{"$f":"'Trial 7'!CW20","v":{"v":201442.5206832348,"d":"$201,443"}},{"$f":"'Trial 7'!CX20","v":{"v":201366.3454060198,"d":"$201,366"}},{"$f":"'Trial 7'!CY20","v":{"v":201289.94986199224,"d":"$201,290"}},{"$f":"'Trial 7'!CZ20","v":{"v":201213.30169975225,"d":"$201,213"}},{"$f":"SUM('Trial 7'!CO20:CZ20)","v":{"v":2419590.062150546,"d":"$2,419,590"}},{"$f":"'Trial 7'!DB20","v":{"v":201135.97298527812,"d":"$201,136"}},{"$f":"'Trial 7'!DC20","v":{"v":201058.05207633445,"d":"$201,058"}},{"$f":"'Trial 7'!DD20","v":{"v":200980.15474534754,"d":"$200,980"}},{"$f":"'Trial 7'!DE20","v":{"v":200902.6661351699,"d":"$200,903"}},{"$f":"'Trial 7'!DF20","v":{"v":200825.40758823327,"d":"$200,825"}},{"$f":"'Trial 7'!DG20","v":{"v":200748.0397410265,"d":"$200,748"}},{"$f":"'Trial 7'!DH20","v":{"v":200670.67582676737,"d":"$200,671"}},{"$f":"'Trial 7'!DI20","v":{"v":200593.2598702048,"d":"$200,593"}},{"$f":"'Trial 7'!DJ20","v":{"v":200515.22123914325,"d":"$200,515"}},{"$f":"'Trial 7'!DK20","v":{"v":200436.5311729632,"d":"$200,437"}},{"$f":"'Trial 7'!DL20","v":{"v":200357.7542170566,"d":"$200,358"}},{"$f":"'Trial 7'!DM20","v":{"v":200278.82934315226,"d":"$200,279"}},{"$f":"SUM('Trial 7'!DB20:DM20)","v":{"v":2408502.5649406775,"d":"$2,408,503"}},{"$f":"'Trial 7'!DO20","v":{"v":200199.27415526935,"d":"$200,199"}},{"$f":"'Trial 7'!DP20","v":{"v":200119.67394183704,"d":"$200,120"}},{"$f":"'Trial 7'!DQ20","v":{"v":200040.05496581635,"d":"$200,040"}},{"$f":"'Trial 7'!DR20","v":{"v":199960.04682895905,"d":"$199,960"}},{"$f":"'Trial 7'!DS20","v":{"v":199879.92820461313,"d":"$199,880"}},{"$f":"'Trial 7'!DT20","v":{"v":199799.68193632292,"d":"$199,800"}},{"$f":"'Trial 7'!DU20","v":{"v":199718.95114238703,"d":"$199,719"}},{"$f":"'Trial 7'!DV20","v":{"v":199638.2839209631,"d":"$199,638"}},{"$f":"'Trial 7'!DW20","v":{"v":199557.1788680898,"d":"$199,557"}},{"$f":"'Trial 7'!DX20","v":{"v":199475.8252561985,"d":"$199,476"}},{"$f":"'Trial 7'!DY20","v":{"v":199394.70191721295,"d":"$199,395"}},{"$f":"'Trial 7'!DZ20","v":{"v":199314.2311199113,"d":"$199,314"}},{"$f":"SUM('Trial 7'!DO20:DZ20)","v":{"v":2397097.8322575805,"d":"$2,397,098"}},{"$f":"'Trial 7'!EB20","v":{"v":199233.1736277472,"d":"$199,233"}},{"$f":"'Trial 7'!EC20","v":{"v":199151.83815866508,"d":"$199,152"}},{"$f":"'Trial 7'!ED20","v":{"v":199070.06501809615,"d":"$199,070"}},{"$f":"'Trial 7'!EE20","v":{"v":198988.68794868168,"d":"$198,989"}},{"$f":"'Trial 7'!EF20","v":{"v":198906.912908438,"d":"$198,907"}},{"$f":"'Trial 7'!EG20","v":{"v":198825.094309081,"d":"$198,825"}},{"$f":"'Trial 7'!EH20","v":{"v":198743.38282345192,"d":"$198,743"}},{"$f":"'Trial 7'!EI20","v":{"v":198661.30467796943,"d":"$198,661"}},{"$f":"'Trial 7'!EJ20","v":{"v":198578.5493115119,"d":"$198,579"}},{"$f":"'Trial 7'!EK20","v":{"v":198495.22820110607,"d":"$198,495"}},{"$f":"'Trial 7'!EL20","v":{"v":198412.1164480712,"d":"$198,412"}},{"$f":"'Trial 7'!EM20","v":{"v":198329.26964427673,"d":"$198,329"}},{"$f":"SUM('Trial 7'!EB20:EM20)","v":{"v":2385395.6230770964,"d":"$2,385,396"}}]
[{"$f":"Labels!B103","v":"Trial 08"},{"$f":"'Trial 8'!B20","v":{"v":206222.0144162289,"d":"$206,222"}},{"$f":"'Trial 8'!C20","v":{"v":206222.0144162289,"d":"$206,222"}},{"$f":"'Trial 8'!D20","v":{"v":206222.0144162289,"d":"$206,222"}},{"$f":"'Trial 8'!E20","v":{"v":206219.16040416012,"d":"$206,219"}},{"$f":"'Trial 8'!F20","v":{"v":206213.9360246636,"d":"$206,214"}},{"$f":"'Trial 8'!G20","v":{"v":206206.54154808781,"d":"$206,207"}},{"$f":"'Trial 8'!H20","v":{"v":206197.1611182786,"d":"$206,197"}},{"$f":"'Trial 8'!I20","v":{"v":206186.38995864708,"d":"$206,186"}},{"$f":"'Trial 8'!J20","v":{"v":206173.79808269243,"d":"$206,174"}},{"$f":"'Trial 8'!K20","v":{"v":206159.2143066755,"d":"$206,159"}},{"$f":"'Trial 8'!L20","v":{"v":206142.97202975114,"d":"$206,143"}},{"$f":"'Trial 8'!M20","v":{"v":206124.46803498743,"d":"$206,124"}},{"$f":"SUM('Trial 8'!B20:M20)","v":{"v":2474289.68475663,"d":"$2,474,290"}},{"$f":"'Trial 8'!O20","v":{"v":206104.42504001877,"d":"$206,104"}},{"$f":"'Trial 8'!P20","v":{"v":206082.18468226006,"d":"$206,082"}},{"$f":"'Trial 8'!Q20","v":{"v":206058.312594537,"d":"$206,058"}},{"$f":"'Trial 8'!R20","v":{"v":206033.33977268508,"d":"$206,033"}},{"$f":"'Trial 8'!S20","v":{"v":206006.43780745647,"d":"$206,006"}},{"$f":"'Trial 8'!T20","v":{"v":205977.38710775485,"d":"$205,977"}},{"$f":"'Trial 8'!U20","v":{"v":205946.97095435267,"d":"$205,947"}},{"$f":"'Trial 8'!V20","v":{"v":205915.09959973887,"d":"$205,915"}},{"$f":"'Trial 8'!W20","v":{"v":205882.35585447948,"d":"$205,882"}},{"$f":"'Trial 8'!X20","v":{"v":205848.1542431011,"d":"$205,848"}},{"$f":"'Trial 8'!Y20","v":{"v":205812.62745588695,"d":"$205,813"}},{"$f":"'Trial 8'!Z20","v":{"v":205776.2726642952,"d":"$205,776"}},{"$f":"SUM('Trial 8'!O20:Z20)","v":{"v":2471443.567776567,"d":"$2,471,444"}},{"$f":"'Trial 8'!AB20","v":{"v":205738.30286075862,"d":"$205,738"}},{"$f":"'Trial 8'!AC20","v":{"v":205698.6067499848,"d":"$205,699"}},{"$f":"'Trial 8'!AD20","v":{"v":205657.4409586845,"d":"$205,657"}},{"$f":"'Trial 8'!AE20","v":{"v":205615.09624690076,"d":"$205,615"}},{"$f":"'Trial 8'!AF20","v":{"v":205571.6384130461,"d":"$205,572"}},{"$f":"'Trial 8'!AG20","v":{"v":205526.84038511934,"d":"$205,527"}},{"$f":"'Trial 8'!AH20","v":{"v":205480.8807498595,"d":"$205,481"}},{"$f":"'Trial 8'!AI20","v":{"v":205433.52713838997,"d":"$205,434"}},{"$f":"'Trial 8'!AJ20","v":{"v":205384.91792203052,"d":"$205,385"}},{"$f":"'Trial 8'!AK20","v":{"v":205335.54721079933,"d":"$205,336"}},{"$f":"'Trial 8'!AL20","v":{"v":205285.38194217716,"d":"$205,285"}},{"$f":"'Trial 8'!AM20","v":{"v":205234.0905726404,"d":"$205,234"}},{"$f":"SUM('Trial 8'!AB20:AM20)","v":{"v":2465962.2711503906,"d":"$2,465,962"}},{"$f":"'Trial 8'!AO20","v":{"v":205181.90544602866,"d":"$205,182"}},{"$f":"'Trial 8'!AP20","v":{"v":205129.28475697362,"d":"$205,129"}},{"$f":"'Trial 8'!AQ20","v":{"v":205076.20139684365,"d":"$205,076"}},{"$f":"'Trial 8'!AR20","v":{"v":205022.61968937187,"d":"$205,023"}},{"$f":"'Trial 8'!AS20","v":{"v":204968.23696358906,"d":"$204,968"}},{"$f":"'Trial 8'!AT20","v":{"v":204913.0577072774,"d":"$204,913"}},{"$f":"'Trial 8'!AU20","v":{"v":204856.69796016245,"d":"$204,857"}},{"$f":"'Trial 8'!AV20","v":{"v":204799.1990688912,"d":"$204,799"}},{"$f":"'Trial 8'!AW20","v":{"v":204740.84361687966,"d":"$204,741"}},{"$f":"'Trial 8'!AX20","v":{"v":204681.9740798406,"d":"$204,682"}},{"$f":"'Trial 8'!AY20","v":{"v":204622.4428938316,"d":"$204,622"}},{"$f":"'Trial 8'!AZ20","v":{"v":204562.30839933435,"d":"$204,562"}},{"$f":"SUM('Trial 8'!AO20:AZ20)","v":{"v":2458554.7719790246,"d":"$2,458,555"}},{"$f":"'Trial 8'!BB20","v":{"v":204501.54002784428,"d":"$204,502"}},{"$f":"'Trial 8'!BC20","v":{"v":204440.297225174,"d":"$204,440"}},{"$f":"'Trial 8'!BD20","v":{"v":204378.52281925126,"d":"$204,379"}},{"$f":"'Trial 8'!BE20","v":{"v":204315.97016812177,"d":"$204,316"}},{"$f":"'Trial 8'!BF20","v":{"v":204253.175408611,"d":"$204,253"}},{"$f":"'Trial 8'!BG20","v":{"v":204190.25588374748,"d":"$204,190"}},{"$f":"'Trial 8'!BH20","v":{"v":204126.90781312474,"d":"$204,127"}},{"$f":"'Trial 8'!BI20","v":{"v":204063.1217236847,"d":"$204,063"}},{"$f":"'Trial 8'!BJ20","v":{"v":203999.17458929145,"d":"$203,999"}},{"$f":"'Trial 8'!BK20","v":{"v":203934.40863883818,"d":"$203,934"}},{"$f":"'Trial 8'!BL20","v":{"v":203869.1102908708,"d":"$203,869"}},{"$f":"'Trial 8'!BM20","v":{"v":203803.51935259157,"d":"$203,804"}},{"$f":"SUM('Trial 8'!BB20:BM20)","v":{"v":2449876.0039411513,"d":"$2,449,876"}},{"$f":"'Trial 8'!BO20","v":{"v":203737.6155373008,"d":"$203,738"}},{"$f":"'Trial 8'!BP20","v":{"v":203671.42584389145,"d":"$203,671"}},{"$f":"'Trial 8'!BQ20","v":{"v":203604.67234943595,"d":"$203,605"}},{"$f":"'Trial 8'!BR20","v":{"v":203537.70290703347,"d":"$203,538"}},{"$f":"'Trial 8'!BS20","v":{"v":203470.73716737868,"d":"$203,471"}},{"$f":"'Trial 8'!BT20","v":{"v":203403.63113099834,"d":"$203,404"}},{"$f":"'Trial 8'!BU20","v":{"v":203336.69685471093,"d":"$203,337"}},{"$f":"'Trial 8'!BV20","v":{"v":203269.5072395357,"d":"$203,270"}},{"$f":"'Trial 8'!BW20","v":{"v":203201.8823513018,"d":"$203,202"}},{"$f":"'Trial 8'!BX20","v":{"v":203133.98542961382,"d":"$203,134"}},{"$f":"'Trial 8'!BY20","v":{"v":203066.13809988645,"d":"$203,066"}},{"$f":"'Trial 8'!BZ20","v":{"v":202998.17107904458,"d":"$202,998"}},{"$f":"SUM('Trial 8'!BO20:BZ20)","v":{"v":2440432.1659901324,"d":"$2,440,432"}},{"$f":"'Trial 8'!CB20","v":{"v":202930.07820772493,"d":"$202,930"}},{"$f":"'Trial 8'!CC20","v":{"v":202861.4564494783,"d":"$202,861"}},{"$f":"'Trial 8'!CD20","v":{"v":202791.9456289238,"d":"$202,792"}},{"$f":"'Trial 8'!CE20","v":{"v":202721.89136842484,"d":"$202,722"}},{"$f":"'Trial 8'!CF20","v":{"v":202651.4862801615,"d":"$202,651"}},{"$f":"'Trial 8'!CG20","v":{"v":202580.33971520382,"d":"$202,580"}},{"$f":"'Trial 8'!CH20","v":{"v":202508.94678592507,"d":"$202,509"}},{"$f":"'Trial 8'!CI20","v":{"v":202437.1710354674,"d":"$202,437"}},{"$f":"'Trial 8'!CJ20","v":{"v":202365.72608086444,"d":"$202,366"}},{"$f":"'Trial 8'!CK20","v":{"v":202293.98475730314,"d":"$202,294"}},{"$f":"'Trial 8'!CL20","v":{"v":202221.68127102355,"d":"$202,222"}},{"$f":"'Trial 8'!CM20","v":{"v":202149.2854160096,"d":"$202,149"}},{"$f":"SUM('Trial 8'!CB20:CM20)","v":{"v":2430513.992996511,"d":"$2,430,514"}},{"$f":"'Trial 8'!CO20","v":{"v":202076.91508659368,"d":"$202,077"}},{"$f":"'Trial 8'!CP20","v":{"v":202003.87791548762,"d":"$202,004"}},{"$f":"'Trial 8'!CQ20","v":{"v":201931.02317410396,"d":"$201,931"}},{"$f":"'Trial 8'!CR20","v":{"v":201858.3642152622,"d":"$201,858"}},{"$f":"'Trial 8'!CS20","v":{"v":201785.50883925313,"d":"$201,786"}},{"$f":"'Trial 8'!CT20","v":{"v":201712.60915120866,"d":"$201,713"}},{"$f":"'Trial 8'!CU20","v":{"v":201639.63368794761,"d":"$201,640"}},{"$f":"'Trial 8'!CV20","v":{"v":201565.66476475136,"d":"$201,566"}},{"$f":"'Trial 8'!CW20","v":{"v":201491.39800921653,"d":"$201,491"}},{"$f":"'Trial 8'!CX20","v":{"v":201417.2784004754,"d":"$201,417"}},{"$f":"'Trial 8'!CY20","v":{"v":201342.9122447586,"d":"$201,343"}},{"$f":"'Trial 8'!CZ20","v":{"v":201267.65467757298,"d":"$201,268"}},{"$f":"SUM('Trial 8'!CO20:CZ20)","v":{"v":2420092.840166632,"d":"$2,420,093"}},{"$f":"'Trial 8'!DB20","v":{"v":201192.61249375658,"d":"$201,193"}},{"$f":"'Trial 8'!DC20","v":{"v":201118.02899097058,"d":"$201,118"}},{"$f":"'Trial 8'!DD20","v":{"v":201042.92922638057,"d":"$201,043"}},{"$f":"'Trial 8'!DE20","v":{"v":200968.28354422492,"d":"$200,968"}},{"$f":"'Trial 8'!DF20","v":{"v":200893.17891643444,"d":"$200,893"}},{"$f":"'Trial 8'!DG20","v":{"v":200817.46673827208,"d":"$200,817"}},{"$f":"'Trial 8'!DH20","v":{"v":200741.43624297433,"d":"$200,741"}},{"$f":"'Trial 8'!DI20","v":{"v":200665.24651878906,"d":"$200,665"}},{"$f":"'Trial 8'!DJ20","v":{"v":200588.65122916226,"d":"$200,589"}},{"$f":"'Trial 8'!DK20","v":{"v":200511.8271028649,"d":"$200,512"}},{"$f":"'Trial 8'!DL20","v":{"v":200434.41604484248,"d":"$200,434"}},{"$f":"'Trial 8'!DM20","v":{"v":200357.47291966097,"d":"$200,357"}},{"$f":"SUM('Trial 8'!DB20:DM20)","v":{"v":2409331.5499683334,"d":"$2,409,332"}},{"$f":"'Trial 8'!DO20","v":{"v":200280.20380664422,"d":"$200,280"}},{"$f":"'Trial 8'!DP20","v":{"v":200203.32672765243,"d":"$200,203"}},{"$f":"'Trial 8'!DQ20","v":{"v":200126.1892531812,"d":"$200,126"}},{"$f":"'Trial 8'!DR20","v":{"v":200048.3677811876,"d":"$200,048"}},{"$f":"'Trial 8'!DS20","v":{"v":199970.01241808417,"d":"$199,970"}},{"$f":"'Trial 8'!DT20","v":{"v":199892.12373608432,"d":"$199,892"}},{"$f":"'Trial 8'!DU20","v":{"v":199814.5794391456,"d":"$199,815"}},{"$f":"'Trial 8'!DV20","v":{"v":199736.73650549748,"d":"$199,737"}},{"$f":"'Trial 8'!DW20","v":{"v":199659.23804206887,"d":"$199,659"}},{"$f":"'Trial 8'!DX20","v":{"v":199582.0169797563,"d":"$199,582"}},{"$f":"'Trial 8'!DY20","v":{"v":199504.70640692554,"d":"$199,505"}},{"$f":"'Trial 8'!DZ20","v":{"v":199427.46581144957,"d":"$199,427"}},{"$f":"SUM('Trial 8'!DO20:DZ20)","v":{"v":2398244.9669076772,"d":"$2,398,245"}},{"$f":"'Trial 8'!EB20","v":{"v":199349.58782505264,"d":"$199,350"}},{"$f":"'Trial 8'!EC20","v":{"v":199271.72261705788,"d":"$199,272"}},{"$f":"'Trial 8'!ED20","v":{"v":199193.7323403399,"d":"$199,194"}},{"$f":"'Trial 8'!EE20","v":{"v":199115.07463485247,"d":"$199,115"}},{"$f":"'Trial 8'!EF20","v":{"v":199035.80708686996,"d":"$199,036"}},{"$f":"'Trial 8'!EG20","v":{"v":198956.65766843793,"d":"$198,957"}},{"$f":"'Trial 8'!EH20","v":{"v":198877.21130758946,"d":"$198,877"}},{"$f":"'Trial 8'!EI20","v":{"v":198797.41121607882,"d":"$198,797"}},{"$f":"'Trial 8'!EJ20","v":{"v":198717.57106231528,"d":"$198,718"}},{"$f":"'Trial 8'!EK20","v":{"v":198638.10878402274,"d":"$198,638"}},{"$f":"'Trial 8'!EL20","v":{"v":198558.26069468132,"d":"$198,558"}},{"$f":"'Trial 8'!EM20","v":{"v":198478.38619870297,"d":"$198,478"}},{"$f":"SUM('Trial 8'!EB20:EM20)","v":{"v":2386989.531436001,"d":"$2,386,990"}}]
[{"$f":"Labels!C95","v":"Total"},{"$f":"SUM('Trial 1'!B20,'Trial 2'!B20,'Trial 3'!B20,'Trial 4'!B20,'Trial 5'!B20,'Trial 6'!B20,'Trial 7'!B20,'Trial 8'!B20)","v":{"v":1649776.1153298314,"d":"$1,649,776"}},{"$f":"SUM('Trial 1'!C20,'Trial 2'!C20,'Trial 3'!C20,'Trial 4'!C20,'Trial 5'!C20,'Trial 6'!C20,'Trial 7'!C20,'Trial 8'!C20)","v":{"v":1649776.1153298314,"d":"$1,649,776"}},{"$f":"SUM('Trial 1'!D20,'Trial 2'!D20,'Trial 3'!D20,'Trial 4'!D20,'Trial 5'!D20,'Trial 6'!D20,'Trial 7'!D20,'Trial 8'!D20)","v":{"v":1649776.1153298314,"d":"$1,649,776"}},{"$f":"SUM('Trial 1'!E20,'Trial 2'!E20,'Trial 3'!E20,'Trial 4'!E20,'Trial 5'!E20,'Trial 6'!E20,'Trial 7'!E20,'Trial 8'!E20)","v":{"v":1649755.2037549787,"d":"$1,649,755"}},{"$f":"SUM('Trial 1'!F20,'Trial 2'!F20,'Trial 3'!F20,'Trial 4'!F20,'Trial 5'!F20,'Trial 6'!F20,'Trial 7'!F20,'Trial 8'!F20)","v":{"v":1649715.3175434181,"d":"$1,649,715"}},{"$f":"SUM('Trial 1'!G20,'Trial 2'!G20,'Trial 3'!G20,'Trial 4'!G20,'Trial 5'!G20,'Trial 6'!G20,'Trial 7'!G20,'Trial 8'!G20)","v":{"v":1649658.7393923863,"d":"$1,649,659"}},{"$f":"SUM('Trial 1'!H20,'Trial 2'!H20,'Trial 3'!H20,'Trial 4'!H20,'Trial 5'!H20,'Trial 6'!H20,'Trial 7'!H20,'Trial 8'!H20)","v":{"v":1649586.650156073,"d":"$1,649,587"}},{"$f":"SUM('Trial 1'!I20,'Trial 2'!I20,'Trial 3'!I20,'Trial 4'!I20,'Trial 5'!I20,'Trial 6'!I20,'Trial 7'!I20,'Trial 8'!I20)","v":{"v":1649500.4080039042,"d":"$1,649,500"}},{"$f":"SUM('Trial 1'!J20,'Trial 2'!J20,'Trial 3'!J20,'Trial 4'!J20,'Trial 5'!J20,'Trial 6'!J20,'Trial 7'!J20,'Trial 8'!J20)","v":{"v":1649399.181842594,"d":"$1,649,399"}},{"$f":"SUM('Trial 1'!K20,'Trial 2'!K20,'Trial 3'!K20,'Trial 4'!K20,'Trial 5'!K20,'Trial 6'!K20,'Trial 7'!K20,'Trial 8'!K20)","v":{"v":1649281.7306578388,"d":"$1,649,282"}},{"$f":"SUM('Trial 1'!L20,'Trial 2'!L20,'Trial 3'!L20,'Trial 4'!L20,'Trial 5'!L20,'Trial 6'!L20,'Trial 7'!L20,'Trial 8'!L20)","v":{"v":1649149.2945388572,"d":"$1,649,149"}},{"$f":"SUM('Trial 1'!M20,'Trial 2'!M20,'Trial 3'!M20,'Trial 4'!M20,'Trial 5'!M20,'Trial 6'!M20,'Trial 7'!M20,'Trial 8'!M20)","v":{"v":1649002.4263804166,"d":"$1,649,002"}},{"$f":"SUM(B166:M166)","v":{"v":19794377.29825996,"d":"$19,794,377"}},{"$f":"SUM('Trial 1'!O20,'Trial 2'!O20,'Trial 3'!O20,'Trial 4'!O20,'Trial 5'!O20,'Trial 6'!O20,'Trial 7'!O20,'Trial 8'!O20)","v":{"v":1648841.5390003603,"d":"$1,648,842"}},{"$f":"SUM('Trial 1'!P20,'Trial 2'!P20,'Trial 3'!P20,'Trial 4'!P20,'Trial 5'!P20,'Trial 6'!P20,'Trial 7'!P20,'Trial 8'!P20)","v":{"v":1648666.834820909,"d":"$1,648,667"}},{"$f":"SUM('Trial 1'!Q20,'Trial 2'!Q20,'Trial 3'!Q20,'Trial 4'!Q20,'Trial 5'!Q20,'Trial 6'!Q20,'Trial 7'!Q20,'Trial 8'!Q20)","v":{"v":1648478.1500106317,"d":"$1,648,478"}},{"$f":"SUM('Trial 1'!R20,'Trial 2'!R20,'Trial 3'!R20,'Trial 4'!R20,'Trial 5'!R20,'Trial 6'!R20,'Trial 7'!R20,'Trial 8'!R20)","v":{"v":1648276.9243568722,"d":"$1,648,277"}},{"$f":"SUM('Trial 1'!S20,'Trial 2'!S20,'Trial 3'!S20,'Trial 4'!S20,'Trial 5'!S20,'Trial 6'!S20,'Trial 7'!S20,'Trial 8'!S20)","v":{"v":1648063.2065561987,"d":"$1,648,063"}},{"$f":"SUM('Trial 1'!T20,'Trial 2'!T20,'Trial 3'!T20,'Trial 4'!T20,'Trial 5'!T20,'Trial 6'!T20,'Trial 7'!T20,'Trial 8'!T20)","v":{"v":1647837.753148391,"d":"$1,647,838"}},{"$f":"SUM('Trial 1'!U20,'Trial 2'!U20,'Trial 3'!U20,'Trial 4'!U20,'Trial 5'!U20,'Trial 6'!U20,'Trial 7'!U20,'Trial 8'!U20)","v":{"v":1647601.3092048892,"d":"$1,647,601"}},{"$f":"SUM('Trial 1'!V20,'Trial 2'!V20,'Trial 3'!V20,'Trial 4'!V20,'Trial 5'!V20,'Trial 6'!V20,'Trial 7'!V20,'Trial 8'!V20)","v":{"v":1647350.6534195186,"d":"$1,647,351"}},{"$f":"SUM('Trial 1'!W20,'Trial 2'!W20,'Trial 3'!W20,'Trial 4'!W20,'Trial 5'!W20,'Trial 6'!W20,'Trial 7'!W20,'Trial 8'!W20)","v":{"v":1647089.1874280106,"d":"$1,647,089"}},{"$f":"SUM('Trial 1'!X20,'Trial 2'!X20,'Trial 3'!X20,'Trial 4'!X20,'Trial 5'!X20,'Trial 6'!X20,'Trial 7'!X20,'Trial 8'!X20)","v":{"v":1646815.105729494,"d":"$1,646,815"}},{"$f":"SUM('Trial 1'!Y20,'Trial 2'!Y20,'Trial 3'!Y20,'Trial 4'!Y20,'Trial 5'!Y20,'Trial 6'!Y20,'Trial 7'!Y20,'Trial 8'!Y20)","v":{"v":1646529.0147757793,"d":"$1,646,529"}},{"$f":"SUM('Trial 1'!Z20,'Trial 2'!Z20,'Trial 3'!Z20,'Trial 4'!Z20,'Trial 5'!Z20,'Trial 6'!Z20,'Trial 7'!Z20,'Trial 8'!Z20)","v":{"v":1646233.7325144918,"d":"$1,646,234"}},{"$f":"SUM(O166:Z166)","v":{"v":19771783.41096555,"d":"$19,771,783"}},{"$f":"SUM('Trial 1'!AB20,'Trial 2'!AB20,'Trial 3'!AB20,'Trial 4'!AB20,'Trial 5'!AB20,'Trial 6'!AB20,'Trial 7'!AB20,'Trial 8'!AB20)","v":{"v":1645927.5314660035,"d":"$1,645,928"}},{"$f":"SUM('Trial 1'!AC20,'Trial 2'!AC20,'Trial 3'!AC20,'Trial 4'!AC20,'Trial 5'!AC20,'Trial 6'!AC20,'Trial 7'!AC20,'Trial 8'!AC20)","v":{"v":1645610.8954389675,"d":"$1,645,611"}},{"$f":"SUM('Trial 1'!AD20,'Trial 2'!AD20,'Trial 3'!AD20,'Trial 4'!AD20,'Trial 5'!AD20,'Trial 6'!AD20,'Trial 7'!AD20,'Trial 8'!AD20)","v":{"v":1645282.1221298988,"d":"$1,645,282"}},{"$f":"SUM('Trial 1'!AE20,'Trial 2'!AE20,'Trial 3'!AE20,'Trial 4'!AE20,'Trial 5'!AE20,'Trial 6'!AE20,'Trial 7'!AE20,'Trial 8'!AE20)","v":{"v":1644943.8575266127,"d":"$1,644,944"}},{"$f":"SUM('Trial 1'!AF20,'Trial 2'!AF20,'Trial 3'!AF20,'Trial 4'!AF20,'Trial 5'!AF20,'Trial 6'!AF20,'Trial 7'!AF20,'Trial 8'!AF20)","v":{"v":1644597.256833295,"d":"$1,644,597"}},{"$f":"SUM('Trial 1'!AG20,'Trial 2'!AG20,'Trial 3'!AG20,'Trial 4'!AG20,'Trial 5'!AG20,'Trial 6'!AG20,'Trial 7'!AG20,'Trial 8'!AG20)","v":{"v":1644241.9027063805,"d":"$1,644,242"}},{"$f":"SUM('Trial 1'!AH20,'Trial 2'!AH20,'Trial 3'!AH20,'Trial 4'!AH20,'Trial 5'!AH20,'Trial 6'!AH20,'Trial 7'!AH20,'Trial 8'!AH20)","v":{"v":1643877.750061776,"d":"$1,643,878"}},{"$f":"SUM('Trial 1'!AI20,'Trial 2'!AI20,'Trial 3'!AI20,'Trial 4'!AI20,'Trial 5'!AI20,'Trial 6'!AI20,'Trial 7'!AI20,'Trial 8'!AI20)","v":{"v":1643503.5704641428,"d":"$1,643,504"}},{"$f":"SUM('Trial 1'!AJ20,'Trial 2'!AJ20,'Trial 3'!AJ20,'Trial 4'!AJ20,'Trial 5'!AJ20,'Trial 6'!AJ20,'Trial 7'!AJ20,'Trial 8'!AJ20)","v":{"v":1643121.700846108,"d":"$1,643,122"}},{"$f":"SUM('Trial 1'!AK20,'Trial 2'!AK20,'Trial 3'!AK20,'Trial 4'!AK20,'Trial 5'!AK20,'Trial 6'!AK20,'Trial 7'!AK20,'Trial 8'!AK20)","v":{"v":1642733.2020622294,"d":"$1,642,733"}},{"$f":"SUM('Trial 1'!AL20,'Trial 2'!AL20,'Trial 3'!AL20,'Trial 4'!AL20,'Trial 5'!AL20,'Trial 6'!AL20,'Trial 7'!AL20,'Trial 8'!AL20)","v":{"v":1642335.245059784,"d":"$1,642,335"}},{"$f":"SUM('Trial 1'!AM20,'Trial 2'!AM20,'Trial 3'!AM20,'Trial 4'!AM20,'Trial 5'!AM20,'Trial 6'!AM20,'Trial 7'!AM20,'Trial 8'!AM20)","v":{"v":1641929.9178844923,"d":"$1,641,930"}},{"$f":"SUM(AB166:AM166)","v":{"v":19728104.95247969,"d":"$19,728,105"}},{"$f":"SUM('Trial 1'!AO20,'Trial 2'!AO20,'Trial 3'!AO20,'Trial 4'!AO20,'Trial 5'!AO20,'Trial 6'!AO20,'Trial 7'!AO20,'Trial 8'!AO20)","v":{"v":1641517.8387241033,"d":"$1,641,518"}},{"$f":"SUM('Trial 1'!AP20,'Trial 2'!AP20,'Trial 3'!AP20,'Trial 4'!AP20,'Trial 5'!AP20,'Trial 6'!AP20,'Trial 7'!AP20,'Trial 8'!AP20)","v":{"v":1641099.5281941986,"d":"$1,641,100"}},{"$f":"SUM('Trial 1'!AQ20,'Trial 2'!AQ20,'Trial 3'!AQ20,'Trial 4'!AQ20,'Trial 5'!AQ20,'Trial 6'!AQ20,'Trial 7'!AQ20,'Trial 8'!AQ20)","v":{"v":1640673.2465150456,"d":"$1,640,673"}},{"$f":"SUM('Trial 1'!AR20,'Trial 2'!AR20,'Trial 3'!AR20,'Trial 4'!AR20,'Trial 5'!AR20,'Trial 6'!AR20,'Trial 7'!AR20,'Trial 8'!AR20)","v":{"v":1640240.2466200031,"d":"$1,640,240"}},{"$f":"SUM('Trial 1'!AS20,'Trial 2'!AS20,'Trial 3'!AS20,'Trial 4'!AS20,'Trial 5'!AS20,'Trial 6'!AS20,'Trial 7'!AS20,'Trial 8'!AS20)","v":{"v":1639801.8721710553,"d":"$1,639,802"}},{"$f":"SUM('Trial 1'!AT20,'Trial 2'!AT20,'Trial 3'!AT20,'Trial 4'!AT20,'Trial 5'!AT20,'Trial 6'!AT20,'Trial 7'!AT20,'Trial 8'!AT20)","v":{"v":1639356.156336564,"d":"$1,639,356"}},{"$f":"SUM('Trial 1'!AU20,'Trial 2'!AU20,'Trial 3'!AU20,'Trial 4'!AU20,'Trial 5'!AU20,'Trial 6'!AU20,'Trial 7'!AU20,'Trial 8'!AU20)","v":{"v":1638904.0367866035,"d":"$1,638,904"}},{"$f":"SUM('Trial 1'!AV20,'Trial 2'!AV20,'Trial 3'!AV20,'Trial 4'!AV20,'Trial 5'!AV20,'Trial 6'!AV20,'Trial 7'!AV20,'Trial 8'!AV20)","v":{"v":1638446.901903422,"d":"$1,638,447"}},{"$f":"SUM('Trial 1'!AW20,'Trial 2'!AW20,'Trial 3'!AW20,'Trial 4'!AW20,'Trial 5'!AW20,'Trial 6'!AW20,'Trial 7'!AW20,'Trial 8'!AW20)","v":{"v":1637983.701149071,"d":"$1,637,984"}},{"$f":"SUM('Trial 1'!AX20,'Trial 2'!AX20,'Trial 3'!AX20,'Trial 4'!AX20,'Trial 5'!AX20,'Trial 6'!AX20,'Trial 7'!AX20,'Trial 8'!AX20)","v":{"v":1637514.2628844895,"d":"$1,637,514"}},{"$f":"SUM('Trial 1'!AY20,'Trial 2'!AY20,'Trial 3'!AY20,'Trial 4'!AY20,'Trial 5'!AY20,'Trial 6'!AY20,'Trial 7'!AY20,'Trial 8'!AY20)","v":{"v":1637039.3299696827,"d":"$1,637,039"}},{"$f":"SUM('Trial 1'!AZ20,'Trial 2'!AZ20,'Trial 3'!AZ20,'Trial 4'!AZ20,'Trial 5'!AZ20,'Trial 6'!AZ20,'Trial 7'!AZ20,'Trial 8'!AZ20)","v":{"v":1636557.7418055309,"d":"$1,636,558"}},{"$f":"SUM(AO166:AZ166)","v":{"v":19669134.86305977,"d":"$19,669,135"}},{"$f":"SUM('Trial 1'!BB20,'Trial 2'!BB20,'Trial 3'!BB20,'Trial 4'!BB20,'Trial 5'!BB20,'Trial 6'!BB20,'Trial 7'!BB20,'Trial 8'!BB20)","v":{"v":1636070.4611655385,"d":"$1,636,070"}},{"$f":"SUM('Trial 1'!BC20,'Trial 2'!BC20,'Trial 3'!BC20,'Trial 4'!BC20,'Trial 5'!BC20,'Trial 6'!BC20,'Trial 7'!BC20,'Trial 8'!BC20)","v":{"v":1635578.2105748525,"d":"$1,635,578"}},{"$f":"SUM('Trial 1'!BD20,'Trial 2'!BD20,'Trial 3'!BD20,'Trial 4'!BD20,'Trial 5'!BD20,'Trial 6'!BD20,'Trial 7'!BD20,'Trial 8'!BD20)","v":{"v":1635079.4606406284,"d":"$1,635,079"}},{"$f":"SUM('Trial 1'!BE20,'Trial 2'!BE20,'Trial 3'!BE20,'Trial 4'!BE20,'Trial 5'!BE20,'Trial 6'!BE20,'Trial 7'!BE20,'Trial 8'!BE20)","v":{"v":1634574.602974472,"d":"$1,634,575"}},{"$f":"SUM('Trial 1'!BF20,'Trial 2'!BF20,'Trial 3'!BF20,'Trial 4'!BF20,'Trial 5'!BF20,'Trial 6'!BF20,'Trial 7'!BF20,'Trial 8'!BF20)","v":{"v":1634064.7068941554,"d":"$1,634,065"}},{"$f":"SUM('Trial 1'!BG20,'Trial 2'!BG20,'Trial 3'!BG20,'Trial 4'!BG20,'Trial 5'!BG20,'Trial 6'!BG20,'Trial 7'!BG20,'Trial 8'!BG20)","v":{"v":1633550.3015179366,"d":"$1,633,550"}},{"$f":"SUM('Trial 1'!BH20,'Trial 2'!BH20,'Trial 3'!BH20,'Trial 4'!BH20,'Trial 5'!BH20,'Trial 6'!BH20,'Trial 7'!BH20,'Trial 8'!BH20)","v":{"v":1633031.150281946,"d":"$1,633,031"}},{"$f":"SUM('Trial 1'!BI20,'Trial 2'!BI20,'Trial 3'!BI20,'Trial 4'!BI20,'Trial 5'!BI20,'Trial 6'!BI20,'Trial 7'!BI20,'Trial 8'!BI20)","v":{"v":1632508.1670663038,"d":"$1,632,508"}},{"$f":"SUM('Trial 1'!BJ20,'Trial 2'!BJ20,'Trial 3'!BJ20,'Trial 4'!BJ20,'Trial 5'!BJ20,'Trial 6'!BJ20,'Trial 7'!BJ20,'Trial 8'!BJ20)","v":{"v":1631981.4589932463,"d":"$1,631,981"}},{"$f":"SUM('Trial 1'!BK20,'Trial 2'!BK20,'Trial 3'!BK20,'Trial 4'!BK20,'Trial 5'!BK20,'Trial 6'!BK20,'Trial 7'!BK20,'Trial 8'!BK20)","v":{"v":1631449.3154470827,"d":"$1,631,449"}},{"$f":"SUM('Trial 1'!BL20,'Trial 2'!BL20,'Trial 3'!BL20,'Trial 4'!BL20,'Trial 5'!BL20,'Trial 6'!BL20,'Trial 7'!BL20,'Trial 8'!BL20)","v":{"v":1630912.63739888,"d":"$1,630,913"}},{"$f":"SUM('Trial 1'!BM20,'Trial 2'!BM20,'Trial 3'!BM20,'Trial 4'!BM20,'Trial 5'!BM20,'Trial 6'!BM20,'Trial 7'!BM20,'Trial 8'!BM20)","v":{"v":1630372.8116840494,"d":"$1,630,373"}},{"$f":"SUM(BB166:BM166)","v":{"v":19599173.284639094,"d":"$19,599,173"}},{"$f":"SUM('Trial 1'!BO20,'Trial 2'!BO20,'Trial 3'!BO20,'Trial 4'!BO20,'Trial 5'!BO20,'Trial 6'!BO20,'Trial 7'!BO20,'Trial 8'!BO20)","v":{"v":1629828.9137310437,"d":"$1,629,829"}},{"$f":"SUM('Trial 1'!BP20,'Trial 2'!BP20,'Trial 3'!BP20,'Trial 4'!BP20,'Trial 5'!BP20,'Trial 6'!BP20,'Trial 7'!BP20,'Trial 8'!BP20)","v":{"v":1629282.102700491,"d":"$1,629,282"}},{"$f":"SUM('Trial 1'!BQ20,'Trial 2'!BQ20,'Trial 3'!BQ20,'Trial 4'!BQ20,'Trial 5'!BQ20,'Trial 6'!BQ20,'Trial 7'!BQ20,'Trial 8'!BQ20)","v":{"v":1628731.5872048864,"d":"$1,628,732"}},{"$f":"SUM('Trial 1'!BR20,'Trial 2'!BR20,'Trial 3'!BR20,'Trial 4'!BR20,'Trial 5'!BR20,'Trial 6'!BR20,'Trial 7'!BR20,'Trial 8'!BR20)","v":{"v":1628177.3748366318,"d":"$1,628,177"}},{"$f":"SUM('Trial 1'!BS20,'Trial 2'!BS20,'Trial 3'!BS20,'Trial 4'!BS20,'Trial 5'!BS20,'Trial 6'!BS20,'Trial 7'!BS20,'Trial 8'!BS20)","v":{"v":1627620.1499186167,"d":"$1,627,620"}},{"$f":"SUM('Trial 1'!BT20,'Trial 2'!BT20,'Trial 3'!BT20,'Trial 4'!BT20,'Trial 5'!BT20,'Trial 6'!BT20,'Trial 7'!BT20,'Trial 8'!BT20)","v":{"v":1627060.9599616746,"d":"$1,627,061"}},{"$f":"SUM('Trial 1'!BU20,'Trial 2'!BU20,'Trial 3'!BU20,'Trial 4'!BU20,'Trial 5'!BU20,'Trial 6'!BU20,'Trial 7'!BU20,'Trial 8'!BU20)","v":{"v":1626499.5519801998,"d":"$1,626,500"}},{"$f":"SUM('Trial 1'!BV20,'Trial 2'!BV20,'Trial 3'!BV20,'Trial 4'!BV20,'Trial 5'!BV20,'Trial 6'!BV20,'Trial 7'!BV20,'Trial 8'!BV20)","v":{"v":1625934.453761887,"d":"$1,625,934"}},{"$f":"SUM('Trial 1'!BW20,'Trial 2'!BW20,'Trial 3'!BW20,'Trial 4'!BW20,'Trial 5'!BW20,'Trial 6'!BW20,'Trial 7'!BW20,'Trial 8'!BW20)","v":{"v":1625368.0952095052,"d":"$1,625,368"}},{"$f":"SUM('Trial 1'!BX20,'Trial 2'!BX20,'Trial 3'!BX20,'Trial 4'!BX20,'Trial 5'!BX20,'Trial 6'!BX20,'Trial 7'!BX20,'Trial 8'!BX20)","v":{"v":1624798.0527179164,"d":"$1,624,798"}},{"$f":"SUM('Trial 1'!BY20,'Trial 2'!BY20,'Trial 3'!BY20,'Trial 4'!BY20,'Trial 5'!BY20,'Trial 6'!BY20,'Trial 7'!BY20,'Trial 8'!BY20)","v":{"v":1624225.022911488,"d":"$1,624,225"}},{"$f":"SUM('Trial 1'!BZ20,'Trial 2'!BZ20,'Trial 3'!BZ20,'Trial 4'!BZ20,'Trial 5'!BZ20,'Trial 6'!BZ20,'Trial 7'!BZ20,'Trial 8'!BZ20)","v":{"v":1623650.6125861476,"d":"$1,623,651"}},{"$f":"SUM(BO166:BZ166)","v":{"v":19521176.87752049,"d":"$19,521,177"}},{"$f":"SUM('Trial 1'!CB20,'Trial 2'!CB20,'Trial 3'!CB20,'Trial 4'!CB20,'Trial 5'!CB20,'Trial 6'!CB20,'Trial 7'!CB20,'Trial 8'!CB20)","v":{"v":1623072.665142558,"d":"$1,623,073"}},{"$f":"SUM('Trial 1'!CC20,'Trial 2'!CC20,'Trial 3'!CC20,'Trial 4'!CC20,'Trial 5'!CC20,'Trial 6'!CC20,'Trial 7'!CC20,'Trial 8'!CC20)","v":{"v":1622493.2452933856,"d":"$1,622,493"}},{"$f":"SUM('Trial 1'!CD20,'Trial 2'!CD20,'Trial 3'!CD20,'Trial 4'!CD20,'Trial 5'!CD20,'Trial 6'!CD20,'Trial 7'!CD20,'Trial 8'!CD20)","v":{"v":1621911.4190508116,"d":"$1,621,911"}},{"$f":"SUM('Trial 1'!CE20,'Trial 2'!CE20,'Trial 3'!CE20,'Trial 4'!CE20,'Trial 5'!CE20,'Trial 6'!CE20,'Trial 7'!CE20,'Trial 8'!CE20)","v":{"v":1621326.9637518104,"d":"$1,621,327"}},{"$f":"SUM('Trial 1'!CF20,'Trial 2'!CF20,'Trial 3'!CF20,'Trial 4'!CF20,'Trial 5'!CF20,'Trial 6'!CF20,'Trial 7'!CF20,'Trial 8'!CF20)","v":{"v":1620739.7551254085,"d":"$1,620,740"}},{"$f":"SUM('Trial 1'!CG20,'Trial 2'!CG20,'Trial 3'!CG20,'Trial 4'!CG20,'Trial 5'!CG20,'Trial 6'!CG20,'Trial 7'!CG20,'Trial 8'!CG20)","v":{"v":1620150.930884098,"d":"$1,620,151"}},{"$f":"SUM('Trial 1'!CH20,'Trial 2'!CH20,'Trial 3'!CH20,'Trial 4'!CH20,'Trial 5'!CH20,'Trial 6'!CH20,'Trial 7'!CH20,'Trial 8'!CH20)","v":{"v":1619558.928907028,"d":"$1,619,559"}},{"$f":"SUM('Trial 1'!CI20,'Trial 2'!CI20,'Trial 3'!CI20,'Trial 4'!CI20,'Trial 5'!CI20,'Trial 6'!CI20,'Trial 7'!CI20,'Trial 8'!CI20)","v":{"v":1618964.6700744699,"d":"$1,618,965"}},{"$f":"SUM('Trial 1'!CJ20,'Trial 2'!CJ20,'Trial 3'!CJ20,'Trial 4'!CJ20,'Trial 5'!CJ20,'Trial 6'!CJ20,'Trial 7'!CJ20,'Trial 8'!CJ20)","v":{"v":1618370.8840012327,"d":"$1,618,371"}},{"$f":"SUM('Trial 1'!CK20,'Trial 2'!CK20,'Trial 3'!CK20,'Trial 4'!CK20,'Trial 5'!CK20,'Trial 6'!CK20,'Trial 7'!CK20,'Trial 8'!CK20)","v":{"v":1617775.3964910284,"d":"$1,617,775"}},{"$f":"SUM('Trial 1'!CL20,'Trial 2'!CL20,'Trial 3'!CL20,'Trial 4'!CL20,'Trial 5'!CL20,'Trial 6'!CL20,'Trial 7'!CL20,'Trial 8'!CL20)","v":{"v":1617178.7834508144,"d":"$1,617,179"}},{"$f":"SUM('Trial 1'!CM20,'Trial 2'!CM20,'Trial 3'!CM20,'Trial 4'!CM20,'Trial 5'!CM20,'Trial 6'!CM20,'Trial 7'!CM20,'Trial 8'!CM20)","v":{"v":1616580.7019735666,"d":"$1,616,581"}},{"$f":"SUM(CB166:CM166)","v":{"v":19438124.34414621,"d":"$19,438,124"}},{"$f":"SUM('Trial 1'!CO20,'Trial 2'!CO20,'Trial 3'!CO20,'Trial 4'!CO20,'Trial 5'!CO20,'Trial 6'!CO20,'Trial 7'!CO20,'Trial 8'!CO20)","v":{"v":1615982.4366880222,"d":"$1,615,982"}},{"$f":"SUM('Trial 1'!CP20,'Trial 2'!CP20,'Trial 3'!CP20,'Trial 4'!CP20,'Trial 5'!CP20,'Trial 6'!CP20,'Trial 7'!CP20,'Trial 8'!CP20)","v":{"v":1615382.0882702188,"d":"$1,615,382"}},{"$f":"SUM('Trial 1'!CQ20,'Trial 2'!CQ20,'Trial 3'!CQ20,'Trial 4'!CQ20,'Trial 5'!CQ20,'Trial 6'!CQ20,'Trial 7'!CQ20,'Trial 8'!CQ20)","v":{"v":1614781.4137530252,"d":"$1,614,781"}},{"$f":"SUM('Trial 1'!CR20,'Trial 2'!CR20,'Trial 3'!CR20,'Trial 4'!CR20,'Trial 5'!CR20,'Trial 6'!CR20,'Trial 7'!CR20,'Trial 8'!CR20)","v":{"v":1614179.6475673167,"d":"$1,614,180"}},{"$f":"SUM('Trial 1'!CS20,'Trial 2'!CS20,'Trial 3'!CS20,'Trial 4'!CS20,'Trial 5'!CS20,'Trial 6'!CS20,'Trial 7'!CS20,'Trial 8'!CS20)","v":{"v":1613576.891824948,"d":"$1,613,577"}},{"$f":"SUM('Trial 1'!CT20,'Trial 2'!CT20,'Trial 3'!CT20,'Trial 4'!CT20,'Trial 5'!CT20,'Trial 6'!CT20,'Trial 7'!CT20,'Trial 8'!CT20)","v":{"v":1612973.0397081668,"d":"$1,612,973"}},{"$f":"SUM('Trial 1'!CU20,'Trial 2'!CU20,'Trial 3'!CU20,'Trial 4'!CU20,'Trial 5'!CU20,'Trial 6'!CU20,'Trial 7'!CU20,'Trial 8'!CU20)","v":{"v":1612367.6015191781,"d":"$1,612,368"}},{"$f":"SUM('Trial 1'!CV20,'Trial 2'!CV20,'Trial 3'!CV20,'Trial 4'!CV20,'Trial 5'!CV20,'Trial 6'!CV20,'Trial 7'!CV20,'Trial 8'!CV20)","v":{"v":1611758.604714601,"d":"$1,611,759"}},{"$f":"SUM('Trial 1'!CW20,'Trial 2'!CW20,'Trial 3'!CW20,'Trial 4'!CW20,'Trial 5'!CW20,'Trial 6'!CW20,'Trial 7'!CW20,'Trial 8'!CW20)","v":{"v":1611147.096125864,"d":"$1,611,147"}},{"$f":"SUM('Trial 1'!CX20,'Trial 2'!CX20,'Trial 3'!CX20,'Trial 4'!CX20,'Trial 5'!CX20,'Trial 6'!CX20,'Trial 7'!CX20,'Trial 8'!CX20)","v":{"v":1610536.2640420855,"d":"$1,610,536"}},{"$f":"SUM('Trial 1'!CY20,'Trial 2'!CY20,'Trial 3'!CY20,'Trial 4'!CY20,'Trial 5'!CY20,'Trial 6'!CY20,'Trial 7'!CY20,'Trial 8'!CY20)","v":{"v":1609923.6021468218,"d":"$1,609,924"}},{"$f":"SUM('Trial 1'!CZ20,'Trial 2'!CZ20,'Trial 3'!CZ20,'Trial 4'!CZ20,'Trial 5'!CZ20,'Trial 6'!CZ20,'Trial 7'!CZ20,'Trial 8'!CZ20)","v":{"v":1609309.345928455,"d":"$1,609,309"}},{"$f":"SUM(CO166:CZ166)","v":{"v":19351918.032288704,"d":"$19,351,918"}},{"$f":"SUM('Trial 1'!DB20,'Trial 2'!DB20,'Trial 3'!DB20,'Trial 4'!DB20,'Trial 5'!DB20,'Trial 6'!DB20,'Trial 7'!DB20,'Trial 8'!DB20)","v":{"v":1608693.1569019961,"d":"$1,608,693"}},{"$f":"SUM('Trial 1'!DC20,'Trial 2'!DC20,'Trial 3'!DC20,'Trial 4'!DC20,'Trial 5'!DC20,'Trial 6'!DC20,'Trial 7'!DC20,'Trial 8'!DC20)","v":{"v":1608076.3077237299,"d":"$1,608,076"}},{"$f":"SUM('Trial 1'!DD20,'Trial 2'!DD20,'Trial 3'!DD20,'Trial 4'!DD20,'Trial 5'!DD20,'Trial 6'!DD20,'Trial 7'!DD20,'Trial 8'!DD20)","v":{"v":1607457.7586895847,"d":"$1,607,458"}},{"$f":"SUM('Trial 1'!DE20,'Trial 2'!DE20,'Trial 3'!DE20,'Trial 4'!DE20,'Trial 5'!DE20,'Trial 6'!DE20,'Trial 7'!DE20,'Trial 8'!DE20)","v":{"v":1606838.8263773192,"d":"$1,606,839"}},{"$f":"SUM('Trial 1'!DF20,'Trial 2'!DF20,'Trial 3'!DF20,'Trial 4'!DF20,'Trial 5'!DF20,'Trial 6'!DF20,'Trial 7'!DF20,'Trial 8'!DF20)","v":{"v":1606217.5607121,"d":"$1,606,218"}},{"$f":"SUM('Trial 1'!DG20,'Trial 2'!DG20,'Trial 3'!DG20,'Trial 4'!DG20,'Trial 5'!DG20,'Trial 6'!DG20,'Trial 7'!DG20,'Trial 8'!DG20)","v":{"v":1605594.6767228225,"d":"$1,605,595"}},{"$f":"SUM('Trial 1'!DH20,'Trial 2'!DH20,'Trial 3'!DH20,'Trial 4'!DH20,'Trial 5'!DH20,'Trial 6'!DH20,'Trial 7'!DH20,'Trial 8'!DH20)","v":{"v":1604971.3069240733,"d":"$1,604,971"}},{"$f":"SUM('Trial 1'!DI20,'Trial 2'!DI20,'Trial 3'!DI20,'Trial 4'!DI20,'Trial 5'!DI20,'Trial 6'!DI20,'Trial 7'!DI20,'Trial 8'!DI20)","v":{"v":1604346.803141484,"d":"$1,604,347"}},{"$f":"SUM('Trial 1'!DJ20,'Trial 2'!DJ20,'Trial 3'!DJ20,'Trial 4'!DJ20,'Trial 5'!DJ20,'Trial 6'!DJ20,'Trial 7'!DJ20,'Trial 8'!DJ20)","v":{"v":1603720.9077756517,"d":"$1,603,721"}},{"$f":"SUM('Trial 1'!DK20,'Trial 2'!DK20,'Trial 3'!DK20,'Trial 4'!DK20,'Trial 5'!DK20,'Trial 6'!DK20,'Trial 7'!DK20,'Trial 8'!DK20)","v":{"v":1603093.4653596056,"d":"$1,603,093"}},{"$f":"SUM('Trial 1'!DL20,'Trial 2'!DL20,'Trial 3'!DL20,'Trial 4'!DL20,'Trial 5'!DL20,'Trial 6'!DL20,'Trial 7'!DL20,'Trial 8'!DL20)","v":{"v":1602464.2273787304,"d":"$1,602,464"}},{"$f":"SUM('Trial 1'!DM20,'Trial 2'!DM20,'Trial 3'!DM20,'Trial 4'!DM20,'Trial 5'!DM20,'Trial 6'!DM20,'Trial 7'!DM20,'Trial 8'!DM20)","v":{"v":1601834.0382888005,"d":"$1,601,834"}},{"$f":"SUM(DB166:DM166)","v":{"v":19263309.0359959,"d":"$19,263,309"}},{"$f":"SUM('Trial 1'!DO20,'Trial 2'!DO20,'Trial 3'!DO20,'Trial 4'!DO20,'Trial 5'!DO20,'Trial 6'!DO20,'Trial 7'!DO20,'Trial 8'!DO20)","v":{"v":1601202.7160855513,"d":"$1,601,203"}},{"$f":"SUM('Trial 1'!DP20,'Trial 2'!DP20,'Trial 3'!DP20,'Trial 4'!DP20,'Trial 5'!DP20,'Trial 6'!DP20,'Trial 7'!DP20,'Trial 8'!DP20)","v":{"v":1600569.6322109262,"d":"$1,600,570"}},{"$f":"SUM('Trial 1'!DQ20,'Trial 2'!DQ20,'Trial 3'!DQ20,'Trial 4'!DQ20,'Trial 5'!DQ20,'Trial 6'!DQ20,'Trial 7'!DQ20,'Trial 8'!DQ20)","v":{"v":1599935.1192897072,"d":"$1,599,935"}},{"$f":"SUM('Trial 1'!DR20,'Trial 2'!DR20,'Trial 3'!DR20,'Trial 4'!DR20,'Trial 5'!DR20,'Trial 6'!DR20,'Trial 7'!DR20,'Trial 8'!DR20)","v":{"v":1599300.710917473,"d":"$1,599,301"}},{"$f":"SUM('Trial 1'!DS20,'Trial 2'!DS20,'Trial 3'!DS20,'Trial 4'!DS20,'Trial 5'!DS20,'Trial 6'!DS20,'Trial 7'!DS20,'Trial 8'!DS20)","v":{"v":1598664.9595984516,"d":"$1,598,665"}},{"$f":"SUM('Trial 1'!DT20,'Trial 2'!DT20,'Trial 3'!DT20,'Trial 4'!DT20,'Trial 5'!DT20,'Trial 6'!DT20,'Trial 7'!DT20,'Trial 8'!DT20)","v":{"v":1598029.8067478458,"d":"$1,598,030"}},{"$f":"SUM('Trial 1'!DU20,'Trial 2'!DU20,'Trial 3'!DU20,'Trial 4'!DU20,'Trial 5'!DU20,'Trial 6'!DU20,'Trial 7'!DU20,'Trial 8'!DU20)","v":{"v":1597394.1132942725,"d":"$1,597,394"}},{"$f":"SUM('Trial 1'!DV20,'Trial 2'!DV20,'Trial 3'!DV20,'Trial 4'!DV20,'Trial 5'!DV20,'Trial 6'!DV20,'Trial 7'!DV20,'Trial 8'!DV20)","v":{"v":1596757.747311995,"d":"$1,596,758"}},{"$f":"SUM('Trial 1'!DW20,'Trial 2'!DW20,'Trial 3'!DW20,'Trial 4'!DW20,'Trial 5'!DW20,'Trial 6'!DW20,'Trial 7'!DW20,'Trial 8'!DW20)","v":{"v":1596121.9140951696,"d":"$1,596,122"}},{"$f":"SUM('Trial 1'!DX20,'Trial 2'!DX20,'Trial 3'!DX20,'Trial 4'!DX20,'Trial 5'!DX20,'Trial 6'!DX20,'Trial 7'!DX20,'Trial 8'!DX20)","v":{"v":1595485.825278953,"d":"$1,595,486"}},{"$f":"SUM('Trial 1'!DY20,'Trial 2'!DY20,'Trial 3'!DY20,'Trial 4'!DY20,'Trial 5'!DY20,'Trial 6'!DY20,'Trial 7'!DY20,'Trial 8'!DY20)","v":{"v":1594849.8384935383,"d":"$1,594,850"}},{"$f":"SUM('Trial 1'!DZ20,'Trial 2'!DZ20,'Trial 3'!DZ20,'Trial 4'!DZ20,'Trial 5'!DZ20,'Trial 6'!DZ20,'Trial 7'!DZ20,'Trial 8'!DZ20)","v":{"v":1594213.4464045414,"d":"$1,594,213"}},{"$f":"SUM(DO166:DZ166)","v":{"v":19172525.829728425,"d":"$19,172,526"}},{"$f":"SUM('Trial 1'!EB20,'Trial 2'!EB20,'Trial 3'!EB20,'Trial 4'!EB20,'Trial 5'!EB20,'Trial 6'!EB20,'Trial 7'!EB20,'Trial 8'!EB20)","v":{"v":1593576.474683166,"d":"$1,593,576"}},{"$f":"SUM('Trial 1'!EC20,'Trial 2'!EC20,'Trial 3'!EC20,'Trial 4'!EC20,'Trial 5'!EC20,'Trial 6'!EC20,'Trial 7'!EC20,'Trial 8'!EC20)","v":{"v":1592939.0500985913,"d":"$1,592,939"}},{"$f":"SUM('Trial 1'!ED20,'Trial 2'!ED20,'Trial 3'!ED20,'Trial 4'!ED20,'Trial 5'!ED20,'Trial 6'!ED20,'Trial 7'!ED20,'Trial 8'!ED20)","v":{"v":1592299.6394892314,"d":"$1,592,300"}},{"$f":"SUM('Trial 1'!EE20,'Trial 2'!EE20,'Trial 3'!EE20,'Trial 4'!EE20,'Trial 5'!EE20,'Trial 6'!EE20,'Trial 7'!EE20,'Trial 8'!EE20)","v":{"v":1591660.2647464671,"d":"$1,591,660"}},{"$f":"SUM('Trial 1'!EF20,'Trial 2'!EF20,'Trial 3'!EF20,'Trial 4'!EF20,'Trial 5'!EF20,'Trial 6'!EF20,'Trial 7'!EF20,'Trial 8'!EF20)","v":{"v":1591019.1241996498,"d":"$1,591,019"}},{"$f":"SUM('Trial 1'!EG20,'Trial 2'!EG20,'Trial 3'!EG20,'Trial 4'!EG20,'Trial 5'!EG20,'Trial 6'!EG20,'Trial 7'!EG20,'Trial 8'!EG20)","v":{"v":1590376.8214843678,"d":"$1,590,377"}},{"$f":"SUM('Trial 1'!EH20,'Trial 2'!EH20,'Trial 3'!EH20,'Trial 4'!EH20,'Trial 5'!EH20,'Trial 6'!EH20,'Trial 7'!EH20,'Trial 8'!EH20)","v":{"v":1589734.2288064384,"d":"$1,589,734"}},{"$f":"SUM('Trial 1'!EI20,'Trial 2'!EI20,'Trial 3'!EI20,'Trial 4'!EI20,'Trial 5'!EI20,'Trial 6'!EI20,'Trial 7'!EI20,'Trial 8'!EI20)","v":{"v":1589091.5210017846,"d":"$1,589,092"}},{"$f":"SUM('Trial 1'!EJ20,'Trial 2'!EJ20,'Trial 3'!EJ20,'Trial 4'!EJ20,'Trial 5'!EJ20,'Trial 6'!EJ20,'Trial 7'!EJ20,'Trial 8'!EJ20)","v":{"v":1588447.458800418,"d":"$1,588,447"}},{"$f":"SUM('Trial 1'!EK20,'Trial 2'!EK20,'Trial 3'!EK20,'Trial 4'!EK20,'Trial 5'!EK20,'Trial 6'!EK20,'Trial 7'!EK20,'Trial 8'!EK20)","v":{"v":1587802.4666286674,"d":"$1,587,802"}},{"$f":"SUM('Trial 1'!EL20,'Trial 2'!EL20,'Trial 3'!EL20,'Trial 4'!EL20,'Trial 5'!EL20,'Trial 6'!EL20,'Trial 7'!EL20,'Trial 8'!EL20)","v":{"v":1587154.8882088624,"d":"$1,587,155"}},{"$f":"SUM('Trial 1'!EM20,'Trial 2'!EM20,'Trial 3'!EM20,'Trial 4'!EM20,'Trial 5'!EM20,'Trial 6'!EM20,'Trial 7'!EM20,'Trial 8'!EM20)","v":{"v":1586506.5134686397,"d":"$1,586,507"}},{"$f":"SUM(EB166:EM166)","v":{"v":19080608.45161628,"d":"$19,080,608"}}]
[{"$f":"Labels!B14","v":"Desired Capital"}]
[{"$f":"Labels!D96","v":"Trials"},{"$f":"ZZZ__FnCalls!F7","v":"Jan 2010"},{"$f":"ZZZ__FnCalls!F8","v":"Feb 2010"},{"$f":"ZZZ__FnCalls!F9","v":"Mar 2010"},{"$f":"ZZZ__FnCalls!F10","v":"Apr 2010"},{"$f":"ZZZ__FnCalls!F11","v":"May 2010"},{"$f":"ZZZ__FnCalls!F12","v":"Jun 2010"},{"$f":"ZZZ__FnCalls!F13","v":"Jul 2010"},{"$f":"ZZZ__FnCalls!F14","v":"Aug 2010"},{"$f":"ZZZ__FnCalls!F15","v":"Sep 2010"},{"$f":"ZZZ__FnCalls!F16","v":"Oct 2010"},{"$f":"ZZZ__FnCalls!F17","v":"Nov 2010"},{"$f":"ZZZ__FnCalls!F18","v":"Dec 2010"},{"$f":"ZZZ__FnCalls!H7","v":"2010"},{"$f":"ZZZ__FnCalls!F19","v":"Jan 2011"},{"$f":"ZZZ__FnCalls!F20","v":"Feb 2011"},{"$f":"ZZZ__FnCalls!F21","v":"Mar 2011"},{"$f":"ZZZ__FnCalls!F22","v":"Apr 2011"},{"$f":"ZZZ__FnCalls!F23","v":"May 2011"},{"$f":"ZZZ__FnCalls!F24","v":"Jun 2011"},{"$f":"ZZZ__FnCalls!F25","v":"Jul 2011"},{"$f":"ZZZ__FnCalls!F26","v":"Aug 2011"},{"$f":"ZZZ__FnCalls!F27","v":"Sep 2011"},{"$f":"ZZZ__FnCalls!F28","v":"Oct 2011"},{"$f":"ZZZ__FnCalls!F29","v":"Nov 2011"},{"$f":"ZZZ__FnCalls!F30","v":"Dec 2011"},{"$f":"ZZZ__FnCalls!H19","v":"2011"},{"$f":"ZZZ__FnCalls!F31","v":"Jan 2012"},{"$f":"ZZZ__FnCalls!F32","v":"Feb 2012"},{"$f":"ZZZ__FnCalls!F33","v":"Mar 2012"},{"$f":"ZZZ__FnCalls!F34","v":"Apr 2012"},{"$f":"ZZZ__FnCalls!F35","v":"May 2012"},{"$f":"ZZZ__FnCalls!F36","v":"Jun 2012"},{"$f":"ZZZ__FnCalls!F37","v":"Jul 2012"},{"$f":"ZZZ__FnCalls!F38","v":"Aug 2012"},{"$f":"ZZZ__FnCalls!F39","v":"Sep 2012"},{"$f":"ZZZ__FnCalls!F40","v":"Oct 2012"},{"$f":"ZZZ__FnCalls!F41","v":"Nov 2012"},{"$f":"ZZZ__FnCalls!F42","v":"Dec 2012"},{"$f":"ZZZ__FnCalls!H31","v":"2012"},{"$f":"ZZZ__FnCalls!F43","v":"Jan 2013"},{"$f":"ZZZ__FnCalls!F44","v":"Feb 2013"},{"$f":"ZZZ__FnCalls!F45","v":"Mar 2013"},{"$f":"ZZZ__FnCalls!F46","v":"Apr 2013"},{"$f":"ZZZ__FnCalls!F47","v":"May 2013"},{"$f":"ZZZ__FnCalls!F48","v":"Jun 2013"},{"$f":"ZZZ__FnCalls!F49","v":"Jul 2013"},{"$f":"ZZZ__FnCalls!F50","v":"Aug 2013"},{"$f":"ZZZ__FnCalls!F51","v":"Sep 2013"},{"$f":"ZZZ__FnCalls!F52","v":"Oct 2013"},{"$f":"ZZZ__FnCalls!F53","v":"Nov 2013"},{"$f":"ZZZ__FnCalls!F54","v":"Dec 2013"},{"$f":"ZZZ__FnCalls!H43","v":"2013"},{"$f":"ZZZ__FnCalls!F55","v":"Jan 2014"},{"$f":"ZZZ__FnCalls!F56","v":"Feb 2014"},{"$f":"ZZZ__FnCalls!F57","v":"Mar 2014"},{"$f":"ZZZ__FnCalls!F58","v":"Apr 2014"},{"$f":"ZZZ__FnCalls!F59","v":"May 2014"},{"$f":"ZZZ__FnCalls!F60","v":"Jun 2014"},{"$f":"ZZZ__FnCalls!F61","v":"Jul 2014"},{"$f":"ZZZ__FnCalls!F62","v":"Aug 2014"},{"$f":"ZZZ__FnCalls!F63","v":"Sep 2014"},{"$f":"ZZZ__FnCalls!F64","v":"Oct 2014"},{"$f":"ZZZ__FnCalls!F65","v":"Nov 2014"},{"$f":"ZZZ__FnCalls!F66","v":"Dec 2014"},{"$f":"ZZZ__FnCalls!H55","v":"2014"},{"$f":"ZZZ__FnCalls!F67","v":"Jan 2015"},{"$f":"ZZZ__FnCalls!F68","v":"Feb 2015"},{"$f":"ZZZ__FnCalls!F69","v":"Mar 2015"},{"$f":"ZZZ__FnCalls!F70","v":"Apr 2015"},{"$f":"ZZZ__FnCalls!F71","v":"May 2015"},{"$f":"ZZZ__FnCalls!F72","v":"Jun 2015"},{"$f":"ZZZ__FnCalls!F73","v":"Jul 2015"},{"$f":"ZZZ__FnCalls!F74","v":"Aug 2015"},{"$f":"ZZZ__FnCalls!F75","v":"Sep 2015"},{"$f":"ZZZ__FnCalls!F76","v":"Oct 2015"},{"$f":"ZZZ__FnCalls!F77","v":"Nov 2015"},{"$f":"ZZZ__FnCalls!F78","v":"Dec 2015"},{"$f":"ZZZ__FnCalls!H67","v":"2015"},{"$f":"ZZZ__FnCalls!F79","v":"Jan 2016"},{"$f":"ZZZ__FnCalls!F80","v":"Feb 2016"},{"$f":"ZZZ__FnCalls!F81","v":"Mar 2016"},{"$f":"ZZZ__FnCalls!F82","v":"Apr 2016"},{"$f":"ZZZ__FnCalls!F83","v":"May 2016"},{"$f":"ZZZ__FnCalls!F84","v":"Jun 2016"},{"$f":"ZZZ__FnCalls!F85","v":"Jul 2016"},{"$f":"ZZZ__FnCalls!F86","v":"Aug 2016"},{"$f":"ZZZ__FnCalls!F87","v":"Sep 2016"},{"$f":"ZZZ__FnCalls!F88","v":"Oct 2016"},{"$f":"ZZZ__FnCalls!F89","v":"Nov 2016"},{"$f":"ZZZ__FnCalls!F90","v":"Dec 2016"},{"$f":"ZZZ__FnCalls!H79","v":"2016"},{"$f":"ZZZ__FnCalls!F91","v":"Jan 2017"},{"$f":"ZZZ__FnCalls!F92","v":"Feb 2017"},{"$f":"ZZZ__FnCalls!F93","v":"Mar 2017"},{"$f":"ZZZ__FnCalls!F94","v":"Apr 2017"},{"$f":"ZZZ__FnCalls!F95","v":"May 2017"},{"$f":"ZZZ__FnCalls!F96","v":"Jun 2017"},{"$f":"ZZZ__FnCalls!F97","v":"Jul 2017"},{"$f":"ZZZ__FnCalls!F98","v":"Aug 2017"},{"$f":"ZZZ__FnCalls!F99","v":"Sep 2017"},{"$f":"ZZZ__FnCalls!F100","v":"Oct 2017"},{"$f":"ZZZ__FnCalls!F101","v":"Nov 2017"},{"$f":"ZZZ__FnCalls!F102","v":"Dec 2017"},{"$f":"ZZZ__FnCalls!H91","v":"2017"},{"$f":"ZZZ__FnCalls!F103","v":"Jan 2018"},{"$f":"ZZZ__FnCalls!F104","v":"Feb 2018"},{"$f":"ZZZ__FnCalls!F105","v":"Mar 2018"},{"$f":"ZZZ__FnCalls!F106","v":"Apr 2018"},{"$f":"ZZZ__FnCalls!F107","v":"May 2018"},{"$f":"ZZZ__FnCalls!F108","v":"Jun 2018"},{"$f":"ZZZ__FnCalls!F109","v":"Jul 2018"},{"$f":"ZZZ__FnCalls!F110","v":"Aug 2018"},{"$f":"ZZZ__FnCalls!F111","v":"Sep 2018"},{"$f":"ZZZ__FnCalls!F112","v":"Oct 2018"},{"$f":"ZZZ__FnCalls!F113","v":"Nov 2018"},{"$f":"ZZZ__FnCalls!F114","v":"Dec 2018"},{"$f":"ZZZ__FnCalls!H103","v":"2018"},{"$f":"ZZZ__FnCalls!F115","v":"Jan 2019"},{"$f":"ZZZ__FnCalls!F116","v":"Feb 2019"},{"$f":"ZZZ__FnCalls!F117","v":"Mar 2019"},{"$f":"ZZZ__FnCalls!F118","v":"Apr 2019"},{"$f":"ZZZ__FnCalls!F119","v":"May 2019"},{"$f":"ZZZ__FnCalls!F120","v":"Jun 2019"},{"$f":"ZZZ__FnCalls!F121","v":"Jul 2019"},{"$f":"ZZZ__FnCalls!F122","v":"Aug 2019"},{"$f":"ZZZ__FnCalls!F123","v":"Sep 2019"},{"$f":"ZZZ__FnCalls!F124","v":"Oct 2019"},{"$f":"ZZZ__FnCalls!F125","v":"Nov 2019"},{"$f":"ZZZ__FnCalls!F126","v":"Dec 2019"},{"$f":"ZZZ__FnCalls!H115","v":"2019"},{"$f":"ZZZ__FnCalls!F127","v":"Jan 2020"},{"$f":"ZZZ__FnCalls!F128","v":"Feb 2020"},{"$f":"ZZZ__FnCalls!F129","v":"Mar 2020"},{"$f":"ZZZ__FnCalls!F130","v":"Apr 2020"},{"$f":"ZZZ__FnCalls!F131","v":"May 2020"},{"$f":"ZZZ__FnCalls!F132","v":"Jun 2020"},{"$f":"ZZZ__FnCalls!F133","v":"Jul 2020"},{"$f":"ZZZ__FnCalls!F134","v":"Aug 2020"},{"$f":"ZZZ__FnCalls!F135","v":"Sep 2020"},{"$f":"ZZZ__FnCalls!F136","v":"Oct 2020"},{"$f":"ZZZ__FnCalls!F137","v":"Nov 2020"},{"$f":"ZZZ__FnCalls!F138","v":"Dec 2020"},{"$f":"ZZZ__FnCalls!H127","v":"2020"}]
[{"$f":"Labels!B96","v":"Trial 01"},{"$f":"'Trial 1'!B22","v":{"v":34645298.42192645,"d":"$34,645,298"}},{"$f":"'Trial 1'!C22","v":{"v":34629725.82244619,"d":"$34,629,726"}},{"$f":"'Trial 1'!D22","v":{"v":34618314.80732851,"d":"$34,618,315"}},{"$f":"'Trial 1'!E22","v":{"v":34605737.59580381,"d":"$34,605,738"}},{"$f":"'Trial 1'!F22","v":{"v":34591768.41380979,"d":"$34,591,768"}},{"$f":"'Trial 1'!G22","v":{"v":34581221.95339217,"d":"$34,581,222"}},{"$f":"'Trial 1'!H22","v":{"v":34568531.62966383,"d":"$34,568,532"}},{"$f":"'Trial 1'!I22","v":{"v":34553737.435346186,"d":"$34,553,737"}},{"$f":"'Trial 1'!J22","v":{"v":34539637.03984093,"d":"$34,539,637"}},{"$f":"'Trial 1'!K22","v":{"v":34526754.46411455,"d":"$34,526,754"}},{"$f":"'Trial 1'!L22","v":{"v":34516832.396433465,"d":"$34,516,832"}},{"$f":"'Trial 1'!M22","v":{"v":34505413.17827394,"d":"$34,505,413"}},{"$f":"'Trial 1'!M22","v":{"v":34505413.17827394,"d":"$34,505,413"}},{"$f":"'Trial 1'!O22","v":{"v":34492899.17601787,"d":"$34,492,899"}},{"$f":"'Trial 1'!P22","v":{"v":34478104.95861378,"d":"$34,478,105"}},{"$f":"'Trial 1'!Q22","v":{"v":34464554.76752091,"d":"$34,464,555"}},{"$f":"'Trial 1'!R22","v":{"v":34446520.314194776,"d":"$34,446,520"}},{"$f":"'Trial 1'!S22","v":{"v":34434001.91367584,"d":"$34,434,002"}},{"$f":"'Trial 1'!T22","v":{"v":34416556.832175925,"d":"$34,416,557"}},{"$f":"'Trial 1'!U22","v":{"v":34400520.79446053,"d":"$34,400,521"}},{"$f":"'Trial 1'!V22","v":{"v":34383453.7321296,"d":"$34,383,454"}},{"$f":"'Trial 1'!W22","v":{"v":34366317.82671863,"d":"$34,366,318"}},{"$f":"'Trial 1'!X22","v":{"v":34351400.97596499,"d":"$34,351,401"}},{"$f":"'Trial 1'!Y22","v":{"v":34337097.15845833,"d":"$34,337,097"}},{"$f":"'Trial 1'!Z22","v":{"v":34326098.89670075,"d":"$34,326,099"}},{"$f":"'Trial 1'!Z22","v":{"v":34326098.89670075,"d":"$34,326,099"}},{"$f":"'Trial 1'!AB22","v":{"v":34310590.403253585,"d":"$34,310,590"}},{"$f":"'Trial 1'!AC22","v":{"v":34296907.06888859,"d":"$34,296,907"}},{"$f":"'Trial 1'!AD22","v":{"v":34287126.476408266,"d":"$34,287,126"}},{"$f":"'Trial 1'!AE22","v":{"v":34271854.173943944,"d":"$34,271,854"}},{"$f":"'Trial 1'!AF22","v":{"v":34255724.040823504,"d":"$34,255,724"}},{"$f":"'Trial 1'!AG22","v":{"v":34241680.93123291,"d":"$34,241,681"}},{"$f":"'Trial 1'!AH22","v":{"v":34227389.616623476,"d":"$34,227,390"}},{"$f":"'Trial 1'!AI22","v":{"v":34214510.92002563,"d":"$34,214,511"}},{"$f":"'Trial 1'!AJ22","v":{"v":34199620.848985314,"d":"$34,199,621"}},{"$f":"'Trial 1'!AK22","v":{"v":34189012.30810685,"d":"$34,189,012"}},{"$f":"'Trial 1'!AL22","v":{"v":34175731.21753012,"d":"$34,175,731"}},{"$f":"'Trial 1'!AM22","v":{"v":34161072.387514204,"d":"$34,161,072"}},{"$f":"'Trial 1'!AM22","v":{"v":34161072.387514204,"d":"$34,161,072"}},{"$f":"'Trial 1'!AO22","v":{"v":34144888.38210997,"d":"$34,144,888"}},{"$f":"'Trial 1'!AP22","v":{"v":34128724.22770756,"d":"$34,128,724"}},{"$f":"'Trial 1'!AQ22","v":{"v":34118905.45641922,"d":"$34,118,905"}},{"$f":"'Trial 1'!AR22","v":{"v":34102274.47190734,"d":"$34,102,274"}},{"$f":"'Trial 1'!AS22","v":{"v":34090333.65345138,"d":"$34,090,334"}},{"$f":"'Trial 1'!AT22","v":{"v":34076826.34264437,"d":"$34,076,826"}},{"$f":"'Trial 1'!AU22","v":{"v":34064719.207983665,"d":"$34,064,719"}},{"$f":"'Trial 1'!AV22","v":{"v":34050481.6066561,"d":"$34,050,482"}},{"$f":"'Trial 1'!AW22","v":{"v":34034961.111785986,"d":"$34,034,961"}},{"$f":"'Trial 1'!AX22","v":{"v":34020884.98581426,"d":"$34,020,885"}},{"$f":"'Trial 1'!AY22","v":{"v":34009811.732617155,"d":"$34,009,812"}},{"$f":"'Trial 1'!AZ22","v":{"v":33996880.6030891,"d":"$33,996,881"}},{"$f":"'Trial 1'!AZ22","v":{"v":33996880.6030891,"d":"$33,996,881"}},{"$f":"'Trial 1'!BB22","v":{"v":33980531.20975216,"d":"$33,980,531"}},{"$f":"'Trial 1'!BC22","v":{"v":33963964.03235188,"d":"$33,963,964"}},{"$f":"'Trial 1'!BD22","v":{"v":33950460.880654044,"d":"$33,950,461"}},{"$f":"'Trial 1'!BE22","v":{"v":33935344.939952835,"d":"$33,935,345"}},{"$f":"'Trial 1'!BF22","v":{"v":33923631.95338843,"d":"$33,923,632"}},{"$f":"'Trial 1'!BG22","v":{"v":33910571.18216747,"d":"$33,910,571"}},{"$f":"'Trial 1'!BH22","v":{"v":33897385.24813179,"d":"$33,897,385"}},{"$f":"'Trial 1'!BI22","v":{"v":33884757.2351269,"d":"$33,884,757"}},{"$f":"'Trial 1'!BJ22","v":{"v":33870157.11305948,"d":"$33,870,157"}},{"$f":"'Trial 1'!BK22","v":{"v":33855448.65183475,"d":"$33,855,449"}},{"$f":"'Trial 1'!BL22","v":{"v":33838444.1369095,"d":"$33,838,444"}},{"$f":"'Trial 1'!BM22","v":{"v":33825212.30367621,"d":"$33,825,212"}},{"$f":"'Trial 1'!BM22","v":{"v":33825212.30367621,"d":"$33,825,212"}},{"$f":"'Trial 1'!BO22","v":{"v":33809164.11197508,"d":"$33,809,164"}},{"$f":"'Trial 1'!BP22","v":{"v":33796409.85815658,"d":"$33,796,410"}},{"$f":"'Trial 1'!BQ22","v":{"v":33781095.68876524,"d":"$33,781,096"}},{"$f":"'Trial 1'!BR22","v":{"v":33770761.6449805,"d":"$33,770,762"}},{"$f":"'Trial 1'!BS22","v":{"v":33758323.66040511,"d":"$33,758,324"}},{"$f":"'Trial 1'!BT22","v":{"v":33744644.66798096,"d":"$33,744,645"}},{"$f":"'Trial 1'!BU22","v":{"v":33727563.74990516,"d":"$33,727,564"}},{"$f":"'Trial 1'!BV22","v":{"v":33711388.17348941,"d":"$33,711,388"}},{"$f":"'Trial 1'!BW22","v":{"v":33696698.24115177,"d":"$33,696,698"}},{"$f":"'Trial 1'!BX22","v":{"v":33684820.52520313,"d":"$33,684,821"}},{"$f":"'Trial 1'!BY22","v":{"v":33668598.81311481,"d":"$33,668,599"}},{"$f":"'Trial 1'!BZ22","v":{"v":33651589.186068095,"d":"$33,651,589"}},{"$f":"'Trial 1'!BZ22","v":{"v":33651589.186068095,"d":"$33,651,589"}},{"$f":"'Trial 1'!CB22","v":{"v":33639902.82383438,"d":"$33,639,903"}},{"$f":"'Trial 1'!CC22","v":{"v":33625433.826838344,"d":"$33,625,434"}},{"$f":"'Trial 1'!CD22","v":{"v":33608574.28659655,"d":"$33,608,574"}},{"$f":"'Trial 1'!CE22","v":{"v":33597254.490164354,"d":"$33,597,254"}},{"$f":"'Trial 1'!CF22","v":{"v":33581089.09655073,"d":"$33,581,089"}},{"$f":"'Trial 1'!CG22","v":{"v":33566928.31902365,"d":"$33,566,928"}},{"$f":"'Trial 1'!CH22","v":{"v":33553785.510315232,"d":"$33,553,786"}},{"$f":"'Trial 1'!CI22","v":{"v":33539558.237967625,"d":"$33,539,558"}},{"$f":"'Trial 1'!CJ22","v":{"v":33526099.816160142,"d":"$33,526,100"}},{"$f":"'Trial 1'!CK22","v":{"v":33512178.22013361,"d":"$33,512,178"}},{"$f":"'Trial 1'!CL22","v":{"v":33494899.573855978,"d":"$33,494,900"}},{"$f":"'Trial 1'!CM22","v":{"v":33482819.924858253,"d":"$33,482,820"}},{"$f":"'Trial 1'!CM22","v":{"v":33482819.924858253,"d":"$33,482,820"}},{"$f":"'Trial 1'!CO22","v":{"v":33468874.703126248,"d":"$33,468,875"}},{"$f":"'Trial 1'!CP22","v":{"v":33452893.010526486,"d":"$33,452,893"}},{"$f":"'Trial 1'!CQ22","v":{"v":33440806.132794544,"d":"$33,440,806"}},{"$f":"'Trial 1'!CR22","v":{"v":33422820.617620137,"d":"$33,422,821"}},{"$f":"'Trial 1'!CS22","v":{"v":33408560.117589884,"d":"$33,408,560"}},{"$f":"'Trial 1'!CT22","v":{"v":33391133.294895876,"d":"$33,391,133"}},{"$f":"'Trial 1'!CU22","v":{"v":33377773.88116345,"d":"$33,377,774"}},{"$f":"'Trial 1'!CV22","v":{"v":33361107.053475156,"d":"$33,361,107"}},{"$f":"'Trial 1'!CW22","v":{"v":33347619.68997437,"d":"$33,347,620"}},{"$f":"'Trial 1'!CX22","v":{"v":33330453.09475636,"d":"$33,330,453"}},{"$f":"'Trial 1'!CY22","v":{"v":33318850.150999922,"d":"$33,318,850"}},{"$f":"'Trial 1'!CZ22","v":{"v":33307776.17292843,"d":"$33,307,776"}},{"$f":"'Trial 1'!CZ22","v":{"v":33307776.17292843,"d":"$33,307,776"}},{"$f":"'Trial 1'!DB22","v":{"v":33290512.45063327,"d":"$33,290,512"}},{"$f":"'Trial 1'!DC22","v":{"v":33276666.190023504,"d":"$33,276,666"}},{"$f":"'Trial 1'!DD22","v":{"v":33264114.877061762,"d":"$33,264,115"}},{"$f":"'Trial 1'!DE22","v":{"v":33250195.97704093,"d":"$33,250,196"}},{"$f":"'Trial 1'!DF22","v":{"v":33237987.44813496,"d":"$33,237,987"}},{"$f":"'Trial 1'!DG22","v":{"v":33225625.46352362,"d":"$33,225,625"}},{"$f":"'Trial 1'!DH22","v":{"v":33210677.340127755,"d":"$33,210,677"}},{"$f":"'Trial 1'!DI22","v":{"v":33197729.18269929,"d":"$33,197,729"}},{"$f":"'Trial 1'!DJ22","v":{"v":33181692.897115987,"d":"$33,181,693"}},{"$f":"'Trial 1'!DK22","v":{"v":33168809.458411515,"d":"$33,168,809"}},{"$f":"'Trial 1'!DL22","v":{"v":33158018.805258695,"d":"$33,158,019"}},{"$f":"'Trial 1'!DM22","v":{"v":33141484.319899365,"d":"$33,141,484"}},{"$f":"'Trial 1'!DM22","v":{"v":33141484.319899365,"d":"$33,141,484"}},{"$f":"'Trial 1'!DO22","v":{"v":33127981.322449107,"d":"$33,127,981"}},{"$f":"'Trial 1'!DP22","v":{"v":33117092.6106222,"d":"$33,117,093"}},{"$f":"'Trial 1'!DQ22","v":{"v":33102071.01707153,"d":"$33,102,071"}},{"$f":"'Trial 1'!DR22","v":{"v":33089019.40545637,"d":"$33,089,019"}},{"$f":"'Trial 1'!DS22","v":{"v":33075453.231995735,"d":"$33,075,453"}},{"$f":"'Trial 1'!DT22","v":{"v":33060821.96187561,"d":"$33,060,822"}},{"$f":"'Trial 1'!DU22","v":{"v":33046032.818897218,"d":"$33,046,033"}},{"$f":"'Trial 1'!DV22","v":{"v":33032938.947975393,"d":"$33,032,939"}},{"$f":"'Trial 1'!DW22","v":{"v":33016472.97309942,"d":"$33,016,473"}},{"$f":"'Trial 1'!DX22","v":{"v":33000770.840168357,"d":"$33,000,771"}},{"$f":"'Trial 1'!DY22","v":{"v":32989070.36640834,"d":"$32,989,070"}},{"$f":"'Trial 1'!DZ22","v":{"v":32976644.08339662,"d":"$32,976,644"}},{"$f":"'Trial 1'!DZ22","v":{"v":32976644.08339662,"d":"$32,976,644"}},{"$f":"'Trial 1'!EB22","v":{"v":32961058.9459904,"d":"$32,961,059"}},{"$f":"'Trial 1'!EC22","v":{"v":32947931.696896896,"d":"$32,947,932"}},{"$f":"'Trial 1'!ED22","v":{"v":32933768.734112788,"d":"$32,933,769"}},{"$f":"'Trial 1'!EE22","v":{"v":32919645.109866332,"d":"$32,919,645"}},{"$f":"'Trial 1'!EF22","v":{"v":32902562.86857495,"d":"$32,902,563"}},{"$f":"'Trial 1'!EG22","v":{"v":32888187.478053547,"d":"$32,888,187"}},{"$f":"'Trial 1'!EH22","v":{"v":32873334.31305627,"d":"$32,873,334"}},{"$f":"'Trial 1'!EI22","v":{"v":32858906.58095349,"d":"$32,858,907"}},{"$f":"'Trial 1'!EJ22","v":{"v":32842804.0729267,"d":"$32,842,804"}},{"$f":"'Trial 1'!EK22","v":{"v":32829290.11594022,"d":"$32,829,290"}},{"$f":"'Trial 1'!EL22","v":{"v":32814696.30665023,"d":"$32,814,696"}},{"$f":"'Trial 1'!EM22","v":{"v":32798322.455896102,"d":"$32,798,322"}},{"$f":"'Trial 1'!EM22","v":{"v":32798322.455896102,"d":"$32,798,322"}}]
[{"$f":"Labels!B97","v":"Trial 02"},{"$f":"'Trial 2'!B22","v":{"v":34645298.42192645,"d":"$34,645,298"}},{"$f":"'Trial 2'!C22","v":{"v":34630480.76706396,"d":"$34,630,481"}},{"$f":"'Trial 2'!D22","v":{"v":34613682.36744414,"d":"$34,613,682"}},{"$f":"'Trial 2'!E22","v":{"v":34600311.034457825,"d":"$34,600,311"}},{"$f":"'Trial 2'!F22","v":{"v":34590562.54589854,"d":"$34,590,563"}},{"$f":"'Trial 2'!G22","v":{"v":34577787.48474937,"d":"$34,577,787"}},{"$f":"'Trial 2'!H22","v":{"v":34562589.08561356,"d":"$34,562,589"}},{"$f":"'Trial 2'!I22","v":{"v":34548662.12889127,"d":"$34,548,662"}},{"$f":"'Trial 2'!J22","v":{"v":34532210.30306417,"d":"$34,532,210"}},{"$f":"'Trial 2'!K22","v":{"v":34519263.92072189,"d":"$34,519,264"}},{"$f":"'Trial 2'!L22","v":{"v":34505730.81731302,"d":"$34,505,731"}},{"$f":"'Trial 2'!M22","v":{"v":34489302.279166676,"d":"$34,489,302"}},{"$f":"'Trial 2'!M22","v":{"v":34489302.279166676,"d":"$34,489,302"}},{"$f":"'Trial 2'!O22","v":{"v":34477490.58447639,"d":"$34,477,491"}},{"$f":"'Trial 2'!P22","v":{"v":34462225.39260244,"d":"$34,462,225"}},{"$f":"'Trial 2'!Q22","v":{"v":34450297.83109338,"d":"$34,450,298"}},{"$f":"'Trial 2'!R22","v":{"v":34438638.77203761,"d":"$34,438,639"}},{"$f":"'Trial 2'!S22","v":{"v":34424179.94999081,"d":"$34,424,180"}},{"$f":"'Trial 2'!T22","v":{"v":34409779.43124218,"d":"$34,409,779"}},{"$f":"'Trial 2'!U22","v":{"v":34395363.55164662,"d":"$34,395,364"}},{"$f":"'Trial 2'!V22","v":{"v":34378763.51272022,"d":"$34,378,764"}},{"$f":"'Trial 2'!W22","v":{"v":34363053.14067051,"d":"$34,363,053"}},{"$f":"'Trial 2'!X22","v":{"v":34347952.278462775,"d":"$34,347,952"}},{"$f":"'Trial 2'!Y22","v":{"v":34332379.616208315,"d":"$34,332,380"}},{"$f":"'Trial 2'!Z22","v":{"v":34314262.50659159,"d":"$34,314,263"}},{"$f":"'Trial 2'!Z22","v":{"v":34314262.50659159,"d":"$34,314,263"}},{"$f":"'Trial 2'!AB22","v":{"v":34301469.394585624,"d":"$34,301,469"}},{"$f":"'Trial 2'!AC22","v":{"v":34287480.62717033,"d":"$34,287,481"}},{"$f":"'Trial 2'!AD22","v":{"v":34273698.17685284,"d":"$34,273,698"}},{"$f":"'Trial 2'!AE22","v":{"v":34259722.65784311,"d":"$34,259,723"}},{"$f":"'Trial 2'!AF22","v":{"v":34249838.367930874,"d":"$34,249,838"}},{"$f":"'Trial 2'!AG22","v":{"v":34235873.93970675,"d":"$34,235,874"}},{"$f":"'Trial 2'!AH22","v":{"v":34220904.42881518,"d":"$34,220,904"}},{"$f":"'Trial 2'!AI22","v":{"v":34208079.514187545,"d":"$34,208,080"}},{"$f":"'Trial 2'!AJ22","v":{"v":34190871.12463003,"d":"$34,190,871"}},{"$f":"'Trial 2'!AK22","v":{"v":34177123.61917261,"d":"$34,177,124"}},{"$f":"'Trial 2'!AL22","v":{"v":34164714.864035554,"d":"$34,164,715"}},{"$f":"'Trial 2'!AM22","v":{"v":34154001.161214344,"d":"$34,154,001"}},{"$f":"'Trial 2'!AM22","v":{"v":34154001.161214344,"d":"$34,154,001"}},{"$f":"'Trial 2'!AO22","v":{"v":34138772.52022236,"d":"$34,138,773"}},{"$f":"'Trial 2'!AP22","v":{"v":34124332.26144938,"d":"$34,124,332"}},{"$f":"'Trial 2'!AQ22","v":{"v":34111543.9367207,"d":"$34,111,544"}},{"$f":"'Trial 2'!AR22","v":{"v":34098578.40543347,"d":"$34,098,578"}},{"$f":"'Trial 2'!AS22","v":{"v":34083461.95005101,"d":"$34,083,462"}},{"$f":"'Trial 2'!AT22","v":{"v":34070531.96041097,"d":"$34,070,532"}},{"$f":"'Trial 2'!AU22","v":{"v":34057542.64001618,"d":"$34,057,543"}},{"$f":"'Trial 2'!AV22","v":{"v":34043954.98736184,"d":"$34,043,955"}},{"$f":"'Trial 2'!AW22","v":{"v":34030619.552848294,"d":"$34,030,620"}},{"$f":"'Trial 2'!AX22","v":{"v":34012783.20697535,"d":"$34,012,783"}},{"$f":"'Trial 2'!AY22","v":{"v":33998120.97976092,"d":"$33,998,121"}},{"$f":"'Trial 2'!AZ22","v":{"v":33986716.515769474,"d":"$33,986,717"}},{"$f":"'Trial 2'!AZ22","v":{"v":33986716.515769474,"d":"$33,986,717"}},{"$f":"'Trial 2'!BB22","v":{"v":33972256.1788746,"d":"$33,972,256"}},{"$f":"'Trial 2'!BC22","v":{"v":33956647.69110349,"d":"$33,956,648"}},{"$f":"'Trial 2'!BD22","v":{"v":33942871.551697485,"d":"$33,942,872"}},{"$f":"'Trial 2'!BE22","v":{"v":33931525.500989236,"d":"$33,931,526"}},{"$f":"'Trial 2'!BF22","v":{"v":33917186.64135571,"d":"$33,917,187"}},{"$f":"'Trial 2'!BG22","v":{"v":33905158.39136582,"d":"$33,905,158"}},{"$f":"'Trial 2'!BH22","v":{"v":33888871.20286114,"d":"$33,888,871"}},{"$f":"'Trial 2'!BI22","v":{"v":33873397.58000337,"d":"$33,873,398"}},{"$f":"'Trial 2'!BJ22","v":{"v":33856041.37453203,"d":"$33,856,041"}},{"$f":"'Trial 2'!BK22","v":{"v":33843874.94993737,"d":"$33,843,875"}},{"$f":"'Trial 2'!BL22","v":{"v":33828810.11293934,"d":"$33,828,810"}},{"$f":"'Trial 2'!BM22","v":{"v":33815332.248721726,"d":"$33,815,332"}},{"$f":"'Trial 2'!BM22","v":{"v":33815332.248721726,"d":"$33,815,332"}},{"$f":"'Trial 2'!BO22","v":{"v":33797686.79196993,"d":"$33,797,687"}},{"$f":"'Trial 2'!BP22","v":{"v":33779536.35533651,"d":"$33,779,536"}},{"$f":"'Trial 2'!BQ22","v":{"v":33762993.33363963,"d":"$33,762,993"}},{"$f":"'Trial 2'!BR22","v":{"v":33750214.91737307,"d":"$33,750,215"}},{"$f":"'Trial 2'!BS22","v":{"v":33738576.94782725,"d":"$33,738,577"}},{"$f":"'Trial 2'!BT22","v":{"v":33721235.10078763,"d":"$33,721,235"}},{"$f":"'Trial 2'!BU22","v":{"v":33710324.454723634,"d":"$33,710,324"}},{"$f":"'Trial 2'!BV22","v":{"v":33694651.22394266,"d":"$33,694,651"}},{"$f":"'Trial 2'!BW22","v":{"v":33681925.92013278,"d":"$33,681,926"}},{"$f":"'Trial 2'!BX22","v":{"v":33668085.22032192,"d":"$33,668,085"}},{"$f":"'Trial 2'!BY22","v":{"v":33650285.20471953,"d":"$33,650,285"}},{"$f":"'Trial 2'!BZ22","v":{"v":33640118.43401936,"d":"$33,640,118"}},{"$f":"'Trial 2'!BZ22","v":{"v":33640118.43401936,"d":"$33,640,118"}},{"$f":"'Trial 2'!CB22","v":{"v":33626618.00954847,"d":"$33,626,618"}},{"$f":"'Trial 2'!CC22","v":{"v":33614061.51451258,"d":"$33,614,062"}},{"$f":"'Trial 2'!CD22","v":{"v":33598420.45324031,"d":"$33,598,420"}},{"$f":"'Trial 2'!CE22","v":{"v":33583890.61994603,"d":"$33,583,891"}},{"$f":"'Trial 2'!CF22","v":{"v":33572268.133837044,"d":"$33,572,268"}},{"$f":"'Trial 2'!CG22","v":{"v":33559266.35915833,"d":"$33,559,266"}},{"$f":"'Trial 2'!CH22","v":{"v":33547301.433622967,"d":"$33,547,301"}},{"$f":"'Trial 2'!CI22","v":{"v":33533352.276960406,"d":"$33,533,352"}},{"$f":"'Trial 2'!CJ22","v":{"v":33521993.71928603,"d":"$33,521,994"}},{"$f":"'Trial 2'!CK22","v":{"v":33505300.48073981,"d":"$33,505,300"}},{"$f":"'Trial 2'!CL22","v":{"v":33490916.68141169,"d":"$33,490,917"}},{"$f":"'Trial 2'!CM22","v":{"v":33473561.091161896,"d":"$33,473,561"}},{"$f":"'Trial 2'!CM22","v":{"v":33473561.091161896,"d":"$33,473,561"}},{"$f":"'Trial 2'!CO22","v":{"v":33459023.955716696,"d":"$33,459,024"}},{"$f":"'Trial 2'!CP22","v":{"v":33443438.49713435,"d":"$33,443,438"}},{"$f":"'Trial 2'!CQ22","v":{"v":33429406.201221943,"d":"$33,429,406"}},{"$f":"'Trial 2'!CR22","v":{"v":33416293.200540766,"d":"$33,416,293"}},{"$f":"'Trial 2'!CS22","v":{"v":33401298.689261883,"d":"$33,401,299"}},{"$f":"'Trial 2'!CT22","v":{"v":33388559.4861695,"d":"$33,388,559"}},{"$f":"'Trial 2'!CU22","v":{"v":33372187.255820867,"d":"$33,372,187"}},{"$f":"'Trial 2'!CV22","v":{"v":33360672.096159417,"d":"$33,360,672"}},{"$f":"'Trial 2'!CW22","v":{"v":33346096.05631868,"d":"$33,346,096"}},{"$f":"'Trial 2'!CX22","v":{"v":33334561.265352268,"d":"$33,334,561"}},{"$f":"'Trial 2'!CY22","v":{"v":33316449.621471424,"d":"$33,316,450"}},{"$f":"'Trial 2'!CZ22","v":{"v":33304432.53629019,"d":"$33,304,433"}},{"$f":"'Trial 2'!CZ22","v":{"v":33304432.53629019,"d":"$33,304,433"}},{"$f":"'Trial 2'!DB22","v":{"v":33289792.974024545,"d":"$33,289,793"}},{"$f":"'Trial 2'!DC22","v":{"v":33274933.49504837,"d":"$33,274,933"}},{"$f":"'Trial 2'!DD22","v":{"v":33262132.983275387,"d":"$33,262,133"}},{"$f":"'Trial 2'!DE22","v":{"v":33247118.576410197,"d":"$33,247,119"}},{"$f":"'Trial 2'!DF22","v":{"v":33234475.188961256,"d":"$33,234,475"}},{"$f":"'Trial 2'!DG22","v":{"v":33222548.494016424,"d":"$33,222,548"}},{"$f":"'Trial 2'!DH22","v":{"v":33208475.51473131,"d":"$33,208,476"}},{"$f":"'Trial 2'!DI22","v":{"v":33194805.683075655,"d":"$33,194,806"}},{"$f":"'Trial 2'!DJ22","v":{"v":33181433.64799507,"d":"$33,181,434"}},{"$f":"'Trial 2'!DK22","v":{"v":33170579.721572604,"d":"$33,170,580"}},{"$f":"'Trial 2'!DL22","v":{"v":33154401.08948056,"d":"$33,154,401"}},{"$f":"'Trial 2'!DM22","v":{"v":33136417.586018164,"d":"$33,136,418"}},{"$f":"'Trial 2'!DM22","v":{"v":33136417.586018164,"d":"$33,136,418"}},{"$f":"'Trial 2'!DO22","v":{"v":33119875.342886344,"d":"$33,119,875"}},{"$f":"'Trial 2'!DP22","v":{"v":33107976.2402218,"d":"$33,107,976"}},{"$f":"'Trial 2'!DQ22","v":{"v":33090829.93215376,"d":"$33,090,830"}},{"$f":"'Trial 2'!DR22","v":{"v":33077111.60485948,"d":"$33,077,112"}},{"$f":"'Trial 2'!DS22","v":{"v":33062464.070397925,"d":"$33,062,464"}},{"$f":"'Trial 2'!DT22","v":{"v":33046552.233591057,"d":"$33,046,552"}},{"$f":"'Trial 2'!DU22","v":{"v":33033252.56444813,"d":"$33,033,253"}},{"$f":"'Trial 2'!DV22","v":{"v":33021078.287803616,"d":"$33,021,078"}},{"$f":"'Trial 2'!DW22","v":{"v":33008539.69297503,"d":"$33,008,540"}},{"$f":"'Trial 2'!DX22","v":{"v":32992077.946706478,"d":"$32,992,078"}},{"$f":"'Trial 2'!DY22","v":{"v":32979900.40383832,"d":"$32,979,900"}},{"$f":"'Trial 2'!DZ22","v":{"v":32965810.554679703,"d":"$32,965,811"}},{"$f":"'Trial 2'!DZ22","v":{"v":32965810.554679703,"d":"$32,965,811"}},{"$f":"'Trial 2'!EB22","v":{"v":32949277.295858733,"d":"$32,949,277"}},{"$f":"'Trial 2'!EC22","v":{"v":32937465.7121059,"d":"$32,937,466"}},{"$f":"'Trial 2'!ED22","v":{"v":32924664.852082253,"d":"$32,924,665"}},{"$f":"'Trial 2'!EE22","v":{"v":32907058.87692327,"d":"$32,907,059"}},{"$f":"'Trial 2'!EF22","v":{"v":32892873.30794395,"d":"$32,892,873"}},{"$f":"'Trial 2'!EG22","v":{"v":32882238.83178306,"d":"$32,882,239"}},{"$f":"'Trial 2'!EH22","v":{"v":32865997.01956354,"d":"$32,865,997"}},{"$f":"'Trial 2'!EI22","v":{"v":32850457.334109172,"d":"$32,850,457"}},{"$f":"'Trial 2'!EJ22","v":{"v":32834192.021422774,"d":"$32,834,192"}},{"$f":"'Trial 2'!EK22","v":{"v":32821211.072408505,"d":"$32,821,211"}},{"$f":"'Trial 2'!EL22","v":{"v":32806171.56995688,"d":"$32,806,172"}},{"$f":"'Trial 2'!EM22","v":{"v":32793667.075793892,"d":"$32,793,667"}},{"$f":"'Trial 2'!EM22","v":{"v":32793667.075793892,"d":"$32,793,667"}}]
[{"$f":"Labels!B98","v":"Trial 03"},{"$f":"'Trial 3'!B22","v":{"v":34645298.42192645,"d":"$34,645,298"}},{"$f":"'Trial 3'!C22","v":{"v":34627561.778753355,"d":"$34,627,562"}},{"$f":"'Trial 3'!D22","v":{"v":34614190.277273856,"d":"$34,614,190"}},{"$f":"'Trial 3'!E22","v":{"v":34598099.05200938,"d":"$34,598,099"}},{"$f":"'Trial 3'!F22","v":{"v":34587180.66282008,"d":"$34,587,181"}},{"$f":"'Trial 3'!G22","v":{"v":34574184.968473814,"d":"$34,574,185"}},{"$f":"'Trial 3'!H22","v":{"v":34563028.7512114,"d":"$34,563,029"}},{"$f":"'Trial 3'!I22","v":{"v":34548150.152566634,"d":"$34,548,150"}},{"$f":"'Trial 3'!J22","v":{"v":34536070.206330165,"d":"$34,536,070"}},{"$f":"'Trial 3'!K22","v":{"v":34519592.94347886,"d":"$34,519,593"}},{"$f":"'Trial 3'!L22","v":{"v":34506221.73623712,"d":"$34,506,222"}},{"$f":"'Trial 3'!M22","v":{"v":34494353.69820394,"d":"$34,494,354"}},{"$f":"'Trial 3'!M22","v":{"v":34494353.69820394,"d":"$34,494,354"}},{"$f":"'Trial 3'!O22","v":{"v":34478636.8379346,"d":"$34,478,637"}},{"$f":"'Trial 3'!P22","v":{"v":34465300.4889714,"d":"$34,465,300"}},{"$f":"'Trial 3'!Q22","v":{"v":34450345.42183265,"d":"$34,450,345"}},{"$f":"'Trial 3'!R22","v":{"v":34439186.15868493,"d":"$34,439,186"}},{"$f":"'Trial 3'!S22","v":{"v":34426849.27196243,"d":"$34,426,849"}},{"$f":"'Trial 3'!T22","v":{"v":34412859.430243805,"d":"$34,412,859"}},{"$f":"'Trial 3'!U22","v":{"v":34398208.98472673,"d":"$34,398,209"}},{"$f":"'Trial 3'!V22","v":{"v":34379900.043848716,"d":"$34,379,900"}},{"$f":"'Trial 3'!W22","v":{"v":34364026.6168087,"d":"$34,364,027"}},{"$f":"'Trial 3'!X22","v":{"v":34350897.028542854,"d":"$34,350,897"}},{"$f":"'Trial 3'!Y22","v":{"v":34337188.099073716,"d":"$34,337,188"}},{"$f":"'Trial 3'!Z22","v":{"v":34322176.859698236,"d":"$34,322,177"}},{"$f":"'Trial 3'!Z22","v":{"v":34322176.859698236,"d":"$34,322,177"}},{"$f":"'Trial 3'!AB22","v":{"v":34304204.53115242,"d":"$34,304,205"}},{"$f":"'Trial 3'!AC22","v":{"v":34292961.35476165,"d":"$34,292,961"}},{"$f":"'Trial 3'!AD22","v":{"v":34277510.48916212,"d":"$34,277,510"}},{"$f":"'Trial 3'!AE22","v":{"v":34261105.34922021,"d":"$34,261,105"}},{"$f":"'Trial 3'!AF22","v":{"v":34248937.90218909,"d":"$34,248,938"}},{"$f":"'Trial 3'!AG22","v":{"v":34230903.75163584,"d":"$34,230,904"}},{"$f":"'Trial 3'!AH22","v":{"v":34218526.76793199,"d":"$34,218,527"}},{"$f":"'Trial 3'!AI22","v":{"v":34204930.86099649,"d":"$34,204,931"}},{"$f":"'Trial 3'!AJ22","v":{"v":34189154.493921146,"d":"$34,189,154"}},{"$f":"'Trial 3'!AK22","v":{"v":34176425.86135548,"d":"$34,176,426"}},{"$f":"'Trial 3'!AL22","v":{"v":34162792.495968744,"d":"$34,162,792"}},{"$f":"'Trial 3'!AM22","v":{"v":34147843.14366663,"d":"$34,147,843"}},{"$f":"'Trial 3'!AM22","v":{"v":34147843.14366663,"d":"$34,147,843"}},{"$f":"'Trial 3'!AO22","v":{"v":34132690.49177875,"d":"$34,132,690"}},{"$f":"'Trial 3'!AP22","v":{"v":34120651.74153521,"d":"$34,120,652"}},{"$f":"'Trial 3'!AQ22","v":{"v":34109086.1040989,"d":"$34,109,086"}},{"$f":"'Trial 3'!AR22","v":{"v":34091811.197618246,"d":"$34,091,811"}},{"$f":"'Trial 3'!AS22","v":{"v":34077124.20035591,"d":"$34,077,124"}},{"$f":"'Trial 3'!AT22","v":{"v":34064871.102016695,"d":"$34,064,871"}},{"$f":"'Trial 3'!AU22","v":{"v":34049711.038506575,"d":"$34,049,711"}},{"$f":"'Trial 3'!AV22","v":{"v":34033567.22777952,"d":"$34,033,567"}},{"$f":"'Trial 3'!AW22","v":{"v":34020327.27926963,"d":"$34,020,327"}},{"$f":"'Trial 3'!AX22","v":{"v":34004056.4335307,"d":"$34,004,056"}},{"$f":"'Trial 3'!AY22","v":{"v":33992501.10710122,"d":"$33,992,501"}},{"$f":"'Trial 3'!AZ22","v":{"v":33976245.676489346,"d":"$33,976,246"}},{"$f":"'Trial 3'!AZ22","v":{"v":33976245.676489346,"d":"$33,976,246"}},{"$f":"'Trial 3'!BB22","v":{"v":33958884.96143592,"d":"$33,958,885"}},{"$f":"'Trial 3'!BC22","v":{"v":33944036.21877867,"d":"$33,944,036"}},{"$f":"'Trial 3'!BD22","v":{"v":33926640.2814516,"d":"$33,926,640"}},{"$f":"'Trial 3'!BE22","v":{"v":33914431.46553713,"d":"$33,914,431"}},{"$f":"'Trial 3'!BF22","v":{"v":33896376.113502376,"d":"$33,896,376"}},{"$f":"'Trial 3'!BG22","v":{"v":33883118.355015874,"d":"$33,883,118"}},{"$f":"'Trial 3'!BH22","v":{"v":33865022.89849413,"d":"$33,865,023"}},{"$f":"'Trial 3'!BI22","v":{"v":33848833.1231206,"d":"$33,848,833"}},{"$f":"'Trial 3'!BJ22","v":{"v":33835278.03279136,"d":"$33,835,278"}},{"$f":"'Trial 3'!BK22","v":{"v":33821275.94156265,"d":"$33,821,276"}},{"$f":"'Trial 3'!BL22","v":{"v":33806364.21292024,"d":"$33,806,364"}},{"$f":"'Trial 3'!BM22","v":{"v":33793939.86017653,"d":"$33,793,940"}},{"$f":"'Trial 3'!BM22","v":{"v":33793939.86017653,"d":"$33,793,940"}},{"$f":"'Trial 3'!BO22","v":{"v":33779646.34830576,"d":"$33,779,646"}},{"$f":"'Trial 3'!BP22","v":{"v":33765438.89126726,"d":"$33,765,439"}},{"$f":"'Trial 3'!BQ22","v":{"v":33752299.167261355,"d":"$33,752,299"}},{"$f":"'Trial 3'!BR22","v":{"v":33736120.47337585,"d":"$33,736,120"}},{"$f":"'Trial 3'!BS22","v":{"v":33722284.91200343,"d":"$33,722,285"}},{"$f":"'Trial 3'!BT22","v":{"v":33709873.27867522,"d":"$33,709,873"}},{"$f":"'Trial 3'!BU22","v":{"v":33695101.66864466,"d":"$33,695,102"}},{"$f":"'Trial 3'!BV22","v":{"v":33679989.61685534,"d":"$33,679,990"}},{"$f":"'Trial 3'!BW22","v":{"v":33664043.69970853,"d":"$33,664,044"}},{"$f":"'Trial 3'!BX22","v":{"v":33650998.90592407,"d":"$33,650,999"}},{"$f":"'Trial 3'!BY22","v":{"v":33634370.14355362,"d":"$33,634,370"}},{"$f":"'Trial 3'!BZ22","v":{"v":33623110.043035015,"d":"$33,623,110"}},{"$f":"'Trial 3'!BZ22","v":{"v":33623110.043035015,"d":"$33,623,110"}},{"$f":"'Trial 3'!CB22","v":{"v":33608262.09066019,"d":"$33,608,262"}},{"$f":"'Trial 3'!CC22","v":{"v":33595362.507398434,"d":"$33,595,363"}},{"$f":"'Trial 3'!CD22","v":{"v":33580798.57940324,"d":"$33,580,799"}},{"$f":"'Trial 3'!CE22","v":{"v":33566954.58928164,"d":"$33,566,955"}},{"$f":"'Trial 3'!CF22","v":{"v":33553207.605848175,"d":"$33,553,208"}},{"$f":"'Trial 3'!CG22","v":{"v":33539224.767436374,"d":"$33,539,225"}},{"$f":"'Trial 3'!CH22","v":{"v":33526941.584216695,"d":"$33,526,942"}},{"$f":"'Trial 3'!CI22","v":{"v":33514943.0198399,"d":"$33,514,943"}},{"$f":"'Trial 3'!CJ22","v":{"v":33503747.78459299,"d":"$33,503,748"}},{"$f":"'Trial 3'!CK22","v":{"v":33489318.518079218,"d":"$33,489,319"}},{"$f":"'Trial 3'!CL22","v":{"v":33476643.87562458,"d":"$33,476,644"}},{"$f":"'Trial 3'!CM22","v":{"v":33464855.795126613,"d":"$33,464,856"}},{"$f":"'Trial 3'!CM22","v":{"v":33464855.795126613,"d":"$33,464,856"}},{"$f":"'Trial 3'!CO22","v":{"v":33454060.1533684,"d":"$33,454,060"}},{"$f":"'Trial 3'!CP22","v":{"v":33437672.26447674,"d":"$33,437,672"}},{"$f":"'Trial 3'!CQ22","v":{"v":33424728.505092006,"d":"$33,424,729"}},{"$f":"'Trial 3'!CR22","v":{"v":33409824.823061507,"d":"$33,409,825"}},{"$f":"'Trial 3'!CS22","v":{"v":33396500.044962958,"d":"$33,396,500"}},{"$f":"'Trial 3'!CT22","v":{"v":33382189.70463971,"d":"$33,382,190"}},{"$f":"'Trial 3'!CU22","v":{"v":33368661.169118717,"d":"$33,368,661"}},{"$f":"'Trial 3'!CV22","v":{"v":33355975.624582335,"d":"$33,355,976"}},{"$f":"'Trial 3'!CW22","v":{"v":33342201.857112367,"d":"$33,342,202"}},{"$f":"'Trial 3'!CX22","v":{"v":33326217.25971493,"d":"$33,326,217"}},{"$f":"'Trial 3'!CY22","v":{"v":33315085.185469385,"d":"$33,315,085"}},{"$f":"'Trial 3'!CZ22","v":{"v":33299582.120597713,"d":"$33,299,582"}},{"$f":"'Trial 3'!CZ22","v":{"v":33299582.120597713,"d":"$33,299,582"}},{"$f":"'Trial 3'!DB22","v":{"v":33287536.953427415,"d":"$33,287,537"}},{"$f":"'Trial 3'!DC22","v":{"v":33271243.398394324,"d":"$33,271,243"}},{"$f":"'Trial 3'!DD22","v":{"v":33253413.732760504,"d":"$33,253,414"}},{"$f":"'Trial 3'!DE22","v":{"v":33239114.258277617,"d":"$33,239,114"}},{"$f":"'Trial 3'!DF22","v":{"v":33225959.336064633,"d":"$33,225,959"}},{"$f":"'Trial 3'!DG22","v":{"v":33212330.67791886,"d":"$33,212,331"}},{"$f":"'Trial 3'!DH22","v":{"v":33199524.025126584,"d":"$33,199,524"}},{"$f":"'Trial 3'!DI22","v":{"v":33186361.938404597,"d":"$33,186,362"}},{"$f":"'Trial 3'!DJ22","v":{"v":33172506.519282125,"d":"$33,172,507"}},{"$f":"'Trial 3'!DK22","v":{"v":33157808.99330674,"d":"$33,157,809"}},{"$f":"'Trial 3'!DL22","v":{"v":33144622.277545806,"d":"$33,144,622"}},{"$f":"'Trial 3'!DM22","v":{"v":33132089.979916673,"d":"$33,132,090"}},{"$f":"'Trial 3'!DM22","v":{"v":33132089.979916673,"d":"$33,132,090"}},{"$f":"'Trial 3'!DO22","v":{"v":33118827.855641246,"d":"$33,118,828"}},{"$f":"'Trial 3'!DP22","v":{"v":33106010.616053753,"d":"$33,106,011"}},{"$f":"'Trial 3'!DQ22","v":{"v":33093428.913641464,"d":"$33,093,429"}},{"$f":"'Trial 3'!DR22","v":{"v":33083573.98303611,"d":"$33,083,574"}},{"$f":"'Trial 3'!DS22","v":{"v":33066141.198986433,"d":"$33,066,141"}},{"$f":"'Trial 3'!DT22","v":{"v":33051132.562933683,"d":"$33,051,133"}},{"$f":"'Trial 3'!DU22","v":{"v":33038967.024010047,"d":"$33,038,967"}},{"$f":"'Trial 3'!DV22","v":{"v":33024769.964936376,"d":"$33,024,770"}},{"$f":"'Trial 3'!DW22","v":{"v":33012657.81875693,"d":"$33,012,658"}},{"$f":"'Trial 3'!DX22","v":{"v":33001426.10430395,"d":"$33,001,426"}},{"$f":"'Trial 3'!DY22","v":{"v":32987162.801327292,"d":"$32,987,163"}},{"$f":"'Trial 3'!DZ22","v":{"v":32972209.330103356,"d":"$32,972,209"}},{"$f":"'Trial 3'!DZ22","v":{"v":32972209.330103356,"d":"$32,972,209"}},{"$f":"'Trial 3'!EB22","v":{"v":32956094.670435645,"d":"$32,956,095"}},{"$f":"'Trial 3'!EC22","v":{"v":32942214.198279336,"d":"$32,942,214"}},{"$f":"'Trial 3'!ED22","v":{"v":32927507.982332103,"d":"$32,927,508"}},{"$f":"'Trial 3'!EE22","v":{"v":32914389.943678193,"d":"$32,914,390"}},{"$f":"'Trial 3'!EF22","v":{"v":32901278.351944517,"d":"$32,901,278"}},{"$f":"'Trial 3'!EG22","v":{"v":32887258.89642723,"d":"$32,887,259"}},{"$f":"'Trial 3'!EH22","v":{"v":32873269.264591776,"d":"$32,873,269"}},{"$f":"'Trial 3'!EI22","v":{"v":32861314.11733347,"d":"$32,861,314"}},{"$f":"'Trial 3'!EJ22","v":{"v":32844768.115639158,"d":"$32,844,768"}},{"$f":"'Trial 3'!EK22","v":{"v":32827419.79517711,"d":"$32,827,420"}},{"$f":"'Trial 3'!EL22","v":{"v":32816426.02592721,"d":"$32,816,426"}},{"$f":"'Trial 3'!EM22","v":{"v":32804074.179809205,"d":"$32,804,074"}},{"$f":"'Trial 3'!EM22","v":{"v":32804074.179809205,"d":"$32,804,074"}}]
[{"$f":"Labels!B99","v":"Trial 04"},{"$f":"'Trial 4'!B22","v":{"v":34645298.42192645,"d":"$34,645,298"}},{"$f":"'Trial 4'!C22","v":{"v":34630345.02675211,"d":"$34,630,345"}},{"$f":"'Trial 4'!D22","v":{"v":34614880.06396955,"d":"$34,614,880"}},{"$f":"'Trial 4'!E22","v":{"v":34599333.67226247,"d":"$34,599,334"}},{"$f":"'Trial 4'!F22","v":{"v":34586620.19329662,"d":"$34,586,620"}},{"$f":"'Trial 4'!G22","v":{"v":34575231.68172816,"d":"$34,575,232"}},{"$f":"'Trial 4'!H22","v":{"v":34565035.54688739,"d":"$34,565,036"}},{"$f":"'Trial 4'!I22","v":{"v":34548010.15259519,"d":"$34,548,010"}},{"$f":"'Trial 4'!J22","v":{"v":34531129.27002191,"d":"$34,531,129"}},{"$f":"'Trial 4'!K22","v":{"v":34516540.03788704,"d":"$34,516,540"}},{"$f":"'Trial 4'!L22","v":{"v":34501976.43840428,"d":"$34,501,976"}},{"$f":"'Trial 4'!M22","v":{"v":34488026.04364099,"d":"$34,488,026"}},{"$f":"'Trial 4'!M22","v":{"v":34488026.04364099,"d":"$34,488,026"}},{"$f":"'Trial 4'!O22","v":{"v":34470747.945310146,"d":"$34,470,748"}},{"$f":"'Trial 4'!P22","v":{"v":34456814.18627433,"d":"$34,456,814"}},{"$f":"'Trial 4'!Q22","v":{"v":34443734.54081176,"d":"$34,443,735"}},{"$f":"'Trial 4'!R22","v":{"v":34432679.94311086,"d":"$34,432,680"}},{"$f":"'Trial 4'!S22","v":{"v":34418760.04572655,"d":"$34,418,760"}},{"$f":"'Trial 4'!T22","v":{"v":34400858.12983572,"d":"$34,400,858"}},{"$f":"'Trial 4'!U22","v":{"v":34385727.37098968,"d":"$34,385,727"}},{"$f":"'Trial 4'!V22","v":{"v":34371918.956236884,"d":"$34,371,919"}},{"$f":"'Trial 4'!W22","v":{"v":34357620.17940846,"d":"$34,357,620"}},{"$f":"'Trial 4'!X22","v":{"v":34347785.32113337,"d":"$34,347,785"}},{"$f":"'Trial 4'!Y22","v":{"v":34333335.77886243,"d":"$34,333,336"}},{"$f":"'Trial 4'!Z22","v":{"v":34315765.25999433,"d":"$34,315,765"}},{"$f":"'Trial 4'!Z22","v":{"v":34315765.25999433,"d":"$34,315,765"}},{"$f":"'Trial 4'!AB22","v":{"v":34299663.44696634,"d":"$34,299,663"}},{"$f":"'Trial 4'!AC22","v":{"v":34284088.31411503,"d":"$34,284,088"}},{"$f":"'Trial 4'!AD22","v":{"v":34270630.54046255,"d":"$34,270,631"}},{"$f":"'Trial 4'!AE22","v":{"v":34255647.87460451,"d":"$34,255,648"}},{"$f":"'Trial 4'!AF22","v":{"v":34238627.94777798,"d":"$34,238,628"}},{"$f":"'Trial 4'!AG22","v":{"v":34223244.395842955,"d":"$34,223,244"}},{"$f":"'Trial 4'!AH22","v":{"v":34212243.5408806,"d":"$34,212,244"}},{"$f":"'Trial 4'!AI22","v":{"v":34198131.23064813,"d":"$34,198,131"}},{"$f":"'Trial 4'!AJ22","v":{"v":34183985.81123105,"d":"$34,183,986"}},{"$f":"'Trial 4'!AK22","v":{"v":34168596.7492891,"d":"$34,168,597"}},{"$f":"'Trial 4'!AL22","v":{"v":34157116.11975193,"d":"$34,157,116"}},{"$f":"'Trial 4'!AM22","v":{"v":34142182.90202131,"d":"$34,142,183"}},{"$f":"'Trial 4'!AM22","v":{"v":34142182.90202131,"d":"$34,142,183"}},{"$f":"'Trial 4'!AO22","v":{"v":34124068.68151382,"d":"$34,124,069"}},{"$f":"'Trial 4'!AP22","v":{"v":34109956.769120395,"d":"$34,109,957"}},{"$f":"'Trial 4'!AQ22","v":{"v":34095642.50662549,"d":"$34,095,643"}},{"$f":"'Trial 4'!AR22","v":{"v":34080858.91827639,"d":"$34,080,859"}},{"$f":"'Trial 4'!AS22","v":{"v":34064361.72676421,"d":"$34,064,362"}},{"$f":"'Trial 4'!AT22","v":{"v":34051036.11455923,"d":"$34,051,036"}},{"$f":"'Trial 4'!AU22","v":{"v":34039041.573829845,"d":"$34,039,042"}},{"$f":"'Trial 4'!AV22","v":{"v":34025812.150681525,"d":"$34,025,812"}},{"$f":"'Trial 4'!AW22","v":{"v":34011509.25752953,"d":"$34,011,509"}},{"$f":"'Trial 4'!AX22","v":{"v":33998671.34199954,"d":"$33,998,671"}},{"$f":"'Trial 4'!AY22","v":{"v":33982356.6069006,"d":"$33,982,357"}},{"$f":"'Trial 4'!AZ22","v":{"v":33966371.716181666,"d":"$33,966,372"}},{"$f":"'Trial 4'!AZ22","v":{"v":33966371.716181666,"d":"$33,966,372"}},{"$f":"'Trial 4'!BB22","v":{"v":33948768.514544554,"d":"$33,948,769"}},{"$f":"'Trial 4'!BC22","v":{"v":33938572.656724945,"d":"$33,938,573"}},{"$f":"'Trial 4'!BD22","v":{"v":33928234.97106123,"d":"$33,928,235"}},{"$f":"'Trial 4'!BE22","v":{"v":33911880.737923175,"d":"$33,911,881"}},{"$f":"'Trial 4'!BF22","v":{"v":33897735.6996546,"d":"$33,897,736"}},{"$f":"'Trial 4'!BG22","v":{"v":33881539.05054248,"d":"$33,881,539"}},{"$f":"'Trial 4'!BH22","v":{"v":33868864.700165875,"d":"$33,868,865"}},{"$f":"'Trial 4'!BI22","v":{"v":33852828.00923251,"d":"$33,852,828"}},{"$f":"'Trial 4'!BJ22","v":{"v":33838830.76586224,"d":"$33,838,831"}},{"$f":"'Trial 4'!BK22","v":{"v":33820713.729033835,"d":"$33,820,714"}},{"$f":"'Trial 4'!BL22","v":{"v":33808664.509548634,"d":"$33,808,665"}},{"$f":"'Trial 4'!BM22","v":{"v":33795559.73716014,"d":"$33,795,560"}},{"$f":"'Trial 4'!BM22","v":{"v":33795559.73716014,"d":"$33,795,560"}},{"$f":"'Trial 4'!BO22","v":{"v":33783303.441083394,"d":"$33,783,303"}},{"$f":"'Trial 4'!BP22","v":{"v":33770773.475430295,"d":"$33,770,773"}},{"$f":"'Trial 4'!BQ22","v":{"v":33758374.235038854,"d":"$33,758,374"}},{"$f":"'Trial 4'!BR22","v":{"v":33742720.32835741,"d":"$33,742,720"}},{"$f":"'Trial 4'!BS22","v":{"v":33729090.850406006,"d":"$33,729,091"}},{"$f":"'Trial 4'!BT22","v":{"v":33712445.61685086,"d":"$33,712,446"}},{"$f":"'Trial 4'!BU22","v":{"v":33699651.20695442,"d":"$33,699,651"}},{"$f":"'Trial 4'!BV22","v":{"v":33684597.22133623,"d":"$33,684,597"}},{"$f":"'Trial 4'!BW22","v":{"v":33668706.93238838,"d":"$33,668,707"}},{"$f":"'Trial 4'!BX22","v":{"v":33652056.82598843,"d":"$33,652,057"}},{"$f":"'Trial 4'!BY22","v":{"v":33639754.25842965,"d":"$33,639,754"}},{"$f":"'Trial 4'!BZ22","v":{"v":33625222.30110756,"d":"$33,625,222"}},{"$f":"'Trial 4'!BZ22","v":{"v":33625222.30110756,"d":"$33,625,222"}},{"$f":"'Trial 4'!CB22","v":{"v":33612288.89434176,"d":"$33,612,289"}},{"$f":"'Trial 4'!CC22","v":{"v":33596185.102173455,"d":"$33,596,185"}},{"$f":"'Trial 4'!CD22","v":{"v":33583124.96864029,"d":"$33,583,125"}},{"$f":"'Trial 4'!CE22","v":{"v":33567787.62645041,"d":"$33,567,788"}},{"$f":"'Trial 4'!CF22","v":{"v":33552921.345410187,"d":"$33,552,921"}},{"$f":"'Trial 4'!CG22","v":{"v":33539158.31621243,"d":"$33,539,158"}},{"$f":"'Trial 4'!CH22","v":{"v":33524123.58026382,"d":"$33,524,124"}},{"$f":"'Trial 4'!CI22","v":{"v":33514276.3852053,"d":"$33,514,276"}},{"$f":"'Trial 4'!CJ22","v":{"v":33502417.959437136,"d":"$33,502,418"}},{"$f":"'Trial 4'!CK22","v":{"v":33488037.38570734,"d":"$33,488,037"}},{"$f":"'Trial 4'!CL22","v":{"v":33476338.628921658,"d":"$33,476,339"}},{"$f":"'Trial 4'!CM22","v":{"v":33462781.502396807,"d":"$33,462,782"}},{"$f":"'Trial 4'!CM22","v":{"v":33462781.502396807,"d":"$33,462,782"}},{"$f":"'Trial 4'!CO22","v":{"v":33447173.266641732,"d":"$33,447,173"}},{"$f":"'Trial 4'!CP22","v":{"v":33435236.63475392,"d":"$33,435,237"}},{"$f":"'Trial 4'!CQ22","v":{"v":33422662.54471131,"d":"$33,422,663"}},{"$f":"'Trial 4'!CR22","v":{"v":33410724.226990454,"d":"$33,410,724"}},{"$f":"'Trial 4'!CS22","v":{"v":33396873.210660685,"d":"$33,396,873"}},{"$f":"'Trial 4'!CT22","v":{"v":33381080.250365008,"d":"$33,381,080"}},{"$f":"'Trial 4'!CU22","v":{"v":33363659.51070341,"d":"$33,363,660"}},{"$f":"'Trial 4'!CV22","v":{"v":33353319.899109654,"d":"$33,353,320"}},{"$f":"'Trial 4'!CW22","v":{"v":33340426.029558893,"d":"$33,340,426"}},{"$f":"'Trial 4'!CX22","v":{"v":33327321.438289966,"d":"$33,327,321"}},{"$f":"'Trial 4'!CY22","v":{"v":33309918.832511365,"d":"$33,309,919"}},{"$f":"'Trial 4'!CZ22","v":{"v":33297369.391804393,"d":"$33,297,369"}},{"$f":"'Trial 4'!CZ22","v":{"v":33297369.391804393,"d":"$33,297,369"}},{"$f":"'Trial 4'!DB22","v":{"v":33286288.157646652,"d":"$33,286,288"}},{"$f":"'Trial 4'!DC22","v":{"v":33270776.89266672,"d":"$33,270,777"}},{"$f":"'Trial 4'!DD22","v":{"v":33254109.858612474,"d":"$33,254,110"}},{"$f":"'Trial 4'!DE22","v":{"v":33241580.722999614,"d":"$33,241,581"}},{"$f":"'Trial 4'!DF22","v":{"v":33229068.53828045,"d":"$33,229,069"}},{"$f":"'Trial 4'!DG22","v":{"v":33215447.358736973,"d":"$33,215,447"}},{"$f":"'Trial 4'!DH22","v":{"v":33202412.285156034,"d":"$33,202,412"}},{"$f":"'Trial 4'!DI22","v":{"v":33185792.37090785,"d":"$33,185,792"}},{"$f":"'Trial 4'!DJ22","v":{"v":33173585.716958765,"d":"$33,173,586"}},{"$f":"'Trial 4'!DK22","v":{"v":33158344.732293755,"d":"$33,158,345"}},{"$f":"'Trial 4'!DL22","v":{"v":33145762.468166605,"d":"$33,145,762"}},{"$f":"'Trial 4'!DM22","v":{"v":33132471.338873636,"d":"$33,132,471"}},{"$f":"'Trial 4'!DM22","v":{"v":33132471.338873636,"d":"$33,132,471"}},{"$f":"'Trial 4'!DO22","v":{"v":33117420.103544142,"d":"$33,117,420"}},{"$f":"'Trial 4'!DP22","v":{"v":33106581.721778046,"d":"$33,106,582"}},{"$f":"'Trial 4'!DQ22","v":{"v":33096669.337497532,"d":"$33,096,669"}},{"$f":"'Trial 4'!DR22","v":{"v":33080603.819541886,"d":"$33,080,604"}},{"$f":"'Trial 4'!DS22","v":{"v":33070020.506244197,"d":"$33,070,021"}},{"$f":"'Trial 4'!DT22","v":{"v":33059850.793098476,"d":"$33,059,851"}},{"$f":"'Trial 4'!DU22","v":{"v":33047836.93406187,"d":"$33,047,837"}},{"$f":"'Trial 4'!DV22","v":{"v":33032722.770196654,"d":"$33,032,723"}},{"$f":"'Trial 4'!DW22","v":{"v":33018285.105741184,"d":"$33,018,285"}},{"$f":"'Trial 4'!DX22","v":{"v":33000231.643458195,"d":"$33,000,232"}},{"$f":"'Trial 4'!DY22","v":{"v":32989172.737011775,"d":"$32,989,173"}},{"$f":"'Trial 4'!DZ22","v":{"v":32977585.719611015,"d":"$32,977,586"}},{"$f":"'Trial 4'!DZ22","v":{"v":32977585.719611015,"d":"$32,977,586"}},{"$f":"'Trial 4'!EB22","v":{"v":32966972.338095687,"d":"$32,966,972"}},{"$f":"'Trial 4'!EC22","v":{"v":32952747.191853646,"d":"$32,952,747"}},{"$f":"'Trial 4'!ED22","v":{"v":32934503.33509343,"d":"$32,934,503"}},{"$f":"'Trial 4'!EE22","v":{"v":32919764.446494106,"d":"$32,919,764"}},{"$f":"'Trial 4'!EF22","v":{"v":32908449.915468264,"d":"$32,908,450"}},{"$f":"'Trial 4'!EG22","v":{"v":32897924.349810366,"d":"$32,897,924"}},{"$f":"'Trial 4'!EH22","v":{"v":32883007.392951008,"d":"$32,883,007"}},{"$f":"'Trial 4'!EI22","v":{"v":32870628.50528554,"d":"$32,870,629"}},{"$f":"'Trial 4'!EJ22","v":{"v":32853221.468705684,"d":"$32,853,221"}},{"$f":"'Trial 4'!EK22","v":{"v":32835795.332236607,"d":"$32,835,795"}},{"$f":"'Trial 4'!EL22","v":{"v":32824061.266457263,"d":"$32,824,061"}},{"$f":"'Trial 4'!EM22","v":{"v":32807628.882594775,"d":"$32,807,629"}},{"$f":"'Trial 4'!EM22","v":{"v":32807628.882594775,"d":"$32,807,629"}}]
[{"$f":"Labels!B100","v":"Trial 05"},{"$f":"'Trial 5'!B22","v":{"v":34645298.42192645,"d":"$34,645,298"}},{"$f":"'Trial 5'!C22","v":{"v":34628599.37310188,"d":"$34,628,599"}},{"$f":"'Trial 5'!D22","v":{"v":34612603.71556249,"d":"$34,612,604"}},{"$f":"'Trial 5'!E22","v":{"v":34601218.85980364,"d":"$34,601,219"}},{"$f":"'Trial 5'!F22","v":{"v":34583660.57399619,"d":"$34,583,661"}},{"$f":"'Trial 5'!G22","v":{"v":34568274.34612986,"d":"$34,568,274"}},{"$f":"'Trial 5'!H22","v":{"v":34552579.62556409,"d":"$34,552,580"}},{"$f":"'Trial 5'!I22","v":{"v":34538418.0995861,"d":"$34,538,418"}},{"$f":"'Trial 5'!J22","v":{"v":34525741.27294041,"d":"$34,525,741"}},{"$f":"'Trial 5'!K22","v":{"v":34515851.14112047,"d":"$34,515,851"}},{"$f":"'Trial 5'!L22","v":{"v":34499906.22669267,"d":"$34,499,906"}},{"$f":"'Trial 5'!M22","v":{"v":34484386.873341076,"d":"$34,484,387"}},{"$f":"'Trial 5'!M22","v":{"v":34484386.873341076,"d":"$34,484,387"}},{"$f":"'Trial 5'!O22","v":{"v":34470273.22835621,"d":"$34,470,273"}},{"$f":"'Trial 5'!P22","v":{"v":34455521.69936901,"d":"$34,455,522"}},{"$f":"'Trial 5'!Q22","v":{"v":34441740.41803927,"d":"$34,441,740"}},{"$f":"'Trial 5'!R22","v":{"v":34427118.98332958,"d":"$34,427,119"}},{"$f":"'Trial 5'!S22","v":{"v":34413550.165809706,"d":"$34,413,550"}},{"$f":"'Trial 5'!T22","v":{"v":34396645.441059396,"d":"$34,396,645"}},{"$f":"'Trial 5'!U22","v":{"v":34386706.417434126,"d":"$34,386,706"}},{"$f":"'Trial 5'!V22","v":{"v":34373616.63551212,"d":"$34,373,617"}},{"$f":"'Trial 5'!W22","v":{"v":34359281.55003248,"d":"$34,359,282"}},{"$f":"'Trial 5'!X22","v":{"v":34345828.87963655,"d":"$34,345,829"}},{"$f":"'Trial 5'!Y22","v":{"v":34329396.95993028,"d":"$34,329,397"}},{"$f":"'Trial 5'!Z22","v":{"v":34319205.57974826,"d":"$34,319,206"}},{"$f":"'Trial 5'!Z22","v":{"v":34319205.57974826,"d":"$34,319,206"}},{"$f":"'Trial 5'!AB22","v":{"v":34304176.88683356,"d":"$34,304,177"}},{"$f":"'Trial 5'!AC22","v":{"v":34291255.88385411,"d":"$34,291,256"}},{"$f":"'Trial 5'!AD22","v":{"v":34277161.524202265,"d":"$34,277,162"}},{"$f":"'Trial 5'!AE22","v":{"v":34266632.723244764,"d":"$34,266,633"}},{"$f":"'Trial 5'!AF22","v":{"v":34248582.68402204,"d":"$34,248,583"}},{"$f":"'Trial 5'!AG22","v":{"v":34231226.78845472,"d":"$34,231,227"}},{"$f":"'Trial 5'!AH22","v":{"v":34216034.13985766,"d":"$34,216,034"}},{"$f":"'Trial 5'!AI22","v":{"v":34202929.93572896,"d":"$34,202,930"}},{"$f":"'Trial 5'!AJ22","v":{"v":34186522.11108531,"d":"$34,186,522"}},{"$f":"'Trial 5'!AK22","v":{"v":34172990.71768417,"d":"$34,172,991"}},{"$f":"'Trial 5'!AL22","v":{"v":34156494.95125408,"d":"$34,156,495"}},{"$f":"'Trial 5'!AM22","v":{"v":34141814.021242484,"d":"$34,141,814"}},{"$f":"'Trial 5'!AM22","v":{"v":34141814.021242484,"d":"$34,141,814"}},{"$f":"'Trial 5'!AO22","v":{"v":34125582.26845431,"d":"$34,125,582"}},{"$f":"'Trial 5'!AP22","v":{"v":34111544.9363995,"d":"$34,111,545"}},{"$f":"'Trial 5'!AQ22","v":{"v":34097739.61933919,"d":"$34,097,740"}},{"$f":"'Trial 5'!AR22","v":{"v":34082821.586680666,"d":"$34,082,822"}},{"$f":"'Trial 5'!AS22","v":{"v":34069833.118199185,"d":"$34,069,833"}},{"$f":"'Trial 5'!AT22","v":{"v":34057236.748897135,"d":"$34,057,237"}},{"$f":"'Trial 5'!AU22","v":{"v":34042008.861499496,"d":"$34,042,009"}},{"$f":"'Trial 5'!AV22","v":{"v":34028819.05570022,"d":"$34,028,819"}},{"$f":"'Trial 5'!AW22","v":{"v":34014949.10201445,"d":"$34,014,949"}},{"$f":"'Trial 5'!AX22","v":{"v":34000313.39527343,"d":"$34,000,313"}},{"$f":"'Trial 5'!AY22","v":{"v":33985712.20025166,"d":"$33,985,712"}},{"$f":"'Trial 5'!AZ22","v":{"v":33972239.67184318,"d":"$33,972,240"}},{"$f":"'Trial 5'!AZ22","v":{"v":33972239.67184318,"d":"$33,972,240"}},{"$f":"'Trial 5'!BB22","v":{"v":33957682.90612359,"d":"$33,957,683"}},{"$f":"'Trial 5'!BC22","v":{"v":33942121.39764629,"d":"$33,942,121"}},{"$f":"'Trial 5'!BD22","v":{"v":33925215.96596385,"d":"$33,925,216"}},{"$f":"'Trial 5'!BE22","v":{"v":33907178.231270015,"d":"$33,907,178"}},{"$f":"'Trial 5'!BF22","v":{"v":33894190.40102107,"d":"$33,894,190"}},{"$f":"'Trial 5'!BG22","v":{"v":33879037.426223926,"d":"$33,879,037"}},{"$f":"'Trial 5'!BH22","v":{"v":33865556.90212924,"d":"$33,865,557"}},{"$f":"'Trial 5'!BI22","v":{"v":33848511.566027954,"d":"$33,848,512"}},{"$f":"'Trial 5'!BJ22","v":{"v":33835139.52746756,"d":"$33,835,140"}},{"$f":"'Trial 5'!BK22","v":{"v":33823775.60527562,"d":"$33,823,776"}},{"$f":"'Trial 5'!BL22","v":{"v":33810643.62712014,"d":"$33,810,644"}},{"$f":"'Trial 5'!BM22","v":{"v":33799344.40062655,"d":"$33,799,344"}},{"$f":"'Trial 5'!BM22","v":{"v":33799344.40062655,"d":"$33,799,344"}},{"$f":"'Trial 5'!BO22","v":{"v":33785960.60744987,"d":"$33,785,961"}},{"$f":"'Trial 5'!BP22","v":{"v":33774536.423438035,"d":"$33,774,536"}},{"$f":"'Trial 5'!BQ22","v":{"v":33764287.51783124,"d":"$33,764,288"}},{"$f":"'Trial 5'!BR22","v":{"v":33753881.260557406,"d":"$33,753,881"}},{"$f":"'Trial 5'!BS22","v":{"v":33737269.41700712,"d":"$33,737,269"}},{"$f":"'Trial 5'!BT22","v":{"v":33723226.17436511,"d":"$33,723,226"}},{"$f":"'Trial 5'!BU22","v":{"v":33713122.57145279,"d":"$33,713,123"}},{"$f":"'Trial 5'!BV22","v":{"v":33696710.78653421,"d":"$33,696,711"}},{"$f":"'Trial 5'!BW22","v":{"v":33682213.37742239,"d":"$33,682,213"}},{"$f":"'Trial 5'!BX22","v":{"v":33668547.61412248,"d":"$33,668,548"}},{"$f":"'Trial 5'!BY22","v":{"v":33657565.695729055,"d":"$33,657,566"}},{"$f":"'Trial 5'!BZ22","v":{"v":33646837.84012126,"d":"$33,646,838"}},{"$f":"'Trial 5'!BZ22","v":{"v":33646837.84012126,"d":"$33,646,838"}},{"$f":"'Trial 5'!CB22","v":{"v":33635224.366879284,"d":"$33,635,224"}},{"$f":"'Trial 5'!CC22","v":{"v":33620834.99502601,"d":"$33,620,835"}},{"$f":"'Trial 5'!CD22","v":{"v":33606949.094885446,"d":"$33,606,949"}},{"$f":"'Trial 5'!CE22","v":{"v":33592630.35814143,"d":"$33,592,630"}},{"$f":"'Trial 5'!CF22","v":{"v":33577243.33472054,"d":"$33,577,243"}},{"$f":"'Trial 5'!CG22","v":{"v":33563660.80244669,"d":"$33,563,661"}},{"$f":"'Trial 5'!CH22","v":{"v":33553694.584586915,"d":"$33,553,695"}},{"$f":"'Trial 5'!CI22","v":{"v":33538111.484046295,"d":"$33,538,111"}},{"$f":"'Trial 5'!CJ22","v":{"v":33522096.12201012,"d":"$33,522,096"}},{"$f":"'Trial 5'!CK22","v":{"v":33508832.80337265,"d":"$33,508,833"}},{"$f":"'Trial 5'!CL22","v":{"v":33498602.76166805,"d":"$33,498,603"}},{"$f":"'Trial 5'!CM22","v":{"v":33482409.380711198,"d":"$33,482,409"}},{"$f":"'Trial 5'!CM22","v":{"v":33482409.380711198,"d":"$33,482,409"}},{"$f":"'Trial 5'!CO22","v":{"v":33469588.056331925,"d":"$33,469,588"}},{"$f":"'Trial 5'!CP22","v":{"v":33456543.688838374,"d":"$33,456,544"}},{"$f":"'Trial 5'!CQ22","v":{"v":33440316.038484965,"d":"$33,440,316"}},{"$f":"'Trial 5'!CR22","v":{"v":33429545.53137312,"d":"$33,429,546"}},{"$f":"'Trial 5'!CS22","v":{"v":33413770.39478793,"d":"$33,413,770"}},{"$f":"'Trial 5'!CT22","v":{"v":33398668.03659915,"d":"$33,398,668"}},{"$f":"'Trial 5'!CU22","v":{"v":33385831.256578024,"d":"$33,385,831"}},{"$f":"'Trial 5'!CV22","v":{"v":33372340.865093827,"d":"$33,372,341"}},{"$f":"'Trial 5'!CW22","v":{"v":33357696.033530485,"d":"$33,357,696"}},{"$f":"'Trial 5'!CX22","v":{"v":33345809.31729181,"d":"$33,345,809"}},{"$f":"'Trial 5'!CY22","v":{"v":33330768.021428265,"d":"$33,330,768"}},{"$f":"'Trial 5'!CZ22","v":{"v":33316586.493860766,"d":"$33,316,586"}},{"$f":"'Trial 5'!CZ22","v":{"v":33316586.493860766,"d":"$33,316,586"}},{"$f":"'Trial 5'!DB22","v":{"v":33299107.1912396,"d":"$33,299,107"}},{"$f":"'Trial 5'!DC22","v":{"v":33286419.365711365,"d":"$33,286,419"}},{"$f":"'Trial 5'!DD22","v":{"v":33272541.54184168,"d":"$33,272,542"}},{"$f":"'Trial 5'!DE22","v":{"v":33259243.237388335,"d":"$33,259,243"}},{"$f":"'Trial 5'!DF22","v":{"v":33243742.108512107,"d":"$33,243,742"}},{"$f":"'Trial 5'!DG22","v":{"v":33227740.381873615,"d":"$33,227,740"}},{"$f":"'Trial 5'!DH22","v":{"v":33215807.17258886,"d":"$33,215,807"}},{"$f":"'Trial 5'!DI22","v":{"v":33205548.526187256,"d":"$33,205,549"}},{"$f":"'Trial 5'!DJ22","v":{"v":33191676.223606724,"d":"$33,191,676"}},{"$f":"'Trial 5'!DK22","v":{"v":33175656.489494365,"d":"$33,175,656"}},{"$f":"'Trial 5'!DL22","v":{"v":33161221.06517542,"d":"$33,161,221"}},{"$f":"'Trial 5'!DM22","v":{"v":33144880.31009179,"d":"$33,144,880"}},{"$f":"'Trial 5'!DM22","v":{"v":33144880.31009179,"d":"$33,144,880"}},{"$f":"'Trial 5'!DO22","v":{"v":33130955.155806173,"d":"$33,130,955"}},{"$f":"'Trial 5'!DP22","v":{"v":33115786.44914039,"d":"$33,115,786"}},{"$f":"'Trial 5'!DQ22","v":{"v":33101674.311492004,"d":"$33,101,674"}},{"$f":"'Trial 5'!DR22","v":{"v":33091045.79330218,"d":"$33,091,046"}},{"$f":"'Trial 5'!DS22","v":{"v":33078662.386316814,"d":"$33,078,662"}},{"$f":"'Trial 5'!DT22","v":{"v":33065847.295814894,"d":"$33,065,847"}},{"$f":"'Trial 5'!DU22","v":{"v":33054213.167698387,"d":"$33,054,213"}},{"$f":"'Trial 5'!DV22","v":{"v":33038495.971505724,"d":"$33,038,496"}},{"$f":"'Trial 5'!DW22","v":{"v":33024803.940932244,"d":"$33,024,804"}},{"$f":"'Trial 5'!DX22","v":{"v":33012661.59009433,"d":"$33,012,662"}},{"$f":"'Trial 5'!DY22","v":{"v":32997518.176959597,"d":"$32,997,518"}},{"$f":"'Trial 5'!DZ22","v":{"v":32983504.464150917,"d":"$32,983,504"}},{"$f":"'Trial 5'!DZ22","v":{"v":32983504.464150917,"d":"$32,983,504"}},{"$f":"'Trial 5'!EB22","v":{"v":32967501.71966712,"d":"$32,967,502"}},{"$f":"'Trial 5'!EC22","v":{"v":32953383.71177077,"d":"$32,953,384"}},{"$f":"'Trial 5'!ED22","v":{"v":32941995.68964985,"d":"$32,941,996"}},{"$f":"'Trial 5'!EE22","v":{"v":32926285.750931796,"d":"$32,926,286"}},{"$f":"'Trial 5'!EF22","v":{"v":32912712.336608846,"d":"$32,912,712"}},{"$f":"'Trial 5'!EG22","v":{"v":32899010.9797649,"d":"$32,899,011"}},{"$f":"'Trial 5'!EH22","v":{"v":32887367.98637046,"d":"$32,887,368"}},{"$f":"'Trial 5'!EI22","v":{"v":32870271.1287704,"d":"$32,870,271"}},{"$f":"'Trial 5'!EJ22","v":{"v":32854044.925267406,"d":"$32,854,045"}},{"$f":"'Trial 5'!EK22","v":{"v":32838810.89011584,"d":"$32,838,811"}},{"$f":"'Trial 5'!EL22","v":{"v":32825026.475656126,"d":"$32,825,026"}},{"$f":"'Trial 5'!EM22","v":{"v":32811338.016785853,"d":"$32,811,338"}},{"$f":"'Trial 5'!EM22","v":{"v":32811338.016785853,"d":"$32,811,338"}}]
[{"$f":"Labels!B101","v":"Trial 06"},{"$f":"'Trial 6'!B22","v":{"v":34645298.42192645,"d":"$34,645,298"}},{"$f":"'Trial 6'!C22","v":{"v":34631812.82722025,"d":"$34,631,813"}},{"$f":"'Trial 6'!D22","v":{"v":34613699.53270011,"d":"$34,613,700"}},{"$f":"'Trial 6'!E22","v":{"v":34601886.52378357,"d":"$34,601,887"}},{"$f":"'Trial 6'!F22","v":{"v":34591229.22011053,"d":"$34,591,229"}},{"$f":"'Trial 6'!G22","v":{"v":34578371.011161454,"d":"$34,578,371"}},{"$f":"'Trial 6'!H22","v":{"v":34562669.351101756,"d":"$34,562,669"}},{"$f":"'Trial 6'!I22","v":{"v":34548291.06365634,"d":"$34,548,291"}},{"$f":"'Trial 6'!J22","v":{"v":34533829.37605615,"d":"$34,533,829"}},{"$f":"'Trial 6'!K22","v":{"v":34522047.13471993,"d":"$34,522,047"}},{"$f":"'Trial 6'!L22","v":{"v":34507929.367164336,"d":"$34,507,929"}},{"$f":"'Trial 6'!M22","v":{"v":34497407.74265118,"d":"$34,497,408"}},{"$f":"'Trial 6'!M22","v":{"v":34497407.74265118,"d":"$34,497,408"}},{"$f":"'Trial 6'!O22","v":{"v":34483202.258187905,"d":"$34,483,202"}},{"$f":"'Trial 6'!P22","v":{"v":34472037.7271618,"d":"$34,472,038"}},{"$f":"'Trial 6'!Q22","v":{"v":34457303.679064415,"d":"$34,457,304"}},{"$f":"'Trial 6'!R22","v":{"v":34446175.71956217,"d":"$34,446,176"}},{"$f":"'Trial 6'!S22","v":{"v":34434084.70409257,"d":"$34,434,085"}},{"$f":"'Trial 6'!T22","v":{"v":34416189.87363408,"d":"$34,416,190"}},{"$f":"'Trial 6'!U22","v":{"v":34401437.66627538,"d":"$34,401,438"}},{"$f":"'Trial 6'!V22","v":{"v":34388751.589947164,"d":"$34,388,752"}},{"$f":"'Trial 6'!W22","v":{"v":34373036.97964457,"d":"$34,373,037"}},{"$f":"'Trial 6'!X22","v":{"v":34357829.51601719,"d":"$34,357,830"}},{"$f":"'Trial 6'!Y22","v":{"v":34344555.23757108,"d":"$34,344,555"}},{"$f":"'Trial 6'!Z22","v":{"v":34332569.21141083,"d":"$34,332,569"}},{"$f":"'Trial 6'!Z22","v":{"v":34332569.21141083,"d":"$34,332,569"}},{"$f":"'Trial 6'!AB22","v":{"v":34316269.801931426,"d":"$34,316,270"}},{"$f":"'Trial 6'!AC22","v":{"v":34302732.49193323,"d":"$34,302,732"}},{"$f":"'Trial 6'!AD22","v":{"v":34289945.527461514,"d":"$34,289,946"}},{"$f":"'Trial 6'!AE22","v":{"v":34278420.551042095,"d":"$34,278,421"}},{"$f":"'Trial 6'!AF22","v":{"v":34265166.562069155,"d":"$34,265,167"}},{"$f":"'Trial 6'!AG22","v":{"v":34253645.51307597,"d":"$34,253,646"}},{"$f":"'Trial 6'!AH22","v":{"v":34240268.42812766,"d":"$34,240,268"}},{"$f":"'Trial 6'!AI22","v":{"v":34228107.47011357,"d":"$34,228,107"}},{"$f":"'Trial 6'!AJ22","v":{"v":34213640.69875081,"d":"$34,213,641"}},{"$f":"'Trial 6'!AK22","v":{"v":34198098.04869015,"d":"$34,198,098"}},{"$f":"'Trial 6'!AL22","v":{"v":34184368.341502704,"d":"$34,184,368"}},{"$f":"'Trial 6'!AM22","v":{"v":34172471.96862848,"d":"$34,172,472"}},{"$f":"'Trial 6'!AM22","v":{"v":34172471.96862848,"d":"$34,172,472"}},{"$f":"'Trial 6'!AO22","v":{"v":34161809.48963097,"d":"$34,161,809"}},{"$f":"'Trial 6'!AP22","v":{"v":34148537.45044265,"d":"$34,148,537"}},{"$f":"'Trial 6'!AQ22","v":{"v":34133942.05046182,"d":"$34,133,942"}},{"$f":"'Trial 6'!AR22","v":{"v":34118599.649552286,"d":"$34,118,600"}},{"$f":"'Trial 6'!AS22","v":{"v":34104959.50772446,"d":"$34,104,960"}},{"$f":"'Trial 6'!AT22","v":{"v":34090239.82849023,"d":"$34,090,240"}},{"$f":"'Trial 6'!AU22","v":{"v":34074662.72448019,"d":"$34,074,663"}},{"$f":"'Trial 6'!AV22","v":{"v":34056831.8718731,"d":"$34,056,832"}},{"$f":"'Trial 6'!AW22","v":{"v":34043389.935652584,"d":"$34,043,390"}},{"$f":"'Trial 6'!AX22","v":{"v":34028122.8664096,"d":"$34,028,123"}},{"$f":"'Trial 6'!AY22","v":{"v":34011240.84577328,"d":"$34,011,241"}},{"$f":"'Trial 6'!AZ22","v":{"v":33998232.921720915,"d":"$33,998,233"}},{"$f":"'Trial 6'!AZ22","v":{"v":33998232.921720915,"d":"$33,998,233"}},{"$f":"'Trial 6'!BB22","v":{"v":33987185.685264654,"d":"$33,987,186"}},{"$f":"'Trial 6'!BC22","v":{"v":33969347.31224446,"d":"$33,969,347"}},{"$f":"'Trial 6'!BD22","v":{"v":33953150.46356068,"d":"$33,953,150"}},{"$f":"'Trial 6'!BE22","v":{"v":33937710.42355625,"d":"$33,937,710"}},{"$f":"'Trial 6'!BF22","v":{"v":33921794.568227656,"d":"$33,921,795"}},{"$f":"'Trial 6'!BG22","v":{"v":33907547.80037178,"d":"$33,907,548"}},{"$f":"'Trial 6'!BH22","v":{"v":33894308.95724806,"d":"$33,894,309"}},{"$f":"'Trial 6'!BI22","v":{"v":33882237.43069728,"d":"$33,882,237"}},{"$f":"'Trial 6'!BJ22","v":{"v":33866655.81024205,"d":"$33,866,656"}},{"$f":"'Trial 6'!BK22","v":{"v":33855922.52091801,"d":"$33,855,923"}},{"$f":"'Trial 6'!BL22","v":{"v":33842637.97615904,"d":"$33,842,638"}},{"$f":"'Trial 6'!BM22","v":{"v":33825193.95999999,"d":"$33,825,194"}},{"$f":"'Trial 6'!BM22","v":{"v":33825193.95999999,"d":"$33,825,194"}},{"$f":"'Trial 6'!BO22","v":{"v":33811955.83456643,"d":"$33,811,956"}},{"$f":"'Trial 6'!BP22","v":{"v":33794020.27584867,"d":"$33,794,020"}},{"$f":"'Trial 6'!BQ22","v":{"v":33779135.061639234,"d":"$33,779,135"}},{"$f":"'Trial 6'!BR22","v":{"v":33763860.753918424,"d":"$33,763,861"}},{"$f":"'Trial 6'!BS22","v":{"v":33747735.5945948,"d":"$33,747,736"}},{"$f":"'Trial 6'!BT22","v":{"v":33729689.0728874,"d":"$33,729,689"}},{"$f":"'Trial 6'!BU22","v":{"v":33717893.46667226,"d":"$33,717,893"}},{"$f":"'Trial 6'!BV22","v":{"v":33703931.88576202,"d":"$33,703,932"}},{"$f":"'Trial 6'!BW22","v":{"v":33690965.92648923,"d":"$33,690,966"}},{"$f":"'Trial 6'!BX22","v":{"v":33678722.46053416,"d":"$33,678,722"}},{"$f":"'Trial 6'!BY22","v":{"v":33662731.363478586,"d":"$33,662,731"}},{"$f":"'Trial 6'!BZ22","v":{"v":33652092.52899841,"d":"$33,652,093"}},{"$f":"'Trial 6'!BZ22","v":{"v":33652092.52899841,"d":"$33,652,093"}},{"$f":"'Trial 6'!CB22","v":{"v":33639986.262263834,"d":"$33,639,986"}},{"$f":"'Trial 6'!CC22","v":{"v":33626129.30112309,"d":"$33,626,129"}},{"$f":"'Trial 6'!CD22","v":{"v":33611713.70259343,"d":"$33,611,714"}},{"$f":"'Trial 6'!CE22","v":{"v":33601142.037953116,"d":"$33,601,142"}},{"$f":"'Trial 6'!CF22","v":{"v":33586406.94053929,"d":"$33,586,407"}},{"$f":"'Trial 6'!CG22","v":{"v":33571377.2457196,"d":"$33,571,377"}},{"$f":"'Trial 6'!CH22","v":{"v":33559189.694083564,"d":"$33,559,190"}},{"$f":"'Trial 6'!CI22","v":{"v":33546883.014692403,"d":"$33,546,883"}},{"$f":"'Trial 6'!CJ22","v":{"v":33535514.573499024,"d":"$33,535,515"}},{"$f":"'Trial 6'!CK22","v":{"v":33521675.93348945,"d":"$33,521,676"}},{"$f":"'Trial 6'!CL22","v":{"v":33508721.645226486,"d":"$33,508,722"}},{"$f":"'Trial 6'!CM22","v":{"v":33497279.96362176,"d":"$33,497,280"}},{"$f":"'Trial 6'!CM22","v":{"v":33497279.96362176,"d":"$33,497,280"}},{"$f":"'Trial 6'!CO22","v":{"v":33485231.13737238,"d":"$33,485,231"}},{"$f":"'Trial 6'!CP22","v":{"v":33471821.589117065,"d":"$33,471,822"}},{"$f":"'Trial 6'!CQ22","v":{"v":33460373.33869305,"d":"$33,460,373"}},{"$f":"'Trial 6'!CR22","v":{"v":33446536.3607467,"d":"$33,446,536"}},{"$f":"'Trial 6'!CS22","v":{"v":33432766.945138328,"d":"$33,432,767"}},{"$f":"'Trial 6'!CT22","v":{"v":33416994.273580432,"d":"$33,416,994"}},{"$f":"'Trial 6'!CU22","v":{"v":33401511.706811864,"d":"$33,401,512"}},{"$f":"'Trial 6'!CV22","v":{"v":33391069.297964077,"d":"$33,391,069"}},{"$f":"'Trial 6'!CW22","v":{"v":33374831.51058311,"d":"$33,374,832"}},{"$f":"'Trial 6'!CX22","v":{"v":33364186.194211043,"d":"$33,364,186"}},{"$f":"'Trial 6'!CY22","v":{"v":33350925.59354625,"d":"$33,350,926"}},{"$f":"'Trial 6'!CZ22","v":{"v":33335144.135562763,"d":"$33,335,144"}},{"$f":"'Trial 6'!CZ22","v":{"v":33335144.135562763,"d":"$33,335,144"}},{"$f":"'Trial 6'!DB22","v":{"v":33322342.226847257,"d":"$33,322,342"}},{"$f":"'Trial 6'!DC22","v":{"v":33309791.58620549,"d":"$33,309,792"}},{"$f":"'Trial 6'!DD22","v":{"v":33292368.02920182,"d":"$33,292,368"}},{"$f":"'Trial 6'!DE22","v":{"v":33277200.521016408,"d":"$33,277,201"}},{"$f":"'Trial 6'!DF22","v":{"v":33263256.82712151,"d":"$33,263,257"}},{"$f":"'Trial 6'!DG22","v":{"v":33246260.639522247,"d":"$33,246,261"}},{"$f":"'Trial 6'!DH22","v":{"v":33231748.296456285,"d":"$33,231,748"}},{"$f":"'Trial 6'!DI22","v":{"v":33215202.334217638,"d":"$33,215,202"}},{"$f":"'Trial 6'!DJ22","v":{"v":33198476.78502464,"d":"$33,198,477"}},{"$f":"'Trial 6'!DK22","v":{"v":33181012.243122235,"d":"$33,181,012"}},{"$f":"'Trial 6'!DL22","v":{"v":33167430.63332933,"d":"$33,167,431"}},{"$f":"'Trial 6'!DM22","v":{"v":33151643.86082016,"d":"$33,151,644"}},{"$f":"'Trial 6'!DM22","v":{"v":33151643.86082016,"d":"$33,151,644"}},{"$f":"'Trial 6'!DO22","v":{"v":33136903.18367588,"d":"$33,136,903"}},{"$f":"'Trial 6'!DP22","v":{"v":33125375.013122085,"d":"$33,125,375"}},{"$f":"'Trial 6'!DQ22","v":{"v":33109858.966428027,"d":"$33,109,859"}},{"$f":"'Trial 6'!DR22","v":{"v":33094564.320620243,"d":"$33,094,564"}},{"$f":"'Trial 6'!DS22","v":{"v":33080616.529131822,"d":"$33,080,617"}},{"$f":"'Trial 6'!DT22","v":{"v":33066301.005486082,"d":"$33,066,301"}},{"$f":"'Trial 6'!DU22","v":{"v":33053710.378888603,"d":"$33,053,710"}},{"$f":"'Trial 6'!DV22","v":{"v":33042112.053772114,"d":"$33,042,112"}},{"$f":"'Trial 6'!DW22","v":{"v":33030901.84019513,"d":"$33,030,902"}},{"$f":"'Trial 6'!DX22","v":{"v":33017443.292993013,"d":"$33,017,443"}},{"$f":"'Trial 6'!DY22","v":{"v":33005266.229407817,"d":"$33,005,266"}},{"$f":"'Trial 6'!DZ22","v":{"v":32990891.478213746,"d":"$32,990,891"}},{"$f":"'Trial 6'!DZ22","v":{"v":32990891.478213746,"d":"$32,990,891"}},{"$f":"'Trial 6'!EB22","v":{"v":32976791.018537737,"d":"$32,976,791"}},{"$f":"'Trial 6'!EC22","v":{"v":32965230.841435153,"d":"$32,965,231"}},{"$f":"'Trial 6'!ED22","v":{"v":32951419.316541295,"d":"$32,951,419"}},{"$f":"'Trial 6'!EE22","v":{"v":32938579.52800007,"d":"$32,938,580"}},{"$f":"'Trial 6'!EF22","v":{"v":32926377.035989612,"d":"$32,926,377"}},{"$f":"'Trial 6'!EG22","v":{"v":32912412.864413887,"d":"$32,912,413"}},{"$f":"'Trial 6'!EH22","v":{"v":32899424.79400038,"d":"$32,899,425"}},{"$f":"'Trial 6'!EI22","v":{"v":32885448.46931446,"d":"$32,885,448"}},{"$f":"'Trial 6'!EJ22","v":{"v":32872410.019863583,"d":"$32,872,410"}},{"$f":"'Trial 6'!EK22","v":{"v":32861238.645387683,"d":"$32,861,239"}},{"$f":"'Trial 6'!EL22","v":{"v":32850967.33589327,"d":"$32,850,967"}},{"$f":"'Trial 6'!EM22","v":{"v":32834551.50304371,"d":"$32,834,552"}},{"$f":"'Trial 6'!EM22","v":{"v":32834551.50304371,"d":"$32,834,552"}}]
[{"$f":"Labels!B102","v":"Trial 07"},{"$f":"'Trial 7'!B22","v":{"v":34645298.42192645,"d":"$34,645,298"}},{"$f":"'Trial 7'!C22","v":{"v":34629351.21843226,"d":"$34,629,351"}},{"$f":"'Trial 7'!D22","v":{"v":34617049.75833437,"d":"$34,617,050"}},{"$f":"'Trial 7'!E22","v":{"v":34604182.49391917,"d":"$34,604,182"}},{"$f":"'Trial 7'!F22","v":{"v":34589684.76617489,"d":"$34,589,685"}},{"$f":"'Trial 7'!G22","v":{"v":34577914.14984907,"d":"$34,577,914"}},{"$f":"'Trial 7'!H22","v":{"v":34566260.88372949,"d":"$34,566,261"}},{"$f":"'Trial 7'!I22","v":{"v":34554453.35097249,"d":"$34,554,453"}},{"$f":"'Trial 7'!J22","v":{"v":34543224.92198004,"d":"$34,543,225"}},{"$f":"'Trial 7'!K22","v":{"v":34528666.077570535,"d":"$34,528,666"}},{"$f":"'Trial 7'!L22","v":{"v":34513073.17877709,"d":"$34,513,073"}},{"$f":"'Trial 7'!M22","v":{"v":34498844.136459954,"d":"$34,498,844"}},{"$f":"'Trial 7'!M22","v":{"v":34498844.136459954,"d":"$34,498,844"}},{"$f":"'Trial 7'!O22","v":{"v":34484183.84700325,"d":"$34,484,184"}},{"$f":"'Trial 7'!P22","v":{"v":34470551.10553625,"d":"$34,470,551"}},{"$f":"'Trial 7'!Q22","v":{"v":34459083.37900949,"d":"$34,459,083"}},{"$f":"'Trial 7'!R22","v":{"v":34447373.68024294,"d":"$34,447,374"}},{"$f":"'Trial 7'!S22","v":{"v":34435059.369046964,"d":"$34,435,059"}},{"$f":"'Trial 7'!T22","v":{"v":34421831.45068094,"d":"$34,421,831"}},{"$f":"'Trial 7'!U22","v":{"v":34409896.110878736,"d":"$34,409,896"}},{"$f":"'Trial 7'!V22","v":{"v":34395548.466946654,"d":"$34,395,548"}},{"$f":"'Trial 7'!W22","v":{"v":34383699.477435775,"d":"$34,383,699"}},{"$f":"'Trial 7'!X22","v":{"v":34372665.7332627,"d":"$34,372,666"}},{"$f":"'Trial 7'!Y22","v":{"v":34360637.835261755,"d":"$34,360,638"}},{"$f":"'Trial 7'!Z22","v":{"v":34346779.47798373,"d":"$34,346,779"}},{"$f":"'Trial 7'!Z22","v":{"v":34346779.47798373,"d":"$34,346,779"}},{"$f":"'Trial 7'!AB22","v":{"v":34329439.767561994,"d":"$34,329,440"}},{"$f":"'Trial 7'!AC22","v":{"v":34311797.19223684,"d":"$34,311,797"}},{"$f":"'Trial 7'!AD22","v":{"v":34297751.14641038,"d":"$34,297,751"}},{"$f":"'Trial 7'!AE22","v":{"v":34284677.278024115,"d":"$34,284,677"}},{"$f":"'Trial 7'!AF22","v":{"v":34272821.64464195,"d":"$34,272,822"}},{"$f":"'Trial 7'!AG22","v":{"v":34257455.1601371,"d":"$34,257,455"}},{"$f":"'Trial 7'!AH22","v":{"v":34244841.44715571,"d":"$34,244,841"}},{"$f":"'Trial 7'!AI22","v":{"v":34232043.01617329,"d":"$34,232,043"}},{"$f":"'Trial 7'!AJ22","v":{"v":34215566.52027474,"d":"$34,215,567"}},{"$f":"'Trial 7'!AK22","v":{"v":34200921.14625282,"d":"$34,200,921"}},{"$f":"'Trial 7'!AL22","v":{"v":34187041.882064424,"d":"$34,187,042"}},{"$f":"'Trial 7'!AM22","v":{"v":34173359.048969425,"d":"$34,173,359"}},{"$f":"'Trial 7'!AM22","v":{"v":34173359.048969425,"d":"$34,173,359"}},{"$f":"'Trial 7'!AO22","v":{"v":34158085.63029377,"d":"$34,158,086"}},{"$f":"'Trial 7'!AP22","v":{"v":34141834.99477562,"d":"$34,141,835"}},{"$f":"'Trial 7'!AQ22","v":{"v":34127319.70897747,"d":"$34,127,320"}},{"$f":"'Trial 7'!AR22","v":{"v":34115141.26055764,"d":"$34,115,141"}},{"$f":"'Trial 7'!AS22","v":{"v":34102811.12556092,"d":"$34,102,811"}},{"$f":"'Trial 7'!AT22","v":{"v":34092212.34675265,"d":"$34,092,212"}},{"$f":"'Trial 7'!AU22","v":{"v":34076623.64133585,"d":"$34,076,624"}},{"$f":"'Trial 7'!AV22","v":{"v":34062213.50117952,"d":"$34,062,214"}},{"$f":"'Trial 7'!AW22","v":{"v":34047718.62431008,"d":"$34,047,719"}},{"$f":"'Trial 7'!AX22","v":{"v":34032253.004669815,"d":"$34,032,253"}},{"$f":"'Trial 7'!AY22","v":{"v":34015943.13993496,"d":"$34,015,943"}},{"$f":"'Trial 7'!AZ22","v":{"v":34000156.54412,"d":"$34,000,157"}},{"$f":"'Trial 7'!AZ22","v":{"v":34000156.54412,"d":"$34,000,157"}},{"$f":"'Trial 7'!BB22","v":{"v":33983031.99158347,"d":"$33,983,032"}},{"$f":"'Trial 7'!BC22","v":{"v":33968007.51425876,"d":"$33,968,008"}},{"$f":"'Trial 7'!BD22","v":{"v":33952807.408842236,"d":"$33,952,807"}},{"$f":"'Trial 7'!BE22","v":{"v":33939679.561346896,"d":"$33,939,680"}},{"$f":"'Trial 7'!BF22","v":{"v":33924874.74524888,"d":"$33,924,875"}},{"$f":"'Trial 7'!BG22","v":{"v":33911716.30980569,"d":"$33,911,716"}},{"$f":"'Trial 7'!BH22","v":{"v":33899979.55148765,"d":"$33,899,980"}},{"$f":"'Trial 7'!BI22","v":{"v":33883759.13680023,"d":"$33,883,759"}},{"$f":"'Trial 7'!BJ22","v":{"v":33869497.29280797,"d":"$33,869,497"}},{"$f":"'Trial 7'!BK22","v":{"v":33854129.227000654,"d":"$33,854,129"}},{"$f":"'Trial 7'!BL22","v":{"v":33837167.99118859,"d":"$33,837,168"}},{"$f":"'Trial 7'!BM22","v":{"v":33821957.73914446,"d":"$33,821,958"}},{"$f":"'Trial 7'!BM22","v":{"v":33821957.73914446,"d":"$33,821,958"}},{"$f":"'Trial 7'!BO22","v":{"v":33809083.99360601,"d":"$33,809,084"}},{"$f":"'Trial 7'!BP22","v":{"v":33793761.20068672,"d":"$33,793,761"}},{"$f":"'Trial 7'!BQ22","v":{"v":33776192.36927358,"d":"$33,776,192"}},{"$f":"'Trial 7'!BR22","v":{"v":33763418.41208847,"d":"$33,763,418"}},{"$f":"'Trial 7'!BS22","v":{"v":33750572.89233444,"d":"$33,750,573"}},{"$f":"'Trial 7'!BT22","v":{"v":33738894.51775991,"d":"$33,738,895"}},{"$f":"'Trial 7'!BU22","v":{"v":33727712.696634606,"d":"$33,727,713"}},{"$f":"'Trial 7'!BV22","v":{"v":33715678.445499666,"d":"$33,715,678"}},{"$f":"'Trial 7'!BW22","v":{"v":33699665.58805462,"d":"$33,699,666"}},{"$f":"'Trial 7'!BX22","v":{"v":33688491.99064784,"d":"$33,688,492"}},{"$f":"'Trial 7'!BY22","v":{"v":33672704.24107913,"d":"$33,672,704"}},{"$f":"'Trial 7'!BZ22","v":{"v":33655677.41778067,"d":"$33,655,677"}},{"$f":"'Trial 7'!BZ22","v":{"v":33655677.41778067,"d":"$33,655,677"}},{"$f":"'Trial 7'!CB22","v":{"v":33637374.40587612,"d":"$33,637,374"}},{"$f":"'Trial 7'!CC22","v":{"v":33622966.806944504,"d":"$33,622,967"}},{"$f":"'Trial 7'!CD22","v":{"v":33610443.27638617,"d":"$33,610,443"}},{"$f":"'Trial 7'!CE22","v":{"v":33598254.85748324,"d":"$33,598,255"}},{"$f":"'Trial 7'!CF22","v":{"v":33580079.33842541,"d":"$33,580,079"}},{"$f":"'Trial 7'!CG22","v":{"v":33564803.505805634,"d":"$33,564,804"}},{"$f":"'Trial 7'!CH22","v":{"v":33552464.36596264,"d":"$33,552,464"}},{"$f":"'Trial 7'!CI22","v":{"v":33534125.17509353,"d":"$33,534,125"}},{"$f":"'Trial 7'!CJ22","v":{"v":33517983.014085643,"d":"$33,517,983"}},{"$f":"'Trial 7'!CK22","v":{"v":33508103.18141197,"d":"$33,508,103"}},{"$f":"'Trial 7'!CL22","v":{"v":33497742.12029746,"d":"$33,497,742"}},{"$f":"'Trial 7'!CM22","v":{"v":33483241.551136672,"d":"$33,483,242"}},{"$f":"'Trial 7'!CM22","v":{"v":33483241.551136672,"d":"$33,483,242"}},{"$f":"'Trial 7'!CO22","v":{"v":33471334.062937528,"d":"$33,471,334"}},{"$f":"'Trial 7'!CP22","v":{"v":33461219.4243222,"d":"$33,461,219"}},{"$f":"'Trial 7'!CQ22","v":{"v":33446845.42640628,"d":"$33,446,845"}},{"$f":"'Trial 7'!CR22","v":{"v":33434007.292264648,"d":"$33,434,007"}},{"$f":"'Trial 7'!CS22","v":{"v":33421648.36596445,"d":"$33,421,648"}},{"$f":"'Trial 7'!CT22","v":{"v":33407824.92280655,"d":"$33,407,825"}},{"$f":"'Trial 7'!CU22","v":{"v":33393550.5241717,"d":"$33,393,551"}},{"$f":"'Trial 7'!CV22","v":{"v":33381635.398187075,"d":"$33,381,635"}},{"$f":"'Trial 7'!CW22","v":{"v":33367505.77793269,"d":"$33,367,506"}},{"$f":"'Trial 7'!CX22","v":{"v":33353143.49158722,"d":"$33,353,143"}},{"$f":"'Trial 7'!CY22","v":{"v":33336150.620418817,"d":"$33,336,151"}},{"$f":"'Trial 7'!CZ22","v":{"v":33319577.804235265,"d":"$33,319,578"}},{"$f":"'Trial 7'!CZ22","v":{"v":33319577.804235265,"d":"$33,319,578"}},{"$f":"'Trial 7'!DB22","v":{"v":33306629.69101517,"d":"$33,306,630"}},{"$f":"'Trial 7'!DC22","v":{"v":33296014.88286372,"d":"$33,296,015"}},{"$f":"'Trial 7'!DD22","v":{"v":33284388.21883596,"d":"$33,284,388"}},{"$f":"'Trial 7'!DE22","v":{"v":33270747.73491644,"d":"$33,270,748"}},{"$f":"'Trial 7'!DF22","v":{"v":33257773.723053355,"d":"$33,257,774"}},{"$f":"'Trial 7'!DG22","v":{"v":33244461.833606534,"d":"$33,244,462"}},{"$f":"'Trial 7'!DH22","v":{"v":33227690.017533794,"d":"$33,227,690"}},{"$f":"'Trial 7'!DI22","v":{"v":33210639.64791914,"d":"$33,210,640"}},{"$f":"'Trial 7'!DJ22","v":{"v":33196894.207734566,"d":"$33,196,894"}},{"$f":"'Trial 7'!DK22","v":{"v":33182765.071092047,"d":"$33,182,765"}},{"$f":"'Trial 7'!DL22","v":{"v":33165693.553333677,"d":"$33,165,694"}},{"$f":"'Trial 7'!DM22","v":{"v":33152055.967246998,"d":"$33,152,056"}},{"$f":"'Trial 7'!DM22","v":{"v":33152055.967246998,"d":"$33,152,056"}},{"$f":"'Trial 7'!DO22","v":{"v":33138569.655255448,"d":"$33,138,570"}},{"$f":"'Trial 7'!DP22","v":{"v":33122840.022544093,"d":"$33,122,840"}},{"$f":"'Trial 7'!DQ22","v":{"v":33108730.427220937,"d":"$33,108,730"}},{"$f":"'Trial 7'!DR22","v":{"v":33094498.507755548,"d":"$33,094,499"}},{"$f":"'Trial 7'!DS22","v":{"v":33078086.72357833,"d":"$33,078,087"}},{"$f":"'Trial 7'!DT22","v":{"v":33064908.43674927,"d":"$33,064,908"}},{"$f":"'Trial 7'!DU22","v":{"v":33048708.338944048,"d":"$33,048,708"}},{"$f":"'Trial 7'!DV22","v":{"v":33033579.405120507,"d":"$33,033,579"}},{"$f":"'Trial 7'!DW22","v":{"v":33021304.688856814,"d":"$33,021,305"}},{"$f":"'Trial 7'!DX22","v":{"v":33011622.54001145,"d":"$33,011,623"}},{"$f":"'Trial 7'!DY22","v":{"v":32994555.11553646,"d":"$32,994,555"}},{"$f":"'Trial 7'!DZ22","v":{"v":32979256.252452966,"d":"$32,979,256"}},{"$f":"'Trial 7'!DZ22","v":{"v":32979256.252452966,"d":"$32,979,256"}},{"$f":"'Trial 7'!EB22","v":{"v":32962944.856494986,"d":"$32,962,945"}},{"$f":"'Trial 7'!EC22","v":{"v":32951602.407221336,"d":"$32,951,602"}},{"$f":"'Trial 7'!ED22","v":{"v":32935524.13198477,"d":"$32,935,524"}},{"$f":"'Trial 7'!EE22","v":{"v":32921522.47970651,"d":"$32,921,522"}},{"$f":"'Trial 7'!EF22","v":{"v":32908424.77884089,"d":"$32,908,425"}},{"$f":"'Trial 7'!EG22","v":{"v":32892479.690461826,"d":"$32,892,480"}},{"$f":"'Trial 7'!EH22","v":{"v":32874594.72956348,"d":"$32,874,595"}},{"$f":"'Trial 7'!EI22","v":{"v":32857270.208599605,"d":"$32,857,270"}},{"$f":"'Trial 7'!EJ22","v":{"v":32844538.455430996,"d":"$32,844,538"}},{"$f":"'Trial 7'!EK22","v":{"v":32832178.093927085,"d":"$32,832,178"}},{"$f":"'Trial 7'!EL22","v":{"v":32818193.5090161,"d":"$32,818,194"}},{"$f":"'Trial 7'!EM22","v":{"v":32806652.409482125,"d":"$32,806,652"}},{"$f":"'Trial 7'!EM22","v":{"v":32806652.409482125,"d":"$32,806,652"}}]
[{"$f":"Labels!B103","v":"Trial 08"},{"$f":"'Trial 8'!B22","v":{"v":34645298.42192645,"d":"$34,645,298"}},{"$f":"'Trial 8'!C22","v":{"v":34628037.35693443,"d":"$34,628,037"}},{"$f":"'Trial 8'!D22","v":{"v":34613221.900703676,"d":"$34,613,222"}},{"$f":"'Trial 8'!E22","v":{"v":34599219.45781327,"d":"$34,599,219"}},{"$f":"'Trial 8'!F22","v":{"v":34585966.14059274,"d":"$34,585,966"}},{"$f":"'Trial 8'!G22","v":{"v":34575979.09441932,"d":"$34,575,979"}},{"$f":"'Trial 8'!H22","v":{"v":34563157.84727877,"d":"$34,563,158"}},{"$f":"'Trial 8'!I22","v":{"v":34548995.40054213,"d":"$34,548,995"}},{"$f":"'Trial 8'!J22","v":{"v":34536514.712682866,"d":"$34,536,515"}},{"$f":"'Trial 8'!K22","v":{"v":34520107.14066722,"d":"$34,520,107"}},{"$f":"'Trial 8'!L22","v":{"v":34507690.59630777,"d":"$34,507,691"}},{"$f":"'Trial 8'!M22","v":{"v":34491033.722998604,"d":"$34,491,034"}},{"$f":"'Trial 8'!M22","v":{"v":34491033.722998604,"d":"$34,491,034"}},{"$f":"'Trial 8'!O22","v":{"v":34477428.64007043,"d":"$34,477,429"}},{"$f":"'Trial 8'!P22","v":{"v":34466760.889321804,"d":"$34,466,761"}},{"$f":"'Trial 8'!Q22","v":{"v":34450897.99610861,"d":"$34,450,898"}},{"$f":"'Trial 8'!R22","v":{"v":34433382.91985753,"d":"$34,433,383"}},{"$f":"'Trial 8'!S22","v":{"v":34420244.13832635,"d":"$34,420,244"}},{"$f":"'Trial 8'!T22","v":{"v":34406333.16762672,"d":"$34,406,333"}},{"$f":"'Trial 8'!U22","v":{"v":34395702.5614271,"d":"$34,395,703"}},{"$f":"'Trial 8'!V22","v":{"v":34381384.43793617,"d":"$34,381,384"}},{"$f":"'Trial 8'!W22","v":{"v":34367623.90376993,"d":"$34,367,624"}},{"$f":"'Trial 8'!X22","v":{"v":34356647.63304238,"d":"$34,356,648"}},{"$f":"'Trial 8'!Y22","v":{"v":34340772.43581258,"d":"$34,340,772"}},{"$f":"'Trial 8'!Z22","v":{"v":34323952.80264759,"d":"$34,323,953"}},{"$f":"'Trial 8'!Z22","v":{"v":34323952.80264759,"d":"$34,323,953"}},{"$f":"'Trial 8'!AB22","v":{"v":34308395.22821293,"d":"$34,308,395"}},{"$f":"'Trial 8'!AC22","v":{"v":34294349.26419116,"d":"$34,294,349"}},{"$f":"'Trial 8'!AD22","v":{"v":34280503.19032625,"d":"$34,280,503"}},{"$f":"'Trial 8'!AE22","v":{"v":34265096.78049065,"d":"$34,265,097"}},{"$f":"'Trial 8'!AF22","v":{"v":34250545.310648546,"d":"$34,250,545"}},{"$f":"'Trial 8'!AG22","v":{"v":34234393.32380845,"d":"$34,234,393"}},{"$f":"'Trial 8'!AH22","v":{"v":34218844.018707626,"d":"$34,218,844"}},{"$f":"'Trial 8'!AI22","v":{"v":34206072.149374984,"d":"$34,206,072"}},{"$f":"'Trial 8'!AJ22","v":{"v":34192972.38678696,"d":"$34,192,972"}},{"$f":"'Trial 8'!AK22","v":{"v":34177733.96332749,"d":"$34,177,734"}},{"$f":"'Trial 8'!AL22","v":{"v":34163711.570455804,"d":"$34,163,712"}},{"$f":"'Trial 8'!AM22","v":{"v":34152310.18752794,"d":"$34,152,310"}},{"$f":"'Trial 8'!AM22","v":{"v":34152310.18752794,"d":"$34,152,310"}},{"$f":"'Trial 8'!AO22","v":{"v":34140671.6771056,"d":"$34,140,672"}},{"$f":"'Trial 8'!AP22","v":{"v":34128739.66788044,"d":"$34,128,740"}},{"$f":"'Trial 8'!AQ22","v":{"v":34114893.38227987,"d":"$34,114,893"}},{"$f":"'Trial 8'!AR22","v":{"v":34100939.66771011,"d":"$34,100,940"}},{"$f":"'Trial 8'!AS22","v":{"v":34084529.94427161,"d":"$34,084,530"}},{"$f":"'Trial 8'!AT22","v":{"v":34068171.9628989,"d":"$34,068,172"}},{"$f":"'Trial 8'!AU22","v":{"v":34053331.66980798,"d":"$34,053,332"}},{"$f":"'Trial 8'!AV22","v":{"v":34040418.767623566,"d":"$34,040,419"}},{"$f":"'Trial 8'!AW22","v":{"v":34026527.032430485,"d":"$34,026,527"}},{"$f":"'Trial 8'!AX22","v":{"v":34012876.98344443,"d":"$34,012,877"}},{"$f":"'Trial 8'!AY22","v":{"v":33998940.700316004,"d":"$33,998,941"}},{"$f":"'Trial 8'!AZ22","v":{"v":33985862.254128106,"d":"$33,985,862"}},{"$f":"'Trial 8'!AZ22","v":{"v":33985862.254128106,"d":"$33,985,862"}},{"$f":"'Trial 8'!BB22","v":{"v":33972358.32680832,"d":"$33,972,358"}},{"$f":"'Trial 8'!BC22","v":{"v":33957273.399603195,"d":"$33,957,273"}},{"$f":"'Trial 8'!BD22","v":{"v":33945300.28272315,"d":"$33,945,300"}},{"$f":"'Trial 8'!BE22","v":{"v":33933996.18227213,"d":"$33,933,996"}},{"$f":"'Trial 8'!BF22","v":{"v":33920833.857343234,"d":"$33,920,834"}},{"$f":"'Trial 8'!BG22","v":{"v":33907542.24367124,"d":"$33,907,542"}},{"$f":"'Trial 8'!BH22","v":{"v":33895852.180768855,"d":"$33,895,852"}},{"$f":"'Trial 8'!BI22","v":{"v":33880156.862659514,"d":"$33,880,157"}},{"$f":"'Trial 8'!BJ22","v":{"v":33866056.242818214,"d":"$33,866,056"}},{"$f":"'Trial 8'!BK22","v":{"v":33853316.53415303,"d":"$33,853,317"}},{"$f":"'Trial 8'!BL22","v":{"v":33840404.976356834,"d":"$33,840,405"}},{"$f":"'Trial 8'!BM22","v":{"v":33827604.14452701,"d":"$33,827,604"}},{"$f":"'Trial 8'!BM22","v":{"v":33827604.14452701,"d":"$33,827,604"}},{"$f":"'Trial 8'!BO22","v":{"v":33813074.407306634,"d":"$33,813,074"}},{"$f":"'Trial 8'!BP22","v":{"v":33800553.76705502,"d":"$33,800,554"}},{"$f":"'Trial 8'!BQ22","v":{"v":33789325.294949844,"d":"$33,789,325"}},{"$f":"'Trial 8'!BR22","v":{"v":33777226.53609113,"d":"$33,777,227"}},{"$f":"'Trial 8'!BS22","v":{"v":33766991.52702158,"d":"$33,766,992"}},{"$f":"'Trial 8'!BT22","v":{"v":33754202.27901191,"d":"$33,754,202"}},{"$f":"'Trial 8'!BU22","v":{"v":33740281.8922032,"d":"$33,740,282"}},{"$f":"'Trial 8'!BV22","v":{"v":33727275.65264967,"d":"$33,727,276"}},{"$f":"'Trial 8'!BW22","v":{"v":33716168.901984006,"d":"$33,716,169"}},{"$f":"'Trial 8'!BX22","v":{"v":33704046.658729434,"d":"$33,704,047"}},{"$f":"'Trial 8'!BY22","v":{"v":33691867.055538,"d":"$33,691,867"}},{"$f":"'Trial 8'!BZ22","v":{"v":33677228.7450226,"d":"$33,677,229"}},{"$f":"'Trial 8'!BZ22","v":{"v":33677228.7450226,"d":"$33,677,229"}},{"$f":"'Trial 8'!CB22","v":{"v":33660323.2407986,"d":"$33,660,323"}},{"$f":"'Trial 8'!CC22","v":{"v":33645358.69816151,"d":"$33,645,359"}},{"$f":"'Trial 8'!CD22","v":{"v":33631467.776078686,"d":"$33,631,468"}},{"$f":"'Trial 8'!CE22","v":{"v":33615155.27020319,"d":"$33,615,155"}},{"$f":"'Trial 8'!CF22","v":{"v":33601712.635876365,"d":"$33,601,713"}},{"$f":"'Trial 8'!CG22","v":{"v":33587403.32126753,"d":"$33,587,403"}},{"$f":"'Trial 8'!CH22","v":{"v":33577345.6485198,"d":"$33,577,346"}},{"$f":"'Trial 8'!CI22","v":{"v":33563550.456686385,"d":"$33,563,550"}},{"$f":"'Trial 8'!CJ22","v":{"v":33548097.95420816,"d":"$33,548,098"}},{"$f":"'Trial 8'!CK22","v":{"v":33535392.322407633,"d":"$33,535,392"}},{"$f":"'Trial 8'!CL22","v":{"v":33523384.197581794,"d":"$33,523,384"}},{"$f":"'Trial 8'!CM22","v":{"v":33507192.923698414,"d":"$33,507,193"}},{"$f":"'Trial 8'!CM22","v":{"v":33507192.923698414,"d":"$33,507,193"}},{"$f":"'Trial 8'!CO22","v":{"v":33496026.01391383,"d":"$33,496,026"}},{"$f":"'Trial 8'!CP22","v":{"v":33484970.510174476,"d":"$33,484,971"}},{"$f":"'Trial 8'!CQ22","v":{"v":33471575.8740615,"d":"$33,471,576"}},{"$f":"'Trial 8'!CR22","v":{"v":33459068.171701305,"d":"$33,459,068"}},{"$f":"'Trial 8'!CS22","v":{"v":33446362.735600248,"d":"$33,446,363"}},{"$f":"'Trial 8'!CT22","v":{"v":33428094.412084326,"d":"$33,428,094"}},{"$f":"'Trial 8'!CU22","v":{"v":33413866.343003836,"d":"$33,413,866"}},{"$f":"'Trial 8'!CV22","v":{"v":33402279.47188205,"d":"$33,402,279"}},{"$f":"'Trial 8'!CW22","v":{"v":33388336.261504926,"d":"$33,388,336"}},{"$f":"'Trial 8'!CX22","v":{"v":33370451.490780544,"d":"$33,370,451"}},{"$f":"'Trial 8'!CY22","v":{"v":33359110.85811087,"d":"$33,359,111"}},{"$f":"'Trial 8'!CZ22","v":{"v":33349277.87410112,"d":"$33,349,278"}},{"$f":"'Trial 8'!CZ22","v":{"v":33349277.87410112,"d":"$33,349,278"}},{"$f":"'Trial 8'!DB22","v":{"v":33333625.494242657,"d":"$33,333,625"}},{"$f":"'Trial 8'!DC22","v":{"v":33323755.02435432,"d":"$33,323,755"}},{"$f":"'Trial 8'!DD22","v":{"v":33308438.84655321,"d":"$33,308,439"}},{"$f":"'Trial 8'!DE22","v":{"v":33292146.804434855,"d":"$33,292,147"}},{"$f":"'Trial 8'!DF22","v":{"v":33277501.976468794,"d":"$33,277,502"}},{"$f":"'Trial 8'!DG22","v":{"v":33263765.836946923,"d":"$33,263,766"}},{"$f":"'Trial 8'!DH22","v":{"v":33248513.10349388,"d":"$33,248,513"}},{"$f":"'Trial 8'!DI22","v":{"v":33234261.09065312,"d":"$33,234,261"}},{"$f":"'Trial 8'!DJ22","v":{"v":33217804.87436181,"d":"$33,217,805"}},{"$f":"'Trial 8'!DK22","v":{"v":33207629.87443559,"d":"$33,207,630"}},{"$f":"'Trial 8'!DL22","v":{"v":33192731.85497787,"d":"$33,192,732"}},{"$f":"'Trial 8'!DM22","v":{"v":33182121.66577379,"d":"$33,182,122"}},{"$f":"'Trial 8'!DM22","v":{"v":33182121.66577379,"d":"$33,182,122"}},{"$f":"'Trial 8'!DO22","v":{"v":33167631.4446436,"d":"$33,167,631"}},{"$f":"'Trial 8'!DP22","v":{"v":33150535.531917237,"d":"$33,150,536"}},{"$f":"'Trial 8'!DQ22","v":{"v":33134232.55118996,"d":"$33,134,233"}},{"$f":"'Trial 8'!DR22","v":{"v":33123891.337502882,"d":"$33,123,891"}},{"$f":"'Trial 8'!DS22","v":{"v":33112888.87977696,"d":"$33,112,889"}},{"$f":"'Trial 8'!DT22","v":{"v":33098055.28307259,"d":"$33,098,055"}},{"$f":"'Trial 8'!DU22","v":{"v":33087061.026107457,"d":"$33,087,061"}},{"$f":"'Trial 8'!DV22","v":{"v":33075719.00620121,"d":"$33,075,719"}},{"$f":"'Trial 8'!DW22","v":{"v":33062204.508118324,"d":"$33,062,205"}},{"$f":"'Trial 8'!DX22","v":{"v":33049639.55492512,"d":"$33,049,640"}},{"$f":"'Trial 8'!DY22","v":{"v":33032808.19459499,"d":"$33,032,808"}},{"$f":"'Trial 8'!DZ22","v":{"v":33019801.976656698,"d":"$33,019,802"}},{"$f":"'Trial 8'!DZ22","v":{"v":33019801.976656698,"d":"$33,019,802"}},{"$f":"'Trial 8'!EB22","v":{"v":33005964.206075124,"d":"$33,005,964"}},{"$f":"'Trial 8'!EC22","v":{"v":32988825.230389282,"d":"$32,988,825"}},{"$f":"'Trial 8'!ED22","v":{"v":32971922.40845693,"d":"$32,971,922"}},{"$f":"'Trial 8'!EE22","v":{"v":32959319.907917112,"d":"$32,959,320"}},{"$f":"'Trial 8'!EF22","v":{"v":32944226.897885956,"d":"$32,944,227"}},{"$f":"'Trial 8'!EG22","v":{"v":32928740.54621893,"d":"$32,928,741"}},{"$f":"'Trial 8'!EH22","v":{"v":32915091.8343392,"d":"$32,915,092"}},{"$f":"'Trial 8'!EI22","v":{"v":32903964.079355687,"d":"$32,903,964"}},{"$f":"'Trial 8'!EJ22","v":{"v":32888281.031379096,"d":"$32,888,281"}},{"$f":"'Trial 8'!EK22","v":{"v":32874706.845029317,"d":"$32,874,707"}},{"$f":"'Trial 8'!EL22","v":{"v":32857598.625223912,"d":"$32,857,599"}},{"$f":"'Trial 8'!EM22","v":{"v":32842007.533886906,"d":"$32,842,008"}},{"$f":"'Trial 8'!EM22","v":{"v":32842007.533886906,"d":"$32,842,008"}}]
[{"$f":"Labels!C95","v":"Total"},{"$f":"SUM('Trial 1'!B22,'Trial 2'!B22,'Trial 3'!B22,'Trial 4'!B22,'Trial 5'!B22,'Trial 6'!B22,'Trial 7'!B22,'Trial 8'!B22)","v":{"v":277162387.37541157,"d":"$277,162,387"}},{"$f":"SUM('Trial 1'!C22,'Trial 2'!C22,'Trial 3'!C22,'Trial 4'!C22,'Trial 5'!C22,'Trial 6'!C22,'Trial 7'!C22,'Trial 8'!C22)","v":{"v":277035914.1707044,"d":"$277,035,914"}},{"$f":"SUM('Trial 1'!D22,'Trial 2'!D22,'Trial 3'!D22,'Trial 4'!D22,'Trial 5'!D22,'Trial 6'!D22,'Trial 7'!D22,'Trial 8'!D22)","v":{"v":276917642.4233167,"d":"$276,917,642"}},{"$f":"SUM('Trial 1'!E22,'Trial 2'!E22,'Trial 3'!E22,'Trial 4'!E22,'Trial 5'!E22,'Trial 6'!E22,'Trial 7'!E22,'Trial 8'!E22)","v":{"v":276809988.68985313,"d":"$276,809,989"}},{"$f":"SUM('Trial 1'!F22,'Trial 2'!F22,'Trial 3'!F22,'Trial 4'!F22,'Trial 5'!F22,'Trial 6'!F22,'Trial 7'!F22,'Trial 8'!F22)","v":{"v":276706672.5166994,"d":"$276,706,673"}},{"$f":"SUM('Trial 1'!G22,'Trial 2'!G22,'Trial 3'!G22,'Trial 4'!G22,'Trial 5'!G22,'Trial 6'!G22,'Trial 7'!G22,'Trial 8'!G22)","v":{"v":276608964.6899032,"d":"$276,608,965"}},{"$f":"SUM('Trial 1'!H22,'Trial 2'!H22,'Trial 3'!H22,'Trial 4'!H22,'Trial 5'!H22,'Trial 6'!H22,'Trial 7'!H22,'Trial 8'!H22)","v":{"v":276503852.7210503,"d":"$276,503,853"}},{"$f":"SUM('Trial 1'!I22,'Trial 2'!I22,'Trial 3'!I22,'Trial 4'!I22,'Trial 5'!I22,'Trial 6'!I22,'Trial 7'!I22,'Trial 8'!I22)","v":{"v":276388717.7841563,"d":"$276,388,718"}},{"$f":"SUM('Trial 1'!J22,'Trial 2'!J22,'Trial 3'!J22,'Trial 4'!J22,'Trial 5'!J22,'Trial 6'!J22,'Trial 7'!J22,'Trial 8'!J22)","v":{"v":276278357.1029166,"d":"$276,278,357"}},{"$f":"SUM('Trial 1'!K22,'Trial 2'!K22,'Trial 3'!K22,'Trial 4'!K22,'Trial 5'!K22,'Trial 6'!K22,'Trial 7'!K22,'Trial 8'!K22)","v":{"v":276168822.86028045,"d":"$276,168,823"}},{"$f":"SUM('Trial 1'!L22,'Trial 2'!L22,'Trial 3'!L22,'Trial 4'!L22,'Trial 5'!L22,'Trial 6'!L22,'Trial 7'!L22,'Trial 8'!L22)","v":{"v":276059360.75732976,"d":"$276,059,361"}},{"$f":"SUM('Trial 1'!M22,'Trial 2'!M22,'Trial 3'!M22,'Trial 4'!M22,'Trial 5'!M22,'Trial 6'!M22,'Trial 7'!M22,'Trial 8'!M22)","v":{"v":275948767.6747364,"d":"$275,948,768"}},{"$f":"M177","v":{"v":275948767.6747364,"d":"$275,948,768"}},{"$f":"SUM('Trial 1'!O22,'Trial 2'!O22,'Trial 3'!O22,'Trial 4'!O22,'Trial 5'!O22,'Trial 6'!O22,'Trial 7'!O22,'Trial 8'!O22)","v":{"v":275834862.5173568,"d":"$275,834,863"}},{"$f":"SUM('Trial 1'!P22,'Trial 2'!P22,'Trial 3'!P22,'Trial 4'!P22,'Trial 5'!P22,'Trial 6'!P22,'Trial 7'!P22,'Trial 8'!P22)","v":{"v":275727316.4478508,"d":"$275,727,316"}},{"$f":"SUM('Trial 1'!Q22,'Trial 2'!Q22,'Trial 3'!Q22,'Trial 4'!Q22,'Trial 5'!Q22,'Trial 6'!Q22,'Trial 7'!Q22,'Trial 8'!Q22)","v":{"v":275617958.03348047,"d":"$275,617,958"}},{"$f":"SUM('Trial 1'!R22,'Trial 2'!R22,'Trial 3'!R22,'Trial 4'!R22,'Trial 5'!R22,'Trial 6'!R22,'Trial 7'!R22,'Trial 8'!R22)","v":{"v":275511076.49102044,"d":"$275,511,076"}},{"$f":"SUM('Trial 1'!S22,'Trial 2'!S22,'Trial 3'!S22,'Trial 4'!S22,'Trial 5'!S22,'Trial 6'!S22,'Trial 7'!S22,'Trial 8'!S22)","v":{"v":275406729.5586312,"d":"$275,406,730"}},{"$f":"SUM('Trial 1'!T22,'Trial 2'!T22,'Trial 3'!T22,'Trial 4'!T22,'Trial 5'!T22,'Trial 6'!T22,'Trial 7'!T22,'Trial 8'!T22)","v":{"v":275281053.75649875,"d":"$275,281,054"}},{"$f":"SUM('Trial 1'!U22,'Trial 2'!U22,'Trial 3'!U22,'Trial 4'!U22,'Trial 5'!U22,'Trial 6'!U22,'Trial 7'!U22,'Trial 8'!U22)","v":{"v":275173563.4578389,"d":"$275,173,563"}},{"$f":"SUM('Trial 1'!V22,'Trial 2'!V22,'Trial 3'!V22,'Trial 4'!V22,'Trial 5'!V22,'Trial 6'!V22,'Trial 7'!V22,'Trial 8'!V22)","v":{"v":275053337.3752776,"d":"$275,053,337"}},{"$f":"SUM('Trial 1'!W22,'Trial 2'!W22,'Trial 3'!W22,'Trial 4'!W22,'Trial 5'!W22,'Trial 6'!W22,'Trial 7'!W22,'Trial 8'!W22)","v":{"v":274934659.6744891,"d":"$274,934,660"}},{"$f":"SUM('Trial 1'!X22,'Trial 2'!X22,'Trial 3'!X22,'Trial 4'!X22,'Trial 5'!X22,'Trial 6'!X22,'Trial 7'!X22,'Trial 8'!X22)","v":{"v":274831007.3660628,"d":"$274,831,007"}},{"$f":"SUM('Trial 1'!Y22,'Trial 2'!Y22,'Trial 3'!Y22,'Trial 4'!Y22,'Trial 5'!Y22,'Trial 6'!Y22,'Trial 7'!Y22,'Trial 8'!Y22)","v":{"v":274715363.1211785,"d":"$274,715,363"}},{"$f":"SUM('Trial 1'!Z22,'Trial 2'!Z22,'Trial 3'!Z22,'Trial 4'!Z22,'Trial 5'!Z22,'Trial 6'!Z22,'Trial 7'!Z22,'Trial 8'!Z22)","v":{"v":274600810.59477526,"d":"$274,600,811"}},{"$f":"Z177","v":{"v":274600810.59477526,"d":"$274,600,811"}},{"$f":"SUM('Trial 1'!AB22,'Trial 2'!AB22,'Trial 3'!AB22,'Trial 4'!AB22,'Trial 5'!AB22,'Trial 6'!AB22,'Trial 7'!AB22,'Trial 8'!AB22)","v":{"v":274474209.4604979,"d":"$274,474,209"}},{"$f":"SUM('Trial 1'!AC22,'Trial 2'!AC22,'Trial 3'!AC22,'Trial 4'!AC22,'Trial 5'!AC22,'Trial 6'!AC22,'Trial 7'!AC22,'Trial 8'!AC22)","v":{"v":274361572.197151,"d":"$274,361,572"}},{"$f":"SUM('Trial 1'!AD22,'Trial 2'!AD22,'Trial 3'!AD22,'Trial 4'!AD22,'Trial 5'!AD22,'Trial 6'!AD22,'Trial 7'!AD22,'Trial 8'!AD22)","v":{"v":274254327.07128614,"d":"$274,254,327"}},{"$f":"SUM('Trial 1'!AE22,'Trial 2'!AE22,'Trial 3'!AE22,'Trial 4'!AE22,'Trial 5'!AE22,'Trial 6'!AE22,'Trial 7'!AE22,'Trial 8'!AE22)","v":{"v":274143157.3884134,"d":"$274,143,157"}},{"$f":"SUM('Trial 1'!AF22,'Trial 2'!AF22,'Trial 3'!AF22,'Trial 4'!AF22,'Trial 5'!AF22,'Trial 6'!AF22,'Trial 7'!AF22,'Trial 8'!AF22)","v":{"v":274030244.46010315,"d":"$274,030,244"}},{"$f":"SUM('Trial 1'!AG22,'Trial 2'!AG22,'Trial 3'!AG22,'Trial 4'!AG22,'Trial 5'!AG22,'Trial 6'!AG22,'Trial 7'!AG22,'Trial 8'!AG22)","v":{"v":273908423.80389464,"d":"$273,908,424"}},{"$f":"SUM('Trial 1'!AH22,'Trial 2'!AH22,'Trial 3'!AH22,'Trial 4'!AH22,'Trial 5'!AH22,'Trial 6'!AH22,'Trial 7'!AH22,'Trial 8'!AH22)","v":{"v":273799052.3880999,"d":"$273,799,052"}},{"$f":"SUM('Trial 1'!AI22,'Trial 2'!AI22,'Trial 3'!AI22,'Trial 4'!AI22,'Trial 5'!AI22,'Trial 6'!AI22,'Trial 7'!AI22,'Trial 8'!AI22)","v":{"v":273694805.0972486,"d":"$273,694,805"}},{"$f":"SUM('Trial 1'!AJ22,'Trial 2'!AJ22,'Trial 3'!AJ22,'Trial 4'!AJ22,'Trial 5'!AJ22,'Trial 6'!AJ22,'Trial 7'!AJ22,'Trial 8'!AJ22)","v":{"v":273572333.9956653,"d":"$273,572,334"}},{"$f":"SUM('Trial 1'!AK22,'Trial 2'!AK22,'Trial 3'!AK22,'Trial 4'!AK22,'Trial 5'!AK22,'Trial 6'!AK22,'Trial 7'!AK22,'Trial 8'!AK22)","v":{"v":273460902.4138787,"d":"$273,460,902"}},{"$f":"SUM('Trial 1'!AL22,'Trial 2'!AL22,'Trial 3'!AL22,'Trial 4'!AL22,'Trial 5'!AL22,'Trial 6'!AL22,'Trial 7'!AL22,'Trial 8'!AL22)","v":{"v":273351971.44256335,"d":"$273,351,971"}},{"$f":"SUM('Trial 1'!AM22,'Trial 2'!AM22,'Trial 3'!AM22,'Trial 4'!AM22,'Trial 5'!AM22,'Trial 6'!AM22,'Trial 7'!AM22,'Trial 8'!AM22)","v":{"v":273245054.8207848,"d":"$273,245,055"}},{"$f":"AM177","v":{"v":273245054.8207848,"d":"$273,245,055"}},{"$f":"SUM('Trial 1'!AO22,'Trial 2'!AO22,'Trial 3'!AO22,'Trial 4'!AO22,'Trial 5'!AO22,'Trial 6'!AO22,'Trial 7'!AO22,'Trial 8'!AO22)","v":{"v":273126569.1411096,"d":"$273,126,569"}},{"$f":"SUM('Trial 1'!AP22,'Trial 2'!AP22,'Trial 3'!AP22,'Trial 4'!AP22,'Trial 5'!AP22,'Trial 6'!AP22,'Trial 7'!AP22,'Trial 8'!AP22)","v":{"v":273014322.04931074,"d":"$273,014,322"}},{"$f":"SUM('Trial 1'!AQ22,'Trial 2'!AQ22,'Trial 3'!AQ22,'Trial 4'!AQ22,'Trial 5'!AQ22,'Trial 6'!AQ22,'Trial 7'!AQ22,'Trial 8'!AQ22)","v":{"v":272909072.7649227,"d":"$272,909,073"}},{"$f":"SUM('Trial 1'!AR22,'Trial 2'!AR22,'Trial 3'!AR22,'Trial 4'!AR22,'Trial 5'!AR22,'Trial 6'!AR22,'Trial 7'!AR22,'Trial 8'!AR22)","v":{"v":272791025.1577362,"d":"$272,791,025"}},{"$f":"SUM('Trial 1'!AS22,'Trial 2'!AS22,'Trial 3'!AS22,'Trial 4'!AS22,'Trial 5'!AS22,'Trial 6'!AS22,'Trial 7'!AS22,'Trial 8'!AS22)","v":{"v":272677415.2263787,"d":"$272,677,415"}},{"$f":"SUM('Trial 1'!AT22,'Trial 2'!AT22,'Trial 3'!AT22,'Trial 4'!AT22,'Trial 5'!AT22,'Trial 6'!AT22,'Trial 7'!AT22,'Trial 8'!AT22)","v":{"v":272571126.40667015,"d":"$272,571,126"}},{"$f":"SUM('Trial 1'!AU22,'Trial 2'!AU22,'Trial 3'!AU22,'Trial 4'!AU22,'Trial 5'!AU22,'Trial 6'!AU22,'Trial 7'!AU22,'Trial 8'!AU22)","v":{"v":272457641.3574598,"d":"$272,457,641"}},{"$f":"SUM('Trial 1'!AV22,'Trial 2'!AV22,'Trial 3'!AV22,'Trial 4'!AV22,'Trial 5'!AV22,'Trial 6'!AV22,'Trial 7'!AV22,'Trial 8'!AV22)","v":{"v":272342099.16885537,"d":"$272,342,099"}},{"$f":"SUM('Trial 1'!AW22,'Trial 2'!AW22,'Trial 3'!AW22,'Trial 4'!AW22,'Trial 5'!AW22,'Trial 6'!AW22,'Trial 7'!AW22,'Trial 8'!AW22)","v":{"v":272230001.89584106,"d":"$272,230,002"}},{"$f":"SUM('Trial 1'!AX22,'Trial 2'!AX22,'Trial 3'!AX22,'Trial 4'!AX22,'Trial 5'!AX22,'Trial 6'!AX22,'Trial 7'!AX22,'Trial 8'!AX22)","v":{"v":272109962.2181171,"d":"$272,109,962"}},{"$f":"SUM('Trial 1'!AY22,'Trial 2'!AY22,'Trial 3'!AY22,'Trial 4'!AY22,'Trial 5'!AY22,'Trial 6'!AY22,'Trial 7'!AY22,'Trial 8'!AY22)","v":{"v":271994627.3126558,"d":"$271,994,627"}},{"$f":"SUM('Trial 1'!AZ22,'Trial 2'!AZ22,'Trial 3'!AZ22,'Trial 4'!AZ22,'Trial 5'!AZ22,'Trial 6'!AZ22,'Trial 7'!AZ22,'Trial 8'!AZ22)","v":{"v":271882705.90334177,"d":"$271,882,706"}},{"$f":"AZ177","v":{"v":271882705.90334177,"d":"$271,882,706"}},{"$f":"SUM('Trial 1'!BB22,'Trial 2'!BB22,'Trial 3'!BB22,'Trial 4'!BB22,'Trial 5'!BB22,'Trial 6'!BB22,'Trial 7'!BB22,'Trial 8'!BB22)","v":{"v":271760699.77438724,"d":"$271,760,700"}},{"$f":"SUM('Trial 1'!BC22,'Trial 2'!BC22,'Trial 3'!BC22,'Trial 4'!BC22,'Trial 5'!BC22,'Trial 6'!BC22,'Trial 7'!BC22,'Trial 8'!BC22)","v":{"v":271639970.2227117,"d":"$271,639,970"}},{"$f":"SUM('Trial 1'!BD22,'Trial 2'!BD22,'Trial 3'!BD22,'Trial 4'!BD22,'Trial 5'!BD22,'Trial 6'!BD22,'Trial 7'!BD22,'Trial 8'!BD22)","v":{"v":271524681.8059542,"d":"$271,524,682"}},{"$f":"SUM('Trial 1'!BE22,'Trial 2'!BE22,'Trial 3'!BE22,'Trial 4'!BE22,'Trial 5'!BE22,'Trial 6'!BE22,'Trial 7'!BE22,'Trial 8'!BE22)","v":{"v":271411747.0428477,"d":"$271,411,747"}},{"$f":"SUM('Trial 1'!BF22,'Trial 2'!BF22,'Trial 3'!BF22,'Trial 4'!BF22,'Trial 5'!BF22,'Trial 6'!BF22,'Trial 7'!BF22,'Trial 8'!BF22)","v":{"v":271296623.979742,"d":"$271,296,624"}},{"$f":"SUM('Trial 1'!BG22,'Trial 2'!BG22,'Trial 3'!BG22,'Trial 4'!BG22,'Trial 5'!BG22,'Trial 6'!BG22,'Trial 7'!BG22,'Trial 8'!BG22)","v":{"v":271186230.7591643,"d":"$271,186,231"}},{"$f":"SUM('Trial 1'!BH22,'Trial 2'!BH22,'Trial 3'!BH22,'Trial 4'!BH22,'Trial 5'!BH22,'Trial 6'!BH22,'Trial 7'!BH22,'Trial 8'!BH22)","v":{"v":271075841.64128673,"d":"$271,075,842"}},{"$f":"SUM('Trial 1'!BI22,'Trial 2'!BI22,'Trial 3'!BI22,'Trial 4'!BI22,'Trial 5'!BI22,'Trial 6'!BI22,'Trial 7'!BI22,'Trial 8'!BI22)","v":{"v":270954480.94366837,"d":"$270,954,481"}},{"$f":"SUM('Trial 1'!BJ22,'Trial 2'!BJ22,'Trial 3'!BJ22,'Trial 4'!BJ22,'Trial 5'!BJ22,'Trial 6'!BJ22,'Trial 7'!BJ22,'Trial 8'!BJ22)","v":{"v":270837656.1595809,"d":"$270,837,656"}},{"$f":"SUM('Trial 1'!BK22,'Trial 2'!BK22,'Trial 3'!BK22,'Trial 4'!BK22,'Trial 5'!BK22,'Trial 6'!BK22,'Trial 7'!BK22,'Trial 8'!BK22)","v":{"v":270728457.15971595,"d":"$270,728,457"}},{"$f":"SUM('Trial 1'!BL22,'Trial 2'!BL22,'Trial 3'!BL22,'Trial 4'!BL22,'Trial 5'!BL22,'Trial 6'!BL22,'Trial 7'!BL22,'Trial 8'!BL22)","v":{"v":270613137.5431423,"d":"$270,613,138"}},{"$f":"SUM('Trial 1'!BM22,'Trial 2'!BM22,'Trial 3'!BM22,'Trial 4'!BM22,'Trial 5'!BM22,'Trial 6'!BM22,'Trial 7'!BM22,'Trial 8'!BM22)","v":{"v":270504144.3940326,"d":"$270,504,144"}},{"$f":"BM177","v":{"v":270504144.3940326,"d":"$270,504,144"}},{"$f":"SUM('Trial 1'!BO22,'Trial 2'!BO22,'Trial 3'!BO22,'Trial 4'!BO22,'Trial 5'!BO22,'Trial 6'!BO22,'Trial 7'!BO22,'Trial 8'!BO22)","v":{"v":270389875.5362631,"d":"$270,389,876"}},{"$f":"SUM('Trial 1'!BP22,'Trial 2'!BP22,'Trial 3'!BP22,'Trial 4'!BP22,'Trial 5'!BP22,'Trial 6'!BP22,'Trial 7'!BP22,'Trial 8'!BP22)","v":{"v":270275030.2472191,"d":"$270,275,030"}},{"$f":"SUM('Trial 1'!BQ22,'Trial 2'!BQ22,'Trial 3'!BQ22,'Trial 4'!BQ22,'Trial 5'!BQ22,'Trial 6'!BQ22,'Trial 7'!BQ22,'Trial 8'!BQ22)","v":{"v":270163702.668399,"d":"$270,163,703"}},{"$f":"SUM('Trial 1'!BR22,'Trial 2'!BR22,'Trial 3'!BR22,'Trial 4'!BR22,'Trial 5'!BR22,'Trial 6'!BR22,'Trial 7'!BR22,'Trial 8'!BR22)","v":{"v":270058204.32674223,"d":"$270,058,204"}},{"$f":"SUM('Trial 1'!BS22,'Trial 2'!BS22,'Trial 3'!BS22,'Trial 4'!BS22,'Trial 5'!BS22,'Trial 6'!BS22,'Trial 7'!BS22,'Trial 8'!BS22)","v":{"v":269950845.8015997,"d":"$269,950,846"}},{"$f":"SUM('Trial 1'!BT22,'Trial 2'!BT22,'Trial 3'!BT22,'Trial 4'!BT22,'Trial 5'!BT22,'Trial 6'!BT22,'Trial 7'!BT22,'Trial 8'!BT22)","v":{"v":269834210.708319,"d":"$269,834,211"}},{"$f":"SUM('Trial 1'!BU22,'Trial 2'!BU22,'Trial 3'!BU22,'Trial 4'!BU22,'Trial 5'!BU22,'Trial 6'!BU22,'Trial 7'!BU22,'Trial 8'!BU22)","v":{"v":269731651.70719075,"d":"$269,731,652"}},{"$f":"SUM('Trial 1'!BV22,'Trial 2'!BV22,'Trial 3'!BV22,'Trial 4'!BV22,'Trial 5'!BV22,'Trial 6'!BV22,'Trial 7'!BV22,'Trial 8'!BV22)","v":{"v":269614223.0060692,"d":"$269,614,223"}},{"$f":"SUM('Trial 1'!BW22,'Trial 2'!BW22,'Trial 3'!BW22,'Trial 4'!BW22,'Trial 5'!BW22,'Trial 6'!BW22,'Trial 7'!BW22,'Trial 8'!BW22)","v":{"v":269500388.5873317,"d":"$269,500,389"}},{"$f":"SUM('Trial 1'!BX22,'Trial 2'!BX22,'Trial 3'!BX22,'Trial 4'!BX22,'Trial 5'!BX22,'Trial 6'!BX22,'Trial 7'!BX22,'Trial 8'!BX22)","v":{"v":269395770.20147145,"d":"$269,395,770"}},{"$f":"SUM('Trial 1'!BY22,'Trial 2'!BY22,'Trial 3'!BY22,'Trial 4'!BY22,'Trial 5'!BY22,'Trial 6'!BY22,'Trial 7'!BY22,'Trial 8'!BY22)","v":{"v":269277876.7756424,"d":"$269,277,877"}},{"$f":"SUM('Trial 1'!BZ22,'Trial 2'!BZ22,'Trial 3'!BZ22,'Trial 4'!BZ22,'Trial 5'!BZ22,'Trial 6'!BZ22,'Trial 7'!BZ22,'Trial 8'!BZ22)","v":{"v":269171876.496153,"d":"$269,171,876"}},{"$f":"BZ177","v":{"v":269171876.496153,"d":"$269,171,876"}},{"$f":"SUM('Trial 1'!CB22,'Trial 2'!CB22,'Trial 3'!CB22,'Trial 4'!CB22,'Trial 5'!CB22,'Trial 6'!CB22,'Trial 7'!CB22,'Trial 8'!CB22)","v":{"v":269059980.09420264,"d":"$269,059,980"}},{"$f":"SUM('Trial 1'!CC22,'Trial 2'!CC22,'Trial 3'!CC22,'Trial 4'!CC22,'Trial 5'!CC22,'Trial 6'!CC22,'Trial 7'!CC22,'Trial 8'!CC22)","v":{"v":268946332.75217795,"d":"$268,946,333"}},{"$f":"SUM('Trial 1'!CD22,'Trial 2'!CD22,'Trial 3'!CD22,'Trial 4'!CD22,'Trial 5'!CD22,'Trial 6'!CD22,'Trial 7'!CD22,'Trial 8'!CD22)","v":{"v":268831492.1378241,"d":"$268,831,492"}},{"$f":"SUM('Trial 1'!CE22,'Trial 2'!CE22,'Trial 3'!CE22,'Trial 4'!CE22,'Trial 5'!CE22,'Trial 6'!CE22,'Trial 7'!CE22,'Trial 8'!CE22)","v":{"v":268723069.8496234,"d":"$268,723,070"}},{"$f":"SUM('Trial 1'!CF22,'Trial 2'!CF22,'Trial 3'!CF22,'Trial 4'!CF22,'Trial 5'!CF22,'Trial 6'!CF22,'Trial 7'!CF22,'Trial 8'!CF22)","v":{"v":268604928.4312077,"d":"$268,604,928"}},{"$f":"SUM('Trial 1'!CG22,'Trial 2'!CG22,'Trial 3'!CG22,'Trial 4'!CG22,'Trial 5'!CG22,'Trial 6'!CG22,'Trial 7'!CG22,'Trial 8'!CG22)","v":{"v":268491822.63707024,"d":"$268,491,823"}},{"$f":"SUM('Trial 1'!CH22,'Trial 2'!CH22,'Trial 3'!CH22,'Trial 4'!CH22,'Trial 5'!CH22,'Trial 6'!CH22,'Trial 7'!CH22,'Trial 8'!CH22)","v":{"v":268394846.40157163,"d":"$268,394,846"}},{"$f":"SUM('Trial 1'!CI22,'Trial 2'!CI22,'Trial 3'!CI22,'Trial 4'!CI22,'Trial 5'!CI22,'Trial 6'!CI22,'Trial 7'!CI22,'Trial 8'!CI22)","v":{"v":268284800.05049184,"d":"$268,284,800"}},{"$f":"SUM('Trial 1'!CJ22,'Trial 2'!CJ22,'Trial 3'!CJ22,'Trial 4'!CJ22,'Trial 5'!CJ22,'Trial 6'!CJ22,'Trial 7'!CJ22,'Trial 8'!CJ22)","v":{"v":268177950.94327924,"d":"$268,177,951"}},{"$f":"SUM('Trial 1'!CK22,'Trial 2'!CK22,'Trial 3'!CK22,'Trial 4'!CK22,'Trial 5'!CK22,'Trial 6'!CK22,'Trial 7'!CK22,'Trial 8'!CK22)","v":{"v":268068838.84534168,"d":"$268,068,839"}},{"$f":"SUM('Trial 1'!CL22,'Trial 2'!CL22,'Trial 3'!CL22,'Trial 4'!CL22,'Trial 5'!CL22,'Trial 6'!CL22,'Trial 7'!CL22,'Trial 8'!CL22)","v":{"v":267967249.4845877,"d":"$267,967,249"}},{"$f":"SUM('Trial 1'!CM22,'Trial 2'!CM22,'Trial 3'!CM22,'Trial 4'!CM22,'Trial 5'!CM22,'Trial 6'!CM22,'Trial 7'!CM22,'Trial 8'!CM22)","v":{"v":267854142.13271162,"d":"$267,854,142"}},{"$f":"CM177","v":{"v":267854142.13271162,"d":"$267,854,142"}},{"$f":"SUM('Trial 1'!CO22,'Trial 2'!CO22,'Trial 3'!CO22,'Trial 4'!CO22,'Trial 5'!CO22,'Trial 6'!CO22,'Trial 7'!CO22,'Trial 8'!CO22)","v":{"v":267751311.34940875,"d":"$267,751,311"}},{"$f":"SUM('Trial 1'!CP22,'Trial 2'!CP22,'Trial 3'!CP22,'Trial 4'!CP22,'Trial 5'!CP22,'Trial 6'!CP22,'Trial 7'!CP22,'Trial 8'!CP22)","v":{"v":267643795.6193436,"d":"$267,643,796"}},{"$f":"SUM('Trial 1'!CQ22,'Trial 2'!CQ22,'Trial 3'!CQ22,'Trial 4'!CQ22,'Trial 5'!CQ22,'Trial 6'!CQ22,'Trial 7'!CQ22,'Trial 8'!CQ22)","v":{"v":267536714.0614656,"d":"$267,536,714"}},{"$f":"SUM('Trial 1'!CR22,'Trial 2'!CR22,'Trial 3'!CR22,'Trial 4'!CR22,'Trial 5'!CR22,'Trial 6'!CR22,'Trial 7'!CR22,'Trial 8'!CR22)","v":{"v":267428820.22429866,"d":"$267,428,820"}},{"$f":"SUM('Trial 1'!CS22,'Trial 2'!CS22,'Trial 3'!CS22,'Trial 4'!CS22,'Trial 5'!CS22,'Trial 6'!CS22,'Trial 7'!CS22,'Trial 8'!CS22)","v":{"v":267317780.50396633,"d":"$267,317,781"}},{"$f":"SUM('Trial 1'!CT22,'Trial 2'!CT22,'Trial 3'!CT22,'Trial 4'!CT22,'Trial 5'!CT22,'Trial 6'!CT22,'Trial 7'!CT22,'Trial 8'!CT22)","v":{"v":267194544.38114053,"d":"$267,194,544"}},{"$f":"SUM('Trial 1'!CU22,'Trial 2'!CU22,'Trial 3'!CU22,'Trial 4'!CU22,'Trial 5'!CU22,'Trial 6'!CU22,'Trial 7'!CU22,'Trial 8'!CU22)","v":{"v":267077041.6473719,"d":"$267,077,042"}},{"$f":"SUM('Trial 1'!CV22,'Trial 2'!CV22,'Trial 3'!CV22,'Trial 4'!CV22,'Trial 5'!CV22,'Trial 6'!CV22,'Trial 7'!CV22,'Trial 8'!CV22)","v":{"v":266978399.70645356,"d":"$266,978,400"}},{"$f":"SUM('Trial 1'!CW22,'Trial 2'!CW22,'Trial 3'!CW22,'Trial 4'!CW22,'Trial 5'!CW22,'Trial 6'!CW22,'Trial 7'!CW22,'Trial 8'!CW22)","v":{"v":266864713.2165155,"d":"$266,864,713"}},{"$f":"SUM('Trial 1'!CX22,'Trial 2'!CX22,'Trial 3'!CX22,'Trial 4'!CX22,'Trial 5'!CX22,'Trial 6'!CX22,'Trial 7'!CX22,'Trial 8'!CX22)","v":{"v":266752143.55198413,"d":"$266,752,144"}},{"$f":"SUM('Trial 1'!CY22,'Trial 2'!CY22,'Trial 3'!CY22,'Trial 4'!CY22,'Trial 5'!CY22,'Trial 6'!CY22,'Trial 7'!CY22,'Trial 8'!CY22)","v":{"v":266637258.88395628,"d":"$266,637,259"}},{"$f":"SUM('Trial 1'!CZ22,'Trial 2'!CZ22,'Trial 3'!CZ22,'Trial 4'!CZ22,'Trial 5'!CZ22,'Trial 6'!CZ22,'Trial 7'!CZ22,'Trial 8'!CZ22)","v":{"v":266529746.5293807,"d":"$266,529,747"}},{"$f":"CZ177","v":{"v":266529746.5293807,"d":"$266,529,747"}},{"$f":"SUM('Trial 1'!DB22,'Trial 2'!DB22,'Trial 3'!DB22,'Trial 4'!DB22,'Trial 5'!DB22,'Trial 6'!DB22,'Trial 7'!DB22,'Trial 8'!DB22)","v":{"v":266415835.1390766,"d":"$266,415,835"}},{"$f":"SUM('Trial 1'!DC22,'Trial 2'!DC22,'Trial 3'!DC22,'Trial 4'!DC22,'Trial 5'!DC22,'Trial 6'!DC22,'Trial 7'!DC22,'Trial 8'!DC22)","v":{"v":266309600.8352678,"d":"$266,309,601"}},{"$f":"SUM('Trial 1'!DD22,'Trial 2'!DD22,'Trial 3'!DD22,'Trial 4'!DD22,'Trial 5'!DD22,'Trial 6'!DD22,'Trial 7'!DD22,'Trial 8'!DD22)","v":{"v":266191508.0881428,"d":"$266,191,508"}},{"$f":"SUM('Trial 1'!DE22,'Trial 2'!DE22,'Trial 3'!DE22,'Trial 4'!DE22,'Trial 5'!DE22,'Trial 6'!DE22,'Trial 7'!DE22,'Trial 8'!DE22)","v":{"v":266077347.83248442,"d":"$266,077,348"}},{"$f":"SUM('Trial 1'!DF22,'Trial 2'!DF22,'Trial 3'!DF22,'Trial 4'!DF22,'Trial 5'!DF22,'Trial 6'!DF22,'Trial 7'!DF22,'Trial 8'!DF22)","v":{"v":265969765.14659706,"d":"$265,969,765"}},{"$f":"SUM('Trial 1'!DG22,'Trial 2'!DG22,'Trial 3'!DG22,'Trial 4'!DG22,'Trial 5'!DG22,'Trial 6'!DG22,'Trial 7'!DG22,'Trial 8'!DG22)","v":{"v":265858180.68614522,"d":"$265,858,181"}},{"$f":"SUM('Trial 1'!DH22,'Trial 2'!DH22,'Trial 3'!DH22,'Trial 4'!DH22,'Trial 5'!DH22,'Trial 6'!DH22,'Trial 7'!DH22,'Trial 8'!DH22)","v":{"v":265744847.7552145,"d":"$265,744,848"}},{"$f":"SUM('Trial 1'!DI22,'Trial 2'!DI22,'Trial 3'!DI22,'Trial 4'!DI22,'Trial 5'!DI22,'Trial 6'!DI22,'Trial 7'!DI22,'Trial 8'!DI22)","v":{"v":265630340.77406454,"d":"$265,630,341"}},{"$f":"SUM('Trial 1'!DJ22,'Trial 2'!DJ22,'Trial 3'!DJ22,'Trial 4'!DJ22,'Trial 5'!DJ22,'Trial 6'!DJ22,'Trial 7'!DJ22,'Trial 8'!DJ22)","v":{"v":265514070.8720797,"d":"$265,514,071"}},{"$f":"SUM('Trial 1'!DK22,'Trial 2'!DK22,'Trial 3'!DK22,'Trial 4'!DK22,'Trial 5'!DK22,'Trial 6'!DK22,'Trial 7'!DK22,'Trial 8'!DK22)","v":{"v":265402606.58372885,"d":"$265,402,607"}},{"$f":"SUM('Trial 1'!DL22,'Trial 2'!DL22,'Trial 3'!DL22,'Trial 4'!DL22,'Trial 5'!DL22,'Trial 6'!DL22,'Trial 7'!DL22,'Trial 8'!DL22)","v":{"v":265289881.74726796,"d":"$265,289,882"}},{"$f":"SUM('Trial 1'!DM22,'Trial 2'!DM22,'Trial 3'!DM22,'Trial 4'!DM22,'Trial 5'!DM22,'Trial 6'!DM22,'Trial 7'!DM22,'Trial 8'!DM22)","v":{"v":265173165.0286406,"d":"$265,173,165"}},{"$f":"DM177","v":{"v":265173165.0286406,"d":"$265,173,165"}},{"$f":"SUM('Trial 1'!DO22,'Trial 2'!DO22,'Trial 3'!DO22,'Trial 4'!DO22,'Trial 5'!DO22,'Trial 6'!DO22,'Trial 7'!DO22,'Trial 8'!DO22)","v":{"v":265058164.06390196,"d":"$265,058,164"}},{"$f":"SUM('Trial 1'!DP22,'Trial 2'!DP22,'Trial 3'!DP22,'Trial 4'!DP22,'Trial 5'!DP22,'Trial 6'!DP22,'Trial 7'!DP22,'Trial 8'!DP22)","v":{"v":264952198.2053996,"d":"$264,952,198"}},{"$f":"SUM('Trial 1'!DQ22,'Trial 2'!DQ22,'Trial 3'!DQ22,'Trial 4'!DQ22,'Trial 5'!DQ22,'Trial 6'!DQ22,'Trial 7'!DQ22,'Trial 8'!DQ22)","v":{"v":264837495.4566952,"d":"$264,837,495"}},{"$f":"SUM('Trial 1'!DR22,'Trial 2'!DR22,'Trial 3'!DR22,'Trial 4'!DR22,'Trial 5'!DR22,'Trial 6'!DR22,'Trial 7'!DR22,'Trial 8'!DR22)","v":{"v":264734308.7720747,"d":"$264,734,309"}},{"$f":"SUM('Trial 1'!DS22,'Trial 2'!DS22,'Trial 3'!DS22,'Trial 4'!DS22,'Trial 5'!DS22,'Trial 6'!DS22,'Trial 7'!DS22,'Trial 8'!DS22)","v":{"v":264624333.52642822,"d":"$264,624,334"}},{"$f":"SUM('Trial 1'!DT22,'Trial 2'!DT22,'Trial 3'!DT22,'Trial 4'!DT22,'Trial 5'!DT22,'Trial 6'!DT22,'Trial 7'!DT22,'Trial 8'!DT22)","v":{"v":264513469.57262167,"d":"$264,513,470"}},{"$f":"SUM('Trial 1'!DU22,'Trial 2'!DU22,'Trial 3'!DU22,'Trial 4'!DU22,'Trial 5'!DU22,'Trial 6'!DU22,'Trial 7'!DU22,'Trial 8'!DU22)","v":{"v":264409782.25305578,"d":"$264,409,782"}},{"$f":"SUM('Trial 1'!DV22,'Trial 2'!DV22,'Trial 3'!DV22,'Trial 4'!DV22,'Trial 5'!DV22,'Trial 6'!DV22,'Trial 7'!DV22,'Trial 8'!DV22)","v":{"v":264301416.4075116,"d":"$264,301,416"}},{"$f":"SUM('Trial 1'!DW22,'Trial 2'!DW22,'Trial 3'!DW22,'Trial 4'!DW22,'Trial 5'!DW22,'Trial 6'!DW22,'Trial 7'!DW22,'Trial 8'!DW22)","v":{"v":264195170.56867507,"d":"$264,195,171"}},{"$f":"SUM('Trial 1'!DX22,'Trial 2'!DX22,'Trial 3'!DX22,'Trial 4'!DX22,'Trial 5'!DX22,'Trial 6'!DX22,'Trial 7'!DX22,'Trial 8'!DX22)","v":{"v":264085873.5126609,"d":"$264,085,874"}},{"$f":"SUM('Trial 1'!DY22,'Trial 2'!DY22,'Trial 3'!DY22,'Trial 4'!DY22,'Trial 5'!DY22,'Trial 6'!DY22,'Trial 7'!DY22,'Trial 8'!DY22)","v":{"v":263975454.02508458,"d":"$263,975,454"}},{"$f":"SUM('Trial 1'!DZ22,'Trial 2'!DZ22,'Trial 3'!DZ22,'Trial 4'!DZ22,'Trial 5'!DZ22,'Trial 6'!DZ22,'Trial 7'!DZ22,'Trial 8'!DZ22)","v":{"v":263865703.85926503,"d":"$263,865,704"}},{"$f":"DZ177","v":{"v":263865703.85926503,"d":"$263,865,704"}},{"$f":"SUM('Trial 1'!EB22,'Trial 2'!EB22,'Trial 3'!EB22,'Trial 4'!EB22,'Trial 5'!EB22,'Trial 6'!EB22,'Trial 7'!EB22,'Trial 8'!EB22)","v":{"v":263746605.05115545,"d":"$263,746,605"}},{"$f":"SUM('Trial 1'!EC22,'Trial 2'!EC22,'Trial 3'!EC22,'Trial 4'!EC22,'Trial 5'!EC22,'Trial 6'!EC22,'Trial 7'!EC22,'Trial 8'!EC22)","v":{"v":263639400.98995233,"d":"$263,639,401"}},{"$f":"SUM('Trial 1'!ED22,'Trial 2'!ED22,'Trial 3'!ED22,'Trial 4'!ED22,'Trial 5'!ED22,'Trial 6'!ED22,'Trial 7'!ED22,'Trial 8'!ED22)","v":{"v":263521306.4502534,"d":"$263,521,306"}},{"$f":"SUM('Trial 1'!EE22,'Trial 2'!EE22,'Trial 3'!EE22,'Trial 4'!EE22,'Trial 5'!EE22,'Trial 6'!EE22,'Trial 7'!EE22,'Trial 8'!EE22)","v":{"v":263406566.04351738,"d":"$263,406,566"}},{"$f":"SUM('Trial 1'!EF22,'Trial 2'!EF22,'Trial 3'!EF22,'Trial 4'!EF22,'Trial 5'!EF22,'Trial 6'!EF22,'Trial 7'!EF22,'Trial 8'!EF22)","v":{"v":263296905.493257,"d":"$263,296,905"}},{"$f":"SUM('Trial 1'!EG22,'Trial 2'!EG22,'Trial 3'!EG22,'Trial 4'!EG22,'Trial 5'!EG22,'Trial 6'!EG22,'Trial 7'!EG22,'Trial 8'!EG22)","v":{"v":263188253.63693374,"d":"$263,188,254"}},{"$f":"SUM('Trial 1'!EH22,'Trial 2'!EH22,'Trial 3'!EH22,'Trial 4'!EH22,'Trial 5'!EH22,'Trial 6'!EH22,'Trial 7'!EH22,'Trial 8'!EH22)","v":{"v":263072087.33443612,"d":"$263,072,087"}},{"$f":"SUM('Trial 1'!EI22,'Trial 2'!EI22,'Trial 3'!EI22,'Trial 4'!EI22,'Trial 5'!EI22,'Trial 6'!EI22,'Trial 7'!EI22,'Trial 8'!EI22)","v":{"v":262958260.42372182,"d":"$262,958,260"}},{"$f":"SUM('Trial 1'!EJ22,'Trial 2'!EJ22,'Trial 3'!EJ22,'Trial 4'!EJ22,'Trial 5'!EJ22,'Trial 6'!EJ22,'Trial 7'!EJ22,'Trial 8'!EJ22)","v":{"v":262834260.11063537,"d":"$262,834,260"}},{"$f":"SUM('Trial 1'!EK22,'Trial 2'!EK22,'Trial 3'!EK22,'Trial 4'!EK22,'Trial 5'!EK22,'Trial 6'!EK22,'Trial 7'!EK22,'Trial 8'!EK22)","v":{"v":262720650.79022238,"d":"$262,720,651"}},{"$f":"SUM('Trial 1'!EL22,'Trial 2'!EL22,'Trial 3'!EL22,'Trial 4'!EL22,'Trial 5'!EL22,'Trial 6'!EL22,'Trial 7'!EL22,'Trial 8'!EL22)","v":{"v":262613141.11478096,"d":"$262,613,141"}},{"$f":"SUM('Trial 1'!EM22,'Trial 2'!EM22,'Trial 3'!EM22,'Trial 4'!EM22,'Trial 5'!EM22,'Trial 6'!EM22,'Trial 7'!EM22,'Trial 8'!EM22)","v":{"v":262498242.05729258,"d":"$262,498,242"}},{"$f":"EM177","v":{"v":262498242.05729258,"d":"$262,498,242"}}]
[{"$f":"Labels!B31","v":"Long Expected Demand"}]
[{"$f":"Labels!D96","v":"Trials"},{"$f":"ZZZ__FnCalls!F7","v":"Jan 2010"},{"$f":"ZZZ__FnCalls!F8","v":"Feb 2010"},{"$f":"ZZZ__FnCalls!F9","v":"Mar 2010"},{"$f":"ZZZ__FnCalls!F10","v":"Apr 2010"},{"$f":"ZZZ__FnCalls!F11","v":"May 2010"},{"$f":"ZZZ__FnCalls!F12","v":"Jun 2010"},{"$f":"ZZZ__FnCalls!F13","v":"Jul 2010"},{"$f":"ZZZ__FnCalls!F14","v":"Aug 2010"},{"$f":"ZZZ__FnCalls!F15","v":"Sep 2010"},{"$f":"ZZZ__FnCalls!F16","v":"Oct 2010"},{"$f":"ZZZ__FnCalls!F17","v":"Nov 2010"},{"$f":"ZZZ__FnCalls!F18","v":"Dec 2010"},{"$f":"ZZZ__FnCalls!H7","v":"2010"},{"$f":"ZZZ__FnCalls!F19","v":"Jan 2011"},{"$f":"ZZZ__FnCalls!F20","v":"Feb 2011"},{"$f":"ZZZ__FnCalls!F21","v":"Mar 2011"},{"$f":"ZZZ__FnCalls!F22","v":"Apr 2011"},{"$f":"ZZZ__FnCalls!F23","v":"May 2011"},{"$f":"ZZZ__FnCalls!F24","v":"Jun 2011"},{"$f":"ZZZ__FnCalls!F25","v":"Jul 2011"},{"$f":"ZZZ__FnCalls!F26","v":"Aug 2011"},{"$f":"ZZZ__FnCalls!F27","v":"Sep 2011"},{"$f":"ZZZ__FnCalls!F28","v":"Oct 2011"},{"$f":"ZZZ__FnCalls!F29","v":"Nov 2011"},{"$f":"ZZZ__FnCalls!F30","v":"Dec 2011"},{"$f":"ZZZ__FnCalls!H19","v":"2011"},{"$f":"ZZZ__FnCalls!F31","v":"Jan 2012"},{"$f":"ZZZ__FnCalls!F32","v":"Feb 2012"},{"$f":"ZZZ__FnCalls!F33","v":"Mar 2012"},{"$f":"ZZZ__FnCalls!F34","v":"Apr 2012"},{"$f":"ZZZ__FnCalls!F35","v":"May 2012"},{"$f":"ZZZ__FnCalls!F36","v":"Jun 2012"},{"$f":"ZZZ__FnCalls!F37","v":"Jul 2012"},{"$f":"ZZZ__FnCalls!F38","v":"Aug 2012"},{"$f":"ZZZ__FnCalls!F39","v":"Sep 2012"},{"$f":"ZZZ__FnCalls!F40","v":"Oct 2012"},{"$f":"ZZZ__FnCalls!F41","v":"Nov 2012"},{"$f":"ZZZ__FnCalls!F42","v":"Dec 2012"},{"$f":"ZZZ__FnCalls!H31","v":"2012"},{"$f":"ZZZ__FnCalls!F43","v":"Jan 2013"},{"$f":"ZZZ__FnCalls!F44","v":"Feb 2013"},{"$f":"ZZZ__FnCalls!F45","v":"Mar 2013"},{"$f":"ZZZ__FnCalls!F46","v":"Apr 2013"},{"$f":"ZZZ__FnCalls!F47","v":"May 2013"},{"$f":"ZZZ__FnCalls!F48","v":"Jun 2013"},{"$f":"ZZZ__FnCalls!F49","v":"Jul 2013"},{"$f":"ZZZ__FnCalls!F50","v":"Aug 2013"},{"$f":"ZZZ__FnCalls!F51","v":"Sep 2013"},{"$f":"ZZZ__FnCalls!F52","v":"Oct 2013"},{"$f":"ZZZ__FnCalls!F53","v":"Nov 2013"},{"$f":"ZZZ__FnCalls!F54","v":"Dec 2013"},{"$f":"ZZZ__FnCalls!H43","v":"2013"},{"$f":"ZZZ__FnCalls!F55","v":"Jan 2014"},{"$f":"ZZZ__FnCalls!F56","v":"Feb 2014"},{"$f":"ZZZ__FnCalls!F57","v":"Mar 2014"},{"$f":"ZZZ__FnCalls!F58","v":"Apr 2014"},{"$f":"ZZZ__FnCalls!F59","v":"May 2014"},{"$f":"ZZZ__FnCalls!F60","v":"Jun 2014"},{"$f":"ZZZ__FnCalls!F61","v":"Jul 2014"},{"$f":"ZZZ__FnCalls!F62","v":"Aug 2014"},{"$f":"ZZZ__FnCalls!F63","v":"Sep 2014"},{"$f":"ZZZ__FnCalls!F64","v":"Oct 2014"},{"$f":"ZZZ__FnCalls!F65","v":"Nov 2014"},{"$f":"ZZZ__FnCalls!F66","v":"Dec 2014"},{"$f":"ZZZ__FnCalls!H55","v":"2014"},{"$f":"ZZZ__FnCalls!F67","v":"Jan 2015"},{"$f":"ZZZ__FnCalls!F68","v":"Feb 2015"},{"$f":"ZZZ__FnCalls!F69","v":"Mar 2015"},{"$f":"ZZZ__FnCalls!F70","v":"Apr 2015"},{"$f":"ZZZ__FnCalls!F71","v":"May 2015"},{"$f":"ZZZ__FnCalls!F72","v":"Jun 2015"},{"$f":"ZZZ__FnCalls!F73","v":"Jul 2015"},{"$f":"ZZZ__FnCalls!F74","v":"Aug 2015"},{"$f":"ZZZ__FnCalls!F75","v":"Sep 2015"},{"$f":"ZZZ__FnCalls!F76","v":"Oct 2015"},{"$f":"ZZZ__FnCalls!F77","v":"Nov 2015"},{"$f":"ZZZ__FnCalls!F78","v":"Dec 2015"},{"$f":"ZZZ__FnCalls!H67","v":"2015"},{"$f":"ZZZ__FnCalls!F79","v":"Jan 2016"},{"$f":"ZZZ__FnCalls!F80","v":"Feb 2016"},{"$f":"ZZZ__FnCalls!F81","v":"Mar 2016"},{"$f":"ZZZ__FnCalls!F82","v":"Apr 2016"},{"$f":"ZZZ__FnCalls!F83","v":"May 2016"},{"$f":"ZZZ__FnCalls!F84","v":"Jun 2016"},{"$f":"ZZZ__FnCalls!F85","v":"Jul 2016"},{"$f":"ZZZ__FnCalls!F86","v":"Aug 2016"},{"$f":"ZZZ__FnCalls!F87","v":"Sep 2016"},{"$f":"ZZZ__FnCalls!F88","v":"Oct 2016"},{"$f":"ZZZ__FnCalls!F89","v":"Nov 2016"},{"$f":"ZZZ__FnCalls!F90","v":"Dec 2016"},{"$f":"ZZZ__FnCalls!H79","v":"2016"},{"$f":"ZZZ__FnCalls!F91","v":"Jan 2017"},{"$f":"ZZZ__FnCalls!F92","v":"Feb 2017"},{"$f":"ZZZ__FnCalls!F93","v":"Mar 2017"},{"$f":"ZZZ__FnCalls!F94","v":"Apr 2017"},{"$f":"ZZZ__FnCalls!F95","v":"May 2017"},{"$f":"ZZZ__FnCalls!F96","v":"Jun 2017"},{"$f":"ZZZ__FnCalls!F97","v":"Jul 2017"},{"$f":"ZZZ__FnCalls!F98","v":"Aug 2017"},{"$f":"ZZZ__FnCalls!F99","v":"Sep 2017"},{"$f":"ZZZ__FnCalls!F100","v":"Oct 2017"},{"$f":"ZZZ__FnCalls!F101","v":"Nov 2017"},{"$f":"ZZZ__FnCalls!F102","v":"Dec 2017"},{"$f":"ZZZ__FnCalls!H91","v":"2017"},{"$f":"ZZZ__FnCalls!F103","v":"Jan 2018"},{"$f":"ZZZ__FnCalls!F104","v":"Feb 2018"},{"$f":"ZZZ__FnCalls!F105","v":"Mar 2018"},{"$f":"ZZZ__FnCalls!F106","v":"Apr 2018"},{"$f":"ZZZ__FnCalls!F107","v":"May 2018"},{"$f":"ZZZ__FnCalls!F108","v":"Jun 2018"},{"$f":"ZZZ__FnCalls!F109","v":"Jul 2018"},{"$f":"ZZZ__FnCalls!F110","v":"Aug 2018"},{"$f":"ZZZ__FnCalls!F111","v":"Sep 2018"},{"$f":"ZZZ__FnCalls!F112","v":"Oct 2018"},{"$f":"ZZZ__FnCalls!F113","v":"Nov 2018"},{"$f":"ZZZ__FnCalls!F114","v":"Dec 2018"},{"$f":"ZZZ__FnCalls!H103","v":"2018"},{"$f":"ZZZ__FnCalls!F115","v":"Jan 2019"},{"$f":"ZZZ__FnCalls!F116","v":"Feb 2019"},{"$f":"ZZZ__FnCalls!F117","v":"Mar 2019"},{"$f":"ZZZ__FnCalls!F118","v":"Apr 2019"},{"$f":"ZZZ__FnCalls!F119","v":"May 2019"},{"$f":"ZZZ__FnCalls!F120","v":"Jun 2019"},{"$f":"ZZZ__FnCalls!F121","v":"Jul 2019"},{"$f":"ZZZ__FnCalls!F122","v":"Aug 2019"},{"$f":"ZZZ__FnCalls!F123","v":"Sep 2019"},{"$f":"ZZZ__FnCalls!F124","v":"Oct 2019"},{"$f":"ZZZ__FnCalls!F125","v":"Nov 2019"},{"$f":"ZZZ__FnCalls!F126","v":"Dec 2019"},{"$f":"ZZZ__FnCalls!H115","v":"2019"},{"$f":"ZZZ__FnCalls!F127","v":"Jan 2020"},{"$f":"ZZZ__FnCalls!F128","v":"Feb 2020"},{"$f":"ZZZ__FnCalls!F129","v":"Mar 2020"},{"$f":"ZZZ__FnCalls!F130","v":"Apr 2020"},{"$f":"ZZZ__FnCalls!F131","v":"May 2020"},{"$f":"ZZZ__FnCalls!F132","v":"Jun 2020"},{"$f":"ZZZ__FnCalls!F133","v":"Jul 2020"},{"$f":"ZZZ__FnCalls!F134","v":"Aug 2020"},{"$f":"ZZZ__FnCalls!F135","v":"Sep 2020"},{"$f":"ZZZ__FnCalls!F136","v":"Oct 2020"},{"$f":"ZZZ__FnCalls!F137","v":"Nov 2020"},{"$f":"ZZZ__FnCalls!F138","v":"Dec 2020"},{"$f":"ZZZ__FnCalls!H127","v":"2020"}]
[{"$f":"Labels!B96","v":"Trial 01"},{"$f":"'Trial 1'!B10","v":{"v":1166666.6666666667,"d":"$1,166,667"}},{"$f":"'Trial 1'!C10","v":{"v":1166142.2655630677,"d":"$1,166,142"}},{"$f":"'Trial 1'!D10","v":{"v":1165758.0041603083,"d":"$1,165,758"}},{"$f":"'Trial 1'!E10","v":{"v":1165334.4715566407,"d":"$1,165,334"}},{"$f":"'Trial 1'!F10","v":{"v":1164864.064900172,"d":"$1,164,864"}},{"$f":"'Trial 1'!G10","v":{"v":1164508.9170336213,"d":"$1,164,509"}},{"$f":"'Trial 1'!H10","v":{"v":1164081.5754214132,"d":"$1,164,082"}},{"$f":"'Trial 1'!I10","v":{"v":1163583.3868025595,"d":"$1,163,583"}},{"$f":"'Trial 1'!J10","v":{"v":1163108.561583205,"d":"$1,163,109"}},{"$f":"'Trial 1'!K10","v":{"v":1162674.745961306,"d":"$1,162,675"}},{"$f":"'Trial 1'!L10","v":{"v":1162340.6242722112,"d":"$1,162,341"}},{"$f":"'Trial 1'!M10","v":{"v":1161956.086635275,"d":"$1,161,956"}},{"$f":"SUM('Trial 1'!B10:M10)","v":{"v":13971019.370556446,"d":"$13,971,019"}},{"$f":"'Trial 1'!O10","v":{"v":1161534.6825786282,"d":"$1,161,535"}},{"$f":"'Trial 1'!P10","v":{"v":1161036.4931823479,"d":"$1,161,036"}},{"$f":"'Trial 1'!Q10","v":{"v":1160580.1958780934,"d":"$1,160,580"}},{"$f":"'Trial 1'!R10","v":{"v":1159972.8928238398,"d":"$1,159,973"}},{"$f":"'Trial 1'!S10","v":{"v":1159551.3406574372,"d":"$1,159,551"}},{"$f":"'Trial 1'!T10","v":{"v":1158963.8844653915,"d":"$1,158,964"}},{"$f":"'Trial 1'!U10","v":{"v":1158423.8772632563,"d":"$1,158,424"}},{"$f":"'Trial 1'!V10","v":{"v":1157849.1507166144,"d":"$1,157,849"}},{"$f":"'Trial 1'!W10","v":{"v":1157272.1059065897,"d":"$1,157,272"}},{"$f":"'Trial 1'!X10","v":{"v":1156769.7868809612,"d":"$1,156,770"}},{"$f":"'Trial 1'!Y10","v":{"v":1156288.1115064882,"d":"$1,156,288"}},{"$f":"'Trial 1'!Z10","v":{"v":1155917.7494092253,"d":"$1,155,918"}},{"$f":"SUM('Trial 1'!O10:Z10)","v":{"v":13904160.27126887,"d":"$13,904,160"}},{"$f":"'Trial 1'!AB10","v":{"v":1155395.5070508344,"d":"$1,155,396"}},{"$f":"'Trial 1'!AC10","v":{"v":1154934.7261997624,"d":"$1,154,935"}},{"$f":"'Trial 1'!AD10","v":{"v":1154605.3686318733,"d":"$1,154,605"}},{"$f":"'Trial 1'!AE10","v":{"v":1154091.0799110378,"d":"$1,154,091"}},{"$f":"'Trial 1'!AF10","v":{"v":1153547.9040835032,"d":"$1,153,548"}},{"$f":"'Trial 1'!AG10","v":{"v":1153075.0079445762,"d":"$1,153,075"}},{"$f":"'Trial 1'!AH10","v":{"v":1152593.7536002027,"d":"$1,152,594"}},{"$f":"'Trial 1'!AI10","v":{"v":1152160.0686064172,"d":"$1,152,160"}},{"$f":"'Trial 1'!AJ10","v":{"v":1151658.6513770004,"d":"$1,151,659"}},{"$f":"'Trial 1'!AK10","v":{"v":1151301.412975583,"d":"$1,151,301"}},{"$f":"'Trial 1'!AL10","v":{"v":1150854.1775243494,"d":"$1,150,854"}},{"$f":"'Trial 1'!AM10","v":{"v":1150360.5472446033,"d":"$1,150,361"}},{"$f":"SUM('Trial 1'!AB10:AM10)","v":{"v":13834578.205149742,"d":"$13,834,578"}},{"$f":"'Trial 1'!AO10","v":{"v":1149815.5572893047,"d":"$1,149,816"}},{"$f":"'Trial 1'!AP10","v":{"v":1149271.2358086095,"d":"$1,149,271"}},{"$f":"'Trial 1'!AQ10","v":{"v":1148940.5925845215,"d":"$1,148,941"}},{"$f":"'Trial 1'!AR10","v":{"v":1148380.5507852687,"d":"$1,148,381"}},{"$f":"'Trial 1'!AS10","v":{"v":1147978.4484654784,"d":"$1,147,978"}},{"$f":"'Trial 1'!AT10","v":{"v":1147523.5951378224,"d":"$1,147,524"}},{"$f":"'Trial 1'!AU10","v":{"v":1147115.8921858817,"d":"$1,147,116"}},{"$f":"'Trial 1'!AV10","v":{"v":1146636.4466149453,"d":"$1,146,636"}},{"$f":"'Trial 1'!AW10","v":{"v":1146113.8001134023,"d":"$1,146,114"}},{"$f":"'Trial 1'!AX10","v":{"v":1145639.7921609518,"d":"$1,145,640"}},{"$f":"'Trial 1'!AY10","v":{"v":1145266.904756742,"d":"$1,145,267"}},{"$f":"'Trial 1'!AZ10","v":{"v":1144831.4541048529,"d":"$1,144,831"}},{"$f":"SUM('Trial 1'!AO10:AZ10)","v":{"v":13767514.270007782,"d":"$13,767,514"}},{"$f":"'Trial 1'!BB10","v":{"v":1144280.894776596,"d":"$1,144,281"}},{"$f":"'Trial 1'!BC10","v":{"v":1143723.0016564885,"d":"$1,143,723"}},{"$f":"'Trial 1'!BD10","v":{"v":1143268.2883851826,"d":"$1,143,268"}},{"$f":"'Trial 1'!BE10","v":{"v":1142759.2650846285,"d":"$1,142,759"}},{"$f":"'Trial 1'!BF10","v":{"v":1142364.8349133139,"d":"$1,142,365"}},{"$f":"'Trial 1'!BG10","v":{"v":1141925.0186288967,"d":"$1,141,925"}},{"$f":"'Trial 1'!BH10","v":{"v":1141480.9875363961,"d":"$1,141,481"}},{"$f":"'Trial 1'!BI10","v":{"v":1141055.7442130565,"d":"$1,141,056"}},{"$f":"'Trial 1'!BJ10","v":{"v":1140564.0909001632,"d":"$1,140,564"}},{"$f":"'Trial 1'!BK10","v":{"v":1140068.7893091687,"d":"$1,140,069"}},{"$f":"'Trial 1'!BL10","v":{"v":1139496.1690215752,"d":"$1,139,496"}},{"$f":"'Trial 1'!BM10","v":{"v":1139050.592291822,"d":"$1,139,051"}},{"$f":"SUM('Trial 1'!BB10:BM10)","v":{"v":13700037.676717287,"d":"$13,700,038"}},{"$f":"'Trial 1'!BO10","v":{"v":1138510.1758090435,"d":"$1,138,510"}},{"$f":"'Trial 1'!BP10","v":{"v":1138080.6813764358,"d":"$1,138,081"}},{"$f":"'Trial 1'!BQ10","v":{"v":1137564.9828034586,"d":"$1,137,565"}},{"$f":"'Trial 1'!BR10","v":{"v":1137216.9879826691,"d":"$1,137,217"}},{"$f":"'Trial 1'!BS10","v":{"v":1136798.143791232,"d":"$1,136,798"}},{"$f":"'Trial 1'!BT10","v":{"v":1136337.5091532941,"d":"$1,136,338"}},{"$f":"'Trial 1'!BU10","v":{"v":1135762.3160199458,"d":"$1,135,762"}},{"$f":"'Trial 1'!BV10","v":{"v":1135217.609907487,"d":"$1,135,218"}},{"$f":"'Trial 1'!BW10","v":{"v":1134722.932269408,"d":"$1,134,723"}},{"$f":"'Trial 1'!BX10","v":{"v":1134322.9549014934,"d":"$1,134,323"}},{"$f":"'Trial 1'!BY10","v":{"v":1133776.6951885812,"d":"$1,133,777"}},{"$f":"'Trial 1'!BZ10","v":{"v":1133203.9027523277,"d":"$1,133,204"}},{"$f":"SUM('Trial 1'!BO10:BZ10)","v":{"v":13631514.891955376,"d":"$13,631,515"}},{"$f":"'Trial 1'!CB10","v":{"v":1132810.3691447766,"d":"$1,132,810"}},{"$f":"'Trial 1'!CC10","v":{"v":1132323.1314165918,"d":"$1,132,323"}},{"$f":"'Trial 1'!CD10","v":{"v":1131755.3930938942,"d":"$1,131,755"}},{"$f":"'Trial 1'!CE10","v":{"v":1131374.2034441454,"d":"$1,131,374"}},{"$f":"'Trial 1'!CF10","v":{"v":1130829.840233505,"d":"$1,130,830"}},{"$f":"'Trial 1'!CG10","v":{"v":1130352.9816735429,"d":"$1,130,353"}},{"$f":"'Trial 1'!CH10","v":{"v":1129910.402809313,"d":"$1,129,910"}},{"$f":"'Trial 1'!CI10","v":{"v":1129431.3050626752,"d":"$1,129,431"}},{"$f":"'Trial 1'!CJ10","v":{"v":1128978.0980526644,"d":"$1,128,978"}},{"$f":"'Trial 1'!CK10","v":{"v":1128509.2938347543,"d":"$1,128,509"}},{"$f":"'Trial 1'!CL10","v":{"v":1127927.4422827272,"d":"$1,127,927"}},{"$f":"'Trial 1'!CM10","v":{"v":1127520.6648995727,"d":"$1,127,521"}},{"$f":"SUM('Trial 1'!CB10:CM10)","v":{"v":13561723.125948163,"d":"$13,561,723"}},{"$f":"'Trial 1'!CO10","v":{"v":1127051.0650954125,"d":"$1,127,051"}},{"$f":"'Trial 1'!CP10","v":{"v":1126512.887943466,"d":"$1,126,513"}},{"$f":"'Trial 1'!CQ10","v":{"v":1126105.867135557,"d":"$1,126,106"}},{"$f":"'Trial 1'!CR10","v":{"v":1125500.2120541297,"d":"$1,125,500"}},{"$f":"'Trial 1'!CS10","v":{"v":1125019.9953784735,"d":"$1,125,020"}},{"$f":"'Trial 1'!CT10","v":{"v":1124433.154044466,"d":"$1,124,433"}},{"$f":"'Trial 1'!CU10","v":{"v":1123983.2810920668,"d":"$1,123,983"}},{"$f":"'Trial 1'!CV10","v":{"v":1123422.0322880817,"d":"$1,123,422"}},{"$f":"'Trial 1'!CW10","v":{"v":1122967.8506780418,"d":"$1,122,968"}},{"$f":"'Trial 1'!CX10","v":{"v":1122389.772400952,"d":"$1,122,390"}},{"$f":"'Trial 1'!CY10","v":{"v":1121999.0478774975,"d":"$1,121,999"}},{"$f":"'Trial 1'!CZ10","v":{"v":1121626.1360634307,"d":"$1,121,626"}},{"$f":"SUM('Trial 1'!CO10:CZ10)","v":{"v":13491011.302051578,"d":"$13,491,011"}},{"$f":"'Trial 1'!DB10","v":{"v":1121044.787070587,"d":"$1,121,045"}},{"$f":"'Trial 1'!DC10","v":{"v":1120578.5197429208,"d":"$1,120,579"}},{"$f":"'Trial 1'!DD10","v":{"v":1120155.8592630762,"d":"$1,120,156"}},{"$f":"'Trial 1'!DE10","v":{"v":1119687.1458320876,"d":"$1,119,687"}},{"$f":"'Trial 1'!DF10","v":{"v":1119276.0284692012,"d":"$1,119,276"}},{"$f":"'Trial 1'!DG10","v":{"v":1118859.743546374,"d":"$1,118,860"}},{"$f":"'Trial 1'!DH10","v":{"v":1118356.371426937,"d":"$1,118,356"}},{"$f":"'Trial 1'!DI10","v":{"v":1117920.347367263,"d":"$1,117,920"}},{"$f":"'Trial 1'!DJ10","v":{"v":1117380.3318182745,"d":"$1,117,380"}},{"$f":"'Trial 1'!DK10","v":{"v":1116946.4871359312,"d":"$1,116,946"}},{"$f":"'Trial 1'!DL10","v":{"v":1116583.116175992,"d":"$1,116,583"}},{"$f":"'Trial 1'!DM10","v":{"v":1116026.3239473815,"d":"$1,116,026"}},{"$f":"SUM('Trial 1'!DB10:DM10)","v":{"v":13422815.061796028,"d":"$13,422,815"}},{"$f":"'Trial 1'!DO10","v":{"v":1115571.6158703014,"d":"$1,115,572"}},{"$f":"'Trial 1'!DP10","v":{"v":1115204.9428234515,"d":"$1,115,205"}},{"$f":"'Trial 1'!DQ10","v":{"v":1114699.0966257264,"d":"$1,114,699"}},{"$f":"'Trial 1'!DR10","v":{"v":1114259.5887873974,"d":"$1,114,260"}},{"$f":"'Trial 1'!DS10","v":{"v":1113802.753283255,"d":"$1,113,803"}},{"$f":"'Trial 1'!DT10","v":{"v":1113310.0510720557,"d":"$1,113,310"}},{"$f":"'Trial 1'!DU10","v":{"v":1112812.0325550456,"d":"$1,112,812"}},{"$f":"'Trial 1'!DV10","v":{"v":1112371.1016513458,"d":"$1,112,371"}},{"$f":"'Trial 1'!DW10","v":{"v":1111816.616486057,"d":"$1,111,817"}},{"$f":"'Trial 1'!DX10","v":{"v":1111287.85339494,"d":"$1,111,288"}},{"$f":"'Trial 1'!DY10","v":{"v":1110893.8445873444,"d":"$1,110,894"}},{"$f":"'Trial 1'!DZ10","v":{"v":1110475.3944414174,"d":"$1,110,475"}},{"$f":"SUM('Trial 1'!DO10:DZ10)","v":{"v":13356504.891578339,"d":"$13,356,505"}},{"$f":"'Trial 1'!EB10","v":{"v":1109950.5711281407,"d":"$1,109,951"}},{"$f":"'Trial 1'!EC10","v":{"v":1109508.516227764,"d":"$1,109,509"}},{"$f":"'Trial 1'!ED10","v":{"v":1109031.5840801396,"d":"$1,109,032"}},{"$f":"'Trial 1'!EE10","v":{"v":1108555.9766421493,"d":"$1,108,556"}},{"$f":"'Trial 1'!EF10","v":{"v":1107980.7389500416,"d":"$1,107,981"}},{"$f":"'Trial 1'!EG10","v":{"v":1107496.653382719,"d":"$1,107,497"}},{"$f":"'Trial 1'!EH10","v":{"v":1106996.4789496462,"d":"$1,106,996"}},{"$f":"'Trial 1'!EI10","v":{"v":1106510.6308003557,"d":"$1,106,511"}},{"$f":"'Trial 1'!EJ10","v":{"v":1105968.3852368798,"d":"$1,105,968"}},{"$f":"'Trial 1'!EK10","v":{"v":1105513.3081017695,"d":"$1,105,513"}},{"$f":"'Trial 1'!EL10","v":{"v":1105021.867369149,"d":"$1,105,022"}},{"$f":"'Trial 1'!EM10","v":{"v":1104470.4844470806,"d":"$1,104,470"}},{"$f":"SUM('Trial 1'!EB10:EM10)","v":{"v":13287005.195315836,"d":"$13,287,005"}}]
[{"$f":"Labels!B97","v":"Trial 02"},{"$f":"'Trial 2'!B10","v":{"v":1166666.6666666667,"d":"$1,166,667"}},{"$f":"'Trial 2'!C10","v":{"v":1166167.6880232817,"d":"$1,166,168"}},{"$f":"'Trial 2'!D10","v":{"v":1165602.0085867501,"d":"$1,165,602"}},{"$f":"'Trial 2'!E10","v":{"v":1165151.7342582091,"d":"$1,165,152"}},{"$f":"'Trial 2'!F10","v":{"v":1164823.4577771123,"d":"$1,164,823"}},{"$f":"'Trial 2'!G10","v":{"v":1164393.2626659067,"d":"$1,164,393"}},{"$f":"'Trial 2'!H10","v":{"v":1163881.462610312,"d":"$1,163,881"}},{"$f":"'Trial 2'!I10","v":{"v":1163412.4778731007,"d":"$1,163,412"}},{"$f":"'Trial 2'!J10","v":{"v":1162858.469171414,"d":"$1,162,858"}},{"$f":"'Trial 2'!K10","v":{"v":1162422.5048870624,"d":"$1,162,423"}},{"$f":"'Trial 2'!L10","v":{"v":1161966.7830037815,"d":"$1,161,967"}},{"$f":"'Trial 2'!M10","v":{"v":1161413.5585054965,"d":"$1,161,414"}},{"$f":"SUM('Trial 2'!B10:M10)","v":{"v":13968760.074029094,"d":"$13,968,760"}},{"$f":"'Trial 2'!O10","v":{"v":1161015.80437724,"d":"$1,161,016"}},{"$f":"'Trial 2'!P10","v":{"v":1160501.7551027117,"d":"$1,160,502"}},{"$f":"'Trial 2'!Q10","v":{"v":1160100.0992053435,"d":"$1,160,100"}},{"$f":"'Trial 2'!R10","v":{"v":1159707.4850214676,"d":"$1,159,707"}},{"$f":"'Trial 2'!S10","v":{"v":1159220.589930658,"d":"$1,159,221"}},{"$f":"'Trial 2'!T10","v":{"v":1158735.6581802622,"d":"$1,158,736"}},{"$f":"'Trial 2'!U10","v":{"v":1158250.2091594457,"d":"$1,158,250"}},{"$f":"'Trial 2'!V10","v":{"v":1157691.2094404956,"d":"$1,157,691"}},{"$f":"'Trial 2'!W10","v":{"v":1157162.16890033,"d":"$1,157,162"}},{"$f":"'Trial 2'!X10","v":{"v":1156653.653362056,"d":"$1,156,654"}},{"$f":"'Trial 2'!Y10","v":{"v":1156129.250144561,"d":"$1,156,129"}},{"$f":"'Trial 2'!Z10","v":{"v":1155519.1636725448,"d":"$1,155,519"}},{"$f":"SUM('Trial 2'!O10:Z10)","v":{"v":13900687.046497116,"d":"$13,900,687"}},{"$f":"'Trial 2'!AB10","v":{"v":1155088.360705905,"d":"$1,155,088"}},{"$f":"'Trial 2'!AC10","v":{"v":1154617.294518152,"d":"$1,154,617"}},{"$f":"'Trial 2'!AD10","v":{"v":1154153.1759767388,"d":"$1,154,153"}},{"$f":"'Trial 2'!AE10","v":{"v":1153682.5559237825,"d":"$1,153,683"}},{"$f":"'Trial 2'!AF10","v":{"v":1153349.706386052,"d":"$1,153,350"}},{"$f":"'Trial 2'!AG10","v":{"v":1152879.4598108965,"d":"$1,152,879"}},{"$f":"'Trial 2'!AH10","v":{"v":1152375.3674760347,"d":"$1,152,375"}},{"$f":"'Trial 2'!AI10","v":{"v":1151943.493568739,"d":"$1,151,943"}},{"$f":"'Trial 2'!AJ10","v":{"v":1151364.0078838626,"d":"$1,151,364"}},{"$f":"'Trial 2'!AK10","v":{"v":1150901.066096736,"d":"$1,150,901"}},{"$f":"'Trial 2'!AL10","v":{"v":1150483.2061950278,"d":"$1,150,483"}},{"$f":"'Trial 2'!AM10","v":{"v":1150122.4265069484,"d":"$1,150,122"}},{"$f":"SUM('Trial 2'!AB10:AM10)","v":{"v":13830960.121048875,"d":"$13,830,960"}},{"$f":"'Trial 2'!AO10","v":{"v":1149609.608068856,"d":"$1,149,610"}},{"$f":"'Trial 2'!AP10","v":{"v":1149123.3380889208,"d":"$1,149,123"}},{"$f":"'Trial 2'!AQ10","v":{"v":1148692.6963319425,"d":"$1,148,693"}},{"$f":"'Trial 2'!AR10","v":{"v":1148256.0872144736,"d":"$1,148,256"}},{"$f":"'Trial 2'!AS10","v":{"v":1147747.046582233,"d":"$1,147,747"}},{"$f":"'Trial 2'!AT10","v":{"v":1147311.6343156197,"d":"$1,147,312"}},{"$f":"'Trial 2'!AU10","v":{"v":1146874.2241094008,"d":"$1,146,874"}},{"$f":"'Trial 2'!AV10","v":{"v":1146416.66530194,"d":"$1,146,417"}},{"$f":"'Trial 2'!AW10","v":{"v":1145967.599840214,"d":"$1,145,968"}},{"$f":"'Trial 2'!AX10","v":{"v":1145366.967975778,"d":"$1,145,367"}},{"$f":"'Trial 2'!AY10","v":{"v":1144873.2232967212,"d":"$1,144,873"}},{"$f":"'Trial 2'!AZ10","v":{"v":1144489.1825005363,"d":"$1,144,489"}},{"$f":"SUM('Trial 2'!AO10:AZ10)","v":{"v":13764728.273626637,"d":"$13,764,728"}},{"$f":"'Trial 2'!BB10","v":{"v":1144002.2363978191,"d":"$1,144,002"}},{"$f":"'Trial 2'!BC10","v":{"v":1143476.6267702773,"d":"$1,143,477"}},{"$f":"'Trial 2'!BD10","v":{"v":1143012.7207463025,"d":"$1,143,013"}},{"$f":"'Trial 2'!BE10","v":{"v":1142630.6469942334,"d":"$1,142,631"}},{"$f":"'Trial 2'!BF10","v":{"v":1142147.7915900536,"d":"$1,142,148"}},{"$f":"'Trial 2'!BG10","v":{"v":1141742.7450480773,"d":"$1,141,743"}},{"$f":"'Trial 2'!BH10","v":{"v":1141194.280442845,"d":"$1,141,194"}},{"$f":"'Trial 2'!BI10","v":{"v":1140673.212337705,"d":"$1,140,673"}},{"$f":"'Trial 2'!BJ10","v":{"v":1140088.7490106288,"d":"$1,140,089"}},{"$f":"'Trial 2'!BK10","v":{"v":1139679.049493706,"d":"$1,139,679"}},{"$f":"'Trial 2'!BL10","v":{"v":1139171.7470900633,"d":"$1,139,172"}},{"$f":"'Trial 2'!BM10","v":{"v":1138717.8853646119,"d":"$1,138,718"}},{"$f":"SUM('Trial 2'!BB10:BM10)","v":{"v":13696537.691286324,"d":"$13,696,538"}},{"$f":"'Trial 2'!BO10","v":{"v":1138123.6816155284,"d":"$1,138,124"}},{"$f":"'Trial 2'!BP10","v":{"v":1137512.472869459,"d":"$1,137,512"}},{"$f":"'Trial 2'!BQ10","v":{"v":1136955.3931830716,"d":"$1,136,955"}},{"$f":"'Trial 2'!BR10","v":{"v":1136525.0850896204,"d":"$1,136,525"}},{"$f":"'Trial 2'!BS10","v":{"v":1136133.1810866173,"d":"$1,136,133"}},{"$f":"'Trial 2'!BT10","v":{"v":1135549.2012740273,"d":"$1,135,549"}},{"$f":"'Trial 2'!BU10","v":{"v":1135181.7896004536,"d":"$1,135,182"}},{"$f":"'Trial 2'!BV10","v":{"v":1134653.999777764,"d":"$1,134,654"}},{"$f":"'Trial 2'!BW10","v":{"v":1134225.4802252005,"d":"$1,134,225"}},{"$f":"'Trial 2'!BX10","v":{"v":1133759.4001552293,"d":"$1,133,759"}},{"$f":"'Trial 2'!BY10","v":{"v":1133159.9916982274,"d":"$1,133,160"}},{"$f":"'Trial 2'!BZ10","v":{"v":1132817.6297321364,"d":"$1,132,818"}},{"$f":"SUM('Trial 2'!BO10:BZ10)","v":{"v":13624597.306307334,"d":"$13,624,597"}},{"$f":"'Trial 2'!CB10","v":{"v":1132363.0082991149,"d":"$1,132,363"}},{"$f":"'Trial 2'!CC10","v":{"v":1131940.1733149816,"d":"$1,131,940"}},{"$f":"'Trial 2'!CD10","v":{"v":1131413.466787723,"d":"$1,131,413"}},{"$f":"'Trial 2'!CE10","v":{"v":1130924.1804213533,"d":"$1,130,924"}},{"$f":"'Trial 2'!CF10","v":{"v":1130532.7978169369,"d":"$1,130,533"}},{"$f":"'Trial 2'!CG10","v":{"v":1130094.9682176523,"d":"$1,130,095"}},{"$f":"'Trial 2'!CH10","v":{"v":1129692.054101536,"d":"$1,129,692"}},{"$f":"'Trial 2'!CI10","v":{"v":1129222.321790152,"d":"$1,129,222"}},{"$f":"'Trial 2'!CJ10","v":{"v":1128839.8268709648,"d":"$1,128,840"}},{"$f":"'Trial 2'!CK10","v":{"v":1128277.688691827,"d":"$1,128,278"}},{"$f":"'Trial 2'!CL10","v":{"v":1127793.3199612775,"d":"$1,127,793"}},{"$f":"'Trial 2'!CM10","v":{"v":1127208.8773515425,"d":"$1,127,209"}},{"$f":"SUM('Trial 2'!CB10:CM10)","v":{"v":13558302.683625061,"d":"$13,558,303"}},{"$f":"'Trial 2'!CO10","v":{"v":1126719.34508814,"d":"$1,126,719"}},{"$f":"'Trial 2'!CP10","v":{"v":1126194.510959385,"d":"$1,126,195"}},{"$f":"'Trial 2'!CQ10","v":{"v":1125721.978966777,"d":"$1,125,722"}},{"$f":"'Trial 2'!CR10","v":{"v":1125280.4038760276,"d":"$1,125,280"}},{"$f":"'Trial 2'!CS10","v":{"v":1124775.4696630505,"d":"$1,124,775"}},{"$f":"'Trial 2'!CT10","v":{"v":1124346.482057668,"d":"$1,124,346"}},{"$f":"'Trial 2'!CU10","v":{"v":1123795.1537021112,"d":"$1,123,795"}},{"$f":"'Trial 2'!CV10","v":{"v":1123407.3852731963,"d":"$1,123,407"}},{"$f":"'Trial 2'!CW10","v":{"v":1122916.5429197233,"d":"$1,122,917"}},{"$f":"'Trial 2'!CX10","v":{"v":1122528.1134144093,"d":"$1,122,528"}},{"$f":"'Trial 2'!CY10","v":{"v":1121918.2109988786,"d":"$1,121,918"}},{"$f":"'Trial 2'!CZ10","v":{"v":1121513.5404274003,"d":"$1,121,514"}},{"$f":"SUM('Trial 2'!CO10:CZ10)","v":{"v":13489117.137346765,"d":"$13,489,117"}},{"$f":"'Trial 2'!DB10","v":{"v":1121020.5589814933,"d":"$1,121,021"}},{"$f":"'Trial 2'!DC10","v":{"v":1120520.1719276884,"d":"$1,120,520"}},{"$f":"'Trial 2'!DD10","v":{"v":1120089.1197768326,"d":"$1,120,089"}},{"$f":"'Trial 2'!DE10","v":{"v":1119583.5155878873,"d":"$1,119,584"}},{"$f":"'Trial 2'!DF10","v":{"v":1119157.7545362492,"d":"$1,119,158"}},{"$f":"'Trial 2'!DG10","v":{"v":1118756.1278200876,"d":"$1,118,756"}},{"$f":"'Trial 2'!DH10","v":{"v":1118282.2258310593,"d":"$1,118,282"}},{"$f":"'Trial 2'!DI10","v":{"v":1117821.8996783625,"d":"$1,117,822"}},{"$f":"'Trial 2'!DJ10","v":{"v":1117371.6017070757,"d":"$1,117,372"}},{"$f":"'Trial 2'!DK10","v":{"v":1117006.100044907,"d":"$1,117,006"}},{"$f":"'Trial 2'!DL10","v":{"v":1116461.2910337627,"d":"$1,116,461"}},{"$f":"'Trial 2'!DM10","v":{"v":1115855.7036959385,"d":"$1,115,856"}},{"$f":"SUM('Trial 2'!DB10:DM10)","v":{"v":13421926.070621345,"d":"$13,421,926"}},{"$f":"'Trial 2'!DO10","v":{"v":1115298.65022742,"d":"$1,115,299"}},{"$f":"'Trial 2'!DP10","v":{"v":1114897.9526703402,"d":"$1,114,898"}},{"$f":"'Trial 2'!DQ10","v":{"v":1114320.5575549696,"d":"$1,114,321"}},{"$f":"'Trial 2'!DR10","v":{"v":1113858.5983308996,"d":"$1,113,859"}},{"$f":"'Trial 2'!DS10","v":{"v":1113365.3484244612,"d":"$1,113,365"}},{"$f":"'Trial 2'!DT10","v":{"v":1112829.5236386005,"d":"$1,112,830"}},{"$f":"'Trial 2'!DU10","v":{"v":1112381.6625615277,"d":"$1,112,382"}},{"$f":"'Trial 2'!DV10","v":{"v":1111971.6986299444,"d":"$1,111,972"}},{"$f":"'Trial 2'!DW10","v":{"v":1111549.4664281835,"d":"$1,111,549"}},{"$f":"'Trial 2'!DX10","v":{"v":1110995.1236595702,"d":"$1,110,995"}},{"$f":"'Trial 2'!DY10","v":{"v":1110585.0497392027,"d":"$1,110,585"}},{"$f":"'Trial 2'!DZ10","v":{"v":1110110.5796638832,"d":"$1,110,111"}},{"$f":"SUM('Trial 2'!DO10:DZ10)","v":{"v":13352164.211529002,"d":"$13,352,164"}},{"$f":"'Trial 2'!EB10","v":{"v":1109553.828738465,"d":"$1,109,554"}},{"$f":"'Trial 2'!EC10","v":{"v":1109156.078345983,"d":"$1,109,156"}},{"$f":"'Trial 2'!ED10","v":{"v":1108725.0144679244,"d":"$1,108,725"}},{"$f":"'Trial 2'!EE10","v":{"v":1108132.1402458006,"d":"$1,108,132"}},{"$f":"'Trial 2'!EF10","v":{"v":1107654.4468435294,"d":"$1,107,654"}},{"$f":"'Trial 2'!EG10","v":{"v":1107296.3350817752,"d":"$1,107,296"}},{"$f":"'Trial 2'!EH10","v":{"v":1106749.398504927,"d":"$1,106,749"}},{"$f":"'Trial 2'!EI10","v":{"v":1106226.1057680799,"d":"$1,106,226"}},{"$f":"'Trial 2'!EJ10","v":{"v":1105678.3778223416,"d":"$1,105,678"}},{"$f":"'Trial 2'!EK10","v":{"v":1105241.2495190373,"d":"$1,105,241"}},{"$f":"'Trial 2'!EL10","v":{"v":1104734.8002461842,"d":"$1,104,735"}},{"$f":"'Trial 2'!EM10","v":{"v":1104313.716370796,"d":"$1,104,314"}},{"$f":"SUM('Trial 2'!EB10:EM10)","v":{"v":13283461.491954844,"d":"$13,283,461"}}]
[{"$f":"Labels!B98","v":"Trial 03"},{"$f":"'Trial 3'!B10","v":{"v":1166666.6666666667,"d":"$1,166,667"}},{"$f":"'Trial 3'!C10","v":{"v":1166069.3922510562,"d":"$1,166,069"}},{"$f":"'Trial 3'!D10","v":{"v":1165619.1122485742,"d":"$1,165,619"}},{"$f":"'Trial 3'!E10","v":{"v":1165077.2466276388,"d":"$1,165,077"}},{"$f":"'Trial 3'!F10","v":{"v":1164709.574207395,"d":"$1,164,710"}},{"$f":"'Trial 3'!G10","v":{"v":1164271.9493608912,"d":"$1,164,272"}},{"$f":"'Trial 3'!H10","v":{"v":1163896.2681747272,"d":"$1,163,896"}},{"$f":"'Trial 3'!I10","v":{"v":1163395.2372736752,"d":"$1,163,395"}},{"$f":"'Trial 3'!J10","v":{"v":1162988.449881124,"d":"$1,162,988"}},{"$f":"'Trial 3'!K10","v":{"v":1162433.5845977482,"d":"$1,162,434"}},{"$f":"'Trial 3'!L10","v":{"v":1161983.314503606,"d":"$1,161,983"}},{"$f":"'Trial 3'!M10","v":{"v":1161583.6630356514,"d":"$1,161,584"}},{"$f":"SUM('Trial 3'!B10:M10)","v":{"v":13968694.458828755,"d":"$13,968,694"}},{"$f":"'Trial 3'!O10","v":{"v":1161054.4040072663,"d":"$1,161,054"}},{"$f":"'Trial 3'!P10","v":{"v":1160605.3077518116,"d":"$1,160,605"}},{"$f":"'Trial 3'!Q10","v":{"v":1160101.7018045902,"d":"$1,160,102"}},{"$f":"'Trial 3'!R10","v":{"v":1159725.9180494482,"d":"$1,159,726"}},{"$f":"'Trial 3'!S10","v":{"v":1159310.4782880612,"d":"$1,159,310"}},{"$f":"'Trial 3'!T10","v":{"v":1158839.3759235705,"d":"$1,158,839"}},{"$f":"'Trial 3'!U10","v":{"v":1158346.0279884932,"d":"$1,158,346"}},{"$f":"'Trial 3'!V10","v":{"v":1157729.4816749296,"d":"$1,157,729"}},{"$f":"'Trial 3'!W10","v":{"v":1157194.950322715,"d":"$1,157,195"}},{"$f":"'Trial 3'!X10","v":{"v":1156752.8166516388,"d":"$1,156,753"}},{"$f":"'Trial 3'!Y10","v":{"v":1156291.1738955986,"d":"$1,156,291"}},{"$f":"'Trial 3'!Z10","v":{"v":1155785.6763706116,"d":"$1,155,786"}},{"$f":"SUM('Trial 3'!O10:Z10)","v":{"v":13901737.312728735,"d":"$13,901,737"}},{"$f":"'Trial 3'!AB10","v":{"v":1155180.4653436656,"d":"$1,155,180"}},{"$f":"'Trial 3'!AC10","v":{"v":1154801.855843386,"d":"$1,154,802"}},{"$f":"'Trial 3'!AD10","v":{"v":1154281.5540798798,"d":"$1,154,282"}},{"$f":"'Trial 3'!AE10","v":{"v":1153729.117506838,"d":"$1,153,729"}},{"$f":"'Trial 3'!AF10","v":{"v":1153319.3835597734,"d":"$1,153,319"}},{"$f":"'Trial 3'!AG10","v":{"v":1152712.0907012767,"d":"$1,152,712"}},{"$f":"'Trial 3'!AH10","v":{"v":1152295.3006899655,"d":"$1,152,295"}},{"$f":"'Trial 3'!AI10","v":{"v":1151837.4639228643,"d":"$1,151,837"}},{"$f":"'Trial 3'!AJ10","v":{"v":1151306.2010264173,"d":"$1,151,306"}},{"$f":"'Trial 3'!AK10","v":{"v":1150877.5693793246,"d":"$1,150,878"}},{"$f":"'Trial 3'!AL10","v":{"v":1150418.4712137529,"d":"$1,150,418"}},{"$f":"'Trial 3'!AM10","v":{"v":1149915.057711386,"d":"$1,149,915"}},{"$f":"SUM('Trial 3'!AB10:AM10)","v":{"v":13830674.530978529,"d":"$13,830,675"}},{"$f":"'Trial 3'!AO10","v":{"v":1149404.7981761987,"d":"$1,149,405"}},{"$f":"'Trial 3'!AP10","v":{"v":1148999.3980423503,"d":"$1,148,999"}},{"$f":"'Trial 3'!AQ10","v":{"v":1148609.9297944119,"d":"$1,148,610"}},{"$f":"'Trial 3'!AR10","v":{"v":1148028.2041785629,"d":"$1,148,028"}},{"$f":"'Trial 3'!AS10","v":{"v":1147533.625377979,"d":"$1,147,534"}},{"$f":"'Trial 3'!AT10","v":{"v":1147121.0071571267,"d":"$1,147,121"}},{"$f":"'Trial 3'!AU10","v":{"v":1146610.4980385036,"d":"$1,146,610"}},{"$f":"'Trial 3'!AV10","v":{"v":1146066.8616229978,"d":"$1,146,067"}},{"$f":"'Trial 3'!AW10","v":{"v":1145621.0116145273,"d":"$1,145,621"}},{"$f":"'Trial 3'!AX10","v":{"v":1145073.0973454423,"d":"$1,145,073"}},{"$f":"'Trial 3'!AY10","v":{"v":1144683.9763165643,"d":"$1,144,684"}},{"$f":"'Trial 3'!AZ10","v":{"v":1144136.5811457613,"d":"$1,144,137"}},{"$f":"SUM('Trial 3'!AO10:AZ10)","v":{"v":13761888.988810426,"d":"$13,761,889"}},{"$f":"'Trial 3'!BB10","v":{"v":1143551.9659602991,"d":"$1,143,552"}},{"$f":"'Trial 3'!BC10","v":{"v":1143051.9404477708,"d":"$1,143,052"}},{"$f":"'Trial 3'!BD10","v":{"v":1142466.13916623,"d":"$1,142,466"}},{"$f":"'Trial 3'!BE10","v":{"v":1142055.0121384468,"d":"$1,142,055"}},{"$f":"'Trial 3'!BF10","v":{"v":1141447.0053284795,"d":"$1,141,447"}},{"$f":"'Trial 3'!BG10","v":{"v":1141000.555576119,"d":"$1,141,001"}},{"$f":"'Trial 3'!BH10","v":{"v":1140391.198263478,"d":"$1,140,391"}},{"$f":"'Trial 3'!BI10","v":{"v":1139846.0140067544,"d":"$1,139,846"}},{"$f":"'Trial 3'!BJ10","v":{"v":1139389.551722661,"d":"$1,139,390"}},{"$f":"'Trial 3'!BK10","v":{"v":1138918.0368607822,"d":"$1,138,918"}},{"$f":"'Trial 3'!BL10","v":{"v":1138415.8903202154,"d":"$1,138,416"}},{"$f":"'Trial 3'!BM10","v":{"v":1137997.5051752971,"d":"$1,137,998"}},{"$f":"SUM('Trial 3'!BB10:BM10)","v":{"v":13688530.814966533,"d":"$13,688,531"}},{"$f":"'Trial 3'!BO10","v":{"v":1137516.1768390203,"d":"$1,137,516"}},{"$f":"'Trial 3'!BP10","v":{"v":1137037.746365048,"d":"$1,137,038"}},{"$f":"'Trial 3'!BQ10","v":{"v":1136595.27137695,"d":"$1,136,595"}},{"$f":"'Trial 3'!BR10","v":{"v":1136050.4602849355,"d":"$1,136,050"}},{"$f":"'Trial 3'!BS10","v":{"v":1135584.553249838,"d":"$1,135,585"}},{"$f":"'Trial 3'!BT10","v":{"v":1135166.596426186,"d":"$1,135,167"}},{"$f":"'Trial 3'!BU10","v":{"v":1134669.1683242316,"d":"$1,134,669"}},{"$f":"'Trial 3'!BV10","v":{"v":1134160.2759812411,"d":"$1,134,160"}},{"$f":"'Trial 3'!BW10","v":{"v":1133623.3035534662,"d":"$1,133,623"}},{"$f":"'Trial 3'!BX10","v":{"v":1133184.0253028786,"d":"$1,133,184"}},{"$f":"'Trial 3'!BY10","v":{"v":1132624.0583333562,"d":"$1,132,624"}},{"$f":"'Trial 3'!BZ10","v":{"v":1132244.8789197924,"d":"$1,132,245"}},{"$f":"SUM('Trial 3'!BO10:BZ10)","v":{"v":13618456.514956944,"d":"$13,618,457"}},{"$f":"'Trial 3'!CB10","v":{"v":1131744.8800197109,"d":"$1,131,745"}},{"$f":"'Trial 3'!CC10","v":{"v":1131310.4916758118,"d":"$1,131,310"}},{"$f":"'Trial 3'!CD10","v":{"v":1130820.0571839276,"d":"$1,130,820"}},{"$f":"'Trial 3'!CE10","v":{"v":1130353.8663140489,"d":"$1,130,354"}},{"$f":"'Trial 3'!CF10","v":{"v":1129890.9421058714,"d":"$1,129,891"}},{"$f":"'Trial 3'!CG10","v":{"v":1129420.0755749568,"d":"$1,129,420"}},{"$f":"'Trial 3'!CH10","v":{"v":1129006.4442577017,"d":"$1,129,006"}},{"$f":"'Trial 3'!CI10","v":{"v":1128602.3973669582,"d":"$1,128,602"}},{"$f":"'Trial 3'!CJ10","v":{"v":1128225.4022656605,"d":"$1,128,225"}},{"$f":"'Trial 3'!CK10","v":{"v":1127739.5024456892,"d":"$1,127,740"}},{"$f":"'Trial 3'!CL10","v":{"v":1127312.6888941457,"d":"$1,127,313"}},{"$f":"'Trial 3'!CM10","v":{"v":1126915.7299644384,"d":"$1,126,916"}},{"$f":"SUM('Trial 3'!CB10:CM10)","v":{"v":13551342.47806892,"d":"$13,551,342"}},{"$f":"'Trial 3'!CO10","v":{"v":1126552.1910151935,"d":"$1,126,552"}},{"$f":"'Trial 3'!CP10","v":{"v":1126000.335364418,"d":"$1,126,000"}},{"$f":"'Trial 3'!CQ10","v":{"v":1125564.4594071205,"d":"$1,125,564"}},{"$f":"'Trial 3'!CR10","v":{"v":1125062.5838330144,"d":"$1,125,063"}},{"$f":"'Trial 3'!CS10","v":{"v":1124613.8772218318,"d":"$1,124,614"}},{"$f":"'Trial 3'!CT10","v":{"v":1124131.9821941007,"d":"$1,124,132"}},{"$f":"'Trial 3'!CU10","v":{"v":1123676.4141326298,"d":"$1,123,676"}},{"$f":"'Trial 3'!CV10","v":{"v":1123249.2334578128,"d":"$1,123,249"}},{"$f":"'Trial 3'!CW10","v":{"v":1122785.407307842,"d":"$1,122,785"}},{"$f":"'Trial 3'!CX10","v":{"v":1122247.1323379872,"d":"$1,122,247"}},{"$f":"'Trial 3'!CY10","v":{"v":1121872.2641583292,"d":"$1,121,872"}},{"$f":"'Trial 3'!CZ10","v":{"v":1121350.2046050623,"d":"$1,121,350"}},{"$f":"SUM('Trial 3'!CO10:CZ10)","v":{"v":13487106.08503534,"d":"$13,487,106"}},{"$f":"'Trial 3'!DB10","v":{"v":1120944.5883837536,"d":"$1,120,945"}},{"$f":"'Trial 3'!DC10","v":{"v":1120395.9093882055,"d":"$1,120,396"}},{"$f":"'Trial 3'!DD10","v":{"v":1119795.5024781693,"d":"$1,119,796"}},{"$f":"'Trial 3'!DE10","v":{"v":1119313.9733532974,"d":"$1,119,314"}},{"$f":"'Trial 3'!DF10","v":{"v":1118870.9865716114,"d":"$1,118,871"}},{"$f":"'Trial 3'!DG10","v":{"v":1118412.0469205098,"d":"$1,118,412"}},{"$f":"'Trial 3'!DH10","v":{"v":1117980.787973268,"d":"$1,117,981"}},{"$f":"'Trial 3'!DI10","v":{"v":1117537.5599295862,"d":"$1,117,538"}},{"$f":"'Trial 3'!DJ10","v":{"v":1117070.9841926415,"d":"$1,117,071"}},{"$f":"'Trial 3'!DK10","v":{"v":1116576.0508418265,"d":"$1,116,576"}},{"$f":"'Trial 3'!DL10","v":{"v":1116131.9934250384,"d":"$1,116,132"}},{"$f":"'Trial 3'!DM10","v":{"v":1115709.9732789686,"d":"$1,115,710"}},{"$f":"SUM('Trial 3'!DB10:DM10)","v":{"v":13418740.356736876,"d":"$13,418,740"}},{"$f":"'Trial 3'!DO10","v":{"v":1115263.3765103999,"d":"$1,115,263"}},{"$f":"'Trial 3'!DP10","v":{"v":1114831.761057033,"d":"$1,114,832"}},{"$f":"'Trial 3'!DQ10","v":{"v":1114408.077224509,"d":"$1,114,408"}},{"$f":"'Trial 3'!DR10","v":{"v":1114076.2163497792,"d":"$1,114,076"}},{"$f":"'Trial 3'!DS10","v":{"v":1113489.174269487,"d":"$1,113,489"}},{"$f":"'Trial 3'!DT10","v":{"v":1112983.7644103589,"d":"$1,112,984"}},{"$f":"'Trial 3'!DU10","v":{"v":1112574.0947180563,"d":"$1,112,574"}},{"$f":"'Trial 3'!DV10","v":{"v":1112096.0143914204,"d":"$1,112,096"}},{"$f":"'Trial 3'!DW10","v":{"v":1111688.142678576,"d":"$1,111,688"}},{"$f":"'Trial 3'!DX10","v":{"v":1111309.9191545,"d":"$1,111,310"}},{"$f":"'Trial 3'!DY10","v":{"v":1110829.6080907367,"d":"$1,110,830"}},{"$f":"'Trial 3'!DZ10","v":{"v":1110326.0558853128,"d":"$1,110,326"}},{"$f":"SUM('Trial 3'!DO10:DZ10)","v":{"v":13353876.204740169,"d":"$13,353,876"}},{"$f":"'Trial 3'!EB10","v":{"v":1109783.4011201544,"d":"$1,109,783"}},{"$f":"'Trial 3'!EC10","v":{"v":1109315.9817322437,"d":"$1,109,316"}},{"$f":"'Trial 3'!ED10","v":{"v":1108820.7557500775,"d":"$1,108,821"}},{"$f":"'Trial 3'!EE10","v":{"v":1108379.0110075967,"d":"$1,108,379"}},{"$f":"'Trial 3'!EF10","v":{"v":1107937.4833625949,"d":"$1,107,937"}},{"$f":"'Trial 3'!EG10","v":{"v":1107465.3837651936,"d":"$1,107,465"}},{"$f":"'Trial 3'!EH10","v":{"v":1106994.2884684352,"d":"$1,106,994"}},{"$f":"'Trial 3'!EI10","v":{"v":1106591.7036319159,"d":"$1,106,592"}},{"$f":"'Trial 3'!EJ10","v":{"v":1106034.523595298,"d":"$1,106,035"}},{"$f":"'Trial 3'!EK10","v":{"v":1105450.3257927785,"d":"$1,105,450"}},{"$f":"'Trial 3'!EL10","v":{"v":1105080.1149789277,"d":"$1,105,080"}},{"$f":"'Trial 3'!EM10","v":{"v":1104664.1714658376,"d":"$1,104,664"}},{"$f":"SUM('Trial 3'!EB10:EM10)","v":{"v":13286517.144671055,"d":"$13,286,517"}}]
[{"$f":"Labels!B99","v":"Trial 04"},{"$f":"'Trial 4'!B10","v":{"v":1166666.6666666667,"d":"$1,166,667"}},{"$f":"'Trial 4'!C10","v":{"v":1166163.1170221828,"d":"$1,166,163"}},{"$f":"'Trial 4'!D10","v":{"v":1165642.3405416366,"d":"$1,165,642"}},{"$f":"'Trial 4'!E10","v":{"v":1165118.821974392,"d":"$1,165,119"}},{"$f":"'Trial 4'!F10","v":{"v":1164690.7006187558,"d":"$1,164,691"}},{"$f":"'Trial 4'!G10","v":{"v":1164307.1970140801,"d":"$1,164,307"}},{"$f":"'Trial 4'!H10","v":{"v":1163963.8462222153,"d":"$1,163,964"}},{"$f":"'Trial 4'!I10","v":{"v":1163390.522830231,"d":"$1,163,391"}},{"$f":"'Trial 4'!J10","v":{"v":1162822.0658129954,"d":"$1,162,822"}},{"$f":"'Trial 4'!K10","v":{"v":1162330.7792142562,"d":"$1,162,331"}},{"$f":"'Trial 4'!L10","v":{"v":1161840.355784898,"d":"$1,161,840"}},{"$f":"'Trial 4'!M10","v":{"v":1161370.5817809638,"d":"$1,161,371"}},{"$f":"SUM('Trial 4'!B10:M10)","v":{"v":13968306.995483276,"d":"$13,968,307"}},{"$f":"'Trial 4'!O10","v":{"v":1160788.748680827,"d":"$1,160,789"}},{"$f":"'Trial 4'!P10","v":{"v":1160319.5348784092,"d":"$1,160,320"}},{"$f":"'Trial 4'!Q10","v":{"v":1159879.0830114011,"d":"$1,159,879"}},{"$f":"'Trial 4'!R10","v":{"v":1159506.8238236178,"d":"$1,159,507"}},{"$f":"'Trial 4'!S10","v":{"v":1159038.07680681,"d":"$1,159,038"}},{"$f":"'Trial 4'!T10","v":{"v":1158435.2368980595,"d":"$1,158,435"}},{"$f":"'Trial 4'!U10","v":{"v":1157925.7146023626,"d":"$1,157,926"}},{"$f":"'Trial 4'!V10","v":{"v":1157460.7217189013,"d":"$1,157,461"}},{"$f":"'Trial 4'!W10","v":{"v":1156979.2160872663,"d":"$1,156,979"}},{"$f":"'Trial 4'!X10","v":{"v":1156648.0311402872,"d":"$1,156,648"}},{"$f":"'Trial 4'!Y10","v":{"v":1156161.448542245,"d":"$1,156,161"}},{"$f":"'Trial 4'!Z10","v":{"v":1155569.7682966366,"d":"$1,155,570"}},{"$f":"SUM('Trial 4'!O10:Z10)","v":{"v":13898712.404486824,"d":"$13,898,712"}},{"$f":"'Trial 4'!AB10","v":{"v":1155027.5461369697,"d":"$1,155,028"}},{"$f":"'Trial 4'!AC10","v":{"v":1154503.0597231067,"d":"$1,154,503"}},{"$f":"'Trial 4'!AD10","v":{"v":1154049.8745394584,"d":"$1,154,050"}},{"$f":"'Trial 4'!AE10","v":{"v":1153545.339216324,"d":"$1,153,545"}},{"$f":"'Trial 4'!AF10","v":{"v":1152972.1999390752,"d":"$1,152,972"}},{"$f":"'Trial 4'!AG10","v":{"v":1152454.164936491,"d":"$1,152,454"}},{"$f":"'Trial 4'!AH10","v":{"v":1152083.7155140871,"d":"$1,152,084"}},{"$f":"'Trial 4'!AI10","v":{"v":1151608.489071025,"d":"$1,151,608"}},{"$f":"'Trial 4'!AJ10","v":{"v":1151132.1476893185,"d":"$1,151,132"}},{"$f":"'Trial 4'!AK10","v":{"v":1150613.9271394396,"d":"$1,150,614"}},{"$f":"'Trial 4'!AL10","v":{"v":1150227.3214987477,"d":"$1,150,227"}},{"$f":"'Trial 4'!AM10","v":{"v":1149724.4513216687,"d":"$1,149,724"}},{"$f":"SUM('Trial 4'!AB10:AM10)","v":{"v":13827942.236725714,"d":"$13,827,942"}},{"$f":"'Trial 4'!AO10","v":{"v":1149114.4621392589,"d":"$1,149,114"}},{"$f":"'Trial 4'!AP10","v":{"v":1148639.2490932685,"d":"$1,148,639"}},{"$f":"'Trial 4'!AQ10","v":{"v":1148157.2219879641,"d":"$1,148,157"}},{"$f":"'Trial 4'!AR10","v":{"v":1147659.3905208898,"d":"$1,147,659"}},{"$f":"'Trial 4'!AS10","v":{"v":1147103.8541477728,"d":"$1,147,104"}},{"$f":"'Trial 4'!AT10","v":{"v":1146655.1194483875,"d":"$1,146,655"}},{"$f":"'Trial 4'!AU10","v":{"v":1146251.2080523726,"d":"$1,146,251"}},{"$f":"'Trial 4'!AV10","v":{"v":1145805.7124812736,"d":"$1,145,806"}},{"$f":"'Trial 4'!AW10","v":{"v":1145324.068234077,"d":"$1,145,324"}},{"$f":"'Trial 4'!AX10","v":{"v":1144891.756526557,"d":"$1,144,892"}},{"$f":"'Trial 4'!AY10","v":{"v":1144342.3643007022,"d":"$1,144,342"}},{"$f":"'Trial 4'!AZ10","v":{"v":1143804.0794533624,"d":"$1,143,804"}},{"$f":"SUM('Trial 4'!AO10:AZ10)","v":{"v":13757748.486385886,"d":"$13,757,748"}},{"$f":"'Trial 4'!BB10","v":{"v":1143211.2986284862,"d":"$1,143,211"}},{"$f":"'Trial 4'!BC10","v":{"v":1142867.9571651989,"d":"$1,142,868"}},{"$f":"'Trial 4'!BD10","v":{"v":1142519.8397055813,"d":"$1,142,520"}},{"$f":"'Trial 4'!BE10","v":{"v":1141969.117398944,"d":"$1,141,969"}},{"$f":"'Trial 4'!BF10","v":{"v":1141492.788852262,"d":"$1,141,493"}},{"$f":"'Trial 4'!BG10","v":{"v":1140947.3731251215,"d":"$1,140,947"}},{"$f":"'Trial 4'!BH10","v":{"v":1140520.5694091897,"d":"$1,140,521"}},{"$f":"'Trial 4'!BI10","v":{"v":1139980.5402101988,"d":"$1,139,981"}},{"$f":"'Trial 4'!BJ10","v":{"v":1139509.188598028,"d":"$1,139,509"}},{"$f":"'Trial 4'!BK10","v":{"v":1138899.1045771295,"d":"$1,138,899"}},{"$f":"'Trial 4'!BL10","v":{"v":1138493.3518957258,"d":"$1,138,493"}},{"$f":"'Trial 4'!BM10","v":{"v":1138052.0538894648,"d":"$1,138,052"}},{"$f":"SUM('Trial 4'!BB10:BM10)","v":{"v":13688463.18345533,"d":"$13,688,463"}},{"$f":"'Trial 4'!BO10","v":{"v":1137639.3279860711,"d":"$1,137,639"}},{"$f":"'Trial 4'!BP10","v":{"v":1137217.386368368,"d":"$1,137,217"}},{"$f":"'Trial 4'!BQ10","v":{"v":1136799.8468719402,"d":"$1,136,800"}},{"$f":"'Trial 4'!BR10","v":{"v":1136272.707780629,"d":"$1,136,273"}},{"$f":"'Trial 4'!BS10","v":{"v":1135813.740522898,"d":"$1,135,814"}},{"$f":"'Trial 4'!BT10","v":{"v":1135253.2188927718,"d":"$1,135,253"}},{"$f":"'Trial 4'!BU10","v":{"v":1134822.3722201856,"d":"$1,134,822"}},{"$f":"'Trial 4'!BV10","v":{"v":1134315.4352324496,"d":"$1,134,315"}},{"$f":"'Trial 4'!BW10","v":{"v":1133780.3360621845,"d":"$1,133,780"}},{"$f":"'Trial 4'!BX10","v":{"v":1133219.6503409445,"d":"$1,133,220"}},{"$f":"'Trial 4'!BY10","v":{"v":1132805.3662637677,"d":"$1,132,805"}},{"$f":"'Trial 4'!BZ10","v":{"v":1132316.008371605,"d":"$1,132,316"}},{"$f":"SUM('Trial 4'!BO10:BZ10)","v":{"v":13620255.396913815,"d":"$13,620,255"}},{"$f":"'Trial 4'!CB10","v":{"v":1131880.4810346388,"d":"$1,131,880"}},{"$f":"'Trial 4'!CC10","v":{"v":1131338.1922282074,"d":"$1,131,338"}},{"$f":"'Trial 4'!CD10","v":{"v":1130898.3974176734,"d":"$1,130,898"}},{"$f":"'Trial 4'!CE10","v":{"v":1130381.918509907,"d":"$1,130,382"}},{"$f":"'Trial 4'!CF10","v":{"v":1129881.3023992965,"d":"$1,129,881"}},{"$f":"'Trial 4'!CG10","v":{"v":1129417.8378563784,"d":"$1,129,418"}},{"$f":"'Trial 4'!CH10","v":{"v":1128911.5490936216,"d":"$1,128,912"}},{"$f":"'Trial 4'!CI10","v":{"v":1128579.9487103594,"d":"$1,128,580"}},{"$f":"'Trial 4'!CJ10","v":{"v":1128180.6209316123,"d":"$1,128,181"}},{"$f":"'Trial 4'!CK10","v":{"v":1127696.3608218054,"d":"$1,127,696"}},{"$f":"'Trial 4'!CL10","v":{"v":1127302.4098326387,"d":"$1,127,302"}},{"$f":"'Trial 4'!CM10","v":{"v":1126845.8789804664,"d":"$1,126,846"}},{"$f":"SUM('Trial 4'!CB10:CM10)","v":{"v":13551314.897816608,"d":"$13,551,315"}},{"$f":"'Trial 4'!CO10","v":{"v":1126320.2778394644,"d":"$1,126,320"}},{"$f":"'Trial 4'!CP10","v":{"v":1125918.3165006938,"d":"$1,125,918"}},{"$f":"'Trial 4'!CQ10","v":{"v":1125494.889011696,"d":"$1,125,495"}},{"$f":"'Trial 4'!CR10","v":{"v":1125092.8709031672,"d":"$1,125,093"}},{"$f":"'Trial 4'!CS10","v":{"v":1124626.4434285183,"d":"$1,124,626"}},{"$f":"'Trial 4'!CT10","v":{"v":1124094.6217619658,"d":"$1,124,095"}},{"$f":"'Trial 4'!CU10","v":{"v":1123507.9852716592,"d":"$1,123,508"}},{"$f":"'Trial 4'!CV10","v":{"v":1123159.8029571122,"d":"$1,123,160"}},{"$f":"'Trial 4'!CW10","v":{"v":1122725.6070201623,"d":"$1,122,726"}},{"$f":"'Trial 4'!CX10","v":{"v":1122284.3151130308,"d":"$1,122,284"}},{"$f":"'Trial 4'!CY10","v":{"v":1121698.2892740332,"d":"$1,121,698"}},{"$f":"'Trial 4'!CZ10","v":{"v":1121275.6918416247,"d":"$1,121,276"}},{"$f":"SUM('Trial 4'!CO10:CZ10)","v":{"v":13486199.110923126,"d":"$13,486,199"}},{"$f":"'Trial 4'!DB10","v":{"v":1120902.5356817348,"d":"$1,120,903"}},{"$f":"'Trial 4'!DC10","v":{"v":1120380.1999930784,"d":"$1,120,380"}},{"$f":"'Trial 4'!DD10","v":{"v":1119818.944239802,"d":"$1,119,819"}},{"$f":"'Trial 4'!DE10","v":{"v":1119397.0305733744,"d":"$1,119,397"}},{"$f":"'Trial 4'!DF10","v":{"v":1118975.687721561,"d":"$1,118,976"}},{"$f":"'Trial 4'!DG10","v":{"v":1118516.999909422,"d":"$1,118,517"}},{"$f":"'Trial 4'!DH10","v":{"v":1118078.048982828,"d":"$1,118,078"}},{"$f":"'Trial 4'!DI10","v":{"v":1117518.3799703093,"d":"$1,117,518"}},{"$f":"'Trial 4'!DJ10","v":{"v":1117107.3257458515,"d":"$1,117,107"}},{"$f":"'Trial 4'!DK10","v":{"v":1116594.0916394715,"d":"$1,116,594"}},{"$f":"'Trial 4'!DL10","v":{"v":1116170.3888914227,"d":"$1,116,170"}},{"$f":"'Trial 4'!DM10","v":{"v":1115722.8153904062,"d":"$1,115,723"}},{"$f":"SUM('Trial 4'!DB10:DM10)","v":{"v":13419182.448739262,"d":"$13,419,182"}},{"$f":"'Trial 4'!DO10","v":{"v":1115215.97101755,"d":"$1,115,216"}},{"$f":"'Trial 4'!DP10","v":{"v":1114850.9928155118,"d":"$1,114,851"}},{"$f":"'Trial 4'!DQ10","v":{"v":1114517.1972110858,"d":"$1,114,517"}},{"$f":"'Trial 4'!DR10","v":{"v":1113976.1972735669,"d":"$1,113,976"}},{"$f":"'Trial 4'!DS10","v":{"v":1113619.8084009143,"d":"$1,113,620"}},{"$f":"'Trial 4'!DT10","v":{"v":1113277.347349138,"d":"$1,113,277"}},{"$f":"'Trial 4'!DU10","v":{"v":1112872.785416799,"d":"$1,112,873"}},{"$f":"'Trial 4'!DV10","v":{"v":1112363.8219504913,"d":"$1,112,364"}},{"$f":"'Trial 4'!DW10","v":{"v":1111877.639333168,"d":"$1,111,878"}},{"$f":"'Trial 4'!DX10","v":{"v":1111269.696159841,"d":"$1,111,270"}},{"$f":"'Trial 4'!DY10","v":{"v":1110897.2918767636,"d":"$1,110,897"}},{"$f":"'Trial 4'!DZ10","v":{"v":1110507.1036670122,"d":"$1,110,507"}},{"$f":"SUM('Trial 4'!DO10:DZ10)","v":{"v":13355245.85247184,"d":"$13,355,246"}},{"$f":"'Trial 4'!EB10","v":{"v":1110149.7022590707,"d":"$1,110,150"}},{"$f":"'Trial 4'!EC10","v":{"v":1109670.6761081936,"d":"$1,109,671"}},{"$f":"'Trial 4'!ED10","v":{"v":1109056.3214764518,"d":"$1,109,056"}},{"$f":"'Trial 4'!EE10","v":{"v":1108559.9952557008,"d":"$1,108,560"}},{"$f":"'Trial 4'!EF10","v":{"v":1108178.98291642,"d":"$1,108,179"}},{"$f":"'Trial 4'!EG10","v":{"v":1107824.5386726058,"d":"$1,107,825"}},{"$f":"'Trial 4'!EH10","v":{"v":1107322.2160739093,"d":"$1,107,322"}},{"$f":"'Trial 4'!EI10","v":{"v":1106905.3619474466,"d":"$1,106,905"}},{"$f":"'Trial 4'!EJ10","v":{"v":1106319.1869029761,"d":"$1,106,319"}},{"$f":"'Trial 4'!EK10","v":{"v":1105732.3686773207,"d":"$1,105,732"}},{"$f":"'Trial 4'!EL10","v":{"v":1105337.2286718136,"d":"$1,105,337"}},{"$f":"'Trial 4'!EM10","v":{"v":1104783.8746705647,"d":"$1,104,784"}},{"$f":"SUM('Trial 4'!EB10:EM10)","v":{"v":13289840.453632474,"d":"$13,289,840"}}]
[{"$f":"Labels!B100","v":"Trial 05"},{"$f":"'Trial 5'!B10","v":{"v":1166666.6666666667,"d":"$1,166,667"}},{"$f":"'Trial 5'!C10","v":{"v":1166104.3328287126,"d":"$1,166,104"}},{"$f":"'Trial 5'!D10","v":{"v":1165565.6854129697,"d":"$1,165,566"}},{"$f":"'Trial 5'!E10","v":{"v":1165182.3049162307,"d":"$1,165,182"}},{"$f":"'Trial 5'!F10","v":{"v":1164591.0366140825,"d":"$1,164,591"}},{"$f":"'Trial 5'!G10","v":{"v":1164072.911500574,"d":"$1,164,073"}},{"$f":"'Trial 5'!H10","v":{"v":1163544.3980179152,"d":"$1,163,544"}},{"$f":"'Trial 5'!I10","v":{"v":1163067.5142541663,"d":"$1,163,068"}},{"$f":"'Trial 5'!J10","v":{"v":1162640.6271508564,"d":"$1,162,641"}},{"$f":"'Trial 5'!K10","v":{"v":1162307.5808892038,"d":"$1,162,308"}},{"$f":"'Trial 5'!L10","v":{"v":1161770.6422275933,"d":"$1,161,771"}},{"$f":"'Trial 5'!M10","v":{"v":1161248.0341662331,"d":"$1,161,248"}},{"$f":"SUM('Trial 5'!B10:M10)","v":{"v":13966761.734645206,"d":"$13,966,762"}},{"$f":"'Trial 5'!O10","v":{"v":1160772.762775914,"d":"$1,160,773"}},{"$f":"'Trial 5'!P10","v":{"v":1160276.010895121,"d":"$1,160,276"}},{"$f":"'Trial 5'!Q10","v":{"v":1159811.931718906,"d":"$1,159,812"}},{"$f":"'Trial 5'!R10","v":{"v":1159319.5607112474,"d":"$1,159,320"}},{"$f":"'Trial 5'!S10","v":{"v":1158862.6361694601,"d":"$1,158,863"}},{"$f":"'Trial 5'!T10","v":{"v":1158293.376276381,"d":"$1,158,293"}},{"$f":"'Trial 5'!U10","v":{"v":1157958.6836025987,"d":"$1,157,959"}},{"$f":"'Trial 5'!V10","v":{"v":1157517.8903943442,"d":"$1,157,518"}},{"$f":"'Trial 5'!W10","v":{"v":1157035.162083298,"d":"$1,157,035"}},{"$f":"'Trial 5'!X10","v":{"v":1156582.1487497874,"d":"$1,156,582"}},{"$f":"'Trial 5'!Y10","v":{"v":1156028.8103788146,"d":"$1,156,029"}},{"$f":"'Trial 5'!Z10","v":{"v":1155685.619698195,"d":"$1,155,686"}},{"$f":"SUM('Trial 5'!O10:Z10)","v":{"v":13898144.593454067,"d":"$13,898,145"}},{"$f":"'Trial 5'!AB10","v":{"v":1155179.5344322056,"d":"$1,155,180"}},{"$f":"'Trial 5'!AC10","v":{"v":1154744.4247878192,"d":"$1,154,744"}},{"$f":"'Trial 5'!AD10","v":{"v":1154269.802823431,"d":"$1,154,270"}},{"$f":"'Trial 5'!AE10","v":{"v":1153915.2496321874,"d":"$1,153,915"}},{"$f":"'Trial 5'!AF10","v":{"v":1153307.4217290557,"d":"$1,153,307"}},{"$f":"'Trial 5'!AG10","v":{"v":1152722.968837874,"d":"$1,152,723"}},{"$f":"'Trial 5'!AH10","v":{"v":1152211.3624293879,"d":"$1,152,211"}},{"$f":"'Trial 5'!AI10","v":{"v":1151770.08355905,"d":"$1,151,770"}},{"$f":"'Trial 5'!AJ10","v":{"v":1151217.556579743,"d":"$1,151,218"}},{"$f":"'Trial 5'!AK10","v":{"v":1150761.8922802932,"d":"$1,150,762"}},{"$f":"'Trial 5'!AL10","v":{"v":1150206.4038962494,"d":"$1,150,206"}},{"$f":"'Trial 5'!AM10","v":{"v":1149712.0294079247,"d":"$1,149,712"}},{"$f":"SUM('Trial 5'!AB10:AM10)","v":{"v":13830018.73039522,"d":"$13,830,019"}},{"$f":"'Trial 5'!AO10","v":{"v":1149165.4315784327,"d":"$1,149,165"}},{"$f":"'Trial 5'!AP10","v":{"v":1148692.729995729,"d":"$1,148,693"}},{"$f":"'Trial 5'!AQ10","v":{"v":1148227.841425832,"d":"$1,148,228"}},{"$f":"'Trial 5'!AR10","v":{"v":1147725.4826000256,"d":"$1,147,725"}},{"$f":"'Trial 5'!AS10","v":{"v":1147288.101081649,"d":"$1,147,288"}},{"$f":"'Trial 5'!AT10","v":{"v":1146863.9233474366,"d":"$1,146,864"}},{"$f":"'Trial 5'!AU10","v":{"v":1146351.1302863345,"d":"$1,146,351"}},{"$f":"'Trial 5'!AV10","v":{"v":1145906.9688137323,"d":"$1,145,907"}},{"$f":"'Trial 5'!AW10","v":{"v":1145439.9036311402,"d":"$1,145,440"}},{"$f":"'Trial 5'!AX10","v":{"v":1144947.052018494,"d":"$1,144,947"}},{"$f":"'Trial 5'!AY10","v":{"v":1144455.3625742889,"d":"$1,144,455"}},{"$f":"'Trial 5'!AZ10","v":{"v":1144001.6805300913,"d":"$1,144,002"}},{"$f":"SUM('Trial 5'!AO10:AZ10)","v":{"v":13759065.607883185,"d":"$13,759,066"}},{"$f":"'Trial 5'!BB10","v":{"v":1143511.4872249942,"d":"$1,143,511"}},{"$f":"'Trial 5'!BC10","v":{"v":1142987.4596065157,"d":"$1,142,987"}},{"$f":"'Trial 5'!BD10","v":{"v":1142418.1759077776,"d":"$1,142,418"}},{"$f":"'Trial 5'!BE10","v":{"v":1141810.76235477,"d":"$1,141,811"}},{"$f":"'Trial 5'!BF10","v":{"v":1141373.4023286207,"d":"$1,141,373"}},{"$f":"'Trial 5'!BG10","v":{"v":1140863.1319195922,"d":"$1,140,863"}},{"$f":"'Trial 5'!BH10","v":{"v":1140409.1806238368,"d":"$1,140,409"}},{"$f":"'Trial 5'!BI10","v":{"v":1139835.1856993504,"d":"$1,139,835"}},{"$f":"'Trial 5'!BJ10","v":{"v":1139384.8876108823,"d":"$1,139,385"}},{"$f":"'Trial 5'!BK10","v":{"v":1139002.212043697,"d":"$1,139,002"}},{"$f":"'Trial 5'!BL10","v":{"v":1138559.997894036,"d":"$1,138,560"}},{"$f":"'Trial 5'!BM10","v":{"v":1138179.5009288015,"d":"$1,138,180"}},{"$f":"SUM('Trial 5'!BB10:BM10)","v":{"v":13688335.384142876,"d":"$13,688,335"}},{"$f":"'Trial 5'!BO10","v":{"v":1137728.8070082979,"d":"$1,137,729"}},{"$f":"'Trial 5'!BP10","v":{"v":1137344.1021482574,"d":"$1,137,344"}},{"$f":"'Trial 5'!BQ10","v":{"v":1136998.974321802,"d":"$1,136,999"}},{"$f":"'Trial 5'!BR10","v":{"v":1136648.5477404434,"d":"$1,136,649"}},{"$f":"'Trial 5'!BS10","v":{"v":1136089.1505054715,"d":"$1,136,089"}},{"$f":"'Trial 5'!BT10","v":{"v":1135616.2498860913,"d":"$1,135,616"}},{"$f":"'Trial 5'!BU10","v":{"v":1135276.0150701723,"d":"$1,135,276"}},{"$f":"'Trial 5'!BV10","v":{"v":1134723.3547301798,"d":"$1,134,723"}},{"$f":"'Trial 5'!BW10","v":{"v":1134235.1602352785,"d":"$1,134,235"}},{"$f":"'Trial 5'!BX10","v":{"v":1133774.971082846,"d":"$1,133,775"}},{"$f":"'Trial 5'!BY10","v":{"v":1133405.1593418808,"d":"$1,133,405"}},{"$f":"'Trial 5'!BZ10","v":{"v":1133043.9030643336,"d":"$1,133,044"}},{"$f":"SUM('Trial 5'!BO10:BZ10)","v":{"v":13624884.395135054,"d":"$13,624,884"}},{"$f":"'Trial 5'!CB10","v":{"v":1132652.823964635,"d":"$1,132,653"}},{"$f":"'Trial 5'!CC10","v":{"v":1132168.2675815134,"d":"$1,132,168"}},{"$f":"'Trial 5'!CD10","v":{"v":1131700.6654083885,"d":"$1,131,701"}},{"$f":"'Trial 5'!CE10","v":{"v":1131218.4876345221,"d":"$1,131,218"}},{"$f":"'Trial 5'!CF10","v":{"v":1130700.33573103,"d":"$1,130,700"}},{"$f":"'Trial 5'!CG10","v":{"v":1130242.949350349,"d":"$1,130,243"}},{"$f":"'Trial 5'!CH10","v":{"v":1129907.3409215186,"d":"$1,129,907"}},{"$f":"'Trial 5'!CI10","v":{"v":1129382.5861988822,"d":"$1,129,383"}},{"$f":"'Trial 5'!CJ10","v":{"v":1128843.2752420343,"d":"$1,128,843"}},{"$f":"'Trial 5'!CK10","v":{"v":1128396.6382537982,"d":"$1,128,397"}},{"$f":"'Trial 5'!CL10","v":{"v":1128052.1456617583,"d":"$1,128,052"}},{"$f":"'Trial 5'!CM10","v":{"v":1127506.8399884482,"d":"$1,127,507"}},{"$f":"SUM('Trial 5'!CB10:CM10)","v":{"v":13560772.355936877,"d":"$13,560,772"}},{"$f":"'Trial 5'!CO10","v":{"v":1127075.0869813403,"d":"$1,127,075"}},{"$f":"'Trial 5'!CP10","v":{"v":1126635.8230859297,"d":"$1,126,636"}},{"$f":"'Trial 5'!CQ10","v":{"v":1126089.3634042991,"d":"$1,126,089"}},{"$f":"'Trial 5'!CR10","v":{"v":1125726.6708542898,"d":"$1,125,727"}},{"$f":"'Trial 5'!CS10","v":{"v":1125195.4493941101,"d":"$1,125,195"}},{"$f":"'Trial 5'!CT10","v":{"v":1124686.8834792685,"d":"$1,124,687"}},{"$f":"'Trial 5'!CU10","v":{"v":1124254.6100095585,"d":"$1,124,255"}},{"$f":"'Trial 5'!CV10","v":{"v":1123800.3264333797,"d":"$1,123,800"}},{"$f":"'Trial 5'!CW10","v":{"v":1123307.1675459652,"d":"$1,123,307"}},{"$f":"'Trial 5'!CX10","v":{"v":1122906.887096858,"d":"$1,122,907"}},{"$f":"'Trial 5'!CY10","v":{"v":1122400.3774315706,"d":"$1,122,400"}},{"$f":"'Trial 5'!CZ10","v":{"v":1121922.8201222376,"d":"$1,121,923"}},{"$f":"SUM('Trial 5'!CO10:CZ10)","v":{"v":13494001.465838809,"d":"$13,494,001"}},{"$f":"'Trial 5'!DB10","v":{"v":1121334.2115475228,"d":"$1,121,334"}},{"$f":"'Trial 5'!DC10","v":{"v":1120906.954061211,"d":"$1,120,907"}},{"$f":"'Trial 5'!DD10","v":{"v":1120439.6238533007,"d":"$1,120,440"}},{"$f":"'Trial 5'!DE10","v":{"v":1119991.8087316079,"d":"$1,119,992"}},{"$f":"'Trial 5'!DF10","v":{"v":1119469.8143722187,"d":"$1,119,470"}},{"$f":"'Trial 5'!DG10","v":{"v":1118930.9625819733,"d":"$1,118,931"}},{"$f":"'Trial 5'!DH10","v":{"v":1118529.1164980016,"d":"$1,118,529"}},{"$f":"'Trial 5'!DI10","v":{"v":1118183.660654149,"d":"$1,118,184"}},{"$f":"'Trial 5'!DJ10","v":{"v":1117716.5163734586,"d":"$1,117,717"}},{"$f":"'Trial 5'!DK10","v":{"v":1117177.0581886815,"d":"$1,117,177"}},{"$f":"'Trial 5'!DL10","v":{"v":1116690.9510070663,"d":"$1,116,691"}},{"$f":"'Trial 5'!DM10","v":{"v":1116140.6825685594,"d":"$1,116,141"}},{"$f":"SUM('Trial 5'!DB10:DM10)","v":{"v":13425511.36043775,"d":"$13,425,511"}},{"$f":"'Trial 5'!DO10","v":{"v":1115671.7585276875,"d":"$1,115,672"}},{"$f":"'Trial 5'!DP10","v":{"v":1115160.9583542298,"d":"$1,115,161"}},{"$f":"'Trial 5'!DQ10","v":{"v":1114685.737722868,"d":"$1,114,686"}},{"$f":"'Trial 5'!DR10","v":{"v":1114327.8265934237,"d":"$1,114,328"}},{"$f":"'Trial 5'!DS10","v":{"v":1113910.820280658,"d":"$1,113,911"}},{"$f":"'Trial 5'!DT10","v":{"v":1113479.2771968946,"d":"$1,113,479"}},{"$f":"'Trial 5'!DU10","v":{"v":1113087.5025524981,"d":"$1,113,088"}},{"$f":"'Trial 5'!DV10","v":{"v":1112558.2322120287,"d":"$1,112,558"}},{"$f":"'Trial 5'!DW10","v":{"v":1112097.1585195893,"d":"$1,112,097"}},{"$f":"'Trial 5'!DX10","v":{"v":1111688.2696768655,"d":"$1,111,688"}},{"$f":"'Trial 5'!DY10","v":{"v":1111178.3212530217,"d":"$1,111,178"}},{"$f":"'Trial 5'!DZ10","v":{"v":1110706.4150390525,"d":"$1,110,706"}},{"$f":"SUM('Trial 5'!DO10:DZ10)","v":{"v":13358552.27792882,"d":"$13,358,552"}},{"$f":"'Trial 5'!EB10","v":{"v":1110167.5289732707,"d":"$1,110,168"}},{"$f":"'Trial 5'!EC10","v":{"v":1109692.1106636398,"d":"$1,109,692"}},{"$f":"'Trial 5'!ED10","v":{"v":1109308.6235409158,"d":"$1,109,309"}},{"$f":"'Trial 5'!EE10","v":{"v":1108779.5975930218,"d":"$1,108,780"}},{"$f":"'Trial 5'!EF10","v":{"v":1108322.5182557164,"d":"$1,108,323"}},{"$f":"'Trial 5'!EG10","v":{"v":1107861.1305048226,"d":"$1,107,861"}},{"$f":"'Trial 5'!EH10","v":{"v":1107469.0573257122,"d":"$1,107,469"}},{"$f":"'Trial 5'!EI10","v":{"v":1106893.3274352138,"d":"$1,106,893"}},{"$f":"'Trial 5'!EJ10","v":{"v":1106346.9164756965,"d":"$1,106,347"}},{"$f":"'Trial 5'!EK10","v":{"v":1105833.916391422,"d":"$1,105,834"}},{"$f":"'Trial 5'!EL10","v":{"v":1105369.7317082996,"d":"$1,105,370"}},{"$f":"'Trial 5'!EM10","v":{"v":1104908.7782915474,"d":"$1,104,909"}},{"$f":"SUM('Trial 5'!EB10:EM10)","v":{"v":13290953.237159276,"d":"$13,290,953"}}]
[{"$f":"Labels!B101","v":"Trial 06"},{"$f":"'Trial 6'!B10","v":{"v":1166666.6666666667,"d":"$1,166,667"}},{"$f":"'Trial 6'!C10","v":{"v":1166212.5446200822,"d":"$1,166,213"}},{"$f":"'Trial 6'!D10","v":{"v":1165602.5866199282,"d":"$1,165,603"}},{"$f":"'Trial 6'!E10","v":{"v":1165204.7882356248,"d":"$1,165,205"}},{"$f":"'Trial 6'!F10","v":{"v":1164845.9077664637,"d":"$1,164,846"}},{"$f":"'Trial 6'!G10","v":{"v":1164412.9126861147,"d":"$1,164,413"}},{"$f":"'Trial 6'!H10","v":{"v":1163884.1655187535,"d":"$1,163,884"}},{"$f":"'Trial 6'!I10","v":{"v":1163399.982398665,"d":"$1,163,400"}},{"$f":"'Trial 6'!J10","v":{"v":1162912.990811483,"d":"$1,162,913"}},{"$f":"'Trial 6'!K10","v":{"v":1162516.2285132287,"d":"$1,162,516"}},{"$f":"'Trial 6'!L10","v":{"v":1162040.8182969773,"d":"$1,162,041"}},{"$f":"'Trial 6'!M10","v":{"v":1161686.5067696474,"d":"$1,161,687"}},{"$f":"SUM('Trial 6'!B10:M10)","v":{"v":13969386.098903636,"d":"$13,969,386"}},{"$f":"'Trial 6'!O10","v":{"v":1161208.1427213622,"d":"$1,161,208"}},{"$f":"'Trial 6'!P10","v":{"v":1160832.1815725076,"d":"$1,160,832"}},{"$f":"'Trial 6'!Q10","v":{"v":1160336.0183537372,"d":"$1,160,336"}},{"$f":"'Trial 6'!R10","v":{"v":1159961.288736426,"d":"$1,159,961"}},{"$f":"'Trial 6'!S10","v":{"v":1159554.1285918446,"d":"$1,159,554"}},{"$f":"'Trial 6'!T10","v":{"v":1158951.5272822145,"d":"$1,158,952"}},{"$f":"'Trial 6'!U10","v":{"v":1158454.7525575308,"d":"$1,158,455"}},{"$f":"'Trial 6'!V10","v":{"v":1158027.5539748347,"d":"$1,158,028"}},{"$f":"'Trial 6'!W10","v":{"v":1157498.3707131865,"d":"$1,157,498"}},{"$f":"'Trial 6'!X10","v":{"v":1156986.2654144375,"d":"$1,156,986"}},{"$f":"'Trial 6'!Y10","v":{"v":1156539.2593589977,"d":"$1,156,539"}},{"$f":"'Trial 6'!Z10","v":{"v":1156135.634687717,"d":"$1,156,136"}},{"$f":"SUM('Trial 6'!O10:Z10)","v":{"v":13904485.123964798,"d":"$13,904,485"}},{"$f":"'Trial 6'!AB10","v":{"v":1155586.7585460143,"d":"$1,155,587"}},{"$f":"'Trial 6'!AC10","v":{"v":1155130.8950075079,"d":"$1,155,131"}},{"$f":"'Trial 6'!AD10","v":{"v":1154700.2990566427,"d":"$1,154,700"}},{"$f":"'Trial 6'!AE10","v":{"v":1154312.2000523014,"d":"$1,154,312"}},{"$f":"'Trial 6'!AF10","v":{"v":1153865.8772368133,"d":"$1,153,866"}},{"$f":"'Trial 6'!AG10","v":{"v":1153477.9104869908,"d":"$1,153,478"}},{"$f":"'Trial 6'!AH10","v":{"v":1153027.4424634138,"d":"$1,153,027"}},{"$f":"'Trial 6'!AI10","v":{"v":1152617.927031421,"d":"$1,152,618"}},{"$f":"'Trial 6'!AJ10","v":{"v":1152130.7642505534,"d":"$1,152,131"}},{"$f":"'Trial 6'!AK10","v":{"v":1151607.3716817666,"d":"$1,151,607"}},{"$f":"'Trial 6'!AL10","v":{"v":1151145.0292443135,"d":"$1,151,145"}},{"$f":"'Trial 6'!AM10","v":{"v":1150744.4236118386,"d":"$1,150,744"}},{"$f":"SUM('Trial 6'!AB10:AM10)","v":{"v":13838346.898669578,"d":"$13,838,347"}},{"$f":"'Trial 6'!AO10","v":{"v":1150385.368865681,"d":"$1,150,385"}},{"$f":"'Trial 6'!AP10","v":{"v":1149938.4382163582,"d":"$1,149,938"}},{"$f":"'Trial 6'!AQ10","v":{"v":1149446.9439178554,"d":"$1,149,447"}},{"$f":"'Trial 6'!AR10","v":{"v":1148930.2946597135,"d":"$1,148,930"}},{"$f":"'Trial 6'!AS10","v":{"v":1148470.9683001789,"d":"$1,148,471"}},{"$f":"'Trial 6'!AT10","v":{"v":1147975.2889471694,"d":"$1,147,975"}},{"$f":"'Trial 6'!AU10","v":{"v":1147450.736155319,"d":"$1,147,451"}},{"$f":"'Trial 6'!AV10","v":{"v":1146850.2892744294,"d":"$1,146,850"}},{"$f":"'Trial 6'!AW10","v":{"v":1146397.6374100135,"d":"$1,146,398"}},{"$f":"'Trial 6'!AX10","v":{"v":1145883.5249158284,"d":"$1,145,884"}},{"$f":"'Trial 6'!AY10","v":{"v":1145315.0295747719,"d":"$1,145,315"}},{"$f":"'Trial 6'!AZ10","v":{"v":1144876.9928977715,"d":"$1,144,877"}},{"$f":"SUM('Trial 6'!AO10:AZ10)","v":{"v":13771921.513135089,"d":"$13,771,922"}},{"$f":"'Trial 6'!BB10","v":{"v":1144504.9815969786,"d":"$1,144,505"}},{"$f":"'Trial 6'!BC10","v":{"v":1143904.281469164,"d":"$1,143,904"}},{"$f":"'Trial 6'!BD10","v":{"v":1143358.8590215268,"d":"$1,143,359"}},{"$f":"'Trial 6'!BE10","v":{"v":1142838.921805637,"d":"$1,142,839"}},{"$f":"'Trial 6'!BF10","v":{"v":1142302.9616976527,"d":"$1,142,303"}},{"$f":"'Trial 6'!BG10","v":{"v":1141823.2074475156,"d":"$1,141,823"}},{"$f":"'Trial 6'!BH10","v":{"v":1141377.3946624857,"d":"$1,141,377"}},{"$f":"'Trial 6'!BI10","v":{"v":1140970.8907995066,"d":"$1,140,971"}},{"$f":"'Trial 6'!BJ10","v":{"v":1140446.185918158,"d":"$1,140,446"}},{"$f":"'Trial 6'!BK10","v":{"v":1140084.7466623737,"d":"$1,140,085"}},{"$f":"'Trial 6'!BL10","v":{"v":1139637.3948929247,"d":"$1,139,637"}},{"$f":"'Trial 6'!BM10","v":{"v":1139049.9745758097,"d":"$1,139,050"}},{"$f":"SUM('Trial 6'!BB10:BM10)","v":{"v":13700299.800549733,"d":"$13,700,300"}},{"$f":"'Trial 6'!BO10","v":{"v":1138604.1859587107,"d":"$1,138,604"}},{"$f":"'Trial 6'!BP10","v":{"v":1138000.213141123,"d":"$1,138,000"}},{"$f":"'Trial 6'!BQ10","v":{"v":1137498.9594635577,"d":"$1,137,499"}},{"$f":"'Trial 6'!BR10","v":{"v":1136984.6032165063,"d":"$1,136,985"}},{"$f":"'Trial 6'!BS10","v":{"v":1136441.5948796044,"d":"$1,136,442"}},{"$f":"'Trial 6'!BT10","v":{"v":1135833.8854274042,"d":"$1,135,834"}},{"$f":"'Trial 6'!BU10","v":{"v":1135436.6730721593,"d":"$1,135,437"}},{"$f":"'Trial 6'!BV10","v":{"v":1134966.5223791685,"d":"$1,134,967"}},{"$f":"'Trial 6'!BW10","v":{"v":1134529.8988494559,"d":"$1,134,530"}},{"$f":"'Trial 6'!BX10","v":{"v":1134117.604995315,"d":"$1,134,118"}},{"$f":"'Trial 6'!BY10","v":{"v":1133579.111152053,"d":"$1,133,579"}},{"$f":"'Trial 6'!BZ10","v":{"v":1133220.852625628,"d":"$1,133,221"}},{"$f":"SUM('Trial 6'!BO10:BZ10)","v":{"v":13629214.105160687,"d":"$13,629,214"}},{"$f":"'Trial 6'!CB10","v":{"v":1132813.1789007548,"d":"$1,132,813"}},{"$f":"'Trial 6'!CC10","v":{"v":1132346.551236957,"d":"$1,132,347"}},{"$f":"'Trial 6'!CD10","v":{"v":1131861.111680923,"d":"$1,131,861"}},{"$f":"'Trial 6'!CE10","v":{"v":1131505.115072182,"d":"$1,131,505"}},{"$f":"'Trial 6'!CF10","v":{"v":1131008.9165180973,"d":"$1,131,009"}},{"$f":"'Trial 6'!CG10","v":{"v":1130502.7975133546,"d":"$1,130,503"}},{"$f":"'Trial 6'!CH10","v":{"v":1130092.3865517033,"d":"$1,130,092"}},{"$f":"'Trial 6'!CI10","v":{"v":1129677.964010204,"d":"$1,129,678"}},{"$f":"'Trial 6'!CJ10","v":{"v":1129295.1362674392,"d":"$1,129,295"}},{"$f":"'Trial 6'!CK10","v":{"v":1128829.1255604583,"d":"$1,128,829"}},{"$f":"'Trial 6'!CL10","v":{"v":1128392.895047367,"d":"$1,128,393"}},{"$f":"'Trial 6'!CM10","v":{"v":1128007.6009628342,"d":"$1,128,008"}},{"$f":"SUM('Trial 6'!CB10:CM10)","v":{"v":13564332.779322274,"d":"$13,564,333"}},{"$f":"'Trial 6'!CO10","v":{"v":1127601.8615234904,"d":"$1,127,602"}},{"$f":"'Trial 6'!CP10","v":{"v":1127150.3003109412,"d":"$1,127,150"}},{"$f":"'Trial 6'!CQ10","v":{"v":1126764.785024027,"d":"$1,126,765"}},{"$f":"'Trial 6'!CR10","v":{"v":1126298.8302863652,"d":"$1,126,299"}},{"$f":"'Trial 6'!CS10","v":{"v":1125835.1506836056,"d":"$1,125,835"}},{"$f":"'Trial 6'!CT10","v":{"v":1125304.0122322412,"d":"$1,125,304"}},{"$f":"'Trial 6'!CU10","v":{"v":1124782.6429444565,"d":"$1,124,783"}},{"$f":"'Trial 6'!CV10","v":{"v":1124430.998973201,"d":"$1,124,431"}},{"$f":"'Trial 6'!CW10","v":{"v":1123884.1979311928,"d":"$1,123,884"}},{"$f":"'Trial 6'!CX10","v":{"v":1123525.721129632,"d":"$1,123,526"}},{"$f":"'Trial 6'!CY10","v":{"v":1123079.1756680463,"d":"$1,123,079"}},{"$f":"'Trial 6'!CZ10","v":{"v":1122547.7413372893,"d":"$1,122,548"}},{"$f":"SUM('Trial 6'!CO10:CZ10)","v":{"v":13501205.418044489,"d":"$13,501,205"}},{"$f":"'Trial 6'!DB10","v":{"v":1122116.6421449487,"d":"$1,122,117"}},{"$f":"'Trial 6'!DC10","v":{"v":1121694.0043052125,"d":"$1,121,694"}},{"$f":"'Trial 6'!DD10","v":{"v":1121107.2729420303,"d":"$1,121,107"}},{"$f":"'Trial 6'!DE10","v":{"v":1120596.5131269232,"d":"$1,120,597"}},{"$f":"'Trial 6'!DF10","v":{"v":1120126.964772071,"d":"$1,120,127"}},{"$f":"'Trial 6'!DG10","v":{"v":1119554.6249038733,"d":"$1,119,555"}},{"$f":"'Trial 6'!DH10","v":{"v":1119065.9275139968,"d":"$1,119,066"}},{"$f":"'Trial 6'!DI10","v":{"v":1118508.7488060328,"d":"$1,118,509"}},{"$f":"'Trial 6'!DJ10","v":{"v":1117945.5225786953,"d":"$1,117,946"}},{"$f":"'Trial 6'!DK10","v":{"v":1117357.4110653235,"d":"$1,117,357"}},{"$f":"'Trial 6'!DL10","v":{"v":1116900.0557488217,"d":"$1,116,900"}},{"$f":"'Trial 6'!DM10","v":{"v":1116368.4424535227,"d":"$1,116,368"}},{"$f":"SUM('Trial 6'!DB10:DM10)","v":{"v":13431342.130361453,"d":"$13,431,342"}},{"$f":"'Trial 6'!DO10","v":{"v":1115872.0560042306,"d":"$1,115,872"}},{"$f":"'Trial 6'!DP10","v":{"v":1115483.8494386827,"d":"$1,115,484"}},{"$f":"'Trial 6'!DQ10","v":{"v":1114961.352727702,"d":"$1,114,961"}},{"$f":"'Trial 6'!DR10","v":{"v":1114446.311603648,"d":"$1,114,446"}},{"$f":"'Trial 6'!DS10","v":{"v":1113976.625263961,"d":"$1,113,977"}},{"$f":"'Trial 6'!DT10","v":{"v":1113494.5556899032,"d":"$1,113,495"}},{"$f":"'Trial 6'!DU10","v":{"v":1113070.5713389867,"d":"$1,113,071"}},{"$f":"'Trial 6'!DV10","v":{"v":1112680.0023463985,"d":"$1,112,680"}},{"$f":"'Trial 6'!DW10","v":{"v":1112302.5028557836,"d":"$1,112,303"}},{"$f":"'Trial 6'!DX10","v":{"v":1111849.2916231584,"d":"$1,111,849"}},{"$f":"'Trial 6'!DY10","v":{"v":1111439.2338424542,"d":"$1,111,439"}},{"$f":"'Trial 6'!DZ10","v":{"v":1110955.1698042257,"d":"$1,110,955"}},{"$f":"SUM('Trial 6'!DO10:DZ10)","v":{"v":13360531.522539135,"d":"$13,360,532"}},{"$f":"'Trial 6'!EB10","v":{"v":1110480.3424239464,"d":"$1,110,480"}},{"$f":"'Trial 6'!EC10","v":{"v":1110091.0580505778,"d":"$1,110,091"}},{"$f":"'Trial 6'!ED10","v":{"v":1109625.9604343511,"d":"$1,109,626"}},{"$f":"'Trial 6'!EE10","v":{"v":1109193.5856539216,"d":"$1,109,194"}},{"$f":"'Trial 6'!EF10","v":{"v":1108782.6715810944,"d":"$1,108,783"}},{"$f":"'Trial 6'!EG10","v":{"v":1108312.433648472,"d":"$1,108,312"}},{"$f":"'Trial 6'!EH10","v":{"v":1107875.0655348762,"d":"$1,107,875"}},{"$f":"'Trial 6'!EI10","v":{"v":1107404.418351094,"d":"$1,107,404"}},{"$f":"'Trial 6'!EJ10","v":{"v":1106965.3537434204,"d":"$1,106,965"}},{"$f":"'Trial 6'!EK10","v":{"v":1106589.1621441115,"d":"$1,106,589"}},{"$f":"'Trial 6'!EL10","v":{"v":1106243.279875637,"d":"$1,106,243"}},{"$f":"'Trial 6'!EM10","v":{"v":1105690.483223176,"d":"$1,105,690"}},{"$f":"SUM('Trial 6'!EB10:EM10)","v":{"v":13297253.814664679,"d":"$13,297,254"}}]
[{"$f":"Labels!B102","v":"Trial 07"},{"$f":"'Trial 7'!B10","v":{"v":1166666.6666666667,"d":"$1,166,667"}},{"$f":"'Trial 7'!C10","v":{"v":1166129.6509216544,"d":"$1,166,130"}},{"$f":"'Trial 7'!D10","v":{"v":1165715.4041377832,"d":"$1,165,715"}},{"$f":"'Trial 7'!E10","v":{"v":1165282.1041182084,"d":"$1,165,282"}},{"$f":"'Trial 7'!F10","v":{"v":1164793.8988934858,"d":"$1,164,794"}},{"$f":"'Trial 7'!G10","v":{"v":1164397.5280628405,"d":"$1,164,398"}},{"$f":"'Trial 7'!H10","v":{"v":1164005.10895379,"d":"$1,164,005"}},{"$f":"'Trial 7'!I10","v":{"v":1163607.4949769843,"d":"$1,163,607"}},{"$f":"'Trial 7'!J10","v":{"v":1163229.3820894868,"d":"$1,163,229"}},{"$f":"'Trial 7'!K10","v":{"v":1162739.1187853322,"d":"$1,162,739"}},{"$f":"'Trial 7'!L10","v":{"v":1162214.034110423,"d":"$1,162,214"}},{"$f":"'Trial 7'!M10","v":{"v":1161734.8767607638,"d":"$1,161,735"}},{"$f":"SUM('Trial 7'!B10:M10)","v":{"v":13970515.268477418,"d":"$13,970,515"}},{"$f":"'Trial 7'!O10","v":{"v":1161241.197334929,"d":"$1,161,241"}},{"$f":"'Trial 7'!P10","v":{"v":1160782.1201796066,"d":"$1,160,782"}},{"$f":"'Trial 7'!Q10","v":{"v":1160395.9490426665,"d":"$1,160,396"}},{"$f":"'Trial 7'!R10","v":{"v":1160001.629586639,"d":"$1,160,002"}},{"$f":"'Trial 7'!S10","v":{"v":1159586.950047143,"d":"$1,159,587"}},{"$f":"'Trial 7'!T10","v":{"v":1159141.5051489903,"d":"$1,159,142"}},{"$f":"'Trial 7'!U10","v":{"v":1158739.5873206896,"d":"$1,158,740"}},{"$f":"'Trial 7'!V10","v":{"v":1158256.4361087442,"d":"$1,158,256"}},{"$f":"'Trial 7'!W10","v":{"v":1157857.426092214,"d":"$1,157,857"}},{"$f":"'Trial 7'!X10","v":{"v":1157485.8691386995,"d":"$1,157,486"}},{"$f":"'Trial 7'!Y10","v":{"v":1157080.8344498111,"d":"$1,157,081"}},{"$f":"'Trial 7'!Z10","v":{"v":1156614.1597716447,"d":"$1,156,614"}},{"$f":"SUM('Trial 7'!O10:Z10)","v":{"v":13907183.664221775,"d":"$13,907,184"}},{"$f":"'Trial 7'!AB10","v":{"v":1156030.2519088138,"d":"$1,156,030"}},{"$f":"'Trial 7'!AC10","v":{"v":1155436.145190628,"d":"$1,155,436"}},{"$f":"'Trial 7'!AD10","v":{"v":1154963.1501751246,"d":"$1,154,963"}},{"$f":"'Trial 7'!AE10","v":{"v":1154522.8928488668,"d":"$1,154,523"}},{"$f":"'Trial 7'!AF10","v":{"v":1154123.6591026094,"d":"$1,154,124"}},{"$f":"'Trial 7'!AG10","v":{"v":1153606.198838959,"d":"$1,153,606"}},{"$f":"'Trial 7'!AH10","v":{"v":1153181.4370632318,"d":"$1,153,181"}},{"$f":"'Trial 7'!AI10","v":{"v":1152750.454982172,"d":"$1,152,750"}},{"$f":"'Trial 7'!AJ10","v":{"v":1152195.6155256256,"d":"$1,152,196"}},{"$f":"'Trial 7'!AK10","v":{"v":1151702.4383711338,"d":"$1,151,702"}},{"$f":"'Trial 7'!AL10","v":{"v":1151235.059661063,"d":"$1,151,235"}},{"$f":"'Trial 7'!AM10","v":{"v":1150774.2956900592,"d":"$1,150,774"}},{"$f":"SUM('Trial 7'!AB10:AM10)","v":{"v":13840521.599358287,"d":"$13,840,522"}},{"$f":"'Trial 7'!AO10","v":{"v":1150259.9693812504,"d":"$1,150,260"}},{"$f":"'Trial 7'!AP10","v":{"v":1149712.7356833245,"d":"$1,149,713"}},{"$f":"'Trial 7'!AQ10","v":{"v":1149223.93919811,"d":"$1,149,224"}},{"$f":"'Trial 7'!AR10","v":{"v":1148813.8347836495,"d":"$1,148,814"}},{"$f":"'Trial 7'!AS10","v":{"v":1148398.622383947,"d":"$1,148,399"}},{"$f":"'Trial 7'!AT10","v":{"v":1148041.712716367,"d":"$1,148,042"}},{"$f":"'Trial 7'!AU10","v":{"v":1147516.769251751,"d":"$1,147,517"}},{"$f":"'Trial 7'!AV10","v":{"v":1147031.5135042712,"d":"$1,147,032"}},{"$f":"'Trial 7'!AW10","v":{"v":1146543.404281627,"d":"$1,146,543"}},{"$f":"'Trial 7'!AX10","v":{"v":1146022.605681658,"d":"$1,146,023"}},{"$f":"'Trial 7'!AY10","v":{"v":1145473.3774633796,"d":"$1,145,473"}},{"$f":"'Trial 7'!AZ10","v":{"v":1144941.7701181879,"d":"$1,144,942"}},{"$f":"SUM('Trial 7'!AO10:AZ10)","v":{"v":13771980.254447524,"d":"$13,771,980"}},{"$f":"'Trial 7'!BB10","v":{"v":1144365.1076117016,"d":"$1,144,365"}},{"$f":"'Trial 7'!BC10","v":{"v":1143859.1643040308,"d":"$1,143,859"}},{"$f":"'Trial 7'!BD10","v":{"v":1143347.3067901107,"d":"$1,143,347"}},{"$f":"'Trial 7'!BE10","v":{"v":1142905.23173879,"d":"$1,142,905"}},{"$f":"'Trial 7'!BF10","v":{"v":1142406.6854357002,"d":"$1,142,407"}},{"$f":"'Trial 7'!BG10","v":{"v":1141963.5803473822,"d":"$1,141,964"}},{"$f":"'Trial 7'!BH10","v":{"v":1141568.3496717035,"d":"$1,141,568"}},{"$f":"'Trial 7'!BI10","v":{"v":1141022.1336482519,"d":"$1,141,022"}},{"$f":"'Trial 7'!BJ10","v":{"v":1140541.8717152087,"d":"$1,140,542"}},{"$f":"'Trial 7'!BK10","v":{"v":1140024.3582018258,"d":"$1,140,024"}},{"$f":"'Trial 7'!BL10","v":{"v":1139453.1953211827,"d":"$1,139,453"}},{"$f":"'Trial 7'!BM10","v":{"v":1138940.9961236068,"d":"$1,138,941"}},{"$f":"SUM('Trial 7'!BB10:BM10)","v":{"v":13700397.980909495,"d":"$13,700,398"}},{"$f":"'Trial 7'!BO10","v":{"v":1138507.4778547802,"d":"$1,138,507"}},{"$f":"'Trial 7'!BP10","v":{"v":1137991.4888879235,"d":"$1,137,991"}},{"$f":"'Trial 7'!BQ10","v":{"v":1137399.865466691,"d":"$1,137,400"}},{"$f":"'Trial 7'!BR10","v":{"v":1136969.707531037,"d":"$1,136,970"}},{"$f":"'Trial 7'!BS10","v":{"v":1136537.139754292,"d":"$1,136,537"}},{"$f":"'Trial 7'!BT10","v":{"v":1136143.8751279921,"d":"$1,136,144"}},{"$f":"'Trial 7'!BU10","v":{"v":1135767.3317419128,"d":"$1,135,767"}},{"$f":"'Trial 7'!BV10","v":{"v":1135362.08311376,"d":"$1,135,362"}},{"$f":"'Trial 7'!BW10","v":{"v":1134822.856498024,"d":"$1,134,823"}},{"$f":"'Trial 7'!BX10","v":{"v":1134446.5900424002,"d":"$1,134,447"}},{"$f":"'Trial 7'!BY10","v":{"v":1133914.9438450092,"d":"$1,133,915"}},{"$f":"'Trial 7'!BZ10","v":{"v":1133341.5723318066,"d":"$1,133,342"}},{"$f":"SUM('Trial 7'!BO10:BZ10)","v":{"v":13631204.932195626,"d":"$13,631,205"}},{"$f":"'Trial 7'!CB10","v":{"v":1132725.2256740702,"d":"$1,132,725"}},{"$f":"'Trial 7'!CC10","v":{"v":1132240.0555013237,"d":"$1,132,240"}},{"$f":"'Trial 7'!CD10","v":{"v":1131818.3305828816,"d":"$1,131,818"}},{"$f":"'Trial 7'!CE10","v":{"v":1131407.8904163616,"d":"$1,131,408"}},{"$f":"'Trial 7'!CF10","v":{"v":1130795.837029611,"d":"$1,130,796"}},{"$f":"'Trial 7'!CG10","v":{"v":1130281.4294321924,"d":"$1,130,281"}},{"$f":"'Trial 7'!CH10","v":{"v":1129865.9137978675,"d":"$1,129,866"}},{"$f":"'Trial 7'!CI10","v":{"v":1129248.3488278661,"d":"$1,129,248"}},{"$f":"'Trial 7'!CJ10","v":{"v":1128704.767965998,"d":"$1,128,705"}},{"$f":"'Trial 7'!CK10","v":{"v":1128372.068524006,"d":"$1,128,372"}},{"$f":"'Trial 7'!CL10","v":{"v":1128023.1639053654,"d":"$1,128,023"}},{"$f":"'Trial 7'!CM10","v":{"v":1127534.8629970702,"d":"$1,127,535"}},{"$f":"SUM('Trial 7'!CB10:CM10)","v":{"v":13561017.894654613,"d":"$13,561,018"}},{"$f":"'Trial 7'!CO10","v":{"v":1127133.8830604425,"d":"$1,127,134"}},{"$f":"'Trial 7'!CP10","v":{"v":1126793.2766216071,"d":"$1,126,793"}},{"$f":"'Trial 7'!CQ10","v":{"v":1126309.2379497213,"d":"$1,126,309"}},{"$f":"'Trial 7'!CR10","v":{"v":1125876.918880541,"d":"$1,125,877"}},{"$f":"'Trial 7'!CS10","v":{"v":1125460.7369451271,"d":"$1,125,461"}},{"$f":"'Trial 7'!CT10","v":{"v":1124995.2379860915,"d":"$1,124,995"}},{"$f":"'Trial 7'!CU10","v":{"v":1124514.5532804446,"d":"$1,124,515"}},{"$f":"'Trial 7'!CV10","v":{"v":1124113.316144424,"d":"$1,124,113"}},{"$f":"'Trial 7'!CW10","v":{"v":1123637.5067932475,"d":"$1,123,638"}},{"$f":"'Trial 7'!CX10","v":{"v":1123153.862503846,"d":"$1,123,154"}},{"$f":"'Trial 7'!CY10","v":{"v":1122581.6343151405,"d":"$1,122,582"}},{"$f":"'Trial 7'!CZ10","v":{"v":1122023.5513112457,"d":"$1,122,024"}},{"$f":"SUM('Trial 7'!CO10:CZ10)","v":{"v":13496593.715791877,"d":"$13,496,594"}},{"$f":"'Trial 7'!DB10","v":{"v":1121587.528740271,"d":"$1,121,588"}},{"$f":"'Trial 7'!DC10","v":{"v":1121230.0792909246,"d":"$1,121,230"}},{"$f":"'Trial 7'!DD10","v":{"v":1120838.5559967528,"d":"$1,120,839"}},{"$f":"'Trial 7'!DE10","v":{"v":1120379.2181174164,"d":"$1,120,379"}},{"$f":"'Trial 7'!DF10","v":{"v":1119942.3234199234,"d":"$1,119,942"}},{"$f":"'Trial 7'!DG10","v":{"v":1119494.0508289698,"d":"$1,119,494"}},{"$f":"'Trial 7'!DH10","v":{"v":1118929.2665828296,"d":"$1,118,929"}},{"$f":"'Trial 7'!DI10","v":{"v":1118355.1021567795,"d":"$1,118,355"}},{"$f":"'Trial 7'!DJ10","v":{"v":1117892.2299168955,"d":"$1,117,892"}},{"$f":"'Trial 7'!DK10","v":{"v":1117416.4368511566,"d":"$1,117,416"}},{"$f":"'Trial 7'!DL10","v":{"v":1116841.5602697649,"d":"$1,116,842"}},{"$f":"'Trial 7'!DM10","v":{"v":1116382.3199737985,"d":"$1,116,382"}},{"$f":"SUM('Trial 7'!DB10:DM10)","v":{"v":13429288.672145484,"d":"$13,429,289"}},{"$f":"'Trial 7'!DO10","v":{"v":1115928.1737729146,"d":"$1,115,928"}},{"$f":"'Trial 7'!DP10","v":{"v":1115398.4846376167,"d":"$1,115,398"}},{"$f":"'Trial 7'!DQ10","v":{"v":1114923.3496180475,"d":"$1,114,923"}},{"$f":"'Trial 7'!DR10","v":{"v":1114444.0953815638,"d":"$1,114,444"}},{"$f":"'Trial 7'!DS10","v":{"v":1113891.435066536,"d":"$1,113,891"}},{"$f":"'Trial 7'!DT10","v":{"v":1113447.6614906818,"d":"$1,113,448"}},{"$f":"'Trial 7'!DU10","v":{"v":1112902.1296301703,"d":"$1,112,902"}},{"$f":"'Trial 7'!DV10","v":{"v":1112392.6687913812,"d":"$1,112,393"}},{"$f":"'Trial 7'!DW10","v":{"v":1111979.3225955067,"d":"$1,111,979"}},{"$f":"'Trial 7'!DX10","v":{"v":1111653.2800779326,"d":"$1,111,653"}},{"$f":"'Trial 7'!DY10","v":{"v":1111078.541336233,"d":"$1,111,079"}},{"$f":"'Trial 7'!DZ10","v":{"v":1110563.3581970942,"d":"$1,110,563"}},{"$f":"SUM('Trial 7'!DO10:DZ10)","v":{"v":13358602.50059568,"d":"$13,358,603"}},{"$f":"'Trial 7'!EB10","v":{"v":1110014.078415485,"d":"$1,110,014"}},{"$f":"'Trial 7'!EC10","v":{"v":1109632.1259402959,"d":"$1,109,632"}},{"$f":"'Trial 7'!ED10","v":{"v":1109090.696406408,"d":"$1,109,091"}},{"$f":"'Trial 7'!EE10","v":{"v":1108619.1963260113,"d":"$1,108,619"}},{"$f":"'Trial 7'!EF10","v":{"v":1108178.136450475,"d":"$1,108,178"}},{"$f":"'Trial 7'!EG10","v":{"v":1107641.1919311248,"d":"$1,107,641"}},{"$f":"'Trial 7'!EH10","v":{"v":1107038.9229750135,"d":"$1,107,039"}},{"$f":"'Trial 7'!EI10","v":{"v":1106455.5266111442,"d":"$1,106,456"}},{"$f":"'Trial 7'!EJ10","v":{"v":1106026.7898789865,"d":"$1,106,027"}},{"$f":"'Trial 7'!EK10","v":{"v":1105610.5596136574,"d":"$1,105,611"}},{"$f":"'Trial 7'!EL10","v":{"v":1105139.6342700764,"d":"$1,105,140"}},{"$f":"'Trial 7'!EM10","v":{"v":1104750.992326255,"d":"$1,104,751"}},{"$f":"SUM('Trial 7'!EB10:EM10)","v":{"v":13288197.851144932,"d":"$13,288,198"}}]
[{"$f":"Labels!B103","v":"Trial 08"},{"$f":"'Trial 8'!B10","v":{"v":1166666.6666666667,"d":"$1,166,667"}},{"$f":"'Trial 8'!C10","v":{"v":1166085.407157451,"d":"$1,166,085"}},{"$f":"'Trial 8'!D10","v":{"v":1165586.5025521168,"d":"$1,165,587"}},{"$f":"'Trial 8'!E10","v":{"v":1165114.9758481702,"d":"$1,165,115"}},{"$f":"'Trial 8'!F10","v":{"v":1164668.6756536777,"d":"$1,164,669"}},{"$f":"'Trial 8'!G10","v":{"v":1164332.3658396567,"d":"$1,164,332"}},{"$f":"'Trial 8'!H10","v":{"v":1163900.6154335318,"d":"$1,163,901"}},{"$f":"'Trial 8'!I10","v":{"v":1163423.700663601,"d":"$1,163,424"}},{"$f":"'Trial 8'!J10","v":{"v":1163003.418456037,"d":"$1,163,003"}},{"$f":"'Trial 8'!K10","v":{"v":1162450.899983878,"d":"$1,162,451"}},{"$f":"'Trial 8'!L10","v":{"v":1162032.7777831987,"d":"$1,162,033"}},{"$f":"'Trial 8'!M10","v":{"v":1161471.864188978,"d":"$1,161,472"}},{"$f":"SUM('Trial 8'!B10:M10)","v":{"v":13968737.870226962,"d":"$13,968,738"}},{"$f":"'Trial 8'!O10","v":{"v":1161013.7184239675,"d":"$1,161,014"}},{"$f":"'Trial 8'!P10","v":{"v":1160654.4861536846,"d":"$1,160,654"}},{"$f":"'Trial 8'!Q10","v":{"v":1160120.3095239052,"d":"$1,160,120"}},{"$f":"'Trial 8'!R10","v":{"v":1159530.496286409,"d":"$1,159,530"}},{"$f":"'Trial 8'!S10","v":{"v":1159088.053035773,"d":"$1,159,088"}},{"$f":"'Trial 8'!T10","v":{"v":1158619.6066215273,"d":"$1,158,620"}},{"$f":"'Trial 8'!U10","v":{"v":1158261.6251791823,"d":"$1,158,262"}},{"$f":"'Trial 8'!V10","v":{"v":1157779.46805637,"d":"$1,157,779"}},{"$f":"'Trial 8'!W10","v":{"v":1157316.0875326474,"d":"$1,157,316"}},{"$f":"'Trial 8'!X10","v":{"v":1156946.465974588,"d":"$1,156,946"}},{"$f":"'Trial 8'!Y10","v":{"v":1156411.8750119351,"d":"$1,156,412"}},{"$f":"'Trial 8'!Z10","v":{"v":1155845.4805442018,"d":"$1,155,845"}},{"$f":"SUM('Trial 8'!O10:Z10)","v":{"v":13901587.672344191,"d":"$13,901,588"}},{"$f":"'Trial 8'!AB10","v":{"v":1155321.585403047,"d":"$1,155,322"}},{"$f":"'Trial 8'!AC10","v":{"v":1154848.593142284,"d":"$1,154,849"}},{"$f":"'Trial 8'!AD10","v":{"v":1154382.3321031765,"d":"$1,154,382"}},{"$f":"'Trial 8'!AE10","v":{"v":1153863.5273698675,"d":"$1,153,864"}},{"$f":"'Trial 8'!AF10","v":{"v":1153373.5124013417,"d":"$1,153,374"}},{"$f":"'Trial 8'!AG10","v":{"v":1152829.6006584757,"d":"$1,152,830"}},{"$f":"'Trial 8'!AH10","v":{"v":1152305.9839838543,"d":"$1,152,306"}},{"$f":"'Trial 8'!AI10","v":{"v":1151875.896355803,"d":"$1,151,876"}},{"$f":"'Trial 8'!AJ10","v":{"v":1151434.7670525834,"d":"$1,151,435"}},{"$f":"'Trial 8'!AK10","v":{"v":1150921.619193783,"d":"$1,150,922"}},{"$f":"'Trial 8'!AL10","v":{"v":1150449.420682139,"d":"$1,150,449"}},{"$f":"'Trial 8'!AM10","v":{"v":1150065.4836395467,"d":"$1,150,065"}},{"$f":"SUM('Trial 8'!AB10:AM10)","v":{"v":13831672.3219859,"d":"$13,831,672"}},{"$f":"'Trial 8'!AO10","v":{"v":1149673.5614227415,"d":"$1,149,674"}},{"$f":"'Trial 8'!AP10","v":{"v":1149271.7557503001,"d":"$1,149,272"}},{"$f":"'Trial 8'!AQ10","v":{"v":1148805.4875810784,"d":"$1,148,805"}},{"$f":"'Trial 8'!AR10","v":{"v":1148335.6017839795,"d":"$1,148,336"}},{"$f":"'Trial 8'!AS10","v":{"v":1147783.0108635097,"d":"$1,147,783"}},{"$f":"'Trial 8'!AT10","v":{"v":1147232.1623365588,"d":"$1,147,232"}},{"$f":"'Trial 8'!AU10","v":{"v":1146732.4213598212,"d":"$1,146,732"}},{"$f":"'Trial 8'!AV10","v":{"v":1146297.5845064907,"d":"$1,146,298"}},{"$f":"'Trial 8'!AW10","v":{"v":1145829.7858402894,"d":"$1,145,830"}},{"$f":"'Trial 8'!AX10","v":{"v":1145370.1258611355,"d":"$1,145,370"}},{"$f":"'Trial 8'!AY10","v":{"v":1144900.8270609016,"d":"$1,144,901"}},{"$f":"'Trial 8'!AZ10","v":{"v":1144460.4155789914,"d":"$1,144,460"}},{"$f":"SUM('Trial 8'!AO10:AZ10)","v":{"v":13764692.7399458,"d":"$13,764,693"}},{"$f":"'Trial 8'!BB10","v":{"v":1144005.6761889243,"d":"$1,144,006"}},{"$f":"'Trial 8'!BC10","v":{"v":1143497.6972555353,"d":"$1,143,498"}},{"$f":"'Trial 8'!BD10","v":{"v":1143094.5072991396,"d":"$1,143,095"}},{"$f":"'Trial 8'!BE10","v":{"v":1142713.846205324,"d":"$1,142,714"}},{"$f":"'Trial 8'!BF10","v":{"v":1142270.6101401194,"d":"$1,142,271"}},{"$f":"'Trial 8'!BG10","v":{"v":1141823.0203278314,"d":"$1,141,823"}},{"$f":"'Trial 8'!BH10","v":{"v":1141429.3621017325,"d":"$1,141,429"}},{"$f":"'Trial 8'!BI10","v":{"v":1140900.828497031,"d":"$1,140,901"}},{"$f":"'Trial 8'!BJ10","v":{"v":1140425.9957232492,"d":"$1,140,426"}},{"$f":"'Trial 8'!BK10","v":{"v":1139996.9910929033,"d":"$1,139,997"}},{"$f":"'Trial 8'!BL10","v":{"v":1139562.1995113124,"d":"$1,139,562"}},{"$f":"'Trial 8'!BM10","v":{"v":1139131.1365826696,"d":"$1,139,131"}},{"$f":"SUM('Trial 8'!BB10:BM10)","v":{"v":13698851.870925771,"d":"$13,698,852"}},{"$f":"'Trial 8'!BO10","v":{"v":1138641.8534515505,"d":"$1,138,642"}},{"$f":"'Trial 8'!BP10","v":{"v":1138220.2258630393,"d":"$1,138,220"}},{"$f":"'Trial 8'!BQ10","v":{"v":1137842.111523738,"d":"$1,137,842"}},{"$f":"'Trial 8'!BR10","v":{"v":1137434.690623603,"d":"$1,137,435"}},{"$f":"'Trial 8'!BS10","v":{"v":1137090.030757521,"d":"$1,137,090"}},{"$f":"'Trial 8'!BT10","v":{"v":1136659.3579094221,"d":"$1,136,659"}},{"$f":"'Trial 8'!BU10","v":{"v":1136190.5944114418,"d":"$1,136,191"}},{"$f":"'Trial 8'!BV10","v":{"v":1135752.6144592708,"d":"$1,135,753"}},{"$f":"'Trial 8'!BW10","v":{"v":1135378.5990411092,"d":"$1,135,379"}},{"$f":"'Trial 8'!BX10","v":{"v":1134970.3873132698,"d":"$1,134,970"}},{"$f":"'Trial 8'!BY10","v":{"v":1134560.244012334,"d":"$1,134,560"}},{"$f":"'Trial 8'!BZ10","v":{"v":1134067.3047186194,"d":"$1,134,067"}},{"$f":"SUM('Trial 8'!BO10:BZ10)","v":{"v":13636808.014084918,"d":"$13,636,808"}},{"$f":"'Trial 8'!CB10","v":{"v":1133498.0185770732,"d":"$1,133,498"}},{"$f":"'Trial 8'!CC10","v":{"v":1132994.093546208,"d":"$1,132,994"}},{"$f":"'Trial 8'!CD10","v":{"v":1132526.3222611716,"d":"$1,132,526"}},{"$f":"'Trial 8'!CE10","v":{"v":1131977.0051035308,"d":"$1,131,977"}},{"$f":"'Trial 8'!CF10","v":{"v":1131524.329730662,"d":"$1,131,524"}},{"$f":"'Trial 8'!CG10","v":{"v":1131042.4692434566,"d":"$1,131,042"}},{"$f":"'Trial 8'!CH10","v":{"v":1130703.7811075912,"d":"$1,130,704"}},{"$f":"'Trial 8'!CI10","v":{"v":1130239.233500689,"d":"$1,130,239"}},{"$f":"'Trial 8'!CJ10","v":{"v":1129718.8766159432,"d":"$1,129,719"}},{"$f":"'Trial 8'!CK10","v":{"v":1129291.0195104827,"d":"$1,129,291"}},{"$f":"'Trial 8'!CL10","v":{"v":1128886.6506754141,"d":"$1,128,887"}},{"$f":"'Trial 8'!CM10","v":{"v":1128341.4159569666,"d":"$1,128,341"}},{"$f":"SUM('Trial 8'!CB10:CM10)","v":{"v":13570743.21582919,"d":"$13,570,743"}},{"$f":"'Trial 8'!CO10","v":{"v":1127965.3747043647,"d":"$1,127,965"}},{"$f":"'Trial 8'!CP10","v":{"v":1127593.0850060964,"d":"$1,127,593"}},{"$f":"'Trial 8'!CQ10","v":{"v":1127142.0259540188,"d":"$1,127,142"}},{"$f":"'Trial 8'!CR10","v":{"v":1126720.8340438637,"d":"$1,126,721"}},{"$f":"'Trial 8'!CS10","v":{"v":1126292.9835285053,"d":"$1,126,293"}},{"$f":"'Trial 8'!CT10","v":{"v":1125677.8049884809,"d":"$1,125,678"}},{"$f":"'Trial 8'!CU10","v":{"v":1125198.6804121796,"d":"$1,125,199"}},{"$f":"'Trial 8'!CV10","v":{"v":1124808.4971283146,"d":"$1,124,808"}},{"$f":"'Trial 8'!CW10","v":{"v":1124338.9650557314,"d":"$1,124,339"}},{"$f":"'Trial 8'!CX10","v":{"v":1123736.7025036528,"d":"$1,123,737"}},{"$f":"'Trial 8'!CY10","v":{"v":1123354.8112018812,"d":"$1,123,355"}},{"$f":"'Trial 8'!CZ10","v":{"v":1123023.689370043,"d":"$1,123,024"}},{"$f":"SUM('Trial 8'!CO10:CZ10)","v":{"v":13505853.453897135,"d":"$13,505,853"}},{"$f":"'Trial 8'!DB10","v":{"v":1122496.6016938891,"d":"$1,122,497"}},{"$f":"'Trial 8'!DC10","v":{"v":1122164.2175399754,"d":"$1,122,164"}},{"$f":"'Trial 8'!DD10","v":{"v":1121648.4513345966,"d":"$1,121,648"}},{"$f":"'Trial 8'!DE10","v":{"v":1121099.8232858514,"d":"$1,121,100"}},{"$f":"'Trial 8'!DF10","v":{"v":1120606.664519574,"d":"$1,120,607"}},{"$f":"'Trial 8'!DG10","v":{"v":1120144.1054758134,"d":"$1,120,144"}},{"$f":"'Trial 8'!DH10","v":{"v":1119630.4757336618,"d":"$1,119,630"}},{"$f":"'Trial 8'!DI10","v":{"v":1119150.5448607416,"d":"$1,119,151"}},{"$f":"'Trial 8'!DJ10","v":{"v":1118596.3883119158,"d":"$1,118,596"}},{"$f":"'Trial 8'!DK10","v":{"v":1118253.7492299057,"d":"$1,118,254"}},{"$f":"'Trial 8'!DL10","v":{"v":1117752.0643406892,"d":"$1,117,752"}},{"$f":"'Trial 8'!DM10","v":{"v":1117394.7704325614,"d":"$1,117,395"}},{"$f":"SUM('Trial 8'!DB10:DM10)","v":{"v":13438937.856759176,"d":"$13,438,938"}},{"$f":"'Trial 8'!DO10","v":{"v":1116906.8179900874,"d":"$1,116,907"}},{"$f":"'Trial 8'!DP10","v":{"v":1116331.1199178356,"d":"$1,116,331"}},{"$f":"'Trial 8'!DQ10","v":{"v":1115782.1235157787,"d":"$1,115,782"}},{"$f":"'Trial 8'!DR10","v":{"v":1115433.8872513755,"d":"$1,115,434"}},{"$f":"'Trial 8'!DS10","v":{"v":1115063.3838565447,"d":"$1,115,063"}},{"$f":"'Trial 8'!DT10","v":{"v":1114563.8683779652,"d":"$1,114,564"}},{"$f":"'Trial 8'!DU10","v":{"v":1114193.6411404975,"d":"$1,114,194"}},{"$f":"'Trial 8'!DV10","v":{"v":1113811.7031240852,"d":"$1,113,812"}},{"$f":"'Trial 8'!DW10","v":{"v":1113356.6077677682,"d":"$1,113,357"}},{"$f":"'Trial 8'!DX10","v":{"v":1112933.4879585458,"d":"$1,112,933"}},{"$f":"'Trial 8'!DY10","v":{"v":1112366.698583183,"d":"$1,112,367"}},{"$f":"'Trial 8'!DZ10","v":{"v":1111928.7193588966,"d":"$1,111,929"}},{"$f":"SUM('Trial 8'!DO10:DZ10)","v":{"v":13372672.058842562,"d":"$13,372,672"}},{"$f":"'Trial 8'!EB10","v":{"v":1111462.7379295584,"d":"$1,111,463"}},{"$f":"'Trial 8'!EC10","v":{"v":1110885.5897292465,"d":"$1,110,886"}},{"$f":"'Trial 8'!ED10","v":{"v":1110316.3939128064,"d":"$1,110,316"}},{"$f":"'Trial 8'!EE10","v":{"v":1109892.0097115969,"d":"$1,109,892"}},{"$f":"'Trial 8'!EF10","v":{"v":1109383.758592251,"d":"$1,109,384"}},{"$f":"'Trial 8'!EG10","v":{"v":1108862.2618495137,"d":"$1,108,862"}},{"$f":"'Trial 8'!EH10","v":{"v":1108402.6468968845,"d":"$1,108,403"}},{"$f":"'Trial 8'!EI10","v":{"v":1108027.9241666603,"d":"$1,108,028"}},{"$f":"'Trial 8'!EJ10","v":{"v":1107499.8037538067,"d":"$1,107,500"}},{"$f":"'Trial 8'!EK10","v":{"v":1107042.6984188044,"d":"$1,107,043"}},{"$f":"'Trial 8'!EL10","v":{"v":1106466.585910553,"d":"$1,106,467"}},{"$f":"'Trial 8'!EM10","v":{"v":1105941.5621010214,"d":"$1,105,942"}},{"$f":"SUM('Trial 8'!EB10:EM10)","v":{"v":13304183.972972704,"d":"$13,304,184"}}]
[{"$f":"Labels!C95","v":"Total"},{"$f":"SUM('Trial 1'!B10,'Trial 2'!B10,'Trial 3'!B10,'Trial 4'!B10,'Trial 5'!B10,'Trial 6'!B10,'Trial 7'!B10,'Trial 8'!B10)","v":{"v":9333333.333333334,"d":"$9,333,333"}},{"$f":"SUM('Trial 1'!C10,'Trial 2'!C10,'Trial 3'!C10,'Trial 4'!C10,'Trial 5'!C10,'Trial 6'!C10,'Trial 7'!C10,'Trial 8'!C10)","v":{"v":9329074.398387488,"d":"$9,329,074"}},{"$f":"SUM('Trial 1'!D10,'Trial 2'!D10,'Trial 3'!D10,'Trial 4'!D10,'Trial 5'!D10,'Trial 6'!D10,'Trial 7'!D10,'Trial 8'!D10)","v":{"v":9325091.644260067,"d":"$9,325,092"}},{"$f":"SUM('Trial 1'!E10,'Trial 2'!E10,'Trial 3'!E10,'Trial 4'!E10,'Trial 5'!E10,'Trial 6'!E10,'Trial 7'!E10,'Trial 8'!E10)","v":{"v":9321466.447535116,"d":"$9,321,466"}},{"$f":"SUM('Trial 1'!F10,'Trial 2'!F10,'Trial 3'!F10,'Trial 4'!F10,'Trial 5'!F10,'Trial 6'!F10,'Trial 7'!F10,'Trial 8'!F10)","v":{"v":9317987.316431146,"d":"$9,317,987"}},{"$f":"SUM('Trial 1'!G10,'Trial 2'!G10,'Trial 3'!G10,'Trial 4'!G10,'Trial 5'!G10,'Trial 6'!G10,'Trial 7'!G10,'Trial 8'!G10)","v":{"v":9314697.044163685,"d":"$9,314,697"}},{"$f":"SUM('Trial 1'!H10,'Trial 2'!H10,'Trial 3'!H10,'Trial 4'!H10,'Trial 5'!H10,'Trial 6'!H10,'Trial 7'!H10,'Trial 8'!H10)","v":{"v":9311157.440352658,"d":"$9,311,157"}},{"$f":"SUM('Trial 1'!I10,'Trial 2'!I10,'Trial 3'!I10,'Trial 4'!I10,'Trial 5'!I10,'Trial 6'!I10,'Trial 7'!I10,'Trial 8'!I10)","v":{"v":9307280.317072984,"d":"$9,307,280"}},{"$f":"SUM('Trial 1'!J10,'Trial 2'!J10,'Trial 3'!J10,'Trial 4'!J10,'Trial 5'!J10,'Trial 6'!J10,'Trial 7'!J10,'Trial 8'!J10)","v":{"v":9303563.964956602,"d":"$9,303,564"}},{"$f":"SUM('Trial 1'!K10,'Trial 2'!K10,'Trial 3'!K10,'Trial 4'!K10,'Trial 5'!K10,'Trial 6'!K10,'Trial 7'!K10,'Trial 8'!K10)","v":{"v":9299875.442832015,"d":"$9,299,875"}},{"$f":"SUM('Trial 1'!L10,'Trial 2'!L10,'Trial 3'!L10,'Trial 4'!L10,'Trial 5'!L10,'Trial 6'!L10,'Trial 7'!L10,'Trial 8'!L10)","v":{"v":9296189.34998269,"d":"$9,296,189"}},{"$f":"SUM('Trial 1'!M10,'Trial 2'!M10,'Trial 3'!M10,'Trial 4'!M10,'Trial 5'!M10,'Trial 6'!M10,'Trial 7'!M10,'Trial 8'!M10)","v":{"v":9292465.171843011,"d":"$9,292,465"}},{"$f":"SUM(B188:M188)","v":{"v":111752181.87115079,"d":"$111,752,182"}},{"$f":"SUM('Trial 1'!O10,'Trial 2'!O10,'Trial 3'!O10,'Trial 4'!O10,'Trial 5'!O10,'Trial 6'!O10,'Trial 7'!O10,'Trial 8'!O10)","v":{"v":9288629.460900135,"d":"$9,288,629"}},{"$f":"SUM('Trial 1'!P10,'Trial 2'!P10,'Trial 3'!P10,'Trial 4'!P10,'Trial 5'!P10,'Trial 6'!P10,'Trial 7'!P10,'Trial 8'!P10)","v":{"v":9285007.8897162,"d":"$9,285,008"}},{"$f":"SUM('Trial 1'!Q10,'Trial 2'!Q10,'Trial 3'!Q10,'Trial 4'!Q10,'Trial 5'!Q10,'Trial 6'!Q10,'Trial 7'!Q10,'Trial 8'!Q10)","v":{"v":9281325.288538644,"d":"$9,281,325"}},{"$f":"SUM('Trial 1'!R10,'Trial 2'!R10,'Trial 3'!R10,'Trial 4'!R10,'Trial 5'!R10,'Trial 6'!R10,'Trial 7'!R10,'Trial 8'!R10)","v":{"v":9277726.095039096,"d":"$9,277,726"}},{"$f":"SUM('Trial 1'!S10,'Trial 2'!S10,'Trial 3'!S10,'Trial 4'!S10,'Trial 5'!S10,'Trial 6'!S10,'Trial 7'!S10,'Trial 8'!S10)","v":{"v":9274212.253527187,"d":"$9,274,212"}},{"$f":"SUM('Trial 1'!T10,'Trial 2'!T10,'Trial 3'!T10,'Trial 4'!T10,'Trial 5'!T10,'Trial 6'!T10,'Trial 7'!T10,'Trial 8'!T10)","v":{"v":9269980.170796396,"d":"$9,269,980"}},{"$f":"SUM('Trial 1'!U10,'Trial 2'!U10,'Trial 3'!U10,'Trial 4'!U10,'Trial 5'!U10,'Trial 6'!U10,'Trial 7'!U10,'Trial 8'!U10)","v":{"v":9266360.47767356,"d":"$9,266,360"}},{"$f":"SUM('Trial 1'!V10,'Trial 2'!V10,'Trial 3'!V10,'Trial 4'!V10,'Trial 5'!V10,'Trial 6'!V10,'Trial 7'!V10,'Trial 8'!V10)","v":{"v":9262311.912085233,"d":"$9,262,312"}},{"$f":"SUM('Trial 1'!W10,'Trial 2'!W10,'Trial 3'!W10,'Trial 4'!W10,'Trial 5'!W10,'Trial 6'!W10,'Trial 7'!W10,'Trial 8'!W10)","v":{"v":9258315.487638246,"d":"$9,258,315"}},{"$f":"SUM('Trial 1'!X10,'Trial 2'!X10,'Trial 3'!X10,'Trial 4'!X10,'Trial 5'!X10,'Trial 6'!X10,'Trial 7'!X10,'Trial 8'!X10)","v":{"v":9254825.037312455,"d":"$9,254,825"}},{"$f":"SUM('Trial 1'!Y10,'Trial 2'!Y10,'Trial 3'!Y10,'Trial 4'!Y10,'Trial 5'!Y10,'Trial 6'!Y10,'Trial 7'!Y10,'Trial 8'!Y10)","v":{"v":9250930.76328845,"d":"$9,250,931"}},{"$f":"SUM('Trial 1'!Z10,'Trial 2'!Z10,'Trial 3'!Z10,'Trial 4'!Z10,'Trial 5'!Z10,'Trial 6'!Z10,'Trial 7'!Z10,'Trial 8'!Z10)","v":{"v":9247073.252450775,"d":"$9,247,073"}},{"$f":"SUM(O188:Z188)","v":{"v":111216698.08896637,"d":"$111,216,698"}},{"$f":"SUM('Trial 1'!AB10,'Trial 2'!AB10,'Trial 3'!AB10,'Trial 4'!AB10,'Trial 5'!AB10,'Trial 6'!AB10,'Trial 7'!AB10,'Trial 8'!AB10)","v":{"v":9242810.009527454,"d":"$9,242,810"}},{"$f":"SUM('Trial 1'!AC10,'Trial 2'!AC10,'Trial 3'!AC10,'Trial 4'!AC10,'Trial 5'!AC10,'Trial 6'!AC10,'Trial 7'!AC10,'Trial 8'!AC10)","v":{"v":9239016.994412646,"d":"$9,239,017"}},{"$f":"SUM('Trial 1'!AD10,'Trial 2'!AD10,'Trial 3'!AD10,'Trial 4'!AD10,'Trial 5'!AD10,'Trial 6'!AD10,'Trial 7'!AD10,'Trial 8'!AD10)","v":{"v":9235405.557386324,"d":"$9,235,406"}},{"$f":"SUM('Trial 1'!AE10,'Trial 2'!AE10,'Trial 3'!AE10,'Trial 4'!AE10,'Trial 5'!AE10,'Trial 6'!AE10,'Trial 7'!AE10,'Trial 8'!AE10)","v":{"v":9231661.962461205,"d":"$9,231,662"}},{"$f":"SUM('Trial 1'!AF10,'Trial 2'!AF10,'Trial 3'!AF10,'Trial 4'!AF10,'Trial 5'!AF10,'Trial 6'!AF10,'Trial 7'!AF10,'Trial 8'!AF10)","v":{"v":9227859.664438225,"d":"$9,227,860"}},{"$f":"SUM('Trial 1'!AG10,'Trial 2'!AG10,'Trial 3'!AG10,'Trial 4'!AG10,'Trial 5'!AG10,'Trial 6'!AG10,'Trial 7'!AG10,'Trial 8'!AG10)","v":{"v":9223757.40221554,"d":"$9,223,757"}},{"$f":"SUM('Trial 1'!AH10,'Trial 2'!AH10,'Trial 3'!AH10,'Trial 4'!AH10,'Trial 5'!AH10,'Trial 6'!AH10,'Trial 7'!AH10,'Trial 8'!AH10)","v":{"v":9220074.363220178,"d":"$9,220,074"}},{"$f":"SUM('Trial 1'!AI10,'Trial 2'!AI10,'Trial 3'!AI10,'Trial 4'!AI10,'Trial 5'!AI10,'Trial 6'!AI10,'Trial 7'!AI10,'Trial 8'!AI10)","v":{"v":9216563.877097491,"d":"$9,216,564"}},{"$f":"SUM('Trial 1'!AJ10,'Trial 2'!AJ10,'Trial 3'!AJ10,'Trial 4'!AJ10,'Trial 5'!AJ10,'Trial 6'!AJ10,'Trial 7'!AJ10,'Trial 8'!AJ10)","v":{"v":9212439.711385105,"d":"$9,212,440"}},{"$f":"SUM('Trial 1'!AK10,'Trial 2'!AK10,'Trial 3'!AK10,'Trial 4'!AK10,'Trial 5'!AK10,'Trial 6'!AK10,'Trial 7'!AK10,'Trial 8'!AK10)","v":{"v":9208687.29711806,"d":"$9,208,687"}},{"$f":"SUM('Trial 1'!AL10,'Trial 2'!AL10,'Trial 3'!AL10,'Trial 4'!AL10,'Trial 5'!AL10,'Trial 6'!AL10,'Trial 7'!AL10,'Trial 8'!AL10)","v":{"v":9205019.089915643,"d":"$9,205,019"}},{"$f":"SUM('Trial 1'!AM10,'Trial 2'!AM10,'Trial 3'!AM10,'Trial 4'!AM10,'Trial 5'!AM10,'Trial 6'!AM10,'Trial 7'!AM10,'Trial 8'!AM10)","v":{"v":9201418.715133976,"d":"$9,201,419"}},{"$f":"SUM(AB188:AM188)","v":{"v":110664714.64431185,"d":"$110,664,715"}},{"$f":"SUM('Trial 1'!AO10,'Trial 2'!AO10,'Trial 3'!AO10,'Trial 4'!AO10,'Trial 5'!AO10,'Trial 6'!AO10,'Trial 7'!AO10,'Trial 8'!AO10)","v":{"v":9197428.756921723,"d":"$9,197,429"}},{"$f":"SUM('Trial 1'!AP10,'Trial 2'!AP10,'Trial 3'!AP10,'Trial 4'!AP10,'Trial 5'!AP10,'Trial 6'!AP10,'Trial 7'!AP10,'Trial 8'!AP10)","v":{"v":9193648.88067886,"d":"$9,193,649"}},{"$f":"SUM('Trial 1'!AQ10,'Trial 2'!AQ10,'Trial 3'!AQ10,'Trial 4'!AQ10,'Trial 5'!AQ10,'Trial 6'!AQ10,'Trial 7'!AQ10,'Trial 8'!AQ10)","v":{"v":9190104.652821716,"d":"$9,190,105"}},{"$f":"SUM('Trial 1'!AR10,'Trial 2'!AR10,'Trial 3'!AR10,'Trial 4'!AR10,'Trial 5'!AR10,'Trial 6'!AR10,'Trial 7'!AR10,'Trial 8'!AR10)","v":{"v":9186129.446526563,"d":"$9,186,129"}},{"$f":"SUM('Trial 1'!AS10,'Trial 2'!AS10,'Trial 3'!AS10,'Trial 4'!AS10,'Trial 5'!AS10,'Trial 6'!AS10,'Trial 7'!AS10,'Trial 8'!AS10)","v":{"v":9182303.677202746,"d":"$9,182,304"}},{"$f":"SUM('Trial 1'!AT10,'Trial 2'!AT10,'Trial 3'!AT10,'Trial 4'!AT10,'Trial 5'!AT10,'Trial 6'!AT10,'Trial 7'!AT10,'Trial 8'!AT10)","v":{"v":9178724.443406489,"d":"$9,178,724"}},{"$f":"SUM('Trial 1'!AU10,'Trial 2'!AU10,'Trial 3'!AU10,'Trial 4'!AU10,'Trial 5'!AU10,'Trial 6'!AU10,'Trial 7'!AU10,'Trial 8'!AU10)","v":{"v":9174902.879439384,"d":"$9,174,903"}},{"$f":"SUM('Trial 1'!AV10,'Trial 2'!AV10,'Trial 3'!AV10,'Trial 4'!AV10,'Trial 5'!AV10,'Trial 6'!AV10,'Trial 7'!AV10,'Trial 8'!AV10)","v":{"v":9171012.04212008,"d":"$9,171,012"}},{"$f":"SUM('Trial 1'!AW10,'Trial 2'!AW10,'Trial 3'!AW10,'Trial 4'!AW10,'Trial 5'!AW10,'Trial 6'!AW10,'Trial 7'!AW10,'Trial 8'!AW10)","v":{"v":9167237.21096529,"d":"$9,167,237"}},{"$f":"SUM('Trial 1'!AX10,'Trial 2'!AX10,'Trial 3'!AX10,'Trial 4'!AX10,'Trial 5'!AX10,'Trial 6'!AX10,'Trial 7'!AX10,'Trial 8'!AX10)","v":{"v":9163194.922485845,"d":"$9,163,195"}},{"$f":"SUM('Trial 1'!AY10,'Trial 2'!AY10,'Trial 3'!AY10,'Trial 4'!AY10,'Trial 5'!AY10,'Trial 6'!AY10,'Trial 7'!AY10,'Trial 8'!AY10)","v":{"v":9159311.065344073,"d":"$9,159,311"}},{"$f":"SUM('Trial 1'!AZ10,'Trial 2'!AZ10,'Trial 3'!AZ10,'Trial 4'!AZ10,'Trial 5'!AZ10,'Trial 6'!AZ10,'Trial 7'!AZ10,'Trial 8'!AZ10)","v":{"v":9155542.156329555,"d":"$9,155,542"}},{"$f":"SUM(AO188:AZ188)","v":{"v":110119540.13424234,"d":"$110,119,540"}},{"$f":"SUM('Trial 1'!BB10,'Trial 2'!BB10,'Trial 3'!BB10,'Trial 4'!BB10,'Trial 5'!BB10,'Trial 6'!BB10,'Trial 7'!BB10,'Trial 8'!BB10)","v":{"v":9151433.6483858,"d":"$9,151,434"}},{"$f":"SUM('Trial 1'!BC10,'Trial 2'!BC10,'Trial 3'!BC10,'Trial 4'!BC10,'Trial 5'!BC10,'Trial 6'!BC10,'Trial 7'!BC10,'Trial 8'!BC10)","v":{"v":9147368.128674982,"d":"$9,147,368"}},{"$f":"SUM('Trial 1'!BD10,'Trial 2'!BD10,'Trial 3'!BD10,'Trial 4'!BD10,'Trial 5'!BD10,'Trial 6'!BD10,'Trial 7'!BD10,'Trial 8'!BD10)","v":{"v":9143485.837021852,"d":"$9,143,486"}},{"$f":"SUM('Trial 1'!BE10,'Trial 2'!BE10,'Trial 3'!BE10,'Trial 4'!BE10,'Trial 5'!BE10,'Trial 6'!BE10,'Trial 7'!BE10,'Trial 8'!BE10)","v":{"v":9139682.803720772,"d":"$9,139,683"}},{"$f":"SUM('Trial 1'!BF10,'Trial 2'!BF10,'Trial 3'!BF10,'Trial 4'!BF10,'Trial 5'!BF10,'Trial 6'!BF10,'Trial 7'!BF10,'Trial 8'!BF10)","v":{"v":9135806.080286203,"d":"$9,135,806"}},{"$f":"SUM('Trial 1'!BG10,'Trial 2'!BG10,'Trial 3'!BG10,'Trial 4'!BG10,'Trial 5'!BG10,'Trial 6'!BG10,'Trial 7'!BG10,'Trial 8'!BG10)","v":{"v":9132088.632420536,"d":"$9,132,089"}},{"$f":"SUM('Trial 1'!BH10,'Trial 2'!BH10,'Trial 3'!BH10,'Trial 4'!BH10,'Trial 5'!BH10,'Trial 6'!BH10,'Trial 7'!BH10,'Trial 8'!BH10)","v":{"v":9128371.322711667,"d":"$9,128,371"}},{"$f":"SUM('Trial 1'!BI10,'Trial 2'!BI10,'Trial 3'!BI10,'Trial 4'!BI10,'Trial 5'!BI10,'Trial 6'!BI10,'Trial 7'!BI10,'Trial 8'!BI10)","v":{"v":9124284.549411856,"d":"$9,124,285"}},{"$f":"SUM('Trial 1'!BJ10,'Trial 2'!BJ10,'Trial 3'!BJ10,'Trial 4'!BJ10,'Trial 5'!BJ10,'Trial 6'!BJ10,'Trial 7'!BJ10,'Trial 8'!BJ10)","v":{"v":9120350.521198979,"d":"$9,120,351"}},{"$f":"SUM('Trial 1'!BK10,'Trial 2'!BK10,'Trial 3'!BK10,'Trial 4'!BK10,'Trial 5'!BK10,'Trial 6'!BK10,'Trial 7'!BK10,'Trial 8'!BK10)","v":{"v":9116673.288241586,"d":"$9,116,673"}},{"$f":"SUM('Trial 1'!BL10,'Trial 2'!BL10,'Trial 3'!BL10,'Trial 4'!BL10,'Trial 5'!BL10,'Trial 6'!BL10,'Trial 7'!BL10,'Trial 8'!BL10)","v":{"v":9112789.945947034,"d":"$9,112,790"}},{"$f":"SUM('Trial 1'!BM10,'Trial 2'!BM10,'Trial 3'!BM10,'Trial 4'!BM10,'Trial 5'!BM10,'Trial 6'!BM10,'Trial 7'!BM10,'Trial 8'!BM10)","v":{"v":9109119.644932082,"d":"$9,109,120"}},{"$f":"SUM(BB188:BM188)","v":{"v":109561454.40295334,"d":"$109,561,454"}},{"$f":"SUM('Trial 1'!BO10,'Trial 2'!BO10,'Trial 3'!BO10,'Trial 4'!BO10,'Trial 5'!BO10,'Trial 6'!BO10,'Trial 7'!BO10,'Trial 8'!BO10)","v":{"v":9105271.686523002,"d":"$9,105,272"}},{"$f":"SUM('Trial 1'!BP10,'Trial 2'!BP10,'Trial 3'!BP10,'Trial 4'!BP10,'Trial 5'!BP10,'Trial 6'!BP10,'Trial 7'!BP10,'Trial 8'!BP10)","v":{"v":9101404.317019654,"d":"$9,101,404"}},{"$f":"SUM('Trial 1'!BQ10,'Trial 2'!BQ10,'Trial 3'!BQ10,'Trial 4'!BQ10,'Trial 5'!BQ10,'Trial 6'!BQ10,'Trial 7'!BQ10,'Trial 8'!BQ10)","v":{"v":9097655.40501121,"d":"$9,097,655"}},{"$f":"SUM('Trial 1'!BR10,'Trial 2'!BR10,'Trial 3'!BR10,'Trial 4'!BR10,'Trial 5'!BR10,'Trial 6'!BR10,'Trial 7'!BR10,'Trial 8'!BR10)","v":{"v":9094102.790249445,"d":"$9,094,103"}},{"$f":"SUM('Trial 1'!BS10,'Trial 2'!BS10,'Trial 3'!BS10,'Trial 4'!BS10,'Trial 5'!BS10,'Trial 6'!BS10,'Trial 7'!BS10,'Trial 8'!BS10)","v":{"v":9090487.534547474,"d":"$9,090,488"}},{"$f":"SUM('Trial 1'!BT10,'Trial 2'!BT10,'Trial 3'!BT10,'Trial 4'!BT10,'Trial 5'!BT10,'Trial 6'!BT10,'Trial 7'!BT10,'Trial 8'!BT10)","v":{"v":9086559.894097188,"d":"$9,086,560"}},{"$f":"SUM('Trial 1'!BU10,'Trial 2'!BU10,'Trial 3'!BU10,'Trial 4'!BU10,'Trial 5'!BU10,'Trial 6'!BU10,'Trial 7'!BU10,'Trial 8'!BU10)","v":{"v":9083106.260460502,"d":"$9,083,106"}},{"$f":"SUM('Trial 1'!BV10,'Trial 2'!BV10,'Trial 3'!BV10,'Trial 4'!BV10,'Trial 5'!BV10,'Trial 6'!BV10,'Trial 7'!BV10,'Trial 8'!BV10)","v":{"v":9079151.89558132,"d":"$9,079,152"}},{"$f":"SUM('Trial 1'!BW10,'Trial 2'!BW10,'Trial 3'!BW10,'Trial 4'!BW10,'Trial 5'!BW10,'Trial 6'!BW10,'Trial 7'!BW10,'Trial 8'!BW10)","v":{"v":9075318.566734126,"d":"$9,075,319"}},{"$f":"SUM('Trial 1'!BX10,'Trial 2'!BX10,'Trial 3'!BX10,'Trial 4'!BX10,'Trial 5'!BX10,'Trial 6'!BX10,'Trial 7'!BX10,'Trial 8'!BX10)","v":{"v":9071795.584134376,"d":"$9,071,796"}},{"$f":"SUM('Trial 1'!BY10,'Trial 2'!BY10,'Trial 3'!BY10,'Trial 4'!BY10,'Trial 5'!BY10,'Trial 6'!BY10,'Trial 7'!BY10,'Trial 8'!BY10)","v":{"v":9067825.56983521,"d":"$9,067,826"}},{"$f":"SUM('Trial 1'!BZ10,'Trial 2'!BZ10,'Trial 3'!BZ10,'Trial 4'!BZ10,'Trial 5'!BZ10,'Trial 6'!BZ10,'Trial 7'!BZ10,'Trial 8'!BZ10)","v":{"v":9064256.05251625,"d":"$9,064,256"}},{"$f":"SUM(BO188:BZ188)","v":{"v":109016935.55670975,"d":"$109,016,936"}},{"$f":"SUM('Trial 1'!CB10,'Trial 2'!CB10,'Trial 3'!CB10,'Trial 4'!CB10,'Trial 5'!CB10,'Trial 6'!CB10,'Trial 7'!CB10,'Trial 8'!CB10)","v":{"v":9060487.985614775,"d":"$9,060,488"}},{"$f":"SUM('Trial 1'!CC10,'Trial 2'!CC10,'Trial 3'!CC10,'Trial 4'!CC10,'Trial 5'!CC10,'Trial 6'!CC10,'Trial 7'!CC10,'Trial 8'!CC10)","v":{"v":9056660.956501594,"d":"$9,056,661"}},{"$f":"SUM('Trial 1'!CD10,'Trial 2'!CD10,'Trial 3'!CD10,'Trial 4'!CD10,'Trial 5'!CD10,'Trial 6'!CD10,'Trial 7'!CD10,'Trial 8'!CD10)","v":{"v":9052793.744416583,"d":"$9,052,794"}},{"$f":"SUM('Trial 1'!CE10,'Trial 2'!CE10,'Trial 3'!CE10,'Trial 4'!CE10,'Trial 5'!CE10,'Trial 6'!CE10,'Trial 7'!CE10,'Trial 8'!CE10)","v":{"v":9049142.66691605,"d":"$9,049,143"}},{"$f":"SUM('Trial 1'!CF10,'Trial 2'!CF10,'Trial 3'!CF10,'Trial 4'!CF10,'Trial 5'!CF10,'Trial 6'!CF10,'Trial 7'!CF10,'Trial 8'!CF10)","v":{"v":9045164.30156501,"d":"$9,045,164"}},{"$f":"SUM('Trial 1'!CG10,'Trial 2'!CG10,'Trial 3'!CG10,'Trial 4'!CG10,'Trial 5'!CG10,'Trial 6'!CG10,'Trial 7'!CG10,'Trial 8'!CG10)","v":{"v":9041355.50886188,"d":"$9,041,356"}},{"$f":"SUM('Trial 1'!CH10,'Trial 2'!CH10,'Trial 3'!CH10,'Trial 4'!CH10,'Trial 5'!CH10,'Trial 6'!CH10,'Trial 7'!CH10,'Trial 8'!CH10)","v":{"v":9038089.872640852,"d":"$9,038,090"}},{"$f":"SUM('Trial 1'!CI10,'Trial 2'!CI10,'Trial 3'!CI10,'Trial 4'!CI10,'Trial 5'!CI10,'Trial 6'!CI10,'Trial 7'!CI10,'Trial 8'!CI10)","v":{"v":9034384.105467785,"d":"$9,034,384"}},{"$f":"SUM('Trial 1'!CJ10,'Trial 2'!CJ10,'Trial 3'!CJ10,'Trial 4'!CJ10,'Trial 5'!CJ10,'Trial 6'!CJ10,'Trial 7'!CJ10,'Trial 8'!CJ10)","v":{"v":9030786.004212318,"d":"$9,030,786"}},{"$f":"SUM('Trial 1'!CK10,'Trial 2'!CK10,'Trial 3'!CK10,'Trial 4'!CK10,'Trial 5'!CK10,'Trial 6'!CK10,'Trial 7'!CK10,'Trial 8'!CK10)","v":{"v":9027111.697642822,"d":"$9,027,112"}},{"$f":"SUM('Trial 1'!CL10,'Trial 2'!CL10,'Trial 3'!CL10,'Trial 4'!CL10,'Trial 5'!CL10,'Trial 6'!CL10,'Trial 7'!CL10,'Trial 8'!CL10)","v":{"v":9023690.716260694,"d":"$9,023,691"}},{"$f":"SUM('Trial 1'!CM10,'Trial 2'!CM10,'Trial 3'!CM10,'Trial 4'!CM10,'Trial 5'!CM10,'Trial 6'!CM10,'Trial 7'!CM10,'Trial 8'!CM10)","v":{"v":9019881.871101338,"d":"$9,019,882"}},{"$f":"SUM(CB188:CM188)","v":{"v":108479549.43120168,"d":"$108,479,549"}},{"$f":"SUM('Trial 1'!CO10,'Trial 2'!CO10,'Trial 3'!CO10,'Trial 4'!CO10,'Trial 5'!CO10,'Trial 6'!CO10,'Trial 7'!CO10,'Trial 8'!CO10)","v":{"v":9016419.085307848,"d":"$9,016,419"}},{"$f":"SUM('Trial 1'!CP10,'Trial 2'!CP10,'Trial 3'!CP10,'Trial 4'!CP10,'Trial 5'!CP10,'Trial 6'!CP10,'Trial 7'!CP10,'Trial 8'!CP10)","v":{"v":9012798.535792537,"d":"$9,012,799"}},{"$f":"SUM('Trial 1'!CQ10,'Trial 2'!CQ10,'Trial 3'!CQ10,'Trial 4'!CQ10,'Trial 5'!CQ10,'Trial 6'!CQ10,'Trial 7'!CQ10,'Trial 8'!CQ10)","v":{"v":9009192.606853217,"d":"$9,009,193"}},{"$f":"SUM('Trial 1'!CR10,'Trial 2'!CR10,'Trial 3'!CR10,'Trial 4'!CR10,'Trial 5'!CR10,'Trial 6'!CR10,'Trial 7'!CR10,'Trial 8'!CR10)","v":{"v":9005559.324731398,"d":"$9,005,559"}},{"$f":"SUM('Trial 1'!CS10,'Trial 2'!CS10,'Trial 3'!CS10,'Trial 4'!CS10,'Trial 5'!CS10,'Trial 6'!CS10,'Trial 7'!CS10,'Trial 8'!CS10)","v":{"v":9001820.106243223,"d":"$9,001,820"}},{"$f":"SUM('Trial 1'!CT10,'Trial 2'!CT10,'Trial 3'!CT10,'Trial 4'!CT10,'Trial 5'!CT10,'Trial 6'!CT10,'Trial 7'!CT10,'Trial 8'!CT10)","v":{"v":8997670.178744283,"d":"$8,997,670"}},{"$f":"SUM('Trial 1'!CU10,'Trial 2'!CU10,'Trial 3'!CU10,'Trial 4'!CU10,'Trial 5'!CU10,'Trial 6'!CU10,'Trial 7'!CU10,'Trial 8'!CU10)","v":{"v":8993713.320845107,"d":"$8,993,713"}},{"$f":"SUM('Trial 1'!CV10,'Trial 2'!CV10,'Trial 3'!CV10,'Trial 4'!CV10,'Trial 5'!CV10,'Trial 6'!CV10,'Trial 7'!CV10,'Trial 8'!CV10)","v":{"v":8990391.592655523,"d":"$8,990,392"}},{"$f":"SUM('Trial 1'!CW10,'Trial 2'!CW10,'Trial 3'!CW10,'Trial 4'!CW10,'Trial 5'!CW10,'Trial 6'!CW10,'Trial 7'!CW10,'Trial 8'!CW10)","v":{"v":8986563.245251905,"d":"$8,986,563"}},{"$f":"SUM('Trial 1'!CX10,'Trial 2'!CX10,'Trial 3'!CX10,'Trial 4'!CX10,'Trial 5'!CX10,'Trial 6'!CX10,'Trial 7'!CX10,'Trial 8'!CX10)","v":{"v":8982772.506500367,"d":"$8,982,773"}},{"$f":"SUM('Trial 1'!CY10,'Trial 2'!CY10,'Trial 3'!CY10,'Trial 4'!CY10,'Trial 5'!CY10,'Trial 6'!CY10,'Trial 7'!CY10,'Trial 8'!CY10)","v":{"v":8978903.810925378,"d":"$8,978,904"}},{"$f":"SUM('Trial 1'!CZ10,'Trial 2'!CZ10,'Trial 3'!CZ10,'Trial 4'!CZ10,'Trial 5'!CZ10,'Trial 6'!CZ10,'Trial 7'!CZ10,'Trial 8'!CZ10)","v":{"v":8975283.375078334,"d":"$8,975,283"}},{"$f":"SUM(CO188:CZ188)","v":{"v":107951087.68892911,"d":"$107,951,088"}},{"$f":"SUM('Trial 1'!DB10,'Trial 2'!DB10,'Trial 3'!DB10,'Trial 4'!DB10,'Trial 5'!DB10,'Trial 6'!DB10,'Trial 7'!DB10,'Trial 8'!DB10)","v":{"v":8971447.4542442,"d":"$8,971,447"}},{"$f":"SUM('Trial 1'!DC10,'Trial 2'!DC10,'Trial 3'!DC10,'Trial 4'!DC10,'Trial 5'!DC10,'Trial 6'!DC10,'Trial 7'!DC10,'Trial 8'!DC10)","v":{"v":8967870.056249216,"d":"$8,967,870"}},{"$f":"SUM('Trial 1'!DD10,'Trial 2'!DD10,'Trial 3'!DD10,'Trial 4'!DD10,'Trial 5'!DD10,'Trial 6'!DD10,'Trial 7'!DD10,'Trial 8'!DD10)","v":{"v":8963893.329884563,"d":"$8,963,893"}},{"$f":"SUM('Trial 1'!DE10,'Trial 2'!DE10,'Trial 3'!DE10,'Trial 4'!DE10,'Trial 5'!DE10,'Trial 6'!DE10,'Trial 7'!DE10,'Trial 8'!DE10)","v":{"v":8960049.028608445,"d":"$8,960,049"}},{"$f":"SUM('Trial 1'!DF10,'Trial 2'!DF10,'Trial 3'!DF10,'Trial 4'!DF10,'Trial 5'!DF10,'Trial 6'!DF10,'Trial 7'!DF10,'Trial 8'!DF10)","v":{"v":8956426.22438241,"d":"$8,956,426"}},{"$f":"SUM('Trial 1'!DG10,'Trial 2'!DG10,'Trial 3'!DG10,'Trial 4'!DG10,'Trial 5'!DG10,'Trial 6'!DG10,'Trial 7'!DG10,'Trial 8'!DG10)","v":{"v":8952668.661987023,"d":"$8,952,669"}},{"$f":"SUM('Trial 1'!DH10,'Trial 2'!DH10,'Trial 3'!DH10,'Trial 4'!DH10,'Trial 5'!DH10,'Trial 6'!DH10,'Trial 7'!DH10,'Trial 8'!DH10)","v":{"v":8948852.220542582,"d":"$8,948,852"}},{"$f":"SUM('Trial 1'!DI10,'Trial 2'!DI10,'Trial 3'!DI10,'Trial 4'!DI10,'Trial 5'!DI10,'Trial 6'!DI10,'Trial 7'!DI10,'Trial 8'!DI10)","v":{"v":8944996.243423225,"d":"$8,944,996"}},{"$f":"SUM('Trial 1'!DJ10,'Trial 2'!DJ10,'Trial 3'!DJ10,'Trial 4'!DJ10,'Trial 5'!DJ10,'Trial 6'!DJ10,'Trial 7'!DJ10,'Trial 8'!DJ10)","v":{"v":8941080.900644809,"d":"$8,941,081"}},{"$f":"SUM('Trial 1'!DK10,'Trial 2'!DK10,'Trial 3'!DK10,'Trial 4'!DK10,'Trial 5'!DK10,'Trial 6'!DK10,'Trial 7'!DK10,'Trial 8'!DK10)","v":{"v":8937327.384997204,"d":"$8,937,327"}},{"$f":"SUM('Trial 1'!DL10,'Trial 2'!DL10,'Trial 3'!DL10,'Trial 4'!DL10,'Trial 5'!DL10,'Trial 6'!DL10,'Trial 7'!DL10,'Trial 8'!DL10)","v":{"v":8933531.420892559,"d":"$8,933,531"}},{"$f":"SUM('Trial 1'!DM10,'Trial 2'!DM10,'Trial 3'!DM10,'Trial 4'!DM10,'Trial 5'!DM10,'Trial 6'!DM10,'Trial 7'!DM10,'Trial 8'!DM10)","v":{"v":8929601.031741137,"d":"$8,929,601"}},{"$f":"SUM(DB188:DM188)","v":{"v":107407743.95759737,"d":"$107,407,744"}},{"$f":"SUM('Trial 1'!DO10,'Trial 2'!DO10,'Trial 3'!DO10,'Trial 4'!DO10,'Trial 5'!DO10,'Trial 6'!DO10,'Trial 7'!DO10,'Trial 8'!DO10)","v":{"v":8925728.419920592,"d":"$8,925,728"}},{"$f":"SUM('Trial 1'!DP10,'Trial 2'!DP10,'Trial 3'!DP10,'Trial 4'!DP10,'Trial 5'!DP10,'Trial 6'!DP10,'Trial 7'!DP10,'Trial 8'!DP10)","v":{"v":8922160.061714701,"d":"$8,922,160"}},{"$f":"SUM('Trial 1'!DQ10,'Trial 2'!DQ10,'Trial 3'!DQ10,'Trial 4'!DQ10,'Trial 5'!DQ10,'Trial 6'!DQ10,'Trial 7'!DQ10,'Trial 8'!DQ10)","v":{"v":8918297.492200688,"d":"$8,918,297"}},{"$f":"SUM('Trial 1'!DR10,'Trial 2'!DR10,'Trial 3'!DR10,'Trial 4'!DR10,'Trial 5'!DR10,'Trial 6'!DR10,'Trial 7'!DR10,'Trial 8'!DR10)","v":{"v":8914822.721571654,"d":"$8,914,823"}},{"$f":"SUM('Trial 1'!DS10,'Trial 2'!DS10,'Trial 3'!DS10,'Trial 4'!DS10,'Trial 5'!DS10,'Trial 6'!DS10,'Trial 7'!DS10,'Trial 8'!DS10)","v":{"v":8911119.348845817,"d":"$8,911,119"}},{"$f":"SUM('Trial 1'!DT10,'Trial 2'!DT10,'Trial 3'!DT10,'Trial 4'!DT10,'Trial 5'!DT10,'Trial 6'!DT10,'Trial 7'!DT10,'Trial 8'!DT10)","v":{"v":8907386.049225597,"d":"$8,907,386"}},{"$f":"SUM('Trial 1'!DU10,'Trial 2'!DU10,'Trial 3'!DU10,'Trial 4'!DU10,'Trial 5'!DU10,'Trial 6'!DU10,'Trial 7'!DU10,'Trial 8'!DU10)","v":{"v":8903894.419913583,"d":"$8,903,894"}},{"$f":"SUM('Trial 1'!DV10,'Trial 2'!DV10,'Trial 3'!DV10,'Trial 4'!DV10,'Trial 5'!DV10,'Trial 6'!DV10,'Trial 7'!DV10,'Trial 8'!DV10)","v":{"v":8900245.243097095,"d":"$8,900,245"}},{"$f":"SUM('Trial 1'!DW10,'Trial 2'!DW10,'Trial 3'!DW10,'Trial 4'!DW10,'Trial 5'!DW10,'Trial 6'!DW10,'Trial 7'!DW10,'Trial 8'!DW10)","v":{"v":8896667.456664633,"d":"$8,896,667"}},{"$f":"SUM('Trial 1'!DX10,'Trial 2'!DX10,'Trial 3'!DX10,'Trial 4'!DX10,'Trial 5'!DX10,'Trial 6'!DX10,'Trial 7'!DX10,'Trial 8'!DX10)","v":{"v":8892986.921705354,"d":"$8,892,987"}},{"$f":"SUM('Trial 1'!DY10,'Trial 2'!DY10,'Trial 3'!DY10,'Trial 4'!DY10,'Trial 5'!DY10,'Trial 6'!DY10,'Trial 7'!DY10,'Trial 8'!DY10)","v":{"v":8889268.58930894,"d":"$8,889,269"}},{"$f":"SUM('Trial 1'!DZ10,'Trial 2'!DZ10,'Trial 3'!DZ10,'Trial 4'!DZ10,'Trial 5'!DZ10,'Trial 6'!DZ10,'Trial 7'!DZ10,'Trial 8'!DZ10)","v":{"v":8885572.796056895,"d":"$8,885,573"}},{"$f":"SUM(DO188:DZ188)","v":{"v":106868149.52022555,"d":"$106,868,150"}},{"$f":"SUM('Trial 1'!EB10,'Trial 2'!EB10,'Trial 3'!EB10,'Trial 4'!EB10,'Trial 5'!EB10,'Trial 6'!EB10,'Trial 7'!EB10,'Trial 8'!EB10)","v":{"v":8881562.19098809,"d":"$8,881,562"}},{"$f":"SUM('Trial 1'!EC10,'Trial 2'!EC10,'Trial 3'!EC10,'Trial 4'!EC10,'Trial 5'!EC10,'Trial 6'!EC10,'Trial 7'!EC10,'Trial 8'!EC10)","v":{"v":8877952.136797944,"d":"$8,877,952"}},{"$f":"SUM('Trial 1'!ED10,'Trial 2'!ED10,'Trial 3'!ED10,'Trial 4'!ED10,'Trial 5'!ED10,'Trial 6'!ED10,'Trial 7'!ED10,'Trial 8'!ED10)","v":{"v":8873975.350069076,"d":"$8,873,975"}},{"$f":"SUM('Trial 1'!EE10,'Trial 2'!EE10,'Trial 3'!EE10,'Trial 4'!EE10,'Trial 5'!EE10,'Trial 6'!EE10,'Trial 7'!EE10,'Trial 8'!EE10)","v":{"v":8870111.5124358,"d":"$8,870,112"}},{"$f":"SUM('Trial 1'!EF10,'Trial 2'!EF10,'Trial 3'!EF10,'Trial 4'!EF10,'Trial 5'!EF10,'Trial 6'!EF10,'Trial 7'!EF10,'Trial 8'!EF10)","v":{"v":8866418.736952122,"d":"$8,866,419"}},{"$f":"SUM('Trial 1'!EG10,'Trial 2'!EG10,'Trial 3'!EG10,'Trial 4'!EG10,'Trial 5'!EG10,'Trial 6'!EG10,'Trial 7'!EG10,'Trial 8'!EG10)","v":{"v":8862759.928836226,"d":"$8,862,760"}},{"$f":"SUM('Trial 1'!EH10,'Trial 2'!EH10,'Trial 3'!EH10,'Trial 4'!EH10,'Trial 5'!EH10,'Trial 6'!EH10,'Trial 7'!EH10,'Trial 8'!EH10)","v":{"v":8858848.074729403,"d":"$8,858,848"}},{"$f":"SUM('Trial 1'!EI10,'Trial 2'!EI10,'Trial 3'!EI10,'Trial 4'!EI10,'Trial 5'!EI10,'Trial 6'!EI10,'Trial 7'!EI10,'Trial 8'!EI10)","v":{"v":8855014.998711912,"d":"$8,855,015"}},{"$f":"SUM('Trial 1'!EJ10,'Trial 2'!EJ10,'Trial 3'!EJ10,'Trial 4'!EJ10,'Trial 5'!EJ10,'Trial 6'!EJ10,'Trial 7'!EJ10,'Trial 8'!EJ10)","v":{"v":8850839.337409405,"d":"$8,850,839"}},{"$f":"SUM('Trial 1'!EK10,'Trial 2'!EK10,'Trial 3'!EK10,'Trial 4'!EK10,'Trial 5'!EK10,'Trial 6'!EK10,'Trial 7'!EK10,'Trial 8'!EK10)","v":{"v":8847013.588658901,"d":"$8,847,014"}},{"$f":"SUM('Trial 1'!EL10,'Trial 2'!EL10,'Trial 3'!EL10,'Trial 4'!EL10,'Trial 5'!EL10,'Trial 6'!EL10,'Trial 7'!EL10,'Trial 8'!EL10)","v":{"v":8843393.243030641,"d":"$8,843,393"}},{"$f":"SUM('Trial 1'!EM10,'Trial 2'!EM10,'Trial 3'!EM10,'Trial 4'!EM10,'Trial 5'!EM10,'Trial 6'!EM10,'Trial 7'!EM10,'Trial 8'!EM10)","v":{"v":8839524.062896278,"d":"$8,839,524"}},{"$f":"SUM(EB188:EM188)","v":{"v":106327413.1615158,"d":"$106,327,413"}}]
[{"$f":"Labels!B87","v":"Time"}]
[null,{"$f":"ZZZ__FnCalls!F7","v":"Jan 2010"},{"$f":"ZZZ__FnCalls!F8","v":"Feb 2010"},{"$f":"ZZZ__FnCalls!F9","v":"Mar 2010"},{"$f":"ZZZ__FnCalls!F10","v":"Apr 2010"},{"$f":"ZZZ__FnCalls!F11","v":"May 2010"},{"$f":"ZZZ__FnCalls!F12","v":"Jun 2010"},{"$f":"ZZZ__FnCalls!F13","v":"Jul 2010"},{"$f":"ZZZ__FnCalls!F14","v":"Aug 2010"},{"$f":"ZZZ__FnCalls!F15","v":"Sep 2010"},{"$f":"ZZZ__FnCalls!F16","v":"Oct 2010"},{"$f":"ZZZ__FnCalls!F17","v":"Nov 2010"},{"$f":"ZZZ__FnCalls!F18","v":"Dec 2010"},{"$f":"ZZZ__FnCalls!H7","v":"2010"},{"$f":"ZZZ__FnCalls!F19","v":"Jan 2011"},{"$f":"ZZZ__FnCalls!F20","v":"Feb 2011"},{"$f":"ZZZ__FnCalls!F21","v":"Mar 2011"},{"$f":"ZZZ__FnCalls!F22","v":"Apr 2011"},{"$f":"ZZZ__FnCalls!F23","v":"May 2011"},{"$f":"ZZZ__FnCalls!F24","v":"Jun 2011"},{"$f":"ZZZ__FnCalls!F25","v":"Jul 2011"},{"$f":"ZZZ__FnCalls!F26","v":"Aug 2011"},{"$f":"ZZZ__FnCalls!F27","v":"Sep 2011"},{"$f":"ZZZ__FnCalls!F28","v":"Oct 2011"},{"$f":"ZZZ__FnCalls!F29","v":"Nov 2011"},{"$f":"ZZZ__FnCalls!F30","v":"Dec 2011"},{"$f":"ZZZ__FnCalls!H19","v":"2011"},{"$f":"ZZZ__FnCalls!F31","v":"Jan 2012"},{"$f":"ZZZ__FnCalls!F32","v":"Feb 2012"},{"$f":"ZZZ__FnCalls!F33","v":"Mar 2012"},{"$f":"ZZZ__FnCalls!F34","v":"Apr 2012"},{"$f":"ZZZ__FnCalls!F35","v":"May 2012"},{"$f":"ZZZ__FnCalls!F36","v":"Jun 2012"},{"$f":"ZZZ__FnCalls!F37","v":"Jul 2012"},{"$f":"ZZZ__FnCalls!F38","v":"Aug 2012"},{"$f":"ZZZ__FnCalls!F39","v":"Sep 2012"},{"$f":"ZZZ__FnCalls!F40","v":"Oct 2012"},{"$f":"ZZZ__FnCalls!F41","v":"Nov 2012"},{"$f":"ZZZ__FnCalls!F42","v":"Dec 2012"},{"$f":"ZZZ__FnCalls!H31","v":"2012"},{"$f":"ZZZ__FnCalls!F43","v":"Jan 2013"},{"$f":"ZZZ__FnCalls!F44","v":"Feb 2013"},{"$f":"ZZZ__FnCalls!F45","v":"Mar 2013"},{"$f":"ZZZ__FnCalls!F46","v":"Apr 2013"},{"$f":"ZZZ__FnCalls!F47","v":"May 2013"},{"$f":"ZZZ__FnCalls!F48","v":"Jun 2013"},{"$f":"ZZZ__FnCalls!F49","v":"Jul 2013"},{"$f":"ZZZ__FnCalls!F50","v":"Aug 2013"},{"$f":"ZZZ__FnCalls!F51","v":"Sep 2013"},{"$f":"ZZZ__FnCalls!F52","v":"Oct 2013"},{"$f":"ZZZ__FnCalls!F53","v":"Nov 2013"},{"$f":"ZZZ__FnCalls!F54","v":"Dec 2013"},{"$f":"ZZZ__FnCalls!H43","v":"2013"},{"$f":"ZZZ__FnCalls!F55","v":"Jan 2014"},{"$f":"ZZZ__FnCalls!F56","v":"Feb 2014"},{"$f":"ZZZ__FnCalls!F57","v":"Mar 2014"},{"$f":"ZZZ__FnCalls!F58","v":"Apr 2014"},{"$f":"ZZZ__FnCalls!F59","v":"May 2014"},{"$f":"ZZZ__FnCalls!F60","v":"Jun 2014"},{"$f":"ZZZ__FnCalls!F61","v":"Jul 2014"},{"$f":"ZZZ__FnCalls!F62","v":"Aug 2014"},{"$f":"ZZZ__FnCalls!F63","v":"Sep 2014"},{"$f":"ZZZ__FnCalls!F64","v":"Oct 2014"},{"$f":"ZZZ__FnCalls!F65","v":"Nov 2014"},{"$f":"ZZZ__FnCalls!F66","v":"Dec 2014"},{"$f":"ZZZ__FnCalls!H55","v":"2014"},{"$f":"ZZZ__FnCalls!F67","v":"Jan 2015"},{"$f":"ZZZ__FnCalls!F68","v":"Feb 2015"},{"$f":"ZZZ__FnCalls!F69","v":"Mar 2015"},{"$f":"ZZZ__FnCalls!F70","v":"Apr 2015"},{"$f":"ZZZ__FnCalls!F71","v":"May 2015"},{"$f":"ZZZ__FnCalls!F72","v":"Jun 2015"},{"$f":"ZZZ__FnCalls!F73","v":"Jul 2015"},{"$f":"ZZZ__FnCalls!F74","v":"Aug 2015"},{"$f":"ZZZ__FnCalls!F75","v":"Sep 2015"},{"$f":"ZZZ__FnCalls!F76","v":"Oct 2015"},{"$f":"ZZZ__FnCalls!F77","v":"Nov 2015"},{"$f":"ZZZ__FnCalls!F78","v":"Dec 2015"},{"$f":"ZZZ__FnCalls!H67","v":"2015"},{"$f":"ZZZ__FnCalls!F79","v":"Jan 2016"},{"$f":"ZZZ__FnCalls!F80","v":"Feb 2016"},{"$f":"ZZZ__FnCalls!F81","v":"Mar 2016"},{"$f":"ZZZ__FnCalls!F82","v":"Apr 2016"},{"$f":"ZZZ__FnCalls!F83","v":"May 2016"},{"$f":"ZZZ__FnCalls!F84","v":"Jun 2016"},{"$f":"ZZZ__FnCalls!F85","v":"Jul 2016"},{"$f":"ZZZ__FnCalls!F86","v":"Aug 2016"},{"$f":"ZZZ__FnCalls!F87","v":"Sep 2016"},{"$f":"ZZZ__FnCalls!F88","v":"Oct 2016"},{"$f":"ZZZ__FnCalls!F89","v":"Nov 2016"},{"$f":"ZZZ__FnCalls!F90","v":"Dec 2016"},{"$f":"ZZZ__FnCalls!H79","v":"2016"},{"$f":"ZZZ__FnCalls!F91","v":"Jan 2017"},{"$f":"ZZZ__FnCalls!F92","v":"Feb 2017"},{"$f":"ZZZ__FnCalls!F93","v":"Mar 2017"},{"$f":"ZZZ__FnCalls!F94","v":"Apr 2017"},{"$f":"ZZZ__FnCalls!F95","v":"May 2017"},{"$f":"ZZZ__FnCalls!F96","v":"Jun 2017"},{"$f":"ZZZ__FnCalls!F97","v":"Jul 2017"},{"$f":"ZZZ__FnCalls!F98","v":"Aug 2017"},{"$f":"ZZZ__FnCalls!F99","v":"Sep 2017"},{"$f":"ZZZ__FnCalls!F100","v":"Oct 2017"},{"$f":"ZZZ__FnCalls!F101","v":"Nov 2017"},{"$f":"ZZZ__FnCalls!F102","v":"Dec 2017"},{"$f":"ZZZ__FnCalls!H91","v":"2017"},{"$f":"ZZZ__FnCalls!F103","v":"Jan 2018"},{"$f":"ZZZ__FnCalls!F104","v":"Feb 2018"},{"$f":"ZZZ__FnCalls!F105","v":"Mar 2018"},{"$f":"ZZZ__FnCalls!F106","v":"Apr 2018"},{"$f":"ZZZ__FnCalls!F107","v":"May 2018"},{"$f":"ZZZ__FnCalls!F108","v":"Jun 2018"},{"$f":"ZZZ__FnCalls!F109","v":"Jul 2018"},{"$f":"ZZZ__FnCalls!F110","v":"Aug 2018"},{"$f":"ZZZ__FnCalls!F111","v":"Sep 2018"},{"$f":"ZZZ__FnCalls!F112","v":"Oct 2018"},{"$f":"ZZZ__FnCalls!F113","v":"Nov 2018"},{"$f":"ZZZ__FnCalls!F114","v":"Dec 2018"},{"$f":"ZZZ__FnCalls!H103","v":"2018"},{"$f":"ZZZ__FnCalls!F115","v":"Jan 2019"},{"$f":"ZZZ__FnCalls!F116","v":"Feb 2019"},{"$f":"ZZZ__FnCalls!F117","v":"Mar 2019"},{"$f":"ZZZ__FnCalls!F118","v":"Apr 2019"},{"$f":"ZZZ__FnCalls!F119","v":"May 2019"},{"$f":"ZZZ__FnCalls!F120","v":"Jun 2019"},{"$f":"ZZZ__FnCalls!F121","v":"Jul 2019"},{"$f":"ZZZ__FnCalls!F122","v":"Aug 2019"},{"$f":"ZZZ__FnCalls!F123","v":"Sep 2019"},{"$f":"ZZZ__FnCalls!F124","v":"Oct 2019"},{"$f":"ZZZ__FnCalls!F125","v":"Nov 2019"},{"$f":"ZZZ__FnCalls!F126","v":"Dec 2019"},{"$f":"ZZZ__FnCalls!H115","v":"2019"},{"$f":"ZZZ__FnCalls!F127","v":"Jan 2020"},{"$f":"ZZZ__FnCalls!F128","v":"Feb 2020"},{"$f":"ZZZ__FnCalls!F129","v":"Mar 2020"},{"$f":"ZZZ__FnCalls!F130","v":"Apr 2020"},{"$f":"ZZZ__FnCalls!F131","v":"May 2020"},{"$f":"ZZZ__FnCalls!F132","v":"Jun 2020"},{"$f":"ZZZ__FnCalls!F133","v":"Jul 2020"},{"$f":"ZZZ__FnCalls!F134","v":"Aug 2020"},{"$f":"ZZZ__FnCalls!F135","v":"Sep 2020"},{"$f":"ZZZ__FnCalls!F136","v":"Oct 2020"},{"$f":"ZZZ__FnCalls!F137","v":"Nov 2020"},{"$f":"ZZZ__FnCalls!F138","v":"Dec 2020"},{"$f":"ZZZ__FnCalls!H127","v":"2020"}]
[null,{"$f":"0+1/12","v":{"v":0.08333333333333333,"d":"0.08"}},{"$f":"B191+1/12","v":{"v":0.16666666666666666,"d":"0.17"}},0.25,{"v":0.3333333333333333,"d":"0.33"},{"v":0.41666666666666663,"d":"0.42"},{"v":0.49999999999999994,"d":"0.50"},{"v":0.5833333333333333,"d":"0.58"},{"v":0.6666666666666666,"d":"0.67"},0.75,{"v":0.8333333333333334,"d":"0.83"},{"v":0.9166666666666667,"d":"0.92"},{"v":1,"d":"1.00"},{"$f":"M191","v":{"v":1,"d":"1.00"}},{"$f":"M191+1/12","v":{"v":1.0833333333333333,"d":"1.08"}},{"$f":"O191+1/12","v":{"v":1.1666666666666665,"d":"1.17"}},{"v":1.2499999999999998,"d":"1.25"},{"v":1.333333333333333,"d":"1.33"},{"v":1.4166666666666663,"d":"1.42"},{"v":1.4999999999999996,"d":"1.50"},{"v":1.5833333333333328,"d":"1.58"},{"v":1.666666666666666,"d":"1.67"},{"v":1.7499999999999993,"d":"1.75"},{"v":1.8333333333333326,"d":"1.83"},{"v":1.9166666666666659,"d":"1.92"},{"v":1.9999999999999991,"d":"2.00"},{"$f":"Z191","v":{"v":1.9999999999999991,"d":"2.00"}},{"$f":"Z191+1/12","v":{"v":2.0833333333333326,"d":"2.08"}},{"$f":"AB191+1/12","v":{"v":2.166666666666666,"d":"2.17"}},{"v":2.2499999999999996,"d":"2.25"},{"v":2.333333333333333,"d":"2.33"},{"v":2.4166666666666665,"d":"2.42"},{"v":2.5,"d":"2.50"},{"v":2.5833333333333335,"d":"2.58"},{"v":2.666666666666667,"d":"2.67"},{"v":2.7500000000000004,"d":"2.75"},{"v":2.833333333333334,"d":"2.83"},{"v":2.9166666666666674,"d":"2.92"},{"v":3.000000000000001,"d":"3.00"},{"$f":"AM191","v":{"v":3.000000000000001,"d":"3.00"}},{"$f":"AM191+1/12","v":{"v":3.0833333333333344,"d":"3.08"}},{"$f":"AO191+1/12","v":{"v":3.166666666666668,"d":"3.17"}},{"v":3.2500000000000013,"d":"3.25"},{"v":3.333333333333335,"d":"3.33"},{"v":3.4166666666666683,"d":"3.42"},{"v":3.5000000000000018,"d":"3.50"},{"v":3.5833333333333353,"d":"3.58"},{"v":3.6666666666666687,"d":"3.67"},{"v":3.750000000000002,"d":"3.75"},{"v":3.8333333333333357,"d":"3.83"},{"v":3.916666666666669,"d":"3.92"},{"v":4.000000000000003,"d":"4.00"},{"$f":"AZ191","v":{"v":4.000000000000003,"d":"4.00"}},{"$f":"AZ191+1/12","v":{"v":4.083333333333336,"d":"4.08"}},{"$f":"BB191+1/12","v":{"v":4.166666666666669,"d":"4.17"}},{"v":4.250000000000002,"d":"4.25"},{"v":4.333333333333335,"d":"4.33"},{"v":4.416666666666668,"d":"4.42"},{"v":4.500000000000001,"d":"4.50"},{"v":4.583333333333334,"d":"4.58"},{"v":4.666666666666667,"d":"4.67"},4.75,{"v":4.833333333333333,"d":"4.83"},{"v":4.916666666666666,"d":"4.92"},{"v":4.999999999999999,"d":"5.00"},{"$f":"BM191","v":{"v":4.999999999999999,"d":"5.00"}},{"$f":"BM191+1/12","v":{"v":5.083333333333332,"d":"5.08"}},{"$f":"BO191+1/12","v":{"v":5.166666666666665,"d":"5.17"}},{"v":5.249999999999998,"d":"5.25"},{"v":5.333333333333331,"d":"5.33"},{"v":5.416666666666664,"d":"5.42"},{"v":5.499999999999997,"d":"5.50"},{"v":5.58333333333333,"d":"5.58"},{"v":5.666666666666663,"d":"5.67"},{"v":5.7499999999999964,"d":"5.75"},{"v":5.8333333333333295,"d":"5.83"},{"v":5.9166666666666625,"d":"5.92"},{"v":5.999999999999996,"d":"6.00"},{"$f":"BZ191","v":{"v":5.999999999999996,"d":"6.00"}},{"$f":"BZ191+1/12","v":{"v":6.083333333333329,"d":"6.08"}},{"$f":"CB191+1/12","v":{"v":6.166666666666662,"d":"6.17"}},{"v":6.249999999999995,"d":"6.25"},{"v":6.333333333333328,"d":"6.33"},{"v":6.416666666666661,"d":"6.42"},{"v":6.499999999999994,"d":"6.50"},{"v":6.583333333333327,"d":"6.58"},{"v":6.66666666666666,"d":"6.67"},{"v":6.749999999999993,"d":"6.75"},{"v":6.833333333333326,"d":"6.83"},{"v":6.916666666666659,"d":"6.92"},{"v":6.999999999999992,"d":"7.00"},{"$f":"CM191","v":{"v":6.999999999999992,"d":"7.00"}},{"$f":"CM191+1/12","v":{"v":7.083333333333325,"d":"7.08"}},{"$f":"CO191+1/12","v":{"v":7.166666666666658,"d":"7.17"}},{"v":7.249999999999991,"d":"7.25"},{"v":7.333333333333324,"d":"7.33"},{"v":7.416666666666657,"d":"7.42"},{"v":7.49999999999999,"d":"7.50"},{"v":7.583333333333323,"d":"7.58"},{"v":7.666666666666656,"d":"7.67"},{"v":7.749999999999989,"d":"7.75"},{"v":7.833333333333322,"d":"7.83"},{"v":7.916666666666655,"d":"7.92"},{"v":7.9999999999999885,"d":"8.00"},{"$f":"CZ191","v":{"v":7.9999999999999885,"d":"8.00"}},{"$f":"CZ191+1/12","v":{"v":8.083333333333321,"d":"8.08"}},{"$f":"DB191+1/12","v":{"v":8.166666666666655,"d":"8.17"}},{"v":8.24999999999999,"d":"8.25"},{"v":8.333333333333323,"d":"8.33"},{"v":8.416666666666657,"d":"8.42"},{"v":8.499999999999991,"d":"8.50"},{"v":8.583333333333325,"d":"8.58"},{"v":8.666666666666659,"d":"8.67"},{"v":8.749999999999993,"d":"8.75"},{"v":8.833333333333327,"d":"8.83"},{"v":8.91666666666666,"d":"8.92"},{"v":8.999999999999995,"d":"9.00"},{"$f":"DM191","v":{"v":8.999999999999995,"d":"9.00"}},{"$f":"DM191+1/12","v":{"v":9.083333333333329,"d":"9.08"}},{"$f":"DO191+1/12","v":{"v":9.166666666666663,"d":"9.17"}},{"v":9.249999999999996,"d":"9.25"},{"v":9.33333333333333,"d":"9.33"},{"v":9.416666666666664,"d":"9.42"},{"v":9.499999999999998,"d":"9.50"},{"v":9.583333333333332,"d":"9.58"},{"v":9.666666666666666,"d":"9.67"},9.75,{"v":9.833333333333334,"d":"9.83"},{"v":9.916666666666668,"d":"9.92"},{"v":10.000000000000002,"d":"10.00"},{"$f":"DZ191","v":{"v":10.000000000000002,"d":"10.00"}},{"$f":"DZ191+1/12","v":{"v":10.083333333333336,"d":"10.08"}},{"$f":"EB191+1/12","v":{"v":10.16666666666667,"d":"10.17"}},{"v":10.250000000000004,"d":"10.25"},{"v":10.333333333333337,"d":"10.33"},{"v":10.416666666666671,"d":"10.42"},{"v":10.500000000000005,"d":"10.50"},{"v":10.58333333333334,"d":"10.58"},{"v":10.666666666666673,"d":"10.67"},{"v":10.750000000000007,"d":"10.75"},{"v":10.833333333333341,"d":"10.83"},{"v":10.916666666666675,"d":"10.92"},{"v":11.000000000000009,"d":"11.00"},{"$f":"EM191","v":{"v":11.000000000000009,"d":"11.00"}}]
[{"$f":"Labels!B17","v":"Equilib Capital"}]
[]
[null,{"$f":"Inputs!B20*B8/(1/Inputs!B19/12+B144)","v":{"v":34645298.42192645,"d":"$34,645,298"}}]
[{"$f":"Labels!B78","v":"Output Shock"}]
[{"$f":"Labels!D96","v":"Trials"},{"$f":"ZZZ__FnCalls!F7","v":"Jan 2010"},{"$f":"ZZZ__FnCalls!F8","v":"Feb 2010"},{"$f":"ZZZ__FnCalls!F9","v":"Mar 2010"},{"$f":"ZZZ__FnCalls!F10","v":"Apr 2010"},{"$f":"ZZZ__FnCalls!F11","v":"May 2010"},{"$f":"ZZZ__FnCalls!F12","v":"Jun 2010"},{"$f":"ZZZ__FnCalls!F13","v":"Jul 2010"},{"$f":"ZZZ__FnCalls!F14","v":"Aug 2010"},{"$f":"ZZZ__FnCalls!F15","v":"Sep 2010"},{"$f":"ZZZ__FnCalls!F16","v":"Oct 2010"},{"$f":"ZZZ__FnCalls!F17","v":"Nov 2010"},{"$f":"ZZZ__FnCalls!F18","v":"Dec 2010"},{"$f":"ZZZ__FnCalls!H7","v":"2010"},{"$f":"ZZZ__FnCalls!F19","v":"Jan 2011"},{"$f":"ZZZ__FnCalls!F20","v":"Feb 2011"},{"$f":"ZZZ__FnCalls!F21","v":"Mar 2011"},{"$f":"ZZZ__FnCalls!F22","v":"Apr 2011"},{"$f":"ZZZ__FnCalls!F23","v":"May 2011"},{"$f":"ZZZ__FnCalls!F24","v":"Jun 2011"},{"$f":"ZZZ__FnCalls!F25","v":"Jul 2011"},{"$f":"ZZZ__FnCalls!F26","v":"Aug 2011"},{"$f":"ZZZ__FnCalls!F27","v":"Sep 2011"},{"$f":"ZZZ__FnCalls!F28","v":"Oct 2011"},{"$f":"ZZZ__FnCalls!F29","v":"Nov 2011"},{"$f":"ZZZ__FnCalls!F30","v":"Dec 2011"},{"$f":"ZZZ__FnCalls!H19","v":"2011"},{"$f":"ZZZ__FnCalls!F31","v":"Jan 2012"},{"$f":"ZZZ__FnCalls!F32","v":"Feb 2012"},{"$f":"ZZZ__FnCalls!F33","v":"Mar 2012"},{"$f":"ZZZ__FnCalls!F34","v":"Apr 2012"},{"$f":"ZZZ__FnCalls!F35","v":"May 2012"},{"$f":"ZZZ__FnCalls!F36","v":"Jun 2012"},{"$f":"ZZZ__FnCalls!F37","v":"Jul 2012"},{"$f":"ZZZ__FnCalls!F38","v":"Aug 2012"},{"$f":"ZZZ__FnCalls!F39","v":"Sep 2012"},{"$f":"ZZZ__FnCalls!F40","v":"Oct 2012"},{"$f":"ZZZ__FnCalls!F41","v":"Nov 2012"},{"$f":"ZZZ__FnCalls!F42","v":"Dec 2012"},{"$f":"ZZZ__FnCalls!H31","v":"2012"},{"$f":"ZZZ__FnCalls!F43","v":"Jan 2013"},{"$f":"ZZZ__FnCalls!F44","v":"Feb 2013"},{"$f":"ZZZ__FnCalls!F45","v":"Mar 2013"},{"$f":"ZZZ__FnCalls!F46","v":"Apr 2013"},{"$f":"ZZZ__FnCalls!F47","v":"May 2013"},{"$f":"ZZZ__FnCalls!F48","v":"Jun 2013"},{"$f":"ZZZ__FnCalls!F49","v":"Jul 2013"},{"$f":"ZZZ__FnCalls!F50","v":"Aug 2013"},{"$f":"ZZZ__FnCalls!F51","v":"Sep 2013"},{"$f":"ZZZ__FnCalls!F52","v":"Oct 2013"},{"$f":"ZZZ__FnCalls!F53","v":"Nov 2013"},{"$f":"ZZZ__FnCalls!F54","v":"Dec 2013"},{"$f":"ZZZ__FnCalls!H43","v":"2013"},{"$f":"ZZZ__FnCalls!F55","v":"Jan 2014"},{"$f":"ZZZ__FnCalls!F56","v":"Feb 2014"},{"$f":"ZZZ__FnCalls!F57","v":"Mar 2014"},{"$f":"ZZZ__FnCalls!F58","v":"Apr 2014"},{"$f":"ZZZ__FnCalls!F59","v":"May 2014"},{"$f":"ZZZ__FnCalls!F60","v":"Jun 2014"},{"$f":"ZZZ__FnCalls!F61","v":"Jul 2014"},{"$f":"ZZZ__FnCalls!F62","v":"Aug 2014"},{"$f":"ZZZ__FnCalls!F63","v":"Sep 2014"},{"$f":"ZZZ__FnCalls!F64","v":"Oct 2014"},{"$f":"ZZZ__FnCalls!F65","v":"Nov 2014"},{"$f":"ZZZ__FnCalls!F66","v":"Dec 2014"},{"$f":"ZZZ__FnCalls!H55","v":"2014"},{"$f":"ZZZ__FnCalls!F67","v":"Jan 2015"},{"$f":"ZZZ__FnCalls!F68","v":"Feb 2015"},{"$f":"ZZZ__FnCalls!F69","v":"Mar 2015"},{"$f":"ZZZ__FnCalls!F70","v":"Apr 2015"},{"$f":"ZZZ__FnCalls!F71","v":"May 2015"},{"$f":"ZZZ__FnCalls!F72","v":"Jun 2015"},{"$f":"ZZZ__FnCalls!F73","v":"Jul 2015"},{"$f":"ZZZ__FnCalls!F74","v":"Aug 2015"},{"$f":"ZZZ__FnCalls!F75","v":"Sep 2015"},{"$f":"ZZZ__FnCalls!F76","v":"Oct 2015"},{"$f":"ZZZ__FnCalls!F77","v":"Nov 2015"},{"$f":"ZZZ__FnCalls!F78","v":"Dec 2015"},{"$f":"ZZZ__FnCalls!H67","v":"2015"},{"$f":"ZZZ__FnCalls!F79","v":"Jan 2016"},{"$f":"ZZZ__FnCalls!F80","v":"Feb 2016"},{"$f":"ZZZ__FnCalls!F81","v":"Mar 2016"},{"$f":"ZZZ__FnCalls!F82","v":"Apr 2016"},{"$f":"ZZZ__FnCalls!F83","v":"May 2016"},{"$f":"ZZZ__FnCalls!F84","v":"Jun 2016"},{"$f":"ZZZ__FnCalls!F85","v":"Jul 2016"},{"$f":"ZZZ__FnCalls!F86","v":"Aug 2016"},{"$f":"ZZZ__FnCalls!F87","v":"Sep 2016"},{"$f":"ZZZ__FnCalls!F88","v":"Oct 2016"},{"$f":"ZZZ__FnCalls!F89","v":"Nov 2016"},{"$f":"ZZZ__FnCalls!F90","v":"Dec 2016"},{"$f":"ZZZ__FnCalls!H79","v":"2016"},{"$f":"ZZZ__FnCalls!F91","v":"Jan 2017"},{"$f":"ZZZ__FnCalls!F92","v":"Feb 2017"},{"$f":"ZZZ__FnCalls!F93","v":"Mar 2017"},{"$f":"ZZZ__FnCalls!F94","v":"Apr 2017"},{"$f":"ZZZ__FnCalls!F95","v":"May 2017"},{"$f":"ZZZ__FnCalls!F96","v":"Jun 2017"},{"$f":"ZZZ__FnCalls!F97","v":"Jul 2017"},{"$f":"ZZZ__FnCalls!F98","v":"Aug 2017"},{"$f":"ZZZ__FnCalls!F99","v":"Sep 2017"},{"$f":"ZZZ__FnCalls!F100","v":"Oct 2017"},{"$f":"ZZZ__FnCalls!F101","v":"Nov 2017"},{"$f":"ZZZ__FnCalls!F102","v":"Dec 2017"},{"$f":"ZZZ__FnCalls!H91","v":"2017"},{"$f":"ZZZ__FnCalls!F103","v":"Jan 2018"},{"$f":"ZZZ__FnCalls!F104","v":"Feb 2018"},{"$f":"ZZZ__FnCalls!F105","v":"Mar 2018"},{"$f":"ZZZ__FnCalls!F106","v":"Apr 2018"},{"$f":"ZZZ__FnCalls!F107","v":"May 2018"},{"$f":"ZZZ__FnCalls!F108","v":"Jun 2018"},{"$f":"ZZZ__FnCalls!F109","v":"Jul 2018"},{"$f":"ZZZ__FnCalls!F110","v":"Aug 2018"},{"$f":"ZZZ__FnCalls!F111","v":"Sep 2018"},{"$f":"ZZZ__FnCalls!F112","v":"Oct 2018"},{"$f":"ZZZ__FnCalls!F113","v":"Nov 2018"},{"$f":"ZZZ__FnCalls!F114","v":"Dec 2018"},{"$f":"ZZZ__FnCalls!H103","v":"2018"},{"$f":"ZZZ__FnCalls!F115","v":"Jan 2019"},{"$f":"ZZZ__FnCalls!F116","v":"Feb 2019"},{"$f":"ZZZ__FnCalls!F117","v":"Mar 2019"},{"$f":"ZZZ__FnCalls!F118","v":"Apr 2019"},{"$f":"ZZZ__FnCalls!F119","v":"May 2019"},{"$f":"ZZZ__FnCalls!F120","v":"Jun 2019"},{"$f":"ZZZ__FnCalls!F121","v":"Jul 2019"},{"$f":"ZZZ__FnCalls!F122","v":"Aug 2019"},{"$f":"ZZZ__FnCalls!F123","v":"Sep 2019"},{"$f":"ZZZ__FnCalls!F124","v":"Oct 2019"},{"$f":"ZZZ__FnCalls!F125","v":"Nov 2019"},{"$f":"ZZZ__FnCalls!F126","v":"Dec 2019"},{"$f":"ZZZ__FnCalls!H115","v":"2019"},{"$f":"ZZZ__FnCalls!F127","v":"Jan 2020"},{"$f":"ZZZ__FnCalls!F128","v":"Feb 2020"},{"$f":"ZZZ__FnCalls!F129","v":"Mar 2020"},{"$f":"ZZZ__FnCalls!F130","v":"Apr 2020"},{"$f":"ZZZ__FnCalls!F131","v":"May 2020"},{"$f":"ZZZ__FnCalls!F132","v":"Jun 2020"},{"$f":"ZZZ__FnCalls!F133","v":"Jul 2020"},{"$f":"ZZZ__FnCalls!F134","v":"Aug 2020"},{"$f":"ZZZ__FnCalls!F135","v":"Sep 2020"},{"$f":"ZZZ__FnCalls!F136","v":"Oct 2020"},{"$f":"ZZZ__FnCalls!F137","v":"Nov 2020"},{"$f":"ZZZ__FnCalls!F138","v":"Dec 2020"},{"$f":"ZZZ__FnCalls!H127","v":"2020"}]
[{"$f":"Labels!B96","v":"Trial 01"},{"$f":"'Trial 1'!B46","v":{"v":35492.1521538429,"d":"$35,492"}},{"$f":"'Trial 1'!C46","v":{"v":-45047.44254618557,"d":"($45,047)"}},{"$f":"'Trial 1'!D46","v":{"v":12642.939509411506,"d":"$12,643"}},{"$f":"'Trial 1'!E46","v":{"v":-11698.822377496488,"d":"($11,699)"}},{"$f":"'Trial 1'!F46","v":{"v":-2285.509372664849,"d":"($2,286)"}},{"$f":"'Trial 1'!G46","v":{"v":7576.610320768444,"d":"$7,577"}},{"$f":"'Trial 1'!H46","v":{"v":34478.87750961017,"d":"$34,479"}},{"$f":"'Trial 1'!I46","v":{"v":1540.7087430002948,"d":"$1,541"}},{"$f":"'Trial 1'!J46","v":{"v":14248.139435731302,"d":"$14,248"}},{"$f":"'Trial 1'!K46","v":{"v":14925.700373216476,"d":"$14,926"}},{"$f":"'Trial 1'!L46","v":{"v":4349.834470217414,"d":"$4,350"}},{"$f":"'Trial 1'!M46","v":{"v":39288.091478863804,"d":"$39,288"}},{"$f":"SUM('Trial 1'!B46:M46)","v":{"v":105511.2796983154,"d":"$105,511"}},{"$f":"'Trial 1'!O46","v":{"v":-19121.99619182639,"d":"($19,122)"}},{"$f":"'Trial 1'!P46","v":{"v":29915.987691781036,"d":"$29,916"}},{"$f":"'Trial 1'!Q46","v":{"v":-4117.2325674637705,"d":"($4,117)"}},{"$f":"'Trial 1'!R46","v":{"v":1454.689721129366,"d":"$1,455"}},{"$f":"'Trial 1'!S46","v":{"v":-15046.06327005205,"d":"($15,046)"}},{"$f":"'Trial 1'!T46","v":{"v":-34543.44596081222,"d":"($34,543)"}},{"$f":"'Trial 1'!U46","v":{"v":-21188.463261335462,"d":"($21,188)"}},{"$f":"'Trial 1'!V46","v":{"v":-1069.221724865683,"d":"($1,069)"}},{"$f":"'Trial 1'!W46","v":{"v":13199.911587305625,"d":"$13,200"}},{"$f":"'Trial 1'!X46","v":{"v":3963.447806775689,"d":"$3,963"}},{"$f":"'Trial 1'!Y46","v":{"v":38687.78941304484,"d":"$38,688"}},{"$f":"'Trial 1'!Z46","v":{"v":-4666.304264779763,"d":"($4,666)"}},{"$f":"SUM('Trial 1'!O46:Z46)","v":{"v":-12530.901021098784,"d":"($12,531)"}},{"$f":"'Trial 1'!AB46","v":{"v":-6751.029837253163,"d":"($6,751)"}},{"$f":"'Trial 1'!AC46","v":{"v":11266.536475137744,"d":"$11,267"}},{"$f":"'Trial 1'!AD46","v":{"v":35206.2388125071,"d":"$35,206"}},{"$f":"'Trial 1'!AE46","v":{"v":-26695.62710532337,"d":"($26,696)"}},{"$f":"'Trial 1'!AF46","v":{"v":-26252.486382058374,"d":"($26,252)"}},{"$f":"'Trial 1'!AG46","v":{"v":8362.682451973407,"d":"$8,363"}},{"$f":"'Trial 1'!AH46","v":{"v":4420.469867574372,"d":"$4,420"}},{"$f":"'Trial 1'!AI46","v":{"v":-19485.764958948417,"d":"($19,486)"}},{"$f":"'Trial 1'!AJ46","v":{"v":-29716.897433796217,"d":"($29,717)"}},{"$f":"'Trial 1'!AK46","v":{"v":9263.988065933767,"d":"$9,264"}},{"$f":"'Trial 1'!AL46","v":{"v":35422.455414672986,"d":"$35,422"}},{"$f":"'Trial 1'!AM46","v":{"v":39813.34185934187,"d":"$39,813"}},{"$f":"SUM('Trial 1'!AB46:AM46)","v":{"v":34853.9072297617,"d":"$34,854"}},{"$f":"'Trial 1'!AO46","v":{"v":-57422.2661424284,"d":"($57,422)"}},{"$f":"'Trial 1'!AP46","v":{"v":-7910.106680288448,"d":"($7,910)"}},{"$f":"'Trial 1'!AQ46","v":{"v":38658.987793016655,"d":"$38,659"}},{"$f":"'Trial 1'!AR46","v":{"v":-12139.946956197424,"d":"($12,140)"}},{"$f":"'Trial 1'!AS46","v":{"v":-16159.489653447676,"d":"($16,159)"}},{"$f":"'Trial 1'!AT46","v":{"v":-19254.604643789546,"d":"($19,255)"}},{"$f":"'Trial 1'!AU46","v":{"v":-13728.604319456197,"d":"($13,729)"}},{"$f":"'Trial 1'!AV46","v":{"v":28495.081816841237,"d":"$28,495"}},{"$f":"'Trial 1'!AW46","v":{"v":-10248.675895556158,"d":"($10,249)"}},{"$f":"'Trial 1'!AX46","v":{"v":-44700.28823219851,"d":"($44,700)"}},{"$f":"'Trial 1'!AY46","v":{"v":42233.52715571304,"d":"$42,234"}},{"$f":"'Trial 1'!AZ46","v":{"v":-10805.973558443127,"d":"($10,806)"}},{"$f":"SUM('Trial 1'!AO46:AZ46)","v":{"v":-82982.35931623454,"d":"($82,982)"}},{"$f":"'Trial 1'!BB46","v":{"v":-23468.732418796993,"d":"($23,469)"}},{"$f":"'Trial 1'!BC46","v":{"v":9738.242580351593,"d":"$9,738"}},{"$f":"'Trial 1'!BD46","v":{"v":31831.784929229358,"d":"$31,832"}},{"$f":"'Trial 1'!BE46","v":{"v":19802.077190228392,"d":"$19,802"}},{"$f":"'Trial 1'!BF46","v":{"v":-21497.3547063625,"d":"($21,497)"}},{"$f":"'Trial 1'!BG46","v":{"v":23553.2651716454,"d":"$23,553"}},{"$f":"'Trial 1'!BH46","v":{"v":27735.200413374456,"d":"$27,735"}},{"$f":"'Trial 1'!BI46","v":{"v":57213.980185600376,"d":"$57,214"}},{"$f":"'Trial 1'!BJ46","v":{"v":41305.96156581008,"d":"$41,306"}},{"$f":"'Trial 1'!BK46","v":{"v":54706.809889542565,"d":"$54,707"}},{"$f":"'Trial 1'!BL46","v":{"v":22965.5550390026,"d":"$22,966"}},{"$f":"'Trial 1'!BM46","v":{"v":-19036.550257012575,"d":"($19,037)"}},{"$f":"SUM('Trial 1'!BB46:BM46)","v":{"v":224850.23958261276,"d":"$224,850"}},{"$f":"'Trial 1'!BO46","v":{"v":37162.560075981455,"d":"$37,163"}},{"$f":"'Trial 1'!BP46","v":{"v":46836.13415669174,"d":"$46,836"}},{"$f":"'Trial 1'!BQ46","v":{"v":-6166.633655610448,"d":"($6,167)"}},{"$f":"'Trial 1'!BR46","v":{"v":-2285.674393349402,"d":"($2,286)"}},{"$f":"'Trial 1'!BS46","v":{"v":-25405.682557591925,"d":"($25,406)"}},{"$f":"'Trial 1'!BT46","v":{"v":12104.271426800236,"d":"$12,104"}},{"$f":"'Trial 1'!BU46","v":{"v":13339.508608494312,"d":"$13,340"}},{"$f":"'Trial 1'!BV46","v":{"v":4860.141675930391,"d":"$4,860"}},{"$f":"'Trial 1'!BW46","v":{"v":36126.73224023767,"d":"$36,127"}},{"$f":"'Trial 1'!BX46","v":{"v":-15228.396510843058,"d":"($15,228)"}},{"$f":"'Trial 1'!BY46","v":{"v":14104.239204571464,"d":"$14,104"}},{"$f":"'Trial 1'!BZ46","v":{"v":11323.301318205715,"d":"$11,323"}},{"$f":"SUM('Trial 1'!BO46:BZ46)","v":{"v":126770.50158951817,"d":"$126,771"}},{"$f":"'Trial 1'!CB46","v":{"v":7637.050250061621,"d":"$7,637"}},{"$f":"'Trial 1'!CC46","v":{"v":-17054.50700494567,"d":"($17,055)"}},{"$f":"'Trial 1'!CD46","v":{"v":-38251.94790085589,"d":"($38,252)"}},{"$f":"'Trial 1'!CE46","v":{"v":20595.726989800507,"d":"$20,596"}},{"$f":"'Trial 1'!CF46","v":{"v":25736.336537986732,"d":"$25,736"}},{"$f":"'Trial 1'!CG46","v":{"v":-14992.627921878102,"d":"($14,993)"}},{"$f":"'Trial 1'!CH46","v":{"v":25425.168469706317,"d":"$25,425"}},{"$f":"'Trial 1'!CI46","v":{"v":-38055.860981520025,"d":"($38,056)"}},{"$f":"'Trial 1'!CJ46","v":{"v":-4733.63781085913,"d":"($4,734)"}},{"$f":"'Trial 1'!CK46","v":{"v":27250.083028199366,"d":"$27,250"}},{"$f":"'Trial 1'!CL46","v":{"v":20474.814256079626,"d":"$20,475"}},{"$f":"'Trial 1'!CM46","v":{"v":-28394.31659702872,"d":"($28,394)"}},{"$f":"SUM('Trial 1'!CB46:CM46)","v":{"v":-14363.71868525337,"d":"($14,364)"}},{"$f":"'Trial 1'!CO46","v":{"v":-44328.7236733252,"d":"($44,329)"}},{"$f":"'Trial 1'!CP46","v":{"v":12635.143528859546,"d":"$12,635"}},{"$f":"'Trial 1'!CQ46","v":{"v":30550.38697678994,"d":"$30,550"}},{"$f":"'Trial 1'!CR46","v":{"v":6397.8524730196605,"d":"$6,398"}},{"$f":"'Trial 1'!CS46","v":{"v":-21975.93358360171,"d":"($21,976)"}},{"$f":"'Trial 1'!CT46","v":{"v":-21110.283260657292,"d":"($21,110)"}},{"$f":"'Trial 1'!CU46","v":{"v":-26732.416014728416,"d":"($26,732)"}},{"$f":"'Trial 1'!CV46","v":{"v":-5101.558286105057,"d":"($5,102)"}},{"$f":"'Trial 1'!CW46","v":{"v":-29431.438082872784,"d":"($29,431)"}},{"$f":"'Trial 1'!CX46","v":{"v":-38302.86591107344,"d":"($38,303)"}},{"$f":"'Trial 1'!CY46","v":{"v":27659.625589195926,"d":"$27,660"}},{"$f":"'Trial 1'!CZ46","v":{"v":25337.66086333432,"d":"$25,338"}},{"$f":"SUM('Trial 1'!CO46:CZ46)","v":{"v":-84402.54938116451,"d":"($84,403)"}},{"$f":"'Trial 1'!DB46","v":{"v":-36639.990514441444,"d":"($36,640)"}},{"$f":"'Trial 1'!DC46","v":{"v":4274.295616079419,"d":"$4,274"}},{"$f":"'Trial 1'!DD46","v":{"v":12023.525091652276,"d":"$12,024"}},{"$f":"'Trial 1'!DE46","v":{"v":39967.58846118208,"d":"$39,968"}},{"$f":"'Trial 1'!DF46","v":{"v":-34509.80852497326,"d":"($34,510)"}},{"$f":"'Trial 1'!DG46","v":{"v":-12988.837383239157,"d":"($12,989)"}},{"$f":"'Trial 1'!DH46","v":{"v":34276.571868156134,"d":"$34,277"}},{"$f":"'Trial 1'!DI46","v":{"v":8928.915444025948,"d":"$8,929"}},{"$f":"'Trial 1'!DJ46","v":{"v":58732.04400442799,"d":"$58,732"}},{"$f":"'Trial 1'!DK46","v":{"v":5483.109398031349,"d":"$5,483"}},{"$f":"'Trial 1'!DL46","v":{"v":12568.716639285569,"d":"$12,569"}},{"$f":"'Trial 1'!DM46","v":{"v":45578.75576820575,"d":"$45,579"}},{"$f":"SUM('Trial 1'!DB46:DM46)","v":{"v":137694.88586839265,"d":"$137,695"}},{"$f":"'Trial 1'!DO46","v":{"v":-25999.095007581036,"d":"($25,999)"}},{"$f":"'Trial 1'!DP46","v":{"v":-25866.381255726294,"d":"($25,866)"}},{"$f":"'Trial 1'!DQ46","v":{"v":7366.425104294528,"d":"$7,366"}},{"$f":"'Trial 1'!DR46","v":{"v":4857.119957375359,"d":"$4,857"}},{"$f":"'Trial 1'!DS46","v":{"v":-10369.386926031751,"d":"($10,369)"}},{"$f":"'Trial 1'!DT46","v":{"v":-3824.4153208365365,"d":"($3,824)"}},{"$f":"'Trial 1'!DU46","v":{"v":53455.882593490016,"d":"$53,456"}},{"$f":"'Trial 1'!DV46","v":{"v":30604.712892186908,"d":"$30,605"}},{"$f":"'Trial 1'!DW46","v":{"v":-22451.037548962624,"d":"($22,451)"}},{"$f":"'Trial 1'!DX46","v":{"v":-17080.39829746461,"d":"($17,080)"}},{"$f":"'Trial 1'!DY46","v":{"v":2985.2957282996863,"d":"$2,985"}},{"$f":"'Trial 1'!DZ46","v":{"v":11038.970488409283,"d":"$11,039"}},{"$f":"SUM('Trial 1'!DO46:DZ46)","v":{"v":4717.692407452931,"d":"$4,718"}},{"$f":"'Trial 1'!EB46","v":{"v":14321.44105182544,"d":"$14,321"}},{"$f":"'Trial 1'!EC46","v":{"v":-23833.3853679947,"d":"($23,833)"}},{"$f":"'Trial 1'!ED46","v":{"v":-37023.016422059576,"d":"($37,023)"}},{"$f":"'Trial 1'!EE46","v":{"v":44254.00224708738,"d":"$44,254"}},{"$f":"'Trial 1'!EF46","v":{"v":-16402.542789207346,"d":"($16,403)"}},{"$f":"'Trial 1'!EG46","v":{"v":7.672603156401576,"d":"$8"}},{"$f":"'Trial 1'!EH46","v":{"v":36203.6531467673,"d":"$36,204"}},{"$f":"'Trial 1'!EI46","v":{"v":-21649.23689647254,"d":"($21,649)"}},{"$f":"'Trial 1'!EJ46","v":{"v":-11493.129621223034,"d":"($11,493)"}},{"$f":"'Trial 1'!EK46","v":{"v":-22160.40972456795,"d":"($22,160)"}},{"$f":"'Trial 1'!EL46","v":{"v":5779.766764663606,"d":"$5,780"}},{"$f":"'Trial 1'!EM46","v":{"v":-10575.144911128464,"d":"($10,575)"}},{"$f":"SUM('Trial 1'!EB46:EM46)","v":{"v":-42570.32991915348,"d":"($42,570)"}}]
[{"$f":"Labels!B97","v":"Trial 02"},{"$f":"'Trial 2'!B46","v":{"v":8988.25976570529,"d":"$8,988"}},{"$f":"'Trial 2'!C46","v":{"v":51329.4248934539,"d":"$51,329"}},{"$f":"'Trial 2'!D46","v":{"v":16769.532510940757,"d":"$16,770"}},{"$f":"'Trial 2'!E46","v":{"v":9554.094526812523,"d":"$9,554"}},{"$f":"'Trial 2'!F46","v":{"v":28514.266504401465,"d":"$28,514"}},{"$f":"'Trial 2'!G46","v":{"v":27404.02329314825,"d":"$27,404"}},{"$f":"'Trial 2'!H46","v":{"v":15882.582047969521,"d":"$15,883"}},{"$f":"'Trial 2'!I46","v":{"v":-28742.742669848187,"d":"($28,743)"}},{"$f":"'Trial 2'!J46","v":{"v":62423.10509404799,"d":"$62,423"}},{"$f":"'Trial 2'!K46","v":{"v":-18951.652209599764,"d":"($18,952)"}},{"$f":"'Trial 2'!L46","v":{"v":13619.303529754427,"d":"$13,619"}},{"$f":"'Trial 2'!M46","v":{"v":49167.063184106555,"d":"$49,167"}},{"$f":"SUM('Trial 2'!B46:M46)","v":{"v":235957.2604708927,"d":"$235,957"}},{"$f":"'Trial 2'!O46","v":{"v":-18454.23548384229,"d":"($18,454)"}},{"$f":"'Trial 2'!P46","v":{"v":-38094.031894922584,"d":"($38,094)"}},{"$f":"'Trial 2'!Q46","v":{"v":55792.940685251495,"d":"$55,793"}},{"$f":"'Trial 2'!R46","v":{"v":-2216.108436547579,"d":"($2,216)"}},{"$f":"'Trial 2'!S46","v":{"v":26663.170273312604,"d":"$26,663"}},{"$f":"'Trial 2'!T46","v":{"v":-62351.670635750306,"d":"($62,352)"}},{"$f":"'Trial 2'!U46","v":{"v":-35452.57800958877,"d":"($35,453)"}},{"$f":"'Trial 2'!V46","v":{"v":-11116.284413817402,"d":"($11,116)"}},{"$f":"'Trial 2'!W46","v":{"v":50434.214369584515,"d":"$50,434"}},{"$f":"'Trial 2'!X46","v":{"v":17727.66630685353,"d":"$17,728"}},{"$f":"'Trial 2'!Y46","v":{"v":32218.779744769225,"d":"$32,219"}},{"$f":"'Trial 2'!Z46","v":{"v":-7993.141221303646,"d":"($7,993)"}},{"$f":"SUM('Trial 2'!O46:Z46)","v":{"v":7158.721283998799,"d":"$7,159"}},{"$f":"'Trial 2'!AB46","v":{"v":-15508.395742636421,"d":"($15,508)"}},{"$f":"'Trial 2'!AC46","v":{"v":-45429.488818951366,"d":"($45,429)"}},{"$f":"'Trial 2'!AD46","v":{"v":18053.85428176768,"d":"$18,054"}},{"$f":"'Trial 2'!AE46","v":{"v":-9039.992018025345,"d":"($9,040)"}},{"$f":"'Trial 2'!AF46","v":{"v":1791.6595122968315,"d":"$1,792"}},{"$f":"'Trial 2'!AG46","v":{"v":-10036.715759644914,"d":"($10,037)"}},{"$f":"'Trial 2'!AH46","v":{"v":2191.095190909887,"d":"$2,191"}},{"$f":"'Trial 2'!AI46","v":{"v":-14405.725765048848,"d":"($14,406)"}},{"$f":"'Trial 2'!AJ46","v":{"v":7958.36924680873,"d":"$7,958"}},{"$f":"'Trial 2'!AK46","v":{"v":33307.16188277992,"d":"$33,307"}},{"$f":"'Trial 2'!AL46","v":{"v":-6888.966656636441,"d":"($6,889)"}},{"$f":"'Trial 2'!AM46","v":{"v":-38278.671926475814,"d":"($38,279)"}},{"$f":"SUM('Trial 2'!AB46:AM46)","v":{"v":-76285.8165728561,"d":"($76,286)"}},{"$f":"'Trial 2'!AO46","v":{"v":-31206.34103148309,"d":"($31,206)"}},{"$f":"'Trial 2'!AP46","v":{"v":-30825.438896339932,"d":"($30,825)"}},{"$f":"'Trial 2'!AQ46","v":{"v":16059.850368069105,"d":"$16,060"}},{"$f":"'Trial 2'!AR46","v":{"v":-19660.49529695805,"d":"($19,660)"}},{"$f":"'Trial 2'!AS46","v":{"v":-38876.27552588152,"d":"($38,876)"}},{"$f":"'Trial 2'!AT46","v":{"v":-8689.893206970377,"d":"($8,690)"}},{"$f":"'Trial 2'!AU46","v":{"v":31685.461400670247,"d":"$31,685"}},{"$f":"'Trial 2'!AV46","v":{"v":11866.489451788415,"d":"$11,866"}},{"$f":"'Trial 2'!AW46","v":{"v":38134.0835674423,"d":"$38,134"}},{"$f":"'Trial 2'!AX46","v":{"v":13647.888426986296,"d":"$13,648"}},{"$f":"'Trial 2'!AY46","v":{"v":-57019.88276380748,"d":"($57,020)"}},{"$f":"'Trial 2'!AZ46","v":{"v":-20092.985207068483,"d":"($20,093)"}},{"$f":"SUM('Trial 2'!AO46:AZ46)","v":{"v":-94977.53871355258,"d":"($94,978)"}},{"$f":"'Trial 2'!BB46","v":{"v":-540.3989306399533,"d":"($540)"}},{"$f":"'Trial 2'!BC46","v":{"v":18331.160355242966,"d":"$18,331"}},{"$f":"'Trial 2'!BD46","v":{"v":-23086.369172292816,"d":"($23,086)"}},{"$f":"'Trial 2'!BE46","v":{"v":-18360.535334644304,"d":"($18,361)"}},{"$f":"'Trial 2'!BF46","v":{"v":34428.414917534246,"d":"$34,428"}},{"$f":"'Trial 2'!BG46","v":{"v":-7786.815316927031,"d":"($7,787)"}},{"$f":"'Trial 2'!BH46","v":{"v":-27889.759085550097,"d":"($27,890)"}},{"$f":"'Trial 2'!BI46","v":{"v":11282.779987219312,"d":"$11,283"}},{"$f":"'Trial 2'!BJ46","v":{"v":-12470.75118192301,"d":"($12,471)"}},{"$f":"'Trial 2'!BK46","v":{"v":-51055.63880220981,"d":"($51,056)"}},{"$f":"'Trial 2'!BL46","v":{"v":-51528.39517639153,"d":"($51,528)"}},{"$f":"'Trial 2'!BM46","v":{"v":44572.0227328485,"d":"$44,572"}},{"$f":"SUM('Trial 2'!BB46:BM46)","v":{"v":-84104.28500773353,"d":"($84,104)"}},{"$f":"'Trial 2'!BO46","v":{"v":-29399.807445239545,"d":"($29,400)"}},{"$f":"'Trial 2'!BP46","v":{"v":-717.9187275717957,"d":"($718)"}},{"$f":"'Trial 2'!BQ46","v":{"v":11369.550500520732,"d":"$11,370"}},{"$f":"'Trial 2'!BR46","v":{"v":7010.605520350904,"d":"$7,011"}},{"$f":"'Trial 2'!BS46","v":{"v":-4078.6206055264165,"d":"($4,079)"}},{"$f":"'Trial 2'!BT46","v":{"v":-52338.83355875646,"d":"($52,339)"}},{"$f":"'Trial 2'!BU46","v":{"v":-23698.494845983885,"d":"($23,698)"}},{"$f":"'Trial 2'!BV46","v":{"v":33988.01463386377,"d":"$33,988"}},{"$f":"'Trial 2'!BW46","v":{"v":2418.1095592890647,"d":"$2,418"}},{"$f":"'Trial 2'!BX46","v":{"v":-18246.082031395974,"d":"($18,246)"}},{"$f":"'Trial 2'!BY46","v":{"v":25580.566426427475,"d":"$25,581"}},{"$f":"'Trial 2'!BZ46","v":{"v":10431.912207702797,"d":"$10,432"}},{"$f":"SUM('Trial 2'!BO46:BZ46)","v":{"v":-37680.99836631934,"d":"($37,681)"}},{"$f":"'Trial 2'!CB46","v":{"v":47190.253157493506,"d":"$47,190"}},{"$f":"'Trial 2'!CC46","v":{"v":34543.12776209686,"d":"$34,543"}},{"$f":"'Trial 2'!CD46","v":{"v":-237.9714075351569,"d":"($238)"}},{"$f":"'Trial 2'!CE46","v":{"v":2076.7195964383022,"d":"$2,077"}},{"$f":"'Trial 2'!CF46","v":{"v":21245.361334268895,"d":"$21,245"}},{"$f":"'Trial 2'!CG46","v":{"v":-20240.435246853744,"d":"($20,240)"}},{"$f":"'Trial 2'!CH46","v":{"v":21173.6499359129,"d":"$21,174"}},{"$f":"'Trial 2'!CI46","v":{"v":23193.60515834949,"d":"$23,194"}},{"$f":"'Trial 2'!CJ46","v":{"v":51485.67427633929,"d":"$51,486"}},{"$f":"'Trial 2'!CK46","v":{"v":-41184.82535668505,"d":"($41,185)"}},{"$f":"'Trial 2'!CL46","v":{"v":3352.5741496896994,"d":"$3,353"}},{"$f":"'Trial 2'!CM46","v":{"v":44631.475447278,"d":"$44,631"}},{"$f":"SUM('Trial 2'!CB46:CM46)","v":{"v":187229.20880679297,"d":"$187,229"}},{"$f":"'Trial 2'!CO46","v":{"v":-17826.149017180018,"d":"($17,826)"}},{"$f":"'Trial 2'!CP46","v":{"v":-4302.824188857013,"d":"($4,303)"}},{"$f":"'Trial 2'!CQ46","v":{"v":12006.179904234528,"d":"$12,006"}},{"$f":"'Trial 2'!CR46","v":{"v":-17932.430742878834,"d":"($17,932)"}},{"$f":"'Trial 2'!CS46","v":{"v":12970.014839141058,"d":"$12,970"}},{"$f":"'Trial 2'!CT46","v":{"v":-40745.38857838374,"d":"($40,745)"}},{"$f":"'Trial 2'!CU46","v":{"v":46769.29377433866,"d":"$46,769"}},{"$f":"'Trial 2'!CV46","v":{"v":-54231.84445928545,"d":"($54,232)"}},{"$f":"'Trial 2'!CW46","v":{"v":19511.78673029283,"d":"$19,512"}},{"$f":"'Trial 2'!CX46","v":{"v":60957.02810742399,"d":"$60,957"}},{"$f":"'Trial 2'!CY46","v":{"v":-31967.18089149902,"d":"($31,967)"}},{"$f":"'Trial 2'!CZ46","v":{"v":2075.8442041977896,"d":"$2,076"}},{"$f":"SUM('Trial 2'!CO46:CZ46)","v":{"v":-12715.67031845522,"d":"($12,716)"}},{"$f":"'Trial 2'!DB46","v":{"v":3967.9999852939886,"d":"$3,968"}},{"$f":"'Trial 2'!DC46","v":{"v":-6579.141951782406,"d":"($6,579)"}},{"$f":"'Trial 2'!DD46","v":{"v":13188.57437796284,"d":"$13,189"}},{"$f":"'Trial 2'!DE46","v":{"v":3111.999669603769,"d":"$3,112"}},{"$f":"'Trial 2'!DF46","v":{"v":32920.2370219365,"d":"$32,920"}},{"$f":"'Trial 2'!DG46","v":{"v":-17746.012273434168,"d":"($17,746)"}},{"$f":"'Trial 2'!DH46","v":{"v":-11215.533189017026,"d":"($11,216)"}},{"$f":"'Trial 2'!DI46","v":{"v":-7789.883759656015,"d":"($7,790)"}},{"$f":"'Trial 2'!DJ46","v":{"v":6993.7188246983915,"d":"$6,994"}},{"$f":"'Trial 2'!DK46","v":{"v":32944.56366273864,"d":"$32,945"}},{"$f":"'Trial 2'!DL46","v":{"v":52666.945443715966,"d":"$52,667"}},{"$f":"'Trial 2'!DM46","v":{"v":-42815.02894841994,"d":"($42,815)"}},{"$f":"SUM('Trial 2'!DB46:DM46)","v":{"v":59648.43886364054,"d":"$59,648"}},{"$f":"'Trial 2'!DO46","v":{"v":-19192.140036807064,"d":"($19,192)"}},{"$f":"'Trial 2'!DP46","v":{"v":-44857.514447982554,"d":"($44,858)"}},{"$f":"'Trial 2'!DQ46","v":{"v":-13582.236078647713,"d":"($13,582)"}},{"$f":"'Trial 2'!DR46","v":{"v":5774.454035799423,"d":"$5,774"}},{"$f":"'Trial 2'!DS46","v":{"v":-14990.515799873217,"d":"($14,991)"}},{"$f":"'Trial 2'!DT46","v":{"v":-3335.6050100491852,"d":"($3,336)"}},{"$f":"'Trial 2'!DU46","v":{"v":-7370.603354762802,"d":"($7,371)"}},{"$f":"'Trial 2'!DV46","v":{"v":-49605.146342547465,"d":"($49,605)"}},{"$f":"'Trial 2'!DW46","v":{"v":4766.5111340128915,"d":"$4,767"}},{"$f":"'Trial 2'!DX46","v":{"v":590.7629681078386,"d":"$591"}},{"$f":"'Trial 2'!DY46","v":{"v":-4925.437778245941,"d":"($4,925)"}},{"$f":"'Trial 2'!DZ46","v":{"v":7577.274147895871,"d":"$7,577"}},{"$f":"SUM('Trial 2'!DO46:DZ46)","v":{"v":-139150.19656309992,"d":"($139,150)"}},{"$f":"'Trial 2'!EB46","v":{"v":7219.1189151178605,"d":"$7,219"}},{"$f":"'Trial 2'!EC46","v":{"v":-18985.97376202698,"d":"($18,986)"}},{"$f":"'Trial 2'!ED46","v":{"v":-58191.789480896536,"d":"($58,192)"}},{"$f":"'Trial 2'!EE46","v":{"v":58600.899593941314,"d":"$58,601"}},{"$f":"'Trial 2'!EF46","v":{"v":19623.716278254076,"d":"$19,624"}},{"$f":"'Trial 2'!EG46","v":{"v":586.3553853209191,"d":"$586"}},{"$f":"'Trial 2'!EH46","v":{"v":34636.94434335719,"d":"$34,637"}},{"$f":"'Trial 2'!EI46","v":{"v":12543.350765509354,"d":"$12,543"}},{"$f":"'Trial 2'!EJ46","v":{"v":-1142.708467785103,"d":"($1,143)"}},{"$f":"'Trial 2'!EK46","v":{"v":-13390.052910305432,"d":"($13,390)"}},{"$f":"'Trial 2'!EL46","v":{"v":24540.218007216998,"d":"$24,540"}},{"$f":"'Trial 2'!EM46","v":{"v":-712.8357401669238,"d":"($713)"}},{"$f":"SUM('Trial 2'!EB46:EM46)","v":{"v":65327.24292753674,"d":"$65,327"}}]
[{"$f":"Labels!B98","v":"Trial 03"},{"$f":"'Trial 3'!B46","v":{"v":-16324.18185339645,"d":"($16,324)"}},{"$f":"'Trial 3'!C46","v":{"v":33568.788368392154,"d":"$33,569"}},{"$f":"'Trial 3'!D46","v":{"v":-18702.476172001483,"d":"($18,702)"}},{"$f":"'Trial 3'!E46","v":{"v":-27761.66044695444,"d":"($27,762)"}},{"$f":"'Trial 3'!F46","v":{"v":21038.893815388903,"d":"$21,039"}},{"$f":"'Trial 3'!G46","v":{"v":-4939.411993680894,"d":"($4,939)"}},{"$f":"'Trial 3'!H46","v":{"v":6819.644781994933,"d":"$6,820"}},{"$f":"'Trial 3'!I46","v":{"v":7190.962794409065,"d":"$7,191"}},{"$f":"'Trial 3'!J46","v":{"v":37289.19901768503,"d":"$37,289"}},{"$f":"'Trial 3'!K46","v":{"v":-29666.26984857214,"d":"($29,666)"}},{"$f":"'Trial 3'!L46","v":{"v":-16366.038791901623,"d":"($16,366)"}},{"$f":"'Trial 3'!M46","v":{"v":5585.3950857331465,"d":"$5,585"}},{"$f":"SUM('Trial 3'!B46:M46)","v":{"v":-2267.1552429037974,"d":"($2,267)"}},{"$f":"'Trial 3'!O46","v":{"v":-10795.084942754684,"d":"($10,795)"}},{"$f":"'Trial 3'!P46","v":{"v":19451.683761099997,"d":"$19,452"}},{"$f":"'Trial 3'!Q46","v":{"v":-23811.46676714038,"d":"($23,811)"}},{"$f":"'Trial 3'!R46","v":{"v":33856.3083220379,"d":"$33,856"}},{"$f":"'Trial 3'!S46","v":{"v":58938.56057336461,"d":"$58,939"}},{"$f":"'Trial 3'!T46","v":{"v":-21345.745783946997,"d":"($21,346)"}},{"$f":"'Trial 3'!U46","v":{"v":35087.99837219469,"d":"$35,088"}},{"$f":"'Trial 3'!V46","v":{"v":42146.10089378718,"d":"$42,146"}},{"$f":"'Trial 3'!W46","v":{"v":-13171.257442979613,"d":"($13,171)"}},{"$f":"'Trial 3'!X46","v":{"v":16631.85343910344,"d":"$16,632"}},{"$f":"'Trial 3'!Y46","v":{"v":-49833.08309622176,"d":"($49,833)"}},{"$f":"'Trial 3'!Z46","v":{"v":5954.762609479143,"d":"$5,955"}},{"$f":"SUM('Trial 3'!O46:Z46)","v":{"v":93110.62993802353,"d":"$93,111"}},{"$f":"'Trial 3'!AB46","v":{"v":10967.076633691257,"d":"$10,967"}},{"$f":"'Trial 3'!AC46","v":{"v":36310.39961164325,"d":"$36,310"}},{"$f":"'Trial 3'!AD46","v":{"v":-8350.65506056013,"d":"($8,351)"}},{"$f":"'Trial 3'!AE46","v":{"v":12701.442550836784,"d":"$12,701"}},{"$f":"'Trial 3'!AF46","v":{"v":8820.79722027423,"d":"$8,821"}},{"$f":"'Trial 3'!AG46","v":{"v":-6812.8027120040915,"d":"($6,813)"}},{"$f":"'Trial 3'!AH46","v":{"v":-38450.38219687737,"d":"($38,450)"}},{"$f":"'Trial 3'!AI46","v":{"v":17803.559889623004,"d":"$17,804"}},{"$f":"'Trial 3'!AJ46","v":{"v":17759.530389980682,"d":"$17,760"}},{"$f":"'Trial 3'!AK46","v":{"v":8739.903499533662,"d":"$8,740"}},{"$f":"'Trial 3'!AL46","v":{"v":-26193.155741902217,"d":"($26,193)"}},{"$f":"'Trial 3'!AM46","v":{"v":55539.646939706916,"d":"$55,540"}},{"$f":"SUM('Trial 3'!AB46:AM46)","v":{"v":88835.36102394598,"d":"$88,835"}},{"$f":"'Trial 3'!AO46","v":{"v":-27469.407552991703,"d":"($27,469)"}},{"$f":"'Trial 3'!AP46","v":{"v":11047.322160897138,"d":"$11,047"}},{"$f":"'Trial 3'!AQ46","v":{"v":54214.451372333955,"d":"$54,214"}},{"$f":"'Trial 3'!AR46","v":{"v":33160.62556037906,"d":"$33,161"}},{"$f":"'Trial 3'!AS46","v":{"v":-5848.902293565168,"d":"($5,849)"}},{"$f":"'Trial 3'!AT46","v":{"v":13294.320718329824,"d":"$13,294"}},{"$f":"'Trial 3'!AU46","v":{"v":44475.72545554984,"d":"$44,476"}},{"$f":"'Trial 3'!AV46","v":{"v":34781.6888264478,"d":"$34,782"}},{"$f":"'Trial 3'!AW46","v":{"v":-52490.15405563725,"d":"($52,490)"}},{"$f":"'Trial 3'!AX46","v":{"v":44435.54280223794,"d":"$44,436"}},{"$f":"'Trial 3'!AY46","v":{"v":-10070.289649915165,"d":"($10,070)"}},{"$f":"'Trial 3'!AZ46","v":{"v":2345.309219506784,"d":"$2,345"}},{"$f":"SUM('Trial 3'!AO46:AZ46)","v":{"v":141876.23256357305,"d":"$141,876"}},{"$f":"'Trial 3'!BB46","v":{"v":38932.93961108616,"d":"$38,933"}},{"$f":"'Trial 3'!BC46","v":{"v":54023.59345674434,"d":"$54,024"}},{"$f":"'Trial 3'!BD46","v":{"v":-497.91756768761303,"d":"($498)"}},{"$f":"'Trial 3'!BE46","v":{"v":29263.814590545964,"d":"$29,264"}},{"$f":"'Trial 3'!BF46","v":{"v":6690.600349725405,"d":"$6,691"}},{"$f":"'Trial 3'!BG46","v":{"v":9976.009093624647,"d":"$9,976"}},{"$f":"'Trial 3'!BH46","v":{"v":52921.4126618016,"d":"$52,921"}},{"$f":"'Trial 3'!BI46","v":{"v":1988.7585373830511,"d":"$1,989"}},{"$f":"'Trial 3'!BJ46","v":{"v":-42343.99468329463,"d":"($42,344)"}},{"$f":"'Trial 3'!BK46","v":{"v":-37899.93536821423,"d":"($37,900)"}},{"$f":"'Trial 3'!BL46","v":{"v":10621.50626732494,"d":"$10,622"}},{"$f":"'Trial 3'!BM46","v":{"v":-48047.06783244648,"d":"($48,047)"}},{"$f":"SUM('Trial 3'!BB46:BM46)","v":{"v":75629.71911659313,"d":"$75,630"}},{"$f":"'Trial 3'!BO46","v":{"v":-3884.842878164223,"d":"($3,885)"}},{"$f":"'Trial 3'!BP46","v":{"v":-14455.260352131521,"d":"($14,455)"}},{"$f":"'Trial 3'!BQ46","v":{"v":-3220.7468718636405,"d":"($3,221)"}},{"$f":"'Trial 3'!BR46","v":{"v":44146.97281569893,"d":"$44,147"}},{"$f":"'Trial 3'!BS46","v":{"v":5775.333682011811,"d":"$5,775"}},{"$f":"'Trial 3'!BT46","v":{"v":19837.46911526968,"d":"$19,837"}},{"$f":"'Trial 3'!BU46","v":{"v":-38111.17899261447,"d":"($38,111)"}},{"$f":"'Trial 3'!BV46","v":{"v":7116.961787428852,"d":"$7,117"}},{"$f":"'Trial 3'!BW46","v":{"v":26780.387702505417,"d":"$26,780"}},{"$f":"'Trial 3'!BX46","v":{"v":-10831.447627490785,"d":"($10,831)"}},{"$f":"'Trial 3'!BY46","v":{"v":-22214.328609721735,"d":"($22,214)"}},{"$f":"'Trial 3'!BZ46","v":{"v":-38695.64116534604,"d":"($38,696)"}},{"$f":"SUM('Trial 3'!BO46:BZ46)","v":{"v":-27756.321394417726,"d":"($27,756)"}},{"$f":"'Trial 3'!CB46","v":{"v":6782.201106987461,"d":"$6,782"}},{"$f":"'Trial 3'!CC46","v":{"v":22401.676246076215,"d":"$22,402"}},{"$f":"'Trial 3'!CD46","v":{"v":-42875.67079866582,"d":"($42,876)"}},{"$f":"'Trial 3'!CE46","v":{"v":-41153.970349064955,"d":"($41,154)"}},{"$f":"'Trial 3'!CF46","v":{"v":14546.187318544498,"d":"$14,546"}},{"$f":"'Trial 3'!CG46","v":{"v":-13333.28297182479,"d":"($13,333)"}},{"$f":"'Trial 3'!CH46","v":{"v":-36919.19465231047,"d":"($36,919)"}},{"$f":"'Trial 3'!CI46","v":{"v":35807.47701570093,"d":"$35,807"}},{"$f":"'Trial 3'!CJ46","v":{"v":8119.427380007398,"d":"$8,119"}},{"$f":"'Trial 3'!CK46","v":{"v":9029.941106570152,"d":"$9,030"}},{"$f":"'Trial 3'!CL46","v":{"v":-31001.069820314835,"d":"($31,001)"}},{"$f":"'Trial 3'!CM46","v":{"v":-25510.271977394634,"d":"($25,510)"}},{"$f":"SUM('Trial 3'!CB46:CM46)","v":{"v":-94106.55039568884,"d":"($94,107)"}},{"$f":"'Trial 3'!CO46","v":{"v":14766.90088387535,"d":"$14,767"}},{"$f":"'Trial 3'!CP46","v":{"v":3337.0018901194117,"d":"$3,337"}},{"$f":"'Trial 3'!CQ46","v":{"v":5546.876057504015,"d":"$5,547"}},{"$f":"'Trial 3'!CR46","v":{"v":-35796.762599325775,"d":"($35,797)"}},{"$f":"'Trial 3'!CS46","v":{"v":6795.315539021217,"d":"$6,795"}},{"$f":"'Trial 3'!CT46","v":{"v":57588.73310831147,"d":"$57,589"}},{"$f":"'Trial 3'!CU46","v":{"v":-13695.01462814542,"d":"($13,695)"}},{"$f":"'Trial 3'!CV46","v":{"v":6613.220419527352,"d":"$6,613"}},{"$f":"'Trial 3'!CW46","v":{"v":-31714.792275194526,"d":"($31,715)"}},{"$f":"'Trial 3'!CX46","v":{"v":18965.96479025624,"d":"$18,966"}},{"$f":"'Trial 3'!CY46","v":{"v":40664.10553786462,"d":"$40,664"}},{"$f":"'Trial 3'!CZ46","v":{"v":42937.10853564603,"d":"$42,937"}},{"$f":"SUM('Trial 3'!CO46:CZ46)","v":{"v":116008.65725945999,"d":"$116,009"}},{"$f":"'Trial 3'!DB46","v":{"v":1268.8388064517817,"d":"$1,269"}},{"$f":"'Trial 3'!DC46","v":{"v":-50113.17120270638,"d":"($50,113)"}},{"$f":"'Trial 3'!DD46","v":{"v":-5727.103917446386,"d":"($5,727)"}},{"$f":"'Trial 3'!DE46","v":{"v":-8675.69728517869,"d":"($8,676)"}},{"$f":"'Trial 3'!DF46","v":{"v":-10191.048344447225,"d":"($10,191)"}},{"$f":"'Trial 3'!DG46","v":{"v":-11595.153544934183,"d":"($11,595)"}},{"$f":"'Trial 3'!DH46","v":{"v":35976.75120785543,"d":"$35,977"}},{"$f":"'Trial 3'!DI46","v":{"v":32917.85899824928,"d":"$32,918"}},{"$f":"'Trial 3'!DJ46","v":{"v":41557.02266591876,"d":"$41,557"}},{"$f":"'Trial 3'!DK46","v":{"v":1890.4868834953052,"d":"$1,890"}},{"$f":"'Trial 3'!DL46","v":{"v":-34520.727054035655,"d":"($34,521)"}},{"$f":"'Trial 3'!DM46","v":{"v":7078.456370738485,"d":"$7,078"}},{"$f":"SUM('Trial 3'!DB46:DM46)","v":{"v":-133.4864160394709,"d":"($133)"}},{"$f":"'Trial 3'!DO46","v":{"v":47590.26997253971,"d":"$47,590"}},{"$f":"'Trial 3'!DP46","v":{"v":47956.87782112958,"d":"$47,957"}},{"$f":"'Trial 3'!DQ46","v":{"v":15251.127236160739,"d":"$15,251"}},{"$f":"'Trial 3'!DR46","v":{"v":56171.352763406336,"d":"$56,171"}},{"$f":"'Trial 3'!DS46","v":{"v":17390.608390588335,"d":"$17,391"}},{"$f":"'Trial 3'!DT46","v":{"v":4117.176468130374,"d":"$4,117"}},{"$f":"'Trial 3'!DU46","v":{"v":21951.54054266715,"d":"$21,952"}},{"$f":"'Trial 3'!DV46","v":{"v":-54603.780431446045,"d":"($54,604)"}},{"$f":"'Trial 3'!DW46","v":{"v":44347.19459994424,"d":"$44,347"}},{"$f":"'Trial 3'!DX46","v":{"v":9654.383797183034,"d":"$9,654"}},{"$f":"'Trial 3'!DY46","v":{"v":54002.07338427026,"d":"$54,002"}},{"$f":"'Trial 3'!DZ46","v":{"v":-8458.840024507997,"d":"($8,459)"}},{"$f":"SUM('Trial 3'!DO46:DZ46)","v":{"v":255369.98452006571,"d":"$255,370"}},{"$f":"'Trial 3'!EB46","v":{"v":31247.816171504735,"d":"$31,248"}},{"$f":"'Trial 3'!EC46","v":{"v":43604.38633411743,"d":"$43,604"}},{"$f":"'Trial 3'!ED46","v":{"v":-33128.56998880579,"d":"($33,129)"}},{"$f":"'Trial 3'!EE46","v":{"v":-10863.721174565768,"d":"($10,864)"}},{"$f":"'Trial 3'!EF46","v":{"v":-16805.56173473653,"d":"($16,806)"}},{"$f":"'Trial 3'!EG46","v":{"v":19404.467300792297,"d":"$19,404"}},{"$f":"'Trial 3'!EH46","v":{"v":-47024.160707274204,"d":"($47,024)"}},{"$f":"'Trial 3'!EI46","v":{"v":-51598.06681111048,"d":"($51,598)"}},{"$f":"'Trial 3'!EJ46","v":{"v":-18624.298607603276,"d":"($18,624)"}},{"$f":"'Trial 3'!EK46","v":{"v":-1446.0682240803521,"d":"($1,446)"}},{"$f":"'Trial 3'!EL46","v":{"v":-10215.318284753335,"d":"($10,215)"}},{"$f":"'Trial 3'!EM46","v":{"v":57017.33150303637,"d":"$57,017"}},{"$f":"SUM('Trial 3'!EB46:EM46)","v":{"v":-38431.76422347892,"d":"($38,432)"}}]
[{"$f":"Labels!B99","v":"Trial 04"},{"$f":"'Trial 4'!B46","v":{"v":34632.56274053554,"d":"$34,633"}},{"$f":"'Trial 4'!C46","v":{"v":56870.21602073529,"d":"$56,870"}},{"$f":"'Trial 4'!D46","v":{"v":23822.106571719178,"d":"$23,822"}},{"$f":"'Trial 4'!E46","v":{"v":-41937.57192891079,"d":"($41,938)"}},{"$f":"'Trial 4'!F46","v":{"v":-27910.58407911024,"d":"($27,911)"}},{"$f":"'Trial 4'!G46","v":{"v":27845.0236444039,"d":"$27,845"}},{"$f":"'Trial 4'!H46","v":{"v":30370.325458528805,"d":"$30,370"}},{"$f":"'Trial 4'!I46","v":{"v":36759.95216466207,"d":"$36,760"}},{"$f":"'Trial 4'!J46","v":{"v":-10055.614623870211,"d":"($10,056)"}},{"$f":"'Trial 4'!K46","v":{"v":-9371.2852380817,"d":"($9,371)"}},{"$f":"'Trial 4'!L46","v":{"v":-4530.921114496909,"d":"($4,531)"}},{"$f":"'Trial 4'!M46","v":{"v":-5952.29495365752,"d":"($5,952)"}},{"$f":"SUM('Trial 4'!B46:M46)","v":{"v":110541.91466245745,"d":"$110,542"}},{"$f":"'Trial 4'!O46","v":{"v":30772.61104845282,"d":"$30,773"}},{"$f":"'Trial 4'!P46","v":{"v":934.5133680026751,"d":"$935"}},{"$f":"'Trial 4'!Q46","v":{"v":37933.472755223294,"d":"$37,933"}},{"$f":"'Trial 4'!R46","v":{"v":54663.36110103123,"d":"$54,663"}},{"$f":"'Trial 4'!S46","v":{"v":49669.133303747345,"d":"$49,669"}},{"$f":"'Trial 4'!T46","v":{"v":-21042.6851869664,"d":"($21,043)"}},{"$f":"'Trial 4'!U46","v":{"v":601.3831102648707,"d":"$601"}},{"$f":"'Trial 4'!V46","v":{"v":6397.343929387906,"d":"$6,397"}},{"$f":"'Trial 4'!W46","v":{"v":-1703.5382300562462,"d":"($1,704)"}},{"$f":"'Trial 4'!X46","v":{"v":27682.582075335573,"d":"$27,683"}},{"$f":"'Trial 4'!Y46","v":{"v":-43426.19206747658,"d":"($43,426)"}},{"$f":"'Trial 4'!Z46","v":{"v":14904.671861736602,"d":"$14,905"}},{"$f":"SUM('Trial 4'!O46:Z46)","v":{"v":157386.65706868313,"d":"$157,387"}},{"$f":"'Trial 4'!AB46","v":{"v":14395.777566198294,"d":"$14,396"}},{"$f":"'Trial 4'!AC46","v":{"v":6172.307228441399,"d":"$6,172"}},{"$f":"'Trial 4'!AD46","v":{"v":-781.8031816923233,"d":"($782)"}},{"$f":"'Trial 4'!AE46","v":{"v":-37890.1272551638,"d":"($37,890)"}},{"$f":"'Trial 4'!AF46","v":{"v":24162.042441235433,"d":"$24,162"}},{"$f":"'Trial 4'!AG46","v":{"v":18996.60700777342,"d":"$18,997"}},{"$f":"'Trial 4'!AH46","v":{"v":55314.40471113519,"d":"$55,314"}},{"$f":"'Trial 4'!AI46","v":{"v":-24049.169457172367,"d":"($24,049)"}},{"$f":"'Trial 4'!AJ46","v":{"v":-52049.61051725651,"d":"($52,050)"}},{"$f":"'Trial 4'!AK46","v":{"v":-34656.507875963354,"d":"($34,657)"}},{"$f":"'Trial 4'!AL46","v":{"v":-6873.083927261292,"d":"($6,873)"}},{"$f":"'Trial 4'!AM46","v":{"v":43920.368674023055,"d":"$43,920"}},{"$f":"SUM('Trial 4'!AB46:AM46)","v":{"v":6661.205414297139,"d":"$6,661"}},{"$f":"'Trial 4'!AO46","v":{"v":-23833.568524527698,"d":"($23,834)"}},{"$f":"'Trial 4'!AP46","v":{"v":-5248.77678891398,"d":"($5,249)"}},{"$f":"'Trial 4'!AQ46","v":{"v":-11157.158968628797,"d":"($11,157)"}},{"$f":"'Trial 4'!AR46","v":{"v":-35994.99597648865,"d":"($35,995)"}},{"$f":"'Trial 4'!AS46","v":{"v":-40559.66482207436,"d":"($40,560)"}},{"$f":"'Trial 4'!AT46","v":{"v":-49248.69629403973,"d":"($49,249)"}},{"$f":"'Trial 4'!AU46","v":{"v":8905.3628520517,"d":"$8,905"}},{"$f":"'Trial 4'!AV46","v":{"v":16315.671076422486,"d":"$16,316"}},{"$f":"'Trial 4'!AW46","v":{"v":-6576.415087321062,"d":"($6,576)"}},{"$f":"'Trial 4'!AX46","v":{"v":-20062.122926863514,"d":"($20,062)"}},{"$f":"'Trial 4'!AY46","v":{"v":2817.8631497087176,"d":"$2,818"}},{"$f":"'Trial 4'!AZ46","v":{"v":-6401.106553050837,"d":"($6,401)"}},{"$f":"SUM('Trial 4'!AO46:AZ46)","v":{"v":-171043.6088637257,"d":"($171,044)"}},{"$f":"'Trial 4'!BB46","v":{"v":27099.270547268177,"d":"$27,099"}},{"$f":"'Trial 4'!BC46","v":{"v":-13871.15968897814,"d":"($13,871)"}},{"$f":"'Trial 4'!BD46","v":{"v":-13870.430294909163,"d":"($13,870)"}},{"$f":"'Trial 4'!BE46","v":{"v":-9772.68930244665,"d":"($9,773)"}},{"$f":"'Trial 4'!BF46","v":{"v":6322.128342387633,"d":"$6,322"}},{"$f":"'Trial 4'!BG46","v":{"v":28445.29104416135,"d":"$28,445"}},{"$f":"'Trial 4'!BH46","v":{"v":22840.00017878097,"d":"$22,840"}},{"$f":"'Trial 4'!BI46","v":{"v":-35149.99504669223,"d":"($35,150)"}},{"$f":"'Trial 4'!BJ46","v":{"v":11215.262957496245,"d":"$11,215"}},{"$f":"'Trial 4'!BK46","v":{"v":-10771.515609365275,"d":"($10,772)"}},{"$f":"'Trial 4'!BL46","v":{"v":112.18418130165614,"d":"$112"}},{"$f":"'Trial 4'!BM46","v":{"v":16738.08124652924,"d":"$16,738"}},{"$f":"SUM('Trial 4'!BB46:BM46)","v":{"v":29336.428555533817,"d":"$29,336"}},{"$f":"'Trial 4'!BO46","v":{"v":-18114.807266668086,"d":"($18,115)"}},{"$f":"'Trial 4'!BP46","v":{"v":14394.004576268926,"d":"$14,394"}},{"$f":"'Trial 4'!BQ46","v":{"v":-13063.167509475677,"d":"($13,063)"}},{"$f":"'Trial 4'!BR46","v":{"v":2665.387467703088,"d":"$2,665"}},{"$f":"'Trial 4'!BS46","v":{"v":-12125.631781882525,"d":"($12,126)"}},{"$f":"'Trial 4'!BT46","v":{"v":17775.73369288972,"d":"$17,776"}},{"$f":"'Trial 4'!BU46","v":{"v":10982.216782715892,"d":"$10,982"}},{"$f":"'Trial 4'!BV46","v":{"v":-32983.9393694305,"d":"($32,984)"}},{"$f":"'Trial 4'!BW46","v":{"v":31293.635244618763,"d":"$31,294"}},{"$f":"'Trial 4'!BX46","v":{"v":42729.23306841504,"d":"$42,729"}},{"$f":"'Trial 4'!BY46","v":{"v":-2013.5594463264756,"d":"($2,014)"}},{"$f":"'Trial 4'!BZ46","v":{"v":26664.615552483225,"d":"$26,665"}},{"$f":"SUM('Trial 4'!BO46:BZ46)","v":{"v":68203.72101131138,"d":"$68,204"}},{"$f":"'Trial 4'!CB46","v":{"v":5218.441225478628,"d":"$5,218"}},{"$f":"'Trial 4'!CC46","v":{"v":7831.114357293748,"d":"$7,831"}},{"$f":"'Trial 4'!CD46","v":{"v":9569.03285597894,"d":"$9,569"}},{"$f":"'Trial 4'!CE46","v":{"v":-4106.051279437941,"d":"($4,106)"}},{"$f":"'Trial 4'!CF46","v":{"v":-3905.739754429266,"d":"($3,906)"}},{"$f":"'Trial 4'!CG46","v":{"v":15995.87895716103,"d":"$15,996"}},{"$f":"'Trial 4'!CH46","v":{"v":-36732.66935578057,"d":"($36,733)"}},{"$f":"'Trial 4'!CI46","v":{"v":1931.5713078036306,"d":"$1,932"}},{"$f":"'Trial 4'!CJ46","v":{"v":18118.311519233735,"d":"$18,118"}},{"$f":"'Trial 4'!CK46","v":{"v":-6395.107428504674,"d":"($6,395)"}},{"$f":"'Trial 4'!CL46","v":{"v":12913.547309671223,"d":"$12,914"}},{"$f":"'Trial 4'!CM46","v":{"v":-18139.017637753186,"d":"($18,139)"}},{"$f":"SUM('Trial 4'!CB46:CM46)","v":{"v":2299.3120767152977,"d":"$2,299"}},{"$f":"'Trial 4'!CO46","v":{"v":39205.25693351775,"d":"$39,205"}},{"$f":"'Trial 4'!CP46","v":{"v":2582.061776386711,"d":"$2,582"}},{"$f":"'Trial 4'!CQ46","v":{"v":-25465.579412043196,"d":"($25,466)"}},{"$f":"'Trial 4'!CR46","v":{"v":5143.221018857368,"d":"$5,143"}},{"$f":"'Trial 4'!CS46","v":{"v":-26654.810896386993,"d":"($26,655)"}},{"$f":"'Trial 4'!CT46","v":{"v":-6161.371178509568,"d":"($6,161)"}},{"$f":"'Trial 4'!CU46","v":{"v":-7392.736054365556,"d":"($7,393)"}},{"$f":"'Trial 4'!CV46","v":{"v":26532.032580150895,"d":"$26,532"}},{"$f":"'Trial 4'!CW46","v":{"v":-5996.234866030847,"d":"($5,996)"}},{"$f":"'Trial 4'!CX46","v":{"v":26061.804335305274,"d":"$26,062"}},{"$f":"'Trial 4'!CY46","v":{"v":10307.979603815795,"d":"$10,308"}},{"$f":"'Trial 4'!CZ46","v":{"v":-18968.31820811754,"d":"($18,968)"}},{"$f":"SUM('Trial 4'!CO46:CZ46)","v":{"v":19193.305632580086,"d":"$19,193"}},{"$f":"'Trial 4'!DB46","v":{"v":-6330.10569197487,"d":"($6,330)"}},{"$f":"'Trial 4'!DC46","v":{"v":59181.77371610338,"d":"$59,182"}},{"$f":"'Trial 4'!DD46","v":{"v":7301.335633914146,"d":"$7,301"}},{"$f":"'Trial 4'!DE46","v":{"v":20048.094760234326,"d":"$20,048"}},{"$f":"'Trial 4'!DF46","v":{"v":8449.177080129864,"d":"$8,449"}},{"$f":"'Trial 4'!DG46","v":{"v":-44065.64418640598,"d":"($44,066)"}},{"$f":"'Trial 4'!DH46","v":{"v":14058.403670436297,"d":"$14,058"}},{"$f":"'Trial 4'!DI46","v":{"v":-25863.5173019274,"d":"($25,864)"}},{"$f":"'Trial 4'!DJ46","v":{"v":-55774.20264889734,"d":"($55,774)"}},{"$f":"'Trial 4'!DK46","v":{"v":6615.134049864628,"d":"$6,615"}},{"$f":"'Trial 4'!DL46","v":{"v":-4295.621725239901,"d":"($4,296)"}},{"$f":"'Trial 4'!DM46","v":{"v":18287.955157442484,"d":"$18,288"}},{"$f":"SUM('Trial 4'!DB46:DM46)","v":{"v":-2387.2174863203727,"d":"($2,387)"}},{"$f":"'Trial 4'!DO46","v":{"v":-6319.562549915573,"d":"($6,320)"}},{"$f":"'Trial 4'!DP46","v":{"v":24878.283049070174,"d":"$24,878"}},{"$f":"'Trial 4'!DQ46","v":{"v":37581.455813693734,"d":"$37,581"}},{"$f":"'Trial 4'!DR46","v":{"v":-5671.490951821121,"d":"($5,671)"}},{"$f":"'Trial 4'!DS46","v":{"v":31173.02766238293,"d":"$31,173"}},{"$f":"'Trial 4'!DT46","v":{"v":-46659.840757653124,"d":"($46,660)"}},{"$f":"'Trial 4'!DU46","v":{"v":-53044.497802067686,"d":"($53,044)"}},{"$f":"'Trial 4'!DV46","v":{"v":6576.489068574196,"d":"$6,576"}},{"$f":"'Trial 4'!DW46","v":{"v":33281.92723916571,"d":"$33,282"}},{"$f":"'Trial 4'!DX46","v":{"v":-38487.34921019776,"d":"($38,487)"}},{"$f":"'Trial 4'!DY46","v":{"v":18387.6567091381,"d":"$18,388"}},{"$f":"'Trial 4'!DZ46","v":{"v":-13101.377008823814,"d":"($13,101)"}},{"$f":"SUM('Trial 4'!DO46:DZ46)","v":{"v":-11405.278738454233,"d":"($11,405)"}},{"$f":"'Trial 4'!EB46","v":{"v":34151.80510639772,"d":"$34,152"}},{"$f":"'Trial 4'!EC46","v":{"v":45099.70884252739,"d":"$45,100"}},{"$f":"'Trial 4'!ED46","v":{"v":18370.976825547026,"d":"$18,371"}},{"$f":"'Trial 4'!EE46","v":{"v":-4161.241147839011,"d":"($4,161)"}},{"$f":"'Trial 4'!EF46","v":{"v":-21564.30656553204,"d":"($21,564)"}},{"$f":"'Trial 4'!EG46","v":{"v":-43099.2206130201,"d":"($43,099)"}},{"$f":"'Trial 4'!EH46","v":{"v":11379.318537548917,"d":"$11,379"}},{"$f":"'Trial 4'!EI46","v":{"v":54129.83632952655,"d":"$54,130"}},{"$f":"'Trial 4'!EJ46","v":{"v":20030.862865605384,"d":"$20,031"}},{"$f":"'Trial 4'!EK46","v":{"v":-31015.323611085918,"d":"($31,015)"}},{"$f":"'Trial 4'!EL46","v":{"v":2042.895548687894,"d":"$2,043"}},{"$f":"'Trial 4'!EM46","v":{"v":25432.496411839427,"d":"$25,432"}},{"$f":"SUM('Trial 4'!EB46:EM46)","v":{"v":110797.80853020326,"d":"$110,798"}}]
[{"$f":"Labels!B100","v":"Trial 05"},{"$f":"'Trial 5'!B46","v":{"v":-2001.604158609501,"d":"($2,002)"}},{"$f":"'Trial 5'!C46","v":{"v":-20033.266240187135,"d":"($20,033)"}},{"$f":"'Trial 5'!D46","v":{"v":10442.736834707895,"d":"$10,443"}},{"$f":"'Trial 5'!E46","v":{"v":15530.46775956978,"d":"$15,530"}},{"$f":"'Trial 5'!F46","v":{"v":-10961.38201621752,"d":"($10,961)"}},{"$f":"'Trial 5'!G46","v":{"v":-29341.604880561656,"d":"($29,342)"}},{"$f":"'Trial 5'!H46","v":{"v":58532.29832272793,"d":"$58,532"}},{"$f":"'Trial 5'!I46","v":{"v":-54452.86249894689,"d":"($54,453)"}},{"$f":"'Trial 5'!J46","v":{"v":-9192.959941770416,"d":"($9,193)"}},{"$f":"'Trial 5'!K46","v":{"v":3830.6269590658985,"d":"$3,831"}},{"$f":"'Trial 5'!L46","v":{"v":60975.79312693091,"d":"$60,976"}},{"$f":"'Trial 5'!M46","v":{"v":1425.9265531441938,"d":"$1,426"}},{"$f":"SUM('Trial 5'!B46:M46)","v":{"v":24754.169819853494,"d":"$24,754"}},{"$f":"'Trial 5'!O46","v":{"v":-11888.698173510153,"d":"($11,889)"}},{"$f":"'Trial 5'!P46","v":{"v":-1960.128950762971,"d":"($1,960)"}},{"$f":"'Trial 5'!Q46","v":{"v":9832.018358787987,"d":"$9,832"}},{"$f":"'Trial 5'!R46","v":{"v":-39806.19887955849,"d":"($39,806)"}},{"$f":"'Trial 5'!S46","v":{"v":-21816.84183685177,"d":"($21,817)"}},{"$f":"'Trial 5'!T46","v":{"v":44337.17243340576,"d":"$44,337"}},{"$f":"'Trial 5'!U46","v":{"v":29544.03101980557,"d":"$29,544"}},{"$f":"'Trial 5'!V46","v":{"v":-26705.695862848854,"d":"($26,706)"}},{"$f":"'Trial 5'!W46","v":{"v":2612.4011791779917,"d":"$2,612"}},{"$f":"'Trial 5'!X46","v":{"v":1970.8699946614895,"d":"$1,971"}},{"$f":"'Trial 5'!Y46","v":{"v":8259.1686738329,"d":"$8,259"}},{"$f":"'Trial 5'!Z46","v":{"v":-26857.100148134567,"d":"($26,857)"}},{"$f":"SUM('Trial 5'!O46:Z46)","v":{"v":-32479.002191995118,"d":"($32,479)"}},{"$f":"'Trial 5'!AB46","v":{"v":-44811.00281505258,"d":"($44,811)"}},{"$f":"'Trial 5'!AC46","v":{"v":17707.201984541392,"d":"$17,707"}},{"$f":"'Trial 5'!AD46","v":{"v":34947.676791122765,"d":"$34,948"}},{"$f":"'Trial 5'!AE46","v":{"v":-36558.18788644413,"d":"($36,558)"}},{"$f":"'Trial 5'!AF46","v":{"v":-36370.28378533108,"d":"($36,370)"}},{"$f":"'Trial 5'!AG46","v":{"v":-16841.53146064665,"d":"($16,842)"}},{"$f":"'Trial 5'!AH46","v":{"v":31889.50769347672,"d":"$31,890"}},{"$f":"'Trial 5'!AI46","v":{"v":-4734.046391382934,"d":"($4,734)"}},{"$f":"'Trial 5'!AJ46","v":{"v":18129.6589486115,"d":"$18,130"}},{"$f":"'Trial 5'!AK46","v":{"v":33736.16111681515,"d":"$33,736"}},{"$f":"'Trial 5'!AL46","v":{"v":25515.309253059768,"d":"$25,515"}},{"$f":"'Trial 5'!AM46","v":{"v":-17368.884959057763,"d":"($17,369)"}},{"$f":"SUM('Trial 5'!AB46:AM46)","v":{"v":5241.578489712156,"d":"$5,242"}},{"$f":"'Trial 5'!AO46","v":{"v":-5438.772392402865,"d":"($5,439)"}},{"$f":"'Trial 5'!AP46","v":{"v":-14578.591065062566,"d":"($14,579)"}},{"$f":"'Trial 5'!AQ46","v":{"v":-30369.869825299127,"d":"($30,370)"}},{"$f":"'Trial 5'!AR46","v":{"v":53081.65317281856,"d":"$53,082"}},{"$f":"'Trial 5'!AS46","v":{"v":-23960.911065136712,"d":"($23,961)"}},{"$f":"'Trial 5'!AT46","v":{"v":7876.370914158627,"d":"$7,876"}},{"$f":"'Trial 5'!AU46","v":{"v":19574.13658660479,"d":"$19,574"}},{"$f":"'Trial 5'!AV46","v":{"v":9869.688921735624,"d":"$9,870"}},{"$f":"'Trial 5'!AW46","v":{"v":-41975.138377463925,"d":"($41,975)"}},{"$f":"'Trial 5'!AX46","v":{"v":-14334.346574997433,"d":"($14,334)"}},{"$f":"'Trial 5'!AY46","v":{"v":-9360.869349945611,"d":"($9,361)"}},{"$f":"'Trial 5'!AZ46","v":{"v":27370.980346843815,"d":"$27,371"}},{"$f":"SUM('Trial 5'!AO46:AZ46)","v":{"v":-22245.66870814683,"d":"($22,246)"}},{"$f":"'Trial 5'!BB46","v":{"v":-42647.65743535077,"d":"($42,648)"}},{"$f":"'Trial 5'!BC46","v":{"v":14233.825970996657,"d":"$14,234"}},{"$f":"'Trial 5'!BD46","v":{"v":55624.23114274295,"d":"$55,624"}},{"$f":"'Trial 5'!BE46","v":{"v":36715.454002292565,"d":"$36,715"}},{"$f":"'Trial 5'!BF46","v":{"v":-10300.778320466417,"d":"($10,301)"}},{"$f":"'Trial 5'!BG46","v":{"v":-45532.55908470482,"d":"($45,533)"}},{"$f":"'Trial 5'!BH46","v":{"v":56141.1848424944,"d":"$56,141"}},{"$f":"'Trial 5'!BI46","v":{"v":-36322.39043514293,"d":"($36,322)"}},{"$f":"'Trial 5'!BJ46","v":{"v":-2481.475695895875,"d":"($2,481)"}},{"$f":"'Trial 5'!BK46","v":{"v":40452.93561013343,"d":"$40,453"}},{"$f":"'Trial 5'!BL46","v":{"v":-37409.62477458278,"d":"($37,410)"}},{"$f":"'Trial 5'!BM46","v":{"v":14340.463670266992,"d":"$14,340"}},{"$f":"SUM('Trial 5'!BB46:BM46)","v":{"v":42813.60949278339,"d":"$42,814"}},{"$f":"'Trial 5'!BO46","v":{"v":-42531.33338326946,"d":"($42,531)"}},{"$f":"'Trial 5'!BP46","v":{"v":1951.6746259371214,"d":"$1,952"}},{"$f":"'Trial 5'!BQ46","v":{"v":-30976.3925601282,"d":"($30,976)"}},{"$f":"'Trial 5'!BR46","v":{"v":40471.566270986965,"d":"$40,472"}},{"$f":"'Trial 5'!BS46","v":{"v":-19175.51489443966,"d":"($19,176)"}},{"$f":"'Trial 5'!BT46","v":{"v":22791.11609498285,"d":"$22,791"}},{"$f":"'Trial 5'!BU46","v":{"v":38535.9381146082,"d":"$38,536"}},{"$f":"'Trial 5'!BV46","v":{"v":-31903.570201211725,"d":"($31,904)"}},{"$f":"'Trial 5'!BW46","v":{"v":-857.4722221616491,"d":"($857)"}},{"$f":"'Trial 5'!BX46","v":{"v":-57752.253265334344,"d":"($57,752)"}},{"$f":"'Trial 5'!BY46","v":{"v":20363.22239933309,"d":"$20,363"}},{"$f":"'Trial 5'!BZ46","v":{"v":3519.0746101591994,"d":"$3,519"}},{"$f":"SUM('Trial 5'!BO46:BZ46)","v":{"v":-55563.94441053762,"d":"($55,564)"}},{"$f":"'Trial 5'!CB46","v":{"v":32899.15083356009,"d":"$32,899"}},{"$f":"'Trial 5'!CC46","v":{"v":-13331.447650185048,"d":"($13,331)"}},{"$f":"'Trial 5'!CD46","v":{"v":-54147.561454255236,"d":"($54,148)"}},{"$f":"'Trial 5'!CE46","v":{"v":-32224.296232630346,"d":"($32,224)"}},{"$f":"'Trial 5'!CF46","v":{"v":-15565.719530179966,"d":"($15,566)"}},{"$f":"'Trial 5'!CG46","v":{"v":40689.29125436446,"d":"$40,689"}},{"$f":"'Trial 5'!CH46","v":{"v":53209.64955986583,"d":"$53,210"}},{"$f":"'Trial 5'!CI46","v":{"v":22010.64174437161,"d":"$22,011"}},{"$f":"'Trial 5'!CJ46","v":{"v":35985.96049091142,"d":"$35,986"}},{"$f":"'Trial 5'!CK46","v":{"v":-4963.116085882423,"d":"($4,963)"}},{"$f":"'Trial 5'!CL46","v":{"v":-24040.21407470559,"d":"($24,040)"}},{"$f":"'Trial 5'!CM46","v":{"v":-15914.162412049487,"d":"($15,914)"}},{"$f":"SUM('Trial 5'!CB46:CM46)","v":{"v":24608.176443185315,"d":"$24,608"}},{"$f":"'Trial 5'!CO46","v":{"v":-24710.653364241098,"d":"($24,711)"}},{"$f":"'Trial 5'!CP46","v":{"v":-17355.267166287085,"d":"($17,355)"}},{"$f":"'Trial 5'!CQ46","v":{"v":34534.180147028484,"d":"$34,534"}},{"$f":"'Trial 5'!CR46","v":{"v":8929.288305011652,"d":"$8,929"}},{"$f":"'Trial 5'!CS46","v":{"v":-16975.781876965142,"d":"($16,976)"}},{"$f":"'Trial 5'!CT46","v":{"v":-43267.231670890396,"d":"($43,267)"}},{"$f":"'Trial 5'!CU46","v":{"v":7150.490317485815,"d":"$7,150"}},{"$f":"'Trial 5'!CV46","v":{"v":-22575.691674719907,"d":"($22,576)"}},{"$f":"'Trial 5'!CW46","v":{"v":3770.6972222847094,"d":"$3,771"}},{"$f":"'Trial 5'!CX46","v":{"v":-43405.18405448606,"d":"($43,405)"}},{"$f":"'Trial 5'!CY46","v":{"v":-30.476612947275623,"d":"($30)"}},{"$f":"'Trial 5'!CZ46","v":{"v":18041.213927459536,"d":"$18,041"}},{"$f":"SUM('Trial 5'!CO46:CZ46)","v":{"v":-95894.41650126677,"d":"($95,894)"}},{"$f":"'Trial 5'!DB46","v":{"v":7340.404405065998,"d":"$7,340"}},{"$f":"'Trial 5'!DC46","v":{"v":-16654.82402334527,"d":"($16,655)"}},{"$f":"'Trial 5'!DD46","v":{"v":-39537.73717007921,"d":"($39,538)"}},{"$f":"'Trial 5'!DE46","v":{"v":17499.895244472387,"d":"$17,500"}},{"$f":"'Trial 5'!DF46","v":{"v":51219.90819860859,"d":"$51,220"}},{"$f":"'Trial 5'!DG46","v":{"v":-6157.6040411907325,"d":"($6,158)"}},{"$f":"'Trial 5'!DH46","v":{"v":-1445.9314984781113,"d":"($1,446)"}},{"$f":"'Trial 5'!DI46","v":{"v":2919.691124463843,"d":"$2,920"}},{"$f":"'Trial 5'!DJ46","v":{"v":-21495.673641017656,"d":"($21,496)"}},{"$f":"'Trial 5'!DK46","v":{"v":-433.6098062747716,"d":"($434)"}},{"$f":"'Trial 5'!DL46","v":{"v":-58661.3257553126,"d":"($58,661)"}},{"$f":"'Trial 5'!DM46","v":{"v":5638.880893131145,"d":"$5,639"}},{"$f":"SUM('Trial 5'!DB46:DM46)","v":{"v":-59767.92606995639,"d":"($59,768)"}},{"$f":"'Trial 5'!DO46","v":{"v":57228.26180158707,"d":"$57,228"}},{"$f":"'Trial 5'!DP46","v":{"v":-14557.66809370557,"d":"($14,558)"}},{"$f":"'Trial 5'!DQ46","v":{"v":-46467.945945452964,"d":"($46,468)"}},{"$f":"'Trial 5'!DR46","v":{"v":-23966.811708719644,"d":"($23,967)"}},{"$f":"'Trial 5'!DS46","v":{"v":-33569.39777130196,"d":"($33,569)"}},{"$f":"'Trial 5'!DT46","v":{"v":20049.074713196725,"d":"$20,049"}},{"$f":"'Trial 5'!DU46","v":{"v":8771.442181517654,"d":"$8,771"}},{"$f":"'Trial 5'!DV46","v":{"v":-3549.2412174906513,"d":"($3,549)"}},{"$f":"'Trial 5'!DW46","v":{"v":14929.579870118103,"d":"$14,930"}},{"$f":"'Trial 5'!DX46","v":{"v":-14313.460184340871,"d":"($14,313)"}},{"$f":"'Trial 5'!DY46","v":{"v":-48931.06909663915,"d":"($48,931)"}},{"$f":"'Trial 5'!DZ46","v":{"v":-10191.14560430092,"d":"($10,191)"}},{"$f":"SUM('Trial 5'!DO46:DZ46)","v":{"v":-94568.38105553217,"d":"($94,568)"}},{"$f":"'Trial 5'!EB46","v":{"v":-387.37870356394404,"d":"($387)"}},{"$f":"'Trial 5'!EC46","v":{"v":52450.880757913495,"d":"$52,451"}},{"$f":"'Trial 5'!ED46","v":{"v":-18890.28558775562,"d":"($18,890)"}},{"$f":"'Trial 5'!EE46","v":{"v":-43708.84147246844,"d":"($43,709)"}},{"$f":"'Trial 5'!EF46","v":{"v":-5725.003258830188,"d":"($5,725)"}},{"$f":"'Trial 5'!EG46","v":{"v":-11767.129581622015,"d":"($11,767)"}},{"$f":"'Trial 5'!EH46","v":{"v":17341.125605931753,"d":"$17,341"}},{"$f":"'Trial 5'!EI46","v":{"v":-55407.08489937441,"d":"($55,407)"}},{"$f":"'Trial 5'!EJ46","v":{"v":33175.050165499546,"d":"$33,175"}},{"$f":"'Trial 5'!EK46","v":{"v":-27870.8737917546,"d":"($27,871)"}},{"$f":"'Trial 5'!EL46","v":{"v":1243.2455038072285,"d":"$1,243"}},{"$f":"'Trial 5'!EM46","v":{"v":37869.008912907106,"d":"$37,869"}},{"$f":"SUM('Trial 5'!EB46:EM46)","v":{"v":-21677.28634931009,"d":"($21,677)"}}]
[{"$f":"Labels!B101","v":"Trial 06"},{"$f":"'Trial 6'!B46","v":{"v":-651.4459471436966,"d":"($651)"}},{"$f":"'Trial 6'!C46","v":{"v":-45309.11176561562,"d":"($45,309)"}},{"$f":"'Trial 6'!D46","v":{"v":22102.245182115897,"d":"$22,102"}},{"$f":"'Trial 6'!E46","v":{"v":2236.5157937435024,"d":"$2,237"}},{"$f":"'Trial 6'!F46","v":{"v":-53774.670747096956,"d":"($53,775)"}},{"$f":"'Trial 6'!G46","v":{"v":16466.6907206823,"d":"$16,467"}},{"$f":"'Trial 6'!H46","v":{"v":-26081.54857914822,"d":"($26,082)"}},{"$f":"'Trial 6'!I46","v":{"v":25571.45286550293,"d":"$25,571"}},{"$f":"'Trial 6'!J46","v":{"v":45082.78447347111,"d":"$45,083"}},{"$f":"'Trial 6'!K46","v":{"v":-13183.91455914935,"d":"($13,184)"}},{"$f":"'Trial 6'!L46","v":{"v":12985.928456097088,"d":"$12,986"}},{"$f":"'Trial 6'!M46","v":{"v":-55345.60484824524,"d":"($55,346)"}},{"$f":"SUM('Trial 6'!B46:M46)","v":{"v":-69900.67895478624,"d":"($69,901)"}},{"$f":"'Trial 6'!O46","v":{"v":-41716.40874222249,"d":"($41,716)"}},{"$f":"'Trial 6'!P46","v":{"v":12699.943719669789,"d":"$12,700"}},{"$f":"'Trial 6'!Q46","v":{"v":59113.42107175502,"d":"$59,113"}},{"$f":"'Trial 6'!R46","v":{"v":-41484.23189165599,"d":"($41,484)"}},{"$f":"'Trial 6'!S46","v":{"v":6731.868196801157,"d":"$6,732"}},{"$f":"'Trial 6'!T46","v":{"v":49599.22954958386,"d":"$49,599"}},{"$f":"'Trial 6'!U46","v":{"v":-22259.0899148496,"d":"($22,259)"}},{"$f":"'Trial 6'!V46","v":{"v":22144.528615716525,"d":"$22,145"}},{"$f":"'Trial 6'!W46","v":{"v":29076.70437414869,"d":"$29,077"}},{"$f":"'Trial 6'!X46","v":{"v":-2377.069317668579,"d":"($2,377)"}},{"$f":"'Trial 6'!Y46","v":{"v":-24564.845316460054,"d":"($24,565)"}},{"$f":"'Trial 6'!Z46","v":{"v":32344.639970317567,"d":"$32,345"}},{"$f":"SUM('Trial 6'!O46:Z46)","v":{"v":79308.69031513591,"d":"$79,309"}},{"$f":"'Trial 6'!AB46","v":{"v":-44088.31330412967,"d":"($44,088)"}},{"$f":"'Trial 6'!AC46","v":{"v":-23468.13019281685,"d":"($23,468)"}},{"$f":"'Trial 6'!AD46","v":{"v":51125.843744825084,"d":"$51,126"}},{"$f":"'Trial 6'!AE46","v":{"v":-9730.217394991032,"d":"($9,730)"}},{"$f":"'Trial 6'!AF46","v":{"v":52601.43526281214,"d":"$52,601"}},{"$f":"'Trial 6'!AG46","v":{"v":35059.11710721694,"d":"$35,059"}},{"$f":"'Trial 6'!AH46","v":{"v":10583.881792672895,"d":"$10,584"}},{"$f":"'Trial 6'!AI46","v":{"v":-38402.00428945589,"d":"($38,402)"}},{"$f":"'Trial 6'!AJ46","v":{"v":57760.89757811843,"d":"$57,761"}},{"$f":"'Trial 6'!AK46","v":{"v":-29399.09611378329,"d":"($29,399)"}},{"$f":"'Trial 6'!AL46","v":{"v":-58037.167300003,"d":"($58,037)"}},{"$f":"'Trial 6'!AM46","v":{"v":-15279.432970642336,"d":"($15,279)"}},{"$f":"SUM('Trial 6'!AB46:AM46)","v":{"v":-11273.186080176578,"d":"($11,273)"}},{"$f":"'Trial 6'!AO46","v":{"v":34668.00020301422,"d":"$34,668"}},{"$f":"'Trial 6'!AP46","v":{"v":-8700.698894355188,"d":"($8,701)"}},{"$f":"'Trial 6'!AQ46","v":{"v":12047.9682617607,"d":"$12,048"}},{"$f":"'Trial 6'!AR46","v":{"v":45907.4609049307,"d":"$45,907"}},{"$f":"'Trial 6'!AS46","v":{"v":-25708.949793039996,"d":"($25,709)"}},{"$f":"'Trial 6'!AT46","v":{"v":-50253.76965416858,"d":"($50,254)"}},{"$f":"'Trial 6'!AU46","v":{"v":24808.56675783532,"d":"$24,809"}},{"$f":"'Trial 6'!AV46","v":{"v":-4081.4460618035723,"d":"($4,081)"}},{"$f":"'Trial 6'!AW46","v":{"v":-25162.09970013615,"d":"($25,162)"}},{"$f":"'Trial 6'!AX46","v":{"v":-5456.737568230496,"d":"($5,457)"}},{"$f":"'Trial 6'!AY46","v":{"v":-7672.289231866038,"d":"($7,672)"}},{"$f":"'Trial 6'!AZ46","v":{"v":60630.81918257643,"d":"$60,631"}},{"$f":"SUM('Trial 6'!AO46:AZ46)","v":{"v":51026.82440651735,"d":"$51,027"}},{"$f":"'Trial 6'!BB46","v":{"v":37284.38787696884,"d":"$37,284"}},{"$f":"'Trial 6'!BC46","v":{"v":3215.3404522466617,"d":"$3,215"}},{"$f":"'Trial 6'!BD46","v":{"v":42687.58935883012,"d":"$42,688"}},{"$f":"'Trial 6'!BE46","v":{"v":660.9601600193788,"d":"$661"}},{"$f":"'Trial 6'!BF46","v":{"v":-33071.618464557665,"d":"($33,072)"}},{"$f":"'Trial 6'!BG46","v":{"v":-27731.84494715322,"d":"($27,732)"}},{"$f":"'Trial 6'!BH46","v":{"v":11779.056324966337,"d":"$11,779"}},{"$f":"'Trial 6'!BI46","v":{"v":-6556.976273801029,"d":"($6,557)"}},{"$f":"'Trial 6'!BJ46","v":{"v":21144.436643865858,"d":"$21,144"}},{"$f":"'Trial 6'!BK46","v":{"v":25012.123563213343,"d":"$25,012"}},{"$f":"'Trial 6'!BL46","v":{"v":30847.76989443788,"d":"$30,848"}},{"$f":"'Trial 6'!BM46","v":{"v":-19672.79430045576,"d":"($19,673)"}},{"$f":"SUM('Trial 6'!BB46:BM46)","v":{"v":85598.43028858074,"d":"$85,598"}},{"$f":"'Trial 6'!BO46","v":{"v":-368.5562540055115,"d":"($369)"}},{"$f":"'Trial 6'!BP46","v":{"v":32657.736615811573,"d":"$32,658"}},{"$f":"'Trial 6'!BQ46","v":{"v":-5245.310539541589,"d":"($5,245)"}},{"$f":"'Trial 6'!BR46","v":{"v":-4493.19755981644,"d":"($4,493)"}},{"$f":"'Trial 6'!BS46","v":{"v":33514.4096666247,"d":"$33,514"}},{"$f":"'Trial 6'!BT46","v":{"v":34929.278476600724,"d":"$34,929"}},{"$f":"'Trial 6'!BU46","v":{"v":-12089.769927294721,"d":"($12,090)"}},{"$f":"'Trial 6'!BV46","v":{"v":22287.441514009468,"d":"$22,287"}},{"$f":"'Trial 6'!BW46","v":{"v":36855.184864542214,"d":"$36,855"}},{"$f":"'Trial 6'!BX46","v":{"v":-15063.160374456207,"d":"($15,063)"}},{"$f":"'Trial 6'!BY46","v":{"v":24763.62104217592,"d":"$24,764"}},{"$f":"'Trial 6'!BZ46","v":{"v":-1530.2995106559622,"d":"($1,530)"}},{"$f":"SUM('Trial 6'!BO46:BZ46)","v":{"v":146217.37801399417,"d":"$146,217"}},{"$f":"'Trial 6'!CB46","v":{"v":-23332.81331792708,"d":"($23,333)"}},{"$f":"'Trial 6'!CC46","v":{"v":-7193.752881208552,"d":"($7,194)"}},{"$f":"'Trial 6'!CD46","v":{"v":9813.681514983855,"d":"$9,814"}},{"$f":"'Trial 6'!CE46","v":{"v":-1138.6151470697168,"d":"($1,139)"}},{"$f":"'Trial 6'!CF46","v":{"v":-25939.16429605951,"d":"($25,939)"}},{"$f":"'Trial 6'!CG46","v":{"v":21882.29193462214,"d":"$21,882"}},{"$f":"'Trial 6'!CH46","v":{"v":-56532.99339661046,"d":"($56,533)"}},{"$f":"'Trial 6'!CI46","v":{"v":26173.037268640877,"d":"$26,173"}},{"$f":"'Trial 6'!CJ46","v":{"v":-24188.955849985476,"d":"($24,189)"}},{"$f":"'Trial 6'!CK46","v":{"v":34615.83462671391,"d":"$34,616"}},{"$f":"'Trial 6'!CL46","v":{"v":-45042.89264396144,"d":"($45,043)"}},{"$f":"'Trial 6'!CM46","v":{"v":-33505.68449137984,"d":"($33,506)"}},{"$f":"SUM('Trial 6'!CB46:CM46)","v":{"v":-124390.02667924129,"d":"($124,390)"}},{"$f":"'Trial 6'!CO46","v":{"v":9152.610919684266,"d":"$9,153"}},{"$f":"'Trial 6'!CP46","v":{"v":-58060.42655619443,"d":"($58,060)"}},{"$f":"'Trial 6'!CQ46","v":{"v":-58811.80068712935,"d":"($58,812)"}},{"$f":"'Trial 6'!CR46","v":{"v":27314.69706223765,"d":"$27,315"}},{"$f":"'Trial 6'!CS46","v":{"v":16827.411048302107,"d":"$16,827"}},{"$f":"'Trial 6'!CT46","v":{"v":-9756.171579083471,"d":"($9,756)"}},{"$f":"'Trial 6'!CU46","v":{"v":28652.585960858276,"d":"$28,653"}},{"$f":"'Trial 6'!CV46","v":{"v":19545.725711576284,"d":"$19,546"}},{"$f":"'Trial 6'!CW46","v":{"v":-15882.8312379967,"d":"($15,883)"}},{"$f":"'Trial 6'!CX46","v":{"v":-17398.819628912144,"d":"($17,399)"}},{"$f":"'Trial 6'!CY46","v":{"v":24821.918328857337,"d":"$24,822"}},{"$f":"'Trial 6'!CZ46","v":{"v":23972.116410134415,"d":"$23,972"}},{"$f":"SUM('Trial 6'!CO46:CZ46)","v":{"v":-9622.98424766574,"d":"($9,623)"}},{"$f":"'Trial 6'!DB46","v":{"v":6248.071736435702,"d":"$6,248"}},{"$f":"'Trial 6'!DC46","v":{"v":-3901.2697992967983,"d":"($3,901)"}},{"$f":"'Trial 6'!DD46","v":{"v":-3154.8243312705354,"d":"($3,155)"}},{"$f":"'Trial 6'!DE46","v":{"v":7410.344482731172,"d":"$7,410"}},{"$f":"'Trial 6'!DF46","v":{"v":-20191.28429330717,"d":"($20,191)"}},{"$f":"'Trial 6'!DG46","v":{"v":-10543.879115929516,"d":"($10,544)"}},{"$f":"'Trial 6'!DH46","v":{"v":-3172.5289321128735,"d":"($3,173)"}},{"$f":"'Trial 6'!DI46","v":{"v":166.80979219784908,"d":"$167"}},{"$f":"'Trial 6'!DJ46","v":{"v":-8936.206628270635,"d":"($8,936)"}},{"$f":"'Trial 6'!DK46","v":{"v":34638.41595502497,"d":"$34,638"}},{"$f":"'Trial 6'!DL46","v":{"v":-29014.572892795517,"d":"($29,015)"}},{"$f":"'Trial 6'!DM46","v":{"v":-1157.9983293860068,"d":"($1,158)"}},{"$f":"SUM('Trial 6'!DB46:DM46)","v":{"v":-31608.922355979357,"d":"($31,609)"}},{"$f":"'Trial 6'!DO46","v":{"v":23130.900586267482,"d":"$23,131"}},{"$f":"'Trial 6'!DP46","v":{"v":-20767.833530165535,"d":"($20,768)"}},{"$f":"'Trial 6'!DQ46","v":{"v":16572.865050247252,"d":"$16,573"}},{"$f":"'Trial 6'!DR46","v":{"v":18407.765662668236,"d":"$18,408"}},{"$f":"'Trial 6'!DS46","v":{"v":15785.426404129059,"d":"$15,785"}},{"$f":"'Trial 6'!DT46","v":{"v":-2646.7907225049325,"d":"($2,647)"}},{"$f":"'Trial 6'!DU46","v":{"v":39967.33986550625,"d":"$39,967"}},{"$f":"'Trial 6'!DV46","v":{"v":-22358.23893666065,"d":"($22,358)"}},{"$f":"'Trial 6'!DW46","v":{"v":-8485.794488012656,"d":"($8,486)"}},{"$f":"'Trial 6'!DX46","v":{"v":-1344.4654581599946,"d":"($1,344)"}},{"$f":"'Trial 6'!DY46","v":{"v":31976.339937568264,"d":"$31,976"}},{"$f":"'Trial 6'!DZ46","v":{"v":-23524.260752014852,"d":"($23,524)"}},{"$f":"SUM('Trial 6'!DO46:DZ46)","v":{"v":66713.25361886792,"d":"$66,713"}},{"$f":"'Trial 6'!EB46","v":{"v":-35734.35209560701,"d":"($35,734)"}},{"$f":"'Trial 6'!EC46","v":{"v":26907.80297404791,"d":"$26,908"}},{"$f":"'Trial 6'!ED46","v":{"v":-19097.247827694722,"d":"($19,097)"}},{"$f":"'Trial 6'!EE46","v":{"v":1346.3004917882834,"d":"$1,346"}},{"$f":"'Trial 6'!EF46","v":{"v":-30549.215552917965,"d":"($30,549)"}},{"$f":"'Trial 6'!EG46","v":{"v":49880.360283547794,"d":"$49,880"}},{"$f":"'Trial 6'!EH46","v":{"v":-26899.736004896848,"d":"($26,900)"}},{"$f":"'Trial 6'!EI46","v":{"v":22746.557851056656,"d":"$22,747"}},{"$f":"'Trial 6'!EJ46","v":{"v":43864.66185545131,"d":"$43,865"}},{"$f":"'Trial 6'!EK46","v":{"v":14658.54742667572,"d":"$14,659"}},{"$f":"'Trial 6'!EL46","v":{"v":5918.104723907705,"d":"$5,918"}},{"$f":"'Trial 6'!EM46","v":{"v":8296.289764469475,"d":"$8,296"}},{"$f":"SUM('Trial 6'!EB46:EM46)","v":{"v":61338.0738898283,"d":"$61,338"}}]
[{"$f":"Labels!B102","v":"Trial 07"},{"$f":"'Trial 7'!B46","v":{"v":43585.001342937896,"d":"$43,585"}},{"$f":"'Trial 7'!C46","v":{"v":53522.905202486196,"d":"$53,523"}},{"$f":"'Trial 7'!D46","v":{"v":-36401.56976303398,"d":"($36,402)"}},{"$f":"'Trial 7'!E46","v":{"v":-32008.566651794852,"d":"($32,009)"}},{"$f":"'Trial 7'!F46","v":{"v":-49734.03160362422,"d":"($49,734)"}},{"$f":"'Trial 7'!G46","v":{"v":-36724.046001809824,"d":"($36,724)"}},{"$f":"'Trial 7'!H46","v":{"v":28668.144618073395,"d":"$28,668"}},{"$f":"'Trial 7'!I46","v":{"v":17615.413271862708,"d":"$17,615"}},{"$f":"'Trial 7'!J46","v":{"v":-12729.858551303676,"d":"($12,730)"}},{"$f":"'Trial 7'!K46","v":{"v":-26335.763262660774,"d":"($26,336)"}},{"$f":"'Trial 7'!L46","v":{"v":-828.6437727413175,"d":"($829)"}},{"$f":"'Trial 7'!M46","v":{"v":15355.367419834247,"d":"$15,355"}},{"$f":"SUM('Trial 7'!B46:M46)","v":{"v":-36015.6477517742,"d":"($36,016)"}},{"$f":"'Trial 7'!O46","v":{"v":-261.6884824631251,"d":"($262)"}},{"$f":"'Trial 7'!P46","v":{"v":36002.47940763905,"d":"$36,002"}},{"$f":"'Trial 7'!Q46","v":{"v":16365.694905384225,"d":"$16,366"}},{"$f":"'Trial 7'!R46","v":{"v":60530.426507433905,"d":"$60,530"}},{"$f":"'Trial 7'!S46","v":{"v":-10279.203918343732,"d":"($10,279)"}},{"$f":"'Trial 7'!T46","v":{"v":32820.3998172778,"d":"$32,820"}},{"$f":"'Trial 7'!U46","v":{"v":-8710.669582588422,"d":"($8,711)"}},{"$f":"'Trial 7'!V46","v":{"v":24511.999361366597,"d":"$24,512"}},{"$f":"'Trial 7'!W46","v":{"v":-48141.91765820472,"d":"($48,142)"}},{"$f":"'Trial 7'!X46","v":{"v":-17220.905018889785,"d":"($17,221)"}},{"$f":"'Trial 7'!Y46","v":{"v":28314.085202893657,"d":"$28,314"}},{"$f":"'Trial 7'!Z46","v":{"v":21132.79511470133,"d":"$21,133"}},{"$f":"SUM('Trial 7'!O46:Z46)","v":{"v":135063.49565620677,"d":"$135,063"}},{"$f":"'Trial 7'!AB46","v":{"v":-5903.796448003298,"d":"($5,904)"}},{"$f":"'Trial 7'!AC46","v":{"v":32457.79372640605,"d":"$32,458"}},{"$f":"'Trial 7'!AD46","v":{"v":28396.07088375615,"d":"$28,396"}},{"$f":"'Trial 7'!AE46","v":{"v":547.538314787109,"d":"$548"}},{"$f":"'Trial 7'!AF46","v":{"v":61420.210578363345,"d":"$61,420"}},{"$f":"'Trial 7'!AG46","v":{"v":-9168.309509261173,"d":"($9,168)"}},{"$f":"'Trial 7'!AH46","v":{"v":-3306.280550825184,"d":"($3,306)"}},{"$f":"'Trial 7'!AI46","v":{"v":-28853.44702968888,"d":"($28,853)"}},{"$f":"'Trial 7'!AJ46","v":{"v":-26044.28778087472,"d":"($26,044)"}},{"$f":"'Trial 7'!AK46","v":{"v":21115.36621715952,"d":"$21,115"}},{"$f":"'Trial 7'!AL46","v":{"v":10101.018223289137,"d":"$10,101"}},{"$f":"'Trial 7'!AM46","v":{"v":-29961.93205773884,"d":"($29,962)"}},{"$f":"SUM('Trial 7'!AB46:AM46)","v":{"v":50799.944567369224,"d":"$50,800"}},{"$f":"'Trial 7'!AO46","v":{"v":-31753.657688074793,"d":"($31,754)"}},{"$f":"'Trial 7'!AP46","v":{"v":-20628.20773270187,"d":"($20,628)"}},{"$f":"'Trial 7'!AQ46","v":{"v":-4349.032705963821,"d":"($4,349)"}},{"$f":"'Trial 7'!AR46","v":{"v":-41103.75320340778,"d":"($41,104)"}},{"$f":"'Trial 7'!AS46","v":{"v":-29395.76997785663,"d":"($29,396)"}},{"$f":"'Trial 7'!AT46","v":{"v":-39008.657269122,"d":"($39,009)"}},{"$f":"'Trial 7'!AU46","v":{"v":13494.244028054794,"d":"$13,494"}},{"$f":"'Trial 7'!AV46","v":{"v":29596.927733434226,"d":"$29,597"}},{"$f":"'Trial 7'!AW46","v":{"v":32310.2338959622,"d":"$32,310"}},{"$f":"'Trial 7'!AX46","v":{"v":20393.646757092247,"d":"$20,394"}},{"$f":"'Trial 7'!AY46","v":{"v":15944.237394572776,"d":"$15,944"}},{"$f":"'Trial 7'!AZ46","v":{"v":17508.8053709075,"d":"$17,509"}},{"$f":"SUM('Trial 7'!AO46:AZ46)","v":{"v":-36990.98339710316,"d":"($36,991)"}},{"$f":"'Trial 7'!BB46","v":{"v":-10778.486889016394,"d":"($10,778)"}},{"$f":"'Trial 7'!BC46","v":{"v":10769.985563669827,"d":"$10,770"}},{"$f":"'Trial 7'!BD46","v":{"v":47256.93235275557,"d":"$47,257"}},{"$f":"'Trial 7'!BE46","v":{"v":-318.5810934666251,"d":"($319)"}},{"$f":"'Trial 7'!BF46","v":{"v":-26824.289010954875,"d":"($26,824)"}},{"$f":"'Trial 7'!BG46","v":{"v":-7184.414662116715,"d":"($7,184)"}},{"$f":"'Trial 7'!BH46","v":{"v":-24191.576909981908,"d":"($24,192)"}},{"$f":"'Trial 7'!BI46","v":{"v":-39819.46163480417,"d":"($39,819)"}},{"$f":"'Trial 7'!BJ46","v":{"v":15353.864133541352,"d":"$15,354"}},{"$f":"'Trial 7'!BK46","v":{"v":29334.096235377976,"d":"$29,334"}},{"$f":"'Trial 7'!BL46","v":{"v":4825.515188879391,"d":"$4,826"}},{"$f":"'Trial 7'!BM46","v":{"v":-48248.060549320355,"d":"($48,248)"}},{"$f":"SUM('Trial 7'!BB46:BM46)","v":{"v":-49824.477275436926,"d":"($49,824)"}},{"$f":"'Trial 7'!BO46","v":{"v":-31832.30779535016,"d":"($31,832)"}},{"$f":"'Trial 7'!BP46","v":{"v":-14374.558429976672,"d":"($14,375)"}},{"$f":"'Trial 7'!BQ46","v":{"v":-8298.31328218063,"d":"($8,298)"}},{"$f":"'Trial 7'!BR46","v":{"v":49322.984963924086,"d":"$49,323"}},{"$f":"'Trial 7'!BS46","v":{"v":43054.08312342463,"d":"$43,054"}},{"$f":"'Trial 7'!BT46","v":{"v":-11313.738477550103,"d":"($11,314)"}},{"$f":"'Trial 7'!BU46","v":{"v":-31384.357920046143,"d":"($31,384)"}},{"$f":"'Trial 7'!BV46","v":{"v":-2472.8670340456583,"d":"($2,473)"}},{"$f":"'Trial 7'!BW46","v":{"v":11340.78258565099,"d":"$11,341"}},{"$f":"'Trial 7'!BX46","v":{"v":801.1680966302894,"d":"$801"}},{"$f":"'Trial 7'!BY46","v":{"v":29463.18271199472,"d":"$29,463"}},{"$f":"'Trial 7'!BZ46","v":{"v":14449.506209902162,"d":"$14,450"}},{"$f":"SUM('Trial 7'!BO46:BZ46)","v":{"v":48755.564752377504,"d":"$48,756"}},{"$f":"'Trial 7'!CB46","v":{"v":-3439.2986675446446,"d":"($3,439)"}},{"$f":"'Trial 7'!CC46","v":{"v":-29074.948327288785,"d":"($29,075)"}},{"$f":"'Trial 7'!CD46","v":{"v":17387.508535921977,"d":"$17,388"}},{"$f":"'Trial 7'!CE46","v":{"v":2033.547081433094,"d":"$2,034"}},{"$f":"'Trial 7'!CF46","v":{"v":-49117.07320287575,"d":"($49,117)"}},{"$f":"'Trial 7'!CG46","v":{"v":-2337.5699673188838,"d":"($2,338)"}},{"$f":"'Trial 7'!CH46","v":{"v":-50002.40528169318,"d":"($50,002)"}},{"$f":"'Trial 7'!CI46","v":{"v":-52435.7380888399,"d":"($52,436)"}},{"$f":"'Trial 7'!CJ46","v":{"v":990.8351755789125,"d":"$991"}},{"$f":"'Trial 7'!CK46","v":{"v":31092.177541123965,"d":"$31,092"}},{"$f":"'Trial 7'!CL46","v":{"v":4640.743075459774,"d":"$4,641"}},{"$f":"'Trial 7'!CM46","v":{"v":-45270.80501520305,"d":"($45,271)"}},{"$f":"SUM('Trial 7'!CB46:CM46)","v":{"v":-175533.02714124648,"d":"($175,533)"}},{"$f":"'Trial 7'!CO46","v":{"v":-15791.052741162082,"d":"($15,791)"}},{"$f":"'Trial 7'!CP46","v":{"v":18881.870182715367,"d":"$18,882"}},{"$f":"'Trial 7'!CQ46","v":{"v":-7363.838656335019,"d":"($7,364)"}},{"$f":"'Trial 7'!CR46","v":{"v":6047.020906220197,"d":"$6,047"}},{"$f":"'Trial 7'!CS46","v":{"v":47249.79413088712,"d":"$47,250"}},{"$f":"'Trial 7'!CT46","v":{"v":2716.1882438747602,"d":"$2,716"}},{"$f":"'Trial 7'!CU46","v":{"v":-7583.723009084729,"d":"($7,584)"}},{"$f":"'Trial 7'!CV46","v":{"v":15457.942897397976,"d":"$15,458"}},{"$f":"'Trial 7'!CW46","v":{"v":8924.138659881042,"d":"$8,924"}},{"$f":"'Trial 7'!CX46","v":{"v":51424.74557425516,"d":"$51,425"}},{"$f":"'Trial 7'!CY46","v":{"v":43841.06153130517,"d":"$43,841"}},{"$f":"'Trial 7'!CZ46","v":{"v":-205.07665274159865,"d":"($205)"}},{"$f":"SUM('Trial 7'!CO46:CZ46)","v":{"v":163599.07106721334,"d":"$163,599"}},{"$f":"'Trial 7'!DB46","v":{"v":-46321.00225655256,"d":"($46,321)"}},{"$f":"'Trial 7'!DC46","v":{"v":1681.509699118296,"d":"$1,682"}},{"$f":"'Trial 7'!DD46","v":{"v":15433.34753052388,"d":"$15,433"}},{"$f":"'Trial 7'!DE46","v":{"v":-53362.52101872177,"d":"($53,363)"}},{"$f":"'Trial 7'!DF46","v":{"v":9626.57350103695,"d":"$9,627"}},{"$f":"'Trial 7'!DG46","v":{"v":13521.606696483736,"d":"$13,522"}},{"$f":"'Trial 7'!DH46","v":{"v":-38546.96468818576,"d":"($38,547)"}},{"$f":"'Trial 7'!DI46","v":{"v":26256.77691510891,"d":"$26,257"}},{"$f":"'Trial 7'!DJ46","v":{"v":30679.636700720628,"d":"$30,680"}},{"$f":"'Trial 7'!DK46","v":{"v":-51585.40726491019,"d":"($51,585)"}},{"$f":"'Trial 7'!DL46","v":{"v":4001.302277189192,"d":"$4,001"}},{"$f":"'Trial 7'!DM46","v":{"v":34847.3369900079,"d":"$34,847"}},{"$f":"SUM('Trial 7'!DB46:DM46)","v":{"v":-53767.8049181808,"d":"($53,768)"}},{"$f":"'Trial 7'!DO46","v":{"v":-17252.143575756156,"d":"($17,252)"}},{"$f":"'Trial 7'!DP46","v":{"v":32796.689817471415,"d":"$32,797"}},{"$f":"'Trial 7'!DQ46","v":{"v":25799.878450661978,"d":"$25,800"}},{"$f":"'Trial 7'!DR46","v":{"v":-38071.646244227646,"d":"($38,072)"}},{"$f":"'Trial 7'!DS46","v":{"v":47247.84831596071,"d":"$47,248"}},{"$f":"'Trial 7'!DT46","v":{"v":-37524.57114057848,"d":"($37,525)"}},{"$f":"'Trial 7'!DU46","v":{"v":5386.862893408849,"d":"$5,387"}},{"$f":"'Trial 7'!DV46","v":{"v":-34617.24172907606,"d":"($34,617)"}},{"$f":"'Trial 7'!DW46","v":{"v":34929.38323051087,"d":"$34,929"}},{"$f":"'Trial 7'!DX46","v":{"v":54754.623357519326,"d":"$54,755"}},{"$f":"'Trial 7'!DY46","v":{"v":-38854.95766640745,"d":"($38,855)"}},{"$f":"'Trial 7'!DZ46","v":{"v":30080.45853528951,"d":"$30,080"}},{"$f":"SUM('Trial 7'!DO46:DZ46)","v":{"v":64675.18424477688,"d":"$64,675"}},{"$f":"'Trial 7'!EB46","v":{"v":22310.49833911713,"d":"$22,310"}},{"$f":"'Trial 7'!EC46","v":{"v":-3431.2510193820567,"d":"($3,431)"}},{"$f":"'Trial 7'!ED46","v":{"v":2100.7785724022865,"d":"$2,101"}},{"$f":"'Trial 7'!EE46","v":{"v":24625.74693921208,"d":"$24,626"}},{"$f":"'Trial 7'!EF46","v":{"v":28228.911650652535,"d":"$28,229"}},{"$f":"'Trial 7'!EG46","v":{"v":1836.3331238541289,"d":"$1,836"}},{"$f":"'Trial 7'!EH46","v":{"v":16486.731121567173,"d":"$16,487"}},{"$f":"'Trial 7'!EI46","v":{"v":44179.68580302055,"d":"$44,180"}},{"$f":"'Trial 7'!EJ46","v":{"v":-34781.91548931662,"d":"($34,782)"}},{"$f":"'Trial 7'!EK46","v":{"v":24695.313731907198,"d":"$24,695"}},{"$f":"'Trial 7'!EL46","v":{"v":52197.41000410268,"d":"$52,197"}},{"$f":"'Trial 7'!EM46","v":{"v":-14328.265238838452,"d":"($14,328)"}},{"$f":"SUM('Trial 7'!EB46:EM46)","v":{"v":164119.97753829864,"d":"$164,120"}}]
[{"$f":"Labels!B103","v":"Trial 08"},{"$f":"'Trial 8'!B46","v":{"v":11758.316593461632,"d":"$11,758"}},{"$f":"'Trial 8'!C46","v":{"v":-59683.13891333726,"d":"($59,683)"}},{"$f":"'Trial 8'!D46","v":{"v":-4352.629456698201,"d":"($4,353)"}},{"$f":"'Trial 8'!E46","v":{"v":-22165.14944067272,"d":"($22,165)"}},{"$f":"'Trial 8'!F46","v":{"v":4001.4969493792887,"d":"$4,001"}},{"$f":"'Trial 8'!G46","v":{"v":-41382.751594916896,"d":"($41,383)"}},{"$f":"'Trial 8'!H46","v":{"v":30891.732826672134,"d":"$30,892"}},{"$f":"'Trial 8'!I46","v":{"v":-12550.131232496171,"d":"($12,550)"}},{"$f":"'Trial 8'!J46","v":{"v":99.28930895963411,"d":"$99"}},{"$f":"'Trial 8'!K46","v":{"v":41788.32537218323,"d":"$41,788"}},{"$f":"'Trial 8'!L46","v":{"v":17399.98767225617,"d":"$17,400"}},{"$f":"'Trial 8'!M46","v":{"v":35158.739478892385,"d":"$35,159"}},{"$f":"SUM('Trial 8'!B46:M46)","v":{"v":964.0875636832061,"d":"$964"}},{"$f":"'Trial 8'!O46","v":{"v":22703.38346955329,"d":"$22,703"}},{"$f":"'Trial 8'!P46","v":{"v":2050.754564524483,"d":"$2,051"}},{"$f":"'Trial 8'!Q46","v":{"v":11843.903193094318,"d":"$11,844"}},{"$f":"'Trial 8'!R46","v":{"v":-15088.092925849496,"d":"($15,088)"}},{"$f":"'Trial 8'!S46","v":{"v":-16754.285603963814,"d":"($16,754)"}},{"$f":"'Trial 8'!T46","v":{"v":56176.070984542006,"d":"$56,176"}},{"$f":"'Trial 8'!U46","v":{"v":-5870.613891561926,"d":"($5,871)"}},{"$f":"'Trial 8'!V46","v":{"v":31705.424151273197,"d":"$31,705"}},{"$f":"'Trial 8'!W46","v":{"v":-42008.41772422307,"d":"($42,008)"}},{"$f":"'Trial 8'!X46","v":{"v":6982.826056893598,"d":"$6,983"}},{"$f":"'Trial 8'!Y46","v":{"v":-43732.35597461533,"d":"($43,732)"}},{"$f":"'Trial 8'!Z46","v":{"v":49539.31187615868,"d":"$49,539"}},{"$f":"SUM('Trial 8'!O46:Z46)","v":{"v":57547.90817582594,"d":"$57,548"}},{"$f":"'Trial 8'!AB46","v":{"v":30349.56000080791,"d":"$30,350"}},{"$f":"'Trial 8'!AC46","v":{"v":-41730.16950757349,"d":"($41,730)"}},{"$f":"'Trial 8'!AD46","v":{"v":-4972.564033788966,"d":"($4,973)"}},{"$f":"'Trial 8'!AE46","v":{"v":-10793.659815431485,"d":"($10,794)"}},{"$f":"'Trial 8'!AF46","v":{"v":-52338.66901488088,"d":"($52,339)"}},{"$f":"'Trial 8'!AG46","v":{"v":26416.66328950417,"d":"$26,417"}},{"$f":"'Trial 8'!AH46","v":{"v":21583.482477984806,"d":"$21,583"}},{"$f":"'Trial 8'!AI46","v":{"v":-24828.982601987274,"d":"($24,829)"}},{"$f":"'Trial 8'!AJ46","v":{"v":49934.710363580045,"d":"$49,935"}},{"$f":"'Trial 8'!AK46","v":{"v":26736.833704616478,"d":"$26,737"}},{"$f":"'Trial 8'!AL46","v":{"v":-3726.18158272627,"d":"($3,726)"}},{"$f":"'Trial 8'!AM46","v":{"v":50101.16940634804,"d":"$50,101"}},{"$f":"SUM('Trial 8'!AB46:AM46)","v":{"v":66732.19268645307,"d":"$66,732"}},{"$f":"'Trial 8'!AO46","v":{"v":1942.9984486911824,"d":"$1,943"}},{"$f":"'Trial 8'!AP46","v":{"v":-3683.518400507295,"d":"($3,684)"}},{"$f":"'Trial 8'!AQ46","v":{"v":27036.588508188892,"d":"$27,037"}},{"$f":"'Trial 8'!AR46","v":{"v":-9503.629984800758,"d":"($9,504)"}},{"$f":"'Trial 8'!AS46","v":{"v":32560.47945925333,"d":"$32,560"}},{"$f":"'Trial 8'!AT46","v":{"v":2093.0780256345506,"d":"$2,093"}},{"$f":"'Trial 8'!AU46","v":{"v":-17583.36454167255,"d":"($17,583)"}},{"$f":"'Trial 8'!AV46","v":{"v":-8370.59937424925,"d":"($8,371)"}},{"$f":"'Trial 8'!AW46","v":{"v":4809.330795596237,"d":"$4,809"}},{"$f":"'Trial 8'!AX46","v":{"v":51737.88576174847,"d":"$51,738"}},{"$f":"'Trial 8'!AY46","v":{"v":-5402.975741255465,"d":"($5,403)"}},{"$f":"'Trial 8'!AZ46","v":{"v":-42984.09328882783,"d":"($42,984)"}},{"$f":"SUM('Trial 8'!AO46:AZ46)","v":{"v":32652.179667799515,"d":"$32,652"}},{"$f":"'Trial 8'!BB46","v":{"v":-33778.06765055262,"d":"($33,778)"}},{"$f":"'Trial 8'!BC46","v":{"v":32427.410984597835,"d":"$32,427"}},{"$f":"'Trial 8'!BD46","v":{"v":34887.20997071134,"d":"$34,887"}},{"$f":"'Trial 8'!BE46","v":{"v":-6753.825200745093,"d":"($6,754)"}},{"$f":"'Trial 8'!BF46","v":{"v":25208.492275220848,"d":"$25,208"}},{"$f":"'Trial 8'!BG46","v":{"v":-2020.259053831673,"d":"($2,020)"}},{"$f":"'Trial 8'!BH46","v":{"v":26476.434058057792,"d":"$26,476"}},{"$f":"'Trial 8'!BI46","v":{"v":17033.887951331217,"d":"$17,034"}},{"$f":"'Trial 8'!BJ46","v":{"v":-4597.838277808737,"d":"($4,598)"}},{"$f":"'Trial 8'!BK46","v":{"v":-13098.82551186987,"d":"($13,099)"}},{"$f":"'Trial 8'!BL46","v":{"v":-5076.316796373514,"d":"($5,076)"}},{"$f":"'Trial 8'!BM46","v":{"v":4780.511173899094,"d":"$4,781"}},{"$f":"SUM('Trial 8'!BB46:BM46)","v":{"v":75488.81392263662,"d":"$75,489"}},{"$f":"'Trial 8'!BO46","v":{"v":-54395.610269582525,"d":"($54,396)"}},{"$f":"'Trial 8'!BP46","v":{"v":50481.767926379674,"d":"$50,482"}},{"$f":"'Trial 8'!BQ46","v":{"v":38218.24343724087,"d":"$38,218"}},{"$f":"'Trial 8'!BR46","v":{"v":60206.604191216175,"d":"$60,207"}},{"$f":"'Trial 8'!BS46","v":{"v":-7100.3639277003,"d":"($7,100)"}},{"$f":"'Trial 8'!BT46","v":{"v":54141.19260570231,"d":"$54,141"}},{"$f":"'Trial 8'!BU46","v":{"v":-2207.6538663552165,"d":"($2,208)"}},{"$f":"'Trial 8'!BV46","v":{"v":-54121.34713447715,"d":"($54,121)"}},{"$f":"'Trial 8'!BW46","v":{"v":11736.945222521472,"d":"$11,737"}},{"$f":"'Trial 8'!BX46","v":{"v":-34408.54327272898,"d":"($34,409)"}},{"$f":"'Trial 8'!BY46","v":{"v":-15349.139438950786,"d":"($15,349)"}},{"$f":"'Trial 8'!BZ46","v":{"v":15175.057182625304,"d":"$15,175"}},{"$f":"SUM('Trial 8'!BO46:BZ46)","v":{"v":62377.15265589085,"d":"$62,377"}},{"$f":"'Trial 8'!CB46","v":{"v":-49117.089688039356,"d":"($49,117)"}},{"$f":"'Trial 8'!CC46","v":{"v":34546.50669104812,"d":"$34,547"}},{"$f":"'Trial 8'!CD46","v":{"v":-15367.043945833258,"d":"($15,367)"}},{"$f":"'Trial 8'!CE46","v":{"v":-29041.433156828047,"d":"($29,041)"}},{"$f":"'Trial 8'!CF46","v":{"v":19862.684793012784,"d":"$19,863"}},{"$f":"'Trial 8'!CG46","v":{"v":629.0674379333241,"d":"$629"}},{"$f":"'Trial 8'!CH46","v":{"v":7817.447664359945,"d":"$7,817"}},{"$f":"'Trial 8'!CI46","v":{"v":-32792.07969609547,"d":"($32,792)"}},{"$f":"'Trial 8'!CJ46","v":{"v":58877.944783514475,"d":"$58,878"}},{"$f":"'Trial 8'!CK46","v":{"v":-20525.3184968725,"d":"($20,525)"}},{"$f":"'Trial 8'!CL46","v":{"v":21405.24658505235,"d":"$21,405"}},{"$f":"'Trial 8'!CM46","v":{"v":-42398.83668957733,"d":"($42,399)"}},{"$f":"SUM('Trial 8'!CB46:CM46)","v":{"v":-46102.903718324975,"d":"($46,103)"}},{"$f":"'Trial 8'!CO46","v":{"v":17306.50917396096,"d":"$17,307"}},{"$f":"'Trial 8'!CP46","v":{"v":-15148.09744179057,"d":"($15,148)"}},{"$f":"'Trial 8'!CQ46","v":{"v":42430.806882761666,"d":"$42,431"}},{"$f":"'Trial 8'!CR46","v":{"v":-33437.37231767393,"d":"($33,437)"}},{"$f":"'Trial 8'!CS46","v":{"v":15912.014307618572,"d":"$15,912"}},{"$f":"'Trial 8'!CT46","v":{"v":32703.928900611943,"d":"$32,704"}},{"$f":"'Trial 8'!CU46","v":{"v":36682.857006804974,"d":"$36,683"}},{"$f":"'Trial 8'!CV46","v":{"v":15769.620626744896,"d":"$15,770"}},{"$f":"'Trial 8'!CW46","v":{"v":-51142.60340580129,"d":"($51,143)"}},{"$f":"'Trial 8'!CX46","v":{"v":6934.934340261586,"d":"$6,935"}},{"$f":"'Trial 8'!CY46","v":{"v":-19148.79034708198,"d":"($19,149)"}},{"$f":"'Trial 8'!CZ46","v":{"v":39316.68780598005,"d":"$39,317"}},{"$f":"SUM('Trial 8'!CO46:CZ46)","v":{"v":88180.49553239689,"d":"$88,180"}},{"$f":"'Trial 8'!DB46","v":{"v":31286.258161448473,"d":"$31,286"}},{"$f":"'Trial 8'!DC46","v":{"v":-2572.0090726341914,"d":"($2,572)"}},{"$f":"'Trial 8'!DD46","v":{"v":-17303.690384799876,"d":"($17,304)"}},{"$f":"'Trial 8'!DE46","v":{"v":59562.43041330034,"d":"$59,562"}},{"$f":"'Trial 8'!DF46","v":{"v":2269.329147919628,"d":"$2,269"}},{"$f":"'Trial 8'!DG46","v":{"v":121.49074262293075,"d":"$121"}},{"$f":"'Trial 8'!DH46","v":{"v":36627.71708306296,"d":"$36,628"}},{"$f":"'Trial 8'!DI46","v":{"v":-24519.254374956516,"d":"($24,519)"}},{"$f":"'Trial 8'!DJ46","v":{"v":43834.50526278408,"d":"$43,835"}},{"$f":"'Trial 8'!DK46","v":{"v":32672.577668372644,"d":"$32,673"}},{"$f":"'Trial 8'!DL46","v":{"v":-15016.705682566517,"d":"($15,017)"}},{"$f":"'Trial 8'!DM46","v":{"v":28550.712878679187,"d":"$28,551"}},{"$f":"SUM('Trial 8'!DB46:DM46)","v":{"v":175513.36184323314,"d":"$175,513"}},{"$f":"'Trial 8'!DO46","v":{"v":33130.97982114229,"d":"$33,131"}},{"$f":"'Trial 8'!DP46","v":{"v":-20301.053576067785,"d":"($20,301)"}},{"$f":"'Trial 8'!DQ46","v":{"v":19681.285093904466,"d":"$19,681"}},{"$f":"'Trial 8'!DR46","v":{"v":-23102.421092006374,"d":"($23,102)"}},{"$f":"'Trial 8'!DS46","v":{"v":20302.38690527618,"d":"$20,302"}},{"$f":"'Trial 8'!DT46","v":{"v":39411.10744266698,"d":"$39,411"}},{"$f":"'Trial 8'!DU46","v":{"v":-5189.88190737059,"d":"($5,190)"}},{"$f":"'Trial 8'!DV46","v":{"v":-23061.565374546713,"d":"($23,062)"}},{"$f":"'Trial 8'!DW46","v":{"v":2823.9105922044837,"d":"$2,824"}},{"$f":"'Trial 8'!DX46","v":{"v":4936.531133226399,"d":"$4,937"}},{"$f":"'Trial 8'!DY46","v":{"v":36261.44859183239,"d":"$36,261"}},{"$f":"'Trial 8'!DZ46","v":{"v":-3799.2985526058483,"d":"($3,799)"}},{"$f":"SUM('Trial 8'!DO46:DZ46)","v":{"v":81093.42907765588,"d":"$81,093"}},{"$f":"'Trial 8'!EB46","v":{"v":29792.24203229446,"d":"$29,792"}},{"$f":"'Trial 8'!EC46","v":{"v":-34108.59902600158,"d":"($34,109)"}},{"$f":"'Trial 8'!ED46","v":{"v":-5941.831873487964,"d":"($5,942)"}},{"$f":"'Trial 8'!EE46","v":{"v":-30436.136372408946,"d":"($30,436)"}},{"$f":"'Trial 8'!EF46","v":{"v":47908.938997866775,"d":"$47,909"}},{"$f":"'Trial 8'!EG46","v":{"v":-20682.676865331083,"d":"($20,683)"}},{"$f":"'Trial 8'!EH46","v":{"v":1963.9534906723306,"d":"$1,964"}},{"$f":"'Trial 8'!EI46","v":{"v":19824.507664377914,"d":"$19,825"}},{"$f":"'Trial 8'!EJ46","v":{"v":17061.86712139309,"d":"$17,062"}},{"$f":"'Trial 8'!EK46","v":{"v":1839.8325883738005,"d":"$1,840"}},{"$f":"'Trial 8'!EL46","v":{"v":-56398.55399474203,"d":"($56,399)"}},{"$f":"'Trial 8'!EM46","v":{"v":21759.096697057677,"d":"$21,759"}},{"$f":"SUM('Trial 8'!EB46:EM46)","v":{"v":-7417.359539935562,"d":"($7,417)"}}]
[{"$f":"Labels!C95","v":"Total"},{"$f":"SUM('Trial 1'!B46,'Trial 2'!B46,'Trial 3'!B46,'Trial 4'!B46,'Trial 5'!B46,'Trial 6'!B46,'Trial 7'!B46,'Trial 8'!B46)","v":{"v":115479.06063733362,"d":"$115,479"}},{"$f":"SUM('Trial 1'!C46,'Trial 2'!C46,'Trial 3'!C46,'Trial 4'!C46,'Trial 5'!C46,'Trial 6'!C46,'Trial 7'!C46,'Trial 8'!C46)","v":{"v":25218.375019741958,"d":"$25,218"}},{"$f":"SUM('Trial 1'!D46,'Trial 2'!D46,'Trial 3'!D46,'Trial 4'!D46,'Trial 5'!D46,'Trial 6'!D46,'Trial 7'!D46,'Trial 8'!D46)","v":{"v":26322.885217161576,"d":"$26,323"}},{"$f":"SUM('Trial 1'!E46,'Trial 2'!E46,'Trial 3'!E46,'Trial 4'!E46,'Trial 5'!E46,'Trial 6'!E46,'Trial 7'!E46,'Trial 8'!E46)","v":{"v":-108250.69276570348,"d":"($108,251)"}},{"$f":"SUM('Trial 1'!F46,'Trial 2'!F46,'Trial 3'!F46,'Trial 4'!F46,'Trial 5'!F46,'Trial 6'!F46,'Trial 7'!F46,'Trial 8'!F46)","v":{"v":-91111.52054954412,"d":"($91,112)"}},{"$f":"SUM('Trial 1'!G46,'Trial 2'!G46,'Trial 3'!G46,'Trial 4'!G46,'Trial 5'!G46,'Trial 6'!G46,'Trial 7'!G46,'Trial 8'!G46)","v":{"v":-33095.46649196637,"d":"($33,095)"}},{"$f":"SUM('Trial 1'!H46,'Trial 2'!H46,'Trial 3'!H46,'Trial 4'!H46,'Trial 5'!H46,'Trial 6'!H46,'Trial 7'!H46,'Trial 8'!H46)","v":{"v":179562.05698642868,"d":"$179,562"}},{"$f":"SUM('Trial 1'!I46,'Trial 2'!I46,'Trial 3'!I46,'Trial 4'!I46,'Trial 5'!I46,'Trial 6'!I46,'Trial 7'!I46,'Trial 8'!I46)","v":{"v":-7067.246561854181,"d":"($7,067)"}},{"$f":"SUM('Trial 1'!J46,'Trial 2'!J46,'Trial 3'!J46,'Trial 4'!J46,'Trial 5'!J46,'Trial 6'!J46,'Trial 7'!J46,'Trial 8'!J46)","v":{"v":127164.08421295077,"d":"$127,164"}},{"$f":"SUM('Trial 1'!K46,'Trial 2'!K46,'Trial 3'!K46,'Trial 4'!K46,'Trial 5'!K46,'Trial 6'!K46,'Trial 7'!K46,'Trial 8'!K46)","v":{"v":-36964.23241359813,"d":"($36,964)"}},{"$f":"SUM('Trial 1'!L46,'Trial 2'!L46,'Trial 3'!L46,'Trial 4'!L46,'Trial 5'!L46,'Trial 6'!L46,'Trial 7'!L46,'Trial 8'!L46)","v":{"v":87605.24357611618,"d":"$87,605"}},{"$f":"SUM('Trial 1'!M46,'Trial 2'!M46,'Trial 3'!M46,'Trial 4'!M46,'Trial 5'!M46,'Trial 6'!M46,'Trial 7'!M46,'Trial 8'!M46)","v":{"v":84682.6833986716,"d":"$84,683"}},{"$f":"SUM(B205:M205)","v":{"v":369545.2302657381,"d":"$369,545"}},{"$f":"SUM('Trial 1'!O46,'Trial 2'!O46,'Trial 3'!O46,'Trial 4'!O46,'Trial 5'!O46,'Trial 6'!O46,'Trial 7'!O46,'Trial 8'!O46)","v":{"v":-48762.11749861302,"d":"($48,762)"}},{"$f":"SUM('Trial 1'!P46,'Trial 2'!P46,'Trial 3'!P46,'Trial 4'!P46,'Trial 5'!P46,'Trial 6'!P46,'Trial 7'!P46,'Trial 8'!P46)","v":{"v":61001.20166703148,"d":"$61,001"}},{"$f":"SUM('Trial 1'!Q46,'Trial 2'!Q46,'Trial 3'!Q46,'Trial 4'!Q46,'Trial 5'!Q46,'Trial 6'!Q46,'Trial 7'!Q46,'Trial 8'!Q46)","v":{"v":162952.75163489222,"d":"$162,953"}},{"$f":"SUM('Trial 1'!R46,'Trial 2'!R46,'Trial 3'!R46,'Trial 4'!R46,'Trial 5'!R46,'Trial 6'!R46,'Trial 7'!R46,'Trial 8'!R46)","v":{"v":51910.15351802084,"d":"$51,910"}},{"$f":"SUM('Trial 1'!S46,'Trial 2'!S46,'Trial 3'!S46,'Trial 4'!S46,'Trial 5'!S46,'Trial 6'!S46,'Trial 7'!S46,'Trial 8'!S46)","v":{"v":78106.33771801433,"d":"$78,106"}},{"$f":"SUM('Trial 1'!T46,'Trial 2'!T46,'Trial 3'!T46,'Trial 4'!T46,'Trial 5'!T46,'Trial 6'!T46,'Trial 7'!T46,'Trial 8'!T46)","v":{"v":43649.3252173335,"d":"$43,649"}},{"$f":"SUM('Trial 1'!U46,'Trial 2'!U46,'Trial 3'!U46,'Trial 4'!U46,'Trial 5'!U46,'Trial 6'!U46,'Trial 7'!U46,'Trial 8'!U46)","v":{"v":-28248.002157659048,"d":"($28,248)"}},{"$f":"SUM('Trial 1'!V46,'Trial 2'!V46,'Trial 3'!V46,'Trial 4'!V46,'Trial 5'!V46,'Trial 6'!V46,'Trial 7'!V46,'Trial 8'!V46)","v":{"v":88014.19494999947,"d":"$88,014"}},{"$f":"SUM('Trial 1'!W46,'Trial 2'!W46,'Trial 3'!W46,'Trial 4'!W46,'Trial 5'!W46,'Trial 6'!W46,'Trial 7'!W46,'Trial 8'!W46)","v":{"v":-9701.89954524683,"d":"($9,702)"}},{"$f":"SUM('Trial 1'!X46,'Trial 2'!X46,'Trial 3'!X46,'Trial 4'!X46,'Trial 5'!X46,'Trial 6'!X46,'Trial 7'!X46,'Trial 8'!X46)","v":{"v":55361.27134306496,"d":"$55,361"}},{"$f":"SUM('Trial 1'!Y46,'Trial 2'!Y46,'Trial 3'!Y46,'Trial 4'!Y46,'Trial 5'!Y46,'Trial 6'!Y46,'Trial 7'!Y46,'Trial 8'!Y46)","v":{"v":-54076.6534202331,"d":"($54,077)"}},{"$f":"SUM('Trial 1'!Z46,'Trial 2'!Z46,'Trial 3'!Z46,'Trial 4'!Z46,'Trial 5'!Z46,'Trial 6'!Z46,'Trial 7'!Z46,'Trial 8'!Z46)","v":{"v":84359.63579817535,"d":"$84,360"}},{"$f":"SUM(O205:Z205)","v":{"v":484566.19922478014,"d":"$484,566"}},{"$f":"SUM('Trial 1'!AB46,'Trial 2'!AB46,'Trial 3'!AB46,'Trial 4'!AB46,'Trial 5'!AB46,'Trial 6'!AB46,'Trial 7'!AB46,'Trial 8'!AB46)","v":{"v":-61350.12394637767,"d":"($61,350)"}},{"$f":"SUM('Trial 1'!AC46,'Trial 2'!AC46,'Trial 3'!AC46,'Trial 4'!AC46,'Trial 5'!AC46,'Trial 6'!AC46,'Trial 7'!AC46,'Trial 8'!AC46)","v":{"v":-6713.549493171871,"d":"($6,714)"}},{"$f":"SUM('Trial 1'!AD46,'Trial 2'!AD46,'Trial 3'!AD46,'Trial 4'!AD46,'Trial 5'!AD46,'Trial 6'!AD46,'Trial 7'!AD46,'Trial 8'!AD46)","v":{"v":153624.66223793736,"d":"$153,625"}},{"$f":"SUM('Trial 1'!AE46,'Trial 2'!AE46,'Trial 3'!AE46,'Trial 4'!AE46,'Trial 5'!AE46,'Trial 6'!AE46,'Trial 7'!AE46,'Trial 8'!AE46)","v":{"v":-117458.83060975527,"d":"($117,459)"}},{"$f":"SUM('Trial 1'!AF46,'Trial 2'!AF46,'Trial 3'!AF46,'Trial 4'!AF46,'Trial 5'!AF46,'Trial 6'!AF46,'Trial 7'!AF46,'Trial 8'!AF46)","v":{"v":33834.70583271165,"d":"$33,835"}},{"$f":"SUM('Trial 1'!AG46,'Trial 2'!AG46,'Trial 3'!AG46,'Trial 4'!AG46,'Trial 5'!AG46,'Trial 6'!AG46,'Trial 7'!AG46,'Trial 8'!AG46)","v":{"v":45975.71041491111,"d":"$45,976"}},{"$f":"SUM('Trial 1'!AH46,'Trial 2'!AH46,'Trial 3'!AH46,'Trial 4'!AH46,'Trial 5'!AH46,'Trial 6'!AH46,'Trial 7'!AH46,'Trial 8'!AH46)","v":{"v":84226.17898605132,"d":"$84,226"}},{"$f":"SUM('Trial 1'!AI46,'Trial 2'!AI46,'Trial 3'!AI46,'Trial 4'!AI46,'Trial 5'!AI46,'Trial 6'!AI46,'Trial 7'!AI46,'Trial 8'!AI46)","v":{"v":-136955.5806040616,"d":"($136,956)"}},{"$f":"SUM('Trial 1'!AJ46,'Trial 2'!AJ46,'Trial 3'!AJ46,'Trial 4'!AJ46,'Trial 5'!AJ46,'Trial 6'!AJ46,'Trial 7'!AJ46,'Trial 8'!AJ46)","v":{"v":43732.37079517193,"d":"$43,732"}},{"$f":"SUM('Trial 1'!AK46,'Trial 2'!AK46,'Trial 3'!AK46,'Trial 4'!AK46,'Trial 5'!AK46,'Trial 6'!AK46,'Trial 7'!AK46,'Trial 8'!AK46)","v":{"v":68843.81049709185,"d":"$68,844"}},{"$f":"SUM('Trial 1'!AL46,'Trial 2'!AL46,'Trial 3'!AL46,'Trial 4'!AL46,'Trial 5'!AL46,'Trial 6'!AL46,'Trial 7'!AL46,'Trial 8'!AL46)","v":{"v":-30679.772317507326,"d":"($30,680)"}},{"$f":"SUM('Trial 1'!AM46,'Trial 2'!AM46,'Trial 3'!AM46,'Trial 4'!AM46,'Trial 5'!AM46,'Trial 6'!AM46,'Trial 7'!AM46,'Trial 8'!AM46)","v":{"v":88485.60496550513,"d":"$88,486"}},{"$f":"SUM(AB205:AM205)","v":{"v":165565.1867585066,"d":"$165,565"}},{"$f":"SUM('Trial 1'!AO46,'Trial 2'!AO46,'Trial 3'!AO46,'Trial 4'!AO46,'Trial 5'!AO46,'Trial 6'!AO46,'Trial 7'!AO46,'Trial 8'!AO46)","v":{"v":-140513.01468020314,"d":"($140,513)"}},{"$f":"SUM('Trial 1'!AP46,'Trial 2'!AP46,'Trial 3'!AP46,'Trial 4'!AP46,'Trial 5'!AP46,'Trial 6'!AP46,'Trial 7'!AP46,'Trial 8'!AP46)","v":{"v":-80528.01629727213,"d":"($80,528)"}},{"$f":"SUM('Trial 1'!AQ46,'Trial 2'!AQ46,'Trial 3'!AQ46,'Trial 4'!AQ46,'Trial 5'!AQ46,'Trial 6'!AQ46,'Trial 7'!AQ46,'Trial 8'!AQ46)","v":{"v":102141.78480347755,"d":"$102,142"}},{"$f":"SUM('Trial 1'!AR46,'Trial 2'!AR46,'Trial 3'!AR46,'Trial 4'!AR46,'Trial 5'!AR46,'Trial 6'!AR46,'Trial 7'!AR46,'Trial 8'!AR46)","v":{"v":13746.918220275653,"d":"$13,747"}},{"$f":"SUM('Trial 1'!AS46,'Trial 2'!AS46,'Trial 3'!AS46,'Trial 4'!AS46,'Trial 5'!AS46,'Trial 6'!AS46,'Trial 7'!AS46,'Trial 8'!AS46)","v":{"v":-147949.48367174872,"d":"($147,949)"}},{"$f":"SUM('Trial 1'!AT46,'Trial 2'!AT46,'Trial 3'!AT46,'Trial 4'!AT46,'Trial 5'!AT46,'Trial 6'!AT46,'Trial 7'!AT46,'Trial 8'!AT46)","v":{"v":-143191.85140996723,"d":"($143,192)"}},{"$f":"SUM('Trial 1'!AU46,'Trial 2'!AU46,'Trial 3'!AU46,'Trial 4'!AU46,'Trial 5'!AU46,'Trial 6'!AU46,'Trial 7'!AU46,'Trial 8'!AU46)","v":{"v":111631.52821963793,"d":"$111,632"}},{"$f":"SUM('Trial 1'!AV46,'Trial 2'!AV46,'Trial 3'!AV46,'Trial 4'!AV46,'Trial 5'!AV46,'Trial 6'!AV46,'Trial 7'!AV46,'Trial 8'!AV46)","v":{"v":118473.50239061695,"d":"$118,474"}},{"$f":"SUM('Trial 1'!AW46,'Trial 2'!AW46,'Trial 3'!AW46,'Trial 4'!AW46,'Trial 5'!AW46,'Trial 6'!AW46,'Trial 7'!AW46,'Trial 8'!AW46)","v":{"v":-61198.834857113805,"d":"($61,199)"}},{"$f":"SUM('Trial 1'!AX46,'Trial 2'!AX46,'Trial 3'!AX46,'Trial 4'!AX46,'Trial 5'!AX46,'Trial 6'!AX46,'Trial 7'!AX46,'Trial 8'!AX46)","v":{"v":45661.468445775,"d":"$45,661"}},{"$f":"SUM('Trial 1'!AY46,'Trial 2'!AY46,'Trial 3'!AY46,'Trial 4'!AY46,'Trial 5'!AY46,'Trial 6'!AY46,'Trial 7'!AY46,'Trial 8'!AY46)","v":{"v":-28530.679036795224,"d":"($28,531)"}},{"$f":"SUM('Trial 1'!AZ46,'Trial 2'!AZ46,'Trial 3'!AZ46,'Trial 4'!AZ46,'Trial 5'!AZ46,'Trial 6'!AZ46,'Trial 7'!AZ46,'Trial 8'!AZ46)","v":{"v":27571.755512444244,"d":"$27,572"}},{"$f":"SUM(AO205:AZ205)","v":{"v":-182684.92236087297,"d":"($182,685)"}},{"$f":"SUM('Trial 1'!BB46,'Trial 2'!BB46,'Trial 3'!BB46,'Trial 4'!BB46,'Trial 5'!BB46,'Trial 6'!BB46,'Trial 7'!BB46,'Trial 8'!BB46)","v":{"v":-7896.745289033548,"d":"($7,897)"}},{"$f":"SUM('Trial 1'!BC46,'Trial 2'!BC46,'Trial 3'!BC46,'Trial 4'!BC46,'Trial 5'!BC46,'Trial 6'!BC46,'Trial 7'!BC46,'Trial 8'!BC46)","v":{"v":128868.39967487173,"d":"$128,868"}},{"$f":"SUM('Trial 1'!BD46,'Trial 2'!BD46,'Trial 3'!BD46,'Trial 4'!BD46,'Trial 5'!BD46,'Trial 6'!BD46,'Trial 7'!BD46,'Trial 8'!BD46)","v":{"v":174833.03071937972,"d":"$174,833"}},{"$f":"SUM('Trial 1'!BE46,'Trial 2'!BE46,'Trial 3'!BE46,'Trial 4'!BE46,'Trial 5'!BE46,'Trial 6'!BE46,'Trial 7'!BE46,'Trial 8'!BE46)","v":{"v":51236.67501178363,"d":"$51,237"}},{"$f":"SUM('Trial 1'!BF46,'Trial 2'!BF46,'Trial 3'!BF46,'Trial 4'!BF46,'Trial 5'!BF46,'Trial 6'!BF46,'Trial 7'!BF46,'Trial 8'!BF46)","v":{"v":-19044.404617473327,"d":"($19,044)"}},{"$f":"SUM('Trial 1'!BG46,'Trial 2'!BG46,'Trial 3'!BG46,'Trial 4'!BG46,'Trial 5'!BG46,'Trial 6'!BG46,'Trial 7'!BG46,'Trial 8'!BG46)","v":{"v":-28281.32775530206,"d":"($28,281)"}},{"$f":"SUM('Trial 1'!BH46,'Trial 2'!BH46,'Trial 3'!BH46,'Trial 4'!BH46,'Trial 5'!BH46,'Trial 6'!BH46,'Trial 7'!BH46,'Trial 8'!BH46)","v":{"v":145811.95248394355,"d":"$145,812"}},{"$f":"SUM('Trial 1'!BI46,'Trial 2'!BI46,'Trial 3'!BI46,'Trial 4'!BI46,'Trial 5'!BI46,'Trial 6'!BI46,'Trial 7'!BI46,'Trial 8'!BI46)","v":{"v":-30329.416728906403,"d":"($30,329)"}},{"$f":"SUM('Trial 1'!BJ46,'Trial 2'!BJ46,'Trial 3'!BJ46,'Trial 4'!BJ46,'Trial 5'!BJ46,'Trial 6'!BJ46,'Trial 7'!BJ46,'Trial 8'!BJ46)","v":{"v":27125.465461791286,"d":"$27,125"}},{"$f":"SUM('Trial 1'!BK46,'Trial 2'!BK46,'Trial 3'!BK46,'Trial 4'!BK46,'Trial 5'!BK46,'Trial 6'!BK46,'Trial 7'!BK46,'Trial 8'!BK46)","v":{"v":36680.050006608115,"d":"$36,680"}},{"$f":"SUM('Trial 1'!BL46,'Trial 2'!BL46,'Trial 3'!BL46,'Trial 4'!BL46,'Trial 5'!BL46,'Trial 6'!BL46,'Trial 7'!BL46,'Trial 8'!BL46)","v":{"v":-24641.806176401366,"d":"($24,642)"}},{"$f":"SUM('Trial 1'!BM46,'Trial 2'!BM46,'Trial 3'!BM46,'Trial 4'!BM46,'Trial 5'!BM46,'Trial 6'!BM46,'Trial 7'!BM46,'Trial 8'!BM46)","v":{"v":-54573.39411569135,"d":"($54,573)"}},{"$f":"SUM(BB205:BM205)","v":{"v":399788.47867556993,"d":"$399,788"}},{"$f":"SUM('Trial 1'!BO46,'Trial 2'!BO46,'Trial 3'!BO46,'Trial 4'!BO46,'Trial 5'!BO46,'Trial 6'!BO46,'Trial 7'!BO46,'Trial 8'!BO46)","v":{"v":-143364.70521629805,"d":"($143,365)"}},{"$f":"SUM('Trial 1'!BP46,'Trial 2'!BP46,'Trial 3'!BP46,'Trial 4'!BP46,'Trial 5'!BP46,'Trial 6'!BP46,'Trial 7'!BP46,'Trial 8'!BP46)","v":{"v":116773.58039140904,"d":"$116,774"}},{"$f":"SUM('Trial 1'!BQ46,'Trial 2'!BQ46,'Trial 3'!BQ46,'Trial 4'!BQ46,'Trial 5'!BQ46,'Trial 6'!BQ46,'Trial 7'!BQ46,'Trial 8'!BQ46)","v":{"v":-17382.770481038584,"d":"($17,383)"}},{"$f":"SUM('Trial 1'!BR46,'Trial 2'!BR46,'Trial 3'!BR46,'Trial 4'!BR46,'Trial 5'!BR46,'Trial 6'!BR46,'Trial 7'!BR46,'Trial 8'!BR46)","v":{"v":197045.24927671428,"d":"$197,045"}},{"$f":"SUM('Trial 1'!BS46,'Trial 2'!BS46,'Trial 3'!BS46,'Trial 4'!BS46,'Trial 5'!BS46,'Trial 6'!BS46,'Trial 7'!BS46,'Trial 8'!BS46)","v":{"v":14458.012704920317,"d":"$14,458"}},{"$f":"SUM('Trial 1'!BT46,'Trial 2'!BT46,'Trial 3'!BT46,'Trial 4'!BT46,'Trial 5'!BT46,'Trial 6'!BT46,'Trial 7'!BT46,'Trial 8'!BT46)","v":{"v":97926.48937593895,"d":"$97,926"}},{"$f":"SUM('Trial 1'!BU46,'Trial 2'!BU46,'Trial 3'!BU46,'Trial 4'!BU46,'Trial 5'!BU46,'Trial 6'!BU46,'Trial 7'!BU46,'Trial 8'!BU46)","v":{"v":-44633.79204647604,"d":"($44,634)"}},{"$f":"SUM('Trial 1'!BV46,'Trial 2'!BV46,'Trial 3'!BV46,'Trial 4'!BV46,'Trial 5'!BV46,'Trial 6'!BV46,'Trial 7'!BV46,'Trial 8'!BV46)","v":{"v":-53229.164127932556,"d":"($53,229)"}},{"$f":"SUM('Trial 1'!BW46,'Trial 2'!BW46,'Trial 3'!BW46,'Trial 4'!BW46,'Trial 5'!BW46,'Trial 6'!BW46,'Trial 7'!BW46,'Trial 8'!BW46)","v":{"v":155694.30519720394,"d":"$155,694"}},{"$f":"SUM('Trial 1'!BX46,'Trial 2'!BX46,'Trial 3'!BX46,'Trial 4'!BX46,'Trial 5'!BX46,'Trial 6'!BX46,'Trial 7'!BX46,'Trial 8'!BX46)","v":{"v":-107999.48191720402,"d":"($107,999)"}},{"$f":"SUM('Trial 1'!BY46,'Trial 2'!BY46,'Trial 3'!BY46,'Trial 4'!BY46,'Trial 5'!BY46,'Trial 6'!BY46,'Trial 7'!BY46,'Trial 8'!BY46)","v":{"v":74697.80428950368,"d":"$74,698"}},{"$f":"SUM('Trial 1'!BZ46,'Trial 2'!BZ46,'Trial 3'!BZ46,'Trial 4'!BZ46,'Trial 5'!BZ46,'Trial 6'!BZ46,'Trial 7'!BZ46,'Trial 8'!BZ46)","v":{"v":41337.526405076394,"d":"$41,338"}},{"$f":"SUM(BO205:BZ205)","v":{"v":331323.0538518173,"d":"$331,323"}},{"$f":"SUM('Trial 1'!CB46,'Trial 2'!CB46,'Trial 3'!CB46,'Trial 4'!CB46,'Trial 5'!CB46,'Trial 6'!CB46,'Trial 7'!CB46,'Trial 8'!CB46)","v":{"v":23837.894900070227,"d":"$23,838"}},{"$f":"SUM('Trial 1'!CC46,'Trial 2'!CC46,'Trial 3'!CC46,'Trial 4'!CC46,'Trial 5'!CC46,'Trial 6'!CC46,'Trial 7'!CC46,'Trial 8'!CC46)","v":{"v":32667.769192886884,"d":"$32,668"}},{"$f":"SUM('Trial 1'!CD46,'Trial 2'!CD46,'Trial 3'!CD46,'Trial 4'!CD46,'Trial 5'!CD46,'Trial 6'!CD46,'Trial 7'!CD46,'Trial 8'!CD46)","v":{"v":-114109.97260026059,"d":"($114,110)"}},{"$f":"SUM('Trial 1'!CE46,'Trial 2'!CE46,'Trial 3'!CE46,'Trial 4'!CE46,'Trial 5'!CE46,'Trial 6'!CE46,'Trial 7'!CE46,'Trial 8'!CE46)","v":{"v":-82958.3724973591,"d":"($82,958)"}},{"$f":"SUM('Trial 1'!CF46,'Trial 2'!CF46,'Trial 3'!CF46,'Trial 4'!CF46,'Trial 5'!CF46,'Trial 6'!CF46,'Trial 7'!CF46,'Trial 8'!CF46)","v":{"v":-13137.126799731588,"d":"($13,137)"}},{"$f":"SUM('Trial 1'!CG46,'Trial 2'!CG46,'Trial 3'!CG46,'Trial 4'!CG46,'Trial 5'!CG46,'Trial 6'!CG46,'Trial 7'!CG46,'Trial 8'!CG46)","v":{"v":28292.613476205443,"d":"$28,293"}},{"$f":"SUM('Trial 1'!CH46,'Trial 2'!CH46,'Trial 3'!CH46,'Trial 4'!CH46,'Trial 5'!CH46,'Trial 6'!CH46,'Trial 7'!CH46,'Trial 8'!CH46)","v":{"v":-72561.34705654968,"d":"($72,561)"}},{"$f":"SUM('Trial 1'!CI46,'Trial 2'!CI46,'Trial 3'!CI46,'Trial 4'!CI46,'Trial 5'!CI46,'Trial 6'!CI46,'Trial 7'!CI46,'Trial 8'!CI46)","v":{"v":-14167.346271588845,"d":"($14,167)"}},{"$f":"SUM('Trial 1'!CJ46,'Trial 2'!CJ46,'Trial 3'!CJ46,'Trial 4'!CJ46,'Trial 5'!CJ46,'Trial 6'!CJ46,'Trial 7'!CJ46,'Trial 8'!CJ46)","v":{"v":144655.55996474065,"d":"$144,656"}},{"$f":"SUM('Trial 1'!CK46,'Trial 2'!CK46,'Trial 3'!CK46,'Trial 4'!CK46,'Trial 5'!CK46,'Trial 6'!CK46,'Trial 7'!CK46,'Trial 8'!CK46)","v":{"v":28919.66893466275,"d":"$28,920"}},{"$f":"SUM('Trial 1'!CL46,'Trial 2'!CL46,'Trial 3'!CL46,'Trial 4'!CL46,'Trial 5'!CL46,'Trial 6'!CL46,'Trial 7'!CL46,'Trial 8'!CL46)","v":{"v":-37297.25116302919,"d":"($37,297)"}},{"$f":"SUM('Trial 1'!CM46,'Trial 2'!CM46,'Trial 3'!CM46,'Trial 4'!CM46,'Trial 5'!CM46,'Trial 6'!CM46,'Trial 7'!CM46,'Trial 8'!CM46)","v":{"v":-164501.61937310823,"d":"($164,502)"}},{"$f":"SUM(CB205:CM205)","v":{"v":-240359.52929306126,"d":"($240,360)"}},{"$f":"SUM('Trial 1'!CO46,'Trial 2'!CO46,'Trial 3'!CO46,'Trial 4'!CO46,'Trial 5'!CO46,'Trial 6'!CO46,'Trial 7'!CO46,'Trial 8'!CO46)","v":{"v":-22225.300884870074,"d":"($22,225)"}},{"$f":"SUM('Trial 1'!CP46,'Trial 2'!CP46,'Trial 3'!CP46,'Trial 4'!CP46,'Trial 5'!CP46,'Trial 6'!CP46,'Trial 7'!CP46,'Trial 8'!CP46)","v":{"v":-57430.53797504805,"d":"($57,431)"}},{"$f":"SUM('Trial 1'!CQ46,'Trial 2'!CQ46,'Trial 3'!CQ46,'Trial 4'!CQ46,'Trial 5'!CQ46,'Trial 6'!CQ46,'Trial 7'!CQ46,'Trial 8'!CQ46)","v":{"v":33427.211212811075,"d":"$33,427"}},{"$f":"SUM('Trial 1'!CR46,'Trial 2'!CR46,'Trial 3'!CR46,'Trial 4'!CR46,'Trial 5'!CR46,'Trial 6'!CR46,'Trial 7'!CR46,'Trial 8'!CR46)","v":{"v":-33334.485894532016,"d":"($33,334)"}},{"$f":"SUM('Trial 1'!CS46,'Trial 2'!CS46,'Trial 3'!CS46,'Trial 4'!CS46,'Trial 5'!CS46,'Trial 6'!CS46,'Trial 7'!CS46,'Trial 8'!CS46)","v":{"v":34148.02350801623,"d":"$34,148"}},{"$f":"SUM('Trial 1'!CT46,'Trial 2'!CT46,'Trial 3'!CT46,'Trial 4'!CT46,'Trial 5'!CT46,'Trial 6'!CT46,'Trial 7'!CT46,'Trial 8'!CT46)","v":{"v":-28031.596014726296,"d":"($28,032)"}},{"$f":"SUM('Trial 1'!CU46,'Trial 2'!CU46,'Trial 3'!CU46,'Trial 4'!CU46,'Trial 5'!CU46,'Trial 6'!CU46,'Trial 7'!CU46,'Trial 8'!CU46)","v":{"v":63851.3373531636,"d":"$63,851"}},{"$f":"SUM('Trial 1'!CV46,'Trial 2'!CV46,'Trial 3'!CV46,'Trial 4'!CV46,'Trial 5'!CV46,'Trial 6'!CV46,'Trial 7'!CV46,'Trial 8'!CV46)","v":{"v":2009.4478152869888,"d":"$2,009"}},{"$f":"SUM('Trial 1'!CW46,'Trial 2'!CW46,'Trial 3'!CW46,'Trial 4'!CW46,'Trial 5'!CW46,'Trial 6'!CW46,'Trial 7'!CW46,'Trial 8'!CW46)","v":{"v":-101961.27725543757,"d":"($101,961)"}},{"$f":"SUM('Trial 1'!CX46,'Trial 2'!CX46,'Trial 3'!CX46,'Trial 4'!CX46,'Trial 5'!CX46,'Trial 6'!CX46,'Trial 7'!CX46,'Trial 8'!CX46)","v":{"v":65237.607553030604,"d":"$65,238"}},{"$f":"SUM('Trial 1'!CY46,'Trial 2'!CY46,'Trial 3'!CY46,'Trial 4'!CY46,'Trial 5'!CY46,'Trial 6'!CY46,'Trial 7'!CY46,'Trial 8'!CY46)","v":{"v":96148.24273951058,"d":"$96,148"}},{"$f":"SUM('Trial 1'!CZ46,'Trial 2'!CZ46,'Trial 3'!CZ46,'Trial 4'!CZ46,'Trial 5'!CZ46,'Trial 6'!CZ46,'Trial 7'!CZ46,'Trial 8'!CZ46)","v":{"v":132507.236885893,"d":"$132,507"}},{"$f":"SUM(CO205:CZ205)","v":{"v":184345.90904309807,"d":"$184,346"}},{"$f":"SUM('Trial 1'!DB46,'Trial 2'!DB46,'Trial 3'!DB46,'Trial 4'!DB46,'Trial 5'!DB46,'Trial 6'!DB46,'Trial 7'!DB46,'Trial 8'!DB46)","v":{"v":-39179.52536827293,"d":"($39,180)"}},{"$f":"SUM('Trial 1'!DC46,'Trial 2'!DC46,'Trial 3'!DC46,'Trial 4'!DC46,'Trial 5'!DC46,'Trial 6'!DC46,'Trial 7'!DC46,'Trial 8'!DC46)","v":{"v":-14682.837018463944,"d":"($14,683)"}},{"$f":"SUM('Trial 1'!DD46,'Trial 2'!DD46,'Trial 3'!DD46,'Trial 4'!DD46,'Trial 5'!DD46,'Trial 6'!DD46,'Trial 7'!DD46,'Trial 8'!DD46)","v":{"v":-17776.573169542862,"d":"($17,777)"}},{"$f":"SUM('Trial 1'!DE46,'Trial 2'!DE46,'Trial 3'!DE46,'Trial 4'!DE46,'Trial 5'!DE46,'Trial 6'!DE46,'Trial 7'!DE46,'Trial 8'!DE46)","v":{"v":85562.13472762362,"d":"$85,562"}},{"$f":"SUM('Trial 1'!DF46,'Trial 2'!DF46,'Trial 3'!DF46,'Trial 4'!DF46,'Trial 5'!DF46,'Trial 6'!DF46,'Trial 7'!DF46,'Trial 8'!DF46)","v":{"v":39593.083786903866,"d":"$39,593"}},{"$f":"SUM('Trial 1'!DG46,'Trial 2'!DG46,'Trial 3'!DG46,'Trial 4'!DG46,'Trial 5'!DG46,'Trial 6'!DG46,'Trial 7'!DG46,'Trial 8'!DG46)","v":{"v":-89454.03310602707,"d":"($89,454)"}},{"$f":"SUM('Trial 1'!DH46,'Trial 2'!DH46,'Trial 3'!DH46,'Trial 4'!DH46,'Trial 5'!DH46,'Trial 6'!DH46,'Trial 7'!DH46,'Trial 8'!DH46)","v":{"v":66558.48552171704,"d":"$66,558"}},{"$f":"SUM('Trial 1'!DI46,'Trial 2'!DI46,'Trial 3'!DI46,'Trial 4'!DI46,'Trial 5'!DI46,'Trial 6'!DI46,'Trial 7'!DI46,'Trial 8'!DI46)","v":{"v":13017.396837505898,"d":"$13,017"}},{"$f":"SUM('Trial 1'!DJ46,'Trial 2'!DJ46,'Trial 3'!DJ46,'Trial 4'!DJ46,'Trial 5'!DJ46,'Trial 6'!DJ46,'Trial 7'!DJ46,'Trial 8'!DJ46)","v":{"v":95590.84454036423,"d":"$95,591"}},{"$f":"SUM('Trial 1'!DK46,'Trial 2'!DK46,'Trial 3'!DK46,'Trial 4'!DK46,'Trial 5'!DK46,'Trial 6'!DK46,'Trial 7'!DK46,'Trial 8'!DK46)","v":{"v":62225.27054634258,"d":"$62,225"}},{"$f":"SUM('Trial 1'!DL46,'Trial 2'!DL46,'Trial 3'!DL46,'Trial 4'!DL46,'Trial 5'!DL46,'Trial 6'!DL46,'Trial 7'!DL46,'Trial 8'!DL46)","v":{"v":-72271.98874975946,"d":"($72,272)"}},{"$f":"SUM('Trial 1'!DM46,'Trial 2'!DM46,'Trial 3'!DM46,'Trial 4'!DM46,'Trial 5'!DM46,'Trial 6'!DM46,'Trial 7'!DM46,'Trial 8'!DM46)","v":{"v":96009.07078039901,"d":"$96,009"}},{"$f":"SUM(DB205:DM205)","v":{"v":225191.32932879,"d":"$225,191"}},{"$f":"SUM('Trial 1'!DO46,'Trial 2'!DO46,'Trial 3'!DO46,'Trial 4'!DO46,'Trial 5'!DO46,'Trial 6'!DO46,'Trial 7'!DO46,'Trial 8'!DO46)","v":{"v":92317.47101147672,"d":"$92,317"}},{"$f":"SUM('Trial 1'!DP46,'Trial 2'!DP46,'Trial 3'!DP46,'Trial 4'!DP46,'Trial 5'!DP46,'Trial 6'!DP46,'Trial 7'!DP46,'Trial 8'!DP46)","v":{"v":-20718.60021597656,"d":"($20,719)"}},{"$f":"SUM('Trial 1'!DQ46,'Trial 2'!DQ46,'Trial 3'!DQ46,'Trial 4'!DQ46,'Trial 5'!DQ46,'Trial 6'!DQ46,'Trial 7'!DQ46,'Trial 8'!DQ46)","v":{"v":62202.854724862016,"d":"$62,203"}},{"$f":"SUM('Trial 1'!DR46,'Trial 2'!DR46,'Trial 3'!DR46,'Trial 4'!DR46,'Trial 5'!DR46,'Trial 6'!DR46,'Trial 7'!DR46,'Trial 8'!DR46)","v":{"v":-5601.677577525432,"d":"($5,602)"}},{"$f":"SUM('Trial 1'!DS46,'Trial 2'!DS46,'Trial 3'!DS46,'Trial 4'!DS46,'Trial 5'!DS46,'Trial 6'!DS46,'Trial 7'!DS46,'Trial 8'!DS46)","v":{"v":72969.99718113028,"d":"$72,970"}},{"$f":"SUM('Trial 1'!DT46,'Trial 2'!DT46,'Trial 3'!DT46,'Trial 4'!DT46,'Trial 5'!DT46,'Trial 6'!DT46,'Trial 7'!DT46,'Trial 8'!DT46)","v":{"v":-30413.86432762818,"d":"($30,414)"}},{"$f":"SUM('Trial 1'!DU46,'Trial 2'!DU46,'Trial 3'!DU46,'Trial 4'!DU46,'Trial 5'!DU46,'Trial 6'!DU46,'Trial 7'!DU46,'Trial 8'!DU46)","v":{"v":63928.08501238883,"d":"$63,928"}},{"$f":"SUM('Trial 1'!DV46,'Trial 2'!DV46,'Trial 3'!DV46,'Trial 4'!DV46,'Trial 5'!DV46,'Trial 6'!DV46,'Trial 7'!DV46,'Trial 8'!DV46)","v":{"v":-150614.01207100647,"d":"($150,614)"}},{"$f":"SUM('Trial 1'!DW46,'Trial 2'!DW46,'Trial 3'!DW46,'Trial 4'!DW46,'Trial 5'!DW46,'Trial 6'!DW46,'Trial 7'!DW46,'Trial 8'!DW46)","v":{"v":104141.67462898101,"d":"$104,142"}},{"$f":"SUM('Trial 1'!DX46,'Trial 2'!DX46,'Trial 3'!DX46,'Trial 4'!DX46,'Trial 5'!DX46,'Trial 6'!DX46,'Trial 7'!DX46,'Trial 8'!DX46)","v":{"v":-1289.371894126638,"d":"($1,289)"}},{"$f":"SUM('Trial 1'!DY46,'Trial 2'!DY46,'Trial 3'!DY46,'Trial 4'!DY46,'Trial 5'!DY46,'Trial 6'!DY46,'Trial 7'!DY46,'Trial 8'!DY46)","v":{"v":50901.349809816165,"d":"$50,901"}},{"$f":"SUM('Trial 1'!DZ46,'Trial 2'!DZ46,'Trial 3'!DZ46,'Trial 4'!DZ46,'Trial 5'!DZ46,'Trial 6'!DZ46,'Trial 7'!DZ46,'Trial 8'!DZ46)","v":{"v":-10378.218770658772,"d":"($10,378)"}},{"$f":"SUM(DO205:DZ205)","v":{"v":227445.68751173295,"d":"$227,446"}},{"$f":"SUM('Trial 1'!EB46,'Trial 2'!EB46,'Trial 3'!EB46,'Trial 4'!EB46,'Trial 5'!EB46,'Trial 6'!EB46,'Trial 7'!EB46,'Trial 8'!EB46)","v":{"v":102921.19081708638,"d":"$102,921"}},{"$f":"SUM('Trial 1'!EC46,'Trial 2'!EC46,'Trial 3'!EC46,'Trial 4'!EC46,'Trial 5'!EC46,'Trial 6'!EC46,'Trial 7'!EC46,'Trial 8'!EC46)","v":{"v":87703.5697332009,"d":"$87,704"}},{"$f":"SUM('Trial 1'!ED46,'Trial 2'!ED46,'Trial 3'!ED46,'Trial 4'!ED46,'Trial 5'!ED46,'Trial 6'!ED46,'Trial 7'!ED46,'Trial 8'!ED46)","v":{"v":-151800.9857827509,"d":"($151,801)"}},{"$f":"SUM('Trial 1'!EE46,'Trial 2'!EE46,'Trial 3'!EE46,'Trial 4'!EE46,'Trial 5'!EE46,'Trial 6'!EE46,'Trial 7'!EE46,'Trial 8'!EE46)","v":{"v":39657.00910474689,"d":"$39,657"}},{"$f":"SUM('Trial 1'!EF46,'Trial 2'!EF46,'Trial 3'!EF46,'Trial 4'!EF46,'Trial 5'!EF46,'Trial 6'!EF46,'Trial 7'!EF46,'Trial 8'!EF46)","v":{"v":4714.937025549312,"d":"$4,715"}},{"$f":"SUM('Trial 1'!EG46,'Trial 2'!EG46,'Trial 3'!EG46,'Trial 4'!EG46,'Trial 5'!EG46,'Trial 6'!EG46,'Trial 7'!EG46,'Trial 8'!EG46)","v":{"v":-3833.83836330166,"d":"($3,834)"}},{"$f":"SUM('Trial 1'!EH46,'Trial 2'!EH46,'Trial 3'!EH46,'Trial 4'!EH46,'Trial 5'!EH46,'Trial 6'!EH46,'Trial 7'!EH46,'Trial 8'!EH46)","v":{"v":44087.82953367361,"d":"$44,088"}},{"$f":"SUM('Trial 1'!EI46,'Trial 2'!EI46,'Trial 3'!EI46,'Trial 4'!EI46,'Trial 5'!EI46,'Trial 6'!EI46,'Trial 7'!EI46,'Trial 8'!EI46)","v":{"v":24769.549806533596,"d":"$24,770"}},{"$f":"SUM('Trial 1'!EJ46,'Trial 2'!EJ46,'Trial 3'!EJ46,'Trial 4'!EJ46,'Trial 5'!EJ46,'Trial 6'!EJ46,'Trial 7'!EJ46,'Trial 8'!EJ46)","v":{"v":48090.3898220213,"d":"$48,090"}},{"$f":"SUM('Trial 1'!EK46,'Trial 2'!EK46,'Trial 3'!EK46,'Trial 4'!EK46,'Trial 5'!EK46,'Trial 6'!EK46,'Trial 7'!EK46,'Trial 8'!EK46)","v":{"v":-54689.034514837535,"d":"($54,689)"}},{"$f":"SUM('Trial 1'!EL46,'Trial 2'!EL46,'Trial 3'!EL46,'Trial 4'!EL46,'Trial 5'!EL46,'Trial 6'!EL46,'Trial 7'!EL46,'Trial 8'!EL46)","v":{"v":25107.768272890753,"d":"$25,108"}},{"$f":"SUM('Trial 1'!EM46,'Trial 2'!EM46,'Trial 3'!EM46,'Trial 4'!EM46,'Trial 5'!EM46,'Trial 6'!EM46,'Trial 7'!EM46,'Trial 8'!EM46)","v":{"v":124757.97739917622,"d":"$124,758"}},{"$f":"SUM(EB205:EM205)","v":{"v":291486.36285398883,"d":"$291,486"}}]
[{"$f":"Labels!B81","v":"Shock_Std_Dev"}]
[]
[null,{"$f":"Inputs!B57*SQRT(B61)*B8","v":{"v":33678.76570272817,"d":"$33,679"}}]
[{"$f":"Labels!B83","v":"Tax"}]
[{"$f":"Labels!D96","v":"Trials"},{"$f":"ZZZ__FnCalls!F7","v":"Jan 2010"},{"$f":"ZZZ__FnCalls!F8","v":"Feb 2010"},{"$f":"ZZZ__FnCalls!F9","v":"Mar 2010"},{"$f":"ZZZ__FnCalls!F10","v":"Apr 2010"},{"$f":"ZZZ__FnCalls!F11","v":"May 2010"},{"$f":"ZZZ__FnCalls!F12","v":"Jun 2010"},{"$f":"ZZZ__FnCalls!F13","v":"Jul 2010"},{"$f":"ZZZ__FnCalls!F14","v":"Aug 2010"},{"$f":"ZZZ__FnCalls!F15","v":"Sep 2010"},{"$f":"ZZZ__FnCalls!F16","v":"Oct 2010"},{"$f":"ZZZ__FnCalls!F17","v":"Nov 2010"},{"$f":"ZZZ__FnCalls!F18","v":"Dec 2010"},{"$f":"ZZZ__FnCalls!H7","v":"2010"},{"$f":"ZZZ__FnCalls!F19","v":"Jan 2011"},{"$f":"ZZZ__FnCalls!F20","v":"Feb 2011"},{"$f":"ZZZ__FnCalls!F21","v":"Mar 2011"},{"$f":"ZZZ__FnCalls!F22","v":"Apr 2011"},{"$f":"ZZZ__FnCalls!F23","v":"May 2011"},{"$f":"ZZZ__FnCalls!F24","v":"Jun 2011"},{"$f":"ZZZ__FnCalls!F25","v":"Jul 2011"},{"$f":"ZZZ__FnCalls!F26","v":"Aug 2011"},{"$f":"ZZZ__FnCalls!F27","v":"Sep 2011"},{"$f":"ZZZ__FnCalls!F28","v":"Oct 2011"},{"$f":"ZZZ__FnCalls!F29","v":"Nov 2011"},{"$f":"ZZZ__FnCalls!F30","v":"Dec 2011"},{"$f":"ZZZ__FnCalls!H19","v":"2011"},{"$f":"ZZZ__FnCalls!F31","v":"Jan 2012"},{"$f":"ZZZ__FnCalls!F32","v":"Feb 2012"},{"$f":"ZZZ__FnCalls!F33","v":"Mar 2012"},{"$f":"ZZZ__FnCalls!F34","v":"Apr 2012"},{"$f":"ZZZ__FnCalls!F35","v":"May 2012"},{"$f":"ZZZ__FnCalls!F36","v":"Jun 2012"},{"$f":"ZZZ__FnCalls!F37","v":"Jul 2012"},{"$f":"ZZZ__FnCalls!F38","v":"Aug 2012"},{"$f":"ZZZ__FnCalls!F39","v":"Sep 2012"},{"$f":"ZZZ__FnCalls!F40","v":"Oct 2012"},{"$f":"ZZZ__FnCalls!F41","v":"Nov 2012"},{"$f":"ZZZ__FnCalls!F42","v":"Dec 2012"},{"$f":"ZZZ__FnCalls!H31","v":"2012"},{"$f":"ZZZ__FnCalls!F43","v":"Jan 2013"},{"$f":"ZZZ__FnCalls!F44","v":"Feb 2013"},{"$f":"ZZZ__FnCalls!F45","v":"Mar 2013"},{"$f":"ZZZ__FnCalls!F46","v":"Apr 2013"},{"$f":"ZZZ__FnCalls!F47","v":"May 2013"},{"$f":"ZZZ__FnCalls!F48","v":"Jun 2013"},{"$f":"ZZZ__FnCalls!F49","v":"Jul 2013"},{"$f":"ZZZ__FnCalls!F50","v":"Aug 2013"},{"$f":"ZZZ__FnCalls!F51","v":"Sep 2013"},{"$f":"ZZZ__FnCalls!F52","v":"Oct 2013"},{"$f":"ZZZ__FnCalls!F53","v":"Nov 2013"},{"$f":"ZZZ__FnCalls!F54","v":"Dec 2013"},{"$f":"ZZZ__FnCalls!H43","v":"2013"},{"$f":"ZZZ__FnCalls!F55","v":"Jan 2014"},{"$f":"ZZZ__FnCalls!F56","v":"Feb 2014"},{"$f":"ZZZ__FnCalls!F57","v":"Mar 2014"},{"$f":"ZZZ__FnCalls!F58","v":"Apr 2014"},{"$f":"ZZZ__FnCalls!F59","v":"May 2014"},{"$f":"ZZZ__FnCalls!F60","v":"Jun 2014"},{"$f":"ZZZ__FnCalls!F61","v":"Jul 2014"},{"$f":"ZZZ__FnCalls!F62","v":"Aug 2014"},{"$f":"ZZZ__FnCalls!F63","v":"Sep 2014"},{"$f":"ZZZ__FnCalls!F64","v":"Oct 2014"},{"$f":"ZZZ__FnCalls!F65","v":"Nov 2014"},{"$f":"ZZZ__FnCalls!F66","v":"Dec 2014"},{"$f":"ZZZ__FnCalls!H55","v":"2014"},{"$f":"ZZZ__FnCalls!F67","v":"Jan 2015"},{"$f":"ZZZ__FnCalls!F68","v":"Feb 2015"},{"$f":"ZZZ__FnCalls!F69","v":"Mar 2015"},{"$f":"ZZZ__FnCalls!F70","v":"Apr 2015"},{"$f":"ZZZ__FnCalls!F71","v":"May 2015"},{"$f":"ZZZ__FnCalls!F72","v":"Jun 2015"},{"$f":"ZZZ__FnCalls!F73","v":"Jul 2015"},{"$f":"ZZZ__FnCalls!F74","v":"Aug 2015"},{"$f":"ZZZ__FnCalls!F75","v":"Sep 2015"},{"$f":"ZZZ__FnCalls!F76","v":"Oct 2015"},{"$f":"ZZZ__FnCalls!F77","v":"Nov 2015"},{"$f":"ZZZ__FnCalls!F78","v":"Dec 2015"},{"$f":"ZZZ__FnCalls!H67","v":"2015"},{"$f":"ZZZ__FnCalls!F79","v":"Jan 2016"},{"$f":"ZZZ__FnCalls!F80","v":"Feb 2016"},{"$f":"ZZZ__FnCalls!F81","v":"Mar 2016"},{"$f":"ZZZ__FnCalls!F82","v":"Apr 2016"},{"$f":"ZZZ__FnCalls!F83","v":"May 2016"},{"$f":"ZZZ__FnCalls!F84","v":"Jun 2016"},{"$f":"ZZZ__FnCalls!F85","v":"Jul 2016"},{"$f":"ZZZ__FnCalls!F86","v":"Aug 2016"},{"$f":"ZZZ__FnCalls!F87","v":"Sep 2016"},{"$f":"ZZZ__FnCalls!F88","v":"Oct 2016"},{"$f":"ZZZ__FnCalls!F89","v":"Nov 2016"},{"$f":"ZZZ__FnCalls!F90","v":"Dec 2016"},{"$f":"ZZZ__FnCalls!H79","v":"2016"},{"$f":"ZZZ__FnCalls!F91","v":"Jan 2017"},{"$f":"ZZZ__FnCalls!F92","v":"Feb 2017"},{"$f":"ZZZ__FnCalls!F93","v":"Mar 2017"},{"$f":"ZZZ__FnCalls!F94","v":"Apr 2017"},{"$f":"ZZZ__FnCalls!F95","v":"May 2017"},{"$f":"ZZZ__FnCalls!F96","v":"Jun 2017"},{"$f":"ZZZ__FnCalls!F97","v":"Jul 2017"},{"$f":"ZZZ__FnCalls!F98","v":"Aug 2017"},{"$f":"ZZZ__FnCalls!F99","v":"Sep 2017"},{"$f":"ZZZ__FnCalls!F100","v":"Oct 2017"},{"$f":"ZZZ__FnCalls!F101","v":"Nov 2017"},{"$f":"ZZZ__FnCalls!F102","v":"Dec 2017"},{"$f":"ZZZ__FnCalls!H91","v":"2017"},{"$f":"ZZZ__FnCalls!F103","v":"Jan 2018"},{"$f":"ZZZ__FnCalls!F104","v":"Feb 2018"},{"$f":"ZZZ__FnCalls!F105","v":"Mar 2018"},{"$f":"ZZZ__FnCalls!F106","v":"Apr 2018"},{"$f":"ZZZ__FnCalls!F107","v":"May 2018"},{"$f":"ZZZ__FnCalls!F108","v":"Jun 2018"},{"$f":"ZZZ__FnCalls!F109","v":"Jul 2018"},{"$f":"ZZZ__FnCalls!F110","v":"Aug 2018"},{"$f":"ZZZ__FnCalls!F111","v":"Sep 2018"},{"$f":"ZZZ__FnCalls!F112","v":"Oct 2018"},{"$f":"ZZZ__FnCalls!F113","v":"Nov 2018"},{"$f":"ZZZ__FnCalls!F114","v":"Dec 2018"},{"$f":"ZZZ__FnCalls!H103","v":"2018"},{"$f":"ZZZ__FnCalls!F115","v":"Jan 2019"},{"$f":"ZZZ__FnCalls!F116","v":"Feb 2019"},{"$f":"ZZZ__FnCalls!F117","v":"Mar 2019"},{"$f":"ZZZ__FnCalls!F118","v":"Apr 2019"},{"$f":"ZZZ__FnCalls!F119","v":"May 2019"},{"$f":"ZZZ__FnCalls!F120","v":"Jun 2019"},{"$f":"ZZZ__FnCalls!F121","v":"Jul 2019"},{"$f":"ZZZ__FnCalls!F122","v":"Aug 2019"},{"$f":"ZZZ__FnCalls!F123","v":"Sep 2019"},{"$f":"ZZZ__FnCalls!F124","v":"Oct 2019"},{"$f":"ZZZ__FnCalls!F125","v":"Nov 2019"},{"$f":"ZZZ__FnCalls!F126","v":"Dec 2019"},{"$f":"ZZZ__FnCalls!H115","v":"2019"},{"$f":"ZZZ__FnCalls!F127","v":"Jan 2020"},{"$f":"ZZZ__FnCalls!F128","v":"Feb 2020"},{"$f":"ZZZ__FnCalls!F129","v":"Mar 2020"},{"$f":"ZZZ__FnCalls!F130","v":"Apr 2020"},{"$f":"ZZZ__FnCalls!F131","v":"May 2020"},{"$f":"ZZZ__FnCalls!F132","v":"Jun 2020"},{"$f":"ZZZ__FnCalls!F133","v":"Jul 2020"},{"$f":"ZZZ__FnCalls!F134","v":"Aug 2020"},{"$f":"ZZZ__FnCalls!F135","v":"Sep 2020"},{"$f":"ZZZ__FnCalls!F136","v":"Oct 2020"},{"$f":"ZZZ__FnCalls!F137","v":"Nov 2020"},{"$f":"ZZZ__FnCalls!F138","v":"Dec 2020"},{"$f":"ZZZ__FnCalls!H127","v":"2020"}]
[{"$f":"Labels!B96","v":"Trial 01"},{"$f":"'Trial 1'!B54","v":{"v":360647.64564615296,"d":"$360,648"}},{"$f":"'Trial 1'!C54","v":{"v":336013.8062429053,"d":"$336,014"}},{"$f":"'Trial 1'!D54","v":{"v":352973.8565126718,"d":"$352,974"}},{"$f":"'Trial 1'!E54","v":{"v":345288.1359250792,"d":"$345,288"}},{"$f":"'Trial 1'!F54","v":{"v":347685.9577515472,"d":"$347,686"}},{"$f":"'Trial 1'!G54","v":{"v":350321.3396997237,"d":"$350,321"}},{"$f":"'Trial 1'!H54","v":{"v":358003.3432080288,"d":"$358,003"}},{"$f":"'Trial 1'!I54","v":{"v":347668.90367299743,"d":"$347,669"}},{"$f":"'Trial 1'!J54","v":{"v":351048.5365406638,"d":"$351,049"}},{"$f":"'Trial 1'!K54","v":{"v":350855.63226123486,"d":"$350,856"}},{"$f":"'Trial 1'!L54","v":{"v":347376.1225370703,"d":"$347,376"}},{"$f":"'Trial 1'!M54","v":{"v":357505.482272789,"d":"$357,505"}},{"$f":"SUM('Trial 1'!B54:M54)","v":{"v":4205388.762270865,"d":"$4,205,389"}},{"$f":"'Trial 1'!O54","v":{"v":339597.0978556878,"d":"$339,597"}},{"$f":"'Trial 1'!P54","v":{"v":353853.94054750784,"d":"$353,854"}},{"$f":"'Trial 1'!Q54","v":{"v":343226.9232063601,"d":"$343,227"}},{"$f":"'Trial 1'!R54","v":{"v":344345.52130676655,"d":"$344,346"}},{"$f":"'Trial 1'!S54","v":{"v":339009.1848264737,"d":"$339,009"}},{"$f":"'Trial 1'!T54","v":{"v":332624.77512030397,"d":"$332,625"}},{"$f":"'Trial 1'!U54","v":{"v":336138.6743903658,"d":"$336,139"}},{"$f":"'Trial 1'!V54","v":{"v":341650.7017359576,"d":"$341,651"}},{"$f":"'Trial 1'!W54","v":{"v":345405.7038092142,"d":"$345,406"}},{"$f":"'Trial 1'!X54","v":{"v":342176.45077317953,"d":"$342,176"}},{"$f":"'Trial 1'!Y54","v":{"v":352154.4459404236,"d":"$352,154"}},{"$f":"'Trial 1'!Z54","v":{"v":338809.62975241715,"d":"$338,810"}},{"$f":"SUM('Trial 1'!O54:Z54)","v":{"v":4108993.049264658,"d":"$4,108,993"}},{"$f":"'Trial 1'!AB54","v":{"v":337709.7862206025,"d":"$337,710"}},{"$f":"'Trial 1'!AC54","v":{"v":342696.4700196678,"d":"$342,696"}},{"$f":"'Trial 1'!AD54","v":{"v":349578.80568850134,"d":"$349,579"}},{"$f":"'Trial 1'!AE54","v":{"v":330543.3183333589,"d":"$330,543"}},{"$f":"'Trial 1'!AF54","v":{"v":330185.99753793754,"d":"$330,186"}},{"$f":"'Trial 1'!AG54","v":{"v":340144.1860096626,"d":"$340,144"}},{"$f":"'Trial 1'!AH54","v":{"v":338528.5119176238,"d":"$338,529"}},{"$f":"'Trial 1'!AI54","v":{"v":330967.339404301,"d":"$330,967"}},{"$f":"'Trial 1'!AJ54","v":{"v":327448.78874432214,"d":"$327,449"}},{"$f":"'Trial 1'!AK54","v":{"v":338824.52374500607,"d":"$338,825"}},{"$f":"'Trial 1'!AL54","v":{"v":346273.8404704195,"d":"$346,274"}},{"$f":"'Trial 1'!AM54","v":{"v":347152.22862317855,"d":"$347,152"}},{"$f":"SUM('Trial 1'!AB54:AM54)","v":{"v":4060053.7967145815,"d":"$4,060,054"}},{"$f":"'Trial 1'!AO54","v":{"v":317497.4648459988,"d":"$317,497"}},{"$f":"'Trial 1'!AP54","v":{"v":331868.56925938826,"d":"$331,869"}},{"$f":"'Trial 1'!AQ54","v":{"v":345550.05054516136,"d":"$345,550"}},{"$f":"'Trial 1'!AR54","v":{"v":329816.20457447885,"d":"$329,816"}},{"$f":"'Trial 1'!AS54","v":{"v":328259.31349197094,"d":"$328,259"}},{"$f":"'Trial 1'!AT54","v":{"v":326933.6902313089,"d":"$326,934"}},{"$f":"'Trial 1'!AU54","v":{"v":328238.13771651965,"d":"$328,238"}},{"$f":"'Trial 1'!AV54","v":{"v":340488.7578287242,"d":"$340,489"}},{"$f":"'Trial 1'!AW54","v":{"v":328411.53863393795,"d":"$328,412"}},{"$f":"'Trial 1'!AX54","v":{"v":317666.9350002082,"d":"$317,667"}},{"$f":"'Trial 1'!AY54","v":{"v":343430.31572563946,"d":"$343,430"}},{"$f":"'Trial 1'!AZ54","v":{"v":327147.0060275391,"d":"$327,147"}},{"$f":"SUM('Trial 1'!AO54:AZ54)","v":{"v":3965307.9838808756,"d":"$3,965,308"}},{"$f":"'Trial 1'!BB54","v":{"v":322874.58148660435,"d":"$322,875"}},{"$f":"'Trial 1'!BC54","v":{"v":332357.67369238293,"d":"$332,358"}},{"$f":"'Trial 1'!BD54","v":{"v":338600.8141479231,"d":"$338,601"}},{"$f":"'Trial 1'!BE54","v":{"v":334559.6010039365,"d":"$334,560"}},{"$f":"'Trial 1'!BF54","v":{"v":321841.98732599686,"d":"$321,842"}},{"$f":"'Trial 1'!BG54","v":{"v":334990.2236258436,"d":"$334,990"}},{"$f":"'Trial 1'!BH54","v":{"v":335875.631738274,"d":"$335,876"}},{"$f":"'Trial 1'!BI54","v":{"v":344368.5698863723,"d":"$344,369"}},{"$f":"'Trial 1'!BJ54","v":{"v":339187.320023259,"d":"$339,187"}},{"$f":"'Trial 1'!BK54","v":{"v":342796.9102476219,"d":"$342,797"}},{"$f":"'Trial 1'!BL54","v":{"v":332795.7543526504,"d":"$332,796"}},{"$f":"'Trial 1'!BM54","v":{"v":319831.98465601914,"d":"$319,832"}},{"$f":"SUM('Trial 1'!BB54:BM54)","v":{"v":4000081.052186885,"d":"$4,000,081"}},{"$f":"'Trial 1'!BO54","v":{"v":336244.8655974078,"d":"$336,245"}},{"$f":"'Trial 1'!BP54","v":{"v":338801.33191916597,"d":"$338,801"}},{"$f":"'Trial 1'!BQ54","v":{"v":322479.020490827,"d":"$322,479"}},{"$f":"'Trial 1'!BR54","v":{"v":323374.25917703763,"d":"$323,374"}},{"$f":"'Trial 1'!BS54","v":{"v":316107.36487070523,"d":"$316,107"}},{"$f":"'Trial 1'!BT54","v":{"v":326993.577207538,"d":"$326,994"}},{"$f":"'Trial 1'!BU54","v":{"v":326895.8951024665,"d":"$326,896"}},{"$f":"'Trial 1'!BV54","v":{"v":323912.61954072816,"d":"$323,913"}},{"$f":"'Trial 1'!BW54","v":{"v":332899.60913382703,"d":"$332,900"}},{"$f":"'Trial 1'!BX54","v":{"v":317186.90784133854,"d":"$317,187"}},{"$f":"'Trial 1'!BY54","v":{"v":325550.71548695175,"d":"$325,551"}},{"$f":"'Trial 1'!BZ54","v":{"v":324258.03669548326,"d":"$324,258"}},{"$f":"SUM('Trial 1'!BO54:BZ54)","v":{"v":3914704.2030634773,"d":"$3,914,704"}},{"$f":"'Trial 1'!CB54","v":{"v":322856.51688997645,"d":"$322,857"}},{"$f":"'Trial 1'!CC54","v":{"v":315070.9526813711,"d":"$315,071"}},{"$f":"'Trial 1'!CD54","v":{"v":308262.8092411544,"d":"$308,263"}},{"$f":"'Trial 1'!CE54","v":{"v":325637.53876056394,"d":"$325,638"}},{"$f":"'Trial 1'!CF54","v":{"v":326755.2141748052,"d":"$326,755"}},{"$f":"'Trial 1'!CG54","v":{"v":314174.2739654112,"d":"$314,174"}},{"$f":"'Trial 1'!CH54","v":{"v":325969.8969463259,"d":"$325,970"}},{"$f":"'Trial 1'!CI54","v":{"v":306564.7722400888,"d":"$306,565"}},{"$f":"'Trial 1'!CJ54","v":{"v":316225.5945573481,"d":"$316,226"}},{"$f":"'Trial 1'!CK54","v":{"v":325472.5616028497,"d":"$325,473"}},{"$f":"'Trial 1'!CL54","v":{"v":322991.7775682616,"d":"$322,992"}},{"$f":"'Trial 1'!CM54","v":{"v":308041.80950189504,"d":"$308,042"}},{"$f":"SUM('Trial 1'!CB54:CM54)","v":{"v":3818023.718130051,"d":"$3,818,024"}},{"$f":"'Trial 1'!CO54","v":{"v":302917.5780611117,"d":"$302,918"}},{"$f":"'Trial 1'!CP54","v":{"v":319602.7964194383,"d":"$319,603"}},{"$f":"'Trial 1'!CQ54","v":{"v":324692.9826941064,"d":"$324,693"}},{"$f":"'Trial 1'!CR54","v":{"v":316985.9129036278,"d":"$316,986"}},{"$f":"'Trial 1'!CS54","v":{"v":308126.70197857893,"d":"$308,127"}},{"$f":"'Trial 1'!CT54","v":{"v":307945.0341527243,"d":"$307,945"}},{"$f":"'Trial 1'!CU54","v":{"v":305941.7105097907,"d":"$305,942"}},{"$f":"'Trial 1'!CV54","v":{"v":312015.8112990556,"d":"$312,016"}},{"$f":"'Trial 1'!CW54","v":{"v":304399.5299278424,"d":"$304,400"}},{"$f":"'Trial 1'!CX54","v":{"v":301311.0336265895,"d":"$301,311"}},{"$f":"'Trial 1'!CY54","v":{"v":320842.76976510126,"d":"$320,843"}},{"$f":"'Trial 1'!CZ54","v":{"v":319907.11881885334,"d":"$319,907"}},{"$f":"SUM('Trial 1'!CO54:CZ54)","v":{"v":3744688.9801568203,"d":"$3,744,689"}},{"$f":"'Trial 1'!DB54","v":{"v":300889.1044450579,"d":"$300,889"}},{"$f":"'Trial 1'!DC54","v":{"v":312843.63362420385,"d":"$312,844"}},{"$f":"'Trial 1'!DD54","v":{"v":314889.5832054918,"d":"$314,890"}},{"$f":"'Trial 1'!DE54","v":{"v":322954.3251696766,"d":"$322,954"}},{"$f":"'Trial 1'!DF54","v":{"v":300346.1213364851,"d":"$300,346"}},{"$f":"'Trial 1'!DG54","v":{"v":306534.5672247732,"d":"$306,535"}},{"$f":"'Trial 1'!DH54","v":{"v":320369.72128857125,"d":"$320,370"}},{"$f":"'Trial 1'!DI54","v":{"v":312483.08651055046,"d":"$312,483"}},{"$f":"'Trial 1'!DJ54","v":{"v":327049.7794595655,"d":"$327,050"}},{"$f":"'Trial 1'!DK54","v":{"v":310797.8159828278,"d":"$310,798"}},{"$f":"'Trial 1'!DL54","v":{"v":312711.3222498309,"d":"$312,711"}},{"$f":"'Trial 1'!DM54","v":{"v":322229.91865688405,"d":"$322,230"}},{"$f":"SUM('Trial 1'!DB54:DM54)","v":{"v":3764098.979153918,"d":"$3,764,099"}},{"$f":"'Trial 1'!DO54","v":{"v":300465.3470211041,"d":"$300,465"}},{"$f":"'Trial 1'!DP54","v":{"v":300294.76582069386,"d":"$300,295"}},{"$f":"'Trial 1'!DQ54","v":{"v":309930.7540555336,"d":"$309,931"}},{"$f":"'Trial 1'!DR54","v":{"v":308905.229931693,"d":"$308,905"}},{"$f":"'Trial 1'!DS54","v":{"v":304050.5327926152,"d":"$304,051"}},{"$f":"'Trial 1'!DT54","v":{"v":305696.5224368342,"d":"$305,697"}},{"$f":"'Trial 1'!DU54","v":{"v":322559.746836901,"d":"$322,560"}},{"$f":"'Trial 1'!DV54","v":{"v":315436.3143234191,"d":"$315,436"}},{"$f":"'Trial 1'!DW54","v":{"v":299150.8541171874,"d":"$299,151"}},{"$f":"'Trial 1'!DX54","v":{"v":300417.7046251554,"d":"$300,418"}},{"$f":"'Trial 1'!DY54","v":{"v":306215.6689141733,"d":"$306,216"}},{"$f":"'Trial 1'!DZ54","v":{"v":308389.69165849965,"d":"$308,390"}},{"$f":"SUM('Trial 1'!DO54:DZ54)","v":{"v":3681513.1325338096,"d":"$3,681,513"}},{"$f":"'Trial 1'!EB54","v":{"v":309038.1899914942,"d":"$309,038"}},{"$f":"'Trial 1'!EC54","v":{"v":297331.2739423115,"d":"$297,331"}},{"$f":"'Trial 1'!ED54","v":{"v":293084.0219522526,"d":"$293,084"}},{"$f":"'Trial 1'!EE54","v":{"v":317179.34795237344,"d":"$317,179"}},{"$f":"'Trial 1'!EF54","v":{"v":298606.3237127533,"d":"$298,606"}},{"$f":"'Trial 1'!EG54","v":{"v":303236.49016260356,"d":"$303,236"}},{"$f":"'Trial 1'!EH54","v":{"v":313789.2763130012,"d":"$313,789"}},{"$f":"'Trial 1'!EI54","v":{"v":296141.6169912215,"d":"$296,142"}},{"$f":"'Trial 1'!EJ54","v":{"v":298847.2537115052,"d":"$298,847"}},{"$f":"'Trial 1'!EK54","v":{"v":295385.53007035103,"d":"$295,386"}},{"$f":"'Trial 1'!EL54","v":{"v":303474.7469159301,"d":"$303,475"}},{"$f":"'Trial 1'!EM54","v":{"v":298222.81305845873,"d":"$298,223"}},{"$f":"SUM('Trial 1'!EB54:EM54)","v":{"v":3624336.884774256,"d":"$3,624,337"}}]
[{"$f":"Labels!B97","v":"Trial 02"},{"$f":"'Trial 2'!B54","v":{"v":352696.4779297117,"d":"$352,696"}},{"$f":"'Trial 2'!C54","v":{"v":364949.74668898975,"d":"$364,950"}},{"$f":"'Trial 2'!D54","v":{"v":354071.4979826494,"d":"$354,071"}},{"$f":"'Trial 2'!E54","v":{"v":351499.2356917042,"d":"$351,499"}},{"$f":"'Trial 2'!F54","v":{"v":356888.633309275,"d":"$356,889"}},{"$f":"'Trial 2'!G54","v":{"v":356164.73787818773,"d":"$356,165"}},{"$f":"'Trial 2'!H54","v":{"v":352243.421303493,"d":"$352,243"}},{"$f":"'Trial 2'!I54","v":{"v":338428.74894685467,"d":"$338,429"}},{"$f":"'Trial 2'!J54","v":{"v":365274.3823290077,"d":"$365,274"}},{"$f":"'Trial 2'!K54","v":{"v":340463.43734338356,"d":"$340,463"}},{"$f":"'Trial 2'!L54","v":{"v":349818.1678319264,"d":"$349,818"}},{"$f":"'Trial 2'!M54","v":{"v":359977.9580099638,"d":"$359,978"}},{"$f":"SUM('Trial 2'!B54:M54)","v":{"v":4242476.445245147,"d":"$4,242,476"}},{"$f":"'Trial 2'!O54","v":{"v":339326.57186697103,"d":"$339,327"}},{"$f":"'Trial 2'!P54","v":{"v":332965.04878806236,"d":"$332,965"}},{"$f":"'Trial 2'!Q54","v":{"v":360762.572922032,"d":"$360,763"}},{"$f":"'Trial 2'!R54","v":{"v":342999.63617667486,"d":"$343,000"}},{"$f":"'Trial 2'!S54","v":{"v":351218.6283392869,"d":"$351,219"}},{"$f":"'Trial 2'!T54","v":{"v":324071.26352958515,"d":"$324,071"}},{"$f":"'Trial 2'!U54","v":{"v":331697.7991474275,"d":"$331,698"}},{"$f":"'Trial 2'!V54","v":{"v":338489.55079769436,"d":"$338,490"}},{"$f":"'Trial 2'!W54","v":{"v":356472.67005996476,"d":"$356,473"}},{"$f":"'Trial 2'!X54","v":{"v":346197.4397965423,"d":"$346,197"}},{"$f":"'Trial 2'!Y54","v":{"v":350067.6189377303,"d":"$350,068"}},{"$f":"'Trial 2'!Z54","v":{"v":337450.2078685217,"d":"$337,450"}},{"$f":"SUM('Trial 2'!O54:Z54)","v":{"v":4111719.008230493,"d":"$4,111,719"}},{"$f":"'Trial 2'!AB54","v":{"v":334803.44883530267,"d":"$334,803"}},{"$f":"'Trial 2'!AC54","v":{"v":325399.50208084873,"d":"$325,400"}},{"$f":"'Trial 2'!AD54","v":{"v":344023.88328595436,"d":"$344,024"}},{"$f":"'Trial 2'!AE54","v":{"v":335470.0629299056,"d":"$335,470"}},{"$f":"'Trial 2'!AF54","v":{"v":338418.7194346714,"d":"$338,419"}},{"$f":"'Trial 2'!AG54","v":{"v":334446.91308773647,"d":"$334,447"}},{"$f":"'Trial 2'!AH54","v":{"v":337662.38960522023,"d":"$337,662"}},{"$f":"'Trial 2'!AI54","v":{"v":332296.3215638606,"d":"$332,296"}},{"$f":"'Trial 2'!AJ54","v":{"v":338486.74353667157,"d":"$338,487"}},{"$f":"'Trial 2'!AK54","v":{"v":345678.2089820368,"d":"$345,678"}},{"$f":"'Trial 2'!AL54","v":{"v":333247.8528875679,"d":"$333,248"}},{"$f":"'Trial 2'!AM54","v":{"v":323512.01636138884,"d":"$323,512"}},{"$f":"SUM('Trial 2'!AB54:AM54)","v":{"v":4023446.0625911653,"d":"$4,023,446"}},{"$f":"'Trial 2'!AO54","v":{"v":325179.3328358273,"d":"$325,179"}},{"$f":"'Trial 2'!AP54","v":{"v":324864.13763427205,"d":"$324,864"}},{"$f":"'Trial 2'!AQ54","v":{"v":338551.4508676891,"d":"$338,551"}},{"$f":"'Trial 2'!AR54","v":{"v":327452.9952948582,"d":"$327,453"}},{"$f":"'Trial 2'!AS54","v":{"v":321242.01858043653,"d":"$321,242"}},{"$f":"'Trial 2'!AT54","v":{"v":329919.10108897346,"d":"$329,919"}},{"$f":"'Trial 2'!AU54","v":{"v":341652.43243790953,"d":"$341,652"}},{"$f":"'Trial 2'!AV54","v":{"v":335310.69989802985,"d":"$335,311"}},{"$f":"'Trial 2'!AW54","v":{"v":342803.91776626906,"d":"$342,804"}},{"$f":"'Trial 2'!AX54","v":{"v":334935.9663756841,"d":"$334,936"}},{"$f":"'Trial 2'!AY54","v":{"v":313310.7732406307,"d":"$313,311"}},{"$f":"'Trial 2'!AZ54","v":{"v":324064.05248333036,"d":"$324,064"}},{"$f":"SUM('Trial 2'!AO54:AZ54)","v":{"v":3959286.87850391,"d":"$3,959,287"}},{"$f":"'Trial 2'!BB54","v":{"v":329514.0490537312,"d":"$329,514"}},{"$f":"'Trial 2'!BC54","v":{"v":334726.31881789677,"d":"$334,726"}},{"$f":"'Trial 2'!BD54","v":{"v":321908.70267635654,"d":"$321,909"}},{"$f":"'Trial 2'!BE54","v":{"v":323009.2292532503,"d":"$323,009"}},{"$f":"'Trial 2'!BF54","v":{"v":338439.6827060927,"d":"$338,440"}},{"$f":"'Trial 2'!BG54","v":{"v":325440.3589244257,"d":"$325,440"}},{"$f":"'Trial 2'!BH54","v":{"v":318947.29824160907,"d":"$318,947"}},{"$f":"'Trial 2'!BI54","v":{"v":330262.8471647753,"d":"$330,263"}},{"$f":"'Trial 2'!BJ54","v":{"v":322644.9237842995,"d":"$322,645"}},{"$f":"'Trial 2'!BK54","v":{"v":310736.15596581483,"d":"$310,736"}},{"$f":"'Trial 2'!BL54","v":{"v":310174.91743832256,"d":"$310,175"}},{"$f":"'Trial 2'!BM54","v":{"v":338635.2211341666,"d":"$338,635"}},{"$f":"SUM('Trial 2'!BB54:BM54)","v":{"v":3904439.7051607408,"d":"$3,904,440"}},{"$f":"'Trial 2'!BO54","v":{"v":315949.1823690601,"d":"$315,949"}},{"$f":"'Trial 2'!BP54","v":{"v":324045.26028240565,"d":"$324,045"}},{"$f":"'Trial 2'!BQ54","v":{"v":327213.0280127619,"d":"$327,213"}},{"$f":"'Trial 2'!BR54","v":{"v":325562.4338181481,"d":"$325,562"}},{"$f":"'Trial 2'!BS54","v":{"v":321929.11784453515,"d":"$321,929"}},{"$f":"'Trial 2'!BT54","v":{"v":306973.52453263156,"d":"$306,974"}},{"$f":"'Trial 2'!BU54","v":{"v":315284.4154345963,"d":"$315,284"}},{"$f":"'Trial 2'!BV54","v":{"v":332166.77878555574,"d":"$332,167"}},{"$f":"'Trial 2'!BW54","v":{"v":322363.11263289594,"d":"$322,363"}},{"$f":"'Trial 2'!BX54","v":{"v":315799.1640971028,"d":"$315,799"}},{"$f":"'Trial 2'!BY54","v":{"v":328464.1810876463,"d":"$328,464"}},{"$f":"'Trial 2'!BZ54","v":{"v":323669.3340763419,"d":"$323,669"}},{"$f":"SUM('Trial 2'!BO54:BZ54)","v":{"v":3859419.5329736806,"d":"$3,859,420"}},{"$f":"'Trial 2'!CB54","v":{"v":334347.592755031,"d":"$334,348"}},{"$f":"'Trial 2'!CC54","v":{"v":330234.5577877758,"d":"$330,235"}},{"$f":"'Trial 2'!CD54","v":{"v":319389.6589941225,"d":"$319,390"}},{"$f":"'Trial 2'!CE54","v":{"v":319708.72380629444,"d":"$319,709"}},{"$f":"'Trial 2'!CF54","v":{"v":325173.7392651444,"d":"$325,174"}},{"$f":"'Trial 2'!CG54","v":{"v":312402.5155767926,"d":"$312,403"}},{"$f":"'Trial 2'!CH54","v":{"v":324534.4423732282,"d":"$324,534"}},{"$f":"'Trial 2'!CI54","v":{"v":324789.83280391875,"d":"$324,790"}},{"$f":"'Trial 2'!CJ54","v":{"v":333007.0298676634,"d":"$333,007"}},{"$f":"'Trial 2'!CK54","v":{"v":304775.64861189714,"d":"$304,776"}},{"$f":"'Trial 2'!CL54","v":{"v":317778.03866587655,"d":"$317,778"}},{"$f":"'Trial 2'!CM54","v":{"v":329714.43163671566,"d":"$329,714"}},{"$f":"SUM('Trial 2'!CB54:CM54)","v":{"v":3875856.212144461,"d":"$3,875,856"}},{"$f":"'Trial 2'!CO54","v":{"v":310616.65966160636,"d":"$310,617"}},{"$f":"'Trial 2'!CP54","v":{"v":314283.03012667387,"d":"$314,283"}},{"$f":"'Trial 2'!CQ54","v":{"v":318833.7190230491,"d":"$318,834"}},{"$f":"'Trial 2'!CR54","v":{"v":309539.6640375394,"d":"$309,540"}},{"$f":"'Trial 2'!CS54","v":{"v":318442.65390856523,"d":"$318,443"}},{"$f":"'Trial 2'!CT54","v":{"v":302030.2242951153,"d":"$302,030"}},{"$f":"'Trial 2'!CU54","v":{"v":327878.48695601063,"d":"$327,878"}},{"$f":"'Trial 2'!CV54","v":{"v":297320.66336771566,"d":"$297,321"}},{"$f":"'Trial 2'!CW54","v":{"v":319095.37685411447,"d":"$319,095"}},{"$f":"'Trial 2'!CX54","v":{"v":331274.33791344316,"d":"$331,274"}},{"$f":"'Trial 2'!CY54","v":{"v":302944.98331860424,"d":"$302,945"}},{"$f":"'Trial 2'!CZ54","v":{"v":312891.7791661891,"d":"$312,892"}},{"$f":"SUM('Trial 2'!CO54:CZ54)","v":{"v":3765151.578628626,"d":"$3,765,152"}},{"$f":"'Trial 2'!DB54","v":{"v":313115.6399431857,"d":"$313,116"}},{"$f":"'Trial 2'!DC54","v":{"v":309602.6109129123,"d":"$309,603"}},{"$f":"'Trial 2'!DD54","v":{"v":315247.98504869104,"d":"$315,248"}},{"$f":"'Trial 2'!DE54","v":{"v":311874.6911068356,"d":"$311,875"}},{"$f":"'Trial 2'!DF54","v":{"v":320540.21390479576,"d":"$320,540"}},{"$f":"'Trial 2'!DG54","v":{"v":305086.8250240642,"d":"$305,087"}},{"$f":"'Trial 2'!DH54","v":{"v":306729.1626767757,"d":"$306,729"}},{"$f":"'Trial 2'!DI54","v":{"v":307453.82228738524,"d":"$307,454"}},{"$f":"'Trial 2'!DJ54","v":{"v":311596.47307168896,"d":"$311,596"}},{"$f":"'Trial 2'!DK54","v":{"v":319167.2083172808,"d":"$319,167"}},{"$f":"'Trial 2'!DL54","v":{"v":324709.82287115813,"d":"$324,710"}},{"$f":"'Trial 2'!DM54","v":{"v":295637.74570154835,"d":"$295,638"}},{"$f":"SUM('Trial 2'!DB54:DM54)","v":{"v":3740762.2008663216,"d":"$3,740,762"}},{"$f":"'Trial 2'!DO54","v":{"v":302341.9811049446,"d":"$302,342"}},{"$f":"'Trial 2'!DP54","v":{"v":294401.77486160304,"d":"$294,402"}},{"$f":"'Trial 2'!DQ54","v":{"v":303386.4559771335,"d":"$303,386"}},{"$f":"'Trial 2'!DR54","v":{"v":308900.7044308531,"d":"$308,901"}},{"$f":"'Trial 2'!DS54","v":{"v":302351.84925536806,"d":"$302,352"}},{"$f":"'Trial 2'!DT54","v":{"v":305492.106672903,"d":"$305,492"}},{"$f":"'Trial 2'!DU54","v":{"v":304005.9128877478,"d":"$304,006"}},{"$f":"'Trial 2'!DV54","v":{"v":291095.54308901966,"d":"$291,096"}},{"$f":"'Trial 2'!DW54","v":{"v":307157.65178971796,"d":"$307,158"}},{"$f":"'Trial 2'!DX54","v":{"v":305538.24438558443,"d":"$305,538"}},{"$f":"'Trial 2'!DY54","v":{"v":303647.79479365516,"d":"$303,648"}},{"$f":"'Trial 2'!DZ54","v":{"v":307106.6867537976,"d":"$307,107"}},{"$f":"SUM('Trial 2'!DO54:DZ54)","v":{"v":3635426.7060023276,"d":"$3,635,427"}},{"$f":"'Trial 2'!EB54","v":{"v":306634.70390318136,"d":"$306,635"}},{"$f":"'Trial 2'!EC54","v":{"v":298552.96173358284,"d":"$298,553"}},{"$f":"'Trial 2'!ED54","v":{"v":286542.65279789205,"d":"$286,543"}},{"$f":"'Trial 2'!EE54","v":{"v":321187.7872470465,"d":"$321,188"}},{"$f":"'Trial 2'!EF54","v":{"v":309206.71589251596,"d":"$309,207"}},{"$f":"'Trial 2'!EG54","v":{"v":303316.6168754018,"d":"$303,317"}},{"$f":"'Trial 2'!EH54","v":{"v":313184.6562845431,"d":"$313,185"}},{"$f":"'Trial 2'!EI54","v":{"v":306231.90188945085,"d":"$306,232"}},{"$f":"'Trial 2'!EJ54","v":{"v":301780.6646626461,"d":"$301,781"}},{"$f":"'Trial 2'!EK54","v":{"v":297861.7694247967,"d":"$297,862"}},{"$f":"'Trial 2'!EL54","v":{"v":308935.24496171356,"d":"$308,935"}},{"$f":"'Trial 2'!EM54","v":{"v":301131.83207525586,"d":"$301,132"}},{"$f":"SUM('Trial 2'!EB54:EM54)","v":{"v":3654567.5077480264,"d":"$3,654,568"}}]
[{"$f":"Labels!B98","v":"Trial 03"},{"$f":"'Trial 3'!B54","v":{"v":345102.74544398114,"d":"$345,103"}},{"$f":"'Trial 3'!C54","v":{"v":359533.0895364681,"d":"$359,533"}},{"$f":"'Trial 3'!D54","v":{"v":343445.0582851125,"d":"$343,445"}},{"$f":"'Trial 3'!E54","v":{"v":340237.3019742736,"d":"$340,237"}},{"$f":"'Trial 3'!F54","v":{"v":354543.2007920637,"d":"$354,543"}},{"$f":"'Trial 3'!G54","v":{"v":346351.9663984348,"d":"$346,352"}},{"$f":"'Trial 3'!H54","v":{"v":349537.0797386074,"d":"$349,537"}},{"$f":"'Trial 3'!I54","v":{"v":349192.6766779825,"d":"$349,193"}},{"$f":"'Trial 3'!J54","v":{"v":357850.5628534961,"d":"$357,851"}},{"$f":"'Trial 3'!K54","v":{"v":337258.7774663437,"d":"$337,259"}},{"$f":"'Trial 3'!L54","v":{"v":340837.27083314385,"d":"$340,837"}},{"$f":"'Trial 3'!M54","v":{"v":347056.4615421507,"d":"$347,056"}},{"$f":"SUM('Trial 3'!B54:M54)","v":{"v":4170946.1915420573,"d":"$4,170,946"}},{"$f":"'Trial 3'!O54","v":{"v":341659.4046330656,"d":"$341,659"}},{"$f":"'Trial 3'!P54","v":{"v":350322.3990263233,"d":"$350,322"}},{"$f":"'Trial 3'!Q54","v":{"v":336883.3653456917,"d":"$336,883"}},{"$f":"'Trial 3'!R54","v":{"v":353838.5950370804,"d":"$353,839"}},{"$f":"'Trial 3'!S54","v":{"v":360982.80091392226,"d":"$360,983"}},{"$f":"'Trial 3'!T54","v":{"v":336467.2195638128,"d":"$336,467"}},{"$f":"'Trial 3'!U54","v":{"v":352947.23180948227,"d":"$352,947"}},{"$f":"'Trial 3'!V54","v":{"v":354503.8843231352,"d":"$354,504"}},{"$f":"'Trial 3'!W54","v":{"v":337421.70028235816,"d":"$337,422"}},{"$f":"'Trial 3'!X54","v":{"v":345959.08827375236,"d":"$345,959"}},{"$f":"'Trial 3'!Y54","v":{"v":325599.06581060466,"d":"$325,599"}},{"$f":"'Trial 3'!Z54","v":{"v":341875.9728240863,"d":"$341,876"}},{"$f":"SUM('Trial 3'!O54:Z54)","v":{"v":4138460.727843315,"d":"$4,138,461"}},{"$f":"'Trial 3'!AB54","v":{"v":342830.9895999873,"d":"$342,831"}},{"$f":"'Trial 3'!AC54","v":{"v":350089.5852064099,"d":"$350,090"}},{"$f":"'Trial 3'!AD54","v":{"v":336220.2928396096,"d":"$336,220"}},{"$f":"'Trial 3'!AE54","v":{"v":342036.6645634223,"d":"$342,037"}},{"$f":"'Trial 3'!AF54","v":{"v":340502.26576505473,"d":"$340,502"}},{"$f":"'Trial 3'!AG54","v":{"v":335265.1963353087,"d":"$335,265"}},{"$f":"'Trial 3'!AH54","v":{"v":325398.9647289064,"d":"$325,399"}},{"$f":"'Trial 3'!AI54","v":{"v":341864.3477629917,"d":"$341,864"}},{"$f":"'Trial 3'!AJ54","v":{"v":341375.28464577266,"d":"$341,375"}},{"$f":"'Trial 3'!AK54","v":{"v":338286.79900353076,"d":"$338,287"}},{"$f":"'Trial 3'!AL54","v":{"v":327398.0443419048,"d":"$327,398"}},{"$f":"'Trial 3'!AM54","v":{"v":351470.29694959393,"d":"$351,470"}},{"$f":"SUM('Trial 3'!AB54:AM54)","v":{"v":4072738.7317424924,"d":"$4,072,739"}},{"$f":"'Trial 3'!AO54","v":{"v":326114.8881257539,"d":"$326,115"}},{"$f":"'Trial 3'!AP54","v":{"v":337312.66730757797,"d":"$337,313"}},{"$f":"'Trial 3'!AQ54","v":{"v":349921.27205104654,"d":"$349,921"}},{"$f":"'Trial 3'!AR54","v":{"v":343091.97745976027,"d":"$343,092"}},{"$f":"'Trial 3'!AS54","v":{"v":330955.3751101628,"d":"$330,955"}},{"$f":"'Trial 3'!AT54","v":{"v":336339.5920933703,"d":"$336,340"}},{"$f":"'Trial 3'!AU54","v":{"v":345248.616917467,"d":"$345,249"}},{"$f":"'Trial 3'!AV54","v":{"v":341866.4273147188,"d":"$341,866"}},{"$f":"'Trial 3'!AW54","v":{"v":315300.0888248081,"d":"$315,300"}},{"$f":"'Trial 3'!AX54","v":{"v":343902.6109445799,"d":"$343,903"}},{"$f":"'Trial 3'!AY54","v":{"v":327219.81548045285,"d":"$327,220"}},{"$f":"'Trial 3'!AZ54","v":{"v":330472.6461690932,"d":"$330,473"}},{"$f":"SUM('Trial 3'!AO54:AZ54)","v":{"v":4027745.9777987916,"d":"$4,027,746"}},{"$f":"'Trial 3'!BB54","v":{"v":340944.85292322666,"d":"$340,945"}},{"$f":"'Trial 3'!BC54","v":{"v":345045.3072778338,"d":"$345,045"}},{"$f":"'Trial 3'!BD54","v":{"v":328186.36778440035,"d":"$328,186"}},{"$f":"'Trial 3'!BE54","v":{"v":336770.8770860699,"d":"$336,771"}},{"$f":"'Trial 3'!BF54","v":{"v":329479.43782702705,"d":"$329,479"}},{"$f":"'Trial 3'!BG54","v":{"v":330092.23986011185,"d":"$330,092"}},{"$f":"'Trial 3'!BH54","v":{"v":342458.1067863533,"d":"$342,458"}},{"$f":"'Trial 3'!BI54","v":{"v":326719.6080688909,"d":"$326,720"}},{"$f":"'Trial 3'!BJ54","v":{"v":313042.41972697043,"d":"$313,042"}},{"$f":"'Trial 3'!BK54","v":{"v":313986.4561632874,"d":"$313,986"}},{"$f":"'Trial 3'!BL54","v":{"v":328127.8344003659,"d":"$328,128"}},{"$f":"'Trial 3'!BM54","v":{"v":310189.2212212931,"d":"$310,189"}},{"$f":"SUM('Trial 3'!BB54:BM54)","v":{"v":3945042.7291258313,"d":"$3,945,043"}},{"$f":"'Trial 3'!BO54","v":{"v":323045.04174419155,"d":"$323,045"}},{"$f":"'Trial 3'!BP54","v":{"v":319485.36161043186,"d":"$319,485"}},{"$f":"'Trial 3'!BQ54","v":{"v":322501.21861324104,"d":"$322,501"}},{"$f":"'Trial 3'!BR54","v":{"v":336266.72559489135,"d":"$336,267"}},{"$f":"'Trial 3'!BS54","v":{"v":324382.9783966905,"d":"$324,383"}},{"$f":"'Trial 3'!BT54","v":{"v":328274.2692367924,"d":"$328,274"}},{"$f":"'Trial 3'!BU54","v":{"v":310492.66868950956,"d":"$310,493"}},{"$f":"'Trial 3'!BV54","v":{"v":323655.4518012533,"d":"$323,655"}},{"$f":"'Trial 3'!BW54","v":{"v":329125.1926809734,"d":"$329,125"}},{"$f":"'Trial 3'!BX54","v":{"v":317501.8652019979,"d":"$317,502"}},{"$f":"'Trial 3'!BY54","v":{"v":313640.4419959547,"d":"$313,640"}},{"$f":"'Trial 3'!BZ54","v":{"v":308413.73429911747,"d":"$308,414"}},{"$f":"SUM('Trial 3'!BO54:BZ54)","v":{"v":3856784.949865045,"d":"$3,856,785"}},{"$f":"'Trial 3'!CB54","v":{"v":321668.0312402733,"d":"$321,668"}},{"$f":"'Trial 3'!CC54","v":{"v":326025.54644141527,"d":"$326,026"}},{"$f":"'Trial 3'!CD54","v":{"v":306065.41739103285,"d":"$306,065"}},{"$f":"'Trial 3'!CE54","v":{"v":306228.5186258083,"d":"$306,229"}},{"$f":"'Trial 3'!CF54","v":{"v":322589.8551393583,"d":"$322,590"}},{"$f":"'Trial 3'!CG54","v":{"v":313871.9175173089,"d":"$313,872"}},{"$f":"'Trial 3'!CH54","v":{"v":306495.2972662309,"d":"$306,495"}},{"$f":"'Trial 3'!CI54","v":{"v":328022.95309006143,"d":"$328,023"}},{"$f":"'Trial 3'!CJ54","v":{"v":319452.42146767426,"d":"$319,452"}},{"$f":"'Trial 3'!CK54","v":{"v":319365.3750350777,"d":"$319,365"}},{"$f":"'Trial 3'!CL54","v":{"v":307050.6875431336,"d":"$307,051"}},{"$f":"'Trial 3'!CM54","v":{"v":308421.1960274683,"d":"$308,421"}},{"$f":"SUM('Trial 3'!CB54:CM54)","v":{"v":3785257.216784844,"d":"$3,785,257"}},{"$f":"'Trial 3'!CO54","v":{"v":320259.5393869692,"d":"$320,260"}},{"$f":"'Trial 3'!CP54","v":{"v":316418.18296205974,"d":"$316,418"}},{"$f":"'Trial 3'!CQ54","v":{"v":316774.55589123094,"d":"$316,775"}},{"$f":"'Trial 3'!CR54","v":{"v":304007.1920188611,"d":"$304,007"}},{"$f":"'Trial 3'!CS54","v":{"v":316469.93759561854,"d":"$316,470"}},{"$f":"'Trial 3'!CT54","v":{"v":331364.89216324483,"d":"$331,365"}},{"$f":"'Trial 3'!CU54","v":{"v":309661.9769619438,"d":"$309,662"}},{"$f":"'Trial 3'!CV54","v":{"v":315463.853989863,"d":"$315,464"}},{"$f":"'Trial 3'!CW54","v":{"v":303643.5866930109,"d":"$303,644"}},{"$f":"'Trial 3'!CX54","v":{"v":318460.55203639134,"d":"$318,461"}},{"$f":"'Trial 3'!CY54","v":{"v":324731.21339295164,"d":"$324,731"}},{"$f":"'Trial 3'!CZ54","v":{"v":325043.6912831636,"d":"$325,044"}},{"$f":"SUM('Trial 3'!CO54:CZ54)","v":{"v":3802299.1743753077,"d":"$3,802,299"}},{"$f":"'Trial 3'!DB54","v":{"v":312280.0241820891,"d":"$312,280"}},{"$f":"'Trial 3'!DC54","v":{"v":296475.21172009653,"d":"$296,475"}},{"$f":"'Trial 3'!DD54","v":{"v":309355.6247150924,"d":"$309,356"}},{"$f":"'Trial 3'!DE54","v":{"v":308143.8700308868,"d":"$308,144"}},{"$f":"'Trial 3'!DF54","v":{"v":307398.33513112925,"d":"$307,398"}},{"$f":"'Trial 3'!DG54","v":{"v":306673.46652539395,"d":"$306,673"}},{"$f":"'Trial 3'!DH54","v":{"v":320667.9102332876,"d":"$320,668"}},{"$f":"'Trial 3'!DI54","v":{"v":319463.9983284685,"d":"$319,464"}},{"$f":"'Trial 3'!DJ54","v":{"v":321750.0997459955,"d":"$321,750"}},{"$f":"'Trial 3'!DK54","v":{"v":309520.50711861014,"d":"$309,521"}},{"$f":"'Trial 3'!DL54","v":{"v":298314.7578651767,"d":"$298,315"}},{"$f":"'Trial 3'!DM54","v":{"v":310533.54502461065,"d":"$310,534"}},{"$f":"SUM('Trial 3'!DB54:DM54)","v":{"v":3720577.3506208365,"d":"$3,720,577"}},{"$f":"'Trial 3'!DO54","v":{"v":322405.62739830744,"d":"$322,406"}},{"$f":"'Trial 3'!DP54","v":{"v":322249.17623546254,"d":"$322,249"}},{"$f":"'Trial 3'!DQ54","v":{"v":312179.7256703659,"d":"$312,180"}},{"$f":"'Trial 3'!DR54","v":{"v":324282.28196887637,"d":"$324,282"}},{"$f":"'Trial 3'!DS54","v":{"v":312246.6701876494,"d":"$312,247"}},{"$f":"'Trial 3'!DT54","v":{"v":307937.8281365178,"d":"$307,938"}},{"$f":"'Trial 3'!DU54","v":{"v":313048.82278643514,"d":"$313,049"}},{"$f":"'Trial 3'!DV54","v":{"v":289782.91533904336,"d":"$289,783"}},{"$f":"'Trial 3'!DW54","v":{"v":319233.46406191745,"d":"$319,233"}},{"$f":"'Trial 3'!DX54","v":{"v":308619.1111348762,"d":"$308,619"}},{"$f":"'Trial 3'!DY54","v":{"v":321626.6334501207,"d":"$321,627"}},{"$f":"'Trial 3'!DZ54","v":{"v":302571.9765501538,"d":"$302,572"}},{"$f":"SUM('Trial 3'!DO54:DZ54)","v":{"v":3756184.2329197256,"d":"$3,756,184"}},{"$f":"'Trial 3'!EB54","v":{"v":314133.65381235554,"d":"$314,134"}},{"$f":"'Trial 3'!EC54","v":{"v":317559.174517122,"d":"$317,559"}},{"$f":"'Trial 3'!ED54","v":{"v":294234.1677362106,"d":"$294,234"}},{"$f":"'Trial 3'!EE54","v":{"v":300657.9132799141,"d":"$300,658"}},{"$f":"'Trial 3'!EF54","v":{"v":298621.2580268909,"d":"$298,621"}},{"$f":"'Trial 3'!EG54","v":{"v":309204.04556542105,"d":"$309,204"}},{"$f":"'Trial 3'!EH54","v":{"v":288997.4446871983,"d":"$288,997"}},{"$f":"'Trial 3'!EI54","v":{"v":287410.2197004968,"d":"$287,410"}},{"$f":"'Trial 3'!EJ54","v":{"v":296949.6271340863,"d":"$296,950"}},{"$f":"'Trial 3'!EK54","v":{"v":301727.1076987992,"d":"$301,727"}},{"$f":"'Trial 3'!EL54","v":{"v":298913.92618368944,"d":"$298,914"}},{"$f":"'Trial 3'!EM54","v":{"v":318861.7096896505,"d":"$318,862"}},{"$f":"SUM('Trial 3'!EB54:EM54)","v":{"v":3627270.248031834,"d":"$3,627,270"}}]
[{"$f":"Labels!B99","v":"Trial 04"},{"$f":"'Trial 4'!B54","v":{"v":360389.7688221607,"d":"$360,390"}},{"$f":"'Trial 4'!C54","v":{"v":366607.87012618495,"d":"$366,608"}},{"$f":"'Trial 4'!D54","v":{"v":356223.5582466745,"d":"$356,224"}},{"$f":"'Trial 4'!E54","v":{"v":336022.19954292214,"d":"$336,022"}},{"$f":"'Trial 4'!F54","v":{"v":339841.6963730094,"d":"$339,842"}},{"$f":"'Trial 4'!G54","v":{"v":356219.266907951,"d":"$356,219"}},{"$f":"'Trial 4'!H54","v":{"v":356663.40498435876,"d":"$356,663"}},{"$f":"'Trial 4'!I54","v":{"v":358059.5539929045,"d":"$358,060"}},{"$f":"'Trial 4'!J54","v":{"v":343497.7357788274,"d":"$343,498"}},{"$f":"'Trial 4'!K54","v":{"v":343254.6731248989,"d":"$343,255"}},{"$f":"'Trial 4'!L54","v":{"v":344258.8184674104,"d":"$344,259"}},{"$f":"'Trial 4'!M54","v":{"v":343402.73553858977,"d":"$343,403"}},{"$f":"SUM('Trial 4'!B54:M54)","v":{"v":4204441.281905892,"d":"$4,204,441"}},{"$f":"'Trial 4'!O54","v":{"v":353889.52348119405,"d":"$353,890"}},{"$f":"'Trial 4'!P54","v":{"v":344508.4204113819,"d":"$344,508"}},{"$f":"'Trial 4'!Q54","v":{"v":355204.3356612075,"d":"$355,204"}},{"$f":"'Trial 4'!R54","v":{"v":359881.0562005649,"d":"$359,881"}},{"$f":"'Trial 4'!S54","v":{"v":357954.0778610404,"d":"$357,954"}},{"$f":"'Trial 4'!T54","v":{"v":336191.33121797687,"d":"$336,191"}},{"$f":"'Trial 4'!U54","v":{"v":342219.2777045539,"d":"$342,219"}},{"$f":"'Trial 4'!V54","v":{"v":343533.1209818832,"d":"$343,533"}},{"$f":"'Trial 4'!W54","v":{"v":340663.47543512366,"d":"$340,663"}},{"$f":"'Trial 4'!X54","v":{"v":349175.6619301909,"d":"$349,176"}},{"$f":"'Trial 4'!Y54","v":{"v":327400.3769311672,"d":"$327,400"}},{"$f":"'Trial 4'!Z54","v":{"v":344362.9064577864,"d":"$344,363"}},{"$f":"SUM('Trial 4'!O54:Z54)","v":{"v":4154983.5642740713,"d":"$4,154,984"}},{"$f":"'Trial 4'!AB54","v":{"v":343718.3398496307,"d":"$343,718"}},{"$f":"'Trial 4'!AC54","v":{"v":340775.8755977815,"d":"$340,776"}},{"$f":"'Trial 4'!AD54","v":{"v":338279.00905465597,"d":"$338,279"}},{"$f":"'Trial 4'!AE54","v":{"v":326690.5080277784,"d":"$326,691"}},{"$f":"'Trial 4'!AF54","v":{"v":344789.17488559306,"d":"$344,789"}},{"$f":"'Trial 4'!AG54","v":{"v":342772.80487259413,"d":"$342,773"}},{"$f":"'Trial 4'!AH54","v":{"v":353335.0761318614,"d":"$353,335"}},{"$f":"'Trial 4'!AI54","v":{"v":329099.8790710277,"d":"$329,100"}},{"$f":"'Trial 4'!AJ54","v":{"v":320273.62734947127,"d":"$320,274"}},{"$f":"'Trial 4'!AK54","v":{"v":325028.79052438674,"d":"$325,029"}},{"$f":"'Trial 4'!AL54","v":{"v":333020.4828522262,"d":"$333,020"}},{"$f":"'Trial 4'!AM54","v":{"v":347811.88091691706,"d":"$347,812"}},{"$f":"SUM('Trial 4'!AB54:AM54)","v":{"v":4045595.449133924,"d":"$4,045,595"}},{"$f":"'Trial 4'!AO54","v":{"v":326943.7269182431,"d":"$326,944"}},{"$f":"'Trial 4'!AP54","v":{"v":332099.3452493107,"d":"$332,099"}},{"$f":"'Trial 4'!AQ54","v":{"v":329902.1142166188,"d":"$329,902"}},{"$f":"'Trial 4'!AR54","v":{"v":322013.0701254219,"d":"$322,013"}},{"$f":"'Trial 4'!AS54","v":{"v":320155.2801188943,"d":"$320,155"}},{"$f":"'Trial 4'!AT54","v":{"v":317157.4340103224,"d":"$317,157"}},{"$f":"'Trial 4'!AU54","v":{"v":334254.2839631451,"d":"$334,254"}},{"$f":"'Trial 4'!AV54","v":{"v":336092.1347088283,"d":"$336,092"}},{"$f":"'Trial 4'!AW54","v":{"v":328808.19209092314,"d":"$328,808"}},{"$f":"'Trial 4'!AX54","v":{"v":324391.949441274,"d":"$324,392"}},{"$f":"'Trial 4'!AY54","v":{"v":330781.569579421,"d":"$330,782"}},{"$f":"'Trial 4'!AZ54","v":{"v":327552.75659528305,"d":"$327,553"}},{"$f":"SUM('Trial 4'!AO54:AZ54)","v":{"v":3930151.8570176857,"d":"$3,930,152"}},{"$f":"'Trial 4'!BB54","v":{"v":337092.0199419538,"d":"$337,092"}},{"$f":"'Trial 4'!BC54","v":{"v":324515.75582588726,"d":"$324,516"}},{"$f":"'Trial 4'!BD54","v":{"v":324228.40060031705,"d":"$324,228"}},{"$f":"'Trial 4'!BE54","v":{"v":324989.6378836926,"d":"$324,990"}},{"$f":"'Trial 4'!BF54","v":{"v":329418.28588777833,"d":"$329,418"}},{"$f":"'Trial 4'!BG54","v":{"v":335594.8021417349,"d":"$335,595"}},{"$f":"'Trial 4'!BH54","v":{"v":333560.9235622449,"d":"$333,561"}},{"$f":"'Trial 4'!BI54","v":{"v":315711.4344453837,"d":"$315,711"}},{"$f":"'Trial 4'!BJ54","v":{"v":329231.76259612106,"d":"$329,232"}},{"$f":"'Trial 4'!BK54","v":{"v":322123.24259633117,"d":"$322,123"}},{"$f":"'Trial 4'!BL54","v":{"v":325061.0603581643,"d":"$325,061"}},{"$f":"'Trial 4'!BM54","v":{"v":329691.3744250181,"d":"$329,691"}},{"$f":"SUM('Trial 4'!BB54:BM54)","v":{"v":3931218.7002646276,"d":"$3,931,219"}},{"$f":"'Trial 4'!BO54","v":{"v":318905.50184185023,"d":"$318,906"}},{"$f":"'Trial 4'!BP54","v":{"v":328321.6481652822,"d":"$328,322"}},{"$f":"'Trial 4'!BQ54","v":{"v":319753.73489893135,"d":"$319,754"}},{"$f":"'Trial 4'!BR54","v":{"v":324044.6793104467,"d":"$324,045"}},{"$f":"'Trial 4'!BS54","v":{"v":319242.61333368206,"d":"$319,243"}},{"$f":"'Trial 4'!BT54","v":{"v":327758.55393604474,"d":"$327,759"}},{"$f":"'Trial 4'!BU54","v":{"v":325384.18252218526,"d":"$325,384"}},{"$f":"'Trial 4'!BV54","v":{"v":311791.32177224936,"d":"$311,791"}},{"$f":"'Trial 4'!BW54","v":{"v":330647.82691974554,"d":"$330,648"}},{"$f":"'Trial 4'!BX54","v":{"v":333630.24566103215,"d":"$333,630"}},{"$f":"'Trial 4'!BY54","v":{"v":319892.3969150957,"d":"$319,892"}},{"$f":"'Trial 4'!BZ54","v":{"v":328115.137462883,"d":"$328,115"}},{"$f":"SUM('Trial 4'!BO54:BZ54)","v":{"v":3887487.8427394284,"d":"$3,887,488"}},{"$f":"'Trial 4'!CB54","v":{"v":321350.69051797874,"d":"$321,351"}},{"$f":"'Trial 4'!CC54","v":{"v":321709.6175264391,"d":"$321,710"}},{"$f":"'Trial 4'!CD54","v":{"v":321899.898567796,"d":"$321,900"}},{"$f":"'Trial 4'!CE54","v":{"v":317399.0643135597,"d":"$317,399"}},{"$f":"'Trial 4'!CF54","v":{"v":317076.7303392908,"d":"$317,077"}},{"$f":"'Trial 4'!CG54","v":{"v":322699.8770150556,"d":"$322,700"}},{"$f":"'Trial 4'!CH54","v":{"v":306497.17891629384,"d":"$306,497"}},{"$f":"'Trial 4'!CI54","v":{"v":317871.1745278263,"d":"$317,871"}},{"$f":"'Trial 4'!CJ54","v":{"v":322443.0358740177,"d":"$322,443"}},{"$f":"'Trial 4'!CK54","v":{"v":314730.27999645646,"d":"$314,730"}},{"$f":"'Trial 4'!CL54","v":{"v":320247.06632843905,"d":"$320,247"}},{"$f":"'Trial 4'!CM54","v":{"v":310601.0286948598,"d":"$310,601"}},{"$f":"SUM('Trial 4'!CB54:CM54)","v":{"v":3814525.6426180126,"d":"$3,814,526"}},{"$f":"'Trial 4'!CO54","v":{"v":327413.56900348887,"d":"$327,414"}},{"$f":"'Trial 4'!CP54","v":{"v":316148.65704899107,"d":"$316,149"}},{"$f":"'Trial 4'!CQ54","v":{"v":307438.91790346924,"d":"$307,439"}},{"$f":"'Trial 4'!CR54","v":{"v":316347.1335381492,"d":"$316,347"}},{"$f":"'Trial 4'!CS54","v":{"v":306477.1232871343,"d":"$306,477"}},{"$f":"'Trial 4'!CT54","v":{"v":312237.3137905593,"d":"$312,237"}},{"$f":"'Trial 4'!CU54","v":{"v":311432.1773081857,"d":"$311,432"}},{"$f":"'Trial 4'!CV54","v":{"v":321389.8113759608,"d":"$321,390"}},{"$f":"'Trial 4'!CW54","v":{"v":311336.055338338,"d":"$311,336"}},{"$f":"'Trial 4'!CX54","v":{"v":320653.49205593846,"d":"$320,653"}},{"$f":"'Trial 4'!CY54","v":{"v":315498.7654521064,"d":"$315,499"}},{"$f":"'Trial 4'!CZ54","v":{"v":306435.6683438022,"d":"$306,436"}},{"$f":"SUM('Trial 4'!CO54:CZ54)","v":{"v":3772808.6844461234,"d":"$3,772,809"}},{"$f":"'Trial 4'!DB54","v":{"v":309993.13351818296,"d":"$309,993"}},{"$f":"'Trial 4'!DC54","v":{"v":329280.25531040353,"d":"$329,280"}},{"$f":"'Trial 4'!DD54","v":{"v":313316.07354036724,"d":"$313,316"}},{"$f":"'Trial 4'!DE54","v":{"v":316866.78775720677,"d":"$316,867"}},{"$f":"'Trial 4'!DF54","v":{"v":313116.00257651624,"d":"$313,116"}},{"$f":"'Trial 4'!DG54","v":{"v":297058.50956336805,"d":"$297,059"}},{"$f":"'Trial 4'!DH54","v":{"v":314212.0035048013,"d":"$314,212"}},{"$f":"'Trial 4'!DI54","v":{"v":301844.66363221954,"d":"$301,845"}},{"$f":"'Trial 4'!DJ54","v":{"v":292615.73593734956,"d":"$292,616"}},{"$f":"'Trial 4'!DK54","v":{"v":310986.5256509948,"d":"$310,987"}},{"$f":"'Trial 4'!DL54","v":{"v":307449.26261477993,"d":"$307,449"}},{"$f":"'Trial 4'!DM54","v":{"v":313940.4388863774,"d":"$313,940"}},{"$f":"SUM('Trial 4'!DB54:DM54)","v":{"v":3720679.3924925677,"d":"$3,720,679"}},{"$f":"'Trial 4'!DO54","v":{"v":306222.48855586944,"d":"$306,222"}},{"$f":"'Trial 4'!DP54","v":{"v":315375.21149805695,"d":"$315,375"}},{"$f":"'Trial 4'!DQ54","v":{"v":319009.33805156895,"d":"$319,009"}},{"$f":"'Trial 4'!DR54","v":{"v":305671.93300376827,"d":"$305,672"}},{"$f":"'Trial 4'!DS54","v":{"v":316531.1481432175,"d":"$316,531"}},{"$f":"'Trial 4'!DT54","v":{"v":293001.38586684805,"d":"$293,001"}},{"$f":"'Trial 4'!DU54","v":{"v":290851.9024812279,"d":"$290,852"}},{"$f":"'Trial 4'!DV54","v":{"v":308411.6661315771,"d":"$308,412"}},{"$f":"'Trial 4'!DW54","v":{"v":316118.5002070734,"d":"$316,119"}},{"$f":"'Trial 4'!DX54","v":{"v":294174.6283352357,"d":"$294,175"}},{"$f":"'Trial 4'!DY54","v":{"v":311037.01021839853,"d":"$311,037"}},{"$f":"'Trial 4'!DZ54","v":{"v":301375.7772382923,"d":"$301,376"}},{"$f":"SUM('Trial 4'!DO54:DZ54)","v":{"v":3677780.989731134,"d":"$3,677,781"}},{"$f":"'Trial 4'!EB54","v":{"v":315368.2459108866,"d":"$315,368"}},{"$f":"'Trial 4'!EC54","v":{"v":318361.25590304064,"d":"$318,361"}},{"$f":"'Trial 4'!ED54","v":{"v":309930.72814364335,"d":"$309,931"}},{"$f":"'Trial 4'!EE54","v":{"v":302866.2833381372,"d":"$302,866"}},{"$f":"'Trial 4'!EF54","v":{"v":297445.59501138463,"d":"$297,446"}},{"$f":"'Trial 4'!EG54","v":{"v":290810.7824366796,"d":"$290,811"}},{"$f":"'Trial 4'!EH54","v":{"v":306848.47459130926,"d":"$306,848"}},{"$f":"'Trial 4'!EI54","v":{"v":319445.83421553986,"d":"$319,446"}},{"$f":"'Trial 4'!EJ54","v":{"v":308837.3278335669,"d":"$308,837"}},{"$f":"'Trial 4'!EK54","v":{"v":293145.0013657912,"d":"$293,145"}},{"$f":"'Trial 4'!EL54","v":{"v":302857.4481379193,"d":"$302,857"}},{"$f":"'Trial 4'!EM54","v":{"v":309528.36397654074,"d":"$309,528"}},{"$f":"SUM('Trial 4'!EB54:EM54)","v":{"v":3675445.3408644395,"d":"$3,675,445"}}]
[{"$f":"Labels!B100","v":"Trial 05"},{"$f":"'Trial 5'!B54","v":{"v":349399.51875241724,"d":"$349,400"}},{"$f":"'Trial 5'!C54","v":{"v":343483.9196737852,"d":"$343,484"}},{"$f":"'Trial 5'!D54","v":{"v":352140.6199299103,"d":"$352,141"}},{"$f":"'Trial 5'!E54","v":{"v":353319.44176055316,"d":"$353,319"}},{"$f":"'Trial 5'!F54","v":{"v":344836.6337040916,"d":"$344,837"}},{"$f":"'Trial 5'!G54","v":{"v":338852.07683567033,"d":"$338,852"}},{"$f":"'Trial 5'!H54","v":{"v":364733.63613244053,"d":"$364,734"}},{"$f":"'Trial 5'!I54","v":{"v":330403.2486042372,"d":"$330,403"}},{"$f":"'Trial 5'!J54","v":{"v":343590.9051008796,"d":"$343,591"}},{"$f":"'Trial 5'!K54","v":{"v":347191.8556543987,"d":"$347,192"}},{"$f":"'Trial 5'!L54","v":{"v":363845.8019263093,"d":"$363,846"}},{"$f":"'Trial 5'!M54","v":{"v":345503.73219166574,"d":"$345,504"}},{"$f":"SUM('Trial 5'!B54:M54)","v":{"v":4177301.3902663584,"d":"$4,177,301"}},{"$f":"'Trial 5'!O54","v":{"v":341074.5612818335,"d":"$341,075"}},{"$f":"'Trial 5'!P54","v":{"v":343598.93778610934,"d":"$343,599"}},{"$f":"'Trial 5'!Q54","v":{"v":346711.73833292664,"d":"$346,712"}},{"$f":"'Trial 5'!R54","v":{"v":331370.0651863802,"d":"$331,370"}},{"$f":"'Trial 5'!S54","v":{"v":336348.66460777697,"d":"$336,349"}},{"$f":"'Trial 5'!T54","v":{"v":355675.81194535637,"d":"$355,676"}},{"$f":"'Trial 5'!U54","v":{"v":350929.9719127632,"d":"$350,930"}},{"$f":"'Trial 5'!V54","v":{"v":333652.35010257835,"d":"$333,652"}},{"$f":"'Trial 5'!W54","v":{"v":342007.7972568703,"d":"$342,008"}},{"$f":"'Trial 5'!X54","v":{"v":341402.51521875843,"d":"$341,403"}},{"$f":"'Trial 5'!Y54","v":{"v":342786.43413583597,"d":"$342,786"}},{"$f":"'Trial 5'!Z54","v":{"v":331938.47383495583,"d":"$331,938"}},{"$f":"SUM('Trial 5'!O54:Z54)","v":{"v":4097497.321602145,"d":"$4,097,497"}},{"$f":"'Trial 5'!AB54","v":{"v":326093.54265693884,"d":"$326,094"}},{"$f":"'Trial 5'!AC54","v":{"v":344454.68354326,"d":"$344,455"}},{"$f":"'Trial 5'!AD54","v":{"v":349197.73053644376,"d":"$349,198"}},{"$f":"'Trial 5'!AE54","v":{"v":327425.66963526234,"d":"$327,426"}},{"$f":"'Trial 5'!AF54","v":{"v":326934.8544928421,"d":"$326,935"}},{"$f":"'Trial 5'!AG54","v":{"v":332267.8130093126,"d":"$332,268"}},{"$f":"'Trial 5'!AH54","v":{"v":346427.6296892444,"d":"$346,428"}},{"$f":"'Trial 5'!AI54","v":{"v":335045.2116070378,"d":"$335,045"}},{"$f":"'Trial 5'!AJ54","v":{"v":341409.9104690442,"d":"$341,410"}},{"$f":"'Trial 5'!AK54","v":{"v":345685.45364408364,"d":"$345,685"}},{"$f":"'Trial 5'!AL54","v":{"v":342724.06097033306,"d":"$342,724"}},{"$f":"'Trial 5'!AM54","v":{"v":329419.5733983708,"d":"$329,420"}},{"$f":"SUM('Trial 5'!AB54:AM54)","v":{"v":4047086.133652173,"d":"$4,047,086"}},{"$f":"'Trial 5'!AO54","v":{"v":332513.478216293,"d":"$332,513"}},{"$f":"'Trial 5'!AP54","v":{"v":329353.92316406476,"d":"$329,354"}},{"$f":"'Trial 5'!AQ54","v":{"v":324207.1961111748,"d":"$324,207"}},{"$f":"'Trial 5'!AR54","v":{"v":348800.86701711226,"d":"$348,801"}},{"$f":"'Trial 5'!AS54","v":{"v":325306.00762068154,"d":"$325,306"}},{"$f":"'Trial 5'!AT54","v":{"v":334488.3886081318,"d":"$334,488"}},{"$f":"'Trial 5'!AU54","v":{"v":337550.61190591456,"d":"$337,551"}},{"$f":"'Trial 5'!AV54","v":{"v":334255.1918274449,"d":"$334,255"}},{"$f":"'Trial 5'!AW54","v":{"v":318298.4919527758,"d":"$318,298"}},{"$f":"'Trial 5'!AX54","v":{"v":326165.67771268584,"d":"$326,166"}},{"$f":"'Trial 5'!AY54","v":{"v":327235.0802803417,"d":"$327,235"}},{"$f":"'Trial 5'!AZ54","v":{"v":337867.59317254764,"d":"$337,868"}},{"$f":"SUM('Trial 5'!AO54:AZ54)","v":{"v":3976042.507589169,"d":"$3,976,043"}},{"$f":"'Trial 5'!BB54","v":{"v":316443.60518247547,"d":"$316,444"}},{"$f":"'Trial 5'!BC54","v":{"v":333060.63384244643,"d":"$333,061"}},{"$f":"'Trial 5'!BD54","v":{"v":344990.9790173679,"d":"$344,991"}},{"$f":"'Trial 5'!BE54","v":{"v":338798.5413465275,"d":"$338,799"}},{"$f":"'Trial 5'!BF54","v":{"v":324328.14806269325,"d":"$324,328"}},{"$f":"'Trial 5'!BG54","v":{"v":313329.15487466357,"d":"$313,329"}},{"$f":"'Trial 5'!BH54","v":{"v":343454.0184469266,"d":"$343,454"}},{"$f":"'Trial 5'!BI54","v":{"v":315231.31372195756,"d":"$315,231"}},{"$f":"'Trial 5'!BJ54","v":{"v":325012.66644250974,"d":"$325,013"}},{"$f":"'Trial 5'!BK54","v":{"v":337584.6413453711,"d":"$337,585"}},{"$f":"'Trial 5'!BL54","v":{"v":313865.8190501901,"d":"$313,866"}},{"$f":"'Trial 5'!BM54","v":{"v":329088.05977213196,"d":"$329,088"}},{"$f":"SUM('Trial 5'!BB54:BM54)","v":{"v":3935187.581105261,"d":"$3,935,188"}},{"$f":"'Trial 5'!BO54","v":{"v":311662.4302251676,"d":"$311,662"}},{"$f":"'Trial 5'!BP54","v":{"v":324704.32190722536,"d":"$324,704"}},{"$f":"'Trial 5'!BQ54","v":{"v":314560.36163004575,"d":"$314,560"}},{"$f":"'Trial 5'!BR54","v":{"v":335726.3744303696,"d":"$335,726"}},{"$f":"'Trial 5'!BS54","v":{"v":317377.7012606803,"d":"$317,378"}},{"$f":"'Trial 5'!BT54","v":{"v":329592.3612913081,"d":"$329,592"}},{"$f":"'Trial 5'!BU54","v":{"v":334061.4862918842,"d":"$334,061"}},{"$f":"'Trial 5'!BV54","v":{"v":312486.0655501773,"d":"$312,486"}},{"$f":"'Trial 5'!BW54","v":{"v":321415.74195888394,"d":"$321,416"}},{"$f":"'Trial 5'!BX54","v":{"v":303989.93530919135,"d":"$303,990"}},{"$f":"'Trial 5'!BY54","v":{"v":327150.1971136624,"d":"$327,150"}},{"$f":"'Trial 5'!BZ54","v":{"v":321832.14466516837,"d":"$321,832"}},{"$f":"SUM('Trial 5'!BO54:BZ54)","v":{"v":3854559.1216337644,"d":"$3,854,559"}},{"$f":"'Trial 5'!CB54","v":{"v":330356.39319699735,"d":"$330,356"}},{"$f":"'Trial 5'!CC54","v":{"v":316115.0902072494,"d":"$316,115"}},{"$f":"'Trial 5'!CD54","v":{"v":303514.92936257215,"d":"$303,515"}},{"$f":"'Trial 5'!CE54","v":{"v":309725.0499089945,"d":"$309,725"}},{"$f":"'Trial 5'!CF54","v":{"v":314324.9393184901,"d":"$314,325"}},{"$f":"'Trial 5'!CG54","v":{"v":330859.91687421844,"d":"$330,860"}},{"$f":"'Trial 5'!CH54","v":{"v":334385.728797004,"d":"$334,386"}},{"$f":"'Trial 5'!CI54","v":{"v":324627.4255796195,"d":"$324,627"}},{"$f":"'Trial 5'!CJ54","v":{"v":328409.753173114,"d":"$328,410"}},{"$f":"'Trial 5'!CK54","v":{"v":315799.57959716336,"d":"$315,800"}},{"$f":"'Trial 5'!CL54","v":{"v":309844.58351575513,"d":"$309,845"}},{"$f":"'Trial 5'!CM54","v":{"v":311871.69971418305,"d":"$311,872"}},{"$f":"SUM('Trial 5'!CB54:CM54)","v":{"v":3829835.0892453603,"d":"$3,829,835"}},{"$f":"'Trial 5'!CO54","v":{"v":308925.62734698347,"d":"$308,926"}},{"$f":"'Trial 5'!CP54","v":{"v":310820.0308642899,"d":"$310,820"}},{"$f":"'Trial 5'!CQ54","v":{"v":325979.82087826054,"d":"$325,980"}},{"$f":"'Trial 5'!CR54","v":{"v":318058.07169666264,"d":"$318,058"}},{"$f":"'Trial 5'!CS54","v":{"v":309896.43376780034,"d":"$309,896"}},{"$f":"'Trial 5'!CT54","v":{"v":301640.67082438647,"d":"$301,641"}},{"$f":"'Trial 5'!CU54","v":{"v":316467.78914571955,"d":"$316,468"}},{"$f":"'Trial 5'!CV54","v":{"v":307233.5882047982,"d":"$307,234"}},{"$f":"'Trial 5'!CW54","v":{"v":314787.765860443,"d":"$314,788"}},{"$f":"'Trial 5'!CX54","v":{"v":300370.3453275973,"d":"$300,370"}},{"$f":"'Trial 5'!CY54","v":{"v":313024.21919393266,"d":"$313,024"}},{"$f":"'Trial 5'!CZ54","v":{"v":318114.686724267,"d":"$318,115"}},{"$f":"SUM('Trial 5'!CO54:CZ54)","v":{"v":3745319.049835141,"d":"$3,745,319"}},{"$f":"'Trial 5'!DB54","v":{"v":314474.97607041395,"d":"$314,475"}},{"$f":"'Trial 5'!DC54","v":{"v":306993.3957638938,"d":"$306,993"}},{"$f":"'Trial 5'!DD54","v":{"v":299811.1073356876,"d":"$299,811"}},{"$f":"'Trial 5'!DE54","v":{"v":316624.09448557964,"d":"$316,624"}},{"$f":"'Trial 5'!DF54","v":{"v":326376.6254925759,"d":"$326,377"}},{"$f":"'Trial 5'!DG54","v":{"v":308786.1232912538,"d":"$308,786"}},{"$f":"'Trial 5'!DH54","v":{"v":309947.0417873488,"d":"$309,947"}},{"$f":"'Trial 5'!DI54","v":{"v":311056.60735097365,"d":"$311,057"}},{"$f":"'Trial 5'!DJ54","v":{"v":303424.18672586064,"d":"$303,424"}},{"$f":"'Trial 5'!DK54","v":{"v":309371.4040287207,"d":"$309,371"}},{"$f":"'Trial 5'!DL54","v":{"v":291581.0082292629,"d":"$291,581"}},{"$f":"'Trial 5'!DM54","v":{"v":310492.69190919056,"d":"$310,493"}},{"$f":"SUM('Trial 5'!DB54:DM54)","v":{"v":3708939.262470762,"d":"$3,708,939"}},{"$f":"'Trial 5'!DO54","v":{"v":325665.62231038173,"d":"$325,666"}},{"$f":"'Trial 5'!DP54","v":{"v":303789.7700997982,"d":"$303,790"}},{"$f":"'Trial 5'!DQ54","v":{"v":293910.02172035,"d":"$293,910"}},{"$f":"'Trial 5'!DR54","v":{"v":300460.7528470231,"d":"$300,461"}},{"$f":"'Trial 5'!DS54","v":{"v":297328.9468980753,"d":"$297,329"}},{"$f":"'Trial 5'!DT54","v":{"v":313151.9587458044,"d":"$313,152"}},{"$f":"'Trial 5'!DU54","v":{"v":309543.4582357429,"d":"$309,543"}},{"$f":"'Trial 5'!DV54","v":{"v":305499.9079861437,"d":"$305,500"}},{"$f":"'Trial 5'!DW54","v":{"v":310758.827521551,"d":"$310,759"}},{"$f":"'Trial 5'!DX54","v":{"v":301749.57463024894,"d":"$301,750"}},{"$f":"'Trial 5'!DY54","v":{"v":291038.5391592565,"d":"$291,039"}},{"$f":"'Trial 5'!DZ54","v":{"v":302370.267653295,"d":"$302,370"}},{"$f":"SUM('Trial 5'!DO54:DZ54)","v":{"v":3655267.6478076703,"d":"$3,655,268"}},{"$f":"'Trial 5'!EB54","v":{"v":304962.2314072194,"d":"$304,962"}},{"$f":"'Trial 5'!EC54","v":{"v":320522.85220329993,"d":"$320,523"}},{"$f":"'Trial 5'!ED54","v":{"v":298913.7397465286,"d":"$298,914"}},{"$f":"'Trial 5'!EE54","v":{"v":291132.0072538418,"d":"$291,132"}},{"$f":"'Trial 5'!EF54","v":{"v":302256.9315288464,"d":"$302,257"}},{"$f":"'Trial 5'!EG54","v":{"v":300171.5629612439,"d":"$300,172"}},{"$f":"'Trial 5'!EH54","v":{"v":308695.0441817881,"d":"$308,695"}},{"$f":"'Trial 5'!EI54","v":{"v":286497.81233010686,"d":"$286,498"}},{"$f":"'Trial 5'!EJ54","v":{"v":312727.0981676528,"d":"$312,727"}},{"$f":"'Trial 5'!EK54","v":{"v":294099.1534575723,"d":"$294,099"}},{"$f":"'Trial 5'!EL54","v":{"v":302564.3664320869,"d":"$302,564"}},{"$f":"'Trial 5'!EM54","v":{"v":313287.3161992442,"d":"$313,287"}},{"$f":"SUM('Trial 5'!EB54:EM54)","v":{"v":3635830.115869431,"d":"$3,635,830"}}]
[{"$f":"Labels!B101","v":"Trial 06"},{"$f":"'Trial 6'!B54","v":{"v":349804.56621585693,"d":"$349,805"}},{"$f":"'Trial 6'!C54","v":{"v":335998.55662838934,"d":"$335,999"}},{"$f":"'Trial 6'!D54","v":{"v":355671.937149518,"d":"$355,672"}},{"$f":"'Trial 6'!E54","v":{"v":349351.8071299214,"d":"$349,352"}},{"$f":"'Trial 6'!F54","v":{"v":332222.36812551256,"d":"$332,222"}},{"$f":"'Trial 6'!G54","v":{"v":352901.46536862396,"d":"$352,901"}},{"$f":"'Trial 6'!H54","v":{"v":339656.87728946324,"d":"$339,657"}},{"$f":"'Trial 6'!I54","v":{"v":354712.00120215985,"d":"$354,712"}},{"$f":"'Trial 6'!J54","v":{"v":360121.53673664964,"d":"$360,122"}},{"$f":"'Trial 6'!K54","v":{"v":342278.39349322516,"d":"$342,278"}},{"$f":"'Trial 6'!L54","v":{"v":349695.25377322966,"d":"$349,695"}},{"$f":"'Trial 6'!M54","v":{"v":328870.39491436083,"d":"$328,870"}},{"$f":"SUM('Trial 6'!B54:M54)","v":{"v":4151285.1580269104,"d":"$4,151,285"}},{"$f":"'Trial 6'!O54","v":{"v":332522.1776899273,"d":"$332,522"}},{"$f":"'Trial 6'!P54","v":{"v":348502.1002098856,"d":"$348,502"}},{"$f":"'Trial 6'!Q54","v":{"v":361973.12636124296,"d":"$361,973"}},{"$f":"'Trial 6'!R54","v":{"v":331450.0213672229,"d":"$331,450"}},{"$f":"'Trial 6'!S54","v":{"v":345542.13495163206,"d":"$345,542"}},{"$f":"'Trial 6'!T54","v":{"v":357853.98141709756,"d":"$357,854"}},{"$f":"'Trial 6'!U54","v":{"v":335843.21264078806,"d":"$335,843"}},{"$f":"'Trial 6'!V54","v":{"v":348773.8325213962,"d":"$348,774"}},{"$f":"'Trial 6'!W54","v":{"v":350371.6540998953,"d":"$350,372"}},{"$f":"'Trial 6'!X54","v":{"v":340469.2921924413,"d":"$340,469"}},{"$f":"'Trial 6'!Y54","v":{"v":333405.6617164772,"d":"$333,406"}},{"$f":"'Trial 6'!Z54","v":{"v":350110.8143735559,"d":"$350,111"}},{"$f":"SUM('Trial 6'!O54:Z54)","v":{"v":4136818.0095415623,"d":"$4,136,818"}},{"$f":"'Trial 6'!AB54","v":{"v":326683.22164916666,"d":"$326,683"}},{"$f":"'Trial 6'!AC54","v":{"v":332455.688444004,"d":"$332,456"}},{"$f":"'Trial 6'!AD54","v":{"v":354443.7282080192,"d":"$354,444"}},{"$f":"'Trial 6'!AE54","v":{"v":335835.8045573728,"d":"$335,836"}},{"$f":"'Trial 6'!AF54","v":{"v":354132.7319895388,"d":"$354,133"}},{"$f":"'Trial 6'!AG54","v":{"v":348520.8166924725,"d":"$348,521"}},{"$f":"'Trial 6'!AH54","v":{"v":340773.7802404744,"d":"$340,774"}},{"$f":"'Trial 6'!AI54","v":{"v":325711.2878641882,"d":"$325,711"}},{"$f":"'Trial 6'!AJ54","v":{"v":354124.5656841172,"d":"$354,125"}},{"$f":"'Trial 6'!AK54","v":{"v":327509.2275405174,"d":"$327,509"}},{"$f":"'Trial 6'!AL54","v":{"v":318506.2279294169,"d":"$318,506"}},{"$f":"'Trial 6'!AM54","v":{"v":330978.5439857406,"d":"$330,979"}},{"$f":"SUM('Trial 6'!AB54:AM54)","v":{"v":4049675.624785029,"d":"$4,049,676"}},{"$f":"'Trial 6'!AO54","v":{"v":345646.35710570344,"d":"$345,646"}},{"$f":"'Trial 6'!AP54","v":{"v":332241.55179755966,"d":"$332,242"}},{"$f":"'Trial 6'!AQ54","v":{"v":338032.9590788537,"d":"$338,033"}},{"$f":"'Trial 6'!AR54","v":{"v":347736.00655562285,"d":"$347,736"}},{"$f":"'Trial 6'!AS54","v":{"v":325848.882420281,"d":"$325,849"}},{"$f":"'Trial 6'!AT54","v":{"v":318051.70380885445,"d":"$318,052"}},{"$f":"'Trial 6'!AU54","v":{"v":340111.81192762125,"d":"$340,112"}},{"$f":"'Trial 6'!AV54","v":{"v":330919.0011510132,"d":"$330,919"}},{"$f":"'Trial 6'!AW54","v":{"v":324202.9616214849,"d":"$324,203"}},{"$f":"'Trial 6'!AX54","v":{"v":329668.7666166566,"d":"$329,669"}},{"$f":"'Trial 6'!AY54","v":{"v":328510.5796772733,"d":"$328,511"}},{"$f":"'Trial 6'!AZ54","v":{"v":348626.532122256,"d":"$348,627"}},{"$f":"SUM('Trial 6'!AO54:AZ54)","v":{"v":4009597.1138831805,"d":"$4,009,597"}},{"$f":"'Trial 6'!BB54","v":{"v":341308.5284778066,"d":"$341,309"}},{"$f":"'Trial 6'!BC54","v":{"v":330569.5731707649,"d":"$330,570"}},{"$f":"'Trial 6'!BD54","v":{"v":341943.85895082855,"d":"$341,944"}},{"$f":"'Trial 6'!BE54","v":{"v":328892.6996070335,"d":"$328,893"}},{"$f":"'Trial 6'!BF54","v":{"v":318316.71048149496,"d":"$318,317"}},{"$f":"'Trial 6'!BG54","v":{"v":319514.3754286268,"d":"$319,514"}},{"$f":"'Trial 6'!BH54","v":{"v":330995.45250832627,"d":"$330,995"}},{"$f":"'Trial 6'!BI54","v":{"v":325159.45027292654,"d":"$325,159"}},{"$f":"'Trial 6'!BJ54","v":{"v":333030.02459583577,"d":"$333,030"}},{"$f":"'Trial 6'!BK54","v":{"v":333898.8566890952,"d":"$333,899"}},{"$f":"'Trial 6'!BL54","v":{"v":335282.6080346118,"d":"$335,283"}},{"$f":"'Trial 6'!BM54","v":{"v":319635.06601510354,"d":"$319,635"}},{"$f":"SUM('Trial 6'!BB54:BM54)","v":{"v":3958547.204232454,"d":"$3,958,547"}},{"$f":"'Trial 6'!BO54","v":{"v":325063.73158719053,"d":"$325,064"}},{"$f":"'Trial 6'!BP54","v":{"v":334468.32324411615,"d":"$334,468"}},{"$f":"'Trial 6'!BQ54","v":{"v":322687.8558493907,"d":"$322,688"}},{"$f":"'Trial 6'!BR54","v":{"v":322493.72510665434,"d":"$322,494"}},{"$f":"'Trial 6'!BS54","v":{"v":333452.01771504484,"d":"$333,452"}},{"$f":"'Trial 6'!BT54","v":{"v":333375.76520879613,"d":"$333,376"}},{"$f":"'Trial 6'!BU54","v":{"v":318960.15583863604,"d":"$318,960"}},{"$f":"'Trial 6'!BV54","v":{"v":328899.69489960244,"d":"$328,900"}},{"$f":"'Trial 6'!BW54","v":{"v":332928.29172342946,"d":"$332,928"}},{"$f":"'Trial 6'!BX54","v":{"v":317034.7657195387,"d":"$317,035"}},{"$f":"'Trial 6'!BY54","v":{"v":328553.0579090781,"d":"$328,553"}},{"$f":"'Trial 6'!BZ54","v":{"v":320398.8928541708,"d":"$320,399"}},{"$f":"SUM('Trial 6'!BO54:BZ54)","v":{"v":3918316.277655648,"d":"$3,918,316"}},{"$f":"'Trial 6'!CB54","v":{"v":313549.67266397516,"d":"$313,550"}},{"$f":"'Trial 6'!CC54","v":{"v":318031.7178391877,"d":"$318,032"}},{"$f":"'Trial 6'!CD54","v":{"v":322759.03909950424,"d":"$322,759"}},{"$f":"'Trial 6'!CE54","v":{"v":319216.58809105045,"d":"$319,217"}},{"$f":"'Trial 6'!CF54","v":{"v":311395.4475511224,"d":"$311,395"}},{"$f":"'Trial 6'!CG54","v":{"v":325353.57991985325,"d":"$325,354"}},{"$f":"'Trial 6'!CH54","v":{"v":301528.40817478515,"d":"$301,528"}},{"$f":"'Trial 6'!CI54","v":{"v":326037.84348531393,"d":"$326,038"}},{"$f":"'Trial 6'!CJ54","v":{"v":310657.1053838792,"d":"$310,657"}},{"$f":"'Trial 6'!CK54","v":{"v":327953.4000024645,"d":"$327,953"}},{"$f":"'Trial 6'!CL54","v":{"v":303739.079198143,"d":"$303,739"}},{"$f":"'Trial 6'!CM54","v":{"v":306931.09071022226,"d":"$306,931"}},{"$f":"SUM('Trial 6'!CB54:CM54)","v":{"v":3787152.9721195013,"d":"$3,787,153"}},{"$f":"'Trial 6'!CO54","v":{"v":319442.8527673991,"d":"$319,443"}},{"$f":"'Trial 6'!CP54","v":{"v":298953.7300320884,"d":"$298,954"}},{"$f":"'Trial 6'!CQ54","v":{"v":298464.1740474342,"d":"$298,464"}},{"$f":"'Trial 6'!CR54","v":{"v":323967.3678308725,"d":"$323,967"}},{"$f":"'Trial 6'!CS54","v":{"v":320490.03947457444,"d":"$320,490"}},{"$f":"'Trial 6'!CT54","v":{"v":312124.6780233687,"d":"$312,125"}},{"$f":"'Trial 6'!CU54","v":{"v":323267.2103504487,"d":"$323,267"}},{"$f":"'Trial 6'!CV54","v":{"v":320309.24546389177,"d":"$320,309"}},{"$f":"'Trial 6'!CW54","v":{"v":309280.99375098036,"d":"$309,281"}},{"$f":"'Trial 6'!CX54","v":{"v":308597.3560300085,"d":"$308,597"}},{"$f":"'Trial 6'!CY54","v":{"v":320957.30636069085,"d":"$320,957"}},{"$f":"'Trial 6'!CZ54","v":{"v":320321.2804217028,"d":"$320,321"}},{"$f":"SUM('Trial 6'!CO54:CZ54)","v":{"v":3776176.2345534605,"d":"$3,776,176"}},{"$f":"'Trial 6'!DB54","v":{"v":314714.6504268824,"d":"$314,715"}},{"$f":"'Trial 6'!DC54","v":{"v":311389.67304253654,"d":"$311,390"}},{"$f":"'Trial 6'!DD54","v":{"v":311187.38261111145,"d":"$311,187"}},{"$f":"'Trial 6'!DE54","v":{"v":314000.2968780138,"d":"$314,000"}},{"$f":"'Trial 6'!DF54","v":{"v":305401.686478135,"d":"$305,402"}},{"$f":"'Trial 6'!DG54","v":{"v":307886.8050114647,"d":"$307,887"}},{"$f":"'Trial 6'!DH54","v":{"v":309765.6553376513,"d":"$309,766"}},{"$f":"'Trial 6'!DI54","v":{"v":310374.7647191691,"d":"$310,375"}},{"$f":"'Trial 6'!DJ54","v":{"v":307247.04774629395,"d":"$307,247"}},{"$f":"'Trial 6'!DK54","v":{"v":319901.5464402507,"d":"$319,902"}},{"$f":"'Trial 6'!DL54","v":{"v":300506.7143779499,"d":"$300,507"}},{"$f":"'Trial 6'!DM54","v":{"v":308499.53599005163,"d":"$308,500"}},{"$f":"SUM('Trial 6'!DB54:DM54)","v":{"v":3720875.75905951,"d":"$3,720,876"}},{"$f":"'Trial 6'!DO54","v":{"v":315455.17862541374,"d":"$315,455"}},{"$f":"'Trial 6'!DP54","v":{"v":302053.4056668212,"d":"$302,053"}},{"$f":"'Trial 6'!DQ54","v":{"v":312904.3809337326,"d":"$312,904"}},{"$f":"'Trial 6'!DR54","v":{"v":313111.7422305922,"d":"$313,112"}},{"$f":"'Trial 6'!DS54","v":{"v":312024.18741960323,"d":"$312,024"}},{"$f":"'Trial 6'!DT54","v":{"v":306184.0749993001,"d":"$306,184"}},{"$f":"'Trial 6'!DU54","v":{"v":318711.65310759103,"d":"$318,712"}},{"$f":"'Trial 6'!DV54","v":{"v":299789.040205204,"d":"$299,789"}},{"$f":"'Trial 6'!DW54","v":{"v":303739.3083061992,"d":"$303,739"}},{"$f":"'Trial 6'!DX54","v":{"v":305603.81787096034,"d":"$305,604"}},{"$f":"'Trial 6'!DY54","v":{"v":315362.50449121004,"d":"$315,363"}},{"$f":"'Trial 6'!DZ54","v":{"v":298409.7556461245,"d":"$298,410"}},{"$f":"SUM('Trial 6'!DO54:DZ54)","v":{"v":3703349.049502752,"d":"$3,703,349"}},{"$f":"'Trial 6'!EB54","v":{"v":294453.855866011,"d":"$294,454"}},{"$f":"'Trial 6'!EC54","v":{"v":313032.0198454579,"d":"$313,032"}},{"$f":"'Trial 6'!ED54","v":{"v":298949.39939238015,"d":"$298,949"}},{"$f":"'Trial 6'!EE54","v":{"v":304832.2002329638,"d":"$304,832"}},{"$f":"'Trial 6'!EF54","v":{"v":295034.0605885721,"d":"$295,034"}},{"$f":"'Trial 6'!EG54","v":{"v":318881.5586286704,"d":"$318,882"}},{"$f":"'Trial 6'!EH54","v":{"v":295597.0679928771,"d":"$295,597"}},{"$f":"'Trial 6'!EI54","v":{"v":310211.9486815171,"d":"$310,212"}},{"$f":"'Trial 6'!EJ54","v":{"v":316298.1026309747,"d":"$316,298"}},{"$f":"'Trial 6'!EK54","v":{"v":307344.9549789257,"d":"$307,345"}},{"$f":"'Trial 6'!EL54","v":{"v":304560.30998975324,"d":"$304,560"}},{"$f":"'Trial 6'!EM54","v":{"v":304926.6011733774,"d":"$304,927"}},{"$f":"SUM('Trial 6'!EB54:EM54)","v":{"v":3664122.080001481,"d":"$3,664,122"}}]
[{"$f":"Labels!B102","v":"Trial 07"},{"$f":"'Trial 7'!B54","v":{"v":363075.5004028814,"d":"$363,076"}},{"$f":"'Trial 7'!C54","v":{"v":365573.55739023484,"d":"$365,574"}},{"$f":"'Trial 7'!D54","v":{"v":338222.134144158,"d":"$338,222"}},{"$f":"'Trial 7'!E54","v":{"v":339147.95534507936,"d":"$339,148"}},{"$f":"'Trial 7'!F54","v":{"v":333388.0145560838,"d":"$333,388"}},{"$f":"'Trial 7'!G54","v":{"v":336930.5146732072,"d":"$336,931"}},{"$f":"'Trial 7'!H54","v":{"v":356190.70280629775,"d":"$356,191"}},{"$f":"'Trial 7'!I54","v":{"v":352512.2945727877,"d":"$352,512"}},{"$f":"'Trial 7'!J54","v":{"v":343063.29174015636,"d":"$343,063"}},{"$f":"'Trial 7'!K54","v":{"v":338534.89800628944,"d":"$338,535"}},{"$f":"'Trial 7'!L54","v":{"v":345708.60894989996,"d":"$345,709"}},{"$f":"'Trial 7'!M54","v":{"v":350126.2652038519,"d":"$350,126"}},{"$f":"SUM('Trial 7'!B54:M54)","v":{"v":4162473.7377909278,"d":"$4,162,474"}},{"$f":"'Trial 7'!O54","v":{"v":344990.2757151767,"d":"$344,990"}},{"$f":"'Trial 7'!P54","v":{"v":355449.58569095755,"d":"$355,450"}},{"$f":"'Trial 7'!Q54","v":{"v":349204.1777263675,"d":"$349,204"}},{"$f":"'Trial 7'!R54","v":{"v":362092.085335785,"d":"$362,092"}},{"$f":"'Trial 7'!S54","v":{"v":340469.58750536246,"d":"$340,470"}},{"$f":"'Trial 7'!T54","v":{"v":352992.40271206794,"d":"$352,992"}},{"$f":"'Trial 7'!U54","v":{"v":340165.4045916428,"d":"$340,165"}},{"$f":"'Trial 7'!V54","v":{"v":349691.79456072033,"d":"$349,692"}},{"$f":"'Trial 7'!W54","v":{"v":327531.1696048758,"d":"$327,531"}},{"$f":"'Trial 7'!X54","v":{"v":336468.22787484794,"d":"$336,468"}},{"$f":"'Trial 7'!Y54","v":{"v":349759.9546317484,"d":"$349,760"}},{"$f":"'Trial 7'!Z54","v":{"v":347181.8839216984,"d":"$347,182"}},{"$f":"SUM('Trial 7'!O54:Z54)","v":{"v":4155996.5498712505,"d":"$4,155,997"}},{"$f":"'Trial 7'!AB54","v":{"v":338542.17260576476,"d":"$338,542"}},{"$f":"'Trial 7'!AC54","v":{"v":349512.974531248,"d":"$349,513"}},{"$f":"'Trial 7'!AD54","v":{"v":347866.0752000159,"d":"$347,866"}},{"$f":"'Trial 7'!AE54","v":{"v":339113.25308207347,"d":"$339,113"}},{"$f":"'Trial 7'!AF54","v":{"v":357014.49604102847,"d":"$357,014"}},{"$f":"'Trial 7'!AG54","v":{"v":335371.8967110389,"d":"$335,372"}},{"$f":"'Trial 7'!AH54","v":{"v":336748.5598550761,"d":"$336,749"}},{"$f":"'Trial 7'!AI54","v":{"v":328697.8088253164,"d":"$328,698"}},{"$f":"'Trial 7'!AJ54","v":{"v":329043.4438526428,"d":"$329,043"}},{"$f":"'Trial 7'!AK54","v":{"v":342750.42207186366,"d":"$342,750"}},{"$f":"'Trial 7'!AL54","v":{"v":339029.32121663995,"d":"$339,029"}},{"$f":"'Trial 7'!AM54","v":{"v":326600.59952546476,"d":"$326,601"}},{"$f":"SUM('Trial 7'!AB54:AM54)","v":{"v":4070291.023518174,"d":"$4,070,291"}},{"$f":"'Trial 7'!AO54","v":{"v":325606.0966348237,"d":"$325,606"}},{"$f":"'Trial 7'!AP54","v":{"v":328458.092515765,"d":"$328,458"}},{"$f":"'Trial 7'!AQ54","v":{"v":332909.7268720608,"d":"$332,910"}},{"$f":"'Trial 7'!AR54","v":{"v":321523.1303324443,"d":"$321,523"}},{"$f":"'Trial 7'!AS54","v":{"v":324672.0836960965,"d":"$324,672"}},{"$f":"'Trial 7'!AT54","v":{"v":321478.5874203049,"d":"$321,479"}},{"$f":"'Trial 7'!AU54","v":{"v":336770.0907792018,"d":"$336,770"}},{"$f":"'Trial 7'!AV54","v":{"v":341178.3427441627,"d":"$341,178"}},{"$f":"'Trial 7'!AW54","v":{"v":341568.4413627611,"d":"$341,568"}},{"$f":"'Trial 7'!AX54","v":{"v":337541.40102579794,"d":"$337,541"}},{"$f":"'Trial 7'!AY54","v":{"v":335730.12644987536,"d":"$335,730"}},{"$f":"'Trial 7'!AZ54","v":{"v":335740.06868526625,"d":"$335,740"}},{"$f":"SUM('Trial 7'!AO54:AZ54)","v":{"v":3983176.1885185605,"d":"$3,983,176"}},{"$f":"'Trial 7'!BB54","v":{"v":326755.14872255246,"d":"$326,755"}},{"$f":"'Trial 7'!BC54","v":{"v":332785.7763293239,"d":"$332,786"}},{"$f":"'Trial 7'!BD54","v":{"v":343294.0053869659,"d":"$343,294"}},{"$f":"'Trial 7'!BE54","v":{"v":328647.69291139237,"d":"$328,648"}},{"$f":"'Trial 7'!BF54","v":{"v":320273.0823752892,"d":"$320,273"}},{"$f":"'Trial 7'!BG54","v":{"v":325793.5007864882,"d":"$325,794"}},{"$f":"'Trial 7'!BH54","v":{"v":320364.5055661057,"d":"$320,365"}},{"$f":"'Trial 7'!BI54","v":{"v":315215.1391047663,"d":"$315,215"}},{"$f":"'Trial 7'!BJ54","v":{"v":331366.859417544,"d":"$331,367"}},{"$f":"'Trial 7'!BK54","v":{"v":335128.6775711387,"d":"$335,129"}},{"$f":"'Trial 7'!BL54","v":{"v":327297.0429243087,"d":"$327,297"}},{"$f":"'Trial 7'!BM54","v":{"v":310950.343788924,"d":"$310,950"}},{"$f":"SUM('Trial 7'!BB54:BM54)","v":{"v":3917871.7748848,"d":"$3,917,872"}},{"$f":"'Trial 7'!BO54","v":{"v":315522.7960170513,"d":"$315,523"}},{"$f":"'Trial 7'!BP54","v":{"v":320335.37037504814,"d":"$320,335"}},{"$f":"'Trial 7'!BQ54","v":{"v":321666.9686396201,"d":"$321,667"}},{"$f":"'Trial 7'!BR54","v":{"v":338608.7815043801,"d":"$338,609"}},{"$f":"'Trial 7'!BS54","v":{"v":336383.16806252586,"d":"$336,383"}},{"$f":"'Trial 7'!BT54","v":{"v":319765.0435509588,"d":"$319,765"}},{"$f":"'Trial 7'!BU54","v":{"v":313453.0116006786,"d":"$313,453"}},{"$f":"'Trial 7'!BV54","v":{"v":321811.68797058467,"d":"$321,812"}},{"$f":"'Trial 7'!BW54","v":{"v":325522.254927276,"d":"$325,522"}},{"$f":"'Trial 7'!BX54","v":{"v":322074.9938434326,"d":"$322,075"}},{"$f":"'Trial 7'!BY54","v":{"v":330250.28158731427,"d":"$330,250"}},{"$f":"'Trial 7'!BZ54","v":{"v":325286.8149783723,"d":"$325,287"}},{"$f":"SUM('Trial 7'!BO54:BZ54)","v":{"v":3890681.173057243,"d":"$3,890,681"}},{"$f":"'Trial 7'!CB54","v":{"v":319423.55265631905,"d":"$319,424"}},{"$f":"'Trial 7'!CC54","v":{"v":311355.63602743694,"d":"$311,356"}},{"$f":"'Trial 7'!CD54","v":{"v":324975.945097216,"d":"$324,976"}},{"$f":"'Trial 7'!CE54","v":{"v":320063.33537774894,"d":"$320,063"}},{"$f":"'Trial 7'!CF54","v":{"v":304232.14222738886,"d":"$304,232"}},{"$f":"'Trial 7'!CG54","v":{"v":317869.2263613378,"d":"$317,869"}},{"$f":"'Trial 7'!CH54","v":{"v":303263.639594791,"d":"$303,264"}},{"$f":"'Trial 7'!CI54","v":{"v":302047.5363575507,"d":"$302,048"}},{"$f":"'Trial 7'!CJ54","v":{"v":317657.35772939416,"d":"$317,657"}},{"$f":"'Trial 7'!CK54","v":{"v":326460.9809978688,"d":"$326,461"}},{"$f":"'Trial 7'!CL54","v":{"v":318286.2936150982,"d":"$318,286"}},{"$f":"'Trial 7'!CM54","v":{"v":302950.14725847467,"d":"$302,950"}},{"$f":"SUM('Trial 7'!CB54:CM54)","v":{"v":3768585.793300625,"d":"$3,768,586"}},{"$f":"'Trial 7'!CO54","v":{"v":311511.637877631,"d":"$311,512"}},{"$f":"'Trial 7'!CP54","v":{"v":321687.28855406435,"d":"$321,687"}},{"$f":"'Trial 7'!CQ54","v":{"v":313460.2622675873,"d":"$313,460"}},{"$f":"'Trial 7'!CR54","v":{"v":317178.36965356313,"d":"$317,178"}},{"$f":"'Trial 7'!CS54","v":{"v":329250.3169489818,"d":"$329,250"}},{"$f":"'Trial 7'!CT54","v":{"v":315558.7349838243,"d":"$315,559"}},{"$f":"'Trial 7'!CU54","v":{"v":312125.2263341939,"d":"$312,125"}},{"$f":"'Trial 7'!CV54","v":{"v":318767.2832587357,"d":"$318,767"}},{"$f":"'Trial 7'!CW54","v":{"v":316471.368257867,"d":"$316,471"}},{"$f":"'Trial 7'!CX54","v":{"v":328880.30504889804,"d":"$328,880"}},{"$f":"'Trial 7'!CY54","v":{"v":326185.78649320686,"d":"$326,186"}},{"$f":"'Trial 7'!CZ54","v":{"v":312566.598818362,"d":"$312,567"}},{"$f":"SUM('Trial 7'!CO54:CZ54)","v":{"v":3823643.178496915,"d":"$3,823,643"}},{"$f":"'Trial 7'!DB54","v":{"v":298437.71856462315,"d":"$298,438"}},{"$f":"'Trial 7'!DC54","v":{"v":312616.79111488984,"d":"$312,617"}},{"$f":"'Trial 7'!DD54","v":{"v":316491.88157194643,"d":"$316,492"}},{"$f":"'Trial 7'!DE54","v":{"v":295543.39738753805,"d":"$295,543"}},{"$f":"'Trial 7'!DF54","v":{"v":314152.17936907813,"d":"$314,152"}},{"$f":"'Trial 7'!DG54","v":{"v":315024.1289900139,"d":"$315,024"}},{"$f":"'Trial 7'!DH54","v":{"v":299003.7213863253,"d":"$299,004"}},{"$f":"'Trial 7'!DI54","v":{"v":318037.8493231941,"d":"$318,038"}},{"$f":"'Trial 7'!DJ54","v":{"v":319059.15136307897,"d":"$319,059"}},{"$f":"'Trial 7'!DK54","v":{"v":294064.0233615376,"d":"$294,064"}},{"$f":"'Trial 7'!DL54","v":{"v":310336.77477070165,"d":"$310,337"}},{"$f":"'Trial 7'!DM54","v":{"v":319292.67115211,"d":"$319,293"}},{"$f":"SUM('Trial 7'!DB54:DM54)","v":{"v":3712060.2883550376,"d":"$3,712,060"}},{"$f":"'Trial 7'!DO54","v":{"v":303371.0770648578,"d":"$303,371"}},{"$f":"'Trial 7'!DP54","v":{"v":318027.5697641308,"d":"$318,028"}},{"$f":"'Trial 7'!DQ54","v":{"v":315620.84779388446,"d":"$315,621"}},{"$f":"'Trial 7'!DR54","v":{"v":296149.52596628165,"d":"$296,150"}},{"$f":"'Trial 7'!DS54","v":{"v":321370.94765013654,"d":"$321,371"}},{"$f":"'Trial 7'!DT54","v":{"v":295664.1051802892,"d":"$295,664"}},{"$f":"'Trial 7'!DU54","v":{"v":308172.430715929,"d":"$308,172"}},{"$f":"'Trial 7'!DV54","v":{"v":295839.8816440247,"d":"$295,840"}},{"$f":"'Trial 7'!DW54","v":{"v":316460.47541230253,"d":"$316,460"}},{"$f":"'Trial 7'!DX54","v":{"v":322244.8880260673,"d":"$322,245"}},{"$f":"'Trial 7'!DY54","v":{"v":293776.88510303793,"d":"$293,777"}},{"$f":"'Trial 7'!DZ54","v":{"v":314127.17001591594,"d":"$314,127"}},{"$f":"SUM('Trial 7'!DO54:DZ54)","v":{"v":3700825.804336857,"d":"$3,700,826"}},{"$f":"'Trial 7'!EB54","v":{"v":311436.50775052904,"d":"$311,437"}},{"$f":"'Trial 7'!EC54","v":{"v":303506.1700136379,"d":"$303,506"}},{"$f":"'Trial 7'!ED54","v":{"v":304816.13281167817,"d":"$304,816"}},{"$f":"'Trial 7'!EE54","v":{"v":311288.1765641176,"d":"$311,288"}},{"$f":"'Trial 7'!EF54","v":{"v":312112.52045616915,"d":"$312,113"}},{"$f":"'Trial 7'!EG54","v":{"v":303853.35662792774,"d":"$303,853"}},{"$f":"'Trial 7'!EH54","v":{"v":307849.54519074253,"d":"$307,850"}},{"$f":"'Trial 7'!EI54","v":{"v":315776.5763832425,"d":"$315,777"}},{"$f":"'Trial 7'!EJ54","v":{"v":291847.59098948777,"d":"$291,848"}},{"$f":"'Trial 7'!EK54","v":{"v":309463.072526133,"d":"$309,463"}},{"$f":"'Trial 7'!EL54","v":{"v":317438.36029335554,"d":"$317,438"}},{"$f":"'Trial 7'!EM54","v":{"v":297280.78004044795,"d":"$297,281"}},{"$f":"SUM('Trial 7'!EB54:EM54)","v":{"v":3686668.789647469,"d":"$3,686,669"}}]
[{"$f":"Labels!B103","v":"Trial 08"},{"$f":"'Trial 8'!B54","v":{"v":353527.4949780386,"d":"$353,527"}},{"$f":"'Trial 8'!C54","v":{"v":331571.9247677047,"d":"$331,572"}},{"$f":"'Trial 8'!D54","v":{"v":347720.70110915636,"d":"$347,721"}},{"$f":"'Trial 8'!E54","v":{"v":341950.1690998451,"d":"$341,950"}},{"$f":"'Trial 8'!F54","v":{"v":349395.22281179216,"d":"$349,395"}},{"$f":"'Trial 8'!G54","v":{"v":335473.28852046037,"d":"$335,473"}},{"$f":"'Trial 8'!H54","v":{"v":356762.7140603207,"d":"$356,763"}},{"$f":"'Trial 8'!I54","v":{"v":343296.0620243514,"d":"$343,296"}},{"$f":"'Trial 8'!J54","v":{"v":346707.2151562626,"d":"$346,707"}},{"$f":"'Trial 8'!K54","v":{"v":358710.91267086664,"d":"$358,711"}},{"$f":"'Trial 8'!L54","v":{"v":351011.7904575303,"d":"$351,012"}},{"$f":"'Trial 8'!M54","v":{"v":355828.1347373501,"d":"$355,828"}},{"$f":"SUM('Trial 8'!B54:M54)","v":{"v":4171955.630393679,"d":"$4,171,956"}},{"$f":"'Trial 8'!O54","v":{"v":351672.322142427,"d":"$351,672"}},{"$f":"'Trial 8'!P54","v":{"v":345146.27281605423,"d":"$345,146"}},{"$f":"'Trial 8'!Q54","v":{"v":347596.7335903753,"d":"$347,597"}},{"$f":"'Trial 8'!R54","v":{"v":338979.4408886733,"d":"$338,979"}},{"$f":"'Trial 8'!S54","v":{"v":338074.3386619544,"d":"$338,074"}},{"$f":"'Trial 8'!T54","v":{"v":359525.0553028276,"d":"$359,525"}},{"$f":"'Trial 8'!U54","v":{"v":340582.3321069312,"d":"$340,582"}},{"$f":"'Trial 8'!V54","v":{"v":351415.24393097404,"d":"$351,415"}},{"$f":"'Trial 8'!W54","v":{"v":328878.41032436746,"d":"$328,878"}},{"$f":"'Trial 8'!X54","v":{"v":343237.91114175576,"d":"$343,238"}},{"$f":"'Trial 8'!Y54","v":{"v":327537.7139520944,"d":"$327,538"}},{"$f":"'Trial 8'!Z54","v":{"v":355005.2948999632,"d":"$355,005"}},{"$f":"SUM('Trial 8'!O54:Z54)","v":{"v":4127651.069758398,"d":"$4,127,651"}},{"$f":"'Trial 8'!AB54","v":{"v":348773.0388235053,"d":"$348,773"}},{"$f":"'Trial 8'!AC54","v":{"v":326720.1147373394,"d":"$326,720"}},{"$f":"'Trial 8'!AD54","v":{"v":337325.143208995,"d":"$337,325"}},{"$f":"'Trial 8'!AE54","v":{"v":335110.0296362652,"d":"$335,110"}},{"$f":"'Trial 8'!AF54","v":{"v":322204.33090971934,"d":"$322,204"}},{"$f":"'Trial 8'!AG54","v":{"v":345341.02825653105,"d":"$345,341"}},{"$f":"'Trial 8'!AH54","v":{"v":343420.1567317077,"d":"$343,420"}},{"$f":"'Trial 8'!AI54","v":{"v":329110.50009356835,"d":"$329,111"}},{"$f":"'Trial 8'!AJ54","v":{"v":351144.84895466897,"d":"$351,145"}},{"$f":"'Trial 8'!AK54","v":{"v":343727.00730035326,"d":"$343,727"}},{"$f":"'Trial 8'!AL54","v":{"v":334167.43367779645,"d":"$334,167"}},{"$f":"'Trial 8'!AM54","v":{"v":349975.50121915445,"d":"$349,976"}},{"$f":"SUM('Trial 8'!AB54:AM54)","v":{"v":4067019.133549604,"d":"$4,067,019"}},{"$f":"'Trial 8'!AO54","v":{"v":335182.06400071667,"d":"$335,182"}},{"$f":"'Trial 8'!AP54","v":{"v":333140.5596408273,"d":"$333,141"}},{"$f":"'Trial 8'!AQ54","v":{"v":341946.34767478873,"d":"$341,946"}},{"$f":"'Trial 8'!AR54","v":{"v":330571.9650949711,"d":"$330,572"}},{"$f":"'Trial 8'!AS54","v":{"v":342705.64864418574,"d":"$342,706"}},{"$f":"'Trial 8'!AT54","v":{"v":333082.48015696346,"d":"$333,082"}},{"$f":"'Trial 8'!AU54","v":{"v":326743.6780705655,"d":"$326,744"}},{"$f":"'Trial 8'!AV54","v":{"v":329131.298513558,"d":"$329,131"}},{"$f":"'Trial 8'!AW54","v":{"v":332680.83402921126,"d":"$332,681"}},{"$f":"'Trial 8'!AX54","v":{"v":346363.64856325346,"d":"$346,364"}},{"$f":"'Trial 8'!AY54","v":{"v":328818.37016108417,"d":"$328,818"}},{"$f":"'Trial 8'!AZ54","v":{"v":317168.41537768,"d":"$317,168"}},{"$f":"SUM('Trial 8'!AO54:AZ54)","v":{"v":3997535.3099278044,"d":"$3,997,535"}},{"$f":"'Trial 8'!BB54","v":{"v":319543.19857958786,"d":"$319,543"}},{"$f":"'Trial 8'!BC54","v":{"v":338971.36979316745,"d":"$338,971"}},{"$f":"'Trial 8'!BD54","v":{"v":339371.501583583,"d":"$339,372"}},{"$f":"'Trial 8'!BE54","v":{"v":326563.2900013346,"d":"$326,563"}},{"$f":"'Trial 8'!BF54","v":{"v":335781.4527246768,"d":"$335,781"}},{"$f":"'Trial 8'!BG54","v":{"v":327239.9077739036,"d":"$327,240"}},{"$f":"'Trial 8'!BH54","v":{"v":335466.0646034995,"d":"$335,466"}},{"$f":"'Trial 8'!BI54","v":{"v":332190.73100457416,"d":"$332,191"}},{"$f":"'Trial 8'!BJ54","v":{"v":325308.3155871883,"d":"$325,308"}},{"$f":"'Trial 8'!BK54","v":{"v":322407.8643059557,"d":"$322,408"}},{"$f":"'Trial 8'!BL54","v":{"v":324460.8744393614,"d":"$324,461"}},{"$f":"'Trial 8'!BM54","v":{"v":327069.14551393886,"d":"$327,069"}},{"$f":"SUM('Trial 8'!BB54:BM54)","v":{"v":3954373.7159107714,"d":"$3,954,374"}},{"$f":"'Trial 8'!BO54","v":{"v":308916.7552180909,"d":"$308,917"}},{"$f":"'Trial 8'!BP54","v":{"v":340042.7877592539,"d":"$340,043"}},{"$f":"'Trial 8'!BQ54","v":{"v":336067.3722390699,"d":"$336,067"}},{"$f":"'Trial 8'!BR54","v":{"v":342342.9110737074,"d":"$342,343"}},{"$f":"'Trial 8'!BS54","v":{"v":321888.01858924347,"d":"$321,888"}},{"$f":"'Trial 8'!BT54","v":{"v":339922.1013266214,"d":"$339,922"}},{"$f":"'Trial 8'!BU54","v":{"v":322646.3835593,"d":"$322,646"}},{"$f":"'Trial 8'!BV54","v":{"v":306730.4266410993,"d":"$306,730"}},{"$f":"'Trial 8'!BW54","v":{"v":326205.22605069226,"d":"$326,205"}},{"$f":"'Trial 8'!BX54","v":{"v":312049.86319525994,"d":"$312,050"}},{"$f":"'Trial 8'!BY54","v":{"v":317455.8813577994,"d":"$317,456"}},{"$f":"'Trial 8'!BZ54","v":{"v":326228.46176551963,"d":"$326,228"}},{"$f":"SUM('Trial 8'!BO54:BZ54)","v":{"v":3900496.188775657,"d":"$3,900,496"}},{"$f":"'Trial 8'!CB54","v":{"v":306488.8601995144,"d":"$306,489"}},{"$f":"'Trial 8'!CC54","v":{"v":331196.0659351434,"d":"$331,196"}},{"$f":"'Trial 8'!CD54","v":{"v":315864.1128270224,"d":"$315,864"}},{"$f":"'Trial 8'!CE54","v":{"v":311332.06453266414,"d":"$311,332"}},{"$f":"'Trial 8'!CF54","v":{"v":325661.898421457,"d":"$325,662"}},{"$f":"'Trial 8'!CG54","v":{"v":319525.7550289804,"d":"$319,526"}},{"$f":"'Trial 8'!CH54","v":{"v":321446.60359319084,"d":"$321,447"}},{"$f":"'Trial 8'!CI54","v":{"v":308916.6993309136,"d":"$308,917"}},{"$f":"'Trial 8'!CJ54","v":{"v":336021.9899973345,"d":"$336,022"}},{"$f":"'Trial 8'!CK54","v":{"v":311889.9662803147,"d":"$311,890"}},{"$f":"'Trial 8'!CL54","v":{"v":324180.89256199123,"d":"$324,181"}},{"$f":"'Trial 8'!CM54","v":{"v":304626.356592283,"d":"$304,626"}},{"$f":"SUM('Trial 8'!CB54:CM54)","v":{"v":3817151.2653008094,"d":"$3,817,151"}},{"$f":"'Trial 8'!CO54","v":{"v":322278.2756750494,"d":"$322,278"}},{"$f":"'Trial 8'!CP54","v":{"v":312287.3710844045,"d":"$312,287"}},{"$f":"'Trial 8'!CQ54","v":{"v":329237.4016301055,"d":"$329,237"}},{"$f":"'Trial 8'!CR54","v":{"v":306181.74676275486,"d":"$306,182"}},{"$f":"'Trial 8'!CS54","v":{"v":320686.9981315567,"d":"$320,687"}},{"$f":"'Trial 8'!CT54","v":{"v":325258.0150818729,"d":"$325,258"}},{"$f":"'Trial 8'!CU54","v":{"v":326108.7161604369,"d":"$326,109"}},{"$f":"'Trial 8'!CV54","v":{"v":319573.3147328098,"d":"$319,573"}},{"$f":"'Trial 8'!CW54","v":{"v":299168.5233636662,"d":"$299,169"}},{"$f":"'Trial 8'!CX54","v":{"v":316142.7081345157,"d":"$316,143"}},{"$f":"'Trial 8'!CY54","v":{"v":308068.0237870803,"d":"$308,068"}},{"$f":"'Trial 8'!CZ54","v":{"v":325405.54138597986,"d":"$325,406"}},{"$f":"SUM('Trial 8'!CO54:CZ54)","v":{"v":3810396.6359302322,"d":"$3,810,397"}},{"$f":"'Trial 8'!DB54","v":{"v":322619.7693641386,"d":"$322,620"}},{"$f":"'Trial 8'!DC54","v":{"v":312262.21234762645,"d":"$312,262"}},{"$f":"'Trial 8'!DD54","v":{"v":307479.413997827,"d":"$307,479"}},{"$f":"'Trial 8'!DE54","v":{"v":330147.7192649728,"d":"$330,148"}},{"$f":"'Trial 8'!DF54","v":{"v":312619.4456159864,"d":"$312,619"}},{"$f":"'Trial 8'!DG54","v":{"v":311663.70875955175,"d":"$311,664"}},{"$f":"'Trial 8'!DH54","v":{"v":322259.7238603316,"d":"$322,260"}},{"$f":"'Trial 8'!DI54","v":{"v":303591.47239502764,"d":"$303,591"}},{"$f":"'Trial 8'!DJ54","v":{"v":323708.0907025223,"d":"$323,708"}},{"$f":"'Trial 8'!DK54","v":{"v":320161.6350410971,"d":"$320,162"}},{"$f":"'Trial 8'!DL54","v":{"v":305515.63931548136,"d":"$305,516"}},{"$f":"'Trial 8'!DM54","v":{"v":318377.98339896486,"d":"$318,378"}},{"$f":"SUM('Trial 8'!DB54:DM54)","v":{"v":3790406.8140635276,"d":"$3,790,407"}},{"$f":"'Trial 8'!DO54","v":{"v":319428.3294178883,"d":"$319,428"}},{"$f":"'Trial 8'!DP54","v":{"v":302997.3976976662,"d":"$302,997"}},{"$f":"'Trial 8'!DQ54","v":{"v":314615.9725791708,"d":"$314,616"}},{"$f":"'Trial 8'!DR54","v":{"v":301586.6670288541,"d":"$301,587"}},{"$f":"'Trial 8'!DS54","v":{"v":314395.6385242353,"d":"$314,396"}},{"$f":"'Trial 8'!DT54","v":{"v":319801.34668494965,"d":"$319,801"}},{"$f":"'Trial 8'!DU54","v":{"v":306211.82368666003,"d":"$306,212"}},{"$f":"'Trial 8'!DV54","v":{"v":300632.2006136964,"d":"$300,632"}},{"$f":"'Trial 8'!DW54","v":{"v":308115.4742355608,"d":"$308,115"}},{"$f":"'Trial 8'!DX54","v":{"v":308497.05109171616,"d":"$308,497"}},{"$f":"'Trial 8'!DY54","v":{"v":317514.4684796066,"d":"$317,514"}},{"$f":"'Trial 8'!DZ54","v":{"v":305233.19311124616,"d":"$305,233"}},{"$f":"SUM('Trial 8'!DO54:DZ54)","v":{"v":3719029.5631512506,"d":"$3,719,030"}},{"$f":"'Trial 8'!EB54","v":{"v":315023.820515583,"d":"$315,024"}},{"$f":"'Trial 8'!EC54","v":{"v":295468.0185676983,"d":"$295,468"}},{"$f":"'Trial 8'!ED54","v":{"v":303540.70506318647,"d":"$303,541"}},{"$f":"'Trial 8'!EE54","v":{"v":295946.4877673963,"d":"$295,946"}},{"$f":"'Trial 8'!EF54","v":{"v":319130.0724286071,"d":"$319,130"}},{"$f":"'Trial 8'!EG54","v":{"v":298221.9678068931,"d":"$298,222"}},{"$f":"'Trial 8'!EH54","v":{"v":304742.2379132302,"d":"$304,742"}},{"$f":"'Trial 8'!EI54","v":{"v":309904.45594346774,"d":"$309,904"}},{"$f":"'Trial 8'!EJ54","v":{"v":308743.22993363277,"d":"$308,743"}},{"$f":"'Trial 8'!EK54","v":{"v":303909.2543567625,"d":"$303,909"}},{"$f":"'Trial 8'!EL54","v":{"v":286064.6073093803,"d":"$286,065"}},{"$f":"'Trial 8'!EM54","v":{"v":309185.7798278442,"d":"$309,186"}},{"$f":"SUM('Trial 8'!EB54:EM54)","v":{"v":3649880.6374336826,"d":"$3,649,881"}}]
[{"$f":"Labels!C95","v":"Total"},{"$f":"SUM('Trial 1'!B54,'Trial 2'!B54,'Trial 3'!B54,'Trial 4'!B54,'Trial 5'!B54,'Trial 6'!B54,'Trial 7'!B54,'Trial 8'!B54)","v":{"v":2834643.7181912004,"d":"$2,834,644"}},{"$f":"SUM('Trial 1'!C54,'Trial 2'!C54,'Trial 3'!C54,'Trial 4'!C54,'Trial 5'!C54,'Trial 6'!C54,'Trial 7'!C54,'Trial 8'!C54)","v":{"v":2803732.471054662,"d":"$2,803,732"}},{"$f":"SUM('Trial 1'!D54,'Trial 2'!D54,'Trial 3'!D54,'Trial 4'!D54,'Trial 5'!D54,'Trial 6'!D54,'Trial 7'!D54,'Trial 8'!D54)","v":{"v":2800469.3633598513,"d":"$2,800,469"}},{"$f":"SUM('Trial 1'!E54,'Trial 2'!E54,'Trial 3'!E54,'Trial 4'!E54,'Trial 5'!E54,'Trial 6'!E54,'Trial 7'!E54,'Trial 8'!E54)","v":{"v":2756816.246469378,"d":"$2,756,816"}},{"$f":"SUM('Trial 1'!F54,'Trial 2'!F54,'Trial 3'!F54,'Trial 4'!F54,'Trial 5'!F54,'Trial 6'!F54,'Trial 7'!F54,'Trial 8'!F54)","v":{"v":2758801.7274233755,"d":"$2,758,802"}},{"$f":"SUM('Trial 1'!G54,'Trial 2'!G54,'Trial 3'!G54,'Trial 4'!G54,'Trial 5'!G54,'Trial 6'!G54,'Trial 7'!G54,'Trial 8'!G54)","v":{"v":2773214.6562822596,"d":"$2,773,215"}},{"$f":"SUM('Trial 1'!H54,'Trial 2'!H54,'Trial 3'!H54,'Trial 4'!H54,'Trial 5'!H54,'Trial 6'!H54,'Trial 7'!H54,'Trial 8'!H54)","v":{"v":2833791.17952301,"d":"$2,833,791"}},{"$f":"SUM('Trial 1'!I54,'Trial 2'!I54,'Trial 3'!I54,'Trial 4'!I54,'Trial 5'!I54,'Trial 6'!I54,'Trial 7'!I54,'Trial 8'!I54)","v":{"v":2774273.489694275,"d":"$2,774,273"}},{"$f":"SUM('Trial 1'!J54,'Trial 2'!J54,'Trial 3'!J54,'Trial 4'!J54,'Trial 5'!J54,'Trial 6'!J54,'Trial 7'!J54,'Trial 8'!J54)","v":{"v":2811154.1662359433,"d":"$2,811,154"}},{"$f":"SUM('Trial 1'!K54,'Trial 2'!K54,'Trial 3'!K54,'Trial 4'!K54,'Trial 5'!K54,'Trial 6'!K54,'Trial 7'!K54,'Trial 8'!K54)","v":{"v":2758548.580020641,"d":"$2,758,549"}},{"$f":"SUM('Trial 1'!L54,'Trial 2'!L54,'Trial 3'!L54,'Trial 4'!L54,'Trial 5'!L54,'Trial 6'!L54,'Trial 7'!L54,'Trial 8'!L54)","v":{"v":2792551.8347765203,"d":"$2,792,552"}},{"$f":"SUM('Trial 1'!M54,'Trial 2'!M54,'Trial 3'!M54,'Trial 4'!M54,'Trial 5'!M54,'Trial 6'!M54,'Trial 7'!M54,'Trial 8'!M54)","v":{"v":2788271.1644107215,"d":"$2,788,271"}},{"$f":"SUM(B219:M219)","v":{"v":33486268.597441837,"d":"$33,486,269"}},{"$f":"SUM('Trial 1'!O54,'Trial 2'!O54,'Trial 3'!O54,'Trial 4'!O54,'Trial 5'!O54,'Trial 6'!O54,'Trial 7'!O54,'Trial 8'!O54)","v":{"v":2744731.9346662834,"d":"$2,744,732"}},{"$f":"SUM('Trial 1'!P54,'Trial 2'!P54,'Trial 3'!P54,'Trial 4'!P54,'Trial 5'!P54,'Trial 6'!P54,'Trial 7'!P54,'Trial 8'!P54)","v":{"v":2774346.705276282,"d":"$2,774,347"}},{"$f":"SUM('Trial 1'!Q54,'Trial 2'!Q54,'Trial 3'!Q54,'Trial 4'!Q54,'Trial 5'!Q54,'Trial 6'!Q54,'Trial 7'!Q54,'Trial 8'!Q54)","v":{"v":2801562.9731462034,"d":"$2,801,563"}},{"$f":"SUM('Trial 1'!R54,'Trial 2'!R54,'Trial 3'!R54,'Trial 4'!R54,'Trial 5'!R54,'Trial 6'!R54,'Trial 7'!R54,'Trial 8'!R54)","v":{"v":2764956.421499148,"d":"$2,764,956"}},{"$f":"SUM('Trial 1'!S54,'Trial 2'!S54,'Trial 3'!S54,'Trial 4'!S54,'Trial 5'!S54,'Trial 6'!S54,'Trial 7'!S54,'Trial 8'!S54)","v":{"v":2769599.417667449,"d":"$2,769,599"}},{"$f":"SUM('Trial 1'!T54,'Trial 2'!T54,'Trial 3'!T54,'Trial 4'!T54,'Trial 5'!T54,'Trial 6'!T54,'Trial 7'!T54,'Trial 8'!T54)","v":{"v":2755401.8408090286,"d":"$2,755,402"}},{"$f":"SUM('Trial 1'!U54,'Trial 2'!U54,'Trial 3'!U54,'Trial 4'!U54,'Trial 5'!U54,'Trial 6'!U54,'Trial 7'!U54,'Trial 8'!U54)","v":{"v":2730523.9043039544,"d":"$2,730,524"}},{"$f":"SUM('Trial 1'!V54,'Trial 2'!V54,'Trial 3'!V54,'Trial 4'!V54,'Trial 5'!V54,'Trial 6'!V54,'Trial 7'!V54,'Trial 8'!V54)","v":{"v":2761710.4789543394,"d":"$2,761,710"}},{"$f":"SUM('Trial 1'!W54,'Trial 2'!W54,'Trial 3'!W54,'Trial 4'!W54,'Trial 5'!W54,'Trial 6'!W54,'Trial 7'!W54,'Trial 8'!W54)","v":{"v":2728752.58087267,"d":"$2,728,753"}},{"$f":"SUM('Trial 1'!X54,'Trial 2'!X54,'Trial 3'!X54,'Trial 4'!X54,'Trial 5'!X54,'Trial 6'!X54,'Trial 7'!X54,'Trial 8'!X54)","v":{"v":2745086.5872014686,"d":"$2,745,087"}},{"$f":"SUM('Trial 1'!Y54,'Trial 2'!Y54,'Trial 3'!Y54,'Trial 4'!Y54,'Trial 5'!Y54,'Trial 6'!Y54,'Trial 7'!Y54,'Trial 8'!Y54)","v":{"v":2708711.272056082,"d":"$2,708,711"}},{"$f":"SUM('Trial 1'!Z54,'Trial 2'!Z54,'Trial 3'!Z54,'Trial 4'!Z54,'Trial 5'!Z54,'Trial 6'!Z54,'Trial 7'!Z54,'Trial 8'!Z54)","v":{"v":2746735.1839329847,"d":"$2,746,735"}},{"$f":"SUM(O219:Z219)","v":{"v":33032119.300385896,"d":"$33,032,119"}},{"$f":"SUM('Trial 1'!AB54,'Trial 2'!AB54,'Trial 3'!AB54,'Trial 4'!AB54,'Trial 5'!AB54,'Trial 6'!AB54,'Trial 7'!AB54,'Trial 8'!AB54)","v":{"v":2699154.5402408987,"d":"$2,699,155"}},{"$f":"SUM('Trial 1'!AC54,'Trial 2'!AC54,'Trial 3'!AC54,'Trial 4'!AC54,'Trial 5'!AC54,'Trial 6'!AC54,'Trial 7'!AC54,'Trial 8'!AC54)","v":{"v":2712104.8941605594,"d":"$2,712,105"}},{"$f":"SUM('Trial 1'!AD54,'Trial 2'!AD54,'Trial 3'!AD54,'Trial 4'!AD54,'Trial 5'!AD54,'Trial 6'!AD54,'Trial 7'!AD54,'Trial 8'!AD54)","v":{"v":2756934.668022195,"d":"$2,756,935"}},{"$f":"SUM('Trial 1'!AE54,'Trial 2'!AE54,'Trial 3'!AE54,'Trial 4'!AE54,'Trial 5'!AE54,'Trial 6'!AE54,'Trial 7'!AE54,'Trial 8'!AE54)","v":{"v":2672225.310765439,"d":"$2,672,225"}},{"$f":"SUM('Trial 1'!AF54,'Trial 2'!AF54,'Trial 3'!AF54,'Trial 4'!AF54,'Trial 5'!AF54,'Trial 6'!AF54,'Trial 7'!AF54,'Trial 8'!AF54)","v":{"v":2714182.571056385,"d":"$2,714,183"}},{"$f":"SUM('Trial 1'!AG54,'Trial 2'!AG54,'Trial 3'!AG54,'Trial 4'!AG54,'Trial 5'!AG54,'Trial 6'!AG54,'Trial 7'!AG54,'Trial 8'!AG54)","v":{"v":2714130.6549746566,"d":"$2,714,131"}},{"$f":"SUM('Trial 1'!AH54,'Trial 2'!AH54,'Trial 3'!AH54,'Trial 4'!AH54,'Trial 5'!AH54,'Trial 6'!AH54,'Trial 7'!AH54,'Trial 8'!AH54)","v":{"v":2722295.0689001144,"d":"$2,722,295"}},{"$f":"SUM('Trial 1'!AI54,'Trial 2'!AI54,'Trial 3'!AI54,'Trial 4'!AI54,'Trial 5'!AI54,'Trial 6'!AI54,'Trial 7'!AI54,'Trial 8'!AI54)","v":{"v":2652792.6961922916,"d":"$2,652,793"}},{"$f":"SUM('Trial 1'!AJ54,'Trial 2'!AJ54,'Trial 3'!AJ54,'Trial 4'!AJ54,'Trial 5'!AJ54,'Trial 6'!AJ54,'Trial 7'!AJ54,'Trial 8'!AJ54)","v":{"v":2703307.213236711,"d":"$2,703,307"}},{"$f":"SUM('Trial 1'!AK54,'Trial 2'!AK54,'Trial 3'!AK54,'Trial 4'!AK54,'Trial 5'!AK54,'Trial 6'!AK54,'Trial 7'!AK54,'Trial 8'!AK54)","v":{"v":2707490.4328117785,"d":"$2,707,490"}},{"$f":"SUM('Trial 1'!AL54,'Trial 2'!AL54,'Trial 3'!AL54,'Trial 4'!AL54,'Trial 5'!AL54,'Trial 6'!AL54,'Trial 7'!AL54,'Trial 8'!AL54)","v":{"v":2674367.264346305,"d":"$2,674,367"}},{"$f":"SUM('Trial 1'!AM54,'Trial 2'!AM54,'Trial 3'!AM54,'Trial 4'!AM54,'Trial 5'!AM54,'Trial 6'!AM54,'Trial 7'!AM54,'Trial 8'!AM54)","v":{"v":2706920.6409798088,"d":"$2,706,921"}},{"$f":"SUM(AB219:AM219)","v":{"v":32435905.955687143,"d":"$32,435,906"}},{"$f":"SUM('Trial 1'!AO54,'Trial 2'!AO54,'Trial 3'!AO54,'Trial 4'!AO54,'Trial 5'!AO54,'Trial 6'!AO54,'Trial 7'!AO54,'Trial 8'!AO54)","v":{"v":2634683.4086833606,"d":"$2,634,683"}},{"$f":"SUM('Trial 1'!AP54,'Trial 2'!AP54,'Trial 3'!AP54,'Trial 4'!AP54,'Trial 5'!AP54,'Trial 6'!AP54,'Trial 7'!AP54,'Trial 8'!AP54)","v":{"v":2649338.8465687656,"d":"$2,649,339"}},{"$f":"SUM('Trial 1'!AQ54,'Trial 2'!AQ54,'Trial 3'!AQ54,'Trial 4'!AQ54,'Trial 5'!AQ54,'Trial 6'!AQ54,'Trial 7'!AQ54,'Trial 8'!AQ54)","v":{"v":2701021.1174173937,"d":"$2,701,021"}},{"$f":"SUM('Trial 1'!AR54,'Trial 2'!AR54,'Trial 3'!AR54,'Trial 4'!AR54,'Trial 5'!AR54,'Trial 6'!AR54,'Trial 7'!AR54,'Trial 8'!AR54)","v":{"v":2671006.2164546694,"d":"$2,671,006"}},{"$f":"SUM('Trial 1'!AS54,'Trial 2'!AS54,'Trial 3'!AS54,'Trial 4'!AS54,'Trial 5'!AS54,'Trial 6'!AS54,'Trial 7'!AS54,'Trial 8'!AS54)","v":{"v":2619144.6096827094,"d":"$2,619,145"}},{"$f":"SUM('Trial 1'!AT54,'Trial 2'!AT54,'Trial 3'!AT54,'Trial 4'!AT54,'Trial 5'!AT54,'Trial 6'!AT54,'Trial 7'!AT54,'Trial 8'!AT54)","v":{"v":2617450.97741823,"d":"$2,617,451"}},{"$f":"SUM('Trial 1'!AU54,'Trial 2'!AU54,'Trial 3'!AU54,'Trial 4'!AU54,'Trial 5'!AU54,'Trial 6'!AU54,'Trial 7'!AU54,'Trial 8'!AU54)","v":{"v":2690569.6637183446,"d":"$2,690,570"}},{"$f":"SUM('Trial 1'!AV54,'Trial 2'!AV54,'Trial 3'!AV54,'Trial 4'!AV54,'Trial 5'!AV54,'Trial 6'!AV54,'Trial 7'!AV54,'Trial 8'!AV54)","v":{"v":2689241.8539864793,"d":"$2,689,242"}},{"$f":"SUM('Trial 1'!AW54,'Trial 2'!AW54,'Trial 3'!AW54,'Trial 4'!AW54,'Trial 5'!AW54,'Trial 6'!AW54,'Trial 7'!AW54,'Trial 8'!AW54)","v":{"v":2632074.466282171,"d":"$2,632,074"}},{"$f":"SUM('Trial 1'!AX54,'Trial 2'!AX54,'Trial 3'!AX54,'Trial 4'!AX54,'Trial 5'!AX54,'Trial 6'!AX54,'Trial 7'!AX54,'Trial 8'!AX54)","v":{"v":2660636.9556801403,"d":"$2,660,637"}},{"$f":"SUM('Trial 1'!AY54,'Trial 2'!AY54,'Trial 3'!AY54,'Trial 4'!AY54,'Trial 5'!AY54,'Trial 6'!AY54,'Trial 7'!AY54,'Trial 8'!AY54)","v":{"v":2635036.6305947183,"d":"$2,635,037"}},{"$f":"SUM('Trial 1'!AZ54,'Trial 2'!AZ54,'Trial 3'!AZ54,'Trial 4'!AZ54,'Trial 5'!AZ54,'Trial 6'!AZ54,'Trial 7'!AZ54,'Trial 8'!AZ54)","v":{"v":2648639.070632996,"d":"$2,648,639"}},{"$f":"SUM(AO219:AZ219)","v":{"v":31848843.81711998,"d":"$31,848,844"}},{"$f":"SUM('Trial 1'!BB54,'Trial 2'!BB54,'Trial 3'!BB54,'Trial 4'!BB54,'Trial 5'!BB54,'Trial 6'!BB54,'Trial 7'!BB54,'Trial 8'!BB54)","v":{"v":2634475.9843679387,"d":"$2,634,476"}},{"$f":"SUM('Trial 1'!BC54,'Trial 2'!BC54,'Trial 3'!BC54,'Trial 4'!BC54,'Trial 5'!BC54,'Trial 6'!BC54,'Trial 7'!BC54,'Trial 8'!BC54)","v":{"v":2672032.4087497033,"d":"$2,672,032"}},{"$f":"SUM('Trial 1'!BD54,'Trial 2'!BD54,'Trial 3'!BD54,'Trial 4'!BD54,'Trial 5'!BD54,'Trial 6'!BD54,'Trial 7'!BD54,'Trial 8'!BD54)","v":{"v":2682524.6301477426,"d":"$2,682,525"}},{"$f":"SUM('Trial 1'!BE54,'Trial 2'!BE54,'Trial 3'!BE54,'Trial 4'!BE54,'Trial 5'!BE54,'Trial 6'!BE54,'Trial 7'!BE54,'Trial 8'!BE54)","v":{"v":2642231.569093237,"d":"$2,642,232"}},{"$f":"SUM('Trial 1'!BF54,'Trial 2'!BF54,'Trial 3'!BF54,'Trial 4'!BF54,'Trial 5'!BF54,'Trial 6'!BF54,'Trial 7'!BF54,'Trial 8'!BF54)","v":{"v":2617878.787391049,"d":"$2,617,879"}},{"$f":"SUM('Trial 1'!BG54,'Trial 2'!BG54,'Trial 3'!BG54,'Trial 4'!BG54,'Trial 5'!BG54,'Trial 6'!BG54,'Trial 7'!BG54,'Trial 8'!BG54)","v":{"v":2611994.5634157984,"d":"$2,611,995"}},{"$f":"SUM('Trial 1'!BH54,'Trial 2'!BH54,'Trial 3'!BH54,'Trial 4'!BH54,'Trial 5'!BH54,'Trial 6'!BH54,'Trial 7'!BH54,'Trial 8'!BH54)","v":{"v":2661122.0014533396,"d":"$2,661,122"}},{"$f":"SUM('Trial 1'!BI54,'Trial 2'!BI54,'Trial 3'!BI54,'Trial 4'!BI54,'Trial 5'!BI54,'Trial 6'!BI54,'Trial 7'!BI54,'Trial 8'!BI54)","v":{"v":2604859.0936696474,"d":"$2,604,859"}},{"$f":"SUM('Trial 1'!BJ54,'Trial 2'!BJ54,'Trial 3'!BJ54,'Trial 4'!BJ54,'Trial 5'!BJ54,'Trial 6'!BJ54,'Trial 7'!BJ54,'Trial 8'!BJ54)","v":{"v":2618824.2921737274,"d":"$2,618,824"}},{"$f":"SUM('Trial 1'!BK54,'Trial 2'!BK54,'Trial 3'!BK54,'Trial 4'!BK54,'Trial 5'!BK54,'Trial 6'!BK54,'Trial 7'!BK54,'Trial 8'!BK54)","v":{"v":2618662.804884616,"d":"$2,618,663"}},{"$f":"SUM('Trial 1'!BL54,'Trial 2'!BL54,'Trial 3'!BL54,'Trial 4'!BL54,'Trial 5'!BL54,'Trial 6'!BL54,'Trial 7'!BL54,'Trial 8'!BL54)","v":{"v":2597065.910997975,"d":"$2,597,066"}},{"$f":"SUM('Trial 1'!BM54,'Trial 2'!BM54,'Trial 3'!BM54,'Trial 4'!BM54,'Trial 5'!BM54,'Trial 6'!BM54,'Trial 7'!BM54,'Trial 8'!BM54)","v":{"v":2585090.416526595,"d":"$2,585,090"}},{"$f":"SUM(BB219:BM219)","v":{"v":31546762.462871373,"d":"$31,546,762"}},{"$f":"SUM('Trial 1'!BO54,'Trial 2'!BO54,'Trial 3'!BO54,'Trial 4'!BO54,'Trial 5'!BO54,'Trial 6'!BO54,'Trial 7'!BO54,'Trial 8'!BO54)","v":{"v":2555310.30460001,"d":"$2,555,310"}},{"$f":"SUM('Trial 1'!BP54,'Trial 2'!BP54,'Trial 3'!BP54,'Trial 4'!BP54,'Trial 5'!BP54,'Trial 6'!BP54,'Trial 7'!BP54,'Trial 8'!BP54)","v":{"v":2630204.4052629294,"d":"$2,630,204"}},{"$f":"SUM('Trial 1'!BQ54,'Trial 2'!BQ54,'Trial 3'!BQ54,'Trial 4'!BQ54,'Trial 5'!BQ54,'Trial 6'!BQ54,'Trial 7'!BQ54,'Trial 8'!BQ54)","v":{"v":2586929.560373888,"d":"$2,586,930"}},{"$f":"SUM('Trial 1'!BR54,'Trial 2'!BR54,'Trial 3'!BR54,'Trial 4'!BR54,'Trial 5'!BR54,'Trial 6'!BR54,'Trial 7'!BR54,'Trial 8'!BR54)","v":{"v":2648419.890015635,"d":"$2,648,420"}},{"$f":"SUM('Trial 1'!BS54,'Trial 2'!BS54,'Trial 3'!BS54,'Trial 4'!BS54,'Trial 5'!BS54,'Trial 6'!BS54,'Trial 7'!BS54,'Trial 8'!BS54)","v":{"v":2590762.9800731074,"d":"$2,590,763"}},{"$f":"SUM('Trial 1'!BT54,'Trial 2'!BT54,'Trial 3'!BT54,'Trial 4'!BT54,'Trial 5'!BT54,'Trial 6'!BT54,'Trial 7'!BT54,'Trial 8'!BT54)","v":{"v":2612655.1962906914,"d":"$2,612,655"}},{"$f":"SUM('Trial 1'!BU54,'Trial 2'!BU54,'Trial 3'!BU54,'Trial 4'!BU54,'Trial 5'!BU54,'Trial 6'!BU54,'Trial 7'!BU54,'Trial 8'!BU54)","v":{"v":2567178.1990392567,"d":"$2,567,178"}},{"$f":"SUM('Trial 1'!BV54,'Trial 2'!BV54,'Trial 3'!BV54,'Trial 4'!BV54,'Trial 5'!BV54,'Trial 6'!BV54,'Trial 7'!BV54,'Trial 8'!BV54)","v":{"v":2561454.0469612502,"d":"$2,561,454"}},{"$f":"SUM('Trial 1'!BW54,'Trial 2'!BW54,'Trial 3'!BW54,'Trial 4'!BW54,'Trial 5'!BW54,'Trial 6'!BW54,'Trial 7'!BW54,'Trial 8'!BW54)","v":{"v":2621107.2560277237,"d":"$2,621,107"}},{"$f":"SUM('Trial 1'!BX54,'Trial 2'!BX54,'Trial 3'!BX54,'Trial 4'!BX54,'Trial 5'!BX54,'Trial 6'!BX54,'Trial 7'!BX54,'Trial 8'!BX54)","v":{"v":2539267.740868894,"d":"$2,539,268"}},{"$f":"SUM('Trial 1'!BY54,'Trial 2'!BY54,'Trial 3'!BY54,'Trial 4'!BY54,'Trial 5'!BY54,'Trial 6'!BY54,'Trial 7'!BY54,'Trial 8'!BY54)","v":{"v":2590957.1534535023,"d":"$2,590,957"}},{"$f":"SUM('Trial 1'!BZ54,'Trial 2'!BZ54,'Trial 3'!BZ54,'Trial 4'!BZ54,'Trial 5'!BZ54,'Trial 6'!BZ54,'Trial 7'!BZ54,'Trial 8'!BZ54)","v":{"v":2578202.556797057,"d":"$2,578,203"}},{"$f":"SUM(BO219:BZ219)","v":{"v":31082449.28976395,"d":"$31,082,449"}},{"$f":"SUM('Trial 1'!CB54,'Trial 2'!CB54,'Trial 3'!CB54,'Trial 4'!CB54,'Trial 5'!CB54,'Trial 6'!CB54,'Trial 7'!CB54,'Trial 8'!CB54)","v":{"v":2570041.310120065,"d":"$2,570,041"}},{"$f":"SUM('Trial 1'!CC54,'Trial 2'!CC54,'Trial 3'!CC54,'Trial 4'!CC54,'Trial 5'!CC54,'Trial 6'!CC54,'Trial 7'!CC54,'Trial 8'!CC54)","v":{"v":2569739.1844460187,"d":"$2,569,739"}},{"$f":"SUM('Trial 1'!CD54,'Trial 2'!CD54,'Trial 3'!CD54,'Trial 4'!CD54,'Trial 5'!CD54,'Trial 6'!CD54,'Trial 7'!CD54,'Trial 8'!CD54)","v":{"v":2522731.810580421,"d":"$2,522,732"}},{"$f":"SUM('Trial 1'!CE54,'Trial 2'!CE54,'Trial 3'!CE54,'Trial 4'!CE54,'Trial 5'!CE54,'Trial 6'!CE54,'Trial 7'!CE54,'Trial 8'!CE54)","v":{"v":2529310.8834166843,"d":"$2,529,311"}},{"$f":"SUM('Trial 1'!CF54,'Trial 2'!CF54,'Trial 3'!CF54,'Trial 4'!CF54,'Trial 5'!CF54,'Trial 6'!CF54,'Trial 7'!CF54,'Trial 8'!CF54)","v":{"v":2547209.966437057,"d":"$2,547,210"}},{"$f":"SUM('Trial 1'!CG54,'Trial 2'!CG54,'Trial 3'!CG54,'Trial 4'!CG54,'Trial 5'!CG54,'Trial 6'!CG54,'Trial 7'!CG54,'Trial 8'!CG54)","v":{"v":2556757.0622589584,"d":"$2,556,757"}},{"$f":"SUM('Trial 1'!CH54,'Trial 2'!CH54,'Trial 3'!CH54,'Trial 4'!CH54,'Trial 5'!CH54,'Trial 6'!CH54,'Trial 7'!CH54,'Trial 8'!CH54)","v":{"v":2524121.19566185,"d":"$2,524,121"}},{"$f":"SUM('Trial 1'!CI54,'Trial 2'!CI54,'Trial 3'!CI54,'Trial 4'!CI54,'Trial 5'!CI54,'Trial 6'!CI54,'Trial 7'!CI54,'Trial 8'!CI54)","v":{"v":2538878.237415293,"d":"$2,538,878"}},{"$f":"SUM('Trial 1'!CJ54,'Trial 2'!CJ54,'Trial 3'!CJ54,'Trial 4'!CJ54,'Trial 5'!CJ54,'Trial 6'!CJ54,'Trial 7'!CJ54,'Trial 8'!CJ54)","v":{"v":2583874.2880504252,"d":"$2,583,874"}},{"$f":"SUM('Trial 1'!CK54,'Trial 2'!CK54,'Trial 3'!CK54,'Trial 4'!CK54,'Trial 5'!CK54,'Trial 6'!CK54,'Trial 7'!CK54,'Trial 8'!CK54)","v":{"v":2546447.792124092,"d":"$2,546,448"}},{"$f":"SUM('Trial 1'!CL54,'Trial 2'!CL54,'Trial 3'!CL54,'Trial 4'!CL54,'Trial 5'!CL54,'Trial 6'!CL54,'Trial 7'!CL54,'Trial 8'!CL54)","v":{"v":2524118.418996698,"d":"$2,524,118"}},{"$f":"SUM('Trial 1'!CM54,'Trial 2'!CM54,'Trial 3'!CM54,'Trial 4'!CM54,'Trial 5'!CM54,'Trial 6'!CM54,'Trial 7'!CM54,'Trial 8'!CM54)","v":{"v":2483157.760136102,"d":"$2,483,158"}},{"$f":"SUM(CB219:CM219)","v":{"v":30496387.909643665,"d":"$30,496,388"}},{"$f":"SUM('Trial 1'!CO54,'Trial 2'!CO54,'Trial 3'!CO54,'Trial 4'!CO54,'Trial 5'!CO54,'Trial 6'!CO54,'Trial 7'!CO54,'Trial 8'!CO54)","v":{"v":2523365.7397802393,"d":"$2,523,366"}},{"$f":"SUM('Trial 1'!CP54,'Trial 2'!CP54,'Trial 3'!CP54,'Trial 4'!CP54,'Trial 5'!CP54,'Trial 6'!CP54,'Trial 7'!CP54,'Trial 8'!CP54)","v":{"v":2510201.0870920103,"d":"$2,510,201"}},{"$f":"SUM('Trial 1'!CQ54,'Trial 2'!CQ54,'Trial 3'!CQ54,'Trial 4'!CQ54,'Trial 5'!CQ54,'Trial 6'!CQ54,'Trial 7'!CQ54,'Trial 8'!CQ54)","v":{"v":2534881.8343352433,"d":"$2,534,882"}},{"$f":"SUM('Trial 1'!CR54,'Trial 2'!CR54,'Trial 3'!CR54,'Trial 4'!CR54,'Trial 5'!CR54,'Trial 6'!CR54,'Trial 7'!CR54,'Trial 8'!CR54)","v":{"v":2512265.458442031,"d":"$2,512,265"}},{"$f":"SUM('Trial 1'!CS54,'Trial 2'!CS54,'Trial 3'!CS54,'Trial 4'!CS54,'Trial 5'!CS54,'Trial 6'!CS54,'Trial 7'!CS54,'Trial 8'!CS54)","v":{"v":2529840.2050928106,"d":"$2,529,840"}},{"$f":"SUM('Trial 1'!CT54,'Trial 2'!CT54,'Trial 3'!CT54,'Trial 4'!CT54,'Trial 5'!CT54,'Trial 6'!CT54,'Trial 7'!CT54,'Trial 8'!CT54)","v":{"v":2508159.563315096,"d":"$2,508,160"}},{"$f":"SUM('Trial 1'!CU54,'Trial 2'!CU54,'Trial 3'!CU54,'Trial 4'!CU54,'Trial 5'!CU54,'Trial 6'!CU54,'Trial 7'!CU54,'Trial 8'!CU54)","v":{"v":2532883.29372673,"d":"$2,532,883"}},{"$f":"SUM('Trial 1'!CV54,'Trial 2'!CV54,'Trial 3'!CV54,'Trial 4'!CV54,'Trial 5'!CV54,'Trial 6'!CV54,'Trial 7'!CV54,'Trial 8'!CV54)","v":{"v":2512073.571692831,"d":"$2,512,074"}},{"$f":"SUM('Trial 1'!CW54,'Trial 2'!CW54,'Trial 3'!CW54,'Trial 4'!CW54,'Trial 5'!CW54,'Trial 6'!CW54,'Trial 7'!CW54,'Trial 8'!CW54)","v":{"v":2478183.2000462622,"d":"$2,478,183"}},{"$f":"SUM('Trial 1'!CX54,'Trial 2'!CX54,'Trial 3'!CX54,'Trial 4'!CX54,'Trial 5'!CX54,'Trial 6'!CX54,'Trial 7'!CX54,'Trial 8'!CX54)","v":{"v":2525690.130173382,"d":"$2,525,690"}},{"$f":"SUM('Trial 1'!CY54,'Trial 2'!CY54,'Trial 3'!CY54,'Trial 4'!CY54,'Trial 5'!CY54,'Trial 6'!CY54,'Trial 7'!CY54,'Trial 8'!CY54)","v":{"v":2532253.067763674,"d":"$2,532,253"}},{"$f":"SUM('Trial 1'!CZ54,'Trial 2'!CZ54,'Trial 3'!CZ54,'Trial 4'!CZ54,'Trial 5'!CZ54,'Trial 6'!CZ54,'Trial 7'!CZ54,'Trial 8'!CZ54)","v":{"v":2540686.3649623194,"d":"$2,540,686"}},{"$f":"SUM(CO219:CZ219)","v":{"v":30240483.516422633,"d":"$30,240,484"}},{"$f":"SUM('Trial 1'!DB54,'Trial 2'!DB54,'Trial 3'!DB54,'Trial 4'!DB54,'Trial 5'!DB54,'Trial 6'!DB54,'Trial 7'!DB54,'Trial 8'!DB54)","v":{"v":2486525.0165145737,"d":"$2,486,525"}},{"$f":"SUM('Trial 1'!DC54,'Trial 2'!DC54,'Trial 3'!DC54,'Trial 4'!DC54,'Trial 5'!DC54,'Trial 6'!DC54,'Trial 7'!DC54,'Trial 8'!DC54)","v":{"v":2491463.783836563,"d":"$2,491,464"}},{"$f":"SUM('Trial 1'!DD54,'Trial 2'!DD54,'Trial 3'!DD54,'Trial 4'!DD54,'Trial 5'!DD54,'Trial 6'!DD54,'Trial 7'!DD54,'Trial 8'!DD54)","v":{"v":2487779.052026215,"d":"$2,487,779"}},{"$f":"SUM('Trial 1'!DE54,'Trial 2'!DE54,'Trial 3'!DE54,'Trial 4'!DE54,'Trial 5'!DE54,'Trial 6'!DE54,'Trial 7'!DE54,'Trial 8'!DE54)","v":{"v":2516155.1820807103,"d":"$2,516,155"}},{"$f":"SUM('Trial 1'!DF54,'Trial 2'!DF54,'Trial 3'!DF54,'Trial 4'!DF54,'Trial 5'!DF54,'Trial 6'!DF54,'Trial 7'!DF54,'Trial 8'!DF54)","v":{"v":2499950.609904702,"d":"$2,499,951"}},{"$f":"SUM('Trial 1'!DG54,'Trial 2'!DG54,'Trial 3'!DG54,'Trial 4'!DG54,'Trial 5'!DG54,'Trial 6'!DG54,'Trial 7'!DG54,'Trial 8'!DG54)","v":{"v":2458714.134389884,"d":"$2,458,714"}},{"$f":"SUM('Trial 1'!DH54,'Trial 2'!DH54,'Trial 3'!DH54,'Trial 4'!DH54,'Trial 5'!DH54,'Trial 6'!DH54,'Trial 7'!DH54,'Trial 8'!DH54)","v":{"v":2502954.940075093,"d":"$2,502,955"}},{"$f":"SUM('Trial 1'!DI54,'Trial 2'!DI54,'Trial 3'!DI54,'Trial 4'!DI54,'Trial 5'!DI54,'Trial 6'!DI54,'Trial 7'!DI54,'Trial 8'!DI54)","v":{"v":2484306.264546988,"d":"$2,484,306"}},{"$f":"SUM('Trial 1'!DJ54,'Trial 2'!DJ54,'Trial 3'!DJ54,'Trial 4'!DJ54,'Trial 5'!DJ54,'Trial 6'!DJ54,'Trial 7'!DJ54,'Trial 8'!DJ54)","v":{"v":2506450.564752355,"d":"$2,506,451"}},{"$f":"SUM('Trial 1'!DK54,'Trial 2'!DK54,'Trial 3'!DK54,'Trial 4'!DK54,'Trial 5'!DK54,'Trial 6'!DK54,'Trial 7'!DK54,'Trial 8'!DK54)","v":{"v":2493970.66594132,"d":"$2,493,971"}},{"$f":"SUM('Trial 1'!DL54,'Trial 2'!DL54,'Trial 3'!DL54,'Trial 4'!DL54,'Trial 5'!DL54,'Trial 6'!DL54,'Trial 7'!DL54,'Trial 8'!DL54)","v":{"v":2451125.3022943414,"d":"$2,451,125"}},{"$f":"SUM('Trial 1'!DM54,'Trial 2'!DM54,'Trial 3'!DM54,'Trial 4'!DM54,'Trial 5'!DM54,'Trial 6'!DM54,'Trial 7'!DM54,'Trial 8'!DM54)","v":{"v":2499004.5307197375,"d":"$2,499,005"}},{"$f":"SUM(DB219:DM219)","v":{"v":29878400.047082484,"d":"$29,878,400"}},{"$f":"SUM('Trial 1'!DO54,'Trial 2'!DO54,'Trial 3'!DO54,'Trial 4'!DO54,'Trial 5'!DO54,'Trial 6'!DO54,'Trial 7'!DO54,'Trial 8'!DO54)","v":{"v":2495355.6514987675,"d":"$2,495,356"}},{"$f":"SUM('Trial 1'!DP54,'Trial 2'!DP54,'Trial 3'!DP54,'Trial 4'!DP54,'Trial 5'!DP54,'Trial 6'!DP54,'Trial 7'!DP54,'Trial 8'!DP54)","v":{"v":2459189.071644233,"d":"$2,459,189"}},{"$f":"SUM('Trial 1'!DQ54,'Trial 2'!DQ54,'Trial 3'!DQ54,'Trial 4'!DQ54,'Trial 5'!DQ54,'Trial 6'!DQ54,'Trial 7'!DQ54,'Trial 8'!DQ54)","v":{"v":2481557.49678174,"d":"$2,481,557"}},{"$f":"SUM('Trial 1'!DR54,'Trial 2'!DR54,'Trial 3'!DR54,'Trial 4'!DR54,'Trial 5'!DR54,'Trial 6'!DR54,'Trial 7'!DR54,'Trial 8'!DR54)","v":{"v":2459068.8374079415,"d":"$2,459,069"}},{"$f":"SUM('Trial 1'!DS54,'Trial 2'!DS54,'Trial 3'!DS54,'Trial 4'!DS54,'Trial 5'!DS54,'Trial 6'!DS54,'Trial 7'!DS54,'Trial 8'!DS54)","v":{"v":2480299.9208709,"d":"$2,480,300"}},{"$f":"SUM('Trial 1'!DT54,'Trial 2'!DT54,'Trial 3'!DT54,'Trial 4'!DT54,'Trial 5'!DT54,'Trial 6'!DT54,'Trial 7'!DT54,'Trial 8'!DT54)","v":{"v":2446929.328723446,"d":"$2,446,929"}},{"$f":"SUM('Trial 1'!DU54,'Trial 2'!DU54,'Trial 3'!DU54,'Trial 4'!DU54,'Trial 5'!DU54,'Trial 6'!DU54,'Trial 7'!DU54,'Trial 8'!DU54)","v":{"v":2473105.750738235,"d":"$2,473,106"}},{"$f":"SUM('Trial 1'!DV54,'Trial 2'!DV54,'Trial 3'!DV54,'Trial 4'!DV54,'Trial 5'!DV54,'Trial 6'!DV54,'Trial 7'!DV54,'Trial 8'!DV54)","v":{"v":2406487.469332128,"d":"$2,406,487"}},{"$f":"SUM('Trial 1'!DW54,'Trial 2'!DW54,'Trial 3'!DW54,'Trial 4'!DW54,'Trial 5'!DW54,'Trial 6'!DW54,'Trial 7'!DW54,'Trial 8'!DW54)","v":{"v":2480734.5556515097,"d":"$2,480,735"}},{"$f":"SUM('Trial 1'!DX54,'Trial 2'!DX54,'Trial 3'!DX54,'Trial 4'!DX54,'Trial 5'!DX54,'Trial 6'!DX54,'Trial 7'!DX54,'Trial 8'!DX54)","v":{"v":2446845.0200998443,"d":"$2,446,845"}},{"$f":"SUM('Trial 1'!DY54,'Trial 2'!DY54,'Trial 3'!DY54,'Trial 4'!DY54,'Trial 5'!DY54,'Trial 6'!DY54,'Trial 7'!DY54,'Trial 8'!DY54)","v":{"v":2460219.504609459,"d":"$2,460,220"}},{"$f":"SUM('Trial 1'!DZ54,'Trial 2'!DZ54,'Trial 3'!DZ54,'Trial 4'!DZ54,'Trial 5'!DZ54,'Trial 6'!DZ54,'Trial 7'!DZ54,'Trial 8'!DZ54)","v":{"v":2439584.5186273246,"d":"$2,439,585"}},{"$f":"SUM(DO219:DZ219)","v":{"v":29529377.125985526,"d":"$29,529,377"}},{"$f":"SUM('Trial 1'!EB54,'Trial 2'!EB54,'Trial 3'!EB54,'Trial 4'!EB54,'Trial 5'!EB54,'Trial 6'!EB54,'Trial 7'!EB54,'Trial 8'!EB54)","v":{"v":2471051.20915726,"d":"$2,471,051"}},{"$f":"SUM('Trial 1'!EC54,'Trial 2'!EC54,'Trial 3'!EC54,'Trial 4'!EC54,'Trial 5'!EC54,'Trial 6'!EC54,'Trial 7'!EC54,'Trial 8'!EC54)","v":{"v":2464333.726726151,"d":"$2,464,334"}},{"$f":"SUM('Trial 1'!ED54,'Trial 2'!ED54,'Trial 3'!ED54,'Trial 4'!ED54,'Trial 5'!ED54,'Trial 6'!ED54,'Trial 7'!ED54,'Trial 8'!ED54)","v":{"v":2390011.547643772,"d":"$2,390,012"}},{"$f":"SUM('Trial 1'!EE54,'Trial 2'!EE54,'Trial 3'!EE54,'Trial 4'!EE54,'Trial 5'!EE54,'Trial 6'!EE54,'Trial 7'!EE54,'Trial 8'!EE54)","v":{"v":2445090.203635791,"d":"$2,445,090"}},{"$f":"SUM('Trial 1'!EF54,'Trial 2'!EF54,'Trial 3'!EF54,'Trial 4'!EF54,'Trial 5'!EF54,'Trial 6'!EF54,'Trial 7'!EF54,'Trial 8'!EF54)","v":{"v":2432413.4776457394,"d":"$2,432,413"}},{"$f":"SUM('Trial 1'!EG54,'Trial 2'!EG54,'Trial 3'!EG54,'Trial 4'!EG54,'Trial 5'!EG54,'Trial 6'!EG54,'Trial 7'!EG54,'Trial 8'!EG54)","v":{"v":2427696.381064841,"d":"$2,427,696"}},{"$f":"SUM('Trial 1'!EH54,'Trial 2'!EH54,'Trial 3'!EH54,'Trial 4'!EH54,'Trial 5'!EH54,'Trial 6'!EH54,'Trial 7'!EH54,'Trial 8'!EH54)","v":{"v":2439703.7471546903,"d":"$2,439,704"}},{"$f":"SUM('Trial 1'!EI54,'Trial 2'!EI54,'Trial 3'!EI54,'Trial 4'!EI54,'Trial 5'!EI54,'Trial 6'!EI54,'Trial 7'!EI54,'Trial 8'!EI54)","v":{"v":2431620.3661350426,"d":"$2,431,620"}},{"$f":"SUM('Trial 1'!EJ54,'Trial 2'!EJ54,'Trial 3'!EJ54,'Trial 4'!EJ54,'Trial 5'!EJ54,'Trial 6'!EJ54,'Trial 7'!EJ54,'Trial 8'!EJ54)","v":{"v":2436030.895063552,"d":"$2,436,031"}},{"$f":"SUM('Trial 1'!EK54,'Trial 2'!EK54,'Trial 3'!EK54,'Trial 4'!EK54,'Trial 5'!EK54,'Trial 6'!EK54,'Trial 7'!EK54,'Trial 8'!EK54)","v":{"v":2402935.8438791316,"d":"$2,402,936"}},{"$f":"SUM('Trial 1'!EL54,'Trial 2'!EL54,'Trial 3'!EL54,'Trial 4'!EL54,'Trial 5'!EL54,'Trial 6'!EL54,'Trial 7'!EL54,'Trial 8'!EL54)","v":{"v":2424809.0102238283,"d":"$2,424,809"}},{"$f":"SUM('Trial 1'!EM54,'Trial 2'!EM54,'Trial 3'!EM54,'Trial 4'!EM54,'Trial 5'!EM54,'Trial 6'!EM54,'Trial 7'!EM54,'Trial 8'!EM54)","v":{"v":2452425.19604082,"d":"$2,452,425"}},{"$f":"SUM(EB219:EM219)","v":{"v":29218121.60437062,"d":"$29,218,122"}}]
[{"$f":"Labels!B52","v":"Gov Transfers"}]
[{"$f":"Labels!D96","v":"Trials"},{"$f":"ZZZ__FnCalls!F7","v":"Jan 2010"},{"$f":"ZZZ__FnCalls!F8","v":"Feb 2010"},{"$f":"ZZZ__FnCalls!F9","v":"Mar 2010"},{"$f":"ZZZ__FnCalls!F10","v":"Apr 2010"},{"$f":"ZZZ__FnCalls!F11","v":"May 2010"},{"$f":"ZZZ__FnCalls!F12","v":"Jun 2010"},{"$f":"ZZZ__FnCalls!F13","v":"Jul 2010"},{"$f":"ZZZ__FnCalls!F14","v":"Aug 2010"},{"$f":"ZZZ__FnCalls!F15","v":"Sep 2010"},{"$f":"ZZZ__FnCalls!F16","v":"Oct 2010"},{"$f":"ZZZ__FnCalls!F17","v":"Nov 2010"},{"$f":"ZZZ__FnCalls!F18","v":"Dec 2010"},{"$f":"ZZZ__FnCalls!H7","v":"2010"},{"$f":"ZZZ__FnCalls!F19","v":"Jan 2011"},{"$f":"ZZZ__FnCalls!F20","v":"Feb 2011"},{"$f":"ZZZ__FnCalls!F21","v":"Mar 2011"},{"$f":"ZZZ__FnCalls!F22","v":"Apr 2011"},{"$f":"ZZZ__FnCalls!F23","v":"May 2011"},{"$f":"ZZZ__FnCalls!F24","v":"Jun 2011"},{"$f":"ZZZ__FnCalls!F25","v":"Jul 2011"},{"$f":"ZZZ__FnCalls!F26","v":"Aug 2011"},{"$f":"ZZZ__FnCalls!F27","v":"Sep 2011"},{"$f":"ZZZ__FnCalls!F28","v":"Oct 2011"},{"$f":"ZZZ__FnCalls!F29","v":"Nov 2011"},{"$f":"ZZZ__FnCalls!F30","v":"Dec 2011"},{"$f":"ZZZ__FnCalls!H19","v":"2011"},{"$f":"ZZZ__FnCalls!F31","v":"Jan 2012"},{"$f":"ZZZ__FnCalls!F32","v":"Feb 2012"},{"$f":"ZZZ__FnCalls!F33","v":"Mar 2012"},{"$f":"ZZZ__FnCalls!F34","v":"Apr 2012"},{"$f":"ZZZ__FnCalls!F35","v":"May 2012"},{"$f":"ZZZ__FnCalls!F36","v":"Jun 2012"},{"$f":"ZZZ__FnCalls!F37","v":"Jul 2012"},{"$f":"ZZZ__FnCalls!F38","v":"Aug 2012"},{"$f":"ZZZ__FnCalls!F39","v":"Sep 2012"},{"$f":"ZZZ__FnCalls!F40","v":"Oct 2012"},{"$f":"ZZZ__FnCalls!F41","v":"Nov 2012"},{"$f":"ZZZ__FnCalls!F42","v":"Dec 2012"},{"$f":"ZZZ__FnCalls!H31","v":"2012"},{"$f":"ZZZ__FnCalls!F43","v":"Jan 2013"},{"$f":"ZZZ__FnCalls!F44","v":"Feb 2013"},{"$f":"ZZZ__FnCalls!F45","v":"Mar 2013"},{"$f":"ZZZ__FnCalls!F46","v":"Apr 2013"},{"$f":"ZZZ__FnCalls!F47","v":"May 2013"},{"$f":"ZZZ__FnCalls!F48","v":"Jun 2013"},{"$f":"ZZZ__FnCalls!F49","v":"Jul 2013"},{"$f":"ZZZ__FnCalls!F50","v":"Aug 2013"},{"$f":"ZZZ__FnCalls!F51","v":"Sep 2013"},{"$f":"ZZZ__FnCalls!F52","v":"Oct 2013"},{"$f":"ZZZ__FnCalls!F53","v":"Nov 2013"},{"$f":"ZZZ__FnCalls!F54","v":"Dec 2013"},{"$f":"ZZZ__FnCalls!H43","v":"2013"},{"$f":"ZZZ__FnCalls!F55","v":"Jan 2014"},{"$f":"ZZZ__FnCalls!F56","v":"Feb 2014"},{"$f":"ZZZ__FnCalls!F57","v":"Mar 2014"},{"$f":"ZZZ__FnCalls!F58","v":"Apr 2014"},{"$f":"ZZZ__FnCalls!F59","v":"May 2014"},{"$f":"ZZZ__FnCalls!F60","v":"Jun 2014"},{"$f":"ZZZ__FnCalls!F61","v":"Jul 2014"},{"$f":"ZZZ__FnCalls!F62","v":"Aug 2014"},{"$f":"ZZZ__FnCalls!F63","v":"Sep 2014"},{"$f":"ZZZ__FnCalls!F64","v":"Oct 2014"},{"$f":"ZZZ__FnCalls!F65","v":"Nov 2014"},{"$f":"ZZZ__FnCalls!F66","v":"Dec 2014"},{"$f":"ZZZ__FnCalls!H55","v":"2014"},{"$f":"ZZZ__FnCalls!F67","v":"Jan 2015"},{"$f":"ZZZ__FnCalls!F68","v":"Feb 2015"},{"$f":"ZZZ__FnCalls!F69","v":"Mar 2015"},{"$f":"ZZZ__FnCalls!F70","v":"Apr 2015"},{"$f":"ZZZ__FnCalls!F71","v":"May 2015"},{"$f":"ZZZ__FnCalls!F72","v":"Jun 2015"},{"$f":"ZZZ__FnCalls!F73","v":"Jul 2015"},{"$f":"ZZZ__FnCalls!F74","v":"Aug 2015"},{"$f":"ZZZ__FnCalls!F75","v":"Sep 2015"},{"$f":"ZZZ__FnCalls!F76","v":"Oct 2015"},{"$f":"ZZZ__FnCalls!F77","v":"Nov 2015"},{"$f":"ZZZ__FnCalls!F78","v":"Dec 2015"},{"$f":"ZZZ__FnCalls!H67","v":"2015"},{"$f":"ZZZ__FnCalls!F79","v":"Jan 2016"},{"$f":"ZZZ__FnCalls!F80","v":"Feb 2016"},{"$f":"ZZZ__FnCalls!F81","v":"Mar 2016"},{"$f":"ZZZ__FnCalls!F82","v":"Apr 2016"},{"$f":"ZZZ__FnCalls!F83","v":"May 2016"},{"$f":"ZZZ__FnCalls!F84","v":"Jun 2016"},{"$f":"ZZZ__FnCalls!F85","v":"Jul 2016"},{"$f":"ZZZ__FnCalls!F86","v":"Aug 2016"},{"$f":"ZZZ__FnCalls!F87","v":"Sep 2016"},{"$f":"ZZZ__FnCalls!F88","v":"Oct 2016"},{"$f":"ZZZ__FnCalls!F89","v":"Nov 2016"},{"$f":"ZZZ__FnCalls!F90","v":"Dec 2016"},{"$f":"ZZZ__FnCalls!H79","v":"2016"},{"$f":"ZZZ__FnCalls!F91","v":"Jan 2017"},{"$f":"ZZZ__FnCalls!F92","v":"Feb 2017"},{"$f":"ZZZ__FnCalls!F93","v":"Mar 2017"},{"$f":"ZZZ__FnCalls!F94","v":"Apr 2017"},{"$f":"ZZZ__FnCalls!F95","v":"May 2017"},{"$f":"ZZZ__FnCalls!F96","v":"Jun 2017"},{"$f":"ZZZ__FnCalls!F97","v":"Jul 2017"},{"$f":"ZZZ__FnCalls!F98","v":"Aug 2017"},{"$f":"ZZZ__FnCalls!F99","v":"Sep 2017"},{"$f":"ZZZ__FnCalls!F100","v":"Oct 2017"},{"$f":"ZZZ__FnCalls!F101","v":"Nov 2017"},{"$f":"ZZZ__FnCalls!F102","v":"Dec 2017"},{"$f":"ZZZ__FnCalls!H91","v":"2017"},{"$f":"ZZZ__FnCalls!F103","v":"Jan 2018"},{"$f":"ZZZ__FnCalls!F104","v":"Feb 2018"},{"$f":"ZZZ__FnCalls!F105","v":"Mar 2018"},{"$f":"ZZZ__FnCalls!F106","v":"Apr 2018"},{"$f":"ZZZ__FnCalls!F107","v":"May 2018"},{"$f":"ZZZ__FnCalls!F108","v":"Jun 2018"},{"$f":"ZZZ__FnCalls!F109","v":"Jul 2018"},{"$f":"ZZZ__FnCalls!F110","v":"Aug 2018"},{"$f":"ZZZ__FnCalls!F111","v":"Sep 2018"},{"$f":"ZZZ__FnCalls!F112","v":"Oct 2018"},{"$f":"ZZZ__FnCalls!F113","v":"Nov 2018"},{"$f":"ZZZ__FnCalls!F114","v":"Dec 2018"},{"$f":"ZZZ__FnCalls!H103","v":"2018"},{"$f":"ZZZ__FnCalls!F115","v":"Jan 2019"},{"$f":"ZZZ__FnCalls!F116","v":"Feb 2019"},{"$f":"ZZZ__FnCalls!F117","v":"Mar 2019"},{"$f":"ZZZ__FnCalls!F118","v":"Apr 2019"},{"$f":"ZZZ__FnCalls!F119","v":"May 2019"},{"$f":"ZZZ__FnCalls!F120","v":"Jun 2019"},{"$f":"ZZZ__FnCalls!F121","v":"Jul 2019"},{"$f":"ZZZ__FnCalls!F122","v":"Aug 2019"},{"$f":"ZZZ__FnCalls!F123","v":"Sep 2019"},{"$f":"ZZZ__FnCalls!F124","v":"Oct 2019"},{"$f":"ZZZ__FnCalls!F125","v":"Nov 2019"},{"$f":"ZZZ__FnCalls!F126","v":"Dec 2019"},{"$f":"ZZZ__FnCalls!H115","v":"2019"},{"$f":"ZZZ__FnCalls!F127","v":"Jan 2020"},{"$f":"ZZZ__FnCalls!F128","v":"Feb 2020"},{"$f":"ZZZ__FnCalls!F129","v":"Mar 2020"},{"$f":"ZZZ__FnCalls!F130","v":"Apr 2020"},{"$f":"ZZZ__FnCalls!F131","v":"May 2020"},{"$f":"ZZZ__FnCalls!F132","v":"Jun 2020"},{"$f":"ZZZ__FnCalls!F133","v":"Jul 2020"},{"$f":"ZZZ__FnCalls!F134","v":"Aug 2020"},{"$f":"ZZZ__FnCalls!F135","v":"Sep 2020"},{"$f":"ZZZ__FnCalls!F136","v":"Oct 2020"},{"$f":"ZZZ__FnCalls!F137","v":"Nov 2020"},{"$f":"ZZZ__FnCalls!F138","v":"Dec 2020"},{"$f":"ZZZ__FnCalls!H127","v":"2020"}]
[{"$f":"Labels!B96","v":"Trial 01"},{"$f":"'Trial 1'!B38","v":{"v":14583.333333333336,"d":"$14,583"}},{"$f":"'Trial 1'!C38","v":{"v":14583.333333333336,"d":"$14,583"}},{"$f":"'Trial 1'!D38","v":{"v":14583.333333333336,"d":"$14,583"}},{"$f":"'Trial 1'!E38","v":{"v":14583.333333333336,"d":"$14,583"}},{"$f":"'Trial 1'!F38","v":{"v":14583.333333333336,"d":"$14,583"}},{"$f":"'Trial 1'!G38","v":{"v":14583.333333333336,"d":"$14,583"}},{"$f":"'Trial 1'!H38","v":{"v":14583.333333333336,"d":"$14,583"}},{"$f":"'Trial 1'!I38","v":{"v":14583.333333333336,"d":"$14,583"}},{"$f":"'Trial 1'!J38","v":{"v":14583.333333333336,"d":"$14,583"}},{"$f":"'Trial 1'!K38","v":{"v":14583.333333333336,"d":"$14,583"}},{"$f":"'Trial 1'!L38","v":{"v":14583.333333333336,"d":"$14,583"}},{"$f":"'Trial 1'!M38","v":{"v":14583.333333333336,"d":"$14,583"}},{"$f":"SUM('Trial 1'!B38:M38)","v":{"v":175000.0000000001,"d":"$175,000"}},{"$f":"'Trial 1'!O38","v":{"v":14583.333333333336,"d":"$14,583"}},{"$f":"'Trial 1'!P38","v":{"v":14583.333333333336,"d":"$14,583"}},{"$f":"'Trial 1'!Q38","v":{"v":14583.333333333336,"d":"$14,583"}},{"$f":"'Trial 1'!R38","v":{"v":14583.333333333336,"d":"$14,583"}},{"$f":"'Trial 1'!S38","v":{"v":14583.333333333336,"d":"$14,583"}},{"$f":"'Trial 1'!T38","v":{"v":14583.333333333336,"d":"$14,583"}},{"$f":"'Trial 1'!U38","v":{"v":14583.333333333336,"d":"$14,583"}},{"$f":"'Trial 1'!V38","v":{"v":14583.333333333336,"d":"$14,583"}},{"$f":"'Trial 1'!W38","v":{"v":14583.333333333336,"d":"$14,583"}},{"$f":"'Trial 1'!X38","v":{"v":14583.333333333336,"d":"$14,583"}},{"$f":"'Trial 1'!Y38","v":{"v":14583.333333333336,"d":"$14,583"}},{"$f":"'Trial 1'!Z38","v":{"v":14583.333333333336,"d":"$14,583"}},{"$f":"SUM('Trial 1'!O38:Z38)","v":{"v":175000.0000000001,"d":"$175,000"}},{"$f":"'Trial 1'!AB38","v":{"v":14583.333333333336,"d":"$14,583"}},{"$f":"'Trial 1'!AC38","v":{"v":14583.333333333336,"d":"$14,583"}},{"$f":"'Trial 1'!AD38","v":{"v":14583.333333333336,"d":"$14,583"}},{"$f":"'Trial 1'!AE38","v":{"v":14583.333333333336,"d":"$14,583"}},{"$f":"'Trial 1'!AF38","v":{"v":14583.333333333336,"d":"$14,583"}},{"$f":"'Trial 1'!AG38","v":{"v":14583.333333333336,"d":"$14,583"}},{"$f":"'Trial 1'!AH38","v":{"v":14583.333333333336,"d":"$14,583"}},{"$f":"'Trial 1'!AI38","v":{"v":14583.333333333336,"d":"$14,583"}},{"$f":"'Trial 1'!AJ38","v":{"v":14583.333333333336,"d":"$14,583"}},{"$f":"'Trial 1'!AK38","v":{"v":14583.333333333336,"d":"$14,583"}},{"$f":"'Trial 1'!AL38","v":{"v":14583.333333333336,"d":"$14,583"}},{"$f":"'Trial 1'!AM38","v":{"v":14583.333333333336,"d":"$14,583"}},{"$f":"SUM('Trial 1'!AB38:AM38)","v":{"v":175000.0000000001,"d":"$175,000"}},{"$f":"'Trial 1'!AO38","v":{"v":14583.333333333336,"d":"$14,583"}},{"$f":"'Trial 1'!AP38","v":{"v":14583.333333333336,"d":"$14,583"}},{"$f":"'Trial 1'!AQ38","v":{"v":14583.333333333336,"d":"$14,583"}},{"$f":"'Trial 1'!AR38","v":{"v":14583.333333333336,"d":"$14,583"}},{"$f":"'Trial 1'!AS38","v":{"v":14583.333333333336,"d":"$14,583"}},{"$f":"'Trial 1'!AT38","v":{"v":14583.333333333336,"d":"$14,583"}},{"$f":"'Trial 1'!AU38","v":{"v":14583.333333333336,"d":"$14,583"}},{"$f":"'Trial 1'!AV38","v":{"v":14583.333333333336,"d":"$14,583"}},{"$f":"'Trial 1'!AW38","v":{"v":14583.333333333336,"d":"$14,583"}},{"$f":"'Trial 1'!AX38","v":{"v":14583.333333333336,"d":"$14,583"}},{"$f":"'Trial 1'!AY38","v":{"v":14583.333333333336,"d":"$14,583"}},{"$f":"'Trial 1'!AZ38","v":{"v":14583.333333333336,"d":"$14,583"}},{"$f":"SUM('Trial 1'!AO38:AZ38)","v":{"v":175000.0000000001,"d":"$175,000"}},{"$f":"'Trial 1'!BB38","v":{"v":14583.333333333336,"d":"$14,583"}},{"$f":"'Trial 1'!BC38","v":{"v":14583.333333333336,"d":"$14,583"}},{"$f":"'Trial 1'!BD38","v":{"v":14583.333333333336,"d":"$14,583"}},{"$f":"'Trial 1'!BE38","v":{"v":14583.333333333336,"d":"$14,583"}},{"$f":"'Trial 1'!BF38","v":{"v":14583.333333333336,"d":"$14,583"}},{"$f":"'Trial 1'!BG38","v":{"v":14583.333333333336,"d":"$14,583"}},{"$f":"'Trial 1'!BH38","v":{"v":14583.333333333336,"d":"$14,583"}},{"$f":"'Trial 1'!BI38","v":{"v":14583.333333333336,"d":"$14,583"}},{"$f":"'Trial 1'!BJ38","v":{"v":14583.333333333336,"d":"$14,583"}},{"$f":"'Trial 1'!BK38","v":{"v":14583.333333333336,"d":"$14,583"}},{"$f":"'Trial 1'!BL38","v":{"v":14583.333333333336,"d":"$14,583"}},{"$f":"'Trial 1'!BM38","v":{"v":14583.333333333336,"d":"$14,583"}},{"$f":"SUM('Trial 1'!BB38:BM38)","v":{"v":175000.0000000001,"d":"$175,000"}},{"$f":"'Trial 1'!BO38","v":{"v":14583.333333333336,"d":"$14,583"}},{"$f":"'Trial 1'!BP38","v":{"v":14583.333333333336,"d":"$14,583"}},{"$f":"'Trial 1'!BQ38","v":{"v":14583.333333333336,"d":"$14,583"}},{"$f":"'Trial 1'!BR38","v":{"v":14583.333333333336,"d":"$14,583"}},{"$f":"'Trial 1'!BS38","v":{"v":14583.333333333336,"d":"$14,583"}},{"$f":"'Trial 1'!BT38","v":{"v":14583.333333333336,"d":"$14,583"}},{"$f":"'Trial 1'!BU38","v":{"v":14583.333333333336,"d":"$14,583"}},{"$f":"'Trial 1'!BV38","v":{"v":14583.333333333336,"d":"$14,583"}},{"$f":"'Trial 1'!BW38","v":{"v":14583.333333333336,"d":"$14,583"}},{"$f":"'Trial 1'!BX38","v":{"v":14583.333333333336,"d":"$14,583"}},{"$f":"'Trial 1'!BY38","v":{"v":14583.333333333336,"d":"$14,583"}},{"$f":"'Trial 1'!BZ38","v":{"v":14583.333333333336,"d":"$14,583"}},{"$f":"SUM('Trial 1'!BO38:BZ38)","v":{"v":175000.0000000001,"d":"$175,000"}},{"$f":"'Trial 1'!CB38","v":{"v":14583.333333333336,"d":"$14,583"}},{"$f":"'Trial 1'!CC38","v":{"v":14583.333333333336,"d":"$14,583"}},{"$f":"'Trial 1'!CD38","v":{"v":14583.333333333336,"d":"$14,583"}},{"$f":"'Trial 1'!CE38","v":{"v":14583.333333333336,"d":"$14,583"}},{"$f":"'Trial 1'!CF38","v":{"v":14583.333333333336,"d":"$14,583"}},{"$f":"'Trial 1'!CG38","v":{"v":14583.333333333336,"d":"$14,583"}},{"$f":"'Trial 1'!CH38","v":{"v":14583.333333333336,"d":"$14,583"}},{"$f":"'Trial 1'!CI38","v":{"v":14583.333333333336,"d":"$14,583"}},{"$f":"'Trial 1'!CJ38","v":{"v":14583.333333333336,"d":"$14,583"}},{"$f":"'Trial 1'!CK38","v":{"v":14583.333333333336,"d":"$14,583"}},{"$f":"'Trial 1'!CL38","v":{"v":14583.333333333336,"d":"$14,583"}},{"$f":"'Trial 1'!CM38","v":{"v":14583.333333333336,"d":"$14,583"}},{"$f":"SUM('Trial 1'!CB38:CM38)","v":{"v":175000.0000000001,"d":"$175,000"}},{"$f":"'Trial 1'!CO38","v":{"v":14583.333333333336,"d":"$14,583"}},{"$f":"'Trial 1'!CP38","v":{"v":14583.333333333336,"d":"$14,583"}},{"$f":"'Trial 1'!CQ38","v":{"v":14583.333333333336,"d":"$14,583"}},{"$f":"'Trial 1'!CR38","v":{"v":14583.333333333336,"d":"$14,583"}},{"$f":"'Trial 1'!CS38","v":{"v":14583.333333333336,"d":"$14,583"}},{"$f":"'Trial 1'!CT38","v":{"v":14583.333333333336,"d":"$14,583"}},{"$f":"'Trial 1'!CU38","v":{"v":14583.333333333336,"d":"$14,583"}},{"$f":"'Trial 1'!CV38","v":{"v":14583.333333333336,"d":"$14,583"}},{"$f":"'Trial 1'!CW38","v":{"v":14583.333333333336,"d":"$14,583"}},{"$f":"'Trial 1'!CX38","v":{"v":14583.333333333336,"d":"$14,583"}},{"$f":"'Trial 1'!CY38","v":{"v":14583.333333333336,"d":"$14,583"}},{"$f":"'Trial 1'!CZ38","v":{"v":14583.333333333336,"d":"$14,583"}},{"$f":"SUM('Trial 1'!CO38:CZ38)","v":{"v":175000.0000000001,"d":"$175,000"}},{"$f":"'Trial 1'!DB38","v":{"v":14583.333333333336,"d":"$14,583"}},{"$f":"'Trial 1'!DC38","v":{"v":14583.333333333336,"d":"$14,583"}},{"$f":"'Trial 1'!DD38","v":{"v":14583.333333333336,"d":"$14,583"}},{"$f":"'Trial 1'!DE38","v":{"v":14583.333333333336,"d":"$14,583"}},{"$f":"'Trial 1'!DF38","v":{"v":14583.333333333336,"d":"$14,583"}},{"$f":"'Trial 1'!DG38","v":{"v":14583.333333333336,"d":"$14,583"}},{"$f":"'Trial 1'!DH38","v":{"v":14583.333333333336,"d":"$14,583"}},{"$f":"'Trial 1'!DI38","v":{"v":14583.333333333336,"d":"$14,583"}},{"$f":"'Trial 1'!DJ38","v":{"v":14583.333333333336,"d":"$14,583"}},{"$f":"'Trial 1'!DK38","v":{"v":14583.333333333336,"d":"$14,583"}},{"$f":"'Trial 1'!DL38","v":{"v":14583.333333333336,"d":"$14,583"}},{"$f":"'Trial 1'!DM38","v":{"v":14583.333333333336,"d":"$14,583"}},{"$f":"SUM('Trial 1'!DB38:DM38)","v":{"v":175000.0000000001,"d":"$175,000"}},{"$f":"'Trial 1'!DO38","v":{"v":14583.333333333336,"d":"$14,583"}},{"$f":"'Trial 1'!DP38","v":{"v":14583.333333333336,"d":"$14,583"}},{"$f":"'Trial 1'!DQ38","v":{"v":14583.333333333336,"d":"$14,583"}},{"$f":"'Trial 1'!DR38","v":{"v":14583.333333333336,"d":"$14,583"}},{"$f":"'Trial 1'!DS38","v":{"v":14583.333333333336,"d":"$14,583"}},{"$f":"'Trial 1'!DT38","v":{"v":14583.333333333336,"d":"$14,583"}},{"$f":"'Trial 1'!DU38","v":{"v":14583.333333333336,"d":"$14,583"}},{"$f":"'Trial 1'!DV38","v":{"v":14583.333333333336,"d":"$14,583"}},{"$f":"'Trial 1'!DW38","v":{"v":14583.333333333336,"d":"$14,583"}},{"$f":"'Trial 1'!DX38","v":{"v":14583.333333333336,"d":"$14,583"}},{"$f":"'Trial 1'!DY38","v":{"v":14583.333333333336,"d":"$14,583"}},{"$f":"'Trial 1'!DZ38","v":{"v":14583.333333333336,"d":"$14,583"}},{"$f":"SUM('Trial 1'!DO38:DZ38)","v":{"v":175000.0000000001,"d":"$175,000"}},{"$f":"'Trial 1'!EB38","v":{"v":14583.333333333336,"d":"$14,583"}},{"$f":"'Trial 1'!EC38","v":{"v":14583.333333333336,"d":"$14,583"}},{"$f":"'Trial 1'!ED38","v":{"v":14583.333333333336,"d":"$14,583"}},{"$f":"'Trial 1'!EE38","v":{"v":14583.333333333336,"d":"$14,583"}},{"$f":"'Trial 1'!EF38","v":{"v":14583.333333333336,"d":"$14,583"}},{"$f":"'Trial 1'!EG38","v":{"v":14583.333333333336,"d":"$14,583"}},{"$f":"'Trial 1'!EH38","v":{"v":14583.333333333336,"d":"$14,583"}},{"$f":"'Trial 1'!EI38","v":{"v":14583.333333333336,"d":"$14,583"}},{"$f":"'Trial 1'!EJ38","v":{"v":14583.333333333336,"d":"$14,583"}},{"$f":"'Trial 1'!EK38","v":{"v":14583.333333333336,"d":"$14,583"}},{"$f":"'Trial 1'!EL38","v":{"v":14583.333333333336,"d":"$14,583"}},{"$f":"'Trial 1'!EM38","v":{"v":14583.333333333336,"d":"$14,583"}},{"$f":"SUM('Trial 1'!EB38:EM38)","v":{"v":175000.0000000001,"d":"$175,000"}}]
[{"$f":"Labels!B97","v":"Trial 02"},{"$f":"'Trial 2'!B38","v":{"v":14583.333333333336,"d":"$14,583"}},{"$f":"'Trial 2'!C38","v":{"v":14583.333333333336,"d":"$14,583"}},{"$f":"'Trial 2'!D38","v":{"v":14583.333333333336,"d":"$14,583"}},{"$f":"'Trial 2'!E38","v":{"v":14583.333333333336,"d":"$14,583"}},{"$f":"'Trial 2'!F38","v":{"v":14583.333333333336,"d":"$14,583"}},{"$f":"'Trial 2'!G38","v":{"v":14583.333333333336,"d":"$14,583"}},{"$f":"'Trial 2'!H38","v":{"v":14583.333333333336,"d":"$14,583"}},{"$f":"'Trial 2'!I38","v":{"v":14583.333333333336,"d":"$14,583"}},{"$f":"'Trial 2'!J38","v":{"v":14583.333333333336,"d":"$14,583"}},{"$f":"'Trial 2'!K38","v":{"v":14583.333333333336,"d":"$14,583"}},{"$f":"'Trial 2'!L38","v":{"v":14583.333333333336,"d":"$14,583"}},{"$f":"'Trial 2'!M38","v":{"v":14583.333333333336,"d":"$14,583"}},{"$f":"SUM('Trial 2'!B38:M38)","v":{"v":175000.0000000001,"d":"$175,000"}},{"$f":"'Trial 2'!O38","v":{"v":14583.333333333336,"d":"$14,583"}},{"$f":"'Trial 2'!P38","v":{"v":14583.333333333336,"d":"$14,583"}},{"$f":"'Trial 2'!Q38","v":{"v":14583.333333333336,"d":"$14,583"}},{"$f":"'Trial 2'!R38","v":{"v":14583.333333333336,"d":"$14,583"}},{"$f":"'Trial 2'!S38","v":{"v":14583.333333333336,"d":"$14,583"}},{"$f":"'Trial 2'!T38","v":{"v":14583.333333333336,"d":"$14,583"}},{"$f":"'Trial 2'!U38","v":{"v":14583.333333333336,"d":"$14,583"}},{"$f":"'Trial 2'!V38","v":{"v":14583.333333333336,"d":"$14,583"}},{"$f":"'Trial 2'!W38","v":{"v":14583.333333333336,"d":"$14,583"}},{"$f":"'Trial 2'!X38","v":{"v":14583.333333333336,"d":"$14,583"}},{"$f":"'Trial 2'!Y38","v":{"v":14583.333333333336,"d":"$14,583"}},{"$f":"'Trial 2'!Z38","v":{"v":14583.333333333336,"d":"$14,583"}},{"$f":"SUM('Trial 2'!O38:Z38)","v":{"v":175000.0000000001,"d":"$175,000"}},{"$f":"'Trial 2'!AB38","v":{"v":14583.333333333336,"d":"$14,583"}},{"$f":"'Trial 2'!AC38","v":{"v":14583.333333333336,"d":"$14,583"}},{"$f":"'Trial 2'!AD38","v":{"v":14583.333333333336,"d":"$14,583"}},{"$f":"'Trial 2'!AE38","v":{"v":14583.333333333336,"d":"$14,583"}},{"$f":"'Trial 2'!AF38","v":{"v":14583.333333333336,"d":"$14,583"}},{"$f":"'Trial 2'!AG38","v":{"v":14583.333333333336,"d":"$14,583"}},{"$f":"'Trial 2'!AH38","v":{"v":14583.333333333336,"d":"$14,583"}},{"$f":"'Trial 2'!AI38","v":{"v":14583.333333333336,"d":"$14,583"}},{"$f":"'Trial 2'!AJ38","v":{"v":14583.333333333336,"d":"$14,583"}},{"$f":"'Trial 2'!AK38","v":{"v":14583.333333333336,"d":"$14,583"}},{"$f":"'Trial 2'!AL38","v":{"v":14583.333333333336,"d":"$14,583"}},{"$f":"'Trial 2'!AM38","v":{"v":14583.333333333336,"d":"$14,583"}},{"$f":"SUM('Trial 2'!AB38:AM38)","v":{"v":175000.0000000001,"d":"$175,000"}},{"$f":"'Trial 2'!AO38","v":{"v":14583.333333333336,"d":"$14,583"}},{"$f":"'Trial 2'!AP38","v":{"v":14583.333333333336,"d":"$14,583"}},{"$f":"'Trial 2'!AQ38","v":{"v":14583.333333333336,"d":"$14,583"}},{"$f":"'Trial 2'!AR38","v":{"v":14583.333333333336,"d":"$14,583"}},{"$f":"'Trial 2'!AS38","v":{"v":14583.333333333336,"d":"$14,583"}},{"$f":"'Trial 2'!AT38","v":{"v":14583.333333333336,"d":"$14,583"}},{"$f":"'Trial 2'!AU38","v":{"v":14583.333333333336,"d":"$14,583"}},{"$f":"'Trial 2'!AV38","v":{"v":14583.333333333336,"d":"$14,583"}},{"$f":"'Trial 2'!AW38","v":{"v":14583.333333333336,"d":"$14,583"}},{"$f":"'Trial 2'!AX38","v":{"v":14583.333333333336,"d":"$14,583"}},{"$f":"'Trial 2'!AY38","v":{"v":14583.333333333336,"d":"$14,583"}},{"$f":"'Trial 2'!AZ38","v":{"v":14583.333333333336,"d":"$14,583"}},{"$f":"SUM('Trial 2'!AO38:AZ38)","v":{"v":175000.0000000001,"d":"$175,000"}},{"$f":"'Trial 2'!BB38","v":{"v":14583.333333333336,"d":"$14,583"}},{"$f":"'Trial 2'!BC38","v":{"v":14583.333333333336,"d":"$14,583"}},{"$f":"'Trial 2'!BD38","v":{"v":14583.333333333336,"d":"$14,583"}},{"$f":"'Trial 2'!BE38","v":{"v":14583.333333333336,"d":"$14,583"}},{"$f":"'Trial 2'!BF38","v":{"v":14583.333333333336,"d":"$14,583"}},{"$f":"'Trial 2'!BG38","v":{"v":14583.333333333336,"d":"$14,583"}},{"$f":"'Trial 2'!BH38","v":{"v":14583.333333333336,"d":"$14,583"}},{"$f":"'Trial 2'!BI38","v":{"v":14583.333333333336,"d":"$14,583"}},{"$f":"'Trial 2'!BJ38","v":{"v":14583.333333333336,"d":"$14,583"}},{"$f":"'Trial 2'!BK38","v":{"v":14583.333333333336,"d":"$14,583"}},{"$f":"'Trial 2'!BL38","v":{"v":14583.333333333336,"d":"$14,583"}},{"$f":"'Trial 2'!BM38","v":{"v":14583.333333333336,"d":"$14,583"}},{"$f":"SUM('Trial 2'!BB38:BM38)","v":{"v":175000.0000000001,"d":"$175,000"}},{"$f":"'Trial 2'!BO38","v":{"v":14583.333333333336,"d":"$14,583"}},{"$f":"'Trial 2'!BP38","v":{"v":14583.333333333336,"d":"$14,583"}},{"$f":"'Trial 2'!BQ38","v":{"v":14583.333333333336,"d":"$14,583"}},{"$f":"'Trial 2'!BR38","v":{"v":14583.333333333336,"d":"$14,583"}},{"$f":"'Trial 2'!BS38","v":{"v":14583.333333333336,"d":"$14,583"}},{"$f":"'Trial 2'!BT38","v":{"v":14583.333333333336,"d":"$14,583"}},{"$f":"'Trial 2'!BU38","v":{"v":14583.333333333336,"d":"$14,583"}},{"$f":"'Trial 2'!BV38","v":{"v":14583.333333333336,"d":"$14,583"}},{"$f":"'Trial 2'!BW38","v":{"v":14583.333333333336,"d":"$14,583"}},{"$f":"'Trial 2'!BX38","v":{"v":14583.333333333336,"d":"$14,583"}},{"$f":"'Trial 2'!BY38","v":{"v":14583.333333333336,"d":"$14,583"}},{"$f":"'Trial 2'!BZ38","v":{"v":14583.333333333336,"d":"$14,583"}},{"$f":"SUM('Trial 2'!BO38:BZ38)","v":{"v":175000.0000000001,"d":"$175,000"}},{"$f":"'Trial 2'!CB38","v":{"v":14583.333333333336,"d":"$14,583"}},{"$f":"'Trial 2'!CC38","v":{"v":14583.333333333336,"d":"$14,583"}},{"$f":"'Trial 2'!CD38","v":{"v":14583.333333333336,"d":"$14,583"}},{"$f":"'Trial 2'!CE38","v":{"v":14583.333333333336,"d":"$14,583"}},{"$f":"'Trial 2'!CF38","v":{"v":14583.333333333336,"d":"$14,583"}},{"$f":"'Trial 2'!CG38","v":{"v":14583.333333333336,"d":"$14,583"}},{"$f":"'Trial 2'!CH38","v":{"v":14583.333333333336,"d":"$14,583"}},{"$f":"'Trial 2'!CI38","v":{"v":14583.333333333336,"d":"$14,583"}},{"$f":"'Trial 2'!CJ38","v":{"v":14583.333333333336,"d":"$14,583"}},{"$f":"'Trial 2'!CK38","v":{"v":14583.333333333336,"d":"$14,583"}},{"$f":"'Trial 2'!CL38","v":{"v":14583.333333333336,"d":"$14,583"}},{"$f":"'Trial 2'!CM38","v":{"v":14583.333333333336,"d":"$14,583"}},{"$f":"SUM('Trial 2'!CB38:CM38)","v":{"v":175000.0000000001,"d":"$175,000"}},{"$f":"'Trial 2'!CO38","v":{"v":14583.333333333336,"d":"$14,583"}},{"$f":"'Trial 2'!CP38","v":{"v":14583.333333333336,"d":"$14,583"}},{"$f":"'Trial 2'!CQ38","v":{"v":14583.333333333336,"d":"$14,583"}},{"$f":"'Trial 2'!CR38","v":{"v":14583.333333333336,"d":"$14,583"}},{"$f":"'Trial 2'!CS38","v":{"v":14583.333333333336,"d":"$14,583"}},{"$f":"'Trial 2'!CT38","v":{"v":14583.333333333336,"d":"$14,583"}},{"$f":"'Trial 2'!CU38","v":{"v":14583.333333333336,"d":"$14,583"}},{"$f":"'Trial 2'!CV38","v":{"v":14583.333333333336,"d":"$14,583"}},{"$f":"'Trial 2'!CW38","v":{"v":14583.333333333336,"d":"$14,583"}},{"$f":"'Trial 2'!CX38","v":{"v":14583.333333333336,"d":"$14,583"}},{"$f":"'Trial 2'!CY38","v":{"v":14583.333333333336,"d":"$14,583"}},{"$f":"'Trial 2'!CZ38","v":{"v":14583.333333333336,"d":"$14,583"}},{"$f":"SUM('Trial 2'!CO38:CZ38)","v":{"v":175000.0000000001,"d":"$175,000"}},{"$f":"'Trial 2'!DB38","v":{"v":14583.333333333336,"d":"$14,583"}},{"$f":"'Trial 2'!DC38","v":{"v":14583.333333333336,"d":"$14,583"}},{"$f":"'Trial 2'!DD38","v":{"v":14583.333333333336,"d":"$14,583"}},{"$f":"'Trial 2'!DE38","v":{"v":14583.333333333336,"d":"$14,583"}},{"$f":"'Trial 2'!DF38","v":{"v":14583.333333333336,"d":"$14,583"}},{"$f":"'Trial 2'!DG38","v":{"v":14583.333333333336,"d":"$14,583"}},{"$f":"'Trial 2'!DH38","v":{"v":14583.333333333336,"d":"$14,583"}},{"$f":"'Trial 2'!DI38","v":{"v":14583.333333333336,"d":"$14,583"}},{"$f":"'Trial 2'!DJ38","v":{"v":14583.333333333336,"d":"$14,583"}},{"$f":"'Trial 2'!DK38","v":{"v":14583.333333333336,"d":"$14,583"}},{"$f":"'Trial 2'!DL38","v":{"v":14583.333333333336,"d":"$14,583"}},{"$f":"'Trial 2'!DM38","v":{"v":14583.333333333336,"d":"$14,583"}},{"$f":"SUM('Trial 2'!DB38:DM38)","v":{"v":175000.0000000001,"d":"$175,000"}},{"$f":"'Trial 2'!DO38","v":{"v":14583.333333333336,"d":"$14,583"}},{"$f":"'Trial 2'!DP38","v":{"v":14583.333333333336,"d":"$14,583"}},{"$f":"'Trial 2'!DQ38","v":{"v":14583.333333333336,"d":"$14,583"}},{"$f":"'Trial 2'!DR38","v":{"v":14583.333333333336,"d":"$14,583"}},{"$f":"'Trial 2'!DS38","v":{"v":14583.333333333336,"d":"$14,583"}},{"$f":"'Trial 2'!DT38","v":{"v":14583.333333333336,"d":"$14,583"}},{"$f":"'Trial 2'!DU38","v":{"v":14583.333333333336,"d":"$14,583"}},{"$f":"'Trial 2'!DV38","v":{"v":14583.333333333336,"d":"$14,583"}},{"$f":"'Trial 2'!DW38","v":{"v":14583.333333333336,"d":"$14,583"}},{"$f":"'Trial 2'!DX38","v":{"v":14583.333333333336,"d":"$14,583"}},{"$f":"'Trial 2'!DY38","v":{"v":14583.333333333336,"d":"$14,583"}},{"$f":"'Trial 2'!DZ38","v":{"v":14583.333333333336,"d":"$14,583"}},{"$f":"SUM('Trial 2'!DO38:DZ38)","v":{"v":175000.0000000001,"d":"$175,000"}},{"$f":"'Trial 2'!EB38","v":{"v":14583.333333333336,"d":"$14,583"}},{"$f":"'Trial 2'!EC38","v":{"v":14583.333333333336,"d":"$14,583"}},{"$f":"'Trial 2'!ED38","v":{"v":14583.333333333336,"d":"$14,583"}},{"$f":"'Trial 2'!EE38","v":{"v":14583.333333333336,"d":"$14,583"}},{"$f":"'Trial 2'!EF38","v":{"v":14583.333333333336,"d":"$14,583"}},{"$f":"'Trial 2'!EG38","v":{"v":14583.333333333336,"d":"$14,583"}},{"$f":"'Trial 2'!EH38","v":{"v":14583.333333333336,"d":"$14,583"}},{"$f":"'Trial 2'!EI38","v":{"v":14583.333333333336,"d":"$14,583"}},{"$f":"'Trial 2'!EJ38","v":{"v":14583.333333333336,"d":"$14,583"}},{"$f":"'Trial 2'!EK38","v":{"v":14583.333333333336,"d":"$14,583"}},{"$f":"'Trial 2'!EL38","v":{"v":14583.333333333336,"d":"$14,583"}},{"$f":"'Trial 2'!EM38","v":{"v":14583.333333333336,"d":"$14,583"}},{"$f":"SUM('Trial 2'!EB38:EM38)","v":{"v":175000.0000000001,"d":"$175,000"}}]
[{"$f":"Labels!B98","v":"Trial 03"},{"$f":"'Trial 3'!B38","v":{"v":14583.333333333336,"d":"$14,583"}},{"$f":"'Trial 3'!C38","v":{"v":14583.333333333336,"d":"$14,583"}},{"$f":"'Trial 3'!D38","v":{"v":14583.333333333336,"d":"$14,583"}},{"$f":"'Trial 3'!E38","v":{"v":14583.333333333336,"d":"$14,583"}},{"$f":"'Trial 3'!F38","v":{"v":14583.333333333336,"d":"$14,583"}},{"$f":"'Trial 3'!G38","v":{"v":14583.333333333336,"d":"$14,583"}},{"$f":"'Trial 3'!H38","v":{"v":14583.333333333336,"d":"$14,583"}},{"$f":"'Trial 3'!I38","v":{"v":14583.333333333336,"d":"$14,583"}},{"$f":"'Trial 3'!J38","v":{"v":14583.333333333336,"d":"$14,583"}},{"$f":"'Trial 3'!K38","v":{"v":14583.333333333336,"d":"$14,583"}},{"$f":"'Trial 3'!L38","v":{"v":14583.333333333336,"d":"$14,583"}},{"$f":"'Trial 3'!M38","v":{"v":14583.333333333336,"d":"$14,583"}},{"$f":"SUM('Trial 3'!B38:M38)","v":{"v":175000.0000000001,"d":"$175,000"}},{"$f":"'Trial 3'!O38","v":{"v":14583.333333333336,"d":"$14,583"}},{"$f":"'Trial 3'!P38","v":{"v":14583.333333333336,"d":"$14,583"}},{"$f":"'Trial 3'!Q38","v":{"v":14583.333333333336,"d":"$14,583"}},{"$f":"'Trial 3'!R38","v":{"v":14583.333333333336,"d":"$14,583"}},{"$f":"'Trial 3'!S38","v":{"v":14583.333333333336,"d":"$14,583"}},{"$f":"'Trial 3'!T38","v":{"v":14583.333333333336,"d":"$14,583"}},{"$f":"'Trial 3'!U38","v":{"v":14583.333333333336,"d":"$14,583"}},{"$f":"'Trial 3'!V38","v":{"v":14583.333333333336,"d":"$14,583"}},{"$f":"'Trial 3'!W38","v":{"v":14583.333333333336,"d":"$14,583"}},{"$f":"'Trial 3'!X38","v":{"v":14583.333333333336,"d":"$14,583"}},{"$f":"'Trial 3'!Y38","v":{"v":14583.333333333336,"d":"$14,583"}},{"$f":"'Trial 3'!Z38","v":{"v":14583.333333333336,"d":"$14,583"}},{"$f":"SUM('Trial 3'!O38:Z38)","v":{"v":175000.0000000001,"d":"$175,000"}},{"$f":"'Trial 3'!AB38","v":{"v":14583.333333333336,"d":"$14,583"}},{"$f":"'Trial 3'!AC38","v":{"v":14583.333333333336,"d":"$14,583"}},{"$f":"'Trial 3'!AD38","v":{"v":14583.333333333336,"d":"$14,583"}},{"$f":"'Trial 3'!AE38","v":{"v":14583.333333333336,"d":"$14,583"}},{"$f":"'Trial 3'!AF38","v":{"v":14583.333333333336,"d":"$14,583"}},{"$f":"'Trial 3'!AG38","v":{"v":14583.333333333336,"d":"$14,583"}},{"$f":"'Trial 3'!AH38","v":{"v":14583.333333333336,"d":"$14,583"}},{"$f":"'Trial 3'!AI38","v":{"v":14583.333333333336,"d":"$14,583"}},{"$f":"'Trial 3'!AJ38","v":{"v":14583.333333333336,"d":"$14,583"}},{"$f":"'Trial 3'!AK38","v":{"v":14583.333333333336,"d":"$14,583"}},{"$f":"'Trial 3'!AL38","v":{"v":14583.333333333336,"d":"$14,583"}},{"$f":"'Trial 3'!AM38","v":{"v":14583.333333333336,"d":"$14,583"}},{"$f":"SUM('Trial 3'!AB38:AM38)","v":{"v":175000.0000000001,"d":"$175,000"}},{"$f":"'Trial 3'!AO38","v":{"v":14583.333333333336,"d":"$14,583"}},{"$f":"'Trial 3'!AP38","v":{"v":14583.333333333336,"d":"$14,583"}},{"$f":"'Trial 3'!AQ38","v":{"v":14583.333333333336,"d":"$14,583"}},{"$f":"'Trial 3'!AR38","v":{"v":14583.333333333336,"d":"$14,583"}},{"$f":"'Trial 3'!AS38","v":{"v":14583.333333333336,"d":"$14,583"}},{"$f":"'Trial 3'!AT38","v":{"v":14583.333333333336,"d":"$14,583"}},{"$f":"'Trial 3'!AU38","v":{"v":14583.333333333336,"d":"$14,583"}},{"$f":"'Trial 3'!AV38","v":{"v":14583.333333333336,"d":"$14,583"}},{"$f":"'Trial 3'!AW38","v":{"v":14583.333333333336,"d":"$14,583"}},{"$f":"'Trial 3'!AX38","v":{"v":14583.333333333336,"d":"$14,583"}},{"$f":"'Trial 3'!AY38","v":{"v":14583.333333333336,"d":"$14,583"}},{"$f":"'Trial 3'!AZ38","v":{"v":14583.333333333336,"d":"$14,583"}},{"$f":"SUM('Trial 3'!AO38:AZ38)","v":{"v":175000.0000000001,"d":"$175,000"}},{"$f":"'Trial 3'!BB38","v":{"v":14583.333333333336,"d":"$14,583"}},{"$f":"'Trial 3'!BC38","v":{"v":14583.333333333336,"d":"$14,583"}},{"$f":"'Trial 3'!BD38","v":{"v":14583.333333333336,"d":"$14,583"}},{"$f":"'Trial 3'!BE38","v":{"v":14583.333333333336,"d":"$14,583"}},{"$f":"'Trial 3'!BF38","v":{"v":14583.333333333336,"d":"$14,583"}},{"$f":"'Trial 3'!BG38","v":{"v":14583.333333333336,"d":"$14,583"}},{"$f":"'Trial 3'!BH38","v":{"v":14583.333333333336,"d":"$14,583"}},{"$f":"'Trial 3'!BI38","v":{"v":14583.333333333336,"d":"$14,583"}},{"$f":"'Trial 3'!BJ38","v":{"v":14583.333333333336,"d":"$14,583"}},{"$f":"'Trial 3'!BK38","v":{"v":14583.333333333336,"d":"$14,583"}},{"$f":"'Trial 3'!BL38","v":{"v":14583.333333333336,"d":"$14,583"}},{"$f":"'Trial 3'!BM38","v":{"v":14583.333333333336,"d":"$14,583"}},{"$f":"SUM('Trial 3'!BB38:BM38)","v":{"v":175000.0000000001,"d":"$175,000"}},{"$f":"'Trial 3'!BO38","v":{"v":14583.333333333336,"d":"$14,583"}},{"$f":"'Trial 3'!BP38","v":{"v":14583.333333333336,"d":"$14,583"}},{"$f":"'Trial 3'!BQ38","v":{"v":14583.333333333336,"d":"$14,583"}},{"$f":"'Trial 3'!BR38","v":{"v":14583.333333333336,"d":"$14,583"}},{"$f":"'Trial 3'!BS38","v":{"v":14583.333333333336,"d":"$14,583"}},{"$f":"'Trial 3'!BT38","v":{"v":14583.333333333336,"d":"$14,583"}},{"$f":"'Trial 3'!BU38","v":{"v":14583.333333333336,"d":"$14,583"}},{"$f":"'Trial 3'!BV38","v":{"v":14583.333333333336,"d":"$14,583"}},{"$f":"'Trial 3'!BW38","v":{"v":14583.333333333336,"d":"$14,583"}},{"$f":"'Trial 3'!BX38","v":{"v":14583.333333333336,"d":"$14,583"}},{"$f":"'Trial 3'!BY38","v":{"v":14583.333333333336,"d":"$14,583"}},{"$f":"'Trial 3'!BZ38","v":{"v":14583.333333333336,"d":"$14,583"}},{"$f":"SUM('Trial 3'!BO38:BZ38)","v":{"v":175000.0000000001,"d":"$175,000"}},{"$f":"'Trial 3'!CB38","v":{"v":14583.333333333336,"d":"$14,583"}},{"$f":"'Trial 3'!CC38","v":{"v":14583.333333333336,"d":"$14,583"}},{"$f":"'Trial 3'!CD38","v":{"v":14583.333333333336,"d":"$14,583"}},{"$f":"'Trial 3'!CE38","v":{"v":14583.333333333336,"d":"$14,583"}},{"$f":"'Trial 3'!CF38","v":{"v":14583.333333333336,"d":"$14,583"}},{"$f":"'Trial 3'!CG38","v":{"v":14583.333333333336,"d":"$14,583"}},{"$f":"'Trial 3'!CH38","v":{"v":14583.333333333336,"d":"$14,583"}},{"$f":"'Trial 3'!CI38","v":{"v":14583.333333333336,"d":"$14,583"}},{"$f":"'Trial 3'!CJ38","v":{"v":14583.333333333336,"d":"$14,583"}},{"$f":"'Trial 3'!CK38","v":{"v":14583.333333333336,"d":"$14,583"}},{"$f":"'Trial 3'!CL38","v":{"v":14583.333333333336,"d":"$14,583"}},{"$f":"'Trial 3'!CM38","v":{"v":14583.333333333336,"d":"$14,583"}},{"$f":"SUM('Trial 3'!CB38:CM38)","v":{"v":175000.0000000001,"d":"$175,000"}},{"$f":"'Trial 3'!CO38","v":{"v":14583.333333333336,"d":"$14,583"}},{"$f":"'Trial 3'!CP38","v":{"v":14583.333333333336,"d":"$14,583"}},{"$f":"'Trial 3'!CQ38","v":{"v":14583.333333333336,"d":"$14,583"}},{"$f":"'Trial 3'!CR38","v":{"v":14583.333333333336,"d":"$14,583"}},{"$f":"'Trial 3'!CS38","v":{"v":14583.333333333336,"d":"$14,583"}},{"$f":"'Trial 3'!CT38","v":{"v":14583.333333333336,"d":"$14,583"}},{"$f":"'Trial 3'!CU38","v":{"v":14583.333333333336,"d":"$14,583"}},{"$f":"'Trial 3'!CV38","v":{"v":14583.333333333336,"d":"$14,583"}},{"$f":"'Trial 3'!CW38","v":{"v":14583.333333333336,"d":"$14,583"}},{"$f":"'Trial 3'!CX38","v":{"v":14583.333333333336,"d":"$14,583"}},{"$f":"'Trial 3'!CY38","v":{"v":14583.333333333336,"d":"$14,583"}},{"$f":"'Trial 3'!CZ38","v":{"v":14583.333333333336,"d":"$14,583"}},{"$f":"SUM('Trial 3'!CO38:CZ38)","v":{"v":175000.0000000001,"d":"$175,000"}},{"$f":"'Trial 3'!DB38","v":{"v":14583.333333333336,"d":"$14,583"}},{"$f":"'Trial 3'!DC38","v":{"v":14583.333333333336,"d":"$14,583"}},{"$f":"'Trial 3'!DD38","v":{"v":14583.333333333336,"d":"$14,583"}},{"$f":"'Trial 3'!DE38","v":{"v":14583.333333333336,"d":"$14,583"}},{"$f":"'Trial 3'!DF38","v":{"v":14583.333333333336,"d":"$14,583"}},{"$f":"'Trial 3'!DG38","v":{"v":14583.333333333336,"d":"$14,583"}},{"$f":"'Trial 3'!DH38","v":{"v":14583.333333333336,"d":"$14,583"}},{"$f":"'Trial 3'!DI38","v":{"v":14583.333333333336,"d":"$14,583"}},{"$f":"'Trial 3'!DJ38","v":{"v":14583.333333333336,"d":"$14,583"}},{"$f":"'Trial 3'!DK38","v":{"v":14583.333333333336,"d":"$14,583"}},{"$f":"'Trial 3'!DL38","v":{"v":14583.333333333336,"d":"$14,583"}},{"$f":"'Trial 3'!DM38","v":{"v":14583.333333333336,"d":"$14,583"}},{"$f":"SUM('Trial 3'!DB38:DM38)","v":{"v":175000.0000000001,"d":"$175,000"}},{"$f":"'Trial 3'!DO38","v":{"v":14583.333333333336,"d":"$14,583"}},{"$f":"'Trial 3'!DP38","v":{"v":14583.333333333336,"d":"$14,583"}},{"$f":"'Trial 3'!DQ38","v":{"v":14583.333333333336,"d":"$14,583"}},{"$f":"'Trial 3'!DR38","v":{"v":14583.333333333336,"d":"$14,583"}},{"$f":"'Trial 3'!DS38","v":{"v":14583.333333333336,"d":"$14,583"}},{"$f":"'Trial 3'!DT38","v":{"v":14583.333333333336,"d":"$14,583"}},{"$f":"'Trial 3'!DU38","v":{"v":14583.333333333336,"d":"$14,583"}},{"$f":"'Trial 3'!DV38","v":{"v":14583.333333333336,"d":"$14,583"}},{"$f":"'Trial 3'!DW38","v":{"v":14583.333333333336,"d":"$14,583"}},{"$f":"'Trial 3'!DX38","v":{"v":14583.333333333336,"d":"$14,583"}},{"$f":"'Trial 3'!DY38","v":{"v":14583.333333333336,"d":"$14,583"}},{"$f":"'Trial 3'!DZ38","v":{"v":14583.333333333336,"d":"$14,583"}},{"$f":"SUM('Trial 3'!DO38:DZ38)","v":{"v":175000.0000000001,"d":"$175,000"}},{"$f":"'Trial 3'!EB38","v":{"v":14583.333333333336,"d":"$14,583"}},{"$f":"'Trial 3'!EC38","v":{"v":14583.333333333336,"d":"$14,583"}},{"$f":"'Trial 3'!ED38","v":{"v":14583.333333333336,"d":"$14,583"}},{"$f":"'Trial 3'!EE38","v":{"v":14583.333333333336,"d":"$14,583"}},{"$f":"'Trial 3'!EF38","v":{"v":14583.333333333336,"d":"$14,583"}},{"$f":"'Trial 3'!EG38","v":{"v":14583.333333333336,"d":"$14,583"}},{"$f":"'Trial 3'!EH38","v":{"v":14583.333333333336,"d":"$14,583"}},{"$f":"'Trial 3'!EI38","v":{"v":14583.333333333336,"d":"$14,583"}},{"$f":"'Trial 3'!EJ38","v":{"v":14583.333333333336,"d":"$14,583"}},{"$f":"'Trial 3'!EK38","v":{"v":14583.333333333336,"d":"$14,583"}},{"$f":"'Trial 3'!EL38","v":{"v":14583.333333333336,"d":"$14,583"}},{"$f":"'Trial 3'!EM38","v":{"v":14583.333333333336,"d":"$14,583"}},{"$f":"SUM('Trial 3'!EB38:EM38)","v":{"v":175000.0000000001,"d":"$175,000"}}]
[{"$f":"Labels!B99","v":"Trial 04"},{"$f":"'Trial 4'!B38","v":{"v":14583.333333333336,"d":"$14,583"}},{"$f":"'Trial 4'!C38","v":{"v":14583.333333333336,"d":"$14,583"}},{"$f":"'Trial 4'!D38","v":{"v":14583.333333333336,"d":"$14,583"}},{"$f":"'Trial 4'!E38","v":{"v":14583.333333333336,"d":"$14,583"}},{"$f":"'Trial 4'!F38","v":{"v":14583.333333333336,"d":"$14,583"}},{"$f":"'Trial 4'!G38","v":{"v":14583.333333333336,"d":"$14,583"}},{"$f":"'Trial 4'!H38","v":{"v":14583.333333333336,"d":"$14,583"}},{"$f":"'Trial 4'!I38","v":{"v":14583.333333333336,"d":"$14,583"}},{"$f":"'Trial 4'!J38","v":{"v":14583.333333333336,"d":"$14,583"}},{"$f":"'Trial 4'!K38","v":{"v":14583.333333333336,"d":"$14,583"}},{"$f":"'Trial 4'!L38","v":{"v":14583.333333333336,"d":"$14,583"}},{"$f":"'Trial 4'!M38","v":{"v":14583.333333333336,"d":"$14,583"}},{"$f":"SUM('Trial 4'!B38:M38)","v":{"v":175000.0000000001,"d":"$175,000"}},{"$f":"'Trial 4'!O38","v":{"v":14583.333333333336,"d":"$14,583"}},{"$f":"'Trial 4'!P38","v":{"v":14583.333333333336,"d":"$14,583"}},{"$f":"'Trial 4'!Q38","v":{"v":14583.333333333336,"d":"$14,583"}},{"$f":"'Trial 4'!R38","v":{"v":14583.333333333336,"d":"$14,583"}},{"$f":"'Trial 4'!S38","v":{"v":14583.333333333336,"d":"$14,583"}},{"$f":"'Trial 4'!T38","v":{"v":14583.333333333336,"d":"$14,583"}},{"$f":"'Trial 4'!U38","v":{"v":14583.333333333336,"d":"$14,583"}},{"$f":"'Trial 4'!V38","v":{"v":14583.333333333336,"d":"$14,583"}},{"$f":"'Trial 4'!W38","v":{"v":14583.333333333336,"d":"$14,583"}},{"$f":"'Trial 4'!X38","v":{"v":14583.333333333336,"d":"$14,583"}},{"$f":"'Trial 4'!Y38","v":{"v":14583.333333333336,"d":"$14,583"}},{"$f":"'Trial 4'!Z38","v":{"v":14583.333333333336,"d":"$14,583"}},{"$f":"SUM('Trial 4'!O38:Z38)","v":{"v":175000.0000000001,"d":"$175,000"}},{"$f":"'Trial 4'!AB38","v":{"v":14583.333333333336,"d":"$14,583"}},{"$f":"'Trial 4'!AC38","v":{"v":14583.333333333336,"d":"$14,583"}},{"$f":"'Trial 4'!AD38","v":{"v":14583.333333333336,"d":"$14,583"}},{"$f":"'Trial 4'!AE38","v":{"v":14583.333333333336,"d":"$14,583"}},{"$f":"'Trial 4'!AF38","v":{"v":14583.333333333336,"d":"$14,583"}},{"$f":"'Trial 4'!AG38","v":{"v":14583.333333333336,"d":"$14,583"}},{"$f":"'Trial 4'!AH38","v":{"v":14583.333333333336,"d":"$14,583"}},{"$f":"'Trial 4'!AI38","v":{"v":14583.333333333336,"d":"$14,583"}},{"$f":"'Trial 4'!AJ38","v":{"v":14583.333333333336,"d":"$14,583"}},{"$f":"'Trial 4'!AK38","v":{"v":14583.333333333336,"d":"$14,583"}},{"$f":"'Trial 4'!AL38","v":{"v":14583.333333333336,"d":"$14,583"}},{"$f":"'Trial 4'!AM38","v":{"v":14583.333333333336,"d":"$14,583"}},{"$f":"SUM('Trial 4'!AB38:AM38)","v":{"v":175000.0000000001,"d":"$175,000"}},{"$f":"'Trial 4'!AO38","v":{"v":14583.333333333336,"d":"$14,583"}},{"$f":"'Trial 4'!AP38","v":{"v":14583.333333333336,"d":"$14,583"}},{"$f":"'Trial 4'!AQ38","v":{"v":14583.333333333336,"d":"$14,583"}},{"$f":"'Trial 4'!AR38","v":{"v":14583.333333333336,"d":"$14,583"}},{"$f":"'Trial 4'!AS38","v":{"v":14583.333333333336,"d":"$14,583"}},{"$f":"'Trial 4'!AT38","v":{"v":14583.333333333336,"d":"$14,583"}},{"$f":"'Trial 4'!AU38","v":{"v":14583.333333333336,"d":"$14,583"}},{"$f":"'Trial 4'!AV38","v":{"v":14583.333333333336,"d":"$14,583"}},{"$f":"'Trial 4'!AW38","v":{"v":14583.333333333336,"d":"$14,583"}},{"$f":"'Trial 4'!AX38","v":{"v":14583.333333333336,"d":"$14,583"}},{"$f":"'Trial 4'!AY38","v":{"v":14583.333333333336,"d":"$14,583"}},{"$f":"'Trial 4'!AZ38","v":{"v":14583.333333333336,"d":"$14,583"}},{"$f":"SUM('Trial 4'!AO38:AZ38)","v":{"v":175000.0000000001,"d":"$175,000"}},{"$f":"'Trial 4'!BB38","v":{"v":14583.333333333336,"d":"$14,583"}},{"$f":"'Trial 4'!BC38","v":{"v":14583.333333333336,"d":"$14,583"}},{"$f":"'Trial 4'!BD38","v":{"v":14583.333333333336,"d":"$14,583"}},{"$f":"'Trial 4'!BE38","v":{"v":14583.333333333336,"d":"$14,583"}},{"$f":"'Trial 4'!BF38","v":{"v":14583.333333333336,"d":"$14,583"}},{"$f":"'Trial 4'!BG38","v":{"v":14583.333333333336,"d":"$14,583"}},{"$f":"'Trial 4'!BH38","v":{"v":14583.333333333336,"d":"$14,583"}},{"$f":"'Trial 4'!BI38","v":{"v":14583.333333333336,"d":"$14,583"}},{"$f":"'Trial 4'!BJ38","v":{"v":14583.333333333336,"d":"$14,583"}},{"$f":"'Trial 4'!BK38","v":{"v":14583.333333333336,"d":"$14,583"}},{"$f":"'Trial 4'!BL38","v":{"v":14583.333333333336,"d":"$14,583"}},{"$f":"'Trial 4'!BM38","v":{"v":14583.333333333336,"d":"$14,583"}},{"$f":"SUM('Trial 4'!BB38:BM38)","v":{"v":175000.0000000001,"d":"$175,000"}},{"$f":"'Trial 4'!BO38","v":{"v":14583.333333333336,"d":"$14,583"}},{"$f":"'Trial 4'!BP38","v":{"v":14583.333333333336,"d":"$14,583"}},{"$f":"'Trial 4'!BQ38","v":{"v":14583.333333333336,"d":"$14,583"}},{"$f":"'Trial 4'!BR38","v":{"v":14583.333333333336,"d":"$14,583"}},{"$f":"'Trial 4'!BS38","v":{"v":14583.333333333336,"d":"$14,583"}},{"$f":"'Trial 4'!BT38","v":{"v":14583.333333333336,"d":"$14,583"}},{"$f":"'Trial 4'!BU38","v":{"v":14583.333333333336,"d":"$14,583"}},{"$f":"'Trial 4'!BV38","v":{"v":14583.333333333336,"d":"$14,583"}},{"$f":"'Trial 4'!BW38","v":{"v":14583.333333333336,"d":"$14,583"}},{"$f":"'Trial 4'!BX38","v":{"v":14583.333333333336,"d":"$14,583"}},{"$f":"'Trial 4'!BY38","v":{"v":14583.333333333336,"d":"$14,583"}},{"$f":"'Trial 4'!BZ38","v":{"v":14583.333333333336,"d":"$14,583"}},{"$f":"SUM('Trial 4'!BO38:BZ38)","v":{"v":175000.0000000001,"d":"$175,000"}},{"$f":"'Trial 4'!CB38","v":{"v":14583.333333333336,"d":"$14,583"}},{"$f":"'Trial 4'!CC38","v":{"v":14583.333333333336,"d":"$14,583"}},{"$f":"'Trial 4'!CD38","v":{"v":14583.333333333336,"d":"$14,583"}},{"$f":"'Trial 4'!CE38","v":{"v":14583.333333333336,"d":"$14,583"}},{"$f":"'Trial 4'!CF38","v":{"v":14583.333333333336,"d":"$14,583"}},{"$f":"'Trial 4'!CG38","v":{"v":14583.333333333336,"d":"$14,583"}},{"$f":"'Trial 4'!CH38","v":{"v":14583.333333333336,"d":"$14,583"}},{"$f":"'Trial 4'!CI38","v":{"v":14583.333333333336,"d":"$14,583"}},{"$f":"'Trial 4'!CJ38","v":{"v":14583.333333333336,"d":"$14,583"}},{"$f":"'Trial 4'!CK38","v":{"v":14583.333333333336,"d":"$14,583"}},{"$f":"'Trial 4'!CL38","v":{"v":14583.333333333336,"d":"$14,583"}},{"$f":"'Trial 4'!CM38","v":{"v":14583.333333333336,"d":"$14,583"}},{"$f":"SUM('Trial 4'!CB38:CM38)","v":{"v":175000.0000000001,"d":"$175,000"}},{"$f":"'Trial 4'!CO38","v":{"v":14583.333333333336,"d":"$14,583"}},{"$f":"'Trial 4'!CP38","v":{"v":14583.333333333336,"d":"$14,583"}},{"$f":"'Trial 4'!CQ38","v":{"v":14583.333333333336,"d":"$14,583"}},{"$f":"'Trial 4'!CR38","v":{"v":14583.333333333336,"d":"$14,583"}},{"$f":"'Trial 4'!CS38","v":{"v":14583.333333333336,"d":"$14,583"}},{"$f":"'Trial 4'!CT38","v":{"v":14583.333333333336,"d":"$14,583"}},{"$f":"'Trial 4'!CU38","v":{"v":14583.333333333336,"d":"$14,583"}},{"$f":"'Trial 4'!CV38","v":{"v":14583.333333333336,"d":"$14,583"}},{"$f":"'Trial 4'!CW38","v":{"v":14583.333333333336,"d":"$14,583"}},{"$f":"'Trial 4'!CX38","v":{"v":14583.333333333336,"d":"$14,583"}},{"$f":"'Trial 4'!CY38","v":{"v":14583.333333333336,"d":"$14,583"}},{"$f":"'Trial 4'!CZ38","v":{"v":14583.333333333336,"d":"$14,583"}},{"$f":"SUM('Trial 4'!CO38:CZ38)","v":{"v":175000.0000000001,"d":"$175,000"}},{"$f":"'Trial 4'!DB38","v":{"v":14583.333333333336,"d":"$14,583"}},{"$f":"'Trial 4'!DC38","v":{"v":14583.333333333336,"d":"$14,583"}},{"$f":"'Trial 4'!DD38","v":{"v":14583.333333333336,"d":"$14,583"}},{"$f":"'Trial 4'!DE38","v":{"v":14583.333333333336,"d":"$14,583"}},{"$f":"'Trial 4'!DF38","v":{"v":14583.333333333336,"d":"$14,583"}},{"$f":"'Trial 4'!DG38","v":{"v":14583.333333333336,"d":"$14,583"}},{"$f":"'Trial 4'!DH38","v":{"v":14583.333333333336,"d":"$14,583"}},{"$f":"'Trial 4'!DI38","v":{"v":14583.333333333336,"d":"$14,583"}},{"$f":"'Trial 4'!DJ38","v":{"v":14583.333333333336,"d":"$14,583"}},{"$f":"'Trial 4'!DK38","v":{"v":14583.333333333336,"d":"$14,583"}},{"$f":"'Trial 4'!DL38","v":{"v":14583.333333333336,"d":"$14,583"}},{"$f":"'Trial 4'!DM38","v":{"v":14583.333333333336,"d":"$14,583"}},{"$f":"SUM('Trial 4'!DB38:DM38)","v":{"v":175000.0000000001,"d":"$175,000"}},{"$f":"'Trial 4'!DO38","v":{"v":14583.333333333336,"d":"$14,583"}},{"$f":"'Trial 4'!DP38","v":{"v":14583.333333333336,"d":"$14,583"}},{"$f":"'Trial 4'!DQ38","v":{"v":14583.333333333336,"d":"$14,583"}},{"$f":"'Trial 4'!DR38","v":{"v":14583.333333333336,"d":"$14,583"}},{"$f":"'Trial 4'!DS38","v":{"v":14583.333333333336,"d":"$14,583"}},{"$f":"'Trial 4'!DT38","v":{"v":14583.333333333336,"d":"$14,583"}},{"$f":"'Trial 4'!DU38","v":{"v":14583.333333333336,"d":"$14,583"}},{"$f":"'Trial 4'!DV38","v":{"v":14583.333333333336,"d":"$14,583"}},{"$f":"'Trial 4'!DW38","v":{"v":14583.333333333336,"d":"$14,583"}},{"$f":"'Trial 4'!DX38","v":{"v":14583.333333333336,"d":"$14,583"}},{"$f":"'Trial 4'!DY38","v":{"v":14583.333333333336,"d":"$14,583"}},{"$f":"'Trial 4'!DZ38","v":{"v":14583.333333333336,"d":"$14,583"}},{"$f":"SUM('Trial 4'!DO38:DZ38)","v":{"v":175000.0000000001,"d":"$175,000"}},{"$f":"'Trial 4'!EB38","v":{"v":14583.333333333336,"d":"$14,583"}},{"$f":"'Trial 4'!EC38","v":{"v":14583.333333333336,"d":"$14,583"}},{"$f":"'Trial 4'!ED38","v":{"v":14583.333333333336,"d":"$14,583"}},{"$f":"'Trial 4'!EE38","v":{"v":14583.333333333336,"d":"$14,583"}},{"$f":"'Trial 4'!EF38","v":{"v":14583.333333333336,"d":"$14,583"}},{"$f":"'Trial 4'!EG38","v":{"v":14583.333333333336,"d":"$14,583"}},{"$f":"'Trial 4'!EH38","v":{"v":14583.333333333336,"d":"$14,583"}},{"$f":"'Trial 4'!EI38","v":{"v":14583.333333333336,"d":"$14,583"}},{"$f":"'Trial 4'!EJ38","v":{"v":14583.333333333336,"d":"$14,583"}},{"$f":"'Trial 4'!EK38","v":{"v":14583.333333333336,"d":"$14,583"}},{"$f":"'Trial 4'!EL38","v":{"v":14583.333333333336,"d":"$14,583"}},{"$f":"'Trial 4'!EM38","v":{"v":14583.333333333336,"d":"$14,583"}},{"$f":"SUM('Trial 4'!EB38:EM38)","v":{"v":175000.0000000001,"d":"$175,000"}}]
[{"$f":"Labels!B100","v":"Trial 05"},{"$f":"'Trial 5'!B38","v":{"v":14583.333333333336,"d":"$14,583"}},{"$f":"'Trial 5'!C38","v":{"v":14583.333333333336,"d":"$14,583"}},{"$f":"'Trial 5'!D38","v":{"v":14583.333333333336,"d":"$14,583"}},{"$f":"'Trial 5'!E38","v":{"v":14583.333333333336,"d":"$14,583"}},{"$f":"'Trial 5'!F38","v":{"v":14583.333333333336,"d":"$14,583"}},{"$f":"'Trial 5'!G38","v":{"v":14583.333333333336,"d":"$14,583"}},{"$f":"'Trial 5'!H38","v":{"v":14583.333333333336,"d":"$14,583"}},{"$f":"'Trial 5'!I38","v":{"v":14583.333333333336,"d":"$14,583"}},{"$f":"'Trial 5'!J38","v":{"v":14583.333333333336,"d":"$14,583"}},{"$f":"'Trial 5'!K38","v":{"v":14583.333333333336,"d":"$14,583"}},{"$f":"'Trial 5'!L38","v":{"v":14583.333333333336,"d":"$14,583"}},{"$f":"'Trial 5'!M38","v":{"v":14583.333333333336,"d":"$14,583"}},{"$f":"SUM('Trial 5'!B38:M38)","v":{"v":175000.0000000001,"d":"$175,000"}},{"$f":"'Trial 5'!O38","v":{"v":14583.333333333336,"d":"$14,583"}},{"$f":"'Trial 5'!P38","v":{"v":14583.333333333336,"d":"$14,583"}},{"$f":"'Trial 5'!Q38","v":{"v":14583.333333333336,"d":"$14,583"}},{"$f":"'Trial 5'!R38","v":{"v":14583.333333333336,"d":"$14,583"}},{"$f":"'Trial 5'!S38","v":{"v":14583.333333333336,"d":"$14,583"}},{"$f":"'Trial 5'!T38","v":{"v":14583.333333333336,"d":"$14,583"}},{"$f":"'Trial 5'!U38","v":{"v":14583.333333333336,"d":"$14,583"}},{"$f":"'Trial 5'!V38","v":{"v":14583.333333333336,"d":"$14,583"}},{"$f":"'Trial 5'!W38","v":{"v":14583.333333333336,"d":"$14,583"}},{"$f":"'Trial 5'!X38","v":{"v":14583.333333333336,"d":"$14,583"}},{"$f":"'Trial 5'!Y38","v":{"v":14583.333333333336,"d":"$14,583"}},{"$f":"'Trial 5'!Z38","v":{"v":14583.333333333336,"d":"$14,583"}},{"$f":"SUM('Trial 5'!O38:Z38)","v":{"v":175000.0000000001,"d":"$175,000"}},{"$f":"'Trial 5'!AB38","v":{"v":14583.333333333336,"d":"$14,583"}},{"$f":"'Trial 5'!AC38","v":{"v":14583.333333333336,"d":"$14,583"}},{"$f":"'Trial 5'!AD38","v":{"v":14583.333333333336,"d":"$14,583"}},{"$f":"'Trial 5'!AE38","v":{"v":14583.333333333336,"d":"$14,583"}},{"$f":"'Trial 5'!AF38","v":{"v":14583.333333333336,"d":"$14,583"}},{"$f":"'Trial 5'!AG38","v":{"v":14583.333333333336,"d":"$14,583"}},{"$f":"'Trial 5'!AH38","v":{"v":14583.333333333336,"d":"$14,583"}},{"$f":"'Trial 5'!AI38","v":{"v":14583.333333333336,"d":"$14,583"}},{"$f":"'Trial 5'!AJ38","v":{"v":14583.333333333336,"d":"$14,583"}},{"$f":"'Trial 5'!AK38","v":{"v":14583.333333333336,"d":"$14,583"}},{"$f":"'Trial 5'!AL38","v":{"v":14583.333333333336,"d":"$14,583"}},{"$f":"'Trial 5'!AM38","v":{"v":14583.333333333336,"d":"$14,583"}},{"$f":"SUM('Trial 5'!AB38:AM38)","v":{"v":175000.0000000001,"d":"$175,000"}},{"$f":"'Trial 5'!AO38","v":{"v":14583.333333333336,"d":"$14,583"}},{"$f":"'Trial 5'!AP38","v":{"v":14583.333333333336,"d":"$14,583"}},{"$f":"'Trial 5'!AQ38","v":{"v":14583.333333333336,"d":"$14,583"}},{"$f":"'Trial 5'!AR38","v":{"v":14583.333333333336,"d":"$14,583"}},{"$f":"'Trial 5'!AS38","v":{"v":14583.333333333336,"d":"$14,583"}},{"$f":"'Trial 5'!AT38","v":{"v":14583.333333333336,"d":"$14,583"}},{"$f":"'Trial 5'!AU38","v":{"v":14583.333333333336,"d":"$14,583"}},{"$f":"'Trial 5'!AV38","v":{"v":14583.333333333336,"d":"$14,583"}},{"$f":"'Trial 5'!AW38","v":{"v":14583.333333333336,"d":"$14,583"}},{"$f":"'Trial 5'!AX38","v":{"v":14583.333333333336,"d":"$14,583"}},{"$f":"'Trial 5'!AY38","v":{"v":14583.333333333336,"d":"$14,583"}},{"$f":"'Trial 5'!AZ38","v":{"v":14583.333333333336,"d":"$14,583"}},{"$f":"SUM('Trial 5'!AO38:AZ38)","v":{"v":175000.0000000001,"d":"$175,000"}},{"$f":"'Trial 5'!BB38","v":{"v":14583.333333333336,"d":"$14,583"}},{"$f":"'Trial 5'!BC38","v":{"v":14583.333333333336,"d":"$14,583"}},{"$f":"'Trial 5'!BD38","v":{"v":14583.333333333336,"d":"$14,583"}},{"$f":"'Trial 5'!BE38","v":{"v":14583.333333333336,"d":"$14,583"}},{"$f":"'Trial 5'!BF38","v":{"v":14583.333333333336,"d":"$14,583"}},{"$f":"'Trial 5'!BG38","v":{"v":14583.333333333336,"d":"$14,583"}},{"$f":"'Trial 5'!BH38","v":{"v":14583.333333333336,"d":"$14,583"}},{"$f":"'Trial 5'!BI38","v":{"v":14583.333333333336,"d":"$14,583"}},{"$f":"'Trial 5'!BJ38","v":{"v":14583.333333333336,"d":"$14,583"}},{"$f":"'Trial 5'!BK38","v":{"v":14583.333333333336,"d":"$14,583"}},{"$f":"'Trial 5'!BL38","v":{"v":14583.333333333336,"d":"$14,583"}},{"$f":"'Trial 5'!BM38","v":{"v":14583.333333333336,"d":"$14,583"}},{"$f":"SUM('Trial 5'!BB38:BM38)","v":{"v":175000.0000000001,"d":"$175,000"}},{"$f":"'Trial 5'!BO38","v":{"v":14583.333333333336,"d":"$14,583"}},{"$f":"'Trial 5'!BP38","v":{"v":14583.333333333336,"d":"$14,583"}},{"$f":"'Trial 5'!BQ38","v":{"v":14583.333333333336,"d":"$14,583"}},{"$f":"'Trial 5'!BR38","v":{"v":14583.333333333336,"d":"$14,583"}},{"$f":"'Trial 5'!BS38","v":{"v":14583.333333333336,"d":"$14,583"}},{"$f":"'Trial 5'!BT38","v":{"v":14583.333333333336,"d":"$14,583"}},{"$f":"'Trial 5'!BU38","v":{"v":14583.333333333336,"d":"$14,583"}},{"$f":"'Trial 5'!BV38","v":{"v":14583.333333333336,"d":"$14,583"}},{"$f":"'Trial 5'!BW38","v":{"v":14583.333333333336,"d":"$14,583"}},{"$f":"'Trial 5'!BX38","v":{"v":14583.333333333336,"d":"$14,583"}},{"$f":"'Trial 5'!BY38","v":{"v":14583.333333333336,"d":"$14,583"}},{"$f":"'Trial 5'!BZ38","v":{"v":14583.333333333336,"d":"$14,583"}},{"$f":"SUM('Trial 5'!BO38:BZ38)","v":{"v":175000.0000000001,"d":"$175,000"}},{"$f":"'Trial 5'!CB38","v":{"v":14583.333333333336,"d":"$14,583"}},{"$f":"'Trial 5'!CC38","v":{"v":14583.333333333336,"d":"$14,583"}},{"$f":"'Trial 5'!CD38","v":{"v":14583.333333333336,"d":"$14,583"}},{"$f":"'Trial 5'!CE38","v":{"v":14583.333333333336,"d":"$14,583"}},{"$f":"'Trial 5'!CF38","v":{"v":14583.333333333336,"d":"$14,583"}},{"$f":"'Trial 5'!CG38","v":{"v":14583.333333333336,"d":"$14,583"}},{"$f":"'Trial 5'!CH38","v":{"v":14583.333333333336,"d":"$14,583"}},{"$f":"'Trial 5'!CI38","v":{"v":14583.333333333336,"d":"$14,583"}},{"$f":"'Trial 5'!CJ38","v":{"v":14583.333333333336,"d":"$14,583"}},{"$f":"'Trial 5'!CK38","v":{"v":14583.333333333336,"d":"$14,583"}},{"$f":"'Trial 5'!CL38","v":{"v":14583.333333333336,"d":"$14,583"}},{"$f":"'Trial 5'!CM38","v":{"v":14583.333333333336,"d":"$14,583"}},{"$f":"SUM('Trial 5'!CB38:CM38)","v":{"v":175000.0000000001,"d":"$175,000"}},{"$f":"'Trial 5'!CO38","v":{"v":14583.333333333336,"d":"$14,583"}},{"$f":"'Trial 5'!CP38","v":{"v":14583.333333333336,"d":"$14,583"}},{"$f":"'Trial 5'!CQ38","v":{"v":14583.333333333336,"d":"$14,583"}},{"$f":"'Trial 5'!CR38","v":{"v":14583.333333333336,"d":"$14,583"}},{"$f":"'Trial 5'!CS38","v":{"v":14583.333333333336,"d":"$14,583"}},{"$f":"'Trial 5'!CT38","v":{"v":14583.333333333336,"d":"$14,583"}},{"$f":"'Trial 5'!CU38","v":{"v":14583.333333333336,"d":"$14,583"}},{"$f":"'Trial 5'!CV38","v":{"v":14583.333333333336,"d":"$14,583"}},{"$f":"'Trial 5'!CW38","v":{"v":14583.333333333336,"d":"$14,583"}},{"$f":"'Trial 5'!CX38","v":{"v":14583.333333333336,"d":"$14,583"}},{"$f":"'Trial 5'!CY38","v":{"v":14583.333333333336,"d":"$14,583"}},{"$f":"'Trial 5'!CZ38","v":{"v":14583.333333333336,"d":"$14,583"}},{"$f":"SUM('Trial 5'!CO38:CZ38)","v":{"v":175000.0000000001,"d":"$175,000"}},{"$f":"'Trial 5'!DB38","v":{"v":14583.333333333336,"d":"$14,583"}},{"$f":"'Trial 5'!DC38","v":{"v":14583.333333333336,"d":"$14,583"}},{"$f":"'Trial 5'!DD38","v":{"v":14583.333333333336,"d":"$14,583"}},{"$f":"'Trial 5'!DE38","v":{"v":14583.333333333336,"d":"$14,583"}},{"$f":"'Trial 5'!DF38","v":{"v":14583.333333333336,"d":"$14,583"}},{"$f":"'Trial 5'!DG38","v":{"v":14583.333333333336,"d":"$14,583"}},{"$f":"'Trial 5'!DH38","v":{"v":14583.333333333336,"d":"$14,583"}},{"$f":"'Trial 5'!DI38","v":{"v":14583.333333333336,"d":"$14,583"}},{"$f":"'Trial 5'!DJ38","v":{"v":14583.333333333336,"d":"$14,583"}},{"$f":"'Trial 5'!DK38","v":{"v":14583.333333333336,"d":"$14,583"}},{"$f":"'Trial 5'!DL38","v":{"v":14583.333333333336,"d":"$14,583"}},{"$f":"'Trial 5'!DM38","v":{"v":14583.333333333336,"d":"$14,583"}},{"$f":"SUM('Trial 5'!DB38:DM38)","v":{"v":175000.0000000001,"d":"$175,000"}},{"$f":"'Trial 5'!DO38","v":{"v":14583.333333333336,"d":"$14,583"}},{"$f":"'Trial 5'!DP38","v":{"v":14583.333333333336,"d":"$14,583"}},{"$f":"'Trial 5'!DQ38","v":{"v":14583.333333333336,"d":"$14,583"}},{"$f":"'Trial 5'!DR38","v":{"v":14583.333333333336,"d":"$14,583"}},{"$f":"'Trial 5'!DS38","v":{"v":14583.333333333336,"d":"$14,583"}},{"$f":"'Trial 5'!DT38","v":{"v":14583.333333333336,"d":"$14,583"}},{"$f":"'Trial 5'!DU38","v":{"v":14583.333333333336,"d":"$14,583"}},{"$f":"'Trial 5'!DV38","v":{"v":14583.333333333336,"d":"$14,583"}},{"$f":"'Trial 5'!DW38","v":{"v":14583.333333333336,"d":"$14,583"}},{"$f":"'Trial 5'!DX38","v":{"v":14583.333333333336,"d":"$14,583"}},{"$f":"'Trial 5'!DY38","v":{"v":14583.333333333336,"d":"$14,583"}},{"$f":"'Trial 5'!DZ38","v":{"v":14583.333333333336,"d":"$14,583"}},{"$f":"SUM('Trial 5'!DO38:DZ38)","v":{"v":175000.0000000001,"d":"$175,000"}},{"$f":"'Trial 5'!EB38","v":{"v":14583.333333333336,"d":"$14,583"}},{"$f":"'Trial 5'!EC38","v":{"v":14583.333333333336,"d":"$14,583"}},{"$f":"'Trial 5'!ED38","v":{"v":14583.333333333336,"d":"$14,583"}},{"$f":"'Trial 5'!EE38","v":{"v":14583.333333333336,"d":"$14,583"}},{"$f":"'Trial 5'!EF38","v":{"v":14583.333333333336,"d":"$14,583"}},{"$f":"'Trial 5'!EG38","v":{"v":14583.333333333336,"d":"$14,583"}},{"$f":"'Trial 5'!EH38","v":{"v":14583.333333333336,"d":"$14,583"}},{"$f":"'Trial 5'!EI38","v":{"v":14583.333333333336,"d":"$14,583"}},{"$f":"'Trial 5'!EJ38","v":{"v":14583.333333333336,"d":"$14,583"}},{"$f":"'Trial 5'!EK38","v":{"v":14583.333333333336,"d":"$14,583"}},{"$f":"'Trial 5'!EL38","v":{"v":14583.333333333336,"d":"$14,583"}},{"$f":"'Trial 5'!EM38","v":{"v":14583.333333333336,"d":"$14,583"}},{"$f":"SUM('Trial 5'!EB38:EM38)","v":{"v":175000.0000000001,"d":"$175,000"}}]
[{"$f":"Labels!B101","v":"Trial 06"},{"$f":"'Trial 6'!B38","v":{"v":14583.333333333336,"d":"$14,583"}},{"$f":"'Trial 6'!C38","v":{"v":14583.333333333336,"d":"$14,583"}},{"$f":"'Trial 6'!D38","v":{"v":14583.333333333336,"d":"$14,583"}},{"$f":"'Trial 6'!E38","v":{"v":14583.333333333336,"d":"$14,583"}},{"$f":"'Trial 6'!F38","v":{"v":14583.333333333336,"d":"$14,583"}},{"$f":"'Trial 6'!G38","v":{"v":14583.333333333336,"d":"$14,583"}},{"$f":"'Trial 6'!H38","v":{"v":14583.333333333336,"d":"$14,583"}},{"$f":"'Trial 6'!I38","v":{"v":14583.333333333336,"d":"$14,583"}},{"$f":"'Trial 6'!J38","v":{"v":14583.333333333336,"d":"$14,583"}},{"$f":"'Trial 6'!K38","v":{"v":14583.333333333336,"d":"$14,583"}},{"$f":"'Trial 6'!L38","v":{"v":14583.333333333336,"d":"$14,583"}},{"$f":"'Trial 6'!M38","v":{"v":14583.333333333336,"d":"$14,583"}},{"$f":"SUM('Trial 6'!B38:M38)","v":{"v":175000.0000000001,"d":"$175,000"}},{"$f":"'Trial 6'!O38","v":{"v":14583.333333333336,"d":"$14,583"}},{"$f":"'Trial 6'!P38","v":{"v":14583.333333333336,"d":"$14,583"}},{"$f":"'Trial 6'!Q38","v":{"v":14583.333333333336,"d":"$14,583"}},{"$f":"'Trial 6'!R38","v":{"v":14583.333333333336,"d":"$14,583"}},{"$f":"'Trial 6'!S38","v":{"v":14583.333333333336,"d":"$14,583"}},{"$f":"'Trial 6'!T38","v":{"v":14583.333333333336,"d":"$14,583"}},{"$f":"'Trial 6'!U38","v":{"v":14583.333333333336,"d":"$14,583"}},{"$f":"'Trial 6'!V38","v":{"v":14583.333333333336,"d":"$14,583"}},{"$f":"'Trial 6'!W38","v":{"v":14583.333333333336,"d":"$14,583"}},{"$f":"'Trial 6'!X38","v":{"v":14583.333333333336,"d":"$14,583"}},{"$f":"'Trial 6'!Y38","v":{"v":14583.333333333336,"d":"$14,583"}},{"$f":"'Trial 6'!Z38","v":{"v":14583.333333333336,"d":"$14,583"}},{"$f":"SUM('Trial 6'!O38:Z38)","v":{"v":175000.0000000001,"d":"$175,000"}},{"$f":"'Trial 6'!AB38","v":{"v":14583.333333333336,"d":"$14,583"}},{"$f":"'Trial 6'!AC38","v":{"v":14583.333333333336,"d":"$14,583"}},{"$f":"'Trial 6'!AD38","v":{"v":14583.333333333336,"d":"$14,583"}},{"$f":"'Trial 6'!AE38","v":{"v":14583.333333333336,"d":"$14,583"}},{"$f":"'Trial 6'!AF38","v":{"v":14583.333333333336,"d":"$14,583"}},{"$f":"'Trial 6'!AG38","v":{"v":14583.333333333336,"d":"$14,583"}},{"$f":"'Trial 6'!AH38","v":{"v":14583.333333333336,"d":"$14,583"}},{"$f":"'Trial 6'!AI38","v":{"v":14583.333333333336,"d":"$14,583"}},{"$f":"'Trial 6'!AJ38","v":{"v":14583.333333333336,"d":"$14,583"}},{"$f":"'Trial 6'!AK38","v":{"v":14583.333333333336,"d":"$14,583"}},{"$f":"'Trial 6'!AL38","v":{"v":14583.333333333336,"d":"$14,583"}},{"$f":"'Trial 6'!AM38","v":{"v":14583.333333333336,"d":"$14,583"}},{"$f":"SUM('Trial 6'!AB38:AM38)","v":{"v":175000.0000000001,"d":"$175,000"}},{"$f":"'Trial 6'!AO38","v":{"v":14583.333333333336,"d":"$14,583"}},{"$f":"'Trial 6'!AP38","v":{"v":14583.333333333336,"d":"$14,583"}},{"$f":"'Trial 6'!AQ38","v":{"v":14583.333333333336,"d":"$14,583"}},{"$f":"'Trial 6'!AR38","v":{"v":14583.333333333336,"d":"$14,583"}},{"$f":"'Trial 6'!AS38","v":{"v":14583.333333333336,"d":"$14,583"}},{"$f":"'Trial 6'!AT38","v":{"v":14583.333333333336,"d":"$14,583"}},{"$f":"'Trial 6'!AU38","v":{"v":14583.333333333336,"d":"$14,583"}},{"$f":"'Trial 6'!AV38","v":{"v":14583.333333333336,"d":"$14,583"}},{"$f":"'Trial 6'!AW38","v":{"v":14583.333333333336,"d":"$14,583"}},{"$f":"'Trial 6'!AX38","v":{"v":14583.333333333336,"d":"$14,583"}},{"$f":"'Trial 6'!AY38","v":{"v":14583.333333333336,"d":"$14,583"}},{"$f":"'Trial 6'!AZ38","v":{"v":14583.333333333336,"d":"$14,583"}},{"$f":"SUM('Trial 6'!AO38:AZ38)","v":{"v":175000.0000000001,"d":"$175,000"}},{"$f":"'Trial 6'!BB38","v":{"v":14583.333333333336,"d":"$14,583"}},{"$f":"'Trial 6'!BC38","v":{"v":14583.333333333336,"d":"$14,583"}},{"$f":"'Trial 6'!BD38","v":{"v":14583.333333333336,"d":"$14,583"}},{"$f":"'Trial 6'!BE38","v":{"v":14583.333333333336,"d":"$14,583"}},{"$f":"'Trial 6'!BF38","v":{"v":14583.333333333336,"d":"$14,583"}},{"$f":"'Trial 6'!BG38","v":{"v":14583.333333333336,"d":"$14,583"}},{"$f":"'Trial 6'!BH38","v":{"v":14583.333333333336,"d":"$14,583"}},{"$f":"'Trial 6'!BI38","v":{"v":14583.333333333336,"d":"$14,583"}},{"$f":"'Trial 6'!BJ38","v":{"v":14583.333333333336,"d":"$14,583"}},{"$f":"'Trial 6'!BK38","v":{"v":14583.333333333336,"d":"$14,583"}},{"$f":"'Trial 6'!BL38","v":{"v":14583.333333333336,"d":"$14,583"}},{"$f":"'Trial 6'!BM38","v":{"v":14583.333333333336,"d":"$14,583"}},{"$f":"SUM('Trial 6'!BB38:BM38)","v":{"v":175000.0000000001,"d":"$175,000"}},{"$f":"'Trial 6'!BO38","v":{"v":14583.333333333336,"d":"$14,583"}},{"$f":"'Trial 6'!BP38","v":{"v":14583.333333333336,"d":"$14,583"}},{"$f":"'Trial 6'!BQ38","v":{"v":14583.333333333336,"d":"$14,583"}},{"$f":"'Trial 6'!BR38","v":{"v":14583.333333333336,"d":"$14,583"}},{"$f":"'Trial 6'!BS38","v":{"v":14583.333333333336,"d":"$14,583"}},{"$f":"'Trial 6'!BT38","v":{"v":14583.333333333336,"d":"$14,583"}},{"$f":"'Trial 6'!BU38","v":{"v":14583.333333333336,"d":"$14,583"}},{"$f":"'Trial 6'!BV38","v":{"v":14583.333333333336,"d":"$14,583"}},{"$f":"'Trial 6'!BW38","v":{"v":14583.333333333336,"d":"$14,583"}},{"$f":"'Trial 6'!BX38","v":{"v":14583.333333333336,"d":"$14,583"}},{"$f":"'Trial 6'!BY38","v":{"v":14583.333333333336,"d":"$14,583"}},{"$f":"'Trial 6'!BZ38","v":{"v":14583.333333333336,"d":"$14,583"}},{"$f":"SUM('Trial 6'!BO38:BZ38)","v":{"v":175000.0000000001,"d":"$175,000"}},{"$f":"'Trial 6'!CB38","v":{"v":14583.333333333336,"d":"$14,583"}},{"$f":"'Trial 6'!CC38","v":{"v":14583.333333333336,"d":"$14,583"}},{"$f":"'Trial 6'!CD38","v":{"v":14583.333333333336,"d":"$14,583"}},{"$f":"'Trial 6'!CE38","v":{"v":14583.333333333336,"d":"$14,583"}},{"$f":"'Trial 6'!CF38","v":{"v":14583.333333333336,"d":"$14,583"}},{"$f":"'Trial 6'!CG38","v":{"v":14583.333333333336,"d":"$14,583"}},{"$f":"'Trial 6'!CH38","v":{"v":14583.333333333336,"d":"$14,583"}},{"$f":"'Trial 6'!CI38","v":{"v":14583.333333333336,"d":"$14,583"}},{"$f":"'Trial 6'!CJ38","v":{"v":14583.333333333336,"d":"$14,583"}},{"$f":"'Trial 6'!CK38","v":{"v":14583.333333333336,"d":"$14,583"}},{"$f":"'Trial 6'!CL38","v":{"v":14583.333333333336,"d":"$14,583"}},{"$f":"'Trial 6'!CM38","v":{"v":14583.333333333336,"d":"$14,583"}},{"$f":"SUM('Trial 6'!CB38:CM38)","v":{"v":175000.0000000001,"d":"$175,000"}},{"$f":"'Trial 6'!CO38","v":{"v":14583.333333333336,"d":"$14,583"}},{"$f":"'Trial 6'!CP38","v":{"v":14583.333333333336,"d":"$14,583"}},{"$f":"'Trial 6'!CQ38","v":{"v":14583.333333333336,"d":"$14,583"}},{"$f":"'Trial 6'!CR38","v":{"v":14583.333333333336,"d":"$14,583"}},{"$f":"'Trial 6'!CS38","v":{"v":14583.333333333336,"d":"$14,583"}},{"$f":"'Trial 6'!CT38","v":{"v":14583.333333333336,"d":"$14,583"}},{"$f":"'Trial 6'!CU38","v":{"v":14583.333333333336,"d":"$14,583"}},{"$f":"'Trial 6'!CV38","v":{"v":14583.333333333336,"d":"$14,583"}},{"$f":"'Trial 6'!CW38","v":{"v":14583.333333333336,"d":"$14,583"}},{"$f":"'Trial 6'!CX38","v":{"v":14583.333333333336,"d":"$14,583"}},{"$f":"'Trial 6'!CY38","v":{"v":14583.333333333336,"d":"$14,583"}},{"$f":"'Trial 6'!CZ38","v":{"v":14583.333333333336,"d":"$14,583"}},{"$f":"SUM('Trial 6'!CO38:CZ38)","v":{"v":175000.0000000001,"d":"$175,000"}},{"$f":"'Trial 6'!DB38","v":{"v":14583.333333333336,"d":"$14,583"}},{"$f":"'Trial 6'!DC38","v":{"v":14583.333333333336,"d":"$14,583"}},{"$f":"'Trial 6'!DD38","v":{"v":14583.333333333336,"d":"$14,583"}},{"$f":"'Trial 6'!DE38","v":{"v":14583.333333333336,"d":"$14,583"}},{"$f":"'Trial 6'!DF38","v":{"v":14583.333333333336,"d":"$14,583"}},{"$f":"'Trial 6'!DG38","v":{"v":14583.333333333336,"d":"$14,583"}},{"$f":"'Trial 6'!DH38","v":{"v":14583.333333333336,"d":"$14,583"}},{"$f":"'Trial 6'!DI38","v":{"v":14583.333333333336,"d":"$14,583"}},{"$f":"'Trial 6'!DJ38","v":{"v":14583.333333333336,"d":"$14,583"}},{"$f":"'Trial 6'!DK38","v":{"v":14583.333333333336,"d":"$14,583"}},{"$f":"'Trial 6'!DL38","v":{"v":14583.333333333336,"d":"$14,583"}},{"$f":"'Trial 6'!DM38","v":{"v":14583.333333333336,"d":"$14,583"}},{"$f":"SUM('Trial 6'!DB38:DM38)","v":{"v":175000.0000000001,"d":"$175,000"}},{"$f":"'Trial 6'!DO38","v":{"v":14583.333333333336,"d":"$14,583"}},{"$f":"'Trial 6'!DP38","v":{"v":14583.333333333336,"d":"$14,583"}},{"$f":"'Trial 6'!DQ38","v":{"v":14583.333333333336,"d":"$14,583"}},{"$f":"'Trial 6'!DR38","v":{"v":14583.333333333336,"d":"$14,583"}},{"$f":"'Trial 6'!DS38","v":{"v":14583.333333333336,"d":"$14,583"}},{"$f":"'Trial 6'!DT38","v":{"v":14583.333333333336,"d":"$14,583"}},{"$f":"'Trial 6'!DU38","v":{"v":14583.333333333336,"d":"$14,583"}},{"$f":"'Trial 6'!DV38","v":{"v":14583.333333333336,"d":"$14,583"}},{"$f":"'Trial 6'!DW38","v":{"v":14583.333333333336,"d":"$14,583"}},{"$f":"'Trial 6'!DX38","v":{"v":14583.333333333336,"d":"$14,583"}},{"$f":"'Trial 6'!DY38","v":{"v":14583.333333333336,"d":"$14,583"}},{"$f":"'Trial 6'!DZ38","v":{"v":14583.333333333336,"d":"$14,583"}},{"$f":"SUM('Trial 6'!DO38:DZ38)","v":{"v":175000.0000000001,"d":"$175,000"}},{"$f":"'Trial 6'!EB38","v":{"v":14583.333333333336,"d":"$14,583"}},{"$f":"'Trial 6'!EC38","v":{"v":14583.333333333336,"d":"$14,583"}},{"$f":"'Trial 6'!ED38","v":{"v":14583.333333333336,"d":"$14,583"}},{"$f":"'Trial 6'!EE38","v":{"v":14583.333333333336,"d":"$14,583"}},{"$f":"'Trial 6'!EF38","v":{"v":14583.333333333336,"d":"$14,583"}},{"$f":"'Trial 6'!EG38","v":{"v":14583.333333333336,"d":"$14,583"}},{"$f":"'Trial 6'!EH38","v":{"v":14583.333333333336,"d":"$14,583"}},{"$f":"'Trial 6'!EI38","v":{"v":14583.333333333336,"d":"$14,583"}},{"$f":"'Trial 6'!EJ38","v":{"v":14583.333333333336,"d":"$14,583"}},{"$f":"'Trial 6'!EK38","v":{"v":14583.333333333336,"d":"$14,583"}},{"$f":"'Trial 6'!EL38","v":{"v":14583.333333333336,"d":"$14,583"}},{"$f":"'Trial 6'!EM38","v":{"v":14583.333333333336,"d":"$14,583"}},{"$f":"SUM('Trial 6'!EB38:EM38)","v":{"v":175000.0000000001,"d":"$175,000"}}]
[{"$f":"Labels!B102","v":"Trial 07"},{"$f":"'Trial 7'!B38","v":{"v":14583.333333333336,"d":"$14,583"}},{"$f":"'Trial 7'!C38","v":{"v":14583.333333333336,"d":"$14,583"}},{"$f":"'Trial 7'!D38","v":{"v":14583.333333333336,"d":"$14,583"}},{"$f":"'Trial 7'!E38","v":{"v":14583.333333333336,"d":"$14,583"}},{"$f":"'Trial 7'!F38","v":{"v":14583.333333333336,"d":"$14,583"}},{"$f":"'Trial 7'!G38","v":{"v":14583.333333333336,"d":"$14,583"}},{"$f":"'Trial 7'!H38","v":{"v":14583.333333333336,"d":"$14,583"}},{"$f":"'Trial 7'!I38","v":{"v":14583.333333333336,"d":"$14,583"}},{"$f":"'Trial 7'!J38","v":{"v":14583.333333333336,"d":"$14,583"}},{"$f":"'Trial 7'!K38","v":{"v":14583.333333333336,"d":"$14,583"}},{"$f":"'Trial 7'!L38","v":{"v":14583.333333333336,"d":"$14,583"}},{"$f":"'Trial 7'!M38","v":{"v":14583.333333333336,"d":"$14,583"}},{"$f":"SUM('Trial 7'!B38:M38)","v":{"v":175000.0000000001,"d":"$175,000"}},{"$f":"'Trial 7'!O38","v":{"v":14583.333333333336,"d":"$14,583"}},{"$f":"'Trial 7'!P38","v":{"v":14583.333333333336,"d":"$14,583"}},{"$f":"'Trial 7'!Q38","v":{"v":14583.333333333336,"d":"$14,583"}},{"$f":"'Trial 7'!R38","v":{"v":14583.333333333336,"d":"$14,583"}},{"$f":"'Trial 7'!S38","v":{"v":14583.333333333336,"d":"$14,583"}},{"$f":"'Trial 7'!T38","v":{"v":14583.333333333336,"d":"$14,583"}},{"$f":"'Trial 7'!U38","v":{"v":14583.333333333336,"d":"$14,583"}},{"$f":"'Trial 7'!V38","v":{"v":14583.333333333336,"d":"$14,583"}},{"$f":"'Trial 7'!W38","v":{"v":14583.333333333336,"d":"$14,583"}},{"$f":"'Trial 7'!X38","v":{"v":14583.333333333336,"d":"$14,583"}},{"$f":"'Trial 7'!Y38","v":{"v":14583.333333333336,"d":"$14,583"}},{"$f":"'Trial 7'!Z38","v":{"v":14583.333333333336,"d":"$14,583"}},{"$f":"SUM('Trial 7'!O38:Z38)","v":{"v":175000.0000000001,"d":"$175,000"}},{"$f":"'Trial 7'!AB38","v":{"v":14583.333333333336,"d":"$14,583"}},{"$f":"'Trial 7'!AC38","v":{"v":14583.333333333336,"d":"$14,583"}},{"$f":"'Trial 7'!AD38","v":{"v":14583.333333333336,"d":"$14,583"}},{"$f":"'Trial 7'!AE38","v":{"v":14583.333333333336,"d":"$14,583"}},{"$f":"'Trial 7'!AF38","v":{"v":14583.333333333336,"d":"$14,583"}},{"$f":"'Trial 7'!AG38","v":{"v":14583.333333333336,"d":"$14,583"}},{"$f":"'Trial 7'!AH38","v":{"v":14583.333333333336,"d":"$14,583"}},{"$f":"'Trial 7'!AI38","v":{"v":14583.333333333336,"d":"$14,583"}},{"$f":"'Trial 7'!AJ38","v":{"v":14583.333333333336,"d":"$14,583"}},{"$f":"'Trial 7'!AK38","v":{"v":14583.333333333336,"d":"$14,583"}},{"$f":"'Trial 7'!AL38","v":{"v":14583.333333333336,"d":"$14,583"}},{"$f":"'Trial 7'!AM38","v":{"v":14583.333333333336,"d":"$14,583"}},{"$f":"SUM('Trial 7'!AB38:AM38)","v":{"v":175000.0000000001,"d":"$175,000"}},{"$f":"'Trial 7'!AO38","v":{"v":14583.333333333336,"d":"$14,583"}},{"$f":"'Trial 7'!AP38","v":{"v":14583.333333333336,"d":"$14,583"}},{"$f":"'Trial 7'!AQ38","v":{"v":14583.333333333336,"d":"$14,583"}},{"$f":"'Trial 7'!AR38","v":{"v":14583.333333333336,"d":"$14,583"}},{"$f":"'Trial 7'!AS38","v":{"v":14583.333333333336,"d":"$14,583"}},{"$f":"'Trial 7'!AT38","v":{"v":14583.333333333336,"d":"$14,583"}},{"$f":"'Trial 7'!AU38","v":{"v":14583.333333333336,"d":"$14,583"}},{"$f":"'Trial 7'!AV38","v":{"v":14583.333333333336,"d":"$14,583"}},{"$f":"'Trial 7'!AW38","v":{"v":14583.333333333336,"d":"$14,583"}},{"$f":"'Trial 7'!AX38","v":{"v":14583.333333333336,"d":"$14,583"}},{"$f":"'Trial 7'!AY38","v":{"v":14583.333333333336,"d":"$14,583"}},{"$f":"'Trial 7'!AZ38","v":{"v":14583.333333333336,"d":"$14,583"}},{"$f":"SUM('Trial 7'!AO38:AZ38)","v":{"v":175000.0000000001,"d":"$175,000"}},{"$f":"'Trial 7'!BB38","v":{"v":14583.333333333336,"d":"$14,583"}},{"$f":"'Trial 7'!BC38","v":{"v":14583.333333333336,"d":"$14,583"}},{"$f":"'Trial 7'!BD38","v":{"v":14583.333333333336,"d":"$14,583"}},{"$f":"'Trial 7'!BE38","v":{"v":14583.333333333336,"d":"$14,583"}},{"$f":"'Trial 7'!BF38","v":{"v":14583.333333333336,"d":"$14,583"}},{"$f":"'Trial 7'!BG38","v":{"v":14583.333333333336,"d":"$14,583"}},{"$f":"'Trial 7'!BH38","v":{"v":14583.333333333336,"d":"$14,583"}},{"$f":"'Trial 7'!BI38","v":{"v":14583.333333333336,"d":"$14,583"}},{"$f":"'Trial 7'!BJ38","v":{"v":14583.333333333336,"d":"$14,583"}},{"$f":"'Trial 7'!BK38","v":{"v":14583.333333333336,"d":"$14,583"}},{"$f":"'Trial 7'!BL38","v":{"v":14583.333333333336,"d":"$14,583"}},{"$f":"'Trial 7'!BM38","v":{"v":14583.333333333336,"d":"$14,583"}},{"$f":"SUM('Trial 7'!BB38:BM38)","v":{"v":175000.0000000001,"d":"$175,000"}},{"$f":"'Trial 7'!BO38","v":{"v":14583.333333333336,"d":"$14,583"}},{"$f":"'Trial 7'!BP38","v":{"v":14583.333333333336,"d":"$14,583"}},{"$f":"'Trial 7'!BQ38","v":{"v":14583.333333333336,"d":"$14,583"}},{"$f":"'Trial 7'!BR38","v":{"v":14583.333333333336,"d":"$14,583"}},{"$f":"'Trial 7'!BS38","v":{"v":14583.333333333336,"d":"$14,583"}},{"$f":"'Trial 7'!BT38","v":{"v":14583.333333333336,"d":"$14,583"}},{"$f":"'Trial 7'!BU38","v":{"v":14583.333333333336,"d":"$14,583"}},{"$f":"'Trial 7'!BV38","v":{"v":14583.333333333336,"d":"$14,583"}},{"$f":"'Trial 7'!BW38","v":{"v":14583.333333333336,"d":"$14,583"}},{"$f":"'Trial 7'!BX38","v":{"v":14583.333333333336,"d":"$14,583"}},{"$f":"'Trial 7'!BY38","v":{"v":14583.333333333336,"d":"$14,583"}},{"$f":"'Trial 7'!BZ38","v":{"v":14583.333333333336,"d":"$14,583"}},{"$f":"SUM('Trial 7'!BO38:BZ38)","v":{"v":175000.0000000001,"d":"$175,000"}},{"$f":"'Trial 7'!CB38","v":{"v":14583.333333333336,"d":"$14,583"}},{"$f":"'Trial 7'!CC38","v":{"v":14583.333333333336,"d":"$14,583"}},{"$f":"'Trial 7'!CD38","v":{"v":14583.333333333336,"d":"$14,583"}},{"$f":"'Trial 7'!CE38","v":{"v":14583.333333333336,"d":"$14,583"}},{"$f":"'Trial 7'!CF38","v":{"v":14583.333333333336,"d":"$14,583"}},{"$f":"'Trial 7'!CG38","v":{"v":14583.333333333336,"d":"$14,583"}},{"$f":"'Trial 7'!CH38","v":{"v":14583.333333333336,"d":"$14,583"}},{"$f":"'Trial 7'!CI38","v":{"v":14583.333333333336,"d":"$14,583"}},{"$f":"'Trial 7'!CJ38","v":{"v":14583.333333333336,"d":"$14,583"}},{"$f":"'Trial 7'!CK38","v":{"v":14583.333333333336,"d":"$14,583"}},{"$f":"'Trial 7'!CL38","v":{"v":14583.333333333336,"d":"$14,583"}},{"$f":"'Trial 7'!CM38","v":{"v":14583.333333333336,"d":"$14,583"}},{"$f":"SUM('Trial 7'!CB38:CM38)","v":{"v":175000.0000000001,"d":"$175,000"}},{"$f":"'Trial 7'!CO38","v":{"v":14583.333333333336,"d":"$14,583"}},{"$f":"'Trial 7'!CP38","v":{"v":14583.333333333336,"d":"$14,583"}},{"$f":"'Trial 7'!CQ38","v":{"v":14583.333333333336,"d":"$14,583"}},{"$f":"'Trial 7'!CR38","v":{"v":14583.333333333336,"d":"$14,583"}},{"$f":"'Trial 7'!CS38","v":{"v":14583.333333333336,"d":"$14,583"}},{"$f":"'Trial 7'!CT38","v":{"v":14583.333333333336,"d":"$14,583"}},{"$f":"'Trial 7'!CU38","v":{"v":14583.333333333336,"d":"$14,583"}},{"$f":"'Trial 7'!CV38","v":{"v":14583.333333333336,"d":"$14,583"}},{"$f":"'Trial 7'!CW38","v":{"v":14583.333333333336,"d":"$14,583"}},{"$f":"'Trial 7'!CX38","v":{"v":14583.333333333336,"d":"$14,583"}},{"$f":"'Trial 7'!CY38","v":{"v":14583.333333333336,"d":"$14,583"}},{"$f":"'Trial 7'!CZ38","v":{"v":14583.333333333336,"d":"$14,583"}},{"$f":"SUM('Trial 7'!CO38:CZ38)","v":{"v":175000.0000000001,"d":"$175,000"}},{"$f":"'Trial 7'!DB38","v":{"v":14583.333333333336,"d":"$14,583"}},{"$f":"'Trial 7'!DC38","v":{"v":14583.333333333336,"d":"$14,583"}},{"$f":"'Trial 7'!DD38","v":{"v":14583.333333333336,"d":"$14,583"}},{"$f":"'Trial 7'!DE38","v":{"v":14583.333333333336,"d":"$14,583"}},{"$f":"'Trial 7'!DF38","v":{"v":14583.333333333336,"d":"$14,583"}},{"$f":"'Trial 7'!DG38","v":{"v":14583.333333333336,"d":"$14,583"}},{"$f":"'Trial 7'!DH38","v":{"v":14583.333333333336,"d":"$14,583"}},{"$f":"'Trial 7'!DI38","v":{"v":14583.333333333336,"d":"$14,583"}},{"$f":"'Trial 7'!DJ38","v":{"v":14583.333333333336,"d":"$14,583"}},{"$f":"'Trial 7'!DK38","v":{"v":14583.333333333336,"d":"$14,583"}},{"$f":"'Trial 7'!DL38","v":{"v":14583.333333333336,"d":"$14,583"}},{"$f":"'Trial 7'!DM38","v":{"v":14583.333333333336,"d":"$14,583"}},{"$f":"SUM('Trial 7'!DB38:DM38)","v":{"v":175000.0000000001,"d":"$175,000"}},{"$f":"'Trial 7'!DO38","v":{"v":14583.333333333336,"d":"$14,583"}},{"$f":"'Trial 7'!DP38","v":{"v":14583.333333333336,"d":"$14,583"}},{"$f":"'Trial 7'!DQ38","v":{"v":14583.333333333336,"d":"$14,583"}},{"$f":"'Trial 7'!DR38","v":{"v":14583.333333333336,"d":"$14,583"}},{"$f":"'Trial 7'!DS38","v":{"v":14583.333333333336,"d":"$14,583"}},{"$f":"'Trial 7'!DT38","v":{"v":14583.333333333336,"d":"$14,583"}},{"$f":"'Trial 7'!DU38","v":{"v":14583.333333333336,"d":"$14,583"}},{"$f":"'Trial 7'!DV38","v":{"v":14583.333333333336,"d":"$14,583"}},{"$f":"'Trial 7'!DW38","v":{"v":14583.333333333336,"d":"$14,583"}},{"$f":"'Trial 7'!DX38","v":{"v":14583.333333333336,"d":"$14,583"}},{"$f":"'Trial 7'!DY38","v":{"v":14583.333333333336,"d":"$14,583"}},{"$f":"'Trial 7'!DZ38","v":{"v":14583.333333333336,"d":"$14,583"}},{"$f":"SUM('Trial 7'!DO38:DZ38)","v":{"v":175000.0000000001,"d":"$175,000"}},{"$f":"'Trial 7'!EB38","v":{"v":14583.333333333336,"d":"$14,583"}},{"$f":"'Trial 7'!EC38","v":{"v":14583.333333333336,"d":"$14,583"}},{"$f":"'Trial 7'!ED38","v":{"v":14583.333333333336,"d":"$14,583"}},{"$f":"'Trial 7'!EE38","v":{"v":14583.333333333336,"d":"$14,583"}},{"$f":"'Trial 7'!EF38","v":{"v":14583.333333333336,"d":"$14,583"}},{"$f":"'Trial 7'!EG38","v":{"v":14583.333333333336,"d":"$14,583"}},{"$f":"'Trial 7'!EH38","v":{"v":14583.333333333336,"d":"$14,583"}},{"$f":"'Trial 7'!EI38","v":{"v":14583.333333333336,"d":"$14,583"}},{"$f":"'Trial 7'!EJ38","v":{"v":14583.333333333336,"d":"$14,583"}},{"$f":"'Trial 7'!EK38","v":{"v":14583.333333333336,"d":"$14,583"}},{"$f":"'Trial 7'!EL38","v":{"v":14583.333333333336,"d":"$14,583"}},{"$f":"'Trial 7'!EM38","v":{"v":14583.333333333336,"d":"$14,583"}},{"$f":"SUM('Trial 7'!EB38:EM38)","v":{"v":175000.0000000001,"d":"$175,000"}}]
[{"$f":"Labels!B103","v":"Trial 08"},{"$f":"'Trial 8'!B38","v":{"v":14583.333333333336,"d":"$14,583"}},{"$f":"'Trial 8'!C38","v":{"v":14583.333333333336,"d":"$14,583"}},{"$f":"'Trial 8'!D38","v":{"v":14583.333333333336,"d":"$14,583"}},{"$f":"'Trial 8'!E38","v":{"v":14583.333333333336,"d":"$14,583"}},{"$f":"'Trial 8'!F38","v":{"v":14583.333333333336,"d":"$14,583"}},{"$f":"'Trial 8'!G38","v":{"v":14583.333333333336,"d":"$14,583"}},{"$f":"'Trial 8'!H38","v":{"v":14583.333333333336,"d":"$14,583"}},{"$f":"'Trial 8'!I38","v":{"v":14583.333333333336,"d":"$14,583"}},{"$f":"'Trial 8'!J38","v":{"v":14583.333333333336,"d":"$14,583"}},{"$f":"'Trial 8'!K38","v":{"v":14583.333333333336,"d":"$14,583"}},{"$f":"'Trial 8'!L38","v":{"v":14583.333333333336,"d":"$14,583"}},{"$f":"'Trial 8'!M38","v":{"v":14583.333333333336,"d":"$14,583"}},{"$f":"SUM('Trial 8'!B38:M38)","v":{"v":175000.0000000001,"d":"$175,000"}},{"$f":"'Trial 8'!O38","v":{"v":14583.333333333336,"d":"$14,583"}},{"$f":"'Trial 8'!P38","v":{"v":14583.333333333336,"d":"$14,583"}},{"$f":"'Trial 8'!Q38","v":{"v":14583.333333333336,"d":"$14,583"}},{"$f":"'Trial 8'!R38","v":{"v":14583.333333333336,"d":"$14,583"}},{"$f":"'Trial 8'!S38","v":{"v":14583.333333333336,"d":"$14,583"}},{"$f":"'Trial 8'!T38","v":{"v":14583.333333333336,"d":"$14,583"}},{"$f":"'Trial 8'!U38","v":{"v":14583.333333333336,"d":"$14,583"}},{"$f":"'Trial 8'!V38","v":{"v":14583.333333333336,"d":"$14,583"}},{"$f":"'Trial 8'!W38","v":{"v":14583.333333333336,"d":"$14,583"}},{"$f":"'Trial 8'!X38","v":{"v":14583.333333333336,"d":"$14,583"}},{"$f":"'Trial 8'!Y38","v":{"v":14583.333333333336,"d":"$14,583"}},{"$f":"'Trial 8'!Z38","v":{"v":14583.333333333336,"d":"$14,583"}},{"$f":"SUM('Trial 8'!O38:Z38)","v":{"v":175000.0000000001,"d":"$175,000"}},{"$f":"'Trial 8'!AB38","v":{"v":14583.333333333336,"d":"$14,583"}},{"$f":"'Trial 8'!AC38","v":{"v":14583.333333333336,"d":"$14,583"}},{"$f":"'Trial 8'!AD38","v":{"v":14583.333333333336,"d":"$14,583"}},{"$f":"'Trial 8'!AE38","v":{"v":14583.333333333336,"d":"$14,583"}},{"$f":"'Trial 8'!AF38","v":{"v":14583.333333333336,"d":"$14,583"}},{"$f":"'Trial 8'!AG38","v":{"v":14583.333333333336,"d":"$14,583"}},{"$f":"'Trial 8'!AH38","v":{"v":14583.333333333336,"d":"$14,583"}},{"$f":"'Trial 8'!AI38","v":{"v":14583.333333333336,"d":"$14,583"}},{"$f":"'Trial 8'!AJ38","v":{"v":14583.333333333336,"d":"$14,583"}},{"$f":"'Trial 8'!AK38","v":{"v":14583.333333333336,"d":"$14,583"}},{"$f":"'Trial 8'!AL38","v":{"v":14583.333333333336,"d":"$14,583"}},{"$f":"'Trial 8'!AM38","v":{"v":14583.333333333336,"d":"$14,583"}},{"$f":"SUM('Trial 8'!AB38:AM38)","v":{"v":175000.0000000001,"d":"$175,000"}},{"$f":"'Trial 8'!AO38","v":{"v":14583.333333333336,"d":"$14,583"}},{"$f":"'Trial 8'!AP38","v":{"v":14583.333333333336,"d":"$14,583"}},{"$f":"'Trial 8'!AQ38","v":{"v":14583.333333333336,"d":"$14,583"}},{"$f":"'Trial 8'!AR38","v":{"v":14583.333333333336,"d":"$14,583"}},{"$f":"'Trial 8'!AS38","v":{"v":14583.333333333336,"d":"$14,583"}},{"$f":"'Trial 8'!AT38","v":{"v":14583.333333333336,"d":"$14,583"}},{"$f":"'Trial 8'!AU38","v":{"v":14583.333333333336,"d":"$14,583"}},{"$f":"'Trial 8'!AV38","v":{"v":14583.333333333336,"d":"$14,583"}},{"$f":"'Trial 8'!AW38","v":{"v":14583.333333333336,"d":"$14,583"}},{"$f":"'Trial 8'!AX38","v":{"v":14583.333333333336,"d":"$14,583"}},{"$f":"'Trial 8'!AY38","v":{"v":14583.333333333336,"d":"$14,583"}},{"$f":"'Trial 8'!AZ38","v":{"v":14583.333333333336,"d":"$14,583"}},{"$f":"SUM('Trial 8'!AO38:AZ38)","v":{"v":175000.0000000001,"d":"$175,000"}},{"$f":"'Trial 8'!BB38","v":{"v":14583.333333333336,"d":"$14,583"}},{"$f":"'Trial 8'!BC38","v":{"v":14583.333333333336,"d":"$14,583"}},{"$f":"'Trial 8'!BD38","v":{"v":14583.333333333336,"d":"$14,583"}},{"$f":"'Trial 8'!BE38","v":{"v":14583.333333333336,"d":"$14,583"}},{"$f":"'Trial 8'!BF38","v":{"v":14583.333333333336,"d":"$14,583"}},{"$f":"'Trial 8'!BG38","v":{"v":14583.333333333336,"d":"$14,583"}},{"$f":"'Trial 8'!BH38","v":{"v":14583.333333333336,"d":"$14,583"}},{"$f":"'Trial 8'!BI38","v":{"v":14583.333333333336,"d":"$14,583"}},{"$f":"'Trial 8'!BJ38","v":{"v":14583.333333333336,"d":"$14,583"}},{"$f":"'Trial 8'!BK38","v":{"v":14583.333333333336,"d":"$14,583"}},{"$f":"'Trial 8'!BL38","v":{"v":14583.333333333336,"d":"$14,583"}},{"$f":"'Trial 8'!BM38","v":{"v":14583.333333333336,"d":"$14,583"}},{"$f":"SUM('Trial 8'!BB38:BM38)","v":{"v":175000.0000000001,"d":"$175,000"}},{"$f":"'Trial 8'!BO38","v":{"v":14583.333333333336,"d":"$14,583"}},{"$f":"'Trial 8'!BP38","v":{"v":14583.333333333336,"d":"$14,583"}},{"$f":"'Trial 8'!BQ38","v":{"v":14583.333333333336,"d":"$14,583"}},{"$f":"'Trial 8'!BR38","v":{"v":14583.333333333336,"d":"$14,583"}},{"$f":"'Trial 8'!BS38","v":{"v":14583.333333333336,"d":"$14,583"}},{"$f":"'Trial 8'!BT38","v":{"v":14583.333333333336,"d":"$14,583"}},{"$f":"'Trial 8'!BU38","v":{"v":14583.333333333336,"d":"$14,583"}},{"$f":"'Trial 8'!BV38","v":{"v":14583.333333333336,"d":"$14,583"}},{"$f":"'Trial 8'!BW38","v":{"v":14583.333333333336,"d":"$14,583"}},{"$f":"'Trial 8'!BX38","v":{"v":14583.333333333336,"d":"$14,583"}},{"$f":"'Trial 8'!BY38","v":{"v":14583.333333333336,"d":"$14,583"}},{"$f":"'Trial 8'!BZ38","v":{"v":14583.333333333336,"d":"$14,583"}},{"$f":"SUM('Trial 8'!BO38:BZ38)","v":{"v":175000.0000000001,"d":"$175,000"}},{"$f":"'Trial 8'!CB38","v":{"v":14583.333333333336,"d":"$14,583"}},{"$f":"'Trial 8'!CC38","v":{"v":14583.333333333336,"d":"$14,583"}},{"$f":"'Trial 8'!CD38","v":{"v":14583.333333333336,"d":"$14,583"}},{"$f":"'Trial 8'!CE38","v":{"v":14583.333333333336,"d":"$14,583"}},{"$f":"'Trial 8'!CF38","v":{"v":14583.333333333336,"d":"$14,583"}},{"$f":"'Trial 8'!CG38","v":{"v":14583.333333333336,"d":"$14,583"}},{"$f":"'Trial 8'!CH38","v":{"v":14583.333333333336,"d":"$14,583"}},{"$f":"'Trial 8'!CI38","v":{"v":14583.333333333336,"d":"$14,583"}},{"$f":"'Trial 8'!CJ38","v":{"v":14583.333333333336,"d":"$14,583"}},{"$f":"'Trial 8'!CK38","v":{"v":14583.333333333336,"d":"$14,583"}},{"$f":"'Trial 8'!CL38","v":{"v":14583.333333333336,"d":"$14,583"}},{"$f":"'Trial 8'!CM38","v":{"v":14583.333333333336,"d":"$14,583"}},{"$f":"SUM('Trial 8'!CB38:CM38)","v":{"v":175000.0000000001,"d":"$175,000"}},{"$f":"'Trial 8'!CO38","v":{"v":14583.333333333336,"d":"$14,583"}},{"$f":"'Trial 8'!CP38","v":{"v":14583.333333333336,"d":"$14,583"}},{"$f":"'Trial 8'!CQ38","v":{"v":14583.333333333336,"d":"$14,583"}},{"$f":"'Trial 8'!CR38","v":{"v":14583.333333333336,"d":"$14,583"}},{"$f":"'Trial 8'!CS38","v":{"v":14583.333333333336,"d":"$14,583"}},{"$f":"'Trial 8'!CT38","v":{"v":14583.333333333336,"d":"$14,583"}},{"$f":"'Trial 8'!CU38","v":{"v":14583.333333333336,"d":"$14,583"}},{"$f":"'Trial 8'!CV38","v":{"v":14583.333333333336,"d":"$14,583"}},{"$f":"'Trial 8'!CW38","v":{"v":14583.333333333336,"d":"$14,583"}},{"$f":"'Trial 8'!CX38","v":{"v":14583.333333333336,"d":"$14,583"}},{"$f":"'Trial 8'!CY38","v":{"v":14583.333333333336,"d":"$14,583"}},{"$f":"'Trial 8'!CZ38","v":{"v":14583.333333333336,"d":"$14,583"}},{"$f":"SUM('Trial 8'!CO38:CZ38)","v":{"v":175000.0000000001,"d":"$175,000"}},{"$f":"'Trial 8'!DB38","v":{"v":14583.333333333336,"d":"$14,583"}},{"$f":"'Trial 8'!DC38","v":{"v":14583.333333333336,"d":"$14,583"}},{"$f":"'Trial 8'!DD38","v":{"v":14583.333333333336,"d":"$14,583"}},{"$f":"'Trial 8'!DE38","v":{"v":14583.333333333336,"d":"$14,583"}},{"$f":"'Trial 8'!DF38","v":{"v":14583.333333333336,"d":"$14,583"}},{"$f":"'Trial 8'!DG38","v":{"v":14583.333333333336,"d":"$14,583"}},{"$f":"'Trial 8'!DH38","v":{"v":14583.333333333336,"d":"$14,583"}},{"$f":"'Trial 8'!DI38","v":{"v":14583.333333333336,"d":"$14,583"}},{"$f":"'Trial 8'!DJ38","v":{"v":14583.333333333336,"d":"$14,583"}},{"$f":"'Trial 8'!DK38","v":{"v":14583.333333333336,"d":"$14,583"}},{"$f":"'Trial 8'!DL38","v":{"v":14583.333333333336,"d":"$14,583"}},{"$f":"'Trial 8'!DM38","v":{"v":14583.333333333336,"d":"$14,583"}},{"$f":"SUM('Trial 8'!DB38:DM38)","v":{"v":175000.0000000001,"d":"$175,000"}},{"$f":"'Trial 8'!DO38","v":{"v":14583.333333333336,"d":"$14,583"}},{"$f":"'Trial 8'!DP38","v":{"v":14583.333333333336,"d":"$14,583"}},{"$f":"'Trial 8'!DQ38","v":{"v":14583.333333333336,"d":"$14,583"}},{"$f":"'Trial 8'!DR38","v":{"v":14583.333333333336,"d":"$14,583"}},{"$f":"'Trial 8'!DS38","v":{"v":14583.333333333336,"d":"$14,583"}},{"$f":"'Trial 8'!DT38","v":{"v":14583.333333333336,"d":"$14,583"}},{"$f":"'Trial 8'!DU38","v":{"v":14583.333333333336,"d":"$14,583"}},{"$f":"'Trial 8'!DV38","v":{"v":14583.333333333336,"d":"$14,583"}},{"$f":"'Trial 8'!DW38","v":{"v":14583.333333333336,"d":"$14,583"}},{"$f":"'Trial 8'!DX38","v":{"v":14583.333333333336,"d":"$14,583"}},{"$f":"'Trial 8'!DY38","v":{"v":14583.333333333336,"d":"$14,583"}},{"$f":"'Trial 8'!DZ38","v":{"v":14583.333333333336,"d":"$14,583"}},{"$f":"SUM('Trial 8'!DO38:DZ38)","v":{"v":175000.0000000001,"d":"$175,000"}},{"$f":"'Trial 8'!EB38","v":{"v":14583.333333333336,"d":"$14,583"}},{"$f":"'Trial 8'!EC38","v":{"v":14583.333333333336,"d":"$14,583"}},{"$f":"'Trial 8'!ED38","v":{"v":14583.333333333336,"d":"$14,583"}},{"$f":"'Trial 8'!EE38","v":{"v":14583.333333333336,"d":"$14,583"}},{"$f":"'Trial 8'!EF38","v":{"v":14583.333333333336,"d":"$14,583"}},{"$f":"'Trial 8'!EG38","v":{"v":14583.333333333336,"d":"$14,583"}},{"$f":"'Trial 8'!EH38","v":{"v":14583.333333333336,"d":"$14,583"}},{"$f":"'Trial 8'!EI38","v":{"v":14583.333333333336,"d":"$14,583"}},{"$f":"'Trial 8'!EJ38","v":{"v":14583.333333333336,"d":"$14,583"}},{"$f":"'Trial 8'!EK38","v":{"v":14583.333333333336,"d":"$14,583"}},{"$f":"'Trial 8'!EL38","v":{"v":14583.333333333336,"d":"$14,583"}},{"$f":"'Trial 8'!EM38","v":{"v":14583.333333333336,"d":"$14,583"}},{"$f":"SUM('Trial 8'!EB38:EM38)","v":{"v":175000.0000000001,"d":"$175,000"}}]
[{"$f":"Labels!C95","v":"Total"},{"$f":"SUM('Trial 1'!B38,'Trial 2'!B38,'Trial 3'!B38,'Trial 4'!B38,'Trial 5'!B38,'Trial 6'!B38,'Trial 7'!B38,'Trial 8'!B38)","v":{"v":116666.66666666672,"d":"$116,667"}},{"$f":"SUM('Trial 1'!C38,'Trial 2'!C38,'Trial 3'!C38,'Trial 4'!C38,'Trial 5'!C38,'Trial 6'!C38,'Trial 7'!C38,'Trial 8'!C38)","v":{"v":116666.66666666672,"d":"$116,667"}},{"$f":"SUM('Trial 1'!D38,'Trial 2'!D38,'Trial 3'!D38,'Trial 4'!D38,'Trial 5'!D38,'Trial 6'!D38,'Trial 7'!D38,'Trial 8'!D38)","v":{"v":116666.66666666672,"d":"$116,667"}},{"$f":"SUM('Trial 1'!E38,'Trial 2'!E38,'Trial 3'!E38,'Trial 4'!E38,'Trial 5'!E38,'Trial 6'!E38,'Trial 7'!E38,'Trial 8'!E38)","v":{"v":116666.66666666672,"d":"$116,667"}},{"$f":"SUM('Trial 1'!F38,'Trial 2'!F38,'Trial 3'!F38,'Trial 4'!F38,'Trial 5'!F38,'Trial 6'!F38,'Trial 7'!F38,'Trial 8'!F38)","v":{"v":116666.66666666672,"d":"$116,667"}},{"$f":"SUM('Trial 1'!G38,'Trial 2'!G38,'Trial 3'!G38,'Trial 4'!G38,'Trial 5'!G38,'Trial 6'!G38,'Trial 7'!G38,'Trial 8'!G38)","v":{"v":116666.66666666672,"d":"$116,667"}},{"$f":"SUM('Trial 1'!H38,'Trial 2'!H38,'Trial 3'!H38,'Trial 4'!H38,'Trial 5'!H38,'Trial 6'!H38,'Trial 7'!H38,'Trial 8'!H38)","v":{"v":116666.66666666672,"d":"$116,667"}},{"$f":"SUM('Trial 1'!I38,'Trial 2'!I38,'Trial 3'!I38,'Trial 4'!I38,'Trial 5'!I38,'Trial 6'!I38,'Trial 7'!I38,'Trial 8'!I38)","v":{"v":116666.66666666672,"d":"$116,667"}},{"$f":"SUM('Trial 1'!J38,'Trial 2'!J38,'Trial 3'!J38,'Trial 4'!J38,'Trial 5'!J38,'Trial 6'!J38,'Trial 7'!J38,'Trial 8'!J38)","v":{"v":116666.66666666672,"d":"$116,667"}},{"$f":"SUM('Trial 1'!K38,'Trial 2'!K38,'Trial 3'!K38,'Trial 4'!K38,'Trial 5'!K38,'Trial 6'!K38,'Trial 7'!K38,'Trial 8'!K38)","v":{"v":116666.66666666672,"d":"$116,667"}},{"$f":"SUM('Trial 1'!L38,'Trial 2'!L38,'Trial 3'!L38,'Trial 4'!L38,'Trial 5'!L38,'Trial 6'!L38,'Trial 7'!L38,'Trial 8'!L38)","v":{"v":116666.66666666672,"d":"$116,667"}},{"$f":"SUM('Trial 1'!M38,'Trial 2'!M38,'Trial 3'!M38,'Trial 4'!M38,'Trial 5'!M38,'Trial 6'!M38,'Trial 7'!M38,'Trial 8'!M38)","v":{"v":116666.66666666672,"d":"$116,667"}},{"$f":"SUM(B230:M230)","v":{"v":1400000.0000000007,"d":"$1,400,000"}},{"$f":"SUM('Trial 1'!O38,'Trial 2'!O38,'Trial 3'!O38,'Trial 4'!O38,'Trial 5'!O38,'Trial 6'!O38,'Trial 7'!O38,'Trial 8'!O38)","v":{"v":116666.66666666672,"d":"$116,667"}},{"$f":"SUM('Trial 1'!P38,'Trial 2'!P38,'Trial 3'!P38,'Trial 4'!P38,'Trial 5'!P38,'Trial 6'!P38,'Trial 7'!P38,'Trial 8'!P38)","v":{"v":116666.66666666672,"d":"$116,667"}},{"$f":"SUM('Trial 1'!Q38,'Trial 2'!Q38,'Trial 3'!Q38,'Trial 4'!Q38,'Trial 5'!Q38,'Trial 6'!Q38,'Trial 7'!Q38,'Trial 8'!Q38)","v":{"v":116666.66666666672,"d":"$116,667"}},{"$f":"SUM('Trial 1'!R38,'Trial 2'!R38,'Trial 3'!R38,'Trial 4'!R38,'Trial 5'!R38,'Trial 6'!R38,'Trial 7'!R38,'Trial 8'!R38)","v":{"v":116666.66666666672,"d":"$116,667"}},{"$f":"SUM('Trial 1'!S38,'Trial 2'!S38,'Trial 3'!S38,'Trial 4'!S38,'Trial 5'!S38,'Trial 6'!S38,'Trial 7'!S38,'Trial 8'!S38)","v":{"v":116666.66666666672,"d":"$116,667"}},{"$f":"SUM('Trial 1'!T38,'Trial 2'!T38,'Trial 3'!T38,'Trial 4'!T38,'Trial 5'!T38,'Trial 6'!T38,'Trial 7'!T38,'Trial 8'!T38)","v":{"v":116666.66666666672,"d":"$116,667"}},{"$f":"SUM('Trial 1'!U38,'Trial 2'!U38,'Trial 3'!U38,'Trial 4'!U38,'Trial 5'!U38,'Trial 6'!U38,'Trial 7'!U38,'Trial 8'!U38)","v":{"v":116666.66666666672,"d":"$116,667"}},{"$f":"SUM('Trial 1'!V38,'Trial 2'!V38,'Trial 3'!V38,'Trial 4'!V38,'Trial 5'!V38,'Trial 6'!V38,'Trial 7'!V38,'Trial 8'!V38)","v":{"v":116666.66666666672,"d":"$116,667"}},{"$f":"SUM('Trial 1'!W38,'Trial 2'!W38,'Trial 3'!W38,'Trial 4'!W38,'Trial 5'!W38,'Trial 6'!W38,'Trial 7'!W38,'Trial 8'!W38)","v":{"v":116666.66666666672,"d":"$116,667"}},{"$f":"SUM('Trial 1'!X38,'Trial 2'!X38,'Trial 3'!X38,'Trial 4'!X38,'Trial 5'!X38,'Trial 6'!X38,'Trial 7'!X38,'Trial 8'!X38)","v":{"v":116666.66666666672,"d":"$116,667"}},{"$f":"SUM('Trial 1'!Y38,'Trial 2'!Y38,'Trial 3'!Y38,'Trial 4'!Y38,'Trial 5'!Y38,'Trial 6'!Y38,'Trial 7'!Y38,'Trial 8'!Y38)","v":{"v":116666.66666666672,"d":"$116,667"}},{"$f":"SUM('Trial 1'!Z38,'Trial 2'!Z38,'Trial 3'!Z38,'Trial 4'!Z38,'Trial 5'!Z38,'Trial 6'!Z38,'Trial 7'!Z38,'Trial 8'!Z38)","v":{"v":116666.66666666672,"d":"$116,667"}},{"$f":"SUM(O230:Z230)","v":{"v":1400000.0000000007,"d":"$1,400,000"}},{"$f":"SUM('Trial 1'!AB38,'Trial 2'!AB38,'Trial 3'!AB38,'Trial 4'!AB38,'Trial 5'!AB38,'Trial 6'!AB38,'Trial 7'!AB38,'Trial 8'!AB38)","v":{"v":116666.66666666672,"d":"$116,667"}},{"$f":"SUM('Trial 1'!AC38,'Trial 2'!AC38,'Trial 3'!AC38,'Trial 4'!AC38,'Trial 5'!AC38,'Trial 6'!AC38,'Trial 7'!AC38,'Trial 8'!AC38)","v":{"v":116666.66666666672,"d":"$116,667"}},{"$f":"SUM('Trial 1'!AD38,'Trial 2'!AD38,'Trial 3'!AD38,'Trial 4'!AD38,'Trial 5'!AD38,'Trial 6'!AD38,'Trial 7'!AD38,'Trial 8'!AD38)","v":{"v":116666.66666666672,"d":"$116,667"}},{"$f":"SUM('Trial 1'!AE38,'Trial 2'!AE38,'Trial 3'!AE38,'Trial 4'!AE38,'Trial 5'!AE38,'Trial 6'!AE38,'Trial 7'!AE38,'Trial 8'!AE38)","v":{"v":116666.66666666672,"d":"$116,667"}},{"$f":"SUM('Trial 1'!AF38,'Trial 2'!AF38,'Trial 3'!AF38,'Trial 4'!AF38,'Trial 5'!AF38,'Trial 6'!AF38,'Trial 7'!AF38,'Trial 8'!AF38)","v":{"v":116666.66666666672,"d":"$116,667"}},{"$f":"SUM('Trial 1'!AG38,'Trial 2'!AG38,'Trial 3'!AG38,'Trial 4'!AG38,'Trial 5'!AG38,'Trial 6'!AG38,'Trial 7'!AG38,'Trial 8'!AG38)","v":{"v":116666.66666666672,"d":"$116,667"}},{"$f":"SUM('Trial 1'!AH38,'Trial 2'!AH38,'Trial 3'!AH38,'Trial 4'!AH38,'Trial 5'!AH38,'Trial 6'!AH38,'Trial 7'!AH38,'Trial 8'!AH38)","v":{"v":116666.66666666672,"d":"$116,667"}},{"$f":"SUM('Trial 1'!AI38,'Trial 2'!AI38,'Trial 3'!AI38,'Trial 4'!AI38,'Trial 5'!AI38,'Trial 6'!AI38,'Trial 7'!AI38,'Trial 8'!AI38)","v":{"v":116666.66666666672,"d":"$116,667"}},{"$f":"SUM('Trial 1'!AJ38,'Trial 2'!AJ38,'Trial 3'!AJ38,'Trial 4'!AJ38,'Trial 5'!AJ38,'Trial 6'!AJ38,'Trial 7'!AJ38,'Trial 8'!AJ38)","v":{"v":116666.66666666672,"d":"$116,667"}},{"$f":"SUM('Trial 1'!AK38,'Trial 2'!AK38,'Trial 3'!AK38,'Trial 4'!AK38,'Trial 5'!AK38,'Trial 6'!AK38,'Trial 7'!AK38,'Trial 8'!AK38)","v":{"v":116666.66666666672,"d":"$116,667"}},{"$f":"SUM('Trial 1'!AL38,'Trial 2'!AL38,'Trial 3'!AL38,'Trial 4'!AL38,'Trial 5'!AL38,'Trial 6'!AL38,'Trial 7'!AL38,'Trial 8'!AL38)","v":{"v":116666.66666666672,"d":"$116,667"}},{"$f":"SUM('Trial 1'!AM38,'Trial 2'!AM38,'Trial 3'!AM38,'Trial 4'!AM38,'Trial 5'!AM38,'Trial 6'!AM38,'Trial 7'!AM38,'Trial 8'!AM38)","v":{"v":116666.66666666672,"d":"$116,667"}},{"$f":"SUM(AB230:AM230)","v":{"v":1400000.0000000007,"d":"$1,400,000"}},{"$f":"SUM('Trial 1'!AO38,'Trial 2'!AO38,'Trial 3'!AO38,'Trial 4'!AO38,'Trial 5'!AO38,'Trial 6'!AO38,'Trial 7'!AO38,'Trial 8'!AO38)","v":{"v":116666.66666666672,"d":"$116,667"}},{"$f":"SUM('Trial 1'!AP38,'Trial 2'!AP38,'Trial 3'!AP38,'Trial 4'!AP38,'Trial 5'!AP38,'Trial 6'!AP38,'Trial 7'!AP38,'Trial 8'!AP38)","v":{"v":116666.66666666672,"d":"$116,667"}},{"$f":"SUM('Trial 1'!AQ38,'Trial 2'!AQ38,'Trial 3'!AQ38,'Trial 4'!AQ38,'Trial 5'!AQ38,'Trial 6'!AQ38,'Trial 7'!AQ38,'Trial 8'!AQ38)","v":{"v":116666.66666666672,"d":"$116,667"}},{"$f":"SUM('Trial 1'!AR38,'Trial 2'!AR38,'Trial 3'!AR38,'Trial 4'!AR38,'Trial 5'!AR38,'Trial 6'!AR38,'Trial 7'!AR38,'Trial 8'!AR38)","v":{"v":116666.66666666672,"d":"$116,667"}},{"$f":"SUM('Trial 1'!AS38,'Trial 2'!AS38,'Trial 3'!AS38,'Trial 4'!AS38,'Trial 5'!AS38,'Trial 6'!AS38,'Trial 7'!AS38,'Trial 8'!AS38)","v":{"v":116666.66666666672,"d":"$116,667"}},{"$f":"SUM('Trial 1'!AT38,'Trial 2'!AT38,'Trial 3'!AT38,'Trial 4'!AT38,'Trial 5'!AT38,'Trial 6'!AT38,'Trial 7'!AT38,'Trial 8'!AT38)","v":{"v":116666.66666666672,"d":"$116,667"}},{"$f":"SUM('Trial 1'!AU38,'Trial 2'!AU38,'Trial 3'!AU38,'Trial 4'!AU38,'Trial 5'!AU38,'Trial 6'!AU38,'Trial 7'!AU38,'Trial 8'!AU38)","v":{"v":116666.66666666672,"d":"$116,667"}},{"$f":"SUM('Trial 1'!AV38,'Trial 2'!AV38,'Trial 3'!AV38,'Trial 4'!AV38,'Trial 5'!AV38,'Trial 6'!AV38,'Trial 7'!AV38,'Trial 8'!AV38)","v":{"v":116666.66666666672,"d":"$116,667"}},{"$f":"SUM('Trial 1'!AW38,'Trial 2'!AW38,'Trial 3'!AW38,'Trial 4'!AW38,'Trial 5'!AW38,'Trial 6'!AW38,'Trial 7'!AW38,'Trial 8'!AW38)","v":{"v":116666.66666666672,"d":"$116,667"}},{"$f":"SUM('Trial 1'!AX38,'Trial 2'!AX38,'Trial 3'!AX38,'Trial 4'!AX38,'Trial 5'!AX38,'Trial 6'!AX38,'Trial 7'!AX38,'Trial 8'!AX38)","v":{"v":116666.66666666672,"d":"$116,667"}},{"$f":"SUM('Trial 1'!AY38,'Trial 2'!AY38,'Trial 3'!AY38,'Trial 4'!AY38,'Trial 5'!AY38,'Trial 6'!AY38,'Trial 7'!AY38,'Trial 8'!AY38)","v":{"v":116666.66666666672,"d":"$116,667"}},{"$f":"SUM('Trial 1'!AZ38,'Trial 2'!AZ38,'Trial 3'!AZ38,'Trial 4'!AZ38,'Trial 5'!AZ38,'Trial 6'!AZ38,'Trial 7'!AZ38,'Trial 8'!AZ38)","v":{"v":116666.66666666672,"d":"$116,667"}},{"$f":"SUM(AO230:AZ230)","v":{"v":1400000.0000000007,"d":"$1,400,000"}},{"$f":"SUM('Trial 1'!BB38,'Trial 2'!BB38,'Trial 3'!BB38,'Trial 4'!BB38,'Trial 5'!BB38,'Trial 6'!BB38,'Trial 7'!BB38,'Trial 8'!BB38)","v":{"v":116666.66666666672,"d":"$116,667"}},{"$f":"SUM('Trial 1'!BC38,'Trial 2'!BC38,'Trial 3'!BC38,'Trial 4'!BC38,'Trial 5'!BC38,'Trial 6'!BC38,'Trial 7'!BC38,'Trial 8'!BC38)","v":{"v":116666.66666666672,"d":"$116,667"}},{"$f":"SUM('Trial 1'!BD38,'Trial 2'!BD38,'Trial 3'!BD38,'Trial 4'!BD38,'Trial 5'!BD38,'Trial 6'!BD38,'Trial 7'!BD38,'Trial 8'!BD38)","v":{"v":116666.66666666672,"d":"$116,667"}},{"$f":"SUM('Trial 1'!BE38,'Trial 2'!BE38,'Trial 3'!BE38,'Trial 4'!BE38,'Trial 5'!BE38,'Trial 6'!BE38,'Trial 7'!BE38,'Trial 8'!BE38)","v":{"v":116666.66666666672,"d":"$116,667"}},{"$f":"SUM('Trial 1'!BF38,'Trial 2'!BF38,'Trial 3'!BF38,'Trial 4'!BF38,'Trial 5'!BF38,'Trial 6'!BF38,'Trial 7'!BF38,'Trial 8'!BF38)","v":{"v":116666.66666666672,"d":"$116,667"}},{"$f":"SUM('Trial 1'!BG38,'Trial 2'!BG38,'Trial 3'!BG38,'Trial 4'!BG38,'Trial 5'!BG38,'Trial 6'!BG38,'Trial 7'!BG38,'Trial 8'!BG38)","v":{"v":116666.66666666672,"d":"$116,667"}},{"$f":"SUM('Trial 1'!BH38,'Trial 2'!BH38,'Trial 3'!BH38,'Trial 4'!BH38,'Trial 5'!BH38,'Trial 6'!BH38,'Trial 7'!BH38,'Trial 8'!BH38)","v":{"v":116666.66666666672,"d":"$116,667"}},{"$f":"SUM('Trial 1'!BI38,'Trial 2'!BI38,'Trial 3'!BI38,'Trial 4'!BI38,'Trial 5'!BI38,'Trial 6'!BI38,'Trial 7'!BI38,'Trial 8'!BI38)","v":{"v":116666.66666666672,"d":"$116,667"}},{"$f":"SUM('Trial 1'!BJ38,'Trial 2'!BJ38,'Trial 3'!BJ38,'Trial 4'!BJ38,'Trial 5'!BJ38,'Trial 6'!BJ38,'Trial 7'!BJ38,'Trial 8'!BJ38)","v":{"v":116666.66666666672,"d":"$116,667"}},{"$f":"SUM('Trial 1'!BK38,'Trial 2'!BK38,'Trial 3'!BK38,'Trial 4'!BK38,'Trial 5'!BK38,'Trial 6'!BK38,'Trial 7'!BK38,'Trial 8'!BK38)","v":{"v":116666.66666666672,"d":"$116,667"}},{"$f":"SUM('Trial 1'!BL38,'Trial 2'!BL38,'Trial 3'!BL38,'Trial 4'!BL38,'Trial 5'!BL38,'Trial 6'!BL38,'Trial 7'!BL38,'Trial 8'!BL38)","v":{"v":116666.66666666672,"d":"$116,667"}},{"$f":"SUM('Trial 1'!BM38,'Trial 2'!BM38,'Trial 3'!BM38,'Trial 4'!BM38,'Trial 5'!BM38,'Trial 6'!BM38,'Trial 7'!BM38,'Trial 8'!BM38)","v":{"v":116666.66666666672,"d":"$116,667"}},{"$f":"SUM(BB230:BM230)","v":{"v":1400000.0000000007,"d":"$1,400,000"}},{"$f":"SUM('Trial 1'!BO38,'Trial 2'!BO38,'Trial 3'!BO38,'Trial 4'!BO38,'Trial 5'!BO38,'Trial 6'!BO38,'Trial 7'!BO38,'Trial 8'!BO38)","v":{"v":116666.66666666672,"d":"$116,667"}},{"$f":"SUM('Trial 1'!BP38,'Trial 2'!BP38,'Trial 3'!BP38,'Trial 4'!BP38,'Trial 5'!BP38,'Trial 6'!BP38,'Trial 7'!BP38,'Trial 8'!BP38)","v":{"v":116666.66666666672,"d":"$116,667"}},{"$f":"SUM('Trial 1'!BQ38,'Trial 2'!BQ38,'Trial 3'!BQ38,'Trial 4'!BQ38,'Trial 5'!BQ38,'Trial 6'!BQ38,'Trial 7'!BQ38,'Trial 8'!BQ38)","v":{"v":116666.66666666672,"d":"$116,667"}},{"$f":"SUM('Trial 1'!BR38,'Trial 2'!BR38,'Trial 3'!BR38,'Trial 4'!BR38,'Trial 5'!BR38,'Trial 6'!BR38,'Trial 7'!BR38,'Trial 8'!BR38)","v":{"v":116666.66666666672,"d":"$116,667"}},{"$f":"SUM('Trial 1'!BS38,'Trial 2'!BS38,'Trial 3'!BS38,'Trial 4'!BS38,'Trial 5'!BS38,'Trial 6'!BS38,'Trial 7'!BS38,'Trial 8'!BS38)","v":{"v":116666.66666666672,"d":"$116,667"}},{"$f":"SUM('Trial 1'!BT38,'Trial 2'!BT38,'Trial 3'!BT38,'Trial 4'!BT38,'Trial 5'!BT38,'Trial 6'!BT38,'Trial 7'!BT38,'Trial 8'!BT38)","v":{"v":116666.66666666672,"d":"$116,667"}},{"$f":"SUM('Trial 1'!BU38,'Trial 2'!BU38,'Trial 3'!BU38,'Trial 4'!BU38,'Trial 5'!BU38,'Trial 6'!BU38,'Trial 7'!BU38,'Trial 8'!BU38)","v":{"v":116666.66666666672,"d":"$116,667"}},{"$f":"SUM('Trial 1'!BV38,'Trial 2'!BV38,'Trial 3'!BV38,'Trial 4'!BV38,'Trial 5'!BV38,'Trial 6'!BV38,'Trial 7'!BV38,'Trial 8'!BV38)","v":{"v":116666.66666666672,"d":"$116,667"}},{"$f":"SUM('Trial 1'!BW38,'Trial 2'!BW38,'Trial 3'!BW38,'Trial 4'!BW38,'Trial 5'!BW38,'Trial 6'!BW38,'Trial 7'!BW38,'Trial 8'!BW38)","v":{"v":116666.66666666672,"d":"$116,667"}},{"$f":"SUM('Trial 1'!BX38,'Trial 2'!BX38,'Trial 3'!BX38,'Trial 4'!BX38,'Trial 5'!BX38,'Trial 6'!BX38,'Trial 7'!BX38,'Trial 8'!BX38)","v":{"v":116666.66666666672,"d":"$116,667"}},{"$f":"SUM('Trial 1'!BY38,'Trial 2'!BY38,'Trial 3'!BY38,'Trial 4'!BY38,'Trial 5'!BY38,'Trial 6'!BY38,'Trial 7'!BY38,'Trial 8'!BY38)","v":{"v":116666.66666666672,"d":"$116,667"}},{"$f":"SUM('Trial 1'!BZ38,'Trial 2'!BZ38,'Trial 3'!BZ38,'Trial 4'!BZ38,'Trial 5'!BZ38,'Trial 6'!BZ38,'Trial 7'!BZ38,'Trial 8'!BZ38)","v":{"v":116666.66666666672,"d":"$116,667"}},{"$f":"SUM(BO230:BZ230)","v":{"v":1400000.0000000007,"d":"$1,400,000"}},{"$f":"SUM('Trial 1'!CB38,'Trial 2'!CB38,'Trial 3'!CB38,'Trial 4'!CB38,'Trial 5'!CB38,'Trial 6'!CB38,'Trial 7'!CB38,'Trial 8'!CB38)","v":{"v":116666.66666666672,"d":"$116,667"}},{"$f":"SUM('Trial 1'!CC38,'Trial 2'!CC38,'Trial 3'!CC38,'Trial 4'!CC38,'Trial 5'!CC38,'Trial 6'!CC38,'Trial 7'!CC38,'Trial 8'!CC38)","v":{"v":116666.66666666672,"d":"$116,667"}},{"$f":"SUM('Trial 1'!CD38,'Trial 2'!CD38,'Trial 3'!CD38,'Trial 4'!CD38,'Trial 5'!CD38,'Trial 6'!CD38,'Trial 7'!CD38,'Trial 8'!CD38)","v":{"v":116666.66666666672,"d":"$116,667"}},{"$f":"SUM('Trial 1'!CE38,'Trial 2'!CE38,'Trial 3'!CE38,'Trial 4'!CE38,'Trial 5'!CE38,'Trial 6'!CE38,'Trial 7'!CE38,'Trial 8'!CE38)","v":{"v":116666.66666666672,"d":"$116,667"}},{"$f":"SUM('Trial 1'!CF38,'Trial 2'!CF38,'Trial 3'!CF38,'Trial 4'!CF38,'Trial 5'!CF38,'Trial 6'!CF38,'Trial 7'!CF38,'Trial 8'!CF38)","v":{"v":116666.66666666672,"d":"$116,667"}},{"$f":"SUM('Trial 1'!CG38,'Trial 2'!CG38,'Trial 3'!CG38,'Trial 4'!CG38,'Trial 5'!CG38,'Trial 6'!CG38,'Trial 7'!CG38,'Trial 8'!CG38)","v":{"v":116666.66666666672,"d":"$116,667"}},{"$f":"SUM('Trial 1'!CH38,'Trial 2'!CH38,'Trial 3'!CH38,'Trial 4'!CH38,'Trial 5'!CH38,'Trial 6'!CH38,'Trial 7'!CH38,'Trial 8'!CH38)","v":{"v":116666.66666666672,"d":"$116,667"}},{"$f":"SUM('Trial 1'!CI38,'Trial 2'!CI38,'Trial 3'!CI38,'Trial 4'!CI38,'Trial 5'!CI38,'Trial 6'!CI38,'Trial 7'!CI38,'Trial 8'!CI38)","v":{"v":116666.66666666672,"d":"$116,667"}},{"$f":"SUM('Trial 1'!CJ38,'Trial 2'!CJ38,'Trial 3'!CJ38,'Trial 4'!CJ38,'Trial 5'!CJ38,'Trial 6'!CJ38,'Trial 7'!CJ38,'Trial 8'!CJ38)","v":{"v":116666.66666666672,"d":"$116,667"}},{"$f":"SUM('Trial 1'!CK38,'Trial 2'!CK38,'Trial 3'!CK38,'Trial 4'!CK38,'Trial 5'!CK38,'Trial 6'!CK38,'Trial 7'!CK38,'Trial 8'!CK38)","v":{"v":116666.66666666672,"d":"$116,667"}},{"$f":"SUM('Trial 1'!CL38,'Trial 2'!CL38,'Trial 3'!CL38,'Trial 4'!CL38,'Trial 5'!CL38,'Trial 6'!CL38,'Trial 7'!CL38,'Trial 8'!CL38)","v":{"v":116666.66666666672,"d":"$116,667"}},{"$f":"SUM('Trial 1'!CM38,'Trial 2'!CM38,'Trial 3'!CM38,'Trial 4'!CM38,'Trial 5'!CM38,'Trial 6'!CM38,'Trial 7'!CM38,'Trial 8'!CM38)","v":{"v":116666.66666666672,"d":"$116,667"}},{"$f":"SUM(CB230:CM230)","v":{"v":1400000.0000000007,"d":"$1,400,000"}},{"$f":"SUM('Trial 1'!CO38,'Trial 2'!CO38,'Trial 3'!CO38,'Trial 4'!CO38,'Trial 5'!CO38,'Trial 6'!CO38,'Trial 7'!CO38,'Trial 8'!CO38)","v":{"v":116666.66666666672,"d":"$116,667"}},{"$f":"SUM('Trial 1'!CP38,'Trial 2'!CP38,'Trial 3'!CP38,'Trial 4'!CP38,'Trial 5'!CP38,'Trial 6'!CP38,'Trial 7'!CP38,'Trial 8'!CP38)","v":{"v":116666.66666666672,"d":"$116,667"}},{"$f":"SUM('Trial 1'!CQ38,'Trial 2'!CQ38,'Trial 3'!CQ38,'Trial 4'!CQ38,'Trial 5'!CQ38,'Trial 6'!CQ38,'Trial 7'!CQ38,'Trial 8'!CQ38)","v":{"v":116666.66666666672,"d":"$116,667"}},{"$f":"SUM('Trial 1'!CR38,'Trial 2'!CR38,'Trial 3'!CR38,'Trial 4'!CR38,'Trial 5'!CR38,'Trial 6'!CR38,'Trial 7'!CR38,'Trial 8'!CR38)","v":{"v":116666.66666666672,"d":"$116,667"}},{"$f":"SUM('Trial 1'!CS38,'Trial 2'!CS38,'Trial 3'!CS38,'Trial 4'!CS38,'Trial 5'!CS38,'Trial 6'!CS38,'Trial 7'!CS38,'Trial 8'!CS38)","v":{"v":116666.66666666672,"d":"$116,667"}},{"$f":"SUM('Trial 1'!CT38,'Trial 2'!CT38,'Trial 3'!CT38,'Trial 4'!CT38,'Trial 5'!CT38,'Trial 6'!CT38,'Trial 7'!CT38,'Trial 8'!CT38)","v":{"v":116666.66666666672,"d":"$116,667"}},{"$f":"SUM('Trial 1'!CU38,'Trial 2'!CU38,'Trial 3'!CU38,'Trial 4'!CU38,'Trial 5'!CU38,'Trial 6'!CU38,'Trial 7'!CU38,'Trial 8'!CU38)","v":{"v":116666.66666666672,"d":"$116,667"}},{"$f":"SUM('Trial 1'!CV38,'Trial 2'!CV38,'Trial 3'!CV38,'Trial 4'!CV38,'Trial 5'!CV38,'Trial 6'!CV38,'Trial 7'!CV38,'Trial 8'!CV38)","v":{"v":116666.66666666672,"d":"$116,667"}},{"$f":"SUM('Trial 1'!CW38,'Trial 2'!CW38,'Trial 3'!CW38,'Trial 4'!CW38,'Trial 5'!CW38,'Trial 6'!CW38,'Trial 7'!CW38,'Trial 8'!CW38)","v":{"v":116666.66666666672,"d":"$116,667"}},{"$f":"SUM('Trial 1'!CX38,'Trial 2'!CX38,'Trial 3'!CX38,'Trial 4'!CX38,'Trial 5'!CX38,'Trial 6'!CX38,'Trial 7'!CX38,'Trial 8'!CX38)","v":{"v":116666.66666666672,"d":"$116,667"}},{"$f":"SUM('Trial 1'!CY38,'Trial 2'!CY38,'Trial 3'!CY38,'Trial 4'!CY38,'Trial 5'!CY38,'Trial 6'!CY38,'Trial 7'!CY38,'Trial 8'!CY38)","v":{"v":116666.66666666672,"d":"$116,667"}},{"$f":"SUM('Trial 1'!CZ38,'Trial 2'!CZ38,'Trial 3'!CZ38,'Trial 4'!CZ38,'Trial 5'!CZ38,'Trial 6'!CZ38,'Trial 7'!CZ38,'Trial 8'!CZ38)","v":{"v":116666.66666666672,"d":"$116,667"}},{"$f":"SUM(CO230:CZ230)","v":{"v":1400000.0000000007,"d":"$1,400,000"}},{"$f":"SUM('Trial 1'!DB38,'Trial 2'!DB38,'Trial 3'!DB38,'Trial 4'!DB38,'Trial 5'!DB38,'Trial 6'!DB38,'Trial 7'!DB38,'Trial 8'!DB38)","v":{"v":116666.66666666672,"d":"$116,667"}},{"$f":"SUM('Trial 1'!DC38,'Trial 2'!DC38,'Trial 3'!DC38,'Trial 4'!DC38,'Trial 5'!DC38,'Trial 6'!DC38,'Trial 7'!DC38,'Trial 8'!DC38)","v":{"v":116666.66666666672,"d":"$116,667"}},{"$f":"SUM('Trial 1'!DD38,'Trial 2'!DD38,'Trial 3'!DD38,'Trial 4'!DD38,'Trial 5'!DD38,'Trial 6'!DD38,'Trial 7'!DD38,'Trial 8'!DD38)","v":{"v":116666.66666666672,"d":"$116,667"}},{"$f":"SUM('Trial 1'!DE38,'Trial 2'!DE38,'Trial 3'!DE38,'Trial 4'!DE38,'Trial 5'!DE38,'Trial 6'!DE38,'Trial 7'!DE38,'Trial 8'!DE38)","v":{"v":116666.66666666672,"d":"$116,667"}},{"$f":"SUM('Trial 1'!DF38,'Trial 2'!DF38,'Trial 3'!DF38,'Trial 4'!DF38,'Trial 5'!DF38,'Trial 6'!DF38,'Trial 7'!DF38,'Trial 8'!DF38)","v":{"v":116666.66666666672,"d":"$116,667"}},{"$f":"SUM('Trial 1'!DG38,'Trial 2'!DG38,'Trial 3'!DG38,'Trial 4'!DG38,'Trial 5'!DG38,'Trial 6'!DG38,'Trial 7'!DG38,'Trial 8'!DG38)","v":{"v":116666.66666666672,"d":"$116,667"}},{"$f":"SUM('Trial 1'!DH38,'Trial 2'!DH38,'Trial 3'!DH38,'Trial 4'!DH38,'Trial 5'!DH38,'Trial 6'!DH38,'Trial 7'!DH38,'Trial 8'!DH38)","v":{"v":116666.66666666672,"d":"$116,667"}},{"$f":"SUM('Trial 1'!DI38,'Trial 2'!DI38,'Trial 3'!DI38,'Trial 4'!DI38,'Trial 5'!DI38,'Trial 6'!DI38,'Trial 7'!DI38,'Trial 8'!DI38)","v":{"v":116666.66666666672,"d":"$116,667"}},{"$f":"SUM('Trial 1'!DJ38,'Trial 2'!DJ38,'Trial 3'!DJ38,'Trial 4'!DJ38,'Trial 5'!DJ38,'Trial 6'!DJ38,'Trial 7'!DJ38,'Trial 8'!DJ38)","v":{"v":116666.66666666672,"d":"$116,667"}},{"$f":"SUM('Trial 1'!DK38,'Trial 2'!DK38,'Trial 3'!DK38,'Trial 4'!DK38,'Trial 5'!DK38,'Trial 6'!DK38,'Trial 7'!DK38,'Trial 8'!DK38)","v":{"v":116666.66666666672,"d":"$116,667"}},{"$f":"SUM('Trial 1'!DL38,'Trial 2'!DL38,'Trial 3'!DL38,'Trial 4'!DL38,'Trial 5'!DL38,'Trial 6'!DL38,'Trial 7'!DL38,'Trial 8'!DL38)","v":{"v":116666.66666666672,"d":"$116,667"}},{"$f":"SUM('Trial 1'!DM38,'Trial 2'!DM38,'Trial 3'!DM38,'Trial 4'!DM38,'Trial 5'!DM38,'Trial 6'!DM38,'Trial 7'!DM38,'Trial 8'!DM38)","v":{"v":116666.66666666672,"d":"$116,667"}},{"$f":"SUM(DB230:DM230)","v":{"v":1400000.0000000007,"d":"$1,400,000"}},{"$f":"SUM('Trial 1'!DO38,'Trial 2'!DO38,'Trial 3'!DO38,'Trial 4'!DO38,'Trial 5'!DO38,'Trial 6'!DO38,'Trial 7'!DO38,'Trial 8'!DO38)","v":{"v":116666.66666666672,"d":"$116,667"}},{"$f":"SUM('Trial 1'!DP38,'Trial 2'!DP38,'Trial 3'!DP38,'Trial 4'!DP38,'Trial 5'!DP38,'Trial 6'!DP38,'Trial 7'!DP38,'Trial 8'!DP38)","v":{"v":116666.66666666672,"d":"$116,667"}},{"$f":"SUM('Trial 1'!DQ38,'Trial 2'!DQ38,'Trial 3'!DQ38,'Trial 4'!DQ38,'Trial 5'!DQ38,'Trial 6'!DQ38,'Trial 7'!DQ38,'Trial 8'!DQ38)","v":{"v":116666.66666666672,"d":"$116,667"}},{"$f":"SUM('Trial 1'!DR38,'Trial 2'!DR38,'Trial 3'!DR38,'Trial 4'!DR38,'Trial 5'!DR38,'Trial 6'!DR38,'Trial 7'!DR38,'Trial 8'!DR38)","v":{"v":116666.66666666672,"d":"$116,667"}},{"$f":"SUM('Trial 1'!DS38,'Trial 2'!DS38,'Trial 3'!DS38,'Trial 4'!DS38,'Trial 5'!DS38,'Trial 6'!DS38,'Trial 7'!DS38,'Trial 8'!DS38)","v":{"v":116666.66666666672,"d":"$116,667"}},{"$f":"SUM('Trial 1'!DT38,'Trial 2'!DT38,'Trial 3'!DT38,'Trial 4'!DT38,'Trial 5'!DT38,'Trial 6'!DT38,'Trial 7'!DT38,'Trial 8'!DT38)","v":{"v":116666.66666666672,"d":"$116,667"}},{"$f":"SUM('Trial 1'!DU38,'Trial 2'!DU38,'Trial 3'!DU38,'Trial 4'!DU38,'Trial 5'!DU38,'Trial 6'!DU38,'Trial 7'!DU38,'Trial 8'!DU38)","v":{"v":116666.66666666672,"d":"$116,667"}},{"$f":"SUM('Trial 1'!DV38,'Trial 2'!DV38,'Trial 3'!DV38,'Trial 4'!DV38,'Trial 5'!DV38,'Trial 6'!DV38,'Trial 7'!DV38,'Trial 8'!DV38)","v":{"v":116666.66666666672,"d":"$116,667"}},{"$f":"SUM('Trial 1'!DW38,'Trial 2'!DW38,'Trial 3'!DW38,'Trial 4'!DW38,'Trial 5'!DW38,'Trial 6'!DW38,'Trial 7'!DW38,'Trial 8'!DW38)","v":{"v":116666.66666666672,"d":"$116,667"}},{"$f":"SUM('Trial 1'!DX38,'Trial 2'!DX38,'Trial 3'!DX38,'Trial 4'!DX38,'Trial 5'!DX38,'Trial 6'!DX38,'Trial 7'!DX38,'Trial 8'!DX38)","v":{"v":116666.66666666672,"d":"$116,667"}},{"$f":"SUM('Trial 1'!DY38,'Trial 2'!DY38,'Trial 3'!DY38,'Trial 4'!DY38,'Trial 5'!DY38,'Trial 6'!DY38,'Trial 7'!DY38,'Trial 8'!DY38)","v":{"v":116666.66666666672,"d":"$116,667"}},{"$f":"SUM('Trial 1'!DZ38,'Trial 2'!DZ38,'Trial 3'!DZ38,'Trial 4'!DZ38,'Trial 5'!DZ38,'Trial 6'!DZ38,'Trial 7'!DZ38,'Trial 8'!DZ38)","v":{"v":116666.66666666672,"d":"$116,667"}},{"$f":"SUM(DO230:DZ230)","v":{"v":1400000.0000000007,"d":"$1,400,000"}},{"$f":"SUM('Trial 1'!EB38,'Trial 2'!EB38,'Trial 3'!EB38,'Trial 4'!EB38,'Trial 5'!EB38,'Trial 6'!EB38,'Trial 7'!EB38,'Trial 8'!EB38)","v":{"v":116666.66666666672,"d":"$116,667"}},{"$f":"SUM('Trial 1'!EC38,'Trial 2'!EC38,'Trial 3'!EC38,'Trial 4'!EC38,'Trial 5'!EC38,'Trial 6'!EC38,'Trial 7'!EC38,'Trial 8'!EC38)","v":{"v":116666.66666666672,"d":"$116,667"}},{"$f":"SUM('Trial 1'!ED38,'Trial 2'!ED38,'Trial 3'!ED38,'Trial 4'!ED38,'Trial 5'!ED38,'Trial 6'!ED38,'Trial 7'!ED38,'Trial 8'!ED38)","v":{"v":116666.66666666672,"d":"$116,667"}},{"$f":"SUM('Trial 1'!EE38,'Trial 2'!EE38,'Trial 3'!EE38,'Trial 4'!EE38,'Trial 5'!EE38,'Trial 6'!EE38,'Trial 7'!EE38,'Trial 8'!EE38)","v":{"v":116666.66666666672,"d":"$116,667"}},{"$f":"SUM('Trial 1'!EF38,'Trial 2'!EF38,'Trial 3'!EF38,'Trial 4'!EF38,'Trial 5'!EF38,'Trial 6'!EF38,'Trial 7'!EF38,'Trial 8'!EF38)","v":{"v":116666.66666666672,"d":"$116,667"}},{"$f":"SUM('Trial 1'!EG38,'Trial 2'!EG38,'Trial 3'!EG38,'Trial 4'!EG38,'Trial 5'!EG38,'Trial 6'!EG38,'Trial 7'!EG38,'Trial 8'!EG38)","v":{"v":116666.66666666672,"d":"$116,667"}},{"$f":"SUM('Trial 1'!EH38,'Trial 2'!EH38,'Trial 3'!EH38,'Trial 4'!EH38,'Trial 5'!EH38,'Trial 6'!EH38,'Trial 7'!EH38,'Trial 8'!EH38)","v":{"v":116666.66666666672,"d":"$116,667"}},{"$f":"SUM('Trial 1'!EI38,'Trial 2'!EI38,'Trial 3'!EI38,'Trial 4'!EI38,'Trial 5'!EI38,'Trial 6'!EI38,'Trial 7'!EI38,'Trial 8'!EI38)","v":{"v":116666.66666666672,"d":"$116,667"}},{"$f":"SUM('Trial 1'!EJ38,'Trial 2'!EJ38,'Trial 3'!EJ38,'Trial 4'!EJ38,'Trial 5'!EJ38,'Trial 6'!EJ38,'Trial 7'!EJ38,'Trial 8'!EJ38)","v":{"v":116666.66666666672,"d":"$116,667"}},{"$f":"SUM('Trial 1'!EK38,'Trial 2'!EK38,'Trial 3'!EK38,'Trial 4'!EK38,'Trial 5'!EK38,'Trial 6'!EK38,'Trial 7'!EK38,'Trial 8'!EK38)","v":{"v":116666.66666666672,"d":"$116,667"}},{"$f":"SUM('Trial 1'!EL38,'Trial 2'!EL38,'Trial 3'!EL38,'Trial 4'!EL38,'Trial 5'!EL38,'Trial 6'!EL38,'Trial 7'!EL38,'Trial 8'!EL38)","v":{"v":116666.66666666672,"d":"$116,667"}},{"$f":"SUM('Trial 1'!EM38,'Trial 2'!EM38,'Trial 3'!EM38,'Trial 4'!EM38,'Trial 5'!EM38,'Trial 6'!EM38,'Trial 7'!EM38,'Trial 8'!EM38)","v":{"v":116666.66666666672,"d":"$116,667"}},{"$f":"SUM(EB230:EM230)","v":{"v":1400000.0000000007,"d":"$1,400,000"}}]
[{"$f":"Labels!B51","v":"Gov Spending"}]
[{"$f":"Labels!D96","v":"Trials"},{"$f":"ZZZ__FnCalls!F7","v":"Jan 2010"},{"$f":"ZZZ__FnCalls!F8","v":"Feb 2010"},{"$f":"ZZZ__FnCalls!F9","v":"Mar 2010"},{"$f":"ZZZ__FnCalls!F10","v":"Apr 2010"},{"$f":"ZZZ__FnCalls!F11","v":"May 2010"},{"$f":"ZZZ__FnCalls!F12","v":"Jun 2010"},{"$f":"ZZZ__FnCalls!F13","v":"Jul 2010"},{"$f":"ZZZ__FnCalls!F14","v":"Aug 2010"},{"$f":"ZZZ__FnCalls!F15","v":"Sep 2010"},{"$f":"ZZZ__FnCalls!F16","v":"Oct 2010"},{"$f":"ZZZ__FnCalls!F17","v":"Nov 2010"},{"$f":"ZZZ__FnCalls!F18","v":"Dec 2010"},{"$f":"ZZZ__FnCalls!H7","v":"2010"},{"$f":"ZZZ__FnCalls!F19","v":"Jan 2011"},{"$f":"ZZZ__FnCalls!F20","v":"Feb 2011"},{"$f":"ZZZ__FnCalls!F21","v":"Mar 2011"},{"$f":"ZZZ__FnCalls!F22","v":"Apr 2011"},{"$f":"ZZZ__FnCalls!F23","v":"May 2011"},{"$f":"ZZZ__FnCalls!F24","v":"Jun 2011"},{"$f":"ZZZ__FnCalls!F25","v":"Jul 2011"},{"$f":"ZZZ__FnCalls!F26","v":"Aug 2011"},{"$f":"ZZZ__FnCalls!F27","v":"Sep 2011"},{"$f":"ZZZ__FnCalls!F28","v":"Oct 2011"},{"$f":"ZZZ__FnCalls!F29","v":"Nov 2011"},{"$f":"ZZZ__FnCalls!F30","v":"Dec 2011"},{"$f":"ZZZ__FnCalls!H19","v":"2011"},{"$f":"ZZZ__FnCalls!F31","v":"Jan 2012"},{"$f":"ZZZ__FnCalls!F32","v":"Feb 2012"},{"$f":"ZZZ__FnCalls!F33","v":"Mar 2012"},{"$f":"ZZZ__FnCalls!F34","v":"Apr 2012"},{"$f":"ZZZ__FnCalls!F35","v":"May 2012"},{"$f":"ZZZ__FnCalls!F36","v":"Jun 2012"},{"$f":"ZZZ__FnCalls!F37","v":"Jul 2012"},{"$f":"ZZZ__FnCalls!F38","v":"Aug 2012"},{"$f":"ZZZ__FnCalls!F39","v":"Sep 2012"},{"$f":"ZZZ__FnCalls!F40","v":"Oct 2012"},{"$f":"ZZZ__FnCalls!F41","v":"Nov 2012"},{"$f":"ZZZ__FnCalls!F42","v":"Dec 2012"},{"$f":"ZZZ__FnCalls!H31","v":"2012"},{"$f":"ZZZ__FnCalls!F43","v":"Jan 2013"},{"$f":"ZZZ__FnCalls!F44","v":"Feb 2013"},{"$f":"ZZZ__FnCalls!F45","v":"Mar 2013"},{"$f":"ZZZ__FnCalls!F46","v":"Apr 2013"},{"$f":"ZZZ__FnCalls!F47","v":"May 2013"},{"$f":"ZZZ__FnCalls!F48","v":"Jun 2013"},{"$f":"ZZZ__FnCalls!F49","v":"Jul 2013"},{"$f":"ZZZ__FnCalls!F50","v":"Aug 2013"},{"$f":"ZZZ__FnCalls!F51","v":"Sep 2013"},{"$f":"ZZZ__FnCalls!F52","v":"Oct 2013"},{"$f":"ZZZ__FnCalls!F53","v":"Nov 2013"},{"$f":"ZZZ__FnCalls!F54","v":"Dec 2013"},{"$f":"ZZZ__FnCalls!H43","v":"2013"},{"$f":"ZZZ__FnCalls!F55","v":"Jan 2014"},{"$f":"ZZZ__FnCalls!F56","v":"Feb 2014"},{"$f":"ZZZ__FnCalls!F57","v":"Mar 2014"},{"$f":"ZZZ__FnCalls!F58","v":"Apr 2014"},{"$f":"ZZZ__FnCalls!F59","v":"May 2014"},{"$f":"ZZZ__FnCalls!F60","v":"Jun 2014"},{"$f":"ZZZ__FnCalls!F61","v":"Jul 2014"},{"$f":"ZZZ__FnCalls!F62","v":"Aug 2014"},{"$f":"ZZZ__FnCalls!F63","v":"Sep 2014"},{"$f":"ZZZ__FnCalls!F64","v":"Oct 2014"},{"$f":"ZZZ__FnCalls!F65","v":"Nov 2014"},{"$f":"ZZZ__FnCalls!F66","v":"Dec 2014"},{"$f":"ZZZ__FnCalls!H55","v":"2014"},{"$f":"ZZZ__FnCalls!F67","v":"Jan 2015"},{"$f":"ZZZ__FnCalls!F68","v":"Feb 2015"},{"$f":"ZZZ__FnCalls!F69","v":"Mar 2015"},{"$f":"ZZZ__FnCalls!F70","v":"Apr 2015"},{"$f":"ZZZ__FnCalls!F71","v":"May 2015"},{"$f":"ZZZ__FnCalls!F72","v":"Jun 2015"},{"$f":"ZZZ__FnCalls!F73","v":"Jul 2015"},{"$f":"ZZZ__FnCalls!F74","v":"Aug 2015"},{"$f":"ZZZ__FnCalls!F75","v":"Sep 2015"},{"$f":"ZZZ__FnCalls!F76","v":"Oct 2015"},{"$f":"ZZZ__FnCalls!F77","v":"Nov 2015"},{"$f":"ZZZ__FnCalls!F78","v":"Dec 2015"},{"$f":"ZZZ__FnCalls!H67","v":"2015"},{"$f":"ZZZ__FnCalls!F79","v":"Jan 2016"},{"$f":"ZZZ__FnCalls!F80","v":"Feb 2016"},{"$f":"ZZZ__FnCalls!F81","v":"Mar 2016"},{"$f":"ZZZ__FnCalls!F82","v":"Apr 2016"},{"$f":"ZZZ__FnCalls!F83","v":"May 2016"},{"$f":"ZZZ__FnCalls!F84","v":"Jun 2016"},{"$f":"ZZZ__FnCalls!F85","v":"Jul 2016"},{"$f":"ZZZ__FnCalls!F86","v":"Aug 2016"},{"$f":"ZZZ__FnCalls!F87","v":"Sep 2016"},{"$f":"ZZZ__FnCalls!F88","v":"Oct 2016"},{"$f":"ZZZ__FnCalls!F89","v":"Nov 2016"},{"$f":"ZZZ__FnCalls!F90","v":"Dec 2016"},{"$f":"ZZZ__FnCalls!H79","v":"2016"},{"$f":"ZZZ__FnCalls!F91","v":"Jan 2017"},{"$f":"ZZZ__FnCalls!F92","v":"Feb 2017"},{"$f":"ZZZ__FnCalls!F93","v":"Mar 2017"},{"$f":"ZZZ__FnCalls!F94","v":"Apr 2017"},{"$f":"ZZZ__FnCalls!F95","v":"May 2017"},{"$f":"ZZZ__FnCalls!F96","v":"Jun 2017"},{"$f":"ZZZ__FnCalls!F97","v":"Jul 2017"},{"$f":"ZZZ__FnCalls!F98","v":"Aug 2017"},{"$f":"ZZZ__FnCalls!F99","v":"Sep 2017"},{"$f":"ZZZ__FnCalls!F100","v":"Oct 2017"},{"$f":"ZZZ__FnCalls!F101","v":"Nov 2017"},{"$f":"ZZZ__FnCalls!F102","v":"Dec 2017"},{"$f":"ZZZ__FnCalls!H91","v":"2017"},{"$f":"ZZZ__FnCalls!F103","v":"Jan 2018"},{"$f":"ZZZ__FnCalls!F104","v":"Feb 2018"},{"$f":"ZZZ__FnCalls!F105","v":"Mar 2018"},{"$f":"ZZZ__FnCalls!F106","v":"Apr 2018"},{"$f":"ZZZ__FnCalls!F107","v":"May 2018"},{"$f":"ZZZ__FnCalls!F108","v":"Jun 2018"},{"$f":"ZZZ__FnCalls!F109","v":"Jul 2018"},{"$f":"ZZZ__FnCalls!F110","v":"Aug 2018"},{"$f":"ZZZ__FnCalls!F111","v":"Sep 2018"},{"$f":"ZZZ__FnCalls!F112","v":"Oct 2018"},{"$f":"ZZZ__FnCalls!F113","v":"Nov 2018"},{"$f":"ZZZ__FnCalls!F114","v":"Dec 2018"},{"$f":"ZZZ__FnCalls!H103","v":"2018"},{"$f":"ZZZ__FnCalls!F115","v":"Jan 2019"},{"$f":"ZZZ__FnCalls!F116","v":"Feb 2019"},{"$f":"ZZZ__FnCalls!F117","v":"Mar 2019"},{"$f":"ZZZ__FnCalls!F118","v":"Apr 2019"},{"$f":"ZZZ__FnCalls!F119","v":"May 2019"},{"$f":"ZZZ__FnCalls!F120","v":"Jun 2019"},{"$f":"ZZZ__FnCalls!F121","v":"Jul 2019"},{"$f":"ZZZ__FnCalls!F122","v":"Aug 2019"},{"$f":"ZZZ__FnCalls!F123","v":"Sep 2019"},{"$f":"ZZZ__FnCalls!F124","v":"Oct 2019"},{"$f":"ZZZ__FnCalls!F125","v":"Nov 2019"},{"$f":"ZZZ__FnCalls!F126","v":"Dec 2019"},{"$f":"ZZZ__FnCalls!H115","v":"2019"},{"$f":"ZZZ__FnCalls!F127","v":"Jan 2020"},{"$f":"ZZZ__FnCalls!F128","v":"Feb 2020"},{"$f":"ZZZ__FnCalls!F129","v":"Mar 2020"},{"$f":"ZZZ__FnCalls!F130","v":"Apr 2020"},{"$f":"ZZZ__FnCalls!F131","v":"May 2020"},{"$f":"ZZZ__FnCalls!F132","v":"Jun 2020"},{"$f":"ZZZ__FnCalls!F133","v":"Jul 2020"},{"$f":"ZZZ__FnCalls!F134","v":"Aug 2020"},{"$f":"ZZZ__FnCalls!F135","v":"Sep 2020"},{"$f":"ZZZ__FnCalls!F136","v":"Oct 2020"},{"$f":"ZZZ__FnCalls!F137","v":"Nov 2020"},{"$f":"ZZZ__FnCalls!F138","v":"Dec 2020"},{"$f":"ZZZ__FnCalls!H127","v":"2020"}]
[{"$f":"Labels!B96","v":"Trial 01"},{"$f":"'Trial 1'!B37","v":{"v":29166.66666666667,"d":"$29,167"}},{"$f":"'Trial 1'!C37","v":{"v":29166.66666666667,"d":"$29,167"}},{"$f":"'Trial 1'!D37","v":{"v":29166.66666666667,"d":"$29,167"}},{"$f":"'Trial 1'!E37","v":{"v":29166.66666666667,"d":"$29,167"}},{"$f":"'Trial 1'!F37","v":{"v":29166.66666666667,"d":"$29,167"}},{"$f":"'Trial 1'!G37","v":{"v":29166.66666666667,"d":"$29,167"}},{"$f":"'Trial 1'!H37","v":{"v":29166.66666666667,"d":"$29,167"}},{"$f":"'Trial 1'!I37","v":{"v":29166.66666666667,"d":"$29,167"}},{"$f":"'Trial 1'!J37","v":{"v":29166.66666666667,"d":"$29,167"}},{"$f":"'Trial 1'!K37","v":{"v":29166.66666666667,"d":"$29,167"}},{"$f":"'Trial 1'!L37","v":{"v":29166.66666666667,"d":"$29,167"}},{"$f":"'Trial 1'!M37","v":{"v":29166.66666666667,"d":"$29,167"}},{"$f":"SUM('Trial 1'!B37:M37)","v":{"v":350000.0000000002,"d":"$350,000"}},{"$f":"'Trial 1'!O37","v":{"v":29166.66666666667,"d":"$29,167"}},{"$f":"'Trial 1'!P37","v":{"v":29166.66666666667,"d":"$29,167"}},{"$f":"'Trial 1'!Q37","v":{"v":29166.66666666667,"d":"$29,167"}},{"$f":"'Trial 1'!R37","v":{"v":29166.66666666667,"d":"$29,167"}},{"$f":"'Trial 1'!S37","v":{"v":29166.66666666667,"d":"$29,167"}},{"$f":"'Trial 1'!T37","v":{"v":29166.66666666667,"d":"$29,167"}},{"$f":"'Trial 1'!U37","v":{"v":29166.66666666667,"d":"$29,167"}},{"$f":"'Trial 1'!V37","v":{"v":29166.66666666667,"d":"$29,167"}},{"$f":"'Trial 1'!W37","v":{"v":29166.66666666667,"d":"$29,167"}},{"$f":"'Trial 1'!X37","v":{"v":29166.66666666667,"d":"$29,167"}},{"$f":"'Trial 1'!Y37","v":{"v":29166.66666666667,"d":"$29,167"}},{"$f":"'Trial 1'!Z37","v":{"v":29166.66666666667,"d":"$29,167"}},{"$f":"SUM('Trial 1'!O37:Z37)","v":{"v":350000.0000000002,"d":"$350,000"}},{"$f":"'Trial 1'!AB37","v":{"v":29166.66666666667,"d":"$29,167"}},{"$f":"'Trial 1'!AC37","v":{"v":29166.66666666667,"d":"$29,167"}},{"$f":"'Trial 1'!AD37","v":{"v":29166.66666666667,"d":"$29,167"}},{"$f":"'Trial 1'!AE37","v":{"v":29166.66666666667,"d":"$29,167"}},{"$f":"'Trial 1'!AF37","v":{"v":29166.66666666667,"d":"$29,167"}},{"$f":"'Trial 1'!AG37","v":{"v":29166.66666666667,"d":"$29,167"}},{"$f":"'Trial 1'!AH37","v":{"v":29166.66666666667,"d":"$29,167"}},{"$f":"'Trial 1'!AI37","v":{"v":29166.66666666667,"d":"$29,167"}},{"$f":"'Trial 1'!AJ37","v":{"v":29166.66666666667,"d":"$29,167"}},{"$f":"'Trial 1'!AK37","v":{"v":29166.66666666667,"d":"$29,167"}},{"$f":"'Trial 1'!AL37","v":{"v":29166.66666666667,"d":"$29,167"}},{"$f":"'Trial 1'!AM37","v":{"v":29166.66666666667,"d":"$29,167"}},{"$f":"SUM('Trial 1'!AB37:AM37)","v":{"v":350000.0000000002,"d":"$350,000"}},{"$f":"'Trial 1'!AO37","v":{"v":29166.66666666667,"d":"$29,167"}},{"$f":"'Trial 1'!AP37","v":{"v":29166.66666666667,"d":"$29,167"}},{"$f":"'Trial 1'!AQ37","v":{"v":29166.66666666667,"d":"$29,167"}},{"$f":"'Trial 1'!AR37","v":{"v":29166.66666666667,"d":"$29,167"}},{"$f":"'Trial 1'!AS37","v":{"v":29166.66666666667,"d":"$29,167"}},{"$f":"'Trial 1'!AT37","v":{"v":29166.66666666667,"d":"$29,167"}},{"$f":"'Trial 1'!AU37","v":{"v":29166.66666666667,"d":"$29,167"}},{"$f":"'Trial 1'!AV37","v":{"v":29166.66666666667,"d":"$29,167"}},{"$f":"'Trial 1'!AW37","v":{"v":29166.66666666667,"d":"$29,167"}},{"$f":"'Trial 1'!AX37","v":{"v":29166.66666666667,"d":"$29,167"}},{"$f":"'Trial 1'!AY37","v":{"v":29166.66666666667,"d":"$29,167"}},{"$f":"'Trial 1'!AZ37","v":{"v":29166.66666666667,"d":"$29,167"}},{"$f":"SUM('Trial 1'!AO37:AZ37)","v":{"v":350000.0000000002,"d":"$350,000"}},{"$f":"'Trial 1'!BB37","v":{"v":29166.66666666667,"d":"$29,167"}},{"$f":"'Trial 1'!BC37","v":{"v":29166.66666666667,"d":"$29,167"}},{"$f":"'Trial 1'!BD37","v":{"v":29166.66666666667,"d":"$29,167"}},{"$f":"'Trial 1'!BE37","v":{"v":29166.66666666667,"d":"$29,167"}},{"$f":"'Trial 1'!BF37","v":{"v":29166.66666666667,"d":"$29,167"}},{"$f":"'Trial 1'!BG37","v":{"v":29166.66666666667,"d":"$29,167"}},{"$f":"'Trial 1'!BH37","v":{"v":29166.66666666667,"d":"$29,167"}},{"$f":"'Trial 1'!BI37","v":{"v":29166.66666666667,"d":"$29,167"}},{"$f":"'Trial 1'!BJ37","v":{"v":29166.66666666667,"d":"$29,167"}},{"$f":"'Trial 1'!BK37","v":{"v":29166.66666666667,"d":"$29,167"}},{"$f":"'Trial 1'!BL37","v":{"v":29166.66666666667,"d":"$29,167"}},{"$f":"'Trial 1'!BM37","v":{"v":29166.66666666667,"d":"$29,167"}},{"$f":"SUM('Trial 1'!BB37:BM37)","v":{"v":350000.0000000002,"d":"$350,000"}},{"$f":"'Trial 1'!BO37","v":{"v":29166.66666666667,"d":"$29,167"}},{"$f":"'Trial 1'!BP37","v":{"v":29166.66666666667,"d":"$29,167"}},{"$f":"'Trial 1'!BQ37","v":{"v":29166.66666666667,"d":"$29,167"}},{"$f":"'Trial 1'!BR37","v":{"v":29166.66666666667,"d":"$29,167"}},{"$f":"'Trial 1'!BS37","v":{"v":29166.66666666667,"d":"$29,167"}},{"$f":"'Trial 1'!BT37","v":{"v":29166.66666666667,"d":"$29,167"}},{"$f":"'Trial 1'!BU37","v":{"v":29166.66666666667,"d":"$29,167"}},{"$f":"'Trial 1'!BV37","v":{"v":29166.66666666667,"d":"$29,167"}},{"$f":"'Trial 1'!BW37","v":{"v":29166.66666666667,"d":"$29,167"}},{"$f":"'Trial 1'!BX37","v":{"v":29166.66666666667,"d":"$29,167"}},{"$f":"'Trial 1'!BY37","v":{"v":29166.66666666667,"d":"$29,167"}},{"$f":"'Trial 1'!BZ37","v":{"v":29166.66666666667,"d":"$29,167"}},{"$f":"SUM('Trial 1'!BO37:BZ37)","v":{"v":350000.0000000002,"d":"$350,000"}},{"$f":"'Trial 1'!CB37","v":{"v":29166.66666666667,"d":"$29,167"}},{"$f":"'Trial 1'!CC37","v":{"v":29166.66666666667,"d":"$29,167"}},{"$f":"'Trial 1'!CD37","v":{"v":29166.66666666667,"d":"$29,167"}},{"$f":"'Trial 1'!CE37","v":{"v":29166.66666666667,"d":"$29,167"}},{"$f":"'Trial 1'!CF37","v":{"v":29166.66666666667,"d":"$29,167"}},{"$f":"'Trial 1'!CG37","v":{"v":29166.66666666667,"d":"$29,167"}},{"$f":"'Trial 1'!CH37","v":{"v":29166.66666666667,"d":"$29,167"}},{"$f":"'Trial 1'!CI37","v":{"v":29166.66666666667,"d":"$29,167"}},{"$f":"'Trial 1'!CJ37","v":{"v":29166.66666666667,"d":"$29,167"}},{"$f":"'Trial 1'!CK37","v":{"v":29166.66666666667,"d":"$29,167"}},{"$f":"'Trial 1'!CL37","v":{"v":29166.66666666667,"d":"$29,167"}},{"$f":"'Trial 1'!CM37","v":{"v":29166.66666666667,"d":"$29,167"}},{"$f":"SUM('Trial 1'!CB37:CM37)","v":{"v":350000.0000000002,"d":"$350,000"}},{"$f":"'Trial 1'!CO37","v":{"v":29166.66666666667,"d":"$29,167"}},{"$f":"'Trial 1'!CP37","v":{"v":29166.66666666667,"d":"$29,167"}},{"$f":"'Trial 1'!CQ37","v":{"v":29166.66666666667,"d":"$29,167"}},{"$f":"'Trial 1'!CR37","v":{"v":29166.66666666667,"d":"$29,167"}},{"$f":"'Trial 1'!CS37","v":{"v":29166.66666666667,"d":"$29,167"}},{"$f":"'Trial 1'!CT37","v":{"v":29166.66666666667,"d":"$29,167"}},{"$f":"'Trial 1'!CU37","v":{"v":29166.66666666667,"d":"$29,167"}},{"$f":"'Trial 1'!CV37","v":{"v":29166.66666666667,"d":"$29,167"}},{"$f":"'Trial 1'!CW37","v":{"v":29166.66666666667,"d":"$29,167"}},{"$f":"'Trial 1'!CX37","v":{"v":29166.66666666667,"d":"$29,167"}},{"$f":"'Trial 1'!CY37","v":{"v":29166.66666666667,"d":"$29,167"}},{"$f":"'Trial 1'!CZ37","v":{"v":29166.66666666667,"d":"$29,167"}},{"$f":"SUM('Trial 1'!CO37:CZ37)","v":{"v":350000.0000000002,"d":"$350,000"}},{"$f":"'Trial 1'!DB37","v":{"v":29166.66666666667,"d":"$29,167"}},{"$f":"'Trial 1'!DC37","v":{"v":29166.66666666667,"d":"$29,167"}},{"$f":"'Trial 1'!DD37","v":{"v":29166.66666666667,"d":"$29,167"}},{"$f":"'Trial 1'!DE37","v":{"v":29166.66666666667,"d":"$29,167"}},{"$f":"'Trial 1'!DF37","v":{"v":29166.66666666667,"d":"$29,167"}},{"$f":"'Trial 1'!DG37","v":{"v":29166.66666666667,"d":"$29,167"}},{"$f":"'Trial 1'!DH37","v":{"v":29166.66666666667,"d":"$29,167"}},{"$f":"'Trial 1'!DI37","v":{"v":29166.66666666667,"d":"$29,167"}},{"$f":"'Trial 1'!DJ37","v":{"v":29166.66666666667,"d":"$29,167"}},{"$f":"'Trial 1'!DK37","v":{"v":29166.66666666667,"d":"$29,167"}},{"$f":"'Trial 1'!DL37","v":{"v":29166.66666666667,"d":"$29,167"}},{"$f":"'Trial 1'!DM37","v":{"v":29166.66666666667,"d":"$29,167"}},{"$f":"SUM('Trial 1'!DB37:DM37)","v":{"v":350000.0000000002,"d":"$350,000"}},{"$f":"'Trial 1'!DO37","v":{"v":29166.66666666667,"d":"$29,167"}},{"$f":"'Trial 1'!DP37","v":{"v":29166.66666666667,"d":"$29,167"}},{"$f":"'Trial 1'!DQ37","v":{"v":29166.66666666667,"d":"$29,167"}},{"$f":"'Trial 1'!DR37","v":{"v":29166.66666666667,"d":"$29,167"}},{"$f":"'Trial 1'!DS37","v":{"v":29166.66666666667,"d":"$29,167"}},{"$f":"'Trial 1'!DT37","v":{"v":29166.66666666667,"d":"$29,167"}},{"$f":"'Trial 1'!DU37","v":{"v":29166.66666666667,"d":"$29,167"}},{"$f":"'Trial 1'!DV37","v":{"v":29166.66666666667,"d":"$29,167"}},{"$f":"'Trial 1'!DW37","v":{"v":29166.66666666667,"d":"$29,167"}},{"$f":"'Trial 1'!DX37","v":{"v":29166.66666666667,"d":"$29,167"}},{"$f":"'Trial 1'!DY37","v":{"v":29166.66666666667,"d":"$29,167"}},{"$f":"'Trial 1'!DZ37","v":{"v":29166.66666666667,"d":"$29,167"}},{"$f":"SUM('Trial 1'!DO37:DZ37)","v":{"v":350000.0000000002,"d":"$350,000"}},{"$f":"'Trial 1'!EB37","v":{"v":29166.66666666667,"d":"$29,167"}},{"$f":"'Trial 1'!EC37","v":{"v":29166.66666666667,"d":"$29,167"}},{"$f":"'Trial 1'!ED37","v":{"v":29166.66666666667,"d":"$29,167"}},{"$f":"'Trial 1'!EE37","v":{"v":29166.66666666667,"d":"$29,167"}},{"$f":"'Trial 1'!EF37","v":{"v":29166.66666666667,"d":"$29,167"}},{"$f":"'Trial 1'!EG37","v":{"v":29166.66666666667,"d":"$29,167"}},{"$f":"'Trial 1'!EH37","v":{"v":29166.66666666667,"d":"$29,167"}},{"$f":"'Trial 1'!EI37","v":{"v":29166.66666666667,"d":"$29,167"}},{"$f":"'Trial 1'!EJ37","v":{"v":29166.66666666667,"d":"$29,167"}},{"$f":"'Trial 1'!EK37","v":{"v":29166.66666666667,"d":"$29,167"}},{"$f":"'Trial 1'!EL37","v":{"v":29166.66666666667,"d":"$29,167"}},{"$f":"'Trial 1'!EM37","v":{"v":29166.66666666667,"d":"$29,167"}},{"$f":"SUM('Trial 1'!EB37:EM37)","v":{"v":350000.0000000002,"d":"$350,000"}}]
[{"$f":"Labels!B97","v":"Trial 02"},{"$f":"'Trial 2'!B37","v":{"v":29166.66666666667,"d":"$29,167"}},{"$f":"'Trial 2'!C37","v":{"v":29166.66666666667,"d":"$29,167"}},{"$f":"'Trial 2'!D37","v":{"v":29166.66666666667,"d":"$29,167"}},{"$f":"'Trial 2'!E37","v":{"v":29166.66666666667,"d":"$29,167"}},{"$f":"'Trial 2'!F37","v":{"v":29166.66666666667,"d":"$29,167"}},{"$f":"'Trial 2'!G37","v":{"v":29166.66666666667,"d":"$29,167"}},{"$f":"'Trial 2'!H37","v":{"v":29166.66666666667,"d":"$29,167"}},{"$f":"'Trial 2'!I37","v":{"v":29166.66666666667,"d":"$29,167"}},{"$f":"'Trial 2'!J37","v":{"v":29166.66666666667,"d":"$29,167"}},{"$f":"'Trial 2'!K37","v":{"v":29166.66666666667,"d":"$29,167"}},{"$f":"'Trial 2'!L37","v":{"v":29166.66666666667,"d":"$29,167"}},{"$f":"'Trial 2'!M37","v":{"v":29166.66666666667,"d":"$29,167"}},{"$f":"SUM('Trial 2'!B37:M37)","v":{"v":350000.0000000002,"d":"$350,000"}},{"$f":"'Trial 2'!O37","v":{"v":29166.66666666667,"d":"$29,167"}},{"$f":"'Trial 2'!P37","v":{"v":29166.66666666667,"d":"$29,167"}},{"$f":"'Trial 2'!Q37","v":{"v":29166.66666666667,"d":"$29,167"}},{"$f":"'Trial 2'!R37","v":{"v":29166.66666666667,"d":"$29,167"}},{"$f":"'Trial 2'!S37","v":{"v":29166.66666666667,"d":"$29,167"}},{"$f":"'Trial 2'!T37","v":{"v":29166.66666666667,"d":"$29,167"}},{"$f":"'Trial 2'!U37","v":{"v":29166.66666666667,"d":"$29,167"}},{"$f":"'Trial 2'!V37","v":{"v":29166.66666666667,"d":"$29,167"}},{"$f":"'Trial 2'!W37","v":{"v":29166.66666666667,"d":"$29,167"}},{"$f":"'Trial 2'!X37","v":{"v":29166.66666666667,"d":"$29,167"}},{"$f":"'Trial 2'!Y37","v":{"v":29166.66666666667,"d":"$29,167"}},{"$f":"'Trial 2'!Z37","v":{"v":29166.66666666667,"d":"$29,167"}},{"$f":"SUM('Trial 2'!O37:Z37)","v":{"v":350000.0000000002,"d":"$350,000"}},{"$f":"'Trial 2'!AB37","v":{"v":29166.66666666667,"d":"$29,167"}},{"$f":"'Trial 2'!AC37","v":{"v":29166.66666666667,"d":"$29,167"}},{"$f":"'Trial 2'!AD37","v":{"v":29166.66666666667,"d":"$29,167"}},{"$f":"'Trial 2'!AE37","v":{"v":29166.66666666667,"d":"$29,167"}},{"$f":"'Trial 2'!AF37","v":{"v":29166.66666666667,"d":"$29,167"}},{"$f":"'Trial 2'!AG37","v":{"v":29166.66666666667,"d":"$29,167"}},{"$f":"'Trial 2'!AH37","v":{"v":29166.66666666667,"d":"$29,167"}},{"$f":"'Trial 2'!AI37","v":{"v":29166.66666666667,"d":"$29,167"}},{"$f":"'Trial 2'!AJ37","v":{"v":29166.66666666667,"d":"$29,167"}},{"$f":"'Trial 2'!AK37","v":{"v":29166.66666666667,"d":"$29,167"}},{"$f":"'Trial 2'!AL37","v":{"v":29166.66666666667,"d":"$29,167"}},{"$f":"'Trial 2'!AM37","v":{"v":29166.66666666667,"d":"$29,167"}},{"$f":"SUM('Trial 2'!AB37:AM37)","v":{"v":350000.0000000002,"d":"$350,000"}},{"$f":"'Trial 2'!AO37","v":{"v":29166.66666666667,"d":"$29,167"}},{"$f":"'Trial 2'!AP37","v":{"v":29166.66666666667,"d":"$29,167"}},{"$f":"'Trial 2'!AQ37","v":{"v":29166.66666666667,"d":"$29,167"}},{"$f":"'Trial 2'!AR37","v":{"v":29166.66666666667,"d":"$29,167"}},{"$f":"'Trial 2'!AS37","v":{"v":29166.66666666667,"d":"$29,167"}},{"$f":"'Trial 2'!AT37","v":{"v":29166.66666666667,"d":"$29,167"}},{"$f":"'Trial 2'!AU37","v":{"v":29166.66666666667,"d":"$29,167"}},{"$f":"'Trial 2'!AV37","v":{"v":29166.66666666667,"d":"$29,167"}},{"$f":"'Trial 2'!AW37","v":{"v":29166.66666666667,"d":"$29,167"}},{"$f":"'Trial 2'!AX37","v":{"v":29166.66666666667,"d":"$29,167"}},{"$f":"'Trial 2'!AY37","v":{"v":29166.66666666667,"d":"$29,167"}},{"$f":"'Trial 2'!AZ37","v":{"v":29166.66666666667,"d":"$29,167"}},{"$f":"SUM('Trial 2'!AO37:AZ37)","v":{"v":350000.0000000002,"d":"$350,000"}},{"$f":"'Trial 2'!BB37","v":{"v":29166.66666666667,"d":"$29,167"}},{"$f":"'Trial 2'!BC37","v":{"v":29166.66666666667,"d":"$29,167"}},{"$f":"'Trial 2'!BD37","v":{"v":29166.66666666667,"d":"$29,167"}},{"$f":"'Trial 2'!BE37","v":{"v":29166.66666666667,"d":"$29,167"}},{"$f":"'Trial 2'!BF37","v":{"v":29166.66666666667,"d":"$29,167"}},{"$f":"'Trial 2'!BG37","v":{"v":29166.66666666667,"d":"$29,167"}},{"$f":"'Trial 2'!BH37","v":{"v":29166.66666666667,"d":"$29,167"}},{"$f":"'Trial 2'!BI37","v":{"v":29166.66666666667,"d":"$29,167"}},{"$f":"'Trial 2'!BJ37","v":{"v":29166.66666666667,"d":"$29,167"}},{"$f":"'Trial 2'!BK37","v":{"v":29166.66666666667,"d":"$29,167"}},{"$f":"'Trial 2'!BL37","v":{"v":29166.66666666667,"d":"$29,167"}},{"$f":"'Trial 2'!BM37","v":{"v":29166.66666666667,"d":"$29,167"}},{"$f":"SUM('Trial 2'!BB37:BM37)","v":{"v":350000.0000000002,"d":"$350,000"}},{"$f":"'Trial 2'!BO37","v":{"v":29166.66666666667,"d":"$29,167"}},{"$f":"'Trial 2'!BP37","v":{"v":29166.66666666667,"d":"$29,167"}},{"$f":"'Trial 2'!BQ37","v":{"v":29166.66666666667,"d":"$29,167"}},{"$f":"'Trial 2'!BR37","v":{"v":29166.66666666667,"d":"$29,167"}},{"$f":"'Trial 2'!BS37","v":{"v":29166.66666666667,"d":"$29,167"}},{"$f":"'Trial 2'!BT37","v":{"v":29166.66666666667,"d":"$29,167"}},{"$f":"'Trial 2'!BU37","v":{"v":29166.66666666667,"d":"$29,167"}},{"$f":"'Trial 2'!BV37","v":{"v":29166.66666666667,"d":"$29,167"}},{"$f":"'Trial 2'!BW37","v":{"v":29166.66666666667,"d":"$29,167"}},{"$f":"'Trial 2'!BX37","v":{"v":29166.66666666667,"d":"$29,167"}},{"$f":"'Trial 2'!BY37","v":{"v":29166.66666666667,"d":"$29,167"}},{"$f":"'Trial 2'!BZ37","v":{"v":29166.66666666667,"d":"$29,167"}},{"$f":"SUM('Trial 2'!BO37:BZ37)","v":{"v":350000.0000000002,"d":"$350,000"}},{"$f":"'Trial 2'!CB37","v":{"v":29166.66666666667,"d":"$29,167"}},{"$f":"'Trial 2'!CC37","v":{"v":29166.66666666667,"d":"$29,167"}},{"$f":"'Trial 2'!CD37","v":{"v":29166.66666666667,"d":"$29,167"}},{"$f":"'Trial 2'!CE37","v":{"v":29166.66666666667,"d":"$29,167"}},{"$f":"'Trial 2'!CF37","v":{"v":29166.66666666667,"d":"$29,167"}},{"$f":"'Trial 2'!CG37","v":{"v":29166.66666666667,"d":"$29,167"}},{"$f":"'Trial 2'!CH37","v":{"v":29166.66666666667,"d":"$29,167"}},{"$f":"'Trial 2'!CI37","v":{"v":29166.66666666667,"d":"$29,167"}},{"$f":"'Trial 2'!CJ37","v":{"v":29166.66666666667,"d":"$29,167"}},{"$f":"'Trial 2'!CK37","v":{"v":29166.66666666667,"d":"$29,167"}},{"$f":"'Trial 2'!CL37","v":{"v":29166.66666666667,"d":"$29,167"}},{"$f":"'Trial 2'!CM37","v":{"v":29166.66666666667,"d":"$29,167"}},{"$f":"SUM('Trial 2'!CB37:CM37)","v":{"v":350000.0000000002,"d":"$350,000"}},{"$f":"'Trial 2'!CO37","v":{"v":29166.66666666667,"d":"$29,167"}},{"$f":"'Trial 2'!CP37","v":{"v":29166.66666666667,"d":"$29,167"}},{"$f":"'Trial 2'!CQ37","v":{"v":29166.66666666667,"d":"$29,167"}},{"$f":"'Trial 2'!CR37","v":{"v":29166.66666666667,"d":"$29,167"}},{"$f":"'Trial 2'!CS37","v":{"v":29166.66666666667,"d":"$29,167"}},{"$f":"'Trial 2'!CT37","v":{"v":29166.66666666667,"d":"$29,167"}},{"$f":"'Trial 2'!CU37","v":{"v":29166.66666666667,"d":"$29,167"}},{"$f":"'Trial 2'!CV37","v":{"v":29166.66666666667,"d":"$29,167"}},{"$f":"'Trial 2'!CW37","v":{"v":29166.66666666667,"d":"$29,167"}},{"$f":"'Trial 2'!CX37","v":{"v":29166.66666666667,"d":"$29,167"}},{"$f":"'Trial 2'!CY37","v":{"v":29166.66666666667,"d":"$29,167"}},{"$f":"'Trial 2'!CZ37","v":{"v":29166.66666666667,"d":"$29,167"}},{"$f":"SUM('Trial 2'!CO37:CZ37)","v":{"v":350000.0000000002,"d":"$350,000"}},{"$f":"'Trial 2'!DB37","v":{"v":29166.66666666667,"d":"$29,167"}},{"$f":"'Trial 2'!DC37","v":{"v":29166.66666666667,"d":"$29,167"}},{"$f":"'Trial 2'!DD37","v":{"v":29166.66666666667,"d":"$29,167"}},{"$f":"'Trial 2'!DE37","v":{"v":29166.66666666667,"d":"$29,167"}},{"$f":"'Trial 2'!DF37","v":{"v":29166.66666666667,"d":"$29,167"}},{"$f":"'Trial 2'!DG37","v":{"v":29166.66666666667,"d":"$29,167"}},{"$f":"'Trial 2'!DH37","v":{"v":29166.66666666667,"d":"$29,167"}},{"$f":"'Trial 2'!DI37","v":{"v":29166.66666666667,"d":"$29,167"}},{"$f":"'Trial 2'!DJ37","v":{"v":29166.66666666667,"d":"$29,167"}},{"$f":"'Trial 2'!DK37","v":{"v":29166.66666666667,"d":"$29,167"}},{"$f":"'Trial 2'!DL37","v":{"v":29166.66666666667,"d":"$29,167"}},{"$f":"'Trial 2'!DM37","v":{"v":29166.66666666667,"d":"$29,167"}},{"$f":"SUM('Trial 2'!DB37:DM37)","v":{"v":350000.0000000002,"d":"$350,000"}},{"$f":"'Trial 2'!DO37","v":{"v":29166.66666666667,"d":"$29,167"}},{"$f":"'Trial 2'!DP37","v":{"v":29166.66666666667,"d":"$29,167"}},{"$f":"'Trial 2'!DQ37","v":{"v":29166.66666666667,"d":"$29,167"}},{"$f":"'Trial 2'!DR37","v":{"v":29166.66666666667,"d":"$29,167"}},{"$f":"'Trial 2'!DS37","v":{"v":29166.66666666667,"d":"$29,167"}},{"$f":"'Trial 2'!DT37","v":{"v":29166.66666666667,"d":"$29,167"}},{"$f":"'Trial 2'!DU37","v":{"v":29166.66666666667,"d":"$29,167"}},{"$f":"'Trial 2'!DV37","v":{"v":29166.66666666667,"d":"$29,167"}},{"$f":"'Trial 2'!DW37","v":{"v":29166.66666666667,"d":"$29,167"}},{"$f":"'Trial 2'!DX37","v":{"v":29166.66666666667,"d":"$29,167"}},{"$f":"'Trial 2'!DY37","v":{"v":29166.66666666667,"d":"$29,167"}},{"$f":"'Trial 2'!DZ37","v":{"v":29166.66666666667,"d":"$29,167"}},{"$f":"SUM('Trial 2'!DO37:DZ37)","v":{"v":350000.0000000002,"d":"$350,000"}},{"$f":"'Trial 2'!EB37","v":{"v":29166.66666666667,"d":"$29,167"}},{"$f":"'Trial 2'!EC37","v":{"v":29166.66666666667,"d":"$29,167"}},{"$f":"'Trial 2'!ED37","v":{"v":29166.66666666667,"d":"$29,167"}},{"$f":"'Trial 2'!EE37","v":{"v":29166.66666666667,"d":"$29,167"}},{"$f":"'Trial 2'!EF37","v":{"v":29166.66666666667,"d":"$29,167"}},{"$f":"'Trial 2'!EG37","v":{"v":29166.66666666667,"d":"$29,167"}},{"$f":"'Trial 2'!EH37","v":{"v":29166.66666666667,"d":"$29,167"}},{"$f":"'Trial 2'!EI37","v":{"v":29166.66666666667,"d":"$29,167"}},{"$f":"'Trial 2'!EJ37","v":{"v":29166.66666666667,"d":"$29,167"}},{"$f":"'Trial 2'!EK37","v":{"v":29166.66666666667,"d":"$29,167"}},{"$f":"'Trial 2'!EL37","v":{"v":29166.66666666667,"d":"$29,167"}},{"$f":"'Trial 2'!EM37","v":{"v":29166.66666666667,"d":"$29,167"}},{"$f":"SUM('Trial 2'!EB37:EM37)","v":{"v":350000.0000000002,"d":"$350,000"}}]
[{"$f":"Labels!B98","v":"Trial 03"},{"$f":"'Trial 3'!B37","v":{"v":29166.66666666667,"d":"$29,167"}},{"$f":"'Trial 3'!C37","v":{"v":29166.66666666667,"d":"$29,167"}},{"$f":"'Trial 3'!D37","v":{"v":29166.66666666667,"d":"$29,167"}},{"$f":"'Trial 3'!E37","v":{"v":29166.66666666667,"d":"$29,167"}},{"$f":"'Trial 3'!F37","v":{"v":29166.66666666667,"d":"$29,167"}},{"$f":"'Trial 3'!G37","v":{"v":29166.66666666667,"d":"$29,167"}},{"$f":"'Trial 3'!H37","v":{"v":29166.66666666667,"d":"$29,167"}},{"$f":"'Trial 3'!I37","v":{"v":29166.66666666667,"d":"$29,167"}},{"$f":"'Trial 3'!J37","v":{"v":29166.66666666667,"d":"$29,167"}},{"$f":"'Trial 3'!K37","v":{"v":29166.66666666667,"d":"$29,167"}},{"$f":"'Trial 3'!L37","v":{"v":29166.66666666667,"d":"$29,167"}},{"$f":"'Trial 3'!M37","v":{"v":29166.66666666667,"d":"$29,167"}},{"$f":"SUM('Trial 3'!B37:M37)","v":{"v":350000.0000000002,"d":"$350,000"}},{"$f":"'Trial 3'!O37","v":{"v":29166.66666666667,"d":"$29,167"}},{"$f":"'Trial 3'!P37","v":{"v":29166.66666666667,"d":"$29,167"}},{"$f":"'Trial 3'!Q37","v":{"v":29166.66666666667,"d":"$29,167"}},{"$f":"'Trial 3'!R37","v":{"v":29166.66666666667,"d":"$29,167"}},{"$f":"'Trial 3'!S37","v":{"v":29166.66666666667,"d":"$29,167"}},{"$f":"'Trial 3'!T37","v":{"v":29166.66666666667,"d":"$29,167"}},{"$f":"'Trial 3'!U37","v":{"v":29166.66666666667,"d":"$29,167"}},{"$f":"'Trial 3'!V37","v":{"v":29166.66666666667,"d":"$29,167"}},{"$f":"'Trial 3'!W37","v":{"v":29166.66666666667,"d":"$29,167"}},{"$f":"'Trial 3'!X37","v":{"v":29166.66666666667,"d":"$29,167"}},{"$f":"'Trial 3'!Y37","v":{"v":29166.66666666667,"d":"$29,167"}},{"$f":"'Trial 3'!Z37","v":{"v":29166.66666666667,"d":"$29,167"}},{"$f":"SUM('Trial 3'!O37:Z37)","v":{"v":350000.0000000002,"d":"$350,000"}},{"$f":"'Trial 3'!AB37","v":{"v":29166.66666666667,"d":"$29,167"}},{"$f":"'Trial 3'!AC37","v":{"v":29166.66666666667,"d":"$29,167"}},{"$f":"'Trial 3'!AD37","v":{"v":29166.66666666667,"d":"$29,167"}},{"$f":"'Trial 3'!AE37","v":{"v":29166.66666666667,"d":"$29,167"}},{"$f":"'Trial 3'!AF37","v":{"v":29166.66666666667,"d":"$29,167"}},{"$f":"'Trial 3'!AG37","v":{"v":29166.66666666667,"d":"$29,167"}},{"$f":"'Trial 3'!AH37","v":{"v":29166.66666666667,"d":"$29,167"}},{"$f":"'Trial 3'!AI37","v":{"v":29166.66666666667,"d":"$29,167"}},{"$f":"'Trial 3'!AJ37","v":{"v":29166.66666666667,"d":"$29,167"}},{"$f":"'Trial 3'!AK37","v":{"v":29166.66666666667,"d":"$29,167"}},{"$f":"'Trial 3'!AL37","v":{"v":29166.66666666667,"d":"$29,167"}},{"$f":"'Trial 3'!AM37","v":{"v":29166.66666666667,"d":"$29,167"}},{"$f":"SUM('Trial 3'!AB37:AM37)","v":{"v":350000.0000000002,"d":"$350,000"}},{"$f":"'Trial 3'!AO37","v":{"v":29166.66666666667,"d":"$29,167"}},{"$f":"'Trial 3'!AP37","v":{"v":29166.66666666667,"d":"$29,167"}},{"$f":"'Trial 3'!AQ37","v":{"v":29166.66666666667,"d":"$29,167"}},{"$f":"'Trial 3'!AR37","v":{"v":29166.66666666667,"d":"$29,167"}},{"$f":"'Trial 3'!AS37","v":{"v":29166.66666666667,"d":"$29,167"}},{"$f":"'Trial 3'!AT37","v":{"v":29166.66666666667,"d":"$29,167"}},{"$f":"'Trial 3'!AU37","v":{"v":29166.66666666667,"d":"$29,167"}},{"$f":"'Trial 3'!AV37","v":{"v":29166.66666666667,"d":"$29,167"}},{"$f":"'Trial 3'!AW37","v":{"v":29166.66666666667,"d":"$29,167"}},{"$f":"'Trial 3'!AX37","v":{"v":29166.66666666667,"d":"$29,167"}},{"$f":"'Trial 3'!AY37","v":{"v":29166.66666666667,"d":"$29,167"}},{"$f":"'Trial 3'!AZ37","v":{"v":29166.66666666667,"d":"$29,167"}},{"$f":"SUM('Trial 3'!AO37:AZ37)","v":{"v":350000.0000000002,"d":"$350,000"}},{"$f":"'Trial 3'!BB37","v":{"v":29166.66666666667,"d":"$29,167"}},{"$f":"'Trial 3'!BC37","v":{"v":29166.66666666667,"d":"$29,167"}},{"$f":"'Trial 3'!BD37","v":{"v":29166.66666666667,"d":"$29,167"}},{"$f":"'Trial 3'!BE37","v":{"v":29166.66666666667,"d":"$29,167"}},{"$f":"'Trial 3'!BF37","v":{"v":29166.66666666667,"d":"$29,167"}},{"$f":"'Trial 3'!BG37","v":{"v":29166.66666666667,"d":"$29,167"}},{"$f":"'Trial 3'!BH37","v":{"v":29166.66666666667,"d":"$29,167"}},{"$f":"'Trial 3'!BI37","v":{"v":29166.66666666667,"d":"$29,167"}},{"$f":"'Trial 3'!BJ37","v":{"v":29166.66666666667,"d":"$29,167"}},{"$f":"'Trial 3'!BK37","v":{"v":29166.66666666667,"d":"$29,167"}},{"$f":"'Trial 3'!BL37","v":{"v":29166.66666666667,"d":"$29,167"}},{"$f":"'Trial 3'!BM37","v":{"v":29166.66666666667,"d":"$29,167"}},{"$f":"SUM('Trial 3'!BB37:BM37)","v":{"v":350000.0000000002,"d":"$350,000"}},{"$f":"'Trial 3'!BO37","v":{"v":29166.66666666667,"d":"$29,167"}},{"$f":"'Trial 3'!BP37","v":{"v":29166.66666666667,"d":"$29,167"}},{"$f":"'Trial 3'!BQ37","v":{"v":29166.66666666667,"d":"$29,167"}},{"$f":"'Trial 3'!BR37","v":{"v":29166.66666666667,"d":"$29,167"}},{"$f":"'Trial 3'!BS37","v":{"v":29166.66666666667,"d":"$29,167"}},{"$f":"'Trial 3'!BT37","v":{"v":29166.66666666667,"d":"$29,167"}},{"$f":"'Trial 3'!BU37","v":{"v":29166.66666666667,"d":"$29,167"}},{"$f":"'Trial 3'!BV37","v":{"v":29166.66666666667,"d":"$29,167"}},{"$f":"'Trial 3'!BW37","v":{"v":29166.66666666667,"d":"$29,167"}},{"$f":"'Trial 3'!BX37","v":{"v":29166.66666666667,"d":"$29,167"}},{"$f":"'Trial 3'!BY37","v":{"v":29166.66666666667,"d":"$29,167"}},{"$f":"'Trial 3'!BZ37","v":{"v":29166.66666666667,"d":"$29,167"}},{"$f":"SUM('Trial 3'!BO37:BZ37)","v":{"v":350000.0000000002,"d":"$350,000"}},{"$f":"'Trial 3'!CB37","v":{"v":29166.66666666667,"d":"$29,167"}},{"$f":"'Trial 3'!CC37","v":{"v":29166.66666666667,"d":"$29,167"}},{"$f":"'Trial 3'!CD37","v":{"v":29166.66666666667,"d":"$29,167"}},{"$f":"'Trial 3'!CE37","v":{"v":29166.66666666667,"d":"$29,167"}},{"$f":"'Trial 3'!CF37","v":{"v":29166.66666666667,"d":"$29,167"}},{"$f":"'Trial 3'!CG37","v":{"v":29166.66666666667,"d":"$29,167"}},{"$f":"'Trial 3'!CH37","v":{"v":29166.66666666667,"d":"$29,167"}},{"$f":"'Trial 3'!CI37","v":{"v":29166.66666666667,"d":"$29,167"}},{"$f":"'Trial 3'!CJ37","v":{"v":29166.66666666667,"d":"$29,167"}},{"$f":"'Trial 3'!CK37","v":{"v":29166.66666666667,"d":"$29,167"}},{"$f":"'Trial 3'!CL37","v":{"v":29166.66666666667,"d":"$29,167"}},{"$f":"'Trial 3'!CM37","v":{"v":29166.66666666667,"d":"$29,167"}},{"$f":"SUM('Trial 3'!CB37:CM37)","v":{"v":350000.0000000002,"d":"$350,000"}},{"$f":"'Trial 3'!CO37","v":{"v":29166.66666666667,"d":"$29,167"}},{"$f":"'Trial 3'!CP37","v":{"v":29166.66666666667,"d":"$29,167"}},{"$f":"'Trial 3'!CQ37","v":{"v":29166.66666666667,"d":"$29,167"}},{"$f":"'Trial 3'!CR37","v":{"v":29166.66666666667,"d":"$29,167"}},{"$f":"'Trial 3'!CS37","v":{"v":29166.66666666667,"d":"$29,167"}},{"$f":"'Trial 3'!CT37","v":{"v":29166.66666666667,"d":"$29,167"}},{"$f":"'Trial 3'!CU37","v":{"v":29166.66666666667,"d":"$29,167"}},{"$f":"'Trial 3'!CV37","v":{"v":29166.66666666667,"d":"$29,167"}},{"$f":"'Trial 3'!CW37","v":{"v":29166.66666666667,"d":"$29,167"}},{"$f":"'Trial 3'!CX37","v":{"v":29166.66666666667,"d":"$29,167"}},{"$f":"'Trial 3'!CY37","v":{"v":29166.66666666667,"d":"$29,167"}},{"$f":"'Trial 3'!CZ37","v":{"v":29166.66666666667,"d":"$29,167"}},{"$f":"SUM('Trial 3'!CO37:CZ37)","v":{"v":350000.0000000002,"d":"$350,000"}},{"$f":"'Trial 3'!DB37","v":{"v":29166.66666666667,"d":"$29,167"}},{"$f":"'Trial 3'!DC37","v":{"v":29166.66666666667,"d":"$29,167"}},{"$f":"'Trial 3'!DD37","v":{"v":29166.66666666667,"d":"$29,167"}},{"$f":"'Trial 3'!DE37","v":{"v":29166.66666666667,"d":"$29,167"}},{"$f":"'Trial 3'!DF37","v":{"v":29166.66666666667,"d":"$29,167"}},{"$f":"'Trial 3'!DG37","v":{"v":29166.66666666667,"d":"$29,167"}},{"$f":"'Trial 3'!DH37","v":{"v":29166.66666666667,"d":"$29,167"}},{"$f":"'Trial 3'!DI37","v":{"v":29166.66666666667,"d":"$29,167"}},{"$f":"'Trial 3'!DJ37","v":{"v":29166.66666666667,"d":"$29,167"}},{"$f":"'Trial 3'!DK37","v":{"v":29166.66666666667,"d":"$29,167"}},{"$f":"'Trial 3'!DL37","v":{"v":29166.66666666667,"d":"$29,167"}},{"$f":"'Trial 3'!DM37","v":{"v":29166.66666666667,"d":"$29,167"}},{"$f":"SUM('Trial 3'!DB37:DM37)","v":{"v":350000.0000000002,"d":"$350,000"}},{"$f":"'Trial 3'!DO37","v":{"v":29166.66666666667,"d":"$29,167"}},{"$f":"'Trial 3'!DP37","v":{"v":29166.66666666667,"d":"$29,167"}},{"$f":"'Trial 3'!DQ37","v":{"v":29166.66666666667,"d":"$29,167"}},{"$f":"'Trial 3'!DR37","v":{"v":29166.66666666667,"d":"$29,167"}},{"$f":"'Trial 3'!DS37","v":{"v":29166.66666666667,"d":"$29,167"}},{"$f":"'Trial 3'!DT37","v":{"v":29166.66666666667,"d":"$29,167"}},{"$f":"'Trial 3'!DU37","v":{"v":29166.66666666667,"d":"$29,167"}},{"$f":"'Trial 3'!DV37","v":{"v":29166.66666666667,"d":"$29,167"}},{"$f":"'Trial 3'!DW37","v":{"v":29166.66666666667,"d":"$29,167"}},{"$f":"'Trial 3'!DX37","v":{"v":29166.66666666667,"d":"$29,167"}},{"$f":"'Trial 3'!DY37","v":{"v":29166.66666666667,"d":"$29,167"}},{"$f":"'Trial 3'!DZ37","v":{"v":29166.66666666667,"d":"$29,167"}},{"$f":"SUM('Trial 3'!DO37:DZ37)","v":{"v":350000.0000000002,"d":"$350,000"}},{"$f":"'Trial 3'!EB37","v":{"v":29166.66666666667,"d":"$29,167"}},{"$f":"'Trial 3'!EC37","v":{"v":29166.66666666667,"d":"$29,167"}},{"$f":"'Trial 3'!ED37","v":{"v":29166.66666666667,"d":"$29,167"}},{"$f":"'Trial 3'!EE37","v":{"v":29166.66666666667,"d":"$29,167"}},{"$f":"'Trial 3'!EF37","v":{"v":29166.66666666667,"d":"$29,167"}},{"$f":"'Trial 3'!EG37","v":{"v":29166.66666666667,"d":"$29,167"}},{"$f":"'Trial 3'!EH37","v":{"v":29166.66666666667,"d":"$29,167"}},{"$f":"'Trial 3'!EI37","v":{"v":29166.66666666667,"d":"$29,167"}},{"$f":"'Trial 3'!EJ37","v":{"v":29166.66666666667,"d":"$29,167"}},{"$f":"'Trial 3'!EK37","v":{"v":29166.66666666667,"d":"$29,167"}},{"$f":"'Trial 3'!EL37","v":{"v":29166.66666666667,"d":"$29,167"}},{"$f":"'Trial 3'!EM37","v":{"v":29166.66666666667,"d":"$29,167"}},{"$f":"SUM('Trial 3'!EB37:EM37)","v":{"v":350000.0000000002,"d":"$350,000"}}]
[{"$f":"Labels!B99","v":"Trial 04"},{"$f":"'Trial 4'!B37","v":{"v":29166.66666666667,"d":"$29,167"}},{"$f":"'Trial 4'!C37","v":{"v":29166.66666666667,"d":"$29,167"}},{"$f":"'Trial 4'!D37","v":{"v":29166.66666666667,"d":"$29,167"}},{"$f":"'Trial 4'!E37","v":{"v":29166.66666666667,"d":"$29,167"}},{"$f":"'Trial 4'!F37","v":{"v":29166.66666666667,"d":"$29,167"}},{"$f":"'Trial 4'!G37","v":{"v":29166.66666666667,"d":"$29,167"}},{"$f":"'Trial 4'!H37","v":{"v":29166.66666666667,"d":"$29,167"}},{"$f":"'Trial 4'!I37","v":{"v":29166.66666666667,"d":"$29,167"}},{"$f":"'Trial 4'!J37","v":{"v":29166.66666666667,"d":"$29,167"}},{"$f":"'Trial 4'!K37","v":{"v":29166.66666666667,"d":"$29,167"}},{"$f":"'Trial 4'!L37","v":{"v":29166.66666666667,"d":"$29,167"}},{"$f":"'Trial 4'!M37","v":{"v":29166.66666666667,"d":"$29,167"}},{"$f":"SUM('Trial 4'!B37:M37)","v":{"v":350000.0000000002,"d":"$350,000"}},{"$f":"'Trial 4'!O37","v":{"v":29166.66666666667,"d":"$29,167"}},{"$f":"'Trial 4'!P37","v":{"v":29166.66666666667,"d":"$29,167"}},{"$f":"'Trial 4'!Q37","v":{"v":29166.66666666667,"d":"$29,167"}},{"$f":"'Trial 4'!R37","v":{"v":29166.66666666667,"d":"$29,167"}},{"$f":"'Trial 4'!S37","v":{"v":29166.66666666667,"d":"$29,167"}},{"$f":"'Trial 4'!T37","v":{"v":29166.66666666667,"d":"$29,167"}},{"$f":"'Trial 4'!U37","v":{"v":29166.66666666667,"d":"$29,167"}},{"$f":"'Trial 4'!V37","v":{"v":29166.66666666667,"d":"$29,167"}},{"$f":"'Trial 4'!W37","v":{"v":29166.66666666667,"d":"$29,167"}},{"$f":"'Trial 4'!X37","v":{"v":29166.66666666667,"d":"$29,167"}},{"$f":"'Trial 4'!Y37","v":{"v":29166.66666666667,"d":"$29,167"}},{"$f":"'Trial 4'!Z37","v":{"v":29166.66666666667,"d":"$29,167"}},{"$f":"SUM('Trial 4'!O37:Z37)","v":{"v":350000.0000000002,"d":"$350,000"}},{"$f":"'Trial 4'!AB37","v":{"v":29166.66666666667,"d":"$29,167"}},{"$f":"'Trial 4'!AC37","v":{"v":29166.66666666667,"d":"$29,167"}},{"$f":"'Trial 4'!AD37","v":{"v":29166.66666666667,"d":"$29,167"}},{"$f":"'Trial 4'!AE37","v":{"v":29166.66666666667,"d":"$29,167"}},{"$f":"'Trial 4'!AF37","v":{"v":29166.66666666667,"d":"$29,167"}},{"$f":"'Trial 4'!AG37","v":{"v":29166.66666666667,"d":"$29,167"}},{"$f":"'Trial 4'!AH37","v":{"v":29166.66666666667,"d":"$29,167"}},{"$f":"'Trial 4'!AI37","v":{"v":29166.66666666667,"d":"$29,167"}},{"$f":"'Trial 4'!AJ37","v":{"v":29166.66666666667,"d":"$29,167"}},{"$f":"'Trial 4'!AK37","v":{"v":29166.66666666667,"d":"$29,167"}},{"$f":"'Trial 4'!AL37","v":{"v":29166.66666666667,"d":"$29,167"}},{"$f":"'Trial 4'!AM37","v":{"v":29166.66666666667,"d":"$29,167"}},{"$f":"SUM('Trial 4'!AB37:AM37)","v":{"v":350000.0000000002,"d":"$350,000"}},{"$f":"'Trial 4'!AO37","v":{"v":29166.66666666667,"d":"$29,167"}},{"$f":"'Trial 4'!AP37","v":{"v":29166.66666666667,"d":"$29,167"}},{"$f":"'Trial 4'!AQ37","v":{"v":29166.66666666667,"d":"$29,167"}},{"$f":"'Trial 4'!AR37","v":{"v":29166.66666666667,"d":"$29,167"}},{"$f":"'Trial 4'!AS37","v":{"v":29166.66666666667,"d":"$29,167"}},{"$f":"'Trial 4'!AT37","v":{"v":29166.66666666667,"d":"$29,167"}},{"$f":"'Trial 4'!AU37","v":{"v":29166.66666666667,"d":"$29,167"}},{"$f":"'Trial 4'!AV37","v":{"v":29166.66666666667,"d":"$29,167"}},{"$f":"'Trial 4'!AW37","v":{"v":29166.66666666667,"d":"$29,167"}},{"$f":"'Trial 4'!AX37","v":{"v":29166.66666666667,"d":"$29,167"}},{"$f":"'Trial 4'!AY37","v":{"v":29166.66666666667,"d":"$29,167"}},{"$f":"'Trial 4'!AZ37","v":{"v":29166.66666666667,"d":"$29,167"}},{"$f":"SUM('Trial 4'!AO37:AZ37)","v":{"v":350000.0000000002,"d":"$350,000"}},{"$f":"'Trial 4'!BB37","v":{"v":29166.66666666667,"d":"$29,167"}},{"$f":"'Trial 4'!BC37","v":{"v":29166.66666666667,"d":"$29,167"}},{"$f":"'Trial 4'!BD37","v":{"v":29166.66666666667,"d":"$29,167"}},{"$f":"'Trial 4'!BE37","v":{"v":29166.66666666667,"d":"$29,167"}},{"$f":"'Trial 4'!BF37","v":{"v":29166.66666666667,"d":"$29,167"}},{"$f":"'Trial 4'!BG37","v":{"v":29166.66666666667,"d":"$29,167"}},{"$f":"'Trial 4'!BH37","v":{"v":29166.66666666667,"d":"$29,167"}},{"$f":"'Trial 4'!BI37","v":{"v":29166.66666666667,"d":"$29,167"}},{"$f":"'Trial 4'!BJ37","v":{"v":29166.66666666667,"d":"$29,167"}},{"$f":"'Trial 4'!BK37","v":{"v":29166.66666666667,"d":"$29,167"}},{"$f":"'Trial 4'!BL37","v":{"v":29166.66666666667,"d":"$29,167"}},{"$f":"'Trial 4'!BM37","v":{"v":29166.66666666667,"d":"$29,167"}},{"$f":"SUM('Trial 4'!BB37:BM37)","v":{"v":350000.0000000002,"d":"$350,000"}},{"$f":"'Trial 4'!BO37","v":{"v":29166.66666666667,"d":"$29,167"}},{"$f":"'Trial 4'!BP37","v":{"v":29166.66666666667,"d":"$29,167"}},{"$f":"'Trial 4'!BQ37","v":{"v":29166.66666666667,"d":"$29,167"}},{"$f":"'Trial 4'!BR37","v":{"v":29166.66666666667,"d":"$29,167"}},{"$f":"'Trial 4'!BS37","v":{"v":29166.66666666667,"d":"$29,167"}},{"$f":"'Trial 4'!BT37","v":{"v":29166.66666666667,"d":"$29,167"}},{"$f":"'Trial 4'!BU37","v":{"v":29166.66666666667,"d":"$29,167"}},{"$f":"'Trial 4'!BV37","v":{"v":29166.66666666667,"d":"$29,167"}},{"$f":"'Trial 4'!BW37","v":{"v":29166.66666666667,"d":"$29,167"}},{"$f":"'Trial 4'!BX37","v":{"v":29166.66666666667,"d":"$29,167"}},{"$f":"'Trial 4'!BY37","v":{"v":29166.66666666667,"d":"$29,167"}},{"$f":"'Trial 4'!BZ37","v":{"v":29166.66666666667,"d":"$29,167"}},{"$f":"SUM('Trial 4'!BO37:BZ37)","v":{"v":350000.0000000002,"d":"$350,000"}},{"$f":"'Trial 4'!CB37","v":{"v":29166.66666666667,"d":"$29,167"}},{"$f":"'Trial 4'!CC37","v":{"v":29166.66666666667,"d":"$29,167"}},{"$f":"'Trial 4'!CD37","v":{"v":29166.66666666667,"d":"$29,167"}},{"$f":"'Trial 4'!CE37","v":{"v":29166.66666666667,"d":"$29,167"}},{"$f":"'Trial 4'!CF37","v":{"v":29166.66666666667,"d":"$29,167"}},{"$f":"'Trial 4'!CG37","v":{"v":29166.66666666667,"d":"$29,167"}},{"$f":"'Trial 4'!CH37","v":{"v":29166.66666666667,"d":"$29,167"}},{"$f":"'Trial 4'!CI37","v":{"v":29166.66666666667,"d":"$29,167"}},{"$f":"'Trial 4'!CJ37","v":{"v":29166.66666666667,"d":"$29,167"}},{"$f":"'Trial 4'!CK37","v":{"v":29166.66666666667,"d":"$29,167"}},{"$f":"'Trial 4'!CL37","v":{"v":29166.66666666667,"d":"$29,167"}},{"$f":"'Trial 4'!CM37","v":{"v":29166.66666666667,"d":"$29,167"}},{"$f":"SUM('Trial 4'!CB37:CM37)","v":{"v":350000.0000000002,"d":"$350,000"}},{"$f":"'Trial 4'!CO37","v":{"v":29166.66666666667,"d":"$29,167"}},{"$f":"'Trial 4'!CP37","v":{"v":29166.66666666667,"d":"$29,167"}},{"$f":"'Trial 4'!CQ37","v":{"v":29166.66666666667,"d":"$29,167"}},{"$f":"'Trial 4'!CR37","v":{"v":29166.66666666667,"d":"$29,167"}},{"$f":"'Trial 4'!CS37","v":{"v":29166.66666666667,"d":"$29,167"}},{"$f":"'Trial 4'!CT37","v":{"v":29166.66666666667,"d":"$29,167"}},{"$f":"'Trial 4'!CU37","v":{"v":29166.66666666667,"d":"$29,167"}},{"$f":"'Trial 4'!CV37","v":{"v":29166.66666666667,"d":"$29,167"}},{"$f":"'Trial 4'!CW37","v":{"v":29166.66666666667,"d":"$29,167"}},{"$f":"'Trial 4'!CX37","v":{"v":29166.66666666667,"d":"$29,167"}},{"$f":"'Trial 4'!CY37","v":{"v":29166.66666666667,"d":"$29,167"}},{"$f":"'Trial 4'!CZ37","v":{"v":29166.66666666667,"d":"$29,167"}},{"$f":"SUM('Trial 4'!CO37:CZ37)","v":{"v":350000.0000000002,"d":"$350,000"}},{"$f":"'Trial 4'!DB37","v":{"v":29166.66666666667,"d":"$29,167"}},{"$f":"'Trial 4'!DC37","v":{"v":29166.66666666667,"d":"$29,167"}},{"$f":"'Trial 4'!DD37","v":{"v":29166.66666666667,"d":"$29,167"}},{"$f":"'Trial 4'!DE37","v":{"v":29166.66666666667,"d":"$29,167"}},{"$f":"'Trial 4'!DF37","v":{"v":29166.66666666667,"d":"$29,167"}},{"$f":"'Trial 4'!DG37","v":{"v":29166.66666666667,"d":"$29,167"}},{"$f":"'Trial 4'!DH37","v":{"v":29166.66666666667,"d":"$29,167"}},{"$f":"'Trial 4'!DI37","v":{"v":29166.66666666667,"d":"$29,167"}},{"$f":"'Trial 4'!DJ37","v":{"v":29166.66666666667,"d":"$29,167"}},{"$f":"'Trial 4'!DK37","v":{"v":29166.66666666667,"d":"$29,167"}},{"$f":"'Trial 4'!DL37","v":{"v":29166.66666666667,"d":"$29,167"}},{"$f":"'Trial 4'!DM37","v":{"v":29166.66666666667,"d":"$29,167"}},{"$f":"SUM('Trial 4'!DB37:DM37)","v":{"v":350000.0000000002,"d":"$350,000"}},{"$f":"'Trial 4'!DO37","v":{"v":29166.66666666667,"d":"$29,167"}},{"$f":"'Trial 4'!DP37","v":{"v":29166.66666666667,"d":"$29,167"}},{"$f":"'Trial 4'!DQ37","v":{"v":29166.66666666667,"d":"$29,167"}},{"$f":"'Trial 4'!DR37","v":{"v":29166.66666666667,"d":"$29,167"}},{"$f":"'Trial 4'!DS37","v":{"v":29166.66666666667,"d":"$29,167"}},{"$f":"'Trial 4'!DT37","v":{"v":29166.66666666667,"d":"$29,167"}},{"$f":"'Trial 4'!DU37","v":{"v":29166.66666666667,"d":"$29,167"}},{"$f":"'Trial 4'!DV37","v":{"v":29166.66666666667,"d":"$29,167"}},{"$f":"'Trial 4'!DW37","v":{"v":29166.66666666667,"d":"$29,167"}},{"$f":"'Trial 4'!DX37","v":{"v":29166.66666666667,"d":"$29,167"}},{"$f":"'Trial 4'!DY37","v":{"v":29166.66666666667,"d":"$29,167"}},{"$f":"'Trial 4'!DZ37","v":{"v":29166.66666666667,"d":"$29,167"}},{"$f":"SUM('Trial 4'!DO37:DZ37)","v":{"v":350000.0000000002,"d":"$350,000"}},{"$f":"'Trial 4'!EB37","v":{"v":29166.66666666667,"d":"$29,167"}},{"$f":"'Trial 4'!EC37","v":{"v":29166.66666666667,"d":"$29,167"}},{"$f":"'Trial 4'!ED37","v":{"v":29166.66666666667,"d":"$29,167"}},{"$f":"'Trial 4'!EE37","v":{"v":29166.66666666667,"d":"$29,167"}},{"$f":"'Trial 4'!EF37","v":{"v":29166.66666666667,"d":"$29,167"}},{"$f":"'Trial 4'!EG37","v":{"v":29166.66666666667,"d":"$29,167"}},{"$f":"'Trial 4'!EH37","v":{"v":29166.66666666667,"d":"$29,167"}},{"$f":"'Trial 4'!EI37","v":{"v":29166.66666666667,"d":"$29,167"}},{"$f":"'Trial 4'!EJ37","v":{"v":29166.66666666667,"d":"$29,167"}},{"$f":"'Trial 4'!EK37","v":{"v":29166.66666666667,"d":"$29,167"}},{"$f":"'Trial 4'!EL37","v":{"v":29166.66666666667,"d":"$29,167"}},{"$f":"'Trial 4'!EM37","v":{"v":29166.66666666667,"d":"$29,167"}},{"$f":"SUM('Trial 4'!EB37:EM37)","v":{"v":350000.0000000002,"d":"$350,000"}}]
[{"$f":"Labels!B100","v":"Trial 05"},{"$f":"'Trial 5'!B37","v":{"v":29166.66666666667,"d":"$29,167"}},{"$f":"'Trial 5'!C37","v":{"v":29166.66666666667,"d":"$29,167"}},{"$f":"'Trial 5'!D37","v":{"v":29166.66666666667,"d":"$29,167"}},{"$f":"'Trial 5'!E37","v":{"v":29166.66666666667,"d":"$29,167"}},{"$f":"'Trial 5'!F37","v":{"v":29166.66666666667,"d":"$29,167"}},{"$f":"'Trial 5'!G37","v":{"v":29166.66666666667,"d":"$29,167"}},{"$f":"'Trial 5'!H37","v":{"v":29166.66666666667,"d":"$29,167"}},{"$f":"'Trial 5'!I37","v":{"v":29166.66666666667,"d":"$29,167"}},{"$f":"'Trial 5'!J37","v":{"v":29166.66666666667,"d":"$29,167"}},{"$f":"'Trial 5'!K37","v":{"v":29166.66666666667,"d":"$29,167"}},{"$f":"'Trial 5'!L37","v":{"v":29166.66666666667,"d":"$29,167"}},{"$f":"'Trial 5'!M37","v":{"v":29166.66666666667,"d":"$29,167"}},{"$f":"SUM('Trial 5'!B37:M37)","v":{"v":350000.0000000002,"d":"$350,000"}},{"$f":"'Trial 5'!O37","v":{"v":29166.66666666667,"d":"$29,167"}},{"$f":"'Trial 5'!P37","v":{"v":29166.66666666667,"d":"$29,167"}},{"$f":"'Trial 5'!Q37","v":{"v":29166.66666666667,"d":"$29,167"}},{"$f":"'Trial 5'!R37","v":{"v":29166.66666666667,"d":"$29,167"}},{"$f":"'Trial 5'!S37","v":{"v":29166.66666666667,"d":"$29,167"}},{"$f":"'Trial 5'!T37","v":{"v":29166.66666666667,"d":"$29,167"}},{"$f":"'Trial 5'!U37","v":{"v":29166.66666666667,"d":"$29,167"}},{"$f":"'Trial 5'!V37","v":{"v":29166.66666666667,"d":"$29,167"}},{"$f":"'Trial 5'!W37","v":{"v":29166.66666666667,"d":"$29,167"}},{"$f":"'Trial 5'!X37","v":{"v":29166.66666666667,"d":"$29,167"}},{"$f":"'Trial 5'!Y37","v":{"v":29166.66666666667,"d":"$29,167"}},{"$f":"'Trial 5'!Z37","v":{"v":29166.66666666667,"d":"$29,167"}},{"$f":"SUM('Trial 5'!O37:Z37)","v":{"v":350000.0000000002,"d":"$350,000"}},{"$f":"'Trial 5'!AB37","v":{"v":29166.66666666667,"d":"$29,167"}},{"$f":"'Trial 5'!AC37","v":{"v":29166.66666666667,"d":"$29,167"}},{"$f":"'Trial 5'!AD37","v":{"v":29166.66666666667,"d":"$29,167"}},{"$f":"'Trial 5'!AE37","v":{"v":29166.66666666667,"d":"$29,167"}},{"$f":"'Trial 5'!AF37","v":{"v":29166.66666666667,"d":"$29,167"}},{"$f":"'Trial 5'!AG37","v":{"v":29166.66666666667,"d":"$29,167"}},{"$f":"'Trial 5'!AH37","v":{"v":29166.66666666667,"d":"$29,167"}},{"$f":"'Trial 5'!AI37","v":{"v":29166.66666666667,"d":"$29,167"}},{"$f":"'Trial 5'!AJ37","v":{"v":29166.66666666667,"d":"$29,167"}},{"$f":"'Trial 5'!AK37","v":{"v":29166.66666666667,"d":"$29,167"}},{"$f":"'Trial 5'!AL37","v":{"v":29166.66666666667,"d":"$29,167"}},{"$f":"'Trial 5'!AM37","v":{"v":29166.66666666667,"d":"$29,167"}},{"$f":"SUM('Trial 5'!AB37:AM37)","v":{"v":350000.0000000002,"d":"$350,000"}},{"$f":"'Trial 5'!AO37","v":{"v":29166.66666666667,"d":"$29,167"}},{"$f":"'Trial 5'!AP37","v":{"v":29166.66666666667,"d":"$29,167"}},{"$f":"'Trial 5'!AQ37","v":{"v":29166.66666666667,"d":"$29,167"}},{"$f":"'Trial 5'!AR37","v":{"v":29166.66666666667,"d":"$29,167"}},{"$f":"'Trial 5'!AS37","v":{"v":29166.66666666667,"d":"$29,167"}},{"$f":"'Trial 5'!AT37","v":{"v":29166.66666666667,"d":"$29,167"}},{"$f":"'Trial 5'!AU37","v":{"v":29166.66666666667,"d":"$29,167"}},{"$f":"'Trial 5'!AV37","v":{"v":29166.66666666667,"d":"$29,167"}},{"$f":"'Trial 5'!AW37","v":{"v":29166.66666666667,"d":"$29,167"}},{"$f":"'Trial 5'!AX37","v":{"v":29166.66666666667,"d":"$29,167"}},{"$f":"'Trial 5'!AY37","v":{"v":29166.66666666667,"d":"$29,167"}},{"$f":"'Trial 5'!AZ37","v":{"v":29166.66666666667,"d":"$29,167"}},{"$f":"SUM('Trial 5'!AO37:AZ37)","v":{"v":350000.0000000002,"d":"$350,000"}},{"$f":"'Trial 5'!BB37","v":{"v":29166.66666666667,"d":"$29,167"}},{"$f":"'Trial 5'!BC37","v":{"v":29166.66666666667,"d":"$29,167"}},{"$f":"'Trial 5'!BD37","v":{"v":29166.66666666667,"d":"$29,167"}},{"$f":"'Trial 5'!BE37","v":{"v":29166.66666666667,"d":"$29,167"}},{"$f":"'Trial 5'!BF37","v":{"v":29166.66666666667,"d":"$29,167"}},{"$f":"'Trial 5'!BG37","v":{"v":29166.66666666667,"d":"$29,167"}},{"$f":"'Trial 5'!BH37","v":{"v":29166.66666666667,"d":"$29,167"}},{"$f":"'Trial 5'!BI37","v":{"v":29166.66666666667,"d":"$29,167"}},{"$f":"'Trial 5'!BJ37","v":{"v":29166.66666666667,"d":"$29,167"}},{"$f":"'Trial 5'!BK37","v":{"v":29166.66666666667,"d":"$29,167"}},{"$f":"'Trial 5'!BL37","v":{"v":29166.66666666667,"d":"$29,167"}},{"$f":"'Trial 5'!BM37","v":{"v":29166.66666666667,"d":"$29,167"}},{"$f":"SUM('Trial 5'!BB37:BM37)","v":{"v":350000.0000000002,"d":"$350,000"}},{"$f":"'Trial 5'!BO37","v":{"v":29166.66666666667,"d":"$29,167"}},{"$f":"'Trial 5'!BP37","v":{"v":29166.66666666667,"d":"$29,167"}},{"$f":"'Trial 5'!BQ37","v":{"v":29166.66666666667,"d":"$29,167"}},{"$f":"'Trial 5'!BR37","v":{"v":29166.66666666667,"d":"$29,167"}},{"$f":"'Trial 5'!BS37","v":{"v":29166.66666666667,"d":"$29,167"}},{"$f":"'Trial 5'!BT37","v":{"v":29166.66666666667,"d":"$29,167"}},{"$f":"'Trial 5'!BU37","v":{"v":29166.66666666667,"d":"$29,167"}},{"$f":"'Trial 5'!BV37","v":{"v":29166.66666666667,"d":"$29,167"}},{"$f":"'Trial 5'!BW37","v":{"v":29166.66666666667,"d":"$29,167"}},{"$f":"'Trial 5'!BX37","v":{"v":29166.66666666667,"d":"$29,167"}},{"$f":"'Trial 5'!BY37","v":{"v":29166.66666666667,"d":"$29,167"}},{"$f":"'Trial 5'!BZ37","v":{"v":29166.66666666667,"d":"$29,167"}},{"$f":"SUM('Trial 5'!BO37:BZ37)","v":{"v":350000.0000000002,"d":"$350,000"}},{"$f":"'Trial 5'!CB37","v":{"v":29166.66666666667,"d":"$29,167"}},{"$f":"'Trial 5'!CC37","v":{"v":29166.66666666667,"d":"$29,167"}},{"$f":"'Trial 5'!CD37","v":{"v":29166.66666666667,"d":"$29,167"}},{"$f":"'Trial 5'!CE37","v":{"v":29166.66666666667,"d":"$29,167"}},{"$f":"'Trial 5'!CF37","v":{"v":29166.66666666667,"d":"$29,167"}},{"$f":"'Trial 5'!CG37","v":{"v":29166.66666666667,"d":"$29,167"}},{"$f":"'Trial 5'!CH37","v":{"v":29166.66666666667,"d":"$29,167"}},{"$f":"'Trial 5'!CI37","v":{"v":29166.66666666667,"d":"$29,167"}},{"$f":"'Trial 5'!CJ37","v":{"v":29166.66666666667,"d":"$29,167"}},{"$f":"'Trial 5'!CK37","v":{"v":29166.66666666667,"d":"$29,167"}},{"$f":"'Trial 5'!CL37","v":{"v":29166.66666666667,"d":"$29,167"}},{"$f":"'Trial 5'!CM37","v":{"v":29166.66666666667,"d":"$29,167"}},{"$f":"SUM('Trial 5'!CB37:CM37)","v":{"v":350000.0000000002,"d":"$350,000"}},{"$f":"'Trial 5'!CO37","v":{"v":29166.66666666667,"d":"$29,167"}},{"$f":"'Trial 5'!CP37","v":{"v":29166.66666666667,"d":"$29,167"}},{"$f":"'Trial 5'!CQ37","v":{"v":29166.66666666667,"d":"$29,167"}},{"$f":"'Trial 5'!CR37","v":{"v":29166.66666666667,"d":"$29,167"}},{"$f":"'Trial 5'!CS37","v":{"v":29166.66666666667,"d":"$29,167"}},{"$f":"'Trial 5'!CT37","v":{"v":29166.66666666667,"d":"$29,167"}},{"$f":"'Trial 5'!CU37","v":{"v":29166.66666666667,"d":"$29,167"}},{"$f":"'Trial 5'!CV37","v":{"v":29166.66666666667,"d":"$29,167"}},{"$f":"'Trial 5'!CW37","v":{"v":29166.66666666667,"d":"$29,167"}},{"$f":"'Trial 5'!CX37","v":{"v":29166.66666666667,"d":"$29,167"}},{"$f":"'Trial 5'!CY37","v":{"v":29166.66666666667,"d":"$29,167"}},{"$f":"'Trial 5'!CZ37","v":{"v":29166.66666666667,"d":"$29,167"}},{"$f":"SUM('Trial 5'!CO37:CZ37)","v":{"v":350000.0000000002,"d":"$350,000"}},{"$f":"'Trial 5'!DB37","v":{"v":29166.66666666667,"d":"$29,167"}},{"$f":"'Trial 5'!DC37","v":{"v":29166.66666666667,"d":"$29,167"}},{"$f":"'Trial 5'!DD37","v":{"v":29166.66666666667,"d":"$29,167"}},{"$f":"'Trial 5'!DE37","v":{"v":29166.66666666667,"d":"$29,167"}},{"$f":"'Trial 5'!DF37","v":{"v":29166.66666666667,"d":"$29,167"}},{"$f":"'Trial 5'!DG37","v":{"v":29166.66666666667,"d":"$29,167"}},{"$f":"'Trial 5'!DH37","v":{"v":29166.66666666667,"d":"$29,167"}},{"$f":"'Trial 5'!DI37","v":{"v":29166.66666666667,"d":"$29,167"}},{"$f":"'Trial 5'!DJ37","v":{"v":29166.66666666667,"d":"$29,167"}},{"$f":"'Trial 5'!DK37","v":{"v":29166.66666666667,"d":"$29,167"}},{"$f":"'Trial 5'!DL37","v":{"v":29166.66666666667,"d":"$29,167"}},{"$f":"'Trial 5'!DM37","v":{"v":29166.66666666667,"d":"$29,167"}},{"$f":"SUM('Trial 5'!DB37:DM37)","v":{"v":350000.0000000002,"d":"$350,000"}},{"$f":"'Trial 5'!DO37","v":{"v":29166.66666666667,"d":"$29,167"}},{"$f":"'Trial 5'!DP37","v":{"v":29166.66666666667,"d":"$29,167"}},{"$f":"'Trial 5'!DQ37","v":{"v":29166.66666666667,"d":"$29,167"}},{"$f":"'Trial 5'!DR37","v":{"v":29166.66666666667,"d":"$29,167"}},{"$f":"'Trial 5'!DS37","v":{"v":29166.66666666667,"d":"$29,167"}},{"$f":"'Trial 5'!DT37","v":{"v":29166.66666666667,"d":"$29,167"}},{"$f":"'Trial 5'!DU37","v":{"v":29166.66666666667,"d":"$29,167"}},{"$f":"'Trial 5'!DV37","v":{"v":29166.66666666667,"d":"$29,167"}},{"$f":"'Trial 5'!DW37","v":{"v":29166.66666666667,"d":"$29,167"}},{"$f":"'Trial 5'!DX37","v":{"v":29166.66666666667,"d":"$29,167"}},{"$f":"'Trial 5'!DY37","v":{"v":29166.66666666667,"d":"$29,167"}},{"$f":"'Trial 5'!DZ37","v":{"v":29166.66666666667,"d":"$29,167"}},{"$f":"SUM('Trial 5'!DO37:DZ37)","v":{"v":350000.0000000002,"d":"$350,000"}},{"$f":"'Trial 5'!EB37","v":{"v":29166.66666666667,"d":"$29,167"}},{"$f":"'Trial 5'!EC37","v":{"v":29166.66666666667,"d":"$29,167"}},{"$f":"'Trial 5'!ED37","v":{"v":29166.66666666667,"d":"$29,167"}},{"$f":"'Trial 5'!EE37","v":{"v":29166.66666666667,"d":"$29,167"}},{"$f":"'Trial 5'!EF37","v":{"v":29166.66666666667,"d":"$29,167"}},{"$f":"'Trial 5'!EG37","v":{"v":29166.66666666667,"d":"$29,167"}},{"$f":"'Trial 5'!EH37","v":{"v":29166.66666666667,"d":"$29,167"}},{"$f":"'Trial 5'!EI37","v":{"v":29166.66666666667,"d":"$29,167"}},{"$f":"'Trial 5'!EJ37","v":{"v":29166.66666666667,"d":"$29,167"}},{"$f":"'Trial 5'!EK37","v":{"v":29166.66666666667,"d":"$29,167"}},{"$f":"'Trial 5'!EL37","v":{"v":29166.66666666667,"d":"$29,167"}},{"$f":"'Trial 5'!EM37","v":{"v":29166.66666666667,"d":"$29,167"}},{"$f":"SUM('Trial 5'!EB37:EM37)","v":{"v":350000.0000000002,"d":"$350,000"}}]
[{"$f":"Labels!B101","v":"Trial 06"},{"$f":"'Trial 6'!B37","v":{"v":29166.66666666667,"d":"$29,167"}},{"$f":"'Trial 6'!C37","v":{"v":29166.66666666667,"d":"$29,167"}},{"$f":"'Trial 6'!D37","v":{"v":29166.66666666667,"d":"$29,167"}},{"$f":"'Trial 6'!E37","v":{"v":29166.66666666667,"d":"$29,167"}},{"$f":"'Trial 6'!F37","v":{"v":29166.66666666667,"d":"$29,167"}},{"$f":"'Trial 6'!G37","v":{"v":29166.66666666667,"d":"$29,167"}},{"$f":"'Trial 6'!H37","v":{"v":29166.66666666667,"d":"$29,167"}},{"$f":"'Trial 6'!I37","v":{"v":29166.66666666667,"d":"$29,167"}},{"$f":"'Trial 6'!J37","v":{"v":29166.66666666667,"d":"$29,167"}},{"$f":"'Trial 6'!K37","v":{"v":29166.66666666667,"d":"$29,167"}},{"$f":"'Trial 6'!L37","v":{"v":29166.66666666667,"d":"$29,167"}},{"$f":"'Trial 6'!M37","v":{"v":29166.66666666667,"d":"$29,167"}},{"$f":"SUM('Trial 6'!B37:M37)","v":{"v":350000.0000000002,"d":"$350,000"}},{"$f":"'Trial 6'!O37","v":{"v":29166.66666666667,"d":"$29,167"}},{"$f":"'Trial 6'!P37","v":{"v":29166.66666666667,"d":"$29,167"}},{"$f":"'Trial 6'!Q37","v":{"v":29166.66666666667,"d":"$29,167"}},{"$f":"'Trial 6'!R37","v":{"v":29166.66666666667,"d":"$29,167"}},{"$f":"'Trial 6'!S37","v":{"v":29166.66666666667,"d":"$29,167"}},{"$f":"'Trial 6'!T37","v":{"v":29166.66666666667,"d":"$29,167"}},{"$f":"'Trial 6'!U37","v":{"v":29166.66666666667,"d":"$29,167"}},{"$f":"'Trial 6'!V37","v":{"v":29166.66666666667,"d":"$29,167"}},{"$f":"'Trial 6'!W37","v":{"v":29166.66666666667,"d":"$29,167"}},{"$f":"'Trial 6'!X37","v":{"v":29166.66666666667,"d":"$29,167"}},{"$f":"'Trial 6'!Y37","v":{"v":29166.66666666667,"d":"$29,167"}},{"$f":"'Trial 6'!Z37","v":{"v":29166.66666666667,"d":"$29,167"}},{"$f":"SUM('Trial 6'!O37:Z37)","v":{"v":350000.0000000002,"d":"$350,000"}},{"$f":"'Trial 6'!AB37","v":{"v":29166.66666666667,"d":"$29,167"}},{"$f":"'Trial 6'!AC37","v":{"v":29166.66666666667,"d":"$29,167"}},{"$f":"'Trial 6'!AD37","v":{"v":29166.66666666667,"d":"$29,167"}},{"$f":"'Trial 6'!AE37","v":{"v":29166.66666666667,"d":"$29,167"}},{"$f":"'Trial 6'!AF37","v":{"v":29166.66666666667,"d":"$29,167"}},{"$f":"'Trial 6'!AG37","v":{"v":29166.66666666667,"d":"$29,167"}},{"$f":"'Trial 6'!AH37","v":{"v":29166.66666666667,"d":"$29,167"}},{"$f":"'Trial 6'!AI37","v":{"v":29166.66666666667,"d":"$29,167"}},{"$f":"'Trial 6'!AJ37","v":{"v":29166.66666666667,"d":"$29,167"}},{"$f":"'Trial 6'!AK37","v":{"v":29166.66666666667,"d":"$29,167"}},{"$f":"'Trial 6'!AL37","v":{"v":29166.66666666667,"d":"$29,167"}},{"$f":"'Trial 6'!AM37","v":{"v":29166.66666666667,"d":"$29,167"}},{"$f":"SUM('Trial 6'!AB37:AM37)","v":{"v":350000.0000000002,"d":"$350,000"}},{"$f":"'Trial 6'!AO37","v":{"v":29166.66666666667,"d":"$29,167"}},{"$f":"'Trial 6'!AP37","v":{"v":29166.66666666667,"d":"$29,167"}},{"$f":"'Trial 6'!AQ37","v":{"v":29166.66666666667,"d":"$29,167"}},{"$f":"'Trial 6'!AR37","v":{"v":29166.66666666667,"d":"$29,167"}},{"$f":"'Trial 6'!AS37","v":{"v":29166.66666666667,"d":"$29,167"}},{"$f":"'Trial 6'!AT37","v":{"v":29166.66666666667,"d":"$29,167"}},{"$f":"'Trial 6'!AU37","v":{"v":29166.66666666667,"d":"$29,167"}},{"$f":"'Trial 6'!AV37","v":{"v":29166.66666666667,"d":"$29,167"}},{"$f":"'Trial 6'!AW37","v":{"v":29166.66666666667,"d":"$29,167"}},{"$f":"'Trial 6'!AX37","v":{"v":29166.66666666667,"d":"$29,167"}},{"$f":"'Trial 6'!AY37","v":{"v":29166.66666666667,"d":"$29,167"}},{"$f":"'Trial 6'!AZ37","v":{"v":29166.66666666667,"d":"$29,167"}},{"$f":"SUM('Trial 6'!AO37:AZ37)","v":{"v":350000.0000000002,"d":"$350,000"}},{"$f":"'Trial 6'!BB37","v":{"v":29166.66666666667,"d":"$29,167"}},{"$f":"'Trial 6'!BC37","v":{"v":29166.66666666667,"d":"$29,167"}},{"$f":"'Trial 6'!BD37","v":{"v":29166.66666666667,"d":"$29,167"}},{"$f":"'Trial 6'!BE37","v":{"v":29166.66666666667,"d":"$29,167"}},{"$f":"'Trial 6'!BF37","v":{"v":29166.66666666667,"d":"$29,167"}},{"$f":"'Trial 6'!BG37","v":{"v":29166.66666666667,"d":"$29,167"}},{"$f":"'Trial 6'!BH37","v":{"v":29166.66666666667,"d":"$29,167"}},{"$f":"'Trial 6'!BI37","v":{"v":29166.66666666667,"d":"$29,167"}},{"$f":"'Trial 6'!BJ37","v":{"v":29166.66666666667,"d":"$29,167"}},{"$f":"'Trial 6'!BK37","v":{"v":29166.66666666667,"d":"$29,167"}},{"$f":"'Trial 6'!BL37","v":{"v":29166.66666666667,"d":"$29,167"}},{"$f":"'Trial 6'!BM37","v":{"v":29166.66666666667,"d":"$29,167"}},{"$f":"SUM('Trial 6'!BB37:BM37)","v":{"v":350000.0000000002,"d":"$350,000"}},{"$f":"'Trial 6'!BO37","v":{"v":29166.66666666667,"d":"$29,167"}},{"$f":"'Trial 6'!BP37","v":{"v":29166.66666666667,"d":"$29,167"}},{"$f":"'Trial 6'!BQ37","v":{"v":29166.66666666667,"d":"$29,167"}},{"$f":"'Trial 6'!BR37","v":{"v":29166.66666666667,"d":"$29,167"}},{"$f":"'Trial 6'!BS37","v":{"v":29166.66666666667,"d":"$29,167"}},{"$f":"'Trial 6'!BT37","v":{"v":29166.66666666667,"d":"$29,167"}},{"$f":"'Trial 6'!BU37","v":{"v":29166.66666666667,"d":"$29,167"}},{"$f":"'Trial 6'!BV37","v":{"v":29166.66666666667,"d":"$29,167"}},{"$f":"'Trial 6'!BW37","v":{"v":29166.66666666667,"d":"$29,167"}},{"$f":"'Trial 6'!BX37","v":{"v":29166.66666666667,"d":"$29,167"}},{"$f":"'Trial 6'!BY37","v":{"v":29166.66666666667,"d":"$29,167"}},{"$f":"'Trial 6'!BZ37","v":{"v":29166.66666666667,"d":"$29,167"}},{"$f":"SUM('Trial 6'!BO37:BZ37)","v":{"v":350000.0000000002,"d":"$350,000"}},{"$f":"'Trial 6'!CB37","v":{"v":29166.66666666667,"d":"$29,167"}},{"$f":"'Trial 6'!CC37","v":{"v":29166.66666666667,"d":"$29,167"}},{"$f":"'Trial 6'!CD37","v":{"v":29166.66666666667,"d":"$29,167"}},{"$f":"'Trial 6'!CE37","v":{"v":29166.66666666667,"d":"$29,167"}},{"$f":"'Trial 6'!CF37","v":{"v":29166.66666666667,"d":"$29,167"}},{"$f":"'Trial 6'!CG37","v":{"v":29166.66666666667,"d":"$29,167"}},{"$f":"'Trial 6'!CH37","v":{"v":29166.66666666667,"d":"$29,167"}},{"$f":"'Trial 6'!CI37","v":{"v":29166.66666666667,"d":"$29,167"}},{"$f":"'Trial 6'!CJ37","v":{"v":29166.66666666667,"d":"$29,167"}},{"$f":"'Trial 6'!CK37","v":{"v":29166.66666666667,"d":"$29,167"}},{"$f":"'Trial 6'!CL37","v":{"v":29166.66666666667,"d":"$29,167"}},{"$f":"'Trial 6'!CM37","v":{"v":29166.66666666667,"d":"$29,167"}},{"$f":"SUM('Trial 6'!CB37:CM37)","v":{"v":350000.0000000002,"d":"$350,000"}},{"$f":"'Trial 6'!CO37","v":{"v":29166.66666666667,"d":"$29,167"}},{"$f":"'Trial 6'!CP37","v":{"v":29166.66666666667,"d":"$29,167"}},{"$f":"'Trial 6'!CQ37","v":{"v":29166.66666666667,"d":"$29,167"}},{"$f":"'Trial 6'!CR37","v":{"v":29166.66666666667,"d":"$29,167"}},{"$f":"'Trial 6'!CS37","v":{"v":29166.66666666667,"d":"$29,167"}},{"$f":"'Trial 6'!CT37","v":{"v":29166.66666666667,"d":"$29,167"}},{"$f":"'Trial 6'!CU37","v":{"v":29166.66666666667,"d":"$29,167"}},{"$f":"'Trial 6'!CV37","v":{"v":29166.66666666667,"d":"$29,167"}},{"$f":"'Trial 6'!CW37","v":{"v":29166.66666666667,"d":"$29,167"}},{"$f":"'Trial 6'!CX37","v":{"v":29166.66666666667,"d":"$29,167"}},{"$f":"'Trial 6'!CY37","v":{"v":29166.66666666667,"d":"$29,167"}},{"$f":"'Trial 6'!CZ37","v":{"v":29166.66666666667,"d":"$29,167"}},{"$f":"SUM('Trial 6'!CO37:CZ37)","v":{"v":350000.0000000002,"d":"$350,000"}},{"$f":"'Trial 6'!DB37","v":{"v":29166.66666666667,"d":"$29,167"}},{"$f":"'Trial 6'!DC37","v":{"v":29166.66666666667,"d":"$29,167"}},{"$f":"'Trial 6'!DD37","v":{"v":29166.66666666667,"d":"$29,167"}},{"$f":"'Trial 6'!DE37","v":{"v":29166.66666666667,"d":"$29,167"}},{"$f":"'Trial 6'!DF37","v":{"v":29166.66666666667,"d":"$29,167"}},{"$f":"'Trial 6'!DG37","v":{"v":29166.66666666667,"d":"$29,167"}},{"$f":"'Trial 6'!DH37","v":{"v":29166.66666666667,"d":"$29,167"}},{"$f":"'Trial 6'!DI37","v":{"v":29166.66666666667,"d":"$29,167"}},{"$f":"'Trial 6'!DJ37","v":{"v":29166.66666666667,"d":"$29,167"}},{"$f":"'Trial 6'!DK37","v":{"v":29166.66666666667,"d":"$29,167"}},{"$f":"'Trial 6'!DL37","v":{"v":29166.66666666667,"d":"$29,167"}},{"$f":"'Trial 6'!DM37","v":{"v":29166.66666666667,"d":"$29,167"}},{"$f":"SUM('Trial 6'!DB37:DM37)","v":{"v":350000.0000000002,"d":"$350,000"}},{"$f":"'Trial 6'!DO37","v":{"v":29166.66666666667,"d":"$29,167"}},{"$f":"'Trial 6'!DP37","v":{"v":29166.66666666667,"d":"$29,167"}},{"$f":"'Trial 6'!DQ37","v":{"v":29166.66666666667,"d":"$29,167"}},{"$f":"'Trial 6'!DR37","v":{"v":29166.66666666667,"d":"$29,167"}},{"$f":"'Trial 6'!DS37","v":{"v":29166.66666666667,"d":"$29,167"}},{"$f":"'Trial 6'!DT37","v":{"v":29166.66666666667,"d":"$29,167"}},{"$f":"'Trial 6'!DU37","v":{"v":29166.66666666667,"d":"$29,167"}},{"$f":"'Trial 6'!DV37","v":{"v":29166.66666666667,"d":"$29,167"}},{"$f":"'Trial 6'!DW37","v":{"v":29166.66666666667,"d":"$29,167"}},{"$f":"'Trial 6'!DX37","v":{"v":29166.66666666667,"d":"$29,167"}},{"$f":"'Trial 6'!DY37","v":{"v":29166.66666666667,"d":"$29,167"}},{"$f":"'Trial 6'!DZ37","v":{"v":29166.66666666667,"d":"$29,167"}},{"$f":"SUM('Trial 6'!DO37:DZ37)","v":{"v":350000.0000000002,"d":"$350,000"}},{"$f":"'Trial 6'!EB37","v":{"v":29166.66666666667,"d":"$29,167"}},{"$f":"'Trial 6'!EC37","v":{"v":29166.66666666667,"d":"$29,167"}},{"$f":"'Trial 6'!ED37","v":{"v":29166.66666666667,"d":"$29,167"}},{"$f":"'Trial 6'!EE37","v":{"v":29166.66666666667,"d":"$29,167"}},{"$f":"'Trial 6'!EF37","v":{"v":29166.66666666667,"d":"$29,167"}},{"$f":"'Trial 6'!EG37","v":{"v":29166.66666666667,"d":"$29,167"}},{"$f":"'Trial 6'!EH37","v":{"v":29166.66666666667,"d":"$29,167"}},{"$f":"'Trial 6'!EI37","v":{"v":29166.66666666667,"d":"$29,167"}},{"$f":"'Trial 6'!EJ37","v":{"v":29166.66666666667,"d":"$29,167"}},{"$f":"'Trial 6'!EK37","v":{"v":29166.66666666667,"d":"$29,167"}},{"$f":"'Trial 6'!EL37","v":{"v":29166.66666666667,"d":"$29,167"}},{"$f":"'Trial 6'!EM37","v":{"v":29166.66666666667,"d":"$29,167"}},{"$f":"SUM('Trial 6'!EB37:EM37)","v":{"v":350000.0000000002,"d":"$350,000"}}]
[{"$f":"Labels!B102","v":"Trial 07"},{"$f":"'Trial 7'!B37","v":{"v":29166.66666666667,"d":"$29,167"}},{"$f":"'Trial 7'!C37","v":{"v":29166.66666666667,"d":"$29,167"}},{"$f":"'Trial 7'!D37","v":{"v":29166.66666666667,"d":"$29,167"}},{"$f":"'Trial 7'!E37","v":{"v":29166.66666666667,"d":"$29,167"}},{"$f":"'Trial 7'!F37","v":{"v":29166.66666666667,"d":"$29,167"}},{"$f":"'Trial 7'!G37","v":{"v":29166.66666666667,"d":"$29,167"}},{"$f":"'Trial 7'!H37","v":{"v":29166.66666666667,"d":"$29,167"}},{"$f":"'Trial 7'!I37","v":{"v":29166.66666666667,"d":"$29,167"}},{"$f":"'Trial 7'!J37","v":{"v":29166.66666666667,"d":"$29,167"}},{"$f":"'Trial 7'!K37","v":{"v":29166.66666666667,"d":"$29,167"}},{"$f":"'Trial 7'!L37","v":{"v":29166.66666666667,"d":"$29,167"}},{"$f":"'Trial 7'!M37","v":{"v":29166.66666666667,"d":"$29,167"}},{"$f":"SUM('Trial 7'!B37:M37)","v":{"v":350000.0000000002,"d":"$350,000"}},{"$f":"'Trial 7'!O37","v":{"v":29166.66666666667,"d":"$29,167"}},{"$f":"'Trial 7'!P37","v":{"v":29166.66666666667,"d":"$29,167"}},{"$f":"'Trial 7'!Q37","v":{"v":29166.66666666667,"d":"$29,167"}},{"$f":"'Trial 7'!R37","v":{"v":29166.66666666667,"d":"$29,167"}},{"$f":"'Trial 7'!S37","v":{"v":29166.66666666667,"d":"$29,167"}},{"$f":"'Trial 7'!T37","v":{"v":29166.66666666667,"d":"$29,167"}},{"$f":"'Trial 7'!U37","v":{"v":29166.66666666667,"d":"$29,167"}},{"$f":"'Trial 7'!V37","v":{"v":29166.66666666667,"d":"$29,167"}},{"$f":"'Trial 7'!W37","v":{"v":29166.66666666667,"d":"$29,167"}},{"$f":"'Trial 7'!X37","v":{"v":29166.66666666667,"d":"$29,167"}},{"$f":"'Trial 7'!Y37","v":{"v":29166.66666666667,"d":"$29,167"}},{"$f":"'Trial 7'!Z37","v":{"v":29166.66666666667,"d":"$29,167"}},{"$f":"SUM('Trial 7'!O37:Z37)","v":{"v":350000.0000000002,"d":"$350,000"}},{"$f":"'Trial 7'!AB37","v":{"v":29166.66666666667,"d":"$29,167"}},{"$f":"'Trial 7'!AC37","v":{"v":29166.66666666667,"d":"$29,167"}},{"$f":"'Trial 7'!AD37","v":{"v":29166.66666666667,"d":"$29,167"}},{"$f":"'Trial 7'!AE37","v":{"v":29166.66666666667,"d":"$29,167"}},{"$f":"'Trial 7'!AF37","v":{"v":29166.66666666667,"d":"$29,167"}},{"$f":"'Trial 7'!AG37","v":{"v":29166.66666666667,"d":"$29,167"}},{"$f":"'Trial 7'!AH37","v":{"v":29166.66666666667,"d":"$29,167"}},{"$f":"'Trial 7'!AI37","v":{"v":29166.66666666667,"d":"$29,167"}},{"$f":"'Trial 7'!AJ37","v":{"v":29166.66666666667,"d":"$29,167"}},{"$f":"'Trial 7'!AK37","v":{"v":29166.66666666667,"d":"$29,167"}},{"$f":"'Trial 7'!AL37","v":{"v":29166.66666666667,"d":"$29,167"}},{"$f":"'Trial 7'!AM37","v":{"v":29166.66666666667,"d":"$29,167"}},{"$f":"SUM('Trial 7'!AB37:AM37)","v":{"v":350000.0000000002,"d":"$350,000"}},{"$f":"'Trial 7'!AO37","v":{"v":29166.66666666667,"d":"$29,167"}},{"$f":"'Trial 7'!AP37","v":{"v":29166.66666666667,"d":"$29,167"}},{"$f":"'Trial 7'!AQ37","v":{"v":29166.66666666667,"d":"$29,167"}},{"$f":"'Trial 7'!AR37","v":{"v":29166.66666666667,"d":"$29,167"}},{"$f":"'Trial 7'!AS37","v":{"v":29166.66666666667,"d":"$29,167"}},{"$f":"'Trial 7'!AT37","v":{"v":29166.66666666667,"d":"$29,167"}},{"$f":"'Trial 7'!AU37","v":{"v":29166.66666666667,"d":"$29,167"}},{"$f":"'Trial 7'!AV37","v":{"v":29166.66666666667,"d":"$29,167"}},{"$f":"'Trial 7'!AW37","v":{"v":29166.66666666667,"d":"$29,167"}},{"$f":"'Trial 7'!AX37","v":{"v":29166.66666666667,"d":"$29,167"}},{"$f":"'Trial 7'!AY37","v":{"v":29166.66666666667,"d":"$29,167"}},{"$f":"'Trial 7'!AZ37","v":{"v":29166.66666666667,"d":"$29,167"}},{"$f":"SUM('Trial 7'!AO37:AZ37)","v":{"v":350000.0000000002,"d":"$350,000"}},{"$f":"'Trial 7'!BB37","v":{"v":29166.66666666667,"d":"$29,167"}},{"$f":"'Trial 7'!BC37","v":{"v":29166.66666666667,"d":"$29,167"}},{"$f":"'Trial 7'!BD37","v":{"v":29166.66666666667,"d":"$29,167"}},{"$f":"'Trial 7'!BE37","v":{"v":29166.66666666667,"d":"$29,167"}},{"$f":"'Trial 7'!BF37","v":{"v":29166.66666666667,"d":"$29,167"}},{"$f":"'Trial 7'!BG37","v":{"v":29166.66666666667,"d":"$29,167"}},{"$f":"'Trial 7'!BH37","v":{"v":29166.66666666667,"d":"$29,167"}},{"$f":"'Trial 7'!BI37","v":{"v":29166.66666666667,"d":"$29,167"}},{"$f":"'Trial 7'!BJ37","v":{"v":29166.66666666667,"d":"$29,167"}},{"$f":"'Trial 7'!BK37","v":{"v":29166.66666666667,"d":"$29,167"}},{"$f":"'Trial 7'!BL37","v":{"v":29166.66666666667,"d":"$29,167"}},{"$f":"'Trial 7'!BM37","v":{"v":29166.66666666667,"d":"$29,167"}},{"$f":"SUM('Trial 7'!BB37:BM37)","v":{"v":350000.0000000002,"d":"$350,000"}},{"$f":"'Trial 7'!BO37","v":{"v":29166.66666666667,"d":"$29,167"}},{"$f":"'Trial 7'!BP37","v":{"v":29166.66666666667,"d":"$29,167"}},{"$f":"'Trial 7'!BQ37","v":{"v":29166.66666666667,"d":"$29,167"}},{"$f":"'Trial 7'!BR37","v":{"v":29166.66666666667,"d":"$29,167"}},{"$f":"'Trial 7'!BS37","v":{"v":29166.66666666667,"d":"$29,167"}},{"$f":"'Trial 7'!BT37","v":{"v":29166.66666666667,"d":"$29,167"}},{"$f":"'Trial 7'!BU37","v":{"v":29166.66666666667,"d":"$29,167"}},{"$f":"'Trial 7'!BV37","v":{"v":29166.66666666667,"d":"$29,167"}},{"$f":"'Trial 7'!BW37","v":{"v":29166.66666666667,"d":"$29,167"}},{"$f":"'Trial 7'!BX37","v":{"v":29166.66666666667,"d":"$29,167"}},{"$f":"'Trial 7'!BY37","v":{"v":29166.66666666667,"d":"$29,167"}},{"$f":"'Trial 7'!BZ37","v":{"v":29166.66666666667,"d":"$29,167"}},{"$f":"SUM('Trial 7'!BO37:BZ37)","v":{"v":350000.0000000002,"d":"$350,000"}},{"$f":"'Trial 7'!CB37","v":{"v":29166.66666666667,"d":"$29,167"}},{"$f":"'Trial 7'!CC37","v":{"v":29166.66666666667,"d":"$29,167"}},{"$f":"'Trial 7'!CD37","v":{"v":29166.66666666667,"d":"$29,167"}},{"$f":"'Trial 7'!CE37","v":{"v":29166.66666666667,"d":"$29,167"}},{"$f":"'Trial 7'!CF37","v":{"v":29166.66666666667,"d":"$29,167"}},{"$f":"'Trial 7'!CG37","v":{"v":29166.66666666667,"d":"$29,167"}},{"$f":"'Trial 7'!CH37","v":{"v":29166.66666666667,"d":"$29,167"}},{"$f":"'Trial 7'!CI37","v":{"v":29166.66666666667,"d":"$29,167"}},{"$f":"'Trial 7'!CJ37","v":{"v":29166.66666666667,"d":"$29,167"}},{"$f":"'Trial 7'!CK37","v":{"v":29166.66666666667,"d":"$29,167"}},{"$f":"'Trial 7'!CL37","v":{"v":29166.66666666667,"d":"$29,167"}},{"$f":"'Trial 7'!CM37","v":{"v":29166.66666666667,"d":"$29,167"}},{"$f":"SUM('Trial 7'!CB37:CM37)","v":{"v":350000.0000000002,"d":"$350,000"}},{"$f":"'Trial 7'!CO37","v":{"v":29166.66666666667,"d":"$29,167"}},{"$f":"'Trial 7'!CP37","v":{"v":29166.66666666667,"d":"$29,167"}},{"$f":"'Trial 7'!CQ37","v":{"v":29166.66666666667,"d":"$29,167"}},{"$f":"'Trial 7'!CR37","v":{"v":29166.66666666667,"d":"$29,167"}},{"$f":"'Trial 7'!CS37","v":{"v":29166.66666666667,"d":"$29,167"}},{"$f":"'Trial 7'!CT37","v":{"v":29166.66666666667,"d":"$29,167"}},{"$f":"'Trial 7'!CU37","v":{"v":29166.66666666667,"d":"$29,167"}},{"$f":"'Trial 7'!CV37","v":{"v":29166.66666666667,"d":"$29,167"}},{"$f":"'Trial 7'!CW37","v":{"v":29166.66666666667,"d":"$29,167"}},{"$f":"'Trial 7'!CX37","v":{"v":29166.66666666667,"d":"$29,167"}},{"$f":"'Trial 7'!CY37","v":{"v":29166.66666666667,"d":"$29,167"}},{"$f":"'Trial 7'!CZ37","v":{"v":29166.66666666667,"d":"$29,167"}},{"$f":"SUM('Trial 7'!CO37:CZ37)","v":{"v":350000.0000000002,"d":"$350,000"}},{"$f":"'Trial 7'!DB37","v":{"v":29166.66666666667,"d":"$29,167"}},{"$f":"'Trial 7'!DC37","v":{"v":29166.66666666667,"d":"$29,167"}},{"$f":"'Trial 7'!DD37","v":{"v":29166.66666666667,"d":"$29,167"}},{"$f":"'Trial 7'!DE37","v":{"v":29166.66666666667,"d":"$29,167"}},{"$f":"'Trial 7'!DF37","v":{"v":29166.66666666667,"d":"$29,167"}},{"$f":"'Trial 7'!DG37","v":{"v":29166.66666666667,"d":"$29,167"}},{"$f":"'Trial 7'!DH37","v":{"v":29166.66666666667,"d":"$29,167"}},{"$f":"'Trial 7'!DI37","v":{"v":29166.66666666667,"d":"$29,167"}},{"$f":"'Trial 7'!DJ37","v":{"v":29166.66666666667,"d":"$29,167"}},{"$f":"'Trial 7'!DK37","v":{"v":29166.66666666667,"d":"$29,167"}},{"$f":"'Trial 7'!DL37","v":{"v":29166.66666666667,"d":"$29,167"}},{"$f":"'Trial 7'!DM37","v":{"v":29166.66666666667,"d":"$29,167"}},{"$f":"SUM('Trial 7'!DB37:DM37)","v":{"v":350000.0000000002,"d":"$350,000"}},{"$f":"'Trial 7'!DO37","v":{"v":29166.66666666667,"d":"$29,167"}},{"$f":"'Trial 7'!DP37","v":{"v":29166.66666666667,"d":"$29,167"}},{"$f":"'Trial 7'!DQ37","v":{"v":29166.66666666667,"d":"$29,167"}},{"$f":"'Trial 7'!DR37","v":{"v":29166.66666666667,"d":"$29,167"}},{"$f":"'Trial 7'!DS37","v":{"v":29166.66666666667,"d":"$29,167"}},{"$f":"'Trial 7'!DT37","v":{"v":29166.66666666667,"d":"$29,167"}},{"$f":"'Trial 7'!DU37","v":{"v":29166.66666666667,"d":"$29,167"}},{"$f":"'Trial 7'!DV37","v":{"v":29166.66666666667,"d":"$29,167"}},{"$f":"'Trial 7'!DW37","v":{"v":29166.66666666667,"d":"$29,167"}},{"$f":"'Trial 7'!DX37","v":{"v":29166.66666666667,"d":"$29,167"}},{"$f":"'Trial 7'!DY37","v":{"v":29166.66666666667,"d":"$29,167"}},{"$f":"'Trial 7'!DZ37","v":{"v":29166.66666666667,"d":"$29,167"}},{"$f":"SUM('Trial 7'!DO37:DZ37)","v":{"v":350000.0000000002,"d":"$350,000"}},{"$f":"'Trial 7'!EB37","v":{"v":29166.66666666667,"d":"$29,167"}},{"$f":"'Trial 7'!EC37","v":{"v":29166.66666666667,"d":"$29,167"}},{"$f":"'Trial 7'!ED37","v":{"v":29166.66666666667,"d":"$29,167"}},{"$f":"'Trial 7'!EE37","v":{"v":29166.66666666667,"d":"$29,167"}},{"$f":"'Trial 7'!EF37","v":{"v":29166.66666666667,"d":"$29,167"}},{"$f":"'Trial 7'!EG37","v":{"v":29166.66666666667,"d":"$29,167"}},{"$f":"'Trial 7'!EH37","v":{"v":29166.66666666667,"d":"$29,167"}},{"$f":"'Trial 7'!EI37","v":{"v":29166.66666666667,"d":"$29,167"}},{"$f":"'Trial 7'!EJ37","v":{"v":29166.66666666667,"d":"$29,167"}},{"$f":"'Trial 7'!EK37","v":{"v":29166.66666666667,"d":"$29,167"}},{"$f":"'Trial 7'!EL37","v":{"v":29166.66666666667,"d":"$29,167"}},{"$f":"'Trial 7'!EM37","v":{"v":29166.66666666667,"d":"$29,167"}},{"$f":"SUM('Trial 7'!EB37:EM37)","v":{"v":350000.0000000002,"d":"$350,000"}}]
[{"$f":"Labels!B103","v":"Trial 08"},{"$f":"'Trial 8'!B37","v":{"v":29166.66666666667,"d":"$29,167"}},{"$f":"'Trial 8'!C37","v":{"v":29166.66666666667,"d":"$29,167"}},{"$f":"'Trial 8'!D37","v":{"v":29166.66666666667,"d":"$29,167"}},{"$f":"'Trial 8'!E37","v":{"v":29166.66666666667,"d":"$29,167"}},{"$f":"'Trial 8'!F37","v":{"v":29166.66666666667,"d":"$29,167"}},{"$f":"'Trial 8'!G37","v":{"v":29166.66666666667,"d":"$29,167"}},{"$f":"'Trial 8'!H37","v":{"v":29166.66666666667,"d":"$29,167"}},{"$f":"'Trial 8'!I37","v":{"v":29166.66666666667,"d":"$29,167"}},{"$f":"'Trial 8'!J37","v":{"v":29166.66666666667,"d":"$29,167"}},{"$f":"'Trial 8'!K37","v":{"v":29166.66666666667,"d":"$29,167"}},{"$f":"'Trial 8'!L37","v":{"v":29166.66666666667,"d":"$29,167"}},{"$f":"'Trial 8'!M37","v":{"v":29166.66666666667,"d":"$29,167"}},{"$f":"SUM('Trial 8'!B37:M37)","v":{"v":350000.0000000002,"d":"$350,000"}},{"$f":"'Trial 8'!O37","v":{"v":29166.66666666667,"d":"$29,167"}},{"$f":"'Trial 8'!P37","v":{"v":29166.66666666667,"d":"$29,167"}},{"$f":"'Trial 8'!Q37","v":{"v":29166.66666666667,"d":"$29,167"}},{"$f":"'Trial 8'!R37","v":{"v":29166.66666666667,"d":"$29,167"}},{"$f":"'Trial 8'!S37","v":{"v":29166.66666666667,"d":"$29,167"}},{"$f":"'Trial 8'!T37","v":{"v":29166.66666666667,"d":"$29,167"}},{"$f":"'Trial 8'!U37","v":{"v":29166.66666666667,"d":"$29,167"}},{"$f":"'Trial 8'!V37","v":{"v":29166.66666666667,"d":"$29,167"}},{"$f":"'Trial 8'!W37","v":{"v":29166.66666666667,"d":"$29,167"}},{"$f":"'Trial 8'!X37","v":{"v":29166.66666666667,"d":"$29,167"}},{"$f":"'Trial 8'!Y37","v":{"v":29166.66666666667,"d":"$29,167"}},{"$f":"'Trial 8'!Z37","v":{"v":29166.66666666667,"d":"$29,167"}},{"$f":"SUM('Trial 8'!O37:Z37)","v":{"v":350000.0000000002,"d":"$350,000"}},{"$f":"'Trial 8'!AB37","v":{"v":29166.66666666667,"d":"$29,167"}},{"$f":"'Trial 8'!AC37","v":{"v":29166.66666666667,"d":"$29,167"}},{"$f":"'Trial 8'!AD37","v":{"v":29166.66666666667,"d":"$29,167"}},{"$f":"'Trial 8'!AE37","v":{"v":29166.66666666667,"d":"$29,167"}},{"$f":"'Trial 8'!AF37","v":{"v":29166.66666666667,"d":"$29,167"}},{"$f":"'Trial 8'!AG37","v":{"v":29166.66666666667,"d":"$29,167"}},{"$f":"'Trial 8'!AH37","v":{"v":29166.66666666667,"d":"$29,167"}},{"$f":"'Trial 8'!AI37","v":{"v":29166.66666666667,"d":"$29,167"}},{"$f":"'Trial 8'!AJ37","v":{"v":29166.66666666667,"d":"$29,167"}},{"$f":"'Trial 8'!AK37","v":{"v":29166.66666666667,"d":"$29,167"}},{"$f":"'Trial 8'!AL37","v":{"v":29166.66666666667,"d":"$29,167"}},{"$f":"'Trial 8'!AM37","v":{"v":29166.66666666667,"d":"$29,167"}},{"$f":"SUM('Trial 8'!AB37:AM37)","v":{"v":350000.0000000002,"d":"$350,000"}},{"$f":"'Trial 8'!AO37","v":{"v":29166.66666666667,"d":"$29,167"}},{"$f":"'Trial 8'!AP37","v":{"v":29166.66666666667,"d":"$29,167"}},{"$f":"'Trial 8'!AQ37","v":{"v":29166.66666666667,"d":"$29,167"}},{"$f":"'Trial 8'!AR37","v":{"v":29166.66666666667,"d":"$29,167"}},{"$f":"'Trial 8'!AS37","v":{"v":29166.66666666667,"d":"$29,167"}},{"$f":"'Trial 8'!AT37","v":{"v":29166.66666666667,"d":"$29,167"}},{"$f":"'Trial 8'!AU37","v":{"v":29166.66666666667,"d":"$29,167"}},{"$f":"'Trial 8'!AV37","v":{"v":29166.66666666667,"d":"$29,167"}},{"$f":"'Trial 8'!AW37","v":{"v":29166.66666666667,"d":"$29,167"}},{"$f":"'Trial 8'!AX37","v":{"v":29166.66666666667,"d":"$29,167"}},{"$f":"'Trial 8'!AY37","v":{"v":29166.66666666667,"d":"$29,167"}},{"$f":"'Trial 8'!AZ37","v":{"v":29166.66666666667,"d":"$29,167"}},{"$f":"SUM('Trial 8'!AO37:AZ37)","v":{"v":350000.0000000002,"d":"$350,000"}},{"$f":"'Trial 8'!BB37","v":{"v":29166.66666666667,"d":"$29,167"}},{"$f":"'Trial 8'!BC37","v":{"v":29166.66666666667,"d":"$29,167"}},{"$f":"'Trial 8'!BD37","v":{"v":29166.66666666667,"d":"$29,167"}},{"$f":"'Trial 8'!BE37","v":{"v":29166.66666666667,"d":"$29,167"}},{"$f":"'Trial 8'!BF37","v":{"v":29166.66666666667,"d":"$29,167"}},{"$f":"'Trial 8'!BG37","v":{"v":29166.66666666667,"d":"$29,167"}},{"$f":"'Trial 8'!BH37","v":{"v":29166.66666666667,"d":"$29,167"}},{"$f":"'Trial 8'!BI37","v":{"v":29166.66666666667,"d":"$29,167"}},{"$f":"'Trial 8'!BJ37","v":{"v":29166.66666666667,"d":"$29,167"}},{"$f":"'Trial 8'!BK37","v":{"v":29166.66666666667,"d":"$29,167"}},{"$f":"'Trial 8'!BL37","v":{"v":29166.66666666667,"d":"$29,167"}},{"$f":"'Trial 8'!BM37","v":{"v":29166.66666666667,"d":"$29,167"}},{"$f":"SUM('Trial 8'!BB37:BM37)","v":{"v":350000.0000000002,"d":"$350,000"}},{"$f":"'Trial 8'!BO37","v":{"v":29166.66666666667,"d":"$29,167"}},{"$f":"'Trial 8'!BP37","v":{"v":29166.66666666667,"d":"$29,167"}},{"$f":"'Trial 8'!BQ37","v":{"v":29166.66666666667,"d":"$29,167"}},{"$f":"'Trial 8'!BR37","v":{"v":29166.66666666667,"d":"$29,167"}},{"$f":"'Trial 8'!BS37","v":{"v":29166.66666666667,"d":"$29,167"}},{"$f":"'Trial 8'!BT37","v":{"v":29166.66666666667,"d":"$29,167"}},{"$f":"'Trial 8'!BU37","v":{"v":29166.66666666667,"d":"$29,167"}},{"$f":"'Trial 8'!BV37","v":{"v":29166.66666666667,"d":"$29,167"}},{"$f":"'Trial 8'!BW37","v":{"v":29166.66666666667,"d":"$29,167"}},{"$f":"'Trial 8'!BX37","v":{"v":29166.66666666667,"d":"$29,167"}},{"$f":"'Trial 8'!BY37","v":{"v":29166.66666666667,"d":"$29,167"}},{"$f":"'Trial 8'!BZ37","v":{"v":29166.66666666667,"d":"$29,167"}},{"$f":"SUM('Trial 8'!BO37:BZ37)","v":{"v":350000.0000000002,"d":"$350,000"}},{"$f":"'Trial 8'!CB37","v":{"v":29166.66666666667,"d":"$29,167"}},{"$f":"'Trial 8'!CC37","v":{"v":29166.66666666667,"d":"$29,167"}},{"$f":"'Trial 8'!CD37","v":{"v":29166.66666666667,"d":"$29,167"}},{"$f":"'Trial 8'!CE37","v":{"v":29166.66666666667,"d":"$29,167"}},{"$f":"'Trial 8'!CF37","v":{"v":29166.66666666667,"d":"$29,167"}},{"$f":"'Trial 8'!CG37","v":{"v":29166.66666666667,"d":"$29,167"}},{"$f":"'Trial 8'!CH37","v":{"v":29166.66666666667,"d":"$29,167"}},{"$f":"'Trial 8'!CI37","v":{"v":29166.66666666667,"d":"$29,167"}},{"$f":"'Trial 8'!CJ37","v":{"v":29166.66666666667,"d":"$29,167"}},{"$f":"'Trial 8'!CK37","v":{"v":29166.66666666667,"d":"$29,167"}},{"$f":"'Trial 8'!CL37","v":{"v":29166.66666666667,"d":"$29,167"}},{"$f":"'Trial 8'!CM37","v":{"v":29166.66666666667,"d":"$29,167"}},{"$f":"SUM('Trial 8'!CB37:CM37)","v":{"v":350000.0000000002,"d":"$350,000"}},{"$f":"'Trial 8'!CO37","v":{"v":29166.66666666667,"d":"$29,167"}},{"$f":"'Trial 8'!CP37","v":{"v":29166.66666666667,"d":"$29,167"}},{"$f":"'Trial 8'!CQ37","v":{"v":29166.66666666667,"d":"$29,167"}},{"$f":"'Trial 8'!CR37","v":{"v":29166.66666666667,"d":"$29,167"}},{"$f":"'Trial 8'!CS37","v":{"v":29166.66666666667,"d":"$29,167"}},{"$f":"'Trial 8'!CT37","v":{"v":29166.66666666667,"d":"$29,167"}},{"$f":"'Trial 8'!CU37","v":{"v":29166.66666666667,"d":"$29,167"}},{"$f":"'Trial 8'!CV37","v":{"v":29166.66666666667,"d":"$29,167"}},{"$f":"'Trial 8'!CW37","v":{"v":29166.66666666667,"d":"$29,167"}},{"$f":"'Trial 8'!CX37","v":{"v":29166.66666666667,"d":"$29,167"}},{"$f":"'Trial 8'!CY37","v":{"v":29166.66666666667,"d":"$29,167"}},{"$f":"'Trial 8'!CZ37","v":{"v":29166.66666666667,"d":"$29,167"}},{"$f":"SUM('Trial 8'!CO37:CZ37)","v":{"v":350000.0000000002,"d":"$350,000"}},{"$f":"'Trial 8'!DB37","v":{"v":29166.66666666667,"d":"$29,167"}},{"$f":"'Trial 8'!DC37","v":{"v":29166.66666666667,"d":"$29,167"}},{"$f":"'Trial 8'!DD37","v":{"v":29166.66666666667,"d":"$29,167"}},{"$f":"'Trial 8'!DE37","v":{"v":29166.66666666667,"d":"$29,167"}},{"$f":"'Trial 8'!DF37","v":{"v":29166.66666666667,"d":"$29,167"}},{"$f":"'Trial 8'!DG37","v":{"v":29166.66666666667,"d":"$29,167"}},{"$f":"'Trial 8'!DH37","v":{"v":29166.66666666667,"d":"$29,167"}},{"$f":"'Trial 8'!DI37","v":{"v":29166.66666666667,"d":"$29,167"}},{"$f":"'Trial 8'!DJ37","v":{"v":29166.66666666667,"d":"$29,167"}},{"$f":"'Trial 8'!DK37","v":{"v":29166.66666666667,"d":"$29,167"}},{"$f":"'Trial 8'!DL37","v":{"v":29166.66666666667,"d":"$29,167"}},{"$f":"'Trial 8'!DM37","v":{"v":29166.66666666667,"d":"$29,167"}},{"$f":"SUM('Trial 8'!DB37:DM37)","v":{"v":350000.0000000002,"d":"$350,000"}},{"$f":"'Trial 8'!DO37","v":{"v":29166.66666666667,"d":"$29,167"}},{"$f":"'Trial 8'!DP37","v":{"v":29166.66666666667,"d":"$29,167"}},{"$f":"'Trial 8'!DQ37","v":{"v":29166.66666666667,"d":"$29,167"}},{"$f":"'Trial 8'!DR37","v":{"v":29166.66666666667,"d":"$29,167"}},{"$f":"'Trial 8'!DS37","v":{"v":29166.66666666667,"d":"$29,167"}},{"$f":"'Trial 8'!DT37","v":{"v":29166.66666666667,"d":"$29,167"}},{"$f":"'Trial 8'!DU37","v":{"v":29166.66666666667,"d":"$29,167"}},{"$f":"'Trial 8'!DV37","v":{"v":29166.66666666667,"d":"$29,167"}},{"$f":"'Trial 8'!DW37","v":{"v":29166.66666666667,"d":"$29,167"}},{"$f":"'Trial 8'!DX37","v":{"v":29166.66666666667,"d":"$29,167"}},{"$f":"'Trial 8'!DY37","v":{"v":29166.66666666667,"d":"$29,167"}},{"$f":"'Trial 8'!DZ37","v":{"v":29166.66666666667,"d":"$29,167"}},{"$f":"SUM('Trial 8'!DO37:DZ37)","v":{"v":350000.0000000002,"d":"$350,000"}},{"$f":"'Trial 8'!EB37","v":{"v":29166.66666666667,"d":"$29,167"}},{"$f":"'Trial 8'!EC37","v":{"v":29166.66666666667,"d":"$29,167"}},{"$f":"'Trial 8'!ED37","v":{"v":29166.66666666667,"d":"$29,167"}},{"$f":"'Trial 8'!EE37","v":{"v":29166.66666666667,"d":"$29,167"}},{"$f":"'Trial 8'!EF37","v":{"v":29166.66666666667,"d":"$29,167"}},{"$f":"'Trial 8'!EG37","v":{"v":29166.66666666667,"d":"$29,167"}},{"$f":"'Trial 8'!EH37","v":{"v":29166.66666666667,"d":"$29,167"}},{"$f":"'Trial 8'!EI37","v":{"v":29166.66666666667,"d":"$29,167"}},{"$f":"'Trial 8'!EJ37","v":{"v":29166.66666666667,"d":"$29,167"}},{"$f":"'Trial 8'!EK37","v":{"v":29166.66666666667,"d":"$29,167"}},{"$f":"'Trial 8'!EL37","v":{"v":29166.66666666667,"d":"$29,167"}},{"$f":"'Trial 8'!EM37","v":{"v":29166.66666666667,"d":"$29,167"}},{"$f":"SUM('Trial 8'!EB37:EM37)","v":{"v":350000.0000000002,"d":"$350,000"}}]
[{"$f":"Labels!C95","v":"Total"},{"$f":"SUM('Trial 1'!B37,'Trial 2'!B37,'Trial 3'!B37,'Trial 4'!B37,'Trial 5'!B37,'Trial 6'!B37,'Trial 7'!B37,'Trial 8'!B37)","v":{"v":233333.33333333343,"d":"$233,333"}},{"$f":"SUM('Trial 1'!C37,'Trial 2'!C37,'Trial 3'!C37,'Trial 4'!C37,'Trial 5'!C37,'Trial 6'!C37,'Trial 7'!C37,'Trial 8'!C37)","v":{"v":233333.33333333343,"d":"$233,333"}},{"$f":"SUM('Trial 1'!D37,'Trial 2'!D37,'Trial 3'!D37,'Trial 4'!D37,'Trial 5'!D37,'Trial 6'!D37,'Trial 7'!D37,'Trial 8'!D37)","v":{"v":233333.33333333343,"d":"$233,333"}},{"$f":"SUM('Trial 1'!E37,'Trial 2'!E37,'Trial 3'!E37,'Trial 4'!E37,'Trial 5'!E37,'Trial 6'!E37,'Trial 7'!E37,'Trial 8'!E37)","v":{"v":233333.33333333343,"d":"$233,333"}},{"$f":"SUM('Trial 1'!F37,'Trial 2'!F37,'Trial 3'!F37,'Trial 4'!F37,'Trial 5'!F37,'Trial 6'!F37,'Trial 7'!F37,'Trial 8'!F37)","v":{"v":233333.33333333343,"d":"$233,333"}},{"$f":"SUM('Trial 1'!G37,'Trial 2'!G37,'Trial 3'!G37,'Trial 4'!G37,'Trial 5'!G37,'Trial 6'!G37,'Trial 7'!G37,'Trial 8'!G37)","v":{"v":233333.33333333343,"d":"$233,333"}},{"$f":"SUM('Trial 1'!H37,'Trial 2'!H37,'Trial 3'!H37,'Trial 4'!H37,'Trial 5'!H37,'Trial 6'!H37,'Trial 7'!H37,'Trial 8'!H37)","v":{"v":233333.33333333343,"d":"$233,333"}},{"$f":"SUM('Trial 1'!I37,'Trial 2'!I37,'Trial 3'!I37,'Trial 4'!I37,'Trial 5'!I37,'Trial 6'!I37,'Trial 7'!I37,'Trial 8'!I37)","v":{"v":233333.33333333343,"d":"$233,333"}},{"$f":"SUM('Trial 1'!J37,'Trial 2'!J37,'Trial 3'!J37,'Trial 4'!J37,'Trial 5'!J37,'Trial 6'!J37,'Trial 7'!J37,'Trial 8'!J37)","v":{"v":233333.33333333343,"d":"$233,333"}},{"$f":"SUM('Trial 1'!K37,'Trial 2'!K37,'Trial 3'!K37,'Trial 4'!K37,'Trial 5'!K37,'Trial 6'!K37,'Trial 7'!K37,'Trial 8'!K37)","v":{"v":233333.33333333343,"d":"$233,333"}},{"$f":"SUM('Trial 1'!L37,'Trial 2'!L37,'Trial 3'!L37,'Trial 4'!L37,'Trial 5'!L37,'Trial 6'!L37,'Trial 7'!L37,'Trial 8'!L37)","v":{"v":233333.33333333343,"d":"$233,333"}},{"$f":"SUM('Trial 1'!M37,'Trial 2'!M37,'Trial 3'!M37,'Trial 4'!M37,'Trial 5'!M37,'Trial 6'!M37,'Trial 7'!M37,'Trial 8'!M37)","v":{"v":233333.33333333343,"d":"$233,333"}},{"$f":"SUM(B241:M241)","v":{"v":2800000.0000000014,"d":"$2,800,000"}},{"$f":"SUM('Trial 1'!O37,'Trial 2'!O37,'Trial 3'!O37,'Trial 4'!O37,'Trial 5'!O37,'Trial 6'!O37,'Trial 7'!O37,'Trial 8'!O37)","v":{"v":233333.33333333343,"d":"$233,333"}},{"$f":"SUM('Trial 1'!P37,'Trial 2'!P37,'Trial 3'!P37,'Trial 4'!P37,'Trial 5'!P37,'Trial 6'!P37,'Trial 7'!P37,'Trial 8'!P37)","v":{"v":233333.33333333343,"d":"$233,333"}},{"$f":"SUM('Trial 1'!Q37,'Trial 2'!Q37,'Trial 3'!Q37,'Trial 4'!Q37,'Trial 5'!Q37,'Trial 6'!Q37,'Trial 7'!Q37,'Trial 8'!Q37)","v":{"v":233333.33333333343,"d":"$233,333"}},{"$f":"SUM('Trial 1'!R37,'Trial 2'!R37,'Trial 3'!R37,'Trial 4'!R37,'Trial 5'!R37,'Trial 6'!R37,'Trial 7'!R37,'Trial 8'!R37)","v":{"v":233333.33333333343,"d":"$233,333"}},{"$f":"SUM('Trial 1'!S37,'Trial 2'!S37,'Trial 3'!S37,'Trial 4'!S37,'Trial 5'!S37,'Trial 6'!S37,'Trial 7'!S37,'Trial 8'!S37)","v":{"v":233333.33333333343,"d":"$233,333"}},{"$f":"SUM('Trial 1'!T37,'Trial 2'!T37,'Trial 3'!T37,'Trial 4'!T37,'Trial 5'!T37,'Trial 6'!T37,'Trial 7'!T37,'Trial 8'!T37)","v":{"v":233333.33333333343,"d":"$233,333"}},{"$f":"SUM('Trial 1'!U37,'Trial 2'!U37,'Trial 3'!U37,'Trial 4'!U37,'Trial 5'!U37,'Trial 6'!U37,'Trial 7'!U37,'Trial 8'!U37)","v":{"v":233333.33333333343,"d":"$233,333"}},{"$f":"SUM('Trial 1'!V37,'Trial 2'!V37,'Trial 3'!V37,'Trial 4'!V37,'Trial 5'!V37,'Trial 6'!V37,'Trial 7'!V37,'Trial 8'!V37)","v":{"v":233333.33333333343,"d":"$233,333"}},{"$f":"SUM('Trial 1'!W37,'Trial 2'!W37,'Trial 3'!W37,'Trial 4'!W37,'Trial 5'!W37,'Trial 6'!W37,'Trial 7'!W37,'Trial 8'!W37)","v":{"v":233333.33333333343,"d":"$233,333"}},{"$f":"SUM('Trial 1'!X37,'Trial 2'!X37,'Trial 3'!X37,'Trial 4'!X37,'Trial 5'!X37,'Trial 6'!X37,'Trial 7'!X37,'Trial 8'!X37)","v":{"v":233333.33333333343,"d":"$233,333"}},{"$f":"SUM('Trial 1'!Y37,'Trial 2'!Y37,'Trial 3'!Y37,'Trial 4'!Y37,'Trial 5'!Y37,'Trial 6'!Y37,'Trial 7'!Y37,'Trial 8'!Y37)","v":{"v":233333.33333333343,"d":"$233,333"}},{"$f":"SUM('Trial 1'!Z37,'Trial 2'!Z37,'Trial 3'!Z37,'Trial 4'!Z37,'Trial 5'!Z37,'Trial 6'!Z37,'Trial 7'!Z37,'Trial 8'!Z37)","v":{"v":233333.33333333343,"d":"$233,333"}},{"$f":"SUM(O241:Z241)","v":{"v":2800000.0000000014,"d":"$2,800,000"}},{"$f":"SUM('Trial 1'!AB37,'Trial 2'!AB37,'Trial 3'!AB37,'Trial 4'!AB37,'Trial 5'!AB37,'Trial 6'!AB37,'Trial 7'!AB37,'Trial 8'!AB37)","v":{"v":233333.33333333343,"d":"$233,333"}},{"$f":"SUM('Trial 1'!AC37,'Trial 2'!AC37,'Trial 3'!AC37,'Trial 4'!AC37,'Trial 5'!AC37,'Trial 6'!AC37,'Trial 7'!AC37,'Trial 8'!AC37)","v":{"v":233333.33333333343,"d":"$233,333"}},{"$f":"SUM('Trial 1'!AD37,'Trial 2'!AD37,'Trial 3'!AD37,'Trial 4'!AD37,'Trial 5'!AD37,'Trial 6'!AD37,'Trial 7'!AD37,'Trial 8'!AD37)","v":{"v":233333.33333333343,"d":"$233,333"}},{"$f":"SUM('Trial 1'!AE37,'Trial 2'!AE37,'Trial 3'!AE37,'Trial 4'!AE37,'Trial 5'!AE37,'Trial 6'!AE37,'Trial 7'!AE37,'Trial 8'!AE37)","v":{"v":233333.33333333343,"d":"$233,333"}},{"$f":"SUM('Trial 1'!AF37,'Trial 2'!AF37,'Trial 3'!AF37,'Trial 4'!AF37,'Trial 5'!AF37,'Trial 6'!AF37,'Trial 7'!AF37,'Trial 8'!AF37)","v":{"v":233333.33333333343,"d":"$233,333"}},{"$f":"SUM('Trial 1'!AG37,'Trial 2'!AG37,'Trial 3'!AG37,'Trial 4'!AG37,'Trial 5'!AG37,'Trial 6'!AG37,'Trial 7'!AG37,'Trial 8'!AG37)","v":{"v":233333.33333333343,"d":"$233,333"}},{"$f":"SUM('Trial 1'!AH37,'Trial 2'!AH37,'Trial 3'!AH37,'Trial 4'!AH37,'Trial 5'!AH37,'Trial 6'!AH37,'Trial 7'!AH37,'Trial 8'!AH37)","v":{"v":233333.33333333343,"d":"$233,333"}},{"$f":"SUM('Trial 1'!AI37,'Trial 2'!AI37,'Trial 3'!AI37,'Trial 4'!AI37,'Trial 5'!AI37,'Trial 6'!AI37,'Trial 7'!AI37,'Trial 8'!AI37)","v":{"v":233333.33333333343,"d":"$233,333"}},{"$f":"SUM('Trial 1'!AJ37,'Trial 2'!AJ37,'Trial 3'!AJ37,'Trial 4'!AJ37,'Trial 5'!AJ37,'Trial 6'!AJ37,'Trial 7'!AJ37,'Trial 8'!AJ37)","v":{"v":233333.33333333343,"d":"$233,333"}},{"$f":"SUM('Trial 1'!AK37,'Trial 2'!AK37,'Trial 3'!AK37,'Trial 4'!AK37,'Trial 5'!AK37,'Trial 6'!AK37,'Trial 7'!AK37,'Trial 8'!AK37)","v":{"v":233333.33333333343,"d":"$233,333"}},{"$f":"SUM('Trial 1'!AL37,'Trial 2'!AL37,'Trial 3'!AL37,'Trial 4'!AL37,'Trial 5'!AL37,'Trial 6'!AL37,'Trial 7'!AL37,'Trial 8'!AL37)","v":{"v":233333.33333333343,"d":"$233,333"}},{"$f":"SUM('Trial 1'!AM37,'Trial 2'!AM37,'Trial 3'!AM37,'Trial 4'!AM37,'Trial 5'!AM37,'Trial 6'!AM37,'Trial 7'!AM37,'Trial 8'!AM37)","v":{"v":233333.33333333343,"d":"$233,333"}},{"$f":"SUM(AB241:AM241)","v":{"v":2800000.0000000014,"d":"$2,800,000"}},{"$f":"SUM('Trial 1'!AO37,'Trial 2'!AO37,'Trial 3'!AO37,'Trial 4'!AO37,'Trial 5'!AO37,'Trial 6'!AO37,'Trial 7'!AO37,'Trial 8'!AO37)","v":{"v":233333.33333333343,"d":"$233,333"}},{"$f":"SUM('Trial 1'!AP37,'Trial 2'!AP37,'Trial 3'!AP37,'Trial 4'!AP37,'Trial 5'!AP37,'Trial 6'!AP37,'Trial 7'!AP37,'Trial 8'!AP37)","v":{"v":233333.33333333343,"d":"$233,333"}},{"$f":"SUM('Trial 1'!AQ37,'Trial 2'!AQ37,'Trial 3'!AQ37,'Trial 4'!AQ37,'Trial 5'!AQ37,'Trial 6'!AQ37,'Trial 7'!AQ37,'Trial 8'!AQ37)","v":{"v":233333.33333333343,"d":"$233,333"}},{"$f":"SUM('Trial 1'!AR37,'Trial 2'!AR37,'Trial 3'!AR37,'Trial 4'!AR37,'Trial 5'!AR37,'Trial 6'!AR37,'Trial 7'!AR37,'Trial 8'!AR37)","v":{"v":233333.33333333343,"d":"$233,333"}},{"$f":"SUM('Trial 1'!AS37,'Trial 2'!AS37,'Trial 3'!AS37,'Trial 4'!AS37,'Trial 5'!AS37,'Trial 6'!AS37,'Trial 7'!AS37,'Trial 8'!AS37)","v":{"v":233333.33333333343,"d":"$233,333"}},{"$f":"SUM('Trial 1'!AT37,'Trial 2'!AT37,'Trial 3'!AT37,'Trial 4'!AT37,'Trial 5'!AT37,'Trial 6'!AT37,'Trial 7'!AT37,'Trial 8'!AT37)","v":{"v":233333.33333333343,"d":"$233,333"}},{"$f":"SUM('Trial 1'!AU37,'Trial 2'!AU37,'Trial 3'!AU37,'Trial 4'!AU37,'Trial 5'!AU37,'Trial 6'!AU37,'Trial 7'!AU37,'Trial 8'!AU37)","v":{"v":233333.33333333343,"d":"$233,333"}},{"$f":"SUM('Trial 1'!AV37,'Trial 2'!AV37,'Trial 3'!AV37,'Trial 4'!AV37,'Trial 5'!AV37,'Trial 6'!AV37,'Trial 7'!AV37,'Trial 8'!AV37)","v":{"v":233333.33333333343,"d":"$233,333"}},{"$f":"SUM('Trial 1'!AW37,'Trial 2'!AW37,'Trial 3'!AW37,'Trial 4'!AW37,'Trial 5'!AW37,'Trial 6'!AW37,'Trial 7'!AW37,'Trial 8'!AW37)","v":{"v":233333.33333333343,"d":"$233,333"}},{"$f":"SUM('Trial 1'!AX37,'Trial 2'!AX37,'Trial 3'!AX37,'Trial 4'!AX37,'Trial 5'!AX37,'Trial 6'!AX37,'Trial 7'!AX37,'Trial 8'!AX37)","v":{"v":233333.33333333343,"d":"$233,333"}},{"$f":"SUM('Trial 1'!AY37,'Trial 2'!AY37,'Trial 3'!AY37,'Trial 4'!AY37,'Trial 5'!AY37,'Trial 6'!AY37,'Trial 7'!AY37,'Trial 8'!AY37)","v":{"v":233333.33333333343,"d":"$233,333"}},{"$f":"SUM('Trial 1'!AZ37,'Trial 2'!AZ37,'Trial 3'!AZ37,'Trial 4'!AZ37,'Trial 5'!AZ37,'Trial 6'!AZ37,'Trial 7'!AZ37,'Trial 8'!AZ37)","v":{"v":233333.33333333343,"d":"$233,333"}},{"$f":"SUM(AO241:AZ241)","v":{"v":2800000.0000000014,"d":"$2,800,000"}},{"$f":"SUM('Trial 1'!BB37,'Trial 2'!BB37,'Trial 3'!BB37,'Trial 4'!BB37,'Trial 5'!BB37,'Trial 6'!BB37,'Trial 7'!BB37,'Trial 8'!BB37)","v":{"v":233333.33333333343,"d":"$233,333"}},{"$f":"SUM('Trial 1'!BC37,'Trial 2'!BC37,'Trial 3'!BC37,'Trial 4'!BC37,'Trial 5'!BC37,'Trial 6'!BC37,'Trial 7'!BC37,'Trial 8'!BC37)","v":{"v":233333.33333333343,"d":"$233,333"}},{"$f":"SUM('Trial 1'!BD37,'Trial 2'!BD37,'Trial 3'!BD37,'Trial 4'!BD37,'Trial 5'!BD37,'Trial 6'!BD37,'Trial 7'!BD37,'Trial 8'!BD37)","v":{"v":233333.33333333343,"d":"$233,333"}},{"$f":"SUM('Trial 1'!BE37,'Trial 2'!BE37,'Trial 3'!BE37,'Trial 4'!BE37,'Trial 5'!BE37,'Trial 6'!BE37,'Trial 7'!BE37,'Trial 8'!BE37)","v":{"v":233333.33333333343,"d":"$233,333"}},{"$f":"SUM('Trial 1'!BF37,'Trial 2'!BF37,'Trial 3'!BF37,'Trial 4'!BF37,'Trial 5'!BF37,'Trial 6'!BF37,'Trial 7'!BF37,'Trial 8'!BF37)","v":{"v":233333.33333333343,"d":"$233,333"}},{"$f":"SUM('Trial 1'!BG37,'Trial 2'!BG37,'Trial 3'!BG37,'Trial 4'!BG37,'Trial 5'!BG37,'Trial 6'!BG37,'Trial 7'!BG37,'Trial 8'!BG37)","v":{"v":233333.33333333343,"d":"$233,333"}},{"$f":"SUM('Trial 1'!BH37,'Trial 2'!BH37,'Trial 3'!BH37,'Trial 4'!BH37,'Trial 5'!BH37,'Trial 6'!BH37,'Trial 7'!BH37,'Trial 8'!BH37)","v":{"v":233333.33333333343,"d":"$233,333"}},{"$f":"SUM('Trial 1'!BI37,'Trial 2'!BI37,'Trial 3'!BI37,'Trial 4'!BI37,'Trial 5'!BI37,'Trial 6'!BI37,'Trial 7'!BI37,'Trial 8'!BI37)","v":{"v":233333.33333333343,"d":"$233,333"}},{"$f":"SUM('Trial 1'!BJ37,'Trial 2'!BJ37,'Trial 3'!BJ37,'Trial 4'!BJ37,'Trial 5'!BJ37,'Trial 6'!BJ37,'Trial 7'!BJ37,'Trial 8'!BJ37)","v":{"v":233333.33333333343,"d":"$233,333"}},{"$f":"SUM('Trial 1'!BK37,'Trial 2'!BK37,'Trial 3'!BK37,'Trial 4'!BK37,'Trial 5'!BK37,'Trial 6'!BK37,'Trial 7'!BK37,'Trial 8'!BK37)","v":{"v":233333.33333333343,"d":"$233,333"}},{"$f":"SUM('Trial 1'!BL37,'Trial 2'!BL37,'Trial 3'!BL37,'Trial 4'!BL37,'Trial 5'!BL37,'Trial 6'!BL37,'Trial 7'!BL37,'Trial 8'!BL37)","v":{"v":233333.33333333343,"d":"$233,333"}},{"$f":"SUM('Trial 1'!BM37,'Trial 2'!BM37,'Trial 3'!BM37,'Trial 4'!BM37,'Trial 5'!BM37,'Trial 6'!BM37,'Trial 7'!BM37,'Trial 8'!BM37)","v":{"v":233333.33333333343,"d":"$233,333"}},{"$f":"SUM(BB241:BM241)","v":{"v":2800000.0000000014,"d":"$2,800,000"}},{"$f":"SUM('Trial 1'!BO37,'Trial 2'!BO37,'Trial 3'!BO37,'Trial 4'!BO37,'Trial 5'!BO37,'Trial 6'!BO37,'Trial 7'!BO37,'Trial 8'!BO37)","v":{"v":233333.33333333343,"d":"$233,333"}},{"$f":"SUM('Trial 1'!BP37,'Trial 2'!BP37,'Trial 3'!BP37,'Trial 4'!BP37,'Trial 5'!BP37,'Trial 6'!BP37,'Trial 7'!BP37,'Trial 8'!BP37)","v":{"v":233333.33333333343,"d":"$233,333"}},{"$f":"SUM('Trial 1'!BQ37,'Trial 2'!BQ37,'Trial 3'!BQ37,'Trial 4'!BQ37,'Trial 5'!BQ37,'Trial 6'!BQ37,'Trial 7'!BQ37,'Trial 8'!BQ37)","v":{"v":233333.33333333343,"d":"$233,333"}},{"$f":"SUM('Trial 1'!BR37,'Trial 2'!BR37,'Trial 3'!BR37,'Trial 4'!BR37,'Trial 5'!BR37,'Trial 6'!BR37,'Trial 7'!BR37,'Trial 8'!BR37)","v":{"v":233333.33333333343,"d":"$233,333"}},{"$f":"SUM('Trial 1'!BS37,'Trial 2'!BS37,'Trial 3'!BS37,'Trial 4'!BS37,'Trial 5'!BS37,'Trial 6'!BS37,'Trial 7'!BS37,'Trial 8'!BS37)","v":{"v":233333.33333333343,"d":"$233,333"}},{"$f":"SUM('Trial 1'!BT37,'Trial 2'!BT37,'Trial 3'!BT37,'Trial 4'!BT37,'Trial 5'!BT37,'Trial 6'!BT37,'Trial 7'!BT37,'Trial 8'!BT37)","v":{"v":233333.33333333343,"d":"$233,333"}},{"$f":"SUM('Trial 1'!BU37,'Trial 2'!BU37,'Trial 3'!BU37,'Trial 4'!BU37,'Trial 5'!BU37,'Trial 6'!BU37,'Trial 7'!BU37,'Trial 8'!BU37)","v":{"v":233333.33333333343,"d":"$233,333"}},{"$f":"SUM('Trial 1'!BV37,'Trial 2'!BV37,'Trial 3'!BV37,'Trial 4'!BV37,'Trial 5'!BV37,'Trial 6'!BV37,'Trial 7'!BV37,'Trial 8'!BV37)","v":{"v":233333.33333333343,"d":"$233,333"}},{"$f":"SUM('Trial 1'!BW37,'Trial 2'!BW37,'Trial 3'!BW37,'Trial 4'!BW37,'Trial 5'!BW37,'Trial 6'!BW37,'Trial 7'!BW37,'Trial 8'!BW37)","v":{"v":233333.33333333343,"d":"$233,333"}},{"$f":"SUM('Trial 1'!BX37,'Trial 2'!BX37,'Trial 3'!BX37,'Trial 4'!BX37,'Trial 5'!BX37,'Trial 6'!BX37,'Trial 7'!BX37,'Trial 8'!BX37)","v":{"v":233333.33333333343,"d":"$233,333"}},{"$f":"SUM('Trial 1'!BY37,'Trial 2'!BY37,'Trial 3'!BY37,'Trial 4'!BY37,'Trial 5'!BY37,'Trial 6'!BY37,'Trial 7'!BY37,'Trial 8'!BY37)","v":{"v":233333.33333333343,"d":"$233,333"}},{"$f":"SUM('Trial 1'!BZ37,'Trial 2'!BZ37,'Trial 3'!BZ37,'Trial 4'!BZ37,'Trial 5'!BZ37,'Trial 6'!BZ37,'Trial 7'!BZ37,'Trial 8'!BZ37)","v":{"v":233333.33333333343,"d":"$233,333"}},{"$f":"SUM(BO241:BZ241)","v":{"v":2800000.0000000014,"d":"$2,800,000"}},{"$f":"SUM('Trial 1'!CB37,'Trial 2'!CB37,'Trial 3'!CB37,'Trial 4'!CB37,'Trial 5'!CB37,'Trial 6'!CB37,'Trial 7'!CB37,'Trial 8'!CB37)","v":{"v":233333.33333333343,"d":"$233,333"}},{"$f":"SUM('Trial 1'!CC37,'Trial 2'!CC37,'Trial 3'!CC37,'Trial 4'!CC37,'Trial 5'!CC37,'Trial 6'!CC37,'Trial 7'!CC37,'Trial 8'!CC37)","v":{"v":233333.33333333343,"d":"$233,333"}},{"$f":"SUM('Trial 1'!CD37,'Trial 2'!CD37,'Trial 3'!CD37,'Trial 4'!CD37,'Trial 5'!CD37,'Trial 6'!CD37,'Trial 7'!CD37,'Trial 8'!CD37)","v":{"v":233333.33333333343,"d":"$233,333"}},{"$f":"SUM('Trial 1'!CE37,'Trial 2'!CE37,'Trial 3'!CE37,'Trial 4'!CE37,'Trial 5'!CE37,'Trial 6'!CE37,'Trial 7'!CE37,'Trial 8'!CE37)","v":{"v":233333.33333333343,"d":"$233,333"}},{"$f":"SUM('Trial 1'!CF37,'Trial 2'!CF37,'Trial 3'!CF37,'Trial 4'!CF37,'Trial 5'!CF37,'Trial 6'!CF37,'Trial 7'!CF37,'Trial 8'!CF37)","v":{"v":233333.33333333343,"d":"$233,333"}},{"$f":"SUM('Trial 1'!CG37,'Trial 2'!CG37,'Trial 3'!CG37,'Trial 4'!CG37,'Trial 5'!CG37,'Trial 6'!CG37,'Trial 7'!CG37,'Trial 8'!CG37)","v":{"v":233333.33333333343,"d":"$233,333"}},{"$f":"SUM('Trial 1'!CH37,'Trial 2'!CH37,'Trial 3'!CH37,'Trial 4'!CH37,'Trial 5'!CH37,'Trial 6'!CH37,'Trial 7'!CH37,'Trial 8'!CH37)","v":{"v":233333.33333333343,"d":"$233,333"}},{"$f":"SUM('Trial 1'!CI37,'Trial 2'!CI37,'Trial 3'!CI37,'Trial 4'!CI37,'Trial 5'!CI37,'Trial 6'!CI37,'Trial 7'!CI37,'Trial 8'!CI37)","v":{"v":233333.33333333343,"d":"$233,333"}},{"$f":"SUM('Trial 1'!CJ37,'Trial 2'!CJ37,'Trial 3'!CJ37,'Trial 4'!CJ37,'Trial 5'!CJ37,'Trial 6'!CJ37,'Trial 7'!CJ37,'Trial 8'!CJ37)","v":{"v":233333.33333333343,"d":"$233,333"}},{"$f":"SUM('Trial 1'!CK37,'Trial 2'!CK37,'Trial 3'!CK37,'Trial 4'!CK37,'Trial 5'!CK37,'Trial 6'!CK37,'Trial 7'!CK37,'Trial 8'!CK37)","v":{"v":233333.33333333343,"d":"$233,333"}},{"$f":"SUM('Trial 1'!CL37,'Trial 2'!CL37,'Trial 3'!CL37,'Trial 4'!CL37,'Trial 5'!CL37,'Trial 6'!CL37,'Trial 7'!CL37,'Trial 8'!CL37)","v":{"v":233333.33333333343,"d":"$233,333"}},{"$f":"SUM('Trial 1'!CM37,'Trial 2'!CM37,'Trial 3'!CM37,'Trial 4'!CM37,'Trial 5'!CM37,'Trial 6'!CM37,'Trial 7'!CM37,'Trial 8'!CM37)","v":{"v":233333.33333333343,"d":"$233,333"}},{"$f":"SUM(CB241:CM241)","v":{"v":2800000.0000000014,"d":"$2,800,000"}},{"$f":"SUM('Trial 1'!CO37,'Trial 2'!CO37,'Trial 3'!CO37,'Trial 4'!CO37,'Trial 5'!CO37,'Trial 6'!CO37,'Trial 7'!CO37,'Trial 8'!CO37)","v":{"v":233333.33333333343,"d":"$233,333"}},{"$f":"SUM('Trial 1'!CP37,'Trial 2'!CP37,'Trial 3'!CP37,'Trial 4'!CP37,'Trial 5'!CP37,'Trial 6'!CP37,'Trial 7'!CP37,'Trial 8'!CP37)","v":{"v":233333.33333333343,"d":"$233,333"}},{"$f":"SUM('Trial 1'!CQ37,'Trial 2'!CQ37,'Trial 3'!CQ37,'Trial 4'!CQ37,'Trial 5'!CQ37,'Trial 6'!CQ37,'Trial 7'!CQ37,'Trial 8'!CQ37)","v":{"v":233333.33333333343,"d":"$233,333"}},{"$f":"SUM('Trial 1'!CR37,'Trial 2'!CR37,'Trial 3'!CR37,'Trial 4'!CR37,'Trial 5'!CR37,'Trial 6'!CR37,'Trial 7'!CR37,'Trial 8'!CR37)","v":{"v":233333.33333333343,"d":"$233,333"}},{"$f":"SUM('Trial 1'!CS37,'Trial 2'!CS37,'Trial 3'!CS37,'Trial 4'!CS37,'Trial 5'!CS37,'Trial 6'!CS37,'Trial 7'!CS37,'Trial 8'!CS37)","v":{"v":233333.33333333343,"d":"$233,333"}},{"$f":"SUM('Trial 1'!CT37,'Trial 2'!CT37,'Trial 3'!CT37,'Trial 4'!CT37,'Trial 5'!CT37,'Trial 6'!CT37,'Trial 7'!CT37,'Trial 8'!CT37)","v":{"v":233333.33333333343,"d":"$233,333"}},{"$f":"SUM('Trial 1'!CU37,'Trial 2'!CU37,'Trial 3'!CU37,'Trial 4'!CU37,'Trial 5'!CU37,'Trial 6'!CU37,'Trial 7'!CU37,'Trial 8'!CU37)","v":{"v":233333.33333333343,"d":"$233,333"}},{"$f":"SUM('Trial 1'!CV37,'Trial 2'!CV37,'Trial 3'!CV37,'Trial 4'!CV37,'Trial 5'!CV37,'Trial 6'!CV37,'Trial 7'!CV37,'Trial 8'!CV37)","v":{"v":233333.33333333343,"d":"$233,333"}},{"$f":"SUM('Trial 1'!CW37,'Trial 2'!CW37,'Trial 3'!CW37,'Trial 4'!CW37,'Trial 5'!CW37,'Trial 6'!CW37,'Trial 7'!CW37,'Trial 8'!CW37)","v":{"v":233333.33333333343,"d":"$233,333"}},{"$f":"SUM('Trial 1'!CX37,'Trial 2'!CX37,'Trial 3'!CX37,'Trial 4'!CX37,'Trial 5'!CX37,'Trial 6'!CX37,'Trial 7'!CX37,'Trial 8'!CX37)","v":{"v":233333.33333333343,"d":"$233,333"}},{"$f":"SUM('Trial 1'!CY37,'Trial 2'!CY37,'Trial 3'!CY37,'Trial 4'!CY37,'Trial 5'!CY37,'Trial 6'!CY37,'Trial 7'!CY37,'Trial 8'!CY37)","v":{"v":233333.33333333343,"d":"$233,333"}},{"$f":"SUM('Trial 1'!CZ37,'Trial 2'!CZ37,'Trial 3'!CZ37,'Trial 4'!CZ37,'Trial 5'!CZ37,'Trial 6'!CZ37,'Trial 7'!CZ37,'Trial 8'!CZ37)","v":{"v":233333.33333333343,"d":"$233,333"}},{"$f":"SUM(CO241:CZ241)","v":{"v":2800000.0000000014,"d":"$2,800,000"}},{"$f":"SUM('Trial 1'!DB37,'Trial 2'!DB37,'Trial 3'!DB37,'Trial 4'!DB37,'Trial 5'!DB37,'Trial 6'!DB37,'Trial 7'!DB37,'Trial 8'!DB37)","v":{"v":233333.33333333343,"d":"$233,333"}},{"$f":"SUM('Trial 1'!DC37,'Trial 2'!DC37,'Trial 3'!DC37,'Trial 4'!DC37,'Trial 5'!DC37,'Trial 6'!DC37,'Trial 7'!DC37,'Trial 8'!DC37)","v":{"v":233333.33333333343,"d":"$233,333"}},{"$f":"SUM('Trial 1'!DD37,'Trial 2'!DD37,'Trial 3'!DD37,'Trial 4'!DD37,'Trial 5'!DD37,'Trial 6'!DD37,'Trial 7'!DD37,'Trial 8'!DD37)","v":{"v":233333.33333333343,"d":"$233,333"}},{"$f":"SUM('Trial 1'!DE37,'Trial 2'!DE37,'Trial 3'!DE37,'Trial 4'!DE37,'Trial 5'!DE37,'Trial 6'!DE37,'Trial 7'!DE37,'Trial 8'!DE37)","v":{"v":233333.33333333343,"d":"$233,333"}},{"$f":"SUM('Trial 1'!DF37,'Trial 2'!DF37,'Trial 3'!DF37,'Trial 4'!DF37,'Trial 5'!DF37,'Trial 6'!DF37,'Trial 7'!DF37,'Trial 8'!DF37)","v":{"v":233333.33333333343,"d":"$233,333"}},{"$f":"SUM('Trial 1'!DG37,'Trial 2'!DG37,'Trial 3'!DG37,'Trial 4'!DG37,'Trial 5'!DG37,'Trial 6'!DG37,'Trial 7'!DG37,'Trial 8'!DG37)","v":{"v":233333.33333333343,"d":"$233,333"}},{"$f":"SUM('Trial 1'!DH37,'Trial 2'!DH37,'Trial 3'!DH37,'Trial 4'!DH37,'Trial 5'!DH37,'Trial 6'!DH37,'Trial 7'!DH37,'Trial 8'!DH37)","v":{"v":233333.33333333343,"d":"$233,333"}},{"$f":"SUM('Trial 1'!DI37,'Trial 2'!DI37,'Trial 3'!DI37,'Trial 4'!DI37,'Trial 5'!DI37,'Trial 6'!DI37,'Trial 7'!DI37,'Trial 8'!DI37)","v":{"v":233333.33333333343,"d":"$233,333"}},{"$f":"SUM('Trial 1'!DJ37,'Trial 2'!DJ37,'Trial 3'!DJ37,'Trial 4'!DJ37,'Trial 5'!DJ37,'Trial 6'!DJ37,'Trial 7'!DJ37,'Trial 8'!DJ37)","v":{"v":233333.33333333343,"d":"$233,333"}},{"$f":"SUM('Trial 1'!DK37,'Trial 2'!DK37,'Trial 3'!DK37,'Trial 4'!DK37,'Trial 5'!DK37,'Trial 6'!DK37,'Trial 7'!DK37,'Trial 8'!DK37)","v":{"v":233333.33333333343,"d":"$233,333"}},{"$f":"SUM('Trial 1'!DL37,'Trial 2'!DL37,'Trial 3'!DL37,'Trial 4'!DL37,'Trial 5'!DL37,'Trial 6'!DL37,'Trial 7'!DL37,'Trial 8'!DL37)","v":{"v":233333.33333333343,"d":"$233,333"}},{"$f":"SUM('Trial 1'!DM37,'Trial 2'!DM37,'Trial 3'!DM37,'Trial 4'!DM37,'Trial 5'!DM37,'Trial 6'!DM37,'Trial 7'!DM37,'Trial 8'!DM37)","v":{"v":233333.33333333343,"d":"$233,333"}},{"$f":"SUM(DB241:DM241)","v":{"v":2800000.0000000014,"d":"$2,800,000"}},{"$f":"SUM('Trial 1'!DO37,'Trial 2'!DO37,'Trial 3'!DO37,'Trial 4'!DO37,'Trial 5'!DO37,'Trial 6'!DO37,'Trial 7'!DO37,'Trial 8'!DO37)","v":{"v":233333.33333333343,"d":"$233,333"}},{"$f":"SUM('Trial 1'!DP37,'Trial 2'!DP37,'Trial 3'!DP37,'Trial 4'!DP37,'Trial 5'!DP37,'Trial 6'!DP37,'Trial 7'!DP37,'Trial 8'!DP37)","v":{"v":233333.33333333343,"d":"$233,333"}},{"$f":"SUM('Trial 1'!DQ37,'Trial 2'!DQ37,'Trial 3'!DQ37,'Trial 4'!DQ37,'Trial 5'!DQ37,'Trial 6'!DQ37,'Trial 7'!DQ37,'Trial 8'!DQ37)","v":{"v":233333.33333333343,"d":"$233,333"}},{"$f":"SUM('Trial 1'!DR37,'Trial 2'!DR37,'Trial 3'!DR37,'Trial 4'!DR37,'Trial 5'!DR37,'Trial 6'!DR37,'Trial 7'!DR37,'Trial 8'!DR37)","v":{"v":233333.33333333343,"d":"$233,333"}},{"$f":"SUM('Trial 1'!DS37,'Trial 2'!DS37,'Trial 3'!DS37,'Trial 4'!DS37,'Trial 5'!DS37,'Trial 6'!DS37,'Trial 7'!DS37,'Trial 8'!DS37)","v":{"v":233333.33333333343,"d":"$233,333"}},{"$f":"SUM('Trial 1'!DT37,'Trial 2'!DT37,'Trial 3'!DT37,'Trial 4'!DT37,'Trial 5'!DT37,'Trial 6'!DT37,'Trial 7'!DT37,'Trial 8'!DT37)","v":{"v":233333.33333333343,"d":"$233,333"}},{"$f":"SUM('Trial 1'!DU37,'Trial 2'!DU37,'Trial 3'!DU37,'Trial 4'!DU37,'Trial 5'!DU37,'Trial 6'!DU37,'Trial 7'!DU37,'Trial 8'!DU37)","v":{"v":233333.33333333343,"d":"$233,333"}},{"$f":"SUM('Trial 1'!DV37,'Trial 2'!DV37,'Trial 3'!DV37,'Trial 4'!DV37,'Trial 5'!DV37,'Trial 6'!DV37,'Trial 7'!DV37,'Trial 8'!DV37)","v":{"v":233333.33333333343,"d":"$233,333"}},{"$f":"SUM('Trial 1'!DW37,'Trial 2'!DW37,'Trial 3'!DW37,'Trial 4'!DW37,'Trial 5'!DW37,'Trial 6'!DW37,'Trial 7'!DW37,'Trial 8'!DW37)","v":{"v":233333.33333333343,"d":"$233,333"}},{"$f":"SUM('Trial 1'!DX37,'Trial 2'!DX37,'Trial 3'!DX37,'Trial 4'!DX37,'Trial 5'!DX37,'Trial 6'!DX37,'Trial 7'!DX37,'Trial 8'!DX37)","v":{"v":233333.33333333343,"d":"$233,333"}},{"$f":"SUM('Trial 1'!DY37,'Trial 2'!DY37,'Trial 3'!DY37,'Trial 4'!DY37,'Trial 5'!DY37,'Trial 6'!DY37,'Trial 7'!DY37,'Trial 8'!DY37)","v":{"v":233333.33333333343,"d":"$233,333"}},{"$f":"SUM('Trial 1'!DZ37,'Trial 2'!DZ37,'Trial 3'!DZ37,'Trial 4'!DZ37,'Trial 5'!DZ37,'Trial 6'!DZ37,'Trial 7'!DZ37,'Trial 8'!DZ37)","v":{"v":233333.33333333343,"d":"$233,333"}},{"$f":"SUM(DO241:DZ241)","v":{"v":2800000.0000000014,"d":"$2,800,000"}},{"$f":"SUM('Trial 1'!EB37,'Trial 2'!EB37,'Trial 3'!EB37,'Trial 4'!EB37,'Trial 5'!EB37,'Trial 6'!EB37,'Trial 7'!EB37,'Trial 8'!EB37)","v":{"v":233333.33333333343,"d":"$233,333"}},{"$f":"SUM('Trial 1'!EC37,'Trial 2'!EC37,'Trial 3'!EC37,'Trial 4'!EC37,'Trial 5'!EC37,'Trial 6'!EC37,'Trial 7'!EC37,'Trial 8'!EC37)","v":{"v":233333.33333333343,"d":"$233,333"}},{"$f":"SUM('Trial 1'!ED37,'Trial 2'!ED37,'Trial 3'!ED37,'Trial 4'!ED37,'Trial 5'!ED37,'Trial 6'!ED37,'Trial 7'!ED37,'Trial 8'!ED37)","v":{"v":233333.33333333343,"d":"$233,333"}},{"$f":"SUM('Trial 1'!EE37,'Trial 2'!EE37,'Trial 3'!EE37,'Trial 4'!EE37,'Trial 5'!EE37,'Trial 6'!EE37,'Trial 7'!EE37,'Trial 8'!EE37)","v":{"v":233333.33333333343,"d":"$233,333"}},{"$f":"SUM('Trial 1'!EF37,'Trial 2'!EF37,'Trial 3'!EF37,'Trial 4'!EF37,'Trial 5'!EF37,'Trial 6'!EF37,'Trial 7'!EF37,'Trial 8'!EF37)","v":{"v":233333.33333333343,"d":"$233,333"}},{"$f":"SUM('Trial 1'!EG37,'Trial 2'!EG37,'Trial 3'!EG37,'Trial 4'!EG37,'Trial 5'!EG37,'Trial 6'!EG37,'Trial 7'!EG37,'Trial 8'!EG37)","v":{"v":233333.33333333343,"d":"$233,333"}},{"$f":"SUM('Trial 1'!EH37,'Trial 2'!EH37,'Trial 3'!EH37,'Trial 4'!EH37,'Trial 5'!EH37,'Trial 6'!EH37,'Trial 7'!EH37,'Trial 8'!EH37)","v":{"v":233333.33333333343,"d":"$233,333"}},{"$f":"SUM('Trial 1'!EI37,'Trial 2'!EI37,'Trial 3'!EI37,'Trial 4'!EI37,'Trial 5'!EI37,'Trial 6'!EI37,'Trial 7'!EI37,'Trial 8'!EI37)","v":{"v":233333.33333333343,"d":"$233,333"}},{"$f":"SUM('Trial 1'!EJ37,'Trial 2'!EJ37,'Trial 3'!EJ37,'Trial 4'!EJ37,'Trial 5'!EJ37,'Trial 6'!EJ37,'Trial 7'!EJ37,'Trial 8'!EJ37)","v":{"v":233333.33333333343,"d":"$233,333"}},{"$f":"SUM('Trial 1'!EK37,'Trial 2'!EK37,'Trial 3'!EK37,'Trial 4'!EK37,'Trial 5'!EK37,'Trial 6'!EK37,'Trial 7'!EK37,'Trial 8'!EK37)","v":{"v":233333.33333333343,"d":"$233,333"}},{"$f":"SUM('Trial 1'!EL37,'Trial 2'!EL37,'Trial 3'!EL37,'Trial 4'!EL37,'Trial 5'!EL37,'Trial 6'!EL37,'Trial 7'!EL37,'Trial 8'!EL37)","v":{"v":233333.33333333343,"d":"$233,333"}},{"$f":"SUM('Trial 1'!EM37,'Trial 2'!EM37,'Trial 3'!EM37,'Trial 4'!EM37,'Trial 5'!EM37,'Trial 6'!EM37,'Trial 7'!EM37,'Trial 8'!EM37)","v":{"v":233333.33333333343,"d":"$233,333"}},{"$f":"SUM(EB241:EM241)","v":{"v":2800000.0000000014,"d":"$2,800,000"}}]
[{"$f":"Labels!B74","v":"Aggregate Demand Shock"}]
[{"$f":"Labels!D96","v":"Trials"},{"$f":"ZZZ__FnCalls!F7","v":"Jan 2010"},{"$f":"ZZZ__FnCalls!F8","v":"Feb 2010"},{"$f":"ZZZ__FnCalls!F9","v":"Mar 2010"},{"$f":"ZZZ__FnCalls!F10","v":"Apr 2010"},{"$f":"ZZZ__FnCalls!F11","v":"May 2010"},{"$f":"ZZZ__FnCalls!F12","v":"Jun 2010"},{"$f":"ZZZ__FnCalls!F13","v":"Jul 2010"},{"$f":"ZZZ__FnCalls!F14","v":"Aug 2010"},{"$f":"ZZZ__FnCalls!F15","v":"Sep 2010"},{"$f":"ZZZ__FnCalls!F16","v":"Oct 2010"},{"$f":"ZZZ__FnCalls!F17","v":"Nov 2010"},{"$f":"ZZZ__FnCalls!F18","v":"Dec 2010"},{"$f":"ZZZ__FnCalls!H7","v":"2010"},{"$f":"ZZZ__FnCalls!F19","v":"Jan 2011"},{"$f":"ZZZ__FnCalls!F20","v":"Feb 2011"},{"$f":"ZZZ__FnCalls!F21","v":"Mar 2011"},{"$f":"ZZZ__FnCalls!F22","v":"Apr 2011"},{"$f":"ZZZ__FnCalls!F23","v":"May 2011"},{"$f":"ZZZ__FnCalls!F24","v":"Jun 2011"},{"$f":"ZZZ__FnCalls!F25","v":"Jul 2011"},{"$f":"ZZZ__FnCalls!F26","v":"Aug 2011"},{"$f":"ZZZ__FnCalls!F27","v":"Sep 2011"},{"$f":"ZZZ__FnCalls!F28","v":"Oct 2011"},{"$f":"ZZZ__FnCalls!F29","v":"Nov 2011"},{"$f":"ZZZ__FnCalls!F30","v":"Dec 2011"},{"$f":"ZZZ__FnCalls!H19","v":"2011"},{"$f":"ZZZ__FnCalls!F31","v":"Jan 2012"},{"$f":"ZZZ__FnCalls!F32","v":"Feb 2012"},{"$f":"ZZZ__FnCalls!F33","v":"Mar 2012"},{"$f":"ZZZ__FnCalls!F34","v":"Apr 2012"},{"$f":"ZZZ__FnCalls!F35","v":"May 2012"},{"$f":"ZZZ__FnCalls!F36","v":"Jun 2012"},{"$f":"ZZZ__FnCalls!F37","v":"Jul 2012"},{"$f":"ZZZ__FnCalls!F38","v":"Aug 2012"},{"$f":"ZZZ__FnCalls!F39","v":"Sep 2012"},{"$f":"ZZZ__FnCalls!F40","v":"Oct 2012"},{"$f":"ZZZ__FnCalls!F41","v":"Nov 2012"},{"$f":"ZZZ__FnCalls!F42","v":"Dec 2012"},{"$f":"ZZZ__FnCalls!H31","v":"2012"},{"$f":"ZZZ__FnCalls!F43","v":"Jan 2013"},{"$f":"ZZZ__FnCalls!F44","v":"Feb 2013"},{"$f":"ZZZ__FnCalls!F45","v":"Mar 2013"},{"$f":"ZZZ__FnCalls!F46","v":"Apr 2013"},{"$f":"ZZZ__FnCalls!F47","v":"May 2013"},{"$f":"ZZZ__FnCalls!F48","v":"Jun 2013"},{"$f":"ZZZ__FnCalls!F49","v":"Jul 2013"},{"$f":"ZZZ__FnCalls!F50","v":"Aug 2013"},{"$f":"ZZZ__FnCalls!F51","v":"Sep 2013"},{"$f":"ZZZ__FnCalls!F52","v":"Oct 2013"},{"$f":"ZZZ__FnCalls!F53","v":"Nov 2013"},{"$f":"ZZZ__FnCalls!F54","v":"Dec 2013"},{"$f":"ZZZ__FnCalls!H43","v":"2013"},{"$f":"ZZZ__FnCalls!F55","v":"Jan 2014"},{"$f":"ZZZ__FnCalls!F56","v":"Feb 2014"},{"$f":"ZZZ__FnCalls!F57","v":"Mar 2014"},{"$f":"ZZZ__FnCalls!F58","v":"Apr 2014"},{"$f":"ZZZ__FnCalls!F59","v":"May 2014"},{"$f":"ZZZ__FnCalls!F60","v":"Jun 2014"},{"$f":"ZZZ__FnCalls!F61","v":"Jul 2014"},{"$f":"ZZZ__FnCalls!F62","v":"Aug 2014"},{"$f":"ZZZ__FnCalls!F63","v":"Sep 2014"},{"$f":"ZZZ__FnCalls!F64","v":"Oct 2014"},{"$f":"ZZZ__FnCalls!F65","v":"Nov 2014"},{"$f":"ZZZ__FnCalls!F66","v":"Dec 2014"},{"$f":"ZZZ__FnCalls!H55","v":"2014"},{"$f":"ZZZ__FnCalls!F67","v":"Jan 2015"},{"$f":"ZZZ__FnCalls!F68","v":"Feb 2015"},{"$f":"ZZZ__FnCalls!F69","v":"Mar 2015"},{"$f":"ZZZ__FnCalls!F70","v":"Apr 2015"},{"$f":"ZZZ__FnCalls!F71","v":"May 2015"},{"$f":"ZZZ__FnCalls!F72","v":"Jun 2015"},{"$f":"ZZZ__FnCalls!F73","v":"Jul 2015"},{"$f":"ZZZ__FnCalls!F74","v":"Aug 2015"},{"$f":"ZZZ__FnCalls!F75","v":"Sep 2015"},{"$f":"ZZZ__FnCalls!F76","v":"Oct 2015"},{"$f":"ZZZ__FnCalls!F77","v":"Nov 2015"},{"$f":"ZZZ__FnCalls!F78","v":"Dec 2015"},{"$f":"ZZZ__FnCalls!H67","v":"2015"},{"$f":"ZZZ__FnCalls!F79","v":"Jan 2016"},{"$f":"ZZZ__FnCalls!F80","v":"Feb 2016"},{"$f":"ZZZ__FnCalls!F81","v":"Mar 2016"},{"$f":"ZZZ__FnCalls!F82","v":"Apr 2016"},{"$f":"ZZZ__FnCalls!F83","v":"May 2016"},{"$f":"ZZZ__FnCalls!F84","v":"Jun 2016"},{"$f":"ZZZ__FnCalls!F85","v":"Jul 2016"},{"$f":"ZZZ__FnCalls!F86","v":"Aug 2016"},{"$f":"ZZZ__FnCalls!F87","v":"Sep 2016"},{"$f":"ZZZ__FnCalls!F88","v":"Oct 2016"},{"$f":"ZZZ__FnCalls!F89","v":"Nov 2016"},{"$f":"ZZZ__FnCalls!F90","v":"Dec 2016"},{"$f":"ZZZ__FnCalls!H79","v":"2016"},{"$f":"ZZZ__FnCalls!F91","v":"Jan 2017"},{"$f":"ZZZ__FnCalls!F92","v":"Feb 2017"},{"$f":"ZZZ__FnCalls!F93","v":"Mar 2017"},{"$f":"ZZZ__FnCalls!F94","v":"Apr 2017"},{"$f":"ZZZ__FnCalls!F95","v":"May 2017"},{"$f":"ZZZ__FnCalls!F96","v":"Jun 2017"},{"$f":"ZZZ__FnCalls!F97","v":"Jul 2017"},{"$f":"ZZZ__FnCalls!F98","v":"Aug 2017"},{"$f":"ZZZ__FnCalls!F99","v":"Sep 2017"},{"$f":"ZZZ__FnCalls!F100","v":"Oct 2017"},{"$f":"ZZZ__FnCalls!F101","v":"Nov 2017"},{"$f":"ZZZ__FnCalls!F102","v":"Dec 2017"},{"$f":"ZZZ__FnCalls!H91","v":"2017"},{"$f":"ZZZ__FnCalls!F103","v":"Jan 2018"},{"$f":"ZZZ__FnCalls!F104","v":"Feb 2018"},{"$f":"ZZZ__FnCalls!F105","v":"Mar 2018"},{"$f":"ZZZ__FnCalls!F106","v":"Apr 2018"},{"$f":"ZZZ__FnCalls!F107","v":"May 2018"},{"$f":"ZZZ__FnCalls!F108","v":"Jun 2018"},{"$f":"ZZZ__FnCalls!F109","v":"Jul 2018"},{"$f":"ZZZ__FnCalls!F110","v":"Aug 2018"},{"$f":"ZZZ__FnCalls!F111","v":"Sep 2018"},{"$f":"ZZZ__FnCalls!F112","v":"Oct 2018"},{"$f":"ZZZ__FnCalls!F113","v":"Nov 2018"},{"$f":"ZZZ__FnCalls!F114","v":"Dec 2018"},{"$f":"ZZZ__FnCalls!H103","v":"2018"},{"$f":"ZZZ__FnCalls!F115","v":"Jan 2019"},{"$f":"ZZZ__FnCalls!F116","v":"Feb 2019"},{"$f":"ZZZ__FnCalls!F117","v":"Mar 2019"},{"$f":"ZZZ__FnCalls!F118","v":"Apr 2019"},{"$f":"ZZZ__FnCalls!F119","v":"May 2019"},{"$f":"ZZZ__FnCalls!F120","v":"Jun 2019"},{"$f":"ZZZ__FnCalls!F121","v":"Jul 2019"},{"$f":"ZZZ__FnCalls!F122","v":"Aug 2019"},{"$f":"ZZZ__FnCalls!F123","v":"Sep 2019"},{"$f":"ZZZ__FnCalls!F124","v":"Oct 2019"},{"$f":"ZZZ__FnCalls!F125","v":"Nov 2019"},{"$f":"ZZZ__FnCalls!F126","v":"Dec 2019"},{"$f":"ZZZ__FnCalls!H115","v":"2019"},{"$f":"ZZZ__FnCalls!F127","v":"Jan 2020"},{"$f":"ZZZ__FnCalls!F128","v":"Feb 2020"},{"$f":"ZZZ__FnCalls!F129","v":"Mar 2020"},{"$f":"ZZZ__FnCalls!F130","v":"Apr 2020"},{"$f":"ZZZ__FnCalls!F131","v":"May 2020"},{"$f":"ZZZ__FnCalls!F132","v":"Jun 2020"},{"$f":"ZZZ__FnCalls!F133","v":"Jul 2020"},{"$f":"ZZZ__FnCalls!F134","v":"Aug 2020"},{"$f":"ZZZ__FnCalls!F135","v":"Sep 2020"},{"$f":"ZZZ__FnCalls!F136","v":"Oct 2020"},{"$f":"ZZZ__FnCalls!F137","v":"Nov 2020"},{"$f":"ZZZ__FnCalls!F138","v":"Dec 2020"},{"$f":"ZZZ__FnCalls!H127","v":"2020"}]
[{"$f":"Labels!B96","v":"Trial 01"},{"$f":"'Trial 1'!B13","v":{"v":-23263.291170993074,"d":"($23,263)"}},{"$f":"'Trial 1'!C13","v":{"v":37352.58148735928,"d":"$37,353"}},{"$f":"'Trial 1'!D13","v":{"v":20599.54171157301,"d":"$20,600"}},{"$f":"'Trial 1'!E13","v":{"v":462.7448889584654,"d":"$463"}},{"$f":"'Trial 1'!F13","v":{"v":50390.09407522989,"d":"$50,390"}},{"$f":"'Trial 1'!G13","v":{"v":19337.335098716074,"d":"$19,337"}},{"$f":"'Trial 1'!H13","v":{"v":-11165.142729841102,"d":"($11,165)"}},{"$f":"'Trial 1'!I13","v":{"v":-1027.5579622681478,"d":"($1,028)"}},{"$f":"'Trial 1'!J13","v":{"v":16780.966761077627,"d":"$16,781"}},{"$f":"'Trial 1'!K13","v":{"v":59923.62802364573,"d":"$59,924"}},{"$f":"'Trial 1'!L13","v":{"v":38230.72942219271,"d":"$38,231"}},{"$f":"'Trial 1'!M13","v":{"v":22395.71198365138,"d":"$22,396"}},{"$f":"SUM('Trial 1'!B13:M13)","v":{"v":230017.34158930182,"d":"$230,017"}},{"$f":"'Trial 1'!O13","v":{"v":-10747.810999262085,"d":"($10,748)"}},{"$f":"'Trial 1'!P13","v":{"v":7448.232611076895,"d":"$7,448"}},{"$f":"'Trial 1'!Q13","v":{"v":-57760.17731524175,"d":"($57,760)"}},{"$f":"'Trial 1'!R13","v":{"v":22531.4540898322,"d":"$22,531"}},{"$f":"'Trial 1'!S13","v":{"v":-49074.732633205014,"d":"($49,075)"}},{"$f":"'Trial 1'!T13","v":{"v":-28518.99029125759,"d":"($28,519)"}},{"$f":"'Trial 1'!U13","v":{"v":-43428.56296360316,"d":"($43,429)"}},{"$f":"'Trial 1'!V13","v":{"v":-44371.84461177123,"d":"($44,372)"}},{"$f":"'Trial 1'!W13","v":{"v":-12068.303274313834,"d":"($12,068)"}},{"$f":"'Trial 1'!X13","v":{"v":-3141.679384431667,"d":"($3,142)"}},{"$f":"'Trial 1'!Y13","v":{"v":44968.59421724215,"d":"$44,969"}},{"$f":"'Trial 1'!Z13","v":{"v":-20657.062741323705,"d":"($20,657)"}},{"$f":"SUM('Trial 1'!O13:Z13)","v":{"v":-194820.88329625878,"d":"($194,821)"}},{"$f":"'Trial 1'!AB13","v":{"v":5919.145050182705,"d":"$5,919"}},{"$f":"'Trial 1'!AC13","v":{"v":62728.36022843444,"d":"$62,728"}},{"$f":"'Trial 1'!AD13","v":{"v":-17134.23112582682,"d":"($17,134)"}},{"$f":"'Trial 1'!AE13","v":{"v":-29654.579796590042,"d":"($29,655)"}},{"$f":"'Trial 1'!AF13","v":{"v":749.9377631274501,"d":"$750"}},{"$f":"'Trial 1'!AG13","v":{"v":-2809.2261807088967,"d":"($2,809)"}},{"$f":"'Trial 1'!AH13","v":{"v":17736.180848201122,"d":"$17,736"}},{"$f":"'Trial 1'!AI13","v":{"v":-11516.822357939305,"d":"($11,517)"}},{"$f":"'Trial 1'!AJ13","v":{"v":50798.7153098439,"d":"$50,799"}},{"$f":"'Trial 1'!AK13","v":{"v":11988.090409158405,"d":"$11,988"}},{"$f":"'Trial 1'!AL13","v":{"v":-8061.152956792395,"d":"($8,061)"}},{"$f":"'Trial 1'!AM13","v":{"v":-30305.093050000047,"d":"($30,305)"}},{"$f":"SUM('Trial 1'!AB13:AM13)","v":{"v":50439.32414109051,"d":"$50,439"}},{"$f":"'Trial 1'!AO13","v":{"v":-30090.825261952385,"d":"($30,091)"}},{"$f":"'Trial 1'!AP13","v":{"v":62288.36190749998,"d":"$62,288"}},{"$f":"'Trial 1'!AQ13","v":{"v":-36782.2385670931,"d":"($36,782)"}},{"$f":"'Trial 1'!AR13","v":{"v":31367.721081554595,"d":"$31,368"}},{"$f":"'Trial 1'!AS13","v":{"v":8600.319646928558,"d":"$8,600"}},{"$f":"'Trial 1'!AT13","v":{"v":28987.361992361755,"d":"$28,987"}},{"$f":"'Trial 1'!AU13","v":{"v":-1975.9811363073043,"d":"($1,976)"}},{"$f":"'Trial 1'!AV13","v":{"v":-20630.6438355351,"d":"($20,631)"}},{"$f":"'Trial 1'!AW13","v":{"v":315.8604919395329,"d":"$316"}},{"$f":"'Trial 1'!AX13","v":{"v":43999.797431950814,"d":"$44,000"}},{"$f":"'Trial 1'!AY13","v":{"v":17041.258262461153,"d":"$17,041"}},{"$f":"'Trial 1'!AZ13","v":{"v":-32759.220780023545,"d":"($32,759)"}},{"$f":"SUM('Trial 1'!AO13:AZ13)","v":{"v":70361.77123378495,"d":"$70,362"}},{"$f":"'Trial 1'!BB13","v":{"v":-35941.45826663379,"d":"($35,941)"}},{"$f":"'Trial 1'!BC13","v":{"v":8633.339224207995,"d":"$8,633"}},{"$f":"'Trial 1'!BD13","v":{"v":-14862.078154496352,"d":"($14,862)"}},{"$f":"'Trial 1'!BE13","v":{"v":34565.5245722318,"d":"$34,566"}},{"$f":"'Trial 1'!BF13","v":{"v":14918.8953491542,"d":"$14,919"}},{"$f":"'Trial 1'!BG13","v":{"v":13113.841820257348,"d":"$13,114"}},{"$f":"'Trial 1'!BH13","v":{"v":21176.138983951463,"d":"$21,176"}},{"$f":"'Trial 1'!BI13","v":{"v":-7570.375707656073,"d":"($7,570)"}},{"$f":"'Trial 1'!BJ13","v":{"v":-9260.084016018067,"d":"($9,260)"}},{"$f":"'Trial 1'!BK13","v":{"v":-42753.010578778936,"d":"($42,753)"}},{"$f":"'Trial 1'!BL13","v":{"v":12003.858847842217,"d":"$12,004"}},{"$f":"'Trial 1'!BM13","v":{"v":-29024.6023901376,"d":"($29,025)"}},{"$f":"SUM('Trial 1'!BB13:BM13)","v":{"v":-35000.0103160758,"d":"($35,000)"}},{"$f":"'Trial 1'!BO13","v":{"v":18883.679708387335,"d":"$18,884"}},{"$f":"'Trial 1'!BP13","v":{"v":-18434.35384088135,"d":"($18,434)"}},{"$f":"'Trial 1'!BQ13","v":{"v":53906.886340206125,"d":"$53,907"}},{"$f":"'Trial 1'!BR13","v":{"v":23301.67087106113,"d":"$23,302"}},{"$f":"'Trial 1'!BS13","v":{"v":5233.700950206016,"d":"$5,234"}},{"$f":"'Trial 1'!BT13","v":{"v":-44242.39940965406,"d":"($44,242)"}},{"$f":"'Trial 1'!BU13","v":{"v":-31136.37125057403,"d":"($31,136)"}},{"$f":"'Trial 1'!BV13","v":{"v":-9587.264036205625,"d":"($9,587)"}},{"$f":"'Trial 1'!BW13","v":{"v":31280.60930285094,"d":"$31,281"}},{"$f":"'Trial 1'!BX13","v":{"v":-31987.124504165633,"d":"($31,987)"}},{"$f":"'Trial 1'!BY13","v":{"v":-43469.37514326484,"d":"($43,469)"}},{"$f":"'Trial 1'!BZ13","v":{"v":33899.17017837829,"d":"$33,899"}},{"$f":"SUM('Trial 1'!BO13:BZ13)","v":{"v":-12351.170833655706,"d":"($12,351)"}},{"$f":"'Trial 1'!CB13","v":{"v":-6618.255980651439,"d":"($6,618)"}},{"$f":"'Trial 1'!CC13","v":{"v":-41440.677453396725,"d":"($41,441)"}},{"$f":"'Trial 1'!CD13","v":{"v":39124.77401629471,"d":"$39,125"}},{"$f":"'Trial 1'!CE13","v":{"v":-31326.808770672735,"d":"($31,327)"}},{"$f":"'Trial 1'!CF13","v":{"v":-2241.2672512096087,"d":"($2,241)"}},{"$f":"'Trial 1'!CG13","v":{"v":12493.361239254536,"d":"$12,493"}},{"$f":"'Trial 1'!CH13","v":{"v":-3288.8404851045834,"d":"($3,289)"}},{"$f":"'Trial 1'!CI13","v":{"v":7822.73203938388,"d":"$7,823"}},{"$f":"'Trial 1'!CJ13","v":{"v":1112.1657396903713,"d":"$1,112"}},{"$f":"'Trial 1'!CK13","v":{"v":-47749.87602196945,"d":"($47,750)"}},{"$f":"'Trial 1'!CL13","v":{"v":27788.24303466581,"d":"$27,788"}},{"$f":"'Trial 1'!CM13","v":{"v":594.0932211648086,"d":"$594"}},{"$f":"SUM('Trial 1'!CB13:CM13)","v":{"v":-43730.35667255043,"d":"($43,730)"}},{"$f":"'Trial 1'!CO13","v":{"v":-29021.11979746154,"d":"($29,021)"}},{"$f":"'Trial 1'!CP13","v":{"v":27660.461789601013,"d":"$27,660"}},{"$f":"'Trial 1'!CQ13","v":{"v":-58192.250260077555,"d":"($58,192)"}},{"$f":"'Trial 1'!CR13","v":{"v":-4105.8004943787055,"d":"($4,106)"}},{"$f":"'Trial 1'!CS13","v":{"v":-50214.53711772717,"d":"($50,215)"}},{"$f":"'Trial 1'!CT13","v":{"v":8934.021472546425,"d":"$8,934"}},{"$f":"'Trial 1'!CU13","v":{"v":-39181.41810824992,"d":"($39,181)"}},{"$f":"'Trial 1'!CV13","v":{"v":7060.7204627593865,"d":"$7,061"}},{"$f":"'Trial 1'!CW13","v":{"v":-46489.19610146658,"d":"($46,489)"}},{"$f":"'Trial 1'!CX13","v":{"v":34437.33226227568,"d":"$34,437"}},{"$f":"'Trial 1'!CY13","v":{"v":42166.52565293827,"d":"$42,167"}},{"$f":"'Trial 1'!CZ13","v":{"v":-47938.93970290097,"d":"($47,939)"}},{"$f":"SUM('Trial 1'!CO13:CZ13)","v":{"v":-154884.19994214168,"d":"($154,884)"}},{"$f":"'Trial 1'!DB13","v":{"v":1684.593019685524,"d":"$1,685"}},{"$f":"'Trial 1'!DC13","v":{"v":20543.01597310816,"d":"$20,543"}},{"$f":"'Trial 1'!DD13","v":{"v":614.8092001702029,"d":"$615"}},{"$f":"'Trial 1'!DE13","v":{"v":25444.371759148722,"d":"$25,444"}},{"$f":"'Trial 1'!DF13","v":{"v":23127.903649726508,"d":"$23,128"}},{"$f":"'Trial 1'!DG13","v":{"v":-14464.235489231427,"d":"($14,464)"}},{"$f":"'Trial 1'!DH13","v":{"v":14612.59570871841,"d":"$14,613"}},{"$f":"'Trial 1'!DI13","v":{"v":-30389.82957967869,"d":"($30,390)"}},{"$f":"'Trial 1'!DJ13","v":{"v":15419.330951636928,"d":"$15,419"}},{"$f":"'Trial 1'!DK13","v":{"v":45749.22261787147,"d":"$45,749"}},{"$f":"'Trial 1'!DL13","v":{"v":-37828.86016708222,"d":"($37,829)"}},{"$f":"'Trial 1'!DM13","v":{"v":6208.855742729035,"d":"$6,209"}},{"$f":"SUM('Trial 1'!DB13:DM13)","v":{"v":70721.77338680261,"d":"$70,722"}},{"$f":"'Trial 1'!DO13","v":{"v":44143.304696219835,"d":"$44,143"}},{"$f":"'Trial 1'!DP13","v":{"v":-15951.02806098807,"d":"($15,951)"}},{"$f":"'Trial 1'!DQ13","v":{"v":12713.006971324563,"d":"$12,713"}},{"$f":"'Trial 1'!DR13","v":{"v":5193.448819872546,"d":"$5,193"}},{"$f":"'Trial 1'!DS13","v":{"v":-10333.207572547957,"d":"($10,333)"}},{"$f":"'Trial 1'!DT13","v":{"v":-12644.960720386909,"d":"($12,645)"}},{"$f":"'Trial 1'!DU13","v":{"v":11990.597165155517,"d":"$11,991"}},{"$f":"'Trial 1'!DV13","v":{"v":-37168.21508837018,"d":"($37,168)"}},{"$f":"'Trial 1'!DW13","v":{"v":-26143.74897894463,"d":"($26,144)"}},{"$f":"'Trial 1'!DX13","v":{"v":32066.24638121834,"d":"$32,066"}},{"$f":"'Trial 1'!DY13","v":{"v":21518.690726698467,"d":"$21,519"}},{"$f":"'Trial 1'!DZ13","v":{"v":-24456.227249212177,"d":"($24,456)"}},{"$f":"SUM('Trial 1'!DO13:DZ13)","v":{"v":927.9070900393344,"d":"$928"}},{"$f":"'Trial 1'!EB13","v":{"v":11247.990916043049,"d":"$11,248"}},{"$f":"'Trial 1'!EC13","v":{"v":-3862.208915110595,"d":"($3,862)"}},{"$f":"'Trial 1'!ED13","v":{"v":-3280.313989787289,"d":"($3,280)"}},{"$f":"'Trial 1'!EE13","v":{"v":-46290.873977916,"d":"($46,291)"}},{"$f":"'Trial 1'!EF13","v":{"v":-7024.162966460549,"d":"($7,024)"}},{"$f":"'Trial 1'!EG13","v":{"v":-13979.095104283842,"d":"($13,979)"}},{"$f":"'Trial 1'!EH13","v":{"v":-7821.9107235388965,"d":"($7,822)"}},{"$f":"'Trial 1'!EI13","v":{"v":-32269.957732422896,"d":"($32,270)"}},{"$f":"'Trial 1'!EJ13","v":{"v":5380.6091908657245,"d":"$5,381"}},{"$f":"'Trial 1'!EK13","v":{"v":-10335.844995003483,"d":"($10,336)"}},{"$f":"'Trial 1'!EL13","v":{"v":-36227.52712625409,"d":"($36,228)"}},{"$f":"'Trial 1'!EM13","v":{"v":-25728.02837657519,"d":"($25,728)"}},{"$f":"SUM('Trial 1'!EB13:EM13)","v":{"v":-170191.32380044405,"d":"($170,191)"}}]
[{"$f":"Labels!B97","v":"Trial 02"},{"$f":"'Trial 2'!B13","v":{"v":-12280.788358529968,"d":"($12,281)"}},{"$f":"'Trial 2'!C13","v":{"v":-40975.35975570347,"d":"($40,975)"}},{"$f":"'Trial 2'!D13","v":{"v":8914.181053047007,"d":"$8,914"}},{"$f":"'Trial 2'!E13","v":{"v":61716.39273729128,"d":"$61,716"}},{"$f":"'Trial 2'!F13","v":{"v":17813.560011078414,"d":"$17,814"}},{"$f":"'Trial 2'!G13","v":{"v":-17363.96072464185,"d":"($17,364)"}},{"$f":"'Trial 2'!H13","v":{"v":1189.6035544669128,"d":"$1,190"}},{"$f":"'Trial 2'!I13","v":{"v":-35465.0933163641,"d":"($35,465)"}},{"$f":"'Trial 2'!J13","v":{"v":15653.254037021554,"d":"$15,653"}},{"$f":"'Trial 2'!K13","v":{"v":7116.473040870927,"d":"$7,116"}},{"$f":"'Trial 2'!L13","v":{"v":-34890.043266250366,"d":"($34,890)"}},{"$f":"'Trial 2'!M13","v":{"v":32316.313436644214,"d":"$32,316"}},{"$f":"SUM('Trial 2'!B13:M13)","v":{"v":3744.5324489305603,"d":"$3,745"}},{"$f":"'Trial 2'!O13","v":{"v":-17913.088054017695,"d":"($17,913)"}},{"$f":"'Trial 2'!P13","v":{"v":30730.492096696005,"d":"$30,730"}},{"$f":"'Trial 2'!Q13","v":{"v":34769.89141895605,"d":"$34,770"}},{"$f":"'Trial 2'!R13","v":{"v":-5969.870983814344,"d":"($5,970)"}},{"$f":"'Trial 2'!S13","v":{"v":-5063.508480203603,"d":"($5,064)"}},{"$f":"'Trial 2'!T13","v":{"v":-5276.994486918,"d":"($5,277)"}},{"$f":"'Trial 2'!U13","v":{"v":-36909.98266628036,"d":"($36,910)"}},{"$f":"'Trial 2'!V13","v":{"v":-23884.600175704738,"d":"($23,885)"}},{"$f":"'Trial 2'!W13","v":{"v":-14971.752138735652,"d":"($14,972)"}},{"$f":"'Trial 2'!X13","v":{"v":-21883.042143208957,"d":"($21,883)"}},{"$f":"'Trial 2'!Y13","v":{"v":-58902.65631485259,"d":"($58,903)"}},{"$f":"'Trial 2'!Z13","v":{"v":18502.538996357227,"d":"$18,503"}},{"$f":"SUM('Trial 2'!O13:Z13)","v":{"v":-106772.57293172665,"d":"($106,773)"}},{"$f":"'Trial 2'!AB13","v":{"v":1150.797609992831,"d":"$1,151"}},{"$f":"'Trial 2'!AC13","v":{"v":4197.105198503056,"d":"$4,197"}},{"$f":"'Trial 2'!AD13","v":{"v":1476.9943065840814,"d":"$1,477"}},{"$f":"'Trial 2'!AE13","v":{"v":60982.31080431782,"d":"$60,982"}},{"$f":"'Trial 2'!AF13","v":{"v":1678.0097418138234,"d":"$1,678"}},{"$f":"'Trial 2'!AG13","v":{"v":-12932.53048694964,"d":"($12,933)"}},{"$f":"'Trial 2'!AH13","v":{"v":18285.623889590755,"d":"$18,286"}},{"$f":"'Trial 2'!AI13","v":{"v":-45471.69801608922,"d":"($45,472)"}},{"$f":"'Trial 2'!AJ13","v":{"v":4884.285291664825,"d":"$4,884"}},{"$f":"'Trial 2'!AK13","v":{"v":24350.82410582402,"d":"$24,351"}},{"$f":"'Trial 2'!AL13","v":{"v":48968.866379793966,"d":"$48,969"}},{"$f":"'Trial 2'!AM13","v":{"v":-16682.321905487726,"d":"($16,682)"}},{"$f":"SUM('Trial 2'!AB13:AM13)","v":{"v":90888.26691955858,"d":"$90,888"}},{"$f":"'Trial 2'!AO13","v":{"v":-5162.945080488648,"d":"($5,163)"}},{"$f":"'Trial 2'!AP13","v":{"v":18909.531741140898,"d":"$18,910"}},{"$f":"'Trial 2'!AQ13","v":{"v":16379.983182686248,"d":"$16,380"}},{"$f":"'Trial 2'!AR13","v":{"v":-14935.159475057018,"d":"($14,935)"}},{"$f":"'Trial 2'!AS13","v":{"v":16887.992632296584,"d":"$16,888"}},{"$f":"'Trial 2'!AT13","v":{"v":16080.154720910698,"d":"$16,080"}},{"$f":"'Trial 2'!AU13","v":{"v":7384.359519728429,"d":"$7,384"}},{"$f":"'Trial 2'!AV13","v":{"v":10996.149251120703,"d":"$10,996"}},{"$f":"'Trial 2'!AW13","v":{"v":-54507.440736279445,"d":"($54,507)"}},{"$f":"'Trial 2'!AX13","v":{"v":-8426.345992950519,"d":"($8,426)"}},{"$f":"'Trial 2'!AY13","v":{"v":38923.86539965329,"d":"$38,924"}},{"$f":"'Trial 2'!AZ13","v":{"v":-5447.506880264628,"d":"($5,448)"}},{"$f":"SUM('Trial 2'!AO13:AZ13)","v":{"v":37082.63828249659,"d":"$37,083"}},{"$f":"'Trial 2'!BB13","v":{"v":-22140.016173509102,"d":"($22,140)"}},{"$f":"'Trial 2'!BC13","v":{"v":4487.809662050237,"d":"$4,488"}},{"$f":"'Trial 2'!BD13","v":{"v":39791.51640037385,"d":"$39,792"}},{"$f":"'Trial 2'!BE13","v":{"v":-3717.24780609127,"d":"($3,717)"}},{"$f":"'Trial 2'!BF13","v":{"v":29900.93264143633,"d":"$29,901"}},{"$f":"'Trial 2'!BG13","v":{"v":-32118.940748978202,"d":"($32,119)"}},{"$f":"'Trial 2'!BH13","v":{"v":-20307.38281531881,"d":"($20,307)"}},{"$f":"'Trial 2'!BI13","v":{"v":-47685.128016157134,"d":"($47,685)"}},{"$f":"'Trial 2'!BJ13","v":{"v":27749.97389559331,"d":"$27,750"}},{"$f":"'Trial 2'!BK13","v":{"v":-14413.121537468814,"d":"($14,413)"}},{"$f":"'Trial 2'!BL13","v":{"v":8717.142064134205,"d":"$8,717"}},{"$f":"'Trial 2'!BM13","v":{"v":-51858.369002526175,"d":"($51,858)"}},{"$f":"SUM('Trial 2'!BB13:BM13)","v":{"v":-81592.83143646157,"d":"($81,593)"}},{"$f":"'Trial 2'!BO13","v":{"v":-59322.809372433636,"d":"($59,323)"}},{"$f":"'Trial 2'!BP13","v":{"v":-35950.73855760756,"d":"($35,951)"}},{"$f":"'Trial 2'!BQ13","v":{"v":18766.447636082165,"d":"$18,766"}},{"$f":"'Trial 2'!BR13","v":{"v":35311.60201876704,"d":"$35,312"}},{"$f":"'Trial 2'!BS13","v":{"v":-47696.18772095256,"d":"($47,696)"}},{"$f":"'Trial 2'!BT13","v":{"v":45814.47854188465,"d":"$45,814"}},{"$f":"'Trial 2'!BU13","v":{"v":-23407.231168154245,"d":"($23,407)"}},{"$f":"'Trial 2'!BV13","v":{"v":19469.779451302595,"d":"$19,470"}},{"$f":"'Trial 2'!BW13","v":{"v":3163.958936760118,"d":"$3,164"}},{"$f":"'Trial 2'!BX13","v":{"v":-54471.174967550956,"d":"($54,471)"}},{"$f":"'Trial 2'!BY13","v":{"v":56543.40825967567,"d":"$56,543"}},{"$f":"'Trial 2'!BZ13","v":{"v":7993.806897755354,"d":"$7,994"}},{"$f":"SUM('Trial 2'!BO13:BZ13)","v":{"v":-33784.660044471355,"d":"($33,785)"}},{"$f":"'Trial 2'!CB13","v":{"v":21678.467129827553,"d":"$21,678"}},{"$f":"'Trial 2'!CC13","v":{"v":-23291.67235837952,"d":"($23,292)"}},{"$f":"'Trial 2'!CD13","v":{"v":-7221.852242081351,"d":"($7,222)"}},{"$f":"'Trial 2'!CE13","v":{"v":35035.00958744659,"d":"$35,035"}},{"$f":"'Trial 2'!CF13","v":{"v":14945.908959219487,"d":"$14,946"}},{"$f":"'Trial 2'!CG13","v":{"v":29969.76663872215,"d":"$29,970"}},{"$f":"'Trial 2'!CH13","v":{"v":1113.991016374414,"d":"$1,114"}},{"$f":"'Trial 2'!CI13","v":{"v":38736.69749729973,"d":"$38,737"}},{"$f":"'Trial 2'!CJ13","v":{"v":-38921.09274336001,"d":"($38,921)"}},{"$f":"'Trial 2'!CK13","v":{"v":-5449.266132859716,"d":"($5,449)"}},{"$f":"'Trial 2'!CL13","v":{"v":-48653.544808092076,"d":"($48,654)"}},{"$f":"'Trial 2'!CM13","v":{"v":-7709.662596251709,"d":"($7,710)"}},{"$f":"SUM('Trial 2'!CB13:CM13)","v":{"v":10232.749947865555,"d":"$10,233"}},{"$f":"'Trial 2'!CO13","v":{"v":-23065.417275761552,"d":"($23,065)"}},{"$f":"'Trial 2'!CP13","v":{"v":-487.18241208469897,"d":"($487)"}},{"$f":"'Trial 2'!CQ13","v":{"v":12857.702423441056,"d":"$12,858"}},{"$f":"'Trial 2'!CR13","v":{"v":-14560.875268043794,"d":"($14,561)"}},{"$f":"'Trial 2'!CS13","v":{"v":18235.68993682117,"d":"$18,236"}},{"$f":"'Trial 2'!CT13","v":{"v":-34662.15096399925,"d":"($34,662)"}},{"$f":"'Trial 2'!CU13","v":{"v":36010.316476434986,"d":"$36,010"}},{"$f":"'Trial 2'!CV13","v":{"v":-8608.829535669762,"d":"($8,609)"}},{"$f":"'Trial 2'!CW13","v":{"v":35679.78217581833,"d":"$35,680"}},{"$f":"'Trial 2'!CX13","v":{"v":-60045.00966502825,"d":"($60,045)"}},{"$f":"'Trial 2'!CY13","v":{"v":28466.89401179469,"d":"$28,467"}},{"$f":"'Trial 2'!CZ13","v":{"v":-9657.346170622968,"d":"($9,657)"}},{"$f":"SUM('Trial 2'!CO13:CZ13)","v":{"v":-19836.42626690005,"d":"($19,836)"}},{"$f":"'Trial 2'!DB13","v":{"v":-12895.600699058443,"d":"($12,896)"}},{"$f":"'Trial 2'!DC13","v":{"v":17013.341633060358,"d":"$17,013"}},{"$f":"'Trial 2'!DD13","v":{"v":-15208.941074944583,"d":"($15,209)"}},{"$f":"'Trial 2'!DE13","v":{"v":19225.535703921178,"d":"$19,226"}},{"$f":"'Trial 2'!DF13","v":{"v":29622.50102219177,"d":"$29,623"}},{"$f":"'Trial 2'!DG13","v":{"v":-1669.220585768708,"d":"($1,669)"}},{"$f":"'Trial 2'!DH13","v":{"v":4192.31651487967,"d":"$4,192"}},{"$f":"'Trial 2'!DI13","v":{"v":8513.436538815016,"d":"$8,513"}},{"$f":"'Trial 2'!DJ13","v":{"v":45131.292080654726,"d":"$45,131"}},{"$f":"'Trial 2'!DK13","v":{"v":-32350.73397625867,"d":"($32,351)"}},{"$f":"'Trial 2'!DL13","v":{"v":-58696.94697055851,"d":"($58,697)"}},{"$f":"'Trial 2'!DM13","v":{"v":-37862.4747544523,"d":"($37,862)"}},{"$f":"SUM('Trial 2'!DB13:DM13)","v":{"v":-34985.49456751849,"d":"($34,985)"}},{"$f":"'Trial 2'!DO13","v":{"v":29702.717600300213,"d":"$29,703"}},{"$f":"'Trial 2'!DP13","v":{"v":-46620.48764951737,"d":"($46,620)"}},{"$f":"'Trial 2'!DQ13","v":{"v":3267.860175956416,"d":"$3,268"}},{"$f":"'Trial 2'!DR13","v":{"v":-10259.151184593371,"d":"($10,259)"}},{"$f":"'Trial 2'!DS13","v":{"v":-28694.83495988415,"d":"($28,695)"}},{"$f":"'Trial 2'!DT13","v":{"v":9286.044967635227,"d":"$9,286"}},{"$f":"'Trial 2'!DU13","v":{"v":25635.0496310723,"d":"$25,635"}},{"$f":"'Trial 2'!DV13","v":{"v":20326.41332498427,"d":"$20,326"}},{"$f":"'Trial 2'!DW13","v":{"v":-36690.90536040782,"d":"($36,691)"}},{"$f":"'Trial 2'!DX13","v":{"v":25582.739820635397,"d":"$25,583"}},{"$f":"'Trial 2'!DY13","v":{"v":-2256.8065935029595,"d":"($2,257)"}},{"$f":"'Trial 2'!DZ13","v":{"v":-37823.61978853248,"d":"($37,824)"}},{"$f":"SUM('Trial 2'!DO13:DZ13)","v":{"v":-48544.98001585432,"d":"($48,545)"}},{"$f":"'Trial 2'!EB13","v":{"v":30809.617747219683,"d":"$30,810"}},{"$f":"'Trial 2'!EC13","v":{"v":16390.3158566239,"d":"$16,390"}},{"$f":"'Trial 2'!ED13","v":{"v":-53503.61374919171,"d":"($53,504)"}},{"$f":"'Trial 2'!EE13","v":{"v":-3705.694390215261,"d":"($3,706)"}},{"$f":"'Trial 2'!EF13","v":{"v":47833.961645710646,"d":"$47,834"}},{"$f":"'Trial 2'!EG13","v":{"v":-33776.88411864011,"d":"($33,777)"}},{"$f":"'Trial 2'!EH13","v":{"v":-23602.98310020929,"d":"($23,603)"}},{"$f":"'Trial 2'!EI13","v":{"v":-34248.46656827786,"d":"($34,248)"}},{"$f":"'Trial 2'!EJ13","v":{"v":13470.169437735452,"d":"$13,470"}},{"$f":"'Trial 2'!EK13","v":{"v":-16497.57999083341,"d":"($16,498)"}},{"$f":"'Trial 2'!EL13","v":{"v":20366.941748657013,"d":"$20,367"}},{"$f":"'Trial 2'!EM13","v":{"v":-2482.414512783805,"d":"($2,482)"}},{"$f":"SUM('Trial 2'!EB13:EM13)","v":{"v":-38946.629994204755,"d":"($38,947)"}}]
[{"$f":"Labels!B98","v":"Trial 03"},{"$f":"'Trial 3'!B13","v":{"v":-54744.561960042265,"d":"($54,745)"}},{"$f":"'Trial 3'!C13","v":{"v":8898.37352653596,"d":"$8,898"}},{"$f":"'Trial 3'!D13","v":{"v":-30586.84640440895,"d":"($30,587)"}},{"$f":"'Trial 3'!E13","v":{"v":44802.19640522255,"d":"$44,802"}},{"$f":"'Trial 3'!F13","v":{"v":14756.715016624212,"d":"$14,757"}},{"$f":"'Trial 3'!G13","v":{"v":41600.10110673441,"d":"$41,600"}},{"$f":"'Trial 3'!H13","v":{"v":-12422.779211182109,"d":"($12,423)"}},{"$f":"'Trial 3'!I13","v":{"v":28374.62410038729,"d":"$28,375"}},{"$f":"'Trial 3'!J13","v":{"v":-35501.49206329916,"d":"($35,501)"}},{"$f":"'Trial 3'!K13","v":{"v":9701.545038345106,"d":"$9,702"}},{"$f":"'Trial 3'!L13","v":{"v":31699.62386699065,"d":"$31,700"}},{"$f":"'Trial 3'!M13","v":{"v":-24175.652860272072,"d":"($24,176)"}},{"$f":"SUM('Trial 3'!B13:M13)","v":{"v":22401.84656163562,"d":"$22,402"}},{"$f":"'Trial 3'!O13","v":{"v":10510.156838540348,"d":"$10,510"}},{"$f":"'Trial 3'!P13","v":{"v":-12949.770581214205,"d":"($12,950)"}},{"$f":"'Trial 3'!Q13","v":{"v":42298.39845774134,"d":"$42,298"}},{"$f":"'Trial 3'!R13","v":{"v":25279.00114948575,"d":"$25,279"}},{"$f":"'Trial 3'!S13","v":{"v":1247.9781671620979,"d":"$1,248"}},{"$f":"'Trial 3'!T13","v":{"v":-8398.068615335136,"d":"($8,398)"}},{"$f":"'Trial 3'!U13","v":{"v":-61541.84676030758,"d":"($61,542)"}},{"$f":"'Trial 3'!V13","v":{"v":-26144.934288803135,"d":"($26,145)"}},{"$f":"'Trial 3'!W13","v":{"v":13734.90336139273,"d":"$13,735"}},{"$f":"'Trial 3'!X13","v":{"v":5367.395866578204,"d":"$5,367"}},{"$f":"'Trial 3'!Y13","v":{"v":-13568.55388081131,"d":"($13,569)"}},{"$f":"'Trial 3'!Z13","v":{"v":-56545.42771741092,"d":"($56,545)"}},{"$f":"SUM('Trial 3'!O13:Z13)","v":{"v":-80710.76800298181,"d":"($80,711)"}},{"$f":"'Trial 3'!AB13","v":{"v":41339.771499122944,"d":"$41,340"}},{"$f":"'Trial 3'!AC13","v":{"v":-19851.053194439206,"d":"($19,851)"}},{"$f":"'Trial 3'!AD13","v":{"v":-33776.62614050761,"d":"($33,777)"}},{"$f":"'Trial 3'!AE13","v":{"v":27885.785898149694,"d":"$27,886"}},{"$f":"'Trial 3'!AF13","v":{"v":-57455.55444633597,"d":"($57,456)"}},{"$f":"'Trial 3'!AG13","v":{"v":24816.261784649494,"d":"$24,816"}},{"$f":"'Trial 3'!AH13","v":{"v":7110.608344236975,"d":"$7,111"}},{"$f":"'Trial 3'!AI13","v":{"v":-24542.656825525704,"d":"($24,543)"}},{"$f":"'Trial 3'!AJ13","v":{"v":19760.385666979906,"d":"$19,760"}},{"$f":"'Trial 3'!AK13","v":{"v":6580.105777677363,"d":"$6,580"}},{"$f":"'Trial 3'!AL13","v":{"v":-12575.273625555172,"d":"($12,575)"}},{"$f":"'Trial 3'!AM13","v":{"v":-15500.501724286998,"d":"($15,501)"}},{"$f":"SUM('Trial 3'!AB13:AM13)","v":{"v":-36208.74698583428,"d":"($36,209)"}},{"$f":"'Trial 3'!AO13","v":{"v":29703.314719075563,"d":"$29,703"}},{"$f":"'Trial 3'!AP13","v":{"v":36632.697268109594,"d":"$36,633"}},{"$f":"'Trial 3'!AQ13","v":{"v":-46431.60766413146,"d":"($46,432)"}},{"$f":"'Trial 3'!AR13","v":{"v":-8892.780283292836,"d":"($8,893)"}},{"$f":"'Trial 3'!AS13","v":{"v":26449.047727610287,"d":"$26,449"}},{"$f":"'Trial 3'!AT13","v":{"v":-15832.57773230969,"d":"($15,833)"}},{"$f":"'Trial 3'!AU13","v":{"v":-30182.658351096437,"d":"($30,183)"}},{"$f":"'Trial 3'!AV13","v":{"v":11966.636053698587,"d":"$11,967"}},{"$f":"'Trial 3'!AW13","v":{"v":-32189.88599352654,"d":"($32,190)"}},{"$f":"'Trial 3'!AX13","v":{"v":36458.383938563245,"d":"$36,458"}},{"$f":"'Trial 3'!AY13","v":{"v":-31988.483763618733,"d":"($31,988)"}},{"$f":"'Trial 3'!AZ13","v":{"v":-48083.915666971625,"d":"($48,084)"}},{"$f":"SUM('Trial 3'!AO13:AZ13)","v":{"v":-72391.82974789003,"d":"($72,392)"}},{"$f":"'Trial 3'!BB13","v":{"v":-11585.737414295822,"d":"($11,586)"}},{"$f":"'Trial 3'!BC13","v":{"v":-48728.679020827054,"d":"($48,729)"}},{"$f":"'Trial 3'!BD13","v":{"v":26604.31026340255,"d":"$26,604"}},{"$f":"'Trial 3'!BE13","v":{"v":-58463.21728134013,"d":"($58,463)"}},{"$f":"'Trial 3'!BF13","v":{"v":11235.413063141139,"d":"$11,235"}},{"$f":"'Trial 3'!BG13","v":{"v":-59175.45014857556,"d":"($59,175)"}},{"$f":"'Trial 3'!BH13","v":{"v":-31520.33042352554,"d":"($31,520)"}},{"$f":"'Trial 3'!BI13","v":{"v":6682.920627356814,"d":"$6,683"}},{"$f":"'Trial 3'!BJ13","v":{"v":147.53029217964522,"d":"$148"}},{"$f":"'Trial 3'!BK13","v":{"v":-13053.09187997311,"d":"($13,053)"}},{"$f":"'Trial 3'!BL13","v":{"v":23151.437417636294,"d":"$23,151"}},{"$f":"'Trial 3'!BM13","v":{"v":-4080.330175984565,"d":"($4,080)"}},{"$f":"SUM('Trial 3'!BB13:BM13)","v":{"v":-158785.22468080532,"d":"($158,785)"}},{"$f":"'Trial 3'!BO13","v":{"v":-2789.8565715284985,"d":"($2,790)"}},{"$f":"'Trial 3'!BP13","v":{"v":12714.158519875913,"d":"$12,714"}},{"$f":"'Trial 3'!BQ13","v":{"v":-31501.757660083265,"d":"($31,502)"}},{"$f":"'Trial 3'!BR13","v":{"v":2543.4521338805052,"d":"$2,543"}},{"$f":"'Trial 3'!BS13","v":{"v":23156.9073702,"d":"$23,157"}},{"$f":"'Trial 3'!BT13","v":{"v":-11208.572771070956,"d":"($11,209)"}},{"$f":"'Trial 3'!BU13","v":{"v":-16229.364988159252,"d":"($16,229)"}},{"$f":"'Trial 3'!BV13","v":{"v":-28343.07825090023,"d":"($28,343)"}},{"$f":"'Trial 3'!BW13","v":{"v":13803.397305538234,"d":"$13,803"}},{"$f":"'Trial 3'!BX13","v":{"v":-38405.26302635689,"d":"($38,405)"}},{"$f":"'Trial 3'!BY13","v":{"v":39660.79643578133,"d":"$39,661"}},{"$f":"'Trial 3'!BZ13","v":{"v":-12520.275310706926,"d":"($12,520)"}},{"$f":"SUM('Trial 3'!BO13:BZ13)","v":{"v":-49119.45681353005,"d":"($49,119)"}},{"$f":"'Trial 3'!CB13","v":{"v":15842.400390776176,"d":"$15,842"}},{"$f":"'Trial 3'!CC13","v":{"v":-8409.210274924102,"d":"($8,409)"}},{"$f":"'Trial 3'!CD13","v":{"v":1991.7858786890256,"d":"$1,992"}},{"$f":"'Trial 3'!CE13","v":{"v":3433.6137522213535,"d":"$3,434"}},{"$f":"'Trial 3'!CF13","v":{"v":31.225098658425438,"d":"$31"}},{"$f":"'Trial 3'!CG13","v":{"v":24699.720887559208,"d":"$24,700"}},{"$f":"'Trial 3'!CH13","v":{"v":28835.520632981275,"d":"$28,836"}},{"$f":"'Trial 3'!CI13","v":{"v":40555.79276002598,"d":"$40,556"}},{"$f":"'Trial 3'!CJ13","v":{"v":-6561.821383196699,"d":"($6,562)"}},{"$f":"'Trial 3'!CK13","v":{"v":18917.21619749479,"d":"$18,917"}},{"$f":"'Trial 3'!CL13","v":{"v":31776.480779005233,"d":"$31,776"}},{"$f":"'Trial 3'!CM13","v":{"v":46242.9119582108,"d":"$46,243"}},{"$f":"SUM('Trial 3'!CB13:CM13)","v":{"v":197355.6366775015,"d":"$197,356"}},{"$f":"'Trial 3'!CO13","v":{"v":-35082.319179666025,"d":"($35,082)"}},{"$f":"'Trial 3'!CP13","v":{"v":14955.948917525444,"d":"$14,956"}},{"$f":"'Trial 3'!CQ13","v":{"v":-13585.17915887107,"d":"($13,585)"}},{"$f":"'Trial 3'!CR13","v":{"v":9340.716240051474,"d":"$9,341"}},{"$f":"'Trial 3'!CS13","v":{"v":-4968.450666300335,"d":"($4,968)"}},{"$f":"'Trial 3'!CT13","v":{"v":6363.0899374843275,"d":"$6,363"}},{"$f":"'Trial 3'!CU13","v":{"v":18512.077733679518,"d":"$18,512"}},{"$f":"'Trial 3'!CV13","v":{"v":2680.6056679097665,"d":"$2,681"}},{"$f":"'Trial 3'!CW13","v":{"v":-29518.389087233405,"d":"($29,518)"}},{"$f":"'Trial 3'!CX13","v":{"v":41081.32984981293,"d":"$41,081"}},{"$f":"'Trial 3'!CY13","v":{"v":-22546.951705957414,"d":"($22,547)"}},{"$f":"'Trial 3'!CZ13","v":{"v":27658.565553882145,"d":"$27,659"}},{"$f":"SUM('Trial 3'!CO13:CZ13)","v":{"v":14891.044102317355,"d":"$14,891"}},{"$f":"'Trial 3'!DB13","v":{"v":-34226.79994740168,"d":"($34,227)"}},{"$f":"'Trial 3'!DC13","v":{"v":-56615.625362287916,"d":"($56,616)"}},{"$f":"'Trial 3'!DD13","v":{"v":-5235.598625003539,"d":"($5,236)"}},{"$f":"'Trial 3'!DE13","v":{"v":11390.935764240157,"d":"$11,391"}},{"$f":"'Trial 3'!DF13","v":{"v":4487.381758882888,"d":"$4,487"}},{"$f":"'Trial 3'!DG13","v":{"v":16433.761920961315,"d":"$16,434"}},{"$f":"'Trial 3'!DH13","v":{"v":11258.625965988018,"d":"$11,259"}},{"$f":"'Trial 3'!DI13","v":{"v":1094.4904425182508,"d":"$1,094"}},{"$f":"'Trial 3'!DJ13","v":{"v":-11232.754895813647,"d":"($11,233)"}},{"$f":"'Trial 3'!DK13","v":{"v":10651.056790227141,"d":"$10,651"}},{"$f":"'Trial 3'!DL13","v":{"v":20145.502933984022,"d":"$20,146"}},{"$f":"'Trial 3'!DM13","v":{"v":9562.621820428834,"d":"$9,563"}},{"$f":"SUM('Trial 3'!DB13:DM13)","v":{"v":-22286.40143327615,"d":"($22,286)"}},{"$f":"'Trial 3'!DO13","v":{"v":16002.149385021434,"d":"$16,002"}},{"$f":"'Trial 3'!DP13","v":{"v":19337.756154577273,"d":"$19,338"}},{"$f":"'Trial 3'!DQ13","v":{"v":58916.18082979849,"d":"$58,916"}},{"$f":"'Trial 3'!DR13","v":{"v":-51344.52802575589,"d":"($51,345)"}},{"$f":"'Trial 3'!DS13","v":{"v":-16206.114367621574,"d":"($16,206)"}},{"$f":"'Trial 3'!DT13","v":{"v":25097.47112174367,"d":"$25,097"}},{"$f":"'Trial 3'!DU13","v":{"v":-4475.078781298761,"d":"($4,475)"}},{"$f":"'Trial 3'!DV13","v":{"v":25798.282701209362,"d":"$25,798"}},{"$f":"'Trial 3'!DW13","v":{"v":38677.6760179425,"d":"$38,678"}},{"$f":"'Trial 3'!DX13","v":{"v":-5496.598102931237,"d":"($5,497)"}},{"$f":"'Trial 3'!DY13","v":{"v":-15572.85730096417,"d":"($15,573)"}},{"$f":"'Trial 3'!DZ13","v":{"v":-32573.162654771633,"d":"($32,573)"}},{"$f":"SUM('Trial 3'!DO13:DZ13)","v":{"v":58161.17697694946,"d":"$58,161"}},{"$f":"'Trial 3'!EB13","v":{"v":-91.89224615722603,"d":"($92)"}},{"$f":"'Trial 3'!EC13","v":{"v":-12172.942622013468,"d":"($12,173)"}},{"$f":"'Trial 3'!ED13","v":{"v":10839.384929715801,"d":"$10,839"}},{"$f":"'Trial 3'!EE13","v":{"v":10967.151945751868,"d":"$10,967"}},{"$f":"'Trial 3'!EF13","v":{"v":-2239.062617324862,"d":"($2,239)"}},{"$f":"'Trial 3'!EG13","v":{"v":-1800.2441578750083,"d":"($1,800)"}},{"$f":"'Trial 3'!EH13","v":{"v":27746.325759473137,"d":"$27,746"}},{"$f":"'Trial 3'!EI13","v":{"v":-38975.84114417153,"d":"($38,976)"}},{"$f":"'Trial 3'!EJ13","v":{"v":-50603.55470408188,"d":"($50,604)"}},{"$f":"'Trial 3'!EK13","v":{"v":41825.94450782645,"d":"$41,826"}},{"$f":"'Trial 3'!EL13","v":{"v":22066.326054112127,"d":"$22,066"}},{"$f":"'Trial 3'!EM13","v":{"v":-8261.712512973205,"d":"($8,262)"}},{"$f":"SUM('Trial 3'!EB13:EM13)","v":{"v":-700.1168077177972,"d":"($700)"}}]
[{"$f":"Labels!B99","v":"Trial 04"},{"$f":"'Trial 4'!B13","v":{"v":-14255.4608333438,"d":"($14,255)"}},{"$f":"'Trial 4'!C13","v":{"v":-21616.977066423908,"d":"($21,617)"}},{"$f":"'Trial 4'!D13","v":{"v":-22767.54075395087,"d":"($22,768)"}},{"$f":"'Trial 4'!E13","v":{"v":18520.57097360632,"d":"$18,521"}},{"$f":"'Trial 4'!F13","v":{"v":37981.401102195945,"d":"$37,981"}},{"$f":"'Trial 4'!G13","v":{"v":55494.65583886301,"d":"$55,495"}},{"$f":"'Trial 4'!H13","v":{"v":-43768.47170259461,"d":"($43,768)"}},{"$f":"'Trial 4'!I13","v":{"v":-41629.024821882485,"d":"($41,629)"}},{"$f":"'Trial 4'!J13","v":{"v":-8271.108464843895,"d":"($8,271)"}},{"$f":"'Trial 4'!K13","v":{"v":-7799.919524793453,"d":"($7,800)"}},{"$f":"'Trial 4'!L13","v":{"v":1212.9657942518018,"d":"$1,213"}},{"$f":"'Trial 4'!M13","v":{"v":-47113.21279876908,"d":"($47,113)"}},{"$f":"SUM('Trial 4'!B13:M13)","v":{"v":-94012.12225768503,"d":"($94,012)"}},{"$f":"'Trial 4'!O13","v":{"v":1599.532442859924,"d":"$1,600"}},{"$f":"'Trial 4'!P13","v":{"v":14043.246335462289,"d":"$14,043"}},{"$f":"'Trial 4'!Q13","v":{"v":43567.67016412308,"d":"$43,568"}},{"$f":"'Trial 4'!R13","v":{"v":1902.2702603195175,"d":"$1,902"}},{"$f":"'Trial 4'!S13","v":{"v":-56053.05471466721,"d":"($56,053)"}},{"$f":"'Trial 4'!T13","v":{"v":-15787.161067383151,"d":"($15,787)"}},{"$f":"'Trial 4'!U13","v":{"v":3519.753525662027,"d":"$3,520"}},{"$f":"'Trial 4'!V13","v":{"v":-3572.3376032280216,"d":"($3,572)"}},{"$f":"'Trial 4'!W13","v":{"v":61392.762159925755,"d":"$61,393"}},{"$f":"'Trial 4'!X13","v":{"v":-5677.3949896888735,"d":"($5,677)"}},{"$f":"'Trial 4'!Y13","v":{"v":-51090.33442845816,"d":"($51,090)"}},{"$f":"'Trial 4'!Z13","v":{"v":-29649.79033706894,"d":"($29,650)"}},{"$f":"SUM('Trial 4'!O13:Z13)","v":{"v":-35804.83825214176,"d":"($35,805)"}},{"$f":"'Trial 4'!AB13","v":{"v":-21998.45853670382,"d":"($21,998)"}},{"$f":"'Trial 4'!AC13","v":{"v":8793.549088125028,"d":"$8,794"}},{"$f":"'Trial 4'!AD13","v":{"v":-13378.14713953028,"d":"($13,378)"}},{"$f":"'Trial 4'!AE13","v":{"v":-43003.887464079184,"d":"($43,004)"}},{"$f":"'Trial 4'!AF13","v":{"v":-19146.594643493696,"d":"($19,147)"}},{"$f":"'Trial 4'!AG13","v":{"v":44573.92984566021,"d":"$44,574"}},{"$f":"'Trial 4'!AH13","v":{"v":-694.9729115569182,"d":"($695)"}},{"$f":"'Trial 4'!AI13","v":{"v":-1255.2228357422946,"d":"($1,255)"}},{"$f":"'Trial 4'!AJ13","v":{"v":-19307.862240791044,"d":"($19,308)"}},{"$f":"'Trial 4'!AK13","v":{"v":37621.921010095764,"d":"$37,622"}},{"$f":"'Trial 4'!AL13","v":{"v":-12538.495475552429,"d":"($12,538)"}},{"$f":"'Trial 4'!AM13","v":{"v":-58810.68024618958,"d":"($58,811)"}},{"$f":"SUM('Trial 4'!AB13:AM13)","v":{"v":-99144.92154975823,"d":"($99,145)"}},{"$f":"'Trial 4'!AO13","v":{"v":-682.7448450011399,"d":"($683)"}},{"$f":"'Trial 4'!AP13","v":{"v":-3599.273024512585,"d":"($3,599)"}},{"$f":"'Trial 4'!AQ13","v":{"v":-10429.979728155184,"d":"($10,430)"}},{"$f":"'Trial 4'!AR13","v":{"v":-35357.171892703605,"d":"($35,357)"}},{"$f":"'Trial 4'!AS13","v":{"v":10808.19190217376,"d":"$10,808"}},{"$f":"'Trial 4'!AT13","v":{"v":30221.665785477726,"d":"$30,222"}},{"$f":"'Trial 4'!AU13","v":{"v":12327.6146237894,"d":"$12,328"}},{"$f":"'Trial 4'!AV13","v":{"v":-3314.010126908437,"d":"($3,314)"}},{"$f":"'Trial 4'!AW13","v":{"v":17953.733325311485,"d":"$17,954"}},{"$f":"'Trial 4'!AX13","v":{"v":-32626.933514913842,"d":"($32,627)"}},{"$f":"'Trial 4'!AY13","v":{"v":-27830.754114923635,"d":"($27,831)"}},{"$f":"'Trial 4'!AZ13","v":{"v":-51410.68007230129,"d":"($51,411)"}},{"$f":"SUM('Trial 4'!AO13:AZ13)","v":{"v":-93940.34168266735,"d":"($93,940)"}},{"$f":"'Trial 4'!BB13","v":{"v":56312.18206442567,"d":"$56,312"}},{"$f":"'Trial 4'!BC13","v":{"v":54204.14847184981,"d":"$54,204"}},{"$f":"'Trial 4'!BD13","v":{"v":-33302.27582107725,"d":"($33,302)"}},{"$f":"'Trial 4'!BE13","v":{"v":-1179.952704893187,"d":"($1,180)"}},{"$f":"'Trial 4'!BF13","v":{"v":-31037.46962442495,"d":"($31,037)"}},{"$f":"'Trial 4'!BG13","v":{"v":20154.158535823306,"d":"$20,154"}},{"$f":"'Trial 4'!BH13","v":{"v":-28822.725171231563,"d":"($28,823)"}},{"$f":"'Trial 4'!BI13","v":{"v":771.955652543548,"d":"$772"}},{"$f":"'Trial 4'!BJ13","v":{"v":-59136.428034560515,"d":"($59,136)"}},{"$f":"'Trial 4'!BK13","v":{"v":29063.84673949174,"d":"$29,064"}},{"$f":"'Trial 4'!BL13","v":{"v":13703.59780826551,"d":"$13,704"}},{"$f":"'Trial 4'!BM13","v":{"v":26020.87475874177,"d":"$26,021"}},{"$f":"SUM('Trial 4'!BB13:BM13)","v":{"v":46751.912674953885,"d":"$46,752"}},{"$f":"'Trial 4'!BO13","v":{"v":21993.487750475386,"d":"$21,993"}},{"$f":"'Trial 4'!BP13","v":{"v":23900.925498768967,"d":"$23,901"}},{"$f":"'Trial 4'!BQ13","v":{"v":-23488.700915432924,"d":"($23,489)"}},{"$f":"'Trial 4'!BR13","v":{"v":5941.859837868308,"d":"$5,942"}},{"$f":"'Trial 4'!BS13","v":{"v":-37962.88905444794,"d":"($37,963)"}},{"$f":"'Trial 4'!BT13","v":{"v":18028.33717767317,"d":"$18,028"}},{"$f":"'Trial 4'!BU13","v":{"v":-14895.674941512723,"d":"($14,896)"}},{"$f":"'Trial 4'!BV13","v":{"v":-27116.66370926153,"d":"($27,117)"}},{"$f":"'Trial 4'!BW13","v":{"v":-38164.21754584467,"d":"($38,164)"}},{"$f":"'Trial 4'!BX13","v":{"v":24983.893304380625,"d":"$24,984"}},{"$f":"'Trial 4'!BY13","v":{"v":-7538.373580472655,"d":"($7,538)"}},{"$f":"'Trial 4'!BZ13","v":{"v":15682.41703336418,"d":"$15,682"}},{"$f":"SUM('Trial 4'!BO13:BZ13)","v":{"v":-38635.59914444182,"d":"($38,636)"}},{"$f":"'Trial 4'!CB13","v":{"v":-30507.27896610494,"d":"($30,507)"}},{"$f":"'Trial 4'!CC13","v":{"v":13716.06821603187,"d":"$13,716"}},{"$f":"'Trial 4'!CD13","v":{"v":-19453.010311466653,"d":"($19,453)"}},{"$f":"'Trial 4'!CE13","v":{"v":-12656.88685385338,"d":"($12,657)"}},{"$f":"'Trial 4'!CF13","v":{"v":3358.59068272582,"d":"$3,359"}},{"$f":"'Trial 4'!CG13","v":{"v":-15169.526776308398,"d":"($15,170)"}},{"$f":"'Trial 4'!CH13","v":{"v":60230.48829003073,"d":"$60,230"}},{"$f":"'Trial 4'!CI13","v":{"v":31016.939795451854,"d":"$31,017"}},{"$f":"'Trial 4'!CJ13","v":{"v":-5696.922343367144,"d":"($5,697)"}},{"$f":"'Trial 4'!CK13","v":{"v":33254.79666260802,"d":"$33,255"}},{"$f":"'Trial 4'!CL13","v":{"v":6210.9899307749965,"d":"$6,211"}},{"$f":"'Trial 4'!CM13","v":{"v":-23675.40005739629,"d":"($23,675)"}},{"$f":"SUM('Trial 4'!CB13:CM13)","v":{"v":40628.848269126494,"d":"$40,629"}},{"$f":"'Trial 4'!CO13","v":{"v":29723.943029980754,"d":"$29,724"}},{"$f":"'Trial 4'!CP13","v":{"v":20371.086297472877,"d":"$20,371"}},{"$f":"'Trial 4'!CQ13","v":{"v":29594.03693436529,"d":"$29,594"}},{"$f":"'Trial 4'!CR13","v":{"v":1790.1706838888208,"d":"$1,790"}},{"$f":"'Trial 4'!CS13","v":{"v":-26495.87914210977,"d":"($26,496)"}},{"$f":"'Trial 4'!CT13","v":{"v":-50175.08863166793,"d":"($50,175)"}},{"$f":"'Trial 4'!CU13","v":{"v":52796.00554096294,"d":"$52,796"}},{"$f":"'Trial 4'!CV13","v":{"v":15638.861603544303,"d":"$15,639"}},{"$f":"'Trial 4'!CW13","v":{"v":12510.572467345186,"d":"$12,511"}},{"$f":"'Trial 4'!CX13","v":{"v":-50028.975732548824,"d":"($50,029)"}},{"$f":"'Trial 4'!CY13","v":{"v":20484.045138426125,"d":"$20,484"}},{"$f":"'Trial 4'!CZ13","v":{"v":41805.04695721988,"d":"$41,805"}},{"$f":"SUM('Trial 4'!CO13:CZ13)","v":{"v":98013.82514687965,"d":"$98,014"}},{"$f":"'Trial 4'!DB13","v":{"v":-22623.435428112458,"d":"($22,623)"}},{"$f":"'Trial 4'!DC13","v":{"v":-39463.53761297841,"d":"($39,464)"}},{"$f":"'Trial 4'!DD13","v":{"v":20598.03932578012,"d":"$20,598"}},{"$f":"'Trial 4'!DE13","v":{"v":20812.46471808522,"d":"$20,812"}},{"$f":"'Trial 4'!DF13","v":{"v":4629.581966107576,"d":"$4,630"}},{"$f":"'Trial 4'!DG13","v":{"v":13117.988426586011,"d":"$13,118"}},{"$f":"'Trial 4'!DH13","v":{"v":-38986.927123137306,"d":"($38,987)"}},{"$f":"'Trial 4'!DI13","v":{"v":25151.11569575954,"d":"$25,151"}},{"$f":"'Trial 4'!DJ13","v":{"v":-18969.19764783275,"d":"($18,969)"}},{"$f":"'Trial 4'!DK13","v":{"v":19758.804768326318,"d":"$19,759"}},{"$f":"'Trial 4'!DL13","v":{"v":9416.958717817426,"d":"$9,417"}},{"$f":"'Trial 4'!DM13","v":{"v":-16204.112641899692,"d":"($16,204)"}},{"$f":"SUM('Trial 4'!DB13:DM13)","v":{"v":-22762.256835498396,"d":"($22,762)"}},{"$f":"'Trial 4'!DO13","v":{"v":45021.68885464596,"d":"$45,022"}},{"$f":"'Trial 4'!DP13","v":{"v":58493.77107201961,"d":"$58,494"}},{"$f":"'Trial 4'!DQ13","v":{"v":-31056.914554912048,"d":"($31,057)"}},{"$f":"'Trial 4'!DR13","v":{"v":48603.28165407464,"d":"$48,603"}},{"$f":"'Trial 4'!DS13","v":{"v":54624.45147073265,"d":"$54,624"}},{"$f":"'Trial 4'!DT13","v":{"v":27750.281944568927,"d":"$27,750"}},{"$f":"'Trial 4'!DU13","v":{"v":-17288.670041073852,"d":"($17,289)"}},{"$f":"'Trial 4'!DV13","v":{"v":-7393.100174849787,"d":"($7,393)"}},{"$f":"'Trial 4'!DW13","v":{"v":-60027.177685637966,"d":"($60,027)"}},{"$f":"'Trial 4'!DX13","v":{"v":41630.18044313425,"d":"$41,630"}},{"$f":"'Trial 4'!DY13","v":{"v":33999.85327450702,"d":"$34,000"}},{"$f":"'Trial 4'!DZ13","v":{"v":48129.0940371144,"d":"$48,129"}},{"$f":"SUM('Trial 4'!DO13:DZ13)","v":{"v":242486.74029432383,"d":"$242,487"}},{"$f":"'Trial 4'!EB13","v":{"v":-4392.885884112604,"d":"($4,393)"}},{"$f":"'Trial 4'!EC13","v":{"v":-62926.2547608639,"d":"($62,926)"}},{"$f":"'Trial 4'!ED13","v":{"v":-12050.407245586657,"d":"($12,050)"}},{"$f":"'Trial 4'!EE13","v":{"v":37711.49770152302,"d":"$37,711"}},{"$f":"'Trial 4'!EF13","v":{"v":49189.93313833568,"d":"$49,190"}},{"$f":"'Trial 4'!EG13","v":{"v":-14659.664147465492,"d":"($14,660)"}},{"$f":"'Trial 4'!EH13","v":{"v":22304.91212833737,"d":"$22,305"}},{"$f":"'Trial 4'!EI13","v":{"v":-50868.602324567146,"d":"($50,869)"}},{"$f":"'Trial 4'!EJ13","v":{"v":-51266.669488626496,"d":"($51,267)"}},{"$f":"'Trial 4'!EK13","v":{"v":31467.483951525875,"d":"$31,467"}},{"$f":"'Trial 4'!EL13","v":{"v":-36842.28132230807,"d":"($36,842)"}},{"$f":"'Trial 4'!EM13","v":{"v":23652.703104632477,"d":"$23,653"}},{"$f":"SUM('Trial 4'!EB13:EM13)","v":{"v":-68680.23514917595,"d":"($68,680)"}}]
[{"$f":"Labels!B100","v":"Trial 05"},{"$f":"'Trial 5'!B13","v":{"v":-39650.2324124195,"d":"($39,650)"}},{"$f":"'Trial 5'!C13","v":{"v":-29291.953065917616,"d":"($29,292)"}},{"$f":"'Trial 5'!D13","v":{"v":37929.647418563385,"d":"$37,930"}},{"$f":"'Trial 5'!E13","v":{"v":-51758.09587141775,"d":"($51,758)"}},{"$f":"'Trial 5'!F13","v":{"v":-20088.919316370753,"d":"($20,089)"}},{"$f":"'Trial 5'!G13","v":{"v":-24461.142678906395,"d":"($24,461)"}},{"$f":"'Trial 5'!H13","v":{"v":-2021.6945032715391,"d":"($2,022)"}},{"$f":"'Trial 5'!I13","v":{"v":19581.429177416983,"d":"$19,581"}},{"$f":"'Trial 5'!J13","v":{"v":60300.34428721426,"d":"$60,300"}},{"$f":"'Trial 5'!K13","v":{"v":-27658.347985496253,"d":"($27,658)"}},{"$f":"'Trial 5'!L13","v":{"v":-21402.970121025435,"d":"($21,403)"}},{"$f":"'Trial 5'!M13","v":{"v":-979.9906312181542,"d":"($980)"}},{"$f":"SUM('Trial 5'!B13:M13)","v":{"v":-99501.92570284876,"d":"($99,502)"}},{"$f":"'Trial 5'!O13","v":{"v":-10192.535069716321,"d":"($10,193)"}},{"$f":"'Trial 5'!P13","v":{"v":4001.15825170857,"d":"$4,001"}},{"$f":"'Trial 5'!Q13","v":{"v":-8156.062361187418,"d":"($8,156)"}},{"$f":"'Trial 5'!R13","v":{"v":7194.84808841105,"d":"$7,195"}},{"$f":"'Trial 5'!S13","v":{"v":-41218.952847159744,"d":"($41,219)"}},{"$f":"'Trial 5'!T13","v":{"v":60178.488554178955,"d":"$60,178"}},{"$f":"'Trial 5'!U13","v":{"v":14342.461577780192,"d":"$14,342"}},{"$f":"'Trial 5'!V13","v":{"v":-3770.6396433822897,"d":"($3,771)"}},{"$f":"'Trial 5'!W13","v":{"v":9143.536529057712,"d":"$9,144"}},{"$f":"'Trial 5'!X13","v":{"v":-34162.715981189365,"d":"($34,163)"}},{"$f":"'Trial 5'!Y13","v":{"v":56635.79105968711,"d":"$56,636"}},{"$f":"'Trial 5'!Z13","v":{"v":-13697.445848711965,"d":"($13,697)"}},{"$f":"SUM('Trial 5'!O13:Z13)","v":{"v":40297.93230947649,"d":"$40,298"}},{"$f":"'Trial 5'!AB13","v":{"v":17025.79277879392,"d":"$17,026"}},{"$f":"'Trial 5'!AC13","v":{"v":53.56278618977655,"d":"$54"}},{"$f":"'Trial 5'!AD13","v":{"v":51916.47256778126,"d":"$51,916"}},{"$f":"'Trial 5'!AE13","v":{"v":-57513.0075059587,"d":"($57,513)"}},{"$f":"'Trial 5'!AF13","v":{"v":-47366.003512056726,"d":"($47,366)"}},{"$f":"'Trial 5'!AG13","v":{"v":-15849.324579626085,"d":"($15,849)"}},{"$f":"'Trial 5'!AH13","v":{"v":14558.378990651116,"d":"$14,558"}},{"$f":"'Trial 5'!AI13","v":{"v":-33538.66396652808,"d":"($33,539)"}},{"$f":"'Trial 5'!AJ13","v":{"v":8302.986653448945,"d":"$8,303"}},{"$f":"'Trial 5'!AK13","v":{"v":-34845.47069587546,"d":"($34,845)"}},{"$f":"'Trial 5'!AL13","v":{"v":-8511.018169403314,"d":"($8,511)"}},{"$f":"'Trial 5'!AM13","v":{"v":-31118.41148495021,"d":"($31,118)"}},{"$f":"SUM('Trial 5'!AB13:AM13)","v":{"v":-136884.70613753356,"d":"($136,885)"}},{"$f":"'Trial 5'!AO13","v":{"v":812.1366937754829,"d":"$812"}},{"$f":"'Trial 5'!AP13","v":{"v":4186.596115683979,"d":"$4,187"}},{"$f":"'Trial 5'!AQ13","v":{"v":-11987.282454032424,"d":"($11,987)"}},{"$f":"'Trial 5'!AR13","v":{"v":16112.180967564998,"d":"$16,112"}},{"$f":"'Trial 5'!AS13","v":{"v":21728.168688760372,"d":"$21,728"}},{"$f":"'Trial 5'!AT13","v":{"v":-16522.84846504427,"d":"($16,523)"}},{"$f":"'Trial 5'!AU13","v":{"v":13092.32350362625,"d":"$13,092"}},{"$f":"'Trial 5'!AV13","v":{"v":3156.326865498278,"d":"$3,156"}},{"$f":"'Trial 5'!AW13","v":{"v":-8014.656310642254,"d":"($8,015)"}},{"$f":"'Trial 5'!AX13","v":{"v":-7470.853232386881,"d":"($7,471)"}},{"$f":"'Trial 5'!AY13","v":{"v":8946.724217486339,"d":"$8,947"}},{"$f":"'Trial 5'!AZ13","v":{"v":-6829.962061732271,"d":"($6,830)"}},{"$f":"SUM('Trial 5'!AO13:AZ13)","v":{"v":17208.854528557604,"d":"$17,209"}},{"$f":"'Trial 5'!BB13","v":{"v":-21512.850611501395,"d":"($21,513)"}},{"$f":"'Trial 5'!BC13","v":{"v":-41030.87948538585,"d":"($41,031)"}},{"$f":"'Trial 5'!BD13","v":{"v":-57566.45616864928,"d":"($57,566)"}},{"$f":"'Trial 5'!BE13","v":{"v":15761.504906859203,"d":"$15,762"}},{"$f":"'Trial 5'!BF13","v":{"v":-15814.92225497996,"d":"($15,815)"}},{"$f":"'Trial 5'!BG13","v":{"v":8495.240315553308,"d":"$8,495"}},{"$f":"'Trial 5'!BH13","v":{"v":-43321.473914088245,"d":"($43,321)"}},{"$f":"'Trial 5'!BI13","v":{"v":9982.30655968981,"d":"$9,982"}},{"$f":"'Trial 5'!BJ13","v":{"v":39221.68597441646,"d":"$39,222"}},{"$f":"'Trial 5'!BK13","v":{"v":13488.36192443507,"d":"$13,488"}},{"$f":"'Trial 5'!BL13","v":{"v":40063.14325297275,"d":"$40,063"}},{"$f":"'Trial 5'!BM13","v":{"v":9779.803928562582,"d":"$9,780"}},{"$f":"SUM('Trial 5'!BB13:BM13)","v":{"v":-42454.535572115536,"d":"($42,455)"}},{"$f":"'Trial 5'!BO13","v":{"v":38239.05289020324,"d":"$38,239"}},{"$f":"'Trial 5'!BP13","v":{"v":55385.7283022582,"d":"$55,386"}},{"$f":"'Trial 5'!BQ13","v":{"v":53086.48409214897,"d":"$53,086"}},{"$f":"'Trial 5'!BR13","v":{"v":-37148.48405565554,"d":"($37,148)"}},{"$f":"'Trial 5'!BS13","v":{"v":114.50539313923751,"d":"$115"}},{"$f":"'Trial 5'!BT13","v":{"v":57425.70866167053,"d":"$57,426"}},{"$f":"'Trial 5'!BU13","v":{"v":-34382.98062648527,"d":"($34,383)"}},{"$f":"'Trial 5'!BV13","v":{"v":-6633.492656202047,"d":"($6,633)"}},{"$f":"'Trial 5'!BW13","v":{"v":5480.820448015299,"d":"$5,481"}},{"$f":"'Trial 5'!BX13","v":{"v":44497.352234508406,"d":"$44,497"}},{"$f":"'Trial 5'!BY13","v":{"v":48268.93975292922,"d":"$48,269"}},{"$f":"'Trial 5'!BZ13","v":{"v":35345.448484856315,"d":"$35,345"}},{"$f":"SUM('Trial 5'!BO13:BZ13)","v":{"v":259679.08292138655,"d":"$259,679"}},{"$f":"'Trial 5'!CB13","v":{"v":-5055.1247134358355,"d":"($5,055)"}},{"$f":"'Trial 5'!CC13","v":{"v":2190.406178540284,"d":"$2,190"}},{"$f":"'Trial 5'!CD13","v":{"v":-4112.685856142854,"d":"($4,113)"}},{"$f":"'Trial 5'!CE13","v":{"v":-19600.80086136598,"d":"($19,601)"}},{"$f":"'Trial 5'!CF13","v":{"v":6662.350109609606,"d":"$6,662"}},{"$f":"'Trial 5'!CG13","v":{"v":59267.06550777839,"d":"$59,267"}},{"$f":"'Trial 5'!CH13","v":{"v":-22511.2559169972,"d":"($22,511)"}},{"$f":"'Trial 5'!CI13","v":{"v":-28916.37039318779,"d":"($28,916)"}},{"$f":"'Trial 5'!CJ13","v":{"v":11045.060295193129,"d":"$11,045"}},{"$f":"'Trial 5'!CK13","v":{"v":55091.679030414256,"d":"$55,092"}},{"$f":"'Trial 5'!CL13","v":{"v":-31658.522230726823,"d":"($31,659)"}},{"$f":"'Trial 5'!CM13","v":{"v":17393.105306895315,"d":"$17,393"}},{"$f":"SUM('Trial 5'!CB13:CM13)","v":{"v":39794.90645657449,"d":"$39,795"}},{"$f":"'Trial 5'!CO13","v":{"v":14150.564263191118,"d":"$14,151"}},{"$f":"'Trial 5'!CP13","v":{"v":-32142.911036852845,"d":"($32,143)"}},{"$f":"'Trial 5'!CQ13","v":{"v":47229.83090567274,"d":"$47,230"}},{"$f":"'Trial 5'!CR13","v":{"v":-25637.57198418483,"d":"($25,638)"}},{"$f":"'Trial 5'!CS13","v":{"v":-15901.51525836036,"d":"($15,902)"}},{"$f":"'Trial 5'!CT13","v":{"v":17047.219829629626,"d":"$17,047"}},{"$f":"'Trial 5'!CU13","v":{"v":7581.97127269533,"d":"$7,582"}},{"$f":"'Trial 5'!CV13","v":{"v":-9248.67545964924,"d":"($9,249)"}},{"$f":"'Trial 5'!CW13","v":{"v":30876.68241598688,"d":"$30,877"}},{"$f":"'Trial 5'!CX13","v":{"v":-15036.777706406552,"d":"($15,037)"}},{"$f":"'Trial 5'!CY13","v":{"v":-2497.4314106777265,"d":"($2,497)"}},{"$f":"'Trial 5'!CZ13","v":{"v":-50501.58830379033,"d":"($50,502)"}},{"$f":"SUM('Trial 5'!CO13:CZ13)","v":{"v":-34080.2024727462,"d":"($34,080)"}},{"$f":"'Trial 5'!DB13","v":{"v":19125.27316382408,"d":"$19,125"}},{"$f":"'Trial 5'!DC13","v":{"v":1779.4935734268327,"d":"$1,779"}},{"$f":"'Trial 5'!DD13","v":{"v":10206.529848312292,"d":"$10,207"}},{"$f":"'Trial 5'!DE13","v":{"v":-21804.417611582878,"d":"($21,804)"}},{"$f":"'Trial 5'!DF13","v":{"v":-29151.529783572132,"d":"($29,152)"}},{"$f":"'Trial 5'!DG13","v":{"v":29915.22657918746,"d":"$29,915"}},{"$f":"'Trial 5'!DH13","v":{"v":54266.442130725336,"d":"$54,266"}},{"$f":"'Trial 5'!DI13","v":{"v":1692.12288398782,"d":"$1,692"}},{"$f":"'Trial 5'!DJ13","v":{"v":-29578.26958024101,"d":"($29,578)"}},{"$f":"'Trial 5'!DK13","v":{"v":-6537.554217388505,"d":"($6,538)"}},{"$f":"'Trial 5'!DL13","v":{"v":-34286.04730625208,"d":"($34,286)"}},{"$f":"'Trial 5'!DM13","v":{"v":901.1430093898069,"d":"$901"}},{"$f":"SUM('Trial 5'!DB13:DM13)","v":{"v":-3471.58731018298,"d":"($3,472)"}},{"$f":"'Trial 5'!DO13","v":{"v":-17227.72968796334,"d":"($17,228)"}},{"$f":"'Trial 5'!DP13","v":{"v":-1980.7109136377392,"d":"($1,981)"}},{"$f":"'Trial 5'!DQ13","v":{"v":48688.41262244146,"d":"$48,688"}},{"$f":"'Trial 5'!DR13","v":{"v":23219.892368951812,"d":"$23,220"}},{"$f":"'Trial 5'!DS13","v":{"v":16958.21621954948,"d":"$16,958"}},{"$f":"'Trial 5'!DT13","v":{"v":34168.857475961406,"d":"$34,169"}},{"$f":"'Trial 5'!DU13","v":{"v":-25272.549418638155,"d":"($25,273)"}},{"$f":"'Trial 5'!DV13","v":{"v":4139.5934126991515,"d":"$4,140"}},{"$f":"'Trial 5'!DW13","v":{"v":26663.88868985827,"d":"$26,664"}},{"$f":"'Trial 5'!DX13","v":{"v":-17031.748825899285,"d":"($17,032)"}},{"$f":"'Trial 5'!DY13","v":{"v":-607.5176028900723,"d":"($608)"}},{"$f":"'Trial 5'!DZ13","v":{"v":-29494.682253837796,"d":"($29,495)"}},{"$f":"SUM('Trial 5'!DO13:DZ13)","v":{"v":62223.92208659517,"d":"$62,224"}},{"$f":"'Trial 5'!EB13","v":{"v":-2098.9082508232077,"d":"($2,099)"}},{"$f":"'Trial 5'!EC13","v":{"v":37588.11468819673,"d":"$37,588"}},{"$f":"'Trial 5'!ED13","v":{"v":-25375.563552905765,"d":"($25,376)"}},{"$f":"'Trial 5'!EE13","v":{"v":5699.159640434842,"d":"$5,699"}},{"$f":"'Trial 5'!EF13","v":{"v":3880.4505347352174,"d":"$3,880"}},{"$f":"'Trial 5'!EG13","v":{"v":33808.98902580374,"d":"$33,809"}},{"$f":"'Trial 5'!EH13","v":{"v":-45524.5713104364,"d":"($45,525)"}},{"$f":"'Trial 5'!EI13","v":{"v":-32927.50242355345,"d":"($32,928)"}},{"$f":"'Trial 5'!EJ13","v":{"v":-18449.422666634866,"d":"($18,449)"}},{"$f":"'Trial 5'!EK13","v":{"v":2553.949030594771,"d":"$2,554"}},{"$f":"'Trial 5'!EL13","v":{"v":3966.0220006858876,"d":"$3,966"}},{"$f":"'Trial 5'!EM13","v":{"v":-2533.042367332149,"d":"($2,533)"}},{"$f":"SUM('Trial 5'!EB13:EM13)","v":{"v":-39412.325651234656,"d":"($39,412)"}}]
[{"$f":"Labels!B101","v":"Trial 06"},{"$f":"'Trial 6'!B13","v":{"v":7097.261459265176,"d":"$7,097"}},{"$f":"'Trial 6'!C13","v":{"v":-60081.22409452439,"d":"($60,081)"}},{"$f":"'Trial 6'!D13","v":{"v":31745.86196676462,"d":"$31,746"}},{"$f":"'Trial 6'!E13","v":{"v":48657.95833155075,"d":"$48,658"}},{"$f":"'Trial 6'!F13","v":{"v":16772.726560014227,"d":"$16,773"}},{"$f":"'Trial 6'!G13","v":{"v":-24392.40192717151,"d":"($24,392)"}},{"$f":"'Trial 6'!H13","v":{"v":-5070.374808476647,"d":"($5,070)"}},{"$f":"'Trial 6'!I13","v":{"v":-6147.950254410328,"d":"($6,148)"}},{"$f":"'Trial 6'!J13","v":{"v":32882.2956413625,"d":"$32,882"}},{"$f":"'Trial 6'!K13","v":{"v":-1061.7166985126983,"d":"($1,062)"}},{"$f":"'Trial 6'!L13","v":{"v":51355.84242328839,"d":"$51,356"}},{"$f":"'Trial 6'!M13","v":{"v":-2155.966400215614,"d":"($2,156)"}},{"$f":"SUM('Trial 6'!B13:M13)","v":{"v":89602.31219893447,"d":"$89,602"}},{"$f":"'Trial 6'!O13","v":{"v":42240.23264091678,"d":"$42,240"}},{"$f":"'Trial 6'!P13","v":{"v":-9537.362123535484,"d":"($9,537)"}},{"$f":"'Trial 6'!Q13","v":{"v":42965.104149906394,"d":"$42,965"}},{"$f":"'Trial 6'!R13","v":{"v":28943.792288120934,"d":"$28,944"}},{"$f":"'Trial 6'!S13","v":{"v":-55353.35961994342,"d":"($55,353)"}},{"$f":"'Trial 6'!T13","v":{"v":-9613.858682942873,"d":"($9,614)"}},{"$f":"'Trial 6'!U13","v":{"v":20412.203353761488,"d":"$20,412"}},{"$f":"'Trial 6'!V13","v":{"v":-23558.278709325452,"d":"($23,558)"}},{"$f":"'Trial 6'!W13","v":{"v":-16181.746563460383,"d":"($16,182)"}},{"$f":"'Trial 6'!X13","v":{"v":11927.691953458616,"d":"$11,928"}},{"$f":"'Trial 6'!Y13","v":{"v":30710.377039093742,"d":"$30,710"}},{"$f":"'Trial 6'!Z13","v":{"v":-31957.699888224757,"d":"($31,958)"}},{"$f":"SUM('Trial 6'!O13:Z13)","v":{"v":30997.095837825596,"d":"$30,997"}},{"$f":"'Trial 6'!AB13","v":{"v":8190.425206156469,"d":"$8,190"}},{"$f":"'Trial 6'!AC13","v":{"v":19200.2259828406,"d":"$19,200"}},{"$f":"'Trial 6'!AD13","v":{"v":37623.848025696054,"d":"$37,624"}},{"$f":"'Trial 6'!AE13","v":{"v":12428.185304776274,"d":"$12,428"}},{"$f":"'Trial 6'!AF13","v":{"v":37675.964367388515,"d":"$37,676"}},{"$f":"'Trial 6'!AG13","v":{"v":10626.412872223002,"d":"$10,626"}},{"$f":"'Trial 6'!AH13","v":{"v":28283.671022694038,"d":"$28,284"}},{"$f":"'Trial 6'!AI13","v":{"v":-5252.330492476086,"d":"($5,252)"}},{"$f":"'Trial 6'!AJ13","v":{"v":-20836.570872420856,"d":"($20,837)"}},{"$f":"'Trial 6'!AK13","v":{"v":5448.826468238082,"d":"$5,449"}},{"$f":"'Trial 6'!AL13","v":{"v":32170.889353708793,"d":"$32,171"}},{"$f":"'Trial 6'!AM13","v":{"v":50225.07367102981,"d":"$50,225"}},{"$f":"SUM('Trial 6'!AB13:AM13)","v":{"v":215784.6209098547,"d":"$215,785"}},{"$f":"'Trial 6'!AO13","v":{"v":12308.2934595026,"d":"$12,308"}},{"$f":"'Trial 6'!AP13","v":{"v":-6989.07072844021,"d":"($6,989)"}},{"$f":"'Trial 6'!AQ13","v":{"v":-17845.82975693075,"d":"($17,846)"}},{"$f":"'Trial 6'!AR13","v":{"v":6889.564085899187,"d":"$6,890"}},{"$f":"'Trial 6'!AS13","v":{"v":-8886.81036243041,"d":"($8,887)"}},{"$f":"'Trial 6'!AT13","v":{"v":-21330.810124017196,"d":"($21,331)"}},{"$f":"'Trial 6'!AU13","v":{"v":-54057.79700858819,"d":"($54,058)"}},{"$f":"'Trial 6'!AV13","v":{"v":9719.172898720044,"d":"$9,719"}},{"$f":"'Trial 6'!AW13","v":{"v":-16836.037029002553,"d":"($16,836)"}},{"$f":"'Trial 6'!AX13","v":{"v":-40312.76743256026,"d":"($40,313)"}},{"$f":"'Trial 6'!AY13","v":{"v":16020.381611093046,"d":"$16,020"}},{"$f":"'Trial 6'!AZ13","v":{"v":44541.7880164927,"d":"$44,542"}},{"$f":"SUM('Trial 6'!AO13:AZ13)","v":{"v":-76779.92237026198,"d":"($76,780)"}},{"$f":"'Trial 6'!BB13","v":{"v":-54345.37339104897,"d":"($54,345)"}},{"$f":"'Trial 6'!BC13","v":{"v":-30562.76295898453,"d":"($30,563)"}},{"$f":"'Trial 6'!BD13","v":{"v":-19592.889635443837,"d":"($19,593)"}},{"$f":"'Trial 6'!BE13","v":{"v":-26611.537368077257,"d":"($26,612)"}},{"$f":"'Trial 6'!BF13","v":{"v":-2367.598272324198,"d":"($2,368)"}},{"$f":"'Trial 6'!BG13","v":{"v":12317.428140192142,"d":"$12,317"}},{"$f":"'Trial 6'!BH13","v":{"v":29318.38879853643,"d":"$29,318"}},{"$f":"'Trial 6'!BI13","v":{"v":-21778.23090514218,"d":"($21,778)"}},{"$f":"'Trial 6'!BJ13","v":{"v":48726.3499497053,"d":"$48,726"}},{"$f":"'Trial 6'!BK13","v":{"v":11570.60932584684,"d":"$11,571"}},{"$f":"'Trial 6'!BL13","v":{"v":-48999.61345239799,"d":"($49,000)"}},{"$f":"'Trial 6'!BM13","v":{"v":12090.722162415776,"d":"$12,091"}},{"$f":"SUM('Trial 6'!BB13:BM13)","v":{"v":-90234.50760672244,"d":"($90,235)"}},{"$f":"'Trial 6'!BO13","v":{"v":-56240.64712610301,"d":"($56,241)"}},{"$f":"'Trial 6'!BP13","v":{"v":-11918.223935382684,"d":"($11,918)"}},{"$f":"'Trial 6'!BQ13","v":{"v":-17665.873655235624,"d":"($17,666)"}},{"$f":"'Trial 6'!BR13","v":{"v":-30075.79499979819,"d":"($30,076)"}},{"$f":"'Trial 6'!BS13","v":{"v":-58066.000732462555,"d":"($58,066)"}},{"$f":"'Trial 6'!BT13","v":{"v":32759.090035053607,"d":"$32,759"}},{"$f":"'Trial 6'!BU13","v":{"v":1172.6082888424742,"d":"$1,173"}},{"$f":"'Trial 6'!BV13","v":{"v":15639.87151646296,"d":"$15,640"}},{"$f":"'Trial 6'!BW13","v":{"v":26087.04292114235,"d":"$26,087"}},{"$f":"'Trial 6'!BX13","v":{"v":-28511.79581645341,"d":"($28,512)"}},{"$f":"'Trial 6'!BY13","v":{"v":49327.04078108121,"d":"$49,327"}},{"$f":"'Trial 6'!BZ13","v":{"v":27926.32164996072,"d":"$27,926"}},{"$f":"SUM('Trial 6'!BO13:BZ13)","v":{"v":-49566.361072892134,"d":"($49,566)"}},{"$f":"'Trial 6'!CB13","v":{"v":2438.569267745031,"d":"$2,439"}},{"$f":"'Trial 6'!CC13","v":{"v":-5684.566402668566,"d":"($5,685)"}},{"$f":"'Trial 6'!CD13","v":{"v":50210.18730374657,"d":"$50,210"}},{"$f":"'Trial 6'!CE13","v":{"v":-10385.173398587069,"d":"($10,385)"}},{"$f":"'Trial 6'!CF13","v":{"v":-14704.69344795329,"d":"($14,705)"}},{"$f":"'Trial 6'!CG13","v":{"v":26642.032432639604,"d":"$26,642"}},{"$f":"'Trial 6'!CH13","v":{"v":24853.42244997575,"d":"$24,853"}},{"$f":"'Trial 6'!CI13","v":{"v":38566.349187494394,"d":"$38,566"}},{"$f":"'Trial 6'!CJ13","v":{"v":2575.8284740574136,"d":"$2,576"}},{"$f":"'Trial 6'!CK13","v":{"v":15448.595687772904,"d":"$15,449"}},{"$f":"'Trial 6'!CL13","v":{"v":37376.343436795665,"d":"$37,376"}},{"$f":"'Trial 6'!CM13","v":{"v":28597.584056028125,"d":"$28,598"}},{"$f":"SUM('Trial 6'!CB13:CM13)","v":{"v":195934.47904704654,"d":"$195,934"}},{"$f":"'Trial 6'!CO13","v":{"v":8836.268564771854,"d":"$8,836"}},{"$f":"'Trial 6'!CP13","v":{"v":37329.600607423214,"d":"$37,330"}},{"$f":"'Trial 6'!CQ13","v":{"v":2654.704492591093,"d":"$2,655"}},{"$f":"'Trial 6'!CR13","v":{"v":3700.679610744571,"d":"$3,701"}},{"$f":"'Trial 6'!CS13","v":{"v":-25509.37639413494,"d":"($25,509)"}},{"$f":"'Trial 6'!CT13","v":{"v":-21352.736505448316,"d":"($21,353)"}},{"$f":"'Trial 6'!CU13","v":{"v":51945.80948682899,"d":"$51,946"}},{"$f":"'Trial 6'!CV13","v":{"v":-32414.096578877325,"d":"($32,414)"}},{"$f":"'Trial 6'!CW13","v":{"v":48872.10089119166,"d":"$48,872"}},{"$f":"'Trial 6'!CX13","v":{"v":10841.289053415208,"d":"$10,841"}},{"$f":"'Trial 6'!CY13","v":{"v":-25826.61790593002,"d":"($25,827)"}},{"$f":"'Trial 6'!CZ13","v":{"v":17443.08558626945,"d":"$17,443"}},{"$f":"SUM('Trial 6'!CO13:CZ13)","v":{"v":76520.71090884545,"d":"$76,521"}},{"$f":"'Trial 6'!DB13","v":{"v":21040.97589011136,"d":"$21,041"}},{"$f":"'Trial 6'!DC13","v":{"v":-49875.363793351156,"d":"($49,875)"}},{"$f":"'Trial 6'!DD13","v":{"v":-17096.25595580262,"d":"($17,096)"}},{"$f":"'Trial 6'!DE13","v":{"v":676.2316876325374,"d":"$676"}},{"$f":"'Trial 6'!DF13","v":{"v":-43769.510488587344,"d":"($43,770)"}},{"$f":"'Trial 6'!DG13","v":{"v":-7651.597471580891,"d":"($7,652)"}},{"$f":"'Trial 6'!DH13","v":{"v":-37253.046192794776,"d":"($37,253)"}},{"$f":"'Trial 6'!DI13","v":{"v":-39906.00847651646,"d":"($39,906)"}},{"$f":"'Trial 6'!DJ13","v":{"v":-50704.38690591303,"d":"($50,704)"}},{"$f":"'Trial 6'!DK13","v":{"v":5742.7231149288355,"d":"$5,743"}},{"$f":"'Trial 6'!DL13","v":{"v":-26420.978384357128,"d":"($26,421)"}},{"$f":"'Trial 6'!DM13","v":{"v":-11202.424837875826,"d":"($11,202)"}},{"$f":"SUM('Trial 6'!DB13:DM13)","v":{"v":-256419.6418141065,"d":"($256,420)"}},{"$f":"'Trial 6'!DO13","v":{"v":35494.73462627661,"d":"$35,495"}},{"$f":"'Trial 6'!DP13","v":{"v":-22572.909633094783,"d":"($22,573)"}},{"$f":"'Trial 6'!DQ13","v":{"v":-19361.26796269074,"d":"($19,361)"}},{"$f":"'Trial 6'!DR13","v":{"v":166.32412138013765,"d":"$166"}},{"$f":"'Trial 6'!DS13","v":{"v":-5243.926350736339,"d":"($5,244)"}},{"$f":"'Trial 6'!DT13","v":{"v":19790.650693293384,"d":"$19,791"}},{"$f":"'Trial 6'!DU13","v":{"v":34206.14721473206,"d":"$34,206"}},{"$f":"'Trial 6'!DV13","v":{"v":39774.68206610601,"d":"$39,775"}},{"$f":"'Trial 6'!DW13","v":{"v":7088.237083882459,"d":"$7,088"}},{"$f":"'Trial 6'!DX13","v":{"v":25718.725707004935,"d":"$25,719"}},{"$f":"'Trial 6'!DY13","v":{"v":-6267.032067356863,"d":"($6,267)"}},{"$f":"'Trial 6'!DZ13","v":{"v":-2354.1277268188633,"d":"($2,354)"}},{"$f":"SUM('Trial 6'!DO13:DZ13)","v":{"v":106440.237771978,"d":"$106,440"}},{"$f":"'Trial 6'!EB13","v":{"v":34608.6645465008,"d":"$34,609"}},{"$f":"'Trial 6'!EC13","v":{"v":1899.1234412860235,"d":"$1,899"}},{"$f":"'Trial 6'!ED13","v":{"v":15970.428893360007,"d":"$15,970"}},{"$f":"'Trial 6'!EE13","v":{"v":25251.942823339745,"d":"$25,252"}},{"$f":"'Trial 6'!EF13","v":{"v":-391.99306743090614,"d":"($392)"}},{"$f":"'Trial 6'!EG13","v":{"v":13830.755280814972,"d":"$13,831"}},{"$f":"'Trial 6'!EH13","v":{"v":-639.3775377046401,"d":"($639)"}},{"$f":"'Trial 6'!EI13","v":{"v":13022.25524516249,"d":"$13,022"}},{"$f":"'Trial 6'!EJ13","v":{"v":40131.384618030774,"d":"$40,131"}},{"$f":"'Trial 6'!EK13","v":{"v":53152.741833969296,"d":"$53,153"}},{"$f":"'Trial 6'!EL13","v":{"v":-36255.1164735614,"d":"($36,255)"}},{"$f":"'Trial 6'!EM13","v":{"v":-17805.785150516247,"d":"($17,806)"}},{"$f":"SUM('Trial 6'!EB13:EM13)","v":{"v":142775.02445325092,"d":"$142,775"}}]
[{"$f":"Labels!B102","v":"Trial 07"},{"$f":"'Trial 7'!B13","v":{"v":-28712.816261575543,"d":"($28,713)"}},{"$f":"'Trial 7'!C13","v":{"v":24384.413718131396,"d":"$24,384"}},{"$f":"'Trial 7'!D13","v":{"v":16210.58819672658,"d":"$16,211"}},{"$f":"'Trial 7'!E13","v":{"v":-7323.255715357175,"d":"($7,323)"}},{"$f":"'Trial 7'!F13","v":{"v":32511.96289862017,"d":"$32,512"}},{"$f":"'Trial 7'!G13","v":{"v":34417.97416890158,"d":"$34,418"}},{"$f":"'Trial 7'!H13","v":{"v":32348.874196227494,"d":"$32,349"}},{"$f":"'Trial 7'!I13","v":{"v":40843.43049231337,"d":"$40,843"}},{"$f":"'Trial 7'!J13","v":{"v":-7519.870182025462,"d":"($7,520)"}},{"$f":"'Trial 7'!K13","v":{"v":-22454.723559780447,"d":"($22,455)"}},{"$f":"'Trial 7'!L13","v":{"v":-2497.8263558694575,"d":"($2,498)"}},{"$f":"'Trial 7'!M13","v":{"v":-8691.869881669752,"d":"($8,692)"}},{"$f":"SUM('Trial 7'!B13:M13)","v":{"v":103516.88171464276,"d":"$103,517"}},{"$f":"'Trial 7'!O13","v":{"v":6303.89629923563,"d":"$6,304"}},{"$f":"'Trial 7'!P13","v":{"v":37871.55742730813,"d":"$37,872"}},{"$f":"'Trial 7'!Q13","v":{"v":34377.26653040209,"d":"$34,377"}},{"$f":"'Trial 7'!R13","v":{"v":25633.081041504753,"d":"$25,633"}},{"$f":"'Trial 7'!S13","v":{"v":12320.017735507192,"d":"$12,320"}},{"$f":"'Trial 7'!T13","v":{"v":31200.01230944094,"d":"$31,200"}},{"$f":"'Trial 7'!U13","v":{"v":-3878.1689956280766,"d":"($3,878)"}},{"$f":"'Trial 7'!V13","v":{"v":32531.59039330668,"d":"$32,532"}},{"$f":"'Trial 7'!W13","v":{"v":44412.00563381586,"d":"$44,412"}},{"$f":"'Trial 7'!X13","v":{"v":30083.140849055366,"d":"$30,083"}},{"$f":"'Trial 7'!Y13","v":{"v":3533.123124234496,"d":"$3,533"}},{"$f":"'Trial 7'!Z13","v":{"v":-47115.848307233755,"d":"($47,116)"}},{"$f":"SUM('Trial 7'!O13:Z13)","v":{"v":207271.67404094932,"d":"$207,272"}},{"$f":"'Trial 7'!AB13","v":{"v":-51539.13707810217,"d":"($51,539)"}},{"$f":"'Trial 7'!AC13","v":{"v":797.6983436095308,"d":"$798"}},{"$f":"'Trial 7'!AD13","v":{"v":14915.200629333815,"d":"$14,915"}},{"$f":"'Trial 7'!AE13","v":{"v":32621.93190663395,"d":"$32,622"}},{"$f":"'Trial 7'!AF13","v":{"v":-18420.04101957844,"d":"($18,420)"}},{"$f":"'Trial 7'!AG13","v":{"v":21543.043691351202,"d":"$21,543"}},{"$f":"'Trial 7'!AH13","v":{"v":18892.9324354508,"d":"$18,893"}},{"$f":"'Trial 7'!AI13","v":{"v":-34587.81386547832,"d":"($34,588)"}},{"$f":"'Trial 7'!AJ13","v":{"v":-7908.922950511182,"d":"($7,909)"}},{"$f":"'Trial 7'!AK13","v":{"v":3279.12475140044,"d":"$3,279"}},{"$f":"'Trial 7'!AL13","v":{"v":6110.516585482433,"d":"$6,111"}},{"$f":"'Trial 7'!AM13","v":{"v":-17038.54957181261,"d":"($17,039)"}},{"$f":"SUM('Trial 7'!AB13:AM13)","v":{"v":-31334.01614222055,"d":"($31,334)"}},{"$f":"'Trial 7'!AO13","v":{"v":-31215.089096035397,"d":"($31,215)"}},{"$f":"'Trial 7'!AP13","v":{"v":-5936.705823783804,"d":"($5,937)"}},{"$f":"'Trial 7'!AQ13","v":{"v":28081.998037767684,"d":"$28,082"}},{"$f":"'Trial 7'!AR13","v":{"v":25886.433155840477,"d":"$25,886"}},{"$f":"'Trial 7'!AS13","v":{"v":51138.716652824376,"d":"$51,139"}},{"$f":"'Trial 7'!AT13","v":{"v":-21394.963606161935,"d":"($21,395)"}},{"$f":"'Trial 7'!AU13","v":{"v":-4207.641014078278,"d":"($4,208)"}},{"$f":"'Trial 7'!AV13","v":{"v":-5474.046700900217,"d":"($5,474)"}},{"$f":"'Trial 7'!AW13","v":{"v":-19655.84325125053,"d":"($19,656)"}},{"$f":"'Trial 7'!AX13","v":{"v":-32008.7348901584,"d":"($32,009)"}},{"$f":"'Trial 7'!AY13","v":{"v":-24456.693716251444,"d":"($24,457)"}},{"$f":"'Trial 7'!AZ13","v":{"v":-43973.16212987829,"d":"($43,973)"}},{"$f":"SUM('Trial 7'!AO13:AZ13)","v":{"v":-83215.73238206576,"d":"($83,216)"}},{"$f":"'Trial 7'!BB13","v":{"v":-13487.121241610548,"d":"($13,487)"}},{"$f":"'Trial 7'!BC13","v":{"v":-16054.001836086496,"d":"($16,054)"}},{"$f":"'Trial 7'!BD13","v":{"v":14045.295649489743,"d":"$14,045"}},{"$f":"'Trial 7'!BE13","v":{"v":-10441.504438274082,"d":"($10,442)"}},{"$f":"'Trial 7'!BF13","v":{"v":13480.305912591013,"d":"$13,480"}},{"$f":"'Trial 7'!BG13","v":{"v":34181.76345115971,"d":"$34,182"}},{"$f":"'Trial 7'!BH13","v":{"v":-31045.753921049956,"d":"($31,046)"}},{"$f":"'Trial 7'!BI13","v":{"v":-2555.5242747690986,"d":"($2,556)"}},{"$f":"'Trial 7'!BJ13","v":{"v":-18617.421352126225,"d":"($18,617)"}},{"$f":"'Trial 7'!BK13","v":{"v":-41853.90856826383,"d":"($41,854)"}},{"$f":"'Trial 7'!BL13","v":{"v":-16473.441968280564,"d":"($16,473)"}},{"$f":"'Trial 7'!BM13","v":{"v":17470.405822767792,"d":"$17,470"}},{"$f":"SUM('Trial 7'!BB13:BM13)","v":{"v":-71350.90676445255,"d":"($71,351)"}},{"$f":"'Trial 7'!BO13","v":{"v":-18109.60834927943,"d":"($18,110)"}},{"$f":"'Trial 7'!BP13","v":{"v":-50775.36142783296,"d":"($50,775)"}},{"$f":"'Trial 7'!BQ13","v":{"v":18944.84856432048,"d":"$18,945"}},{"$f":"'Trial 7'!BR13","v":{"v":17887.639773488776,"d":"$17,888"}},{"$f":"'Trial 7'!BS13","v":{"v":34763.75185696135,"d":"$34,764"}},{"$f":"'Trial 7'!BT13","v":{"v":41901.378626883634,"d":"$41,901"}},{"$f":"'Trial 7'!BU13","v":{"v":29501.37201794414,"d":"$29,501"}},{"$f":"'Trial 7'!BV13","v":{"v":-28349.962208732035,"d":"($28,350)"}},{"$f":"'Trial 7'!BW13","v":{"v":42009.03827873556,"d":"$42,009"}},{"$f":"'Trial 7'!BX13","v":{"v":-25149.050092337744,"d":"($25,149)"}},{"$f":"'Trial 7'!BY13","v":{"v":-43217.70199018713,"d":"($43,218)"}},{"$f":"'Trial 7'!BZ13","v":{"v":-61878.85498249033,"d":"($61,879)"}},{"$f":"SUM('Trial 7'!BO13:BZ13)","v":{"v":-42472.50993252568,"d":"($42,473)"}},{"$f":"'Trial 7'!CB13","v":{"v":-5292.864834752163,"d":"($5,293)"}},{"$f":"'Trial 7'!CC13","v":{"v":22081.158740729352,"d":"$22,081"}},{"$f":"'Trial 7'!CD13","v":{"v":26972.29980629384,"d":"$26,972"}},{"$f":"'Trial 7'!CE13","v":{"v":-60176.09444180544,"d":"($60,176)"}},{"$f":"'Trial 7'!CF13","v":{"v":-18055.661238080793,"d":"($18,056)"}},{"$f":"'Trial 7'!CG13","v":{"v":24694.909868026756,"d":"$24,695"}},{"$f":"'Trial 7'!CH13","v":{"v":-62614.9980540789,"d":"($62,615)"}},{"$f":"'Trial 7'!CI13","v":{"v":-30640.20021277047,"d":"($30,640)"}},{"$f":"'Trial 7'!CJ13","v":{"v":60487.80243644492,"d":"$60,488"}},{"$f":"'Trial 7'!CK13","v":{"v":53469.66587354425,"d":"$53,470"}},{"$f":"'Trial 7'!CL13","v":{"v":-6812.3813603084745,"d":"($6,812)"}},{"$f":"'Trial 7'!CM13","v":{"v":30864.98000954634,"d":"$30,865"}},{"$f":"SUM('Trial 7'!CB13:CM13)","v":{"v":34978.61659278922,"d":"$34,979"}},{"$f":"'Trial 7'!CO13","v":{"v":56991.22422686732,"d":"$56,991"}},{"$f":"'Trial 7'!CP13","v":{"v":-4959.429463857982,"d":"($4,959)"}},{"$f":"'Trial 7'!CQ13","v":{"v":17319.88892132498,"d":"$17,320"}},{"$f":"'Trial 7'!CR13","v":{"v":24275.67840177374,"d":"$24,276"}},{"$f":"'Trial 7'!CS13","v":{"v":2938.573325538889,"d":"$2,939"}},{"$f":"'Trial 7'!CT13","v":{"v":-3724.049067682345,"d":"($3,724)"}},{"$f":"'Trial 7'!CU13","v":{"v":30559.871636711658,"d":"$30,560"}},{"$f":"'Trial 7'!CV13","v":{"v":-1663.364304173878,"d":"($1,663)"}},{"$f":"'Trial 7'!CW13","v":{"v":-5102.738148148356,"d":"($5,103)"}},{"$f":"'Trial 7'!CX13","v":{"v":-43417.461006184814,"d":"($43,417)"}},{"$f":"'Trial 7'!CY13","v":{"v":-37433.30917625931,"d":"($37,433)"}},{"$f":"'Trial 7'!CZ13","v":{"v":15182.697679691732,"d":"$15,183"}},{"$f":"SUM('Trial 7'!CO13:CZ13)","v":{"v":50967.583025601634,"d":"$50,968"}},{"$f":"'Trial 7'!DB13","v":{"v":49099.58581839116,"d":"$49,100"}},{"$f":"'Trial 7'!DC13","v":{"v":34437.94189792042,"d":"$34,438"}},{"$f":"'Trial 7'!DD13","v":{"v":5123.403080903844,"d":"$5,123"}},{"$f":"'Trial 7'!DE13","v":{"v":14768.491866490705,"d":"$14,768"}},{"$f":"'Trial 7'!DF13","v":{"v":9911.102503525646,"d":"$9,911"}},{"$f":"'Trial 7'!DG13","v":{"v":-40461.17595572768,"d":"($40,461)"}},{"$f":"'Trial 7'!DH13","v":{"v":-44578.61165961842,"d":"($44,579)"}},{"$f":"'Trial 7'!DI13","v":{"v":3510.028230151854,"d":"$3,510"}},{"$f":"'Trial 7'!DJ13","v":{"v":-2141.6147152985586,"d":"($2,142)"}},{"$f":"'Trial 7'!DK13","v":{"v":-45023.55396045691,"d":"($45,024)"}},{"$f":"'Trial 7'!DL13","v":{"v":4961.053261021191,"d":"$4,961"}},{"$f":"'Trial 7'!DM13","v":{"v":7125.455706158925,"d":"$7,125"}},{"$f":"SUM('Trial 7'!DB13:DM13)","v":{"v":-3267.8939265378367,"d":"($3,268)"}},{"$f":"'Trial 7'!DO13","v":{"v":-25590.238125985623,"d":"($25,590)"}},{"$f":"'Trial 7'!DP13","v":{"v":-2037.591164870638,"d":"($2,038)"}},{"$f":"'Trial 7'!DQ13","v":{"v":-3899.1925818989616,"d":"($3,899)"}},{"$f":"'Trial 7'!DR13","v":{"v":-35682.21771793995,"d":"($35,682)"}},{"$f":"'Trial 7'!DS13","v":{"v":11369.50272086124,"d":"$11,370"}},{"$f":"'Trial 7'!DT13","v":{"v":-32689.123181298168,"d":"($32,689)"}},{"$f":"'Trial 7'!DU13","v":{"v":-17093.328585503907,"d":"($17,093)"}},{"$f":"'Trial 7'!DV13","v":{"v":24381.160292943863,"d":"$24,381"}},{"$f":"'Trial 7'!DW13","v":{"v":62126.824615112164,"d":"$62,127"}},{"$f":"'Trial 7'!DX13","v":{"v":-45368.22139190549,"d":"($45,368)"}},{"$f":"'Trial 7'!DY13","v":{"v":-19769.278776911364,"d":"($19,769)"}},{"$f":"'Trial 7'!DZ13","v":{"v":-34477.88481247477,"d":"($34,478)"}},{"$f":"SUM('Trial 7'!DO13:DZ13)","v":{"v":-118729.5887098716,"d":"($118,730)"}},{"$f":"'Trial 7'!EB13","v":{"v":37717.955272784624,"d":"$37,718"}},{"$f":"'Trial 7'!EC13","v":{"v":-31225.39866433309,"d":"($31,225)"}},{"$f":"'Trial 7'!ED13","v":{"v":-1051.5704407294131,"d":"($1,052)"}},{"$f":"'Trial 7'!EE13","v":{"v":12065.280049744078,"d":"$12,065"}},{"$f":"'Trial 7'!EF13","v":{"v":-29418.369522868994,"d":"($29,418)"}},{"$f":"'Trial 7'!EG13","v":{"v":-57721.30150050924,"d":"($57,721)"}},{"$f":"'Trial 7'!EH13","v":{"v":-49623.482768657035,"d":"($49,623)"}},{"$f":"'Trial 7'!EI13","v":{"v":17113.668385677884,"d":"$17,114"}},{"$f":"'Trial 7'!EJ13","v":{"v":22424.778640778644,"d":"$22,425"}},{"$f":"'Trial 7'!EK13","v":{"v":-1171.2755704572235,"d":"($1,171)"}},{"$f":"'Trial 7'!EL13","v":{"v":34308.628095392785,"d":"$34,309"}},{"$f":"'Trial 7'!EM13","v":{"v":29445.126701611258,"d":"$29,445"}},{"$f":"SUM('Trial 7'!EB13:EM13)","v":{"v":-17135.961321565705,"d":"($17,136)"}}]
[{"$f":"Labels!B103","v":"Trial 08"},{"$f":"'Trial 8'!B13","v":{"v":-47826.12239747987,"d":"($47,826)"}},{"$f":"'Trial 8'!C13","v":{"v":-12147.242293527079,"d":"($12,147)"}},{"$f":"'Trial 8'!D13","v":{"v":-106.89191098064019,"d":"($107)"}},{"$f":"'Trial 8'!E13","v":{"v":10918.131004543677,"d":"$10,918"}},{"$f":"'Trial 8'!F13","v":{"v":58586.33774658585,"d":"$58,586"}},{"$f":"'Trial 8'!G13","v":{"v":17482.166736717027,"d":"$17,482"}},{"$f":"'Trial 8'!H13","v":{"v":-1854.1225471585192,"d":"($1,854)"}},{"$f":"'Trial 8'!I13","v":{"v":22662.406731937408,"d":"$22,662"}},{"$f":"'Trial 8'!J13","v":{"v":-34342.3812935592,"d":"($34,342)"}},{"$f":"'Trial 8'!K13","v":{"v":23791.24168096148,"d":"$23,791"}},{"$f":"'Trial 8'!L13","v":{"v":-37866.899338643074,"d":"($37,867)"}},{"$f":"'Trial 8'!M13","v":{"v":6565.067257923215,"d":"$6,565"}},{"$f":"SUM('Trial 8'!B13:M13)","v":{"v":5861.691377320271,"d":"$5,862"}},{"$f":"'Trial 8'!O13","v":{"v":49316.31058484056,"d":"$49,316"}},{"$f":"'Trial 8'!P13","v":{"v":-26206.63835261835,"d":"($26,207)"}},{"$f":"'Trial 8'!Q13","v":{"v":-50190.35526700914,"d":"($50,190)"}},{"$f":"'Trial 8'!R13","v":{"v":13494.08392673475,"d":"$13,494"}},{"$f":"'Trial 8'!S13","v":{"v":2341.9717858087356,"d":"$2,342"}},{"$f":"'Trial 8'!T13","v":{"v":50139.150355975755,"d":"$50,139"}},{"$f":"'Trial 8'!U13","v":{"v":-3523.713359845038,"d":"($3,524)"}},{"$f":"'Trial 8'!V13","v":{"v":4639.762988391762,"d":"$4,640"}},{"$f":"'Trial 8'!W13","v":{"v":45137.49747038213,"d":"$45,137"}},{"$f":"'Trial 8'!X13","v":{"v":-26010.356503179744,"d":"($26,010)"}},{"$f":"'Trial 8'!Y13","v":{"v":-39735.43977656171,"d":"($39,735)"}},{"$f":"'Trial 8'!Z13","v":{"v":-21295.2760376979,"d":"($21,295)"}},{"$f":"SUM('Trial 8'!O13:Z13)","v":{"v":-1893.0021847781827,"d":"($1,893)"}},{"$f":"'Trial 8'!AB13","v":{"v":636.4699105935076,"d":"$636"}},{"$f":"'Trial 8'!AC13","v":{"v":3520.846300335343,"d":"$3,521"}},{"$f":"'Trial 8'!AD13","v":{"v":-19093.492536519312,"d":"($19,093)"}},{"$f":"'Trial 8'!AE13","v":{"v":-6639.504268632639,"d":"($6,640)"}},{"$f":"'Trial 8'!AF13","v":{"v":-29895.746727700436,"d":"($29,896)"}},{"$f":"'Trial 8'!AG13","v":{"v":-21050.160131042598,"d":"($21,050)"}},{"$f":"'Trial 8'!AH13","v":{"v":19312.793640394626,"d":"$19,313"}},{"$f":"'Trial 8'!AI13","v":{"v":14522.193897137517,"d":"$14,522"}},{"$f":"'Trial 8'!AJ13","v":{"v":-16542.957061793757,"d":"($16,543)"}},{"$f":"'Trial 8'!AK13","v":{"v":1066.2226173895515,"d":"$1,066"}},{"$f":"'Trial 8'!AL13","v":{"v":39153.912477895174,"d":"$39,154"}},{"$f":"'Trial 8'!AM13","v":{"v":35723.151672023945,"d":"$35,723"}},{"$f":"SUM('Trial 8'!AB13:AM13)","v":{"v":20713.72979008092,"d":"$20,714"}},{"$f":"'Trial 8'!AO13","v":{"v":31389.104489253266,"d":"$31,389"}},{"$f":"'Trial 8'!AP13","v":{"v":3547.6973678113495,"d":"$3,548"}},{"$f":"'Trial 8'!AQ13","v":{"v":1987.688297976637,"d":"$1,988"}},{"$f":"'Trial 8'!AR13","v":{"v":-33787.29192555955,"d":"($33,787)"}},{"$f":"'Trial 8'!AS13","v":{"v":-33041.495697637736,"d":"($33,041)"}},{"$f":"'Trial 8'!AT13","v":{"v":-11036.515401573793,"d":"($11,037)"}},{"$f":"'Trial 8'!AU13","v":{"v":16981.407860811873,"d":"$16,981"}},{"$f":"'Trial 8'!AV13","v":{"v":2761.0256622856828,"d":"$2,761"}},{"$f":"'Trial 8'!AW13","v":{"v":6275.8128024413045,"d":"$6,276"}},{"$f":"'Trial 8'!AX13","v":{"v":2090.7976827305765,"d":"$2,091"}},{"$f":"'Trial 8'!AY13","v":{"v":14475.285587071688,"d":"$14,475"}},{"$f":"'Trial 8'!AZ13","v":{"v":8281.62150424434,"d":"$8,282"}},{"$f":"SUM('Trial 8'!AO13:AZ13)","v":{"v":9925.138229855642,"d":"$9,925"}},{"$f":"'Trial 8'!BB13","v":{"v":-14667.88489040115,"d":"($14,668)"}},{"$f":"'Trial 8'!BC13","v":{"v":30626.609273492635,"d":"$30,627"}},{"$f":"'Trial 8'!BD13","v":{"v":40300.81438590215,"d":"$40,301"}},{"$f":"'Trial 8'!BE13","v":{"v":13211.060264784506,"d":"$13,211"}},{"$f":"'Trial 8'!BF13","v":{"v":11325.663854652426,"d":"$11,326"}},{"$f":"'Trial 8'!BG13","v":{"v":34569.44689892065,"d":"$34,569"}},{"$f":"'Trial 8'!BH13","v":{"v":-23701.08034938772,"d":"($23,701)"}},{"$f":"'Trial 8'!BI13","v":{"v":-573.034943345643,"d":"($573)"}},{"$f":"'Trial 8'!BJ13","v":{"v":19175.59923627364,"d":"$19,176"}},{"$f":"'Trial 8'!BK13","v":{"v":16666.909854881127,"d":"$16,667"}},{"$f":"'Trial 8'!BL13","v":{"v":18280.927497378412,"d":"$18,281"}},{"$f":"'Trial 8'!BM13","v":{"v":-6878.743440575849,"d":"($6,879)"}},{"$f":"SUM('Trial 8'!BB13:BM13)","v":{"v":138336.2876425752,"d":"$138,336"}},{"$f":"'Trial 8'!BO13","v":{"v":22314.646906610255,"d":"$22,315"}},{"$f":"'Trial 8'!BP13","v":{"v":41179.01997706538,"d":"$41,179"}},{"$f":"'Trial 8'!BQ13","v":{"v":28433.97976668102,"d":"$28,434"}},{"$f":"'Trial 8'!BR13","v":{"v":55476.70817711031,"d":"$55,477"}},{"$f":"'Trial 8'!BS13","v":{"v":18226.98142005088,"d":"$18,227"}},{"$f":"'Trial 8'!BT13","v":{"v":1768.397291898762,"d":"$1,768"}},{"$f":"'Trial 8'!BU13","v":{"v":14963.378685508858,"d":"$14,963"}},{"$f":"'Trial 8'!BV13","v":{"v":42582.87442747298,"d":"$42,583"}},{"$f":"'Trial 8'!BW13","v":{"v":27886.85003363278,"d":"$27,887"}},{"$f":"'Trial 8'!BX13","v":{"v":27024.163683555773,"d":"$27,024"}},{"$f":"'Trial 8'!BY13","v":{"v":-8702.146137753369,"d":"($8,702)"}},{"$f":"'Trial 8'!BZ13","v":{"v":-41685.72947905753,"d":"($41,686)"}},{"$f":"SUM('Trial 8'!BO13:BZ13)","v":{"v":229469.12475277606,"d":"$229,469"}},{"$f":"'Trial 8'!CB13","v":{"v":-13512.465360995671,"d":"($13,512)"}},{"$f":"'Trial 8'!CC13","v":{"v":2150.0341917952605,"d":"$2,150"}},{"$f":"'Trial 8'!CD13","v":{"v":-33155.004126574786,"d":"($33,155)"}},{"$f":"'Trial 8'!CE13","v":{"v":8578.435614348864,"d":"$8,578"}},{"$f":"'Trial 8'!CF13","v":{"v":-4009.560647062104,"d":"($4,010)"}},{"$f":"'Trial 8'!CG13","v":{"v":57781.90173417524,"d":"$57,782"}},{"$f":"'Trial 8'!CH13","v":{"v":3405.371164851308,"d":"$3,405"}},{"$f":"'Trial 8'!CI13","v":{"v":-20740.182167968407,"d":"($20,740)"}},{"$f":"'Trial 8'!CJ13","v":{"v":19234.783204623796,"d":"$19,235"}},{"$f":"'Trial 8'!CK13","v":{"v":29272.58872109821,"d":"$29,273"}},{"$f":"'Trial 8'!CL13","v":{"v":-31564.99819338751,"d":"($31,565)"}},{"$f":"'Trial 8'!CM13","v":{"v":41455.4804076309,"d":"$41,455"}},{"$f":"SUM('Trial 8'!CB13:CM13)","v":{"v":58896.384542535096,"d":"$58,896"}},{"$f":"'Trial 8'!CO13","v":{"v":43129.597868967154,"d":"$43,130"}},{"$f":"'Trial 8'!CP13","v":{"v":9066.540752109511,"d":"$9,067"}},{"$f":"'Trial 8'!CQ13","v":{"v":21971.0708884695,"d":"$21,971"}},{"$f":"'Trial 8'!CR13","v":{"v":19013.93988970874,"d":"$19,014"}},{"$f":"'Trial 8'!CS13","v":{"v":-61877.7210881121,"d":"($61,878)"}},{"$f":"'Trial 8'!CT13","v":{"v":-3175.8531729943998,"d":"($3,176)"}},{"$f":"'Trial 8'!CU13","v":{"v":35168.6573155556,"d":"$35,169"}},{"$f":"'Trial 8'!CV13","v":{"v":821.9580551133652,"d":"$822"}},{"$f":"'Trial 8'!CW13","v":{"v":-56566.26002936249,"d":"($56,566)"}},{"$f":"'Trial 8'!CX13","v":{"v":38663.23856319008,"d":"$38,663"}},{"$f":"'Trial 8'!CY13","v":{"v":60572.49840844595,"d":"$60,572"}},{"$f":"'Trial 8'!CZ13","v":{"v":-24057.179052346957,"d":"($24,057)"}},{"$f":"SUM('Trial 8'!CO13:CZ13)","v":{"v":82730.48839874395,"d":"$82,730"}},{"$f":"'Trial 8'!DB13","v":{"v":59961.26686321616,"d":"$59,961"}},{"$f":"'Trial 8'!DC13","v":{"v":-19308.69953258576,"d":"($19,309)"}},{"$f":"'Trial 8'!DD13","v":{"v":-33531.842027662155,"d":"($33,532)"}},{"$f":"'Trial 8'!DE13","v":{"v":-9581.044171254955,"d":"($9,581)"}},{"$f":"'Trial 8'!DF13","v":{"v":3517.8400048674716,"d":"$3,518"}},{"$f":"'Trial 8'!DG13","v":{"v":-18572.480878614086,"d":"($18,572)"}},{"$f":"'Trial 8'!DH13","v":{"v":-4047.8077120112143,"d":"($4,048)"}},{"$f":"'Trial 8'!DI13","v":{"v":-36196.87308398939,"d":"($36,197)"}},{"$f":"'Trial 8'!DJ13","v":{"v":55175.034876394304,"d":"$55,175"}},{"$f":"'Trial 8'!DK13","v":{"v":-13604.60571868624,"d":"($13,605)"}},{"$f":"'Trial 8'!DL13","v":{"v":48692.538176480055,"d":"$48,693"}},{"$f":"'Trial 8'!DM13","v":{"v":-7735.1744308499265,"d":"($7,735)"}},{"$f":"SUM('Trial 8'!DB13:DM13)","v":{"v":24768.15236530426,"d":"$24,768"}},{"$f":"'Trial 8'!DO13","v":{"v":-45711.271245999,"d":"($45,711)"}},{"$f":"'Trial 8'!DP13","v":{"v":-34269.24194317531,"d":"($34,269)"}},{"$f":"'Trial 8'!DQ13","v":{"v":52450.049152790794,"d":"$52,450"}},{"$f":"'Trial 8'!DR13","v":{"v":42795.13376564081,"d":"$42,795"}},{"$f":"'Trial 8'!DS13","v":{"v":-12909.788866204777,"d":"($12,910)"}},{"$f":"'Trial 8'!DT13","v":{"v":42883.77042766165,"d":"$42,884"}},{"$f":"'Trial 8'!DU13","v":{"v":37758.458049607594,"d":"$37,758"}},{"$f":"'Trial 8'!DV13","v":{"v":6155.999675714803,"d":"$6,156"}},{"$f":"'Trial 8'!DW13","v":{"v":19986.317560497893,"d":"$19,986"}},{"$f":"'Trial 8'!DX13","v":{"v":-42096.0353961158,"d":"($42,096)"}},{"$f":"'Trial 8'!DY13","v":{"v":13505.23223156322,"d":"$13,505"}},{"$f":"'Trial 8'!DZ13","v":{"v":1336.5476862630449,"d":"$1,337"}},{"$f":"SUM('Trial 8'!DO13:DZ13)","v":{"v":81885.17109824493,"d":"$81,885"}},{"$f":"'Trial 8'!EB13","v":{"v":-46702.155924081315,"d":"($46,702)"}},{"$f":"'Trial 8'!EC13","v":{"v":-43351.923745022665,"d":"($43,352)"}},{"$f":"'Trial 8'!ED13","v":{"v":19217.92601241737,"d":"$19,218"}},{"$f":"'Trial 8'!EE13","v":{"v":-17020.093885932187,"d":"($17,020)"}},{"$f":"'Trial 8'!EF13","v":{"v":-22725.841066158075,"d":"($22,726)"}},{"$f":"'Trial 8'!EG13","v":{"v":3901.3266592372383,"d":"$3,901"}},{"$f":"'Trial 8'!EH13","v":{"v":40583.41578620538,"d":"$40,583"}},{"$f":"'Trial 8'!EI13","v":{"v":-25694.726587136447,"d":"($25,695)"}},{"$f":"'Trial 8'!EJ13","v":{"v":4921.320562465405,"d":"$4,921"}},{"$f":"'Trial 8'!EK13","v":{"v":-46537.00851936002,"d":"($46,537)"}},{"$f":"'Trial 8'!EL13","v":{"v":-24510.96496596736,"d":"($24,511)"}},{"$f":"'Trial 8'!EM13","v":{"v":47202.37987082547,"d":"$47,202"}},{"$f":"SUM('Trial 8'!EB13:EM13)","v":{"v":-110716.34580250722,"d":"($110,716)"}}]
[{"$f":"Labels!C95","v":"Total"},{"$f":"SUM('Trial 1'!B13,'Trial 2'!B13,'Trial 3'!B13,'Trial 4'!B13,'Trial 5'!B13,'Trial 6'!B13,'Trial 7'!B13,'Trial 8'!B13)","v":{"v":-213636.01193511885,"d":"($213,636)"}},{"$f":"SUM('Trial 1'!C13,'Trial 2'!C13,'Trial 3'!C13,'Trial 4'!C13,'Trial 5'!C13,'Trial 6'!C13,'Trial 7'!C13,'Trial 8'!C13)","v":{"v":-93477.3875440698,"d":"($93,477)"}},{"$f":"SUM('Trial 1'!D13,'Trial 2'!D13,'Trial 3'!D13,'Trial 4'!D13,'Trial 5'!D13,'Trial 6'!D13,'Trial 7'!D13,'Trial 8'!D13)","v":{"v":61938.541277334145,"d":"$61,939"}},{"$f":"SUM('Trial 1'!E13,'Trial 2'!E13,'Trial 3'!E13,'Trial 4'!E13,'Trial 5'!E13,'Trial 6'!E13,'Trial 7'!E13,'Trial 8'!E13)","v":{"v":125996.64275439811,"d":"$125,997"}},{"$f":"SUM('Trial 1'!F13,'Trial 2'!F13,'Trial 3'!F13,'Trial 4'!F13,'Trial 5'!F13,'Trial 6'!F13,'Trial 7'!F13,'Trial 8'!F13)","v":{"v":208723.87809397792,"d":"$208,724"}},{"$f":"SUM('Trial 1'!G13,'Trial 2'!G13,'Trial 3'!G13,'Trial 4'!G13,'Trial 5'!G13,'Trial 6'!G13,'Trial 7'!G13,'Trial 8'!G13)","v":{"v":102114.72761921234,"d":"$102,115"}},{"$f":"SUM('Trial 1'!H13,'Trial 2'!H13,'Trial 3'!H13,'Trial 4'!H13,'Trial 5'!H13,'Trial 6'!H13,'Trial 7'!H13,'Trial 8'!H13)","v":{"v":-42764.10775183012,"d":"($42,764)"}},{"$f":"SUM('Trial 1'!I13,'Trial 2'!I13,'Trial 3'!I13,'Trial 4'!I13,'Trial 5'!I13,'Trial 6'!I13,'Trial 7'!I13,'Trial 8'!I13)","v":{"v":27192.264147129987,"d":"$27,192"}},{"$f":"SUM('Trial 1'!J13,'Trial 2'!J13,'Trial 3'!J13,'Trial 4'!J13,'Trial 5'!J13,'Trial 6'!J13,'Trial 7'!J13,'Trial 8'!J13)","v":{"v":39982.00872294823,"d":"$39,982"}},{"$f":"SUM('Trial 1'!K13,'Trial 2'!K13,'Trial 3'!K13,'Trial 4'!K13,'Trial 5'!K13,'Trial 6'!K13,'Trial 7'!K13,'Trial 8'!K13)","v":{"v":41558.180015240396,"d":"$41,558"}},{"$f":"SUM('Trial 1'!L13,'Trial 2'!L13,'Trial 3'!L13,'Trial 4'!L13,'Trial 5'!L13,'Trial 6'!L13,'Trial 7'!L13,'Trial 8'!L13)","v":{"v":25841.42242493522,"d":"$25,841"}},{"$f":"SUM('Trial 1'!M13,'Trial 2'!M13,'Trial 3'!M13,'Trial 4'!M13,'Trial 5'!M13,'Trial 6'!M13,'Trial 7'!M13,'Trial 8'!M13)","v":{"v":-21839.599893925853,"d":"($21,840)"}},{"$f":"SUM(B252:M252)","v":{"v":261630.5579302317,"d":"$261,631"}},{"$f":"SUM('Trial 1'!O13,'Trial 2'!O13,'Trial 3'!O13,'Trial 4'!O13,'Trial 5'!O13,'Trial 6'!O13,'Trial 7'!O13,'Trial 8'!O13)","v":{"v":71116.69468339715,"d":"$71,117"}},{"$f":"SUM('Trial 1'!P13,'Trial 2'!P13,'Trial 3'!P13,'Trial 4'!P13,'Trial 5'!P13,'Trial 6'!P13,'Trial 7'!P13,'Trial 8'!P13)","v":{"v":45400.91566488384,"d":"$45,401"}},{"$f":"SUM('Trial 1'!Q13,'Trial 2'!Q13,'Trial 3'!Q13,'Trial 4'!Q13,'Trial 5'!Q13,'Trial 6'!Q13,'Trial 7'!Q13,'Trial 8'!Q13)","v":{"v":81871.73577769066,"d":"$81,872"}},{"$f":"SUM('Trial 1'!R13,'Trial 2'!R13,'Trial 3'!R13,'Trial 4'!R13,'Trial 5'!R13,'Trial 6'!R13,'Trial 7'!R13,'Trial 8'!R13)","v":{"v":119008.6598605946,"d":"$119,009"}},{"$f":"SUM('Trial 1'!S13,'Trial 2'!S13,'Trial 3'!S13,'Trial 4'!S13,'Trial 5'!S13,'Trial 6'!S13,'Trial 7'!S13,'Trial 8'!S13)","v":{"v":-190853.64060670097,"d":"($190,854)"}},{"$f":"SUM('Trial 1'!T13,'Trial 2'!T13,'Trial 3'!T13,'Trial 4'!T13,'Trial 5'!T13,'Trial 6'!T13,'Trial 7'!T13,'Trial 8'!T13)","v":{"v":73922.57807575891,"d":"$73,923"}},{"$f":"SUM('Trial 1'!U13,'Trial 2'!U13,'Trial 3'!U13,'Trial 4'!U13,'Trial 5'!U13,'Trial 6'!U13,'Trial 7'!U13,'Trial 8'!U13)","v":{"v":-111007.85628846049,"d":"($111,008)"}},{"$f":"SUM('Trial 1'!V13,'Trial 2'!V13,'Trial 3'!V13,'Trial 4'!V13,'Trial 5'!V13,'Trial 6'!V13,'Trial 7'!V13,'Trial 8'!V13)","v":{"v":-88131.28165051641,"d":"($88,131)"}},{"$f":"SUM('Trial 1'!W13,'Trial 2'!W13,'Trial 3'!W13,'Trial 4'!W13,'Trial 5'!W13,'Trial 6'!W13,'Trial 7'!W13,'Trial 8'!W13)","v":{"v":130598.90317806433,"d":"$130,599"}},{"$f":"SUM('Trial 1'!X13,'Trial 2'!X13,'Trial 3'!X13,'Trial 4'!X13,'Trial 5'!X13,'Trial 6'!X13,'Trial 7'!X13,'Trial 8'!X13)","v":{"v":-43496.96033260641,"d":"($43,497)"}},{"$f":"SUM('Trial 1'!Y13,'Trial 2'!Y13,'Trial 3'!Y13,'Trial 4'!Y13,'Trial 5'!Y13,'Trial 6'!Y13,'Trial 7'!Y13,'Trial 8'!Y13)","v":{"v":-27449.09896042628,"d":"($27,449)"}},{"$f":"SUM('Trial 1'!Z13,'Trial 2'!Z13,'Trial 3'!Z13,'Trial 4'!Z13,'Trial 5'!Z13,'Trial 6'!Z13,'Trial 7'!Z13,'Trial 8'!Z13)","v":{"v":-202416.01188131474,"d":"($202,416)"}},{"$f":"SUM(O252:Z252)","v":{"v":-141435.3624796358,"d":"($141,435)"}},{"$f":"SUM('Trial 1'!AB13,'Trial 2'!AB13,'Trial 3'!AB13,'Trial 4'!AB13,'Trial 5'!AB13,'Trial 6'!AB13,'Trial 7'!AB13,'Trial 8'!AB13)","v":{"v":724.8064400363808,"d":"$725"}},{"$f":"SUM('Trial 1'!AC13,'Trial 2'!AC13,'Trial 3'!AC13,'Trial 4'!AC13,'Trial 5'!AC13,'Trial 6'!AC13,'Trial 7'!AC13,'Trial 8'!AC13)","v":{"v":79440.29473359855,"d":"$79,440"}},{"$f":"SUM('Trial 1'!AD13,'Trial 2'!AD13,'Trial 3'!AD13,'Trial 4'!AD13,'Trial 5'!AD13,'Trial 6'!AD13,'Trial 7'!AD13,'Trial 8'!AD13)","v":{"v":22550.01858701119,"d":"$22,550"}},{"$f":"SUM('Trial 1'!AE13,'Trial 2'!AE13,'Trial 3'!AE13,'Trial 4'!AE13,'Trial 5'!AE13,'Trial 6'!AE13,'Trial 7'!AE13,'Trial 8'!AE13)","v":{"v":-2892.765121382826,"d":"($2,893)"}},{"$f":"SUM('Trial 1'!AF13,'Trial 2'!AF13,'Trial 3'!AF13,'Trial 4'!AF13,'Trial 5'!AF13,'Trial 6'!AF13,'Trial 7'!AF13,'Trial 8'!AF13)","v":{"v":-132180.02847683546,"d":"($132,180)"}},{"$f":"SUM('Trial 1'!AG13,'Trial 2'!AG13,'Trial 3'!AG13,'Trial 4'!AG13,'Trial 5'!AG13,'Trial 6'!AG13,'Trial 7'!AG13,'Trial 8'!AG13)","v":{"v":48918.406815556686,"d":"$48,918"}},{"$f":"SUM('Trial 1'!AH13,'Trial 2'!AH13,'Trial 3'!AH13,'Trial 4'!AH13,'Trial 5'!AH13,'Trial 6'!AH13,'Trial 7'!AH13,'Trial 8'!AH13)","v":{"v":123485.21625966251,"d":"$123,485"}},{"$f":"SUM('Trial 1'!AI13,'Trial 2'!AI13,'Trial 3'!AI13,'Trial 4'!AI13,'Trial 5'!AI13,'Trial 6'!AI13,'Trial 7'!AI13,'Trial 8'!AI13)","v":{"v":-141643.0144626415,"d":"($141,643)"}},{"$f":"SUM('Trial 1'!AJ13,'Trial 2'!AJ13,'Trial 3'!AJ13,'Trial 4'!AJ13,'Trial 5'!AJ13,'Trial 6'!AJ13,'Trial 7'!AJ13,'Trial 8'!AJ13)","v":{"v":19150.059796420734,"d":"$19,150"}},{"$f":"SUM('Trial 1'!AK13,'Trial 2'!AK13,'Trial 3'!AK13,'Trial 4'!AK13,'Trial 5'!AK13,'Trial 6'!AK13,'Trial 7'!AK13,'Trial 8'!AK13)","v":{"v":55489.644443908175,"d":"$55,490"}},{"$f":"SUM('Trial 1'!AL13,'Trial 2'!AL13,'Trial 3'!AL13,'Trial 4'!AL13,'Trial 5'!AL13,'Trial 6'!AL13,'Trial 7'!AL13,'Trial 8'!AL13)","v":{"v":84718.24456957704,"d":"$84,718"}},{"$f":"SUM('Trial 1'!AM13,'Trial 2'!AM13,'Trial 3'!AM13,'Trial 4'!AM13,'Trial 5'!AM13,'Trial 6'!AM13,'Trial 7'!AM13,'Trial 8'!AM13)","v":{"v":-83507.33263967342,"d":"($83,507)"}},{"$f":"SUM(AB252:AM252)","v":{"v":74253.55094523805,"d":"$74,254"}},{"$f":"SUM('Trial 1'!AO13,'Trial 2'!AO13,'Trial 3'!AO13,'Trial 4'!AO13,'Trial 5'!AO13,'Trial 6'!AO13,'Trial 7'!AO13,'Trial 8'!AO13)","v":{"v":7061.245078129337,"d":"$7,061"}},{"$f":"SUM('Trial 1'!AP13,'Trial 2'!AP13,'Trial 3'!AP13,'Trial 4'!AP13,'Trial 5'!AP13,'Trial 6'!AP13,'Trial 7'!AP13,'Trial 8'!AP13)","v":{"v":109039.83482350918,"d":"$109,040"}},{"$f":"SUM('Trial 1'!AQ13,'Trial 2'!AQ13,'Trial 3'!AQ13,'Trial 4'!AQ13,'Trial 5'!AQ13,'Trial 6'!AQ13,'Trial 7'!AQ13,'Trial 8'!AQ13)","v":{"v":-77027.26865191234,"d":"($77,027)"}},{"$f":"SUM('Trial 1'!AR13,'Trial 2'!AR13,'Trial 3'!AR13,'Trial 4'!AR13,'Trial 5'!AR13,'Trial 6'!AR13,'Trial 7'!AR13,'Trial 8'!AR13)","v":{"v":-12716.504285753748,"d":"($12,717)"}},{"$f":"SUM('Trial 1'!AS13,'Trial 2'!AS13,'Trial 3'!AS13,'Trial 4'!AS13,'Trial 5'!AS13,'Trial 6'!AS13,'Trial 7'!AS13,'Trial 8'!AS13)","v":{"v":93684.1311905258,"d":"$93,684"}},{"$f":"SUM('Trial 1'!AT13,'Trial 2'!AT13,'Trial 3'!AT13,'Trial 4'!AT13,'Trial 5'!AT13,'Trial 6'!AT13,'Trial 7'!AT13,'Trial 8'!AT13)","v":{"v":-10828.532830356704,"d":"($10,829)"}},{"$f":"SUM('Trial 1'!AU13,'Trial 2'!AU13,'Trial 3'!AU13,'Trial 4'!AU13,'Trial 5'!AU13,'Trial 6'!AU13,'Trial 7'!AU13,'Trial 8'!AU13)","v":{"v":-40638.37200211426,"d":"($40,638)"}},{"$f":"SUM('Trial 1'!AV13,'Trial 2'!AV13,'Trial 3'!AV13,'Trial 4'!AV13,'Trial 5'!AV13,'Trial 6'!AV13,'Trial 7'!AV13,'Trial 8'!AV13)","v":{"v":9180.610067979544,"d":"$9,181"}},{"$f":"SUM('Trial 1'!AW13,'Trial 2'!AW13,'Trial 3'!AW13,'Trial 4'!AW13,'Trial 5'!AW13,'Trial 6'!AW13,'Trial 7'!AW13,'Trial 8'!AW13)","v":{"v":-106658.45670100901,"d":"($106,658)"}},{"$f":"SUM('Trial 1'!AX13,'Trial 2'!AX13,'Trial 3'!AX13,'Trial 4'!AX13,'Trial 5'!AX13,'Trial 6'!AX13,'Trial 7'!AX13,'Trial 8'!AX13)","v":{"v":-38296.65600972526,"d":"($38,297)"}},{"$f":"SUM('Trial 1'!AY13,'Trial 2'!AY13,'Trial 3'!AY13,'Trial 4'!AY13,'Trial 5'!AY13,'Trial 6'!AY13,'Trial 7'!AY13,'Trial 8'!AY13)","v":{"v":11131.583482971702,"d":"$11,132"}},{"$f":"SUM('Trial 1'!AZ13,'Trial 2'!AZ13,'Trial 3'!AZ13,'Trial 4'!AZ13,'Trial 5'!AZ13,'Trial 6'!AZ13,'Trial 7'!AZ13,'Trial 8'!AZ13)","v":{"v":-135681.03807043465,"d":"($135,681)"}},{"$f":"SUM(AO252:AZ252)","v":{"v":-191749.4239081904,"d":"($191,749)"}},{"$f":"SUM('Trial 1'!BB13,'Trial 2'!BB13,'Trial 3'!BB13,'Trial 4'!BB13,'Trial 5'!BB13,'Trial 6'!BB13,'Trial 7'!BB13,'Trial 8'!BB13)","v":{"v":-117368.2599245751,"d":"($117,368)"}},{"$f":"SUM('Trial 1'!BC13,'Trial 2'!BC13,'Trial 3'!BC13,'Trial 4'!BC13,'Trial 5'!BC13,'Trial 6'!BC13,'Trial 7'!BC13,'Trial 8'!BC13)","v":{"v":-38424.416669683254,"d":"($38,424)"}},{"$f":"SUM('Trial 1'!BD13,'Trial 2'!BD13,'Trial 3'!BD13,'Trial 4'!BD13,'Trial 5'!BD13,'Trial 6'!BD13,'Trial 7'!BD13,'Trial 8'!BD13)","v":{"v":-4581.763080498429,"d":"($4,582)"}},{"$f":"SUM('Trial 1'!BE13,'Trial 2'!BE13,'Trial 3'!BE13,'Trial 4'!BE13,'Trial 5'!BE13,'Trial 6'!BE13,'Trial 7'!BE13,'Trial 8'!BE13)","v":{"v":-36875.36985480041,"d":"($36,875)"}},{"$f":"SUM('Trial 1'!BF13,'Trial 2'!BF13,'Trial 3'!BF13,'Trial 4'!BF13,'Trial 5'!BF13,'Trial 6'!BF13,'Trial 7'!BF13,'Trial 8'!BF13)","v":{"v":31641.220669246002,"d":"$31,641"}},{"$f":"SUM('Trial 1'!BG13,'Trial 2'!BG13,'Trial 3'!BG13,'Trial 4'!BG13,'Trial 5'!BG13,'Trial 6'!BG13,'Trial 7'!BG13,'Trial 8'!BG13)","v":{"v":31537.48826435271,"d":"$31,537"}},{"$f":"SUM('Trial 1'!BH13,'Trial 2'!BH13,'Trial 3'!BH13,'Trial 4'!BH13,'Trial 5'!BH13,'Trial 6'!BH13,'Trial 7'!BH13,'Trial 8'!BH13)","v":{"v":-128224.21881211393,"d":"($128,224)"}},{"$f":"SUM('Trial 1'!BI13,'Trial 2'!BI13,'Trial 3'!BI13,'Trial 4'!BI13,'Trial 5'!BI13,'Trial 6'!BI13,'Trial 7'!BI13,'Trial 8'!BI13)","v":{"v":-62725.11100747996,"d":"($62,725)"}},{"$f":"SUM('Trial 1'!BJ13,'Trial 2'!BJ13,'Trial 3'!BJ13,'Trial 4'!BJ13,'Trial 5'!BJ13,'Trial 6'!BJ13,'Trial 7'!BJ13,'Trial 8'!BJ13)","v":{"v":48007.20594546355,"d":"$48,007"}},{"$f":"SUM('Trial 1'!BK13,'Trial 2'!BK13,'Trial 3'!BK13,'Trial 4'!BK13,'Trial 5'!BK13,'Trial 6'!BK13,'Trial 7'!BK13,'Trial 8'!BK13)","v":{"v":-41283.40471982992,"d":"($41,283)"}},{"$f":"SUM('Trial 1'!BL13,'Trial 2'!BL13,'Trial 3'!BL13,'Trial 4'!BL13,'Trial 5'!BL13,'Trial 6'!BL13,'Trial 7'!BL13,'Trial 8'!BL13)","v":{"v":50447.05146755083,"d":"$50,447"}},{"$f":"SUM('Trial 1'!BM13,'Trial 2'!BM13,'Trial 3'!BM13,'Trial 4'!BM13,'Trial 5'!BM13,'Trial 6'!BM13,'Trial 7'!BM13,'Trial 8'!BM13)","v":{"v":-26480.238336736264,"d":"($26,480)"}},{"$f":"SUM(BB252:BM252)","v":{"v":-294329.8160591041,"d":"($294,330)"}},{"$f":"SUM('Trial 1'!BO13,'Trial 2'!BO13,'Trial 3'!BO13,'Trial 4'!BO13,'Trial 5'!BO13,'Trial 6'!BO13,'Trial 7'!BO13,'Trial 8'!BO13)","v":{"v":-35032.05416366835,"d":"($35,032)"}},{"$f":"SUM('Trial 1'!BP13,'Trial 2'!BP13,'Trial 3'!BP13,'Trial 4'!BP13,'Trial 5'!BP13,'Trial 6'!BP13,'Trial 7'!BP13,'Trial 8'!BP13)","v":{"v":16101.154536263897,"d":"$16,101"}},{"$f":"SUM('Trial 1'!BQ13,'Trial 2'!BQ13,'Trial 3'!BQ13,'Trial 4'!BQ13,'Trial 5'!BQ13,'Trial 6'!BQ13,'Trial 7'!BQ13,'Trial 8'!BQ13)","v":{"v":100482.31416868693,"d":"$100,482"}},{"$f":"SUM('Trial 1'!BR13,'Trial 2'!BR13,'Trial 3'!BR13,'Trial 4'!BR13,'Trial 5'!BR13,'Trial 6'!BR13,'Trial 7'!BR13,'Trial 8'!BR13)","v":{"v":73238.65375672234,"d":"$73,239"}},{"$f":"SUM('Trial 1'!BS13,'Trial 2'!BS13,'Trial 3'!BS13,'Trial 4'!BS13,'Trial 5'!BS13,'Trial 6'!BS13,'Trial 7'!BS13,'Trial 8'!BS13)","v":{"v":-62229.230517305565,"d":"($62,229)"}},{"$f":"SUM('Trial 1'!BT13,'Trial 2'!BT13,'Trial 3'!BT13,'Trial 4'!BT13,'Trial 5'!BT13,'Trial 6'!BT13,'Trial 7'!BT13,'Trial 8'!BT13)","v":{"v":142246.41815433934,"d":"$142,246"}},{"$f":"SUM('Trial 1'!BU13,'Trial 2'!BU13,'Trial 3'!BU13,'Trial 4'!BU13,'Trial 5'!BU13,'Trial 6'!BU13,'Trial 7'!BU13,'Trial 8'!BU13)","v":{"v":-74414.26398259006,"d":"($74,414)"}},{"$f":"SUM('Trial 1'!BV13,'Trial 2'!BV13,'Trial 3'!BV13,'Trial 4'!BV13,'Trial 5'!BV13,'Trial 6'!BV13,'Trial 7'!BV13,'Trial 8'!BV13)","v":{"v":-22337.935466062932,"d":"($22,338)"}},{"$f":"SUM('Trial 1'!BW13,'Trial 2'!BW13,'Trial 3'!BW13,'Trial 4'!BW13,'Trial 5'!BW13,'Trial 6'!BW13,'Trial 7'!BW13,'Trial 8'!BW13)","v":{"v":111547.49968083062,"d":"$111,547"}},{"$f":"SUM('Trial 1'!BX13,'Trial 2'!BX13,'Trial 3'!BX13,'Trial 4'!BX13,'Trial 5'!BX13,'Trial 6'!BX13,'Trial 7'!BX13,'Trial 8'!BX13)","v":{"v":-82018.99918441982,"d":"($82,019)"}},{"$f":"SUM('Trial 1'!BY13,'Trial 2'!BY13,'Trial 3'!BY13,'Trial 4'!BY13,'Trial 5'!BY13,'Trial 6'!BY13,'Trial 7'!BY13,'Trial 8'!BY13)","v":{"v":90872.58837778943,"d":"$90,873"}},{"$f":"SUM('Trial 1'!BZ13,'Trial 2'!BZ13,'Trial 3'!BZ13,'Trial 4'!BZ13,'Trial 5'!BZ13,'Trial 6'!BZ13,'Trial 7'!BZ13,'Trial 8'!BZ13)","v":{"v":4762.304472060081,"d":"$4,762"}},{"$f":"SUM(BO252:BZ252)","v":{"v":263218.44983264594,"d":"$263,218"}},{"$f":"SUM('Trial 1'!CB13,'Trial 2'!CB13,'Trial 3'!CB13,'Trial 4'!CB13,'Trial 5'!CB13,'Trial 6'!CB13,'Trial 7'!CB13,'Trial 8'!CB13)","v":{"v":-21026.55306759129,"d":"($21,027)"}},{"$f":"SUM('Trial 1'!CC13,'Trial 2'!CC13,'Trial 3'!CC13,'Trial 4'!CC13,'Trial 5'!CC13,'Trial 6'!CC13,'Trial 7'!CC13,'Trial 8'!CC13)","v":{"v":-38688.45916227215,"d":"($38,688)"}},{"$f":"SUM('Trial 1'!CD13,'Trial 2'!CD13,'Trial 3'!CD13,'Trial 4'!CD13,'Trial 5'!CD13,'Trial 6'!CD13,'Trial 7'!CD13,'Trial 8'!CD13)","v":{"v":54356.494468758494,"d":"$54,356"}},{"$f":"SUM('Trial 1'!CE13,'Trial 2'!CE13,'Trial 3'!CE13,'Trial 4'!CE13,'Trial 5'!CE13,'Trial 6'!CE13,'Trial 7'!CE13,'Trial 8'!CE13)","v":{"v":-87098.7053722678,"d":"($87,099)"}},{"$f":"SUM('Trial 1'!CF13,'Trial 2'!CF13,'Trial 3'!CF13,'Trial 4'!CF13,'Trial 5'!CF13,'Trial 6'!CF13,'Trial 7'!CF13,'Trial 8'!CF13)","v":{"v":-14013.107734092455,"d":"($14,013)"}},{"$f":"SUM('Trial 1'!CG13,'Trial 2'!CG13,'Trial 3'!CG13,'Trial 4'!CG13,'Trial 5'!CG13,'Trial 6'!CG13,'Trial 7'!CG13,'Trial 8'!CG13)","v":{"v":220379.2315318475,"d":"$220,379"}},{"$f":"SUM('Trial 1'!CH13,'Trial 2'!CH13,'Trial 3'!CH13,'Trial 4'!CH13,'Trial 5'!CH13,'Trial 6'!CH13,'Trial 7'!CH13,'Trial 8'!CH13)","v":{"v":30023.699098032794,"d":"$30,024"}},{"$f":"SUM('Trial 1'!CI13,'Trial 2'!CI13,'Trial 3'!CI13,'Trial 4'!CI13,'Trial 5'!CI13,'Trial 6'!CI13,'Trial 7'!CI13,'Trial 8'!CI13)","v":{"v":76401.75850572919,"d":"$76,402"}},{"$f":"SUM('Trial 1'!CJ13,'Trial 2'!CJ13,'Trial 3'!CJ13,'Trial 4'!CJ13,'Trial 5'!CJ13,'Trial 6'!CJ13,'Trial 7'!CJ13,'Trial 8'!CJ13)","v":{"v":43275.80368008578,"d":"$43,276"}},{"$f":"SUM('Trial 1'!CK13,'Trial 2'!CK13,'Trial 3'!CK13,'Trial 4'!CK13,'Trial 5'!CK13,'Trial 6'!CK13,'Trial 7'!CK13,'Trial 8'!CK13)","v":{"v":152255.40001810328,"d":"$152,255"}},{"$f":"SUM('Trial 1'!CL13,'Trial 2'!CL13,'Trial 3'!CL13,'Trial 4'!CL13,'Trial 5'!CL13,'Trial 6'!CL13,'Trial 7'!CL13,'Trial 8'!CL13)","v":{"v":-15537.38941127318,"d":"($15,537)"}},{"$f":"SUM('Trial 1'!CM13,'Trial 2'!CM13,'Trial 3'!CM13,'Trial 4'!CM13,'Trial 5'!CM13,'Trial 6'!CM13,'Trial 7'!CM13,'Trial 8'!CM13)","v":{"v":133763.0923058283,"d":"$133,763"}},{"$f":"SUM(CB252:CM252)","v":{"v":534091.2648608885,"d":"$534,091"}},{"$f":"SUM('Trial 1'!CO13,'Trial 2'!CO13,'Trial 3'!CO13,'Trial 4'!CO13,'Trial 5'!CO13,'Trial 6'!CO13,'Trial 7'!CO13,'Trial 8'!CO13)","v":{"v":65662.74170088908,"d":"$65,663"}},{"$f":"SUM('Trial 1'!CP13,'Trial 2'!CP13,'Trial 3'!CP13,'Trial 4'!CP13,'Trial 5'!CP13,'Trial 6'!CP13,'Trial 7'!CP13,'Trial 8'!CP13)","v":{"v":71794.11545133653,"d":"$71,794"}},{"$f":"SUM('Trial 1'!CQ13,'Trial 2'!CQ13,'Trial 3'!CQ13,'Trial 4'!CQ13,'Trial 5'!CQ13,'Trial 6'!CQ13,'Trial 7'!CQ13,'Trial 8'!CQ13)","v":{"v":59849.80514691603,"d":"$59,850"}},{"$f":"SUM('Trial 1'!CR13,'Trial 2'!CR13,'Trial 3'!CR13,'Trial 4'!CR13,'Trial 5'!CR13,'Trial 6'!CR13,'Trial 7'!CR13,'Trial 8'!CR13)","v":{"v":13816.937079560019,"d":"$13,817"}},{"$f":"SUM('Trial 1'!CS13,'Trial 2'!CS13,'Trial 3'!CS13,'Trial 4'!CS13,'Trial 5'!CS13,'Trial 6'!CS13,'Trial 7'!CS13,'Trial 8'!CS13)","v":{"v":-163793.2164043846,"d":"($163,793)"}},{"$f":"SUM('Trial 1'!CT13,'Trial 2'!CT13,'Trial 3'!CT13,'Trial 4'!CT13,'Trial 5'!CT13,'Trial 6'!CT13,'Trial 7'!CT13,'Trial 8'!CT13)","v":{"v":-80745.54710213184,"d":"($80,746)"}},{"$f":"SUM('Trial 1'!CU13,'Trial 2'!CU13,'Trial 3'!CU13,'Trial 4'!CU13,'Trial 5'!CU13,'Trial 6'!CU13,'Trial 7'!CU13,'Trial 8'!CU13)","v":{"v":193393.2913546191,"d":"$193,393"}},{"$f":"SUM('Trial 1'!CV13,'Trial 2'!CV13,'Trial 3'!CV13,'Trial 4'!CV13,'Trial 5'!CV13,'Trial 6'!CV13,'Trial 7'!CV13,'Trial 8'!CV13)","v":{"v":-25732.820089043384,"d":"($25,733)"}},{"$f":"SUM('Trial 1'!CW13,'Trial 2'!CW13,'Trial 3'!CW13,'Trial 4'!CW13,'Trial 5'!CW13,'Trial 6'!CW13,'Trial 7'!CW13,'Trial 8'!CW13)","v":{"v":-9737.445415868788,"d":"($9,737)"}},{"$f":"SUM('Trial 1'!CX13,'Trial 2'!CX13,'Trial 3'!CX13,'Trial 4'!CX13,'Trial 5'!CX13,'Trial 6'!CX13,'Trial 7'!CX13,'Trial 8'!CX13)","v":{"v":-43505.03438147453,"d":"($43,505)"}},{"$f":"SUM('Trial 1'!CY13,'Trial 2'!CY13,'Trial 3'!CY13,'Trial 4'!CY13,'Trial 5'!CY13,'Trial 6'!CY13,'Trial 7'!CY13,'Trial 8'!CY13)","v":{"v":63385.65301278057,"d":"$63,386"}},{"$f":"SUM('Trial 1'!CZ13,'Trial 2'!CZ13,'Trial 3'!CZ13,'Trial 4'!CZ13,'Trial 5'!CZ13,'Trial 6'!CZ13,'Trial 7'!CZ13,'Trial 8'!CZ13)","v":{"v":-30065.657452598025,"d":"($30,066)"}},{"$f":"SUM(CO252:CZ252)","v":{"v":114322.82290060016,"d":"$114,323"}},{"$f":"SUM('Trial 1'!DB13,'Trial 2'!DB13,'Trial 3'!DB13,'Trial 4'!DB13,'Trial 5'!DB13,'Trial 6'!DB13,'Trial 7'!DB13,'Trial 8'!DB13)","v":{"v":81165.8586806557,"d":"$81,166"}},{"$f":"SUM('Trial 1'!DC13,'Trial 2'!DC13,'Trial 3'!DC13,'Trial 4'!DC13,'Trial 5'!DC13,'Trial 6'!DC13,'Trial 7'!DC13,'Trial 8'!DC13)","v":{"v":-91489.43322368748,"d":"($91,489)"}},{"$f":"SUM('Trial 1'!DD13,'Trial 2'!DD13,'Trial 3'!DD13,'Trial 4'!DD13,'Trial 5'!DD13,'Trial 6'!DD13,'Trial 7'!DD13,'Trial 8'!DD13)","v":{"v":-34529.85622824644,"d":"($34,530)"}},{"$f":"SUM('Trial 1'!DE13,'Trial 2'!DE13,'Trial 3'!DE13,'Trial 4'!DE13,'Trial 5'!DE13,'Trial 6'!DE13,'Trial 7'!DE13,'Trial 8'!DE13)","v":{"v":60932.56971668069,"d":"$60,933"}},{"$f":"SUM('Trial 1'!DF13,'Trial 2'!DF13,'Trial 3'!DF13,'Trial 4'!DF13,'Trial 5'!DF13,'Trial 6'!DF13,'Trial 7'!DF13,'Trial 8'!DF13)","v":{"v":2375.2706331423847,"d":"$2,375"}},{"$f":"SUM('Trial 1'!DG13,'Trial 2'!DG13,'Trial 3'!DG13,'Trial 4'!DG13,'Trial 5'!DG13,'Trial 6'!DG13,'Trial 7'!DG13,'Trial 8'!DG13)","v":{"v":-23351.733454188012,"d":"($23,352)"}},{"$f":"SUM('Trial 1'!DH13,'Trial 2'!DH13,'Trial 3'!DH13,'Trial 4'!DH13,'Trial 5'!DH13,'Trial 6'!DH13,'Trial 7'!DH13,'Trial 8'!DH13)","v":{"v":-40536.41236725028,"d":"($40,536)"}},{"$f":"SUM('Trial 1'!DI13,'Trial 2'!DI13,'Trial 3'!DI13,'Trial 4'!DI13,'Trial 5'!DI13,'Trial 6'!DI13,'Trial 7'!DI13,'Trial 8'!DI13)","v":{"v":-66531.51734895205,"d":"($66,532)"}},{"$f":"SUM('Trial 1'!DJ13,'Trial 2'!DJ13,'Trial 3'!DJ13,'Trial 4'!DJ13,'Trial 5'!DJ13,'Trial 6'!DJ13,'Trial 7'!DJ13,'Trial 8'!DJ13)","v":{"v":3099.434163586964,"d":"$3,099"}},{"$f":"SUM('Trial 1'!DK13,'Trial 2'!DK13,'Trial 3'!DK13,'Trial 4'!DK13,'Trial 5'!DK13,'Trial 6'!DK13,'Trial 7'!DK13,'Trial 8'!DK13)","v":{"v":-15614.640581436566,"d":"($15,615)"}},{"$f":"SUM('Trial 1'!DL13,'Trial 2'!DL13,'Trial 3'!DL13,'Trial 4'!DL13,'Trial 5'!DL13,'Trial 6'!DL13,'Trial 7'!DL13,'Trial 8'!DL13)","v":{"v":-74016.77973894723,"d":"($74,017)"}},{"$f":"SUM('Trial 1'!DM13,'Trial 2'!DM13,'Trial 3'!DM13,'Trial 4'!DM13,'Trial 5'!DM13,'Trial 6'!DM13,'Trial 7'!DM13,'Trial 8'!DM13)","v":{"v":-49206.11038637114,"d":"($49,206)"}},{"$f":"SUM(DB252:DM252)","v":{"v":-247703.35013501346,"d":"($247,703)"}},{"$f":"SUM('Trial 1'!DO13,'Trial 2'!DO13,'Trial 3'!DO13,'Trial 4'!DO13,'Trial 5'!DO13,'Trial 6'!DO13,'Trial 7'!DO13,'Trial 8'!DO13)","v":{"v":81835.3561025161,"d":"$81,835"}},{"$f":"SUM('Trial 1'!DP13,'Trial 2'!DP13,'Trial 3'!DP13,'Trial 4'!DP13,'Trial 5'!DP13,'Trial 6'!DP13,'Trial 7'!DP13,'Trial 8'!DP13)","v":{"v":-45600.442138687016,"d":"($45,600)"}},{"$f":"SUM('Trial 1'!DQ13,'Trial 2'!DQ13,'Trial 3'!DQ13,'Trial 4'!DQ13,'Trial 5'!DQ13,'Trial 6'!DQ13,'Trial 7'!DQ13,'Trial 8'!DQ13)","v":{"v":121718.13465280997,"d":"$121,718"}},{"$f":"SUM('Trial 1'!DR13,'Trial 2'!DR13,'Trial 3'!DR13,'Trial 4'!DR13,'Trial 5'!DR13,'Trial 6'!DR13,'Trial 7'!DR13,'Trial 8'!DR13)","v":{"v":22692.18380163073,"d":"$22,692"}},{"$f":"SUM('Trial 1'!DS13,'Trial 2'!DS13,'Trial 3'!DS13,'Trial 4'!DS13,'Trial 5'!DS13,'Trial 6'!DS13,'Trial 7'!DS13,'Trial 8'!DS13)","v":{"v":9564.298294148575,"d":"$9,564"}},{"$f":"SUM('Trial 1'!DT13,'Trial 2'!DT13,'Trial 3'!DT13,'Trial 4'!DT13,'Trial 5'!DT13,'Trial 6'!DT13,'Trial 7'!DT13,'Trial 8'!DT13)","v":{"v":113642.99272917918,"d":"$113,643"}},{"$f":"SUM('Trial 1'!DU13,'Trial 2'!DU13,'Trial 3'!DU13,'Trial 4'!DU13,'Trial 5'!DU13,'Trial 6'!DU13,'Trial 7'!DU13,'Trial 8'!DU13)","v":{"v":45460.6252340528,"d":"$45,461"}},{"$f":"SUM('Trial 1'!DV13,'Trial 2'!DV13,'Trial 3'!DV13,'Trial 4'!DV13,'Trial 5'!DV13,'Trial 6'!DV13,'Trial 7'!DV13,'Trial 8'!DV13)","v":{"v":76014.8162104375,"d":"$76,015"}},{"$f":"SUM('Trial 1'!DW13,'Trial 2'!DW13,'Trial 3'!DW13,'Trial 4'!DW13,'Trial 5'!DW13,'Trial 6'!DW13,'Trial 7'!DW13,'Trial 8'!DW13)","v":{"v":31681.11194230287,"d":"$31,681"}},{"$f":"SUM('Trial 1'!DX13,'Trial 2'!DX13,'Trial 3'!DX13,'Trial 4'!DX13,'Trial 5'!DX13,'Trial 6'!DX13,'Trial 7'!DX13,'Trial 8'!DX13)","v":{"v":15005.288635141107,"d":"$15,005"}},{"$f":"SUM('Trial 1'!DY13,'Trial 2'!DY13,'Trial 3'!DY13,'Trial 4'!DY13,'Trial 5'!DY13,'Trial 6'!DY13,'Trial 7'!DY13,'Trial 8'!DY13)","v":{"v":24550.283891143277,"d":"$24,550"}},{"$f":"SUM('Trial 1'!DZ13,'Trial 2'!DZ13,'Trial 3'!DZ13,'Trial 4'!DZ13,'Trial 5'!DZ13,'Trial 6'!DZ13,'Trial 7'!DZ13,'Trial 8'!DZ13)","v":{"v":-111714.06276227027,"d":"($111,714)"}},{"$f":"SUM(DO252:DZ252)","v":{"v":384850.5865924048,"d":"$384,851"}},{"$f":"SUM('Trial 1'!EB13,'Trial 2'!EB13,'Trial 3'!EB13,'Trial 4'!EB13,'Trial 5'!EB13,'Trial 6'!EB13,'Trial 7'!EB13,'Trial 8'!EB13)","v":{"v":61098.38617737381,"d":"$61,098"}},{"$f":"SUM('Trial 1'!EC13,'Trial 2'!EC13,'Trial 3'!EC13,'Trial 4'!EC13,'Trial 5'!EC13,'Trial 6'!EC13,'Trial 7'!EC13,'Trial 8'!EC13)","v":{"v":-97661.17472123707,"d":"($97,661)"}},{"$f":"SUM('Trial 1'!ED13,'Trial 2'!ED13,'Trial 3'!ED13,'Trial 4'!ED13,'Trial 5'!ED13,'Trial 6'!ED13,'Trial 7'!ED13,'Trial 8'!ED13)","v":{"v":-49233.729142707656,"d":"($49,234)"}},{"$f":"SUM('Trial 1'!EE13,'Trial 2'!EE13,'Trial 3'!EE13,'Trial 4'!EE13,'Trial 5'!EE13,'Trial 6'!EE13,'Trial 7'!EE13,'Trial 8'!EE13)","v":{"v":24678.369906730095,"d":"$24,678"}},{"$f":"SUM('Trial 1'!EF13,'Trial 2'!EF13,'Trial 3'!EF13,'Trial 4'!EF13,'Trial 5'!EF13,'Trial 6'!EF13,'Trial 7'!EF13,'Trial 8'!EF13)","v":{"v":39104.91607853818,"d":"$39,105"}},{"$f":"SUM('Trial 1'!EG13,'Trial 2'!EG13,'Trial 3'!EG13,'Trial 4'!EG13,'Trial 5'!EG13,'Trial 6'!EG13,'Trial 7'!EG13,'Trial 8'!EG13)","v":{"v":-70396.11806291774,"d":"($70,396)"}},{"$f":"SUM('Trial 1'!EH13,'Trial 2'!EH13,'Trial 3'!EH13,'Trial 4'!EH13,'Trial 5'!EH13,'Trial 6'!EH13,'Trial 7'!EH13,'Trial 8'!EH13)","v":{"v":-36577.67176653037,"d":"($36,578)"}},{"$f":"SUM('Trial 1'!EI13,'Trial 2'!EI13,'Trial 3'!EI13,'Trial 4'!EI13,'Trial 5'!EI13,'Trial 6'!EI13,'Trial 7'!EI13,'Trial 8'!EI13)","v":{"v":-184849.17314928892,"d":"($184,849)"}},{"$f":"SUM('Trial 1'!EJ13,'Trial 2'!EJ13,'Trial 3'!EJ13,'Trial 4'!EJ13,'Trial 5'!EJ13,'Trial 6'!EJ13,'Trial 7'!EJ13,'Trial 8'!EJ13)","v":{"v":-33991.38440946724,"d":"($33,991)"}},{"$f":"SUM('Trial 1'!EK13,'Trial 2'!EK13,'Trial 3'!EK13,'Trial 4'!EK13,'Trial 5'!EK13,'Trial 6'!EK13,'Trial 7'!EK13,'Trial 8'!EK13)","v":{"v":54458.41024826226,"d":"$54,458"}},{"$f":"SUM('Trial 1'!EL13,'Trial 2'!EL13,'Trial 3'!EL13,'Trial 4'!EL13,'Trial 5'!EL13,'Trial 6'!EL13,'Trial 7'!EL13,'Trial 8'!EL13)","v":{"v":-53127.97198924311,"d":"($53,128)"}},{"$f":"SUM('Trial 1'!EM13,'Trial 2'!EM13,'Trial 3'!EM13,'Trial 4'!EM13,'Trial 5'!EM13,'Trial 6'!EM13,'Trial 7'!EM13,'Trial 8'!EM13)","v":{"v":43489.22675688862,"d":"$43,489"}},{"$f":"SUM(EB252:EM252)","v":{"v":-303007.9140735991,"d":"($303,008)"}}]

{"sheet":"Labels","index":15,"n_rows":103,"n_cols":5,"rows_kept":103,"merged":[[0,0,0,2],[1,0,1,2],[2,0,2,2],[3,0,3,2],[4,0,4,2]]}
[{"$f":"\"Equilibrium Economy with Shocks\"","v":"Equilibrium Economy with Shocks"}]
[{"$f":"\"Model: \"&Inputs!B8","v":"Model: Test Model"}]
[{"$f":"\"$ millions\"","v":"$ millions"}]
[{"$f":"\"Labels\"","v":"Labels"}]
[{"$f":"\"\"","v":""}]
["Model Start","2010-01-01"]
[]
["Variable","Display Label",null,null,"Comment"]
["Capital","Capital",null,null,"The capital stock, in each time period (expressed in millions). The net capital investment in the previous time period determines the change in capital in each time period, to avoid circularity"]
["Capital_Avg_Life","Avg Life Capital",null,null,"The average lifetime of capital stock expressed in years, in each time period"]
["Capital_Depreciation","Capital Depreciation",null,null,"The capital depreciation expense in each time period (in millions)"]
["Capital_Depreciation_mean","Capital Depreciation",null,null,"Average over trials of capital depreciation expense in each time period (in millions)"]
["Capital_Depreciation_stdev","Capital Depreciation std dev",null,null,"Standard deviation of capital depreciation expense in each time period (in millions)"]
["Capital_Desired","Desired Capital",null,null,"The desired capital stock in each time period (in millions)"]
["Capital_Desired_mean","Desired Capital",null,null,"Average over trials of desired capital stock in each time period (in millions)"]
["Capital_Desired_stdev","Desired Capital std dev",null,null,"Standard deviation over trials of desired capital stock in each time period (in millions)"]
["Capital_Equilib","Equilib Capital",null,null,"This is a numerical input parameter of the model."]
["Capital_Expon","Capital Exponent",null,null,"The capital productivity exponent used in the production function"]
["Capital_Investment","Capital Investment",null,null,"Capital investmnent in each time period (in millions)"]
["Capital_Investment_mean","Capital Investment",null,null,"Mean value over trials of Capital investmnent in each time period (in millions)"]
["Capital_Investment_stdev","Capital Investment std dev",null,null,"Standard deviation over trials of Capital investmnent in each time period (in millions)"]
["Capital_mean","Capital",null,null,"Mean value over trials of the capital stock, in each time period (expressed in millions). The net capital investment in the previous time period determines the change in capital in each time period, to avoid circularity"]
["Capital_stdev","Capital std dev",null,null,"Standard deviation over trials of the capital stock, in each time period (expressed in millions). The net capital investment in the previous time period determines the change in capital in each time period, to avoid circularity"]
["Consumption","Consumption",null,null,"Consumption spending, in each time period (in millions)"]
["Consumption_Avg_Propensity","Avg Propensity Consume",null,null,"The propensity to consume, expressed as a percent of output, in each time period"]
["Consumption_mean","Consumption",null,null,"Mean value over trials of Consumption spending, in each time period (in millions)"]
["Consumption_stdev","Consumption std dev",null,null,"Standard deviation over trials of Consumption spending, in each time period (in millions)"]
["Demand_Aggregate","Aggregate Demand",null,null,"The aggregate demand for goods and services in the economy, in each time period"]
["Demand_Aggregate_mean","Aggregate Demand",null,null,"Mean value over trials of aggregate demand for goods and services, in each time period"]
["Demand_Aggregate_stdev","Aggregate Demand std dev",null,null,"Standard deviation over trials of aggregate demand for goods and services, in each time period"]
["Demand_Expected_Long","Long Expected Demand",null,null,"The long-term expected demand for goods and services per time period, in each time period (in millions)"]
["Demand_Expected_Long_mean","Long Expected Demand",null,null,"Mean value over trials of long-term expected demand for goods and services per time period, in each time period (in millions)"]
["Demand_Expected_Long_stdev","Long Expected Demand std dev",null,null,"Standard deviation over trials of long-term expected demand for goods and services per time period, in each time period (in millions)"]
["Demand_Expected_Short","Short Expected Demand",null,null,"Short-term expected demand for goods and services per time period, in each time period (in millions)"]
["Demand_Expected_Short_mean","Short Expected Demand",null,null,"Mean value over trials of short-term expected demand for goods and services per time period, in each time period (in millions)"]
["Demand_Expected_Short_stdev","Short Expected Demand std dev",null,null,"Standard deviation over trials of short-term expected demand for goods and services per time period, in each time period (in millions)"]
["dt","dt",null,null,"The length of each time period in model time, expressed in years"]
["Employment","Employment",null,null,"The level of employment in each time period (expressed in millions of full-time-equivalent man-periods)"]
["Employment_Desired","Desired Employment",null,null,"The desired level of employment in each time period (expressed in millions of full-time-equivalent man-periods)"]
["Employment_Desired_mean","Desired Employment",null,null,"Average over trials of desired level of employment in each time period (expressed in millions of full-time-equivalent man-periods)"]
["Employment_Desired_stdev","Desired Employment std dev",null,null,"Standard deviation over trials of desired level of employment in each time period (expressed in millions of full-time-equivalent man-periods)"]
["Employment_Equilib","Equilibrium Employment",null,null,"The equilibrium level of employment (in millions of full-time-equivalent man-periods)"]
["Employment_mean","Employment",null,null,"Mean value over trials of Employment in each time period (expressed in millions of full-time-equivalent man-periods)"]
["Employment_stdev","Employment std dev",null,null,"Standard deviation over trials of Employment in each time period (expressed in millions of full-time-equivalent man-periods)"]
["Final_Sales","Final Sales",null,null,"The amount of goods and services sold in the economy, in each time period (in millions)"]
["Final_Sales_mean","Final Sales",null,null,"Mean value over trials of the amount of goods and services sold in the economy, in each time period (in millions)"]
["Final_Sales_stdev","Final Sales std dev",null,null,"Standard deviation over trials of the amount of goods and services sold in the economy, in each time period (in millions)"]
["Flexibility_Capacity_Utilization","Flexibility Capacity Utilization",null,null,"Flexibility of capacity unitlization. Measures how well the capital stock responds to short-term changes in demand."]
["Gov_Spend_Equilib","Equilib Gov Spending",null,null,"Government spending when the economy is in equilibrium"]
["Gov_Spend_Equilib_pct","Equilibrium Gov Spend %",null,null,"The ratio (equilibrium government spending) / (equilibrium output). This is a numerical input to the model."]
["Gov_Spending","Gov Spending",null,null,"Total government spending, in each time period (in millions)"]
["Gov_Transfers","Gov Transfers",null,null,"Total government transfer payments, in each time period (in millions)"]
["Gov_Transfers_Equilib","Equilib Gov Transfers",null,null,"The equilibrium level of government transfer payments in each time period, given current policies (in millions)"]
["Gov_Transfers_Equilib_pct","Equilibrium Gov Transfers %",null,null,"The ratio (equilibrium government transfer payments) / (equilibrium output). This is a numerical input to the model."]
["Income_Current_Disposable","Current Disposable Income",null,null,"Current disposable income, in each time period (in millions)"]
["Income_Current_Disposable_mean","Current Disposable Income",null,null,"Mean value over trials of Current disposable income, in each time period (in millions)"]
["Income_Current_Disposable_stdev","Cur Disposable Income std dev",null,null,"Standard deviation over trials of Current disposable income, in each time period (in millions)"]
["Income_Permanent","Permanent Income",null,null,"Consumers' expectation of their permanent income per time period, in each time period (in $ millions). This variable enters into consumers' decisions about how much of their income to spend."]
["Income_Permanent_mean","Permanent Income",null,null,"Average over trials of consumers' expectation of their permanent income per time period, in each time period (in $ millions). This variable enters into consumers' decisions about how much of their income to spend."]
["Income_Permanent_stdev","Permanent Income std dev",null,null,"Standard deviation over trials of consumers' expectation of their permanent income per time period, in each time period (in $ millions). This variable enters into consumers' decisions about how much of their income to spend."]
["Interest_Rate_Long","Long Interest Rate",null,null,"The long-term interest rate per period on debt"]
["Interest_Rate_Long_Yr","Long Annual Interest Rate",null,null,"The long-term annual interest rate on debt. This is a numerical input parameter of the model."]
["Model_Name","Model Name",null,null,"Name by which this model is known, as it appears at the top of each worksheet"]
["Output","Output",null,null,"The total output per time period, in each time period (in millions)"]
["Output_Equilib","Equilibrium Output",null,null,"Equilibrium output per time period (in millions)"]
["Output_Equilib_Yr","Equilibrium Annual Output",null,null,"Equilibrium annual output (in millions)"]
["Output_mean","Output",null,null,"Mean value over trials of total output per time period, in each time period (in millions)"]
["Output_Potential","Potential Output",null,null,"Potential output per time period given capital and labor inputs, in each time period (in millions). Output generally is lower than this level because capital is not flexible enough to be fully redeployed in response to fluctuations of demand.\n\nThis production function assumes that the economy has no scale effect; that is, doubling inputs to the economy doubles output."]
["Output_Potential_mean","Potential Output",null,null,"Average over trials of potential output per time period given capital and labor inputs, in each time period (in millions). Output generally is lower than this level because capital is not flexible enough to be fully redeployed in response to fluctuations of demand.\n\nThis production function assumes that the economy has no scale effect; that is, doubling inputs to the economy doubles output."]
["Output_Potential_stdev","Potential Output std dev",null,null,"Standard deviation over trials of potential output per time period given capital and labor inputs, in each time period (in millions). Output generally is lower than this level because capital is not flexible enough to be fully redeployed in response to fluctuations of demand.\n\nThis production function assumes that the economy has no scale effect; that is, doubling inputs to the economy doubles output."]
["Output_stdev","Output std dev",null,null,"Standard deviation over trials of total output per time period, in each time period (in millions)"]
["Real_Wage_Equilib","Equilib Real Wage",null,null,"The real wage per time period when the economy is in equilibrium (expressed in $ millions per million full time equivalent man-periods)"]
["Real_Wage_Equilib_pct","Equilibrium Real Wage %",null,null,"The ratio (equilibrium real wage) / (national income). This is a numerical input parameter of the model."]
["Shock_Aggregate_Demand","Aggregate Demand Shock",null,null,"A random shock to the aggregate demand of the economy, in each time period"]
["Shock_Aggregate_Demand_mean","Aggregate Demand Shock",null,null,"Mean value over trials of shocks to the aggregate demand of the economy, in each time period"]
["Shock_Aggregate_Demand_stdev","Aggregate Demand Shock std dev",null,null,"Standard deviation over trials of shocks to the aggregate demand of the economy, in each time period"]
["Shock_Cutoff","Shock_Cutoff",null,null,"The limit in outliers for random shocks, expressed in terms of the cumulative tail probability below which shocks are not allowed."]
["Shock_Output","Output Shock",null,null,"A random shock to the output of the economy, in each time period"]
["Shock_Output_mean","Output Shock",null,null,"Mean value over trials of random shock to the output of the economy, in each time period"]
["Shock_Output_stdev","Output Shock std dev",null,null,"Standard deviation over trials of random shock to the output of the economy, in each time period"]
["Shock_Std_Dev","Shock_Std_Dev",null,null,"The standard deviation of all the random shock terms in the model. The std dev changes as the sqrt of the time period because it is a \"Gauss-Wiener process\", which generalizes a Gaussian random walk to time steps of all sizes."]
["Shock_Std_Dev_pct","Shock Std Deviation %",null,null,"The ratio (std dev of random shock) / (national income). This parameter does not depend on time because the model is based on an equilibrium economy with random shocks. This is a numerical input parameter of the model."]
["Tax","Tax",null,null,"Total taxes in the economy (in $ millions), in each time period"]
["Tax_mean","Tax",null,null,"Mean value over trials of total taxes (in millions), in each time period"]
["Tax_Rate","Tax Rate",null,null,"The average rate of taxation of all kinds including local, state and federal. This is a numerical input parameter of the model."]
["Tax_stdev","Tax std dev",null,null,"Standard deviation over trials of total taxes (in millions), in each time period"]
["Time","Time",null,null,"Time in years from the beginning of Model Time"]
["Time_Adjust_Capital","Time Adjust Capital",null,null,"The characteristic time needed for the stock of capital to adjust to changes in demand, expressed in years"]
["Time_Adjust_Employment","Time Adjust Employment",null,null,"The characteristic time needed for the level of employment to respond to changes in demand, expressed in years"]
["Time_Smooth_Income","Time Smooth Income",null,null,"The characteristic time needed for consumers to adjust their expectation of permanent income as their incomes change, expressed in years"]
["Time_Smooth_Long_Demand","Time Smooth Long Demand",null,null,"The characteristic time needed for long-term expected demand to adjust to changes in aggregate demand, expressed in years"]
["Time_Smooth_Short_Demand","Time Smooth Short Demand",null,null,"The characteristic time needed for short-term expected demand to adjust to changes in aggregate demand, expressed in years"]
[]
["Dimension (item)","Display Item As","Total As","Level As","Comment"]
["Trials","Trials","Total","Trials"]
["  Trial_01","Trial 01",null,"Trials"]
["  Trial_02","Trial 02"]
["  Trial_03","Trial 03"]
["  Trial_04","Trial 04"]
["  Trial_05","Trial 05"]
["  Trial_06","Trial 06"]
["  Trial_07","Trial 07"]
["  Trial_08","Trial 08"]

{"sheet":"ZZZ__FnCalls","index":16,"n_rows":138,"n_cols":8,"rows_kept":138,"hidden":true,"merged":[[0,0,0,2],[1,0,1,2],[2,0,2,2],[3,0,3,2],[4,0,4,2]]}
[{"$f":"\"Equilibrium Economy with Shocks\"","v":"Equilibrium Economy with Shocks"}]
[{"$f":"\"Model: \"&Inputs!B8","v":"Model: Test Model"}]
[{"$f":"\"$ millions\"","v":"$ millions"}]
[{"$f":"\"ZZZ__FnCalls\"","v":"ZZZ__FnCalls"}]
[{"$f":"\"\"","v":""}]
[{"$f":"IF(WEEKDAY(Labels!B6)>=1,Labels!B6-WEEKDAY(Labels!B6)+1,Labels!B6-(7-(1-WEEKDAY(Labels!B6))))","v":"2009-12-27"}]
[{"$f":"DATE(YEAR(Labels!B6)+(0),MONTH(Labels!B6)+(0),1)","v":"2010-01-01"},null,{"$f":"Labels!B6+(0)","v":"2010-01-01"},{"$f":"TEXT(C7,\"m/d/yyyy\")","v":"1/1/2010"},null,{"$f":"TEXT(A7,\"MMM yyyy\")","v":"Jan 2010"},{"$f":"\"Q\"&(TRUNC((MONTH(A7)-1)/3)+1)&\" \"&YEAR(A7)","v":"Q1 2010"},{"$f":"TEXT(YEAR(A7),\"0000\")","v":"2010"}]
[{"$f":"DATE(YEAR(Labels!B6)+(0),MONTH(Labels!B6)+(1),1)","v":"2010-02-01"},null,{"$f":"Labels!B6+(31)","v":"2010-02-01"},"2/1/2010",null,"Feb 2010"]
[{"$f":"DATE(YEAR(Labels!B6)+(0),MONTH(Labels!B6)+(2),1)","v":"2010-03-01"},null,{"$f":"Labels!B6+(59)","v":"2010-03-01"},"3/1/2010",null,"Mar 2010"]
[{"$f":"DATE(YEAR(Labels!B6)+(0),MONTH(Labels!B6)+(3),1)","v":"2010-04-01"},null,{"$f":"Labels!B6+(90)","v":"2010-04-01"},"4/1/2010",null,"Apr 2010",{"$f":"\"Q\"&(TRUNC((MONTH(A10)-1)/3)+1)&\" \"&YEAR(A10)","v":"Q2 2010"}]
[{"$f":"DATE(YEAR(Labels!B6)+(0),MONTH(Labels!B6)+(4),1)","v":"2010-05-01"},null,{"$f":"Labels!B6+(120)","v":"2010-05-01"},"5/1/2010",null,"May 2010"]
[{"$f":"DATE(YEAR(Labels!B6)+(0),MONTH(Labels!B6)+(5),1)","v":"2010-06-01"},null,{"$f":"Labels!B6+(151)","v":"2010-06-01"},"6/1/2010",null,"Jun 2010"]
[{"$f":"DATE(YEAR(Labels!B6)+(0),MONTH(Labels!B6)+(6),1)","v":"2010-07-01"},null,{"$f":"Labels!B6+(181)","v":"2010-07-01"},"7/1/2010",null,"Jul 2010",{"$f":"\"Q\"&(TRUNC((MONTH(A13)-1)/3)+1)&\" \"&YEAR(A13)","v":"Q3 2010"}]
[{"$f":"DATE(YEAR(Labels!B6)+(0),MONTH(Labels!B6)+(7),1)","v":"2010-08-01"},{"$f":"A6+(217)","v":"2010-08-01"},{"$f":"Labels!B6+(212)","v":"2010-08-01"},"8/1/2010",{"$f":"\"W \"&TEXT(B14,\"m/d/yyyy\")","v":"W 8/1/2010"},"Aug 2010"]
[{"$f":"DATE(YEAR(Labels!B6)+(0),MONTH(Labels!B6)+(8),1)","v":"2010-09-01"},null,{"$f":"Labels!B6+(243)","v":"2010-09-01"},"9/1/2010",null,"Sep 2010"]
[{"$f":"DATE(YEAR(Labels!B6)+(0),MONTH(Labels!B6)+(9),1)","v":"2010-10-01"},null,{"$f":"Labels!B6+(273)","v":"2010-10-01"},"10/1/2010",null,"Oct 2010",{"$f":"\"Q\"&(TRUNC((MONTH(A16)-1)/3)+1)&\" \"&YEAR(A16)","v":"Q4 2010"}]
[{"$f":"DATE(YEAR(Labels!B6)+(0),MONTH(Labels!B6)+(10),1)","v":"2010-11-01"},null,{"$f":"Labels!B6+(304)","v":"2010-11-01"},"11/1/2010",null,"Nov 2010"]
[{"$f":"DATE(YEAR(Labels!B6)+(0),MONTH(Labels!B6)+(11),1)","v":"2010-12-01"},null,{"$f":"Labels!B6+(334)","v":"2010-12-01"},"12/1/2010",null,"Dec 2010"]
[{"$f":"DATE(YEAR(Labels!B6)+(1),MONTH(Labels!B6)+(0),1)","v":"2011-01-01"},null,{"$f":"Labels!B6+(365)","v":"2011-01-01"},"1/1/2011",null,"Jan 2011",{"$f":"\"Q\"&(TRUNC((MONTH(A19)-1)/3)+1)&\" \"&YEAR(A19)","v":"Q1 2011"},{"$f":"TEXT(YEAR(A19),\"0000\")","v":"2011"}]
[{"$f":"DATE(YEAR(Labels!B6)+(1),MONTH(Labels!B6)+(1),1)","v":"2011-02-01"},null,{"$f":"Labels!B6+(396)","v":"2011-02-01"},"2/1/2011",null,"Feb 2011"]
[{"$f":"DATE(YEAR(Labels!B6)+(1),MONTH(Labels!B6)+(2),1)","v":"2011-03-01"},null,{"$f":"Labels!B6+(424)","v":"2011-03-01"},"3/1/2011",null,"Mar 2011"]
[{"$f":"DATE(YEAR(Labels!B6)+(1),MONTH(Labels!B6)+(3),1)","v":"2011-04-01"},null,{"$f":"Labels!B6+(455)","v":"2011-04-01"},"4/1/2011",null,"Apr 2011",{"$f":"\"Q\"&(TRUNC((MONTH(A22)-1)/3)+1)&\" \"&YEAR(A22)","v":"Q2 2011"}]
[{"$f":"DATE(YEAR(Labels!B6)+(1),MONTH(Labels!B6)+(4),1)","v":"2011-05-01"},{"$f":"A6+(490)","v":"2011-05-01"},{"$f":"Labels!B6+(485)","v":"2011-05-01"},"5/1/2011",{"$f":"\"W \"&TEXT(B23,\"m/d/yyyy\")","v":"W 5/1/2011"},"May 2011"]
[{"$f":"DATE(YEAR(Labels!B6)+(1),MONTH(Labels!B6)+(5),1)","v":"2011-06-01"},null,{"$f":"Labels!B6+(516)","v":"2011-06-01"},"6/1/2011",null,"Jun 2011"]
[{"$f":"DATE(YEAR(Labels!B6)+(1),MONTH(Labels!B6)+(6),1)","v":"2011-07-01"},null,{"$f":"Labels!B6+(546)","v":"2011-07-01"},"7/1/2011",null,"Jul 2011",{"$f":"\"Q\"&(TRUNC((MONTH(A25)-1)/3)+1)&\" \"&YEAR(A25)","v":"Q3 2011"}]
[{"$f":"DATE(YEAR(Labels!B6)+(1),MONTH(Labels!B6)+(7),1)","v":"2011-08-01"},null,{"$f":"Labels!B6+(577)","v":"2011-08-01"},"8/1/2011",null,"Aug 2011"]
[{"$f":"DATE(YEAR(Labels!B6)+(1),MONTH(Labels!B6)+(8),1)","v":"2011-09-01"},null,{"$f":"Labels!B6+(608)","v":"2011-09-01"},"9/1/2011",null,"Sep 2011"]
[{"$f":"DATE(YEAR(Labels!B6)+(1),MONTH(Labels!B6)+(9),1)","v":"2011-10-01"},null,{"$f":"Labels!B6+(638)","v":"2011-10-01"},"10/1/2011",null,"Oct 2011",{"$f":"\"Q\"&(TRUNC((MONTH(A28)-1)/3)+1)&\" \"&YEAR(A28)","v":"Q4 2011"}]
[{"$f":"DATE(YEAR(Labels!B6)+(1),MONTH(Labels!B6)+(10),1)","v":"2011-11-01"},null,{"$f":"Labels!B6+(669)","v":"2011-11-01"},"11/1/2011",null,"Nov 2011"]
[{"$f":"DATE(YEAR(Labels!B6)+(1),MONTH(Labels!B6)+(11),1)","v":"2011-12-01"},null,{"$f":"Labels!B6+(699)","v":"2011-12-01"},"12/1/2011",null,"Dec 2011"]
[{"$f":"DATE(YEAR(Labels!B6)+(2),MONTH(Labels!B6)+(0),1)","v":"2012-01-01"},{"$f":"A6+(735)","v":"2012-01-01"},{"$f":"Labels!B6+(730)","v":"2012-01-01"},"1/1/2012",{"$f":"\"W \"&TEXT(B31,\"m/d/yyyy\")","v":"W 1/1/2012"},"Jan 2012",{"$f":"\"Q\"&(TRUNC((MONTH(A31)-1)/3)+1)&\" \"&YEAR(A31)","v":"Q1 2012"},{"$f":"TEXT(YEAR(A31),\"0000\")","v":"2012"}]
[{"$f":"DATE(YEAR(Labels!B6)+(2),MONTH(Labels!B6)+(1),1)","v":"2012-02-01"},null,{"$f":"Labels!B6+(761)","v":"2012-02-01"},"2/1/2012",null,"Feb 2012"]
[{"$f":"DATE(YEAR(Labels!B6)+(2),MONTH(Labels!B6)+(2),1)","v":"2012-03-01"},null,{"$f":"Labels!B6+(790)","v":"2012-03-01"},"3/1/2012",null,"Mar 2012"]
[{"$f":"DATE(YEAR(Labels!B6)+(2),MONTH(Labels!B6)+(3),1)","v":"2012-04-01"},{"$f":"A6+(826)","v":"2012-04-01"},{"$f":"Labels!B6+(821)","v":"2012-04-01"},"4/1/2012",{"$f":"\"W \"&TEXT(B34,\"m/d/yyyy\")","v":"W 4/1/2012"},"Apr 2012",{"$f":"\"Q\"&(TRUNC((MONTH(A34)-1)/3)+1)&\" \"&YEAR(A34)","v":"Q2 2012"}]
[{"$f":"DATE(YEAR(Labels!B6)+(2),MONTH(Labels!B6)+(4),1)","v":"2012-05-01"},null,{"$f":"Labels!B6+(851)","v":"2012-05-01"},"5/1/2012",null,"May 2012"]
[{"$f":"DATE(YEAR(Labels!B6)+(2),MONTH(Labels!B6)+(5),1)","v":"2012-06-01"},null,{"$f":"Labels!B6+(882)","v":"2012-06-01"},"6/1/2012",null,"Jun 2012"]
[{"$f":"DATE(YEAR(Labels!B6)+(2),MONTH(Labels!B6)+(6),1)","v":"2012-07-01"},{"$f":"A6+(917)","v":"2012-07-01"},{"$f":"Labels!B6+(912)","v":"2012-07-01"},"7/1/2012",{"$f":"\"W \"&TEXT(B37,\"m/d/yyyy\")","v":"W 7/1/2012"},"Jul 2012",{"$f":"\"Q\"&(TRUNC((MONTH(A37)-1)/3)+1)&\" \"&YEAR(A37)","v":"Q3 2012"}]
[{"$f":"DATE(YEAR(Labels!B6)+(2),MONTH(Labels!B6)+(7),1)","v":"2012-08-01"},null,{"$f":"Labels!B6+(943)","v":"2012-08-01"},"8/1/2012",null,"Aug 2012"]
[{"$f":"DATE(YEAR(Labels!B6)+(2),MONTH(Labels!B6)+(8),1)","v":"2012-09-01"},null,{"$f":"Labels!B6+(974)","v":"2012-09-01"},{"$f":"TEXT(C39,\"m/d/yyyy\")","v":"9/1/2012"},null,{"$f":"TEXT(A39,\"MMM yyyy\")","v":"Sep 2012"}]
[{"$f":"DATE(YEAR(Labels!B6)+(2),MONTH(Labels!B6)+(9),1)","v":"2012-10-01"},null,{"$f":"Labels!B6+(1004)","v":"2012-10-01"},"10/1/2012",null,"Oct 2012",{"$f":"\"Q\"&(TRUNC((MONTH(A40)-1)/3)+1)&\" \"&YEAR(A40)","v":"Q4 2012"}]
[{"$f":"DATE(YEAR(Labels!B6)+(2),MONTH(Labels!B6)+(10),1)","v":"2012-11-01"},null,{"$f":"Labels!B6+(1035)","v":"2012-11-01"},"11/1/2012",null,"Nov 2012"]
[{"$f":"DATE(YEAR(Labels!B6)+(2),MONTH(Labels!B6)+(11),1)","v":"2012-12-01"},null,{"$f":"Labels!B6+(1065)","v":"2012-12-01"},"12/1/2012",null,"Dec 2012"]
[{"$f":"DATE(YEAR(Labels!B6)+(3),MONTH(Labels!B6)+(0),1)","v":"2013-01-01"},null,{"$f":"Labels!B6+(1096)","v":"2013-01-01"},"1/1/2013",null,"Jan 2013",{"$f":"\"Q\"&(TRUNC((MONTH(A43)-1)/3)+1)&\" \"&YEAR(A43)","v":"Q1 2013"},{"$f":"TEXT(YEAR(A43),\"0000\")","v":"2013"}]
[{"$f":"DATE(YEAR(Labels!B6)+(3),MONTH(Labels!B6)+(1),1)","v":"2013-02-01"},null,{"$f":"Labels!B6+(1127)","v":"2013-02-01"},"2/1/2013",null,"Feb 2013"]
[{"$f":"DATE(YEAR(Labels!B6)+(3),MONTH(Labels!B6)+(2),1)","v":"2013-03-01"},null,{"$f":"Labels!B6+(1155)","v":"2013-03-01"},"3/1/2013",null,"Mar 2013"]
[{"$f":"DATE(YEAR(Labels!B6)+(3),MONTH(Labels!B6)+(3),1)","v":"2013-04-01"},null,{"$f":"Labels!B6+(1186)","v":"2013-04-01"},"4/1/2013",null,"Apr 2013",{"$f":"\"Q\"&(TRUNC((MONTH(A46)-1)/3)+1)&\" \"&YEAR(A46)","v":"Q2 2013"}]
[{"$f":"DATE(YEAR(Labels!B6)+(3),MONTH(Labels!B6)+(4),1)","v":"2013-05-01"},null,{"$f":"Labels!B6+(1216)","v":"2013-05-01"},"5/1/2013",null,"May 2013"]
[{"$f":"DATE(YEAR(Labels!B6)+(3),MONTH(Labels!B6)+(5),1)","v":"2013-06-01"},null,{"$f":"Labels!B6+(1247)","v":"2013-06-01"},"6/1/2013",null,"Jun 2013"]
[{"$f":"DATE(YEAR(Labels!B6)+(3),MONTH(Labels!B6)+(6),1)","v":"2013-07-01"},null,{"$f":"Labels!B6+(1277)","v":"2013-07-01"},"7/1/2013",null,"Jul 2013",{"$f":"\"Q\"&(TRUNC((MONTH(A49)-1)/3)+1)&\" \"&YEAR(A49)","v":"Q3 2013"}]
[{"$f":"DATE(YEAR(Labels!B6)+(3),MONTH(Labels!B6)+(7),1)","v":"2013-08-01"},null,{"$f":"Labels!B6+(1308)","v":"2013-08-01"},"8/1/2013",null,"Aug 2013"]
[{"$f":"DATE(YEAR(Labels!B6)+(3),MONTH(Labels!B6)+(8),1)","v":"2013-09-01"},{"$f":"A6+(1344)","v":"2013-09-01"},{"$f":"Labels!B6+(1339)","v":"2013-09-01"},"9/1/2013",{"$f":"\"W \"&TEXT(B51,\"m/d/yyyy\")","v":"W 9/1/2013"},"Sep 2013"]
[{"$f":"DATE(YEAR(Labels!B6)+(3),MONTH(Labels!B6)+(9),1)","v":"2013-10-01"},null,{"$f":"Labels!B6+(1369)","v":"2013-10-01"},"10/1/2013",null,"Oct 2013",{"$f":"\"Q\"&(TRUNC((MONTH(A52)-1)/3)+1)&\" \"&YEAR(A52)","v":"Q4 2013"}]
[{"$f":"DATE(YEAR(Labels!B6)+(3),MONTH(Labels!B6)+(10),1)","v":"2013-11-01"},null,{"$f":"Labels!B6+(1400)","v":"2013-11-01"},"11/1/2013",null,"Nov 2013"]
[{"$f":"DATE(YEAR(Labels!B6)+(3),MONTH(Labels!B6)+(11),1)","v":"2013-12-01"},{"$f":"A6+(1435)","v":"2013-12-01"},{"$f":"Labels!B6+(1430)","v":"2013-12-01"},"12/1/2013",{"$f":"\"W \"&TEXT(B54,\"m/d/yyyy\")","v":"W 12/1/2013"},"Dec 2013"]
[{"$f":"DATE(YEAR(Labels!B6)+(4),MONTH(Labels!B6)+(0),1)","v":"2014-01-01"},null,{"$f":"Labels!B6+(1461)","v":"2014-01-01"},"1/1/2014",null,"Jan 2014",{"$f":"\"Q\"&(TRUNC((MONTH(A55)-1)/3)+1)&\" \"&YEAR(A55)","v":"Q1 2014"},{"$f":"TEXT(YEAR(A55),\"0000\")","v":"2014"}]
[{"$f":"DATE(YEAR(Labels!B6)+(4),MONTH(Labels!B6)+(1),1)","v":"2014-02-01"},null,{"$f":"Labels!B6+(1492)","v":"2014-02-01"},"2/1/2014",null,"Feb 2014"]
[{"$f":"DATE(YEAR(Labels!B6)+(4),MONTH(Labels!B6)+(2),1)","v":"2014-03-01"},null,{"$f":"Labels!B6+(1520)","v":"2014-03-01"},"3/1/2014",null,"Mar 2014"]
[{"$f":"DATE(YEAR(Labels!B6)+(4),MONTH(Labels!B6)+(3),1)","v":"2014-04-01"},null,{"$f":"Labels!B6+(1551)","v":"2014-04-01"},"4/1/2014",null,"Apr 2014",{"$f":"\"Q\"&(TRUNC((MONTH(A58)-1)/3)+1)&\" \"&YEAR(A58)","v":"Q2 2014"}]
[{"$f":"DATE(YEAR(Labels!B6)+(4),MONTH(Labels!B6)+(4),1)","v":"2014-05-01"},null,{"$f":"Labels!B6+(1581)","v":"2014-05-01"},"5/1/2014",null,"May 2014"]
[{"$f":"DATE(YEAR(Labels!B6)+(4),MONTH(Labels!B6)+(5),1)","v":"2014-06-01"},{"$f":"A6+(1617)","v":"2014-06-01"},{"$f":"Labels!B6+(1612)","v":"2014-06-01"},"6/1/2014",{"$f":"\"W \"&TEXT(B60,\"m/d/yyyy\")","v":"W 6/1/2014"},"Jun 2014"]
[{"$f":"DATE(YEAR(Labels!B6)+(4),MONTH(Labels!B6)+(6),1)","v":"2014-07-01"},null,{"$f":"Labels!B6+(1642)","v":"2014-07-01"},"7/1/2014",null,"Jul 2014",{"$f":"\"Q\"&(TRUNC((MONTH(A61)-1)/3)+1)&\" \"&YEAR(A61)","v":"Q3 2014"}]
[{"$f":"DATE(YEAR(Labels!B6)+(4),MONTH(Labels!B6)+(7),1)","v":"2014-08-01"},null,{"$f":"Labels!B6+(1673)","v":"2014-08-01"},"8/1/2014",null,"Aug 2014"]
[{"$f":"DATE(YEAR(Labels!B6)+(4),MONTH(Labels!B6)+(8),1)","v":"2014-09-01"},null,{"$f":"Labels!B6+(1704)","v":"2014-09-01"},"9/1/2014",null,"Sep 2014"]
[{"$f":"DATE(YEAR(Labels!B6)+(4),MONTH(Labels!B6)+(9),1)","v":"2014-10-01"},null,{"$f":"Labels!B6+(1734)","v":"2014-10-01"},"10/1/2014",null,"Oct 2014",{"$f":"\"Q\"&(TRUNC((MONTH(A64)-1)/3)+1)&\" \"&YEAR(A64)","v":"Q4 2014"}]
[{"$f":"DATE(YEAR(Labels!B6)+(4),MONTH(Labels!B6)+(10),1)","v":"2014-11-01"},null,{"$f":"Labels!B6+(1765)","v":"2014-11-01"},"11/1/2014",null,"Nov 2014"]
[{"$f":"DATE(YEAR(Labels!B6)+(4),MONTH(Labels!B6)+(11),1)","v":"2014-12-01"},null,{"$f":"Labels!B6+(1795)","v":"2014-12-01"},"12/1/2014",null,"Dec 2014"]
[{"$f":"DATE(YEAR(Labels!B6)+(5),MONTH(Labels!B6)+(0),1)","v":"2015-01-01"},null,{"$f":"Labels!B6+(1826)","v":"2015-01-01"},"1/1/2015",null,"Jan 2015",{"$f":"\"Q\"&(TRUNC((MONTH(A67)-1)/3)+1)&\" \"&YEAR(A67)","v":"Q1 2015"},{"$f":"TEXT(YEAR(A67),\"0000\")","v":"2015"}]
[{"$f":"DATE(YEAR(Labels!B6)+(5),MONTH(Labels!B6)+(1),1)","v":"2015-02-01"},{"$f":"A6+(1862)","v":"2015-02-01"},{"$f":"Labels!B6+(1857)","v":"2015-02-01"},"2/1/2015",{"$f":"\"W \"&TEXT(B68,\"m/d/yyyy\")","v":"W 2/1/2015"},"Feb 2015"]
[{"$f":"DATE(YEAR(Labels!B6)+(5),MONTH(Labels!B6)+(2),1)","v":"2015-03-01"},{"$f":"A6+(1890)","v":"2015-03-01"},{"$f":"Labels!B6+(1885)","v":"2015-03-01"},"3/1/2015",{"$f":"\"W \"&TEXT(B69,\"m/d/yyyy\")","v":"W 3/1/2015"},"Mar 2015"]
[{"$f":"DATE(YEAR(Labels!B6)+(5),MONTH(Labels!B6)+(3),1)","v":"2015-04-01"},null,{"$f":"Labels!B6+(1916)","v":"2015-04-01"},"4/1/2015",null,"Apr 2015",{"$f":"\"Q\"&(TRUNC((MONTH(A70)-1)/3)+1)&\" \"&YEAR(A70)","v":"Q2 2015"}]
[{"$f":"DATE(YEAR(Labels!B6)+(5),MONTH(Labels!B6)+(4),1)","v":"2015-05-01"},null,{"$f":"Labels!B6+(1946)","v":"2015-05-01"},{"$f":"TEXT(C71,\"m/d/yyyy\")","v":"5/1/2015"},null,{"$f":"TEXT(A71,\"MMM yyyy\")","v":"May 2015"}]
[{"$f":"DATE(YEAR(Labels!B6)+(5),MONTH(Labels!B6)+(5),1)","v":"2015-06-01"},null,{"$f":"Labels!B6+(1977)","v":"2015-06-01"},"6/1/2015",null,"Jun 2015"]
[{"$f":"DATE(YEAR(Labels!B6)+(5),MONTH(Labels!B6)+(6),1)","v":"2015-07-01"},null,{"$f":"Labels!B6+(2007)","v":"2015-07-01"},"7/1/2015",null,"Jul 2015",{"$f":"\"Q\"&(TRUNC((MONTH(A73)-1)/3)+1)&\" \"&YEAR(A73)","v":"Q3 2015"}]
[{"$f":"DATE(YEAR(Labels!B6)+(5),MONTH(Labels!B6)+(7),1)","v":"2015-08-01"},null,{"$f":"Labels!B6+(2038)","v":"2015-08-01"},"8/1/2015",null,"Aug 2015"]
[{"$f":"DATE(YEAR(Labels!B6)+(5),MONTH(Labels!B6)+(8),1)","v":"2015-09-01"},null,{"$f":"Labels!B6+(2069)","v":"2015-09-01"},"9/1/2015",null,"Sep 2015"]
[{"$f":"DATE(YEAR(Labels!B6)+(5),MONTH(Labels!B6)+(9),1)","v":"2015-10-01"},null,{"$f":"Labels!B6+(2099)","v":"2015-10-01"},"10/1/2015",null,"Oct 2015",{"$f":"\"Q\"&(TRUNC((MONTH(A76)-1)/3)+1)&\" \"&YEAR(A76)","v":"Q4 2015"}]
[{"$f":"DATE(YEAR(Labels!B6)+(5),MONTH(Labels!B6)+(10),1)","v":"2015-11-01"},{"$f":"A6+(2135)","v":"2015-11-01"},{"$f":"Labels!B6+(2130)","v":"2015-11-01"},"11/1/2015",{"$f":"\"W \"&TEXT(B77,\"m/d/yyyy\")","v":"W 11/1/2015"},"Nov 2015"]
[{"$f":"DATE(YEAR(Labels!B6)+(5),MONTH(Labels!B6)+(11),1)","v":"2015-12-01"},null,{"$f":"Labels!B6+(2160)","v":"2015-12-01"},"12/1/2015",null,"Dec 2015"]
[{"$f":"DATE(YEAR(Labels!B6)+(6),MONTH(Labels!B6)+(0),1)","v":"2016-01-01"},null,{"$f":"Labels!B6+(2191)","v":"2016-01-01"},"1/1/2016",null,"Jan 2016",{"$f":"\"Q\"&(TRUNC((MONTH(A79)-1)/3)+1)&\" \"&YEAR(A79)","v":"Q1 2016"},{"$f":"TEXT(YEAR(A79),\"0000\")","v":"2016"}]
[{"$f":"DATE(YEAR(Labels!B6)+(6),MONTH(Labels!B6)+(1),1)","v":"2016-02-01"},null,{"$f":"Labels!B6+(2222)","v":"2016-02-01"},"2/1/2016",null,"Feb 2016"]
[{"$f":"DATE(YEAR(Labels!B6)+(6),MONTH(Labels!B6)+(2),1)","v":"2016-03-01"},null,{"$f":"Labels!B6+(2251)","v":"2016-03-01"},"3/1/2016",null,"Mar 2016"]
[{"$f":"DATE(YEAR(Labels!B6)+(6),MONTH(Labels!B6)+(3),1)","v":"2016-04-01"},null,{"$f":"Labels!B6+(2282)","v":"2016-04-01"},"4/1/2016",null,"Apr 2016",{"$f":"\"Q\"&(TRUNC((MONTH(A82)-1)/3)+1)&\" \"&YEAR(A82)","v":"Q2 2016"}]
[{"$f":"DATE(YEAR(Labels!B6)+(6),MONTH(Labels!B6)+(4),1)","v":"2016-05-01"},{"$f":"A6+(2317)","v":"2016-05-01"},{"$f":"Labels!B6+(2312)","v":"2016-05-01"},"5/1/2016",{"$f":"\"W \"&TEXT(B83,\"m/d/yyyy\")","v":"W 5/1/2016"},"May 2016"]
[{"$f":"DATE(YEAR(Labels!B6)+(6),MONTH(Labels!B6)+(5),1)","v":"2016-06-01"},null,{"$f":"Labels!B6+(2343)","v":"2016-06-01"},"6/1/2016",null,"Jun 2016"]
[{"$f":"DATE(YEAR(Labels!B6)+(6),MONTH(Labels!B6)+(6),1)","v":"2016-07-01"},null,{"$f":"Labels!B6+(2373)","v":"2016-07-01"},"7/1/2016",null,"Jul 2016",{"$f":"\"Q\"&(TRUNC((MONTH(A85)-1)/3)+1)&\" \"&YEAR(A85)","v":"Q3 2016"}]
[{"$f":"DATE(YEAR(Labels!B6)+(6),MONTH(Labels!B6)+(7),1)","v":"2016-08-01"},null,{"$f":"Labels!B6+(2404)","v":"2016-08-01"},"8/1/2016",null,"Aug 2016"]
[{"$f":"DATE(YEAR(Labels!B6)+(6),MONTH(Labels!B6)+(8),1)","v":"2016-09-01"},null,{"$f":"Labels!B6+(2435)","v":"2016-09-01"},"9/1/2016",null,"Sep 2016"]
[{"$f":"DATE(YEAR(Labels!B6)+(6),MONTH(Labels!B6)+(9),1)","v":"2016-10-01"},null,{"$f":"Labels!B6+(2465)","v":"2016-10-01"},"10/1/2016",null,"Oct 2016",{"$f":"\"Q\"&(TRUNC((MONTH(A88)-1)/3)+1)&\" \"&YEAR(A88)","v":"Q4 2016"}]
[{"$f":"DATE(YEAR(Labels!B6)+(6),MONTH(Labels!B6)+(10),1)","v":"2016-11-01"},null,{"$f":"Labels!B6+(2496)","v":"2016-11-01"},"11/1/2016",null,"Nov 2016"]
[{"$f":"DATE(YEAR(Labels!B6)+(6),MONTH(Labels!B6)+(11),1)","v":"2016-12-01"},null,{"$f":"Labels!B6+(2526)","v":"2016-12-01"},"12/1/2016",null,"Dec 2016"]
[{"$f":"DATE(YEAR(Labels!B6)+(7),MONTH(Labels!B6)+(0),1)","v":"2017-01-01"},{"$f":"A6+(2562)","v":"2017-01-01"},{"$f":"Labels!B6+(2557)","v":"2017-01-01"},"1/1/2017",{"$f":"\"W \"&TEXT(B91,\"m/d/yyyy\")","v":"W 1/1/2017"},"Jan 2017",{"$f":"\"Q\"&(TRUNC((MONTH(A91)-1)/3)+1)&\" \"&YEAR(A91)","v":"Q1 2017"},{"$f":"TEXT(YEAR(A91),\"0000\")","v":"2017"}]
[{"$f":"DATE(YEAR(Labels!B6)+(7),MONTH(Labels!B6)+(1),1)","v":"2017-02-01"},null,{"$f":"Labels!B6+(2588)","v":"2017-02-01"},"2/1/2017",null,"Feb 2017"]
[{"$f":"DATE(YEAR(Labels!B6)+(7),MONTH(Labels!B6)+(2),1)","v":"2017-03-01"},null,{"$f":"Labels!B6+(2616)","v":"2017-03-01"},"3/1/2017",null,"Mar 2017"]
[{"$f":"DATE(YEAR(Labels!B6)+(7),MONTH(Labels!B6)+(3),1)","v":"2017-04-01"},null,{"$f":"Labels!B6+(2647)","v":"2017-04-01"},"4/1/2017",null,"Apr 2017",{"$f":"\"Q\"&(TRUNC((MONTH(A94)-1)/3)+1)&\" \"&YEAR(A94)","v":"Q2 2017"}]
[{"$f":"DATE(YEAR(Labels!B6)+(7),MONTH(Labels!B6)+(4),1)","v":"2017-05-01"},null,{"$f":"Labels!B6+(2677)","v":"2017-05-01"},"5/1/2017",null,"May 2017"]
[{"$f":"DATE(YEAR(Labels!B6)+(7),MONTH(Labels!B6)+(5),1)","v":"2017-06-01"},null,{"$f":"Labels!B6+(2708)","v":"2017-06-01"},"6/1/2017",null,"Jun 2017"]
[{"$f":"DATE(YEAR(Labels!B6)+(7),MONTH(Labels!B6)+(6),1)","v":"2017-07-01"},null,{"$f":"Labels!B6+(2738)","v":"2017-07-01"},"7/1/2017",null,"Jul 2017",{"$f":"\"Q\"&(TRUNC((MONTH(A97)-1)/3)+1)&\" \"&YEAR(A97)","v":"Q3 2017"}]
[{"$f":"DATE(YEAR(Labels!B6)+(7),MONTH(Labels!B6)+(7),1)","v":"2017-08-01"},null,{"$f":"Labels!B6+(2769)","v":"2017-08-01"},"8/1/2017",null,"Aug 2017"]
[{"$f":"DATE(YEAR(Labels!B6)+(7),MONTH(Labels!B6)+(8),1)","v":"2017-09-01"},null,{"$f":"Labels!B6+(2800)","v":"2017-09-01"},"9/1/2017",null,"Sep 2017"]
[{"$f":"DATE(YEAR(Labels!B6)+(7),MONTH(Labels!B6)+(9),1)","v":"2017-10-01"},{"$f":"A6+(2835)","v":"2017-10-01"},{"$f":"Labels!B6+(2830)","v":"2017-10-01"},"10/1/2017",{"$f":"\"W \"&TEXT(B100,\"m/d/yyyy\")","v":"W 10/1/2017"},"Oct 2017",{"$f":"\"Q\"&(TRUNC((MONTH(A100)-1)/3)+1)&\" \"&YEAR(A100)","v":"Q4 2017"}]
[{"$f":"DATE(YEAR(Labels!B6)+(7),MONTH(Labels!B6)+(10),1)","v":"2017-11-01"},null,{"$f":"Labels!B6+(2861)","v":"2017-11-01"},"11/1/2017",null,"Nov 2017"]
[{"$f":"DATE(YEAR(Labels!B6)+(7),MONTH(Labels!B6)+(11),1)","v":"2017-12-01"},null,{"$f":"Labels!B6+(2891)","v":"2017-12-01"},"12/1/2017",null,"Dec 2017"]
[{"$f":"DATE(YEAR(Labels!B6)+(8),MONTH(Labels!B6)+(0),1)","v":"2018-01-01"},null,{"$f":"Labels!B6+(2922)","v":"2018-01-01"},{"$f":"TEXT(C103,\"m/d/yyyy\")","v":"1/1/2018"},null,{"$f":"TEXT(A103,\"MMM yyyy\")","v":"Jan 2018"},{"$f":"\"Q\"&(TRUNC((MONTH(A103)-1)/3)+1)&\" \"&YEAR(A103)","v":"Q1 2018"},{"$f":"TEXT(YEAR(A103),\"0000\")","v":"2018"}]
[{"$f":"DATE(YEAR(Labels!B6)+(8),MONTH(Labels!B6)+(1),1)","v":"2018-02-01"},null,{"$f":"Labels!B6+(2953)","v":"2018-02-01"},"2/1/2018",null,"Feb 2018"]
[{"$f":"DATE(YEAR(Labels!B6)+(8),MONTH(Labels!B6)+(2),1)","v":"2018-03-01"},null,{"$f":"Labels!B6+(2981)","v":"2018-03-01"},"3/1/2018",null,"Mar 2018"]
[{"$f":"DATE(YEAR(Labels!B6)+(8),MONTH(Labels!B6)+(3),1)","v":"2018-04-01"},{"$f":"A6+(3017)","v":"2018-04-01"},{"$f":"Labels!B6+(3012)","v":"2018-04-01"},"4/1/2018",{"$f":"\"W \"&TEXT(B106,\"m/d/yyyy\")","v":"W 4/1/2018"},"Apr 2018",{"$f":"\"Q\"&(TRUNC((MONTH(A106)-1)/3)+1)&\" \"&YEAR(A106)","v":"Q2 2018"}]
[{"$f":"DATE(YEAR(Labels!B6)+(8),MONTH(Labels!B6)+(4),1)","v":"2018-05-01"},null,{"$f":"Labels!B6+(3042)","v":"2018-05-01"},"5/1/2018",null,"May 2018"]
[{"$f":"DATE(YEAR(Labels!B6)+(8),MONTH(Labels!B6)+(5),1)","v":"2018-06-01"},null,{"$f":"Labels!B6+(3073)","v":"2018-06-01"},"6/1/2018",null,"Jun 2018"]
[{"$f":"DATE(YEAR(Labels!B6)+(8),MONTH(Labels!B6)+(6),1)","v":"2018-07-01"},{"$f":"A6+(3108)","v":"2018-07-01"},{"$f":"Labels!B6+(3103)","v":"2018-07-01"},"7/1/2018",{"$f":"\"W \"&TEXT(B109,\"m/d/yyyy\")","v":"W 7/1/2018"},"Jul 2018",{"$f":"\"Q\"&(TRUNC((MONTH(A109)-1)/3)+1)&\" \"&YEAR(A109)","v":"Q3 2018"}]
[{"$f":"DATE(YEAR(Labels!B6)+(8),MONTH(Labels!B6)+(7),1)","v":"2018-08-01"},null,{"$f":"Labels!B6+(3134)","v":"2018-08-01"},"8/1/2018",null,"Aug 2018"]
[{"$f":"DATE(YEAR(Labels!B6)+(8),MONTH(Labels!B6)+(8),1)","v":"2018-09-01"},null,{"$f":"Labels!B6+(3165)","v":"2018-09-01"},"9/1/2018",null,"Sep 2018"]
[{"$f":"DATE(YEAR(Labels!B6)+(8),MONTH(Labels!B6)+(9),1)","v":"2018-10-01"},null,{"$f":"Labels!B6+(3195)","v":"2018-10-01"},"10/1/2018",null,"Oct 2018",{"$f":"\"Q\"&(TRUNC((MONTH(A112)-1)/3)+1)&\" \"&YEAR(A112)","v":"Q4 2018"}]
[{"$f":"DATE(YEAR(Labels!B6)+(8),MONTH(Labels!B6)+(10),1)","v":"2018-11-01"},null,{"$f":"Labels!B6+(3226)","v":"2018-11-01"},"11/1/2018",null,"Nov 2018"]
[{"$f":"DATE(YEAR(Labels!B6)+(8),MONTH(Labels!B6)+(11),1)","v":"2018-12-01"},null,{"$f":"Labels!B6+(3256)","v":"2018-12-01"},"12/1/2018",null,"Dec 2018"]
[{"$f":"DATE(YEAR(Labels!B6)+(9),MONTH(Labels!B6)+(0),1)","v":"2019-01-01"},null,{"$f":"Labels!B6+(3287)","v":"2019-01-01"},"1/1/2019",null,"Jan 2019",{"$f":"\"Q\"&(TRUNC((MONTH(A115)-1)/3)+1)&\" \"&YEAR(A115)","v":"Q1 2019"},{"$f":"TEXT(YEAR(A115),\"0000\")","v":"2019"}]
[{"$f":"DATE(YEAR(Labels!B6)+(9),MONTH(Labels!B6)+(1),1)","v":"2019-02-01"},null,{"$f":"Labels!B6+(3318)","v":"2019-02-01"},"2/1/2019",null,"Feb 2019"]
[{"$f":"DATE(YEAR(Labels!B6)+(9),MONTH(Labels!B6)+(2),1)","v":"2019-03-01"},null,{"$f":"Labels!B6+(3346)","v":"2019-03-01"},"3/1/2019",null,"Mar 2019"]
[{"$f":"DATE(YEAR(Labels!B6)+(9),MONTH(Labels!B6)+(3),1)","v":"2019-04-01"},null,{"$f":"Labels!B6+(3377)","v":"2019-04-01"},"4/1/2019",null,"Apr 2019",{"$f":"\"Q\"&(TRUNC((MONTH(A118)-1)/3)+1)&\" \"&YEAR(A118)","v":"Q2 2019"}]
[{"$f":"DATE(YEAR(Labels!B6)+(9),MONTH(Labels!B6)+(4),1)","v":"2019-05-01"},null,{"$f":"Labels!B6+(3407)","v":"2019-05-01"},"5/1/2019",null,"May 2019"]
[{"$f":"DATE(YEAR(Labels!B6)+(9),MONTH(Labels!B6)+(5),1)","v":"2019-06-01"},null,{"$f":"Labels!B6+(3438)","v":"2019-06-01"},"6/1/2019",null,"Jun 2019"]
[{"$f":"DATE(YEAR(Labels!B6)+(9),MONTH(Labels!B6)+(6),1)","v":"2019-07-01"},null,{"$f":"Labels!B6+(3468)","v":"2019-07-01"},"7/1/2019",null,"Jul 2019",{"$f":"\"Q\"&(TRUNC((MONTH(A121)-1)/3)+1)&\" \"&YEAR(A121)","v":"Q3 2019"}]
[{"$f":"DATE(YEAR(Labels!B6)+(9),MONTH(Labels!B6)+(7),1)","v":"2019-08-01"},null,{"$f":"Labels!B6+(3499)","v":"2019-08-01"},"8/1/2019",null,"Aug 2019"]
[{"$f":"DATE(YEAR(Labels!B6)+(9),MONTH(Labels!B6)+(8),1)","v":"2019-09-01"},{"$f":"A6+(3535)","v":"2019-09-01"},{"$f":"Labels!B6+(3530)","v":"2019-09-01"},"9/1/2019",{"$f":"\"W \"&TEXT(B123,\"m/d/yyyy\")","v":"W 9/1/2019"},"Sep 2019"]
[{"$f":"DATE(YEAR(Labels!B6)+(9),MONTH(Labels!B6)+(9),1)","v":"2019-10-01"},null,{"$f":"Labels!B6+(3560)","v":"2019-10-01"},"10/1/2019",null,"Oct 2019",{"$f":"\"Q\"&(TRUNC((MONTH(A124)-1)/3)+1)&\" \"&YEAR(A124)","v":"Q4 2019"}]
[{"$f":"DATE(YEAR(Labels!B6)+(9),MONTH(Labels!B6)+(10),1)","v":"2019-11-01"},null,{"$f":"Labels!B6+(3591)","v":"2019-11-01"},"11/1/2019",null,"Nov 2019"]
[{"$f":"DATE(YEAR(Labels!B6)+(9),MONTH(Labels!B6)+(11),1)","v":"2019-12-01"},{"$f":"A6+(3626)","v":"2019-12-01"},{"$f":"Labels!B6+(3621)","v":"2019-12-01"},"12/1/2019",{"$f":"\"W \"&TEXT(B126,\"m/d/yyyy\")","v":"W 12/1/2019"},"Dec 2019"]
[{"$f":"DATE(YEAR(Labels!B6)+(10),MONTH(Labels!B6)+(0),1)","v":"2020-01-01"},null,{"$f":"Labels!B6+(3652)","v":"2020-01-01"},"1/1/2020",null,"Jan 2020",{"$f":"\"Q\"&(TRUNC((MONTH(A127)-1)/3)+1)&\" \"&YEAR(A127)","v":"Q1 2020"},{"$f":"TEXT(YEAR(A127),\"0000\")","v":"2020"}]
[{"$f":"DATE(YEAR(Labels!B6)+(10),MONTH(Labels!B6)+(1),1)","v":"2020-02-01"},null,{"$f":"Labels!B6+(3683)","v":"2020-02-01"},"2/1/2020",null,"Feb 2020"]
[{"$f":"DATE(YEAR(Labels!B6)+(10),MONTH(Labels!B6)+(2),1)","v":"2020-03-01"},{"$f":"A6+(3717)","v":"2020-03-01"},{"$f":"Labels!B6+(3712)","v":"2020-03-01"},"3/1/2020",{"$f":"\"W \"&TEXT(B129,\"m/d/yyyy\")","v":"W 3/1/2020"},"Mar 2020"]
[{"$f":"DATE(YEAR(Labels!B6)+(10),MONTH(Labels!B6)+(3),1)","v":"2020-04-01"},null,{"$f":"Labels!B6+(3743)","v":"2020-04-01"},"4/1/2020",null,"Apr 2020",{"$f":"\"Q\"&(TRUNC((MONTH(A130)-1)/3)+1)&\" \"&YEAR(A130)","v":"Q2 2020"}]
[{"$f":"DATE(YEAR(Labels!B6)+(10),MONTH(Labels!B6)+(4),1)","v":"2020-05-01"},null,{"$f":"Labels!B6+(3773)","v":"2020-05-01"},"5/1/2020",null,"May 2020"]
[{"$f":"DATE(YEAR(Labels!B6)+(10),MONTH(Labels!B6)+(5),1)","v":"2020-06-01"},null,{"$f":"Labels!B6+(3804)","v":"2020-06-01"},"6/1/2020",null,"Jun 2020"]
[{"$f":"DATE(YEAR(Labels!B6)+(10),MONTH(Labels!B6)+(6),1)","v":"2020-07-01"},null,{"$f":"Labels!B6+(3834)","v":"2020-07-01"},"7/1/2020",null,"Jul 2020",{"$f":"\"Q\"&(TRUNC((MONTH(A133)-1)/3)+1)&\" \"&YEAR(A133)","v":"Q3 2020"}]
[{"$f":"DATE(YEAR(Labels!B6)+(10),MONTH(Labels!B6)+(7),1)","v":"2020-08-01"},null,{"$f":"Labels!B6+(3865)","v":"2020-08-01"},"8/1/2020",null,"Aug 2020"]
[{"$f":"DATE(YEAR(Labels!B6)+(10),MONTH(Labels!B6)+(8),1)","v":"2020-09-01"},null,{"$f":"Labels!B6+(3896)","v":"2020-09-01"},{"$f":"TEXT(C135,\"m/d/yyyy\")","v":"9/1/2020"},null,"Sep 2020"]
[{"$f":"DATE(YEAR(Labels!B6)+(10),MONTH(Labels!B6)+(9),1)","v":"2020-10-01"},null,{"$f":"Labels!B6+(3926)","v":"2020-10-01"},{"$f":"TEXT(C136,\"m/d/yyyy\")","v":"10/1/2020"},null,"Oct 2020",{"$f":"\"Q\"&(TRUNC((MONTH(A136)-1)/3)+1)&\" \"&YEAR(A136)","v":"Q4 2020"}]
[{"$f":"DATE(YEAR(Labels!B6)+(10),MONTH(Labels!B6)+(10),1)","v":"2020-11-01"},{"$f":"A6+(3962)","v":"2020-11-01"},{"$f":"Labels!B6+(3957)","v":"2020-11-01"},{"$f":"TEXT(C137,\"m/d/yyyy\")","v":"11/1/2020"},{"$f":"\"W \"&TEXT(B137,\"m/d/yyyy\")","v":"W 11/1/2020"},"Nov 2020"]
[{"$f":"DATE(YEAR(Labels!B6)+(10),MONTH(Labels!B6)+(11),1)","v":"2020-12-01"},null,{"$f":"Labels!B6+(3987)","v":"2020-12-01"},{"$f":"TEXT(C138,\"m/d/yyyy\")","v":"12/1/2020"},null,"Dec 2020"]

{"sheet":"ZZZ_Ranges","index":17,"n_rows":443,"n_cols":132,"rows_kept":443,"hidden":true}
[{"$f":"'Statistical Moments'!B12","v":{"v":936684.1795910058,"d":"$936,684"}},{"$f":"'Statistical Moments'!C12","v":{"v":951065.5769176772,"d":"$951,066"}},{"$f":"'Statistical Moments'!D12","v":{"v":969875.8323850736,"d":"$969,876"}},{"$f":"'Statistical Moments'!E12","v":{"v":977310.2263275094,"d":"$977,310"}},{"$f":"'Statistical Moments'!F12","v":{"v":987073.7121110882,"d":"$987,074"}},{"$f":"'Statistical Moments'!G12","v":{"v":973198.5247249942,"d":"$973,199"}},{"$f":"'Statistical Moments'!H12","v":{"v":954530.0229416194,"d":"$954,530"}},{"$f":"'Statistical Moments'!I12","v":{"v":962727.0253495164,"d":"$962,727"}},{"$f":"'Statistical Moments'!J12","v":{"v":963765.3008919148,"d":"$963,765"}},{"$f":"'Statistical Moments'!K12","v":{"v":963435.4164903747,"d":"$963,435"}},{"$f":"'Statistical Moments'!L12","v":{"v":960918.0492051082,"d":"$960,918"}},{"$f":"'Statistical Moments'!M12","v":{"v":954429.7555651193,"d":"$954,430"}},{"$f":"'Statistical Moments'!O12","v":{"v":965513.8386800769,"d":"$965,514"}},{"$f":"'Statistical Moments'!P12","v":{"v":961765.5226264244,"d":"$961,766"}},{"$f":"'Statistical Moments'!Q12","v":{"v":965809.2120917377,"d":"$965,809"}},{"$f":"'Statistical Moments'!R12","v":{"v":969968.3202368849,"d":"$969,968"}},{"$f":"'Statistical Moments'!S12","v":{"v":930744.0642282142,"d":"$930,744"}},{"$f":"'Statistical Moments'!T12","v":{"v":963284.0927163173,"d":"$963,284"}},{"$f":"'Statistical Moments'!U12","v":{"v":939672.5179396513,"d":"$939,673"}},{"$f":"'Statistical Moments'!V12","v":{"v":941982.068873345,"d":"$941,982"}},{"$f":"'Statistical Moments'!W12","v":{"v":968805.1183620363,"d":"$968,805"}},{"$f":"'Statistical Moments'!X12","v":{"v":946562.3323678274,"d":"$946,562"}},{"$f":"'Statistical Moments'!Y12","v":{"v":948060.7601766348,"d":"$948,061"}},{"$f":"'Statistical Moments'!Z12","v":{"v":925669.0386969738,"d":"$925,669"}},{"$f":"'Statistical Moments'!AB12","v":{"v":950528.434991239,"d":"$950,528"}},{"$f":"'Statistical Moments'!AC12","v":{"v":959859.5248802459,"d":"$959,860"}},{"$f":"'Statistical Moments'!AD12","v":{"v":952271.5687168156,"d":"$952,272"}},{"$f":"'Statistical Moments'!AE12","v":{"v":948633.6520666349,"d":"$948,634"}},{"$f":"'Statistical Moments'!AF12","v":{"v":931960.2980298412,"d":"$931,960"}},{"$f":"'Statistical Moments'!AG12","v":{"v":954085.5695273769,"d":"$954,086"}},{"$f":"'Statistical Moments'!AH12","v":{"v":962943.0447774406,"d":"$962,943"}},{"$f":"'Statistical Moments'!AI12","v":{"v":929365.5361682782,"d":"$929,366"}},{"$f":"'Statistical Moments'!AJ12","v":{"v":948924.5935027299,"d":"$948,925"}},{"$f":"'Statistical Moments'!AK12","v":{"v":953002.7232092486,"d":"$953,003"}},{"$f":"'Statistical Moments'!AL12","v":{"v":956207.1480294332,"d":"$956,207"}},{"$f":"'Statistical Moments'!AM12","v":{"v":934719.595930171,"d":"$934,720"}},{"$f":"'Statistical Moments'!AO12","v":{"v":945565.2775006059,"d":"$945,565"}},{"$f":"'Statistical Moments'!AP12","v":{"v":957817.8057990074,"d":"$957,818"}},{"$f":"'Statistical Moments'!AQ12","v":{"v":934101.9416644556,"d":"$934,102"}},{"$f":"'Statistical Moments'!AR12","v":{"v":941674.6373297774,"d":"$941,675"}},{"$f":"'Statistical Moments'!AS12","v":{"v":954509.3346523442,"d":"$954,509"}},{"$f":"'Statistical Moments'!AT12","v":{"v":940976.1012022123,"d":"$940,976"}},{"$f":"'Statistical Moments'!AU12","v":{"v":936757.6446874797,"d":"$936,758"}},{"$f":"'Statistical Moments'!AV12","v":{"v":942535.6229063715,"d":"$942,536"}},{"$f":"'Statistical Moments'!AW12","v":{"v":927621.0734806113,"d":"$927,621"}},{"$f":"'Statistical Moments'!AX12","v":{"v":935671.0796549628,"d":"$935,671"}},{"$f":"'Statistical Moments'!AY12","v":{"v":941392.7963841053,"d":"$941,393"}},{"$f":"'Statistical Moments'!AZ12","v":{"v":922583.3405784119,"d":"$922,583"}},{"$f":"'Statistical Moments'!BB12","v":{"v":924391.1416640636,"d":"$924,391"}},{"$f":"'Statistical Moments'!BC12","v":{"v":933777.2668153542,"d":"$933,777"}},{"$f":"'Statistical Moments'!BD12","v":{"v":937571.9313695487,"d":"$937,572"}},{"$f":"'Statistical Moments'!BE12","v":{"v":933117.2849982342,"d":"$933,117"}},{"$f":"'Statistical Moments'!BF12","v":{"v":941233.5752898123,"d":"$941,234"}},{"$f":"'Statistical Moments'!BG12","v":{"v":940776.3547736562,"d":"$940,776"}},{"$f":"'Statistical Moments'!BH12","v":{"v":920360.65714905,"d":"$920,361"}},{"$f":"'Statistical Moments'!BI12","v":{"v":928098.0451811933,"d":"$928,098"}},{"$f":"'Statistical Moments'!BJ12","v":{"v":941473.2354506741,"d":"$941,473"}},{"$f":"'Statistical Moments'!BK12","v":{"v":929883.6771244695,"d":"$929,884"}},{"$f":"'Statistical Moments'!BL12","v":{"v":940902.4884359788,"d":"$940,902"}},{"$f":"'Statistical Moments'!BM12","v":{"v":930850.2015261502,"d":"$930,850"}},{"$f":"'Statistical Moments'!BO12","v":{"v":929321.0076345783,"d":"$929,321"}},{"$f":"'Statistical Moments'!BP12","v":{"v":935234.2911714142,"d":"$935,234"}},{"$f":"'Statistical Moments'!BQ12","v":{"v":945365.7284910777,"d":"$945,366"}},{"$f":"'Statistical Moments'!BR12","v":{"v":941539.0408748457,"d":"$941,539"}},{"$f":"'Statistical Moments'!BS12","v":{"v":924218.3575030024,"d":"$924,218"}},{"$f":"'Statistical Moments'!BT12","v":{"v":949323.7703810995,"d":"$949,324"}},{"$f":"'Statistical Moments'!BU12","v":{"v":921852.579081735,"d":"$921,853"}},{"$f":"'Statistical Moments'!BV12","v":{"v":927894.2291991905,"d":"$927,894"}},{"$f":"'Statistical Moments'!BW12","v":{"v":944173.7604552447,"d":"$944,174"}},{"$f":"'Statistical Moments'!BX12","v":{"v":919593.6758617752,"d":"$919,594"}},{"$f":"'Statistical Moments'!BY12","v":{"v":940724.2610055457,"d":"$940,724"}},{"$f":"'Statistical Moments'!BZ12","v":{"v":929556.3938848831,"d":"$929,556"}},{"$f":"'Statistical Moments'!CB12","v":{"v":925901.4260901478,"d":"$925,901"}},{"$f":"'Statistical Moments'!CC12","v":{"v":923253.1669720379,"d":"$923,253"}},{"$f":"'Statistical Moments'!CD12","v":{"v":934441.0330233488,"d":"$934,441"}},{"$f":"'Statistical Moments'!CE12","v":{"v":916311.1044082881,"d":"$916,311"}},{"$f":"'Statistical Moments'!CF12","v":{"v":924970.7317267632,"d":"$924,971"}},{"$f":"'Statistical Moments'!CG12","v":{"v":953825.0826721269,"d":"$953,825"}},{"$f":"'Statistical Moments'!CH12","v":{"v":929649.8067344904,"d":"$929,650"}},{"$f":"'Statistical Moments'!CI12","v":{"v":935000.5453881549,"d":"$935,001"}},{"$f":"'Statistical Moments'!CJ12","v":{"v":930435.6957737833,"d":"$930,436"}},{"$f":"'Statistical Moments'!CK12","v":{"v":943655.9675704903,"d":"$943,656"}},{"$f":"'Statistical Moments'!CL12","v":{"v":922283.7009274177,"d":"$922,284"}},{"$f":"'Statistical Moments'!CM12","v":{"v":940494.8010391735,"d":"$940,495"}},{"$f":"'Statistical Moments'!CO12","v":{"v":931542.7118366954,"d":"$931,543"}},{"$f":"'Statistical Moments'!CP12","v":{"v":931879.6542507672,"d":"$931,880"}},{"$f":"'Statistical Moments'!CQ12","v":{"v":929951.8412784707,"d":"$929,952"}},{"$f":"'Statistical Moments'!CR12","v":{"v":923777.1172299235,"d":"$923,777"}},{"$f":"'Statistical Moments'!CS12","v":{"v":901131.4283376606,"d":"$901,131"}},{"$f":"'Statistical Moments'!CT12","v":{"v":911038.4457875164,"d":"$911,038"}},{"$f":"'Statistical Moments'!CU12","v":{"v":944840.8428681069,"d":"$944,841"}},{"$f":"'Statistical Moments'!CV12","v":{"v":917068.1892866715,"d":"$917,068"}},{"$f":"'Statistical Moments'!CW12","v":{"v":918620.5130734203,"d":"$918,621"}},{"$f":"'Statistical Moments'!CX12","v":{"v":913937.0022630336,"d":"$913,937"}},{"$f":"'Statistical Moments'!CY12","v":{"v":926859.4406253026,"d":"$926,859"}},{"$f":"'Statistical Moments'!CZ12","v":{"v":914770.6968415948,"d":"$914,771"}},{"$f":"'Statistical Moments'!DB12","v":{"v":928251.4400514043,"d":"$928,251"}},{"$f":"'Statistical Moments'!DC12","v":{"v":906240.5333397244,"d":"$906,241"}},{"$f":"'Statistical Moments'!DD12","v":{"v":912894.3973253702,"d":"$912,894"}},{"$f":"'Statistical Moments'!DE12","v":{"v":924374.700370115,"d":"$924,375"}},{"$f":"'Statistical Moments'!DF12","v":{"v":916644.9086969255,"d":"$916,645"}},{"$f":"'Statistical Moments'!DG12","v":{"v":912995.7447485721,"d":"$912,996"}},{"$f":"'Statistical Moments'!DH12","v":{"v":910383.763122502,"d":"$910,384"}},{"$f":"'Statistical Moments'!DI12","v":{"v":906696.0203934539,"d":"$906,696"}},{"$f":"'Statistical Moments'!DJ12","v":{"v":914945.2676099403,"d":"$914,945"}},{"$f":"'Statistical Moments'!DK12","v":{"v":912183.861473771,"d":"$912,184"}},{"$f":"'Statistical Moments'!DL12","v":{"v":904450.4134348409,"d":"$904,450"}},{"$f":"'Statistical Moments'!DM12","v":{"v":907079.0906581954,"d":"$907,079"}},{"$f":"'Statistical Moments'!DO12","v":{"v":923024.7093719998,"d":"$923,025"}},{"$f":"'Statistical Moments'!DP12","v":{"v":906691.2539575677,"d":"$906,691"}},{"$f":"'Statistical Moments'!DQ12","v":{"v":927149.5725572938,"d":"$927,150"}},{"$f":"'Statistical Moments'!DR12","v":{"v":914370.7130012822,"d":"$914,371"}},{"$f":"'Statistical Moments'!DS12","v":{"v":912291.7391138636,"d":"$912,292"}},{"$f":"'Statistical Moments'!DT12","v":{"v":924875.2733042908,"d":"$924,875"}},{"$f":"'Statistical Moments'!DU12","v":{"v":915931.2543989666,"d":"$915,931"}},{"$f":"'Statistical Moments'!DV12","v":{"v":919330.1880341365,"d":"$919,330"}},{"$f":"'Statistical Moments'!DW12","v":{"v":913334.544282031,"d":"$913,335"}},{"$f":"'Statistical Moments'!DX12","v":{"v":910833.4158068191,"d":"$910,833"}},{"$f":"'Statistical Moments'!DY12","v":{"v":911585.7380532031,"d":"$911,586"}},{"$f":"'Statistical Moments'!DZ12","v":{"v":894123.9257917233,"d":"$894,124"}},{"$f":"'Statistical Moments'!EB12","v":{"v":915252.3476055778,"d":"$915,252"}},{"$f":"'Statistical Moments'!EC12","v":{"v":894997.5337407824,"d":"$894,998"}},{"$f":"'Statistical Moments'!ED12","v":{"v":900599.6865617539,"d":"$900,600"}},{"$f":"'Statistical Moments'!EE12","v":{"v":909354.0629359649,"d":"$909,354"}},{"$f":"'Statistical Moments'!EF12","v":{"v":910726.7038606228,"d":"$910,727"}},{"$f":"'Statistical Moments'!EG12","v":{"v":896604.8693361133,"d":"$896,605"}},{"$f":"'Statistical Moments'!EH12","v":{"v":900369.9043964987,"d":"$900,370"}},{"$f":"'Statistical Moments'!EI12","v":{"v":881391.1645037476,"d":"$881,391"}},{"$f":"'Statistical Moments'!EJ12","v":{"v":899764.4846489519,"d":"$899,764"}},{"$f":"'Statistical Moments'!EK12","v":{"v":910378.0346562839,"d":"$910,378"}},{"$f":"'Statistical Moments'!EL12","v":{"v":896488.4281232945,"d":"$896,488"}},{"$f":"'Statistical Moments'!EM12","v":{"v":908113.2126987822,"d":"$908,113"}}]
[{"$f":"'(Intermediate Computations)'!B11","v":"Jan 2010"},{"$f":"'(Intermediate Computations)'!C11","v":"Feb 2010"},{"$f":"'(Intermediate Computations)'!D11","v":"Mar 2010"},{"$f":"'(Intermediate Computations)'!E11","v":"Apr 2010"},{"$f":"'(Intermediate Computations)'!F11","v":"May 2010"},{"$f":"'(Intermediate Computations)'!G11","v":"Jun 2010"},{"$f":"'(Intermediate Computations)'!H11","v":"Jul 2010"},{"$f":"'(Intermediate Computations)'!I11","v":"Aug 2010"},{"$f":"'(Intermediate Computations)'!J11","v":"Sep 2010"},{"$f":"'(Intermediate Computations)'!K11","v":"Oct 2010"},{"$f":"'(Intermediate Computations)'!L11","v":"Nov 2010"},{"$f":"'(Intermediate Computations)'!M11","v":"Dec 2010"},{"$f":"'(Intermediate Computations)'!O11","v":"Jan 2011"},{"$f":"'(Intermediate Computations)'!P11","v":"Feb 2011"},{"$f":"'(Intermediate Computations)'!Q11","v":"Mar 2011"},{"$f":"'(Intermediate Computations)'!R11","v":"Apr 2011"},{"$f":"'(Intermediate Computations)'!S11","v":"May 2011"},{"$f":"'(Intermediate Computations)'!T11","v":"Jun 2011"},{"$f":"'(Intermediate Computations)'!U11","v":"Jul 2011"},{"$f":"'(Intermediate Computations)'!V11","v":"Aug 2011"},{"$f":"'(Intermediate Computations)'!W11","v":"Sep 2011"},{"$f":"'(Intermediate Computations)'!X11","v":"Oct 2011"},{"$f":"'(Intermediate Computations)'!Y11","v":"Nov 2011"},{"$f":"'(Intermediate Computations)'!Z11","v":"Dec 2011"},{"$f":"'(Intermediate Computations)'!AB11","v":"Jan 2012"},{"$f":"'(Intermediate Computations)'!AC11","v":"Feb 2012"},{"$f":"'(Intermediate Computations)'!AD11","v":"Mar 2012"},{"$f":"'(Intermediate Computations)'!AE11","v":"Apr 2012"},{"$f":"'(Intermediate Computations)'!AF11","v":"May 2012"},{"$f":"'(Intermediate Computations)'!AG11","v":"Jun 2012"},{"$f":"'(Intermediate Computations)'!AH11","v":"Jul 2012"},{"$f":"'(Intermediate Computations)'!AI11","v":"Aug 2012"},{"$f":"'(Intermediate Computations)'!AJ11","v":"Sep 2012"},{"$f":"'(Intermediate Computations)'!AK11","v":"Oct 2012"},{"$f":"'(Intermediate Computations)'!AL11","v":"Nov 2012"},{"$f":"'(Intermediate Computations)'!AM11","v":"Dec 2012"},{"$f":"'(Intermediate Computations)'!AO11","v":"Jan 2013"},{"$f":"'(Intermediate Computations)'!AP11","v":"Feb 2013"},{"$f":"'(Intermediate Computations)'!AQ11","v":"Mar 2013"},{"$f":"'(Intermediate Computations)'!AR11","v":"Apr 2013"},{"$f":"'(Intermediate Computations)'!AS11","v":"May 2013"},{"$f":"'(Intermediate Computations)'!AT11","v":"Jun 2013"},{"$f":"'(Intermediate Computations)'!AU11","v":"Jul 2013"},{"$f":"'(Intermediate Computations)'!AV11","v":"Aug 2013"},{"$f":"'(Intermediate Computations)'!AW11","v":"Sep 2013"},{"$f":"'(Intermediate Computations)'!AX11","v":"Oct 2013"},{"$f":"'(Intermediate Computations)'!AY11","v":"Nov 2013"},{"$f":"'(Intermediate Computations)'!AZ11","v":"Dec 2013"},{"$f":"'(Intermediate Computations)'!BB11","v":"Jan 2014"},{"$f":"'(Intermediate Computations)'!BC11","v":"Feb 2014"},{"$f":"'(Intermediate Computations)'!BD11","v":"Mar 2014"},{"$f":"'(Intermediate Computations)'!BE11","v":"Apr 2014"},{"$f":"'(Intermediate Computations)'!BF11","v":"May 2014"},{"$f":"'(Intermediate Computations)'!BG11","v":"Jun 2014"},{"$f":"'(Intermediate Computations)'!BH11","v":"Jul 2014"},{"$f":"'(Intermediate Computations)'!BI11","v":"Aug 2014"},{"$f":"'(Intermediate Computations)'!BJ11","v":"Sep 2014"},{"$f":"'(Intermediate Computations)'!BK11","v":"Oct 2014"},{"$f":"'(Intermediate Computations)'!BL11","v":"Nov 2014"},{"$f":"'(Intermediate Computations)'!BM11","v":"Dec 2014"},{"$f":"'(Intermediate Computations)'!BO11","v":"Jan 2015"},{"$f":"'(Intermediate Computations)'!BP11","v":"Feb 2015"},{"$f":"'(Intermediate Computations)'!BQ11","v":"Mar 2015"},{"$f":"'(Intermediate Computations)'!BR11","v":"Apr 2015"},{"$f":"'(Intermediate Computations)'!BS11","v":"May 2015"},{"$f":"'(Intermediate Computations)'!BT11","v":"Jun 2015"},{"$f":"'(Intermediate Computations)'!BU11","v":"Jul 2015"},{"$f":"'(Intermediate Computations)'!BV11","v":"Aug 2015"},{"$f":"'(Intermediate Computations)'!BW11","v":"Sep 2015"},{"$f":"'(Intermediate Computations)'!BX11","v":"Oct 2015"},{"$f":"'(Intermediate Computations)'!BY11","v":"Nov 2015"},{"$f":"'(Intermediate Computations)'!BZ11","v":"Dec 2015"},{"$f":"'(Intermediate Computations)'!CB11","v":"Jan 2016"},{"$f":"'(Intermediate Computations)'!CC11","v":"Feb 2016"},{"$f":"'(Intermediate Computations)'!CD11","v":"Mar 2016"},{"$f":"'(Intermediate Computations)'!CE11","v":"Apr 2016"},{"$f":"'(Intermediate Computations)'!CF11","v":"May 2016"},{"$f":"'(Intermediate Computations)'!CG11","v":"Jun 2016"},{"$f":"'(Intermediate Computations)'!CH11","v":"Jul 2016"},{"$f":"'(Intermediate Computations)'!CI11","v":"Aug 2016"},{"$f":"'(Intermediate Computations)'!CJ11","v":"Sep 2016"},{"$f":"'(Intermediate Computations)'!CK11","v":"Oct 2016"},{"$f":"'(Intermediate Computations)'!CL11","v":"Nov 2016"},{"$f":"'(Intermediate Computations)'!CM11","v":"Dec 2016"},{"$f":"'(Intermediate Computations)'!CO11","v":"Jan 2017"},{"$f":"'(Intermediate Computations)'!CP11","v":"Feb 2017"},{"$f":"'(Intermediate Computations)'!CQ11","v":"Mar 2017"},{"$f":"'(Intermediate Computations)'!CR11","v":"Apr 2017"},{"$f":"'(Intermediate Computations)'!CS11","v":"May 2017"},{"$f":"'(Intermediate Computations)'!CT11","v":"Jun 2017"},{"$f":"'(Intermediate Computations)'!CU11","v":"Jul 2017"},{"$f":"'(Intermediate Computations)'!CV11","v":"Aug 2017"},{"$f":"'(Intermediate Computations)'!CW11","v":"Sep 2017"},{"$f":"'(Intermediate Computations)'!CX11","v":"Oct 2017"},{"$f":"'(Intermediate Computations)'!CY11","v":"Nov 2017"},{"$f":"'(Intermediate Computations)'!CZ11","v":"Dec 2017"},{"$f":"'(Intermediate Computations)'!DB11","v":"Jan 2018"},{"$f":"'(Intermediate Computations)'!DC11","v":"Feb 2018"},{"$f":"'(Intermediate Computations)'!DD11","v":"Mar 2018"},{"$f":"'(Intermediate Computations)'!DE11","v":"Apr 2018"},{"$f":"'(Intermediate Computations)'!DF11","v":"May 2018"},{"$f":"'(Intermediate Computations)'!DG11","v":"Jun 2018"},{"$f":"'(Intermediate Computations)'!DH11","v":"Jul 2018"},{"$f":"'(Intermediate Computations)'!DI11","v":"Aug 2018"},{"$f":"'(Intermediate Computations)'!DJ11","v":"Sep 2018"},{"$f":"'(Intermediate Computations)'!DK11","v":"Oct 2018"},{"$f":"'(Intermediate Computations)'!DL11","v":"Nov 2018"},{"$f":"'(Intermediate Computations)'!DM11","v":"Dec 2018"},{"$f":"'(Intermediate Computations)'!DO11","v":"Jan 2019"},{"$f":"'(Intermediate Computations)'!DP11","v":"Feb 2019"},{"$f":"'(Intermediate Computations)'!DQ11","v":"Mar 2019"},{"$f":"'(Intermediate Computations)'!DR11","v":"Apr 2019"},{"$f":"'(Intermediate Computations)'!DS11","v":"May 2019"},{"$f":"'(Intermediate Computations)'!DT11","v":"Jun 2019"},{"$f":"'(Intermediate Computations)'!DU11","v":"Jul 2019"},{"$f":"'(Intermediate Computations)'!DV11","v":"Aug 2019"},{"$f":"'(Intermediate Computations)'!DW11","v":"Sep 2019"},{"$f":"'(Intermediate Computations)'!DX11","v":"Oct 2019"},{"$f":"'(Intermediate Computations)'!DY11","v":"Nov 2019"},{"$f":"'(Intermediate Computations)'!DZ11","v":"Dec 2019"},{"$f":"'(Intermediate Computations)'!EB11","v":"Jan 2020"},{"$f":"'(Intermediate Computations)'!EC11","v":"Feb 2020"},{"$f":"'(Intermediate Computations)'!ED11","v":"Mar 2020"},{"$f":"'(Intermediate Computations)'!EE11","v":"Apr 2020"},{"$f":"'(Intermediate Computations)'!EF11","v":"May 2020"},{"$f":"'(Intermediate Computations)'!EG11","v":"Jun 2020"},{"$f":"'(Intermediate Computations)'!EH11","v":"Jul 2020"},{"$f":"'(Intermediate Computations)'!EI11","v":"Aug 2020"},{"$f":"'(Intermediate Computations)'!EJ11","v":"Sep 2020"},{"$f":"'(Intermediate Computations)'!EK11","v":"Oct 2020"},{"$f":"'(Intermediate Computations)'!EL11","v":"Nov 2020"},{"$f":"'(Intermediate Computations)'!EM11","v":"Dec 2020"}]
[{"$f":"'(Intermediate Computations)'!B8","v":"2010-01-01"},{"$f":"'(Intermediate Computations)'!C8","v":"2010-02-01"},{"$f":"'(Intermediate Computations)'!D8","v":"2010-03-01"},{"$f":"'(Intermediate Computations)'!E8","v":"2010-04-01"},{"$f":"'(Intermediate Computations)'!F8","v":"2010-05-01"},{"$f":"'(Intermediate Computations)'!G8","v":"2010-06-01"},{"$f":"'(Intermediate Computations)'!H8","v":"2010-07-01"},{"$f":"'(Intermediate Computations)'!I8","v":"2010-08-01"},{"$f":"'(Intermediate Computations)'!J8","v":"2010-09-01"},{"$f":"'(Intermediate Computations)'!K8","v":"2010-10-01"},{"$f":"'(Intermediate Computations)'!L8","v":"2010-11-01"},{"$f":"'(Intermediate Computations)'!M8","v":"2010-12-01"},{"$f":"'(Intermediate Computations)'!O8","v":"2011-01-01"},{"$f":"'(Intermediate Computations)'!P8","v":"2011-02-01"},{"$f":"'(Intermediate Computations)'!Q8","v":"2011-03-01"},{"$f":"'(Intermediate Computations)'!R8","v":"2011-04-01"},{"$f":"'(Intermediate Computations)'!S8","v":"2011-05-01"},{"$f":"'(Intermediate Computations)'!T8","v":"2011-06-01"},{"$f":"'(Intermediate Computations)'!U8","v":"2011-07-01"},{"$f":"'(Intermediate Computations)'!V8","v":"2011-08-01"},{"$f":"'(Intermediate Computations)'!W8","v":"2011-09-01"},{"$f":"'(Intermediate Computations)'!X8","v":"2011-10-01"},{"$f":"'(Intermediate Computations)'!Y8","v":"2011-11-01"},{"$f":"'(Intermediate Computations)'!Z8","v":"2011-12-01"},{"$f":"'(Intermediate Computations)'!AB8","v":"2012-01-01"},{"$f":"'(Intermediate Computations)'!AC8","v":"2012-02-01"},{"$f":"'(Intermediate Computations)'!AD8","v":"2012-03-01"},{"$f":"'(Intermediate Computations)'!AE8","v":"2012-04-01"},{"$f":"'(Intermediate Computations)'!AF8","v":"2012-05-01"},{"$f":"'(Intermediate Computations)'!AG8","v":"2012-06-01"},{"$f":"'(Intermediate Computations)'!AH8","v":"2012-07-01"},{"$f":"'(Intermediate Computations)'!AI8","v":"2012-08-01"},{"$f":"'(Intermediate Computations)'!AJ8","v":"2012-09-01"},{"$f":"'(Intermediate Computations)'!AK8","v":"2012-10-01"},{"$f":"'(Intermediate Computations)'!AL8","v":"2012-11-01"},{"$f":"'(Intermediate Computations)'!AM8","v":"2012-12-01"},{"$f":"'(Intermediate Computations)'!AO8","v":"2013-01-01"},{"$f":"'(Intermediate Computations)'!AP8","v":"2013-02-01"},{"$f":"'(Intermediate Computations)'!AQ8","v":"2013-03-01"},{"$f":"'(Intermediate Computations)'!AR8","v":"2013-04-01"},{"$f":"'(Intermediate Computations)'!AS8","v":"2013-05-01"},{"$f":"'(Intermediate Computations)'!AT8","v":"2013-06-01"},{"$f":"'(Intermediate Computations)'!AU8","v":"2013-07-01"},{"$f":"'(Intermediate Computations)'!AV8","v":"2013-08-01"},{"$f":"'(Intermediate Computations)'!AW8","v":"2013-09-01"},{"$f":"'(Intermediate Computations)'!AX8","v":"2013-10-01"},{"$f":"'(Intermediate Computations)'!AY8","v":"2013-11-01"},{"$f":"'(Intermediate Computations)'!AZ8","v":"2013-12-01"},{"$f":"'(Intermediate Computations)'!BB8","v":"2014-01-01"},{"$f":"'(Intermediate Computations)'!BC8","v":"2014-02-01"},{"$f":"'(Intermediate Computations)'!BD8","v":"2014-03-01"},{"$f":"'(Intermediate Computations)'!BE8","v":"2014-04-01"},{"$f":"'(Intermediate Computations)'!BF8","v":"2014-05-01"},{"$f":"'(Intermediate Computations)'!BG8","v":"2014-06-01"},{"$f":"'(Intermediate Computations)'!BH8","v":"2014-07-01"},{"$f":"'(Intermediate Computations)'!BI8","v":"2014-08-01"},{"$f":"'(Intermediate Computations)'!BJ8","v":"2014-09-01"},{"$f":"'(Intermediate Computations)'!BK8","v":"2014-10-01"},{"$f":"'(Intermediate Computations)'!BL8","v":"2014-11-01"},{"$f":"'(Intermediate Computations)'!BM8","v":"2014-12-01"},{"$f":"'(Intermediate Computations)'!BO8","v":"2015-01-01"},{"$f":"'(Intermediate Computations)'!BP8","v":"2015-02-01"},{"$f":"'(Intermediate Computations)'!BQ8","v":"2015-03-01"},{"$f":"'(Intermediate Computations)'!BR8","v":"2015-04-01"},{"$f":"'(Intermediate Computations)'!BS8","v":"2015-05-01"},{"$f":"'(Intermediate Computations)'!BT8","v":"2015-06-01"},{"$f":"'(Intermediate Computations)'!BU8","v":"2015-07-01"},{"$f":"'(Intermediate Computations)'!BV8","v":"2015-08-01"},{"$f":"'(Intermediate Computations)'!BW8","v":"2015-09-01"},{"$f":"'(Intermediate Computations)'!BX8","v":"2015-10-01"},{"$f":"'(Intermediate Computations)'!BY8","v":"2015-11-01"},{"$f":"'(Intermediate Computations)'!BZ8","v":"2015-12-01"},{"$f":"'(Intermediate Computations)'!CB8","v":"2016-01-01"},{"$f":"'(Intermediate Computations)'!CC8","v":"2016-02-01"},{"$f":"'(Intermediate Computations)'!CD8","v":"2016-03-01"},{"$f":"'(Intermediate Computations)'!CE8","v":"2016-04-01"},{"$f":"'(Intermediate Computations)'!CF8","v":"2016-05-01"},{"$f":"'(Intermediate Computations)'!CG8","v":"2016-06-01"},{"$f":"'(Intermediate Computations)'!CH8","v":"2016-07-01"},{"$f":"'(Intermediate Computations)'!CI8","v":"2016-08-01"},{"$f":"'(Intermediate Computations)'!CJ8","v":"2016-09-01"},{"$f":"'(Intermediate Computations)'!CK8","v":"2016-10-01"},{"$f":"'(Intermediate Computations)'!CL8","v":"2016-11-01"},{"$f":"'(Intermediate Computations)'!CM8","v":"2016-12-01"},{"$f":"'(Intermediate Computations)'!CO8","v":"2017-01-01"},{"$f":"'(Intermediate Computations)'!CP8","v":"2017-02-01"},{"$f":"'(Intermediate Computations)'!CQ8","v":"2017-03-01"},{"$f":"'(Intermediate Computations)'!CR8","v":"2017-04-01"},{"$f":"'(Intermediate Computations)'!CS8","v":"2017-05-01"},{"$f":"'(Intermediate Computations)'!CT8","v":"2017-06-01"},{"$f":"'(Intermediate Computations)'!CU8","v":"2017-07-01"},{"$f":"'(Intermediate Computations)'!CV8","v":"2017-08-01"},{"$f":"'(Intermediate Computations)'!CW8","v":"2017-09-01"},{"$f":"'(Intermediate Computations)'!CX8","v":"2017-10-01"},{"$f":"'(Intermediate Computations)'!CY8","v":"2017-11-01"},{"$f":"'(Intermediate Computations)'!CZ8","v":"2017-12-01"},{"$f":"'(Intermediate Computations)'!DB8","v":"2018-01-01"},{"$f":"'(Intermediate Computations)'!DC8","v":"2018-02-01"},{"$f":"'(Intermediate Computations)'!DD8","v":"2018-03-01"},{"$f":"'(Intermediate Computations)'!DE8","v":"2018-04-01"},{"$f":"'(Intermediate Computations)'!DF8","v":"2018-05-01"},{"$f":"'(Intermediate Computations)'!DG8","v":"2018-06-01"},{"$f":"'(Intermediate Computations)'!DH8","v":"2018-07-01"},{"$f":"'(Intermediate Computations)'!DI8","v":"2018-08-01"},{"$f":"'(Intermediate Computations)'!DJ8","v":"2018-09-01"},{"$f":"'(Intermediate Computations)'!DK8","v":"2018-10-01"},{"$f":"'(Intermediate Computations)'!DL8","v":"2018-11-01"},{"$f":"'(Intermediate Computations)'!DM8","v":"2018-12-01"},{"$f":"'(Intermediate Computations)'!DO8","v":"2019-01-01"},{"$f":"'(Intermediate Computations)'!DP8","v":"2019-02-01"},{"$f":"'(Intermediate Computations)'!DQ8","v":"2019-03-01"},{"$f":"'(Intermediate Computations)'!DR8","v":"2019-04-01"},{"$f":"'(Intermediate Computations)'!DS8","v":"2019-05-01"},{"$f":"'(Intermediate Computations)'!DT8","v":"2019-06-01"},{"$f":"'(Intermediate Computations)'!DU8","v":"2019-07-01"},{"$f":"'(Intermediate Computations)'!DV8","v":"2019-08-01"},{"$f":"'(Intermediate Computations)'!DW8","v":"2019-09-01"},{"$f":"'(Intermediate Computations)'!DX8","v":"2019-10-01"},{"$f":"'(Intermediate Computations)'!DY8","v":"2019-11-01"},{"$f":"'(Intermediate Computations)'!DZ8","v":"2019-12-01"},{"$f":"'(Intermediate Computations)'!EB8","v":"2020-01-01"},{"$f":"'(Intermediate Computations)'!EC8","v":"2020-02-01"},{"$f":"'(Intermediate Computations)'!ED8","v":"2020-03-01"},{"$f":"'(Intermediate Computations)'!EE8","v":"2020-04-01"},{"$f":"'(Intermediate Computations)'!EF8","v":"2020-05-01"},{"$f":"'(Intermediate Computations)'!EG8","v":"2020-06-01"},{"$f":"'(Intermediate Computations)'!EH8","v":"2020-07-01"},{"$f":"'(Intermediate Computations)'!EI8","v":"2020-08-01"},{"$f":"'(Intermediate Computations)'!EJ8","v":"2020-09-01"},{"$f":"'(Intermediate Computations)'!EK8","v":"2020-10-01"},{"$f":"'(Intermediate Computations)'!EL8","v":"2020-11-01"},{"$f":"'(Intermediate Computations)'!EM8","v":"2020-12-01"}]
[{"$f":"'Trial 1'!B9","v":{"v":940125.3899119024,"d":"$940,125"}},{"$f":"'Trial 1'!C9","v":{"v":1000141.3395710142,"d":"$1,000,141"}},{"$f":"'Trial 1'!D9","v":{"v":982791.9193759349,"d":"$982,792"}},{"$f":"'Trial 1'!E9","v":{"v":962118.7959621452,"d":"$962,119"}},{"$f":"'Trial 1'!F9","v":{"v":1011440.1865502738,"d":"$1,011,440"}},{"$f":"'Trial 1'!G9","v":{"v":979897.3405596861,"d":"$979,897"}},{"$f":"'Trial 1'!H9","v":{"v":948864.0920766024,"d":"$948,864"}},{"$f":"'Trial 1'!I9","v":{"v":958458.8920413471,"d":"$958,459"}},{"$f":"'Trial 1'!J9","v":{"v":975700.2129228406,"d":"$975,700"}},{"$f":"'Trial 1'!K9","v":{"v":1018334.1762723648,"d":"$1,018,334"}},{"$f":"'Trial 1'!L9","v":{"v":996220.3651157449,"d":"$996,220"}},{"$f":"'Trial 1'!M9","v":{"v":979909.5341638682,"d":"$979,910"}},{"$f":"'Trial 1'!O9","v":{"v":946316.8633855407,"d":"$946,317"}},{"$f":"'Trial 1'!P9","v":{"v":963916.057744381,"d":"$963,916"}},{"$f":"'Trial 1'!Q9","v":{"v":898225.2764405463,"d":"$898,225"}},{"$f":"'Trial 1'!R9","v":{"v":977862.3569379481,"d":"$977,862"}},{"$f":"'Trial 1'!S9","v":{"v":905770.2656937237,"d":"$905,770"}},{"$f":"'Trial 1'!T9","v":{"v":925680.773142982,"d":"$925,681"}},{"$f":"'Trial 1'!U9","v":{"v":910142.0091139528,"d":"$910,142"}},{"$f":"'Trial 1'!V9","v":{"v":908565.7927859274,"d":"$908,566"}},{"$f":"'Trial 1'!W9","v":{"v":940270.2868351259,"d":"$940,270"}},{"$f":"'Trial 1'!X9","v":{"v":948686.025108659,"d":"$948,686"}},{"$f":"'Trial 1'!Y9","v":{"v":996291.6854889346,"d":"$996,292"}},{"$f":"'Trial 1'!Z9","v":{"v":930309.0505843736,"d":"$930,309"}},{"$f":"'Trial 1'!AB9","v":{"v":956338.1793877799,"d":"$956,338"}},{"$f":"'Trial 1'!AC9","v":{"v":1012652.2568716065,"d":"$1,012,652"}},{"$f":"'Trial 1'!AD9","v":{"v":932432.641230957,"d":"$932,433"}},{"$f":"'Trial 1'!AE9","v":{"v":919439.1224160253,"d":"$919,439"}},{"$f":"'Trial 1'!AF9","v":{"v":949256.7720670281,"d":"$949,257"}},{"$f":"'Trial 1'!AG9","v":{"v":945173.1311751953,"d":"$945,173"}},{"$f":"'Trial 1'!AH9","v":{"v":965241.8362848589,"d":"$965,242"}},{"$f":"'Trial 1'!AI9","v":{"v":935547.8254984007,"d":"$935,548"}},{"$f":"'Trial 1'!AJ9","v":{"v":997331.6619646876,"d":"$997,332"}},{"$f":"'Trial 1'!AK9","v":{"v":958095.6980426998,"d":"$958,096"}},{"$f":"'Trial 1'!AL9","v":{"v":937605.8966740393,"d":"$937,606"}},{"$f":"'Trial 1'!AM9","v":{"v":914924.8865556383,"d":"$914,925"}},{"$f":"'Trial 1'!AO9","v":{"v":914668.6776290223,"d":"$914,669"}},{"$f":"'Trial 1'!AP9","v":{"v":1006433.3630026117,"d":"$1,006,433"}},{"$f":"'Trial 1'!AQ9","v":{"v":907002.5353072948,"d":"$907,003"}},{"$f":"'Trial 1'!AR9","v":{"v":974672.3486358832,"d":"$974,672"}},{"$f":"'Trial 1'!AS9","v":{"v":951481.8109181565,"d":"$951,482"}},{"$f":"'Trial 1'!AT9","v":{"v":971395.9198994696,"d":"$971,396"}},{"$f":"'Trial 1'!AU9","v":{"v":939995.4055413135,"d":"$939,995"}},{"$f":"'Trial 1'!AV9","v":{"v":920853.1579483715,"d":"$920,853"}},{"$f":"'Trial 1'!AW9","v":{"v":941342.364654794,"d":"$941,342"}},{"$f":"'Trial 1'!AX9","v":{"v":984552.4335423515,"d":"$984,552"}},{"$f":"'Trial 1'!AY9","v":{"v":957152.2231405656,"d":"$957,152"}},{"$f":"'Trial 1'!AZ9","v":{"v":906989.8242978982,"d":"$906,990"}},{"$f":"'Trial 1'!BB9","v":{"v":903271.0668902099,"d":"$903,271"}},{"$f":"'Trial 1'!BC9","v":{"v":947286.8684523754,"d":"$947,287"}},{"$f":"'Trial 1'!BD9","v":{"v":923370.222545814,"d":"$923,370"}},{"$f":"'Trial 1'!BE9","v":{"v":972365.4310766775,"d":"$972,365"}},{"$f":"'Trial 1'!BF9","v":{"v":952364.2000450919,"d":"$952,364"}},{"$f":"'Trial 1'!BG9","v":{"v":950103.586668661,"d":"$950,104"}},{"$f":"'Trial 1'!BH9","v":{"v":957775.87185367,"d":"$957,776"}},{"$f":"'Trial 1'!BI9","v":{"v":928661.5130431554,"d":"$928,662"}},{"$f":"'Trial 1'!BJ9","v":{"v":926593.803590551,"d":"$926,594"}},{"$f":"'Trial 1'!BK9","v":{"v":892696.8250688035,"d":"$892,697"}},{"$f":"'Trial 1'!BL9","v":{"v":947007.0217681534,"d":"$947,007"}},{"$f":"'Trial 1'!BM9","v":{"v":905590.6717314882,"d":"$905,591"}},{"$f":"'Trial 1'!BO9","v":{"v":952968.5809225461,"d":"$952,969"}},{"$f":"'Trial 1'!BP9","v":{"v":915298.8978503227,"d":"$915,299"}},{"$f":"'Trial 1'!BQ9","v":{"v":987231.2202223833,"d":"$987,231"}},{"$f":"'Trial 1'!BR9","v":{"v":956276.2972818826,"d":"$956,276"}},{"$f":"'Trial 1'!BS9","v":{"v":937803.9802020226,"d":"$937,804"}},{"$f":"'Trial 1'!BT9","v":{"v":887854.0755468025,"d":"$887,854"}},{"$f":"'Trial 1'!BU9","v":{"v":900449.2754376834,"d":"$900,449"}},{"$f":"'Trial 1'!BV9","v":{"v":921516.8702573533,"d":"$921,517"}},{"$f":"'Trial 1'!BW9","v":{"v":961932.7093303478,"d":"$961,933"}},{"$f":"'Trial 1'!BX9","v":{"v":898338.758923451,"d":"$898,339"}},{"$f":"'Trial 1'!BY9","v":{"v":886330.3627270869,"d":"$886,330"}},{"$f":"'Trial 1'!BZ9","v":{"v":963197.3842902558,"d":"$963,197"}},{"$f":"'Trial 1'!CB9","v":{"v":922323.6705689724,"d":"$922,324"}},{"$f":"'Trial 1'!CC9","v":{"v":887060.1760112201,"d":"$887,060"}},{"$f":"'Trial 1'!CD9","v":{"v":967081.4644023712,"d":"$967,081"}},{"$f":"'Trial 1'!CE9","v":{"v":896209.2964475453,"d":"$896,209"}},{"$f":"'Trial 1'!CF9","v":{"v":924826.942329824,"d":"$924,827"}},{"$f":"'Trial 1'!CG9","v":{"v":939158.9123262961,"d":"$939,159"}},{"$f":"'Trial 1'!CH9","v":{"v":922940.1762617793,"d":"$922,940"}},{"$f":"'Trial 1'!CI9","v":{"v":933645.8767380554,"d":"$933,646"}},{"$f":"'Trial 1'!CJ9","v":{"v":926454.6759154611,"d":"$926,455"}},{"$f":"'Trial 1'!CK9","v":{"v":877149.4233591147,"d":"$877,149"}},{"$f":"'Trial 1'!CL9","v":{"v":952199.612759951,"d":"$952,200"}},{"$f":"'Trial 1'!CM9","v":{"v":924653.5495023878,"d":"$924,654"}},{"$f":"'Trial 1'!CO9","v":{"v":894558.5354544858,"d":"$894,559"}},{"$f":"'Trial 1'!CP9","v":{"v":950679.8989268742,"d":"$950,680"}},{"$f":"'Trial 1'!CQ9","v":{"v":864462.871958903,"d":"$864,463"}},{"$f":"'Trial 1'!CR9","v":{"v":918046.6081706992,"d":"$918,047"}},{"$f":"'Trial 1'!CS9","v":{"v":871504.539087215,"d":"$871,505"}},{"$f":"'Trial 1'!CT9","v":{"v":930088.0386079936,"d":"$930,088"}},{"$f":"'Trial 1'!CU9","v":{"v":881523.7977704785,"d":"$881,524"}},{"$f":"'Trial 1'!CV9","v":{"v":927215.5767508047,"d":"$927,216"}},{"$f":"'Trial 1'!CW9","v":{"v":873238.0349752179,"d":"$873,238"}},{"$f":"'Trial 1'!CX9","v":{"v":953596.7782686658,"d":"$953,597"}},{"$f":"'Trial 1'!CY9","v":{"v":960901.144200619,"d":"$960,901"}},{"$f":"'Trial 1'!CZ9","v":{"v":870483.3711549899,"d":"$870,483"}},{"$f":"'Trial 1'!DB9","v":{"v":919617.3015187194,"d":"$919,617"}},{"$f":"'Trial 1'!DC9","v":{"v":937989.1924500772,"d":"$937,989"}},{"$f":"'Trial 1'!DD9","v":{"v":917671.6570760092,"d":"$917,672"}},{"$f":"'Trial 1'!DE9","v":{"v":942084.445065148,"d":"$942,084"}},{"$f":"'Trial 1'!DF9","v":{"v":939440.9418078044,"d":"$939,441"}},{"$f":"'Trial 1'!DG9","v":{"v":901402.9879495681,"d":"$901,403"}},{"$f":"'Trial 1'!DH9","v":{"v":929993.9776478049,"d":"$929,994"}},{"$f":"'Trial 1'!DI9","v":{"v":884633.6302042124,"d":"$884,634"}},{"$f":"'Trial 1'!DJ9","v":{"v":929959.4290459383,"d":"$929,959"}},{"$f":"'Trial 1'!DK9","v":{"v":959970.2324421674,"d":"$959,970"}},{"$f":"'Trial 1'!DL9","v":{"v":876048.8734162782,"d":"$876,049"}},{"$f":"'Trial 1'!DM9","v":{"v":919592.4346487783,"d":"$919,592"}},{"$f":"'Trial 1'!DO9","v":{"v":957168.8596311109,"d":"$957,169"}},{"$f":"'Trial 1'!DP9","v":{"v":896679.3854062303,"d":"$896,679"}},{"$f":"'Trial 1'!DQ9","v":{"v":924831.7104675786,"d":"$924,832"}},{"$f":"'Trial 1'!DR9","v":{"v":916906.6509978609,"d":"$916,907"}},{"$f":"'Trial 1'!DS9","v":{"v":900955.3980451393,"d":"$900,955"}},{"$f":"'Trial 1'!DT9","v":{"v":898166.0517236693,"d":"$898,166"}},{"$f":"'Trial 1'!DU9","v":{"v":922329.8821568019,"d":"$922,330"}},{"$f":"'Trial 1'!DV9","v":{"v":872833.5102465769,"d":"$872,834"}},{"$f":"'Trial 1'!DW9","v":{"v":883390.9611235718,"d":"$883,391"}},{"$f":"'Trial 1'!DX9","v":{"v":941076.048513611,"d":"$941,076"}},{"$f":"'Trial 1'!DY9","v":{"v":930123.3815468275,"d":"$930,123"}},{"$f":"'Trial 1'!DZ9","v":{"v":883751.7231058432,"d":"$883,752"}},{"$f":"'Trial 1'!EB9","v":{"v":918982.8541654854,"d":"$918,983"}},{"$f":"'Trial 1'!EC9","v":{"v":903473.8284540024,"d":"$903,474"}},{"$f":"'Trial 1'!ED9","v":{"v":903569.1708682602,"d":"$903,569"}},{"$f":"'Trial 1'!EE9","v":{"v":860053.2936516732,"d":"$860,053"}},{"$f":"'Trial 1'!EF9","v":{"v":898855.7738666481,"d":"$898,856"}},{"$f":"'Trial 1'!EG9","v":{"v":891421.2982953101,"d":"$891,421"}},{"$f":"'Trial 1'!EH9","v":{"v":897110.0784561489,"d":"$897,110"}},{"$f":"'Trial 1'!EI9","v":{"v":872260.5473787696,"d":"$872,261"}},{"$f":"'Trial 1'!EJ9","v":{"v":909375.0628692099,"d":"$909,375"}},{"$f":"'Trial 1'!EK9","v":{"v":893210.9116097902,"d":"$893,211"}},{"$f":"'Trial 1'!EL9","v":{"v":866824.4450355411,"d":"$866,824"}},{"$f":"'Trial 1'!EM9","v":{"v":876822.3431668889,"d":"$876,822"}}]
[{"$f":"'Trial 2'!B9","v":{"v":951107.8927243656,"d":"$951,108"}},{"$f":"'Trial 2'!C9","v":{"v":921794.1714416564,"d":"$921,794"}},{"$f":"'Trial 2'!D9","v":{"v":971083.4986570094,"d":"$971,083"}},{"$f":"'Trial 2'!E9","v":{"v":1023336.2944243596,"d":"$1,023,336"}},{"$f":"'Trial 2'!F9","v":{"v":978979.1697362988,"d":"$978,979"}},{"$f":"'Trial 2'!G9","v":{"v":943295.6386489958,"d":"$943,296"}},{"$f":"'Trial 2'!H9","v":{"v":961280.0561349948,"d":"$961,280"}},{"$f":"'Trial 2'!I9","v":{"v":924080.7187444072,"d":"$924,081"}},{"$f":"'Trial 2'!J9","v":{"v":974521.8983314986,"d":"$974,522"}},{"$f":"'Trial 2'!K9","v":{"v":965550.6513097403,"d":"$965,551"}},{"$f":"'Trial 2'!L9","v":{"v":922973.7997446407,"d":"$922,974"}},{"$f":"'Trial 2'!M9","v":{"v":989583.775098678,"d":"$989,584"}},{"$f":"'Trial 2'!O9","v":{"v":938946.517781034,"d":"$938,947"}},{"$f":"'Trial 2'!P9","v":{"v":986986.407439621,"d":"$986,986"}},{"$f":"'Trial 2'!Q9","v":{"v":990490.7717709483,"d":"$990,491"}},{"$f":"'Trial 2'!R9","v":{"v":949368.8057917713,"d":"$949,369"}},{"$f":"'Trial 2'!S9","v":{"v":949730.0737596801,"d":"$949,730"}},{"$f":"'Trial 2'!T9","v":{"v":949021.681187503,"d":"$949,022"}},{"$f":"'Trial 2'!U9","v":{"v":916762.3305730254,"d":"$916,762"}},{"$f":"'Trial 2'!V9","v":{"v":929145.6960890164,"d":"$929,146"}},{"$f":"'Trial 2'!W9","v":{"v":937483.4563658854,"d":"$937,483"}},{"$f":"'Trial 2'!X9","v":{"v":930111.4634042326,"d":"$930,111"}},{"$f":"'Trial 2'!Y9","v":{"v":892571.8942335083,"d":"$892,572"}},{"$f":"'Trial 2'!Z9","v":{"v":969412.2820840927,"d":"$969,412"}},{"$f":"'Trial 2'!AB9","v":{"v":951587.7675966974,"d":"$951,588"}},{"$f":"'Trial 2'!AC9","v":{"v":954118.0846276504,"d":"$954,118"}},{"$f":"'Trial 2'!AD9","v":{"v":950845.3130996162,"d":"$950,845"}},{"$f":"'Trial 2'!AE9","v":{"v":1009891.5556242634,"d":"$1,009,892"}},{"$f":"'Trial 2'!AF9","v":{"v":950203.1859188915,"d":"$950,203"}},{"$f":"'Trial 2'!AG9","v":{"v":935111.5711505333,"d":"$935,112"}},{"$f":"'Trial 2'!AH9","v":{"v":965805.8395242475,"d":"$965,806"}},{"$f":"'Trial 2'!AI9","v":{"v":901605.6777021827,"d":"$901,606"}},{"$f":"'Trial 2'!AJ9","v":{"v":951373.1558451055,"d":"$951,373"}},{"$f":"'Trial 2'!AK9","v":{"v":970385.5885588921,"d":"$970,386"}},{"$f":"'Trial 2'!AL9","v":{"v":994626.3809447876,"d":"$994,626"}},{"$f":"'Trial 2'!AM9","v":{"v":928584.8612510043,"d":"$928,585"}},{"$f":"'Trial 2'!AO9","v":{"v":939540.9767368446,"d":"$939,541"}},{"$f":"'Trial 2'!AP9","v":{"v":963086.0990742719,"d":"$963,086"}},{"$f":"'Trial 2'!AQ9","v":{"v":960077.5575854542,"d":"$960,078"}},{"$f":"'Trial 2'!AR9","v":{"v":928350.5340864781,"d":"$928,351"}},{"$f":"'Trial 2'!AS9","v":{"v":959648.9474053493,"d":"$959,649"}},{"$f":"'Trial 2'!AT9","v":{"v":958350.4252290452,"d":"$958,350"}},{"$f":"'Trial 2'!AU9","v":{"v":949208.8192863589,"d":"$949,209"}},{"$f":"'Trial 2'!AV9","v":{"v":952420.3858363526,"d":"$952,420"}},{"$f":"'Trial 2'!AW9","v":{"v":886494.6344039178,"d":"$886,495"}},{"$f":"'Trial 2'!AX9","v":{"v":932069.2666232394,"d":"$932,069"}},{"$f":"'Trial 2'!AY9","v":{"v":978967.5993448881,"d":"$978,968"}},{"$f":"'Trial 2'!AZ9","v":{"v":934128.4661267214,"d":"$934,128"}},{"$f":"'Trial 2'!BB9","v":{"v":916938.877299773,"d":"$916,939"}},{"$f":"'Trial 2'!BC9","v":{"v":943069.2244132096,"d":"$943,069"}},{"$f":"'Trial 2'!BD9","v":{"v":977956.8598524713,"d":"$977,957"}},{"$f":"'Trial 2'!BE9","v":{"v":934037.1123886,"d":"$934,037"}},{"$f":"'Trial 2'!BF9","v":{"v":967167.685456324,"d":"$967,168"}},{"$f":"'Trial 2'!BG9","v":{"v":904806.0355877037,"d":"$904,806"}},{"$f":"'Trial 2'!BH9","v":{"v":916092.8590223666,"d":"$916,093"}},{"$f":"'Trial 2'!BI9","v":{"v":888185.0550407367,"d":"$888,185"}},{"$f":"'Trial 2'!BJ9","v":{"v":963098.557700036,"d":"$963,099"}},{"$f":"'Trial 2'!BK9","v":{"v":920524.4111200665,"d":"$920,524"}},{"$f":"'Trial 2'!BL9","v":{"v":943103.4816950345,"d":"$943,103"}},{"$f":"'Trial 2'!BM9","v":{"v":882021.8657605352,"d":"$882,022"}},{"$f":"'Trial 2'!BO9","v":{"v":874081.503313615,"d":"$874,082"}},{"$f":"'Trial 2'!BP9","v":{"v":896854.0483500541,"d":"$896,854"}},{"$f":"'Trial 2'!BQ9","v":{"v":951062.2968121215,"d":"$951,062"}},{"$f":"'Trial 2'!BR9","v":{"v":967222.5557922284,"d":"$967,223"}},{"$f":"'Trial 2'!BS9","v":{"v":883853.9020477737,"d":"$883,854"}},{"$f":"'Trial 2'!BT9","v":{"v":976827.3582901546,"d":"$976,827"}},{"$f":"'Trial 2'!BU9","v":{"v":907176.5861985565,"d":"$907,177"}},{"$f":"'Trial 2'!BV9","v":{"v":949533.5530702791,"d":"$949,534"}},{"$f":"'Trial 2'!BW9","v":{"v":932878.8899975638,"d":"$932,879"}},{"$f":"'Trial 2'!BX9","v":{"v":874814.9467304227,"d":"$874,815"}},{"$f":"'Trial 2'!BY9","v":{"v":985259.6223469354,"d":"$985,260"}},{"$f":"'Trial 2'!BZ9","v":{"v":936421.1706668723,"d":"$936,421"}},{"$f":"'Trial 2'!CB9","v":{"v":949698.2951535177,"d":"$949,698"}},{"$f":"'Trial 2'!CC9","v":{"v":904402.9535392004,"d":"$904,403"}},{"$f":"'Trial 2'!CD9","v":{"v":920041.7565160702,"d":"$920,042"}},{"$f":"'Trial 2'!CE9","v":{"v":961846.8953134582,"d":"$961,847"}},{"$f":"'Trial 2'!CF9","v":{"v":941390.410926049,"d":"$941,390"}},{"$f":"'Trial 2'!CG9","v":{"v":956036.0700554308,"d":"$956,036"}},{"$f":"'Trial 2'!CH9","v":{"v":926767.6955836053,"d":"$926,768"}},{"$f":"'Trial 2'!CI9","v":{"v":963984.5167013179,"d":"$963,985"}},{"$f":"'Trial 2'!CJ9","v":{"v":885996.1334834686,"d":"$885,996"}},{"$f":"'Trial 2'!CK9","v":{"v":919030.397094424,"d":"$919,030"}},{"$f":"'Trial 2'!CL9","v":{"v":875314.1125557295,"d":"$875,314"}},{"$f":"'Trial 2'!CM9","v":{"v":915730.9395617073,"d":"$915,731"}},{"$f":"'Trial 2'!CO9","v":{"v":899991.0014659415,"d":"$899,991"}},{"$f":"'Trial 2'!CP9","v":{"v":922060.6901527374,"d":"$922,061"}},{"$f":"'Trial 2'!CQ9","v":{"v":934961.5397629982,"d":"$934,962"}},{"$f":"'Trial 2'!CR9","v":{"v":907148.823869982,"d":"$907,149"}},{"$f":"'Trial 2'!CS9","v":{"v":939452.8241378231,"d":"$939,453"}},{"$f":"'Trial 2'!CT9","v":{"v":886172.6324571464,"d":"$886,173"}},{"$f":"'Trial 2'!CU9","v":{"v":956279.1924108833,"d":"$956,279"}},{"$f":"'Trial 2'!CV9","v":{"v":911363.488572925,"d":"$911,363"}},{"$f":"'Trial 2'!CW9","v":{"v":955114.9966240753,"d":"$955,115"}},{"$f":"'Trial 2'!CX9","v":{"v":859050.2699051099,"d":"$859,050"}},{"$f":"'Trial 2'!CY9","v":{"v":947100.5241201974,"d":"$947,101"}},{"$f":"'Trial 2'!CZ9","v":{"v":908545.5557956167,"d":"$908,546"}},{"$f":"'Trial 2'!DB9","v":{"v":904853.3517377446,"d":"$904,853"}},{"$f":"'Trial 2'!DC9","v":{"v":934305.6427580038,"d":"$934,306"}},{"$f":"'Trial 2'!DD9","v":{"v":901668.1101524776,"d":"$901,668"}},{"$f":"'Trial 2'!DE9","v":{"v":935654.7412802861,"d":"$935,655"}},{"$f":"'Trial 2'!DF9","v":{"v":945655.0131544595,"d":"$945,655"}},{"$f":"'Trial 2'!DG9","v":{"v":914030.4685598348,"d":"$914,030"}},{"$f":"'Trial 2'!DH9","v":{"v":919421.3278660936,"d":"$919,421"}},{"$f":"'Trial 2'!DI9","v":{"v":923293.1760824906,"d":"$923,293"}},{"$f":"'Trial 2'!DJ9","v":{"v":959474.8836501938,"d":"$959,475"}},{"$f":"'Trial 2'!DK9","v":{"v":881648.6072305163,"d":"$881,649"}},{"$f":"'Trial 2'!DL9","v":{"v":854847.5610936483,"d":"$854,848"}},{"$f":"'Trial 2'!DM9","v":{"v":875208.605295972,"d":"$875,209"}},{"$f":"'Trial 2'!DO9","v":{"v":942197.3055689369,"d":"$942,197"}},{"$f":"'Trial 2'!DP9","v":{"v":865463.2628302007,"d":"$865,463"}},{"$f":"'Trial 2'!DQ9","v":{"v":914754.1727567214,"d":"$914,754"}},{"$f":"'Trial 2'!DR9","v":{"v":900774.6387495016,"d":"$900,775"}},{"$f":"'Trial 2'!DS9","v":{"v":881889.0409326062,"d":"$881,889"}},{"$f":"'Trial 2'!DT9","v":{"v":919353.5383431781,"d":"$919,354"}},{"$f":"'Trial 2'!DU9","v":{"v":935277.2441174897,"d":"$935,277"}},{"$f":"'Trial 2'!DV9","v":{"v":929567.3874692839,"d":"$929,567"}},{"$f":"'Trial 2'!DW9","v":{"v":872073.3903873011,"d":"$872,073"}},{"$f":"'Trial 2'!DX9","v":{"v":933843.1900608385,"d":"$933,843"}},{"$f":"'Trial 2'!DY9","v":{"v":905613.9772011419,"d":"$905,614"}},{"$f":"'Trial 2'!DZ9","v":{"v":869594.1798831861,"d":"$869,594"}},{"$f":"'Trial 2'!EB9","v":{"v":937725.6591862382,"d":"$937,726"}},{"$f":"'Trial 2'!EC9","v":{"v":922936.4830246274,"d":"$922,936"}},{"$f":"'Trial 2'!ED9","v":{"v":852603.3505104911,"d":"$852,603"}},{"$f":"'Trial 2'!EE9","v":{"v":901768.5904646419,"d":"$901,769"}},{"$f":"'Trial 2'!EF9","v":{"v":952950.1657656981,"d":"$952,950"}},{"$f":"'Trial 2'!EG9","v":{"v":871019.7338833307,"d":"$871,020"}},{"$f":"'Trial 2'!EH9","v":{"v":880686.9361869843,"d":"$880,687"}},{"$f":"'Trial 2'!EI9","v":{"v":869607.6332091615,"d":"$869,608"}},{"$f":"'Trial 2'!EJ9","v":{"v":916838.9507948875,"d":"$916,839"}},{"$f":"'Trial 2'!EK9","v":{"v":886455.1636464644,"d":"$886,455"}},{"$f":"'Trial 2'!EL9","v":{"v":922826.5660784965,"d":"$922,827"}},{"$f":"'Trial 2'!EM9","v":{"v":899612.6163959887,"d":"$899,613"}}]
[{"$f":"'Trial 3'!B9","v":{"v":908644.1191228533,"d":"$908,644"}},{"$f":"'Trial 3'!C9","v":{"v":971548.4311788123,"d":"$971,548"}},{"$f":"'Trial 3'!D9","v":{"v":931533.1640044932,"d":"$931,533"}},{"$f":"'Trial 3'!E9","v":{"v":1006242.7610823698,"d":"$1,006,243"}},{"$f":"'Trial 3'!F9","v":{"v":975655.6405177367,"d":"$975,656"}},{"$f":"'Trial 3'!G9","v":{"v":1001977.6769379871,"d":"$1,001,978"}},{"$f":"'Trial 3'!H9","v":{"v":947450.9189202542,"d":"$947,451"}},{"$f":"'Trial 3'!I9","v":{"v":987663.083691642,"d":"$987,663"}},{"$f":"'Trial 3'!J9","v":{"v":923286.6474627419,"d":"$923,287"}},{"$f":"'Trial 3'!K9","v":{"v":967916.9039283168,"d":"$967,917"}},{"$f":"'Trial 3'!L9","v":{"v":989333.880347226,"d":"$989,334"}},{"$f":"'Trial 3'!M9","v":{"v":932943.7627732146,"d":"$932,944"}},{"$f":"'Trial 3'!O9","v":{"v":967044.8216508331,"d":"$967,045"}},{"$f":"'Trial 3'!P9","v":{"v":943047.5385522014,"d":"$943,048"}},{"$f":"'Trial 3'!Q9","v":{"v":997763.1195832082,"d":"$997,763"}},{"$f":"'Trial 3'!R9","v":{"v":980255.9411303008,"d":"$980,256"}},{"$f":"'Trial 3'!S9","v":{"v":955794.2568280761,"d":"$955,794"}},{"$f":"'Trial 3'!T9","v":{"v":945713.0679702156,"d":"$945,713"}},{"$f":"'Trial 3'!U9","v":{"v":891998.020529059,"d":"$891,998"}},{"$f":"'Trial 3'!V9","v":{"v":926811.9375182266,"d":"$926,812"}},{"$f":"'Trial 3'!W9","v":{"v":966193.2044177938,"d":"$966,193"}},{"$f":"'Trial 3'!X9","v":{"v":957323.1460422662,"d":"$957,323"}},{"$f":"'Trial 3'!Y9","v":{"v":937916.2431012222,"d":"$937,916"}},{"$f":"'Trial 3'!Z9","v":{"v":894334.5127299024,"d":"$894,335"}},{"$f":"'Trial 3'!AB9","v":{"v":991621.1612228093,"d":"$991,621"}},{"$f":"'Trial 3'!AC9","v":{"v":930031.4940087548,"d":"$930,031"}},{"$f":"'Trial 3'!AD9","v":{"v":915628.9545258282,"d":"$915,629"}},{"$f":"'Trial 3'!AE9","v":{"v":976724.052374943,"d":"$976,724"}},{"$f":"'Trial 3'!AF9","v":{"v":890968.8686891843,"d":"$890,969"}},{"$f":"'Trial 3'!AG9","v":{"v":972658.8058148375,"d":"$972,659"}},{"$f":"'Trial 3'!AH9","v":{"v":954509.817302213,"d":"$954,510"}},{"$f":"'Trial 3'!AI9","v":{"v":922331.8926577612,"d":"$922,332"}},{"$f":"'Trial 3'!AJ9","v":{"v":966137.3294823788,"d":"$966,137"}},{"$f":"'Trial 3'!AK9","v":{"v":952547.1618523662,"d":"$952,547"}},{"$f":"'Trial 3'!AL9","v":{"v":932943.8381912053,"d":"$932,944"}},{"$f":"'Trial 3'!AM9","v":{"v":929482.9385105749,"d":"$929,483"}},{"$f":"'Trial 3'!AO9","v":{"v":974271.9403536422,"d":"$974,272"}},{"$f":"'Trial 3'!AP9","v":{"v":980749.1149328982,"d":"$980,749"}},{"$f":"'Trial 3'!AQ9","v":{"v":897304.4637475894,"d":"$897,304"}},{"$f":"'Trial 3'!AR9","v":{"v":934370.1623262783,"d":"$934,370"}},{"$f":"'Trial 3'!AS9","v":{"v":969282.5539698505,"d":"$969,283"}},{"$f":"'Trial 3'!AT9","v":{"v":926581.0679119895,"d":"$926,581"}},{"$f":"'Trial 3'!AU9","v":{"v":911759.5665399684,"d":"$911,760"}},{"$f":"'Trial 3'!AV9","v":{"v":953459.6579637118,"d":"$953,460"}},{"$f":"'Trial 3'!AW9","v":{"v":908922.0473697911,"d":"$908,922"}},{"$f":"'Trial 3'!AX9","v":{"v":976972.8128701105,"d":"$976,973"}},{"$f":"'Trial 3'!AY9","v":{"v":908209.2625296739,"d":"$908,209"}},{"$f":"'Trial 3'!AZ9","v":{"v":891582.8210261515,"d":"$891,583"}},{"$f":"'Trial 3'!BB9","v":{"v":927540.9445480566,"d":"$927,541"}},{"$f":"'Trial 3'!BC9","v":{"v":889985.7868221746,"d":"$889,986"}},{"$f":"'Trial 3'!BD9","v":{"v":964859.2631638394,"d":"$964,859"}},{"$f":"'Trial 3'!BE9","v":{"v":879396.0702326021,"d":"$879,396"}},{"$f":"'Trial 3'!BF9","v":{"v":948580.7123088364,"d":"$948,581"}},{"$f":"'Trial 3'!BG9","v":{"v":877758.1965151199,"d":"$877,758"}},{"$f":"'Trial 3'!BH9","v":{"v":904871.5993588308,"d":"$904,872"}},{"$f":"'Trial 3'!BI9","v":{"v":942654.3072784098,"d":"$942,654"}},{"$f":"'Trial 3'!BJ9","v":{"v":935695.1313910865,"d":"$935,695"}},{"$f":"'Trial 3'!BK9","v":{"v":921990.7313359622,"d":"$921,991"}},{"$f":"'Trial 3'!BL9","v":{"v":957673.5077155445,"d":"$957,674"}},{"$f":"'Trial 3'!BM9","v":{"v":930063.6639037016,"d":"$930,064"}},{"$f":"'Trial 3'!BO9","v":{"v":930834.2120829814,"d":"$930,834"}},{"$f":"'Trial 3'!BP9","v":{"v":945888.5515067232,"d":"$945,889"}},{"$f":"'Trial 3'!BQ9","v":{"v":901236.8796267429,"d":"$901,237"}},{"$f":"'Trial 3'!BR9","v":{"v":934778.6211228372,"d":"$934,779"}},{"$f":"'Trial 3'!BS9","v":{"v":955027.2054320695,"d":"$955,027"}},{"$f":"'Trial 3'!BT9","v":{"v":920277.656381953,"d":"$920,278"}},{"$f":"'Trial 3'!BU9","v":{"v":914827.6761523356,"d":"$914,828"}},{"$f":"'Trial 3'!BV9","v":{"v":902188.18718252,"d":"$902,188"}},{"$f":"'Trial 3'!BW9","v":{"v":943855.0992995605,"d":"$943,855"}},{"$f":"'Trial 3'!BX9","v":{"v":891278.2944692001,"d":"$891,278"}},{"$f":"'Trial 3'!BY9","v":{"v":968818.5516737526,"d":"$968,819"}},{"$f":"'Trial 3'!BZ9","v":{"v":916245.3540845425,"d":"$916,245"}},{"$f":"'Trial 3'!CB9","v":{"v":944089.1154552806,"d":"$944,089"}},{"$f":"'Trial 3'!CC9","v":{"v":919442.7911818249,"d":"$919,443"}},{"$f":"'Trial 3'!CD9","v":{"v":929425.6013962618,"d":"$929,426"}},{"$f":"'Trial 3'!CE9","v":{"v":930370.6083813698,"d":"$930,371"}},{"$f":"'Trial 3'!CF9","v":{"v":926476.6007507923,"d":"$926,477"}},{"$f":"'Trial 3'!CG9","v":{"v":950731.3465207247,"d":"$950,731"}},{"$f":"'Trial 3'!CH9","v":{"v":954458.1874564469,"d":"$954,458"}},{"$f":"'Trial 3'!CI9","v":{"v":965740.5136063226,"d":"$965,741"}},{"$f":"'Trial 3'!CJ9","v":{"v":918316.6800380568,"d":"$918,317"}},{"$f":"'Trial 3'!CK9","v":{"v":943356.0481789397,"d":"$943,356"}},{"$f":"'Trial 3'!CL9","v":{"v":955826.4312605822,"d":"$955,826"}},{"$f":"'Trial 3'!CM9","v":{"v":969866.9038906917,"d":"$969,867"}},{"$f":"'Trial 3'!CO9","v":{"v":888150.5498802776,"d":"$888,151"}},{"$f":"'Trial 3'!CP9","v":{"v":937701.9218117992,"d":"$937,702"}},{"$f":"'Trial 3'!CQ9","v":{"v":908754.2113933204,"d":"$908,754"}},{"$f":"'Trial 3'!CR9","v":{"v":931221.327802194,"d":"$931,221"}},{"$f":"'Trial 3'!CS9","v":{"v":916435.2252419568,"d":"$916,435"}},{"$f":"'Trial 3'!CT9","v":{"v":927326.5796386552,"d":"$927,327"}},{"$f":"'Trial 3'!CU9","v":{"v":939134.3626117085,"d":"$939,134"}},{"$f":"'Trial 3'!CV9","v":{"v":922876.3366704341,"d":"$922,876"}},{"$f":"'Trial 3'!CW9","v":{"v":890250.6203305252,"d":"$890,251"}},{"$f":"'Trial 3'!CX9","v":{"v":960304.0787257282,"d":"$960,304"}},{"$f":"'Trial 3'!CY9","v":{"v":896342.5371469519,"d":"$896,343"}},{"$f":"'Trial 3'!CZ9","v":{"v":946123.9969997247,"d":"$946,124"}},{"$f":"'Trial 3'!DB9","v":{"v":883915.262306991,"d":"$883,915"}},{"$f":"'Trial 3'!DC9","v":{"v":861020.1242525163,"d":"$861,020"}},{"$f":"'Trial 3'!DD9","v":{"v":911774.9205335242,"d":"$911,775"}},{"$f":"'Trial 3'!DE9","v":{"v":927943.6836648968,"d":"$927,944"}},{"$f":"'Trial 3'!DF9","v":{"v":920609.0572957644,"d":"$920,609"}},{"$f":"'Trial 3'!DG9","v":{"v":932108.1817120538,"d":"$932,108"}},{"$f":"'Trial 3'!DH9","v":{"v":926506.2731028054,"d":"$926,506"}},{"$f":"'Trial 3'!DI9","v":{"v":915976.8415694525,"d":"$915,977"}},{"$f":"'Trial 3'!DJ9","v":{"v":903259.7766405484,"d":"$903,260"}},{"$f":"'Trial 3'!DK9","v":{"v":924743.2467894087,"d":"$924,743"}},{"$f":"'Trial 3'!DL9","v":{"v":933819.290322877,"d":"$933,819"}},{"$f":"'Trial 3'!DM9","v":{"v":922780.1692573145,"d":"$922,780"}},{"$f":"'Trial 3'!DO9","v":{"v":928805.5006559027,"d":"$928,806"}},{"$f":"'Trial 3'!DP9","v":{"v":931800.3454066952,"d":"$931,800"}},{"$f":"'Trial 3'!DQ9","v":{"v":971044.1793412057,"d":"$971,044"}},{"$f":"'Trial 3'!DR9","v":{"v":860474.0376635547,"d":"$860,474"}},{"$f":"'Trial 3'!DS9","v":{"v":895152.1151261863,"d":"$895,152"}},{"$f":"'Trial 3'!DT9","v":{"v":936006.4573356349,"d":"$936,006"}},{"$f":"'Trial 3'!DU9","v":{"v":906043.3936113787,"d":"$906,043"}},{"$f":"'Trial 3'!DV9","v":{"v":935895.4344426929,"d":"$935,895"}},{"$f":"'Trial 3'!DW9","v":{"v":948295.5802777121,"d":"$948,296"}},{"$f":"'Trial 3'!DX9","v":{"v":903815.5396087528,"d":"$903,816"}},{"$f":"'Trial 3'!DY9","v":{"v":893295.0553476675,"d":"$893,295"}},{"$f":"'Trial 3'!DZ9","v":{"v":875899.1973368519,"d":"$875,899"}},{"$f":"'Trial 3'!EB9","v":{"v":907858.2255427389,"d":"$907,858"}},{"$f":"'Trial 3'!EC9","v":{"v":895378.3574365198,"d":"$895,378"}},{"$f":"'Trial 3'!ED9","v":{"v":917987.0269983899,"d":"$917,987"}},{"$f":"'Trial 3'!EE9","v":{"v":917639.0683667621,"d":"$917,639"}},{"$f":"'Trial 3'!EF9","v":{"v":903990.4572852994,"d":"$903,990"}},{"$f":"'Trial 3'!EG9","v":{"v":903952.2155655749,"d":"$903,952"}},{"$f":"'Trial 3'!EH9","v":{"v":933077.6390920627,"d":"$933,078"}},{"$f":"'Trial 3'!EI9","v":{"v":865889.9278129302,"d":"$865,890"}},{"$f":"'Trial 3'!EJ9","v":{"v":853661.072906925,"d":"$853,661"}},{"$f":"'Trial 3'!EK9","v":{"v":945519.2542092126,"d":"$945,519"}},{"$f":"'Trial 3'!EL9","v":{"v":925392.5173240772,"d":"$925,393"}},{"$f":"'Trial 3'!EM9","v":{"v":894643.770749713,"d":"$894,644"}}]
[{"$f":"'Trial 4'!B9","v":{"v":949133.2202495517,"d":"$949,133"}},{"$f":"'Trial 4'!C9","v":{"v":941187.6774262296,"d":"$941,188"}},{"$f":"'Trial 4'!D9","v":{"v":939482.3194920024,"d":"$939,482"}},{"$f":"'Trial 4'!E9","v":{"v":980170.3963395489,"d":"$980,170"}},{"$f":"'Trial 4'!F9","v":{"v":999017.1433989248,"d":"$999,017"}},{"$f":"'Trial 4'!G9","v":{"v":1015979.6549284561,"d":"$1,015,980"}},{"$f":"'Trial 4'!H9","v":{"v":916288.1408850434,"d":"$916,288"}},{"$f":"'Trial 4'!I9","v":{"v":917817.0913844351,"d":"$917,817"}},{"$f":"'Trial 4'!J9","v":{"v":950586.2551576702,"d":"$950,586"}},{"$f":"'Trial 4'!K9","v":{"v":950467.8577314499,"d":"$950,468"}},{"$f":"'Trial 4'!L9","v":{"v":958897.9860853446,"d":"$958,898"}},{"$f":"'Trial 4'!M9","v":{"v":910018.6825218421,"d":"$910,019"}},{"$f":"'Trial 4'!O9","v":{"v":958088.3860363538,"d":"$958,088"}},{"$f":"'Trial 4'!P9","v":{"v":970044.3283308629,"d":"$970,044"}},{"$f":"'Trial 4'!Q9","v":{"v":999063.1138890338,"d":"$999,063"}},{"$f":"'Trial 4'!R9","v":{"v":957008.1125626758,"d":"$957,008"}},{"$f":"'Trial 4'!S9","v":{"v":898611.2362265487,"d":"$898,611"}},{"$f":"'Trial 4'!T9","v":{"v":938321.6051570509,"d":"$938,322"}},{"$f":"'Trial 4'!U9","v":{"v":957048.7889470609,"d":"$957,049"}},{"$f":"'Trial 4'!V9","v":{"v":949450.2888525696,"d":"$949,450"}},{"$f":"'Trial 4'!W9","v":{"v":1013907.3189922987,"d":"$1,013,907"}},{"$f":"'Trial 4'!X9","v":{"v":946444.3487860704,"d":"$946,444"}},{"$f":"'Trial 4'!Y9","v":{"v":900555.5824394184,"d":"$900,556"}},{"$f":"'Trial 4'!Z9","v":{"v":921329.7953204834,"d":"$921,330"}},{"$f":"'Trial 4'!AB9","v":{"v":928449.41534814,"d":"$928,449"}},{"$f":"'Trial 4'!AC9","v":{"v":958727.060387083,"d":"$958,727"}},{"$f":"'Trial 4'!AD9","v":{"v":936090.6149453559,"d":"$936,091"}},{"$f":"'Trial 4'!AE9","v":{"v":905949.1714447642,"d":"$905,949"}},{"$f":"'Trial 4'!AF9","v":{"v":929181.0788227046,"d":"$929,181"}},{"$f":"'Trial 4'!AG9","v":{"v":992420.0144579633,"d":"$992,420"}},{"$f":"'Trial 4'!AH9","v":{"v":946785.8921112611,"d":"$946,786"}},{"$f":"'Trial 4'!AI9","v":{"v":945829.012173806,"d":"$945,829"}},{"$f":"'Trial 4'!AJ9","v":{"v":927260.8701416582,"d":"$927,261"}},{"$f":"'Trial 4'!AK9","v":{"v":983600.2903605652,"d":"$983,600"}},{"$f":"'Trial 4'!AL9","v":{"v":932987.4050006245,"d":"$932,987"}},{"$f":"'Trial 4'!AM9","v":{"v":886209.1245205982,"d":"$886,209"}},{"$f":"'Trial 4'!AO9","v":{"v":943822.4262714365,"d":"$943,822"}},{"$f":"'Trial 4'!AP9","v":{"v":940403.5396017886,"d":"$940,404"}},{"$f":"'Trial 4'!AQ9","v":{"v":933094.0282118012,"d":"$933,094"}},{"$f":"'Trial 4'!AR9","v":{"v":907667.6773342944,"d":"$907,668"}},{"$f":"'Trial 4'!AS9","v":{"v":953250.4640133078,"d":"$953,250"}},{"$f":"'Trial 4'!AT9","v":{"v":972165.3963699397,"d":"$972,165"}},{"$f":"'Trial 4'!AU9","v":{"v":953797.1213375749,"d":"$953,797"}},{"$f":"'Trial 4'!AV9","v":{"v":937735.3976923374,"d":"$937,735"}},{"$f":"'Trial 4'!AW9","v":{"v":958565.4105854259,"d":"$958,565"}},{"$f":"'Trial 4'!AX9","v":{"v":907554.3149572643,"d":"$907,554"}},{"$f":"'Trial 4'!AY9","v":{"v":911803.3102498478,"d":"$911,803"}},{"$f":"'Trial 4'!AZ9","v":{"v":887722.7631068792,"d":"$887,723"}},{"$f":"'Trial 4'!BB9","v":{"v":994887.7864883789,"d":"$994,888"}},{"$f":"'Trial 4'!BC9","v":{"v":992481.2146104544,"d":"$992,481"}},{"$f":"'Trial 4'!BD9","v":{"v":904607.8032382441,"d":"$904,608"}},{"$f":"'Trial 4'!BE9","v":{"v":936195.1852323234,"d":"$936,195"}},{"$f":"'Trial 4'!BF9","v":{"v":905873.1947275392,"d":"$905,873"}},{"$f":"'Trial 4'!BG9","v":{"v":956568.1678425822,"d":"$956,568"}},{"$f":"'Trial 4'!BH9","v":{"v":907227.9554450936,"d":"$907,228"}},{"$f":"'Trial 4'!BI9","v":{"v":936356.6437523853,"d":"$936,357"}},{"$f":"'Trial 4'!BJ9","v":{"v":875952.8915699207,"d":"$875,953"}},{"$f":"'Trial 4'!BK9","v":{"v":963613.9462107236,"d":"$963,614"}},{"$f":"'Trial 4'!BL9","v":{"v":947852.6131909846,"d":"$947,853"}},{"$f":"'Trial 4'!BM9","v":{"v":959754.4636233789,"d":"$959,754"}},{"$f":"'Trial 4'!BO9","v":{"v":955360.5491383851,"d":"$955,361"}},{"$f":"'Trial 4'!BP9","v":{"v":956840.3239115219,"d":"$956,840"}},{"$f":"'Trial 4'!BQ9","v":{"v":909075.7594254744,"d":"$909,076"}},{"$f":"'Trial 4'!BR9","v":{"v":937998.8524408707,"d":"$937,999"}},{"$f":"'Trial 4'!BS9","v":{"v":893668.3963083324,"d":"$893,668"}},{"$f":"'Trial 4'!BT9","v":{"v":949127.4563355307,"d":"$949,127"}},{"$f":"'Trial 4'!BU9","v":{"v":915825.5935182236,"d":"$915,826"}},{"$f":"'Trial 4'!BV9","v":{"v":903152.5936779452,"d":"$903,153"}},{"$f":"'Trial 4'!BW9","v":{"v":891564.104486502,"d":"$891,564"}},{"$f":"'Trial 4'!BX9","v":{"v":954248.9290005652,"d":"$954,249"}},{"$f":"'Trial 4'!BY9","v":{"v":921402.7568495203,"d":"$921,403"}},{"$f":"'Trial 4'!BZ9","v":{"v":944168.1988022357,"d":"$944,168"}},{"$f":"'Trial 4'!CB9","v":{"v":897611.716656255,"d":"$897,612"}},{"$f":"'Trial 4'!CC9","v":{"v":941346.8340774936,"d":"$941,347"}},{"$f":"'Trial 4'!CD9","v":{"v":907779.5092626195,"d":"$907,780"}},{"$f":"'Trial 4'!CE9","v":{"v":914115.7587261047,"d":"$914,116"}},{"$f":"'Trial 4'!CF9","v":{"v":929664.6198586294,"d":"$929,665"}},{"$f":"'Trial 4'!CG9","v":{"v":910701.0923454267,"d":"$910,701"}},{"$f":"'Trial 4'!CH9","v":{"v":985660.1835244193,"d":"$985,660"}},{"$f":"'Trial 4'!CI9","v":{"v":956070.3482916179,"d":"$956,070"}},{"$f":"'Trial 4'!CJ9","v":{"v":918980.253495065,"d":"$918,980"}},{"$f":"'Trial 4'!CK9","v":{"v":957509.5335018017,"d":"$957,510"}},{"$f":"'Trial 4'!CL9","v":{"v":930081.081694256,"d":"$930,081"}},{"$f":"'Trial 4'!CM9","v":{"v":899786.1860675924,"d":"$899,786"}},{"$f":"'Trial 4'!CO9","v":{"v":952672.9794905998,"d":"$952,673"}},{"$f":"'Trial 4'!CP9","v":{"v":942997.6412536249,"d":"$942,998"}},{"$f":"'Trial 4'!CQ9","v":{"v":951823.0661272884,"d":"$951,823"}},{"$f":"'Trial 4'!CR9","v":{"v":923596.2018548569,"d":"$923,596"}},{"$f":"'Trial 4'!CS9","v":{"v":894879.4834778315,"d":"$894,879"}},{"$f":"'Trial 4'!CT9","v":{"v":870667.6579495568,"d":"$870,668"}},{"$f":"'Trial 4'!CU9","v":{"v":973093.2253873862,"d":"$973,093"}},{"$f":"'Trial 4'!CV9","v":{"v":935587.1581947025,"d":"$935,587"}},{"$f":"'Trial 4'!CW9","v":{"v":932087.5031393837,"d":"$932,088"}},{"$f":"'Trial 4'!CX9","v":{"v":869121.1526660407,"d":"$869,121"}},{"$f":"'Trial 4'!CY9","v":{"v":939136.1984735652,"d":"$939,136"}},{"$f":"'Trial 4'!CZ9","v":{"v":960072.230769163,"d":"$960,072"}},{"$f":"'Trial 4'!DB9","v":{"v":895253.5181821894,"d":"$895,254"}},{"$f":"'Trial 4'!DC9","v":{"v":877917.7145776956,"d":"$877,918"}},{"$f":"'Trial 4'!DD9","v":{"v":937552.2403431141,"d":"$937,552"}},{"$f":"'Trial 4'!DE9","v":{"v":937376.9185899885,"d":"$937,377"}},{"$f":"'Trial 4'!DF9","v":{"v":920822.5528774846,"d":"$920,823"}},{"$f":"'Trial 4'!DG9","v":{"v":928890.1996208582,"d":"$928,890"}},{"$f":"'Trial 4'!DH9","v":{"v":876301.035574762,"d":"$876,301"}},{"$f":"'Trial 4'!DI9","v":{"v":939942.9550044967,"d":"$939,943"}},{"$f":"'Trial 4'!DJ9","v":{"v":895390.1917897273,"d":"$895,390"}},{"$f":"'Trial 4'!DK9","v":{"v":933554.5044824253,"d":"$933,555"}},{"$f":"'Trial 4'!DL9","v":{"v":922818.6364523539,"d":"$922,819"}},{"$f":"'Trial 4'!DM9","v":{"v":896766.0463165062,"d":"$896,766"}},{"$f":"'Trial 4'!DO9","v":{"v":957545.3877370871,"d":"$957,545"}},{"$f":"'Trial 4'!DP9","v":{"v":970651.2917035138,"d":"$970,651"}},{"$f":"'Trial 4'!DQ9","v":{"v":880805.2242028507,"d":"$880,805"}},{"$f":"'Trial 4'!DR9","v":{"v":960016.2042876622,"d":"$960,016"}},{"$f":"'Trial 4'!DS9","v":{"v":965676.6340335011,"d":"$965,677"}},{"$f":"'Trial 4'!DT9","v":{"v":938506.5925786279,"d":"$938,507"}},{"$f":"'Trial 4'!DU9","v":{"v":893000.5679719029,"d":"$893,001"}},{"$f":"'Trial 4'!DV9","v":{"v":902332.9312668289,"d":"$902,333"}},{"$f":"'Trial 4'!DW9","v":{"v":849246.1884558782,"d":"$849,246"}},{"$f":"'Trial 4'!DX9","v":{"v":950391.0458704293,"d":"$950,391"}},{"$f":"'Trial 4'!DY9","v":{"v":942335.9852642003,"d":"$942,336"}},{"$f":"'Trial 4'!DZ9","v":{"v":956109.6954362595,"d":"$956,110"}},{"$f":"'Trial 4'!EB9","v":{"v":903210.4050801338,"d":"$903,210"}},{"$f":"'Trial 4'!EC9","v":{"v":844269.4751957054,"d":"$844,269"}},{"$f":"'Trial 4'!ED9","v":{"v":894643.3941120175,"d":"$894,643"}},{"$f":"'Trial 4'!EE9","v":{"v":943962.6646863945,"d":"$943,963"}},{"$f":"'Trial 4'!EF9","v":{"v":955059.0695886131,"d":"$955,059"}},{"$f":"'Trial 4'!EG9","v":{"v":890821.1760357283,"d":"$890,821"}},{"$f":"'Trial 4'!EH9","v":{"v":927241.2334419821,"d":"$927,241"}},{"$f":"'Trial 4'!EI9","v":{"v":853677.7427362464,"d":"$853,678"}},{"$f":"'Trial 4'!EJ9","v":{"v":852813.7134197945,"d":"$852,814"}},{"$f":"'Trial 4'!EK9","v":{"v":935031.8862983249,"d":"$935,032"}},{"$f":"'Trial 4'!EL9","v":{"v":866288.3001322225,"d":"$866,288"}},{"$f":"'Trial 4'!EM9","v":{"v":926267.1903910944,"d":"$926,267"}}]
[{"$f":"'Trial 5'!B9","v":{"v":923738.448670476,"d":"$923,738"}},{"$f":"'Trial 5'!C9","v":{"v":933408.649227766,"d":"$933,409"}},{"$f":"'Trial 5'!D9","v":{"v":999945.310821713,"d":"$999,945"}},{"$f":"'Trial 5'!E9","v":{"v":909754.3983882215,"d":"$909,754"}},{"$f":"'Trial 5'!F9","v":{"v":940760.9875784436,"d":"$940,761"}},{"$f":"'Trial 5'!G9","v":{"v":935755.0869919473,"d":"$935,755"}},{"$f":"'Trial 5'!H9","v":{"v":957530.6120783462,"d":"$957,531"}},{"$f":"'Trial 5'!I9","v":{"v":978652.2856243133,"d":"$978,652"}},{"$f":"'Trial 5'!J9","v":{"v":1018764.6421169592,"d":"$1,018,765"}},{"$f":"'Trial 5'!K9","v":{"v":930350.0790734767,"d":"$930,350"}},{"$f":"'Trial 5'!L9","v":{"v":936003.9597199886,"d":"$936,004"}},{"$f":"'Trial 5'!M9","v":{"v":955930.7935484002,"d":"$955,931"}},{"$f":"'Trial 5'!O9","v":{"v":946175.9502732761,"d":"$946,176"}},{"$f":"'Trial 5'!P9","v":{"v":959793.8067702696,"d":"$959,794"}},{"$f":"'Trial 5'!Q9","v":{"v":947107.6564104268,"d":"$947,108"}},{"$f":"'Trial 5'!R9","v":{"v":961928.1586591399,"d":"$961,928"}},{"$f":"'Trial 5'!S9","v":{"v":912942.3623592738,"d":"$912,942"}},{"$f":"'Trial 5'!T9","v":{"v":1013706.1412023694,"d":"$1,013,706"}},{"$f":"'Trial 5'!U9","v":{"v":967536.0176366833,"d":"$967,536"}},{"$f":"'Trial 5'!V9","v":{"v":948979.2600223806,"d":"$948,979"}},{"$f":"'Trial 5'!W9","v":{"v":961333.4020066863,"d":"$961,333"}},{"$f":"'Trial 5'!X9","v":{"v":917539.9724895163,"d":"$917,540"}},{"$f":"'Trial 5'!Y9","v":{"v":1007770.4363511159,"d":"$1,007,770"}},{"$f":"'Trial 5'!Z9","v":{"v":937056.78479072,"d":"$937,057"}},{"$f":"'Trial 5'!AB9","v":{"v":967212.1680572735,"d":"$967,212"}},{"$f":"'Trial 5'!AC9","v":{"v":949707.736172165,"d":"$949,708"}},{"$f":"'Trial 5'!AD9","v":{"v":1001102.8242061533,"d":"$1,001,103"}},{"$f":"'Trial 5'!AE9","v":{"v":891333.5954792737,"d":"$891,334"}},{"$f":"'Trial 5'!AF9","v":{"v":900823.7727385288,"d":"$900,824"}},{"$f":"'Trial 5'!AG9","v":{"v":931709.0003718797,"d":"$931,709"}},{"$f":"'Trial 5'!AH9","v":{"v":961578.8904434014,"d":"$961,579"}},{"$f":"'Trial 5'!AI9","v":{"v":913078.4284984393,"d":"$913,078"}},{"$f":"'Trial 5'!AJ9","v":{"v":954370.5792174317,"d":"$954,371"}},{"$f":"'Trial 5'!AK9","v":{"v":910790.9103733476,"d":"$910,791"}},{"$f":"'Trial 5'!AL9","v":{"v":936636.6249399761,"d":"$936,637"}},{"$f":"'Trial 5'!AM9","v":{"v":913581.7670673335,"d":"$913,582"}},{"$f":"'Trial 5'!AO9","v":{"v":944958.3478503797,"d":"$944,958"}},{"$f":"'Trial 5'!AP9","v":{"v":947860.8678001799,"d":"$947,861"}},{"$f":"'Trial 5'!AQ9","v":{"v":931208.8286774773,"d":"$931,209"}},{"$f":"'Trial 5'!AR9","v":{"v":958776.6666613529,"d":"$958,777"}},{"$f":"'Trial 5'!AS9","v":{"v":964043.319901824,"d":"$964,043"}},{"$f":"'Trial 5'!AT9","v":{"v":925337.3209513045,"d":"$925,337"}},{"$f":"'Trial 5'!AU9","v":{"v":954473.3741220998,"d":"$954,473"}},{"$f":"'Trial 5'!AV9","v":{"v":944134.8099339925,"d":"$944,135"}},{"$f":"'Trial 5'!AW9","v":{"v":932528.0069679854,"d":"$932,528"}},{"$f":"'Trial 5'!AX9","v":{"v":932537.2121217838,"d":"$932,537"}},{"$f":"'Trial 5'!AY9","v":{"v":948464.7194809237,"d":"$948,465"}},{"$f":"'Trial 5'!AZ9","v":{"v":932238.1727281841,"d":"$932,238"}},{"$f":"'Trial 5'!BB9","v":{"v":917131.5560422477,"d":"$917,132"}},{"$f":"'Trial 5'!BC9","v":{"v":897056.9017516397,"d":"$897,057"}},{"$f":"'Trial 5'!BD9","v":{"v":880015.52100851,"d":"$880,016"}},{"$f":"'Trial 5'!BE9","v":{"v":952871.2310582673,"d":"$952,871"}},{"$f":"'Trial 5'!BF9","v":{"v":920936.5856282869,"d":"$920,937"}},{"$f":"'Trial 5'!BG9","v":{"v":944756.172153294,"d":"$944,756"}},{"$f":"'Trial 5'!BH9","v":{"v":892443.3732456976,"d":"$892,443"}},{"$f":"'Trial 5'!BI9","v":{"v":945306.411481105,"d":"$945,306"}},{"$f":"'Trial 5'!BJ9","v":{"v":974069.0425867998,"d":"$974,069"}},{"$f":"'Trial 5'!BK9","v":{"v":947965.69939006,"d":"$947,966"}},{"$f":"'Trial 5'!BL9","v":{"v":974185.3089127983,"d":"$974,185"}},{"$f":"'Trial 5'!BM9","v":{"v":943479.7272712535,"d":"$943,480"}},{"$f":"'Trial 5'!BO9","v":{"v":971536.3074708075,"d":"$971,536"}},{"$f":"'Trial 5'!BP9","v":{"v":988248.8811194685,"d":"$988,249"}},{"$f":"'Trial 5'!BQ9","v":{"v":985614.6911749173,"d":"$985,615"}},{"$f":"'Trial 5'!BR9","v":{"v":894988.9422326032,"d":"$894,989"}},{"$f":"'Trial 5'!BS9","v":{"v":931796.0829332583,"d":"$931,796"}},{"$f":"'Trial 5'!BT9","v":{"v":988634.8094090989,"d":"$988,635"}},{"$f":"'Trial 5'!BU9","v":{"v":896526.7481934418,"d":"$896,527"}},{"$f":"'Trial 5'!BV9","v":{"v":923823.332932882,"d":"$923,823"}},{"$f":"'Trial 5'!BW9","v":{"v":935433.4463843657,"d":"$935,433"}},{"$f":"'Trial 5'!BX9","v":{"v":974016.2989859054,"d":"$974,016"}},{"$f":"'Trial 5'!BY9","v":{"v":977342.447441476,"d":"$977,342"}},{"$f":"'Trial 5'!BZ9","v":{"v":964097.7319944862,"d":"$964,098"}},{"$f":"'Trial 5'!CB9","v":{"v":923324.4664561255,"d":"$923,324"}},{"$f":"'Trial 5'!CC9","v":{"v":930164.1287915629,"d":"$930,164"}},{"$f":"'Trial 5'!CD9","v":{"v":923399.867098097,"d":"$923,400"}},{"$f":"'Trial 5'!CE9","v":{"v":907376.8653258948,"d":"$907,377"}},{"$f":"'Trial 5'!CF9","v":{"v":933109.4192768191,"d":"$933,109"}},{"$f":"'Trial 5'!CG9","v":{"v":985260.1080956182,"d":"$985,260"}},{"$f":"'Trial 5'!CH9","v":{"v":903213.3007426122,"d":"$903,213"}},{"$f":"'Trial 5'!CI9","v":{"v":896400.2528406564,"d":"$896,400"}},{"$f":"'Trial 5'!CJ9","v":{"v":935896.0963240593,"d":"$935,896"}},{"$f":"'Trial 5'!CK9","v":{"v":979575.8384924821,"d":"$979,576"}},{"$f":"'Trial 5'!CL9","v":{"v":892480.0947918118,"d":"$892,480"}},{"$f":"'Trial 5'!CM9","v":{"v":940989.5409178147,"d":"$940,990"}},{"$f":"'Trial 5'!CO9","v":{"v":937313.084163966,"d":"$937,313"}},{"$f":"'Trial 5'!CP9","v":{"v":890565.2406215009,"d":"$890,565"}},{"$f":"'Trial 5'!CQ9","v":{"v":969406.1818002518,"d":"$969,406"}},{"$f":"'Trial 5'!CR9","v":{"v":896239.0000566765,"d":"$896,239"}},{"$f":"'Trial 5'!CS9","v":{"v":905494.9741825534,"d":"$905,495"}},{"$f":"'Trial 5'!CT9","v":{"v":937944.7445645655,"d":"$937,945"}},{"$f":"'Trial 5'!CU9","v":{"v":928004.105100289,"d":"$928,004"}},{"$f":"'Trial 5'!CV9","v":{"v":910755.6870703362,"d":"$910,756"}},{"$f":"'Trial 5'!CW9","v":{"v":950386.0135316213,"d":"$950,386"}},{"$f":"'Trial 5'!CX9","v":{"v":904094.7116927443,"d":"$904,095"}},{"$f":"'Trial 5'!CY9","v":{"v":916095.6197996765,"d":"$916,096"}},{"$f":"'Trial 5'!CZ9","v":{"v":867643.9158454409,"d":"$867,644"}},{"$f":"'Trial 5'!DB9","v":{"v":936758.9774609013,"d":"$936,759"}},{"$f":"'Trial 5'!DC9","v":{"v":919020.3042439407,"d":"$919,020"}},{"$f":"'Trial 5'!DD9","v":{"v":926983.4912820138,"d":"$926,983"}},{"$f":"'Trial 5'!DE9","v":{"v":894490.2454754357,"d":"$894,490"}},{"$f":"'Trial 5'!DF9","v":{"v":886685.8409862266,"d":"$886,686"}},{"$f":"'Trial 5'!DG9","v":{"v":945333.4543062474,"d":"$945,333"}},{"$f":"'Trial 5'!DH9","v":{"v":969292.1919536958,"d":"$969,292"}},{"$f":"'Trial 5'!DI9","v":{"v":916377.3313958433,"d":"$916,377"}},{"$f":"'Trial 5'!DJ9","v":{"v":884670.5805497586,"d":"$884,671"}},{"$f":"'Trial 5'!DK9","v":{"v":907178.7557308762,"d":"$907,179"}},{"$f":"'Trial 5'!DL9","v":{"v":878974.9855721167,"d":"$878,975"}},{"$f":"'Trial 5'!DM9","v":{"v":913565.4969119215,"d":"$913,565"}},{"$f":"'Trial 5'!DO9","v":{"v":895006.0835939602,"d":"$895,006"}},{"$f":"'Trial 5'!DP9","v":{"v":909865.645605966,"d":"$909,866"}},{"$f":"'Trial 5'!DQ9","v":{"v":960068.1298029142,"d":"$960,068"}},{"$f":"'Trial 5'!DR9","v":{"v":934181.0994787051,"d":"$934,181"}},{"$f":"'Trial 5'!DS9","v":{"v":927484.208094801,"d":"$927,484"}},{"$f":"'Trial 5'!DT9","v":{"v":944232.6308175926,"d":"$944,233"}},{"$f":"'Trial 5'!DU9","v":{"v":884442.7154696607,"d":"$884,443"}},{"$f":"'Trial 5'!DV9","v":{"v":913374.3970782605,"d":"$913,374"}},{"$f":"'Trial 5'!DW9","v":{"v":935457.1784628839,"d":"$935,457"}},{"$f":"'Trial 5'!DX9","v":{"v":891390.5505763418,"d":"$891,391"}},{"$f":"'Trial 5'!DY9","v":{"v":907314.8368183265,"d":"$907,315"}},{"$f":"'Trial 5'!DZ9","v":{"v":877907.6346212669,"d":"$877,908"}},{"$f":"'Trial 5'!EB9","v":{"v":904786.819212729,"d":"$904,787"}},{"$f":"'Trial 5'!EC9","v":{"v":944025.6736468422,"d":"$944,026"}},{"$f":"'Trial 5'!ED9","v":{"v":880769.4140507188,"d":"$880,769"}},{"$f":"'Trial 5'!EE9","v":{"v":911321.3238770993,"d":"$911,321"}},{"$f":"'Trial 5'!EF9","v":{"v":909003.0098695857,"d":"$909,003"}},{"$f":"'Trial 5'!EG9","v":{"v":938485.5171291063,"d":"$938,486"}},{"$f":"'Trial 5'!EH9","v":{"v":858753.7446303876,"d":"$858,754"}},{"$f":"'Trial 5'!EI9","v":{"v":870843.7929237171,"d":"$870,844"}},{"$f":"'Trial 5'!EJ9","v":{"v":884730.8800691313,"d":"$884,731"}},{"$f":"'Trial 5'!EK9","v":{"v":905306.133282507,"d":"$905,306"}},{"$f":"'Trial 5'!EL9","v":{"v":906237.8556713986,"d":"$906,238"}},{"$f":"'Trial 5'!EM9","v":{"v":899304.8592834366,"d":"$899,305"}}]
[{"$f":"'Trial 6'!B9","v":{"v":970485.9425421606,"d":"$970,486"}},{"$f":"'Trial 6'!C9","v":{"v":902710.6885535124,"d":"$902,711"}},{"$f":"'Trial 6'!D9","v":{"v":993753.6846008393,"d":"$993,754"}},{"$f":"'Trial 6'!E9","v":{"v":1010168.4255580372,"d":"$1,010,168"}},{"$f":"'Trial 6'!F9","v":{"v":977792.0330557169,"d":"$977,792"}},{"$f":"'Trial 6'!G9","v":{"v":935994.1363860844,"d":"$935,994"}},{"$f":"'Trial 6'!H9","v":{"v":954717.0576405397,"d":"$954,717"}},{"$f":"'Trial 6'!I9","v":{"v":953019.6167359789,"d":"$953,020"}},{"$f":"'Trial 6'!J9","v":{"v":991511.6779656134,"d":"$991,512"}},{"$f":"'Trial 6'!K9","v":{"v":957139.0150926289,"d":"$957,139"}},{"$f":"'Trial 6'!L9","v":{"v":1008978.2384904093,"d":"$1,008,978"}},{"$f":"'Trial 6'!M9","v":{"v":955033.2379104153,"d":"$955,033"}},{"$f":"'Trial 6'!O9","v":{"v":998792.9264161845,"d":"$998,793"}},{"$f":"'Trial 6'!P9","v":{"v":946489.6710636457,"d":"$946,490"}},{"$f":"'Trial 6'!Q9","v":{"v":998452.8236753045,"d":"$998,453"}},{"$f":"'Trial 6'!R9","v":{"v":984068.1062772577,"d":"$984,068"}},{"$f":"'Trial 6'!S9","v":{"v":899230.3628316254,"d":"$899,230"}},{"$f":"'Trial 6'!T9","v":{"v":944344.8462188364,"d":"$944,345"}},{"$f":"'Trial 6'!U9","v":{"v":973904.9648328192,"d":"$973,905"}},{"$f":"'Trial 6'!V9","v":{"v":929420.3849427953,"d":"$929,420"}},{"$f":"'Trial 6'!W9","v":{"v":936268.881653643,"d":"$936,269"}},{"$f":"'Trial 6'!X9","v":{"v":963879.6494644101,"d":"$963,880"}},{"$f":"'Trial 6'!Y9","v":{"v":982173.4013657303,"d":"$982,173"}},{"$f":"'Trial 6'!Z9","v":{"v":919021.1414721637,"d":"$919,021"}},{"$f":"'Trial 6'!AB9","v":{"v":958653.7099112478,"d":"$958,654"}},{"$f":"'Trial 6'!AC9","v":{"v":969113.4442337197,"d":"$969,113"}},{"$f":"'Trial 6'!AD9","v":{"v":987041.5291811716,"d":"$987,042"}},{"$f":"'Trial 6'!AE9","v":{"v":961500.7437614652,"d":"$961,501"}},{"$f":"'Trial 6'!AF9","v":{"v":986264.2413135347,"d":"$986,264"}},{"$f":"'Trial 6'!AG9","v":{"v":958875.72430168,"d":"$958,876"}},{"$f":"'Trial 6'!AH9","v":{"v":976116.7758425665,"d":"$976,117"}},{"$f":"'Trial 6'!AI9","v":{"v":942163.6056965688,"d":"$942,164"}},{"$f":"'Trial 6'!AJ9","v":{"v":926025.1745346185,"d":"$926,025"}},{"$f":"'Trial 6'!AK9","v":{"v":951875.4387020738,"d":"$951,875"}},{"$f":"'Trial 6'!AL9","v":{"v":978083.3960151986,"d":"$978,083"}},{"$f":"'Trial 6'!AM9","v":{"v":995632.7732718065,"d":"$995,633"}},{"$f":"'Trial 6'!AO9","v":{"v":957311.3283582043,"d":"$957,311"}},{"$f":"'Trial 6'!AP9","v":{"v":937612.9012631301,"d":"$937,613"}},{"$f":"'Trial 6'!AQ9","v":{"v":926254.4644005488,"d":"$926,254"}},{"$f":"'Trial 6'!AR9","v":{"v":950501.3073407795,"d":"$950,501"}},{"$f":"'Trial 6'!AS9","v":{"v":934337.487800145,"d":"$934,337"}},{"$f":"'Trial 6'!AT9","v":{"v":921368.482867822,"d":"$921,368"}},{"$f":"'Trial 6'!AU9","v":{"v":888057.683610995,"d":"$888,058"}},{"$f":"'Trial 6'!AV9","v":{"v":951304.6838467094,"d":"$951,305"}},{"$f":"'Trial 6'!AW9","v":{"v":924301.0399220696,"d":"$924,301"}},{"$f":"'Trial 6'!AX9","v":{"v":900293.5375794495,"d":"$900,294"}},{"$f":"'Trial 6'!AY9","v":{"v":956083.185110619,"d":"$956,083"}},{"$f":"'Trial 6'!AZ9","v":{"v":984168.1109552782,"d":"$984,168"}},{"$f":"'Trial 6'!BB9","v":{"v":885002.5263810436,"d":"$885,003"}},{"$f":"'Trial 6'!BC9","v":{"v":908281.7840898684,"d":"$908,282"}},{"$f":"'Trial 6'!BD9","v":{"v":918745.9817571454,"d":"$918,746"}},{"$f":"'Trial 6'!BE9","v":{"v":911304.1551564054,"d":"$911,304"}},{"$f":"'Trial 6'!BF9","v":{"v":935049.1256384067,"d":"$935,049"}},{"$f":"'Trial 6'!BG9","v":{"v":949232.0843146327,"d":"$949,232"}},{"$f":"'Trial 6'!BH9","v":{"v":965767.7258554581,"d":"$965,768"}},{"$f":"'Trial 6'!BI9","v":{"v":914298.3820568916,"d":"$914,298"}},{"$f":"'Trial 6'!BJ9","v":{"v":984304.42741934,"d":"$984,304"}},{"$f":"'Trial 6'!BK9","v":{"v":946828.7822603928,"d":"$946,829"}},{"$f":"'Trial 6'!BL9","v":{"v":885871.8178992755,"d":"$885,872"}},{"$f":"'Trial 6'!BM9","v":{"v":946469.2919891153,"d":"$946,469"}},{"$f":"'Trial 6'!BO9","v":{"v":877687.9287608415,"d":"$877,688"}},{"$f":"'Trial 6'!BP9","v":{"v":921458.6244328492,"d":"$921,459"}},{"$f":"'Trial 6'!BQ9","v":{"v":915297.0607373328,"d":"$915,297"}},{"$f":"'Trial 6'!BR9","v":{"v":902405.0016748783,"d":"$902,405"}},{"$f":"'Trial 6'!BS9","v":{"v":873911.1115291222,"d":"$873,911"}},{"$f":"'Trial 6'!BT9","v":{"v":964238.1479616497,"d":"$964,238"}},{"$f":"'Trial 6'!BU9","v":{"v":932331.5737001562,"d":"$932,332"}},{"$f":"'Trial 6'!BV9","v":{"v":946345.1575433341,"d":"$946,345"}},{"$f":"'Trial 6'!BW9","v":{"v":956418.9538605384,"d":"$956,419"}},{"$f":"'Trial 6'!BX9","v":{"v":901488.2647061816,"d":"$901,488"}},{"$f":"'Trial 6'!BY9","v":{"v":978811.4277364552,"d":"$978,811"}},{"$f":"'Trial 6'!BZ9","v":{"v":957105.8034803661,"d":"$957,106"}},{"$f":"'Trial 6'!CB9","v":{"v":931230.0281401306,"d":"$931,230"}},{"$f":"'Trial 6'!CC9","v":{"v":922636.6630302087,"d":"$922,637"}},{"$f":"'Trial 6'!CD9","v":{"v":978070.5767047732,"d":"$978,071"}},{"$f":"'Trial 6'!CE9","v":{"v":917147.3397076443,"d":"$917,147"}},{"$f":"'Trial 6'!CF9","v":{"v":912365.5064692901,"d":"$912,366"}},{"$f":"'Trial 6'!CG9","v":{"v":953205.2620800581,"d":"$953,205"}},{"$f":"'Trial 6'!CH9","v":{"v":951061.8486239695,"d":"$951,062"}},{"$f":"'Trial 6'!CI9","v":{"v":964296.3791358843,"d":"$964,296"}},{"$f":"'Trial 6'!CJ9","v":{"v":927978.5108516626,"d":"$927,979"}},{"$f":"'Trial 6'!CK9","v":{"v":940377.5439050978,"d":"$940,378"}},{"$f":"'Trial 6'!CL9","v":{"v":961945.8505291634,"d":"$961,946"}},{"$f":"'Trial 6'!CM9","v":{"v":952728.1631662728,"d":"$952,728"}},{"$f":"'Trial 6'!CO9","v":{"v":932527.4177022611,"d":"$932,527"}},{"$f":"'Trial 6'!CP9","v":{"v":960607.6963640375,"d":"$960,608"}},{"$f":"'Trial 6'!CQ9","v":{"v":925472.3383541022,"d":"$925,472"}},{"$f":"'Trial 6'!CR9","v":{"v":925989.2418942206,"d":"$925,989"}},{"$f":"'Trial 6'!CS9","v":{"v":896383.3396942505,"d":"$896,383"}},{"$f":"'Trial 6'!CT9","v":{"v":900072.4799092698,"d":"$900,072"}},{"$f":"'Trial 6'!CU9","v":{"v":972872.4473620524,"d":"$972,872"}},{"$f":"'Trial 6'!CV9","v":{"v":888212.9488256725,"d":"$888,213"}},{"$f":"'Trial 6'!CW9","v":{"v":969022.2196569552,"d":"$969,022"}},{"$f":"'Trial 6'!CX9","v":{"v":930618.0817245467,"d":"$930,618"}},{"$f":"'Trial 6'!CY9","v":{"v":893499.5447809834,"d":"$893,500"}},{"$f":"'Trial 6'!CZ9","v":{"v":936312.8902461516,"d":"$936,313"}},{"$f":"'Trial 6'!DB9","v":{"v":939537.0953788854,"d":"$939,537"}},{"$f":"'Trial 6'!DC9","v":{"v":868226.0554105022,"d":"$868,226"}},{"$f":"'Trial 6'!DD9","v":{"v":900459.0328157612,"d":"$900,459"}},{"$f":"'Trial 6'!DE9","v":{"v":917751.6238307108,"d":"$917,752"}},{"$f":"'Trial 6'!DF9","v":{"v":872876.1417107031,"d":"$872,876"}},{"$f":"'Trial 6'!DG9","v":{"v":908437.3524772688,"d":"$908,437"}},{"$f":"'Trial 6'!DH9","v":{"v":878364.7256735303,"d":"$878,365"}},{"$f":"'Trial 6'!DI9","v":{"v":875195.0185962507,"d":"$875,195"}},{"$f":"'Trial 6'!DJ9","v":{"v":863881.3488020931,"d":"$863,881"}},{"$f":"'Trial 6'!DK9","v":{"v":919779.914336522,"d":"$919,780"}},{"$f":"'Trial 6'!DL9","v":{"v":887243.112179648,"d":"$887,243"}},{"$f":"'Trial 6'!DM9","v":{"v":901929.4963593206,"d":"$901,929"}},{"$f":"'Trial 6'!DO9","v":{"v":948166.8196875368,"d":"$948,167"}},{"$f":"'Trial 6'!DP9","v":{"v":889765.2702949918,"d":"$889,765"}},{"$f":"'Trial 6'!DQ9","v":{"v":892463.5871364118,"d":"$892,464"}},{"$f":"'Trial 6'!DR9","v":{"v":911541.8128589289,"d":"$911,542"}},{"$f":"'Trial 6'!DS9","v":{"v":905722.5692710272,"d":"$905,723"}},{"$f":"'Trial 6'!DT9","v":{"v":930333.3160940348,"d":"$930,333"}},{"$f":"'Trial 6'!DU9","v":{"v":944344.7665408474,"d":"$944,345"}},{"$f":"'Trial 6'!DV9","v":{"v":949600.2224007092,"d":"$949,600"}},{"$f":"'Trial 6'!DW9","v":{"v":916515.2503617348,"d":"$916,515"}},{"$f":"'Trial 6'!DX9","v":{"v":934704.330358938,"d":"$934,704"}},{"$f":"'Trial 6'!DY9","v":{"v":902323.5693278019,"d":"$902,324"}},{"$f":"'Trial 6'!DZ9","v":{"v":905829.7415235834,"d":"$905,830"}},{"$f":"'Trial 6'!EB9","v":{"v":942309.4931287376,"d":"$942,309"}},{"$f":"'Trial 6'!EC9","v":{"v":909168.8878407129,"d":"$909,169"}},{"$f":"'Trial 6'!ED9","v":{"v":922840.055288791,"d":"$922,840"}},{"$f":"'Trial 6'!EE9","v":{"v":931678.7061925979,"d":"$931,679"}},{"$f":"'Trial 6'!EF9","v":{"v":905639.8846881945,"d":"$905,640"}},{"$f":"'Trial 6'!EG9","v":{"v":919369.4085751083,"d":"$919,369"}},{"$f":"'Trial 6'!EH9","v":{"v":904555.4821409739,"d":"$904,555"}},{"$f":"'Trial 6'!EI9","v":{"v":917728.507836129,"d":"$917,729"}},{"$f":"'Trial 6'!EJ9","v":{"v":944450.582841971,"d":"$944,451"}},{"$f":"'Trial 6'!EK9","v":{"v":957168.0221631543,"d":"$957,168"}},{"$f":"'Trial 6'!EL9","v":{"v":867435.1260124728,"d":"$867,435"}},{"$f":"'Trial 6'!EM9","v":{"v":885373.5853859566,"d":"$885,374"}}]
[{"$f":"'Trial 7'!B9","v":{"v":934675.8648213199,"d":"$934,676"}},{"$f":"'Trial 7'!C9","v":{"v":987175.0402893362,"d":"$987,175"}},{"$f":"'Trial 7'!D9","v":{"v":978529.7956814218,"d":"$978,530"}},{"$f":"'Trial 7'!E9","v":{"v":954377.4470379899,"d":"$954,377"}},{"$f":"'Trial 7'!F9","v":{"v":993561.7000547308,"d":"$993,562"}},{"$f":"'Trial 7'!G9","v":{"v":994872.4729530611,"d":"$994,872"}},{"$f":"'Trial 7'!H9","v":{"v":992235.8709737282,"d":"$992,236"}},{"$f":"'Trial 7'!I9","v":{"v":1000262.7275780932,"d":"$1,000,263"}},{"$f":"'Trial 7'!J9","v":{"v":951435.6346946689,"d":"$951,436"}},{"$f":"'Trial 7'!K9","v":{"v":935902.5392245529,"d":"$935,903"}},{"$f":"'Trial 7'!L9","v":{"v":955218.0590577031,"d":"$955,218"}},{"$f":"'Trial 7'!M9","v":{"v":948465.3648001158,"d":"$948,465"}},{"$f":"'Trial 7'!O9","v":{"v":962919.8662356727,"d":"$962,920"}},{"$f":"'Trial 7'!P9","v":{"v":993956.1890214666,"d":"$993,956"}},{"$f":"'Trial 7'!Q9","v":{"v":990049.9440388747,"d":"$990,050"}},{"$f":"'Trial 7'!R9","v":{"v":980860.068524317,"d":"$980,860"}},{"$f":"'Trial 7'!S9","v":{"v":967154.7540451369,"d":"$967,155"}},{"$f":"'Trial 7'!T9","v":{"v":985513.0033231032,"d":"$985,513"}},{"$f":"'Trial 7'!U9","v":{"v":950018.2637602629,"d":"$950,018"}},{"$f":"'Trial 7'!V9","v":{"v":985884.1089676133,"d":"$985,884"}},{"$f":"'Trial 7'!W9","v":{"v":997344.8221739439,"d":"$997,345"}},{"$f":"'Trial 7'!X9","v":{"v":982510.883538926,"d":"$982,511"}},{"$f":"'Trial 7'!Y9","v":{"v":955477.3734819714,"d":"$955,477"}},{"$f":"'Trial 7'!Z9","v":{"v":904365.9630287031,"d":"$904,366"}},{"$f":"'Trial 7'!AB9","v":{"v":899376.1496525535,"d":"$899,376"}},{"$f":"'Trial 7'!AC9","v":{"v":951102.2984931329,"d":"$951,102"}},{"$f":"'Trial 7'!AD9","v":{"v":964771.9852316892,"d":"$964,772"}},{"$f":"'Trial 7'!AE9","v":{"v":982053.9144656891,"d":"$982,054"}},{"$f":"'Trial 7'!AF9","v":{"v":930580.8252056224,"d":"$930,581"}},{"$f":"'Trial 7'!AG9","v":{"v":970109.11172486,"d":"$970,109"}},{"$f":"'Trial 7'!AH9","v":{"v":966997.178045346,"d":"$966,997"}},{"$f":"'Trial 7'!AI9","v":{"v":913059.8097541294,"d":"$913,060"}},{"$f":"'Trial 7'!AJ9","v":{"v":939143.0847851746,"d":"$939,143"}},{"$f":"'Trial 7'!AK9","v":{"v":949794.8356204884,"d":"$949,795"}},{"$f":"'Trial 7'!AL9","v":{"v":952185.0241874148,"d":"$952,185"}},{"$f":"'Trial 7'!AM9","v":{"v":928585.3302846665,"d":"$928,585"}},{"$f":"'Trial 7'!AO9","v":{"v":913855.0118772375,"d":"$913,855"}},{"$f":"'Trial 7'!AP9","v":{"v":938552.6540706509,"d":"$938,553"}},{"$f":"'Trial 7'!AQ9","v":{"v":972058.8321511857,"d":"$972,059"}},{"$f":"'Trial 7'!AR9","v":{"v":969442.0781121411,"d":"$969,442"}},{"$f":"'Trial 7'!AS9","v":{"v":994213.6459894115,"d":"$994,214"}},{"$f":"'Trial 7'!AT9","v":{"v":921266.1360022364,"d":"$921,266"}},{"$f":"'Trial 7'!AU9","v":{"v":937886.2863404618,"d":"$937,886"}},{"$f":"'Trial 7'!AV9","v":{"v":936168.3293219738,"d":"$936,168"}},{"$f":"'Trial 7'!AW9","v":{"v":921558.4090950799,"d":"$921,558"}},{"$f":"'Trial 7'!AX9","v":{"v":908756.0153854304,"d":"$908,756"}},{"$f":"'Trial 7'!AY9","v":{"v":915819.0043405591,"d":"$915,819"}},{"$f":"'Trial 7'!AZ9","v":{"v":895823.5673161332,"d":"$895,824"}},{"$f":"'Trial 7'!BB9","v":{"v":925797.5986979775,"d":"$925,798"}},{"$f":"'Trial 7'!BC9","v":{"v":922736.7182905161,"d":"$922,737"}},{"$f":"'Trial 7'!BD9","v":{"v":952370.8846196062,"d":"$952,371"}},{"$f":"'Trial 7'!BE9","v":{"v":927533.2288040039,"d":"$927,533"}},{"$f":"'Trial 7'!BF9","v":{"v":950985.2872823022,"d":"$950,985"}},{"$f":"'Trial 7'!BG9","v":{"v":971223.9284541449,"d":"$971,224"}},{"$f":"'Trial 7'!BH9","v":{"v":905603.0275405628,"d":"$905,603"}},{"$f":"'Trial 7'!BI9","v":{"v":933548.9785735742,"d":"$933,549"}},{"$f":"'Trial 7'!BJ9","v":{"v":916976.0339337994,"d":"$916,976"}},{"$f":"'Trial 7'!BK9","v":{"v":893281.9937640622,"d":"$893,282"}},{"$f":"'Trial 7'!BL9","v":{"v":918183.1419684142,"d":"$918,183"}},{"$f":"'Trial 7'!BM9","v":{"v":951661.103990508,"d":"$951,661"}},{"$f":"'Trial 7'!BO9","v":{"v":915600.2441727057,"d":"$915,600"}},{"$f":"'Trial 7'!BP9","v":{"v":882410.1709155466,"d":"$882,410"}},{"$f":"'Trial 7'!BQ9","v":{"v":951571.6372641476,"d":"$951,572"}},{"$f":"'Trial 7'!BR9","v":{"v":950100.4279772599,"d":"$950,100"}},{"$f":"'Trial 7'!BS9","v":{"v":966646.821192672,"d":"$966,647"}},{"$f":"'Trial 7'!BT9","v":{"v":973477.1323417113,"d":"$973,477"}},{"$f":"'Trial 7'!BU9","v":{"v":960699.9243798752,"d":"$960,700"}},{"$f":"'Trial 7'!BV9","v":{"v":902416.1851157987,"d":"$902,416"}},{"$f":"'Trial 7'!BW9","v":{"v":972275.7476685685,"d":"$972,276"}},{"$f":"'Trial 7'!BX9","v":{"v":904775.4327694746,"d":"$904,775"}},{"$f":"'Trial 7'!BY9","v":{"v":886218.4501414943,"d":"$886,218"}},{"$f":"'Trial 7'!BZ9","v":{"v":867079.8161896593,"d":"$867,080"}},{"$f":"'Trial 7'!CB9","v":{"v":923131.7110475722,"d":"$923,132"}},{"$f":"'Trial 7'!CC9","v":{"v":950054.8907343049,"d":"$950,055"}},{"$f":"'Trial 7'!CD9","v":{"v":954508.1786462977,"d":"$954,508"}},{"$f":"'Trial 7'!CE9","v":{"v":867000.827340083,"d":"$867,001"}},{"$f":"'Trial 7'!CF9","v":{"v":908571.7549447749,"d":"$908,572"}},{"$f":"'Trial 7'!CG9","v":{"v":950778.6754038378,"d":"$950,779"}},{"$f":"'Trial 7'!CH9","v":{"v":863077.8467572536,"d":"$863,078"}},{"$f":"'Trial 7'!CI9","v":{"v":894421.4165008895,"d":"$894,421"}},{"$f":"'Trial 7'!CJ9","v":{"v":984978.6090254855,"d":"$984,979"}},{"$f":"'Trial 7'!CK9","v":{"v":977645.2732711998,"d":"$977,645"}},{"$f":"'Trial 7'!CL9","v":{"v":917077.1715218137,"d":"$917,077"}},{"$f":"'Trial 7'!CM9","v":{"v":954311.5303739271,"d":"$954,312"}},{"$f":"'Trial 7'!CO9","v":{"v":979991.9014835564,"d":"$979,992"}},{"$f":"'Trial 7'!CP9","v":{"v":917688.5703669485,"d":"$917,689"}},{"$f":"'Trial 7'!CQ9","v":{"v":939547.4000638706,"d":"$939,547"}},{"$f":"'Trial 7'!CR9","v":{"v":946086.3227817388,"d":"$946,086"}},{"$f":"'Trial 7'!CS9","v":{"v":924365.1866417334,"d":"$924,365"}},{"$f":"'Trial 7'!CT9","v":{"v":917339.4451466411,"d":"$917,339"}},{"$f":"'Trial 7'!CU9","v":{"v":951180.1105195335,"d":"$951,180"}},{"$f":"'Trial 7'!CV9","v":{"v":918563.676436139,"d":"$918,564"}},{"$f":"'Trial 7'!CW9","v":{"v":914703.173771754,"d":"$914,703"}},{"$f":"'Trial 7'!CX9","v":{"v":875951.2849830978,"d":"$875,951"}},{"$f":"'Trial 7'!CY9","v":{"v":881489.7766325936,"d":"$881,490"}},{"$f":"'Trial 7'!CZ9","v":{"v":933661.8006501569,"d":"$933,662"}},{"$f":"'Trial 7'!DB9","v":{"v":967169.3666226246,"d":"$967,169"}},{"$f":"'Trial 7'!DC9","v":{"v":952092.0162086908,"d":"$952,092"}},{"$f":"'Trial 7'!DD9","v":{"v":922404.5921233883,"d":"$922,405"}},{"$f":"'Trial 7'!DE9","v":{"v":931640.7088004736,"d":"$931,641"}},{"$f":"'Trial 7'!DF9","v":{"v":926288.5641279579,"d":"$926,289"}},{"$f":"'Trial 7'!DG9","v":{"v":875507.2564964251,"d":"$875,507"}},{"$f":"'Trial 7'!DH9","v":{"v":870890.2345291434,"d":"$870,890"}},{"$f":"'Trial 7'!DI9","v":{"v":918394.2945269243,"d":"$918,394"}},{"$f":"'Trial 7'!DJ9","v":{"v":912349.625517709,"d":"$912,350"}},{"$f":"'Trial 7'!DK9","v":{"v":869069.7536898683,"d":"$869,070"}},{"$f":"'Trial 7'!DL9","v":{"v":918449.7524122923,"d":"$918,450"}},{"$f":"'Trial 7'!DM9","v":{"v":920191.161191935,"d":"$920,191"}},{"$f":"'Trial 7'!DO9","v":{"v":887102.4673241714,"d":"$887,102"}},{"$f":"'Trial 7'!DP9","v":{"v":910140.1561836862,"d":"$910,140"}},{"$f":"'Trial 7'!DQ9","v":{"v":907885.5194571019,"d":"$907,886"}},{"$f":"'Trial 7'!DR9","v":{"v":875694.8392895801,"d":"$875,695"}},{"$f":"'Trial 7'!DS9","v":{"v":922181.2502974503,"d":"$922,181"}},{"$f":"'Trial 7'!DT9","v":{"v":877777.8977496626,"d":"$877,778"}},{"$f":"'Trial 7'!DU9","v":{"v":892815.0472733015,"d":"$892,815"}},{"$f":"'Trial 7'!DV9","v":{"v":933827.1121735538,"d":"$933,827"}},{"$f":"'Trial 7'!DW9","v":{"v":971128.9550035208,"d":"$971,129"}},{"$f":"'Trial 7'!DX9","v":{"v":863366.1436637486,"d":"$863,366"}},{"$f":"'Trial 7'!DY9","v":{"v":888519.425228215,"d":"$888,519"}},{"$f":"'Trial 7'!DZ9","v":{"v":873274.4925419708,"d":"$873,274"}},{"$f":"'Trial 7'!EB9","v":{"v":945010.6091337701,"d":"$945,011"}},{"$f":"'Trial 7'!EC9","v":{"v":875734.5673007456,"d":"$875,735"}},{"$f":"'Trial 7'!ED9","v":{"v":905402.6616750971,"d":"$905,403"}},{"$f":"'Trial 7'!EE9","v":{"v":918081.3300943563,"d":"$918,081"}},{"$f":"'Trial 7'!EF9","v":{"v":876218.1040911912,"d":"$876,218"}},{"$f":"'Trial 7'!EG9","v":{"v":847461.0028910601,"d":"$847,461"}},{"$f":"'Trial 7'!EH9","v":{"v":855011.6937834861,"d":"$855,012"}},{"$f":"'Trial 7'!EI9","v":{"v":921241.2583190892,"d":"$921,241"}},{"$f":"'Trial 7'!EJ9","v":{"v":926215.3152568331,"d":"$926,215"}},{"$f":"'Trial 7'!EK9","v":{"v":902170.8111866151,"d":"$902,171"}},{"$f":"'Trial 7'!EL9","v":{"v":937246.3145392517,"d":"$937,246"}},{"$f":"'Trial 7'!EM9","v":{"v":932087.8104107607,"d":"$932,088"}}]
[{"$f":"'Trial 8'!B9","v":{"v":915562.5586854157,"d":"$915,563"}},{"$f":"'Trial 8'!C9","v":{"v":950558.61765309,"d":"$950,559"}},{"$f":"'Trial 8'!D9","v":{"v":961886.9664471752,"d":"$961,887"}},{"$f":"'Trial 8'!E9","v":{"v":972313.2918274034,"d":"$972,313"}},{"$f":"'Trial 8'!F9","v":{"v":1019382.8359965795,"d":"$1,019,383"}},{"$f":"'Trial 8'!G9","v":{"v":977816.1903937353,"d":"$977,816"}},{"$f":"'Trial 8'!H9","v":{"v":957873.4348234457,"d":"$957,873"}},{"$f":"'Trial 8'!I9","v":{"v":981861.7869959136,"d":"$981,862"}},{"$f":"'Trial 8'!J9","v":{"v":924315.4384833248,"d":"$924,315"}},{"$f":"'Trial 8'!K9","v":{"v":981822.1092904679,"d":"$981,822"}},{"$f":"'Trial 8'!L9","v":{"v":919718.1050798085,"d":"$919,718"}},{"$f":"'Trial 8'!M9","v":{"v":963552.893704421,"d":"$963,553"}},{"$f":"'Trial 8'!O9","v":{"v":1005825.3776617213,"d":"$1,005,825"}},{"$f":"'Trial 8'!P9","v":{"v":929890.1820889483,"d":"$929,890"}},{"$f":"'Trial 8'!Q9","v":{"v":905320.9909255588,"d":"$905,321"}},{"$f":"'Trial 8'!R9","v":{"v":968395.0120116676,"d":"$968,395"}},{"$f":"'Trial 8'!S9","v":{"v":956719.2020816483,"d":"$956,719"}},{"$f":"'Trial 8'!T9","v":{"v":1003971.6235284774,"d":"$1,003,972"}},{"$f":"'Trial 8'!U9","v":{"v":949969.7481243459,"d":"$949,970"}},{"$f":"'Trial 8'!V9","v":{"v":957599.081808231,"d":"$957,599"}},{"$f":"'Trial 8'!W9","v":{"v":997639.5744509137,"d":"$997,640"}},{"$f":"'Trial 8'!X9","v":{"v":926003.170108538,"d":"$926,003"}},{"$f":"'Trial 8'!Y9","v":{"v":911729.4649511772,"d":"$911,729"}},{"$f":"'Trial 8'!Z9","v":{"v":929522.7795653522,"d":"$929,523"}},{"$f":"'Trial 8'!AB9","v":{"v":950988.9287534105,"d":"$950,989"}},{"$f":"'Trial 8'!AC9","v":{"v":953423.8242478557,"d":"$953,424"}},{"$f":"'Trial 8'!AD9","v":{"v":930258.6873137534,"d":"$930,259"}},{"$f":"'Trial 8'!AE9","v":{"v":942177.0609666557,"d":"$942,177"}},{"$f":"'Trial 8'!AF9","v":{"v":918403.6394832345,"d":"$918,404"}},{"$f":"'Trial 8'!AG9","v":{"v":926627.1972220666,"d":"$926,627"}},{"$f":"'Trial 8'!AH9","v":{"v":966508.1286656308,"d":"$966,508"}},{"$f":"'Trial 8'!AI9","v":{"v":961308.0373649377,"d":"$961,308"}},{"$f":"'Trial 8'!AJ9","v":{"v":929754.8920507827,"d":"$929,755"}},{"$f":"'Trial 8'!AK9","v":{"v":946931.8621635562,"d":"$946,932"}},{"$f":"'Trial 8'!AL9","v":{"v":984588.6182822193,"d":"$984,589"}},{"$f":"'Trial 8'!AM9","v":{"v":980755.0859797457,"d":"$980,755"}},{"$f":"'Trial 8'!AO9","v":{"v":976093.5109280807,"d":"$976,094"}},{"$f":"'Trial 8'!AP9","v":{"v":947843.9066465284,"d":"$947,844"}},{"$f":"'Trial 8'!AQ9","v":{"v":945814.8232342938,"d":"$945,815"}},{"$f":"'Trial 8'!AR9","v":{"v":909616.3241410118,"d":"$909,616"}},{"$f":"'Trial 8'!AS9","v":{"v":909816.4472207079,"d":"$909,816"}},{"$f":"'Trial 8'!AT9","v":{"v":931344.060385891,"d":"$931,344"}},{"$f":"'Trial 8'!AU9","v":{"v":958882.9007210647,"d":"$958,883"}},{"$f":"'Trial 8'!AV9","v":{"v":944208.5607075235,"d":"$944,209"}},{"$f":"'Trial 8'!AW9","v":{"v":947256.6748458266,"d":"$947,257"}},{"$f":"'Trial 8'!AX9","v":{"v":942633.0441600725,"d":"$942,633"}},{"$f":"'Trial 8'!AY9","v":{"v":954643.0668757652,"d":"$954,643"}},{"$f":"'Trial 8'!AZ9","v":{"v":948012.9990700491,"d":"$948,013"}},{"$f":"'Trial 8'!BB9","v":{"v":924558.7769648223,"d":"$924,559"}},{"$f":"'Trial 8'!BC9","v":{"v":969319.6360925959,"d":"$969,320"}},{"$f":"'Trial 8'!BD9","v":{"v":978648.9147707595,"d":"$978,649"}},{"$f":"'Trial 8'!BE9","v":{"v":951235.8660369938,"d":"$951,236"}},{"$f":"'Trial 8'!BF9","v":{"v":948911.8112317111,"d":"$948,912"}},{"$f":"'Trial 8'!BG9","v":{"v":971762.6666531123,"d":"$971,763"}},{"$f":"'Trial 8'!BH9","v":{"v":913102.844870721,"d":"$913,103"}},{"$f":"'Trial 8'!BI9","v":{"v":935773.0702232876,"d":"$935,773"}},{"$f":"'Trial 8'!BJ9","v":{"v":955095.9954138589,"d":"$955,096"}},{"$f":"'Trial 8'!BK9","v":{"v":952167.027845685,"d":"$952,167"}},{"$f":"'Trial 8'!BL9","v":{"v":953343.0143376256,"d":"$953,343"}},{"$f":"'Trial 8'!BM9","v":{"v":927760.8239392207,"d":"$927,761"}},{"$f":"'Trial 8'!BO9","v":{"v":956498.7352147438,"d":"$956,499"}},{"$f":"'Trial 8'!BP9","v":{"v":974874.8312848267,"d":"$974,875"}},{"$f":"'Trial 8'!BQ9","v":{"v":961836.282665502,"d":"$961,836"}},{"$f":"'Trial 8'!BR9","v":{"v":988541.6284762042,"d":"$988,542"}},{"$f":"'Trial 8'!BS9","v":{"v":951039.360378769,"d":"$951,039"}},{"$f":"'Trial 8'!BT9","v":{"v":934153.5267818966,"d":"$934,154"}},{"$f":"'Trial 8'!BU9","v":{"v":946983.2550736079,"d":"$946,983"}},{"$f":"'Trial 8'!BV9","v":{"v":974177.9538134125,"d":"$974,178"}},{"$f":"'Trial 8'!BW9","v":{"v":959031.1326145125,"d":"$959,031"}},{"$f":"'Trial 8'!BX9","v":{"v":957788.4813090012,"d":"$957,788"}},{"$f":"'Trial 8'!BY9","v":{"v":921610.4691276446,"d":"$921,610"}},{"$f":"'Trial 8'!BZ9","v":{"v":888135.6915706479,"d":"$888,136"}},{"$f":"'Trial 8'!CB9","v":{"v":915802.4052433291,"d":"$915,802"}},{"$f":"'Trial 8'!CC9","v":{"v":930916.8984104865,"d":"$930,917"}},{"$f":"'Trial 8'!CD9","v":{"v":895221.3101603,"d":"$895,221"}},{"$f":"'Trial 8'!CE9","v":{"v":936421.2440242054,"d":"$936,421"}},{"$f":"'Trial 8'!CF9","v":{"v":923360.5992579267,"d":"$923,361"}},{"$f":"'Trial 8'!CG9","v":{"v":984729.194549623,"d":"$984,729"}},{"$f":"'Trial 8'!CH9","v":{"v":930019.2149258364,"d":"$930,019"}},{"$f":"'Trial 8'!CI9","v":{"v":905445.0592904945,"d":"$905,445"}},{"$f":"'Trial 8'!CJ9","v":{"v":944884.6070570071,"d":"$944,885"}},{"$f":"'Trial 8'!CK9","v":{"v":954603.6827608639,"d":"$954,604"}},{"$f":"'Trial 8'!CL9","v":{"v":893345.2523060349,"d":"$893,345"}},{"$f":"'Trial 8'!CM9","v":{"v":965891.5948329954,"d":"$965,892"}},{"$f":"'Trial 8'!CO9","v":{"v":967136.2250524762,"d":"$967,136"}},{"$f":"'Trial 8'!CP9","v":{"v":932735.574508615,"d":"$932,736"}},{"$f":"'Trial 8'!CQ9","v":{"v":945187.120767031,"d":"$945,187"}},{"$f":"'Trial 8'!CR9","v":{"v":941889.4114090194,"d":"$941,889"}},{"$f":"'Trial 8'!CS9","v":{"v":860535.8542379215,"d":"$860,536"}},{"$f":"'Trial 8'!CT9","v":{"v":918695.9880263024,"d":"$918,696"}},{"$f":"'Trial 8'!CU9","v":{"v":956639.5017825231,"d":"$956,640"}},{"$f":"'Trial 8'!CV9","v":{"v":921970.641772358,"d":"$921,971"}},{"$f":"'Trial 8'!CW9","v":{"v":864161.5425578287,"d":"$864,162"}},{"$f":"'Trial 8'!CX9","v":{"v":958759.660138336,"d":"$958,760"}},{"$f":"'Trial 8'!CY9","v":{"v":980310.1798478328,"d":"$980,310"}},{"$f":"'Trial 8'!CZ9","v":{"v":895321.8132715137,"d":"$895,322"}},{"$f":"'Trial 8'!DB9","v":{"v":978906.647203179,"d":"$978,907"}},{"$f":"'Trial 8'!DC9","v":{"v":899353.2168163684,"d":"$899,353"}},{"$f":"'Trial 8'!DD9","v":{"v":884641.1342766733,"d":"$884,641"}},{"$f":"'Trial 8'!DE9","v":{"v":908055.2362539815,"d":"$908,055"}},{"$f":"'Trial 8'!DF9","v":{"v":920781.1576150046,"d":"$920,781"}},{"$f":"'Trial 8'!DG9","v":{"v":898256.0568663205,"d":"$898,256"}},{"$f":"'Trial 8'!DH9","v":{"v":912300.3386321815,"d":"$912,300"}},{"$f":"'Trial 8'!DI9","v":{"v":879754.9157679608,"d":"$879,755"}},{"$f":"'Trial 8'!DJ9","v":{"v":970576.3048835535,"d":"$970,576"}},{"$f":"'Trial 8'!DK9","v":{"v":901525.8770883839,"d":"$901,526"}},{"$f":"'Trial 8'!DL9","v":{"v":963401.0960295126,"d":"$963,401"}},{"$f":"'Trial 8'!DM9","v":{"v":906599.3152838154,"d":"$906,599"}},{"$f":"'Trial 8'!DO9","v":{"v":868205.2507772925,"d":"$868,205"}},{"$f":"'Trial 8'!DP9","v":{"v":879164.6742292563,"d":"$879,165"}},{"$f":"'Trial 8'!DQ9","v":{"v":965344.0572935656,"d":"$965,344"}},{"$f":"'Trial 8'!DR9","v":{"v":955376.4206844631,"d":"$955,376"}},{"$f":"'Trial 8'!DS9","v":{"v":899272.6971101975,"d":"$899,273"}},{"$f":"'Trial 8'!DT9","v":{"v":954625.7017919256,"d":"$954,626"}},{"$f":"'Trial 8'!DU9","v":{"v":949196.4180503488,"d":"$949,196"}},{"$f":"'Trial 8'!DV9","v":{"v":917210.5091951867,"d":"$917,211"}},{"$f":"'Trial 8'!DW9","v":{"v":930568.8501836449,"d":"$930,569"}},{"$f":"'Trial 8'!DX9","v":{"v":868080.477801892,"d":"$868,080"}},{"$f":"'Trial 8'!DY9","v":{"v":923159.6736914449,"d":"$923,160"}},{"$f":"'Trial 8'!DZ9","v":{"v":910624.7418848239,"d":"$910,625"}},{"$f":"'Trial 8'!EB9","v":{"v":862134.7153947892,"d":"$862,135"}},{"$f":"'Trial 8'!EC9","v":{"v":864992.9970271043,"d":"$864,993"}},{"$f":"'Trial 8'!ED9","v":{"v":926982.4189902658,"d":"$926,982"}},{"$f":"'Trial 8'!EE9","v":{"v":890327.5261541941,"d":"$890,328"}},{"$f":"'Trial 8'!EF9","v":{"v":884097.1657297518,"d":"$884,097"}},{"$f":"'Trial 8'!EG9","v":{"v":910308.6023136881,"d":"$910,309"}},{"$f":"'Trial 8'!EH9","v":{"v":946522.4274399632,"d":"$946,522"}},{"$f":"'Trial 8'!EI9","v":{"v":879879.9058139385,"d":"$879,880"}},{"$f":"'Trial 8'!EJ9","v":{"v":910030.2990328632,"d":"$910,030"}},{"$f":"'Trial 8'!EK9","v":{"v":858162.0948542017,"d":"$858,162"}},{"$f":"'Trial 8'!EL9","v":{"v":879656.3001928964,"d":"$879,656"}},{"$f":"'Trial 8'!EM9","v":{"v":950793.5258064192,"d":"$950,794"}}]
[{"$f":"'(Other Computations)'!B25","v":{"v":7493473.436728046,"d":"$7,493,473"}},{"$f":"'(Other Computations)'!C25","v":{"v":7608524.6153414175,"d":"$7,608,525"}},{"$f":"'(Other Computations)'!D25","v":{"v":7759006.659080589,"d":"$7,759,007"}},{"$f":"'(Other Computations)'!E25","v":{"v":7818481.810620075,"d":"$7,818,482"}},{"$f":"'(Other Computations)'!F25","v":{"v":7896589.696888706,"d":"$7,896,590"}},{"$f":"'(Other Computations)'!G25","v":{"v":7785588.197799954,"d":"$7,785,588"}},{"$f":"'(Other Computations)'!H25","v":{"v":7636240.183532955,"d":"$7,636,240"}},{"$f":"'(Other Computations)'!I25","v":{"v":7701816.202796131,"d":"$7,701,816"}},{"$f":"'(Other Computations)'!J25","v":{"v":7710122.407135318,"d":"$7,710,122"}},{"$f":"'(Other Computations)'!K25","v":{"v":7707483.331922998,"d":"$7,707,483"}},{"$f":"'(Other Computations)'!L25","v":{"v":7687344.393640866,"d":"$7,687,344"}},{"$f":"'(Other Computations)'!M25","v":{"v":7635438.044520955,"d":"$7,635,438"}},{"$f":"'(Other Computations)'!O25","v":{"v":7724110.709440615,"d":"$7,724,111"}},{"$f":"'(Other Computations)'!P25","v":{"v":7694124.1810113955,"d":"$7,694,124"}},{"$f":"'(Other Computations)'!Q25","v":{"v":7726473.696733901,"d":"$7,726,474"}},{"$f":"'(Other Computations)'!R25","v":{"v":7759746.561895079,"d":"$7,759,747"}},{"$f":"'(Other Computations)'!S25","v":{"v":7445952.513825714,"d":"$7,445,953"}},{"$f":"'(Other Computations)'!T25","v":{"v":7706272.741730538,"d":"$7,706,273"}},{"$f":"'(Other Computations)'!U25","v":{"v":7517380.14351721,"d":"$7,517,380"}},{"$f":"'(Other Computations)'!V25","v":{"v":7535856.55098676,"d":"$7,535,857"}},{"$f":"'(Other Computations)'!W25","v":{"v":7750440.94689629,"d":"$7,750,441"}},{"$f":"'(Other Computations)'!X25","v":{"v":7572498.658942619,"d":"$7,572,499"}},{"$f":"'(Other Computations)'!Y25","v":{"v":7584486.081413078,"d":"$7,584,486"}},{"$f":"'(Other Computations)'!Z25","v":{"v":7405352.309575791,"d":"$7,405,352"}},{"$f":"'(Other Computations)'!AB25","v":{"v":7604227.479929912,"d":"$7,604,227"}},{"$f":"'(Other Computations)'!AC25","v":{"v":7678876.199041967,"d":"$7,678,876"}},{"$f":"'(Other Computations)'!AD25","v":{"v":7618172.549734524,"d":"$7,618,173"}},{"$f":"'(Other Computations)'!AE25","v":{"v":7589069.216533079,"d":"$7,589,069"}},{"$f":"'(Other Computations)'!AF25","v":{"v":7455682.384238729,"d":"$7,455,682"}},{"$f":"'(Other Computations)'!AG25","v":{"v":7632684.556219015,"d":"$7,632,685"}},{"$f":"'(Other Computations)'!AH25","v":{"v":7703544.358219525,"d":"$7,703,544"}},{"$f":"'(Other Computations)'!AI25","v":{"v":7434924.289346226,"d":"$7,434,924"}},{"$f":"'(Other Computations)'!AJ25","v":{"v":7591396.748021839,"d":"$7,591,397"}},{"$f":"'(Other Computations)'!AK25","v":{"v":7624021.785673989,"d":"$7,624,022"}},{"$f":"'(Other Computations)'!AL25","v":{"v":7649657.184235466,"d":"$7,649,657"}},{"$f":"'(Other Computations)'!AM25","v":{"v":7477756.767441368,"d":"$7,477,757"}},{"$f":"'(Other Computations)'!AO25","v":{"v":7564522.220004847,"d":"$7,564,522"}},{"$f":"'(Other Computations)'!AP25","v":{"v":7662542.446392059,"d":"$7,662,542"}},{"$f":"'(Other Computations)'!AQ25","v":{"v":7472815.533315645,"d":"$7,472,816"}},{"$f":"'(Other Computations)'!AR25","v":{"v":7533397.098638219,"d":"$7,533,397"}},{"$f":"'(Other Computations)'!AS25","v":{"v":7636074.677218754,"d":"$7,636,075"}},{"$f":"'(Other Computations)'!AT25","v":{"v":7527808.809617698,"d":"$7,527,809"}},{"$f":"'(Other Computations)'!AU25","v":{"v":7494061.157499838,"d":"$7,494,061"}},{"$f":"'(Other Computations)'!AV25","v":{"v":7540284.983250972,"d":"$7,540,285"}},{"$f":"'(Other Computations)'!AW25","v":{"v":7420968.587844891,"d":"$7,420,969"}},{"$f":"'(Other Computations)'!AX25","v":{"v":7485368.637239702,"d":"$7,485,369"}},{"$f":"'(Other Computations)'!AY25","v":{"v":7531142.371072843,"d":"$7,531,142"}},{"$f":"'(Other Computations)'!AZ25","v":{"v":7380666.7246272955,"d":"$7,380,667"}},{"$f":"'(Other Computations)'!BB25","v":{"v":7395129.133312508,"d":"$7,395,129"}},{"$f":"'(Other Computations)'!BC25","v":{"v":7470218.134522834,"d":"$7,470,218"}},{"$f":"'(Other Computations)'!BD25","v":{"v":7500575.450956389,"d":"$7,500,575"}},{"$f":"'(Other Computations)'!BE25","v":{"v":7464938.279985874,"d":"$7,464,938"}},{"$f":"'(Other Computations)'!BF25","v":{"v":7529868.602318498,"d":"$7,529,869"}},{"$f":"'(Other Computations)'!BG25","v":{"v":7526210.83818925,"d":"$7,526,211"}},{"$f":"'(Other Computations)'!BH25","v":{"v":7362885.2571924,"d":"$7,362,885"}},{"$f":"'(Other Computations)'!BI25","v":{"v":7424784.361449546,"d":"$7,424,784"}},{"$f":"'(Other Computations)'!BJ25","v":{"v":7531785.883605393,"d":"$7,531,786"}},{"$f":"'(Other Computations)'!BK25","v":{"v":7439069.416995756,"d":"$7,439,069"}},{"$f":"'(Other Computations)'!BL25","v":{"v":7527219.90748783,"d":"$7,527,220"}},{"$f":"'(Other Computations)'!BM25","v":{"v":7446801.612209202,"d":"$7,446,802"}},{"$f":"'(Other Computations)'!BO25","v":{"v":7434568.061076626,"d":"$7,434,568"}},{"$f":"'(Other Computations)'!BP25","v":{"v":7481874.329371314,"d":"$7,481,874"}},{"$f":"'(Other Computations)'!BQ25","v":{"v":7562925.827928621,"d":"$7,562,926"}},{"$f":"'(Other Computations)'!BR25","v":{"v":7532312.326998766,"d":"$7,532,312"}},{"$f":"'(Other Computations)'!BS25","v":{"v":7393746.860024019,"d":"$7,393,747"}},{"$f":"'(Other Computations)'!BT25","v":{"v":7594590.163048796,"d":"$7,594,590"}},{"$f":"'(Other Computations)'!BU25","v":{"v":7374820.63265388,"d":"$7,374,821"}},{"$f":"'(Other Computations)'!BV25","v":{"v":7423153.833593524,"d":"$7,423,154"}},{"$f":"'(Other Computations)'!BW25","v":{"v":7553390.0836419575,"d":"$7,553,390"}},{"$f":"'(Other Computations)'!BX25","v":{"v":7356749.406894201,"d":"$7,356,749"}},{"$f":"'(Other Computations)'!BY25","v":{"v":7525794.088044366,"d":"$7,525,794"}},{"$f":"'(Other Computations)'!BZ25","v":{"v":7436451.151079065,"d":"$7,436,451"}},{"$f":"'(Other Computations)'!CB25","v":{"v":7407211.4087211825,"d":"$7,407,211"}},{"$f":"'(Other Computations)'!CC25","v":{"v":7386025.335776303,"d":"$7,386,025"}},{"$f":"'(Other Computations)'!CD25","v":{"v":7475528.26418679,"d":"$7,475,528"}},{"$f":"'(Other Computations)'!CE25","v":{"v":7330488.835266305,"d":"$7,330,489"}},{"$f":"'(Other Computations)'!CF25","v":{"v":7399765.8538141055,"d":"$7,399,766"}},{"$f":"'(Other Computations)'!CG25","v":{"v":7630600.6613770155,"d":"$7,630,601"}},{"$f":"'(Other Computations)'!CH25","v":{"v":7437198.4538759235,"d":"$7,437,198"}},{"$f":"'(Other Computations)'!CI25","v":{"v":7480004.363105239,"d":"$7,480,004"}},{"$f":"'(Other Computations)'!CJ25","v":{"v":7443485.566190266,"d":"$7,443,486"}},{"$f":"'(Other Computations)'!CK25","v":{"v":7549247.740563923,"d":"$7,549,248"}},{"$f":"'(Other Computations)'!CL25","v":{"v":7378269.607419342,"d":"$7,378,270"}},{"$f":"'(Other Computations)'!CM25","v":{"v":7523958.408313388,"d":"$7,523,958"}},{"$f":"'(Other Computations)'!CO25","v":{"v":7452341.6946935635,"d":"$7,452,342"}},{"$f":"'(Other Computations)'!CP25","v":{"v":7455037.234006138,"d":"$7,455,037"}},{"$f":"'(Other Computations)'!CQ25","v":{"v":7439614.730227766,"d":"$7,439,615"}},{"$f":"'(Other Computations)'!CR25","v":{"v":7390216.937839388,"d":"$7,390,217"}},{"$f":"'(Other Computations)'!CS25","v":{"v":7209051.426701285,"d":"$7,209,051"}},{"$f":"'(Other Computations)'!CT25","v":{"v":7288307.566300131,"d":"$7,288,308"}},{"$f":"'(Other Computations)'!CU25","v":{"v":7558726.742944855,"d":"$7,558,727"}},{"$f":"'(Other Computations)'!CV25","v":{"v":7336545.514293372,"d":"$7,336,546"}},{"$f":"'(Other Computations)'!CW25","v":{"v":7348964.104587362,"d":"$7,348,964"}},{"$f":"'(Other Computations)'!CX25","v":{"v":7311496.018104269,"d":"$7,311,496"}},{"$f":"'(Other Computations)'!CY25","v":{"v":7414875.525002421,"d":"$7,414,876"}},{"$f":"'(Other Computations)'!CZ25","v":{"v":7318165.574732758,"d":"$7,318,166"}},{"$f":"'(Other Computations)'!DB25","v":{"v":7426011.520411234,"d":"$7,426,012"}},{"$f":"'(Other Computations)'!DC25","v":{"v":7249924.266717795,"d":"$7,249,924"}},{"$f":"'(Other Computations)'!DD25","v":{"v":7303155.178602962,"d":"$7,303,155"}},{"$f":"'(Other Computations)'!DE25","v":{"v":7394997.60296092,"d":"$7,394,998"}},{"$f":"'(Other Computations)'!DF25","v":{"v":7333159.269575404,"d":"$7,333,159"}},{"$f":"'(Other Computations)'!DG25","v":{"v":7303965.957988577,"d":"$7,303,966"}},{"$f":"'(Other Computations)'!DH25","v":{"v":7283070.104980016,"d":"$7,283,070"}},{"$f":"'(Other Computations)'!DI25","v":{"v":7253568.163147631,"d":"$7,253,568"}},{"$f":"'(Other Computations)'!DJ25","v":{"v":7319562.140879522,"d":"$7,319,562"}},{"$f":"'(Other Computations)'!DK25","v":{"v":7297470.891790168,"d":"$7,297,471"}},{"$f":"'(Other Computations)'!DL25","v":{"v":7235603.307478727,"d":"$7,235,603"}},{"$f":"'(Other Computations)'!DM25","v":{"v":7256632.725265563,"d":"$7,256,633"}},{"$f":"'(Other Computations)'!DO25","v":{"v":7384197.674975999,"d":"$7,384,198"}},{"$f":"'(Other Computations)'!DP25","v":{"v":7253530.031660542,"d":"$7,253,530"}},{"$f":"'(Other Computations)'!DQ25","v":{"v":7417196.5804583505,"d":"$7,417,197"}},{"$f":"'(Other Computations)'!DR25","v":{"v":7314965.7040102575,"d":"$7,314,966"}},{"$f":"'(Other Computations)'!DS25","v":{"v":7298333.912910908,"d":"$7,298,334"}},{"$f":"'(Other Computations)'!DT25","v":{"v":7399002.186434327,"d":"$7,399,002"}},{"$f":"'(Other Computations)'!DU25","v":{"v":7327450.035191732,"d":"$7,327,450"}},{"$f":"'(Other Computations)'!DV25","v":{"v":7354641.504273092,"d":"$7,354,642"}},{"$f":"'(Other Computations)'!DW25","v":{"v":7306676.354256248,"d":"$7,306,676"}},{"$f":"'(Other Computations)'!DX25","v":{"v":7286667.326454553,"d":"$7,286,667"}},{"$f":"'(Other Computations)'!DY25","v":{"v":7292685.904425625,"d":"$7,292,686"}},{"$f":"'(Other Computations)'!DZ25","v":{"v":7152991.406333786,"d":"$7,152,991"}},{"$f":"'(Other Computations)'!EB25","v":{"v":7322018.780844622,"d":"$7,322,019"}},{"$f":"'(Other Computations)'!EC25","v":{"v":7159980.269926259,"d":"$7,159,980"}},{"$f":"'(Other Computations)'!ED25","v":{"v":7204797.492494031,"d":"$7,204,797"}},{"$f":"'(Other Computations)'!EE25","v":{"v":7274832.503487719,"d":"$7,274,833"}},{"$f":"'(Other Computations)'!EF25","v":{"v":7285813.630884983,"d":"$7,285,814"}},{"$f":"'(Other Computations)'!EG25","v":{"v":7172838.954688907,"d":"$7,172,839"}},{"$f":"'(Other Computations)'!EH25","v":{"v":7202959.23517199,"d":"$7,202,959"}},{"$f":"'(Other Computations)'!EI25","v":{"v":7051129.316029981,"d":"$7,051,129"}},{"$f":"'(Other Computations)'!EJ25","v":{"v":7198115.877191615,"d":"$7,198,116"}},{"$f":"'(Other Computations)'!EK25","v":{"v":7283024.277250271,"d":"$7,283,024"}},{"$f":"'(Other Computations)'!EL25","v":{"v":7171907.424986356,"d":"$7,171,907"}},{"$f":"'(Other Computations)'!EM25","v":{"v":7264905.701590258,"d":"$7,264,906"}}]
[{"$f":"'(Intermediate Computations)'!B17","v":"Jan 2010"},{"$f":"'(Intermediate Computations)'!C17","v":"Feb 2010"},{"$f":"'(Intermediate Computations)'!D17","v":"Mar 2010"},{"$f":"'(Intermediate Computations)'!E17","v":"Apr 2010"},{"$f":"'(Intermediate Computations)'!F17","v":"May 2010"},{"$f":"'(Intermediate Computations)'!G17","v":"Jun 2010"},{"$f":"'(Intermediate Computations)'!H17","v":"Jul 2010"},{"$f":"'(Intermediate Computations)'!I17","v":"Aug 2010"},{"$f":"'(Intermediate Computations)'!J17","v":"Sep 2010"},{"$f":"'(Intermediate Computations)'!K17","v":"Oct 2010"},{"$f":"'(Intermediate Computations)'!L17","v":"Nov 2010"},{"$f":"'(Intermediate Computations)'!M17","v":"Dec 2010"},{"$f":"'(Intermediate Computations)'!O17","v":"Jan 2011"},{"$f":"'(Intermediate Computations)'!P17","v":"Feb 2011"},{"$f":"'(Intermediate Computations)'!Q17","v":"Mar 2011"},{"$f":"'(Intermediate Computations)'!R17","v":"Apr 2011"},{"$f":"'(Intermediate Computations)'!S17","v":"May 2011"},{"$f":"'(Intermediate Computations)'!T17","v":"Jun 2011"},{"$f":"'(Intermediate Computations)'!U17","v":"Jul 2011"},{"$f":"'(Intermediate Computations)'!V17","v":"Aug 2011"},{"$f":"'(Intermediate Computations)'!W17","v":"Sep 2011"},{"$f":"'(Intermediate Computations)'!X17","v":"Oct 2011"},{"$f":"'(Intermediate Computations)'!Y17","v":"Nov 2011"},{"$f":"'(Intermediate Computations)'!Z17","v":"Dec 2011"},{"$f":"'(Intermediate Computations)'!AB17","v":"Jan 2012"},{"$f":"'(Intermediate Computations)'!AC17","v":"Feb 2012"},{"$f":"'(Intermediate Computations)'!AD17","v":"Mar 2012"},{"$f":"'(Intermediate Computations)'!AE17","v":"Apr 2012"},{"$f":"'(Intermediate Computations)'!AF17","v":"May 2012"},{"$f":"'(Intermediate Computations)'!AG17","v":"Jun 2012"},{"$f":"'(Intermediate Computations)'!AH17","v":"Jul 2012"},{"$f":"'(Intermediate Computations)'!AI17","v":"Aug 2012"},{"$f":"'(Intermediate Computations)'!AJ17","v":"Sep 2012"},{"$f":"'(Intermediate Computations)'!AK17","v":"Oct 2012"},{"$f":"'(Intermediate Computations)'!AL17","v":"Nov 2012"},{"$f":"'(Intermediate Computations)'!AM17","v":"Dec 2012"},{"$f":"'(Intermediate Computations)'!AO17","v":"Jan 2013"},{"$f":"'(Intermediate Computations)'!AP17","v":"Feb 2013"},{"$f":"'(Intermediate Computations)'!AQ17","v":"Mar 2013"},{"$f":"'(Intermediate Computations)'!AR17","v":"Apr 2013"},{"$f":"'(Intermediate Computations)'!AS17","v":"May 2013"},{"$f":"'(Intermediate Computations)'!AT17","v":"Jun 2013"},{"$f":"'(Intermediate Computations)'!AU17","v":"Jul 2013"},{"$f":"'(Intermediate Computations)'!AV17","v":"Aug 2013"},{"$f":"'(Intermediate Computations)'!AW17","v":"Sep 2013"},{"$f":"'(Intermediate Computations)'!AX17","v":"Oct 2013"},{"$f":"'(Intermediate Computations)'!AY17","v":"Nov 2013"},{"$f":"'(Intermediate Computations)'!AZ17","v":"Dec 2013"},{"$f":"'(Intermediate Computations)'!BB17","v":"Jan 2014"},{"$f":"'(Intermediate Computations)'!BC17","v":"Feb 2014"},{"$f":"'(Intermediate Computations)'!BD17","v":"Mar 2014"},{"$f":"'(Intermediate Computations)'!BE17","v":"Apr 2014"},{"$f":"'(Intermediate Computations)'!BF17","v":"May 2014"},{"$f":"'(Intermediate Computations)'!BG17","v":"Jun 2014"},{"$f":"'(Intermediate Computations)'!BH17","v":"Jul 2014"},{"$f":"'(Intermediate Computations)'!BI17","v":"Aug 2014"},{"$f":"'(Intermediate Computations)'!BJ17","v":"Sep 2014"},{"$f":"'(Intermediate Computations)'!BK17","v":"Oct 2014"},{"$f":"'(Intermediate Computations)'!BL17","v":"Nov 2014"},{"$f":"'(Intermediate Computations)'!BM17","v":"Dec 2014"},{"$f":"'(Intermediate Computations)'!BO17","v":"Jan 2015"},{"$f":"'(Intermediate Computations)'!BP17","v":"Feb 2015"},{"$f":"'(Intermediate Computations)'!BQ17","v":"Mar 2015"},{"$f":"'(Intermediate Computations)'!BR17","v":"Apr 2015"},{"$f":"'(Intermediate Computations)'!BS17","v":"May 2015"},{"$f":"'(Intermediate Computations)'!BT17","v":"Jun 2015"},{"$f":"'(Intermediate Computations)'!BU17","v":"Jul 2015"},{"$f":"'(Intermediate Computations)'!BV17","v":"Aug 2015"},{"$f":"'(Intermediate Computations)'!BW17","v":"Sep 2015"},{"$f":"'(Intermediate Computations)'!BX17","v":"Oct 2015"},{"$f":"'(Intermediate Computations)'!BY17","v":"Nov 2015"},{"$f":"'(Intermediate Computations)'!BZ17","v":"Dec 2015"},{"$f":"'(Intermediate Computations)'!CB17","v":"Jan 2016"},{"$f":"'(Intermediate Computations)'!CC17","v":"Feb 2016"},{"$f":"'(Intermediate Computations)'!CD17","v":"Mar 2016"},{"$f":"'(Intermediate Computations)'!CE17","v":"Apr 2016"},{"$f":"'(Intermediate Computations)'!CF17","v":"May 2016"},{"$f":"'(Intermediate Computations)'!CG17","v":"Jun 2016"},{"$f":"'(Intermediate Computations)'!CH17","v":"Jul 2016"},{"$f":"'(Intermediate Computations)'!CI17","v":"Aug 2016"},{"$f":"'(Intermediate Computations)'!CJ17","v":"Sep 2016"},{"$f":"'(Intermediate Computations)'!CK17","v":"Oct 2016"},{"$f":"'(Intermediate Computations)'!CL17","v":"Nov 2016"},{"$f":"'(Intermediate Computations)'!CM17","v":"Dec 2016"},{"$f":"'(Intermediate Computations)'!CO17","v":"Jan 2017"},{"$f":"'(Intermediate Computations)'!CP17","v":"Feb 2017"},{"$f":"'(Intermediate Computations)'!CQ17","v":"Mar 2017"},{"$f":"'(Intermediate Computations)'!CR17","v":"Apr 2017"},{"$f":"'(Intermediate Computations)'!CS17","v":"May 2017"},{"$f":"'(Intermediate Computations)'!CT17","v":"Jun 2017"},{"$f":"'(Intermediate Computations)'!CU17","v":"Jul 2017"},{"$f":"'(Intermediate Computations)'!CV17","v":"Aug 2017"},{"$f":"'(Intermediate Computations)'!CW17","v":"Sep 2017"},{"$f":"'(Intermediate Computations)'!CX17","v":"Oct 2017"},{"$f":"'(Intermediate Computations)'!CY17","v":"Nov 2017"},{"$f":"'(Intermediate Computations)'!CZ17","v":"Dec 2017"},{"$f":"'(Intermediate Computations)'!DB17","v":"Jan 2018"},{"$f":"'(Intermediate Computations)'!DC17","v":"Feb 2018"},{"$f":"'(Intermediate Computations)'!DD17","v":"Mar 2018"},{"$f":"'(Intermediate Computations)'!DE17","v":"Apr 2018"},{"$f":"'(Intermediate Computations)'!DF17","v":"May 2018"},{"$f":"'(Intermediate Computations)'!DG17","v":"Jun 2018"},{"$f":"'(Intermediate Computations)'!DH17","v":"Jul 2018"},{"$f":"'(Intermediate Computations)'!DI17","v":"Aug 2018"},{"$f":"'(Intermediate Computations)'!DJ17","v":"Sep 2018"},{"$f":"'(Intermediate Computations)'!DK17","v":"Oct 2018"},{"$f":"'(Intermediate Computations)'!DL17","v":"Nov 2018"},{"$f":"'(Intermediate Computations)'!DM17","v":"Dec 2018"},{"$f":"'(Intermediate Computations)'!DO17","v":"Jan 2019"},{"$f":"'(Intermediate Computations)'!DP17","v":"Feb 2019"},{"$f":"'(Intermediate Computations)'!DQ17","v":"Mar 2019"},{"$f":"'(Intermediate Computations)'!DR17","v":"Apr 2019"},{"$f":"'(Intermediate Computations)'!DS17","v":"May 2019"},{"$f":"'(Intermediate Computations)'!DT17","v":"Jun 2019"},{"$f":"'(Intermediate Computations)'!DU17","v":"Jul 2019"},{"$f":"'(Intermediate Computations)'!DV17","v":"Aug 2019"},{"$f":"'(Intermediate Computations)'!DW17","v":"Sep 2019"},{"$f":"'(Intermediate Computations)'!DX17","v":"Oct 2019"},{"$f":"'(Intermediate Computations)'!DY17","v":"Nov 2019"},{"$f":"'(Intermediate Computations)'!DZ17","v":"Dec 2019"},{"$f":"'(Intermediate Computations)'!EB17","v":"Jan 2020"},{"$f":"'(Intermediate Computations)'!EC17","v":"Feb 2020"},{"$f":"'(Intermediate Computations)'!ED17","v":"Mar 2020"},{"$f":"'(Intermediate Computations)'!EE17","v":"Apr 2020"},{"$f":"'(Intermediate Computations)'!EF17","v":"May 2020"},{"$f":"'(Intermediate Computations)'!EG17","v":"Jun 2020"},{"$f":"'(Intermediate Computations)'!EH17","v":"Jul 2020"},{"$f":"'(Intermediate Computations)'!EI17","v":"Aug 2020"},{"$f":"'(Intermediate Computations)'!EJ17","v":"Sep 2020"},{"$f":"'(Intermediate Computations)'!EK17","v":"Oct 2020"},{"$f":"'(Intermediate Computations)'!EL17","v":"Nov 2020"},{"$f":"'(Intermediate Computations)'!EM17","v":"Dec 2020"}]
[{"$f":"'(Intermediate Computations)'!B14","v":"2010-01-01"},{"$f":"'(Intermediate Computations)'!C14","v":"2010-02-01"},{"$f":"'(Intermediate Computations)'!D14","v":"2010-03-01"},{"$f":"'(Intermediate Computations)'!E14","v":"2010-04-01"},{"$f":"'(Intermediate Computations)'!F14","v":"2010-05-01"},{"$f":"'(Intermediate Computations)'!G14","v":"2010-06-01"},{"$f":"'(Intermediate Computations)'!H14","v":"2010-07-01"},{"$f":"'(Intermediate Computations)'!I14","v":"2010-08-01"},{"$f":"'(Intermediate Computations)'!J14","v":"2010-09-01"},{"$f":"'(Intermediate Computations)'!K14","v":"2010-10-01"},{"$f":"'(Intermediate Computations)'!L14","v":"2010-11-01"},{"$f":"'(Intermediate Computations)'!M14","v":"2010-12-01"},{"$f":"'(Intermediate Computations)'!O14","v":"2011-01-01"},{"$f":"'(Intermediate Computations)'!P14","v":"2011-02-01"},{"$f":"'(Intermediate Computations)'!Q14","v":"2011-03-01"},{"$f":"'(Intermediate Computations)'!R14","v":"2011-04-01"},{"$f":"'(Intermediate Computations)'!S14","v":"2011-05-01"},{"$f":"'(Intermediate Computations)'!T14","v":"2011-06-01"},{"$f":"'(Intermediate Computations)'!U14","v":"2011-07-01"},{"$f":"'(Intermediate Computations)'!V14","v":"2011-08-01"},{"$f":"'(Intermediate Computations)'!W14","v":"2011-09-01"},{"$f":"'(Intermediate Computations)'!X14","v":"2011-10-01"},{"$f":"'(Intermediate Computations)'!Y14","v":"2011-11-01"},{"$f":"'(Intermediate Computations)'!Z14","v":"2011-12-01"},{"$f":"'(Intermediate Computations)'!AB14","v":"2012-01-01"},{"$f":"'(Intermediate Computations)'!AC14","v":"2012-02-01"},{"$f":"'(Intermediate Computations)'!AD14","v":"2012-03-01"},{"$f":"'(Intermediate Computations)'!AE14","v":"2012-04-01"},{"$f":"'(Intermediate Computations)'!AF14","v":"2012-05-01"},{"$f":"'(Intermediate Computations)'!AG14","v":"2012-06-01"},{"$f":"'(Intermediate Computations)'!AH14","v":"2012-07-01"},{"$f":"'(Intermediate Computations)'!AI14","v":"2012-08-01"},{"$f":"'(Intermediate Computations)'!AJ14","v":"2012-09-01"},{"$f":"'(Intermediate Computations)'!AK14","v":"2012-10-01"},{"$f":"'(Intermediate Computations)'!AL14","v":"2012-11-01"},{"$f":"'(Intermediate Computations)'!AM14","v":"2012-12-01"},{"$f":"'(Intermediate Computations)'!AO14","v":"2013-01-01"},{"$f":"'(Intermediate Computations)'!AP14","v":"2013-02-01"},{"$f":"'(Intermediate Computations)'!AQ14","v":"2013-03-01"},{"$f":"'(Intermediate Computations)'!AR14","v":"2013-04-01"},{"$f":"'(Intermediate Computations)'!AS14","v":"2013-05-01"},{"$f":"'(Intermediate Computations)'!AT14","v":"2013-06-01"},{"$f":"'(Intermediate Computations)'!AU14","v":"2013-07-01"},{"$f":"'(Intermediate Computations)'!AV14","v":"2013-08-01"},{"$f":"'(Intermediate Computations)'!AW14","v":"2013-09-01"},{"$f":"'(Intermediate Computations)'!AX14","v":"2013-10-01"},{"$f":"'(Intermediate Computations)'!AY14","v":"2013-11-01"},{"$f":"'(Intermediate Computations)'!AZ14","v":"2013-12-01"},{"$f":"'(Intermediate Computations)'!BB14","v":"2014-01-01"},{"$f":"'(Intermediate Computations)'!BC14","v":"2014-02-01"},{"$f":"'(Intermediate Computations)'!BD14","v":"2014-03-01"},{"$f":"'(Intermediate Computations)'!BE14","v":"2014-04-01"},{"$f":"'(Intermediate Computations)'!BF14","v":"2014-05-01"},{"$f":"'(Intermediate Computations)'!BG14","v":"2014-06-01"},{"$f":"'(Intermediate Computations)'!BH14","v":"2014-07-01"},{"$f":"'(Intermediate Computations)'!BI14","v":"2014-08-01"},{"$f":"'(Intermediate Computations)'!BJ14","v":"2014-09-01"},{"$f":"'(Intermediate Computations)'!BK14","v":"2014-10-01"},{"$f":"'(Intermediate Computations)'!BL14","v":"2014-11-01"},{"$f":"'(Intermediate Computations)'!BM14","v":"2014-12-01"},{"$f":"'(Intermediate Computations)'!BO14","v":"2015-01-01"},{"$f":"'(Intermediate Computations)'!BP14","v":"2015-02-01"},{"$f":"'(Intermediate Computations)'!BQ14","v":"2015-03-01"},{"$f":"'(Intermediate Computations)'!BR14","v":"2015-04-01"},{"$f":"'(Intermediate Computations)'!BS14","v":"2015-05-01"},{"$f":"'(Intermediate Computations)'!BT14","v":"2015-06-01"},{"$f":"'(Intermediate Computations)'!BU14","v":"2015-07-01"},{"$f":"'(Intermediate Computations)'!BV14","v":"2015-08-01"},{"$f":"'(Intermediate Computations)'!BW14","v":"2015-09-01"},{"$f":"'(Intermediate Computations)'!BX14","v":"2015-10-01"},{"$f":"'(Intermediate Computations)'!BY14","v":"2015-11-01"},{"$f":"'(Intermediate Computations)'!BZ14","v":"2015-12-01"},{"$f":"'(Intermediate Computations)'!CB14","v":"2016-01-01"},{"$f":"'(Intermediate Computations)'!CC14","v":"2016-02-01"},{"$f":"'(Intermediate Computations)'!CD14","v":"2016-03-01"},{"$f":"'(Intermediate Computations)'!CE14","v":"2016-04-01"},{"$f":"'(Intermediate Computations)'!CF14","v":"2016-05-01"},{"$f":"'(Intermediate Computations)'!CG14","v":"2016-06-01"},{"$f":"'(Intermediate Computations)'!CH14","v":"2016-07-01"},{"$f":"'(Intermediate Computations)'!CI14","v":"2016-08-01"},{"$f":"'(Intermediate Computations)'!CJ14","v":"2016-09-01"},{"$f":"'(Intermediate Computations)'!CK14","v":"2016-10-01"},{"$f":"'(Intermediate Computations)'!CL14","v":"2016-11-01"},{"$f":"'(Intermediate Computations)'!CM14","v":"2016-12-01"},{"$f":"'(Intermediate Computations)'!CO14","v":"2017-01-01"},{"$f":"'(Intermediate Computations)'!CP14","v":"2017-02-01"},{"$f":"'(Intermediate Computations)'!CQ14","v":"2017-03-01"},{"$f":"'(Intermediate Computations)'!CR14","v":"2017-04-01"},{"$f":"'(Intermediate Computations)'!CS14","v":"2017-05-01"},{"$f":"'(Intermediate Computations)'!CT14","v":"2017-06-01"},{"$f":"'(Intermediate Computations)'!CU14","v":"2017-07-01"},{"$f":"'(Intermediate Computations)'!CV14","v":"2017-08-01"},{"$f":"'(Intermediate Computations)'!CW14","v":"2017-09-01"},{"$f":"'(Intermediate Computations)'!CX14","v":"2017-10-01"},{"$f":"'(Intermediate Computations)'!CY14","v":"2017-11-01"},{"$f":"'(Intermediate Computations)'!CZ14","v":"2017-12-01"},{"$f":"'(Intermediate Computations)'!DB14","v":"2018-01-01"},{"$f":"'(Intermediate Computations)'!DC14","v":"2018-02-01"},{"$f":"'(Intermediate Computations)'!DD14","v":"2018-03-01"},{"$f":"'(Intermediate Computations)'!DE14","v":"2018-04-01"},{"$f":"'(Intermediate Computations)'!DF14","v":"2018-05-01"},{"$f":"'(Intermediate Computations)'!DG14","v":"2018-06-01"},{"$f":"'(Intermediate Computations)'!DH14","v":"2018-07-01"},{"$f":"'(Intermediate Computations)'!DI14","v":"2018-08-01"},{"$f":"'(Intermediate Computations)'!DJ14","v":"2018-09-01"},{"$f":"'(Intermediate Computations)'!DK14","v":"2018-10-01"},{"$f":"'(Intermediate Computations)'!DL14","v":"2018-11-01"},{"$f":"'(Intermediate Computations)'!DM14","v":"2018-12-01"},{"$f":"'(Intermediate Computations)'!DO14","v":"2019-01-01"},{"$f":"'(Intermediate Computations)'!DP14","v":"2019-02-01"},{"$f":"'(Intermediate Computations)'!DQ14","v":"2019-03-01"},{"$f":"'(Intermediate Computations)'!DR14","v":"2019-04-01"},{"$f":"'(Intermediate Computations)'!DS14","v":"2019-05-01"},{"$f":"'(Intermediate Computations)'!DT14","v":"2019-06-01"},{"$f":"'(Intermediate Computations)'!DU14","v":"2019-07-01"},{"$f":"'(Intermediate Computations)'!DV14","v":"2019-08-01"},{"$f":"'(Intermediate Computations)'!DW14","v":"2019-09-01"},{"$f":"'(Intermediate Computations)'!DX14","v":"2019-10-01"},{"$f":"'(Intermediate Computations)'!DY14","v":"2019-11-01"},{"$f":"'(Intermediate Computations)'!DZ14","v":"2019-12-01"},{"$f":"'(Intermediate Computations)'!EB14","v":"2020-01-01"},{"$f":"'(Intermediate Computations)'!EC14","v":"2020-02-01"},{"$f":"'(Intermediate Computations)'!ED14","v":"2020-03-01"},{"$f":"'(Intermediate Computations)'!EE14","v":"2020-04-01"},{"$f":"'(Intermediate Computations)'!EF14","v":"2020-05-01"},{"$f":"'(Intermediate Computations)'!EG14","v":"2020-06-01"},{"$f":"'(Intermediate Computations)'!EH14","v":"2020-07-01"},{"$f":"'(Intermediate Computations)'!EI14","v":"2020-08-01"},{"$f":"'(Intermediate Computations)'!EJ14","v":"2020-09-01"},{"$f":"'(Intermediate Computations)'!EK14","v":"2020-10-01"},{"$f":"'(Intermediate Computations)'!EL14","v":"2020-11-01"},{"$f":"'(Intermediate Computations)'!EM14","v":"2020-12-01"}]
[{"$f":"'Trial 1'!B36","v":{"v":963388.6810828955,"d":"$963,389"}},{"$f":"'Trial 1'!C36","v":{"v":962788.7580836549,"d":"$962,789"}},{"$f":"'Trial 1'!D36","v":{"v":962192.3776643618,"d":"$962,192"}},{"$f":"'Trial 1'!E36","v":{"v":961656.0510731867,"d":"$961,656"}},{"$f":"'Trial 1'!F36","v":{"v":961050.092475044,"d":"$961,050"}},{"$f":"'Trial 1'!G36","v":{"v":960560.00546097,"d":"$960,560"}},{"$f":"'Trial 1'!H36","v":{"v":960029.2348064434,"d":"$960,029"}},{"$f":"'Trial 1'!I36","v":{"v":959486.4500036152,"d":"$959,486"}},{"$f":"'Trial 1'!J36","v":{"v":958919.246161763,"d":"$958,919"}},{"$f":"'Trial 1'!K36","v":{"v":958410.5482487191,"d":"$958,411"}},{"$f":"'Trial 1'!L36","v":{"v":957989.6356935522,"d":"$957,990"}},{"$f":"'Trial 1'!M36","v":{"v":957513.8221802168,"d":"$957,514"}},{"$f":"'Trial 1'!O36","v":{"v":957064.6743848027,"d":"$957,065"}},{"$f":"'Trial 1'!P36","v":{"v":956467.8251333041,"d":"$956,468"}},{"$f":"'Trial 1'!Q36","v":{"v":955985.453755788,"d":"$955,985"}},{"$f":"'Trial 1'!R36","v":{"v":955330.9028481159,"d":"$955,331"}},{"$f":"'Trial 1'!S36","v":{"v":954844.9983269287,"d":"$954,845"}},{"$f":"'Trial 1'!T36","v":{"v":954199.7634342397,"d":"$954,200"}},{"$f":"'Trial 1'!U36","v":{"v":953570.5720775559,"d":"$953,571"}},{"$f":"'Trial 1'!V36","v":{"v":952937.6373976986,"d":"$952,938"}},{"$f":"'Trial 1'!W36","v":{"v":952338.5901094397,"d":"$952,339"}},{"$f":"'Trial 1'!X36","v":{"v":951827.7044930907,"d":"$951,828"}},{"$f":"'Trial 1'!Y36","v":{"v":951323.0912716924,"d":"$951,323"}},{"$f":"'Trial 1'!Z36","v":{"v":950966.1133256974,"d":"$950,966"}},{"$f":"'Trial 1'!AB36","v":{"v":950419.0343375972,"d":"$950,419"}},{"$f":"'Trial 1'!AC36","v":{"v":949923.896643172,"d":"$949,924"}},{"$f":"'Trial 1'!AD36","v":{"v":949566.8723567838,"d":"$949,567"}},{"$f":"'Trial 1'!AE36","v":{"v":949093.7022126153,"d":"$949,094"}},{"$f":"'Trial 1'!AF36","v":{"v":948506.8343039006,"d":"$948,507"}},{"$f":"'Trial 1'!AG36","v":{"v":947982.3573559042,"d":"$947,982"}},{"$f":"'Trial 1'!AH36","v":{"v":947505.6554366577,"d":"$947,506"}},{"$f":"'Trial 1'!AI36","v":{"v":947064.64785634,"d":"$947,065"}},{"$f":"'Trial 1'!AJ36","v":{"v":946532.9466548437,"d":"$946,533"}},{"$f":"'Trial 1'!AK36","v":{"v":946107.6076335415,"d":"$946,108"}},{"$f":"'Trial 1'!AL36","v":{"v":945667.0496308317,"d":"$945,667"}},{"$f":"'Trial 1'!AM36","v":{"v":945229.9796056383,"d":"$945,230"}},{"$f":"'Trial 1'!AO36","v":{"v":944759.5028909746,"d":"$944,760"}},{"$f":"'Trial 1'!AP36","v":{"v":944145.0010951117,"d":"$944,145"}},{"$f":"'Trial 1'!AQ36","v":{"v":943784.773874388,"d":"$943,785"}},{"$f":"'Trial 1'!AR36","v":{"v":943304.6275543286,"d":"$943,305"}},{"$f":"'Trial 1'!AS36","v":{"v":942881.491271228,"d":"$942,881"}},{"$f":"'Trial 1'!AT36","v":{"v":942408.5579071079,"d":"$942,409"}},{"$f":"'Trial 1'!AU36","v":{"v":941971.3866776208,"d":"$941,971"}},{"$f":"'Trial 1'!AV36","v":{"v":941483.8017839065,"d":"$941,484"}},{"$f":"'Trial 1'!AW36","v":{"v":941026.5041628544,"d":"$941,027"}},{"$f":"'Trial 1'!AX36","v":{"v":940552.6361104007,"d":"$940,553"}},{"$f":"'Trial 1'!AY36","v":{"v":940110.9648781044,"d":"$940,111"}},{"$f":"'Trial 1'!AZ36","v":{"v":939749.0450779217,"d":"$939,749"}},{"$f":"'Trial 1'!BB36","v":{"v":939212.5251568437,"d":"$939,213"}},{"$f":"'Trial 1'!BC36","v":{"v":938653.5292281674,"d":"$938,654"}},{"$f":"'Trial 1'!BD36","v":{"v":938232.3007003104,"d":"$938,232"}},{"$f":"'Trial 1'!BE36","v":{"v":937799.9065044457,"d":"$937,800"}},{"$f":"'Trial 1'!BF36","v":{"v":937445.3046959377,"d":"$937,445"}},{"$f":"'Trial 1'!BG36","v":{"v":936989.7448484036,"d":"$936,990"}},{"$f":"'Trial 1'!BH36","v":{"v":936599.7328697186,"d":"$936,600"}},{"$f":"'Trial 1'!BI36","v":{"v":936231.8887508115,"d":"$936,232"}},{"$f":"'Trial 1'!BJ36","v":{"v":935853.8876065691,"d":"$935,854"}},{"$f":"'Trial 1'!BK36","v":{"v":935449.8356475824,"d":"$935,450"}},{"$f":"'Trial 1'!BL36","v":{"v":935003.1629203112,"d":"$935,003"}},{"$f":"'Trial 1'!BM36","v":{"v":934615.2741216258,"d":"$934,615"}},{"$f":"'Trial 1'!BO36","v":{"v":934084.9012141587,"d":"$934,085"}},{"$f":"'Trial 1'!BP36","v":{"v":933733.251691204,"d":"$933,733"}},{"$f":"'Trial 1'!BQ36","v":{"v":933324.3338821771,"d":"$933,324"}},{"$f":"'Trial 1'!BR36","v":{"v":932974.6264108215,"d":"$932,975"}},{"$f":"'Trial 1'!BS36","v":{"v":932570.2792518166,"d":"$932,570"}},{"$f":"'Trial 1'!BT36","v":{"v":932096.4749564566,"d":"$932,096"}},{"$f":"'Trial 1'!BU36","v":{"v":931585.6466882575,"d":"$931,586"}},{"$f":"'Trial 1'!BV36","v":{"v":931104.1342935589,"d":"$931,104"}},{"$f":"'Trial 1'!BW36","v":{"v":930652.1000274969,"d":"$930,652"}},{"$f":"'Trial 1'!BX36","v":{"v":930325.8834276166,"d":"$930,326"}},{"$f":"'Trial 1'!BY36","v":{"v":929799.7378703518,"d":"$929,800"}},{"$f":"'Trial 1'!BZ36","v":{"v":929298.2141118775,"d":"$929,298"}},{"$f":"'Trial 1'!CB36","v":{"v":928941.9265496238,"d":"$928,942"}},{"$f":"'Trial 1'!CC36","v":{"v":928500.8534646168,"d":"$928,501"}},{"$f":"'Trial 1'!CD36","v":{"v":927956.6903860765,"d":"$927,957"}},{"$f":"'Trial 1'!CE36","v":{"v":927536.105218218,"d":"$927,536"}},{"$f":"'Trial 1'!CF36","v":{"v":927068.2095810336,"d":"$927,068"}},{"$f":"'Trial 1'!CG36","v":{"v":926665.5510870415,"d":"$926,666"}},{"$f":"'Trial 1'!CH36","v":{"v":926229.0167468839,"d":"$926,229"}},{"$f":"'Trial 1'!CI36","v":{"v":925823.1446986715,"d":"$925,823"}},{"$f":"'Trial 1'!CJ36","v":{"v":925342.5101757707,"d":"$925,343"}},{"$f":"'Trial 1'!CK36","v":{"v":924899.2993810842,"d":"$924,899"}},{"$f":"'Trial 1'!CL36","v":{"v":924411.3697252852,"d":"$924,411"}},{"$f":"'Trial 1'!CM36","v":{"v":924059.456281223,"d":"$924,059"}},{"$f":"'Trial 1'!CO36","v":{"v":923579.6552519473,"d":"$923,580"}},{"$f":"'Trial 1'!CP36","v":{"v":923019.4371372731,"d":"$923,019"}},{"$f":"'Trial 1'!CQ36","v":{"v":922655.1222189806,"d":"$922,655"}},{"$f":"'Trial 1'!CR36","v":{"v":922152.4086650779,"d":"$922,152"}},{"$f":"'Trial 1'!CS36","v":{"v":921719.0762049422,"d":"$921,719"}},{"$f":"'Trial 1'!CT36","v":{"v":921154.0171354472,"d":"$921,154"}},{"$f":"'Trial 1'!CU36","v":{"v":920705.2158787284,"d":"$920,705"}},{"$f":"'Trial 1'!CV36","v":{"v":920154.8562880453,"d":"$920,155"}},{"$f":"'Trial 1'!CW36","v":{"v":919727.2310766844,"d":"$919,727"}},{"$f":"'Trial 1'!CX36","v":{"v":919159.44600639,"d":"$919,159"}},{"$f":"'Trial 1'!CY36","v":{"v":918734.6185476807,"d":"$918,735"}},{"$f":"'Trial 1'!CZ36","v":{"v":918422.3108578909,"d":"$918,422"}},{"$f":"'Trial 1'!DB36","v":{"v":917932.7084990339,"d":"$917,933"}},{"$f":"'Trial 1'!DC36","v":{"v":917446.176476969,"d":"$917,446"}},{"$f":"'Trial 1'!DD36","v":{"v":917056.847875839,"d":"$917,057"}},{"$f":"'Trial 1'!DE36","v":{"v":916640.0733059993,"d":"$916,640"}},{"$f":"'Trial 1'!DF36","v":{"v":916313.0381580779,"d":"$916,313"}},{"$f":"'Trial 1'!DG36","v":{"v":915867.2234387995,"d":"$915,867"}},{"$f":"'Trial 1'!DH36","v":{"v":915381.3819390865,"d":"$915,381"}},{"$f":"'Trial 1'!DI36","v":{"v":915023.4597838911,"d":"$915,023"}},{"$f":"'Trial 1'!DJ36","v":{"v":914540.0980943014,"d":"$914,540"}},{"$f":"'Trial 1'!DK36","v":{"v":914221.0098242959,"d":"$914,221"}},{"$f":"'Trial 1'!DL36","v":{"v":913877.7335833603,"d":"$913,878"}},{"$f":"'Trial 1'!DM36","v":{"v":913383.5789060493,"d":"$913,384"}},{"$f":"'Trial 1'!DO36","v":{"v":913025.554934891,"d":"$913,026"}},{"$f":"'Trial 1'!DP36","v":{"v":912630.4134672184,"d":"$912,630"}},{"$f":"'Trial 1'!DQ36","v":{"v":912118.703496254,"d":"$912,119"}},{"$f":"'Trial 1'!DR36","v":{"v":911713.2021779884,"d":"$911,713"}},{"$f":"'Trial 1'!DS36","v":{"v":911288.6056176872,"d":"$911,289"}},{"$f":"'Trial 1'!DT36","v":{"v":910811.0124440562,"d":"$910,811"}},{"$f":"'Trial 1'!DU36","v":{"v":910339.2849916463,"d":"$910,339"}},{"$f":"'Trial 1'!DV36","v":{"v":910001.725334947,"d":"$910,002"}},{"$f":"'Trial 1'!DW36","v":{"v":909534.7101025165,"d":"$909,535"}},{"$f":"'Trial 1'!DX36","v":{"v":909009.8021323927,"d":"$909,010"}},{"$f":"'Trial 1'!DY36","v":{"v":908604.690820129,"d":"$908,605"}},{"$f":"'Trial 1'!DZ36","v":{"v":908207.9503550554,"d":"$908,208"}},{"$f":"'Trial 1'!EB36","v":{"v":907734.8632494423,"d":"$907,735"}},{"$f":"'Trial 1'!EC36","v":{"v":907336.037369113,"d":"$907,336"}},{"$f":"'Trial 1'!ED36","v":{"v":906849.4848580474,"d":"$906,849"}},{"$f":"'Trial 1'!EE36","v":{"v":906344.1676295892,"d":"$906,344"}},{"$f":"'Trial 1'!EF36","v":{"v":905879.9368331087,"d":"$905,880"}},{"$f":"'Trial 1'!EG36","v":{"v":905400.393399594,"d":"$905,400"}},{"$f":"'Trial 1'!EH36","v":{"v":904931.9891796878,"d":"$904,932"}},{"$f":"'Trial 1'!EI36","v":{"v":904530.5051111925,"d":"$904,531"}},{"$f":"'Trial 1'!EJ36","v":{"v":903994.4536783441,"d":"$903,994"}},{"$f":"'Trial 1'!EK36","v":{"v":903546.7566047936,"d":"$903,547"}},{"$f":"'Trial 1'!EL36","v":{"v":903051.9721617951,"d":"$903,052"}},{"$f":"'Trial 1'!EM36","v":{"v":902550.3715434641,"d":"$902,550"}}]
[{"$f":"'Trial 2'!B36","v":{"v":963388.6810828955,"d":"$963,389"}},{"$f":"'Trial 2'!C36","v":{"v":962769.5311973599,"d":"$962,770"}},{"$f":"'Trial 2'!D36","v":{"v":962169.3176039625,"d":"$962,169"}},{"$f":"'Trial 2'!E36","v":{"v":961619.9016870683,"d":"$961,620"}},{"$f":"'Trial 2'!F36","v":{"v":961165.6097252205,"d":"$961,166"}},{"$f":"'Trial 2'!G36","v":{"v":960659.5993736376,"d":"$960,660"}},{"$f":"'Trial 2'!H36","v":{"v":960090.452580528,"d":"$960,090"}},{"$f":"'Trial 2'!I36","v":{"v":959545.8120607713,"d":"$959,546"}},{"$f":"'Trial 2'!J36","v":{"v":958868.6442944771,"d":"$958,869"}},{"$f":"'Trial 2'!K36","v":{"v":958434.1782688693,"d":"$958,434"}},{"$f":"'Trial 2'!L36","v":{"v":957863.8430108911,"d":"$957,864"}},{"$f":"'Trial 2'!M36","v":{"v":957267.4616620337,"d":"$957,267"}},{"$f":"'Trial 2'!O36","v":{"v":956859.6058350517,"d":"$956,860"}},{"$f":"'Trial 2'!P36","v":{"v":956255.915342925,"d":"$956,256"}},{"$f":"'Trial 2'!Q36","v":{"v":955720.8803519922,"d":"$955,721"}},{"$f":"'Trial 2'!R36","v":{"v":955338.6767755856,"d":"$955,339"}},{"$f":"'Trial 2'!S36","v":{"v":954793.5822398837,"d":"$954,794"}},{"$f":"'Trial 2'!T36","v":{"v":954298.675674421,"d":"$954,299"}},{"$f":"'Trial 2'!U36","v":{"v":953672.3132393057,"d":"$953,672"}},{"$f":"'Trial 2'!V36","v":{"v":953030.2962647211,"d":"$953,030"}},{"$f":"'Trial 2'!W36","v":{"v":952455.208504621,"d":"$952,455"}},{"$f":"'Trial 2'!X36","v":{"v":951994.5055474415,"d":"$951,995"}},{"$f":"'Trial 2'!Y36","v":{"v":951474.5505483608,"d":"$951,475"}},{"$f":"'Trial 2'!Z36","v":{"v":950909.7430877355,"d":"$950,910"}},{"$f":"'Trial 2'!AB36","v":{"v":950436.9699867046,"d":"$950,437"}},{"$f":"'Trial 2'!AC36","v":{"v":949920.9794291474,"d":"$949,921"}},{"$f":"'Trial 2'!AD36","v":{"v":949368.3187930321,"d":"$949,368"}},{"$f":"'Trial 2'!AE36","v":{"v":948909.2448199455,"d":"$948,909"}},{"$f":"'Trial 2'!AF36","v":{"v":948525.1761770776,"d":"$948,525"}},{"$f":"'Trial 2'!AG36","v":{"v":948044.1016374829,"d":"$948,044"}},{"$f":"'Trial 2'!AH36","v":{"v":947520.2156346567,"d":"$947,520"}},{"$f":"'Trial 2'!AI36","v":{"v":947077.375718272,"d":"$947,077"}},{"$f":"'Trial 2'!AJ36","v":{"v":946488.8705534408,"d":"$946,489"}},{"$f":"'Trial 2'!AK36","v":{"v":946034.7644530681,"d":"$946,035"}},{"$f":"'Trial 2'!AL36","v":{"v":945657.5145649937,"d":"$945,658"}},{"$f":"'Trial 2'!AM36","v":{"v":945267.183156492,"d":"$945,267"}},{"$f":"'Trial 2'!AO36","v":{"v":944703.9218173333,"d":"$944,704"}},{"$f":"'Trial 2'!AP36","v":{"v":944176.567333131,"d":"$944,177"}},{"$f":"'Trial 2'!AQ36","v":{"v":943697.5744027679,"d":"$943,698"}},{"$f":"'Trial 2'!AR36","v":{"v":943285.6935615351,"d":"$943,286"}},{"$f":"'Trial 2'!AS36","v":{"v":942760.9547730527,"d":"$942,761"}},{"$f":"'Trial 2'!AT36","v":{"v":942270.2705081345,"d":"$942,270"}},{"$f":"'Trial 2'!AU36","v":{"v":941824.4597666304,"d":"$941,824"}},{"$f":"'Trial 2'!AV36","v":{"v":941424.2365852318,"d":"$941,424"}},{"$f":"'Trial 2'!AW36","v":{"v":941002.0751401973,"d":"$941,002"}},{"$f":"'Trial 2'!AX36","v":{"v":940495.6126161899,"d":"$940,496"}},{"$f":"'Trial 2'!AY36","v":{"v":940043.7339452348,"d":"$940,044"}},{"$f":"'Trial 2'!AZ36","v":{"v":939575.973006986,"d":"$939,576"}},{"$f":"'Trial 2'!BB36","v":{"v":939078.8934732821,"d":"$939,079"}},{"$f":"'Trial 2'!BC36","v":{"v":938581.4147511594,"d":"$938,581"}},{"$f":"'Trial 2'!BD36","v":{"v":938165.3434520974,"d":"$938,165"}},{"$f":"'Trial 2'!BE36","v":{"v":937754.3601946913,"d":"$937,754"}},{"$f":"'Trial 2'!BF36","v":{"v":937266.7528148877,"d":"$937,267"}},{"$f":"'Trial 2'!BG36","v":{"v":936924.9763366819,"d":"$936,925"}},{"$f":"'Trial 2'!BH36","v":{"v":936400.2418376853,"d":"$936,400"}},{"$f":"'Trial 2'!BI36","v":{"v":935870.1830568938,"d":"$935,870"}},{"$f":"'Trial 2'!BJ36","v":{"v":935348.5838044427,"d":"$935,349"}},{"$f":"'Trial 2'!BK36","v":{"v":934937.5326575354,"d":"$934,938"}},{"$f":"'Trial 2'!BL36","v":{"v":934386.3396309003,"d":"$934,386"}},{"$f":"'Trial 2'!BM36","v":{"v":933880.2347630614,"d":"$933,880"}},{"$f":"'Trial 2'!BO36","v":{"v":933404.3126860487,"d":"$933,404"}},{"$f":"'Trial 2'!BP36","v":{"v":932804.7869076616,"d":"$932,805"}},{"$f":"'Trial 2'!BQ36","v":{"v":932295.8491760393,"d":"$932,296"}},{"$f":"'Trial 2'!BR36","v":{"v":931910.9537734614,"d":"$931,911"}},{"$f":"'Trial 2'!BS36","v":{"v":931550.0897687263,"d":"$931,550"}},{"$f":"'Trial 2'!BT36","v":{"v":931012.8797482699,"d":"$931,013"}},{"$f":"'Trial 2'!BU36","v":{"v":930583.8173667107,"d":"$930,584"}},{"$f":"'Trial 2'!BV36","v":{"v":930063.7736189765,"d":"$930,064"}},{"$f":"'Trial 2'!BW36","v":{"v":929714.9310608037,"d":"$929,715"}},{"$f":"'Trial 2'!BX36","v":{"v":929286.1216979736,"d":"$929,286"}},{"$f":"'Trial 2'!BY36","v":{"v":928716.2140872597,"d":"$928,716"}},{"$f":"'Trial 2'!BZ36","v":{"v":928427.3637691169,"d":"$928,427"}},{"$f":"'Trial 2'!CB36","v":{"v":928019.8280236901,"d":"$928,020"}},{"$f":"'Trial 2'!CC36","v":{"v":927694.6258975798,"d":"$927,695"}},{"$f":"'Trial 2'!CD36","v":{"v":927263.6087581515,"d":"$927,264"}},{"$f":"'Trial 2'!CE36","v":{"v":926811.8857260116,"d":"$926,812"}},{"$f":"'Trial 2'!CF36","v":{"v":926444.5019668295,"d":"$926,445"}},{"$f":"'Trial 2'!CG36","v":{"v":926066.3034167086,"d":"$926,066"}},{"$f":"'Trial 2'!CH36","v":{"v":925653.7045672309,"d":"$925,654"}},{"$f":"'Trial 2'!CI36","v":{"v":925247.8192040181,"d":"$925,248"}},{"$f":"'Trial 2'!CJ36","v":{"v":924917.2262268285,"d":"$924,917"}},{"$f":"'Trial 2'!CK36","v":{"v":924479.6632272837,"d":"$924,480"}},{"$f":"'Trial 2'!CL36","v":{"v":923967.6573638215,"d":"$923,968"}},{"$f":"'Trial 2'!CM36","v":{"v":923440.602157959,"d":"$923,441"}},{"$f":"'Trial 2'!CO36","v":{"v":923056.4187417031,"d":"$923,056"}},{"$f":"'Trial 2'!CP36","v":{"v":922547.8725648221,"d":"$922,548"}},{"$f":"'Trial 2'!CQ36","v":{"v":922103.8373395571,"d":"$922,104"}},{"$f":"'Trial 2'!CR36","v":{"v":921709.6991380259,"d":"$921,710"}},{"$f":"'Trial 2'!CS36","v":{"v":921217.134201002,"d":"$921,217"}},{"$f":"'Trial 2'!CT36","v":{"v":920834.7834211456,"d":"$920,835"}},{"$f":"'Trial 2'!CU36","v":{"v":920268.8759344483,"d":"$920,269"}},{"$f":"'Trial 2'!CV36","v":{"v":919972.3181085947,"d":"$919,972"}},{"$f":"'Trial 2'!CW36","v":{"v":919435.214448257,"d":"$919,435"}},{"$f":"'Trial 2'!CX36","v":{"v":919095.2795701382,"d":"$919,095"}},{"$f":"'Trial 2'!CY36","v":{"v":918633.6301084027,"d":"$918,634"}},{"$f":"'Trial 2'!CZ36","v":{"v":918202.9019662397,"d":"$918,203"}},{"$f":"'Trial 2'!DB36","v":{"v":917748.952436803,"d":"$917,749"}},{"$f":"'Trial 2'!DC36","v":{"v":917292.3011249434,"d":"$917,292"}},{"$f":"'Trial 2'!DD36","v":{"v":916877.0512274222,"d":"$916,877"}},{"$f":"'Trial 2'!DE36","v":{"v":916429.2055763649,"d":"$916,429"}},{"$f":"'Trial 2'!DF36","v":{"v":916032.5121322678,"d":"$916,033"}},{"$f":"'Trial 2'!DG36","v":{"v":915699.6891456035,"d":"$915,700"}},{"$f":"'Trial 2'!DH36","v":{"v":915229.0113512139,"d":"$915,229"}},{"$f":"'Trial 2'!DI36","v":{"v":914779.7395436756,"d":"$914,780"}},{"$f":"'Trial 2'!DJ36","v":{"v":914343.591569539,"d":"$914,344"}},{"$f":"'Trial 2'!DK36","v":{"v":913999.3412067749,"d":"$913,999"}},{"$f":"'Trial 2'!DL36","v":{"v":913544.5080642068,"d":"$913,545"}},{"$f":"'Trial 2'!DM36","v":{"v":913071.0800504243,"d":"$913,071"}},{"$f":"'Trial 2'!DO36","v":{"v":912494.5879686367,"d":"$912,495"}},{"$f":"'Trial 2'!DP36","v":{"v":912083.7504797181,"d":"$912,084"}},{"$f":"'Trial 2'!DQ36","v":{"v":911486.312580765,"d":"$911,486"}},{"$f":"'Trial 2'!DR36","v":{"v":911033.7899340949,"d":"$911,034"}},{"$f":"'Trial 2'!DS36","v":{"v":910583.8758924904,"d":"$910,584"}},{"$f":"'Trial 2'!DT36","v":{"v":910067.4933755429,"d":"$910,067"}},{"$f":"'Trial 2'!DU36","v":{"v":909642.1944864173,"d":"$909,642"}},{"$f":"'Trial 2'!DV36","v":{"v":909240.9741442996,"d":"$909,241"}},{"$f":"'Trial 2'!DW36","v":{"v":908764.2957477089,"d":"$908,764"}},{"$f":"'Trial 2'!DX36","v":{"v":908260.4502402031,"d":"$908,260"}},{"$f":"'Trial 2'!DY36","v":{"v":907870.7837946449,"d":"$907,871"}},{"$f":"'Trial 2'!DZ36","v":{"v":907417.7996717186,"d":"$907,418"}},{"$f":"'Trial 2'!EB36","v":{"v":906916.0414390186,"d":"$906,916"}},{"$f":"'Trial 2'!EC36","v":{"v":906546.1671680035,"d":"$906,546"}},{"$f":"'Trial 2'!ED36","v":{"v":906106.9642596828,"d":"$906,107"}},{"$f":"'Trial 2'!EE36","v":{"v":905474.2848548571,"d":"$905,474"}},{"$f":"'Trial 2'!EF36","v":{"v":905116.2041199874,"d":"$905,116"}},{"$f":"'Trial 2'!EG36","v":{"v":904796.6180019708,"d":"$904,797"}},{"$f":"'Trial 2'!EH36","v":{"v":904289.9192871936,"d":"$904,290"}},{"$f":"'Trial 2'!EI36","v":{"v":903856.0997774393,"d":"$903,856"}},{"$f":"'Trial 2'!EJ36","v":{"v":903368.781357152,"d":"$903,369"}},{"$f":"'Trial 2'!EK36","v":{"v":902952.7436372978,"d":"$902,953"}},{"$f":"'Trial 2'!EL36","v":{"v":902459.6243298395,"d":"$902,460"}},{"$f":"'Trial 2'!EM36","v":{"v":902095.0309087725,"d":"$902,095"}}]
[{"$f":"'Trial 3'!B36","v":{"v":963388.6810828955,"d":"$963,389"}},{"$f":"'Trial 3'!C36","v":{"v":962650.0576522764,"d":"$962,650"}},{"$f":"'Trial 3'!D36","v":{"v":962120.0104089021,"d":"$962,120"}},{"$f":"'Trial 3'!E36","v":{"v":961440.5646771473,"d":"$961,441"}},{"$f":"'Trial 3'!F36","v":{"v":960898.9255011125,"d":"$960,899"}},{"$f":"'Trial 3'!G36","v":{"v":960377.5758312527,"d":"$960,378"}},{"$f":"'Trial 3'!H36","v":{"v":959873.6981314364,"d":"$959,874"}},{"$f":"'Trial 3'!I36","v":{"v":959288.4595912547,"d":"$959,288"}},{"$f":"'Trial 3'!J36","v":{"v":958788.1395260411,"d":"$958,788"}},{"$f":"'Trial 3'!K36","v":{"v":958215.3588899716,"d":"$958,215"}},{"$f":"'Trial 3'!L36","v":{"v":957634.2564802354,"d":"$957,634"}},{"$f":"'Trial 3'!M36","v":{"v":957119.4156334867,"d":"$957,119"}},{"$f":"'Trial 3'!O36","v":{"v":956534.6648122928,"d":"$956,535"}},{"$f":"'Trial 3'!P36","v":{"v":955997.3091334156,"d":"$955,997"}},{"$f":"'Trial 3'!Q36","v":{"v":955464.7211254669,"d":"$955,465"}},{"$f":"'Trial 3'!R36","v":{"v":954976.939980815,"d":"$954,977"}},{"$f":"'Trial 3'!S36","v":{"v":954546.278660914,"d":"$954,546"}},{"$f":"'Trial 3'!T36","v":{"v":954111.1365855507,"d":"$954,111"}},{"$f":"'Trial 3'!U36","v":{"v":953539.8672893665,"d":"$953,540"}},{"$f":"'Trial 3'!V36","v":{"v":952956.8718070297,"d":"$952,957"}},{"$f":"'Trial 3'!W36","v":{"v":952458.3010564011,"d":"$952,458"}},{"$f":"'Trial 3'!X36","v":{"v":951955.750175688,"d":"$951,956"}},{"$f":"'Trial 3'!Y36","v":{"v":951484.7969820335,"d":"$951,485"}},{"$f":"'Trial 3'!Z36","v":{"v":950879.9404473134,"d":"$950,880"}},{"$f":"'Trial 3'!AB36","v":{"v":950281.3897236864,"d":"$950,281"}},{"$f":"'Trial 3'!AC36","v":{"v":949882.547203194,"d":"$949,883"}},{"$f":"'Trial 3'!AD36","v":{"v":949405.5806663359,"d":"$949,406"}},{"$f":"'Trial 3'!AE36","v":{"v":948838.2664767933,"d":"$948,838"}},{"$f":"'Trial 3'!AF36","v":{"v":948424.4231355203,"d":"$948,424"}},{"$f":"'Trial 3'!AG36","v":{"v":947842.544030188,"d":"$947,843"}},{"$f":"'Trial 3'!AH36","v":{"v":947399.2089579761,"d":"$947,399"}},{"$f":"'Trial 3'!AI36","v":{"v":946874.5494832869,"d":"$946,875"}},{"$f":"'Trial 3'!AJ36","v":{"v":946376.9438153988,"d":"$946,377"}},{"$f":"'Trial 3'!AK36","v":{"v":945967.0560746888,"d":"$945,967"}},{"$f":"'Trial 3'!AL36","v":{"v":945519.1118167605,"d":"$945,519"}},{"$f":"'Trial 3'!AM36","v":{"v":944983.4402348619,"d":"$944,983"}},{"$f":"'Trial 3'!AO36","v":{"v":944568.6256345666,"d":"$944,569"}},{"$f":"'Trial 3'!AP36","v":{"v":944116.4176647885,"d":"$944,116"}},{"$f":"'Trial 3'!AQ36","v":{"v":943736.0714117208,"d":"$943,736"}},{"$f":"'Trial 3'!AR36","v":{"v":943262.9426095712,"d":"$943,263"}},{"$f":"'Trial 3'!AS36","v":{"v":942833.5062422402,"d":"$942,834"}},{"$f":"'Trial 3'!AT36","v":{"v":942413.6456442992,"d":"$942,414"}},{"$f":"'Trial 3'!AU36","v":{"v":941942.2248910648,"d":"$941,942"}},{"$f":"'Trial 3'!AV36","v":{"v":941493.0219100132,"d":"$941,493"}},{"$f":"'Trial 3'!AW36","v":{"v":941111.9333633176,"d":"$941,112"}},{"$f":"'Trial 3'!AX36","v":{"v":940514.4289315472,"d":"$940,514"}},{"$f":"'Trial 3'!AY36","v":{"v":940197.7462932926,"d":"$940,198"}},{"$f":"'Trial 3'!AZ36","v":{"v":939666.7366931231,"d":"$939,667"}},{"$f":"'Trial 3'!BB36","v":{"v":939126.6819623524,"d":"$939,127"}},{"$f":"'Trial 3'!BC36","v":{"v":938714.4658430016,"d":"$938,714"}},{"$f":"'Trial 3'!BD36","v":{"v":938254.9529004368,"d":"$938,255"}},{"$f":"'Trial 3'!BE36","v":{"v":937859.2875139422,"d":"$937,859"}},{"$f":"'Trial 3'!BF36","v":{"v":937345.2992456952,"d":"$937,345"}},{"$f":"'Trial 3'!BG36","v":{"v":936933.6466636955,"d":"$936,934"}},{"$f":"'Trial 3'!BH36","v":{"v":936391.9297823564,"d":"$936,392"}},{"$f":"'Trial 3'!BI36","v":{"v":935971.386651053,"d":"$935,971"}},{"$f":"'Trial 3'!BJ36","v":{"v":935547.6010989068,"d":"$935,548"}},{"$f":"'Trial 3'!BK36","v":{"v":935043.8232159353,"d":"$935,044"}},{"$f":"'Trial 3'!BL36","v":{"v":934522.0702979083,"d":"$934,522"}},{"$f":"'Trial 3'!BM36","v":{"v":934143.9940796861,"d":"$934,144"}},{"$f":"'Trial 3'!BO36","v":{"v":933624.0686545098,"d":"$933,624"}},{"$f":"'Trial 3'!BP36","v":{"v":933174.3929868472,"d":"$933,174"}},{"$f":"'Trial 3'!BQ36","v":{"v":932738.6372868262,"d":"$932,739"}},{"$f":"'Trial 3'!BR36","v":{"v":932235.1689889567,"d":"$932,235"}},{"$f":"'Trial 3'!BS36","v":{"v":931870.2980618695,"d":"$931,870"}},{"$f":"'Trial 3'!BT36","v":{"v":931486.229153024,"d":"$931,486"}},{"$f":"'Trial 3'!BU36","v":{"v":931057.0411404949,"d":"$931,057"}},{"$f":"'Trial 3'!BV36","v":{"v":930531.2654334203,"d":"$930,531"}},{"$f":"'Trial 3'!BW36","v":{"v":930051.7019940224,"d":"$930,052"}},{"$f":"'Trial 3'!BX36","v":{"v":929683.557495557,"d":"$929,684"}},{"$f":"'Trial 3'!BY36","v":{"v":929157.7552379713,"d":"$929,158"}},{"$f":"'Trial 3'!BZ36","v":{"v":928765.6293952494,"d":"$928,766"}},{"$f":"'Trial 3'!CB36","v":{"v":928246.7150645044,"d":"$928,247"}},{"$f":"'Trial 3'!CC36","v":{"v":927852.0014567489,"d":"$927,852"}},{"$f":"'Trial 3'!CD36","v":{"v":927433.8155175728,"d":"$927,434"}},{"$f":"'Trial 3'!CE36","v":{"v":926936.9946291485,"d":"$926,937"}},{"$f":"'Trial 3'!CF36","v":{"v":926445.3756521338,"d":"$926,445"}},{"$f":"'Trial 3'!CG36","v":{"v":926031.6256331655,"d":"$926,032"}},{"$f":"'Trial 3'!CH36","v":{"v":925622.6668234656,"d":"$925,623"}},{"$f":"'Trial 3'!CI36","v":{"v":925184.7208462966,"d":"$925,185"}},{"$f":"'Trial 3'!CJ36","v":{"v":924878.5014212535,"d":"$924,879"}},{"$f":"'Trial 3'!CK36","v":{"v":924438.831981445,"d":"$924,439"}},{"$f":"'Trial 3'!CL36","v":{"v":924049.950481577,"d":"$924,050"}},{"$f":"'Trial 3'!CM36","v":{"v":923623.991932481,"d":"$923,624"}},{"$f":"'Trial 3'!CO36","v":{"v":923232.8690599436,"d":"$923,233"}},{"$f":"'Trial 3'!CP36","v":{"v":922745.9728942737,"d":"$922,746"}},{"$f":"'Trial 3'!CQ36","v":{"v":922339.3905521914,"d":"$922,339"}},{"$f":"'Trial 3'!CR36","v":{"v":921880.6115621426,"d":"$921,881"}},{"$f":"'Trial 3'!CS36","v":{"v":921403.6759082571,"d":"$921,404"}},{"$f":"'Trial 3'!CT36","v":{"v":920963.4897011708,"d":"$920,963"}},{"$f":"'Trial 3'!CU36","v":{"v":920622.2848780289,"d":"$920,622"}},{"$f":"'Trial 3'!CV36","v":{"v":920195.7310025244,"d":"$920,196"}},{"$f":"'Trial 3'!CW36","v":{"v":919769.0094177587,"d":"$919,769"}},{"$f":"'Trial 3'!CX36","v":{"v":919222.7488759153,"d":"$919,223"}},{"$f":"'Trial 3'!CY36","v":{"v":918889.4888529093,"d":"$918,889"}},{"$f":"'Trial 3'!CZ36","v":{"v":918465.4314458425,"d":"$918,465"}},{"$f":"'Trial 3'!DB36","v":{"v":918142.0622543928,"d":"$918,142"}},{"$f":"'Trial 3'!DC36","v":{"v":917635.7496148043,"d":"$917,636"}},{"$f":"'Trial 3'!DD36","v":{"v":917010.5191585278,"d":"$917,011"}},{"$f":"'Trial 3'!DE36","v":{"v":916552.7479006567,"d":"$916,553"}},{"$f":"'Trial 3'!DF36","v":{"v":916121.6755368816,"d":"$916,122"}},{"$f":"'Trial 3'!DG36","v":{"v":915674.4197910925,"d":"$915,674"}},{"$f":"'Trial 3'!DH36","v":{"v":915247.6471368173,"d":"$915,248"}},{"$f":"'Trial 3'!DI36","v":{"v":914882.3511269343,"d":"$914,882"}},{"$f":"'Trial 3'!DJ36","v":{"v":914492.531536362,"d":"$914,493"}},{"$f":"'Trial 3'!DK36","v":{"v":914092.1899991815,"d":"$914,092"}},{"$f":"'Trial 3'!DL36","v":{"v":913673.787388893,"d":"$913,674"}},{"$f":"'Trial 3'!DM36","v":{"v":913217.5474368857,"d":"$913,218"}},{"$f":"'Trial 3'!DO36","v":{"v":912803.3512708812,"d":"$912,803"}},{"$f":"'Trial 3'!DP36","v":{"v":912462.5892521179,"d":"$912,463"}},{"$f":"'Trial 3'!DQ36","v":{"v":912127.9985114073,"d":"$912,128"}},{"$f":"'Trial 3'!DR36","v":{"v":911818.5656893105,"d":"$911,819"}},{"$f":"'Trial 3'!DS36","v":{"v":911358.2294938079,"d":"$911,358"}},{"$f":"'Trial 3'!DT36","v":{"v":910908.9862138912,"d":"$910,909"}},{"$f":"'Trial 3'!DU36","v":{"v":910518.4723926774,"d":"$910,518"}},{"$f":"'Trial 3'!DV36","v":{"v":910097.1517414835,"d":"$910,097"}},{"$f":"'Trial 3'!DW36","v":{"v":909617.9042597696,"d":"$909,618"}},{"$f":"'Trial 3'!DX36","v":{"v":909312.1377116841,"d":"$909,312"}},{"$f":"'Trial 3'!DY36","v":{"v":908867.9126486317,"d":"$908,868"}},{"$f":"'Trial 3'!DZ36","v":{"v":908472.3599916234,"d":"$908,472"}},{"$f":"'Trial 3'!EB36","v":{"v":907950.1177888962,"d":"$907,950"}},{"$f":"'Trial 3'!EC36","v":{"v":907551.3000585333,"d":"$907,551"}},{"$f":"'Trial 3'!ED36","v":{"v":907147.6420686741,"d":"$907,148"}},{"$f":"'Trial 3'!EE36","v":{"v":906671.9164210103,"d":"$906,672"}},{"$f":"'Trial 3'!EF36","v":{"v":906229.5199026243,"d":"$906,230"}},{"$f":"'Trial 3'!EG36","v":{"v":905752.4597234499,"d":"$905,752"}},{"$f":"'Trial 3'!EH36","v":{"v":905331.3133325896,"d":"$905,331"}},{"$f":"'Trial 3'!EI36","v":{"v":904865.7689571017,"d":"$904,866"}},{"$f":"'Trial 3'!EJ36","v":{"v":904264.6276110068,"d":"$904,265"}},{"$f":"'Trial 3'!EK36","v":{"v":903693.3097013861,"d":"$903,693"}},{"$f":"'Trial 3'!EL36","v":{"v":903326.191269965,"d":"$903,326"}},{"$f":"'Trial 3'!EM36","v":{"v":902905.4832626862,"d":"$902,905"}}]
[{"$f":"'Trial 4'!B36","v":{"v":963388.6810828955,"d":"$963,389"}},{"$f":"'Trial 4'!C36","v":{"v":962804.6544926534,"d":"$962,805"}},{"$f":"'Trial 4'!D36","v":{"v":962249.8602459532,"d":"$962,250"}},{"$f":"'Trial 4'!E36","v":{"v":961649.8253659426,"d":"$961,650"}},{"$f":"'Trial 4'!F36","v":{"v":961035.7422967289,"d":"$961,036"}},{"$f":"'Trial 4'!G36","v":{"v":960484.9990895931,"d":"$960,485"}},{"$f":"'Trial 4'!H36","v":{"v":960056.6125876381,"d":"$960,057"}},{"$f":"'Trial 4'!I36","v":{"v":959446.1162063176,"d":"$959,446"}},{"$f":"'Trial 4'!J36","v":{"v":958857.3636225142,"d":"$958,857"}},{"$f":"'Trial 4'!K36","v":{"v":958267.7772562433,"d":"$958,268"}},{"$f":"'Trial 4'!L36","v":{"v":957685.0202910928,"d":"$957,685"}},{"$f":"'Trial 4'!M36","v":{"v":957131.8953206112,"d":"$957,132"}},{"$f":"'Trial 4'!O36","v":{"v":956488.8535934938,"d":"$956,489"}},{"$f":"'Trial 4'!P36","v":{"v":956001.0819954006,"d":"$956,001"}},{"$f":"'Trial 4'!Q36","v":{"v":955495.4437249107,"d":"$955,495"}},{"$f":"'Trial 4'!R36","v":{"v":955105.8423023564,"d":"$955,106"}},{"$f":"'Trial 4'!S36","v":{"v":954664.2909412159,"d":"$954,664"}},{"$f":"'Trial 4'!T36","v":{"v":954108.766224434,"d":"$954,109"}},{"$f":"'Trial 4'!U36","v":{"v":953529.0354213989,"d":"$953,529"}},{"$f":"'Trial 4'!V36","v":{"v":953022.6264557977,"d":"$953,023"}},{"$f":"'Trial 4'!W36","v":{"v":952514.5568323729,"d":"$952,515"}},{"$f":"'Trial 4'!X36","v":{"v":952121.7437757592,"d":"$952,122"}},{"$f":"'Trial 4'!Y36","v":{"v":951645.9168678765,"d":"$951,646"}},{"$f":"'Trial 4'!Z36","v":{"v":950979.5856575524,"d":"$950,980"}},{"$f":"'Trial 4'!AB36","v":{"v":950447.8738848439,"d":"$950,448"}},{"$f":"'Trial 4'!AC36","v":{"v":949933.511298958,"d":"$949,934"}},{"$f":"'Trial 4'!AD36","v":{"v":949468.7620848862,"d":"$949,469"}},{"$f":"'Trial 4'!AE36","v":{"v":948953.0589088434,"d":"$948,953"}},{"$f":"'Trial 4'!AF36","v":{"v":948327.6734661983,"d":"$948,328"}},{"$f":"'Trial 4'!AG36","v":{"v":947846.0846123031,"d":"$947,846"}},{"$f":"'Trial 4'!AH36","v":{"v":947480.8650228181,"d":"$947,481"}},{"$f":"'Trial 4'!AI36","v":{"v":947084.2350095483,"d":"$947,084"}},{"$f":"'Trial 4'!AJ36","v":{"v":946568.7323824493,"d":"$946,569"}},{"$f":"'Trial 4'!AK36","v":{"v":945978.3693504694,"d":"$945,978"}},{"$f":"'Trial 4'!AL36","v":{"v":945525.9004761769,"d":"$945,526"}},{"$f":"'Trial 4'!AM36","v":{"v":945019.8047667878,"d":"$945,020"}},{"$f":"'Trial 4'!AO36","v":{"v":944505.1711164376,"d":"$944,505"}},{"$f":"'Trial 4'!AP36","v":{"v":944002.8126263012,"d":"$944,003"}},{"$f":"'Trial 4'!AQ36","v":{"v":943524.0079399564,"d":"$943,524"}},{"$f":"'Trial 4'!AR36","v":{"v":943024.849226998,"d":"$943,025"}},{"$f":"'Trial 4'!AS36","v":{"v":942442.272111134,"d":"$942,442"}},{"$f":"'Trial 4'!AT36","v":{"v":941943.7305844619,"d":"$941,944"}},{"$f":"'Trial 4'!AU36","v":{"v":941469.5067137855,"d":"$941,470"}},{"$f":"'Trial 4'!AV36","v":{"v":941049.4078192458,"d":"$941,049"}},{"$f":"'Trial 4'!AW36","v":{"v":940611.6772601145,"d":"$940,612"}},{"$f":"'Trial 4'!AX36","v":{"v":940181.2484721782,"d":"$940,181"}},{"$f":"'Trial 4'!AY36","v":{"v":939634.0643647715,"d":"$939,634"}},{"$f":"'Trial 4'!AZ36","v":{"v":939133.4431791805,"d":"$939,133"}},{"$f":"'Trial 4'!BB36","v":{"v":938575.6044239532,"d":"$938,576"}},{"$f":"'Trial 4'!BC36","v":{"v":938277.0661386045,"d":"$938,277"}},{"$f":"'Trial 4'!BD36","v":{"v":937910.0790593214,"d":"$937,910"}},{"$f":"'Trial 4'!BE36","v":{"v":937375.1379372166,"d":"$937,375"}},{"$f":"'Trial 4'!BF36","v":{"v":936910.6643519641,"d":"$936,911"}},{"$f":"'Trial 4'!BG36","v":{"v":936414.0093067589,"d":"$936,414"}},{"$f":"'Trial 4'!BH36","v":{"v":936050.6806163251,"d":"$936,051"}},{"$f":"'Trial 4'!BI36","v":{"v":935584.6880998417,"d":"$935,585"}},{"$f":"'Trial 4'!BJ36","v":{"v":935089.3196044812,"d":"$935,089"}},{"$f":"'Trial 4'!BK36","v":{"v":934550.0994712318,"d":"$934,550"}},{"$f":"'Trial 4'!BL36","v":{"v":934149.0153827191,"d":"$934,149"}},{"$f":"'Trial 4'!BM36","v":{"v":933733.5888646371,"d":"$933,734"}},{"$f":"'Trial 4'!BO36","v":{"v":933367.0613879097,"d":"$933,367"}},{"$f":"'Trial 4'!BP36","v":{"v":932939.398412753,"d":"$932,939"}},{"$f":"'Trial 4'!BQ36","v":{"v":932564.4603409073,"d":"$932,564"}},{"$f":"'Trial 4'!BR36","v":{"v":932056.9926030025,"d":"$932,057"}},{"$f":"'Trial 4'!BS36","v":{"v":931631.2853627804,"d":"$931,631"}},{"$f":"'Trial 4'!BT36","v":{"v":931099.1191578576,"d":"$931,099"}},{"$f":"'Trial 4'!BU36","v":{"v":930721.2684597364,"d":"$930,721"}},{"$f":"'Trial 4'!BV36","v":{"v":930269.2573872068,"d":"$930,269"}},{"$f":"'Trial 4'!BW36","v":{"v":929728.3220323467,"d":"$929,728"}},{"$f":"'Trial 4'!BX36","v":{"v":929265.0356961846,"d":"$929,265"}},{"$f":"'Trial 4'!BY36","v":{"v":928941.1304299929,"d":"$928,941"}},{"$f":"'Trial 4'!BZ36","v":{"v":928485.7817688715,"d":"$928,486"}},{"$f":"'Trial 4'!CB36","v":{"v":928118.9956223599,"d":"$928,119"}},{"$f":"'Trial 4'!CC36","v":{"v":927630.7658614618,"d":"$927,631"}},{"$f":"'Trial 4'!CD36","v":{"v":927232.5195740862,"d":"$927,233"}},{"$f":"'Trial 4'!CE36","v":{"v":926772.6455799581,"d":"$926,773"}},{"$f":"'Trial 4'!CF36","v":{"v":926306.0291759036,"d":"$926,306"}},{"$f":"'Trial 4'!CG36","v":{"v":925870.6191217351,"d":"$925,871"}},{"$f":"'Trial 4'!CH36","v":{"v":925429.6952343886,"d":"$925,430"}},{"$f":"'Trial 4'!CI36","v":{"v":925053.4084961661,"d":"$925,053"}},{"$f":"'Trial 4'!CJ36","v":{"v":924677.1758384322,"d":"$924,677"}},{"$f":"'Trial 4'!CK36","v":{"v":924254.7368391936,"d":"$924,255"}},{"$f":"'Trial 4'!CL36","v":{"v":923870.091763481,"d":"$923,870"}},{"$f":"'Trial 4'!CM36","v":{"v":923461.5861249886,"d":"$923,462"}},{"$f":"'Trial 4'!CO36","v":{"v":922949.0364606191,"d":"$922,949"}},{"$f":"'Trial 4'!CP36","v":{"v":922626.5549561521,"d":"$922,627"}},{"$f":"'Trial 4'!CQ36","v":{"v":922229.0291929231,"d":"$922,229"}},{"$f":"'Trial 4'!CR36","v":{"v":921806.0311709681,"d":"$921,806"}},{"$f":"'Trial 4'!CS36","v":{"v":921375.3626199412,"d":"$921,375"}},{"$f":"'Trial 4'!CT36","v":{"v":920842.7465812247,"d":"$920,843"}},{"$f":"'Trial 4'!CU36","v":{"v":920297.2198464232,"d":"$920,297"}},{"$f":"'Trial 4'!CV36","v":{"v":919948.2965911581,"d":"$919,948"}},{"$f":"'Trial 4'!CW36","v":{"v":919576.9306720386,"d":"$919,577"}},{"$f":"'Trial 4'!CX36","v":{"v":919150.1283985896,"d":"$919,150"}},{"$f":"'Trial 4'!CY36","v":{"v":918652.153335139,"d":"$918,652"}},{"$f":"'Trial 4'!CZ36","v":{"v":918267.1838119432,"d":"$918,267"}},{"$f":"'Trial 4'!DB36","v":{"v":917876.953610302,"d":"$917,877"}},{"$f":"'Trial 4'!DC36","v":{"v":917381.252190674,"d":"$917,381"}},{"$f":"'Trial 4'!DD36","v":{"v":916954.201017334,"d":"$916,954"}},{"$f":"'Trial 4'!DE36","v":{"v":916564.4538719032,"d":"$916,564"}},{"$f":"'Trial 4'!DF36","v":{"v":916192.970911377,"d":"$916,193"}},{"$f":"'Trial 4'!DG36","v":{"v":915772.2111942722,"d":"$915,772"}},{"$f":"'Trial 4'!DH36","v":{"v":915287.9626978993,"d":"$915,288"}},{"$f":"'Trial 4'!DI36","v":{"v":914791.8393087372,"d":"$914,792"}},{"$f":"'Trial 4'!DJ36","v":{"v":914359.3894375601,"d":"$914,359"}},{"$f":"'Trial 4'!DK36","v":{"v":913795.6997140989,"d":"$913,796"}},{"$f":"'Trial 4'!DL36","v":{"v":913401.6777345365,"d":"$913,402"}},{"$f":"'Trial 4'!DM36","v":{"v":912970.158958406,"d":"$912,970"}},{"$f":"'Trial 4'!DO36","v":{"v":912523.6988824412,"d":"$912,524"}},{"$f":"'Trial 4'!DP36","v":{"v":912157.5206314942,"d":"$912,158"}},{"$f":"'Trial 4'!DQ36","v":{"v":911862.1387577627,"d":"$911,862"}},{"$f":"'Trial 4'!DR36","v":{"v":911412.9226335875,"d":"$911,413"}},{"$f":"'Trial 4'!DS36","v":{"v":911052.1825627685,"d":"$911,052"}},{"$f":"'Trial 4'!DT36","v":{"v":910756.3106340589,"d":"$910,756"}},{"$f":"'Trial 4'!DU36","v":{"v":910289.2380129767,"d":"$910,289"}},{"$f":"'Trial 4'!DV36","v":{"v":909726.0314416786,"d":"$909,726"}},{"$f":"'Trial 4'!DW36","v":{"v":909273.3661415161,"d":"$909,273"}},{"$f":"'Trial 4'!DX36","v":{"v":908760.865427295,"d":"$908,761"}},{"$f":"'Trial 4'!DY36","v":{"v":908336.1319896933,"d":"$908,336"}},{"$f":"'Trial 4'!DZ36","v":{"v":907980.6013991451,"d":"$907,981"}},{"$f":"'Trial 4'!EB36","v":{"v":907603.2909642464,"d":"$907,603"}},{"$f":"'Trial 4'!EC36","v":{"v":907195.7299565694,"d":"$907,196"}},{"$f":"'Trial 4'!ED36","v":{"v":906693.8013576041,"d":"$906,694"}},{"$f":"'Trial 4'!EE36","v":{"v":906251.1669848715,"d":"$906,251"}},{"$f":"'Trial 4'!EF36","v":{"v":905869.1364502774,"d":"$905,869"}},{"$f":"'Trial 4'!EG36","v":{"v":905480.8401831938,"d":"$905,481"}},{"$f":"'Trial 4'!EH36","v":{"v":904936.3213136446,"d":"$904,936"}},{"$f":"'Trial 4'!EI36","v":{"v":904546.3450608136,"d":"$904,546"}},{"$f":"'Trial 4'!EJ36","v":{"v":904080.382908421,"d":"$904,080"}},{"$f":"'Trial 4'!EK36","v":{"v":903564.402346799,"d":"$903,564"}},{"$f":"'Trial 4'!EL36","v":{"v":903130.5814545306,"d":"$903,131"}},{"$f":"'Trial 4'!EM36","v":{"v":902614.487286462,"d":"$902,614"}}]
[{"$f":"'Trial 5'!B36","v":{"v":963388.6810828955,"d":"$963,389"}},{"$f":"'Trial 5'!C36","v":{"v":962700.6022936836,"d":"$962,701"}},{"$f":"'Trial 5'!D36","v":{"v":962015.6634031496,"d":"$962,016"}},{"$f":"'Trial 5'!E36","v":{"v":961512.4942596393,"d":"$961,512"}},{"$f":"'Trial 5'!F36","v":{"v":960849.9068948143,"d":"$960,850"}},{"$f":"'Trial 5'!G36","v":{"v":960216.2296708537,"d":"$960,216"}},{"$f":"'Trial 5'!H36","v":{"v":959552.3065816177,"d":"$959,552"}},{"$f":"'Trial 5'!I36","v":{"v":959070.8564468963,"d":"$959,071"}},{"$f":"'Trial 5'!J36","v":{"v":958464.297829745,"d":"$958,464"}},{"$f":"'Trial 5'!K36","v":{"v":958008.427058973,"d":"$958,008"}},{"$f":"'Trial 5'!L36","v":{"v":957406.9298410141,"d":"$957,407"}},{"$f":"'Trial 5'!M36","v":{"v":956910.7841796183,"d":"$956,911"}},{"$f":"'Trial 5'!O36","v":{"v":956368.4853429924,"d":"$956,368"}},{"$f":"'Trial 5'!P36","v":{"v":955792.648518561,"d":"$955,793"}},{"$f":"'Trial 5'!Q36","v":{"v":955263.7187716143,"d":"$955,264"}},{"$f":"'Trial 5'!R36","v":{"v":954733.3105707288,"d":"$954,733"}},{"$f":"'Trial 5'!S36","v":{"v":954161.3152064335,"d":"$954,161"}},{"$f":"'Trial 5'!T36","v":{"v":953527.6526481904,"d":"$953,528"}},{"$f":"'Trial 5'!U36","v":{"v":953193.5560589031,"d":"$953,194"}},{"$f":"'Trial 5'!V36","v":{"v":952749.8996657629,"d":"$952,750"}},{"$f":"'Trial 5'!W36","v":{"v":952189.8654776287,"d":"$952,190"}},{"$f":"'Trial 5'!X36","v":{"v":951702.6884707056,"d":"$951,703"}},{"$f":"'Trial 5'!Y36","v":{"v":951134.6452914288,"d":"$951,135"}},{"$f":"'Trial 5'!Z36","v":{"v":950754.230639432,"d":"$950,754"}},{"$f":"'Trial 5'!AB36","v":{"v":950186.3752784795,"d":"$950,186"}},{"$f":"'Trial 5'!AC36","v":{"v":949654.1733859753,"d":"$949,654"}},{"$f":"'Trial 5'!AD36","v":{"v":949186.351638372,"d":"$949,186"}},{"$f":"'Trial 5'!AE36","v":{"v":948846.6029852324,"d":"$948,847"}},{"$f":"'Trial 5'!AF36","v":{"v":948189.7762505856,"d":"$948,190"}},{"$f":"'Trial 5'!AG36","v":{"v":947558.3249515058,"d":"$947,558"}},{"$f":"'Trial 5'!AH36","v":{"v":947020.5114527503,"d":"$947,021"}},{"$f":"'Trial 5'!AI36","v":{"v":946617.0924649674,"d":"$946,617"}},{"$f":"'Trial 5'!AJ36","v":{"v":946067.5925639828,"d":"$946,068"}},{"$f":"'Trial 5'!AK36","v":{"v":945636.381069223,"d":"$945,636"}},{"$f":"'Trial 5'!AL36","v":{"v":945147.6431093795,"d":"$945,148"}},{"$f":"'Trial 5'!AM36","v":{"v":944700.1785522837,"d":"$944,700"}},{"$f":"'Trial 5'!AO36","v":{"v":944146.2111566041,"d":"$944,146"}},{"$f":"'Trial 5'!AP36","v":{"v":943674.2716844958,"d":"$943,674"}},{"$f":"'Trial 5'!AQ36","v":{"v":943196.1111315098,"d":"$943,196"}},{"$f":"'Trial 5'!AR36","v":{"v":942664.4856937878,"d":"$942,664"}},{"$f":"'Trial 5'!AS36","v":{"v":942315.1512130636,"d":"$942,315"}},{"$f":"'Trial 5'!AT36","v":{"v":941860.1694163488,"d":"$941,860"}},{"$f":"'Trial 5'!AU36","v":{"v":941381.0506184736,"d":"$941,381"}},{"$f":"'Trial 5'!AV36","v":{"v":940978.4830684941,"d":"$940,978"}},{"$f":"'Trial 5'!AW36","v":{"v":940542.6632786277,"d":"$940,543"}},{"$f":"'Trial 5'!AX36","v":{"v":940008.0653541706,"d":"$940,008"}},{"$f":"'Trial 5'!AY36","v":{"v":939517.9952634374,"d":"$939,518"}},{"$f":"'Trial 5'!AZ36","v":{"v":939068.1347899165,"d":"$939,068"}},{"$f":"'Trial 5'!BB36","v":{"v":938644.406653749,"d":"$938,644"}},{"$f":"'Trial 5'!BC36","v":{"v":938087.7812370255,"d":"$938,088"}},{"$f":"'Trial 5'!BD36","v":{"v":937581.9771771593,"d":"$937,582"}},{"$f":"'Trial 5'!BE36","v":{"v":937109.726151408,"d":"$937,110"}},{"$f":"'Trial 5'!BF36","v":{"v":936751.5078832669,"d":"$936,752"}},{"$f":"'Trial 5'!BG36","v":{"v":936260.9318377407,"d":"$936,261"}},{"$f":"'Trial 5'!BH36","v":{"v":935764.8471597858,"d":"$935,765"}},{"$f":"'Trial 5'!BI36","v":{"v":935324.1049214152,"d":"$935,324"}},{"$f":"'Trial 5'!BJ36","v":{"v":934847.3566123834,"d":"$934,847"}},{"$f":"'Trial 5'!BK36","v":{"v":934477.3374656249,"d":"$934,477"}},{"$f":"'Trial 5'!BL36","v":{"v":934122.1656598256,"d":"$934,122"}},{"$f":"'Trial 5'!BM36","v":{"v":933699.9233426909,"d":"$933,700"}},{"$f":"'Trial 5'!BO36","v":{"v":933297.2545806043,"d":"$933,297"}},{"$f":"'Trial 5'!BP36","v":{"v":932863.1528172103,"d":"$932,863"}},{"$f":"'Trial 5'!BQ36","v":{"v":932528.2070827683,"d":"$932,528"}},{"$f":"'Trial 5'!BR36","v":{"v":932137.4262882587,"d":"$932,137"}},{"$f":"'Trial 5'!BS36","v":{"v":931681.5775401191,"d":"$931,682"}},{"$f":"'Trial 5'!BT36","v":{"v":931209.1007474284,"d":"$931,209"}},{"$f":"'Trial 5'!BU36","v":{"v":930909.7288199271,"d":"$930,910"}},{"$f":"'Trial 5'!BV36","v":{"v":930456.8255890841,"d":"$930,457"}},{"$f":"'Trial 5'!BW36","v":{"v":929952.6259363503,"d":"$929,953"}},{"$f":"'Trial 5'!BX36","v":{"v":929518.946751397,"d":"$929,519"}},{"$f":"'Trial 5'!BY36","v":{"v":929073.5076885468,"d":"$929,074"}},{"$f":"'Trial 5'!BZ36","v":{"v":928752.2835096299,"d":"$928,752"}},{"$f":"'Trial 5'!CB36","v":{"v":928379.5911695614,"d":"$928,380"}},{"$f":"'Trial 5'!CC36","v":{"v":927973.7226130225,"d":"$927,974"}},{"$f":"'Trial 5'!CD36","v":{"v":927512.5529542399,"d":"$927,513"}},{"$f":"'Trial 5'!CE36","v":{"v":926977.6661872608,"d":"$926,978"}},{"$f":"'Trial 5'!CF36","v":{"v":926447.0691672094,"d":"$926,447"}},{"$f":"'Trial 5'!CG36","v":{"v":925993.0425878398,"d":"$925,993"}},{"$f":"'Trial 5'!CH36","v":{"v":925724.5566596094,"d":"$925,725"}},{"$f":"'Trial 5'!CI36","v":{"v":925316.6232338442,"d":"$925,317"}},{"$f":"'Trial 5'!CJ36","v":{"v":924851.0360288662,"d":"$924,851"}},{"$f":"'Trial 5'!CK36","v":{"v":924484.1594620679,"d":"$924,484"}},{"$f":"'Trial 5'!CL36","v":{"v":924138.6170225386,"d":"$924,139"}},{"$f":"'Trial 5'!CM36","v":{"v":923596.4356109194,"d":"$923,596"}},{"$f":"'Trial 5'!CO36","v":{"v":923162.5199007749,"d":"$923,163"}},{"$f":"'Trial 5'!CP36","v":{"v":922708.1516583537,"d":"$922,708"}},{"$f":"'Trial 5'!CQ36","v":{"v":922176.3508945791,"d":"$922,176"}},{"$f":"'Trial 5'!CR36","v":{"v":921876.5720408612,"d":"$921,877"}},{"$f":"'Trial 5'!CS36","v":{"v":921396.4894409137,"d":"$921,396"}},{"$f":"'Trial 5'!CT36","v":{"v":920897.5247349358,"d":"$920,898"}},{"$f":"'Trial 5'!CU36","v":{"v":920422.1338275936,"d":"$920,422"}},{"$f":"'Trial 5'!CV36","v":{"v":920004.3625299855,"d":"$920,004"}},{"$f":"'Trial 5'!CW36","v":{"v":919509.3311156344,"d":"$919,509"}},{"$f":"'Trial 5'!CX36","v":{"v":919131.4893991508,"d":"$919,131"}},{"$f":"'Trial 5'!CY36","v":{"v":918593.0512103542,"d":"$918,593"}},{"$f":"'Trial 5'!CZ36","v":{"v":918145.5041492312,"d":"$918,146"}},{"$f":"'Trial 5'!DB36","v":{"v":917633.7042970771,"d":"$917,634"}},{"$f":"'Trial 5'!DC36","v":{"v":917240.8106705139,"d":"$917,241"}},{"$f":"'Trial 5'!DD36","v":{"v":916776.9614337016,"d":"$916,777"}},{"$f":"'Trial 5'!DE36","v":{"v":916294.6630870186,"d":"$916,295"}},{"$f":"'Trial 5'!DF36","v":{"v":915837.3707697988,"d":"$915,837"}},{"$f":"'Trial 5'!DG36","v":{"v":915418.22772706,"d":"$915,418"}},{"$f":"'Trial 5'!DH36","v":{"v":915025.7498229705,"d":"$915,026"}},{"$f":"'Trial 5'!DI36","v":{"v":914685.2085118555,"d":"$914,685"}},{"$f":"'Trial 5'!DJ36","v":{"v":914248.8501299997,"d":"$914,249"}},{"$f":"'Trial 5'!DK36","v":{"v":913716.3099482647,"d":"$913,716"}},{"$f":"'Trial 5'!DL36","v":{"v":913261.0328783687,"d":"$913,261"}},{"$f":"'Trial 5'!DM36","v":{"v":912664.3539025318,"d":"$912,664"}},{"$f":"'Trial 5'!DO36","v":{"v":912233.8132819235,"d":"$912,234"}},{"$f":"'Trial 5'!DP36","v":{"v":911846.3565196038,"d":"$911,846"}},{"$f":"'Trial 5'!DQ36","v":{"v":911379.7171804728,"d":"$911,380"}},{"$f":"'Trial 5'!DR36","v":{"v":910961.2071097533,"d":"$910,961"}},{"$f":"'Trial 5'!DS36","v":{"v":910525.9918752515,"d":"$910,526"}},{"$f":"'Trial 5'!DT36","v":{"v":910063.7733416312,"d":"$910,064"}},{"$f":"'Trial 5'!DU36","v":{"v":909715.2648882988,"d":"$909,715"}},{"$f":"'Trial 5'!DV36","v":{"v":909234.8036655614,"d":"$909,235"}},{"$f":"'Trial 5'!DW36","v":{"v":908793.2897730257,"d":"$908,793"}},{"$f":"'Trial 5'!DX36","v":{"v":908422.2994022411,"d":"$908,422"}},{"$f":"'Trial 5'!DY36","v":{"v":907922.3544212165,"d":"$907,922"}},{"$f":"'Trial 5'!DZ36","v":{"v":907402.3168751047,"d":"$907,402"}},{"$f":"'Trial 5'!EB36","v":{"v":906885.7274635521,"d":"$906,886"}},{"$f":"'Trial 5'!EC36","v":{"v":906437.5589586456,"d":"$906,438"}},{"$f":"'Trial 5'!ED36","v":{"v":906144.9776036246,"d":"$906,145"}},{"$f":"'Trial 5'!EE36","v":{"v":905622.1642366644,"d":"$905,622"}},{"$f":"'Trial 5'!EF36","v":{"v":905122.5593348505,"d":"$905,123"}},{"$f":"'Trial 5'!EG36","v":{"v":904676.5281033026,"d":"$904,677"}},{"$f":"'Trial 5'!EH36","v":{"v":904278.315940824,"d":"$904,278"}},{"$f":"'Trial 5'!EI36","v":{"v":903771.2953472706,"d":"$903,771"}},{"$f":"'Trial 5'!EJ36","v":{"v":903180.3027357662,"d":"$903,180"}},{"$f":"'Trial 5'!EK36","v":{"v":902752.1842519122,"d":"$902,752"}},{"$f":"'Trial 5'!EL36","v":{"v":902271.8336707127,"d":"$902,272"}},{"$f":"'Trial 5'!EM36","v":{"v":901837.9016507687,"d":"$901,838"}}]
[{"$f":"'Trial 6'!B36","v":{"v":963388.6810828955,"d":"$963,389"}},{"$f":"'Trial 6'!C36","v":{"v":962791.9126480368,"d":"$962,792"}},{"$f":"'Trial 6'!D36","v":{"v":962007.8226340746,"d":"$962,008"}},{"$f":"'Trial 6'!E36","v":{"v":961510.4672264865,"d":"$961,510"}},{"$f":"'Trial 6'!F36","v":{"v":961019.3064957027,"d":"$961,019"}},{"$f":"'Trial 6'!G36","v":{"v":960386.5383132559,"d":"$960,387"}},{"$f":"'Trial 6'!H36","v":{"v":959787.4324490164,"d":"$959,787"}},{"$f":"'Trial 6'!I36","v":{"v":959167.5669903891,"d":"$959,168"}},{"$f":"'Trial 6'!J36","v":{"v":958629.3823242509,"d":"$958,629"}},{"$f":"'Trial 6'!K36","v":{"v":958200.7317911416,"d":"$958,201"}},{"$f":"'Trial 6'!L36","v":{"v":957622.396067121,"d":"$957,622"}},{"$f":"'Trial 6'!M36","v":{"v":957189.2043106309,"d":"$957,189"}},{"$f":"'Trial 6'!O36","v":{"v":956552.6937752677,"d":"$956,553"}},{"$f":"'Trial 6'!P36","v":{"v":956027.0331871812,"d":"$956,027"}},{"$f":"'Trial 6'!Q36","v":{"v":955487.7195253981,"d":"$955,488"}},{"$f":"'Trial 6'!R36","v":{"v":955124.3139891367,"d":"$955,124"}},{"$f":"'Trial 6'!S36","v":{"v":954583.7224515688,"d":"$954,584"}},{"$f":"'Trial 6'!T36","v":{"v":953958.7049017793,"d":"$953,959"}},{"$f":"'Trial 6'!U36","v":{"v":953492.7614790577,"d":"$953,493"}},{"$f":"'Trial 6'!V36","v":{"v":952978.6636521207,"d":"$952,979"}},{"$f":"'Trial 6'!W36","v":{"v":952450.6282171033,"d":"$952,451"}},{"$f":"'Trial 6'!X36","v":{"v":951951.9575109516,"d":"$951,952"}},{"$f":"'Trial 6'!Y36","v":{"v":951463.0243266366,"d":"$951,463"}},{"$f":"'Trial 6'!Z36","v":{"v":950978.8413603884,"d":"$950,979"}},{"$f":"'Trial 6'!AB36","v":{"v":950463.2847050914,"d":"$950,463"}},{"$f":"'Trial 6'!AC36","v":{"v":949913.2182508791,"d":"$949,913"}},{"$f":"'Trial 6'!AD36","v":{"v":949417.6811554756,"d":"$949,418"}},{"$f":"'Trial 6'!AE36","v":{"v":949072.5584566889,"d":"$949,073"}},{"$f":"'Trial 6'!AF36","v":{"v":948588.2769461462,"d":"$948,588"}},{"$f":"'Trial 6'!AG36","v":{"v":948249.311429457,"d":"$948,249"}},{"$f":"'Trial 6'!AH36","v":{"v":947833.1048198724,"d":"$947,833"}},{"$f":"'Trial 6'!AI36","v":{"v":947415.936189045,"d":"$947,416"}},{"$f":"'Trial 6'!AJ36","v":{"v":946861.7454070394,"d":"$946,862"}},{"$f":"'Trial 6'!AK36","v":{"v":946426.6122338357,"d":"$946,427"}},{"$f":"'Trial 6'!AL36","v":{"v":945912.5066614897,"d":"$945,913"}},{"$f":"'Trial 6'!AM36","v":{"v":945407.6996007768,"d":"$945,408"}},{"$f":"'Trial 6'!AO36","v":{"v":945003.0348987017,"d":"$945,003"}},{"$f":"'Trial 6'!AP36","v":{"v":944601.9719915703,"d":"$944,602"}},{"$f":"'Trial 6'!AQ36","v":{"v":944100.2941574795,"d":"$944,100"}},{"$f":"'Trial 6'!AR36","v":{"v":943611.7432548803,"d":"$943,612"}},{"$f":"'Trial 6'!AS36","v":{"v":943224.2981625755,"d":"$943,224"}},{"$f":"'Trial 6'!AT36","v":{"v":942699.2929918392,"d":"$942,699"}},{"$f":"'Trial 6'!AU36","v":{"v":942115.4806195832,"d":"$942,115"}},{"$f":"'Trial 6'!AV36","v":{"v":941585.5109479894,"d":"$941,586"}},{"$f":"'Trial 6'!AW36","v":{"v":941137.0769510722,"d":"$941,137"}},{"$f":"'Trial 6'!AX36","v":{"v":940606.3050120097,"d":"$940,606"}},{"$f":"'Trial 6'!AY36","v":{"v":940062.8034995259,"d":"$940,063"}},{"$f":"'Trial 6'!AZ36","v":{"v":939626.3229387854,"d":"$939,626"}},{"$f":"'Trial 6'!BB36","v":{"v":939347.8997720926,"d":"$939,348"}},{"$f":"'Trial 6'!BC36","v":{"v":938844.5470488529,"d":"$938,845"}},{"$f":"'Trial 6'!BD36","v":{"v":938338.8713925892,"d":"$938,339"}},{"$f":"'Trial 6'!BE36","v":{"v":937915.6925244826,"d":"$937,916"}},{"$f":"'Trial 6'!BF36","v":{"v":937416.7239107309,"d":"$937,417"}},{"$f":"'Trial 6'!BG36","v":{"v":936914.6561744405,"d":"$936,915"}},{"$f":"'Trial 6'!BH36","v":{"v":936449.3370569217,"d":"$936,449"}},{"$f":"'Trial 6'!BI36","v":{"v":936076.6129620337,"d":"$936,077"}},{"$f":"'Trial 6'!BJ36","v":{"v":935578.0774696347,"d":"$935,578"}},{"$f":"'Trial 6'!BK36","v":{"v":935258.1729345459,"d":"$935,258"}},{"$f":"'Trial 6'!BL36","v":{"v":934871.4313516734,"d":"$934,871"}},{"$f":"'Trial 6'!BM36","v":{"v":934378.5698266996,"d":"$934,379"}},{"$f":"'Trial 6'!BO36","v":{"v":933928.5758869445,"d":"$933,929"}},{"$f":"'Trial 6'!BP36","v":{"v":933376.8483682319,"d":"$933,377"}},{"$f":"'Trial 6'!BQ36","v":{"v":932962.9343925684,"d":"$932,963"}},{"$f":"'Trial 6'!BR36","v":{"v":932480.7966746765,"d":"$932,481"}},{"$f":"'Trial 6'!BS36","v":{"v":931977.1122615847,"d":"$931,977"}},{"$f":"'Trial 6'!BT36","v":{"v":931479.0579265961,"d":"$931,479"}},{"$f":"'Trial 6'!BU36","v":{"v":931158.9654113137,"d":"$931,159"}},{"$f":"'Trial 6'!BV36","v":{"v":930705.2860268711,"d":"$930,705"}},{"$f":"'Trial 6'!BW36","v":{"v":930331.9109393961,"d":"$930,332"}},{"$f":"'Trial 6'!BX36","v":{"v":930000.060522635,"d":"$930,000"}},{"$f":"'Trial 6'!BY36","v":{"v":929484.386955374,"d":"$929,484"}},{"$f":"'Trial 6'!BZ36","v":{"v":929179.4818304054,"d":"$929,179"}},{"$f":"'Trial 6'!CB36","v":{"v":928791.4588723856,"d":"$928,791"}},{"$f":"'Trial 6'!CC36","v":{"v":928321.2294328773,"d":"$928,321"}},{"$f":"'Trial 6'!CD36","v":{"v":927860.3894010267,"d":"$927,860"}},{"$f":"'Trial 6'!CE36","v":{"v":927532.5131062313,"d":"$927,533"}},{"$f":"'Trial 6'!CF36","v":{"v":927070.1999172434,"d":"$927,070"}},{"$f":"'Trial 6'!CG36","v":{"v":926563.2296474185,"d":"$926,563"}},{"$f":"'Trial 6'!CH36","v":{"v":926208.4261739937,"d":"$926,208"}},{"$f":"'Trial 6'!CI36","v":{"v":925730.02994839,"d":"$925,730"}},{"$f":"'Trial 6'!CJ36","v":{"v":925402.6823776052,"d":"$925,403"}},{"$f":"'Trial 6'!CK36","v":{"v":924928.9482173248,"d":"$924,929"}},{"$f":"'Trial 6'!CL36","v":{"v":924569.5070923677,"d":"$924,570"}},{"$f":"'Trial 6'!CM36","v":{"v":924130.5791102446,"d":"$924,131"}},{"$f":"'Trial 6'!CO36","v":{"v":923691.1491374893,"d":"$923,691"}},{"$f":"'Trial 6'!CP36","v":{"v":923278.0957566142,"d":"$923,278"}},{"$f":"'Trial 6'!CQ36","v":{"v":922817.6338615111,"d":"$922,818"}},{"$f":"'Trial 6'!CR36","v":{"v":922288.562283476,"d":"$922,289"}},{"$f":"'Trial 6'!CS36","v":{"v":921892.7160883854,"d":"$921,893"}},{"$f":"'Trial 6'!CT36","v":{"v":921425.2164147182,"d":"$921,425"}},{"$f":"'Trial 6'!CU36","v":{"v":920926.6378752234,"d":"$920,927"}},{"$f":"'Trial 6'!CV36","v":{"v":920627.0454045498,"d":"$920,627"}},{"$f":"'Trial 6'!CW36","v":{"v":920150.1187657636,"d":"$920,150"}},{"$f":"'Trial 6'!CX36","v":{"v":919776.7926711316,"d":"$919,777"}},{"$f":"'Trial 6'!CY36","v":{"v":919326.1626869134,"d":"$919,326"}},{"$f":"'Trial 6'!CZ36","v":{"v":918869.8046598821,"d":"$918,870"}},{"$f":"'Trial 6'!DB36","v":{"v":918496.119488774,"d":"$918,496"}},{"$f":"'Trial 6'!DC36","v":{"v":918101.4192038534,"d":"$918,101"}},{"$f":"'Trial 6'!DD36","v":{"v":917555.2887715638,"d":"$917,555"}},{"$f":"'Trial 6'!DE36","v":{"v":917075.3921430783,"d":"$917,075"}},{"$f":"'Trial 6'!DF36","v":{"v":916645.6521992905,"d":"$916,646"}},{"$f":"'Trial 6'!DG36","v":{"v":916088.9499488496,"d":"$916,089"}},{"$f":"'Trial 6'!DH36","v":{"v":915617.771866325,"d":"$915,618"}},{"$f":"'Trial 6'!DI36","v":{"v":915101.0270727671,"d":"$915,101"}},{"$f":"'Trial 6'!DJ36","v":{"v":914585.7357080061,"d":"$914,586"}},{"$f":"'Trial 6'!DK36","v":{"v":914037.1912215932,"d":"$914,037"}},{"$f":"'Trial 6'!DL36","v":{"v":913664.0905640052,"d":"$913,664"}},{"$f":"'Trial 6'!DM36","v":{"v":913131.9211971965,"d":"$913,132"}},{"$f":"'Trial 6'!DO36","v":{"v":912672.0850612601,"d":"$912,672"}},{"$f":"'Trial 6'!DP36","v":{"v":912338.1799280866,"d":"$912,338"}},{"$f":"'Trial 6'!DQ36","v":{"v":911824.8550991026,"d":"$911,825"}},{"$f":"'Trial 6'!DR36","v":{"v":911375.4887375488,"d":"$911,375"}},{"$f":"'Trial 6'!DS36","v":{"v":910966.4956217635,"d":"$910,966"}},{"$f":"'Trial 6'!DT36","v":{"v":910542.6654007414,"d":"$910,543"}},{"$f":"'Trial 6'!DU36","v":{"v":910138.6193261154,"d":"$910,139"}},{"$f":"'Trial 6'!DV36","v":{"v":909825.5403346032,"d":"$909,826"}},{"$f":"'Trial 6'!DW36","v":{"v":909427.0132778523,"d":"$909,427"}},{"$f":"'Trial 6'!DX36","v":{"v":908985.6046519331,"d":"$908,986"}},{"$f":"'Trial 6'!DY36","v":{"v":908590.6013951588,"d":"$908,591"}},{"$f":"'Trial 6'!DZ36","v":{"v":908183.8692504023,"d":"$908,184"}},{"$f":"'Trial 6'!EB36","v":{"v":907700.8285822368,"d":"$907,701"}},{"$f":"'Trial 6'!EC36","v":{"v":907269.7643994269,"d":"$907,270"}},{"$f":"'Trial 6'!ED36","v":{"v":906869.626395431,"d":"$906,870"}},{"$f":"'Trial 6'!EE36","v":{"v":906426.7633692581,"d":"$906,427"}},{"$f":"'Trial 6'!EF36","v":{"v":906031.8777556254,"d":"$906,032"}},{"$f":"'Trial 6'!EG36","v":{"v":905538.6532942933,"d":"$905,539"}},{"$f":"'Trial 6'!EH36","v":{"v":905194.8596786786,"d":"$905,195"}},{"$f":"'Trial 6'!EI36","v":{"v":904706.2525909665,"d":"$904,706"}},{"$f":"'Trial 6'!EJ36","v":{"v":904319.1982239402,"d":"$904,319"}},{"$f":"'Trial 6'!EK36","v":{"v":904015.2803291851,"d":"$904,015"}},{"$f":"'Trial 6'!EL36","v":{"v":903690.2424860342,"d":"$903,690"}},{"$f":"'Trial 6'!EM36","v":{"v":903179.3705364728,"d":"$903,179"}}]
[{"$f":"'Trial 7'!B36","v":{"v":963388.6810828955,"d":"$963,389"}},{"$f":"'Trial 7'!C36","v":{"v":962790.6265712049,"d":"$962,791"}},{"$f":"'Trial 7'!D36","v":{"v":962319.2074846951,"d":"$962,319"}},{"$f":"'Trial 7'!E36","v":{"v":961700.702753347,"d":"$961,701"}},{"$f":"'Trial 7'!F36","v":{"v":961049.7371561106,"d":"$961,050"}},{"$f":"'Trial 7'!G36","v":{"v":960454.4987841595,"d":"$960,454"}},{"$f":"'Trial 7'!H36","v":{"v":959886.9967775007,"d":"$959,887"}},{"$f":"'Trial 7'!I36","v":{"v":959419.2970857798,"d":"$959,419"}},{"$f":"'Trial 7'!J36","v":{"v":958955.5048766944,"d":"$958,956"}},{"$f":"'Trial 7'!K36","v":{"v":958357.2627843333,"d":"$958,357"}},{"$f":"'Trial 7'!L36","v":{"v":957715.8854135725,"d":"$957,716"}},{"$f":"'Trial 7'!M36","v":{"v":957157.2346817856,"d":"$957,157"}},{"$f":"'Trial 7'!O36","v":{"v":956615.9699364371,"d":"$956,616"}},{"$f":"'Trial 7'!P36","v":{"v":956084.6315941585,"d":"$956,085"}},{"$f":"'Trial 7'!Q36","v":{"v":955672.6775084726,"d":"$955,673"}},{"$f":"'Trial 7'!R36","v":{"v":955226.9874828123,"d":"$955,227"}},{"$f":"'Trial 7'!S36","v":{"v":954834.7363096296,"d":"$954,835"}},{"$f":"'Trial 7'!T36","v":{"v":954312.9910136622,"d":"$954,313"}},{"$f":"'Trial 7'!U36","v":{"v":953896.432755891,"d":"$953,896"}},{"$f":"'Trial 7'!V36","v":{"v":953352.5185743066,"d":"$953,353"}},{"$f":"'Trial 7'!W36","v":{"v":952932.816540128,"d":"$952,933"}},{"$f":"'Trial 7'!X36","v":{"v":952427.7426898706,"d":"$952,428"}},{"$f":"'Trial 7'!Y36","v":{"v":951944.250357737,"d":"$951,944"}},{"$f":"'Trial 7'!Z36","v":{"v":951481.8113359369,"d":"$951,482"}},{"$f":"'Trial 7'!AB36","v":{"v":950915.2867306557,"d":"$950,915"}},{"$f":"'Trial 7'!AC36","v":{"v":950304.6001495234,"d":"$950,305"}},{"$f":"'Trial 7'!AD36","v":{"v":949856.7846023553,"d":"$949,857"}},{"$f":"'Trial 7'!AE36","v":{"v":949431.9825590552,"d":"$949,432"}},{"$f":"'Trial 7'!AF36","v":{"v":949000.8662252008,"d":"$949,001"}},{"$f":"'Trial 7'!AG36","v":{"v":948566.0680335088,"d":"$948,566"}},{"$f":"'Trial 7'!AH36","v":{"v":948104.2456098952,"d":"$948,104"}},{"$f":"'Trial 7'!AI36","v":{"v":947647.6236196076,"d":"$947,648"}},{"$f":"'Trial 7'!AJ36","v":{"v":947052.0077356858,"d":"$947,052"}},{"$f":"'Trial 7'!AK36","v":{"v":946515.710869088,"d":"$946,516"}},{"$f":"'Trial 7'!AL36","v":{"v":946074.5076019324,"d":"$946,075"}},{"$f":"'Trial 7'!AM36","v":{"v":945623.8798564791,"d":"$945,624"}},{"$f":"'Trial 7'!AO36","v":{"v":945070.1009732728,"d":"$945,070"}},{"$f":"'Trial 7'!AP36","v":{"v":944489.3598944347,"d":"$944,489"}},{"$f":"'Trial 7'!AQ36","v":{"v":943976.834113418,"d":"$943,977"}},{"$f":"'Trial 7'!AR36","v":{"v":943555.6449563006,"d":"$943,556"}},{"$f":"'Trial 7'!AS36","v":{"v":943074.9293365871,"d":"$943,075"}},{"$f":"'Trial 7'!AT36","v":{"v":942661.0996083983,"d":"$942,661"}},{"$f":"'Trial 7'!AU36","v":{"v":942093.9273545401,"d":"$942,094"}},{"$f":"'Trial 7'!AV36","v":{"v":941642.376022874,"d":"$941,642"}},{"$f":"'Trial 7'!AW36","v":{"v":941214.2523463304,"d":"$941,214"}},{"$f":"'Trial 7'!AX36","v":{"v":940764.7502755888,"d":"$940,765"}},{"$f":"'Trial 7'!AY36","v":{"v":940275.6980568105,"d":"$940,276"}},{"$f":"'Trial 7'!AZ36","v":{"v":939796.7294460115,"d":"$939,797"}},{"$f":"'Trial 7'!BB36","v":{"v":939284.719939588,"d":"$939,285"}},{"$f":"'Trial 7'!BC36","v":{"v":938790.7201266026,"d":"$938,791"}},{"$f":"'Trial 7'!BD36","v":{"v":938325.5889701165,"d":"$938,326"}},{"$f":"'Trial 7'!BE36","v":{"v":937974.733242278,"d":"$937,975"}},{"$f":"'Trial 7'!BF36","v":{"v":937504.9813697111,"d":"$937,505"}},{"$f":"'Trial 7'!BG36","v":{"v":937042.1650029852,"d":"$937,042"}},{"$f":"'Trial 7'!BH36","v":{"v":936648.7814616128,"d":"$936,649"}},{"$f":"'Trial 7'!BI36","v":{"v":936104.5028483433,"d":"$936,105"}},{"$f":"'Trial 7'!BJ36","v":{"v":935593.4552859255,"d":"$935,593"}},{"$f":"'Trial 7'!BK36","v":{"v":935135.902332326,"d":"$935,136"}},{"$f":"'Trial 7'!BL36","v":{"v":934656.5839366948,"d":"$934,657"}},{"$f":"'Trial 7'!BM36","v":{"v":934190.6981677403,"d":"$934,191"}},{"$f":"'Trial 7'!BO36","v":{"v":933709.8525219851,"d":"$933,710"}},{"$f":"'Trial 7'!BP36","v":{"v":933185.5323433796,"d":"$933,186"}},{"$f":"'Trial 7'!BQ36","v":{"v":932626.7886998272,"d":"$932,627"}},{"$f":"'Trial 7'!BR36","v":{"v":932212.7882037711,"d":"$932,213"}},{"$f":"'Trial 7'!BS36","v":{"v":931883.0693357106,"d":"$931,883"}},{"$f":"'Trial 7'!BT36","v":{"v":931575.7537148277,"d":"$931,576"}},{"$f":"'Trial 7'!BU36","v":{"v":931198.5523619311,"d":"$931,199"}},{"$f":"'Trial 7'!BV36","v":{"v":930766.1473245308,"d":"$930,766"}},{"$f":"'Trial 7'!BW36","v":{"v":930266.7093898329,"d":"$930,267"}},{"$f":"'Trial 7'!BX36","v":{"v":929924.4828618123,"d":"$929,924"}},{"$f":"'Trial 7'!BY36","v":{"v":929436.1521316814,"d":"$929,436"}},{"$f":"'Trial 7'!BZ36","v":{"v":928958.6711721496,"d":"$928,959"}},{"$f":"'Trial 7'!CB36","v":{"v":928424.5758823244,"d":"$928,425"}},{"$f":"'Trial 7'!CC36","v":{"v":927973.7319935756,"d":"$927,974"}},{"$f":"'Trial 7'!CD36","v":{"v":927535.8788400039,"d":"$927,536"}},{"$f":"'Trial 7'!CE36","v":{"v":927176.9217818885,"d":"$927,177"}},{"$f":"'Trial 7'!CF36","v":{"v":926627.4161828557,"d":"$926,627"}},{"$f":"'Trial 7'!CG36","v":{"v":926083.7655358111,"d":"$926,084"}},{"$f":"'Trial 7'!CH36","v":{"v":925692.8448113325,"d":"$925,693"}},{"$f":"'Trial 7'!CI36","v":{"v":925061.61671366,"d":"$925,062"}},{"$f":"'Trial 7'!CJ36","v":{"v":924490.8065890406,"d":"$924,491"}},{"$f":"'Trial 7'!CK36","v":{"v":924175.6073976555,"d":"$924,176"}},{"$f":"'Trial 7'!CL36","v":{"v":923889.5528821222,"d":"$923,890"}},{"$f":"'Trial 7'!CM36","v":{"v":923446.5503643807,"d":"$923,447"}},{"$f":"'Trial 7'!CO36","v":{"v":923000.677256689,"d":"$923,001"}},{"$f":"'Trial 7'!CP36","v":{"v":922647.9998308065,"d":"$922,648"}},{"$f":"'Trial 7'!CQ36","v":{"v":922227.5111425456,"d":"$922,228"}},{"$f":"'Trial 7'!CR36","v":{"v":921810.644379965,"d":"$921,811"}},{"$f":"'Trial 7'!CS36","v":{"v":921426.6133161945,"d":"$921,427"}},{"$f":"'Trial 7'!CT36","v":{"v":921063.4942143235,"d":"$921,063"}},{"$f":"'Trial 7'!CU36","v":{"v":920620.2388828219,"d":"$920,620"}},{"$f":"'Trial 7'!CV36","v":{"v":920227.0407403129,"d":"$920,227"}},{"$f":"'Trial 7'!CW36","v":{"v":919805.9119199024,"d":"$919,806"}},{"$f":"'Trial 7'!CX36","v":{"v":919368.7459892826,"d":"$919,369"}},{"$f":"'Trial 7'!CY36","v":{"v":918923.0858088529,"d":"$918,923"}},{"$f":"'Trial 7'!CZ36","v":{"v":918479.1029704652,"d":"$918,479"}},{"$f":"'Trial 7'!DB36","v":{"v":918069.7808042334,"d":"$918,070"}},{"$f":"'Trial 7'!DC36","v":{"v":917654.0743107704,"d":"$917,654"}},{"$f":"'Trial 7'!DD36","v":{"v":917281.1890424845,"d":"$917,281"}},{"$f":"'Trial 7'!DE36","v":{"v":916872.2169339829,"d":"$916,872"}},{"$f":"'Trial 7'!DF36","v":{"v":916377.4616244322,"d":"$916,377"}},{"$f":"'Trial 7'!DG36","v":{"v":915968.4324521528,"d":"$915,968"}},{"$f":"'Trial 7'!DH36","v":{"v":915468.8461887619,"d":"$915,469"}},{"$f":"'Trial 7'!DI36","v":{"v":914884.2662967724,"d":"$914,884"}},{"$f":"'Trial 7'!DJ36","v":{"v":914491.2402330075,"d":"$914,491"}},{"$f":"'Trial 7'!DK36","v":{"v":914093.3076503251,"d":"$914,093"}},{"$f":"'Trial 7'!DL36","v":{"v":913488.6991512711,"d":"$913,489"}},{"$f":"'Trial 7'!DM36","v":{"v":913065.7054857761,"d":"$913,066"}},{"$f":"'Trial 7'!DO36","v":{"v":912692.705450157,"d":"$912,693"}},{"$f":"'Trial 7'!DP36","v":{"v":912177.7473485569,"d":"$912,178"}},{"$f":"'Trial 7'!DQ36","v":{"v":911784.7120390009,"d":"$911,785"}},{"$f":"'Trial 7'!DR36","v":{"v":911377.0570075201,"d":"$911,377"}},{"$f":"'Trial 7'!DS36","v":{"v":910811.7475765891,"d":"$910,812"}},{"$f":"'Trial 7'!DT36","v":{"v":910467.0209309608,"d":"$910,467"}},{"$f":"'Trial 7'!DU36","v":{"v":909908.3758588054,"d":"$909,908"}},{"$f":"'Trial 7'!DV36","v":{"v":909445.95188061,"d":"$909,446"}},{"$f":"'Trial 7'!DW36","v":{"v":909002.1303884087,"d":"$909,002"}},{"$f":"'Trial 7'!DX36","v":{"v":908734.3650556541,"d":"$908,734"}},{"$f":"'Trial 7'!DY36","v":{"v":908288.7040051264,"d":"$908,289"}},{"$f":"'Trial 7'!DZ36","v":{"v":907752.3773544455,"d":"$907,752"}},{"$f":"'Trial 7'!EB36","v":{"v":907292.6538609855,"d":"$907,293"}},{"$f":"'Trial 7'!EC36","v":{"v":906959.9659650787,"d":"$906,960"}},{"$f":"'Trial 7'!ED36","v":{"v":906454.2321158265,"d":"$906,454"}},{"$f":"'Trial 7'!EE36","v":{"v":906016.0500446123,"d":"$906,016"}},{"$f":"'Trial 7'!EF36","v":{"v":905636.4736140602,"d":"$905,636"}},{"$f":"'Trial 7'!EG36","v":{"v":905182.3043915693,"d":"$905,182"}},{"$f":"'Trial 7'!EH36","v":{"v":904635.1765521432,"d":"$904,635"}},{"$f":"'Trial 7'!EI36","v":{"v":904127.5899334113,"d":"$904,128"}},{"$f":"'Trial 7'!EJ36","v":{"v":903790.5366160545,"d":"$903,791"}},{"$f":"'Trial 7'!EK36","v":{"v":903342.0867570724,"d":"$903,342"}},{"$f":"'Trial 7'!EL36","v":{"v":902937.6864438589,"d":"$902,938"}},{"$f":"'Trial 7'!EM36","v":{"v":902642.6837091495,"d":"$902,643"}}]
[{"$f":"'Trial 8'!B36","v":{"v":963388.6810828955,"d":"$963,389"}},{"$f":"'Trial 8'!C36","v":{"v":962705.8599466172,"d":"$962,706"}},{"$f":"'Trial 8'!D36","v":{"v":961993.8583581559,"d":"$961,994"}},{"$f":"'Trial 8'!E36","v":{"v":961395.1608228597,"d":"$961,395"}},{"$f":"'Trial 8'!F36","v":{"v":960796.4982499937,"d":"$960,796"}},{"$f":"'Trial 8'!G36","v":{"v":960334.0236570183,"d":"$960,334"}},{"$f":"'Trial 8'!H36","v":{"v":959727.5573706042,"d":"$959,728"}},{"$f":"'Trial 8'!I36","v":{"v":959199.3802639762,"d":"$959,199"}},{"$f":"'Trial 8'!J36","v":{"v":958657.819776884,"d":"$958,658"}},{"$f":"'Trial 8'!K36","v":{"v":958030.8676095065,"d":"$958,031"}},{"$f":"'Trial 8'!L36","v":{"v":957585.0044184516,"d":"$957,585"}},{"$f":"'Trial 8'!M36","v":{"v":956987.8264464978,"d":"$956,988"}},{"$f":"'Trial 8'!O36","v":{"v":956509.0670768807,"d":"$956,509"}},{"$f":"'Trial 8'!P36","v":{"v":956096.8204415666,"d":"$956,097"}},{"$f":"'Trial 8'!Q36","v":{"v":955511.346192568,"d":"$955,511"}},{"$f":"'Trial 8'!R36","v":{"v":954900.9280849328,"d":"$954,901"}},{"$f":"'Trial 8'!S36","v":{"v":954377.2302958396,"d":"$954,377"}},{"$f":"'Trial 8'!T36","v":{"v":953832.4731725017,"d":"$953,832"}},{"$f":"'Trial 8'!U36","v":{"v":953493.4614841909,"d":"$953,493"}},{"$f":"'Trial 8'!V36","v":{"v":952959.3188198392,"d":"$952,959"}},{"$f":"'Trial 8'!W36","v":{"v":952502.0769805316,"d":"$952,502"}},{"$f":"'Trial 8'!X36","v":{"v":952013.5266117178,"d":"$952,014"}},{"$f":"'Trial 8'!Y36","v":{"v":951464.9047277389,"d":"$951,465"}},{"$f":"'Trial 8'!Z36","v":{"v":950818.0556030502,"d":"$950,818"}},{"$f":"'Trial 8'!AB36","v":{"v":950352.458842817,"d":"$950,352"}},{"$f":"'Trial 8'!AC36","v":{"v":949902.9779475203,"d":"$949,903"}},{"$f":"'Trial 8'!AD36","v":{"v":949352.1798502727,"d":"$949,352"}},{"$f":"'Trial 8'!AE36","v":{"v":948816.5652352883,"d":"$948,817"}},{"$f":"'Trial 8'!AF36","v":{"v":948299.386210935,"d":"$948,299"}},{"$f":"'Trial 8'!AG36","v":{"v":947677.3573531092,"d":"$947,677"}},{"$f":"'Trial 8'!AH36","v":{"v":947195.3350252362,"d":"$947,195"}},{"$f":"'Trial 8'!AI36","v":{"v":946785.8434678002,"d":"$946,786"}},{"$f":"'Trial 8'!AJ36","v":{"v":946297.8491125765,"d":"$946,298"}},{"$f":"'Trial 8'!AK36","v":{"v":945865.6395461666,"d":"$945,866"}},{"$f":"'Trial 8'!AL36","v":{"v":945434.7058043241,"d":"$945,435"}},{"$f":"'Trial 8'!AM36","v":{"v":945031.9343077218,"d":"$945,032"}},{"$f":"'Trial 8'!AO36","v":{"v":944704.4064388274,"d":"$944,704"}},{"$f":"'Trial 8'!AP36","v":{"v":944296.209278717,"d":"$944,296"}},{"$f":"'Trial 8'!AQ36","v":{"v":943827.1349363172,"d":"$943,827"}},{"$f":"'Trial 8'!AR36","v":{"v":943403.6160665713,"d":"$943,404"}},{"$f":"'Trial 8'!AS36","v":{"v":942857.9429183457,"d":"$942,858"}},{"$f":"'Trial 8'!AT36","v":{"v":942380.5757874647,"d":"$942,381"}},{"$f":"'Trial 8'!AU36","v":{"v":941901.4928602527,"d":"$941,901"}},{"$f":"'Trial 8'!AV36","v":{"v":941447.5350452379,"d":"$941,448"}},{"$f":"'Trial 8'!AW36","v":{"v":940980.8620433853,"d":"$940,981"}},{"$f":"'Trial 8'!AX36","v":{"v":940542.2464773419,"d":"$940,542"}},{"$f":"'Trial 8'!AY36","v":{"v":940167.7812886935,"d":"$940,168"}},{"$f":"'Trial 8'!AZ36","v":{"v":939731.3775658048,"d":"$939,731"}},{"$f":"'Trial 8'!BB36","v":{"v":939226.6618552235,"d":"$939,227"}},{"$f":"'Trial 8'!BC36","v":{"v":938693.0268191033,"d":"$938,693"}},{"$f":"'Trial 8'!BD36","v":{"v":938348.1003848574,"d":"$938,348"}},{"$f":"'Trial 8'!BE36","v":{"v":938024.8057722093,"d":"$938,025"}},{"$f":"'Trial 8'!BF36","v":{"v":937586.1473770586,"d":"$937,586"}},{"$f":"'Trial 8'!BG36","v":{"v":937193.2197541916,"d":"$937,193"}},{"$f":"'Trial 8'!BH36","v":{"v":936803.9252201087,"d":"$936,804"}},{"$f":"'Trial 8'!BI36","v":{"v":936346.1051666331,"d":"$936,346"}},{"$f":"'Trial 8'!BJ36","v":{"v":935920.3961775852,"d":"$935,920"}},{"$f":"'Trial 8'!BK36","v":{"v":935500.1179908039,"d":"$935,500"}},{"$f":"'Trial 8'!BL36","v":{"v":935062.0868402472,"d":"$935,062"}},{"$f":"'Trial 8'!BM36","v":{"v":934639.5673797966,"d":"$934,640"}},{"$f":"'Trial 8'!BO36","v":{"v":934184.0883081335,"d":"$934,184"}},{"$f":"'Trial 8'!BP36","v":{"v":933695.8113077614,"d":"$933,696"}},{"$f":"'Trial 8'!BQ36","v":{"v":933402.3028988211,"d":"$933,402"}},{"$f":"'Trial 8'!BR36","v":{"v":933064.9202990939,"d":"$933,065"}},{"$f":"'Trial 8'!BS36","v":{"v":932812.3789587182,"d":"$932,812"}},{"$f":"'Trial 8'!BT36","v":{"v":932385.1294899979,"d":"$932,385"}},{"$f":"'Trial 8'!BU36","v":{"v":932019.876388099,"d":"$932,020"}},{"$f":"'Trial 8'!BV36","v":{"v":931595.0793859395,"d":"$931,595"}},{"$f":"'Trial 8'!BW36","v":{"v":931144.2825808796,"d":"$931,144"}},{"$f":"'Trial 8'!BX36","v":{"v":930764.3176254454,"d":"$930,764"}},{"$f":"'Trial 8'!BY36","v":{"v":930312.6152653979,"d":"$930,313"}},{"$f":"'Trial 8'!BZ36","v":{"v":929821.4210497054,"d":"$929,821"}},{"$f":"'Trial 8'!CB36","v":{"v":929314.8706043247,"d":"$929,315"}},{"$f":"'Trial 8'!CC36","v":{"v":928766.8642186912,"d":"$928,767"}},{"$f":"'Trial 8'!CD36","v":{"v":928376.3142868747,"d":"$928,376"}},{"$f":"'Trial 8'!CE36","v":{"v":927842.8084098565,"d":"$927,843"}},{"$f":"'Trial 8'!CF36","v":{"v":927370.1599049888,"d":"$927,370"}},{"$f":"'Trial 8'!CG36","v":{"v":926947.2928154477,"d":"$926,947"}},{"$f":"'Trial 8'!CH36","v":{"v":926613.8437609851,"d":"$926,614"}},{"$f":"'Trial 8'!CI36","v":{"v":926185.2414584629,"d":"$926,185"}},{"$f":"'Trial 8'!CJ36","v":{"v":925649.8238523833,"d":"$925,650"}},{"$f":"'Trial 8'!CK36","v":{"v":925331.0940397657,"d":"$925,331"}},{"$f":"'Trial 8'!CL36","v":{"v":924910.2504994224,"d":"$924,910"}},{"$f":"'Trial 8'!CM36","v":{"v":924436.1144253645,"d":"$924,436"}},{"$f":"'Trial 8'!CO36","v":{"v":924006.6271835091,"d":"$924,007"}},{"$f":"'Trial 8'!CP36","v":{"v":923669.0337565055,"d":"$923,669"}},{"$f":"'Trial 8'!CQ36","v":{"v":923216.0498785615,"d":"$923,216"}},{"$f":"'Trial 8'!CR36","v":{"v":922875.4715193106,"d":"$922,875"}},{"$f":"'Trial 8'!CS36","v":{"v":922413.5753260336,"d":"$922,414"}},{"$f":"'Trial 8'!CT36","v":{"v":921871.8411992969,"d":"$921,872"}},{"$f":"'Trial 8'!CU36","v":{"v":921470.8444669675,"d":"$921,471"}},{"$f":"'Trial 8'!CV36","v":{"v":921148.6837172447,"d":"$921,149"}},{"$f":"'Trial 8'!CW36","v":{"v":920727.8025871912,"d":"$920,728"}},{"$f":"'Trial 8'!CX36","v":{"v":920096.4215751459,"d":"$920,096"}},{"$f":"'Trial 8'!CY36","v":{"v":919737.6814393868,"d":"$919,738"}},{"$f":"'Trial 8'!CZ36","v":{"v":919378.9923238606,"d":"$919,379"}},{"$f":"'Trial 8'!DB36","v":{"v":918945.3803399628,"d":"$918,945"}},{"$f":"'Trial 8'!DC36","v":{"v":918661.9163489542,"d":"$918,662"}},{"$f":"'Trial 8'!DD36","v":{"v":918172.9763043355,"d":"$918,173"}},{"$f":"'Trial 8'!DE36","v":{"v":917636.2804252364,"d":"$917,636"}},{"$f":"'Trial 8'!DF36","v":{"v":917263.317610137,"d":"$917,263"}},{"$f":"'Trial 8'!DG36","v":{"v":916828.5377449347,"d":"$916,829"}},{"$f":"'Trial 8'!DH36","v":{"v":916348.1463441928,"d":"$916,348"}},{"$f":"'Trial 8'!DI36","v":{"v":915951.7888519502,"d":"$915,952"}},{"$f":"'Trial 8'!DJ36","v":{"v":915401.2700071592,"d":"$915,401"}},{"$f":"'Trial 8'!DK36","v":{"v":915130.4828070701,"d":"$915,130"}},{"$f":"'Trial 8'!DL36","v":{"v":914708.5578530325,"d":"$914,709"}},{"$f":"'Trial 8'!DM36","v":{"v":914334.4897146653,"d":"$914,334"}},{"$f":"'Trial 8'!DO36","v":{"v":913916.5220232916,"d":"$913,917"}},{"$f":"'Trial 8'!DP36","v":{"v":913433.9161724317,"d":"$913,434"}},{"$f":"'Trial 8'!DQ36","v":{"v":912894.0081407748,"d":"$912,894"}},{"$f":"'Trial 8'!DR36","v":{"v":912581.2869188223,"d":"$912,581"}},{"$f":"'Trial 8'!DS36","v":{"v":912182.4859764023,"d":"$912,182"}},{"$f":"'Trial 8'!DT36","v":{"v":911741.931364264,"d":"$911,742"}},{"$f":"'Trial 8'!DU36","v":{"v":911437.9600007412,"d":"$911,438"}},{"$f":"'Trial 8'!DV36","v":{"v":911054.5095194719,"d":"$911,055"}},{"$f":"'Trial 8'!DW36","v":{"v":910582.532623147,"d":"$910,583"}},{"$f":"'Trial 8'!DX36","v":{"v":910176.5131980078,"d":"$910,177"}},{"$f":"'Trial 8'!DY36","v":{"v":909654.4414598817,"d":"$909,654"}},{"$f":"'Trial 8'!DZ36","v":{"v":909288.1941985609,"d":"$909,288"}},{"$f":"'Trial 8'!EB36","v":{"v":908836.8713188706,"d":"$908,837"}},{"$f":"'Trial 8'!EC36","v":{"v":908344.9207721269,"d":"$908,345"}},{"$f":"'Trial 8'!ED36","v":{"v":907764.4929778484,"d":"$907,764"}},{"$f":"'Trial 8'!EE36","v":{"v":907347.6200401264,"d":"$907,348"}},{"$f":"'Trial 8'!EF36","v":{"v":906823.0067959098,"d":"$906,823"}},{"$f":"'Trial 8'!EG36","v":{"v":906407.2756544509,"d":"$906,407"}},{"$f":"'Trial 8'!EH36","v":{"v":905939.0116537578,"d":"$905,939"}},{"$f":"'Trial 8'!EI36","v":{"v":905574.6324010749,"d":"$905,575"}},{"$f":"'Trial 8'!EJ36","v":{"v":905108.9784703979,"d":"$905,109"}},{"$f":"'Trial 8'!EK36","v":{"v":904699.1033735616,"d":"$904,699"}},{"$f":"'Trial 8'!EL36","v":{"v":904167.2651588637,"d":"$904,167"}},{"$f":"'Trial 8'!EM36","v":{"v":903591.1459355938,"d":"$903,591"}}]
[{"$f":"'(Other Computations)'!B36","v":{"v":7707109.448663162,"d":"$7,707,109"}},{"$f":"'(Other Computations)'!C36","v":{"v":7702002.002885487,"d":"$7,702,002"}},{"$f":"'(Other Computations)'!D36","v":{"v":7697068.117803255,"d":"$7,697,068"}},{"$f":"'(Other Computations)'!E36","v":{"v":7692485.167865678,"d":"$7,692,485"}},{"$f":"'(Other Computations)'!F36","v":{"v":7687865.818794727,"d":"$7,687,866"}},{"$f":"'(Other Computations)'!G36","v":{"v":7683473.470180741,"d":"$7,683,473"}},{"$f":"'(Other Computations)'!H36","v":{"v":7679004.291284786,"d":"$7,679,004"}},{"$f":"'(Other Computations)'!I36","v":{"v":7674623.938649001,"d":"$7,674,624"}},{"$f":"'(Other Computations)'!J36","v":{"v":7670140.398412371,"d":"$7,670,140"}},{"$f":"'(Other Computations)'!K36","v":{"v":7665925.151907757,"d":"$7,665,925"}},{"$f":"'(Other Computations)'!L36","v":{"v":7661502.971215931,"d":"$7,661,503"}},{"$f":"'(Other Computations)'!M36","v":{"v":7657277.644414881,"d":"$7,657,278"}},{"$f":"'(Other Computations)'!O36","v":{"v":7652994.014757218,"d":"$7,652,994"}},{"$f":"'(Other Computations)'!P36","v":{"v":7648723.265346512,"d":"$7,648,723"}},{"$f":"'(Other Computations)'!Q36","v":{"v":7644601.96095621,"d":"$7,644,602"}},{"$f":"'(Other Computations)'!R36","v":{"v":7640737.902034484,"d":"$7,640,738"}},{"$f":"'(Other Computations)'!S36","v":{"v":7636806.154432414,"d":"$7,636,806"}},{"$f":"'(Other Computations)'!T36","v":{"v":7632350.163654778,"d":"$7,632,350"}},{"$f":"'(Other Computations)'!U36","v":{"v":7628387.99980567,"d":"$7,628,388"}},{"$f":"'(Other Computations)'!V36","v":{"v":7623987.832637277,"d":"$7,623,988"}},{"$f":"'(Other Computations)'!W36","v":{"v":7619842.043718225,"d":"$7,619,842"}},{"$f":"'(Other Computations)'!X36","v":{"v":7615995.619275225,"d":"$7,615,996"}},{"$f":"'(Other Computations)'!Y36","v":{"v":7611935.180373505,"d":"$7,611,935"}},{"$f":"'(Other Computations)'!Z36","v":{"v":7607768.321457107,"d":"$7,607,768"}},{"$f":"'(Other Computations)'!AB36","v":{"v":7603502.673489875,"d":"$7,603,503"}},{"$f":"'(Other Computations)'!AC36","v":{"v":7599435.904308369,"d":"$7,599,436"}},{"$f":"'(Other Computations)'!AD36","v":{"v":7595622.531147514,"d":"$7,595,623"}},{"$f":"'(Other Computations)'!AE36","v":{"v":7591961.981654463,"d":"$7,591,962"}},{"$f":"'(Other Computations)'!AF36","v":{"v":7587862.4127155645,"d":"$7,587,862"}},{"$f":"'(Other Computations)'!AG36","v":{"v":7583766.149403458,"d":"$7,583,766"}},{"$f":"'(Other Computations)'!AH36","v":{"v":7580059.141959863,"d":"$7,580,059"}},{"$f":"'(Other Computations)'!AI36","v":{"v":7576567.303808868,"d":"$7,576,567"}},{"$f":"'(Other Computations)'!AJ36","v":{"v":7572246.688225417,"d":"$7,572,247"}},{"$f":"'(Other Computations)'!AK36","v":{"v":7568532.14123008,"d":"$7,568,532"}},{"$f":"'(Other Computations)'!AL36","v":{"v":7564938.939665888,"d":"$7,564,939"}},{"$f":"'(Other Computations)'!AM36","v":{"v":7561264.1000810405,"d":"$7,561,264"}},{"$f":"'(Other Computations)'!AO36","v":{"v":7557460.9749267185,"d":"$7,557,461"}},{"$f":"'(Other Computations)'!AP36","v":{"v":7553502.611568551,"d":"$7,553,503"}},{"$f":"'(Other Computations)'!AQ36","v":{"v":7549842.8019675575,"d":"$7,549,843"}},{"$f":"'(Other Computations)'!AR36","v":{"v":7546113.602923973,"d":"$7,546,114"}},{"$f":"'(Other Computations)'!AS36","v":{"v":7542390.546028227,"d":"$7,542,391"}},{"$f":"'(Other Computations)'!AT36","v":{"v":7538637.342448055,"d":"$7,538,637"}},{"$f":"'(Other Computations)'!AU36","v":{"v":7534699.529501951,"d":"$7,534,700"}},{"$f":"'(Other Computations)'!AV36","v":{"v":7531104.373182993,"d":"$7,531,104"}},{"$f":"'(Other Computations)'!AW36","v":{"v":7527627.044545899,"d":"$7,527,627"}},{"$f":"'(Other Computations)'!AX36","v":{"v":7523665.293249427,"d":"$7,523,665"}},{"$f":"'(Other Computations)'!AY36","v":{"v":7520010.78758987,"d":"$7,520,011"}},{"$f":"'(Other Computations)'!AZ36","v":{"v":7516347.762697729,"d":"$7,516,348"}},{"$f":"'(Other Computations)'!BB36","v":{"v":7512497.393237084,"d":"$7,512,497"}},{"$f":"'(Other Computations)'!BC36","v":{"v":7508642.551192517,"d":"$7,508,643"}},{"$f":"'(Other Computations)'!BD36","v":{"v":7505157.214036888,"d":"$7,505,157"}},{"$f":"'(Other Computations)'!BE36","v":{"v":7501813.649840674,"d":"$7,501,814"}},{"$f":"'(Other Computations)'!BF36","v":{"v":7498227.381649253,"d":"$7,498,227"}},{"$f":"'(Other Computations)'!BG36","v":{"v":7494673.349924898,"d":"$7,494,673"}},{"$f":"'(Other Computations)'!BH36","v":{"v":7491109.476004514,"d":"$7,491,109"}},{"$f":"'(Other Computations)'!BI36","v":{"v":7487509.472457025,"d":"$7,487,509"}},{"$f":"'(Other Computations)'!BJ36","v":{"v":7483778.677659929,"d":"$7,483,779"}},{"$f":"'(Other Computations)'!BK36","v":{"v":7480352.821715587,"d":"$7,480,353"}},{"$f":"'(Other Computations)'!BL36","v":{"v":7476772.85602028,"d":"$7,476,773"}},{"$f":"'(Other Computations)'!BM36","v":{"v":7473281.850545938,"d":"$7,473,282"}},{"$f":"'(Other Computations)'!BO36","v":{"v":7469600.115240294,"d":"$7,469,600"}},{"$f":"'(Other Computations)'!BP36","v":{"v":7465773.174835049,"d":"$7,465,773"}},{"$f":"'(Other Computations)'!BQ36","v":{"v":7462443.513759935,"d":"$7,462,444"}},{"$f":"'(Other Computations)'!BR36","v":{"v":7459073.673242043,"d":"$7,459,074"}},{"$f":"'(Other Computations)'!BS36","v":{"v":7455976.090541325,"d":"$7,455,976"}},{"$f":"'(Other Computations)'!BT36","v":{"v":7452343.744894458,"d":"$7,452,344"}},{"$f":"'(Other Computations)'!BU36","v":{"v":7449234.89663647,"d":"$7,449,235"}},{"$f":"'(Other Computations)'!BV36","v":{"v":7445491.769059587,"d":"$7,445,492"}},{"$f":"'(Other Computations)'!BW36","v":{"v":7441842.583961128,"d":"$7,441,843"}},{"$f":"'(Other Computations)'!BX36","v":{"v":7438768.406078622,"d":"$7,438,768"}},{"$f":"'(Other Computations)'!BY36","v":{"v":7434921.499666576,"d":"$7,434,921"}},{"$f":"'(Other Computations)'!BZ36","v":{"v":7431688.846607005,"d":"$7,431,689"}},{"$f":"'(Other Computations)'!CB36","v":{"v":7428237.9617887745,"d":"$7,428,238"}},{"$f":"'(Other Computations)'!CC36","v":{"v":7424713.794938575,"d":"$7,424,714"}},{"$f":"'(Other Computations)'!CD36","v":{"v":7421171.769718032,"d":"$7,421,172"}},{"$f":"'(Other Computations)'!CE36","v":{"v":7417587.540638573,"d":"$7,417,588"}},{"$f":"'(Other Computations)'!CF36","v":{"v":7413778.961548199,"d":"$7,413,779"}},{"$f":"'(Other Computations)'!CG36","v":{"v":7410221.429845167,"d":"$7,410,221"}},{"$f":"'(Other Computations)'!CH36","v":{"v":7407174.754777889,"d":"$7,407,175"}},{"$f":"'(Other Computations)'!CI36","v":{"v":7403602.604599509,"d":"$7,403,603"}},{"$f":"'(Other Computations)'!CJ36","v":{"v":7400209.762510181,"d":"$7,400,210"}},{"$f":"'(Other Computations)'!CK36","v":{"v":7396992.340545822,"d":"$7,396,992"}},{"$f":"'(Other Computations)'!CL36","v":{"v":7393806.996830615,"d":"$7,393,807"}},{"$f":"'(Other Computations)'!CM36","v":{"v":7390195.316007561,"d":"$7,390,195"}},{"$f":"'(Other Computations)'!CO36","v":{"v":7386678.952992676,"d":"$7,386,679"}},{"$f":"'(Other Computations)'!CP36","v":{"v":7383243.118554802,"d":"$7,383,243"}},{"$f":"'(Other Computations)'!CQ36","v":{"v":7379764.92508085,"d":"$7,379,765"}},{"$f":"'(Other Computations)'!CR36","v":{"v":7376400.000759828,"d":"$7,376,400"}},{"$f":"'(Other Computations)'!CS36","v":{"v":7372844.643105669,"d":"$7,372,845"}},{"$f":"'(Other Computations)'!CT36","v":{"v":7369053.113402262,"d":"$7,369,053"}},{"$f":"'(Other Computations)'!CU36","v":{"v":7365333.451590235,"d":"$7,365,333"}},{"$f":"'(Other Computations)'!CV36","v":{"v":7362278.334382415,"d":"$7,362,278"}},{"$f":"'(Other Computations)'!CW36","v":{"v":7358701.550003231,"d":"$7,358,702"}},{"$f":"'(Other Computations)'!CX36","v":{"v":7355001.0524857445,"d":"$7,355,001"}},{"$f":"'(Other Computations)'!CY36","v":{"v":7351489.871989639,"d":"$7,351,490"}},{"$f":"'(Other Computations)'!CZ36","v":{"v":7348231.232185355,"d":"$7,348,231"}},{"$f":"'(Other Computations)'!DB36","v":{"v":7344845.661730578,"d":"$7,344,846"}},{"$f":"'(Other Computations)'!DC36","v":{"v":7341413.699941482,"d":"$7,341,414"}},{"$f":"'(Other Computations)'!DD36","v":{"v":7337685.034831208,"d":"$7,337,685"}},{"$f":"'(Other Computations)'!DE36","v":{"v":7334065.03324424,"d":"$7,334,065"}},{"$f":"'(Other Computations)'!DF36","v":{"v":7330783.998942263,"d":"$7,330,784"}},{"$f":"'(Other Computations)'!DG36","v":{"v":7327317.691442765,"d":"$7,327,318"}},{"$f":"'(Other Computations)'!DH36","v":{"v":7323606.517347269,"d":"$7,323,607"}},{"$f":"'(Other Computations)'!DI36","v":{"v":7320099.680496583,"d":"$7,320,100"}},{"$f":"'(Other Computations)'!DJ36","v":{"v":7316462.706715936,"d":"$7,316,463"}},{"$f":"'(Other Computations)'!DK36","v":{"v":7313085.532371604,"d":"$7,313,086"}},{"$f":"'(Other Computations)'!DL36","v":{"v":7309620.087217675,"d":"$7,309,620"}},{"$f":"'(Other Computations)'!DM36","v":{"v":7305838.835651935,"d":"$7,305,839"}},{"$f":"'(Other Computations)'!DO36","v":{"v":7302362.318873482,"d":"$7,302,362"}},{"$f":"'(Other Computations)'!DP36","v":{"v":7299130.473799229,"d":"$7,299,130"}},{"$f":"'(Other Computations)'!DQ36","v":{"v":7295478.44580554,"d":"$7,295,478"}},{"$f":"'(Other Computations)'!DR36","v":{"v":7292273.520208626,"d":"$7,292,274"}},{"$f":"'(Other Computations)'!DS36","v":{"v":7288769.61461676,"d":"$7,288,770"}},{"$f":"'(Other Computations)'!DT36","v":{"v":7285359.193705147,"d":"$7,285,359"}},{"$f":"'(Other Computations)'!DU36","v":{"v":7281989.409957678,"d":"$7,281,989"}},{"$f":"'(Other Computations)'!DV36","v":{"v":7278626.688062654,"d":"$7,278,627"}},{"$f":"'(Other Computations)'!DW36","v":{"v":7274995.242313945,"d":"$7,274,995"}},{"$f":"'(Other Computations)'!DX36","v":{"v":7271662.037819411,"d":"$7,271,662"}},{"$f":"'(Other Computations)'!DY36","v":{"v":7268135.620534482,"d":"$7,268,136"}},{"$f":"'(Other Computations)'!DZ36","v":{"v":7264705.469096057,"d":"$7,264,705"}},{"$f":"'(Other Computations)'!EB36","v":{"v":7260920.394667247,"d":"$7,260,920"}},{"$f":"'(Other Computations)'!EC36","v":{"v":7257641.4446474975,"d":"$7,257,641"}},{"$f":"'(Other Computations)'!ED36","v":{"v":7254031.221636739,"d":"$7,254,031"}},{"$f":"'(Other Computations)'!EE36","v":{"v":7250154.133580989,"d":"$7,250,154"}},{"$f":"'(Other Computations)'!EF36","v":{"v":7246708.714806444,"d":"$7,246,709"}},{"$f":"'(Other Computations)'!EG36","v":{"v":7243235.072751825,"d":"$7,243,235"}},{"$f":"'(Other Computations)'!EH36","v":{"v":7239536.906938518,"d":"$7,239,537"}},{"$f":"'(Other Computations)'!EI36","v":{"v":7235978.48917927,"d":"$7,235,978"}},{"$f":"'(Other Computations)'!EJ36","v":{"v":7232107.261601083,"d":"$7,232,107"}},{"$f":"'(Other Computations)'!EK36","v":{"v":7228565.8670020085,"d":"$7,228,566"}},{"$f":"'(Other Computations)'!EL36","v":{"v":7225035.3969756,"d":"$7,225,035"}},{"$f":"'(Other Computations)'!EM36","v":{"v":7221416.474833369,"d":"$7,221,416"}}]
[{"$f":"'(Intermediate Computations)'!B23","v":"Jan 2010"},{"$f":"'(Intermediate Computations)'!C23","v":"Feb 2010"},{"$f":"'(Intermediate Computations)'!D23","v":"Mar 2010"},{"$f":"'(Intermediate Computations)'!E23","v":"Apr 2010"},{"$f":"'(Intermediate Computations)'!F23","v":"May 2010"},{"$f":"'(Intermediate Computations)'!G23","v":"Jun 2010"},{"$f":"'(Intermediate Computations)'!H23","v":"Jul 2010"},{"$f":"'(Intermediate Computations)'!I23","v":"Aug 2010"},{"$f":"'(Intermediate Computations)'!J23","v":"Sep 2010"},{"$f":"'(Intermediate Computations)'!K23","v":"Oct 2010"},{"$f":"'(Intermediate Computations)'!L23","v":"Nov 2010"},{"$f":"'(Intermediate Computations)'!M23","v":"Dec 2010"},{"$f":"'(Intermediate Computations)'!O23","v":"Jan 2011"},{"$f":"'(Intermediate Computations)'!P23","v":"Feb 2011"},{"$f":"'(Intermediate Computations)'!Q23","v":"Mar 2011"},{"$f":"'(Intermediate Computations)'!R23","v":"Apr 2011"},{"$f":"'(Intermediate Computations)'!S23","v":"May 2011"},{"$f":"'(Intermediate Computations)'!T23","v":"Jun 2011"},{"$f":"'(Intermediate Computations)'!U23","v":"Jul 2011"},{"$f":"'(Intermediate Computations)'!V23","v":"Aug 2011"},{"$f":"'(Intermediate Computations)'!W23","v":"Sep 2011"},{"$f":"'(Intermediate Computations)'!X23","v":"Oct 2011"},{"$f":"'(Intermediate Computations)'!Y23","v":"Nov 2011"},{"$f":"'(Intermediate Computations)'!Z23","v":"Dec 2011"},{"$f":"'(Intermediate Computations)'!AB23","v":"Jan 2012"},{"$f":"'(Intermediate Computations)'!AC23","v":"Feb 2012"},{"$f":"'(Intermediate Computations)'!AD23","v":"Mar 2012"},{"$f":"'(Intermediate Computations)'!AE23","v":"Apr 2012"},{"$f":"'(Intermediate Computations)'!AF23","v":"May 2012"},{"$f":"'(Intermediate Computations)'!AG23","v":"Jun 2012"},{"$f":"'(Intermediate Computations)'!AH23","v":"Jul 2012"},{"$f":"'(Intermediate Computations)'!AI23","v":"Aug 2012"},{"$f":"'(Intermediate Computations)'!AJ23","v":"Sep 2012"},{"$f":"'(Intermediate Computations)'!AK23","v":"Oct 2012"},{"$f":"'(Intermediate Computations)'!AL23","v":"Nov 2012"},{"$f":"'(Intermediate Computations)'!AM23","v":"Dec 2012"},{"$f":"'(Intermediate Computations)'!AO23","v":"Jan 2013"},{"$f":"'(Intermediate Computations)'!AP23","v":"Feb 2013"},{"$f":"'(Intermediate Computations)'!AQ23","v":"Mar 2013"},{"$f":"'(Intermediate Computations)'!AR23","v":"Apr 2013"},{"$f":"'(Intermediate Computations)'!AS23","v":"May 2013"},{"$f":"'(Intermediate Computations)'!AT23","v":"Jun 2013"},{"$f":"'(Intermediate Computations)'!AU23","v":"Jul 2013"},{"$f":"'(Intermediate Computations)'!AV23","v":"Aug 2013"},{"$f":"'(Intermediate Computations)'!AW23","v":"Sep 2013"},{"$f":"'(Intermediate Computations)'!AX23","v":"Oct 2013"},{"$f":"'(Intermediate Computations)'!AY23","v":"Nov 2013"},{"$f":"'(Intermediate Computations)'!AZ23","v":"Dec 2013"},{"$f":"'(Intermediate Computations)'!BB23","v":"Jan 2014"},{"$f":"'(Intermediate Computations)'!BC23","v":"Feb 2014"},{"$f":"'(Intermediate Computations)'!BD23","v":"Mar 2014"},{"$f":"'(Intermediate Computations)'!BE23","v":"Apr 2014"},{"$f":"'(Intermediate Computations)'!BF23","v":"May 2014"},{"$f":"'(Intermediate Computations)'!BG23","v":"Jun 2014"},{"$f":"'(Intermediate Computations)'!BH23","v":"Jul 2014"},{"$f":"'(Intermediate Computations)'!BI23","v":"Aug 2014"},{"$f":"'(Intermediate Computations)'!BJ23","v":"Sep 2014"},{"$f":"'(Intermediate Computations)'!BK23","v":"Oct 2014"},{"$f":"'(Intermediate Computations)'!BL23","v":"Nov 2014"},{"$f":"'(Intermediate Computations)'!BM23","v":"Dec 2014"},{"$f":"'(Intermediate Computations)'!BO23","v":"Jan 2015"},{"$f":"'(Intermediate Computations)'!BP23","v":"Feb 2015"},{"$f":"'(Intermediate Computations)'!BQ23","v":"Mar 2015"},{"$f":"'(Intermediate Computations)'!BR23","v":"Apr 2015"},{"$f":"'(Intermediate Computations)'!BS23","v":"May 2015"},{"$f":"'(Intermediate Computations)'!BT23","v":"Jun 2015"},{"$f":"'(Intermediate Computations)'!BU23","v":"Jul 2015"},{"$f":"'(Intermediate Computations)'!BV23","v":"Aug 2015"},{"$f":"'(Intermediate Computations)'!BW23","v":"Sep 2015"},{"$f":"'(Intermediate Computations)'!BX23","v":"Oct 2015"},{"$f":"'(Intermediate Computations)'!BY23","v":"Nov 2015"},{"$f":"'(Intermediate Computations)'!BZ23","v":"Dec 2015"},{"$f":"'(Intermediate Computations)'!CB23","v":"Jan 2016"},{"$f":"'(Intermediate Computations)'!CC23","v":"Feb 2016"},{"$f":"'(Intermediate Computations)'!CD23","v":"Mar 2016"},{"$f":"'(Intermediate Computations)'!CE23","v":"Apr 2016"},{"$f":"'(Intermediate Computations)'!CF23","v":"May 2016"},{"$f":"'(Intermediate Computations)'!CG23","v":"Jun 2016"},{"$f":"'(Intermediate Computations)'!CH23","v":"Jul 2016"},{"$f":"'(Intermediate Computations)'!CI23","v":"Aug 2016"},{"$f":"'(Intermediate Computations)'!CJ23","v":"Sep 2016"},{"$f":"'(Intermediate Computations)'!CK23","v":"Oct 2016"},{"$f":"'(Intermediate Computations)'!CL23","v":"Nov 2016"},{"$f":"'(Intermediate Computations)'!CM23","v":"Dec 2016"},{"$f":"'(Intermediate Computations)'!CO23","v":"Jan 2017"},{"$f":"'(Intermediate Computations)'!CP23","v":"Feb 2017"},{"$f":"'(Intermediate Computations)'!CQ23","v":"Mar 2017"},{"$f":"'(Intermediate Computations)'!CR23","v":"Apr 2017"},{"$f":"'(Intermediate Computations)'!CS23","v":"May 2017"},{"$f":"'(Intermediate Computations)'!CT23","v":"Jun 2017"},{"$f":"'(Intermediate Computations)'!CU23","v":"Jul 2017"},{"$f":"'(Intermediate Computations)'!CV23","v":"Aug 2017"},{"$f":"'(Intermediate Computations)'!CW23","v":"Sep 2017"},{"$f":"'(Intermediate Computations)'!CX23","v":"Oct 2017"},{"$f":"'(Intermediate Computations)'!CY23","v":"Nov 2017"},{"$f":"'(Intermediate Computations)'!CZ23","v":"Dec 2017"},{"$f":"'(Intermediate Computations)'!DB23","v":"Jan 2018"},{"$f":"'(Intermediate Computations)'!DC23","v":"Feb 2018"},{"$f":"'(Intermediate Computations)'!DD23","v":"Mar 2018"},{"$f":"'(Intermediate Computations)'!DE23","v":"Apr 2018"},{"$f":"'(Intermediate Computations)'!DF23","v":"May 2018"},{"$f":"'(Intermediate Computations)'!DG23","v":"Jun 2018"},{"$f":"'(Intermediate Computations)'!DH23","v":"Jul 2018"},{"$f":"'(Intermediate Computations)'!DI23","v":"Aug 2018"},{"$f":"'(Intermediate Computations)'!DJ23","v":"Sep 2018"},{"$f":"'(Intermediate Computations)'!DK23","v":"Oct 2018"},{"$f":"'(Intermediate Computations)'!DL23","v":"Nov 2018"},{"$f":"'(Intermediate Computations)'!DM23","v":"Dec 2018"},{"$f":"'(Intermediate Computations)'!DO23","v":"Jan 2019"},{"$f":"'(Intermediate Computations)'!DP23","v":"Feb 2019"},{"$f":"'(Intermediate Computations)'!DQ23","v":"Mar 2019"},{"$f":"'(Intermediate Computations)'!DR23","v":"Apr 2019"},{"$f":"'(Intermediate Computations)'!DS23","v":"May 2019"},{"$f":"'(Intermediate Computations)'!DT23","v":"Jun 2019"},{"$f":"'(Intermediate Computations)'!DU23","v":"Jul 2019"},{"$f":"'(Intermediate Computations)'!DV23","v":"Aug 2019"},{"$f":"'(Intermediate Computations)'!DW23","v":"Sep 2019"},{"$f":"'(Intermediate Computations)'!DX23","v":"Oct 2019"},{"$f":"'(Intermediate Computations)'!DY23","v":"Nov 2019"},{"$f":"'(Intermediate Computations)'!DZ23","v":"Dec 2019"},{"$f":"'(Intermediate Computations)'!EB23","v":"Jan 2020"},{"$f":"'(Intermediate Computations)'!EC23","v":"Feb 2020"},{"$f":"'(Intermediate Computations)'!ED23","v":"Mar 2020"},{"$f":"'(Intermediate Computations)'!EE23","v":"Apr 2020"},{"$f":"'(Intermediate Computations)'!EF23","v":"May 2020"},{"$f":"'(Intermediate Computations)'!EG23","v":"Jun 2020"},{"$f":"'(Intermediate Computations)'!EH23","v":"Jul 2020"},{"$f":"'(Intermediate Computations)'!EI23","v":"Aug 2020"},{"$f":"'(Intermediate Computations)'!EJ23","v":"Sep 2020"},{"$f":"'(Intermediate Computations)'!EK23","v":"Oct 2020"},{"$f":"'(Intermediate Computations)'!EL23","v":"Nov 2020"},{"$f":"'(Intermediate Computations)'!EM23","v":"Dec 2020"}]
[{"$f":"'(Intermediate Computations)'!B20","v":"2010-01-01"},{"$f":"'(Intermediate Computations)'!C20","v":"2010-02-01"},{"$f":"'(Intermediate Computations)'!D20","v":"2010-03-01"},{"$f":"'(Intermediate Computations)'!E20","v":"2010-04-01"},{"$f":"'(Intermediate Computations)'!F20","v":"2010-05-01"},{"$f":"'(Intermediate Computations)'!G20","v":"2010-06-01"},{"$f":"'(Intermediate Computations)'!H20","v":"2010-07-01"},{"$f":"'(Intermediate Computations)'!I20","v":"2010-08-01"},{"$f":"'(Intermediate Computations)'!J20","v":"2010-09-01"},{"$f":"'(Intermediate Computations)'!K20","v":"2010-10-01"},{"$f":"'(Intermediate Computations)'!L20","v":"2010-11-01"},{"$f":"'(Intermediate Computations)'!M20","v":"2010-12-01"},{"$f":"'(Intermediate Computations)'!O20","v":"2011-01-01"},{"$f":"'(Intermediate Computations)'!P20","v":"2011-02-01"},{"$f":"'(Intermediate Computations)'!Q20","v":"2011-03-01"},{"$f":"'(Intermediate Computations)'!R20","v":"2011-04-01"},{"$f":"'(Intermediate Computations)'!S20","v":"2011-05-01"},{"$f":"'(Intermediate Computations)'!T20","v":"2011-06-01"},{"$f":"'(Intermediate Computations)'!U20","v":"2011-07-01"},{"$f":"'(Intermediate Computations)'!V20","v":"2011-08-01"},{"$f":"'(Intermediate Computations)'!W20","v":"2011-09-01"},{"$f":"'(Intermediate Computations)'!X20","v":"2011-10-01"},{"$f":"'(Intermediate Computations)'!Y20","v":"2011-11-01"},{"$f":"'(Intermediate Computations)'!Z20","v":"2011-12-01"},{"$f":"'(Intermediate Computations)'!AB20","v":"2012-01-01"},{"$f":"'(Intermediate Computations)'!AC20","v":"2012-02-01"},{"$f":"'(Intermediate Computations)'!AD20","v":"2012-03-01"},{"$f":"'(Intermediate Computations)'!AE20","v":"2012-04-01"},{"$f":"'(Intermediate Computations)'!AF20","v":"2012-05-01"},{"$f":"'(Intermediate Computations)'!AG20","v":"2012-06-01"},{"$f":"'(Intermediate Computations)'!AH20","v":"2012-07-01"},{"$f":"'(Intermediate Computations)'!AI20","v":"2012-08-01"},{"$f":"'(Intermediate Computations)'!AJ20","v":"2012-09-01"},{"$f":"'(Intermediate Computations)'!AK20","v":"2012-10-01"},{"$f":"'(Intermediate Computations)'!AL20","v":"2012-11-01"},{"$f":"'(Intermediate Computations)'!AM20","v":"2012-12-01"},{"$f":"'(Intermediate Computations)'!AO20","v":"2013-01-01"},{"$f":"'(Intermediate Computations)'!AP20","v":"2013-02-01"},{"$f":"'(Intermediate Computations)'!AQ20","v":"2013-03-01"},{"$f":"'(Intermediate Computations)'!AR20","v":"2013-04-01"},{"$f":"'(Intermediate Computations)'!AS20","v":"2013-05-01"},{"$f":"'(Intermediate Computations)'!AT20","v":"2013-06-01"},{"$f":"'(Intermediate Computations)'!AU20","v":"2013-07-01"},{"$f":"'(Intermediate Computations)'!AV20","v":"2013-08-01"},{"$f":"'(Intermediate Computations)'!AW20","v":"2013-09-01"},{"$f":"'(Intermediate Computations)'!AX20","v":"2013-10-01"},{"$f":"'(Intermediate Computations)'!AY20","v":"2013-11-01"},{"$f":"'(Intermediate Computations)'!AZ20","v":"2013-12-01"},{"$f":"'(Intermediate Computations)'!BB20","v":"2014-01-01"},{"$f":"'(Intermediate Computations)'!BC20","v":"2014-02-01"},{"$f":"'(Intermediate Computations)'!BD20","v":"2014-03-01"},{"$f":"'(Intermediate Computations)'!BE20","v":"2014-04-01"},{"$f":"'(Intermediate Computations)'!BF20","v":"2014-05-01"},{"$f":"'(Intermediate Computations)'!BG20","v":"2014-06-01"},{"$f":"'(Intermediate Computations)'!BH20","v":"2014-07-01"},{"$f":"'(Intermediate Computations)'!BI20","v":"2014-08-01"},{"$f":"'(Intermediate Computations)'!BJ20","v":"2014-09-01"},{"$f":"'(Intermediate Computations)'!BK20","v":"2014-10-01"},{"$f":"'(Intermediate Computations)'!BL20","v":"2014-11-01"},{"$f":"'(Intermediate Computations)'!BM20","v":"2014-12-01"},{"$f":"'(Intermediate Computations)'!BO20","v":"2015-01-01"},{"$f":"'(Intermediate Computations)'!BP20","v":"2015-02-01"},{"$f":"'(Intermediate Computations)'!BQ20","v":"2015-03-01"},{"$f":"'(Intermediate Computations)'!BR20","v":"2015-04-01"},{"$f":"'(Intermediate Computations)'!BS20","v":"2015-05-01"},{"$f":"'(Intermediate Computations)'!BT20","v":"2015-06-01"},{"$f":"'(Intermediate Computations)'!BU20","v":"2015-07-01"},{"$f":"'(Intermediate Computations)'!BV20","v":"2015-08-01"},{"$f":"'(Intermediate Computations)'!BW20","v":"2015-09-01"},{"$f":"'(Intermediate Computations)'!BX20","v":"2015-10-01"},{"$f":"'(Intermediate Computations)'!BY20","v":"2015-11-01"},{"$f":"'(Intermediate Computations)'!BZ20","v":"2015-12-01"},{"$f":"'(Intermediate Computations)'!CB20","v":"2016-01-01"},{"$f":"'(Intermediate Computations)'!CC20","v":"2016-02-01"},{"$f":"'(Intermediate Computations)'!CD20","v":"2016-03-01"},{"$f":"'(Intermediate Computations)'!CE20","v":"2016-04-01"},{"$f":"'(Intermediate Computations)'!CF20","v":"2016-05-01"},{"$f":"'(Intermediate Computations)'!CG20","v":"2016-06-01"},{"$f":"'(Intermediate Computations)'!CH20","v":"2016-07-01"},{"$f":"'(Intermediate Computations)'!CI20","v":"2016-08-01"},{"$f":"'(Intermediate Computations)'!CJ20","v":"2016-09-01"},{"$f":"'(Intermediate Computations)'!CK20","v":"2016-10-01"},{"$f":"'(Intermediate Computations)'!CL20","v":"2016-11-01"},{"$f":"'(Intermediate Computations)'!CM20","v":"2016-12-01"},{"$f":"'(Intermediate Computations)'!CO20","v":"2017-01-01"},{"$f":"'(Intermediate Computations)'!CP20","v":"2017-02-01"},{"$f":"'(Intermediate Computations)'!CQ20","v":"2017-03-01"},{"$f":"'(Intermediate Computations)'!CR20","v":"2017-04-01"},{"$f":"'(Intermediate Computations)'!CS20","v":"2017-05-01"},{"$f":"'(Intermediate Computations)'!CT20","v":"2017-06-01"},{"$f":"'(Intermediate Computations)'!CU20","v":"2017-07-01"},{"$f":"'(Intermediate Computations)'!CV20","v":"2017-08-01"},{"$f":"'(Intermediate Computations)'!CW20","v":"2017-09-01"},{"$f":"'(Intermediate Computations)'!CX20","v":"2017-10-01"},{"$f":"'(Intermediate Computations)'!CY20","v":"2017-11-01"},{"$f":"'(Intermediate Computations)'!CZ20","v":"2017-12-01"},{"$f":"'(Intermediate Computations)'!DB20","v":"2018-01-01"},{"$f":"'(Intermediate Computations)'!DC20","v":"2018-02-01"},{"$f":"'(Intermediate Computations)'!DD20","v":"2018-03-01"},{"$f":"'(Intermediate Computations)'!DE20","v":"2018-04-01"},{"$f":"'(Intermediate Computations)'!DF20","v":"2018-05-01"},{"$f":"'(Intermediate Computations)'!DG20","v":"2018-06-01"},{"$f":"'(Intermediate Computations)'!DH20","v":"2018-07-01"},{"$f":"'(Intermediate Computations)'!DI20","v":"2018-08-01"},{"$f":"'(Intermediate Computations)'!DJ20","v":"2018-09-01"},{"$f":"'(Intermediate Computations)'!DK20","v":"2018-10-01"},{"$f":"'(Intermediate Computations)'!DL20","v":"2018-11-01"},{"$f":"'(Intermediate Computations)'!DM20","v":"2018-12-01"},{"$f":"'(Intermediate Computations)'!DO20","v":"2019-01-01"},{"$f":"'(Intermediate Computations)'!DP20","v":"2019-02-01"},{"$f":"'(Intermediate Computations)'!DQ20","v":"2019-03-01"},{"$f":"'(Intermediate Computations)'!DR20","v":"2019-04-01"},{"$f":"'(Intermediate Computations)'!DS20","v":"2019-05-01"},{"$f":"'(Intermediate Computations)'!DT20","v":"2019-06-01"},{"$f":"'(Intermediate Computations)'!DU20","v":"2019-07-01"},{"$f":"'(Intermediate Computations)'!DV20","v":"2019-08-01"},{"$f":"'(Intermediate Computations)'!DW20","v":"2019-09-01"},{"$f":"'(Intermediate Computations)'!DX20","v":"2019-10-01"},{"$f":"'(Intermediate Computations)'!DY20","v":"2019-11-01"},{"$f":"'(Intermediate Computations)'!DZ20","v":"2019-12-01"},{"$f":"'(Intermediate Computations)'!EB20","v":"2020-01-01"},{"$f":"'(Intermediate Computations)'!EC20","v":"2020-02-01"},{"$f":"'(Intermediate Computations)'!ED20","v":"2020-03-01"},{"$f":"'(Intermediate Computations)'!EE20","v":"2020-04-01"},{"$f":"'(Intermediate Computations)'!EF20","v":"2020-05-01"},{"$f":"'(Intermediate Computations)'!EG20","v":"2020-06-01"},{"$f":"'(Intermediate Computations)'!EH20","v":"2020-07-01"},{"$f":"'(Intermediate Computations)'!EI20","v":"2020-08-01"},{"$f":"'(Intermediate Computations)'!EJ20","v":"2020-09-01"},{"$f":"'(Intermediate Computations)'!EK20","v":"2020-10-01"},{"$f":"'(Intermediate Computations)'!EL20","v":"2020-11-01"},{"$f":"'(Intermediate Computations)'!EM20","v":"2020-12-01"}]
[{"$f":"'Trial 1'!B12","v":{"v":728000,"d":"$728,000"}},{"$f":"'Trial 1'!C12","v":{"v":727832.6492085445,"d":"$727,833"}},{"$f":"'Trial 1'!D12","v":{"v":727541.2255367488,"d":"$727,541"}},{"$f":"'Trial 1'!E12","v":{"v":727336.3538515164,"d":"$727,336"}},{"$f":"'Trial 1'!F12","v":{"v":727093.1956668834,"d":"$727,093"}},{"$f":"'Trial 1'!G12","v":{"v":726862.8352431082,"d":"$726,863"}},{"$f":"'Trial 1'!H12","v":{"v":726646.4380292482,"d":"$726,646"}},{"$f":"'Trial 1'!I12","v":{"v":726469.4787142742,"d":"$726,469"}},{"$f":"'Trial 1'!J12","v":{"v":726240.7646197481,"d":"$726,241"}},{"$f":"'Trial 1'!K12","v":{"v":726029.771763871,"d":"$726,030"}},{"$f":"'Trial 1'!L12","v":{"v":725818.3897609586,"d":"$725,818"}},{"$f":"'Trial 1'!M12","v":{"v":725590.0040755601,"d":"$725,590"}},{"$f":"'Trial 1'!O12","v":{"v":725413.4623357293,"d":"$725,413"}},{"$f":"'Trial 1'!P12","v":{"v":725146.8741572894,"d":"$725,147"}},{"$f":"'Trial 1'!Q12","v":{"v":724953.1027618427,"d":"$724,953"}},{"$f":"'Trial 1'!R12","v":{"v":724706.1441437142,"d":"$724,706"}},{"$f":"'Trial 1'!S12","v":{"v":724465.5266565881,"d":"$724,466"}},{"$f":"'Trial 1'!T12","v":{"v":724198.5994058314,"d":"$724,199"}},{"$f":"'Trial 1'!U12","v":{"v":723900.1368817012,"d":"$723,900"}},{"$f":"'Trial 1'!V12","v":{"v":723620.2681331143,"d":"$723,620"}},{"$f":"'Trial 1'!W12","v":{"v":723369.0431581875,"d":"$723,369"}},{"$f":"'Trial 1'!X12","v":{"v":723137.4996520058,"d":"$723,137"}},{"$f":"'Trial 1'!Y12","v":{"v":722890.2736541035,"d":"$722,890"}},{"$f":"'Trial 1'!Z12","v":{"v":722694.1787039854,"d":"$722,694"}},{"$f":"'Trial 1'!AB12","v":{"v":722431.1630024448,"d":"$722,431"}},{"$f":"'Trial 1'!AC12","v":{"v":722163.3175799977,"d":"$722,163"}},{"$f":"'Trial 1'!AD12","v":{"v":721921.4266295972,"d":"$721,921"}},{"$f":"'Trial 1'!AE12","v":{"v":721715.001628829,"d":"$721,715"}},{"$f":"'Trial 1'!AF12","v":{"v":721412.9150669897,"d":"$721,413"}},{"$f":"'Trial 1'!AG12","v":{"v":721109.8611793566,"d":"$721,110"}},{"$f":"'Trial 1'!AH12","v":{"v":720857.9932831294,"d":"$720,858"}},{"$f":"'Trial 1'!AI12","v":{"v":720598.6568898153,"d":"$720,599"}},{"$f":"'Trial 1'!AJ12","v":{"v":720301.8149476653,"d":"$720,302"}},{"$f":"'Trial 1'!AK12","v":{"v":719988.0093381293,"d":"$719,988"}},{"$f":"'Trial 1'!AL12","v":{"v":719732.5860711231,"d":"$719,733"}},{"$f":"'Trial 1'!AM12","v":{"v":719515.5327477482,"d":"$719,516"}},{"$f":"'Trial 1'!AO12","v":{"v":719303.5230903772,"d":"$719,304"}},{"$f":"'Trial 1'!AP12","v":{"v":718942.1810429587,"d":"$718,942"}},{"$f":"'Trial 1'!AQ12","v":{"v":718654.4966402063,"d":"$718,654"}},{"$f":"'Trial 1'!AR12","v":{"v":718436.7788495173,"d":"$718,437"}},{"$f":"'Trial 1'!AS12","v":{"v":718140.1224980619,"d":"$718,140"}},{"$f":"'Trial 1'!AT12","v":{"v":717836.4192426656,"d":"$717,836"}},{"$f":"'Trial 1'!AU12","v":{"v":717526.8578453831,"d":"$717,527"}},{"$f":"'Trial 1'!AV12","v":{"v":717224.7510476018,"d":"$717,225"}},{"$f":"'Trial 1'!AW12","v":{"v":716985.417125937,"d":"$716,985"}},{"$f":"'Trial 1'!AX12","v":{"v":716685.6909681254,"d":"$716,686"}},{"$f":"'Trial 1'!AY12","v":{"v":716332.4774423817,"d":"$716,332"}},{"$f":"'Trial 1'!AZ12","v":{"v":716110.4932678768,"d":"$716,110"}},{"$f":"'Trial 1'!BB12","v":{"v":715806.8045392719,"d":"$715,807"}},{"$f":"'Trial 1'!BC12","v":{"v":715482.3599108452,"d":"$715,482"}},{"$f":"'Trial 1'!BD12","v":{"v":715206.758816982,"d":"$715,207"}},{"$f":"'Trial 1'!BE12","v":{"v":714963.4858251271,"d":"$714,963"}},{"$f":"'Trial 1'!BF12","v":{"v":714700.4580140217,"d":"$714,700"}},{"$f":"'Trial 1'!BG12","v":{"v":714373.866233242,"d":"$714,374"}},{"$f":"'Trial 1'!BH12","v":{"v":714114.6532909247,"d":"$714,115"}},{"$f":"'Trial 1'!BI12","v":{"v":713860.63661446,"d":"$713,861"}},{"$f":"'Trial 1'!BJ12","v":{"v":713650.2620605121,"d":"$713,650"}},{"$f":"'Trial 1'!BK12","v":{"v":713414.2777837949,"d":"$713,414"}},{"$f":"'Trial 1'!BL12","v":{"v":713197.1975028695,"d":"$713,197"}},{"$f":"'Trial 1'!BM12","v":{"v":712930.1588234778,"d":"$712,930"}},{"$f":"'Trial 1'!BO12","v":{"v":712598.3228602847,"d":"$712,598"}},{"$f":"'Trial 1'!BP12","v":{"v":712350.384895082,"d":"$712,350"}},{"$f":"'Trial 1'!BQ12","v":{"v":712116.0600039647,"d":"$712,116"}},{"$f":"'Trial 1'!BR12","v":{"v":711799.8676631018,"d":"$711,800"}},{"$f":"'Trial 1'!BS12","v":{"v":711489.0795632104,"d":"$711,489"}},{"$f":"'Trial 1'!BT12","v":{"v":711142.4165757145,"d":"$711,142"}},{"$f":"'Trial 1'!BU12","v":{"v":710851.75239222,"d":"$710,852"}},{"$f":"'Trial 1'!BV12","v":{"v":710561.4017719263,"d":"$710,561"}},{"$f":"'Trial 1'!BW12","v":{"v":710256.7755657935,"d":"$710,257"}},{"$f":"'Trial 1'!BX12","v":{"v":709998.4297687318,"d":"$709,998"}},{"$f":"'Trial 1'!BY12","v":{"v":709661.365164572,"d":"$709,661"}},{"$f":"'Trial 1'!BZ12","v":{"v":709367.5205451878,"d":"$709,368"}},{"$f":"'Trial 1'!CB12","v":{"v":709067.9569514117,"d":"$709,068"}},{"$f":"'Trial 1'!CC12","v":{"v":708762.1400174904,"d":"$708,762"}},{"$f":"'Trial 1'!CD12","v":{"v":708417.8122226644,"d":"$708,418"}},{"$f":"'Trial 1'!CE12","v":{"v":708040.0219465428,"d":"$708,040"}},{"$f":"'Trial 1'!CF12","v":{"v":707751.119998203,"d":"$707,751"}},{"$f":"'Trial 1'!CG12","v":{"v":707468.6710254251,"d":"$707,469"}},{"$f":"'Trial 1'!CH12","v":{"v":707123.4029909574,"d":"$707,123"}},{"$f":"'Trial 1'!CI12","v":{"v":706838.7274616556,"d":"$706,839"}},{"$f":"'Trial 1'!CJ12","v":{"v":706456.739011698,"d":"$706,457"}},{"$f":"'Trial 1'!CK12","v":{"v":706124.6524647055,"d":"$706,125"}},{"$f":"'Trial 1'!CL12","v":{"v":705840.2369359623,"d":"$705,840"}},{"$f":"'Trial 1'!CM12","v":{"v":705544.0697088464,"d":"$705,544"}},{"$f":"'Trial 1'!CO12","v":{"v":705173.1447743592,"d":"$705,173"}},{"$f":"'Trial 1'!CP12","v":{"v":704777.3443501838,"d":"$704,777"}},{"$f":"'Trial 1'!CQ12","v":{"v":704466.9964199982,"d":"$704,467"}},{"$f":"'Trial 1'!CR12","v":{"v":704183.2442868962,"d":"$704,183"}},{"$f":"'Trial 1'!CS12","v":{"v":703861.3168346676,"d":"$703,861"}},{"$f":"'Trial 1'!CT12","v":{"v":703495.4953923519,"d":"$703,495"}},{"$f":"'Trial 1'!CU12","v":{"v":703129.771688923,"d":"$703,130"}},{"$f":"'Trial 1'!CV12","v":{"v":702754.9359706977,"d":"$702,755"}},{"$f":"'Trial 1'!CW12","v":{"v":702411.849416791,"d":"$702,412"}},{"$f":"'Trial 1'!CX12","v":{"v":702031.2113474907,"d":"$702,031"}},{"$f":"'Trial 1'!CY12","v":{"v":701636.0165415265,"d":"$701,636"}},{"$f":"'Trial 1'!CZ12","v":{"v":701340.663276057,"d":"$701,341"}},{"$f":"'Trial 1'!DB12","v":{"v":701041.4002009855,"d":"$701,041"}},{"$f":"'Trial 1'!DC12","v":{"v":700646.8217840105,"d":"$700,647"}},{"$f":"'Trial 1'!DD12","v":{"v":700313.7762045995,"d":"$700,314"}},{"$f":"'Trial 1'!DE12","v":{"v":699991.9991635701,"d":"$699,992"}},{"$f":"'Trial 1'!DF12","v":{"v":699711.8876986959,"d":"$699,712"}},{"$f":"'Trial 1'!DG12","v":{"v":699318.2572907339,"d":"$699,318"}},{"$f":"'Trial 1'!DH12","v":{"v":698957.0063325627,"d":"$698,957"}},{"$f":"'Trial 1'!DI12","v":{"v":698666.7032392644,"d":"$698,667"}},{"$f":"'Trial 1'!DJ12","v":{"v":698337.3352231808,"d":"$698,337"}},{"$f":"'Trial 1'!DK12","v":{"v":698082.5248437176,"d":"$698,083"}},{"$f":"'Trial 1'!DL12","v":{"v":697746.2595666205,"d":"$697,746"}},{"$f":"'Trial 1'!DM12","v":{"v":697420.6021969762,"d":"$697,421"}},{"$f":"'Trial 1'!DO12","v":{"v":697143.9712240833,"d":"$697,144"}},{"$f":"'Trial 1'!DP12","v":{"v":696758.076669512,"d":"$696,758"}},{"$f":"'Trial 1'!DQ12","v":{"v":696372.3916615235,"d":"$696,372"}},{"$f":"'Trial 1'!DR12","v":{"v":696036.4932746333,"d":"$696,036"}},{"$f":"'Trial 1'!DS12","v":{"v":695696.3433446363,"d":"$695,696"}},{"$f":"'Trial 1'!DT12","v":{"v":695332.5950844638,"d":"$695,333"}},{"$f":"'Trial 1'!DU12","v":{"v":694978.1786282154,"d":"$694,978"}},{"$f":"'Trial 1'!DV12","v":{"v":694709.9996299236,"d":"$694,710"}},{"$f":"'Trial 1'!DW12","v":{"v":694406.5526644755,"d":"$694,407"}},{"$f":"'Trial 1'!DX12","v":{"v":694021.6165584446,"d":"$694,022"}},{"$f":"'Trial 1'!DY12","v":{"v":693644.1543524982,"d":"$693,644"}},{"$f":"'Trial 1'!DZ12","v":{"v":693297.0525832518,"d":"$693,297"}},{"$f":"'Trial 1'!EB12","v":{"v":692961.9058783497,"d":"$692,962"}},{"$f":"'Trial 1'!EC12","v":{"v":692630.9686558668,"d":"$692,631"}},{"$f":"'Trial 1'!ED12","v":{"v":692241.7657389755,"d":"$692,242"}},{"$f":"'Trial 1'!EE12","v":{"v":691832.1717229036,"d":"$691,832"}},{"$f":"'Trial 1'!EF12","v":{"v":691545.5307272105,"d":"$691,546"}},{"$f":"'Trial 1'!EG12","v":{"v":691165.789000627,"d":"$691,166"}},{"$f":"'Trial 1'!EH12","v":{"v":690810.5101758918,"d":"$690,811"}},{"$f":"'Trial 1'!EI12","v":{"v":690509.5684334302,"d":"$690,510"}},{"$f":"'Trial 1'!EJ12","v":{"v":690120.2439181262,"d":"$690,120"}},{"$f":"'Trial 1'!EK12","v":{"v":689745.6793565617,"d":"$689,746"}},{"$f":"'Trial 1'!EL12","v":{"v":689354.654315927,"d":"$689,355"}},{"$f":"'Trial 1'!EM12","v":{"v":689005.6109411243,"d":"$689,006"}}]
[{"$f":"'Trial 2'!B12","v":{"v":728000,"d":"$728,000"}},{"$f":"'Trial 2'!C12","v":{"v":727792.4516384226,"d":"$727,792"}},{"$f":"'Trial 2'!D12","v":{"v":727647.4268810212,"d":"$727,647"}},{"$f":"'Trial 2'!E12","v":{"v":727447.8093794861,"d":"$727,448"}},{"$f":"'Trial 2'!F12","v":{"v":727235.7421560957,"d":"$727,236"}},{"$f":"'Trial 2'!G12","v":{"v":727051.5104073923,"d":"$727,052"}},{"$f":"'Trial 2'!H12","v":{"v":726864.1307199782,"d":"$726,864"}},{"$f":"'Trial 2'!I12","v":{"v":726657.4470979015,"d":"$726,657"}},{"$f":"'Trial 2'!J12","v":{"v":726381.4967534164,"d":"$726,381"}},{"$f":"'Trial 2'!K12","v":{"v":726242.0325286535,"d":"$726,242"}},{"$f":"'Trial 2'!L12","v":{"v":725977.5225937543,"d":"$725,978"}},{"$f":"'Trial 2'!M12","v":{"v":725761.0407683664,"d":"$725,761"}},{"$f":"'Trial 2'!O12","v":{"v":725596.5236650602,"d":"$725,597"}},{"$f":"'Trial 2'!P12","v":{"v":725328.0593237625,"d":"$725,328"}},{"$f":"'Trial 2'!Q12","v":{"v":725028.1796834029,"d":"$725,028"}},{"$f":"'Trial 2'!R12","v":{"v":724869.6649696103,"d":"$724,870"}},{"$f":"'Trial 2'!S12","v":{"v":724621.7890609213,"d":"$724,622"}},{"$f":"'Trial 2'!T12","v":{"v":724416.1532679118,"d":"$724,416"}},{"$f":"'Trial 2'!U12","v":{"v":724073.843674456,"d":"$724,074"}},{"$f":"'Trial 2'!V12","v":{"v":723771.0413154945,"d":"$723,771"}},{"$f":"'Trial 2'!W12","v":{"v":723503.4161519842,"d":"$723,503"}},{"$f":"'Trial 2'!X12","v":{"v":723327.4490501985,"d":"$723,327"}},{"$f":"'Trial 2'!Y12","v":{"v":723100.0237484749,"d":"$723,100"}},{"$f":"'Trial 2'!Z12","v":{"v":722892.7960893587,"d":"$722,893"}},{"$f":"'Trial 2'!AB12","v":{"v":722622.3560400014,"d":"$722,622"}},{"$f":"'Trial 2'!AC12","v":{"v":722339.2863756688,"d":"$722,339"}},{"$f":"'Trial 2'!AD12","v":{"v":722009.4608407007,"d":"$722,009"}},{"$f":"'Trial 2'!AE12","v":{"v":721774.7080816443,"d":"$721,775"}},{"$f":"'Trial 2'!AF12","v":{"v":721497.363099563,"d":"$721,497"}},{"$f":"'Trial 2'!AG12","v":{"v":721235.695616984,"d":"$721,236"}},{"$f":"'Trial 2'!AH12","v":{"v":720954.6753008805,"d":"$720,955"}},{"$f":"'Trial 2'!AI12","v":{"v":720690.6916169378,"d":"$720,691"}},{"$f":"'Trial 2'!AJ12","v":{"v":720400.312765908,"d":"$720,400"}},{"$f":"'Trial 2'!AK12","v":{"v":720142.0365449936,"d":"$720,142"}},{"$f":"'Trial 2'!AL12","v":{"v":719920.8346111111,"d":"$719,921"}},{"$f":"'Trial 2'!AM12","v":{"v":719637.4047712341,"d":"$719,637"}},{"$f":"'Trial 2'!AO12","v":{"v":719305.54217403,"d":"$719,306"}},{"$f":"'Trial 2'!AP12","v":{"v":718983.0306284388,"d":"$718,983"}},{"$f":"'Trial 2'!AQ12","v":{"v":718659.8214613998,"d":"$718,660"}},{"$f":"'Trial 2'!AR12","v":{"v":718406.7070700603,"d":"$718,407"}},{"$f":"'Trial 2'!AS12","v":{"v":718098.186915523,"d":"$718,098"}},{"$f":"'Trial 2'!AT12","v":{"v":717759.1238235809,"d":"$717,759"}},{"$f":"'Trial 2'!AU12","v":{"v":717464.8700462431,"d":"$717,465"}},{"$f":"'Trial 2'!AV12","v":{"v":717230.7521489952,"d":"$717,231"}},{"$f":"'Trial 2'!AW12","v":{"v":716965.2235980658,"d":"$716,965"}},{"$f":"'Trial 2'!AX12","v":{"v":716738.3150056673,"d":"$716,738"}},{"$f":"'Trial 2'!AY12","v":{"v":716472.2598495508,"d":"$716,472"}},{"$f":"'Trial 2'!AZ12","v":{"v":716097.6163702408,"d":"$716,098"}},{"$f":"'Trial 2'!BB12","v":{"v":715778.3773678781,"d":"$715,778"}},{"$f":"'Trial 2'!BC12","v":{"v":715487.5779009612,"d":"$715,488"}},{"$f":"'Trial 2'!BD12","v":{"v":715223.9371297046,"d":"$715,224"}},{"$f":"'Trial 2'!BE12","v":{"v":714896.2285234303,"d":"$714,896"}},{"$f":"'Trial 2'!BF12","v":{"v":714574.99399209,"d":"$714,575"}},{"$f":"'Trial 2'!BG12","v":{"v":714332.6612935705,"d":"$714,333"}},{"$f":"'Trial 2'!BH12","v":{"v":714025.282937873,"d":"$714,025"}},{"$f":"'Trial 2'!BI12","v":{"v":713685.9323819338,"d":"$713,686"}},{"$f":"'Trial 2'!BJ12","v":{"v":713404.7308526504,"d":"$713,405"}},{"$f":"'Trial 2'!BK12","v":{"v":713085.797603858,"d":"$713,086"}},{"$f":"'Trial 2'!BL12","v":{"v":712707.5448434523,"d":"$712,708"}},{"$f":"'Trial 2'!BM12","v":{"v":712327.505412603,"d":"$712,328"}},{"$f":"'Trial 2'!BO12","v":{"v":712092.4042933019,"d":"$712,092"}},{"$f":"'Trial 2'!BP12","v":{"v":711743.265703353,"d":"$711,743"}},{"$f":"'Trial 2'!BQ12","v":{"v":711436.0271144937,"d":"$711,436"}},{"$f":"'Trial 2'!BR12","v":{"v":711145.6567919068,"d":"$711,146"}},{"$f":"'Trial 2'!BS12","v":{"v":710847.7483828989,"d":"$710,848"}},{"$f":"'Trial 2'!BT12","v":{"v":710532.2990664938,"d":"$710,532"}},{"$f":"'Trial 2'!BU12","v":{"v":710142.1171653351,"d":"$710,142"}},{"$f":"'Trial 2'!BV12","v":{"v":709795.0352734618,"d":"$709,795"}},{"$f":"'Trial 2'!BW12","v":{"v":709534.2672237848,"d":"$709,534"}},{"$f":"'Trial 2'!BX12","v":{"v":709224.6605509184,"d":"$709,225"}},{"$f":"'Trial 2'!BY12","v":{"v":708882.7294901012,"d":"$708,883"}},{"$f":"'Trial 2'!BZ12","v":{"v":708605.776934794,"d":"$708,606"}},{"$f":"'Trial 2'!CB12","v":{"v":708305.3530766944,"d":"$708,305"}},{"$f":"'Trial 2'!CC12","v":{"v":708059.7482592985,"d":"$708,060"}},{"$f":"'Trial 2'!CD12","v":{"v":707794.0320007275,"d":"$707,794"}},{"$f":"'Trial 2'!CE12","v":{"v":707474.226854529,"d":"$707,474"}},{"$f":"'Trial 2'!CF12","v":{"v":707156.9231058428,"d":"$707,157"}},{"$f":"'Trial 2'!CG12","v":{"v":706868.1294457224,"d":"$706,868"}},{"$f":"'Trial 2'!CH12","v":{"v":706515.5723593448,"d":"$706,516"}},{"$f":"'Trial 2'!CI12","v":{"v":706225.3282281223,"d":"$706,225"}},{"$f":"'Trial 2'!CJ12","v":{"v":705937.1814711086,"d":"$705,937"}},{"$f":"'Trial 2'!CK12","v":{"v":705691.3776180197,"d":"$705,691"}},{"$f":"'Trial 2'!CL12","v":{"v":705303.5312370631,"d":"$705,304"}},{"$f":"'Trial 2'!CM12","v":{"v":704982.4965124377,"d":"$704,982"}},{"$f":"'Trial 2'!CO12","v":{"v":704722.6986487332,"d":"$704,723"}},{"$f":"'Trial 2'!CP12","v":{"v":704367.0725985537,"d":"$704,367"}},{"$f":"'Trial 2'!CQ12","v":{"v":704030.9699380872,"d":"$704,031"}},{"$f":"'Trial 2'!CR12","v":{"v":703718.8071566534,"d":"$703,719"}},{"$f":"'Trial 2'!CS12","v":{"v":703360.5248827414,"d":"$703,361"}},{"$f":"'Trial 2'!CT12","v":{"v":703048.2473972715,"d":"$703,048"}},{"$f":"'Trial 2'!CU12","v":{"v":702653.8633995488,"d":"$702,654"}},{"$f":"'Trial 2'!CV12","v":{"v":702391.2522408277,"d":"$702,391"}},{"$f":"'Trial 2'!CW12","v":{"v":701974.8837827399,"d":"$701,975"}},{"$f":"'Trial 2'!CX12","v":{"v":701669.7551774392,"d":"$701,670"}},{"$f":"'Trial 2'!CY12","v":{"v":701427.0455658421,"d":"$701,427"}},{"$f":"'Trial 2'!CZ12","v":{"v":701041.7895216033,"d":"$701,042"}},{"$f":"'Trial 2'!DB12","v":{"v":700707.89021205,"d":"$700,708"}},{"$f":"'Trial 2'!DC12","v":{"v":700376.0501411738,"d":"$700,376"}},{"$f":"'Trial 2'!DD12","v":{"v":700027.3715348414,"d":"$700,027"}},{"$f":"'Trial 2'!DE12","v":{"v":699708.2019827685,"d":"$699,708"}},{"$f":"'Trial 2'!DF12","v":{"v":699372.8651378565,"d":"$699,373"}},{"$f":"'Trial 2'!DG12","v":{"v":699082.2688161032,"d":"$699,082"}},{"$f":"'Trial 2'!DH12","v":{"v":698714.3542403469,"d":"$698,714"}},{"$f":"'Trial 2'!DI12","v":{"v":698355.7645787675,"d":"$698,356"}},{"$f":"'Trial 2'!DJ12","v":{"v":698001.8345565015,"d":"$698,002"}},{"$f":"'Trial 2'!DK12","v":{"v":697669.8310743737,"d":"$697,670"}},{"$f":"'Trial 2'!DL12","v":{"v":697377.0240967711,"d":"$697,377"}},{"$f":"'Trial 2'!DM12","v":{"v":697113.0514676842,"d":"$697,113"}},{"$f":"'Trial 2'!DO12","v":{"v":696702.8365946541,"d":"$696,703"}},{"$f":"'Trial 2'!DP12","v":{"v":696327.6548419218,"d":"$696,328"}},{"$f":"'Trial 2'!DQ12","v":{"v":695913.373106939,"d":"$695,913"}},{"$f":"'Trial 2'!DR12","v":{"v":695545.6647090819,"d":"$695,546"}},{"$f":"'Trial 2'!DS12","v":{"v":695206.855312846,"d":"$695,207"}},{"$f":"'Trial 2'!DT12","v":{"v":694835.8789526569,"d":"$694,836"}},{"$f":"'Trial 2'!DU12","v":{"v":694481.8088281903,"d":"$694,482"}},{"$f":"'Trial 2'!DV12","v":{"v":694121.2086966,"d":"$694,121"}},{"$f":"'Trial 2'!DW12","v":{"v":693696.3411402818,"d":"$693,696"}},{"$f":"'Trial 2'!DX12","v":{"v":693353.8566544957,"d":"$693,354"}},{"$f":"'Trial 2'!DY12","v":{"v":693004.1365104048,"d":"$693,004"}},{"$f":"'Trial 2'!DZ12","v":{"v":692645.8305382215,"d":"$692,646"}},{"$f":"'Trial 2'!EB12","v":{"v":692306.0064808707,"d":"$692,306"}},{"$f":"'Trial 2'!EC12","v":{"v":691964.7402437122,"d":"$691,965"}},{"$f":"'Trial 2'!ED12","v":{"v":691583.5642717994,"d":"$691,584"}},{"$f":"'Trial 2'!EE12","v":{"v":691142.7283379671,"d":"$691,143"}},{"$f":"'Trial 2'!EF12","v":{"v":690878.2673503328,"d":"$690,878"}},{"$f":"'Trial 2'!EG12","v":{"v":690553.9700047051,"d":"$690,554"}},{"$f":"'Trial 2'!EH12","v":{"v":690200.7957622288,"d":"$690,201"}},{"$f":"'Trial 2'!EI12","v":{"v":689898.4909807723,"d":"$689,898"}},{"$f":"'Trial 2'!EJ12","v":{"v":689561.8758987113,"d":"$689,562"}},{"$f":"'Trial 2'!EK12","v":{"v":689203.6923814538,"d":"$689,204"}},{"$f":"'Trial 2'!EL12","v":{"v":688826.6916258195,"d":"$688,827"}},{"$f":"'Trial 2'!EM12","v":{"v":688506.7206652765,"d":"$688,507"}}]
[{"$f":"'Trial 3'!B12","v":{"v":728000,"d":"$728,000"}},{"$f":"'Trial 3'!C12","v":{"v":727754.0611019669,"d":"$727,754"}},{"$f":"'Trial 3'!D12","v":{"v":727581.7587737847,"d":"$727,582"}},{"$f":"'Trial 3'!E12","v":{"v":727328.60112741,"d":"$727,329"}},{"$f":"'Trial 3'!F12","v":{"v":727059.9297064816,"d":"$727,060"}},{"$f":"'Trial 3'!G12","v":{"v":726864.3288613013,"d":"$726,864"}},{"$f":"'Trial 3'!H12","v":{"v":726627.8601112564,"d":"$726,628"}},{"$f":"'Trial 3'!I12","v":{"v":726408.1507362925,"d":"$726,408"}},{"$f":"'Trial 3'!J12","v":{"v":726187.3105163415,"d":"$726,187"}},{"$f":"'Trial 3'!K12","v":{"v":726010.8541659999,"d":"$726,011"}},{"$f":"'Trial 3'!L12","v":{"v":725730.7850571743,"d":"$725,731"}},{"$f":"'Trial 3'!M12","v":{"v":725469.5851901163,"d":"$725,470"}},{"$f":"'Trial 3'!O12","v":{"v":725240.5523423846,"d":"$725,241"}},{"$f":"'Trial 3'!P12","v":{"v":724984.8705759674,"d":"$724,985"}},{"$f":"'Trial 3'!Q12","v":{"v":724773.6952861117,"d":"$724,774"}},{"$f":"'Trial 3'!R12","v":{"v":724495.1648128979,"d":"$724,495"}},{"$f":"'Trial 3'!S12","v":{"v":724303.1261411051,"d":"$724,303"}},{"$f":"'Trial 3'!T12","v":{"v":724147.738839778,"d":"$724,148"}},{"$f":"'Trial 3'!U12","v":{"v":723868.8432863512,"d":"$723,869"}},{"$f":"'Trial 3'!V12","v":{"v":723674.0380602593,"d":"$723,674"}},{"$f":"'Trial 3'!W12","v":{"v":723487.6437030588,"d":"$723,488"}},{"$f":"'Trial 3'!X12","v":{"v":723215.4071775334,"d":"$723,215"}},{"$f":"'Trial 3'!Y12","v":{"v":722987.0881038686,"d":"$722,987"}},{"$f":"'Trial 3'!Z12","v":{"v":722656.4720251783,"d":"$722,656"}},{"$f":"'Trial 3'!AB12","v":{"v":722409.0631321634,"d":"$722,409"}},{"$f":"'Trial 3'!AC12","v":{"v":722167.1696264407,"d":"$722,167"}},{"$f":"'Trial 3'!AD12","v":{"v":721962.6442804664,"d":"$721,963"}},{"$f":"'Trial 3'!AE12","v":{"v":721688.5700823765,"d":"$721,689"}},{"$f":"'Trial 3'!AF12","v":{"v":721444.6621918849,"d":"$721,445"}},{"$f":"'Trial 3'!AG12","v":{"v":721193.6745849418,"d":"$721,194"}},{"$f":"'Trial 3'!AH12","v":{"v":720916.9078703455,"d":"$720,917"}},{"$f":"'Trial 3'!AI12","v":{"v":720591.0306701686,"d":"$720,591"}},{"$f":"'Trial 3'!AJ12","v":{"v":720349.3003431088,"d":"$720,349"}},{"$f":"'Trial 3'!AK12","v":{"v":720105.7690034205,"d":"$720,106"}},{"$f":"'Trial 3'!AL12","v":{"v":719847.3001289289,"d":"$719,847"}},{"$f":"'Trial 3'!AM12","v":{"v":719534.5005194104,"d":"$719,535"}},{"$f":"'Trial 3'!AO12","v":{"v":719344.2684081016,"d":"$719,344"}},{"$f":"'Trial 3'!AP12","v":{"v":719026.3790413815,"d":"$719,026"}},{"$f":"'Trial 3'!AQ12","v":{"v":718765.9836954327,"d":"$718,766"}},{"$f":"'Trial 3'!AR12","v":{"v":718570.0551716479,"d":"$718,570"}},{"$f":"'Trial 3'!AS12","v":{"v":718340.145015551,"d":"$718,340"}},{"$f":"'Trial 3'!AT12","v":{"v":718049.5162313426,"d":"$718,050"}},{"$f":"'Trial 3'!AU12","v":{"v":717786.9149573941,"d":"$717,787"}},{"$f":"'Trial 3'!AV12","v":{"v":717570.083201373,"d":"$717,570"}},{"$f":"'Trial 3'!AW12","v":{"v":717336.7549083492,"d":"$717,337"}},{"$f":"'Trial 3'!AX12","v":{"v":716969.7671493293,"d":"$716,970"}},{"$f":"'Trial 3'!AY12","v":{"v":716748.4004403565,"d":"$716,748"}},{"$f":"'Trial 3'!AZ12","v":{"v":716443.3078396177,"d":"$716,443"}},{"$f":"'Trial 3'!BB12","v":{"v":716155.5075845848,"d":"$716,156"}},{"$f":"'Trial 3'!BC12","v":{"v":715921.4495977395,"d":"$715,921"}},{"$f":"'Trial 3'!BD12","v":{"v":715708.7718467615,"d":"$715,709"}},{"$f":"'Trial 3'!BE12","v":{"v":715411.4535620972,"d":"$715,411"}},{"$f":"'Trial 3'!BF12","v":{"v":715158.3606252486,"d":"$715,158"}},{"$f":"'Trial 3'!BG12","v":{"v":714869.1084480818,"d":"$714,869"}},{"$f":"'Trial 3'!BH12","v":{"v":714583.7578039077,"d":"$714,584"}},{"$f":"'Trial 3'!BI12","v":{"v":714361.7161276501,"d":"$714,362"}},{"$f":"'Trial 3'!BJ12","v":{"v":714060.7243791993,"d":"$714,061"}},{"$f":"'Trial 3'!BK12","v":{"v":713691.4229334324,"d":"$713,691"}},{"$f":"'Trial 3'!BL12","v":{"v":713327.919953665,"d":"$713,328"}},{"$f":"'Trial 3'!BM12","v":{"v":713036.9192277067,"d":"$713,037"}},{"$f":"'Trial 3'!BO12","v":{"v":712656.0371815818,"d":"$712,656"}},{"$f":"'Trial 3'!BP12","v":{"v":712341.2064560064,"d":"$712,341"}},{"$f":"'Trial 3'!BQ12","v":{"v":712009.254099548,"d":"$712,009"}},{"$f":"'Trial 3'!BR12","v":{"v":711693.470665594,"d":"$711,693"}},{"$f":"'Trial 3'!BS12","v":{"v":711448.1566931414,"d":"$711,448"}},{"$f":"'Trial 3'!BT12","v":{"v":711143.4452042215,"d":"$711,143"}},{"$f":"'Trial 3'!BU12","v":{"v":710859.2527731293,"d":"$710,859"}},{"$f":"'Trial 3'!BV12","v":{"v":710485.953896023,"d":"$710,486"}},{"$f":"'Trial 3'!BW12","v":{"v":710180.2371415293,"d":"$710,180"}},{"$f":"'Trial 3'!BX12","v":{"v":709903.0221791343,"d":"$709,903"}},{"$f":"'Trial 3'!BY12","v":{"v":709567.8148804912,"d":"$709,568"}},{"$f":"'Trial 3'!BZ12","v":{"v":709214.0170736917,"d":"$709,214"}},{"$f":"'Trial 3'!CB12","v":{"v":708834.7781274437,"d":"$708,835"}},{"$f":"'Trial 3'!CC12","v":{"v":708523.6004572489,"d":"$708,524"}},{"$f":"'Trial 3'!CD12","v":{"v":708235.3168296549,"d":"$708,235"}},{"$f":"'Trial 3'!CE12","v":{"v":707846.9244486049,"d":"$707,847"}},{"$f":"'Trial 3'!CF12","v":{"v":707460.4355026337,"d":"$707,460"}},{"$f":"'Trial 3'!CG12","v":{"v":707157.7357827753,"d":"$707,158"}},{"$f":"'Trial 3'!CH12","v":{"v":706811.802877494,"d":"$706,812"}},{"$f":"'Trial 3'!CI12","v":{"v":706429.537983458,"d":"$706,430"}},{"$f":"'Trial 3'!CJ12","v":{"v":706157.1691963482,"d":"$706,157"}},{"$f":"'Trial 3'!CK12","v":{"v":705842.2281904449,"d":"$705,842"}},{"$f":"'Trial 3'!CL12","v":{"v":705527.7219525932,"d":"$705,528"}},{"$f":"'Trial 3'!CM12","v":{"v":705151.8317564152,"d":"$705,152"}},{"$f":"'Trial 3'!CO12","v":{"v":704783.914381453,"d":"$704,784"}},{"$f":"'Trial 3'!CP12","v":{"v":704476.8684017386,"d":"$704,477"}},{"$f":"'Trial 3'!CQ12","v":{"v":704151.2551367086,"d":"$704,151"}},{"$f":"'Trial 3'!CR12","v":{"v":703828.3480161122,"d":"$703,828"}},{"$f":"'Trial 3'!CS12","v":{"v":703441.791742385,"d":"$703,442"}},{"$f":"'Trial 3'!CT12","v":{"v":703119.3153387229,"d":"$703,119"}},{"$f":"'Trial 3'!CU12","v":{"v":702873.0369731629,"d":"$702,873"}},{"$f":"'Trial 3'!CV12","v":{"v":702517.7224206561,"d":"$702,518"}},{"$f":"'Trial 3'!CW12","v":{"v":702192.7265646587,"d":"$702,193"}},{"$f":"'Trial 3'!CX12","v":{"v":701808.875456927,"d":"$701,809"}},{"$f":"'Trial 3'!CY12","v":{"v":701500.9985937306,"d":"$701,501"}},{"$f":"'Trial 3'!CZ12","v":{"v":701225.6786209013,"d":"$701,226"}},{"$f":"'Trial 3'!DB12","v":{"v":700952.7031751082,"d":"$700,953"}},{"$f":"'Trial 3'!DC12","v":{"v":700615.9585663201,"d":"$700,616"}},{"$f":"'Trial 3'!DD12","v":{"v":700200.2472517764,"d":"$700,200"}},{"$f":"'Trial 3'!DE12","v":{"v":699850.808334359,"d":"$699,851"}},{"$f":"'Trial 3'!DF12","v":{"v":699496.2139874753,"d":"$699,496"}},{"$f":"'Trial 3'!DG12","v":{"v":699138.8355317841,"d":"$699,139"}},{"$f":"'Trial 3'!DH12","v":{"v":698778.7851805186,"d":"$698,779"}},{"$f":"'Trial 3'!DI12","v":{"v":698490.4846567522,"d":"$698,490"}},{"$f":"'Trial 3'!DJ12","v":{"v":698196.8985242551,"d":"$698,197"}},{"$f":"'Trial 3'!DK12","v":{"v":697915.6854215147,"d":"$697,916"}},{"$f":"'Trial 3'!DL12","v":{"v":697573.4260813324,"d":"$697,573"}},{"$f":"'Trial 3'!DM12","v":{"v":697175.466173647,"d":"$697,175"}},{"$f":"'Trial 3'!DO12","v":{"v":696840.3844674558,"d":"$696,840"}},{"$f":"'Trial 3'!DP12","v":{"v":696566.2535157821,"d":"$696,566"}},{"$f":"'Trial 3'!DQ12","v":{"v":696292.0930914286,"d":"$696,292"}},{"$f":"'Trial 3'!DR12","v":{"v":695967.7875570637,"d":"$695,968"}},{"$f":"'Trial 3'!DS12","v":{"v":695705.5680171367,"d":"$695,706"}},{"$f":"'Trial 3'!DT12","v":{"v":695383.2301608155,"d":"$695,383"}},{"$f":"'Trial 3'!DU12","v":{"v":695040.004097059,"d":"$695,040"}},{"$f":"'Trial 3'!DV12","v":{"v":694723.5703564319,"d":"$694,724"}},{"$f":"'Trial 3'!DW12","v":{"v":694290.393510767,"d":"$694,290"}},{"$f":"'Trial 3'!DX12","v":{"v":694007.3088193279,"d":"$694,007"}},{"$f":"'Trial 3'!DY12","v":{"v":693671.349023345,"d":"$693,671"}},{"$f":"'Trial 3'!DZ12","v":{"v":693402.0827007225,"d":"$693,402"}},{"$f":"'Trial 3'!EB12","v":{"v":693037.2324635574,"d":"$693,037"}},{"$f":"'Trial 3'!EC12","v":{"v":692731.8464009877,"d":"$692,732"}},{"$f":"'Trial 3'!ED12","v":{"v":692444.626543266,"d":"$692,445"}},{"$f":"'Trial 3'!EE12","v":{"v":692040.2836508678,"d":"$692,040"}},{"$f":"'Trial 3'!EF12","v":{"v":691669.5395356416,"d":"$691,670"}},{"$f":"'Trial 3'!EG12","v":{"v":691289.5288414008,"d":"$691,290"}},{"$f":"'Trial 3'!EH12","v":{"v":690964.0756027554,"d":"$690,964"}},{"$f":"'Trial 3'!EI12","v":{"v":690537.3708075553,"d":"$690,537"}},{"$f":"'Trial 3'!EJ12","v":{"v":690103.8269993534,"d":"$690,104"}},{"$f":"'Trial 3'!EK12","v":{"v":689719.7144837553,"d":"$689,720"}},{"$f":"'Trial 3'!EL12","v":{"v":689360.8217657777,"d":"$689,361"}},{"$f":"'Trial 3'!EM12","v":{"v":688988.7037765792,"d":"$688,989"}}]
[{"$f":"'Trial 4'!B12","v":{"v":728000,"d":"$728,000"}},{"$f":"'Trial 4'!C12","v":{"v":727831.3454979343,"d":"$727,831"}},{"$f":"'Trial 4'!D12","v":{"v":727694.5954371891,"d":"$727,695"}},{"$f":"'Trial 4'!E12","v":{"v":727505.7267721107,"d":"$727,506"}},{"$f":"'Trial 4'!F12","v":{"v":727215.2536509885,"d":"$727,215"}},{"$f":"'Trial 4'!G12","v":{"v":726944.897078066,"d":"$726,945"}},{"$f":"'Trial 4'!H12","v":{"v":726758.0892133282,"d":"$726,758"}},{"$f":"'Trial 4'!I12","v":{"v":726574.0456240454,"d":"$726,574"}},{"$f":"'Trial 4'!J12","v":{"v":726397.5715758316,"d":"$726,398"}},{"$f":"'Trial 4'!K12","v":{"v":726147.9696523362,"d":"$726,148"}},{"$f":"'Trial 4'!L12","v":{"v":725897.8322507667,"d":"$725,898"}},{"$f":"'Trial 4'!M12","v":{"v":725653.4661878775,"d":"$725,653"}},{"$f":"'Trial 4'!O12","v":{"v":725405.4509448007,"d":"$725,405"}},{"$f":"'Trial 4'!P12","v":{"v":725211.1411719979,"d":"$725,211"}},{"$f":"'Trial 4'!Q12","v":{"v":724969.9444608222,"d":"$724,970"}},{"$f":"'Trial 4'!R12","v":{"v":724783.4915342736,"d":"$724,783"}},{"$f":"'Trial 4'!S12","v":{"v":724621.1999530257,"d":"$724,621"}},{"$f":"'Trial 4'!T12","v":{"v":724449.6172356759,"d":"$724,450"}},{"$f":"'Trial 4'!U12","v":{"v":724168.48836229,"d":"$724,168"}},{"$f":"'Trial 4'!V12","v":{"v":723918.6150207899,"d":"$723,919"}},{"$f":"'Trial 4'!W12","v":{"v":723676.077979585,"d":"$723,676"}},{"$f":"'Trial 4'!X12","v":{"v":723419.7069998971,"d":"$723,420"}},{"$f":"'Trial 4'!Y12","v":{"v":723207.0819935445,"d":"$723,207"}},{"$f":"'Trial 4'!Z12","v":{"v":722884.9614491588,"d":"$722,885"}},{"$f":"'Trial 4'!AB12","v":{"v":722649.4906944479,"d":"$722,649"}},{"$f":"'Trial 4'!AC12","v":{"v":722411.4153828697,"d":"$722,411"}},{"$f":"'Trial 4'!AD12","v":{"v":722159.1256001061,"d":"$722,159"}},{"$f":"'Trial 4'!AE12","v":{"v":721894.913574771,"d":"$721,895"}},{"$f":"'Trial 4'!AF12","v":{"v":721572.8491609815,"d":"$721,573"}},{"$f":"'Trial 4'!AG12","v":{"v":721343.1781863448,"d":"$721,343"}},{"$f":"'Trial 4'!AH12","v":{"v":721103.9513160164,"d":"$721,104"}},{"$f":"'Trial 4'!AI12","v":{"v":720918.7871139162,"d":"$720,919"}},{"$f":"'Trial 4'!AJ12","v":{"v":720611.6148716811,"d":"$720,612"}},{"$f":"'Trial 4'!AK12","v":{"v":720260.6742797487,"d":"$720,261"}},{"$f":"'Trial 4'!AL12","v":{"v":719934.7485144004,"d":"$719,935"}},{"$f":"'Trial 4'!AM12","v":{"v":719650.1305429467,"d":"$719,650"}},{"$f":"'Trial 4'!AO12","v":{"v":719441.0819116296,"d":"$719,441"}},{"$f":"'Trial 4'!AP12","v":{"v":719127.1138590729,"d":"$719,127"}},{"$f":"'Trial 4'!AQ12","v":{"v":718840.0824548914,"d":"$718,840"}},{"$f":"'Trial 4'!AR12","v":{"v":718542.740136612,"d":"$718,543"}},{"$f":"'Trial 4'!AS12","v":{"v":718206.3402685332,"d":"$718,206"}},{"$f":"'Trial 4'!AT12","v":{"v":717861.4826839439,"d":"$717,861"}},{"$f":"'Trial 4'!AU12","v":{"v":717502.4272595407,"d":"$717,502"}},{"$f":"'Trial 4'!AV12","v":{"v":717230.8032860778,"d":"$717,231"}},{"$f":"'Trial 4'!AW12","v":{"v":716969.2251802001,"d":"$716,969"}},{"$f":"'Trial 4'!AX12","v":{"v":716671.5493036036,"d":"$716,672"}},{"$f":"'Trial 4'!AY12","v":{"v":716352.37374438,"d":"$716,352"}},{"$f":"'Trial 4'!AZ12","v":{"v":716066.3878635193,"d":"$716,066"}},{"$f":"'Trial 4'!BB12","v":{"v":715764.8729444634,"d":"$715,765"}},{"$f":"'Trial 4'!BC12","v":{"v":715512.4218426576,"d":"$715,512"}},{"$f":"'Trial 4'!BD12","v":{"v":715197.0919919922,"d":"$715,197"}},{"$f":"'Trial 4'!BE12","v":{"v":714881.1853172716,"d":"$714,881"}},{"$f":"'Trial 4'!BF12","v":{"v":714570.0046384691,"d":"$714,570"}},{"$f":"'Trial 4'!BG12","v":{"v":714282.0776264615,"d":"$714,282"}},{"$f":"'Trial 4'!BH12","v":{"v":714026.1761327713,"d":"$714,026"}},{"$f":"'Trial 4'!BI12","v":{"v":713760.7030904116,"d":"$713,761"}},{"$f":"'Trial 4'!BJ12","v":{"v":713405.728389301,"d":"$713,406"}},{"$f":"'Trial 4'!BK12","v":{"v":713120.0924991223,"d":"$713,120"}},{"$f":"'Trial 4'!BL12","v":{"v":712799.3125241951,"d":"$712,799"}},{"$f":"'Trial 4'!BM12","v":{"v":712494.2759056608,"d":"$712,494"}},{"$f":"'Trial 4'!BO12","v":{"v":712213.4954210715,"d":"$712,213"}},{"$f":"'Trial 4'!BP12","v":{"v":711878.9663042135,"d":"$711,879"}},{"$f":"'Trial 4'!BQ12","v":{"v":711592.9702857595,"d":"$711,593"}},{"$f":"'Trial 4'!BR12","v":{"v":711264.4531391769,"d":"$711,264"}},{"$f":"'Trial 4'!BS12","v":{"v":710958.5416480821,"d":"$710,959"}},{"$f":"'Trial 4'!BT12","v":{"v":710629.2027998021,"d":"$710,629"}},{"$f":"'Trial 4'!BU12","v":{"v":710343.8315924793,"d":"$710,344"}},{"$f":"'Trial 4'!BV12","v":{"v":710047.2493163623,"d":"$710,047"}},{"$f":"'Trial 4'!BW12","v":{"v":709682.7714172209,"d":"$709,683"}},{"$f":"'Trial 4'!BX12","v":{"v":709414.6360660451,"d":"$709,415"}},{"$f":"'Trial 4'!BY12","v":{"v":709162.3233189258,"d":"$709,162"}},{"$f":"'Trial 4'!BZ12","v":{"v":708841.2589829996,"d":"$708,841"}},{"$f":"'Trial 4'!CB12","v":{"v":708562.6570141091,"d":"$708,563"}},{"$f":"'Trial 4'!CC12","v":{"v":708250.6309022442,"d":"$708,251"}},{"$f":"'Trial 4'!CD12","v":{"v":707941.2861050105,"d":"$707,941"}},{"$f":"'Trial 4'!CE12","v":{"v":707633.762575256,"d":"$707,634"}},{"$f":"'Trial 4'!CF12","v":{"v":707304.3390599099,"d":"$707,304"}},{"$f":"'Trial 4'!CG12","v":{"v":706974.20103257,"d":"$706,974"}},{"$f":"'Trial 4'!CH12","v":{"v":706673.4081857223,"d":"$706,673"}},{"$f":"'Trial 4'!CI12","v":{"v":706291.5372341721,"d":"$706,292"}},{"$f":"'Trial 4'!CJ12","v":{"v":705968.2289019678,"d":"$705,968"}},{"$f":"'Trial 4'!CK12","v":{"v":705668.9319474921,"d":"$705,669"}},{"$f":"'Trial 4'!CL12","v":{"v":705331.47410762,"d":"$705,331"}},{"$f":"'Trial 4'!CM12","v":{"v":705022.844070426,"d":"$705,023"}},{"$f":"'Trial 4'!CO12","v":{"v":704666.3052597432,"d":"$704,666"}},{"$f":"'Trial 4'!CP12","v":{"v":704395.753566206,"d":"$704,396"}},{"$f":"'Trial 4'!CQ12","v":{"v":704069.0030169365,"d":"$704,069"}},{"$f":"'Trial 4'!CR12","v":{"v":703699.1275379569,"d":"$703,699"}},{"$f":"'Trial 4'!CS12","v":{"v":703375.3154699055,"d":"$703,375"}},{"$f":"'Trial 4'!CT12","v":{"v":703002.5044946629,"d":"$703,003"}},{"$f":"'Trial 4'!CU12","v":{"v":702659.8500685634,"d":"$702,660"}},{"$f":"'Trial 4'!CV12","v":{"v":702314.0770480976,"d":"$702,314"}},{"$f":"'Trial 4'!CW12","v":{"v":702019.6058804757,"d":"$702,020"}},{"$f":"'Trial 4'!CX12","v":{"v":701675.1253661293,"d":"$701,675"}},{"$f":"'Trial 4'!CY12","v":{"v":701378.7065610617,"d":"$701,379"}},{"$f":"'Trial 4'!CZ12","v":{"v":701057.0511348444,"d":"$701,057"}},{"$f":"'Trial 4'!DB12","v":{"v":700690.4702049857,"d":"$700,690"}},{"$f":"'Trial 4'!DC12","v":{"v":700342.8925183137,"d":"$700,343"}},{"$f":"'Trial 4'!DD12","v":{"v":700093.7874409433,"d":"$700,094"}},{"$f":"'Trial 4'!DE12","v":{"v":699764.6665142836,"d":"$699,765"}},{"$f":"'Trial 4'!DF12","v":{"v":699454.4106454054,"d":"$699,454"}},{"$f":"'Trial 4'!DG12","v":{"v":699126.0542955272,"d":"$699,126"}},{"$f":"'Trial 4'!DH12","v":{"v":698717.4304986099,"d":"$698,717"}},{"$f":"'Trial 4'!DI12","v":{"v":698396.662209388,"d":"$698,397"}},{"$f":"'Trial 4'!DJ12","v":{"v":698014.2611693916,"d":"$698,014"}},{"$f":"'Trial 4'!DK12","v":{"v":697586.2649978264,"d":"$697,586"}},{"$f":"'Trial 4'!DL12","v":{"v":697252.3322525126,"d":"$697,252"}},{"$f":"'Trial 4'!DM12","v":{"v":696901.4442683636,"d":"$696,901"}},{"$f":"'Trial 4'!DO12","v":{"v":696584.3474753215,"d":"$696,584"}},{"$f":"'Trial 4'!DP12","v":{"v":696229.1129800336,"d":"$696,229"}},{"$f":"'Trial 4'!DQ12","v":{"v":695921.1373465515,"d":"$695,921"}},{"$f":"'Trial 4'!DR12","v":{"v":695632.3897296273,"d":"$695,632"}},{"$f":"'Trial 4'!DS12","v":{"v":695277.0161972307,"d":"$695,277"}},{"$f":"'Trial 4'!DT12","v":{"v":694977.5291789625,"d":"$694,978"}},{"$f":"'Trial 4'!DU12","v":{"v":694559.918048681,"d":"$694,560"}},{"$f":"'Trial 4'!DV12","v":{"v":694132.6001166453,"d":"$694,133"}},{"$f":"'Trial 4'!DW12","v":{"v":693795.2435395421,"d":"$693,795"}},{"$f":"'Trial 4'!DX12","v":{"v":693497.786391868,"d":"$693,498"}},{"$f":"'Trial 4'!DY12","v":{"v":693090.2170506965,"d":"$693,090"}},{"$f":"'Trial 4'!DZ12","v":{"v":692769.0285549931,"d":"$692,769"}},{"$f":"'Trial 4'!EB12","v":{"v":692399.8893494895,"d":"$692,400"}},{"$f":"'Trial 4'!EC12","v":{"v":692102.5152334014,"d":"$692,103"}},{"$f":"'Trial 4'!ED12","v":{"v":691821.0984848186,"d":"$691,821"}},{"$f":"'Trial 4'!EE12","v":{"v":691497.8424479758,"d":"$691,498"}},{"$f":"'Trial 4'!EF12","v":{"v":691139.7696513854,"d":"$691,140"}},{"$f":"'Trial 4'!EG12","v":{"v":690755.2869104668,"d":"$690,755"}},{"$f":"'Trial 4'!EH12","v":{"v":690338.32951359,"d":"$690,338"}},{"$f":"'Trial 4'!EI12","v":{"v":690003.6097753749,"d":"$690,004"}},{"$f":"'Trial 4'!EJ12","v":{"v":689733.5064656441,"d":"$689,734"}},{"$f":"'Trial 4'!EK12","v":{"v":689410.5215495093,"d":"$689,411"}},{"$f":"'Trial 4'!EL12","v":{"v":689009.1003854432,"d":"$689,009"}},{"$f":"'Trial 4'!EM12","v":{"v":688657.8960944031,"d":"$688,658"}}]
[{"$f":"'Trial 5'!B12","v":{"v":728000,"d":"$728,000"}},{"$f":"'Trial 5'!C12","v":{"v":727775.7836781372,"d":"$727,776"}},{"$f":"'Trial 5'!D12","v":{"v":727522.2835396044,"d":"$727,522"}},{"$f":"'Trial 5'!E12","v":{"v":727313.2519971956,"d":"$727,313"}},{"$f":"'Trial 5'!F12","v":{"v":727110.7606972151,"d":"$727,111"}},{"$f":"'Trial 5'!G12","v":{"v":726865.9465656712,"d":"$726,866"}},{"$f":"'Trial 5'!H12","v":{"v":726591.5572136581,"d":"$726,592"}},{"$f":"'Trial 5'!I12","v":{"v":726448.7757151786,"d":"$726,449"}},{"$f":"'Trial 5'!J12","v":{"v":726132.8316505802,"d":"$726,133"}},{"$f":"'Trial 5'!K12","v":{"v":725884.4361384497,"d":"$725,884"}},{"$f":"'Trial 5'!L12","v":{"v":725654.935419429,"d":"$725,655"}},{"$f":"'Trial 5'!M12","v":{"v":725510.2671530023,"d":"$725,510"}},{"$f":"'Trial 5'!O12","v":{"v":725273.2713903241,"d":"$725,273"}},{"$f":"'Trial 5'!P12","v":{"v":725014.5420296092,"d":"$725,015"}},{"$f":"'Trial 5'!Q12","v":{"v":724769.2934872233,"d":"$724,769"}},{"$f":"'Trial 5'!R12","v":{"v":724540.4631268864,"d":"$724,540"}},{"$f":"'Trial 5'!S12","v":{"v":724234.7077255318,"d":"$724,235"}},{"$f":"'Trial 5'!T12","v":{"v":723954.9712307001,"d":"$723,955"}},{"$f":"'Trial 5'!U12","v":{"v":723773.721248783,"d":"$723,774"}},{"$f":"'Trial 5'!V12","v":{"v":723568.9818810954,"d":"$723,569"}},{"$f":"'Trial 5'!W12","v":{"v":723277.4632569443,"d":"$723,277"}},{"$f":"'Trial 5'!X12","v":{"v":723028.9958340293,"d":"$723,029"}},{"$f":"'Trial 5'!Y12","v":{"v":722778.1585614295,"d":"$722,778"}},{"$f":"'Trial 5'!Z12","v":{"v":722535.0145380012,"d":"$722,535"}},{"$f":"'Trial 5'!AB12","v":{"v":722237.7034486723,"d":"$722,238"}},{"$f":"'Trial 5'!AC12","v":{"v":721911.6688491916,"d":"$721,912"}},{"$f":"'Trial 5'!AD12","v":{"v":721679.3656691903,"d":"$721,679"}},{"$f":"'Trial 5'!AE12","v":{"v":721471.6865133768,"d":"$721,472"}},{"$f":"'Trial 5'!AF12","v":{"v":721154.5143806624,"d":"$721,155"}},{"$f":"'Trial 5'!AG12","v":{"v":720835.7419384299,"d":"$720,836"}},{"$f":"'Trial 5'!AH12","v":{"v":720544.8160432591,"d":"$720,545"}},{"$f":"'Trial 5'!AI12","v":{"v":720326.2840154568,"d":"$720,326"}},{"$f":"'Trial 5'!AJ12","v":{"v":720050.8145740939,"d":"$720,051"}},{"$f":"'Trial 5'!AK12","v":{"v":719808.2874143149,"d":"$719,808"}},{"$f":"'Trial 5'!AL12","v":{"v":719588.0491871424,"d":"$719,588"}},{"$f":"'Trial 5'!AM12","v":{"v":719353.4512476393,"d":"$719,353"}},{"$f":"'Trial 5'!AO12","v":{"v":719052.2433930209,"d":"$719,052"}},{"$f":"'Trial 5'!AP12","v":{"v":718767.5136345782,"d":"$718,768"}},{"$f":"'Trial 5'!AQ12","v":{"v":718467.6014860338,"d":"$718,468"}},{"$f":"'Trial 5'!AR12","v":{"v":718142.5028622458,"d":"$718,143"}},{"$f":"'Trial 5'!AS12","v":{"v":717942.6419597705,"d":"$717,943"}},{"$f":"'Trial 5'!AT12","v":{"v":717624.5566595201,"d":"$717,625"}},{"$f":"'Trial 5'!AU12","v":{"v":717353.7769667625,"d":"$717,354"}},{"$f":"'Trial 5'!AV12","v":{"v":717099.2306798237,"d":"$717,099"}},{"$f":"'Trial 5'!AW12","v":{"v":716828.7312866184,"d":"$716,829"}},{"$f":"'Trial 5'!AX12","v":{"v":716478.3132979169,"d":"$716,478"}},{"$f":"'Trial 5'!AY12","v":{"v":716168.6416871924,"d":"$716,169"}},{"$f":"'Trial 5'!AZ12","v":{"v":715865.2366994785,"d":"$715,865"}},{"$f":"'Trial 5'!BB12","v":{"v":715616.4277630189,"d":"$715,616"}},{"$f":"'Trial 5'!BC12","v":{"v":715259.9998009886,"d":"$715,260"}},{"$f":"'Trial 5'!BD12","v":{"v":714988.5702281893,"d":"$714,989"}},{"$f":"'Trial 5'!BE12","v":{"v":714778.2091492544,"d":"$714,778"}},{"$f":"'Trial 5'!BF12","v":{"v":714537.1261939805,"d":"$714,537"}},{"$f":"'Trial 5'!BG12","v":{"v":714223.5570364253,"d":"$714,224"}},{"$f":"'Trial 5'!BH12","v":{"v":713855.2528831905,"d":"$713,855"}},{"$f":"'Trial 5'!BI12","v":{"v":713640.2697184411,"d":"$713,640"}},{"$f":"'Trial 5'!BJ12","v":{"v":713283.2022774842,"d":"$713,283"}},{"$f":"'Trial 5'!BK12","v":{"v":712976.5768626172,"d":"$712,977"}},{"$f":"'Trial 5'!BL12","v":{"v":712734.3615025782,"d":"$712,734"}},{"$f":"'Trial 5'!BM12","v":{"v":712372.9071391581,"d":"$712,373"}},{"$f":"'Trial 5'!BO12","v":{"v":712089.4136992862,"d":"$712,089"}},{"$f":"'Trial 5'!BP12","v":{"v":711718.6115029266,"d":"$711,719"}},{"$f":"'Trial 5'!BQ12","v":{"v":711414.773320616,"d":"$711,415"}},{"$f":"'Trial 5'!BR12","v":{"v":711060.4957785218,"d":"$711,060"}},{"$f":"'Trial 5'!BS12","v":{"v":710814.2082943127,"d":"$710,814"}},{"$f":"'Trial 5'!BT12","v":{"v":710475.8422054242,"d":"$710,476"}},{"$f":"'Trial 5'!BU12","v":{"v":710200.1679147152,"d":"$710,200"}},{"$f":"'Trial 5'!BV12","v":{"v":709947.85329565,"d":"$709,948"}},{"$f":"'Trial 5'!BW12","v":{"v":709587.1638123324,"d":"$709,587"}},{"$f":"'Trial 5'!BX12","v":{"v":709272.6207194236,"d":"$709,273"}},{"$f":"'Trial 5'!BY12","v":{"v":708870.8542237105,"d":"$708,871"}},{"$f":"'Trial 5'!BZ12","v":{"v":708587.2917362748,"d":"$708,587"}},{"$f":"'Trial 5'!CB12","v":{"v":708277.6312128147,"d":"$708,278"}},{"$f":"'Trial 5'!CC12","v":{"v":708011.9256694972,"d":"$708,012"}},{"$f":"'Trial 5'!CD12","v":{"v":707674.9604986854,"d":"$707,675"}},{"$f":"'Trial 5'!CE12","v":{"v":707275.2305290776,"d":"$707,275"}},{"$f":"'Trial 5'!CF12","v":{"v":706908.0065299256,"d":"$706,908"}},{"$f":"'Trial 5'!CG12","v":{"v":706565.0575938972,"d":"$706,565"}},{"$f":"'Trial 5'!CH12","v":{"v":706306.6547914449,"d":"$706,307"}},{"$f":"'Trial 5'!CI12","v":{"v":706066.794712609,"d":"$706,067"}},{"$f":"'Trial 5'!CJ12","v":{"v":705778.2672677266,"d":"$705,778"}},{"$f":"'Trial 5'!CK12","v":{"v":705509.6630552469,"d":"$705,510"}},{"$f":"'Trial 5'!CL12","v":{"v":705178.0535325014,"d":"$705,178"}},{"$f":"'Trial 5'!CM12","v":{"v":704817.2593337963,"d":"$704,817"}},{"$f":"'Trial 5'!CO12","v":{"v":704467.7155397575,"d":"$704,468"}},{"$f":"'Trial 5'!CP12","v":{"v":704104.248668179,"d":"$704,104"}},{"$f":"'Trial 5'!CQ12","v":{"v":703751.3686890258,"d":"$703,751"}},{"$f":"'Trial 5'!CR12","v":{"v":703476.110092663,"d":"$703,476"}},{"$f":"'Trial 5'!CS12","v":{"v":703161.5672604276,"d":"$703,162"}},{"$f":"'Trial 5'!CT12","v":{"v":702806.6365443082,"d":"$702,807"}},{"$f":"'Trial 5'!CU12","v":{"v":702410.9542786306,"d":"$702,411"}},{"$f":"'Trial 5'!CV12","v":{"v":702091.33045076,"d":"$702,091"}},{"$f":"'Trial 5'!CW12","v":{"v":701725.9104509876,"d":"$701,726"}},{"$f":"'Trial 5'!CX12","v":{"v":701399.6960715848,"d":"$701,400"}},{"$f":"'Trial 5'!CY12","v":{"v":701001.4997727644,"d":"$701,001"}},{"$f":"'Trial 5'!CZ12","v":{"v":700668.3819370983,"d":"$700,668"}},{"$f":"'Trial 5'!DB12","v":{"v":700361.9245701568,"d":"$700,362"}},{"$f":"'Trial 5'!DC12","v":{"v":700037.9177142624,"d":"$700,038"}},{"$f":"'Trial 5'!DD12","v":{"v":699676.9873325292,"d":"$699,677"}},{"$f":"'Trial 5'!DE12","v":{"v":699280.7490770248,"d":"$699,281"}},{"$f":"'Trial 5'!DF12","v":{"v":698970.6104739323,"d":"$698,971"}},{"$f":"'Trial 5'!DG12","v":{"v":698710.6378292728,"d":"$698,711"}},{"$f":"'Trial 5'!DH12","v":{"v":698362.4575697195,"d":"$698,362"}},{"$f":"'Trial 5'!DI12","v":{"v":698021.1135655063,"d":"$698,021"}},{"$f":"'Trial 5'!DJ12","v":{"v":697686.3272094321,"d":"$697,686"}},{"$f":"'Trial 5'!DK12","v":{"v":697313.8846889645,"d":"$697,314"}},{"$f":"'Trial 5'!DL12","v":{"v":696972.5432185292,"d":"$696,973"}},{"$f":"'Trial 5'!DM12","v":{"v":696542.2095845257,"d":"$696,542"}},{"$f":"'Trial 5'!DO12","v":{"v":696208.6803892207,"d":"$696,209"}},{"$f":"'Trial 5'!DP12","v":{"v":695952.7852564865,"d":"$695,953"}},{"$f":"'Trial 5'!DQ12","v":{"v":695587.0063573896,"d":"$695,587"}},{"$f":"'Trial 5'!DR12","v":{"v":695172.2958939831,"d":"$695,172"}},{"$f":"'Trial 5'!DS12","v":{"v":694791.8549892264,"d":"$694,792"}},{"$f":"'Trial 5'!DT12","v":{"v":694396.6378457966,"d":"$694,397"}},{"$f":"'Trial 5'!DU12","v":{"v":694082.5126432177,"d":"$694,083"}},{"$f":"'Trial 5'!DV12","v":{"v":693751.017035845,"d":"$693,751"}},{"$f":"'Trial 5'!DW12","v":{"v":693399.9998566754,"d":"$693,400"}},{"$f":"'Trial 5'!DX12","v":{"v":693076.544485099,"d":"$693,077"}},{"$f":"'Trial 5'!DY12","v":{"v":692708.4408221601,"d":"$692,708"}},{"$f":"'Trial 5'!DZ12","v":{"v":692287.2094345147,"d":"$692,287"}},{"$f":"'Trial 5'!EB12","v":{"v":691924.4363169995,"d":"$691,924"}},{"$f":"'Trial 5'!EC12","v":{"v":691575.7747193443,"d":"$691,576"}},{"$f":"'Trial 5'!ED12","v":{"v":691306.7492090405,"d":"$691,307"}},{"$f":"'Trial 5'!EE12","v":{"v":690929.2249232896,"d":"$690,929"}},{"$f":"'Trial 5'!EF12","v":{"v":690513.4083351749,"d":"$690,513"}},{"$f":"'Trial 5'!EG12","v":{"v":690154.9894658619,"d":"$690,155"}},{"$f":"'Trial 5'!EH12","v":{"v":689787.0235078719,"d":"$689,787"}},{"$f":"'Trial 5'!EI12","v":{"v":689463.1706103801,"d":"$689,463"}},{"$f":"'Trial 5'!EJ12","v":{"v":689027.9979654647,"d":"$689,028"}},{"$f":"'Trial 5'!EK12","v":{"v":688726.637745186,"d":"$688,727"}},{"$f":"'Trial 5'!EL12","v":{"v":688331.9400272627,"d":"$688,332"}},{"$f":"'Trial 5'!EM12","v":{"v":687981.1350463713,"d":"$687,981"}}]
[{"$f":"'Trial 6'!B12","v":{"v":728000,"d":"$728,000"}},{"$f":"'Trial 6'!C12","v":{"v":727777.8314180913,"d":"$727,778"}},{"$f":"'Trial 6'!D12","v":{"v":727486.4829226624,"d":"$727,486"}},{"$f":"'Trial 6'!E12","v":{"v":727295.4035967998,"d":"$727,295"}},{"$f":"'Trial 6'!F12","v":{"v":727072.90327841,"d":"$727,073"}},{"$f":"'Trial 6'!G12","v":{"v":726764.4221859378,"d":"$726,764"}},{"$f":"'Trial 6'!H12","v":{"v":726561.3423103404,"d":"$726,561"}},{"$f":"'Trial 6'!I12","v":{"v":726291.867794664,"d":"$726,292"}},{"$f":"'Trial 6'!J12","v":{"v":726099.2538346454,"d":"$726,099"}},{"$f":"'Trial 6'!K12","v":{"v":725934.5231208288,"d":"$725,935"}},{"$f":"'Trial 6'!L12","v":{"v":725680.0429903757,"d":"$725,680"}},{"$f":"'Trial 6'!M12","v":{"v":725463.7660983669,"d":"$725,464"}},{"$f":"'Trial 6'!O12","v":{"v":725142.8087446053,"d":"$725,143"}},{"$f":"'Trial 6'!P12","v":{"v":724841.2047297471,"d":"$724,841"}},{"$f":"'Trial 6'!Q12","v":{"v":724621.2258898923,"d":"$724,621"}},{"$f":"'Trial 6'!R12","v":{"v":724469.9616234689,"d":"$724,470"}},{"$f":"'Trial 6'!S12","v":{"v":724164.806282538,"d":"$724,165"}},{"$f":"'Trial 6'!T12","v":{"v":723931.742058453,"d":"$723,932"}},{"$f":"'Trial 6'!U12","v":{"v":723761.5684587882,"d":"$723,762"}},{"$f":"'Trial 6'!V12","v":{"v":723480.5908991979,"d":"$723,481"}},{"$f":"'Trial 6'!W12","v":{"v":723265.7653000026,"d":"$723,266"}},{"$f":"'Trial 6'!X12","v":{"v":723059.614314341,"d":"$723,060"}},{"$f":"'Trial 6'!Y12","v":{"v":722803.9740295518,"d":"$722,804"}},{"$f":"'Trial 6'!Z12","v":{"v":722513.3332803698,"d":"$722,513"}},{"$f":"'Trial 6'!AB12","v":{"v":722307.9536939239,"d":"$722,308"}},{"$f":"'Trial 6'!AC12","v":{"v":721984.7051097782,"d":"$721,985"}},{"$f":"'Trial 6'!AD12","v":{"v":721691.5374649402,"d":"$721,692"}},{"$f":"'Trial 6'!AE12","v":{"v":721510.345931256,"d":"$721,510"}},{"$f":"'Trial 6'!AF12","v":{"v":721235.5843155981,"d":"$721,236"}},{"$f":"'Trial 6'!AG12","v":{"v":721054.0870597796,"d":"$721,054"}},{"$f":"'Trial 6'!AH12","v":{"v":720844.7226134477,"d":"$720,845"}},{"$f":"'Trial 6'!AI12","v":{"v":720596.7741618484,"d":"$720,597"}},{"$f":"'Trial 6'!AJ12","v":{"v":720273.3651889344,"d":"$720,273"}},{"$f":"'Trial 6'!AK12","v":{"v":720094.4994788126,"d":"$720,094"}},{"$f":"'Trial 6'!AL12","v":{"v":719781.5752972707,"d":"$719,782"}},{"$f":"'Trial 6'!AM12","v":{"v":719424.0051848659,"d":"$719,424"}},{"$f":"'Trial 6'!AO12","v":{"v":719130.4828095025,"d":"$719,130"}},{"$f":"'Trial 6'!AP12","v":{"v":718911.9297181772,"d":"$718,912"}},{"$f":"'Trial 6'!AQ12","v":{"v":718626.2149808255,"d":"$718,626"}},{"$f":"'Trial 6'!AR12","v":{"v":718370.5726767774,"d":"$718,371"}},{"$f":"'Trial 6'!AS12","v":{"v":718164.6947858175,"d":"$718,165"}},{"$f":"'Trial 6'!AT12","v":{"v":717848.7372058706,"d":"$717,849"}},{"$f":"'Trial 6'!AU12","v":{"v":717494.2382162212,"d":"$717,494"}},{"$f":"'Trial 6'!AV12","v":{"v":717252.2500481436,"d":"$717,252"}},{"$f":"'Trial 6'!AW12","v":{"v":716964.4593038289,"d":"$716,964"}},{"$f":"'Trial 6'!AX12","v":{"v":716643.5146672936,"d":"$716,644"}},{"$f":"'Trial 6'!AY12","v":{"v":716351.0942244463,"d":"$716,351"}},{"$f":"'Trial 6'!AZ12","v":{"v":716053.6307821914,"d":"$716,054"}},{"$f":"'Trial 6'!BB12","v":{"v":715858.6909424145,"d":"$715,859"}},{"$f":"'Trial 6'!BC12","v":{"v":715627.2960282122,"d":"$715,627"}},{"$f":"'Trial 6'!BD12","v":{"v":715342.2524924971,"d":"$715,342"}},{"$f":"'Trial 6'!BE12","v":{"v":715115.5040780471,"d":"$715,116"}},{"$f":"'Trial 6'!BF12","v":{"v":714823.4046591771,"d":"$714,823"}},{"$f":"'Trial 6'!BG12","v":{"v":714478.6491270025,"d":"$714,479"}},{"$f":"'Trial 6'!BH12","v":{"v":714140.9061107611,"d":"$714,141"}},{"$f":"'Trial 6'!BI12","v":{"v":713862.1444925788,"d":"$713,862"}},{"$f":"'Trial 6'!BJ12","v":{"v":713554.6529787015,"d":"$713,555"}},{"$f":"'Trial 6'!BK12","v":{"v":713287.8057336619,"d":"$713,288"}},{"$f":"'Trial 6'!BL12","v":{"v":713026.0921598854,"d":"$713,026"}},{"$f":"'Trial 6'!BM12","v":{"v":712772.1012000608,"d":"$712,772"}},{"$f":"'Trial 6'!BO12","v":{"v":712439.7087526926,"d":"$712,440"}},{"$f":"'Trial 6'!BP12","v":{"v":712135.6845380702,"d":"$712,136"}},{"$f":"'Trial 6'!BQ12","v":{"v":711880.0502707543,"d":"$711,880"}},{"$f":"'Trial 6'!BR12","v":{"v":711565.5692912408,"d":"$711,566"}},{"$f":"'Trial 6'!BS12","v":{"v":711250.9804312487,"d":"$711,251"}},{"$f":"'Trial 6'!BT12","v":{"v":710992.6656862769,"d":"$710,993"}},{"$f":"'Trial 6'!BU12","v":{"v":710734.6829834817,"d":"$710,735"}},{"$f":"'Trial 6'!BV12","v":{"v":710404.5379852672,"d":"$710,405"}},{"$f":"'Trial 6'!BW12","v":{"v":710125.5599484118,"d":"$710,126"}},{"$f":"'Trial 6'!BX12","v":{"v":709867.7236456013,"d":"$709,868"}},{"$f":"'Trial 6'!BY12","v":{"v":709530.2529510568,"d":"$709,530"}},{"$f":"'Trial 6'!BZ12","v":{"v":709251.9510411775,"d":"$709,252"}},{"$f":"'Trial 6'!CB12","v":{"v":708933.1983577148,"d":"$708,933"}},{"$f":"'Trial 6'!CC12","v":{"v":708580.704485189,"d":"$708,581"}},{"$f":"'Trial 6'!CD12","v":{"v":708251.8489906949,"d":"$708,252"}},{"$f":"'Trial 6'!CE12","v":{"v":707947.8062189461,"d":"$707,948"}},{"$f":"'Trial 6'!CF12","v":{"v":707626.6989525759,"d":"$707,627"}},{"$f":"'Trial 6'!CG12","v":{"v":707266.9434403272,"d":"$707,267"}},{"$f":"'Trial 6'!CH12","v":{"v":706978.7533625878,"d":"$706,979"}},{"$f":"'Trial 6'!CI12","v":{"v":706570.9143334642,"d":"$706,571"}},{"$f":"'Trial 6'!CJ12","v":{"v":706288.1170023803,"d":"$706,288"}},{"$f":"'Trial 6'!CK12","v":{"v":705928.3470434811,"d":"$705,928"}},{"$f":"'Trial 6'!CL12","v":{"v":705657.0188239283,"d":"$705,657"}},{"$f":"'Trial 6'!CM12","v":{"v":705264.0274498081,"d":"$705,264"}},{"$f":"'Trial 6'!CO12","v":{"v":704888.2651099269,"d":"$704,888"}},{"$f":"'Trial 6'!CP12","v":{"v":704576.8004625012,"d":"$704,577"}},{"$f":"'Trial 6'!CQ12","v":{"v":704162.6170963787,"d":"$704,163"}},{"$f":"'Trial 6'!CR12","v":{"v":703747.1092621286,"d":"$703,747"}},{"$f":"'Trial 6'!CS12","v":{"v":703461.6884293231,"d":"$703,462"}},{"$f":"'Trial 6'!CT12","v":{"v":703159.4806054743,"d":"$703,159"}},{"$f":"'Trial 6'!CU12","v":{"v":702815.8206982438,"d":"$702,816"}},{"$f":"'Trial 6'!CV12","v":{"v":702529.4470930761,"d":"$702,529"}},{"$f":"'Trial 6'!CW12","v":{"v":702228.9148143294,"d":"$702,229"}},{"$f":"'Trial 6'!CX12","v":{"v":701873.4634082529,"d":"$701,873"}},{"$f":"'Trial 6'!CY12","v":{"v":701515.543198715,"d":"$701,516"}},{"$f":"'Trial 6'!CZ12","v":{"v":701221.103627542,"d":"$701,221"}},{"$f":"'Trial 6'!DB12","v":{"v":700924.2664795975,"d":"$700,924"}},{"$f":"'Trial 6'!DC12","v":{"v":700599.9092498679,"d":"$700,600"}},{"$f":"'Trial 6'!DD12","v":{"v":700259.6434045555,"d":"$700,260"}},{"$f":"'Trial 6'!DE12","v":{"v":699919.3000516325,"d":"$699,919"}},{"$f":"'Trial 6'!DF12","v":{"v":699594.1229412612,"d":"$699,594"}},{"$f":"'Trial 6'!DG12","v":{"v":699226.3783480638,"d":"$699,226"}},{"$f":"'Trial 6'!DH12","v":{"v":698872.2189224327,"d":"$698,872"}},{"$f":"'Trial 6'!DI12","v":{"v":698528.5419051885,"d":"$698,529"}},{"$f":"'Trial 6'!DJ12","v":{"v":698188.8989326432,"d":"$698,189"}},{"$f":"'Trial 6'!DK12","v":{"v":697834.387065881,"d":"$697,834"}},{"$f":"'Trial 6'!DL12","v":{"v":697544.8354754793,"d":"$697,545"}},{"$f":"'Trial 6'!DM12","v":{"v":697158.0365440692,"d":"$697,158"}},{"$f":"'Trial 6'!DO12","v":{"v":696812.720207841,"d":"$696,813"}},{"$f":"'Trial 6'!DP12","v":{"v":696503.5277214254,"d":"$696,504"}},{"$f":"'Trial 6'!DQ12","v":{"v":696127.4406952927,"d":"$696,127"}},{"$f":"'Trial 6'!DR12","v":{"v":695807.2560636374,"d":"$695,807"}},{"$f":"'Trial 6'!DS12","v":{"v":695489.009160293,"d":"$695,489"}},{"$f":"'Trial 6'!DT12","v":{"v":695166.1480823581,"d":"$695,166"}},{"$f":"'Trial 6'!DU12","v":{"v":694814.6588279591,"d":"$694,815"}},{"$f":"'Trial 6'!DV12","v":{"v":694527.4797997031,"d":"$694,527"}},{"$f":"'Trial 6'!DW12","v":{"v":694145.4341701857,"d":"$694,145"}},{"$f":"'Trial 6'!DX12","v":{"v":693784.4205783722,"d":"$693,784"}},{"$f":"'Trial 6'!DY12","v":{"v":693433.8359337798,"d":"$693,434"}},{"$f":"'Trial 6'!DZ12","v":{"v":693133.5607177805,"d":"$693,134"}},{"$f":"'Trial 6'!EB12","v":{"v":692748.4140359976,"d":"$692,748"}},{"$f":"'Trial 6'!EC12","v":{"v":692344.337934998,"d":"$692,344"}},{"$f":"'Trial 6'!ED12","v":{"v":692035.3072077306,"d":"$692,035"}},{"$f":"'Trial 6'!EE12","v":{"v":691655.9394290816,"d":"$691,656"}},{"$f":"'Trial 6'!EF12","v":{"v":691307.3662762897,"d":"$691,307"}},{"$f":"'Trial 6'!EG12","v":{"v":690910.2263429422,"d":"$690,910"}},{"$f":"'Trial 6'!EH12","v":{"v":690634.7519272789,"d":"$690,635"}},{"$f":"'Trial 6'!EI12","v":{"v":690242.3266823338,"d":"$690,242"}},{"$f":"'Trial 6'!EJ12","v":{"v":689924.8778487728,"d":"$689,925"}},{"$f":"'Trial 6'!EK12","v":{"v":689639.0797069385,"d":"$689,639"}},{"$f":"'Trial 6'!EL12","v":{"v":689308.8123134793,"d":"$689,309"}},{"$f":"'Trial 6'!EM12","v":{"v":688965.384402001,"d":"$688,965"}}]
[{"$f":"'Trial 7'!B12","v":{"v":728000,"d":"$728,000"}},{"$f":"'Trial 7'!C12","v":{"v":727844.923363148,"d":"$727,845"}},{"$f":"'Trial 7'!D12","v":{"v":727702.906560612,"d":"$727,703"}},{"$f":"'Trial 7'!E12","v":{"v":727423.0076094503,"d":"$727,423"}},{"$f":"'Trial 7'!F12","v":{"v":727148.5666958909,"d":"$727,149"}},{"$f":"'Trial 7'!G12","v":{"v":726845.7684175469,"d":"$726,846"}},{"$f":"'Trial 7'!H12","v":{"v":726561.7205516795,"d":"$726,562"}},{"$f":"'Trial 7'!I12","v":{"v":726375.8326587789,"d":"$726,376"}},{"$f":"'Trial 7'!J12","v":{"v":726171.8647239559,"d":"$726,172"}},{"$f":"'Trial 7'!K12","v":{"v":725920.6934079645,"d":"$725,921"}},{"$f":"'Trial 7'!L12","v":{"v":725647.3262439743,"d":"$725,647"}},{"$f":"'Trial 7'!M12","v":{"v":725410.9855274322,"d":"$725,411"}},{"$f":"'Trial 7'!O12","v":{"v":725197.6350194977,"d":"$725,198"}},{"$f":"'Trial 7'!P12","v":{"v":724958.9118716703,"d":"$724,959"}},{"$f":"'Trial 7'!Q12","v":{"v":724773.7294663532,"d":"$724,774"}},{"$f":"'Trial 7'!R12","v":{"v":724557.4874496744,"d":"$724,557"}},{"$f":"'Trial 7'!S12","v":{"v":724407.0016381785,"d":"$724,407"}},{"$f":"'Trial 7'!T12","v":{"v":724147.6201037939,"d":"$724,148"}},{"$f":"'Trial 7'!U12","v":{"v":723952.2688616611,"d":"$723,952"}},{"$f":"'Trial 7'!V12","v":{"v":723692.6126602587,"d":"$723,693"}},{"$f":"'Trial 7'!W12","v":{"v":723481.8389198148,"d":"$723,482"}},{"$f":"'Trial 7'!X12","v":{"v":723159.6163913733,"d":"$723,160"}},{"$f":"'Trial 7'!Y12","v":{"v":722883.4707200979,"d":"$722,883"}},{"$f":"'Trial 7'!Z12","v":{"v":722675.2891831803,"d":"$722,675"}},{"$f":"'Trial 7'!AB12","v":{"v":722454.652348609,"d":"$722,455"}},{"$f":"'Trial 7'!AC12","v":{"v":722190.9498535921,"d":"$722,191"}},{"$f":"'Trial 7'!AD12","v":{"v":721983.4433641289,"d":"$721,983"}},{"$f":"'Trial 7'!AE12","v":{"v":721768.1872905176,"d":"$721,768"}},{"$f":"'Trial 7'!AF12","v":{"v":721509.2787719588,"d":"$721,509"}},{"$f":"'Trial 7'!AG12","v":{"v":721341.5901720219,"d":"$721,342"}},{"$f":"'Trial 7'!AH12","v":{"v":721064.9520104721,"d":"$721,065"}},{"$f":"'Trial 7'!AI12","v":{"v":720796.0420852659,"d":"$720,796"}},{"$f":"'Trial 7'!AJ12","v":{"v":720487.1781129792,"d":"$720,487"}},{"$f":"'Trial 7'!AK12","v":{"v":720180.9194732538,"d":"$720,181"}},{"$f":"'Trial 7'!AL12","v":{"v":719944.807941858,"d":"$719,945"}},{"$f":"'Trial 7'!AM12","v":{"v":719690.5400437259,"d":"$719,691"}},{"$f":"'Trial 7'!AO12","v":{"v":719374.1443523165,"d":"$719,374"}},{"$f":"'Trial 7'!AP12","v":{"v":719053.5997732138,"d":"$719,054"}},{"$f":"'Trial 7'!AQ12","v":{"v":718748.3640193401,"d":"$718,748"}},{"$f":"'Trial 7'!AR12","v":{"v":718466.4816273618,"d":"$718,466"}},{"$f":"'Trial 7'!AS12","v":{"v":718127.8166706333,"d":"$718,128"}},{"$f":"'Trial 7'!AT12","v":{"v":717806.0121585673,"d":"$717,806"}},{"$f":"'Trial 7'!AU12","v":{"v":717468.956650085,"d":"$717,469"}},{"$f":"'Trial 7'!AV12","v":{"v":717210.1444516629,"d":"$717,210"}},{"$f":"'Trial 7'!AW12","v":{"v":716974.3373387259,"d":"$716,974"}},{"$f":"'Trial 7'!AX12","v":{"v":716741.1574107857,"d":"$716,741"}},{"$f":"'Trial 7'!AY12","v":{"v":716488.2662787194,"d":"$716,488"}},{"$f":"'Trial 7'!AZ12","v":{"v":716226.9206227752,"d":"$716,227"}},{"$f":"'Trial 7'!BB12","v":{"v":715966.3511905096,"d":"$715,966"}},{"$f":"'Trial 7'!BC12","v":{"v":715661.0818001889,"d":"$715,661"}},{"$f":"'Trial 7'!BD12","v":{"v":715387.1485532977,"d":"$715,387"}},{"$f":"'Trial 7'!BE12","v":{"v":715167.1011678838,"d":"$715,167"}},{"$f":"'Trial 7'!BF12","v":{"v":714873.6197788029,"d":"$714,874"}},{"$f":"'Trial 7'!BG12","v":{"v":714538.6153069813,"d":"$714,539"}},{"$f":"'Trial 7'!BH12","v":{"v":714232.4501851046,"d":"$714,232"}},{"$f":"'Trial 7'!BI12","v":{"v":713899.6889349525,"d":"$713,900"}},{"$f":"'Trial 7'!BJ12","v":{"v":713541.8191133849,"d":"$713,542"}},{"$f":"'Trial 7'!BK12","v":{"v":713266.5992940143,"d":"$713,267"}},{"$f":"'Trial 7'!BL12","v":{"v":713011.1620548072,"d":"$713,011"}},{"$f":"'Trial 7'!BM12","v":{"v":712716.8410994391,"d":"$712,717"}},{"$f":"'Trial 7'!BO12","v":{"v":712340.6960566513,"d":"$712,341"}},{"$f":"'Trial 7'!BP12","v":{"v":711988.712147469,"d":"$711,989"}},{"$f":"'Trial 7'!BQ12","v":{"v":711662.0362083998,"d":"$711,662"}},{"$f":"'Trial 7'!BR12","v":{"v":711342.999671499,"d":"$711,343"}},{"$f":"'Trial 7'!BS12","v":{"v":711110.4996233503,"d":"$711,110"}},{"$f":"'Trial 7'!BT12","v":{"v":710867.3936962682,"d":"$710,867"}},{"$f":"'Trial 7'!BU12","v":{"v":710540.9492117306,"d":"$710,541"}},{"$f":"'Trial 7'!BV12","v":{"v":710183.5006892348,"d":"$710,184"}},{"$f":"'Trial 7'!BW12","v":{"v":709869.3028320605,"d":"$709,869"}},{"$f":"'Trial 7'!BX12","v":{"v":709574.7367241038,"d":"$709,575"}},{"$f":"'Trial 7'!BY12","v":{"v":709263.5610354119,"d":"$709,264"}},{"$f":"'Trial 7'!BZ12","v":{"v":708994.580345005,"d":"$708,995"}},{"$f":"'Trial 7'!CB12","v":{"v":708701.2537419929,"d":"$708,701"}},{"$f":"'Trial 7'!CC12","v":{"v":708379.0998866942,"d":"$708,379"}},{"$f":"'Trial 7'!CD12","v":{"v":708017.0531024811,"d":"$708,017"}},{"$f":"'Trial 7'!CE12","v":{"v":707724.8702329656,"d":"$707,725"}},{"$f":"'Trial 7'!CF12","v":{"v":707408.6630111727,"d":"$707,409"}},{"$f":"'Trial 7'!CG12","v":{"v":707013.2986662912,"d":"$707,013"}},{"$f":"'Trial 7'!CH12","v":{"v":706687.975592156,"d":"$706,688"}},{"$f":"'Trial 7'!CI12","v":{"v":706289.7168379071,"d":"$706,290"}},{"$f":"'Trial 7'!CJ12","v":{"v":705886.4162804983,"d":"$705,886"}},{"$f":"'Trial 7'!CK12","v":{"v":705563.1523215732,"d":"$705,563"}},{"$f":"'Trial 7'!CL12","v":{"v":705285.2935246137,"d":"$705,285"}},{"$f":"'Trial 7'!CM12","v":{"v":704966.8789714328,"d":"$704,967"}},{"$f":"'Trial 7'!CO12","v":{"v":704571.8161632078,"d":"$704,572"}},{"$f":"'Trial 7'!CP12","v":{"v":704221.1338431358,"d":"$704,221"}},{"$f":"'Trial 7'!CQ12","v":{"v":703922.8692079281,"d":"$703,923"}},{"$f":"'Trial 7'!CR12","v":{"v":703583.8408971478,"d":"$703,584"}},{"$f":"'Trial 7'!CS12","v":{"v":703264.5514301265,"d":"$703,265"}},{"$f":"'Trial 7'!CT12","v":{"v":703007.1792785071,"d":"$703,007"}},{"$f":"'Trial 7'!CU12","v":{"v":702681.3034962629,"d":"$702,681"}},{"$f":"'Trial 7'!CV12","v":{"v":702338.9746307961,"d":"$702,339"}},{"$f":"'Trial 7'!CW12","v":{"v":702031.1759666298,"d":"$702,031"}},{"$f":"'Trial 7'!CX12","v":{"v":701712.6251729149,"d":"$701,713"}},{"$f":"'Trial 7'!CY12","v":{"v":701457.6933118486,"d":"$701,458"}},{"$f":"'Trial 7'!CZ12","v":{"v":701189.8473065868,"d":"$701,190"}},{"$f":"'Trial 7'!DB12","v":{"v":700853.8927580947,"d":"$700,854"}},{"$f":"'Trial 7'!DC12","v":{"v":700447.4420776211,"d":"$700,447"}},{"$f":"'Trial 7'!DD12","v":{"v":700113.8035158197,"d":"$700,114"}},{"$f":"'Trial 7'!DE12","v":{"v":699800.6824628895,"d":"$699,801"}},{"$f":"'Trial 7'!DF12","v":{"v":699382.5249650629,"d":"$699,383"}},{"$f":"'Trial 7'!DG12","v":{"v":699059.6067469703,"d":"$699,060"}},{"$f":"'Trial 7'!DH12","v":{"v":698741.9937136782,"d":"$698,742"}},{"$f":"'Trial 7'!DI12","v":{"v":698344.2708781488,"d":"$698,344"}},{"$f":"'Trial 7'!DJ12","v":{"v":698043.8809195101,"d":"$698,044"}},{"$f":"'Trial 7'!DK12","v":{"v":697749.4886266248,"d":"$697,749"}},{"$f":"'Trial 7'!DL12","v":{"v":697329.5498318786,"d":"$697,330"}},{"$f":"'Trial 7'!DM12","v":{"v":696993.0453325752,"d":"$696,993"}},{"$f":"'Trial 7'!DO12","v":{"v":696702.7525996981,"d":"$696,703"}},{"$f":"'Trial 7'!DP12","v":{"v":696332.7737320825,"d":"$696,333"}},{"$f":"'Trial 7'!DQ12","v":{"v":696037.9192966342,"d":"$696,038"}},{"$f":"'Trial 7'!DR12","v":{"v":695731.7165846571,"d":"$695,732"}},{"$f":"'Trial 7'!DS12","v":{"v":695327.9260865292,"d":"$695,328"}},{"$f":"'Trial 7'!DT12","v":{"v":695052.7655271867,"d":"$695,053"}},{"$f":"'Trial 7'!DU12","v":{"v":694648.4069324671,"d":"$694,648"}},{"$f":"'Trial 7'!DV12","v":{"v":694308.4080907186,"d":"$694,308"}},{"$f":"'Trial 7'!DW12","v":{"v":693907.0058032225,"d":"$693,907"}},{"$f":"'Trial 7'!DX12","v":{"v":693610.9670794647,"d":"$693,611"}},{"$f":"'Trial 7'!DY12","v":{"v":693344.9941048202,"d":"$693,345"}},{"$f":"'Trial 7'!DZ12","v":{"v":692935.838373661,"d":"$692,936"}},{"$f":"'Trial 7'!EB12","v":{"v":692630.701182148,"d":"$692,631"}},{"$f":"'Trial 7'!EC12","v":{"v":692312.8088013808,"d":"$692,313"}},{"$f":"'Trial 7'!ED12","v":{"v":691955.7071920014,"d":"$691,956"}},{"$f":"'Trial 7'!EE12","v":{"v":691606.2201212383,"d":"$691,606"}},{"$f":"'Trial 7'!EF12","v":{"v":691290.4236246423,"d":"$691,290"}},{"$f":"'Trial 7'!EG12","v":{"v":690979.6718568801,"d":"$690,980"}},{"$f":"'Trial 7'!EH12","v":{"v":690628.0286268966,"d":"$690,628"}},{"$f":"'Trial 7'!EI12","v":{"v":690297.5651369528,"d":"$690,298"}},{"$f":"'Trial 7'!EJ12","v":{"v":690008.0951477321,"d":"$690,008"}},{"$f":"'Trial 7'!EK12","v":{"v":689598.4549267686,"d":"$689,598"}},{"$f":"'Trial 7'!EL12","v":{"v":689279.0086408542,"d":"$689,279"}},{"$f":"'Trial 7'!EM12","v":{"v":689000.7692161127,"d":"$689,001"}}]
[{"$f":"'Trial 8'!B12","v":{"v":728000,"d":"$728,000"}},{"$f":"'Trial 8'!C12","v":{"v":727796.6528912779,"d":"$727,797"}},{"$f":"'Trial 8'!D12","v":{"v":727482.8730306834,"d":"$727,483"}},{"$f":"'Trial 8'!E12","v":{"v":727251.605816761,"d":"$727,252"}},{"$f":"'Trial 8'!F12","v":{"v":726991.8077666082,"d":"$726,992"}},{"$f":"'Trial 8'!G12","v":{"v":726770.3702603605,"d":"$726,770"}},{"$f":"'Trial 8'!H12","v":{"v":726479.1647460463,"d":"$726,479"}},{"$f":"'Trial 8'!I12","v":{"v":726296.3980095012,"d":"$726,296"}},{"$f":"'Trial 8'!J12","v":{"v":726046.05755082,"d":"$726,046"}},{"$f":"'Trial 8'!K12","v":{"v":725813.657756469,"d":"$725,814"}},{"$f":"'Trial 8'!L12","v":{"v":725642.5888767593,"d":"$725,643"}},{"$f":"'Trial 8'!M12","v":{"v":725433.0718483035,"d":"$725,433"}},{"$f":"'Trial 8'!O12","v":{"v":725248.4861076749,"d":"$725,248"}},{"$f":"'Trial 8'!P12","v":{"v":725043.4031637625,"d":"$725,043"}},{"$f":"'Trial 8'!Q12","v":{"v":724805.8970897667,"d":"$724,806"}},{"$f":"'Trial 8'!R12","v":{"v":724581.4391954464,"d":"$724,581"}},{"$f":"'Trial 8'!S12","v":{"v":724314.0395932852,"d":"$724,314"}},{"$f":"'Trial 8'!T12","v":{"v":724042.8069732059,"d":"$724,043"}},{"$f":"'Trial 8'!U12","v":{"v":723880.7730667557,"d":"$723,881"}},{"$f":"'Trial 8'!V12","v":{"v":723623.4232649998,"d":"$723,623"}},{"$f":"'Trial 8'!W12","v":{"v":723421.5547113591,"d":"$723,422"}},{"$f":"'Trial 8'!X12","v":{"v":723106.3106893563,"d":"$723,106"}},{"$f":"'Trial 8'!Y12","v":{"v":722864.5375993247,"d":"$722,865"}},{"$f":"'Trial 8'!Z12","v":{"v":722544.0628820844,"d":"$722,544"}},{"$f":"'Trial 8'!AB12","v":{"v":722363.3422538507,"d":"$722,363"}},{"$f":"'Trial 8'!AC12","v":{"v":722151.616110531,"d":"$722,152"}},{"$f":"'Trial 8'!AD12","v":{"v":721828.9883125072,"d":"$721,829"}},{"$f":"'Trial 8'!AE12","v":{"v":721560.871013418,"d":"$721,561"}},{"$f":"'Trial 8'!AF12","v":{"v":721282.2998548751,"d":"$721,282"}},{"$f":"'Trial 8'!AG12","v":{"v":720939.2570282107,"d":"$720,939"}},{"$f":"'Trial 8'!AH12","v":{"v":720714.1359570959,"d":"$720,714"}},{"$f":"'Trial 8'!AI12","v":{"v":720479.9291495809,"d":"$720,480"}},{"$f":"'Trial 8'!AJ12","v":{"v":720174.0296524162,"d":"$720,174"}},{"$f":"'Trial 8'!AK12","v":{"v":719980.3757508749,"d":"$719,980"}},{"$f":"'Trial 8'!AL12","v":{"v":719749.758466252,"d":"$719,750"}},{"$f":"'Trial 8'!AM12","v":{"v":719471.4528296613,"d":"$719,471"}},{"$f":"'Trial 8'!AO12","v":{"v":719273.8388279646,"d":"$719,274"}},{"$f":"'Trial 8'!AP12","v":{"v":719001.9847103349,"d":"$719,002"}},{"$f":"'Trial 8'!AQ12","v":{"v":718720.5648043237,"d":"$718,721"}},{"$f":"'Trial 8'!AR12","v":{"v":718484.4447708898,"d":"$718,484"}},{"$f":"'Trial 8'!AS12","v":{"v":718191.4768033953,"d":"$718,191"}},{"$f":"'Trial 8'!AT12","v":{"v":717960.6651470871,"d":"$717,961"}},{"$f":"'Trial 8'!AU12","v":{"v":717681.844171361,"d":"$717,682"}},{"$f":"'Trial 8'!AV12","v":{"v":717371.7515322417,"d":"$717,372"}},{"$f":"'Trial 8'!AW12","v":{"v":717074.5910093596,"d":"$717,075"}},{"$f":"'Trial 8'!AX12","v":{"v":716796.2008063701,"d":"$716,796"}},{"$f":"'Trial 8'!AY12","v":{"v":716587.7581385333,"d":"$716,588"}},{"$f":"'Trial 8'!AZ12","v":{"v":716291.1933484074,"d":"$716,291"}},{"$f":"'Trial 8'!BB12","v":{"v":715936.5553557379,"d":"$715,937"}},{"$f":"'Trial 8'!BC12","v":{"v":715594.9083170132,"d":"$715,595"}},{"$f":"'Trial 8'!BD12","v":{"v":715352.4304967537,"d":"$715,352"}},{"$f":"'Trial 8'!BE12","v":{"v":715112.6491144908,"d":"$715,113"}},{"$f":"'Trial 8'!BF12","v":{"v":714808.7811664017,"d":"$714,809"}},{"$f":"'Trial 8'!BG12","v":{"v":714552.3602297142,"d":"$714,552"}},{"$f":"'Trial 8'!BH12","v":{"v":714253.4693183776,"d":"$714,253"}},{"$f":"'Trial 8'!BI12","v":{"v":713996.9964524332,"d":"$713,997"}},{"$f":"'Trial 8'!BJ12","v":{"v":713724.6773801439,"d":"$713,725"}},{"$f":"'Trial 8'!BK12","v":{"v":713418.3203162232,"d":"$713,418"}},{"$f":"'Trial 8'!BL12","v":{"v":713098.1508515582,"d":"$713,098"}},{"$f":"'Trial 8'!BM12","v":{"v":712789.249853303,"d":"$712,789"}},{"$f":"'Trial 8'!BO12","v":{"v":712494.3931726976,"d":"$712,494"}},{"$f":"'Trial 8'!BP12","v":{"v":712108.5851208204,"d":"$712,109"}},{"$f":"'Trial 8'!BQ12","v":{"v":711881.2081447121,"d":"$711,881"}},{"$f":"'Trial 8'!BR12","v":{"v":711634.3648372965,"d":"$711,634"}},{"$f":"'Trial 8'!BS12","v":{"v":711419.9335409545,"d":"$711,420"}},{"$f":"'Trial 8'!BT12","v":{"v":711102.6870417641,"d":"$711,103"}},{"$f":"'Trial 8'!BU12","v":{"v":710877.4940900216,"d":"$710,877"}},{"$f":"'Trial 8'!BV12","v":{"v":710565.5883233213,"d":"$710,566"}},{"$f":"'Trial 8'!BW12","v":{"v":710174.0849571087,"d":"$710,174"}},{"$f":"'Trial 8'!BX12","v":{"v":709882.1250305952,"d":"$709,882"}},{"$f":"'Trial 8'!BY12","v":{"v":709519.4128805529,"d":"$709,519"}},{"$f":"'Trial 8'!BZ12","v":{"v":709185.0386894159,"d":"$709,185"}},{"$f":"'Trial 8'!CB12","v":{"v":708895.9435830931,"d":"$708,896"}},{"$f":"'Trial 8'!CC12","v":{"v":708507.856866371,"d":"$708,508"}},{"$f":"'Trial 8'!CD12","v":{"v":708245.7568195255,"d":"$708,246"}},{"$f":"'Trial 8'!CE12","v":{"v":707906.8732876523,"d":"$707,907"}},{"$f":"'Trial 8'!CF12","v":{"v":707546.0190769905,"d":"$707,546"}},{"$f":"'Trial 8'!CG12","v":{"v":707258.6125104629,"d":"$707,259"}},{"$f":"'Trial 8'!CH12","v":{"v":706940.9826816914,"d":"$706,941"}},{"$f":"'Trial 8'!CI12","v":{"v":706633.9461146301,"d":"$706,634"}},{"$f":"'Trial 8'!CJ12","v":{"v":706264.4167998179,"d":"$706,264"}},{"$f":"'Trial 8'!CK12","v":{"v":706032.9462581383,"d":"$706,033"}},{"$f":"'Trial 8'!CL12","v":{"v":705680.1179036162,"d":"$705,680"}},{"$f":"'Trial 8'!CM12","v":{"v":705390.4070885028,"d":"$705,390"}},{"$f":"'Trial 8'!CO12","v":{"v":705002.6419826958,"d":"$705,003"}},{"$f":"'Trial 8'!CP12","v":{"v":704705.1942597677,"d":"$704,705"}},{"$f":"'Trial 8'!CQ12","v":{"v":704358.0632073062,"d":"$704,358"}},{"$f":"'Trial 8'!CR12","v":{"v":704097.5882288603,"d":"$704,098"}},{"$f":"'Trial 8'!CS12","v":{"v":703721.2776479695,"d":"$703,721"}},{"$f":"'Trial 8'!CT12","v":{"v":703419.3444783903,"d":"$703,419"}},{"$f":"'Trial 8'!CU12","v":{"v":703141.3590421976,"d":"$703,141"}},{"$f":"'Trial 8'!CV12","v":{"v":702868.4465543359,"d":"$702,868"}},{"$f":"'Trial 8'!CW12","v":{"v":702563.252071723,"d":"$702,563"}},{"$f":"'Trial 8'!CX12","v":{"v":702155.7477951957,"d":"$702,156"}},{"$f":"'Trial 8'!CY12","v":{"v":701835.1894091113,"d":"$701,835"}},{"$f":"'Trial 8'!CZ12","v":{"v":701474.6994476762,"d":"$701,475"}},{"$f":"'Trial 8'!DB12","v":{"v":701202.8616306618,"d":"$701,203"}},{"$f":"'Trial 8'!DC12","v":{"v":700917.6952934731,"d":"$700,918"}},{"$f":"'Trial 8'!DD12","v":{"v":700580.9578800821,"d":"$700,581"}},{"$f":"'Trial 8'!DE12","v":{"v":700220.9761456264,"d":"$700,221"}},{"$f":"'Trial 8'!DF12","v":{"v":699976.5952370614,"d":"$699,977"}},{"$f":"'Trial 8'!DG12","v":{"v":699644.2780031282,"d":"$699,644"}},{"$f":"'Trial 8'!DH12","v":{"v":699308.0520918485,"d":"$699,308"}},{"$f":"'Trial 8'!DI12","v":{"v":699026.3288844428,"d":"$699,026"}},{"$f":"'Trial 8'!DJ12","v":{"v":698651.0098590942,"d":"$698,651"}},{"$f":"'Trial 8'!DK12","v":{"v":698378.4340680372,"d":"$698,378"}},{"$f":"'Trial 8'!DL12","v":{"v":698088.6861283338,"d":"$698,089"}},{"$f":"'Trial 8'!DM12","v":{"v":697725.699398961,"d":"$697,726"}},{"$f":"'Trial 8'!DO12","v":{"v":697428.7472611476,"d":"$697,429"}},{"$f":"'Trial 8'!DP12","v":{"v":697137.9300730348,"d":"$697,138"}},{"$f":"'Trial 8'!DQ12","v":{"v":696764.8532223036,"d":"$696,765"}},{"$f":"'Trial 8'!DR12","v":{"v":696451.5510469474,"d":"$696,452"}},{"$f":"'Trial 8'!DS12","v":{"v":696073.2487773517,"d":"$696,073"}},{"$f":"'Trial 8'!DT12","v":{"v":695760.7538143983,"d":"$695,761"}},{"$f":"'Trial 8'!DU12","v":{"v":695476.4557509322,"d":"$695,476"}},{"$f":"'Trial 8'!DV12","v":{"v":695124.2448158178,"d":"$695,124"}},{"$f":"'Trial 8'!DW12","v":{"v":694744.8041499874,"d":"$694,745"}},{"$f":"'Trial 8'!DX12","v":{"v":694404.2495915395,"d":"$694,404"}},{"$f":"'Trial 8'!DY12","v":{"v":694066.5701009711,"d":"$694,067"}},{"$f":"'Trial 8'!DZ12","v":{"v":693775.4166635599,"d":"$693,775"}},{"$f":"'Trial 8'!EB12","v":{"v":693422.983315779,"d":"$693,423"}},{"$f":"'Trial 8'!EC12","v":{"v":693121.0260102862,"d":"$693,121"}},{"$f":"'Trial 8'!ED12","v":{"v":692721.0420319054,"d":"$692,721"}},{"$f":"'Trial 8'!EE12","v":{"v":692362.9810351918,"d":"$692,363"}},{"$f":"'Trial 8'!EF12","v":{"v":691967.521664918,"d":"$691,968"}},{"$f":"'Trial 8'!EG12","v":{"v":691690.3666931267,"d":"$691,690"}},{"$f":"'Trial 8'!EH12","v":{"v":691308.2795117807,"d":"$691,308"}},{"$f":"'Trial 8'!EI12","v":{"v":690960.217271476,"d":"$690,960"}},{"$f":"'Trial 8'!EJ12","v":{"v":690639.2197507694,"d":"$690,639"}},{"$f":"'Trial 8'!EK12","v":{"v":690313.2432472374,"d":"$690,313"}},{"$f":"'Trial 8'!EL12","v":{"v":689963.7338019098,"d":"$689,964"}},{"$f":"'Trial 8'!EM12","v":{"v":689524.9806116353,"d":"$689,525"}}]
[{"$f":"'(Other Computations)'!B47","v":{"v":5824000,"d":"$5,824,000"}},{"$f":"'(Other Computations)'!C47","v":{"v":5822405.698797523,"d":"$5,822,406"}},{"$f":"'(Other Computations)'!D47","v":{"v":5820659.552682306,"d":"$5,820,660"}},{"$f":"'(Other Computations)'!E47","v":{"v":5818901.76015073,"d":"$5,818,902"}},{"$f":"'(Other Computations)'!F47","v":{"v":5816928.159618574,"d":"$5,816,928"}},{"$f":"'(Other Computations)'!G47","v":{"v":5814970.079019384,"d":"$5,814,970"}},{"$f":"'(Other Computations)'!H47","v":{"v":5813090.302895536,"d":"$5,813,090"}},{"$f":"'(Other Computations)'!I47","v":{"v":5811521.996350637,"d":"$5,811,522"}},{"$f":"'(Other Computations)'!J47","v":{"v":5809657.15122534,"d":"$5,809,657"}},{"$f":"'(Other Computations)'!K47","v":{"v":5807983.938534573,"d":"$5,807,984"}},{"$f":"'(Other Computations)'!L47","v":{"v":5806049.423193192,"d":"$5,806,049"}},{"$f":"'(Other Computations)'!M47","v":{"v":5804292.186849026,"d":"$5,804,292"}},{"$f":"'(Other Computations)'!O47","v":{"v":5802518.190550078,"d":"$5,802,518"}},{"$f":"'(Other Computations)'!P47","v":{"v":5800529.007023806,"d":"$5,800,529"}},{"$f":"'(Other Computations)'!Q47","v":{"v":5798695.068125415,"d":"$5,798,695"}},{"$f":"'(Other Computations)'!R47","v":{"v":5797003.816855973,"d":"$5,797,004"}},{"$f":"'(Other Computations)'!S47","v":{"v":5795132.197051174,"d":"$5,795,132"}},{"$f":"'(Other Computations)'!T47","v":{"v":5793289.249115351,"d":"$5,793,289"}},{"$f":"'(Other Computations)'!U47","v":{"v":5791379.643840786,"d":"$5,791,380"}},{"$f":"'(Other Computations)'!V47","v":{"v":5789349.571235211,"d":"$5,789,350"}},{"$f":"'(Other Computations)'!W47","v":{"v":5787482.803180937,"d":"$5,787,483"}},{"$f":"'(Other Computations)'!X47","v":{"v":5785454.600108735,"d":"$5,785,455"}},{"$f":"'(Other Computations)'!Y47","v":{"v":5783514.608410396,"d":"$5,783,515"}},{"$f":"'(Other Computations)'!Z47","v":{"v":5781396.108151317,"d":"$5,781,396"}},{"$f":"'(Other Computations)'!AB47","v":{"v":5779475.724614113,"d":"$5,779,476"}},{"$f":"'(Other Computations)'!AC47","v":{"v":5777320.12888807,"d":"$5,777,320"}},{"$f":"'(Other Computations)'!AD47","v":{"v":5775235.992161637,"d":"$5,775,236"}},{"$f":"'(Other Computations)'!AE47","v":{"v":5773384.284116189,"d":"$5,773,384"}},{"$f":"'(Other Computations)'!AF47","v":{"v":5771109.4668425135,"d":"$5,771,109"}},{"$f":"'(Other Computations)'!AG47","v":{"v":5769053.08576607,"d":"$5,769,053"}},{"$f":"'(Other Computations)'!AH47","v":{"v":5767002.154394646,"d":"$5,767,002"}},{"$f":"'(Other Computations)'!AI47","v":{"v":5764998.19570299,"d":"$5,764,998"}},{"$f":"'(Other Computations)'!AJ47","v":{"v":5762648.430456787,"d":"$5,762,648"}},{"$f":"'(Other Computations)'!AK47","v":{"v":5760560.571283549,"d":"$5,760,561"}},{"$f":"'(Other Computations)'!AL47","v":{"v":5758499.660218086,"d":"$5,758,500"}},{"$f":"'(Other Computations)'!AM47","v":{"v":5756277.017887231,"d":"$5,756,277"}},{"$f":"'(Other Computations)'!AO47","v":{"v":5754225.124966944,"d":"$5,754,225"}},{"$f":"'(Other Computations)'!AP47","v":{"v":5751813.732408157,"d":"$5,751,814"}},{"$f":"'(Other Computations)'!AQ47","v":{"v":5749483.129542453,"d":"$5,749,483"}},{"$f":"'(Other Computations)'!AR47","v":{"v":5747420.283165112,"d":"$5,747,420"}},{"$f":"'(Other Computations)'!AS47","v":{"v":5745211.424917284,"d":"$5,745,211"}},{"$f":"'(Other Computations)'!AT47","v":{"v":5742746.513152579,"d":"$5,742,747"}},{"$f":"'(Other Computations)'!AU47","v":{"v":5740279.886112991,"d":"$5,740,280"}},{"$f":"'(Other Computations)'!AV47","v":{"v":5738189.76639592,"d":"$5,738,190"}},{"$f":"'(Other Computations)'!AW47","v":{"v":5736098.739751085,"d":"$5,736,099"}},{"$f":"'(Other Computations)'!AX47","v":{"v":5733724.508609092,"d":"$5,733,725"}},{"$f":"'(Other Computations)'!AY47","v":{"v":5731501.27180556,"d":"$5,731,501"}},{"$f":"'(Other Computations)'!AZ47","v":{"v":5729154.786794107,"d":"$5,729,155"}},{"$f":"'(Other Computations)'!BB47","v":{"v":5726883.587687879,"d":"$5,726,884"}},{"$f":"'(Other Computations)'!BC47","v":{"v":5724547.095198605,"d":"$5,724,547"}},{"$f":"'(Other Computations)'!BD47","v":{"v":5722406.961556178,"d":"$5,722,407"}},{"$f":"'(Other Computations)'!BE47","v":{"v":5720325.816737602,"d":"$5,720,326"}},{"$f":"'(Other Computations)'!BF47","v":{"v":5718046.749068191,"d":"$5,718,047"}},{"$f":"'(Other Computations)'!BG47","v":{"v":5715650.895301479,"d":"$5,715,651"}},{"$f":"'(Other Computations)'!BH47","v":{"v":5713231.94866291,"d":"$5,713,232"}},{"$f":"'(Other Computations)'!BI47","v":{"v":5711068.0878128605,"d":"$5,711,068"}},{"$f":"'(Other Computations)'!BJ47","v":{"v":5708625.797431377,"d":"$5,708,626"}},{"$f":"'(Other Computations)'!BK47","v":{"v":5706260.893026724,"d":"$5,706,261"}},{"$f":"'(Other Computations)'!BL47","v":{"v":5703901.74139301,"d":"$5,703,902"}},{"$f":"'(Other Computations)'!BM47","v":{"v":5701439.958661409,"d":"$5,701,440"}},{"$f":"'(Other Computations)'!BO47","v":{"v":5698924.471437568,"d":"$5,698,924"}},{"$f":"'(Other Computations)'!BP47","v":{"v":5696265.416667941,"d":"$5,696,265"}},{"$f":"'(Other Computations)'!BQ47","v":{"v":5693992.379448248,"d":"$5,693,992"}},{"$f":"'(Other Computations)'!BR47","v":{"v":5691506.877838338,"d":"$5,691,507"}},{"$f":"'(Other Computations)'!BS47","v":{"v":5689339.148177198,"d":"$5,689,339"}},{"$f":"'(Other Computations)'!BT47","v":{"v":5686885.952275965,"d":"$5,686,886"}},{"$f":"'(Other Computations)'!BU47","v":{"v":5684550.248123112,"d":"$5,684,550"}},{"$f":"'(Other Computations)'!BV47","v":{"v":5681991.120551246,"d":"$5,681,991"}},{"$f":"'(Other Computations)'!BW47","v":{"v":5679410.1628982425,"d":"$5,679,410"}},{"$f":"'(Other Computations)'!BX47","v":{"v":5677137.954684553,"d":"$5,677,138"}},{"$f":"'(Other Computations)'!BY47","v":{"v":5674458.313944822,"d":"$5,674,458"}},{"$f":"'(Other Computations)'!BZ47","v":{"v":5672047.435348546,"d":"$5,672,047"}},{"$f":"'(Other Computations)'!CB47","v":{"v":5669578.772065274,"d":"$5,669,579"}},{"$f":"'(Other Computations)'!CC47","v":{"v":5667075.706544033,"d":"$5,667,076"}},{"$f":"'(Other Computations)'!CD47","v":{"v":5664578.066569445,"d":"$5,664,578"}},{"$f":"'(Other Computations)'!CE47","v":{"v":5661849.716093576,"d":"$5,661,850"}},{"$f":"'(Other Computations)'!CF47","v":{"v":5659162.2052372545,"d":"$5,659,162"}},{"$f":"'(Other Computations)'!CG47","v":{"v":5656572.649497472,"d":"$5,656,573"}},{"$f":"'(Other Computations)'!CH47","v":{"v":5654038.552841399,"d":"$5,654,039"}},{"$f":"'(Other Computations)'!CI47","v":{"v":5651346.502906019,"d":"$5,651,347"}},{"$f":"'(Other Computations)'!CJ47","v":{"v":5648736.535931545,"d":"$5,648,737"}},{"$f":"'(Other Computations)'!CK47","v":{"v":5646361.298899101,"d":"$5,646,361"}},{"$f":"'(Other Computations)'!CL47","v":{"v":5643803.448017898,"d":"$5,643,803"}},{"$f":"'(Other Computations)'!CM47","v":{"v":5641139.814891666,"d":"$5,641,140"}},{"$f":"'(Other Computations)'!CO47","v":{"v":5638276.501859876,"d":"$5,638,277"}},{"$f":"'(Other Computations)'!CP47","v":{"v":5635624.416150266,"d":"$5,635,624"}},{"$f":"'(Other Computations)'!CQ47","v":{"v":5632913.142712369,"d":"$5,632,913"}},{"$f":"'(Other Computations)'!CR47","v":{"v":5630334.175478417,"d":"$5,630,334"}},{"$f":"'(Other Computations)'!CS47","v":{"v":5627648.0336975455,"d":"$5,627,648"}},{"$f":"'(Other Computations)'!CT47","v":{"v":5625058.2035296885,"d":"$5,625,058"}},{"$f":"'(Other Computations)'!CU47","v":{"v":5622365.959645533,"d":"$5,622,366"}},{"$f":"'(Other Computations)'!CV47","v":{"v":5619806.186409247,"d":"$5,619,806"}},{"$f":"'(Other Computations)'!CW47","v":{"v":5617148.318948335,"d":"$5,617,148"}},{"$f":"'(Other Computations)'!CX47","v":{"v":5614326.499795934,"d":"$5,614,326"}},{"$f":"'(Other Computations)'!CY47","v":{"v":5611752.6929546,"d":"$5,611,753"}},{"$f":"'(Other Computations)'!CZ47","v":{"v":5609219.21487231,"d":"$5,609,219"}},{"$f":"'(Other Computations)'!DB47","v":{"v":5606735.40923164,"d":"$5,606,735"}},{"$f":"'(Other Computations)'!DC47","v":{"v":5603984.687345043,"d":"$5,603,985"}},{"$f":"'(Other Computations)'!DD47","v":{"v":5601266.574565148,"d":"$5,601,267"}},{"$f":"'(Other Computations)'!DE47","v":{"v":5598537.383732154,"d":"$5,598,537"}},{"$f":"'(Other Computations)'!DF47","v":{"v":5595959.2310867505,"d":"$5,595,959"}},{"$f":"'(Other Computations)'!DG47","v":{"v":5593306.316861584,"d":"$5,593,306"}},{"$f":"'(Other Computations)'!DH47","v":{"v":5590452.298549716,"d":"$5,590,452"}},{"$f":"'(Other Computations)'!DI47","v":{"v":5587829.869917458,"d":"$5,587,830"}},{"$f":"'(Other Computations)'!DJ47","v":{"v":5585120.4463940095,"d":"$5,585,120"}},{"$f":"'(Other Computations)'!DK47","v":{"v":5582530.50078694,"d":"$5,582,531"}},{"$f":"'(Other Computations)'!DL47","v":{"v":5579884.656651458,"d":"$5,579,885"}},{"$f":"'(Other Computations)'!DM47","v":{"v":5577029.554966802,"d":"$5,577,030"}},{"$f":"'(Other Computations)'!DO47","v":{"v":5574424.440219423,"d":"$5,574,424"}},{"$f":"'(Other Computations)'!DP47","v":{"v":5571808.1147902785,"d":"$5,571,808"}},{"$f":"'(Other Computations)'!DQ47","v":{"v":5569016.214778062,"d":"$5,569,016"}},{"$f":"'(Other Computations)'!DR47","v":{"v":5566345.15485963,"d":"$5,566,345"}},{"$f":"'(Other Computations)'!DS47","v":{"v":5563567.82188525,"d":"$5,563,568"}},{"$f":"'(Other Computations)'!DT47","v":{"v":5560905.538646638,"d":"$5,560,906"}},{"$f":"'(Other Computations)'!DU47","v":{"v":5558081.943756721,"d":"$5,558,082"}},{"$f":"'(Other Computations)'!DV47","v":{"v":5555398.528541686,"d":"$5,555,399"}},{"$f":"'(Other Computations)'!DW47","v":{"v":5552385.774835138,"d":"$5,552,386"}},{"$f":"'(Other Computations)'!DX47","v":{"v":5549756.750158612,"d":"$5,549,757"}},{"$f":"'(Other Computations)'!DY47","v":{"v":5546963.697898676,"d":"$5,546,964"}},{"$f":"'(Other Computations)'!DZ47","v":{"v":5544246.019566705,"d":"$5,544,246"}},{"$f":"'(Other Computations)'!EB47","v":{"v":5541431.569023192,"d":"$5,541,432"}},{"$f":"'(Other Computations)'!EC47","v":{"v":5538784.017999978,"d":"$5,538,784"}},{"$f":"'(Other Computations)'!ED47","v":{"v":5536109.860679538,"d":"$5,536,110"}},{"$f":"'(Other Computations)'!EE47","v":{"v":5533067.391668514,"d":"$5,533,067"}},{"$f":"'(Other Computations)'!EF47","v":{"v":5530311.827165596,"d":"$5,530,312"}},{"$f":"'(Other Computations)'!EG47","v":{"v":5527499.829116011,"d":"$5,527,500"}},{"$f":"'(Other Computations)'!EH47","v":{"v":5524671.794628293,"d":"$5,524,672"}},{"$f":"'(Other Computations)'!EI47","v":{"v":5521912.319698275,"d":"$5,521,912"}},{"$f":"'(Other Computations)'!EJ47","v":{"v":5519119.6439945735,"d":"$5,519,120"}},{"$f":"'(Other Computations)'!EK47","v":{"v":5516357.02339741,"d":"$5,516,357"}},{"$f":"'(Other Computations)'!EL47","v":{"v":5513434.762876473,"d":"$5,513,435"}},{"$f":"'(Other Computations)'!EM47","v":{"v":5510631.2007535035,"d":"$5,510,631"}}]
[{"$f":"'(Intermediate Computations)'!B29","v":"Jan 2010"},{"$f":"'(Intermediate Computations)'!C29","v":"Feb 2010"},{"$f":"'(Intermediate Computations)'!D29","v":"Mar 2010"},{"$f":"'(Intermediate Computations)'!E29","v":"Apr 2010"},{"$f":"'(Intermediate Computations)'!F29","v":"May 2010"},{"$f":"'(Intermediate Computations)'!G29","v":"Jun 2010"},{"$f":"'(Intermediate Computations)'!H29","v":"Jul 2010"},{"$f":"'(Intermediate Computations)'!I29","v":"Aug 2010"},{"$f":"'(Intermediate Computations)'!J29","v":"Sep 2010"},{"$f":"'(Intermediate Computations)'!K29","v":"Oct 2010"},{"$f":"'(Intermediate Computations)'!L29","v":"Nov 2010"},{"$f":"'(Intermediate Computations)'!M29","v":"Dec 2010"},{"$f":"'(Intermediate Computations)'!O29","v":"Jan 2011"},{"$f":"'(Intermediate Computations)'!P29","v":"Feb 2011"},{"$f":"'(Intermediate Computations)'!Q29","v":"Mar 2011"},{"$f":"'(Intermediate Computations)'!R29","v":"Apr 2011"},{"$f":"'(Intermediate Computations)'!S29","v":"May 2011"},{"$f":"'(Intermediate Computations)'!T29","v":"Jun 2011"},{"$f":"'(Intermediate Computations)'!U29","v":"Jul 2011"},{"$f":"'(Intermediate Computations)'!V29","v":"Aug 2011"},{"$f":"'(Intermediate Computations)'!W29","v":"Sep 2011"},{"$f":"'(Intermediate Computations)'!X29","v":"Oct 2011"},{"$f":"'(Intermediate Computations)'!Y29","v":"Nov 2011"},{"$f":"'(Intermediate Computations)'!Z29","v":"Dec 2011"},{"$f":"'(Intermediate Computations)'!AB29","v":"Jan 2012"},{"$f":"'(Intermediate Computations)'!AC29","v":"Feb 2012"},{"$f":"'(Intermediate Computations)'!AD29","v":"Mar 2012"},{"$f":"'(Intermediate Computations)'!AE29","v":"Apr 2012"},{"$f":"'(Intermediate Computations)'!AF29","v":"May 2012"},{"$f":"'(Intermediate Computations)'!AG29","v":"Jun 2012"},{"$f":"'(Intermediate Computations)'!AH29","v":"Jul 2012"},{"$f":"'(Intermediate Computations)'!AI29","v":"Aug 2012"},{"$f":"'(Intermediate Computations)'!AJ29","v":"Sep 2012"},{"$f":"'(Intermediate Computations)'!AK29","v":"Oct 2012"},{"$f":"'(Intermediate Computations)'!AL29","v":"Nov 2012"},{"$f":"'(Intermediate Computations)'!AM29","v":"Dec 2012"},{"$f":"'(Intermediate Computations)'!AO29","v":"Jan 2013"},{"$f":"'(Intermediate Computations)'!AP29","v":"Feb 2013"},{"$f":"'(Intermediate Computations)'!AQ29","v":"Mar 2013"},{"$f":"'(Intermediate Computations)'!AR29","v":"Apr 2013"},{"$f":"'(Intermediate Computations)'!AS29","v":"May 2013"},{"$f":"'(Intermediate Computations)'!AT29","v":"Jun 2013"},{"$f":"'(Intermediate Computations)'!AU29","v":"Jul 2013"},{"$f":"'(Intermediate Computations)'!AV29","v":"Aug 2013"},{"$f":"'(Intermediate Computations)'!AW29","v":"Sep 2013"},{"$f":"'(Intermediate Computations)'!AX29","v":"Oct 2013"},{"$f":"'(Intermediate Computations)'!AY29","v":"Nov 2013"},{"$f":"'(Intermediate Computations)'!AZ29","v":"Dec 2013"},{"$f":"'(Intermediate Computations)'!BB29","v":"Jan 2014"},{"$f":"'(Intermediate Computations)'!BC29","v":"Feb 2014"},{"$f":"'(Intermediate Computations)'!BD29","v":"Mar 2014"},{"$f":"'(Intermediate Computations)'!BE29","v":"Apr 2014"},{"$f":"'(Intermediate Computations)'!BF29","v":"May 2014"},{"$f":"'(Intermediate Computations)'!BG29","v":"Jun 2014"},{"$f":"'(Intermediate Computations)'!BH29","v":"Jul 2014"},{"$f":"'(Intermediate Computations)'!BI29","v":"Aug 2014"},{"$f":"'(Intermediate Computations)'!BJ29","v":"Sep 2014"},{"$f":"'(Intermediate Computations)'!BK29","v":"Oct 2014"},{"$f":"'(Intermediate Computations)'!BL29","v":"Nov 2014"},{"$f":"'(Intermediate Computations)'!BM29","v":"Dec 2014"},{"$f":"'(Intermediate Computations)'!BO29","v":"Jan 2015"},{"$f":"'(Intermediate Computations)'!BP29","v":"Feb 2015"},{"$f":"'(Intermediate Computations)'!BQ29","v":"Mar 2015"},{"$f":"'(Intermediate Computations)'!BR29","v":"Apr 2015"},{"$f":"'(Intermediate Computations)'!BS29","v":"May 2015"},{"$f":"'(Intermediate Computations)'!BT29","v":"Jun 2015"},{"$f":"'(Intermediate Computations)'!BU29","v":"Jul 2015"},{"$f":"'(Intermediate Computations)'!BV29","v":"Aug 2015"},{"$f":"'(Intermediate Computations)'!BW29","v":"Sep 2015"},{"$f":"'(Intermediate Computations)'!BX29","v":"Oct 2015"},{"$f":"'(Intermediate Computations)'!BY29","v":"Nov 2015"},{"$f":"'(Intermediate Computations)'!BZ29","v":"Dec 2015"},{"$f":"'(Intermediate Computations)'!CB29","v":"Jan 2016"},{"$f":"'(Intermediate Computations)'!CC29","v":"Feb 2016"},{"$f":"'(Intermediate Computations)'!CD29","v":"Mar 2016"},{"$f":"'(Intermediate Computations)'!CE29","v":"Apr 2016"},{"$f":"'(Intermediate Computations)'!CF29","v":"May 2016"},{"$f":"'(Intermediate Computations)'!CG29","v":"Jun 2016"},{"$f":"'(Intermediate Computations)'!CH29","v":"Jul 2016"},{"$f":"'(Intermediate Computations)'!CI29","v":"Aug 2016"},{"$f":"'(Intermediate Computations)'!CJ29","v":"Sep 2016"},{"$f":"'(Intermediate Computations)'!CK29","v":"Oct 2016"},{"$f":"'(Intermediate Computations)'!CL29","v":"Nov 2016"},{"$f":"'(Intermediate Computations)'!CM29","v":"Dec 2016"},{"$f":"'(Intermediate Computations)'!CO29","v":"Jan 2017"},{"$f":"'(Intermediate Computations)'!CP29","v":"Feb 2017"},{"$f":"'(Intermediate Computations)'!CQ29","v":"Mar 2017"},{"$f":"'(Intermediate Computations)'!CR29","v":"Apr 2017"},{"$f":"'(Intermediate Computations)'!CS29","v":"May 2017"},{"$f":"'(Intermediate Computations)'!CT29","v":"Jun 2017"},{"$f":"'(Intermediate Computations)'!CU29","v":"Jul 2017"},{"$f":"'(Intermediate Computations)'!CV29","v":"Aug 2017"},{"$f":"'(Intermediate Computations)'!CW29","v":"Sep 2017"},{"$f":"'(Intermediate Computations)'!CX29","v":"Oct 2017"},{"$f":"'(Intermediate Computations)'!CY29","v":"Nov 2017"},{"$f":"'(Intermediate Computations)'!CZ29","v":"Dec 2017"},{"$f":"'(Intermediate Computations)'!DB29","v":"Jan 2018"},{"$f":"'(Intermediate Computations)'!DC29","v":"Feb 2018"},{"$f":"'(Intermediate Computations)'!DD29","v":"Mar 2018"},{"$f":"'(Intermediate Computations)'!DE29","v":"Apr 2018"},{"$f":"'(Intermediate Computations)'!DF29","v":"May 2018"},{"$f":"'(Intermediate Computations)'!DG29","v":"Jun 2018"},{"$f":"'(Intermediate Computations)'!DH29","v":"Jul 2018"},{"$f":"'(Intermediate Computations)'!DI29","v":"Aug 2018"},{"$f":"'(Intermediate Computations)'!DJ29","v":"Sep 2018"},{"$f":"'(Intermediate Computations)'!DK29","v":"Oct 2018"},{"$f":"'(Intermediate Computations)'!DL29","v":"Nov 2018"},{"$f":"'(Intermediate Computations)'!DM29","v":"Dec 2018"},{"$f":"'(Intermediate Computations)'!DO29","v":"Jan 2019"},{"$f":"'(Intermediate Computations)'!DP29","v":"Feb 2019"},{"$f":"'(Intermediate Computations)'!DQ29","v":"Mar 2019"},{"$f":"'(Intermediate Computations)'!DR29","v":"Apr 2019"},{"$f":"'(Intermediate Computations)'!DS29","v":"May 2019"},{"$f":"'(Intermediate Computations)'!DT29","v":"Jun 2019"},{"$f":"'(Intermediate Computations)'!DU29","v":"Jul 2019"},{"$f":"'(Intermediate Computations)'!DV29","v":"Aug 2019"},{"$f":"'(Intermediate Computations)'!DW29","v":"Sep 2019"},{"$f":"'(Intermediate Computations)'!DX29","v":"Oct 2019"},{"$f":"'(Intermediate Computations)'!DY29","v":"Nov 2019"},{"$f":"'(Intermediate Computations)'!DZ29","v":"Dec 2019"},{"$f":"'(Intermediate Computations)'!EB29","v":"Jan 2020"},{"$f":"'(Intermediate Computations)'!EC29","v":"Feb 2020"},{"$f":"'(Intermediate Computations)'!ED29","v":"Mar 2020"},{"$f":"'(Intermediate Computations)'!EE29","v":"Apr 2020"},{"$f":"'(Intermediate Computations)'!EF29","v":"May 2020"},{"$f":"'(Intermediate Computations)'!EG29","v":"Jun 2020"},{"$f":"'(Intermediate Computations)'!EH29","v":"Jul 2020"},{"$f":"'(Intermediate Computations)'!EI29","v":"Aug 2020"},{"$f":"'(Intermediate Computations)'!EJ29","v":"Sep 2020"},{"$f":"'(Intermediate Computations)'!EK29","v":"Oct 2020"},{"$f":"'(Intermediate Computations)'!EL29","v":"Nov 2020"},{"$f":"'(Intermediate Computations)'!EM29","v":"Dec 2020"}]
[{"$f":"'(Intermediate Computations)'!B26","v":"2010-01-01"},{"$f":"'(Intermediate Computations)'!C26","v":"2010-02-01"},{"$f":"'(Intermediate Computations)'!D26","v":"2010-03-01"},{"$f":"'(Intermediate Computations)'!E26","v":"2010-04-01"},{"$f":"'(Intermediate Computations)'!F26","v":"2010-05-01"},{"$f":"'(Intermediate Computations)'!G26","v":"2010-06-01"},{"$f":"'(Intermediate Computations)'!H26","v":"2010-07-01"},{"$f":"'(Intermediate Computations)'!I26","v":"2010-08-01"},{"$f":"'(Intermediate Computations)'!J26","v":"2010-09-01"},{"$f":"'(Intermediate Computations)'!K26","v":"2010-10-01"},{"$f":"'(Intermediate Computations)'!L26","v":"2010-11-01"},{"$f":"'(Intermediate Computations)'!M26","v":"2010-12-01"},{"$f":"'(Intermediate Computations)'!O26","v":"2011-01-01"},{"$f":"'(Intermediate Computations)'!P26","v":"2011-02-01"},{"$f":"'(Intermediate Computations)'!Q26","v":"2011-03-01"},{"$f":"'(Intermediate Computations)'!R26","v":"2011-04-01"},{"$f":"'(Intermediate Computations)'!S26","v":"2011-05-01"},{"$f":"'(Intermediate Computations)'!T26","v":"2011-06-01"},{"$f":"'(Intermediate Computations)'!U26","v":"2011-07-01"},{"$f":"'(Intermediate Computations)'!V26","v":"2011-08-01"},{"$f":"'(Intermediate Computations)'!W26","v":"2011-09-01"},{"$f":"'(Intermediate Computations)'!X26","v":"2011-10-01"},{"$f":"'(Intermediate Computations)'!Y26","v":"2011-11-01"},{"$f":"'(Intermediate Computations)'!Z26","v":"2011-12-01"},{"$f":"'(Intermediate Computations)'!AB26","v":"2012-01-01"},{"$f":"'(Intermediate Computations)'!AC26","v":"2012-02-01"},{"$f":"'(Intermediate Computations)'!AD26","v":"2012-03-01"},{"$f":"'(Intermediate Computations)'!AE26","v":"2012-04-01"},{"$f":"'(Intermediate Computations)'!AF26","v":"2012-05-01"},{"$f":"'(Intermediate Computations)'!AG26","v":"2012-06-01"},{"$f":"'(Intermediate Computations)'!AH26","v":"2012-07-01"},{"$f":"'(Intermediate Computations)'!AI26","v":"2012-08-01"},{"$f":"'(Intermediate Computations)'!AJ26","v":"2012-09-01"},{"$f":"'(Intermediate Computations)'!AK26","v":"2012-10-01"},{"$f":"'(Intermediate Computations)'!AL26","v":"2012-11-01"},{"$f":"'(Intermediate Computations)'!AM26","v":"2012-12-01"},{"$f":"'(Intermediate Computations)'!AO26","v":"2013-01-01"},{"$f":"'(Intermediate Computations)'!AP26","v":"2013-02-01"},{"$f":"'(Intermediate Computations)'!AQ26","v":"2013-03-01"},{"$f":"'(Intermediate Computations)'!AR26","v":"2013-04-01"},{"$f":"'(Intermediate Computations)'!AS26","v":"2013-05-01"},{"$f":"'(Intermediate Computations)'!AT26","v":"2013-06-01"},{"$f":"'(Intermediate Computations)'!AU26","v":"2013-07-01"},{"$f":"'(Intermediate Computations)'!AV26","v":"2013-08-01"},{"$f":"'(Intermediate Computations)'!AW26","v":"2013-09-01"},{"$f":"'(Intermediate Computations)'!AX26","v":"2013-10-01"},{"$f":"'(Intermediate Computations)'!AY26","v":"2013-11-01"},{"$f":"'(Intermediate Computations)'!AZ26","v":"2013-12-01"},{"$f":"'(Intermediate Computations)'!BB26","v":"2014-01-01"},{"$f":"'(Intermediate Computations)'!BC26","v":"2014-02-01"},{"$f":"'(Intermediate Computations)'!BD26","v":"2014-03-01"},{"$f":"'(Intermediate Computations)'!BE26","v":"2014-04-01"},{"$f":"'(Intermediate Computations)'!BF26","v":"2014-05-01"},{"$f":"'(Intermediate Computations)'!BG26","v":"2014-06-01"},{"$f":"'(Intermediate Computations)'!BH26","v":"2014-07-01"},{"$f":"'(Intermediate Computations)'!BI26","v":"2014-08-01"},{"$f":"'(Intermediate Computations)'!BJ26","v":"2014-09-01"},{"$f":"'(Intermediate Computations)'!BK26","v":"2014-10-01"},{"$f":"'(Intermediate Computations)'!BL26","v":"2014-11-01"},{"$f":"'(Intermediate Computations)'!BM26","v":"2014-12-01"},{"$f":"'(Intermediate Computations)'!BO26","v":"2015-01-01"},{"$f":"'(Intermediate Computations)'!BP26","v":"2015-02-01"},{"$f":"'(Intermediate Computations)'!BQ26","v":"2015-03-01"},{"$f":"'(Intermediate Computations)'!BR26","v":"2015-04-01"},{"$f":"'(Intermediate Computations)'!BS26","v":"2015-05-01"},{"$f":"'(Intermediate Computations)'!BT26","v":"2015-06-01"},{"$f":"'(Intermediate Computations)'!BU26","v":"2015-07-01"},{"$f":"'(Intermediate Computations)'!BV26","v":"2015-08-01"},{"$f":"'(Intermediate Computations)'!BW26","v":"2015-09-01"},{"$f":"'(Intermediate Computations)'!BX26","v":"2015-10-01"},{"$f":"'(Intermediate Computations)'!BY26","v":"2015-11-01"},{"$f":"'(Intermediate Computations)'!BZ26","v":"2015-12-01"},{"$f":"'(Intermediate Computations)'!CB26","v":"2016-01-01"},{"$f":"'(Intermediate Computations)'!CC26","v":"2016-02-01"},{"$f":"'(Intermediate Computations)'!CD26","v":"2016-03-01"},{"$f":"'(Intermediate Computations)'!CE26","v":"2016-04-01"},{"$f":"'(Intermediate Computations)'!CF26","v":"2016-05-01"},{"$f":"'(Intermediate Computations)'!CG26","v":"2016-06-01"},{"$f":"'(Intermediate Computations)'!CH26","v":"2016-07-01"},{"$f":"'(Intermediate Computations)'!CI26","v":"2016-08-01"},{"$f":"'(Intermediate Computations)'!CJ26","v":"2016-09-01"},{"$f":"'(Intermediate Computations)'!CK26","v":"2016-10-01"},{"$f":"'(Intermediate Computations)'!CL26","v":"2016-11-01"},{"$f":"'(Intermediate Computations)'!CM26","v":"2016-12-01"},{"$f":"'(Intermediate Computations)'!CO26","v":"2017-01-01"},{"$f":"'(Intermediate Computations)'!CP26","v":"2017-02-01"},{"$f":"'(Intermediate Computations)'!CQ26","v":"2017-03-01"},{"$f":"'(Intermediate Computations)'!CR26","v":"2017-04-01"},{"$f":"'(Intermediate Computations)'!CS26","v":"2017-05-01"},{"$f":"'(Intermediate Computations)'!CT26","v":"2017-06-01"},{"$f":"'(Intermediate Computations)'!CU26","v":"2017-07-01"},{"$f":"'(Intermediate Computations)'!CV26","v":"2017-08-01"},{"$f":"'(Intermediate Computations)'!CW26","v":"2017-09-01"},{"$f":"'(Intermediate Computations)'!CX26","v":"2017-10-01"},{"$f":"'(Intermediate Computations)'!CY26","v":"2017-11-01"},{"$f":"'(Intermediate Computations)'!CZ26","v":"2017-12-01"},{"$f":"'(Intermediate Computations)'!DB26","v":"2018-01-01"},{"$f":"'(Intermediate Computations)'!DC26","v":"2018-02-01"},{"$f":"'(Intermediate Computations)'!DD26","v":"2018-03-01"},{"$f":"'(Intermediate Computations)'!DE26","v":"2018-04-01"},{"$f":"'(Intermediate Computations)'!DF26","v":"2018-05-01"},{"$f":"'(Intermediate Computations)'!DG26","v":"2018-06-01"},{"$f":"'(Intermediate Computations)'!DH26","v":"2018-07-01"},{"$f":"'(Intermediate Computations)'!DI26","v":"2018-08-01"},{"$f":"'(Intermediate Computations)'!DJ26","v":"2018-09-01"},{"$f":"'(Intermediate Computations)'!DK26","v":"2018-10-01"},{"$f":"'(Intermediate Computations)'!DL26","v":"2018-11-01"},{"$f":"'(Intermediate Computations)'!DM26","v":"2018-12-01"},{"$f":"'(Intermediate Computations)'!DO26","v":"2019-01-01"},{"$f":"'(Intermediate Computations)'!DP26","v":"2019-02-01"},{"$f":"'(Intermediate Computations)'!DQ26","v":"2019-03-01"},{"$f":"'(Intermediate Computations)'!DR26","v":"2019-04-01"},{"$f":"'(Intermediate Computations)'!DS26","v":"2019-05-01"},{"$f":"'(Intermediate Computations)'!DT26","v":"2019-06-01"},{"$f":"'(Intermediate Computations)'!DU26","v":"2019-07-01"},{"$f":"'(Intermediate Computations)'!DV26","v":"2019-08-01"},{"$f":"'(Intermediate Computations)'!DW26","v":"2019-09-01"},{"$f":"'(Intermediate Computations)'!DX26","v":"2019-10-01"},{"$f":"'(Intermediate Computations)'!DY26","v":"2019-11-01"},{"$f":"'(Intermediate Computations)'!DZ26","v":"2019-12-01"},{"$f":"'(Intermediate Computations)'!EB26","v":"2020-01-01"},{"$f":"'(Intermediate Computations)'!EC26","v":"2020-02-01"},{"$f":"'(Intermediate Computations)'!ED26","v":"2020-03-01"},{"$f":"'(Intermediate Computations)'!EE26","v":"2020-04-01"},{"$f":"'(Intermediate Computations)'!EF26","v":"2020-05-01"},{"$f":"'(Intermediate Computations)'!EG26","v":"2020-06-01"},{"$f":"'(Intermediate Computations)'!EH26","v":"2020-07-01"},{"$f":"'(Intermediate Computations)'!EI26","v":"2020-08-01"},{"$f":"'(Intermediate Computations)'!EJ26","v":"2020-09-01"},{"$f":"'(Intermediate Computations)'!EK26","v":"2020-10-01"},{"$f":"'(Intermediate Computations)'!EL26","v":"2020-11-01"},{"$f":"'(Intermediate Computations)'!EM26","v":"2020-12-01"}]
[{"$f":"'(Other Computations)'!B50","v":{"v":933333.3333333334,"d":"$933,333"}},{"$f":"'(Other Computations)'!C50","v":{"v":933118.7810365955,"d":"$933,119"}},{"$f":"'(Other Computations)'!D50","v":{"v":932745.1609445497,"d":"$932,745"}},{"$f":"'(Other Computations)'!E50","v":{"v":932482.5049378414,"d":"$932,483"}},{"$f":"'(Other Computations)'!F50","v":{"v":932170.7636754914,"d":"$932,171"}},{"$f":"'(Other Computations)'!G50","v":{"v":931875.4297988566,"d":"$931,875"}},{"$f":"'(Other Computations)'!H50","v":{"v":931597.9974733951,"d":"$931,598"}},{"$f":"'(Other Computations)'!I50","v":{"v":931371.1265567618,"d":"$931,371"}},{"$f":"'(Other Computations)'!J50","v":{"v":931077.9033586513,"d":"$931,078"}},{"$f":"'(Other Computations)'!K50","v":{"v":930807.3996972705,"d":"$930,807"}},{"$f":"'(Other Computations)'!L50","v":{"v":930536.3971294342,"d":"$930,536"}},{"$f":"'(Other Computations)'!M50","v":{"v":930243.5949686668,"d":"$930,244"}},{"$f":"'(Other Computations)'!O50","v":{"v":930017.2594047812,"d":"$930,017"}},{"$f":"'(Other Computations)'!P50","v":{"v":929675.4796888325,"d":"$929,675"}},{"$f":"'(Other Computations)'!Q50","v":{"v":929427.0548228752,"d":"$929,427"}},{"$f":"'(Other Computations)'!R50","v":{"v":929110.44120989,"d":"$929,110"}},{"$f":"'(Other Computations)'!S50","v":{"v":928801.957252036,"d":"$928,802"}},{"$f":"'(Other Computations)'!T50","v":{"v":928459.7428279889,"d":"$928,460"}},{"$f":"'(Other Computations)'!U50","v":{"v":928077.0985662835,"d":"$928,077"}},{"$f":"'(Other Computations)'!V50","v":{"v":927718.2924783517,"d":"$927,718"}},{"$f":"'(Other Computations)'!W50","v":{"v":927396.2091771634,"d":"$927,396"}},{"$f":"'(Other Computations)'!X50","v":{"v":927099.3585282125,"d":"$927,099"}},{"$f":"'(Other Computations)'!Y50","v":{"v":926782.4021206455,"d":"$926,782"}},{"$f":"'(Other Computations)'!Z50","v":{"v":926530.9983384428,"d":"$926,531"}},{"$f":"'(Other Computations)'!AB50","v":{"v":926193.7987210831,"d":"$926,194"}},{"$f":"'(Other Computations)'!AC50","v":{"v":925850.4071538432,"d":"$925,850"}},{"$f":"'(Other Computations)'!AD50","v":{"v":925540.2905507656,"d":"$925,540"}},{"$f":"'(Other Computations)'!AE50","v":{"v":925275.6431138833,"d":"$925,276"}},{"$f":"'(Other Computations)'!AF50","v":{"v":924888.3526499869,"d":"$924,888"}},{"$f":"'(Other Computations)'!AG50","v":{"v":924499.8220248161,"d":"$924,500"}},{"$f":"'(Other Computations)'!AH50","v":{"v":924176.9144655504,"d":"$924,177"}},{"$f":"'(Other Computations)'!AI50","v":{"v":923844.4319100196,"d":"$923,844"}},{"$f":"'(Other Computations)'!AJ50","v":{"v":923463.8653175196,"d":"$923,464"}},{"$f":"'(Other Computations)'!AK50","v":{"v":923061.550433499,"d":"$923,062"}},{"$f":"'(Other Computations)'!AL50","v":{"v":922734.084706568,"d":"$922,734"}},{"$f":"'(Other Computations)'!AM50","v":{"v":922455.8112150618,"d":"$922,456"}},{"$f":"'(Other Computations)'!AO50","v":{"v":922184.003962022,"d":"$922,184"}},{"$f":"'(Other Computations)'!AP50","v":{"v":921720.7449268701,"d":"$921,721"}},{"$f":"'(Other Computations)'!AQ50","v":{"v":921351.9187694952,"d":"$921,352"}},{"$f":"'(Other Computations)'!AR50","v":{"v":921072.793396817,"d":"$921,073"}},{"$f":"'(Other Computations)'!AS50","v":{"v":920692.464741105,"d":"$920,692"}},{"$f":"'(Other Computations)'!AT50","v":{"v":920303.101593161,"d":"$920,303"}},{"$f":"'(Other Computations)'!AU50","v":{"v":919906.2280069015,"d":"$919,906"}},{"$f":"'(Other Computations)'!AV50","v":{"v":919518.9115994894,"d":"$919,519"}},{"$f":"'(Other Computations)'!AW50","v":{"v":919212.0732383807,"d":"$919,212"}},{"$f":"'(Other Computations)'!AX50","v":{"v":918827.808933494,"d":"$918,828"}},{"$f":"'(Other Computations)'!AY50","v":{"v":918374.9710799764,"d":"$918,375"}},{"$f":"'(Other Computations)'!AZ50","v":{"v":918090.3759844574,"d":"$918,090"}},{"$f":"'(Other Computations)'!BB50","v":{"v":917701.031460605,"d":"$917,701"}},{"$f":"'(Other Computations)'!BC50","v":{"v":917285.0768087758,"d":"$917,285"}},{"$f":"'(Other Computations)'!BD50","v":{"v":916931.7420730538,"d":"$916,932"}},{"$f":"'(Other Computations)'!BE50","v":{"v":916619.8536219578,"d":"$916,620"}},{"$f":"'(Other Computations)'!BF50","v":{"v":916282.638479515,"d":"$916,283"}},{"$f":"'(Other Computations)'!BG50","v":{"v":915863.931068259,"d":"$915,864"}},{"$f":"'(Other Computations)'!BH50","v":{"v":915531.6067832368,"d":"$915,532"}},{"$f":"'(Other Computations)'!BI50","v":{"v":915205.9443775129,"d":"$915,206"}},{"$f":"'(Other Computations)'!BJ50","v":{"v":914936.2334109129,"d":"$914,936"}},{"$f":"'(Other Computations)'!BK50","v":{"v":914633.6894664037,"d":"$914,634"}},{"$f":"'(Other Computations)'!BL50","v":{"v":914355.3814139353,"d":"$914,355"}},{"$f":"'(Other Computations)'!BM50","v":{"v":914013.0241326638,"d":"$914,013"}},{"$f":"'(Other Computations)'!BO50","v":{"v":913587.5934106214,"d":"$913,588"}},{"$f":"'(Other Computations)'!BP50","v":{"v":913269.724224464,"d":"$913,270"}},{"$f":"'(Other Computations)'!BQ50","v":{"v":912969.3076973907,"d":"$912,969"}},{"$f":"'(Other Computations)'!BR50","v":{"v":912563.9329014125,"d":"$912,564"}},{"$f":"'(Other Computations)'!BS50","v":{"v":912165.4866195004,"d":"$912,165"}},{"$f":"'(Other Computations)'!BT50","v":{"v":911721.0468919416,"d":"$911,721"}},{"$f":"'(Other Computations)'!BU50","v":{"v":911348.4005028461,"d":"$911,348"}},{"$f":"'(Other Computations)'!BV50","v":{"v":910976.1561178542,"d":"$910,976"}},{"$f":"'(Other Computations)'!BW50","v":{"v":910585.6096997352,"d":"$910,586"}},{"$f":"'(Other Computations)'!BX50","v":{"v":910254.3971393997,"d":"$910,254"}},{"$f":"'(Other Computations)'!BY50","v":{"v":909822.2630315026,"d":"$909,822"}},{"$f":"'(Other Computations)'!BZ50","v":{"v":909445.5391604971,"d":"$909,446"}},{"$f":"'(Other Computations)'!CB50","v":{"v":909061.4832710406,"d":"$909,061"}},{"$f":"'(Other Computations)'!CC50","v":{"v":908669.4102788338,"d":"$908,669"}},{"$f":"'(Other Computations)'!CD50","v":{"v":908227.9643880312,"d":"$908,228"}},{"$f":"'(Other Computations)'!CE50","v":{"v":907743.617880183,"d":"$907,744"}},{"$f":"'(Other Computations)'!CF50","v":{"v":907373.2307669269,"d":"$907,373"}},{"$f":"'(Other Computations)'!CG50","v":{"v":907011.1166992629,"d":"$907,011"}},{"$f":"'(Other Computations)'!CH50","v":{"v":906568.4653730222,"d":"$906,568"}},{"$f":"'(Other Computations)'!CI50","v":{"v":906203.4967457122,"d":"$906,203"}},{"$f":"'(Other Computations)'!CJ50","v":{"v":905713.7679637155,"d":"$905,714"}},{"$f":"'(Other Computations)'!CK50","v":{"v":905288.0159803916,"d":"$905,288"}},{"$f":"'(Other Computations)'!CL50","v":{"v":904923.3806871312,"d":"$904,923"}},{"$f":"'(Other Computations)'!CM50","v":{"v":904543.6791139056,"d":"$904,544"}},{"$f":"'(Other Computations)'!CO50","v":{"v":904068.1343261015,"d":"$904,068"}},{"$f":"'(Other Computations)'!CP50","v":{"v":903560.697884851,"d":"$903,561"}},{"$f":"'(Other Computations)'!CQ50","v":{"v":903162.8159230746,"d":"$903,163"}},{"$f":"'(Other Computations)'!CR50","v":{"v":902799.0311370464,"d":"$902,799"}},{"$f":"'(Other Computations)'!CS50","v":{"v":902386.3036341892,"d":"$902,386"}},{"$f":"'(Other Computations)'!CT50","v":{"v":901917.3017850665,"d":"$901,917"}},{"$f":"'(Other Computations)'!CU50","v":{"v":901448.425242209,"d":"$901,448"}},{"$f":"'(Other Computations)'!CV50","v":{"v":900967.8666290996,"d":"$900,968"}},{"$f":"'(Other Computations)'!CW50","v":{"v":900528.0120728089,"d":"$900,528"}},{"$f":"'(Other Computations)'!CX50","v":{"v":900040.0145480649,"d":"$900,040"}},{"$f":"'(Other Computations)'!CY50","v":{"v":899533.3545404186,"d":"$899,533"}},{"$f":"'(Other Computations)'!CZ50","v":{"v":899154.6965077653,"d":"$899,155"}},{"$f":"'(Other Computations)'!DB50","v":{"v":898771.0258986993,"d":"$898,771"}},{"$f":"'(Other Computations)'!DC50","v":{"v":898265.1561333468,"d":"$898,265"}},{"$f":"'(Other Computations)'!DD50","v":{"v":897838.1746212814,"d":"$897,838"}},{"$f":"'(Other Computations)'!DE50","v":{"v":897425.639953295,"d":"$897,426"}},{"$f":"'(Other Computations)'!DF50","v":{"v":897066.5226906356,"d":"$897,067"}},{"$f":"'(Other Computations)'!DG50","v":{"v":896561.8683214537,"d":"$896,562"}},{"$f":"'(Other Computations)'!DH50","v":{"v":896098.726067388,"d":"$896,099"}},{"$f":"'(Other Computations)'!DI50","v":{"v":895726.5426144415,"d":"$895,727"}},{"$f":"'(Other Computations)'!DJ50","v":{"v":895304.2759271549,"d":"$895,304"}},{"$f":"'(Other Computations)'!DK50","v":{"v":894977.5959534841,"d":"$894,978"}},{"$f":"'(Other Computations)'!DL50","v":{"v":894546.4866238723,"d":"$894,546"}},{"$f":"'(Other Computations)'!DM50","v":{"v":894128.9771756105,"d":"$894,129"}},{"$f":"'(Other Computations)'!DO50","v":{"v":893774.3220821581,"d":"$893,774"}},{"$f":"'(Other Computations)'!DP50","v":{"v":893279.5854737333,"d":"$893,280"}},{"$f":"'(Other Computations)'!DQ50","v":{"v":892785.1175147736,"d":"$892,785"}},{"$f":"'(Other Computations)'!DR50","v":{"v":892354.4785572222,"d":"$892,354"}},{"$f":"'(Other Computations)'!DS50","v":{"v":891918.3889033798,"d":"$891,918"}},{"$f":"'(Other Computations)'!DT50","v":{"v":891452.0449800818,"d":"$891,452"}},{"$f":"'(Other Computations)'!DU50","v":{"v":890997.6649079685,"d":"$890,998"}},{"$f":"'(Other Computations)'!DV50","v":{"v":890653.8456793892,"d":"$890,654"}},{"$f":"'(Other Computations)'!DW50","v":{"v":890264.811108302,"d":"$890,265"}},{"$f":"'(Other Computations)'!DX50","v":{"v":889771.303280057,"d":"$889,771"}},{"$f":"'(Other Computations)'!DY50","v":{"v":889287.3773749977,"d":"$889,287"}},{"$f":"'(Other Computations)'!DZ50","v":{"v":888842.3751067331,"d":"$888,842"}},{"$f":"'(Other Computations)'!EB50","v":{"v":888412.699844038,"d":"$888,413"}},{"$f":"'(Other Computations)'!EC50","v":{"v":887988.4213536753,"d":"$887,988"}},{"$f":"'(Other Computations)'!ED50","v":{"v":887489.4432550968,"d":"$887,489"}},{"$f":"'(Other Computations)'!EE50","v":{"v":886964.3227216713,"d":"$886,964"}},{"$f":"'(Other Computations)'!EF50","v":{"v":886596.8342656543,"d":"$886,597"}},{"$f":"'(Other Computations)'!EG50","v":{"v":886109.9858982398,"d":"$886,110"}},{"$f":"'(Other Computations)'!EH50","v":{"v":885654.5002255023,"d":"$885,655"}},{"$f":"'(Other Computations)'!EI50","v":{"v":885268.6774787565,"d":"$885,269"}},{"$f":"'(Other Computations)'!EJ50","v":{"v":884769.5434847771,"d":"$884,770"}},{"$f":"'(Other Computations)'!EK50","v":{"v":884289.3325084124,"d":"$884,289"}},{"$f":"'(Other Computations)'!EL50","v":{"v":883788.0183537524,"d":"$883,788"}},{"$f":"'(Other Computations)'!EM50","v":{"v":883340.5268475952,"d":"$883,341"}}]
[{"$f":"'(Other Computations)'!B51","v":{"v":933333.3333333334,"d":"$933,333"}},{"$f":"'(Other Computations)'!C51","v":{"v":933067.2456902852,"d":"$933,067"}},{"$f":"'(Other Computations)'!D51","v":{"v":932881.3165141298,"d":"$932,881"}},{"$f":"'(Other Computations)'!E51","v":{"v":932625.3966403669,"d":"$932,625"}},{"$f":"'(Other Computations)'!F51","v":{"v":932353.515584738,"d":"$932,354"}},{"$f":"'(Other Computations)'!G51","v":{"v":932117.3210351183,"d":"$932,117"}},{"$f":"'(Other Computations)'!H51","v":{"v":931877.0906666387,"d":"$931,877"}},{"$f":"'(Other Computations)'!I51","v":{"v":931612.1116639762,"d":"$931,612"}},{"$f":"'(Other Computations)'!J51","v":{"v":931258.3291710466,"d":"$931,258"}},{"$f":"'(Other Computations)'!K51","v":{"v":931079.5288828891,"d":"$931,080"}},{"$f":"'(Other Computations)'!L51","v":{"v":930740.4135817363,"d":"$930,740"}},{"$f":"'(Other Computations)'!M51","v":{"v":930462.8727799569,"d":"$930,463"}},{"$f":"'(Other Computations)'!O51","v":{"v":930251.9534167438,"d":"$930,252"}},{"$f":"'(Other Computations)'!P51","v":{"v":929907.768363798,"d":"$929,908"}},{"$f":"'(Other Computations)'!Q51","v":{"v":929523.3072864139,"d":"$929,523"}},{"$f":"'(Other Computations)'!R51","v":{"v":929320.0832943722,"d":"$929,320"}},{"$f":"'(Other Computations)'!S51","v":{"v":929002.2936678478,"d":"$929,002"}},{"$f":"'(Other Computations)'!T51","v":{"v":928738.6580357843,"d":"$928,739"}},{"$f":"'(Other Computations)'!U51","v":{"v":928299.7995826359,"d":"$928,300"}},{"$f":"'(Other Computations)'!V51","v":{"v":927911.5914301211,"d":"$927,912"}},{"$f":"'(Other Computations)'!W51","v":{"v":927568.4822461336,"d":"$927,568"}},{"$f":"'(Other Computations)'!X51","v":{"v":927342.8833976904,"d":"$927,343"}},{"$f":"'(Other Computations)'!Y51","v":{"v":927051.3124980447,"d":"$927,051"}},{"$f":"'(Other Computations)'!Z51","v":{"v":926785.6360119984,"d":"$926,786"}},{"$f":"'(Other Computations)'!AB51","v":{"v":926438.9180000018,"d":"$926,439"}},{"$f":"'(Other Computations)'!AC51","v":{"v":926076.0081739343,"d":"$926,076"}},{"$f":"'(Other Computations)'!AD51","v":{"v":925653.1549239751,"d":"$925,653"}},{"$f":"'(Other Computations)'!AE51","v":{"v":925352.1898482619,"d":"$925,352"}},{"$f":"'(Other Computations)'!AF51","v":{"v":924996.6193584142,"d":"$924,997"}},{"$f":"'(Other Computations)'!AG51","v":{"v":924661.1482269026,"d":"$924,661"}},{"$f":"'(Other Computations)'!AH51","v":{"v":924300.8657703595,"d":"$924,301"}},{"$f":"'(Other Computations)'!AI51","v":{"v":923962.4251499202,"d":"$923,962"}},{"$f":"'(Other Computations)'!AJ51","v":{"v":923590.1445716769,"d":"$923,590"}},{"$f":"'(Other Computations)'!AK51","v":{"v":923259.0212115302,"d":"$923,259"}},{"$f":"'(Other Computations)'!AL51","v":{"v":922975.428988604,"d":"$922,975"}},{"$f":"'(Other Computations)'!AM51","v":{"v":922612.0573990181,"d":"$922,612"}},{"$f":"'(Other Computations)'!AO51","v":{"v":922186.5925308076,"d":"$922,187"}},{"$f":"'(Other Computations)'!AP51","v":{"v":921773.1161903061,"d":"$921,773"}},{"$f":"'(Other Computations)'!AQ51","v":{"v":921358.745463333,"d":"$921,359"}},{"$f":"'(Other Computations)'!AR51","v":{"v":921034.2398334106,"d":"$921,034"}},{"$f":"'(Other Computations)'!AS51","v":{"v":920638.7011737474,"d":"$920,639"}},{"$f":"'(Other Computations)'!AT51","v":{"v":920204.0049020268,"d":"$920,204"}},{"$f":"'(Other Computations)'!AU51","v":{"v":919826.7564695424,"d":"$919,827"}},{"$f":"'(Other Computations)'!AV51","v":{"v":919526.6053192245,"d":"$919,527"}},{"$f":"'(Other Computations)'!AW51","v":{"v":919186.1841000842,"d":"$919,186"}},{"$f":"'(Other Computations)'!AX51","v":{"v":918895.2756482913,"d":"$918,895"}},{"$f":"'(Other Computations)'!AY51","v":{"v":918554.1792942958,"d":"$918,554"}},{"$f":"'(Other Computations)'!AZ51","v":{"v":918073.8671413343,"d":"$918,074"}},{"$f":"'(Other Computations)'!BB51","v":{"v":917664.5863690744,"d":"$917,665"}},{"$f":"'(Other Computations)'!BC51","v":{"v":917291.7665396938,"d":"$917,292"}},{"$f":"'(Other Computations)'!BD51","v":{"v":916953.7655509033,"d":"$916,954"}},{"$f":"'(Other Computations)'!BE51","v":{"v":916533.6263120901,"d":"$916,534"}},{"$f":"'(Other Computations)'!BF51","v":{"v":916121.7871693461,"d":"$916,122"}},{"$f":"'(Other Computations)'!BG51","v":{"v":915811.1042225263,"d":"$915,811"}},{"$f":"'(Other Computations)'!BH51","v":{"v":915417.0294075295,"d":"$915,417"}},{"$f":"'(Other Computations)'!BI51","v":{"v":914981.9645922227,"d":"$914,982"}},{"$f":"'(Other Computations)'!BJ51","v":{"v":914621.4498110901,"d":"$914,621"}},{"$f":"'(Other Computations)'!BK51","v":{"v":914212.5610305872,"d":"$914,213"}},{"$f":"'(Other Computations)'!BL51","v":{"v":913727.6215941695,"d":"$913,728"}},{"$f":"'(Other Computations)'!BM51","v":{"v":913240.3915546193,"d":"$913,240"}},{"$f":"'(Other Computations)'!BO51","v":{"v":912938.9798632076,"d":"$912,939"}},{"$f":"'(Other Computations)'!BP51","v":{"v":912491.36628635,"d":"$912,491"}},{"$f":"'(Other Computations)'!BQ51","v":{"v":912097.4706596072,"d":"$912,097"}},{"$f":"'(Other Computations)'!BR51","v":{"v":911725.2010152651,"d":"$911,725"}},{"$f":"'(Other Computations)'!BS51","v":{"v":911343.2671575625,"d":"$911,343"}},{"$f":"'(Other Computations)'!BT51","v":{"v":910938.8449570432,"d":"$910,939"}},{"$f":"'(Other Computations)'!BU51","v":{"v":910438.6117504296,"d":"$910,439"}},{"$f":"'(Other Computations)'!BV51","v":{"v":909993.6349659767,"d":"$909,994"}},{"$f":"'(Other Computations)'!BW51","v":{"v":909659.3169535702,"d":"$909,659"}},{"$f":"'(Other Computations)'!BX51","v":{"v":909262.3853216902,"d":"$909,262"}},{"$f":"'(Other Computations)'!BY51","v":{"v":908824.0121667964,"d":"$908,824"}},{"$f":"'(Other Computations)'!BZ51","v":{"v":908468.9447881974,"d":"$908,469"}},{"$f":"'(Other Computations)'!CB51","v":{"v":908083.785995762,"d":"$908,084"}},{"$f":"'(Other Computations)'!CC51","v":{"v":907768.9080247416,"d":"$907,769"}},{"$f":"'(Other Computations)'!CD51","v":{"v":907428.2461547788,"d":"$907,428"}},{"$f":"'(Other Computations)'!CE51","v":{"v":907018.2395570885,"d":"$907,018"}},{"$f":"'(Other Computations)'!CF51","v":{"v":906611.4398792855,"d":"$906,611"}},{"$f":"'(Other Computations)'!CG51","v":{"v":906241.1915970801,"d":"$906,241"}},{"$f":"'(Other Computations)'!CH51","v":{"v":905789.1953324933,"d":"$905,789"}},{"$f":"'(Other Computations)'!CI51","v":{"v":905417.0874719517,"d":"$905,417"}},{"$f":"'(Other Computations)'!CJ51","v":{"v":905047.6685527032,"d":"$905,048"}},{"$f":"'(Other Computations)'!CK51","v":{"v":904732.5354077176,"d":"$904,733"}},{"$f":"'(Other Computations)'!CL51","v":{"v":904235.2964577732,"d":"$904,235"}},{"$f":"'(Other Computations)'!CM51","v":{"v":903823.7134774842,"d":"$903,824"}},{"$f":"'(Other Computations)'!CO51","v":{"v":903490.6392932477,"d":"$903,491"}},{"$f":"'(Other Computations)'!CP51","v":{"v":903034.7084596843,"d":"$903,035"}},{"$f":"'(Other Computations)'!CQ51","v":{"v":902603.8076129322,"d":"$902,604"}},{"$f":"'(Other Computations)'!CR51","v":{"v":902203.5989187864,"d":"$902,204"}},{"$f":"'(Other Computations)'!CS51","v":{"v":901744.2626701812,"d":"$901,744"}},{"$f":"'(Other Computations)'!CT51","v":{"v":901343.9069195788,"d":"$901,344"}},{"$f":"'(Other Computations)'!CU51","v":{"v":900838.2864096779,"d":"$900,838"}},{"$f":"'(Other Computations)'!CV51","v":{"v":900501.6054369585,"d":"$900,502"}},{"$f":"'(Other Computations)'!CW51","v":{"v":899967.7997214614,"d":"$899,968"}},{"$f":"'(Other Computations)'!CX51","v":{"v":899576.6092018451,"d":"$899,577"}},{"$f":"'(Other Computations)'!CY51","v":{"v":899265.4430331308,"d":"$899,265"}},{"$f":"'(Other Computations)'!CZ51","v":{"v":898771.5250276964,"d":"$898,772"}},{"$f":"'(Other Computations)'!DB51","v":{"v":898343.4489898077,"d":"$898,343"}},{"$f":"'(Other Computations)'!DC51","v":{"v":897918.0130015048,"d":"$897,918"}},{"$f":"'(Other Computations)'!DD51","v":{"v":897470.9891472325,"d":"$897,471"}},{"$f":"'(Other Computations)'!DE51","v":{"v":897061.7974138057,"d":"$897,062"}},{"$f":"'(Other Computations)'!DF51","v":{"v":896631.8783818672,"d":"$896,632"}},{"$f":"'(Other Computations)'!DG51","v":{"v":896259.3189950042,"d":"$896,259"}},{"$f":"'(Other Computations)'!DH51","v":{"v":895787.6336414703,"d":"$895,788"}},{"$f":"'(Other Computations)'!DI51","v":{"v":895327.903306112,"d":"$895,328"}},{"$f":"'(Other Computations)'!DJ51","v":{"v":894874.1468673096,"d":"$894,874"}},{"$f":"'(Other Computations)'!DK51","v":{"v":894448.5013774021,"d":"$894,449"}},{"$f":"'(Other Computations)'!DL51","v":{"v":894073.1078163732,"d":"$894,073"}},{"$f":"'(Other Computations)'!DM51","v":{"v":893734.681368826,"d":"$893,735"}},{"$f":"'(Other Computations)'!DO51","v":{"v":893208.7648649411,"d":"$893,209"}},{"$f":"'(Other Computations)'!DP51","v":{"v":892727.7626178483,"d":"$892,728"}},{"$f":"'(Other Computations)'!DQ51","v":{"v":892196.6321883833,"d":"$892,197"}},{"$f":"'(Other Computations)'!DR51","v":{"v":891725.2111654895,"d":"$891,725"}},{"$f":"'(Other Computations)'!DS51","v":{"v":891290.8401446743,"d":"$891,291"}},{"$f":"'(Other Computations)'!DT51","v":{"v":890815.2294264832,"d":"$890,815"}},{"$f":"'(Other Computations)'!DU51","v":{"v":890361.2933694747,"d":"$890,361"}},{"$f":"'(Other Computations)'!DV51","v":{"v":889898.9855084616,"d":"$889,899"}},{"$f":"'(Other Computations)'!DW51","v":{"v":889354.2835131817,"d":"$889,354"}},{"$f":"'(Other Computations)'!DX51","v":{"v":888915.200839097,"d":"$888,915"}},{"$f":"'(Other Computations)'!DY51","v":{"v":888466.8416800061,"d":"$888,467"}},{"$f":"'(Other Computations)'!DZ51","v":{"v":888007.475049002,"d":"$888,007"}},{"$f":"'(Other Computations)'!EB51","v":{"v":887571.8031806034,"d":"$887,572"}},{"$f":"'(Other Computations)'!EC51","v":{"v":887134.2823637335,"d":"$887,134"}},{"$f":"'(Other Computations)'!ED51","v":{"v":886645.5952202557,"d":"$886,646"}},{"$f":"'(Other Computations)'!EE51","v":{"v":886080.4209461117,"d":"$886,080"}},{"$f":"'(Other Computations)'!EF51","v":{"v":885741.3683978625,"d":"$885,741"}},{"$f":"'(Other Computations)'!EG51","v":{"v":885325.6025701348,"d":"$885,326"}},{"$f":"'(Other Computations)'!EH51","v":{"v":884872.8150797805,"d":"$884,873"}},{"$f":"'(Other Computations)'!EI51","v":{"v":884485.2448471439,"d":"$884,485"}},{"$f":"'(Other Computations)'!EJ51","v":{"v":884053.6870496297,"d":"$884,054"}},{"$f":"'(Other Computations)'!EK51","v":{"v":883594.4774121202,"d":"$883,594"}},{"$f":"'(Other Computations)'!EL51","v":{"v":883111.1431100251,"d":"$883,111"}},{"$f":"'(Other Computations)'!EM51","v":{"v":882700.9239298417,"d":"$882,701"}}]
[{"$f":"'(Other Computations)'!B52","v":{"v":933333.3333333334,"d":"$933,333"}},{"$f":"'(Other Computations)'!C52","v":{"v":933018.0270538037,"d":"$933,018"}},{"$f":"'(Other Computations)'!D52","v":{"v":932797.1266330573,"d":"$932,797"}},{"$f":"'(Other Computations)'!E52","v":{"v":932472.5655479615,"d":"$932,473"}},{"$f":"'(Other Computations)'!F52","v":{"v":932128.1150083097,"d":"$932,128"}},{"$f":"'(Other Computations)'!G52","v":{"v":931877.344693976,"d":"$931,877"}},{"$f":"'(Other Computations)'!H52","v":{"v":931574.1796298159,"d":"$931,574"}},{"$f":"'(Other Computations)'!I52","v":{"v":931292.5009439647,"d":"$931,293"}},{"$f":"'(Other Computations)'!J52","v":{"v":931009.372456848,"d":"$931,009"}},{"$f":"'(Other Computations)'!K52","v":{"v":930783.1463666665,"d":"$930,783"}},{"$f":"'(Other Computations)'!L52","v":{"v":930424.0834066336,"d":"$930,424"}},{"$f":"'(Other Computations)'!M52","v":{"v":930089.2117822004,"d":"$930,089"}},{"$f":"'(Other Computations)'!O52","v":{"v":929795.5799261341,"d":"$929,796"}},{"$f":"'(Other Computations)'!P52","v":{"v":929467.7827897017,"d":"$929,468"}},{"$f":"'(Other Computations)'!Q52","v":{"v":929197.0452386047,"d":"$929,197"}},{"$f":"'(Other Computations)'!R52","v":{"v":928839.9548883307,"d":"$928,840"}},{"$f":"'(Other Computations)'!S52","v":{"v":928593.7514629553,"d":"$928,594"}},{"$f":"'(Other Computations)'!T52","v":{"v":928394.5369740743,"d":"$928,395"}},{"$f":"'(Other Computations)'!U52","v":{"v":928036.9785722451,"d":"$928,037"}},{"$f":"'(Other Computations)'!V52","v":{"v":927787.2282823836,"d":"$927,787"}},{"$f":"'(Other Computations)'!W52","v":{"v":927548.2611577677,"d":"$927,548"}},{"$f":"'(Other Computations)'!X52","v":{"v":927199.2399711966,"d":"$927,199"}},{"$f":"'(Other Computations)'!Y52","v":{"v":926906.523210088,"d":"$926,907"}},{"$f":"'(Other Computations)'!Z52","v":{"v":926482.6564425362,"d":"$926,483"}},{"$f":"'(Other Computations)'!AB52","v":{"v":926165.4655540556,"d":"$926,165"}},{"$f":"'(Other Computations)'!AC52","v":{"v":925855.345674924,"d":"$925,855"}},{"$f":"'(Other Computations)'!AD52","v":{"v":925593.1336929055,"d":"$925,593"}},{"$f":"'(Other Computations)'!AE52","v":{"v":925241.7565158672,"d":"$925,242"}},{"$f":"'(Other Computations)'!AF52","v":{"v":924929.0540921601,"d":"$924,929"}},{"$f":"'(Other Computations)'!AG52","v":{"v":924607.2751088998,"d":"$924,607"}},{"$f":"'(Other Computations)'!AH52","v":{"v":924252.4459876225,"d":"$924,252"}},{"$f":"'(Other Computations)'!AI52","v":{"v":923834.6547053442,"d":"$923,835"}},{"$f":"'(Other Computations)'!AJ52","v":{"v":923524.7440296266,"d":"$923,525"}},{"$f":"'(Other Computations)'!AK52","v":{"v":923212.5243633596,"d":"$923,213"}},{"$f":"'(Other Computations)'!AL52","v":{"v":922881.1540114472,"d":"$922,881"}},{"$f":"'(Other Computations)'!AM52","v":{"v":922480.1288710389,"d":"$922,480"}},{"$f":"'(Other Computations)'!AO52","v":{"v":922236.2415488482,"d":"$922,236"}},{"$f":"'(Other Computations)'!AP52","v":{"v":921828.6910786943,"d":"$921,829"}},{"$f":"'(Other Computations)'!AQ52","v":{"v":921494.8508915803,"d":"$921,495"}},{"$f":"'(Other Computations)'!AR52","v":{"v":921243.6604764716,"d":"$921,244"}},{"$f":"'(Other Computations)'!AS52","v":{"v":920948.903866091,"d":"$920,949"}},{"$f":"'(Other Computations)'!AT52","v":{"v":920576.3028606955,"d":"$920,576"}},{"$f":"'(Other Computations)'!AU52","v":{"v":920239.6345607617,"d":"$920,240"}},{"$f":"'(Other Computations)'!AV52","v":{"v":919961.6451299654,"d":"$919,962"}},{"$f":"'(Other Computations)'!AW52","v":{"v":919662.5062927554,"d":"$919,663"}},{"$f":"'(Other Computations)'!AX52","v":{"v":919192.0091658067,"d":"$919,192"}},{"$f":"'(Other Computations)'!AY52","v":{"v":918908.2056927647,"d":"$918,908"}},{"$f":"'(Other Computations)'!AZ52","v":{"v":918517.0613328433,"d":"$918,517"}},{"$f":"'(Other Computations)'!BB52","v":{"v":918148.0866469035,"d":"$918,148"}},{"$f":"'(Other Computations)'!BC52","v":{"v":917848.0123047942,"d":"$917,848"}},{"$f":"'(Other Computations)'!BD52","v":{"v":917575.3485214891,"d":"$917,575"}},{"$f":"'(Other Computations)'!BE52","v":{"v":917194.1712334579,"d":"$917,194"}},{"$f":"'(Other Computations)'!BF52","v":{"v":916869.6931092931,"d":"$916,870"}},{"$f":"'(Other Computations)'!BG52","v":{"v":916498.8569847202,"d":"$916,499"}},{"$f":"'(Other Computations)'!BH52","v":{"v":916133.0228255227,"d":"$916,133"}},{"$f":"'(Other Computations)'!BI52","v":{"v":915848.3540098078,"d":"$915,848"}},{"$f":"'(Other Computations)'!BJ52","v":{"v":915462.4671528196,"d":"$915,462"}},{"$f":"'(Other Computations)'!BK52","v":{"v":914989.0037608107,"d":"$914,989"}},{"$f":"'(Other Computations)'!BL52","v":{"v":914522.9742995705,"d":"$914,523"}},{"$f":"'(Other Computations)'!BM52","v":{"v":914149.8964457778,"d":"$914,150"}},{"$f":"'(Other Computations)'!BO52","v":{"v":913661.5861302331,"d":"$913,662"}},{"$f":"'(Other Computations)'!BP52","v":{"v":913257.95699488,"d":"$913,258"}},{"$f":"'(Other Computations)'!BQ52","v":{"v":912832.3770507026,"d":"$912,832"}},{"$f":"'(Other Computations)'!BR52","v":{"v":912427.5264943512,"d":"$912,428"}},{"$f":"'(Other Computations)'!BS52","v":{"v":912113.0214014634,"d":"$912,113"}},{"$f":"'(Other Computations)'!BT52","v":{"v":911722.3656464379,"d":"$911,722"}},{"$f":"'(Other Computations)'!BU52","v":{"v":911358.0163758066,"d":"$911,358"}},{"$f":"'(Other Computations)'!BV52","v":{"v":910879.4280718244,"d":"$910,879"}},{"$f":"'(Other Computations)'!BW52","v":{"v":910487.4835147811,"d":"$910,487"}},{"$f":"'(Other Computations)'!BX52","v":{"v":910132.0797168389,"d":"$910,132"}},{"$f":"'(Other Computations)'!BY52","v":{"v":909702.3267698606,"d":"$909,702"}},{"$f":"'(Other Computations)'!BZ52","v":{"v":909248.7398380663,"d":"$909,249"}},{"$f":"'(Other Computations)'!CB52","v":{"v":908762.5360608252,"d":"$908,763"}},{"$f":"'(Other Computations)'!CC52","v":{"v":908363.5903298062,"d":"$908,364"}},{"$f":"'(Other Computations)'!CD52","v":{"v":907993.9959354548,"d":"$907,994"}},{"$f":"'(Other Computations)'!CE52","v":{"v":907496.0569853908,"d":"$907,496"}},{"$f":"'(Other Computations)'!CF52","v":{"v":907000.5583367099,"d":"$907,001"}},{"$f":"'(Other Computations)'!CG52","v":{"v":906612.4817727889,"d":"$906,612"}},{"$f":"'(Other Computations)'!CH52","v":{"v":906168.9780480693,"d":"$906,169"}},{"$f":"'(Other Computations)'!CI52","v":{"v":905678.8948505872,"d":"$905,679"}},{"$f":"'(Other Computations)'!CJ52","v":{"v":905329.7040978823,"d":"$905,330"}},{"$f":"'(Other Computations)'!CK52","v":{"v":904925.9335774934,"d":"$904,926"}},{"$f":"'(Other Computations)'!CL52","v":{"v":904522.7204520425,"d":"$904,523"}},{"$f":"'(Other Computations)'!CM52","v":{"v":904040.809944122,"d":"$904,041"}},{"$f":"'(Other Computations)'!CO52","v":{"v":903569.1210018627,"d":"$903,569"}},{"$f":"'(Other Computations)'!CP52","v":{"v":903175.4723099212,"d":"$903,175"}},{"$f":"'(Other Computations)'!CQ52","v":{"v":902758.0194060366,"d":"$902,758"}},{"$f":"'(Other Computations)'!CR52","v":{"v":902344.0359180926,"d":"$902,344"}},{"$f":"'(Other Computations)'!CS52","v":{"v":901848.4509517757,"d":"$901,848"}},{"$f":"'(Other Computations)'!CT52","v":{"v":901435.0196650294,"d":"$901,435"}},{"$f":"'(Other Computations)'!CU52","v":{"v":901119.2781707216,"d":"$901,119"}},{"$f":"'(Other Computations)'!CV52","v":{"v":900663.7466931489,"d":"$900,664"}},{"$f":"'(Other Computations)'!CW52","v":{"v":900247.0853393059,"d":"$900,247"}},{"$f":"'(Other Computations)'!CX52","v":{"v":899754.9685345218,"d":"$899,755"}},{"$f":"'(Other Computations)'!CY52","v":{"v":899360.254607347,"d":"$899,360"}},{"$f":"'(Other Computations)'!CZ52","v":{"v":899007.2802832068,"d":"$899,007"}},{"$f":"'(Other Computations)'!DB52","v":{"v":898657.3117629592,"d":"$898,657"}},{"$f":"'(Other Computations)'!DC52","v":{"v":898225.5879055386,"d":"$898,226"}},{"$f":"'(Other Computations)'!DD52","v":{"v":897692.6246817646,"d":"$897,693"}},{"$f":"'(Other Computations)'!DE52","v":{"v":897244.6260696909,"d":"$897,245"}},{"$f":"'(Other Computations)'!DF52","v":{"v":896790.0179326605,"d":"$896,790"}},{"$f":"'(Other Computations)'!DG52","v":{"v":896331.8404253642,"d":"$896,332"}},{"$f":"'(Other Computations)'!DH52","v":{"v":895870.2374109213,"d":"$895,870"}},{"$f":"'(Other Computations)'!DI52","v":{"v":895500.6213548104,"d":"$895,501"}},{"$f":"'(Other Computations)'!DJ52","v":{"v":895124.2288772501,"d":"$895,124"}},{"$f":"'(Other Computations)'!DK52","v":{"v":894763.6992583522,"d":"$894,764"}},{"$f":"'(Other Computations)'!DL52","v":{"v":894324.9052324774,"d":"$894,325"}},{"$f":"'(Other Computations)'!DM52","v":{"v":893814.7002226243,"d":"$893,815"}},{"$f":"'(Other Computations)'!DO52","v":{"v":893385.1082916099,"d":"$893,385"}},{"$f":"'(Other Computations)'!DP52","v":{"v":893033.6583535667,"d":"$893,034"}},{"$f":"'(Other Computations)'!DQ52","v":{"v":892682.1706300366,"d":"$892,682"}},{"$f":"'(Other Computations)'!DR52","v":{"v":892266.3943039278,"d":"$892,266"}},{"$f":"'(Other Computations)'!DS52","v":{"v":891930.2154065855,"d":"$891,930"}},{"$f":"'(Other Computations)'!DT52","v":{"v":891516.9617446352,"d":"$891,517"}},{"$f":"'(Other Computations)'!DU52","v":{"v":891076.9283295628,"d":"$891,077"}},{"$f":"'(Other Computations)'!DV52","v":{"v":890671.2440467075,"d":"$890,671"}},{"$f":"'(Other Computations)'!DW52","v":{"v":890115.8891163679,"d":"$890,116"}},{"$f":"'(Other Computations)'!DX52","v":{"v":889752.9600247793,"d":"$889,753"}},{"$f":"'(Other Computations)'!DY52","v":{"v":889322.2423376217,"d":"$889,322"}},{"$f":"'(Other Computations)'!DZ52","v":{"v":888977.0291034903,"d":"$888,977"}},{"$f":"'(Other Computations)'!EB52","v":{"v":888509.2723891761,"d":"$888,509"}},{"$f":"'(Other Computations)'!EC52","v":{"v":888117.7517961381,"d":"$888,118"}},{"$f":"'(Other Computations)'!ED52","v":{"v":887749.5212093154,"d":"$887,750"}},{"$f":"'(Other Computations)'!EE52","v":{"v":887231.1328857279,"d":"$887,231"}},{"$f":"'(Other Computations)'!EF52","v":{"v":886755.8199174892,"d":"$886,756"}},{"$f":"'(Other Computations)'!EG52","v":{"v":886268.6267197445,"d":"$886,269"}},{"$f":"'(Other Computations)'!EH52","v":{"v":885851.3789778915,"d":"$885,851"}},{"$f":"'(Other Computations)'!EI52","v":{"v":885304.3215481477,"d":"$885,304"}},{"$f":"'(Other Computations)'!EJ52","v":{"v":884748.4961530172,"d":"$884,748"}},{"$f":"'(Other Computations)'!EK52","v":{"v":884256.0442099427,"d":"$884,256"}},{"$f":"'(Other Computations)'!EL52","v":{"v":883795.9253407406,"d":"$883,796"}},{"$f":"'(Other Computations)'!EM52","v":{"v":883318.8509956143,"d":"$883,319"}}]
[{"$f":"'(Other Computations)'!B53","v":{"v":933333.3333333334,"d":"$933,333"}},{"$f":"'(Other Computations)'!C53","v":{"v":933117.1096127363,"d":"$933,117"}},{"$f":"'(Other Computations)'!D53","v":{"v":932941.7890220373,"d":"$932,942"}},{"$f":"'(Other Computations)'!E53","v":{"v":932699.6497078341,"d":"$932,700"}},{"$f":"'(Other Computations)'!F53","v":{"v":932327.248270498,"d":"$932,327"}},{"$f":"'(Other Computations)'!G53","v":{"v":931980.6372795717,"d":"$931,981"}},{"$f":"'(Other Computations)'!H53","v":{"v":931741.1400170875,"d":"$931,741"}},{"$f":"'(Other Computations)'!I53","v":{"v":931505.1866974941,"d":"$931,505"}},{"$f":"'(Other Computations)'!J53","v":{"v":931278.9379177329,"d":"$931,279"}},{"$f":"'(Other Computations)'!K53","v":{"v":930958.935451713,"d":"$930,959"}},{"$f":"'(Other Computations)'!L53","v":{"v":930638.2464753418,"d":"$930,638"}},{"$f":"'(Other Computations)'!M53","v":{"v":930324.956651125,"d":"$930,325"}},{"$f":"'(Other Computations)'!O53","v":{"v":930006.9883907702,"d":"$930,007"}},{"$f":"'(Other Computations)'!P53","v":{"v":929757.8732974331,"d":"$929,758"}},{"$f":"'(Other Computations)'!Q53","v":{"v":929448.6467446437,"d":"$929,449"}},{"$f":"'(Other Computations)'!R53","v":{"v":929209.60453112,"d":"$929,210"}},{"$f":"'(Other Computations)'!S53","v":{"v":929001.538401315,"d":"$929,002"}},{"$f":"'(Other Computations)'!T53","v":{"v":928781.5605585588,"d":"$928,782"}},{"$f":"'(Other Computations)'!U53","v":{"v":928421.1389260127,"d":"$928,421"}},{"$f":"'(Other Computations)'!V53","v":{"v":928100.7884881921,"d":"$928,101"}},{"$f":"'(Other Computations)'!W53","v":{"v":927789.8435635705,"d":"$927,790"}},{"$f":"'(Other Computations)'!X53","v":{"v":927461.1628203809,"d":"$927,461"}},{"$f":"'(Other Computations)'!Y53","v":{"v":927188.5666583903,"d":"$927,189"}},{"$f":"'(Other Computations)'!Z53","v":{"v":926775.5916014857,"d":"$926,776"}},{"$f":"'(Other Computations)'!AB53","v":{"v":926473.7060185228,"d":"$926,474"}},{"$f":"'(Other Computations)'!AC53","v":{"v":926168.4812600893,"d":"$926,168"}},{"$f":"'(Other Computations)'!AD53","v":{"v":925845.0328206487,"d":"$925,845"}},{"$f":"'(Other Computations)'!AE53","v":{"v":925506.2994548345,"d":"$925,506"}},{"$f":"'(Other Computations)'!AF53","v":{"v":925093.3963602326,"d":"$925,093"}},{"$f":"'(Other Computations)'!AG53","v":{"v":924798.9463927497,"d":"$924,799"}},{"$f":"'(Other Computations)'!AH53","v":{"v":924492.245276944,"d":"$924,492"}},{"$f":"'(Other Computations)'!AI53","v":{"v":924254.8552742515,"d":"$924,255"}},{"$f":"'(Other Computations)'!AJ53","v":{"v":923861.0447072834,"d":"$923,861"}},{"$f":"'(Other Computations)'!AK53","v":{"v":923411.1208714726,"d":"$923,411"}},{"$f":"'(Other Computations)'!AL53","v":{"v":922993.2673261544,"d":"$922,993"}},{"$f":"'(Other Computations)'!AM53","v":{"v":922628.3724909573,"d":"$922,628"}},{"$f":"'(Other Computations)'!AO53","v":{"v":922360.3614251661,"d":"$922,360"}},{"$f":"'(Other Computations)'!AP53","v":{"v":921957.8382808627,"d":"$921,958"}},{"$f":"'(Other Computations)'!AQ53","v":{"v":921589.8493011429,"d":"$921,590"}},{"$f":"'(Other Computations)'!AR53","v":{"v":921208.6412007845,"d":"$921,209"}},{"$f":"'(Other Computations)'!AS53","v":{"v":920777.3593186323,"d":"$920,777"}},{"$f":"'(Other Computations)'!AT53","v":{"v":920335.2342101844,"d":"$920,335"}},{"$f":"'(Other Computations)'!AU53","v":{"v":919874.9067430008,"d":"$919,875"}},{"$f":"'(Other Computations)'!AV53","v":{"v":919526.670879587,"d":"$919,527"}},{"$f":"'(Other Computations)'!AW53","v":{"v":919191.3143335897,"d":"$919,191"}},{"$f":"'(Other Computations)'!AX53","v":{"v":918809.6785943635,"d":"$918,810"}},{"$f":"'(Other Computations)'!AY53","v":{"v":918400.4791594615,"d":"$918,400"}},{"$f":"'(Other Computations)'!AZ53","v":{"v":918033.8305942555,"d":"$918,034"}},{"$f":"'(Other Computations)'!BB53","v":{"v":917647.2730057223,"d":"$917,647"}},{"$f":"'(Other Computations)'!BC53","v":{"v":917323.6177469969,"d":"$917,324"}},{"$f":"'(Other Computations)'!BD53","v":{"v":916919.3487076823,"d":"$916,919"}},{"$f":"'(Other Computations)'!BE53","v":{"v":916514.3401503483,"d":"$916,514"}},{"$f":"'(Other Computations)'!BF53","v":{"v":916115.3905621398,"d":"$916,115"}},{"$f":"'(Other Computations)'!BG53","v":{"v":915746.2533672584,"d":"$915,746"}},{"$f":"'(Other Computations)'!BH53","v":{"v":915418.1745291939,"d":"$915,418"}},{"$f":"'(Other Computations)'!BI53","v":{"v":915077.8244748866,"d":"$915,078"}},{"$f":"'(Other Computations)'!BJ53","v":{"v":914622.728704232,"d":"$914,623"}},{"$f":"'(Other Computations)'!BK53","v":{"v":914256.5288450285,"d":"$914,257"}},{"$f":"'(Other Computations)'!BL53","v":{"v":913845.2724669167,"d":"$913,845"}},{"$f":"'(Other Computations)'!BM53","v":{"v":913454.1998790522,"d":"$913,454"}},{"$f":"'(Other Computations)'!BO53","v":{"v":913094.2248988096,"d":"$913,094"}},{"$f":"'(Other Computations)'!BP53","v":{"v":912665.3414156582,"d":"$912,665"}},{"$f":"'(Other Computations)'!BQ53","v":{"v":912298.6798535378,"d":"$912,299"}},{"$f":"'(Other Computations)'!BR53","v":{"v":911877.5040245858,"d":"$911,878"}},{"$f":"'(Other Computations)'!BS53","v":{"v":911485.3098052334,"d":"$911,485"}},{"$f":"'(Other Computations)'!BT53","v":{"v":911063.0805125667,"d":"$911,063"}},{"$f":"'(Other Computations)'!BU53","v":{"v":910697.219990358,"d":"$910,697"}},{"$f":"'(Other Computations)'!BV53","v":{"v":910316.9863030285,"d":"$910,317"}},{"$f":"'(Other Computations)'!BW53","v":{"v":909849.706945155,"d":"$909,850"}},{"$f":"'(Other Computations)'!BX53","v":{"v":909505.9436744169,"d":"$909,506"}},{"$f":"'(Other Computations)'!BY53","v":{"v":909182.4657934946,"d":"$909,182"}},{"$f":"'(Other Computations)'!BZ53","v":{"v":908770.8448499994,"d":"$908,771"}},{"$f":"'(Other Computations)'!CB53","v":{"v":908413.6628386014,"d":"$908,414"}},{"$f":"'(Other Computations)'!CC53","v":{"v":908013.6293618515,"d":"$908,014"}},{"$f":"'(Other Computations)'!CD53","v":{"v":907617.0334679622,"d":"$907,617"}},{"$f":"'(Other Computations)'!CE53","v":{"v":907222.7725323795,"d":"$907,223"}},{"$f":"'(Other Computations)'!CF53","v":{"v":906800.4346921922,"d":"$906,800"}},{"$f":"'(Other Computations)'!CG53","v":{"v":906377.1808109871,"d":"$906,377"}},{"$f":"'(Other Computations)'!CH53","v":{"v":905991.5489560541,"d":"$905,992"}},{"$f":"'(Other Computations)'!CI53","v":{"v":905501.9708130411,"d":"$905,502"}},{"$f":"'(Other Computations)'!CJ53","v":{"v":905087.4729512407,"d":"$905,087"}},{"$f":"'(Other Computations)'!CK53","v":{"v":904703.758907041,"d":"$904,704"}},{"$f":"'(Other Computations)'!CL53","v":{"v":904271.1206507948,"d":"$904,271"}},{"$f":"'(Other Computations)'!CM53","v":{"v":903875.4411159307,"d":"$903,875"}},{"$f":"'(Other Computations)'!CO53","v":{"v":903418.3400765938,"d":"$903,418"}},{"$f":"'(Other Computations)'!CP53","v":{"v":903071.4789310333,"d":"$903,071"}},{"$f":"'(Other Computations)'!CQ53","v":{"v":902652.5679704313,"d":"$902,653"}},{"$f":"'(Other Computations)'!CR53","v":{"v":902178.3686384063,"d":"$902,178"}},{"$f":"'(Other Computations)'!CS53","v":{"v":901763.2249614173,"d":"$901,763"}},{"$f":"'(Other Computations)'!CT53","v":{"v":901285.2621726447,"d":"$901,285"}},{"$f":"'(Other Computations)'!CU53","v":{"v":900845.9616263632,"d":"$900,846"}},{"$f":"'(Other Computations)'!CV53","v":{"v":900402.6628821763,"d":"$900,403"}},{"$f":"'(Other Computations)'!CW53","v":{"v":900025.1357441996,"d":"$900,025"}},{"$f":"'(Other Computations)'!CX53","v":{"v":899583.4940591401,"d":"$899,583"}},{"$f":"'(Other Computations)'!CY53","v":{"v":899203.4699500791,"d":"$899,203"}},{"$f":"'(Other Computations)'!CZ53","v":{"v":898791.0911985184,"d":"$898,791"}},{"$f":"'(Other Computations)'!DB53","v":{"v":898321.1156474175,"d":"$898,321"}},{"$f":"'(Other Computations)'!DC53","v":{"v":897875.5032286074,"d":"$897,876"}},{"$f":"'(Other Computations)'!DD53","v":{"v":897556.137744799,"d":"$897,556"}},{"$f":"'(Other Computations)'!DE53","v":{"v":897134.1878388252,"d":"$897,134"}},{"$f":"'(Other Computations)'!DF53","v":{"v":896736.4239043659,"d":"$896,736"}},{"$f":"'(Other Computations)'!DG53","v":{"v":896315.4542250348,"d":"$896,315"}},{"$f":"'(Other Computations)'!DH53","v":{"v":895791.5775623204,"d":"$895,792"}},{"$f":"'(Other Computations)'!DI53","v":{"v":895380.3361658821,"d":"$895,380"}},{"$f":"'(Other Computations)'!DJ53","v":{"v":894890.0784222968,"d":"$894,890"}},{"$f":"'(Other Computations)'!DK53","v":{"v":894341.3653818287,"d":"$894,341"}},{"$f":"'(Other Computations)'!DL53","v":{"v":893913.2464775802,"d":"$893,913"}},{"$f":"'(Other Computations)'!DM53","v":{"v":893463.3900876456,"d":"$893,463"}},{"$f":"'(Other Computations)'!DO53","v":{"v":893056.8557375916,"d":"$893,057"}},{"$f":"'(Other Computations)'!DP53","v":{"v":892601.426897479,"d":"$892,601"}},{"$f":"'(Other Computations)'!DQ53","v":{"v":892206.5863417326,"d":"$892,207"}},{"$f":"'(Other Computations)'!DR53","v":{"v":891836.3970892658,"d":"$891,836"}},{"$f":"'(Other Computations)'!DS53","v":{"v":891380.7899964496,"d":"$891,381"}},{"$f":"'(Other Computations)'!DT53","v":{"v":890996.832280721,"d":"$890,997"}},{"$f":"'(Other Computations)'!DU53","v":{"v":890461.4333957449,"d":"$890,461"}},{"$f":"'(Other Computations)'!DV53","v":{"v":889913.589893135,"d":"$889,914"}},{"$f":"'(Other Computations)'!DW53","v":{"v":889481.0814609514,"d":"$889,481"}},{"$f":"'(Other Computations)'!DX53","v":{"v":889099.7261434204,"d":"$889,100"}},{"$f":"'(Other Computations)'!DY53","v":{"v":888577.2013470468,"d":"$888,577"}},{"$f":"'(Other Computations)'!DZ53","v":{"v":888165.4212243501,"d":"$888,165"}},{"$f":"'(Other Computations)'!EB53","v":{"v":887692.1658326788,"d":"$887,692"}},{"$f":"'(Other Computations)'!EC53","v":{"v":887310.9169658993,"d":"$887,311"}},{"$f":"'(Other Computations)'!ED53","v":{"v":886950.1262625878,"d":"$886,950"}},{"$f":"'(Other Computations)'!EE53","v":{"v":886535.6954461228,"d":"$886,536"}},{"$f":"'(Other Computations)'!EF53","v":{"v":886076.6277581863,"d":"$886,077"}},{"$f":"'(Other Computations)'!EG53","v":{"v":885583.7011672652,"d":"$885,584"}},{"$f":"'(Other Computations)'!EH53","v":{"v":885049.1404020383,"d":"$885,049"}},{"$f":"'(Other Computations)'!EI53","v":{"v":884620.0125325319,"d":"$884,620"}},{"$f":"'(Other Computations)'!EJ53","v":{"v":884273.7262380052,"d":"$884,274"}},{"$f":"'(Other Computations)'!EK53","v":{"v":883859.6430121913,"d":"$883,860"}},{"$f":"'(Other Computations)'!EL53","v":{"v":883345.0004941579,"d":"$883,345"}},{"$f":"'(Other Computations)'!EM53","v":{"v":882894.738582568,"d":"$882,895"}}]
[{"$f":"'(Other Computations)'!B54","v":{"v":933333.3333333334,"d":"$933,333"}},{"$f":"'(Other Computations)'!C54","v":{"v":933045.8765104323,"d":"$933,046"}},{"$f":"'(Other Computations)'!D54","v":{"v":932720.8763328261,"d":"$932,721"}},{"$f":"'(Other Computations)'!E54","v":{"v":932452.8871758918,"d":"$932,453"}},{"$f":"'(Other Computations)'!F54","v":{"v":932193.2829451475,"d":"$932,193"}},{"$f":"'(Other Computations)'!G54","v":{"v":931879.4186739374,"d":"$931,879"}},{"$f":"'(Other Computations)'!H54","v":{"v":931527.6374534077,"d":"$931,528"}},{"$f":"'(Other Computations)'!I54","v":{"v":931344.584250229,"d":"$931,345"}},{"$f":"'(Other Computations)'!J54","v":{"v":930939.527757154,"d":"$930,940"}},{"$f":"'(Other Computations)'!K54","v":{"v":930621.0719723713,"d":"$930,621"}},{"$f":"'(Other Computations)'!L54","v":{"v":930326.8402813191,"d":"$930,327"}},{"$f":"'(Other Computations)'!M54","v":{"v":930141.3681448748,"d":"$930,141"}},{"$f":"'(Other Computations)'!O54","v":{"v":929837.5274234924,"d":"$929,838"}},{"$f":"'(Other Computations)'!P54","v":{"v":929505.8231148835,"d":"$929,506"}},{"$f":"'(Other Computations)'!Q54","v":{"v":929191.4019066966,"d":"$929,191"}},{"$f":"'(Other Computations)'!R54","v":{"v":928898.0296498544,"d":"$928,898"}},{"$f":"'(Other Computations)'!S54","v":{"v":928506.0355455535,"d":"$928,506"}},{"$f":"'(Other Computations)'!T54","v":{"v":928147.3990137181,"d":"$928,147"}},{"$f":"'(Other Computations)'!U54","v":{"v":927915.0272420296,"d":"$927,915"}},{"$f":"'(Other Computations)'!V54","v":{"v":927652.5408731992,"d":"$927,653"}},{"$f":"'(Other Computations)'!W54","v":{"v":927278.7990473645,"d":"$927,279"}},{"$f":"'(Other Computations)'!X54","v":{"v":926960.2510692682,"d":"$926,960"}},{"$f":"'(Other Computations)'!Y54","v":{"v":926638.6648223455,"d":"$926,639"}},{"$f":"'(Other Computations)'!Z54","v":{"v":926326.941715386,"d":"$926,327"}},{"$f":"'(Other Computations)'!AB54","v":{"v":925945.7736521439,"d":"$925,946"}},{"$f":"'(Other Computations)'!AC54","v":{"v":925527.7805758866,"d":"$925,528"}},{"$f":"'(Other Computations)'!AD54","v":{"v":925229.9559861413,"d":"$925,230"}},{"$f":"'(Other Computations)'!AE54","v":{"v":924963.7006581753,"d":"$924,964"}},{"$f":"'(Other Computations)'!AF54","v":{"v":924557.0697187978,"d":"$924,557"}},{"$f":"'(Other Computations)'!AG54","v":{"v":924148.387100551,"d":"$924,148"}},{"$f":"'(Other Computations)'!AH54","v":{"v":923775.4051836655,"d":"$923,775"}},{"$f":"'(Other Computations)'!AI54","v":{"v":923495.2359172523,"d":"$923,495"}},{"$f":"'(Other Computations)'!AJ54","v":{"v":923142.069966787,"d":"$923,142"}},{"$f":"'(Other Computations)'!AK54","v":{"v":922831.1377106601,"d":"$922,831"}},{"$f":"'(Other Computations)'!AL54","v":{"v":922548.781009157,"d":"$922,549"}},{"$f":"'(Other Computations)'!AM54","v":{"v":922248.0144200503,"d":"$922,248"}},{"$f":"'(Other Computations)'!AO54","v":{"v":921861.850503873,"d":"$921,862"}},{"$f":"'(Other Computations)'!AP54","v":{"v":921496.8123520233,"d":"$921,497"}},{"$f":"'(Other Computations)'!AQ54","v":{"v":921112.3095974792,"d":"$921,112"}},{"$f":"'(Other Computations)'!AR54","v":{"v":920695.5164900586,"d":"$920,696"}},{"$f":"'(Other Computations)'!AS54","v":{"v":920439.2845638082,"d":"$920,439"}},{"$f":"'(Other Computations)'!AT54","v":{"v":920031.4828968206,"d":"$920,031"}},{"$f":"'(Other Computations)'!AU54","v":{"v":919684.3294445673,"d":"$919,684"}},{"$f":"'(Other Computations)'!AV54","v":{"v":919357.9880510559,"d":"$919,358"}},{"$f":"'(Other Computations)'!AW54","v":{"v":919011.1939572031,"d":"$919,011"}},{"$f":"'(Other Computations)'!AX54","v":{"v":918561.9401255344,"d":"$918,562"}},{"$f":"'(Other Computations)'!AY54","v":{"v":918164.9252399901,"d":"$918,165"}},{"$f":"'(Other Computations)'!AZ54","v":{"v":917775.9444865108,"d":"$917,776"}},{"$f":"'(Other Computations)'!BB54","v":{"v":917456.958670537,"d":"$917,457"}},{"$f":"'(Other Computations)'!BC54","v":{"v":916999.9997448571,"d":"$917,000"}},{"$f":"'(Other Computations)'!BD54","v":{"v":916652.0131130632,"d":"$916,652"}},{"$f":"'(Other Computations)'!BE54","v":{"v":916382.3194221209,"d":"$916,382"}},{"$f":"'(Other Computations)'!BF54","v":{"v":916073.2387102314,"d":"$916,073"}},{"$f":"'(Other Computations)'!BG54","v":{"v":915671.226969776,"d":"$915,671"}},{"$f":"'(Other Computations)'!BH54","v":{"v":915199.0421579365,"d":"$915,199"}},{"$f":"'(Other Computations)'!BI54","v":{"v":914923.4227159501,"d":"$914,923"}},{"$f":"'(Other Computations)'!BJ54","v":{"v":914465.6439454926,"d":"$914,466"}},{"$f":"'(Other Computations)'!BK54","v":{"v":914072.5344392528,"d":"$914,073"}},{"$f":"'(Other Computations)'!BL54","v":{"v":913762.0019263823,"d":"$913,762"}},{"$f":"'(Other Computations)'!BM54","v":{"v":913298.5988963565,"d":"$913,299"}},{"$f":"'(Other Computations)'!BO54","v":{"v":912935.1457683156,"d":"$912,935"}},{"$f":"'(Other Computations)'!BP54","v":{"v":912459.7583370853,"d":"$912,460"}},{"$f":"'(Other Computations)'!BQ54","v":{"v":912070.2222059179,"d":"$912,070"}},{"$f":"'(Other Computations)'!BR54","v":{"v":911616.020228874,"d":"$911,616"}},{"$f":"'(Other Computations)'!BS54","v":{"v":911300.2670439907,"d":"$911,300"}},{"$f":"'(Other Computations)'!BT54","v":{"v":910866.4643659284,"d":"$910,866"}},{"$f":"'(Other Computations)'!BU54","v":{"v":910513.0357880964,"d":"$910,513"}},{"$f":"'(Other Computations)'!BV54","v":{"v":910189.5555072435,"d":"$910,190"}},{"$f":"'(Other Computations)'!BW54","v":{"v":909727.1330927338,"d":"$909,727"}},{"$f":"'(Other Computations)'!BX54","v":{"v":909323.8727172097,"d":"$909,324"}},{"$f":"'(Other Computations)'!BY54","v":{"v":908808.7874662955,"d":"$908,809"}},{"$f":"'(Other Computations)'!BZ54","v":{"v":908445.2458157369,"d":"$908,445"}},{"$f":"'(Other Computations)'!CB54","v":{"v":908048.2451446342,"d":"$908,048"}},{"$f":"'(Other Computations)'!CC54","v":{"v":907707.597012176,"d":"$907,708"}},{"$f":"'(Other Computations)'!CD54","v":{"v":907275.5903829299,"d":"$907,276"}},{"$f":"'(Other Computations)'!CE54","v":{"v":906763.11606292,"d":"$906,763"}},{"$f":"'(Other Computations)'!CF54","v":{"v":906292.3160640072,"d":"$906,292"}},{"$f":"'(Other Computations)'!CG54","v":{"v":905852.6379408938,"d":"$905,853"}},{"$f":"'(Other Computations)'!CH54","v":{"v":905521.3522967242,"d":"$905,521"}},{"$f":"'(Other Computations)'!CI54","v":{"v":905213.8393751398,"d":"$905,214"}},{"$f":"'(Other Computations)'!CJ54","v":{"v":904843.9323945212,"d":"$904,844"}},{"$f":"'(Other Computations)'!CK54","v":{"v":904499.5680195474,"d":"$904,500"}},{"$f":"'(Other Computations)'!CL54","v":{"v":904074.427605771,"d":"$904,074"}},{"$f":"'(Other Computations)'!CM54","v":{"v":903611.8709407644,"d":"$903,612"}},{"$f":"'(Other Computations)'!CO54","v":{"v":903163.7378714839,"d":"$903,164"}},{"$f":"'(Other Computations)'!CP54","v":{"v":902697.7547027936,"d":"$902,698"}},{"$f":"'(Other Computations)'!CQ54","v":{"v":902245.3444731099,"d":"$902,245"}},{"$f":"'(Other Computations)'!CR54","v":{"v":901892.4488367474,"d":"$901,892"}},{"$f":"'(Other Computations)'!CS54","v":{"v":901489.18879542,"d":"$901,489"}},{"$f":"'(Other Computations)'!CT54","v":{"v":901034.1494157796,"d":"$901,034"}},{"$f":"'(Other Computations)'!CU54","v":{"v":900526.8644597827,"d":"$900,527"}},{"$f":"'(Other Computations)'!CV54","v":{"v":900117.090321487,"d":"$900,117"}},{"$f":"'(Other Computations)'!CW54","v":{"v":899648.6031422918,"d":"$899,649"}},{"$f":"'(Other Computations)'!CX54","v":{"v":899230.3795789549,"d":"$899,230"}},{"$f":"'(Other Computations)'!CY54","v":{"v":898719.871503544,"d":"$898,720"}},{"$f":"'(Other Computations)'!CZ54","v":{"v":898292.7973552542,"d":"$898,293"}},{"$f":"'(Other Computations)'!DB54","v":{"v":897899.9032950728,"d":"$897,900"}},{"$f":"'(Other Computations)'!DC54","v":{"v":897484.50989008,"d":"$897,485"}},{"$f":"'(Other Computations)'!DD54","v":{"v":897021.7786314476,"d":"$897,022"}},{"$f":"'(Other Computations)'!DE54","v":{"v":896513.7808679804,"d":"$896,514"}},{"$f":"'(Other Computations)'!DF54","v":{"v":896116.1672742722,"d":"$896,116"}},{"$f":"'(Other Computations)'!DG54","v":{"v":895782.8690118882,"d":"$895,783"}},{"$f":"'(Other Computations)'!DH54","v":{"v":895336.4840637429,"d":"$895,336"}},{"$f":"'(Other Computations)'!DI54","v":{"v":894898.8635455209,"d":"$894,899"}},{"$f":"'(Other Computations)'!DJ54","v":{"v":894469.6502685026,"d":"$894,470"}},{"$f":"'(Other Computations)'!DK54","v":{"v":893992.1598576467,"d":"$893,992"}},{"$f":"'(Other Computations)'!DL54","v":{"v":893554.5425878579,"d":"$893,555"}},{"$f":"'(Other Computations)'!DM54","v":{"v":893002.8328006739,"d":"$893,003"}},{"$f":"'(Other Computations)'!DO54","v":{"v":892575.2312682316,"d":"$892,575"}},{"$f":"'(Other Computations)'!DP54","v":{"v":892247.1605852391,"d":"$892,247"}},{"$f":"'(Other Computations)'!DQ54","v":{"v":891778.2132787047,"d":"$891,778"}},{"$f":"'(Other Computations)'!DR54","v":{"v":891246.5331974142,"d":"$891,247"}},{"$f":"'(Other Computations)'!DS54","v":{"v":890758.7884477262,"d":"$890,759"}},{"$f":"'(Other Computations)'!DT54","v":{"v":890252.0998023034,"d":"$890,252"}},{"$f":"'(Other Computations)'!DU54","v":{"v":889849.3751836123,"d":"$889,849"}},{"$f":"'(Other Computations)'!DV54","v":{"v":889424.3808151858,"d":"$889,424"}},{"$f":"'(Other Computations)'!DW54","v":{"v":888974.3587906094,"d":"$888,974"}},{"$f":"'(Other Computations)'!DX54","v":{"v":888559.6724167936,"d":"$888,560"}},{"$f":"'(Other Computations)'!DY54","v":{"v":888087.744643795,"d":"$888,088"}},{"$f":"'(Other Computations)'!DZ54","v":{"v":887547.704403224,"d":"$887,548"}},{"$f":"'(Other Computations)'!EB54","v":{"v":887082.6106628198,"d":"$887,083"}},{"$f":"'(Other Computations)'!EC54","v":{"v":886635.6086145439,"d":"$886,636"}},{"$f":"'(Other Computations)'!ED54","v":{"v":886290.7041141546,"d":"$886,291"}},{"$f":"'(Other Computations)'!EE54","v":{"v":885806.698619602,"d":"$885,807"}},{"$f":"'(Other Computations)'!EF54","v":{"v":885273.6004297114,"d":"$885,274"}},{"$f":"'(Other Computations)'!EG54","v":{"v":884814.0890587973,"d":"$884,814"}},{"$f":"'(Other Computations)'!EH54","v":{"v":884342.337830605,"d":"$884,342"}},{"$f":"'(Other Computations)'!EI54","v":{"v":883927.1418081797,"d":"$883,927"}},{"$f":"'(Other Computations)'!EJ54","v":{"v":883369.2281608521,"d":"$883,369"}},{"$f":"'(Other Computations)'!EK54","v":{"v":882982.8689040845,"d":"$882,983"}},{"$f":"'(Other Computations)'!EL54","v":{"v":882476.8461887982,"d":"$882,477"}},{"$f":"'(Other Computations)'!EM54","v":{"v":882027.0962132965,"d":"$882,027"}}]
[{"$f":"'(Other Computations)'!B55","v":{"v":933333.3333333334,"d":"$933,333"}},{"$f":"'(Other Computations)'!C55","v":{"v":933048.5018180658,"d":"$933,049"}},{"$f":"'(Other Computations)'!D55","v":{"v":932674.9781059774,"d":"$932,675"}},{"$f":"'(Other Computations)'!E55","v":{"v":932430.0046112818,"d":"$932,430"}},{"$f":"'(Other Computations)'!F55","v":{"v":932144.7477928333,"d":"$932,145"}},{"$f":"'(Other Computations)'!G55","v":{"v":931749.2592127407,"d":"$931,749"}},{"$f":"'(Other Computations)'!H55","v":{"v":931488.9003978723,"d":"$931,489"}},{"$f":"'(Other Computations)'!I55","v":{"v":931143.4202495692,"d":"$931,143"}},{"$f":"'(Other Computations)'!J55","v":{"v":930896.4792751863,"d":"$930,896"}},{"$f":"'(Other Computations)'!K55","v":{"v":930685.2860523446,"d":"$930,685"}},{"$f":"'(Other Computations)'!L55","v":{"v":930359.0294748405,"d":"$930,359"}},{"$f":"'(Other Computations)'!M55","v":{"v":930081.7514081628,"d":"$930,082"}},{"$f":"'(Other Computations)'!O55","v":{"v":929670.2676212888,"d":"$929,670"}},{"$f":"'(Other Computations)'!P55","v":{"v":929283.595807368,"d":"$929,284"}},{"$f":"'(Other Computations)'!Q55","v":{"v":929001.571653708,"d":"$929,002"}},{"$f":"'(Other Computations)'!R55","v":{"v":928807.6431070113,"d":"$928,808"}},{"$f":"'(Other Computations)'!S55","v":{"v":928416.4183109461,"d":"$928,416"}},{"$f":"'(Other Computations)'!T55","v":{"v":928117.6180236577,"d":"$928,118"}},{"$f":"'(Other Computations)'!U55","v":{"v":927899.4467420361,"d":"$927,899"}},{"$f":"'(Other Computations)'!V55","v":{"v":927539.2191015356,"d":"$927,539"}},{"$f":"'(Other Computations)'!W55","v":{"v":927263.80166667,"d":"$927,264"}},{"$f":"'(Other Computations)'!X55","v":{"v":926999.5055312064,"d":"$927,000"}},{"$f":"'(Other Computations)'!Y55","v":{"v":926671.7615763485,"d":"$926,672"}},{"$f":"'(Other Computations)'!Z55","v":{"v":926299.1452312432,"d":"$926,299"}},{"$f":"'(Other Computations)'!AB55","v":{"v":926035.8380691332,"d":"$926,036"}},{"$f":"'(Other Computations)'!AC55","v":{"v":925621.416807408,"d":"$925,621"}},{"$f":"'(Other Computations)'!AD55","v":{"v":925245.5608524875,"d":"$925,246"}},{"$f":"'(Other Computations)'!AE55","v":{"v":925013.2640144307,"d":"$925,013"}},{"$f":"'(Other Computations)'!AF55","v":{"v":924661.005532818,"d":"$924,661"}},{"$f":"'(Other Computations)'!AG55","v":{"v":924428.3167433072,"d":"$924,428"}},{"$f":"'(Other Computations)'!AH55","v":{"v":924159.9007864714,"d":"$924,160"}},{"$f":"'(Other Computations)'!AI55","v":{"v":923842.0181562158,"d":"$923,842"}},{"$f":"'(Other Computations)'!AJ55","v":{"v":923427.3912678645,"d":"$923,427"}},{"$f":"'(Other Computations)'!AK55","v":{"v":923198.0762548879,"d":"$923,198"}},{"$f":"'(Other Computations)'!AL55","v":{"v":922796.8914067573,"d":"$922,797"}},{"$f":"'(Other Computations)'!AM55","v":{"v":922338.4681857255,"d":"$922,338"}},{"$f":"'(Other Computations)'!AO55","v":{"v":921962.1574480801,"d":"$921,962"}},{"$f":"'(Other Computations)'!AP55","v":{"v":921681.9611771503,"d":"$921,682"}},{"$f":"'(Other Computations)'!AQ55","v":{"v":921315.6602318275,"d":"$921,316"}},{"$f":"'(Other Computations)'!AR55","v":{"v":920987.9136881761,"d":"$920,988"}},{"$f":"'(Other Computations)'!AS55","v":{"v":920723.967674125,"d":"$920,724"}},{"$f":"'(Other Computations)'!AT55","v":{"v":920318.8938536801,"d":"$920,319"}},{"$f":"'(Other Computations)'!AU55","v":{"v":919864.4079695144,"d":"$919,864"}},{"$f":"'(Other Computations)'!AV55","v":{"v":919554.1667283892,"d":"$919,554"}},{"$f":"'(Other Computations)'!AW55","v":{"v":919185.2042356781,"d":"$919,185"}},{"$f":"'(Other Computations)'!AX55","v":{"v":918773.7367529405,"d":"$918,774"}},{"$f":"'(Other Computations)'!AY55","v":{"v":918398.8387492902,"d":"$918,399"}},{"$f":"'(Other Computations)'!AZ55","v":{"v":918017.4753617838,"d":"$918,017"}},{"$f":"'(Other Computations)'!BB55","v":{"v":917767.5524902749,"d":"$917,768"}},{"$f":"'(Other Computations)'!BC55","v":{"v":917470.8923438617,"d":"$917,471"}},{"$f":"'(Other Computations)'!BD55","v":{"v":917105.4519134578,"d":"$917,105"}},{"$f":"'(Other Computations)'!BE55","v":{"v":916814.7488180092,"d":"$916,815"}},{"$f":"'(Other Computations)'!BF55","v":{"v":916440.2623835603,"d":"$916,440"}},{"$f":"'(Other Computations)'!BG55","v":{"v":915998.2681115416,"d":"$915,998"}},{"$f":"'(Other Computations)'!BH55","v":{"v":915565.2642445655,"d":"$915,565"}},{"$f":"'(Other Computations)'!BI55","v":{"v":915207.8775545883,"d":"$915,208"}},{"$f":"'(Other Computations)'!BJ55","v":{"v":914813.6576650019,"d":"$914,814"}},{"$f":"'(Other Computations)'!BK55","v":{"v":914471.545812387,"d":"$914,472"}},{"$f":"'(Other Computations)'!BL55","v":{"v":914136.0155895967,"d":"$914,136"}},{"$f":"'(Other Computations)'!BM55","v":{"v":913810.386153924,"d":"$913,810"}},{"$f":"'(Other Computations)'!BO55","v":{"v":913384.2419906314,"d":"$913,384"}},{"$f":"'(Other Computations)'!BP55","v":{"v":912994.4673565003,"d":"$912,994"}},{"$f":"'(Other Computations)'!BQ55","v":{"v":912666.7311163516,"d":"$912,667"}},{"$f":"'(Other Computations)'!BR55","v":{"v":912263.5503733855,"d":"$912,264"}},{"$f":"'(Other Computations)'!BS55","v":{"v":911860.2313221137,"d":"$911,860"}},{"$f":"'(Other Computations)'!BT55","v":{"v":911529.0585721497,"d":"$911,529"}},{"$f":"'(Other Computations)'!BU55","v":{"v":911198.3115172841,"d":"$911,198"}},{"$f":"'(Other Computations)'!BV55","v":{"v":910775.0486990606,"d":"$910,775"}},{"$f":"'(Other Computations)'!BW55","v":{"v":910417.3845492458,"d":"$910,417"}},{"$f":"'(Other Computations)'!BX55","v":{"v":910086.8251866683,"d":"$910,087"}},{"$f":"'(Other Computations)'!BY55","v":{"v":909654.1704500727,"d":"$909,654"}},{"$f":"'(Other Computations)'!BZ55","v":{"v":909297.3731297147,"d":"$909,297"}},{"$f":"'(Other Computations)'!CB55","v":{"v":908888.7158432241,"d":"$908,889"}},{"$f":"'(Other Computations)'!CC55","v":{"v":908436.8006220371,"d":"$908,437"}},{"$f":"'(Other Computations)'!CD55","v":{"v":908015.1910137114,"d":"$908,015"}},{"$f":"'(Other Computations)'!CE55","v":{"v":907625.3925883924,"d":"$907,625"}},{"$f":"'(Other Computations)'!CF55","v":{"v":907213.7166058666,"d":"$907,214"}},{"$f":"'(Other Computations)'!CG55","v":{"v":906752.4915901631,"d":"$906,752"}},{"$f":"'(Other Computations)'!CH55","v":{"v":906383.0171315228,"d":"$906,383"}},{"$f":"'(Other Computations)'!CI55","v":{"v":905860.1465813643,"d":"$905,860"}},{"$f":"'(Other Computations)'!CJ55","v":{"v":905497.5859004876,"d":"$905,498"}},{"$f":"'(Other Computations)'!CK55","v":{"v":905036.3423634373,"d":"$905,036"}},{"$f":"'(Other Computations)'!CL55","v":{"v":904688.485671703,"d":"$904,688"}},{"$f":"'(Other Computations)'!CM55","v":{"v":904184.6505766769,"d":"$904,185"}},{"$f":"'(Other Computations)'!CO55","v":{"v":903702.9039870858,"d":"$903,703"}},{"$f":"'(Other Computations)'!CP55","v":{"v":903303.59033654,"d":"$903,304"}},{"$f":"'(Other Computations)'!CQ55","v":{"v":902772.5860209983,"d":"$902,773"}},{"$f":"'(Other Computations)'!CR55","v":{"v":902239.8836693956,"d":"$902,240"}},{"$f":"'(Other Computations)'!CS55","v":{"v":901873.9595247733,"d":"$901,874"}},{"$f":"'(Other Computations)'!CT55","v":{"v":901486.5135967619,"d":"$901,487"}},{"$f":"'(Other Computations)'!CU55","v":{"v":901045.9239721075,"d":"$901,046"}},{"$f":"'(Other Computations)'!CV55","v":{"v":900678.7783244564,"d":"$900,679"}},{"$f":"'(Other Computations)'!CW55","v":{"v":900293.4805311915,"d":"$900,293"}},{"$f":"'(Other Computations)'!CX55","v":{"v":899837.7736003242,"d":"$899,838"}},{"$f":"'(Other Computations)'!CY55","v":{"v":899378.901536814,"d":"$899,379"}},{"$f":"'(Other Computations)'!CZ55","v":{"v":899001.4149071052,"d":"$899,001"}},{"$f":"'(Other Computations)'!DB55","v":{"v":898620.8544610224,"d":"$898,621"}},{"$f":"'(Other Computations)'!DC55","v":{"v":898205.011858805,"d":"$898,205"}},{"$f":"'(Other Computations)'!DD55","v":{"v":897768.773595584,"d":"$897,769"}},{"$f":"'(Other Computations)'!DE55","v":{"v":897332.4359636313,"d":"$897,332"}},{"$f":"'(Other Computations)'!DF55","v":{"v":896915.5422323861,"d":"$896,916"}},{"$f":"'(Other Computations)'!DG55","v":{"v":896444.07480521,"d":"$896,444"}},{"$f":"'(Other Computations)'!DH55","v":{"v":895990.0242595291,"d":"$895,990"}},{"$f":"'(Other Computations)'!DI55","v":{"v":895549.4126989596,"d":"$895,549"}},{"$f":"'(Other Computations)'!DJ55","v":{"v":895113.9729905681,"d":"$895,114"}},{"$f":"'(Other Computations)'!DK55","v":{"v":894659.4705972833,"d":"$894,659"}},{"$f":"'(Other Computations)'!DL55","v":{"v":894288.2506095888,"d":"$894,288"}},{"$f":"'(Other Computations)'!DM55","v":{"v":893792.3545436785,"d":"$893,792"}},{"$f":"'(Other Computations)'!DO55","v":{"v":893349.6412921038,"d":"$893,350"}},{"$f":"'(Other Computations)'!DP55","v":{"v":892953.2406684941,"d":"$892,953"}},{"$f":"'(Other Computations)'!DQ55","v":{"v":892471.0778144777,"d":"$892,471"}},{"$f":"'(Other Computations)'!DR55","v":{"v":892060.584696971,"d":"$892,061"}},{"$f":"'(Other Computations)'!DS55","v":{"v":891652.5758465296,"d":"$891,653"}},{"$f":"'(Other Computations)'!DT55","v":{"v":891238.6513876385,"d":"$891,239"}},{"$f":"'(Other Computations)'!DU55","v":{"v":890788.0241384091,"d":"$890,788"}},{"$f":"'(Other Computations)'!DV55","v":{"v":890419.8458970552,"d":"$890,420"}},{"$f":"'(Other Computations)'!DW55","v":{"v":889930.0438079304,"d":"$889,930"}},{"$f":"'(Other Computations)'!DX55","v":{"v":889467.2058697079,"d":"$889,467"}},{"$f":"'(Other Computations)'!DY55","v":{"v":889017.7383766408,"d":"$889,018"}},{"$f":"'(Other Computations)'!DZ55","v":{"v":888632.7701510006,"d":"$888,633"}},{"$f":"'(Other Computations)'!EB55","v":{"v":888138.9923538431,"d":"$888,139"}},{"$f":"'(Other Computations)'!EC55","v":{"v":887620.9460705102,"d":"$887,621"}},{"$f":"'(Other Computations)'!ED55","v":{"v":887224.7528304238,"d":"$887,225"}},{"$f":"'(Other Computations)'!EE55","v":{"v":886738.383883438,"d":"$886,738"}},{"$f":"'(Other Computations)'!EF55","v":{"v":886291.4952260124,"d":"$886,291"}},{"$f":"'(Other Computations)'!EG55","v":{"v":885782.3414653105,"d":"$885,782"}},{"$f":"'(Other Computations)'!EH55","v":{"v":885429.1691375371,"d":"$885,429"}},{"$f":"'(Other Computations)'!EI55","v":{"v":884926.0598491459,"d":"$884,926"}},{"$f":"'(Other Computations)'!EJ55","v":{"v":884519.0741650934,"d":"$884,519"}},{"$f":"'(Other Computations)'!EK55","v":{"v":884152.6662909467,"d":"$884,153"}},{"$f":"'(Other Computations)'!EL55","v":{"v":883729.2465557426,"d":"$883,729"}},{"$f":"'(Other Computations)'!EM55","v":{"v":883288.9543615398,"d":"$883,289"}}]
[{"$f":"'(Other Computations)'!B56","v":{"v":933333.3333333334,"d":"$933,333"}},{"$f":"'(Other Computations)'!C56","v":{"v":933134.5171322409,"d":"$933,135"}},{"$f":"'(Other Computations)'!D56","v":{"v":932952.444308477,"d":"$932,952"}},{"$f":"'(Other Computations)'!E56","v":{"v":932593.5994992952,"d":"$932,594"}},{"$f":"'(Other Computations)'!F56","v":{"v":932241.752174219,"d":"$932,242"}},{"$f":"'(Other Computations)'!G56","v":{"v":931853.5492532653,"d":"$931,854"}},{"$f":"'(Other Computations)'!H56","v":{"v":931489.3853226659,"d":"$931,489"}},{"$f":"'(Other Computations)'!I56","v":{"v":931251.0675112549,"d":"$931,251"}},{"$f":"'(Other Computations)'!J56","v":{"v":930989.5701589177,"d":"$930,990"}},{"$f":"'(Other Computations)'!K56","v":{"v":930667.5556512366,"d":"$930,668"}},{"$f":"'(Other Computations)'!L56","v":{"v":930317.0849281721,"d":"$930,317"}},{"$f":"'(Other Computations)'!M56","v":{"v":930014.0840095284,"d":"$930,014"}},{"$f":"'(Other Computations)'!O56","v":{"v":929740.5577173047,"d":"$929,741"}},{"$f":"'(Other Computations)'!P56","v":{"v":929434.5023995772,"d":"$929,435"}},{"$f":"'(Other Computations)'!Q56","v":{"v":929197.0890594271,"d":"$929,197"}},{"$f":"'(Other Computations)'!R56","v":{"v":928919.8557047107,"d":"$928,920"}},{"$f":"'(Other Computations)'!S56","v":{"v":928726.9251771518,"d":"$928,727"}},{"$f":"'(Other Computations)'!T56","v":{"v":928394.3847484537,"d":"$928,394"}},{"$f":"'(Other Computations)'!U56","v":{"v":928143.934438027,"d":"$928,144"}},{"$f":"'(Other Computations)'!V56","v":{"v":927811.0418721264,"d":"$927,811"}},{"$f":"'(Other Computations)'!W56","v":{"v":927540.8191279677,"d":"$927,541"}},{"$f":"'(Other Computations)'!X56","v":{"v":927127.7133222735,"d":"$927,128"}},{"$f":"'(Other Computations)'!Y56","v":{"v":926773.6804103819,"d":"$926,774"}},{"$f":"'(Other Computations)'!Z56","v":{"v":926506.7810040773,"d":"$926,507"}},{"$f":"'(Other Computations)'!AB56","v":{"v":926223.9132674474,"d":"$926,224"}},{"$f":"'(Other Computations)'!AC56","v":{"v":925885.8331456308,"d":"$925,886"}},{"$f":"'(Other Computations)'!AD56","v":{"v":925619.7991847807,"d":"$925,620"}},{"$f":"'(Other Computations)'!AE56","v":{"v":925343.8298596379,"d":"$925,344"}},{"$f":"'(Other Computations)'!AF56","v":{"v":925011.8958614856,"d":"$925,012"}},{"$f":"'(Other Computations)'!AG56","v":{"v":924796.9104769512,"d":"$924,797"}},{"$f":"'(Other Computations)'!AH56","v":{"v":924442.2461672719,"d":"$924,442"}},{"$f":"'(Other Computations)'!AI56","v":{"v":924097.4898529049,"d":"$924,097"}},{"$f":"'(Other Computations)'!AJ56","v":{"v":923701.5104012553,"d":"$923,702"}},{"$f":"'(Other Computations)'!AK56","v":{"v":923308.871119556,"d":"$923,309"}},{"$f":"'(Other Computations)'!AL56","v":{"v":923006.164028023,"d":"$923,006"}},{"$f":"'(Other Computations)'!AM56","v":{"v":922680.1795432382,"d":"$922,680"}},{"$f":"'(Other Computations)'!AO56","v":{"v":922274.5440414314,"d":"$922,275"}},{"$f":"'(Other Computations)'!AP56","v":{"v":921863.5894528383,"d":"$921,864"}},{"$f":"'(Other Computations)'!AQ56","v":{"v":921472.2615632566,"d":"$921,472"}},{"$f":"'(Other Computations)'!AR56","v":{"v":921110.8738812332,"d":"$921,111"}},{"$f":"'(Other Computations)'!AS56","v":{"v":920676.6880392734,"d":"$920,677"}},{"$f":"'(Other Computations)'!AT56","v":{"v":920264.1181520093,"d":"$920,264"}},{"$f":"'(Other Computations)'!AU56","v":{"v":919831.9957052371,"d":"$919,832"}},{"$f":"'(Other Computations)'!AV56","v":{"v":919500.1851944396,"d":"$919,500"}},{"$f":"'(Other Computations)'!AW56","v":{"v":919197.868382982,"d":"$919,198"}},{"$f":"'(Other Computations)'!AX56","v":{"v":918898.9197574175,"d":"$918,899"}},{"$f":"'(Other Computations)'!AY56","v":{"v":918574.7003573326,"d":"$918,575"}},{"$f":"'(Other Computations)'!AZ56","v":{"v":918239.6418240707,"d":"$918,240"}},{"$f":"'(Other Computations)'!BB56","v":{"v":917905.5784493713,"d":"$917,906"}},{"$f":"'(Other Computations)'!BC56","v":{"v":917514.2074361396,"d":"$917,514"}},{"$f":"'(Other Computations)'!BD56","v":{"v":917163.0109657663,"d":"$917,163"}},{"$f":"'(Other Computations)'!BE56","v":{"v":916880.8989331843,"d":"$916,881"}},{"$f":"'(Other Computations)'!BF56","v":{"v":916504.6407420549,"d":"$916,505"}},{"$f":"'(Other Computations)'!BG56","v":{"v":916075.1478294631,"d":"$916,075"}},{"$f":"'(Other Computations)'!BH56","v":{"v":915682.6284424418,"d":"$915,683"}},{"$f":"'(Other Computations)'!BI56","v":{"v":915256.0114550672,"d":"$915,256"}},{"$f":"'(Other Computations)'!BJ56","v":{"v":914797.2039915192,"d":"$914,797"}},{"$f":"'(Other Computations)'!BK56","v":{"v":914444.3580692491,"d":"$914,444"}},{"$f":"'(Other Computations)'!BL56","v":{"v":914116.87442924,"d":"$914,117"}},{"$f":"'(Other Computations)'!BM56","v":{"v":913739.5398710757,"d":"$913,740"}},{"$f":"'(Other Computations)'!BO56","v":{"v":913257.3026367323,"d":"$913,257"}},{"$f":"'(Other Computations)'!BP56","v":{"v":912806.0412147038,"d":"$912,806"}},{"$f":"'(Other Computations)'!BQ56","v":{"v":912387.2259082049,"d":"$912,387"}},{"$f":"'(Other Computations)'!BR56","v":{"v":911978.20470705,"d":"$911,978"}},{"$f":"'(Other Computations)'!BS56","v":{"v":911680.127722244,"d":"$911,680"}},{"$f":"'(Other Computations)'!BT56","v":{"v":911368.4534567541,"d":"$911,368"}},{"$f":"'(Other Computations)'!BU56","v":{"v":910949.9348868341,"d":"$910,950"}},{"$f":"'(Other Computations)'!BV56","v":{"v":910491.6675503011,"d":"$910,492"}},{"$f":"'(Other Computations)'!BW56","v":{"v":910088.8497846929,"d":"$910,089"}},{"$f":"'(Other Computations)'!BX56","v":{"v":909711.2009283381,"d":"$909,711"}},{"$f":"'(Other Computations)'!BY56","v":{"v":909312.2577377076,"d":"$909,312"}},{"$f":"'(Other Computations)'!BZ56","v":{"v":908967.4106987243,"d":"$908,967"}},{"$f":"'(Other Computations)'!CB56","v":{"v":908591.3509512729,"d":"$908,591"}},{"$f":"'(Other Computations)'!CC56","v":{"v":908178.3331880695,"d":"$908,178"}},{"$f":"'(Other Computations)'!CD56","v":{"v":907714.1706442065,"d":"$907,714"}},{"$f":"'(Other Computations)'!CE56","v":{"v":907339.5772217507,"d":"$907,340"}},{"$f":"'(Other Computations)'!CF56","v":{"v":906934.1833476572,"d":"$906,934"}},{"$f":"'(Other Computations)'!CG56","v":{"v":906427.3059824245,"d":"$906,427"}},{"$f":"'(Other Computations)'!CH56","v":{"v":906010.2251181487,"d":"$906,010"}},{"$f":"'(Other Computations)'!CI56","v":{"v":905499.6369716757,"d":"$905,500"}},{"$f":"'(Other Computations)'!CJ56","v":{"v":904982.5849749978,"d":"$904,983"}},{"$f":"'(Other Computations)'!CK56","v":{"v":904568.144002017,"d":"$904,568"}},{"$f":"'(Other Computations)'!CL56","v":{"v":904211.9147751457,"d":"$904,212"}},{"$f":"'(Other Computations)'!CM56","v":{"v":903803.6909890163,"d":"$903,804"}},{"$f":"'(Other Computations)'!CO56","v":{"v":903297.2002092407,"d":"$903,297"}},{"$f":"'(Other Computations)'!CP56","v":{"v":902847.6074911996,"d":"$902,848"}},{"$f":"'(Other Computations)'!CQ56","v":{"v":902465.2169332411,"d":"$902,465"}},{"$f":"'(Other Computations)'!CR56","v":{"v":902030.5652527536,"d":"$902,031"}},{"$f":"'(Other Computations)'!CS56","v":{"v":901621.2197822134,"d":"$901,621"}},{"$f":"'(Other Computations)'!CT56","v":{"v":901291.2554852655,"d":"$901,291"}},{"$f":"'(Other Computations)'!CU56","v":{"v":900873.4660208498,"d":"$900,873"}},{"$f":"'(Other Computations)'!CV56","v":{"v":900434.582859995,"d":"$900,435"}},{"$f":"'(Other Computations)'!CW56","v":{"v":900039.9691879868,"d":"$900,040"}},{"$f":"'(Other Computations)'!CX56","v":{"v":899631.5707345064,"d":"$899,632"}},{"$f":"'(Other Computations)'!CY56","v":{"v":899304.7350151904,"d":"$899,305"}},{"$f":"'(Other Computations)'!CZ56","v":{"v":898961.3427007523,"d":"$898,961"}},{"$f":"'(Other Computations)'!DB56","v":{"v":898530.631741147,"d":"$898,531"}},{"$f":"'(Other Computations)'!DC56","v":{"v":898009.5411251553,"d":"$898,010"}},{"$f":"'(Other Computations)'!DD56","v":{"v":897581.799379256,"d":"$897,582"}},{"$f":"'(Other Computations)'!DE56","v":{"v":897180.3621319096,"d":"$897,180"}},{"$f":"'(Other Computations)'!DF56","v":{"v":896644.2627757216,"d":"$896,644"}},{"$f":"'(Other Computations)'!DG56","v":{"v":896230.2650602183,"d":"$896,230"}},{"$f":"'(Other Computations)'!DH56","v":{"v":895823.06886369,"d":"$895,823"}},{"$f":"'(Other Computations)'!DI56","v":{"v":895313.1677924985,"d":"$895,313"}},{"$f":"'(Other Computations)'!DJ56","v":{"v":894928.0524609104,"d":"$894,928"}},{"$f":"'(Other Computations)'!DK56","v":{"v":894550.6264443907,"d":"$894,551"}},{"$f":"'(Other Computations)'!DL56","v":{"v":894012.2433742033,"d":"$894,012"}},{"$f":"'(Other Computations)'!DM56","v":{"v":893580.8273494554,"d":"$893,581"}},{"$f":"'(Other Computations)'!DO56","v":{"v":893208.6571791002,"d":"$893,209"}},{"$f":"'(Other Computations)'!DP56","v":{"v":892734.3252975416,"d":"$892,734"}},{"$f":"'(Other Computations)'!DQ56","v":{"v":892356.3067905566,"d":"$892,356"}},{"$f":"'(Other Computations)'!DR56","v":{"v":891963.7392110988,"d":"$891,964"}},{"$f":"'(Other Computations)'!DS56","v":{"v":891446.0590852938,"d":"$891,446"}},{"$f":"'(Other Computations)'!DT56","v":{"v":891093.2891374188,"d":"$891,093"}},{"$f":"'(Other Computations)'!DU56","v":{"v":890574.8806826501,"d":"$890,575"}},{"$f":"'(Other Computations)'!DV56","v":{"v":890138.9847316905,"d":"$890,139"}},{"$f":"'(Other Computations)'!DW56","v":{"v":889624.3664143878,"d":"$889,624"}},{"$f":"'(Other Computations)'!DX56","v":{"v":889244.8295890572,"d":"$889,245"}},{"$f":"'(Other Computations)'!DY56","v":{"v":888903.8385959233,"d":"$888,904"}},{"$f":"'(Other Computations)'!DZ56","v":{"v":888379.279966232,"d":"$888,379"}},{"$f":"'(Other Computations)'!EB56","v":{"v":887988.0784386512,"d":"$887,988"}},{"$f":"'(Other Computations)'!EC56","v":{"v":887580.5241043343,"d":"$887,581"}},{"$f":"'(Other Computations)'!ED56","v":{"v":887122.7015282069,"d":"$887,123"}},{"$f":"'(Other Computations)'!EE56","v":{"v":886674.6411810747,"d":"$886,675"}},{"$f":"'(Other Computations)'!EF56","v":{"v":886269.7738777465,"d":"$886,270"}},{"$f":"'(Other Computations)'!EG56","v":{"v":885871.3741754872,"d":"$885,871"}},{"$f":"'(Other Computations)'!EH56","v":{"v":885420.5495216622,"d":"$885,421"}},{"$f":"'(Other Computations)'!EI56","v":{"v":884996.8783807086,"d":"$884,997"}},{"$f":"'(Other Computations)'!EJ56","v":{"v":884625.7630099129,"d":"$884,626"}},{"$f":"'(Other Computations)'!EK56","v":{"v":884100.5832394469,"d":"$884,101"}},{"$f":"'(Other Computations)'!EL56","v":{"v":883691.0367190437,"d":"$883,691"}},{"$f":"'(Other Computations)'!EM56","v":{"v":883334.3195078367,"d":"$883,334"}}]
[{"$f":"'(Other Computations)'!B57","v":{"v":933333.3333333334,"d":"$933,333"}},{"$f":"'(Other Computations)'!C57","v":{"v":933072.6319118948,"d":"$933,073"}},{"$f":"'(Other Computations)'!D57","v":{"v":932670.3500393376,"d":"$932,670"}},{"$f":"'(Other Computations)'!E57","v":{"v":932373.8536112321,"d":"$932,374"}},{"$f":"'(Other Computations)'!F57","v":{"v":932040.7791879592,"d":"$932,041"}},{"$f":"'(Other Computations)'!G57","v":{"v":931756.8849491802,"d":"$931,757"}},{"$f":"'(Other Computations)'!H57","v":{"v":931383.5445462132,"d":"$931,384"}},{"$f":"'(Other Computations)'!I57","v":{"v":931149.2282173091,"d":"$931,149"}},{"$f":"'(Other Computations)'!J57","v":{"v":930828.2789113078,"d":"$930,828"}},{"$f":"'(Other Computations)'!K57","v":{"v":930530.3304570115,"d":"$930,530"}},{"$f":"'(Other Computations)'!L57","v":{"v":930311.0113804606,"d":"$930,311"}},{"$f":"'(Other Computations)'!M57","v":{"v":930042.3998055174,"d":"$930,042"}},{"$f":"'(Other Computations)'!O57","v":{"v":929805.751420096,"d":"$929,806"}},{"$f":"'(Other Computations)'!P57","v":{"v":929542.8245689264,"d":"$929,543"}},{"$f":"'(Other Computations)'!Q57","v":{"v":929238.3296022649,"d":"$929,238"}},{"$f":"'(Other Computations)'!R57","v":{"v":928950.5630710851,"d":"$928,951"}},{"$f":"'(Other Computations)'!S57","v":{"v":928607.7430683143,"d":"$928,608"}},{"$f":"'(Other Computations)'!T57","v":{"v":928260.0089400075,"d":"$928,260"}},{"$f":"'(Other Computations)'!U57","v":{"v":928052.2731625073,"d":"$928,052"}},{"$f":"'(Other Computations)'!V57","v":{"v":927722.3375192304,"d":"$927,722"}},{"$f":"'(Other Computations)'!W57","v":{"v":927463.5316812296,"d":"$927,464"}},{"$f":"'(Other Computations)'!X57","v":{"v":927059.3726786618,"d":"$927,059"}},{"$f":"'(Other Computations)'!Y57","v":{"v":926749.4071786214,"d":"$926,749"}},{"$f":"'(Other Computations)'!Z57","v":{"v":926338.5421565184,"d":"$926,339"}},{"$f":"'(Other Computations)'!AB57","v":{"v":926106.8490433983,"d":"$926,107"}},{"$f":"'(Other Computations)'!AC57","v":{"v":925835.4052699115,"d":"$925,835"}},{"$f":"'(Other Computations)'!AD57","v":{"v":925421.7798878297,"d":"$925,422"}},{"$f":"'(Other Computations)'!AE57","v":{"v":925078.0397607922,"d":"$925,078"}},{"$f":"'(Other Computations)'!AF57","v":{"v":924720.8972498399,"d":"$924,721"}},{"$f":"'(Other Computations)'!AG57","v":{"v":924281.0987541162,"d":"$924,281"}},{"$f":"'(Other Computations)'!AH57","v":{"v":923992.4819962768,"d":"$923,992"}},{"$f":"'(Other Computations)'!AI57","v":{"v":923692.216858437,"d":"$923,692"}},{"$f":"'(Other Computations)'!AJ57","v":{"v":923300.0380159182,"d":"$923,300"}},{"$f":"'(Other Computations)'!AK57","v":{"v":923051.7637831728,"d":"$923,052"}},{"$f":"'(Other Computations)'!AL57","v":{"v":922756.1005977589,"d":"$922,756"}},{"$f":"'(Other Computations)'!AM57","v":{"v":922399.2984995657,"d":"$922,399"}},{"$f":"'(Other Computations)'!AO57","v":{"v":922145.9472153392,"d":"$922,146"}},{"$f":"'(Other Computations)'!AP57","v":{"v":921797.4162953012,"d":"$921,797"}},{"$f":"'(Other Computations)'!AQ57","v":{"v":921436.6215440048,"d":"$921,437"}},{"$f":"'(Other Computations)'!AR57","v":{"v":921133.9035524229,"d":"$921,134"}},{"$f":"'(Other Computations)'!AS57","v":{"v":920758.3035940966,"d":"$920,758"}},{"$f":"'(Other Computations)'!AT57","v":{"v":920462.3912142141,"d":"$920,462"}},{"$f":"'(Other Computations)'!AU57","v":{"v":920104.9284248217,"d":"$920,105"}},{"$f":"'(Other Computations)'!AV57","v":{"v":919707.3737592841,"d":"$919,707"}},{"$f":"'(Other Computations)'!AW57","v":{"v":919326.3987299481,"d":"$919,326"}},{"$f":"'(Other Computations)'!AX57","v":{"v":918969.488213295,"d":"$918,969"}},{"$f":"'(Other Computations)'!AY57","v":{"v":918702.2540237607,"d":"$918,702"}},{"$f":"'(Other Computations)'!AZ57","v":{"v":918322.0427543684,"d":"$918,322"}},{"$f":"'(Other Computations)'!BB57","v":{"v":917867.3786612024,"d":"$917,867"}},{"$f":"'(Other Computations)'!BC57","v":{"v":917429.3696371964,"d":"$917,429"}},{"$f":"'(Other Computations)'!BD57","v":{"v":917118.5006368636,"d":"$917,119"}},{"$f":"'(Other Computations)'!BE57","v":{"v":916811.0886083215,"d":"$916,811"}},{"$f":"'(Other Computations)'!BF57","v":{"v":916421.5143158996,"d":"$916,422"}},{"$f":"'(Other Computations)'!BG57","v":{"v":916092.7695252746,"d":"$916,093"}},{"$f":"'(Other Computations)'!BH57","v":{"v":915709.576049202,"d":"$915,710"}},{"$f":"'(Other Computations)'!BI57","v":{"v":915380.7646826066,"d":"$915,381"}},{"$f":"'(Other Computations)'!BJ57","v":{"v":915031.6376668512,"d":"$915,032"}},{"$f":"'(Other Computations)'!BK57","v":{"v":914638.8722002861,"d":"$914,639"}},{"$f":"'(Other Computations)'!BL57","v":{"v":914228.3985276388,"d":"$914,228"}},{"$f":"'(Other Computations)'!BM57","v":{"v":913832.3716067986,"d":"$913,832"}},{"$f":"'(Other Computations)'!BO57","v":{"v":913454.3502214071,"d":"$913,454"}},{"$f":"'(Other Computations)'!BP57","v":{"v":912959.7245138723,"d":"$912,960"}},{"$f":"'(Other Computations)'!BQ57","v":{"v":912668.2155701438,"d":"$912,668"}},{"$f":"'(Other Computations)'!BR57","v":{"v":912351.7497914059,"d":"$912,352"}},{"$f":"'(Other Computations)'!BS57","v":{"v":912076.8378730186,"d":"$912,077"}},{"$f":"'(Other Computations)'!BT57","v":{"v":911670.1115920052,"d":"$911,670"}},{"$f":"'(Other Computations)'!BU57","v":{"v":911381.4026795148,"d":"$911,381"}},{"$f":"'(Other Computations)'!BV57","v":{"v":910981.5234914375,"d":"$910,982"}},{"$f":"'(Other Computations)'!BW57","v":{"v":910479.5960988573,"d":"$910,480"}},{"$f":"'(Other Computations)'!BX57","v":{"v":910105.2885007631,"d":"$910,105"}},{"$f":"'(Other Computations)'!BY57","v":{"v":909640.2729237858,"d":"$909,640"}},{"$f":"'(Other Computations)'!BZ57","v":{"v":909211.5880633537,"d":"$909,212"}},{"$f":"'(Other Computations)'!CB57","v":{"v":908840.9533116579,"d":"$908,841"}},{"$f":"'(Other Computations)'!CC57","v":{"v":908343.4062389372,"d":"$908,343"}},{"$f":"'(Other Computations)'!CD57","v":{"v":908007.3805378531,"d":"$908,007"}},{"$f":"'(Other Computations)'!CE57","v":{"v":907572.914471349,"d":"$907,573"}},{"$f":"'(Other Computations)'!CF57","v":{"v":907110.2808679366,"d":"$907,110"}},{"$f":"'(Other Computations)'!CG57","v":{"v":906741.8109108498,"d":"$906,742"}},{"$f":"'(Other Computations)'!CH57","v":{"v":906334.5931816556,"d":"$906,335"}},{"$f":"'(Other Computations)'!CI57","v":{"v":905940.956557218,"d":"$905,941"}},{"$f":"'(Other Computations)'!CJ57","v":{"v":905467.2010254075,"d":"$905,467"}},{"$f":"'(Other Computations)'!CK57","v":{"v":905170.4439206901,"d":"$905,170"}},{"$f":"'(Other Computations)'!CL57","v":{"v":904718.0998764309,"d":"$904,718"}},{"$f":"'(Other Computations)'!CM57","v":{"v":904346.6757544908,"d":"$904,347"}},{"$f":"'(Other Computations)'!CO57","v":{"v":903849.5410034561,"d":"$903,850"}},{"$f":"'(Other Computations)'!CP57","v":{"v":903468.1977689329,"d":"$903,468"}},{"$f":"'(Other Computations)'!CQ57","v":{"v":903023.1579580848,"d":"$903,023"}},{"$f":"'(Other Computations)'!CR57","v":{"v":902689.215678026,"d":"$902,689"}},{"$f":"'(Other Computations)'!CS57","v":{"v":902206.7662153456,"d":"$902,207"}},{"$f":"'(Other Computations)'!CT57","v":{"v":901819.6724081927,"d":"$901,820"}},{"$f":"'(Other Computations)'!CU57","v":{"v":901463.2808233302,"d":"$901,463"}},{"$f":"'(Other Computations)'!CV57","v":{"v":901113.3930183793,"d":"$901,113"}},{"$f":"'(Other Computations)'!CW57","v":{"v":900722.1180406705,"d":"$900,722"}},{"$f":"'(Other Computations)'!CX57","v":{"v":900199.6766605072,"d":"$900,200"}},{"$f":"'(Other Computations)'!CY57","v":{"v":899788.7043706555,"d":"$899,789"}},{"$f":"'(Other Computations)'!CZ57","v":{"v":899326.537753431,"d":"$899,327"}},{"$f":"'(Other Computations)'!DB57","v":{"v":898978.0277316177,"d":"$898,978"}},{"$f":"'(Other Computations)'!DC57","v":{"v":898612.4298634271,"d":"$898,612"}},{"$f":"'(Other Computations)'!DD57","v":{"v":898180.7152308744,"d":"$898,181"}},{"$f":"'(Other Computations)'!DE57","v":{"v":897719.2001867004,"d":"$897,719"}},{"$f":"'(Other Computations)'!DF57","v":{"v":897405.8913295659,"d":"$897,406"}},{"$f":"'(Other Computations)'!DG57","v":{"v":896979.8435937541,"d":"$896,980"}},{"$f":"'(Other Computations)'!DH57","v":{"v":896548.784733139,"d":"$896,549"}},{"$f":"'(Other Computations)'!DI57","v":{"v":896187.6011339009,"d":"$896,188"}},{"$f":"'(Other Computations)'!DJ57","v":{"v":895706.4228962745,"d":"$895,706"}},{"$f":"'(Other Computations)'!DK57","v":{"v":895356.9667538938,"d":"$895,357"}},{"$f":"'(Other Computations)'!DL57","v":{"v":894985.4950363253,"d":"$894,985"}},{"$f":"'(Other Computations)'!DM57","v":{"v":894520.1274345655,"d":"$894,520"}},{"$f":"'(Other Computations)'!DO57","v":{"v":894139.4195655738,"d":"$894,139"}},{"$f":"'(Other Computations)'!DP57","v":{"v":893766.5770167114,"d":"$893,767"}},{"$f":"'(Other Computations)'!DQ57","v":{"v":893288.2733619276,"d":"$893,288"}},{"$f":"'(Other Computations)'!DR57","v":{"v":892886.6039063428,"d":"$892,887"}},{"$f":"'(Other Computations)'!DS57","v":{"v":892401.6009966048,"d":"$892,402"}},{"$f":"'(Other Computations)'!DT57","v":{"v":892000.9664287157,"d":"$892,001"}},{"$f":"'(Other Computations)'!DU57","v":{"v":891636.4817319644,"d":"$891,636"}},{"$f":"'(Other Computations)'!DV57","v":{"v":891184.9292510484,"d":"$891,185"}},{"$f":"'(Other Computations)'!DW57","v":{"v":890698.4668589582,"d":"$890,698"}},{"$f":"'(Other Computations)'!DX57","v":{"v":890261.8584506917,"d":"$890,262"}},{"$f":"'(Other Computations)'!DY57","v":{"v":889828.9360268861,"d":"$889,829"}},{"$f":"'(Other Computations)'!DZ57","v":{"v":889455.6623891792,"d":"$889,456"}},{"$f":"'(Other Computations)'!EB57","v":{"v":889003.8247638192,"d":"$889,004"}},{"$f":"'(Other Computations)'!EC57","v":{"v":888616.7000131874,"d":"$888,617"}},{"$f":"'(Other Computations)'!ED57","v":{"v":888103.9000409043,"d":"$888,104"}},{"$f":"'(Other Computations)'!EE57","v":{"v":887644.847481015,"d":"$887,645"}},{"$f":"'(Other Computations)'!EF57","v":{"v":887137.8482883564,"d":"$887,138"}},{"$f":"'(Other Computations)'!EG57","v":{"v":886782.5214014446,"d":"$886,783"}},{"$f":"'(Other Computations)'!EH57","v":{"v":886292.6660407445,"d":"$886,293"}},{"$f":"'(Other Computations)'!EI57","v":{"v":885846.4323993282,"d":"$885,846"}},{"$f":"'(Other Computations)'!EJ57","v":{"v":885434.8971163711,"d":"$885,435"}},{"$f":"'(Other Computations)'!EK57","v":{"v":885016.9785220992,"d":"$885,017"}},{"$f":"'(Other Computations)'!EL57","v":{"v":884568.8894896279,"d":"$884,569"}},{"$f":"'(Other Computations)'!EM57","v":{"v":884006.3853995324,"d":"$884,006"}}]
[{"$f":"'(Other Computations)'!B58","v":{"v":7466666.666666666,"d":"$7,466,667"}},{"$f":"'(Other Computations)'!C58","v":{"v":7464622.690766055,"d":"$7,464,623"}},{"$f":"'(Other Computations)'!D58","v":{"v":7462384.041900392,"d":"$7,462,384"}},{"$f":"'(Other Computations)'!E58","v":{"v":7460130.461731705,"d":"$7,460,130"}},{"$f":"'(Other Computations)'!F58","v":{"v":7457600.204639196,"d":"$7,457,600"}},{"$f":"'(Other Computations)'!G58","v":{"v":7455089.844896646,"d":"$7,455,090"}},{"$f":"'(Other Computations)'!H58","v":{"v":7452679.875507096,"d":"$7,452,680"}},{"$f":"'(Other Computations)'!I58","v":{"v":7450669.226090559,"d":"$7,450,669"}},{"$f":"'(Other Computations)'!J58","v":{"v":7448278.3990068445,"d":"$7,448,278"}},{"$f":"'(Other Computations)'!K58","v":{"v":7446133.254531503,"d":"$7,446,133"}},{"$f":"'(Other Computations)'!L58","v":{"v":7443653.106657937,"d":"$7,443,653"}},{"$f":"'(Other Computations)'!M58","v":{"v":7441400.239550032,"d":"$7,441,400"}},{"$f":"'(Other Computations)'!O58","v":{"v":7439125.885320611,"d":"$7,439,126"}},{"$f":"'(Other Computations)'!P58","v":{"v":7436575.65003052,"d":"$7,436,576"}},{"$f":"'(Other Computations)'!Q58","v":{"v":7434224.446314635,"d":"$7,434,224"}},{"$f":"'(Other Computations)'!R58","v":{"v":7432056.175456374,"d":"$7,432,056"}},{"$f":"'(Other Computations)'!S58","v":{"v":7429656.662886119,"d":"$7,429,657"}},{"$f":"'(Other Computations)'!T58","v":{"v":7427293.9091222435,"d":"$7,427,294"}},{"$f":"'(Other Computations)'!U58","v":{"v":7424845.697231778,"d":"$7,424,846"}},{"$f":"'(Other Computations)'!V58","v":{"v":7422243.040045139,"d":"$7,422,243"}},{"$f":"'(Other Computations)'!W58","v":{"v":7419849.747667867,"d":"$7,419,850"}},{"$f":"'(Other Computations)'!X58","v":{"v":7417249.48731889,"d":"$7,417,249"}},{"$f":"'(Other Computations)'!Y58","v":{"v":7414762.318474865,"d":"$7,414,762"}},{"$f":"'(Other Computations)'!Z58","v":{"v":7412046.292501689,"d":"$7,412,046"}},{"$f":"'(Other Computations)'!AB58","v":{"v":7409584.262325787,"d":"$7,409,584"}},{"$f":"'(Other Computations)'!AC58","v":{"v":7406820.678061628,"d":"$7,406,821"}},{"$f":"'(Other Computations)'!AD58","v":{"v":7404148.707899534,"d":"$7,404,149"}},{"$f":"'(Other Computations)'!AE58","v":{"v":7401774.723225882,"d":"$7,401,775"}},{"$f":"'(Other Computations)'!AF58","v":{"v":7398858.290823735,"d":"$7,398,858"}},{"$f":"'(Other Computations)'!AG58","v":{"v":7396221.904828293,"d":"$7,396,222"}},{"$f":"'(Other Computations)'!AH58","v":{"v":7393592.505634162,"d":"$7,393,593"}},{"$f":"'(Other Computations)'!AI58","v":{"v":7391023.327824346,"d":"$7,391,023"}},{"$f":"'(Other Computations)'!AJ58","v":{"v":7388010.808277931,"d":"$7,388,011"}},{"$f":"'(Other Computations)'!AK58","v":{"v":7385334.065748137,"d":"$7,385,334"}},{"$f":"'(Other Computations)'!AL58","v":{"v":7382691.87207447,"d":"$7,382,692"}},{"$f":"'(Other Computations)'!AM58","v":{"v":7379842.330624656,"d":"$7,379,842"}},{"$f":"'(Other Computations)'!AO58","v":{"v":7377211.698675568,"d":"$7,377,212"}},{"$f":"'(Other Computations)'!AP58","v":{"v":7374120.169754047,"d":"$7,374,120"}},{"$f":"'(Other Computations)'!AQ58","v":{"v":7371132.217362119,"d":"$7,371,132"}},{"$f":"'(Other Computations)'!AR58","v":{"v":7368487.542519375,"d":"$7,368,488"}},{"$f":"'(Other Computations)'!AS58","v":{"v":7365655.672970879,"d":"$7,365,656"}},{"$f":"'(Other Computations)'!AT58","v":{"v":7362495.529682792,"d":"$7,362,496"}},{"$f":"'(Other Computations)'!AU58","v":{"v":7359333.187324347,"d":"$7,359,333"}},{"$f":"'(Other Computations)'!AV58","v":{"v":7356653.546661435,"d":"$7,356,654"}},{"$f":"'(Other Computations)'!AW58","v":{"v":7353972.743270622,"d":"$7,353,973"}},{"$f":"'(Other Computations)'!AX58","v":{"v":7350928.857191143,"d":"$7,350,929"}},{"$f":"'(Other Computations)'!AY58","v":{"v":7348078.553596873,"d":"$7,348,079"}},{"$f":"'(Other Computations)'!AZ58","v":{"v":7345070.239479624,"d":"$7,345,070"}},{"$f":"'(Other Computations)'!BB58","v":{"v":7342158.445753691,"d":"$7,342,158"}},{"$f":"'(Other Computations)'!BC58","v":{"v":7339162.942562316,"d":"$7,339,163"}},{"$f":"'(Other Computations)'!BD58","v":{"v":7336419.181482279,"d":"$7,336,419"}},{"$f":"'(Other Computations)'!BE58","v":{"v":7333751.047099491,"d":"$7,333,751"}},{"$f":"'(Other Computations)'!BF58","v":{"v":7330829.165472041,"d":"$7,330,829"}},{"$f":"'(Other Computations)'!BG58","v":{"v":7327757.558078819,"d":"$7,327,758"}},{"$f":"'(Other Computations)'!BH58","v":{"v":7324656.344439629,"d":"$7,324,656"}},{"$f":"'(Other Computations)'!BI58","v":{"v":7321882.163862643,"d":"$7,321,882"}},{"$f":"'(Other Computations)'!BJ58","v":{"v":7318751.022347921,"d":"$7,318,751"}},{"$f":"'(Other Computations)'!BK58","v":{"v":7315719.093624006,"d":"$7,315,719"}},{"$f":"'(Other Computations)'!BL58","v":{"v":7312694.54024745,"d":"$7,312,695"}},{"$f":"'(Other Computations)'!BM58","v":{"v":7309538.4085402675,"d":"$7,309,538"}},{"$f":"'(Other Computations)'!BO58","v":{"v":7306313.424919959,"d":"$7,306,313"}},{"$f":"'(Other Computations)'!BP58","v":{"v":7302904.380343514,"d":"$7,302,904"}},{"$f":"'(Other Computations)'!BQ58","v":{"v":7299990.230061856,"d":"$7,299,990"}},{"$f":"'(Other Computations)'!BR58","v":{"v":7296803.68953633,"d":"$7,296,804"}},{"$f":"'(Other Computations)'!BS58","v":{"v":7294024.548945126,"d":"$7,294,025"}},{"$f":"'(Other Computations)'!BT58","v":{"v":7290879.4259948265,"d":"$7,290,879"}},{"$f":"'(Other Computations)'!BU58","v":{"v":7287884.9334911695,"d":"$7,287,885"}},{"$f":"'(Other Computations)'!BV58","v":{"v":7284604.000706727,"d":"$7,284,604"}},{"$f":"'(Other Computations)'!BW58","v":{"v":7281295.080638772,"d":"$7,281,295"}},{"$f":"'(Other Computations)'!BX58","v":{"v":7278381.993185325,"d":"$7,278,382"}},{"$f":"'(Other Computations)'!BY58","v":{"v":7274946.556339515,"d":"$7,274,947"}},{"$f":"'(Other Computations)'!BZ58","v":{"v":7271855.686344289,"d":"$7,271,856"}},{"$f":"'(Other Computations)'!CB58","v":{"v":7268690.733417018,"d":"$7,268,691"}},{"$f":"'(Other Computations)'!CC58","v":{"v":7265481.675056453,"d":"$7,265,482"}},{"$f":"'(Other Computations)'!CD58","v":{"v":7262279.572524928,"d":"$7,262,280"}},{"$f":"'(Other Computations)'!CE58","v":{"v":7258781.687299455,"d":"$7,258,782"}},{"$f":"'(Other Computations)'!CF58","v":{"v":7255336.160560582,"d":"$7,255,336"}},{"$f":"'(Other Computations)'!CG58","v":{"v":7252016.2173044495,"d":"$7,252,016"}},{"$f":"'(Other Computations)'!CH58","v":{"v":7248767.375437691,"d":"$7,248,767"}},{"$f":"'(Other Computations)'!CI58","v":{"v":7245316.02936669,"d":"$7,245,316"}},{"$f":"'(Other Computations)'!CJ58","v":{"v":7241969.917860956,"d":"$7,241,970"}},{"$f":"'(Other Computations)'!CK58","v":{"v":7238924.742178336,"d":"$7,238,925"}},{"$f":"'(Other Computations)'!CL58","v":{"v":7235645.4461767925,"d":"$7,235,645"}},{"$f":"'(Other Computations)'!CM58","v":{"v":7232230.531912392,"d":"$7,232,231"}},{"$f":"'(Other Computations)'!CO58","v":{"v":7228559.617769072,"d":"$7,228,560"}},{"$f":"'(Other Computations)'!CP58","v":{"v":7225159.507884956,"d":"$7,225,160"}},{"$f":"'(Other Computations)'!CQ58","v":{"v":7221683.516297909,"d":"$7,221,684"}},{"$f":"'(Other Computations)'!CR58","v":{"v":7218377.148049255,"d":"$7,218,377"}},{"$f":"'(Other Computations)'!CS58","v":{"v":7214933.376535316,"d":"$7,214,933"}},{"$f":"'(Other Computations)'!CT58","v":{"v":7211613.081448319,"d":"$7,211,613"}},{"$f":"'(Other Computations)'!CU58","v":{"v":7208161.486725042,"d":"$7,208,161"}},{"$f":"'(Other Computations)'!CV58","v":{"v":7204879.726165701,"d":"$7,204,880"}},{"$f":"'(Other Computations)'!CW58","v":{"v":7201472.203779917,"d":"$7,201,472"}},{"$f":"'(Other Computations)'!CX58","v":{"v":7197854.486917864,"d":"$7,197,854"}},{"$f":"'(Other Computations)'!CY58","v":{"v":7194554.734557179,"d":"$7,194,555"}},{"$f":"'(Other Computations)'!CZ58","v":{"v":7191306.68573373,"d":"$7,191,307"}},{"$f":"'(Other Computations)'!DB58","v":{"v":7188122.319527743,"d":"$7,188,122"}},{"$f":"'(Other Computations)'!DC58","v":{"v":7184595.753006464,"d":"$7,184,596"}},{"$f":"'(Other Computations)'!DD58","v":{"v":7181110.993032239,"d":"$7,181,111"}},{"$f":"'(Other Computations)'!DE58","v":{"v":7177612.030425839,"d":"$7,177,612"}},{"$f":"'(Other Computations)'!DF58","v":{"v":7174306.706521476,"d":"$7,174,307"}},{"$f":"'(Other Computations)'!DG58","v":{"v":7170905.534437927,"d":"$7,170,906"}},{"$f":"'(Other Computations)'!DH58","v":{"v":7167246.536602201,"d":"$7,167,247"}},{"$f":"'(Other Computations)'!DI58","v":{"v":7163884.448612126,"d":"$7,163,884"}},{"$f":"'(Other Computations)'!DJ58","v":{"v":7160410.828710267,"d":"$7,160,411"}},{"$f":"'(Other Computations)'!DK58","v":{"v":7157090.385624281,"d":"$7,157,090"}},{"$f":"'(Other Computations)'!DL58","v":{"v":7153698.277758279,"d":"$7,153,698"}},{"$f":"'(Other Computations)'!DM58","v":{"v":7150037.89098308,"d":"$7,150,038"}},{"$f":"'(Other Computations)'!DO58","v":{"v":7146698.00028131,"d":"$7,146,698"}},{"$f":"'(Other Computations)'!DP58","v":{"v":7143343.736910613,"d":"$7,143,344"}},{"$f":"'(Other Computations)'!DQ58","v":{"v":7139764.377920593,"d":"$7,139,764"}},{"$f":"'(Other Computations)'!DR58","v":{"v":7136339.942127733,"d":"$7,136,340"}},{"$f":"'(Other Computations)'!DS58","v":{"v":7132779.258827244,"d":"$7,132,779"}},{"$f":"'(Other Computations)'!DT58","v":{"v":7129366.075187998,"d":"$7,129,366"}},{"$f":"'(Other Computations)'!DU58","v":{"v":7125746.081739387,"d":"$7,125,746"}},{"$f":"'(Other Computations)'!DV58","v":{"v":7122305.805822674,"d":"$7,122,306"}},{"$f":"'(Other Computations)'!DW58","v":{"v":7118443.301070688,"d":"$7,118,443"}},{"$f":"'(Other Computations)'!DX58","v":{"v":7115072.756613605,"d":"$7,115,073"}},{"$f":"'(Other Computations)'!DY58","v":{"v":7111491.920382918,"d":"$7,111,492"}},{"$f":"'(Other Computations)'!DZ58","v":{"v":7108007.717393212,"d":"$7,108,008"}},{"$f":"'(Other Computations)'!EB58","v":{"v":7104399.44746563,"d":"$7,104,399"}},{"$f":"'(Other Computations)'!EC58","v":{"v":7101005.151282022,"d":"$7,101,005"}},{"$f":"'(Other Computations)'!ED58","v":{"v":7097576.744460944,"d":"$7,097,577"}},{"$f":"'(Other Computations)'!EE58","v":{"v":7093676.143164764,"d":"$7,093,676"}},{"$f":"'(Other Computations)'!EF58","v":{"v":7090143.368161019,"d":"$7,090,143"}},{"$f":"'(Other Computations)'!EG58","v":{"v":7086538.242456424,"d":"$7,086,538"}},{"$f":"'(Other Computations)'!EH58","v":{"v":7082912.557215762,"d":"$7,082,913"}},{"$f":"'(Other Computations)'!EI58","v":{"v":7079374.768843941,"d":"$7,079,375"}},{"$f":"'(Other Computations)'!EJ58","v":{"v":7075794.41537766,"d":"$7,075,794"}},{"$f":"'(Other Computations)'!EK58","v":{"v":7072252.594099244,"d":"$7,072,253"}},{"$f":"'(Other Computations)'!EL58","v":{"v":7068506.106251888,"d":"$7,068,506"}},{"$f":"'(Other Computations)'!EM58","v":{"v":7064911.795837823,"d":"$7,064,912"}}]
[{"$f":"'(Intermediate Computations)'!B35","v":"Jan 2010"},{"$f":"'(Intermediate Computations)'!C35","v":"Feb 2010"},{"$f":"'(Intermediate Computations)'!D35","v":"Mar 2010"},{"$f":"'(Intermediate Computations)'!E35","v":"Apr 2010"},{"$f":"'(Intermediate Computations)'!F35","v":"May 2010"},{"$f":"'(Intermediate Computations)'!G35","v":"Jun 2010"},{"$f":"'(Intermediate Computations)'!H35","v":"Jul 2010"},{"$f":"'(Intermediate Computations)'!I35","v":"Aug 2010"},{"$f":"'(Intermediate Computations)'!J35","v":"Sep 2010"},{"$f":"'(Intermediate Computations)'!K35","v":"Oct 2010"},{"$f":"'(Intermediate Computations)'!L35","v":"Nov 2010"},{"$f":"'(Intermediate Computations)'!M35","v":"Dec 2010"},{"$f":"'(Intermediate Computations)'!O35","v":"Jan 2011"},{"$f":"'(Intermediate Computations)'!P35","v":"Feb 2011"},{"$f":"'(Intermediate Computations)'!Q35","v":"Mar 2011"},{"$f":"'(Intermediate Computations)'!R35","v":"Apr 2011"},{"$f":"'(Intermediate Computations)'!S35","v":"May 2011"},{"$f":"'(Intermediate Computations)'!T35","v":"Jun 2011"},{"$f":"'(Intermediate Computations)'!U35","v":"Jul 2011"},{"$f":"'(Intermediate Computations)'!V35","v":"Aug 2011"},{"$f":"'(Intermediate Computations)'!W35","v":"Sep 2011"},{"$f":"'(Intermediate Computations)'!X35","v":"Oct 2011"},{"$f":"'(Intermediate Computations)'!Y35","v":"Nov 2011"},{"$f":"'(Intermediate Computations)'!Z35","v":"Dec 2011"},{"$f":"'(Intermediate Computations)'!AB35","v":"Jan 2012"},{"$f":"'(Intermediate Computations)'!AC35","v":"Feb 2012"},{"$f":"'(Intermediate Computations)'!AD35","v":"Mar 2012"},{"$f":"'(Intermediate Computations)'!AE35","v":"Apr 2012"},{"$f":"'(Intermediate Computations)'!AF35","v":"May 2012"},{"$f":"'(Intermediate Computations)'!AG35","v":"Jun 2012"},{"$f":"'(Intermediate Computations)'!AH35","v":"Jul 2012"},{"$f":"'(Intermediate Computations)'!AI35","v":"Aug 2012"},{"$f":"'(Intermediate Computations)'!AJ35","v":"Sep 2012"},{"$f":"'(Intermediate Computations)'!AK35","v":"Oct 2012"},{"$f":"'(Intermediate Computations)'!AL35","v":"Nov 2012"},{"$f":"'(Intermediate Computations)'!AM35","v":"Dec 2012"},{"$f":"'(Intermediate Computations)'!AO35","v":"Jan 2013"},{"$f":"'(Intermediate Computations)'!AP35","v":"Feb 2013"},{"$f":"'(Intermediate Computations)'!AQ35","v":"Mar 2013"},{"$f":"'(Intermediate Computations)'!AR35","v":"Apr 2013"},{"$f":"'(Intermediate Computations)'!AS35","v":"May 2013"},{"$f":"'(Intermediate Computations)'!AT35","v":"Jun 2013"},{"$f":"'(Intermediate Computations)'!AU35","v":"Jul 2013"},{"$f":"'(Intermediate Computations)'!AV35","v":"Aug 2013"},{"$f":"'(Intermediate Computations)'!AW35","v":"Sep 2013"},{"$f":"'(Intermediate Computations)'!AX35","v":"Oct 2013"},{"$f":"'(Intermediate Computations)'!AY35","v":"Nov 2013"},{"$f":"'(Intermediate Computations)'!AZ35","v":"Dec 2013"},{"$f":"'(Intermediate Computations)'!BB35","v":"Jan 2014"},{"$f":"'(Intermediate Computations)'!BC35","v":"Feb 2014"},{"$f":"'(Intermediate Computations)'!BD35","v":"Mar 2014"},{"$f":"'(Intermediate Computations)'!BE35","v":"Apr 2014"},{"$f":"'(Intermediate Computations)'!BF35","v":"May 2014"},{"$f":"'(Intermediate Computations)'!BG35","v":"Jun 2014"},{"$f":"'(Intermediate Computations)'!BH35","v":"Jul 2014"},{"$f":"'(Intermediate Computations)'!BI35","v":"Aug 2014"},{"$f":"'(Intermediate Computations)'!BJ35","v":"Sep 2014"},{"$f":"'(Intermediate Computations)'!BK35","v":"Oct 2014"},{"$f":"'(Intermediate Computations)'!BL35","v":"Nov 2014"},{"$f":"'(Intermediate Computations)'!BM35","v":"Dec 2014"},{"$f":"'(Intermediate Computations)'!BO35","v":"Jan 2015"},{"$f":"'(Intermediate Computations)'!BP35","v":"Feb 2015"},{"$f":"'(Intermediate Computations)'!BQ35","v":"Mar 2015"},{"$f":"'(Intermediate Computations)'!BR35","v":"Apr 2015"},{"$f":"'(Intermediate Computations)'!BS35","v":"May 2015"},{"$f":"'(Intermediate Computations)'!BT35","v":"Jun 2015"},{"$f":"'(Intermediate Computations)'!BU35","v":"Jul 2015"},{"$f":"'(Intermediate Computations)'!BV35","v":"Aug 2015"},{"$f":"'(Intermediate Computations)'!BW35","v":"Sep 2015"},{"$f":"'(Intermediate Computations)'!BX35","v":"Oct 2015"},{"$f":"'(Intermediate Computations)'!BY35","v":"Nov 2015"},{"$f":"'(Intermediate Computations)'!BZ35","v":"Dec 2015"},{"$f":"'(Intermediate Computations)'!CB35","v":"Jan 2016"},{"$f":"'(Intermediate Computations)'!CC35","v":"Feb 2016"},{"$f":"'(Intermediate Computations)'!CD35","v":"Mar 2016"},{"$f":"'(Intermediate Computations)'!CE35","v":"Apr 2016"},{"$f":"'(Intermediate Computations)'!CF35","v":"May 2016"},{"$f":"'(Intermediate Computations)'!CG35","v":"Jun 2016"},{"$f":"'(Intermediate Computations)'!CH35","v":"Jul 2016"},{"$f":"'(Intermediate Computations)'!CI35","v":"Aug 2016"},{"$f":"'(Intermediate Computations)'!CJ35","v":"Sep 2016"},{"$f":"'(Intermediate Computations)'!CK35","v":"Oct 2016"},{"$f":"'(Intermediate Computations)'!CL35","v":"Nov 2016"},{"$f":"'(Intermediate Computations)'!CM35","v":"Dec 2016"},{"$f":"'(Intermediate Computations)'!CO35","v":"Jan 2017"},{"$f":"'(Intermediate Computations)'!CP35","v":"Feb 2017"},{"$f":"'(Intermediate Computations)'!CQ35","v":"Mar 2017"},{"$f":"'(Intermediate Computations)'!CR35","v":"Apr 2017"},{"$f":"'(Intermediate Computations)'!CS35","v":"May 2017"},{"$f":"'(Intermediate Computations)'!CT35","v":"Jun 2017"},{"$f":"'(Intermediate Computations)'!CU35","v":"Jul 2017"},{"$f":"'(Intermediate Computations)'!CV35","v":"Aug 2017"},{"$f":"'(Intermediate Computations)'!CW35","v":"Sep 2017"},{"$f":"'(Intermediate Computations)'!CX35","v":"Oct 2017"},{"$f":"'(Intermediate Computations)'!CY35","v":"Nov 2017"},{"$f":"'(Intermediate Computations)'!CZ35","v":"Dec 2017"},{"$f":"'(Intermediate Computations)'!DB35","v":"Jan 2018"},{"$f":"'(Intermediate Computations)'!DC35","v":"Feb 2018"},{"$f":"'(Intermediate Computations)'!DD35","v":"Mar 2018"},{"$f":"'(Intermediate Computations)'!DE35","v":"Apr 2018"},{"$f":"'(Intermediate Computations)'!DF35","v":"May 2018"},{"$f":"'(Intermediate Computations)'!DG35","v":"Jun 2018"},{"$f":"'(Intermediate Computations)'!DH35","v":"Jul 2018"},{"$f":"'(Intermediate Computations)'!DI35","v":"Aug 2018"},{"$f":"'(Intermediate Computations)'!DJ35","v":"Sep 2018"},{"$f":"'(Intermediate Computations)'!DK35","v":"Oct 2018"},{"$f":"'(Intermediate Computations)'!DL35","v":"Nov 2018"},{"$f":"'(Intermediate Computations)'!DM35","v":"Dec 2018"},{"$f":"'(Intermediate Computations)'!DO35","v":"Jan 2019"},{"$f":"'(Intermediate Computations)'!DP35","v":"Feb 2019"},{"$f":"'(Intermediate Computations)'!DQ35","v":"Mar 2019"},{"$f":"'(Intermediate Computations)'!DR35","v":"Apr 2019"},{"$f":"'(Intermediate Computations)'!DS35","v":"May 2019"},{"$f":"'(Intermediate Computations)'!DT35","v":"Jun 2019"},{"$f":"'(Intermediate Computations)'!DU35","v":"Jul 2019"},{"$f":"'(Intermediate Computations)'!DV35","v":"Aug 2019"},{"$f":"'(Intermediate Computations)'!DW35","v":"Sep 2019"},{"$f":"'(Intermediate Computations)'!DX35","v":"Oct 2019"},{"$f":"'(Intermediate Computations)'!DY35","v":"Nov 2019"},{"$f":"'(Intermediate Computations)'!DZ35","v":"Dec 2019"},{"$f":"'(Intermediate Computations)'!EB35","v":"Jan 2020"},{"$f":"'(Intermediate Computations)'!EC35","v":"Feb 2020"},{"$f":"'(Intermediate Computations)'!ED35","v":"Mar 2020"},{"$f":"'(Intermediate Computations)'!EE35","v":"Apr 2020"},{"$f":"'(Intermediate Computations)'!EF35","v":"May 2020"},{"$f":"'(Intermediate Computations)'!EG35","v":"Jun 2020"},{"$f":"'(Intermediate Computations)'!EH35","v":"Jul 2020"},{"$f":"'(Intermediate Computations)'!EI35","v":"Aug 2020"},{"$f":"'(Intermediate Computations)'!EJ35","v":"Sep 2020"},{"$f":"'(Intermediate Computations)'!EK35","v":"Oct 2020"},{"$f":"'(Intermediate Computations)'!EL35","v":"Nov 2020"},{"$f":"'(Intermediate Computations)'!EM35","v":"Dec 2020"}]
[{"$f":"'(Intermediate Computations)'!B32","v":"2010-01-01"},{"$f":"'(Intermediate Computations)'!C32","v":"2010-02-01"},{"$f":"'(Intermediate Computations)'!D32","v":"2010-03-01"},{"$f":"'(Intermediate Computations)'!E32","v":"2010-04-01"},{"$f":"'(Intermediate Computations)'!F32","v":"2010-05-01"},{"$f":"'(Intermediate Computations)'!G32","v":"2010-06-01"},{"$f":"'(Intermediate Computations)'!H32","v":"2010-07-01"},{"$f":"'(Intermediate Computations)'!I32","v":"2010-08-01"},{"$f":"'(Intermediate Computations)'!J32","v":"2010-09-01"},{"$f":"'(Intermediate Computations)'!K32","v":"2010-10-01"},{"$f":"'(Intermediate Computations)'!L32","v":"2010-11-01"},{"$f":"'(Intermediate Computations)'!M32","v":"2010-12-01"},{"$f":"'(Intermediate Computations)'!O32","v":"2011-01-01"},{"$f":"'(Intermediate Computations)'!P32","v":"2011-02-01"},{"$f":"'(Intermediate Computations)'!Q32","v":"2011-03-01"},{"$f":"'(Intermediate Computations)'!R32","v":"2011-04-01"},{"$f":"'(Intermediate Computations)'!S32","v":"2011-05-01"},{"$f":"'(Intermediate Computations)'!T32","v":"2011-06-01"},{"$f":"'(Intermediate Computations)'!U32","v":"2011-07-01"},{"$f":"'(Intermediate Computations)'!V32","v":"2011-08-01"},{"$f":"'(Intermediate Computations)'!W32","v":"2011-09-01"},{"$f":"'(Intermediate Computations)'!X32","v":"2011-10-01"},{"$f":"'(Intermediate Computations)'!Y32","v":"2011-11-01"},{"$f":"'(Intermediate Computations)'!Z32","v":"2011-12-01"},{"$f":"'(Intermediate Computations)'!AB32","v":"2012-01-01"},{"$f":"'(Intermediate Computations)'!AC32","v":"2012-02-01"},{"$f":"'(Intermediate Computations)'!AD32","v":"2012-03-01"},{"$f":"'(Intermediate Computations)'!AE32","v":"2012-04-01"},{"$f":"'(Intermediate Computations)'!AF32","v":"2012-05-01"},{"$f":"'(Intermediate Computations)'!AG32","v":"2012-06-01"},{"$f":"'(Intermediate Computations)'!AH32","v":"2012-07-01"},{"$f":"'(Intermediate Computations)'!AI32","v":"2012-08-01"},{"$f":"'(Intermediate Computations)'!AJ32","v":"2012-09-01"},{"$f":"'(Intermediate Computations)'!AK32","v":"2012-10-01"},{"$f":"'(Intermediate Computations)'!AL32","v":"2012-11-01"},{"$f":"'(Intermediate Computations)'!AM32","v":"2012-12-01"},{"$f":"'(Intermediate Computations)'!AO32","v":"2013-01-01"},{"$f":"'(Intermediate Computations)'!AP32","v":"2013-02-01"},{"$f":"'(Intermediate Computations)'!AQ32","v":"2013-03-01"},{"$f":"'(Intermediate Computations)'!AR32","v":"2013-04-01"},{"$f":"'(Intermediate Computations)'!AS32","v":"2013-05-01"},{"$f":"'(Intermediate Computations)'!AT32","v":"2013-06-01"},{"$f":"'(Intermediate Computations)'!AU32","v":"2013-07-01"},{"$f":"'(Intermediate Computations)'!AV32","v":"2013-08-01"},{"$f":"'(Intermediate Computations)'!AW32","v":"2013-09-01"},{"$f":"'(Intermediate Computations)'!AX32","v":"2013-10-01"},{"$f":"'(Intermediate Computations)'!AY32","v":"2013-11-01"},{"$f":"'(Intermediate Computations)'!AZ32","v":"2013-12-01"},{"$f":"'(Intermediate Computations)'!BB32","v":"2014-01-01"},{"$f":"'(Intermediate Computations)'!BC32","v":"2014-02-01"},{"$f":"'(Intermediate Computations)'!BD32","v":"2014-03-01"},{"$f":"'(Intermediate Computations)'!BE32","v":"2014-04-01"},{"$f":"'(Intermediate Computations)'!BF32","v":"2014-05-01"},{"$f":"'(Intermediate Computations)'!BG32","v":"2014-06-01"},{"$f":"'(Intermediate Computations)'!BH32","v":"2014-07-01"},{"$f":"'(Intermediate Computations)'!BI32","v":"2014-08-01"},{"$f":"'(Intermediate Computations)'!BJ32","v":"2014-09-01"},{"$f":"'(Intermediate Computations)'!BK32","v":"2014-10-01"},{"$f":"'(Intermediate Computations)'!BL32","v":"2014-11-01"},{"$f":"'(Intermediate Computations)'!BM32","v":"2014-12-01"},{"$f":"'(Intermediate Computations)'!BO32","v":"2015-01-01"},{"$f":"'(Intermediate Computations)'!BP32","v":"2015-02-01"},{"$f":"'(Intermediate Computations)'!BQ32","v":"2015-03-01"},{"$f":"'(Intermediate Computations)'!BR32","v":"2015-04-01"},{"$f":"'(Intermediate Computations)'!BS32","v":"2015-05-01"},{"$f":"'(Intermediate Computations)'!BT32","v":"2015-06-01"},{"$f":"'(Intermediate Computations)'!BU32","v":"2015-07-01"},{"$f":"'(Intermediate Computations)'!BV32","v":"2015-08-01"},{"$f":"'(Intermediate Computations)'!BW32","v":"2015-09-01"},{"$f":"'(Intermediate Computations)'!BX32","v":"2015-10-01"},{"$f":"'(Intermediate Computations)'!BY32","v":"2015-11-01"},{"$f":"'(Intermediate Computations)'!BZ32","v":"2015-12-01"},{"$f":"'(Intermediate Computations)'!CB32","v":"2016-01-01"},{"$f":"'(Intermediate Computations)'!CC32","v":"2016-02-01"},{"$f":"'(Intermediate Computations)'!CD32","v":"2016-03-01"},{"$f":"'(Intermediate Computations)'!CE32","v":"2016-04-01"},{"$f":"'(Intermediate Computations)'!CF32","v":"2016-05-01"},{"$f":"'(Intermediate Computations)'!CG32","v":"2016-06-01"},{"$f":"'(Intermediate Computations)'!CH32","v":"2016-07-01"},{"$f":"'(Intermediate Computations)'!CI32","v":"2016-08-01"},{"$f":"'(Intermediate Computations)'!CJ32","v":"2016-09-01"},{"$f":"'(Intermediate Computations)'!CK32","v":"2016-10-01"},{"$f":"'(Intermediate Computations)'!CL32","v":"2016-11-01"},{"$f":"'(Intermediate Computations)'!CM32","v":"2016-12-01"},{"$f":"'(Intermediate Computations)'!CO32","v":"2017-01-01"},{"$f":"'(Intermediate Computations)'!CP32","v":"2017-02-01"},{"$f":"'(Intermediate Computations)'!CQ32","v":"2017-03-01"},{"$f":"'(Intermediate Computations)'!CR32","v":"2017-04-01"},{"$f":"'(Intermediate Computations)'!CS32","v":"2017-05-01"},{"$f":"'(Intermediate Computations)'!CT32","v":"2017-06-01"},{"$f":"'(Intermediate Computations)'!CU32","v":"2017-07-01"},{"$f":"'(Intermediate Computations)'!CV32","v":"2017-08-01"},{"$f":"'(Intermediate Computations)'!CW32","v":"2017-09-01"},{"$f":"'(Intermediate Computations)'!CX32","v":"2017-10-01"},{"$f":"'(Intermediate Computations)'!CY32","v":"2017-11-01"},{"$f":"'(Intermediate Computations)'!CZ32","v":"2017-12-01"},{"$f":"'(Intermediate Computations)'!DB32","v":"2018-01-01"},{"$f":"'(Intermediate Computations)'!DC32","v":"2018-02-01"},{"$f":"'(Intermediate Computations)'!DD32","v":"2018-03-01"},{"$f":"'(Intermediate Computations)'!DE32","v":"2018-04-01"},{"$f":"'(Intermediate Computations)'!DF32","v":"2018-05-01"},{"$f":"'(Intermediate Computations)'!DG32","v":"2018-06-01"},{"$f":"'(Intermediate Computations)'!DH32","v":"2018-07-01"},{"$f":"'(Intermediate Computations)'!DI32","v":"2018-08-01"},{"$f":"'(Intermediate Computations)'!DJ32","v":"2018-09-01"},{"$f":"'(Intermediate Computations)'!DK32","v":"2018-10-01"},{"$f":"'(Intermediate Computations)'!DL32","v":"2018-11-01"},{"$f":"'(Intermediate Computations)'!DM32","v":"2018-12-01"},{"$f":"'(Intermediate Computations)'!DO32","v":"2019-01-01"},{"$f":"'(Intermediate Computations)'!DP32","v":"2019-02-01"},{"$f":"'(Intermediate Computations)'!DQ32","v":"2019-03-01"},{"$f":"'(Intermediate Computations)'!DR32","v":"2019-04-01"},{"$f":"'(Intermediate Computations)'!DS32","v":"2019-05-01"},{"$f":"'(Intermediate Computations)'!DT32","v":"2019-06-01"},{"$f":"'(Intermediate Computations)'!DU32","v":"2019-07-01"},{"$f":"'(Intermediate Computations)'!DV32","v":"2019-08-01"},{"$f":"'(Intermediate Computations)'!DW32","v":"2019-09-01"},{"$f":"'(Intermediate Computations)'!DX32","v":"2019-10-01"},{"$f":"'(Intermediate Computations)'!DY32","v":"2019-11-01"},{"$f":"'(Intermediate Computations)'!DZ32","v":"2019-12-01"},{"$f":"'(Intermediate Computations)'!EB32","v":"2020-01-01"},{"$f":"'(Intermediate Computations)'!EC32","v":"2020-02-01"},{"$f":"'(Intermediate Computations)'!ED32","v":"2020-03-01"},{"$f":"'(Intermediate Computations)'!EE32","v":"2020-04-01"},{"$f":"'(Intermediate Computations)'!EF32","v":"2020-05-01"},{"$f":"'(Intermediate Computations)'!EG32","v":"2020-06-01"},{"$f":"'(Intermediate Computations)'!EH32","v":"2020-07-01"},{"$f":"'(Intermediate Computations)'!EI32","v":"2020-08-01"},{"$f":"'(Intermediate Computations)'!EJ32","v":"2020-09-01"},{"$f":"'(Intermediate Computations)'!EK32","v":"2020-10-01"},{"$f":"'(Intermediate Computations)'!EL32","v":"2020-11-01"},{"$f":"'(Intermediate Computations)'!EM32","v":"2020-12-01"}]
[{"$f":"'Trial 1'!B35","v":{"v":856094.50650769,"d":"$856,095"}},{"$f":"'Trial 1'!C35","v":{"v":798615.5479001122,"d":"$798,616"}},{"$f":"'Trial 1'!D35","v":{"v":838188.9985295675,"d":"$838,189"}},{"$f":"'Trial 1'!E35","v":{"v":820255.6504918513,"d":"$820,256"}},{"$f":"'Trial 1'!F35","v":{"v":825850.5680869435,"d":"$825,851"}},{"$f":"'Trial 1'!G35","v":{"v":831999.7926326884,"d":"$832,000"}},{"$f":"'Trial 1'!H35","v":{"v":849924.4674854004,"d":"$849,924"}},{"$f":"'Trial 1'!I35","v":{"v":825810.7752369939,"d":"$825,811"}},{"$f":"'Trial 1'!J35","v":{"v":833696.5852615488,"d":"$833,697"}},{"$f":"'Trial 1'!K35","v":{"v":833246.4752762147,"d":"$833,246"}},{"$f":"'Trial 1'!L35","v":{"v":825127.6192531639,"d":"$825,128"}},{"$f":"'Trial 1'!M35","v":{"v":848762.7919698409,"d":"$848,763"}},{"$f":"'Trial 1'!O35","v":{"v":806976.5616632713,"d":"$806,977"}},{"$f":"'Trial 1'!P35","v":{"v":840242.5279441848,"d":"$840,243"}},{"$f":"'Trial 1'!Q35","v":{"v":815446.1541481734,"d":"$815,446"}},{"$f":"'Trial 1'!R35","v":{"v":818056.2163824551,"d":"$818,056"}},{"$f":"'Trial 1'!S35","v":{"v":805604.7645951052,"d":"$805,605"}},{"$f":"'Trial 1'!T35","v":{"v":790707.8086140425,"d":"$790,708"}},{"$f":"'Trial 1'!U35","v":{"v":798906.9069108533,"d":"$798,907"}},{"$f":"'Trial 1'!V35","v":{"v":811768.3040505677,"d":"$811,768"}},{"$f":"'Trial 1'!W35","v":{"v":820529.975554833,"d":"$820,530"}},{"$f":"'Trial 1'!X35","v":{"v":812995.0518040854,"d":"$812,995"}},{"$f":"'Trial 1'!Y35","v":{"v":836277.0405276549,"d":"$836,277"}},{"$f":"'Trial 1'!Z35","v":{"v":805139.1360889733,"d":"$805,139"}},{"$f":"'Trial 1'!AB35","v":{"v":802572.8345147391,"d":"$802,573"}},{"$f":"'Trial 1'!AC35","v":{"v":814208.4300458914,"d":"$814,208"}},{"$f":"'Trial 1'!AD35","v":{"v":830267.2132731696,"d":"$830,267"}},{"$f":"'Trial 1'!AE35","v":{"v":785851.0761111706,"d":"$785,851"}},{"$f":"'Trial 1'!AF35","v":{"v":785017.3275885208,"d":"$785,017"}},{"$f":"'Trial 1'!AG35","v":{"v":808253.1006892126,"d":"$808,253"}},{"$f":"'Trial 1'!AH35","v":{"v":804483.1944744554,"d":"$804,483"}},{"$f":"'Trial 1'!AI35","v":{"v":786840.4586100356,"d":"$786,840"}},{"$f":"'Trial 1'!AJ35","v":{"v":778630.5070700848,"d":"$778,631"}},{"$f":"'Trial 1'!AK35","v":{"v":805173.8887383475,"d":"$805,174"}},{"$f":"'Trial 1'!AL35","v":{"v":822555.627764312,"d":"$822,556"}},{"$f":"'Trial 1'!AM35","v":{"v":824605.2001207498,"d":"$824,605"}},{"$f":"'Trial 1'!AO35","v":{"v":755410.7513073303,"d":"$755,411"}},{"$f":"'Trial 1'!AP35","v":{"v":788943.3282719059,"d":"$788,943"}},{"$f":"'Trial 1'!AQ35","v":{"v":820866.7846053763,"d":"$820,867"}},{"$f":"'Trial 1'!AR35","v":{"v":784154.4773404506,"d":"$784,154"}},{"$f":"'Trial 1'!AS35","v":{"v":780521.7314812654,"d":"$780,522"}},{"$f":"'Trial 1'!AT35","v":{"v":777428.6105397206,"d":"$777,429"}},{"$f":"'Trial 1'!AU35","v":{"v":780472.3213385456,"d":"$780,472"}},{"$f":"'Trial 1'!AV35","v":{"v":809057.1016003564,"d":"$809,057"}},{"$f":"'Trial 1'!AW35","v":{"v":780876.9234791884,"d":"$780,877"}},{"$f":"'Trial 1'!AX35","v":{"v":755806.1816671524,"d":"$755,806"}},{"$f":"'Trial 1'!AY35","v":{"v":815920.7366931586,"d":"$815,921"}},{"$f":"'Trial 1'!AZ35","v":{"v":777926.3473975911,"d":"$777,926"}},{"$f":"'Trial 1'!BB35","v":{"v":767957.3568020767,"d":"$767,957"}},{"$f":"'Trial 1'!BC35","v":{"v":790084.5719488935,"d":"$790,085"}},{"$f":"'Trial 1'!BD35","v":{"v":804651.899678487,"d":"$804,652"}},{"$f":"'Trial 1'!BE35","v":{"v":795222.4023425184,"d":"$795,222"}},{"$f":"'Trial 1'!BF35","v":{"v":765547.9704273258,"d":"$765,548"}},{"$f":"'Trial 1'!BG35","v":{"v":796227.1884603015,"d":"$796,227"}},{"$f":"'Trial 1'!BH35","v":{"v":798293.1407226392,"d":"$798,293"}},{"$f":"'Trial 1'!BI35","v":{"v":818109.9964015353,"d":"$818,110"}},{"$f":"'Trial 1'!BJ35","v":{"v":806020.4133876042,"d":"$806,020"}},{"$f":"'Trial 1'!BK35","v":{"v":814442.7905777843,"d":"$814,443"}},{"$f":"'Trial 1'!BL35","v":{"v":791106.7601561841,"d":"$791,107"}},{"$f":"'Trial 1'!BM35","v":{"v":760857.9641973778,"d":"$760,858"}},{"$f":"'Trial 1'!BO35","v":{"v":799154.6863939514,"d":"$799,155"}},{"$f":"'Trial 1'!BP35","v":{"v":805119.7744780538,"d":"$805,120"}},{"$f":"'Trial 1'!BQ35","v":{"v":767034.3811452627,"d":"$767,034"}},{"$f":"'Trial 1'!BR35","v":{"v":769123.2714130876,"d":"$769,123"}},{"$f":"'Trial 1'!BS35","v":{"v":752167.1846983122,"d":"$752,167"}},{"$f":"'Trial 1'!BT35","v":{"v":777568.3468175886,"d":"$777,568"}},{"$f":"'Trial 1'!BU35","v":{"v":777340.4219057552,"d":"$777,340"}},{"$f":"'Trial 1'!BV35","v":{"v":770379.4455950322,"d":"$770,379"}},{"$f":"'Trial 1'!BW35","v":{"v":791349.0879789296,"d":"$791,349"}},{"$f":"'Trial 1'!BX35","v":{"v":754686.1182964564,"d":"$754,686"}},{"$f":"'Trial 1'!BY35","v":{"v":774201.669469554,"d":"$774,202"}},{"$f":"'Trial 1'!BZ35","v":{"v":771185.4189561275,"d":"$771,185"}},{"$f":"'Trial 1'!CB35","v":{"v":767915.2060766115,"d":"$767,915"}},{"$f":"'Trial 1'!CC35","v":{"v":749748.8895898659,"d":"$749,749"}},{"$f":"'Trial 1'!CD35","v":{"v":733863.2215626935,"d":"$733,863"}},{"$f":"'Trial 1'!CE35","v":{"v":774404.2571079824,"d":"$774,404"}},{"$f":"'Trial 1'!CF35","v":{"v":777012.1664078786,"d":"$777,012"}},{"$f":"'Trial 1'!CG35","v":{"v":747656.639252626,"d":"$747,657"}},{"$f":"'Trial 1'!CH35","v":{"v":775179.7595414269,"d":"$775,180"}},{"$f":"'Trial 1'!CI35","v":{"v":729901.1352268738,"d":"$729,901"}},{"$f":"'Trial 1'!CJ35","v":{"v":752443.0539671454,"d":"$752,443"}},{"$f":"'Trial 1'!CK35","v":{"v":774019.3104066491,"d":"$774,019"}},{"$f":"'Trial 1'!CL35","v":{"v":768230.8143259437,"d":"$768,231"}},{"$f":"'Trial 1'!CM35","v":{"v":733347.5555044216,"d":"$733,348"}},{"$f":"'Trial 1'!CO35","v":{"v":721391.0154759273,"d":"$721,391"}},{"$f":"'Trial 1'!CP35","v":{"v":760323.1916453559,"d":"$760,323"}},{"$f":"'Trial 1'!CQ35","v":{"v":772200.2929529148,"d":"$772,200"}},{"$f":"'Trial 1'!CR35","v":{"v":754217.1301084646,"d":"$754,217"}},{"$f":"'Trial 1'!CS35","v":{"v":733545.6379500173,"d":"$733,546"}},{"$f":"'Trial 1'!CT35","v":{"v":733121.7463563565,"d":"$733,122"}},{"$f":"'Trial 1'!CU35","v":{"v":728447.3245228449,"d":"$728,447"}},{"$f":"'Trial 1'!CV35","v":{"v":742620.226364463,"d":"$742,620"}},{"$f":"'Trial 1'!CW35","v":{"v":724848.9031649654,"d":"$724,849"}},{"$f":"'Trial 1'!CX35","v":{"v":717642.4117953753,"d":"$717,642"}},{"$f":"'Trial 1'!CY35","v":{"v":763216.4627852361,"d":"$763,216"}},{"$f":"'Trial 1'!CZ35","v":{"v":761033.277243991,"d":"$761,033"}},{"$f":"'Trial 1'!DB35","v":{"v":716657.9103718017,"d":"$716,658"}},{"$f":"'Trial 1'!DC35","v":{"v":744551.8117898089,"d":"$744,552"}},{"$f":"'Trial 1'!DD35","v":{"v":749325.6941461476,"d":"$749,326"}},{"$f":"'Trial 1'!DE35","v":{"v":768143.4253959119,"d":"$768,143"}},{"$f":"'Trial 1'!DF35","v":{"v":715390.9497851316,"d":"$715,391"}},{"$f":"'Trial 1'!DG35","v":{"v":729830.656857804,"d":"$729,831"}},{"$f":"'Trial 1'!DH35","v":{"v":762112.6830066661,"d":"$762,113"}},{"$f":"'Trial 1'!DI35","v":{"v":743710.5351912844,"d":"$743,711"}},{"$f":"'Trial 1'!DJ35","v":{"v":777699.4854056528,"d":"$777,699"}},{"$f":"'Trial 1'!DK35","v":{"v":739778.2372932648,"d":"$739,778"}},{"$f":"'Trial 1'!DL35","v":{"v":744243.0852496052,"d":"$744,243"}},{"$f":"'Trial 1'!DM35","v":{"v":766453.1435327294,"d":"$766,453"}},{"$f":"'Trial 1'!DO35","v":{"v":715669.1430492428,"d":"$715,669"}},{"$f":"'Trial 1'!DP35","v":{"v":715271.1202482855,"d":"$715,271"}},{"$f":"'Trial 1'!DQ35","v":{"v":737755.092796245,"d":"$737,755"}},{"$f":"'Trial 1'!DR35","v":{"v":735362.2031739502,"d":"$735,362"}},{"$f":"'Trial 1'!DS35","v":{"v":724034.576516102,"d":"$724,035"}},{"$f":"'Trial 1'!DT35","v":{"v":727875.2190192796,"d":"$727,875"}},{"$f":"'Trial 1'!DU35","v":{"v":767222.7426194357,"d":"$767,223"}},{"$f":"'Trial 1'!DV35","v":{"v":750601.4000879778,"d":"$750,601"}},{"$f":"'Trial 1'!DW35","v":{"v":712601.9929401038,"d":"$712,602"}},{"$f":"'Trial 1'!DX35","v":{"v":715557.9774586959,"d":"$715,558"}},{"$f":"'Trial 1'!DY35","v":{"v":729086.5607997376,"d":"$729,087"}},{"$f":"'Trial 1'!DZ35","v":{"v":734159.280536499,"d":"$734,159"}},{"$f":"'Trial 1'!EB35","v":{"v":735672.4433134863,"d":"$735,672"}},{"$f":"'Trial 1'!EC35","v":{"v":708356.3058653934,"d":"$708,356"}},{"$f":"'Trial 1'!ED35","v":{"v":698446.0512219226,"d":"$698,446"}},{"$f":"'Trial 1'!EE35","v":{"v":754668.478555538,"d":"$754,668"}},{"$f":"'Trial 1'!EF35","v":{"v":711331.4219964243,"d":"$711,331"}},{"$f":"'Trial 1'!EG35","v":{"v":722135.1437127416,"d":"$722,135"}},{"$f":"'Trial 1'!EH35","v":{"v":746758.3113970025,"d":"$746,758"}},{"$f":"'Trial 1'!EI35","v":{"v":705580.4396461834,"d":"$705,580"}},{"$f":"'Trial 1'!EJ35","v":{"v":711893.5919935121,"d":"$711,894"}},{"$f":"'Trial 1'!EK35","v":{"v":703816.236830819,"d":"$703,816"}},{"$f":"'Trial 1'!EL35","v":{"v":722691.0761371701,"d":"$722,691"}},{"$f":"'Trial 1'!EM35","v":{"v":710436.5638030702,"d":"$710,437"}}]
[{"$f":"'Trial 2'!B35","v":{"v":837541.7818359938,"d":"$837,542"}},{"$f":"'Trial 2'!C35","v":{"v":866132.7422743094,"d":"$866,133"}},{"$f":"'Trial 2'!D35","v":{"v":840750.1619595153,"d":"$840,750"}},{"$f":"'Trial 2'!E35","v":{"v":834748.2166139763,"d":"$834,748"}},{"$f":"'Trial 2'!F35","v":{"v":847323.4777216415,"d":"$847,323"}},{"$f":"'Trial 2'!G35","v":{"v":845634.3883824378,"d":"$845,634"}},{"$f":"'Trial 2'!H35","v":{"v":836484.6497081503,"d":"$836,485"}},{"$f":"'Trial 2'!I35","v":{"v":804250.4142093275,"d":"$804,250"}},{"$f":"'Trial 2'!J35","v":{"v":866890.2254343512,"d":"$866,890"}},{"$f":"'Trial 2'!K35","v":{"v":808998.0204678949,"d":"$808,998"}},{"$f":"'Trial 2'!L35","v":{"v":830825.7249411613,"d":"$830,826"}},{"$f":"'Trial 2'!M35","v":{"v":854531.9020232487,"d":"$854,532"}},{"$f":"'Trial 2'!O35","v":{"v":806345.3343562657,"d":"$806,345"}},{"$f":"'Trial 2'!P35","v":{"v":791501.7805054787,"d":"$791,502"}},{"$f":"'Trial 2'!Q35","v":{"v":856362.6701514078,"d":"$856,363"}},{"$f":"'Trial 2'!R35","v":{"v":814915.8177455746,"d":"$814,916"}},{"$f":"'Trial 2'!S35","v":{"v":834093.4661250027,"d":"$834,093"}},{"$f":"'Trial 2'!T35","v":{"v":770749.6149023651,"d":"$770,750"}},{"$f":"'Trial 2'!U35","v":{"v":788544.8646773306,"d":"$788,545"}},{"$f":"'Trial 2'!V35","v":{"v":804392.2851946201,"d":"$804,392"}},{"$f":"'Trial 2'!W35","v":{"v":846352.8968065843,"d":"$846,353"}},{"$f":"'Trial 2'!X35","v":{"v":822377.3595252653,"d":"$822,377"}},{"$f":"'Trial 2'!Y35","v":{"v":831407.7775213706,"d":"$831,408"}},{"$f":"'Trial 2'!Z35","v":{"v":801967.1516932172,"d":"$801,967"}},{"$f":"'Trial 2'!AB35","v":{"v":795791.3806157062,"d":"$795,791"}},{"$f":"'Trial 2'!AC35","v":{"v":773848.838188647,"d":"$773,849"}},{"$f":"'Trial 2'!AD35","v":{"v":817305.7276672268,"d":"$817,306"}},{"$f":"'Trial 2'!AE35","v":{"v":797346.8135031129,"d":"$797,347"}},{"$f":"'Trial 2'!AF35","v":{"v":804227.0120142332,"d":"$804,227"}},{"$f":"'Trial 2'!AG35","v":{"v":794959.463871385,"d":"$794,959"}},{"$f":"'Trial 2'!AH35","v":{"v":802462.2424121805,"d":"$802,462"}},{"$f":"'Trial 2'!AI35","v":{"v":789941.4169823412,"d":"$789,941"}},{"$f":"'Trial 2'!AJ35","v":{"v":804385.7349189002,"d":"$804,386"}},{"$f":"'Trial 2'!AK35","v":{"v":821165.8209580858,"d":"$821,166"}},{"$f":"'Trial 2'!AL35","v":{"v":792161.6567376583,"d":"$792,162"}},{"$f":"'Trial 2'!AM35","v":{"v":769444.7048432404,"d":"$769,445"}},{"$f":"'Trial 2'!AO35","v":{"v":773335.1099502636,"d":"$773,335"}},{"$f":"'Trial 2'!AP35","v":{"v":772599.654479968,"d":"$772,600"}},{"$f":"'Trial 2'!AQ35","v":{"v":804536.7186912745,"d":"$804,537"}},{"$f":"'Trial 2'!AR35","v":{"v":778640.3223546689,"d":"$778,640"}},{"$f":"'Trial 2'!AS35","v":{"v":764148.0433543519,"d":"$764,148"}},{"$f":"'Trial 2'!AT35","v":{"v":784394.5692076046,"d":"$784,395"}},{"$f":"'Trial 2'!AU35","v":{"v":811772.3423551222,"d":"$811,772"}},{"$f":"'Trial 2'!AV35","v":{"v":796974.9664287361,"d":"$796,975"}},{"$f":"'Trial 2'!AW35","v":{"v":814459.1414546276,"d":"$814,459"}},{"$f":"'Trial 2'!AX35","v":{"v":796100.5882099293,"d":"$796,101"}},{"$f":"'Trial 2'!AY35","v":{"v":745641.8042281381,"d":"$745,642"}},{"$f":"'Trial 2'!AZ35","v":{"v":770732.7891277708,"d":"$770,733"}},{"$f":"'Trial 2'!BB35","v":{"v":783449.4477920394,"d":"$783,449"}},{"$f":"'Trial 2'!BC35","v":{"v":795611.4105750924,"d":"$795,611"}},{"$f":"'Trial 2'!BD35","v":{"v":765703.6395781651,"d":"$765,704"}},{"$f":"'Trial 2'!BE35","v":{"v":768271.5349242506,"d":"$768,272"}},{"$f":"'Trial 2'!BF35","v":{"v":804275.9263142162,"d":"$804,276"}},{"$f":"'Trial 2'!BG35","v":{"v":773944.1708236599,"d":"$773,944"}},{"$f":"'Trial 2'!BH35","v":{"v":758793.6958970878,"d":"$758,794"}},{"$f":"'Trial 2'!BI35","v":{"v":785196.6433844756,"d":"$785,197"}},{"$f":"'Trial 2'!BJ35","v":{"v":767421.4888300322,"d":"$767,421"}},{"$f":"'Trial 2'!BK35","v":{"v":739634.3639202345,"d":"$739,634"}},{"$f":"'Trial 2'!BL35","v":{"v":738324.8073560859,"d":"$738,325"}},{"$f":"'Trial 2'!BM35","v":{"v":804732.1826463887,"d":"$804,732"}},{"$f":"'Trial 2'!BO35","v":{"v":751798.0921944735,"d":"$751,798"}},{"$f":"'Trial 2'!BP35","v":{"v":770688.9406589464,"d":"$770,689"}},{"$f":"'Trial 2'!BQ35","v":{"v":778080.3986964443,"d":"$778,080"}},{"$f":"'Trial 2'!BR35","v":{"v":774229.0122423454,"d":"$774,229"}},{"$f":"'Trial 2'!BS35","v":{"v":765751.274970582,"d":"$765,751"}},{"$f":"'Trial 2'!BT35","v":{"v":730854.8905761401,"d":"$730,855"}},{"$f":"'Trial 2'!BU35","v":{"v":750246.9693473912,"d":"$750,247"}},{"$f":"'Trial 2'!BV35","v":{"v":789639.15049963,"d":"$789,639"}},{"$f":"'Trial 2'!BW35","v":{"v":766763.9294767571,"d":"$766,764"}},{"$f":"'Trial 2'!BX35","v":{"v":751448.0495599065,"d":"$751,448"}},{"$f":"'Trial 2'!BY35","v":{"v":780999.7558711746,"d":"$781,000"}},{"$f":"'Trial 2'!BZ35","v":{"v":769811.7795114642,"d":"$769,812"}},{"$f":"'Trial 2'!CB35","v":{"v":794727.7164284055,"d":"$794,728"}},{"$f":"'Trial 2'!CC35","v":{"v":785130.6348381435,"d":"$785,131"}},{"$f":"'Trial 2'!CD35","v":{"v":759825.8709862859,"d":"$759,826"}},{"$f":"'Trial 2'!CE35","v":{"v":760570.3555480203,"d":"$760,570"}},{"$f":"'Trial 2'!CF35","v":{"v":773322.0582853368,"d":"$773,322"}},{"$f":"'Trial 2'!CG35","v":{"v":743522.5363458494,"d":"$743,523"}},{"$f":"'Trial 2'!CH35","v":{"v":771830.3655375323,"d":"$771,830"}},{"$f":"'Trial 2'!CI35","v":{"v":772426.276542477,"d":"$772,426"}},{"$f":"'Trial 2'!CJ35","v":{"v":791599.7363578812,"d":"$791,600"}},{"$f":"'Trial 2'!CK35","v":{"v":725726.5134277599,"d":"$725,727"}},{"$f":"'Trial 2'!CL35","v":{"v":756065.4235537119,"d":"$756,065"}},{"$f":"'Trial 2'!CM35","v":{"v":783917.0071523364,"d":"$783,917"}},{"$f":"'Trial 2'!CO35","v":{"v":739355.5392104149,"d":"$739,356"}},{"$f":"'Trial 2'!CP35","v":{"v":747910.4036289055,"d":"$747,910"}},{"$f":"'Trial 2'!CQ35","v":{"v":758528.6777204479,"d":"$758,529"}},{"$f":"'Trial 2'!CR35","v":{"v":736842.5494209251,"d":"$736,843"}},{"$f":"'Trial 2'!CS35","v":{"v":757616.1924533189,"d":"$757,616"}},{"$f":"'Trial 2'!CT35","v":{"v":719320.5233552688,"d":"$719,321"}},{"$f":"'Trial 2'!CU35","v":{"v":779633.1362306915,"d":"$779,633"}},{"$f":"'Trial 2'!CV35","v":{"v":708331.5478580032,"d":"$708,332"}},{"$f":"'Trial 2'!CW35","v":{"v":759139.2126596003,"d":"$759,139"}},{"$f":"'Trial 2'!CX35","v":{"v":787556.7884647007,"d":"$787,557"}},{"$f":"'Trial 2'!CY35","v":{"v":721454.9610767431,"d":"$721,455"}},{"$f":"'Trial 2'!CZ35","v":{"v":744664.1513877743,"d":"$744,664"}},{"$f":"'Trial 2'!DB35","v":{"v":745186.4932007666,"d":"$745,186"}},{"$f":"'Trial 2'!DC35","v":{"v":736989.4254634619,"d":"$736,989"}},{"$f":"'Trial 2'!DD35","v":{"v":750161.9651136122,"d":"$750,162"}},{"$f":"'Trial 2'!DE35","v":{"v":742290.9459159496,"d":"$742,291"}},{"$f":"'Trial 2'!DF35","v":{"v":762510.4991111901,"d":"$762,510"}},{"$f":"'Trial 2'!DG35","v":{"v":726452.5917228163,"d":"$726,453"}},{"$f":"'Trial 2'!DH35","v":{"v":730284.7129124765,"d":"$730,285"}},{"$f":"'Trial 2'!DI35","v":{"v":731975.5853372321,"d":"$731,976"}},{"$f":"'Trial 2'!DJ35","v":{"v":741641.7705006074,"d":"$741,642"}},{"$f":"'Trial 2'!DK35","v":{"v":759306.8194069884,"d":"$759,307"}},{"$f":"'Trial 2'!DL35","v":{"v":772239.5866993688,"d":"$772,240"}},{"$f":"'Trial 2'!DM35","v":{"v":704404.7399702795,"d":"$704,405"}},{"$f":"'Trial 2'!DO35","v":{"v":720047.9559115373,"d":"$720,048"}},{"$f":"'Trial 2'!DP35","v":{"v":701520.808010407,"d":"$701,521"}},{"$f":"'Trial 2'!DQ35","v":{"v":722485.0639466447,"d":"$722,485"}},{"$f":"'Trial 2'!DR35","v":{"v":735351.6436719903,"d":"$735,352"}},{"$f":"'Trial 2'!DS35","v":{"v":720070.9815958586,"d":"$720,071"}},{"$f":"'Trial 2'!DT35","v":{"v":727398.2489034402,"d":"$727,398"}},{"$f":"'Trial 2'!DU35","v":{"v":723930.4634047447,"d":"$723,930"}},{"$f":"'Trial 2'!DV35","v":{"v":693806.2672077125,"d":"$693,806"}},{"$f":"'Trial 2'!DW35","v":{"v":731284.5208426751,"d":"$731,285"}},{"$f":"'Trial 2'!DX35","v":{"v":727505.9035663636,"d":"$727,506"}},{"$f":"'Trial 2'!DY35","v":{"v":723094.8545185286,"d":"$723,095"}},{"$f":"'Trial 2'!DZ35","v":{"v":731165.6024255276,"d":"$731,166"}},{"$f":"'Trial 2'!EB35","v":{"v":730064.3091074231,"d":"$730,064"}},{"$f":"'Trial 2'!EC35","v":{"v":711206.9107116932,"d":"$711,207"}},{"$f":"'Trial 2'!ED35","v":{"v":683182.8565284148,"d":"$683,183"}},{"$f":"'Trial 2'!EE35","v":{"v":764021.5035764417,"d":"$764,022"}},{"$f":"'Trial 2'!EF35","v":{"v":736065.6704158704,"d":"$736,066"}},{"$f":"'Trial 2'!EG35","v":{"v":722322.1060426042,"d":"$722,322"}},{"$f":"'Trial 2'!EH35","v":{"v":745347.5313306005,"d":"$745,348"}},{"$f":"'Trial 2'!EI35","v":{"v":729124.4377420519,"d":"$729,124"}},{"$f":"'Trial 2'!EJ35","v":{"v":718738.2175461742,"d":"$718,738"}},{"$f":"'Trial 2'!EK35","v":{"v":709594.1286578588,"d":"$709,594"}},{"$f":"'Trial 2'!EL35","v":{"v":735432.2382439983,"d":"$735,432"}},{"$f":"'Trial 2'!EM35","v":{"v":717224.2748422635,"d":"$717,224"}}]
[{"$f":"'Trial 3'!B35","v":{"v":819823.0727026226,"d":"$819,823"}},{"$f":"'Trial 3'!C35","v":{"v":853493.8755850921,"d":"$853,494"}},{"$f":"'Trial 3'!D35","v":{"v":815955.1359985956,"d":"$815,955"}},{"$f":"'Trial 3'!E35","v":{"v":808470.3712733049,"d":"$808,470"}},{"$f":"'Trial 3'!F35","v":{"v":841850.8018481486,"d":"$841,851"}},{"$f":"'Trial 3'!G35","v":{"v":822737.9215963477,"d":"$822,738"}},{"$f":"'Trial 3'!H35","v":{"v":830169.8527234172,"d":"$830,170"}},{"$f":"'Trial 3'!I35","v":{"v":829366.245581959,"d":"$829,366"}},{"$f":"'Trial 3'!J35","v":{"v":849567.9799914908,"d":"$849,568"}},{"$f":"'Trial 3'!K35","v":{"v":801520.4807548019,"d":"$801,520"}},{"$f":"'Trial 3'!L35","v":{"v":809870.2986106689,"d":"$809,870"}},{"$f":"'Trial 3'!M35","v":{"v":824381.7435983516,"d":"$824,382"}},{"$f":"'Trial 3'!O35","v":{"v":811788.6108104863,"d":"$811,789"}},{"$f":"'Trial 3'!P35","v":{"v":832002.2643947542,"d":"$832,002"}},{"$f":"'Trial 3'!Q35","v":{"v":800644.5191399471,"d":"$800,645"}},{"$f":"'Trial 3'!R35","v":{"v":840206.7217531876,"d":"$840,207"}},{"$f":"'Trial 3'!S35","v":{"v":856876.5354658185,"d":"$856,877"}},{"$f":"'Trial 3'!T35","v":{"v":799673.512315563,"d":"$799,674"}},{"$f":"'Trial 3'!U35","v":{"v":838126.8742221253,"d":"$838,127"}},{"$f":"'Trial 3'!V35","v":{"v":841759.0634206486,"d":"$841,759"}},{"$f":"'Trial 3'!W35","v":{"v":801900.6339921689,"d":"$801,901"}},{"$f":"'Trial 3'!X35","v":{"v":821821.2059720887,"d":"$821,821"}},{"$f":"'Trial 3'!Y35","v":{"v":774314.4868914107,"d":"$774,314"}},{"$f":"'Trial 3'!Z35","v":{"v":812293.9365895346,"d":"$812,294"}},{"$f":"'Trial 3'!AB35","v":{"v":814522.309066637,"d":"$814,522"}},{"$f":"'Trial 3'!AC35","v":{"v":831459.0321482896,"d":"$831,459"}},{"$f":"'Trial 3'!AD35","v":{"v":799097.3499590891,"d":"$799,097"}},{"$f":"'Trial 3'!AE35","v":{"v":812668.8839813186,"d":"$812,669"}},{"$f":"'Trial 3'!AF35","v":{"v":809088.6201184609,"d":"$809,089"}},{"$f":"'Trial 3'!AG35","v":{"v":796868.7914490536,"d":"$796,869"}},{"$f":"'Trial 3'!AH35","v":{"v":773847.5843674482,"d":"$773,848"}},{"$f":"'Trial 3'!AI35","v":{"v":812266.8114469805,"d":"$812,267"}},{"$f":"'Trial 3'!AJ35","v":{"v":811125.6641734694,"d":"$811,126"}},{"$f":"'Trial 3'!AK35","v":{"v":803919.1976749051,"d":"$803,919"}},{"$f":"'Trial 3'!AL35","v":{"v":778512.1034644445,"d":"$778,512"}},{"$f":"'Trial 3'!AM35","v":{"v":834680.6928823858,"d":"$834,681"}},{"$f":"'Trial 3'!AO35","v":{"v":775518.0722934256,"d":"$775,518"}},{"$f":"'Trial 3'!AP35","v":{"v":801646.2237176817,"d":"$801,646"}},{"$f":"'Trial 3'!AQ35","v":{"v":831066.3014524417,"d":"$831,066"}},{"$f":"'Trial 3'!AR35","v":{"v":815131.2807394406,"d":"$815,131"}},{"$f":"'Trial 3'!AS35","v":{"v":786812.5419237129,"d":"$786,813"}},{"$f":"'Trial 3'!AT35","v":{"v":799375.7148845305,"d":"$799,376"}},{"$f":"'Trial 3'!AU35","v":{"v":820163.4394740894,"d":"$820,163"}},{"$f":"'Trial 3'!AV35","v":{"v":812271.6637343437,"d":"$812,272"}},{"$f":"'Trial 3'!AW35","v":{"v":750283.5405912186,"d":"$750,284"}},{"$f":"'Trial 3'!AX35","v":{"v":817022.7588706863,"d":"$817,023"}},{"$f":"'Trial 3'!AY35","v":{"v":778096.2361210566,"d":"$778,096"}},{"$f":"'Trial 3'!AZ35","v":{"v":785686.1743945506,"d":"$785,686"}},{"$f":"'Trial 3'!BB35","v":{"v":810121.3234875288,"d":"$810,121"}},{"$f":"'Trial 3'!BC35","v":{"v":819689.0503149455,"d":"$819,689"}},{"$f":"'Trial 3'!BD35","v":{"v":780351.5248302673,"d":"$780,352"}},{"$f":"'Trial 3'!BE35","v":{"v":800382.0465341631,"d":"$800,382"}},{"$f":"'Trial 3'!BF35","v":{"v":783368.6882630631,"d":"$783,369"}},{"$f":"'Trial 3'!BG35","v":{"v":784798.5596735942,"d":"$784,799"}},{"$f":"'Trial 3'!BH35","v":{"v":813652.2491681575,"d":"$813,652"}},{"$f":"'Trial 3'!BI35","v":{"v":776929.0854940788,"d":"$776,929"}},{"$f":"'Trial 3'!BJ35","v":{"v":745015.6460295975,"d":"$745,016"}},{"$f":"'Trial 3'!BK35","v":{"v":747218.3977143372,"d":"$747,218"}},{"$f":"'Trial 3'!BL35","v":{"v":780214.946934187,"d":"$780,215"}},{"$f":"'Trial 3'!BM35","v":{"v":738358.1828496837,"d":"$738,358"}},{"$f":"'Trial 3'!BO35","v":{"v":768355.0974031135,"d":"$768,355"}},{"$f":"'Trial 3'!BP35","v":{"v":760049.1770910075,"d":"$760,049"}},{"$f":"'Trial 3'!BQ35","v":{"v":767086.176764229,"d":"$767,086"}},{"$f":"'Trial 3'!BR35","v":{"v":799205.6930547464,"d":"$799,206"}},{"$f":"'Trial 3'!BS35","v":{"v":771476.9495922778,"d":"$771,477"}},{"$f":"'Trial 3'!BT35","v":{"v":780556.6282191823,"d":"$780,557"}},{"$f":"'Trial 3'!BU35","v":{"v":739066.2269421889,"d":"$739,066"}},{"$f":"'Trial 3'!BV35","v":{"v":769779.3875362576,"d":"$769,779"}},{"$f":"'Trial 3'!BW35","v":{"v":782542.1162556045,"d":"$782,542"}},{"$f":"'Trial 3'!BX35","v":{"v":755421.0188046617,"d":"$755,421"}},{"$f":"'Trial 3'!BY35","v":{"v":746411.0313238942,"d":"$746,411"}},{"$f":"'Trial 3'!BZ35","v":{"v":734215.3800312739,"d":"$734,215"}},{"$f":"'Trial 3'!CB35","v":{"v":765142.072893971,"d":"$765,142"}},{"$f":"'Trial 3'!CC35","v":{"v":775309.6083633021,"d":"$775,310"}},{"$f":"'Trial 3'!CD35","v":{"v":728735.9739124099,"d":"$728,736"}},{"$f":"'Trial 3'!CE35","v":{"v":729116.5434602193,"d":"$729,117"}},{"$f":"'Trial 3'!CF35","v":{"v":767292.9953251693,"d":"$767,293"}},{"$f":"'Trial 3'!CG35","v":{"v":746951.1408737208,"d":"$746,951"}},{"$f":"'Trial 3'!CH35","v":{"v":729739.0269545387,"d":"$729,739"}},{"$f":"'Trial 3'!CI35","v":{"v":779970.2238768098,"d":"$779,970"}},{"$f":"'Trial 3'!CJ35","v":{"v":759972.3167579066,"d":"$759,972"}},{"$f":"'Trial 3'!CK35","v":{"v":759769.2084151811,"d":"$759,769"}},{"$f":"'Trial 3'!CL35","v":{"v":731034.937600645,"d":"$731,035"}},{"$f":"'Trial 3'!CM35","v":{"v":734232.7907307593,"d":"$734,233"}},{"$f":"'Trial 3'!CO35","v":{"v":761855.591902928,"d":"$761,856"}},{"$f":"'Trial 3'!CP35","v":{"v":752892.4269114727,"d":"$752,892"}},{"$f":"'Trial 3'!CQ35","v":{"v":753723.9637462053,"d":"$753,724"}},{"$f":"'Trial 3'!CR35","v":{"v":723933.4480440092,"d":"$723,933"}},{"$f":"'Trial 3'!CS35","v":{"v":753013.1877231097,"d":"$753,013"}},{"$f":"'Trial 3'!CT35","v":{"v":787768.0817142379,"d":"$787,768"}},{"$f":"'Trial 3'!CU35","v":{"v":737127.9462445354,"d":"$737,128"}},{"$f":"'Trial 3'!CV35","v":{"v":750665.6593096802,"d":"$750,666"}},{"$f":"'Trial 3'!CW35","v":{"v":723085.0356170252,"d":"$723,085"}},{"$f":"'Trial 3'!CX35","v":{"v":757657.9547515797,"d":"$757,658"}},{"$f":"'Trial 3'!CY35","v":{"v":772289.497916887,"d":"$772,289"}},{"$f":"'Trial 3'!CZ35","v":{"v":773018.6129940484,"d":"$773,019"}},{"$f":"'Trial 3'!DB35","v":{"v":743236.723091541,"d":"$743,237"}},{"$f":"'Trial 3'!DC35","v":{"v":706358.8273468919,"d":"$706,359"}},{"$f":"'Trial 3'!DD35","v":{"v":736413.1243352155,"d":"$736,413"}},{"$f":"'Trial 3'!DE35","v":{"v":733585.6967387357,"d":"$733,586"}},{"$f":"'Trial 3'!DF35","v":{"v":731846.1153059681,"d":"$731,846"}},{"$f":"'Trial 3'!DG35","v":{"v":730154.7552259191,"d":"$730,155"}},{"$f":"'Trial 3'!DH35","v":{"v":762808.4572110042,"d":"$762,808"}},{"$f":"'Trial 3'!DI35","v":{"v":759999.329433093,"d":"$759,999"}},{"$f":"'Trial 3'!DJ35","v":{"v":765333.5660739893,"d":"$765,334"}},{"$f":"'Trial 3'!DK35","v":{"v":736797.8499434235,"d":"$736,798"}},{"$f":"'Trial 3'!DL35","v":{"v":710651.1016854121,"d":"$710,651"}},{"$f":"'Trial 3'!DM35","v":{"v":739161.6050574247,"d":"$739,162"}},{"$f":"'Trial 3'!DO35","v":{"v":766863.1305960506,"d":"$766,863"}},{"$f":"'Trial 3'!DP35","v":{"v":766498.0778827459,"d":"$766,498"}},{"$f":"'Trial 3'!DQ35","v":{"v":743002.6932308535,"d":"$743,003"}},{"$f":"'Trial 3'!DR35","v":{"v":771241.9912607113,"d":"$771,242"}},{"$f":"'Trial 3'!DS35","v":{"v":743158.8971045151,"d":"$743,159"}},{"$f":"'Trial 3'!DT35","v":{"v":733104.9323185413,"d":"$733,105"}},{"$f":"'Trial 3'!DU35","v":{"v":745030.5865016818,"d":"$745,031"}},{"$f":"'Trial 3'!DV35","v":{"v":690743.4691244344,"d":"$690,743"}},{"$f":"'Trial 3'!DW35","v":{"v":759461.4161444738,"d":"$759,461"}},{"$f":"'Trial 3'!DX35","v":{"v":734694.5926480443,"d":"$734,695"}},{"$f":"'Trial 3'!DY35","v":{"v":765045.4780502814,"d":"$765,045"}},{"$f":"'Trial 3'!DZ35","v":{"v":720584.6119503587,"d":"$720,585"}},{"$f":"'Trial 3'!EB35","v":{"v":747561.8588954961,"d":"$747,562"}},{"$f":"'Trial 3'!EC35","v":{"v":755554.7405399512,"d":"$755,555"}},{"$f":"'Trial 3'!ED35","v":{"v":701129.7247178246,"d":"$701,130"}},{"$f":"'Trial 3'!EE35","v":{"v":716118.4643197994,"d":"$716,118"}},{"$f":"'Trial 3'!EF35","v":{"v":711366.2687294121,"d":"$711,366"}},{"$f":"'Trial 3'!EG35","v":{"v":736059.4396526489,"d":"$736,059"}},{"$f":"'Trial 3'!EH35","v":{"v":688910.7042701292,"d":"$688,911"}},{"$f":"'Trial 3'!EI35","v":{"v":685207.1793011591,"d":"$685,207"}},{"$f":"'Trial 3'!EJ35","v":{"v":707465.7966462012,"d":"$707,466"}},{"$f":"'Trial 3'!EK35","v":{"v":718613.251297198,"d":"$718,613"}},{"$f":"'Trial 3'!EL35","v":{"v":712049.1610952752,"d":"$712,049"}},{"$f":"'Trial 3'!EM35","v":{"v":758593.9892758512,"d":"$758,594"}}]
[{"$f":"'Trial 4'!B35","v":{"v":855492.7939183748,"d":"$855,493"}},{"$f":"'Trial 4'!C35","v":{"v":870001.696961098,"d":"$870,002"}},{"$f":"'Trial 4'!D35","v":{"v":845771.6359089069,"d":"$845,772"}},{"$f":"'Trial 4'!E35","v":{"v":798635.1322668182,"d":"$798,635"}},{"$f":"'Trial 4'!F35","v":{"v":807547.2915370219,"d":"$807,547"}},{"$f":"'Trial 4'!G35","v":{"v":845761.6227852188,"d":"$845,762"}},{"$f":"'Trial 4'!H35","v":{"v":846797.9449635037,"d":"$846,798"}},{"$f":"'Trial 4'!I35","v":{"v":850055.6259834437,"d":"$850,056"}},{"$f":"'Trial 4'!J35","v":{"v":816078.0501505971,"d":"$816,078"}},{"$f":"'Trial 4'!K35","v":{"v":815510.9039580974,"d":"$815,511"}},{"$f":"'Trial 4'!L35","v":{"v":817853.9097572907,"d":"$817,854"}},{"$f":"'Trial 4'!M35","v":{"v":815856.3829233759,"d":"$815,856"}},{"$f":"'Trial 4'!O35","v":{"v":840325.5547894526,"d":"$840,326"}},{"$f":"'Trial 4'!P35","v":{"v":818436.3142932245,"d":"$818,436"}},{"$f":"'Trial 4'!Q35","v":{"v":843393.4498761507,"d":"$843,393"}},{"$f":"'Trial 4'!R35","v":{"v":854305.797801318,"d":"$854,306"}},{"$f":"'Trial 4'!S35","v":{"v":849809.5150090941,"d":"$849,810"}},{"$f":"'Trial 4'!T35","v":{"v":799029.772841946,"d":"$799,030"}},{"$f":"'Trial 4'!U35","v":{"v":813094.9813106257,"d":"$813,095"}},{"$f":"'Trial 4'!V35","v":{"v":816160.6156243939,"d":"$816,161"}},{"$f":"'Trial 4'!W35","v":{"v":809464.7760152884,"d":"$809,465"}},{"$f":"'Trial 4'!X35","v":{"v":829326.5445037788,"d":"$829,327"}},{"$f":"'Trial 4'!Y35","v":{"v":778517.5461727233,"d":"$778,518"}},{"$f":"'Trial 4'!Z35","v":{"v":818096.7817348348,"d":"$818,097"}},{"$f":"'Trial 4'!AB35","v":{"v":816592.7929824716,"d":"$816,593"}},{"$f":"'Trial 4'!AC35","v":{"v":809727.04306149,"d":"$809,727"}},{"$f":"'Trial 4'!AD35","v":{"v":803901.0211275305,"d":"$803,901"}},{"$f":"'Trial 4'!AE35","v":{"v":776861.1853981494,"d":"$776,861"}},{"$f":"'Trial 4'!AF35","v":{"v":819091.4080663837,"d":"$819,091"}},{"$f":"'Trial 4'!AG35","v":{"v":814386.5447027195,"d":"$814,387"}},{"$f":"'Trial 4'!AH35","v":{"v":839031.8443076765,"d":"$839,032"}},{"$f":"'Trial 4'!AI35","v":{"v":782483.051165731,"d":"$782,483"}},{"$f":"'Trial 4'!AJ35","v":{"v":761888.4638154329,"d":"$761,888"}},{"$f":"'Trial 4'!AK35","v":{"v":772983.8445569022,"d":"$772,984"}},{"$f":"'Trial 4'!AL35","v":{"v":791631.1266551943,"d":"$791,631"}},{"$f":"'Trial 4'!AM35","v":{"v":826144.3888061397,"d":"$826,144"}},{"$f":"'Trial 4'!AO35","v":{"v":777452.0294759005,"d":"$777,452"}},{"$f":"'Trial 4'!AP35","v":{"v":789481.805581725,"d":"$789,482"}},{"$f":"'Trial 4'!AQ35","v":{"v":784354.9331721105,"d":"$784,355"}},{"$f":"'Trial 4'!AR35","v":{"v":765947.1636259843,"d":"$765,947"}},{"$f":"'Trial 4'!AS35","v":{"v":761612.32027742,"d":"$761,612"}},{"$f":"'Trial 4'!AT35","v":{"v":754617.3460240854,"d":"$754,617"}},{"$f":"'Trial 4'!AU35","v":{"v":794509.9959140052,"d":"$794,510"}},{"$f":"'Trial 4'!AV35","v":{"v":798798.3143205993,"d":"$798,798"}},{"$f":"'Trial 4'!AW35","v":{"v":781802.4482121539,"d":"$781,802"}},{"$f":"'Trial 4'!AX35","v":{"v":771497.8820296392,"d":"$771,498"}},{"$f":"'Trial 4'!AY35","v":{"v":786406.9956853156,"d":"$786,407"}},{"$f":"'Trial 4'!AZ35","v":{"v":778873.0987223269,"d":"$778,873"}},{"$f":"'Trial 4'!BB35","v":{"v":801131.3798645588,"d":"$801,131"}},{"$f":"'Trial 4'!BC35","v":{"v":771786.7635937369,"d":"$771,787"}},{"$f":"'Trial 4'!BD35","v":{"v":771116.2680674063,"d":"$771,116"}},{"$f":"'Trial 4'!BE35","v":{"v":772892.4883952826,"d":"$772,892"}},{"$f":"'Trial 4'!BF35","v":{"v":783226.000404816,"d":"$783,226"}},{"$f":"'Trial 4'!BG35","v":{"v":797637.871664048,"d":"$797,638"}},{"$f":"'Trial 4'!BH35","v":{"v":792892.1549785713,"d":"$792,892"}},{"$f":"'Trial 4'!BI35","v":{"v":751243.3470392287,"d":"$751,243"}},{"$f":"'Trial 4'!BJ35","v":{"v":782790.7793909489,"d":"$782,791"}},{"$f":"'Trial 4'!BK35","v":{"v":766204.2327247725,"d":"$766,204"}},{"$f":"'Trial 4'!BL35","v":{"v":773059.1408357165,"d":"$773,059"}},{"$f":"'Trial 4'!BM35","v":{"v":783863.2069917088,"d":"$783,863"}},{"$f":"'Trial 4'!BO35","v":{"v":758696.1709643172,"d":"$758,696"}},{"$f":"'Trial 4'!BP35","v":{"v":780667.179052325,"d":"$780,667"}},{"$f":"'Trial 4'!BQ35","v":{"v":760675.3814308398,"d":"$760,675"}},{"$f":"'Trial 4'!BR35","v":{"v":770687.5850577089,"d":"$770,688"}},{"$f":"'Trial 4'!BS35","v":{"v":759482.764445258,"d":"$759,483"}},{"$f":"'Trial 4'!BT35","v":{"v":779353.2925174377,"d":"$779,353"}},{"$f":"'Trial 4'!BU35","v":{"v":773813.0925517655,"d":"$773,813"}},{"$f":"'Trial 4'!BV35","v":{"v":742096.4174685817,"d":"$742,096"}},{"$f":"'Trial 4'!BW35","v":{"v":786094.9294794062,"d":"$786,095"}},{"$f":"'Trial 4'!BX35","v":{"v":793053.9065424082,"d":"$793,054"}},{"$f":"'Trial 4'!BY35","v":{"v":760998.9261352232,"d":"$760,999"}},{"$f":"'Trial 4'!BZ35","v":{"v":780185.3207467269,"d":"$780,185"}},{"$f":"'Trial 4'!CB35","v":{"v":764401.6112086169,"d":"$764,402"}},{"$f":"'Trial 4'!CC35","v":{"v":765239.1075616911,"d":"$765,239"}},{"$f":"'Trial 4'!CD35","v":{"v":765683.0966581906,"d":"$765,683"}},{"$f":"'Trial 4'!CE35","v":{"v":755181.1500649725,"d":"$755,181"}},{"$f":"'Trial 4'!CF35","v":{"v":754429.0374583452,"d":"$754,429"}},{"$f":"'Trial 4'!CG35","v":{"v":767549.7130351296,"d":"$767,550"}},{"$f":"'Trial 4'!CH35","v":{"v":729743.4174713521,"d":"$729,743"}},{"$f":"'Trial 4'!CI35","v":{"v":756282.740564928,"d":"$756,283"}},{"$f":"'Trial 4'!CJ35","v":{"v":766950.4170393745,"d":"$766,950"}},{"$f":"'Trial 4'!CK35","v":{"v":748953.9866583983,"d":"$748,954"}},{"$f":"'Trial 4'!CL35","v":{"v":761826.488099691,"d":"$761,826"}},{"$f":"'Trial 4'!CM35","v":{"v":739319.0669546728,"d":"$739,319"}},{"$f":"'Trial 4'!CO35","v":{"v":778548.3276748072,"d":"$778,548"}},{"$f":"'Trial 4'!CP35","v":{"v":752263.5331143124,"d":"$752,264"}},{"$f":"'Trial 4'!CQ35","v":{"v":731940.8084414281,"d":"$731,941"}},{"$f":"'Trial 4'!CR35","v":{"v":752726.644922348,"d":"$752,727"}},{"$f":"'Trial 4'!CS35","v":{"v":729696.6210033133,"d":"$729,697"}},{"$f":"'Trial 4'!CT35","v":{"v":743137.0655113049,"d":"$743,137"}},{"$f":"'Trial 4'!CU35","v":{"v":741258.4137190998,"d":"$741,258"}},{"$f":"'Trial 4'!CV35","v":{"v":764492.8932105752,"d":"$764,493"}},{"$f":"'Trial 4'!CW35","v":{"v":741034.1291227886,"d":"$741,034"}},{"$f":"'Trial 4'!CX35","v":{"v":762774.8147971896,"d":"$762,775"}},{"$f":"'Trial 4'!CY35","v":{"v":750747.1193882482,"d":"$750,747"}},{"$f":"'Trial 4'!CZ35","v":{"v":729599.892802205,"d":"$729,600"}},{"$f":"'Trial 4'!DB35","v":{"v":737900.6448757601,"d":"$737,901"}},{"$f":"'Trial 4'!DC35","v":{"v":782903.9290576081,"d":"$782,904"}},{"$f":"'Trial 4'!DD35","v":{"v":745654.1715941901,"d":"$745,654"}},{"$f":"'Trial 4'!DE35","v":{"v":753939.1714334824,"d":"$753,939"}},{"$f":"'Trial 4'!DF35","v":{"v":745187.3393452044,"d":"$745,187"}},{"$f":"'Trial 4'!DG35","v":{"v":707719.8556478587,"d":"$707,720"}},{"$f":"'Trial 4'!DH35","v":{"v":747744.6748445362,"d":"$747,745"}},{"$f":"'Trial 4'!DI35","v":{"v":718887.5484751788,"d":"$718,888"}},{"$f":"'Trial 4'!DJ35","v":{"v":697353.3838538154,"d":"$697,353"}},{"$f":"'Trial 4'!DK35","v":{"v":740218.559852321,"d":"$740,219"}},{"$f":"'Trial 4'!DL35","v":{"v":731964.9461011529,"d":"$731,965"}},{"$f":"'Trial 4'!DM35","v":{"v":747111.0240682138,"d":"$747,111"}},{"$f":"'Trial 4'!DO35","v":{"v":729102.4732970286,"d":"$729,102"}},{"$f":"'Trial 4'!DP35","v":{"v":750458.8268287993,"d":"$750,459"}},{"$f":"'Trial 4'!DQ35","v":{"v":758938.4554536607,"d":"$758,938"}},{"$f":"'Trial 4'!DR35","v":{"v":727817.8436754592,"d":"$727,818"}},{"$f":"'Trial 4'!DS35","v":{"v":753156.0123341741,"d":"$753,156"}},{"$f":"'Trial 4'!DT35","v":{"v":698253.233689312,"d":"$698,253"}},{"$f":"'Trial 4'!DU35","v":{"v":693237.7724561983,"d":"$693,238"}},{"$f":"'Trial 4'!DV35","v":{"v":734210.554307013,"d":"$734,211"}},{"$f":"'Trial 4'!DW35","v":{"v":752193.1671498378,"d":"$752,193"}},{"$f":"'Trial 4'!DX35","v":{"v":700990.799448883,"d":"$700,991"}},{"$f":"'Trial 4'!DY35","v":{"v":740336.3571762631,"d":"$740,336"}},{"$f":"'Trial 4'!DZ35","v":{"v":717793.4802226821,"d":"$717,793"}},{"$f":"'Trial 4'!EB35","v":{"v":750442.5737920686,"d":"$750,443"}},{"$f":"'Trial 4'!EC35","v":{"v":757426.2637737615,"d":"$757,426"}},{"$f":"'Trial 4'!ED35","v":{"v":737755.0323351678,"d":"$737,755"}},{"$f":"'Trial 4'!EE35","v":{"v":721271.3277889866,"d":"$721,271"}},{"$f":"'Trial 4'!EF35","v":{"v":708623.0550265639,"d":"$708,623"}},{"$f":"'Trial 4'!EG35","v":{"v":693141.8256855856,"d":"$693,142"}},{"$f":"'Trial 4'!EH35","v":{"v":730563.1073797216,"d":"$730,563"}},{"$f":"'Trial 4'!EI35","v":{"v":759956.9465029263,"d":"$759,957"}},{"$f":"'Trial 4'!EJ35","v":{"v":735203.7649449894,"d":"$735,204"}},{"$f":"'Trial 4'!EK35","v":{"v":698588.3365201794,"d":"$698,588"}},{"$f":"'Trial 4'!EL35","v":{"v":721250.7123218116,"d":"$721,251"}},{"$f":"'Trial 4'!EM35","v":{"v":736816.1826119283,"d":"$736,816"}}]
[{"$f":"'Trial 5'!B35","v":{"v":829848.8770889734,"d":"$829,849"}},{"$f":"'Trial 5'!C35","v":{"v":816045.8125721654,"d":"$816,046"}},{"$f":"'Trial 5'!D35","v":{"v":836244.7798364572,"d":"$836,245"}},{"$f":"'Trial 5'!E35","v":{"v":838995.3641079573,"d":"$838,995"}},{"$f":"'Trial 5'!F35","v":{"v":819202.1453095468,"d":"$819,202"}},{"$f":"'Trial 5'!G35","v":{"v":805238.1792832307,"d":"$805,238"}},{"$f":"'Trial 5'!H35","v":{"v":865628.4843090278,"d":"$865,628"}},{"$f":"'Trial 5'!I35","v":{"v":785524.2467432201,"d":"$785,524"}},{"$f":"'Trial 5'!J35","v":{"v":816295.4452353856,"d":"$816,295"}},{"$f":"'Trial 5'!K35","v":{"v":824697.6631935969,"d":"$824,698"}},{"$f":"'Trial 5'!L35","v":{"v":863556.8711613883,"d":"$863,557"}},{"$f":"'Trial 5'!M35","v":{"v":820758.7084472199,"d":"$820,759"}},{"$f":"'Trial 5'!O35","v":{"v":810423.976324278,"d":"$810,424"}},{"$f":"'Trial 5'!P35","v":{"v":816314.1881675884,"d":"$816,314"}},{"$f":"'Trial 5'!Q35","v":{"v":823577.3894434953,"d":"$823,577"}},{"$f":"'Trial 5'!R35","v":{"v":787780.1521015536,"d":"$787,780"}},{"$f":"'Trial 5'!S35","v":{"v":799396.8840848127,"d":"$799,397"}},{"$f":"'Trial 5'!T35","v":{"v":844493.5612058312,"d":"$844,494"}},{"$f":"'Trial 5'!U35","v":{"v":833419.934463114,"d":"$833,420"}},{"$f":"'Trial 5'!V35","v":{"v":793105.4835726827,"d":"$793,105"}},{"$f":"'Trial 5'!W35","v":{"v":812601.5269326973,"d":"$812,602"}},{"$f":"'Trial 5'!X35","v":{"v":811189.2021771028,"d":"$811,189"}},{"$f":"'Trial 5'!Y35","v":{"v":814418.3463169504,"d":"$814,418"}},{"$f":"'Trial 5'!Z35","v":{"v":789106.4389482302,"d":"$789,106"}},{"$f":"'Trial 5'!AB35","v":{"v":775468.2661995239,"d":"$775,468"}},{"$f":"'Trial 5'!AC35","v":{"v":818310.9282676064,"d":"$818,311"}},{"$f":"'Trial 5'!AD35","v":{"v":829378.0379183686,"d":"$829,378"}},{"$f":"'Trial 5'!AE35","v":{"v":778576.5624822787,"d":"$778,577"}},{"$f":"'Trial 5'!AF35","v":{"v":777431.3271499649,"d":"$777,431"}},{"$f":"'Trial 5'!AG35","v":{"v":789874.8970217294,"d":"$789,875"}},{"$f":"'Trial 5'!AH35","v":{"v":822914.4692749035,"d":"$822,914"}},{"$f":"'Trial 5'!AI35","v":{"v":796355.4937497549,"d":"$796,355"}},{"$f":"'Trial 5'!AJ35","v":{"v":811206.4577611029,"d":"$811,206"}},{"$f":"'Trial 5'!AK35","v":{"v":821182.7251695284,"d":"$821,183"}},{"$f":"'Trial 5'!AL35","v":{"v":814272.808930777,"d":"$814,273"}},{"$f":"'Trial 5'!AM35","v":{"v":783229.0045961986,"d":"$783,229"}},{"$f":"'Trial 5'!AO35","v":{"v":790448.1158380167,"d":"$790,448"}},{"$f":"'Trial 5'!AP35","v":{"v":783075.8207161509,"d":"$783,076"}},{"$f":"'Trial 5'!AQ35","v":{"v":771066.7909260745,"d":"$771,067"}},{"$f":"'Trial 5'!AR35","v":{"v":828452.0230399285,"d":"$828,452"}},{"$f":"'Trial 5'!AS35","v":{"v":773630.6844482567,"d":"$773,631"}},{"$f":"'Trial 5'!AT35","v":{"v":795056.2400856408,"d":"$795,056"}},{"$f":"'Trial 5'!AU35","v":{"v":802201.4277804672,"d":"$802,201"}},{"$f":"'Trial 5'!AV35","v":{"v":794512.114264038,"d":"$794,512"}},{"$f":"'Trial 5'!AW35","v":{"v":757279.8145564768,"d":"$757,280"}},{"$f":"'Trial 5'!AX35","v":{"v":775636.5813296001,"d":"$775,637"}},{"$f":"'Trial 5'!AY35","v":{"v":778131.8539874639,"d":"$778,132"}},{"$f":"'Trial 5'!AZ35","v":{"v":802941.0507359443,"d":"$802,941"}},{"$f":"'Trial 5'!BB35","v":{"v":752951.745425776,"d":"$752,952"}},{"$f":"'Trial 5'!BC35","v":{"v":791724.8122990417,"d":"$791,725"}},{"$f":"'Trial 5'!BD35","v":{"v":819562.2843738584,"d":"$819,562"}},{"$f":"'Trial 5'!BE35","v":{"v":805113.2631418975,"d":"$805,113"}},{"$f":"'Trial 5'!BF35","v":{"v":771349.0121462842,"d":"$771,349"}},{"$f":"'Trial 5'!BG35","v":{"v":745684.6947075481,"d":"$745,685"}},{"$f":"'Trial 5'!BH35","v":{"v":815976.0430428286,"d":"$815,976"}},{"$f":"'Trial 5'!BI35","v":{"v":750123.0653512342,"d":"$750,123"}},{"$f":"'Trial 5'!BJ35","v":{"v":772946.2216991893,"d":"$772,946"}},{"$f":"'Trial 5'!BK35","v":{"v":802280.8298058658,"d":"$802,281"}},{"$f":"'Trial 5'!BL35","v":{"v":746936.91111711,"d":"$746,937"}},{"$f":"'Trial 5'!BM35","v":{"v":782455.4728016412,"d":"$782,455"}},{"$f":"'Trial 5'!BO35","v":{"v":741795.670525391,"d":"$741,796"}},{"$f":"'Trial 5'!BP35","v":{"v":772226.7511168591,"d":"$772,227"}},{"$f":"'Trial 5'!BQ35","v":{"v":748557.5104701066,"d":"$748,558"}},{"$f":"'Trial 5'!BR35","v":{"v":797944.8736708622,"d":"$797,945"}},{"$f":"'Trial 5'!BS35","v":{"v":755131.3029415872,"d":"$755,131"}},{"$f":"'Trial 5'!BT35","v":{"v":783632.1763463854,"d":"$783,632"}},{"$f":"'Trial 5'!BU35","v":{"v":794060.1346810631,"d":"$794,060"}},{"$f":"'Trial 5'!BV35","v":{"v":743717.4862837469,"d":"$743,717"}},{"$f":"'Trial 5'!BW35","v":{"v":764553.3979040624,"d":"$764,553"}},{"$f":"'Trial 5'!BX35","v":{"v":723893.1823881131,"d":"$723,893"}},{"$f":"'Trial 5'!BY35","v":{"v":777933.7932652121,"d":"$777,934"}},{"$f":"'Trial 5'!BZ35","v":{"v":765525.0042187261,"d":"$765,525"}},{"$f":"'Trial 5'!CB35","v":{"v":785414.9174596604,"d":"$785,415"}},{"$f":"'Trial 5'!CC35","v":{"v":752185.2104835819,"d":"$752,185"}},{"$f":"'Trial 5'!CD35","v":{"v":722784.8351793349,"d":"$722,785"}},{"$f":"'Trial 5'!CE35","v":{"v":737275.1164543204,"d":"$737,275"}},{"$f":"'Trial 5'!CF35","v":{"v":748008.1917431435,"d":"$748,008"}},{"$f":"'Trial 5'!CG35","v":{"v":786589.8060398429,"d":"$786,590"}},{"$f":"'Trial 5'!CH35","v":{"v":794816.7005263425,"d":"$794,817"}},{"$f":"'Trial 5'!CI35","v":{"v":772047.3263524454,"d":"$772,047"}},{"$f":"'Trial 5'!CJ35","v":{"v":780872.7574039324,"d":"$780,873"}},{"$f":"'Trial 5'!CK35","v":{"v":751449.0190600478,"d":"$751,449"}},{"$f":"'Trial 5'!CL35","v":{"v":737554.0282034285,"d":"$737,554"}},{"$f":"'Trial 5'!CM35","v":{"v":742283.9659997603,"d":"$742,284"}},{"$f":"'Trial 5'!CO35","v":{"v":735409.7971429614,"d":"$735,410"}},{"$f":"'Trial 5'!CP35","v":{"v":739830.0720166763,"d":"$739,830"}},{"$f":"'Trial 5'!CQ35","v":{"v":775202.9153826077,"d":"$775,203"}},{"$f":"'Trial 5'!CR35","v":{"v":756718.8339588795,"d":"$756,719"}},{"$f":"'Trial 5'!CS35","v":{"v":737675.0121248674,"d":"$737,675"}},{"$f":"'Trial 5'!CT35","v":{"v":718411.5652569017,"d":"$718,412"}},{"$f":"'Trial 5'!CU35","v":{"v":753008.1746733455,"d":"$753,008"}},{"$f":"'Trial 5'!CV35","v":{"v":731461.7058111957,"d":"$731,462"}},{"$f":"'Trial 5'!CW35","v":{"v":749088.1203410336,"d":"$749,088"}},{"$f":"'Trial 5'!CX35","v":{"v":715447.4724310603,"d":"$715,447"}},{"$f":"'Trial 5'!CY35","v":{"v":744973.1781191762,"d":"$744,973"}},{"$f":"'Trial 5'!CZ35","v":{"v":756850.9356899563,"d":"$756,851"}},{"$f":"'Trial 5'!DB35","v":{"v":748358.2774976324,"d":"$748,358"}},{"$f":"'Trial 5'!DC35","v":{"v":730901.2567824187,"d":"$730,901"}},{"$f":"'Trial 5'!DD35","v":{"v":714142.583783271,"d":"$714,143"}},{"$f":"'Trial 5'!DE35","v":{"v":753372.887133019,"d":"$753,373"}},{"$f":"'Trial 5'!DF35","v":{"v":776128.7928160103,"d":"$776,129"}},{"$f":"'Trial 5'!DG35","v":{"v":735084.287679592,"d":"$735,084"}},{"$f":"'Trial 5'!DH35","v":{"v":737793.0975038137,"d":"$737,793"}},{"$f":"'Trial 5'!DI35","v":{"v":740382.0838189385,"d":"$740,382"}},{"$f":"'Trial 5'!DJ35","v":{"v":722573.1023603413,"d":"$722,573"}},{"$f":"'Trial 5'!DK35","v":{"v":736449.9427336814,"d":"$736,450"}},{"$f":"'Trial 5'!DL35","v":{"v":694939.0192016134,"d":"$694,939"}},{"$f":"'Trial 5'!DM35","v":{"v":739066.2811214445,"d":"$739,066"}},{"$f":"'Trial 5'!DO35","v":{"v":774469.7853908907,"d":"$774,470"}},{"$f":"'Trial 5'!DP35","v":{"v":723426.1302328623,"d":"$723,426"}},{"$f":"'Trial 5'!DQ35","v":{"v":700373.3840141499,"d":"$700,373"}},{"$f":"'Trial 5'!DR35","v":{"v":715658.4233097205,"d":"$715,658"}},{"$f":"'Trial 5'!DS35","v":{"v":708350.8760955088,"d":"$708,351"}},{"$f":"'Trial 5'!DT35","v":{"v":745271.2370735435,"d":"$745,271"}},{"$f":"'Trial 5'!DU35","v":{"v":736851.4025500666,"d":"$736,851"}},{"$f":"'Trial 5'!DV35","v":{"v":727416.4519676686,"d":"$727,416"}},{"$f":"'Trial 5'!DW35","v":{"v":739687.2642169521,"d":"$739,687"}},{"$f":"'Trial 5'!DX35","v":{"v":718665.6741372474,"d":"$718,666"}},{"$f":"'Trial 5'!DY35","v":{"v":693673.258038265,"d":"$693,673"}},{"$f":"'Trial 5'!DZ35","v":{"v":720113.9578576883,"d":"$720,114"}},{"$f":"'Trial 5'!EB35","v":{"v":726161.873283512,"d":"$726,162"}},{"$f":"'Trial 5'!EC35","v":{"v":762469.9884743664,"d":"$762,470"}},{"$f":"'Trial 5'!ED35","v":{"v":712048.7260752333,"d":"$712,049"}},{"$f":"'Trial 5'!EE35","v":{"v":693891.350258964,"d":"$693,891"}},{"$f":"'Trial 5'!EF35","v":{"v":719849.5069006415,"d":"$719,850"}},{"$f":"'Trial 5'!EG35","v":{"v":714983.646909569,"d":"$714,984"}},{"$f":"'Trial 5'!EH35","v":{"v":734871.7697575054,"d":"$734,872"}},{"$f":"'Trial 5'!EI35","v":{"v":683078.2287702492,"d":"$683,078"}},{"$f":"'Trial 5'!EJ35","v":{"v":744279.895724523,"d":"$744,280"}},{"$f":"'Trial 5'!EK35","v":{"v":700814.6914010019,"d":"$700,815"}},{"$f":"'Trial 5'!EL35","v":{"v":720566.8550082026,"d":"$720,567"}},{"$f":"'Trial 5'!EM35","v":{"v":745587.0711315697,"d":"$745,587"}}]
[{"$f":"'Trial 6'!B35","v":{"v":830793.9878369995,"d":"$830,794"}},{"$f":"'Trial 6'!C35","v":{"v":798579.9654662417,"d":"$798,580"}},{"$f":"'Trial 6'!D35","v":{"v":844484.5200155418,"d":"$844,485"}},{"$f":"'Trial 6'!E35","v":{"v":829737.5499698165,"d":"$829,738"}},{"$f":"'Trial 6'!F35","v":{"v":789768.8589595292,"d":"$789,769"}},{"$f":"'Trial 6'!G35","v":{"v":838020.0858601225,"d":"$838,020"}},{"$f":"'Trial 6'!H35","v":{"v":807116.0470087474,"d":"$807,116"}},{"$f":"'Trial 6'!I35","v":{"v":842244.6694717061,"d":"$842,245"}},{"$f":"'Trial 6'!J35","v":{"v":854866.9190521823,"d":"$854,867"}},{"$f":"'Trial 6'!K35","v":{"v":813232.9181508586,"d":"$813,233"}},{"$f":"'Trial 6'!L35","v":{"v":830538.9254708692,"d":"$830,539"}},{"$f":"'Trial 6'!M35","v":{"v":781947.5881335086,"d":"$781,948"}},{"$f":"'Trial 6'!O35","v":{"v":790468.4146098301,"d":"$790,468"}},{"$f":"'Trial 6'!P35","v":{"v":827754.9004897331,"d":"$827,755"}},{"$f":"'Trial 6'!Q35","v":{"v":859187.2948429001,"d":"$859,187"}},{"$f":"'Trial 6'!R35","v":{"v":787966.71652352,"d":"$787,967"}},{"$f":"'Trial 6'!S35","v":{"v":820848.3148871415,"d":"$820,848"}},{"$f":"'Trial 6'!T35","v":{"v":849575.9566398942,"d":"$849,576"}},{"$f":"'Trial 6'!U35","v":{"v":798217.4961618388,"d":"$798,217"}},{"$f":"'Trial 6'!V35","v":{"v":828388.9425499245,"d":"$828,389"}},{"$f":"'Trial 6'!W35","v":{"v":832117.1928997556,"d":"$832,117"}},{"$f":"'Trial 6'!X35","v":{"v":809011.681782363,"d":"$809,012"}},{"$f":"'Trial 6'!Y35","v":{"v":792529.8773384466,"d":"$792,530"}},{"$f":"'Trial 6'!Z35","v":{"v":831508.5668716304,"d":"$831,509"}},{"$f":"'Trial 6'!AB35","v":{"v":776844.1838480554,"d":"$776,844"}},{"$f":"'Trial 6'!AC35","v":{"v":790313.2730360093,"d":"$790,313"}},{"$f":"'Trial 6'!AD35","v":{"v":841618.6991520448,"d":"$841,619"}},{"$f":"'Trial 6'!AE35","v":{"v":798200.2106338699,"d":"$798,200"}},{"$f":"'Trial 6'!AF35","v":{"v":840893.0413089237,"d":"$840,893"}},{"$f":"'Trial 6'!AG35","v":{"v":827798.5722824357,"d":"$827,799"}},{"$f":"'Trial 6'!AH35","v":{"v":809722.15389444,"d":"$809,722"}},{"$f":"'Trial 6'!AI35","v":{"v":774576.3383497723,"d":"$774,576"}},{"$f":"'Trial 6'!AJ35","v":{"v":840873.9865962734,"d":"$840,874"}},{"$f":"'Trial 6'!AK35","v":{"v":778771.5309278738,"d":"$778,772"}},{"$f":"'Trial 6'!AL35","v":{"v":757764.531835306,"d":"$757,765"}},{"$f":"'Trial 6'!AM35","v":{"v":786866.6026333947,"d":"$786,867"}},{"$f":"'Trial 6'!AO35","v":{"v":821091.4999133078,"d":"$821,091"}},{"$f":"'Trial 6'!AP35","v":{"v":789813.6208609723,"d":"$789,814"}},{"$f":"'Trial 6'!AQ35","v":{"v":803326.9045173252,"d":"$803,327"}},{"$f":"'Trial 6'!AR35","v":{"v":825967.3486297865,"d":"$825,967"}},{"$f":"'Trial 6'!AS35","v":{"v":774897.392313989,"d":"$774,897"}},{"$f":"'Trial 6'!AT35","v":{"v":756703.9755539936,"d":"$756,704"}},{"$f":"'Trial 6'!AU35","v":{"v":808177.5611644496,"d":"$808,178"}},{"$f":"'Trial 6'!AV35","v":{"v":786727.6693523639,"d":"$786,728"}},{"$f":"'Trial 6'!AW35","v":{"v":771056.9104501313,"d":"$771,057"}},{"$f":"'Trial 6'!AX35","v":{"v":783810.4554388652,"d":"$783,810"}},{"$f":"'Trial 6'!AY35","v":{"v":781108.0192469709,"d":"$781,108"}},{"$f":"'Trial 6'!AZ35","v":{"v":828045.2416185973,"d":"$828,045"}},{"$f":"'Trial 6'!BB35","v":{"v":810969.8997815485,"d":"$810,970"}},{"$f":"'Trial 6'!BC35","v":{"v":785912.3373984514,"d":"$785,912"}},{"$f":"'Trial 6'!BD35","v":{"v":812452.3375519332,"d":"$812,452"}},{"$f":"'Trial 6'!BE35","v":{"v":781999.6324164114,"d":"$782,000"}},{"$f":"'Trial 6'!BF35","v":{"v":757322.3244568215,"d":"$757,322"}},{"$f":"'Trial 6'!BG35","v":{"v":760116.876000129,"d":"$760,117"}},{"$f":"'Trial 6'!BH35","v":{"v":786906.0558527613,"d":"$786,906"}},{"$f":"'Trial 6'!BI35","v":{"v":773288.717303495,"d":"$773,289"}},{"$f":"'Trial 6'!BJ35","v":{"v":791653.3907236167,"d":"$791,653"}},{"$f":"'Trial 6'!BK35","v":{"v":793680.6656078886,"d":"$793,681"}},{"$f":"'Trial 6'!BL35","v":{"v":796909.4187474274,"d":"$796,909"}},{"$f":"'Trial 6'!BM35","v":{"v":760398.4873685747,"d":"$760,398"}},{"$f":"'Trial 6'!BO35","v":{"v":773065.3737034444,"d":"$773,065"}},{"$f":"'Trial 6'!BP35","v":{"v":795009.4209029377,"d":"$795,009"}},{"$f":"'Trial 6'!BQ35","v":{"v":767521.6636485782,"d":"$767,522"}},{"$f":"'Trial 6'!BR35","v":{"v":767068.6919155268,"d":"$767,069"}},{"$f":"'Trial 6'!BS35","v":{"v":792638.0413351046,"d":"$792,638"}},{"$f":"'Trial 6'!BT35","v":{"v":792460.1188205242,"d":"$792,460"}},{"$f":"'Trial 6'!BU35","v":{"v":758823.6969568174,"d":"$758,824"}},{"$f":"'Trial 6'!BV35","v":{"v":782015.9547657389,"d":"$782,016"}},{"$f":"'Trial 6'!BW35","v":{"v":791416.0140213353,"d":"$791,416"}},{"$f":"'Trial 6'!BX35","v":{"v":754331.1200122568,"d":"$754,331"}},{"$f":"'Trial 6'!BY35","v":{"v":781207.1351211821,"d":"$781,207"}},{"$f":"'Trial 6'!BZ35","v":{"v":762180.749993065,"d":"$762,181"}},{"$f":"'Trial 6'!CB35","v":{"v":746199.2362159418,"d":"$746,199"}},{"$f":"'Trial 6'!CC35","v":{"v":756657.3416247711,"d":"$756,657"}},{"$f":"'Trial 6'!CD35","v":{"v":767687.757898843,"d":"$767,688"}},{"$f":"'Trial 6'!CE35","v":{"v":759422.0388791176,"d":"$759,422"}},{"$f":"'Trial 6'!CF35","v":{"v":741172.7109526189,"d":"$741,173"}},{"$f":"'Trial 6'!CG35","v":{"v":773741.6864796575,"d":"$773,742"}},{"$f":"'Trial 6'!CH35","v":{"v":718149.6190744987,"d":"$718,150"}},{"$f":"'Trial 6'!CI35","v":{"v":775338.3014657324,"d":"$775,338"}},{"$f":"'Trial 6'!CJ35","v":{"v":739449.9125623849,"d":"$739,450"}},{"$f":"'Trial 6'!CK35","v":{"v":779807.9333390837,"d":"$779,808"}},{"$f":"'Trial 6'!CL35","v":{"v":723307.8514623335,"d":"$723,308"}},{"$f":"'Trial 6'!CM35","v":{"v":730755.8783238517,"d":"$730,756"}},{"$f":"'Trial 6'!CO35","v":{"v":759949.9897905978,"d":"$759,950"}},{"$f":"'Trial 6'!CP35","v":{"v":712142.0367415395,"d":"$712,142"}},{"$f":"'Trial 6'!CQ35","v":{"v":710999.7394440129,"d":"$711,000"}},{"$f":"'Trial 6'!CR35","v":{"v":770507.191605369,"d":"$770,507"}},{"$f":"'Trial 6'!CS35","v":{"v":762393.4254406736,"d":"$762,393"}},{"$f":"'Trial 6'!CT35","v":{"v":742874.2487211935,"d":"$742,874"}},{"$f":"'Trial 6'!CU35","v":{"v":768873.4908177134,"d":"$768,873"}},{"$f":"'Trial 6'!CV35","v":{"v":761971.5727490806,"d":"$761,972"}},{"$f":"'Trial 6'!CW35","v":{"v":736238.985418954,"d":"$736,239"}},{"$f":"'Trial 6'!CX35","v":{"v":734643.8307366865,"d":"$734,644"}},{"$f":"'Trial 6'!CY35","v":{"v":763483.7148416118,"d":"$763,484"}},{"$f":"'Trial 6'!CZ35","v":{"v":761999.6543173064,"d":"$762,000"}},{"$f":"'Trial 6'!DB35","v":{"v":748917.5176627255,"d":"$748,918"}},{"$f":"'Trial 6'!DC35","v":{"v":741159.2370992518,"d":"$741,159"}},{"$f":"'Trial 6'!DD35","v":{"v":740687.2260925932,"d":"$740,687"}},{"$f":"'Trial 6'!DE35","v":{"v":747250.6927153653,"d":"$747,251"}},{"$f":"'Trial 6'!DF35","v":{"v":727187.2684489816,"d":"$727,187"}},{"$f":"'Trial 6'!DG35","v":{"v":732985.8783600841,"d":"$732,986"}},{"$f":"'Trial 6'!DH35","v":{"v":737369.8624545197,"d":"$737,370"}},{"$f":"'Trial 6'!DI35","v":{"v":738791.1176780611,"d":"$738,791"}},{"$f":"'Trial 6'!DJ35","v":{"v":731493.1114080191,"d":"$731,493"}},{"$f":"'Trial 6'!DK35","v":{"v":761020.2750272515,"d":"$761,020"}},{"$f":"'Trial 6'!DL35","v":{"v":715765.6668818829,"d":"$715,766"}},{"$f":"'Trial 6'!DM35","v":{"v":734415.5839767869,"d":"$734,416"}},{"$f":"'Trial 6'!DO35","v":{"v":750645.416792632,"d":"$750,645"}},{"$f":"'Trial 6'!DP35","v":{"v":719374.6132225828,"d":"$719,375"}},{"$f":"'Trial 6'!DQ35","v":{"v":744693.5555120427,"d":"$744,694"}},{"$f":"'Trial 6'!DR35","v":{"v":745177.3985380484,"d":"$745,177"}},{"$f":"'Trial 6'!DS35","v":{"v":742639.7706457407,"d":"$742,640"}},{"$f":"'Trial 6'!DT35","v":{"v":729012.8416650336,"d":"$729,013"}},{"$f":"'Trial 6'!DU35","v":{"v":758243.8572510456,"d":"$758,244"}},{"$f":"'Trial 6'!DV35","v":{"v":714091.0938121424,"d":"$714,091"}},{"$f":"'Trial 6'!DW35","v":{"v":723308.3860477981,"d":"$723,308"}},{"$f":"'Trial 6'!DX35","v":{"v":727658.9083655741,"d":"$727,659"}},{"$f":"'Trial 6'!DY35","v":{"v":750429.1771461567,"d":"$750,429"}},{"$f":"'Trial 6'!DZ35","v":{"v":710872.7631742904,"d":"$710,873"}},{"$f":"'Trial 6'!EB35","v":{"v":701642.3303540255,"d":"$701,642"}},{"$f":"'Trial 6'!EC35","v":{"v":744991.3796394017,"d":"$744,991"}},{"$f":"'Trial 6'!ED35","v":{"v":712131.9319155536,"d":"$712,132"}},{"$f":"'Trial 6'!EE35","v":{"v":725858.4672102487,"d":"$725,858"}},{"$f":"'Trial 6'!EF35","v":{"v":702996.1413733348,"d":"$702,996"}},{"$f":"'Trial 6'!EG35","v":{"v":758640.3034668976,"d":"$758,640"}},{"$f":"'Trial 6'!EH35","v":{"v":704309.8253167132,"d":"$704,310"}},{"$f":"'Trial 6'!EI35","v":{"v":738411.2135902065,"d":"$738,411"}},{"$f":"'Trial 6'!EJ35","v":{"v":752612.2394722743,"d":"$752,612"}},{"$f":"'Trial 6'!EK35","v":{"v":731721.561617493,"d":"$731,722"}},{"$f":"'Trial 6'!EL35","v":{"v":725224.0566427574,"d":"$725,224"}},{"$f":"'Trial 6'!EM35","v":{"v":726078.736071214,"d":"$726,079"}}]
[{"$f":"'Trial 7'!B35","v":{"v":861759.5009400565,"d":"$861,760"}},{"$f":"'Trial 7'!C35","v":{"v":867588.3005772143,"d":"$867,588"}},{"$f":"'Trial 7'!D35","v":{"v":803768.3130030353,"d":"$803,768"}},{"$f":"'Trial 7'!E35","v":{"v":805928.5624718518,"d":"$805,929"}},{"$f":"'Trial 7'!F35","v":{"v":792488.7006308621,"d":"$792,489"}},{"$f":"'Trial 7'!G35","v":{"v":800754.5342374834,"d":"$800,755"}},{"$f":"'Trial 7'!H35","v":{"v":845694.9732146946,"d":"$845,695"}},{"$f":"'Trial 7'!I35","v":{"v":837112.020669838,"d":"$837,112"}},{"$f":"'Trial 7'!J35","v":{"v":815064.3473936981,"d":"$815,064"}},{"$f":"'Trial 7'!K35","v":{"v":804498.0953480086,"d":"$804,498"}},{"$f":"'Trial 7'!L35","v":{"v":821236.7542164332,"d":"$821,237"}},{"$f":"'Trial 7'!M35","v":{"v":831544.6188089877,"d":"$831,545"}},{"$f":"'Trial 7'!O35","v":{"v":819560.6433354121,"d":"$819,561"}},{"$f":"'Trial 7'!P35","v":{"v":843965.6999455675,"d":"$843,966"}},{"$f":"'Trial 7'!Q35","v":{"v":829393.081361524,"d":"$829,393"}},{"$f":"'Trial 7'!R35","v":{"v":859464.865783498,"d":"$859,465"}},{"$f":"'Trial 7'!S35","v":{"v":809012.3708458456,"d":"$809,012"}},{"$f":"'Trial 7'!T35","v":{"v":838232.2729948252,"d":"$838,232"}},{"$f":"'Trial 7'!U35","v":{"v":808302.6107138331,"d":"$808,303"}},{"$f":"'Trial 7'!V35","v":{"v":830530.8539750141,"d":"$830,531"}},{"$f":"'Trial 7'!W35","v":{"v":778822.7290780434,"d":"$778,823"}},{"$f":"'Trial 7'!X35","v":{"v":799675.8650413118,"d":"$799,676"}},{"$f":"'Trial 7'!Y35","v":{"v":830689.8941407461,"d":"$830,690"}},{"$f":"'Trial 7'!Z35","v":{"v":824674.395817296,"d":"$824,674"}},{"$f":"'Trial 7'!AB35","v":{"v":804515.0694134509,"d":"$804,515"}},{"$f":"'Trial 7'!AC35","v":{"v":830113.6072395785,"d":"$830,114"}},{"$f":"'Trial 7'!AD35","v":{"v":826270.8421333703,"d":"$826,271"}},{"$f":"'Trial 7'!AE35","v":{"v":805847.590524838,"d":"$805,848"}},{"$f":"'Trial 7'!AF35","v":{"v":847617.1574290661,"d":"$847,617"}},{"$f":"'Trial 7'!AG35","v":{"v":797117.7589924239,"d":"$797,118"}},{"$f":"'Trial 7'!AH35","v":{"v":800329.9729951775,"d":"$800,330"}},{"$f":"'Trial 7'!AI35","v":{"v":781544.8872590713,"d":"$781,545"}},{"$f":"'Trial 7'!AJ35","v":{"v":782351.3689894996,"d":"$782,351"}},{"$f":"'Trial 7'!AK35","v":{"v":814334.3181676817,"d":"$814,334"}},{"$f":"'Trial 7'!AL35","v":{"v":805651.7495054931,"d":"$805,652"}},{"$f":"'Trial 7'!AM35","v":{"v":776651.3988927511,"d":"$776,651"}},{"$f":"'Trial 7'!AO35","v":{"v":774330.892147922,"d":"$774,331"}},{"$f":"'Trial 7'!AP35","v":{"v":780985.5492034516,"d":"$780,986"}},{"$f":"'Trial 7'!AQ35","v":{"v":791372.6960348084,"d":"$791,373"}},{"$f":"'Trial 7'!AR35","v":{"v":764803.9707757033,"d":"$764,804"}},{"$f":"'Trial 7'!AS35","v":{"v":772151.5286242251,"d":"$772,152"}},{"$f":"'Trial 7'!AT35","v":{"v":764700.0373140445,"d":"$764,700"}},{"$f":"'Trial 7'!AU35","v":{"v":800380.2118181376,"d":"$800,380"}},{"$f":"'Trial 7'!AV35","v":{"v":810666.1330697128,"d":"$810,666"}},{"$f":"'Trial 7'!AW35","v":{"v":811576.3631797757,"d":"$811,576"}},{"$f":"'Trial 7'!AX35","v":{"v":802179.9357268618,"d":"$802,180"}},{"$f":"'Trial 7'!AY35","v":{"v":797953.6283830424,"d":"$797,954"}},{"$f":"'Trial 7'!AZ35","v":{"v":797976.8269322879,"d":"$797,977"}},{"$f":"'Trial 7'!BB35","v":{"v":777012.0136859555,"d":"$777,012"}},{"$f":"'Trial 7'!BC35","v":{"v":791083.4781017556,"d":"$791,083"}},{"$f":"'Trial 7'!BD35","v":{"v":815602.6792362536,"d":"$815,603"}},{"$f":"'Trial 7'!BE35","v":{"v":781427.9501265822,"d":"$781,428"}},{"$f":"'Trial 7'!BF35","v":{"v":761887.192209008,"d":"$761,887"}},{"$f":"'Trial 7'!BG35","v":{"v":774768.1685018056,"d":"$774,768"}},{"$f":"'Trial 7'!BH35","v":{"v":762100.5129875798,"d":"$762,101"}},{"$f":"'Trial 7'!BI35","v":{"v":750085.324577788,"d":"$750,085"}},{"$f":"'Trial 7'!BJ35","v":{"v":787772.6719742691,"d":"$787,773"}},{"$f":"'Trial 7'!BK35","v":{"v":796550.2476659901,"d":"$796,550"}},{"$f":"'Trial 7'!BL35","v":{"v":778276.4334900534,"d":"$778,276"}},{"$f":"'Trial 7'!BM35","v":{"v":740134.1355074892,"d":"$740,134"}},{"$f":"'Trial 7'!BO35","v":{"v":750803.190706453,"d":"$750,803"}},{"$f":"'Trial 7'!BP35","v":{"v":762032.5308751123,"d":"$762,033"}},{"$f":"'Trial 7'!BQ35","v":{"v":765139.5934924468,"d":"$765,140"}},{"$f":"'Trial 7'!BR35","v":{"v":804670.4901768869,"d":"$804,670"}},{"$f":"'Trial 7'!BS35","v":{"v":799477.3921458937,"d":"$799,477"}},{"$f":"'Trial 7'!BT35","v":{"v":760701.7682855703,"d":"$760,702"}},{"$f":"'Trial 7'!BU35","v":{"v":745973.6937349167,"d":"$745,974"}},{"$f":"'Trial 7'!BV35","v":{"v":765477.2719313641,"d":"$765,477"}},{"$f":"'Trial 7'!BW35","v":{"v":774135.2614969773,"d":"$774,135"}},{"$f":"'Trial 7'!BX35","v":{"v":766091.6523013426,"d":"$766,092"}},{"$f":"'Trial 7'!BY35","v":{"v":785167.3237037332,"d":"$785,167"}},{"$f":"'Trial 7'!BZ35","v":{"v":773585.9016162019,"d":"$773,586"}},{"$f":"'Trial 7'!CB35","v":{"v":759904.9561980778,"d":"$759,905"}},{"$f":"'Trial 7'!CC35","v":{"v":741079.8173973527,"d":"$741,080"}},{"$f":"'Trial 7'!CD35","v":{"v":772860.5385601706,"d":"$772,861"}},{"$f":"'Trial 7'!CE35","v":{"v":761397.7825480807,"d":"$761,398"}},{"$f":"'Trial 7'!CF35","v":{"v":724458.3318639073,"d":"$724,458"}},{"$f":"'Trial 7'!CG35","v":{"v":756278.1948431215,"d":"$756,278"}},{"$f":"'Trial 7'!CH35","v":{"v":722198.4923878455,"d":"$722,198"}},{"$f":"'Trial 7'!CI35","v":{"v":719360.9181676182,"d":"$719,361"}},{"$f":"'Trial 7'!CJ35","v":{"v":755783.8347019196,"d":"$755,784"}},{"$f":"'Trial 7'!CK35","v":{"v":776325.6223283604,"d":"$776,326"}},{"$f":"'Trial 7'!CL35","v":{"v":757251.3517685623,"d":"$757,251"}},{"$f":"'Trial 7'!CM35","v":{"v":721467.010269774,"d":"$721,467"}},{"$f":"'Trial 7'!CO35","v":{"v":741443.8217144723,"d":"$741,444"}},{"$f":"'Trial 7'!CP35","v":{"v":765187.0066261501,"d":"$765,187"}},{"$f":"'Trial 7'!CQ35","v":{"v":745990.6119577036,"d":"$745,991"}},{"$f":"'Trial 7'!CR35","v":{"v":754666.1958583139,"d":"$754,666"}},{"$f":"'Trial 7'!CS35","v":{"v":782834.0728809574,"d":"$782,834"}},{"$f":"'Trial 7'!CT35","v":{"v":750887.0482955899,"d":"$750,887"}},{"$f":"'Trial 7'!CU35","v":{"v":742875.528113119,"d":"$742,876"}},{"$f":"'Trial 7'!CV35","v":{"v":758373.66093705,"d":"$758,374"}},{"$f":"'Trial 7'!CW35","v":{"v":753016.525935023,"d":"$753,017"}},{"$f":"'Trial 7'!CX35","v":{"v":781970.711780762,"d":"$781,971"}},{"$f":"'Trial 7'!CY35","v":{"v":775683.5018174826,"d":"$775,684"}},{"$f":"'Trial 7'!CZ35","v":{"v":743905.3972428446,"d":"$743,905"}},{"$f":"'Trial 7'!DB35","v":{"v":710938.0099841206,"d":"$710,938"}},{"$f":"'Trial 7'!DC35","v":{"v":744022.5126014095,"d":"$744,023"}},{"$f":"'Trial 7'!DD35","v":{"v":753064.3903345416,"d":"$753,064"}},{"$f":"'Trial 7'!DE35","v":{"v":704184.5939042553,"d":"$704,185"}},{"$f":"'Trial 7'!DF35","v":{"v":747605.0851945155,"d":"$747,605"}},{"$f":"'Trial 7'!DG35","v":{"v":749639.6343100324,"d":"$749,640"}},{"$f":"'Trial 7'!DH35","v":{"v":712258.6832347589,"d":"$712,259"}},{"$f":"'Trial 7'!DI35","v":{"v":756671.6484207863,"d":"$756,672"}},{"$f":"'Trial 7'!DJ35","v":{"v":759054.6865138508,"d":"$759,055"}},{"$f":"'Trial 7'!DK35","v":{"v":700732.721176921,"d":"$700,733"}},{"$f":"'Trial 7'!DL35","v":{"v":738702.4744649704,"d":"$738,702"}},{"$f":"'Trial 7'!DM35","v":{"v":759599.5660215899,"d":"$759,600"}},{"$f":"'Trial 7'!DO35","v":{"v":722449.1798180015,"d":"$722,449"}},{"$f":"'Trial 7'!DP35","v":{"v":756647.6627829719,"d":"$756,648"}},{"$f":"'Trial 7'!DQ35","v":{"v":751031.9781857303,"d":"$751,032"}},{"$f":"'Trial 7'!DR35","v":{"v":705598.8939213237,"d":"$705,599"}},{"$f":"'Trial 7'!DS35","v":{"v":764448.8778503186,"d":"$764,449"}},{"$f":"'Trial 7'!DT35","v":{"v":704466.2454206747,"d":"$704,466"}},{"$f":"'Trial 7'!DU35","v":{"v":733652.3383371676,"d":"$733,652"}},{"$f":"'Trial 7'!DV35","v":{"v":704876.3905027242,"d":"$704,876"}},{"$f":"'Trial 7'!DW35","v":{"v":752991.1092953724,"d":"$752,991"}},{"$f":"'Trial 7'!DX35","v":{"v":766488.0720608236,"d":"$766,488"}},{"$f":"'Trial 7'!DY35","v":{"v":700062.7319070884,"d":"$700,063"}},{"$f":"'Trial 7'!DZ35","v":{"v":747546.730037137,"d":"$747,547"}},{"$f":"'Trial 7'!EB35","v":{"v":741268.5180845676,"d":"$741,269"}},{"$f":"'Trial 7'!EC35","v":{"v":722764.3966984885,"d":"$722,764"}},{"$f":"'Trial 7'!ED35","v":{"v":725820.9765605823,"d":"$725,821"}},{"$f":"'Trial 7'!EE35","v":{"v":740922.4119829411,"d":"$740,922"}},{"$f":"'Trial 7'!EF35","v":{"v":742845.8810643946,"d":"$742,846"}},{"$f":"'Trial 7'!EG35","v":{"v":723574.498798498,"d":"$723,574"}},{"$f":"'Trial 7'!EH35","v":{"v":732898.9387783991,"d":"$732,899"}},{"$f":"'Trial 7'!EI35","v":{"v":751395.3448942325,"d":"$751,395"}},{"$f":"'Trial 7'!EJ35","v":{"v":695561.0456421379,"d":"$695,561"}},{"$f":"'Trial 7'!EK35","v":{"v":736663.83589431,"d":"$736,664"}},{"$f":"'Trial 7'!EL35","v":{"v":755272.8406844962,"d":"$755,273"}},{"$f":"'Trial 7'!EM35","v":{"v":708238.4867610452,"d":"$708,238"}}]
[{"$f":"'Trial 8'!B35","v":{"v":839480.8216154232,"d":"$839,481"}},{"$f":"'Trial 8'!C35","v":{"v":788251.1577913108,"d":"$788,251"}},{"$f":"'Trial 8'!D35","v":{"v":825931.6359213647,"d":"$825,932"}},{"$f":"'Trial 8'!E35","v":{"v":812467.0612329717,"d":"$812,467"}},{"$f":"'Trial 8'!F35","v":{"v":829838.853227515,"d":"$829,839"}},{"$f":"'Trial 8'!G35","v":{"v":797354.3398810741,"d":"$797,354"}},{"$f":"'Trial 8'!H35","v":{"v":847029.6661407481,"d":"$847,030"}},{"$f":"'Trial 8'!I35","v":{"v":815607.4780568198,"d":"$815,607"}},{"$f":"'Trial 8'!J35","v":{"v":823566.8353646128,"d":"$823,567"}},{"$f":"'Trial 8'!K35","v":{"v":851575.4628986887,"d":"$851,575"}},{"$f":"'Trial 8'!L35","v":{"v":833610.8444009039,"d":"$833,611"}},{"$f":"'Trial 8'!M35","v":{"v":844848.9810538167,"d":"$844,849"}},{"$f":"'Trial 8'!O35","v":{"v":835152.0849989962,"d":"$835,152"}},{"$f":"'Trial 8'!P35","v":{"v":819924.636570793,"d":"$819,925"}},{"$f":"'Trial 8'!Q35","v":{"v":825642.3783775421,"d":"$825,642"}},{"$f":"'Trial 8'!R35","v":{"v":805535.3620735708,"d":"$805,535"}},{"$f":"'Trial 8'!S35","v":{"v":803423.4568778935,"d":"$803,423"}},{"$f":"'Trial 8'!T35","v":{"v":853475.129039931,"d":"$853,475"}},{"$f":"'Trial 8'!U35","v":{"v":809275.4415828394,"d":"$809,275"}},{"$f":"'Trial 8'!V35","v":{"v":834552.2358389393,"d":"$834,552"}},{"$f":"'Trial 8'!W35","v":{"v":781966.2907568574,"d":"$781,966"}},{"$f":"'Trial 8'!X35","v":{"v":815471.7926640966,"d":"$815,472"}},{"$f":"'Trial 8'!Y35","v":{"v":778837.9992215534,"d":"$778,838"}},{"$f":"'Trial 8'!Z35","v":{"v":842929.0214332473,"d":"$842,929"}},{"$f":"'Trial 8'!AB35","v":{"v":828387.090588179,"d":"$828,387"}},{"$f":"'Trial 8'!AC35","v":{"v":776930.2677204584,"d":"$776,930"}},{"$f":"'Trial 8'!AD35","v":{"v":801675.3341543215,"d":"$801,675"}},{"$f":"'Trial 8'!AE35","v":{"v":796506.735817952,"d":"$796,507"}},{"$f":"'Trial 8'!AF35","v":{"v":766393.4387893451,"d":"$766,393"}},{"$f":"'Trial 8'!AG35","v":{"v":820379.0659319056,"d":"$820,379"}},{"$f":"'Trial 8'!AH35","v":{"v":815897.0323739845,"d":"$815,897"}},{"$f":"'Trial 8'!AI35","v":{"v":782507.8335516594,"d":"$782,508"}},{"$f":"'Trial 8'!AJ35","v":{"v":833921.3142275609,"d":"$833,921"}},{"$f":"'Trial 8'!AK35","v":{"v":816613.0170341574,"d":"$816,613"}},{"$f":"'Trial 8'!AL35","v":{"v":794307.3452481915,"d":"$794,307"}},{"$f":"'Trial 8'!AM35","v":{"v":831192.8361780269,"d":"$831,193"}},{"$f":"'Trial 8'!AO35","v":{"v":796674.8160016722,"d":"$796,675"}},{"$f":"'Trial 8'!AP35","v":{"v":791911.3058285968,"d":"$791,911"}},{"$f":"'Trial 8'!AQ35","v":{"v":812458.144574507,"d":"$812,458"}},{"$f":"'Trial 8'!AR35","v":{"v":785917.9185549326,"d":"$785,918"}},{"$f":"'Trial 8'!AS35","v":{"v":814229.8468364333,"d":"$814,230"}},{"$f":"'Trial 8'!AT35","v":{"v":791775.7870329147,"d":"$791,776"}},{"$f":"'Trial 8'!AU35","v":{"v":776985.2488313195,"d":"$776,985"}},{"$f":"'Trial 8'!AV35","v":{"v":782556.3631983019,"d":"$782,556"}},{"$f":"'Trial 8'!AW35","v":{"v":790838.6127348262,"d":"$790,839"}},{"$f":"'Trial 8'!AX35","v":{"v":822765.1799809247,"d":"$822,765"}},{"$f":"'Trial 8'!AY35","v":{"v":781826.1970425296,"d":"$781,826"}},{"$f":"'Trial 8'!AZ35","v":{"v":754642.9692145864,"d":"$754,643"}},{"$f":"'Trial 8'!BB35","v":{"v":760184.1300190382,"d":"$760,184"}},{"$f":"'Trial 8'!BC35","v":{"v":805516.5295173905,"d":"$805,517"}},{"$f":"'Trial 8'!BD35","v":{"v":806450.1703616936,"d":"$806,450"}},{"$f":"'Trial 8'!BE35","v":{"v":776564.3433364473,"d":"$776,564"}},{"$f":"'Trial 8'!BF35","v":{"v":798073.3896909124,"d":"$798,073"}},{"$f":"'Trial 8'!BG35","v":{"v":778143.1181391083,"d":"$778,143"}},{"$f":"'Trial 8'!BH35","v":{"v":797337.4840748319,"d":"$797,337"}},{"$f":"'Trial 8'!BI35","v":{"v":789695.039010673,"d":"$789,695"}},{"$f":"'Trial 8'!BJ35","v":{"v":773636.0697034391,"d":"$773,636"}},{"$f":"'Trial 8'!BK35","v":{"v":766868.3500472298,"d":"$766,868"}},{"$f":"'Trial 8'!BL35","v":{"v":771658.7070251764,"d":"$771,659"}},{"$f":"'Trial 8'!BM35","v":{"v":777744.6728658571,"d":"$777,745"}},{"$f":"'Trial 8'!BO35","v":{"v":735389.0955088787,"d":"$735,389"}},{"$f":"'Trial 8'!BP35","v":{"v":808016.5047715923,"d":"$808,017"}},{"$f":"'Trial 8'!BQ35","v":{"v":798740.5352244964,"d":"$798,741"}},{"$f":"'Trial 8'!BR35","v":{"v":813383.4591719839,"d":"$813,383"}},{"$f":"'Trial 8'!BS35","v":{"v":765655.3767082345,"d":"$765,655"}},{"$f":"'Trial 8'!BT35","v":{"v":807734.9030954499,"d":"$807,735"}},{"$f":"'Trial 8'!BU35","v":{"v":767424.8949716999,"d":"$767,425"}},{"$f":"'Trial 8'!BV35","v":{"v":730287.6621625648,"d":"$730,288"}},{"$f":"'Trial 8'!BW35","v":{"v":775728.8607849486,"d":"$775,729"}},{"$f":"'Trial 8'!BX35","v":{"v":742699.6807889398,"d":"$742,700"}},{"$f":"'Trial 8'!BY35","v":{"v":755313.7231681985,"d":"$755,314"}},{"$f":"'Trial 8'!BZ35","v":{"v":775783.077452879,"d":"$775,783"}},{"$f":"'Trial 8'!CB35","v":{"v":729724.0071322003,"d":"$729,724"}},{"$f":"'Trial 8'!CC35","v":{"v":787374.1538486679,"d":"$787,374"}},{"$f":"'Trial 8'!CD35","v":{"v":751599.5965963855,"d":"$751,600"}},{"$f":"'Trial 8'!CE35","v":{"v":741024.8172428829,"d":"$741,025"}},{"$f":"'Trial 8'!CF35","v":{"v":774461.0963167328,"d":"$774,461"}},{"$f":"'Trial 8'!CG35","v":{"v":760143.4284009541,"d":"$760,143"}},{"$f":"'Trial 8'!CH35","v":{"v":764625.4083841118,"d":"$764,625"}},{"$f":"'Trial 8'!CI35","v":{"v":735388.9651054649,"d":"$735,389"}},{"$f":"'Trial 8'!CJ35","v":{"v":798634.6433271136,"d":"$798,635"}},{"$f":"'Trial 8'!CK35","v":{"v":742326.5879874009,"d":"$742,327"}},{"$f":"'Trial 8'!CL35","v":{"v":771005.4159779794,"d":"$771,005"}},{"$f":"'Trial 8'!CM35","v":{"v":725378.1653819935,"d":"$725,378"}},{"$f":"'Trial 8'!CO35","v":{"v":766565.9765751152,"d":"$766,566"}},{"$f":"'Trial 8'!CP35","v":{"v":743253.8658636105,"d":"$743,254"}},{"$f":"'Trial 8'!CQ35","v":{"v":782803.9371369128,"d":"$782,804"}},{"$f":"'Trial 8'!CR35","v":{"v":729007.4091130946,"d":"$729,007"}},{"$f":"'Trial 8'!CS35","v":{"v":762852.9956402989,"d":"$762,853"}},{"$f":"'Trial 8'!CT35","v":{"v":773518.7018577032,"d":"$773,519"}},{"$f":"'Trial 8'!CU35","v":{"v":775503.6710410194,"d":"$775,504"}},{"$f":"'Trial 8'!CV35","v":{"v":760254.4010432226,"d":"$760,254"}},{"$f":"'Trial 8'!CW35","v":{"v":712643.2211818878,"d":"$712,643"}},{"$f":"'Trial 8'!CX35","v":{"v":752249.6523138698,"d":"$752,250"}},{"$f":"'Trial 8'!CY35","v":{"v":733408.722169854,"d":"$733,409"}},{"$f":"'Trial 8'!CZ35","v":{"v":773862.9299006196,"d":"$773,863"}},{"$f":"'Trial 8'!DB35","v":{"v":767362.79518299,"d":"$767,363"}},{"$f":"'Trial 8'!DC35","v":{"v":743195.1621444615,"d":"$743,195"}},{"$f":"'Trial 8'!DD35","v":{"v":732035.2993282629,"d":"$732,035"}},{"$f":"'Trial 8'!DE35","v":{"v":784928.0116182697,"d":"$784,928"}},{"$f":"'Trial 8'!DF35","v":{"v":744028.7064373015,"d":"$744,029"}},{"$f":"'Trial 8'!DG35","v":{"v":741798.6537722873,"d":"$741,799"}},{"$f":"'Trial 8'!DH35","v":{"v":766522.6890074402,"d":"$766,523"}},{"$f":"'Trial 8'!DI35","v":{"v":722963.4355883978,"d":"$722,963"}},{"$f":"'Trial 8'!DJ35","v":{"v":769902.2116392186,"d":"$769,902"}},{"$f":"'Trial 8'!DK35","v":{"v":761627.1484292265,"d":"$761,627"}},{"$f":"'Trial 8'!DL35","v":{"v":727453.1584027897,"d":"$727,453"}},{"$f":"'Trial 8'!DM35","v":{"v":757465.2945975846,"d":"$757,465"}},{"$f":"'Trial 8'!DO35","v":{"v":759916.1019750725,"d":"$759,916"}},{"$f":"'Trial 8'!DP35","v":{"v":721577.2612945543,"d":"$721,577"}},{"$f":"'Trial 8'!DQ35","v":{"v":748687.2693513985,"d":"$748,687"}},{"$f":"'Trial 8'!DR35","v":{"v":718285.5564006594,"d":"$718,286"}},{"$f":"'Trial 8'!DS35","v":{"v":748173.1565565489,"d":"$748,173"}},{"$f":"'Trial 8'!DT35","v":{"v":760786.4755982157,"d":"$760,786"}},{"$f":"'Trial 8'!DU35","v":{"v":729077.5886022066,"d":"$729,078"}},{"$f":"'Trial 8'!DV35","v":{"v":716058.4680986247,"d":"$716,058"}},{"$f":"'Trial 8'!DW35","v":{"v":733519.4398829752,"d":"$733,519"}},{"$f":"'Trial 8'!DX35","v":{"v":734409.785880671,"d":"$734,410"}},{"$f":"'Trial 8'!DY35","v":{"v":755450.4264524154,"d":"$755,450"}},{"$f":"'Trial 8'!DZ35","v":{"v":726794.1172595742,"d":"$726,794"}},{"$f":"'Trial 8'!EB35","v":{"v":749638.9145363601,"d":"$749,639"}},{"$f":"'Trial 8'!EC35","v":{"v":704008.7099912959,"d":"$704,009"}},{"$f":"'Trial 8'!ED35","v":{"v":722844.9784807684,"d":"$722,845"}},{"$f":"'Trial 8'!EE35","v":{"v":705125.1381239245,"d":"$705,125"}},{"$f":"'Trial 8'!EF35","v":{"v":759220.169000083,"d":"$759,220"}},{"$f":"'Trial 8'!EG35","v":{"v":710434.5915494171,"d":"$710,435"}},{"$f":"'Trial 8'!EH35","v":{"v":725648.5551308703,"d":"$725,649"}},{"$f":"'Trial 8'!EI35","v":{"v":737693.7305347581,"d":"$737,694"}},{"$f":"'Trial 8'!EJ35","v":{"v":734984.2031784764,"d":"$734,984"}},{"$f":"'Trial 8'!EK35","v":{"v":723704.9268324457,"d":"$723,705"}},{"$f":"'Trial 8'!EL35","v":{"v":682067.4170552206,"d":"$682,067"}},{"$f":"'Trial 8'!EM35","v":{"v":736016.8195983028,"d":"$736,017"}}]
[{"$f":"'(Other Computations)'!B72","v":{"v":6730835.342446134,"d":"$6,730,835"}},{"$f":"'(Other Computations)'!C72","v":{"v":6658709.099127543,"d":"$6,658,709"}},{"$f":"'(Other Computations)'!D72","v":{"v":6651095.181172984,"d":"$6,651,095"}},{"$f":"'(Other Computations)'!E72","v":{"v":6549237.908428548,"d":"$6,549,238"}},{"$f":"'(Other Computations)'!F72","v":{"v":6553870.697321208,"d":"$6,553,871"}},{"$f":"'(Other Computations)'!G72","v":{"v":6587500.864658603,"d":"$6,587,501"}},{"$f":"'(Other Computations)'!H72","v":{"v":6728846.085553689,"d":"$6,728,846"}},{"$f":"'(Other Computations)'!I72","v":{"v":6589971.475953309,"d":"$6,589,971"}},{"$f":"'(Other Computations)'!J72","v":{"v":6676026.387883867,"d":"$6,676,026"}},{"$f":"'(Other Computations)'!K72","v":{"v":6553280.020048162,"d":"$6,553,280"}},{"$f":"'(Other Computations)'!L72","v":{"v":6632620.94781188,"d":"$6,632,621"}},{"$f":"'(Other Computations)'!M72","v":{"v":6622632.7169583505,"d":"$6,622,633"}},{"$f":"'(Other Computations)'!O72","v":{"v":6521041.180887992,"d":"$6,521,041"}},{"$f":"'(Other Computations)'!P72","v":{"v":6590142.312311323,"d":"$6,590,142"}},{"$f":"'(Other Computations)'!Q72","v":{"v":6653646.937341141,"d":"$6,653,647"}},{"$f":"'(Other Computations)'!R72","v":{"v":6568231.650164677,"d":"$6,568,232"}},{"$f":"'(Other Computations)'!S72","v":{"v":6579065.307890714,"d":"$6,579,065"}},{"$f":"'(Other Computations)'!T72","v":{"v":6545937.628554399,"d":"$6,545,938"}},{"$f":"'(Other Computations)'!U72","v":{"v":6487889.11004256,"d":"$6,487,889"}},{"$f":"'(Other Computations)'!V72","v":{"v":6560657.784226791,"d":"$6,560,658"}},{"$f":"'(Other Computations)'!W72","v":{"v":6483756.022036228,"d":"$6,483,756"}},{"$f":"'(Other Computations)'!X72","v":{"v":6521868.703470092,"d":"$6,521,869"}},{"$f":"'(Other Computations)'!Y72","v":{"v":6436992.968130856,"d":"$6,436,993"}},{"$f":"'(Other Computations)'!Z72","v":{"v":6525715.429176963,"d":"$6,525,715"}},{"$f":"'(Other Computations)'!AB72","v":{"v":6414693.927228762,"d":"$6,414,694"}},{"$f":"'(Other Computations)'!AC72","v":{"v":6444911.419707971,"d":"$6,444,911"}},{"$f":"'(Other Computations)'!AD72","v":{"v":6549514.225385121,"d":"$6,549,514"}},{"$f":"'(Other Computations)'!AE72","v":{"v":6351859.058452691,"d":"$6,351,859"}},{"$f":"'(Other Computations)'!AF72","v":{"v":6449759.332464899,"d":"$6,449,759"}},{"$f":"'(Other Computations)'!AG72","v":{"v":6449638.194940866,"d":"$6,449,638"}},{"$f":"'(Other Computations)'!AH72","v":{"v":6468688.494100266,"d":"$6,468,688"}},{"$f":"'(Other Computations)'!AI72","v":{"v":6306516.291115346,"d":"$6,306,516"}},{"$f":"'(Other Computations)'!AJ72","v":{"v":6424383.497552323,"d":"$6,424,383"}},{"$f":"'(Other Computations)'!AK72","v":{"v":6434144.3432274815,"d":"$6,434,144"}},{"$f":"'(Other Computations)'!AL72","v":{"v":6356856.950141377,"d":"$6,356,857"}},{"$f":"'(Other Computations)'!AM72","v":{"v":6432814.828952886,"d":"$6,432,815"}},{"$f":"'(Other Computations)'!AO72","v":{"v":6264261.286927839,"d":"$6,264,261"}},{"$f":"'(Other Computations)'!AP72","v":{"v":6298457.308660452,"d":"$6,298,457"}},{"$f":"'(Other Computations)'!AQ72","v":{"v":6419049.2739739185,"d":"$6,419,049"}},{"$f":"'(Other Computations)'!AR72","v":{"v":6349014.505060895,"d":"$6,349,015"}},{"$f":"'(Other Computations)'!AS72","v":{"v":6228004.089259654,"d":"$6,228,004"}},{"$f":"'(Other Computations)'!AT72","v":{"v":6224052.280642535,"d":"$6,224,052"}},{"$f":"'(Other Computations)'!AU72","v":{"v":6394662.548676136,"d":"$6,394,663"}},{"$f":"'(Other Computations)'!AV72","v":{"v":6391564.325968452,"d":"$6,391,564"}},{"$f":"'(Other Computations)'!AW72","v":{"v":6258173.754658398,"d":"$6,258,174"}},{"$f":"'(Other Computations)'!AX72","v":{"v":6324819.563253658,"d":"$6,324,820"}},{"$f":"'(Other Computations)'!AY72","v":{"v":6265085.471387676,"d":"$6,265,085"}},{"$f":"'(Other Computations)'!AZ72","v":{"v":6296824.498143655,"d":"$6,296,824"}},{"$f":"'(Other Computations)'!BB72","v":{"v":6263777.296858522,"d":"$6,263,777"}},{"$f":"'(Other Computations)'!BC72","v":{"v":6351408.953749307,"d":"$6,351,409"}},{"$f":"'(Other Computations)'!BD72","v":{"v":6375890.803678066,"d":"$6,375,891"}},{"$f":"'(Other Computations)'!BE72","v":{"v":6281873.661217553,"d":"$6,281,874"}},{"$f":"'(Other Computations)'!BF72","v":{"v":6225050.503912448,"d":"$6,225,051"}},{"$f":"'(Other Computations)'!BG72","v":{"v":6211320.647970195,"d":"$6,211,321"}},{"$f":"'(Other Computations)'!BH72","v":{"v":6325951.336724458,"d":"$6,325,951"}},{"$f":"'(Other Computations)'!BI72","v":{"v":6194671.218562509,"d":"$6,194,671"}},{"$f":"'(Other Computations)'!BJ72","v":{"v":6227256.681738697,"d":"$6,227,257"}},{"$f":"'(Other Computations)'!BK72","v":{"v":6226879.8780641025,"d":"$6,226,880"}},{"$f":"'(Other Computations)'!BL72","v":{"v":6176487.125661941,"d":"$6,176,487"}},{"$f":"'(Other Computations)'!BM72","v":{"v":6148544.305228721,"d":"$6,148,544"}},{"$f":"'(Other Computations)'!BO72","v":{"v":6079057.377400023,"d":"$6,079,057"}},{"$f":"'(Other Computations)'!BP72","v":{"v":6253810.278946834,"d":"$6,253,810"}},{"$f":"'(Other Computations)'!BQ72","v":{"v":6152835.640872403,"d":"$6,152,836"}},{"$f":"'(Other Computations)'!BR72","v":{"v":6296313.076703148,"d":"$6,296,313"}},{"$f":"'(Other Computations)'!BS72","v":{"v":6161780.28683725,"d":"$6,161,780"}},{"$f":"'(Other Computations)'!BT72","v":{"v":6212862.124678279,"d":"$6,212,862"}},{"$f":"'(Other Computations)'!BU72","v":{"v":6106749.131091598,"d":"$6,106,749"}},{"$f":"'(Other Computations)'!BV72","v":{"v":6093392.7762429165,"d":"$6,093,393"}},{"$f":"'(Other Computations)'!BW72","v":{"v":6232583.597398021,"d":"$6,232,584"}},{"$f":"'(Other Computations)'!BX72","v":{"v":6041624.728694084,"d":"$6,041,625"}},{"$f":"'(Other Computations)'!BY72","v":{"v":6162233.358058173,"d":"$6,162,233"}},{"$f":"'(Other Computations)'!BZ72","v":{"v":6132472.632526465,"d":"$6,132,473"}},{"$f":"'(Other Computations)'!CB72","v":{"v":6113429.723613485,"d":"$6,113,430"}},{"$f":"'(Other Computations)'!CC72","v":{"v":6112724.763707375,"d":"$6,112,725"}},{"$f":"'(Other Computations)'!CD72","v":{"v":6003040.891354314,"d":"$6,003,041"}},{"$f":"'(Other Computations)'!CE72","v":{"v":6018392.061305596,"d":"$6,018,392"}},{"$f":"'(Other Computations)'!CF72","v":{"v":6060156.588353132,"d":"$6,060,157"}},{"$f":"'(Other Computations)'!CG72","v":{"v":6082433.145270902,"d":"$6,082,433"}},{"$f":"'(Other Computations)'!CH72","v":{"v":6006282.7898776475,"d":"$6,006,283"}},{"$f":"'(Other Computations)'!CI72","v":{"v":6040715.887302349,"d":"$6,040,716"}},{"$f":"'(Other Computations)'!CJ72","v":{"v":6145706.672117658,"d":"$6,145,707"}},{"$f":"'(Other Computations)'!CK72","v":{"v":6058378.181622881,"d":"$6,058,378"}},{"$f":"'(Other Computations)'!CL72","v":{"v":6006276.310992295,"d":"$6,006,276"}},{"$f":"'(Other Computations)'!CM72","v":{"v":5910701.440317569,"d":"$5,910,701"}},{"$f":"'(Other Computations)'!CO72","v":{"v":6004520.059487224,"d":"$6,004,520"}},{"$f":"'(Other Computations)'!CP72","v":{"v":5973802.536548022,"d":"$5,973,803"}},{"$f":"'(Other Computations)'!CQ72","v":{"v":6031390.946782233,"d":"$6,031,391"}},{"$f":"'(Other Computations)'!CR72","v":{"v":5978619.403031403,"d":"$5,978,619"}},{"$f":"'(Other Computations)'!CS72","v":{"v":6019627.145216557,"d":"$6,019,627"}},{"$f":"'(Other Computations)'!CT72","v":{"v":5969038.981068556,"d":"$5,969,039"}},{"$f":"'(Other Computations)'!CU72","v":{"v":6026727.685362369,"d":"$6,026,728"}},{"$f":"'(Other Computations)'!CV72","v":{"v":5978171.6672832705,"d":"$5,978,172"}},{"$f":"'(Other Computations)'!CW72","v":{"v":5899094.133441279,"d":"$5,899,094"}},{"$f":"'(Other Computations)'!CX72","v":{"v":6009943.637071224,"d":"$6,009,944"}},{"$f":"'(Other Computations)'!CY72","v":{"v":6025257.158115239,"d":"$6,025,257"}},{"$f":"'(Other Computations)'!CZ72","v":{"v":6044934.851578745,"d":"$6,044,935"}},{"$f":"'(Other Computations)'!DB72","v":{"v":5918558.371867338,"d":"$5,918,558"}},{"$f":"'(Other Computations)'!DC72","v":{"v":5930082.162285312,"d":"$5,930,082"}},{"$f":"'(Other Computations)'!DD72","v":{"v":5921484.454727834,"d":"$5,921,484"}},{"$f":"'(Other Computations)'!DE72","v":{"v":5987695.424854988,"d":"$5,987,695"}},{"$f":"'(Other Computations)'!DF72","v":{"v":5949884.756444304,"d":"$5,949,885"}},{"$f":"'(Other Computations)'!DG72","v":{"v":5853666.313576394,"d":"$5,853,666"}},{"$f":"'(Other Computations)'!DH72","v":{"v":5956894.860175216,"d":"$5,956,895"}},{"$f":"'(Other Computations)'!DI72","v":{"v":5913381.283942972,"d":"$5,913,381"}},{"$f":"'(Other Computations)'!DJ72","v":{"v":5965051.317755494,"d":"$5,965,051"}},{"$f":"'(Other Computations)'!DK72","v":{"v":5935931.553863078,"d":"$5,935,932"}},{"$f":"'(Other Computations)'!DL72","v":{"v":5835959.038686795,"d":"$5,835,959"}},{"$f":"'(Other Computations)'!DM72","v":{"v":5947677.238346053,"d":"$5,947,677"}},{"$f":"'(Other Computations)'!DO72","v":{"v":5939163.186830455,"d":"$5,939,163"}},{"$f":"'(Other Computations)'!DP72","v":{"v":5854774.5005032085,"d":"$5,854,775"}},{"$f":"'(Other Computations)'!DQ72","v":{"v":5906967.492490726,"d":"$5,906,967"}},{"$f":"'(Other Computations)'!DR72","v":{"v":5854493.953951864,"d":"$5,854,494"}},{"$f":"'(Other Computations)'!DS72","v":{"v":5904033.148698766,"d":"$5,904,033"}},{"$f":"'(Other Computations)'!DT72","v":{"v":5826168.433688041,"d":"$5,826,168"}},{"$f":"'(Other Computations)'!DU72","v":{"v":5887246.751722547,"d":"$5,887,247"}},{"$f":"'(Other Computations)'!DV72","v":{"v":5731804.095108298,"d":"$5,731,804"}},{"$f":"'(Other Computations)'!DW72","v":{"v":5905047.296520188,"d":"$5,905,047"}},{"$f":"'(Other Computations)'!DX72","v":{"v":5825971.713566302,"d":"$5,825,972"}},{"$f":"'(Other Computations)'!DY72","v":{"v":5857178.844088736,"d":"$5,857,179"}},{"$f":"'(Other Computations)'!DZ72","v":{"v":5809030.543463757,"d":"$5,809,031"}},{"$f":"'(Other Computations)'!EB72","v":{"v":5882452.821366939,"d":"$5,882,453"}},{"$f":"'(Other Computations)'!EC72","v":{"v":5866778.6956943525,"d":"$5,866,779"}},{"$f":"'(Other Computations)'!ED72","v":{"v":5693360.277835468,"d":"$5,693,360"}},{"$f":"'(Other Computations)'!EE72","v":{"v":5821877.141816845,"d":"$5,821,877"}},{"$f":"'(Other Computations)'!EF72","v":{"v":5792298.114506724,"d":"$5,792,298"}},{"$f":"'(Other Computations)'!EG72","v":{"v":5781291.555817962,"d":"$5,781,292"}},{"$f":"'(Other Computations)'!EH72","v":{"v":5809308.743360942,"d":"$5,809,309"}},{"$f":"'(Other Computations)'!EI72","v":{"v":5790447.520981766,"d":"$5,790,448"}},{"$f":"'(Other Computations)'!EJ72","v":{"v":5800738.755148288,"d":"$5,800,739"}},{"$f":"'(Other Computations)'!EK72","v":{"v":5723516.969051305,"d":"$5,723,517"}},{"$f":"'(Other Computations)'!EL72","v":{"v":5774554.357188932,"d":"$5,774,554"}},{"$f":"'(Other Computations)'!EM72","v":{"v":5838992.124095245,"d":"$5,838,992"}}]
[{"$f":"'(Intermediate Computations)'!B41","v":"Jan 2010"},{"$f":"'(Intermediate Computations)'!C41","v":"Feb 2010"},{"$f":"'(Intermediate Computations)'!D41","v":"Mar 2010"},{"$f":"'(Intermediate Computations)'!E41","v":"Apr 2010"},{"$f":"'(Intermediate Computations)'!F41","v":"May 2010"},{"$f":"'(Intermediate Computations)'!G41","v":"Jun 2010"},{"$f":"'(Intermediate Computations)'!H41","v":"Jul 2010"},{"$f":"'(Intermediate Computations)'!I41","v":"Aug 2010"},{"$f":"'(Intermediate Computations)'!J41","v":"Sep 2010"},{"$f":"'(Intermediate Computations)'!K41","v":"Oct 2010"},{"$f":"'(Intermediate Computations)'!L41","v":"Nov 2010"},{"$f":"'(Intermediate Computations)'!M41","v":"Dec 2010"},{"$f":"'(Intermediate Computations)'!O41","v":"Jan 2011"},{"$f":"'(Intermediate Computations)'!P41","v":"Feb 2011"},{"$f":"'(Intermediate Computations)'!Q41","v":"Mar 2011"},{"$f":"'(Intermediate Computations)'!R41","v":"Apr 2011"},{"$f":"'(Intermediate Computations)'!S41","v":"May 2011"},{"$f":"'(Intermediate Computations)'!T41","v":"Jun 2011"},{"$f":"'(Intermediate Computations)'!U41","v":"Jul 2011"},{"$f":"'(Intermediate Computations)'!V41","v":"Aug 2011"},{"$f":"'(Intermediate Computations)'!W41","v":"Sep 2011"},{"$f":"'(Intermediate Computations)'!X41","v":"Oct 2011"},{"$f":"'(Intermediate Computations)'!Y41","v":"Nov 2011"},{"$f":"'(Intermediate Computations)'!Z41","v":"Dec 2011"},{"$f":"'(Intermediate Computations)'!AB41","v":"Jan 2012"},{"$f":"'(Intermediate Computations)'!AC41","v":"Feb 2012"},{"$f":"'(Intermediate Computations)'!AD41","v":"Mar 2012"},{"$f":"'(Intermediate Computations)'!AE41","v":"Apr 2012"},{"$f":"'(Intermediate Computations)'!AF41","v":"May 2012"},{"$f":"'(Intermediate Computations)'!AG41","v":"Jun 2012"},{"$f":"'(Intermediate Computations)'!AH41","v":"Jul 2012"},{"$f":"'(Intermediate Computations)'!AI41","v":"Aug 2012"},{"$f":"'(Intermediate Computations)'!AJ41","v":"Sep 2012"},{"$f":"'(Intermediate Computations)'!AK41","v":"Oct 2012"},{"$f":"'(Intermediate Computations)'!AL41","v":"Nov 2012"},{"$f":"'(Intermediate Computations)'!AM41","v":"Dec 2012"},{"$f":"'(Intermediate Computations)'!AO41","v":"Jan 2013"},{"$f":"'(Intermediate Computations)'!AP41","v":"Feb 2013"},{"$f":"'(Intermediate Computations)'!AQ41","v":"Mar 2013"},{"$f":"'(Intermediate Computations)'!AR41","v":"Apr 2013"},{"$f":"'(Intermediate Computations)'!AS41","v":"May 2013"},{"$f":"'(Intermediate Computations)'!AT41","v":"Jun 2013"},{"$f":"'(Intermediate Computations)'!AU41","v":"Jul 2013"},{"$f":"'(Intermediate Computations)'!AV41","v":"Aug 2013"},{"$f":"'(Intermediate Computations)'!AW41","v":"Sep 2013"},{"$f":"'(Intermediate Computations)'!AX41","v":"Oct 2013"},{"$f":"'(Intermediate Computations)'!AY41","v":"Nov 2013"},{"$f":"'(Intermediate Computations)'!AZ41","v":"Dec 2013"},{"$f":"'(Intermediate Computations)'!BB41","v":"Jan 2014"},{"$f":"'(Intermediate Computations)'!BC41","v":"Feb 2014"},{"$f":"'(Intermediate Computations)'!BD41","v":"Mar 2014"},{"$f":"'(Intermediate Computations)'!BE41","v":"Apr 2014"},{"$f":"'(Intermediate Computations)'!BF41","v":"May 2014"},{"$f":"'(Intermediate Computations)'!BG41","v":"Jun 2014"},{"$f":"'(Intermediate Computations)'!BH41","v":"Jul 2014"},{"$f":"'(Intermediate Computations)'!BI41","v":"Aug 2014"},{"$f":"'(Intermediate Computations)'!BJ41","v":"Sep 2014"},{"$f":"'(Intermediate Computations)'!BK41","v":"Oct 2014"},{"$f":"'(Intermediate Computations)'!BL41","v":"Nov 2014"},{"$f":"'(Intermediate Computations)'!BM41","v":"Dec 2014"},{"$f":"'(Intermediate Computations)'!BO41","v":"Jan 2015"},{"$f":"'(Intermediate Computations)'!BP41","v":"Feb 2015"},{"$f":"'(Intermediate Computations)'!BQ41","v":"Mar 2015"},{"$f":"'(Intermediate Computations)'!BR41","v":"Apr 2015"},{"$f":"'(Intermediate Computations)'!BS41","v":"May 2015"},{"$f":"'(Intermediate Computations)'!BT41","v":"Jun 2015"},{"$f":"'(Intermediate Computations)'!BU41","v":"Jul 2015"},{"$f":"'(Intermediate Computations)'!BV41","v":"Aug 2015"},{"$f":"'(Intermediate Computations)'!BW41","v":"Sep 2015"},{"$f":"'(Intermediate Computations)'!BX41","v":"Oct 2015"},{"$f":"'(Intermediate Computations)'!BY41","v":"Nov 2015"},{"$f":"'(Intermediate Computations)'!BZ41","v":"Dec 2015"},{"$f":"'(Intermediate Computations)'!CB41","v":"Jan 2016"},{"$f":"'(Intermediate Computations)'!CC41","v":"Feb 2016"},{"$f":"'(Intermediate Computations)'!CD41","v":"Mar 2016"},{"$f":"'(Intermediate Computations)'!CE41","v":"Apr 2016"},{"$f":"'(Intermediate Computations)'!CF41","v":"May 2016"},{"$f":"'(Intermediate Computations)'!CG41","v":"Jun 2016"},{"$f":"'(Intermediate Computations)'!CH41","v":"Jul 2016"},{"$f":"'(Intermediate Computations)'!CI41","v":"Aug 2016"},{"$f":"'(Intermediate Computations)'!CJ41","v":"Sep 2016"},{"$f":"'(Intermediate Computations)'!CK41","v":"Oct 2016"},{"$f":"'(Intermediate Computations)'!CL41","v":"Nov 2016"},{"$f":"'(Intermediate Computations)'!CM41","v":"Dec 2016"},{"$f":"'(Intermediate Computations)'!CO41","v":"Jan 2017"},{"$f":"'(Intermediate Computations)'!CP41","v":"Feb 2017"},{"$f":"'(Intermediate Computations)'!CQ41","v":"Mar 2017"},{"$f":"'(Intermediate Computations)'!CR41","v":"Apr 2017"},{"$f":"'(Intermediate Computations)'!CS41","v":"May 2017"},{"$f":"'(Intermediate Computations)'!CT41","v":"Jun 2017"},{"$f":"'(Intermediate Computations)'!CU41","v":"Jul 2017"},{"$f":"'(Intermediate Computations)'!CV41","v":"Aug 2017"},{"$f":"'(Intermediate Computations)'!CW41","v":"Sep 2017"},{"$f":"'(Intermediate Computations)'!CX41","v":"Oct 2017"},{"$f":"'(Intermediate Computations)'!CY41","v":"Nov 2017"},{"$f":"'(Intermediate Computations)'!CZ41","v":"Dec 2017"},{"$f":"'(Intermediate Computations)'!DB41","v":"Jan 2018"},{"$f":"'(Intermediate Computations)'!DC41","v":"Feb 2018"},{"$f":"'(Intermediate Computations)'!DD41","v":"Mar 2018"},{"$f":"'(Intermediate Computations)'!DE41","v":"Apr 2018"},{"$f":"'(Intermediate Computations)'!DF41","v":"May 2018"},{"$f":"'(Intermediate Computations)'!DG41","v":"Jun 2018"},{"$f":"'(Intermediate Computations)'!DH41","v":"Jul 2018"},{"$f":"'(Intermediate Computations)'!DI41","v":"Aug 2018"},{"$f":"'(Intermediate Computations)'!DJ41","v":"Sep 2018"},{"$f":"'(Intermediate Computations)'!DK41","v":"Oct 2018"},{"$f":"'(Intermediate Computations)'!DL41","v":"Nov 2018"},{"$f":"'(Intermediate Computations)'!DM41","v":"Dec 2018"},{"$f":"'(Intermediate Computations)'!DO41","v":"Jan 2019"},{"$f":"'(Intermediate Computations)'!DP41","v":"Feb 2019"},{"$f":"'(Intermediate Computations)'!DQ41","v":"Mar 2019"},{"$f":"'(Intermediate Computations)'!DR41","v":"Apr 2019"},{"$f":"'(Intermediate Computations)'!DS41","v":"May 2019"},{"$f":"'(Intermediate Computations)'!DT41","v":"Jun 2019"},{"$f":"'(Intermediate Computations)'!DU41","v":"Jul 2019"},{"$f":"'(Intermediate Computations)'!DV41","v":"Aug 2019"},{"$f":"'(Intermediate Computations)'!DW41","v":"Sep 2019"},{"$f":"'(Intermediate Computations)'!DX41","v":"Oct 2019"},{"$f":"'(Intermediate Computations)'!DY41","v":"Nov 2019"},{"$f":"'(Intermediate Computations)'!DZ41","v":"Dec 2019"},{"$f":"'(Intermediate Computations)'!EB41","v":"Jan 2020"},{"$f":"'(Intermediate Computations)'!EC41","v":"Feb 2020"},{"$f":"'(Intermediate Computations)'!ED41","v":"Mar 2020"},{"$f":"'(Intermediate Computations)'!EE41","v":"Apr 2020"},{"$f":"'(Intermediate Computations)'!EF41","v":"May 2020"},{"$f":"'(Intermediate Computations)'!EG41","v":"Jun 2020"},{"$f":"'(Intermediate Computations)'!EH41","v":"Jul 2020"},{"$f":"'(Intermediate Computations)'!EI41","v":"Aug 2020"},{"$f":"'(Intermediate Computations)'!EJ41","v":"Sep 2020"},{"$f":"'(Intermediate Computations)'!EK41","v":"Oct 2020"},{"$f":"'(Intermediate Computations)'!EL41","v":"Nov 2020"},{"$f":"'(Intermediate Computations)'!EM41","v":"Dec 2020"}]
[{"$f":"'(Intermediate Computations)'!B38","v":"2010-01-01"},{"$f":"'(Intermediate Computations)'!C38","v":"2010-02-01"},{"$f":"'(Intermediate Computations)'!D38","v":"2010-03-01"},{"$f":"'(Intermediate Computations)'!E38","v":"2010-04-01"},{"$f":"'(Intermediate Computations)'!F38","v":"2010-05-01"},{"$f":"'(Intermediate Computations)'!G38","v":"2010-06-01"},{"$f":"'(Intermediate Computations)'!H38","v":"2010-07-01"},{"$f":"'(Intermediate Computations)'!I38","v":"2010-08-01"},{"$f":"'(Intermediate Computations)'!J38","v":"2010-09-01"},{"$f":"'(Intermediate Computations)'!K38","v":"2010-10-01"},{"$f":"'(Intermediate Computations)'!L38","v":"2010-11-01"},{"$f":"'(Intermediate Computations)'!M38","v":"2010-12-01"},{"$f":"'(Intermediate Computations)'!O38","v":"2011-01-01"},{"$f":"'(Intermediate Computations)'!P38","v":"2011-02-01"},{"$f":"'(Intermediate Computations)'!Q38","v":"2011-03-01"},{"$f":"'(Intermediate Computations)'!R38","v":"2011-04-01"},{"$f":"'(Intermediate Computations)'!S38","v":"2011-05-01"},{"$f":"'(Intermediate Computations)'!T38","v":"2011-06-01"},{"$f":"'(Intermediate Computations)'!U38","v":"2011-07-01"},{"$f":"'(Intermediate Computations)'!V38","v":"2011-08-01"},{"$f":"'(Intermediate Computations)'!W38","v":"2011-09-01"},{"$f":"'(Intermediate Computations)'!X38","v":"2011-10-01"},{"$f":"'(Intermediate Computations)'!Y38","v":"2011-11-01"},{"$f":"'(Intermediate Computations)'!Z38","v":"2011-12-01"},{"$f":"'(Intermediate Computations)'!AB38","v":"2012-01-01"},{"$f":"'(Intermediate Computations)'!AC38","v":"2012-02-01"},{"$f":"'(Intermediate Computations)'!AD38","v":"2012-03-01"},{"$f":"'(Intermediate Computations)'!AE38","v":"2012-04-01"},{"$f":"'(Intermediate Computations)'!AF38","v":"2012-05-01"},{"$f":"'(Intermediate Computations)'!AG38","v":"2012-06-01"},{"$f":"'(Intermediate Computations)'!AH38","v":"2012-07-01"},{"$f":"'(Intermediate Computations)'!AI38","v":"2012-08-01"},{"$f":"'(Intermediate Computations)'!AJ38","v":"2012-09-01"},{"$f":"'(Intermediate Computations)'!AK38","v":"2012-10-01"},{"$f":"'(Intermediate Computations)'!AL38","v":"2012-11-01"},{"$f":"'(Intermediate Computations)'!AM38","v":"2012-12-01"},{"$f":"'(Intermediate Computations)'!AO38","v":"2013-01-01"},{"$f":"'(Intermediate Computations)'!AP38","v":"2013-02-01"},{"$f":"'(Intermediate Computations)'!AQ38","v":"2013-03-01"},{"$f":"'(Intermediate Computations)'!AR38","v":"2013-04-01"},{"$f":"'(Intermediate Computations)'!AS38","v":"2013-05-01"},{"$f":"'(Intermediate Computations)'!AT38","v":"2013-06-01"},{"$f":"'(Intermediate Computations)'!AU38","v":"2013-07-01"},{"$f":"'(Intermediate Computations)'!AV38","v":"2013-08-01"},{"$f":"'(Intermediate Computations)'!AW38","v":"2013-09-01"},{"$f":"'(Intermediate Computations)'!AX38","v":"2013-10-01"},{"$f":"'(Intermediate Computations)'!AY38","v":"2013-11-01"},{"$f":"'(Intermediate Computations)'!AZ38","v":"2013-12-01"},{"$f":"'(Intermediate Computations)'!BB38","v":"2014-01-01"},{"$f":"'(Intermediate Computations)'!BC38","v":"2014-02-01"},{"$f":"'(Intermediate Computations)'!BD38","v":"2014-03-01"},{"$f":"'(Intermediate Computations)'!BE38","v":"2014-04-01"},{"$f":"'(Intermediate Computations)'!BF38","v":"2014-05-01"},{"$f":"'(Intermediate Computations)'!BG38","v":"2014-06-01"},{"$f":"'(Intermediate Computations)'!BH38","v":"2014-07-01"},{"$f":"'(Intermediate Computations)'!BI38","v":"2014-08-01"},{"$f":"'(Intermediate Computations)'!BJ38","v":"2014-09-01"},{"$f":"'(Intermediate Computations)'!BK38","v":"2014-10-01"},{"$f":"'(Intermediate Computations)'!BL38","v":"2014-11-01"},{"$f":"'(Intermediate Computations)'!BM38","v":"2014-12-01"},{"$f":"'(Intermediate Computations)'!BO38","v":"2015-01-01"},{"$f":"'(Intermediate Computations)'!BP38","v":"2015-02-01"},{"$f":"'(Intermediate Computations)'!BQ38","v":"2015-03-01"},{"$f":"'(Intermediate Computations)'!BR38","v":"2015-04-01"},{"$f":"'(Intermediate Computations)'!BS38","v":"2015-05-01"},{"$f":"'(Intermediate Computations)'!BT38","v":"2015-06-01"},{"$f":"'(Intermediate Computations)'!BU38","v":"2015-07-01"},{"$f":"'(Intermediate Computations)'!BV38","v":"2015-08-01"},{"$f":"'(Intermediate Computations)'!BW38","v":"2015-09-01"},{"$f":"'(Intermediate Computations)'!BX38","v":"2015-10-01"},{"$f":"'(Intermediate Computations)'!BY38","v":"2015-11-01"},{"$f":"'(Intermediate Computations)'!BZ38","v":"2015-12-01"},{"$f":"'(Intermediate Computations)'!CB38","v":"2016-01-01"},{"$f":"'(Intermediate Computations)'!CC38","v":"2016-02-01"},{"$f":"'(Intermediate Computations)'!CD38","v":"2016-03-01"},{"$f":"'(Intermediate Computations)'!CE38","v":"2016-04-01"},{"$f":"'(Intermediate Computations)'!CF38","v":"2016-05-01"},{"$f":"'(Intermediate Computations)'!CG38","v":"2016-06-01"},{"$f":"'(Intermediate Computations)'!CH38","v":"2016-07-01"},{"$f":"'(Intermediate Computations)'!CI38","v":"2016-08-01"},{"$f":"'(Intermediate Computations)'!CJ38","v":"2016-09-01"},{"$f":"'(Intermediate Computations)'!CK38","v":"2016-10-01"},{"$f":"'(Intermediate Computations)'!CL38","v":"2016-11-01"},{"$f":"'(Intermediate Computations)'!CM38","v":"2016-12-01"},{"$f":"'(Intermediate Computations)'!CO38","v":"2017-01-01"},{"$f":"'(Intermediate Computations)'!CP38","v":"2017-02-01"},{"$f":"'(Intermediate Computations)'!CQ38","v":"2017-03-01"},{"$f":"'(Intermediate Computations)'!CR38","v":"2017-04-01"},{"$f":"'(Intermediate Computations)'!CS38","v":"2017-05-01"},{"$f":"'(Intermediate Computations)'!CT38","v":"2017-06-01"},{"$f":"'(Intermediate Computations)'!CU38","v":"2017-07-01"},{"$f":"'(Intermediate Computations)'!CV38","v":"2017-08-01"},{"$f":"'(Intermediate Computations)'!CW38","v":"2017-09-01"},{"$f":"'(Intermediate Computations)'!CX38","v":"2017-10-01"},{"$f":"'(Intermediate Computations)'!CY38","v":"2017-11-01"},{"$f":"'(Intermediate Computations)'!CZ38","v":"2017-12-01"},{"$f":"'(Intermediate Computations)'!DB38","v":"2018-01-01"},{"$f":"'(Intermediate Computations)'!DC38","v":"2018-02-01"},{"$f":"'(Intermediate Computations)'!DD38","v":"2018-03-01"},{"$f":"'(Intermediate Computations)'!DE38","v":"2018-04-01"},{"$f":"'(Intermediate Computations)'!DF38","v":"2018-05-01"},{"$f":"'(Intermediate Computations)'!DG38","v":"2018-06-01"},{"$f":"'(Intermediate Computations)'!DH38","v":"2018-07-01"},{"$f":"'(Intermediate Computations)'!DI38","v":"2018-08-01"},{"$f":"'(Intermediate Computations)'!DJ38","v":"2018-09-01"},{"$f":"'(Intermediate Computations)'!DK38","v":"2018-10-01"},{"$f":"'(Intermediate Computations)'!DL38","v":"2018-11-01"},{"$f":"'(Intermediate Computations)'!DM38","v":"2018-12-01"},{"$f":"'(Intermediate Computations)'!DO38","v":"2019-01-01"},{"$f":"'(Intermediate Computations)'!DP38","v":"2019-02-01"},{"$f":"'(Intermediate Computations)'!DQ38","v":"2019-03-01"},{"$f":"'(Intermediate Computations)'!DR38","v":"2019-04-01"},{"$f":"'(Intermediate Computations)'!DS38","v":"2019-05-01"},{"$f":"'(Intermediate Computations)'!DT38","v":"2019-06-01"},{"$f":"'(Intermediate Computations)'!DU38","v":"2019-07-01"},{"$f":"'(Intermediate Computations)'!DV38","v":"2019-08-01"},{"$f":"'(Intermediate Computations)'!DW38","v":"2019-09-01"},{"$f":"'(Intermediate Computations)'!DX38","v":"2019-10-01"},{"$f":"'(Intermediate Computations)'!DY38","v":"2019-11-01"},{"$f":"'(Intermediate Computations)'!DZ38","v":"2019-12-01"},{"$f":"'(Intermediate Computations)'!EB38","v":"2020-01-01"},{"$f":"'(Intermediate Computations)'!EC38","v":"2020-02-01"},{"$f":"'(Intermediate Computations)'!ED38","v":"2020-03-01"},{"$f":"'(Intermediate Computations)'!EE38","v":"2020-04-01"},{"$f":"'(Intermediate Computations)'!EF38","v":"2020-05-01"},{"$f":"'(Intermediate Computations)'!EG38","v":"2020-06-01"},{"$f":"'(Intermediate Computations)'!EH38","v":"2020-07-01"},{"$f":"'(Intermediate Computations)'!EI38","v":"2020-08-01"},{"$f":"'(Intermediate Computations)'!EJ38","v":"2020-09-01"},{"$f":"'(Intermediate Computations)'!EK38","v":"2020-10-01"},{"$f":"'(Intermediate Computations)'!EL38","v":"2020-11-01"},{"$f":"'(Intermediate Computations)'!EM38","v":"2020-12-01"}]
[{"$f":"'Trial 1'!B44","v":{"v":1202158.8188205096,"d":"$1,202,159"}},{"$f":"'Trial 1'!C44","v":{"v":1120046.0208096842,"d":"$1,120,046"}},{"$f":"'Trial 1'!D44","v":{"v":1176579.521708906,"d":"$1,176,580"}},{"$f":"'Trial 1'!E44","v":{"v":1150960.4530835971,"d":"$1,150,960"}},{"$f":"'Trial 1'!F44","v":{"v":1158953.1925051573,"d":"$1,158,953"}},{"$f":"'Trial 1'!G44","v":{"v":1167737.7989990788,"d":"$1,167,738"}},{"$f":"'Trial 1'!H44","v":{"v":1193344.4773600958,"d":"$1,193,344"}},{"$f":"'Trial 1'!I44","v":{"v":1158896.345576658,"d":"$1,158,896"}},{"$f":"'Trial 1'!J44","v":{"v":1170161.7884688792,"d":"$1,170,162"}},{"$f":"'Trial 1'!K44","v":{"v":1169518.774204116,"d":"$1,169,519"}},{"$f":"'Trial 1'!L44","v":{"v":1157920.4084569009,"d":"$1,157,920"}},{"$f":"'Trial 1'!M44","v":{"v":1191684.9409092965,"d":"$1,191,685"}},{"$f":"'Trial 1'!O44","v":{"v":1131990.3261856257,"d":"$1,131,990"}},{"$f":"'Trial 1'!P44","v":{"v":1179513.1351583593,"d":"$1,179,513"}},{"$f":"'Trial 1'!Q44","v":{"v":1144089.7440212,"d":"$1,144,090"}},{"$f":"'Trial 1'!R44","v":{"v":1147818.4043558883,"d":"$1,147,818"}},{"$f":"'Trial 1'!S44","v":{"v":1130030.6160882455,"d":"$1,130,031"}},{"$f":"'Trial 1'!T44","v":{"v":1108749.250401013,"d":"$1,108,749"}},{"$f":"'Trial 1'!U44","v":{"v":1120462.2479678858,"d":"$1,120,462"}},{"$f":"'Trial 1'!V44","v":{"v":1138835.6724531918,"d":"$1,138,836"}},{"$f":"'Trial 1'!W44","v":{"v":1151352.3460307138,"d":"$1,151,352"}},{"$f":"'Trial 1'!X44","v":{"v":1140588.1692439315,"d":"$1,140,588"}},{"$f":"'Trial 1'!Y44","v":{"v":1173848.153134745,"d":"$1,173,848"}},{"$f":"'Trial 1'!Z44","v":{"v":1129365.432508057,"d":"$1,129,365"}},{"$f":"'Trial 1'!AB44","v":{"v":1125699.2874020082,"d":"$1,125,699"}},{"$f":"'Trial 1'!AC44","v":{"v":1142321.566732226,"d":"$1,142,322"}},{"$f":"'Trial 1'!AD44","v":{"v":1165262.6856283376,"d":"$1,165,263"}},{"$f":"'Trial 1'!AE44","v":{"v":1101811.0611111962,"d":"$1,101,811"}},{"$f":"'Trial 1'!AF44","v":{"v":1100619.991793125,"d":"$1,100,620"}},{"$f":"'Trial 1'!AG44","v":{"v":1133813.9533655418,"d":"$1,133,814"}},{"$f":"'Trial 1'!AH44","v":{"v":1128428.3730587459,"d":"$1,128,428"}},{"$f":"'Trial 1'!AI44","v":{"v":1103224.4646810032,"d":"$1,103,224"}},{"$f":"'Trial 1'!AJ44","v":{"v":1091495.9624810736,"d":"$1,091,496"}},{"$f":"'Trial 1'!AK44","v":{"v":1129415.0791500201,"d":"$1,129,415"}},{"$f":"'Trial 1'!AL44","v":{"v":1154246.134901398,"d":"$1,154,246"}},{"$f":"'Trial 1'!AM44","v":{"v":1157174.095410595,"d":"$1,157,174"}},{"$f":"'Trial 1'!AO44","v":{"v":1058324.8828199957,"d":"$1,058,325"}},{"$f":"'Trial 1'!AP44","v":{"v":1106228.5641979608,"d":"$1,106,229"}},{"$f":"'Trial 1'!AQ44","v":{"v":1151833.5018172043,"d":"$1,151,834"}},{"$f":"'Trial 1'!AR44","v":{"v":1099387.348581596,"d":"$1,099,387"}},{"$f":"'Trial 1'!AS44","v":{"v":1094197.711639903,"d":"$1,094,198"}},{"$f":"'Trial 1'!AT44","v":{"v":1089778.9674376962,"d":"$1,089,779"}},{"$f":"'Trial 1'!AU44","v":{"v":1094127.125721732,"d":"$1,094,127"}},{"$f":"'Trial 1'!AV44","v":{"v":1134962.5260957472,"d":"$1,134,963"}},{"$f":"'Trial 1'!AW44","v":{"v":1094705.128779793,"d":"$1,094,705"}},{"$f":"'Trial 1'!AX44","v":{"v":1058889.7833340273,"d":"$1,058,890"}},{"$f":"'Trial 1'!AY44","v":{"v":1144767.7190854647,"d":"$1,144,768"}},{"$f":"'Trial 1'!AZ44","v":{"v":1090490.0200917968,"d":"$1,090,490"}},{"$f":"'Trial 1'!BB44","v":{"v":1076248.6049553477,"d":"$1,076,249"}},{"$f":"'Trial 1'!BC44","v":{"v":1107858.912307943,"d":"$1,107,859"}},{"$f":"'Trial 1'!BD44","v":{"v":1128669.3804930768,"d":"$1,128,669"}},{"$f":"'Trial 1'!BE44","v":{"v":1115198.6700131216,"d":"$1,115,199"}},{"$f":"'Trial 1'!BF44","v":{"v":1072806.6244199893,"d":"$1,072,807"}},{"$f":"'Trial 1'!BG44","v":{"v":1116634.0787528118,"d":"$1,116,634"}},{"$f":"'Trial 1'!BH44","v":{"v":1119585.4391275798,"d":"$1,119,585"}},{"$f":"'Trial 1'!BI44","v":{"v":1147895.2329545743,"d":"$1,147,895"}},{"$f":"'Trial 1'!BJ44","v":{"v":1130624.4000775297,"d":"$1,130,624"}},{"$f":"'Trial 1'!BK44","v":{"v":1142656.3674920727,"d":"$1,142,656"}},{"$f":"'Trial 1'!BL44","v":{"v":1109319.181175501,"d":"$1,109,319"}},{"$f":"'Trial 1'!BM44","v":{"v":1066106.6155200636,"d":"$1,066,107"}},{"$f":"'Trial 1'!BO44","v":{"v":1120816.2186580258,"d":"$1,120,816"}},{"$f":"'Trial 1'!BP44","v":{"v":1129337.7730638864,"d":"$1,129,338"}},{"$f":"'Trial 1'!BQ44","v":{"v":1074930.0683027564,"d":"$1,074,930"}},{"$f":"'Trial 1'!BR44","v":{"v":1077914.1972567919,"d":"$1,077,914"}},{"$f":"'Trial 1'!BS44","v":{"v":1053691.216235684,"d":"$1,053,691"}},{"$f":"'Trial 1'!BT44","v":{"v":1089978.5906917932,"d":"$1,089,979"}},{"$f":"'Trial 1'!BU44","v":{"v":1089652.9836748883,"d":"$1,089,653"}},{"$f":"'Trial 1'!BV44","v":{"v":1079708.731802427,"d":"$1,079,709"}},{"$f":"'Trial 1'!BW44","v":{"v":1109665.3637794233,"d":"$1,109,665"}},{"$f":"'Trial 1'!BX44","v":{"v":1057289.6928044616,"d":"$1,057,290"}},{"$f":"'Trial 1'!BY44","v":{"v":1085169.0516231724,"d":"$1,085,169"}},{"$f":"'Trial 1'!BZ44","v":{"v":1080860.1223182774,"d":"$1,080,860"}},{"$f":"'Trial 1'!CB44","v":{"v":1076188.3896332546,"d":"$1,076,188"}},{"$f":"'Trial 1'!CC44","v":{"v":1050236.5089379037,"d":"$1,050,237"}},{"$f":"'Trial 1'!CD44","v":{"v":1027542.6974705146,"d":"$1,027,543"}},{"$f":"'Trial 1'!CE44","v":{"v":1085458.462535213,"d":"$1,085,458"}},{"$f":"'Trial 1'!CF44","v":{"v":1089184.0472493505,"d":"$1,089,184"}},{"$f":"'Trial 1'!CG44","v":{"v":1047247.5798847037,"d":"$1,047,248"}},{"$f":"'Trial 1'!CH44","v":{"v":1086566.3231544194,"d":"$1,086,566"}},{"$f":"'Trial 1'!CI44","v":{"v":1021882.5741336292,"d":"$1,021,883"}},{"$f":"'Trial 1'!CJ44","v":{"v":1054085.3151911602,"d":"$1,054,085"}},{"$f":"'Trial 1'!CK44","v":{"v":1084908.5386761655,"d":"$1,084,909"}},{"$f":"'Trial 1'!CL44","v":{"v":1076639.258560872,"d":"$1,076,639"}},{"$f":"'Trial 1'!CM44","v":{"v":1026806.0316729833,"d":"$1,026,806"}},{"$f":"'Trial 1'!CO44","v":{"v":1009725.2602037055,"d":"$1,009,725"}},{"$f":"'Trial 1'!CP44","v":{"v":1065342.6547314608,"d":"$1,065,343"}},{"$f":"'Trial 1'!CQ44","v":{"v":1082309.9423136879,"d":"$1,082,310"}},{"$f":"'Trial 1'!CR44","v":{"v":1056619.709678759,"d":"$1,056,620"}},{"$f":"'Trial 1'!CS44","v":{"v":1027089.0065952629,"d":"$1,027,089"}},{"$f":"'Trial 1'!CT44","v":{"v":1026483.4471757475,"d":"$1,026,483"}},{"$f":"'Trial 1'!CU44","v":{"v":1019805.7016993022,"d":"$1,019,806"}},{"$f":"'Trial 1'!CV44","v":{"v":1040052.7043301852,"d":"$1,040,053"}},{"$f":"'Trial 1'!CW44","v":{"v":1014665.0997594745,"d":"$1,014,665"}},{"$f":"'Trial 1'!CX44","v":{"v":1004370.1120886315,"d":"$1,004,370"}},{"$f":"'Trial 1'!CY44","v":{"v":1069475.899217004,"d":"$1,069,476"}},{"$f":"'Trial 1'!CZ44","v":{"v":1066357.062729511,"d":"$1,066,357"}},{"$f":"'Trial 1'!DB44","v":{"v":1002963.6814835262,"d":"$1,002,964"}},{"$f":"'Trial 1'!DC44","v":{"v":1042812.1120806794,"d":"$1,042,812"}},{"$f":"'Trial 1'!DD44","v":{"v":1049631.944018306,"d":"$1,049,632"}},{"$f":"'Trial 1'!DE44","v":{"v":1076514.4172322552,"d":"$1,076,514"}},{"$f":"'Trial 1'!DF44","v":{"v":1001153.7377882834,"d":"$1,001,154"}},{"$f":"'Trial 1'!DG44","v":{"v":1021781.8907492439,"d":"$1,021,782"}},{"$f":"'Trial 1'!DH44","v":{"v":1067899.070961904,"d":"$1,067,899"}},{"$f":"'Trial 1'!DI44","v":{"v":1041610.2883685015,"d":"$1,041,610"}},{"$f":"'Trial 1'!DJ44","v":{"v":1090165.931531885,"d":"$1,090,166"}},{"$f":"'Trial 1'!DK44","v":{"v":1035992.7199427593,"d":"$1,035,993"}},{"$f":"'Trial 1'!DL44","v":{"v":1042371.0741661028,"d":"$1,042,371"}},{"$f":"'Trial 1'!DM44","v":{"v":1074099.72885628,"d":"$1,074,100"}},{"$f":"'Trial 1'!DO44","v":{"v":1001551.1567370136,"d":"$1,001,551"}},{"$f":"'Trial 1'!DP44","v":{"v":1000982.552735646,"d":"$1,000,983"}},{"$f":"'Trial 1'!DQ44","v":{"v":1033102.5135184453,"d":"$1,033,103"}},{"$f":"'Trial 1'!DR44","v":{"v":1029684.0997723099,"d":"$1,029,684"}},{"$f":"'Trial 1'!DS44","v":{"v":1013501.7759753838,"d":"$1,013,502"}},{"$f":"'Trial 1'!DT44","v":{"v":1018988.4081227804,"d":"$1,018,988"}},{"$f":"'Trial 1'!DU44","v":{"v":1075199.1561230032,"d":"$1,075,199"}},{"$f":"'Trial 1'!DV44","v":{"v":1051454.3810780635,"d":"$1,051,454"}},{"$f":"'Trial 1'!DW44","v":{"v":997169.5137239577,"d":"$997,170"}},{"$f":"'Trial 1'!DX44","v":{"v":1001392.3487505179,"d":"$1,001,392"}},{"$f":"'Trial 1'!DY44","v":{"v":1020718.8963805776,"d":"$1,020,719"}},{"$f":"'Trial 1'!DZ44","v":{"v":1027965.6388616653,"d":"$1,027,966"}},{"$f":"'Trial 1'!EB44","v":{"v":1030127.2999716471,"d":"$1,030,127"}},{"$f":"'Trial 1'!EC44","v":{"v":991104.2464743715,"d":"$991,104"}},{"$f":"'Trial 1'!ED44","v":{"v":976946.7398408419,"d":"$976,947"}},{"$f":"'Trial 1'!EE44","v":{"v":1057264.493174578,"d":"$1,057,264"}},{"$f":"'Trial 1'!EF44","v":{"v":995354.4123758442,"d":"$995,354"}},{"$f":"'Trial 1'!EG44","v":{"v":1010788.3005420117,"d":"$1,010,788"}},{"$f":"'Trial 1'!EH44","v":{"v":1045964.2543766703,"d":"$1,045,964"}},{"$f":"'Trial 1'!EI44","v":{"v":987138.7233040716,"d":"$987,139"}},{"$f":"'Trial 1'!EJ44","v":{"v":996157.512371684,"d":"$996,158"}},{"$f":"'Trial 1'!EK44","v":{"v":984618.4335678366,"d":"$984,618"}},{"$f":"'Trial 1'!EL44","v":{"v":1011582.4897197669,"d":"$1,011,582"}},{"$f":"'Trial 1'!EM44","v":{"v":994076.0435281956,"d":"$994,076"}}]
[{"$f":"'Trial 2'!B44","v":{"v":1175654.926432372,"d":"$1,175,655"}},{"$f":"'Trial 2'!C44","v":{"v":1216499.1556299657,"d":"$1,216,499"}},{"$f":"'Trial 2'!D44","v":{"v":1180238.3266088313,"d":"$1,180,238"}},{"$f":"'Trial 2'!E44","v":{"v":1171664.1189723471,"d":"$1,171,664"}},{"$f":"'Trial 2'!F44","v":{"v":1189628.7776975832,"d":"$1,189,629"}},{"$f":"'Trial 2'!G44","v":{"v":1187215.7929272922,"d":"$1,187,216"}},{"$f":"'Trial 2'!H44","v":{"v":1174144.73767831,"d":"$1,174,145"}},{"$f":"'Trial 2'!I44","v":{"v":1128095.8298228488,"d":"$1,128,096"}},{"$f":"'Trial 2'!J44","v":{"v":1217581.2744300256,"d":"$1,217,581"}},{"$f":"'Trial 2'!K44","v":{"v":1134878.124477945,"d":"$1,134,878"}},{"$f":"'Trial 2'!L44","v":{"v":1166060.5594397543,"d":"$1,166,061"}},{"$f":"'Trial 2'!M44","v":{"v":1199926.5266998792,"d":"$1,199,927"}},{"$f":"'Trial 2'!O44","v":{"v":1131088.5728899033,"d":"$1,131,089"}},{"$f":"'Trial 2'!P44","v":{"v":1109883.4959602077,"d":"$1,109,883"}},{"$f":"'Trial 2'!Q44","v":{"v":1202541.9097401064,"d":"$1,202,542"}},{"$f":"'Trial 2'!R44","v":{"v":1143332.1205889161,"d":"$1,143,332"}},{"$f":"'Trial 2'!S44","v":{"v":1170728.7611309562,"d":"$1,170,729"}},{"$f":"'Trial 2'!T44","v":{"v":1080237.545098617,"d":"$1,080,238"}},{"$f":"'Trial 2'!U44","v":{"v":1105659.3304914248,"d":"$1,105,659"}},{"$f":"'Trial 2'!V44","v":{"v":1128298.5026589811,"d":"$1,128,299"}},{"$f":"'Trial 2'!W44","v":{"v":1188242.2335332157,"d":"$1,188,242"}},{"$f":"'Trial 2'!X44","v":{"v":1153991.4659884742,"d":"$1,153,991"}},{"$f":"'Trial 2'!Y44","v":{"v":1166892.0631257675,"d":"$1,166,892"}},{"$f":"'Trial 2'!Z44","v":{"v":1124834.0262284055,"d":"$1,124,834"}},{"$f":"'Trial 2'!AB44","v":{"v":1116011.4961176754,"d":"$1,116,011"}},{"$f":"'Trial 2'!AC44","v":{"v":1084665.0069361622,"d":"$1,084,665"}},{"$f":"'Trial 2'!AD44","v":{"v":1146746.2776198478,"d":"$1,146,746"}},{"$f":"'Trial 2'!AE44","v":{"v":1118233.543099685,"d":"$1,118,234"}},{"$f":"'Trial 2'!AF44","v":{"v":1128062.3981155711,"d":"$1,128,062"}},{"$f":"'Trial 2'!AG44","v":{"v":1114823.043625788,"d":"$1,114,823"}},{"$f":"'Trial 2'!AH44","v":{"v":1125541.2986840673,"d":"$1,125,541"}},{"$f":"'Trial 2'!AI44","v":{"v":1107654.4052128685,"d":"$1,107,654"}},{"$f":"'Trial 2'!AJ44","v":{"v":1128289.1451222384,"d":"$1,128,289"}},{"$f":"'Trial 2'!AK44","v":{"v":1152260.6966067892,"d":"$1,152,261"}},{"$f":"'Trial 2'!AL44","v":{"v":1110826.1762918928,"d":"$1,110,826"}},{"$f":"'Trial 2'!AM44","v":{"v":1078373.387871296,"d":"$1,078,373"}},{"$f":"'Trial 2'!AO44","v":{"v":1083931.1094527575,"d":"$1,083,931"}},{"$f":"'Trial 2'!AP44","v":{"v":1082880.4587809066,"d":"$1,082,880"}},{"$f":"'Trial 2'!AQ44","v":{"v":1128504.8362256302,"d":"$1,128,505"}},{"$f":"'Trial 2'!AR44","v":{"v":1091509.9843161937,"d":"$1,091,510"}},{"$f":"'Trial 2'!AS44","v":{"v":1070806.728601455,"d":"$1,070,807"}},{"$f":"'Trial 2'!AT44","v":{"v":1099730.3369632447,"d":"$1,099,730"}},{"$f":"'Trial 2'!AU44","v":{"v":1138841.4414596984,"d":"$1,138,841"}},{"$f":"'Trial 2'!AV44","v":{"v":1117702.3329934326,"d":"$1,117,702"}},{"$f":"'Trial 2'!AW44","v":{"v":1142679.7258875633,"d":"$1,142,680"}},{"$f":"'Trial 2'!AX44","v":{"v":1116453.22125228,"d":"$1,116,453"}},{"$f":"'Trial 2'!AY44","v":{"v":1044369.2441354354,"d":"$1,044,369"}},{"$f":"'Trial 2'!AZ44","v":{"v":1080213.5082777678,"d":"$1,080,214"}},{"$f":"'Trial 2'!BB44","v":{"v":1098380.1635124371,"d":"$1,098,380"}},{"$f":"'Trial 2'!BC44","v":{"v":1115754.3960596558,"d":"$1,115,754"}},{"$f":"'Trial 2'!BD44","v":{"v":1073029.0089211883,"d":"$1,073,029"}},{"$f":"'Trial 2'!BE44","v":{"v":1076697.4308441675,"d":"$1,076,697"}},{"$f":"'Trial 2'!BF44","v":{"v":1128132.2756869756,"d":"$1,128,132"}},{"$f":"'Trial 2'!BG44","v":{"v":1084801.1964147522,"d":"$1,084,801"}},{"$f":"'Trial 2'!BH44","v":{"v":1063157.6608053634,"d":"$1,063,158"}},{"$f":"'Trial 2'!BI44","v":{"v":1100876.1572159175,"d":"$1,100,876"}},{"$f":"'Trial 2'!BJ44","v":{"v":1075483.0792809983,"d":"$1,075,483"}},{"$f":"'Trial 2'!BK44","v":{"v":1035787.186552716,"d":"$1,035,787"}},{"$f":"'Trial 2'!BL44","v":{"v":1033916.391461075,"d":"$1,033,916"}},{"$f":"'Trial 2'!BM44","v":{"v":1128784.0704472219,"d":"$1,128,784"}},{"$f":"'Trial 2'!BO44","v":{"v":1053163.9412302002,"d":"$1,053,164"}},{"$f":"'Trial 2'!BP44","v":{"v":1080150.8676080187,"d":"$1,080,151"}},{"$f":"'Trial 2'!BQ44","v":{"v":1090710.0933758728,"d":"$1,090,710"}},{"$f":"'Trial 2'!BR44","v":{"v":1085208.11272716,"d":"$1,085,208"}},{"$f":"'Trial 2'!BS44","v":{"v":1073097.0594817838,"d":"$1,073,097"}},{"$f":"'Trial 2'!BT44","v":{"v":1023245.0817754384,"d":"$1,023,245"}},{"$f":"'Trial 2'!BU44","v":{"v":1050948.0514486542,"d":"$1,050,948"}},{"$f":"'Trial 2'!BV44","v":{"v":1107222.5959518524,"d":"$1,107,223"}},{"$f":"'Trial 2'!BW44","v":{"v":1074543.7087763196,"d":"$1,074,544"}},{"$f":"'Trial 2'!BX44","v":{"v":1052663.880323676,"d":"$1,052,664"}},{"$f":"'Trial 2'!BY44","v":{"v":1094880.6036254875,"d":"$1,094,881"}},{"$f":"'Trial 2'!BZ44","v":{"v":1078897.7802544727,"d":"$1,078,898"}},{"$f":"'Trial 2'!CB44","v":{"v":1114491.9758501032,"d":"$1,114,492"}},{"$f":"'Trial 2'!CC44","v":{"v":1100781.8592925859,"d":"$1,100,782"}},{"$f":"'Trial 2'!CD44","v":{"v":1064632.196647075,"d":"$1,064,632"}},{"$f":"'Trial 2'!CE44","v":{"v":1065695.7460209813,"d":"$1,065,696"}},{"$f":"'Trial 2'!CF44","v":{"v":1083912.4642171478,"d":"$1,083,912"}},{"$f":"'Trial 2'!CG44","v":{"v":1041341.7185893086,"d":"$1,041,342"}},{"$f":"'Trial 2'!CH44","v":{"v":1081781.4745774271,"d":"$1,081,781"}},{"$f":"'Trial 2'!CI44","v":{"v":1082632.7760130623,"d":"$1,082,633"}},{"$f":"'Trial 2'!CJ44","v":{"v":1110023.4328922112,"d":"$1,110,023"}},{"$f":"'Trial 2'!CK44","v":{"v":1015918.8287063236,"d":"$1,015,919"}},{"$f":"'Trial 2'!CL44","v":{"v":1059260.128886255,"d":"$1,059,260"}},{"$f":"'Trial 2'!CM44","v":{"v":1099048.1054557187,"d":"$1,099,048"}},{"$f":"'Trial 2'!CO44","v":{"v":1035388.8655386878,"d":"$1,035,389"}},{"$f":"'Trial 2'!CP44","v":{"v":1047610.100422246,"d":"$1,047,610"}},{"$f":"'Trial 2'!CQ44","v":{"v":1062779.0634101636,"d":"$1,062,779"}},{"$f":"'Trial 2'!CR44","v":{"v":1031798.8801251311,"d":"$1,031,799"}},{"$f":"'Trial 2'!CS44","v":{"v":1061475.5130285507,"d":"$1,061,476"}},{"$f":"'Trial 2'!CT44","v":{"v":1006767.4143170507,"d":"$1,006,767"}},{"$f":"'Trial 2'!CU44","v":{"v":1092928.2898533687,"d":"$1,092,928"}},{"$f":"'Trial 2'!CV44","v":{"v":991068.8778923855,"d":"$991,069"}},{"$f":"'Trial 2'!CW44","v":{"v":1063651.2561803814,"d":"$1,063,651"}},{"$f":"'Trial 2'!CX44","v":{"v":1104247.7930448104,"d":"$1,104,248"}},{"$f":"'Trial 2'!CY44","v":{"v":1009816.6110620139,"d":"$1,009,817"}},{"$f":"'Trial 2'!CZ44","v":{"v":1042972.59722063,"d":"$1,042,973"}},{"$f":"'Trial 2'!DB44","v":{"v":1043718.799810619,"d":"$1,043,719"}},{"$f":"'Trial 2'!DC44","v":{"v":1032008.7030430408,"d":"$1,032,009"}},{"$f":"'Trial 2'!DD44","v":{"v":1050826.61682897,"d":"$1,050,827"}},{"$f":"'Trial 2'!DE44","v":{"v":1039582.3036894519,"d":"$1,039,582"}},{"$f":"'Trial 2'!DF44","v":{"v":1068467.3796826524,"d":"$1,068,467"}},{"$f":"'Trial 2'!DG44","v":{"v":1016956.0834135473,"d":"$1,016,956"}},{"$f":"'Trial 2'!DH44","v":{"v":1022430.5422559188,"d":"$1,022,431"}},{"$f":"'Trial 2'!DI44","v":{"v":1024846.074291284,"d":"$1,024,846"}},{"$f":"'Trial 2'!DJ44","v":{"v":1038654.9102389631,"d":"$1,038,655"}},{"$f":"'Trial 2'!DK44","v":{"v":1063890.6943909358,"d":"$1,063,891"}},{"$f":"'Trial 2'!DL44","v":{"v":1082366.0762371935,"d":"$1,082,366"}},{"$f":"'Trial 2'!DM44","v":{"v":985459.1523384944,"d":"$985,459"}},{"$f":"'Trial 2'!DO44","v":{"v":1007806.6036831485,"d":"$1,007,807"}},{"$f":"'Trial 2'!DP44","v":{"v":981339.2495386767,"d":"$981,339"}},{"$f":"'Trial 2'!DQ44","v":{"v":1011288.1865904448,"d":"$1,011,288"}},{"$f":"'Trial 2'!DR44","v":{"v":1029669.01476951,"d":"$1,029,669"}},{"$f":"'Trial 2'!DS44","v":{"v":1007839.4975178933,"d":"$1,007,839"}},{"$f":"'Trial 2'!DT44","v":{"v":1018307.0222430099,"d":"$1,018,307"}},{"$f":"'Trial 2'!DU44","v":{"v":1013353.0429591592,"d":"$1,013,353"}},{"$f":"'Trial 2'!DV44","v":{"v":970318.4769633987,"d":"$970,318"}},{"$f":"'Trial 2'!DW44","v":{"v":1023858.8392990597,"d":"$1,023,859"}},{"$f":"'Trial 2'!DX44","v":{"v":1018460.8146186146,"d":"$1,018,461"}},{"$f":"'Trial 2'!DY44","v":{"v":1012159.3159788504,"d":"$1,012,159"}},{"$f":"'Trial 2'!DZ44","v":{"v":1023688.9558459918,"d":"$1,023,689"}},{"$f":"'Trial 2'!EB44","v":{"v":1022115.679677271,"d":"$1,022,116"}},{"$f":"'Trial 2'!EC44","v":{"v":995176.5391119426,"d":"$995,177"}},{"$f":"'Trial 2'!ED44","v":{"v":955142.1759929734,"d":"$955,142"}},{"$f":"'Trial 2'!EE44","v":{"v":1070625.9574901548,"d":"$1,070,626"}},{"$f":"'Trial 2'!EF44","v":{"v":1030689.052975053,"d":"$1,030,689"}},{"$f":"'Trial 2'!EG44","v":{"v":1011055.3895846726,"d":"$1,011,055"}},{"$f":"'Trial 2'!EH44","v":{"v":1043948.8542818102,"d":"$1,043,949"}},{"$f":"'Trial 2'!EI44","v":{"v":1020773.0062981694,"d":"$1,020,773"}},{"$f":"'Trial 2'!EJ44","v":{"v":1005935.5488754868,"d":"$1,005,936"}},{"$f":"'Trial 2'!EK44","v":{"v":992872.5647493221,"d":"$992,873"}},{"$f":"'Trial 2'!EL44","v":{"v":1029784.1498723784,"d":"$1,029,784"}},{"$f":"'Trial 2'!EM44","v":{"v":1003772.7735841861,"d":"$1,003,773"}}]
[{"$f":"'Trial 3'!B44","v":{"v":1150342.4848132704,"d":"$1,150,342"}},{"$f":"'Trial 3'!C44","v":{"v":1198443.6317882268,"d":"$1,198,444"}},{"$f":"'Trial 3'!D44","v":{"v":1144816.8609503747,"d":"$1,144,817"}},{"$f":"'Trial 3'!E44","v":{"v":1134124.339914245,"d":"$1,134,124"}},{"$f":"'Trial 3'!F44","v":{"v":1181810.669306879,"d":"$1,181,811"}},{"$f":"'Trial 3'!G44","v":{"v":1154506.554661449,"d":"$1,154,507"}},{"$f":"'Trial 3'!H44","v":{"v":1165123.5991286912,"d":"$1,165,124"}},{"$f":"'Trial 3'!I44","v":{"v":1163975.5889266082,"d":"$1,163,976"}},{"$f":"'Trial 3'!J44","v":{"v":1192835.2095116535,"d":"$1,192,835"}},{"$f":"'Trial 3'!K44","v":{"v":1124195.9248878122,"d":"$1,124,196"}},{"$f":"'Trial 3'!L44","v":{"v":1136124.2361104793,"d":"$1,136,124"}},{"$f":"'Trial 3'!M44","v":{"v":1156854.871807169,"d":"$1,156,855"}},{"$f":"'Trial 3'!O44","v":{"v":1138864.6821102186,"d":"$1,138,865"}},{"$f":"'Trial 3'!P44","v":{"v":1167741.3300877442,"d":"$1,167,741"}},{"$f":"'Trial 3'!Q44","v":{"v":1122944.5511523054,"d":"$1,122,945"}},{"$f":"'Trial 3'!R44","v":{"v":1179461.9834569346,"d":"$1,179,462"}},{"$f":"'Trial 3'!S44","v":{"v":1203276.0030464074,"d":"$1,203,276"}},{"$f":"'Trial 3'!T44","v":{"v":1121557.3985460424,"d":"$1,121,557"}},{"$f":"'Trial 3'!U44","v":{"v":1176490.772698274,"d":"$1,176,491"}},{"$f":"'Trial 3'!V44","v":{"v":1181679.6144104504,"d":"$1,181,680"}},{"$f":"'Trial 3'!W44","v":{"v":1124739.0009411937,"d":"$1,124,739"}},{"$f":"'Trial 3'!X44","v":{"v":1153196.9609125077,"d":"$1,153,197"}},{"$f":"'Trial 3'!Y44","v":{"v":1085330.219368682,"d":"$1,085,330"}},{"$f":"'Trial 3'!Z44","v":{"v":1139586.5760802876,"d":"$1,139,587"}},{"$f":"'Trial 3'!AB44","v":{"v":1142769.9653332909,"d":"$1,142,770"}},{"$f":"'Trial 3'!AC44","v":{"v":1166965.2840213662,"d":"$1,166,965"}},{"$f":"'Trial 3'!AD44","v":{"v":1120734.3094653653,"d":"$1,120,734"}},{"$f":"'Trial 3'!AE44","v":{"v":1140122.2152114075,"d":"$1,140,122"}},{"$f":"'Trial 3'!AF44","v":{"v":1135007.5525501822,"d":"$1,135,008"}},{"$f":"'Trial 3'!AG44","v":{"v":1117550.654451029,"d":"$1,117,551"}},{"$f":"'Trial 3'!AH44","v":{"v":1084663.2157630213,"d":"$1,084,663"}},{"$f":"'Trial 3'!AI44","v":{"v":1139547.8258766388,"d":"$1,139,548"}},{"$f":"'Trial 3'!AJ44","v":{"v":1137917.6154859087,"d":"$1,137,918"}},{"$f":"'Trial 3'!AK44","v":{"v":1127622.6633451025,"d":"$1,127,623"}},{"$f":"'Trial 3'!AL44","v":{"v":1091326.814473016,"d":"$1,091,327"}},{"$f":"'Trial 3'!AM44","v":{"v":1171567.6564986464,"d":"$1,171,568"}},{"$f":"'Trial 3'!AO44","v":{"v":1087049.6270858462,"d":"$1,087,050"}},{"$f":"'Trial 3'!AP44","v":{"v":1124375.5576919264,"d":"$1,124,376"}},{"$f":"'Trial 3'!AQ44","v":{"v":1166404.240170155,"d":"$1,166,404"}},{"$f":"'Trial 3'!AR44","v":{"v":1143639.9248658675,"d":"$1,143,640"}},{"$f":"'Trial 3'!AS44","v":{"v":1103184.5837005423,"d":"$1,103,185"}},{"$f":"'Trial 3'!AT44","v":{"v":1121131.9736445674,"d":"$1,121,132"}},{"$f":"'Trial 3'!AU44","v":{"v":1150828.723058223,"d":"$1,150,829"}},{"$f":"'Trial 3'!AV44","v":{"v":1139554.757715729,"d":"$1,139,555"}},{"$f":"'Trial 3'!AW44","v":{"v":1051000.2960826934,"d":"$1,051,000"}},{"$f":"'Trial 3'!AX44","v":{"v":1146342.0364819327,"d":"$1,146,342"}},{"$f":"'Trial 3'!AY44","v":{"v":1090732.718268176,"d":"$1,090,733"}},{"$f":"'Trial 3'!AZ44","v":{"v":1101575.4872303104,"d":"$1,101,575"}},{"$f":"'Trial 3'!BB44","v":{"v":1136482.8430774221,"d":"$1,136,483"}},{"$f":"'Trial 3'!BC44","v":{"v":1150151.024259446,"d":"$1,150,151"}},{"$f":"'Trial 3'!BD44","v":{"v":1093954.5592813343,"d":"$1,093,955"}},{"$f":"'Trial 3'!BE44","v":{"v":1122569.5902868996,"d":"$1,122,570"}},{"$f":"'Trial 3'!BF44","v":{"v":1098264.7927567568,"d":"$1,098,265"}},{"$f":"'Trial 3'!BG44","v":{"v":1100307.4662003727,"d":"$1,100,307"}},{"$f":"'Trial 3'!BH44","v":{"v":1141527.0226211774,"d":"$1,141,527"}},{"$f":"'Trial 3'!BI44","v":{"v":1089065.3602296363,"d":"$1,089,065"}},{"$f":"'Trial 3'!BJ44","v":{"v":1043474.7324232346,"d":"$1,043,475"}},{"$f":"'Trial 3'!BK44","v":{"v":1046621.5205442912,"d":"$1,046,622"}},{"$f":"'Trial 3'!BL44","v":{"v":1093759.4480012194,"d":"$1,093,759"}},{"$f":"'Trial 3'!BM44","v":{"v":1033964.0707376434,"d":"$1,033,964"}},{"$f":"'Trial 3'!BO44","v":{"v":1076816.8058139717,"d":"$1,076,817"}},{"$f":"'Trial 3'!BP44","v":{"v":1064951.205368106,"d":"$1,064,951"}},{"$f":"'Trial 3'!BQ44","v":{"v":1075004.0620441367,"d":"$1,075,004"}},{"$f":"'Trial 3'!BR44","v":{"v":1120889.0853163044,"d":"$1,120,889"}},{"$f":"'Trial 3'!BS44","v":{"v":1081276.5946556348,"d":"$1,081,277"}},{"$f":"'Trial 3'!BT44","v":{"v":1094247.5641226412,"d":"$1,094,248"}},{"$f":"'Trial 3'!BU44","v":{"v":1034975.562298365,"d":"$1,034,976"}},{"$f":"'Trial 3'!BV44","v":{"v":1078851.5060041775,"d":"$1,078,852"}},{"$f":"'Trial 3'!BW44","v":{"v":1097083.9756032445,"d":"$1,097,084"}},{"$f":"'Trial 3'!BX44","v":{"v":1058339.5506733262,"d":"$1,058,340"}},{"$f":"'Trial 3'!BY44","v":{"v":1045468.1399865155,"d":"$1,045,468"}},{"$f":"'Trial 3'!BZ44","v":{"v":1028045.780997058,"d":"$1,028,046"}},{"$f":"'Trial 3'!CB44","v":{"v":1072226.770800911,"d":"$1,072,227"}},{"$f":"'Trial 3'!CC44","v":{"v":1086751.821471384,"d":"$1,086,752"}},{"$f":"'Trial 3'!CD44","v":{"v":1020218.0579701094,"d":"$1,020,218"}},{"$f":"'Trial 3'!CE44","v":{"v":1020761.7287526942,"d":"$1,020,762"}},{"$f":"'Trial 3'!CF44","v":{"v":1075299.5171311942,"d":"$1,075,300"}},{"$f":"'Trial 3'!CG44","v":{"v":1046239.7250576962,"d":"$1,046,240"}},{"$f":"'Trial 3'!CH44","v":{"v":1021650.9908874362,"d":"$1,021,651"}},{"$f":"'Trial 3'!CI44","v":{"v":1093409.8436335379,"d":"$1,093,410"}},{"$f":"'Trial 3'!CJ44","v":{"v":1064841.4048922474,"d":"$1,064,841"}},{"$f":"'Trial 3'!CK44","v":{"v":1064551.2501169255,"d":"$1,064,551"}},{"$f":"'Trial 3'!CL44","v":{"v":1023502.2918104453,"d":"$1,023,502"}},{"$f":"'Trial 3'!CM44","v":{"v":1028070.6534248942,"d":"$1,028,071"}},{"$f":"'Trial 3'!CO44","v":{"v":1067531.7979565638,"d":"$1,067,532"}},{"$f":"'Trial 3'!CP44","v":{"v":1054727.276540199,"d":"$1,054,727"}},{"$f":"'Trial 3'!CQ44","v":{"v":1055915.186304103,"d":"$1,055,915"}},{"$f":"'Trial 3'!CR44","v":{"v":1013357.306729537,"d":"$1,013,357"}},{"$f":"'Trial 3'!CS44","v":{"v":1054899.791985395,"d":"$1,054,900"}},{"$f":"'Trial 3'!CT44","v":{"v":1104549.6405441493,"d":"$1,104,550"}},{"$f":"'Trial 3'!CU44","v":{"v":1032206.5898731458,"d":"$1,032,207"}},{"$f":"'Trial 3'!CV44","v":{"v":1051546.17996621,"d":"$1,051,546"}},{"$f":"'Trial 3'!CW44","v":{"v":1012145.2889767027,"d":"$1,012,145"}},{"$f":"'Trial 3'!CX44","v":{"v":1061535.1734546376,"d":"$1,061,535"}},{"$f":"'Trial 3'!CY44","v":{"v":1082437.3779765053,"d":"$1,082,437"}},{"$f":"'Trial 3'!CZ44","v":{"v":1083478.9709438786,"d":"$1,083,479"}},{"$f":"'Trial 3'!DB44","v":{"v":1040933.4139402967,"d":"$1,040,933"}},{"$f":"'Trial 3'!DC44","v":{"v":988250.705733655,"d":"$988,251"}},{"$f":"'Trial 3'!DD44","v":{"v":1031185.4157169745,"d":"$1,031,185"}},{"$f":"'Trial 3'!DE44","v":{"v":1027146.2334362891,"d":"$1,027,146"}},{"$f":"'Trial 3'!DF44","v":{"v":1024661.117103764,"d":"$1,024,661"}},{"$f":"'Trial 3'!DG44","v":{"v":1022244.8884179797,"d":"$1,022,245"}},{"$f":"'Trial 3'!DH44","v":{"v":1068893.0341109585,"d":"$1,068,893"}},{"$f":"'Trial 3'!DI44","v":{"v":1064879.9944282281,"d":"$1,064,880"}},{"$f":"'Trial 3'!DJ44","v":{"v":1072500.3324866514,"d":"$1,072,500"}},{"$f":"'Trial 3'!DK44","v":{"v":1031735.0237287002,"d":"$1,031,735"}},{"$f":"'Trial 3'!DL44","v":{"v":994382.5262172555,"d":"$994,383"}},{"$f":"'Trial 3'!DM44","v":{"v":1035111.8167487021,"d":"$1,035,112"}},{"$f":"'Trial 3'!DO44","v":{"v":1074685.4246610247,"d":"$1,074,685"}},{"$f":"'Trial 3'!DP44","v":{"v":1074163.920784875,"d":"$1,074,164"}},{"$f":"'Trial 3'!DQ44","v":{"v":1040599.0855678861,"d":"$1,040,599"}},{"$f":"'Trial 3'!DR44","v":{"v":1080940.9398962543,"d":"$1,080,941"}},{"$f":"'Trial 3'!DS44","v":{"v":1040822.233958831,"d":"$1,040,822"}},{"$f":"'Trial 3'!DT44","v":{"v":1026459.4271217257,"d":"$1,026,459"}},{"$f":"'Trial 3'!DU44","v":{"v":1043496.0759547836,"d":"$1,043,496"}},{"$f":"'Trial 3'!DV44","v":{"v":965943.0511301444,"d":"$965,943"}},{"$f":"'Trial 3'!DW44","v":{"v":1064111.546873058,"d":"$1,064,112"}},{"$f":"'Trial 3'!DX44","v":{"v":1028730.3704495872,"d":"$1,028,730"}},{"$f":"'Trial 3'!DY44","v":{"v":1072088.7781670687,"d":"$1,072,089"}},{"$f":"'Trial 3'!DZ44","v":{"v":1008573.2551671792,"d":"$1,008,573"}},{"$f":"'Trial 3'!EB44","v":{"v":1047112.1793745182,"d":"$1,047,112"}},{"$f":"'Trial 3'!EC44","v":{"v":1058530.5817237399,"d":"$1,058,531"}},{"$f":"'Trial 3'!ED44","v":{"v":980780.5591207019,"d":"$980,781"}},{"$f":"'Trial 3'!EE44","v":{"v":1002193.0442663803,"d":"$1,002,193"}},{"$f":"'Trial 3'!EF44","v":{"v":995404.1934229697,"d":"$995,404"}},{"$f":"'Trial 3'!EG44","v":{"v":1030680.1518847366,"d":"$1,030,680"}},{"$f":"'Trial 3'!EH44","v":{"v":963324.8156239942,"d":"$963,325"}},{"$f":"'Trial 3'!EI44","v":{"v":958034.0656683226,"d":"$958,034"}},{"$f":"'Trial 3'!EJ44","v":{"v":989832.090446954,"d":"$989,832"}},{"$f":"'Trial 3'!EK44","v":{"v":1005757.0256626639,"d":"$1,005,757"}},{"$f":"'Trial 3'!EL44","v":{"v":996379.7539456313,"d":"$996,380"}},{"$f":"'Trial 3'!EM44","v":{"v":1062872.3656321683,"d":"$1,062,872"}}]
[{"$f":"'Trial 4'!B44","v":{"v":1201299.2294072022,"d":"$1,201,299"}},{"$f":"'Trial 4'!C44","v":{"v":1222026.2337539496,"d":"$1,222,026"}},{"$f":"'Trial 4'!D44","v":{"v":1187411.860822248,"d":"$1,187,412"}},{"$f":"'Trial 4'!E44","v":{"v":1120073.998476407,"d":"$1,120,074"}},{"$f":"'Trial 4'!F44","v":{"v":1132805.6545766979,"d":"$1,132,806"}},{"$f":"'Trial 4'!G44","v":{"v":1187397.5563598364,"d":"$1,187,398"}},{"$f":"'Trial 4'!H44","v":{"v":1188878.016614529,"d":"$1,188,878"}},{"$f":"'Trial 4'!I44","v":{"v":1193531.8466430148,"d":"$1,193,532"}},{"$f":"'Trial 4'!J44","v":{"v":1144992.4525960912,"d":"$1,144,992"}},{"$f":"'Trial 4'!K44","v":{"v":1144182.243749663,"d":"$1,144,182"}},{"$f":"'Trial 4'!L44","v":{"v":1147529.3948913678,"d":"$1,147,529"}},{"$f":"'Trial 4'!M44","v":{"v":1144675.7851286323,"d":"$1,144,676"}},{"$f":"'Trial 4'!O44","v":{"v":1179631.7449373133,"d":"$1,179,632"}},{"$f":"'Trial 4'!P44","v":{"v":1148361.401371273,"d":"$1,148,361"}},{"$f":"'Trial 4'!Q44","v":{"v":1184014.452204025,"d":"$1,184,014"}},{"$f":"'Trial 4'!R44","v":{"v":1199603.5206685495,"d":"$1,199,604"}},{"$f":"'Trial 4'!S44","v":{"v":1193180.2595368011,"d":"$1,193,180"}},{"$f":"'Trial 4'!T44","v":{"v":1120637.7707265895,"d":"$1,120,638"}},{"$f":"'Trial 4'!U44","v":{"v":1140730.9256818462,"d":"$1,140,731"}},{"$f":"'Trial 4'!V44","v":{"v":1145110.4032729438,"d":"$1,145,110"}},{"$f":"'Trial 4'!W44","v":{"v":1135544.9181170787,"d":"$1,135,545"}},{"$f":"'Trial 4'!X44","v":{"v":1163918.8731006363,"d":"$1,163,919"}},{"$f":"'Trial 4'!Y44","v":{"v":1091334.5897705571,"d":"$1,091,335"}},{"$f":"'Trial 4'!Z44","v":{"v":1147876.3548592879,"d":"$1,147,876"}},{"$f":"'Trial 4'!AB44","v":{"v":1145727.799498769,"d":"$1,145,728"}},{"$f":"'Trial 4'!AC44","v":{"v":1135919.5853259382,"d":"$1,135,920"}},{"$f":"'Trial 4'!AD44","v":{"v":1127596.696848853,"d":"$1,127,597"}},{"$f":"'Trial 4'!AE44","v":{"v":1088968.3600925945,"d":"$1,088,968"}},{"$f":"'Trial 4'!AF44","v":{"v":1149297.2496186434,"d":"$1,149,297"}},{"$f":"'Trial 4'!AG44","v":{"v":1142576.0162419803,"d":"$1,142,576"}},{"$f":"'Trial 4'!AH44","v":{"v":1177783.5871062046,"d":"$1,177,784"}},{"$f":"'Trial 4'!AI44","v":{"v":1096999.5969034254,"d":"$1,097,000"}},{"$f":"'Trial 4'!AJ44","v":{"v":1067578.7578315707,"d":"$1,067,579"}},{"$f":"'Trial 4'!AK44","v":{"v":1083429.3017479556,"d":"$1,083,429"}},{"$f":"'Trial 4'!AL44","v":{"v":1110068.276174087,"d":"$1,110,068"}},{"$f":"'Trial 4'!AM44","v":{"v":1159372.9363897233,"d":"$1,159,373"}},{"$f":"'Trial 4'!AO44","v":{"v":1089812.4230608102,"d":"$1,089,812"}},{"$f":"'Trial 4'!AP44","v":{"v":1106997.8174977023,"d":"$1,106,998"}},{"$f":"'Trial 4'!AQ44","v":{"v":1099673.714055396,"d":"$1,099,674"}},{"$f":"'Trial 4'!AR44","v":{"v":1073376.900418073,"d":"$1,073,377"}},{"$f":"'Trial 4'!AS44","v":{"v":1067184.267062981,"d":"$1,067,184"}},{"$f":"'Trial 4'!AT44","v":{"v":1057191.4467010745,"d":"$1,057,191"}},{"$f":"'Trial 4'!AU44","v":{"v":1114180.946543817,"d":"$1,114,181"}},{"$f":"'Trial 4'!AV44","v":{"v":1120307.1156960942,"d":"$1,120,307"}},{"$f":"'Trial 4'!AW44","v":{"v":1096027.3069697437,"d":"$1,096,027"}},{"$f":"'Trial 4'!AX44","v":{"v":1081306.4981375798,"d":"$1,081,306"}},{"$f":"'Trial 4'!AY44","v":{"v":1102605.2319314033,"d":"$1,102,605"}},{"$f":"'Trial 4'!AZ44","v":{"v":1091842.5219842766,"d":"$1,091,843"}},{"$f":"'Trial 4'!BB44","v":{"v":1123640.0664731793,"d":"$1,123,640"}},{"$f":"'Trial 4'!BC44","v":{"v":1081719.1860862907,"d":"$1,081,719"}},{"$f":"'Trial 4'!BD44","v":{"v":1080761.33533439,"d":"$1,080,761"}},{"$f":"'Trial 4'!BE44","v":{"v":1083298.7929456418,"d":"$1,083,299"}},{"$f":"'Trial 4'!BF44","v":{"v":1098060.952959261,"d":"$1,098,061"}},{"$f":"'Trial 4'!BG44","v":{"v":1118649.3404724495,"d":"$1,118,649"}},{"$f":"'Trial 4'!BH44","v":{"v":1111869.745207483,"d":"$1,111,870"}},{"$f":"'Trial 4'!BI44","v":{"v":1052371.448151279,"d":"$1,052,371"}},{"$f":"'Trial 4'!BJ44","v":{"v":1097439.2086537366,"d":"$1,097,439"}},{"$f":"'Trial 4'!BK44","v":{"v":1073744.1419877703,"d":"$1,073,744"}},{"$f":"'Trial 4'!BL44","v":{"v":1083536.8678605475,"d":"$1,083,537"}},{"$f":"'Trial 4'!BM44","v":{"v":1098971.2480833936,"d":"$1,098,971"}},{"$f":"'Trial 4'!BO44","v":{"v":1063018.339472834,"d":"$1,063,018"}},{"$f":"'Trial 4'!BP44","v":{"v":1094405.4938842738,"d":"$1,094,405"}},{"$f":"'Trial 4'!BQ44","v":{"v":1065845.7829964377,"d":"$1,065,846"}},{"$f":"'Trial 4'!BR44","v":{"v":1080148.9310348222,"d":"$1,080,149"}},{"$f":"'Trial 4'!BS44","v":{"v":1064142.0444456066,"d":"$1,064,142"}},{"$f":"'Trial 4'!BT44","v":{"v":1092528.513120149,"d":"$1,092,529"}},{"$f":"'Trial 4'!BU44","v":{"v":1084613.9417406174,"d":"$1,084,614"}},{"$f":"'Trial 4'!BV44","v":{"v":1039304.4059074977,"d":"$1,039,304"}},{"$f":"'Trial 4'!BW44","v":{"v":1102159.4230658184,"d":"$1,102,159"}},{"$f":"'Trial 4'!BX44","v":{"v":1112100.818870107,"d":"$1,112,101"}},{"$f":"'Trial 4'!BY44","v":{"v":1066307.9897169855,"d":"$1,066,308"}},{"$f":"'Trial 4'!BZ44","v":{"v":1093717.1248762766,"d":"$1,093,717"}},{"$f":"'Trial 4'!CB44","v":{"v":1071168.9683932622,"d":"$1,071,169"}},{"$f":"'Trial 4'!CC44","v":{"v":1072365.3917547967,"d":"$1,072,365"}},{"$f":"'Trial 4'!CD44","v":{"v":1072999.6618926532,"d":"$1,073,000"}},{"$f":"'Trial 4'!CE44","v":{"v":1057996.8810451988,"d":"$1,057,997"}},{"$f":"'Trial 4'!CF44","v":{"v":1056922.4344643026,"d":"$1,056,922"}},{"$f":"'Trial 4'!CG44","v":{"v":1075666.2567168518,"d":"$1,075,666"}},{"$f":"'Trial 4'!CH44","v":{"v":1021657.2630543127,"d":"$1,021,657"}},{"$f":"'Trial 4'!CI44","v":{"v":1059570.581759421,"d":"$1,059,571"}},{"$f":"'Trial 4'!CJ44","v":{"v":1074810.1195800588,"d":"$1,074,810"}},{"$f":"'Trial 4'!CK44","v":{"v":1049100.9333215214,"d":"$1,049,101"}},{"$f":"'Trial 4'!CL44","v":{"v":1067490.2210947967,"d":"$1,067,490"}},{"$f":"'Trial 4'!CM44","v":{"v":1035336.7623161993,"d":"$1,035,337"}},{"$f":"'Trial 4'!CO44","v":{"v":1091378.5633449627,"d":"$1,091,379"}},{"$f":"'Trial 4'!CP44","v":{"v":1053828.8568299701,"d":"$1,053,829"}},{"$f":"'Trial 4'!CQ44","v":{"v":1024796.393011564,"d":"$1,024,796"}},{"$f":"'Trial 4'!CR44","v":{"v":1054490.4451271638,"d":"$1,054,490"}},{"$f":"'Trial 4'!CS44","v":{"v":1021590.4109571142,"d":"$1,021,590"}},{"$f":"'Trial 4'!CT44","v":{"v":1040791.0459685308,"d":"$1,040,791"}},{"$f":"'Trial 4'!CU44","v":{"v":1038107.2576939522,"d":"$1,038,107"}},{"$f":"'Trial 4'!CV44","v":{"v":1071299.3712532027,"d":"$1,071,299"}},{"$f":"'Trial 4'!CW44","v":{"v":1037786.8511277932,"d":"$1,037,787"}},{"$f":"'Trial 4'!CX44","v":{"v":1068844.9735197946,"d":"$1,068,845"}},{"$f":"'Trial 4'!CY44","v":{"v":1051662.5515070213,"d":"$1,051,663"}},{"$f":"'Trial 4'!CZ44","v":{"v":1021452.2278126739,"d":"$1,021,452"}},{"$f":"'Trial 4'!DB44","v":{"v":1033310.4450606097,"d":"$1,033,310"}},{"$f":"'Trial 4'!DC44","v":{"v":1097600.8510346783,"d":"$1,097,601"}},{"$f":"'Trial 4'!DD44","v":{"v":1044386.911801224,"d":"$1,044,387"}},{"$f":"'Trial 4'!DE44","v":{"v":1056222.6258573558,"d":"$1,056,223"}},{"$f":"'Trial 4'!DF44","v":{"v":1043720.0085883873,"d":"$1,043,720"}},{"$f":"'Trial 4'!DG44","v":{"v":990195.0318778934,"d":"$990,195"}},{"$f":"'Trial 4'!DH44","v":{"v":1047373.3450160042,"d":"$1,047,373"}},{"$f":"'Trial 4'!DI44","v":{"v":1006148.878774065,"d":"$1,006,149"}},{"$f":"'Trial 4'!DJ44","v":{"v":975385.7864578316,"d":"$975,386"}},{"$f":"'Trial 4'!DK44","v":{"v":1036621.7521699824,"d":"$1,036,622"}},{"$f":"'Trial 4'!DL44","v":{"v":1024830.8753825995,"d":"$1,024,831"}},{"$f":"'Trial 4'!DM44","v":{"v":1046468.1296212578,"d":"$1,046,468"}},{"$f":"'Trial 4'!DO44","v":{"v":1020741.6285195646,"d":"$1,020,742"}},{"$f":"'Trial 4'!DP44","v":{"v":1051250.704993523,"d":"$1,051,251"}},{"$f":"'Trial 4'!DQ44","v":{"v":1063364.4601718963,"d":"$1,063,364"}},{"$f":"'Trial 4'!DR44","v":{"v":1018906.443345894,"d":"$1,018,906"}},{"$f":"'Trial 4'!DS44","v":{"v":1055103.8271440582,"d":"$1,055,104"}},{"$f":"'Trial 4'!DT44","v":{"v":976671.2862228267,"d":"$976,671"}},{"$f":"'Trial 4'!DU44","v":{"v":969506.3416040929,"d":"$969,506"}},{"$f":"'Trial 4'!DV44","v":{"v":1028038.8871052568,"d":"$1,028,039"}},{"$f":"'Trial 4'!DW44","v":{"v":1053728.3340235779,"d":"$1,053,728"}},{"$f":"'Trial 4'!DX44","v":{"v":980582.0944507854,"d":"$980,582"}},{"$f":"'Trial 4'!DY44","v":{"v":1036790.0340613283,"d":"$1,036,790"}},{"$f":"'Trial 4'!DZ44","v":{"v":1004585.924127641,"d":"$1,004,586"}},{"$f":"'Trial 4'!EB44","v":{"v":1051227.486369622,"d":"$1,051,227"}},{"$f":"'Trial 4'!EC44","v":{"v":1061204.1863434687,"d":"$1,061,204"}},{"$f":"'Trial 4'!ED44","v":{"v":1033102.4271454777,"d":"$1,033,102"}},{"$f":"'Trial 4'!EE44","v":{"v":1009554.2777937904,"d":"$1,009,554"}},{"$f":"'Trial 4'!EF44","v":{"v":991485.3167046153,"d":"$991,485"}},{"$f":"'Trial 4'!EG44","v":{"v":969369.2747889318,"d":"$969,369"}},{"$f":"'Trial 4'!EH44","v":{"v":1022828.2486376974,"d":"$1,022,828"}},{"$f":"'Trial 4'!EI44","v":{"v":1064819.4473851328,"d":"$1,064,819"}},{"$f":"'Trial 4'!EJ44","v":{"v":1029457.7594452228,"d":"$1,029,458"}},{"$f":"'Trial 4'!EK44","v":{"v":977150.0045526372,"d":"$977,150"}},{"$f":"'Trial 4'!EL44","v":{"v":1009524.8271263975,"d":"$1,009,525"}},{"$f":"'Trial 4'!EM44","v":{"v":1031761.2132551357,"d":"$1,031,761"}}]
[{"$f":"'Trial 5'!B44","v":{"v":1164665.0625080573,"d":"$1,164,665"}},{"$f":"'Trial 5'!C44","v":{"v":1144946.3989126172,"d":"$1,144,946"}},{"$f":"'Trial 5'!D44","v":{"v":1173802.0664330341,"d":"$1,173,802"}},{"$f":"'Trial 5'!E44","v":{"v":1177731.4725351771,"d":"$1,177,731"}},{"$f":"'Trial 5'!F44","v":{"v":1149455.4456803051,"d":"$1,149,455"}},{"$f":"'Trial 5'!G44","v":{"v":1129506.9227855676,"d":"$1,129,507"}},{"$f":"'Trial 5'!H44","v":{"v":1215778.787108135,"d":"$1,215,779"}},{"$f":"'Trial 5'!I44","v":{"v":1101344.162014124,"d":"$1,101,344"}},{"$f":"'Trial 5'!J44","v":{"v":1145303.0170029318,"d":"$1,145,303"}},{"$f":"'Trial 5'!K44","v":{"v":1157306.1855146622,"d":"$1,157,306"}},{"$f":"'Trial 5'!L44","v":{"v":1212819.3397543642,"d":"$1,212,819"}},{"$f":"'Trial 5'!M44","v":{"v":1151679.1073055523,"d":"$1,151,679"}},{"$f":"'Trial 5'!O44","v":{"v":1136915.2042727782,"d":"$1,136,915"}},{"$f":"'Trial 5'!P44","v":{"v":1145329.7926203643,"d":"$1,145,330"}},{"$f":"'Trial 5'!Q44","v":{"v":1155705.7944430886,"d":"$1,155,706"}},{"$f":"'Trial 5'!R44","v":{"v":1104566.8839546004,"d":"$1,104,567"}},{"$f":"'Trial 5'!S44","v":{"v":1121162.2153592564,"d":"$1,121,162"}},{"$f":"'Trial 5'!T44","v":{"v":1185586.0398178543,"d":"$1,185,586"}},{"$f":"'Trial 5'!U44","v":{"v":1169766.5730425438,"d":"$1,169,767"}},{"$f":"'Trial 5'!V44","v":{"v":1112174.5003419276,"d":"$1,112,175"}},{"$f":"'Trial 5'!W44","v":{"v":1140025.9908562342,"d":"$1,140,026"}},{"$f":"'Trial 5'!X44","v":{"v":1138008.384062528,"d":"$1,138,008"}},{"$f":"'Trial 5'!Y44","v":{"v":1142621.447119453,"d":"$1,142,621"}},{"$f":"'Trial 5'!Z44","v":{"v":1106461.5794498527,"d":"$1,106,462"}},{"$f":"'Trial 5'!AB44","v":{"v":1086978.4755231293,"d":"$1,086,978"}},{"$f":"'Trial 5'!AC44","v":{"v":1148182.278477533,"d":"$1,148,182"}},{"$f":"'Trial 5'!AD44","v":{"v":1163992.435121479,"d":"$1,163,992"}},{"$f":"'Trial 5'!AE44","v":{"v":1091418.8987842076,"d":"$1,091,419"}},{"$f":"'Trial 5'!AF44","v":{"v":1089782.8483094736,"d":"$1,089,783"}},{"$f":"'Trial 5'!AG44","v":{"v":1107559.3766977086,"d":"$1,107,559"}},{"$f":"'Trial 5'!AH44","v":{"v":1154758.7656308145,"d":"$1,154,759"}},{"$f":"'Trial 5'!AI44","v":{"v":1116817.3720234593,"d":"$1,116,817"}},{"$f":"'Trial 5'!AJ44","v":{"v":1138033.0348968138,"d":"$1,138,033"}},{"$f":"'Trial 5'!AK44","v":{"v":1152284.8454802786,"d":"$1,152,285"}},{"$f":"'Trial 5'!AL44","v":{"v":1142413.5365677767,"d":"$1,142,414"}},{"$f":"'Trial 5'!AM44","v":{"v":1098065.244661236,"d":"$1,098,065"}},{"$f":"'Trial 5'!AO44","v":{"v":1108378.2607209764,"d":"$1,108,378"}},{"$f":"'Trial 5'!AP44","v":{"v":1097846.4105468823,"d":"$1,097,846"}},{"$f":"'Trial 5'!AQ44","v":{"v":1080690.653703916,"d":"$1,080,691"}},{"$f":"'Trial 5'!AR44","v":{"v":1162669.5567237074,"d":"$1,162,670"}},{"$f":"'Trial 5'!AS44","v":{"v":1084353.358735605,"d":"$1,084,353"}},{"$f":"'Trial 5'!AT44","v":{"v":1114961.2953604392,"d":"$1,114,961"}},{"$f":"'Trial 5'!AU44","v":{"v":1125168.7063530483,"d":"$1,125,169"}},{"$f":"'Trial 5'!AV44","v":{"v":1114183.9727581495,"d":"$1,114,184"}},{"$f":"'Trial 5'!AW44","v":{"v":1060994.9731759191,"d":"$1,060,995"}},{"$f":"'Trial 5'!AX44","v":{"v":1087218.9257089526,"d":"$1,087,219"}},{"$f":"'Trial 5'!AY44","v":{"v":1090783.6009344722,"d":"$1,090,784"}},{"$f":"'Trial 5'!AZ44","v":{"v":1126225.3105751586,"d":"$1,126,225"}},{"$f":"'Trial 5'!BB44","v":{"v":1054812.017274918,"d":"$1,054,812"}},{"$f":"'Trial 5'!BC44","v":{"v":1110202.1128081547,"d":"$1,110,202"}},{"$f":"'Trial 5'!BD44","v":{"v":1149969.9300578928,"d":"$1,149,970"}},{"$f":"'Trial 5'!BE44","v":{"v":1129328.4711550917,"d":"$1,129,328"}},{"$f":"'Trial 5'!BF44","v":{"v":1081093.826875644,"d":"$1,081,094"}},{"$f":"'Trial 5'!BG44","v":{"v":1044430.5162488783,"d":"$1,044,431"}},{"$f":"'Trial 5'!BH44","v":{"v":1144846.7281564218,"d":"$1,144,847"}},{"$f":"'Trial 5'!BI44","v":{"v":1050771.0457398584,"d":"$1,050,771"}},{"$f":"'Trial 5'!BJ44","v":{"v":1083375.5548083656,"d":"$1,083,376"}},{"$f":"'Trial 5'!BK44","v":{"v":1125282.1378179034,"d":"$1,125,282"}},{"$f":"'Trial 5'!BL44","v":{"v":1046219.3968339668,"d":"$1,046,219"}},{"$f":"'Trial 5'!BM44","v":{"v":1096960.1992404398,"d":"$1,096,960"}},{"$f":"'Trial 5'!BO44","v":{"v":1038874.7674172252,"d":"$1,038,875"}},{"$f":"'Trial 5'!BP44","v":{"v":1082347.739690751,"d":"$1,082,348"}},{"$f":"'Trial 5'!BQ44","v":{"v":1048534.5387668189,"d":"$1,048,535"}},{"$f":"'Trial 5'!BR44","v":{"v":1119087.9147678984,"d":"$1,119,088"}},{"$f":"'Trial 5'!BS44","v":{"v":1057925.6708689341,"d":"$1,057,926"}},{"$f":"'Trial 5'!BT44","v":{"v":1098641.20430436,"d":"$1,098,641"}},{"$f":"'Trial 5'!BU44","v":{"v":1113538.287639614,"d":"$1,113,538"}},{"$f":"'Trial 5'!BV44","v":{"v":1041620.2185005908,"d":"$1,041,620"}},{"$f":"'Trial 5'!BW44","v":{"v":1071385.806529613,"d":"$1,071,386"}},{"$f":"'Trial 5'!BX44","v":{"v":1013299.7843639711,"d":"$1,013,300"}},{"$f":"'Trial 5'!BY44","v":{"v":1090500.657045541,"d":"$1,090,501"}},{"$f":"'Trial 5'!BZ44","v":{"v":1072773.815550561,"d":"$1,072,774"}},{"$f":"'Trial 5'!CB44","v":{"v":1101187.9773233244,"d":"$1,101,188"}},{"$f":"'Trial 5'!CC44","v":{"v":1053716.967357498,"d":"$1,053,717"}},{"$f":"'Trial 5'!CD44","v":{"v":1011716.4312085736,"d":"$1,011,716"}},{"$f":"'Trial 5'!CE44","v":{"v":1032416.8330299816,"d":"$1,032,417"}},{"$f":"'Trial 5'!CF44","v":{"v":1047749.7977283002,"d":"$1,047,750"}},{"$f":"'Trial 5'!CG44","v":{"v":1102866.389580728,"d":"$1,102,866"}},{"$f":"'Trial 5'!CH44","v":{"v":1114619.095990013,"d":"$1,114,619"}},{"$f":"'Trial 5'!CI44","v":{"v":1082091.4185987315,"d":"$1,082,091"}},{"$f":"'Trial 5'!CJ44","v":{"v":1094699.177243713,"d":"$1,094,699"}},{"$f":"'Trial 5'!CK44","v":{"v":1052665.2653238778,"d":"$1,052,665"}},{"$f":"'Trial 5'!CL44","v":{"v":1032815.2783858503,"d":"$1,032,815"}},{"$f":"'Trial 5'!CM44","v":{"v":1039572.33238061,"d":"$1,039,572"}},{"$f":"'Trial 5'!CO44","v":{"v":1029752.0911566115,"d":"$1,029,752"}},{"$f":"'Trial 5'!CP44","v":{"v":1036066.7695476328,"d":"$1,036,067"}},{"$f":"'Trial 5'!CQ44","v":{"v":1086599.402927535,"d":"$1,086,599"}},{"$f":"'Trial 5'!CR44","v":{"v":1060193.5723222087,"d":"$1,060,194"}},{"$f":"'Trial 5'!CS44","v":{"v":1032988.1125593344,"d":"$1,032,988"}},{"$f":"'Trial 5'!CT44","v":{"v":1005468.9027479548,"d":"$1,005,469"}},{"$f":"'Trial 5'!CU44","v":{"v":1054892.6304857316,"d":"$1,054,893"}},{"$f":"'Trial 5'!CV44","v":{"v":1024111.9606826605,"d":"$1,024,112"}},{"$f":"'Trial 5'!CW44","v":{"v":1049292.5528681432,"d":"$1,049,293"}},{"$f":"'Trial 5'!CX44","v":{"v":1001234.4844253241,"d":"$1,001,234"}},{"$f":"'Trial 5'!CY44","v":{"v":1043414.0639797754,"d":"$1,043,414"}},{"$f":"'Trial 5'!CZ44","v":{"v":1060382.28908089,"d":"$1,060,382"}},{"$f":"'Trial 5'!DB44","v":{"v":1048249.920234713,"d":"$1,048,250"}},{"$f":"'Trial 5'!DC44","v":{"v":1023311.3192129792,"d":"$1,023,311"}},{"$f":"'Trial 5'!DD44","v":{"v":999370.3577856253,"d":"$999,370"}},{"$f":"'Trial 5'!DE44","v":{"v":1055413.6482852653,"d":"$1,055,414"}},{"$f":"'Trial 5'!DF44","v":{"v":1087922.0849752529,"d":"$1,087,922"}},{"$f":"'Trial 5'!DG44","v":{"v":1029287.0776375125,"d":"$1,029,287"}},{"$f":"'Trial 5'!DH44","v":{"v":1033156.8059578291,"d":"$1,033,157"}},{"$f":"'Trial 5'!DI44","v":{"v":1036855.3578365787,"d":"$1,036,855"}},{"$f":"'Trial 5'!DJ44","v":{"v":1011413.9557528686,"d":"$1,011,414"}},{"$f":"'Trial 5'!DK44","v":{"v":1031238.0134290687,"d":"$1,031,238"}},{"$f":"'Trial 5'!DL44","v":{"v":971936.6940975429,"d":"$971,937"}},{"$f":"'Trial 5'!DM44","v":{"v":1034975.6396973018,"d":"$1,034,976"}},{"$f":"'Trial 5'!DO44","v":{"v":1085552.074367939,"d":"$1,085,552"}},{"$f":"'Trial 5'!DP44","v":{"v":1012632.5669993272,"d":"$1,012,633"}},{"$f":"'Trial 5'!DQ44","v":{"v":979700.0724011665,"d":"$979,700"}},{"$f":"'Trial 5'!DR44","v":{"v":1001535.8428234102,"d":"$1,001,536"}},{"$f":"'Trial 5'!DS44","v":{"v":991096.4896602507,"d":"$991,096"}},{"$f":"'Trial 5'!DT44","v":{"v":1043839.8624860145,"d":"$1,043,840"}},{"$f":"'Trial 5'!DU44","v":{"v":1031811.5274524761,"d":"$1,031,812"}},{"$f":"'Trial 5'!DV44","v":{"v":1018333.026620479,"d":"$1,018,333"}},{"$f":"'Trial 5'!DW44","v":{"v":1035862.7584051698,"d":"$1,035,863"}},{"$f":"'Trial 5'!DX44","v":{"v":1005831.915434163,"d":"$1,005,832"}},{"$f":"'Trial 5'!DY44","v":{"v":970128.4638641882,"d":"$970,128"}},{"$f":"'Trial 5'!DZ44","v":{"v":1007900.8921776499,"d":"$1,007,901"}},{"$f":"'Trial 5'!EB44","v":{"v":1016540.771357398,"d":"$1,016,541"}},{"$f":"'Trial 5'!EC44","v":{"v":1068409.507344333,"d":"$1,068,410"}},{"$f":"'Trial 5'!ED44","v":{"v":996379.1324884285,"d":"$996,379"}},{"$f":"'Trial 5'!EE44","v":{"v":970440.0241794725,"d":"$970,440"}},{"$f":"'Trial 5'!EF44","v":{"v":1007523.1050961545,"d":"$1,007,523"}},{"$f":"'Trial 5'!EG44","v":{"v":1000571.8765374796,"d":"$1,000,572"}},{"$f":"'Trial 5'!EH44","v":{"v":1028983.4806059601,"d":"$1,028,983"}},{"$f":"'Trial 5'!EI44","v":{"v":954992.7077670227,"d":"$954,993"}},{"$f":"'Trial 5'!EJ44","v":{"v":1042423.6605588425,"d":"$1,042,424"}},{"$f":"'Trial 5'!EK44","v":{"v":980330.5115252407,"d":"$980,331"}},{"$f":"'Trial 5'!EL44","v":{"v":1008547.8881069561,"d":"$1,008,548"}},{"$f":"'Trial 5'!EM44","v":{"v":1044291.0539974804,"d":"$1,044,291"}}]
[{"$f":"'Trial 6'!B44","v":{"v":1166015.220719523,"d":"$1,166,015"}},{"$f":"'Trial 6'!C44","v":{"v":1119995.1887612976,"d":"$1,119,995"}},{"$f":"'Trial 6'!D44","v":{"v":1185573.1238317264,"d":"$1,185,573"}},{"$f":"'Trial 6'!E44","v":{"v":1164506.0237664045,"d":"$1,164,506"}},{"$f":"'Trial 6'!F44","v":{"v":1107407.8937517083,"d":"$1,107,408"}},{"$f":"'Trial 6'!G44","v":{"v":1176338.217895413,"d":"$1,176,338"}},{"$f":"'Trial 6'!H44","v":{"v":1132189.5909648773,"d":"$1,132,190"}},{"$f":"'Trial 6'!I44","v":{"v":1182373.3373405326,"d":"$1,182,373"}},{"$f":"'Trial 6'!J44","v":{"v":1200405.1224554987,"d":"$1,200,405"}},{"$f":"'Trial 6'!K44","v":{"v":1140927.9783107503,"d":"$1,140,928"}},{"$f":"'Trial 6'!L44","v":{"v":1165650.8459107655,"d":"$1,165,651"}},{"$f":"'Trial 6'!M44","v":{"v":1096234.649714536,"d":"$1,096,235"}},{"$f":"'Trial 6'!O44","v":{"v":1108407.258966424,"d":"$1,108,407"}},{"$f":"'Trial 6'!P44","v":{"v":1161673.6673662853,"d":"$1,161,674"}},{"$f":"'Trial 6'!Q44","v":{"v":1206577.0878708097,"d":"$1,206,577"}},{"$f":"'Trial 6'!R44","v":{"v":1104833.4045574095,"d":"$1,104,833"}},{"$f":"'Trial 6'!S44","v":{"v":1151807.11650544,"d":"$1,151,807"}},{"$f":"'Trial 6'!T44","v":{"v":1192846.6047236584,"d":"$1,192,847"}},{"$f":"'Trial 6'!U44","v":{"v":1119477.3754692934,"d":"$1,119,477"}},{"$f":"'Trial 6'!V44","v":{"v":1162579.4417379873,"d":"$1,162,579"}},{"$f":"'Trial 6'!W44","v":{"v":1167905.5136663176,"d":"$1,167,906"}},{"$f":"'Trial 6'!X44","v":{"v":1134897.640641471,"d":"$1,134,898"}},{"$f":"'Trial 6'!Y44","v":{"v":1111352.2057215904,"d":"$1,111,352"}},{"$f":"'Trial 6'!Z44","v":{"v":1167036.0479118528,"d":"$1,167,036"}},{"$f":"'Trial 6'!AB44","v":{"v":1088944.0721638887,"d":"$1,088,944"}},{"$f":"'Trial 6'!AC44","v":{"v":1108185.6281466798,"d":"$1,108,186"}},{"$f":"'Trial 6'!AD44","v":{"v":1181479.0940267306,"d":"$1,181,479"}},{"$f":"'Trial 6'!AE44","v":{"v":1119452.6818579093,"d":"$1,119,453"}},{"$f":"'Trial 6'!AF44","v":{"v":1180442.4399651291,"d":"$1,180,442"}},{"$f":"'Trial 6'!AG44","v":{"v":1161736.0556415748,"d":"$1,161,736"}},{"$f":"'Trial 6'!AH44","v":{"v":1135912.600801581,"d":"$1,135,913"}},{"$f":"'Trial 6'!AI44","v":{"v":1085704.292880627,"d":"$1,085,704"}},{"$f":"'Trial 6'!AJ44","v":{"v":1180415.2189470571,"d":"$1,180,415"}},{"$f":"'Trial 6'!AK44","v":{"v":1091697.425135058,"d":"$1,091,697"}},{"$f":"'Trial 6'!AL44","v":{"v":1061687.4264313895,"d":"$1,061,687"}},{"$f":"'Trial 6'!AM44","v":{"v":1103261.8132858018,"d":"$1,103,262"}},{"$f":"'Trial 6'!AO44","v":{"v":1152154.523685678,"d":"$1,152,155"}},{"$f":"'Trial 6'!AP44","v":{"v":1107471.8393251987,"d":"$1,107,472"}},{"$f":"'Trial 6'!AQ44","v":{"v":1126776.5302628456,"d":"$1,126,777"}},{"$f":"'Trial 6'!AR44","v":{"v":1159120.021852076,"d":"$1,159,120"}},{"$f":"'Trial 6'!AS44","v":{"v":1086162.9414009366,"d":"$1,086,163"}},{"$f":"'Trial 6'!AT44","v":{"v":1060172.3460295147,"d":"$1,060,172"}},{"$f":"'Trial 6'!AU44","v":{"v":1133706.0397587374,"d":"$1,133,706"}},{"$f":"'Trial 6'!AV44","v":{"v":1103063.3371700437,"d":"$1,103,063"}},{"$f":"'Trial 6'!AW44","v":{"v":1080676.5387382829,"d":"$1,080,677"}},{"$f":"'Trial 6'!AX44","v":{"v":1098895.8887221885,"d":"$1,098,896"}},{"$f":"'Trial 6'!AY44","v":{"v":1095035.2655909108,"d":"$1,095,035"}},{"$f":"'Trial 6'!AZ44","v":{"v":1162088.44040752,"d":"$1,162,088"}},{"$f":"'Trial 6'!BB44","v":{"v":1137695.0949260218,"d":"$1,137,695"}},{"$f":"'Trial 6'!BC44","v":{"v":1101898.5772358829,"d":"$1,101,899"}},{"$f":"'Trial 6'!BD44","v":{"v":1139812.8631694284,"d":"$1,139,813"}},{"$f":"'Trial 6'!BE44","v":{"v":1096308.9986901116,"d":"$1,096,309"}},{"$f":"'Trial 6'!BF44","v":{"v":1061055.701604983,"d":"$1,061,056"}},{"$f":"'Trial 6'!BG44","v":{"v":1065047.9180954224,"d":"$1,065,048"}},{"$f":"'Trial 6'!BH44","v":{"v":1103318.1750277542,"d":"$1,103,318"}},{"$f":"'Trial 6'!BI44","v":{"v":1083864.8342430883,"d":"$1,083,865"}},{"$f":"'Trial 6'!BJ44","v":{"v":1110100.081986119,"d":"$1,110,100"}},{"$f":"'Trial 6'!BK44","v":{"v":1112996.1889636505,"d":"$1,112,996"}},{"$f":"'Trial 6'!BL44","v":{"v":1117608.6934487058,"d":"$1,117,609"}},{"$f":"'Trial 6'!BM44","v":{"v":1065450.220050345,"d":"$1,065,450"}},{"$f":"'Trial 6'!BO44","v":{"v":1083545.7719573015,"d":"$1,083,546"}},{"$f":"'Trial 6'!BP44","v":{"v":1114894.4108137204,"d":"$1,114,894"}},{"$f":"'Trial 6'!BQ44","v":{"v":1075626.1861646355,"d":"$1,075,626"}},{"$f":"'Trial 6'!BR44","v":{"v":1074979.0836888477,"d":"$1,074,979"}},{"$f":"'Trial 6'!BS44","v":{"v":1111506.725716816,"d":"$1,111,507"}},{"$f":"'Trial 6'!BT44","v":{"v":1111252.550695987,"d":"$1,111,253"}},{"$f":"'Trial 6'!BU44","v":{"v":1063200.51946212,"d":"$1,063,201"}},{"$f":"'Trial 6'!BV44","v":{"v":1096332.316332008,"d":"$1,096,332"}},{"$f":"'Trial 6'!BW44","v":{"v":1109760.9724114314,"d":"$1,109,761"}},{"$f":"'Trial 6'!BX44","v":{"v":1056782.552398462,"d":"$1,056,783"}},{"$f":"'Trial 6'!BY44","v":{"v":1095176.8596969268,"d":"$1,095,177"}},{"$f":"'Trial 6'!BZ44","v":{"v":1067996.3095139025,"d":"$1,067,996"}},{"$f":"'Trial 6'!CB44","v":{"v":1045165.5755465836,"d":"$1,045,166"}},{"$f":"'Trial 6'!CC44","v":{"v":1060105.7261306255,"d":"$1,060,106"}},{"$f":"'Trial 6'!CD44","v":{"v":1075863.463665014,"d":"$1,075,863"}},{"$f":"'Trial 6'!CE44","v":{"v":1064055.2936368347,"d":"$1,064,055"}},{"$f":"'Trial 6'!CF44","v":{"v":1037984.8251704079,"d":"$1,037,985"}},{"$f":"'Trial 6'!CG44","v":{"v":1084511.9330661774,"d":"$1,084,512"}},{"$f":"'Trial 6'!CH44","v":{"v":1005094.6939159504,"d":"$1,005,095"}},{"$f":"'Trial 6'!CI44","v":{"v":1086792.811617713,"d":"$1,086,793"}},{"$f":"'Trial 6'!CJ44","v":{"v":1035523.6846129306,"d":"$1,035,524"}},{"$f":"'Trial 6'!CK44","v":{"v":1093178.0000082147,"d":"$1,093,178"}},{"$f":"'Trial 6'!CL44","v":{"v":1012463.5973271431,"d":"$1,012,464"}},{"$f":"'Trial 6'!CM44","v":{"v":1023103.6357007406,"d":"$1,023,104"}},{"$f":"'Trial 6'!CO44","v":{"v":1064809.5092246635,"d":"$1,064,810"}},{"$f":"'Trial 6'!CP44","v":{"v":996512.4334402946,"d":"$996,512"}},{"$f":"'Trial 6'!CQ44","v":{"v":994880.5801581137,"d":"$994,881"}},{"$f":"'Trial 6'!CR44","v":{"v":1079891.2261029081,"d":"$1,079,891"}},{"$f":"'Trial 6'!CS44","v":{"v":1068300.1315819146,"d":"$1,068,300"}},{"$f":"'Trial 6'!CT44","v":{"v":1040415.5934112289,"d":"$1,040,416"}},{"$f":"'Trial 6'!CU44","v":{"v":1077557.3678348288,"d":"$1,077,557"}},{"$f":"'Trial 6'!CV44","v":{"v":1067697.484879639,"d":"$1,067,697"}},{"$f":"'Trial 6'!CW44","v":{"v":1030936.645836601,"d":"$1,030,937"}},{"$f":"'Trial 6'!CX44","v":{"v":1028657.8534333616,"d":"$1,028,658"}},{"$f":"'Trial 6'!CY44","v":{"v":1069857.6878689693,"d":"$1,069,858"}},{"$f":"'Trial 6'!CZ44","v":{"v":1067737.6014056758,"d":"$1,067,738"}},{"$f":"'Trial 6'!DB44","v":{"v":1049048.8347562745,"d":"$1,049,049"}},{"$f":"'Trial 6'!DC44","v":{"v":1037965.5768084549,"d":"$1,037,966"}},{"$f":"'Trial 6'!DD44","v":{"v":1037291.2753703713,"d":"$1,037,291"}},{"$f":"'Trial 6'!DE44","v":{"v":1046667.6562600458,"d":"$1,046,668"}},{"$f":"'Trial 6'!DF44","v":{"v":1018005.6215937831,"d":"$1,018,006"}},{"$f":"'Trial 6'!DG44","v":{"v":1026289.3500382154,"d":"$1,026,289"}},{"$f":"'Trial 6'!DH44","v":{"v":1032552.1844588376,"d":"$1,032,552"}},{"$f":"'Trial 6'!DI44","v":{"v":1034582.5490638969,"d":"$1,034,583"}},{"$f":"'Trial 6'!DJ44","v":{"v":1024156.8258209797,"d":"$1,024,157"}},{"$f":"'Trial 6'!DK44","v":{"v":1066338.4881341688,"d":"$1,066,338"}},{"$f":"'Trial 6'!DL44","v":{"v":1001689.0479264995,"d":"$1,001,689"}},{"$f":"'Trial 6'!DM44","v":{"v":1028331.7866335053,"d":"$1,028,332"}},{"$f":"'Trial 6'!DO44","v":{"v":1051517.2620847123,"d":"$1,051,517"}},{"$f":"'Trial 6'!DP44","v":{"v":1006844.6855560706,"d":"$1,006,845"}},{"$f":"'Trial 6'!DQ44","v":{"v":1043014.603112442,"d":"$1,043,015"}},{"$f":"'Trial 6'!DR44","v":{"v":1043705.8074353072,"d":"$1,043,706"}},{"$f":"'Trial 6'!DS44","v":{"v":1040080.6247320105,"d":"$1,040,081"}},{"$f":"'Trial 6'!DT44","v":{"v":1020613.5833310003,"d":"$1,020,614"}},{"$f":"'Trial 6'!DU44","v":{"v":1062372.1770253032,"d":"$1,062,372"}},{"$f":"'Trial 6'!DV44","v":{"v":999296.800684013,"d":"$999,297"}},{"$f":"'Trial 6'!DW44","v":{"v":1012464.3610206639,"d":"$1,012,464"}},{"$f":"'Trial 6'!DX44","v":{"v":1018679.392903201,"d":"$1,018,679"}},{"$f":"'Trial 6'!DY44","v":{"v":1051208.3483040333,"d":"$1,051,208"}},{"$f":"'Trial 6'!DZ44","v":{"v":994699.1854870815,"d":"$994,699"}},{"$f":"'Trial 6'!EB44","v":{"v":981512.8528867031,"d":"$981,513"}},{"$f":"'Trial 6'!EC44","v":{"v":1043440.0661515262,"d":"$1,043,440"}},{"$f":"'Trial 6'!ED44","v":{"v":996497.9979746004,"d":"$996,498"}},{"$f":"'Trial 6'!EE44","v":{"v":1016107.3341098791,"d":"$1,016,107"}},{"$f":"'Trial 6'!EF44","v":{"v":983446.8686285735,"d":"$983,447"}},{"$f":"'Trial 6'!EG44","v":{"v":1062938.5287622346,"d":"$1,062,939"}},{"$f":"'Trial 6'!EH44","v":{"v":985323.5599762569,"d":"$985,324"}},{"$f":"'Trial 6'!EI44","v":{"v":1034039.8289383902,"d":"$1,034,040"}},{"$f":"'Trial 6'!EJ44","v":{"v":1054327.0087699157,"d":"$1,054,327"}},{"$f":"'Trial 6'!EK44","v":{"v":1024483.1832630854,"d":"$1,024,483"}},{"$f":"'Trial 6'!EL44","v":{"v":1015201.0332991773,"d":"$1,015,201"}},{"$f":"'Trial 6'!EM44","v":{"v":1016422.003911258,"d":"$1,016,422"}}]
[{"$f":"'Trial 7'!B44","v":{"v":1210251.6680096046,"d":"$1,210,252"}},{"$f":"'Trial 7'!C44","v":{"v":1218578.5246341159,"d":"$1,218,579"}},{"$f":"'Trial 7'!D44","v":{"v":1127407.1138138599,"d":"$1,127,407"}},{"$f":"'Trial 7'!E44","v":{"v":1130493.1844835978,"d":"$1,130,493"}},{"$f":"'Trial 7'!F44","v":{"v":1111293.3818536126,"d":"$1,111,293"}},{"$f":"'Trial 7'!G44","v":{"v":1123101.7155773572,"d":"$1,123,102"}},{"$f":"'Trial 7'!H44","v":{"v":1187302.342687659,"d":"$1,187,302"}},{"$f":"'Trial 7'!I44","v":{"v":1175040.9819092923,"d":"$1,175,041"}},{"$f":"'Trial 7'!J44","v":{"v":1143544.305800521,"d":"$1,143,544"}},{"$f":"'Trial 7'!K44","v":{"v":1128449.6600209647,"d":"$1,128,450"}},{"$f":"'Trial 7'!L44","v":{"v":1152362.0298329997,"d":"$1,152,362"}},{"$f":"'Trial 7'!M44","v":{"v":1167087.5506795063,"d":"$1,167,088"}},{"$f":"'Trial 7'!O44","v":{"v":1149967.5857172555,"d":"$1,149,968"}},{"$f":"'Trial 7'!P44","v":{"v":1184831.9523031916,"d":"$1,184,832"}},{"$f":"'Trial 7'!Q44","v":{"v":1164013.925754558,"d":"$1,164,014"}},{"$f":"'Trial 7'!R44","v":{"v":1206973.6177859497,"d":"$1,206,974"}},{"$f":"'Trial 7'!S44","v":{"v":1134898.6250178746,"d":"$1,134,899"}},{"$f":"'Trial 7'!T44","v":{"v":1176641.3423735597,"d":"$1,176,641"}},{"$f":"'Trial 7'!U44","v":{"v":1133884.6819721425,"d":"$1,133,885"}},{"$f":"'Trial 7'!V44","v":{"v":1165639.315202401,"d":"$1,165,639"}},{"$f":"'Trial 7'!W44","v":{"v":1091770.5653495858,"d":"$1,091,771"}},{"$f":"'Trial 7'!X44","v":{"v":1121560.7595828264,"d":"$1,121,561"}},{"$f":"'Trial 7'!Y44","v":{"v":1165866.515439161,"d":"$1,165,867"}},{"$f":"'Trial 7'!Z44","v":{"v":1157272.946405661,"d":"$1,157,273"}},{"$f":"'Trial 7'!AB44","v":{"v":1128473.9086858823,"d":"$1,128,474"}},{"$f":"'Trial 7'!AC44","v":{"v":1165043.248437493,"d":"$1,165,043"}},{"$f":"'Trial 7'!AD44","v":{"v":1159553.584000053,"d":"$1,159,554"}},{"$f":"'Trial 7'!AE44","v":{"v":1130377.510273578,"d":"$1,130,378"}},{"$f":"'Trial 7'!AF44","v":{"v":1190048.3201367613,"d":"$1,190,048"}},{"$f":"'Trial 7'!AG44","v":{"v":1117906.3223701294,"d":"$1,117,906"}},{"$f":"'Trial 7'!AH44","v":{"v":1122495.1995169201,"d":"$1,122,495"}},{"$f":"'Trial 7'!AI44","v":{"v":1095659.3627510543,"d":"$1,095,659"}},{"$f":"'Trial 7'!AJ44","v":{"v":1096811.479508809,"d":"$1,096,811"}},{"$f":"'Trial 7'!AK44","v":{"v":1142501.406906212,"d":"$1,142,501"}},{"$f":"'Trial 7'!AL44","v":{"v":1130097.7373887997,"d":"$1,130,098"}},{"$f":"'Trial 7'!AM44","v":{"v":1088668.6650848824,"d":"$1,088,669"}},{"$f":"'Trial 7'!AO44","v":{"v":1085353.6554494123,"d":"$1,085,354"}},{"$f":"'Trial 7'!AP44","v":{"v":1094860.3083858832,"d":"$1,094,860"}},{"$f":"'Trial 7'!AQ44","v":{"v":1109699.0895735358,"d":"$1,109,699"}},{"$f":"'Trial 7'!AR44","v":{"v":1071743.7677748143,"d":"$1,071,744"}},{"$f":"'Trial 7'!AS44","v":{"v":1082240.2789869881,"d":"$1,082,240"}},{"$f":"'Trial 7'!AT44","v":{"v":1071595.291401016,"d":"$1,071,595"}},{"$f":"'Trial 7'!AU44","v":{"v":1122566.969264006,"d":"$1,122,567"}},{"$f":"'Trial 7'!AV44","v":{"v":1137261.1424805422,"d":"$1,137,261"}},{"$f":"'Trial 7'!AW44","v":{"v":1138561.4712092034,"d":"$1,138,561"}},{"$f":"'Trial 7'!AX44","v":{"v":1125138.0034193264,"d":"$1,125,138"}},{"$f":"'Trial 7'!AY44","v":{"v":1119100.4214995843,"d":"$1,119,100"}},{"$f":"'Trial 7'!AZ44","v":{"v":1119133.5622842207,"d":"$1,119,134"}},{"$f":"'Trial 7'!BB44","v":{"v":1089183.8290751746,"d":"$1,089,184"}},{"$f":"'Trial 7'!BC44","v":{"v":1109285.9210977461,"d":"$1,109,286"}},{"$f":"'Trial 7'!BD44","v":{"v":1144313.351289886,"d":"$1,144,313"}},{"$f":"'Trial 7'!BE44","v":{"v":1095492.309704641,"d":"$1,095,492"}},{"$f":"'Trial 7'!BF44","v":{"v":1067576.9412509638,"d":"$1,067,577"}},{"$f":"'Trial 7'!BG44","v":{"v":1085978.3359549604,"d":"$1,085,978"}},{"$f":"'Trial 7'!BH44","v":{"v":1067881.6852203521,"d":"$1,067,882"}},{"$f":"'Trial 7'!BI44","v":{"v":1050717.130349221,"d":"$1,050,717"}},{"$f":"'Trial 7'!BJ44","v":{"v":1104556.1980584797,"d":"$1,104,556"}},{"$f":"'Trial 7'!BK44","v":{"v":1117095.5919037955,"d":"$1,117,096"}},{"$f":"'Trial 7'!BL44","v":{"v":1090990.1430810287,"d":"$1,090,990"}},{"$f":"'Trial 7'!BM44","v":{"v":1036501.1459630799,"d":"$1,036,501"}},{"$f":"'Trial 7'!BO44","v":{"v":1051742.653390171,"d":"$1,051,743"}},{"$f":"'Trial 7'!BP44","v":{"v":1067784.567916827,"d":"$1,067,785"}},{"$f":"'Trial 7'!BQ44","v":{"v":1072223.2287987336,"d":"$1,072,223"}},{"$f":"'Trial 7'!BR44","v":{"v":1128695.9383479336,"d":"$1,128,696"}},{"$f":"'Trial 7'!BS44","v":{"v":1121277.226875086,"d":"$1,121,277"}},{"$f":"'Trial 7'!BT44","v":{"v":1065883.4785031958,"d":"$1,065,883"}},{"$f":"'Trial 7'!BU44","v":{"v":1044843.3720022619,"d":"$1,044,843"}},{"$f":"'Trial 7'!BV44","v":{"v":1072705.6265686154,"d":"$1,072,706"}},{"$f":"'Trial 7'!BW44","v":{"v":1085074.1830909199,"d":"$1,085,074"}},{"$f":"'Trial 7'!BX44","v":{"v":1073583.3128114417,"d":"$1,073,583"}},{"$f":"'Trial 7'!BY44","v":{"v":1100834.271957714,"d":"$1,100,834"}},{"$f":"'Trial 7'!BZ44","v":{"v":1084289.3832612408,"d":"$1,084,289"}},{"$f":"'Trial 7'!CB44","v":{"v":1064745.1755210634,"d":"$1,064,745"}},{"$f":"'Trial 7'!CC44","v":{"v":1037852.1200914562,"d":"$1,037,852"}},{"$f":"'Trial 7'!CD44","v":{"v":1083253.1503240531,"d":"$1,083,253"}},{"$f":"'Trial 7'!CE44","v":{"v":1066877.7845924962,"d":"$1,066,878"}},{"$f":"'Trial 7'!CF44","v":{"v":1014107.1407579627,"d":"$1,014,107"}},{"$f":"'Trial 7'!CG44","v":{"v":1059564.087871126,"d":"$1,059,564"}},{"$f":"'Trial 7'!CH44","v":{"v":1010878.7986493031,"d":"$1,010,879"}},{"$f":"'Trial 7'!CI44","v":{"v":1006825.1211918355,"d":"$1,006,825"}},{"$f":"'Trial 7'!CJ44","v":{"v":1058857.8590979804,"d":"$1,058,858"}},{"$f":"'Trial 7'!CK44","v":{"v":1088203.269992896,"d":"$1,088,203"}},{"$f":"'Trial 7'!CL44","v":{"v":1060954.3120503272,"d":"$1,060,954"}},{"$f":"'Trial 7'!CM44","v":{"v":1009833.8241949154,"d":"$1,009,834"}},{"$f":"'Trial 7'!CO44","v":{"v":1038372.1262587699,"d":"$1,038,372"}},{"$f":"'Trial 7'!CP44","v":{"v":1072290.961846881,"d":"$1,072,291"}},{"$f":"'Trial 7'!CQ44","v":{"v":1044867.5408919576,"d":"$1,044,868"}},{"$f":"'Trial 7'!CR44","v":{"v":1057261.2321785437,"d":"$1,057,261"}},{"$f":"'Trial 7'!CS44","v":{"v":1097501.0564966057,"d":"$1,097,501"}},{"$f":"'Trial 7'!CT44","v":{"v":1051862.4499460808,"d":"$1,051,862"}},{"$f":"'Trial 7'!CU44","v":{"v":1040417.4211139794,"d":"$1,040,417"}},{"$f":"'Trial 7'!CV44","v":{"v":1062557.6108624523,"d":"$1,062,558"}},{"$f":"'Trial 7'!CW44","v":{"v":1054904.5608595565,"d":"$1,054,905"}},{"$f":"'Trial 7'!CX44","v":{"v":1096267.6834963267,"d":"$1,096,268"}},{"$f":"'Trial 7'!CY44","v":{"v":1087285.9549773561,"d":"$1,087,286"}},{"$f":"'Trial 7'!CZ44","v":{"v":1041888.6627278732,"d":"$1,041,889"}},{"$f":"'Trial 7'!DB44","v":{"v":994792.3952154104,"d":"$994,792"}},{"$f":"'Trial 7'!DC44","v":{"v":1042055.970382966,"d":"$1,042,056"}},{"$f":"'Trial 7'!DD44","v":{"v":1054972.9385731546,"d":"$1,054,973"}},{"$f":"'Trial 7'!DE44","v":{"v":985144.6579584599,"d":"$985,145"}},{"$f":"'Trial 7'!DF44","v":{"v":1047173.9312302603,"d":"$1,047,174"}},{"$f":"'Trial 7'!DG44","v":{"v":1050080.4299667128,"d":"$1,050,080"}},{"$f":"'Trial 7'!DH44","v":{"v":996679.0712877508,"d":"$996,679"}},{"$f":"'Trial 7'!DI44","v":{"v":1060126.164410647,"d":"$1,060,126"}},{"$f":"'Trial 7'!DJ44","v":{"v":1063530.5045435964,"d":"$1,063,531"}},{"$f":"'Trial 7'!DK44","v":{"v":980213.4112051253,"d":"$980,213"}},{"$f":"'Trial 7'!DL44","v":{"v":1034455.9159023387,"d":"$1,034,456"}},{"$f":"'Trial 7'!DM44","v":{"v":1064308.9038403665,"d":"$1,064,309"}},{"$f":"'Trial 7'!DO44","v":{"v":1011236.9235495259,"d":"$1,011,237"}},{"$f":"'Trial 7'!DP44","v":{"v":1060091.8992137692,"d":"$1,060,092"}},{"$f":"'Trial 7'!DQ44","v":{"v":1052069.4926462814,"d":"$1,052,069"}},{"$f":"'Trial 7'!DR44","v":{"v":987165.086554272,"d":"$987,165"}},{"$f":"'Trial 7'!DS44","v":{"v":1071236.4921671217,"d":"$1,071,236"}},{"$f":"'Trial 7'!DT44","v":{"v":985547.0172676306,"d":"$985,547"}},{"$f":"'Trial 7'!DU44","v":{"v":1027241.4357197633,"d":"$1,027,241"}},{"$f":"'Trial 7'!DV44","v":{"v":986132.9388134155,"d":"$986,133"}},{"$f":"'Trial 7'!DW44","v":{"v":1054868.2513743415,"d":"$1,054,868"}},{"$f":"'Trial 7'!DX44","v":{"v":1074149.6267535575,"d":"$1,074,150"}},{"$f":"'Trial 7'!DY44","v":{"v":979256.283676793,"d":"$979,256"}},{"$f":"'Trial 7'!DZ44","v":{"v":1047090.5667197196,"d":"$1,047,091"}},{"$f":"'Trial 7'!EB44","v":{"v":1038121.6925017633,"d":"$1,038,122"}},{"$f":"'Trial 7'!EC44","v":{"v":1011687.233378793,"d":"$1,011,687"}},{"$f":"'Trial 7'!ED44","v":{"v":1016053.7760389271,"d":"$1,016,054"}},{"$f":"'Trial 7'!EE44","v":{"v":1037627.2552137253,"d":"$1,037,627"}},{"$f":"'Trial 7'!EF44","v":{"v":1040375.0681872304,"d":"$1,040,375"}},{"$f":"'Trial 7'!EG44","v":{"v":1012844.5220930923,"d":"$1,012,845"}},{"$f":"'Trial 7'!EH44","v":{"v":1026165.1506358084,"d":"$1,026,165"}},{"$f":"'Trial 7'!EI44","v":{"v":1052588.5879441416,"d":"$1,052,589"}},{"$f":"'Trial 7'!EJ44","v":{"v":972825.3032982923,"d":"$972,825"}},{"$f":"'Trial 7'!EK44","v":{"v":1031543.5750871097,"d":"$1,031,544"}},{"$f":"'Trial 7'!EL44","v":{"v":1058127.8676445184,"d":"$1,058,128"}},{"$f":"'Trial 7'!EM44","v":{"v":990935.9334681598,"d":"$990,936"}}]
[{"$f":"'Trial 8'!B44","v":{"v":1178424.9832601284,"d":"$1,178,425"}},{"$f":"'Trial 8'!C44","v":{"v":1105239.749225682,"d":"$1,105,240"}},{"$f":"'Trial 8'!D44","v":{"v":1159069.0036971876,"d":"$1,159,069"}},{"$f":"'Trial 8'!E44","v":{"v":1139833.8969994835,"d":"$1,139,834"}},{"$f":"'Trial 8'!F44","v":{"v":1164650.7427059738,"d":"$1,164,651"}},{"$f":"'Trial 8'!G44","v":{"v":1118244.2950682011,"d":"$1,118,244"}},{"$f":"'Trial 8'!H44","v":{"v":1189209.0468677355,"d":"$1,189,209"}},{"$f":"'Trial 8'!I44","v":{"v":1144320.2067478378,"d":"$1,144,320"}},{"$f":"'Trial 8'!J44","v":{"v":1155690.717187542,"d":"$1,155,691"}},{"$f":"'Trial 8'!K44","v":{"v":1195703.042236222,"d":"$1,195,703"}},{"$f":"'Trial 8'!L44","v":{"v":1170039.3015251008,"d":"$1,170,039"}},{"$f":"'Trial 8'!M44","v":{"v":1186093.7824578334,"d":"$1,186,094"}},{"$f":"'Trial 8'!O44","v":{"v":1172241.0738080898,"d":"$1,172,241"}},{"$f":"'Trial 8'!P44","v":{"v":1150487.576053514,"d":"$1,150,488"}},{"$f":"'Trial 8'!Q44","v":{"v":1158655.778634584,"d":"$1,158,656"}},{"$f":"'Trial 8'!R44","v":{"v":1129931.4696289108,"d":"$1,129,931"}},{"$f":"'Trial 8'!S44","v":{"v":1126914.4622065146,"d":"$1,126,914"}},{"$f":"'Trial 8'!T44","v":{"v":1198416.8510094252,"d":"$1,198,417"}},{"$f":"'Trial 8'!U44","v":{"v":1135274.4403564371,"d":"$1,135,274"}},{"$f":"'Trial 8'!V44","v":{"v":1171384.14643658,"d":"$1,171,384"}},{"$f":"'Trial 8'!W44","v":{"v":1096261.3677478915,"d":"$1,096,261"}},{"$f":"'Trial 8'!X44","v":{"v":1144126.370472519,"d":"$1,144,126"}},{"$f":"'Trial 8'!Y44","v":{"v":1091792.3798403144,"d":"$1,091,792"}},{"$f":"'Trial 8'!Z44","v":{"v":1183350.982999877,"d":"$1,183,351"}},{"$f":"'Trial 8'!AB44","v":{"v":1162576.7960783509,"d":"$1,162,577"}},{"$f":"'Trial 8'!AC44","v":{"v":1089067.0491244644,"d":"$1,089,067"}},{"$f":"'Trial 8'!AD44","v":{"v":1124417.144029983,"d":"$1,124,417"}},{"$f":"'Trial 8'!AE44","v":{"v":1117033.4321208838,"d":"$1,117,033"}},{"$f":"'Trial 8'!AF44","v":{"v":1074014.436365731,"d":"$1,074,014"}},{"$f":"'Trial 8'!AG44","v":{"v":1151136.7608551034,"d":"$1,151,137"}},{"$f":"'Trial 8'!AH44","v":{"v":1144733.8557723588,"d":"$1,144,734"}},{"$f":"'Trial 8'!AI44","v":{"v":1097035.0003118943,"d":"$1,097,035"}},{"$f":"'Trial 8'!AJ44","v":{"v":1170482.8298488965,"d":"$1,170,483"}},{"$f":"'Trial 8'!AK44","v":{"v":1145756.6910011773,"d":"$1,145,757"}},{"$f":"'Trial 8'!AL44","v":{"v":1113891.4455926546,"d":"$1,113,891"}},{"$f":"'Trial 8'!AM44","v":{"v":1166585.004063848,"d":"$1,166,585"}},{"$f":"'Trial 8'!AO44","v":{"v":1117273.5466690555,"d":"$1,117,274"}},{"$f":"'Trial 8'!AP44","v":{"v":1110468.5321360908,"d":"$1,110,469"}},{"$f":"'Trial 8'!AQ44","v":{"v":1139821.1589159623,"d":"$1,139,821"}},{"$f":"'Trial 8'!AR44","v":{"v":1101906.5503165703,"d":"$1,101,907"}},{"$f":"'Trial 8'!AS44","v":{"v":1142352.1621472856,"d":"$1,142,352"}},{"$f":"'Trial 8'!AT44","v":{"v":1110274.9338565448,"d":"$1,110,275"}},{"$f":"'Trial 8'!AU44","v":{"v":1089145.5935685516,"d":"$1,089,146"}},{"$f":"'Trial 8'!AV44","v":{"v":1097104.3283785265,"d":"$1,097,104"}},{"$f":"'Trial 8'!AW44","v":{"v":1108936.113430704,"d":"$1,108,936"}},{"$f":"'Trial 8'!AX44","v":{"v":1154545.4952108448,"d":"$1,154,545"}},{"$f":"'Trial 8'!AY44","v":{"v":1096061.2338702804,"d":"$1,096,061"}},{"$f":"'Trial 8'!AZ44","v":{"v":1057228.051258933,"d":"$1,057,228"}},{"$f":"'Trial 8'!BB44","v":{"v":1065143.9952652927,"d":"$1,065,144"}},{"$f":"'Trial 8'!BC44","v":{"v":1129904.5659772246,"d":"$1,129,905"}},{"$f":"'Trial 8'!BD44","v":{"v":1131238.3386119432,"d":"$1,131,238"}},{"$f":"'Trial 8'!BE44","v":{"v":1088544.3000044485,"d":"$1,088,544"}},{"$f":"'Trial 8'!BF44","v":{"v":1119271.509082256,"d":"$1,119,272"}},{"$f":"'Trial 8'!BG44","v":{"v":1090799.6925796785,"d":"$1,090,800"}},{"$f":"'Trial 8'!BH44","v":{"v":1118220.215344998,"d":"$1,118,220"}},{"$f":"'Trial 8'!BI44","v":{"v":1107302.4366819137,"d":"$1,107,302"}},{"$f":"'Trial 8'!BJ44","v":{"v":1084361.051957294,"d":"$1,084,361"}},{"$f":"'Trial 8'!BK44","v":{"v":1074692.8810198521,"d":"$1,074,693"}},{"$f":"'Trial 8'!BL44","v":{"v":1081536.2481312044,"d":"$1,081,536"}},{"$f":"'Trial 8'!BM44","v":{"v":1090230.4850464626,"d":"$1,090,230"}},{"$f":"'Trial 8'!BO44","v":{"v":1029722.5173936362,"d":"$1,029,723"}},{"$f":"'Trial 8'!BP44","v":{"v":1133475.9591975128,"d":"$1,133,476"}},{"$f":"'Trial 8'!BQ44","v":{"v":1120224.574130233,"d":"$1,120,225"}},{"$f":"'Trial 8'!BR44","v":{"v":1141143.036912358,"d":"$1,141,143"}},{"$f":"'Trial 8'!BS44","v":{"v":1072960.0619641447,"d":"$1,072,960"}},{"$f":"'Trial 8'!BT44","v":{"v":1133073.671088738,"d":"$1,133,074"}},{"$f":"'Trial 8'!BU44","v":{"v":1075487.9451976665,"d":"$1,075,488"}},{"$f":"'Trial 8'!BV44","v":{"v":1022434.7554703307,"d":"$1,022,435"}},{"$f":"'Trial 8'!BW44","v":{"v":1087350.7535023075,"d":"$1,087,351"}},{"$f":"'Trial 8'!BX44","v":{"v":1040166.2106508664,"d":"$1,040,166"}},{"$f":"'Trial 8'!BY44","v":{"v":1058186.2711926645,"d":"$1,058,186"}},{"$f":"'Trial 8'!BZ44","v":{"v":1087428.2058850653,"d":"$1,087,428"}},{"$f":"'Trial 8'!CB44","v":{"v":1021629.5339983813,"d":"$1,021,630"}},{"$f":"'Trial 8'!CC44","v":{"v":1103986.8864504779,"d":"$1,103,987"}},{"$f":"'Trial 8'!CD44","v":{"v":1052880.3760900744,"d":"$1,052,880"}},{"$f":"'Trial 8'!CE44","v":{"v":1037773.5484422137,"d":"$1,037,774"}},{"$f":"'Trial 8'!CF44","v":{"v":1085539.6614048565,"d":"$1,085,540"}},{"$f":"'Trial 8'!CG44","v":{"v":1065085.850096601,"d":"$1,065,086"}},{"$f":"'Trial 8'!CH44","v":{"v":1071488.6786439694,"d":"$1,071,489"}},{"$f":"'Trial 8'!CI44","v":{"v":1029722.3311030451,"d":"$1,029,722"}},{"$f":"'Trial 8'!CJ44","v":{"v":1120073.2999911148,"d":"$1,120,073"}},{"$f":"'Trial 8'!CK44","v":{"v":1039633.2209343823,"d":"$1,039,633"}},{"$f":"'Trial 8'!CL44","v":{"v":1080602.9752066373,"d":"$1,080,603"}},{"$f":"'Trial 8'!CM44","v":{"v":1015421.1886409431,"d":"$1,015,421"}},{"$f":"'Trial 8'!CO44","v":{"v":1074260.9189168313,"d":"$1,074,261"}},{"$f":"'Trial 8'!CP44","v":{"v":1040957.9036146817,"d":"$1,040,958"}},{"$f":"'Trial 8'!CQ44","v":{"v":1097458.005433685,"d":"$1,097,458"}},{"$f":"'Trial 8'!CR44","v":{"v":1020605.822542516,"d":"$1,020,606"}},{"$f":"'Trial 8'!CS44","v":{"v":1068956.6604385222,"d":"$1,068,957"}},{"$f":"'Trial 8'!CT44","v":{"v":1084193.3836062427,"d":"$1,084,193"}},{"$f":"'Trial 8'!CU44","v":{"v":1087029.0538681229,"d":"$1,087,029"}},{"$f":"'Trial 8'!CV44","v":{"v":1065244.382442699,"d":"$1,065,244"}},{"$f":"'Trial 8'!CW44","v":{"v":997228.4112122206,"d":"$997,228"}},{"$f":"'Trial 8'!CX44","v":{"v":1053809.027115052,"d":"$1,053,809"}},{"$f":"'Trial 8'!CY44","v":{"v":1026893.4126236009,"d":"$1,026,893"}},{"$f":"'Trial 8'!CZ44","v":{"v":1084685.137953266,"d":"$1,084,685"}},{"$f":"'Trial 8'!DB44","v":{"v":1075399.2312137953,"d":"$1,075,399"}},{"$f":"'Trial 8'!DC44","v":{"v":1040874.0411587546,"d":"$1,040,874"}},{"$f":"'Trial 8'!DD44","v":{"v":1024931.3799927565,"d":"$1,024,931"}},{"$f":"'Trial 8'!DE44","v":{"v":1100492.397549909,"d":"$1,100,492"}},{"$f":"'Trial 8'!DF44","v":{"v":1042064.8187199546,"d":"$1,042,065"}},{"$f":"'Trial 8'!DG44","v":{"v":1038879.0291985057,"d":"$1,038,879"}},{"$f":"'Trial 8'!DH44","v":{"v":1074199.0795344384,"d":"$1,074,199"}},{"$f":"'Trial 8'!DI44","v":{"v":1011971.574650092,"d":"$1,011,972"}},{"$f":"'Trial 8'!DJ44","v":{"v":1079026.9690084076,"d":"$1,079,027"}},{"$f":"'Trial 8'!DK44","v":{"v":1067205.4501369903,"d":"$1,067,205"}},{"$f":"'Trial 8'!DL44","v":{"v":1018385.4643849378,"d":"$1,018,385"}},{"$f":"'Trial 8'!DM44","v":{"v":1061259.9446632161,"d":"$1,061,260"}},{"$f":"'Trial 8'!DO44","v":{"v":1064761.0980596275,"d":"$1,064,761"}},{"$f":"'Trial 8'!DP44","v":{"v":1009991.3256588872,"d":"$1,009,991"}},{"$f":"'Trial 8'!DQ44","v":{"v":1048719.9085972358,"d":"$1,048,720"}},{"$f":"'Trial 8'!DR44","v":{"v":1005288.8900961801,"d":"$1,005,289"}},{"$f":"'Trial 8'!DS44","v":{"v":1047985.4617474508,"d":"$1,047,985"}},{"$f":"'Trial 8'!DT44","v":{"v":1066004.488949832,"d":"$1,066,004"}},{"$f":"'Trial 8'!DU44","v":{"v":1020706.0789555332,"d":"$1,020,706"}},{"$f":"'Trial 8'!DV44","v":{"v":1002107.3353789878,"d":"$1,002,107"}},{"$f":"'Trial 8'!DW44","v":{"v":1027051.5807852026,"d":"$1,027,052"}},{"$f":"'Trial 8'!DX44","v":{"v":1028323.5036390538,"d":"$1,028,324"}},{"$f":"'Trial 8'!DY44","v":{"v":1058381.5615986886,"d":"$1,058,382"}},{"$f":"'Trial 8'!DZ44","v":{"v":1017443.977037487,"d":"$1,017,444"}},{"$f":"'Trial 8'!EB44","v":{"v":1050079.4017186097,"d":"$1,050,079"}},{"$f":"'Trial 8'!EC44","v":{"v":984893.3952256609,"d":"$984,893"}},{"$f":"'Trial 8'!ED44","v":{"v":1011802.3502106215,"d":"$1,011,802"}},{"$f":"'Trial 8'!EE44","v":{"v":986488.2925579875,"d":"$986,488"}},{"$f":"'Trial 8'!EF44","v":{"v":1063766.9080953568,"d":"$1,063,767"}},{"$f":"'Trial 8'!EG44","v":{"v":994073.2260229768,"d":"$994,073"}},{"$f":"'Trial 8'!EH44","v":{"v":1015807.4597107671,"d":"$1,015,807"}},{"$f":"'Trial 8'!EI44","v":{"v":1033014.8531448924,"d":"$1,033,015"}},{"$f":"'Trial 8'!EJ44","v":{"v":1029144.0997787758,"d":"$1,029,144"}},{"$f":"'Trial 8'!EK44","v":{"v":1013030.8478558748,"d":"$1,013,031"}},{"$f":"'Trial 8'!EL44","v":{"v":953548.6910312675,"d":"$953,549"}},{"$f":"'Trial 8'!EM44","v":{"v":1030619.2660928137,"d":"$1,030,619"}}]
[{"$f":"'(Other Computations)'!B83","v":{"v":9448812.393970668,"d":"$9,448,812"}},{"$f":"'(Other Computations)'!C83","v":{"v":9345774.903515538,"d":"$9,345,775"}},{"$f":"'(Other Computations)'!D83","v":{"v":9334897.877866168,"d":"$9,334,898"}},{"$f":"'(Other Computations)'!E83","v":{"v":9189387.488231258,"d":"$9,189,387"}},{"$f":"'(Other Computations)'!F83","v":{"v":9196005.758077916,"d":"$9,196,006"}},{"$f":"'(Other Computations)'!G83","v":{"v":9244048.854274195,"d":"$9,244,049"}},{"$f":"'(Other Computations)'!H83","v":{"v":9445970.598410033,"d":"$9,445,971"}},{"$f":"'(Other Computations)'!I83","v":{"v":9247578.298980916,"d":"$9,247,578"}},{"$f":"'(Other Computations)'!J83","v":{"v":9370513.887453143,"d":"$9,370,514"}},{"$f":"'(Other Computations)'!K83","v":{"v":9195161.933402136,"d":"$9,195,162"}},{"$f":"'(Other Computations)'!L83","v":{"v":9308506.115921732,"d":"$9,308,506"}},{"$f":"'(Other Computations)'!M83","v":{"v":9294237.214702405,"d":"$9,294,237"}},{"$f":"'(Other Computations)'!O83","v":{"v":9149106.448887609,"d":"$9,149,106"}},{"$f":"'(Other Computations)'!P83","v":{"v":9247822.350920938,"d":"$9,247,822"}},{"$f":"'(Other Computations)'!Q83","v":{"v":9338543.243820677,"d":"$9,338,543"}},{"$f":"'(Other Computations)'!R83","v":{"v":9216521.40499716,"d":"$9,216,521"}},{"$f":"'(Other Computations)'!S83","v":{"v":9231998.058891498,"d":"$9,231,998"}},{"$f":"'(Other Computations)'!T83","v":{"v":9184672.802696759,"d":"$9,184,673"}},{"$f":"'(Other Computations)'!U83","v":{"v":9101746.347679846,"d":"$9,101,746"}},{"$f":"'(Other Computations)'!V83","v":{"v":9205701.596514463,"d":"$9,205,702"}},{"$f":"'(Other Computations)'!W83","v":{"v":9095841.936242232,"d":"$9,095,842"}},{"$f":"'(Other Computations)'!X83","v":{"v":9150288.624004895,"d":"$9,150,289"}},{"$f":"'(Other Computations)'!Y83","v":{"v":9029037.573520271,"d":"$9,029,038"}},{"$f":"'(Other Computations)'!Z83","v":{"v":9155783.946443282,"d":"$9,155,784"}},{"$f":"'(Other Computations)'!AB83","v":{"v":8997181.800802995,"d":"$8,997,182"}},{"$f":"'(Other Computations)'!AC83","v":{"v":9040349.647201862,"d":"$9,040,350"}},{"$f":"'(Other Computations)'!AD83","v":{"v":9189782.226740649,"d":"$9,189,782"}},{"$f":"'(Other Computations)'!AE83","v":{"v":8907417.702551462,"d":"$8,907,418"}},{"$f":"'(Other Computations)'!AF83","v":{"v":9047275.236854617,"d":"$9,047,275"}},{"$f":"'(Other Computations)'!AG83","v":{"v":9047102.183248855,"d":"$9,047,102"}},{"$f":"'(Other Computations)'!AH83","v":{"v":9074316.896333713,"d":"$9,074,317"}},{"$f":"'(Other Computations)'!AI83","v":{"v":8842642.320640972,"d":"$8,842,642"}},{"$f":"'(Other Computations)'!AJ83","v":{"v":9011024.044122366,"d":"$9,011,024"}},{"$f":"'(Other Computations)'!AK83","v":{"v":9024968.109372592,"d":"$9,024,968"}},{"$f":"'(Other Computations)'!AL83","v":{"v":8914557.547821015,"d":"$8,914,558"}},{"$f":"'(Other Computations)'!AM83","v":{"v":9023068.803266028,"d":"$9,023,069"}},{"$f":"'(Other Computations)'!AO83","v":{"v":8782278.028944531,"d":"$8,782,278"}},{"$f":"'(Other Computations)'!AP83","v":{"v":8831129.48856255,"d":"$8,831,129"}},{"$f":"'(Other Computations)'!AQ83","v":{"v":9003403.724724645,"d":"$9,003,404"}},{"$f":"'(Other Computations)'!AR83","v":{"v":8903354.054848898,"d":"$8,903,354"}},{"$f":"'(Other Computations)'!AS83","v":{"v":8730482.032275697,"d":"$8,730,482"}},{"$f":"'(Other Computations)'!AT83","v":{"v":8724836.591394098,"d":"$8,724,837"}},{"$f":"'(Other Computations)'!AU83","v":{"v":8968565.545727814,"d":"$8,968,566"}},{"$f":"'(Other Computations)'!AV83","v":{"v":8964139.513288265,"d":"$8,964,140"}},{"$f":"'(Other Computations)'!AW83","v":{"v":8773581.554273903,"d":"$8,773,582"}},{"$f":"'(Other Computations)'!AX83","v":{"v":8868789.852267131,"d":"$8,868,790"}},{"$f":"'(Other Computations)'!AY83","v":{"v":8783455.435315728,"d":"$8,783,455"}},{"$f":"'(Other Computations)'!AZ83","v":{"v":8828796.902109984,"d":"$8,828,797"}},{"$f":"'(Other Computations)'!BB83","v":{"v":8781586.614559794,"d":"$8,781,587"}},{"$f":"'(Other Computations)'!BC83","v":{"v":8906774.695832344,"d":"$8,906,775"}},{"$f":"'(Other Computations)'!BD83","v":{"v":8941748.767159138,"d":"$8,941,749"}},{"$f":"'(Other Computations)'!BE83","v":{"v":8807438.563644124,"d":"$8,807,439"}},{"$f":"'(Other Computations)'!BF83","v":{"v":8726262.624636829,"d":"$8,726,263"}},{"$f":"'(Other Computations)'!BG83","v":{"v":8706648.544719327,"d":"$8,706,649"}},{"$f":"'(Other Computations)'!BH83","v":{"v":8870406.67151113,"d":"$8,870,407"}},{"$f":"'(Other Computations)'!BI83","v":{"v":8682863.645565487,"d":"$8,682,864"}},{"$f":"'(Other Computations)'!BJ83","v":{"v":8729414.307245757,"d":"$8,729,414"}},{"$f":"'(Other Computations)'!BK83","v":{"v":8728876.016282052,"d":"$8,728,876"}},{"$f":"'(Other Computations)'!BL83","v":{"v":8656886.369993249,"d":"$8,656,886"}},{"$f":"'(Other Computations)'!BM83","v":{"v":8616968.05508865,"d":"$8,616,968"}},{"$f":"'(Other Computations)'!BO83","v":{"v":8517701.015333366,"d":"$8,517,701"}},{"$f":"'(Other Computations)'!BP83","v":{"v":8767348.017543096,"d":"$8,767,348"}},{"$f":"'(Other Computations)'!BQ83","v":{"v":8623098.534579625,"d":"$8,623,099"}},{"$f":"'(Other Computations)'!BR83","v":{"v":8828066.300052116,"d":"$8,828,066"}},{"$f":"'(Other Computations)'!BS83","v":{"v":8635876.600243691,"d":"$8,635,877"}},{"$f":"'(Other Computations)'!BT83","v":{"v":8708850.654302303,"d":"$8,708,851"}},{"$f":"'(Other Computations)'!BU83","v":{"v":8557260.663464187,"d":"$8,557,261"}},{"$f":"'(Other Computations)'!BV83","v":{"v":8538180.1565375,"d":"$8,538,180"}},{"$f":"'(Other Computations)'!BW83","v":{"v":8737024.186759077,"d":"$8,737,024"}},{"$f":"'(Other Computations)'!BX83","v":{"v":8464225.802896312,"d":"$8,464,226"}},{"$f":"'(Other Computations)'!BY83","v":{"v":8636523.844845008,"d":"$8,636,524"}},{"$f":"'(Other Computations)'!BZ83","v":{"v":8594008.522656854,"d":"$8,594,009"}},{"$f":"'(Other Computations)'!CB83","v":{"v":8566804.367066883,"d":"$8,566,804"}},{"$f":"'(Other Computations)'!CC83","v":{"v":8565797.281486727,"d":"$8,565,797"}},{"$f":"'(Other Computations)'!CD83","v":{"v":8409106.035268066,"d":"$8,409,106"}},{"$f":"'(Other Computations)'!CE83","v":{"v":8431036.278055612,"d":"$8,431,036"}},{"$f":"'(Other Computations)'!CF83","v":{"v":8490699.888123523,"d":"$8,490,700"}},{"$f":"'(Other Computations)'!CG83","v":{"v":8522523.540863194,"d":"$8,522,524"}},{"$f":"'(Other Computations)'!CH83","v":{"v":8413737.318872832,"d":"$8,413,737"}},{"$f":"'(Other Computations)'!CI83","v":{"v":8462927.458050976,"d":"$8,462,927"}},{"$f":"'(Other Computations)'!CJ83","v":{"v":8612914.293501416,"d":"$8,612,914"}},{"$f":"'(Other Computations)'!CK83","v":{"v":8488159.307080306,"d":"$8,488,159"}},{"$f":"'(Other Computations)'!CL83","v":{"v":8413728.063322328,"d":"$8,413,728"}},{"$f":"'(Other Computations)'!CM83","v":{"v":8277192.533787004,"d":"$8,277,193"}},{"$f":"'(Other Computations)'!CO83","v":{"v":8411219.132600795,"d":"$8,411,219"}},{"$f":"'(Other Computations)'!CP83","v":{"v":8367336.956973365,"d":"$8,367,337"}},{"$f":"'(Other Computations)'!CQ83","v":{"v":8449606.114450809,"d":"$8,449,606"}},{"$f":"'(Other Computations)'!CR83","v":{"v":8374218.194806768,"d":"$8,374,218"}},{"$f":"'(Other Computations)'!CS83","v":{"v":8432800.6836427,"d":"$8,432,801"}},{"$f":"'(Other Computations)'!CT83","v":{"v":8360531.8777169855,"d":"$8,360,532"}},{"$f":"'(Other Computations)'!CU83","v":{"v":8442944.31242243,"d":"$8,442,944"}},{"$f":"'(Other Computations)'!CV83","v":{"v":8373578.572309434,"d":"$8,373,579"}},{"$f":"'(Other Computations)'!CW83","v":{"v":8260610.6668208735,"d":"$8,260,611"}},{"$f":"'(Other Computations)'!CX83","v":{"v":8418967.10057794,"d":"$8,418,967"}},{"$f":"'(Other Computations)'!CY83","v":{"v":8440843.559212247,"d":"$8,440,844"}},{"$f":"'(Other Computations)'!CZ83","v":{"v":8468954.549874397,"d":"$8,468,955"}},{"$f":"'(Other Computations)'!DB83","v":{"v":8288416.721715245,"d":"$8,288,417"}},{"$f":"'(Other Computations)'!DC83","v":{"v":8304879.279455207,"d":"$8,304,879"}},{"$f":"'(Other Computations)'!DD83","v":{"v":8292596.840087382,"d":"$8,292,597"}},{"$f":"'(Other Computations)'!DE83","v":{"v":8387183.9402690325,"d":"$8,387,184"}},{"$f":"'(Other Computations)'!DF83","v":{"v":8333168.699682337,"d":"$8,333,169"}},{"$f":"'(Other Computations)'!DG83","v":{"v":8195713.781299611,"d":"$8,195,714"}},{"$f":"'(Other Computations)'!DH83","v":{"v":8343183.133583643,"d":"$8,343,183"}},{"$f":"'(Other Computations)'!DI83","v":{"v":8281020.881823293,"d":"$8,281,021"}},{"$f":"'(Other Computations)'!DJ83","v":{"v":8354835.2158411825,"d":"$8,354,835"}},{"$f":"'(Other Computations)'!DK83","v":{"v":8313235.553137731,"d":"$8,313,236"}},{"$f":"'(Other Computations)'!DL83","v":{"v":8170417.674314471,"d":"$8,170,418"}},{"$f":"'(Other Computations)'!DM83","v":{"v":8330015.102399125,"d":"$8,330,015"}},{"$f":"'(Other Computations)'!DO83","v":{"v":8317852.171662557,"d":"$8,317,852"}},{"$f":"'(Other Computations)'!DP83","v":{"v":8197296.905480776,"d":"$8,197,297"}},{"$f":"'(Other Computations)'!DQ83","v":{"v":8271858.322605798,"d":"$8,271,858"}},{"$f":"'(Other Computations)'!DR83","v":{"v":8196896.1246931385,"d":"$8,196,896"}},{"$f":"'(Other Computations)'!DS83","v":{"v":8267666.402903001,"d":"$8,267,666"}},{"$f":"'(Other Computations)'!DT83","v":{"v":8156431.09574482,"d":"$8,156,431"}},{"$f":"'(Other Computations)'!DU83","v":{"v":8243685.8357941145,"d":"$8,243,686"}},{"$f":"'(Other Computations)'!DV83","v":{"v":8021624.8977737585,"d":"$8,021,625"}},{"$f":"'(Other Computations)'!DW83","v":{"v":8269115.185505031,"d":"$8,269,115"}},{"$f":"'(Other Computations)'!DX83","v":{"v":8156150.06699948,"d":"$8,156,150"}},{"$f":"'(Other Computations)'!DY83","v":{"v":8200731.682031528,"d":"$8,200,732"}},{"$f":"'(Other Computations)'!DZ83","v":{"v":8131948.395424414,"d":"$8,131,948"}},{"$f":"'(Other Computations)'!EB83","v":{"v":8236837.363857533,"d":"$8,236,837"}},{"$f":"'(Other Computations)'!EC83","v":{"v":8214445.755753836,"d":"$8,214,446"}},{"$f":"'(Other Computations)'!ED83","v":{"v":7966705.158812573,"d":"$7,966,705"}},{"$f":"'(Other Computations)'!EE83","v":{"v":8150300.678785968,"d":"$8,150,301"}},{"$f":"'(Other Computations)'!EF83","v":{"v":8108044.925485797,"d":"$8,108,045"}},{"$f":"'(Other Computations)'!EG83","v":{"v":8092321.270216135,"d":"$8,092,321"}},{"$f":"'(Other Computations)'!EH83","v":{"v":8132345.823848965,"d":"$8,132,346"}},{"$f":"'(Other Computations)'!EI83","v":{"v":8105401.220450143,"d":"$8,105,401"}},{"$f":"'(Other Computations)'!EJ83","v":{"v":8120102.983545174,"d":"$8,120,103"}},{"$f":"'(Other Computations)'!EK83","v":{"v":8009786.146263771,"d":"$8,009,786"}},{"$f":"'(Other Computations)'!EL83","v":{"v":8082696.700746094,"d":"$8,082,697"}},{"$f":"'(Other Computations)'!EM83","v":{"v":8174750.653469398,"d":"$8,174,751"}}]
[{"$f":"'(Intermediate Computations)'!B47","v":"Jan 2010"},{"$f":"'(Intermediate Computations)'!C47","v":"Feb 2010"},{"$f":"'(Intermediate Computations)'!D47","v":"Mar 2010"},{"$f":"'(Intermediate Computations)'!E47","v":"Apr 2010"},{"$f":"'(Intermediate Computations)'!F47","v":"May 2010"},{"$f":"'(Intermediate Computations)'!G47","v":"Jun 2010"},{"$f":"'(Intermediate Computations)'!H47","v":"Jul 2010"},{"$f":"'(Intermediate Computations)'!I47","v":"Aug 2010"},{"$f":"'(Intermediate Computations)'!J47","v":"Sep 2010"},{"$f":"'(Intermediate Computations)'!K47","v":"Oct 2010"},{"$f":"'(Intermediate Computations)'!L47","v":"Nov 2010"},{"$f":"'(Intermediate Computations)'!M47","v":"Dec 2010"},{"$f":"'(Intermediate Computations)'!O47","v":"Jan 2011"},{"$f":"'(Intermediate Computations)'!P47","v":"Feb 2011"},{"$f":"'(Intermediate Computations)'!Q47","v":"Mar 2011"},{"$f":"'(Intermediate Computations)'!R47","v":"Apr 2011"},{"$f":"'(Intermediate Computations)'!S47","v":"May 2011"},{"$f":"'(Intermediate Computations)'!T47","v":"Jun 2011"},{"$f":"'(Intermediate Computations)'!U47","v":"Jul 2011"},{"$f":"'(Intermediate Computations)'!V47","v":"Aug 2011"},{"$f":"'(Intermediate Computations)'!W47","v":"Sep 2011"},{"$f":"'(Intermediate Computations)'!X47","v":"Oct 2011"},{"$f":"'(Intermediate Computations)'!Y47","v":"Nov 2011"},{"$f":"'(Intermediate Computations)'!Z47","v":"Dec 2011"},{"$f":"'(Intermediate Computations)'!AB47","v":"Jan 2012"},{"$f":"'(Intermediate Computations)'!AC47","v":"Feb 2012"},{"$f":"'(Intermediate Computations)'!AD47","v":"Mar 2012"},{"$f":"'(Intermediate Computations)'!AE47","v":"Apr 2012"},{"$f":"'(Intermediate Computations)'!AF47","v":"May 2012"},{"$f":"'(Intermediate Computations)'!AG47","v":"Jun 2012"},{"$f":"'(Intermediate Computations)'!AH47","v":"Jul 2012"},{"$f":"'(Intermediate Computations)'!AI47","v":"Aug 2012"},{"$f":"'(Intermediate Computations)'!AJ47","v":"Sep 2012"},{"$f":"'(Intermediate Computations)'!AK47","v":"Oct 2012"},{"$f":"'(Intermediate Computations)'!AL47","v":"Nov 2012"},{"$f":"'(Intermediate Computations)'!AM47","v":"Dec 2012"},{"$f":"'(Intermediate Computations)'!AO47","v":"Jan 2013"},{"$f":"'(Intermediate Computations)'!AP47","v":"Feb 2013"},{"$f":"'(Intermediate Computations)'!AQ47","v":"Mar 2013"},{"$f":"'(Intermediate Computations)'!AR47","v":"Apr 2013"},{"$f":"'(Intermediate Computations)'!AS47","v":"May 2013"},{"$f":"'(Intermediate Computations)'!AT47","v":"Jun 2013"},{"$f":"'(Intermediate Computations)'!AU47","v":"Jul 2013"},{"$f":"'(Intermediate Computations)'!AV47","v":"Aug 2013"},{"$f":"'(Intermediate Computations)'!AW47","v":"Sep 2013"},{"$f":"'(Intermediate Computations)'!AX47","v":"Oct 2013"},{"$f":"'(Intermediate Computations)'!AY47","v":"Nov 2013"},{"$f":"'(Intermediate Computations)'!AZ47","v":"Dec 2013"},{"$f":"'(Intermediate Computations)'!BB47","v":"Jan 2014"},{"$f":"'(Intermediate Computations)'!BC47","v":"Feb 2014"},{"$f":"'(Intermediate Computations)'!BD47","v":"Mar 2014"},{"$f":"'(Intermediate Computations)'!BE47","v":"Apr 2014"},{"$f":"'(Intermediate Computations)'!BF47","v":"May 2014"},{"$f":"'(Intermediate Computations)'!BG47","v":"Jun 2014"},{"$f":"'(Intermediate Computations)'!BH47","v":"Jul 2014"},{"$f":"'(Intermediate Computations)'!BI47","v":"Aug 2014"},{"$f":"'(Intermediate Computations)'!BJ47","v":"Sep 2014"},{"$f":"'(Intermediate Computations)'!BK47","v":"Oct 2014"},{"$f":"'(Intermediate Computations)'!BL47","v":"Nov 2014"},{"$f":"'(Intermediate Computations)'!BM47","v":"Dec 2014"},{"$f":"'(Intermediate Computations)'!BO47","v":"Jan 2015"},{"$f":"'(Intermediate Computations)'!BP47","v":"Feb 2015"},{"$f":"'(Intermediate Computations)'!BQ47","v":"Mar 2015"},{"$f":"'(Intermediate Computations)'!BR47","v":"Apr 2015"},{"$f":"'(Intermediate Computations)'!BS47","v":"May 2015"},{"$f":"'(Intermediate Computations)'!BT47","v":"Jun 2015"},{"$f":"'(Intermediate Computations)'!BU47","v":"Jul 2015"},{"$f":"'(Intermediate Computations)'!BV47","v":"Aug 2015"},{"$f":"'(Intermediate Computations)'!BW47","v":"Sep 2015"},{"$f":"'(Intermediate Computations)'!BX47","v":"Oct 2015"},{"$f":"'(Intermediate Computations)'!BY47","v":"Nov 2015"},{"$f":"'(Intermediate Computations)'!BZ47","v":"Dec 2015"},{"$f":"'(Intermediate Computations)'!CB47","v":"Jan 2016"},{"$f":"'(Intermediate Computations)'!CC47","v":"Feb 2016"},{"$f":"'(Intermediate Computations)'!CD47","v":"Mar 2016"},{"$f":"'(Intermediate Computations)'!CE47","v":"Apr 2016"},{"$f":"'(Intermediate Computations)'!CF47","v":"May 2016"},{"$f":"'(Intermediate Computations)'!CG47","v":"Jun 2016"},{"$f":"'(Intermediate Computations)'!CH47","v":"Jul 2016"},{"$f":"'(Intermediate Computations)'!CI47","v":"Aug 2016"},{"$f":"'(Intermediate Computations)'!CJ47","v":"Sep 2016"},{"$f":"'(Intermediate Computations)'!CK47","v":"Oct 2016"},{"$f":"'(Intermediate Computations)'!CL47","v":"Nov 2016"},{"$f":"'(Intermediate Computations)'!CM47","v":"Dec 2016"},{"$f":"'(Intermediate Computations)'!CO47","v":"Jan 2017"},{"$f":"'(Intermediate Computations)'!CP47","v":"Feb 2017"},{"$f":"'(Intermediate Computations)'!CQ47","v":"Mar 2017"},{"$f":"'(Intermediate Computations)'!CR47","v":"Apr 2017"},{"$f":"'(Intermediate Computations)'!CS47","v":"May 2017"},{"$f":"'(Intermediate Computations)'!CT47","v":"Jun 2017"},{"$f":"'(Intermediate Computations)'!CU47","v":"Jul 2017"},{"$f":"'(Intermediate Computations)'!CV47","v":"Aug 2017"},{"$f":"'(Intermediate Computations)'!CW47","v":"Sep 2017"},{"$f":"'(Intermediate Computations)'!CX47","v":"Oct 2017"},{"$f":"'(Intermediate Computations)'!CY47","v":"Nov 2017"},{"$f":"'(Intermediate Computations)'!CZ47","v":"Dec 2017"},{"$f":"'(Intermediate Computations)'!DB47","v":"Jan 2018"},{"$f":"'(Intermediate Computations)'!DC47","v":"Feb 2018"},{"$f":"'(Intermediate Computations)'!DD47","v":"Mar 2018"},{"$f":"'(Intermediate Computations)'!DE47","v":"Apr 2018"},{"$f":"'(Intermediate Computations)'!DF47","v":"May 2018"},{"$f":"'(Intermediate Computations)'!DG47","v":"Jun 2018"},{"$f":"'(Intermediate Computations)'!DH47","v":"Jul 2018"},{"$f":"'(Intermediate Computations)'!DI47","v":"Aug 2018"},{"$f":"'(Intermediate Computations)'!DJ47","v":"Sep 2018"},{"$f":"'(Intermediate Computations)'!DK47","v":"Oct 2018"},{"$f":"'(Intermediate Computations)'!DL47","v":"Nov 2018"},{"$f":"'(Intermediate Computations)'!DM47","v":"Dec 2018"},{"$f":"'(Intermediate Computations)'!DO47","v":"Jan 2019"},{"$f":"'(Intermediate Computations)'!DP47","v":"Feb 2019"},{"$f":"'(Intermediate Computations)'!DQ47","v":"Mar 2019"},{"$f":"'(Intermediate Computations)'!DR47","v":"Apr 2019"},{"$f":"'(Intermediate Computations)'!DS47","v":"May 2019"},{"$f":"'(Intermediate Computations)'!DT47","v":"Jun 2019"},{"$f":"'(Intermediate Computations)'!DU47","v":"Jul 2019"},{"$f":"'(Intermediate Computations)'!DV47","v":"Aug 2019"},{"$f":"'(Intermediate Computations)'!DW47","v":"Sep 2019"},{"$f":"'(Intermediate Computations)'!DX47","v":"Oct 2019"},{"$f":"'(Intermediate Computations)'!DY47","v":"Nov 2019"},{"$f":"'(Intermediate Computations)'!DZ47","v":"Dec 2019"},{"$f":"'(Intermediate Computations)'!EB47","v":"Jan 2020"},{"$f":"'(Intermediate Computations)'!EC47","v":"Feb 2020"},{"$f":"'(Intermediate Computations)'!ED47","v":"Mar 2020"},{"$f":"'(Intermediate Computations)'!EE47","v":"Apr 2020"},{"$f":"'(Intermediate Computations)'!EF47","v":"May 2020"},{"$f":"'(Intermediate Computations)'!EG47","v":"Jun 2020"},{"$f":"'(Intermediate Computations)'!EH47","v":"Jul 2020"},{"$f":"'(Intermediate Computations)'!EI47","v":"Aug 2020"},{"$f":"'(Intermediate Computations)'!EJ47","v":"Sep 2020"},{"$f":"'(Intermediate Computations)'!EK47","v":"Oct 2020"},{"$f":"'(Intermediate Computations)'!EL47","v":"Nov 2020"},{"$f":"'(Intermediate Computations)'!EM47","v":"Dec 2020"}]
[{"$f":"'(Intermediate Computations)'!B44","v":"2010-01-01"},{"$f":"'(Intermediate Computations)'!C44","v":"2010-02-01"},{"$f":"'(Intermediate Computations)'!D44","v":"2010-03-01"},{"$f":"'(Intermediate Computations)'!E44","v":"2010-04-01"},{"$f":"'(Intermediate Computations)'!F44","v":"2010-05-01"},{"$f":"'(Intermediate Computations)'!G44","v":"2010-06-01"},{"$f":"'(Intermediate Computations)'!H44","v":"2010-07-01"},{"$f":"'(Intermediate Computations)'!I44","v":"2010-08-01"},{"$f":"'(Intermediate Computations)'!J44","v":"2010-09-01"},{"$f":"'(Intermediate Computations)'!K44","v":"2010-10-01"},{"$f":"'(Intermediate Computations)'!L44","v":"2010-11-01"},{"$f":"'(Intermediate Computations)'!M44","v":"2010-12-01"},{"$f":"'(Intermediate Computations)'!O44","v":"2011-01-01"},{"$f":"'(Intermediate Computations)'!P44","v":"2011-02-01"},{"$f":"'(Intermediate Computations)'!Q44","v":"2011-03-01"},{"$f":"'(Intermediate Computations)'!R44","v":"2011-04-01"},{"$f":"'(Intermediate Computations)'!S44","v":"2011-05-01"},{"$f":"'(Intermediate Computations)'!T44","v":"2011-06-01"},{"$f":"'(Intermediate Computations)'!U44","v":"2011-07-01"},{"$f":"'(Intermediate Computations)'!V44","v":"2011-08-01"},{"$f":"'(Intermediate Computations)'!W44","v":"2011-09-01"},{"$f":"'(Intermediate Computations)'!X44","v":"2011-10-01"},{"$f":"'(Intermediate Computations)'!Y44","v":"2011-11-01"},{"$f":"'(Intermediate Computations)'!Z44","v":"2011-12-01"},{"$f":"'(Intermediate Computations)'!AB44","v":"2012-01-01"},{"$f":"'(Intermediate Computations)'!AC44","v":"2012-02-01"},{"$f":"'(Intermediate Computations)'!AD44","v":"2012-03-01"},{"$f":"'(Intermediate Computations)'!AE44","v":"2012-04-01"},{"$f":"'(Intermediate Computations)'!AF44","v":"2012-05-01"},{"$f":"'(Intermediate Computations)'!AG44","v":"2012-06-01"},{"$f":"'(Intermediate Computations)'!AH44","v":"2012-07-01"},{"$f":"'(Intermediate Computations)'!AI44","v":"2012-08-01"},{"$f":"'(Intermediate Computations)'!AJ44","v":"2012-09-01"},{"$f":"'(Intermediate Computations)'!AK44","v":"2012-10-01"},{"$f":"'(Intermediate Computations)'!AL44","v":"2012-11-01"},{"$f":"'(Intermediate Computations)'!AM44","v":"2012-12-01"},{"$f":"'(Intermediate Computations)'!AO44","v":"2013-01-01"},{"$f":"'(Intermediate Computations)'!AP44","v":"2013-02-01"},{"$f":"'(Intermediate Computations)'!AQ44","v":"2013-03-01"},{"$f":"'(Intermediate Computations)'!AR44","v":"2013-04-01"},{"$f":"'(Intermediate Computations)'!AS44","v":"2013-05-01"},{"$f":"'(Intermediate Computations)'!AT44","v":"2013-06-01"},{"$f":"'(Intermediate Computations)'!AU44","v":"2013-07-01"},{"$f":"'(Intermediate Computations)'!AV44","v":"2013-08-01"},{"$f":"'(Intermediate Computations)'!AW44","v":"2013-09-01"},{"$f":"'(Intermediate Computations)'!AX44","v":"2013-10-01"},{"$f":"'(Intermediate Computations)'!AY44","v":"2013-11-01"},{"$f":"'(Intermediate Computations)'!AZ44","v":"2013-12-01"},{"$f":"'(Intermediate Computations)'!BB44","v":"2014-01-01"},{"$f":"'(Intermediate Computations)'!BC44","v":"2014-02-01"},{"$f":"'(Intermediate Computations)'!BD44","v":"2014-03-01"},{"$f":"'(Intermediate Computations)'!BE44","v":"2014-04-01"},{"$f":"'(Intermediate Computations)'!BF44","v":"2014-05-01"},{"$f":"'(Intermediate Computations)'!BG44","v":"2014-06-01"},{"$f":"'(Intermediate Computations)'!BH44","v":"2014-07-01"},{"$f":"'(Intermediate Computations)'!BI44","v":"2014-08-01"},{"$f":"'(Intermediate Computations)'!BJ44","v":"2014-09-01"},{"$f":"'(Intermediate Computations)'!BK44","v":"2014-10-01"},{"$f":"'(Intermediate Computations)'!BL44","v":"2014-11-01"},{"$f":"'(Intermediate Computations)'!BM44","v":"2014-12-01"},{"$f":"'(Intermediate Computations)'!BO44","v":"2015-01-01"},{"$f":"'(Intermediate Computations)'!BP44","v":"2015-02-01"},{"$f":"'(Intermediate Computations)'!BQ44","v":"2015-03-01"},{"$f":"'(Intermediate Computations)'!BR44","v":"2015-04-01"},{"$f":"'(Intermediate Computations)'!BS44","v":"2015-05-01"},{"$f":"'(Intermediate Computations)'!BT44","v":"2015-06-01"},{"$f":"'(Intermediate Computations)'!BU44","v":"2015-07-01"},{"$f":"'(Intermediate Computations)'!BV44","v":"2015-08-01"},{"$f":"'(Intermediate Computations)'!BW44","v":"2015-09-01"},{"$f":"'(Intermediate Computations)'!BX44","v":"2015-10-01"},{"$f":"'(Intermediate Computations)'!BY44","v":"2015-11-01"},{"$f":"'(Intermediate Computations)'!BZ44","v":"2015-12-01"},{"$f":"'(Intermediate Computations)'!CB44","v":"2016-01-01"},{"$f":"'(Intermediate Computations)'!CC44","v":"2016-02-01"},{"$f":"'(Intermediate Computations)'!CD44","v":"2016-03-01"},{"$f":"'(Intermediate Computations)'!CE44","v":"2016-04-01"},{"$f":"'(Intermediate Computations)'!CF44","v":"2016-05-01"},{"$f":"'(Intermediate Computations)'!CG44","v":"2016-06-01"},{"$f":"'(Intermediate Computations)'!CH44","v":"2016-07-01"},{"$f":"'(Intermediate Computations)'!CI44","v":"2016-08-01"},{"$f":"'(Intermediate Computations)'!CJ44","v":"2016-09-01"},{"$f":"'(Intermediate Computations)'!CK44","v":"2016-10-01"},{"$f":"'(Intermediate Computations)'!CL44","v":"2016-11-01"},{"$f":"'(Intermediate Computations)'!CM44","v":"2016-12-01"},{"$f":"'(Intermediate Computations)'!CO44","v":"2017-01-01"},{"$f":"'(Intermediate Computations)'!CP44","v":"2017-02-01"},{"$f":"'(Intermediate Computations)'!CQ44","v":"2017-03-01"},{"$f":"'(Intermediate Computations)'!CR44","v":"2017-04-01"},{"$f":"'(Intermediate Computations)'!CS44","v":"2017-05-01"},{"$f":"'(Intermediate Computations)'!CT44","v":"2017-06-01"},{"$f":"'(Intermediate Computations)'!CU44","v":"2017-07-01"},{"$f":"'(Intermediate Computations)'!CV44","v":"2017-08-01"},{"$f":"'(Intermediate Computations)'!CW44","v":"2017-09-01"},{"$f":"'(Intermediate Computations)'!CX44","v":"2017-10-01"},{"$f":"'(Intermediate Computations)'!CY44","v":"2017-11-01"},{"$f":"'(Intermediate Computations)'!CZ44","v":"2017-12-01"},{"$f":"'(Intermediate Computations)'!DB44","v":"2018-01-01"},{"$f":"'(Intermediate Computations)'!DC44","v":"2018-02-01"},{"$f":"'(Intermediate Computations)'!DD44","v":"2018-03-01"},{"$f":"'(Intermediate Computations)'!DE44","v":"2018-04-01"},{"$f":"'(Intermediate Computations)'!DF44","v":"2018-05-01"},{"$f":"'(Intermediate Computations)'!DG44","v":"2018-06-01"},{"$f":"'(Intermediate Computations)'!DH44","v":"2018-07-01"},{"$f":"'(Intermediate Computations)'!DI44","v":"2018-08-01"},{"$f":"'(Intermediate Computations)'!DJ44","v":"2018-09-01"},{"$f":"'(Intermediate Computations)'!DK44","v":"2018-10-01"},{"$f":"'(Intermediate Computations)'!DL44","v":"2018-11-01"},{"$f":"'(Intermediate Computations)'!DM44","v":"2018-12-01"},{"$f":"'(Intermediate Computations)'!DO44","v":"2019-01-01"},{"$f":"'(Intermediate Computations)'!DP44","v":"2019-02-01"},{"$f":"'(Intermediate Computations)'!DQ44","v":"2019-03-01"},{"$f":"'(Intermediate Computations)'!DR44","v":"2019-04-01"},{"$f":"'(Intermediate Computations)'!DS44","v":"2019-05-01"},{"$f":"'(Intermediate Computations)'!DT44","v":"2019-06-01"},{"$f":"'(Intermediate Computations)'!DU44","v":"2019-07-01"},{"$f":"'(Intermediate Computations)'!DV44","v":"2019-08-01"},{"$f":"'(Intermediate Computations)'!DW44","v":"2019-09-01"},{"$f":"'(Intermediate Computations)'!DX44","v":"2019-10-01"},{"$f":"'(Intermediate Computations)'!DY44","v":"2019-11-01"},{"$f":"'(Intermediate Computations)'!DZ44","v":"2019-12-01"},{"$f":"'(Intermediate Computations)'!EB44","v":"2020-01-01"},{"$f":"'(Intermediate Computations)'!EC44","v":"2020-02-01"},{"$f":"'(Intermediate Computations)'!ED44","v":"2020-03-01"},{"$f":"'(Intermediate Computations)'!EE44","v":"2020-04-01"},{"$f":"'(Intermediate Computations)'!EF44","v":"2020-05-01"},{"$f":"'(Intermediate Computations)'!EG44","v":"2020-06-01"},{"$f":"'(Intermediate Computations)'!EH44","v":"2020-07-01"},{"$f":"'(Intermediate Computations)'!EI44","v":"2020-08-01"},{"$f":"'(Intermediate Computations)'!EJ44","v":"2020-09-01"},{"$f":"'(Intermediate Computations)'!EK44","v":"2020-10-01"},{"$f":"'(Intermediate Computations)'!EL44","v":"2020-11-01"},{"$f":"'(Intermediate Computations)'!EM44","v":"2020-12-01"}]
[{"$f":"'Trial 1'!B45","v":{"v":1166666.6666666667,"d":"$1,166,667"}},{"$f":"'Trial 1'!C45","v":{"v":1166666.6666666667,"d":"$1,166,667"}},{"$f":"'Trial 1'!D45","v":{"v":1166622.0560271668,"d":"$1,166,622"}},{"$f":"'Trial 1'!E45","v":{"v":1166546.0423975303,"d":"$1,166,546"}},{"$f":"'Trial 1'!F45","v":{"v":1166436.1967943555,"d":"$1,166,436"}},{"$f":"'Trial 1'!G45","v":{"v":1166289.5179010401,"d":"$1,166,290"}},{"$f":"'Trial 1'!H45","v":{"v":1166116.8891189452,"d":"$1,166,117"}},{"$f":"'Trial 1'!I45","v":{"v":1165912.9383423086,"d":"$1,165,913"}},{"$f":"'Trial 1'!J45","v":{"v":1165672.566120229,"d":"$1,165,673"}},{"$f":"'Trial 1'!K45","v":{"v":1165398.839591055,"d":"$1,165,399"}},{"$f":"'Trial 1'!L45","v":{"v":1165096.2445109335,"d":"$1,165,096"}},{"$f":"'Trial 1'!M45","v":{"v":1164774.136208803,"d":"$1,164,774"}},{"$f":"'Trial 1'!O45","v":{"v":1164428.8324985108,"d":"$1,164,429"}},{"$f":"'Trial 1'!P45","v":{"v":1164057.9125221919,"d":"$1,164,058"}},{"$f":"'Trial 1'!Q45","v":{"v":1163655.6308311766,"d":"$1,163,656"}},{"$f":"'Trial 1'!R45","v":{"v":1163226.5103387223,"d":"$1,163,227"}},{"$f":"'Trial 1'!S45","v":{"v":1162758.5309245891,"d":"$1,162,759"}},{"$f":"'Trial 1'!T45","v":{"v":1162268.6838496763,"d":"$1,162,269"}},{"$f":"'Trial 1'!U45","v":{"v":1161743.5460251763,"d":"$1,161,744"}},{"$f":"'Trial 1'!V45","v":{"v":1161188.2434133948,"d":"$1,161,188"}},{"$f":"'Trial 1'!W45","v":{"v":1160600.7649462742,"d":"$1,160,601"}},{"$f":"'Trial 1'!X45","v":{"v":1159981.9197269,"d":"$1,159,982"}},{"$f":"'Trial 1'!Y45","v":{"v":1159339.0584354158,"d":"$1,159,339"}},{"$f":"'Trial 1'!Z45","v":{"v":1158674.7209754537,"d":"$1,158,675"}},{"$f":"'Trial 1'!AB45","v":{"v":1157999.0999914398,"d":"$1,157,999"}},{"$f":"'Trial 1'!AC45","v":{"v":1157299.6837368058,"d":"$1,157,300"}},{"$f":"'Trial 1'!AD45","v":{"v":1156582.4907418704,"d":"$1,156,582"}},{"$f":"'Trial 1'!AE45","v":{"v":1155859.331344066,"d":"$1,155,859"}},{"$f":"'Trial 1'!AF45","v":{"v":1155114.7296318505,"d":"$1,155,115"}},{"$f":"'Trial 1'!AG45","v":{"v":1154346.9464232249,"d":"$1,154,347"}},{"$f":"'Trial 1'!AH45","v":{"v":1153562.7452038305,"d":"$1,153,563"}},{"$f":"'Trial 1'!AI45","v":{"v":1152761.9984471358,"d":"$1,152,762"}},{"$f":"'Trial 1'!AJ45","v":{"v":1151949.3511543937,"d":"$1,151,949"}},{"$f":"'Trial 1'!AK45","v":{"v":1151119.4899749192,"d":"$1,151,119"}},{"$f":"'Trial 1'!AL45","v":{"v":1150285.319476732,"d":"$1,150,285"}},{"$f":"'Trial 1'!AM45","v":{"v":1149439.414033881,"d":"$1,149,439"}},{"$f":"'Trial 1'!AO45","v":{"v":1148578.2771689033,"d":"$1,148,578"}},{"$f":"'Trial 1'!AP45","v":{"v":1147698.0896550945,"d":"$1,147,698"}},{"$f":"'Trial 1'!AQ45","v":{"v":1146799.5799622322,"d":"$1,146,800"}},{"$f":"'Trial 1'!AR45","v":{"v":1145901.6278891505,"d":"$1,145,902"}},{"$f":"'Trial 1'!AS45","v":{"v":1144984.7812690223,"d":"$1,144,985"}},{"$f":"'Trial 1'!AT45","v":{"v":1144063.186878619,"d":"$1,144,063"}},{"$f":"'Trial 1'!AU45","v":{"v":1143132.6144283698,"d":"$1,143,133"}},{"$f":"'Trial 1'!AV45","v":{"v":1142197.4795720372,"d":"$1,142,197"}},{"$f":"'Trial 1'!AW45","v":{"v":1141251.9260737759,"d":"$1,141,252"}},{"$f":"'Trial 1'!AX45","v":{"v":1140292.700391948,"d":"$1,140,293"}},{"$f":"'Trial 1'!AY45","v":{"v":1139324.482913419,"d":"$1,139,324"}},{"$f":"'Trial 1'!AZ45","v":{"v":1138356.304101694,"d":"$1,138,356"}},{"$f":"'Trial 1'!BB45","v":{"v":1137382.9618120156,"d":"$1,137,383"}},{"$f":"'Trial 1'!BC45","v":{"v":1136394.913269549,"d":"$1,136,395"}},{"$f":"'Trial 1'!BD45","v":{"v":1135392.0921328007,"d":"$1,135,392"}},{"$f":"'Trial 1'!BE45","v":{"v":1134383.8766015735,"d":"$1,134,384"}},{"$f":"'Trial 1'!BF45","v":{"v":1133365.9252913739,"d":"$1,133,366"}},{"$f":"'Trial 1'!BG45","v":{"v":1132348.4529915059,"d":"$1,132,348"}},{"$f":"'Trial 1'!BH45","v":{"v":1131327.714195114,"d":"$1,131,328"}},{"$f":"'Trial 1'!BI45","v":{"v":1130303.588018257,"d":"$1,130,304"}},{"$f":"'Trial 1'!BJ45","v":{"v":1129277.9234548116,"d":"$1,129,278"}},{"$f":"'Trial 1'!BK45","v":{"v":1128245.2331639058,"d":"$1,128,245"}},{"$f":"'Trial 1'!BL45","v":{"v":1127205.551578681,"d":"$1,127,206"}},{"$f":"'Trial 1'!BM45","v":{"v":1126152.6125115878,"d":"$1,126,153"}},{"$f":"'Trial 1'!BO45","v":{"v":1125097.807111956,"d":"$1,125,098"}},{"$f":"'Trial 1'!BP45","v":{"v":1124033.225111279,"d":"$1,124,033"}},{"$f":"'Trial 1'!BQ45","v":{"v":1122968.783919912,"d":"$1,122,969"}},{"$f":"'Trial 1'!BR45","v":{"v":1121897.2538558836,"d":"$1,121,897"}},{"$f":"'Trial 1'!BS45","v":{"v":1120833.3385888548,"d":"$1,120,833"}},{"$f":"'Trial 1'!BT45","v":{"v":1119770.908404451,"d":"$1,119,771"}},{"$f":"'Trial 1'!BU45","v":{"v":1118706.4929875128,"d":"$1,118,706"}},{"$f":"'Trial 1'!BV45","v":{"v":1117630.4895203235,"d":"$1,117,630"}},{"$f":"'Trial 1'!BW45","v":{"v":1116545.98651897,"d":"$1,116,546"}},{"$f":"'Trial 1'!BX45","v":{"v":1115457.6599493893,"d":"$1,115,458"}},{"$f":"'Trial 1'!BY45","v":{"v":1114373.8805970622,"d":"$1,114,374"}},{"$f":"'Trial 1'!BZ45","v":{"v":1113282.1391699072,"d":"$1,113,282"}},{"$f":"'Trial 1'!CB45","v":{"v":1112180.5386936495,"d":"$1,112,181"}},{"$f":"'Trial 1'!CC45","v":{"v":1111084.87055607,"d":"$1,111,085"}},{"$f":"'Trial 1'!CD45","v":{"v":1109987.0875425343,"d":"$1,109,987"}},{"$f":"'Trial 1'!CE45","v":{"v":1108880.5003739216,"d":"$1,108,881"}},{"$f":"'Trial 1'!CF45","v":{"v":1107781.5017373431,"d":"$1,107,782"}},{"$f":"'Trial 1'!CG45","v":{"v":1106676.03727994,"d":"$1,106,676"}},{"$f":"'Trial 1'!CH45","v":{"v":1105570.2291751874,"d":"$1,105,570"}},{"$f":"'Trial 1'!CI45","v":{"v":1104467.1775906775,"d":"$1,104,467"}},{"$f":"'Trial 1'!CJ45","v":{"v":1103363.821918606,"d":"$1,103,364"}},{"$f":"'Trial 1'!CK45","v":{"v":1102262.54121286,"d":"$1,102,263"}},{"$f":"'Trial 1'!CL45","v":{"v":1101162.0872310116,"d":"$1,101,162"}},{"$f":"'Trial 1'!CM45","v":{"v":1100052.8838922658,"d":"$1,100,053"}},{"$f":"'Trial 1'!CO45","v":{"v":1098950.353205544,"d":"$1,098,950"}},{"$f":"'Trial 1'!CP45","v":{"v":1097849.0617329914,"d":"$1,097,849"}},{"$f":"'Trial 1'!CQ45","v":{"v":1096743.2341924922,"d":"$1,096,743"}},{"$f":"'Trial 1'!CR45","v":{"v":1095644.4074374307,"d":"$1,095,644"}},{"$f":"'Trial 1'!CS45","v":{"v":1094535.4719781722,"d":"$1,094,535"}},{"$f":"'Trial 1'!CT45","v":{"v":1093427.6340112016,"d":"$1,093,428"}},{"$f":"'Trial 1'!CU45","v":{"v":1092311.8500699755,"d":"$1,092,312"}},{"$f":"'Trial 1'!CV45","v":{"v":1091200.259146545,"d":"$1,091,200"}},{"$f":"'Trial 1'!CW45","v":{"v":1090083.3191727593,"d":"$1,090,083"}},{"$f":"'Trial 1'!CX45","v":{"v":1088970.5289532624,"d":"$1,088,971"}},{"$f":"'Trial 1'!CY45","v":{"v":1087851.268109156,"d":"$1,087,851"}},{"$f":"'Trial 1'!CZ45","v":{"v":1086741.9709045852,"d":"$1,086,742"}},{"$f":"'Trial 1'!DB45","v":{"v":1085644.0314691782,"d":"$1,085,644"}},{"$f":"'Trial 1'!DC45","v":{"v":1084539.34833311,"d":"$1,084,539"}},{"$f":"'Trial 1'!DD45","v":{"v":1083438.1517592457,"d":"$1,083,438"}},{"$f":"'Trial 1'!DE45","v":{"v":1082344.2357400018,"d":"$1,082,344"}},{"$f":"'Trial 1'!DF45","v":{"v":1081253.5732790492,"d":"$1,081,254"}},{"$f":"'Trial 1'!DG45","v":{"v":1080171.1671611087,"d":"$1,080,171"}},{"$f":"'Trial 1'!DH45","v":{"v":1079096.4771552254,"d":"$1,079,096"}},{"$f":"'Trial 1'!DI45","v":{"v":1078021.9268081314,"d":"$1,078,022"}},{"$f":"'Trial 1'!DJ45","v":{"v":1076953.4447479362,"d":"$1,076,953"}},{"$f":"'Trial 1'!DK45","v":{"v":1075882.0421888814,"d":"$1,075,882"}},{"$f":"'Trial 1'!DL45","v":{"v":1074817.0770760935,"d":"$1,074,817"}},{"$f":"'Trial 1'!DM45","v":{"v":1073764.5688175138,"d":"$1,073,765"}},{"$f":"'Trial 1'!DO45","v":{"v":1072707.6392237472,"d":"$1,072,708"}},{"$f":"'Trial 1'!DP45","v":{"v":1071655.3371150019,"d":"$1,071,655"}},{"$f":"'Trial 1'!DQ45","v":{"v":1070615.2452030797,"d":"$1,070,615"}},{"$f":"'Trial 1'!DR45","v":{"v":1069575.156076281,"d":"$1,069,575"}},{"$f":"'Trial 1'!DS45","v":{"v":1068540.9132569616,"d":"$1,068,541"}},{"$f":"'Trial 1'!DT45","v":{"v":1067510.9845427636,"d":"$1,067,511"}},{"$f":"'Trial 1'!DU45","v":{"v":1066482.2820842892,"d":"$1,066,482"}},{"$f":"'Trial 1'!DV45","v":{"v":1065454.437825043,"d":"$1,065,454"}},{"$f":"'Trial 1'!DW45","v":{"v":1064432.4732810766,"d":"$1,064,432"}},{"$f":"'Trial 1'!DX45","v":{"v":1063406.5546664954,"d":"$1,063,407"}},{"$f":"'Trial 1'!DY45","v":{"v":1062379.1353600286,"d":"$1,062,379"}},{"$f":"'Trial 1'!DZ45","v":{"v":1061362.0025297306,"d":"$1,061,362"}},{"$f":"'Trial 1'!EB45","v":{"v":1060352.8782216252,"d":"$1,060,353"}},{"$f":"'Trial 1'!EC45","v":{"v":1059342.4794202216,"d":"$1,059,342"}},{"$f":"'Trial 1'!ED45","v":{"v":1058338.1026475492,"d":"$1,058,338"}},{"$f":"'Trial 1'!EE45","v":{"v":1057336.686407422,"d":"$1,057,337"}},{"$f":"'Trial 1'!EF45","v":{"v":1056338.3787963754,"d":"$1,056,338"}},{"$f":"'Trial 1'!EG45","v":{"v":1055334.609867137,"d":"$1,055,335"}},{"$f":"'Trial 1'!EH45","v":{"v":1054333.5196119444,"d":"$1,054,334"}},{"$f":"'Trial 1'!EI45","v":{"v":1053333.7598364446,"d":"$1,053,334"}},{"$f":"'Trial 1'!EJ45","v":{"v":1052336.64582653,"d":"$1,052,337"}},{"$f":"'Trial 1'!EK45","v":{"v":1051337.3480823315,"d":"$1,051,337"}},{"$f":"'Trial 1'!EL45","v":{"v":1050343.5716701273,"d":"$1,050,344"}},{"$f":"'Trial 1'!EM45","v":{"v":1049352.133599743,"d":"$1,049,352"}}]
[{"$f":"'Trial 2'!B45","v":{"v":1166666.6666666667,"d":"$1,166,667"}},{"$f":"'Trial 2'!C45","v":{"v":1166666.6666666667,"d":"$1,166,667"}},{"$f":"'Trial 2'!D45","v":{"v":1166624.2187139338,"d":"$1,166,624"}},{"$f":"'Trial 2'!E45","v":{"v":1166534.8720595671,"d":"$1,166,535"}},{"$f":"'Trial 2'!F45","v":{"v":1166409.80225496,"d":"$1,166,410"}},{"$f":"'Trial 2'!G45","v":{"v":1166260.4309479278,"d":"$1,166,260"}},{"$f":"'Trial 2'!H45","v":{"v":1166078.8066857564,"d":"$1,166,079"}},{"$f":"'Trial 2'!I45","v":{"v":1165858.9383054685,"d":"$1,165,859"}},{"$f":"'Trial 2'!J45","v":{"v":1165605.5971022455,"d":"$1,165,606"}},{"$f":"'Trial 2'!K45","v":{"v":1165312.5457392437,"d":"$1,165,313"}},{"$f":"'Trial 2'!L45","v":{"v":1164991.0091331275,"d":"$1,164,991"}},{"$f":"'Trial 2'!M45","v":{"v":1164640.170218871,"d":"$1,164,640"}},{"$f":"'Trial 2'!O45","v":{"v":1164252.6235697335,"d":"$1,164,253"}},{"$f":"'Trial 2'!P45","v":{"v":1163842.7080241237,"d":"$1,163,843"}},{"$f":"'Trial 2'!Q45","v":{"v":1163401.2284825528,"d":"$1,163,401"}},{"$f":"'Trial 2'!R45","v":{"v":1162938.7197828842,"d":"$1,162,939"}},{"$f":"'Trial 2'!S45","v":{"v":1162456.6230649697,"d":"$1,162,457"}},{"$f":"'Trial 2'!T45","v":{"v":1161947.5462196763,"d":"$1,161,948"}},{"$f":"'Trial 2'!U45","v":{"v":1161412.5040316018,"d":"$1,161,413"}},{"$f":"'Trial 2'!V45","v":{"v":1160852.2748195797,"d":"$1,160,852"}},{"$f":"'Trial 2'!W45","v":{"v":1160261.4001573145,"d":"$1,160,261"}},{"$f":"'Trial 2'!X45","v":{"v":1159643.3942739053,"d":"$1,159,643"}},{"$f":"'Trial 2'!Y45","v":{"v":1159000.871973843,"d":"$1,159,001"}},{"$f":"'Trial 2'!Z45","v":{"v":1158333.2762300794,"d":"$1,158,333"}},{"$f":"'Trial 2'!AB45","v":{"v":1157634.1247260794,"d":"$1,157,634"}},{"$f":"'Trial 2'!AC45","v":{"v":1156919.6921184312,"d":"$1,156,920"}},{"$f":"'Trial 2'!AD45","v":{"v":1156187.091933866,"d":"$1,156,187"}},{"$f":"'Trial 2'!AE45","v":{"v":1155437.543849275,"d":"$1,155,438"}},{"$f":"'Trial 2'!AF45","v":{"v":1154671.0893032067,"d":"$1,154,671"}},{"$f":"'Trial 2'!AG45","v":{"v":1153900.0642284197,"d":"$1,153,900"}},{"$f":"'Trial 2'!AH45","v":{"v":1153113.006379867,"d":"$1,153,113"}},{"$f":"'Trial 2'!AI45","v":{"v":1152307.605253306,"d":"$1,152,308"}},{"$f":"'Trial 2'!AJ45","v":{"v":1151490.658645558,"d":"$1,151,491"}},{"$f":"'Trial 2'!AK45","v":{"v":1150650.0338046642,"d":"$1,150,650"}},{"$f":"'Trial 2'!AL45","v":{"v":1149796.464796544,"d":"$1,149,796"}},{"$f":"'Trial 2'!AM45","v":{"v":1148934.2907194137,"d":"$1,148,934"}},{"$f":"'Trial 2'!AO45","v":{"v":1148068.7521982563,"d":"$1,148,069"}},{"$f":"'Trial 2'!AP45","v":{"v":1147187.1073069538,"d":"$1,147,187"}},{"$f":"'Trial 2'!AQ45","v":{"v":1146292.2085144343,"d":"$1,146,292"}},{"$f":"'Trial 2'!AR45","v":{"v":1145389.3099924938,"d":"$1,145,389"}},{"$f":"'Trial 2'!AS45","v":{"v":1144478.2633979092,"d":"$1,144,478"}},{"$f":"'Trial 2'!AT45","v":{"v":1143553.2543371585,"d":"$1,143,553"}},{"$f":"'Trial 2'!AU45","v":{"v":1142621.0982922043,"d":"$1,142,621"}},{"$f":"'Trial 2'!AV45","v":{"v":1141681.9647371517,"d":"$1,141,682"}},{"$f":"'Trial 2'!AW45","v":{"v":1140734.46974563,"d":"$1,140,734"}},{"$f":"'Trial 2'!AX45","v":{"v":1139779.7143739017,"d":"$1,139,780"}},{"$f":"'Trial 2'!AY45","v":{"v":1138805.1036975426,"d":"$1,138,805"}},{"$f":"'Trial 2'!AZ45","v":{"v":1137820.469518119,"d":"$1,137,820"}},{"$f":"'Trial 2'!BB45","v":{"v":1136835.6081474456,"d":"$1,136,836"}},{"$f":"'Trial 2'!BC45","v":{"v":1135841.8802178802,"d":"$1,135,842"}},{"$f":"'Trial 2'!BD45","v":{"v":1134836.378423485,"d":"$1,134,836"}},{"$f":"'Trial 2'!BE45","v":{"v":1133824.853454022,"d":"$1,133,825"}},{"$f":"'Trial 2'!BF45","v":{"v":1132814.614392434,"d":"$1,132,815"}},{"$f":"'Trial 2'!BG45","v":{"v":1131797.1582848276,"d":"$1,131,797"}},{"$f":"'Trial 2'!BH45","v":{"v":1130779.4861253912,"d":"$1,130,779"}},{"$f":"'Trial 2'!BI45","v":{"v":1129749.4910042118,"d":"$1,129,749"}},{"$f":"'Trial 2'!BJ45","v":{"v":1128710.0114783866,"d":"$1,128,710"}},{"$f":"'Trial 2'!BK45","v":{"v":1127656.0442033315,"d":"$1,127,656"}},{"$f":"'Trial 2'!BL45","v":{"v":1126603.094482114,"d":"$1,126,603"}},{"$f":"'Trial 2'!BM45","v":{"v":1125542.9360400634,"d":"$1,125,543"}},{"$f":"'Trial 2'!BO45","v":{"v":1124480.4948181426,"d":"$1,124,480"}},{"$f":"'Trial 2'!BP45","v":{"v":1123403.979849821,"d":"$1,123,404"}},{"$f":"'Trial 2'!BQ45","v":{"v":1122312.4866025567,"d":"$1,122,312"}},{"$f":"'Trial 2'!BR45","v":{"v":1121211.2250201376,"d":"$1,121,211"}},{"$f":"'Trial 2'!BS45","v":{"v":1120111.4768033796,"d":"$1,120,111"}},{"$f":"'Trial 2'!BT45","v":{"v":1119016.641482197,"d":"$1,119,017"}},{"$f":"'Trial 2'!BU45","v":{"v":1117910.2899433058,"d":"$1,117,910"}},{"$f":"'Trial 2'!BV45","v":{"v":1116811.4463295545,"d":"$1,116,811"}},{"$f":"'Trial 2'!BW45","v":{"v":1115706.3177281402,"d":"$1,115,706"}},{"$f":"'Trial 2'!BX45","v":{"v":1114603.7383196168,"d":"$1,114,604"}},{"$f":"'Trial 2'!BY45","v":{"v":1113500.571891761,"d":"$1,113,501"}},{"$f":"'Trial 2'!BZ45","v":{"v":1112385.5652560617,"d":"$1,112,386"}},{"$f":"'Trial 2'!CB45","v":{"v":1111281.2328834445,"d":"$1,111,281"}},{"$f":"'Trial 2'!CC45","v":{"v":1110177.8049668176,"d":"$1,110,178"}},{"$f":"'Trial 2'!CD45","v":{"v":1109078.1322449902,"d":"$1,109,078"}},{"$f":"'Trial 2'!CE45","v":{"v":1107973.3551980245,"d":"$1,107,973"}},{"$f":"'Trial 2'!CF45","v":{"v":1106866.977591607,"d":"$1,106,867"}},{"$f":"'Trial 2'!CG45","v":{"v":1105767.5908488424,"d":"$1,105,768"}},{"$f":"'Trial 2'!CH45","v":{"v":1104671.163664658,"d":"$1,104,671"}},{"$f":"'Trial 2'!CI45","v":{"v":1103580.7559526488,"d":"$1,103,581"}},{"$f":"'Trial 2'!CJ45","v":{"v":1102490.6129896264,"d":"$1,102,491"}},{"$f":"'Trial 2'!CK45","v":{"v":1101408.359033326,"d":"$1,101,408"}},{"$f":"'Trial 2'!CL45","v":{"v":1100318.5013804147,"d":"$1,100,319"}},{"$f":"'Trial 2'!CM45","v":{"v":1099228.0754732904,"d":"$1,099,228"}},{"$f":"'Trial 2'!CO45","v":{"v":1098128.6535262265,"d":"$1,098,129"}},{"$f":"'Trial 2'!CP45","v":{"v":1097028.7843883573,"d":"$1,097,029"}},{"$f":"'Trial 2'!CQ45","v":{"v":1095925.5962708027,"d":"$1,095,926"}},{"$f":"'Trial 2'!CR45","v":{"v":1094823.8208696595,"d":"$1,094,824"}},{"$f":"'Trial 2'!CS45","v":{"v":1093726.222970742,"d":"$1,093,726"}},{"$f":"'Trial 2'!CT45","v":{"v":1092627.3872337674,"d":"$1,092,627"}},{"$f":"'Trial 2'!CU45","v":{"v":1091534.0178523469,"d":"$1,091,534"}},{"$f":"'Trial 2'!CV45","v":{"v":1090435.5923683904,"d":"$1,090,436"}},{"$f":"'Trial 2'!CW45","v":{"v":1089346.4527285872,"d":"$1,089,346"}},{"$f":"'Trial 2'!CX45","v":{"v":1088257.6199468982,"d":"$1,088,258"}},{"$f":"'Trial 2'!CY45","v":{"v":1087178.0300905784,"d":"$1,087,178"}},{"$f":"'Trial 2'!CZ45","v":{"v":1086088.5220733096,"d":"$1,086,089"}},{"$f":"'Trial 2'!DB45","v":{"v":1085007.163304483,"d":"$1,085,007"}},{"$f":"'Trial 2'!DC45","v":{"v":1083926.2687074852,"d":"$1,083,926"}},{"$f":"'Trial 2'!DD45","v":{"v":1082845.3272104661,"d":"$1,082,845"}},{"$f":"'Trial 2'!DE45","v":{"v":1081770.44267508,"d":"$1,081,770"}},{"$f":"'Trial 2'!DF45","v":{"v":1080695.1675135423,"d":"$1,080,695"}},{"$f":"'Trial 2'!DG45","v":{"v":1079626.5194640376,"d":"$1,079,627"}},{"$f":"'Trial 2'!DH45","v":{"v":1078566.5234709198,"d":"$1,078,567"}},{"$f":"'Trial 2'!DI45","v":{"v":1077508.8483989402,"d":"$1,077,509"}},{"$f":"'Trial 2'!DJ45","v":{"v":1076454.7302869847,"d":"$1,076,455"}},{"$f":"'Trial 2'!DK45","v":{"v":1075405.0640383407,"d":"$1,075,405"}},{"$f":"'Trial 2'!DL45","v":{"v":1074367.1556992838,"d":"$1,074,367"}},{"$f":"'Trial 2'!DM45","v":{"v":1073325.3614749634,"d":"$1,073,325"}},{"$f":"'Trial 2'!DO45","v":{"v":1072274.6862827525,"d":"$1,072,275"}},{"$f":"'Trial 2'!DP45","v":{"v":1071219.6920326632,"d":"$1,071,220"}},{"$f":"'Trial 2'!DQ45","v":{"v":1070174.1006907301,"d":"$1,070,174"}},{"$f":"'Trial 2'!DR45","v":{"v":1069122.5514295602,"d":"$1,069,123"}},{"$f":"'Trial 2'!DS45","v":{"v":1068075.2889766768,"d":"$1,068,075"}},{"$f":"'Trial 2'!DT45","v":{"v":1067029.6237462375,"d":"$1,067,030"}},{"$f":"'Trial 2'!DU45","v":{"v":1065981.9687070844,"d":"$1,065,982"}},{"$f":"'Trial 2'!DV45","v":{"v":1064940.0904661783,"d":"$1,064,940"}},{"$f":"'Trial 2'!DW45","v":{"v":1063907.2191937745,"d":"$1,063,907"}},{"$f":"'Trial 2'!DX45","v":{"v":1062882.1668139861,"d":"$1,062,882"}},{"$f":"'Trial 2'!DY45","v":{"v":1061853.4425053066,"d":"$1,061,853"}},{"$f":"'Trial 2'!DZ45","v":{"v":1060833.7162735248,"d":"$1,060,834"}},{"$f":"'Trial 2'!EB45","v":{"v":1059817.3003355209,"d":"$1,059,817"}},{"$f":"'Trial 2'!EC45","v":{"v":1058797.1234758557,"d":"$1,058,797"}},{"$f":"'Trial 2'!ED45","v":{"v":1057787.13172076,"d":"$1,057,787"}},{"$f":"'Trial 2'!EE45","v":{"v":1056784.2811309535,"d":"$1,056,784"}},{"$f":"'Trial 2'!EF45","v":{"v":1055774.5226793028,"d":"$1,055,775"}},{"$f":"'Trial 2'!EG45","v":{"v":1054768.1119198054,"d":"$1,054,768"}},{"$f":"'Trial 2'!EH45","v":{"v":1053775.394267391,"d":"$1,053,775"}},{"$f":"'Trial 2'!EI45","v":{"v":1052779.7950311182,"d":"$1,052,780"}},{"$f":"'Trial 2'!EJ45","v":{"v":1051783.5525804677,"d":"$1,051,784"}},{"$f":"'Trial 2'!EK45","v":{"v":1050784.6900369453,"d":"$1,050,785"}},{"$f":"'Trial 2'!EL45","v":{"v":1049792.9487485108,"d":"$1,049,793"}},{"$f":"'Trial 2'!EM45","v":{"v":1048802.2529572179,"d":"$1,048,802"}}]
[{"$f":"'Trial 3'!B45","v":{"v":1166666.6666666667,"d":"$1,166,667"}},{"$f":"'Trial 3'!C45","v":{"v":1166666.6666666667,"d":"$1,166,667"}},{"$f":"'Trial 3'!D45","v":{"v":1166615.8566966692,"d":"$1,166,616"}},{"$f":"'Trial 3'!E45","v":{"v":1166528.2061401985,"d":"$1,166,528"}},{"$f":"'Trial 3'!F45","v":{"v":1166396.9929771663,"d":"$1,166,397"}},{"$f":"'Trial 3'!G45","v":{"v":1166238.3047140029,"d":"$1,166,238"}},{"$f":"'Trial 3'!H45","v":{"v":1166047.001647945,"d":"$1,166,047"}},{"$f":"'Trial 3'!I45","v":{"v":1165829.3172762448,"d":"$1,165,829"}},{"$f":"'Trial 3'!J45","v":{"v":1165575.3756011236,"d":"$1,165,575"}},{"$f":"'Trial 3'!K45","v":{"v":1165294.2718349008,"d":"$1,165,294"}},{"$f":"'Trial 3'!L45","v":{"v":1164974.2268017493,"d":"$1,164,974"}},{"$f":"'Trial 3'!M45","v":{"v":1164625.3032545222,"d":"$1,164,625"}},{"$f":"'Trial 3'!O45","v":{"v":1164252.6879094737,"d":"$1,164,253"}},{"$f":"'Trial 3'!P45","v":{"v":1163846.0856866164,"d":"$1,163,846"}},{"$f":"'Trial 3'!Q45","v":{"v":1163413.3520446431,"d":"$1,163,413"}},{"$f":"'Trial 3'!R45","v":{"v":1162950.6604229207,"d":"$1,162,951"}},{"$f":"'Trial 3'!S45","v":{"v":1162469.816609165,"d":"$1,162,470"}},{"$f":"'Trial 3'!T45","v":{"v":1161968.0371495697,"d":"$1,161,968"}},{"$f":"'Trial 3'!U45","v":{"v":1161441.258024253,"d":"$1,161,441"}},{"$f":"'Trial 3'!V45","v":{"v":1160888.379045682,"d":"$1,160,888"}},{"$f":"'Trial 3'!W45","v":{"v":1160299.7397594438,"d":"$1,160,300"}},{"$f":"'Trial 3'!X45","v":{"v":1159683.4320016715,"d":"$1,159,683"}},{"$f":"'Trial 3'!Y45","v":{"v":1159048.2058305435,"d":"$1,159,048"}},{"$f":"'Trial 3'!Z45","v":{"v":1158393.0355645476,"d":"$1,158,393"}},{"$f":"'Trial 3'!AB45","v":{"v":1157714.8537811185,"d":"$1,157,715"}},{"$f":"'Trial 3'!AC45","v":{"v":1157005.925234633,"d":"$1,157,006"}},{"$f":"'Trial 3'!AD45","v":{"v":1156286.5347667052,"d":"$1,156,287"}},{"$f":"'Trial 3'!AE45","v":{"v":1155545.0182548754,"d":"$1,155,545"}},{"$f":"'Trial 3'!AF45","v":{"v":1154779.379075374,"d":"$1,154,779"}},{"$f":"'Trial 3'!AG45","v":{"v":1154002.578059614,"d":"$1,154,003"}},{"$f":"'Trial 3'!AH45","v":{"v":1153198.2142429508,"d":"$1,153,198"}},{"$f":"'Trial 3'!AI45","v":{"v":1152383.427580166,"d":"$1,152,383"}},{"$f":"'Trial 3'!AJ45","v":{"v":1151555.1381832145,"d":"$1,151,555"}},{"$f":"'Trial 3'!AK45","v":{"v":1150707.5946620272,"d":"$1,150,708"}},{"$f":"'Trial 3'!AL45","v":{"v":1149850.2204448476,"d":"$1,149,850"}},{"$f":"'Trial 3'!AM45","v":{"v":1148980.825268915,"d":"$1,148,981"}},{"$f":"'Trial 3'!AO45","v":{"v":1148096.1011973007,"d":"$1,148,096"}},{"$f":"'Trial 3'!AP45","v":{"v":1147196.0311445545,"d":"$1,147,196"}},{"$f":"'Trial 3'!AQ45","v":{"v":1146290.1283029236,"d":"$1,146,290"}},{"$f":"'Trial 3'!AR45","v":{"v":1145380.051895274,"d":"$1,145,380"}},{"$f":"'Trial 3'!AS45","v":{"v":1144449.652833477,"d":"$1,144,450"}},{"$f":"'Trial 3'!AT45","v":{"v":1143507.0806586382,"d":"$1,143,507"}},{"$f":"'Trial 3'!AU45","v":{"v":1142559.8138626465,"d":"$1,142,560"}},{"$f":"'Trial 3'!AV45","v":{"v":1141599.7705303447,"d":"$1,141,600"}},{"$f":"'Trial 3'!AW45","v":{"v":1140624.6262129506,"d":"$1,140,625"}},{"$f":"'Trial 3'!AX45","v":{"v":1139643.2997775387,"d":"$1,139,643"}},{"$f":"'Trial 3'!AY45","v":{"v":1138647.3959586613,"d":"$1,138,647"}},{"$f":"'Trial 3'!AZ45","v":{"v":1137651.032773917,"d":"$1,137,651"}},{"$f":"'Trial 3'!BB45","v":{"v":1136640.851771392,"d":"$1,136,641"}},{"$f":"'Trial 3'!BC45","v":{"v":1135614.2121470845,"d":"$1,135,614"}},{"$f":"'Trial 3'!BD45","v":{"v":1134578.9551096717,"d":"$1,134,579"}},{"$f":"'Trial 3'!BE45","v":{"v":1133528.146351898,"d":"$1,133,528"}},{"$f":"'Trial 3'!BF45","v":{"v":1132477.303867812,"d":"$1,132,477"}},{"$f":"'Trial 3'!BG45","v":{"v":1131409.7550538767,"d":"$1,131,410"}},{"$f":"'Trial 3'!BH45","v":{"v":1130339.9352403055,"d":"$1,130,340"}},{"$f":"'Trial 3'!BI45","v":{"v":1129254.1365577218,"d":"$1,129,254"}},{"$f":"'Trial 3'!BJ45","v":{"v":1128158.4534911122,"d":"$1,128,158"}},{"$f":"'Trial 3'!BK45","v":{"v":1127060.9092882155,"d":"$1,127,061"}},{"$f":"'Trial 3'!BL45","v":{"v":1125960.4263643383,"d":"$1,125,960"}},{"$f":"'Trial 3'!BM45","v":{"v":1124854.6248893386,"d":"$1,124,855"}},{"$f":"'Trial 3'!BO45","v":{"v":1123750.9783049189,"d":"$1,123,751"}},{"$f":"'Trial 3'!BP45","v":{"v":1122644.197180516,"d":"$1,122,644"}},{"$f":"'Trial 3'!BQ45","v":{"v":1121534.77499917,"d":"$1,121,535"}},{"$f":"'Trial 3'!BR45","v":{"v":1120426.0205462426,"d":"$1,120,426"}},{"$f":"'Trial 3'!BS45","v":{"v":1119309.3117052238,"d":"$1,119,309"}},{"$f":"'Trial 3'!BT45","v":{"v":1118191.7853950814,"d":"$1,118,192"}},{"$f":"'Trial 3'!BU45","v":{"v":1117077.727243377,"d":"$1,117,078"}},{"$f":"'Trial 3'!BV45","v":{"v":1115960.3897502793,"d":"$1,115,960"}},{"$f":"'Trial 3'!BW45","v":{"v":1114839.0397779923,"d":"$1,114,839"}},{"$f":"'Trial 3'!BX45","v":{"v":1113711.5416437585,"d":"$1,113,712"}},{"$f":"'Trial 3'!BY45","v":{"v":1112586.5955747191,"d":"$1,112,587"}},{"$f":"'Trial 3'!BZ45","v":{"v":1111453.944234053,"d":"$1,111,454"}},{"$f":"'Trial 3'!CB45","v":{"v":1110329.4552138448,"d":"$1,110,329"}},{"$f":"'Trial 3'!CC45","v":{"v":1109202.697508818,"d":"$1,109,203"}},{"$f":"'Trial 3'!CD45","v":{"v":1108079.5146201965,"d":"$1,108,080"}},{"$f":"'Trial 3'!CE45","v":{"v":1106955.1544739574,"d":"$1,106,955"}},{"$f":"'Trial 3'!CF45","v":{"v":1105831.8830533524,"d":"$1,105,832"}},{"$f":"'Trial 3'!CG45","v":{"v":1104710.1030401664,"d":"$1,104,710"}},{"$f":"'Trial 3'!CH45","v":{"v":1103589.2437064254,"d":"$1,103,589"}},{"$f":"'Trial 3'!CI45","v":{"v":1102474.341139226,"d":"$1,102,474"}},{"$f":"'Trial 3'!CJ45","v":{"v":1101366.2001292836,"d":"$1,101,366"}},{"$f":"'Trial 3'!CK45","v":{"v":1100267.1002763081,"d":"$1,100,267"}},{"$f":"'Trial 3'!CL45","v":{"v":1099167.5870388602,"d":"$1,099,168"}},{"$f":"'Trial 3'!CM45","v":{"v":1098072.891039724,"d":"$1,098,073"}},{"$f":"'Trial 3'!CO45","v":{"v":1096985.5851565534,"d":"$1,096,986"}},{"$f":"'Trial 3'!CP45","v":{"v":1095908.474465621,"d":"$1,095,908"}},{"$f":"'Trial 3'!CQ45","v":{"v":1094825.24222842,"d":"$1,094,825"}},{"$f":"'Trial 3'!CR45","v":{"v":1093746.1654883847,"d":"$1,093,746"}},{"$f":"'Trial 3'!CS45","v":{"v":1092665.5997979501,"d":"$1,092,666"}},{"$f":"'Trial 3'!CT45","v":{"v":1091588.2968859456,"d":"$1,091,588"}},{"$f":"'Trial 3'!CU45","v":{"v":1090511.4540494508,"d":"$1,090,511"}},{"$f":"'Trial 3'!CV45","v":{"v":1089437.4612560868,"d":"$1,089,437"}},{"$f":"'Trial 3'!CW45","v":{"v":1088368.8174605,"d":"$1,088,369"}},{"$f":"'Trial 3'!CX45","v":{"v":1087302.360128701,"d":"$1,087,302"}},{"$f":"'Trial 3'!CY45","v":{"v":1086231.7651560297,"d":"$1,086,232"}},{"$f":"'Trial 3'!CZ45","v":{"v":1085171.33735319,"d":"$1,085,171"}},{"$f":"'Trial 3'!DB45","v":{"v":1084108.2682275197,"d":"$1,084,108"}},{"$f":"'Trial 3'!DC45","v":{"v":1083052.7832177354,"d":"$1,083,053"}},{"$f":"'Trial 3'!DD45","v":{"v":1081992.4970361108,"d":"$1,081,992"}},{"$f":"'Trial 3'!DE45","v":{"v":1080923.230622694,"d":"$1,080,923"}},{"$f":"'Trial 3'!DF45","v":{"v":1079855.6021200048,"d":"$1,079,856"}},{"$f":"'Trial 3'!DG45","v":{"v":1078793.0172533083,"d":"$1,078,793"}},{"$f":"'Trial 3'!DH45","v":{"v":1077734.0947581374,"d":"$1,077,734"}},{"$f":"'Trial 3'!DI45","v":{"v":1076681.2470055732,"d":"$1,076,681"}},{"$f":"'Trial 3'!DJ45","v":{"v":1075633.4038743714,"d":"$1,075,633"}},{"$f":"'Trial 3'!DK45","v":{"v":1074588.5445778512,"d":"$1,074,589"}},{"$f":"'Trial 3'!DL45","v":{"v":1073544.2730178453,"d":"$1,073,544"}},{"$f":"'Trial 3'!DM45","v":{"v":1072505.0836645495,"d":"$1,072,505"}},{"$f":"'Trial 3'!DO45","v":{"v":1071472.859338843,"d":"$1,071,473"}},{"$f":"'Trial 3'!DP45","v":{"v":1070445.4129641172,"d":"$1,070,445"}},{"$f":"'Trial 3'!DQ45","v":{"v":1069424.0260272531,"d":"$1,069,424"}},{"$f":"'Trial 3'!DR45","v":{"v":1068409.335175262,"d":"$1,068,409"}},{"$f":"'Trial 3'!DS45","v":{"v":1067409.187065869,"d":"$1,067,409"}},{"$f":"'Trial 3'!DT45","v":{"v":1066401.2976385804,"d":"$1,066,401"}},{"$f":"'Trial 3'!DU45","v":{"v":1065393.044188025,"d":"$1,065,393"}},{"$f":"'Trial 3'!DV45","v":{"v":1064392.8119456512,"d":"$1,064,393"}},{"$f":"'Trial 3'!DW45","v":{"v":1063394.595267793,"d":"$1,063,395"}},{"$f":"'Trial 3'!DX45","v":{"v":1062404.510262495,"d":"$1,062,405"}},{"$f":"'Trial 3'!DY45","v":{"v":1061425.001015416,"d":"$1,061,425"}},{"$f":"'Trial 3'!DZ45","v":{"v":1060447.0784054508,"d":"$1,060,447"}},{"$f":"'Trial 3'!EB45","v":{"v":1059468.8076870071,"d":"$1,059,469"}},{"$f":"'Trial 3'!EC45","v":{"v":1058486.9400210069,"d":"$1,058,487"}},{"$f":"'Trial 3'!ED45","v":{"v":1057508.1837569121,"d":"$1,057,508"}},{"$f":"'Trial 3'!EE45","v":{"v":1056530.1654123405,"d":"$1,056,530"}},{"$f":"'Trial 3'!EF45","v":{"v":1055557.593416733,"d":"$1,055,558"}},{"$f":"'Trial 3'!EG45","v":{"v":1054590.4447638395,"d":"$1,054,590"}},{"$f":"'Trial 3'!EH45","v":{"v":1053626.0381034664,"d":"$1,053,626"}},{"$f":"'Trial 3'!EI45","v":{"v":1052664.4931146153,"d":"$1,052,664"}},{"$f":"'Trial 3'!EJ45","v":{"v":1051711.7540986321,"d":"$1,051,712"}},{"$f":"'Trial 3'!EK45","v":{"v":1050754.3297505556,"d":"$1,050,754"}},{"$f":"'Trial 3'!EL45","v":{"v":1049790.1281574713,"d":"$1,049,790"}},{"$f":"'Trial 3'!EM45","v":{"v":1048837.9338852328,"d":"$1,048,838"}}]
[{"$f":"'Trial 4'!B45","v":{"v":1166666.6666666667,"d":"$1,166,667"}},{"$f":"'Trial 4'!C45","v":{"v":1166666.6666666667,"d":"$1,166,667"}},{"$f":"'Trial 4'!D45","v":{"v":1166623.8298592607,"d":"$1,166,624"}},{"$f":"'Trial 4'!E45","v":{"v":1166537.9254903637,"d":"$1,166,538"}},{"$f":"'Trial 4'!F45","v":{"v":1166409.9678105214,"d":"$1,166,410"}},{"$f":"'Trial 4'!G45","v":{"v":1166249.2971256338,"d":"$1,166,249"}},{"$f":"'Trial 4'!H45","v":{"v":1166060.6711370025,"d":"$1,166,061"}},{"$f":"'Trial 4'!I45","v":{"v":1165848.3357024011,"d":"$1,165,848"}},{"$f":"'Trial 4'!J45","v":{"v":1165593.4362115888,"d":"$1,165,593"}},{"$f":"'Trial 4'!K45","v":{"v":1165297.6436786922,"d":"$1,165,298"}},{"$f":"'Trial 4'!L45","v":{"v":1164968.7393338957,"d":"$1,164,969"}},{"$f":"'Trial 4'!M45","v":{"v":1164607.7939671972,"d":"$1,164,608"}},{"$f":"'Trial 4'!O45","v":{"v":1164217.536075832,"d":"$1,164,218"}},{"$f":"'Trial 4'!P45","v":{"v":1163789.3268833398,"d":"$1,163,789"}},{"$f":"'Trial 4'!Q45","v":{"v":1163333.9003409625,"d":"$1,163,334"}},{"$f":"'Trial 4'!R45","v":{"v":1162854.5514765568,"d":"$1,162,855"}},{"$f":"'Trial 4'!S45","v":{"v":1162357.841128403,"d":"$1,162,358"}},{"$f":"'Trial 4'!T45","v":{"v":1161836.1279215068,"d":"$1,161,836"}},{"$f":"'Trial 4'!U45","v":{"v":1161278.7898312877,"d":"$1,161,279"}},{"$f":"'Trial 4'!V45","v":{"v":1160694.872074748,"d":"$1,160,695"}},{"$f":"'Trial 4'!W45","v":{"v":1160089.0127174587,"d":"$1,160,089"}},{"$f":"'Trial 4'!X45","v":{"v":1159460.5234763527,"d":"$1,159,461"}},{"$f":"'Trial 4'!Y45","v":{"v":1158822.9455155435,"d":"$1,158,823"}},{"$f":"'Trial 4'!Z45","v":{"v":1158163.4011084826,"d":"$1,158,163"}},{"$f":"'Trial 4'!AB45","v":{"v":1157473.6646669398,"d":"$1,157,474"}},{"$f":"'Trial 4'!AC45","v":{"v":1156758.912605821,"d":"$1,156,759"}},{"$f":"'Trial 4'!AD45","v":{"v":1156021.475683058,"d":"$1,156,021"}},{"$f":"'Trial 4'!AE45","v":{"v":1155268.1851707157,"d":"$1,155,268"}},{"$f":"'Trial 4'!AF45","v":{"v":1154495.2306366824,"d":"$1,154,495"}},{"$f":"'Trial 4'!AG45","v":{"v":1153697.4417627163,"d":"$1,153,697"}},{"$f":"'Trial 4'!AH45","v":{"v":1152880.340337882,"d":"$1,152,880"}},{"$f":"'Trial 4'!AI45","v":{"v":1152057.1767736748,"d":"$1,152,057"}},{"$f":"'Trial 4'!AJ45","v":{"v":1151219.3160803241,"d":"$1,151,219"}},{"$f":"'Trial 4'!AK45","v":{"v":1150367.2062760035,"d":"$1,150,367"}},{"$f":"'Trial 4'!AL45","v":{"v":1149497.8089337961,"d":"$1,149,498"}},{"$f":"'Trial 4'!AM45","v":{"v":1148622.967305115,"d":"$1,148,623"}},{"$f":"'Trial 4'!AO45","v":{"v":1147733.0517611357,"d":"$1,147,733"}},{"$f":"'Trial 4'!AP45","v":{"v":1146819.4864017216,"d":"$1,146,819"}},{"$f":"'Trial 4'!AQ45","v":{"v":1145894.5739122294,"d":"$1,145,895"}},{"$f":"'Trial 4'!AR45","v":{"v":1144958.1920966918,"d":"$1,144,958"}},{"$f":"'Trial 4'!AS45","v":{"v":1144009.4564576535,"d":"$1,144,009"}},{"$f":"'Trial 4'!AT45","v":{"v":1143043.9334458155,"d":"$1,143,044"}},{"$f":"'Trial 4'!AU45","v":{"v":1142071.3558970965,"d":"$1,142,071"}},{"$f":"'Trial 4'!AV45","v":{"v":1141095.8928938655,"d":"$1,141,096"}},{"$f":"'Trial 4'!AW45","v":{"v":1140114.2199721674,"d":"$1,140,114"}},{"$f":"'Trial 4'!AX45","v":{"v":1139123.5709529875,"d":"$1,139,124"}},{"$f":"'Trial 4'!AY45","v":{"v":1138128.5574460824,"d":"$1,138,129"}},{"$f":"'Trial 4'!AZ45","v":{"v":1137119.450149952,"d":"$1,137,119"}},{"$f":"'Trial 4'!BB45","v":{"v":1136097.7438690327,"d":"$1,136,098"}},{"$f":"'Trial 4'!BC45","v":{"v":1135059.2888662822,"d":"$1,135,059"}},{"$f":"'Trial 4'!BD45","v":{"v":1134026.0200753673,"d":"$1,134,026"}},{"$f":"'Trial 4'!BE45","v":{"v":1132997.5325899594,"d":"$1,132,998"}},{"$f":"'Trial 4'!BF45","v":{"v":1131956.5263091114,"d":"$1,131,957"}},{"$f":"'Trial 4'!BG45","v":{"v":1130909.8638235673,"d":"$1,130,910"}},{"$f":"'Trial 4'!BH45","v":{"v":1129851.95040204,"d":"$1,129,852"}},{"$f":"'Trial 4'!BI45","v":{"v":1128793.3965212766,"d":"$1,128,793"}},{"$f":"'Trial 4'!BJ45","v":{"v":1127724.691047291,"d":"$1,127,725"}},{"$f":"'Trial 4'!BK45","v":{"v":1126652.1469154044,"d":"$1,126,652"}},{"$f":"'Trial 4'!BL45","v":{"v":1125564.1604972382,"d":"$1,125,564"}},{"$f":"'Trial 4'!BM45","v":{"v":1124478.8017245624,"d":"$1,124,479"}},{"$f":"'Trial 4'!BO45","v":{"v":1123393.1097010295,"d":"$1,123,393"}},{"$f":"'Trial 4'!BP45","v":{"v":1122309.6925413625,"d":"$1,122,310"}},{"$f":"'Trial 4'!BQ45","v":{"v":1121227.8505227785,"d":"$1,121,228"}},{"$f":"'Trial 4'!BR45","v":{"v":1120148.0684655171,"d":"$1,120,148"}},{"$f":"'Trial 4'!BS45","v":{"v":1119061.0583171998,"d":"$1,119,061"}},{"$f":"'Trial 4'!BT45","v":{"v":1117973.0132977045,"d":"$1,117,973"}},{"$f":"'Trial 4'!BU45","v":{"v":1116875.4194870626,"d":"$1,116,875"}},{"$f":"'Trial 4'!BV45","v":{"v":1115779.8050822064,"d":"$1,115,780"}},{"$f":"'Trial 4'!BW45","v":{"v":1114679.7497789946,"d":"$1,114,680"}},{"$f":"'Trial 4'!BX45","v":{"v":1113573.119647992,"d":"$1,113,573"}},{"$f":"'Trial 4'!BY45","v":{"v":1112458.061967827,"d":"$1,112,458"}},{"$f":"'Trial 4'!BZ45","v":{"v":1111347.5139486408,"d":"$1,111,348"}},{"$f":"'Trial 4'!CB45","v":{"v":1110235.0677740758,"d":"$1,110,235"}},{"$f":"'Trial 4'!CC45","v":{"v":1109125.5442044204,"d":"$1,109,126"}},{"$f":"'Trial 4'!CD45","v":{"v":1108009.861045445,"d":"$1,108,010"}},{"$f":"'Trial 4'!CE45","v":{"v":1106897.1327292211,"d":"$1,106,897"}},{"$f":"'Trial 4'!CF45","v":{"v":1105780.8522562163,"d":"$1,105,781"}},{"$f":"'Trial 4'!CG45","v":{"v":1104662.6326203924,"d":"$1,104,663"}},{"$f":"'Trial 4'!CH45","v":{"v":1103545.8673455524,"d":"$1,103,546"}},{"$f":"'Trial 4'!CI45","v":{"v":1102426.9930667975,"d":"$1,102,427"}},{"$f":"'Trial 4'!CJ45","v":{"v":1101321.2088344472,"d":"$1,101,321"}},{"$f":"'Trial 4'!CK45","v":{"v":1100222.4819044063,"d":"$1,100,222"}},{"$f":"'Trial 4'!CL45","v":{"v":1099123.4711147978,"d":"$1,099,123"}},{"$f":"'Trial 4'!CM45","v":{"v":1098032.0833796905,"d":"$1,098,032"}},{"$f":"'Trial 4'!CO45","v":{"v":1096942.8764399618,"d":"$1,096,943"}},{"$f":"'Trial 4'!CP45","v":{"v":1095850.003125521,"d":"$1,095,850"}},{"$f":"'Trial 4'!CQ45","v":{"v":1094764.3293340136,"d":"$1,094,764"}},{"$f":"'Trial 4'!CR45","v":{"v":1093683.951444883,"d":"$1,093,684"}},{"$f":"'Trial 4'!CS45","v":{"v":1092610.70103134,"d":"$1,092,611"}},{"$f":"'Trial 4'!CT45","v":{"v":1091538.9841072771,"d":"$1,091,539"}},{"$f":"'Trial 4'!CU45","v":{"v":1090463.2788686824,"d":"$1,090,463"}},{"$f":"'Trial 4'!CV45","v":{"v":1089379.1282076028,"d":"$1,089,379"}},{"$f":"'Trial 4'!CW45","v":{"v":1088307.4060567003,"d":"$1,088,307"}},{"$f":"'Trial 4'!CX45","v":{"v":1087240.5066434692,"d":"$1,087,241"}},{"$f":"'Trial 4'!CY45","v":{"v":1086177.821512283,"d":"$1,086,178"}},{"$f":"'Trial 4'!CZ45","v":{"v":1085106.9242449626,"d":"$1,085,107"}},{"$f":"'Trial 4'!DB45","v":{"v":1084042.238389486,"d":"$1,084,042"}},{"$f":"'Trial 4'!DC45","v":{"v":1082987.976867765,"d":"$1,082,988"}},{"$f":"'Trial 4'!DD45","v":{"v":1081931.1476651195,"d":"$1,081,931"}},{"$f":"'Trial 4'!DE45","v":{"v":1080868.6098070538,"d":"$1,080,869"}},{"$f":"'Trial 4'!DF45","v":{"v":1079812.648598731,"d":"$1,079,813"}},{"$f":"'Trial 4'!DG45","v":{"v":1078763.2607877634,"d":"$1,078,763"}},{"$f":"'Trial 4'!DH45","v":{"v":1077717.1787353,"d":"$1,077,717"}},{"$f":"'Trial 4'!DI45","v":{"v":1076676.1391458863,"d":"$1,076,676"}},{"$f":"'Trial 4'!DJ45","v":{"v":1075629.7376796037,"d":"$1,075,630"}},{"$f":"'Trial 4'!DK45","v":{"v":1074591.051938939,"d":"$1,074,591"}},{"$f":"'Trial 4'!DL45","v":{"v":1073551.1943563109,"d":"$1,073,551"}},{"$f":"'Trial 4'!DM45","v":{"v":1072518.0374489157,"d":"$1,072,518"}},{"$f":"'Trial 4'!DO45","v":{"v":1071489.4632319428,"d":"$1,071,489"}},{"$f":"'Trial 4'!DP45","v":{"v":1070460.3629148037,"d":"$1,070,460"}},{"$f":"'Trial 4'!DQ45","v":{"v":1069443.0998155056,"d":"$1,069,443"}},{"$f":"'Trial 4'!DR45","v":{"v":1068440.1497597815,"d":"$1,068,440"}},{"$f":"'Trial 4'!DS45","v":{"v":1067433.3733853127,"d":"$1,067,433"}},{"$f":"'Trial 4'!DT45","v":{"v":1066438.9115988181,"d":"$1,066,439"}},{"$f":"'Trial 4'!DU45","v":{"v":1065457.7357527285,"d":"$1,065,458"}},{"$f":"'Trial 4'!DV45","v":{"v":1064484.233223324,"d":"$1,064,484"}},{"$f":"'Trial 4'!DW45","v":{"v":1063509.301157439,"d":"$1,063,509"}},{"$f":"'Trial 4'!DX45","v":{"v":1062535.0599655185,"d":"$1,062,535"}},{"$f":"'Trial 4'!DY45","v":{"v":1061551.1048685717,"d":"$1,061,551"}},{"$f":"'Trial 4'!DZ45","v":{"v":1060578.1422228375,"d":"$1,060,578"}},{"$f":"'Trial 4'!EB45","v":{"v":1059614.440873771,"d":"$1,059,614"}},{"$f":"'Trial 4'!EC45","v":{"v":1058662.6794127128,"d":"$1,058,663"}},{"$f":"'Trial 4'!ED45","v":{"v":1057712.1361672673,"d":"$1,057,712"}},{"$f":"'Trial 4'!EE45","v":{"v":1056751.209110117,"d":"$1,056,751"}},{"$f":"'Trial 4'!EF45","v":{"v":1055790.4894905798,"d":"$1,055,790"}},{"$f":"'Trial 4'!EG45","v":{"v":1054840.0349689268,"d":"$1,054,840"}},{"$f":"'Trial 4'!EH45","v":{"v":1053901.9568625318,"d":"$1,053,902"}},{"$f":"'Trial 4'!EI45","v":{"v":1052963.2447442217,"d":"$1,052,963"}},{"$f":"'Trial 4'!EJ45","v":{"v":1052031.402384338,"d":"$1,052,031"}},{"$f":"'Trial 4'!EK45","v":{"v":1051091.7194047035,"d":"$1,051,092"}},{"$f":"'Trial 4'!EL45","v":{"v":1050144.46860246,"d":"$1,050,144"}},{"$f":"'Trial 4'!EM45","v":{"v":1049206.5265561438,"d":"$1,049,207"}}]
[{"$f":"'Trial 5'!B45","v":{"v":1166666.6666666667,"d":"$1,166,667"}},{"$f":"'Trial 5'!C45","v":{"v":1166666.6666666667,"d":"$1,166,667"}},{"$f":"'Trial 5'!D45","v":{"v":1166618.8290911987,"d":"$1,166,619"}},{"$f":"'Trial 5'!E45","v":{"v":1166526.5477691463,"d":"$1,166,527"}},{"$f":"'Trial 5'!F45","v":{"v":1166404.319491447,"d":"$1,166,404"}},{"$f":"'Trial 5'!G45","v":{"v":1166235.3353795926,"d":"$1,166,235"}},{"$f":"'Trial 5'!H45","v":{"v":1166027.1830759363,"d":"$1,166,027"}},{"$f":"'Trial 5'!I45","v":{"v":1165780.132064827,"d":"$1,165,780"}},{"$f":"'Trial 5'!J45","v":{"v":1165499.7262522148,"d":"$1,165,500"}},{"$f":"'Trial 5'!K45","v":{"v":1165191.2170506725,"d":"$1,165,191"}},{"$f":"'Trial 5'!L45","v":{"v":1164863.4407080554,"d":"$1,164,863"}},{"$f":"'Trial 5'!M45","v":{"v":1164499.6491361554,"d":"$1,164,500"}},{"$f":"'Trial 5'!O45","v":{"v":1164102.146951975,"d":"$1,164,102"}},{"$f":"'Trial 5'!P45","v":{"v":1163675.9866970326,"d":"$1,163,676"}},{"$f":"'Trial 5'!Q45","v":{"v":1163220.2241910868,"d":"$1,163,220"}},{"$f":"'Trial 5'!R45","v":{"v":1162738.5553514578,"d":"$1,162,739"}},{"$f":"'Trial 5'!S45","v":{"v":1162229.3853483796,"d":"$1,162,229"}},{"$f":"'Trial 5'!T45","v":{"v":1161696.594151235,"d":"$1,161,697"}},{"$f":"'Trial 5'!U45","v":{"v":1161131.3739752492,"d":"$1,161,131"}},{"$f":"'Trial 5'!V45","v":{"v":1160554.7058453467,"d":"$1,160,555"}},{"$f":"'Trial 5'!W45","v":{"v":1159957.9709363205,"d":"$1,159,958"}},{"$f":"'Trial 5'!X45","v":{"v":1159338.2614736503,"d":"$1,159,338"}},{"$f":"'Trial 5'!Y45","v":{"v":1158698.8568148883,"d":"$1,158,699"}},{"$f":"'Trial 5'!Z45","v":{"v":1158031.871115806,"d":"$1,158,032"}},{"$f":"'Trial 5'!AB45","v":{"v":1157356.0894752154,"d":"$1,157,356"}},{"$f":"'Trial 5'!AC45","v":{"v":1156657.9899396107,"d":"$1,156,658"}},{"$f":"'Trial 5'!AD45","v":{"v":1155944.3595431487,"d":"$1,155,944"}},{"$f":"'Trial 5'!AE45","v":{"v":1155212.3819586204,"d":"$1,155,212"}},{"$f":"'Trial 5'!AF45","v":{"v":1154472.919972251,"d":"$1,154,473"}},{"$f":"'Trial 5'!AG45","v":{"v":1153704.7161476691,"d":"$1,153,705"}},{"$f":"'Trial 5'!AH45","v":{"v":1152910.694869484,"d":"$1,152,911"}},{"$f":"'Trial 5'!AI45","v":{"v":1152097.9176378513,"d":"$1,152,098"}},{"$f":"'Trial 5'!AJ45","v":{"v":1151273.033964202,"d":"$1,151,273"}},{"$f":"'Trial 5'!AK45","v":{"v":1150427.027721318,"d":"$1,150,427"}},{"$f":"'Trial 5'!AL45","v":{"v":1149568.8834937175,"d":"$1,149,569"}},{"$f":"'Trial 5'!AM45","v":{"v":1148690.5623575894,"d":"$1,148,691"}},{"$f":"'Trial 5'!AO45","v":{"v":1147797.9794800896,"d":"$1,147,798"}},{"$f":"'Trial 5'!AP45","v":{"v":1146887.2184063361,"d":"$1,146,887"}},{"$f":"'Trial 5'!AQ45","v":{"v":1145965.2333105619,"d":"$1,145,965"}},{"$f":"'Trial 5'!AR45","v":{"v":1145033.1459243314,"d":"$1,145,033"}},{"$f":"'Trial 5'!AS45","v":{"v":1144088.183903427,"d":"$1,144,088"}},{"$f":"'Trial 5'!AT45","v":{"v":1143136.396469453,"d":"$1,143,136"}},{"$f":"'Trial 5'!AU45","v":{"v":1142179.2444913315,"d":"$1,142,179"}},{"$f":"'Trial 5'!AV45","v":{"v":1141209.4576440426,"d":"$1,141,209"}},{"$f":"'Trial 5'!AW45","v":{"v":1140233.395023742,"d":"$1,140,233"}},{"$f":"'Trial 5'!AX45","v":{"v":1139249.4223336962,"d":"$1,139,249"}},{"$f":"'Trial 5'!AY45","v":{"v":1138255.705975082,"d":"$1,138,256"}},{"$f":"'Trial 5'!AZ45","v":{"v":1137252.766350554,"d":"$1,137,253"}},{"$f":"'Trial 5'!BB45","v":{"v":1136244.2570002663,"d":"$1,136,244"}},{"$f":"'Trial 5'!BC45","v":{"v":1135227.3637037394,"d":"$1,135,227"}},{"$f":"'Trial 5'!BD45","v":{"v":1134199.5810294303,"d":"$1,134,200"}},{"$f":"'Trial 5'!BE45","v":{"v":1133157.499390734,"d":"$1,133,157"}},{"$f":"'Trial 5'!BF45","v":{"v":1132098.4158086984,"d":"$1,132,098"}},{"$f":"'Trial 5'!BG45","v":{"v":1131037.4978746884,"d":"$1,131,037"}},{"$f":"'Trial 5'!BH45","v":{"v":1129968.7182886994,"d":"$1,129,969"}},{"$f":"'Trial 5'!BI45","v":{"v":1128897.2678315893,"d":"$1,128,897"}},{"$f":"'Trial 5'!BJ45","v":{"v":1127813.1119489612,"d":"$1,127,813"}},{"$f":"'Trial 5'!BK45","v":{"v":1126727.3429458775,"d":"$1,126,727"}},{"$f":"'Trial 5'!BL45","v":{"v":1125645.9451096538,"d":"$1,125,646"}},{"$f":"'Trial 5'!BM45","v":{"v":1124563.8562161592,"d":"$1,124,564"}},{"$f":"'Trial 5'!BO45","v":{"v":1123486.529560871,"d":"$1,123,487"}},{"$f":"'Trial 5'!BP45","v":{"v":1122407.9770418615,"d":"$1,122,408"}},{"$f":"'Trial 5'!BQ45","v":{"v":1121334.0327879097,"d":"$1,121,334"}},{"$f":"'Trial 5'!BR45","v":{"v":1120268.105165214,"d":"$1,120,268"}},{"$f":"'Trial 5'!BS45","v":{"v":1119209.6637203053,"d":"$1,119,210"}},{"$f":"'Trial 5'!BT45","v":{"v":1118140.755068884,"d":"$1,118,141"}},{"$f":"'Trial 5'!BU45","v":{"v":1117069.2306437632,"d":"$1,117,069"}},{"$f":"'Trial 5'!BV45","v":{"v":1116006.6745558681,"d":"$1,116,007"}},{"$f":"'Trial 5'!BW45","v":{"v":1114934.7875712966,"d":"$1,114,935"}},{"$f":"'Trial 5'!BX45","v":{"v":1113859.5042645228,"d":"$1,113,860"}},{"$f":"'Trial 5'!BY45","v":{"v":1112783.4687428866,"d":"$1,112,783"}},{"$f":"'Trial 5'!BZ45","v":{"v":1111714.5945688856,"d":"$1,111,715"}},{"$f":"'Trial 5'!CB45","v":{"v":1110653.5594914637,"d":"$1,110,654"}},{"$f":"'Trial 5'!CC45","v":{"v":1109597.7313471895,"d":"$1,109,598"}},{"$f":"'Trial 5'!CD45","v":{"v":1108539.094572434,"d":"$1,108,539"}},{"$f":"'Trial 5'!CE45","v":{"v":1107479.326433877,"d":"$1,107,479"}},{"$f":"'Trial 5'!CF45","v":{"v":1106417.3533529113,"d":"$1,106,417"}},{"$f":"'Trial 5'!CG45","v":{"v":1105350.296903779,"d":"$1,105,350"}},{"$f":"'Trial 5'!CH45","v":{"v":1104283.656884309,"d":"$1,104,284"}},{"$f":"'Trial 5'!CI45","v":{"v":1103228.0112776426,"d":"$1,103,228"}},{"$f":"'Trial 5'!CJ45","v":{"v":1102166.9645410592,"d":"$1,102,167"}},{"$f":"'Trial 5'!CK45","v":{"v":1101099.562919428,"d":"$1,101,100"}},{"$f":"'Trial 5'!CL45","v":{"v":1100034.0817072361,"d":"$1,100,034"}},{"$f":"'Trial 5'!CM45","v":{"v":1098979.3753773053,"d":"$1,098,979"}},{"$f":"'Trial 5'!CO45","v":{"v":1097918.0425182774,"d":"$1,097,918"}},{"$f":"'Trial 5'!CP45","v":{"v":1096860.15971496,"d":"$1,096,860"}},{"$f":"'Trial 5'!CQ45","v":{"v":1095805.1245299578,"d":"$1,095,805"}},{"$f":"'Trial 5'!CR45","v":{"v":1094743.790603767,"d":"$1,094,744"}},{"$f":"'Trial 5'!CS45","v":{"v":1093692.2583499434,"d":"$1,093,692"}},{"$f":"'Trial 5'!CT45","v":{"v":1092635.9127086473,"d":"$1,092,636"}},{"$f":"'Trial 5'!CU45","v":{"v":1091576.9743680663,"d":"$1,091,577"}},{"$f":"'Trial 5'!CV45","v":{"v":1090522.209869504,"d":"$1,090,522"}},{"$f":"'Trial 5'!CW45","v":{"v":1089469.7471100008,"d":"$1,089,470"}},{"$f":"'Trial 5'!CX45","v":{"v":1088416.3165369334,"d":"$1,088,416"}},{"$f":"'Trial 5'!CY45","v":{"v":1087370.0650506744,"d":"$1,087,370"}},{"$f":"'Trial 5'!CZ45","v":{"v":1086321.7924545216,"d":"$1,086,322"}},{"$f":"'Trial 5'!DB45","v":{"v":1085274.1799459395,"d":"$1,085,274"}},{"$f":"'Trial 5'!DC45","v":{"v":1084217.7941239118,"d":"$1,084,218"}},{"$f":"'Trial 5'!DD45","v":{"v":1083166.894619683,"d":"$1,083,167"}},{"$f":"'Trial 5'!DE45","v":{"v":1082118.013623328,"d":"$1,082,118"}},{"$f":"'Trial 5'!DF45","v":{"v":1081072.9061920142,"d":"$1,081,073"}},{"$f":"'Trial 5'!DG45","v":{"v":1080025.2160846745,"d":"$1,080,025"}},{"$f":"'Trial 5'!DH45","v":{"v":1078973.6983755284,"d":"$1,078,974"}},{"$f":"'Trial 5'!DI45","v":{"v":1077930.3844508019,"d":"$1,077,930"}},{"$f":"'Trial 5'!DJ45","v":{"v":1076900.0267251441,"d":"$1,076,900"}},{"$f":"'Trial 5'!DK45","v":{"v":1075871.9123457375,"d":"$1,075,872"}},{"$f":"'Trial 5'!DL45","v":{"v":1074839.880280679,"d":"$1,074,840"}},{"$f":"'Trial 5'!DM45","v":{"v":1073808.763375711,"d":"$1,073,809"}},{"$f":"'Trial 5'!DO45","v":{"v":1072773.1383628615,"d":"$1,072,773"}},{"$f":"'Trial 5'!DP45","v":{"v":1071740.2667936655,"d":"$1,071,740"}},{"$f":"'Trial 5'!DQ45","v":{"v":1070706.591047873,"d":"$1,070,707"}},{"$f":"'Trial 5'!DR45","v":{"v":1069675.3261389276,"d":"$1,069,675"}},{"$f":"'Trial 5'!DS45","v":{"v":1068656.6375411989,"d":"$1,068,657"}},{"$f":"'Trial 5'!DT45","v":{"v":1067645.201129661,"d":"$1,067,645"}},{"$f":"'Trial 5'!DU45","v":{"v":1066639.6814536978,"d":"$1,066,640"}},{"$f":"'Trial 5'!DV45","v":{"v":1065643.4601101999,"d":"$1,065,643"}},{"$f":"'Trial 5'!DW45","v":{"v":1064644.5409278015,"d":"$1,064,645"}},{"$f":"'Trial 5'!DX45","v":{"v":1063648.9995069196,"d":"$1,063,649"}},{"$f":"'Trial 5'!DY45","v":{"v":1062661.3586520355,"d":"$1,062,661"}},{"$f":"'Trial 5'!DZ45","v":{"v":1061672.7970505503,"d":"$1,061,673"}},{"$f":"'Trial 5'!EB45","v":{"v":1060686.7388848518,"d":"$1,060,687"}},{"$f":"'Trial 5'!EC45","v":{"v":1059697.4522416603,"d":"$1,059,697"}},{"$f":"'Trial 5'!ED45","v":{"v":1058710.620322361,"d":"$1,058,711"}},{"$f":"'Trial 5'!EE45","v":{"v":1057734.2210541426,"d":"$1,057,734"}},{"$f":"'Trial 5'!EF45","v":{"v":1056755.5146042944,"d":"$1,056,756"}},{"$f":"'Trial 5'!EG45","v":{"v":1055780.8891913628,"d":"$1,055,781"}},{"$f":"'Trial 5'!EH45","v":{"v":1054809.9703687404,"d":"$1,054,810"}},{"$f":"'Trial 5'!EI45","v":{"v":1053848.748409824,"d":"$1,053,849"}},{"$f":"'Trial 5'!EJ45","v":{"v":1052881.203919261,"d":"$1,052,881"}},{"$f":"'Trial 5'!EK45","v":{"v":1051910.1584443199,"d":"$1,051,910"}},{"$f":"'Trial 5'!EL45","v":{"v":1050938.7074458932,"d":"$1,050,939"}},{"$f":"'Trial 5'!EM45","v":{"v":1049971.1891044227,"d":"$1,049,971"}}]
[{"$f":"'Trial 6'!B45","v":{"v":1166666.6666666667,"d":"$1,166,667"}},{"$f":"'Trial 6'!C45","v":{"v":1166666.6666666667,"d":"$1,166,667"}},{"$f":"'Trial 6'!D45","v":{"v":1166628.0346597508,"d":"$1,166,628"}},{"$f":"'Trial 6'!E45","v":{"v":1166538.6271674994,"d":"$1,166,539"}},{"$f":"'Trial 6'!F45","v":{"v":1166417.961931174,"d":"$1,166,418"}},{"$f":"'Trial 6'!G45","v":{"v":1166270.2641442849,"d":"$1,166,270"}},{"$f":"'Trial 6'!H45","v":{"v":1166090.0257414728,"d":"$1,166,090"}},{"$f":"'Trial 6'!I45","v":{"v":1165870.0599882873,"d":"$1,165,870"}},{"$f":"'Trial 6'!J45","v":{"v":1165615.3293943082,"d":"$1,165,615"}},{"$f":"'Trial 6'!K45","v":{"v":1165326.6290117765,"d":"$1,165,327"}},{"$f":"'Trial 6'!L45","v":{"v":1165012.6523706939,"d":"$1,165,013"}},{"$f":"'Trial 6'!M45","v":{"v":1164667.4785875895,"d":"$1,164,667"}},{"$f":"'Trial 6'!O45","v":{"v":1164302.3575547028,"d":"$1,164,302"}},{"$f":"'Trial 6'!P45","v":{"v":1163907.3590340633,"d":"$1,163,907"}},{"$f":"'Trial 6'!Q45","v":{"v":1163492.1122444351,"d":"$1,163,492"}},{"$f":"'Trial 6'!R45","v":{"v":1163047.0292899895,"d":"$1,163,047"}},{"$f":"'Trial 6'!S45","v":{"v":1162583.3660276213,"d":"$1,162,583"}},{"$f":"'Trial 6'!T45","v":{"v":1162098.9637551315,"d":"$1,162,099"}},{"$f":"'Trial 6'!U45","v":{"v":1161577.8516804655,"d":"$1,161,578"}},{"$f":"'Trial 6'!V45","v":{"v":1161030.1654102628,"d":"$1,161,030"}},{"$f":"'Trial 6'!W45","v":{"v":1160462.6699152184,"d":"$1,160,463"}},{"$f":"'Trial 6'!X45","v":{"v":1159867.3332910414,"d":"$1,159,867"}},{"$f":"'Trial 6'!Y45","v":{"v":1159246.4937427915,"d":"$1,159,246"}},{"$f":"'Trial 6'!Z45","v":{"v":1158606.5159798663,"d":"$1,158,607"}},{"$f":"'Trial 6'!AB45","v":{"v":1157951.7371221525,"d":"$1,157,952"}},{"$f":"'Trial 6'!AC45","v":{"v":1157270.3068082011,"d":"$1,157,270"}},{"$f":"'Trial 6'!AD45","v":{"v":1156571.0096602004,"d":"$1,156,571"}},{"$f":"'Trial 6'!AE45","v":{"v":1155856.612626113,"d":"$1,155,857"}},{"$f":"'Trial 6'!AF45","v":{"v":1155131.2741099214,"d":"$1,155,131"}},{"$f":"'Trial 6'!AG45","v":{"v":1154390.4541904083,"d":"$1,154,390"}},{"$f":"'Trial 6'!AH45","v":{"v":1153639.67761974,"d":"$1,153,640"}},{"$f":"'Trial 6'!AI45","v":{"v":1152874.0142831386,"d":"$1,152,874"}},{"$f":"'Trial 6'!AJ45","v":{"v":1152097.4928803009,"d":"$1,152,097"}},{"$f":"'Trial 6'!AK45","v":{"v":1151303.9200751467,"d":"$1,151,304"}},{"$f":"'Trial 6'!AL45","v":{"v":1150490.8106474783,"d":"$1,150,491"}},{"$f":"'Trial 6'!AM45","v":{"v":1149664.0459864715,"d":"$1,149,664"}},{"$f":"'Trial 6'!AO45","v":{"v":1148829.401456336,"d":"$1,148,829"}},{"$f":"'Trial 6'!AP45","v":{"v":1147990.7686683214,"d":"$1,147,991"}},{"$f":"'Trial 6'!AQ45","v":{"v":1147140.891321768,"d":"$1,147,141"}},{"$f":"'Trial 6'!AR45","v":{"v":1146276.4137733309,"d":"$1,146,276"}},{"$f":"'Trial 6'!AS45","v":{"v":1145395.732611163,"d":"$1,145,396"}},{"$f":"'Trial 6'!AT45","v":{"v":1144504.3282846962,"d":"$1,144,504"}},{"$f":"'Trial 6'!AU45","v":{"v":1143599.5348665626,"d":"$1,143,600"}},{"$f":"'Trial 6'!AV45","v":{"v":1142679.401544067,"d":"$1,142,679"}},{"$f":"'Trial 6'!AW45","v":{"v":1141738.0214165566,"d":"$1,141,738"}},{"$f":"'Trial 6'!AX45","v":{"v":1140788.750114143,"d":"$1,140,789"}},{"$f":"'Trial 6'!AY45","v":{"v":1139826.703913404,"d":"$1,139,827"}},{"$f":"'Trial 6'!AZ45","v":{"v":1138847.7425597028,"d":"$1,138,848"}},{"$f":"'Trial 6'!BB45","v":{"v":1137863.6279431286,"d":"$1,137,864"}},{"$f":"'Trial 6'!BC45","v":{"v":1136880.2882424886,"d":"$1,136,880"}},{"$f":"'Trial 6'!BD45","v":{"v":1135878.3123135646,"d":"$1,135,878"}},{"$f":"'Trial 6'!BE45","v":{"v":1134863.0952740873,"d":"$1,134,863"}},{"$f":"'Trial 6'!BF45","v":{"v":1133837.3365006186,"d":"$1,133,837"}},{"$f":"'Trial 6'!BG45","v":{"v":1132800.1138078005,"d":"$1,132,800"}},{"$f":"'Trial 6'!BH45","v":{"v":1131756.7046832626,"d":"$1,131,757"}},{"$f":"'Trial 6'!BI45","v":{"v":1130710.3356290602,"d":"$1,130,710"}},{"$f":"'Trial 6'!BJ45","v":{"v":1129664.601159619,"d":"$1,129,665"}},{"$f":"'Trial 6'!BK45","v":{"v":1128609.5282496754,"d":"$1,128,610"}},{"$f":"'Trial 6'!BL45","v":{"v":1127559.4920613759,"d":"$1,127,559"}},{"$f":"'Trial 6'!BM45","v":{"v":1126507.1533370512,"d":"$1,126,507"}},{"$f":"'Trial 6'!BO45","v":{"v":1125440.7474938333,"d":"$1,125,441"}},{"$f":"'Trial 6'!BP45","v":{"v":1124372.9391915922,"d":"$1,124,373"}},{"$f":"'Trial 6'!BQ45","v":{"v":1123290.3867703972,"d":"$1,123,290"}},{"$f":"'Trial 6'!BR45","v":{"v":1122202.449552436,"d":"$1,122,202"}},{"$f":"'Trial 6'!BS45","v":{"v":1121108.3123675738,"d":"$1,121,108"}},{"$f":"'Trial 6'!BT45","v":{"v":1120005.852597681,"d":"$1,120,006"}},{"$f":"'Trial 6'!BU45","v":{"v":1118889.922269397,"d":"$1,118,890"}},{"$f":"'Trial 6'!BV45","v":{"v":1117779.0803878047,"d":"$1,117,779"}},{"$f":"'Trial 6'!BW45","v":{"v":1116667.0935081535,"d":"$1,116,667"}},{"$f":"'Trial 6'!BX45","v":{"v":1115557.0207341712,"d":"$1,115,557"}},{"$f":"'Trial 6'!BY45","v":{"v":1114451.0466659681,"d":"$1,114,451"}},{"$f":"'Trial 6'!BZ45","v":{"v":1113338.3985570704,"d":"$1,113,338"}},{"$f":"'Trial 6'!CB45","v":{"v":1112234.8612371373,"d":"$1,112,235"}},{"$f":"'Trial 6'!CC45","v":{"v":1111136.0955366693,"d":"$1,111,136"}},{"$f":"'Trial 6'!CD45","v":{"v":1110037.065694406,"d":"$1,110,037"}},{"$f":"'Trial 6'!CE45","v":{"v":1108936.3178774444,"d":"$1,108,936"}},{"$f":"'Trial 6'!CF45","v":{"v":1107845.1481312194,"d":"$1,107,845"}},{"$f":"'Trial 6'!CG45","v":{"v":1106751.414299345,"d":"$1,106,751"}},{"$f":"'Trial 6'!CH45","v":{"v":1105654.4872986302,"d":"$1,105,654"}},{"$f":"'Trial 6'!CI45","v":{"v":1104562.8146869654,"d":"$1,104,563"}},{"$f":"'Trial 6'!CJ45","v":{"v":1103476.051843477,"d":"$1,103,476"}},{"$f":"'Trial 6'!CK45","v":{"v":1102396.917211628,"d":"$1,102,397"}},{"$f":"'Trial 6'!CL45","v":{"v":1101318.2034692564,"d":"$1,101,318"}},{"$f":"'Trial 6'!CM45","v":{"v":1100242.5989938406,"d":"$1,100,243"}},{"$f":"'Trial 6'!CO45","v":{"v":1099174.5313060049,"d":"$1,099,175"}},{"$f":"'Trial 6'!CP45","v":{"v":1098112.1747946031,"d":"$1,098,112"}},{"$f":"'Trial 6'!CQ45","v":{"v":1097051.5755036992,"d":"$1,097,052"}},{"$f":"'Trial 6'!CR45","v":{"v":1095998.494781119,"d":"$1,095,998"}},{"$f":"'Trial 6'!CS45","v":{"v":1094945.9516754197,"d":"$1,094,946"}},{"$f":"'Trial 6'!CT45","v":{"v":1093894.2648901746,"d":"$1,093,894"}},{"$f":"'Trial 6'!CU45","v":{"v":1092837.7540072296,"d":"$1,092,838"}},{"$f":"'Trial 6'!CV45","v":{"v":1091777.5330728954,"d":"$1,091,778"}},{"$f":"'Trial 6'!CW45","v":{"v":1090728.4277253759,"d":"$1,090,728"}},{"$f":"'Trial 6'!CX45","v":{"v":1089673.4906280455,"d":"$1,089,673"}},{"$f":"'Trial 6'!CY45","v":{"v":1088629.2082194434,"d":"$1,088,629"}},{"$f":"'Trial 6'!CZ45","v":{"v":1087587.8444925216,"d":"$1,087,588"}},{"$f":"'Trial 6'!DB45","v":{"v":1086542.1538085113,"d":"$1,086,542"}},{"$f":"'Trial 6'!DC45","v":{"v":1085501.019273952,"d":"$1,085,501"}},{"$f":"'Trial 6'!DD45","v":{"v":1084465.1729413304,"d":"$1,084,465"}},{"$f":"'Trial 6'!DE45","v":{"v":1083420.4858933173,"d":"$1,083,420"}},{"$f":"'Trial 6'!DF45","v":{"v":1082373.8756938493,"d":"$1,082,374"}},{"$f":"'Trial 6'!DG45","v":{"v":1081329.0749275365,"d":"$1,081,329"}},{"$f":"'Trial 6'!DH45","v":{"v":1080277.3216081406,"d":"$1,080,277"}},{"$f":"'Trial 6'!DI45","v":{"v":1079226.142529363,"d":"$1,079,226"}},{"$f":"'Trial 6'!DJ45","v":{"v":1078169.7610708238,"d":"$1,078,170"}},{"$f":"'Trial 6'!DK45","v":{"v":1077107.9371281886,"d":"$1,077,108"}},{"$f":"'Trial 6'!DL45","v":{"v":1076038.816254235,"d":"$1,076,039"}},{"$f":"'Trial 6'!DM45","v":{"v":1074973.996113715,"d":"$1,074,974"}},{"$f":"'Trial 6'!DO45","v":{"v":1073907.0947049991,"d":"$1,073,907"}},{"$f":"'Trial 6'!DP45","v":{"v":1072841.3377778644,"d":"$1,072,841"}},{"$f":"'Trial 6'!DQ45","v":{"v":1071786.1428144984,"d":"$1,071,786"}},{"$f":"'Trial 6'!DR45","v":{"v":1070729.7744877965,"d":"$1,070,730"}},{"$f":"'Trial 6'!DS45","v":{"v":1069673.0389343726,"d":"$1,069,673"}},{"$f":"'Trial 6'!DT45","v":{"v":1068619.9846696528,"d":"$1,068,620"}},{"$f":"'Trial 6'!DU45","v":{"v":1067569.5698731157,"d":"$1,067,570"}},{"$f":"'Trial 6'!DV45","v":{"v":1066526.854488003,"d":"$1,066,527"}},{"$f":"'Trial 6'!DW45","v":{"v":1065494.6279633509,"d":"$1,065,495"}},{"$f":"'Trial 6'!DX45","v":{"v":1064473.8452338902,"d":"$1,064,474"}},{"$f":"'Trial 6'!DY45","v":{"v":1063457.7777597914,"d":"$1,063,458"}},{"$f":"'Trial 6'!DZ45","v":{"v":1062450.1350279057,"d":"$1,062,450"}},{"$f":"'Trial 6'!EB45","v":{"v":1061444.4166244264,"d":"$1,061,444"}},{"$f":"'Trial 6'!EC45","v":{"v":1060441.4844065884,"d":"$1,060,441"}},{"$f":"'Trial 6'!ED45","v":{"v":1059448.757352162,"d":"$1,059,449"}},{"$f":"'Trial 6'!EE45","v":{"v":1058459.5229693593,"d":"$1,058,460"}},{"$f":"'Trial 6'!EF45","v":{"v":1057476.6218471914,"d":"$1,057,477"}},{"$f":"'Trial 6'!EG45","v":{"v":1056501.8413002987,"d":"$1,056,502"}},{"$f":"'Trial 6'!EH45","v":{"v":1055529.9447369266,"d":"$1,055,530"}},{"$f":"'Trial 6'!EI45","v":{"v":1054563.8000199029,"d":"$1,054,564"}},{"$f":"'Trial 6'!EJ45","v":{"v":1053600.4827063677,"d":"$1,053,600"}},{"$f":"'Trial 6'!EK45","v":{"v":1052642.7498319335,"d":"$1,052,643"}},{"$f":"'Trial 6'!EL45","v":{"v":1051695.9811385109,"d":"$1,051,696"}},{"$f":"'Trial 6'!EM45","v":{"v":1050762.5904759867,"d":"$1,050,763"}}]
[{"$f":"'Trial 7'!B45","v":{"v":1166666.6666666667,"d":"$1,166,667"}},{"$f":"'Trial 7'!C45","v":{"v":1166666.6666666667,"d":"$1,166,667"}},{"$f":"'Trial 7'!D45","v":{"v":1166620.9829003513,"d":"$1,166,621"}},{"$f":"'Trial 7'!E45","v":{"v":1166541.37619196,"d":"$1,166,541"}},{"$f":"'Trial 7'!F45","v":{"v":1166427.2102667713,"d":"$1,166,427"}},{"$f":"'Trial 7'!G45","v":{"v":1166274.8220188676,"d":"$1,166,275"}},{"$f":"'Trial 7'!H45","v":{"v":1166093.1426134044,"d":"$1,166,093"}},{"$f":"'Trial 7'!I45","v":{"v":1165883.3751734265,"d":"$1,165,883"}},{"$f":"'Trial 7'!J45","v":{"v":1165645.9143039295,"d":"$1,165,646"}},{"$f":"'Trial 7'!K45","v":{"v":1165383.2485523233,"d":"$1,165,383"}},{"$f":"'Trial 7'!L45","v":{"v":1165086.59723531,"d":"$1,165,087"}},{"$f":"'Trial 7'!M45","v":{"v":1164754.015028151,"d":"$1,164,754"}},{"$f":"'Trial 7'!O45","v":{"v":1164390.4883900643,"d":"$1,164,390"}},{"$f":"'Trial 7'!P45","v":{"v":1163995.7218063674,"d":"$1,163,996"}},{"$f":"'Trial 7'!Q45","v":{"v":1163573.6131992105,"d":"$1,163,574"}},{"$f":"'Trial 7'!R45","v":{"v":1163131.2132865093,"d":"$1,163,131"}},{"$f":"'Trial 7'!S45","v":{"v":1162668.4761122782,"d":"$1,162,668"}},{"$f":"'Trial 7'!T45","v":{"v":1162184.320404003,"d":"$1,162,184"}},{"$f":"'Trial 7'!U45","v":{"v":1161676.8128645883,"d":"$1,161,677"}},{"$f":"'Trial 7'!V45","v":{"v":1161150.4029161485,"d":"$1,161,150"}},{"$f":"'Trial 7'!W45","v":{"v":1160598.794469081,"d":"$1,160,599"}},{"$f":"'Trial 7'!X45","v":{"v":1160029.9541759957,"d":"$1,160,030"}},{"$f":"'Trial 7'!Y45","v":{"v":1159446.7978268834,"d":"$1,159,447"}},{"$f":"'Trial 7'!Z45","v":{"v":1158846.9717302078,"d":"$1,158,847"}},{"$f":"'Trial 7'!AB45","v":{"v":1158225.7928580458,"d":"$1,158,226"}},{"$f":"'Trial 7'!AC45","v":{"v":1157573.9790646315,"d":"$1,157,574"}},{"$f":"'Trial 7'!AD45","v":{"v":1156891.6324287236,"d":"$1,156,892"}},{"$f":"'Trial 7'!AE45","v":{"v":1156190.0418994362,"d":"$1,156,190"}},{"$f":"'Trial 7'!AF45","v":{"v":1155472.650259101,"d":"$1,155,473"}},{"$f":"'Trial 7'!AG45","v":{"v":1154743.5107851431,"d":"$1,154,744"}},{"$f":"'Trial 7'!AH45","v":{"v":1153992.993845863,"d":"$1,153,993"}},{"$f":"'Trial 7'!AI45","v":{"v":1153229.7197752516,"d":"$1,153,230"}},{"$f":"'Trial 7'!AJ45","v":{"v":1152453.6360435782,"d":"$1,152,454"}},{"$f":"'Trial 7'!AK45","v":{"v":1151654.66636663,"d":"$1,151,655"}},{"$f":"'Trial 7'!AL45","v":{"v":1150838.8369221985,"d":"$1,150,839"}},{"$f":"'Trial 7'!AM45","v":{"v":1150008.9481156063,"d":"$1,150,009"}},{"$f":"'Trial 7'!AO45","v":{"v":1149166.087270407,"d":"$1,149,166"}},{"$f":"'Trial 7'!AP45","v":{"v":1148306.1811093718,"d":"$1,148,306"}},{"$f":"'Trial 7'!AQ45","v":{"v":1147427.0350569945,"d":"$1,147,427"}},{"$f":"'Trial 7'!AR45","v":{"v":1146534.309917645,"d":"$1,146,534"}},{"$f":"'Trial 7'!AS45","v":{"v":1145635.2360843162,"d":"$1,145,635"}},{"$f":"'Trial 7'!AT45","v":{"v":1144729.69127068,"d":"$1,144,730"}},{"$f":"'Trial 7'!AU45","v":{"v":1143822.967597686,"d":"$1,143,823"}},{"$f":"'Trial 7'!AV45","v":{"v":1142900.8937940798,"d":"$1,142,901"}},{"$f":"'Trial 7'!AW45","v":{"v":1141967.4279038205,"d":"$1,141,967"}},{"$f":"'Trial 7'!AX45","v":{"v":1141022.786568856,"d":"$1,141,023"}},{"$f":"'Trial 7'!AY45","v":{"v":1140064.634667886,"d":"$1,140,065"}},{"$f":"'Trial 7'!AZ45","v":{"v":1139091.0681900664,"d":"$1,139,091"}},{"$f":"'Trial 7'!BB45","v":{"v":1138104.1707129392,"d":"$1,138,104"}},{"$f":"'Trial 7'!BC45","v":{"v":1137100.6162765634,"d":"$1,137,101"}},{"$f":"'Trial 7'!BD45","v":{"v":1136087.0627562979,"d":"$1,136,087"}},{"$f":"'Trial 7'!BE45","v":{"v":1135063.4355129518,"d":"$1,135,063"}},{"$f":"'Trial 7'!BF45","v":{"v":1134036.129958341,"d":"$1,134,036"}},{"$f":"'Trial 7'!BG45","v":{"v":1133000.5740475913,"d":"$1,133,001"}},{"$f":"'Trial 7'!BH45","v":{"v":1131961.8887231664,"d":"$1,131,962"}},{"$f":"'Trial 7'!BI45","v":{"v":1130924.4040971727,"d":"$1,130,924"}},{"$f":"'Trial 7'!BJ45","v":{"v":1129875.3296636844,"d":"$1,129,875"}},{"$f":"'Trial 7'!BK45","v":{"v":1128820.78237637,"d":"$1,128,821"}},{"$f":"'Trial 7'!BL45","v":{"v":1127757.883146006,"d":"$1,127,758"}},{"$f":"'Trial 7'!BM45","v":{"v":1126682.4324791448,"d":"$1,126,682"}},{"$f":"'Trial 7'!BO45","v":{"v":1125599.9817775418,"d":"$1,125,600"}},{"$f":"'Trial 7'!BP45","v":{"v":1124517.6134392845,"d":"$1,124,518"}},{"$f":"'Trial 7'!BQ45","v":{"v":1123428.4236344327,"d":"$1,123,428"}},{"$f":"'Trial 7'!BR45","v":{"v":1122326.2882303908,"d":"$1,122,326"}},{"$f":"'Trial 7'!BS45","v":{"v":1121225.5466123666,"d":"$1,121,226"}},{"$f":"'Trial 7'!BT45","v":{"v":1120126.108621901,"d":"$1,120,126"}},{"$f":"'Trial 7'!BU45","v":{"v":1119031.4566299953,"d":"$1,119,031"}},{"$f":"'Trial 7'!BV45","v":{"v":1117943.0406411842,"d":"$1,117,943"}},{"$f":"'Trial 7'!BW45","v":{"v":1116858.37891096,"d":"$1,116,858"}},{"$f":"'Trial 7'!BX45","v":{"v":1115766.0433638087,"d":"$1,115,766"}},{"$f":"'Trial 7'!BY45","v":{"v":1114680.3603880743,"d":"$1,114,680"}},{"$f":"'Trial 7'!BZ45","v":{"v":1113587.9827765606,"d":"$1,113,588"}},{"$f":"'Trial 7'!CB45","v":{"v":1112485.676427995,"d":"$1,112,486"}},{"$f":"'Trial 7'!CC45","v":{"v":1111370.1921230138,"d":"$1,111,370"}},{"$f":"'Trial 7'!CD45","v":{"v":1110253.297944844,"d":"$1,110,253"}},{"$f":"'Trial 7'!CE45","v":{"v":1109140.625598835,"d":"$1,109,141"}},{"$f":"'Trial 7'!CF45","v":{"v":1108033.176027319,"d":"$1,108,033"}},{"$f":"'Trial 7'!CG45","v":{"v":1106913.667906831,"d":"$1,106,914"}},{"$f":"'Trial 7'!CH45","v":{"v":1105790.9680414654,"d":"$1,105,791"}},{"$f":"'Trial 7'!CI45","v":{"v":1104673.800866702,"d":"$1,104,674"}},{"$f":"'Trial 7'!CJ45","v":{"v":1103544.8315556233,"d":"$1,103,545"}},{"$f":"'Trial 7'!CK45","v":{"v":1102410.8937152487,"d":"$1,102,411"}},{"$f":"'Trial 7'!CL45","v":{"v":1101290.3747880661,"d":"$1,101,290"}},{"$f":"'Trial 7'!CM45","v":{"v":1100181.656253566,"d":"$1,100,182"}},{"$f":"'Trial 7'!CO45","v":{"v":1099072.590163648,"d":"$1,099,073"}},{"$f":"'Trial 7'!CP45","v":{"v":1097970.830302569,"d":"$1,097,971"}},{"$f":"'Trial 7'!CQ45","v":{"v":1096881.5002744175,"d":"$1,096,882"}},{"$f":"'Trial 7'!CR45","v":{"v":1095792.0784274554,"d":"$1,095,792"}},{"$f":"'Trial 7'!CS45","v":{"v":1094707.1531327935,"d":"$1,094,707"}},{"$f":"'Trial 7'!CT45","v":{"v":1093628.1265968366,"d":"$1,093,628"}},{"$f":"'Trial 7'!CU45","v":{"v":1092550.7379893991,"d":"$1,092,551"}},{"$f":"'Trial 7'!CV45","v":{"v":1091473.7778919518,"d":"$1,091,474"}},{"$f":"'Trial 7'!CW45","v":{"v":1090404.2013834445,"d":"$1,090,404"}},{"$f":"'Trial 7'!CX45","v":{"v":1089335.531012183,"d":"$1,089,336"}},{"$f":"'Trial 7'!CY45","v":{"v":1088267.206780265,"d":"$1,088,267"}},{"$f":"'Trial 7'!CZ45","v":{"v":1087191.74314216,"d":"$1,087,192"}},{"$f":"'Trial 7'!DB45","v":{"v":1086110.6973105355,"d":"$1,086,111"}},{"$f":"'Trial 7'!DC45","v":{"v":1085034.86166501,"d":"$1,085,035"}},{"$f":"'Trial 7'!DD45","v":{"v":1083970.9840977709,"d":"$1,083,971"}},{"$f":"'Trial 7'!DE45","v":{"v":1082915.9322705406,"d":"$1,082,916"}},{"$f":"'Trial 7'!DF45","v":{"v":1081863.7580646705,"d":"$1,081,864"}},{"$f":"'Trial 7'!DG45","v":{"v":1080816.4446087072,"d":"$1,080,816"}},{"$f":"'Trial 7'!DH45","v":{"v":1079773.0081511685,"d":"$1,079,773"}},{"$f":"'Trial 7'!DI45","v":{"v":1078723.4449302542,"d":"$1,078,723"}},{"$f":"'Trial 7'!DJ45","v":{"v":1077667.2533406783,"d":"$1,077,667"}},{"$f":"'Trial 7'!DK45","v":{"v":1076614.3331620444,"d":"$1,076,614"}},{"$f":"'Trial 7'!DL45","v":{"v":1075563.611667941,"d":"$1,075,564"}},{"$f":"'Trial 7'!DM45","v":{"v":1074506.627329055,"d":"$1,074,507"}},{"$f":"'Trial 7'!DO45","v":{"v":1073453.6465619535,"d":"$1,073,454"}},{"$f":"'Trial 7'!DP45","v":{"v":1072405.125831269,"d":"$1,072,405"}},{"$f":"'Trial 7'!DQ45","v":{"v":1071354.5623296017,"d":"$1,071,355"}},{"$f":"'Trial 7'!DR45","v":{"v":1070306.8432382029,"d":"$1,070,307"}},{"$f":"'Trial 7'!DS45","v":{"v":1069261.662330598,"d":"$1,069,262"}},{"$f":"'Trial 7'!DT45","v":{"v":1068212.7510985034,"d":"$1,068,213"}},{"$f":"'Trial 7'!DU45","v":{"v":1067169.7272676865,"d":"$1,067,170"}},{"$f":"'Trial 7'!DV45","v":{"v":1066123.7811876235,"d":"$1,066,124"}},{"$f":"'Trial 7'!DW45","v":{"v":1065078.2323309104,"d":"$1,065,078"}},{"$f":"'Trial 7'!DX45","v":{"v":1064041.482681898,"d":"$1,064,041"}},{"$f":"'Trial 7'!DY45","v":{"v":1063020.9360824227,"d":"$1,063,021"}},{"$f":"'Trial 7'!DZ45","v":{"v":1061994.8103395456,"d":"$1,061,995"}},{"$f":"'Trial 7'!EB45","v":{"v":1060968.5227610797,"d":"$1,060,969"}},{"$f":"'Trial 7'!EC45","v":{"v":1059939.2595714491,"d":"$1,059,939"}},{"$f":"'Trial 7'!ED45","v":{"v":1058921.6626793174,"d":"$1,058,922"}},{"$f":"'Trial 7'!EE45","v":{"v":1057901.7630533308,"d":"$1,057,902"}},{"$f":"'Trial 7'!EF45","v":{"v":1056885.7807358121,"d":"$1,056,886"}},{"$f":"'Trial 7'!EG45","v":{"v":1055876.351548996,"d":"$1,055,876"}},{"$f":"'Trial 7'!EH45","v":{"v":1054865.1324098133,"d":"$1,054,865"}},{"$f":"'Trial 7'!EI45","v":{"v":1053846.6533973948,"d":"$1,053,847"}},{"$f":"'Trial 7'!EJ45","v":{"v":1052822.868531562,"d":"$1,052,823"}},{"$f":"'Trial 7'!EK45","v":{"v":1051807.4016360105,"d":"$1,051,807"}},{"$f":"'Trial 7'!EL45","v":{"v":1050801.2151771006,"d":"$1,050,801"}},{"$f":"'Trial 7'!EM45","v":{"v":1049799.438776439,"d":"$1,049,799"}}]
[{"$f":"'Trial 8'!B45","v":{"v":1166666.6666666667,"d":"$1,166,667"}},{"$f":"'Trial 8'!C45","v":{"v":1166666.6666666667,"d":"$1,166,667"}},{"$f":"'Trial 8'!D45","v":{"v":1166617.2190847096,"d":"$1,166,617"}},{"$f":"'Trial 8'!E45","v":{"v":1166526.7551124713,"d":"$1,166,527"}},{"$f":"'Trial 8'!F45","v":{"v":1166398.7932722978,"d":"$1,166,399"}},{"$f":"'Trial 8'!G45","v":{"v":1166236.5737276275,"d":"$1,166,237"}},{"$f":"'Trial 8'!H45","v":{"v":1166050.4602780303,"d":"$1,166,050"}},{"$f":"'Trial 8'!I45","v":{"v":1165833.046114636,"d":"$1,165,833"}},{"$f":"'Trial 8'!J45","v":{"v":1165581.4181729401,"d":"$1,165,581"}},{"$f":"'Trial 8'!K45","v":{"v":1165301.4127980317,"d":"$1,165,301"}},{"$f":"'Trial 8'!L45","v":{"v":1164982.6333261936,"d":"$1,164,983"}},{"$f":"'Trial 8'!M45","v":{"v":1164637.673374215,"d":"$1,164,638"}},{"$f":"'Trial 8'!O45","v":{"v":1164255.183633396,"d":"$1,164,255"}},{"$f":"'Trial 8'!P45","v":{"v":1163845.0406479395,"d":"$1,163,845"}},{"$f":"'Trial 8'!Q45","v":{"v":1163416.5155007334,"d":"$1,163,417"}},{"$f":"'Trial 8'!R45","v":{"v":1162955.3097891726,"d":"$1,162,955"}},{"$f":"'Trial 8'!S45","v":{"v":1162457.6914576737,"d":"$1,162,458"}},{"$f":"'Trial 8'!T45","v":{"v":1161937.3198042845,"d":"$1,161,937"}},{"$f":"'Trial 8'!U45","v":{"v":1161392.7101493631,"d":"$1,161,393"}},{"$f":"'Trial 8'!V45","v":{"v":1160834.0413659548,"d":"$1,160,834"}},{"$f":"'Trial 8'!W45","v":{"v":1160251.2277589655,"d":"$1,160,251"}},{"$f":"'Trial 8'!X45","v":{"v":1159646.6452117413,"d":"$1,159,647"}},{"$f":"'Trial 8'!Y45","v":{"v":1159028.9901424472,"d":"$1,159,029"}},{"$f":"'Trial 8'!Z45","v":{"v":1158384.6804341392,"d":"$1,158,385"}},{"$f":"'Trial 8'!AB45","v":{"v":1157711.8642618982,"d":"$1,157,712"}},{"$f":"'Trial 8'!AC45","v":{"v":1157015.0749144966,"d":"$1,157,015"}},{"$f":"'Trial 8'!AD45","v":{"v":1156299.4362515998,"d":"$1,156,299"}},{"$f":"'Trial 8'!AE45","v":{"v":1155566.1663933839,"d":"$1,155,566"}},{"$f":"'Trial 8'!AF45","v":{"v":1154811.4010113184,"d":"$1,154,811"}},{"$f":"'Trial 8'!AG45","v":{"v":1154038.3183016635,"d":"$1,154,038"}},{"$f":"'Trial 8'!AH45","v":{"v":1153242.9625315387,"d":"$1,153,243"}},{"$f":"'Trial 8'!AI45","v":{"v":1152427.8158732145,"d":"$1,152,428"}},{"$f":"'Trial 8'!AJ45","v":{"v":1151601.5350242734,"d":"$1,151,602"}},{"$f":"'Trial 8'!AK45","v":{"v":1150763.6191453123,"d":"$1,150,764"}},{"$f":"'Trial 8'!AL45","v":{"v":1149908.3843652338,"d":"$1,149,908"}},{"$f":"'Trial 8'!AM45","v":{"v":1149039.9417142395,"d":"$1,149,040"}},{"$f":"'Trial 8'!AO45","v":{"v":1148166.322195816,"d":"$1,148,166"}},{"$f":"'Trial 8'!AP45","v":{"v":1147287.1221521283,"d":"$1,147,287"}},{"$f":"'Trial 8'!AQ45","v":{"v":1146401.7878982923,"d":"$1,146,402"}},{"$f":"'Trial 8'!AR45","v":{"v":1145505.126153306,"d":"$1,145,505"}},{"$f":"'Trial 8'!AS45","v":{"v":1144597.2824586905,"d":"$1,144,597"}},{"$f":"'Trial 8'!AT45","v":{"v":1143671.6514624553,"d":"$1,143,672"}},{"$f":"'Trial 8'!AU45","v":{"v":1142729.0226851595,"d":"$1,142,729"}},{"$f":"'Trial 8'!AV45","v":{"v":1141774.3785371268,"d":"$1,141,774"}},{"$f":"'Trial 8'!AW45","v":{"v":1140813.7399165255,"d":"$1,140,814"}},{"$f":"'Trial 8'!AX45","v":{"v":1139844.6039682226,"d":"$1,139,845"}},{"$f":"'Trial 8'!AY45","v":{"v":1138868.048331573,"d":"$1,138,868"}},{"$f":"'Trial 8'!AZ45","v":{"v":1137883.6029820193,"d":"$1,137,884"}},{"$f":"'Trial 8'!BB45","v":{"v":1136894.1020382359,"d":"$1,136,894"}},{"$f":"'Trial 8'!BC45","v":{"v":1135898.6090644186,"d":"$1,135,899"}},{"$f":"'Trial 8'!BD45","v":{"v":1134892.8905953541,"d":"$1,134,893"}},{"$f":"'Trial 8'!BE45","v":{"v":1133886.334444338,"d":"$1,133,886"}},{"$f":"'Trial 8'!BF45","v":{"v":1132881.035008147,"d":"$1,132,881"}},{"$f":"'Trial 8'!BG45","v":{"v":1131871.7544857387,"d":"$1,131,872"}},{"$f":"'Trial 8'!BH45","v":{"v":1130858.378822157,"d":"$1,130,858"}},{"$f":"'Trial 8'!BI45","v":{"v":1129845.7795272332,"d":"$1,129,846"}},{"$f":"'Trial 8'!BJ45","v":{"v":1128822.549310033,"d":"$1,128,823"}},{"$f":"'Trial 8'!BK45","v":{"v":1127793.7268441927,"d":"$1,127,794"}},{"$f":"'Trial 8'!BL45","v":{"v":1126763.536113315,"d":"$1,126,764"}},{"$f":"'Trial 8'!BM45","v":{"v":1125731.6676061226,"d":"$1,125,732"}},{"$f":"'Trial 8'!BO45","v":{"v":1124698.6343013186,"d":"$1,124,699"}},{"$f":"'Trial 8'!BP45","v":{"v":1123659.6349311806,"d":"$1,123,660"}},{"$f":"'Trial 8'!BQ45","v":{"v":1122620.773723874,"d":"$1,122,621"}},{"$f":"'Trial 8'!BR45","v":{"v":1121585.9167384594,"d":"$1,121,586"}},{"$f":"'Trial 8'!BS45","v":{"v":1120552.5880830274,"d":"$1,120,553"}},{"$f":"'Trial 8'!BT45","v":{"v":1119526.261367102,"d":"$1,119,526"}},{"$f":"'Trial 8'!BU45","v":{"v":1118499.5187626446,"d":"$1,118,500"}},{"$f":"'Trial 8'!BV45","v":{"v":1117469.2539593806,"d":"$1,117,469"}},{"$f":"'Trial 8'!BW45","v":{"v":1116438.3458292927,"d":"$1,116,438"}},{"$f":"'Trial 8'!BX45","v":{"v":1115412.4334796302,"d":"$1,115,412"}},{"$f":"'Trial 8'!BY45","v":{"v":1114388.5884659276,"d":"$1,114,389"}},{"$f":"'Trial 8'!BZ45","v":{"v":1113366.7279918776,"d":"$1,113,367"}},{"$f":"'Trial 8'!CB45","v":{"v":1112339.8429298722,"d":"$1,112,340"}},{"$f":"'Trial 8'!CC45","v":{"v":1111301.6745092187,"d":"$1,111,302"}},{"$f":"'Trial 8'!CD45","v":{"v":1110258.2854316074,"d":"$1,110,258"}},{"$f":"'Trial 8'!CE45","v":{"v":1109213.0647312074,"d":"$1,109,213"}},{"$f":"'Trial 8'!CF45","v":{"v":1108159.216624071,"d":"$1,108,159"}},{"$f":"'Trial 8'!CG45","v":{"v":1107105.4139585756,"d":"$1,107,105"}},{"$f":"'Trial 8'!CH45","v":{"v":1106049.2961116966,"d":"$1,106,049"}},{"$f":"'Trial 8'!CI45","v":{"v":1105003.3495135603,"d":"$1,105,003"}},{"$f":"'Trial 8'!CJ45","v":{"v":1103956.6329526221,"d":"$1,103,957"}},{"$f":"'Trial 8'!CK45","v":{"v":1102904.5218222307,"d":"$1,102,905"}},{"$f":"'Trial 8'!CL45","v":{"v":1101855.2456789936,"d":"$1,101,855"}},{"$f":"'Trial 8'!CM45","v":{"v":1100810.8801976724,"d":"$1,100,811"}},{"$f":"'Trial 8'!CO45","v":{"v":1099759.3375727942,"d":"$1,099,759"}},{"$f":"'Trial 8'!CP45","v":{"v":1098715.4821008379,"d":"$1,098,715"}},{"$f":"'Trial 8'!CQ45","v":{"v":1097679.5568883994,"d":"$1,097,680"}},{"$f":"'Trial 8'!CR45","v":{"v":1096644.7122770215,"d":"$1,096,645"}},{"$f":"'Trial 8'!CS45","v":{"v":1095613.6185133706,"d":"$1,095,614"}},{"$f":"'Trial 8'!CT45","v":{"v":1094585.733156026,"d":"$1,094,586"}},{"$f":"'Trial 8'!CU45","v":{"v":1093545.0117483577,"d":"$1,093,545"}},{"$f":"'Trial 8'!CV45","v":{"v":1092503.6399936273,"d":"$1,092,504"}},{"$f":"'Trial 8'!CW45","v":{"v":1091469.4128459005,"d":"$1,091,469"}},{"$f":"'Trial 8'!CX45","v":{"v":1090435.4451848865,"d":"$1,090,435"}},{"$f":"'Trial 8'!CY45","v":{"v":1089390.4583575928,"d":"$1,089,390"}},{"$f":"'Trial 8'!CZ45","v":{"v":1088353.8383737984,"d":"$1,088,354"}},{"$f":"'Trial 8'!DB45","v":{"v":1087329.8459707152,"d":"$1,087,330"}},{"$f":"'Trial 8'!DC45","v":{"v":1086301.4093972824,"d":"$1,086,301"}},{"$f":"'Trial 8'!DD45","v":{"v":1085285.5257208555,"d":"$1,085,286"}},{"$f":"'Trial 8'!DE45","v":{"v":1084266.200916149,"d":"$1,084,266"}},{"$f":"'Trial 8'!DF45","v":{"v":1083240.836024544,"d":"$1,083,241"}},{"$f":"'Trial 8'!DG45","v":{"v":1082214.5030353582,"d":"$1,082,215"}},{"$f":"'Trial 8'!DH45","v":{"v":1081189.9915403726,"d":"$1,081,190"}},{"$f":"'Trial 8'!DI45","v":{"v":1080162.985725638,"d":"$1,080,163"}},{"$f":"'Trial 8'!DJ45","v":{"v":1079136.5851189618,"d":"$1,079,137"}},{"$f":"'Trial 8'!DK45","v":{"v":1078104.5141967381,"d":"$1,078,105"}},{"$f":"'Trial 8'!DL45","v":{"v":1077085.267084124,"d":"$1,077,085"}},{"$f":"'Trial 8'!DM45","v":{"v":1076064.9179768192,"d":"$1,076,065"}},{"$f":"'Trial 8'!DO45","v":{"v":1075056.0551945553,"d":"$1,075,056"}},{"$f":"'Trial 8'!DP45","v":{"v":1074047.229000066,"d":"$1,074,047"}},{"$f":"'Trial 8'!DQ45","v":{"v":1073031.0071929381,"d":"$1,073,031"}},{"$f":"'Trial 8'!DR45","v":{"v":1072010.0239865396,"d":"$1,072,010"}},{"$f":"'Trial 8'!DS45","v":{"v":1071001.8315404234,"d":"$1,071,002"}},{"$f":"'Trial 8'!DT45","v":{"v":1070004.2729403174,"d":"$1,070,004"}},{"$f":"'Trial 8'!DU45","v":{"v":1069006.0537112684,"d":"$1,069,006"}},{"$f":"'Trial 8'!DV45","v":{"v":1068018.4536309212,"d":"$1,068,018"}},{"$f":"'Trial 8'!DW45","v":{"v":1067040.2819359729,"d":"$1,067,040"}},{"$f":"'Trial 8'!DX45","v":{"v":1066065.0838986645,"d":"$1,066,065"}},{"$f":"'Trial 8'!DY45","v":{"v":1065095.648002265,"d":"$1,065,096"}},{"$f":"'Trial 8'!DZ45","v":{"v":1064119.541284294,"d":"$1,064,120"}},{"$f":"'Trial 8'!EB45","v":{"v":1063148.1743102258,"d":"$1,063,148"}},{"$f":"'Trial 8'!EC45","v":{"v":1062179.113297415,"d":"$1,062,179"}},{"$f":"'Trial 8'!ED45","v":{"v":1061202.820603681,"d":"$1,061,203"}},{"$f":"'Trial 8'!EE45","v":{"v":1060220.3021375644,"d":"$1,060,220"}},{"$f":"'Trial 8'!EF45","v":{"v":1059244.341215766,"d":"$1,059,244"}},{"$f":"'Trial 8'!EG45","v":{"v":1058267.6314536443,"d":"$1,058,268"}},{"$f":"'Trial 8'!EH45","v":{"v":1057289.1655062358,"d":"$1,057,289"}},{"$f":"'Trial 8'!EI45","v":{"v":1056314.4470756026,"d":"$1,056,314"}},{"$f":"'Trial 8'!EJ45","v":{"v":1055350.8094581098,"d":"$1,055,351"}},{"$f":"'Trial 8'!EK45","v":{"v":1054384.810189788,"d":"$1,054,385"}},{"$f":"'Trial 8'!EL45","v":{"v":1053422.7575608469,"d":"$1,053,423"}},{"$f":"'Trial 8'!EM45","v":{"v":1052454.3761933714,"d":"$1,052,454"}}]
[{"$f":"'(Other Computations)'!B94","v":{"v":9333333.333333334,"d":"$9,333,333"}},{"$f":"'(Other Computations)'!C94","v":{"v":9333333.333333334,"d":"$9,333,333"}},{"$f":"'(Other Computations)'!D94","v":{"v":9332971.02703304,"d":"$9,332,971"}},{"$f":"'(Other Computations)'!E94","v":{"v":9332280.352328736,"d":"$9,332,280"}},{"$f":"'(Other Computations)'!F94","v":{"v":9331301.244798692,"d":"$9,331,301"}},{"$f":"'(Other Computations)'!G94","v":{"v":9330054.545958977,"d":"$9,330,055"}},{"$f":"'(Other Computations)'!H94","v":{"v":9328564.180298492,"d":"$9,328,564"}},{"$f":"'(Other Computations)'!I94","v":{"v":9326816.1429676,"d":"$9,326,816"}},{"$f":"'(Other Computations)'!J94","v":{"v":9324789.36315858,"d":"$9,324,789"}},{"$f":"'(Other Computations)'!K94","v":{"v":9322505.808256695,"d":"$9,322,506"}},{"$f":"'(Other Computations)'!L94","v":{"v":9319975.543419959,"d":"$9,319,976"}},{"$f":"'(Other Computations)'!M94","v":{"v":9317206.219775504,"d":"$9,317,206"}},{"$f":"'(Other Computations)'!O94","v":{"v":9314201.856583688,"d":"$9,314,202"}},{"$f":"'(Other Computations)'!P94","v":{"v":9310960.141301675,"d":"$9,310,960"}},{"$f":"'(Other Computations)'!Q94","v":{"v":9307506.5768348,"d":"$9,307,507"}},{"$f":"'(Other Computations)'!R94","v":{"v":9303842.549738213,"d":"$9,303,843"}},{"$f":"'(Other Computations)'!S94","v":{"v":9299981.73067308,"d":"$9,299,982"}},{"$f":"'(Other Computations)'!T94","v":{"v":9295937.593255084,"d":"$9,295,938"}},{"$f":"'(Other Computations)'!U94","v":{"v":9291654.846581984,"d":"$9,291,655"}},{"$f":"'(Other Computations)'!V94","v":{"v":9287193.084891116,"d":"$9,287,193"}},{"$f":"'(Other Computations)'!W94","v":{"v":9282521.580660075,"d":"$9,282,522"}},{"$f":"'(Other Computations)'!X94","v":{"v":9277651.463631257,"d":"$9,277,651"}},{"$f":"'(Other Computations)'!Y94","v":{"v":9272632.220282355,"d":"$9,272,632"}},{"$f":"'(Other Computations)'!Z94","v":{"v":9267434.473138582,"d":"$9,267,434"}},{"$f":"'(Other Computations)'!AB94","v":{"v":9262067.22688289,"d":"$9,262,067"}},{"$f":"'(Other Computations)'!AC94","v":{"v":9256501.564422632,"d":"$9,256,502"}},{"$f":"'(Other Computations)'!AD94","v":{"v":9250784.031009171,"d":"$9,250,784"}},{"$f":"'(Other Computations)'!AE94","v":{"v":9244935.281496486,"d":"$9,244,935"}},{"$f":"'(Other Computations)'!AF94","v":{"v":9238948.673999706,"d":"$9,238,949"}},{"$f":"'(Other Computations)'!AG94","v":{"v":9232824.02989886,"d":"$9,232,824"}},{"$f":"'(Other Computations)'!AH94","v":{"v":9226540.635031156,"d":"$9,226,541"}},{"$f":"'(Other Computations)'!AI94","v":{"v":9220139.67562374,"d":"$9,220,140"}},{"$f":"'(Other Computations)'!AJ94","v":{"v":9213640.161975846,"d":"$9,213,640"}},{"$f":"'(Other Computations)'!AK94","v":{"v":9206993.558026021,"d":"$9,206,994"}},{"$f":"'(Other Computations)'!AL94","v":{"v":9200236.729080549,"d":"$9,200,237"}},{"$f":"'(Other Computations)'!AM94","v":{"v":9193380.995501231,"d":"$9,193,381"}},{"$f":"'(Other Computations)'!AO94","v":{"v":9186435.972728245,"d":"$9,186,436"}},{"$f":"'(Other Computations)'!AP94","v":{"v":9179372.004844483,"d":"$9,179,372"}},{"$f":"'(Other Computations)'!AQ94","v":{"v":9172211.438279435,"d":"$9,172,211"}},{"$f":"'(Other Computations)'!AR94","v":{"v":9164978.177642222,"d":"$9,164,978"}},{"$f":"'(Other Computations)'!AS94","v":{"v":9157638.589015659,"d":"$9,157,639"}},{"$f":"'(Other Computations)'!AT94","v":{"v":9150209.522807516,"d":"$9,150,210"}},{"$f":"'(Other Computations)'!AU94","v":{"v":9142715.652121056,"d":"$9,142,716"}},{"$f":"'(Other Computations)'!AV94","v":{"v":9135139.239252716,"d":"$9,135,139"}},{"$f":"'(Other Computations)'!AW94","v":{"v":9127477.826265167,"d":"$9,127,478"}},{"$f":"'(Other Computations)'!AX94","v":{"v":9119744.848481294,"d":"$9,119,745"}},{"$f":"'(Other Computations)'!AY94","v":{"v":9111920.63290365,"d":"$9,111,921"}},{"$f":"'(Other Computations)'!AZ94","v":{"v":9104022.436626025,"d":"$9,104,022"}},{"$f":"'(Other Computations)'!BB94","v":{"v":9096063.323294457,"d":"$9,096,063"}},{"$f":"'(Other Computations)'!BC94","v":{"v":9088017.171788005,"d":"$9,088,017"}},{"$f":"'(Other Computations)'!BD94","v":{"v":9079891.292435972,"d":"$9,079,891"}},{"$f":"'(Other Computations)'!BE94","v":{"v":9071704.773619564,"d":"$9,071,705"}},{"$f":"'(Other Computations)'!BF94","v":{"v":9063467.287136536,"d":"$9,063,467"}},{"$f":"'(Other Computations)'!BG94","v":{"v":9055175.170369597,"d":"$9,055,175"}},{"$f":"'(Other Computations)'!BH94","v":{"v":9046844.776480136,"d":"$9,046,845"}},{"$f":"'(Other Computations)'!BI94","v":{"v":9038478.399186522,"d":"$9,038,478"}},{"$f":"'(Other Computations)'!BJ94","v":{"v":9030046.671553899,"d":"$9,030,047"}},{"$f":"'(Other Computations)'!BK94","v":{"v":9021565.713986972,"d":"$9,021,566"}},{"$f":"'(Other Computations)'!BL94","v":{"v":9013060.089352721,"d":"$9,013,060"}},{"$f":"'(Other Computations)'!BM94","v":{"v":9004514.08480403,"d":"$9,004,514"}},{"$f":"'(Other Computations)'!BO94","v":{"v":8995948.28306961,"d":"$8,995,948"}},{"$f":"'(Other Computations)'!BP94","v":{"v":8987349.259286895,"d":"$8,987,349"}},{"$f":"'(Other Computations)'!BQ94","v":{"v":8978717.512961032,"d":"$8,978,718"}},{"$f":"'(Other Computations)'!BR94","v":{"v":8970065.327574283,"d":"$8,970,065"}},{"$f":"'(Other Computations)'!BS94","v":{"v":8961411.29619793,"d":"$8,961,411"}},{"$f":"'(Other Computations)'!BT94","v":{"v":8952751.326235002,"d":"$8,952,751"}},{"$f":"'(Other Computations)'!BU94","v":{"v":8944060.057967057,"d":"$8,944,060"}},{"$f":"'(Other Computations)'!BV94","v":{"v":8935380.180226602,"d":"$8,935,380"}},{"$f":"'(Other Computations)'!BW94","v":{"v":8926669.699623799,"d":"$8,926,670"}},{"$f":"'(Other Computations)'!BX94","v":{"v":8917941.061402889,"d":"$8,917,941"}},{"$f":"'(Other Computations)'!BY94","v":{"v":8909222.574294224,"d":"$8,909,223"}},{"$f":"'(Other Computations)'!BZ94","v":{"v":8900476.866503058,"d":"$8,900,477"}},{"$f":"'(Other Computations)'!CB94","v":{"v":8891740.234651484,"d":"$8,891,740"}},{"$f":"'(Other Computations)'!CC94","v":{"v":8882996.610752217,"d":"$8,882,997"}},{"$f":"'(Other Computations)'!CD94","v":{"v":8874242.339096457,"d":"$8,874,242"}},{"$f":"'(Other Computations)'!CE94","v":{"v":8865475.47741649,"d":"$8,865,475"}},{"$f":"'(Other Computations)'!CF94","v":{"v":8856716.10877404,"d":"$8,856,716"}},{"$f":"'(Other Computations)'!CG94","v":{"v":8847937.15685787,"d":"$8,847,937"}},{"$f":"'(Other Computations)'!CH94","v":{"v":8839154.912227925,"d":"$8,839,155"}},{"$f":"'(Other Computations)'!CI94","v":{"v":8830417.24409422,"d":"$8,830,417"}},{"$f":"'(Other Computations)'!CJ94","v":{"v":8821686.324764743,"d":"$8,821,686"}},{"$f":"'(Other Computations)'!CK94","v":{"v":8812972.378095435,"d":"$8,812,972"}},{"$f":"'(Other Computations)'!CL94","v":{"v":8804269.552408636,"d":"$8,804,270"}},{"$f":"'(Other Computations)'!CM94","v":{"v":8795600.444607355,"d":"$8,795,600"}},{"$f":"'(Other Computations)'!CO94","v":{"v":8786931.969889011,"d":"$8,786,932"}},{"$f":"'(Other Computations)'!CP94","v":{"v":8778294.97062546,"d":"$8,778,295"}},{"$f":"'(Other Computations)'!CQ94","v":{"v":8769676.159222202,"d":"$8,769,676"}},{"$f":"'(Other Computations)'!CR94","v":{"v":8761077.421329722,"d":"$8,761,077"}},{"$f":"'(Other Computations)'!CS94","v":{"v":8752496.977449732,"d":"$8,752,497"}},{"$f":"'(Other Computations)'!CT94","v":{"v":8743926.339589877,"d":"$8,743,926"}},{"$f":"'(Other Computations)'!CU94","v":{"v":8735331.078953508,"d":"$8,735,331"}},{"$f":"'(Other Computations)'!CV94","v":{"v":8726729.601806603,"d":"$8,726,730"}},{"$f":"'(Other Computations)'!CW94","v":{"v":8718177.784483269,"d":"$8,718,178"}},{"$f":"'(Other Computations)'!CX94","v":{"v":8709631.79903438,"d":"$8,709,632"}},{"$f":"'(Other Computations)'!CY94","v":{"v":8701095.823276022,"d":"$8,701,096"}},{"$f":"'(Other Computations)'!CZ94","v":{"v":8692563.97303905,"d":"$8,692,564"}},{"$f":"'(Other Computations)'!DB94","v":{"v":8684058.578426367,"d":"$8,684,059"}},{"$f":"'(Other Computations)'!DC94","v":{"v":8675561.461586252,"d":"$8,675,561"}},{"$f":"'(Other Computations)'!DD94","v":{"v":8667095.701050581,"d":"$8,667,096"}},{"$f":"'(Other Computations)'!DE94","v":{"v":8658627.151548164,"d":"$8,658,627"}},{"$f":"'(Other Computations)'!DF94","v":{"v":8650168.367486406,"d":"$8,650,168"}},{"$f":"'(Other Computations)'!DG94","v":{"v":8641739.203322496,"d":"$8,641,739"}},{"$f":"'(Other Computations)'!DH94","v":{"v":8633328.293794792,"d":"$8,633,328"}},{"$f":"'(Other Computations)'!DI94","v":{"v":8624931.118994588,"d":"$8,624,931"}},{"$f":"'(Other Computations)'!DJ94","v":{"v":8616544.942844504,"d":"$8,616,545"}},{"$f":"'(Other Computations)'!DK94","v":{"v":8608165.39957672,"d":"$8,608,165"}},{"$f":"'(Other Computations)'!DL94","v":{"v":8599807.275436513,"d":"$8,599,807"}},{"$f":"'(Other Computations)'!DM94","v":{"v":8591467.356201243,"d":"$8,591,467"}},{"$f":"'(Other Computations)'!DO94","v":{"v":8583134.582901655,"d":"$8,583,135"}},{"$f":"'(Other Computations)'!DP94","v":{"v":8574814.76442945,"d":"$8,574,815"}},{"$f":"'(Other Computations)'!DQ94","v":{"v":8566534.775121478,"d":"$8,566,535"}},{"$f":"'(Other Computations)'!DR94","v":{"v":8558269.160292352,"d":"$8,558,269"}},{"$f":"'(Other Computations)'!DS94","v":{"v":8550051.933031414,"d":"$8,550,052"}},{"$f":"'(Other Computations)'!DT94","v":{"v":8541863.027364535,"d":"$8,541,863"}},{"$f":"'(Other Computations)'!DU94","v":{"v":8533700.063037895,"d":"$8,533,700"}},{"$f":"'(Other Computations)'!DV94","v":{"v":8525584.122876944,"d":"$8,525,584"}},{"$f":"'(Other Computations)'!DW94","v":{"v":8517501.27205812,"d":"$8,517,501"}},{"$f":"'(Other Computations)'!DX94","v":{"v":8509457.703029867,"d":"$8,509,458"}},{"$f":"'(Other Computations)'!DY94","v":{"v":8501444.404245839,"d":"$8,501,444"}},{"$f":"'(Other Computations)'!DZ94","v":{"v":8493458.22313384,"d":"$8,493,458"}},{"$f":"'(Other Computations)'!EB94","v":{"v":8485501.279698508,"d":"$8,485,501"}},{"$f":"'(Other Computations)'!EC94","v":{"v":8477546.53184691,"d":"$8,477,547"}},{"$f":"'(Other Computations)'!ED94","v":{"v":8469629.41525001,"d":"$8,469,629"}},{"$f":"'(Other Computations)'!EE94","v":{"v":8461718.151275229,"d":"$8,461,718"}},{"$f":"'(Other Computations)'!EF94","v":{"v":8453823.242786055,"d":"$8,453,823"}},{"$f":"'(Other Computations)'!EG94","v":{"v":8445959.91501401,"d":"$8,445,960"}},{"$f":"'(Other Computations)'!EH94","v":{"v":8438131.12186705,"d":"$8,438,131"}},{"$f":"'(Other Computations)'!EI94","v":{"v":8430314.941629123,"d":"$8,430,315"}},{"$f":"'(Other Computations)'!EJ94","v":{"v":8422518.71950527,"d":"$8,422,519"}},{"$f":"'(Other Computations)'!EK94","v":{"v":8414713.207376588,"d":"$8,414,713"}},{"$f":"'(Other Computations)'!EL94","v":{"v":8406929.778500922,"d":"$8,406,930"}},{"$f":"'(Other Computations)'!EM94","v":{"v":8399186.441548556,"d":"$8,399,186"}}]
[{"$f":"'(Intermediate Computations)'!B53","v":"Jan 2010"},{"$f":"'(Intermediate Computations)'!C53","v":"Feb 2010"},{"$f":"'(Intermediate Computations)'!D53","v":"Mar 2010"},{"$f":"'(Intermediate Computations)'!E53","v":"Apr 2010"},{"$f":"'(Intermediate Computations)'!F53","v":"May 2010"},{"$f":"'(Intermediate Computations)'!G53","v":"Jun 2010"},{"$f":"'(Intermediate Computations)'!H53","v":"Jul 2010"},{"$f":"'(Intermediate Computations)'!I53","v":"Aug 2010"},{"$f":"'(Intermediate Computations)'!J53","v":"Sep 2010"},{"$f":"'(Intermediate Computations)'!K53","v":"Oct 2010"},{"$f":"'(Intermediate Computations)'!L53","v":"Nov 2010"},{"$f":"'(Intermediate Computations)'!M53","v":"Dec 2010"},{"$f":"'(Intermediate Computations)'!O53","v":"Jan 2011"},{"$f":"'(Intermediate Computations)'!P53","v":"Feb 2011"},{"$f":"'(Intermediate Computations)'!Q53","v":"Mar 2011"},{"$f":"'(Intermediate Computations)'!R53","v":"Apr 2011"},{"$f":"'(Intermediate Computations)'!S53","v":"May 2011"},{"$f":"'(Intermediate Computations)'!T53","v":"Jun 2011"},{"$f":"'(Intermediate Computations)'!U53","v":"Jul 2011"},{"$f":"'(Intermediate Computations)'!V53","v":"Aug 2011"},{"$f":"'(Intermediate Computations)'!W53","v":"Sep 2011"},{"$f":"'(Intermediate Computations)'!X53","v":"Oct 2011"},{"$f":"'(Intermediate Computations)'!Y53","v":"Nov 2011"},{"$f":"'(Intermediate Computations)'!Z53","v":"Dec 2011"},{"$f":"'(Intermediate Computations)'!AB53","v":"Jan 2012"},{"$f":"'(Intermediate Computations)'!AC53","v":"Feb 2012"},{"$f":"'(Intermediate Computations)'!AD53","v":"Mar 2012"},{"$f":"'(Intermediate Computations)'!AE53","v":"Apr 2012"},{"$f":"'(Intermediate Computations)'!AF53","v":"May 2012"},{"$f":"'(Intermediate Computations)'!AG53","v":"Jun 2012"},{"$f":"'(Intermediate Computations)'!AH53","v":"Jul 2012"},{"$f":"'(Intermediate Computations)'!AI53","v":"Aug 2012"},{"$f":"'(Intermediate Computations)'!AJ53","v":"Sep 2012"},{"$f":"'(Intermediate Computations)'!AK53","v":"Oct 2012"},{"$f":"'(Intermediate Computations)'!AL53","v":"Nov 2012"},{"$f":"'(Intermediate Computations)'!AM53","v":"Dec 2012"},{"$f":"'(Intermediate Computations)'!AO53","v":"Jan 2013"},{"$f":"'(Intermediate Computations)'!AP53","v":"Feb 2013"},{"$f":"'(Intermediate Computations)'!AQ53","v":"Mar 2013"},{"$f":"'(Intermediate Computations)'!AR53","v":"Apr 2013"},{"$f":"'(Intermediate Computations)'!AS53","v":"May 2013"},{"$f":"'(Intermediate Computations)'!AT53","v":"Jun 2013"},{"$f":"'(Intermediate Computations)'!AU53","v":"Jul 2013"},{"$f":"'(Intermediate Computations)'!AV53","v":"Aug 2013"},{"$f":"'(Intermediate Computations)'!AW53","v":"Sep 2013"},{"$f":"'(Intermediate Computations)'!AX53","v":"Oct 2013"},{"$f":"'(Intermediate Computations)'!AY53","v":"Nov 2013"},{"$f":"'(Intermediate Computations)'!AZ53","v":"Dec 2013"},{"$f":"'(Intermediate Computations)'!BB53","v":"Jan 2014"},{"$f":"'(Intermediate Computations)'!BC53","v":"Feb 2014"},{"$f":"'(Intermediate Computations)'!BD53","v":"Mar 2014"},{"$f":"'(Intermediate Computations)'!BE53","v":"Apr 2014"},{"$f":"'(Intermediate Computations)'!BF53","v":"May 2014"},{"$f":"'(Intermediate Computations)'!BG53","v":"Jun 2014"},{"$f":"'(Intermediate Computations)'!BH53","v":"Jul 2014"},{"$f":"'(Intermediate Computations)'!BI53","v":"Aug 2014"},{"$f":"'(Intermediate Computations)'!BJ53","v":"Sep 2014"},{"$f":"'(Intermediate Computations)'!BK53","v":"Oct 2014"},{"$f":"'(Intermediate Computations)'!BL53","v":"Nov 2014"},{"$f":"'(Intermediate Computations)'!BM53","v":"Dec 2014"},{"$f":"'(Intermediate Computations)'!BO53","v":"Jan 2015"},{"$f":"'(Intermediate Computations)'!BP53","v":"Feb 2015"},{"$f":"'(Intermediate Computations)'!BQ53","v":"Mar 2015"},{"$f":"'(Intermediate Computations)'!BR53","v":"Apr 2015"},{"$f":"'(Intermediate Computations)'!BS53","v":"May 2015"},{"$f":"'(Intermediate Computations)'!BT53","v":"Jun 2015"},{"$f":"'(Intermediate Computations)'!BU53","v":"Jul 2015"},{"$f":"'(Intermediate Computations)'!BV53","v":"Aug 2015"},{"$f":"'(Intermediate Computations)'!BW53","v":"Sep 2015"},{"$f":"'(Intermediate Computations)'!BX53","v":"Oct 2015"},{"$f":"'(Intermediate Computations)'!BY53","v":"Nov 2015"},{"$f":"'(Intermediate Computations)'!BZ53","v":"Dec 2015"},{"$f":"'(Intermediate Computations)'!CB53","v":"Jan 2016"},{"$f":"'(Intermediate Computations)'!CC53","v":"Feb 2016"},{"$f":"'(Intermediate Computations)'!CD53","v":"Mar 2016"},{"$f":"'(Intermediate Computations)'!CE53","v":"Apr 2016"},{"$f":"'(Intermediate Computations)'!CF53","v":"May 2016"},{"$f":"'(Intermediate Computations)'!CG53","v":"Jun 2016"},{"$f":"'(Intermediate Computations)'!CH53","v":"Jul 2016"},{"$f":"'(Intermediate Computations)'!CI53","v":"Aug 2016"},{"$f":"'(Intermediate Computations)'!CJ53","v":"Sep 2016"},{"$f":"'(Intermediate Computations)'!CK53","v":"Oct 2016"},{"$f":"'(Intermediate Computations)'!CL53","v":"Nov 2016"},{"$f":"'(Intermediate Computations)'!CM53","v":"Dec 2016"},{"$f":"'(Intermediate Computations)'!CO53","v":"Jan 2017"},{"$f":"'(Intermediate Computations)'!CP53","v":"Feb 2017"},{"$f":"'(Intermediate Computations)'!CQ53","v":"Mar 2017"},{"$f":"'(Intermediate Computations)'!CR53","v":"Apr 2017"},{"$f":"'(Intermediate Computations)'!CS53","v":"May 2017"},{"$f":"'(Intermediate Computations)'!CT53","v":"Jun 2017"},{"$f":"'(Intermediate Computations)'!CU53","v":"Jul 2017"},{"$f":"'(Intermediate Computations)'!CV53","v":"Aug 2017"},{"$f":"'(Intermediate Computations)'!CW53","v":"Sep 2017"},{"$f":"'(Intermediate Computations)'!CX53","v":"Oct 2017"},{"$f":"'(Intermediate Computations)'!CY53","v":"Nov 2017"},{"$f":"'(Intermediate Computations)'!CZ53","v":"Dec 2017"},{"$f":"'(Intermediate Computations)'!DB53","v":"Jan 2018"},{"$f":"'(Intermediate Computations)'!DC53","v":"Feb 2018"},{"$f":"'(Intermediate Computations)'!DD53","v":"Mar 2018"},{"$f":"'(Intermediate Computations)'!DE53","v":"Apr 2018"},{"$f":"'(Intermediate Computations)'!DF53","v":"May 2018"},{"$f":"'(Intermediate Computations)'!DG53","v":"Jun 2018"},{"$f":"'(Intermediate Computations)'!DH53","v":"Jul 2018"},{"$f":"'(Intermediate Computations)'!DI53","v":"Aug 2018"},{"$f":"'(Intermediate Computations)'!DJ53","v":"Sep 2018"},{"$f":"'(Intermediate Computations)'!DK53","v":"Oct 2018"},{"$f":"'(Intermediate Computations)'!DL53","v":"Nov 2018"},{"$f":"'(Intermediate Computations)'!DM53","v":"Dec 2018"},{"$f":"'(Intermediate Computations)'!DO53","v":"Jan 2019"},{"$f":"'(Intermediate Computations)'!DP53","v":"Feb 2019"},{"$f":"'(Intermediate Computations)'!DQ53","v":"Mar 2019"},{"$f":"'(Intermediate Computations)'!DR53","v":"Apr 2019"},{"$f":"'(Intermediate Computations)'!DS53","v":"May 2019"},{"$f":"'(Intermediate Computations)'!DT53","v":"Jun 2019"},{"$f":"'(Intermediate Computations)'!DU53","v":"Jul 2019"},{"$f":"'(Intermediate Computations)'!DV53","v":"Aug 2019"},{"$f":"'(Intermediate Computations)'!DW53","v":"Sep 2019"},{"$f":"'(Intermediate Computations)'!DX53","v":"Oct 2019"},{"$f":"'(Intermediate Computations)'!DY53","v":"Nov 2019"},{"$f":"'(Intermediate Computations)'!DZ53","v":"Dec 2019"},{"$f":"'(Intermediate Computations)'!EB53","v":"Jan 2020"},{"$f":"'(Intermediate Computations)'!EC53","v":"Feb 2020"},{"$f":"'(Intermediate Computations)'!ED53","v":"Mar 2020"},{"$f":"'(Intermediate Computations)'!EE53","v":"Apr 2020"},{"$f":"'(Intermediate Computations)'!EF53","v":"May 2020"},{"$f":"'(Intermediate Computations)'!EG53","v":"Jun 2020"},{"$f":"'(Intermediate Computations)'!EH53","v":"Jul 2020"},{"$f":"'(Intermediate Computations)'!EI53","v":"Aug 2020"},{"$f":"'(Intermediate Computations)'!EJ53","v":"Sep 2020"},{"$f":"'(Intermediate Computations)'!EK53","v":"Oct 2020"},{"$f":"'(Intermediate Computations)'!EL53","v":"Nov 2020"},{"$f":"'(Intermediate Computations)'!EM53","v":"Dec 2020"}]
[{"$f":"'(Intermediate Computations)'!B50","v":"2010-01-01"},{"$f":"'(Intermediate Computations)'!C50","v":"2010-02-01"},{"$f":"'(Intermediate Computations)'!D50","v":"2010-03-01"},{"$f":"'(Intermediate Computations)'!E50","v":"2010-04-01"},{"$f":"'(Intermediate Computations)'!F50","v":"2010-05-01"},{"$f":"'(Intermediate Computations)'!G50","v":"2010-06-01"},{"$f":"'(Intermediate Computations)'!H50","v":"2010-07-01"},{"$f":"'(Intermediate Computations)'!I50","v":"2010-08-01"},{"$f":"'(Intermediate Computations)'!J50","v":"2010-09-01"},{"$f":"'(Intermediate Computations)'!K50","v":"2010-10-01"},{"$f":"'(Intermediate Computations)'!L50","v":"2010-11-01"},{"$f":"'(Intermediate Computations)'!M50","v":"2010-12-01"},{"$f":"'(Intermediate Computations)'!O50","v":"2011-01-01"},{"$f":"'(Intermediate Computations)'!P50","v":"2011-02-01"},{"$f":"'(Intermediate Computations)'!Q50","v":"2011-03-01"},{"$f":"'(Intermediate Computations)'!R50","v":"2011-04-01"},{"$f":"'(Intermediate Computations)'!S50","v":"2011-05-01"},{"$f":"'(Intermediate Computations)'!T50","v":"2011-06-01"},{"$f":"'(Intermediate Computations)'!U50","v":"2011-07-01"},{"$f":"'(Intermediate Computations)'!V50","v":"2011-08-01"},{"$f":"'(Intermediate Computations)'!W50","v":"2011-09-01"},{"$f":"'(Intermediate Computations)'!X50","v":"2011-10-01"},{"$f":"'(Intermediate Computations)'!Y50","v":"2011-11-01"},{"$f":"'(Intermediate Computations)'!Z50","v":"2011-12-01"},{"$f":"'(Intermediate Computations)'!AB50","v":"2012-01-01"},{"$f":"'(Intermediate Computations)'!AC50","v":"2012-02-01"},{"$f":"'(Intermediate Computations)'!AD50","v":"2012-03-01"},{"$f":"'(Intermediate Computations)'!AE50","v":"2012-04-01"},{"$f":"'(Intermediate Computations)'!AF50","v":"2012-05-01"},{"$f":"'(Intermediate Computations)'!AG50","v":"2012-06-01"},{"$f":"'(Intermediate Computations)'!AH50","v":"2012-07-01"},{"$f":"'(Intermediate Computations)'!AI50","v":"2012-08-01"},{"$f":"'(Intermediate Computations)'!AJ50","v":"2012-09-01"},{"$f":"'(Intermediate Computations)'!AK50","v":"2012-10-01"},{"$f":"'(Intermediate Computations)'!AL50","v":"2012-11-01"},{"$f":"'(Intermediate Computations)'!AM50","v":"2012-12-01"},{"$f":"'(Intermediate Computations)'!AO50","v":"2013-01-01"},{"$f":"'(Intermediate Computations)'!AP50","v":"2013-02-01"},{"$f":"'(Intermediate Computations)'!AQ50","v":"2013-03-01"},{"$f":"'(Intermediate Computations)'!AR50","v":"2013-04-01"},{"$f":"'(Intermediate Computations)'!AS50","v":"2013-05-01"},{"$f":"'(Intermediate Computations)'!AT50","v":"2013-06-01"},{"$f":"'(Intermediate Computations)'!AU50","v":"2013-07-01"},{"$f":"'(Intermediate Computations)'!AV50","v":"2013-08-01"},{"$f":"'(Intermediate Computations)'!AW50","v":"2013-09-01"},{"$f":"'(Intermediate Computations)'!AX50","v":"2013-10-01"},{"$f":"'(Intermediate Computations)'!AY50","v":"2013-11-01"},{"$f":"'(Intermediate Computations)'!AZ50","v":"2013-12-01"},{"$f":"'(Intermediate Computations)'!BB50","v":"2014-01-01"},{"$f":"'(Intermediate Computations)'!BC50","v":"2014-02-01"},{"$f":"'(Intermediate Computations)'!BD50","v":"2014-03-01"},{"$f":"'(Intermediate Computations)'!BE50","v":"2014-04-01"},{"$f":"'(Intermediate Computations)'!BF50","v":"2014-05-01"},{"$f":"'(Intermediate Computations)'!BG50","v":"2014-06-01"},{"$f":"'(Intermediate Computations)'!BH50","v":"2014-07-01"},{"$f":"'(Intermediate Computations)'!BI50","v":"2014-08-01"},{"$f":"'(Intermediate Computations)'!BJ50","v":"2014-09-01"},{"$f":"'(Intermediate Computations)'!BK50","v":"2014-10-01"},{"$f":"'(Intermediate Computations)'!BL50","v":"2014-11-01"},{"$f":"'(Intermediate Computations)'!BM50","v":"2014-12-01"},{"$f":"'(Intermediate Computations)'!BO50","v":"2015-01-01"},{"$f":"'(Intermediate Computations)'!BP50","v":"2015-02-01"},{"$f":"'(Intermediate Computations)'!BQ50","v":"2015-03-01"},{"$f":"'(Intermediate Computations)'!BR50","v":"2015-04-01"},{"$f":"'(Intermediate Computations)'!BS50","v":"2015-05-01"},{"$f":"'(Intermediate Computations)'!BT50","v":"2015-06-01"},{"$f":"'(Intermediate Computations)'!BU50","v":"2015-07-01"},{"$f":"'(Intermediate Computations)'!BV50","v":"2015-08-01"},{"$f":"'(Intermediate Computations)'!BW50","v":"2015-09-01"},{"$f":"'(Intermediate Computations)'!BX50","v":"2015-10-01"},{"$f":"'(Intermediate Computations)'!BY50","v":"2015-11-01"},{"$f":"'(Intermediate Computations)'!BZ50","v":"2015-12-01"},{"$f":"'(Intermediate Computations)'!CB50","v":"2016-01-01"},{"$f":"'(Intermediate Computations)'!CC50","v":"2016-02-01"},{"$f":"'(Intermediate Computations)'!CD50","v":"2016-03-01"},{"$f":"'(Intermediate Computations)'!CE50","v":"2016-04-01"},{"$f":"'(Intermediate Computations)'!CF50","v":"2016-05-01"},{"$f":"'(Intermediate Computations)'!CG50","v":"2016-06-01"},{"$f":"'(Intermediate Computations)'!CH50","v":"2016-07-01"},{"$f":"'(Intermediate Computations)'!CI50","v":"2016-08-01"},{"$f":"'(Intermediate Computations)'!CJ50","v":"2016-09-01"},{"$f":"'(Intermediate Computations)'!CK50","v":"2016-10-01"},{"$f":"'(Intermediate Computations)'!CL50","v":"2016-11-01"},{"$f":"'(Intermediate Computations)'!CM50","v":"2016-12-01"},{"$f":"'(Intermediate Computations)'!CO50","v":"2017-01-01"},{"$f":"'(Intermediate Computations)'!CP50","v":"2017-02-01"},{"$f":"'(Intermediate Computations)'!CQ50","v":"2017-03-01"},{"$f":"'(Intermediate Computations)'!CR50","v":"2017-04-01"},{"$f":"'(Intermediate Computations)'!CS50","v":"2017-05-01"},{"$f":"'(Intermediate Computations)'!CT50","v":"2017-06-01"},{"$f":"'(Intermediate Computations)'!CU50","v":"2017-07-01"},{"$f":"'(Intermediate Computations)'!CV50","v":"2017-08-01"},{"$f":"'(Intermediate Computations)'!CW50","v":"2017-09-01"},{"$f":"'(Intermediate Computations)'!CX50","v":"2017-10-01"},{"$f":"'(Intermediate Computations)'!CY50","v":"2017-11-01"},{"$f":"'(Intermediate Computations)'!CZ50","v":"2017-12-01"},{"$f":"'(Intermediate Computations)'!DB50","v":"2018-01-01"},{"$f":"'(Intermediate Computations)'!DC50","v":"2018-02-01"},{"$f":"'(Intermediate Computations)'!DD50","v":"2018-03-01"},{"$f":"'(Intermediate Computations)'!DE50","v":"2018-04-01"},{"$f":"'(Intermediate Computations)'!DF50","v":"2018-05-01"},{"$f":"'(Intermediate Computations)'!DG50","v":"2018-06-01"},{"$f":"'(Intermediate Computations)'!DH50","v":"2018-07-01"},{"$f":"'(Intermediate Computations)'!DI50","v":"2018-08-01"},{"$f":"'(Intermediate Computations)'!DJ50","v":"2018-09-01"},{"$f":"'(Intermediate Computations)'!DK50","v":"2018-10-01"},{"$f":"'(Intermediate Computations)'!DL50","v":"2018-11-01"},{"$f":"'(Intermediate Computations)'!DM50","v":"2018-12-01"},{"$f":"'(Intermediate Computations)'!DO50","v":"2019-01-01"},{"$f":"'(Intermediate Computations)'!DP50","v":"2019-02-01"},{"$f":"'(Intermediate Computations)'!DQ50","v":"2019-03-01"},{"$f":"'(Intermediate Computations)'!DR50","v":"2019-04-01"},{"$f":"'(Intermediate Computations)'!DS50","v":"2019-05-01"},{"$f":"'(Intermediate Computations)'!DT50","v":"2019-06-01"},{"$f":"'(Intermediate Computations)'!DU50","v":"2019-07-01"},{"$f":"'(Intermediate Computations)'!DV50","v":"2019-08-01"},{"$f":"'(Intermediate Computations)'!DW50","v":"2019-09-01"},{"$f":"'(Intermediate Computations)'!DX50","v":"2019-10-01"},{"$f":"'(Intermediate Computations)'!DY50","v":"2019-11-01"},{"$f":"'(Intermediate Computations)'!DZ50","v":"2019-12-01"},{"$f":"'(Intermediate Computations)'!EB50","v":"2020-01-01"},{"$f":"'(Intermediate Computations)'!EC50","v":"2020-02-01"},{"$f":"'(Intermediate Computations)'!ED50","v":"2020-03-01"},{"$f":"'(Intermediate Computations)'!EE50","v":"2020-04-01"},{"$f":"'(Intermediate Computations)'!EF50","v":"2020-05-01"},{"$f":"'(Intermediate Computations)'!EG50","v":"2020-06-01"},{"$f":"'(Intermediate Computations)'!EH50","v":"2020-07-01"},{"$f":"'(Intermediate Computations)'!EI50","v":"2020-08-01"},{"$f":"'(Intermediate Computations)'!EJ50","v":"2020-09-01"},{"$f":"'(Intermediate Computations)'!EK50","v":"2020-10-01"},{"$f":"'(Intermediate Computations)'!EL50","v":"2020-11-01"},{"$f":"'(Intermediate Computations)'!EM50","v":"2020-12-01"}]
[{"$f":"'Trial 1'!B28","v":{"v":140,"d":"140.00"}},{"$f":"'Trial 1'!C28","v":{"v":140,"d":"140.00"}},{"$f":"'Trial 1'!D28","v":{"v":139.99344498620502,"d":"139.99"}},{"$f":"'Trial 1'!E28","v":{"v":139.9822763754136,"d":"139.98"}},{"$f":"'Trial 1'!F28","v":{"v":139.96613791443346,"d":"139.97"}},{"$f":"'Trial 1'!G28","v":{"v":139.94458942347723,"d":"139.94"}},{"$f":"'Trial 1'!H28","v":{"v":139.9192309809632,"d":"139.92"}},{"$f":"'Trial 1'!I28","v":{"v":139.88927414570068,"d":"139.89"}},{"$f":"'Trial 1'!J28","v":{"v":139.85397077926493,"d":"139.85"}},{"$f":"'Trial 1'!K28","v":{"v":139.813772811457,"d":"139.81"}},{"$f":"'Trial 1'!L28","v":{"v":139.76934059196103,"d":"139.77"}},{"$f":"'Trial 1'!M28","v":{"v":139.722049755564,"d":"139.72"}},{"$f":"'Trial 1'!O28","v":{"v":139.6713604806106,"d":"139.67"}},{"$f":"'Trial 1'!P28","v":{"v":139.61691841446748,"d":"139.62"}},{"$f":"'Trial 1'!Q28","v":{"v":139.55788104423914,"d":"139.56"}},{"$f":"'Trial 1'!R28","v":{"v":139.49491433655336,"d":"139.49"}},{"$f":"'Trial 1'!S28","v":{"v":139.4262545437607,"d":"139.43"}},{"$f":"'Trial 1'!T28","v":{"v":139.3543990713871,"d":"139.35"}},{"$f":"'Trial 1'!U28","v":{"v":139.2773783421074,"d":"139.28"}},{"$f":"'Trial 1'!V28","v":{"v":139.1959472106818,"d":"139.20"}},{"$f":"'Trial 1'!W28","v":{"v":139.1098124569048,"d":"139.11"}},{"$f":"'Trial 1'!X28","v":{"v":139.01909509607077,"d":"139.02"}},{"$f":"'Trial 1'!Y28","v":{"v":138.9248764794322,"d":"138.92"}},{"$f":"'Trial 1'!Z28","v":{"v":138.82753140654205,"d":"138.83"}},{"$f":"'Trial 1'!AB28","v":{"v":138.72855777636644,"d":"138.73"}},{"$f":"'Trial 1'!AC28","v":{"v":138.6261207340415,"d":"138.63"}},{"$f":"'Trial 1'!AD28","v":{"v":138.52110553402835,"d":"138.52"}},{"$f":"'Trial 1'!AE28","v":{"v":138.4152469023052,"d":"138.42"}},{"$f":"'Trial 1'!AF28","v":{"v":138.3062753486311,"d":"138.31"}},{"$f":"'Trial 1'!AG28","v":{"v":138.1939377072698,"d":"138.19"}},{"$f":"'Trial 1'!AH28","v":{"v":138.07922822361007,"d":"138.08"}},{"$f":"'Trial 1'!AI28","v":{"v":137.9621299444054,"d":"137.96"}},{"$f":"'Trial 1'!AJ28","v":{"v":137.84332587071663,"d":"137.84"}},{"$f":"'Trial 1'!AK28","v":{"v":137.72203834242364,"d":"137.72"}},{"$f":"'Trial 1'!AL28","v":{"v":137.60016134104808,"d":"137.60"}},{"$f":"'Trial 1'!AM28","v":{"v":137.47660723338416,"d":"137.48"}},{"$f":"'Trial 1'!AO28","v":{"v":137.35086494058643,"d":"137.35"}},{"$f":"'Trial 1'!AP28","v":{"v":137.22237635638726,"d":"137.22"}},{"$f":"'Trial 1'!AQ28","v":{"v":137.09125020874458,"d":"137.09"}},{"$f":"'Trial 1'!AR28","v":{"v":136.9602551316889,"d":"136.96"}},{"$f":"'Trial 1'!AS28","v":{"v":136.8265415978466,"d":"136.83"}},{"$f":"'Trial 1'!AT28","v":{"v":136.6921841839625,"d":"136.69"}},{"$f":"'Trial 1'!AU28","v":{"v":136.55656423066665,"d":"136.56"}},{"$f":"'Trial 1'!AV28","v":{"v":136.42032980788565,"d":"136.42"}},{"$f":"'Trial 1'!AW28","v":{"v":136.28262423966356,"d":"136.28"}},{"$f":"'Trial 1'!AX28","v":{"v":136.1429724645519,"d":"136.14"}},{"$f":"'Trial 1'!AY28","v":{"v":136.0020613649739,"d":"136.00"}},{"$f":"'Trial 1'!AZ28","v":{"v":135.86121425991414,"d":"135.86"}},{"$f":"'Trial 1'!BB28","v":{"v":135.7196702967881,"d":"135.72"}},{"$f":"'Trial 1'!BC28","v":{"v":135.5760337560861,"d":"135.58"}},{"$f":"'Trial 1'!BD28","v":{"v":135.4302965579297,"d":"135.43"}},{"$f":"'Trial 1'!BE28","v":{"v":135.2838325878161,"d":"135.28"}},{"$f":"'Trial 1'!BF28","v":{"v":135.13600766589752,"d":"135.14"}},{"$f":"'Trial 1'!BG28","v":{"v":134.98831732370067,"d":"134.99"}},{"$f":"'Trial 1'!BH28","v":{"v":134.84021426079786,"d":"134.84"}},{"$f":"'Trial 1'!BI28","v":{"v":134.69168157550615,"d":"134.69"}},{"$f":"'Trial 1'!BJ28","v":{"v":134.54299040409742,"d":"134.54"}},{"$f":"'Trial 1'!BK28","v":{"v":134.39333908507203,"d":"134.39"}},{"$f":"'Trial 1'!BL28","v":{"v":134.24273364687528,"d":"134.24"}},{"$f":"'Trial 1'!BM28","v":{"v":134.09025917528575,"d":"134.09"}},{"$f":"'Trial 1'!BO28","v":{"v":133.9375818681646,"d":"133.94"}},{"$f":"'Trial 1'!BP28","v":{"v":133.7835464400065,"d":"133.78"}},{"$f":"'Trial 1'!BQ28","v":{"v":133.62960303522118,"d":"133.63"}},{"$f":"'Trial 1'!BR28","v":{"v":133.47469594085308,"d":"133.47"}},{"$f":"'Trial 1'!BS28","v":{"v":133.32097376711133,"d":"133.32"}},{"$f":"'Trial 1'!BT28","v":{"v":133.16754115101085,"d":"133.17"}},{"$f":"'Trial 1'!BU28","v":{"v":133.01389161045623,"d":"133.01"}},{"$f":"'Trial 1'!BV28","v":{"v":132.8586236112718,"d":"132.86"}},{"$f":"'Trial 1'!BW28","v":{"v":132.70218922371362,"d":"132.70"}},{"$f":"'Trial 1'!BX28","v":{"v":132.54527193141178,"d":"132.55"}},{"$f":"'Trial 1'!BY28","v":{"v":132.38909398541065,"d":"132.39"}},{"$f":"'Trial 1'!BZ28","v":{"v":132.2318300153309,"d":"132.23"}},{"$f":"'Trial 1'!CB28","v":{"v":132.0732041529055,"d":"132.07"}},{"$f":"'Trial 1'!CC28","v":{"v":131.91552103929132,"d":"131.92"}},{"$f":"'Trial 1'!CD28","v":{"v":131.75760677401811,"d":"131.76"}},{"$f":"'Trial 1'!CE28","v":{"v":131.59848624641407,"d":"131.60"}},{"$f":"'Trial 1'!CF28","v":{"v":131.44055066029625,"d":"131.44"}},{"$f":"'Trial 1'!CG28","v":{"v":131.28175065512178,"d":"131.28"}},{"$f":"'Trial 1'!CH28","v":{"v":131.12297938333126,"d":"131.12"}},{"$f":"'Trial 1'!CI28","v":{"v":130.96468893610864,"d":"130.96"}},{"$f":"'Trial 1'!CJ28","v":{"v":130.80643327952262,"d":"130.81"}},{"$f":"'Trial 1'!CK28","v":{"v":130.64855926582,"d":"130.65"}},{"$f":"'Trial 1'!CL28","v":{"v":130.4908850495726,"d":"130.49"}},{"$f":"'Trial 1'!CM28","v":{"v":130.33201579811177,"d":"130.33"}},{"$f":"'Trial 1'!CO28","v":{"v":130.17419846685516,"d":"130.17"}},{"$f":"'Trial 1'!CP28","v":{"v":130.01664144044832,"d":"130.02"}},{"$f":"'Trial 1'!CQ28","v":{"v":129.85850383350765,"d":"129.86"}},{"$f":"'Trial 1'!CR28","v":{"v":129.70146566240086,"d":"129.70"}},{"$f":"'Trial 1'!CS28","v":{"v":129.54303599529123,"d":"129.54"}},{"$f":"'Trial 1'!CT28","v":{"v":129.3848466378304,"d":"129.38"}},{"$f":"'Trial 1'!CU28","v":{"v":129.22558157855198,"d":"129.23"}},{"$f":"'Trial 1'!CV28","v":{"v":129.06700770119812,"d":"129.07"}},{"$f":"'Trial 1'!CW28","v":{"v":128.9077365940649,"d":"128.91"}},{"$f":"'Trial 1'!CX28","v":{"v":128.74915038204,"d":"128.75"}},{"$f":"'Trial 1'!CY28","v":{"v":128.58970421647572,"d":"128.59"}},{"$f":"'Trial 1'!CZ28","v":{"v":128.4317884053837,"d":"128.43"}},{"$f":"'Trial 1'!DB28","v":{"v":128.27560492507033,"d":"128.28"}},{"$f":"'Trial 1'!DC28","v":{"v":128.11852146288527,"d":"128.12"}},{"$f":"'Trial 1'!DD28","v":{"v":127.9620255026187,"d":"127.96"}},{"$f":"'Trial 1'!DE28","v":{"v":127.8066681558942,"d":"127.81"}},{"$f":"'Trial 1'!DF28","v":{"v":127.65186368471996,"d":"127.65"}},{"$f":"'Trial 1'!DG28","v":{"v":127.49833866105634,"d":"127.50"}},{"$f":"'Trial 1'!DH28","v":{"v":127.34601393937936,"d":"127.35"}},{"$f":"'Trial 1'!DI28","v":{"v":127.19378839397126,"d":"127.19"}},{"$f":"'Trial 1'!DJ28","v":{"v":127.04252294068874,"d":"127.04"}},{"$f":"'Trial 1'!DK28","v":{"v":126.8909117722191,"d":"126.89"}},{"$f":"'Trial 1'!DL28","v":{"v":126.74031367666093,"d":"126.74"}},{"$f":"'Trial 1'!DM28","v":{"v":126.59160192111656,"d":"126.59"}},{"$f":"'Trial 1'!DO28","v":{"v":126.44232559059434,"d":"126.44"}},{"$f":"'Trial 1'!DP28","v":{"v":126.29379812742174,"d":"126.29"}},{"$f":"'Trial 1'!DQ28","v":{"v":126.14711940479513,"d":"126.15"}},{"$f":"'Trial 1'!DR28","v":{"v":126.00051718934776,"d":"126.00"}},{"$f":"'Trial 1'!DS28","v":{"v":125.85483905110267,"d":"125.85"}},{"$f":"'Trial 1'!DT28","v":{"v":125.70986214926937,"d":"125.71"}},{"$f":"'Trial 1'!DU28","v":{"v":125.56513814461776,"d":"125.57"}},{"$f":"'Trial 1'!DV28","v":{"v":125.42061338163774,"d":"125.42"}},{"$f":"'Trial 1'!DW28","v":{"v":125.2770157157344,"d":"125.28"}},{"$f":"'Trial 1'!DX28","v":{"v":125.13291883719337,"d":"125.13"}},{"$f":"'Trial 1'!DY28","v":{"v":124.98867845341461,"d":"124.99"}},{"$f":"'Trial 1'!DZ28","v":{"v":124.84600292320503,"d":"124.85"}},{"$f":"'Trial 1'!EB28","v":{"v":124.7045612076288,"d":"124.70"}},{"$f":"'Trial 1'!EC28","v":{"v":124.56300738031167,"d":"124.56"}},{"$f":"'Trial 1'!ED28","v":{"v":124.422398469399,"d":"124.42"}},{"$f":"'Trial 1'!EE28","v":{"v":124.28229032210719,"d":"124.28"}},{"$f":"'Trial 1'!EF28","v":{"v":124.14270395286412,"d":"124.14"}},{"$f":"'Trial 1'!EG28","v":{"v":124.00239769993328,"d":"124.00"}},{"$f":"'Trial 1'!EH28","v":{"v":123.86255047460925,"d":"123.86"}},{"$f":"'Trial 1'!EI28","v":{"v":123.72296664591366,"d":"123.72"}},{"$f":"'Trial 1'!EJ28","v":{"v":123.58383630948732,"d":"123.58"}},{"$f":"'Trial 1'!EK28","v":{"v":123.44445992527946,"d":"123.44"}},{"$f":"'Trial 1'!EL28","v":{"v":123.30595264567907,"d":"123.31"}},{"$f":"'Trial 1'!EM28","v":{"v":123.16785320580286,"d":"123.17"}}]
[{"$f":"'Trial 2'!B28","v":{"v":140,"d":"140.00"}},{"$f":"'Trial 2'!C28","v":{"v":140,"d":"140.00"}},{"$f":"'Trial 2'!D28","v":{"v":139.9937627669577,"d":"139.99"}},{"$f":"'Trial 2'!E28","v":{"v":139.98063501645186,"d":"139.98"}},{"$f":"'Trial 2'!F28","v":{"v":139.96225977692632,"d":"139.96"}},{"$f":"'Trial 2'!G28","v":{"v":139.940316142184,"d":"139.94"}},{"$f":"'Trial 2'!H28","v":{"v":139.91363657371627,"d":"139.91"}},{"$f":"'Trial 2'!I28","v":{"v":139.8813418510648,"d":"139.88"}},{"$f":"'Trial 2'!J28","v":{"v":139.84413426340032,"d":"139.84"}},{"$f":"'Trial 2'!K28","v":{"v":139.8010987551532,"d":"139.80"}},{"$f":"'Trial 2'!L28","v":{"v":139.75388594545092,"d":"139.75"}},{"$f":"'Trial 2'!M28","v":{"v":139.70237716727337,"d":"139.70"}},{"$f":"'Trial 2'!O28","v":{"v":139.64548608481238,"d":"139.65"}},{"$f":"'Trial 2'!P28","v":{"v":139.5853206871825,"d":"139.59"}},{"$f":"'Trial 2'!Q28","v":{"v":139.52053181626505,"d":"139.52"}},{"$f":"'Trial 2'!R28","v":{"v":139.45266850617813,"d":"139.45"}},{"$f":"'Trial 2'!S28","v":{"v":139.3819438548932,"d":"139.38"}},{"$f":"'Trial 2'!T28","v":{"v":139.30727377126723,"d":"139.31"}},{"$f":"'Trial 2'!U28","v":{"v":139.22880905700717,"d":"139.23"}},{"$f":"'Trial 2'!V28","v":{"v":139.14666580178917,"d":"139.15"}},{"$f":"'Trial 2'!W28","v":{"v":139.06004444965953,"d":"139.06"}},{"$f":"'Trial 2'!X28","v":{"v":138.96946306304034,"d":"138.97"}},{"$f":"'Trial 2'!Y28","v":{"v":138.87530753435422,"d":"138.88"}},{"$f":"'Trial 2'!Z28","v":{"v":138.77749808713588,"d":"138.78"}},{"$f":"'Trial 2'!AB28","v":{"v":138.6750853953509,"d":"138.68"}},{"$f":"'Trial 2'!AC28","v":{"v":138.570460285698,"d":"138.57"}},{"$f":"'Trial 2'!AD28","v":{"v":138.46320083502644,"d":"138.46"}},{"$f":"'Trial 2'!AE28","v":{"v":138.3534878095759,"d":"138.35"}},{"$f":"'Trial 2'!AF28","v":{"v":138.24132904840857,"d":"138.24"}},{"$f":"'Trial 2'!AG28","v":{"v":138.1285359494501,"d":"138.13"}},{"$f":"'Trial 2'!AH28","v":{"v":138.01342828618004,"d":"138.01"}},{"$f":"'Trial 2'!AI28","v":{"v":137.89566890747508,"d":"137.90"}},{"$f":"'Trial 2'!AJ28","v":{"v":137.77625657929502,"d":"137.78"}},{"$f":"'Trial 2'!AK28","v":{"v":137.65341370765165,"d":"137.65"}},{"$f":"'Trial 2'!AL28","v":{"v":137.52871632170636,"d":"137.53"}},{"$f":"'Trial 2'!AM28","v":{"v":137.40280212396948,"d":"137.40"}},{"$f":"'Trial 2'!AO28","v":{"v":137.27644061947584,"d":"137.28"}},{"$f":"'Trial 2'!AP28","v":{"v":137.14776522421457,"d":"137.15"}},{"$f":"'Trial 2'!AQ28","v":{"v":137.01719573361544,"d":"137.02"}},{"$f":"'Trial 2'!AR28","v":{"v":136.88550364768605,"d":"136.89"}},{"$f":"'Trial 2'!AS28","v":{"v":136.75266847859527,"d":"136.75"}},{"$f":"'Trial 2'!AT28","v":{"v":136.61783967484902,"d":"136.62"}},{"$f":"'Trial 2'!AU28","v":{"v":136.48201719300081,"d":"136.48"}},{"$f":"'Trial 2'!AV28","v":{"v":136.34522702331506,"d":"136.35"}},{"$f":"'Trial 2'!AW28","v":{"v":136.2072676423814,"d":"136.21"}},{"$f":"'Trial 2'!AX28","v":{"v":136.06830149906494,"d":"136.07"}},{"$f":"'Trial 2'!AY28","v":{"v":135.9264857465326,"d":"135.93"}},{"$f":"'Trial 2'!AZ28","v":{"v":135.78326165392113,"d":"135.78"}},{"$f":"'Trial 2'!BB28","v":{"v":135.6400644393424,"d":"135.64"}},{"$f":"'Trial 2'!BC28","v":{"v":135.49563036936502,"d":"135.50"}},{"$f":"'Trial 2'!BD28","v":{"v":135.34953524043357,"d":"135.35"}},{"$f":"'Trial 2'!BE28","v":{"v":135.20262187396105,"d":"135.20"}},{"$f":"'Trial 2'!BF28","v":{"v":135.05596054747616,"d":"135.06"}},{"$f":"'Trial 2'!BG28","v":{"v":134.90830798341537,"d":"134.91"}},{"$f":"'Trial 2'!BH28","v":{"v":134.76068916115858,"d":"134.76"}},{"$f":"'Trial 2'!BI28","v":{"v":134.61133418333938,"d":"134.61"}},{"$f":"'Trial 2'!BJ28","v":{"v":134.46065948596166,"d":"134.46"}},{"$f":"'Trial 2'!BK28","v":{"v":134.3079348062348,"d":"134.31"}},{"$f":"'Trial 2'!BL28","v":{"v":134.1554281738485,"d":"134.16"}},{"$f":"'Trial 2'!BM28","v":{"v":134.001937709982,"d":"134.00"}},{"$f":"'Trial 2'!BO28","v":{"v":133.84818426235458,"d":"133.85"}},{"$f":"'Trial 2'!BP28","v":{"v":133.69244565196524,"d":"133.69"}},{"$f":"'Trial 2'!BQ28","v":{"v":133.5345912333298,"d":"133.53"}},{"$f":"'Trial 2'!BR28","v":{"v":133.37538360597645,"d":"133.38"}},{"$f":"'Trial 2'!BS28","v":{"v":133.21647164627578,"d":"133.22"}},{"$f":"'Trial 2'!BT28","v":{"v":133.0583521038847,"d":"133.06"}},{"$f":"'Trial 2'!BU28","v":{"v":132.89862624621904,"d":"132.90"}},{"$f":"'Trial 2'!BV28","v":{"v":132.7400726016235,"d":"132.74"}},{"$f":"'Trial 2'!BW28","v":{"v":132.5806776945948,"d":"132.58"}},{"$f":"'Trial 2'!BX28","v":{"v":132.42173165275653,"d":"132.42"}},{"$f":"'Trial 2'!BY28","v":{"v":132.26277697765423,"d":"132.26"}},{"$f":"'Trial 2'!BZ28","v":{"v":132.102172174236,"d":"132.10"}},{"$f":"'Trial 2'!CB28","v":{"v":131.9432028743447,"d":"131.94"}},{"$f":"'Trial 2'!CC28","v":{"v":131.78444354493269,"d":"131.78"}},{"$f":"'Trial 2'!CD28","v":{"v":131.62631013219598,"d":"131.63"}},{"$f":"'Trial 2'!CE28","v":{"v":131.46751072822917,"d":"131.47"}},{"$f":"'Trial 2'!CF28","v":{"v":131.30855678708159,"d":"131.31"}},{"$f":"'Trial 2'!CG28","v":{"v":131.15070106822424,"d":"131.15"}},{"$f":"'Trial 2'!CH28","v":{"v":130.99335566806093,"d":"130.99"}},{"$f":"'Trial 2'!CI28","v":{"v":130.83696647719538,"d":"130.84"}},{"$f":"'Trial 2'!CJ28","v":{"v":130.68069466840402,"d":"130.68"}},{"$f":"'Trial 2'!CK28","v":{"v":130.52565115869308,"d":"130.53"}},{"$f":"'Trial 2'!CL28","v":{"v":130.36957863668667,"d":"130.37"}},{"$f":"'Trial 2'!CM28","v":{"v":130.21350249665957,"d":"130.21"}},{"$f":"'Trial 2'!CO28","v":{"v":130.05619554611394,"d":"130.06"}},{"$f":"'Trial 2'!CP28","v":{"v":129.8989033503526,"d":"129.90"}},{"$f":"'Trial 2'!CQ28","v":{"v":129.74120794114617,"d":"129.74"}},{"$f":"'Trial 2'!CR28","v":{"v":129.58379843676735,"d":"129.58"}},{"$f":"'Trial 2'!CS28","v":{"v":129.42707721571173,"d":"129.43"}},{"$f":"'Trial 2'!CT28","v":{"v":129.27025595865024,"d":"129.27"}},{"$f":"'Trial 2'!CU28","v":{"v":129.1143103035843,"d":"129.11"}},{"$f":"'Trial 2'!CV28","v":{"v":128.9577090295062,"d":"128.96"}},{"$f":"'Trial 2'!CW28","v":{"v":128.80253877344174,"d":"128.80"}},{"$f":"'Trial 2'!CX28","v":{"v":128.64749293259362,"d":"128.65"}},{"$f":"'Trial 2'!CY28","v":{"v":128.49387099264138,"d":"128.49"}},{"$f":"'Trial 2'!CZ28","v":{"v":128.3388861916923,"d":"128.34"}},{"$f":"'Trial 2'!DB28","v":{"v":128.18516591189115,"d":"128.19"}},{"$f":"'Trial 2'!DC28","v":{"v":128.0315924127531,"d":"128.03"}},{"$f":"'Trial 2'!DD28","v":{"v":127.87809133881397,"d":"127.88"}},{"$f":"'Trial 2'!DE28","v":{"v":127.72554966492807,"d":"127.73"}},{"$f":"'Trial 2'!DF28","v":{"v":127.57303004997713,"d":"127.57"}},{"$f":"'Trial 2'!DG28","v":{"v":127.42155199593147,"d":"127.42"}},{"$f":"'Trial 2'!DH28","v":{"v":127.27140909025889,"d":"127.27"}},{"$f":"'Trial 2'!DI28","v":{"v":127.12168107289804,"d":"127.12"}},{"$f":"'Trial 2'!DJ28","v":{"v":126.97254716754135,"d":"126.97"}},{"$f":"'Trial 2'!DK28","v":{"v":126.82413694423309,"d":"126.82"}},{"$f":"'Trial 2'!DL28","v":{"v":126.6775106724611,"d":"126.68"}},{"$f":"'Trial 2'!DM28","v":{"v":126.53039647166352,"d":"126.53"}},{"$f":"'Trial 2'!DO28","v":{"v":126.38206945187534,"d":"126.38"}},{"$f":"'Trial 2'!DP28","v":{"v":126.23319213741325,"d":"126.23"}},{"$f":"'Trial 2'!DQ28","v":{"v":126.08575582101508,"d":"126.09"}},{"$f":"'Trial 2'!DR28","v":{"v":125.93753105602688,"d":"125.94"}},{"$f":"'Trial 2'!DS28","v":{"v":125.79000427388307,"d":"125.79"}},{"$f":"'Trial 2'!DT28","v":{"v":125.64278490313966,"d":"125.64"}},{"$f":"'Trial 2'!DU28","v":{"v":125.49535245154323,"d":"125.50"}},{"$f":"'Trial 2'!DV28","v":{"v":125.34883311853885,"d":"125.35"}},{"$f":"'Trial 2'!DW28","v":{"v":125.20369467442335,"d":"125.20"}},{"$f":"'Trial 2'!DX28","v":{"v":125.05976408035971,"d":"125.06"}},{"$f":"'Trial 2'!DY28","v":{"v":124.91537498831255,"d":"124.92"}},{"$f":"'Trial 2'!DZ28","v":{"v":124.77236375242286,"d":"124.77"}},{"$f":"'Trial 2'!EB28","v":{"v":124.62990531322663,"d":"124.63"}},{"$f":"'Trial 2'!EC28","v":{"v":124.48697464012642,"d":"124.49"}},{"$f":"'Trial 2'!ED28","v":{"v":124.3455922379133,"d":"124.35"}},{"$f":"'Trial 2'!EE28","v":{"v":124.20531625995018,"d":"124.21"}},{"$f":"'Trial 2'!EF28","v":{"v":124.06411111931523,"d":"124.06"}},{"$f":"'Trial 2'!EG28","v":{"v":123.92346228192635,"d":"123.92"}},{"$f":"'Trial 2'!EH28","v":{"v":123.78486735997394,"d":"123.78"}},{"$f":"'Trial 2'!EI28","v":{"v":123.64592541054978,"d":"123.65"}},{"$f":"'Trial 2'!EJ28","v":{"v":123.50696041946566,"d":"123.51"}},{"$f":"'Trial 2'!EK28","v":{"v":123.36768602768204,"d":"123.37"}},{"$f":"'Trial 2'!EL28","v":{"v":123.22951205903959,"d":"123.23"}},{"$f":"'Trial 2'!EM28","v":{"v":123.09155854756004,"d":"123.09"}}]
[{"$f":"'Trial 3'!B28","v":{"v":140,"d":"140.00"}},{"$f":"'Trial 3'!C28","v":{"v":140,"d":"140.00"}},{"$f":"'Trial 3'!D28","v":{"v":139.99253406980486,"d":"139.99"}},{"$f":"'Trial 3'!E28","v":{"v":139.97965566765149,"d":"139.98"}},{"$f":"'Trial 3'!F28","v":{"v":139.96037788435657,"d":"139.96"}},{"$f":"'Trial 3'!G28","v":{"v":139.93706554193193,"d":"139.94"}},{"$f":"'Trial 3'!H28","v":{"v":139.9089643247378,"d":"139.91"}},{"$f":"'Trial 3'!I28","v":{"v":139.87699113933357,"d":"139.88"}},{"$f":"'Trial 3'!J28","v":{"v":139.83969601883436,"d":"139.84"}},{"$f":"'Trial 3'!K28","v":{"v":139.7984165297299,"d":"139.80"}},{"$f":"'Trial 3'!L28","v":{"v":139.75142343227876,"d":"139.75"}},{"$f":"'Trial 3'!M28","v":{"v":139.70019661505796,"d":"139.70"}},{"$f":"'Trial 3'!O28","v":{"v":139.64549941727228,"d":"139.65"}},{"$f":"'Trial 3'!P28","v":{"v":139.58582098196507,"d":"139.59"}},{"$f":"'Trial 3'!Q28","v":{"v":139.52231688220874,"d":"139.52"}},{"$f":"'Trial 3'!R28","v":{"v":139.45442669424176,"d":"139.45"}},{"$f":"'Trial 3'!S28","v":{"v":139.38388600131438,"d":"139.38"}},{"$f":"'Trial 3'!T28","v":{"v":139.31028742838237,"d":"139.31"}},{"$f":"'Trial 3'!U28","v":{"v":139.23303574006408,"d":"139.23"}},{"$f":"'Trial 3'!V28","v":{"v":139.15197114171832,"d":"139.15"}},{"$f":"'Trial 3'!W28","v":{"v":139.0656771593711,"d":"139.07"}},{"$f":"'Trial 3'!X28","v":{"v":138.9753441052339,"d":"138.98"}},{"$f":"'Trial 3'!Y28","v":{"v":138.8822585123204,"d":"138.88"}},{"$f":"'Trial 3'!Z28","v":{"v":138.78627152238275,"d":"138.79"}},{"$f":"'Trial 3'!AB28","v":{"v":138.6869347071547,"d":"138.69"}},{"$f":"'Trial 3'!AC28","v":{"v":138.58311484824873,"d":"138.58"}},{"$f":"'Trial 3'!AD28","v":{"v":138.47779100071276,"d":"138.48"}},{"$f":"'Trial 3'!AE28","v":{"v":138.3692530894889,"d":"138.37"}},{"$f":"'Trial 3'!AF28","v":{"v":138.25721021029554,"d":"138.26"}},{"$f":"'Trial 3'!AG28","v":{"v":138.14356586272328,"d":"138.14"}},{"$f":"'Trial 3'!AH28","v":{"v":138.02591576705055,"d":"138.03"}},{"$f":"'Trial 3'!AI28","v":{"v":137.90677621903268,"d":"137.91"}},{"$f":"'Trial 3'!AJ28","v":{"v":137.7856969882728,"d":"137.79"}},{"$f":"'Trial 3'!AK28","v":{"v":137.6618363433555,"d":"137.66"}},{"$f":"'Trial 3'!AL28","v":{"v":137.53657791731624,"d":"137.54"}},{"$f":"'Trial 3'!AM28","v":{"v":137.4096020228871,"d":"137.41"}},{"$f":"'Trial 3'!AO28","v":{"v":137.2804253082862,"d":"137.28"}},{"$f":"'Trial 3'!AP28","v":{"v":137.14904702462923,"d":"137.15"}},{"$f":"'Trial 3'!AQ28","v":{"v":137.01686309694642,"d":"137.02"}},{"$f":"'Trial 3'!AR28","v":{"v":136.88411779865092,"d":"136.88"}},{"$f":"'Trial 3'!AS28","v":{"v":136.74844605919316,"d":"136.75"}},{"$f":"'Trial 3'!AT28","v":{"v":136.61104384112676,"d":"136.61"}},{"$f":"'Trial 3'!AU28","v":{"v":136.47300813248324,"d":"136.47"}},{"$f":"'Trial 3'!AV28","v":{"v":136.33315628575826,"d":"136.33"}},{"$f":"'Trial 3'!AW28","v":{"v":136.1911494764532,"d":"136.19"}},{"$f":"'Trial 3'!AX28","v":{"v":136.04829536900863,"d":"136.05"}},{"$f":"'Trial 3'!AY28","v":{"v":135.9033659790922,"d":"135.90"}},{"$f":"'Trial 3'!AZ28","v":{"v":135.7584296667,"d":"135.76"}},{"$f":"'Trial 3'!BB28","v":{"v":135.61153190841915,"d":"135.61"}},{"$f":"'Trial 3'!BC28","v":{"v":135.46228785826176,"d":"135.46"}},{"$f":"'Trial 3'!BD28","v":{"v":135.31184671376064,"d":"135.31"}},{"$f":"'Trial 3'!BE28","v":{"v":135.15919520537253,"d":"135.16"}},{"$f":"'Trial 3'!BF28","v":{"v":135.00660516022538,"d":"135.01"}},{"$f":"'Trial 3'!BG28","v":{"v":134.8516385726095,"d":"134.85"}},{"$f":"'Trial 3'!BH28","v":{"v":134.69640837341757,"d":"134.70"}},{"$f":"'Trial 3'!BI28","v":{"v":134.53891090445916,"d":"134.54"}},{"$f":"'Trial 3'!BJ28","v":{"v":134.3800389793681,"d":"134.38"}},{"$f":"'Trial 3'!BK28","v":{"v":134.22096677636924,"d":"134.22"}},{"$f":"'Trial 3'!BL28","v":{"v":134.06153749734227,"d":"134.06"}},{"$f":"'Trial 3'!BM28","v":{"v":133.90140411809006,"d":"133.90"}},{"$f":"'Trial 3'!BO28","v":{"v":133.741659572118,"d":"133.74"}},{"$f":"'Trial 3'!BP28","v":{"v":133.58153142485074,"d":"133.58"}},{"$f":"'Trial 3'!BQ28","v":{"v":133.4210924784331,"d":"133.42"}},{"$f":"'Trial 3'!BR28","v":{"v":133.26082665658427,"d":"133.26"}},{"$f":"'Trial 3'!BS28","v":{"v":133.09947523085532,"d":"133.10"}},{"$f":"'Trial 3'!BT28","v":{"v":132.93808130721274,"d":"132.94"}},{"$f":"'Trial 3'!BU28","v":{"v":132.77727101636458,"d":"132.78"}},{"$f":"'Trial 3'!BV28","v":{"v":132.61605955150807,"d":"132.62"}},{"$f":"'Trial 3'!BW28","v":{"v":132.45434052877332,"d":"132.45"}},{"$f":"'Trial 3'!BX28","v":{"v":132.29180295575327,"d":"132.29"}},{"$f":"'Trial 3'!BY28","v":{"v":132.12971704671145,"d":"132.13"}},{"$f":"'Trial 3'!BZ28","v":{"v":131.96658655968747,"d":"131.97"}},{"$f":"'Trial 3'!CB28","v":{"v":131.80472686265975,"d":"131.80"}},{"$f":"'Trial 3'!CC28","v":{"v":131.6426163633233,"d":"131.64"}},{"$f":"'Trial 3'!CD28","v":{"v":131.48110759231102,"d":"131.48"}},{"$f":"'Trial 3'!CE28","v":{"v":131.31950768880012,"d":"131.32"}},{"$f":"'Trial 3'!CF28","v":{"v":131.15814729919504,"d":"131.16"}},{"$f":"'Trial 3'!CG28","v":{"v":130.99708524866446,"d":"131.00"}},{"$f":"'Trial 3'!CH28","v":{"v":130.83623844855336,"d":"130.84"}},{"$f":"'Trial 3'!CI28","v":{"v":130.6763408241821,"d":"130.68"}},{"$f":"'Trial 3'!CJ28","v":{"v":130.5175093350743,"d":"130.52"}},{"$f":"'Trial 3'!CK28","v":{"v":130.36007567626092,"d":"130.36"}},{"$f":"'Trial 3'!CL28","v":{"v":130.20266224662666,"d":"130.20"}},{"$f":"'Trial 3'!CM28","v":{"v":130.0460308941977,"d":"130.05"}},{"$f":"'Trial 3'!CO28","v":{"v":129.89055596846134,"d":"129.89"}},{"$f":"'Trial 3'!CP28","v":{"v":129.7366453627356,"d":"129.74"}},{"$f":"'Trial 3'!CQ28","v":{"v":129.58192320331563,"d":"129.58"}},{"$f":"'Trial 3'!CR28","v":{"v":129.4278857413097,"d":"129.43"}},{"$f":"'Trial 3'!CS28","v":{"v":129.27371128018143,"d":"129.27"}},{"$f":"'Trial 3'!CT28","v":{"v":129.120091333848,"d":"129.12"}},{"$f":"'Trial 3'!CU28","v":{"v":128.96661791066117,"d":"128.97"}},{"$f":"'Trial 3'!CV28","v":{"v":128.81363861697565,"d":"128.81"}},{"$f":"'Trial 3'!CW28","v":{"v":128.66151667814748,"d":"128.66"}},{"$f":"'Trial 3'!CX28","v":{"v":128.50979176021428,"d":"128.51"}},{"$f":"'Trial 3'!CY28","v":{"v":128.35754410576624,"d":"128.36"}},{"$f":"'Trial 3'!CZ28","v":{"v":128.20685364501597,"d":"128.21"}},{"$f":"'Trial 3'!DB28","v":{"v":128.05585768756072,"d":"128.06"}},{"$f":"'Trial 3'!DC28","v":{"v":127.90604255140204,"d":"127.91"}},{"$f":"'Trial 3'!DD28","v":{"v":127.7556077237492,"d":"127.76"}},{"$f":"'Trial 3'!DE28","v":{"v":127.60394621930784,"d":"127.60"}},{"$f":"'Trial 3'!DF28","v":{"v":127.45260124498704,"d":"127.45"}},{"$f":"'Trial 3'!DG28","v":{"v":127.30206732499022,"d":"127.30"}},{"$f":"'Trial 3'!DH28","v":{"v":127.152143378388,"d":"127.15"}},{"$f":"'Trial 3'!DI28","v":{"v":127.00317937053002,"d":"127.00"}},{"$f":"'Trial 3'!DJ28","v":{"v":126.8550193617105,"d":"126.86"}},{"$f":"'Trial 3'!DK28","v":{"v":126.70736947508448,"d":"126.71"}},{"$f":"'Trial 3'!DL28","v":{"v":126.55988152401542,"d":"126.56"}},{"$f":"'Trial 3'!DM28","v":{"v":126.41320767851114,"d":"126.41"}},{"$f":"'Trial 3'!DO28","v":{"v":126.26762067803291,"d":"126.27"}},{"$f":"'Trial 3'!DP28","v":{"v":126.12280250661871,"d":"126.12"}},{"$f":"'Trial 3'!DQ28","v":{"v":125.97893858733028,"d":"125.98"}},{"$f":"'Trial 3'!DR28","v":{"v":125.8361206756812,"d":"125.84"}},{"$f":"'Trial 3'!DS28","v":{"v":125.69548630094458,"d":"125.70"}},{"$f":"'Trial 3'!DT28","v":{"v":125.55380229725586,"d":"125.55"}},{"$f":"'Trial 3'!DU28","v":{"v":125.41213879279366,"d":"125.41"}},{"$f":"'Trial 3'!DV28","v":{"v":125.27171143868864,"d":"125.27"}},{"$f":"'Trial 3'!DW28","v":{"v":125.1316487772757,"d":"125.13"}},{"$f":"'Trial 3'!DX28","v":{"v":124.9928370470003,"d":"124.99"}},{"$f":"'Trial 3'!DY28","v":{"v":124.85562972960581,"d":"124.86"}},{"$f":"'Trial 3'!DZ28","v":{"v":124.71872312016859,"d":"124.72"}},{"$f":"'Trial 3'!EB28","v":{"v":124.58183649373078,"d":"124.58"}},{"$f":"'Trial 3'!EC28","v":{"v":124.44449888526813,"d":"124.44"}},{"$f":"'Trial 3'!ED28","v":{"v":124.30768213536744,"d":"124.31"}},{"$f":"'Trial 3'!EE28","v":{"v":124.1710419756467,"d":"124.17"}},{"$f":"'Trial 3'!EF28","v":{"v":124.03526006385329,"d":"124.04"}},{"$f":"'Trial 3'!EG28","v":{"v":123.90033245906142,"d":"123.90"}},{"$f":"'Trial 3'!EH28","v":{"v":123.76587027971115,"d":"123.77"}},{"$f":"'Trial 3'!EI28","v":{"v":123.63189040935312,"d":"123.63"}},{"$f":"'Trial 3'!EJ28","v":{"v":123.49925294775515,"d":"123.50"}},{"$f":"'Trial 3'!EK28","v":{"v":123.36600416187846,"d":"123.37"}},{"$f":"'Trial 3'!EL28","v":{"v":123.23184129383807,"d":"123.23"}},{"$f":"'Trial 3'!EM28","v":{"v":123.09948297200748,"d":"123.10"}}]
[{"$f":"'Trial 4'!B28","v":{"v":140,"d":"140.00"}},{"$f":"'Trial 4'!C28","v":{"v":140,"d":"140.00"}},{"$f":"'Trial 4'!D28","v":{"v":139.99370562944395,"d":"139.99"}},{"$f":"'Trial 4'!E28","v":{"v":139.98108368165873,"d":"139.98"}},{"$f":"'Trial 4'!F28","v":{"v":139.96228406632494,"d":"139.96"}},{"$f":"'Trial 4'!G28","v":{"v":139.93868019607854,"d":"139.94"}},{"$f":"'Trial 4'!H28","v":{"v":139.91097207108808,"d":"139.91"}},{"$f":"'Trial 4'!I28","v":{"v":139.87978445424628,"d":"139.88"}},{"$f":"'Trial 4'!J28","v":{"v":139.84234816841763,"d":"139.84"}},{"$f":"'Trial 4'!K28","v":{"v":139.79891024513608,"d":"139.80"}},{"$f":"'Trial 4'!L28","v":{"v":139.75061544427635,"d":"139.75"}},{"$f":"'Trial 4'!M28","v":{"v":139.69762259144758,"d":"139.70"}},{"$f":"'Trial 4'!O28","v":{"v":139.64033407325726,"d":"139.64"}},{"$f":"'Trial 4'!P28","v":{"v":139.57748257553104,"d":"139.58"}},{"$f":"'Trial 4'!Q28","v":{"v":139.51064666093473,"d":"139.51"}},{"$f":"'Trial 4'!R28","v":{"v":139.44031194506428,"d":"139.44"}},{"$f":"'Trial 4'!S28","v":{"v":139.36744354530651,"d":"139.37"}},{"$f":"'Trial 4'!T28","v":{"v":139.2909207295985,"d":"139.29"}},{"$f":"'Trial 4'!U28","v":{"v":139.209185544513,"d":"139.21"}},{"$f":"'Trial 4'!V28","v":{"v":139.12356835515382,"d":"139.12"}},{"$f":"'Trial 4'!W28","v":{"v":139.03475205720815,"d":"139.03"}},{"$f":"'Trial 4'!X28","v":{"v":138.94263740338886,"d":"138.94"}},{"$f":"'Trial 4'!Y28","v":{"v":138.8492139593875,"d":"138.85"}},{"$f":"'Trial 4'!Z28","v":{"v":138.75259278264923,"d":"138.75"}},{"$f":"'Trial 4'!AB28","v":{"v":138.65156852924204,"d":"138.65"}},{"$f":"'Trial 4'!AC28","v":{"v":138.54690319893896,"d":"138.55"}},{"$f":"'Trial 4'!AD28","v":{"v":138.43894094254594,"d":"138.44"}},{"$f":"'Trial 4'!AE28","v":{"v":138.32868611585874,"d":"138.33"}},{"$f":"'Trial 4'!AF28","v":{"v":138.215581404524,"d":"138.22"}},{"$f":"'Trial 4'!AG28","v":{"v":138.09887030455266,"d":"138.10"}},{"$f":"'Trial 4'!AH28","v":{"v":137.97936500767995,"d":"137.98"}},{"$f":"'Trial 4'!AI28","v":{"v":137.8590108050166,"d":"137.86"}},{"$f":"'Trial 4'!AJ28","v":{"v":137.73654260898684,"d":"137.74"}},{"$f":"'Trial 4'!AK28","v":{"v":137.61202781497803,"d":"137.61"}},{"$f":"'Trial 4'!AL28","v":{"v":137.48502263688155,"d":"137.49"}},{"$f":"'Trial 4'!AM28","v":{"v":137.35726511457923,"d":"137.36"}},{"$f":"'Trial 4'!AO28","v":{"v":137.22734488993643,"d":"137.23"}},{"$f":"'Trial 4'!AP28","v":{"v":137.0940068149227,"d":"137.09"}},{"$f":"'Trial 4'!AQ28","v":{"v":136.95905607613204,"d":"136.96"}},{"$f":"'Trial 4'!AR28","v":{"v":136.82247629453772,"d":"136.82"}},{"$f":"'Trial 4'!AS28","v":{"v":136.68413941586678,"d":"136.68"}},{"$f":"'Trial 4'!AT28","v":{"v":136.54339756624228,"d":"136.54"}},{"$f":"'Trial 4'!AU28","v":{"v":136.40167820407365,"d":"136.40"}},{"$f":"'Trial 4'!AV28","v":{"v":136.2595931202941,"d":"136.26"}},{"$f":"'Trial 4'!AW28","v":{"v":136.1166564265643,"d":"136.12"}},{"$f":"'Trial 4'!AX28","v":{"v":135.9724642472322,"d":"135.97"}},{"$f":"'Trial 4'!AY28","v":{"v":135.82769300233423,"d":"135.83"}},{"$f":"'Trial 4'!AZ28","v":{"v":135.68091954073253,"d":"135.68"}},{"$f":"'Trial 4'!BB28","v":{"v":135.53236428535462,"d":"135.53"}},{"$f":"'Trial 4'!BC28","v":{"v":135.38142153314246,"d":"135.38"}},{"$f":"'Trial 4'!BD28","v":{"v":135.23130255378427,"d":"135.23"}},{"$f":"'Trial 4'!BE28","v":{"v":135.08194836607947,"d":"135.08"}},{"$f":"'Trial 4'!BF28","v":{"v":134.93082863452855,"d":"134.93"}},{"$f":"'Trial 4'!BG28","v":{"v":134.7789485323832,"d":"134.78"}},{"$f":"'Trial 4'!BH28","v":{"v":134.62549088779252,"d":"134.63"}},{"$f":"'Trial 4'!BI28","v":{"v":134.472008489717,"d":"134.47"}},{"$f":"'Trial 4'!BJ28","v":{"v":134.31711144623165,"d":"134.32"}},{"$f":"'Trial 4'!BK28","v":{"v":134.16172381767595,"d":"134.16"}},{"$f":"'Trial 4'!BL28","v":{"v":134.00415049086672,"d":"134.00"}},{"$f":"'Trial 4'!BM28","v":{"v":133.8470337258057,"d":"133.85"}},{"$f":"'Trial 4'!BO28","v":{"v":133.6899411929601,"d":"133.69"}},{"$f":"'Trial 4'!BP28","v":{"v":133.533254402342,"d":"133.53"}},{"$f":"'Trial 4'!BQ28","v":{"v":133.37687141495687,"d":"133.38"}},{"$f":"'Trial 4'!BR28","v":{"v":133.22086333585494,"d":"133.22"}},{"$f":"'Trial 4'!BS28","v":{"v":133.06387408072285,"d":"133.06"}},{"$f":"'Trial 4'!BT28","v":{"v":132.9068088240529,"d":"132.91"}},{"$f":"'Trial 4'!BU28","v":{"v":132.748425085212,"d":"132.75"}},{"$f":"'Trial 4'!BV28","v":{"v":132.5904066575425,"d":"132.59"}},{"$f":"'Trial 4'!BW28","v":{"v":132.4318167200261,"d":"132.43"}},{"$f":"'Trial 4'!BX28","v":{"v":132.2723445391855,"d":"132.27"}},{"$f":"'Trial 4'!BY28","v":{"v":132.11172061028725,"d":"132.11"}},{"$f":"'Trial 4'!BZ28","v":{"v":131.95183317543948,"d":"131.95"}},{"$f":"'Trial 4'!CB28","v":{"v":131.791747539822,"d":"131.79"}},{"$f":"'Trial 4'!CC28","v":{"v":131.6321671725921,"d":"131.63"}},{"$f":"'Trial 4'!CD28","v":{"v":131.4717677645761,"d":"131.47"}},{"$f":"'Trial 4'!CE28","v":{"v":131.31187887358257,"d":"131.31"}},{"$f":"'Trial 4'!CF28","v":{"v":131.15155194574965,"d":"131.15"}},{"$f":"'Trial 4'!CG28","v":{"v":130.99102256373575,"d":"130.99"}},{"$f":"'Trial 4'!CH28","v":{"v":130.83078562248824,"d":"130.83"}},{"$f":"'Trial 4'!CI28","v":{"v":130.67032197794774,"d":"130.67"}},{"$f":"'Trial 4'!CJ28","v":{"v":130.5118463071565,"d":"130.51"}},{"$f":"'Trial 4'!CK28","v":{"v":130.3544789906167,"d":"130.35"}},{"$f":"'Trial 4'!CL28","v":{"v":130.19715039618723,"d":"130.20"}},{"$f":"'Trial 4'!CM28","v":{"v":130.04101211109116,"d":"130.04"}},{"$f":"'Trial 4'!CO28","v":{"v":129.8852712269296,"d":"129.89"}},{"$f":"'Trial 4'!CP28","v":{"v":129.72907638559317,"d":"129.73"}},{"$f":"'Trial 4'!CQ28","v":{"v":129.57400961566617,"d":"129.57"}},{"$f":"'Trial 4'!CR28","v":{"v":129.41979336993558,"d":"129.42"}},{"$f":"'Trial 4'!CS28","v":{"v":129.26669382553752,"d":"129.27"}},{"$f":"'Trial 4'!CT28","v":{"v":129.11389652164067,"d":"129.11"}},{"$f":"'Trial 4'!CU28","v":{"v":128.96059800602913,"d":"128.96"}},{"$f":"'Trial 4'!CV28","v":{"v":128.80615021139937,"d":"128.81"}},{"$f":"'Trial 4'!CW28","v":{"v":128.65358971982334,"d":"128.65"}},{"$f":"'Trial 4'!CX28","v":{"v":128.50180954954365,"d":"128.50"}},{"$f":"'Trial 4'!CY28","v":{"v":128.35072083873666,"d":"128.35"}},{"$f":"'Trial 4'!CZ28","v":{"v":128.19851663451024,"d":"128.20"}},{"$f":"'Trial 4'!DB28","v":{"v":128.0472941258485,"d":"128.05"}},{"$f":"'Trial 4'!DC28","v":{"v":127.8976651232102,"d":"127.90"}},{"$f":"'Trial 4'!DD28","v":{"v":127.7477407518407,"d":"127.75"}},{"$f":"'Trial 4'!DE28","v":{"v":127.59706470684937,"d":"127.60"}},{"$f":"'Trial 4'!DF28","v":{"v":127.44742216482877,"d":"127.45"}},{"$f":"'Trial 4'!DG28","v":{"v":127.29881208783753,"d":"127.30"}},{"$f":"'Trial 4'!DH28","v":{"v":127.15075929049488,"d":"127.15"}},{"$f":"'Trial 4'!DI28","v":{"v":127.00351563049844,"d":"127.00"}},{"$f":"'Trial 4'!DJ28","v":{"v":126.855569844565,"d":"126.86"}},{"$f":"'Trial 4'!DK28","v":{"v":126.70882086920905,"d":"126.71"}},{"$f":"'Trial 4'!DL28","v":{"v":126.56197783530187,"d":"126.56"}},{"$f":"'Trial 4'!DM28","v":{"v":126.41618335870157,"d":"126.42"}},{"$f":"'Trial 4'!DO28","v":{"v":126.27112943541589,"d":"126.27"}},{"$f":"'Trial 4'!DP28","v":{"v":126.12607424155176,"d":"126.13"}},{"$f":"'Trial 4'!DQ28","v":{"v":125.98281145466531,"d":"125.98"}},{"$f":"'Trial 4'!DR28","v":{"v":125.84169926045425,"d":"125.84"}},{"$f":"'Trial 4'!DS28","v":{"v":125.70010528475675,"d":"125.70"}},{"$f":"'Trial 4'!DT28","v":{"v":125.56037059351729,"d":"125.56"}},{"$f":"'Trial 4'!DU28","v":{"v":125.42263501174541,"d":"125.42"}},{"$f":"'Trial 4'!DV28","v":{"v":125.28608359083232,"d":"125.29"}},{"$f":"'Trial 4'!DW28","v":{"v":125.14939581220685,"d":"125.15"}},{"$f":"'Trial 4'!DX28","v":{"v":125.01287889687976,"d":"125.01"}},{"$f":"'Trial 4'!DY28","v":{"v":124.87502438969041,"d":"124.88"}},{"$f":"'Trial 4'!DZ28","v":{"v":124.73883365341622,"d":"124.74"}},{"$f":"'Trial 4'!EB28","v":{"v":124.60405486092655,"d":"124.60"}},{"$f":"'Trial 4'!EC28","v":{"v":124.4710752730341,"d":"124.47"}},{"$f":"'Trial 4'!ED28","v":{"v":124.33834051257692,"d":"124.34"}},{"$f":"'Trial 4'!EE28","v":{"v":124.20416952688481,"d":"124.20"}},{"$f":"'Trial 4'!EF28","v":{"v":124.07009678254266,"d":"124.07"}},{"$f":"'Trial 4'!EG28","v":{"v":123.93757862392154,"d":"123.94"}},{"$f":"'Trial 4'!EH28","v":{"v":123.80691987524577,"d":"123.81"}},{"$f":"'Trial 4'!EI28","v":{"v":123.6762356482542,"d":"123.68"}},{"$f":"'Trial 4'!EJ28","v":{"v":123.54661206554213,"d":"123.55"}},{"$f":"'Trial 4'!EK28","v":{"v":123.41591892018529,"d":"123.42"}},{"$f":"'Trial 4'!EL28","v":{"v":123.28419589085445,"d":"123.28"}},{"$f":"'Trial 4'!EM28","v":{"v":123.153885673068,"d":"123.15"}}]
[{"$f":"'Trial 5'!B28","v":{"v":140,"d":"140.00"}},{"$f":"'Trial 5'!C28","v":{"v":140,"d":"140.00"}},{"$f":"'Trial 5'!D28","v":{"v":139.99297082702557,"d":"139.99"}},{"$f":"'Trial 5'!E28","v":{"v":139.9794119517761,"d":"139.98"}},{"$f":"'Trial 5'!F28","v":{"v":139.96145437299262,"d":"139.96"}},{"$f":"'Trial 5'!G28","v":{"v":139.93662912881206,"d":"139.94"}},{"$f":"'Trial 5'!H28","v":{"v":139.90605234522712,"d":"139.91"}},{"$f":"'Trial 5'!I28","v":{"v":139.86976489720905,"d":"139.87"}},{"$f":"'Trial 5'!J28","v":{"v":139.82858269474636,"d":"139.83"}},{"$f":"'Trial 5'!K28","v":{"v":139.78327860831783,"d":"139.78"}},{"$f":"'Trial 5'!L28","v":{"v":139.73515203538284,"d":"139.74"}},{"$f":"'Trial 5'!M28","v":{"v":139.68174381090773,"d":"139.68"}},{"$f":"'Trial 5'!O28","v":{"v":139.62339418718085,"d":"139.62"}},{"$f":"'Trial 5'!P28","v":{"v":139.5608470476963,"d":"139.56"}},{"$f":"'Trial 5'!Q28","v":{"v":139.49396537626802,"d":"139.49"}},{"$f":"'Trial 5'!R28","v":{"v":139.4232937439943,"d":"139.42"}},{"$f":"'Trial 5'!S28","v":{"v":139.34859963798786,"d":"139.35"}},{"$f":"'Trial 5'!T28","v":{"v":139.27045463533634,"d":"139.27"}},{"$f":"'Trial 5'!U28","v":{"v":139.1875671742041,"d":"139.19"}},{"$f":"'Trial 5'!V28","v":{"v":139.1030199178538,"d":"139.10"}},{"$f":"'Trial 5'!W28","v":{"v":139.0155487801776,"d":"139.02"}},{"$f":"'Trial 5'!X28","v":{"v":138.92472857583658,"d":"138.92"}},{"$f":"'Trial 5'!Y28","v":{"v":138.8310425241632,"d":"138.83"}},{"$f":"'Trial 5'!Z28","v":{"v":138.73333491105555,"d":"138.73"}},{"$f":"'Trial 5'!AB28","v":{"v":138.6343648356834,"d":"138.63"}},{"$f":"'Trial 5'!AC28","v":{"v":138.53214919728853,"d":"138.53"}},{"$f":"'Trial 5'!AD28","v":{"v":138.42768583562665,"d":"138.43"}},{"$f":"'Trial 5'!AE28","v":{"v":138.32056314497527,"d":"138.32"}},{"$f":"'Trial 5'!AF28","v":{"v":138.21237654464448,"d":"138.21"}},{"$f":"'Trial 5'!AG28","v":{"v":138.10000891897502,"d":"138.10"}},{"$f":"'Trial 5'!AH28","v":{"v":137.9838916117061,"d":"137.98"}},{"$f":"'Trial 5'!AI28","v":{"v":137.86506256498592,"d":"137.87"}},{"$f":"'Trial 5'!AJ28","v":{"v":137.7444988104379,"d":"137.74"}},{"$f":"'Trial 5'!AK28","v":{"v":137.620879840671,"d":"137.62"}},{"$f":"'Trial 5'!AL28","v":{"v":137.49552499830992,"d":"137.50"}},{"$f":"'Trial 5'!AM28","v":{"v":137.3672573513998,"d":"137.37"}},{"$f":"'Trial 5'!AO28","v":{"v":137.2369460019998,"d":"137.24"}},{"$f":"'Trial 5'!AP28","v":{"v":137.1040186479651,"d":"137.10"}},{"$f":"'Trial 5'!AQ28","v":{"v":136.96949634814115,"d":"136.97"}},{"$f":"'Trial 5'!AR28","v":{"v":136.83354498184954,"d":"136.83"}},{"$f":"'Trial 5'!AS28","v":{"v":136.69575981447878,"d":"136.70"}},{"$f":"'Trial 5'!AT28","v":{"v":136.5570286142928,"d":"136.56"}},{"$f":"'Trial 5'!AU28","v":{"v":136.417566560065,"d":"136.42"}},{"$f":"'Trial 5'!AV28","v":{"v":136.27630997751157,"d":"136.28"}},{"$f":"'Trial 5'!AW28","v":{"v":136.13419163073974,"d":"136.13"}},{"$f":"'Trial 5'!AX28","v":{"v":135.99097336232347,"d":"135.99"}},{"$f":"'Trial 5'!AY28","v":{"v":135.8463879683266,"d":"135.85"}},{"$f":"'Trial 5'!AZ28","v":{"v":135.70051297150238,"d":"135.70"}},{"$f":"'Trial 5'!BB28","v":{"v":135.55388440069035,"d":"135.55"}},{"$f":"'Trial 5'!BC28","v":{"v":135.40609146127616,"d":"135.41"}},{"$f":"'Trial 5'!BD28","v":{"v":135.2567687830677,"d":"135.26"}},{"$f":"'Trial 5'!BE28","v":{"v":135.10541894336347,"d":"135.11"}},{"$f":"'Trial 5'!BF28","v":{"v":134.9516482011138,"d":"134.95"}},{"$f":"'Trial 5'!BG28","v":{"v":134.79767679744904,"d":"134.80"}},{"$f":"'Trial 5'!BH28","v":{"v":134.64262404636654,"d":"134.64"}},{"$f":"'Trial 5'!BI28","v":{"v":134.4872500907126,"d":"134.49"}},{"$f":"'Trial 5'!BJ28","v":{"v":134.33008867493996,"d":"134.33"}},{"$f":"'Trial 5'!BK28","v":{"v":134.17276272376301,"d":"134.17"}},{"$f":"'Trial 5'!BL28","v":{"v":134.01614752675948,"d":"134.02"}},{"$f":"'Trial 5'!BM28","v":{"v":133.85950350325487,"d":"133.86"}},{"$f":"'Trial 5'!BO28","v":{"v":133.70362798741542,"d":"133.70"}},{"$f":"'Trial 5'!BP28","v":{"v":133.54764626271748,"d":"133.55"}},{"$f":"'Trial 5'!BQ28","v":{"v":133.39241105625592,"d":"133.39"}},{"$f":"'Trial 5'!BR28","v":{"v":133.2384202320834,"d":"133.24"}},{"$f":"'Trial 5'!BS28","v":{"v":133.0855961138082,"d":"133.09"}},{"$f":"'Trial 5'!BT28","v":{"v":132.931317100318,"d":"132.93"}},{"$f":"'Trial 5'!BU28","v":{"v":132.77673052847194,"d":"132.78"}},{"$f":"'Trial 5'!BV28","v":{"v":132.6235278493101,"d":"132.62"}},{"$f":"'Trial 5'!BW28","v":{"v":132.46903792730348,"d":"132.47"}},{"$f":"'Trial 5'!BX28","v":{"v":132.31412776175776,"d":"132.31"}},{"$f":"'Trial 5'!BY28","v":{"v":132.15918367768714,"d":"132.16"}},{"$f":"'Trial 5'!BZ28","v":{"v":132.00536048998325,"d":"132.01"}},{"$f":"'Trial 5'!CB28","v":{"v":131.85275677448755,"d":"131.85"}},{"$f":"'Trial 5'!CC28","v":{"v":131.70098827525283,"d":"131.70"}},{"$f":"'Trial 5'!CD28","v":{"v":131.5488859065884,"d":"131.55"}},{"$f":"'Trial 5'!CE28","v":{"v":131.3966946042238,"d":"131.40"}},{"$f":"'Trial 5'!CF28","v":{"v":131.24425809809077,"d":"131.24"}},{"$f":"'Trial 5'!CG28","v":{"v":131.09115711964623,"d":"131.09"}},{"$f":"'Trial 5'!CH28","v":{"v":130.93819376635156,"d":"130.94"}},{"$f":"'Trial 5'!CI28","v":{"v":130.78690964396904,"d":"130.79"}},{"$f":"'Trial 5'!CJ28","v":{"v":130.63491512049265,"d":"130.63"}},{"$f":"'Trial 5'!CK28","v":{"v":130.48207173777135,"d":"130.48"}},{"$f":"'Trial 5'!CL28","v":{"v":130.3295854921158,"d":"130.33"}},{"$f":"'Trial 5'!CM28","v":{"v":130.1787459590177,"d":"130.18"}},{"$f":"'Trial 5'!CO28","v":{"v":130.02701831571812,"d":"130.03"}},{"$f":"'Trial 5'!CP28","v":{"v":129.87587031688292,"d":"129.88"}},{"$f":"'Trial 5'!CQ28","v":{"v":129.72521405522775,"d":"129.73"}},{"$f":"'Trial 5'!CR28","v":{"v":129.5737179522503,"d":"129.57"}},{"$f":"'Trial 5'!CS28","v":{"v":129.42372585744863,"d":"129.42"}},{"$f":"'Trial 5'!CT28","v":{"v":129.2731101943457,"d":"129.27"}},{"$f":"'Trial 5'!CU28","v":{"v":129.1221944398516,"d":"129.12"}},{"$f":"'Trial 5'!CV28","v":{"v":128.97196322937174,"d":"128.97"}},{"$f":"'Trial 5'!CW28","v":{"v":128.8221439264561,"d":"128.82"}},{"$f":"'Trial 5'!CX28","v":{"v":128.67226079755594,"d":"128.67"}},{"$f":"'Trial 5'!CY28","v":{"v":128.52349867347897,"d":"128.52"}},{"$f":"'Trial 5'!CZ28","v":{"v":128.37451921623406,"d":"128.37"}},{"$f":"'Trial 5'!DB28","v":{"v":128.22571233647793,"d":"128.23"}},{"$f":"'Trial 5'!DC28","v":{"v":128.07570660503913,"d":"128.08"}},{"$f":"'Trial 5'!DD28","v":{"v":127.92657522442818,"d":"127.93"}},{"$f":"'Trial 5'!DE28","v":{"v":127.77781376975072,"d":"127.78"}},{"$f":"'Trial 5'!DF28","v":{"v":127.62967705664725,"d":"127.63"}},{"$f":"'Trial 5'!DG28","v":{"v":127.48124123419423,"d":"127.48"}},{"$f":"'Trial 5'!DH28","v":{"v":127.33232554736321,"d":"127.33"}},{"$f":"'Trial 5'!DI28","v":{"v":127.18467776328487,"d":"127.18"}},{"$f":"'Trial 5'!DJ28","v":{"v":127.03898741803359,"d":"127.04"}},{"$f":"'Trial 5'!DK28","v":{"v":126.89369784215653,"d":"126.89"}},{"$f":"'Trial 5'!DL28","v":{"v":126.74791420071273,"d":"126.75"}},{"$f":"'Trial 5'!DM28","v":{"v":126.60233824464139,"d":"126.60"}},{"$f":"'Trial 5'!DO28","v":{"v":126.45618255476768,"d":"126.46"}},{"$f":"'Trial 5'!DP28","v":{"v":126.31050123285125,"d":"126.31"}},{"$f":"'Trial 5'!DQ28","v":{"v":126.16477767684842,"d":"126.16"}},{"$f":"'Trial 5'!DR28","v":{"v":126.01947829838653,"d":"126.02"}},{"$f":"'Trial 5'!DS28","v":{"v":125.87607759791176,"d":"125.88"}},{"$f":"'Trial 5'!DT28","v":{"v":125.73380223125754,"d":"125.73"}},{"$f":"'Trial 5'!DU28","v":{"v":125.59245783366482,"d":"125.59"}},{"$f":"'Trial 5'!DV28","v":{"v":125.45253423743083,"d":"125.45"}},{"$f":"'Trial 5'!DW28","v":{"v":125.31229109212627,"d":"125.31"}},{"$f":"'Trial 5'!DX28","v":{"v":125.17260926651777,"d":"125.17"}},{"$f":"'Trial 5'!DY28","v":{"v":125.0341440050784,"d":"125.03"}},{"$f":"'Trial 5'!DZ28","v":{"v":124.89561589513528,"d":"124.90"}},{"$f":"'Trial 5'!EB28","v":{"v":124.75752106052533,"d":"124.76"}},{"$f":"'Trial 5'!EC28","v":{"v":124.61902846135733,"d":"124.62"}},{"$f":"'Trial 5'!ED28","v":{"v":124.48096158028761,"d":"124.48"}},{"$f":"'Trial 5'!EE28","v":{"v":124.34447589138681,"d":"124.34"}},{"$f":"'Trial 5'!EF28","v":{"v":124.20772494240386,"d":"124.21"}},{"$f":"'Trial 5'!EG28","v":{"v":124.07163395820729,"d":"124.07"}},{"$f":"'Trial 5'!EH28","v":{"v":123.936148208336,"d":"123.94"}},{"$f":"'Trial 5'!EI28","v":{"v":123.80213467617318,"d":"123.80"}},{"$f":"'Trial 5'!EJ28","v":{"v":123.66727297052358,"d":"123.67"}},{"$f":"'Trial 5'!EK28","v":{"v":123.53197173881469,"d":"123.53"}},{"$f":"'Trial 5'!EL28","v":{"v":123.39667906041097,"d":"123.40"}},{"$f":"'Trial 5'!EM28","v":{"v":123.2620226415019,"d":"123.26"}}]
[{"$f":"'Trial 6'!B28","v":{"v":140,"d":"140.00"}},{"$f":"'Trial 6'!C28","v":{"v":140,"d":"140.00"}},{"$f":"'Trial 6'!D28","v":{"v":139.99432347441768,"d":"139.99"}},{"$f":"'Trial 6'!E28","v":{"v":139.98118672515238,"d":"139.98"}},{"$f":"'Trial 6'!F28","v":{"v":139.96345859890562,"d":"139.96"}},{"$f":"'Trial 6'!G28","v":{"v":139.94176070739636,"d":"139.94"}},{"$f":"'Trial 6'!H28","v":{"v":139.91528456359816,"d":"139.92"}},{"$f":"'Trial 6'!I28","v":{"v":139.88297528995218,"d":"139.88"}},{"$f":"'Trial 6'!J28","v":{"v":139.84556330706087,"d":"139.85"}},{"$f":"'Trial 6'!K28","v":{"v":139.8031667494447,"d":"139.80"}},{"$f":"'Trial 6'!L28","v":{"v":139.75706418100577,"d":"139.76"}},{"$f":"'Trial 6'!M28","v":{"v":139.70638705815216,"d":"139.71"}},{"$f":"'Trial 6'!O28","v":{"v":139.65278942979114,"d":"139.65"}},{"$f":"'Trial 6'!P28","v":{"v":139.59481387273766,"d":"139.59"}},{"$f":"'Trial 6'!Q28","v":{"v":139.5338763157648,"d":"139.53"}},{"$f":"'Trial 6'!R28","v":{"v":139.46856989643624,"d":"139.47"}},{"$f":"'Trial 6'!S28","v":{"v":139.40054939880673,"d":"139.40"}},{"$f":"'Trial 6'!T28","v":{"v":139.32949916047258,"d":"139.33"}},{"$f":"'Trial 6'!U28","v":{"v":139.25307546656094,"d":"139.25"}},{"$f":"'Trial 6'!V28","v":{"v":139.17276876558833,"d":"139.17"}},{"$f":"'Trial 6'!W28","v":{"v":139.08957415681272,"d":"139.09"}},{"$f":"'Trial 6'!X28","v":{"v":139.00231408187315,"d":"139.00"}},{"$f":"'Trial 6'!Y28","v":{"v":138.91133380953627,"d":"138.91"}},{"$f":"'Trial 6'!Z28","v":{"v":138.81756955937067,"d":"138.82"}},{"$f":"'Trial 6'!AB28","v":{"v":138.72165960154103,"d":"138.72"}},{"$f":"'Trial 6'!AC28","v":{"v":138.62186627612655,"d":"138.62"}},{"$f":"'Trial 6'!AD28","v":{"v":138.51948084050795,"d":"138.52"}},{"$f":"'Trial 6'!AE28","v":{"v":138.41491101529832,"d":"138.41"}},{"$f":"'Trial 6'!AF28","v":{"v":138.3087685029765,"d":"138.31"}},{"$f":"'Trial 6'!AG28","v":{"v":138.20038863721936,"d":"138.20"}},{"$f":"'Trial 6'!AH28","v":{"v":138.09058346548633,"d":"138.09"}},{"$f":"'Trial 6'!AI28","v":{"v":137.97863117003985,"d":"137.98"}},{"$f":"'Trial 6'!AJ28","v":{"v":137.86512419845658,"d":"137.87"}},{"$f":"'Trial 6'!AK28","v":{"v":137.74915568776998,"d":"137.75"}},{"$f":"'Trial 6'!AL28","v":{"v":137.6303629621265,"d":"137.63"}},{"$f":"'Trial 6'!AM28","v":{"v":137.50961022351035,"d":"137.51"}},{"$f":"'Trial 6'!AO28","v":{"v":137.38774569850443,"d":"137.39"}},{"$f":"'Trial 6'!AP28","v":{"v":137.26534104160467,"d":"137.27"}},{"$f":"'Trial 6'!AQ28","v":{"v":137.1413336785993,"d":"137.14"}},{"$f":"'Trial 6'!AR28","v":{"v":137.01523323143002,"d":"137.02"}},{"$f":"'Trial 6'!AS28","v":{"v":136.88680635196968,"d":"136.89"}},{"$f":"'Trial 6'!AT28","v":{"v":136.75685773428296,"d":"136.76"}},{"$f":"'Trial 6'!AU28","v":{"v":136.62499819670722,"d":"136.62"}},{"$f":"'Trial 6'!AV28","v":{"v":136.49094352899058,"d":"136.49"}},{"$f":"'Trial 6'!AW28","v":{"v":136.35383026963927,"d":"136.35"}},{"$f":"'Trial 6'!AX28","v":{"v":136.21561638744473,"d":"136.22"}},{"$f":"'Trial 6'!AY28","v":{"v":136.07558798307943,"d":"136.08"}},{"$f":"'Trial 6'!AZ28","v":{"v":135.93314042587073,"d":"135.93"}},{"$f":"'Trial 6'!BB28","v":{"v":135.78999736269282,"d":"135.79"}},{"$f":"'Trial 6'!BC28","v":{"v":135.64702751852448,"d":"135.65"}},{"$f":"'Trial 6'!BD28","v":{"v":135.50139062131007,"d":"135.50"}},{"$f":"'Trial 6'!BE28","v":{"v":135.35387807991432,"d":"135.35"}},{"$f":"'Trial 6'!BF28","v":{"v":135.20488640863684,"d":"135.20"}},{"$f":"'Trial 6'!BG28","v":{"v":135.0542820688448,"d":"135.05"}},{"$f":"'Trial 6'!BH28","v":{"v":134.90283844739406,"d":"134.90"}},{"$f":"'Trial 6'!BI28","v":{"v":134.75102847307608,"d":"134.75"}},{"$f":"'Trial 6'!BJ28","v":{"v":134.599378573345,"d":"134.60"}},{"$f":"'Trial 6'!BK28","v":{"v":134.44643107629017,"d":"134.45"}},{"$f":"'Trial 6'!BL28","v":{"v":134.2942887365307,"d":"134.29"}},{"$f":"'Trial 6'!BM28","v":{"v":134.14187890786974,"d":"134.14"}},{"$f":"'Trial 6'!BO28","v":{"v":133.9874828338398,"d":"133.99"}},{"$f":"'Trial 6'!BP28","v":{"v":133.83295273379838,"d":"133.83"}},{"$f":"'Trial 6'!BQ28","v":{"v":133.67633982356762,"d":"133.68"}},{"$f":"'Trial 6'!BR28","v":{"v":133.51901296545975,"d":"133.52"}},{"$f":"'Trial 6'!BS28","v":{"v":133.36085394788904,"d":"133.36"}},{"$f":"'Trial 6'!BT28","v":{"v":133.20155367740375,"d":"133.20"}},{"$f":"'Trial 6'!BU28","v":{"v":133.04036147850667,"d":"133.04"}},{"$f":"'Trial 6'!BV28","v":{"v":132.87998851501058,"d":"132.88"}},{"$f":"'Trial 6'!BW28","v":{"v":132.71952483089206,"d":"132.72"}},{"$f":"'Trial 6'!BX28","v":{"v":132.55941741699246,"d":"132.56"}},{"$f":"'Trial 6'!BY28","v":{"v":132.39998531908287,"d":"132.40"}},{"$f":"'Trial 6'!BZ28","v":{"v":132.23965661002282,"d":"132.24"}},{"$f":"'Trial 6'!CB28","v":{"v":132.0807351122628,"d":"132.08"}},{"$f":"'Trial 6'!CC28","v":{"v":131.92258745369966,"d":"131.92"}},{"$f":"'Trial 6'!CD28","v":{"v":131.76447905169863,"d":"131.76"}},{"$f":"'Trial 6'!CE28","v":{"v":131.60619816247953,"d":"131.61"}},{"$f":"'Trial 6'!CF28","v":{"v":131.4493922909581,"d":"131.45"}},{"$f":"'Trial 6'!CG28","v":{"v":131.2922906834103,"d":"131.29"}},{"$f":"'Trial 6'!CH28","v":{"v":131.1348020284145,"d":"131.13"}},{"$f":"'Trial 6'!CI28","v":{"v":130.9781580084625,"d":"130.98"}},{"$f":"'Trial 6'!CJ28","v":{"v":130.82230818333886,"d":"130.82"}},{"$f":"'Trial 6'!CK28","v":{"v":130.66764844907746,"d":"130.67"}},{"$f":"'Trial 6'!CL28","v":{"v":130.5131283306241,"d":"130.51"}},{"$f":"'Trial 6'!CM28","v":{"v":130.35913952586944,"d":"130.36"}},{"$f":"'Trial 6'!CO28","v":{"v":130.20632677310866,"d":"130.21"}},{"$f":"'Trial 6'!CP28","v":{"v":130.05442373601431,"d":"130.05"}},{"$f":"'Trial 6'!CQ28","v":{"v":129.9028543208718,"d":"129.90"}},{"$f":"'Trial 6'!CR28","v":{"v":129.75245723791247,"d":"129.75"}},{"$f":"'Trial 6'!CS28","v":{"v":129.60221575107417,"d":"129.60"}},{"$f":"'Trial 6'!CT28","v":{"v":129.4521762194065,"d":"129.45"}},{"$f":"'Trial 6'!CU28","v":{"v":129.30151190675804,"d":"129.30"}},{"$f":"'Trial 6'!CV28","v":{"v":129.1503852620033,"d":"129.15"}},{"$f":"'Trial 6'!CW28","v":{"v":129.00095354272526,"d":"129.00"}},{"$f":"'Trial 6'!CX28","v":{"v":128.85075058488033,"d":"128.85"}},{"$f":"'Trial 6'!CY28","v":{"v":128.70217475284386,"d":"128.70"}},{"$f":"'Trial 6'!CZ28","v":{"v":128.5541001860114,"d":"128.55"}},{"$f":"'Trial 6'!DB28","v":{"v":128.4054730136818,"d":"128.41"}},{"$f":"'Trial 6'!DC28","v":{"v":128.25758502156478,"d":"128.26"}},{"$f":"'Trial 6'!DD28","v":{"v":128.1105422412075,"d":"128.11"}},{"$f":"'Trial 6'!DE28","v":{"v":127.96229052131561,"d":"127.96"}},{"$f":"'Trial 6'!DF28","v":{"v":127.81383576433717,"d":"127.81"}},{"$f":"'Trial 6'!DG28","v":{"v":127.66572042692923,"d":"127.67"}},{"$f":"'Trial 6'!DH28","v":{"v":127.51667121822716,"d":"127.52"}},{"$f":"'Trial 6'!DI28","v":{"v":127.36778200646717,"d":"127.37"}},{"$f":"'Trial 6'!DJ28","v":{"v":127.21821357443969,"d":"127.22"}},{"$f":"'Trial 6'!DK28","v":{"v":127.06793133285777,"d":"127.07"}},{"$f":"'Trial 6'!DL28","v":{"v":126.91666629005836,"d":"126.92"}},{"$f":"'Trial 6'!DM28","v":{"v":126.76610283096225,"d":"126.77"}},{"$f":"'Trial 6'!DO28","v":{"v":126.61531404669985,"d":"126.62"}},{"$f":"'Trial 6'!DP28","v":{"v":126.46476823677497,"d":"126.46"}},{"$f":"'Trial 6'!DQ28","v":{"v":126.31583205293084,"d":"126.32"}},{"$f":"'Trial 6'!DR28","v":{"v":126.1668016352964,"d":"126.17"}},{"$f":"'Trial 6'!DS28","v":{"v":126.01779391744225,"d":"126.02"}},{"$f":"'Trial 6'!DT28","v":{"v":125.869396157184,"d":"125.87"}},{"$f":"'Trial 6'!DU28","v":{"v":125.72145684217183,"d":"125.72"}},{"$f":"'Trial 6'!DV28","v":{"v":125.57470954514763,"d":"125.57"}},{"$f":"'Trial 6'!DW28","v":{"v":125.42955811155828,"d":"125.43"}},{"$f":"'Trial 6'!DX28","v":{"v":125.28614012292846,"d":"125.29"}},{"$f":"'Trial 6'!DY28","v":{"v":125.1434790891738,"d":"125.14"}},{"$f":"'Trial 6'!DZ28","v":{"v":125.00211224173634,"d":"125.00"}},{"$f":"'Trial 6'!EB28","v":{"v":124.86109659333874,"d":"124.86"}},{"$f":"'Trial 6'!EC28","v":{"v":124.72055670805202,"d":"124.72"}},{"$f":"'Trial 6'!ED28","v":{"v":124.58156726926299,"d":"124.58"}},{"$f":"'Trial 6'!EE28","v":{"v":124.44315478386417,"d":"124.44"}},{"$f":"'Trial 6'!EF28","v":{"v":124.30573031386686,"d":"124.31"}},{"$f":"'Trial 6'!EG28","v":{"v":124.16955210671458,"d":"124.17"}},{"$f":"'Trial 6'!EH28","v":{"v":124.03386091525857,"d":"124.03"}},{"$f":"'Trial 6'!EI28","v":{"v":123.89907162275487,"d":"123.90"}},{"$f":"'Trial 6'!EJ28","v":{"v":123.76476011990447,"d":"123.76"}},{"$f":"'Trial 6'!EK28","v":{"v":123.63132514099479,"d":"123.63"}},{"$f":"'Trial 6'!EL28","v":{"v":123.49954488890992,"d":"123.50"}},{"$f":"'Trial 6'!EM28","v":{"v":123.36976780961363,"d":"123.37"}}]
[{"$f":"'Trial 7'!B28","v":{"v":140,"d":"140.00"}},{"$f":"'Trial 7'!C28","v":{"v":140,"d":"140.00"}},{"$f":"'Trial 7'!D28","v":{"v":139.99328730318734,"d":"139.99"}},{"$f":"'Trial 7'!E28","v":{"v":139.98159075470167,"d":"139.98"}},{"$f":"'Trial 7'!F28","v":{"v":139.96481756676343,"d":"139.96"}},{"$f":"'Trial 7'!G28","v":{"v":139.94243035202317,"d":"139.94"}},{"$f":"'Trial 7'!H28","v":{"v":139.91574239689666,"d":"139.92"}},{"$f":"'Trial 7'!I28","v":{"v":139.88493142512922,"d":"139.88"}},{"$f":"'Trial 7'!J28","v":{"v":139.85005642559872,"d":"139.85"}},{"$f":"'Trial 7'!K28","v":{"v":139.81148408709817,"d":"139.81"}},{"$f":"'Trial 7'!L28","v":{"v":139.76792553978382,"d":"139.77"}},{"$f":"'Trial 7'!M28","v":{"v":139.7190964505018,"d":"139.72"}},{"$f":"'Trial 7'!O28","v":{"v":139.66573092495392,"d":"139.67"}},{"$f":"'Trial 7'!P28","v":{"v":139.60778711030412,"d":"139.61"}},{"$f":"'Trial 7'!Q28","v":{"v":139.5458391896073,"d":"139.55"}},{"$f":"'Trial 7'!R28","v":{"v":139.4809243047165,"d":"139.48"}},{"$f":"'Trial 7'!S28","v":{"v":139.41303708262876,"d":"139.41"}},{"$f":"'Trial 7'!T28","v":{"v":139.34202015083346,"d":"139.34"}},{"$f":"'Trial 7'!U28","v":{"v":139.26759111635766,"d":"139.27"}},{"$f":"'Trial 7'!V28","v":{"v":139.19040493081994,"d":"139.19"}},{"$f":"'Trial 7'!W28","v":{"v":139.10953865514443,"d":"139.11"}},{"$f":"'Trial 7'!X28","v":{"v":139.02616368865893,"d":"139.03"}},{"$f":"'Trial 7'!Y28","v":{"v":138.94070954481575,"d":"138.94"}},{"$f":"'Trial 7'!Z28","v":{"v":138.85283207906335,"d":"138.85"}},{"$f":"'Trial 7'!AB28","v":{"v":138.76184540585402,"d":"138.76"}},{"$f":"'Trial 7'!AC28","v":{"v":138.66638895938377,"d":"138.67"}},{"$f":"'Trial 7'!AD28","v":{"v":138.5664799781949,"d":"138.57"}},{"$f":"'Trial 7'!AE28","v":{"v":138.46377732677598,"d":"138.46"}},{"$f":"'Trial 7'!AF28","v":{"v":138.35878793294614,"d":"138.36"}},{"$f":"'Trial 7'!AG28","v":{"v":138.2521080775638,"d":"138.25"}},{"$f":"'Trial 7'!AH28","v":{"v":138.1423265199123,"d":"138.14"}},{"$f":"'Trial 7'!AI28","v":{"v":138.03070966982278,"d":"138.03"}},{"$f":"'Trial 7'!AJ28","v":{"v":137.91725130705413,"d":"137.92"}},{"$f":"'Trial 7'!AK28","v":{"v":137.8004752049229,"d":"137.80"}},{"$f":"'Trial 7'!AL28","v":{"v":137.6812671250002,"d":"137.68"}},{"$f":"'Trial 7'!AM28","v":{"v":137.56003943479288,"d":"137.56"}},{"$f":"'Trial 7'!AO28","v":{"v":137.43695315190337,"d":"137.44"}},{"$f":"'Trial 7'!AP28","v":{"v":137.31141272705344,"d":"137.31"}},{"$f":"'Trial 7'!AQ28","v":{"v":137.18309830705834,"d":"137.18"}},{"$f":"'Trial 7'!AR28","v":{"v":137.05284148124554,"d":"137.05"}},{"$f":"'Trial 7'!AS28","v":{"v":136.92170339727696,"d":"136.92"}},{"$f":"'Trial 7'!AT28","v":{"v":136.78966728658543,"d":"136.79"}},{"$f":"'Trial 7'!AU28","v":{"v":136.65750960328276,"d":"136.66"}},{"$f":"'Trial 7'!AV28","v":{"v":136.52315523421373,"d":"136.52"}},{"$f":"'Trial 7'!AW28","v":{"v":136.3871855996617,"d":"136.39"}},{"$f":"'Trial 7'!AX28","v":{"v":136.24963386367313,"d":"136.25"}},{"$f":"'Trial 7'!AY28","v":{"v":136.11015951205854,"d":"136.11"}},{"$f":"'Trial 7'!AZ28","v":{"v":135.96848535429808,"d":"135.97"}},{"$f":"'Trial 7'!BB28","v":{"v":135.82491813419546,"d":"135.82"}},{"$f":"'Trial 7'!BC28","v":{"v":135.67897259967563,"d":"135.68"}},{"$f":"'Trial 7'!BD28","v":{"v":135.53162499508042,"d":"135.53"}},{"$f":"'Trial 7'!BE28","v":{"v":135.38286575930047,"d":"135.38"}},{"$f":"'Trial 7'!BF28","v":{"v":135.2336320053194,"d":"135.23"}},{"$f":"'Trial 7'!BG28","v":{"v":135.08325574946073,"d":"135.08"}},{"$f":"'Trial 7'!BH28","v":{"v":134.93248726878238,"d":"134.93"}},{"$f":"'Trial 7'!BI28","v":{"v":134.78196068884694,"d":"134.78"}},{"$f":"'Trial 7'!BJ28","v":{"v":134.62980605161877,"d":"134.63"}},{"$f":"'Trial 7'!BK28","v":{"v":134.4769191511105,"d":"134.48"}},{"$f":"'Trial 7'!BL28","v":{"v":134.32288001784914,"d":"134.32"}},{"$f":"'Trial 7'!BM28","v":{"v":134.16707593275794,"d":"134.17"}},{"$f":"'Trial 7'!BO28","v":{"v":134.0103197128399,"d":"134.01"}},{"$f":"'Trial 7'!BP28","v":{"v":133.85364737183957,"d":"133.85"}},{"$f":"'Trial 7'!BQ28","v":{"v":133.69605065896943,"d":"133.70"}},{"$f":"'Trial 7'!BR28","v":{"v":133.5366358777944,"d":"133.54"}},{"$f":"'Trial 7'!BS28","v":{"v":133.3774990435361,"d":"133.38"}},{"$f":"'Trial 7'!BT28","v":{"v":133.2186273397753,"d":"133.22"}},{"$f":"'Trial 7'!BU28","v":{"v":133.06052962625057,"d":"133.06"}},{"$f":"'Trial 7'!BV28","v":{"v":132.90341766026972,"d":"132.90"}},{"$f":"'Trial 7'!BW28","v":{"v":132.74692904789867,"d":"132.75"}},{"$f":"'Trial 7'!BX28","v":{"v":132.58939574241344,"d":"132.59"}},{"$f":"'Trial 7'!BY28","v":{"v":132.43290952341144,"d":"132.43"}},{"$f":"'Trial 7'!BZ28","v":{"v":132.27552252078976,"d":"132.28"}},{"$f":"'Trial 7'!CB28","v":{"v":132.1167636672888,"d":"132.12"}},{"$f":"'Trial 7'!CC28","v":{"v":131.9561600035148,"d":"131.96"}},{"$f":"'Trial 7'!CD28","v":{"v":131.79542933272006,"d":"131.80"}},{"$f":"'Trial 7'!CE28","v":{"v":131.63539337687024,"d":"131.64"}},{"$f":"'Trial 7'!CF28","v":{"v":131.47619803926477,"d":"131.48"}},{"$f":"'Trial 7'!CG28","v":{"v":131.31532359808523,"d":"131.32"}},{"$f":"'Trial 7'!CH28","v":{"v":131.15406377402832,"d":"131.15"}},{"$f":"'Trial 7'!CI28","v":{"v":130.99369066646642,"d":"130.99"}},{"$f":"'Trial 7'!CJ28","v":{"v":130.83167780981523,"d":"130.83"}},{"$f":"'Trial 7'!CK28","v":{"v":130.66902204844172,"d":"130.67"}},{"$f":"'Trial 7'!CL28","v":{"v":130.5084028278541,"d":"130.51"}},{"$f":"'Trial 7'!CM28","v":{"v":130.34958353534623,"d":"130.35"}},{"$f":"'Trial 7'!CO28","v":{"v":130.19079410348257,"d":"130.19"}},{"$f":"'Trial 7'!CP28","v":{"v":130.03314927773368,"d":"130.03"}},{"$f":"'Trial 7'!CQ28","v":{"v":129.87739464379894,"d":"129.88"}},{"$f":"'Trial 7'!CR28","v":{"v":129.7217063871125,"d":"129.72"}},{"$f":"'Trial 7'!CS28","v":{"v":129.56675247924707,"d":"129.57"}},{"$f":"'Trial 7'!CT28","v":{"v":129.41273671731287,"d":"129.41"}},{"$f":"'Trial 7'!CU28","v":{"v":129.25903864265308,"d":"129.26"}},{"$f":"'Trial 7'!CV28","v":{"v":129.10548217369742,"d":"129.11"}},{"$f":"'Trial 7'!CW28","v":{"v":128.95307913187244,"d":"128.95"}},{"$f":"'Trial 7'!CX28","v":{"v":128.80088673656059,"d":"128.80"}},{"$f":"'Trial 7'!CY28","v":{"v":128.64882344911743,"d":"128.65"}},{"$f":"'Trial 7'!CZ28","v":{"v":128.4958006394699,"d":"128.50"}},{"$f":"'Trial 7'!DB28","v":{"v":128.34204521646328,"d":"128.34"}},{"$f":"'Trial 7'!DC28","v":{"v":128.18912657930258,"d":"128.19"}},{"$f":"'Trial 7'!DD28","v":{"v":128.03802520057027,"d":"128.04"}},{"$f":"'Trial 7'!DE28","v":{"v":127.88828489775653,"d":"127.89"}},{"$f":"'Trial 7'!DF28","v":{"v":127.73904056067845,"d":"127.74"}},{"$f":"'Trial 7'!DG28","v":{"v":127.59058004551481,"d":"127.59"}},{"$f":"'Trial 7'!DH28","v":{"v":127.44275997930467,"d":"127.44"}},{"$f":"'Trial 7'!DI28","v":{"v":127.29412677924877,"d":"127.29"}},{"$f":"'Trial 7'!DJ28","v":{"v":127.14460790473575,"d":"127.14"}},{"$f":"'Trial 7'!DK28","v":{"v":126.99564141127522,"d":"127.00"}},{"$f":"'Trial 7'!DL28","v":{"v":126.84707118631147,"d":"126.85"}},{"$f":"'Trial 7'!DM28","v":{"v":126.69766845512348,"d":"126.70"}},{"$f":"'Trial 7'!DO28","v":{"v":126.54892387716299,"d":"126.55"}},{"$f":"'Trial 7'!DP28","v":{"v":126.4009032980913,"d":"126.40"}},{"$f":"'Trial 7'!DQ28","v":{"v":126.25266253172441,"d":"126.25"}},{"$f":"'Trial 7'!DR28","v":{"v":126.10491075039927,"d":"126.10"}},{"$f":"'Trial 7'!DS28","v":{"v":125.95760317978566,"d":"125.96"}},{"$f":"'Trial 7'!DT28","v":{"v":125.80983012188325,"d":"125.81"}},{"$f":"'Trial 7'!DU28","v":{"v":125.66298673584622,"d":"125.66"}},{"$f":"'Trial 7'!DV28","v":{"v":125.51579478220657,"d":"125.52"}},{"$f":"'Trial 7'!DW28","v":{"v":125.36873566424609,"d":"125.37"}},{"$f":"'Trial 7'!DX28","v":{"v":125.2230274144295,"d":"125.22"}},{"$f":"'Trial 7'!DY28","v":{"v":125.07974261371407,"d":"125.08"}},{"$f":"'Trial 7'!DZ28","v":{"v":124.93572252653982,"d":"124.94"}},{"$f":"'Trial 7'!EB28","v":{"v":124.79175249523735,"d":"124.79"}},{"$f":"'Trial 7'!EC28","v":{"v":124.64742456767603,"d":"124.65"}},{"$f":"'Trial 7'!ED28","v":{"v":124.50486034092798,"d":"124.50"}},{"$f":"'Trial 7'!EE28","v":{"v":124.36203498553769,"d":"124.36"}},{"$f":"'Trial 7'!EF28","v":{"v":124.21984948959926,"d":"124.22"}},{"$f":"'Trial 7'!EG28","v":{"v":124.07868515610762,"d":"124.08"}},{"$f":"'Trial 7'!EH28","v":{"v":123.93733303823662,"d":"123.94"}},{"$f":"'Trial 7'!EI28","v":{"v":123.79500095066723,"d":"123.80"}},{"$f":"'Trial 7'!EJ28","v":{"v":123.65197208183936,"d":"123.65"}},{"$f":"'Trial 7'!EK28","v":{"v":123.51021889092615,"d":"123.51"}},{"$f":"'Trial 7'!EL28","v":{"v":123.36987992630812,"d":"123.37"}},{"$f":"'Trial 7'!EM28","v":{"v":123.23024944169248,"d":"123.23"}}]
[{"$f":"'Trial 8'!B28","v":{"v":140,"d":"140.00"}},{"$f":"'Trial 8'!C28","v":{"v":140,"d":"140.00"}},{"$f":"'Trial 8'!D28","v":{"v":139.9927342561348,"d":"139.99"}},{"$f":"'Trial 8'!E28","v":{"v":139.97944244034719,"d":"139.98"}},{"$f":"'Trial 8'!F28","v":{"v":139.96064240721861,"d":"139.96"}},{"$f":"'Trial 8'!G28","v":{"v":139.93681118120625,"d":"139.94"}},{"$f":"'Trial 8'!H28","v":{"v":139.90947248625184,"d":"139.91"}},{"$f":"'Trial 8'!I28","v":{"v":139.87753893851294,"d":"139.88"}},{"$f":"'Trial 8'!J28","v":{"v":139.84058367189854,"d":"139.84"}},{"$f":"'Trial 8'!K28","v":{"v":139.7994654225619,"d":"139.80"}},{"$f":"'Trial 8'!L28","v":{"v":139.7526580803578,"d":"139.75"}},{"$f":"'Trial 8'!M28","v":{"v":139.70201331030887,"d":"139.70"}},{"$f":"'Trial 8'!O28","v":{"v":139.64586532766532,"d":"139.65"}},{"$f":"'Trial 8'!P28","v":{"v":139.58566668734545,"d":"139.59"}},{"$f":"'Trial 8'!Q28","v":{"v":139.5227806733222,"d":"139.52"}},{"$f":"'Trial 8'!R28","v":{"v":139.4551085825678,"d":"139.46"}},{"$f":"'Trial 8'!S28","v":{"v":139.38210422937115,"d":"139.38"}},{"$f":"'Trial 8'!T28","v":{"v":139.30577562295142,"d":"139.31"}},{"$f":"'Trial 8'!U28","v":{"v":139.2259064077866,"d":"139.23"}},{"$f":"'Trial 8'!V28","v":{"v":139.143992890318,"d":"139.14"}},{"$f":"'Trial 8'!W28","v":{"v":139.05855565931523,"d":"139.06"}},{"$f":"'Trial 8'!X28","v":{"v":138.96994533853254,"d":"138.97"}},{"$f":"'Trial 8'!Y28","v":{"v":138.87944026727922,"d":"138.88"}},{"$f":"'Trial 8'!Z28","v":{"v":138.78504821018217,"d":"138.79"}},{"$f":"'Trial 8'!AB28","v":{"v":138.68649944642198,"d":"138.69"}},{"$f":"'Trial 8'!AC28","v":{"v":138.58446148636574,"d":"138.58"}},{"$f":"'Trial 8'!AD28","v":{"v":138.4796882571224,"d":"138.48"}},{"$f":"'Trial 8'!AE28","v":{"v":138.37236029406668,"d":"138.37"}},{"$f":"'Trial 8'!AF28","v":{"v":138.26191240870978,"d":"138.26"}},{"$f":"'Trial 8'!AG28","v":{"v":138.1488128385931,"d":"138.15"}},{"$f":"'Trial 8'!AH28","v":{"v":138.03248319242905,"d":"138.03"}},{"$f":"'Trial 8'!AI28","v":{"v":137.91328963156857,"d":"137.91"}},{"$f":"'Trial 8'!AJ28","v":{"v":137.79250366564804,"d":"137.79"}},{"$f":"'Trial 8'!AK28","v":{"v":137.6700533324521,"d":"137.67"}},{"$f":"'Trial 8'!AL28","v":{"v":137.54510677205775,"d":"137.55"}},{"$f":"'Trial 8'!AM28","v":{"v":137.4182685364016,"d":"137.42"}},{"$f":"'Trial 8'!AO28","v":{"v":137.29071747347953,"d":"137.29"}},{"$f":"'Trial 8'!AP28","v":{"v":137.16239551924187,"d":"137.16"}},{"$f":"'Trial 8'!AQ28","v":{"v":137.0332226364517,"d":"137.03"}},{"$f":"'Trial 8'!AR28","v":{"v":136.90243895092425,"d":"136.90"}},{"$f":"'Trial 8'!AS28","v":{"v":136.77006723535146,"d":"136.77"}},{"$f":"'Trial 8'!AT28","v":{"v":136.63514124081559,"d":"136.64"}},{"$f":"'Trial 8'!AU28","v":{"v":136.49777849746678,"d":"136.50"}},{"$f":"'Trial 8'!AV28","v":{"v":136.3587105934176,"d":"136.36"}},{"$f":"'Trial 8'!AW28","v":{"v":136.21882077818833,"d":"136.22"}},{"$f":"'Trial 8'!AX28","v":{"v":136.07774366472051,"d":"136.08"}},{"$f":"'Trial 8'!AY28","v":{"v":135.93563828497878,"d":"135.94"}},{"$f":"'Trial 8'!AZ28","v":{"v":135.79243700411075,"d":"135.79"}},{"$f":"'Trial 8'!BB28","v":{"v":135.64855584663695,"d":"135.65"}},{"$f":"'Trial 8'!BC28","v":{"v":135.50385874609142,"d":"135.50"}},{"$f":"'Trial 8'!BD28","v":{"v":135.3577272420013,"d":"135.36"}},{"$f":"'Trial 8'!BE28","v":{"v":135.2115362135369,"d":"135.21"}},{"$f":"'Trial 8'!BF28","v":{"v":135.0655927014256,"d":"135.07"}},{"$f":"'Trial 8'!BG28","v":{"v":134.91913101967708,"d":"134.92"}},{"$f":"'Trial 8'!BH28","v":{"v":134.7721353049909,"d":"134.77"}},{"$f":"'Trial 8'!BI28","v":{"v":134.62531875542868,"d":"134.63"}},{"$f":"'Trial 8'!BJ28","v":{"v":134.47701388384263,"d":"134.48"}},{"$f":"'Trial 8'!BK28","v":{"v":134.32795856883183,"d":"134.33"}},{"$f":"'Trial 8'!BL28","v":{"v":134.17877113441304,"d":"134.18"}},{"$f":"'Trial 8'!BM28","v":{"v":134.02940690029166,"d":"134.03"}},{"$f":"'Trial 8'!BO28","v":{"v":133.87994139189564,"d":"133.88"}},{"$f":"'Trial 8'!BP28","v":{"v":133.7296735643109,"d":"133.73"}},{"$f":"'Trial 8'!BQ28","v":{"v":133.57949606689803,"d":"133.58"}},{"$f":"'Trial 8'!BR28","v":{"v":133.42997402614378,"d":"133.43"}},{"$f":"'Trial 8'!BS28","v":{"v":133.28074589798953,"d":"133.28"}},{"$f":"'Trial 8'!BT28","v":{"v":133.13261127552582,"d":"133.13"}},{"$f":"'Trial 8'!BU28","v":{"v":132.98448683449024,"d":"132.98"}},{"$f":"'Trial 8'!BV28","v":{"v":132.83591938118047,"d":"132.84"}},{"$f":"'Trial 8'!BW28","v":{"v":132.68732970702854,"d":"132.69"}},{"$f":"'Trial 8'!BX28","v":{"v":132.53954121363626,"d":"132.54"}},{"$f":"'Trial 8'!BY28","v":{"v":132.39212641694306,"d":"132.39"}},{"$f":"'Trial 8'!BZ28","v":{"v":132.24507331830995,"d":"132.25"}},{"$f":"'Trial 8'!CB28","v":{"v":132.09735934281082,"d":"132.10"}},{"$f":"'Trial 8'!CC28","v":{"v":131.94807200236542,"d":"131.95"}},{"$f":"'Trial 8'!CD28","v":{"v":131.79809662387223,"d":"131.80"}},{"$f":"'Trial 8'!CE28","v":{"v":131.64792804631932,"d":"131.65"}},{"$f":"'Trial 8'!CF28","v":{"v":131.4965756117656,"d":"131.50"}},{"$f":"'Trial 8'!CG28","v":{"v":131.3453046530883,"d":"131.35"}},{"$f":"'Trial 8'!CH28","v":{"v":131.19377120708072,"d":"131.19"}},{"$f":"'Trial 8'!CI28","v":{"v":131.04379566358458,"d":"131.04"}},{"$f":"'Trial 8'!CJ28","v":{"v":130.89378283349052,"d":"130.89"}},{"$f":"'Trial 8'!CK28","v":{"v":130.74305898734502,"d":"130.74"}},{"$f":"'Trial 8'!CL28","v":{"v":130.5928237070931,"d":"130.59"}},{"$f":"'Trial 8'!CM28","v":{"v":130.44337929182586,"d":"130.44"}},{"$f":"'Trial 8'!CO28","v":{"v":130.29296472869703,"d":"130.29"}},{"$f":"'Trial 8'!CP28","v":{"v":130.143745511698,"d":"130.14"}},{"$f":"'Trial 8'!CQ28","v":{"v":129.9957565688118,"d":"130.00"}},{"$f":"'Trial 8'!CR28","v":{"v":129.8480000454924,"d":"129.85"}},{"$f":"'Trial 8'!CS28","v":{"v":129.70086465048738,"d":"129.70"}},{"$f":"'Trial 8'!CT28","v":{"v":129.55427118172565,"d":"129.55"}},{"$f":"'Trial 8'!CU28","v":{"v":129.4058842020191,"d":"129.41"}},{"$f":"'Trial 8'!CV28","v":{"v":129.25747798040268,"d":"129.26"}},{"$f":"'Trial 8'!CW28","v":{"v":129.11018680082267,"d":"129.11"}},{"$f":"'Trial 8'!CX28","v":{"v":128.96300845301008,"d":"128.96"}},{"$f":"'Trial 8'!CY28","v":{"v":128.814302209794,"d":"128.81"}},{"$f":"'Trial 8'!CZ28","v":{"v":128.66688852056237,"d":"128.67"}},{"$f":"'Trial 8'!DB28","v":{"v":128.52138641830422,"d":"128.52"}},{"$f":"'Trial 8'!DC28","v":{"v":128.37531255715444,"d":"128.38"}},{"$f":"'Trial 8'!DD28","v":{"v":128.23113843164586,"d":"128.23"}},{"$f":"'Trial 8'!DE28","v":{"v":128.0865380040845,"d":"128.09"}},{"$f":"'Trial 8'!DF28","v":{"v":127.94113366378527,"d":"127.94"}},{"$f":"'Trial 8'!DG28","v":{"v":127.79566289139912,"d":"127.80"}},{"$f":"'Trial 8'!DH28","v":{"v":127.65053105066596,"d":"127.65"}},{"$f":"'Trial 8'!DI28","v":{"v":127.50511085887463,"d":"127.51"}},{"$f":"'Trial 8'!DJ28","v":{"v":127.35985269602845,"d":"127.36"}},{"$f":"'Trial 8'!DK28","v":{"v":127.21384485555356,"d":"127.21"}},{"$f":"'Trial 8'!DL28","v":{"v":127.06977372418734,"d":"127.07"}},{"$f":"'Trial 8'!DM28","v":{"v":126.92561599922065,"d":"126.93"}},{"$f":"'Trial 8'!DO28","v":{"v":126.78319949699582,"d":"126.78"}},{"$f":"'Trial 8'!DP28","v":{"v":126.64086099451134,"d":"126.64"}},{"$f":"'Trial 8'!DQ28","v":{"v":126.49752145530769,"d":"126.50"}},{"$f":"'Trial 8'!DR28","v":{"v":126.35356359632053,"d":"126.35"}},{"$f":"'Trial 8'!DS28","v":{"v":126.21153491941878,"d":"126.21"}},{"$f":"'Trial 8'!DT28","v":{"v":126.07112143431205,"d":"126.07"}},{"$f":"'Trial 8'!DU28","v":{"v":125.93068354150944,"d":"125.93"}},{"$f":"'Trial 8'!DV28","v":{"v":125.79185751061074,"d":"125.79"}},{"$f":"'Trial 8'!DW28","v":{"v":125.65446973690462,"d":"125.65"}},{"$f":"'Trial 8'!DX28","v":{"v":125.51758323129869,"d":"125.52"}},{"$f":"'Trial 8'!DY28","v":{"v":125.38160198307403,"d":"125.38"}},{"$f":"'Trial 8'!DZ28","v":{"v":125.24472259728063,"d":"125.24"}},{"$f":"'Trial 8'!EB28","v":{"v":125.10859965613872,"d":"125.11"}},{"$f":"'Trial 8'!EC28","v":{"v":124.97287982543298,"d":"124.97"}},{"$f":"'Trial 8'!ED28","v":{"v":124.83618026292042,"d":"124.84"}},{"$f":"'Trial 8'!EE28","v":{"v":124.69864701578196,"d":"124.70"}},{"$f":"'Trial 8'!EF28","v":{"v":124.56213277395914,"d":"124.56"}},{"$f":"'Trial 8'!EG28","v":{"v":124.42557824034016,"d":"124.43"}},{"$f":"'Trial 8'!EH28","v":{"v":124.28883731461822,"d":"124.29"}},{"$f":"'Trial 8'!EI28","v":{"v":124.15270718124073,"d":"124.15"}},{"$f":"'Trial 8'!EJ28","v":{"v":124.01824957854994,"d":"124.02"}},{"$f":"'Trial 8'!EK28","v":{"v":123.88351675084593,"d":"123.88"}},{"$f":"'Trial 8'!EL28","v":{"v":123.7494221274185,"d":"123.75"}},{"$f":"'Trial 8'!EM28","v":{"v":123.61447743595187,"d":"123.61"}}]
[{"$f":"'(Other Computations)'!B105","v":{"v":1120,"d":"1,120.00"}},{"$f":"'(Other Computations)'!C105","v":{"v":1120,"d":"1,120.00"}},{"$f":"'(Other Computations)'!D105","v":{"v":1119.946763313177,"d":"1,119.95"}},{"$f":"'(Other Computations)'!E105","v":{"v":1119.845282613153,"d":"1,119.85"}},{"$f":"'(Other Computations)'!F105","v":{"v":1119.7014325879215,"d":"1,119.70"}},{"$f":"'(Other Computations)'!G105","v":{"v":1119.5182826731095,"d":"1,119.52"}},{"$f":"'(Other Computations)'!H105","v":{"v":1119.2993557424793,"d":"1,119.30"}},{"$f":"'(Other Computations)'!I105","v":{"v":1119.0426021411488,"d":"1,119.04"}},{"$f":"'(Other Computations)'!J105","v":{"v":1118.7449353292218,"d":"1,118.74"}},{"$f":"'(Other Computations)'!K105","v":{"v":1118.4095932088987,"d":"1,118.41"}},{"$f":"'(Other Computations)'!L105","v":{"v":1118.0380652504973,"d":"1,118.04"}},{"$f":"'(Other Computations)'!M105","v":{"v":1117.6314867592137,"d":"1,117.63"}},{"$f":"'(Other Computations)'!O105","v":{"v":1117.1904599255436,"d":"1,117.19"}},{"$f":"'(Other Computations)'!P105","v":{"v":1116.7146573772297,"d":"1,116.71"}},{"$f":"'(Other Computations)'!Q105","v":{"v":1116.20783795861,"d":"1,116.21"}},{"$f":"'(Other Computations)'!R105","v":{"v":1115.6702180097523,"d":"1,115.67"}},{"$f":"'(Other Computations)'!S105","v":{"v":1115.1038182940692,"d":"1,115.10"}},{"$f":"'(Other Computations)'!T105","v":{"v":1114.510630570229,"d":"1,114.51"}},{"$f":"'(Other Computations)'!U105","v":{"v":1113.8825488486011,"d":"1,113.88"}},{"$f":"'(Other Computations)'!V105","v":{"v":1113.228339013923,"d":"1,113.23"}},{"$f":"'(Other Computations)'!W105","v":{"v":1112.5435033745935,"d":"1,112.54"}},{"$f":"'(Other Computations)'!X105","v":{"v":1111.8296913526349,"d":"1,111.83"}},{"$f":"'(Other Computations)'!Y105","v":{"v":1111.0941826312887,"d":"1,111.09"}},{"$f":"'(Other Computations)'!Z105","v":{"v":1110.3326785583815,"d":"1,110.33"}},{"$f":"'(Other Computations)'!AB105","v":{"v":1109.5465156976145,"d":"1,109.55"}},{"$f":"'(Other Computations)'!AC105","v":{"v":1108.7314649860919,"d":"1,108.73"}},{"$f":"'(Other Computations)'!AD105","v":{"v":1107.8943732237656,"d":"1,107.89"}},{"$f":"'(Other Computations)'!AE105","v":{"v":1107.0382856983451,"d":"1,107.04"}},{"$f":"'(Other Computations)'!AF105","v":{"v":1106.162241401136,"d":"1,106.16"}},{"$f":"'(Other Computations)'!AG105","v":{"v":1105.2662282963472,"d":"1,105.27"}},{"$f":"'(Other Computations)'!AH105","v":{"v":1104.3472220740546,"d":"1,104.35"}},{"$f":"'(Other Computations)'!AI105","v":{"v":1103.411278912347,"d":"1,103.41"}},{"$f":"'(Other Computations)'!AJ105","v":{"v":1102.461200028868,"d":"1,102.46"}},{"$f":"'(Other Computations)'!AK105","v":{"v":1101.489880274225,"d":"1,101.49"}},{"$f":"'(Other Computations)'!AL105","v":{"v":1100.5027400744466,"d":"1,100.50"}},{"$f":"'(Other Computations)'!AM105","v":{"v":1099.5014520409245,"d":"1,099.50"}},{"$f":"'(Other Computations)'!AO105","v":{"v":1098.487438084172,"d":"1,098.49"}},{"$f":"'(Other Computations)'!AP105","v":{"v":1097.4563633560188,"d":"1,097.46"}},{"$f":"'(Other Computations)'!AQ105","v":{"v":1096.4115160856888,"d":"1,096.41"}},{"$f":"'(Other Computations)'!AR105","v":{"v":1095.356411518013,"d":"1,095.36"}},{"$f":"'(Other Computations)'!AS105","v":{"v":1094.2861323505786,"d":"1,094.29"}},{"$f":"'(Other Computations)'!AT105","v":{"v":1093.2031601421572,"d":"1,093.20"}},{"$f":"'(Other Computations)'!AU105","v":{"v":1092.111120617746,"d":"1,092.11"}},{"$f":"'(Other Computations)'!AV105","v":{"v":1091.0074255713864,"d":"1,091.01"}},{"$f":"'(Other Computations)'!AW105","v":{"v":1089.8917260632916,"d":"1,089.89"}},{"$f":"'(Other Computations)'!AX105","v":{"v":1088.7660008580197,"d":"1,088.77"}},{"$f":"'(Other Computations)'!AY105","v":{"v":1087.6273798413763,"d":"1,087.63"}},{"$f":"'(Other Computations)'!AZ105","v":{"v":1086.4784008770498,"d":"1,086.48"}},{"$f":"'(Other Computations)'!BB105","v":{"v":1085.32098667412,"d":"1,085.32"}},{"$f":"'(Other Computations)'!BC105","v":{"v":1084.151323842423,"d":"1,084.15"}},{"$f":"'(Other Computations)'!BD105","v":{"v":1082.9704927073676,"d":"1,082.97"}},{"$f":"'(Other Computations)'!BE105","v":{"v":1081.7812970293444,"d":"1,081.78"}},{"$f":"'(Other Computations)'!BF105","v":{"v":1080.5851613246234,"d":"1,080.59"}},{"$f":"'(Other Computations)'!BG105","v":{"v":1079.3815580475405,"d":"1,079.38"}},{"$f":"'(Other Computations)'!BH105","v":{"v":1078.1728877507003,"d":"1,078.17"}},{"$f":"'(Other Computations)'!BI105","v":{"v":1076.959493161086,"d":"1,076.96"}},{"$f":"'(Other Computations)'!BJ105","v":{"v":1075.737087499405,"d":"1,075.74"}},{"$f":"'(Other Computations)'!BK105","v":{"v":1074.5080360053475,"d":"1,074.51"}},{"$f":"'(Other Computations)'!BL105","v":{"v":1073.275937224485,"d":"1,073.28"}},{"$f":"'(Other Computations)'!BM105","v":{"v":1072.0384999733378,"d":"1,072.04"}},{"$f":"'(Other Computations)'!BO105","v":{"v":1070.7987388215881,"d":"1,070.80"}},{"$f":"'(Other Computations)'!BP105","v":{"v":1069.5546978518307,"d":"1,069.55"}},{"$f":"'(Other Computations)'!BQ105","v":{"v":1068.3064557676319,"d":"1,068.31"}},{"$f":"'(Other Computations)'!BR105","v":{"v":1067.05581264075,"d":"1,067.06"}},{"$f":"'(Other Computations)'!BS105","v":{"v":1065.8054897281881,"d":"1,065.81"}},{"$f":"'(Other Computations)'!BT105","v":{"v":1064.554892779184,"d":"1,064.55"}},{"$f":"'(Other Computations)'!BU105","v":{"v":1063.3003224259714,"d":"1,063.30"}},{"$f":"'(Other Computations)'!BV105","v":{"v":1062.0480158277169,"d":"1,062.05"}},{"$f":"'(Other Computations)'!BW105","v":{"v":1060.7918456802304,"d":"1,060.79"}},{"$f":"'(Other Computations)'!BX105","v":{"v":1059.533633213907,"d":"1,059.53"}},{"$f":"'(Other Computations)'!BY105","v":{"v":1058.2775135571883,"d":"1,058.28"}},{"$f":"'(Other Computations)'!BZ105","v":{"v":1057.0180348637996,"d":"1,057.02"}},{"$f":"'(Other Computations)'!CB105","v":{"v":1055.7604963265821,"d":"1,055.76"}},{"$f":"'(Other Computations)'!CC105","v":{"v":1054.5025558549721,"d":"1,054.50"}},{"$f":"'(Other Computations)'!CD105","v":{"v":1053.2436831779803,"d":"1,053.24"}},{"$f":"'(Other Computations)'!CE105","v":{"v":1051.9835977269188,"d":"1,051.98"}},{"$f":"'(Other Computations)'!CF105","v":{"v":1050.7252307324018,"d":"1,050.73"}},{"$f":"'(Other Computations)'!CG105","v":{"v":1049.4646355899763,"d":"1,049.46"}},{"$f":"'(Other Computations)'!CH105","v":{"v":1048.2041898983089,"d":"1,048.20"}},{"$f":"'(Other Computations)'!CI105","v":{"v":1046.9508721979164,"d":"1,046.95"}},{"$f":"'(Other Computations)'!CJ105","v":{"v":1045.6991675372947,"d":"1,045.70"}},{"$f":"'(Other Computations)'!CK105","v":{"v":1044.4505663140262,"d":"1,044.45"}},{"$f":"'(Other Computations)'!CL105","v":{"v":1043.2042166867602,"d":"1,043.20"}},{"$f":"'(Other Computations)'!CM105","v":{"v":1041.9634096121194,"d":"1,041.96"}},{"$f":"'(Other Computations)'!CO105","v":{"v":1040.7233251293665,"d":"1,040.72"}},{"$f":"'(Other Computations)'!CP105","v":{"v":1039.4884553814586,"d":"1,039.49"}},{"$f":"'(Other Computations)'!CQ105","v":{"v":1038.2568641823461,"d":"1,038.26"}},{"$f":"'(Other Computations)'!CR105","v":{"v":1037.028824833181,"d":"1,037.03"}},{"$f":"'(Other Computations)'!CS105","v":{"v":1035.8040770549792,"d":"1,035.80"}},{"$f":"'(Other Computations)'!CT105","v":{"v":1034.58138476476,"d":"1,034.58"}},{"$f":"'(Other Computations)'!CU105","v":{"v":1033.3557369901084,"d":"1,033.36"}},{"$f":"'(Other Computations)'!CV105","v":{"v":1032.1298142045546,"d":"1,032.13"}},{"$f":"'(Other Computations)'!CW105","v":{"v":1030.9117451673537,"d":"1,030.91"}},{"$f":"'(Other Computations)'!CX105","v":{"v":1029.6951511963985,"d":"1,029.70"}},{"$f":"'(Other Computations)'!CY105","v":{"v":1028.480639238854,"d":"1,028.48"}},{"$f":"'(Other Computations)'!CZ105","v":{"v":1027.26735343888,"d":"1,027.27"}},{"$f":"'(Other Computations)'!DB105","v":{"v":1026.0585396352978,"d":"1,026.06"}},{"$f":"'(Other Computations)'!DC105","v":{"v":1024.8515523133117,"d":"1,024.85"}},{"$f":"'(Other Computations)'!DD105","v":{"v":1023.6497464148742,"d":"1,023.65"}},{"$f":"'(Other Computations)'!DE105","v":{"v":1022.4481559398869,"d":"1,022.45"}},{"$f":"'(Other Computations)'!DF105","v":{"v":1021.2486041899609,"d":"1,021.25"}},{"$f":"'(Other Computations)'!DG105","v":{"v":1020.053974667853,"d":"1,020.05"}},{"$f":"'(Other Computations)'!DH105","v":{"v":1018.8626134940823,"d":"1,018.86"}},{"$f":"'(Other Computations)'!DI105","v":{"v":1017.6738618757734,"d":"1,017.67"}},{"$f":"'(Other Computations)'!DJ105","v":{"v":1016.4873209077431,"d":"1,016.49"}},{"$f":"'(Other Computations)'!DK105","v":{"v":1015.3023545025889,"d":"1,015.30"}},{"$f":"'(Other Computations)'!DL105","v":{"v":1014.1211091097093,"d":"1,014.12"}},{"$f":"'(Other Computations)'!DM105","v":{"v":1012.9431149599405,"d":"1,012.94"}},{"$f":"'(Other Computations)'!DO105","v":{"v":1011.7667651315448,"d":"1,011.77"}},{"$f":"'(Other Computations)'!DP105","v":{"v":1010.5929007752343,"d":"1,010.59"}},{"$f":"'(Other Computations)'!DQ105","v":{"v":1009.4254189846173,"d":"1,009.43"}},{"$f":"'(Other Computations)'!DR105","v":{"v":1008.2606224619128,"d":"1,008.26"}},{"$f":"'(Other Computations)'!DS105","v":{"v":1007.1034445252455,"d":"1,007.10"}},{"$f":"'(Other Computations)'!DT105","v":{"v":1005.950969887819,"d":"1,005.95"}},{"$f":"'(Other Computations)'!DU105","v":{"v":1004.8028493538924,"d":"1,004.80"}},{"$f":"'(Other Computations)'!DV105","v":{"v":1003.6621376050932,"d":"1,003.66"}},{"$f":"'(Other Computations)'!DW105","v":{"v":1002.5268095844756,"d":"1,002.53"}},{"$f":"'(Other Computations)'!DX105","v":{"v":1001.3977588966075,"d":"1,001.40"}},{"$f":"'(Other Computations)'!DY105","v":{"v":1000.2736752520636,"d":"1,000.27"}},{"$f":"'(Other Computations)'!DZ105","v":{"v":999.1540967099048,"d":"999.15"}},{"$f":"'(Other Computations)'!EB105","v":{"v":998.039327680753,"d":"998.04"}},{"$f":"'(Other Computations)'!EC105","v":{"v":996.9254457412586,"d":"996.93"}},{"$f":"'(Other Computations)'!ED105","v":{"v":995.8175828086556,"d":"995.82"}},{"$f":"'(Other Computations)'!EE105","v":{"v":994.7111307611594,"d":"994.71"}},{"$f":"'(Other Computations)'!EF105","v":{"v":993.6076094384044,"d":"993.61"}},{"$f":"'(Other Computations)'!EG105","v":{"v":992.5092205262123,"d":"992.51"}},{"$f":"'(Other Computations)'!EH105","v":{"v":991.4163874659895,"d":"991.42"}},{"$f":"'(Other Computations)'!EI105","v":{"v":990.3259325449068,"d":"990.33"}},{"$f":"'(Other Computations)'!EJ105","v":{"v":989.2389164930677,"d":"989.24"}},{"$f":"'(Other Computations)'!EK105","v":{"v":988.1511015566068,"d":"988.15"}},{"$f":"'(Other Computations)'!EL105","v":{"v":987.0670278924587,"d":"987.07"}},{"$f":"'(Other Computations)'!EM105","v":{"v":985.9892977271982,"d":"985.99"}}]
[{"$f":"'(Intermediate Computations)'!B59","v":"Jan 2010"},{"$f":"'(Intermediate Computations)'!C59","v":"Feb 2010"},{"$f":"'(Intermediate Computations)'!D59","v":"Mar 2010"},{"$f":"'(Intermediate Computations)'!E59","v":"Apr 2010"},{"$f":"'(Intermediate Computations)'!F59","v":"May 2010"},{"$f":"'(Intermediate Computations)'!G59","v":"Jun 2010"},{"$f":"'(Intermediate Computations)'!H59","v":"Jul 2010"},{"$f":"'(Intermediate Computations)'!I59","v":"Aug 2010"},{"$f":"'(Intermediate Computations)'!J59","v":"Sep 2010"},{"$f":"'(Intermediate Computations)'!K59","v":"Oct 2010"},{"$f":"'(Intermediate Computations)'!L59","v":"Nov 2010"},{"$f":"'(Intermediate Computations)'!M59","v":"Dec 2010"},{"$f":"'(Intermediate Computations)'!O59","v":"Jan 2011"},{"$f":"'(Intermediate Computations)'!P59","v":"Feb 2011"},{"$f":"'(Intermediate Computations)'!Q59","v":"Mar 2011"},{"$f":"'(Intermediate Computations)'!R59","v":"Apr 2011"},{"$f":"'(Intermediate Computations)'!S59","v":"May 2011"},{"$f":"'(Intermediate Computations)'!T59","v":"Jun 2011"},{"$f":"'(Intermediate Computations)'!U59","v":"Jul 2011"},{"$f":"'(Intermediate Computations)'!V59","v":"Aug 2011"},{"$f":"'(Intermediate Computations)'!W59","v":"Sep 2011"},{"$f":"'(Intermediate Computations)'!X59","v":"Oct 2011"},{"$f":"'(Intermediate Computations)'!Y59","v":"Nov 2011"},{"$f":"'(Intermediate Computations)'!Z59","v":"Dec 2011"},{"$f":"'(Intermediate Computations)'!AB59","v":"Jan 2012"},{"$f":"'(Intermediate Computations)'!AC59","v":"Feb 2012"},{"$f":"'(Intermediate Computations)'!AD59","v":"Mar 2012"},{"$f":"'(Intermediate Computations)'!AE59","v":"Apr 2012"},{"$f":"'(Intermediate Computations)'!AF59","v":"May 2012"},{"$f":"'(Intermediate Computations)'!AG59","v":"Jun 2012"},{"$f":"'(Intermediate Computations)'!AH59","v":"Jul 2012"},{"$f":"'(Intermediate Computations)'!AI59","v":"Aug 2012"},{"$f":"'(Intermediate Computations)'!AJ59","v":"Sep 2012"},{"$f":"'(Intermediate Computations)'!AK59","v":"Oct 2012"},{"$f":"'(Intermediate Computations)'!AL59","v":"Nov 2012"},{"$f":"'(Intermediate Computations)'!AM59","v":"Dec 2012"},{"$f":"'(Intermediate Computations)'!AO59","v":"Jan 2013"},{"$f":"'(Intermediate Computations)'!AP59","v":"Feb 2013"},{"$f":"'(Intermediate Computations)'!AQ59","v":"Mar 2013"},{"$f":"'(Intermediate Computations)'!AR59","v":"Apr 2013"},{"$f":"'(Intermediate Computations)'!AS59","v":"May 2013"},{"$f":"'(Intermediate Computations)'!AT59","v":"Jun 2013"},{"$f":"'(Intermediate Computations)'!AU59","v":"Jul 2013"},{"$f":"'(Intermediate Computations)'!AV59","v":"Aug 2013"},{"$f":"'(Intermediate Computations)'!AW59","v":"Sep 2013"},{"$f":"'(Intermediate Computations)'!AX59","v":"Oct 2013"},{"$f":"'(Intermediate Computations)'!AY59","v":"Nov 2013"},{"$f":"'(Intermediate Computations)'!AZ59","v":"Dec 2013"},{"$f":"'(Intermediate Computations)'!BB59","v":"Jan 2014"},{"$f":"'(Intermediate Computations)'!BC59","v":"Feb 2014"},{"$f":"'(Intermediate Computations)'!BD59","v":"Mar 2014"},{"$f":"'(Intermediate Computations)'!BE59","v":"Apr 2014"},{"$f":"'(Intermediate Computations)'!BF59","v":"May 2014"},{"$f":"'(Intermediate Computations)'!BG59","v":"Jun 2014"},{"$f":"'(Intermediate Computations)'!BH59","v":"Jul 2014"},{"$f":"'(Intermediate Computations)'!BI59","v":"Aug 2014"},{"$f":"'(Intermediate Computations)'!BJ59","v":"Sep 2014"},{"$f":"'(Intermediate Computations)'!BK59","v":"Oct 2014"},{"$f":"'(Intermediate Computations)'!BL59","v":"Nov 2014"},{"$f":"'(Intermediate Computations)'!BM59","v":"Dec 2014"},{"$f":"'(Intermediate Computations)'!BO59","v":"Jan 2015"},{"$f":"'(Intermediate Computations)'!BP59","v":"Feb 2015"},{"$f":"'(Intermediate Computations)'!BQ59","v":"Mar 2015"},{"$f":"'(Intermediate Computations)'!BR59","v":"Apr 2015"},{"$f":"'(Intermediate Computations)'!BS59","v":"May 2015"},{"$f":"'(Intermediate Computations)'!BT59","v":"Jun 2015"},{"$f":"'(Intermediate Computations)'!BU59","v":"Jul 2015"},{"$f":"'(Intermediate Computations)'!BV59","v":"Aug 2015"},{"$f":"'(Intermediate Computations)'!BW59","v":"Sep 2015"},{"$f":"'(Intermediate Computations)'!BX59","v":"Oct 2015"},{"$f":"'(Intermediate Computations)'!BY59","v":"Nov 2015"},{"$f":"'(Intermediate Computations)'!BZ59","v":"Dec 2015"},{"$f":"'(Intermediate Computations)'!CB59","v":"Jan 2016"},{"$f":"'(Intermediate Computations)'!CC59","v":"Feb 2016"},{"$f":"'(Intermediate Computations)'!CD59","v":"Mar 2016"},{"$f":"'(Intermediate Computations)'!CE59","v":"Apr 2016"},{"$f":"'(Intermediate Computations)'!CF59","v":"May 2016"},{"$f":"'(Intermediate Computations)'!CG59","v":"Jun 2016"},{"$f":"'(Intermediate Computations)'!CH59","v":"Jul 2016"},{"$f":"'(Intermediate Computations)'!CI59","v":"Aug 2016"},{"$f":"'(Intermediate Computations)'!CJ59","v":"Sep 2016"},{"$f":"'(Intermediate Computations)'!CK59","v":"Oct 2016"},{"$f":"'(Intermediate Computations)'!CL59","v":"Nov 2016"},{"$f":"'(Intermediate Computations)'!CM59","v":"Dec 2016"},{"$f":"'(Intermediate Computations)'!CO59","v":"Jan 2017"},{"$f":"'(Intermediate Computations)'!CP59","v":"Feb 2017"},{"$f":"'(Intermediate Computations)'!CQ59","v":"Mar 2017"},{"$f":"'(Intermediate Computations)'!CR59","v":"Apr 2017"},{"$f":"'(Intermediate Computations)'!CS59","v":"May 2017"},{"$f":"'(Intermediate Computations)'!CT59","v":"Jun 2017"},{"$f":"'(Intermediate Computations)'!CU59","v":"Jul 2017"},{"$f":"'(Intermediate Computations)'!CV59","v":"Aug 2017"},{"$f":"'(Intermediate Computations)'!CW59","v":"Sep 2017"},{"$f":"'(Intermediate Computations)'!CX59","v":"Oct 2017"},{"$f":"'(Intermediate Computations)'!CY59","v":"Nov 2017"},{"$f":"'(Intermediate Computations)'!CZ59","v":"Dec 2017"},{"$f":"'(Intermediate Computations)'!DB59","v":"Jan 2018"},{"$f":"'(Intermediate Computations)'!DC59","v":"Feb 2018"},{"$f":"'(Intermediate Computations)'!DD59","v":"Mar 2018"},{"$f":"'(Intermediate Computations)'!DE59","v":"Apr 2018"},{"$f":"'(Intermediate Computations)'!DF59","v":"May 2018"},{"$f":"'(Intermediate Computations)'!DG59","v":"Jun 2018"},{"$f":"'(Intermediate Computations)'!DH59","v":"Jul 2018"},{"$f":"'(Intermediate Computations)'!DI59","v":"Aug 2018"},{"$f":"'(Intermediate Computations)'!DJ59","v":"Sep 2018"},{"$f":"'(Intermediate Computations)'!DK59","v":"Oct 2018"},{"$f":"'(Intermediate Computations)'!DL59","v":"Nov 2018"},{"$f":"'(Intermediate Computations)'!DM59","v":"Dec 2018"},{"$f":"'(Intermediate Computations)'!DO59","v":"Jan 2019"},{"$f":"'(Intermediate Computations)'!DP59","v":"Feb 2019"},{"$f":"'(Intermediate Computations)'!DQ59","v":"Mar 2019"},{"$f":"'(Intermediate Computations)'!DR59","v":"Apr 2019"},{"$f":"'(Intermediate Computations)'!DS59","v":"May 2019"},{"$f":"'(Intermediate Computations)'!DT59","v":"Jun 2019"},{"$f":"'(Intermediate Computations)'!DU59","v":"Jul 2019"},{"$f":"'(Intermediate Computations)'!DV59","v":"Aug 2019"},{"$f":"'(Intermediate Computations)'!DW59","v":"Sep 2019"},{"$f":"'(Intermediate Computations)'!DX59","v":"Oct 2019"},{"$f":"'(Intermediate Computations)'!DY59","v":"Nov 2019"},{"$f":"'(Intermediate Computations)'!DZ59","v":"Dec 2019"},{"$f":"'(Intermediate Computations)'!EB59","v":"Jan 2020"},{"$f":"'(Intermediate Computations)'!EC59","v":"Feb 2020"},{"$f":"'(Intermediate Computations)'!ED59","v":"Mar 2020"},{"$f":"'(Intermediate Computations)'!EE59","v":"Apr 2020"},{"$f":"'(Intermediate Computations)'!EF59","v":"May 2020"},{"$f":"'(Intermediate Computations)'!EG59","v":"Jun 2020"},{"$f":"'(Intermediate Computations)'!EH59","v":"Jul 2020"},{"$f":"'(Intermediate Computations)'!EI59","v":"Aug 2020"},{"$f":"'(Intermediate Computations)'!EJ59","v":"Sep 2020"},{"$f":"'(Intermediate Computations)'!EK59","v":"Oct 2020"},{"$f":"'(Intermediate Computations)'!EL59","v":"Nov 2020"},{"$f":"'(Intermediate Computations)'!EM59","v":"Dec 2020"}]
[{"$f":"'(Intermediate Computations)'!B56","v":"2010-01-01"},{"$f":"'(Intermediate Computations)'!C56","v":"2010-02-01"},{"$f":"'(Intermediate Computations)'!D56","v":"2010-03-01"},{"$f":"'(Intermediate Computations)'!E56","v":"2010-04-01"},{"$f":"'(Intermediate Computations)'!F56","v":"2010-05-01"},{"$f":"'(Intermediate Computations)'!G56","v":"2010-06-01"},{"$f":"'(Intermediate Computations)'!H56","v":"2010-07-01"},{"$f":"'(Intermediate Computations)'!I56","v":"2010-08-01"},{"$f":"'(Intermediate Computations)'!J56","v":"2010-09-01"},{"$f":"'(Intermediate Computations)'!K56","v":"2010-10-01"},{"$f":"'(Intermediate Computations)'!L56","v":"2010-11-01"},{"$f":"'(Intermediate Computations)'!M56","v":"2010-12-01"},{"$f":"'(Intermediate Computations)'!O56","v":"2011-01-01"},{"$f":"'(Intermediate Computations)'!P56","v":"2011-02-01"},{"$f":"'(Intermediate Computations)'!Q56","v":"2011-03-01"},{"$f":"'(Intermediate Computations)'!R56","v":"2011-04-01"},{"$f":"'(Intermediate Computations)'!S56","v":"2011-05-01"},{"$f":"'(Intermediate Computations)'!T56","v":"2011-06-01"},{"$f":"'(Intermediate Computations)'!U56","v":"2011-07-01"},{"$f":"'(Intermediate Computations)'!V56","v":"2011-08-01"},{"$f":"'(Intermediate Computations)'!W56","v":"2011-09-01"},{"$f":"'(Intermediate Computations)'!X56","v":"2011-10-01"},{"$f":"'(Intermediate Computations)'!Y56","v":"2011-11-01"},{"$f":"'(Intermediate Computations)'!Z56","v":"2011-12-01"},{"$f":"'(Intermediate Computations)'!AB56","v":"2012-01-01"},{"$f":"'(Intermediate Computations)'!AC56","v":"2012-02-01"},{"$f":"'(Intermediate Computations)'!AD56","v":"2012-03-01"},{"$f":"'(Intermediate Computations)'!AE56","v":"2012-04-01"},{"$f":"'(Intermediate Computations)'!AF56","v":"2012-05-01"},{"$f":"'(Intermediate Computations)'!AG56","v":"2012-06-01"},{"$f":"'(Intermediate Computations)'!AH56","v":"2012-07-01"},{"$f":"'(Intermediate Computations)'!AI56","v":"2012-08-01"},{"$f":"'(Intermediate Computations)'!AJ56","v":"2012-09-01"},{"$f":"'(Intermediate Computations)'!AK56","v":"2012-10-01"},{"$f":"'(Intermediate Computations)'!AL56","v":"2012-11-01"},{"$f":"'(Intermediate Computations)'!AM56","v":"2012-12-01"},{"$f":"'(Intermediate Computations)'!AO56","v":"2013-01-01"},{"$f":"'(Intermediate Computations)'!AP56","v":"2013-02-01"},{"$f":"'(Intermediate Computations)'!AQ56","v":"2013-03-01"},{"$f":"'(Intermediate Computations)'!AR56","v":"2013-04-01"},{"$f":"'(Intermediate Computations)'!AS56","v":"2013-05-01"},{"$f":"'(Intermediate Computations)'!AT56","v":"2013-06-01"},{"$f":"'(Intermediate Computations)'!AU56","v":"2013-07-01"},{"$f":"'(Intermediate Computations)'!AV56","v":"2013-08-01"},{"$f":"'(Intermediate Computations)'!AW56","v":"2013-09-01"},{"$f":"'(Intermediate Computations)'!AX56","v":"2013-10-01"},{"$f":"'(Intermediate Computations)'!AY56","v":"2013-11-01"},{"$f":"'(Intermediate Computations)'!AZ56","v":"2013-12-01"},{"$f":"'(Intermediate Computations)'!BB56","v":"2014-01-01"},{"$f":"'(Intermediate Computations)'!BC56","v":"2014-02-01"},{"$f":"'(Intermediate Computations)'!BD56","v":"2014-03-01"},{"$f":"'(Intermediate Computations)'!BE56","v":"2014-04-01"},{"$f":"'(Intermediate Computations)'!BF56","v":"2014-05-01"},{"$f":"'(Intermediate Computations)'!BG56","v":"2014-06-01"},{"$f":"'(Intermediate Computations)'!BH56","v":"2014-07-01"},{"$f":"'(Intermediate Computations)'!BI56","v":"2014-08-01"},{"$f":"'(Intermediate Computations)'!BJ56","v":"2014-09-01"},{"$f":"'(Intermediate Computations)'!BK56","v":"2014-10-01"},{"$f":"'(Intermediate Computations)'!BL56","v":"2014-11-01"},{"$f":"'(Intermediate Computations)'!BM56","v":"2014-12-01"},{"$f":"'(Intermediate Computations)'!BO56","v":"2015-01-01"},{"$f":"'(Intermediate Computations)'!BP56","v":"2015-02-01"},{"$f":"'(Intermediate Computations)'!BQ56","v":"2015-03-01"},{"$f":"'(Intermediate Computations)'!BR56","v":"2015-04-01"},{"$f":"'(Intermediate Computations)'!BS56","v":"2015-05-01"},{"$f":"'(Intermediate Computations)'!BT56","v":"2015-06-01"},{"$f":"'(Intermediate Computations)'!BU56","v":"2015-07-01"},{"$f":"'(Intermediate Computations)'!BV56","v":"2015-08-01"},{"$f":"'(Intermediate Computations)'!BW56","v":"2015-09-01"},{"$f":"'(Intermediate Computations)'!BX56","v":"2015-10-01"},{"$f":"'(Intermediate Computations)'!BY56","v":"2015-11-01"},{"$f":"'(Intermediate Computations)'!BZ56","v":"2015-12-01"},{"$f":"'(Intermediate Computations)'!CB56","v":"2016-01-01"},{"$f":"'(Intermediate Computations)'!CC56","v":"2016-02-01"},{"$f":"'(Intermediate Computations)'!CD56","v":"2016-03-01"},{"$f":"'(Intermediate Computations)'!CE56","v":"2016-04-01"},{"$f":"'(Intermediate Computations)'!CF56","v":"2016-05-01"},{"$f":"'(Intermediate Computations)'!CG56","v":"2016-06-01"},{"$f":"'(Intermediate Computations)'!CH56","v":"2016-07-01"},{"$f":"'(Intermediate Computations)'!CI56","v":"2016-08-01"},{"$f":"'(Intermediate Computations)'!CJ56","v":"2016-09-01"},{"$f":"'(Intermediate Computations)'!CK56","v":"2016-10-01"},{"$f":"'(Intermediate Computations)'!CL56","v":"2016-11-01"},{"$f":"'(Intermediate Computations)'!CM56","v":"2016-12-01"},{"$f":"'(Intermediate Computations)'!CO56","v":"2017-01-01"},{"$f":"'(Intermediate Computations)'!CP56","v":"2017-02-01"},{"$f":"'(Intermediate Computations)'!CQ56","v":"2017-03-01"},{"$f":"'(Intermediate Computations)'!CR56","v":"2017-04-01"},{"$f":"'(Intermediate Computations)'!CS56","v":"2017-05-01"},{"$f":"'(Intermediate Computations)'!CT56","v":"2017-06-01"},{"$f":"'(Intermediate Computations)'!CU56","v":"2017-07-01"},{"$f":"'(Intermediate Computations)'!CV56","v":"2017-08-01"},{"$f":"'(Intermediate Computations)'!CW56","v":"2017-09-01"},{"$f":"'(Intermediate Computations)'!CX56","v":"2017-10-01"},{"$f":"'(Intermediate Computations)'!CY56","v":"2017-11-01"},{"$f":"'(Intermediate Computations)'!CZ56","v":"2017-12-01"},{"$f":"'(Intermediate Computations)'!DB56","v":"2018-01-01"},{"$f":"'(Intermediate Computations)'!DC56","v":"2018-02-01"},{"$f":"'(Intermediate Computations)'!DD56","v":"2018-03-01"},{"$f":"'(Intermediate Computations)'!DE56","v":"2018-04-01"},{"$f":"'(Intermediate Computations)'!DF56","v":"2018-05-01"},{"$f":"'(Intermediate Computations)'!DG56","v":"2018-06-01"},{"$f":"'(Intermediate Computations)'!DH56","v":"2018-07-01"},{"$f":"'(Intermediate Computations)'!DI56","v":"2018-08-01"},{"$f":"'(Intermediate Computations)'!DJ56","v":"2018-09-01"},{"$f":"'(Intermediate Computations)'!DK56","v":"2018-10-01"},{"$f":"'(Intermediate Computations)'!DL56","v":"2018-11-01"},{"$f":"'(Intermediate Computations)'!DM56","v":"2018-12-01"},{"$f":"'(Intermediate Computations)'!DO56","v":"2019-01-01"},{"$f":"'(Intermediate Computations)'!DP56","v":"2019-02-01"},{"$f":"'(Intermediate Computations)'!DQ56","v":"2019-03-01"},{"$f":"'(Intermediate Computations)'!DR56","v":"2019-04-01"},{"$f":"'(Intermediate Computations)'!DS56","v":"2019-05-01"},{"$f":"'(Intermediate Computations)'!DT56","v":"2019-06-01"},{"$f":"'(Intermediate Computations)'!DU56","v":"2019-07-01"},{"$f":"'(Intermediate Computations)'!DV56","v":"2019-08-01"},{"$f":"'(Intermediate Computations)'!DW56","v":"2019-09-01"},{"$f":"'(Intermediate Computations)'!DX56","v":"2019-10-01"},{"$f":"'(Intermediate Computations)'!DY56","v":"2019-11-01"},{"$f":"'(Intermediate Computations)'!DZ56","v":"2019-12-01"},{"$f":"'(Intermediate Computations)'!EB56","v":"2020-01-01"},{"$f":"'(Intermediate Computations)'!EC56","v":"2020-02-01"},{"$f":"'(Intermediate Computations)'!ED56","v":"2020-03-01"},{"$f":"'(Intermediate Computations)'!EE56","v":"2020-04-01"},{"$f":"'(Intermediate Computations)'!EF56","v":"2020-05-01"},{"$f":"'(Intermediate Computations)'!EG56","v":"2020-06-01"},{"$f":"'(Intermediate Computations)'!EH56","v":"2020-07-01"},{"$f":"'(Intermediate Computations)'!EI56","v":"2020-08-01"},{"$f":"'(Intermediate Computations)'!EJ56","v":"2020-09-01"},{"$f":"'(Intermediate Computations)'!EK56","v":"2020-10-01"},{"$f":"'(Intermediate Computations)'!EL56","v":"2020-11-01"},{"$f":"'(Intermediate Computations)'!EM56","v":"2020-12-01"}]
[{"$f":"'Trial 1'!B29","v":{"v":140,"d":"140.00"}},{"$f":"'Trial 1'!C29","v":{"v":139.62243120540873,"d":"139.62"}},{"$f":"'Trial 1'!D29","v":{"v":139.3501330046186,"d":"139.35"}},{"$f":"'Trial 1'!E29","v":{"v":139.05270102295881,"d":"139.05"}},{"$f":"'Trial 1'!F29","v":{"v":138.72494483535462,"d":"138.72"}},{"$f":"'Trial 1'!G29","v":{"v":138.48394313466963,"d":"138.48"}},{"$f":"'Trial 1'!H29","v":{"v":138.19371726984315,"d":"138.19"}},{"$f":"'Trial 1'!I29","v":{"v":137.85580023900076,"d":"137.86"}},{"$f":"'Trial 1'!J29","v":{"v":137.538567833528,"d":"137.54"}},{"$f":"'Trial 1'!K29","v":{"v":137.25447696848929,"d":"137.25"}},{"$f":"'Trial 1'!L29","v":{"v":137.045388415492,"d":"137.05"}},{"$f":"'Trial 1'!M29","v":{"v":136.8023475182475,"d":"136.80"}},{"$f":"'Trial 1'!O29","v":{"v":136.5354974707672,"d":"136.54"}},{"$f":"'Trial 1'!P29","v":{"v":136.21636588931577,"d":"136.22"}},{"$f":"'Trial 1'!Q29","v":{"v":135.93099868153814,"d":"135.93"}},{"$f":"'Trial 1'!R29","v":{"v":135.54011027169545,"d":"135.54"}},{"$f":"'Trial 1'!S29","v":{"v":135.28737933504073,"d":"135.29"}},{"$f":"'Trial 1'!T29","v":{"v":134.91800506487692,"d":"134.92"}},{"$f":"'Trial 1'!U29","v":{"v":134.5869451719919,"d":"134.59"}},{"$f":"'Trial 1'!V29","v":{"v":134.23458539312642,"d":"134.23"}},{"$f":"'Trial 1'!W29","v":{"v":133.88449247286508,"d":"133.88"}},{"$f":"'Trial 1'!X29","v":{"v":133.5921027776894,"d":"133.59"}},{"$f":"'Trial 1'!Y29","v":{"v":133.31780028095812,"d":"133.32"}},{"$f":"'Trial 1'!Z29","v":{"v":133.12665030842638,"d":"133.13"}},{"$f":"'Trial 1'!AB29","v":{"v":132.82818413844998,"d":"132.83"}},{"$f":"'Trial 1'!AC29","v":{"v":132.57724521328444,"d":"132.58"}},{"$f":"'Trial 1'!AD29","v":{"v":132.42364834677485,"d":"132.42"}},{"$f":"'Trial 1'!AE29","v":{"v":132.1384854106768,"d":"132.14"}},{"$f":"'Trial 1'!AF29","v":{"v":131.8356272062219,"d":"131.84"}},{"$f":"'Trial 1'!AG29","v":{"v":131.58667144846942,"d":"131.59"}},{"$f":"'Trial 1'!AH29","v":{"v":131.33436734142154,"d":"131.33"}},{"$f":"'Trial 1'!AI29","v":{"v":131.11901529993213,"d":"131.12"}},{"$f":"'Trial 1'!AJ29","v":{"v":130.85716424104152,"d":"130.86"}},{"$f":"'Trial 1'!AK29","v":{"v":130.7019230631904,"d":"130.70"}},{"$f":"'Trial 1'!AL29","v":{"v":130.4834447396061,"d":"130.48"}},{"$f":"'Trial 1'!AM29","v":{"v":130.23385116823502,"d":"130.23"}},{"$f":"'Trial 1'!AO29","v":{"v":129.94992249071336,"d":"129.95"}},{"$f":"'Trial 1'!AP29","v":{"v":129.6695102521685,"d":"129.67"}},{"$f":"'Trial 1'!AQ29","v":{"v":129.54593377033717,"d":"129.55"}},{"$f":"'Trial 1'!AR29","v":{"v":129.25835558237242,"d":"129.26"}},{"$f":"'Trial 1'!AS29","v":{"v":129.0875545581215,"d":"129.09"}},{"$f":"'Trial 1'!AT29","v":{"v":128.88047487412229,"d":"128.88"}},{"$f":"'Trial 1'!AU29","v":{"v":128.7094614784808,"d":"128.71"}},{"$f":"'Trial 1'!AV29","v":{"v":128.48848907829296,"d":"128.49"}},{"$f":"'Trial 1'!AW29","v":{"v":128.23868199323064,"d":"128.24"}},{"$f":"'Trial 1'!AX29","v":{"v":128.0264931288604,"d":"128.03"}},{"$f":"'Trial 1'!AY29","v":{"v":127.88926811353016,"d":"127.89"}},{"$f":"'Trial 1'!AZ29","v":{"v":127.7082819838543,"d":"127.71"}},{"$f":"'Trial 1'!BB29","v":{"v":127.44620555235282,"d":"127.45"}},{"$f":"'Trial 1'!BC29","v":{"v":127.18157114227604,"d":"127.18"}},{"$f":"'Trial 1'!BD29","v":{"v":126.99397187938727,"d":"126.99"}},{"$f":"'Trial 1'!BE29","v":{"v":126.7691170853055,"d":"126.77"}},{"$f":"'Trial 1'!BF29","v":{"v":126.62904395535959,"d":"126.63"}},{"$f":"'Trial 1'!BG29","v":{"v":126.45758090049918,"d":"126.46"}},{"$f":"'Trial 1'!BH29","v":{"v":126.2847315879956,"d":"126.28"}},{"$f":"'Trial 1'!BI29","v":{"v":126.1270701023629,"d":"126.13"}},{"$f":"'Trial 1'!BJ29","v":{"v":125.92307442823532,"d":"125.92"}},{"$f":"'Trial 1'!BK29","v":{"v":125.71846584493855,"d":"125.72"}},{"$f":"'Trial 1'!BL29","v":{"v":125.46020408331796,"d":"125.46"}},{"$f":"'Trial 1'!BM29","v":{"v":125.29604628510769,"d":"125.30"}},{"$f":"'Trial 1'!BO29","v":{"v":125.06514120625589,"d":"125.07"}},{"$f":"'Trial 1'!BP29","v":{"v":124.91640632437324,"d":"124.92"}},{"$f":"'Trial 1'!BQ29","v":{"v":124.7069543996186,"d":"124.71"}},{"$f":"'Trial 1'!BR29","v":{"v":124.62029873332787,"d":"124.62"}},{"$f":"'Trial 1'!BS29","v":{"v":124.48325507972368,"d":"124.48"}},{"$f":"'Trial 1'!BT29","v":{"v":124.31732761506422,"d":"124.32"}},{"$f":"'Trial 1'!BU29","v":{"v":124.07045485743299,"d":"124.07"}},{"$f":"'Trial 1'!BV29","v":{"v":123.84800288792034,"d":"123.85"}},{"$f":"'Trial 1'!BW29","v":{"v":123.66375318712815,"d":"123.66"}},{"$f":"'Trial 1'!BX29","v":{"v":123.54942224174641,"d":"123.55"}},{"$f":"'Trial 1'!BY29","v":{"v":123.33068930881679,"d":"123.33"}},{"$f":"'Trial 1'!BZ29","v":{"v":123.09498033962836,"d":"123.09"}},{"$f":"'Trial 1'!CB29","v":{"v":122.99065680872839,"d":"122.99"}},{"$f":"'Trial 1'!CC29","v":{"v":122.81965935955544,"d":"122.82"}},{"$f":"'Trial 1'!CD29","v":{"v":122.59226438402477,"d":"122.59"}},{"$f":"'Trial 1'!CE29","v":{"v":122.50139648602838,"d":"122.50"}},{"$f":"'Trial 1'!CF29","v":{"v":122.29367036224612,"d":"122.29"}},{"$f":"'Trial 1'!CG29","v":{"v":122.13652539998684,"d":"122.14"}},{"$f":"'Trial 1'!CH29","v":{"v":122.00544962330865,"d":"122.01"}},{"$f":"'Trial 1'!CI29","v":{"v":121.84916311675455,"d":"121.85"}},{"$f":"'Trial 1'!CJ29","v":{"v":121.71289009025193,"d":"121.71"}},{"$f":"'Trial 1'!CK29","v":{"v":121.56652440996865,"d":"121.57"}},{"$f":"'Trial 1'!CL29","v":{"v":121.34001616542872,"d":"121.34"}},{"$f":"'Trial 1'!CM29","v":{"v":121.24173751773102,"d":"121.24"}},{"$f":"'Trial 1'!CO29","v":{"v":121.09891374582207,"d":"121.10"}},{"$f":"'Trial 1'!CP29","v":{"v":120.90791528066535,"d":"120.91"}},{"$f":"'Trial 1'!CQ29","v":{"v":120.81310517775646,"d":"120.81"}},{"$f":"'Trial 1'!CR29","v":{"v":120.5759168368858,"d":"120.58"}},{"$f":"'Trial 1'!CS29","v":{"v":120.43132900554687,"d":"120.43"}},{"$f":"'Trial 1'!CT29","v":{"v":120.21117922339297,"d":"120.21"}},{"$f":"'Trial 1'!CU29","v":{"v":120.09172624297027,"d":"120.09"}},{"$f":"'Trial 1'!CV29","v":{"v":119.89299193032427,"d":"119.89"}},{"$f":"'Trial 1'!CW29","v":{"v":119.77317078143223,"d":"119.77"}},{"$f":"'Trial 1'!CX29","v":{"v":119.5650512455377,"d":"119.57"}},{"$f":"'Trial 1'!CY29","v":{"v":119.49375349757523,"d":"119.49"}},{"$f":"'Trial 1'!CZ29","v":{"v":119.43561993933214,"d":"119.44"}},{"$f":"'Trial 1'!DB29","v":{"v":119.22759750321084,"d":"119.23"}},{"$f":"'Trial 1'!DC29","v":{"v":119.10435415153079,"d":"119.10"}},{"$f":"'Trial 1'!DD29","v":{"v":119.01344233128744,"d":"119.01"}},{"$f":"'Trial 1'!DE29","v":{"v":118.88993061625735,"d":"118.89"}},{"$f":"'Trial 1'!DF29","v":{"v":118.80882232169569,"d":"118.81"}},{"$f":"'Trial 1'!DG29","v":{"v":118.7244346924629,"d":"118.72"}},{"$f":"'Trial 1'!DH29","v":{"v":118.57782252387244,"d":"118.58"}},{"$f":"'Trial 1'!DI29","v":{"v":118.48089828489833,"d":"118.48"}},{"$f":"'Trial 1'!DJ29","v":{"v":118.30971963683731,"d":"118.31"}},{"$f":"'Trial 1'!DK29","v":{"v":118.21646146806891,"d":"118.22"}},{"$f":"'Trial 1'!DL29","v":{"v":118.17451655730491,"d":"118.17"}},{"$f":"'Trial 1'!DM29","v":{"v":117.99328528303614,"d":"117.99"}},{"$f":"'Trial 1'!DO29","v":{"v":117.88714371185304,"d":"117.89"}},{"$f":"'Trial 1'!DP29","v":{"v":117.84510370412916,"d":"117.85"}},{"$f":"'Trial 1'!DQ29","v":{"v":117.70283179502664,"d":"117.70"}},{"$f":"'Trial 1'!DR29","v":{"v":117.60945642643057,"d":"117.61"}},{"$f":"'Trial 1'!DS29","v":{"v":117.50416950550435,"d":"117.50"}},{"$f":"'Trial 1'!DT29","v":{"v":117.37375948133645,"d":"117.37"}},{"$f":"'Trial 1'!DU29","v":{"v":117.24051179696846,"d":"117.24"}},{"$f":"'Trial 1'!DV29","v":{"v":117.14938782560523,"d":"117.15"}},{"$f":"'Trial 1'!DW29","v":{"v":116.97703551177169,"d":"116.98"}},{"$f":"'Trial 1'!DX29","v":{"v":116.82467273153637,"d":"116.82"}},{"$f":"'Trial 1'!DY29","v":{"v":116.77056791334326,"d":"116.77"}},{"$f":"'Trial 1'!DZ29","v":{"v":116.69896010601376,"d":"116.70"}},{"$f":"'Trial 1'!EB29","v":{"v":116.55106075416218,"d":"116.55"}},{"$f":"'Trial 1'!EC29","v":{"v":116.4639341117413,"d":"116.46"}},{"$f":"'Trial 1'!ED29","v":{"v":116.35216918539045,"d":"116.35"}},{"$f":"'Trial 1'!EE29","v":{"v":116.24211545370713,"d":"116.24"}},{"$f":"'Trial 1'!EF29","v":{"v":116.06106378404733,"d":"116.06"}},{"$f":"'Trial 1'!EG29","v":{"v":115.94719752126883,"d":"115.95"}},{"$f":"'Trial 1'!EH29","v":{"v":115.82252194174342,"d":"115.82"}},{"$f":"'Trial 1'!EI29","v":{"v":115.70905926775724,"d":"115.71"}},{"$f":"'Trial 1'!EJ29","v":{"v":115.5557565791141,"d":"115.56"}},{"$f":"'Trial 1'!EK29","v":{"v":115.4664406202973,"d":"115.47"}},{"$f":"'Trial 1'!EL29","v":{"v":115.35142490880952,"d":"115.35"}},{"$f":"'Trial 1'!EM29","v":{"v":115.19402919346861,"d":"115.19"}}]
[{"$f":"'Trial 2'!B29","v":{"v":140,"d":"140.00"}},{"$f":"'Trial 2'!C29","v":{"v":139.64073537676285,"d":"139.64"}},{"$f":"'Trial 2'!D29","v":{"v":139.23760433782167,"d":"139.24"}},{"$f":"'Trial 2'!E29","v":{"v":138.92222121978028,"d":"138.92"}},{"$f":"'Trial 2'!F29","v":{"v":138.6983064157684,"d":"138.70"}},{"$f":"'Trial 2'!G29","v":{"v":138.4035729984432,"d":"138.40"}},{"$f":"'Trial 2'!H29","v":{"v":138.05346054899093,"d":"138.05"}},{"$f":"'Trial 2'!I29","v":{"v":137.73818480159107,"d":"137.74"}},{"$f":"'Trial 2'!J29","v":{"v":137.3652889883652,"d":"137.37"}},{"$f":"'Trial 2'!K29","v":{"v":137.0816409163015,"d":"137.08"}},{"$f":"'Trial 2'!L29","v":{"v":136.78698032242465,"d":"136.79"}},{"$f":"'Trial 2'!M29","v":{"v":136.42545081752093,"d":"136.43"}},{"$f":"'Trial 2'!O29","v":{"v":136.17995918133096,"d":"136.18"}},{"$f":"'Trial 2'!P29","v":{"v":135.8534817223364,"d":"135.85"}},{"$f":"'Trial 2'!Q29","v":{"v":135.6116051552589,"d":"135.61"}},{"$f":"'Trial 2'!R29","v":{"v":135.3789285921652,"d":"135.38"}},{"$f":"'Trial 2'!S29","v":{"v":135.08094703803806,"d":"135.08"}},{"$f":"'Trial 2'!T29","v":{"v":134.78770622988702,"d":"134.79"}},{"$f":"'Trial 2'!U29","v":{"v":134.49735755645108,"d":"134.50"}},{"$f":"'Trial 2'!V29","v":{"v":134.15727591912207,"d":"134.16"}},{"$f":"'Trial 2'!W29","v":{"v":133.84255658039373,"d":"133.84"}},{"$f":"'Trial 2'!X29","v":{"v":133.5461046107203,"d":"133.55"}},{"$f":"'Trial 2'!Y29","v":{"v":133.24148337457845,"d":"133.24"}},{"$f":"'Trial 2'!Z29","v":{"v":132.8785270403207,"d":"132.88"}},{"$f":"'Trial 2'!AB29","v":{"v":132.64867907934527,"d":"132.65"}},{"$f":"'Trial 2'!AC29","v":{"v":132.39231592701555,"d":"132.39"}},{"$f":"'Trial 2'!AD29","v":{"v":132.1437305690753,"d":"132.14"}},{"$f":"'Trial 2'!AE29","v":{"v":131.8931431663375,"d":"131.89"}},{"$f":"'Trial 2'!AF29","v":{"v":131.74444654840102,"d":"131.74"}},{"$f":"'Trial 2'!AG29","v":{"v":131.4983345450936,"d":"131.50"}},{"$f":"'Trial 2'!AH29","v":{"v":131.23048807277374,"d":"131.23"}},{"$f":"'Trial 2'!AI29","v":{"v":131.01751880430342,"d":"131.02"}},{"$f":"'Trial 2'!AJ29","v":{"v":130.70050717263618,"d":"130.70"}},{"$f":"'Trial 2'!AK29","v":{"v":130.47084427720253,"d":"130.47"}},{"$f":"'Trial 2'!AL29","v":{"v":130.27605853206177,"d":"130.28"}},{"$f":"'Trial 2'!AM29","v":{"v":130.12437946513555,"d":"130.12"}},{"$f":"'Trial 2'!AO29","v":{"v":129.864737852427,"d":"129.86"}},{"$f":"'Trial 2'!AP29","v":{"v":129.6269625657047,"d":"129.63"}},{"$f":"'Trial 2'!AQ29","v":{"v":129.43173158408257,"d":"129.43"}},{"$f":"'Trial 2'!AR29","v":{"v":129.2341979080572,"d":"129.23"}},{"$f":"'Trial 2'!AS29","v":{"v":128.98652938281163,"d":"128.99"}},{"$f":"'Trial 2'!AT29","v":{"v":128.7944647203926,"d":"128.79"}},{"$f":"'Trial 2'!AU29","v":{"v":128.60290341910223,"d":"128.60"}},{"$f":"'Trial 2'!AV29","v":{"v":128.39876668153642,"d":"128.40"}},{"$f":"'Trial 2'!AW29","v":{"v":128.20281778735344,"d":"128.20"}},{"$f":"'Trial 2'!AX29","v":{"v":127.89971415320227,"d":"127.90"}},{"$f":"'Trial 2'!AY29","v":{"v":127.67677801211318,"d":"127.68"}},{"$f":"'Trial 2'!AZ29","v":{"v":127.53510209418643,"d":"127.54"}},{"$f":"'Trial 2'!BB29","v":{"v":127.32066200864503,"d":"127.32"}},{"$f":"'Trial 2'!BC29","v":{"v":127.08055094291348,"d":"127.08"}},{"$f":"'Trial 2'!BD29","v":{"v":126.88732533161722,"d":"126.89"}},{"$f":"'Trial 2'!BE29","v":{"v":126.75492946843222,"d":"126.75"}},{"$f":"'Trial 2'!BF29","v":{"v":126.55117285757387,"d":"126.55"}},{"$f":"'Trial 2'!BG29","v":{"v":126.40546382142367,"d":"126.41"}},{"$f":"'Trial 2'!BH29","v":{"v":126.1578424387723,"d":"126.16"}},{"$f":"'Trial 2'!BI29","v":{"v":125.9324716143822,"d":"125.93"}},{"$f":"'Trial 2'!BJ29","v":{"v":125.66371793369477,"d":"125.66"}},{"$f":"'Trial 2'!BK29","v":{"v":125.52355278078241,"d":"125.52"}},{"$f":"'Trial 2'!BL29","v":{"v":125.31437745513833,"d":"125.31"}},{"$f":"'Trial 2'!BM29","v":{"v":125.14573912664201,"d":"125.15"}},{"$f":"'Trial 2'!BO29","v":{"v":124.87764030392843,"d":"124.88"}},{"$f":"'Trial 2'!BP29","v":{"v":124.60003113856322,"d":"124.60"}},{"$f":"'Trial 2'!BQ29","v":{"v":124.36423189777771,"d":"124.36"}},{"$f":"'Trial 2'!BR29","v":{"v":124.22205472721767,"d":"124.22"}},{"$f":"'Trial 2'!BS29","v":{"v":124.10878600454893,"d":"124.11"}},{"$f":"'Trial 2'!BT29","v":{"v":123.85814270234314,"d":"123.86"}},{"$f":"'Trial 2'!BU29","v":{"v":123.76593631751642,"d":"123.77"}},{"$f":"'Trial 2'!BV29","v":{"v":123.55892595677072,"d":"123.56"}},{"$f":"'Trial 2'!BW29","v":{"v":123.42538568471048,"d":"123.43"}},{"$f":"'Trial 2'!BX29","v":{"v":123.26594236686323,"d":"123.27"}},{"$f":"'Trial 2'!BY29","v":{"v":123.01194030076306,"d":"123.01"}},{"$f":"'Trial 2'!BZ29","v":{"v":122.94554050049736,"d":"122.95"}},{"$f":"'Trial 2'!CB29","v":{"v":122.798665500213,"d":"122.80"}},{"$f":"'Trial 2'!CC29","v":{"v":122.67595897129925,"d":"122.68"}},{"$f":"'Trial 2'!CD29","v":{"v":122.47946446370766,"d":"122.48"}},{"$f":"'Trial 2'!CE29","v":{"v":122.31176371812738,"d":"122.31"}},{"$f":"'Trial 2'!CF29","v":{"v":122.21606738089805,"d":"122.22"}},{"$f":"'Trial 2'!CG29","v":{"v":122.0876060188179,"d":"122.09"}},{"$f":"'Trial 2'!CH29","v":{"v":121.98533827420447,"d":"121.99"}},{"$f":"'Trial 2'!CI29","v":{"v":121.83571029081318,"d":"121.84"}},{"$f":"'Trial 2'!CJ29","v":{"v":121.75018850905408,"d":"121.75"}},{"$f":"'Trial 2'!CK29","v":{"v":121.53587389112302,"d":"121.54"}},{"$f":"'Trial 2'!CL29","v":{"v":121.3795929711259,"d":"121.38"}},{"$f":"'Trial 2'!CM29","v":{"v":121.15262214523092,"d":"121.15"}},{"$f":"'Trial 2'!CO29","v":{"v":120.9961650702611,"d":"121.00"}},{"$f":"'Trial 2'!CP29","v":{"v":120.81564778006182,"d":"120.82"}},{"$f":"'Trial 2'!CQ29","v":{"v":120.67442048892666,"d":"120.67"}},{"$f":"'Trial 2'!CR29","v":{"v":120.55665610396322,"d":"120.56"}},{"$f":"'Trial 2'!CS29","v":{"v":120.39417280896926,"d":"120.39"}},{"$f":"'Trial 2'!CT29","v":{"v":120.28778622685216,"d":"120.29"}},{"$f":"'Trial 2'!CU29","v":{"v":120.0940769166856,"d":"120.09"}},{"$f":"'Trial 2'!CV29","v":{"v":120.0199022801942,"d":"120.02"}},{"$f":"'Trial 2'!CW29","v":{"v":119.87189834059082,"d":"119.87"}},{"$f":"'Trial 2'!CX29","v":{"v":119.79886919134496,"d":"119.80"}},{"$f":"'Trial 2'!CY29","v":{"v":119.56674645797368,"d":"119.57"}},{"$f":"'Trial 2'!CZ29","v":{"v":119.48459807514661,"d":"119.48"}},{"$f":"'Trial 2'!DB29","v":{"v":119.33933236154004,"d":"119.34"}},{"$f":"'Trial 2'!DC29","v":{"v":119.18993055385934,"d":"119.19"}},{"$f":"'Trial 2'!DD29","v":{"v":119.09169092298575,"d":"119.09"}},{"$f":"'Trial 2'!DE29","v":{"v":118.94041984375394,"d":"118.94"}},{"$f":"'Trial 2'!DF29","v":{"v":118.84789413694673,"d":"118.85"}},{"$f":"'Trial 2'!DG29","v":{"v":118.77332062919102,"d":"118.77"}},{"$f":"'Trial 2'!DH29","v":{"v":118.64707529027422,"d":"118.65"}},{"$f":"'Trial 2'!DI29","v":{"v":118.53156812435279,"d":"118.53"}},{"$f":"'Trial 2'!DJ29","v":{"v":118.42411830498537,"d":"118.42"}},{"$f":"'Trial 2'!DK29","v":{"v":118.37846369016646,"d":"118.38"}},{"$f":"'Trial 2'!DL29","v":{"v":118.20373270652055,"d":"118.20"}},{"$f":"'Trial 2'!DM29","v":{"v":117.98676013186385,"d":"117.99"}},{"$f":"'Trial 2'!DO29","v":{"v":117.80673613885902,"d":"117.81"}},{"$f":"'Trial 2'!DP29","v":{"v":117.74086031287865,"d":"117.74"}},{"$f":"'Trial 2'!DQ29","v":{"v":117.54800935769457,"d":"117.55"}},{"$f":"'Trial 2'!DR29","v":{"v":117.43998840454334,"d":"117.44"}},{"$f":"'Trial 2'!DS29","v":{"v":117.31016851906274,"d":"117.31"}},{"$f":"'Trial 2'!DT29","v":{"v":117.15067569118567,"d":"117.15"}},{"$f":"'Trial 2'!DU29","v":{"v":117.05583887049116,"d":"117.06"}},{"$f":"'Trial 2'!DV29","v":{"v":116.98885873748571,"d":"116.99"}},{"$f":"'Trial 2'!DW29","v":{"v":116.91329245635832,"d":"116.91"}},{"$f":"'Trial 2'!DX29","v":{"v":116.74295237844329,"d":"116.74"}},{"$f":"'Trial 2'!DY29","v":{"v":116.6779278010663,"d":"116.68"}},{"$f":"'Trial 2'!DZ29","v":{"v":116.56675765472008,"d":"116.57"}},{"$f":"'Trial 2'!EB29","v":{"v":116.39709854265428,"d":"116.40"}},{"$f":"'Trial 2'!EC29","v":{"v":116.34334827265002,"d":"116.34"}},{"$f":"'Trial 2'!ED29","v":{"v":116.2656959072376,"d":"116.27"}},{"$f":"'Trial 2'!EE29","v":{"v":116.07190015937678,"d":"116.07"}},{"$f":"'Trial 2'!EF29","v":{"v":115.9627380857154,"d":"115.96"}},{"$f":"'Trial 2'!EG29","v":{"v":115.94039477746773,"d":"115.94"}},{"$f":"'Trial 2'!EH29","v":{"v":115.78181107314178,"d":"115.78"}},{"$f":"'Trial 2'!EI29","v":{"v":115.64154192410425,"d":"115.64"}},{"$f":"'Trial 2'!EJ29","v":{"v":115.48475545272916,"d":"115.48"}},{"$f":"'Trial 2'!EK29","v":{"v":115.40886543387718,"d":"115.41"}},{"$f":"'Trial 2'!EL29","v":{"v":115.28338979781743,"d":"115.28"}},{"$f":"'Trial 2'!EM29","v":{"v":115.22027588297858,"d":"115.22"}}]
[{"$f":"'Trial 3'!B29","v":{"v":140,"d":"140.00"}},{"$f":"'Trial 3'!C29","v":{"v":139.5699624207603,"d":"139.57"}},{"$f":"'Trial 3'!D29","v":{"v":139.25073810577,"d":"139.25"}},{"$f":"'Trial 3'!E29","v":{"v":138.86925534986403,"d":"138.87"}},{"$f":"'Trial 3'!F29","v":{"v":138.61758696069765,"d":"138.62"}},{"$f":"'Trial 3'!G29","v":{"v":138.31843543155085,"d":"138.32"}},{"$f":"'Trial 3'!H29","v":{"v":138.06730884545374,"d":"138.07"}},{"$f":"'Trial 3'!I29","v":{"v":137.72879219857845,"d":"137.73"}},{"$f":"'Trial 3'!J29","v":{"v":137.4619974464176,"d":"137.46"}},{"$f":"'Trial 3'!K29","v":{"v":137.09161411654412,"d":"137.09"}},{"$f":"'Trial 3'!L29","v":{"v":136.80075876036156,"d":"136.80"}},{"$f":"'Trial 3'!M29","v":{"v":136.5496380226019,"d":"136.55"}},{"$f":"'Trial 3'!O29","v":{"v":136.20802154357668,"d":"136.21"}},{"$f":"'Trial 3'!P29","v":{"v":135.9279848360006,"d":"135.93"}},{"$f":"'Trial 3'!Q29","v":{"v":135.61184205530984,"d":"135.61"}},{"$f":"'Trial 3'!R29","v":{"v":135.39128278162477,"d":"135.39"}},{"$f":"'Trial 3'!S29","v":{"v":135.14460820043047,"d":"135.14"}},{"$f":"'Trial 3'!T29","v":{"v":134.86059018124908,"d":"134.86"}},{"$f":"'Trial 3'!U29","v":{"v":134.56371487534878,"d":"134.56"}},{"$f":"'Trial 3'!V29","v":{"v":134.18143775851735,"d":"134.18"}},{"$f":"'Trial 3'!W29","v":{"v":133.86249324106834,"d":"133.86"}},{"$f":"'Trial 3'!X29","v":{"v":133.61361395341646,"d":"133.61"}},{"$f":"'Trial 3'!Y29","v":{"v":133.35340789191167,"d":"133.35"}},{"$f":"'Trial 3'!Z29","v":{"v":133.06447096524826,"d":"133.06"}},{"$f":"'Trial 3'!AB29","v":{"v":132.70691083416966,"d":"132.71"}},{"$f":"'Trial 3'!AC29","v":{"v":132.51646123017755,"d":"132.52"}},{"$f":"'Trial 3'!AD29","v":{"v":132.22600731421747,"d":"132.23"}},{"$f":"'Trial 3'!AE29","v":{"v":131.9155832479519,"d":"131.92"}},{"$f":"'Trial 3'!AF29","v":{"v":131.71129579013302,"d":"131.71"}},{"$f":"'Trial 3'!AG29","v":{"v":131.36692035197424,"d":"131.37"}},{"$f":"'Trial 3'!AH29","v":{"v":131.16347780122157,"d":"131.16"}},{"$f":"'Trial 3'!AI29","v":{"v":130.93261252726384,"d":"130.93"}},{"$f":"'Trial 3'!AJ29","v":{"v":130.65132384103703,"d":"130.65"}},{"$f":"'Trial 3'!AK29","v":{"v":130.44695100349327,"d":"130.45"}},{"$f":"'Trial 3'!AL29","v":{"v":130.22276639819867,"d":"130.22"}},{"$f":"'Trial 3'!AM29","v":{"v":129.9690232618757,"d":"129.97"}},{"$f":"'Trial 3'!AO29","v":{"v":129.71303616964505,"d":"129.71"}},{"$f":"'Trial 3'!AP29","v":{"v":129.5352527901005,"d":"129.54"}},{"$f":"'Trial 3'!AQ29","v":{"v":129.37073391512615,"d":"129.37"}},{"$f":"'Trial 3'!AR29","v":{"v":129.06942560588428,"d":"129.07"}},{"$f":"'Trial 3'!AS29","v":{"v":128.83407829856858,"d":"128.83"}},{"$f":"'Trial 3'!AT29","v":{"v":128.66018702326045,"d":"128.66"}},{"$f":"'Trial 3'!AU29","v":{"v":128.41754176112403,"d":"128.42"}},{"$f":"'Trial 3'!AV29","v":{"v":128.15356406978614,"d":"128.15"}},{"$f":"'Trial 3'!AW29","v":{"v":127.9627528876453,"d":"127.96"}},{"$f":"'Trial 3'!AX29","v":{"v":127.7003625098221,"d":"127.70"}},{"$f":"'Trial 3'!AY29","v":{"v":127.55503438530255,"d":"127.56"}},{"$f":"'Trial 3'!AZ29","v":{"v":127.2971187897228,"d":"127.30"}},{"$f":"'Trial 3'!BB29","v":{"v":127.01507461935357,"d":"127.02"}},{"$f":"'Trial 3'!BC29","v":{"v":126.7968779349982,"d":"126.80"}},{"$f":"'Trial 3'!BD29","v":{"v":126.51911983060461,"d":"126.52"}},{"$f":"'Trial 3'!BE29","v":{"v":126.37000860489708,"d":"126.37"}},{"$f":"'Trial 3'!BF29","v":{"v":126.08052971355006,"d":"126.08"}},{"$f":"'Trial 3'!BG29","v":{"v":125.91037909915438,"d":"125.91"}},{"$f":"'Trial 3'!BH29","v":{"v":125.62455416141356,"d":"125.62"}},{"$f":"'Trial 3'!BI29","v":{"v":125.38788801921417,"d":"125.39"}},{"$f":"'Trial 3'!BJ29","v":{"v":125.21748008663356,"d":"125.22"}},{"$f":"'Trial 3'!BK29","v":{"v":125.03784030441547,"d":"125.04"}},{"$f":"'Trial 3'!BL29","v":{"v":124.83785485241407,"d":"124.84"}},{"$f":"'Trial 3'!BM29","v":{"v":124.70011827010092,"d":"124.70"}},{"$f":"'Trial 3'!BO29","v":{"v":124.51827828952234,"d":"124.52"}},{"$f":"'Trial 3'!BP29","v":{"v":124.34024811119507,"d":"124.34"}},{"$f":"'Trial 3'!BQ29","v":{"v":124.18978113993967,"d":"124.19"}},{"$f":"'Trial 3'!BR29","v":{"v":123.96698453459621,"d":"123.97"}},{"$f":"'Trial 3'!BS29","v":{"v":123.80318522904265,"d":"123.80"}},{"$f":"'Trial 3'!BT29","v":{"v":123.6754085543594,"d":"123.68"}},{"$f":"'Trial 3'!BU29","v":{"v":123.49149064062988,"d":"123.49"}},{"$f":"'Trial 3'!BV29","v":{"v":123.30104384198613,"d":"123.30"}},{"$f":"'Trial 3'!BW29","v":{"v":123.09217632281829,"d":"123.09"}},{"$f":"'Trial 3'!BX29","v":{"v":122.95565459494509,"d":"122.96"}},{"$f":"'Trial 3'!BY29","v":{"v":122.73340099413063,"d":"122.73"}},{"$f":"'Trial 3'!BZ29","v":{"v":122.64346801089063,"d":"122.64"}},{"$f":"'Trial 3'!CB29","v":{"v":122.46716210088027,"d":"122.47"}},{"$f":"'Trial 3'!CC29","v":{"v":122.33971115301574,"d":"122.34"}},{"$f":"'Trial 3'!CD29","v":{"v":122.17295315008245,"d":"122.17"}},{"$f":"'Trial 3'!CE29","v":{"v":122.02514924754729,"d":"122.03"}},{"$f":"'Trial 3'!CF29","v":{"v":121.88097318863363,"d":"121.88"}},{"$f":"'Trial 3'!CG29","v":{"v":121.73230956226506,"d":"121.73"}},{"$f":"'Trial 3'!CH29","v":{"v":121.62613528476814,"d":"121.63"}},{"$f":"'Trial 3'!CI29","v":{"v":121.52764705157377,"d":"121.53"}},{"$f":"'Trial 3'!CJ29","v":{"v":121.44933058742356,"d":"121.45"}},{"$f":"'Trial 3'!CK29","v":{"v":121.29306212932832,"d":"121.29"}},{"$f":"'Trial 3'!CL29","v":{"v":121.18069634671922,"d":"121.18"}},{"$f":"'Trial 3'!CM29","v":{"v":121.09067517178241,"d":"121.09"}},{"$f":"'Trial 3'!CO29","v":{"v":121.02530507865882,"d":"121.03"}},{"$f":"'Trial 3'!CP29","v":{"v":120.82464898014457,"d":"120.82"}},{"$f":"'Trial 3'!CQ29","v":{"v":120.70936539177336,"d":"120.71"}},{"$f":"'Trial 3'!CR29","v":{"v":120.54743678032092,"d":"120.55"}},{"$f":"'Trial 3'!CS29","v":{"v":120.42520237137568,"d":"120.43"}},{"$f":"'Trial 3'!CT29","v":{"v":120.2800221582876,"d":"120.28"}},{"$f":"'Trial 3'!CU29","v":{"v":120.15501059437581,"d":"120.16"}},{"$f":"'Trial 3'!CV29","v":{"v":120.05141494047344,"d":"120.05"}},{"$f":"'Trial 3'!CW29","v":{"v":119.92216140519535,"d":"119.92"}},{"$f":"'Trial 3'!CX29","v":{"v":119.74032686400741,"d":"119.74"}},{"$f":"'Trial 3'!CY29","v":{"v":119.67777356655019,"d":"119.68"}},{"$f":"'Trial 3'!CZ29","v":{"v":119.50948649559302,"d":"119.51"}},{"$f":"'Trial 3'!DB29","v":{"v":119.42650584482044,"d":"119.43"}},{"$f":"'Trial 3'!DC29","v":{"v":119.24099647859849,"d":"119.24"}},{"$f":"'Trial 3'!DD29","v":{"v":119.01990506792771,"d":"119.02"}},{"$f":"'Trial 3'!DE29","v":{"v":118.88647569842902,"d":"118.89"}},{"$f":"'Trial 3'!DF29","v":{"v":118.78184745317012,"d":"118.78"}},{"$f":"'Trial 3'!DG29","v":{"v":118.66644800070236,"d":"118.67"}},{"$f":"'Trial 3'!DH29","v":{"v":118.57181652576824,"d":"118.57"}},{"$f":"'Trial 3'!DI29","v":{"v":118.46916286252615,"d":"118.47"}},{"$f":"'Trial 3'!DJ29","v":{"v":118.35038589205125,"d":"118.35"}},{"$f":"'Trial 3'!DK29","v":{"v":118.21206349350702,"d":"118.21"}},{"$f":"'Trial 3'!DL29","v":{"v":118.11146802296844,"d":"118.11"}},{"$f":"'Trial 3'!DM29","v":{"v":118.02739645096533,"d":"118.03"}},{"$f":"'Trial 3'!DO29","v":{"v":117.92609400457523,"d":"117.93"}},{"$f":"'Trial 3'!DP29","v":{"v":117.83624075560486,"d":"117.84"}},{"$f":"'Trial 3'!DQ29","v":{"v":117.75262687634373,"d":"117.75"}},{"$f":"'Trial 3'!DR29","v":{"v":117.73558069085209,"d":"117.74"}},{"$f":"'Trial 3'!DS29","v":{"v":117.53448768847394,"d":"117.53"}},{"$f":"'Trial 3'!DT29","v":{"v":117.39398444023324,"d":"117.39"}},{"$f":"'Trial 3'!DU29","v":{"v":117.32352319634494,"d":"117.32"}},{"$f":"'Trial 3'!DV29","v":{"v":117.20410214130357,"d":"117.20"}},{"$f":"'Trial 3'!DW29","v":{"v":117.13609311341214,"d":"117.14"}},{"$f":"'Trial 3'!DX29","v":{"v":117.08969556507762,"d":"117.09"}},{"$f":"'Trial 3'!DY29","v":{"v":116.9698090260217,"d":"116.97"}},{"$f":"'Trial 3'!DZ29","v":{"v":116.83405343735082,"d":"116.83"}},{"$f":"'Trial 3'!EB29","v":{"v":116.67119024628236,"d":"116.67"}},{"$f":"'Trial 3'!EC29","v":{"v":116.56385409098856,"d":"116.56"}},{"$f":"'Trial 3'!ED29","v":{"v":116.43720893545236,"d":"116.44"}},{"$f":"'Trial 3'!EE29","v":{"v":116.35000385634618,"d":"116.35"}},{"$f":"'Trial 3'!EF29","v":{"v":116.26343002784154,"d":"116.26"}},{"$f":"'Trial 3'!EG29","v":{"v":116.1553109284859,"d":"116.16"}},{"$f":"'Trial 3'!EH29","v":{"v":116.04862974708844,"d":"116.05"}},{"$f":"'Trial 3'!EI29","v":{"v":115.9919726213101,"d":"115.99"}},{"$f":"'Trial 3'!EJ29","v":{"v":115.8241228812579,"d":"115.82"}},{"$f":"'Trial 3'!EK29","v":{"v":115.63822296275197,"d":"115.64"}},{"$f":"'Trial 3'!EL29","v":{"v":115.60800195639577,"d":"115.61"}},{"$f":"'Trial 3'!EM29","v":{"v":115.54465612476373,"d":"115.54"}}]
[{"$f":"'Trial 4'!B29","v":{"v":140,"d":"140.00"}},{"$f":"'Trial 4'!C29","v":{"v":139.63744425597147,"d":"139.64"}},{"$f":"'Trial 4'!D29","v":{"v":139.2666814370156,"d":"139.27"}},{"$f":"'Trial 4'!E29","v":{"v":138.8982258384326,"d":"138.90"}},{"$f":"'Trial 4'!F29","v":{"v":138.6027011401314,"d":"138.60"}},{"$f":"'Trial 4'!G29","v":{"v":138.34269219662775,"d":"138.34"}},{"$f":"'Trial 4'!H29","v":{"v":138.1145653409998,"d":"138.11"}},{"$f":"'Trial 4'!I29","v":{"v":137.72345439051654,"d":"137.72"}},{"$f":"'Trial 4'!J29","v":{"v":137.34032378740008,"d":"137.34"}},{"$f":"'Trial 4'!K29","v":{"v":137.01712971561565,"d":"137.02"}},{"$f":"'Trial 4'!L29","v":{"v":136.69822712134007,"d":"136.70"}},{"$f":"'Trial 4'!M29","v":{"v":136.39780394368591,"d":"136.40"}},{"$f":"'Trial 4'!O29","v":{"v":136.02008780422665,"d":"136.02"}},{"$f":"'Trial 4'!P29","v":{"v":135.7277338947841,"d":"135.73"}},{"$f":"'Trial 4'!Q29","v":{"v":135.4593670267969,"d":"135.46"}},{"$f":"'Trial 4'!R29","v":{"v":135.24309211901755,"d":"135.24"}},{"$f":"'Trial 4'!S29","v":{"v":134.95972936052453,"d":"134.96"}},{"$f":"'Trial 4'!T29","v":{"v":134.58297406867263,"d":"134.58"}},{"$f":"'Trial 4'!U29","v":{"v":134.27763543742503,"d":"134.28"}},{"$f":"'Trial 4'!V29","v":{"v":134.00774959348368,"d":"134.01"}},{"$f":"'Trial 4'!W29","v":{"v":133.72894799721738,"d":"133.73"}},{"$f":"'Trial 4'!X29","v":{"v":133.56144702890984,"d":"133.56"}},{"$f":"'Trial 4'!Y29","v":{"v":133.2838341792629,"d":"133.28"}},{"$f":"'Trial 4'!Z29","v":{"v":132.9335957863944,"d":"132.93"}},{"$f":"'Trial 4'!AB29","v":{"v":132.62284550378416,"d":"132.62"}},{"$f":"'Trial 4'!AC29","v":{"v":132.32827723070073,"d":"132.33"}},{"$f":"'Trial 4'!AD29","v":{"v":132.08826292536392,"d":"132.09"}},{"$f":"'Trial 4'!AE29","v":{"v":131.81385474297613,"d":"131.81"}},{"$f":"'Trial 4'!AF29","v":{"v":131.4930220461761,"d":"131.49"}},{"$f":"'Trial 4'!AG29","v":{"v":131.21536520468368,"d":"131.22"}},{"$f":"'Trial 4'!AH29","v":{"v":131.0469629342708,"d":"131.05"}},{"$f":"'Trial 4'!AI29","v":{"v":130.80484271370247,"d":"130.80"}},{"$f":"'Trial 4'!AJ29","v":{"v":130.56449047407963,"d":"130.56"}},{"$f":"'Trial 4'!AK29","v":{"v":130.29652955662016,"d":"130.30"}},{"$f":"'Trial 4'!AL29","v":{"v":130.12618935226806,"d":"130.13"}},{"$f":"'Trial 4'!AM29","v":{"v":129.87386017515428,"d":"129.87"}},{"$f":"'Trial 4'!AO29","v":{"v":129.5470717691448,"d":"129.55"}},{"$f":"'Trial 4'!AP29","v":{"v":129.32084426058128,"d":"129.32"}},{"$f":"'Trial 4'!AQ29","v":{"v":129.09206065629843,"d":"129.09"}},{"$f":"'Trial 4'!AR29","v":{"v":128.85427208309173,"d":"128.85"}},{"$f":"'Trial 4'!AS29","v":{"v":128.57740887749483,"d":"128.58"}},{"$f":"'Trial 4'!AT29","v":{"v":128.38036230532956,"d":"128.38"}},{"$f":"'Trial 4'!AU29","v":{"v":128.2175773783721,"d":"128.22"}},{"$f":"'Trial 4'!AV29","v":{"v":128.02643956145732,"d":"128.03"}},{"$f":"'Trial 4'!AW29","v":{"v":127.81118689703547,"d":"127.81"}},{"$f":"'Trial 4'!AX29","v":{"v":127.63364054110791,"d":"127.63"}},{"$f":"'Trial 4'!AY29","v":{"v":127.37354161407683,"d":"127.37"}},{"$f":"'Trial 4'!AZ29","v":{"v":127.12413683096439,"d":"127.12"}},{"$f":"'Trial 4'!BB29","v":{"v":126.8380617579347,"d":"126.84"}},{"$f":"'Trial 4'!BC29","v":{"v":126.7345683221107,"d":"126.73"}},{"$f":"'Trial 4'!BD29","v":{"v":126.62850134198769,"d":"126.63"}},{"$f":"'Trial 4'!BE29","v":{"v":126.37745182874605,"d":"126.38"}},{"$f":"'Trial 4'!BF29","v":{"v":126.18253475095622,"d":"126.18"}},{"$f":"'Trial 4'!BG29","v":{"v":125.93978820396107,"d":"125.94"}},{"$f":"'Trial 4'!BH29","v":{"v":125.78490475864369,"d":"125.78"}},{"$f":"'Trial 4'!BI29","v":{"v":125.5499387849599,"d":"125.55"}},{"$f":"'Trial 4'!BJ29","v":{"v":125.36678404142278,"d":"125.37"}},{"$f":"'Trial 4'!BK29","v":{"v":125.08550019346399,"d":"125.09"}},{"$f":"'Trial 4'!BL29","v":{"v":124.95422482335042,"d":"124.95"}},{"$f":"'Trial 4'!BM29","v":{"v":124.79850383389999,"d":"124.80"}},{"$f":"'Trial 4'!BO29","v":{"v":124.66478205335699,"d":"124.66"}},{"$f":"'Trial 4'!BP29","v":{"v":124.52559432895768,"d":"124.53"}},{"$f":"'Trial 4'!BQ29","v":{"v":124.3908060586858,"d":"124.39"}},{"$f":"'Trial 4'!BR29","v":{"v":124.17828224024652,"d":"124.18"}},{"$f":"'Trial 4'!BS29","v":{"v":124.01691529653343,"d":"124.02"}},{"$f":"'Trial 4'!BT29","v":{"v":123.78390546681769,"d":"123.78"}},{"$f":"'Trial 4'!BU29","v":{"v":123.64656365144889,"d":"123.65"}},{"$f":"'Trial 4'!BV29","v":{"v":123.45562625659801,"d":"123.46"}},{"$f":"'Trial 4'!BW29","v":{"v":123.24621910360852,"d":"123.25"}},{"$f":"'Trial 4'!BX29","v":{"v":123.02040623464701,"d":"123.02"}},{"$f":"'Trial 4'!BY29","v":{"v":122.90220436305565,"d":"122.90"}},{"$f":"'Trial 4'!BZ29","v":{"v":122.7309005638735,"d":"122.73"}},{"$f":"'Trial 4'!CB29","v":{"v":122.59991838737899,"d":"122.60"}},{"$f":"'Trial 4'!CC29","v":{"v":122.39316127087027,"d":"122.39"}},{"$f":"'Trial 4'!CD29","v":{"v":122.26216764334845,"d":"122.26"}},{"$f":"'Trial 4'!CE29","v":{"v":122.07704783040631,"d":"122.08"}},{"$f":"'Trial 4'!CF29","v":{"v":121.90505954174974,"d":"121.91"}},{"$f":"'Trial 4'!CG29","v":{"v":121.76137474787869,"d":"121.76"}},{"$f":"'Trial 4'!CH29","v":{"v":121.58807969695609,"d":"121.59"}},{"$f":"'Trial 4'!CI29","v":{"v":121.5421233403724,"d":"121.54"}},{"$f":"'Trial 4'!CJ29","v":{"v":121.44748887446437,"d":"121.45"}},{"$f":"'Trial 4'!CK29","v":{"v":121.29235195147747,"d":"121.29"}},{"$f":"'Trial 4'!CL29","v":{"v":121.20358517465439,"d":"121.20"}},{"$f":"'Trial 4'!CM29","v":{"v":121.07033718338573,"d":"121.07"}},{"$f":"'Trial 4'!CO29","v":{"v":120.88844836595136,"d":"120.89"}},{"$f":"'Trial 4'!CP29","v":{"v":120.79723043779748,"d":"120.80"}},{"$f":"'Trial 4'!CQ29","v":{"v":120.69115386158413,"d":"120.69"}},{"$f":"'Trial 4'!CR29","v":{"v":120.6012596126076,"d":"120.60"}},{"$f":"'Trial 4'!CS29","v":{"v":120.46556912107948,"d":"120.47"}},{"$f":"'Trial 4'!CT29","v":{"v":120.28390202241644,"d":"120.28"}},{"$f":"'Trial 4'!CU29","v":{"v":120.06440503535434,"d":"120.06"}},{"$f":"'Trial 4'!CV29","v":{"v":120.01866589662008,"d":"120.02"}},{"$f":"'Trial 4'!CW29","v":{"v":119.91105191171374,"d":"119.91"}},{"$f":"'Trial 4'!CX29","v":{"v":119.79909980706114,"d":"119.80"}},{"$f":"'Trial 4'!CY29","v":{"v":119.58375867529536,"d":"119.58"}},{"$f":"'Trial 4'!CZ29","v":{"v":119.48810013559442,"d":"119.49"}},{"$f":"'Trial 4'!DB29","v":{"v":119.428663573882,"d":"119.43"}},{"$f":"'Trial 4'!DC29","v":{"v":119.26202133232617,"d":"119.26"}},{"$f":"'Trial 4'!DD29","v":{"v":119.06880056034002,"d":"119.07"}},{"$f":"'Trial 4'!DE29","v":{"v":118.97765428646272,"d":"118.98"}},{"$f":"'Trial 4'!DF29","v":{"v":118.88748173013406,"d":"118.89"}},{"$f":"'Trial 4'!DG29","v":{"v":118.77097096090023,"d":"118.77"}},{"$f":"'Trial 4'!DH29","v":{"v":118.66952447470027,"d":"118.67"}},{"$f":"'Trial 4'!DI29","v":{"v":118.48183836073183,"d":"118.48"}},{"$f":"'Trial 4'!DJ29","v":{"v":118.40282886406249,"d":"118.40"}},{"$f":"'Trial 4'!DK29","v":{"v":118.25066211615561,"d":"118.25"}},{"$f":"'Trial 4'!DL29","v":{"v":118.16421598312415,"d":"118.16"}},{"$f":"'Trial 4'!DM29","v":{"v":118.06107737744578,"d":"118.06"}},{"$f":"'Trial 4'!DO29","v":{"v":117.91595026884211,"d":"117.92"}},{"$f":"'Trial 4'!DP29","v":{"v":117.8741377168922,"d":"117.87"}},{"$f":"'Trial 4'!DQ29","v":{"v":117.8547490681079,"d":"117.85"}},{"$f":"'Trial 4'!DR29","v":{"v":117.68588626027784,"d":"117.69"}},{"$f":"'Trial 4'!DS29","v":{"v":117.65138706936453,"d":"117.65"}},{"$f":"'Trial 4'!DT29","v":{"v":117.62680108345697,"d":"117.63"}},{"$f":"'Trial 4'!DU29","v":{"v":117.5572731671511,"d":"117.56"}},{"$f":"'Trial 4'!DV29","v":{"v":117.41286754200496,"d":"117.41"}},{"$f":"'Trial 4'!DW29","v":{"v":117.28602148936625,"d":"117.29"}},{"$f":"'Trial 4'!DX29","v":{"v":117.07245928277375,"d":"117.07"}},{"$f":"'Trial 4'!DY29","v":{"v":117.03043798029707,"d":"117.03"}},{"$f":"'Trial 4'!DZ29","v":{"v":116.97557520601103,"d":"116.98"}},{"$f":"'Trial 4'!EB29","v":{"v":116.94443059832132,"d":"116.94"}},{"$f":"'Trial 4'!EC29","v":{"v":116.82555307070041,"d":"116.83"}},{"$f":"'Trial 4'!ED29","v":{"v":116.6100917367113,"d":"116.61"}},{"$f":"'Trial 4'!EE29","v":{"v":116.481579452777,"d":"116.48"}},{"$f":"'Trial 4'!EF29","v":{"v":116.43705084596576,"d":"116.44"}},{"$f":"'Trial 4'!EG29","v":{"v":116.41163470019725,"d":"116.41"}},{"$f":"'Trial 4'!EH29","v":{"v":116.27950840053184,"d":"116.28"}},{"$f":"'Trial 4'!EI29","v":{"v":116.20991728403888,"d":"116.21"}},{"$f":"'Trial 4'!EJ29","v":{"v":116.01868689298765,"d":"116.02"}},{"$f":"'Trial 4'!EK29","v":{"v":115.82867243072913,"d":"115.83"}},{"$f":"'Trial 4'!EL29","v":{"v":115.7783273463551,"d":"115.78"}},{"$f":"'Trial 4'!EM29","v":{"v":115.61410885565385,"d":"115.61"}}]
[{"$f":"'Trial 5'!B29","v":{"v":140,"d":"140.00"}},{"$f":"'Trial 5'!C29","v":{"v":139.59511963667305,"d":"139.60"}},{"$f":"'Trial 5'!D29","v":{"v":139.2119796126544,"d":"139.21"}},{"$f":"'Trial 5'!E29","v":{"v":138.9450554138482,"d":"138.95"}},{"$f":"'Trial 5'!F29","v":{"v":138.53152030819177,"d":"138.53"}},{"$f":"'Trial 5'!G29","v":{"v":138.17540639431988,"d":"138.18"}},{"$f":"'Trial 5'!H29","v":{"v":137.81589533938535,"d":"137.82"}},{"$f":"'Trial 5'!I29","v":{"v":137.49767003535777,"d":"137.50"}},{"$f":"'Trial 5'!J29","v":{"v":137.2190673164628,"d":"137.22"}},{"$f":"'Trial 5'!K29","v":{"v":137.0111880072624,"d":"137.01"}},{"$f":"'Trial 5'!L29","v":{"v":136.65883830561734,"d":"136.66"}},{"$f":"'Trial 5'!M29","v":{"v":136.32080548423932,"d":"136.32"}},{"$f":"'Trial 5'!O29","v":{"v":136.0206789528722,"d":"136.02"}},{"$f":"'Trial 5'!P29","v":{"v":135.70846277342665,"d":"135.71"}},{"$f":"'Trial 5'!Q29","v":{"v":135.42327935730174,"d":"135.42"}},{"$f":"'Trial 5'!R29","v":{"v":135.12091323802326,"d":"135.12"}},{"$f":"'Trial 5'!S29","v":{"v":134.8474474852604,"d":"134.85"}},{"$f":"'Trial 5'!T29","v":{"v":134.49613687411946,"d":"134.50"}},{"$f":"'Trial 5'!U29","v":{"v":134.3176452084273,"d":"134.32"}},{"$f":"'Trial 5'!V29","v":{"v":134.06468238770475,"d":"134.06"}},{"$f":"'Trial 5'!W29","v":{"v":133.78430501013503,"d":"133.78"}},{"$f":"'Trial 5'!X29","v":{"v":133.52841199944987,"d":"133.53"}},{"$f":"'Trial 5'!Y29","v":{"v":133.20308400916227,"d":"133.20"}},{"$f":"'Trial 5'!Z29","v":{"v":133.03265856962022,"d":"133.03"}},{"$f":"'Trial 5'!AB29","v":{"v":132.7467440641378,"d":"132.75"}},{"$f":"'Trial 5'!AC29","v":{"v":132.51505956556468,"d":"132.52"}},{"$f":"'Trial 5'!AD29","v":{"v":132.25741885410767,"d":"132.26"}},{"$f":"'Trial 5'!AE29","v":{"v":132.08901496592196,"d":"132.09"}},{"$f":"'Trial 5'!AF29","v":{"v":131.74000130608297,"d":"131.74"}},{"$f":"'Trial 5'!AG29","v":{"v":131.41165202028495,"d":"131.41"}},{"$f":"'Trial 5'!AH29","v":{"v":131.139338520623,"d":"131.14"}},{"$f":"'Trial 5'!AI29","v":{"v":130.92059030302,"d":"130.92"}},{"$f":"'Trial 5'!AJ29","v":{"v":130.62404615186435,"d":"130.62"}},{"$f":"'Trial 5'!AK29","v":{"v":130.40044092067308,"d":"130.40"}},{"$f":"'Trial 5'!AL29","v":{"v":130.10730853628596,"d":"130.11"}},{"$f":"'Trial 5'!AM29","v":{"v":129.86132362595973,"d":"129.86"}},{"$f":"'Trial 5'!AO29","v":{"v":129.58033040960026,"d":"129.58"}},{"$f":"'Trial 5'!AP29","v":{"v":129.35553417810644,"d":"129.36"}},{"$f":"'Trial 5'!AQ29","v":{"v":129.1386976497442,"d":"129.14"}},{"$f":"'Trial 5'!AR29","v":{"v":128.89711934129355,"d":"128.90"}},{"$f":"'Trial 5'!AS29","v":{"v":128.7048426837667,"d":"128.70"}},{"$f":"'Trial 5'!AT29","v":{"v":128.52401429077298,"d":"128.52"}},{"$f":"'Trial 5'!AU29","v":{"v":128.28118740498667,"d":"128.28"}},{"$f":"'Trial 5'!AV29","v":{"v":128.09029320345422,"d":"128.09"}},{"$f":"'Trial 5'!AW29","v":{"v":127.88481936996288,"d":"127.88"}},{"$f":"'Trial 5'!AX29","v":{"v":127.6628546681045,"d":"127.66"}},{"$f":"'Trial 5'!AY29","v":{"v":127.44398815125045,"d":"127.44"}},{"$f":"'Trial 5'!AZ29","v":{"v":127.25470729272905,"d":"127.25"}},{"$f":"'Trial 5'!BB29","v":{"v":127.04101109043255,"d":"127.04"}},{"$f":"'Trial 5'!BC29","v":{"v":126.8051051964692,"d":"126.81"}},{"$f":"'Trial 5'!BD29","v":{"v":126.53901801610432,"d":"126.54"}},{"$f":"'Trial 5'!BE29","v":{"v":126.24822418978371,"d":"126.25"}},{"$f":"'Trial 5'!BF29","v":{"v":126.08289535002272,"d":"126.08"}},{"$f":"'Trial 5'!BG29","v":{"v":125.86663833509732,"d":"125.87"}},{"$f":"'Trial 5'!BH29","v":{"v":125.69308420069869,"d":"125.69"}},{"$f":"'Trial 5'!BI29","v":{"v":125.4347525422096,"d":"125.43"}},{"$f":"'Trial 5'!BJ29","v":{"v":125.26811388714742,"d":"125.27"}},{"$f":"'Trial 5'!BK29","v":{"v":125.15172737635947,"d":"125.15"}},{"$f":"'Trial 5'!BL29","v":{"v":124.99345177289348,"d":"124.99"}},{"$f":"'Trial 5'!BM29","v":{"v":124.88107379090238,"d":"124.88"}},{"$f":"'Trial 5'!BO29","v":{"v":124.71908064481418,"d":"124.72"}},{"$f":"'Trial 5'!BP29","v":{"v":124.60609837053198,"d":"124.61"}},{"$f":"'Trial 5'!BQ29","v":{"v":124.52253958391817,"d":"124.52"}},{"$f":"'Trial 5'!BR29","v":{"v":124.43575101943304,"d":"124.44"}},{"$f":"'Trial 5'!BS29","v":{"v":124.19912493677305,"d":"124.20"}},{"$f":"'Trial 5'!BT29","v":{"v":124.02713056198441,"d":"124.03"}},{"$f":"'Trial 5'!BU29","v":{"v":123.95225620874979,"d":"123.95"}},{"$f":"'Trial 5'!BV29","v":{"v":123.72490834172845,"d":"123.72"}},{"$f":"'Trial 5'!BW29","v":{"v":123.54621239187036,"d":"123.55"}},{"$f":"'Trial 5'!BX29","v":{"v":123.38934851929054,"d":"123.39"}},{"$f":"'Trial 5'!BY29","v":{"v":123.29896806594357,"d":"123.30"}},{"$f":"'Trial 5'!BZ29","v":{"v":123.21538647743014,"d":"123.22"}},{"$f":"'Trial 5'!CB29","v":{"v":123.11089121856776,"d":"123.11"}},{"$f":"'Trial 5'!CC29","v":{"v":122.93989184018119,"d":"122.94"}},{"$f":"'Trial 5'!CD29","v":{"v":122.78266689038682,"d":"122.78"}},{"$f":"'Trial 5'!CE29","v":{"v":122.61635185096162,"d":"122.62"}},{"$f":"'Trial 5'!CF29","v":{"v":122.42564173968587,"d":"122.43"}},{"$f":"'Trial 5'!CG29","v":{"v":122.28046796987381,"d":"122.28"}},{"$f":"'Trial 5'!CH29","v":{"v":122.22422831711827,"d":"122.22"}},{"$f":"'Trial 5'!CI29","v":{"v":122.03202509172931,"d":"122.03"}},{"$f":"'Trial 5'!CJ29","v":{"v":121.83113627574525,"d":"121.83"}},{"$f":"'Trial 5'!CK29","v":{"v":121.69886398801113,"d":"121.70"}},{"$f":"'Trial 5'!CL29","v":{"v":121.6412283856651,"d":"121.64"}},{"$f":"'Trial 5'!CM29","v":{"v":121.43923370496167,"d":"121.44"}},{"$f":"'Trial 5'!CO29","v":{"v":121.32089358281132,"d":"121.32"}},{"$f":"'Trial 5'!CP29","v":{"v":121.19806964554556,"d":"121.20"}},{"$f":"'Trial 5'!CQ29","v":{"v":120.9990385237266,"d":"121.00"}},{"$f":"'Trial 5'!CR29","v":{"v":120.93417329167526,"d":"120.93"}},{"$f":"'Trial 5'!CS29","v":{"v":120.74826366271867,"d":"120.75"}},{"$f":"'Trial 5'!CT29","v":{"v":120.58036273548517,"d":"120.58"}},{"$f":"'Trial 5'!CU29","v":{"v":120.46887671621103,"d":"120.47"}},{"$f":"'Trial 5'!CV29","v":{"v":120.3423713814308,"d":"120.34"}},{"$f":"'Trial 5'!CW29","v":{"v":120.18887570180593,"d":"120.19"}},{"$f":"'Trial 5'!CX29","v":{"v":120.10356245072244,"d":"120.10"}},{"$f":"'Trial 5'!CY29","v":{"v":119.94228193617252,"d":"119.94"}},{"$f":"'Trial 5'!CZ29","v":{"v":119.80324294228069,"d":"119.80"}},{"$f":"'Trial 5'!DB29","v":{"v":119.58538220560253,"d":"119.59"}},{"$f":"'Trial 5'!DC29","v":{"v":119.48573908184845,"d":"119.49"}},{"$f":"'Trial 5'!DD29","v":{"v":119.35791543500711,"d":"119.36"}},{"$f":"'Trial 5'!DE29","v":{"v":119.24513909499093,"d":"119.25"}},{"$f":"'Trial 5'!DF29","v":{"v":119.0797736833529,"d":"119.08"}},{"$f":"'Trial 5'!DG29","v":{"v":118.90369767272782,"d":"118.90"}},{"$f":"'Trial 5'!DH29","v":{"v":118.82781318445035,"d":"118.83"}},{"$f":"'Trial 5'!DI29","v":{"v":118.79291387681135,"d":"118.79"}},{"$f":"'Trial 5'!DJ29","v":{"v":118.67030784751539,"d":"118.67"}},{"$f":"'Trial 5'!DK29","v":{"v":118.49656009499394,"d":"118.50"}},{"$f":"'Trial 5'!DL29","v":{"v":118.36273913100382,"d":"118.36"}},{"$f":"'Trial 5'!DM29","v":{"v":118.18377050791564,"d":"118.18"}},{"$f":"'Trial 5'!DO29","v":{"v":118.06493841238111,"d":"118.06"}},{"$f":"'Trial 5'!DP29","v":{"v":117.91682440708797,"d":"117.92"}},{"$f":"'Trial 5'!DQ29","v":{"v":117.79553347744393,"d":"117.80"}},{"$f":"'Trial 5'!DR29","v":{"v":117.75959795103982,"d":"117.76"}},{"$f":"'Trial 5'!DS29","v":{"v":117.68101647862878,"d":"117.68"}},{"$f":"'Trial 5'!DT29","v":{"v":117.59236492991694,"d":"117.59"}},{"$f":"'Trial 5'!DU29","v":{"v":117.5328586905863,"d":"117.53"}},{"$f":"'Trial 5'!DV29","v":{"v":117.3745290678887,"d":"117.37"}},{"$f":"'Trial 5'!DW29","v":{"v":117.26661793707625,"d":"117.27"}},{"$f":"'Trial 5'!DX29","v":{"v":117.19701020761055,"d":"117.20"}},{"$f":"'Trial 5'!DY29","v":{"v":117.0549248723543,"d":"117.05"}},{"$f":"'Trial 5'!DZ29","v":{"v":116.94135342160213,"d":"116.94"}},{"$f":"'Trial 5'!EB29","v":{"v":116.78034734844867,"d":"116.78"}},{"$f":"'Trial 5'!EC29","v":{"v":116.66637611174144,"d":"116.67"}},{"$f":"'Trial 5'!ED29","v":{"v":116.61938589960087,"d":"116.62"}},{"$f":"'Trial 5'!EE29","v":{"v":116.46762122996873,"d":"116.47"}},{"$f":"'Trial 5'!EF29","v":{"v":116.36888425268099,"d":"116.37"}},{"$f":"'Trial 5'!EG29","v":{"v":116.26765476562083,"d":"116.27"}},{"$f":"'Trial 5'!EH29","v":{"v":116.21696875575796,"d":"116.22"}},{"$f":"'Trial 5'!EI29","v":{"v":116.0341004307564,"d":"116.03"}},{"$f":"'Trial 5'!EJ29","v":{"v":115.87392202409097,"d":"115.87"}},{"$f":"'Trial 5'!EK29","v":{"v":115.73911346276049,"d":"115.74"}},{"$f":"'Trial 5'!EL29","v":{"v":115.64046933124855,"d":"115.64"}},{"$f":"'Trial 5'!EM29","v":{"v":115.54474812776688,"d":"115.54"}}]
[{"$f":"'Trial 6'!B29","v":{"v":140,"d":"140.00"}},{"$f":"'Trial 6'!C29","v":{"v":139.6730321264592,"d":"139.67"}},{"$f":"'Trial 6'!D29","v":{"v":139.2376467167364,"d":"139.24"}},{"$f":"'Trial 6'!E29","v":{"v":138.9600466533387,"d":"138.96"}},{"$f":"'Trial 6'!F29","v":{"v":138.71366004797238,"d":"138.71"}},{"$f":"'Trial 6'!G29","v":{"v":138.4167348246212,"d":"138.42"}},{"$f":"'Trial 6'!H29","v":{"v":138.05427040158935,"d":"138.05"}},{"$f":"'Trial 6'!I29","v":{"v":137.7280450754126,"d":"137.73"}},{"$f":"'Trial 6'!J29","v":{"v":137.40352158836964,"d":"137.40"}},{"$f":"'Trial 6'!K29","v":{"v":137.14765880736277,"d":"137.15"}},{"$f":"'Trial 6'!L29","v":{"v":136.8380619046371,"d":"136.84"}},{"$f":"'Trial 6'!M29","v":{"v":136.61916366455674,"d":"136.62"}},{"$f":"'Trial 6'!O29","v":{"v":136.3133973435108,"d":"136.31"}},{"$f":"'Trial 6'!P29","v":{"v":136.0848105911001,"d":"136.08"}},{"$f":"'Trial 6'!Q29","v":{"v":135.77222656244092,"d":"135.77"}},{"$f":"'Trial 6'!R29","v":{"v":135.55058923297696,"d":"135.55"}},{"$f":"'Trial 6'!S29","v":{"v":135.30805567075882,"d":"135.31"}},{"$f":"'Trial 6'!T29","v":{"v":134.9274943911621,"d":"134.93"}},{"$f":"'Trial 6'!U29","v":{"v":134.62740949053844,"d":"134.63"}},{"$f":"'Trial 6'!V29","v":{"v":134.38075930011343,"d":"134.38"}},{"$f":"'Trial 6'!W29","v":{"v":134.0633938402943,"d":"134.06"}},{"$f":"'Trial 6'!X29","v":{"v":133.76185039526854,"d":"133.76"}},{"$f":"'Trial 6'!Y29","v":{"v":133.51051299999716,"d":"133.51"}},{"$f":"'Trial 6'!Z29","v":{"v":133.2931559883845,"d":"133.29"}},{"$f":"'Trial 6'!AB29","v":{"v":132.97356405766612,"d":"132.97"}},{"$f":"'Trial 6'!AC29","v":{"v":132.72446518449507,"d":"132.72"}},{"$f":"'Trial 6'!AD29","v":{"v":132.49625890843328,"d":"132.50"}},{"$f":"'Trial 6'!AE29","v":{"v":132.30110230556252,"d":"132.30"}},{"$f":"'Trial 6'!AF29","v":{"v":132.0660882353655,"d":"132.07"}},{"$f":"'Trial 6'!AG29","v":{"v":131.87561074539687,"d":"131.88"}},{"$f":"'Trial 6'!AH29","v":{"v":131.64213124776916,"d":"131.64"}},{"$f":"'Trial 6'!AI29","v":{"v":131.44062960684332,"d":"131.44"}},{"$f":"'Trial 6'!AJ29","v":{"v":131.18533798290923,"d":"131.19"}},{"$f":"'Trial 6'!AK29","v":{"v":130.9066946907043,"d":"130.91"}},{"$f":"'Trial 6'!AL29","v":{"v":130.67500521783688,"d":"130.68"}},{"$f":"'Trial 6'!AM29","v":{"v":130.49021358317003,"d":"130.49"}},{"$f":"'Trial 6'!AO29","v":{"v":130.33723746107898,"d":"130.34"}},{"$f":"'Trial 6'!AP29","v":{"v":130.12251693249434,"d":"130.12"}},{"$f":"'Trial 6'!AQ29","v":{"v":129.87794792164826,"d":"129.88"}},{"$f":"'Trial 6'!AR29","v":{"v":129.61784497451515,"d":"129.62"}},{"$f":"'Trial 6'!AS29","v":{"v":129.40176597321485,"d":"129.40"}},{"$f":"'Trial 6'!AT29","v":{"v":129.16174836992045,"d":"129.16"}},{"$f":"'Trial 6'!AU29","v":{"v":128.90344933622902,"d":"128.90"}},{"$f":"'Trial 6'!AV29","v":{"v":128.59321979035528,"d":"128.59"}},{"$f":"'Trial 6'!AW29","v":{"v":128.39271065523377,"d":"128.39"}},{"$f":"'Trial 6'!AX29","v":{"v":128.1499802960034,"d":"128.15"}},{"$f":"'Trial 6'!AY29","v":{"v":127.87060868785798,"d":"127.87"}},{"$f":"'Trial 6'!AZ29","v":{"v":127.68809998682212,"d":"127.69"}},{"$f":"'Trial 6'!BB29","v":{"v":127.55493433859728,"d":"127.55"}},{"$f":"'Trial 6'!BC29","v":{"v":127.25834223897405,"d":"127.26"}},{"$f":"'Trial 6'!BD29","v":{"v":127.00466823691585,"d":"127.00"}},{"$f":"'Trial 6'!BE29","v":{"v":126.77195781433169,"d":"126.77"}},{"$f":"'Trial 6'!BF29","v":{"v":126.53007643661552,"d":"126.53"}},{"$f":"'Trial 6'!BG29","v":{"v":126.3311294732821,"d":"126.33"}},{"$f":"'Trial 6'!BH29","v":{"v":126.1585839266776,"d":"126.16"}},{"$f":"'Trial 6'!BI29","v":{"v":126.01599424856616,"d":"126.02"}},{"$f":"'Trial 6'!BJ29","v":{"v":125.78960274298646,"d":"125.79"}},{"$f":"'Trial 6'!BK29","v":{"v":125.68303230614389,"d":"125.68"}},{"$f":"'Trial 6'!BL29","v":{"v":125.51548260565922,"d":"125.52"}},{"$f":"'Trial 6'!BM29","v":{"v":125.24866504374606,"d":"125.25"}},{"$f":"'Trial 6'!BO29","v":{"v":125.08654907145366,"d":"125.09"}},{"$f":"'Trial 6'!BP29","v":{"v":124.8120491045071,"d":"124.81"}},{"$f":"'Trial 6'!BQ29","v":{"v":124.61431279655483,"d":"124.61"}},{"$f":"'Trial 6'!BR29","v":{"v":124.40905355338711,"d":"124.41"}},{"$f":"'Trial 6'!BS29","v":{"v":124.18515836793709,"d":"124.19"}},{"$f":"'Trial 6'!BT29","v":{"v":123.91688302093097,"d":"123.92"}},{"$f":"'Trial 6'!BU29","v":{"v":123.80287878113188,"d":"123.80"}},{"$f":"'Trial 6'!BV29","v":{"v":123.6372803097831,"d":"123.64"}},{"$f":"'Trial 6'!BW29","v":{"v":123.497337790275,"d":"123.50"}},{"$f":"'Trial 6'!BX29","v":{"v":123.37612857739985,"d":"123.38"}},{"$f":"'Trial 6'!BY29","v":{"v":123.16505167722404,"d":"123.17"}},{"$f":"'Trial 6'!BZ29","v":{"v":123.08577833904558,"d":"123.09"}},{"$f":"'Trial 6'!CB29","v":{"v":122.97142997902611,"d":"122.97"}},{"$f":"'Trial 6'!CC29","v":{"v":122.81554349843987,"d":"122.82"}},{"$f":"'Trial 6'!CD29","v":{"v":122.64749983267853,"d":"122.65"}},{"$f":"'Trial 6'!CE29","v":{"v":122.57417996284373,"d":"122.57"}},{"$f":"'Trial 6'!CF29","v":{"v":122.40033969620588,"d":"122.40"}},{"$f":"'Trial 6'!CG29","v":{"v":122.22094415565184,"d":"122.22"}},{"$f":"'Trial 6'!CH29","v":{"v":122.11210647917899,"d":"122.11"}},{"$f":"'Trial 6'!CI29","v":{"v":122.00120808134145,"d":"122.00"}},{"$f":"'Trial 6'!CJ29","v":{"v":121.91390748988262,"d":"121.91"}},{"$f":"'Trial 6'!CK29","v":{"v":121.7672896261648,"d":"121.77"}},{"$f":"'Trial 6'!CL29","v":{"v":121.64337317675434,"d":"121.64"}},{"$f":"'Trial 6'!CM29","v":{"v":121.55712496684801,"d":"121.56"}},{"$f":"'Trial 6'!CO29","v":{"v":121.45671183647447,"d":"121.46"}},{"$f":"'Trial 6'!CP29","v":{"v":121.32402542380497,"d":"121.32"}},{"$f":"'Trial 6'!CQ29","v":{"v":121.23998234241441,"d":"121.24"}},{"$f":"'Trial 6'!CR29","v":{"v":121.0985475960266,"d":"121.10"}},{"$f":"'Trial 6'!CS29","v":{"v":120.95993872701659,"d":"120.96"}},{"$f":"'Trial 6'!CT29","v":{"v":120.773911810854,"d":"120.77"}},{"$f":"'Trial 6'!CU29","v":{"v":120.59661716888537,"d":"120.60"}},{"$f":"'Trial 6'!CV29","v":{"v":120.5431182315876,"d":"120.54"}},{"$f":"'Trial 6'!CW29","v":{"v":120.34926317085834,"d":"120.35"}},{"$f":"'Trial 6'!CX29","v":{"v":120.29278265958023,"d":"120.29"}},{"$f":"'Trial 6'!CY29","v":{"v":120.17307970329362,"d":"120.17"}},{"$f":"'Trial 6'!CZ29","v":{"v":119.99317505982731,"d":"119.99"}},{"$f":"'Trial 6'!DB29","v":{"v":119.88712466773997,"d":"119.89"}},{"$f":"'Trial 6'!DC29","v":{"v":119.78792087298616,"d":"119.79"}},{"$f":"'Trial 6'!DD29","v":{"v":119.57124317543442,"d":"119.57"}},{"$f":"'Trial 6'!DE29","v":{"v":119.41129651935744,"d":"119.41"}},{"$f":"'Trial 6'!DF29","v":{"v":119.28239232963975,"d":"119.28"}},{"$f":"'Trial 6'!DG29","v":{"v":119.08048600569039,"d":"119.08"}},{"$f":"'Trial 6'!DH29","v":{"v":118.94065262085125,"d":"118.94"}},{"$f":"'Trial 6'!DI29","v":{"v":118.75264032168418,"d":"118.75"}},{"$f":"'Trial 6'!DJ29","v":{"v":118.56195645932121,"d":"118.56"}},{"$f":"'Trial 6'!DK29","v":{"v":118.3550648676119,"d":"118.36"}},{"$f":"'Trial 6'!DL29","v":{"v":118.24421104612262,"d":"118.24"}},{"$f":"'Trial 6'!DM29","v":{"v":118.0806688574481,"d":"118.08"}},{"$f":"'Trial 6'!DO29","v":{"v":117.94387539502686,"d":"117.94"}},{"$f":"'Trial 6'!DP29","v":{"v":117.88604404735294,"d":"117.89"}},{"$f":"'Trial 6'!DQ29","v":{"v":117.73167999718692,"d":"117.73"}},{"$f":"'Trial 6'!DR29","v":{"v":117.58395708689777,"d":"117.58"}},{"$f":"'Trial 6'!DS29","v":{"v":117.47008292656686,"d":"117.47"}},{"$f":"'Trial 6'!DT29","v":{"v":117.3480916124829,"d":"117.35"}},{"$f":"'Trial 6'!DU29","v":{"v":117.26881253357739,"d":"117.27"}},{"$f":"'Trial 6'!DV29","v":{"v":117.21398697040134,"d":"117.21"}},{"$f":"'Trial 6'!DW29","v":{"v":117.16868196648028,"d":"117.17"}},{"$f":"'Trial 6'!DX29","v":{"v":117.06886457865981,"d":"117.07"}},{"$f":"'Trial 6'!DY29","v":{"v":117.00074867677667,"d":"117.00"}},{"$f":"'Trial 6'!DZ29","v":{"v":116.87961089403443,"d":"116.88"}},{"$f":"'Trial 6'!EB29","v":{"v":116.76599920082327,"d":"116.77"}},{"$f":"'Trial 6'!EC29","v":{"v":116.71476503380418,"d":"116.71"}},{"$f":"'Trial 6'!ED29","v":{"v":116.6090081102914,"d":"116.61"}},{"$f":"'Trial 6'!EE29","v":{"v":116.52750531201868,"d":"116.53"}},{"$f":"'Trial 6'!EF29","v":{"v":116.46186558189497,"d":"116.46"}},{"$f":"'Trial 6'!EG29","v":{"v":116.353739478849,"d":"116.35"}},{"$f":"'Trial 6'!EH29","v":{"v":116.2699976670457,"d":"116.27"}},{"$f":"'Trial 6'!EI29","v":{"v":116.1627290585717,"d":"116.16"}},{"$f":"'Trial 6'!EJ29","v":{"v":116.07890533470731,"d":"116.08"}},{"$f":"'Trial 6'!EK29","v":{"v":116.04078262090631,"d":"116.04"}},{"$f":"'Trial 6'!EL29","v":{"v":116.02438512144342,"d":"116.02"}},{"$f":"'Trial 6'!EM29","v":{"v":115.85866053811083,"d":"115.86"}}]
[{"$f":"'Trial 7'!B29","v":{"v":140,"d":"140.00"}},{"$f":"'Trial 7'!C29","v":{"v":139.6133486635911,"d":"139.61"}},{"$f":"'Trial 7'!D29","v":{"v":139.31956611041235,"d":"139.32"}},{"$f":"'Trial 7'!E29","v":{"v":139.01545512945899,"d":"139.02"}},{"$f":"'Trial 7'!F29","v":{"v":138.67531399772426,"d":"138.68"}},{"$f":"'Trial 7'!G29","v":{"v":138.40520413673596,"d":"138.41"}},{"$f":"'Trial 7'!H29","v":{"v":138.14103042309196,"d":"138.14"}},{"$f":"'Trial 7'!I29","v":{"v":137.8761314521719,"d":"137.88"}},{"$f":"'Trial 7'!J29","v":{"v":137.62828972796635,"d":"137.63"}},{"$f":"'Trial 7'!K29","v":{"v":137.30251176179127,"d":"137.30"}},{"$f":"'Trial 7'!L29","v":{"v":136.95536999714065,"d":"136.96"}},{"$f":"'Trial 7'!M29","v":{"v":136.6452421789432,"d":"136.65"}},{"$f":"'Trial 7'!O29","v":{"v":136.32816720112473,"d":"136.33"}},{"$f":"'Trial 7'!P29","v":{"v":136.03958687816854,"d":"136.04"}},{"$f":"'Trial 7'!Q29","v":{"v":135.80674181989644,"d":"135.81"}},{"$f":"'Trial 7'!R29","v":{"v":135.57062031246267,"d":"135.57"}},{"$f":"'Trial 7'!S29","v":{"v":135.32246181121897,"d":"135.32"}},{"$f":"'Trial 7'!T29","v":{"v":135.05490776502728,"d":"135.05"}},{"$f":"'Trial 7'!U29","v":{"v":134.82166682938484,"d":"134.82"}},{"$f":"'Trial 7'!V29","v":{"v":134.53250745191048,"d":"134.53"}},{"$f":"'Trial 7'!W29","v":{"v":134.30714058557996,"d":"134.31"}},{"$f":"'Trial 7'!X29","v":{"v":134.10400500329237,"d":"134.10"}},{"$f":"'Trial 7'!Y29","v":{"v":133.8789675174782,"d":"133.88"}},{"$f":"'Trial 7'!Z29","v":{"v":133.6119997022054,"d":"133.61"}},{"$f":"'Trial 7'!AB29","v":{"v":133.26355408916703,"d":"133.26"}},{"$f":"'Trial 7'!AC29","v":{"v":132.9116316429051,"d":"132.91"}},{"$f":"'Trial 7'!AD29","v":{"v":132.65080725646445,"d":"132.65"}},{"$f":"'Trial 7'!AE29","v":{"v":132.41638824217748,"d":"132.42"}},{"$f":"'Trial 7'!AF29","v":{"v":132.2140282629234,"d":"132.21"}},{"$f":"'Trial 7'!AG29","v":{"v":131.92869035683663,"d":"131.93"}},{"$f":"'Trial 7'!AH29","v":{"v":131.71319595475532,"d":"131.71"}},{"$f":"'Trial 7'!AI29","v":{"v":131.4955079743482,"d":"131.50"}},{"$f":"'Trial 7'!AJ29","v":{"v":131.19094782429468,"d":"131.19"}},{"$f":"'Trial 7'!AK29","v":{"v":130.93408980137698,"d":"130.93"}},{"$f":"'Trial 7'!AL29","v":{"v":130.69855216905867,"d":"130.70"}},{"$f":"'Trial 7'!AM29","v":{"v":130.47026954035633,"d":"130.47"}},{"$f":"'Trial 7'!AO29","v":{"v":130.20582468054806,"d":"130.21"}},{"$f":"'Trial 7'!AP29","v":{"v":129.92050213533585,"d":"129.92"}},{"$f":"'Trial 7'!AQ29","v":{"v":129.6803051402406,"d":"129.68"}},{"$f":"'Trial 7'!AR29","v":{"v":129.4992878446559,"d":"129.50"}},{"$f":"'Trial 7'!AS29","v":{"v":129.31642342144482,"d":"129.32"}},{"$f":"'Trial 7'!AT29","v":{"v":129.17738472835154,"d":"129.18"}},{"$f":"'Trial 7'!AU29","v":{"v":128.91869794490592,"d":"128.92"}},{"$f":"'Trial 7'!AV29","v":{"v":128.69130428401635,"d":"128.69"}},{"$f":"'Trial 7'!AW29","v":{"v":128.46420560671942,"d":"128.46"}},{"$f":"'Trial 7'!AX29","v":{"v":128.21591121067345,"d":"128.22"}},{"$f":"'Trial 7'!AY29","v":{"v":127.94972802505647,"d":"127.95"}},{"$f":"'Trial 7'!AZ29","v":{"v":127.69901347638717,"d":"127.70"}},{"$f":"'Trial 7'!BB29","v":{"v":127.41845534585312,"d":"127.42"}},{"$f":"'Trial 7'!BC29","v":{"v":127.19175057499068,"d":"127.19"}},{"$f":"'Trial 7'!BD29","v":{"v":126.96309301415558,"d":"126.96"}},{"$f":"'Trial 7'!BE29","v":{"v":126.78700152999163,"d":"126.79"}},{"$f":"'Trial 7'!BF29","v":{"v":126.57195966785953,"d":"126.57"}},{"$f":"'Trial 7'!BG29","v":{"v":126.39899126238755,"d":"126.40"}},{"$f":"'Trial 7'!BH29","v":{"v":126.2621562645002,"d":"126.26"}},{"$f":"'Trial 7'!BI29","v":{"v":126.0178535845053,"d":"126.02"}},{"$f":"'Trial 7'!BJ29","v":{"v":125.82352058234314,"d":"125.82"}},{"$f":"'Trial 7'!BK29","v":{"v":125.60426507525582,"d":"125.60"}},{"$f":"'Trial 7'!BL29","v":{"v":125.34856471659515,"d":"125.35"}},{"$f":"'Trial 7'!BM29","v":{"v":125.13791766547867,"d":"125.14"}},{"$f":"'Trial 7'!BO29","v":{"v":124.98599287122009,"d":"124.99"}},{"$f":"'Trial 7'!BP29","v":{"v":124.77607671051875,"d":"124.78"}},{"$f":"'Trial 7'!BQ29","v":{"v":124.51375926328747,"d":"124.51"}},{"$f":"'Trial 7'!BR29","v":{"v":124.3703542245154,"d":"124.37"}},{"$f":"'Trial 7'!BS29","v":{"v":124.22648890691478,"d":"124.23"}},{"$f":"'Trial 7'!BT29","v":{"v":124.11219904075098,"d":"124.11"}},{"$f":"'Trial 7'!BU29","v":{"v":124.01088038575448,"d":"124.01"}},{"$f":"'Trial 7'!BV29","v":{"v":123.88967358769659,"d":"123.89"}},{"$f":"'Trial 7'!BW29","v":{"v":123.67301065194934,"d":"123.67"}},{"$f":"'Trial 7'!BX29","v":{"v":123.57578952789765,"d":"123.58"}},{"$f":"'Trial 7'!BY29","v":{"v":123.36741817240376,"d":"123.37"}},{"$f":"'Trial 7'!BZ29","v":{"v":123.13101255913399,"d":"123.13"}},{"$f":"'Trial 7'!CB29","v":{"v":122.86599263390654,"d":"122.87"}},{"$f":"'Trial 7'!CC29","v":{"v":122.69807336573713,"d":"122.70"}},{"$f":"'Trial 7'!CD29","v":{"v":122.57735827577017,"d":"122.58"}},{"$f":"'Trial 7'!CE29","v":{"v":122.46574193079498,"d":"122.47"}},{"$f":"'Trial 7'!CF29","v":{"v":122.20983022732297,"d":"122.21"}},{"$f":"'Trial 7'!CG29","v":{"v":122.026757732407,"d":"122.03"}},{"$f":"'Trial 7'!CH29","v":{"v":121.9165727784633,"d":"121.92"}},{"$f":"'Trial 7'!CI29","v":{"v":121.66175012335785,"d":"121.66"}},{"$f":"'Trial 7'!CJ29","v":{"v":121.46270595470159,"d":"121.46"}},{"$f":"'Trial 7'!CK29","v":{"v":121.41735494259544,"d":"121.42"}},{"$f":"'Trial 7'!CL29","v":{"v":121.36041157940026,"d":"121.36"}},{"$f":"'Trial 7'!CM29","v":{"v":121.20331226000052,"d":"121.20"}},{"$f":"'Trial 7'!CO29","v":{"v":121.11045214034594,"d":"121.11"}},{"$f":"'Trial 7'!CP29","v":{"v":121.0616823630915,"d":"121.06"}},{"$f":"'Trial 7'!CQ29","v":{"v":120.90975105866015,"d":"120.91"}},{"$f":"'Trial 7'!CR29","v":{"v":120.79636129406298,"d":"120.80"}},{"$f":"'Trial 7'!CS29","v":{"v":120.69544459183723,"d":"120.70"}},{"$f":"'Trial 7'!CT29","v":{"v":120.55972761690903,"d":"120.56"}},{"$f":"'Trial 7'!CU29","v":{"v":120.41418603080747,"d":"120.41"}},{"$f":"'Trial 7'!CV29","v":{"v":120.32706696457882,"d":"120.33"}},{"$f":"'Trial 7'!CW29","v":{"v":120.18679716190879,"d":"120.19"}},{"$f":"'Trial 7'!CX29","v":{"v":120.0420413798352,"d":"120.04"}},{"$f":"'Trial 7'!CY29","v":{"v":119.83470961342044,"d":"119.83"}},{"$f":"'Trial 7'!CZ29","v":{"v":119.63948827428837,"d":"119.64"}},{"$f":"'Trial 7'!DB29","v":{"v":119.53393171600685,"d":"119.53"}},{"$f":"'Trial 7'!DC29","v":{"v":119.48568716432224,"d":"119.49"}},{"$f":"'Trial 7'!DD29","v":{"v":119.41298375849891,"d":"119.41"}},{"$f":"'Trial 7'!DE29","v":{"v":119.29181108205873,"d":"119.29"}},{"$f":"'Trial 7'!DF29","v":{"v":119.18771488725316,"d":"119.19"}},{"$f":"'Trial 7'!DG29","v":{"v":119.07614423181012,"d":"119.08"}},{"$f":"'Trial 7'!DH29","v":{"v":118.88148765608457,"d":"118.88"}},{"$f":"'Trial 7'!DI29","v":{"v":118.68183960729864,"d":"118.68"}},{"$f":"'Trial 7'!DJ29","v":{"v":118.5641378814088,"d":"118.56"}},{"$f":"'Trial 7'!DK29","v":{"v":118.43799645336318,"d":"118.44"}},{"$f":"'Trial 7'!DL29","v":{"v":118.24147386988294,"d":"118.24"}},{"$f":"'Trial 7'!DM29","v":{"v":118.12998076459948,"d":"118.13"}},{"$f":"'Trial 7'!DO29","v":{"v":118.02293852263328,"d":"118.02"}},{"$f":"'Trial 7'!DP29","v":{"v":117.86223515535922,"d":"117.86"}},{"$f":"'Trial 7'!DQ29","v":{"v":117.74215992739647,"d":"117.74"}},{"$f":"'Trial 7'!DR29","v":{"v":117.61999468305558,"d":"117.62"}},{"$f":"'Trial 7'!DS29","v":{"v":117.4458750446069,"d":"117.45"}},{"$f":"'Trial 7'!DT29","v":{"v":117.35165108614977,"d":"117.35"}},{"$f":"'Trial 7'!DU29","v":{"v":117.18473020620267,"d":"117.18"}},{"$f":"'Trial 7'!DV29","v":{"v":117.04518958768314,"d":"117.05"}},{"$f":"'Trial 7'!DW29","v":{"v":116.97594047481013,"d":"116.98"}},{"$f":"'Trial 7'!DX29","v":{"v":116.96982289322142,"d":"116.97"}},{"$f":"'Trial 7'!DY29","v":{"v":116.78418559247736,"d":"116.78"}},{"$f":"'Trial 7'!DZ29","v":{"v":116.64304872351775,"d":"116.64"}},{"$f":"'Trial 7'!EB29","v":{"v":116.47846386770551,"d":"116.48"}},{"$f":"'Trial 7'!EC29","v":{"v":116.4357251069881,"d":"116.44"}},{"$f":"'Trial 7'!ED29","v":{"v":116.27811987044785,"d":"116.28"}},{"$f":"'Trial 7'!EE29","v":{"v":116.17215041948346,"d":"116.17"}},{"$f":"'Trial 7'!EF29","v":{"v":116.08878388048123,"d":"116.09"}},{"$f":"'Trial 7'!EG29","v":{"v":115.93680316673763,"d":"115.94"}},{"$f":"'Trial 7'!EH29","v":{"v":115.73900479424027,"d":"115.74"}},{"$f":"'Trial 7'!EI29","v":{"v":115.55653810618163,"d":"115.56"}},{"$f":"'Trial 7'!EJ29","v":{"v":115.48698828523872,"d":"115.49"}},{"$f":"'Trial 7'!EK29","v":{"v":115.42669452892736,"d":"115.43"}},{"$f":"'Trial 7'!EL29","v":{"v":115.32716401244771,"d":"115.33"}},{"$f":"'Trial 7'!EM29","v":{"v":115.28747503650692,"d":"115.29"}}]
[{"$f":"'Trial 8'!B29","v":{"v":140,"d":"140.00"}},{"$f":"'Trial 8'!C29","v":{"v":139.5814931533646,"d":"139.58"}},{"$f":"'Trial 8'!D29","v":{"v":139.22712566676742,"d":"139.23"}},{"$f":"'Trial 8'!E29","v":{"v":138.89656053214097,"d":"138.90"}},{"$f":"'Trial 8'!F29","v":{"v":138.5879637889069,"d":"138.59"}},{"$f":"'Trial 8'!G29","v":{"v":138.36210235183307,"d":"138.36"}},{"$f":"'Trial 8'!H29","v":{"v":138.0701001364916,"d":"138.07"}},{"$f":"'Trial 8'!I29","v":{"v":137.74891558152385,"d":"137.75"}},{"$f":"'Trial 8'!J29","v":{"v":137.472172510107,"d":"137.47"}},{"$f":"'Trial 8'!K29","v":{"v":137.1033625116055,"d":"137.10"}},{"$f":"'Trial 8'!L29","v":{"v":136.8355193255395,"d":"136.84"}},{"$f":"'Trial 8'!M29","v":{"v":136.46788951004007,"d":"136.47"}},{"$f":"'Trial 8'!O29","v":{"v":136.1784236452413,"d":"136.18"}},{"$f":"'Trial 8'!P29","v":{"v":135.96343227960472,"d":"135.96"}},{"$f":"'Trial 8'!Q29","v":{"v":135.62486824586955,"d":"135.62"}},{"$f":"'Trial 8'!R29","v":{"v":135.25005783844176,"d":"135.25"}},{"$f":"'Trial 8'!S29","v":{"v":134.98557649959398,"d":"134.99"}},{"$f":"'Trial 8'!T29","v":{"v":134.7053088294579,"d":"134.71"}},{"$f":"'Trial 8'!U29","v":{"v":134.5076878015962,"d":"134.51"}},{"$f":"'Trial 8'!V29","v":{"v":134.22280838455904,"d":"134.22"}},{"$f":"'Trial 8'!W29","v":{"v":133.95460118223167,"d":"133.95"}},{"$f":"'Trial 8'!X29","v":{"v":133.75685323434107,"d":"133.76"}},{"$f":"'Trial 8'!Y29","v":{"v":133.44245777848948,"d":"133.44"}},{"$f":"'Trial 8'!Z29","v":{"v":133.10863941759573,"d":"133.11"}},{"$f":"'Trial 8'!AB29","v":{"v":132.80911294718246,"d":"132.81"}},{"$f":"'Trial 8'!AC29","v":{"v":132.54952348194954,"d":"132.55"}},{"$f":"'Trial 8'!AD29","v":{"v":132.29759758511332,"d":"132.30"}},{"$f":"'Trial 8'!AE29","v":{"v":132.01056209750965,"d":"132.01"}},{"$f":"'Trial 8'!AF29","v":{"v":131.74737716998868,"d":"131.75"}},{"$f":"'Trial 8'!AG29","v":{"v":131.44822521954424,"d":"131.45"}},{"$f":"'Trial 8'!AH29","v":{"v":131.16693408686513,"d":"131.17"}},{"$f":"'Trial 8'!AI29","v":{"v":130.95601799454582,"d":"130.96"}},{"$f":"'Trial 8'!AJ29","v":{"v":130.73936447356314,"d":"130.74"}},{"$f":"'Trial 8'!AK29","v":{"v":130.47313145373718,"d":"130.47"}},{"$f":"'Trial 8'!AL29","v":{"v":130.2392243982634,"d":"130.24"}},{"$f":"'Trial 8'!AM29","v":{"v":130.07132731209123,"d":"130.07"}},{"$f":"'Trial 8'!AO29","v":{"v":129.8993729093895,"d":"129.90"}},{"$f":"'Trial 8'!AP29","v":{"v":129.7220374705281,"d":"129.72"}},{"$f":"'Trial 8'!AQ29","v":{"v":129.50008235007056,"d":"129.50"}},{"$f":"'Trial 8'!AR29","v":{"v":129.27782813393227,"d":"129.28"}},{"$f":"'Trial 8'!AS29","v":{"v":128.99832995008492,"d":"129.00"}},{"$f":"'Trial 8'!AT29","v":{"v":128.7230472239238,"d":"128.72"}},{"$f":"'Trial 8'!AU29","v":{"v":128.48746722423468,"d":"128.49"}},{"$f":"'Trial 8'!AV29","v":{"v":128.301057236211,"d":"128.30"}},{"$f":"'Trial 8'!AW29","v":{"v":128.0927790424428,"d":"128.09"}},{"$f":"'Trial 8'!AX29","v":{"v":127.89247379159639,"d":"127.89"}},{"$f":"'Trial 8'!AY29","v":{"v":127.68724450697988,"d":"127.69"}},{"$f":"'Trial 8'!AZ29","v":{"v":127.50488233362034,"d":"127.50"}},{"$f":"'Trial 8'!BB29","v":{"v":127.31400285521457,"d":"127.31"}},{"$f":"'Trial 8'!BC29","v":{"v":127.08668411050017,"d":"127.09"}},{"$f":"'Trial 8'!BD29","v":{"v":126.93712400245313,"d":"126.94"}},{"$f":"'Trial 8'!BE29","v":{"v":126.8051899159259,"d":"126.81"}},{"$f":"'Trial 8'!BF29","v":{"v":126.62939983271079,"d":"126.63"}},{"$f":"'Trial 8'!BG29","v":{"v":126.45217785375377,"d":"126.45"}},{"$f":"'Trial 8'!BH29","v":{"v":126.31550205020682,"d":"126.32"}},{"$f":"'Trial 8'!BI29","v":{"v":126.0829581520718,"d":"126.08"}},{"$f":"'Trial 8'!BJ29","v":{"v":125.89142773922073,"d":"125.89"}},{"$f":"'Trial 8'!BK29","v":{"v":125.7347623463102,"d":"125.73"}},{"$f":"'Trial 8'!BL29","v":{"v":125.57539124902092,"d":"125.58"}},{"$f":"'Trial 8'!BM29","v":{"v":125.42019361668056,"d":"125.42"}},{"$f":"'Trial 8'!BO29","v":{"v":125.22451452301426,"d":"125.22"}},{"$f":"'Trial 8'!BP29","v":{"v":125.0794497133303,"d":"125.08"}},{"$f":"'Trial 8'!BQ29","v":{"v":124.96702651945321,"d":"124.97"}},{"$f":"'Trial 8'!BR29","v":{"v":124.83443384445887,"d":"124.83"}},{"$f":"'Trial 8'!BS29","v":{"v":124.7481916440795,"d":"124.75"}},{"$f":"'Trial 8'!BT29","v":{"v":124.60064347187634,"d":"124.60"}},{"$f":"'Trial 8'!BU29","v":{"v":124.42700152384788,"d":"124.43"}},{"$f":"'Trial 8'!BV29","v":{"v":124.27715415002822,"d":"124.28"}},{"$f":"'Trial 8'!BW29","v":{"v":124.17471248763353,"d":"124.17"}},{"$f":"'Trial 8'!BX29","v":{"v":124.04844892410725,"d":"124.05"}},{"$f":"'Trial 8'!BY29","v":{"v":123.92186793567632,"d":"123.92"}},{"$f":"'Trial 8'!BZ29","v":{"v":123.73674832956023,"d":"123.74"}},{"$f":"'Trial 8'!CB29","v":{"v":123.49840853315631,"d":"123.50"}},{"$f":"'Trial 8'!CC29","v":{"v":123.3094902011569,"d":"123.31"}},{"$f":"'Trial 8'!CD29","v":{"v":123.14838655682499,"d":"123.15"}},{"$f":"'Trial 8'!CE29","v":{"v":122.93002781602515,"d":"122.93"}},{"$f":"'Trial 8'!CF29","v":{"v":122.78336839195404,"d":"122.78"}},{"$f":"'Trial 8'!CG29","v":{"v":122.61697816305121,"d":"122.62"}},{"$f":"'Trial 8'!CH29","v":{"v":122.55517990170264,"d":"122.56"}},{"$f":"'Trial 8'!CI29","v":{"v":122.4030566501665,"d":"122.40"}},{"$f":"'Trial 8'!CJ29","v":{"v":122.21208929550946,"d":"122.21"}},{"$f":"'Trial 8'!CK29","v":{"v":122.0895068448335,"d":"122.09"}},{"$f":"'Trial 8'!CL29","v":{"v":121.98482538770114,"d":"121.98"}},{"$f":"'Trial 8'!CM29","v":{"v":121.77950045560424,"d":"121.78"}},{"$f":"'Trial 8'!CO29","v":{"v":121.69793782955361,"d":"121.70"}},{"$f":"'Trial 8'!CP29","v":{"v":121.61958240145285,"d":"121.62"}},{"$f":"'Trial 8'!CQ29","v":{"v":121.48498082561368,"d":"121.48"}},{"$f":"'Trial 8'!CR29","v":{"v":121.37300129320299,"d":"121.37"}},{"$f":"'Trial 8'!CS29","v":{"v":121.25708084981243,"d":"121.26"}},{"$f":"'Trial 8'!CT29","v":{"v":121.00718115062821,"d":"121.01"}},{"$f":"'Trial 8'!CU29","v":{"v":120.85768583691332,"d":"120.86"}},{"$f":"'Trial 8'!CV29","v":{"v":120.77350603659373,"d":"120.77"}},{"$f":"'Trial 8'!CW29","v":{"v":120.63271396681719,"d":"120.63"}},{"$f":"'Trial 8'!CX29","v":{"v":120.39752884376334,"d":"120.40"}},{"$f":"'Trial 8'!CY29","v":{"v":120.32327371005275,"d":"120.32"}},{"$f":"'Trial 8'!CZ29","v":{"v":120.28596743049285,"d":"120.29"}},{"$f":"'Trial 8'!DB29","v":{"v":120.10753201607741,"d":"120.11"}},{"$f":"'Trial 8'!DC29","v":{"v":120.07088292785943,"d":"120.07"}},{"$f":"'Trial 8'!DD29","v":{"v":119.90215380411088,"d":"119.90"}},{"$f":"'Trial 8'!DE29","v":{"v":119.71124800284824,"d":"119.71"}},{"$f":"'Trial 8'!DF29","v":{"v":119.5620171743431,"d":"119.56"}},{"$f":"'Trial 8'!DG29","v":{"v":119.43606886516888,"d":"119.44"}},{"$f":"'Trial 8'!DH29","v":{"v":119.2743280034854,"d":"119.27"}},{"$f":"'Trial 8'!DI29","v":{"v":119.13824067893506,"d":"119.14"}},{"$f":"'Trial 8'!DJ29","v":{"v":118.94980108467425,"d":"118.95"}},{"$f":"'Trial 8'!DK29","v":{"v":118.91534768885968,"d":"118.92"}},{"$f":"'Trial 8'!DL29","v":{"v":118.76628876610616,"d":"118.77"}},{"$f":"'Trial 8'!DM29","v":{"v":118.72242547107054,"d":"118.72"}},{"$f":"'Trial 8'!DO29","v":{"v":118.58450175388981,"d":"118.58"}},{"$f":"'Trial 8'!DP29","v":{"v":118.38450353638127,"d":"118.38"}},{"$f":"'Trial 8'!DQ29","v":{"v":118.20554877764697,"d":"118.21"}},{"$f":"'Trial 8'!DR29","v":{"v":118.17271180678003,"d":"118.17"}},{"$f":"'Trial 8'!DS29","v":{"v":118.12371817727107,"d":"118.12"}},{"$f":"'Trial 8'!DT29","v":{"v":117.98189880888152,"d":"117.98"}},{"$f":"'Trial 8'!DU29","v":{"v":117.93430416174472,"d":"117.93"}},{"$f":"'Trial 8'!DV29","v":{"v":117.87832174513774,"d":"117.88"}},{"$f":"'Trial 8'!DW29","v":{"v":117.7698070140028,"d":"117.77"}},{"$f":"'Trial 8'!DX29","v":{"v":117.68506333355884,"d":"117.69"}},{"$f":"'Trial 8'!DY29","v":{"v":117.49734936137367,"d":"117.50"}},{"$f":"'Trial 8'!DZ29","v":{"v":117.404041187507,"d":"117.40"}},{"$f":"'Trial 8'!EB29","v":{"v":117.29113740748856,"d":"117.29"}},{"$f":"'Trial 8'!EC29","v":{"v":117.09898502470922,"d":"117.10"}},{"$f":"'Trial 8'!ED29","v":{"v":116.91426522774454,"d":"116.91"}},{"$f":"'Trial 8'!EE29","v":{"v":116.83542668678741,"d":"116.84"}},{"$f":"'Trial 8'!EF29","v":{"v":116.6965916375057,"d":"116.70"}},{"$f":"'Trial 8'!EG29","v":{"v":116.54930091875659,"d":"116.55"}},{"$f":"'Trial 8'!EH29","v":{"v":116.44774163207445,"d":"116.45"}},{"$f":"'Trial 8'!EI29","v":{"v":116.40794926625114,"d":"116.41"}},{"$f":"'Trial 8'!EJ29","v":{"v":116.25763870279867,"d":"116.26"}},{"$f":"'Trial 8'!EK29","v":{"v":116.15966644142568,"d":"116.16"}},{"$f":"'Trial 8'!EL29","v":{"v":115.97660789894067,"d":"115.98"}},{"$f":"'Trial 8'!EM29","v":{"v":115.83191551177688,"d":"115.83"}}]
[{"$f":"'(Other Computations)'!B116","v":{"v":1120,"d":"1,120.00"}},{"$f":"'(Other Computations)'!C116","v":{"v":1116.9335668389913,"d":"1,116.93"}},{"$f":"'(Other Computations)'!D116","v":{"v":1114.1014749917965,"d":"1,114.10"}},{"$f":"'(Other Computations)'!E116","v":{"v":1111.5595211598227,"d":"1,111.56"}},{"$f":"'(Other Computations)'!F116","v":{"v":1109.1519974947473,"d":"1,109.15"}},{"$f":"'(Other Computations)'!G116","v":{"v":1106.9080914688016,"d":"1,106.91"}},{"$f":"'(Other Computations)'!H116","v":{"v":1104.5103483058458,"d":"1,104.51"}},{"$f":"'(Other Computations)'!I116","v":{"v":1101.8969937741529,"d":"1,101.90"}},{"$f":"'(Other Computations)'!J116","v":{"v":1099.4292291986167,"d":"1,099.43"}},{"$f":"'(Other Computations)'!K116","v":{"v":1097.0095828049725,"d":"1,097.01"}},{"$f":"'(Other Computations)'!L116","v":{"v":1094.619144152553,"d":"1,094.62"}},{"$f":"'(Other Computations)'!M116","v":{"v":1092.2283411398355,"d":"1,092.23"}},{"$f":"'(Other Computations)'!O116","v":{"v":1089.7842331426505,"d":"1,089.78"}},{"$f":"'(Other Computations)'!P116","v":{"v":1087.5218588647367,"d":"1,087.52"}},{"$f":"'(Other Computations)'!Q116","v":{"v":1085.2409289044124,"d":"1,085.24"}},{"$f":"'(Other Computations)'!R116","v":{"v":1083.0455943864076,"d":"1,083.05"}},{"$f":"'(Other Computations)'!S116","v":{"v":1080.936205400866,"d":"1,080.94"}},{"$f":"'(Other Computations)'!T116","v":{"v":1078.3331234044524,"d":"1,078.33"}},{"$f":"'(Other Computations)'!U116","v":{"v":1076.2000623711635,"d":"1,076.20"}},{"$f":"'(Other Computations)'!V116","v":{"v":1073.7818061885373,"d":"1,073.78"}},{"$f":"'(Other Computations)'!W116","v":{"v":1071.4279309097856,"d":"1,071.43"}},{"$f":"'(Other Computations)'!X116","v":{"v":1069.464389003088,"d":"1,069.46"}},{"$f":"'(Other Computations)'!Y116","v":{"v":1067.2315480318384,"d":"1,067.23"}},{"$f":"'(Other Computations)'!Z116","v":{"v":1065.0496977781957,"d":"1,065.05"}},{"$f":"'(Other Computations)'!AB116","v":{"v":1062.5995947139024,"d":"1,062.60"}},{"$f":"'(Other Computations)'!AC116","v":{"v":1060.5149794760928,"d":"1,060.51"}},{"$f":"'(Other Computations)'!AD116","v":{"v":1058.5837317595501,"d":"1,058.58"}},{"$f":"'(Other Computations)'!AE116","v":{"v":1056.578134179114,"d":"1,056.58"}},{"$f":"'(Other Computations)'!AF116","v":{"v":1054.5518865652925,"d":"1,054.55"}},{"$f":"'(Other Computations)'!AG116","v":{"v":1052.3314698922834,"d":"1,052.33"}},{"$f":"'(Other Computations)'!AH116","v":{"v":1050.4368959597002,"d":"1,050.44"}},{"$f":"'(Other Computations)'!AI116","v":{"v":1048.6867352239592,"d":"1,048.69"}},{"$f":"'(Other Computations)'!AJ116","v":{"v":1046.5131821614257,"d":"1,046.51"}},{"$f":"'(Other Computations)'!AK116","v":{"v":1044.630604766998,"d":"1,044.63"}},{"$f":"'(Other Computations)'!AL116","v":{"v":1042.8285493435794,"d":"1,042.83"}},{"$f":"'(Other Computations)'!AM116","v":{"v":1041.0942481319778,"d":"1,041.09"}},{"$f":"'(Other Computations)'!AO116","v":{"v":1039.097533742547,"d":"1,039.10"}},{"$f":"'(Other Computations)'!AP116","v":{"v":1037.2731605850197,"d":"1,037.27"}},{"$f":"'(Other Computations)'!AQ116","v":{"v":1035.6374929875478,"d":"1,035.64"}},{"$f":"'(Other Computations)'!AR116","v":{"v":1033.7083314738024,"d":"1,033.71"}},{"$f":"'(Other Computations)'!AS116","v":{"v":1031.906933145508,"d":"1,031.91"}},{"$f":"'(Other Computations)'!AT116","v":{"v":1030.3016835360736,"d":"1,030.30"}},{"$f":"'(Other Computations)'!AU116","v":{"v":1028.5382859474355,"d":"1,028.54"}},{"$f":"'(Other Computations)'!AV116","v":{"v":1026.7431339051097,"d":"1,026.74"}},{"$f":"'(Other Computations)'!AW116","v":{"v":1025.0499542396237,"d":"1,025.05"}},{"$f":"'(Other Computations)'!AX116","v":{"v":1023.1814302993705,"d":"1,023.18"}},{"$f":"'(Other Computations)'!AY116","v":{"v":1021.4461914961676,"d":"1,021.45"}},{"$f":"'(Other Computations)'!AZ116","v":{"v":1019.8113427882865,"d":"1,019.81"}},{"$f":"'(Other Computations)'!BB116","v":{"v":1017.9484075683836,"d":"1,017.95"}},{"$f":"'(Other Computations)'!BC116","v":{"v":1016.1354504632325,"d":"1,016.14"}},{"$f":"'(Other Computations)'!BD116","v":{"v":1014.4728216532257,"d":"1,014.47"}},{"$f":"'(Other Computations)'!BE116","v":{"v":1012.8838804374137,"d":"1,012.88"}},{"$f":"'(Other Computations)'!BF116","v":{"v":1011.2576125646483,"d":"1,011.26"}},{"$f":"'(Other Computations)'!BG116","v":{"v":1009.7621489495591,"d":"1,009.76"}},{"$f":"'(Other Computations)'!BH116","v":{"v":1008.2813593889084,"d":"1,008.28"}},{"$f":"'(Other Computations)'!BI116","v":{"v":1006.5489270482719,"d":"1,006.55"}},{"$f":"'(Other Computations)'!BJ116","v":{"v":1004.9437214416843,"d":"1,004.94"}},{"$f":"'(Other Computations)'!BK116","v":{"v":1003.5391462276698,"d":"1,003.54"}},{"$f":"'(Other Computations)'!BL116","v":{"v":1001.9995515583896,"d":"1,002.00"}},{"$f":"'(Other Computations)'!BM116","v":{"v":1000.6282576325583,"d":"1,000.63"}},{"$f":"'(Other Computations)'!BO116","v":{"v":999.1419789635659,"d":"999.14"}},{"$f":"'(Other Computations)'!BP116","v":{"v":997.6559538019773,"d":"997.66"}},{"$f":"'(Other Computations)'!BQ116","v":{"v":996.2694116592354,"d":"996.27"}},{"$f":"'(Other Computations)'!BR116","v":{"v":995.0372128771827,"d":"995.04"}},{"$f":"'(Other Computations)'!BS116","v":{"v":993.7711054655532,"d":"993.77"}},{"$f":"'(Other Computations)'!BT116","v":{"v":992.2916404341272,"d":"992.29"}},{"$f":"'(Other Computations)'!BU116","v":{"v":991.1674623665122,"d":"991.17"}},{"$f":"'(Other Computations)'!BV116","v":{"v":989.6926153325117,"d":"989.69"}},{"$f":"'(Other Computations)'!BW116","v":{"v":988.3188076199935,"d":"988.32"}},{"$f":"'(Other Computations)'!BX116","v":{"v":987.1811409868969,"d":"987.18"}},{"$f":"'(Other Computations)'!BY116","v":{"v":985.7315408180139,"d":"985.73"}},{"$f":"'(Other Computations)'!BZ116","v":{"v":984.5838151200597,"d":"984.58"}},{"$f":"'(Other Computations)'!CB116","v":{"v":983.3031251618573,"d":"983.30"}},{"$f":"'(Other Computations)'!CC116","v":{"v":981.9914896602559,"d":"981.99"}},{"$f":"'(Other Computations)'!CD116","v":{"v":980.6627611968238,"d":"980.66"}},{"$f":"'(Other Computations)'!CE116","v":{"v":979.5016588427347,"d":"979.50"}},{"$f":"'(Other Computations)'!CF116","v":{"v":978.1149505286962,"d":"978.11"}},{"$f":"'(Other Computations)'!CG116","v":{"v":976.8629637499323,"d":"976.86"}},{"$f":"'(Other Computations)'!CH116","v":{"v":976.0130903557007,"d":"976.01"}},{"$f":"'(Other Computations)'!CI116","v":{"v":974.852683746109,"d":"974.85"}},{"$f":"'(Other Computations)'!CJ116","v":{"v":973.7797370770329,"d":"973.78"}},{"$f":"'(Other Computations)'!CK116","v":{"v":972.6608277835024,"d":"972.66"}},{"$f":"'(Other Computations)'!CL116","v":{"v":971.7337291874492,"d":"971.73"}},{"$f":"'(Other Computations)'!CM116","v":{"v":970.5345434055446,"d":"970.53"}},{"$f":"'(Other Computations)'!CO116","v":{"v":969.5948276498787,"d":"969.59"}},{"$f":"'(Other Computations)'!CP116","v":{"v":968.5488023125642,"d":"968.55"}},{"$f":"'(Other Computations)'!CQ116","v":{"v":967.5217976704553,"d":"967.52"}},{"$f":"'(Other Computations)'!CR116","v":{"v":966.4833528087454,"d":"966.48"}},{"$f":"'(Other Computations)'!CS116","v":{"v":965.3770011383563,"d":"965.38"}},{"$f":"'(Other Computations)'!CT116","v":{"v":963.9840729448256,"d":"963.98"}},{"$f":"'(Other Computations)'!CU116","v":{"v":962.7425845422033,"d":"962.74"}},{"$f":"'(Other Computations)'!CV116","v":{"v":961.969037661803,"d":"961.97"}},{"$f":"'(Other Computations)'!CW116","v":{"v":960.8359324403223,"d":"960.84"}},{"$f":"'(Other Computations)'!CX116","v":{"v":959.7392624418522,"d":"959.74"}},{"$f":"'(Other Computations)'!CY116","v":{"v":958.5953771603338,"d":"958.60"}},{"$f":"'(Other Computations)'!CZ116","v":{"v":957.6396783525555,"d":"957.64"}},{"$f":"'(Other Computations)'!DB116","v":{"v":956.5360698888801,"d":"956.54"}},{"$f":"'(Other Computations)'!DC116","v":{"v":955.6275325633311,"d":"955.63"}},{"$f":"'(Other Computations)'!DD116","v":{"v":954.4381350555923,"d":"954.44"}},{"$f":"'(Other Computations)'!DE116","v":{"v":953.3539751441584,"d":"953.35"}},{"$f":"'(Other Computations)'!DF116","v":{"v":952.4379437165354,"d":"952.44"}},{"$f":"'(Other Computations)'!DG116","v":{"v":951.4315710586537,"d":"951.43"}},{"$f":"'(Other Computations)'!DH116","v":{"v":950.3905202794866,"d":"950.39"}},{"$f":"'(Other Computations)'!DI116","v":{"v":949.3291021172384,"d":"949.33"}},{"$f":"'(Other Computations)'!DJ116","v":{"v":948.233255970856,"d":"948.23"}},{"$f":"'(Other Computations)'!DK116","v":{"v":947.2626198727266,"d":"947.26"}},{"$f":"'(Other Computations)'!DL116","v":{"v":946.2686460830336,"d":"946.27"}},{"$f":"'(Other Computations)'!DM116","v":{"v":945.1853648443449,"d":"945.19"}},{"$f":"'(Other Computations)'!DO116","v":{"v":944.1521782080604,"d":"944.15"}},{"$f":"'(Other Computations)'!DP116","v":{"v":943.3459496356863,"d":"943.35"}},{"$f":"'(Other Computations)'!DQ116","v":{"v":942.3331392768471,"d":"942.33"}},{"$f":"'(Other Computations)'!DR116","v":{"v":941.607173309877,"d":"941.61"}},{"$f":"'(Other Computations)'!DS116","v":{"v":940.7209054094791,"d":"940.72"}},{"$f":"'(Other Computations)'!DT116","v":{"v":939.8192271336435,"d":"939.82"}},{"$f":"'(Other Computations)'!DU116","v":{"v":939.0978526230667,"d":"939.10"}},{"$f":"'(Other Computations)'!DV116","v":{"v":938.2672436175104,"d":"938.27"}},{"$f":"'(Other Computations)'!DW116","v":{"v":937.493489963278,"d":"937.49"}},{"$f":"'(Other Computations)'!DX116","v":{"v":936.6505409708816,"d":"936.65"}},{"$f":"'(Other Computations)'!DY116","v":{"v":935.7859512237103,"d":"935.79"}},{"$f":"'(Other Computations)'!DZ116","v":{"v":934.9434006307569,"d":"934.94"}},{"$f":"'(Other Computations)'!EB116","v":{"v":933.8797279658862,"d":"933.88"}},{"$f":"'(Other Computations)'!EC116","v":{"v":933.1125408233232,"d":"933.11"}},{"$f":"'(Other Computations)'!ED116","v":{"v":932.0859448728763,"d":"932.09"}},{"$f":"'(Other Computations)'!EE116","v":{"v":931.1483025704654,"d":"931.15"}},{"$f":"'(Other Computations)'!EF116","v":{"v":930.3404080961329,"d":"930.34"}},{"$f":"'(Other Computations)'!EG116","v":{"v":929.5620362573837,"d":"929.56"}},{"$f":"'(Other Computations)'!EH116","v":{"v":928.6061840116238,"d":"928.61"}},{"$f":"'(Other Computations)'!EI116","v":{"v":927.7138079589713,"d":"927.71"}},{"$f":"'(Other Computations)'!EJ116","v":{"v":926.5807761529244,"d":"926.58"}},{"$f":"'(Other Computations)'!EK116","v":{"v":925.7084585016753,"d":"925.71"}},{"$f":"'(Other Computations)'!EL116","v":{"v":924.9897703734582,"d":"924.99"}},{"$f":"'(Other Computations)'!EM116","v":{"v":924.0958692710263,"d":"924.10"}}]
[{"$f":"'(Intermediate Computations)'!B65","v":"Jan 2010"},{"$f":"'(Intermediate Computations)'!C65","v":"Feb 2010"},{"$f":"'(Intermediate Computations)'!D65","v":"Mar 2010"},{"$f":"'(Intermediate Computations)'!E65","v":"Apr 2010"},{"$f":"'(Intermediate Computations)'!F65","v":"May 2010"},{"$f":"'(Intermediate Computations)'!G65","v":"Jun 2010"},{"$f":"'(Intermediate Computations)'!H65","v":"Jul 2010"},{"$f":"'(Intermediate Computations)'!I65","v":"Aug 2010"},{"$f":"'(Intermediate Computations)'!J65","v":"Sep 2010"},{"$f":"'(Intermediate Computations)'!K65","v":"Oct 2010"},{"$f":"'(Intermediate Computations)'!L65","v":"Nov 2010"},{"$f":"'(Intermediate Computations)'!M65","v":"Dec 2010"},{"$f":"'(Intermediate Computations)'!O65","v":"Jan 2011"},{"$f":"'(Intermediate Computations)'!P65","v":"Feb 2011"},{"$f":"'(Intermediate Computations)'!Q65","v":"Mar 2011"},{"$f":"'(Intermediate Computations)'!R65","v":"Apr 2011"},{"$f":"'(Intermediate Computations)'!S65","v":"May 2011"},{"$f":"'(Intermediate Computations)'!T65","v":"Jun 2011"},{"$f":"'(Intermediate Computations)'!U65","v":"Jul 2011"},{"$f":"'(Intermediate Computations)'!V65","v":"Aug 2011"},{"$f":"'(Intermediate Computations)'!W65","v":"Sep 2011"},{"$f":"'(Intermediate Computations)'!X65","v":"Oct 2011"},{"$f":"'(Intermediate Computations)'!Y65","v":"Nov 2011"},{"$f":"'(Intermediate Computations)'!Z65","v":"Dec 2011"},{"$f":"'(Intermediate Computations)'!AB65","v":"Jan 2012"},{"$f":"'(Intermediate Computations)'!AC65","v":"Feb 2012"},{"$f":"'(Intermediate Computations)'!AD65","v":"Mar 2012"},{"$f":"'(Intermediate Computations)'!AE65","v":"Apr 2012"},{"$f":"'(Intermediate Computations)'!AF65","v":"May 2012"},{"$f":"'(Intermediate Computations)'!AG65","v":"Jun 2012"},{"$f":"'(Intermediate Computations)'!AH65","v":"Jul 2012"},{"$f":"'(Intermediate Computations)'!AI65","v":"Aug 2012"},{"$f":"'(Intermediate Computations)'!AJ65","v":"Sep 2012"},{"$f":"'(Intermediate Computations)'!AK65","v":"Oct 2012"},{"$f":"'(Intermediate Computations)'!AL65","v":"Nov 2012"},{"$f":"'(Intermediate Computations)'!AM65","v":"Dec 2012"},{"$f":"'(Intermediate Computations)'!AO65","v":"Jan 2013"},{"$f":"'(Intermediate Computations)'!AP65","v":"Feb 2013"},{"$f":"'(Intermediate Computations)'!AQ65","v":"Mar 2013"},{"$f":"'(Intermediate Computations)'!AR65","v":"Apr 2013"},{"$f":"'(Intermediate Computations)'!AS65","v":"May 2013"},{"$f":"'(Intermediate Computations)'!AT65","v":"Jun 2013"},{"$f":"'(Intermediate Computations)'!AU65","v":"Jul 2013"},{"$f":"'(Intermediate Computations)'!AV65","v":"Aug 2013"},{"$f":"'(Intermediate Computations)'!AW65","v":"Sep 2013"},{"$f":"'(Intermediate Computations)'!AX65","v":"Oct 2013"},{"$f":"'(Intermediate Computations)'!AY65","v":"Nov 2013"},{"$f":"'(Intermediate Computations)'!AZ65","v":"Dec 2013"},{"$f":"'(Intermediate Computations)'!BB65","v":"Jan 2014"},{"$f":"'(Intermediate Computations)'!BC65","v":"Feb 2014"},{"$f":"'(Intermediate Computations)'!BD65","v":"Mar 2014"},{"$f":"'(Intermediate Computations)'!BE65","v":"Apr 2014"},{"$f":"'(Intermediate Computations)'!BF65","v":"May 2014"},{"$f":"'(Intermediate Computations)'!BG65","v":"Jun 2014"},{"$f":"'(Intermediate Computations)'!BH65","v":"Jul 2014"},{"$f":"'(Intermediate Computations)'!BI65","v":"Aug 2014"},{"$f":"'(Intermediate Computations)'!BJ65","v":"Sep 2014"},{"$f":"'(Intermediate Computations)'!BK65","v":"Oct 2014"},{"$f":"'(Intermediate Computations)'!BL65","v":"Nov 2014"},{"$f":"'(Intermediate Computations)'!BM65","v":"Dec 2014"},{"$f":"'(Intermediate Computations)'!BO65","v":"Jan 2015"},{"$f":"'(Intermediate Computations)'!BP65","v":"Feb 2015"},{"$f":"'(Intermediate Computations)'!BQ65","v":"Mar 2015"},{"$f":"'(Intermediate Computations)'!BR65","v":"Apr 2015"},{"$f":"'(Intermediate Computations)'!BS65","v":"May 2015"},{"$f":"'(Intermediate Computations)'!BT65","v":"Jun 2015"},{"$f":"'(Intermediate Computations)'!BU65","v":"Jul 2015"},{"$f":"'(Intermediate Computations)'!BV65","v":"Aug 2015"},{"$f":"'(Intermediate Computations)'!BW65","v":"Sep 2015"},{"$f":"'(Intermediate Computations)'!BX65","v":"Oct 2015"},{"$f":"'(Intermediate Computations)'!BY65","v":"Nov 2015"},{"$f":"'(Intermediate Computations)'!BZ65","v":"Dec 2015"},{"$f":"'(Intermediate Computations)'!CB65","v":"Jan 2016"},{"$f":"'(Intermediate Computations)'!CC65","v":"Feb 2016"},{"$f":"'(Intermediate Computations)'!CD65","v":"Mar 2016"},{"$f":"'(Intermediate Computations)'!CE65","v":"Apr 2016"},{"$f":"'(Intermediate Computations)'!CF65","v":"May 2016"},{"$f":"'(Intermediate Computations)'!CG65","v":"Jun 2016"},{"$f":"'(Intermediate Computations)'!CH65","v":"Jul 2016"},{"$f":"'(Intermediate Computations)'!CI65","v":"Aug 2016"},{"$f":"'(Intermediate Computations)'!CJ65","v":"Sep 2016"},{"$f":"'(Intermediate Computations)'!CK65","v":"Oct 2016"},{"$f":"'(Intermediate Computations)'!CL65","v":"Nov 2016"},{"$f":"'(Intermediate Computations)'!CM65","v":"Dec 2016"},{"$f":"'(Intermediate Computations)'!CO65","v":"Jan 2017"},{"$f":"'(Intermediate Computations)'!CP65","v":"Feb 2017"},{"$f":"'(Intermediate Computations)'!CQ65","v":"Mar 2017"},{"$f":"'(Intermediate Computations)'!CR65","v":"Apr 2017"},{"$f":"'(Intermediate Computations)'!CS65","v":"May 2017"},{"$f":"'(Intermediate Computations)'!CT65","v":"Jun 2017"},{"$f":"'(Intermediate Computations)'!CU65","v":"Jul 2017"},{"$f":"'(Intermediate Computations)'!CV65","v":"Aug 2017"},{"$f":"'(Intermediate Computations)'!CW65","v":"Sep 2017"},{"$f":"'(Intermediate Computations)'!CX65","v":"Oct 2017"},{"$f":"'(Intermediate Computations)'!CY65","v":"Nov 2017"},{"$f":"'(Intermediate Computations)'!CZ65","v":"Dec 2017"},{"$f":"'(Intermediate Computations)'!DB65","v":"Jan 2018"},{"$f":"'(Intermediate Computations)'!DC65","v":"Feb 2018"},{"$f":"'(Intermediate Computations)'!DD65","v":"Mar 2018"},{"$f":"'(Intermediate Computations)'!DE65","v":"Apr 2018"},{"$f":"'(Intermediate Computations)'!DF65","v":"May 2018"},{"$f":"'(Intermediate Computations)'!DG65","v":"Jun 2018"},{"$f":"'(Intermediate Computations)'!DH65","v":"Jul 2018"},{"$f":"'(Intermediate Computations)'!DI65","v":"Aug 2018"},{"$f":"'(Intermediate Computations)'!DJ65","v":"Sep 2018"},{"$f":"'(Intermediate Computations)'!DK65","v":"Oct 2018"},{"$f":"'(Intermediate Computations)'!DL65","v":"Nov 2018"},{"$f":"'(Intermediate Computations)'!DM65","v":"Dec 2018"},{"$f":"'(Intermediate Computations)'!DO65","v":"Jan 2019"},{"$f":"'(Intermediate Computations)'!DP65","v":"Feb 2019"},{"$f":"'(Intermediate Computations)'!DQ65","v":"Mar 2019"},{"$f":"'(Intermediate Computations)'!DR65","v":"Apr 2019"},{"$f":"'(Intermediate Computations)'!DS65","v":"May 2019"},{"$f":"'(Intermediate Computations)'!DT65","v":"Jun 2019"},{"$f":"'(Intermediate Computations)'!DU65","v":"Jul 2019"},{"$f":"'(Intermediate Computations)'!DV65","v":"Aug 2019"},{"$f":"'(Intermediate Computations)'!DW65","v":"Sep 2019"},{"$f":"'(Intermediate Computations)'!DX65","v":"Oct 2019"},{"$f":"'(Intermediate Computations)'!DY65","v":"Nov 2019"},{"$f":"'(Intermediate Computations)'!DZ65","v":"Dec 2019"},{"$f":"'(Intermediate Computations)'!EB65","v":"Jan 2020"},{"$f":"'(Intermediate Computations)'!EC65","v":"Feb 2020"},{"$f":"'(Intermediate Computations)'!ED65","v":"Mar 2020"},{"$f":"'(Intermediate Computations)'!EE65","v":"Apr 2020"},{"$f":"'(Intermediate Computations)'!EF65","v":"May 2020"},{"$f":"'(Intermediate Computations)'!EG65","v":"Jun 2020"},{"$f":"'(Intermediate Computations)'!EH65","v":"Jul 2020"},{"$f":"'(Intermediate Computations)'!EI65","v":"Aug 2020"},{"$f":"'(Intermediate Computations)'!EJ65","v":"Sep 2020"},{"$f":"'(Intermediate Computations)'!EK65","v":"Oct 2020"},{"$f":"'(Intermediate Computations)'!EL65","v":"Nov 2020"},{"$f":"'(Intermediate Computations)'!EM65","v":"Dec 2020"}]
[{"$f":"'(Intermediate Computations)'!B62","v":"2010-01-01"},{"$f":"'(Intermediate Computations)'!C62","v":"2010-02-01"},{"$f":"'(Intermediate Computations)'!D62","v":"2010-03-01"},{"$f":"'(Intermediate Computations)'!E62","v":"2010-04-01"},{"$f":"'(Intermediate Computations)'!F62","v":"2010-05-01"},{"$f":"'(Intermediate Computations)'!G62","v":"2010-06-01"},{"$f":"'(Intermediate Computations)'!H62","v":"2010-07-01"},{"$f":"'(Intermediate Computations)'!I62","v":"2010-08-01"},{"$f":"'(Intermediate Computations)'!J62","v":"2010-09-01"},{"$f":"'(Intermediate Computations)'!K62","v":"2010-10-01"},{"$f":"'(Intermediate Computations)'!L62","v":"2010-11-01"},{"$f":"'(Intermediate Computations)'!M62","v":"2010-12-01"},{"$f":"'(Intermediate Computations)'!O62","v":"2011-01-01"},{"$f":"'(Intermediate Computations)'!P62","v":"2011-02-01"},{"$f":"'(Intermediate Computations)'!Q62","v":"2011-03-01"},{"$f":"'(Intermediate Computations)'!R62","v":"2011-04-01"},{"$f":"'(Intermediate Computations)'!S62","v":"2011-05-01"},{"$f":"'(Intermediate Computations)'!T62","v":"2011-06-01"},{"$f":"'(Intermediate Computations)'!U62","v":"2011-07-01"},{"$f":"'(Intermediate Computations)'!V62","v":"2011-08-01"},{"$f":"'(Intermediate Computations)'!W62","v":"2011-09-01"},{"$f":"'(Intermediate Computations)'!X62","v":"2011-10-01"},{"$f":"'(Intermediate Computations)'!Y62","v":"2011-11-01"},{"$f":"'(Intermediate Computations)'!Z62","v":"2011-12-01"},{"$f":"'(Intermediate Computations)'!AB62","v":"2012-01-01"},{"$f":"'(Intermediate Computations)'!AC62","v":"2012-02-01"},{"$f":"'(Intermediate Computations)'!AD62","v":"2012-03-01"},{"$f":"'(Intermediate Computations)'!AE62","v":"2012-04-01"},{"$f":"'(Intermediate Computations)'!AF62","v":"2012-05-01"},{"$f":"'(Intermediate Computations)'!AG62","v":"2012-06-01"},{"$f":"'(Intermediate Computations)'!AH62","v":"2012-07-01"},{"$f":"'(Intermediate Computations)'!AI62","v":"2012-08-01"},{"$f":"'(Intermediate Computations)'!AJ62","v":"2012-09-01"},{"$f":"'(Intermediate Computations)'!AK62","v":"2012-10-01"},{"$f":"'(Intermediate Computations)'!AL62","v":"2012-11-01"},{"$f":"'(Intermediate Computations)'!AM62","v":"2012-12-01"},{"$f":"'(Intermediate Computations)'!AO62","v":"2013-01-01"},{"$f":"'(Intermediate Computations)'!AP62","v":"2013-02-01"},{"$f":"'(Intermediate Computations)'!AQ62","v":"2013-03-01"},{"$f":"'(Intermediate Computations)'!AR62","v":"2013-04-01"},{"$f":"'(Intermediate Computations)'!AS62","v":"2013-05-01"},{"$f":"'(Intermediate Computations)'!AT62","v":"2013-06-01"},{"$f":"'(Intermediate Computations)'!AU62","v":"2013-07-01"},{"$f":"'(Intermediate Computations)'!AV62","v":"2013-08-01"},{"$f":"'(Intermediate Computations)'!AW62","v":"2013-09-01"},{"$f":"'(Intermediate Computations)'!AX62","v":"2013-10-01"},{"$f":"'(Intermediate Computations)'!AY62","v":"2013-11-01"},{"$f":"'(Intermediate Computations)'!AZ62","v":"2013-12-01"},{"$f":"'(Intermediate Computations)'!BB62","v":"2014-01-01"},{"$f":"'(Intermediate Computations)'!BC62","v":"2014-02-01"},{"$f":"'(Intermediate Computations)'!BD62","v":"2014-03-01"},{"$f":"'(Intermediate Computations)'!BE62","v":"2014-04-01"},{"$f":"'(Intermediate Computations)'!BF62","v":"2014-05-01"},{"$f":"'(Intermediate Computations)'!BG62","v":"2014-06-01"},{"$f":"'(Intermediate Computations)'!BH62","v":"2014-07-01"},{"$f":"'(Intermediate Computations)'!BI62","v":"2014-08-01"},{"$f":"'(Intermediate Computations)'!BJ62","v":"2014-09-01"},{"$f":"'(Intermediate Computations)'!BK62","v":"2014-10-01"},{"$f":"'(Intermediate Computations)'!BL62","v":"2014-11-01"},{"$f":"'(Intermediate Computations)'!BM62","v":"2014-12-01"},{"$f":"'(Intermediate Computations)'!BO62","v":"2015-01-01"},{"$f":"'(Intermediate Computations)'!BP62","v":"2015-02-01"},{"$f":"'(Intermediate Computations)'!BQ62","v":"2015-03-01"},{"$f":"'(Intermediate Computations)'!BR62","v":"2015-04-01"},{"$f":"'(Intermediate Computations)'!BS62","v":"2015-05-01"},{"$f":"'(Intermediate Computations)'!BT62","v":"2015-06-01"},{"$f":"'(Intermediate Computations)'!BU62","v":"2015-07-01"},{"$f":"'(Intermediate Computations)'!BV62","v":"2015-08-01"},{"$f":"'(Intermediate Computations)'!BW62","v":"2015-09-01"},{"$f":"'(Intermediate Computations)'!BX62","v":"2015-10-01"},{"$f":"'(Intermediate Computations)'!BY62","v":"2015-11-01"},{"$f":"'(Intermediate Computations)'!BZ62","v":"2015-12-01"},{"$f":"'(Intermediate Computations)'!CB62","v":"2016-01-01"},{"$f":"'(Intermediate Computations)'!CC62","v":"2016-02-01"},{"$f":"'(Intermediate Computations)'!CD62","v":"2016-03-01"},{"$f":"'(Intermediate Computations)'!CE62","v":"2016-04-01"},{"$f":"'(Intermediate Computations)'!CF62","v":"2016-05-01"},{"$f":"'(Intermediate Computations)'!CG62","v":"2016-06-01"},{"$f":"'(Intermediate Computations)'!CH62","v":"2016-07-01"},{"$f":"'(Intermediate Computations)'!CI62","v":"2016-08-01"},{"$f":"'(Intermediate Computations)'!CJ62","v":"2016-09-01"},{"$f":"'(Intermediate Computations)'!CK62","v":"2016-10-01"},{"$f":"'(Intermediate Computations)'!CL62","v":"2016-11-01"},{"$f":"'(Intermediate Computations)'!CM62","v":"2016-12-01"},{"$f":"'(Intermediate Computations)'!CO62","v":"2017-01-01"},{"$f":"'(Intermediate Computations)'!CP62","v":"2017-02-01"},{"$f":"'(Intermediate Computations)'!CQ62","v":"2017-03-01"},{"$f":"'(Intermediate Computations)'!CR62","v":"2017-04-01"},{"$f":"'(Intermediate Computations)'!CS62","v":"2017-05-01"},{"$f":"'(Intermediate Computations)'!CT62","v":"2017-06-01"},{"$f":"'(Intermediate Computations)'!CU62","v":"2017-07-01"},{"$f":"'(Intermediate Computations)'!CV62","v":"2017-08-01"},{"$f":"'(Intermediate Computations)'!CW62","v":"2017-09-01"},{"$f":"'(Intermediate Computations)'!CX62","v":"2017-10-01"},{"$f":"'(Intermediate Computations)'!CY62","v":"2017-11-01"},{"$f":"'(Intermediate Computations)'!CZ62","v":"2017-12-01"},{"$f":"'(Intermediate Computations)'!DB62","v":"2018-01-01"},{"$f":"'(Intermediate Computations)'!DC62","v":"2018-02-01"},{"$f":"'(Intermediate Computations)'!DD62","v":"2018-03-01"},{"$f":"'(Intermediate Computations)'!DE62","v":"2018-04-01"},{"$f":"'(Intermediate Computations)'!DF62","v":"2018-05-01"},{"$f":"'(Intermediate Computations)'!DG62","v":"2018-06-01"},{"$f":"'(Intermediate Computations)'!DH62","v":"2018-07-01"},{"$f":"'(Intermediate Computations)'!DI62","v":"2018-08-01"},{"$f":"'(Intermediate Computations)'!DJ62","v":"2018-09-01"},{"$f":"'(Intermediate Computations)'!DK62","v":"2018-10-01"},{"$f":"'(Intermediate Computations)'!DL62","v":"2018-11-01"},{"$f":"'(Intermediate Computations)'!DM62","v":"2018-12-01"},{"$f":"'(Intermediate Computations)'!DO62","v":"2019-01-01"},{"$f":"'(Intermediate Computations)'!DP62","v":"2019-02-01"},{"$f":"'(Intermediate Computations)'!DQ62","v":"2019-03-01"},{"$f":"'(Intermediate Computations)'!DR62","v":"2019-04-01"},{"$f":"'(Intermediate Computations)'!DS62","v":"2019-05-01"},{"$f":"'(Intermediate Computations)'!DT62","v":"2019-06-01"},{"$f":"'(Intermediate Computations)'!DU62","v":"2019-07-01"},{"$f":"'(Intermediate Computations)'!DV62","v":"2019-08-01"},{"$f":"'(Intermediate Computations)'!DW62","v":"2019-09-01"},{"$f":"'(Intermediate Computations)'!DX62","v":"2019-10-01"},{"$f":"'(Intermediate Computations)'!DY62","v":"2019-11-01"},{"$f":"'(Intermediate Computations)'!DZ62","v":"2019-12-01"},{"$f":"'(Intermediate Computations)'!EB62","v":"2020-01-01"},{"$f":"'(Intermediate Computations)'!EC62","v":"2020-02-01"},{"$f":"'(Intermediate Computations)'!ED62","v":"2020-03-01"},{"$f":"'(Intermediate Computations)'!EE62","v":"2020-04-01"},{"$f":"'(Intermediate Computations)'!EF62","v":"2020-05-01"},{"$f":"'(Intermediate Computations)'!EG62","v":"2020-06-01"},{"$f":"'(Intermediate Computations)'!EH62","v":"2020-07-01"},{"$f":"'(Intermediate Computations)'!EI62","v":"2020-08-01"},{"$f":"'(Intermediate Computations)'!EJ62","v":"2020-09-01"},{"$f":"'(Intermediate Computations)'!EK62","v":"2020-10-01"},{"$f":"'(Intermediate Computations)'!EL62","v":"2020-11-01"},{"$f":"'(Intermediate Computations)'!EM62","v":"2020-12-01"}]
[{"$f":"'Trial 1'!B11","v":{"v":1166666.6666666667,"d":"$1,166,667"}},{"$f":"'Trial 1'!C11","v":{"v":1163520.2600450728,"d":"$1,163,520"}},{"$f":"'Trial 1'!D11","v":{"v":1161251.108371822,"d":"$1,161,251"}},{"$f":"'Trial 1'!E11","v":{"v":1158772.5085246568,"d":"$1,158,773"}},{"$f":"'Trial 1'!F11","v":{"v":1156041.2069612886,"d":"$1,156,041"}},{"$f":"'Trial 1'!G11","v":{"v":1154032.8594555801,"d":"$1,154,033"}},{"$f":"'Trial 1'!H11","v":{"v":1151614.3105820261,"d":"$1,151,614"}},{"$f":"'Trial 1'!I11","v":{"v":1148798.3353250064,"d":"$1,148,798"}},{"$f":"'Trial 1'!J11","v":{"v":1146154.7319460667,"d":"$1,146,155"}},{"$f":"'Trial 1'!K11","v":{"v":1143787.3080707442,"d":"$1,143,787"}},{"$f":"'Trial 1'!L11","v":{"v":1142044.9034624333,"d":"$1,142,045"}},{"$f":"'Trial 1'!M11","v":{"v":1140019.5626520626,"d":"$1,140,020"}},{"$f":"'Trial 1'!O11","v":{"v":1137795.8122563933,"d":"$1,137,796"}},{"$f":"'Trial 1'!P11","v":{"v":1135136.3824109647,"d":"$1,135,136"}},{"$f":"'Trial 1'!Q11","v":{"v":1132758.322346151,"d":"$1,132,758"}},{"$f":"'Trial 1'!R11","v":{"v":1129500.9189307955,"d":"$1,129,501"}},{"$f":"'Trial 1'!S11","v":{"v":1127394.827792006,"d":"$1,127,395"}},{"$f":"'Trial 1'!T11","v":{"v":1124316.7088739744,"d":"$1,124,317"}},{"$f":"'Trial 1'!U11","v":{"v":1121557.876433266,"d":"$1,121,558"}},{"$f":"'Trial 1'!V11","v":{"v":1118621.54494272,"d":"$1,118,622"}},{"$f":"'Trial 1'!W11","v":{"v":1115704.1039405423,"d":"$1,115,704"}},{"$f":"'Trial 1'!X11","v":{"v":1113267.5231474116,"d":"$1,113,268"}},{"$f":"'Trial 1'!Y11","v":{"v":1110981.6690079845,"d":"$1,110,982"}},{"$f":"'Trial 1'!Z11","v":{"v":1109388.7525702198,"d":"$1,109,389"}},{"$f":"'Trial 1'!AB11","v":{"v":1106901.534487083,"d":"$1,106,902"}},{"$f":"'Trial 1'!AC11","v":{"v":1104810.3767773705,"d":"$1,104,810"}},{"$f":"'Trial 1'!AD11","v":{"v":1103530.4028897905,"d":"$1,103,530"}},{"$f":"'Trial 1'!AE11","v":{"v":1101154.0450889734,"d":"$1,101,154"}},{"$f":"'Trial 1'!AF11","v":{"v":1098630.2267185159,"d":"$1,098,630"}},{"$f":"'Trial 1'!AG11","v":{"v":1096555.5954039118,"d":"$1,096,556"}},{"$f":"'Trial 1'!AH11","v":{"v":1094453.0611785129,"d":"$1,094,453"}},{"$f":"'Trial 1'!AI11","v":{"v":1092658.4608327677,"d":"$1,092,658"}},{"$f":"'Trial 1'!AJ11","v":{"v":1090476.3686753458,"d":"$1,090,476"}},{"$f":"'Trial 1'!AK11","v":{"v":1089182.6921932532,"d":"$1,089,183"}},{"$f":"'Trial 1'!AL11","v":{"v":1087362.0394967177,"d":"$1,087,362"}},{"$f":"'Trial 1'!AM11","v":{"v":1085282.093068625,"d":"$1,085,282"}},{"$f":"'Trial 1'!AO11","v":{"v":1082916.0207559448,"d":"$1,082,916"}},{"$f":"'Trial 1'!AP11","v":{"v":1080579.2521014041,"d":"$1,080,579"}},{"$f":"'Trial 1'!AQ11","v":{"v":1079549.448086143,"d":"$1,079,549"}},{"$f":"'Trial 1'!AR11","v":{"v":1077152.9631864368,"d":"$1,077,153"}},{"$f":"'Trial 1'!AS11","v":{"v":1075729.621317679,"d":"$1,075,730"}},{"$f":"'Trial 1'!AT11","v":{"v":1074003.9572843523,"d":"$1,074,004"}},{"$f":"'Trial 1'!AU11","v":{"v":1072578.8456540066,"d":"$1,072,579"}},{"$f":"'Trial 1'!AV11","v":{"v":1070737.4089857747,"d":"$1,070,737"}},{"$f":"'Trial 1'!AW11","v":{"v":1068655.683276922,"d":"$1,068,656"}},{"$f":"'Trial 1'!AX11","v":{"v":1066887.4427405035,"d":"$1,066,887"}},{"$f":"'Trial 1'!AY11","v":{"v":1065743.9009460846,"d":"$1,065,744"}},{"$f":"'Trial 1'!AZ11","v":{"v":1064235.6831987859,"d":"$1,064,236"}},{"$f":"'Trial 1'!BB11","v":{"v":1062051.7129362735,"d":"$1,062,052"}},{"$f":"'Trial 1'!BC11","v":{"v":1059846.4261856338,"d":"$1,059,846"}},{"$f":"'Trial 1'!BD11","v":{"v":1058283.098994894,"d":"$1,058,283"}},{"$f":"'Trial 1'!BE11","v":{"v":1056409.3090442123,"d":"$1,056,409"}},{"$f":"'Trial 1'!BF11","v":{"v":1055242.03296133,"d":"$1,055,242"}},{"$f":"'Trial 1'!BG11","v":{"v":1053813.1741708266,"d":"$1,053,813"}},{"$f":"'Trial 1'!BH11","v":{"v":1052372.7632332966,"d":"$1,052,373"}},{"$f":"'Trial 1'!BI11","v":{"v":1051058.9175196907,"d":"$1,051,059"}},{"$f":"'Trial 1'!BJ11","v":{"v":1049358.9535686278,"d":"$1,049,359"}},{"$f":"'Trial 1'!BK11","v":{"v":1047653.8820411545,"d":"$1,047,654"}},{"$f":"'Trial 1'!BL11","v":{"v":1045501.7006943163,"d":"$1,045,502"}},{"$f":"'Trial 1'!BM11","v":{"v":1044133.719042564,"d":"$1,044,134"}},{"$f":"'Trial 1'!BO11","v":{"v":1042209.5100521324,"d":"$1,042,210"}},{"$f":"'Trial 1'!BP11","v":{"v":1040970.0527031104,"d":"$1,040,970"}},{"$f":"'Trial 1'!BQ11","v":{"v":1039224.6199968216,"d":"$1,039,225"}},{"$f":"'Trial 1'!BR11","v":{"v":1038502.4894443989,"d":"$1,038,502"}},{"$f":"'Trial 1'!BS11","v":{"v":1037360.4589976973,"d":"$1,037,360"}},{"$f":"'Trial 1'!BT11","v":{"v":1035977.7301255352,"d":"$1,035,978"}},{"$f":"'Trial 1'!BU11","v":{"v":1033920.457145275,"d":"$1,033,920"}},{"$f":"'Trial 1'!BV11","v":{"v":1032066.6907326696,"d":"$1,032,067"}},{"$f":"'Trial 1'!BW11","v":{"v":1030531.2765594013,"d":"$1,030,531"}},{"$f":"'Trial 1'!BX11","v":{"v":1029578.51868122,"d":"$1,029,579"}},{"$f":"'Trial 1'!BY11","v":{"v":1027755.7442401398,"d":"$1,027,756"}},{"$f":"'Trial 1'!BZ11","v":{"v":1025791.5028302363,"d":"$1,025,792"}},{"$f":"'Trial 1'!CB11","v":{"v":1024922.1400727367,"d":"$1,024,922"}},{"$f":"'Trial 1'!CC11","v":{"v":1023497.1613296288,"d":"$1,023,497"}},{"$f":"'Trial 1'!CD11","v":{"v":1021602.2032002064,"d":"$1,021,602"}},{"$f":"'Trial 1'!CE11","v":{"v":1020844.9707169031,"d":"$1,020,845"}},{"$f":"'Trial 1'!CF11","v":{"v":1019113.9196853843,"d":"$1,019,114"}},{"$f":"'Trial 1'!CG11","v":{"v":1017804.3783332238,"d":"$1,017,804"}},{"$f":"'Trial 1'!CH11","v":{"v":1016712.0801942387,"d":"$1,016,712"}},{"$f":"'Trial 1'!CI11","v":{"v":1015409.6926396212,"d":"$1,015,410"}},{"$f":"'Trial 1'!CJ11","v":{"v":1014274.0840854328,"d":"$1,014,274"}},{"$f":"'Trial 1'!CK11","v":{"v":1013054.3700830721,"d":"$1,013,054"}},{"$f":"'Trial 1'!CL11","v":{"v":1011166.8013785727,"d":"$1,011,167"}},{"$f":"'Trial 1'!CM11","v":{"v":1010347.8126477585,"d":"$1,010,348"}},{"$f":"'Trial 1'!CO11","v":{"v":1009157.6145485173,"d":"$1,009,158"}},{"$f":"'Trial 1'!CP11","v":{"v":1007565.9606722113,"d":"$1,007,566"}},{"$f":"'Trial 1'!CQ11","v":{"v":1006775.8764813038,"d":"$1,006,776"}},{"$f":"'Trial 1'!CR11","v":{"v":1004799.3069740483,"d":"$1,004,799"}},{"$f":"'Trial 1'!CS11","v":{"v":1003594.4083795573,"d":"$1,003,594"}},{"$f":"'Trial 1'!CT11","v":{"v":1001759.8268616081,"d":"$1,001,760"}},{"$f":"'Trial 1'!CU11","v":{"v":1000764.3853580856,"d":"$1,000,764"}},{"$f":"'Trial 1'!CV11","v":{"v":999108.2660860355,"d":"$999,108"}},{"$f":"'Trial 1'!CW11","v":{"v":998109.7565119351,"d":"$998,110"}},{"$f":"'Trial 1'!CX11","v":{"v":996375.4270461474,"d":"$996,375"}},{"$f":"'Trial 1'!CY11","v":{"v":995781.2791464601,"d":"$995,781"}},{"$f":"'Trial 1'!CZ11","v":{"v":995296.8328277678,"d":"$995,297"}},{"$f":"'Trial 1'!DB11","v":{"v":993563.312526757,"d":"$993,563"}},{"$f":"'Trial 1'!DC11","v":{"v":992536.2845960899,"d":"$992,536"}},{"$f":"'Trial 1'!DD11","v":{"v":991778.6860940619,"d":"$991,779"}},{"$f":"'Trial 1'!DE11","v":{"v":990749.4218021445,"d":"$990,749"}},{"$f":"'Trial 1'!DF11","v":{"v":990073.519347464,"d":"$990,074"}},{"$f":"'Trial 1'!DG11","v":{"v":989370.2891038576,"d":"$989,370"}},{"$f":"'Trial 1'!DH11","v":{"v":988148.5210322703,"d":"$988,149"}},{"$f":"'Trial 1'!DI11","v":{"v":987340.8190408194,"d":"$987,341"}},{"$f":"'Trial 1'!DJ11","v":{"v":985914.3303069776,"d":"$985,914"}},{"$f":"'Trial 1'!DK11","v":{"v":985137.1789005743,"d":"$985,137"}},{"$f":"'Trial 1'!DL11","v":{"v":984787.637977541,"d":"$984,788"}},{"$f":"'Trial 1'!DM11","v":{"v":983277.3773586345,"d":"$983,277"}},{"$f":"'Trial 1'!DO11","v":{"v":982392.864265442,"d":"$982,393"}},{"$f":"'Trial 1'!DP11","v":{"v":982042.530867743,"d":"$982,043"}},{"$f":"'Trial 1'!DQ11","v":{"v":980856.931625222,"d":"$980,857"}},{"$f":"'Trial 1'!DR11","v":{"v":980078.803553588,"d":"$980,079"}},{"$f":"'Trial 1'!DS11","v":{"v":979201.4125458696,"d":"$979,201"}},{"$f":"'Trial 1'!DT11","v":{"v":978114.6623444705,"d":"$978,115"}},{"$f":"'Trial 1'!DU11","v":{"v":977004.2649747372,"d":"$977,004"}},{"$f":"'Trial 1'!DV11","v":{"v":976244.8985467103,"d":"$976,245"}},{"$f":"'Trial 1'!DW11","v":{"v":974808.629264764,"d":"$974,809"}},{"$f":"'Trial 1'!DX11","v":{"v":973538.9394294696,"d":"$973,539"}},{"$f":"'Trial 1'!DY11","v":{"v":973088.0659445272,"d":"$973,088"}},{"$f":"'Trial 1'!DZ11","v":{"v":972491.3342167813,"d":"$972,491"}},{"$f":"'Trial 1'!EB11","v":{"v":971258.8396180182,"d":"$971,259"}},{"$f":"'Trial 1'!EC11","v":{"v":970532.7842645108,"d":"$970,533"}},{"$f":"'Trial 1'!ED11","v":{"v":969601.4098782538,"d":"$969,601"}},{"$f":"'Trial 1'!EE11","v":{"v":968684.2954475594,"d":"$968,684"}},{"$f":"'Trial 1'!EF11","v":{"v":967175.5315337277,"d":"$967,176"}},{"$f":"'Trial 1'!EG11","v":{"v":966226.6460105737,"d":"$966,227"}},{"$f":"'Trial 1'!EH11","v":{"v":965187.6828478618,"d":"$965,188"}},{"$f":"'Trial 1'!EI11","v":{"v":964242.1605646436,"d":"$964,242"}},{"$f":"'Trial 1'!EJ11","v":{"v":962964.6381592843,"d":"$962,965"}},{"$f":"'Trial 1'!EK11","v":{"v":962220.3385024776,"d":"$962,220"}},{"$f":"'Trial 1'!EL11","v":{"v":961261.8742400792,"d":"$961,262"}},{"$f":"'Trial 1'!EM11","v":{"v":959950.243278905,"d":"$959,950"}}]
[{"$f":"'Trial 2'!B11","v":{"v":1166666.6666666667,"d":"$1,166,667"}},{"$f":"'Trial 2'!C11","v":{"v":1163672.794806357,"d":"$1,163,673"}},{"$f":"'Trial 2'!D11","v":{"v":1160313.3694818474,"d":"$1,160,313"}},{"$f":"'Trial 2'!E11","v":{"v":1157685.1768315025,"d":"$1,157,685"}},{"$f":"'Trial 2'!F11","v":{"v":1155819.2201314033,"d":"$1,155,819"}},{"$f":"'Trial 2'!G11","v":{"v":1153363.10832036,"d":"$1,153,363"}},{"$f":"'Trial 2'!H11","v":{"v":1150445.5045749245,"d":"$1,150,446"}},{"$f":"'Trial 2'!I11","v":{"v":1147818.2066799256,"d":"$1,147,818"}},{"$f":"'Trial 2'!J11","v":{"v":1144710.74156971,"d":"$1,144,711"}},{"$f":"'Trial 2'!K11","v":{"v":1142347.0076358458,"d":"$1,142,347"}},{"$f":"'Trial 2'!L11","v":{"v":1139891.5026868721,"d":"$1,139,892"}},{"$f":"'Trial 2'!M11","v":{"v":1136878.7568126745,"d":"$1,136,879"}},{"$f":"'Trial 2'!O11","v":{"v":1134832.9931777578,"d":"$1,134,833"}},{"$f":"'Trial 2'!P11","v":{"v":1132112.3476861366,"d":"$1,132,112"}},{"$f":"'Trial 2'!Q11","v":{"v":1130096.7096271573,"d":"$1,130,097"}},{"$f":"'Trial 2'!R11","v":{"v":1128157.7382680434,"d":"$1,128,158"}},{"$f":"'Trial 2'!S11","v":{"v":1125674.5586503174,"d":"$1,125,675"}},{"$f":"'Trial 2'!T11","v":{"v":1123230.8852490585,"d":"$1,123,231"}},{"$f":"'Trial 2'!U11","v":{"v":1120811.3129704257,"d":"$1,120,811"}},{"$f":"'Trial 2'!V11","v":{"v":1117977.2993260173,"d":"$1,117,977"}},{"$f":"'Trial 2'!W11","v":{"v":1115354.6381699478,"d":"$1,115,355"}},{"$f":"'Trial 2'!X11","v":{"v":1112884.2050893358,"d":"$1,112,884"}},{"$f":"'Trial 2'!Y11","v":{"v":1110345.6947881537,"d":"$1,110,346"}},{"$f":"'Trial 2'!Z11","v":{"v":1107321.0586693392,"d":"$1,107,321"}},{"$f":"'Trial 2'!AB11","v":{"v":1105405.658994544,"d":"$1,105,406"}},{"$f":"'Trial 2'!AC11","v":{"v":1103269.299391796,"d":"$1,103,269"}},{"$f":"'Trial 2'!AD11","v":{"v":1101197.754742294,"d":"$1,101,198"}},{"$f":"'Trial 2'!AE11","v":{"v":1099109.5263861457,"d":"$1,099,110"}},{"$f":"'Trial 2'!AF11","v":{"v":1097870.3879033418,"d":"$1,097,870"}},{"$f":"'Trial 2'!AG11","v":{"v":1095819.4545424466,"d":"$1,095,819"}},{"$f":"'Trial 2'!AH11","v":{"v":1093587.4006064478,"d":"$1,093,587"}},{"$f":"'Trial 2'!AI11","v":{"v":1091812.6567025285,"d":"$1,091,813"}},{"$f":"'Trial 2'!AJ11","v":{"v":1089170.8931053015,"d":"$1,089,171"}},{"$f":"'Trial 2'!AK11","v":{"v":1087257.0356433543,"d":"$1,087,257"}},{"$f":"'Trial 2'!AL11","v":{"v":1085633.8211005146,"d":"$1,085,634"}},{"$f":"'Trial 2'!AM11","v":{"v":1084369.8288761296,"d":"$1,084,370"}},{"$f":"'Trial 2'!AO11","v":{"v":1082206.148770225,"d":"$1,082,206"}},{"$f":"'Trial 2'!AP11","v":{"v":1080224.6880475392,"d":"$1,080,225"}},{"$f":"'Trial 2'!AQ11","v":{"v":1078597.7632006882,"d":"$1,078,598"}},{"$f":"'Trial 2'!AR11","v":{"v":1076951.64923381,"d":"$1,076,952"}},{"$f":"'Trial 2'!AS11","v":{"v":1074887.7448567636,"d":"$1,074,888"}},{"$f":"'Trial 2'!AT11","v":{"v":1073287.2060032717,"d":"$1,073,287"}},{"$f":"'Trial 2'!AU11","v":{"v":1071690.861825852,"d":"$1,071,691"}},{"$f":"'Trial 2'!AV11","v":{"v":1069989.7223461368,"d":"$1,069,990"}},{"$f":"'Trial 2'!AW11","v":{"v":1068356.814894612,"d":"$1,068,357"}},{"$f":"'Trial 2'!AX11","v":{"v":1065830.9512766856,"d":"$1,065,831"}},{"$f":"'Trial 2'!AY11","v":{"v":1063973.1501009432,"d":"$1,063,973"}},{"$f":"'Trial 2'!AZ11","v":{"v":1062792.5174515536,"d":"$1,062,793"}},{"$f":"'Trial 2'!BB11","v":{"v":1061005.5167387086,"d":"$1,061,006"}},{"$f":"'Trial 2'!BC11","v":{"v":1059004.5911909456,"d":"$1,059,005"}},{"$f":"'Trial 2'!BD11","v":{"v":1057394.377763477,"d":"$1,057,394"}},{"$f":"'Trial 2'!BE11","v":{"v":1056291.0789036017,"d":"$1,056,291"}},{"$f":"'Trial 2'!BF11","v":{"v":1054593.107146449,"d":"$1,054,593"}},{"$f":"'Trial 2'!BG11","v":{"v":1053378.8651785306,"d":"$1,053,379"}},{"$f":"'Trial 2'!BH11","v":{"v":1051315.3536564359,"d":"$1,051,315"}},{"$f":"'Trial 2'!BI11","v":{"v":1049437.2634531849,"d":"$1,049,437"}},{"$f":"'Trial 2'!BJ11","v":{"v":1047197.6494474565,"d":"$1,047,198"}},{"$f":"'Trial 2'!BK11","v":{"v":1046029.6065065201,"d":"$1,046,030"}},{"$f":"'Trial 2'!BL11","v":{"v":1044286.4787928193,"d":"$1,044,286"}},{"$f":"'Trial 2'!BM11","v":{"v":1042881.1593886834,"d":"$1,042,881"}},{"$f":"'Trial 2'!BO11","v":{"v":1040647.0025327369,"d":"$1,040,647"}},{"$f":"'Trial 2'!BP11","v":{"v":1038333.5928213602,"d":"$1,038,334"}},{"$f":"'Trial 2'!BQ11","v":{"v":1036368.5991481476,"d":"$1,036,369"}},{"$f":"'Trial 2'!BR11","v":{"v":1035183.7893934806,"d":"$1,035,184"}},{"$f":"'Trial 2'!BS11","v":{"v":1034239.883371241,"d":"$1,034,240"}},{"$f":"'Trial 2'!BT11","v":{"v":1032151.1891861929,"d":"$1,032,151"}},{"$f":"'Trial 2'!BU11","v":{"v":1031382.8026459701,"d":"$1,031,383"}},{"$f":"'Trial 2'!BV11","v":{"v":1029657.7163064227,"d":"$1,029,658"}},{"$f":"'Trial 2'!BW11","v":{"v":1028544.8807059207,"d":"$1,028,545"}},{"$f":"'Trial 2'!BX11","v":{"v":1027216.186390527,"d":"$1,027,216"}},{"$f":"'Trial 2'!BY11","v":{"v":1025099.5025063588,"d":"$1,025,100"}},{"$f":"'Trial 2'!BZ11","v":{"v":1024546.1708374779,"d":"$1,024,546"}},{"$f":"'Trial 2'!CB11","v":{"v":1023322.212501775,"d":"$1,023,322"}},{"$f":"'Trial 2'!CC11","v":{"v":1022299.6580941604,"d":"$1,022,300"}},{"$f":"'Trial 2'!CD11","v":{"v":1020662.2038642304,"d":"$1,020,662"}},{"$f":"'Trial 2'!CE11","v":{"v":1019264.6976510616,"d":"$1,019,265"}},{"$f":"'Trial 2'!CF11","v":{"v":1018467.2281741505,"d":"$1,018,467"}},{"$f":"'Trial 2'!CG11","v":{"v":1017396.7168234824,"d":"$1,017,397"}},{"$f":"'Trial 2'!CH11","v":{"v":1016544.4856183706,"d":"$1,016,544"}},{"$f":"'Trial 2'!CI11","v":{"v":1015297.5857567766,"d":"$1,015,298"}},{"$f":"'Trial 2'!CJ11","v":{"v":1014584.9042421174,"d":"$1,014,585"}},{"$f":"'Trial 2'!CK11","v":{"v":1012798.9490926918,"d":"$1,012,799"}},{"$f":"'Trial 2'!CL11","v":{"v":1011496.6080927158,"d":"$1,011,497"}},{"$f":"'Trial 2'!CM11","v":{"v":1009605.184543591,"d":"$1,009,605"}},{"$f":"'Trial 2'!CO11","v":{"v":1008301.3755855092,"d":"$1,008,301"}},{"$f":"'Trial 2'!CP11","v":{"v":1006797.0648338486,"d":"$1,006,797"}},{"$f":"'Trial 2'!CQ11","v":{"v":1005620.1707410554,"d":"$1,005,620"}},{"$f":"'Trial 2'!CR11","v":{"v":1004638.8008663602,"d":"$1,004,639"}},{"$f":"'Trial 2'!CS11","v":{"v":1003284.7734080772,"d":"$1,003,285"}},{"$f":"'Trial 2'!CT11","v":{"v":1002398.2185571014,"d":"$1,002,398"}},{"$f":"'Trial 2'!CU11","v":{"v":1000783.9743057132,"d":"$1,000,784"}},{"$f":"'Trial 2'!CV11","v":{"v":1000165.8523349516,"d":"$1,000,166"}},{"$f":"'Trial 2'!CW11","v":{"v":998932.4861715902,"d":"$998,932"}},{"$f":"'Trial 2'!CX11","v":{"v":998323.9099278747,"d":"$998,324"}},{"$f":"'Trial 2'!CY11","v":{"v":996389.5538164474,"d":"$996,390"}},{"$f":"'Trial 2'!CZ11","v":{"v":995704.983959555,"d":"$995,705"}},{"$f":"'Trial 2'!DB11","v":{"v":994494.436346167,"d":"$994,494"}},{"$f":"'Trial 2'!DC11","v":{"v":993249.4212821611,"d":"$993,249"}},{"$f":"'Trial 2'!DD11","v":{"v":992430.7576915479,"d":"$992,431"}},{"$f":"'Trial 2'!DE11","v":{"v":991170.1653646163,"d":"$991,170"}},{"$f":"'Trial 2'!DF11","v":{"v":990399.1178078895,"d":"$990,399"}},{"$f":"'Trial 2'!DG11","v":{"v":989777.6719099252,"d":"$989,778"}},{"$f":"'Trial 2'!DH11","v":{"v":988725.6274189517,"d":"$988,726"}},{"$f":"'Trial 2'!DI11","v":{"v":987763.0677029399,"d":"$987,763"}},{"$f":"'Trial 2'!DJ11","v":{"v":986867.6525415448,"d":"$986,868"}},{"$f":"'Trial 2'!DK11","v":{"v":986487.1974180538,"d":"$986,487"}},{"$f":"'Trial 2'!DL11","v":{"v":985031.1058876712,"d":"$985,031"}},{"$f":"'Trial 2'!DM11","v":{"v":983223.0010988654,"d":"$983,223"}},{"$f":"'Trial 2'!DO11","v":{"v":981722.8011571586,"d":"$981,723"}},{"$f":"'Trial 2'!DP11","v":{"v":981173.8359406554,"d":"$981,174"}},{"$f":"'Trial 2'!DQ11","v":{"v":979566.7446474547,"d":"$979,567"}},{"$f":"'Trial 2'!DR11","v":{"v":978666.5700378612,"d":"$978,667"}},{"$f":"'Trial 2'!DS11","v":{"v":977584.7376588562,"d":"$977,585"}},{"$f":"'Trial 2'!DT11","v":{"v":976255.6307598805,"d":"$976,256"}},{"$f":"'Trial 2'!DU11","v":{"v":975465.3239207596,"d":"$975,465"}},{"$f":"'Trial 2'!DV11","v":{"v":974907.1561457142,"d":"$974,907"}},{"$f":"'Trial 2'!DW11","v":{"v":974277.4371363193,"d":"$974,277"}},{"$f":"'Trial 2'!DX11","v":{"v":972857.9364870274,"d":"$972,858"}},{"$f":"'Trial 2'!DY11","v":{"v":972316.0650088859,"d":"$972,316"}},{"$f":"'Trial 2'!DZ11","v":{"v":971389.6471226673,"d":"$971,390"}},{"$f":"'Trial 2'!EB11","v":{"v":969975.8211887856,"d":"$969,976"}},{"$f":"'Trial 2'!EC11","v":{"v":969527.9022720836,"d":"$969,528"}},{"$f":"'Trial 2'!ED11","v":{"v":968880.79922698,"d":"$968,881"}},{"$f":"'Trial 2'!EE11","v":{"v":967265.8346614732,"d":"$967,266"}},{"$f":"'Trial 2'!EF11","v":{"v":966356.150714295,"d":"$966,356"}},{"$f":"'Trial 2'!EG11","v":{"v":966169.9564788978,"d":"$966,170"}},{"$f":"'Trial 2'!EH11","v":{"v":964848.4256095149,"d":"$964,848"}},{"$f":"'Trial 2'!EI11","v":{"v":963679.516034202,"d":"$963,680"}},{"$f":"'Trial 2'!EJ11","v":{"v":962372.9621060764,"d":"$962,373"}},{"$f":"'Trial 2'!EK11","v":{"v":961740.5452823099,"d":"$961,741"}},{"$f":"'Trial 2'!EL11","v":{"v":960694.914981812,"d":"$960,695"}},{"$f":"'Trial 2'!EM11","v":{"v":960168.9656914882,"d":"$960,169"}}]
[{"$f":"'Trial 3'!B11","v":{"v":1166666.6666666667,"d":"$1,166,667"}},{"$f":"'Trial 3'!C11","v":{"v":1163083.0201730027,"d":"$1,163,083"}},{"$f":"'Trial 3'!D11","v":{"v":1160422.8175480834,"d":"$1,160,423"}},{"$f":"'Trial 3'!E11","v":{"v":1157243.7945822002,"d":"$1,157,244"}},{"$f":"'Trial 3'!F11","v":{"v":1155146.5580058137,"d":"$1,155,147"}},{"$f":"'Trial 3'!G11","v":{"v":1152653.6285962572,"d":"$1,152,654"}},{"$f":"'Trial 3'!H11","v":{"v":1150560.907045448,"d":"$1,150,561"}},{"$f":"'Trial 3'!I11","v":{"v":1147739.9349881536,"d":"$1,147,740"}},{"$f":"'Trial 3'!J11","v":{"v":1145516.6453868132,"d":"$1,145,517"}},{"$f":"'Trial 3'!K11","v":{"v":1142430.1176378678,"d":"$1,142,430"}},{"$f":"'Trial 3'!L11","v":{"v":1140006.323003013,"d":"$1,140,006"}},{"$f":"'Trial 3'!M11","v":{"v":1137913.6501883492,"d":"$1,137,914"}},{"$f":"'Trial 3'!O11","v":{"v":1135066.8461964724,"d":"$1,135,067"}},{"$f":"'Trial 3'!P11","v":{"v":1132733.2069666719,"d":"$1,132,733"}},{"$f":"'Trial 3'!Q11","v":{"v":1130098.6837942486,"d":"$1,130,099"}},{"$f":"'Trial 3'!R11","v":{"v":1128260.689846873,"d":"$1,128,261"}},{"$f":"'Trial 3'!S11","v":{"v":1126205.0683369206,"d":"$1,126,205"}},{"$f":"'Trial 3'!T11","v":{"v":1123838.251510409,"d":"$1,123,838"}},{"$f":"'Trial 3'!U11","v":{"v":1121364.2906279063,"d":"$1,121,364"}},{"$f":"'Trial 3'!V11","v":{"v":1118178.6479876447,"d":"$1,118,179"}},{"$f":"'Trial 3'!W11","v":{"v":1115520.7770089027,"d":"$1,115,521"}},{"$f":"'Trial 3'!X11","v":{"v":1113446.7829451372,"d":"$1,113,447"}},{"$f":"'Trial 3'!Y11","v":{"v":1111278.399099264,"d":"$1,111,278"}},{"$f":"'Trial 3'!Z11","v":{"v":1108870.591377069,"d":"$1,108,871"}},{"$f":"'Trial 3'!AB11","v":{"v":1105890.9236180806,"d":"$1,105,891"}},{"$f":"'Trial 3'!AC11","v":{"v":1104303.843584813,"d":"$1,104,304"}},{"$f":"'Trial 3'!AD11","v":{"v":1101883.3942851454,"d":"$1,101,883"}},{"$f":"'Trial 3'!AE11","v":{"v":1099296.527066266,"d":"$1,099,297"}},{"$f":"'Trial 3'!AF11","v":{"v":1097594.131584442,"d":"$1,097,594"}},{"$f":"'Trial 3'!AG11","v":{"v":1094724.3362664522,"d":"$1,094,724"}},{"$f":"'Trial 3'!AH11","v":{"v":1093028.9816768465,"d":"$1,093,029"}},{"$f":"'Trial 3'!AI11","v":{"v":1091105.1043938654,"d":"$1,091,105"}},{"$f":"'Trial 3'!AJ11","v":{"v":1088761.0320086419,"d":"$1,088,761"}},{"$f":"'Trial 3'!AK11","v":{"v":1087057.9250291104,"d":"$1,087,058"}},{"$f":"'Trial 3'!AL11","v":{"v":1085189.719984989,"d":"$1,085,190"}},{"$f":"'Trial 3'!AM11","v":{"v":1083075.193848964,"d":"$1,083,075"}},{"$f":"'Trial 3'!AO11","v":{"v":1080941.9680803753,"d":"$1,080,942"}},{"$f":"'Trial 3'!AP11","v":{"v":1079460.439917504,"d":"$1,079,460"}},{"$f":"'Trial 3'!AQ11","v":{"v":1078089.449292718,"d":"$1,078,089"}},{"$f":"'Trial 3'!AR11","v":{"v":1075578.5467157024,"d":"$1,075,579"}},{"$f":"'Trial 3'!AS11","v":{"v":1073617.3191547382,"d":"$1,073,617"}},{"$f":"'Trial 3'!AT11","v":{"v":1072168.225193837,"d":"$1,072,168"}},{"$f":"'Trial 3'!AU11","v":{"v":1070146.1813427003,"d":"$1,070,146"}},{"$f":"'Trial 3'!AV11","v":{"v":1067946.3672482178,"d":"$1,067,946"}},{"$f":"'Trial 3'!AW11","v":{"v":1066356.2740637108,"d":"$1,066,356"}},{"$f":"'Trial 3'!AX11","v":{"v":1064169.687581851,"d":"$1,064,170"}},{"$f":"'Trial 3'!AY11","v":{"v":1062958.6198775212,"d":"$1,062,959"}},{"$f":"'Trial 3'!AZ11","v":{"v":1060809.32324769,"d":"$1,060,809"}},{"$f":"'Trial 3'!BB11","v":{"v":1058458.9551612798,"d":"$1,058,459"}},{"$f":"'Trial 3'!BC11","v":{"v":1056640.6494583183,"d":"$1,056,641"}},{"$f":"'Trial 3'!BD11","v":{"v":1054325.9985883718,"d":"$1,054,326"}},{"$f":"'Trial 3'!BE11","v":{"v":1053083.405040809,"d":"$1,053,083"}},{"$f":"'Trial 3'!BF11","v":{"v":1050671.0809462506,"d":"$1,050,671"}},{"$f":"'Trial 3'!BG11","v":{"v":1049253.1591596198,"d":"$1,049,253"}},{"$f":"'Trial 3'!BH11","v":{"v":1046871.2846784462,"d":"$1,046,871"}},{"$f":"'Trial 3'!BI11","v":{"v":1044899.0668267849,"d":"$1,044,899"}},{"$f":"'Trial 3'!BJ11","v":{"v":1043479.0007219464,"d":"$1,043,479"}},{"$f":"'Trial 3'!BK11","v":{"v":1041982.0025367956,"d":"$1,041,982"}},{"$f":"'Trial 3'!BL11","v":{"v":1040315.4571034507,"d":"$1,040,315"}},{"$f":"'Trial 3'!BM11","v":{"v":1039167.6522508409,"d":"$1,039,168"}},{"$f":"'Trial 3'!BO11","v":{"v":1037652.3190793529,"d":"$1,037,652"}},{"$f":"'Trial 3'!BP11","v":{"v":1036168.7342599588,"d":"$1,036,169"}},{"$f":"'Trial 3'!BQ11","v":{"v":1034914.8428328306,"d":"$1,034,915"}},{"$f":"'Trial 3'!BR11","v":{"v":1033058.2044549683,"d":"$1,033,058"}},{"$f":"'Trial 3'!BS11","v":{"v":1031693.2102420221,"d":"$1,031,693"}},{"$f":"'Trial 3'!BT11","v":{"v":1030628.4046196616,"d":"$1,030,628"}},{"$f":"'Trial 3'!BU11","v":{"v":1029095.7553385823,"d":"$1,029,096"}},{"$f":"'Trial 3'!BV11","v":{"v":1027508.6986832177,"d":"$1,027,509"}},{"$f":"'Trial 3'!BW11","v":{"v":1025768.1360234858,"d":"$1,025,768"}},{"$f":"'Trial 3'!BX11","v":{"v":1024630.4549578758,"d":"$1,024,630"}},{"$f":"'Trial 3'!BY11","v":{"v":1022778.3416177552,"d":"$1,022,778"}},{"$f":"'Trial 3'!BZ11","v":{"v":1022028.9000907552,"d":"$1,022,029"}},{"$f":"'Trial 3'!CB11","v":{"v":1020559.6841740023,"d":"$1,020,560"}},{"$f":"'Trial 3'!CC11","v":{"v":1019497.5929417978,"d":"$1,019,498"}},{"$f":"'Trial 3'!CD11","v":{"v":1018107.9429173537,"d":"$1,018,108"}},{"$f":"'Trial 3'!CE11","v":{"v":1016876.2437295608,"d":"$1,016,876"}},{"$f":"'Trial 3'!CF11","v":{"v":1015674.776571947,"d":"$1,015,675"}},{"$f":"'Trial 3'!CG11","v":{"v":1014435.9130188754,"d":"$1,014,436"}},{"$f":"'Trial 3'!CH11","v":{"v":1013551.1273730678,"d":"$1,013,551"}},{"$f":"'Trial 3'!CI11","v":{"v":1012730.392096448,"d":"$1,012,730"}},{"$f":"'Trial 3'!CJ11","v":{"v":1012077.7548951963,"d":"$1,012,078"}},{"$f":"'Trial 3'!CK11","v":{"v":1010775.5177444026,"d":"$1,010,776"}},{"$f":"'Trial 3'!CL11","v":{"v":1009839.1362226601,"d":"$1,009,839"}},{"$f":"'Trial 3'!CM11","v":{"v":1009088.9597648535,"d":"$1,009,089"}},{"$f":"'Trial 3'!CO11","v":{"v":1008544.2089888235,"d":"$1,008,544"}},{"$f":"'Trial 3'!CP11","v":{"v":1006872.0748345382,"d":"$1,006,872"}},{"$f":"'Trial 3'!CQ11","v":{"v":1005911.378264778,"d":"$1,005,911"}},{"$f":"'Trial 3'!CR11","v":{"v":1004561.973169341,"d":"$1,004,562"}},{"$f":"'Trial 3'!CS11","v":{"v":1003543.3530947972,"d":"$1,003,543"}},{"$f":"'Trial 3'!CT11","v":{"v":1002333.51798573,"d":"$1,002,334"}},{"$f":"'Trial 3'!CU11","v":{"v":1001291.7549531317,"d":"$1,001,292"}},{"$f":"'Trial 3'!CV11","v":{"v":1000428.4578372786,"d":"$1,000,428"}},{"$f":"'Trial 3'!CW11","v":{"v":999351.3450432946,"d":"$999,351"}},{"$f":"'Trial 3'!CX11","v":{"v":997836.0572000617,"d":"$997,836"}},{"$f":"'Trial 3'!CY11","v":{"v":997314.7797212516,"d":"$997,315"}},{"$f":"'Trial 3'!CZ11","v":{"v":995912.3874632752,"d":"$995,912"}},{"$f":"'Trial 3'!DB11","v":{"v":995220.8820401704,"d":"$995,221"}},{"$f":"'Trial 3'!DC11","v":{"v":993674.9706549874,"d":"$993,675"}},{"$f":"'Trial 3'!DD11","v":{"v":991832.5422327309,"d":"$991,833"}},{"$f":"'Trial 3'!DE11","v":{"v":990720.6308202419,"d":"$990,721"}},{"$f":"'Trial 3'!DF11","v":{"v":989848.7287764177,"d":"$989,849"}},{"$f":"'Trial 3'!DG11","v":{"v":988887.0666725197,"d":"$988,887"}},{"$f":"'Trial 3'!DH11","v":{"v":988098.4710480687,"d":"$988,098"}},{"$f":"'Trial 3'!DI11","v":{"v":987243.0238543845,"d":"$987,243"}},{"$f":"'Trial 3'!DJ11","v":{"v":986253.2157670938,"d":"$986,253"}},{"$f":"'Trial 3'!DK11","v":{"v":985100.5291125585,"d":"$985,101"}},{"$f":"'Trial 3'!DL11","v":{"v":984262.233524737,"d":"$984,262"}},{"$f":"'Trial 3'!DM11","v":{"v":983561.6370913778,"d":"$983,562"}},{"$f":"'Trial 3'!DO11","v":{"v":982717.4500381269,"d":"$982,717"}},{"$f":"'Trial 3'!DP11","v":{"v":981968.6729633738,"d":"$981,969"}},{"$f":"'Trial 3'!DQ11","v":{"v":981271.8906361978,"d":"$981,272"}},{"$f":"'Trial 3'!DR11","v":{"v":981129.839090434,"d":"$981,130"}},{"$f":"'Trial 3'!DS11","v":{"v":979454.0640706163,"d":"$979,454"}},{"$f":"'Trial 3'!DT11","v":{"v":978283.2036686103,"d":"$978,283"}},{"$f":"'Trial 3'!DU11","v":{"v":977696.0266362078,"d":"$977,696"}},{"$f":"'Trial 3'!DV11","v":{"v":976700.8511775297,"d":"$976,701"}},{"$f":"'Trial 3'!DW11","v":{"v":976134.1092784347,"d":"$976,134"}},{"$f":"'Trial 3'!DX11","v":{"v":975747.4630423135,"d":"$975,747"}},{"$f":"'Trial 3'!DY11","v":{"v":974748.4085501807,"d":"$974,748"}},{"$f":"'Trial 3'!DZ11","v":{"v":973617.1119779235,"d":"$973,617"}},{"$f":"'Trial 3'!EB11","v":{"v":972259.9187190197,"d":"$972,260"}},{"$f":"'Trial 3'!EC11","v":{"v":971365.4507582381,"d":"$971,365"}},{"$f":"'Trial 3'!ED11","v":{"v":970310.0744621031,"d":"$970,310"}},{"$f":"'Trial 3'!EE11","v":{"v":969583.3654695515,"d":"$969,583"}},{"$f":"'Trial 3'!EF11","v":{"v":968861.9168986795,"d":"$968,862"}},{"$f":"'Trial 3'!EG11","v":{"v":967960.9244040492,"d":"$967,961"}},{"$f":"'Trial 3'!EH11","v":{"v":967071.9145590704,"d":"$967,072"}},{"$f":"'Trial 3'!EI11","v":{"v":966599.7718442508,"d":"$966,600"}},{"$f":"'Trial 3'!EJ11","v":{"v":965201.0240104825,"d":"$965,201"}},{"$f":"'Trial 3'!EK11","v":{"v":963651.858022933,"d":"$963,652"}},{"$f":"'Trial 3'!EL11","v":{"v":963400.0163032981,"d":"$963,400"}},{"$f":"'Trial 3'!EM11","v":{"v":962872.1343730311,"d":"$962,872"}}]
[{"$f":"'Trial 4'!B11","v":{"v":1166666.6666666667,"d":"$1,166,667"}},{"$f":"'Trial 4'!C11","v":{"v":1163645.3687997623,"d":"$1,163,645"}},{"$f":"'Trial 4'!D11","v":{"v":1160555.6786417966,"d":"$1,160,556"}},{"$f":"'Trial 4'!E11","v":{"v":1157485.2153202717,"d":"$1,157,485"}},{"$f":"'Trial 4'!F11","v":{"v":1155022.509501095,"d":"$1,155,023"}},{"$f":"'Trial 4'!G11","v":{"v":1152855.7683052314,"d":"$1,152,856"}},{"$f":"'Trial 4'!H11","v":{"v":1150954.7111749984,"d":"$1,150,955"}},{"$f":"'Trial 4'!I11","v":{"v":1147695.4532543046,"d":"$1,147,695"}},{"$f":"'Trial 4'!J11","v":{"v":1144502.698228334,"d":"$1,144,503"}},{"$f":"'Trial 4'!K11","v":{"v":1141809.414296797,"d":"$1,141,809"}},{"$f":"'Trial 4'!L11","v":{"v":1139151.8926778338,"d":"$1,139,152"}},{"$f":"'Trial 4'!M11","v":{"v":1136648.3661973826,"d":"$1,136,648"}},{"$f":"'Trial 4'!O11","v":{"v":1133500.7317018888,"d":"$1,133,501"}},{"$f":"'Trial 4'!P11","v":{"v":1131064.449123201,"d":"$1,131,064"}},{"$f":"'Trial 4'!Q11","v":{"v":1128828.0585566408,"d":"$1,128,828"}},{"$f":"'Trial 4'!R11","v":{"v":1127025.7676584795,"d":"$1,127,026"}},{"$f":"'Trial 4'!S11","v":{"v":1124664.4113377044,"d":"$1,124,664"}},{"$f":"'Trial 4'!T11","v":{"v":1121524.783905605,"d":"$1,121,525"}},{"$f":"'Trial 4'!U11","v":{"v":1118980.2953118752,"d":"$1,118,980"}},{"$f":"'Trial 4'!V11","v":{"v":1116731.246612364,"d":"$1,116,731"}},{"$f":"'Trial 4'!W11","v":{"v":1114407.8999768114,"d":"$1,114,408"}},{"$f":"'Trial 4'!X11","v":{"v":1113012.0585742488,"d":"$1,113,012"}},{"$f":"'Trial 4'!Y11","v":{"v":1110698.6181605242,"d":"$1,110,699"}},{"$f":"'Trial 4'!Z11","v":{"v":1107779.96488662,"d":"$1,107,780"}},{"$f":"'Trial 4'!AB11","v":{"v":1105190.3791982015,"d":"$1,105,190"}},{"$f":"'Trial 4'!AC11","v":{"v":1102735.6435891727,"d":"$1,102,736"}},{"$f":"'Trial 4'!AD11","v":{"v":1100735.5243780327,"d":"$1,100,736"}},{"$f":"'Trial 4'!AE11","v":{"v":1098448.789524801,"d":"$1,098,449"}},{"$f":"'Trial 4'!AF11","v":{"v":1095775.183718134,"d":"$1,095,775"}},{"$f":"'Trial 4'!AG11","v":{"v":1093461.3767056975,"d":"$1,093,461"}},{"$f":"'Trial 4'!AH11","v":{"v":1092058.0244522567,"d":"$1,092,058"}},{"$f":"'Trial 4'!AI11","v":{"v":1090040.3559475206,"d":"$1,090,040"}},{"$f":"'Trial 4'!AJ11","v":{"v":1088037.4206173301,"d":"$1,088,037"}},{"$f":"'Trial 4'!AK11","v":{"v":1085804.4129718347,"d":"$1,085,804"}},{"$f":"'Trial 4'!AL11","v":{"v":1084384.9112689004,"d":"$1,084,385"}},{"$f":"'Trial 4'!AM11","v":{"v":1082282.1681262855,"d":"$1,082,282"}},{"$f":"'Trial 4'!AO11","v":{"v":1079558.93140954,"d":"$1,079,559"}},{"$f":"'Trial 4'!AP11","v":{"v":1077673.7021715108,"d":"$1,077,674"}},{"$f":"'Trial 4'!AQ11","v":{"v":1075767.1721358201,"d":"$1,075,767"}},{"$f":"'Trial 4'!AR11","v":{"v":1073785.600692431,"d":"$1,073,786"}},{"$f":"'Trial 4'!AS11","v":{"v":1071478.4073124568,"d":"$1,071,478"}},{"$f":"'Trial 4'!AT11","v":{"v":1069836.352544413,"d":"$1,069,836"}},{"$f":"'Trial 4'!AU11","v":{"v":1068479.8114864342,"d":"$1,068,480"}},{"$f":"'Trial 4'!AV11","v":{"v":1066886.9963454779,"d":"$1,066,887"}},{"$f":"'Trial 4'!AW11","v":{"v":1065093.2241419621,"d":"$1,065,093"}},{"$f":"'Trial 4'!AX11","v":{"v":1063613.6711758992,"d":"$1,063,614"}},{"$f":"'Trial 4'!AY11","v":{"v":1061446.180117307,"d":"$1,061,446"}},{"$f":"'Trial 4'!AZ11","v":{"v":1059367.8069247033,"d":"$1,059,368"}},{"$f":"'Trial 4'!BB11","v":{"v":1056983.8479827892,"d":"$1,056,984"}},{"$f":"'Trial 4'!BC11","v":{"v":1056121.4026842557,"d":"$1,056,121"}},{"$f":"'Trial 4'!BD11","v":{"v":1055237.5111832307,"d":"$1,055,238"}},{"$f":"'Trial 4'!BE11","v":{"v":1053145.431906217,"d":"$1,053,145"}},{"$f":"'Trial 4'!BF11","v":{"v":1051521.1229246352,"d":"$1,051,521"}},{"$f":"'Trial 4'!BG11","v":{"v":1049498.235033009,"d":"$1,049,498"}},{"$f":"'Trial 4'!BH11","v":{"v":1048207.5396553641,"d":"$1,048,208"}},{"$f":"'Trial 4'!BI11","v":{"v":1046249.4898746659,"d":"$1,046,249"}},{"$f":"'Trial 4'!BJ11","v":{"v":1044723.2003451898,"d":"$1,044,723"}},{"$f":"'Trial 4'!BK11","v":{"v":1042379.1682788666,"d":"$1,042,379"}},{"$f":"'Trial 4'!BL11","v":{"v":1041285.2068612535,"d":"$1,041,285"}},{"$f":"'Trial 4'!BM11","v":{"v":1039987.5319491664,"d":"$1,039,988"}},{"$f":"'Trial 4'!BO11","v":{"v":1038873.1837779749,"d":"$1,038,873"}},{"$f":"'Trial 4'!BP11","v":{"v":1037713.2860746473,"d":"$1,037,713"}},{"$f":"'Trial 4'!BQ11","v":{"v":1036590.0504890484,"d":"$1,036,590"}},{"$f":"'Trial 4'!BR11","v":{"v":1034819.018668721,"d":"$1,034,819"}},{"$f":"'Trial 4'!BS11","v":{"v":1033474.2941377786,"d":"$1,033,474"}},{"$f":"'Trial 4'!BT11","v":{"v":1031532.5455568141,"d":"$1,031,533"}},{"$f":"'Trial 4'!BU11","v":{"v":1030388.0304287407,"d":"$1,030,388"}},{"$f":"'Trial 4'!BV11","v":{"v":1028796.8854716502,"d":"$1,028,797"}},{"$f":"'Trial 4'!BW11","v":{"v":1027051.8258634043,"d":"$1,027,052"}},{"$f":"'Trial 4'!BX11","v":{"v":1025170.0519553918,"d":"$1,025,170"}},{"$f":"'Trial 4'!BY11","v":{"v":1024185.036358797,"d":"$1,024,185"}},{"$f":"'Trial 4'!BZ11","v":{"v":1022757.5046989459,"d":"$1,022,758"}},{"$f":"'Trial 4'!CB11","v":{"v":1021665.9865614916,"d":"$1,021,666"}},{"$f":"'Trial 4'!CC11","v":{"v":1019943.0105905855,"d":"$1,019,943"}},{"$f":"'Trial 4'!CD11","v":{"v":1018851.3970279037,"d":"$1,018,851"}},{"$f":"'Trial 4'!CE11","v":{"v":1017308.7319200526,"d":"$1,017,309"}},{"$f":"'Trial 4'!CF11","v":{"v":1015875.4961812478,"d":"$1,015,875"}},{"$f":"'Trial 4'!CG11","v":{"v":1014678.1228989891,"d":"$1,014,678"}},{"$f":"'Trial 4'!CH11","v":{"v":1013233.9974746341,"d":"$1,013,234"}},{"$f":"'Trial 4'!CI11","v":{"v":1012851.0278364366,"d":"$1,012,851"}},{"$f":"'Trial 4'!CJ11","v":{"v":1012062.407287203,"d":"$1,012,062"}},{"$f":"'Trial 4'!CK11","v":{"v":1010769.5995956456,"d":"$1,010,770"}},{"$f":"'Trial 4'!CL11","v":{"v":1010029.8764554532,"d":"$1,010,030"}},{"$f":"'Trial 4'!CM11","v":{"v":1008919.4765282144,"d":"$1,008,919"}},{"$f":"'Trial 4'!CO11","v":{"v":1007403.736382928,"d":"$1,007,404"}},{"$f":"'Trial 4'!CP11","v":{"v":1006643.5869816457,"d":"$1,006,644"}},{"$f":"'Trial 4'!CQ11","v":{"v":1005759.615513201,"d":"$1,005,760"}},{"$f":"'Trial 4'!CR11","v":{"v":1005010.49677173,"d":"$1,005,010"}},{"$f":"'Trial 4'!CS11","v":{"v":1003879.7426756624,"d":"$1,003,880"}},{"$f":"'Trial 4'!CT11","v":{"v":1002365.8501868036,"d":"$1,002,366"}},{"$f":"'Trial 4'!CU11","v":{"v":1000536.708627953,"d":"$1,000,537"}},{"$f":"'Trial 4'!CV11","v":{"v":1000155.5491385006,"d":"$1,000,156"}},{"$f":"'Trial 4'!CW11","v":{"v":999258.7659309478,"d":"$999,259"}},{"$f":"'Trial 4'!CX11","v":{"v":998325.8317255095,"d":"$998,326"}},{"$f":"'Trial 4'!CY11","v":{"v":996531.322294128,"d":"$996,531"}},{"$f":"'Trial 4'!CZ11","v":{"v":995734.1677966202,"d":"$995,734"}},{"$f":"'Trial 4'!DB11","v":{"v":995238.8631156833,"d":"$995,239"}},{"$f":"'Trial 4'!DC11","v":{"v":993850.1777693848,"d":"$993,850"}},{"$f":"'Trial 4'!DD11","v":{"v":992240.0046695003,"d":"$992,240"}},{"$f":"'Trial 4'!DE11","v":{"v":991480.4523871894,"d":"$991,480"}},{"$f":"'Trial 4'!DF11","v":{"v":990729.0144177838,"d":"$990,729"}},{"$f":"'Trial 4'!DG11","v":{"v":989758.0913408352,"d":"$989,758"}},{"$f":"'Trial 4'!DH11","v":{"v":988912.7039558355,"d":"$988,913"}},{"$f":"'Trial 4'!DI11","v":{"v":987348.6530060985,"d":"$987,349"}},{"$f":"'Trial 4'!DJ11","v":{"v":986690.240533854,"d":"$986,690"}},{"$f":"'Trial 4'!DK11","v":{"v":985422.1843012967,"d":"$985,422"}},{"$f":"'Trial 4'!DL11","v":{"v":984701.7998593679,"d":"$984,702"}},{"$f":"'Trial 4'!DM11","v":{"v":983842.3114787149,"d":"$983,842"}},{"$f":"'Trial 4'!DO11","v":{"v":982632.9189070176,"d":"$982,633"}},{"$f":"'Trial 4'!DP11","v":{"v":982284.4809741018,"d":"$982,284"}},{"$f":"'Trial 4'!DQ11","v":{"v":982122.9089008992,"d":"$982,123"}},{"$f":"'Trial 4'!DR11","v":{"v":980715.7188356486,"d":"$980,716"}},{"$f":"'Trial 4'!DS11","v":{"v":980428.2255780377,"d":"$980,428"}},{"$f":"'Trial 4'!DT11","v":{"v":980223.3423621414,"d":"$980,223"}},{"$f":"'Trial 4'!DU11","v":{"v":979643.9430595925,"d":"$979,644"}},{"$f":"'Trial 4'!DV11","v":{"v":978440.5628500413,"d":"$978,441"}},{"$f":"'Trial 4'!DW11","v":{"v":977383.5124113855,"d":"$977,384"}},{"$f":"'Trial 4'!DX11","v":{"v":975603.8273564479,"d":"$975,604"}},{"$f":"'Trial 4'!DY11","v":{"v":975253.6498358088,"d":"$975,254"}},{"$f":"'Trial 4'!DZ11","v":{"v":974796.460050092,"d":"$974,796"}},{"$f":"'Trial 4'!EB11","v":{"v":974536.9216526776,"d":"$974,537"}},{"$f":"'Trial 4'!EC11","v":{"v":973546.27558917,"d":"$973,546"}},{"$f":"'Trial 4'!ED11","v":{"v":971750.7644725941,"d":"$971,751"}},{"$f":"'Trial 4'!EE11","v":{"v":970679.8287731417,"d":"$970,680"}},{"$f":"'Trial 4'!EF11","v":{"v":970308.7570497147,"d":"$970,309"}},{"$f":"'Trial 4'!EG11","v":{"v":970096.9558349772,"d":"$970,097"}},{"$f":"'Trial 4'!EH11","v":{"v":968995.9033377654,"d":"$968,996"}},{"$f":"'Trial 4'!EI11","v":{"v":968415.9773669906,"d":"$968,416"}},{"$f":"'Trial 4'!EJ11","v":{"v":966822.390774897,"d":"$966,822"}},{"$f":"'Trial 4'!EK11","v":{"v":965238.9369227428,"d":"$965,239"}},{"$f":"'Trial 4'!EL11","v":{"v":964819.3945529591,"d":"$964,819"}},{"$f":"'Trial 4'!EM11","v":{"v":963450.9071304488,"d":"$963,451"}}]
[{"$f":"'Trial 5'!B11","v":{"v":1166666.6666666667,"d":"$1,166,667"}},{"$f":"'Trial 5'!C11","v":{"v":1163292.663638942,"d":"$1,163,293"}},{"$f":"'Trial 5'!D11","v":{"v":1160099.8301054535,"d":"$1,160,100"}},{"$f":"'Trial 5'!E11","v":{"v":1157875.4617820682,"d":"$1,157,875"}},{"$f":"'Trial 5'!F11","v":{"v":1154429.3359015982,"d":"$1,154,429"}},{"$f":"'Trial 5'!G11","v":{"v":1151461.7199526655,"d":"$1,151,462"}},{"$f":"'Trial 5'!H11","v":{"v":1148465.7944948778,"d":"$1,148,466"}},{"$f":"'Trial 5'!I11","v":{"v":1145813.9169613149,"d":"$1,145,814"}},{"$f":"'Trial 5'!J11","v":{"v":1143492.22763719,"d":"$1,143,492"}},{"$f":"'Trial 5'!K11","v":{"v":1141759.90006052,"d":"$1,141,760"}},{"$f":"'Trial 5'!L11","v":{"v":1138823.6525468112,"d":"$1,138,824"}},{"$f":"'Trial 5'!M11","v":{"v":1136006.7123686608,"d":"$1,136,007"}},{"$f":"'Trial 5'!O11","v":{"v":1133505.6579406017,"d":"$1,133,506"}},{"$f":"'Trial 5'!P11","v":{"v":1130903.8564452222,"d":"$1,130,904"}},{"$f":"'Trial 5'!Q11","v":{"v":1128527.3279775146,"d":"$1,128,527"}},{"$f":"'Trial 5'!R11","v":{"v":1126007.6103168605,"d":"$1,126,008"}},{"$f":"'Trial 5'!S11","v":{"v":1123728.7290438367,"d":"$1,123,729"}},{"$f":"'Trial 5'!T11","v":{"v":1120801.140617662,"d":"$1,120,801"}},{"$f":"'Trial 5'!U11","v":{"v":1119313.7100702275,"d":"$1,119,314"}},{"$f":"'Trial 5'!V11","v":{"v":1117205.6865642061,"d":"$1,117,206"}},{"$f":"'Trial 5'!W11","v":{"v":1114869.2084177919,"d":"$1,114,869"}},{"$f":"'Trial 5'!X11","v":{"v":1112736.7666620822,"d":"$1,112,737"}},{"$f":"'Trial 5'!Y11","v":{"v":1110025.700076352,"d":"$1,110,026"}},{"$f":"'Trial 5'!Z11","v":{"v":1108605.4880801684,"d":"$1,108,605"}},{"$f":"'Trial 5'!AB11","v":{"v":1106222.8672011483,"d":"$1,106,223"}},{"$f":"'Trial 5'!AC11","v":{"v":1104292.1630463724,"d":"$1,104,292"}},{"$f":"'Trial 5'!AD11","v":{"v":1102145.157117564,"d":"$1,102,145"}},{"$f":"'Trial 5'!AE11","v":{"v":1100741.7913826832,"d":"$1,100,742"}},{"$f":"'Trial 5'!AF11","v":{"v":1097833.3442173582,"d":"$1,097,833"}},{"$f":"'Trial 5'!AG11","v":{"v":1095097.1001690412,"d":"$1,095,097"}},{"$f":"'Trial 5'!AH11","v":{"v":1092827.8210051917,"d":"$1,092,828"}},{"$f":"'Trial 5'!AI11","v":{"v":1091004.9191918334,"d":"$1,091,005"}},{"$f":"'Trial 5'!AJ11","v":{"v":1088533.7179322029,"d":"$1,088,534"}},{"$f":"'Trial 5'!AK11","v":{"v":1086670.341005609,"d":"$1,086,670"}},{"$f":"'Trial 5'!AL11","v":{"v":1084227.5711357163,"d":"$1,084,228"}},{"$f":"'Trial 5'!AM11","v":{"v":1082177.6968829976,"d":"$1,082,178"}},{"$f":"'Trial 5'!AO11","v":{"v":1079836.086746669,"d":"$1,079,836"}},{"$f":"'Trial 5'!AP11","v":{"v":1077962.7848175538,"d":"$1,077,963"}},{"$f":"'Trial 5'!AQ11","v":{"v":1076155.8137478682,"d":"$1,076,156"}},{"$f":"'Trial 5'!AR11","v":{"v":1074142.6611774461,"d":"$1,074,143"}},{"$f":"'Trial 5'!AS11","v":{"v":1072540.355698056,"d":"$1,072,540"}},{"$f":"'Trial 5'!AT11","v":{"v":1071033.4524231083,"d":"$1,071,033"}},{"$f":"'Trial 5'!AU11","v":{"v":1069009.8950415554,"d":"$1,069,010"}},{"$f":"'Trial 5'!AV11","v":{"v":1067419.1100287852,"d":"$1,067,419"}},{"$f":"'Trial 5'!AW11","v":{"v":1065706.8280830241,"d":"$1,065,707"}},{"$f":"'Trial 5'!AX11","v":{"v":1063857.122234204,"d":"$1,063,857"}},{"$f":"'Trial 5'!AY11","v":{"v":1062033.2345937537,"d":"$1,062,033"}},{"$f":"'Trial 5'!AZ11","v":{"v":1060455.8941060754,"d":"$1,060,456"}},{"$f":"'Trial 5'!BB11","v":{"v":1058675.0924202714,"d":"$1,058,675"}},{"$f":"'Trial 5'!BC11","v":{"v":1056709.2099705767,"d":"$1,056,709"}},{"$f":"'Trial 5'!BD11","v":{"v":1054491.8168008693,"d":"$1,054,492"}},{"$f":"'Trial 5'!BE11","v":{"v":1052068.5349148642,"d":"$1,052,069"}},{"$f":"'Trial 5'!BF11","v":{"v":1050690.7945835227,"d":"$1,050,691"}},{"$f":"'Trial 5'!BG11","v":{"v":1048888.6527924777,"d":"$1,048,889"}},{"$f":"'Trial 5'!BH11","v":{"v":1047442.3683391558,"d":"$1,047,442"}},{"$f":"'Trial 5'!BI11","v":{"v":1045289.6045184133,"d":"$1,045,290"}},{"$f":"'Trial 5'!BJ11","v":{"v":1043900.9490595618,"d":"$1,043,901"}},{"$f":"'Trial 5'!BK11","v":{"v":1042931.0614696624,"d":"$1,042,931"}},{"$f":"'Trial 5'!BL11","v":{"v":1041612.0981074456,"d":"$1,041,612"}},{"$f":"'Trial 5'!BM11","v":{"v":1040675.6149241866,"d":"$1,040,676"}},{"$f":"'Trial 5'!BO11","v":{"v":1039325.6720401181,"d":"$1,039,326"}},{"$f":"'Trial 5'!BP11","v":{"v":1038384.1530877666,"d":"$1,038,384"}},{"$f":"'Trial 5'!BQ11","v":{"v":1037687.8298659847,"d":"$1,037,688"}},{"$f":"'Trial 5'!BR11","v":{"v":1036964.5918286088,"d":"$1,036,965"}},{"$f":"'Trial 5'!BS11","v":{"v":1034992.707806442,"d":"$1,034,993"}},{"$f":"'Trial 5'!BT11","v":{"v":1033559.42134987,"d":"$1,033,559"}},{"$f":"'Trial 5'!BU11","v":{"v":1032935.4684062483,"d":"$1,032,935"}},{"$f":"'Trial 5'!BV11","v":{"v":1031040.9028477371,"d":"$1,031,041"}},{"$f":"'Trial 5'!BW11","v":{"v":1029551.7699322529,"d":"$1,029,552"}},{"$f":"'Trial 5'!BX11","v":{"v":1028244.5709940878,"d":"$1,028,245"}},{"$f":"'Trial 5'!BY11","v":{"v":1027491.4005495297,"d":"$1,027,491"}},{"$f":"'Trial 5'!BZ11","v":{"v":1026794.8873119178,"d":"$1,026,795"}},{"$f":"'Trial 5'!CB11","v":{"v":1025924.0934880646,"d":"$1,025,924"}},{"$f":"'Trial 5'!CC11","v":{"v":1024499.0986681766,"d":"$1,024,499"}},{"$f":"'Trial 5'!CD11","v":{"v":1023188.8907532236,"d":"$1,023,189"}},{"$f":"'Trial 5'!CE11","v":{"v":1021802.9320913468,"d":"$1,021,803"}},{"$f":"'Trial 5'!CF11","v":{"v":1020213.6811640488,"d":"$1,020,214"}},{"$f":"'Trial 5'!CG11","v":{"v":1019003.8997489484,"d":"$1,019,004"}},{"$f":"'Trial 5'!CH11","v":{"v":1018535.2359759855,"d":"$1,018,535"}},{"$f":"'Trial 5'!CI11","v":{"v":1016933.5424310776,"d":"$1,016,934"}},{"$f":"'Trial 5'!CJ11","v":{"v":1015259.4689645439,"d":"$1,015,259"}},{"$f":"'Trial 5'!CK11","v":{"v":1014157.1999000927,"d":"$1,014,157"}},{"$f":"'Trial 5'!CL11","v":{"v":1013676.9032138758,"d":"$1,013,677"}},{"$f":"'Trial 5'!CM11","v":{"v":1011993.6142080139,"d":"$1,011,994"}},{"$f":"'Trial 5'!CO11","v":{"v":1011007.4465234277,"d":"$1,011,007"}},{"$f":"'Trial 5'!CP11","v":{"v":1009983.9137128796,"d":"$1,009,984"}},{"$f":"'Trial 5'!CQ11","v":{"v":1008325.321031055,"d":"$1,008,325"}},{"$f":"'Trial 5'!CR11","v":{"v":1007784.7774306271,"d":"$1,007,785"}},{"$f":"'Trial 5'!CS11","v":{"v":1006235.5305226556,"d":"$1,006,236"}},{"$f":"'Trial 5'!CT11","v":{"v":1004836.356129043,"d":"$1,004,836"}},{"$f":"'Trial 5'!CU11","v":{"v":1003907.3059684252,"d":"$1,003,907"}},{"$f":"'Trial 5'!CV11","v":{"v":1002853.0948452567,"d":"$1,002,853"}},{"$f":"'Trial 5'!CW11","v":{"v":1001573.9641817161,"d":"$1,001,574"}},{"$f":"'Trial 5'!CX11","v":{"v":1000863.0204226869,"d":"$1,000,863"}},{"$f":"'Trial 5'!CY11","v":{"v":999519.016134771,"d":"$999,519"}},{"$f":"'Trial 5'!CZ11","v":{"v":998360.3578523392,"d":"$998,360"}},{"$f":"'Trial 5'!DB11","v":{"v":996544.8517133545,"d":"$996,545"}},{"$f":"'Trial 5'!DC11","v":{"v":995714.4923487371,"d":"$995,714"}},{"$f":"'Trial 5'!DD11","v":{"v":994649.295291726,"d":"$994,649"}},{"$f":"'Trial 5'!DE11","v":{"v":993709.4924582578,"d":"$993,709"}},{"$f":"'Trial 5'!DF11","v":{"v":992331.4473612742,"d":"$992,331"}},{"$f":"'Trial 5'!DG11","v":{"v":990864.1472727319,"d":"$990,864"}},{"$f":"'Trial 5'!DH11","v":{"v":990231.7765370862,"d":"$990,232"}},{"$f":"'Trial 5'!DI11","v":{"v":989940.948973428,"d":"$989,941"}},{"$f":"'Trial 5'!DJ11","v":{"v":988919.2320626283,"d":"$988,919"}},{"$f":"'Trial 5'!DK11","v":{"v":987471.3341249495,"d":"$987,471"}},{"$f":"'Trial 5'!DL11","v":{"v":986356.1594250319,"d":"$986,356"}},{"$f":"'Trial 5'!DM11","v":{"v":984864.7542326303,"d":"$984,865"}},{"$f":"'Trial 5'!DO11","v":{"v":983874.4867698427,"d":"$983,874"}},{"$f":"'Trial 5'!DP11","v":{"v":982640.2033923998,"d":"$982,640"}},{"$f":"'Trial 5'!DQ11","v":{"v":981629.445645366,"d":"$981,629"}},{"$f":"'Trial 5'!DR11","v":{"v":981329.9829253319,"d":"$981,330"}},{"$f":"'Trial 5'!DS11","v":{"v":980675.1373219065,"d":"$980,675"}},{"$f":"'Trial 5'!DT11","v":{"v":979936.3744159745,"d":"$979,936"}},{"$f":"'Trial 5'!DU11","v":{"v":979440.4890882191,"d":"$979,440"}},{"$f":"'Trial 5'!DV11","v":{"v":978121.0755657392,"d":"$978,121"}},{"$f":"'Trial 5'!DW11","v":{"v":977221.816142302,"d":"$977,222"}},{"$f":"'Trial 5'!DX11","v":{"v":976641.7517300879,"d":"$976,642"}},{"$f":"'Trial 5'!DY11","v":{"v":975457.7072696192,"d":"$975,458"}},{"$f":"'Trial 5'!DZ11","v":{"v":974511.2785133512,"d":"$974,511"}},{"$f":"'Trial 5'!EB11","v":{"v":973169.5612370722,"d":"$973,170"}},{"$f":"'Trial 5'!EC11","v":{"v":972219.8009311786,"d":"$972,220"}},{"$f":"'Trial 5'!ED11","v":{"v":971828.2158300073,"d":"$971,828"}},{"$f":"'Trial 5'!EE11","v":{"v":970563.5102497394,"d":"$970,564"}},{"$f":"'Trial 5'!EF11","v":{"v":969740.7021056749,"d":"$969,741"}},{"$f":"'Trial 5'!EG11","v":{"v":968897.1230468403,"d":"$968,897"}},{"$f":"'Trial 5'!EH11","v":{"v":968474.7396313163,"d":"$968,475"}},{"$f":"'Trial 5'!EI11","v":{"v":966950.83692297,"d":"$966,951"}},{"$f":"'Trial 5'!EJ11","v":{"v":965616.0168674248,"d":"$965,616"}},{"$f":"'Trial 5'!EK11","v":{"v":964492.6121896708,"d":"$964,493"}},{"$f":"'Trial 5'!EL11","v":{"v":963670.5777604047,"d":"$963,671"}},{"$f":"'Trial 5'!EM11","v":{"v":962872.9010647241,"d":"$962,873"}}]
[{"$f":"'Trial 6'!B11","v":{"v":1166666.6666666667,"d":"$1,166,667"}},{"$f":"'Trial 6'!C11","v":{"v":1163941.9343871598,"d":"$1,163,942"}},{"$f":"'Trial 6'!D11","v":{"v":1160313.7226394701,"d":"$1,160,314"}},{"$f":"'Trial 6'!E11","v":{"v":1158000.3887778225,"d":"$1,158,000"}},{"$f":"'Trial 6'!F11","v":{"v":1155947.1670664365,"d":"$1,155,947"}},{"$f":"'Trial 6'!G11","v":{"v":1153472.7902051765,"d":"$1,153,473"}},{"$f":"'Trial 6'!H11","v":{"v":1150452.253346578,"d":"$1,150,452"}},{"$f":"'Trial 6'!I11","v":{"v":1147733.7089617718,"d":"$1,147,734"}},{"$f":"'Trial 6'!J11","v":{"v":1145029.346569747,"d":"$1,145,029"}},{"$f":"'Trial 6'!K11","v":{"v":1142897.156728023,"d":"$1,142,897"}},{"$f":"'Trial 6'!L11","v":{"v":1140317.1825386425,"d":"$1,140,317"}},{"$f":"'Trial 6'!M11","v":{"v":1138493.0305379727,"d":"$1,138,493"}},{"$f":"'Trial 6'!O11","v":{"v":1135944.97786259,"d":"$1,135,945"}},{"$f":"'Trial 6'!P11","v":{"v":1134040.0882591677,"d":"$1,134,040"}},{"$f":"'Trial 6'!Q11","v":{"v":1131435.2213536743,"d":"$1,131,435"}},{"$f":"'Trial 6'!R11","v":{"v":1129588.2436081413,"d":"$1,129,588"}},{"$f":"'Trial 6'!S11","v":{"v":1127567.1305896568,"d":"$1,127,567"}},{"$f":"'Trial 6'!T11","v":{"v":1124395.7865930174,"d":"$1,124,396"}},{"$f":"'Trial 6'!U11","v":{"v":1121895.0790878204,"d":"$1,121,895"}},{"$f":"'Trial 6'!V11","v":{"v":1119839.6608342787,"d":"$1,119,840"}},{"$f":"'Trial 6'!W11","v":{"v":1117194.9486691193,"d":"$1,117,195"}},{"$f":"'Trial 6'!X11","v":{"v":1114682.0866272377,"d":"$1,114,682"}},{"$f":"'Trial 6'!Y11","v":{"v":1112587.6083333096,"d":"$1,112,588"}},{"$f":"'Trial 6'!Z11","v":{"v":1110776.2999032044,"d":"$1,110,776"}},{"$f":"'Trial 6'!AB11","v":{"v":1108113.0338138845,"d":"$1,108,113"}},{"$f":"'Trial 6'!AC11","v":{"v":1106037.2098707922,"d":"$1,106,037"}},{"$f":"'Trial 6'!AD11","v":{"v":1104135.4909036106,"d":"$1,104,135"}},{"$f":"'Trial 6'!AE11","v":{"v":1102509.1858796878,"d":"$1,102,509"}},{"$f":"'Trial 6'!AF11","v":{"v":1100550.7352947125,"d":"$1,100,551"}},{"$f":"'Trial 6'!AG11","v":{"v":1098963.4228783073,"d":"$1,098,963"}},{"$f":"'Trial 6'!AH11","v":{"v":1097017.7603980764,"d":"$1,097,018"}},{"$f":"'Trial 6'!AI11","v":{"v":1095338.5800570277,"d":"$1,095,339"}},{"$f":"'Trial 6'!AJ11","v":{"v":1093211.149857577,"d":"$1,093,211"}},{"$f":"'Trial 6'!AK11","v":{"v":1090889.122422536,"d":"$1,090,889"}},{"$f":"'Trial 6'!AL11","v":{"v":1088958.3768153072,"d":"$1,088,958"}},{"$f":"'Trial 6'!AM11","v":{"v":1087418.4465264168,"d":"$1,087,418"}},{"$f":"'Trial 6'!AO11","v":{"v":1086143.6455089916,"d":"$1,086,144"}},{"$f":"'Trial 6'!AP11","v":{"v":1084354.307770786,"d":"$1,084,354"}},{"$f":"'Trial 6'!AQ11","v":{"v":1082316.232680402,"d":"$1,082,316"}},{"$f":"'Trial 6'!AR11","v":{"v":1080148.7081209596,"d":"$1,080,149"}},{"$f":"'Trial 6'!AS11","v":{"v":1078348.0497767904,"d":"$1,078,348"}},{"$f":"'Trial 6'!AT11","v":{"v":1076347.9030826704,"d":"$1,076,348"}},{"$f":"'Trial 6'!AU11","v":{"v":1074195.4111352419,"d":"$1,074,195"}},{"$f":"'Trial 6'!AV11","v":{"v":1071610.1649196274,"d":"$1,071,610"}},{"$f":"'Trial 6'!AW11","v":{"v":1069939.2554602814,"d":"$1,069,939"}},{"$f":"'Trial 6'!AX11","v":{"v":1067916.5024666952,"d":"$1,067,917"}},{"$f":"'Trial 6'!AY11","v":{"v":1065588.40573215,"d":"$1,065,588"}},{"$f":"'Trial 6'!AZ11","v":{"v":1064067.4998901843,"d":"$1,064,067"}},{"$f":"'Trial 6'!BB11","v":{"v":1062957.7861549773,"d":"$1,062,958"}},{"$f":"'Trial 6'!BC11","v":{"v":1060486.1853247837,"d":"$1,060,486"}},{"$f":"'Trial 6'!BD11","v":{"v":1058372.235307632,"d":"$1,058,372"}},{"$f":"'Trial 6'!BE11","v":{"v":1056432.9817860974,"d":"$1,056,433"}},{"$f":"'Trial 6'!BF11","v":{"v":1054417.3036384627,"d":"$1,054,417"}},{"$f":"'Trial 6'!BG11","v":{"v":1052759.412277351,"d":"$1,052,759"}},{"$f":"'Trial 6'!BH11","v":{"v":1051321.5327223132,"d":"$1,051,322"}},{"$f":"'Trial 6'!BI11","v":{"v":1050133.285404718,"d":"$1,050,133"}},{"$f":"'Trial 6'!BJ11","v":{"v":1048246.6895248871,"d":"$1,048,247"}},{"$f":"'Trial 6'!BK11","v":{"v":1047358.602551199,"d":"$1,047,359"}},{"$f":"'Trial 6'!BL11","v":{"v":1045962.3550471601,"d":"$1,045,962"}},{"$f":"'Trial 6'!BM11","v":{"v":1043738.8753645505,"d":"$1,043,739"}},{"$f":"'Trial 6'!BO11","v":{"v":1042387.9089287806,"d":"$1,042,388"}},{"$f":"'Trial 6'!BP11","v":{"v":1040100.4092042259,"d":"$1,040,100"}},{"$f":"'Trial 6'!BQ11","v":{"v":1038452.6066379568,"d":"$1,038,453"}},{"$f":"'Trial 6'!BR11","v":{"v":1036742.1129448926,"d":"$1,036,742"}},{"$f":"'Trial 6'!BS11","v":{"v":1034876.3197328091,"d":"$1,034,876"}},{"$f":"'Trial 6'!BT11","v":{"v":1032640.6918410913,"d":"$1,032,641"}},{"$f":"'Trial 6'!BU11","v":{"v":1031690.6565094324,"d":"$1,031,691"}},{"$f":"'Trial 6'!BV11","v":{"v":1030310.6692481925,"d":"$1,030,311"}},{"$f":"'Trial 6'!BW11","v":{"v":1029144.481585625,"d":"$1,029,144"}},{"$f":"'Trial 6'!BX11","v":{"v":1028134.4048116654,"d":"$1,028,134"}},{"$f":"'Trial 6'!BY11","v":{"v":1026375.4306435337,"d":"$1,026,375"}},{"$f":"'Trial 6'!BZ11","v":{"v":1025714.8194920465,"d":"$1,025,715"}},{"$f":"'Trial 6'!CB11","v":{"v":1024761.9164918843,"d":"$1,024,762"}},{"$f":"'Trial 6'!CC11","v":{"v":1023462.8624869988,"d":"$1,023,463"}},{"$f":"'Trial 6'!CD11","v":{"v":1022062.4986056545,"d":"$1,022,062"}},{"$f":"'Trial 6'!CE11","v":{"v":1021451.4996903645,"d":"$1,021,451"}},{"$f":"'Trial 6'!CF11","v":{"v":1020002.8308017156,"d":"$1,020,003"}},{"$f":"'Trial 6'!CG11","v":{"v":1018507.8679637653,"d":"$1,018,508"}},{"$f":"'Trial 6'!CH11","v":{"v":1017600.8873264915,"d":"$1,017,601"}},{"$f":"'Trial 6'!CI11","v":{"v":1016676.7340111787,"d":"$1,016,677"}},{"$f":"'Trial 6'!CJ11","v":{"v":1015949.2290823552,"d":"$1,015,949"}},{"$f":"'Trial 6'!CK11","v":{"v":1014727.4135513733,"d":"$1,014,727"}},{"$f":"'Trial 6'!CL11","v":{"v":1013694.7764729528,"d":"$1,013,695"}},{"$f":"'Trial 6'!CM11","v":{"v":1012976.0413904001,"d":"$1,012,976"}},{"$f":"'Trial 6'!CO11","v":{"v":1012139.2653039539,"d":"$1,012,139"}},{"$f":"'Trial 6'!CP11","v":{"v":1011033.5451983748,"d":"$1,011,034"}},{"$f":"'Trial 6'!CQ11","v":{"v":1010333.1861867867,"d":"$1,010,333"}},{"$f":"'Trial 6'!CR11","v":{"v":1009154.5633002217,"d":"$1,009,155"}},{"$f":"'Trial 6'!CS11","v":{"v":1007999.489391805,"d":"$1,007,999"}},{"$f":"'Trial 6'!CT11","v":{"v":1006449.2650904501,"d":"$1,006,449"}},{"$f":"'Trial 6'!CU11","v":{"v":1004971.8097407115,"d":"$1,004,972"}},{"$f":"'Trial 6'!CV11","v":{"v":1004525.98526323,"d":"$1,004,526"}},{"$f":"'Trial 6'!CW11","v":{"v":1002910.5264238195,"d":"$1,002,911"}},{"$f":"'Trial 6'!CX11","v":{"v":1002439.8554965019,"d":"$1,002,440"}},{"$f":"'Trial 6'!CY11","v":{"v":1001442.3308607803,"d":"$1,001,442"}},{"$f":"'Trial 6'!CZ11","v":{"v":999943.125498561,"d":"$999,943"}},{"$f":"'Trial 6'!DB11","v":{"v":999059.3722311663,"d":"$999,059"}},{"$f":"'Trial 6'!DC11","v":{"v":998232.6739415514,"d":"$998,233"}},{"$f":"'Trial 6'!DD11","v":{"v":996427.0264619534,"d":"$996,427"}},{"$f":"'Trial 6'!DE11","v":{"v":995094.1376613119,"d":"$995,094"}},{"$f":"'Trial 6'!DF11","v":{"v":994019.9360803313,"d":"$994,020"}},{"$f":"'Trial 6'!DG11","v":{"v":992337.3833807532,"d":"$992,337"}},{"$f":"'Trial 6'!DH11","v":{"v":991172.1051737603,"d":"$991,172"}},{"$f":"'Trial 6'!DI11","v":{"v":989605.3360140349,"d":"$989,605"}},{"$f":"'Trial 6'!DJ11","v":{"v":988016.3038276768,"d":"$988,016"}},{"$f":"'Trial 6'!DK11","v":{"v":986292.2072300992,"d":"$986,292"}},{"$f":"'Trial 6'!DL11","v":{"v":985368.4253843551,"d":"$985,368"}},{"$f":"'Trial 6'!DM11","v":{"v":984005.5738120675,"d":"$984,006"}},{"$f":"'Trial 6'!DO11","v":{"v":982865.6282918905,"d":"$982,866"}},{"$f":"'Trial 6'!DP11","v":{"v":982383.7003946078,"d":"$982,384"}},{"$f":"'Trial 6'!DQ11","v":{"v":981097.3333098909,"d":"$981,097"}},{"$f":"'Trial 6'!DR11","v":{"v":979866.3090574815,"d":"$979,866"}},{"$f":"'Trial 6'!DS11","v":{"v":978917.3577213904,"d":"$978,917"}},{"$f":"'Trial 6'!DT11","v":{"v":977900.7634373576,"d":"$977,901"}},{"$f":"'Trial 6'!DU11","v":{"v":977240.1044464782,"d":"$977,240"}},{"$f":"'Trial 6'!DV11","v":{"v":976783.2247533444,"d":"$976,783"}},{"$f":"'Trial 6'!DW11","v":{"v":976405.6830540022,"d":"$976,406"}},{"$f":"'Trial 6'!DX11","v":{"v":975573.8714888318,"d":"$975,574"}},{"$f":"'Trial 6'!DY11","v":{"v":975006.2389731389,"d":"$975,006"}},{"$f":"'Trial 6'!DZ11","v":{"v":973996.757450287,"d":"$973,997"}},{"$f":"'Trial 6'!EB11","v":{"v":973049.9933401939,"d":"$973,050"}},{"$f":"'Trial 6'!EC11","v":{"v":972623.0419483681,"d":"$972,623"}},{"$f":"'Trial 6'!ED11","v":{"v":971741.7342524284,"d":"$971,742"}},{"$f":"'Trial 6'!EE11","v":{"v":971062.5442668223,"d":"$971,063"}},{"$f":"'Trial 6'!EF11","v":{"v":970515.5465157914,"d":"$970,516"}},{"$f":"'Trial 6'!EG11","v":{"v":969614.4956570748,"d":"$969,614"}},{"$f":"'Trial 6'!EH11","v":{"v":968916.6472253809,"d":"$968,917"}},{"$f":"'Trial 6'!EI11","v":{"v":968022.7421547641,"d":"$968,023"}},{"$f":"'Trial 6'!EJ11","v":{"v":967324.2111225609,"d":"$967,324"}},{"$f":"'Trial 6'!EK11","v":{"v":967006.521840886,"d":"$967,007"}},{"$f":"'Trial 6'!EL11","v":{"v":966869.8760120285,"d":"$966,870"}},{"$f":"'Trial 6'!EM11","v":{"v":965488.8378175902,"d":"$965,489"}}]
[{"$f":"'Trial 7'!B11","v":{"v":1166666.6666666667,"d":"$1,166,667"}},{"$f":"'Trial 7'!C11","v":{"v":1163444.5721965926,"d":"$1,163,445"}},{"$f":"'Trial 7'!D11","v":{"v":1160996.3842534362,"d":"$1,160,996"}},{"$f":"'Trial 7'!E11","v":{"v":1158462.126078825,"d":"$1,158,462"}},{"$f":"'Trial 7'!F11","v":{"v":1155627.6166477022,"d":"$1,155,628"}},{"$f":"'Trial 7'!G11","v":{"v":1153376.7011394664,"d":"$1,153,377"}},{"$f":"'Trial 7'!H11","v":{"v":1151175.2535257663,"d":"$1,151,175"}},{"$f":"'Trial 7'!I11","v":{"v":1148967.7621014325,"d":"$1,148,968"}},{"$f":"'Trial 7'!J11","v":{"v":1146902.4143997196,"d":"$1,146,902"}},{"$f":"'Trial 7'!K11","v":{"v":1144187.5980149272,"d":"$1,144,188"}},{"$f":"'Trial 7'!L11","v":{"v":1141294.749976172,"d":"$1,141,295"}},{"$f":"'Trial 7'!M11","v":{"v":1138710.3514911933,"d":"$1,138,710"}},{"$f":"'Trial 7'!O11","v":{"v":1136068.0600093727,"d":"$1,136,068"}},{"$f":"'Trial 7'!P11","v":{"v":1133663.2239847379,"d":"$1,133,663"}},{"$f":"'Trial 7'!Q11","v":{"v":1131722.848499137,"d":"$1,131,723"}},{"$f":"'Trial 7'!R11","v":{"v":1129755.1692705222,"d":"$1,129,755"}},{"$f":"'Trial 7'!S11","v":{"v":1127687.1817601582,"d":"$1,127,687"}},{"$f":"'Trial 7'!T11","v":{"v":1125457.5647085607,"d":"$1,125,458"}},{"$f":"'Trial 7'!U11","v":{"v":1123513.8902448737,"d":"$1,123,514"}},{"$f":"'Trial 7'!V11","v":{"v":1121104.2287659207,"d":"$1,121,104"}},{"$f":"'Trial 7'!W11","v":{"v":1119226.1715464997,"d":"$1,119,226"}},{"$f":"'Trial 7'!X11","v":{"v":1117533.3750274365,"d":"$1,117,533"}},{"$f":"'Trial 7'!Y11","v":{"v":1115658.0626456516,"d":"$1,115,658"}},{"$f":"'Trial 7'!Z11","v":{"v":1113433.3308517116,"d":"$1,113,433"}},{"$f":"'Trial 7'!AB11","v":{"v":1110529.6174097254,"d":"$1,110,530"}},{"$f":"'Trial 7'!AC11","v":{"v":1107596.9303575426,"d":"$1,107,597"}},{"$f":"'Trial 7'!AD11","v":{"v":1105423.3938038703,"d":"$1,105,423"}},{"$f":"'Trial 7'!AE11","v":{"v":1103469.9020181457,"d":"$1,103,470"}},{"$f":"'Trial 7'!AF11","v":{"v":1101783.568857695,"d":"$1,101,784"}},{"$f":"'Trial 7'!AG11","v":{"v":1099405.7529736385,"d":"$1,099,406"}},{"$f":"'Trial 7'!AH11","v":{"v":1097609.9662896276,"d":"$1,097,610"}},{"$f":"'Trial 7'!AI11","v":{"v":1095795.8997862348,"d":"$1,095,796"}},{"$f":"'Trial 7'!AJ11","v":{"v":1093257.898535789,"d":"$1,093,258"}},{"$f":"'Trial 7'!AK11","v":{"v":1091117.4150114749,"d":"$1,091,117"}},{"$f":"'Trial 7'!AL11","v":{"v":1089154.6014088222,"d":"$1,089,155"}},{"$f":"'Trial 7'!AM11","v":{"v":1087252.246169636,"d":"$1,087,252"}},{"$f":"'Trial 7'!AO11","v":{"v":1085048.539004567,"d":"$1,085,049"}},{"$f":"'Trial 7'!AP11","v":{"v":1082670.8511277987,"d":"$1,082,671"}},{"$f":"'Trial 7'!AQ11","v":{"v":1080669.209502005,"d":"$1,080,669"}},{"$f":"'Trial 7'!AR11","v":{"v":1079160.7320387992,"d":"$1,079,161"}},{"$f":"'Trial 7'!AS11","v":{"v":1077636.8618453734,"d":"$1,077,637"}},{"$f":"'Trial 7'!AT11","v":{"v":1076478.206069596,"d":"$1,076,478"}},{"$f":"'Trial 7'!AU11","v":{"v":1074322.482874216,"d":"$1,074,322"}},{"$f":"'Trial 7'!AV11","v":{"v":1072427.535700136,"d":"$1,072,428"}},{"$f":"'Trial 7'!AW11","v":{"v":1070535.0467226617,"d":"$1,070,535"}},{"$f":"'Trial 7'!AX11","v":{"v":1068465.926755612,"d":"$1,068,466"}},{"$f":"'Trial 7'!AY11","v":{"v":1066247.7335421373,"d":"$1,066,248"}},{"$f":"'Trial 7'!AZ11","v":{"v":1064158.4456365597,"d":"$1,064,158"}},{"$f":"'Trial 7'!BB11","v":{"v":1061820.4612154427,"d":"$1,061,820"}},{"$f":"'Trial 7'!BC11","v":{"v":1059931.254791589,"d":"$1,059,931"}},{"$f":"'Trial 7'!BD11","v":{"v":1058025.775117963,"d":"$1,058,026"}},{"$f":"'Trial 7'!BE11","v":{"v":1056558.3460832636,"d":"$1,056,558"}},{"$f":"'Trial 7'!BF11","v":{"v":1054766.330565496,"d":"$1,054,766"}},{"$f":"'Trial 7'!BG11","v":{"v":1053324.927186563,"d":"$1,053,325"}},{"$f":"'Trial 7'!BH11","v":{"v":1052184.6355375017,"d":"$1,052,185"}},{"$f":"'Trial 7'!BI11","v":{"v":1050148.7798708775,"d":"$1,050,149"}},{"$f":"'Trial 7'!BJ11","v":{"v":1048529.3381861928,"d":"$1,048,529"}},{"$f":"'Trial 7'!BK11","v":{"v":1046702.2089604652,"d":"$1,046,702"}},{"$f":"'Trial 7'!BL11","v":{"v":1044571.3726382928,"d":"$1,044,571"}},{"$f":"'Trial 7'!BM11","v":{"v":1042815.9805456556,"d":"$1,042,816"}},{"$f":"'Trial 7'!BO11","v":{"v":1041549.9405935007,"d":"$1,041,550"}},{"$f":"'Trial 7'!BP11","v":{"v":1039800.639254323,"d":"$1,039,801"}},{"$f":"'Trial 7'!BQ11","v":{"v":1037614.6605273956,"d":"$1,037,615"}},{"$f":"'Trial 7'!BR11","v":{"v":1036419.6185376282,"d":"$1,036,420"}},{"$f":"'Trial 7'!BS11","v":{"v":1035220.7408909565,"d":"$1,035,221"}},{"$f":"'Trial 7'!BT11","v":{"v":1034268.3253395914,"d":"$1,034,268"}},{"$f":"'Trial 7'!BU11","v":{"v":1033424.0032146208,"d":"$1,033,424"}},{"$f":"'Trial 7'!BV11","v":{"v":1032413.9465641382,"d":"$1,032,414"}},{"$f":"'Trial 7'!BW11","v":{"v":1030608.4220995778,"d":"$1,030,608"}},{"$f":"'Trial 7'!BX11","v":{"v":1029798.2460658138,"d":"$1,029,798"}},{"$f":"'Trial 7'!BY11","v":{"v":1028061.8181033647,"d":"$1,028,062"}},{"$f":"'Trial 7'!BZ11","v":{"v":1026091.7713261165,"d":"$1,026,092"}},{"$f":"'Trial 7'!CB11","v":{"v":1023883.2719492213,"d":"$1,023,883"}},{"$f":"'Trial 7'!CC11","v":{"v":1022483.9447144761,"d":"$1,022,484"}},{"$f":"'Trial 7'!CD11","v":{"v":1021477.9856314182,"d":"$1,021,478"}},{"$f":"'Trial 7'!CE11","v":{"v":1020547.8494232915,"d":"$1,020,548"}},{"$f":"'Trial 7'!CF11","v":{"v":1018415.2518943581,"d":"$1,018,415"}},{"$f":"'Trial 7'!CG11","v":{"v":1016889.6477700584,"d":"$1,016,890"}},{"$f":"'Trial 7'!CH11","v":{"v":1015971.4398205276,"d":"$1,015,971"}},{"$f":"'Trial 7'!CI11","v":{"v":1013847.9176946487,"d":"$1,013,848"}},{"$f":"'Trial 7'!CJ11","v":{"v":1012189.2162891799,"d":"$1,012,189"}},{"$f":"'Trial 7'!CK11","v":{"v":1011811.2911882952,"d":"$1,011,811"}},{"$f":"'Trial 7'!CL11","v":{"v":1011336.7631616689,"d":"$1,011,337"}},{"$f":"'Trial 7'!CM11","v":{"v":1010027.602166671,"d":"$1,010,028"}},{"$f":"'Trial 7'!CO11","v":{"v":1009253.7678362161,"d":"$1,009,254"}},{"$f":"'Trial 7'!CP11","v":{"v":1008847.3530257625,"d":"$1,008,847"}},{"$f":"'Trial 7'!CQ11","v":{"v":1007581.2588221679,"d":"$1,007,581"}},{"$f":"'Trial 7'!CR11","v":{"v":1006636.3441171915,"d":"$1,006,636"}},{"$f":"'Trial 7'!CS11","v":{"v":1005795.3715986436,"d":"$1,005,795"}},{"$f":"'Trial 7'!CT11","v":{"v":1004664.3968075754,"d":"$1,004,664"}},{"$f":"'Trial 7'!CU11","v":{"v":1003451.550256729,"d":"$1,003,452"}},{"$f":"'Trial 7'!CV11","v":{"v":1002725.5580381568,"d":"$1,002,726"}},{"$f":"'Trial 7'!CW11","v":{"v":1001556.6430159066,"d":"$1,001,557"}},{"$f":"'Trial 7'!CX11","v":{"v":1000350.34483196,"d":"$1,000,350"}},{"$f":"'Trial 7'!CY11","v":{"v":998622.580111837,"d":"$998,623"}},{"$f":"'Trial 7'!CZ11","v":{"v":996995.7356190698,"d":"$996,996"}},{"$f":"'Trial 7'!DB11","v":{"v":996116.0976333905,"d":"$996,116"}},{"$f":"'Trial 7'!DC11","v":{"v":995714.0597026853,"d":"$995,714"}},{"$f":"'Trial 7'!DD11","v":{"v":995108.1979874909,"d":"$995,108"}},{"$f":"'Trial 7'!DE11","v":{"v":994098.4256838228,"d":"$994,098"}},{"$f":"'Trial 7'!DF11","v":{"v":993230.9573937763,"d":"$993,231"}},{"$f":"'Trial 7'!DG11","v":{"v":992301.201931751,"d":"$992,301"}},{"$f":"'Trial 7'!DH11","v":{"v":990679.0638007048,"d":"$990,679"}},{"$f":"'Trial 7'!DI11","v":{"v":989015.330060822,"d":"$989,015"}},{"$f":"'Trial 7'!DJ11","v":{"v":988034.4823450734,"d":"$988,034"}},{"$f":"'Trial 7'!DK11","v":{"v":986983.3037780266,"d":"$986,983"}},{"$f":"'Trial 7'!DL11","v":{"v":985345.6155823577,"d":"$985,346"}},{"$f":"'Trial 7'!DM11","v":{"v":984416.5063716624,"d":"$984,417"}},{"$f":"'Trial 7'!DO11","v":{"v":983524.4876886106,"d":"$983,524"}},{"$f":"'Trial 7'!DP11","v":{"v":982185.2929613267,"d":"$982,185"}},{"$f":"'Trial 7'!DQ11","v":{"v":981184.6660616372,"d":"$981,185"}},{"$f":"'Trial 7'!DR11","v":{"v":980166.6223587964,"d":"$980,167"}},{"$f":"'Trial 7'!DS11","v":{"v":978715.625371724,"d":"$978,716"}},{"$f":"'Trial 7'!DT11","v":{"v":977930.4257179147,"d":"$977,930"}},{"$f":"'Trial 7'!DU11","v":{"v":976539.4183850223,"d":"$976,539"}},{"$f":"'Trial 7'!DV11","v":{"v":975376.5798973595,"d":"$975,377"}},{"$f":"'Trial 7'!DW11","v":{"v":974799.5039567511,"d":"$974,800"}},{"$f":"'Trial 7'!DX11","v":{"v":974748.5241101785,"d":"$974,749"}},{"$f":"'Trial 7'!DY11","v":{"v":973201.546603978,"d":"$973,202"}},{"$f":"'Trial 7'!DZ11","v":{"v":972025.4060293146,"d":"$972,025"}},{"$f":"'Trial 7'!EB11","v":{"v":970653.8655642127,"d":"$970,654"}},{"$f":"'Trial 7'!EC11","v":{"v":970297.7092249009,"d":"$970,298"}},{"$f":"'Trial 7'!ED11","v":{"v":968984.3322537321,"d":"$968,984"}},{"$f":"'Trial 7'!EE11","v":{"v":968101.2534956955,"d":"$968,101"}},{"$f":"'Trial 7'!EF11","v":{"v":967406.5323373436,"d":"$967,407"}},{"$f":"'Trial 7'!EG11","v":{"v":966140.0263894803,"d":"$966,140"}},{"$f":"'Trial 7'!EH11","v":{"v":964491.706618669,"d":"$964,492"}},{"$f":"'Trial 7'!EI11","v":{"v":962971.150884847,"d":"$962,971"}},{"$f":"'Trial 7'!EJ11","v":{"v":962391.569043656,"d":"$962,392"}},{"$f":"'Trial 7'!EK11","v":{"v":961889.1210743946,"d":"$961,889"}},{"$f":"'Trial 7'!EL11","v":{"v":961059.7001037309,"d":"$961,060"}},{"$f":"'Trial 7'!EM11","v":{"v":960728.9586375576,"d":"$960,729"}}]
[{"$f":"'Trial 8'!B11","v":{"v":1166666.6666666667,"d":"$1,166,667"}},{"$f":"'Trial 8'!C11","v":{"v":1163179.1096113715,"d":"$1,163,179"}},{"$f":"'Trial 8'!D11","v":{"v":1160226.047223062,"d":"$1,160,226"}},{"$f":"'Trial 8'!E11","v":{"v":1157471.3377678413,"d":"$1,157,471"}},{"$f":"'Trial 8'!F11","v":{"v":1154899.6982408909,"d":"$1,154,900"}},{"$f":"'Trial 8'!G11","v":{"v":1153017.5195986088,"d":"$1,153,018"}},{"$f":"'Trial 8'!H11","v":{"v":1150584.1678040966,"d":"$1,150,584"}},{"$f":"'Trial 8'!I11","v":{"v":1147907.629846032,"d":"$1,147,908"}},{"$f":"'Trial 8'!J11","v":{"v":1145601.4375842249,"d":"$1,145,601"}},{"$f":"'Trial 8'!K11","v":{"v":1142528.0209300457,"d":"$1,142,528"}},{"$f":"'Trial 8'!L11","v":{"v":1140295.994379496,"d":"$1,140,296"}},{"$f":"'Trial 8'!M11","v":{"v":1137232.412583667,"d":"$1,137,232"}},{"$f":"'Trial 8'!O11","v":{"v":1134820.1970436776,"d":"$1,134,820"}},{"$f":"'Trial 8'!P11","v":{"v":1133028.6023300393,"d":"$1,133,029"}},{"$f":"'Trial 8'!Q11","v":{"v":1130207.2353822463,"d":"$1,130,207"}},{"$f":"'Trial 8'!R11","v":{"v":1127083.815320348,"d":"$1,127,084"}},{"$f":"'Trial 8'!S11","v":{"v":1124879.804163283,"d":"$1,124,880"}},{"$f":"'Trial 8'!T11","v":{"v":1122544.2402454824,"d":"$1,122,544"}},{"$f":"'Trial 8'!U11","v":{"v":1120897.398346635,"d":"$1,120,897"}},{"$f":"'Trial 8'!V11","v":{"v":1118523.4032046588,"d":"$1,118,523"}},{"$f":"'Trial 8'!W11","v":{"v":1116288.343185264,"d":"$1,116,288"}},{"$f":"'Trial 8'!X11","v":{"v":1114640.443619509,"d":"$1,114,640"}},{"$f":"'Trial 8'!Y11","v":{"v":1112020.4814874122,"d":"$1,112,020"}},{"$f":"'Trial 8'!Z11","v":{"v":1109238.6618132978,"d":"$1,109,239"}},{"$f":"'Trial 8'!AB11","v":{"v":1106742.6078931873,"d":"$1,106,743"}},{"$f":"'Trial 8'!AC11","v":{"v":1104579.3623495793,"d":"$1,104,579"}},{"$f":"'Trial 8'!AD11","v":{"v":1102479.9798759443,"d":"$1,102,480"}},{"$f":"'Trial 8'!AE11","v":{"v":1100088.0174792472,"d":"$1,100,088"}},{"$f":"'Trial 8'!AF11","v":{"v":1097894.8097499057,"d":"$1,097,895"}},{"$f":"'Trial 8'!AG11","v":{"v":1095401.8768295352,"d":"$1,095,402"}},{"$f":"'Trial 8'!AH11","v":{"v":1093057.7840572093,"d":"$1,093,058"}},{"$f":"'Trial 8'!AI11","v":{"v":1091300.1499545486,"d":"$1,091,300"}},{"$f":"'Trial 8'!AJ11","v":{"v":1089494.7039463595,"d":"$1,089,495"}},{"$f":"'Trial 8'!AK11","v":{"v":1087276.0954478097,"d":"$1,087,276"}},{"$f":"'Trial 8'!AL11","v":{"v":1085326.8699855283,"d":"$1,085,327"}},{"$f":"'Trial 8'!AM11","v":{"v":1083927.72760076,"d":"$1,083,928"}},{"$f":"'Trial 8'!AO11","v":{"v":1082494.7742449127,"d":"$1,082,495"}},{"$f":"'Trial 8'!AP11","v":{"v":1081016.9789210677,"d":"$1,081,017"}},{"$f":"'Trial 8'!AQ11","v":{"v":1079167.3529172547,"d":"$1,079,167"}},{"$f":"'Trial 8'!AR11","v":{"v":1077315.2344494357,"d":"$1,077,315"}},{"$f":"'Trial 8'!AS11","v":{"v":1074986.0829173743,"d":"$1,074,986"}},{"$f":"'Trial 8'!AT11","v":{"v":1072692.060199365,"d":"$1,072,692"}},{"$f":"'Trial 8'!AU11","v":{"v":1070728.893535289,"d":"$1,070,729"}},{"$f":"'Trial 8'!AV11","v":{"v":1069175.4769684249,"d":"$1,069,175"}},{"$f":"'Trial 8'!AW11","v":{"v":1067439.8253536902,"d":"$1,067,440"}},{"$f":"'Trial 8'!AX11","v":{"v":1065770.61492997,"d":"$1,065,771"}},{"$f":"'Trial 8'!AY11","v":{"v":1064060.370891499,"d":"$1,064,060"}},{"$f":"'Trial 8'!AZ11","v":{"v":1062540.6861135028,"d":"$1,062,541"}},{"$f":"'Trial 8'!BB11","v":{"v":1060950.0237934547,"d":"$1,060,950"}},{"$f":"'Trial 8'!BC11","v":{"v":1059055.700920835,"d":"$1,059,056"}},{"$f":"'Trial 8'!BD11","v":{"v":1057809.3666871095,"d":"$1,057,809"}},{"$f":"'Trial 8'!BE11","v":{"v":1056709.915966049,"d":"$1,056,710"}},{"$f":"'Trial 8'!BF11","v":{"v":1055244.9986059233,"d":"$1,055,245"}},{"$f":"'Trial 8'!BG11","v":{"v":1053768.1487812814,"d":"$1,053,768"}},{"$f":"'Trial 8'!BH11","v":{"v":1052629.1837517235,"d":"$1,052,629"}},{"$f":"'Trial 8'!BI11","v":{"v":1050691.3179339317,"d":"$1,050,691"}},{"$f":"'Trial 8'!BJ11","v":{"v":1049095.2311601727,"d":"$1,049,095"}},{"$f":"'Trial 8'!BK11","v":{"v":1047789.6862192517,"d":"$1,047,790"}},{"$f":"'Trial 8'!BL11","v":{"v":1046461.593741841,"d":"$1,046,462"}},{"$f":"'Trial 8'!BM11","v":{"v":1045168.2801390047,"d":"$1,045,168"}},{"$f":"'Trial 8'!BO11","v":{"v":1043537.6210251189,"d":"$1,043,538"}},{"$f":"'Trial 8'!BP11","v":{"v":1042328.7476110859,"d":"$1,042,329"}},{"$f":"'Trial 8'!BQ11","v":{"v":1041391.88766211,"d":"$1,041,392"}},{"$f":"'Trial 8'!BR11","v":{"v":1040286.9487038238,"d":"$1,040,287"}},{"$f":"'Trial 8'!BS11","v":{"v":1039568.2637006624,"d":"$1,039,568"}},{"$f":"'Trial 8'!BT11","v":{"v":1038338.6955989695,"d":"$1,038,339"}},{"$f":"'Trial 8'!BU11","v":{"v":1036891.6793653991,"d":"$1,036,892"}},{"$f":"'Trial 8'!BV11","v":{"v":1035642.9512502353,"d":"$1,035,643"}},{"$f":"'Trial 8'!BW11","v":{"v":1034789.2707302794,"d":"$1,034,789"}},{"$f":"'Trial 8'!BX11","v":{"v":1033737.0743675604,"d":"$1,033,737"}},{"$f":"'Trial 8'!BY11","v":{"v":1032682.2327973027,"d":"$1,032,682"}},{"$f":"'Trial 8'!BZ11","v":{"v":1031139.5694130019,"d":"$1,031,140"}},{"$f":"'Trial 8'!CB11","v":{"v":1029153.4044429692,"d":"$1,029,153"}},{"$f":"'Trial 8'!CC11","v":{"v":1027579.0850096409,"d":"$1,027,579"}},{"$f":"'Trial 8'!CD11","v":{"v":1026236.5546402083,"d":"$1,026,237"}},{"$f":"'Trial 8'!CE11","v":{"v":1024416.8984668762,"d":"$1,024,417"}},{"$f":"'Trial 8'!CF11","v":{"v":1023194.7365996169,"d":"$1,023,195"}},{"$f":"'Trial 8'!CG11","v":{"v":1021808.1513587601,"d":"$1,021,808"}},{"$f":"'Trial 8'!CH11","v":{"v":1021293.1658475221,"d":"$1,021,293"}},{"$f":"'Trial 8'!CI11","v":{"v":1020025.4720847209,"d":"$1,020,025"}},{"$f":"'Trial 8'!CJ11","v":{"v":1018434.0774625788,"d":"$1,018,434"}},{"$f":"'Trial 8'!CK11","v":{"v":1017412.5570402791,"d":"$1,017,413"}},{"$f":"'Trial 8'!CL11","v":{"v":1016540.2115641761,"d":"$1,016,540"}},{"$f":"'Trial 8'!CM11","v":{"v":1014829.1704633686,"d":"$1,014,829"}},{"$f":"'Trial 8'!CO11","v":{"v":1014149.4819129468,"d":"$1,014,149"}},{"$f":"'Trial 8'!CP11","v":{"v":1013496.520012107,"d":"$1,013,497"}},{"$f":"'Trial 8'!CQ11","v":{"v":1012374.8402134473,"d":"$1,012,375"}},{"$f":"'Trial 8'!CR11","v":{"v":1011441.6774433582,"d":"$1,011,442"}},{"$f":"'Trial 8'!CS11","v":{"v":1010475.6737484368,"d":"$1,010,476"}},{"$f":"'Trial 8'!CT11","v":{"v":1008393.1762552352,"d":"$1,008,393"}},{"$f":"'Trial 8'!CU11","v":{"v":1007147.3819742778,"d":"$1,007,147"}},{"$f":"'Trial 8'!CV11","v":{"v":1006445.8836382811,"d":"$1,006,446"}},{"$f":"'Trial 8'!CW11","v":{"v":1005272.6163901433,"d":"$1,005,273"}},{"$f":"'Trial 8'!CX11","v":{"v":1003312.7403646945,"d":"$1,003,313"}},{"$f":"'Trial 8'!CY11","v":{"v":1002693.9475837728,"d":"$1,002,694"}},{"$f":"'Trial 8'!CZ11","v":{"v":1002383.0619207737,"d":"$1,002,383"}},{"$f":"'Trial 8'!DB11","v":{"v":1000896.1001339784,"d":"$1,000,896"}},{"$f":"'Trial 8'!DC11","v":{"v":1000590.6910654951,"d":"$1,000,591"}},{"$f":"'Trial 8'!DD11","v":{"v":999184.6150342573,"d":"$999,185"}},{"$f":"'Trial 8'!DE11","v":{"v":997593.7333570686,"d":"$997,594"}},{"$f":"'Trial 8'!DF11","v":{"v":996350.1431195257,"d":"$996,350"}},{"$f":"'Trial 8'!DG11","v":{"v":995300.5738764073,"d":"$995,301"}},{"$f":"'Trial 8'!DH11","v":{"v":993952.7333623783,"d":"$993,953"}},{"$f":"'Trial 8'!DI11","v":{"v":992818.672324459,"d":"$992,819"}},{"$f":"'Trial 8'!DJ11","v":{"v":991248.3423722853,"d":"$991,248"}},{"$f":"'Trial 8'!DK11","v":{"v":990961.2307404974,"d":"$990,961"}},{"$f":"'Trial 8'!DL11","v":{"v":989719.0730508846,"d":"$989,719"}},{"$f":"'Trial 8'!DM11","v":{"v":989353.5455922545,"d":"$989,354"}},{"$f":"'Trial 8'!DO11","v":{"v":988204.181282415,"d":"$988,204"}},{"$f":"'Trial 8'!DP11","v":{"v":986537.529469844,"d":"$986,538"}},{"$f":"'Trial 8'!DQ11","v":{"v":985046.2398137246,"d":"$985,046"}},{"$f":"'Trial 8'!DR11","v":{"v":984772.5983898336,"d":"$984,773"}},{"$f":"'Trial 8'!DS11","v":{"v":984364.3181439256,"d":"$984,364"}},{"$f":"'Trial 8'!DT11","v":{"v":983182.4900740128,"d":"$983,182"}},{"$f":"'Trial 8'!DU11","v":{"v":982785.8680145394,"d":"$982,786"}},{"$f":"'Trial 8'!DV11","v":{"v":982319.3478761478,"d":"$982,319"}},{"$f":"'Trial 8'!DW11","v":{"v":981415.0584500234,"d":"$981,415"}},{"$f":"'Trial 8'!DX11","v":{"v":980708.8611129904,"d":"$980,709"}},{"$f":"'Trial 8'!DY11","v":{"v":979144.5780114473,"d":"$979,145"}},{"$f":"'Trial 8'!DZ11","v":{"v":978367.0098958918,"d":"$978,367"}},{"$f":"'Trial 8'!EB11","v":{"v":977426.1450624047,"d":"$977,426"}},{"$f":"'Trial 8'!EC11","v":{"v":975824.8752059101,"d":"$975,825"}},{"$f":"'Trial 8'!ED11","v":{"v":974285.5435645378,"d":"$974,286"}},{"$f":"'Trial 8'!EE11","v":{"v":973628.5557232285,"d":"$973,629"}},{"$f":"'Trial 8'!EF11","v":{"v":972471.5969792141,"d":"$972,472"}},{"$f":"'Trial 8'!EG11","v":{"v":971244.1743229716,"d":"$971,244"}},{"$f":"'Trial 8'!EH11","v":{"v":970397.8469339538,"d":"$970,398"}},{"$f":"'Trial 8'!EI11","v":{"v":970066.2438854262,"d":"$970,066"}},{"$f":"'Trial 8'!EJ11","v":{"v":968813.6558566556,"d":"$968,814"}},{"$f":"'Trial 8'!EK11","v":{"v":967997.220345214,"d":"$967,997"}},{"$f":"'Trial 8'!EL11","v":{"v":966471.7324911722,"d":"$966,472"}},{"$f":"'Trial 8'!EM11","v":{"v":965265.9625981406,"d":"$965,266"}}]
[{"$f":"'(Other Computations)'!B127","v":{"v":9333333.333333334,"d":"$9,333,333"}},{"$f":"'(Other Computations)'!C127","v":{"v":9307779.72365826,"d":"$9,307,780"}},{"$f":"'(Other Computations)'!D127","v":{"v":9284178.958264971,"d":"$9,284,179"}},{"$f":"'(Other Computations)'!E127","v":{"v":9262996.009665187,"d":"$9,262,996"}},{"$f":"'(Other Computations)'!F127","v":{"v":9242933.312456228,"d":"$9,242,933"}},{"$f":"'(Other Computations)'!G127","v":{"v":9224234.095573347,"d":"$9,224,234"}},{"$f":"'(Other Computations)'!H127","v":{"v":9204252.902548715,"d":"$9,204,253"}},{"$f":"'(Other Computations)'!I127","v":{"v":9182474.948117942,"d":"$9,182,475"}},{"$f":"'(Other Computations)'!J127","v":{"v":9161910.243321804,"d":"$9,161,910"}},{"$f":"'(Other Computations)'!K127","v":{"v":9141746.523374772,"d":"$9,141,747"}},{"$f":"'(Other Computations)'!L127","v":{"v":9121826.201271273,"d":"$9,121,826"}},{"$f":"'(Other Computations)'!M127","v":{"v":9101902.842831962,"d":"$9,101,903"}},{"$f":"'(Other Computations)'!O127","v":{"v":9081535.276188754,"d":"$9,081,535"}},{"$f":"'(Other Computations)'!P127","v":{"v":9062682.15720614,"d":"$9,062,682"}},{"$f":"'(Other Computations)'!Q127","v":{"v":9043674.40753677,"d":"$9,043,674"}},{"$f":"'(Other Computations)'!R127","v":{"v":9025379.953220064,"d":"$9,025,380"}},{"$f":"'(Other Computations)'!S127","v":{"v":9007801.711673884,"d":"$9,007,802"}},{"$f":"'(Other Computations)'!T127","v":{"v":8986109.361703768,"d":"$8,986,109"}},{"$f":"'(Other Computations)'!U127","v":{"v":8968333.85309303,"d":"$8,968,334"}},{"$f":"'(Other Computations)'!V127","v":{"v":8948181.71823781,"d":"$8,948,182"}},{"$f":"'(Other Computations)'!W127","v":{"v":8928566.090914879,"d":"$8,928,566"}},{"$f":"'(Other Computations)'!X127","v":{"v":8912203.241692398,"d":"$8,912,203"}},{"$f":"'(Other Computations)'!Y127","v":{"v":8893596.233598651,"d":"$8,893,596"}},{"$f":"'(Other Computations)'!Z127","v":{"v":8875414.14815163,"d":"$8,875,414"}},{"$f":"'(Other Computations)'!AB127","v":{"v":8854996.622615855,"d":"$8,854,997"}},{"$f":"'(Other Computations)'!AC127","v":{"v":8837624.828967439,"d":"$8,837,625"}},{"$f":"'(Other Computations)'!AD127","v":{"v":8821531.097996252,"d":"$8,821,531"}},{"$f":"'(Other Computations)'!AE127","v":{"v":8804817.78482595,"d":"$8,804,818"}},{"$f":"'(Other Computations)'!AF127","v":{"v":8787932.388044104,"d":"$8,787,932"}},{"$f":"'(Other Computations)'!AG127","v":{"v":8769428.915769031,"d":"$8,769,429"}},{"$f":"'(Other Computations)'!AH127","v":{"v":8753640.79966417,"d":"$8,753,641"}},{"$f":"'(Other Computations)'!AI127","v":{"v":8739056.126866326,"d":"$8,739,056"}},{"$f":"'(Other Computations)'!AJ127","v":{"v":8720943.184678547,"d":"$8,720,943"}},{"$f":"'(Other Computations)'!AK127","v":{"v":8705255.039724981,"d":"$8,705,255"}},{"$f":"'(Other Computations)'!AL127","v":{"v":8690237.911196496,"d":"$8,690,238"}},{"$f":"'(Other Computations)'!AM127","v":{"v":8675785.401099816,"d":"$8,675,785"}},{"$f":"'(Other Computations)'!AO127","v":{"v":8659146.114521226,"d":"$8,659,146"}},{"$f":"'(Other Computations)'!AP127","v":{"v":8643943.004875164,"d":"$8,643,943"}},{"$f":"'(Other Computations)'!AQ127","v":{"v":8630312.441562898,"d":"$8,630,312"}},{"$f":"'(Other Computations)'!AR127","v":{"v":8614236.09561502,"d":"$8,614,236"}},{"$f":"'(Other Computations)'!AS127","v":{"v":8599224.442879232,"d":"$8,599,224"}},{"$f":"'(Other Computations)'!AT127","v":{"v":8585847.362800613,"d":"$8,585,847"}},{"$f":"'(Other Computations)'!AU127","v":{"v":8571152.382895295,"d":"$8,571,152"}},{"$f":"'(Other Computations)'!AV127","v":{"v":8556192.78254258,"d":"$8,556,193"}},{"$f":"'(Other Computations)'!AW127","v":{"v":8542082.951996863,"d":"$8,542,083"}},{"$f":"'(Other Computations)'!AX127","v":{"v":8526511.91916142,"d":"$8,526,512"}},{"$f":"'(Other Computations)'!AY127","v":{"v":8512051.595801396,"d":"$8,512,052"}},{"$f":"'(Other Computations)'!AZ127","v":{"v":8498427.856569055,"d":"$8,498,428"}},{"$f":"'(Other Computations)'!BB127","v":{"v":8482903.396403197,"d":"$8,482,903"}},{"$f":"'(Other Computations)'!BC127","v":{"v":8467795.420526937,"d":"$8,467,795"}},{"$f":"'(Other Computations)'!BD127","v":{"v":8453940.180443548,"d":"$8,453,940"}},{"$f":"'(Other Computations)'!BE127","v":{"v":8440699.003645115,"d":"$8,440,699"}},{"$f":"'(Other Computations)'!BF127","v":{"v":8427146.77137207,"d":"$8,427,147"}},{"$f":"'(Other Computations)'!BG127","v":{"v":8414684.57457966,"d":"$8,414,685"}},{"$f":"'(Other Computations)'!BH127","v":{"v":8402344.661574237,"d":"$8,402,345"}},{"$f":"'(Other Computations)'!BI127","v":{"v":8387907.725402268,"d":"$8,387,908"}},{"$f":"'(Other Computations)'!BJ127","v":{"v":8374531.012014035,"d":"$8,374,531"}},{"$f":"'(Other Computations)'!BK127","v":{"v":8362826.218563914,"d":"$8,362,826"}},{"$f":"'(Other Computations)'!BL127","v":{"v":8349996.262986579,"d":"$8,349,996"}},{"$f":"'(Other Computations)'!BM127","v":{"v":8338568.813604653,"d":"$8,338,569"}},{"$f":"'(Other Computations)'!BO127","v":{"v":8326183.1580297155,"d":"$8,326,183"}},{"$f":"'(Other Computations)'!BP127","v":{"v":8313799.615016478,"d":"$8,313,800"}},{"$f":"'(Other Computations)'!BQ127","v":{"v":8302245.097160296,"d":"$8,302,245"}},{"$f":"'(Other Computations)'!BR127","v":{"v":8291976.773976522,"d":"$8,291,977"}},{"$f":"'(Other Computations)'!BS127","v":{"v":8281425.8788796095,"d":"$8,281,426"}},{"$f":"'(Other Computations)'!BT127","v":{"v":8269097.003617725,"d":"$8,269,097"}},{"$f":"'(Other Computations)'!BU127","v":{"v":8259728.853054268,"d":"$8,259,729"}},{"$f":"'(Other Computations)'!BV127","v":{"v":8247438.461104264,"d":"$8,247,438"}},{"$f":"'(Other Computations)'!BW127","v":{"v":8235990.063499947,"d":"$8,235,990"}},{"$f":"'(Other Computations)'!BX127","v":{"v":8226509.508224142,"d":"$8,226,510"}},{"$f":"'(Other Computations)'!BY127","v":{"v":8214429.506816781,"d":"$8,214,430"}},{"$f":"'(Other Computations)'!BZ127","v":{"v":8204865.1260004975,"d":"$8,204,865"}},{"$f":"'(Other Computations)'!CB127","v":{"v":8194192.709682144,"d":"$8,194,193"}},{"$f":"'(Other Computations)'!CC127","v":{"v":8183262.413835465,"d":"$8,183,262"}},{"$f":"'(Other Computations)'!CD127","v":{"v":8172189.676640199,"d":"$8,172,190"}},{"$f":"'(Other Computations)'!CE127","v":{"v":8162513.823689457,"d":"$8,162,514"}},{"$f":"'(Other Computations)'!CF127","v":{"v":8150957.92107247,"d":"$8,150,958"}},{"$f":"'(Other Computations)'!CG127","v":{"v":8140524.697916103,"d":"$8,140,525"}},{"$f":"'(Other Computations)'!CH127","v":{"v":8133442.419630838,"d":"$8,133,442"}},{"$f":"'(Other Computations)'!CI127","v":{"v":8123772.364550908,"d":"$8,123,772"}},{"$f":"'(Other Computations)'!CJ127","v":{"v":8114831.142308609,"d":"$8,114,831"}},{"$f":"'(Other Computations)'!CK127","v":{"v":8105506.898195852,"d":"$8,105,507"}},{"$f":"'(Other Computations)'!CL127","v":{"v":8097781.076562076,"d":"$8,097,781"}},{"$f":"'(Other Computations)'!CM127","v":{"v":8087787.861712871,"d":"$8,087,788"}},{"$f":"'(Other Computations)'!CO127","v":{"v":8079956.897082321,"d":"$8,079,957"}},{"$f":"'(Other Computations)'!CP127","v":{"v":8071240.019271367,"d":"$8,071,240"}},{"$f":"'(Other Computations)'!CQ127","v":{"v":8062681.647253795,"d":"$8,062,682"}},{"$f":"'(Other Computations)'!CR127","v":{"v":8054027.940072877,"d":"$8,054,028"}},{"$f":"'(Other Computations)'!CS127","v":{"v":8044808.342819635,"d":"$8,044,808"}},{"$f":"'(Other Computations)'!CT127","v":{"v":8033200.607873547,"d":"$8,033,201"}},{"$f":"'(Other Computations)'!CU127","v":{"v":8022854.871185027,"d":"$8,022,855"}},{"$f":"'(Other Computations)'!CV127","v":{"v":8016408.647181692,"d":"$8,016,409"}},{"$f":"'(Other Computations)'!CW127","v":{"v":8006966.103669353,"d":"$8,006,966"}},{"$f":"'(Other Computations)'!CX127","v":{"v":7997827.187015437,"d":"$7,997,827"}},{"$f":"'(Other Computations)'!CY127","v":{"v":7988294.809669449,"d":"$7,988,295"}},{"$f":"'(Other Computations)'!CZ127","v":{"v":7980330.652937962,"d":"$7,980,331"}},{"$f":"'(Other Computations)'!DB127","v":{"v":7971133.915740669,"d":"$7,971,134"}},{"$f":"'(Other Computations)'!DC127","v":{"v":7963562.771361092,"d":"$7,963,563"}},{"$f":"'(Other Computations)'!DD127","v":{"v":7953651.125463269,"d":"$7,953,651"}},{"$f":"'(Other Computations)'!DE127","v":{"v":7944616.4595346525,"d":"$7,944,616"}},{"$f":"'(Other Computations)'!DF127","v":{"v":7936982.864304463,"d":"$7,936,983"}},{"$f":"'(Other Computations)'!DG127","v":{"v":7928596.425488781,"d":"$7,928,596"}},{"$f":"'(Other Computations)'!DH127","v":{"v":7919921.002329056,"d":"$7,919,921"}},{"$f":"'(Other Computations)'!DI127","v":{"v":7911075.850976986,"d":"$7,911,076"}},{"$f":"'(Other Computations)'!DJ127","v":{"v":7901943.799757134,"d":"$7,901,944"}},{"$f":"'(Other Computations)'!DK127","v":{"v":7893855.165606055,"d":"$7,893,855"}},{"$f":"'(Other Computations)'!DL127","v":{"v":7885572.050691946,"d":"$7,885,572"}},{"$f":"'(Other Computations)'!DM127","v":{"v":7876544.7070362065,"d":"$7,876,545"}},{"$f":"'(Other Computations)'!DO127","v":{"v":7867934.818400503,"d":"$7,867,935"}},{"$f":"'(Other Computations)'!DP127","v":{"v":7861216.246964052,"d":"$7,861,216"}},{"$f":"'(Other Computations)'!DQ127","v":{"v":7852776.160640392,"d":"$7,852,776"}},{"$f":"'(Other Computations)'!DR127","v":{"v":7846726.444248974,"d":"$7,846,726"}},{"$f":"'(Other Computations)'!DS127","v":{"v":7839340.878412326,"d":"$7,839,341"}},{"$f":"'(Other Computations)'!DT127","v":{"v":7831826.892780362,"d":"$7,831,827"}},{"$f":"'(Other Computations)'!DU127","v":{"v":7825815.438525557,"d":"$7,825,815"}},{"$f":"'(Other Computations)'!DV127","v":{"v":7818893.696812587,"d":"$7,818,894"}},{"$f":"'(Other Computations)'!DW127","v":{"v":7812445.749693982,"d":"$7,812,446"}},{"$f":"'(Other Computations)'!DX127","v":{"v":7805421.174757347,"d":"$7,805,421"}},{"$f":"'(Other Computations)'!DY127","v":{"v":7798216.260197585,"d":"$7,798,216"}},{"$f":"'(Other Computations)'!DZ127","v":{"v":7791195.005256309,"d":"$7,791,195"}},{"$f":"'(Other Computations)'!EB127","v":{"v":7782331.066382385,"d":"$7,782,331"}},{"$f":"'(Other Computations)'!EC127","v":{"v":7775937.84019436,"d":"$7,775,938"}},{"$f":"'(Other Computations)'!ED127","v":{"v":7767382.873940636,"d":"$7,767,383"}},{"$f":"'(Other Computations)'!EE127","v":{"v":7759569.188087211,"d":"$7,759,569"}},{"$f":"'(Other Computations)'!EF127","v":{"v":7752836.73413444,"d":"$7,752,837"}},{"$f":"'(Other Computations)'!EG127","v":{"v":7746350.302144866,"d":"$7,746,350"}},{"$f":"'(Other Computations)'!EH127","v":{"v":7738384.866763532,"d":"$7,738,385"}},{"$f":"'(Other Computations)'!EI127","v":{"v":7730948.399658093,"d":"$7,730,948"}},{"$f":"'(Other Computations)'!EJ127","v":{"v":7721506.467941037,"d":"$7,721,506"}},{"$f":"'(Other Computations)'!EK127","v":{"v":7714237.154180629,"d":"$7,714,237"}},{"$f":"'(Other Computations)'!EL127","v":{"v":7708248.086445484,"d":"$7,708,248"}},{"$f":"'(Other Computations)'!EM127","v":{"v":7700798.910591886,"d":"$7,700,799"}}]
[{"$f":"'(Intermediate Computations)'!B71","v":"Jan 2010"},{"$f":"'(Intermediate Computations)'!C71","v":"Feb 2010"},{"$f":"'(Intermediate Computations)'!D71","v":"Mar 2010"},{"$f":"'(Intermediate Computations)'!E71","v":"Apr 2010"},{"$f":"'(Intermediate Computations)'!F71","v":"May 2010"},{"$f":"'(Intermediate Computations)'!G71","v":"Jun 2010"},{"$f":"'(Intermediate Computations)'!H71","v":"Jul 2010"},{"$f":"'(Intermediate Computations)'!I71","v":"Aug 2010"},{"$f":"'(Intermediate Computations)'!J71","v":"Sep 2010"},{"$f":"'(Intermediate Computations)'!K71","v":"Oct 2010"},{"$f":"'(Intermediate Computations)'!L71","v":"Nov 2010"},{"$f":"'(Intermediate Computations)'!M71","v":"Dec 2010"},{"$f":"'(Intermediate Computations)'!O71","v":"Jan 2011"},{"$f":"'(Intermediate Computations)'!P71","v":"Feb 2011"},{"$f":"'(Intermediate Computations)'!Q71","v":"Mar 2011"},{"$f":"'(Intermediate Computations)'!R71","v":"Apr 2011"},{"$f":"'(Intermediate Computations)'!S71","v":"May 2011"},{"$f":"'(Intermediate Computations)'!T71","v":"Jun 2011"},{"$f":"'(Intermediate Computations)'!U71","v":"Jul 2011"},{"$f":"'(Intermediate Computations)'!V71","v":"Aug 2011"},{"$f":"'(Intermediate Computations)'!W71","v":"Sep 2011"},{"$f":"'(Intermediate Computations)'!X71","v":"Oct 2011"},{"$f":"'(Intermediate Computations)'!Y71","v":"Nov 2011"},{"$f":"'(Intermediate Computations)'!Z71","v":"Dec 2011"},{"$f":"'(Intermediate Computations)'!AB71","v":"Jan 2012"},{"$f":"'(Intermediate Computations)'!AC71","v":"Feb 2012"},{"$f":"'(Intermediate Computations)'!AD71","v":"Mar 2012"},{"$f":"'(Intermediate Computations)'!AE71","v":"Apr 2012"},{"$f":"'(Intermediate Computations)'!AF71","v":"May 2012"},{"$f":"'(Intermediate Computations)'!AG71","v":"Jun 2012"},{"$f":"'(Intermediate Computations)'!AH71","v":"Jul 2012"},{"$f":"'(Intermediate Computations)'!AI71","v":"Aug 2012"},{"$f":"'(Intermediate Computations)'!AJ71","v":"Sep 2012"},{"$f":"'(Intermediate Computations)'!AK71","v":"Oct 2012"},{"$f":"'(Intermediate Computations)'!AL71","v":"Nov 2012"},{"$f":"'(Intermediate Computations)'!AM71","v":"Dec 2012"},{"$f":"'(Intermediate Computations)'!AO71","v":"Jan 2013"},{"$f":"'(Intermediate Computations)'!AP71","v":"Feb 2013"},{"$f":"'(Intermediate Computations)'!AQ71","v":"Mar 2013"},{"$f":"'(Intermediate Computations)'!AR71","v":"Apr 2013"},{"$f":"'(Intermediate Computations)'!AS71","v":"May 2013"},{"$f":"'(Intermediate Computations)'!AT71","v":"Jun 2013"},{"$f":"'(Intermediate Computations)'!AU71","v":"Jul 2013"},{"$f":"'(Intermediate Computations)'!AV71","v":"Aug 2013"},{"$f":"'(Intermediate Computations)'!AW71","v":"Sep 2013"},{"$f":"'(Intermediate Computations)'!AX71","v":"Oct 2013"},{"$f":"'(Intermediate Computations)'!AY71","v":"Nov 2013"},{"$f":"'(Intermediate Computations)'!AZ71","v":"Dec 2013"},{"$f":"'(Intermediate Computations)'!BB71","v":"Jan 2014"},{"$f":"'(Intermediate Computations)'!BC71","v":"Feb 2014"},{"$f":"'(Intermediate Computations)'!BD71","v":"Mar 2014"},{"$f":"'(Intermediate Computations)'!BE71","v":"Apr 2014"},{"$f":"'(Intermediate Computations)'!BF71","v":"May 2014"},{"$f":"'(Intermediate Computations)'!BG71","v":"Jun 2014"},{"$f":"'(Intermediate Computations)'!BH71","v":"Jul 2014"},{"$f":"'(Intermediate Computations)'!BI71","v":"Aug 2014"},{"$f":"'(Intermediate Computations)'!BJ71","v":"Sep 2014"},{"$f":"'(Intermediate Computations)'!BK71","v":"Oct 2014"},{"$f":"'(Intermediate Computations)'!BL71","v":"Nov 2014"},{"$f":"'(Intermediate Computations)'!BM71","v":"Dec 2014"},{"$f":"'(Intermediate Computations)'!BO71","v":"Jan 2015"},{"$f":"'(Intermediate Computations)'!BP71","v":"Feb 2015"},{"$f":"'(Intermediate Computations)'!BQ71","v":"Mar 2015"},{"$f":"'(Intermediate Computations)'!BR71","v":"Apr 2015"},{"$f":"'(Intermediate Computations)'!BS71","v":"May 2015"},{"$f":"'(Intermediate Computations)'!BT71","v":"Jun 2015"},{"$f":"'(Intermediate Computations)'!BU71","v":"Jul 2015"},{"$f":"'(Intermediate Computations)'!BV71","v":"Aug 2015"},{"$f":"'(Intermediate Computations)'!BW71","v":"Sep 2015"},{"$f":"'(Intermediate Computations)'!BX71","v":"Oct 2015"},{"$f":"'(Intermediate Computations)'!BY71","v":"Nov 2015"},{"$f":"'(Intermediate Computations)'!BZ71","v":"Dec 2015"},{"$f":"'(Intermediate Computations)'!CB71","v":"Jan 2016"},{"$f":"'(Intermediate Computations)'!CC71","v":"Feb 2016"},{"$f":"'(Intermediate Computations)'!CD71","v":"Mar 2016"},{"$f":"'(Intermediate Computations)'!CE71","v":"Apr 2016"},{"$f":"'(Intermediate Computations)'!CF71","v":"May 2016"},{"$f":"'(Intermediate Computations)'!CG71","v":"Jun 2016"},{"$f":"'(Intermediate Computations)'!CH71","v":"Jul 2016"},{"$f":"'(Intermediate Computations)'!CI71","v":"Aug 2016"},{"$f":"'(Intermediate Computations)'!CJ71","v":"Sep 2016"},{"$f":"'(Intermediate Computations)'!CK71","v":"Oct 2016"},{"$f":"'(Intermediate Computations)'!CL71","v":"Nov 2016"},{"$f":"'(Intermediate Computations)'!CM71","v":"Dec 2016"},{"$f":"'(Intermediate Computations)'!CO71","v":"Jan 2017"},{"$f":"'(Intermediate Computations)'!CP71","v":"Feb 2017"},{"$f":"'(Intermediate Computations)'!CQ71","v":"Mar 2017"},{"$f":"'(Intermediate Computations)'!CR71","v":"Apr 2017"},{"$f":"'(Intermediate Computations)'!CS71","v":"May 2017"},{"$f":"'(Intermediate Computations)'!CT71","v":"Jun 2017"},{"$f":"'(Intermediate Computations)'!CU71","v":"Jul 2017"},{"$f":"'(Intermediate Computations)'!CV71","v":"Aug 2017"},{"$f":"'(Intermediate Computations)'!CW71","v":"Sep 2017"},{"$f":"'(Intermediate Computations)'!CX71","v":"Oct 2017"},{"$f":"'(Intermediate Computations)'!CY71","v":"Nov 2017"},{"$f":"'(Intermediate Computations)'!CZ71","v":"Dec 2017"},{"$f":"'(Intermediate Computations)'!DB71","v":"Jan 2018"},{"$f":"'(Intermediate Computations)'!DC71","v":"Feb 2018"},{"$f":"'(Intermediate Computations)'!DD71","v":"Mar 2018"},{"$f":"'(Intermediate Computations)'!DE71","v":"Apr 2018"},{"$f":"'(Intermediate Computations)'!DF71","v":"May 2018"},{"$f":"'(Intermediate Computations)'!DG71","v":"Jun 2018"},{"$f":"'(Intermediate Computations)'!DH71","v":"Jul 2018"},{"$f":"'(Intermediate Computations)'!DI71","v":"Aug 2018"},{"$f":"'(Intermediate Computations)'!DJ71","v":"Sep 2018"},{"$f":"'(Intermediate Computations)'!DK71","v":"Oct 2018"},{"$f":"'(Intermediate Computations)'!DL71","v":"Nov 2018"},{"$f":"'(Intermediate Computations)'!DM71","v":"Dec 2018"},{"$f":"'(Intermediate Computations)'!DO71","v":"Jan 2019"},{"$f":"'(Intermediate Computations)'!DP71","v":"Feb 2019"},{"$f":"'(Intermediate Computations)'!DQ71","v":"Mar 2019"},{"$f":"'(Intermediate Computations)'!DR71","v":"Apr 2019"},{"$f":"'(Intermediate Computations)'!DS71","v":"May 2019"},{"$f":"'(Intermediate Computations)'!DT71","v":"Jun 2019"},{"$f":"'(Intermediate Computations)'!DU71","v":"Jul 2019"},{"$f":"'(Intermediate Computations)'!DV71","v":"Aug 2019"},{"$f":"'(Intermediate Computations)'!DW71","v":"Sep 2019"},{"$f":"'(Intermediate Computations)'!DX71","v":"Oct 2019"},{"$f":"'(Intermediate Computations)'!DY71","v":"Nov 2019"},{"$f":"'(Intermediate Computations)'!DZ71","v":"Dec 2019"},{"$f":"'(Intermediate Computations)'!EB71","v":"Jan 2020"},{"$f":"'(Intermediate Computations)'!EC71","v":"Feb 2020"},{"$f":"'(Intermediate Computations)'!ED71","v":"Mar 2020"},{"$f":"'(Intermediate Computations)'!EE71","v":"Apr 2020"},{"$f":"'(Intermediate Computations)'!EF71","v":"May 2020"},{"$f":"'(Intermediate Computations)'!EG71","v":"Jun 2020"},{"$f":"'(Intermediate Computations)'!EH71","v":"Jul 2020"},{"$f":"'(Intermediate Computations)'!EI71","v":"Aug 2020"},{"$f":"'(Intermediate Computations)'!EJ71","v":"Sep 2020"},{"$f":"'(Intermediate Computations)'!EK71","v":"Oct 2020"},{"$f":"'(Intermediate Computations)'!EL71","v":"Nov 2020"},{"$f":"'(Intermediate Computations)'!EM71","v":"Dec 2020"}]
[{"$f":"'(Intermediate Computations)'!B68","v":"2010-01-01"},{"$f":"'(Intermediate Computations)'!C68","v":"2010-02-01"},{"$f":"'(Intermediate Computations)'!D68","v":"2010-03-01"},{"$f":"'(Intermediate Computations)'!E68","v":"2010-04-01"},{"$f":"'(Intermediate Computations)'!F68","v":"2010-05-01"},{"$f":"'(Intermediate Computations)'!G68","v":"2010-06-01"},{"$f":"'(Intermediate Computations)'!H68","v":"2010-07-01"},{"$f":"'(Intermediate Computations)'!I68","v":"2010-08-01"},{"$f":"'(Intermediate Computations)'!J68","v":"2010-09-01"},{"$f":"'(Intermediate Computations)'!K68","v":"2010-10-01"},{"$f":"'(Intermediate Computations)'!L68","v":"2010-11-01"},{"$f":"'(Intermediate Computations)'!M68","v":"2010-12-01"},{"$f":"'(Intermediate Computations)'!O68","v":"2011-01-01"},{"$f":"'(Intermediate Computations)'!P68","v":"2011-02-01"},{"$f":"'(Intermediate Computations)'!Q68","v":"2011-03-01"},{"$f":"'(Intermediate Computations)'!R68","v":"2011-04-01"},{"$f":"'(Intermediate Computations)'!S68","v":"2011-05-01"},{"$f":"'(Intermediate Computations)'!T68","v":"2011-06-01"},{"$f":"'(Intermediate Computations)'!U68","v":"2011-07-01"},{"$f":"'(Intermediate Computations)'!V68","v":"2011-08-01"},{"$f":"'(Intermediate Computations)'!W68","v":"2011-09-01"},{"$f":"'(Intermediate Computations)'!X68","v":"2011-10-01"},{"$f":"'(Intermediate Computations)'!Y68","v":"2011-11-01"},{"$f":"'(Intermediate Computations)'!Z68","v":"2011-12-01"},{"$f":"'(Intermediate Computations)'!AB68","v":"2012-01-01"},{"$f":"'(Intermediate Computations)'!AC68","v":"2012-02-01"},{"$f":"'(Intermediate Computations)'!AD68","v":"2012-03-01"},{"$f":"'(Intermediate Computations)'!AE68","v":"2012-04-01"},{"$f":"'(Intermediate Computations)'!AF68","v":"2012-05-01"},{"$f":"'(Intermediate Computations)'!AG68","v":"2012-06-01"},{"$f":"'(Intermediate Computations)'!AH68","v":"2012-07-01"},{"$f":"'(Intermediate Computations)'!AI68","v":"2012-08-01"},{"$f":"'(Intermediate Computations)'!AJ68","v":"2012-09-01"},{"$f":"'(Intermediate Computations)'!AK68","v":"2012-10-01"},{"$f":"'(Intermediate Computations)'!AL68","v":"2012-11-01"},{"$f":"'(Intermediate Computations)'!AM68","v":"2012-12-01"},{"$f":"'(Intermediate Computations)'!AO68","v":"2013-01-01"},{"$f":"'(Intermediate Computations)'!AP68","v":"2013-02-01"},{"$f":"'(Intermediate Computations)'!AQ68","v":"2013-03-01"},{"$f":"'(Intermediate Computations)'!AR68","v":"2013-04-01"},{"$f":"'(Intermediate Computations)'!AS68","v":"2013-05-01"},{"$f":"'(Intermediate Computations)'!AT68","v":"2013-06-01"},{"$f":"'(Intermediate Computations)'!AU68","v":"2013-07-01"},{"$f":"'(Intermediate Computations)'!AV68","v":"2013-08-01"},{"$f":"'(Intermediate Computations)'!AW68","v":"2013-09-01"},{"$f":"'(Intermediate Computations)'!AX68","v":"2013-10-01"},{"$f":"'(Intermediate Computations)'!AY68","v":"2013-11-01"},{"$f":"'(Intermediate Computations)'!AZ68","v":"2013-12-01"},{"$f":"'(Intermediate Computations)'!BB68","v":"2014-01-01"},{"$f":"'(Intermediate Computations)'!BC68","v":"2014-02-01"},{"$f":"'(Intermediate Computations)'!BD68","v":"2014-03-01"},{"$f":"'(Intermediate Computations)'!BE68","v":"2014-04-01"},{"$f":"'(Intermediate Computations)'!BF68","v":"2014-05-01"},{"$f":"'(Intermediate Computations)'!BG68","v":"2014-06-01"},{"$f":"'(Intermediate Computations)'!BH68","v":"2014-07-01"},{"$f":"'(Intermediate Computations)'!BI68","v":"2014-08-01"},{"$f":"'(Intermediate Computations)'!BJ68","v":"2014-09-01"},{"$f":"'(Intermediate Computations)'!BK68","v":"2014-10-01"},{"$f":"'(Intermediate Computations)'!BL68","v":"2014-11-01"},{"$f":"'(Intermediate Computations)'!BM68","v":"2014-12-01"},{"$f":"'(Intermediate Computations)'!BO68","v":"2015-01-01"},{"$f":"'(Intermediate Computations)'!BP68","v":"2015-02-01"},{"$f":"'(Intermediate Computations)'!BQ68","v":"2015-03-01"},{"$f":"'(Intermediate Computations)'!BR68","v":"2015-04-01"},{"$f":"'(Intermediate Computations)'!BS68","v":"2015-05-01"},{"$f":"'(Intermediate Computations)'!BT68","v":"2015-06-01"},{"$f":"'(Intermediate Computations)'!BU68","v":"2015-07-01"},{"$f":"'(Intermediate Computations)'!BV68","v":"2015-08-01"},{"$f":"'(Intermediate Computations)'!BW68","v":"2015-09-01"},{"$f":"'(Intermediate Computations)'!BX68","v":"2015-10-01"},{"$f":"'(Intermediate Computations)'!BY68","v":"2015-11-01"},{"$f":"'(Intermediate Computations)'!BZ68","v":"2015-12-01"},{"$f":"'(Intermediate Computations)'!CB68","v":"2016-01-01"},{"$f":"'(Intermediate Computations)'!CC68","v":"2016-02-01"},{"$f":"'(Intermediate Computations)'!CD68","v":"2016-03-01"},{"$f":"'(Intermediate Computations)'!CE68","v":"2016-04-01"},{"$f":"'(Intermediate Computations)'!CF68","v":"2016-05-01"},{"$f":"'(Intermediate Computations)'!CG68","v":"2016-06-01"},{"$f":"'(Intermediate Computations)'!CH68","v":"2016-07-01"},{"$f":"'(Intermediate Computations)'!CI68","v":"2016-08-01"},{"$f":"'(Intermediate Computations)'!CJ68","v":"2016-09-01"},{"$f":"'(Intermediate Computations)'!CK68","v":"2016-10-01"},{"$f":"'(Intermediate Computations)'!CL68","v":"2016-11-01"},{"$f":"'(Intermediate Computations)'!CM68","v":"2016-12-01"},{"$f":"'(Intermediate Computations)'!CO68","v":"2017-01-01"},{"$f":"'(Intermediate Computations)'!CP68","v":"2017-02-01"},{"$f":"'(Intermediate Computations)'!CQ68","v":"2017-03-01"},{"$f":"'(Intermediate Computations)'!CR68","v":"2017-04-01"},{"$f":"'(Intermediate Computations)'!CS68","v":"2017-05-01"},{"$f":"'(Intermediate Computations)'!CT68","v":"2017-06-01"},{"$f":"'(Intermediate Computations)'!CU68","v":"2017-07-01"},{"$f":"'(Intermediate Computations)'!CV68","v":"2017-08-01"},{"$f":"'(Intermediate Computations)'!CW68","v":"2017-09-01"},{"$f":"'(Intermediate Computations)'!CX68","v":"2017-10-01"},{"$f":"'(Intermediate Computations)'!CY68","v":"2017-11-01"},{"$f":"'(Intermediate Computations)'!CZ68","v":"2017-12-01"},{"$f":"'(Intermediate Computations)'!DB68","v":"2018-01-01"},{"$f":"'(Intermediate Computations)'!DC68","v":"2018-02-01"},{"$f":"'(Intermediate Computations)'!DD68","v":"2018-03-01"},{"$f":"'(Intermediate Computations)'!DE68","v":"2018-04-01"},{"$f":"'(Intermediate Computations)'!DF68","v":"2018-05-01"},{"$f":"'(Intermediate Computations)'!DG68","v":"2018-06-01"},{"$f":"'(Intermediate Computations)'!DH68","v":"2018-07-01"},{"$f":"'(Intermediate Computations)'!DI68","v":"2018-08-01"},{"$f":"'(Intermediate Computations)'!DJ68","v":"2018-09-01"},{"$f":"'(Intermediate Computations)'!DK68","v":"2018-10-01"},{"$f":"'(Intermediate Computations)'!DL68","v":"2018-11-01"},{"$f":"'(Intermediate Computations)'!DM68","v":"2018-12-01"},{"$f":"'(Intermediate Computations)'!DO68","v":"2019-01-01"},{"$f":"'(Intermediate Computations)'!DP68","v":"2019-02-01"},{"$f":"'(Intermediate Computations)'!DQ68","v":"2019-03-01"},{"$f":"'(Intermediate Computations)'!DR68","v":"2019-04-01"},{"$f":"'(Intermediate Computations)'!DS68","v":"2019-05-01"},{"$f":"'(Intermediate Computations)'!DT68","v":"2019-06-01"},{"$f":"'(Intermediate Computations)'!DU68","v":"2019-07-01"},{"$f":"'(Intermediate Computations)'!DV68","v":"2019-08-01"},{"$f":"'(Intermediate Computations)'!DW68","v":"2019-09-01"},{"$f":"'(Intermediate Computations)'!DX68","v":"2019-10-01"},{"$f":"'(Intermediate Computations)'!DY68","v":"2019-11-01"},{"$f":"'(Intermediate Computations)'!DZ68","v":"2019-12-01"},{"$f":"'(Intermediate Computations)'!EB68","v":"2020-01-01"},{"$f":"'(Intermediate Computations)'!EC68","v":"2020-02-01"},{"$f":"'(Intermediate Computations)'!ED68","v":"2020-03-01"},{"$f":"'(Intermediate Computations)'!EE68","v":"2020-04-01"},{"$f":"'(Intermediate Computations)'!EF68","v":"2020-05-01"},{"$f":"'(Intermediate Computations)'!EG68","v":"2020-06-01"},{"$f":"'(Intermediate Computations)'!EH68","v":"2020-07-01"},{"$f":"'(Intermediate Computations)'!EI68","v":"2020-08-01"},{"$f":"'(Intermediate Computations)'!EJ68","v":"2020-09-01"},{"$f":"'(Intermediate Computations)'!EK68","v":"2020-10-01"},{"$f":"'(Intermediate Computations)'!EL68","v":"2020-11-01"},{"$f":"'(Intermediate Computations)'!EM68","v":"2020-12-01"}]
[{"$f":"'Trial 1'!B19","v":{"v":34645298.42192645,"d":"$34,645,298"}},{"$f":"'Trial 1'!C19","v":{"v":34645298.42192645,"d":"$34,645,298"}},{"$f":"'Trial 1'!D19","v":{"v":34644865.849718675,"d":"$34,644,866"}},{"$f":"'Trial 1'!E19","v":{"v":34644128.320763394,"d":"$34,644,128"}},{"$f":"'Trial 1'!F19","v":{"v":34643061.911736734,"d":"$34,643,062"}},{"$f":"'Trial 1'!G19","v":{"v":34641637.09234987,"d":"$34,641,637"}},{"$f":"'Trial 1'!H19","v":{"v":34639958.89404549,"d":"$34,639,959"}},{"$f":"'Trial 1'!I19","v":{"v":34637974.803368226,"d":"$34,637,975"}},{"$f":"'Trial 1'!J19","v":{"v":34635634.876478724,"d":"$34,635,635"}},{"$f":"'Trial 1'!K19","v":{"v":34632968.269905455,"d":"$34,632,968"}},{"$f":"'Trial 1'!L19","v":{"v":34630017.886411265,"d":"$34,630,018"}},{"$f":"'Trial 1'!M19","v":{"v":34626873.845023,"d":"$34,626,874"}},{"$f":"'Trial 1'!O19","v":{"v":34623499.9376133,"d":"$34,623,500"}},{"$f":"'Trial 1'!P19","v":{"v":34619872.1386801,"d":"$34,619,872"}},{"$f":"'Trial 1'!Q19","v":{"v":34615934.16145604,"d":"$34,615,934"}},{"$f":"'Trial 1'!R19","v":{"v":34611729.17829118,"d":"$34,611,729"}},{"$f":"'Trial 1'!S19","v":{"v":34607140.043177396,"d":"$34,607,140"}},{"$f":"'Trial 1'!T19","v":{"v":34602330.65069124,"d":"$34,602,331"}},{"$f":"'Trial 1'!U19","v":{"v":34597170.266843595,"d":"$34,597,170"}},{"$f":"'Trial 1'!V19","v":{"v":34591707.781499624,"d":"$34,591,708"}},{"$f":"'Trial 1'!W19","v":{"v":34585922.9467949,"d":"$34,585,923"}},{"$f":"'Trial 1'!X19","v":{"v":34579822.804570556,"d":"$34,579,823"}},{"$f":"'Trial 1'!Y19","v":{"v":34573477.75377596,"d":"$34,573,478"}},{"$f":"'Trial 1'!Z19","v":{"v":34566911.62612825,"d":"$34,566,912"}},{"$f":"'Trial 1'!AB19","v":{"v":34560222.38364415,"d":"$34,560,222"}},{"$f":"'Trial 1'!AC19","v":{"v":34553288.16196663,"d":"$34,553,288"}},{"$f":"'Trial 1'!AD19","v":{"v":34546166.46493668,"d":"$34,546,166"}},{"$f":"'Trial 1'!AE19","v":{"v":34538970.90969978,"d":"$34,538,971"}},{"$f":"'Trial 1'!AF19","v":{"v":34531551.00037324,"d":"$34,531,551"}},{"$f":"'Trial 1'!AG19","v":{"v":34523889.14038574,"d":"$34,523,889"}},{"$f":"'Trial 1'!AH19","v":{"v":34516050.02346483,"d":"$34,516,050"}},{"$f":"'Trial 1'!AI19","v":{"v":34508031.67883035,"d":"$34,508,032"}},{"$f":"'Trial 1'!AJ19","v":{"v":34499878.3244191,"d":"$34,499,878"}},{"$f":"'Trial 1'!AK19","v":{"v":34491537.83899039,"d":"$34,491,538"}},{"$f":"'Trial 1'!AL19","v":{"v":34483134.3520214,"d":"$34,483,134"}},{"$f":"'Trial 1'!AM19","v":{"v":34474595.37606332,"d":"$34,474,595"}},{"$f":"'Trial 1'!AO19","v":{"v":34465886.40415917,"d":"$34,465,886"}},{"$f":"'Trial 1'!AP19","v":{"v":34456969.79243559,"d":"$34,456,970"}},{"$f":"'Trial 1'!AQ19","v":{"v":34447851.86008202,"d":"$34,447,852"}},{"$f":"'Trial 1'!AR19","v":{"v":34438714.45998028,"d":"$34,438,714"}},{"$f":"'Trial 1'!AS19","v":{"v":34429368.90475603,"d":"$34,429,369"}},{"$f":"'Trial 1'!AT19","v":{"v":34419951.25888646,"d":"$34,419,951"}},{"$f":"'Trial 1'!AU19","v":{"v":34410420.011213064,"d":"$34,410,420"}},{"$f":"'Trial 1'!AV19","v":{"v":34400817.211123355,"d":"$34,400,817"}},{"$f":"'Trial 1'!AW19","v":{"v":34391085.666554816,"d":"$34,391,086"}},{"$f":"'Trial 1'!AX19","v":{"v":34381193.317811236,"d":"$34,381,193"}},{"$f":"'Trial 1'!AY19","v":{"v":34371184.75303354,"d":"$34,371,185"}},{"$f":"'Trial 1'!AZ19","v":{"v":34361146.61357753,"d":"$34,361,147"}},{"$f":"'Trial 1'!BB19","v":{"v":34351028.11328618,"d":"$34,351,028"}},{"$f":"'Trial 1'!BC19","v":{"v":34340736.53263246,"d":"$34,340,737"}},{"$f":"'Trial 1'!BD19","v":{"v":34330270.62984689,"d":"$34,330,271"}},{"$f":"'Trial 1'!BE19","v":{"v":34319720.35903598,"d":"$34,319,720"}},{"$f":"'Trial 1'!BF19","v":{"v":34309043.26406145,"d":"$34,309,043"}},{"$f":"'Trial 1'!BG19","v":{"v":34298337.39432053,"d":"$34,298,337"}},{"$f":"'Trial 1'!BH19","v":{"v":34287566.11064961,"d":"$34,287,566"}},{"$f":"'Trial 1'!BI19","v":{"v":34276727.75335745,"d":"$34,276,728"}},{"$f":"'Trial 1'!BJ19","v":{"v":34265839.6834066,"d":"$34,265,840"}},{"$f":"'Trial 1'!BK19","v":{"v":34254848.50089695,"d":"$34,254,849"}},{"$f":"'Trial 1'!BL19","v":{"v":34243754.06064523,"d":"$34,243,754"}},{"$f":"'Trial 1'!BM19","v":{"v":34232495.45165257,"d":"$34,232,495"}},{"$f":"'Trial 1'!BO19","v":{"v":34221182.03087545,"d":"$34,221,182"}},{"$f":"'Trial 1'!BP19","v":{"v":34209737.08868378,"d":"$34,209,737"}},{"$f":"'Trial 1'!BQ19","v":{"v":34198255.77672469,"d":"$34,198,256"}},{"$f":"'Trial 1'!BR19","v":{"v":34186667.99650359,"d":"$34,186,668"}},{"$f":"'Trial 1'!BS19","v":{"v":34175115.04229462,"d":"$34,175,115"}},{"$f":"'Trial 1'!BT19","v":{"v":34163537.503908806,"d":"$34,163,538"}},{"$f":"'Trial 1'!BU19","v":{"v":34151901.5917997,"d":"$34,151,902"}},{"$f":"'Trial 1'!BV19","v":{"v":34140114.429524854,"d":"$34,140,114"}},{"$f":"'Trial 1'!BW19","v":{"v":34128205.3668572,"d":"$34,128,205"}},{"$f":"'Trial 1'!BX19","v":{"v":34116219.05780982,"d":"$34,116,219"}},{"$f":"'Trial 1'!BY19","v":{"v":34104235.76523741,"d":"$34,104,236"}},{"$f":"'Trial 1'!BZ19","v":{"v":34092134.738789566,"d":"$34,092,135"}},{"$f":"'Trial 1'!CB19","v":{"v":34079897.36232508,"d":"$34,079,897"}},{"$f":"'Trial 1'!CC19","v":{"v":34067675.29181145,"d":"$34,067,675"}},{"$f":"'Trial 1'!CD19","v":{"v":34055390.80667331,"d":"$34,055,391"}},{"$f":"'Trial 1'!CE19","v":{"v":34042979.23667118,"d":"$34,042,979"}},{"$f":"'Trial 1'!CF19","v":{"v":34030597.993712656,"d":"$34,030,598"}},{"$f":"'Trial 1'!CG19","v":{"v":34018111.635458164,"d":"$34,018,112"}},{"$f":"'Trial 1'!CH19","v":{"v":34005578.7655572,"d":"$34,005,579"}},{"$f":"'Trial 1'!CI19","v":{"v":33993028.95291159,"d":"$33,993,029"}},{"$f":"'Trial 1'!CJ19","v":{"v":33980432.54416315,"d":"$33,980,433"}},{"$f":"'Trial 1'!CK19","v":{"v":33967812.19060751,"d":"$33,967,812"}},{"$f":"'Trial 1'!CL19","v":{"v":33955155.69142768,"d":"$33,955,156"}},{"$f":"'Trial 1'!CM19","v":{"v":33942370.79927291,"d":"$33,942,371"}},{"$f":"'Trial 1'!CO19","v":{"v":33929605.49720584,"d":"$33,929,605"}},{"$f":"'Trial 1'!CP19","v":{"v":33916807.41959252,"d":"$33,916,807"}},{"$f":"'Trial 1'!CQ19","v":{"v":33903920.908229575,"d":"$33,903,921"}},{"$f":"'Trial 1'!CR19","v":{"v":33891056.60891193,"d":"$33,891,057"}},{"$f":"'Trial 1'!CS19","v":{"v":33878050.05359827,"d":"$33,878,050"}},{"$f":"'Trial 1'!CT19","v":{"v":33865008.66648693,"d":"$33,865,009"}},{"$f":"'Trial 1'!CU19","v":{"v":33851845.46172051,"d":"$33,851,845"}},{"$f":"'Trial 1'!CV19","v":{"v":33838676.806705035,"d":"$33,838,677"}},{"$f":"'Trial 1'!CW19","v":{"v":33825410.98022643,"d":"$33,825,411"}},{"$f":"'Trial 1'!CX19","v":{"v":33812138.99994165,"d":"$33,812,139"}},{"$f":"'Trial 1'!CY19","v":{"v":33798758.835908726,"d":"$33,798,759"}},{"$f":"'Trial 1'!CZ19","v":{"v":33785428.039105706,"d":"$33,785,428"}},{"$f":"'Trial 1'!DB19","v":{"v":33772159.93171189,"d":"$33,772,160"}},{"$f":"'Trial 1'!DC19","v":{"v":33758780.83501526,"d":"$33,758,781"}},{"$f":"'Trial 1'!DD19","v":{"v":33745388.76154327,"d":"$33,745,389"}},{"$f":"'Trial 1'!DE19","v":{"v":33732020.042529896,"d":"$33,732,020"}},{"$f":"'Trial 1'!DF19","v":{"v":33718636.040710755,"d":"$33,718,636"}},{"$f":"'Trial 1'!DG19","v":{"v":33705284.690916985,"d":"$33,705,285"}},{"$f":"'Trial 1'!DH19","v":{"v":33691960.82348939,"d":"$33,691,961"}},{"$f":"'Trial 1'!DI19","v":{"v":33678591.83784045,"d":"$33,678,592"}},{"$f":"'Trial 1'!DJ19","v":{"v":33665234.54186431,"d":"$33,665,235"}},{"$f":"'Trial 1'!DK19","v":{"v":33651802.82951019,"d":"$33,651,803"}},{"$f":"'Trial 1'!DL19","v":{"v":33638386.34697967,"d":"$33,638,386"}},{"$f":"'Trial 1'!DM19","v":{"v":33625042.80415409,"d":"$33,625,043"}},{"$f":"'Trial 1'!DO19","v":{"v":33611610.6240359,"d":"$33,611,611"}},{"$f":"'Trial 1'!DP19","v":{"v":33598176.476769604,"d":"$33,598,176"}},{"$f":"'Trial 1'!DQ19","v":{"v":33584813.03604329,"d":"$33,584,813"}},{"$f":"'Trial 1'!DR19","v":{"v":33571403.53551629,"d":"$33,571,404"}},{"$f":"'Trial 1'!DS19","v":{"v":33558003.97634796,"d":"$33,558,004"}},{"$f":"'Trial 1'!DT19","v":{"v":33544599.789004844,"d":"$33,544,600"}},{"$f":"'Trial 1'!DU19","v":{"v":33531161.51602903,"d":"$33,531,162"}},{"$f":"'Trial 1'!DV19","v":{"v":33517685.718886483,"d":"$33,517,686"}},{"$f":"'Trial 1'!DW19","v":{"v":33504220.53080562,"d":"$33,504,221"}},{"$f":"'Trial 1'!DX19","v":{"v":33490671.987536002,"d":"$33,490,672"}},{"$f":"'Trial 1'!DY19","v":{"v":33477063.622331347,"d":"$33,477,064"}},{"$f":"'Trial 1'!DZ19","v":{"v":33463508.254111268,"d":"$33,463,508"}},{"$f":"'Trial 1'!EB19","v":{"v":33449984.249369193,"d":"$33,449,984"}},{"$f":"'Trial 1'!EC19","v":{"v":33436402.990942005,"d":"$33,436,403"}},{"$f":"'Trial 1'!ED19","v":{"v":33422834.3438852,"d":"$33,422,834"}},{"$f":"'Trial 1'!EE19","v":{"v":33409249.18805819,"d":"$33,409,249"}},{"$f":"'Trial 1'!EF19","v":{"v":33395649.07477508,"d":"$33,395,649"}},{"$f":"'Trial 1'!EG19","v":{"v":33381952.235713966,"d":"$33,381,952"}},{"$f":"'Trial 1'!EH19","v":{"v":33368236.548001178,"d":"$33,368,237"}},{"$f":"'Trial 1'!EI19","v":{"v":33354489.263697155,"d":"$33,354,489"}},{"$f":"'Trial 1'!EJ19","v":{"v":33340723.078065388,"d":"$33,340,723"}},{"$f":"'Trial 1'!EK19","v":{"v":33326891.994589314,"d":"$33,326,892"}},{"$f":"'Trial 1'!EL19","v":{"v":33313069.720182396,"d":"$33,313,070"}},{"$f":"'Trial 1'!EM19","v":{"v":33299226.01425095,"d":"$33,299,226"}}]
[{"$f":"'Trial 2'!B19","v":{"v":34645298.42192645,"d":"$34,645,298"}},{"$f":"'Trial 2'!C19","v":{"v":34645298.42192645,"d":"$34,645,298"}},{"$f":"'Trial 2'!D19","v":{"v":34644886.820402496,"d":"$34,644,887"}},{"$f":"'Trial 2'!E19","v":{"v":34644020.030042544,"d":"$34,644,020"}},{"$f":"'Trial 2'!F19","v":{"v":34642805.89127631,"d":"$34,642,806"}},{"$f":"'Trial 2'!G19","v":{"v":34641354.68723803,"d":"$34,641,355"}},{"$f":"'Trial 2'!H19","v":{"v":34639588.93161335,"d":"$34,639,589"}},{"$f":"'Trial 2'!I19","v":{"v":34637450.04700224,"d":"$34,637,450"}},{"$f":"'Trial 2'!J19","v":{"v":34634983.715943605,"d":"$34,634,984"}},{"$f":"'Trial 2'!K19","v":{"v":34632128.89891918,"d":"$34,632,129"}},{"$f":"'Trial 2'!L19","v":{"v":34628993.76063592,"d":"$34,628,994"}},{"$f":"'Trial 2'!M19","v":{"v":34625569.78998806,"d":"$34,625,570"}},{"$f":"'Trial 2'!O19","v":{"v":34621784.581354134,"d":"$34,621,785"}},{"$f":"'Trial 2'!P19","v":{"v":34617776.414774194,"d":"$34,617,776"}},{"$f":"'Trial 2'!Q19","v":{"v":34613455.5530472,"d":"$34,613,456"}},{"$f":"'Trial 2'!R19","v":{"v":34608923.39410404,"d":"$34,608,923"}},{"$f":"'Trial 2'!S19","v":{"v":34604193.26571331,"d":"$34,604,193"}},{"$f":"'Trial 2'!T19","v":{"v":34599192.89583213,"d":"$34,599,193"}},{"$f":"'Trial 2'!U19","v":{"v":34593931.41070463,"d":"$34,593,931"}},{"$f":"'Trial 2'!V19","v":{"v":34588415.63684191,"d":"$34,588,416"}},{"$f":"'Trial 2'!W19","v":{"v":34582591.96672742,"d":"$34,582,592"}},{"$f":"'Trial 2'!X19","v":{"v":34576493.666003615,"d":"$34,576,494"}},{"$f":"'Trial 2'!Y19","v":{"v":34570145.29412748,"d":"$34,570,145"}},{"$f":"'Trial 2'!Z19","v":{"v":34563540.691963054,"d":"$34,563,541"}},{"$f":"'Trial 2'!AB19","v":{"v":34556616.29792496,"d":"$34,556,616"}},{"$f":"'Trial 2'!AC19","v":{"v":34549528.883943304,"d":"$34,549,529"}},{"$f":"'Trial 2'!AD19","v":{"v":34542249.76569961,"d":"$34,542,250"}},{"$f":"'Trial 2'!AE19","v":{"v":34534789.999342754,"d":"$34,534,790"}},{"$f":"'Trial 2'!AF19","v":{"v":34527149.23985665,"d":"$34,527,149"}},{"$f":"'Trial 2'!AG19","v":{"v":34519446.16008093,"d":"$34,519,446"}},{"$f":"'Trial 2'!AH19","v":{"v":34511569.15395943,"d":"$34,511,569"}},{"$f":"'Trial 2'!AI19","v":{"v":34503495.13381653,"d":"$34,503,495"}},{"$f":"'Trial 2'!AJ19","v":{"v":34495289.14438239,"d":"$34,495,289"}},{"$f":"'Trial 2'!AK19","v":{"v":34486833.08827815,"d":"$34,486,833"}},{"$f":"'Trial 2'!AL19","v":{"v":34478230.04746967,"d":"$34,478,230"}},{"$f":"'Trial 2'!AM19","v":{"v":34469521.292374276,"d":"$34,469,521"}},{"$f":"'Trial 2'!AO19","v":{"v":34460756.844286494,"d":"$34,460,757"}},{"$f":"'Trial 2'!AP19","v":{"v":34451812.83528471,"d":"$34,451,813"}},{"$f":"'Trial 2'!AQ19","v":{"v":34442716.15267817,"d":"$34,442,716"}},{"$f":"'Trial 2'!AR19","v":{"v":34433516.924457125,"d":"$34,433,517"}},{"$f":"'Trial 2'!AS19","v":{"v":34424213.07670647,"d":"$34,424,213"}},{"$f":"'Trial 2'!AT19","v":{"v":34414747.76763271,"d":"$34,414,748"}},{"$f":"'Trial 2'!AU19","v":{"v":34405186.217432104,"d":"$34,405,186"}},{"$f":"'Trial 2'!AV19","v":{"v":34395529.45139277,"d":"$34,395,529"}},{"$f":"'Trial 2'!AW19","v":{"v":34385763.49405858,"d":"$34,385,763"}},{"$f":"'Trial 2'!AX19","v":{"v":34375898.384580515,"d":"$34,375,898"}},{"$f":"'Trial 2'!AY19","v":{"v":34365811.85186926,"d":"$34,365,812"}},{"$f":"'Trial 2'!AZ19","v":{"v":34355598.216532916,"d":"$34,355,598"}},{"$f":"'Trial 2'!BB19","v":{"v":34345351.50262282,"d":"$34,345,352"}},{"$f":"'Trial 2'!BC19","v":{"v":34334987.74362981,"d":"$34,334,988"}},{"$f":"'Trial 2'!BD19","v":{"v":34324478.2977263,"d":"$34,324,478"}},{"$f":"'Trial 2'!BE19","v":{"v":34313878.11033662,"d":"$34,313,878"}},{"$f":"'Trial 2'!BF19","v":{"v":34303257.20452141,"d":"$34,303,257"}},{"$f":"'Trial 2'!BG19","v":{"v":34292533.02221125,"d":"$34,292,533"}},{"$f":"'Trial 2'!BH19","v":{"v":34281772.615798876,"d":"$34,281,773"}},{"$f":"'Trial 2'!BI19","v":{"v":34270858.687661715,"d":"$34,270,859"}},{"$f":"'Trial 2'!BJ19","v":{"v":34259818.10133787,"d":"$34,259,818"}},{"$f":"'Trial 2'!BK19","v":{"v":34248602.08114882,"d":"$34,248,602"}},{"$f":"'Trial 2'!BL19","v":{"v":34237359.66083739,"d":"$34,237,360"}},{"$f":"'Trial 2'!BM19","v":{"v":34226011.06228466,"d":"$34,226,011"}},{"$f":"'Trial 2'!BO19","v":{"v":34214603.31746347,"d":"$34,214,603"}},{"$f":"'Trial 2'!BP19","v":{"v":34203022.30286643,"d":"$34,203,022"}},{"$f":"'Trial 2'!BQ19","v":{"v":34191258.804323934,"d":"$34,191,259"}},{"$f":"'Trial 2'!BR19","v":{"v":34179362.54124937,"d":"$34,179,363"}},{"$f":"'Trial 2'!BS19","v":{"v":34167441.77391947,"d":"$34,167,442"}},{"$f":"'Trial 2'!BT19","v":{"v":34155528.86208358,"d":"$34,155,529"}},{"$f":"'Trial 2'!BU19","v":{"v":34143465.14649202,"d":"$34,143,465"}},{"$f":"'Trial 2'!BV19","v":{"v":34131433.46060956,"d":"$34,131,433"}},{"$f":"'Trial 2'!BW19","v":{"v":34119300.62070215,"d":"$34,119,301"}},{"$f":"'Trial 2'!BX19","v":{"v":34107151.32346411,"d":"$34,107,151"}},{"$f":"'Trial 2'!BY19","v":{"v":34094955.04282127,"d":"$34,094,955"}},{"$f":"'Trial 2'!BZ19","v":{"v":34082603.102874,"d":"$34,082,603"}},{"$f":"'Trial 2'!CB19","v":{"v":34070311.86207248,"d":"$34,070,312"}},{"$f":"'Trial 2'!CC19","v":{"v":34057987.0328357,"d":"$34,057,987"}},{"$f":"'Trial 2'!CD19","v":{"v":34045655.76843784,"d":"$34,045,656"}},{"$f":"'Trial 2'!CE19","v":{"v":34033232.56523791,"d":"$34,033,233"}},{"$f":"'Trial 2'!CF19","v":{"v":34020750.84453536,"d":"$34,020,751"}},{"$f":"'Trial 2'!CG19","v":{"v":34008292.991460405,"d":"$34,008,293"}},{"$f":"'Trial 2'!CH19","v":{"v":33995820.02945201,"d":"$33,995,820"}},{"$f":"'Trial 2'!CI19","v":{"v":33983361.17956787,"d":"$33,983,361"}},{"$f":"'Trial 2'!CJ19","v":{"v":33970860.932273224,"d":"$33,970,861"}},{"$f":"'Trial 2'!CK19","v":{"v":33958392.398579136,"d":"$33,958,392"}},{"$f":"'Trial 2'!CL19","v":{"v":33945806.51197249,"d":"$33,945,807"}},{"$f":"'Trial 2'!CM19","v":{"v":33933170.6833458,"d":"$33,933,171"}},{"$f":"'Trial 2'!CO19","v":{"v":33920403.75022959,"d":"$33,920,404"}},{"$f":"'Trial 2'!CP19","v":{"v":33907587.64482646,"d":"$33,907,588"}},{"$f":"'Trial 2'!CQ19","v":{"v":33894694.61294612,"d":"$33,894,695"}},{"$f":"'Trial 2'!CR19","v":{"v":33881769.93484267,"d":"$33,881,770"}},{"$f":"'Trial 2'!CS19","v":{"v":33868840.025556505,"d":"$33,868,840"}},{"$f":"'Trial 2'!CT19","v":{"v":33855852.76621499,"d":"$33,855,853"}},{"$f":"'Trial 2'!CU19","v":{"v":33842872.39732484,"d":"$33,842,872"}},{"$f":"'Trial 2'!CV19","v":{"v":33829797.81006084,"d":"$33,829,798"}},{"$f":"'Trial 2'!CW19","v":{"v":33816766.540230244,"d":"$33,816,767"}},{"$f":"'Trial 2'!CX19","v":{"v":33803692.360121585,"d":"$33,803,692"}},{"$f":"'Trial 2'!CY19","v":{"v":33790660.94082244,"d":"$33,790,661"}},{"$f":"'Trial 2'!CZ19","v":{"v":33777488.4041738,"d":"$33,777,488"}},{"$f":"'Trial 2'!DB19","v":{"v":33764347.963399254,"d":"$33,764,348"}},{"$f":"'Trial 2'!DC19","v":{"v":33751165.88036107,"d":"$33,751,166"}},{"$f":"'Trial 2'!DD19","v":{"v":33737937.20299128,"d":"$33,737,937"}},{"$f":"'Trial 2'!DE19","v":{"v":33724720.41911028,"d":"$33,724,720"}},{"$f":"'Trial 2'!DF19","v":{"v":33711453.701257505,"d":"$33,711,454"}},{"$f":"'Trial 2'!DG19","v":{"v":33698204.298138164,"d":"$33,698,204"}},{"$f":"'Trial 2'!DH19","v":{"v":33684991.63691256,"d":"$33,684,992"}},{"$f":"'Trial 2'!DI19","v":{"v":33671755.077963084,"d":"$33,671,755"}},{"$f":"'Trial 2'!DJ19","v":{"v":33658506.48366066,"d":"$33,658,506"}},{"$f":"'Trial 2'!DK19","v":{"v":33645254.46044773,"d":"$33,645,254"}},{"$f":"'Trial 2'!DL19","v":{"v":33632069.05103453,"d":"$33,632,069"}},{"$f":"'Trial 2'!DM19","v":{"v":33618800.49654692,"d":"$33,618,800"}},{"$f":"'Trial 2'!DO19","v":{"v":33605400.97125445,"d":"$33,605,401"}},{"$f":"'Trial 2'!DP19","v":{"v":33591914.148244224,"d":"$33,591,914"}},{"$f":"'Trial 2'!DQ19","v":{"v":33578471.42857693,"d":"$33,578,471"}},{"$f":"'Trial 2'!DR19","v":{"v":33564925.83145407,"d":"$33,564,926"}},{"$f":"'Trial 2'!DS19","v":{"v":33551375.43627088,"d":"$33,551,375"}},{"$f":"'Trial 2'!DT19","v":{"v":33537794.56499663,"d":"$33,537,795"}},{"$f":"'Trial 2'!DU19","v":{"v":33524148.944679804,"d":"$33,524,149"}},{"$f":"'Trial 2'!DV19","v":{"v":33510512.934117816,"d":"$33,510,513"}},{"$f":"'Trial 2'!DW19","v":{"v":33496917.527275756,"d":"$33,496,918"}},{"$f":"'Trial 2'!DX19","v":{"v":33483351.47632296,"d":"$33,483,351"}},{"$f":"'Trial 2'!DY19","v":{"v":33469704.989389166,"d":"$33,469,705"}},{"$f":"'Trial 2'!DZ19","v":{"v":33456099.3064572,"d":"$33,456,099"}},{"$f":"'Trial 2'!EB19","v":{"v":33442480.17446338,"d":"$33,442,480"}},{"$f":"'Trial 2'!EC19","v":{"v":33428780.094502136,"d":"$33,428,780"}},{"$f":"'Trial 2'!ED19","v":{"v":33415132.472768907,"d":"$33,415,132"}},{"$f":"'Trial 2'!EE19","v":{"v":33401508.372194275,"d":"$33,401,508"}},{"$f":"'Trial 2'!EF19","v":{"v":33387773.6639923,"d":"$33,387,774"}},{"$f":"'Trial 2'!EG19","v":{"v":33374026.431879845,"d":"$33,374,026"}},{"$f":"'Trial 2'!EH19","v":{"v":33360365.66521049,"d":"$33,360,366"}},{"$f":"'Trial 2'!EI19","v":{"v":33346633.20283141,"d":"$33,346,633"}},{"$f":"'Trial 2'!EJ19","v":{"v":33332850.539811347,"d":"$33,332,851"}},{"$f":"'Trial 2'!EK19","v":{"v":33318998.914300554,"d":"$33,318,999"}},{"$f":"'Trial 2'!EL19","v":{"v":33305171.474247996,"d":"$33,305,171"}},{"$f":"'Trial 2'!EM19","v":{"v":33291310.365795463,"d":"$33,291,310"}}]
[{"$f":"'Trial 3'!B19","v":{"v":34645298.42192645,"d":"$34,645,298"}},{"$f":"'Trial 3'!C19","v":{"v":34645298.42192645,"d":"$34,645,298"}},{"$f":"'Trial 3'!D19","v":{"v":34644805.73739387,"d":"$34,644,806"}},{"$f":"'Trial 3'!E19","v":{"v":34643955.30794609,"d":"$34,643,955"}},{"$f":"'Trial 3'!F19","v":{"v":34642681.52305896,"d":"$34,642,682"}},{"$f":"'Trial 3'!G19","v":{"v":34641139.83249677,"d":"$34,641,140"}},{"$f":"'Trial 3'!H19","v":{"v":34639279.9751628,"d":"$34,639,280"}},{"$f":"'Trial 3'!I19","v":{"v":34637161.88560859,"d":"$34,637,162"}},{"$f":"'Trial 3'!J19","v":{"v":34634689.337468535,"d":"$34,634,689"}},{"$f":"'Trial 3'!K19","v":{"v":34631949.91715913,"d":"$34,631,950"}},{"$f":"'Trial 3'!L19","v":{"v":34628828.89011245,"d":"$34,628,829"}},{"$f":"'Trial 3'!M19","v":{"v":34625423.135838136,"d":"$34,625,423"}},{"$f":"'Trial 3'!O19","v":{"v":34621782.318126075,"d":"$34,621,782"}},{"$f":"'Trial 3'!P19","v":{"v":34617806.05478742,"d":"$34,617,806"}},{"$f":"'Trial 3'!Q19","v":{"v":34613569.78907031,"d":"$34,613,570"}},{"$f":"'Trial 3'!R19","v":{"v":34609035.778869264,"d":"$34,609,036"}},{"$f":"'Trial 3'!S19","v":{"v":34604317.73386414,"d":"$34,604,318"}},{"$f":"'Trial 3'!T19","v":{"v":34599388.05436687,"d":"$34,599,388"}},{"$f":"'Trial 3'!U19","v":{"v":34594206.70369679,"d":"$34,594,207"}},{"$f":"'Trial 3'!V19","v":{"v":34588762.32261429,"d":"$34,588,762"}},{"$f":"'Trial 3'!W19","v":{"v":34582960.59264858,"d":"$34,582,961"}},{"$f":"'Trial 3'!X19","v":{"v":34576879.0933197,"d":"$34,576,879"}},{"$f":"'Trial 3'!Y19","v":{"v":34570601.81374257,"d":"$34,570,602"}},{"$f":"'Trial 3'!Z19","v":{"v":34564118.09944621,"d":"$34,564,118"}},{"$f":"'Trial 3'!AB19","v":{"v":34557397.50945321,"d":"$34,557,398"}},{"$f":"'Trial 3'!AC19","v":{"v":34550364.37116708,"d":"$34,550,364"}},{"$f":"'Trial 3'!AD19","v":{"v":34543214.28737804,"d":"$34,543,214"}},{"$f":"'Trial 3'!AE19","v":{"v":34535833.626316495,"d":"$34,535,834"}},{"$f":"'Trial 3'!AF19","v":{"v":34528202.28528604,"d":"$34,528,202"}},{"$f":"'Trial 3'!AG19","v":{"v":34520444.94131113,"d":"$34,520,445"}},{"$f":"'Trial 3'!AH19","v":{"v":34512402.130486816,"d":"$34,512,402"}},{"$f":"'Trial 3'!AI19","v":{"v":34504238.9259714,"d":"$34,504,239"}},{"$f":"'Trial 3'!AJ19","v":{"v":34495924.81305543,"d":"$34,495,925"}},{"$f":"'Trial 3'!AK19","v":{"v":34487403.4153017,"d":"$34,487,403"}},{"$f":"'Trial 3'!AL19","v":{"v":34478765.14991431,"d":"$34,478,765"}},{"$f":"'Trial 3'!AM19","v":{"v":34469988.13174915,"d":"$34,469,988"}},{"$f":"'Trial 3'!AO19","v":{"v":34461039.65985797,"d":"$34,461,040"}},{"$f":"'Trial 3'!AP19","v":{"v":34451918.84963355,"d":"$34,451,919"}},{"$f":"'Trial 3'!AQ19","v":{"v":34442716.985519715,"d":"$34,442,717"}},{"$f":"'Trial 3'!AR19","v":{"v":34433449.4610358,"d":"$34,433,449"}},{"$f":"'Trial 3'!AS19","v":{"v":34423959.5092742,"d":"$34,423,960"}},{"$f":"'Trial 3'!AT19","v":{"v":34414325.19513758,"d":"$34,414,325"}},{"$f":"'Trial 3'!AU19","v":{"v":34404618.13699534,"d":"$34,404,618"}},{"$f":"'Trial 3'!AV19","v":{"v":34394759.60648176,"d":"$34,394,760"}},{"$f":"'Trial 3'!AW19","v":{"v":34384726.484851144,"d":"$34,384,726"}},{"$f":"'Trial 3'!AX19","v":{"v":34374604.2846961,"d":"$34,374,604"}},{"$f":"'Trial 3'!AY19","v":{"v":34364311.28883039,"d":"$34,364,311"}},{"$f":"'Trial 3'!AZ19","v":{"v":34353983.2282268,"d":"$34,353,983"}},{"$f":"'Trial 3'!BB19","v":{"v":34343490.51845632,"d":"$34,343,491"}},{"$f":"'Trial 3'!BC19","v":{"v":34332807.0307613,"d":"$34,332,807"}},{"$f":"'Trial 3'!BD19","v":{"v":34322007.84153956,"d":"$34,322,008"}},{"$f":"'Trial 3'!BE19","v":{"v":34311025.4093149,"d":"$34,311,025"}},{"$f":"'Trial 3'!BF19","v":{"v":34300008.91087663,"d":"$34,300,009"}},{"$f":"'Trial 3'!BG19","v":{"v":34288796.888727345,"d":"$34,288,797"}},{"$f":"'Trial 3'!BH19","v":{"v":34277528.040568694,"d":"$34,277,528"}},{"$f":"'Trial 3'!BI19","v":{"v":34266069.56439996,"d":"$34,266,070"}},{"$f":"'Trial 3'!BJ19","v":{"v":34254479.66325331,"d":"$34,254,480"}},{"$f":"'Trial 3'!BK19","v":{"v":34242835.173518255,"d":"$34,242,835"}},{"$f":"'Trial 3'!BL19","v":{"v":34231125.19485282,"d":"$34,231,125"}},{"$f":"'Trial 3'!BM19","v":{"v":34219326.27868802,"d":"$34,219,326"}},{"$f":"'Trial 3'!BO19","v":{"v":34207509.989284925,"d":"$34,207,510"}},{"$f":"'Trial 3'!BP19","v":{"v":34195624.88814662,"d":"$34,195,625"}},{"$f":"'Trial 3'!BQ19","v":{"v":34183675.277122185,"d":"$34,183,675"}},{"$f":"'Trial 3'!BR19","v":{"v":34171692.60740383,"d":"$34,171,693"}},{"$f":"'Trial 3'!BS19","v":{"v":34159593.38145861,"d":"$34,159,593"}},{"$f":"'Trial 3'!BT19","v":{"v":34147445.92397375,"d":"$34,147,446"}},{"$f":"'Trial 3'!BU19","v":{"v":34135291.12827101,"d":"$34,135,291"}},{"$f":"'Trial 3'!BV19","v":{"v":34123063.64328139,"d":"$34,123,064"}},{"$f":"'Trial 3'!BW19","v":{"v":34110756.03143622,"d":"$34,110,756"}},{"$f":"'Trial 3'!BX19","v":{"v":34098347.35555489,"d":"$34,098,347"}},{"$f":"'Trial 3'!BY19","v":{"v":34085921.009731814,"d":"$34,085,921"}},{"$f":"'Trial 3'!BZ19","v":{"v":34073377.93011575,"d":"$34,073,378"}},{"$f":"'Trial 3'!CB19","v":{"v":34060870.488807954,"d":"$34,060,870"}},{"$f":"'Trial 3'!CC19","v":{"v":34048298.03330385,"d":"$34,048,298"}},{"$f":"'Trial 3'!CD19","v":{"v":34035716.490917586,"d":"$34,035,716"}},{"$f":"'Trial 3'!CE19","v":{"v":34023079.88226441,"d":"$34,023,080"}},{"$f":"'Trial 3'!CF19","v":{"v":34010409.735237114,"d":"$34,010,410"}},{"$f":"'Trial 3'!CG19","v":{"v":33997709.676087424,"d":"$33,997,710"}},{"$f":"'Trial 3'!CH19","v":{"v":33984973.98418045,"d":"$33,984,974"}},{"$f":"'Trial 3'!CI19","v":{"v":33972250.861959234,"d":"$33,972,251"}},{"$f":"'Trial 3'!CJ19","v":{"v":33959547.8663448,"d":"$33,959,548"}},{"$f":"'Trial 3'!CK19","v":{"v":33946886.75296281,"d":"$33,946,887"}},{"$f":"'Trial 3'!CL19","v":{"v":33934176.52421605,"d":"$33,934,177"}},{"$f":"'Trial 3'!CM19","v":{"v":33921467.2839774,"d":"$33,921,467"}},{"$f":"'Trial 3'!CO19","v":{"v":33908783.63150932,"d":"$33,908,784"}},{"$f":"'Trial 3'!CP19","v":{"v":33896152.42378318,"d":"$33,896,152"}},{"$f":"'Trial 3'!CQ19","v":{"v":33883416.86380245,"d":"$33,883,417"}},{"$f":"'Trial 3'!CR19","v":{"v":33870675.52050494,"d":"$33,870,676"}},{"$f":"'Trial 3'!CS19","v":{"v":33857874.11224262,"d":"$33,857,874"}},{"$f":"'Trial 3'!CT19","v":{"v":33845058.16592929,"d":"$33,845,058"}},{"$f":"'Trial 3'!CU19","v":{"v":33832200.70867124,"d":"$33,832,201"}},{"$f":"'Trial 3'!CV19","v":{"v":33819324.61035034,"d":"$33,819,325"}},{"$f":"'Trial 3'!CW19","v":{"v":33806453.80519012,"d":"$33,806,454"}},{"$f":"'Trial 3'!CX19","v":{"v":33793557.91774352,"d":"$33,793,558"}},{"$f":"'Trial 3'!CY19","v":{"v":33780576.23279828,"d":"$33,780,576"}},{"$f":"'Trial 3'!CZ19","v":{"v":33767645.925928034,"d":"$33,767,646"}},{"$f":"'Trial 3'!DB19","v":{"v":33754644.15355775,"d":"$33,754,644"}},{"$f":"'Trial 3'!DC19","v":{"v":33741668.95355412,"d":"$33,741,669"}},{"$f":"'Trial 3'!DD19","v":{"v":33728601.577021904,"d":"$33,728,602"}},{"$f":"'Trial 3'!DE19","v":{"v":33715401.91468131,"d":"$33,715,402"}},{"$f":"'Trial 3'!DF19","v":{"v":33702171.70200343,"d":"$33,702,172"}},{"$f":"'Trial 3'!DG19","v":{"v":33688943.580727346,"d":"$33,688,944"}},{"$f":"'Trial 3'!DH19","v":{"v":33675704.33342712,"d":"$33,675,704"}},{"$f":"'Trial 3'!DI19","v":{"v":33662477.102640994,"d":"$33,662,477"}},{"$f":"'Trial 3'!DJ19","v":{"v":33649251.681412205,"d":"$33,649,252"}},{"$f":"'Trial 3'!DK19","v":{"v":33636008.76024192,"d":"$33,636,009"}},{"$f":"'Trial 3'!DL19","v":{"v":33622725.43338261,"d":"$33,622,725"}},{"$f":"'Trial 3'!DM19","v":{"v":33609444.790164925,"d":"$33,609,445"}},{"$f":"'Trial 3'!DO19","v":{"v":33596184.9343247,"d":"$33,596,185"}},{"$f":"'Trial 3'!DP19","v":{"v":33582925.01547238,"d":"$33,582,925"}},{"$f":"'Trial 3'!DQ19","v":{"v":33569677.39326631,"d":"$33,569,677"}},{"$f":"'Trial 3'!DR19","v":{"v":33556448.26883229,"d":"$33,556,448"}},{"$f":"'Trial 3'!DS19","v":{"v":33543312.872004617,"d":"$33,543,313"}},{"$f":"'Trial 3'!DT19","v":{"v":33530058.103309665,"d":"$33,530,058"}},{"$f":"'Trial 3'!DU19","v":{"v":33516754.616077,"d":"$33,516,755"}},{"$f":"'Trial 3'!DV19","v":{"v":33503482.738519587,"d":"$33,503,483"}},{"$f":"'Trial 3'!DW19","v":{"v":33490185.161475606,"d":"$33,490,185"}},{"$f":"'Trial 3'!DX19","v":{"v":33476920.51306675,"d":"$33,476,921"}},{"$f":"'Trial 3'!DY19","v":{"v":33463712.33504556,"d":"$33,463,712"}},{"$f":"'Trial 3'!DZ19","v":{"v":33450474.84799783,"d":"$33,450,475"}},{"$f":"'Trial 3'!EB19","v":{"v":33437189.69472298,"d":"$33,437,190"}},{"$f":"'Trial 3'!EC19","v":{"v":33423825.94404833,"d":"$33,423,826"}},{"$f":"'Trial 3'!ED19","v":{"v":33410447.839999195,"d":"$33,410,448"}},{"$f":"'Trial 3'!EE19","v":{"v":33397032.843952887,"d":"$33,397,033"}},{"$f":"'Trial 3'!EF19","v":{"v":33383626.09672304,"d":"$33,383,626"}},{"$f":"'Trial 3'!EG19","v":{"v":33370227.548256967,"d":"$33,370,228"}},{"$f":"'Trial 3'!EH19","v":{"v":33356811.75237281,"d":"$33,356,812"}},{"$f":"'Trial 3'!EI19","v":{"v":33343380.016601115,"d":"$33,343,380"}},{"$f":"'Trial 3'!EJ19","v":{"v":33329989.297177013,"d":"$33,329,989"}},{"$f":"'Trial 3'!EK19","v":{"v":33316510.931023184,"d":"$33,316,511"}},{"$f":"'Trial 3'!EL19","v":{"v":33302925.066138573,"d":"$33,302,925"}},{"$f":"'Trial 3'!EM19","v":{"v":33289411.203910477,"d":"$33,289,411"}}]
[{"$f":"'Trial 4'!B19","v":{"v":34645298.42192645,"d":"$34,645,298"}},{"$f":"'Trial 4'!C19","v":{"v":34645298.42192645,"d":"$34,645,298"}},{"$f":"'Trial 4'!D19","v":{"v":34644883.04983828,"d":"$34,644,883"}},{"$f":"'Trial 4'!E19","v":{"v":34644049.63356415,"d":"$34,644,050"}},{"$f":"'Trial 4'!F19","v":{"v":34642807.523527995,"d":"$34,642,808"}},{"$f":"'Trial 4'!G19","v":{"v":34641246.7643549,"d":"$34,641,247"}},{"$f":"'Trial 4'!H19","v":{"v":34639413.01205971,"d":"$34,639,413"}},{"$f":"'Trial 4'!I19","v":{"v":34637346.971360475,"d":"$34,637,347"}},{"$f":"'Trial 4'!J19","v":{"v":34634865.39306144,"d":"$34,634,865"}},{"$f":"'Trial 4'!K19","v":{"v":34631983.83408812,"d":"$34,631,984"}},{"$f":"'Trial 4'!L19","v":{"v":34628777.06197142,"d":"$34,628,777"}},{"$f":"'Trial 4'!M19","v":{"v":34625254.822427884,"d":"$34,625,255"}},{"$f":"'Trial 4'!O19","v":{"v":34621442.91190603,"d":"$34,621,443"}},{"$f":"'Trial 4'!P19","v":{"v":34617256.94061169,"d":"$34,617,257"}},{"$f":"'Trial 4'!Q19","v":{"v":34612800.19743565,"d":"$34,612,800"}},{"$f":"'Trial 4'!R19","v":{"v":34608103.92919609,"d":"$34,608,104"}},{"$f":"'Trial 4'!S19","v":{"v":34603231.04069372,"d":"$34,603,231"}},{"$f":"'Trial 4'!T19","v":{"v":34598106.84638908,"d":"$34,598,107"}},{"$f":"'Trial 4'!U19","v":{"v":34592627.7153737,"d":"$34,592,628"}},{"$f":"'Trial 4'!V19","v":{"v":34586880.48358525,"d":"$34,586,880"}},{"$f":"'Trial 4'!W19","v":{"v":34580909.33004779,"d":"$34,580,909"}},{"$f":"'Trial 4'!X19","v":{"v":34574706.853641145,"d":"$34,574,707"}},{"$f":"'Trial 4'!Y19","v":{"v":34568403.47773815,"d":"$34,568,403"}},{"$f":"'Trial 4'!Z19","v":{"v":34561873.81943605,"d":"$34,561,874"}},{"$f":"'Trial 4'!AB19","v":{"v":34555037.47056267,"d":"$34,555,037"}},{"$f":"'Trial 4'!AC19","v":{"v":34547943.74768499,"d":"$34,547,944"}},{"$f":"'Trial 4'!AD19","v":{"v":34540614.43008582,"d":"$34,540,614"}},{"$f":"'Trial 4'!AE19","v":{"v":34533114.87759629,"d":"$34,533,115"}},{"$f":"'Trial 4'!AF19","v":{"v":34525407.46084652,"d":"$34,525,407"}},{"$f":"'Trial 4'!AG19","v":{"v":34517441.36326128,"d":"$34,517,441"}},{"$f":"'Trial 4'!AH19","v":{"v":34509269.22527744,"d":"$34,509,269"}},{"$f":"'Trial 4'!AI19","v":{"v":34501018.51182197,"d":"$34,501,019"}},{"$f":"'Trial 4'!AJ19","v":{"v":34492604.97623381,"d":"$34,492,605"}},{"$f":"'Trial 4'!AK19","v":{"v":34484032.2216504,"d":"$34,484,032"}},{"$f":"'Trial 4'!AL19","v":{"v":34475270.12519592,"d":"$34,475,270"}},{"$f":"'Trial 4'!AM19","v":{"v":34466432.513933584,"d":"$34,466,433"}},{"$f":"'Trial 4'!AO19","v":{"v":34457425.58026936,"d":"$34,457,426"}},{"$f":"'Trial 4'!AP19","v":{"v":34448165.666415036,"d":"$34,448,166"}},{"$f":"'Trial 4'!AQ19","v":{"v":34438770.97482351,"d":"$34,438,771"}},{"$f":"'Trial 4'!AR19","v":{"v":34429239.628484674,"d":"$34,429,240"}},{"$f":"'Trial 4'!AS19","v":{"v":34419562.38653444,"d":"$34,419,562"}},{"$f":"'Trial 4'!AT19","v":{"v":34409695.70154082,"d":"$34,409,696"}},{"$f":"'Trial 4'!AU19","v":{"v":34399732.935235776,"d":"$34,399,733"}},{"$f":"'Trial 4'!AV19","v":{"v":34389713.73075228,"d":"$34,389,714"}},{"$f":"'Trial 4'!AW19","v":{"v":34379605.3535281,"d":"$34,379,605"}},{"$f":"'Trial 4'!AX19","v":{"v":34369380.46197259,"d":"$34,369,380"}},{"$f":"'Trial 4'!AY19","v":{"v":34359082.98641778,"d":"$34,359,083"}},{"$f":"'Trial 4'!AZ19","v":{"v":34348618.36476453,"d":"$34,348,618"}},{"$f":"'Trial 4'!BB19","v":{"v":34338000.40230389,"d":"$34,338,000"}},{"$f":"'Trial 4'!BC19","v":{"v":34327188.40542169,"d":"$34,327,188"}},{"$f":"'Trial 4'!BD19","v":{"v":34316393.52351345,"d":"$34,316,394"}},{"$f":"'Trial 4'!BE19","v":{"v":34305611.34150089,"d":"$34,305,611"}},{"$f":"'Trial 4'!BF19","v":{"v":34294674.3802904,"d":"$34,294,674"}},{"$f":"'Trial 4'!BG19","v":{"v":34283648.30582829,"d":"$34,283,648"}},{"$f":"'Trial 4'!BH19","v":{"v":34272478.60429257,"d":"$34,272,479"}},{"$f":"'Trial 4'!BI19","v":{"v":34261267.10695572,"d":"$34,261,267"}},{"$f":"'Trial 4'!BJ19","v":{"v":34249921.57646341,"d":"$34,249,922"}},{"$f":"'Trial 4'!BK19","v":{"v":34238502.38728005,"d":"$34,238,502"}},{"$f":"'Trial 4'!BL19","v":{"v":34226897.146773204,"d":"$34,226,897"}},{"$f":"'Trial 4'!BM19","v":{"v":34215279.573516965,"d":"$34,215,280"}},{"$f":"'Trial 4'!BO19","v":{"v":34203620.68917371,"d":"$34,203,621"}},{"$f":"'Trial 4'!BP19","v":{"v":34191945.2100601,"d":"$34,191,945"}},{"$f":"'Trial 4'!BQ19","v":{"v":34180245.99520927,"d":"$34,180,246"}},{"$f":"'Trial 4'!BR19","v":{"v":34168527.335204534,"d":"$34,168,527"}},{"$f":"'Trial 4'!BS19","v":{"v":34156699.36279212,"d":"$34,156,699"}},{"$f":"'Trial 4'!BT19","v":{"v":34144821.34855917,"d":"$34,144,821"}},{"$f":"'Trial 4'!BU19","v":{"v":34132810.91156727,"d":"$34,132,811"}},{"$f":"'Trial 4'!BV19","v":{"v":34120778.697550245,"d":"$34,120,779"}},{"$f":"'Trial 4'!BW19","v":{"v":34108662.545433186,"d":"$34,108,663"}},{"$f":"'Trial 4'!BX19","v":{"v":34096441.556181945,"d":"$34,096,442"}},{"$f":"'Trial 4'!BY19","v":{"v":34084097.53589879,"d":"$34,084,098"}},{"$f":"'Trial 4'!BZ19","v":{"v":34071754.6670802,"d":"$34,071,755"}},{"$f":"'Trial 4'!CB19","v":{"v":34059350.99024763,"d":"$34,059,351"}},{"$f":"'Trial 4'!CC19","v":{"v":34046932.59869469,"d":"$34,046,933"}},{"$f":"'Trial 4'!CD19","v":{"v":34034411.83490243,"d":"$34,034,412"}},{"$f":"'Trial 4'!CE19","v":{"v":34021876.08861737,"d":"$34,021,876"}},{"$f":"'Trial 4'!CF19","v":{"v":34009262.52022385,"d":"$34,009,263"}},{"$f":"'Trial 4'!CG19","v":{"v":33996586.37647902,"d":"$33,996,586"}},{"$f":"'Trial 4'!CH19","v":{"v":33983880.04147162,"d":"$33,983,880"}},{"$f":"'Trial 4'!CI19","v":{"v":33971109.02866029,"d":"$33,971,109"}},{"$f":"'Trial 4'!CJ19","v":{"v":33958419.233008765,"d":"$33,958,419"}},{"$f":"'Trial 4'!CK19","v":{"v":33945752.530965105,"d":"$33,945,753"}},{"$f":"'Trial 4'!CL19","v":{"v":33933038.22137461,"d":"$33,933,038"}},{"$f":"'Trial 4'!CM19","v":{"v":33920352.12158425,"d":"$33,920,352"}},{"$f":"'Trial 4'!CO19","v":{"v":33907641.826606825,"d":"$33,907,642"}},{"$f":"'Trial 4'!CP19","v":{"v":33894851.033274464,"d":"$33,894,851"}},{"$f":"'Trial 4'!CQ19","v":{"v":33882083.96664889,"d":"$33,882,084"}},{"$f":"'Trial 4'!CR19","v":{"v":33869322.26048396,"d":"$33,869,322"}},{"$f":"'Trial 4'!CS19","v":{"v":33856583.426220246,"d":"$33,856,583"}},{"$f":"'Trial 4'!CT19","v":{"v":33843813.69801026,"d":"$33,843,814"}},{"$f":"'Trial 4'!CU19","v":{"v":33830959.991131224,"d":"$33,830,960"}},{"$f":"'Trial 4'!CV19","v":{"v":33817979.42223045,"d":"$33,817,979"}},{"$f":"'Trial 4'!CW19","v":{"v":33805072.21325487,"d":"$33,805,072"}},{"$f":"'Trial 4'!CX19","v":{"v":33792165.37481887,"d":"$33,792,165"}},{"$f":"'Trial 4'!CY19","v":{"v":33779253.04324862,"d":"$33,779,253"}},{"$f":"'Trial 4'!CZ19","v":{"v":33766215.981839254,"d":"$33,766,216"}},{"$f":"'Trial 4'!DB19","v":{"v":33753192.46544939,"d":"$33,753,192"}},{"$f":"'Trial 4'!DC19","v":{"v":33740222.90134376,"d":"$33,740,223"}},{"$f":"'Trial 4'!DD19","v":{"v":33727182.73443607,"d":"$33,727,183"}},{"$f":"'Trial 4'!DE19","v":{"v":33714041.82121875,"d":"$33,714,042"}},{"$f":"'Trial 4'!DF19","v":{"v":33700917.901823774,"d":"$33,700,918"}},{"$f":"'Trial 4'!DG19","v":{"v":33687810.975058675,"d":"$33,687,811"}},{"$f":"'Trial 4'!DH19","v":{"v":33674689.763494186,"d":"$33,674,690"}},{"$f":"'Trial 4'!DI19","v":{"v":33661570.94465146,"d":"$33,661,571"}},{"$f":"'Trial 4'!DJ19","v":{"v":33648354.87315858,"d":"$33,648,355"}},{"$f":"'Trial 4'!DK19","v":{"v":33635166.84104192,"d":"$33,635,167"}},{"$f":"'Trial 4'!DL19","v":{"v":33621921.782465585,"d":"$33,621,922"}},{"$f":"'Trial 4'!DM19","v":{"v":33608695.134846166,"d":"$33,608,695"}},{"$f":"'Trial 4'!DO19","v":{"v":33595466.69606915,"d":"$33,595,467"}},{"$f":"'Trial 4'!DP19","v":{"v":33582187.624054566,"d":"$33,582,188"}},{"$f":"'Trial 4'!DQ19","v":{"v":33568976.348991334,"d":"$33,568,976"}},{"$f":"'Trial 4'!DR19","v":{"v":33555856.709783174,"d":"$33,555,857"}},{"$f":"'Trial 4'!DS19","v":{"v":33542655.240609802,"d":"$33,542,655"}},{"$f":"'Trial 4'!DT19","v":{"v":33529526.497988533,"d":"$33,529,526"}},{"$f":"'Trial 4'!DU19","v":{"v":33516479.95063048,"d":"$33,516,480"}},{"$f":"'Trial 4'!DV19","v":{"v":33503462.089059126,"d":"$33,503,462"}},{"$f":"'Trial 4'!DW19","v":{"v":33490385.9968685,"d":"$33,490,386"}},{"$f":"'Trial 4'!DX19","v":{"v":33477272.083226074,"d":"$33,477,272"}},{"$f":"'Trial 4'!DY19","v":{"v":33464020.95989919,"d":"$33,464,021"}},{"$f":"'Trial 4'!DZ19","v":{"v":33450830.731485654,"d":"$33,450,831"}},{"$f":"'Trial 4'!EB19","v":{"v":33437685.03671136,"d":"$33,437,685"}},{"$f":"'Trial 4'!EC19","v":{"v":33424609.683972035,"d":"$33,424,610"}},{"$f":"'Trial 4'!ED19","v":{"v":33411502.392524302,"d":"$33,411,502"}},{"$f":"'Trial 4'!EE19","v":{"v":33398252.41870678,"d":"$33,398,252"}},{"$f":"'Trial 4'!EF19","v":{"v":33384961.086145315,"d":"$33,384,961"}},{"$f":"'Trial 4'!EG19","v":{"v":33371724.66473762,"d":"$33,371,725"}},{"$f":"'Trial 4'!EH19","v":{"v":33358563.544878528,"d":"$33,358,564"}},{"$f":"'Trial 4'!EI19","v":{"v":33345353.65176943,"d":"$33,345,354"}},{"$f":"'Trial 4'!EJ19","v":{"v":33332166.842144877,"d":"$33,332,167"}},{"$f":"'Trial 4'!EK19","v":{"v":33318862.803993788,"d":"$33,318,863"}},{"$f":"'Trial 4'!EL19","v":{"v":33305444.263111643,"d":"$33,305,444"}},{"$f":"'Trial 4'!EM19","v":{"v":33292072.51320458,"d":"$33,292,073"}}]
[{"$f":"'Trial 5'!B19","v":{"v":34645298.42192645,"d":"$34,645,298"}},{"$f":"'Trial 5'!C19","v":{"v":34645298.42192645,"d":"$34,645,298"}},{"$f":"'Trial 5'!D19","v":{"v":34644834.559459105,"d":"$34,644,835"}},{"$f":"'Trial 5'!E19","v":{"v":34643939.25823976,"d":"$34,643,939"}},{"$f":"'Trial 5'!F19","v":{"v":34642752.58050542,"d":"$34,642,753"}},{"$f":"'Trial 5'!G19","v":{"v":34641111.135880165,"d":"$34,641,111"}},{"$f":"'Trial 5'!H19","v":{"v":34639087.89172044,"d":"$34,639,088"}},{"$f":"'Trial 5'!I19","v":{"v":34636684.88432721,"d":"$34,636,685"}},{"$f":"'Trial 5'!J19","v":{"v":34633955.251417734,"d":"$34,633,955"}},{"$f":"'Trial 5'!K19","v":{"v":34630949.30757114,"d":"$34,630,949"}},{"$f":"'Trial 5'!L19","v":{"v":34627752.13628085,"d":"$34,627,752"}},{"$f":"'Trial 5'!M19","v":{"v":34624200.86101451,"d":"$34,624,201"}},{"$f":"'Trial 5'!O19","v":{"v":34620317.13913469,"d":"$34,620,317"}},{"$f":"'Trial 5'!P19","v":{"v":34616149.25272418,"d":"$34,616,149"}},{"$f":"'Trial 5'!Q19","v":{"v":34611687.376242094,"d":"$34,611,687"}},{"$f":"'Trial 5'!R19","v":{"v":34606966.627403125,"d":"$34,606,967"}},{"$f":"'Trial 5'!S19","v":{"v":34601970.859512195,"d":"$34,601,971"}},{"$f":"'Trial 5'!T19","v":{"v":34596736.95135379,"d":"$34,596,737"}},{"$f":"'Trial 5'!U19","v":{"v":34591178.85384561,"d":"$34,591,179"}},{"$f":"'Trial 5'!V19","v":{"v":34585499.06394529,"d":"$34,585,499"}},{"$f":"'Trial 5'!W19","v":{"v":34579613.440933265,"d":"$34,579,613"}},{"$f":"'Trial 5'!X19","v":{"v":34573493.11063047,"d":"$34,573,493"}},{"$f":"'Trial 5'!Y19","v":{"v":34567169.104213975,"d":"$34,567,169"}},{"$f":"'Trial 5'!Z19","v":{"v":34560564.322428316,"d":"$34,560,564"}},{"$f":"'Trial 5'!AB19","v":{"v":34553859.912909426,"d":"$34,553,860"}},{"$f":"'Trial 5'!AC19","v":{"v":34546924.27329621,"d":"$34,546,924"}},{"$f":"'Trial 5'!AD19","v":{"v":34539822.37358948,"d":"$34,539,822"}},{"$f":"'Trial 5'!AE19","v":{"v":34532526.23888428,"d":"$34,532,526"}},{"$f":"'Trial 5'!AF19","v":{"v":34525140.30789429,"d":"$34,525,140"}},{"$f":"'Trial 5'!AG19","v":{"v":34517458.15167562,"d":"$34,517,458"}},{"$f":"'Trial 5'!AH19","v":{"v":34509507.280475035,"d":"$34,509,507"}},{"$f":"'Trial 5'!AI19","v":{"v":34501355.248791225,"d":"$34,501,355"}},{"$f":"'Trial 5'!AJ19","v":{"v":34493065.65676171,"d":"$34,493,066"}},{"$f":"'Trial 5'!AK19","v":{"v":34484550.5582707,"d":"$34,484,551"}},{"$f":"'Trial 5'!AL19","v":{"v":34475896.11825441,"d":"$34,475,896"}},{"$f":"'Trial 5'!AM19","v":{"v":34467023.86361551,"d":"$34,467,024"}},{"$f":"'Trial 5'!AO19","v":{"v":34457990.25688293,"d":"$34,457,990"}},{"$f":"'Trial 5'!AP19","v":{"v":34448756.7016488,"d":"$34,448,757"}},{"$f":"'Trial 5'!AQ19","v":{"v":34439389.708169654,"d":"$34,439,390"}},{"$f":"'Trial 5'!AR19","v":{"v":34429899.427924365,"d":"$34,429,899"}},{"$f":"'Trial 5'!AS19","v":{"v":34420258.37677871,"d":"$34,420,258"}},{"$f":"'Trial 5'!AT19","v":{"v":34410524.34181817,"d":"$34,410,524"}},{"$f":"'Trial 5'!AU19","v":{"v":34400710.79757036,"d":"$34,400,711"}},{"$f":"'Trial 5'!AV19","v":{"v":34390746.85490173,"d":"$34,390,747"}},{"$f":"'Trial 5'!AW19","v":{"v":34380693.304923914,"d":"$34,380,693"}},{"$f":"'Trial 5'!AX19","v":{"v":34370533.74373199,"d":"$34,370,534"}},{"$f":"'Trial 5'!AY19","v":{"v":34360249.845163696,"d":"$34,360,250"}},{"$f":"'Trial 5'!AZ19","v":{"v":34349846.021693915,"d":"$34,349,846"}},{"$f":"'Trial 5'!BB19","v":{"v":34339356.95642029,"d":"$34,339,357"}},{"$f":"'Trial 5'!BC19","v":{"v":34328754.899467595,"d":"$34,328,755"}},{"$f":"'Trial 5'!BD19","v":{"v":34318015.07997256,"d":"$34,318,015"}},{"$f":"'Trial 5'!BE19","v":{"v":34307103.993472315,"d":"$34,307,104"}},{"$f":"'Trial 5'!BF19","v":{"v":34295994.944522254,"d":"$34,295,995"}},{"$f":"'Trial 5'!BG19","v":{"v":34284833.70720277,"d":"$34,284,834"}},{"$f":"'Trial 5'!BH19","v":{"v":34273561.58828669,"d":"$34,273,562"}},{"$f":"'Trial 5'!BI19","v":{"v":34262228.12478232,"d":"$34,262,228"}},{"$f":"'Trial 5'!BJ19","v":{"v":34250735.99815025,"d":"$34,250,736"}},{"$f":"'Trial 5'!BK19","v":{"v":34239191.6517424,"d":"$34,239,192"}},{"$f":"'Trial 5'!BL19","v":{"v":34227652.31711832,"d":"$34,227,652"}},{"$f":"'Trial 5'!BM19","v":{"v":34216068.742396146,"d":"$34,216,069"}},{"$f":"'Trial 5'!BO19","v":{"v":34204493.06623588,"d":"$34,204,493"}},{"$f":"'Trial 5'!BP19","v":{"v":34192867.164602935,"d":"$34,192,867"}},{"$f":"'Trial 5'!BQ19","v":{"v":34181246.866237246,"d":"$34,181,247"}},{"$f":"'Trial 5'!BR19","v":{"v":34169664.66211485,"d":"$34,169,665"}},{"$f":"'Trial 5'!BS19","v":{"v":34158115.1231827,"d":"$34,158,115"}},{"$f":"'Trial 5'!BT19","v":{"v":34146424.964677826,"d":"$34,146,425"}},{"$f":"'Trial 5'!BU19","v":{"v":34134669.4427247,"d":"$34,134,669"}},{"$f":"'Trial 5'!BV19","v":{"v":34122959.80741159,"d":"$34,122,960"}},{"$f":"'Trial 5'!BW19","v":{"v":34111119.55683166,"d":"$34,111,120"}},{"$f":"'Trial 5'!BX19","v":{"v":34099205.49629251,"d":"$34,099,205"}},{"$f":"'Trial 5'!BY19","v":{"v":34087242.77734334,"d":"$34,087,243"}},{"$f":"'Trial 5'!BZ19","v":{"v":34075307.30285405,"d":"$34,075,307"}},{"$f":"'Trial 5'!CB19","v":{"v":34063405.3733337,"d":"$34,063,405"}},{"$f":"'Trial 5'!CC19","v":{"v":34051511.456487745,"d":"$34,051,511"}},{"$f":"'Trial 5'!CD19","v":{"v":34039548.22144714,"d":"$34,039,548"}},{"$f":"'Trial 5'!CE19","v":{"v":34027531.57904265,"d":"$34,027,532"}},{"$f":"'Trial 5'!CF19","v":{"v":34015450.98957317,"d":"$34,015,451"}},{"$f":"'Trial 5'!CG19","v":{"v":34003278.554716155,"d":"$34,003,279"}},{"$f":"'Trial 5'!CH19","v":{"v":33991066.95048645,"d":"$33,991,067"}},{"$f":"'Trial 5'!CI19","v":{"v":33978917.718100354,"d":"$33,978,918"}},{"$f":"'Trial 5'!CJ19","v":{"v":33966673.10048774,"d":"$33,966,673"}},{"$f":"'Trial 5'!CK19","v":{"v":33954323.73997447,"d":"$33,954,324"}},{"$f":"'Trial 5'!CL19","v":{"v":33941948.991735525,"d":"$33,941,949"}},{"$f":"'Trial 5'!CM19","v":{"v":33929633.818678096,"d":"$33,929,634"}},{"$f":"'Trial 5'!CO19","v":{"v":33917210.91762346,"d":"$33,917,211"}},{"$f":"'Trial 5'!CP19","v":{"v":33904776.94925425,"d":"$33,904,777"}},{"$f":"'Trial 5'!CQ19","v":{"v":33892326.02535381,"d":"$33,892,326"}},{"$f":"'Trial 5'!CR19","v":{"v":33879770.19238523,"d":"$33,879,770"}},{"$f":"'Trial 5'!CS19","v":{"v":33867263.95180155,"d":"$33,867,264"}},{"$f":"'Trial 5'!CT19","v":{"v":33854666.90855117,"d":"$33,854,667"}},{"$f":"'Trial 5'!CU19","v":{"v":33842000.273219176,"d":"$33,842,000"}},{"$f":"'Trial 5'!CV19","v":{"v":33829328.911645815,"d":"$33,829,329"}},{"$f":"'Trial 5'!CW19","v":{"v":33816634.79924159,"d":"$33,816,635"}},{"$f":"'Trial 5'!CX19","v":{"v":33803886.50019406,"d":"$33,803,887"}},{"$f":"'Trial 5'!CY19","v":{"v":33791162.13400233,"d":"$33,791,162"}},{"$f":"'Trial 5'!CZ19","v":{"v":33778373.40865305,"d":"$33,778,373"}},{"$f":"'Trial 5'!DB19","v":{"v":33765545.994353265,"d":"$33,765,546"}},{"$f":"'Trial 5'!DC19","v":{"v":33752589.36093344,"d":"$33,752,589"}},{"$f":"'Trial 5'!DD19","v":{"v":33739640.19439949,"d":"$33,739,640"}},{"$f":"'Trial 5'!DE19","v":{"v":33726665.23182844,"d":"$33,726,665"}},{"$f":"'Trial 5'!DF19","v":{"v":33713681.28753844,"d":"$33,713,681"}},{"$f":"'Trial 5'!DG19","v":{"v":33700627.42145437,"d":"$33,700,627"}},{"$f":"'Trial 5'!DH19","v":{"v":33687491.6703549,"d":"$33,687,492"}},{"$f":"'Trial 5'!DI19","v":{"v":33674389.323194735,"d":"$33,674,389"}},{"$f":"'Trial 5'!DJ19","v":{"v":33661365.967722304,"d":"$33,661,366"}},{"$f":"'Trial 5'!DK19","v":{"v":33648319.03038576,"d":"$33,648,319"}},{"$f":"'Trial 5'!DL19","v":{"v":33635189.515361,"d":"$33,635,190"}},{"$f":"'Trial 5'!DM19","v":{"v":33622023.72507807,"d":"$33,622,024"}},{"$f":"'Trial 5'!DO19","v":{"v":33608769.741328456,"d":"$33,608,770"}},{"$f":"'Trial 5'!DP19","v":{"v":33595497.11395284,"d":"$33,595,497"}},{"$f":"'Trial 5'!DQ19","v":{"v":33582171.817708045,"d":"$33,582,172"}},{"$f":"'Trial 5'!DR19","v":{"v":33568824.6647576,"d":"$33,568,825"}},{"$f":"'Trial 5'!DS19","v":{"v":33555553.0294394,"d":"$33,555,553"}},{"$f":"'Trial 5'!DT19","v":{"v":33542306.067130435,"d":"$33,542,306"}},{"$f":"'Trial 5'!DU19","v":{"v":33529071.101260558,"d":"$33,529,071"}},{"$f":"'Trial 5'!DV19","v":{"v":33515880.60310605,"d":"$33,515,881"}},{"$f":"'Trial 5'!DW19","v":{"v":33502619.91889493,"d":"$33,502,620"}},{"$f":"'Trial 5'!DX19","v":{"v":33489347.252840415,"d":"$33,489,347"}},{"$f":"'Trial 5'!DY19","v":{"v":33476105.984430797,"d":"$33,476,106"}},{"$f":"'Trial 5'!DZ19","v":{"v":33462811.878667705,"d":"$33,462,812"}},{"$f":"'Trial 5'!EB19","v":{"v":33449497.78382002,"d":"$33,449,498"}},{"$f":"'Trial 5'!EC19","v":{"v":33436109.004260212,"d":"$33,436,109"}},{"$f":"'Trial 5'!ED19","v":{"v":33422699.968357727,"d":"$33,422,700"}},{"$f":"'Trial 5'!EE19","v":{"v":33409347.071726955,"d":"$33,409,347"}},{"$f":"'Trial 5'!EF19","v":{"v":33395928.70170487,"d":"$33,395,929"}},{"$f":"'Trial 5'!EG19","v":{"v":33382506.02489665,"d":"$33,382,506"}},{"$f":"'Trial 5'!EH19","v":{"v":33369075.606976323,"d":"$33,369,076"}},{"$f":"'Trial 5'!EI19","v":{"v":33355694.83973727,"d":"$33,355,695"}},{"$f":"'Trial 5'!EJ19","v":{"v":33342210.847765967,"d":"$33,342,211"}},{"$f":"'Trial 5'!EK19","v":{"v":33328650.68325212,"d":"$33,328,651"}},{"$f":"'Trial 5'!EL19","v":{"v":33315044.022331666,"d":"$33,315,044"}},{"$f":"'Trial 5'!EM19","v":{"v":33301432.4238129,"d":"$33,301,432"}}]
[{"$f":"'Trial 6'!B19","v":{"v":34645298.42192645,"d":"$34,645,298"}},{"$f":"'Trial 6'!C19","v":{"v":34645298.42192645,"d":"$34,645,298"}},{"$f":"'Trial 6'!D19","v":{"v":34644923.822073504,"d":"$34,644,924"}},{"$f":"'Trial 6'!E19","v":{"v":34644056.48070203,"d":"$34,644,056"}},{"$f":"'Trial 6'!F19","v":{"v":34642885.09300985,"d":"$34,642,885"}},{"$f":"'Trial 6'!G19","v":{"v":34641450.20765154,"d":"$34,641,450"}},{"$f":"'Trial 6'!H19","v":{"v":34639698.007749036,"d":"$34,639,698"}},{"$f":"'Trial 6'!I19","v":{"v":34637558.322842166,"d":"$34,637,558"}},{"$f":"'Trial 6'!J19","v":{"v":34635078.67675367,"d":"$34,635,079"}},{"$f":"'Trial 6'!K19","v":{"v":34632266.19617874,"d":"$34,632,266"}},{"$f":"'Trial 6'!L19","v":{"v":34629204.555582665,"d":"$34,629,205"}},{"$f":"'Trial 6'!M19","v":{"v":34625835.80034882,"d":"$34,625,836"}},{"$f":"'Trial 6'!O19","v":{"v":34622268.35430166,"d":"$34,622,268"}},{"$f":"'Trial 6'!P19","v":{"v":34618405.40718739,"d":"$34,618,405"}},{"$f":"'Trial 6'!Q19","v":{"v":34614339.63829779,"d":"$34,614,340"}},{"$f":"'Trial 6'!R19","v":{"v":34609977.52831908,"d":"$34,609,978"}},{"$f":"'Trial 6'!S19","v":{"v":34605427.47807583,"d":"$34,605,427"}},{"$f":"'Trial 6'!T19","v":{"v":34600667.956576295,"d":"$34,600,668"}},{"$f":"'Trial 6'!U19","v":{"v":34595543.56538346,"d":"$34,595,544"}},{"$f":"'Trial 6'!V19","v":{"v":34590151.73485268,"d":"$34,590,152"}},{"$f":"'Trial 6'!W19","v":{"v":34584557.286383085,"d":"$34,584,557"}},{"$f":"'Trial 6'!X19","v":{"v":34578681.72230701,"d":"$34,578,682"}},{"$f":"'Trial 6'!Y19","v":{"v":34572546.938798964,"d":"$34,572,547"}},{"$f":"'Trial 6'!Z19","v":{"v":34566213.835987076,"d":"$34,566,214"}},{"$f":"'Trial 6'!AB19","v":{"v":34559723.707526624,"d":"$34,559,724"}},{"$f":"'Trial 6'!AC19","v":{"v":34552961.09903787,"d":"$34,552,961"}},{"$f":"'Trial 6'!AD19","v":{"v":34546010.30439607,"d":"$34,546,010"}},{"$f":"'Trial 6'!AE19","v":{"v":34538897.39392567,"d":"$34,538,897"}},{"$f":"'Trial 6'!AF19","v":{"v":34531661.926067784,"d":"$34,531,662"}},{"$f":"'Trial 6'!AG19","v":{"v":34524259.27706782,"d":"$34,524,259"}},{"$f":"'Trial 6'!AH19","v":{"v":34516742.228068046,"d":"$34,516,742"}},{"$f":"'Trial 6'!AI19","v":{"v":34509062.40029193,"d":"$34,509,062"}},{"$f":"'Trial 6'!AJ19","v":{"v":34501258.096675865,"d":"$34,501,258"}},{"$f":"'Trial 6'!AK19","v":{"v":34493268.72451128,"d":"$34,493,269"}},{"$f":"'Trial 6'!AL19","v":{"v":34485069.539071806,"d":"$34,485,070"}},{"$f":"'Trial 6'!AM19","v":{"v":34476716.728028215,"d":"$34,476,717"}},{"$f":"'Trial 6'!AO19","v":{"v":34468265.48471156,"d":"$34,468,265"}},{"$f":"'Trial 6'!AP19","v":{"v":34459752.818181545,"d":"$34,459,753"}},{"$f":"'Trial 6'!AQ19","v":{"v":34451107.94685546,"d":"$34,451,108"}},{"$f":"'Trial 6'!AR19","v":{"v":34442297.78306675,"d":"$34,442,298"}},{"$f":"'Trial 6'!AS19","v":{"v":34433306.1682469,"d":"$34,433,306"}},{"$f":"'Trial 6'!AT19","v":{"v":34424185.427676834,"d":"$34,424,185"}},{"$f":"'Trial 6'!AU19","v":{"v":34414909.161032766,"d":"$34,414,909"}},{"$f":"'Trial 6'!AV19","v":{"v":34405457.87112853,"d":"$34,405,458"}},{"$f":"'Trial 6'!AW19","v":{"v":34395773.81559365,"d":"$34,395,774"}},{"$f":"'Trial 6'!AX19","v":{"v":34385985.374484174,"d":"$34,385,985"}},{"$f":"'Trial 6'!AY19","v":{"v":34376044.74925988,"d":"$34,376,045"}},{"$f":"'Trial 6'!AZ19","v":{"v":34365911.30749636,"d":"$34,365,911"}},{"$f":"'Trial 6'!BB19","v":{"v":34355698.0190026,"d":"$34,355,698"}},{"$f":"'Trial 6'!BC19","v":{"v":34345461.565287665,"d":"$34,345,462"}},{"$f":"'Trial 6'!BD19","v":{"v":34335013.94714758,"d":"$34,335,014"}},{"$f":"'Trial 6'!BE19","v":{"v":34324406.62815905,"d":"$34,324,407"}},{"$f":"'Trial 6'!BF19","v":{"v":34313665.06692009,"d":"$34,313,665"}},{"$f":"'Trial 6'!BG19","v":{"v":34302779.775289744,"d":"$34,302,780"}},{"$f":"'Trial 6'!BH19","v":{"v":34291801.1093198,"d":"$34,291,801"}},{"$f":"'Trial 6'!BI19","v":{"v":34280759.66065114,"d":"$34,280,760"}},{"$f":"'Trial 6'!BJ19","v":{"v":34269689.59870798,"d":"$34,269,690"}},{"$f":"'Trial 6'!BK19","v":{"v":34258494.21569504,"d":"$34,258,494"}},{"$f":"'Trial 6'!BL19","v":{"v":34247311.6686179,"d":"$34,247,312"}},{"$f":"'Trial 6'!BM19","v":{"v":34236070.73271626,"d":"$34,236,071"}},{"$f":"'Trial 6'!BO19","v":{"v":34224657.4890297,"d":"$34,224,657"}},{"$f":"'Trial 6'!BP19","v":{"v":34213193.5541835,"d":"$34,213,194"}},{"$f":"'Trial 6'!BQ19","v":{"v":34201549.85200753,"d":"$34,201,550"}},{"$f":"'Trial 6'!BR19","v":{"v":34189816.107830636,"d":"$34,189,816"}},{"$f":"'Trial 6'!BS19","v":{"v":34177984.01466641,"d":"$34,177,984"}},{"$f":"'Trial 6'!BT19","v":{"v":34166032.66966442,"d":"$34,166,033"}},{"$f":"'Trial 6'!BU19","v":{"v":34153912.01419839,"d":"$34,153,912"}},{"$f":"'Trial 6'!BV19","v":{"v":34141800.387878224,"d":"$34,141,800"}},{"$f":"'Trial 6'!BW19","v":{"v":34129637.37393055,"d":"$34,129,637"}},{"$f":"'Trial 6'!BX19","v":{"v":34117452.05594607,"d":"$34,117,452"}},{"$f":"'Trial 6'!BY19","v":{"v":34105265.12274018,"d":"$34,105,265"}},{"$f":"'Trial 6'!BZ19","v":{"v":34092972.51831625,"d":"$34,092,973"}},{"$f":"'Trial 6'!CB19","v":{"v":34080725.85194631,"d":"$34,080,726"}},{"$f":"'Trial 6'!CC19","v":{"v":34068483.08556624,"d":"$34,068,483"}},{"$f":"'Trial 6'!CD19","v":{"v":34056195.48044282,"d":"$34,056,195"}},{"$f":"'Trial 6'!CE19","v":{"v":34043848.76439145,"d":"$34,043,849"}},{"$f":"'Trial 6'!CF19","v":{"v":34031551.35532372,"d":"$34,031,551"}},{"$f":"'Trial 6'!CG19","v":{"v":34019186.23269082,"d":"$34,019,186"}},{"$f":"'Trial 6'!CH19","v":{"v":34006747.094163835,"d":"$34,006,747"}},{"$f":"'Trial 6'!CI19","v":{"v":33994314.94416161,"d":"$33,994,315"}},{"$f":"'Trial 6'!CJ19","v":{"v":33981886.27945413,"d":"$33,981,886"}},{"$f":"'Trial 6'!CK19","v":{"v":33969487.06539982,"d":"$33,969,487"}},{"$f":"'Trial 6'!CL19","v":{"v":33957047.8672912,"d":"$33,957,048"}},{"$f":"'Trial 6'!CM19","v":{"v":33944594.36112273,"d":"$33,944,594"}},{"$f":"'Trial 6'!CO19","v":{"v":33932168.961192146,"d":"$33,932,169"}},{"$f":"'Trial 6'!CP19","v":{"v":33919754.0216416,"d":"$33,919,754"}},{"$f":"'Trial 6'!CQ19","v":{"v":33907311.45407148,"d":"$33,907,311"}},{"$f":"'Trial 6'!CR19","v":{"v":33894896.50642208,"d":"$33,894,897"}},{"$f":"'Trial 6'!CS19","v":{"v":33882442.0579311,"d":"$33,882,442"}},{"$f":"'Trial 6'!CT19","v":{"v":33869951.082575746,"d":"$33,869,951"}},{"$f":"'Trial 6'!CU19","v":{"v":33857368.94899254,"d":"$33,857,369"}},{"$f":"'Trial 6'!CV19","v":{"v":33844706.247820854,"d":"$33,844,706"}},{"$f":"'Trial 6'!CW19","v":{"v":33832105.22143594,"d":"$33,832,105"}},{"$f":"'Trial 6'!CX19","v":{"v":33819403.17391226,"d":"$33,819,403"}},{"$f":"'Trial 6'!CY19","v":{"v":33806758.257809445,"d":"$33,806,758"}},{"$f":"'Trial 6'!CZ19","v":{"v":33794096.23935769,"d":"$33,794,096"}},{"$f":"'Trial 6'!DB19","v":{"v":33781347.569807835,"d":"$33,781,348"}},{"$f":"'Trial 6'!DC19","v":{"v":33768597.42139226,"d":"$33,768,597"}},{"$f":"'Trial 6'!DD19","v":{"v":33755852.81485929,"d":"$33,755,853"}},{"$f":"'Trial 6'!DE19","v":{"v":33742978.23747992,"d":"$33,742,978"}},{"$f":"'Trial 6'!DF19","v":{"v":33730039.96757815,"d":"$33,730,040"}},{"$f":"'Trial 6'!DG19","v":{"v":33717073.76923213,"d":"$33,717,074"}},{"$f":"'Trial 6'!DH19","v":{"v":33703995.62674019,"d":"$33,703,996"}},{"$f":"'Trial 6'!DI19","v":{"v":33690877.645343415,"d":"$33,690,878"}},{"$f":"'Trial 6'!DJ19","v":{"v":33677664.44225659,"d":"$33,677,664"}},{"$f":"'Trial 6'!DK19","v":{"v":33664353.67400015,"d":"$33,664,354"}},{"$f":"'Trial 6'!DL19","v":{"v":33650927.52314243,"d":"$33,650,928"}},{"$f":"'Trial 6'!DM19","v":{"v":33637497.053980954,"d":"$33,637,497"}},{"$f":"'Trial 6'!DO19","v":{"v":33624001.13194871,"d":"$33,624,001"}},{"$f":"'Trial 6'!DP19","v":{"v":33610470.63338558,"d":"$33,610,471"}},{"$f":"'Trial 6'!DQ19","v":{"v":33596995.75504492,"d":"$33,596,996"}},{"$f":"'Trial 6'!DR19","v":{"v":33583464.177583344,"d":"$33,583,464"}},{"$f":"'Trial 6'!DS19","v":{"v":33569883.62600103,"d":"$33,569,884"}},{"$f":"'Trial 6'!DT19","v":{"v":33556292.873310216,"d":"$33,556,293"}},{"$f":"'Trial 6'!DU19","v":{"v":33542681.98809288,"d":"$33,542,682"}},{"$f":"'Trial 6'!DV19","v":{"v":33529099.443392757,"d":"$33,529,099"}},{"$f":"'Trial 6'!DW19","v":{"v":33515572.015903294,"d":"$33,515,572"}},{"$f":"'Trial 6'!DX19","v":{"v":33502108.955466956,"d":"$33,502,109"}},{"$f":"'Trial 6'!DY19","v":{"v":33488646.020398237,"d":"$33,488,646"}},{"$f":"'Trial 6'!DZ19","v":{"v":33475218.803981837,"d":"$33,475,219"}},{"$f":"'Trial 6'!EB19","v":{"v":33461765.267154947,"d":"$33,461,765"}},{"$f":"'Trial 6'!EC19","v":{"v":33448293.760248914,"d":"$33,448,294"}},{"$f":"'Trial 6'!ED19","v":{"v":33434875.345837418,"d":"$33,434,875"}},{"$f":"'Trial 6'!EE19","v":{"v":33421446.011690304,"d":"$33,421,446"}},{"$f":"'Trial 6'!EF19","v":{"v":33408033.05381002,"d":"$33,408,033"}},{"$f":"'Trial 6'!EG19","v":{"v":33394653.719981678,"d":"$33,394,654"}},{"$f":"'Trial 6'!EH19","v":{"v":33381258.14066035,"d":"$33,381,258"}},{"$f":"'Trial 6'!EI19","v":{"v":33367873.881030902,"d":"$33,367,874"}},{"$f":"'Trial 6'!EJ19","v":{"v":33354473.175149888,"d":"$33,354,473"}},{"$f":"'Trial 6'!EK19","v":{"v":33341082.531947494,"d":"$33,341,083"}},{"$f":"'Trial 6'!EL19","v":{"v":33327753.535098612,"d":"$33,327,754"}},{"$f":"'Trial 6'!EM19","v":{"v":33314509.474009573,"d":"$33,314,509"}}]
[{"$f":"'Trial 7'!B19","v":{"v":34645298.42192645,"d":"$34,645,298"}},{"$f":"'Trial 7'!C19","v":{"v":34645298.42192645,"d":"$34,645,298"}},{"$f":"'Trial 7'!D19","v":{"v":34644855.444051616,"d":"$34,644,855"}},{"$f":"'Trial 7'!E19","v":{"v":34644083.063892804,"d":"$34,644,083"}},{"$f":"'Trial 7'!F19","v":{"v":34642974.714726865,"d":"$34,642,975"}},{"$f":"'Trial 7'!G19","v":{"v":34641494.4383782,"d":"$34,641,494"}},{"$f":"'Trial 7'!H19","v":{"v":34639728.319252394,"d":"$34,639,728"}},{"$f":"'Trial 7'!I19","v":{"v":34637687.557154536,"d":"$34,637,688"}},{"$f":"'Trial 7'!J19","v":{"v":34635375.49587171,"d":"$34,635,375"}},{"$f":"'Trial 7'!K19","v":{"v":34632815.75770805,"d":"$34,632,816"}},{"$f":"'Trial 7'!L19","v":{"v":34629922.71103756,"d":"$34,629,923"}},{"$f":"'Trial 7'!M19","v":{"v":34626676.890696995,"d":"$34,626,677"}},{"$f":"'Trial 7'!O19","v":{"v":34623125.980857074,"d":"$34,623,126"}},{"$f":"'Trial 7'!P19","v":{"v":34619266.47713891,"d":"$34,619,266"}},{"$f":"'Trial 7'!Q19","v":{"v":34615135.49459439,"d":"$34,615,135"}},{"$f":"'Trial 7'!R19","v":{"v":34610800.71360592,"d":"$34,610,801"}},{"$f":"'Trial 7'!S19","v":{"v":34606261.073790275,"d":"$34,606,261"}},{"$f":"'Trial 7'!T19","v":{"v":34601505.47088074,"d":"$34,601,505"}},{"$f":"'Trial 7'!U19","v":{"v":34596514.52587519,"d":"$34,596,515"}},{"$f":"'Trial 7'!V19","v":{"v":34591330.68101418,"d":"$34,591,331"}},{"$f":"'Trial 7'!W19","v":{"v":34585892.28617897,"d":"$34,585,892"}},{"$f":"'Trial 7'!X19","v":{"v":34580275.81926943,"d":"$34,580,276"}},{"$f":"'Trial 7'!Y19","v":{"v":34574508.87243591,"d":"$34,574,509"}},{"$f":"'Trial 7'!Z19","v":{"v":34568568.01029219,"d":"$34,568,568"}},{"$f":"'Trial 7'!AB19","v":{"v":34562407.21772806,"d":"$34,562,407"}},{"$f":"'Trial 7'!AC19","v":{"v":34555935.8996679,"d":"$34,555,936"}},{"$f":"'Trial 7'!AD19","v":{"v":34549154.26890592,"d":"$34,549,154"}},{"$f":"'Trial 7'!AE19","v":{"v":34542170.8488366,"d":"$34,542,171"}},{"$f":"'Trial 7'!AF19","v":{"v":34535018.249647364,"d":"$34,535,018"}},{"$f":"'Trial 7'!AG19","v":{"v":34527735.01061943,"d":"$34,527,735"}},{"$f":"'Trial 7'!AH19","v":{"v":34520227.23699492,"d":"$34,520,227"}},{"$f":"'Trial 7'!AI19","v":{"v":34512577.63172161,"d":"$34,512,578"}},{"$f":"'Trial 7'!AJ19","v":{"v":34504785.003511935,"d":"$34,504,785"}},{"$f":"'Trial 7'!AK19","v":{"v":34496751.15675534,"d":"$34,496,751"}},{"$f":"'Trial 7'!AL19","v":{"v":34488533.6564636,"d":"$34,488,534"}},{"$f":"'Trial 7'!AM19","v":{"v":34480158.88495251,"d":"$34,480,159"}},{"$f":"'Trial 7'!AO19","v":{"v":34471636.66728631,"d":"$34,471,637"}},{"$f":"'Trial 7'!AP19","v":{"v":34462926.91625874,"d":"$34,462,927"}},{"$f":"'Trial 7'!AQ19","v":{"v":34454007.69621754,"d":"$34,454,008"}},{"$f":"'Trial 7'!AR19","v":{"v":34444933.02990531,"d":"$34,444,933"}},{"$f":"'Trial 7'!AS19","v":{"v":34435772.14742343,"d":"$34,435,772"}},{"$f":"'Trial 7'!AT19","v":{"v":34426523.23014947,"d":"$34,426,523"}},{"$f":"'Trial 7'!AU19","v":{"v":34417236.81672178,"d":"$34,417,237"}},{"$f":"'Trial 7'!AV19","v":{"v":34407775.33962773,"d":"$34,407,775"}},{"$f":"'Trial 7'!AW19","v":{"v":34398176.39967083,"d":"$34,398,176"}},{"$f":"'Trial 7'!AX19","v":{"v":34388441.461466365,"d":"$34,388,441"}},{"$f":"'Trial 7'!AY19","v":{"v":34378547.33766647,"d":"$34,378,547"}},{"$f":"'Trial 7'!AZ19","v":{"v":34368474.99884059,"d":"$34,368,475"}},{"$f":"'Trial 7'!BB19","v":{"v":34358243.930653915,"d":"$34,358,244"}},{"$f":"'Trial 7'!BC19","v":{"v":34347821.376790844,"d":"$34,347,821"}},{"$f":"'Trial 7'!BD19","v":{"v":34337270.99172051,"d":"$34,337,271"}},{"$f":"'Trial 7'!BE19","v":{"v":34326591.44775167,"d":"$34,326,591"}},{"$f":"'Trial 7'!BF19","v":{"v":34315843.89535154,"d":"$34,315,844"}},{"$f":"'Trial 7'!BG19","v":{"v":34304983.64118202,"d":"$34,304,984"}},{"$f":"'Trial 7'!BH19","v":{"v":34294059.54864378,"d":"$34,294,060"}},{"$f":"'Trial 7'!BI19","v":{"v":34283112.88205611,"d":"$34,283,113"}},{"$f":"'Trial 7'!BJ19","v":{"v":34272019.72246567,"d":"$34,272,020"}},{"$f":"'Trial 7'!BK19","v":{"v":34260838.54386407,"d":"$34,260,839"}},{"$f":"'Trial 7'!BL19","v":{"v":34249541.06284008,"d":"$34,249,541"}},{"$f":"'Trial 7'!BM19","v":{"v":34238086.255294204,"d":"$34,238,086"}},{"$f":"'Trial 7'!BO19","v":{"v":34226527.129845604,"d":"$34,226,527"}},{"$f":"'Trial 7'!BP19","v":{"v":34214931.48717228,"d":"$34,214,931"}},{"$f":"'Trial 7'!BQ19","v":{"v":34203232.31254768,"d":"$34,203,232"}},{"$f":"'Trial 7'!BR19","v":{"v":34191370.091901176,"d":"$34,191,370"}},{"$f":"'Trial 7'!BS19","v":{"v":34179482.54523972,"d":"$34,179,483"}},{"$f":"'Trial 7'!BT19","v":{"v":34167568.388214566,"d":"$34,167,568"}},{"$f":"'Trial 7'!BU19","v":{"v":34155660.780701935,"d":"$34,155,661"}},{"$f":"'Trial 7'!BV19","v":{"v":34143773.33392228,"d":"$34,143,773"}},{"$f":"'Trial 7'!BW19","v":{"v":34131881.80924387,"d":"$34,131,882"}},{"$f":"'Trial 7'!BX19","v":{"v":34119875.80309973,"d":"$34,119,876"}},{"$f":"'Trial 7'!BY19","v":{"v":34107892.91942051,"d":"$34,107,893"}},{"$f":"'Trial 7'!BZ19","v":{"v":34095804.34502214,"d":"$34,095,804"}},{"$f":"'Trial 7'!CB19","v":{"v":34083578.597043216,"d":"$34,083,579"}},{"$f":"'Trial 7'!CC19","v":{"v":34071184.036177464,"d":"$34,071,184"}},{"$f":"'Trial 7'!CD19","v":{"v":34058733.55758766,"d":"$34,058,734"}},{"$f":"'Trial 7'!CE19","v":{"v":34046281.04977651,"d":"$34,046,281"}},{"$f":"'Trial 7'!CF19","v":{"v":34033835.87776836,"d":"$34,033,836"}},{"$f":"'Trial 7'!CG19","v":{"v":34021231.52945328,"d":"$34,021,232"}},{"$f":"'Trial 7'!CH19","v":{"v":34008552.973240845,"d":"$34,008,553"}},{"$f":"'Trial 7'!CI19","v":{"v":33995883.845260896,"d":"$33,995,884"}},{"$f":"'Trial 7'!CJ19","v":{"v":33983057.215534024,"d":"$33,983,057"}},{"$f":"'Trial 7'!CK19","v":{"v":33970138.48771601,"d":"$33,970,138"}},{"$f":"'Trial 7'!CL19","v":{"v":33957304.173652016,"d":"$33,957,304"}},{"$f":"'Trial 7'!CM19","v":{"v":33944538.561058834,"d":"$33,944,539"}},{"$f":"'Trial 7'!CO19","v":{"v":33931724.75522766,"d":"$33,931,725"}},{"$f":"'Trial 7'!CP19","v":{"v":33918936.12488627,"d":"$33,918,936"}},{"$f":"'Trial 7'!CQ19","v":{"v":33906221.77209282,"d":"$33,906,222"}},{"$f":"'Trial 7'!CR19","v":{"v":33893461.318045974,"d":"$33,893,461"}},{"$f":"'Trial 7'!CS19","v":{"v":33880698.70621871,"d":"$33,880,699"}},{"$f":"'Trial 7'!CT19","v":{"v":33867947.307878315,"d":"$33,867,947"}},{"$f":"'Trial 7'!CU19","v":{"v":33855166.13051521,"d":"$33,855,166"}},{"$f":"'Trial 7'!CV19","v":{"v":33842343.47478344,"d":"$33,842,343"}},{"$f":"'Trial 7'!CW19","v":{"v":33829546.028211325,"d":"$33,829,546"}},{"$f":"'Trial 7'!CX19","v":{"v":33816711.576814696,"d":"$33,816,712"}},{"$f":"'Trial 7'!CY19","v":{"v":33803834.68555838,"d":"$33,803,835"}},{"$f":"'Trial 7'!CZ19","v":{"v":33790843.46152672,"d":"$33,790,843"}},{"$f":"'Trial 7'!DB19","v":{"v":33777752.74882419,"d":"$33,777,753"}},{"$f":"'Trial 7'!DC19","v":{"v":33764665.997218385,"d":"$33,764,666"}},{"$f":"'Trial 7'!DD19","v":{"v":33751647.91070854,"d":"$33,751,648"}},{"$f":"'Trial 7'!DE19","v":{"v":33738668.47482319,"d":"$33,738,668"}},{"$f":"'Trial 7'!DF19","v":{"v":33725670.67649245,"d":"$33,725,671"}},{"$f":"'Trial 7'!DG19","v":{"v":33712673.53889692,"d":"$33,712,674"}},{"$f":"'Trial 7'!DH19","v":{"v":33699667.65819441,"d":"$33,699,668"}},{"$f":"'Trial 7'!DI19","v":{"v":33686557.16817606,"d":"$33,686,557"}},{"$f":"'Trial 7'!DJ19","v":{"v":33673337.23705782,"d":"$33,673,337"}},{"$f":"'Trial 7'!DK19","v":{"v":33660102.70846551,"d":"$33,660,103"}},{"$f":"'Trial 7'!DL19","v":{"v":33646843.32964958,"d":"$33,646,843"}},{"$f":"'Trial 7'!DM19","v":{"v":33633478.05808525,"d":"$33,633,478"}},{"$f":"'Trial 7'!DO19","v":{"v":33620105.222228624,"d":"$33,620,105"}},{"$f":"'Trial 7'!DP19","v":{"v":33606729.23425715,"d":"$33,606,729"}},{"$f":"'Trial 7'!DQ19","v":{"v":33593287.86726512,"d":"$33,593,288"}},{"$f":"'Trial 7'!DR19","v":{"v":33579827.938375,"d":"$33,579,828"}},{"$f":"'Trial 7'!DS19","v":{"v":33566346.565302245,"d":"$33,566,347"}},{"$f":"'Trial 7'!DT19","v":{"v":33552783.791921023,"d":"$33,552,784"}},{"$f":"'Trial 7'!DU19","v":{"v":33539231.698721804,"d":"$33,539,232"}},{"$f":"'Trial 7'!DV19","v":{"v":33525606.049839087,"d":"$33,525,606"}},{"$f":"'Trial 7'!DW19","v":{"v":33511938.643041346,"d":"$33,511,939"}},{"$f":"'Trial 7'!DX19","v":{"v":33498309.92209178,"d":"$33,498,310"}},{"$f":"'Trial 7'!DY19","v":{"v":33484790.8281451,"d":"$33,484,791"}},{"$f":"'Trial 7'!DZ19","v":{"v":33471173.16946153,"d":"$33,471,173"}},{"$f":"'Trial 7'!EB19","v":{"v":33457508.81065573,"d":"$33,457,509"}},{"$f":"'Trial 7'!EC19","v":{"v":33443770.923040155,"d":"$33,443,771"}},{"$f":"'Trial 7'!ED19","v":{"v":33430099.575378526,"d":"$33,430,100"}},{"$f":"'Trial 7'!EE19","v":{"v":33416361.368617587,"d":"$33,416,361"}},{"$f":"'Trial 7'!EF19","v":{"v":33402615.84392561,"d":"$33,402,616"}},{"$f":"'Trial 7'!EG19","v":{"v":33388888.314339925,"d":"$33,388,888"}},{"$f":"'Trial 7'!EH19","v":{"v":33375099.185898867,"d":"$33,375,099"}},{"$f":"'Trial 7'!EI19","v":{"v":33361196.284333996,"d":"$33,361,196"}},{"$f":"'Trial 7'!EJ19","v":{"v":33347198.337785818,"d":"$33,347,198"}},{"$f":"'Trial 7'!EK19","v":{"v":33333235.563275963,"d":"$33,333,236"}},{"$f":"'Trial 7'!EL19","v":{"v":33319317.300238494,"d":"$33,319,317"}},{"$f":"'Trial 7'!EM19","v":{"v":33305397.19492676,"d":"$33,305,397"}}]
[{"$f":"'Trial 8'!B19","v":{"v":34645298.42192645,"d":"$34,645,298"}},{"$f":"'Trial 8'!C19","v":{"v":34645298.42192645,"d":"$34,645,298"}},{"$f":"'Trial 8'!D19","v":{"v":34644818.9478989,"d":"$34,644,819"}},{"$f":"'Trial 8'!E19","v":{"v":34643941.25214348,"d":"$34,643,941"}},{"$f":"'Trial 8'!F19","v":{"v":34642698.98007875,"d":"$34,642,699"}},{"$f":"'Trial 8'!G19","v":{"v":34641123.0678708,"d":"$34,641,123"}},{"$f":"'Trial 8'!H19","v":{"v":34639313.51305271,"d":"$34,639,314"}},{"$f":"'Trial 8'!I19","v":{"v":34637198.077892326,"d":"$34,637,198"}},{"$f":"'Trial 8'!J19","v":{"v":34634748.00352149,"d":"$34,634,748"}},{"$f":"'Trial 8'!K19","v":{"v":34632019.30099819,"d":"$34,632,019"}},{"$f":"'Trial 8'!L19","v":{"v":34628910.62987789,"d":"$34,628,911"}},{"$f":"'Trial 8'!M19","v":{"v":34625543.40672316,"d":"$34,625,543"}},{"$f":"'Trial 8'!O19","v":{"v":34621807.026619695,"d":"$34,621,807"}},{"$f":"'Trial 8'!P19","v":{"v":34617796.51588222,"d":"$34,617,797"}},{"$f":"'Trial 8'!Q19","v":{"v":34613601.08181109,"d":"$34,613,601"}},{"$f":"'Trial 8'!R19","v":{"v":34609081.551652685,"d":"$34,609,082"}},{"$f":"'Trial 8'!S19","v":{"v":34604201.03410282,"d":"$34,604,201"}},{"$f":"'Trial 8'!T19","v":{"v":34599091.12033125,"d":"$34,599,091"}},{"$f":"'Trial 8'!U19","v":{"v":34593736.73275613,"d":"$34,593,737"}},{"$f":"'Trial 8'!V19","v":{"v":34588235.78355255,"d":"$34,588,236"}},{"$f":"'Trial 8'!W19","v":{"v":34582489.912840985,"d":"$34,582,490"}},{"$f":"'Trial 8'!X19","v":{"v":34576521.412589006,"d":"$34,576,521"}},{"$f":"'Trial 8'!Y19","v":{"v":34570413.80760159,"d":"$34,570,414"}},{"$f":"'Trial 8'!Z19","v":{"v":34564034.88060745,"d":"$34,564,035"}},{"$f":"'Trial 8'!AB19","v":{"v":34557365.93399745,"d":"$34,557,366"}},{"$f":"'Trial 8'!AC19","v":{"v":34550450.081058994,"d":"$34,550,450"}},{"$f":"'Trial 8'!AD19","v":{"v":34543336.16947933,"d":"$34,543,336"}},{"$f":"'Trial 8'!AE19","v":{"v":34536035.25339174,"d":"$34,536,035"}},{"$f":"'Trial 8'!AF19","v":{"v":34528509.18470005,"d":"$34,528,509"}},{"$f":"'Trial 8'!AG19","v":{"v":34520787.965976395,"d":"$34,520,788"}},{"$f":"'Trial 8'!AH19","v":{"v":34512832.55924951,"d":"$34,512,833"}},{"$f":"'Trial 8'!AI19","v":{"v":34504666.210901126,"d":"$34,504,666"}},{"$f":"'Trial 8'!AJ19","v":{"v":34496371.93141429,"d":"$34,496,372"}},{"$f":"'Trial 8'!AK19","v":{"v":34487944.16628576,"d":"$34,487,944"}},{"$f":"'Trial 8'!AL19","v":{"v":34479327.216203585,"d":"$34,479,327"}},{"$f":"'Trial 8'!AM19","v":{"v":34470560.11493281,"d":"$34,470,560"}},{"$f":"'Trial 8'!AO19","v":{"v":34461719.839171566,"d":"$34,461,720"}},{"$f":"'Trial 8'!AP19","v":{"v":34452801.83466973,"d":"$34,452,802"}},{"$f":"'Trial 8'!AQ19","v":{"v":34443800.107814476,"d":"$34,443,800"}},{"$f":"'Trial 8'!AR19","v":{"v":34434663.80988296,"d":"$34,434,664"}},{"$f":"'Trial 8'!AS19","v":{"v":34425393.6948226,"d":"$34,425,394"}},{"$f":"'Trial 8'!AT19","v":{"v":34415925.25730729,"d":"$34,415,925"}},{"$f":"'Trial 8'!AU19","v":{"v":34406265.44357372,"d":"$34,406,265"}},{"$f":"'Trial 8'!AV19","v":{"v":34396461.727635786,"d":"$34,396,462"}},{"$f":"'Trial 8'!AW19","v":{"v":34386571.64541323,"d":"$34,386,572"}},{"$f":"'Trial 8'!AX19","v":{"v":34376570.40616371,"d":"$34,376,570"}},{"$f":"'Trial 8'!AY19","v":{"v":34366467.811088175,"d":"$34,366,468"}},{"$f":"'Trial 8'!AZ19","v":{"v":34356258.72467784,"d":"$34,356,259"}},{"$f":"'Trial 8'!BB19","v":{"v":34345969.93382923,"d":"$34,345,970"}},{"$f":"'Trial 8'!BC19","v":{"v":34335591.83363421,"d":"$34,335,592"}},{"$f":"'Trial 8'!BD19","v":{"v":34325082.98824446,"d":"$34,325,083"}},{"$f":"'Trial 8'!BE19","v":{"v":34314533.468646646,"d":"$34,314,533"}},{"$f":"'Trial 8'!BF19","v":{"v":34303962.98846958,"d":"$34,303,963"}},{"$f":"'Trial 8'!BG19","v":{"v":34293320.51260496,"d":"$34,293,321"}},{"$f":"'Trial 8'!BH19","v":{"v":34282604.44957902,"d":"$34,282,604"}},{"$f":"'Trial 8'!BI19","v":{"v":34271861.33100096,"d":"$34,271,861"}},{"$f":"'Trial 8'!BJ19","v":{"v":34260980.651324816,"d":"$34,260,981"}},{"$f":"'Trial 8'!BK19","v":{"v":34250010.5288663,"d":"$34,250,011"}},{"$f":"'Trial 8'!BL19","v":{"v":34238991.25123538,"d":"$34,238,991"}},{"$f":"'Trial 8'!BM19","v":{"v":34227919.41026653,"d":"$34,227,919"}},{"$f":"'Trial 8'!BO19","v":{"v":34216799.54177377,"d":"$34,216,800"}},{"$f":"'Trial 8'!BP19","v":{"v":34205584.95470524,"d":"$34,205,585"}},{"$f":"'Trial 8'!BQ19","v":{"v":34194334.08838162,"d":"$34,194,334"}},{"$f":"'Trial 8'!BR19","v":{"v":34183083.84411962,"d":"$34,183,084"}},{"$f":"'Trial 8'!BS19","v":{"v":34171810.03000772,"d":"$34,171,810"}},{"$f":"'Trial 8'!BT19","v":{"v":34160565.07159144,"d":"$34,160,565"}},{"$f":"'Trial 8'!BU19","v":{"v":34149277.216242,"d":"$34,149,277"}},{"$f":"'Trial 8'!BV19","v":{"v":34137916.2350187,"d":"$34,137,916"}},{"$f":"'Trial 8'!BW19","v":{"v":34126509.55217512,"d":"$34,126,510"}},{"$f":"'Trial 8'!BX19","v":{"v":34115111.20078092,"d":"$34,115,111"}},{"$f":"'Trial 8'!BY19","v":{"v":34103692.74127949,"d":"$34,103,693"}},{"$f":"'Trial 8'!BZ19","v":{"v":34092253.138897784,"d":"$34,092,253"}},{"$f":"'Trial 8'!CB19","v":{"v":34080724.68351236,"d":"$34,080,725"}},{"$f":"'Trial 8'!CC19","v":{"v":34069046.8656592,"d":"$34,069,047"}},{"$f":"'Trial 8'!CD19","v":{"v":34057277.74989537,"d":"$34,057,278"}},{"$f":"'Trial 8'!CE19","v":{"v":34045449.69506713,"d":"$34,045,450"}},{"$f":"'Trial 8'!CF19","v":{"v":34033497.07215424,"d":"$34,033,497"}},{"$f":"'Trial 8'!CG19","v":{"v":34021503.060035415,"d":"$34,021,503"}},{"$f":"'Trial 8'!CH19","v":{"v":34009444.73395853,"d":"$34,009,445"}},{"$f":"'Trial 8'!CI19","v":{"v":33997441.98158523,"d":"$33,997,442"}},{"$f":"'Trial 8'!CJ19","v":{"v":33985389.439226925,"d":"$33,985,389"}},{"$f":"'Trial 8'!CK19","v":{"v":33973242.45353196,"d":"$33,973,242"}},{"$f":"'Trial 8'!CL19","v":{"v":33961079.949889615,"d":"$33,961,080"}},{"$f":"'Trial 8'!CM19","v":{"v":33948921.734547734,"d":"$33,948,922"}},{"$f":"'Trial 8'!CO19","v":{"v":33936651.48980192,"d":"$33,936,651"}},{"$f":"'Trial 8'!CP19","v":{"v":33924411.89324947,"d":"$33,924,412"}},{"$f":"'Trial 8'!CQ19","v":{"v":33912205.18816405,"d":"$33,912,205"}},{"$f":"'Trial 8'!CR19","v":{"v":33899965.48499453,"d":"$33,899,965"}},{"$f":"'Trial 8'!CS19","v":{"v":33887718.33740305,"d":"$33,887,718"}},{"$f":"'Trial 8'!CT19","v":{"v":33875458.4595752,"d":"$33,875,458"}},{"$f":"'Trial 8'!CU19","v":{"v":33863031.68047823,"d":"$33,863,032"}},{"$f":"'Trial 8'!CV19","v":{"v":33850554.86554838,"d":"$33,850,555"}},{"$f":"'Trial 8'!CW19","v":{"v":33838102.771279864,"d":"$33,838,103"}},{"$f":"'Trial 8'!CX19","v":{"v":33825609.25711945,"d":"$33,825,609"}},{"$f":"'Trial 8'!CY19","v":{"v":33812965.98583226,"d":"$33,812,966"}},{"$f":"'Trial 8'!CZ19","v":{"v":33800358.898951106,"d":"$33,800,359"}},{"$f":"'Trial 8'!DB19","v":{"v":33787828.870483056,"d":"$33,787,829"}},{"$f":"'Trial 8'!DC19","v":{"v":33775212.11003194,"d":"$33,775,212"}},{"$f":"'Trial 8'!DD19","v":{"v":33762671.635429785,"d":"$33,762,672"}},{"$f":"'Trial 8'!DE19","v":{"v":33750054.05796099,"d":"$33,750,054"}},{"$f":"'Trial 8'!DF19","v":{"v":33737334.412029706,"d":"$33,737,334"}},{"$f":"'Trial 8'!DG19","v":{"v":33724561.288819686,"d":"$33,724,561"}},{"$f":"'Trial 8'!DH19","v":{"v":33711761.41515656,"d":"$33,711,761"}},{"$f":"'Trial 8'!DI19","v":{"v":33698893.40649926,"d":"$33,698,893"}},{"$f":"'Trial 8'!DJ19","v":{"v":33685986.953281306,"d":"$33,685,987"}},{"$f":"'Trial 8'!DK19","v":{"v":33672981.89553354,"d":"$33,672,982"}},{"$f":"'Trial 8'!DL19","v":{"v":33660055.450503044,"d":"$33,660,055"}},{"$f":"'Trial 8'!DM19","v":{"v":33647074.23951623,"d":"$33,647,074"}},{"$f":"'Trial 8'!DO19","v":{"v":33634158.89024561,"d":"$33,634,159"}},{"$f":"'Trial 8'!DP19","v":{"v":33621199.79453444,"d":"$33,621,200"}},{"$f":"'Trial 8'!DQ19","v":{"v":33608125.787239514,"d":"$33,608,126"}},{"$f":"'Trial 8'!DR19","v":{"v":33594962.08623814,"d":"$33,594,962"}},{"$f":"'Trial 8'!DS19","v":{"v":33581876.78766216,"d":"$33,581,877"}},{"$f":"'Trial 8'!DT19","v":{"v":33568849.34577646,"d":"$33,568,849"}},{"$f":"'Trial 8'!DU19","v":{"v":33555771.732923575,"d":"$33,555,772"}},{"$f":"'Trial 8'!DV19","v":{"v":33542751.99106757,"d":"$33,542,752"}},{"$f":"'Trial 8'!DW19","v":{"v":33529778.85259906,"d":"$33,529,779"}},{"$f":"'Trial 8'!DX19","v":{"v":33516790.676363487,"d":"$33,516,791"}},{"$f":"'Trial 8'!DY19","v":{"v":33503814.256323528,"d":"$33,503,814"}},{"$f":"'Trial 8'!DZ19","v":{"v":33490730.754608843,"d":"$33,490,731"}},{"$f":"'Trial 8'!EB19","v":{"v":33477649.399665724,"d":"$33,477,649"}},{"$f":"'Trial 8'!EC19","v":{"v":33464547.0331771,"d":"$33,464,547"}},{"$f":"'Trial 8'!ED19","v":{"v":33451332.538655218,"d":"$33,451,333"}},{"$f":"'Trial 8'!EE19","v":{"v":33438015.590594154,"d":"$33,438,016"}},{"$f":"'Trial 8'!EF19","v":{"v":33424718.48829757,"d":"$33,424,718"}},{"$f":"'Trial 8'!EG19","v":{"v":33411371.499675028,"d":"$33,411,371"}},{"$f":"'Trial 8'!EH19","v":{"v":33397965.084301244,"d":"$33,397,965"}},{"$f":"'Trial 8'!EI19","v":{"v":33384551.938468967,"d":"$33,384,552"}},{"$f":"'Trial 8'!EJ19","v":{"v":33371202.27571582,"d":"$33,371,202"}},{"$f":"'Trial 8'!EK19","v":{"v":33357787.796706464,"d":"$33,357,788"}},{"$f":"'Trial 8'!EL19","v":{"v":33344368.881382097,"d":"$33,344,369"}},{"$f":"'Trial 8'!EM19","v":{"v":33330847.485377703,"d":"$33,330,847"}}]
[{"$f":"'(Other Computations)'!B141","v":{"v":277162387.37541157,"d":"$277,162,387"}},{"$f":"'(Other Computations)'!C141","v":{"v":277162387.37541157,"d":"$277,162,387"}},{"$f":"'(Other Computations)'!D141","v":{"v":277158874.2308365,"d":"$277,158,874"}},{"$f":"'(Other Computations)'!E141","v":{"v":277152173.3472943,"d":"$277,152,173"}},{"$f":"'(Other Computations)'!F141","v":{"v":277142668.2179209,"d":"$277,142,668"}},{"$f":"'(Other Computations)'!G141","v":{"v":277130557.2262203,"d":"$277,130,557"}},{"$f":"'(Other Computations)'!H141","v":{"v":277116068.544656,"d":"$277,116,069"}},{"$f":"'(Other Computations)'!I141","v":{"v":277099062.5495557,"d":"$277,099,063"}},{"$f":"'(Other Computations)'!J141","v":{"v":277079330.7505169,"d":"$277,079,331"}},{"$f":"'(Other Computations)'!K141","v":{"v":277057081.48252803,"d":"$277,057,081"}},{"$f":"'(Other Computations)'!L141","v":{"v":277032407.63191,"d":"$277,032,408"}},{"$f":"'(Other Computations)'!M141","v":{"v":277005378.5520606,"d":"$277,005,379"}},{"$f":"'(Other Computations)'!O141","v":{"v":276976028.2499127,"d":"$276,976,028"}},{"$f":"'(Other Computations)'!P141","v":{"v":276944329.2017861,"d":"$276,944,329"}},{"$f":"'(Other Computations)'!Q141","v":{"v":276910523.2919546,"d":"$276,910,523"}},{"$f":"'(Other Computations)'!R141","v":{"v":276874618.70144135,"d":"$276,874,619"}},{"$f":"'(Other Computations)'!S141","v":{"v":276836742.52892965,"d":"$276,836,743"}},{"$f":"'(Other Computations)'!T141","v":{"v":276797019.9464214,"d":"$276,797,020"}},{"$f":"'(Other Computations)'!U141","v":{"v":276754909.7744791,"d":"$276,754,910"}},{"$f":"'(Other Computations)'!V141","v":{"v":276710983.48790574,"d":"$276,710,983"}},{"$f":"'(Other Computations)'!W141","v":{"v":276664937.762555,"d":"$276,664,938"}},{"$f":"'(Other Computations)'!X141","v":{"v":276616874.4823309,"d":"$276,616,874"}},{"$f":"'(Other Computations)'!Y141","v":{"v":276567267.0624346,"d":"$276,567,267"}},{"$f":"'(Other Computations)'!Z141","v":{"v":276515825.28628856,"d":"$276,515,825"}},{"$f":"'(Other Computations)'!AB141","v":{"v":276462630.4337465,"d":"$276,462,630"}},{"$f":"'(Other Computations)'!AC141","v":{"v":276407396.517823,"d":"$276,407,397"}},{"$f":"'(Other Computations)'!AD141","v":{"v":276350568.06447095,"d":"$276,350,568"}},{"$f":"'(Other Computations)'!AE141","v":{"v":276292339.14799356,"d":"$276,292,339"}},{"$f":"'(Other Computations)'!AF141","v":{"v":276232639.65467197,"d":"$276,232,640"}},{"$f":"'(Other Computations)'!AG141","v":{"v":276171462.01037836,"d":"$276,171,462"}},{"$f":"'(Other Computations)'!AH141","v":{"v":276108599.83797604,"d":"$276,108,600"}},{"$f":"'(Other Computations)'!AI141","v":{"v":276044445.74214613,"d":"$276,044,446"}},{"$f":"'(Other Computations)'!AJ141","v":{"v":275979177.9464545,"d":"$275,979,178"}},{"$f":"'(Other Computations)'!AK141","v":{"v":275912321.1700437,"d":"$275,912,321"}},{"$f":"'(Other Computations)'!AL141","v":{"v":275844226.20459473,"d":"$275,844,226"}},{"$f":"'(Other Computations)'!AM141","v":{"v":275774996.9056494,"d":"$275,774,997"}},{"$f":"'(Other Computations)'!AO141","v":{"v":275704720.7366254,"d":"$275,704,721"}},{"$f":"'(Other Computations)'!AP141","v":{"v":275633105.41452765,"d":"$275,633,105"}},{"$f":"'(Other Computations)'!AQ141","v":{"v":275560361.4321605,"d":"$275,560,361"}},{"$f":"'(Other Computations)'!AR141","v":{"v":275486714.5247373,"d":"$275,486,715"}},{"$f":"'(Other Computations)'!AS141","v":{"v":275411834.26454276,"d":"$275,411,834"}},{"$f":"'(Other Computations)'!AT141","v":{"v":275335878.1801493,"d":"$275,335,878"}},{"$f":"'(Other Computations)'!AU141","v":{"v":275259079.5197749,"d":"$275,259,080"}},{"$f":"'(Other Computations)'!AV141","v":{"v":275181261.793044,"d":"$275,181,262"}},{"$f":"'(Other Computations)'!AW141","v":{"v":275102396.1645943,"d":"$275,102,396"}},{"$f":"'(Other Computations)'!AX141","v":{"v":275022607.43490666,"d":"$275,022,607"}},{"$f":"'(Other Computations)'!AY141","v":{"v":274941700.62332916,"d":"$274,941,701"}},{"$f":"'(Other Computations)'!AZ141","v":{"v":274859837.4758105,"d":"$274,859,837"}},{"$f":"'(Other Computations)'!BB141","v":{"v":274777139.3765753,"d":"$274,777,139"}},{"$f":"'(Other Computations)'!BC141","v":{"v":274693349.3876256,"d":"$274,693,349"}},{"$f":"'(Other Computations)'!BD141","v":{"v":274608533.29971135,"d":"$274,608,533"}},{"$f":"'(Other Computations)'!BE141","v":{"v":274522870.75821805,"d":"$274,522,871"}},{"$f":"'(Other Computations)'!BF141","v":{"v":274436450.6550134,"d":"$274,436,451"}},{"$f":"'(Other Computations)'!BG141","v":{"v":274349233.2473669,"d":"$274,349,233"}},{"$f":"'(Other Computations)'!BH141","v":{"v":274261372.067139,"d":"$274,261,372"}},{"$f":"'(Other Computations)'!BI141","v":{"v":274172885.1108654,"d":"$274,172,885"}},{"$f":"'(Other Computations)'!BJ141","v":{"v":274083484.9951099,"d":"$274,083,485"}},{"$f":"'(Other Computations)'!BK141","v":{"v":273993323.08301187,"d":"$273,993,323"}},{"$f":"'(Other Computations)'!BL141","v":{"v":273902632.3629203,"d":"$273,902,632"}},{"$f":"'(Other Computations)'!BM141","v":{"v":273811257.5068154,"d":"$273,811,258"}},{"$f":"'(Other Computations)'!BO141","v":{"v":273719393.2536825,"d":"$273,719,393"}},{"$f":"'(Other Computations)'!BP141","v":{"v":273626906.6504209,"d":"$273,626,907"}},{"$f":"'(Other Computations)'!BQ141","v":{"v":273533798.9725542,"d":"$273,533,799"}},{"$f":"'(Other Computations)'!BR141","v":{"v":273440185.18632764,"d":"$273,440,185"}},{"$f":"'(Other Computations)'!BS141","v":{"v":273346241.27356136,"d":"$273,346,241"}},{"$f":"'(Other Computations)'!BT141","v":{"v":273251924.7326735,"d":"$273,251,925"}},{"$f":"'(Other Computations)'!BU141","v":{"v":273156988.231997,"d":"$273,156,988"}},{"$f":"'(Other Computations)'!BV141","v":{"v":273061839.9951968,"d":"$273,061,840"}},{"$f":"'(Other Computations)'!BW141","v":{"v":272966072.85660994,"d":"$272,966,073"}},{"$f":"'(Other Computations)'!BX141","v":{"v":272869803.84913,"d":"$272,869,804"}},{"$f":"'(Other Computations)'!BY141","v":{"v":272773302.9144728,"d":"$272,773,303"}},{"$f":"'(Other Computations)'!BZ141","v":{"v":272676207.7439498,"d":"$272,676,208"}},{"$f":"'(Other Computations)'!CB141","v":{"v":272578865.2092887,"d":"$272,578,865"}},{"$f":"'(Other Computations)'!CC141","v":{"v":272481118.4005363,"d":"$272,481,118"}},{"$f":"'(Other Computations)'!CD141","v":{"v":272382929.9103042,"d":"$272,382,930"}},{"$f":"'(Other Computations)'!CE141","v":{"v":272284278.86106855,"d":"$272,284,279"}},{"$f":"'(Other Computations)'!CF141","v":{"v":272185356.3885285,"d":"$272,185,356"}},{"$f":"'(Other Computations)'!CG141","v":{"v":272085900.0563807,"d":"$272,085,900"}},{"$f":"'(Other Computations)'!CH141","v":{"v":271986064.57251096,"d":"$271,986,065"}},{"$f":"'(Other Computations)'!CI141","v":{"v":271886308.51220703,"d":"$271,886,309"}},{"$f":"'(Other Computations)'!CJ141","v":{"v":271786266.61049277,"d":"$271,786,267"}},{"$f":"'(Other Computations)'!CK141","v":{"v":271686035.61973685,"d":"$271,686,036"}},{"$f":"'(Other Computations)'!CL141","v":{"v":271585557.9315592,"d":"$271,585,558"}},{"$f":"'(Other Computations)'!CM141","v":{"v":271485049.36358774,"d":"$271,485,049"}},{"$f":"'(Other Computations)'!CO141","v":{"v":271384190.8293967,"d":"$271,384,191"}},{"$f":"'(Other Computations)'!CP141","v":{"v":271283277.5105082,"d":"$271,283,278"}},{"$f":"'(Other Computations)'!CQ141","v":{"v":271182180.79130924,"d":"$271,182,181"}},{"$f":"'(Other Computations)'!CR141","v":{"v":271080917.8265913,"d":"$271,080,918"}},{"$f":"'(Other Computations)'!CS141","v":{"v":270979470.67097205,"d":"$270,979,471"}},{"$f":"'(Other Computations)'!CT141","v":{"v":270877757.05522186,"d":"$270,877,757"}},{"$f":"'(Other Computations)'!CU141","v":{"v":270775445.592053,"d":"$270,775,446"}},{"$f":"'(Other Computations)'!CV141","v":{"v":270672712.1491452,"d":"$270,672,712"}},{"$f":"'(Other Computations)'!CW141","v":{"v":270570092.35907036,"d":"$270,570,092"}},{"$f":"'(Other Computations)'!CX141","v":{"v":270467165.1606661,"d":"$270,467,165"}},{"$f":"'(Other Computations)'!CY141","v":{"v":270363970.1159805,"d":"$270,363,970"}},{"$f":"'(Other Computations)'!CZ141","v":{"v":270260450.35953534,"d":"$270,260,450"}},{"$f":"'(Other Computations)'!DB141","v":{"v":270156819.6975866,"d":"$270,156,820"}},{"$f":"'(Other Computations)'!DC141","v":{"v":270052903.45985025,"d":"$270,052,903"}},{"$f":"'(Other Computations)'!DD141","v":{"v":269948922.8313896,"d":"$269,948,923"}},{"$f":"'(Other Computations)'!DE141","v":{"v":269844550.1996328,"d":"$269,844,550"}},{"$f":"'(Other Computations)'!DF141","v":{"v":269739905.6894342,"d":"$269,739,906"}},{"$f":"'(Other Computations)'!DG141","v":{"v":269635179.5632443,"d":"$269,635,180"}},{"$f":"'(Other Computations)'!DH141","v":{"v":269530262.9277693,"d":"$269,530,263"}},{"$f":"'(Other Computations)'!DI141","v":{"v":269425112.50630945,"d":"$269,425,113"}},{"$f":"'(Other Computations)'!DJ141","v":{"v":269319702.1804138,"d":"$269,319,702"}},{"$f":"'(Other Computations)'!DK141","v":{"v":269213990.19962674,"d":"$269,213,990"}},{"$f":"'(Other Computations)'!DL141","v":{"v":269108118.4325185,"d":"$269,108,118"}},{"$f":"'(Other Computations)'!DM141","v":{"v":269002056.3023726,"d":"$269,002,056"}},{"$f":"'(Other Computations)'!DO141","v":{"v":268895698.2114356,"d":"$268,895,698"}},{"$f":"'(Other Computations)'!DP141","v":{"v":268789100.0406708,"d":"$268,789,100"}},{"$f":"'(Other Computations)'!DQ141","v":{"v":268682519.43413544,"d":"$268,682,519"}},{"$f":"'(Other Computations)'!DR141","v":{"v":268575713.2125399,"d":"$268,575,713"}},{"$f":"'(Other Computations)'!DS141","v":{"v":268469007.5336381,"d":"$268,469,008"}},{"$f":"'(Other Computations)'!DT141","v":{"v":268362211.03343782,"d":"$268,362,211"}},{"$f":"'(Other Computations)'!DU141","v":{"v":268255301.54841512,"d":"$268,255,302"}},{"$f":"'(Other Computations)'!DV141","v":{"v":268148481.56798849,"d":"$268,148,482"}},{"$f":"'(Other Computations)'!DW141","v":{"v":268041618.64686412,"d":"$268,041,619"}},{"$f":"'(Other Computations)'!DX141","v":{"v":267934772.86691445,"d":"$267,934,773"}},{"$f":"'(Other Computations)'!DY141","v":{"v":267827858.99596292,"d":"$267,827,859"}},{"$f":"'(Other Computations)'!DZ141","v":{"v":267720847.74677184,"d":"$267,720,848"}},{"$f":"'(Other Computations)'!EB141","v":{"v":267613760.4165633,"d":"$267,613,760"}},{"$f":"'(Other Computations)'!EC141","v":{"v":267506339.4341909,"d":"$267,506,339"}},{"$f":"'(Other Computations)'!ED141","v":{"v":267398924.4774065,"d":"$267,398,924"}},{"$f":"'(Other Computations)'!EE141","v":{"v":267291212.86554113,"d":"$267,291,213"}},{"$f":"'(Other Computations)'!EF141","v":{"v":267183306.00937384,"d":"$267,183,306"}},{"$f":"'(Other Computations)'!EG141","v":{"v":267075350.43948168,"d":"$267,075,350"}},{"$f":"'(Other Computations)'!EH141","v":{"v":266967375.52829978,"d":"$266,967,376"}},{"$f":"'(Other Computations)'!EI141","v":{"v":266859173.07847026,"d":"$266,859,173"}},{"$f":"'(Other Computations)'!EJ141","v":{"v":266750814.39361614,"d":"$266,750,814"}},{"$f":"'(Other Computations)'!EK141","v":{"v":266642021.21908888,"d":"$266,642,021"}},{"$f":"'(Other Computations)'!EL141","v":{"v":266533094.2627315,"d":"$266,533,094"}},{"$f":"'(Other Computations)'!EM141","v":{"v":266424206.6752884,"d":"$266,424,207"}}]
[{"$f":"'(Intermediate Computations)'!B77","v":"Jan 2010"},{"$f":"'(Intermediate Computations)'!C77","v":"Feb 2010"},{"$f":"'(Intermediate Computations)'!D77","v":"Mar 2010"},{"$f":"'(Intermediate Computations)'!E77","v":"Apr 2010"},{"$f":"'(Intermediate Computations)'!F77","v":"May 2010"},{"$f":"'(Intermediate Computations)'!G77","v":"Jun 2010"},{"$f":"'(Intermediate Computations)'!H77","v":"Jul 2010"},{"$f":"'(Intermediate Computations)'!I77","v":"Aug 2010"},{"$f":"'(Intermediate Computations)'!J77","v":"Sep 2010"},{"$f":"'(Intermediate Computations)'!K77","v":"Oct 2010"},{"$f":"'(Intermediate Computations)'!L77","v":"Nov 2010"},{"$f":"'(Intermediate Computations)'!M77","v":"Dec 2010"},{"$f":"'(Intermediate Computations)'!O77","v":"Jan 2011"},{"$f":"'(Intermediate Computations)'!P77","v":"Feb 2011"},{"$f":"'(Intermediate Computations)'!Q77","v":"Mar 2011"},{"$f":"'(Intermediate Computations)'!R77","v":"Apr 2011"},{"$f":"'(Intermediate Computations)'!S77","v":"May 2011"},{"$f":"'(Intermediate Computations)'!T77","v":"Jun 2011"},{"$f":"'(Intermediate Computations)'!U77","v":"Jul 2011"},{"$f":"'(Intermediate Computations)'!V77","v":"Aug 2011"},{"$f":"'(Intermediate Computations)'!W77","v":"Sep 2011"},{"$f":"'(Intermediate Computations)'!X77","v":"Oct 2011"},{"$f":"'(Intermediate Computations)'!Y77","v":"Nov 2011"},{"$f":"'(Intermediate Computations)'!Z77","v":"Dec 2011"},{"$f":"'(Intermediate Computations)'!AB77","v":"Jan 2012"},{"$f":"'(Intermediate Computations)'!AC77","v":"Feb 2012"},{"$f":"'(Intermediate Computations)'!AD77","v":"Mar 2012"},{"$f":"'(Intermediate Computations)'!AE77","v":"Apr 2012"},{"$f":"'(Intermediate Computations)'!AF77","v":"May 2012"},{"$f":"'(Intermediate Computations)'!AG77","v":"Jun 2012"},{"$f":"'(Intermediate Computations)'!AH77","v":"Jul 2012"},{"$f":"'(Intermediate Computations)'!AI77","v":"Aug 2012"},{"$f":"'(Intermediate Computations)'!AJ77","v":"Sep 2012"},{"$f":"'(Intermediate Computations)'!AK77","v":"Oct 2012"},{"$f":"'(Intermediate Computations)'!AL77","v":"Nov 2012"},{"$f":"'(Intermediate Computations)'!AM77","v":"Dec 2012"},{"$f":"'(Intermediate Computations)'!AO77","v":"Jan 2013"},{"$f":"'(Intermediate Computations)'!AP77","v":"Feb 2013"},{"$f":"'(Intermediate Computations)'!AQ77","v":"Mar 2013"},{"$f":"'(Intermediate Computations)'!AR77","v":"Apr 2013"},{"$f":"'(Intermediate Computations)'!AS77","v":"May 2013"},{"$f":"'(Intermediate Computations)'!AT77","v":"Jun 2013"},{"$f":"'(Intermediate Computations)'!AU77","v":"Jul 2013"},{"$f":"'(Intermediate Computations)'!AV77","v":"Aug 2013"},{"$f":"'(Intermediate Computations)'!AW77","v":"Sep 2013"},{"$f":"'(Intermediate Computations)'!AX77","v":"Oct 2013"},{"$f":"'(Intermediate Computations)'!AY77","v":"Nov 2013"},{"$f":"'(Intermediate Computations)'!AZ77","v":"Dec 2013"},{"$f":"'(Intermediate Computations)'!BB77","v":"Jan 2014"},{"$f":"'(Intermediate Computations)'!BC77","v":"Feb 2014"},{"$f":"'(Intermediate Computations)'!BD77","v":"Mar 2014"},{"$f":"'(Intermediate Computations)'!BE77","v":"Apr 2014"},{"$f":"'(Intermediate Computations)'!BF77","v":"May 2014"},{"$f":"'(Intermediate Computations)'!BG77","v":"Jun 2014"},{"$f":"'(Intermediate Computations)'!BH77","v":"Jul 2014"},{"$f":"'(Intermediate Computations)'!BI77","v":"Aug 2014"},{"$f":"'(Intermediate Computations)'!BJ77","v":"Sep 2014"},{"$f":"'(Intermediate Computations)'!BK77","v":"Oct 2014"},{"$f":"'(Intermediate Computations)'!BL77","v":"Nov 2014"},{"$f":"'(Intermediate Computations)'!BM77","v":"Dec 2014"},{"$f":"'(Intermediate Computations)'!BO77","v":"Jan 2015"},{"$f":"'(Intermediate Computations)'!BP77","v":"Feb 2015"},{"$f":"'(Intermediate Computations)'!BQ77","v":"Mar 2015"},{"$f":"'(Intermediate Computations)'!BR77","v":"Apr 2015"},{"$f":"'(Intermediate Computations)'!BS77","v":"May 2015"},{"$f":"'(Intermediate Computations)'!BT77","v":"Jun 2015"},{"$f":"'(Intermediate Computations)'!BU77","v":"Jul 2015"},{"$f":"'(Intermediate Computations)'!BV77","v":"Aug 2015"},{"$f":"'(Intermediate Computations)'!BW77","v":"Sep 2015"},{"$f":"'(Intermediate Computations)'!BX77","v":"Oct 2015"},{"$f":"'(Intermediate Computations)'!BY77","v":"Nov 2015"},{"$f":"'(Intermediate Computations)'!BZ77","v":"Dec 2015"},{"$f":"'(Intermediate Computations)'!CB77","v":"Jan 2016"},{"$f":"'(Intermediate Computations)'!CC77","v":"Feb 2016"},{"$f":"'(Intermediate Computations)'!CD77","v":"Mar 2016"},{"$f":"'(Intermediate Computations)'!CE77","v":"Apr 2016"},{"$f":"'(Intermediate Computations)'!CF77","v":"May 2016"},{"$f":"'(Intermediate Computations)'!CG77","v":"Jun 2016"},{"$f":"'(Intermediate Computations)'!CH77","v":"Jul 2016"},{"$f":"'(Intermediate Computations)'!CI77","v":"Aug 2016"},{"$f":"'(Intermediate Computations)'!CJ77","v":"Sep 2016"},{"$f":"'(Intermediate Computations)'!CK77","v":"Oct 2016"},{"$f":"'(Intermediate Computations)'!CL77","v":"Nov 2016"},{"$f":"'(Intermediate Computations)'!CM77","v":"Dec 2016"},{"$f":"'(Intermediate Computations)'!CO77","v":"Jan 2017"},{"$f":"'(Intermediate Computations)'!CP77","v":"Feb 2017"},{"$f":"'(Intermediate Computations)'!CQ77","v":"Mar 2017"},{"$f":"'(Intermediate Computations)'!CR77","v":"Apr 2017"},{"$f":"'(Intermediate Computations)'!CS77","v":"May 2017"},{"$f":"'(Intermediate Computations)'!CT77","v":"Jun 2017"},{"$f":"'(Intermediate Computations)'!CU77","v":"Jul 2017"},{"$f":"'(Intermediate Computations)'!CV77","v":"Aug 2017"},{"$f":"'(Intermediate Computations)'!CW77","v":"Sep 2017"},{"$f":"'(Intermediate Computations)'!CX77","v":"Oct 2017"},{"$f":"'(Intermediate Computations)'!CY77","v":"Nov 2017"},{"$f":"'(Intermediate Computations)'!CZ77","v":"Dec 2017"},{"$f":"'(Intermediate Computations)'!DB77","v":"Jan 2018"},{"$f":"'(Intermediate Computations)'!DC77","v":"Feb 2018"},{"$f":"'(Intermediate Computations)'!DD77","v":"Mar 2018"},{"$f":"'(Intermediate Computations)'!DE77","v":"Apr 2018"},{"$f":"'(Intermediate Computations)'!DF77","v":"May 2018"},{"$f":"'(Intermediate Computations)'!DG77","v":"Jun 2018"},{"$f":"'(Intermediate Computations)'!DH77","v":"Jul 2018"},{"$f":"'(Intermediate Computations)'!DI77","v":"Aug 2018"},{"$f":"'(Intermediate Computations)'!DJ77","v":"Sep 2018"},{"$f":"'(Intermediate Computations)'!DK77","v":"Oct 2018"},{"$f":"'(Intermediate Computations)'!DL77","v":"Nov 2018"},{"$f":"'(Intermediate Computations)'!DM77","v":"Dec 2018"},{"$f":"'(Intermediate Computations)'!DO77","v":"Jan 2019"},{"$f":"'(Intermediate Computations)'!DP77","v":"Feb 2019"},{"$f":"'(Intermediate Computations)'!DQ77","v":"Mar 2019"},{"$f":"'(Intermediate Computations)'!DR77","v":"Apr 2019"},{"$f":"'(Intermediate Computations)'!DS77","v":"May 2019"},{"$f":"'(Intermediate Computations)'!DT77","v":"Jun 2019"},{"$f":"'(Intermediate Computations)'!DU77","v":"Jul 2019"},{"$f":"'(Intermediate Computations)'!DV77","v":"Aug 2019"},{"$f":"'(Intermediate Computations)'!DW77","v":"Sep 2019"},{"$f":"'(Intermediate Computations)'!DX77","v":"Oct 2019"},{"$f":"'(Intermediate Computations)'!DY77","v":"Nov 2019"},{"$f":"'(Intermediate Computations)'!DZ77","v":"Dec 2019"},{"$f":"'(Intermediate Computations)'!EB77","v":"Jan 2020"},{"$f":"'(Intermediate Computations)'!EC77","v":"Feb 2020"},{"$f":"'(Intermediate Computations)'!ED77","v":"Mar 2020"},{"$f":"'(Intermediate Computations)'!EE77","v":"Apr 2020"},{"$f":"'(Intermediate Computations)'!EF77","v":"May 2020"},{"$f":"'(Intermediate Computations)'!EG77","v":"Jun 2020"},{"$f":"'(Intermediate Computations)'!EH77","v":"Jul 2020"},{"$f":"'(Intermediate Computations)'!EI77","v":"Aug 2020"},{"$f":"'(Intermediate Computations)'!EJ77","v":"Sep 2020"},{"$f":"'(Intermediate Computations)'!EK77","v":"Oct 2020"},{"$f":"'(Intermediate Computations)'!EL77","v":"Nov 2020"},{"$f":"'(Intermediate Computations)'!EM77","v":"Dec 2020"}]
[{"$f":"'(Intermediate Computations)'!B74","v":"2010-01-01"},{"$f":"'(Intermediate Computations)'!C74","v":"2010-02-01"},{"$f":"'(Intermediate Computations)'!D74","v":"2010-03-01"},{"$f":"'(Intermediate Computations)'!E74","v":"2010-04-01"},{"$f":"'(Intermediate Computations)'!F74","v":"2010-05-01"},{"$f":"'(Intermediate Computations)'!G74","v":"2010-06-01"},{"$f":"'(Intermediate Computations)'!H74","v":"2010-07-01"},{"$f":"'(Intermediate Computations)'!I74","v":"2010-08-01"},{"$f":"'(Intermediate Computations)'!J74","v":"2010-09-01"},{"$f":"'(Intermediate Computations)'!K74","v":"2010-10-01"},{"$f":"'(Intermediate Computations)'!L74","v":"2010-11-01"},{"$f":"'(Intermediate Computations)'!M74","v":"2010-12-01"},{"$f":"'(Intermediate Computations)'!O74","v":"2011-01-01"},{"$f":"'(Intermediate Computations)'!P74","v":"2011-02-01"},{"$f":"'(Intermediate Computations)'!Q74","v":"2011-03-01"},{"$f":"'(Intermediate Computations)'!R74","v":"2011-04-01"},{"$f":"'(Intermediate Computations)'!S74","v":"2011-05-01"},{"$f":"'(Intermediate Computations)'!T74","v":"2011-06-01"},{"$f":"'(Intermediate Computations)'!U74","v":"2011-07-01"},{"$f":"'(Intermediate Computations)'!V74","v":"2011-08-01"},{"$f":"'(Intermediate Computations)'!W74","v":"2011-09-01"},{"$f":"'(Intermediate Computations)'!X74","v":"2011-10-01"},{"$f":"'(Intermediate Computations)'!Y74","v":"2011-11-01"},{"$f":"'(Intermediate Computations)'!Z74","v":"2011-12-01"},{"$f":"'(Intermediate Computations)'!AB74","v":"2012-01-01"},{"$f":"'(Intermediate Computations)'!AC74","v":"2012-02-01"},{"$f":"'(Intermediate Computations)'!AD74","v":"2012-03-01"},{"$f":"'(Intermediate Computations)'!AE74","v":"2012-04-01"},{"$f":"'(Intermediate Computations)'!AF74","v":"2012-05-01"},{"$f":"'(Intermediate Computations)'!AG74","v":"2012-06-01"},{"$f":"'(Intermediate Computations)'!AH74","v":"2012-07-01"},{"$f":"'(Intermediate Computations)'!AI74","v":"2012-08-01"},{"$f":"'(Intermediate Computations)'!AJ74","v":"2012-09-01"},{"$f":"'(Intermediate Computations)'!AK74","v":"2012-10-01"},{"$f":"'(Intermediate Computations)'!AL74","v":"2012-11-01"},{"$f":"'(Intermediate Computations)'!AM74","v":"2012-12-01"},{"$f":"'(Intermediate Computations)'!AO74","v":"2013-01-01"},{"$f":"'(Intermediate Computations)'!AP74","v":"2013-02-01"},{"$f":"'(Intermediate Computations)'!AQ74","v":"2013-03-01"},{"$f":"'(Intermediate Computations)'!AR74","v":"2013-04-01"},{"$f":"'(Intermediate Computations)'!AS74","v":"2013-05-01"},{"$f":"'(Intermediate Computations)'!AT74","v":"2013-06-01"},{"$f":"'(Intermediate Computations)'!AU74","v":"2013-07-01"},{"$f":"'(Intermediate Computations)'!AV74","v":"2013-08-01"},{"$f":"'(Intermediate Computations)'!AW74","v":"2013-09-01"},{"$f":"'(Intermediate Computations)'!AX74","v":"2013-10-01"},{"$f":"'(Intermediate Computations)'!AY74","v":"2013-11-01"},{"$f":"'(Intermediate Computations)'!AZ74","v":"2013-12-01"},{"$f":"'(Intermediate Computations)'!BB74","v":"2014-01-01"},{"$f":"'(Intermediate Computations)'!BC74","v":"2014-02-01"},{"$f":"'(Intermediate Computations)'!BD74","v":"2014-03-01"},{"$f":"'(Intermediate Computations)'!BE74","v":"2014-04-01"},{"$f":"'(Intermediate Computations)'!BF74","v":"2014-05-01"},{"$f":"'(Intermediate Computations)'!BG74","v":"2014-06-01"},{"$f":"'(Intermediate Computations)'!BH74","v":"2014-07-01"},{"$f":"'(Intermediate Computations)'!BI74","v":"2014-08-01"},{"$f":"'(Intermediate Computations)'!BJ74","v":"2014-09-01"},{"$f":"'(Intermediate Computations)'!BK74","v":"2014-10-01"},{"$f":"'(Intermediate Computations)'!BL74","v":"2014-11-01"},{"$f":"'(Intermediate Computations)'!BM74","v":"2014-12-01"},{"$f":"'(Intermediate Computations)'!BO74","v":"2015-01-01"},{"$f":"'(Intermediate Computations)'!BP74","v":"2015-02-01"},{"$f":"'(Intermediate Computations)'!BQ74","v":"2015-03-01"},{"$f":"'(Intermediate Computations)'!BR74","v":"2015-04-01"},{"$f":"'(Intermediate Computations)'!BS74","v":"2015-05-01"},{"$f":"'(Intermediate Computations)'!BT74","v":"2015-06-01"},{"$f":"'(Intermediate Computations)'!BU74","v":"2015-07-01"},{"$f":"'(Intermediate Computations)'!BV74","v":"2015-08-01"},{"$f":"'(Intermediate Computations)'!BW74","v":"2015-09-01"},{"$f":"'(Intermediate Computations)'!BX74","v":"2015-10-01"},{"$f":"'(Intermediate Computations)'!BY74","v":"2015-11-01"},{"$f":"'(Intermediate Computations)'!BZ74","v":"2015-12-01"},{"$f":"'(Intermediate Computations)'!CB74","v":"2016-01-01"},{"$f":"'(Intermediate Computations)'!CC74","v":"2016-02-01"},{"$f":"'(Intermediate Computations)'!CD74","v":"2016-03-01"},{"$f":"'(Intermediate Computations)'!CE74","v":"2016-04-01"},{"$f":"'(Intermediate Computations)'!CF74","v":"2016-05-01"},{"$f":"'(Intermediate Computations)'!CG74","v":"2016-06-01"},{"$f":"'(Intermediate Computations)'!CH74","v":"2016-07-01"},{"$f":"'(Intermediate Computations)'!CI74","v":"2016-08-01"},{"$f":"'(Intermediate Computations)'!CJ74","v":"2016-09-01"},{"$f":"'(Intermediate Computations)'!CK74","v":"2016-10-01"},{"$f":"'(Intermediate Computations)'!CL74","v":"2016-11-01"},{"$f":"'(Intermediate Computations)'!CM74","v":"2016-12-01"},{"$f":"'(Intermediate Computations)'!CO74","v":"2017-01-01"},{"$f":"'(Intermediate Computations)'!CP74","v":"2017-02-01"},{"$f":"'(Intermediate Computations)'!CQ74","v":"2017-03-01"},{"$f":"'(Intermediate Computations)'!CR74","v":"2017-04-01"},{"$f":"'(Intermediate Computations)'!CS74","v":"2017-05-01"},{"$f":"'(Intermediate Computations)'!CT74","v":"2017-06-01"},{"$f":"'(Intermediate Computations)'!CU74","v":"2017-07-01"},{"$f":"'(Intermediate Computations)'!CV74","v":"2017-08-01"},{"$f":"'(Intermediate Computations)'!CW74","v":"2017-09-01"},{"$f":"'(Intermediate Computations)'!CX74","v":"2017-10-01"},{"$f":"'(Intermediate Computations)'!CY74","v":"2017-11-01"},{"$f":"'(Intermediate Computations)'!CZ74","v":"2017-12-01"},{"$f":"'(Intermediate Computations)'!DB74","v":"2018-01-01"},{"$f":"'(Intermediate Computations)'!DC74","v":"2018-02-01"},{"$f":"'(Intermediate Computations)'!DD74","v":"2018-03-01"},{"$f":"'(Intermediate Computations)'!DE74","v":"2018-04-01"},{"$f":"'(Intermediate Computations)'!DF74","v":"2018-05-01"},{"$f":"'(Intermediate Computations)'!DG74","v":"2018-06-01"},{"$f":"'(Intermediate Computations)'!DH74","v":"2018-07-01"},{"$f":"'(Intermediate Computations)'!DI74","v":"2018-08-01"},{"$f":"'(Intermediate Computations)'!DJ74","v":"2018-09-01"},{"$f":"'(Intermediate Computations)'!DK74","v":"2018-10-01"},{"$f":"'(Intermediate Computations)'!DL74","v":"2018-11-01"},{"$f":"'(Intermediate Computations)'!DM74","v":"2018-12-01"},{"$f":"'(Intermediate Computations)'!DO74","v":"2019-01-01"},{"$f":"'(Intermediate Computations)'!DP74","v":"2019-02-01"},{"$f":"'(Intermediate Computations)'!DQ74","v":"2019-03-01"},{"$f":"'(Intermediate Computations)'!DR74","v":"2019-04-01"},{"$f":"'(Intermediate Computations)'!DS74","v":"2019-05-01"},{"$f":"'(Intermediate Computations)'!DT74","v":"2019-06-01"},{"$f":"'(Intermediate Computations)'!DU74","v":"2019-07-01"},{"$f":"'(Intermediate Computations)'!DV74","v":"2019-08-01"},{"$f":"'(Intermediate Computations)'!DW74","v":"2019-09-01"},{"$f":"'(Intermediate Computations)'!DX74","v":"2019-10-01"},{"$f":"'(Intermediate Computations)'!DY74","v":"2019-11-01"},{"$f":"'(Intermediate Computations)'!DZ74","v":"2019-12-01"},{"$f":"'(Intermediate Computations)'!EB74","v":"2020-01-01"},{"$f":"'(Intermediate Computations)'!EC74","v":"2020-02-01"},{"$f":"'(Intermediate Computations)'!ED74","v":"2020-03-01"},{"$f":"'(Intermediate Computations)'!EE74","v":"2020-04-01"},{"$f":"'(Intermediate Computations)'!EF74","v":"2020-05-01"},{"$f":"'(Intermediate Computations)'!EG74","v":"2020-06-01"},{"$f":"'(Intermediate Computations)'!EH74","v":"2020-07-01"},{"$f":"'(Intermediate Computations)'!EI74","v":"2020-08-01"},{"$f":"'(Intermediate Computations)'!EJ74","v":"2020-09-01"},{"$f":"'(Intermediate Computations)'!EK74","v":"2020-10-01"},{"$f":"'(Intermediate Computations)'!EL74","v":"2020-11-01"},{"$f":"'(Intermediate Computations)'!EM74","v":"2020-12-01"}]
[{"$f":"'Trial 1'!B22","v":{"v":34645298.42192645,"d":"$34,645,298"}},{"$f":"'Trial 1'!C22","v":{"v":34629725.82244619,"d":"$34,629,726"}},{"$f":"'Trial 1'!D22","v":{"v":34618314.80732851,"d":"$34,618,315"}},{"$f":"'Trial 1'!E22","v":{"v":34605737.59580381,"d":"$34,605,738"}},{"$f":"'Trial 1'!F22","v":{"v":34591768.41380979,"d":"$34,591,768"}},{"$f":"'Trial 1'!G22","v":{"v":34581221.95339217,"d":"$34,581,222"}},{"$f":"'Trial 1'!H22","v":{"v":34568531.62966383,"d":"$34,568,532"}},{"$f":"'Trial 1'!I22","v":{"v":34553737.435346186,"d":"$34,553,737"}},{"$f":"'Trial 1'!J22","v":{"v":34539637.03984093,"d":"$34,539,637"}},{"$f":"'Trial 1'!K22","v":{"v":34526754.46411455,"d":"$34,526,754"}},{"$f":"'Trial 1'!L22","v":{"v":34516832.396433465,"d":"$34,516,832"}},{"$f":"'Trial 1'!M22","v":{"v":34505413.17827394,"d":"$34,505,413"}},{"$f":"'Trial 1'!O22","v":{"v":34492899.17601787,"d":"$34,492,899"}},{"$f":"'Trial 1'!P22","v":{"v":34478104.95861378,"d":"$34,478,105"}},{"$f":"'Trial 1'!Q22","v":{"v":34464554.76752091,"d":"$34,464,555"}},{"$f":"'Trial 1'!R22","v":{"v":34446520.314194776,"d":"$34,446,520"}},{"$f":"'Trial 1'!S22","v":{"v":34434001.91367584,"d":"$34,434,002"}},{"$f":"'Trial 1'!T22","v":{"v":34416556.832175925,"d":"$34,416,557"}},{"$f":"'Trial 1'!U22","v":{"v":34400520.79446053,"d":"$34,400,521"}},{"$f":"'Trial 1'!V22","v":{"v":34383453.7321296,"d":"$34,383,454"}},{"$f":"'Trial 1'!W22","v":{"v":34366317.82671863,"d":"$34,366,318"}},{"$f":"'Trial 1'!X22","v":{"v":34351400.97596499,"d":"$34,351,401"}},{"$f":"'Trial 1'!Y22","v":{"v":34337097.15845833,"d":"$34,337,097"}},{"$f":"'Trial 1'!Z22","v":{"v":34326098.89670075,"d":"$34,326,099"}},{"$f":"'Trial 1'!AB22","v":{"v":34310590.403253585,"d":"$34,310,590"}},{"$f":"'Trial 1'!AC22","v":{"v":34296907.06888859,"d":"$34,296,907"}},{"$f":"'Trial 1'!AD22","v":{"v":34287126.476408266,"d":"$34,287,126"}},{"$f":"'Trial 1'!AE22","v":{"v":34271854.173943944,"d":"$34,271,854"}},{"$f":"'Trial 1'!AF22","v":{"v":34255724.040823504,"d":"$34,255,724"}},{"$f":"'Trial 1'!AG22","v":{"v":34241680.93123291,"d":"$34,241,681"}},{"$f":"'Trial 1'!AH22","v":{"v":34227389.616623476,"d":"$34,227,390"}},{"$f":"'Trial 1'!AI22","v":{"v":34214510.92002563,"d":"$34,214,511"}},{"$f":"'Trial 1'!AJ22","v":{"v":34199620.848985314,"d":"$34,199,621"}},{"$f":"'Trial 1'!AK22","v":{"v":34189012.30810685,"d":"$34,189,012"}},{"$f":"'Trial 1'!AL22","v":{"v":34175731.21753012,"d":"$34,175,731"}},{"$f":"'Trial 1'!AM22","v":{"v":34161072.387514204,"d":"$34,161,072"}},{"$f":"'Trial 1'!AO22","v":{"v":34144888.38210997,"d":"$34,144,888"}},{"$f":"'Trial 1'!AP22","v":{"v":34128724.22770756,"d":"$34,128,724"}},{"$f":"'Trial 1'!AQ22","v":{"v":34118905.45641922,"d":"$34,118,905"}},{"$f":"'Trial 1'!AR22","v":{"v":34102274.47190734,"d":"$34,102,274"}},{"$f":"'Trial 1'!AS22","v":{"v":34090333.65345138,"d":"$34,090,334"}},{"$f":"'Trial 1'!AT22","v":{"v":34076826.34264437,"d":"$34,076,826"}},{"$f":"'Trial 1'!AU22","v":{"v":34064719.207983665,"d":"$34,064,719"}},{"$f":"'Trial 1'!AV22","v":{"v":34050481.6066561,"d":"$34,050,482"}},{"$f":"'Trial 1'!AW22","v":{"v":34034961.111785986,"d":"$34,034,961"}},{"$f":"'Trial 1'!AX22","v":{"v":34020884.98581426,"d":"$34,020,885"}},{"$f":"'Trial 1'!AY22","v":{"v":34009811.732617155,"d":"$34,009,812"}},{"$f":"'Trial 1'!AZ22","v":{"v":33996880.6030891,"d":"$33,996,881"}},{"$f":"'Trial 1'!BB22","v":{"v":33980531.20975216,"d":"$33,980,531"}},{"$f":"'Trial 1'!BC22","v":{"v":33963964.03235188,"d":"$33,963,964"}},{"$f":"'Trial 1'!BD22","v":{"v":33950460.880654044,"d":"$33,950,461"}},{"$f":"'Trial 1'!BE22","v":{"v":33935344.939952835,"d":"$33,935,345"}},{"$f":"'Trial 1'!BF22","v":{"v":33923631.95338843,"d":"$33,923,632"}},{"$f":"'Trial 1'!BG22","v":{"v":33910571.18216747,"d":"$33,910,571"}},{"$f":"'Trial 1'!BH22","v":{"v":33897385.24813179,"d":"$33,897,385"}},{"$f":"'Trial 1'!BI22","v":{"v":33884757.2351269,"d":"$33,884,757"}},{"$f":"'Trial 1'!BJ22","v":{"v":33870157.11305948,"d":"$33,870,157"}},{"$f":"'Trial 1'!BK22","v":{"v":33855448.65183475,"d":"$33,855,449"}},{"$f":"'Trial 1'!BL22","v":{"v":33838444.1369095,"d":"$33,838,444"}},{"$f":"'Trial 1'!BM22","v":{"v":33825212.30367621,"d":"$33,825,212"}},{"$f":"'Trial 1'!BO22","v":{"v":33809164.11197508,"d":"$33,809,164"}},{"$f":"'Trial 1'!BP22","v":{"v":33796409.85815658,"d":"$33,796,410"}},{"$f":"'Trial 1'!BQ22","v":{"v":33781095.68876524,"d":"$33,781,096"}},{"$f":"'Trial 1'!BR22","v":{"v":33770761.6449805,"d":"$33,770,762"}},{"$f":"'Trial 1'!BS22","v":{"v":33758323.66040511,"d":"$33,758,324"}},{"$f":"'Trial 1'!BT22","v":{"v":33744644.66798096,"d":"$33,744,645"}},{"$f":"'Trial 1'!BU22","v":{"v":33727563.74990516,"d":"$33,727,564"}},{"$f":"'Trial 1'!BV22","v":{"v":33711388.17348941,"d":"$33,711,388"}},{"$f":"'Trial 1'!BW22","v":{"v":33696698.24115177,"d":"$33,696,698"}},{"$f":"'Trial 1'!BX22","v":{"v":33684820.52520313,"d":"$33,684,821"}},{"$f":"'Trial 1'!BY22","v":{"v":33668598.81311481,"d":"$33,668,599"}},{"$f":"'Trial 1'!BZ22","v":{"v":33651589.186068095,"d":"$33,651,589"}},{"$f":"'Trial 1'!CB22","v":{"v":33639902.82383438,"d":"$33,639,903"}},{"$f":"'Trial 1'!CC22","v":{"v":33625433.826838344,"d":"$33,625,434"}},{"$f":"'Trial 1'!CD22","v":{"v":33608574.28659655,"d":"$33,608,574"}},{"$f":"'Trial 1'!CE22","v":{"v":33597254.490164354,"d":"$33,597,254"}},{"$f":"'Trial 1'!CF22","v":{"v":33581089.09655073,"d":"$33,581,089"}},{"$f":"'Trial 1'!CG22","v":{"v":33566928.31902365,"d":"$33,566,928"}},{"$f":"'Trial 1'!CH22","v":{"v":33553785.510315232,"d":"$33,553,786"}},{"$f":"'Trial 1'!CI22","v":{"v":33539558.237967625,"d":"$33,539,558"}},{"$f":"'Trial 1'!CJ22","v":{"v":33526099.816160142,"d":"$33,526,100"}},{"$f":"'Trial 1'!CK22","v":{"v":33512178.22013361,"d":"$33,512,178"}},{"$f":"'Trial 1'!CL22","v":{"v":33494899.573855978,"d":"$33,494,900"}},{"$f":"'Trial 1'!CM22","v":{"v":33482819.924858253,"d":"$33,482,820"}},{"$f":"'Trial 1'!CO22","v":{"v":33468874.703126248,"d":"$33,468,875"}},{"$f":"'Trial 1'!CP22","v":{"v":33452893.010526486,"d":"$33,452,893"}},{"$f":"'Trial 1'!CQ22","v":{"v":33440806.132794544,"d":"$33,440,806"}},{"$f":"'Trial 1'!CR22","v":{"v":33422820.617620137,"d":"$33,422,821"}},{"$f":"'Trial 1'!CS22","v":{"v":33408560.117589884,"d":"$33,408,560"}},{"$f":"'Trial 1'!CT22","v":{"v":33391133.294895876,"d":"$33,391,133"}},{"$f":"'Trial 1'!CU22","v":{"v":33377773.88116345,"d":"$33,377,774"}},{"$f":"'Trial 1'!CV22","v":{"v":33361107.053475156,"d":"$33,361,107"}},{"$f":"'Trial 1'!CW22","v":{"v":33347619.68997437,"d":"$33,347,620"}},{"$f":"'Trial 1'!CX22","v":{"v":33330453.09475636,"d":"$33,330,453"}},{"$f":"'Trial 1'!CY22","v":{"v":33318850.150999922,"d":"$33,318,850"}},{"$f":"'Trial 1'!CZ22","v":{"v":33307776.17292843,"d":"$33,307,776"}},{"$f":"'Trial 1'!DB22","v":{"v":33290512.45063327,"d":"$33,290,512"}},{"$f":"'Trial 1'!DC22","v":{"v":33276666.190023504,"d":"$33,276,666"}},{"$f":"'Trial 1'!DD22","v":{"v":33264114.877061762,"d":"$33,264,115"}},{"$f":"'Trial 1'!DE22","v":{"v":33250195.97704093,"d":"$33,250,196"}},{"$f":"'Trial 1'!DF22","v":{"v":33237987.44813496,"d":"$33,237,987"}},{"$f":"'Trial 1'!DG22","v":{"v":33225625.46352362,"d":"$33,225,625"}},{"$f":"'Trial 1'!DH22","v":{"v":33210677.340127755,"d":"$33,210,677"}},{"$f":"'Trial 1'!DI22","v":{"v":33197729.18269929,"d":"$33,197,729"}},{"$f":"'Trial 1'!DJ22","v":{"v":33181692.897115987,"d":"$33,181,693"}},{"$f":"'Trial 1'!DK22","v":{"v":33168809.458411515,"d":"$33,168,809"}},{"$f":"'Trial 1'!DL22","v":{"v":33158018.805258695,"d":"$33,158,019"}},{"$f":"'Trial 1'!DM22","v":{"v":33141484.319899365,"d":"$33,141,484"}},{"$f":"'Trial 1'!DO22","v":{"v":33127981.322449107,"d":"$33,127,981"}},{"$f":"'Trial 1'!DP22","v":{"v":33117092.6106222,"d":"$33,117,093"}},{"$f":"'Trial 1'!DQ22","v":{"v":33102071.01707153,"d":"$33,102,071"}},{"$f":"'Trial 1'!DR22","v":{"v":33089019.40545637,"d":"$33,089,019"}},{"$f":"'Trial 1'!DS22","v":{"v":33075453.231995735,"d":"$33,075,453"}},{"$f":"'Trial 1'!DT22","v":{"v":33060821.96187561,"d":"$33,060,822"}},{"$f":"'Trial 1'!DU22","v":{"v":33046032.818897218,"d":"$33,046,033"}},{"$f":"'Trial 1'!DV22","v":{"v":33032938.947975393,"d":"$33,032,939"}},{"$f":"'Trial 1'!DW22","v":{"v":33016472.97309942,"d":"$33,016,473"}},{"$f":"'Trial 1'!DX22","v":{"v":33000770.840168357,"d":"$33,000,771"}},{"$f":"'Trial 1'!DY22","v":{"v":32989070.36640834,"d":"$32,989,070"}},{"$f":"'Trial 1'!DZ22","v":{"v":32976644.08339662,"d":"$32,976,644"}},{"$f":"'Trial 1'!EB22","v":{"v":32961058.9459904,"d":"$32,961,059"}},{"$f":"'Trial 1'!EC22","v":{"v":32947931.696896896,"d":"$32,947,932"}},{"$f":"'Trial 1'!ED22","v":{"v":32933768.734112788,"d":"$32,933,769"}},{"$f":"'Trial 1'!EE22","v":{"v":32919645.109866332,"d":"$32,919,645"}},{"$f":"'Trial 1'!EF22","v":{"v":32902562.86857495,"d":"$32,902,563"}},{"$f":"'Trial 1'!EG22","v":{"v":32888187.478053547,"d":"$32,888,187"}},{"$f":"'Trial 1'!EH22","v":{"v":32873334.31305627,"d":"$32,873,334"}},{"$f":"'Trial 1'!EI22","v":{"v":32858906.58095349,"d":"$32,858,907"}},{"$f":"'Trial 1'!EJ22","v":{"v":32842804.0729267,"d":"$32,842,804"}},{"$f":"'Trial 1'!EK22","v":{"v":32829290.11594022,"d":"$32,829,290"}},{"$f":"'Trial 1'!EL22","v":{"v":32814696.30665023,"d":"$32,814,696"}},{"$f":"'Trial 1'!EM22","v":{"v":32798322.455896102,"d":"$32,798,322"}}]
[{"$f":"'Trial 2'!B22","v":{"v":34645298.42192645,"d":"$34,645,298"}},{"$f":"'Trial 2'!C22","v":{"v":34630480.76706396,"d":"$34,630,481"}},{"$f":"'Trial 2'!D22","v":{"v":34613682.36744414,"d":"$34,613,682"}},{"$f":"'Trial 2'!E22","v":{"v":34600311.034457825,"d":"$34,600,311"}},{"$f":"'Trial 2'!F22","v":{"v":34590562.54589854,"d":"$34,590,563"}},{"$f":"'Trial 2'!G22","v":{"v":34577787.48474937,"d":"$34,577,787"}},{"$f":"'Trial 2'!H22","v":{"v":34562589.08561356,"d":"$34,562,589"}},{"$f":"'Trial 2'!I22","v":{"v":34548662.12889127,"d":"$34,548,662"}},{"$f":"'Trial 2'!J22","v":{"v":34532210.30306417,"d":"$34,532,210"}},{"$f":"'Trial 2'!K22","v":{"v":34519263.92072189,"d":"$34,519,264"}},{"$f":"'Trial 2'!L22","v":{"v":34505730.81731302,"d":"$34,505,731"}},{"$f":"'Trial 2'!M22","v":{"v":34489302.279166676,"d":"$34,489,302"}},{"$f":"'Trial 2'!O22","v":{"v":34477490.58447639,"d":"$34,477,491"}},{"$f":"'Trial 2'!P22","v":{"v":34462225.39260244,"d":"$34,462,225"}},{"$f":"'Trial 2'!Q22","v":{"v":34450297.83109338,"d":"$34,450,298"}},{"$f":"'Trial 2'!R22","v":{"v":34438638.77203761,"d":"$34,438,639"}},{"$f":"'Trial 2'!S22","v":{"v":34424179.94999081,"d":"$34,424,180"}},{"$f":"'Trial 2'!T22","v":{"v":34409779.43124218,"d":"$34,409,779"}},{"$f":"'Trial 2'!U22","v":{"v":34395363.55164662,"d":"$34,395,364"}},{"$f":"'Trial 2'!V22","v":{"v":34378763.51272022,"d":"$34,378,764"}},{"$f":"'Trial 2'!W22","v":{"v":34363053.14067051,"d":"$34,363,053"}},{"$f":"'Trial 2'!X22","v":{"v":34347952.278462775,"d":"$34,347,952"}},{"$f":"'Trial 2'!Y22","v":{"v":34332379.616208315,"d":"$34,332,380"}},{"$f":"'Trial 2'!Z22","v":{"v":34314262.50659159,"d":"$34,314,263"}},{"$f":"'Trial 2'!AB22","v":{"v":34301469.394585624,"d":"$34,301,469"}},{"$f":"'Trial 2'!AC22","v":{"v":34287480.62717033,"d":"$34,287,481"}},{"$f":"'Trial 2'!AD22","v":{"v":34273698.17685284,"d":"$34,273,698"}},{"$f":"'Trial 2'!AE22","v":{"v":34259722.65784311,"d":"$34,259,723"}},{"$f":"'Trial 2'!AF22","v":{"v":34249838.367930874,"d":"$34,249,838"}},{"$f":"'Trial 2'!AG22","v":{"v":34235873.93970675,"d":"$34,235,874"}},{"$f":"'Trial 2'!AH22","v":{"v":34220904.42881518,"d":"$34,220,904"}},{"$f":"'Trial 2'!AI22","v":{"v":34208079.514187545,"d":"$34,208,080"}},{"$f":"'Trial 2'!AJ22","v":{"v":34190871.12463003,"d":"$34,190,871"}},{"$f":"'Trial 2'!AK22","v":{"v":34177123.61917261,"d":"$34,177,124"}},{"$f":"'Trial 2'!AL22","v":{"v":34164714.864035554,"d":"$34,164,715"}},{"$f":"'Trial 2'!AM22","v":{"v":34154001.161214344,"d":"$34,154,001"}},{"$f":"'Trial 2'!AO22","v":{"v":34138772.52022236,"d":"$34,138,773"}},{"$f":"'Trial 2'!AP22","v":{"v":34124332.26144938,"d":"$34,124,332"}},{"$f":"'Trial 2'!AQ22","v":{"v":34111543.9367207,"d":"$34,111,544"}},{"$f":"'Trial 2'!AR22","v":{"v":34098578.40543347,"d":"$34,098,578"}},{"$f":"'Trial 2'!AS22","v":{"v":34083461.95005101,"d":"$34,083,462"}},{"$f":"'Trial 2'!AT22","v":{"v":34070531.96041097,"d":"$34,070,532"}},{"$f":"'Trial 2'!AU22","v":{"v":34057542.64001618,"d":"$34,057,543"}},{"$f":"'Trial 2'!AV22","v":{"v":34043954.98736184,"d":"$34,043,955"}},{"$f":"'Trial 2'!AW22","v":{"v":34030619.552848294,"d":"$34,030,620"}},{"$f":"'Trial 2'!AX22","v":{"v":34012783.20697535,"d":"$34,012,783"}},{"$f":"'Trial 2'!AY22","v":{"v":33998120.97976092,"d":"$33,998,121"}},{"$f":"'Trial 2'!AZ22","v":{"v":33986716.515769474,"d":"$33,986,717"}},{"$f":"'Trial 2'!BB22","v":{"v":33972256.1788746,"d":"$33,972,256"}},{"$f":"'Trial 2'!BC22","v":{"v":33956647.69110349,"d":"$33,956,648"}},{"$f":"'Trial 2'!BD22","v":{"v":33942871.551697485,"d":"$33,942,872"}},{"$f":"'Trial 2'!BE22","v":{"v":33931525.500989236,"d":"$33,931,526"}},{"$f":"'Trial 2'!BF22","v":{"v":33917186.64135571,"d":"$33,917,187"}},{"$f":"'Trial 2'!BG22","v":{"v":33905158.39136582,"d":"$33,905,158"}},{"$f":"'Trial 2'!BH22","v":{"v":33888871.20286114,"d":"$33,888,871"}},{"$f":"'Trial 2'!BI22","v":{"v":33873397.58000337,"d":"$33,873,398"}},{"$f":"'Trial 2'!BJ22","v":{"v":33856041.37453203,"d":"$33,856,041"}},{"$f":"'Trial 2'!BK22","v":{"v":33843874.94993737,"d":"$33,843,875"}},{"$f":"'Trial 2'!BL22","v":{"v":33828810.11293934,"d":"$33,828,810"}},{"$f":"'Trial 2'!BM22","v":{"v":33815332.248721726,"d":"$33,815,332"}},{"$f":"'Trial 2'!BO22","v":{"v":33797686.79196993,"d":"$33,797,687"}},{"$f":"'Trial 2'!BP22","v":{"v":33779536.35533651,"d":"$33,779,536"}},{"$f":"'Trial 2'!BQ22","v":{"v":33762993.33363963,"d":"$33,762,993"}},{"$f":"'Trial 2'!BR22","v":{"v":33750214.91737307,"d":"$33,750,215"}},{"$f":"'Trial 2'!BS22","v":{"v":33738576.94782725,"d":"$33,738,577"}},{"$f":"'Trial 2'!BT22","v":{"v":33721235.10078763,"d":"$33,721,235"}},{"$f":"'Trial 2'!BU22","v":{"v":33710324.454723634,"d":"$33,710,324"}},{"$f":"'Trial 2'!BV22","v":{"v":33694651.22394266,"d":"$33,694,651"}},{"$f":"'Trial 2'!BW22","v":{"v":33681925.92013278,"d":"$33,681,926"}},{"$f":"'Trial 2'!BX22","v":{"v":33668085.22032192,"d":"$33,668,085"}},{"$f":"'Trial 2'!BY22","v":{"v":33650285.20471953,"d":"$33,650,285"}},{"$f":"'Trial 2'!BZ22","v":{"v":33640118.43401936,"d":"$33,640,118"}},{"$f":"'Trial 2'!CB22","v":{"v":33626618.00954847,"d":"$33,626,618"}},{"$f":"'Trial 2'!CC22","v":{"v":33614061.51451258,"d":"$33,614,062"}},{"$f":"'Trial 2'!CD22","v":{"v":33598420.45324031,"d":"$33,598,420"}},{"$f":"'Trial 2'!CE22","v":{"v":33583890.61994603,"d":"$33,583,891"}},{"$f":"'Trial 2'!CF22","v":{"v":33572268.133837044,"d":"$33,572,268"}},{"$f":"'Trial 2'!CG22","v":{"v":33559266.35915833,"d":"$33,559,266"}},{"$f":"'Trial 2'!CH22","v":{"v":33547301.433622967,"d":"$33,547,301"}},{"$f":"'Trial 2'!CI22","v":{"v":33533352.276960406,"d":"$33,533,352"}},{"$f":"'Trial 2'!CJ22","v":{"v":33521993.71928603,"d":"$33,521,994"}},{"$f":"'Trial 2'!CK22","v":{"v":33505300.48073981,"d":"$33,505,300"}},{"$f":"'Trial 2'!CL22","v":{"v":33490916.68141169,"d":"$33,490,917"}},{"$f":"'Trial 2'!CM22","v":{"v":33473561.091161896,"d":"$33,473,561"}},{"$f":"'Trial 2'!CO22","v":{"v":33459023.955716696,"d":"$33,459,024"}},{"$f":"'Trial 2'!CP22","v":{"v":33443438.49713435,"d":"$33,443,438"}},{"$f":"'Trial 2'!CQ22","v":{"v":33429406.201221943,"d":"$33,429,406"}},{"$f":"'Trial 2'!CR22","v":{"v":33416293.200540766,"d":"$33,416,293"}},{"$f":"'Trial 2'!CS22","v":{"v":33401298.689261883,"d":"$33,401,299"}},{"$f":"'Trial 2'!CT22","v":{"v":33388559.4861695,"d":"$33,388,559"}},{"$f":"'Trial 2'!CU22","v":{"v":33372187.255820867,"d":"$33,372,187"}},{"$f":"'Trial 2'!CV22","v":{"v":33360672.096159417,"d":"$33,360,672"}},{"$f":"'Trial 2'!CW22","v":{"v":33346096.05631868,"d":"$33,346,096"}},{"$f":"'Trial 2'!CX22","v":{"v":33334561.265352268,"d":"$33,334,561"}},{"$f":"'Trial 2'!CY22","v":{"v":33316449.621471424,"d":"$33,316,450"}},{"$f":"'Trial 2'!CZ22","v":{"v":33304432.53629019,"d":"$33,304,433"}},{"$f":"'Trial 2'!DB22","v":{"v":33289792.974024545,"d":"$33,289,793"}},{"$f":"'Trial 2'!DC22","v":{"v":33274933.49504837,"d":"$33,274,933"}},{"$f":"'Trial 2'!DD22","v":{"v":33262132.983275387,"d":"$33,262,133"}},{"$f":"'Trial 2'!DE22","v":{"v":33247118.576410197,"d":"$33,247,119"}},{"$f":"'Trial 2'!DF22","v":{"v":33234475.188961256,"d":"$33,234,475"}},{"$f":"'Trial 2'!DG22","v":{"v":33222548.494016424,"d":"$33,222,548"}},{"$f":"'Trial 2'!DH22","v":{"v":33208475.51473131,"d":"$33,208,476"}},{"$f":"'Trial 2'!DI22","v":{"v":33194805.683075655,"d":"$33,194,806"}},{"$f":"'Trial 2'!DJ22","v":{"v":33181433.64799507,"d":"$33,181,434"}},{"$f":"'Trial 2'!DK22","v":{"v":33170579.721572604,"d":"$33,170,580"}},{"$f":"'Trial 2'!DL22","v":{"v":33154401.08948056,"d":"$33,154,401"}},{"$f":"'Trial 2'!DM22","v":{"v":33136417.586018164,"d":"$33,136,418"}},{"$f":"'Trial 2'!DO22","v":{"v":33119875.342886344,"d":"$33,119,875"}},{"$f":"'Trial 2'!DP22","v":{"v":33107976.2402218,"d":"$33,107,976"}},{"$f":"'Trial 2'!DQ22","v":{"v":33090829.93215376,"d":"$33,090,830"}},{"$f":"'Trial 2'!DR22","v":{"v":33077111.60485948,"d":"$33,077,112"}},{"$f":"'Trial 2'!DS22","v":{"v":33062464.070397925,"d":"$33,062,464"}},{"$f":"'Trial 2'!DT22","v":{"v":33046552.233591057,"d":"$33,046,552"}},{"$f":"'Trial 2'!DU22","v":{"v":33033252.56444813,"d":"$33,033,253"}},{"$f":"'Trial 2'!DV22","v":{"v":33021078.287803616,"d":"$33,021,078"}},{"$f":"'Trial 2'!DW22","v":{"v":33008539.69297503,"d":"$33,008,540"}},{"$f":"'Trial 2'!DX22","v":{"v":32992077.946706478,"d":"$32,992,078"}},{"$f":"'Trial 2'!DY22","v":{"v":32979900.40383832,"d":"$32,979,900"}},{"$f":"'Trial 2'!DZ22","v":{"v":32965810.554679703,"d":"$32,965,811"}},{"$f":"'Trial 2'!EB22","v":{"v":32949277.295858733,"d":"$32,949,277"}},{"$f":"'Trial 2'!EC22","v":{"v":32937465.7121059,"d":"$32,937,466"}},{"$f":"'Trial 2'!ED22","v":{"v":32924664.852082253,"d":"$32,924,665"}},{"$f":"'Trial 2'!EE22","v":{"v":32907058.87692327,"d":"$32,907,059"}},{"$f":"'Trial 2'!EF22","v":{"v":32892873.30794395,"d":"$32,892,873"}},{"$f":"'Trial 2'!EG22","v":{"v":32882238.83178306,"d":"$32,882,239"}},{"$f":"'Trial 2'!EH22","v":{"v":32865997.01956354,"d":"$32,865,997"}},{"$f":"'Trial 2'!EI22","v":{"v":32850457.334109172,"d":"$32,850,457"}},{"$f":"'Trial 2'!EJ22","v":{"v":32834192.021422774,"d":"$32,834,192"}},{"$f":"'Trial 2'!EK22","v":{"v":32821211.072408505,"d":"$32,821,211"}},{"$f":"'Trial 2'!EL22","v":{"v":32806171.56995688,"d":"$32,806,172"}},{"$f":"'Trial 2'!EM22","v":{"v":32793667.075793892,"d":"$32,793,667"}}]
[{"$f":"'Trial 3'!B22","v":{"v":34645298.42192645,"d":"$34,645,298"}},{"$f":"'Trial 3'!C22","v":{"v":34627561.778753355,"d":"$34,627,562"}},{"$f":"'Trial 3'!D22","v":{"v":34614190.277273856,"d":"$34,614,190"}},{"$f":"'Trial 3'!E22","v":{"v":34598099.05200938,"d":"$34,598,099"}},{"$f":"'Trial 3'!F22","v":{"v":34587180.66282008,"d":"$34,587,181"}},{"$f":"'Trial 3'!G22","v":{"v":34574184.968473814,"d":"$34,574,185"}},{"$f":"'Trial 3'!H22","v":{"v":34563028.7512114,"d":"$34,563,029"}},{"$f":"'Trial 3'!I22","v":{"v":34548150.152566634,"d":"$34,548,150"}},{"$f":"'Trial 3'!J22","v":{"v":34536070.206330165,"d":"$34,536,070"}},{"$f":"'Trial 3'!K22","v":{"v":34519592.94347886,"d":"$34,519,593"}},{"$f":"'Trial 3'!L22","v":{"v":34506221.73623712,"d":"$34,506,222"}},{"$f":"'Trial 3'!M22","v":{"v":34494353.69820394,"d":"$34,494,354"}},{"$f":"'Trial 3'!O22","v":{"v":34478636.8379346,"d":"$34,478,637"}},{"$f":"'Trial 3'!P22","v":{"v":34465300.4889714,"d":"$34,465,300"}},{"$f":"'Trial 3'!Q22","v":{"v":34450345.42183265,"d":"$34,450,345"}},{"$f":"'Trial 3'!R22","v":{"v":34439186.15868493,"d":"$34,439,186"}},{"$f":"'Trial 3'!S22","v":{"v":34426849.27196243,"d":"$34,426,849"}},{"$f":"'Trial 3'!T22","v":{"v":34412859.430243805,"d":"$34,412,859"}},{"$f":"'Trial 3'!U22","v":{"v":34398208.98472673,"d":"$34,398,209"}},{"$f":"'Trial 3'!V22","v":{"v":34379900.043848716,"d":"$34,379,900"}},{"$f":"'Trial 3'!W22","v":{"v":34364026.6168087,"d":"$34,364,027"}},{"$f":"'Trial 3'!X22","v":{"v":34350897.028542854,"d":"$34,350,897"}},{"$f":"'Trial 3'!Y22","v":{"v":34337188.099073716,"d":"$34,337,188"}},{"$f":"'Trial 3'!Z22","v":{"v":34322176.859698236,"d":"$34,322,177"}},{"$f":"'Trial 3'!AB22","v":{"v":34304204.53115242,"d":"$34,304,205"}},{"$f":"'Trial 3'!AC22","v":{"v":34292961.35476165,"d":"$34,292,961"}},{"$f":"'Trial 3'!AD22","v":{"v":34277510.48916212,"d":"$34,277,510"}},{"$f":"'Trial 3'!AE22","v":{"v":34261105.34922021,"d":"$34,261,105"}},{"$f":"'Trial 3'!AF22","v":{"v":34248937.90218909,"d":"$34,248,938"}},{"$f":"'Trial 3'!AG22","v":{"v":34230903.75163584,"d":"$34,230,904"}},{"$f":"'Trial 3'!AH22","v":{"v":34218526.76793199,"d":"$34,218,527"}},{"$f":"'Trial 3'!AI22","v":{"v":34204930.86099649,"d":"$34,204,931"}},{"$f":"'Trial 3'!AJ22","v":{"v":34189154.493921146,"d":"$34,189,154"}},{"$f":"'Trial 3'!AK22","v":{"v":34176425.86135548,"d":"$34,176,426"}},{"$f":"'Trial 3'!AL22","v":{"v":34162792.495968744,"d":"$34,162,792"}},{"$f":"'Trial 3'!AM22","v":{"v":34147843.14366663,"d":"$34,147,843"}},{"$f":"'Trial 3'!AO22","v":{"v":34132690.49177875,"d":"$34,132,690"}},{"$f":"'Trial 3'!AP22","v":{"v":34120651.74153521,"d":"$34,120,652"}},{"$f":"'Trial 3'!AQ22","v":{"v":34109086.1040989,"d":"$34,109,086"}},{"$f":"'Trial 3'!AR22","v":{"v":34091811.197618246,"d":"$34,091,811"}},{"$f":"'Trial 3'!AS22","v":{"v":34077124.20035591,"d":"$34,077,124"}},{"$f":"'Trial 3'!AT22","v":{"v":34064871.102016695,"d":"$34,064,871"}},{"$f":"'Trial 3'!AU22","v":{"v":34049711.038506575,"d":"$34,049,711"}},{"$f":"'Trial 3'!AV22","v":{"v":34033567.22777952,"d":"$34,033,567"}},{"$f":"'Trial 3'!AW22","v":{"v":34020327.27926963,"d":"$34,020,327"}},{"$f":"'Trial 3'!AX22","v":{"v":34004056.4335307,"d":"$34,004,056"}},{"$f":"'Trial 3'!AY22","v":{"v":33992501.10710122,"d":"$33,992,501"}},{"$f":"'Trial 3'!AZ22","v":{"v":33976245.676489346,"d":"$33,976,246"}},{"$f":"'Trial 3'!BB22","v":{"v":33958884.96143592,"d":"$33,958,885"}},{"$f":"'Trial 3'!BC22","v":{"v":33944036.21877867,"d":"$33,944,036"}},{"$f":"'Trial 3'!BD22","v":{"v":33926640.2814516,"d":"$33,926,640"}},{"$f":"'Trial 3'!BE22","v":{"v":33914431.46553713,"d":"$33,914,431"}},{"$f":"'Trial 3'!BF22","v":{"v":33896376.113502376,"d":"$33,896,376"}},{"$f":"'Trial 3'!BG22","v":{"v":33883118.355015874,"d":"$33,883,118"}},{"$f":"'Trial 3'!BH22","v":{"v":33865022.89849413,"d":"$33,865,023"}},{"$f":"'Trial 3'!BI22","v":{"v":33848833.1231206,"d":"$33,848,833"}},{"$f":"'Trial 3'!BJ22","v":{"v":33835278.03279136,"d":"$33,835,278"}},{"$f":"'Trial 3'!BK22","v":{"v":33821275.94156265,"d":"$33,821,276"}},{"$f":"'Trial 3'!BL22","v":{"v":33806364.21292024,"d":"$33,806,364"}},{"$f":"'Trial 3'!BM22","v":{"v":33793939.86017653,"d":"$33,793,940"}},{"$f":"'Trial 3'!BO22","v":{"v":33779646.34830576,"d":"$33,779,646"}},{"$f":"'Trial 3'!BP22","v":{"v":33765438.89126726,"d":"$33,765,439"}},{"$f":"'Trial 3'!BQ22","v":{"v":33752299.167261355,"d":"$33,752,299"}},{"$f":"'Trial 3'!BR22","v":{"v":33736120.47337585,"d":"$33,736,120"}},{"$f":"'Trial 3'!BS22","v":{"v":33722284.91200343,"d":"$33,722,285"}},{"$f":"'Trial 3'!BT22","v":{"v":33709873.27867522,"d":"$33,709,873"}},{"$f":"'Trial 3'!BU22","v":{"v":33695101.66864466,"d":"$33,695,102"}},{"$f":"'Trial 3'!BV22","v":{"v":33679989.61685534,"d":"$33,679,990"}},{"$f":"'Trial 3'!BW22","v":{"v":33664043.69970853,"d":"$33,664,044"}},{"$f":"'Trial 3'!BX22","v":{"v":33650998.90592407,"d":"$33,650,999"}},{"$f":"'Trial 3'!BY22","v":{"v":33634370.14355362,"d":"$33,634,370"}},{"$f":"'Trial 3'!BZ22","v":{"v":33623110.043035015,"d":"$33,623,110"}},{"$f":"'Trial 3'!CB22","v":{"v":33608262.09066019,"d":"$33,608,262"}},{"$f":"'Trial 3'!CC22","v":{"v":33595362.507398434,"d":"$33,595,363"}},{"$f":"'Trial 3'!CD22","v":{"v":33580798.57940324,"d":"$33,580,799"}},{"$f":"'Trial 3'!CE22","v":{"v":33566954.58928164,"d":"$33,566,955"}},{"$f":"'Trial 3'!CF22","v":{"v":33553207.605848175,"d":"$33,553,208"}},{"$f":"'Trial 3'!CG22","v":{"v":33539224.767436374,"d":"$33,539,225"}},{"$f":"'Trial 3'!CH22","v":{"v":33526941.584216695,"d":"$33,526,942"}},{"$f":"'Trial 3'!CI22","v":{"v":33514943.0198399,"d":"$33,514,943"}},{"$f":"'Trial 3'!CJ22","v":{"v":33503747.78459299,"d":"$33,503,748"}},{"$f":"'Trial 3'!CK22","v":{"v":33489318.518079218,"d":"$33,489,319"}},{"$f":"'Trial 3'!CL22","v":{"v":33476643.87562458,"d":"$33,476,644"}},{"$f":"'Trial 3'!CM22","v":{"v":33464855.795126613,"d":"$33,464,856"}},{"$f":"'Trial 3'!CO22","v":{"v":33454060.1533684,"d":"$33,454,060"}},{"$f":"'Trial 3'!CP22","v":{"v":33437672.26447674,"d":"$33,437,672"}},{"$f":"'Trial 3'!CQ22","v":{"v":33424728.505092006,"d":"$33,424,729"}},{"$f":"'Trial 3'!CR22","v":{"v":33409824.823061507,"d":"$33,409,825"}},{"$f":"'Trial 3'!CS22","v":{"v":33396500.044962958,"d":"$33,396,500"}},{"$f":"'Trial 3'!CT22","v":{"v":33382189.70463971,"d":"$33,382,190"}},{"$f":"'Trial 3'!CU22","v":{"v":33368661.169118717,"d":"$33,368,661"}},{"$f":"'Trial 3'!CV22","v":{"v":33355975.624582335,"d":"$33,355,976"}},{"$f":"'Trial 3'!CW22","v":{"v":33342201.857112367,"d":"$33,342,202"}},{"$f":"'Trial 3'!CX22","v":{"v":33326217.25971493,"d":"$33,326,217"}},{"$f":"'Trial 3'!CY22","v":{"v":33315085.185469385,"d":"$33,315,085"}},{"$f":"'Trial 3'!CZ22","v":{"v":33299582.120597713,"d":"$33,299,582"}},{"$f":"'Trial 3'!DB22","v":{"v":33287536.953427415,"d":"$33,287,537"}},{"$f":"'Trial 3'!DC22","v":{"v":33271243.398394324,"d":"$33,271,243"}},{"$f":"'Trial 3'!DD22","v":{"v":33253413.732760504,"d":"$33,253,414"}},{"$f":"'Trial 3'!DE22","v":{"v":33239114.258277617,"d":"$33,239,114"}},{"$f":"'Trial 3'!DF22","v":{"v":33225959.336064633,"d":"$33,225,959"}},{"$f":"'Trial 3'!DG22","v":{"v":33212330.67791886,"d":"$33,212,331"}},{"$f":"'Trial 3'!DH22","v":{"v":33199524.025126584,"d":"$33,199,524"}},{"$f":"'Trial 3'!DI22","v":{"v":33186361.938404597,"d":"$33,186,362"}},{"$f":"'Trial 3'!DJ22","v":{"v":33172506.519282125,"d":"$33,172,507"}},{"$f":"'Trial 3'!DK22","v":{"v":33157808.99330674,"d":"$33,157,809"}},{"$f":"'Trial 3'!DL22","v":{"v":33144622.277545806,"d":"$33,144,622"}},{"$f":"'Trial 3'!DM22","v":{"v":33132089.979916673,"d":"$33,132,090"}},{"$f":"'Trial 3'!DO22","v":{"v":33118827.855641246,"d":"$33,118,828"}},{"$f":"'Trial 3'!DP22","v":{"v":33106010.616053753,"d":"$33,106,011"}},{"$f":"'Trial 3'!DQ22","v":{"v":33093428.913641464,"d":"$33,093,429"}},{"$f":"'Trial 3'!DR22","v":{"v":33083573.98303611,"d":"$33,083,574"}},{"$f":"'Trial 3'!DS22","v":{"v":33066141.198986433,"d":"$33,066,141"}},{"$f":"'Trial 3'!DT22","v":{"v":33051132.562933683,"d":"$33,051,133"}},{"$f":"'Trial 3'!DU22","v":{"v":33038967.024010047,"d":"$33,038,967"}},{"$f":"'Trial 3'!DV22","v":{"v":33024769.964936376,"d":"$33,024,770"}},{"$f":"'Trial 3'!DW22","v":{"v":33012657.81875693,"d":"$33,012,658"}},{"$f":"'Trial 3'!DX22","v":{"v":33001426.10430395,"d":"$33,001,426"}},{"$f":"'Trial 3'!DY22","v":{"v":32987162.801327292,"d":"$32,987,163"}},{"$f":"'Trial 3'!DZ22","v":{"v":32972209.330103356,"d":"$32,972,209"}},{"$f":"'Trial 3'!EB22","v":{"v":32956094.670435645,"d":"$32,956,095"}},{"$f":"'Trial 3'!EC22","v":{"v":32942214.198279336,"d":"$32,942,214"}},{"$f":"'Trial 3'!ED22","v":{"v":32927507.982332103,"d":"$32,927,508"}},{"$f":"'Trial 3'!EE22","v":{"v":32914389.943678193,"d":"$32,914,390"}},{"$f":"'Trial 3'!EF22","v":{"v":32901278.351944517,"d":"$32,901,278"}},{"$f":"'Trial 3'!EG22","v":{"v":32887258.89642723,"d":"$32,887,259"}},{"$f":"'Trial 3'!EH22","v":{"v":32873269.264591776,"d":"$32,873,269"}},{"$f":"'Trial 3'!EI22","v":{"v":32861314.11733347,"d":"$32,861,314"}},{"$f":"'Trial 3'!EJ22","v":{"v":32844768.115639158,"d":"$32,844,768"}},{"$f":"'Trial 3'!EK22","v":{"v":32827419.79517711,"d":"$32,827,420"}},{"$f":"'Trial 3'!EL22","v":{"v":32816426.02592721,"d":"$32,816,426"}},{"$f":"'Trial 3'!EM22","v":{"v":32804074.179809205,"d":"$32,804,074"}}]
[{"$f":"'Trial 4'!B22","v":{"v":34645298.42192645,"d":"$34,645,298"}},{"$f":"'Trial 4'!C22","v":{"v":34630345.02675211,"d":"$34,630,345"}},{"$f":"'Trial 4'!D22","v":{"v":34614880.06396955,"d":"$34,614,880"}},{"$f":"'Trial 4'!E22","v":{"v":34599333.67226247,"d":"$34,599,334"}},{"$f":"'Trial 4'!F22","v":{"v":34586620.19329662,"d":"$34,586,620"}},{"$f":"'Trial 4'!G22","v":{"v":34575231.68172816,"d":"$34,575,232"}},{"$f":"'Trial 4'!H22","v":{"v":34565035.54688739,"d":"$34,565,036"}},{"$f":"'Trial 4'!I22","v":{"v":34548010.15259519,"d":"$34,548,010"}},{"$f":"'Trial 4'!J22","v":{"v":34531129.27002191,"d":"$34,531,129"}},{"$f":"'Trial 4'!K22","v":{"v":34516540.03788704,"d":"$34,516,540"}},{"$f":"'Trial 4'!L22","v":{"v":34501976.43840428,"d":"$34,501,976"}},{"$f":"'Trial 4'!M22","v":{"v":34488026.04364099,"d":"$34,488,026"}},{"$f":"'Trial 4'!O22","v":{"v":34470747.945310146,"d":"$34,470,748"}},{"$f":"'Trial 4'!P22","v":{"v":34456814.18627433,"d":"$34,456,814"}},{"$f":"'Trial 4'!Q22","v":{"v":34443734.54081176,"d":"$34,443,735"}},{"$f":"'Trial 4'!R22","v":{"v":34432679.94311086,"d":"$34,432,680"}},{"$f":"'Trial 4'!S22","v":{"v":34418760.04572655,"d":"$34,418,760"}},{"$f":"'Trial 4'!T22","v":{"v":34400858.12983572,"d":"$34,400,858"}},{"$f":"'Trial 4'!U22","v":{"v":34385727.37098968,"d":"$34,385,727"}},{"$f":"'Trial 4'!V22","v":{"v":34371918.956236884,"d":"$34,371,919"}},{"$f":"'Trial 4'!W22","v":{"v":34357620.17940846,"d":"$34,357,620"}},{"$f":"'Trial 4'!X22","v":{"v":34347785.32113337,"d":"$34,347,785"}},{"$f":"'Trial 4'!Y22","v":{"v":34333335.77886243,"d":"$34,333,336"}},{"$f":"'Trial 4'!Z22","v":{"v":34315765.25999433,"d":"$34,315,765"}},{"$f":"'Trial 4'!AB22","v":{"v":34299663.44696634,"d":"$34,299,663"}},{"$f":"'Trial 4'!AC22","v":{"v":34284088.31411503,"d":"$34,284,088"}},{"$f":"'Trial 4'!AD22","v":{"v":34270630.54046255,"d":"$34,270,631"}},{"$f":"'Trial 4'!AE22","v":{"v":34255647.87460451,"d":"$34,255,648"}},{"$f":"'Trial 4'!AF22","v":{"v":34238627.94777798,"d":"$34,238,628"}},{"$f":"'Trial 4'!AG22","v":{"v":34223244.395842955,"d":"$34,223,244"}},{"$f":"'Trial 4'!AH22","v":{"v":34212243.5408806,"d":"$34,212,244"}},{"$f":"'Trial 4'!AI22","v":{"v":34198131.23064813,"d":"$34,198,131"}},{"$f":"'Trial 4'!AJ22","v":{"v":34183985.81123105,"d":"$34,183,986"}},{"$f":"'Trial 4'!AK22","v":{"v":34168596.7492891,"d":"$34,168,597"}},{"$f":"'Trial 4'!AL22","v":{"v":34157116.11975193,"d":"$34,157,116"}},{"$f":"'Trial 4'!AM22","v":{"v":34142182.90202131,"d":"$34,142,183"}},{"$f":"'Trial 4'!AO22","v":{"v":34124068.68151382,"d":"$34,124,069"}},{"$f":"'Trial 4'!AP22","v":{"v":34109956.769120395,"d":"$34,109,957"}},{"$f":"'Trial 4'!AQ22","v":{"v":34095642.50662549,"d":"$34,095,643"}},{"$f":"'Trial 4'!AR22","v":{"v":34080858.91827639,"d":"$34,080,859"}},{"$f":"'Trial 4'!AS22","v":{"v":34064361.72676421,"d":"$34,064,362"}},{"$f":"'Trial 4'!AT22","v":{"v":34051036.11455923,"d":"$34,051,036"}},{"$f":"'Trial 4'!AU22","v":{"v":34039041.573829845,"d":"$34,039,042"}},{"$f":"'Trial 4'!AV22","v":{"v":34025812.150681525,"d":"$34,025,812"}},{"$f":"'Trial 4'!AW22","v":{"v":34011509.25752953,"d":"$34,011,509"}},{"$f":"'Trial 4'!AX22","v":{"v":33998671.34199954,"d":"$33,998,671"}},{"$f":"'Trial 4'!AY22","v":{"v":33982356.6069006,"d":"$33,982,357"}},{"$f":"'Trial 4'!AZ22","v":{"v":33966371.716181666,"d":"$33,966,372"}},{"$f":"'Trial 4'!BB22","v":{"v":33948768.514544554,"d":"$33,948,769"}},{"$f":"'Trial 4'!BC22","v":{"v":33938572.656724945,"d":"$33,938,573"}},{"$f":"'Trial 4'!BD22","v":{"v":33928234.97106123,"d":"$33,928,235"}},{"$f":"'Trial 4'!BE22","v":{"v":33911880.737923175,"d":"$33,911,881"}},{"$f":"'Trial 4'!BF22","v":{"v":33897735.6996546,"d":"$33,897,736"}},{"$f":"'Trial 4'!BG22","v":{"v":33881539.05054248,"d":"$33,881,539"}},{"$f":"'Trial 4'!BH22","v":{"v":33868864.700165875,"d":"$33,868,865"}},{"$f":"'Trial 4'!BI22","v":{"v":33852828.00923251,"d":"$33,852,828"}},{"$f":"'Trial 4'!BJ22","v":{"v":33838830.76586224,"d":"$33,838,831"}},{"$f":"'Trial 4'!BK22","v":{"v":33820713.729033835,"d":"$33,820,714"}},{"$f":"'Trial 4'!BL22","v":{"v":33808664.509548634,"d":"$33,808,665"}},{"$f":"'Trial 4'!BM22","v":{"v":33795559.73716014,"d":"$33,795,560"}},{"$f":"'Trial 4'!BO22","v":{"v":33783303.441083394,"d":"$33,783,303"}},{"$f":"'Trial 4'!BP22","v":{"v":33770773.475430295,"d":"$33,770,773"}},{"$f":"'Trial 4'!BQ22","v":{"v":33758374.235038854,"d":"$33,758,374"}},{"$f":"'Trial 4'!BR22","v":{"v":33742720.32835741,"d":"$33,742,720"}},{"$f":"'Trial 4'!BS22","v":{"v":33729090.850406006,"d":"$33,729,091"}},{"$f":"'Trial 4'!BT22","v":{"v":33712445.61685086,"d":"$33,712,446"}},{"$f":"'Trial 4'!BU22","v":{"v":33699651.20695442,"d":"$33,699,651"}},{"$f":"'Trial 4'!BV22","v":{"v":33684597.22133623,"d":"$33,684,597"}},{"$f":"'Trial 4'!BW22","v":{"v":33668706.93238838,"d":"$33,668,707"}},{"$f":"'Trial 4'!BX22","v":{"v":33652056.82598843,"d":"$33,652,057"}},{"$f":"'Trial 4'!BY22","v":{"v":33639754.25842965,"d":"$33,639,754"}},{"$f":"'Trial 4'!BZ22","v":{"v":33625222.30110756,"d":"$33,625,222"}},{"$f":"'Trial 4'!CB22","v":{"v":33612288.89434176,"d":"$33,612,289"}},{"$f":"'Trial 4'!CC22","v":{"v":33596185.102173455,"d":"$33,596,185"}},{"$f":"'Trial 4'!CD22","v":{"v":33583124.96864029,"d":"$33,583,125"}},{"$f":"'Trial 4'!CE22","v":{"v":33567787.62645041,"d":"$33,567,788"}},{"$f":"'Trial 4'!CF22","v":{"v":33552921.345410187,"d":"$33,552,921"}},{"$f":"'Trial 4'!CG22","v":{"v":33539158.31621243,"d":"$33,539,158"}},{"$f":"'Trial 4'!CH22","v":{"v":33524123.58026382,"d":"$33,524,124"}},{"$f":"'Trial 4'!CI22","v":{"v":33514276.3852053,"d":"$33,514,276"}},{"$f":"'Trial 4'!CJ22","v":{"v":33502417.959437136,"d":"$33,502,418"}},{"$f":"'Trial 4'!CK22","v":{"v":33488037.38570734,"d":"$33,488,037"}},{"$f":"'Trial 4'!CL22","v":{"v":33476338.628921658,"d":"$33,476,339"}},{"$f":"'Trial 4'!CM22","v":{"v":33462781.502396807,"d":"$33,462,782"}},{"$f":"'Trial 4'!CO22","v":{"v":33447173.266641732,"d":"$33,447,173"}},{"$f":"'Trial 4'!CP22","v":{"v":33435236.63475392,"d":"$33,435,237"}},{"$f":"'Trial 4'!CQ22","v":{"v":33422662.54471131,"d":"$33,422,663"}},{"$f":"'Trial 4'!CR22","v":{"v":33410724.226990454,"d":"$33,410,724"}},{"$f":"'Trial 4'!CS22","v":{"v":33396873.210660685,"d":"$33,396,873"}},{"$f":"'Trial 4'!CT22","v":{"v":33381080.250365008,"d":"$33,381,080"}},{"$f":"'Trial 4'!CU22","v":{"v":33363659.51070341,"d":"$33,363,660"}},{"$f":"'Trial 4'!CV22","v":{"v":33353319.899109654,"d":"$33,353,320"}},{"$f":"'Trial 4'!CW22","v":{"v":33340426.029558893,"d":"$33,340,426"}},{"$f":"'Trial 4'!CX22","v":{"v":33327321.438289966,"d":"$33,327,321"}},{"$f":"'Trial 4'!CY22","v":{"v":33309918.832511365,"d":"$33,309,919"}},{"$f":"'Trial 4'!CZ22","v":{"v":33297369.391804393,"d":"$33,297,369"}},{"$f":"'Trial 4'!DB22","v":{"v":33286288.157646652,"d":"$33,286,288"}},{"$f":"'Trial 4'!DC22","v":{"v":33270776.89266672,"d":"$33,270,777"}},{"$f":"'Trial 4'!DD22","v":{"v":33254109.858612474,"d":"$33,254,110"}},{"$f":"'Trial 4'!DE22","v":{"v":33241580.722999614,"d":"$33,241,581"}},{"$f":"'Trial 4'!DF22","v":{"v":33229068.53828045,"d":"$33,229,069"}},{"$f":"'Trial 4'!DG22","v":{"v":33215447.358736973,"d":"$33,215,447"}},{"$f":"'Trial 4'!DH22","v":{"v":33202412.285156034,"d":"$33,202,412"}},{"$f":"'Trial 4'!DI22","v":{"v":33185792.37090785,"d":"$33,185,792"}},{"$f":"'Trial 4'!DJ22","v":{"v":33173585.716958765,"d":"$33,173,586"}},{"$f":"'Trial 4'!DK22","v":{"v":33158344.732293755,"d":"$33,158,345"}},{"$f":"'Trial 4'!DL22","v":{"v":33145762.468166605,"d":"$33,145,762"}},{"$f":"'Trial 4'!DM22","v":{"v":33132471.338873636,"d":"$33,132,471"}},{"$f":"'Trial 4'!DO22","v":{"v":33117420.103544142,"d":"$33,117,420"}},{"$f":"'Trial 4'!DP22","v":{"v":33106581.721778046,"d":"$33,106,582"}},{"$f":"'Trial 4'!DQ22","v":{"v":33096669.337497532,"d":"$33,096,669"}},{"$f":"'Trial 4'!DR22","v":{"v":33080603.819541886,"d":"$33,080,604"}},{"$f":"'Trial 4'!DS22","v":{"v":33070020.506244197,"d":"$33,070,021"}},{"$f":"'Trial 4'!DT22","v":{"v":33059850.793098476,"d":"$33,059,851"}},{"$f":"'Trial 4'!DU22","v":{"v":33047836.93406187,"d":"$33,047,837"}},{"$f":"'Trial 4'!DV22","v":{"v":33032722.770196654,"d":"$33,032,723"}},{"$f":"'Trial 4'!DW22","v":{"v":33018285.105741184,"d":"$33,018,285"}},{"$f":"'Trial 4'!DX22","v":{"v":33000231.643458195,"d":"$33,000,232"}},{"$f":"'Trial 4'!DY22","v":{"v":32989172.737011775,"d":"$32,989,173"}},{"$f":"'Trial 4'!DZ22","v":{"v":32977585.719611015,"d":"$32,977,586"}},{"$f":"'Trial 4'!EB22","v":{"v":32966972.338095687,"d":"$32,966,972"}},{"$f":"'Trial 4'!EC22","v":{"v":32952747.191853646,"d":"$32,952,747"}},{"$f":"'Trial 4'!ED22","v":{"v":32934503.33509343,"d":"$32,934,503"}},{"$f":"'Trial 4'!EE22","v":{"v":32919764.446494106,"d":"$32,919,764"}},{"$f":"'Trial 4'!EF22","v":{"v":32908449.915468264,"d":"$32,908,450"}},{"$f":"'Trial 4'!EG22","v":{"v":32897924.349810366,"d":"$32,897,924"}},{"$f":"'Trial 4'!EH22","v":{"v":32883007.392951008,"d":"$32,883,007"}},{"$f":"'Trial 4'!EI22","v":{"v":32870628.50528554,"d":"$32,870,629"}},{"$f":"'Trial 4'!EJ22","v":{"v":32853221.468705684,"d":"$32,853,221"}},{"$f":"'Trial 4'!EK22","v":{"v":32835795.332236607,"d":"$32,835,795"}},{"$f":"'Trial 4'!EL22","v":{"v":32824061.266457263,"d":"$32,824,061"}},{"$f":"'Trial 4'!EM22","v":{"v":32807628.882594775,"d":"$32,807,629"}}]
[{"$f":"'Trial 5'!B22","v":{"v":34645298.42192645,"d":"$34,645,298"}},{"$f":"'Trial 5'!C22","v":{"v":34628599.37310188,"d":"$34,628,599"}},{"$f":"'Trial 5'!D22","v":{"v":34612603.71556249,"d":"$34,612,604"}},{"$f":"'Trial 5'!E22","v":{"v":34601218.85980364,"d":"$34,601,219"}},{"$f":"'Trial 5'!F22","v":{"v":34583660.57399619,"d":"$34,583,661"}},{"$f":"'Trial 5'!G22","v":{"v":34568274.34612986,"d":"$34,568,274"}},{"$f":"'Trial 5'!H22","v":{"v":34552579.62556409,"d":"$34,552,580"}},{"$f":"'Trial 5'!I22","v":{"v":34538418.0995861,"d":"$34,538,418"}},{"$f":"'Trial 5'!J22","v":{"v":34525741.27294041,"d":"$34,525,741"}},{"$f":"'Trial 5'!K22","v":{"v":34515851.14112047,"d":"$34,515,851"}},{"$f":"'Trial 5'!L22","v":{"v":34499906.22669267,"d":"$34,499,906"}},{"$f":"'Trial 5'!M22","v":{"v":34484386.873341076,"d":"$34,484,387"}},{"$f":"'Trial 5'!O22","v":{"v":34470273.22835621,"d":"$34,470,273"}},{"$f":"'Trial 5'!P22","v":{"v":34455521.69936901,"d":"$34,455,522"}},{"$f":"'Trial 5'!Q22","v":{"v":34441740.41803927,"d":"$34,441,740"}},{"$f":"'Trial 5'!R22","v":{"v":34427118.98332958,"d":"$34,427,119"}},{"$f":"'Trial 5'!S22","v":{"v":34413550.165809706,"d":"$34,413,550"}},{"$f":"'Trial 5'!T22","v":{"v":34396645.441059396,"d":"$34,396,645"}},{"$f":"'Trial 5'!U22","v":{"v":34386706.417434126,"d":"$34,386,706"}},{"$f":"'Trial 5'!V22","v":{"v":34373616.63551212,"d":"$34,373,617"}},{"$f":"'Trial 5'!W22","v":{"v":34359281.55003248,"d":"$34,359,282"}},{"$f":"'Trial 5'!X22","v":{"v":34345828.87963655,"d":"$34,345,829"}},{"$f":"'Trial 5'!Y22","v":{"v":34329396.95993028,"d":"$34,329,397"}},{"$f":"'Trial 5'!Z22","v":{"v":34319205.57974826,"d":"$34,319,206"}},{"$f":"'Trial 5'!AB22","v":{"v":34304176.88683356,"d":"$34,304,177"}},{"$f":"'Trial 5'!AC22","v":{"v":34291255.88385411,"d":"$34,291,256"}},{"$f":"'Trial 5'!AD22","v":{"v":34277161.524202265,"d":"$34,277,162"}},{"$f":"'Trial 5'!AE22","v":{"v":34266632.723244764,"d":"$34,266,633"}},{"$f":"'Trial 5'!AF22","v":{"v":34248582.68402204,"d":"$34,248,583"}},{"$f":"'Trial 5'!AG22","v":{"v":34231226.78845472,"d":"$34,231,227"}},{"$f":"'Trial 5'!AH22","v":{"v":34216034.13985766,"d":"$34,216,034"}},{"$f":"'Trial 5'!AI22","v":{"v":34202929.93572896,"d":"$34,202,930"}},{"$f":"'Trial 5'!AJ22","v":{"v":34186522.11108531,"d":"$34,186,522"}},{"$f":"'Trial 5'!AK22","v":{"v":34172990.71768417,"d":"$34,172,991"}},{"$f":"'Trial 5'!AL22","v":{"v":34156494.95125408,"d":"$34,156,495"}},{"$f":"'Trial 5'!AM22","v":{"v":34141814.021242484,"d":"$34,141,814"}},{"$f":"'Trial 5'!AO22","v":{"v":34125582.26845431,"d":"$34,125,582"}},{"$f":"'Trial 5'!AP22","v":{"v":34111544.9363995,"d":"$34,111,545"}},{"$f":"'Trial 5'!AQ22","v":{"v":34097739.61933919,"d":"$34,097,740"}},{"$f":"'Trial 5'!AR22","v":{"v":34082821.586680666,"d":"$34,082,822"}},{"$f":"'Trial 5'!AS22","v":{"v":34069833.118199185,"d":"$34,069,833"}},{"$f":"'Trial 5'!AT22","v":{"v":34057236.748897135,"d":"$34,057,237"}},{"$f":"'Trial 5'!AU22","v":{"v":34042008.861499496,"d":"$34,042,009"}},{"$f":"'Trial 5'!AV22","v":{"v":34028819.05570022,"d":"$34,028,819"}},{"$f":"'Trial 5'!AW22","v":{"v":34014949.10201445,"d":"$34,014,949"}},{"$f":"'Trial 5'!AX22","v":{"v":34000313.39527343,"d":"$34,000,313"}},{"$f":"'Trial 5'!AY22","v":{"v":33985712.20025166,"d":"$33,985,712"}},{"$f":"'Trial 5'!AZ22","v":{"v":33972239.67184318,"d":"$33,972,240"}},{"$f":"'Trial 5'!BB22","v":{"v":33957682.90612359,"d":"$33,957,683"}},{"$f":"'Trial 5'!BC22","v":{"v":33942121.39764629,"d":"$33,942,121"}},{"$f":"'Trial 5'!BD22","v":{"v":33925215.96596385,"d":"$33,925,216"}},{"$f":"'Trial 5'!BE22","v":{"v":33907178.231270015,"d":"$33,907,178"}},{"$f":"'Trial 5'!BF22","v":{"v":33894190.40102107,"d":"$33,894,190"}},{"$f":"'Trial 5'!BG22","v":{"v":33879037.426223926,"d":"$33,879,037"}},{"$f":"'Trial 5'!BH22","v":{"v":33865556.90212924,"d":"$33,865,557"}},{"$f":"'Trial 5'!BI22","v":{"v":33848511.566027954,"d":"$33,848,512"}},{"$f":"'Trial 5'!BJ22","v":{"v":33835139.52746756,"d":"$33,835,140"}},{"$f":"'Trial 5'!BK22","v":{"v":33823775.60527562,"d":"$33,823,776"}},{"$f":"'Trial 5'!BL22","v":{"v":33810643.62712014,"d":"$33,810,644"}},{"$f":"'Trial 5'!BM22","v":{"v":33799344.40062655,"d":"$33,799,344"}},{"$f":"'Trial 5'!BO22","v":{"v":33785960.60744987,"d":"$33,785,961"}},{"$f":"'Trial 5'!BP22","v":{"v":33774536.423438035,"d":"$33,774,536"}},{"$f":"'Trial 5'!BQ22","v":{"v":33764287.51783124,"d":"$33,764,288"}},{"$f":"'Trial 5'!BR22","v":{"v":33753881.260557406,"d":"$33,753,881"}},{"$f":"'Trial 5'!BS22","v":{"v":33737269.41700712,"d":"$33,737,269"}},{"$f":"'Trial 5'!BT22","v":{"v":33723226.17436511,"d":"$33,723,226"}},{"$f":"'Trial 5'!BU22","v":{"v":33713122.57145279,"d":"$33,713,123"}},{"$f":"'Trial 5'!BV22","v":{"v":33696710.78653421,"d":"$33,696,711"}},{"$f":"'Trial 5'!BW22","v":{"v":33682213.37742239,"d":"$33,682,213"}},{"$f":"'Trial 5'!BX22","v":{"v":33668547.61412248,"d":"$33,668,548"}},{"$f":"'Trial 5'!BY22","v":{"v":33657565.695729055,"d":"$33,657,566"}},{"$f":"'Trial 5'!BZ22","v":{"v":33646837.84012126,"d":"$33,646,838"}},{"$f":"'Trial 5'!CB22","v":{"v":33635224.366879284,"d":"$33,635,224"}},{"$f":"'Trial 5'!CC22","v":{"v":33620834.99502601,"d":"$33,620,835"}},{"$f":"'Trial 5'!CD22","v":{"v":33606949.094885446,"d":"$33,606,949"}},{"$f":"'Trial 5'!CE22","v":{"v":33592630.35814143,"d":"$33,592,630"}},{"$f":"'Trial 5'!CF22","v":{"v":33577243.33472054,"d":"$33,577,243"}},{"$f":"'Trial 5'!CG22","v":{"v":33563660.80244669,"d":"$33,563,661"}},{"$f":"'Trial 5'!CH22","v":{"v":33553694.584586915,"d":"$33,553,695"}},{"$f":"'Trial 5'!CI22","v":{"v":33538111.484046295,"d":"$33,538,111"}},{"$f":"'Trial 5'!CJ22","v":{"v":33522096.12201012,"d":"$33,522,096"}},{"$f":"'Trial 5'!CK22","v":{"v":33508832.80337265,"d":"$33,508,833"}},{"$f":"'Trial 5'!CL22","v":{"v":33498602.76166805,"d":"$33,498,603"}},{"$f":"'Trial 5'!CM22","v":{"v":33482409.380711198,"d":"$33,482,409"}},{"$f":"'Trial 5'!CO22","v":{"v":33469588.056331925,"d":"$33,469,588"}},{"$f":"'Trial 5'!CP22","v":{"v":33456543.688838374,"d":"$33,456,544"}},{"$f":"'Trial 5'!CQ22","v":{"v":33440316.038484965,"d":"$33,440,316"}},{"$f":"'Trial 5'!CR22","v":{"v":33429545.53137312,"d":"$33,429,546"}},{"$f":"'Trial 5'!CS22","v":{"v":33413770.39478793,"d":"$33,413,770"}},{"$f":"'Trial 5'!CT22","v":{"v":33398668.03659915,"d":"$33,398,668"}},{"$f":"'Trial 5'!CU22","v":{"v":33385831.256578024,"d":"$33,385,831"}},{"$f":"'Trial 5'!CV22","v":{"v":33372340.865093827,"d":"$33,372,341"}},{"$f":"'Trial 5'!CW22","v":{"v":33357696.033530485,"d":"$33,357,696"}},{"$f":"'Trial 5'!CX22","v":{"v":33345809.31729181,"d":"$33,345,809"}},{"$f":"'Trial 5'!CY22","v":{"v":33330768.021428265,"d":"$33,330,768"}},{"$f":"'Trial 5'!CZ22","v":{"v":33316586.493860766,"d":"$33,316,586"}},{"$f":"'Trial 5'!DB22","v":{"v":33299107.1912396,"d":"$33,299,107"}},{"$f":"'Trial 5'!DC22","v":{"v":33286419.365711365,"d":"$33,286,419"}},{"$f":"'Trial 5'!DD22","v":{"v":33272541.54184168,"d":"$33,272,542"}},{"$f":"'Trial 5'!DE22","v":{"v":33259243.237388335,"d":"$33,259,243"}},{"$f":"'Trial 5'!DF22","v":{"v":33243742.108512107,"d":"$33,243,742"}},{"$f":"'Trial 5'!DG22","v":{"v":33227740.381873615,"d":"$33,227,740"}},{"$f":"'Trial 5'!DH22","v":{"v":33215807.17258886,"d":"$33,215,807"}},{"$f":"'Trial 5'!DI22","v":{"v":33205548.526187256,"d":"$33,205,549"}},{"$f":"'Trial 5'!DJ22","v":{"v":33191676.223606724,"d":"$33,191,676"}},{"$f":"'Trial 5'!DK22","v":{"v":33175656.489494365,"d":"$33,175,656"}},{"$f":"'Trial 5'!DL22","v":{"v":33161221.06517542,"d":"$33,161,221"}},{"$f":"'Trial 5'!DM22","v":{"v":33144880.31009179,"d":"$33,144,880"}},{"$f":"'Trial 5'!DO22","v":{"v":33130955.155806173,"d":"$33,130,955"}},{"$f":"'Trial 5'!DP22","v":{"v":33115786.44914039,"d":"$33,115,786"}},{"$f":"'Trial 5'!DQ22","v":{"v":33101674.311492004,"d":"$33,101,674"}},{"$f":"'Trial 5'!DR22","v":{"v":33091045.79330218,"d":"$33,091,046"}},{"$f":"'Trial 5'!DS22","v":{"v":33078662.386316814,"d":"$33,078,662"}},{"$f":"'Trial 5'!DT22","v":{"v":33065847.295814894,"d":"$33,065,847"}},{"$f":"'Trial 5'!DU22","v":{"v":33054213.167698387,"d":"$33,054,213"}},{"$f":"'Trial 5'!DV22","v":{"v":33038495.971505724,"d":"$33,038,496"}},{"$f":"'Trial 5'!DW22","v":{"v":33024803.940932244,"d":"$33,024,804"}},{"$f":"'Trial 5'!DX22","v":{"v":33012661.59009433,"d":"$33,012,662"}},{"$f":"'Trial 5'!DY22","v":{"v":32997518.176959597,"d":"$32,997,518"}},{"$f":"'Trial 5'!DZ22","v":{"v":32983504.464150917,"d":"$32,983,504"}},{"$f":"'Trial 5'!EB22","v":{"v":32967501.71966712,"d":"$32,967,502"}},{"$f":"'Trial 5'!EC22","v":{"v":32953383.71177077,"d":"$32,953,384"}},{"$f":"'Trial 5'!ED22","v":{"v":32941995.68964985,"d":"$32,941,996"}},{"$f":"'Trial 5'!EE22","v":{"v":32926285.750931796,"d":"$32,926,286"}},{"$f":"'Trial 5'!EF22","v":{"v":32912712.336608846,"d":"$32,912,712"}},{"$f":"'Trial 5'!EG22","v":{"v":32899010.9797649,"d":"$32,899,011"}},{"$f":"'Trial 5'!EH22","v":{"v":32887367.98637046,"d":"$32,887,368"}},{"$f":"'Trial 5'!EI22","v":{"v":32870271.1287704,"d":"$32,870,271"}},{"$f":"'Trial 5'!EJ22","v":{"v":32854044.925267406,"d":"$32,854,045"}},{"$f":"'Trial 5'!EK22","v":{"v":32838810.89011584,"d":"$32,838,811"}},{"$f":"'Trial 5'!EL22","v":{"v":32825026.475656126,"d":"$32,825,026"}},{"$f":"'Trial 5'!EM22","v":{"v":32811338.016785853,"d":"$32,811,338"}}]
[{"$f":"'Trial 6'!B22","v":{"v":34645298.42192645,"d":"$34,645,298"}},{"$f":"'Trial 6'!C22","v":{"v":34631812.82722025,"d":"$34,631,813"}},{"$f":"'Trial 6'!D22","v":{"v":34613699.53270011,"d":"$34,613,700"}},{"$f":"'Trial 6'!E22","v":{"v":34601886.52378357,"d":"$34,601,887"}},{"$f":"'Trial 6'!F22","v":{"v":34591229.22011053,"d":"$34,591,229"}},{"$f":"'Trial 6'!G22","v":{"v":34578371.011161454,"d":"$34,578,371"}},{"$f":"'Trial 6'!H22","v":{"v":34562669.351101756,"d":"$34,562,669"}},{"$f":"'Trial 6'!I22","v":{"v":34548291.06365634,"d":"$34,548,291"}},{"$f":"'Trial 6'!J22","v":{"v":34533829.37605615,"d":"$34,533,829"}},{"$f":"'Trial 6'!K22","v":{"v":34522047.13471993,"d":"$34,522,047"}},{"$f":"'Trial 6'!L22","v":{"v":34507929.367164336,"d":"$34,507,929"}},{"$f":"'Trial 6'!M22","v":{"v":34497407.74265118,"d":"$34,497,408"}},{"$f":"'Trial 6'!O22","v":{"v":34483202.258187905,"d":"$34,483,202"}},{"$f":"'Trial 6'!P22","v":{"v":34472037.7271618,"d":"$34,472,038"}},{"$f":"'Trial 6'!Q22","v":{"v":34457303.679064415,"d":"$34,457,304"}},{"$f":"'Trial 6'!R22","v":{"v":34446175.71956217,"d":"$34,446,176"}},{"$f":"'Trial 6'!S22","v":{"v":34434084.70409257,"d":"$34,434,085"}},{"$f":"'Trial 6'!T22","v":{"v":34416189.87363408,"d":"$34,416,190"}},{"$f":"'Trial 6'!U22","v":{"v":34401437.66627538,"d":"$34,401,438"}},{"$f":"'Trial 6'!V22","v":{"v":34388751.589947164,"d":"$34,388,752"}},{"$f":"'Trial 6'!W22","v":{"v":34373036.97964457,"d":"$34,373,037"}},{"$f":"'Trial 6'!X22","v":{"v":34357829.51601719,"d":"$34,357,830"}},{"$f":"'Trial 6'!Y22","v":{"v":34344555.23757108,"d":"$34,344,555"}},{"$f":"'Trial 6'!Z22","v":{"v":34332569.21141083,"d":"$34,332,569"}},{"$f":"'Trial 6'!AB22","v":{"v":34316269.801931426,"d":"$34,316,270"}},{"$f":"'Trial 6'!AC22","v":{"v":34302732.49193323,"d":"$34,302,732"}},{"$f":"'Trial 6'!AD22","v":{"v":34289945.527461514,"d":"$34,289,946"}},{"$f":"'Trial 6'!AE22","v":{"v":34278420.551042095,"d":"$34,278,421"}},{"$f":"'Trial 6'!AF22","v":{"v":34265166.562069155,"d":"$34,265,167"}},{"$f":"'Trial 6'!AG22","v":{"v":34253645.51307597,"d":"$34,253,646"}},{"$f":"'Trial 6'!AH22","v":{"v":34240268.42812766,"d":"$34,240,268"}},{"$f":"'Trial 6'!AI22","v":{"v":34228107.47011357,"d":"$34,228,107"}},{"$f":"'Trial 6'!AJ22","v":{"v":34213640.69875081,"d":"$34,213,641"}},{"$f":"'Trial 6'!AK22","v":{"v":34198098.04869015,"d":"$34,198,098"}},{"$f":"'Trial 6'!AL22","v":{"v":34184368.341502704,"d":"$34,184,368"}},{"$f":"'Trial 6'!AM22","v":{"v":34172471.96862848,"d":"$34,172,472"}},{"$f":"'Trial 6'!AO22","v":{"v":34161809.48963097,"d":"$34,161,809"}},{"$f":"'Trial 6'!AP22","v":{"v":34148537.45044265,"d":"$34,148,537"}},{"$f":"'Trial 6'!AQ22","v":{"v":34133942.05046182,"d":"$34,133,942"}},{"$f":"'Trial 6'!AR22","v":{"v":34118599.649552286,"d":"$34,118,600"}},{"$f":"'Trial 6'!AS22","v":{"v":34104959.50772446,"d":"$34,104,960"}},{"$f":"'Trial 6'!AT22","v":{"v":34090239.82849023,"d":"$34,090,240"}},{"$f":"'Trial 6'!AU22","v":{"v":34074662.72448019,"d":"$34,074,663"}},{"$f":"'Trial 6'!AV22","v":{"v":34056831.8718731,"d":"$34,056,832"}},{"$f":"'Trial 6'!AW22","v":{"v":34043389.935652584,"d":"$34,043,390"}},{"$f":"'Trial 6'!AX22","v":{"v":34028122.8664096,"d":"$34,028,123"}},{"$f":"'Trial 6'!AY22","v":{"v":34011240.84577328,"d":"$34,011,241"}},{"$f":"'Trial 6'!AZ22","v":{"v":33998232.921720915,"d":"$33,998,233"}},{"$f":"'Trial 6'!BB22","v":{"v":33987185.685264654,"d":"$33,987,186"}},{"$f":"'Trial 6'!BC22","v":{"v":33969347.31224446,"d":"$33,969,347"}},{"$f":"'Trial 6'!BD22","v":{"v":33953150.46356068,"d":"$33,953,150"}},{"$f":"'Trial 6'!BE22","v":{"v":33937710.42355625,"d":"$33,937,710"}},{"$f":"'Trial 6'!BF22","v":{"v":33921794.568227656,"d":"$33,921,795"}},{"$f":"'Trial 6'!BG22","v":{"v":33907547.80037178,"d":"$33,907,548"}},{"$f":"'Trial 6'!BH22","v":{"v":33894308.95724806,"d":"$33,894,309"}},{"$f":"'Trial 6'!BI22","v":{"v":33882237.43069728,"d":"$33,882,237"}},{"$f":"'Trial 6'!BJ22","v":{"v":33866655.81024205,"d":"$33,866,656"}},{"$f":"'Trial 6'!BK22","v":{"v":33855922.52091801,"d":"$33,855,923"}},{"$f":"'Trial 6'!BL22","v":{"v":33842637.97615904,"d":"$33,842,638"}},{"$f":"'Trial 6'!BM22","v":{"v":33825193.95999999,"d":"$33,825,194"}},{"$f":"'Trial 6'!BO22","v":{"v":33811955.83456643,"d":"$33,811,956"}},{"$f":"'Trial 6'!BP22","v":{"v":33794020.27584867,"d":"$33,794,020"}},{"$f":"'Trial 6'!BQ22","v":{"v":33779135.061639234,"d":"$33,779,135"}},{"$f":"'Trial 6'!BR22","v":{"v":33763860.753918424,"d":"$33,763,861"}},{"$f":"'Trial 6'!BS22","v":{"v":33747735.5945948,"d":"$33,747,736"}},{"$f":"'Trial 6'!BT22","v":{"v":33729689.0728874,"d":"$33,729,689"}},{"$f":"'Trial 6'!BU22","v":{"v":33717893.46667226,"d":"$33,717,893"}},{"$f":"'Trial 6'!BV22","v":{"v":33703931.88576202,"d":"$33,703,932"}},{"$f":"'Trial 6'!BW22","v":{"v":33690965.92648923,"d":"$33,690,966"}},{"$f":"'Trial 6'!BX22","v":{"v":33678722.46053416,"d":"$33,678,722"}},{"$f":"'Trial 6'!BY22","v":{"v":33662731.363478586,"d":"$33,662,731"}},{"$f":"'Trial 6'!BZ22","v":{"v":33652092.52899841,"d":"$33,652,093"}},{"$f":"'Trial 6'!CB22","v":{"v":33639986.262263834,"d":"$33,639,986"}},{"$f":"'Trial 6'!CC22","v":{"v":33626129.30112309,"d":"$33,626,129"}},{"$f":"'Trial 6'!CD22","v":{"v":33611713.70259343,"d":"$33,611,714"}},{"$f":"'Trial 6'!CE22","v":{"v":33601142.037953116,"d":"$33,601,142"}},{"$f":"'Trial 6'!CF22","v":{"v":33586406.94053929,"d":"$33,586,407"}},{"$f":"'Trial 6'!CG22","v":{"v":33571377.2457196,"d":"$33,571,377"}},{"$f":"'Trial 6'!CH22","v":{"v":33559189.694083564,"d":"$33,559,190"}},{"$f":"'Trial 6'!CI22","v":{"v":33546883.014692403,"d":"$33,546,883"}},{"$f":"'Trial 6'!CJ22","v":{"v":33535514.573499024,"d":"$33,535,515"}},{"$f":"'Trial 6'!CK22","v":{"v":33521675.93348945,"d":"$33,521,676"}},{"$f":"'Trial 6'!CL22","v":{"v":33508721.645226486,"d":"$33,508,722"}},{"$f":"'Trial 6'!CM22","v":{"v":33497279.96362176,"d":"$33,497,280"}},{"$f":"'Trial 6'!CO22","v":{"v":33485231.13737238,"d":"$33,485,231"}},{"$f":"'Trial 6'!CP22","v":{"v":33471821.589117065,"d":"$33,471,822"}},{"$f":"'Trial 6'!CQ22","v":{"v":33460373.33869305,"d":"$33,460,373"}},{"$f":"'Trial 6'!CR22","v":{"v":33446536.3607467,"d":"$33,446,536"}},{"$f":"'Trial 6'!CS22","v":{"v":33432766.945138328,"d":"$33,432,767"}},{"$f":"'Trial 6'!CT22","v":{"v":33416994.273580432,"d":"$33,416,994"}},{"$f":"'Trial 6'!CU22","v":{"v":33401511.706811864,"d":"$33,401,512"}},{"$f":"'Trial 6'!CV22","v":{"v":33391069.297964077,"d":"$33,391,069"}},{"$f":"'Trial 6'!CW22","v":{"v":33374831.51058311,"d":"$33,374,832"}},{"$f":"'Trial 6'!CX22","v":{"v":33364186.194211043,"d":"$33,364,186"}},{"$f":"'Trial 6'!CY22","v":{"v":33350925.59354625,"d":"$33,350,926"}},{"$f":"'Trial 6'!CZ22","v":{"v":33335144.135562763,"d":"$33,335,144"}},{"$f":"'Trial 6'!DB22","v":{"v":33322342.226847257,"d":"$33,322,342"}},{"$f":"'Trial 6'!DC22","v":{"v":33309791.58620549,"d":"$33,309,792"}},{"$f":"'Trial 6'!DD22","v":{"v":33292368.02920182,"d":"$33,292,368"}},{"$f":"'Trial 6'!DE22","v":{"v":33277200.521016408,"d":"$33,277,201"}},{"$f":"'Trial 6'!DF22","v":{"v":33263256.82712151,"d":"$33,263,257"}},{"$f":"'Trial 6'!DG22","v":{"v":33246260.639522247,"d":"$33,246,261"}},{"$f":"'Trial 6'!DH22","v":{"v":33231748.296456285,"d":"$33,231,748"}},{"$f":"'Trial 6'!DI22","v":{"v":33215202.334217638,"d":"$33,215,202"}},{"$f":"'Trial 6'!DJ22","v":{"v":33198476.78502464,"d":"$33,198,477"}},{"$f":"'Trial 6'!DK22","v":{"v":33181012.243122235,"d":"$33,181,012"}},{"$f":"'Trial 6'!DL22","v":{"v":33167430.63332933,"d":"$33,167,431"}},{"$f":"'Trial 6'!DM22","v":{"v":33151643.86082016,"d":"$33,151,644"}},{"$f":"'Trial 6'!DO22","v":{"v":33136903.18367588,"d":"$33,136,903"}},{"$f":"'Trial 6'!DP22","v":{"v":33125375.013122085,"d":"$33,125,375"}},{"$f":"'Trial 6'!DQ22","v":{"v":33109858.966428027,"d":"$33,109,859"}},{"$f":"'Trial 6'!DR22","v":{"v":33094564.320620243,"d":"$33,094,564"}},{"$f":"'Trial 6'!DS22","v":{"v":33080616.529131822,"d":"$33,080,617"}},{"$f":"'Trial 6'!DT22","v":{"v":33066301.005486082,"d":"$33,066,301"}},{"$f":"'Trial 6'!DU22","v":{"v":33053710.378888603,"d":"$33,053,710"}},{"$f":"'Trial 6'!DV22","v":{"v":33042112.053772114,"d":"$33,042,112"}},{"$f":"'Trial 6'!DW22","v":{"v":33030901.84019513,"d":"$33,030,902"}},{"$f":"'Trial 6'!DX22","v":{"v":33017443.292993013,"d":"$33,017,443"}},{"$f":"'Trial 6'!DY22","v":{"v":33005266.229407817,"d":"$33,005,266"}},{"$f":"'Trial 6'!DZ22","v":{"v":32990891.478213746,"d":"$32,990,891"}},{"$f":"'Trial 6'!EB22","v":{"v":32976791.018537737,"d":"$32,976,791"}},{"$f":"'Trial 6'!EC22","v":{"v":32965230.841435153,"d":"$32,965,231"}},{"$f":"'Trial 6'!ED22","v":{"v":32951419.316541295,"d":"$32,951,419"}},{"$f":"'Trial 6'!EE22","v":{"v":32938579.52800007,"d":"$32,938,580"}},{"$f":"'Trial 6'!EF22","v":{"v":32926377.035989612,"d":"$32,926,377"}},{"$f":"'Trial 6'!EG22","v":{"v":32912412.864413887,"d":"$32,912,413"}},{"$f":"'Trial 6'!EH22","v":{"v":32899424.79400038,"d":"$32,899,425"}},{"$f":"'Trial 6'!EI22","v":{"v":32885448.46931446,"d":"$32,885,448"}},{"$f":"'Trial 6'!EJ22","v":{"v":32872410.019863583,"d":"$32,872,410"}},{"$f":"'Trial 6'!EK22","v":{"v":32861238.645387683,"d":"$32,861,239"}},{"$f":"'Trial 6'!EL22","v":{"v":32850967.33589327,"d":"$32,850,967"}},{"$f":"'Trial 6'!EM22","v":{"v":32834551.50304371,"d":"$32,834,552"}}]
[{"$f":"'Trial 7'!B22","v":{"v":34645298.42192645,"d":"$34,645,298"}},{"$f":"'Trial 7'!C22","v":{"v":34629351.21843226,"d":"$34,629,351"}},{"$f":"'Trial 7'!D22","v":{"v":34617049.75833437,"d":"$34,617,050"}},{"$f":"'Trial 7'!E22","v":{"v":34604182.49391917,"d":"$34,604,182"}},{"$f":"'Trial 7'!F22","v":{"v":34589684.76617489,"d":"$34,589,685"}},{"$f":"'Trial 7'!G22","v":{"v":34577914.14984907,"d":"$34,577,914"}},{"$f":"'Trial 7'!H22","v":{"v":34566260.88372949,"d":"$34,566,261"}},{"$f":"'Trial 7'!I22","v":{"v":34554453.35097249,"d":"$34,554,453"}},{"$f":"'Trial 7'!J22","v":{"v":34543224.92198004,"d":"$34,543,225"}},{"$f":"'Trial 7'!K22","v":{"v":34528666.077570535,"d":"$34,528,666"}},{"$f":"'Trial 7'!L22","v":{"v":34513073.17877709,"d":"$34,513,073"}},{"$f":"'Trial 7'!M22","v":{"v":34498844.136459954,"d":"$34,498,844"}},{"$f":"'Trial 7'!O22","v":{"v":34484183.84700325,"d":"$34,484,184"}},{"$f":"'Trial 7'!P22","v":{"v":34470551.10553625,"d":"$34,470,551"}},{"$f":"'Trial 7'!Q22","v":{"v":34459083.37900949,"d":"$34,459,083"}},{"$f":"'Trial 7'!R22","v":{"v":34447373.68024294,"d":"$34,447,374"}},{"$f":"'Trial 7'!S22","v":{"v":34435059.369046964,"d":"$34,435,059"}},{"$f":"'Trial 7'!T22","v":{"v":34421831.45068094,"d":"$34,421,831"}},{"$f":"'Trial 7'!U22","v":{"v":34409896.110878736,"d":"$34,409,896"}},{"$f":"'Trial 7'!V22","v":{"v":34395548.466946654,"d":"$34,395,548"}},{"$f":"'Trial 7'!W22","v":{"v":34383699.477435775,"d":"$34,383,699"}},{"$f":"'Trial 7'!X22","v":{"v":34372665.7332627,"d":"$34,372,666"}},{"$f":"'Trial 7'!Y22","v":{"v":34360637.835261755,"d":"$34,360,638"}},{"$f":"'Trial 7'!Z22","v":{"v":34346779.47798373,"d":"$34,346,779"}},{"$f":"'Trial 7'!AB22","v":{"v":34329439.767561994,"d":"$34,329,440"}},{"$f":"'Trial 7'!AC22","v":{"v":34311797.19223684,"d":"$34,311,797"}},{"$f":"'Trial 7'!AD22","v":{"v":34297751.14641038,"d":"$34,297,751"}},{"$f":"'Trial 7'!AE22","v":{"v":34284677.278024115,"d":"$34,284,677"}},{"$f":"'Trial 7'!AF22","v":{"v":34272821.64464195,"d":"$34,272,822"}},{"$f":"'Trial 7'!AG22","v":{"v":34257455.1601371,"d":"$34,257,455"}},{"$f":"'Trial 7'!AH22","v":{"v":34244841.44715571,"d":"$34,244,841"}},{"$f":"'Trial 7'!AI22","v":{"v":34232043.01617329,"d":"$34,232,043"}},{"$f":"'Trial 7'!AJ22","v":{"v":34215566.52027474,"d":"$34,215,567"}},{"$f":"'Trial 7'!AK22","v":{"v":34200921.14625282,"d":"$34,200,921"}},{"$f":"'Trial 7'!AL22","v":{"v":34187041.882064424,"d":"$34,187,042"}},{"$f":"'Trial 7'!AM22","v":{"v":34173359.048969425,"d":"$34,173,359"}},{"$f":"'Trial 7'!AO22","v":{"v":34158085.63029377,"d":"$34,158,086"}},{"$f":"'Trial 7'!AP22","v":{"v":34141834.99477562,"d":"$34,141,835"}},{"$f":"'Trial 7'!AQ22","v":{"v":34127319.70897747,"d":"$34,127,320"}},{"$f":"'Trial 7'!AR22","v":{"v":34115141.26055764,"d":"$34,115,141"}},{"$f":"'Trial 7'!AS22","v":{"v":34102811.12556092,"d":"$34,102,811"}},{"$f":"'Trial 7'!AT22","v":{"v":34092212.34675265,"d":"$34,092,212"}},{"$f":"'Trial 7'!AU22","v":{"v":34076623.64133585,"d":"$34,076,624"}},{"$f":"'Trial 7'!AV22","v":{"v":34062213.50117952,"d":"$34,062,214"}},{"$f":"'Trial 7'!AW22","v":{"v":34047718.62431008,"d":"$34,047,719"}},{"$f":"'Trial 7'!AX22","v":{"v":34032253.004669815,"d":"$34,032,253"}},{"$f":"'Trial 7'!AY22","v":{"v":34015943.13993496,"d":"$34,015,943"}},{"$f":"'Trial 7'!AZ22","v":{"v":34000156.54412,"d":"$34,000,157"}},{"$f":"'Trial 7'!BB22","v":{"v":33983031.99158347,"d":"$33,983,032"}},{"$f":"'Trial 7'!BC22","v":{"v":33968007.51425876,"d":"$33,968,008"}},{"$f":"'Trial 7'!BD22","v":{"v":33952807.408842236,"d":"$33,952,807"}},{"$f":"'Trial 7'!BE22","v":{"v":33939679.561346896,"d":"$33,939,680"}},{"$f":"'Trial 7'!BF22","v":{"v":33924874.74524888,"d":"$33,924,875"}},{"$f":"'Trial 7'!BG22","v":{"v":33911716.30980569,"d":"$33,911,716"}},{"$f":"'Trial 7'!BH22","v":{"v":33899979.55148765,"d":"$33,899,980"}},{"$f":"'Trial 7'!BI22","v":{"v":33883759.13680023,"d":"$33,883,759"}},{"$f":"'Trial 7'!BJ22","v":{"v":33869497.29280797,"d":"$33,869,497"}},{"$f":"'Trial 7'!BK22","v":{"v":33854129.227000654,"d":"$33,854,129"}},{"$f":"'Trial 7'!BL22","v":{"v":33837167.99118859,"d":"$33,837,168"}},{"$f":"'Trial 7'!BM22","v":{"v":33821957.73914446,"d":"$33,821,958"}},{"$f":"'Trial 7'!BO22","v":{"v":33809083.99360601,"d":"$33,809,084"}},{"$f":"'Trial 7'!BP22","v":{"v":33793761.20068672,"d":"$33,793,761"}},{"$f":"'Trial 7'!BQ22","v":{"v":33776192.36927358,"d":"$33,776,192"}},{"$f":"'Trial 7'!BR22","v":{"v":33763418.41208847,"d":"$33,763,418"}},{"$f":"'Trial 7'!BS22","v":{"v":33750572.89233444,"d":"$33,750,573"}},{"$f":"'Trial 7'!BT22","v":{"v":33738894.51775991,"d":"$33,738,895"}},{"$f":"'Trial 7'!BU22","v":{"v":33727712.696634606,"d":"$33,727,713"}},{"$f":"'Trial 7'!BV22","v":{"v":33715678.445499666,"d":"$33,715,678"}},{"$f":"'Trial 7'!BW22","v":{"v":33699665.58805462,"d":"$33,699,666"}},{"$f":"'Trial 7'!BX22","v":{"v":33688491.99064784,"d":"$33,688,492"}},{"$f":"'Trial 7'!BY22","v":{"v":33672704.24107913,"d":"$33,672,704"}},{"$f":"'Trial 7'!BZ22","v":{"v":33655677.41778067,"d":"$33,655,677"}},{"$f":"'Trial 7'!CB22","v":{"v":33637374.40587612,"d":"$33,637,374"}},{"$f":"'Trial 7'!CC22","v":{"v":33622966.806944504,"d":"$33,622,967"}},{"$f":"'Trial 7'!CD22","v":{"v":33610443.27638617,"d":"$33,610,443"}},{"$f":"'Trial 7'!CE22","v":{"v":33598254.85748324,"d":"$33,598,255"}},{"$f":"'Trial 7'!CF22","v":{"v":33580079.33842541,"d":"$33,580,079"}},{"$f":"'Trial 7'!CG22","v":{"v":33564803.505805634,"d":"$33,564,804"}},{"$f":"'Trial 7'!CH22","v":{"v":33552464.36596264,"d":"$33,552,464"}},{"$f":"'Trial 7'!CI22","v":{"v":33534125.17509353,"d":"$33,534,125"}},{"$f":"'Trial 7'!CJ22","v":{"v":33517983.014085643,"d":"$33,517,983"}},{"$f":"'Trial 7'!CK22","v":{"v":33508103.18141197,"d":"$33,508,103"}},{"$f":"'Trial 7'!CL22","v":{"v":33497742.12029746,"d":"$33,497,742"}},{"$f":"'Trial 7'!CM22","v":{"v":33483241.551136672,"d":"$33,483,242"}},{"$f":"'Trial 7'!CO22","v":{"v":33471334.062937528,"d":"$33,471,334"}},{"$f":"'Trial 7'!CP22","v":{"v":33461219.4243222,"d":"$33,461,219"}},{"$f":"'Trial 7'!CQ22","v":{"v":33446845.42640628,"d":"$33,446,845"}},{"$f":"'Trial 7'!CR22","v":{"v":33434007.292264648,"d":"$33,434,007"}},{"$f":"'Trial 7'!CS22","v":{"v":33421648.36596445,"d":"$33,421,648"}},{"$f":"'Trial 7'!CT22","v":{"v":33407824.92280655,"d":"$33,407,825"}},{"$f":"'Trial 7'!CU22","v":{"v":33393550.5241717,"d":"$33,393,551"}},{"$f":"'Trial 7'!CV22","v":{"v":33381635.398187075,"d":"$33,381,635"}},{"$f":"'Trial 7'!CW22","v":{"v":33367505.77793269,"d":"$33,367,506"}},{"$f":"'Trial 7'!CX22","v":{"v":33353143.49158722,"d":"$33,353,143"}},{"$f":"'Trial 7'!CY22","v":{"v":33336150.620418817,"d":"$33,336,151"}},{"$f":"'Trial 7'!CZ22","v":{"v":33319577.804235265,"d":"$33,319,578"}},{"$f":"'Trial 7'!DB22","v":{"v":33306629.69101517,"d":"$33,306,630"}},{"$f":"'Trial 7'!DC22","v":{"v":33296014.88286372,"d":"$33,296,015"}},{"$f":"'Trial 7'!DD22","v":{"v":33284388.21883596,"d":"$33,284,388"}},{"$f":"'Trial 7'!DE22","v":{"v":33270747.73491644,"d":"$33,270,748"}},{"$f":"'Trial 7'!DF22","v":{"v":33257773.723053355,"d":"$33,257,774"}},{"$f":"'Trial 7'!DG22","v":{"v":33244461.833606534,"d":"$33,244,462"}},{"$f":"'Trial 7'!DH22","v":{"v":33227690.017533794,"d":"$33,227,690"}},{"$f":"'Trial 7'!DI22","v":{"v":33210639.64791914,"d":"$33,210,640"}},{"$f":"'Trial 7'!DJ22","v":{"v":33196894.207734566,"d":"$33,196,894"}},{"$f":"'Trial 7'!DK22","v":{"v":33182765.071092047,"d":"$33,182,765"}},{"$f":"'Trial 7'!DL22","v":{"v":33165693.553333677,"d":"$33,165,694"}},{"$f":"'Trial 7'!DM22","v":{"v":33152055.967246998,"d":"$33,152,056"}},{"$f":"'Trial 7'!DO22","v":{"v":33138569.655255448,"d":"$33,138,570"}},{"$f":"'Trial 7'!DP22","v":{"v":33122840.022544093,"d":"$33,122,840"}},{"$f":"'Trial 7'!DQ22","v":{"v":33108730.427220937,"d":"$33,108,730"}},{"$f":"'Trial 7'!DR22","v":{"v":33094498.507755548,"d":"$33,094,499"}},{"$f":"'Trial 7'!DS22","v":{"v":33078086.72357833,"d":"$33,078,087"}},{"$f":"'Trial 7'!DT22","v":{"v":33064908.43674927,"d":"$33,064,908"}},{"$f":"'Trial 7'!DU22","v":{"v":33048708.338944048,"d":"$33,048,708"}},{"$f":"'Trial 7'!DV22","v":{"v":33033579.405120507,"d":"$33,033,579"}},{"$f":"'Trial 7'!DW22","v":{"v":33021304.688856814,"d":"$33,021,305"}},{"$f":"'Trial 7'!DX22","v":{"v":33011622.54001145,"d":"$33,011,623"}},{"$f":"'Trial 7'!DY22","v":{"v":32994555.11553646,"d":"$32,994,555"}},{"$f":"'Trial 7'!DZ22","v":{"v":32979256.252452966,"d":"$32,979,256"}},{"$f":"'Trial 7'!EB22","v":{"v":32962944.856494986,"d":"$32,962,945"}},{"$f":"'Trial 7'!EC22","v":{"v":32951602.407221336,"d":"$32,951,602"}},{"$f":"'Trial 7'!ED22","v":{"v":32935524.13198477,"d":"$32,935,524"}},{"$f":"'Trial 7'!EE22","v":{"v":32921522.47970651,"d":"$32,921,522"}},{"$f":"'Trial 7'!EF22","v":{"v":32908424.77884089,"d":"$32,908,425"}},{"$f":"'Trial 7'!EG22","v":{"v":32892479.690461826,"d":"$32,892,480"}},{"$f":"'Trial 7'!EH22","v":{"v":32874594.72956348,"d":"$32,874,595"}},{"$f":"'Trial 7'!EI22","v":{"v":32857270.208599605,"d":"$32,857,270"}},{"$f":"'Trial 7'!EJ22","v":{"v":32844538.455430996,"d":"$32,844,538"}},{"$f":"'Trial 7'!EK22","v":{"v":32832178.093927085,"d":"$32,832,178"}},{"$f":"'Trial 7'!EL22","v":{"v":32818193.5090161,"d":"$32,818,194"}},{"$f":"'Trial 7'!EM22","v":{"v":32806652.409482125,"d":"$32,806,652"}}]
[{"$f":"'Trial 8'!B22","v":{"v":34645298.42192645,"d":"$34,645,298"}},{"$f":"'Trial 8'!C22","v":{"v":34628037.35693443,"d":"$34,628,037"}},{"$f":"'Trial 8'!D22","v":{"v":34613221.900703676,"d":"$34,613,222"}},{"$f":"'Trial 8'!E22","v":{"v":34599219.45781327,"d":"$34,599,219"}},{"$f":"'Trial 8'!F22","v":{"v":34585966.14059274,"d":"$34,585,966"}},{"$f":"'Trial 8'!G22","v":{"v":34575979.09441932,"d":"$34,575,979"}},{"$f":"'Trial 8'!H22","v":{"v":34563157.84727877,"d":"$34,563,158"}},{"$f":"'Trial 8'!I22","v":{"v":34548995.40054213,"d":"$34,548,995"}},{"$f":"'Trial 8'!J22","v":{"v":34536514.712682866,"d":"$34,536,515"}},{"$f":"'Trial 8'!K22","v":{"v":34520107.14066722,"d":"$34,520,107"}},{"$f":"'Trial 8'!L22","v":{"v":34507690.59630777,"d":"$34,507,691"}},{"$f":"'Trial 8'!M22","v":{"v":34491033.722998604,"d":"$34,491,034"}},{"$f":"'Trial 8'!O22","v":{"v":34477428.64007043,"d":"$34,477,429"}},{"$f":"'Trial 8'!P22","v":{"v":34466760.889321804,"d":"$34,466,761"}},{"$f":"'Trial 8'!Q22","v":{"v":34450897.99610861,"d":"$34,450,898"}},{"$f":"'Trial 8'!R22","v":{"v":34433382.91985753,"d":"$34,433,383"}},{"$f":"'Trial 8'!S22","v":{"v":34420244.13832635,"d":"$34,420,244"}},{"$f":"'Trial 8'!T22","v":{"v":34406333.16762672,"d":"$34,406,333"}},{"$f":"'Trial 8'!U22","v":{"v":34395702.5614271,"d":"$34,395,703"}},{"$f":"'Trial 8'!V22","v":{"v":34381384.43793617,"d":"$34,381,384"}},{"$f":"'Trial 8'!W22","v":{"v":34367623.90376993,"d":"$34,367,624"}},{"$f":"'Trial 8'!X22","v":{"v":34356647.63304238,"d":"$34,356,648"}},{"$f":"'Trial 8'!Y22","v":{"v":34340772.43581258,"d":"$34,340,772"}},{"$f":"'Trial 8'!Z22","v":{"v":34323952.80264759,"d":"$34,323,953"}},{"$f":"'Trial 8'!AB22","v":{"v":34308395.22821293,"d":"$34,308,395"}},{"$f":"'Trial 8'!AC22","v":{"v":34294349.26419116,"d":"$34,294,349"}},{"$f":"'Trial 8'!AD22","v":{"v":34280503.19032625,"d":"$34,280,503"}},{"$f":"'Trial 8'!AE22","v":{"v":34265096.78049065,"d":"$34,265,097"}},{"$f":"'Trial 8'!AF22","v":{"v":34250545.310648546,"d":"$34,250,545"}},{"$f":"'Trial 8'!AG22","v":{"v":34234393.32380845,"d":"$34,234,393"}},{"$f":"'Trial 8'!AH22","v":{"v":34218844.018707626,"d":"$34,218,844"}},{"$f":"'Trial 8'!AI22","v":{"v":34206072.149374984,"d":"$34,206,072"}},{"$f":"'Trial 8'!AJ22","v":{"v":34192972.38678696,"d":"$34,192,972"}},{"$f":"'Trial 8'!AK22","v":{"v":34177733.96332749,"d":"$34,177,734"}},{"$f":"'Trial 8'!AL22","v":{"v":34163711.570455804,"d":"$34,163,712"}},{"$f":"'Trial 8'!AM22","v":{"v":34152310.18752794,"d":"$34,152,310"}},{"$f":"'Trial 8'!AO22","v":{"v":34140671.6771056,"d":"$34,140,672"}},{"$f":"'Trial 8'!AP22","v":{"v":34128739.66788044,"d":"$34,128,740"}},{"$f":"'Trial 8'!AQ22","v":{"v":34114893.38227987,"d":"$34,114,893"}},{"$f":"'Trial 8'!AR22","v":{"v":34100939.66771011,"d":"$34,100,940"}},{"$f":"'Trial 8'!AS22","v":{"v":34084529.94427161,"d":"$34,084,530"}},{"$f":"'Trial 8'!AT22","v":{"v":34068171.9628989,"d":"$34,068,172"}},{"$f":"'Trial 8'!AU22","v":{"v":34053331.66980798,"d":"$34,053,332"}},{"$f":"'Trial 8'!AV22","v":{"v":34040418.767623566,"d":"$34,040,419"}},{"$f":"'Trial 8'!AW22","v":{"v":34026527.032430485,"d":"$34,026,527"}},{"$f":"'Trial 8'!AX22","v":{"v":34012876.98344443,"d":"$34,012,877"}},{"$f":"'Trial 8'!AY22","v":{"v":33998940.700316004,"d":"$33,998,941"}},{"$f":"'Trial 8'!AZ22","v":{"v":33985862.254128106,"d":"$33,985,862"}},{"$f":"'Trial 8'!BB22","v":{"v":33972358.32680832,"d":"$33,972,358"}},{"$f":"'Trial 8'!BC22","v":{"v":33957273.399603195,"d":"$33,957,273"}},{"$f":"'Trial 8'!BD22","v":{"v":33945300.28272315,"d":"$33,945,300"}},{"$f":"'Trial 8'!BE22","v":{"v":33933996.18227213,"d":"$33,933,996"}},{"$f":"'Trial 8'!BF22","v":{"v":33920833.857343234,"d":"$33,920,834"}},{"$f":"'Trial 8'!BG22","v":{"v":33907542.24367124,"d":"$33,907,542"}},{"$f":"'Trial 8'!BH22","v":{"v":33895852.180768855,"d":"$33,895,852"}},{"$f":"'Trial 8'!BI22","v":{"v":33880156.862659514,"d":"$33,880,157"}},{"$f":"'Trial 8'!BJ22","v":{"v":33866056.242818214,"d":"$33,866,056"}},{"$f":"'Trial 8'!BK22","v":{"v":33853316.53415303,"d":"$33,853,317"}},{"$f":"'Trial 8'!BL22","v":{"v":33840404.976356834,"d":"$33,840,405"}},{"$f":"'Trial 8'!BM22","v":{"v":33827604.14452701,"d":"$33,827,604"}},{"$f":"'Trial 8'!BO22","v":{"v":33813074.407306634,"d":"$33,813,074"}},{"$f":"'Trial 8'!BP22","v":{"v":33800553.76705502,"d":"$33,800,554"}},{"$f":"'Trial 8'!BQ22","v":{"v":33789325.294949844,"d":"$33,789,325"}},{"$f":"'Trial 8'!BR22","v":{"v":33777226.53609113,"d":"$33,777,227"}},{"$f":"'Trial 8'!BS22","v":{"v":33766991.52702158,"d":"$33,766,992"}},{"$f":"'Trial 8'!BT22","v":{"v":33754202.27901191,"d":"$33,754,202"}},{"$f":"'Trial 8'!BU22","v":{"v":33740281.8922032,"d":"$33,740,282"}},{"$f":"'Trial 8'!BV22","v":{"v":33727275.65264967,"d":"$33,727,276"}},{"$f":"'Trial 8'!BW22","v":{"v":33716168.901984006,"d":"$33,716,169"}},{"$f":"'Trial 8'!BX22","v":{"v":33704046.658729434,"d":"$33,704,047"}},{"$f":"'Trial 8'!BY22","v":{"v":33691867.055538,"d":"$33,691,867"}},{"$f":"'Trial 8'!BZ22","v":{"v":33677228.7450226,"d":"$33,677,229"}},{"$f":"'Trial 8'!CB22","v":{"v":33660323.2407986,"d":"$33,660,323"}},{"$f":"'Trial 8'!CC22","v":{"v":33645358.69816151,"d":"$33,645,359"}},{"$f":"'Trial 8'!CD22","v":{"v":33631467.776078686,"d":"$33,631,468"}},{"$f":"'Trial 8'!CE22","v":{"v":33615155.27020319,"d":"$33,615,155"}},{"$f":"'Trial 8'!CF22","v":{"v":33601712.635876365,"d":"$33,601,713"}},{"$f":"'Trial 8'!CG22","v":{"v":33587403.32126753,"d":"$33,587,403"}},{"$f":"'Trial 8'!CH22","v":{"v":33577345.6485198,"d":"$33,577,346"}},{"$f":"'Trial 8'!CI22","v":{"v":33563550.456686385,"d":"$33,563,550"}},{"$f":"'Trial 8'!CJ22","v":{"v":33548097.95420816,"d":"$33,548,098"}},{"$f":"'Trial 8'!CK22","v":{"v":33535392.322407633,"d":"$33,535,392"}},{"$f":"'Trial 8'!CL22","v":{"v":33523384.197581794,"d":"$33,523,384"}},{"$f":"'Trial 8'!CM22","v":{"v":33507192.923698414,"d":"$33,507,193"}},{"$f":"'Trial 8'!CO22","v":{"v":33496026.01391383,"d":"$33,496,026"}},{"$f":"'Trial 8'!CP22","v":{"v":33484970.510174476,"d":"$33,484,971"}},{"$f":"'Trial 8'!CQ22","v":{"v":33471575.8740615,"d":"$33,471,576"}},{"$f":"'Trial 8'!CR22","v":{"v":33459068.171701305,"d":"$33,459,068"}},{"$f":"'Trial 8'!CS22","v":{"v":33446362.735600248,"d":"$33,446,363"}},{"$f":"'Trial 8'!CT22","v":{"v":33428094.412084326,"d":"$33,428,094"}},{"$f":"'Trial 8'!CU22","v":{"v":33413866.343003836,"d":"$33,413,866"}},{"$f":"'Trial 8'!CV22","v":{"v":33402279.47188205,"d":"$33,402,279"}},{"$f":"'Trial 8'!CW22","v":{"v":33388336.261504926,"d":"$33,388,336"}},{"$f":"'Trial 8'!CX22","v":{"v":33370451.490780544,"d":"$33,370,451"}},{"$f":"'Trial 8'!CY22","v":{"v":33359110.85811087,"d":"$33,359,111"}},{"$f":"'Trial 8'!CZ22","v":{"v":33349277.87410112,"d":"$33,349,278"}},{"$f":"'Trial 8'!DB22","v":{"v":33333625.494242657,"d":"$33,333,625"}},{"$f":"'Trial 8'!DC22","v":{"v":33323755.02435432,"d":"$33,323,755"}},{"$f":"'Trial 8'!DD22","v":{"v":33308438.84655321,"d":"$33,308,439"}},{"$f":"'Trial 8'!DE22","v":{"v":33292146.804434855,"d":"$33,292,147"}},{"$f":"'Trial 8'!DF22","v":{"v":33277501.976468794,"d":"$33,277,502"}},{"$f":"'Trial 8'!DG22","v":{"v":33263765.836946923,"d":"$33,263,766"}},{"$f":"'Trial 8'!DH22","v":{"v":33248513.10349388,"d":"$33,248,513"}},{"$f":"'Trial 8'!DI22","v":{"v":33234261.09065312,"d":"$33,234,261"}},{"$f":"'Trial 8'!DJ22","v":{"v":33217804.87436181,"d":"$33,217,805"}},{"$f":"'Trial 8'!DK22","v":{"v":33207629.87443559,"d":"$33,207,630"}},{"$f":"'Trial 8'!DL22","v":{"v":33192731.85497787,"d":"$33,192,732"}},{"$f":"'Trial 8'!DM22","v":{"v":33182121.66577379,"d":"$33,182,122"}},{"$f":"'Trial 8'!DO22","v":{"v":33167631.4446436,"d":"$33,167,631"}},{"$f":"'Trial 8'!DP22","v":{"v":33150535.531917237,"d":"$33,150,536"}},{"$f":"'Trial 8'!DQ22","v":{"v":33134232.55118996,"d":"$33,134,233"}},{"$f":"'Trial 8'!DR22","v":{"v":33123891.337502882,"d":"$33,123,891"}},{"$f":"'Trial 8'!DS22","v":{"v":33112888.87977696,"d":"$33,112,889"}},{"$f":"'Trial 8'!DT22","v":{"v":33098055.28307259,"d":"$33,098,055"}},{"$f":"'Trial 8'!DU22","v":{"v":33087061.026107457,"d":"$33,087,061"}},{"$f":"'Trial 8'!DV22","v":{"v":33075719.00620121,"d":"$33,075,719"}},{"$f":"'Trial 8'!DW22","v":{"v":33062204.508118324,"d":"$33,062,205"}},{"$f":"'Trial 8'!DX22","v":{"v":33049639.55492512,"d":"$33,049,640"}},{"$f":"'Trial 8'!DY22","v":{"v":33032808.19459499,"d":"$33,032,808"}},{"$f":"'Trial 8'!DZ22","v":{"v":33019801.976656698,"d":"$33,019,802"}},{"$f":"'Trial 8'!EB22","v":{"v":33005964.206075124,"d":"$33,005,964"}},{"$f":"'Trial 8'!EC22","v":{"v":32988825.230389282,"d":"$32,988,825"}},{"$f":"'Trial 8'!ED22","v":{"v":32971922.40845693,"d":"$32,971,922"}},{"$f":"'Trial 8'!EE22","v":{"v":32959319.907917112,"d":"$32,959,320"}},{"$f":"'Trial 8'!EF22","v":{"v":32944226.897885956,"d":"$32,944,227"}},{"$f":"'Trial 8'!EG22","v":{"v":32928740.54621893,"d":"$32,928,741"}},{"$f":"'Trial 8'!EH22","v":{"v":32915091.8343392,"d":"$32,915,092"}},{"$f":"'Trial 8'!EI22","v":{"v":32903964.079355687,"d":"$32,903,964"}},{"$f":"'Trial 8'!EJ22","v":{"v":32888281.031379096,"d":"$32,888,281"}},{"$f":"'Trial 8'!EK22","v":{"v":32874706.845029317,"d":"$32,874,707"}},{"$f":"'Trial 8'!EL22","v":{"v":32857598.625223912,"d":"$32,857,599"}},{"$f":"'Trial 8'!EM22","v":{"v":32842007.533886906,"d":"$32,842,008"}}]
[{"$f":"'(Other Computations)'!B177","v":{"v":277162387.37541157,"d":"$277,162,387"}},{"$f":"'(Other Computations)'!C177","v":{"v":277035914.1707044,"d":"$277,035,914"}},{"$f":"'(Other Computations)'!D177","v":{"v":276917642.4233167,"d":"$276,917,642"}},{"$f":"'(Other Computations)'!E177","v":{"v":276809988.68985313,"d":"$276,809,989"}},{"$f":"'(Other Computations)'!F177","v":{"v":276706672.5166994,"d":"$276,706,673"}},{"$f":"'(Other Computations)'!G177","v":{"v":276608964.6899032,"d":"$276,608,965"}},{"$f":"'(Other Computations)'!H177","v":{"v":276503852.7210503,"d":"$276,503,853"}},{"$f":"'(Other Computations)'!I177","v":{"v":276388717.7841563,"d":"$276,388,718"}},{"$f":"'(Other Computations)'!J177","v":{"v":276278357.1029166,"d":"$276,278,357"}},{"$f":"'(Other Computations)'!K177","v":{"v":276168822.86028045,"d":"$276,168,823"}},{"$f":"'(Other Computations)'!L177","v":{"v":276059360.75732976,"d":"$276,059,361"}},{"$f":"'(Other Computations)'!M177","v":{"v":275948767.6747364,"d":"$275,948,768"}},{"$f":"'(Other Computations)'!O177","v":{"v":275834862.5173568,"d":"$275,834,863"}},{"$f":"'(Other Computations)'!P177","v":{"v":275727316.4478508,"d":"$275,727,316"}},{"$f":"'(Other Computations)'!Q177","v":{"v":275617958.03348047,"d":"$275,617,958"}},{"$f":"'(Other Computations)'!R177","v":{"v":275511076.49102044,"d":"$275,511,076"}},{"$f":"'(Other Computations)'!S177","v":{"v":275406729.5586312,"d":"$275,406,730"}},{"$f":"'(Other Computations)'!T177","v":{"v":275281053.75649875,"d":"$275,281,054"}},{"$f":"'(Other Computations)'!U177","v":{"v":275173563.4578389,"d":"$275,173,563"}},{"$f":"'(Other Computations)'!V177","v":{"v":275053337.3752776,"d":"$275,053,337"}},{"$f":"'(Other Computations)'!W177","v":{"v":274934659.6744891,"d":"$274,934,660"}},{"$f":"'(Other Computations)'!X177","v":{"v":274831007.3660628,"d":"$274,831,007"}},{"$f":"'(Other Computations)'!Y177","v":{"v":274715363.1211785,"d":"$274,715,363"}},{"$f":"'(Other Computations)'!Z177","v":{"v":274600810.59477526,"d":"$274,600,811"}},{"$f":"'(Other Computations)'!AB177","v":{"v":274474209.4604979,"d":"$274,474,209"}},{"$f":"'(Other Computations)'!AC177","v":{"v":274361572.197151,"d":"$274,361,572"}},{"$f":"'(Other Computations)'!AD177","v":{"v":274254327.07128614,"d":"$274,254,327"}},{"$f":"'(Other Computations)'!AE177","v":{"v":274143157.3884134,"d":"$274,143,157"}},{"$f":"'(Other Computations)'!AF177","v":{"v":274030244.46010315,"d":"$274,030,244"}},{"$f":"'(Other Computations)'!AG177","v":{"v":273908423.80389464,"d":"$273,908,424"}},{"$f":"'(Other Computations)'!AH177","v":{"v":273799052.3880999,"d":"$273,799,052"}},{"$f":"'(Other Computations)'!AI177","v":{"v":273694805.0972486,"d":"$273,694,805"}},{"$f":"'(Other Computations)'!AJ177","v":{"v":273572333.9956653,"d":"$273,572,334"}},{"$f":"'(Other Computations)'!AK177","v":{"v":273460902.4138787,"d":"$273,460,902"}},{"$f":"'(Other Computations)'!AL177","v":{"v":273351971.44256335,"d":"$273,351,971"}},{"$f":"'(Other Computations)'!AM177","v":{"v":273245054.8207848,"d":"$273,245,055"}},{"$f":"'(Other Computations)'!AO177","v":{"v":273126569.1411096,"d":"$273,126,569"}},{"$f":"'(Other Computations)'!AP177","v":{"v":273014322.04931074,"d":"$273,014,322"}},{"$f":"'(Other Computations)'!AQ177","v":{"v":272909072.7649227,"d":"$272,909,073"}},{"$f":"'(Other Computations)'!AR177","v":{"v":272791025.1577362,"d":"$272,791,025"}},{"$f":"'(Other Computations)'!AS177","v":{"v":272677415.2263787,"d":"$272,677,415"}},{"$f":"'(Other Computations)'!AT177","v":{"v":272571126.40667015,"d":"$272,571,126"}},{"$f":"'(Other Computations)'!AU177","v":{"v":272457641.3574598,"d":"$272,457,641"}},{"$f":"'(Other Computations)'!AV177","v":{"v":272342099.16885537,"d":"$272,342,099"}},{"$f":"'(Other Computations)'!AW177","v":{"v":272230001.89584106,"d":"$272,230,002"}},{"$f":"'(Other Computations)'!AX177","v":{"v":272109962.2181171,"d":"$272,109,962"}},{"$f":"'(Other Computations)'!AY177","v":{"v":271994627.3126558,"d":"$271,994,627"}},{"$f":"'(Other Computations)'!AZ177","v":{"v":271882705.90334177,"d":"$271,882,706"}},{"$f":"'(Other Computations)'!BB177","v":{"v":271760699.77438724,"d":"$271,760,700"}},{"$f":"'(Other Computations)'!BC177","v":{"v":271639970.2227117,"d":"$271,639,970"}},{"$f":"'(Other Computations)'!BD177","v":{"v":271524681.8059542,"d":"$271,524,682"}},{"$f":"'(Other Computations)'!BE177","v":{"v":271411747.0428477,"d":"$271,411,747"}},{"$f":"'(Other Computations)'!BF177","v":{"v":271296623.979742,"d":"$271,296,624"}},{"$f":"'(Other Computations)'!BG177","v":{"v":271186230.7591643,"d":"$271,186,231"}},{"$f":"'(Other Computations)'!BH177","v":{"v":271075841.64128673,"d":"$271,075,842"}},{"$f":"'(Other Computations)'!BI177","v":{"v":270954480.94366837,"d":"$270,954,481"}},{"$f":"'(Other Computations)'!BJ177","v":{"v":270837656.1595809,"d":"$270,837,656"}},{"$f":"'(Other Computations)'!BK177","v":{"v":270728457.15971595,"d":"$270,728,457"}},{"$f":"'(Other Computations)'!BL177","v":{"v":270613137.5431423,"d":"$270,613,138"}},{"$f":"'(Other Computations)'!BM177","v":{"v":270504144.3940326,"d":"$270,504,144"}},{"$f":"'(Other Computations)'!BO177","v":{"v":270389875.5362631,"d":"$270,389,876"}},{"$f":"'(Other Computations)'!BP177","v":{"v":270275030.2472191,"d":"$270,275,030"}},{"$f":"'(Other Computations)'!BQ177","v":{"v":270163702.668399,"d":"$270,163,703"}},{"$f":"'(Other Computations)'!BR177","v":{"v":270058204.32674223,"d":"$270,058,204"}},{"$f":"'(Other Computations)'!BS177","v":{"v":269950845.8015997,"d":"$269,950,846"}},{"$f":"'(Other Computations)'!BT177","v":{"v":269834210.708319,"d":"$269,834,211"}},{"$f":"'(Other Computations)'!BU177","v":{"v":269731651.70719075,"d":"$269,731,652"}},{"$f":"'(Other Computations)'!BV177","v":{"v":269614223.0060692,"d":"$269,614,223"}},{"$f":"'(Other Computations)'!BW177","v":{"v":269500388.5873317,"d":"$269,500,389"}},{"$f":"'(Other Computations)'!BX177","v":{"v":269395770.20147145,"d":"$269,395,770"}},{"$f":"'(Other Computations)'!BY177","v":{"v":269277876.7756424,"d":"$269,277,877"}},{"$f":"'(Other Computations)'!BZ177","v":{"v":269171876.496153,"d":"$269,171,876"}},{"$f":"'(Other Computations)'!CB177","v":{"v":269059980.09420264,"d":"$269,059,980"}},{"$f":"'(Other Computations)'!CC177","v":{"v":268946332.75217795,"d":"$268,946,333"}},{"$f":"'(Other Computations)'!CD177","v":{"v":268831492.1378241,"d":"$268,831,492"}},{"$f":"'(Other Computations)'!CE177","v":{"v":268723069.8496234,"d":"$268,723,070"}},{"$f":"'(Other Computations)'!CF177","v":{"v":268604928.4312077,"d":"$268,604,928"}},{"$f":"'(Other Computations)'!CG177","v":{"v":268491822.63707024,"d":"$268,491,823"}},{"$f":"'(Other Computations)'!CH177","v":{"v":268394846.40157163,"d":"$268,394,846"}},{"$f":"'(Other Computations)'!CI177","v":{"v":268284800.05049184,"d":"$268,284,800"}},{"$f":"'(Other Computations)'!CJ177","v":{"v":268177950.94327924,"d":"$268,177,951"}},{"$f":"'(Other Computations)'!CK177","v":{"v":268068838.84534168,"d":"$268,068,839"}},{"$f":"'(Other Computations)'!CL177","v":{"v":267967249.4845877,"d":"$267,967,249"}},{"$f":"'(Other Computations)'!CM177","v":{"v":267854142.13271162,"d":"$267,854,142"}},{"$f":"'(Other Computations)'!CO177","v":{"v":267751311.34940875,"d":"$267,751,311"}},{"$f":"'(Other Computations)'!CP177","v":{"v":267643795.6193436,"d":"$267,643,796"}},{"$f":"'(Other Computations)'!CQ177","v":{"v":267536714.0614656,"d":"$267,536,714"}},{"$f":"'(Other Computations)'!CR177","v":{"v":267428820.22429866,"d":"$267,428,820"}},{"$f":"'(Other Computations)'!CS177","v":{"v":267317780.50396633,"d":"$267,317,781"}},{"$f":"'(Other Computations)'!CT177","v":{"v":267194544.38114053,"d":"$267,194,544"}},{"$f":"'(Other Computations)'!CU177","v":{"v":267077041.6473719,"d":"$267,077,042"}},{"$f":"'(Other Computations)'!CV177","v":{"v":266978399.70645356,"d":"$266,978,400"}},{"$f":"'(Other Computations)'!CW177","v":{"v":266864713.2165155,"d":"$266,864,713"}},{"$f":"'(Other Computations)'!CX177","v":{"v":266752143.55198413,"d":"$266,752,144"}},{"$f":"'(Other Computations)'!CY177","v":{"v":266637258.88395628,"d":"$266,637,259"}},{"$f":"'(Other Computations)'!CZ177","v":{"v":266529746.5293807,"d":"$266,529,747"}},{"$f":"'(Other Computations)'!DB177","v":{"v":266415835.1390766,"d":"$266,415,835"}},{"$f":"'(Other Computations)'!DC177","v":{"v":266309600.8352678,"d":"$266,309,601"}},{"$f":"'(Other Computations)'!DD177","v":{"v":266191508.0881428,"d":"$266,191,508"}},{"$f":"'(Other Computations)'!DE177","v":{"v":266077347.83248442,"d":"$266,077,348"}},{"$f":"'(Other Computations)'!DF177","v":{"v":265969765.14659706,"d":"$265,969,765"}},{"$f":"'(Other Computations)'!DG177","v":{"v":265858180.68614522,"d":"$265,858,181"}},{"$f":"'(Other Computations)'!DH177","v":{"v":265744847.7552145,"d":"$265,744,848"}},{"$f":"'(Other Computations)'!DI177","v":{"v":265630340.77406454,"d":"$265,630,341"}},{"$f":"'(Other Computations)'!DJ177","v":{"v":265514070.8720797,"d":"$265,514,071"}},{"$f":"'(Other Computations)'!DK177","v":{"v":265402606.58372885,"d":"$265,402,607"}},{"$f":"'(Other Computations)'!DL177","v":{"v":265289881.74726796,"d":"$265,289,882"}},{"$f":"'(Other Computations)'!DM177","v":{"v":265173165.0286406,"d":"$265,173,165"}},{"$f":"'(Other Computations)'!DO177","v":{"v":265058164.06390196,"d":"$265,058,164"}},{"$f":"'(Other Computations)'!DP177","v":{"v":264952198.2053996,"d":"$264,952,198"}},{"$f":"'(Other Computations)'!DQ177","v":{"v":264837495.4566952,"d":"$264,837,495"}},{"$f":"'(Other Computations)'!DR177","v":{"v":264734308.7720747,"d":"$264,734,309"}},{"$f":"'(Other Computations)'!DS177","v":{"v":264624333.52642822,"d":"$264,624,334"}},{"$f":"'(Other Computations)'!DT177","v":{"v":264513469.57262167,"d":"$264,513,470"}},{"$f":"'(Other Computations)'!DU177","v":{"v":264409782.25305578,"d":"$264,409,782"}},{"$f":"'(Other Computations)'!DV177","v":{"v":264301416.4075116,"d":"$264,301,416"}},{"$f":"'(Other Computations)'!DW177","v":{"v":264195170.56867507,"d":"$264,195,171"}},{"$f":"'(Other Computations)'!DX177","v":{"v":264085873.5126609,"d":"$264,085,874"}},{"$f":"'(Other Computations)'!DY177","v":{"v":263975454.02508458,"d":"$263,975,454"}},{"$f":"'(Other Computations)'!DZ177","v":{"v":263865703.85926503,"d":"$263,865,704"}},{"$f":"'(Other Computations)'!EB177","v":{"v":263746605.05115545,"d":"$263,746,605"}},{"$f":"'(Other Computations)'!EC177","v":{"v":263639400.98995233,"d":"$263,639,401"}},{"$f":"'(Other Computations)'!ED177","v":{"v":263521306.4502534,"d":"$263,521,306"}},{"$f":"'(Other Computations)'!EE177","v":{"v":263406566.04351738,"d":"$263,406,566"}},{"$f":"'(Other Computations)'!EF177","v":{"v":263296905.493257,"d":"$263,296,905"}},{"$f":"'(Other Computations)'!EG177","v":{"v":263188253.63693374,"d":"$263,188,254"}},{"$f":"'(Other Computations)'!EH177","v":{"v":263072087.33443612,"d":"$263,072,087"}},{"$f":"'(Other Computations)'!EI177","v":{"v":262958260.42372182,"d":"$262,958,260"}},{"$f":"'(Other Computations)'!EJ177","v":{"v":262834260.11063537,"d":"$262,834,260"}},{"$f":"'(Other Computations)'!EK177","v":{"v":262720650.79022238,"d":"$262,720,651"}},{"$f":"'(Other Computations)'!EL177","v":{"v":262613141.11478096,"d":"$262,613,141"}},{"$f":"'(Other Computations)'!EM177","v":{"v":262498242.05729258,"d":"$262,498,242"}}]
[{"$f":"'(Intermediate Computations)'!B83","v":"Jan 2010"},{"$f":"'(Intermediate Computations)'!C83","v":"Feb 2010"},{"$f":"'(Intermediate Computations)'!D83","v":"Mar 2010"},{"$f":"'(Intermediate Computations)'!E83","v":"Apr 2010"},{"$f":"'(Intermediate Computations)'!F83","v":"May 2010"},{"$f":"'(Intermediate Computations)'!G83","v":"Jun 2010"},{"$f":"'(Intermediate Computations)'!H83","v":"Jul 2010"},{"$f":"'(Intermediate Computations)'!I83","v":"Aug 2010"},{"$f":"'(Intermediate Computations)'!J83","v":"Sep 2010"},{"$f":"'(Intermediate Computations)'!K83","v":"Oct 2010"},{"$f":"'(Intermediate Computations)'!L83","v":"Nov 2010"},{"$f":"'(Intermediate Computations)'!M83","v":"Dec 2010"},{"$f":"'(Intermediate Computations)'!O83","v":"Jan 2011"},{"$f":"'(Intermediate Computations)'!P83","v":"Feb 2011"},{"$f":"'(Intermediate Computations)'!Q83","v":"Mar 2011"},{"$f":"'(Intermediate Computations)'!R83","v":"Apr 2011"},{"$f":"'(Intermediate Computations)'!S83","v":"May 2011"},{"$f":"'(Intermediate Computations)'!T83","v":"Jun 2011"},{"$f":"'(Intermediate Computations)'!U83","v":"Jul 2011"},{"$f":"'(Intermediate Computations)'!V83","v":"Aug 2011"},{"$f":"'(Intermediate Computations)'!W83","v":"Sep 2011"},{"$f":"'(Intermediate Computations)'!X83","v":"Oct 2011"},{"$f":"'(Intermediate Computations)'!Y83","v":"Nov 2011"},{"$f":"'(Intermediate Computations)'!Z83","v":"Dec 2011"},{"$f":"'(Intermediate Computations)'!AB83","v":"Jan 2012"},{"$f":"'(Intermediate Computations)'!AC83","v":"Feb 2012"},{"$f":"'(Intermediate Computations)'!AD83","v":"Mar 2012"},{"$f":"'(Intermediate Computations)'!AE83","v":"Apr 2012"},{"$f":"'(Intermediate Computations)'!AF83","v":"May 2012"},{"$f":"'(Intermediate Computations)'!AG83","v":"Jun 2012"},{"$f":"'(Intermediate Computations)'!AH83","v":"Jul 2012"},{"$f":"'(Intermediate Computations)'!AI83","v":"Aug 2012"},{"$f":"'(Intermediate Computations)'!AJ83","v":"Sep 2012"},{"$f":"'(Intermediate Computations)'!AK83","v":"Oct 2012"},{"$f":"'(Intermediate Computations)'!AL83","v":"Nov 2012"},{"$f":"'(Intermediate Computations)'!AM83","v":"Dec 2012"},{"$f":"'(Intermediate Computations)'!AO83","v":"Jan 2013"},{"$f":"'(Intermediate Computations)'!AP83","v":"Feb 2013"},{"$f":"'(Intermediate Computations)'!AQ83","v":"Mar 2013"},{"$f":"'(Intermediate Computations)'!AR83","v":"Apr 2013"},{"$f":"'(Intermediate Computations)'!AS83","v":"May 2013"},{"$f":"'(Intermediate Computations)'!AT83","v":"Jun 2013"},{"$f":"'(Intermediate Computations)'!AU83","v":"Jul 2013"},{"$f":"'(Intermediate Computations)'!AV83","v":"Aug 2013"},{"$f":"'(Intermediate Computations)'!AW83","v":"Sep 2013"},{"$f":"'(Intermediate Computations)'!AX83","v":"Oct 2013"},{"$f":"'(Intermediate Computations)'!AY83","v":"Nov 2013"},{"$f":"'(Intermediate Computations)'!AZ83","v":"Dec 2013"},{"$f":"'(Intermediate Computations)'!BB83","v":"Jan 2014"},{"$f":"'(Intermediate Computations)'!BC83","v":"Feb 2014"},{"$f":"'(Intermediate Computations)'!BD83","v":"Mar 2014"},{"$f":"'(Intermediate Computations)'!BE83","v":"Apr 2014"},{"$f":"'(Intermediate Computations)'!BF83","v":"May 2014"},{"$f":"'(Intermediate Computations)'!BG83","v":"Jun 2014"},{"$f":"'(Intermediate Computations)'!BH83","v":"Jul 2014"},{"$f":"'(Intermediate Computations)'!BI83","v":"Aug 2014"},{"$f":"'(Intermediate Computations)'!BJ83","v":"Sep 2014"},{"$f":"'(Intermediate Computations)'!BK83","v":"Oct 2014"},{"$f":"'(Intermediate Computations)'!BL83","v":"Nov 2014"},{"$f":"'(Intermediate Computations)'!BM83","v":"Dec 2014"},{"$f":"'(Intermediate Computations)'!BO83","v":"Jan 2015"},{"$f":"'(Intermediate Computations)'!BP83","v":"Feb 2015"},{"$f":"'(Intermediate Computations)'!BQ83","v":"Mar 2015"},{"$f":"'(Intermediate Computations)'!BR83","v":"Apr 2015"},{"$f":"'(Intermediate Computations)'!BS83","v":"May 2015"},{"$f":"'(Intermediate Computations)'!BT83","v":"Jun 2015"},{"$f":"'(Intermediate Computations)'!BU83","v":"Jul 2015"},{"$f":"'(Intermediate Computations)'!BV83","v":"Aug 2015"},{"$f":"'(Intermediate Computations)'!BW83","v":"Sep 2015"},{"$f":"'(Intermediate Computations)'!BX83","v":"Oct 2015"},{"$f":"'(Intermediate Computations)'!BY83","v":"Nov 2015"},{"$f":"'(Intermediate Computations)'!BZ83","v":"Dec 2015"},{"$f":"'(Intermediate Computations)'!CB83","v":"Jan 2016"},{"$f":"'(Intermediate Computations)'!CC83","v":"Feb 2016"},{"$f":"'(Intermediate Computations)'!CD83","v":"Mar 2016"},{"$f":"'(Intermediate Computations)'!CE83","v":"Apr 2016"},{"$f":"'(Intermediate Computations)'!CF83","v":"May 2016"},{"$f":"'(Intermediate Computations)'!CG83","v":"Jun 2016"},{"$f":"'(Intermediate Computations)'!CH83","v":"Jul 2016"},{"$f":"'(Intermediate Computations)'!CI83","v":"Aug 2016"},{"$f":"'(Intermediate Computations)'!CJ83","v":"Sep 2016"},{"$f":"'(Intermediate Computations)'!CK83","v":"Oct 2016"},{"$f":"'(Intermediate Computations)'!CL83","v":"Nov 2016"},{"$f":"'(Intermediate Computations)'!CM83","v":"Dec 2016"},{"$f":"'(Intermediate Computations)'!CO83","v":"Jan 2017"},{"$f":"'(Intermediate Computations)'!CP83","v":"Feb 2017"},{"$f":"'(Intermediate Computations)'!CQ83","v":"Mar 2017"},{"$f":"'(Intermediate Computations)'!CR83","v":"Apr 2017"},{"$f":"'(Intermediate Computations)'!CS83","v":"May 2017"},{"$f":"'(Intermediate Computations)'!CT83","v":"Jun 2017"},{"$f":"'(Intermediate Computations)'!CU83","v":"Jul 2017"},{"$f":"'(Intermediate Computations)'!CV83","v":"Aug 2017"},{"$f":"'(Intermediate Computations)'!CW83","v":"Sep 2017"},{"$f":"'(Intermediate Computations)'!CX83","v":"Oct 2017"},{"$f":"'(Intermediate Computations)'!CY83","v":"Nov 2017"},{"$f":"'(Intermediate Computations)'!CZ83","v":"Dec 2017"},{"$f":"'(Intermediate Computations)'!DB83","v":"Jan 2018"},{"$f":"'(Intermediate Computations)'!DC83","v":"Feb 2018"},{"$f":"'(Intermediate Computations)'!DD83","v":"Mar 2018"},{"$f":"'(Intermediate Computations)'!DE83","v":"Apr 2018"},{"$f":"'(Intermediate Computations)'!DF83","v":"May 2018"},{"$f":"'(Intermediate Computations)'!DG83","v":"Jun 2018"},{"$f":"'(Intermediate Computations)'!DH83","v":"Jul 2018"},{"$f":"'(Intermediate Computations)'!DI83","v":"Aug 2018"},{"$f":"'(Intermediate Computations)'!DJ83","v":"Sep 2018"},{"$f":"'(Intermediate Computations)'!DK83","v":"Oct 2018"},{"$f":"'(Intermediate Computations)'!DL83","v":"Nov 2018"},{"$f":"'(Intermediate Computations)'!DM83","v":"Dec 2018"},{"$f":"'(Intermediate Computations)'!DO83","v":"Jan 2019"},{"$f":"'(Intermediate Computations)'!DP83","v":"Feb 2019"},{"$f":"'(Intermediate Computations)'!DQ83","v":"Mar 2019"},{"$f":"'(Intermediate Computations)'!DR83","v":"Apr 2019"},{"$f":"'(Intermediate Computations)'!DS83","v":"May 2019"},{"$f":"'(Intermediate Computations)'!DT83","v":"Jun 2019"},{"$f":"'(Intermediate Computations)'!DU83","v":"Jul 2019"},{"$f":"'(Intermediate Computations)'!DV83","v":"Aug 2019"},{"$f":"'(Intermediate Computations)'!DW83","v":"Sep 2019"},{"$f":"'(Intermediate Computations)'!DX83","v":"Oct 2019"},{"$f":"'(Intermediate Computations)'!DY83","v":"Nov 2019"},{"$f":"'(Intermediate Computations)'!DZ83","v":"Dec 2019"},{"$f":"'(Intermediate Computations)'!EB83","v":"Jan 2020"},{"$f":"'(Intermediate Computations)'!EC83","v":"Feb 2020"},{"$f":"'(Intermediate Computations)'!ED83","v":"Mar 2020"},{"$f":"'(Intermediate Computations)'!EE83","v":"Apr 2020"},{"$f":"'(Intermediate Computations)'!EF83","v":"May 2020"},{"$f":"'(Intermediate Computations)'!EG83","v":"Jun 2020"},{"$f":"'(Intermediate Computations)'!EH83","v":"Jul 2020"},{"$f":"'(Intermediate Computations)'!EI83","v":"Aug 2020"},{"$f":"'(Intermediate Computations)'!EJ83","v":"Sep 2020"},{"$f":"'(Intermediate Computations)'!EK83","v":"Oct 2020"},{"$f":"'(Intermediate Computations)'!EL83","v":"Nov 2020"},{"$f":"'(Intermediate Computations)'!EM83","v":"Dec 2020"}]
[{"$f":"'(Intermediate Computations)'!B80","v":"2010-01-01"},{"$f":"'(Intermediate Computations)'!C80","v":"2010-02-01"},{"$f":"'(Intermediate Computations)'!D80","v":"2010-03-01"},{"$f":"'(Intermediate Computations)'!E80","v":"2010-04-01"},{"$f":"'(Intermediate Computations)'!F80","v":"2010-05-01"},{"$f":"'(Intermediate Computations)'!G80","v":"2010-06-01"},{"$f":"'(Intermediate Computations)'!H80","v":"2010-07-01"},{"$f":"'(Intermediate Computations)'!I80","v":"2010-08-01"},{"$f":"'(Intermediate Computations)'!J80","v":"2010-09-01"},{"$f":"'(Intermediate Computations)'!K80","v":"2010-10-01"},{"$f":"'(Intermediate Computations)'!L80","v":"2010-11-01"},{"$f":"'(Intermediate Computations)'!M80","v":"2010-12-01"},{"$f":"'(Intermediate Computations)'!O80","v":"2011-01-01"},{"$f":"'(Intermediate Computations)'!P80","v":"2011-02-01"},{"$f":"'(Intermediate Computations)'!Q80","v":"2011-03-01"},{"$f":"'(Intermediate Computations)'!R80","v":"2011-04-01"},{"$f":"'(Intermediate Computations)'!S80","v":"2011-05-01"},{"$f":"'(Intermediate Computations)'!T80","v":"2011-06-01"},{"$f":"'(Intermediate Computations)'!U80","v":"2011-07-01"},{"$f":"'(Intermediate Computations)'!V80","v":"2011-08-01"},{"$f":"'(Intermediate Computations)'!W80","v":"2011-09-01"},{"$f":"'(Intermediate Computations)'!X80","v":"2011-10-01"},{"$f":"'(Intermediate Computations)'!Y80","v":"2011-11-01"},{"$f":"'(Intermediate Computations)'!Z80","v":"2011-12-01"},{"$f":"'(Intermediate Computations)'!AB80","v":"2012-01-01"},{"$f":"'(Intermediate Computations)'!AC80","v":"2012-02-01"},{"$f":"'(Intermediate Computations)'!AD80","v":"2012-03-01"},{"$f":"'(Intermediate Computations)'!AE80","v":"2012-04-01"},{"$f":"'(Intermediate Computations)'!AF80","v":"2012-05-01"},{"$f":"'(Intermediate Computations)'!AG80","v":"2012-06-01"},{"$f":"'(Intermediate Computations)'!AH80","v":"2012-07-01"},{"$f":"'(Intermediate Computations)'!AI80","v":"2012-08-01"},{"$f":"'(Intermediate Computations)'!AJ80","v":"2012-09-01"},{"$f":"'(Intermediate Computations)'!AK80","v":"2012-10-01"},{"$f":"'(Intermediate Computations)'!AL80","v":"2012-11-01"},{"$f":"'(Intermediate Computations)'!AM80","v":"2012-12-01"},{"$f":"'(Intermediate Computations)'!AO80","v":"2013-01-01"},{"$f":"'(Intermediate Computations)'!AP80","v":"2013-02-01"},{"$f":"'(Intermediate Computations)'!AQ80","v":"2013-03-01"},{"$f":"'(Intermediate Computations)'!AR80","v":"2013-04-01"},{"$f":"'(Intermediate Computations)'!AS80","v":"2013-05-01"},{"$f":"'(Intermediate Computations)'!AT80","v":"2013-06-01"},{"$f":"'(Intermediate Computations)'!AU80","v":"2013-07-01"},{"$f":"'(Intermediate Computations)'!AV80","v":"2013-08-01"},{"$f":"'(Intermediate Computations)'!AW80","v":"2013-09-01"},{"$f":"'(Intermediate Computations)'!AX80","v":"2013-10-01"},{"$f":"'(Intermediate Computations)'!AY80","v":"2013-11-01"},{"$f":"'(Intermediate Computations)'!AZ80","v":"2013-12-01"},{"$f":"'(Intermediate Computations)'!BB80","v":"2014-01-01"},{"$f":"'(Intermediate Computations)'!BC80","v":"2014-02-01"},{"$f":"'(Intermediate Computations)'!BD80","v":"2014-03-01"},{"$f":"'(Intermediate Computations)'!BE80","v":"2014-04-01"},{"$f":"'(Intermediate Computations)'!BF80","v":"2014-05-01"},{"$f":"'(Intermediate Computations)'!BG80","v":"2014-06-01"},{"$f":"'(Intermediate Computations)'!BH80","v":"2014-07-01"},{"$f":"'(Intermediate Computations)'!BI80","v":"2014-08-01"},{"$f":"'(Intermediate Computations)'!BJ80","v":"2014-09-01"},{"$f":"'(Intermediate Computations)'!BK80","v":"2014-10-01"},{"$f":"'(Intermediate Computations)'!BL80","v":"2014-11-01"},{"$f":"'(Intermediate Computations)'!BM80","v":"2014-12-01"},{"$f":"'(Intermediate Computations)'!BO80","v":"2015-01-01"},{"$f":"'(Intermediate Computations)'!BP80","v":"2015-02-01"},{"$f":"'(Intermediate Computations)'!BQ80","v":"2015-03-01"},{"$f":"'(Intermediate Computations)'!BR80","v":"2015-04-01"},{"$f":"'(Intermediate Computations)'!BS80","v":"2015-05-01"},{"$f":"'(Intermediate Computations)'!BT80","v":"2015-06-01"},{"$f":"'(Intermediate Computations)'!BU80","v":"2015-07-01"},{"$f":"'(Intermediate Computations)'!BV80","v":"2015-08-01"},{"$f":"'(Intermediate Computations)'!BW80","v":"2015-09-01"},{"$f":"'(Intermediate Computations)'!BX80","v":"2015-10-01"},{"$f":"'(Intermediate Computations)'!BY80","v":"2015-11-01"},{"$f":"'(Intermediate Computations)'!BZ80","v":"2015-12-01"},{"$f":"'(Intermediate Computations)'!CB80","v":"2016-01-01"},{"$f":"'(Intermediate Computations)'!CC80","v":"2016-02-01"},{"$f":"'(Intermediate Computations)'!CD80","v":"2016-03-01"},{"$f":"'(Intermediate Computations)'!CE80","v":"2016-04-01"},{"$f":"'(Intermediate Computations)'!CF80","v":"2016-05-01"},{"$f":"'(Intermediate Computations)'!CG80","v":"2016-06-01"},{"$f":"'(Intermediate Computations)'!CH80","v":"2016-07-01"},{"$f":"'(Intermediate Computations)'!CI80","v":"2016-08-01"},{"$f":"'(Intermediate Computations)'!CJ80","v":"2016-09-01"},{"$f":"'(Intermediate Computations)'!CK80","v":"2016-10-01"},{"$f":"'(Intermediate Computations)'!CL80","v":"2016-11-01"},{"$f":"'(Intermediate Computations)'!CM80","v":"2016-12-01"},{"$f":"'(Intermediate Computations)'!CO80","v":"2017-01-01"},{"$f":"'(Intermediate Computations)'!CP80","v":"2017-02-01"},{"$f":"'(Intermediate Computations)'!CQ80","v":"2017-03-01"},{"$f":"'(Intermediate Computations)'!CR80","v":"2017-04-01"},{"$f":"'(Intermediate Computations)'!CS80","v":"2017-05-01"},{"$f":"'(Intermediate Computations)'!CT80","v":"2017-06-01"},{"$f":"'(Intermediate Computations)'!CU80","v":"2017-07-01"},{"$f":"'(Intermediate Computations)'!CV80","v":"2017-08-01"},{"$f":"'(Intermediate Computations)'!CW80","v":"2017-09-01"},{"$f":"'(Intermediate Computations)'!CX80","v":"2017-10-01"},{"$f":"'(Intermediate Computations)'!CY80","v":"2017-11-01"},{"$f":"'(Intermediate Computations)'!CZ80","v":"2017-12-01"},{"$f":"'(Intermediate Computations)'!DB80","v":"2018-01-01"},{"$f":"'(Intermediate Computations)'!DC80","v":"2018-02-01"},{"$f":"'(Intermediate Computations)'!DD80","v":"2018-03-01"},{"$f":"'(Intermediate Computations)'!DE80","v":"2018-04-01"},{"$f":"'(Intermediate Computations)'!DF80","v":"2018-05-01"},{"$f":"'(Intermediate Computations)'!DG80","v":"2018-06-01"},{"$f":"'(Intermediate Computations)'!DH80","v":"2018-07-01"},{"$f":"'(Intermediate Computations)'!DI80","v":"2018-08-01"},{"$f":"'(Intermediate Computations)'!DJ80","v":"2018-09-01"},{"$f":"'(Intermediate Computations)'!DK80","v":"2018-10-01"},{"$f":"'(Intermediate Computations)'!DL80","v":"2018-11-01"},{"$f":"'(Intermediate Computations)'!DM80","v":"2018-12-01"},{"$f":"'(Intermediate Computations)'!DO80","v":"2019-01-01"},{"$f":"'(Intermediate Computations)'!DP80","v":"2019-02-01"},{"$f":"'(Intermediate Computations)'!DQ80","v":"2019-03-01"},{"$f":"'(Intermediate Computations)'!DR80","v":"2019-04-01"},{"$f":"'(Intermediate Computations)'!DS80","v":"2019-05-01"},{"$f":"'(Intermediate Computations)'!DT80","v":"2019-06-01"},{"$f":"'(Intermediate Computations)'!DU80","v":"2019-07-01"},{"$f":"'(Intermediate Computations)'!DV80","v":"2019-08-01"},{"$f":"'(Intermediate Computations)'!DW80","v":"2019-09-01"},{"$f":"'(Intermediate Computations)'!DX80","v":"2019-10-01"},{"$f":"'(Intermediate Computations)'!DY80","v":"2019-11-01"},{"$f":"'(Intermediate Computations)'!DZ80","v":"2019-12-01"},{"$f":"'(Intermediate Computations)'!EB80","v":"2020-01-01"},{"$f":"'(Intermediate Computations)'!EC80","v":"2020-02-01"},{"$f":"'(Intermediate Computations)'!ED80","v":"2020-03-01"},{"$f":"'(Intermediate Computations)'!EE80","v":"2020-04-01"},{"$f":"'(Intermediate Computations)'!EF80","v":"2020-05-01"},{"$f":"'(Intermediate Computations)'!EG80","v":"2020-06-01"},{"$f":"'(Intermediate Computations)'!EH80","v":"2020-07-01"},{"$f":"'(Intermediate Computations)'!EI80","v":"2020-08-01"},{"$f":"'(Intermediate Computations)'!EJ80","v":"2020-09-01"},{"$f":"'(Intermediate Computations)'!EK80","v":"2020-10-01"},{"$f":"'(Intermediate Computations)'!EL80","v":"2020-11-01"},{"$f":"'(Intermediate Computations)'!EM80","v":"2020-12-01"}]
[{"$f":"'Trial 1'!B10","v":{"v":1166666.6666666667,"d":"$1,166,667"}},{"$f":"'Trial 1'!C10","v":{"v":1166142.2655630677,"d":"$1,166,142"}},{"$f":"'Trial 1'!D10","v":{"v":1165758.0041603083,"d":"$1,165,758"}},{"$f":"'Trial 1'!E10","v":{"v":1165334.4715566407,"d":"$1,165,334"}},{"$f":"'Trial 1'!F10","v":{"v":1164864.064900172,"d":"$1,164,864"}},{"$f":"'Trial 1'!G10","v":{"v":1164508.9170336213,"d":"$1,164,509"}},{"$f":"'Trial 1'!H10","v":{"v":1164081.5754214132,"d":"$1,164,082"}},{"$f":"'Trial 1'!I10","v":{"v":1163583.3868025595,"d":"$1,163,583"}},{"$f":"'Trial 1'!J10","v":{"v":1163108.561583205,"d":"$1,163,109"}},{"$f":"'Trial 1'!K10","v":{"v":1162674.745961306,"d":"$1,162,675"}},{"$f":"'Trial 1'!L10","v":{"v":1162340.6242722112,"d":"$1,162,341"}},{"$f":"'Trial 1'!M10","v":{"v":1161956.086635275,"d":"$1,161,956"}},{"$f":"'Trial 1'!O10","v":{"v":1161534.6825786282,"d":"$1,161,535"}},{"$f":"'Trial 1'!P10","v":{"v":1161036.4931823479,"d":"$1,161,036"}},{"$f":"'Trial 1'!Q10","v":{"v":1160580.1958780934,"d":"$1,160,580"}},{"$f":"'Trial 1'!R10","v":{"v":1159972.8928238398,"d":"$1,159,973"}},{"$f":"'Trial 1'!S10","v":{"v":1159551.3406574372,"d":"$1,159,551"}},{"$f":"'Trial 1'!T10","v":{"v":1158963.8844653915,"d":"$1,158,964"}},{"$f":"'Trial 1'!U10","v":{"v":1158423.8772632563,"d":"$1,158,424"}},{"$f":"'Trial 1'!V10","v":{"v":1157849.1507166144,"d":"$1,157,849"}},{"$f":"'Trial 1'!W10","v":{"v":1157272.1059065897,"d":"$1,157,272"}},{"$f":"'Trial 1'!X10","v":{"v":1156769.7868809612,"d":"$1,156,770"}},{"$f":"'Trial 1'!Y10","v":{"v":1156288.1115064882,"d":"$1,156,288"}},{"$f":"'Trial 1'!Z10","v":{"v":1155917.7494092253,"d":"$1,155,918"}},{"$f":"'Trial 1'!AB10","v":{"v":1155395.5070508344,"d":"$1,155,396"}},{"$f":"'Trial 1'!AC10","v":{"v":1154934.7261997624,"d":"$1,154,935"}},{"$f":"'Trial 1'!AD10","v":{"v":1154605.3686318733,"d":"$1,154,605"}},{"$f":"'Trial 1'!AE10","v":{"v":1154091.0799110378,"d":"$1,154,091"}},{"$f":"'Trial 1'!AF10","v":{"v":1153547.9040835032,"d":"$1,153,548"}},{"$f":"'Trial 1'!AG10","v":{"v":1153075.0079445762,"d":"$1,153,075"}},{"$f":"'Trial 1'!AH10","v":{"v":1152593.7536002027,"d":"$1,152,594"}},{"$f":"'Trial 1'!AI10","v":{"v":1152160.0686064172,"d":"$1,152,160"}},{"$f":"'Trial 1'!AJ10","v":{"v":1151658.6513770004,"d":"$1,151,659"}},{"$f":"'Trial 1'!AK10","v":{"v":1151301.412975583,"d":"$1,151,301"}},{"$f":"'Trial 1'!AL10","v":{"v":1150854.1775243494,"d":"$1,150,854"}},{"$f":"'Trial 1'!AM10","v":{"v":1150360.5472446033,"d":"$1,150,361"}},{"$f":"'Trial 1'!AO10","v":{"v":1149815.5572893047,"d":"$1,149,816"}},{"$f":"'Trial 1'!AP10","v":{"v":1149271.2358086095,"d":"$1,149,271"}},{"$f":"'Trial 1'!AQ10","v":{"v":1148940.5925845215,"d":"$1,148,941"}},{"$f":"'Trial 1'!AR10","v":{"v":1148380.5507852687,"d":"$1,148,381"}},{"$f":"'Trial 1'!AS10","v":{"v":1147978.4484654784,"d":"$1,147,978"}},{"$f":"'Trial 1'!AT10","v":{"v":1147523.5951378224,"d":"$1,147,524"}},{"$f":"'Trial 1'!AU10","v":{"v":1147115.8921858817,"d":"$1,147,116"}},{"$f":"'Trial 1'!AV10","v":{"v":1146636.4466149453,"d":"$1,146,636"}},{"$f":"'Trial 1'!AW10","v":{"v":1146113.8001134023,"d":"$1,146,114"}},{"$f":"'Trial 1'!AX10","v":{"v":1145639.7921609518,"d":"$1,145,640"}},{"$f":"'Trial 1'!AY10","v":{"v":1145266.904756742,"d":"$1,145,267"}},{"$f":"'Trial 1'!AZ10","v":{"v":1144831.4541048529,"d":"$1,144,831"}},{"$f":"'Trial 1'!BB10","v":{"v":1144280.894776596,"d":"$1,144,281"}},{"$f":"'Trial 1'!BC10","v":{"v":1143723.0016564885,"d":"$1,143,723"}},{"$f":"'Trial 1'!BD10","v":{"v":1143268.2883851826,"d":"$1,143,268"}},{"$f":"'Trial 1'!BE10","v":{"v":1142759.2650846285,"d":"$1,142,759"}},{"$f":"'Trial 1'!BF10","v":{"v":1142364.8349133139,"d":"$1,142,365"}},{"$f":"'Trial 1'!BG10","v":{"v":1141925.0186288967,"d":"$1,141,925"}},{"$f":"'Trial 1'!BH10","v":{"v":1141480.9875363961,"d":"$1,141,481"}},{"$f":"'Trial 1'!BI10","v":{"v":1141055.7442130565,"d":"$1,141,056"}},{"$f":"'Trial 1'!BJ10","v":{"v":1140564.0909001632,"d":"$1,140,564"}},{"$f":"'Trial 1'!BK10","v":{"v":1140068.7893091687,"d":"$1,140,069"}},{"$f":"'Trial 1'!BL10","v":{"v":1139496.1690215752,"d":"$1,139,496"}},{"$f":"'Trial 1'!BM10","v":{"v":1139050.592291822,"d":"$1,139,051"}},{"$f":"'Trial 1'!BO10","v":{"v":1138510.1758090435,"d":"$1,138,510"}},{"$f":"'Trial 1'!BP10","v":{"v":1138080.6813764358,"d":"$1,138,081"}},{"$f":"'Trial 1'!BQ10","v":{"v":1137564.9828034586,"d":"$1,137,565"}},{"$f":"'Trial 1'!BR10","v":{"v":1137216.9879826691,"d":"$1,137,217"}},{"$f":"'Trial 1'!BS10","v":{"v":1136798.143791232,"d":"$1,136,798"}},{"$f":"'Trial 1'!BT10","v":{"v":1136337.5091532941,"d":"$1,136,338"}},{"$f":"'Trial 1'!BU10","v":{"v":1135762.3160199458,"d":"$1,135,762"}},{"$f":"'Trial 1'!BV10","v":{"v":1135217.609907487,"d":"$1,135,218"}},{"$f":"'Trial 1'!BW10","v":{"v":1134722.932269408,"d":"$1,134,723"}},{"$f":"'Trial 1'!BX10","v":{"v":1134322.9549014934,"d":"$1,134,323"}},{"$f":"'Trial 1'!BY10","v":{"v":1133776.6951885812,"d":"$1,133,777"}},{"$f":"'Trial 1'!BZ10","v":{"v":1133203.9027523277,"d":"$1,133,204"}},{"$f":"'Trial 1'!CB10","v":{"v":1132810.3691447766,"d":"$1,132,810"}},{"$f":"'Trial 1'!CC10","v":{"v":1132323.1314165918,"d":"$1,132,323"}},{"$f":"'Trial 1'!CD10","v":{"v":1131755.3930938942,"d":"$1,131,755"}},{"$f":"'Trial 1'!CE10","v":{"v":1131374.2034441454,"d":"$1,131,374"}},{"$f":"'Trial 1'!CF10","v":{"v":1130829.840233505,"d":"$1,130,830"}},{"$f":"'Trial 1'!CG10","v":{"v":1130352.9816735429,"d":"$1,130,353"}},{"$f":"'Trial 1'!CH10","v":{"v":1129910.402809313,"d":"$1,129,910"}},{"$f":"'Trial 1'!CI10","v":{"v":1129431.3050626752,"d":"$1,129,431"}},{"$f":"'Trial 1'!CJ10","v":{"v":1128978.0980526644,"d":"$1,128,978"}},{"$f":"'Trial 1'!CK10","v":{"v":1128509.2938347543,"d":"$1,128,509"}},{"$f":"'Trial 1'!CL10","v":{"v":1127927.4422827272,"d":"$1,127,927"}},{"$f":"'Trial 1'!CM10","v":{"v":1127520.6648995727,"d":"$1,127,521"}},{"$f":"'Trial 1'!CO10","v":{"v":1127051.0650954125,"d":"$1,127,051"}},{"$f":"'Trial 1'!CP10","v":{"v":1126512.887943466,"d":"$1,126,513"}},{"$f":"'Trial 1'!CQ10","v":{"v":1126105.867135557,"d":"$1,126,106"}},{"$f":"'Trial 1'!CR10","v":{"v":1125500.2120541297,"d":"$1,125,500"}},{"$f":"'Trial 1'!CS10","v":{"v":1125019.9953784735,"d":"$1,125,020"}},{"$f":"'Trial 1'!CT10","v":{"v":1124433.154044466,"d":"$1,124,433"}},{"$f":"'Trial 1'!CU10","v":{"v":1123983.2810920668,"d":"$1,123,983"}},{"$f":"'Trial 1'!CV10","v":{"v":1123422.0322880817,"d":"$1,123,422"}},{"$f":"'Trial 1'!CW10","v":{"v":1122967.8506780418,"d":"$1,122,968"}},{"$f":"'Trial 1'!CX10","v":{"v":1122389.772400952,"d":"$1,122,390"}},{"$f":"'Trial 1'!CY10","v":{"v":1121999.0478774975,"d":"$1,121,999"}},{"$f":"'Trial 1'!CZ10","v":{"v":1121626.1360634307,"d":"$1,121,626"}},{"$f":"'Trial 1'!DB10","v":{"v":1121044.787070587,"d":"$1,121,045"}},{"$f":"'Trial 1'!DC10","v":{"v":1120578.5197429208,"d":"$1,120,579"}},{"$f":"'Trial 1'!DD10","v":{"v":1120155.8592630762,"d":"$1,120,156"}},{"$f":"'Trial 1'!DE10","v":{"v":1119687.1458320876,"d":"$1,119,687"}},{"$f":"'Trial 1'!DF10","v":{"v":1119276.0284692012,"d":"$1,119,276"}},{"$f":"'Trial 1'!DG10","v":{"v":1118859.743546374,"d":"$1,118,860"}},{"$f":"'Trial 1'!DH10","v":{"v":1118356.371426937,"d":"$1,118,356"}},{"$f":"'Trial 1'!DI10","v":{"v":1117920.347367263,"d":"$1,117,920"}},{"$f":"'Trial 1'!DJ10","v":{"v":1117380.3318182745,"d":"$1,117,380"}},{"$f":"'Trial 1'!DK10","v":{"v":1116946.4871359312,"d":"$1,116,946"}},{"$f":"'Trial 1'!DL10","v":{"v":1116583.116175992,"d":"$1,116,583"}},{"$f":"'Trial 1'!DM10","v":{"v":1116026.3239473815,"d":"$1,116,026"}},{"$f":"'Trial 1'!DO10","v":{"v":1115571.6158703014,"d":"$1,115,572"}},{"$f":"'Trial 1'!DP10","v":{"v":1115204.9428234515,"d":"$1,115,205"}},{"$f":"'Trial 1'!DQ10","v":{"v":1114699.0966257264,"d":"$1,114,699"}},{"$f":"'Trial 1'!DR10","v":{"v":1114259.5887873974,"d":"$1,114,260"}},{"$f":"'Trial 1'!DS10","v":{"v":1113802.753283255,"d":"$1,113,803"}},{"$f":"'Trial 1'!DT10","v":{"v":1113310.0510720557,"d":"$1,113,310"}},{"$f":"'Trial 1'!DU10","v":{"v":1112812.0325550456,"d":"$1,112,812"}},{"$f":"'Trial 1'!DV10","v":{"v":1112371.1016513458,"d":"$1,112,371"}},{"$f":"'Trial 1'!DW10","v":{"v":1111816.616486057,"d":"$1,111,817"}},{"$f":"'Trial 1'!DX10","v":{"v":1111287.85339494,"d":"$1,111,288"}},{"$f":"'Trial 1'!DY10","v":{"v":1110893.8445873444,"d":"$1,110,894"}},{"$f":"'Trial 1'!DZ10","v":{"v":1110475.3944414174,"d":"$1,110,475"}},{"$f":"'Trial 1'!EB10","v":{"v":1109950.5711281407,"d":"$1,109,951"}},{"$f":"'Trial 1'!EC10","v":{"v":1109508.516227764,"d":"$1,109,509"}},{"$f":"'Trial 1'!ED10","v":{"v":1109031.5840801396,"d":"$1,109,032"}},{"$f":"'Trial 1'!EE10","v":{"v":1108555.9766421493,"d":"$1,108,556"}},{"$f":"'Trial 1'!EF10","v":{"v":1107980.7389500416,"d":"$1,107,981"}},{"$f":"'Trial 1'!EG10","v":{"v":1107496.653382719,"d":"$1,107,497"}},{"$f":"'Trial 1'!EH10","v":{"v":1106996.4789496462,"d":"$1,106,996"}},{"$f":"'Trial 1'!EI10","v":{"v":1106510.6308003557,"d":"$1,106,511"}},{"$f":"'Trial 1'!EJ10","v":{"v":1105968.3852368798,"d":"$1,105,968"}},{"$f":"'Trial 1'!EK10","v":{"v":1105513.3081017695,"d":"$1,105,513"}},{"$f":"'Trial 1'!EL10","v":{"v":1105021.867369149,"d":"$1,105,022"}},{"$f":"'Trial 1'!EM10","v":{"v":1104470.4844470806,"d":"$1,104,470"}}]
[{"$f":"'Trial 2'!B10","v":{"v":1166666.6666666667,"d":"$1,166,667"}},{"$f":"'Trial 2'!C10","v":{"v":1166167.6880232817,"d":"$1,166,168"}},{"$f":"'Trial 2'!D10","v":{"v":1165602.0085867501,"d":"$1,165,602"}},{"$f":"'Trial 2'!E10","v":{"v":1165151.7342582091,"d":"$1,165,152"}},{"$f":"'Trial 2'!F10","v":{"v":1164823.4577771123,"d":"$1,164,823"}},{"$f":"'Trial 2'!G10","v":{"v":1164393.2626659067,"d":"$1,164,393"}},{"$f":"'Trial 2'!H10","v":{"v":1163881.462610312,"d":"$1,163,881"}},{"$f":"'Trial 2'!I10","v":{"v":1163412.4778731007,"d":"$1,163,412"}},{"$f":"'Trial 2'!J10","v":{"v":1162858.469171414,"d":"$1,162,858"}},{"$f":"'Trial 2'!K10","v":{"v":1162422.5048870624,"d":"$1,162,423"}},{"$f":"'Trial 2'!L10","v":{"v":1161966.7830037815,"d":"$1,161,967"}},{"$f":"'Trial 2'!M10","v":{"v":1161413.5585054965,"d":"$1,161,414"}},{"$f":"'Trial 2'!O10","v":{"v":1161015.80437724,"d":"$1,161,016"}},{"$f":"'Trial 2'!P10","v":{"v":1160501.7551027117,"d":"$1,160,502"}},{"$f":"'Trial 2'!Q10","v":{"v":1160100.0992053435,"d":"$1,160,100"}},{"$f":"'Trial 2'!R10","v":{"v":1159707.4850214676,"d":"$1,159,707"}},{"$f":"'Trial 2'!S10","v":{"v":1159220.589930658,"d":"$1,159,221"}},{"$f":"'Trial 2'!T10","v":{"v":1158735.6581802622,"d":"$1,158,736"}},{"$f":"'Trial 2'!U10","v":{"v":1158250.2091594457,"d":"$1,158,250"}},{"$f":"'Trial 2'!V10","v":{"v":1157691.2094404956,"d":"$1,157,691"}},{"$f":"'Trial 2'!W10","v":{"v":1157162.16890033,"d":"$1,157,162"}},{"$f":"'Trial 2'!X10","v":{"v":1156653.653362056,"d":"$1,156,654"}},{"$f":"'Trial 2'!Y10","v":{"v":1156129.250144561,"d":"$1,156,129"}},{"$f":"'Trial 2'!Z10","v":{"v":1155519.1636725448,"d":"$1,155,519"}},{"$f":"'Trial 2'!AB10","v":{"v":1155088.360705905,"d":"$1,155,088"}},{"$f":"'Trial 2'!AC10","v":{"v":1154617.294518152,"d":"$1,154,617"}},{"$f":"'Trial 2'!AD10","v":{"v":1154153.1759767388,"d":"$1,154,153"}},{"$f":"'Trial 2'!AE10","v":{"v":1153682.5559237825,"d":"$1,153,683"}},{"$f":"'Trial 2'!AF10","v":{"v":1153349.706386052,"d":"$1,153,350"}},{"$f":"'Trial 2'!AG10","v":{"v":1152879.4598108965,"d":"$1,152,879"}},{"$f":"'Trial 2'!AH10","v":{"v":1152375.3674760347,"d":"$1,152,375"}},{"$f":"'Trial 2'!AI10","v":{"v":1151943.493568739,"d":"$1,151,943"}},{"$f":"'Trial 2'!AJ10","v":{"v":1151364.0078838626,"d":"$1,151,364"}},{"$f":"'Trial 2'!AK10","v":{"v":1150901.066096736,"d":"$1,150,901"}},{"$f":"'Trial 2'!AL10","v":{"v":1150483.2061950278,"d":"$1,150,483"}},{"$f":"'Trial 2'!AM10","v":{"v":1150122.4265069484,"d":"$1,150,122"}},{"$f":"'Trial 2'!AO10","v":{"v":1149609.608068856,"d":"$1,149,610"}},{"$f":"'Trial 2'!AP10","v":{"v":1149123.3380889208,"d":"$1,149,123"}},{"$f":"'Trial 2'!AQ10","v":{"v":1148692.6963319425,"d":"$1,148,693"}},{"$f":"'Trial 2'!AR10","v":{"v":1148256.0872144736,"d":"$1,148,256"}},{"$f":"'Trial 2'!AS10","v":{"v":1147747.046582233,"d":"$1,147,747"}},{"$f":"'Trial 2'!AT10","v":{"v":1147311.6343156197,"d":"$1,147,312"}},{"$f":"'Trial 2'!AU10","v":{"v":1146874.2241094008,"d":"$1,146,874"}},{"$f":"'Trial 2'!AV10","v":{"v":1146416.66530194,"d":"$1,146,417"}},{"$f":"'Trial 2'!AW10","v":{"v":1145967.599840214,"d":"$1,145,968"}},{"$f":"'Trial 2'!AX10","v":{"v":1145366.967975778,"d":"$1,145,367"}},{"$f":"'Trial 2'!AY10","v":{"v":1144873.2232967212,"d":"$1,144,873"}},{"$f":"'Trial 2'!AZ10","v":{"v":1144489.1825005363,"d":"$1,144,489"}},{"$f":"'Trial 2'!BB10","v":{"v":1144002.2363978191,"d":"$1,144,002"}},{"$f":"'Trial 2'!BC10","v":{"v":1143476.6267702773,"d":"$1,143,477"}},{"$f":"'Trial 2'!BD10","v":{"v":1143012.7207463025,"d":"$1,143,013"}},{"$f":"'Trial 2'!BE10","v":{"v":1142630.6469942334,"d":"$1,142,631"}},{"$f":"'Trial 2'!BF10","v":{"v":1142147.7915900536,"d":"$1,142,148"}},{"$f":"'Trial 2'!BG10","v":{"v":1141742.7450480773,"d":"$1,141,743"}},{"$f":"'Trial 2'!BH10","v":{"v":1141194.280442845,"d":"$1,141,194"}},{"$f":"'Trial 2'!BI10","v":{"v":1140673.212337705,"d":"$1,140,673"}},{"$f":"'Trial 2'!BJ10","v":{"v":1140088.7490106288,"d":"$1,140,089"}},{"$f":"'Trial 2'!BK10","v":{"v":1139679.049493706,"d":"$1,139,679"}},{"$f":"'Trial 2'!BL10","v":{"v":1139171.7470900633,"d":"$1,139,172"}},{"$f":"'Trial 2'!BM10","v":{"v":1138717.8853646119,"d":"$1,138,718"}},{"$f":"'Trial 2'!BO10","v":{"v":1138123.6816155284,"d":"$1,138,124"}},{"$f":"'Trial 2'!BP10","v":{"v":1137512.472869459,"d":"$1,137,512"}},{"$f":"'Trial 2'!BQ10","v":{"v":1136955.3931830716,"d":"$1,136,955"}},{"$f":"'Trial 2'!BR10","v":{"v":1136525.0850896204,"d":"$1,136,525"}},{"$f":"'Trial 2'!BS10","v":{"v":1136133.1810866173,"d":"$1,136,133"}},{"$f":"'Trial 2'!BT10","v":{"v":1135549.2012740273,"d":"$1,135,549"}},{"$f":"'Trial 2'!BU10","v":{"v":1135181.7896004536,"d":"$1,135,182"}},{"$f":"'Trial 2'!BV10","v":{"v":1134653.999777764,"d":"$1,134,654"}},{"$f":"'Trial 2'!BW10","v":{"v":1134225.4802252005,"d":"$1,134,225"}},{"$f":"'Trial 2'!BX10","v":{"v":1133759.4001552293,"d":"$1,133,759"}},{"$f":"'Trial 2'!BY10","v":{"v":1133159.9916982274,"d":"$1,133,160"}},{"$f":"'Trial 2'!BZ10","v":{"v":1132817.6297321364,"d":"$1,132,818"}},{"$f":"'Trial 2'!CB10","v":{"v":1132363.0082991149,"d":"$1,132,363"}},{"$f":"'Trial 2'!CC10","v":{"v":1131940.1733149816,"d":"$1,131,940"}},{"$f":"'Trial 2'!CD10","v":{"v":1131413.466787723,"d":"$1,131,413"}},{"$f":"'Trial 2'!CE10","v":{"v":1130924.1804213533,"d":"$1,130,924"}},{"$f":"'Trial 2'!CF10","v":{"v":1130532.7978169369,"d":"$1,130,533"}},{"$f":"'Trial 2'!CG10","v":{"v":1130094.9682176523,"d":"$1,130,095"}},{"$f":"'Trial 2'!CH10","v":{"v":1129692.054101536,"d":"$1,129,692"}},{"$f":"'Trial 2'!CI10","v":{"v":1129222.321790152,"d":"$1,129,222"}},{"$f":"'Trial 2'!CJ10","v":{"v":1128839.8268709648,"d":"$1,128,840"}},{"$f":"'Trial 2'!CK10","v":{"v":1128277.688691827,"d":"$1,128,278"}},{"$f":"'Trial 2'!CL10","v":{"v":1127793.3199612775,"d":"$1,127,793"}},{"$f":"'Trial 2'!CM10","v":{"v":1127208.8773515425,"d":"$1,127,209"}},{"$f":"'Trial 2'!CO10","v":{"v":1126719.34508814,"d":"$1,126,719"}},{"$f":"'Trial 2'!CP10","v":{"v":1126194.510959385,"d":"$1,126,195"}},{"$f":"'Trial 2'!CQ10","v":{"v":1125721.978966777,"d":"$1,125,722"}},{"$f":"'Trial 2'!CR10","v":{"v":1125280.4038760276,"d":"$1,125,280"}},{"$f":"'Trial 2'!CS10","v":{"v":1124775.4696630505,"d":"$1,124,775"}},{"$f":"'Trial 2'!CT10","v":{"v":1124346.482057668,"d":"$1,124,346"}},{"$f":"'Trial 2'!CU10","v":{"v":1123795.1537021112,"d":"$1,123,795"}},{"$f":"'Trial 2'!CV10","v":{"v":1123407.3852731963,"d":"$1,123,407"}},{"$f":"'Trial 2'!CW10","v":{"v":1122916.5429197233,"d":"$1,122,917"}},{"$f":"'Trial 2'!CX10","v":{"v":1122528.1134144093,"d":"$1,122,528"}},{"$f":"'Trial 2'!CY10","v":{"v":1121918.2109988786,"d":"$1,121,918"}},{"$f":"'Trial 2'!CZ10","v":{"v":1121513.5404274003,"d":"$1,121,514"}},{"$f":"'Trial 2'!DB10","v":{"v":1121020.5589814933,"d":"$1,121,021"}},{"$f":"'Trial 2'!DC10","v":{"v":1120520.1719276884,"d":"$1,120,520"}},{"$f":"'Trial 2'!DD10","v":{"v":1120089.1197768326,"d":"$1,120,089"}},{"$f":"'Trial 2'!DE10","v":{"v":1119583.5155878873,"d":"$1,119,584"}},{"$f":"'Trial 2'!DF10","v":{"v":1119157.7545362492,"d":"$1,119,158"}},{"$f":"'Trial 2'!DG10","v":{"v":1118756.1278200876,"d":"$1,118,756"}},{"$f":"'Trial 2'!DH10","v":{"v":1118282.2258310593,"d":"$1,118,282"}},{"$f":"'Trial 2'!DI10","v":{"v":1117821.8996783625,"d":"$1,117,822"}},{"$f":"'Trial 2'!DJ10","v":{"v":1117371.6017070757,"d":"$1,117,372"}},{"$f":"'Trial 2'!DK10","v":{"v":1117006.100044907,"d":"$1,117,006"}},{"$f":"'Trial 2'!DL10","v":{"v":1116461.2910337627,"d":"$1,116,461"}},{"$f":"'Trial 2'!DM10","v":{"v":1115855.7036959385,"d":"$1,115,856"}},{"$f":"'Trial 2'!DO10","v":{"v":1115298.65022742,"d":"$1,115,299"}},{"$f":"'Trial 2'!DP10","v":{"v":1114897.9526703402,"d":"$1,114,898"}},{"$f":"'Trial 2'!DQ10","v":{"v":1114320.5575549696,"d":"$1,114,321"}},{"$f":"'Trial 2'!DR10","v":{"v":1113858.5983308996,"d":"$1,113,859"}},{"$f":"'Trial 2'!DS10","v":{"v":1113365.3484244612,"d":"$1,113,365"}},{"$f":"'Trial 2'!DT10","v":{"v":1112829.5236386005,"d":"$1,112,830"}},{"$f":"'Trial 2'!DU10","v":{"v":1112381.6625615277,"d":"$1,112,382"}},{"$f":"'Trial 2'!DV10","v":{"v":1111971.6986299444,"d":"$1,111,972"}},{"$f":"'Trial 2'!DW10","v":{"v":1111549.4664281835,"d":"$1,111,549"}},{"$f":"'Trial 2'!DX10","v":{"v":1110995.1236595702,"d":"$1,110,995"}},{"$f":"'Trial 2'!DY10","v":{"v":1110585.0497392027,"d":"$1,110,585"}},{"$f":"'Trial 2'!DZ10","v":{"v":1110110.5796638832,"d":"$1,110,111"}},{"$f":"'Trial 2'!EB10","v":{"v":1109553.828738465,"d":"$1,109,554"}},{"$f":"'Trial 2'!EC10","v":{"v":1109156.078345983,"d":"$1,109,156"}},{"$f":"'Trial 2'!ED10","v":{"v":1108725.0144679244,"d":"$1,108,725"}},{"$f":"'Trial 2'!EE10","v":{"v":1108132.1402458006,"d":"$1,108,132"}},{"$f":"'Trial 2'!EF10","v":{"v":1107654.4468435294,"d":"$1,107,654"}},{"$f":"'Trial 2'!EG10","v":{"v":1107296.3350817752,"d":"$1,107,296"}},{"$f":"'Trial 2'!EH10","v":{"v":1106749.398504927,"d":"$1,106,749"}},{"$f":"'Trial 2'!EI10","v":{"v":1106226.1057680799,"d":"$1,106,226"}},{"$f":"'Trial 2'!EJ10","v":{"v":1105678.3778223416,"d":"$1,105,678"}},{"$f":"'Trial 2'!EK10","v":{"v":1105241.2495190373,"d":"$1,105,241"}},{"$f":"'Trial 2'!EL10","v":{"v":1104734.8002461842,"d":"$1,104,735"}},{"$f":"'Trial 2'!EM10","v":{"v":1104313.716370796,"d":"$1,104,314"}}]
[{"$f":"'Trial 3'!B10","v":{"v":1166666.6666666667,"d":"$1,166,667"}},{"$f":"'Trial 3'!C10","v":{"v":1166069.3922510562,"d":"$1,166,069"}},{"$f":"'Trial 3'!D10","v":{"v":1165619.1122485742,"d":"$1,165,619"}},{"$f":"'Trial 3'!E10","v":{"v":1165077.2466276388,"d":"$1,165,077"}},{"$f":"'Trial 3'!F10","v":{"v":1164709.574207395,"d":"$1,164,710"}},{"$f":"'Trial 3'!G10","v":{"v":1164271.9493608912,"d":"$1,164,272"}},{"$f":"'Trial 3'!H10","v":{"v":1163896.2681747272,"d":"$1,163,896"}},{"$f":"'Trial 3'!I10","v":{"v":1163395.2372736752,"d":"$1,163,395"}},{"$f":"'Trial 3'!J10","v":{"v":1162988.449881124,"d":"$1,162,988"}},{"$f":"'Trial 3'!K10","v":{"v":1162433.5845977482,"d":"$1,162,434"}},{"$f":"'Trial 3'!L10","v":{"v":1161983.314503606,"d":"$1,161,983"}},{"$f":"'Trial 3'!M10","v":{"v":1161583.6630356514,"d":"$1,161,584"}},{"$f":"'Trial 3'!O10","v":{"v":1161054.4040072663,"d":"$1,161,054"}},{"$f":"'Trial 3'!P10","v":{"v":1160605.3077518116,"d":"$1,160,605"}},{"$f":"'Trial 3'!Q10","v":{"v":1160101.7018045902,"d":"$1,160,102"}},{"$f":"'Trial 3'!R10","v":{"v":1159725.9180494482,"d":"$1,159,726"}},{"$f":"'Trial 3'!S10","v":{"v":1159310.4782880612,"d":"$1,159,310"}},{"$f":"'Trial 3'!T10","v":{"v":1158839.3759235705,"d":"$1,158,839"}},{"$f":"'Trial 3'!U10","v":{"v":1158346.0279884932,"d":"$1,158,346"}},{"$f":"'Trial 3'!V10","v":{"v":1157729.4816749296,"d":"$1,157,729"}},{"$f":"'Trial 3'!W10","v":{"v":1157194.950322715,"d":"$1,157,195"}},{"$f":"'Trial 3'!X10","v":{"v":1156752.8166516388,"d":"$1,156,753"}},{"$f":"'Trial 3'!Y10","v":{"v":1156291.1738955986,"d":"$1,156,291"}},{"$f":"'Trial 3'!Z10","v":{"v":1155785.6763706116,"d":"$1,155,786"}},{"$f":"'Trial 3'!AB10","v":{"v":1155180.4653436656,"d":"$1,155,180"}},{"$f":"'Trial 3'!AC10","v":{"v":1154801.855843386,"d":"$1,154,802"}},{"$f":"'Trial 3'!AD10","v":{"v":1154281.5540798798,"d":"$1,154,282"}},{"$f":"'Trial 3'!AE10","v":{"v":1153729.117506838,"d":"$1,153,729"}},{"$f":"'Trial 3'!AF10","v":{"v":1153319.3835597734,"d":"$1,153,319"}},{"$f":"'Trial 3'!AG10","v":{"v":1152712.0907012767,"d":"$1,152,712"}},{"$f":"'Trial 3'!AH10","v":{"v":1152295.3006899655,"d":"$1,152,295"}},{"$f":"'Trial 3'!AI10","v":{"v":1151837.4639228643,"d":"$1,151,837"}},{"$f":"'Trial 3'!AJ10","v":{"v":1151306.2010264173,"d":"$1,151,306"}},{"$f":"'Trial 3'!AK10","v":{"v":1150877.5693793246,"d":"$1,150,878"}},{"$f":"'Trial 3'!AL10","v":{"v":1150418.4712137529,"d":"$1,150,418"}},{"$f":"'Trial 3'!AM10","v":{"v":1149915.057711386,"d":"$1,149,915"}},{"$f":"'Trial 3'!AO10","v":{"v":1149404.7981761987,"d":"$1,149,405"}},{"$f":"'Trial 3'!AP10","v":{"v":1148999.3980423503,"d":"$1,148,999"}},{"$f":"'Trial 3'!AQ10","v":{"v":1148609.9297944119,"d":"$1,148,610"}},{"$f":"'Trial 3'!AR10","v":{"v":1148028.2041785629,"d":"$1,148,028"}},{"$f":"'Trial 3'!AS10","v":{"v":1147533.625377979,"d":"$1,147,534"}},{"$f":"'Trial 3'!AT10","v":{"v":1147121.0071571267,"d":"$1,147,121"}},{"$f":"'Trial 3'!AU10","v":{"v":1146610.4980385036,"d":"$1,146,610"}},{"$f":"'Trial 3'!AV10","v":{"v":1146066.8616229978,"d":"$1,146,067"}},{"$f":"'Trial 3'!AW10","v":{"v":1145621.0116145273,"d":"$1,145,621"}},{"$f":"'Trial 3'!AX10","v":{"v":1145073.0973454423,"d":"$1,145,073"}},{"$f":"'Trial 3'!AY10","v":{"v":1144683.9763165643,"d":"$1,144,684"}},{"$f":"'Trial 3'!AZ10","v":{"v":1144136.5811457613,"d":"$1,144,137"}},{"$f":"'Trial 3'!BB10","v":{"v":1143551.9659602991,"d":"$1,143,552"}},{"$f":"'Trial 3'!BC10","v":{"v":1143051.9404477708,"d":"$1,143,052"}},{"$f":"'Trial 3'!BD10","v":{"v":1142466.13916623,"d":"$1,142,466"}},{"$f":"'Trial 3'!BE10","v":{"v":1142055.0121384468,"d":"$1,142,055"}},{"$f":"'Trial 3'!BF10","v":{"v":1141447.0053284795,"d":"$1,141,447"}},{"$f":"'Trial 3'!BG10","v":{"v":1141000.555576119,"d":"$1,141,001"}},{"$f":"'Trial 3'!BH10","v":{"v":1140391.198263478,"d":"$1,140,391"}},{"$f":"'Trial 3'!BI10","v":{"v":1139846.0140067544,"d":"$1,139,846"}},{"$f":"'Trial 3'!BJ10","v":{"v":1139389.551722661,"d":"$1,139,390"}},{"$f":"'Trial 3'!BK10","v":{"v":1138918.0368607822,"d":"$1,138,918"}},{"$f":"'Trial 3'!BL10","v":{"v":1138415.8903202154,"d":"$1,138,416"}},{"$f":"'Trial 3'!BM10","v":{"v":1137997.5051752971,"d":"$1,137,998"}},{"$f":"'Trial 3'!BO10","v":{"v":1137516.1768390203,"d":"$1,137,516"}},{"$f":"'Trial 3'!BP10","v":{"v":1137037.746365048,"d":"$1,137,038"}},{"$f":"'Trial 3'!BQ10","v":{"v":1136595.27137695,"d":"$1,136,595"}},{"$f":"'Trial 3'!BR10","v":{"v":1136050.4602849355,"d":"$1,136,050"}},{"$f":"'Trial 3'!BS10","v":{"v":1135584.553249838,"d":"$1,135,585"}},{"$f":"'Trial 3'!BT10","v":{"v":1135166.596426186,"d":"$1,135,167"}},{"$f":"'Trial 3'!BU10","v":{"v":1134669.1683242316,"d":"$1,134,669"}},{"$f":"'Trial 3'!BV10","v":{"v":1134160.2759812411,"d":"$1,134,160"}},{"$f":"'Trial 3'!BW10","v":{"v":1133623.3035534662,"d":"$1,133,623"}},{"$f":"'Trial 3'!BX10","v":{"v":1133184.0253028786,"d":"$1,133,184"}},{"$f":"'Trial 3'!BY10","v":{"v":1132624.0583333562,"d":"$1,132,624"}},{"$f":"'Trial 3'!BZ10","v":{"v":1132244.8789197924,"d":"$1,132,245"}},{"$f":"'Trial 3'!CB10","v":{"v":1131744.8800197109,"d":"$1,131,745"}},{"$f":"'Trial 3'!CC10","v":{"v":1131310.4916758118,"d":"$1,131,310"}},{"$f":"'Trial 3'!CD10","v":{"v":1130820.0571839276,"d":"$1,130,820"}},{"$f":"'Trial 3'!CE10","v":{"v":1130353.8663140489,"d":"$1,130,354"}},{"$f":"'Trial 3'!CF10","v":{"v":1129890.9421058714,"d":"$1,129,891"}},{"$f":"'Trial 3'!CG10","v":{"v":1129420.0755749568,"d":"$1,129,420"}},{"$f":"'Trial 3'!CH10","v":{"v":1129006.4442577017,"d":"$1,129,006"}},{"$f":"'Trial 3'!CI10","v":{"v":1128602.3973669582,"d":"$1,128,602"}},{"$f":"'Trial 3'!CJ10","v":{"v":1128225.4022656605,"d":"$1,128,225"}},{"$f":"'Trial 3'!CK10","v":{"v":1127739.5024456892,"d":"$1,127,740"}},{"$f":"'Trial 3'!CL10","v":{"v":1127312.6888941457,"d":"$1,127,313"}},{"$f":"'Trial 3'!CM10","v":{"v":1126915.7299644384,"d":"$1,126,916"}},{"$f":"'Trial 3'!CO10","v":{"v":1126552.1910151935,"d":"$1,126,552"}},{"$f":"'Trial 3'!CP10","v":{"v":1126000.335364418,"d":"$1,126,000"}},{"$f":"'Trial 3'!CQ10","v":{"v":1125564.4594071205,"d":"$1,125,564"}},{"$f":"'Trial 3'!CR10","v":{"v":1125062.5838330144,"d":"$1,125,063"}},{"$f":"'Trial 3'!CS10","v":{"v":1124613.8772218318,"d":"$1,124,614"}},{"$f":"'Trial 3'!CT10","v":{"v":1124131.9821941007,"d":"$1,124,132"}},{"$f":"'Trial 3'!CU10","v":{"v":1123676.4141326298,"d":"$1,123,676"}},{"$f":"'Trial 3'!CV10","v":{"v":1123249.2334578128,"d":"$1,123,249"}},{"$f":"'Trial 3'!CW10","v":{"v":1122785.407307842,"d":"$1,122,785"}},{"$f":"'Trial 3'!CX10","v":{"v":1122247.1323379872,"d":"$1,122,247"}},{"$f":"'Trial 3'!CY10","v":{"v":1121872.2641583292,"d":"$1,121,872"}},{"$f":"'Trial 3'!CZ10","v":{"v":1121350.2046050623,"d":"$1,121,350"}},{"$f":"'Trial 3'!DB10","v":{"v":1120944.5883837536,"d":"$1,120,945"}},{"$f":"'Trial 3'!DC10","v":{"v":1120395.9093882055,"d":"$1,120,396"}},{"$f":"'Trial 3'!DD10","v":{"v":1119795.5024781693,"d":"$1,119,796"}},{"$f":"'Trial 3'!DE10","v":{"v":1119313.9733532974,"d":"$1,119,314"}},{"$f":"'Trial 3'!DF10","v":{"v":1118870.9865716114,"d":"$1,118,871"}},{"$f":"'Trial 3'!DG10","v":{"v":1118412.0469205098,"d":"$1,118,412"}},{"$f":"'Trial 3'!DH10","v":{"v":1117980.787973268,"d":"$1,117,981"}},{"$f":"'Trial 3'!DI10","v":{"v":1117537.5599295862,"d":"$1,117,538"}},{"$f":"'Trial 3'!DJ10","v":{"v":1117070.9841926415,"d":"$1,117,071"}},{"$f":"'Trial 3'!DK10","v":{"v":1116576.0508418265,"d":"$1,116,576"}},{"$f":"'Trial 3'!DL10","v":{"v":1116131.9934250384,"d":"$1,116,132"}},{"$f":"'Trial 3'!DM10","v":{"v":1115709.9732789686,"d":"$1,115,710"}},{"$f":"'Trial 3'!DO10","v":{"v":1115263.3765103999,"d":"$1,115,263"}},{"$f":"'Trial 3'!DP10","v":{"v":1114831.761057033,"d":"$1,114,832"}},{"$f":"'Trial 3'!DQ10","v":{"v":1114408.077224509,"d":"$1,114,408"}},{"$f":"'Trial 3'!DR10","v":{"v":1114076.2163497792,"d":"$1,114,076"}},{"$f":"'Trial 3'!DS10","v":{"v":1113489.174269487,"d":"$1,113,489"}},{"$f":"'Trial 3'!DT10","v":{"v":1112983.7644103589,"d":"$1,112,984"}},{"$f":"'Trial 3'!DU10","v":{"v":1112574.0947180563,"d":"$1,112,574"}},{"$f":"'Trial 3'!DV10","v":{"v":1112096.0143914204,"d":"$1,112,096"}},{"$f":"'Trial 3'!DW10","v":{"v":1111688.142678576,"d":"$1,111,688"}},{"$f":"'Trial 3'!DX10","v":{"v":1111309.9191545,"d":"$1,111,310"}},{"$f":"'Trial 3'!DY10","v":{"v":1110829.6080907367,"d":"$1,110,830"}},{"$f":"'Trial 3'!DZ10","v":{"v":1110326.0558853128,"d":"$1,110,326"}},{"$f":"'Trial 3'!EB10","v":{"v":1109783.4011201544,"d":"$1,109,783"}},{"$f":"'Trial 3'!EC10","v":{"v":1109315.9817322437,"d":"$1,109,316"}},{"$f":"'Trial 3'!ED10","v":{"v":1108820.7557500775,"d":"$1,108,821"}},{"$f":"'Trial 3'!EE10","v":{"v":1108379.0110075967,"d":"$1,108,379"}},{"$f":"'Trial 3'!EF10","v":{"v":1107937.4833625949,"d":"$1,107,937"}},{"$f":"'Trial 3'!EG10","v":{"v":1107465.3837651936,"d":"$1,107,465"}},{"$f":"'Trial 3'!EH10","v":{"v":1106994.2884684352,"d":"$1,106,994"}},{"$f":"'Trial 3'!EI10","v":{"v":1106591.7036319159,"d":"$1,106,592"}},{"$f":"'Trial 3'!EJ10","v":{"v":1106034.523595298,"d":"$1,106,035"}},{"$f":"'Trial 3'!EK10","v":{"v":1105450.3257927785,"d":"$1,105,450"}},{"$f":"'Trial 3'!EL10","v":{"v":1105080.1149789277,"d":"$1,105,080"}},{"$f":"'Trial 3'!EM10","v":{"v":1104664.1714658376,"d":"$1,104,664"}}]
[{"$f":"'Trial 4'!B10","v":{"v":1166666.6666666667,"d":"$1,166,667"}},{"$f":"'Trial 4'!C10","v":{"v":1166163.1170221828,"d":"$1,166,163"}},{"$f":"'Trial 4'!D10","v":{"v":1165642.3405416366,"d":"$1,165,642"}},{"$f":"'Trial 4'!E10","v":{"v":1165118.821974392,"d":"$1,165,119"}},{"$f":"'Trial 4'!F10","v":{"v":1164690.7006187558,"d":"$1,164,691"}},{"$f":"'Trial 4'!G10","v":{"v":1164307.1970140801,"d":"$1,164,307"}},{"$f":"'Trial 4'!H10","v":{"v":1163963.8462222153,"d":"$1,163,964"}},{"$f":"'Trial 4'!I10","v":{"v":1163390.522830231,"d":"$1,163,391"}},{"$f":"'Trial 4'!J10","v":{"v":1162822.0658129954,"d":"$1,162,822"}},{"$f":"'Trial 4'!K10","v":{"v":1162330.7792142562,"d":"$1,162,331"}},{"$f":"'Trial 4'!L10","v":{"v":1161840.355784898,"d":"$1,161,840"}},{"$f":"'Trial 4'!M10","v":{"v":1161370.5817809638,"d":"$1,161,371"}},{"$f":"'Trial 4'!O10","v":{"v":1160788.748680827,"d":"$1,160,789"}},{"$f":"'Trial 4'!P10","v":{"v":1160319.5348784092,"d":"$1,160,320"}},{"$f":"'Trial 4'!Q10","v":{"v":1159879.0830114011,"d":"$1,159,879"}},{"$f":"'Trial 4'!R10","v":{"v":1159506.8238236178,"d":"$1,159,507"}},{"$f":"'Trial 4'!S10","v":{"v":1159038.07680681,"d":"$1,159,038"}},{"$f":"'Trial 4'!T10","v":{"v":1158435.2368980595,"d":"$1,158,435"}},{"$f":"'Trial 4'!U10","v":{"v":1157925.7146023626,"d":"$1,157,926"}},{"$f":"'Trial 4'!V10","v":{"v":1157460.7217189013,"d":"$1,157,461"}},{"$f":"'Trial 4'!W10","v":{"v":1156979.2160872663,"d":"$1,156,979"}},{"$f":"'Trial 4'!X10","v":{"v":1156648.0311402872,"d":"$1,156,648"}},{"$f":"'Trial 4'!Y10","v":{"v":1156161.448542245,"d":"$1,156,161"}},{"$f":"'Trial 4'!Z10","v":{"v":1155569.7682966366,"d":"$1,155,570"}},{"$f":"'Trial 4'!AB10","v":{"v":1155027.5461369697,"d":"$1,155,028"}},{"$f":"'Trial 4'!AC10","v":{"v":1154503.0597231067,"d":"$1,154,503"}},{"$f":"'Trial 4'!AD10","v":{"v":1154049.8745394584,"d":"$1,154,050"}},{"$f":"'Trial 4'!AE10","v":{"v":1153545.339216324,"d":"$1,153,545"}},{"$f":"'Trial 4'!AF10","v":{"v":1152972.1999390752,"d":"$1,152,972"}},{"$f":"'Trial 4'!AG10","v":{"v":1152454.164936491,"d":"$1,152,454"}},{"$f":"'Trial 4'!AH10","v":{"v":1152083.7155140871,"d":"$1,152,084"}},{"$f":"'Trial 4'!AI10","v":{"v":1151608.489071025,"d":"$1,151,608"}},{"$f":"'Trial 4'!AJ10","v":{"v":1151132.1476893185,"d":"$1,151,132"}},{"$f":"'Trial 4'!AK10","v":{"v":1150613.9271394396,"d":"$1,150,614"}},{"$f":"'Trial 4'!AL10","v":{"v":1150227.3214987477,"d":"$1,150,227"}},{"$f":"'Trial 4'!AM10","v":{"v":1149724.4513216687,"d":"$1,149,724"}},{"$f":"'Trial 4'!AO10","v":{"v":1149114.4621392589,"d":"$1,149,114"}},{"$f":"'Trial 4'!AP10","v":{"v":1148639.2490932685,"d":"$1,148,639"}},{"$f":"'Trial 4'!AQ10","v":{"v":1148157.2219879641,"d":"$1,148,157"}},{"$f":"'Trial 4'!AR10","v":{"v":1147659.3905208898,"d":"$1,147,659"}},{"$f":"'Trial 4'!AS10","v":{"v":1147103.8541477728,"d":"$1,147,104"}},{"$f":"'Trial 4'!AT10","v":{"v":1146655.1194483875,"d":"$1,146,655"}},{"$f":"'Trial 4'!AU10","v":{"v":1146251.2080523726,"d":"$1,146,251"}},{"$f":"'Trial 4'!AV10","v":{"v":1145805.7124812736,"d":"$1,145,806"}},{"$f":"'Trial 4'!AW10","v":{"v":1145324.068234077,"d":"$1,145,324"}},{"$f":"'Trial 4'!AX10","v":{"v":1144891.756526557,"d":"$1,144,892"}},{"$f":"'Trial 4'!AY10","v":{"v":1144342.3643007022,"d":"$1,144,342"}},{"$f":"'Trial 4'!AZ10","v":{"v":1143804.0794533624,"d":"$1,143,804"}},{"$f":"'Trial 4'!BB10","v":{"v":1143211.2986284862,"d":"$1,143,211"}},{"$f":"'Trial 4'!BC10","v":{"v":1142867.9571651989,"d":"$1,142,868"}},{"$f":"'Trial 4'!BD10","v":{"v":1142519.8397055813,"d":"$1,142,520"}},{"$f":"'Trial 4'!BE10","v":{"v":1141969.117398944,"d":"$1,141,969"}},{"$f":"'Trial 4'!BF10","v":{"v":1141492.788852262,"d":"$1,141,493"}},{"$f":"'Trial 4'!BG10","v":{"v":1140947.3731251215,"d":"$1,140,947"}},{"$f":"'Trial 4'!BH10","v":{"v":1140520.5694091897,"d":"$1,140,521"}},{"$f":"'Trial 4'!BI10","v":{"v":1139980.5402101988,"d":"$1,139,981"}},{"$f":"'Trial 4'!BJ10","v":{"v":1139509.188598028,"d":"$1,139,509"}},{"$f":"'Trial 4'!BK10","v":{"v":1138899.1045771295,"d":"$1,138,899"}},{"$f":"'Trial 4'!BL10","v":{"v":1138493.3518957258,"d":"$1,138,493"}},{"$f":"'Trial 4'!BM10","v":{"v":1138052.0538894648,"d":"$1,138,052"}},{"$f":"'Trial 4'!BO10","v":{"v":1137639.3279860711,"d":"$1,137,639"}},{"$f":"'Trial 4'!BP10","v":{"v":1137217.386368368,"d":"$1,137,217"}},{"$f":"'Trial 4'!BQ10","v":{"v":1136799.8468719402,"d":"$1,136,800"}},{"$f":"'Trial 4'!BR10","v":{"v":1136272.707780629,"d":"$1,136,273"}},{"$f":"'Trial 4'!BS10","v":{"v":1135813.740522898,"d":"$1,135,814"}},{"$f":"'Trial 4'!BT10","v":{"v":1135253.2188927718,"d":"$1,135,253"}},{"$f":"'Trial 4'!BU10","v":{"v":1134822.3722201856,"d":"$1,134,822"}},{"$f":"'Trial 4'!BV10","v":{"v":1134315.4352324496,"d":"$1,134,315"}},{"$f":"'Trial 4'!BW10","v":{"v":1133780.3360621845,"d":"$1,133,780"}},{"$f":"'Trial 4'!BX10","v":{"v":1133219.6503409445,"d":"$1,133,220"}},{"$f":"'Trial 4'!BY10","v":{"v":1132805.3662637677,"d":"$1,132,805"}},{"$f":"'Trial 4'!BZ10","v":{"v":1132316.008371605,"d":"$1,132,316"}},{"$f":"'Trial 4'!CB10","v":{"v":1131880.4810346388,"d":"$1,131,880"}},{"$f":"'Trial 4'!CC10","v":{"v":1131338.1922282074,"d":"$1,131,338"}},{"$f":"'Trial 4'!CD10","v":{"v":1130898.3974176734,"d":"$1,130,898"}},{"$f":"'Trial 4'!CE10","v":{"v":1130381.918509907,"d":"$1,130,382"}},{"$f":"'Trial 4'!CF10","v":{"v":1129881.3023992965,"d":"$1,129,881"}},{"$f":"'Trial 4'!CG10","v":{"v":1129417.8378563784,"d":"$1,129,418"}},{"$f":"'Trial 4'!CH10","v":{"v":1128911.5490936216,"d":"$1,128,912"}},{"$f":"'Trial 4'!CI10","v":{"v":1128579.9487103594,"d":"$1,128,580"}},{"$f":"'Trial 4'!CJ10","v":{"v":1128180.6209316123,"d":"$1,128,181"}},{"$f":"'Trial 4'!CK10","v":{"v":1127696.3608218054,"d":"$1,127,696"}},{"$f":"'Trial 4'!CL10","v":{"v":1127302.4098326387,"d":"$1,127,302"}},{"$f":"'Trial 4'!CM10","v":{"v":1126845.8789804664,"d":"$1,126,846"}},{"$f":"'Trial 4'!CO10","v":{"v":1126320.2778394644,"d":"$1,126,320"}},{"$f":"'Trial 4'!CP10","v":{"v":1125918.3165006938,"d":"$1,125,918"}},{"$f":"'Trial 4'!CQ10","v":{"v":1125494.889011696,"d":"$1,125,495"}},{"$f":"'Trial 4'!CR10","v":{"v":1125092.8709031672,"d":"$1,125,093"}},{"$f":"'Trial 4'!CS10","v":{"v":1124626.4434285183,"d":"$1,124,626"}},{"$f":"'Trial 4'!CT10","v":{"v":1124094.6217619658,"d":"$1,124,095"}},{"$f":"'Trial 4'!CU10","v":{"v":1123507.9852716592,"d":"$1,123,508"}},{"$f":"'Trial 4'!CV10","v":{"v":1123159.8029571122,"d":"$1,123,160"}},{"$f":"'Trial 4'!CW10","v":{"v":1122725.6070201623,"d":"$1,122,726"}},{"$f":"'Trial 4'!CX10","v":{"v":1122284.3151130308,"d":"$1,122,284"}},{"$f":"'Trial 4'!CY10","v":{"v":1121698.2892740332,"d":"$1,121,698"}},{"$f":"'Trial 4'!CZ10","v":{"v":1121275.6918416247,"d":"$1,121,276"}},{"$f":"'Trial 4'!DB10","v":{"v":1120902.5356817348,"d":"$1,120,903"}},{"$f":"'Trial 4'!DC10","v":{"v":1120380.1999930784,"d":"$1,120,380"}},{"$f":"'Trial 4'!DD10","v":{"v":1119818.944239802,"d":"$1,119,819"}},{"$f":"'Trial 4'!DE10","v":{"v":1119397.0305733744,"d":"$1,119,397"}},{"$f":"'Trial 4'!DF10","v":{"v":1118975.687721561,"d":"$1,118,976"}},{"$f":"'Trial 4'!DG10","v":{"v":1118516.999909422,"d":"$1,118,517"}},{"$f":"'Trial 4'!DH10","v":{"v":1118078.048982828,"d":"$1,118,078"}},{"$f":"'Trial 4'!DI10","v":{"v":1117518.3799703093,"d":"$1,117,518"}},{"$f":"'Trial 4'!DJ10","v":{"v":1117107.3257458515,"d":"$1,117,107"}},{"$f":"'Trial 4'!DK10","v":{"v":1116594.0916394715,"d":"$1,116,594"}},{"$f":"'Trial 4'!DL10","v":{"v":1116170.3888914227,"d":"$1,116,170"}},{"$f":"'Trial 4'!DM10","v":{"v":1115722.8153904062,"d":"$1,115,723"}},{"$f":"'Trial 4'!DO10","v":{"v":1115215.97101755,"d":"$1,115,216"}},{"$f":"'Trial 4'!DP10","v":{"v":1114850.9928155118,"d":"$1,114,851"}},{"$f":"'Trial 4'!DQ10","v":{"v":1114517.1972110858,"d":"$1,114,517"}},{"$f":"'Trial 4'!DR10","v":{"v":1113976.1972735669,"d":"$1,113,976"}},{"$f":"'Trial 4'!DS10","v":{"v":1113619.8084009143,"d":"$1,113,620"}},{"$f":"'Trial 4'!DT10","v":{"v":1113277.347349138,"d":"$1,113,277"}},{"$f":"'Trial 4'!DU10","v":{"v":1112872.785416799,"d":"$1,112,873"}},{"$f":"'Trial 4'!DV10","v":{"v":1112363.8219504913,"d":"$1,112,364"}},{"$f":"'Trial 4'!DW10","v":{"v":1111877.639333168,"d":"$1,111,878"}},{"$f":"'Trial 4'!DX10","v":{"v":1111269.696159841,"d":"$1,111,270"}},{"$f":"'Trial 4'!DY10","v":{"v":1110897.2918767636,"d":"$1,110,897"}},{"$f":"'Trial 4'!DZ10","v":{"v":1110507.1036670122,"d":"$1,110,507"}},{"$f":"'Trial 4'!EB10","v":{"v":1110149.7022590707,"d":"$1,110,150"}},{"$f":"'Trial 4'!EC10","v":{"v":1109670.6761081936,"d":"$1,109,671"}},{"$f":"'Trial 4'!ED10","v":{"v":1109056.3214764518,"d":"$1,109,056"}},{"$f":"'Trial 4'!EE10","v":{"v":1108559.9952557008,"d":"$1,108,560"}},{"$f":"'Trial 4'!EF10","v":{"v":1108178.98291642,"d":"$1,108,179"}},{"$f":"'Trial 4'!EG10","v":{"v":1107824.5386726058,"d":"$1,107,825"}},{"$f":"'Trial 4'!EH10","v":{"v":1107322.2160739093,"d":"$1,107,322"}},{"$f":"'Trial 4'!EI10","v":{"v":1106905.3619474466,"d":"$1,106,905"}},{"$f":"'Trial 4'!EJ10","v":{"v":1106319.1869029761,"d":"$1,106,319"}},{"$f":"'Trial 4'!EK10","v":{"v":1105732.3686773207,"d":"$1,105,732"}},{"$f":"'Trial 4'!EL10","v":{"v":1105337.2286718136,"d":"$1,105,337"}},{"$f":"'Trial 4'!EM10","v":{"v":1104783.8746705647,"d":"$1,104,784"}}]
[{"$f":"'Trial 5'!B10","v":{"v":1166666.6666666667,"d":"$1,166,667"}},{"$f":"'Trial 5'!C10","v":{"v":1166104.3328287126,"d":"$1,166,104"}},{"$f":"'Trial 5'!D10","v":{"v":1165565.6854129697,"d":"$1,165,566"}},{"$f":"'Trial 5'!E10","v":{"v":1165182.3049162307,"d":"$1,165,182"}},{"$f":"'Trial 5'!F10","v":{"v":1164591.0366140825,"d":"$1,164,591"}},{"$f":"'Trial 5'!G10","v":{"v":1164072.911500574,"d":"$1,164,073"}},{"$f":"'Trial 5'!H10","v":{"v":1163544.3980179152,"d":"$1,163,544"}},{"$f":"'Trial 5'!I10","v":{"v":1163067.5142541663,"d":"$1,163,068"}},{"$f":"'Trial 5'!J10","v":{"v":1162640.6271508564,"d":"$1,162,641"}},{"$f":"'Trial 5'!K10","v":{"v":1162307.5808892038,"d":"$1,162,308"}},{"$f":"'Trial 5'!L10","v":{"v":1161770.6422275933,"d":"$1,161,771"}},{"$f":"'Trial 5'!M10","v":{"v":1161248.0341662331,"d":"$1,161,248"}},{"$f":"'Trial 5'!O10","v":{"v":1160772.762775914,"d":"$1,160,773"}},{"$f":"'Trial 5'!P10","v":{"v":1160276.010895121,"d":"$1,160,276"}},{"$f":"'Trial 5'!Q10","v":{"v":1159811.931718906,"d":"$1,159,812"}},{"$f":"'Trial 5'!R10","v":{"v":1159319.5607112474,"d":"$1,159,320"}},{"$f":"'Trial 5'!S10","v":{"v":1158862.6361694601,"d":"$1,158,863"}},{"$f":"'Trial 5'!T10","v":{"v":1158293.376276381,"d":"$1,158,293"}},{"$f":"'Trial 5'!U10","v":{"v":1157958.6836025987,"d":"$1,157,959"}},{"$f":"'Trial 5'!V10","v":{"v":1157517.8903943442,"d":"$1,157,518"}},{"$f":"'Trial 5'!W10","v":{"v":1157035.162083298,"d":"$1,157,035"}},{"$f":"'Trial 5'!X10","v":{"v":1156582.1487497874,"d":"$1,156,582"}},{"$f":"'Trial 5'!Y10","v":{"v":1156028.8103788146,"d":"$1,156,029"}},{"$f":"'Trial 5'!Z10","v":{"v":1155685.619698195,"d":"$1,155,686"}},{"$f":"'Trial 5'!AB10","v":{"v":1155179.5344322056,"d":"$1,155,180"}},{"$f":"'Trial 5'!AC10","v":{"v":1154744.4247878192,"d":"$1,154,744"}},{"$f":"'Trial 5'!AD10","v":{"v":1154269.802823431,"d":"$1,154,270"}},{"$f":"'Trial 5'!AE10","v":{"v":1153915.2496321874,"d":"$1,153,915"}},{"$f":"'Trial 5'!AF10","v":{"v":1153307.4217290557,"d":"$1,153,307"}},{"$f":"'Trial 5'!AG10","v":{"v":1152722.968837874,"d":"$1,152,723"}},{"$f":"'Trial 5'!AH10","v":{"v":1152211.3624293879,"d":"$1,152,211"}},{"$f":"'Trial 5'!AI10","v":{"v":1151770.08355905,"d":"$1,151,770"}},{"$f":"'Trial 5'!AJ10","v":{"v":1151217.556579743,"d":"$1,151,218"}},{"$f":"'Trial 5'!AK10","v":{"v":1150761.8922802932,"d":"$1,150,762"}},{"$f":"'Trial 5'!AL10","v":{"v":1150206.4038962494,"d":"$1,150,206"}},{"$f":"'Trial 5'!AM10","v":{"v":1149712.0294079247,"d":"$1,149,712"}},{"$f":"'Trial 5'!AO10","v":{"v":1149165.4315784327,"d":"$1,149,165"}},{"$f":"'Trial 5'!AP10","v":{"v":1148692.729995729,"d":"$1,148,693"}},{"$f":"'Trial 5'!AQ10","v":{"v":1148227.841425832,"d":"$1,148,228"}},{"$f":"'Trial 5'!AR10","v":{"v":1147725.4826000256,"d":"$1,147,725"}},{"$f":"'Trial 5'!AS10","v":{"v":1147288.101081649,"d":"$1,147,288"}},{"$f":"'Trial 5'!AT10","v":{"v":1146863.9233474366,"d":"$1,146,864"}},{"$f":"'Trial 5'!AU10","v":{"v":1146351.1302863345,"d":"$1,146,351"}},{"$f":"'Trial 5'!AV10","v":{"v":1145906.9688137323,"d":"$1,145,907"}},{"$f":"'Trial 5'!AW10","v":{"v":1145439.9036311402,"d":"$1,145,440"}},{"$f":"'Trial 5'!AX10","v":{"v":1144947.052018494,"d":"$1,144,947"}},{"$f":"'Trial 5'!AY10","v":{"v":1144455.3625742889,"d":"$1,144,455"}},{"$f":"'Trial 5'!AZ10","v":{"v":1144001.6805300913,"d":"$1,144,002"}},{"$f":"'Trial 5'!BB10","v":{"v":1143511.4872249942,"d":"$1,143,511"}},{"$f":"'Trial 5'!BC10","v":{"v":1142987.4596065157,"d":"$1,142,987"}},{"$f":"'Trial 5'!BD10","v":{"v":1142418.1759077776,"d":"$1,142,418"}},{"$f":"'Trial 5'!BE10","v":{"v":1141810.76235477,"d":"$1,141,811"}},{"$f":"'Trial 5'!BF10","v":{"v":1141373.4023286207,"d":"$1,141,373"}},{"$f":"'Trial 5'!BG10","v":{"v":1140863.1319195922,"d":"$1,140,863"}},{"$f":"'Trial 5'!BH10","v":{"v":1140409.1806238368,"d":"$1,140,409"}},{"$f":"'Trial 5'!BI10","v":{"v":1139835.1856993504,"d":"$1,139,835"}},{"$f":"'Trial 5'!BJ10","v":{"v":1139384.8876108823,"d":"$1,139,385"}},{"$f":"'Trial 5'!BK10","v":{"v":1139002.212043697,"d":"$1,139,002"}},{"$f":"'Trial 5'!BL10","v":{"v":1138559.997894036,"d":"$1,138,560"}},{"$f":"'Trial 5'!BM10","v":{"v":1138179.5009288015,"d":"$1,138,180"}},{"$f":"'Trial 5'!BO10","v":{"v":1137728.8070082979,"d":"$1,137,729"}},{"$f":"'Trial 5'!BP10","v":{"v":1137344.1021482574,"d":"$1,137,344"}},{"$f":"'Trial 5'!BQ10","v":{"v":1136998.974321802,"d":"$1,136,999"}},{"$f":"'Trial 5'!BR10","v":{"v":1136648.5477404434,"d":"$1,136,649"}},{"$f":"'Trial 5'!BS10","v":{"v":1136089.1505054715,"d":"$1,136,089"}},{"$f":"'Trial 5'!BT10","v":{"v":1135616.2498860913,"d":"$1,135,616"}},{"$f":"'Trial 5'!BU10","v":{"v":1135276.0150701723,"d":"$1,135,276"}},{"$f":"'Trial 5'!BV10","v":{"v":1134723.3547301798,"d":"$1,134,723"}},{"$f":"'Trial 5'!BW10","v":{"v":1134235.1602352785,"d":"$1,134,235"}},{"$f":"'Trial 5'!BX10","v":{"v":1133774.971082846,"d":"$1,133,775"}},{"$f":"'Trial 5'!BY10","v":{"v":1133405.1593418808,"d":"$1,133,405"}},{"$f":"'Trial 5'!BZ10","v":{"v":1133043.9030643336,"d":"$1,133,044"}},{"$f":"'Trial 5'!CB10","v":{"v":1132652.823964635,"d":"$1,132,653"}},{"$f":"'Trial 5'!CC10","v":{"v":1132168.2675815134,"d":"$1,132,168"}},{"$f":"'Trial 5'!CD10","v":{"v":1131700.6654083885,"d":"$1,131,701"}},{"$f":"'Trial 5'!CE10","v":{"v":1131218.4876345221,"d":"$1,131,218"}},{"$f":"'Trial 5'!CF10","v":{"v":1130700.33573103,"d":"$1,130,700"}},{"$f":"'Trial 5'!CG10","v":{"v":1130242.949350349,"d":"$1,130,243"}},{"$f":"'Trial 5'!CH10","v":{"v":1129907.3409215186,"d":"$1,129,907"}},{"$f":"'Trial 5'!CI10","v":{"v":1129382.5861988822,"d":"$1,129,383"}},{"$f":"'Trial 5'!CJ10","v":{"v":1128843.2752420343,"d":"$1,128,843"}},{"$f":"'Trial 5'!CK10","v":{"v":1128396.6382537982,"d":"$1,128,397"}},{"$f":"'Trial 5'!CL10","v":{"v":1128052.1456617583,"d":"$1,128,052"}},{"$f":"'Trial 5'!CM10","v":{"v":1127506.8399884482,"d":"$1,127,507"}},{"$f":"'Trial 5'!CO10","v":{"v":1127075.0869813403,"d":"$1,127,075"}},{"$f":"'Trial 5'!CP10","v":{"v":1126635.8230859297,"d":"$1,126,636"}},{"$f":"'Trial 5'!CQ10","v":{"v":1126089.3634042991,"d":"$1,126,089"}},{"$f":"'Trial 5'!CR10","v":{"v":1125726.6708542898,"d":"$1,125,727"}},{"$f":"'Trial 5'!CS10","v":{"v":1125195.4493941101,"d":"$1,125,195"}},{"$f":"'Trial 5'!CT10","v":{"v":1124686.8834792685,"d":"$1,124,687"}},{"$f":"'Trial 5'!CU10","v":{"v":1124254.6100095585,"d":"$1,124,255"}},{"$f":"'Trial 5'!CV10","v":{"v":1123800.3264333797,"d":"$1,123,800"}},{"$f":"'Trial 5'!CW10","v":{"v":1123307.1675459652,"d":"$1,123,307"}},{"$f":"'Trial 5'!CX10","v":{"v":1122906.887096858,"d":"$1,122,907"}},{"$f":"'Trial 5'!CY10","v":{"v":1122400.3774315706,"d":"$1,122,400"}},{"$f":"'Trial 5'!CZ10","v":{"v":1121922.8201222376,"d":"$1,121,923"}},{"$f":"'Trial 5'!DB10","v":{"v":1121334.2115475228,"d":"$1,121,334"}},{"$f":"'Trial 5'!DC10","v":{"v":1120906.954061211,"d":"$1,120,907"}},{"$f":"'Trial 5'!DD10","v":{"v":1120439.6238533007,"d":"$1,120,440"}},{"$f":"'Trial 5'!DE10","v":{"v":1119991.8087316079,"d":"$1,119,992"}},{"$f":"'Trial 5'!DF10","v":{"v":1119469.8143722187,"d":"$1,119,470"}},{"$f":"'Trial 5'!DG10","v":{"v":1118930.9625819733,"d":"$1,118,931"}},{"$f":"'Trial 5'!DH10","v":{"v":1118529.1164980016,"d":"$1,118,529"}},{"$f":"'Trial 5'!DI10","v":{"v":1118183.660654149,"d":"$1,118,184"}},{"$f":"'Trial 5'!DJ10","v":{"v":1117716.5163734586,"d":"$1,117,717"}},{"$f":"'Trial 5'!DK10","v":{"v":1117177.0581886815,"d":"$1,117,177"}},{"$f":"'Trial 5'!DL10","v":{"v":1116690.9510070663,"d":"$1,116,691"}},{"$f":"'Trial 5'!DM10","v":{"v":1116140.6825685594,"d":"$1,116,141"}},{"$f":"'Trial 5'!DO10","v":{"v":1115671.7585276875,"d":"$1,115,672"}},{"$f":"'Trial 5'!DP10","v":{"v":1115160.9583542298,"d":"$1,115,161"}},{"$f":"'Trial 5'!DQ10","v":{"v":1114685.737722868,"d":"$1,114,686"}},{"$f":"'Trial 5'!DR10","v":{"v":1114327.8265934237,"d":"$1,114,328"}},{"$f":"'Trial 5'!DS10","v":{"v":1113910.820280658,"d":"$1,113,911"}},{"$f":"'Trial 5'!DT10","v":{"v":1113479.2771968946,"d":"$1,113,479"}},{"$f":"'Trial 5'!DU10","v":{"v":1113087.5025524981,"d":"$1,113,088"}},{"$f":"'Trial 5'!DV10","v":{"v":1112558.2322120287,"d":"$1,112,558"}},{"$f":"'Trial 5'!DW10","v":{"v":1112097.1585195893,"d":"$1,112,097"}},{"$f":"'Trial 5'!DX10","v":{"v":1111688.2696768655,"d":"$1,111,688"}},{"$f":"'Trial 5'!DY10","v":{"v":1111178.3212530217,"d":"$1,111,178"}},{"$f":"'Trial 5'!DZ10","v":{"v":1110706.4150390525,"d":"$1,110,706"}},{"$f":"'Trial 5'!EB10","v":{"v":1110167.5289732707,"d":"$1,110,168"}},{"$f":"'Trial 5'!EC10","v":{"v":1109692.1106636398,"d":"$1,109,692"}},{"$f":"'Trial 5'!ED10","v":{"v":1109308.6235409158,"d":"$1,109,309"}},{"$f":"'Trial 5'!EE10","v":{"v":1108779.5975930218,"d":"$1,108,780"}},{"$f":"'Trial 5'!EF10","v":{"v":1108322.5182557164,"d":"$1,108,323"}},{"$f":"'Trial 5'!EG10","v":{"v":1107861.1305048226,"d":"$1,107,861"}},{"$f":"'Trial 5'!EH10","v":{"v":1107469.0573257122,"d":"$1,107,469"}},{"$f":"'Trial 5'!EI10","v":{"v":1106893.3274352138,"d":"$1,106,893"}},{"$f":"'Trial 5'!EJ10","v":{"v":1106346.9164756965,"d":"$1,106,347"}},{"$f":"'Trial 5'!EK10","v":{"v":1105833.916391422,"d":"$1,105,834"}},{"$f":"'Trial 5'!EL10","v":{"v":1105369.7317082996,"d":"$1,105,370"}},{"$f":"'Trial 5'!EM10","v":{"v":1104908.7782915474,"d":"$1,104,909"}}]
[{"$f":"'Trial 6'!B10","v":{"v":1166666.6666666667,"d":"$1,166,667"}},{"$f":"'Trial 6'!C10","v":{"v":1166212.5446200822,"d":"$1,166,213"}},{"$f":"'Trial 6'!D10","v":{"v":1165602.5866199282,"d":"$1,165,603"}},{"$f":"'Trial 6'!E10","v":{"v":1165204.7882356248,"d":"$1,165,205"}},{"$f":"'Trial 6'!F10","v":{"v":1164845.9077664637,"d":"$1,164,846"}},{"$f":"'Trial 6'!G10","v":{"v":1164412.9126861147,"d":"$1,164,413"}},{"$f":"'Trial 6'!H10","v":{"v":1163884.1655187535,"d":"$1,163,884"}},{"$f":"'Trial 6'!I10","v":{"v":1163399.982398665,"d":"$1,163,400"}},{"$f":"'Trial 6'!J10","v":{"v":1162912.990811483,"d":"$1,162,913"}},{"$f":"'Trial 6'!K10","v":{"v":1162516.2285132287,"d":"$1,162,516"}},{"$f":"'Trial 6'!L10","v":{"v":1162040.8182969773,"d":"$1,162,041"}},{"$f":"'Trial 6'!M10","v":{"v":1161686.5067696474,"d":"$1,161,687"}},{"$f":"'Trial 6'!O10","v":{"v":1161208.1427213622,"d":"$1,161,208"}},{"$f":"'Trial 6'!P10","v":{"v":1160832.1815725076,"d":"$1,160,832"}},{"$f":"'Trial 6'!Q10","v":{"v":1160336.0183537372,"d":"$1,160,336"}},{"$f":"'Trial 6'!R10","v":{"v":1159961.288736426,"d":"$1,159,961"}},{"$f":"'Trial 6'!S10","v":{"v":1159554.1285918446,"d":"$1,159,554"}},{"$f":"'Trial 6'!T10","v":{"v":1158951.5272822145,"d":"$1,158,952"}},{"$f":"'Trial 6'!U10","v":{"v":1158454.7525575308,"d":"$1,158,455"}},{"$f":"'Trial 6'!V10","v":{"v":1158027.5539748347,"d":"$1,158,028"}},{"$f":"'Trial 6'!W10","v":{"v":1157498.3707131865,"d":"$1,157,498"}},{"$f":"'Trial 6'!X10","v":{"v":1156986.2654144375,"d":"$1,156,986"}},{"$f":"'Trial 6'!Y10","v":{"v":1156539.2593589977,"d":"$1,156,539"}},{"$f":"'Trial 6'!Z10","v":{"v":1156135.634687717,"d":"$1,156,136"}},{"$f":"'Trial 6'!AB10","v":{"v":1155586.7585460143,"d":"$1,155,587"}},{"$f":"'Trial 6'!AC10","v":{"v":1155130.8950075079,"d":"$1,155,131"}},{"$f":"'Trial 6'!AD10","v":{"v":1154700.2990566427,"d":"$1,154,700"}},{"$f":"'Trial 6'!AE10","v":{"v":1154312.2000523014,"d":"$1,154,312"}},{"$f":"'Trial 6'!AF10","v":{"v":1153865.8772368133,"d":"$1,153,866"}},{"$f":"'Trial 6'!AG10","v":{"v":1153477.9104869908,"d":"$1,153,478"}},{"$f":"'Trial 6'!AH10","v":{"v":1153027.4424634138,"d":"$1,153,027"}},{"$f":"'Trial 6'!AI10","v":{"v":1152617.927031421,"d":"$1,152,618"}},{"$f":"'Trial 6'!AJ10","v":{"v":1152130.7642505534,"d":"$1,152,131"}},{"$f":"'Trial 6'!AK10","v":{"v":1151607.3716817666,"d":"$1,151,607"}},{"$f":"'Trial 6'!AL10","v":{"v":1151145.0292443135,"d":"$1,151,145"}},{"$f":"'Trial 6'!AM10","v":{"v":1150744.4236118386,"d":"$1,150,744"}},{"$f":"'Trial 6'!AO10","v":{"v":1150385.368865681,"d":"$1,150,385"}},{"$f":"'Trial 6'!AP10","v":{"v":1149938.4382163582,"d":"$1,149,938"}},{"$f":"'Trial 6'!AQ10","v":{"v":1149446.9439178554,"d":"$1,149,447"}},{"$f":"'Trial 6'!AR10","v":{"v":1148930.2946597135,"d":"$1,148,930"}},{"$f":"'Trial 6'!AS10","v":{"v":1148470.9683001789,"d":"$1,148,471"}},{"$f":"'Trial 6'!AT10","v":{"v":1147975.2889471694,"d":"$1,147,975"}},{"$f":"'Trial 6'!AU10","v":{"v":1147450.736155319,"d":"$1,147,451"}},{"$f":"'Trial 6'!AV10","v":{"v":1146850.2892744294,"d":"$1,146,850"}},{"$f":"'Trial 6'!AW10","v":{"v":1146397.6374100135,"d":"$1,146,398"}},{"$f":"'Trial 6'!AX10","v":{"v":1145883.5249158284,"d":"$1,145,884"}},{"$f":"'Trial 6'!AY10","v":{"v":1145315.0295747719,"d":"$1,145,315"}},{"$f":"'Trial 6'!AZ10","v":{"v":1144876.9928977715,"d":"$1,144,877"}},{"$f":"'Trial 6'!BB10","v":{"v":1144504.9815969786,"d":"$1,144,505"}},{"$f":"'Trial 6'!BC10","v":{"v":1143904.281469164,"d":"$1,143,904"}},{"$f":"'Trial 6'!BD10","v":{"v":1143358.8590215268,"d":"$1,143,359"}},{"$f":"'Trial 6'!BE10","v":{"v":1142838.921805637,"d":"$1,142,839"}},{"$f":"'Trial 6'!BF10","v":{"v":1142302.9616976527,"d":"$1,142,303"}},{"$f":"'Trial 6'!BG10","v":{"v":1141823.2074475156,"d":"$1,141,823"}},{"$f":"'Trial 6'!BH10","v":{"v":1141377.3946624857,"d":"$1,141,377"}},{"$f":"'Trial 6'!BI10","v":{"v":1140970.8907995066,"d":"$1,140,971"}},{"$f":"'Trial 6'!BJ10","v":{"v":1140446.185918158,"d":"$1,140,446"}},{"$f":"'Trial 6'!BK10","v":{"v":1140084.7466623737,"d":"$1,140,085"}},{"$f":"'Trial 6'!BL10","v":{"v":1139637.3948929247,"d":"$1,139,637"}},{"$f":"'Trial 6'!BM10","v":{"v":1139049.9745758097,"d":"$1,139,050"}},{"$f":"'Trial 6'!BO10","v":{"v":1138604.1859587107,"d":"$1,138,604"}},{"$f":"'Trial 6'!BP10","v":{"v":1138000.213141123,"d":"$1,138,000"}},{"$f":"'Trial 6'!BQ10","v":{"v":1137498.9594635577,"d":"$1,137,499"}},{"$f":"'Trial 6'!BR10","v":{"v":1136984.6032165063,"d":"$1,136,985"}},{"$f":"'Trial 6'!BS10","v":{"v":1136441.5948796044,"d":"$1,136,442"}},{"$f":"'Trial 6'!BT10","v":{"v":1135833.8854274042,"d":"$1,135,834"}},{"$f":"'Trial 6'!BU10","v":{"v":1135436.6730721593,"d":"$1,135,437"}},{"$f":"'Trial 6'!BV10","v":{"v":1134966.5223791685,"d":"$1,134,967"}},{"$f":"'Trial 6'!BW10","v":{"v":1134529.8988494559,"d":"$1,134,530"}},{"$f":"'Trial 6'!BX10","v":{"v":1134117.604995315,"d":"$1,134,118"}},{"$f":"'Trial 6'!BY10","v":{"v":1133579.111152053,"d":"$1,133,579"}},{"$f":"'Trial 6'!BZ10","v":{"v":1133220.852625628,"d":"$1,133,221"}},{"$f":"'Trial 6'!CB10","v":{"v":1132813.1789007548,"d":"$1,132,813"}},{"$f":"'Trial 6'!CC10","v":{"v":1132346.551236957,"d":"$1,132,347"}},{"$f":"'Trial 6'!CD10","v":{"v":1131861.111680923,"d":"$1,131,861"}},{"$f":"'Trial 6'!CE10","v":{"v":1131505.115072182,"d":"$1,131,505"}},{"$f":"'Trial 6'!CF10","v":{"v":1131008.9165180973,"d":"$1,131,009"}},{"$f":"'Trial 6'!CG10","v":{"v":1130502.7975133546,"d":"$1,130,503"}},{"$f":"'Trial 6'!CH10","v":{"v":1130092.3865517033,"d":"$1,130,092"}},{"$f":"'Trial 6'!CI10","v":{"v":1129677.964010204,"d":"$1,129,678"}},{"$f":"'Trial 6'!CJ10","v":{"v":1129295.1362674392,"d":"$1,129,295"}},{"$f":"'Trial 6'!CK10","v":{"v":1128829.1255604583,"d":"$1,128,829"}},{"$f":"'Trial 6'!CL10","v":{"v":1128392.895047367,"d":"$1,128,393"}},{"$f":"'Trial 6'!CM10","v":{"v":1128007.6009628342,"d":"$1,128,008"}},{"$f":"'Trial 6'!CO10","v":{"v":1127601.8615234904,"d":"$1,127,602"}},{"$f":"'Trial 6'!CP10","v":{"v":1127150.3003109412,"d":"$1,127,150"}},{"$f":"'Trial 6'!CQ10","v":{"v":1126764.785024027,"d":"$1,126,765"}},{"$f":"'Trial 6'!CR10","v":{"v":1126298.8302863652,"d":"$1,126,299"}},{"$f":"'Trial 6'!CS10","v":{"v":1125835.1506836056,"d":"$1,125,835"}},{"$f":"'Trial 6'!CT10","v":{"v":1125304.0122322412,"d":"$1,125,304"}},{"$f":"'Trial 6'!CU10","v":{"v":1124782.6429444565,"d":"$1,124,783"}},{"$f":"'Trial 6'!CV10","v":{"v":1124430.998973201,"d":"$1,124,431"}},{"$f":"'Trial 6'!CW10","v":{"v":1123884.1979311928,"d":"$1,123,884"}},{"$f":"'Trial 6'!CX10","v":{"v":1123525.721129632,"d":"$1,123,526"}},{"$f":"'Trial 6'!CY10","v":{"v":1123079.1756680463,"d":"$1,123,079"}},{"$f":"'Trial 6'!CZ10","v":{"v":1122547.7413372893,"d":"$1,122,548"}},{"$f":"'Trial 6'!DB10","v":{"v":1122116.6421449487,"d":"$1,122,117"}},{"$f":"'Trial 6'!DC10","v":{"v":1121694.0043052125,"d":"$1,121,694"}},{"$f":"'Trial 6'!DD10","v":{"v":1121107.2729420303,"d":"$1,121,107"}},{"$f":"'Trial 6'!DE10","v":{"v":1120596.5131269232,"d":"$1,120,597"}},{"$f":"'Trial 6'!DF10","v":{"v":1120126.964772071,"d":"$1,120,127"}},{"$f":"'Trial 6'!DG10","v":{"v":1119554.6249038733,"d":"$1,119,555"}},{"$f":"'Trial 6'!DH10","v":{"v":1119065.9275139968,"d":"$1,119,066"}},{"$f":"'Trial 6'!DI10","v":{"v":1118508.7488060328,"d":"$1,118,509"}},{"$f":"'Trial 6'!DJ10","v":{"v":1117945.5225786953,"d":"$1,117,946"}},{"$f":"'Trial 6'!DK10","v":{"v":1117357.4110653235,"d":"$1,117,357"}},{"$f":"'Trial 6'!DL10","v":{"v":1116900.0557488217,"d":"$1,116,900"}},{"$f":"'Trial 6'!DM10","v":{"v":1116368.4424535227,"d":"$1,116,368"}},{"$f":"'Trial 6'!DO10","v":{"v":1115872.0560042306,"d":"$1,115,872"}},{"$f":"'Trial 6'!DP10","v":{"v":1115483.8494386827,"d":"$1,115,484"}},{"$f":"'Trial 6'!DQ10","v":{"v":1114961.352727702,"d":"$1,114,961"}},{"$f":"'Trial 6'!DR10","v":{"v":1114446.311603648,"d":"$1,114,446"}},{"$f":"'Trial 6'!DS10","v":{"v":1113976.625263961,"d":"$1,113,977"}},{"$f":"'Trial 6'!DT10","v":{"v":1113494.5556899032,"d":"$1,113,495"}},{"$f":"'Trial 6'!DU10","v":{"v":1113070.5713389867,"d":"$1,113,071"}},{"$f":"'Trial 6'!DV10","v":{"v":1112680.0023463985,"d":"$1,112,680"}},{"$f":"'Trial 6'!DW10","v":{"v":1112302.5028557836,"d":"$1,112,303"}},{"$f":"'Trial 6'!DX10","v":{"v":1111849.2916231584,"d":"$1,111,849"}},{"$f":"'Trial 6'!DY10","v":{"v":1111439.2338424542,"d":"$1,111,439"}},{"$f":"'Trial 6'!DZ10","v":{"v":1110955.1698042257,"d":"$1,110,955"}},{"$f":"'Trial 6'!EB10","v":{"v":1110480.3424239464,"d":"$1,110,480"}},{"$f":"'Trial 6'!EC10","v":{"v":1110091.0580505778,"d":"$1,110,091"}},{"$f":"'Trial 6'!ED10","v":{"v":1109625.9604343511,"d":"$1,109,626"}},{"$f":"'Trial 6'!EE10","v":{"v":1109193.5856539216,"d":"$1,109,194"}},{"$f":"'Trial 6'!EF10","v":{"v":1108782.6715810944,"d":"$1,108,783"}},{"$f":"'Trial 6'!EG10","v":{"v":1108312.433648472,"d":"$1,108,312"}},{"$f":"'Trial 6'!EH10","v":{"v":1107875.0655348762,"d":"$1,107,875"}},{"$f":"'Trial 6'!EI10","v":{"v":1107404.418351094,"d":"$1,107,404"}},{"$f":"'Trial 6'!EJ10","v":{"v":1106965.3537434204,"d":"$1,106,965"}},{"$f":"'Trial 6'!EK10","v":{"v":1106589.1621441115,"d":"$1,106,589"}},{"$f":"'Trial 6'!EL10","v":{"v":1106243.279875637,"d":"$1,106,243"}},{"$f":"'Trial 6'!EM10","v":{"v":1105690.483223176,"d":"$1,105,690"}}]
[{"$f":"'Trial 7'!B10","v":{"v":1166666.6666666667,"d":"$1,166,667"}},{"$f":"'Trial 7'!C10","v":{"v":1166129.6509216544,"d":"$1,166,130"}},{"$f":"'Trial 7'!D10","v":{"v":1165715.4041377832,"d":"$1,165,715"}},{"$f":"'Trial 7'!E10","v":{"v":1165282.1041182084,"d":"$1,165,282"}},{"$f":"'Trial 7'!F10","v":{"v":1164793.8988934858,"d":"$1,164,794"}},{"$f":"'Trial 7'!G10","v":{"v":1164397.5280628405,"d":"$1,164,398"}},{"$f":"'Trial 7'!H10","v":{"v":1164005.10895379,"d":"$1,164,005"}},{"$f":"'Trial 7'!I10","v":{"v":1163607.4949769843,"d":"$1,163,607"}},{"$f":"'Trial 7'!J10","v":{"v":1163229.3820894868,"d":"$1,163,229"}},{"$f":"'Trial 7'!K10","v":{"v":1162739.1187853322,"d":"$1,162,739"}},{"$f":"'Trial 7'!L10","v":{"v":1162214.034110423,"d":"$1,162,214"}},{"$f":"'Trial 7'!M10","v":{"v":1161734.8767607638,"d":"$1,161,735"}},{"$f":"'Trial 7'!O10","v":{"v":1161241.197334929,"d":"$1,161,241"}},{"$f":"'Trial 7'!P10","v":{"v":1160782.1201796066,"d":"$1,160,782"}},{"$f":"'Trial 7'!Q10","v":{"v":1160395.9490426665,"d":"$1,160,396"}},{"$f":"'Trial 7'!R10","v":{"v":1160001.629586639,"d":"$1,160,002"}},{"$f":"'Trial 7'!S10","v":{"v":1159586.950047143,"d":"$1,159,587"}},{"$f":"'Trial 7'!T10","v":{"v":1159141.5051489903,"d":"$1,159,142"}},{"$f":"'Trial 7'!U10","v":{"v":1158739.5873206896,"d":"$1,158,740"}},{"$f":"'Trial 7'!V10","v":{"v":1158256.4361087442,"d":"$1,158,256"}},{"$f":"'Trial 7'!W10","v":{"v":1157857.426092214,"d":"$1,157,857"}},{"$f":"'Trial 7'!X10","v":{"v":1157485.8691386995,"d":"$1,157,486"}},{"$f":"'Trial 7'!Y10","v":{"v":1157080.8344498111,"d":"$1,157,081"}},{"$f":"'Trial 7'!Z10","v":{"v":1156614.1597716447,"d":"$1,156,614"}},{"$f":"'Trial 7'!AB10","v":{"v":1156030.2519088138,"d":"$1,156,030"}},{"$f":"'Trial 7'!AC10","v":{"v":1155436.145190628,"d":"$1,155,436"}},{"$f":"'Trial 7'!AD10","v":{"v":1154963.1501751246,"d":"$1,154,963"}},{"$f":"'Trial 7'!AE10","v":{"v":1154522.8928488668,"d":"$1,154,523"}},{"$f":"'Trial 7'!AF10","v":{"v":1154123.6591026094,"d":"$1,154,124"}},{"$f":"'Trial 7'!AG10","v":{"v":1153606.198838959,"d":"$1,153,606"}},{"$f":"'Trial 7'!AH10","v":{"v":1153181.4370632318,"d":"$1,153,181"}},{"$f":"'Trial 7'!AI10","v":{"v":1152750.454982172,"d":"$1,152,750"}},{"$f":"'Trial 7'!AJ10","v":{"v":1152195.6155256256,"d":"$1,152,196"}},{"$f":"'Trial 7'!AK10","v":{"v":1151702.4383711338,"d":"$1,151,702"}},{"$f":"'Trial 7'!AL10","v":{"v":1151235.059661063,"d":"$1,151,235"}},{"$f":"'Trial 7'!AM10","v":{"v":1150774.2956900592,"d":"$1,150,774"}},{"$f":"'Trial 7'!AO10","v":{"v":1150259.9693812504,"d":"$1,150,260"}},{"$f":"'Trial 7'!AP10","v":{"v":1149712.7356833245,"d":"$1,149,713"}},{"$f":"'Trial 7'!AQ10","v":{"v":1149223.93919811,"d":"$1,149,224"}},{"$f":"'Trial 7'!AR10","v":{"v":1148813.8347836495,"d":"$1,148,814"}},{"$f":"'Trial 7'!AS10","v":{"v":1148398.622383947,"d":"$1,148,399"}},{"$f":"'Trial 7'!AT10","v":{"v":1148041.712716367,"d":"$1,148,042"}},{"$f":"'Trial 7'!AU10","v":{"v":1147516.769251751,"d":"$1,147,517"}},{"$f":"'Trial 7'!AV10","v":{"v":1147031.5135042712,"d":"$1,147,032"}},{"$f":"'Trial 7'!AW10","v":{"v":1146543.404281627,"d":"$1,146,543"}},{"$f":"'Trial 7'!AX10","v":{"v":1146022.605681658,"d":"$1,146,023"}},{"$f":"'Trial 7'!AY10","v":{"v":1145473.3774633796,"d":"$1,145,473"}},{"$f":"'Trial 7'!AZ10","v":{"v":1144941.7701181879,"d":"$1,144,942"}},{"$f":"'Trial 7'!BB10","v":{"v":1144365.1076117016,"d":"$1,144,365"}},{"$f":"'Trial 7'!BC10","v":{"v":1143859.1643040308,"d":"$1,143,859"}},{"$f":"'Trial 7'!BD10","v":{"v":1143347.3067901107,"d":"$1,143,347"}},{"$f":"'Trial 7'!BE10","v":{"v":1142905.23173879,"d":"$1,142,905"}},{"$f":"'Trial 7'!BF10","v":{"v":1142406.6854357002,"d":"$1,142,407"}},{"$f":"'Trial 7'!BG10","v":{"v":1141963.5803473822,"d":"$1,141,964"}},{"$f":"'Trial 7'!BH10","v":{"v":1141568.3496717035,"d":"$1,141,568"}},{"$f":"'Trial 7'!BI10","v":{"v":1141022.1336482519,"d":"$1,141,022"}},{"$f":"'Trial 7'!BJ10","v":{"v":1140541.8717152087,"d":"$1,140,542"}},{"$f":"'Trial 7'!BK10","v":{"v":1140024.3582018258,"d":"$1,140,024"}},{"$f":"'Trial 7'!BL10","v":{"v":1139453.1953211827,"d":"$1,139,453"}},{"$f":"'Trial 7'!BM10","v":{"v":1138940.9961236068,"d":"$1,138,941"}},{"$f":"'Trial 7'!BO10","v":{"v":1138507.4778547802,"d":"$1,138,507"}},{"$f":"'Trial 7'!BP10","v":{"v":1137991.4888879235,"d":"$1,137,991"}},{"$f":"'Trial 7'!BQ10","v":{"v":1137399.865466691,"d":"$1,137,400"}},{"$f":"'Trial 7'!BR10","v":{"v":1136969.707531037,"d":"$1,136,970"}},{"$f":"'Trial 7'!BS10","v":{"v":1136537.139754292,"d":"$1,136,537"}},{"$f":"'Trial 7'!BT10","v":{"v":1136143.8751279921,"d":"$1,136,144"}},{"$f":"'Trial 7'!BU10","v":{"v":1135767.3317419128,"d":"$1,135,767"}},{"$f":"'Trial 7'!BV10","v":{"v":1135362.08311376,"d":"$1,135,362"}},{"$f":"'Trial 7'!BW10","v":{"v":1134822.856498024,"d":"$1,134,823"}},{"$f":"'Trial 7'!BX10","v":{"v":1134446.5900424002,"d":"$1,134,447"}},{"$f":"'Trial 7'!BY10","v":{"v":1133914.9438450092,"d":"$1,133,915"}},{"$f":"'Trial 7'!BZ10","v":{"v":1133341.5723318066,"d":"$1,133,342"}},{"$f":"'Trial 7'!CB10","v":{"v":1132725.2256740702,"d":"$1,132,725"}},{"$f":"'Trial 7'!CC10","v":{"v":1132240.0555013237,"d":"$1,132,240"}},{"$f":"'Trial 7'!CD10","v":{"v":1131818.3305828816,"d":"$1,131,818"}},{"$f":"'Trial 7'!CE10","v":{"v":1131407.8904163616,"d":"$1,131,408"}},{"$f":"'Trial 7'!CF10","v":{"v":1130795.837029611,"d":"$1,130,796"}},{"$f":"'Trial 7'!CG10","v":{"v":1130281.4294321924,"d":"$1,130,281"}},{"$f":"'Trial 7'!CH10","v":{"v":1129865.9137978675,"d":"$1,129,866"}},{"$f":"'Trial 7'!CI10","v":{"v":1129248.3488278661,"d":"$1,129,248"}},{"$f":"'Trial 7'!CJ10","v":{"v":1128704.767965998,"d":"$1,128,705"}},{"$f":"'Trial 7'!CK10","v":{"v":1128372.068524006,"d":"$1,128,372"}},{"$f":"'Trial 7'!CL10","v":{"v":1128023.1639053654,"d":"$1,128,023"}},{"$f":"'Trial 7'!CM10","v":{"v":1127534.8629970702,"d":"$1,127,535"}},{"$f":"'Trial 7'!CO10","v":{"v":1127133.8830604425,"d":"$1,127,134"}},{"$f":"'Trial 7'!CP10","v":{"v":1126793.2766216071,"d":"$1,126,793"}},{"$f":"'Trial 7'!CQ10","v":{"v":1126309.2379497213,"d":"$1,126,309"}},{"$f":"'Trial 7'!CR10","v":{"v":1125876.918880541,"d":"$1,125,877"}},{"$f":"'Trial 7'!CS10","v":{"v":1125460.7369451271,"d":"$1,125,461"}},{"$f":"'Trial 7'!CT10","v":{"v":1124995.2379860915,"d":"$1,124,995"}},{"$f":"'Trial 7'!CU10","v":{"v":1124514.5532804446,"d":"$1,124,515"}},{"$f":"'Trial 7'!CV10","v":{"v":1124113.316144424,"d":"$1,124,113"}},{"$f":"'Trial 7'!CW10","v":{"v":1123637.5067932475,"d":"$1,123,638"}},{"$f":"'Trial 7'!CX10","v":{"v":1123153.862503846,"d":"$1,123,154"}},{"$f":"'Trial 7'!CY10","v":{"v":1122581.6343151405,"d":"$1,122,582"}},{"$f":"'Trial 7'!CZ10","v":{"v":1122023.5513112457,"d":"$1,122,024"}},{"$f":"'Trial 7'!DB10","v":{"v":1121587.528740271,"d":"$1,121,588"}},{"$f":"'Trial 7'!DC10","v":{"v":1121230.0792909246,"d":"$1,121,230"}},{"$f":"'Trial 7'!DD10","v":{"v":1120838.5559967528,"d":"$1,120,839"}},{"$f":"'Trial 7'!DE10","v":{"v":1120379.2181174164,"d":"$1,120,379"}},{"$f":"'Trial 7'!DF10","v":{"v":1119942.3234199234,"d":"$1,119,942"}},{"$f":"'Trial 7'!DG10","v":{"v":1119494.0508289698,"d":"$1,119,494"}},{"$f":"'Trial 7'!DH10","v":{"v":1118929.2665828296,"d":"$1,118,929"}},{"$f":"'Trial 7'!DI10","v":{"v":1118355.1021567795,"d":"$1,118,355"}},{"$f":"'Trial 7'!DJ10","v":{"v":1117892.2299168955,"d":"$1,117,892"}},{"$f":"'Trial 7'!DK10","v":{"v":1117416.4368511566,"d":"$1,117,416"}},{"$f":"'Trial 7'!DL10","v":{"v":1116841.5602697649,"d":"$1,116,842"}},{"$f":"'Trial 7'!DM10","v":{"v":1116382.3199737985,"d":"$1,116,382"}},{"$f":"'Trial 7'!DO10","v":{"v":1115928.1737729146,"d":"$1,115,928"}},{"$f":"'Trial 7'!DP10","v":{"v":1115398.4846376167,"d":"$1,115,398"}},{"$f":"'Trial 7'!DQ10","v":{"v":1114923.3496180475,"d":"$1,114,923"}},{"$f":"'Trial 7'!DR10","v":{"v":1114444.0953815638,"d":"$1,114,444"}},{"$f":"'Trial 7'!DS10","v":{"v":1113891.435066536,"d":"$1,113,891"}},{"$f":"'Trial 7'!DT10","v":{"v":1113447.6614906818,"d":"$1,113,448"}},{"$f":"'Trial 7'!DU10","v":{"v":1112902.1296301703,"d":"$1,112,902"}},{"$f":"'Trial 7'!DV10","v":{"v":1112392.6687913812,"d":"$1,112,393"}},{"$f":"'Trial 7'!DW10","v":{"v":1111979.3225955067,"d":"$1,111,979"}},{"$f":"'Trial 7'!DX10","v":{"v":1111653.2800779326,"d":"$1,111,653"}},{"$f":"'Trial 7'!DY10","v":{"v":1111078.541336233,"d":"$1,111,079"}},{"$f":"'Trial 7'!DZ10","v":{"v":1110563.3581970942,"d":"$1,110,563"}},{"$f":"'Trial 7'!EB10","v":{"v":1110014.078415485,"d":"$1,110,014"}},{"$f":"'Trial 7'!EC10","v":{"v":1109632.1259402959,"d":"$1,109,632"}},{"$f":"'Trial 7'!ED10","v":{"v":1109090.696406408,"d":"$1,109,091"}},{"$f":"'Trial 7'!EE10","v":{"v":1108619.1963260113,"d":"$1,108,619"}},{"$f":"'Trial 7'!EF10","v":{"v":1108178.136450475,"d":"$1,108,178"}},{"$f":"'Trial 7'!EG10","v":{"v":1107641.1919311248,"d":"$1,107,641"}},{"$f":"'Trial 7'!EH10","v":{"v":1107038.9229750135,"d":"$1,107,039"}},{"$f":"'Trial 7'!EI10","v":{"v":1106455.5266111442,"d":"$1,106,456"}},{"$f":"'Trial 7'!EJ10","v":{"v":1106026.7898789865,"d":"$1,106,027"}},{"$f":"'Trial 7'!EK10","v":{"v":1105610.5596136574,"d":"$1,105,611"}},{"$f":"'Trial 7'!EL10","v":{"v":1105139.6342700764,"d":"$1,105,140"}},{"$f":"'Trial 7'!EM10","v":{"v":1104750.992326255,"d":"$1,104,751"}}]
[{"$f":"'Trial 8'!B10","v":{"v":1166666.6666666667,"d":"$1,166,667"}},{"$f":"'Trial 8'!C10","v":{"v":1166085.407157451,"d":"$1,166,085"}},{"$f":"'Trial 8'!D10","v":{"v":1165586.5025521168,"d":"$1,165,587"}},{"$f":"'Trial 8'!E10","v":{"v":1165114.9758481702,"d":"$1,165,115"}},{"$f":"'Trial 8'!F10","v":{"v":1164668.6756536777,"d":"$1,164,669"}},{"$f":"'Trial 8'!G10","v":{"v":1164332.3658396567,"d":"$1,164,332"}},{"$f":"'Trial 8'!H10","v":{"v":1163900.6154335318,"d":"$1,163,901"}},{"$f":"'Trial 8'!I10","v":{"v":1163423.700663601,"d":"$1,163,424"}},{"$f":"'Trial 8'!J10","v":{"v":1163003.418456037,"d":"$1,163,003"}},{"$f":"'Trial 8'!K10","v":{"v":1162450.899983878,"d":"$1,162,451"}},{"$f":"'Trial 8'!L10","v":{"v":1162032.7777831987,"d":"$1,162,033"}},{"$f":"'Trial 8'!M10","v":{"v":1161471.864188978,"d":"$1,161,472"}},{"$f":"'Trial 8'!O10","v":{"v":1161013.7184239675,"d":"$1,161,014"}},{"$f":"'Trial 8'!P10","v":{"v":1160654.4861536846,"d":"$1,160,654"}},{"$f":"'Trial 8'!Q10","v":{"v":1160120.3095239052,"d":"$1,160,120"}},{"$f":"'Trial 8'!R10","v":{"v":1159530.496286409,"d":"$1,159,530"}},{"$f":"'Trial 8'!S10","v":{"v":1159088.053035773,"d":"$1,159,088"}},{"$f":"'Trial 8'!T10","v":{"v":1158619.6066215273,"d":"$1,158,620"}},{"$f":"'Trial 8'!U10","v":{"v":1158261.6251791823,"d":"$1,158,262"}},{"$f":"'Trial 8'!V10","v":{"v":1157779.46805637,"d":"$1,157,779"}},{"$f":"'Trial 8'!W10","v":{"v":1157316.0875326474,"d":"$1,157,316"}},{"$f":"'Trial 8'!X10","v":{"v":1156946.465974588,"d":"$1,156,946"}},{"$f":"'Trial 8'!Y10","v":{"v":1156411.8750119351,"d":"$1,156,412"}},{"$f":"'Trial 8'!Z10","v":{"v":1155845.4805442018,"d":"$1,155,845"}},{"$f":"'Trial 8'!AB10","v":{"v":1155321.585403047,"d":"$1,155,322"}},{"$f":"'Trial 8'!AC10","v":{"v":1154848.593142284,"d":"$1,154,849"}},{"$f":"'Trial 8'!AD10","v":{"v":1154382.3321031765,"d":"$1,154,382"}},{"$f":"'Trial 8'!AE10","v":{"v":1153863.5273698675,"d":"$1,153,864"}},{"$f":"'Trial 8'!AF10","v":{"v":1153373.5124013417,"d":"$1,153,374"}},{"$f":"'Trial 8'!AG10","v":{"v":1152829.6006584757,"d":"$1,152,830"}},{"$f":"'Trial 8'!AH10","v":{"v":1152305.9839838543,"d":"$1,152,306"}},{"$f":"'Trial 8'!AI10","v":{"v":1151875.896355803,"d":"$1,151,876"}},{"$f":"'Trial 8'!AJ10","v":{"v":1151434.7670525834,"d":"$1,151,435"}},{"$f":"'Trial 8'!AK10","v":{"v":1150921.619193783,"d":"$1,150,922"}},{"$f":"'Trial 8'!AL10","v":{"v":1150449.420682139,"d":"$1,150,449"}},{"$f":"'Trial 8'!AM10","v":{"v":1150065.4836395467,"d":"$1,150,065"}},{"$f":"'Trial 8'!AO10","v":{"v":1149673.5614227415,"d":"$1,149,674"}},{"$f":"'Trial 8'!AP10","v":{"v":1149271.7557503001,"d":"$1,149,272"}},{"$f":"'Trial 8'!AQ10","v":{"v":1148805.4875810784,"d":"$1,148,805"}},{"$f":"'Trial 8'!AR10","v":{"v":1148335.6017839795,"d":"$1,148,336"}},{"$f":"'Trial 8'!AS10","v":{"v":1147783.0108635097,"d":"$1,147,783"}},{"$f":"'Trial 8'!AT10","v":{"v":1147232.1623365588,"d":"$1,147,232"}},{"$f":"'Trial 8'!AU10","v":{"v":1146732.4213598212,"d":"$1,146,732"}},{"$f":"'Trial 8'!AV10","v":{"v":1146297.5845064907,"d":"$1,146,298"}},{"$f":"'Trial 8'!AW10","v":{"v":1145829.7858402894,"d":"$1,145,830"}},{"$f":"'Trial 8'!AX10","v":{"v":1145370.1258611355,"d":"$1,145,370"}},{"$f":"'Trial 8'!AY10","v":{"v":1144900.8270609016,"d":"$1,144,901"}},{"$f":"'Trial 8'!AZ10","v":{"v":1144460.4155789914,"d":"$1,144,460"}},{"$f":"'Trial 8'!BB10","v":{"v":1144005.6761889243,"d":"$1,144,006"}},{"$f":"'Trial 8'!BC10","v":{"v":1143497.6972555353,"d":"$1,143,498"}},{"$f":"'Trial 8'!BD10","v":{"v":1143094.5072991396,"d":"$1,143,095"}},{"$f":"'Trial 8'!BE10","v":{"v":1142713.846205324,"d":"$1,142,714"}},{"$f":"'Trial 8'!BF10","v":{"v":1142270.6101401194,"d":"$1,142,271"}},{"$f":"'Trial 8'!BG10","v":{"v":1141823.0203278314,"d":"$1,141,823"}},{"$f":"'Trial 8'!BH10","v":{"v":1141429.3621017325,"d":"$1,141,429"}},{"$f":"'Trial 8'!BI10","v":{"v":1140900.828497031,"d":"$1,140,901"}},{"$f":"'Trial 8'!BJ10","v":{"v":1140425.9957232492,"d":"$1,140,426"}},{"$f":"'Trial 8'!BK10","v":{"v":1139996.9910929033,"d":"$1,139,997"}},{"$f":"'Trial 8'!BL10","v":{"v":1139562.1995113124,"d":"$1,139,562"}},{"$f":"'Trial 8'!BM10","v":{"v":1139131.1365826696,"d":"$1,139,131"}},{"$f":"'Trial 8'!BO10","v":{"v":1138641.8534515505,"d":"$1,138,642"}},{"$f":"'Trial 8'!BP10","v":{"v":1138220.2258630393,"d":"$1,138,220"}},{"$f":"'Trial 8'!BQ10","v":{"v":1137842.111523738,"d":"$1,137,842"}},{"$f":"'Trial 8'!BR10","v":{"v":1137434.690623603,"d":"$1,137,435"}},{"$f":"'Trial 8'!BS10","v":{"v":1137090.030757521,"d":"$1,137,090"}},{"$f":"'Trial 8'!BT10","v":{"v":1136659.3579094221,"d":"$1,136,659"}},{"$f":"'Trial 8'!BU10","v":{"v":1136190.5944114418,"d":"$1,136,191"}},{"$f":"'Trial 8'!BV10","v":{"v":1135752.6144592708,"d":"$1,135,753"}},{"$f":"'Trial 8'!BW10","v":{"v":1135378.5990411092,"d":"$1,135,379"}},{"$f":"'Trial 8'!BX10","v":{"v":1134970.3873132698,"d":"$1,134,970"}},{"$f":"'Trial 8'!BY10","v":{"v":1134560.244012334,"d":"$1,134,560"}},{"$f":"'Trial 8'!BZ10","v":{"v":1134067.3047186194,"d":"$1,134,067"}},{"$f":"'Trial 8'!CB10","v":{"v":1133498.0185770732,"d":"$1,133,498"}},{"$f":"'Trial 8'!CC10","v":{"v":1132994.093546208,"d":"$1,132,994"}},{"$f":"'Trial 8'!CD10","v":{"v":1132526.3222611716,"d":"$1,132,526"}},{"$f":"'Trial 8'!CE10","v":{"v":1131977.0051035308,"d":"$1,131,977"}},{"$f":"'Trial 8'!CF10","v":{"v":1131524.329730662,"d":"$1,131,524"}},{"$f":"'Trial 8'!CG10","v":{"v":1131042.4692434566,"d":"$1,131,042"}},{"$f":"'Trial 8'!CH10","v":{"v":1130703.7811075912,"d":"$1,130,704"}},{"$f":"'Trial 8'!CI10","v":{"v":1130239.233500689,"d":"$1,130,239"}},{"$f":"'Trial 8'!CJ10","v":{"v":1129718.8766159432,"d":"$1,129,719"}},{"$f":"'Trial 8'!CK10","v":{"v":1129291.0195104827,"d":"$1,129,291"}},{"$f":"'Trial 8'!CL10","v":{"v":1128886.6506754141,"d":"$1,128,887"}},{"$f":"'Trial 8'!CM10","v":{"v":1128341.4159569666,"d":"$1,128,341"}},{"$f":"'Trial 8'!CO10","v":{"v":1127965.3747043647,"d":"$1,127,965"}},{"$f":"'Trial 8'!CP10","v":{"v":1127593.0850060964,"d":"$1,127,593"}},{"$f":"'Trial 8'!CQ10","v":{"v":1127142.0259540188,"d":"$1,127,142"}},{"$f":"'Trial 8'!CR10","v":{"v":1126720.8340438637,"d":"$1,126,721"}},{"$f":"'Trial 8'!CS10","v":{"v":1126292.9835285053,"d":"$1,126,293"}},{"$f":"'Trial 8'!CT10","v":{"v":1125677.8049884809,"d":"$1,125,678"}},{"$f":"'Trial 8'!CU10","v":{"v":1125198.6804121796,"d":"$1,125,199"}},{"$f":"'Trial 8'!CV10","v":{"v":1124808.4971283146,"d":"$1,124,808"}},{"$f":"'Trial 8'!CW10","v":{"v":1124338.9650557314,"d":"$1,124,339"}},{"$f":"'Trial 8'!CX10","v":{"v":1123736.7025036528,"d":"$1,123,737"}},{"$f":"'Trial 8'!CY10","v":{"v":1123354.8112018812,"d":"$1,123,355"}},{"$f":"'Trial 8'!CZ10","v":{"v":1123023.689370043,"d":"$1,123,024"}},{"$f":"'Trial 8'!DB10","v":{"v":1122496.6016938891,"d":"$1,122,497"}},{"$f":"'Trial 8'!DC10","v":{"v":1122164.2175399754,"d":"$1,122,164"}},{"$f":"'Trial 8'!DD10","v":{"v":1121648.4513345966,"d":"$1,121,648"}},{"$f":"'Trial 8'!DE10","v":{"v":1121099.8232858514,"d":"$1,121,100"}},{"$f":"'Trial 8'!DF10","v":{"v":1120606.664519574,"d":"$1,120,607"}},{"$f":"'Trial 8'!DG10","v":{"v":1120144.1054758134,"d":"$1,120,144"}},{"$f":"'Trial 8'!DH10","v":{"v":1119630.4757336618,"d":"$1,119,630"}},{"$f":"'Trial 8'!DI10","v":{"v":1119150.5448607416,"d":"$1,119,151"}},{"$f":"'Trial 8'!DJ10","v":{"v":1118596.3883119158,"d":"$1,118,596"}},{"$f":"'Trial 8'!DK10","v":{"v":1118253.7492299057,"d":"$1,118,254"}},{"$f":"'Trial 8'!DL10","v":{"v":1117752.0643406892,"d":"$1,117,752"}},{"$f":"'Trial 8'!DM10","v":{"v":1117394.7704325614,"d":"$1,117,395"}},{"$f":"'Trial 8'!DO10","v":{"v":1116906.8179900874,"d":"$1,116,907"}},{"$f":"'Trial 8'!DP10","v":{"v":1116331.1199178356,"d":"$1,116,331"}},{"$f":"'Trial 8'!DQ10","v":{"v":1115782.1235157787,"d":"$1,115,782"}},{"$f":"'Trial 8'!DR10","v":{"v":1115433.8872513755,"d":"$1,115,434"}},{"$f":"'Trial 8'!DS10","v":{"v":1115063.3838565447,"d":"$1,115,063"}},{"$f":"'Trial 8'!DT10","v":{"v":1114563.8683779652,"d":"$1,114,564"}},{"$f":"'Trial 8'!DU10","v":{"v":1114193.6411404975,"d":"$1,114,194"}},{"$f":"'Trial 8'!DV10","v":{"v":1113811.7031240852,"d":"$1,113,812"}},{"$f":"'Trial 8'!DW10","v":{"v":1113356.6077677682,"d":"$1,113,357"}},{"$f":"'Trial 8'!DX10","v":{"v":1112933.4879585458,"d":"$1,112,933"}},{"$f":"'Trial 8'!DY10","v":{"v":1112366.698583183,"d":"$1,112,367"}},{"$f":"'Trial 8'!DZ10","v":{"v":1111928.7193588966,"d":"$1,111,929"}},{"$f":"'Trial 8'!EB10","v":{"v":1111462.7379295584,"d":"$1,111,463"}},{"$f":"'Trial 8'!EC10","v":{"v":1110885.5897292465,"d":"$1,110,886"}},{"$f":"'Trial 8'!ED10","v":{"v":1110316.3939128064,"d":"$1,110,316"}},{"$f":"'Trial 8'!EE10","v":{"v":1109892.0097115969,"d":"$1,109,892"}},{"$f":"'Trial 8'!EF10","v":{"v":1109383.758592251,"d":"$1,109,384"}},{"$f":"'Trial 8'!EG10","v":{"v":1108862.2618495137,"d":"$1,108,862"}},{"$f":"'Trial 8'!EH10","v":{"v":1108402.6468968845,"d":"$1,108,403"}},{"$f":"'Trial 8'!EI10","v":{"v":1108027.9241666603,"d":"$1,108,028"}},{"$f":"'Trial 8'!EJ10","v":{"v":1107499.8037538067,"d":"$1,107,500"}},{"$f":"'Trial 8'!EK10","v":{"v":1107042.6984188044,"d":"$1,107,043"}},{"$f":"'Trial 8'!EL10","v":{"v":1106466.585910553,"d":"$1,106,467"}},{"$f":"'Trial 8'!EM10","v":{"v":1105941.5621010214,"d":"$1,105,942"}}]
[{"$f":"'(Other Computations)'!B188","v":{"v":9333333.333333334,"d":"$9,333,333"}},{"$f":"'(Other Computations)'!C188","v":{"v":9329074.398387488,"d":"$9,329,074"}},{"$f":"'(Other Computations)'!D188","v":{"v":9325091.644260067,"d":"$9,325,092"}},{"$f":"'(Other Computations)'!E188","v":{"v":9321466.447535116,"d":"$9,321,466"}},{"$f":"'(Other Computations)'!F188","v":{"v":9317987.316431146,"d":"$9,317,987"}},{"$f":"'(Other Computations)'!G188","v":{"v":9314697.044163685,"d":"$9,314,697"}},{"$f":"'(Other Computations)'!H188","v":{"v":9311157.440352658,"d":"$9,311,157"}},{"$f":"'(Other Computations)'!I188","v":{"v":9307280.317072984,"d":"$9,307,280"}},{"$f":"'(Other Computations)'!J188","v":{"v":9303563.964956602,"d":"$9,303,564"}},{"$f":"'(Other Computations)'!K188","v":{"v":9299875.442832015,"d":"$9,299,875"}},{"$f":"'(Other Computations)'!L188","v":{"v":9296189.34998269,"d":"$9,296,189"}},{"$f":"'(Other Computations)'!M188","v":{"v":9292465.171843011,"d":"$9,292,465"}},{"$f":"'(Other Computations)'!O188","v":{"v":9288629.460900135,"d":"$9,288,629"}},{"$f":"'(Other Computations)'!P188","v":{"v":9285007.8897162,"d":"$9,285,008"}},{"$f":"'(Other Computations)'!Q188","v":{"v":9281325.288538644,"d":"$9,281,325"}},{"$f":"'(Other Computations)'!R188","v":{"v":9277726.095039096,"d":"$9,277,726"}},{"$f":"'(Other Computations)'!S188","v":{"v":9274212.253527187,"d":"$9,274,212"}},{"$f":"'(Other Computations)'!T188","v":{"v":9269980.170796396,"d":"$9,269,980"}},{"$f":"'(Other Computations)'!U188","v":{"v":9266360.47767356,"d":"$9,266,360"}},{"$f":"'(Other Computations)'!V188","v":{"v":9262311.912085233,"d":"$9,262,312"}},{"$f":"'(Other Computations)'!W188","v":{"v":9258315.487638246,"d":"$9,258,315"}},{"$f":"'(Other Computations)'!X188","v":{"v":9254825.037312455,"d":"$9,254,825"}},{"$f":"'(Other Computations)'!Y188","v":{"v":9250930.76328845,"d":"$9,250,931"}},{"$f":"'(Other Computations)'!Z188","v":{"v":9247073.252450775,"d":"$9,247,073"}},{"$f":"'(Other Computations)'!AB188","v":{"v":9242810.009527454,"d":"$9,242,810"}},{"$f":"'(Other Computations)'!AC188","v":{"v":9239016.994412646,"d":"$9,239,017"}},{"$f":"'(Other Computations)'!AD188","v":{"v":9235405.557386324,"d":"$9,235,406"}},{"$f":"'(Other Computations)'!AE188","v":{"v":9231661.962461205,"d":"$9,231,662"}},{"$f":"'(Other Computations)'!AF188","v":{"v":9227859.664438225,"d":"$9,227,860"}},{"$f":"'(Other Computations)'!AG188","v":{"v":9223757.40221554,"d":"$9,223,757"}},{"$f":"'(Other Computations)'!AH188","v":{"v":9220074.363220178,"d":"$9,220,074"}},{"$f":"'(Other Computations)'!AI188","v":{"v":9216563.877097491,"d":"$9,216,564"}},{"$f":"'(Other Computations)'!AJ188","v":{"v":9212439.711385105,"d":"$9,212,440"}},{"$f":"'(Other Computations)'!AK188","v":{"v":9208687.29711806,"d":"$9,208,687"}},{"$f":"'(Other Computations)'!AL188","v":{"v":9205019.089915643,"d":"$9,205,019"}},{"$f":"'(Other Computations)'!AM188","v":{"v":9201418.715133976,"d":"$9,201,419"}},{"$f":"'(Other Computations)'!AO188","v":{"v":9197428.756921723,"d":"$9,197,429"}},{"$f":"'(Other Computations)'!AP188","v":{"v":9193648.88067886,"d":"$9,193,649"}},{"$f":"'(Other Computations)'!AQ188","v":{"v":9190104.652821716,"d":"$9,190,105"}},{"$f":"'(Other Computations)'!AR188","v":{"v":9186129.446526563,"d":"$9,186,129"}},{"$f":"'(Other Computations)'!AS188","v":{"v":9182303.677202746,"d":"$9,182,304"}},{"$f":"'(Other Computations)'!AT188","v":{"v":9178724.443406489,"d":"$9,178,724"}},{"$f":"'(Other Computations)'!AU188","v":{"v":9174902.879439384,"d":"$9,174,903"}},{"$f":"'(Other Computations)'!AV188","v":{"v":9171012.04212008,"d":"$9,171,012"}},{"$f":"'(Other Computations)'!AW188","v":{"v":9167237.21096529,"d":"$9,167,237"}},{"$f":"'(Other Computations)'!AX188","v":{"v":9163194.922485845,"d":"$9,163,195"}},{"$f":"'(Other Computations)'!AY188","v":{"v":9159311.065344073,"d":"$9,159,311"}},{"$f":"'(Other Computations)'!AZ188","v":{"v":9155542.156329555,"d":"$9,155,542"}},{"$f":"'(Other Computations)'!BB188","v":{"v":9151433.6483858,"d":"$9,151,434"}},{"$f":"'(Other Computations)'!BC188","v":{"v":9147368.128674982,"d":"$9,147,368"}},{"$f":"'(Other Computations)'!BD188","v":{"v":9143485.837021852,"d":"$9,143,486"}},{"$f":"'(Other Computations)'!BE188","v":{"v":9139682.803720772,"d":"$9,139,683"}},{"$f":"'(Other Computations)'!BF188","v":{"v":9135806.080286203,"d":"$9,135,806"}},{"$f":"'(Other Computations)'!BG188","v":{"v":9132088.632420536,"d":"$9,132,089"}},{"$f":"'(Other Computations)'!BH188","v":{"v":9128371.322711667,"d":"$9,128,371"}},{"$f":"'(Other Computations)'!BI188","v":{"v":9124284.549411856,"d":"$9,124,285"}},{"$f":"'(Other Computations)'!BJ188","v":{"v":9120350.521198979,"d":"$9,120,351"}},{"$f":"'(Other Computations)'!BK188","v":{"v":9116673.288241586,"d":"$9,116,673"}},{"$f":"'(Other Computations)'!BL188","v":{"v":9112789.945947034,"d":"$9,112,790"}},{"$f":"'(Other Computations)'!BM188","v":{"v":9109119.644932082,"d":"$9,109,120"}},{"$f":"'(Other Computations)'!BO188","v":{"v":9105271.686523002,"d":"$9,105,272"}},{"$f":"'(Other Computations)'!BP188","v":{"v":9101404.317019654,"d":"$9,101,404"}},{"$f":"'(Other Computations)'!BQ188","v":{"v":9097655.40501121,"d":"$9,097,655"}},{"$f":"'(Other Computations)'!BR188","v":{"v":9094102.790249445,"d":"$9,094,103"}},{"$f":"'(Other Computations)'!BS188","v":{"v":9090487.534547474,"d":"$9,090,488"}},{"$f":"'(Other Computations)'!BT188","v":{"v":9086559.894097188,"d":"$9,086,560"}},{"$f":"'(Other Computations)'!BU188","v":{"v":9083106.260460502,"d":"$9,083,106"}},{"$f":"'(Other Computations)'!BV188","v":{"v":9079151.89558132,"d":"$9,079,152"}},{"$f":"'(Other Computations)'!BW188","v":{"v":9075318.566734126,"d":"$9,075,319"}},{"$f":"'(Other Computations)'!BX188","v":{"v":9071795.584134376,"d":"$9,071,796"}},{"$f":"'(Other Computations)'!BY188","v":{"v":9067825.56983521,"d":"$9,067,826"}},{"$f":"'(Other Computations)'!BZ188","v":{"v":9064256.05251625,"d":"$9,064,256"}},{"$f":"'(Other Computations)'!CB188","v":{"v":9060487.985614775,"d":"$9,060,488"}},{"$f":"'(Other Computations)'!CC188","v":{"v":9056660.956501594,"d":"$9,056,661"}},{"$f":"'(Other Computations)'!CD188","v":{"v":9052793.744416583,"d":"$9,052,794"}},{"$f":"'(Other Computations)'!CE188","v":{"v":9049142.66691605,"d":"$9,049,143"}},{"$f":"'(Other Computations)'!CF188","v":{"v":9045164.30156501,"d":"$9,045,164"}},{"$f":"'(Other Computations)'!CG188","v":{"v":9041355.50886188,"d":"$9,041,356"}},{"$f":"'(Other Computations)'!CH188","v":{"v":9038089.872640852,"d":"$9,038,090"}},{"$f":"'(Other Computations)'!CI188","v":{"v":9034384.105467785,"d":"$9,034,384"}},{"$f":"'(Other Computations)'!CJ188","v":{"v":9030786.004212318,"d":"$9,030,786"}},{"$f":"'(Other Computations)'!CK188","v":{"v":9027111.697642822,"d":"$9,027,112"}},{"$f":"'(Other Computations)'!CL188","v":{"v":9023690.716260694,"d":"$9,023,691"}},{"$f":"'(Other Computations)'!CM188","v":{"v":9019881.871101338,"d":"$9,019,882"}},{"$f":"'(Other Computations)'!CO188","v":{"v":9016419.085307848,"d":"$9,016,419"}},{"$f":"'(Other Computations)'!CP188","v":{"v":9012798.535792537,"d":"$9,012,799"}},{"$f":"'(Other Computations)'!CQ188","v":{"v":9009192.606853217,"d":"$9,009,193"}},{"$f":"'(Other Computations)'!CR188","v":{"v":9005559.324731398,"d":"$9,005,559"}},{"$f":"'(Other Computations)'!CS188","v":{"v":9001820.106243223,"d":"$9,001,820"}},{"$f":"'(Other Computations)'!CT188","v":{"v":8997670.178744283,"d":"$8,997,670"}},{"$f":"'(Other Computations)'!CU188","v":{"v":8993713.320845107,"d":"$8,993,713"}},{"$f":"'(Other Computations)'!CV188","v":{"v":8990391.592655523,"d":"$8,990,392"}},{"$f":"'(Other Computations)'!CW188","v":{"v":8986563.245251905,"d":"$8,986,563"}},{"$f":"'(Other Computations)'!CX188","v":{"v":8982772.506500367,"d":"$8,982,773"}},{"$f":"'(Other Computations)'!CY188","v":{"v":8978903.810925378,"d":"$8,978,904"}},{"$f":"'(Other Computations)'!CZ188","v":{"v":8975283.375078334,"d":"$8,975,283"}},{"$f":"'(Other Computations)'!DB188","v":{"v":8971447.4542442,"d":"$8,971,447"}},{"$f":"'(Other Computations)'!DC188","v":{"v":8967870.056249216,"d":"$8,967,870"}},{"$f":"'(Other Computations)'!DD188","v":{"v":8963893.329884563,"d":"$8,963,893"}},{"$f":"'(Other Computations)'!DE188","v":{"v":8960049.028608445,"d":"$8,960,049"}},{"$f":"'(Other Computations)'!DF188","v":{"v":8956426.22438241,"d":"$8,956,426"}},{"$f":"'(Other Computations)'!DG188","v":{"v":8952668.661987023,"d":"$8,952,669"}},{"$f":"'(Other Computations)'!DH188","v":{"v":8948852.220542582,"d":"$8,948,852"}},{"$f":"'(Other Computations)'!DI188","v":{"v":8944996.243423225,"d":"$8,944,996"}},{"$f":"'(Other Computations)'!DJ188","v":{"v":8941080.900644809,"d":"$8,941,081"}},{"$f":"'(Other Computations)'!DK188","v":{"v":8937327.384997204,"d":"$8,937,327"}},{"$f":"'(Other Computations)'!DL188","v":{"v":8933531.420892559,"d":"$8,933,531"}},{"$f":"'(Other Computations)'!DM188","v":{"v":8929601.031741137,"d":"$8,929,601"}},{"$f":"'(Other Computations)'!DO188","v":{"v":8925728.419920592,"d":"$8,925,728"}},{"$f":"'(Other Computations)'!DP188","v":{"v":8922160.061714701,"d":"$8,922,160"}},{"$f":"'(Other Computations)'!DQ188","v":{"v":8918297.492200688,"d":"$8,918,297"}},{"$f":"'(Other Computations)'!DR188","v":{"v":8914822.721571654,"d":"$8,914,823"}},{"$f":"'(Other Computations)'!DS188","v":{"v":8911119.348845817,"d":"$8,911,119"}},{"$f":"'(Other Computations)'!DT188","v":{"v":8907386.049225597,"d":"$8,907,386"}},{"$f":"'(Other Computations)'!DU188","v":{"v":8903894.419913583,"d":"$8,903,894"}},{"$f":"'(Other Computations)'!DV188","v":{"v":8900245.243097095,"d":"$8,900,245"}},{"$f":"'(Other Computations)'!DW188","v":{"v":8896667.456664633,"d":"$8,896,667"}},{"$f":"'(Other Computations)'!DX188","v":{"v":8892986.921705354,"d":"$8,892,987"}},{"$f":"'(Other Computations)'!DY188","v":{"v":8889268.58930894,"d":"$8,889,269"}},{"$f":"'(Other Computations)'!DZ188","v":{"v":8885572.796056895,"d":"$8,885,573"}},{"$f":"'(Other Computations)'!EB188","v":{"v":8881562.19098809,"d":"$8,881,562"}},{"$f":"'(Other Computations)'!EC188","v":{"v":8877952.136797944,"d":"$8,877,952"}},{"$f":"'(Other Computations)'!ED188","v":{"v":8873975.350069076,"d":"$8,873,975"}},{"$f":"'(Other Computations)'!EE188","v":{"v":8870111.5124358,"d":"$8,870,112"}},{"$f":"'(Other Computations)'!EF188","v":{"v":8866418.736952122,"d":"$8,866,419"}},{"$f":"'(Other Computations)'!EG188","v":{"v":8862759.928836226,"d":"$8,862,760"}},{"$f":"'(Other Computations)'!EH188","v":{"v":8858848.074729403,"d":"$8,858,848"}},{"$f":"'(Other Computations)'!EI188","v":{"v":8855014.998711912,"d":"$8,855,015"}},{"$f":"'(Other Computations)'!EJ188","v":{"v":8850839.337409405,"d":"$8,850,839"}},{"$f":"'(Other Computations)'!EK188","v":{"v":8847013.588658901,"d":"$8,847,014"}},{"$f":"'(Other Computations)'!EL188","v":{"v":8843393.243030641,"d":"$8,843,393"}},{"$f":"'(Other Computations)'!EM188","v":{"v":8839524.062896278,"d":"$8,839,524"}}]
[{"$f":"'(Intermediate Computations)'!B89","v":"Jan 2010"},{"$f":"'(Intermediate Computations)'!C89","v":"Feb 2010"},{"$f":"'(Intermediate Computations)'!D89","v":"Mar 2010"},{"$f":"'(Intermediate Computations)'!E89","v":"Apr 2010"},{"$f":"'(Intermediate Computations)'!F89","v":"May 2010"},{"$f":"'(Intermediate Computations)'!G89","v":"Jun 2010"},{"$f":"'(Intermediate Computations)'!H89","v":"Jul 2010"},{"$f":"'(Intermediate Computations)'!I89","v":"Aug 2010"},{"$f":"'(Intermediate Computations)'!J89","v":"Sep 2010"},{"$f":"'(Intermediate Computations)'!K89","v":"Oct 2010"},{"$f":"'(Intermediate Computations)'!L89","v":"Nov 2010"},{"$f":"'(Intermediate Computations)'!M89","v":"Dec 2010"},{"$f":"'(Intermediate Computations)'!O89","v":"Jan 2011"},{"$f":"'(Intermediate Computations)'!P89","v":"Feb 2011"},{"$f":"'(Intermediate Computations)'!Q89","v":"Mar 2011"},{"$f":"'(Intermediate Computations)'!R89","v":"Apr 2011"},{"$f":"'(Intermediate Computations)'!S89","v":"May 2011"},{"$f":"'(Intermediate Computations)'!T89","v":"Jun 2011"},{"$f":"'(Intermediate Computations)'!U89","v":"Jul 2011"},{"$f":"'(Intermediate Computations)'!V89","v":"Aug 2011"},{"$f":"'(Intermediate Computations)'!W89","v":"Sep 2011"},{"$f":"'(Intermediate Computations)'!X89","v":"Oct 2011"},{"$f":"'(Intermediate Computations)'!Y89","v":"Nov 2011"},{"$f":"'(Intermediate Computations)'!Z89","v":"Dec 2011"},{"$f":"'(Intermediate Computations)'!AB89","v":"Jan 2012"},{"$f":"'(Intermediate Computations)'!AC89","v":"Feb 2012"},{"$f":"'(Intermediate Computations)'!AD89","v":"Mar 2012"},{"$f":"'(Intermediate Computations)'!AE89","v":"Apr 2012"},{"$f":"'(Intermediate Computations)'!AF89","v":"May 2012"},{"$f":"'(Intermediate Computations)'!AG89","v":"Jun 2012"},{"$f":"'(Intermediate Computations)'!AH89","v":"Jul 2012"},{"$f":"'(Intermediate Computations)'!AI89","v":"Aug 2012"},{"$f":"'(Intermediate Computations)'!AJ89","v":"Sep 2012"},{"$f":"'(Intermediate Computations)'!AK89","v":"Oct 2012"},{"$f":"'(Intermediate Computations)'!AL89","v":"Nov 2012"},{"$f":"'(Intermediate Computations)'!AM89","v":"Dec 2012"},{"$f":"'(Intermediate Computations)'!AO89","v":"Jan 2013"},{"$f":"'(Intermediate Computations)'!AP89","v":"Feb 2013"},{"$f":"'(Intermediate Computations)'!AQ89","v":"Mar 2013"},{"$f":"'(Intermediate Computations)'!AR89","v":"Apr 2013"},{"$f":"'(Intermediate Computations)'!AS89","v":"May 2013"},{"$f":"'(Intermediate Computations)'!AT89","v":"Jun 2013"},{"$f":"'(Intermediate Computations)'!AU89","v":"Jul 2013"},{"$f":"'(Intermediate Computations)'!AV89","v":"Aug 2013"},{"$f":"'(Intermediate Computations)'!AW89","v":"Sep 2013"},{"$f":"'(Intermediate Computations)'!AX89","v":"Oct 2013"},{"$f":"'(Intermediate Computations)'!AY89","v":"Nov 2013"},{"$f":"'(Intermediate Computations)'!AZ89","v":"Dec 2013"},{"$f":"'(Intermediate Computations)'!BB89","v":"Jan 2014"},{"$f":"'(Intermediate Computations)'!BC89","v":"Feb 2014"},{"$f":"'(Intermediate Computations)'!BD89","v":"Mar 2014"},{"$f":"'(Intermediate Computations)'!BE89","v":"Apr 2014"},{"$f":"'(Intermediate Computations)'!BF89","v":"May 2014"},{"$f":"'(Intermediate Computations)'!BG89","v":"Jun 2014"},{"$f":"'(Intermediate Computations)'!BH89","v":"Jul 2014"},{"$f":"'(Intermediate Computations)'!BI89","v":"Aug 2014"},{"$f":"'(Intermediate Computations)'!BJ89","v":"Sep 2014"},{"$f":"'(Intermediate Computations)'!BK89","v":"Oct 2014"},{"$f":"'(Intermediate Computations)'!BL89","v":"Nov 2014"},{"$f":"'(Intermediate Computations)'!BM89","v":"Dec 2014"},{"$f":"'(Intermediate Computations)'!BO89","v":"Jan 2015"},{"$f":"'(Intermediate Computations)'!BP89","v":"Feb 2015"},{"$f":"'(Intermediate Computations)'!BQ89","v":"Mar 2015"},{"$f":"'(Intermediate Computations)'!BR89","v":"Apr 2015"},{"$f":"'(Intermediate Computations)'!BS89","v":"May 2015"},{"$f":"'(Intermediate Computations)'!BT89","v":"Jun 2015"},{"$f":"'(Intermediate Computations)'!BU89","v":"Jul 2015"},{"$f":"'(Intermediate Computations)'!BV89","v":"Aug 2015"},{"$f":"'(Intermediate Computations)'!BW89","v":"Sep 2015"},{"$f":"'(Intermediate Computations)'!BX89","v":"Oct 2015"},{"$f":"'(Intermediate Computations)'!BY89","v":"Nov 2015"},{"$f":"'(Intermediate Computations)'!BZ89","v":"Dec 2015"},{"$f":"'(Intermediate Computations)'!CB89","v":"Jan 2016"},{"$f":"'(Intermediate Computations)'!CC89","v":"Feb 2016"},{"$f":"'(Intermediate Computations)'!CD89","v":"Mar 2016"},{"$f":"'(Intermediate Computations)'!CE89","v":"Apr 2016"},{"$f":"'(Intermediate Computations)'!CF89","v":"May 2016"},{"$f":"'(Intermediate Computations)'!CG89","v":"Jun 2016"},{"$f":"'(Intermediate Computations)'!CH89","v":"Jul 2016"},{"$f":"'(Intermediate Computations)'!CI89","v":"Aug 2016"},{"$f":"'(Intermediate Computations)'!CJ89","v":"Sep 2016"},{"$f":"'(Intermediate Computations)'!CK89","v":"Oct 2016"},{"$f":"'(Intermediate Computations)'!CL89","v":"Nov 2016"},{"$f":"'(Intermediate Computations)'!CM89","v":"Dec 2016"},{"$f":"'(Intermediate Computations)'!CO89","v":"Jan 2017"},{"$f":"'(Intermediate Computations)'!CP89","v":"Feb 2017"},{"$f":"'(Intermediate Computations)'!CQ89","v":"Mar 2017"},{"$f":"'(Intermediate Computations)'!CR89","v":"Apr 2017"},{"$f":"'(Intermediate Computations)'!CS89","v":"May 2017"},{"$f":"'(Intermediate Computations)'!CT89","v":"Jun 2017"},{"$f":"'(Intermediate Computations)'!CU89","v":"Jul 2017"},{"$f":"'(Intermediate Computations)'!CV89","v":"Aug 2017"},{"$f":"'(Intermediate Computations)'!CW89","v":"Sep 2017"},{"$f":"'(Intermediate Computations)'!CX89","v":"Oct 2017"},{"$f":"'(Intermediate Computations)'!CY89","v":"Nov 2017"},{"$f":"'(Intermediate Computations)'!CZ89","v":"Dec 2017"},{"$f":"'(Intermediate Computations)'!DB89","v":"Jan 2018"},{"$f":"'(Intermediate Computations)'!DC89","v":"Feb 2018"},{"$f":"'(Intermediate Computations)'!DD89","v":"Mar 2018"},{"$f":"'(Intermediate Computations)'!DE89","v":"Apr 2018"},{"$f":"'(Intermediate Computations)'!DF89","v":"May 2018"},{"$f":"'(Intermediate Computations)'!DG89","v":"Jun 2018"},{"$f":"'(Intermediate Computations)'!DH89","v":"Jul 2018"},{"$f":"'(Intermediate Computations)'!DI89","v":"Aug 2018"},{"$f":"'(Intermediate Computations)'!DJ89","v":"Sep 2018"},{"$f":"'(Intermediate Computations)'!DK89","v":"Oct 2018"},{"$f":"'(Intermediate Computations)'!DL89","v":"Nov 2018"},{"$f":"'(Intermediate Computations)'!DM89","v":"Dec 2018"},{"$f":"'(Intermediate Computations)'!DO89","v":"Jan 2019"},{"$f":"'(Intermediate Computations)'!DP89","v":"Feb 2019"},{"$f":"'(Intermediate Computations)'!DQ89","v":"Mar 2019"},{"$f":"'(Intermediate Computations)'!DR89","v":"Apr 2019"},{"$f":"'(Intermediate Computations)'!DS89","v":"May 2019"},{"$f":"'(Intermediate Computations)'!DT89","v":"Jun 2019"},{"$f":"'(Intermediate Computations)'!DU89","v":"Jul 2019"},{"$f":"'(Intermediate Computations)'!DV89","v":"Aug 2019"},{"$f":"'(Intermediate Computations)'!DW89","v":"Sep 2019"},{"$f":"'(Intermediate Computations)'!DX89","v":"Oct 2019"},{"$f":"'(Intermediate Computations)'!DY89","v":"Nov 2019"},{"$f":"'(Intermediate Computations)'!DZ89","v":"Dec 2019"},{"$f":"'(Intermediate Computations)'!EB89","v":"Jan 2020"},{"$f":"'(Intermediate Computations)'!EC89","v":"Feb 2020"},{"$f":"'(Intermediate Computations)'!ED89","v":"Mar 2020"},{"$f":"'(Intermediate Computations)'!EE89","v":"Apr 2020"},{"$f":"'(Intermediate Computations)'!EF89","v":"May 2020"},{"$f":"'(Intermediate Computations)'!EG89","v":"Jun 2020"},{"$f":"'(Intermediate Computations)'!EH89","v":"Jul 2020"},{"$f":"'(Intermediate Computations)'!EI89","v":"Aug 2020"},{"$f":"'(Intermediate Computations)'!EJ89","v":"Sep 2020"},{"$f":"'(Intermediate Computations)'!EK89","v":"Oct 2020"},{"$f":"'(Intermediate Computations)'!EL89","v":"Nov 2020"},{"$f":"'(Intermediate Computations)'!EM89","v":"Dec 2020"}]
[{"$f":"'(Intermediate Computations)'!B86","v":"2010-01-01"},{"$f":"'(Intermediate Computations)'!C86","v":"2010-02-01"},{"$f":"'(Intermediate Computations)'!D86","v":"2010-03-01"},{"$f":"'(Intermediate Computations)'!E86","v":"2010-04-01"},{"$f":"'(Intermediate Computations)'!F86","v":"2010-05-01"},{"$f":"'(Intermediate Computations)'!G86","v":"2010-06-01"},{"$f":"'(Intermediate Computations)'!H86","v":"2010-07-01"},{"$f":"'(Intermediate Computations)'!I86","v":"2010-08-01"},{"$f":"'(Intermediate Computations)'!J86","v":"2010-09-01"},{"$f":"'(Intermediate Computations)'!K86","v":"2010-10-01"},{"$f":"'(Intermediate Computations)'!L86","v":"2010-11-01"},{"$f":"'(Intermediate Computations)'!M86","v":"2010-12-01"},{"$f":"'(Intermediate Computations)'!O86","v":"2011-01-01"},{"$f":"'(Intermediate Computations)'!P86","v":"2011-02-01"},{"$f":"'(Intermediate Computations)'!Q86","v":"2011-03-01"},{"$f":"'(Intermediate Computations)'!R86","v":"2011-04-01"},{"$f":"'(Intermediate Computations)'!S86","v":"2011-05-01"},{"$f":"'(Intermediate Computations)'!T86","v":"2011-06-01"},{"$f":"'(Intermediate Computations)'!U86","v":"2011-07-01"},{"$f":"'(Intermediate Computations)'!V86","v":"2011-08-01"},{"$f":"'(Intermediate Computations)'!W86","v":"2011-09-01"},{"$f":"'(Intermediate Computations)'!X86","v":"2011-10-01"},{"$f":"'(Intermediate Computations)'!Y86","v":"2011-11-01"},{"$f":"'(Intermediate Computations)'!Z86","v":"2011-12-01"},{"$f":"'(Intermediate Computations)'!AB86","v":"2012-01-01"},{"$f":"'(Intermediate Computations)'!AC86","v":"2012-02-01"},{"$f":"'(Intermediate Computations)'!AD86","v":"2012-03-01"},{"$f":"'(Intermediate Computations)'!AE86","v":"2012-04-01"},{"$f":"'(Intermediate Computations)'!AF86","v":"2012-05-01"},{"$f":"'(Intermediate Computations)'!AG86","v":"2012-06-01"},{"$f":"'(Intermediate Computations)'!AH86","v":"2012-07-01"},{"$f":"'(Intermediate Computations)'!AI86","v":"2012-08-01"},{"$f":"'(Intermediate Computations)'!AJ86","v":"2012-09-01"},{"$f":"'(Intermediate Computations)'!AK86","v":"2012-10-01"},{"$f":"'(Intermediate Computations)'!AL86","v":"2012-11-01"},{"$f":"'(Intermediate Computations)'!AM86","v":"2012-12-01"},{"$f":"'(Intermediate Computations)'!AO86","v":"2013-01-01"},{"$f":"'(Intermediate Computations)'!AP86","v":"2013-02-01"},{"$f":"'(Intermediate Computations)'!AQ86","v":"2013-03-01"},{"$f":"'(Intermediate Computations)'!AR86","v":"2013-04-01"},{"$f":"'(Intermediate Computations)'!AS86","v":"2013-05-01"},{"$f":"'(Intermediate Computations)'!AT86","v":"2013-06-01"},{"$f":"'(Intermediate Computations)'!AU86","v":"2013-07-01"},{"$f":"'(Intermediate Computations)'!AV86","v":"2013-08-01"},{"$f":"'(Intermediate Computations)'!AW86","v":"2013-09-01"},{"$f":"'(Intermediate Computations)'!AX86","v":"2013-10-01"},{"$f":"'(Intermediate Computations)'!AY86","v":"2013-11-01"},{"$f":"'(Intermediate Computations)'!AZ86","v":"2013-12-01"},{"$f":"'(Intermediate Computations)'!BB86","v":"2014-01-01"},{"$f":"'(Intermediate Computations)'!BC86","v":"2014-02-01"},{"$f":"'(Intermediate Computations)'!BD86","v":"2014-03-01"},{"$f":"'(Intermediate Computations)'!BE86","v":"2014-04-01"},{"$f":"'(Intermediate Computations)'!BF86","v":"2014-05-01"},{"$f":"'(Intermediate Computations)'!BG86","v":"2014-06-01"},{"$f":"'(Intermediate Computations)'!BH86","v":"2014-07-01"},{"$f":"'(Intermediate Computations)'!BI86","v":"2014-08-01"},{"$f":"'(Intermediate Computations)'!BJ86","v":"2014-09-01"},{"$f":"'(Intermediate Computations)'!BK86","v":"2014-10-01"},{"$f":"'(Intermediate Computations)'!BL86","v":"2014-11-01"},{"$f":"'(Intermediate Computations)'!BM86","v":"2014-12-01"},{"$f":"'(Intermediate Computations)'!BO86","v":"2015-01-01"},{"$f":"'(Intermediate Computations)'!BP86","v":"2015-02-01"},{"$f":"'(Intermediate Computations)'!BQ86","v":"2015-03-01"},{"$f":"'(Intermediate Computations)'!BR86","v":"2015-04-01"},{"$f":"'(Intermediate Computations)'!BS86","v":"2015-05-01"},{"$f":"'(Intermediate Computations)'!BT86","v":"2015-06-01"},{"$f":"'(Intermediate Computations)'!BU86","v":"2015-07-01"},{"$f":"'(Intermediate Computations)'!BV86","v":"2015-08-01"},{"$f":"'(Intermediate Computations)'!BW86","v":"2015-09-01"},{"$f":"'(Intermediate Computations)'!BX86","v":"2015-10-01"},{"$f":"'(Intermediate Computations)'!BY86","v":"2015-11-01"},{"$f":"'(Intermediate Computations)'!BZ86","v":"2015-12-01"},{"$f":"'(Intermediate Computations)'!CB86","v":"2016-01-01"},{"$f":"'(Intermediate Computations)'!CC86","v":"2016-02-01"},{"$f":"'(Intermediate Computations)'!CD86","v":"2016-03-01"},{"$f":"'(Intermediate Computations)'!CE86","v":"2016-04-01"},{"$f":"'(Intermediate Computations)'!CF86","v":"2016-05-01"},{"$f":"'(Intermediate Computations)'!CG86","v":"2016-06-01"},{"$f":"'(Intermediate Computations)'!CH86","v":"2016-07-01"},{"$f":"'(Intermediate Computations)'!CI86","v":"2016-08-01"},{"$f":"'(Intermediate Computations)'!CJ86","v":"2016-09-01"},{"$f":"'(Intermediate Computations)'!CK86","v":"2016-10-01"},{"$f":"'(Intermediate Computations)'!CL86","v":"2016-11-01"},{"$f":"'(Intermediate Computations)'!CM86","v":"2016-12-01"},{"$f":"'(Intermediate Computations)'!CO86","v":"2017-01-01"},{"$f":"'(Intermediate Computations)'!CP86","v":"2017-02-01"},{"$f":"'(Intermediate Computations)'!CQ86","v":"2017-03-01"},{"$f":"'(Intermediate Computations)'!CR86","v":"2017-04-01"},{"$f":"'(Intermediate Computations)'!CS86","v":"2017-05-01"},{"$f":"'(Intermediate Computations)'!CT86","v":"2017-06-01"},{"$f":"'(Intermediate Computations)'!CU86","v":"2017-07-01"},{"$f":"'(Intermediate Computations)'!CV86","v":"2017-08-01"},{"$f":"'(Intermediate Computations)'!CW86","v":"2017-09-01"},{"$f":"'(Intermediate Computations)'!CX86","v":"2017-10-01"},{"$f":"'(Intermediate Computations)'!CY86","v":"2017-11-01"},{"$f":"'(Intermediate Computations)'!CZ86","v":"2017-12-01"},{"$f":"'(Intermediate Computations)'!DB86","v":"2018-01-01"},{"$f":"'(Intermediate Computations)'!DC86","v":"2018-02-01"},{"$f":"'(Intermediate Computations)'!DD86","v":"2018-03-01"},{"$f":"'(Intermediate Computations)'!DE86","v":"2018-04-01"},{"$f":"'(Intermediate Computations)'!DF86","v":"2018-05-01"},{"$f":"'(Intermediate Computations)'!DG86","v":"2018-06-01"},{"$f":"'(Intermediate Computations)'!DH86","v":"2018-07-01"},{"$f":"'(Intermediate Computations)'!DI86","v":"2018-08-01"},{"$f":"'(Intermediate Computations)'!DJ86","v":"2018-09-01"},{"$f":"'(Intermediate Computations)'!DK86","v":"2018-10-01"},{"$f":"'(Intermediate Computations)'!DL86","v":"2018-11-01"},{"$f":"'(Intermediate Computations)'!DM86","v":"2018-12-01"},{"$f":"'(Intermediate Computations)'!DO86","v":"2019-01-01"},{"$f":"'(Intermediate Computations)'!DP86","v":"2019-02-01"},{"$f":"'(Intermediate Computations)'!DQ86","v":"2019-03-01"},{"$f":"'(Intermediate Computations)'!DR86","v":"2019-04-01"},{"$f":"'(Intermediate Computations)'!DS86","v":"2019-05-01"},{"$f":"'(Intermediate Computations)'!DT86","v":"2019-06-01"},{"$f":"'(Intermediate Computations)'!DU86","v":"2019-07-01"},{"$f":"'(Intermediate Computations)'!DV86","v":"2019-08-01"},{"$f":"'(Intermediate Computations)'!DW86","v":"2019-09-01"},{"$f":"'(Intermediate Computations)'!DX86","v":"2019-10-01"},{"$f":"'(Intermediate Computations)'!DY86","v":"2019-11-01"},{"$f":"'(Intermediate Computations)'!DZ86","v":"2019-12-01"},{"$f":"'(Intermediate Computations)'!EB86","v":"2020-01-01"},{"$f":"'(Intermediate Computations)'!EC86","v":"2020-02-01"},{"$f":"'(Intermediate Computations)'!ED86","v":"2020-03-01"},{"$f":"'(Intermediate Computations)'!EE86","v":"2020-04-01"},{"$f":"'(Intermediate Computations)'!EF86","v":"2020-05-01"},{"$f":"'(Intermediate Computations)'!EG86","v":"2020-06-01"},{"$f":"'(Intermediate Computations)'!EH86","v":"2020-07-01"},{"$f":"'(Intermediate Computations)'!EI86","v":"2020-08-01"},{"$f":"'(Intermediate Computations)'!EJ86","v":"2020-09-01"},{"$f":"'(Intermediate Computations)'!EK86","v":"2020-10-01"},{"$f":"'(Intermediate Computations)'!EL86","v":"2020-11-01"},{"$f":"'(Intermediate Computations)'!EM86","v":"2020-12-01"}]
[{"$f":"'Statistical Moments'!B13","v":{"v":20429.028223053818,"d":"$20,429"}},{"$f":"'Statistical Moments'!C13","v":{"v":33244.71720103393,"d":"$33,245"}},{"$f":"'Statistical Moments'!D13","v":{"v":24422.612546285975,"d":"$24,423"}},{"$f":"'Statistical Moments'!E13","v":{"v":36623.145504324515,"d":"$36,623"}},{"$f":"'Statistical Moments'!F13","v":{"v":24638.11245152905,"d":"$24,638"}},{"$f":"'Statistical Moments'!G13","v":{"v":31338.661293788537,"d":"$31,339"}},{"$f":"'Statistical Moments'!H13","v":{"v":20812.663980070494,"d":"$20,813"}},{"$f":"'Statistical Moments'!I13","v":{"v":29936.54931066537,"d":"$29,937"}},{"$f":"'Statistical Moments'!J13","v":{"v":32892.588031922765,"d":"$32,893"}},{"$f":"'Statistical Moments'!K13","v":{"v":27869.60294702979,"d":"$27,870"}},{"$f":"'Statistical Moments'!L13","v":{"v":34138.32915590337,"d":"$34,138"}},{"$f":"'Statistical Moments'!M13","v":{"v":25186.272946618436,"d":"$25,186"}},{"$f":"'Statistical Moments'!O13","v":{"v":24625.85207438102,"d":"$24,626"}},{"$f":"'Statistical Moments'!P13","v":{"v":21873.45104873955,"d":"$21,873"}},{"$f":"'Statistical Moments'!Q13","v":{"v":43037.24878740334,"d":"$43,037"}},{"$f":"'Statistical Moments'!R13","v":{"v":12789.569307650148,"d":"$12,790"}},{"$f":"'Statistical Moments'!S13","v":{"v":29166.14975431546,"d":"$29,166"}},{"$f":"'Statistical Moments'!T13","v":{"v":32950.11463908816,"d":"$32,950"}},{"$f":"'Statistical Moments'!U13","v":{"v":29599.764902240677,"d":"$29,600"}},{"$f":"'Statistical Moments'!V13","v":{"v":23740.754511396393,"d":"$23,741"}},{"$f":"'Statistical Moments'!W13","v":{"v":30698.272433168113,"d":"$30,698"}},{"$f":"'Statistical Moments'!X13","v":{"v":21541.038972194005,"d":"$21,541"}},{"$f":"'Statistical Moments'!Y13","v":{"v":44511.2769372796,"d":"$44,511"}},{"$f":"'Statistical Moments'!Z13","v":{"v":22609.196148019597,"d":"$22,609"}},{"$f":"'Statistical Moments'!AB13","v":{"v":27182.2052203406,"d":"$27,182"}},{"$f":"'Statistical Moments'!AC13","v":{"v":23957.795280104125,"d":"$23,958"}},{"$f":"'Statistical Moments'!AD13","v":{"v":29843.378573208465,"d":"$29,843"}},{"$f":"'Statistical Moments'!AE13","v":{"v":41098.04796596239,"d":"$41,098"}},{"$f":"'Statistical Moments'!AF13","v":{"v":30293.98740683914,"d":"$30,294"}},{"$f":"'Statistical Moments'!AG13","v":{"v":23263.433877028034,"d":"$23,263"}},{"$f":"'Statistical Moments'!AH13","v":{"v":8865.719461508537,"d":"$8,866"}},{"$f":"'Statistical Moments'!AI13","v":{"v":20158.688956548813,"d":"$20,159"}},{"$f":"'Statistical Moments'!AJ13","v":{"v":24295.891599861487,"d":"$24,296"}},{"$f":"'Statistical Moments'!AK13","v":{"v":21026.428478800197,"d":"$21,026"}},{"$f":"'Statistical Moments'!AL13","v":{"v":25594.7622838962,"d":"$25,595"}},{"$f":"'Statistical Moments'!AM13","v":{"v":36103.566203191134,"d":"$36,104"}},{"$f":"'Statistical Moments'!AO13","v":{"v":23585.26829048315,"d":"$23,585"}},{"$f":"'Statistical Moments'!AP13","v":{"v":24490.03423864375,"d":"$24,490"}},{"$f":"'Statistical Moments'!AQ13","v":{"v":25105.636391085274,"d":"$25,106"}},{"$f":"'Statistical Moments'!AR13","v":{"v":25760.892522089624,"d":"$25,761"}},{"$f":"'Statistical Moments'!AS13","v":{"v":24862.769324532655,"d":"$24,863"}},{"$f":"'Statistical Moments'!AT13","v":{"v":22416.545880234065,"d":"$22,417"}},{"$f":"'Statistical Moments'!AU13","v":{"v":24660.832405719644,"d":"$24,661"}},{"$f":"'Statistical Moments'!AV13","v":{"v":10908.774360102325,"d":"$10,909"}},{"$f":"'Statistical Moments'!AW13","v":{"v":22816.90087403827,"d":"$22,817"}},{"$f":"'Statistical Moments'!AX13","v":{"v":31471.135714320582,"d":"$31,471"}},{"$f":"'Statistical Moments'!AY13","v":{"v":26000.87383917151,"d":"$26,001"}},{"$f":"'Statistical Moments'!AZ13","v":{"v":33383.89789433816,"d":"$33,384"}},{"$f":"'Statistical Moments'!BB13","v":{"v":31819.721675622706,"d":"$31,820"}},{"$f":"'Statistical Moments'!BC13","v":{"v":35889.225590700575,"d":"$35,889"}},{"$f":"'Statistical Moments'!BD13","v":{"v":36326.589114963026,"d":"$36,327"}},{"$f":"'Statistical Moments'!BE13","v":{"v":28440.919011790716,"d":"$28,441"}},{"$f":"'Statistical Moments'!BF13","v":{"v":19658.04893033269,"d":"$19,658"}},{"$f":"'Statistical Moments'!BG13","v":{"v":32898.274646095364,"d":"$32,898"}},{"$f":"'Statistical Moments'!BH13","v":{"v":26571.013361218564,"d":"$26,571"}},{"$f":"'Statistical Moments'!BI13","v":{"v":18703.05838965422,"d":"$18,703"}},{"$f":"'Statistical Moments'!BJ13","v":{"v":35250.2160543116,"d":"$35,250"}},{"$f":"'Statistical Moments'!BK13","v":{"v":27047.087335300497,"d":"$27,047"}},{"$f":"'Statistical Moments'!BL13","v":{"v":27199.625122285153,"d":"$27,200"}},{"$f":"'Statistical Moments'!BM13","v":{"v":25924.13120350563,"d":"$25,924"}},{"$f":"'Statistical Moments'!BO13","v":{"v":37159.795228770876,"d":"$37,160"}},{"$f":"'Statistical Moments'!BP13","v":{"v":37441.13990689559,"d":"$37,441"}},{"$f":"'Statistical Moments'!BQ13","v":{"v":33558.86870546955,"d":"$33,559"}},{"$f":"'Statistical Moments'!BR13","v":{"v":31432.44723061421,"d":"$31,432"}},{"$f":"'Statistical Moments'!BS13","v":{"v":35464.52008603572,"d":"$35,465"}},{"$f":"'Statistical Moments'!BT13","v":{"v":33721.556567793385,"d":"$33,722"}},{"$f":"'Statistical Moments'!BU13","v":{"v":22838.04514105354,"d":"$22,838"}},{"$f":"'Statistical Moments'!BV13","v":{"v":26538.928325741803,"d":"$26,539"}},{"$f":"'Statistical Moments'!BW13","v":{"v":25206.6682058917,"d":"$25,207"}},{"$f":"'Statistical Moments'!BX13","v":{"v":36698.977764106865,"d":"$36,699"}},{"$f":"'Statistical Moments'!BY13","v":{"v":41803.022064508696,"d":"$41,803"}},{"$f":"'Statistical Moments'!BZ13","v":{"v":36135.85747347556,"d":"$36,136"}},{"$f":"'Statistical Moments'!CB13","v":{"v":16278.325994704632,"d":"$16,278"}},{"$f":"'Statistical Moments'!CC13","v":{"v":20115.273304168717,"d":"$20,115"}},{"$f":"'Statistical Moments'!CD13","v":{"v":29216.066396852126,"d":"$29,216"}},{"$f":"'Statistical Moments'!CE13","v":{"v":28275.48455731176,"d":"$28,275"}},{"$f":"'Statistical Moments'!CF13","v":{"v":10627.294189979475,"d":"$10,627"}},{"$f":"'Statistical Moments'!CG13","v":{"v":24030.11352454266,"d":"$24,030"}},{"$f":"'Statistical Moments'!CH13","v":{"v":36635.795283769374,"d":"$36,636"}},{"$f":"'Statistical Moments'!CI13","v":{"v":31846.07820690893,"d":"$31,846"}},{"$f":"'Statistical Moments'!CJ13","v":{"v":28000.956797517487,"d":"$28,001"}},{"$f":"'Statistical Moments'!CK13","v":{"v":33375.91292181954,"d":"$33,376"}},{"$f":"'Statistical Moments'!CL13","v":{"v":32978.13285103935,"d":"$32,978"}},{"$f":"'Statistical Moments'!CM13","v":{"v":24985.438345871647,"d":"$24,985"}},{"$f":"'Statistical Moments'!CO13","v":{"v":34519.552768341986,"d":"$34,520"}},{"$f":"'Statistical Moments'!CP13","v":{"v":21849.061205282134,"d":"$21,849"}},{"$f":"'Statistical Moments'!CQ13","v":{"v":31943.010844174183,"d":"$31,943"}},{"$f":"'Statistical Moments'!CR13","v":{"v":16706.650178555923,"d":"$16,707"}},{"$f":"'Statistical Moments'!CS13","v":{"v":26319.37905388566,"d":"$26,319"}},{"$f":"'Statistical Moments'!CT13","v":{"v":23356.98531734327,"d":"$23,357"}},{"$f":"'Statistical Moments'!CU13","v":{"v":29807.20509922915,"d":"$29,807"}},{"$f":"'Statistical Moments'!CV13","v":{"v":14197.298417610207,"d":"$14,197"}},{"$f":"'Statistical Moments'!CW13","v":{"v":39475.36545810772,"d":"$39,475"}},{"$f":"'Statistical Moments'!CX13","v":{"v":42377.43983451213,"d":"$42,377"}},{"$f":"'Statistical Moments'!CY13","v":{"v":35445.47049097309,"d":"$35,445"}},{"$f":"'Statistical Moments'!CZ13","v":{"v":34755.28832006793,"d":"$34,755"}},{"$f":"'Statistical Moments'!DB13","v":{"v":33714.9344160359,"d":"$33,715"}},{"$f":"'Statistical Moments'!DC13","v":{"v":34642.896343320106,"d":"$34,643"}},{"$f":"'Statistical Moments'!DD13","v":{"v":16902.855726556976,"d":"$16,903"}},{"$f":"'Statistical Moments'!DE13","v":{"v":16382.635734393378,"d":"$16,383"}},{"$f":"'Statistical Moments'!DF13","v":{"v":24835.95267813987,"d":"$24,836"}},{"$f":"'Statistical Moments'!DG13","v":{"v":22176.34890653247,"d":"$22,176"}},{"$f":"'Statistical Moments'!DH13","v":{"v":33693.23701605134,"d":"$33,693"}},{"$f":"'Statistical Moments'!DI13","v":{"v":23611.1976269622,"d":"$23,611"}},{"$f":"'Statistical Moments'!DJ13","v":{"v":36553.07996494195,"d":"$36,553"}},{"$f":"'Statistical Moments'!DK13","v":{"v":28996.43221376383,"d":"$28,996"}},{"$f":"'Statistical Moments'!DL13","v":{"v":36022.34642502789,"d":"$36,022"}},{"$f":"'Statistical Moments'!DM13","v":{"v":15883.246939746306,"d":"$15,883"}},{"$f":"'Statistical Moments'!DO13","v":{"v":34787.63294306401,"d":"$34,788"}},{"$f":"'Statistical Moments'!DP13","v":{"v":32923.09408636744,"d":"$32,923"}},{"$f":"'Statistical Moments'!DQ13","v":{"v":34538.22923714352,"d":"$34,538"}},{"$f":"'Statistical Moments'!DR13","v":{"v":35370.27012736645,"d":"$35,370"}},{"$f":"'Statistical Moments'!DS13","v":{"v":26015.965960076654,"d":"$26,016"}},{"$f":"'Statistical Moments'!DT13","v":{"v":25526.838811186528,"d":"$25,527"}},{"$f":"'Statistical Moments'!DU13","v":{"v":25294.21680687585,"d":"$25,294"}},{"$f":"'Statistical Moments'!DV13","v":{"v":23893.979212025642,"d":"$23,894"}},{"$f":"'Statistical Moments'!DW13","v":{"v":41516.66692564221,"d":"$41,517"}},{"$f":"'Statistical Moments'!DX13","v":{"v":33989.335364245795,"d":"$33,989"}},{"$f":"'Statistical Moments'!DY13","v":{"v":18629.746074863266,"d":"$18,630"}},{"$f":"'Statistical Moments'!DZ13","v":{"v":29254.15088598828,"d":"$29,254"}},{"$f":"'Statistical Moments'!EB13","v":{"v":27431.215854322596,"d":"$27,431"}},{"$f":"'Statistical Moments'!EC13","v":{"v":32297.353471269475,"d":"$32,297"}},{"$f":"'Statistical Moments'!ED13","v":{"v":24661.288310423846,"d":"$24,661"}},{"$f":"'Statistical Moments'!EE13","v":{"v":25897.97559891172,"d":"$25,898"}},{"$f":"'Statistical Moments'!EF13","v":{"v":28941.561791486663,"d":"$28,942"}},{"$f":"'Statistical Moments'!EG13","v":{"v":28395.241006436176,"d":"$28,395"}},{"$f":"'Statistical Moments'!EH13","v":{"v":34072.939418483715,"d":"$34,073"}},{"$f":"'Statistical Moments'!EI13","v":{"v":24647.53048042175,"d":"$24,648"}},{"$f":"'Statistical Moments'!EJ13","v":{"v":33255.91273819746,"d":"$33,256"}},{"$f":"'Statistical Moments'!EK13","v":{"v":33206.32810697167,"d":"$33,206"}},{"$f":"'Statistical Moments'!EL13","v":{"v":29772.506597294174,"d":"$29,773"}},{"$f":"'Statistical Moments'!EM13","v":{"v":25504.732414286012,"d":"$25,505"}}]
[{"$f":"'(Intermediate Computations)'!B95","v":"Jan 2010"},{"$f":"'(Intermediate Computations)'!C95","v":"Feb 2010"},{"$f":"'(Intermediate Computations)'!D95","v":"Mar 2010"},{"$f":"'(Intermediate Computations)'!E95","v":"Apr 2010"},{"$f":"'(Intermediate Computations)'!F95","v":"May 2010"},{"$f":"'(Intermediate Computations)'!G95","v":"Jun 2010"},{"$f":"'(Intermediate Computations)'!H95","v":"Jul 2010"},{"$f":"'(Intermediate Computations)'!I95","v":"Aug 2010"},{"$f":"'(Intermediate Computations)'!J95","v":"Sep 2010"},{"$f":"'(Intermediate Computations)'!K95","v":"Oct 2010"},{"$f":"'(Intermediate Computations)'!L95","v":"Nov 2010"},{"$f":"'(Intermediate Computations)'!M95","v":"Dec 2010"},{"$f":"'(Intermediate Computations)'!O95","v":"Jan 2011"},{"$f":"'(Intermediate Computations)'!P95","v":"Feb 2011"},{"$f":"'(Intermediate Computations)'!Q95","v":"Mar 2011"},{"$f":"'(Intermediate Computations)'!R95","v":"Apr 2011"},{"$f":"'(Intermediate Computations)'!S95","v":"May 2011"},{"$f":"'(Intermediate Computations)'!T95","v":"Jun 2011"},{"$f":"'(Intermediate Computations)'!U95","v":"Jul 2011"},{"$f":"'(Intermediate Computations)'!V95","v":"Aug 2011"},{"$f":"'(Intermediate Computations)'!W95","v":"Sep 2011"},{"$f":"'(Intermediate Computations)'!X95","v":"Oct 2011"},{"$f":"'(Intermediate Computations)'!Y95","v":"Nov 2011"},{"$f":"'(Intermediate Computations)'!Z95","v":"Dec 2011"},{"$f":"'(Intermediate Computations)'!AB95","v":"Jan 2012"},{"$f":"'(Intermediate Computations)'!AC95","v":"Feb 2012"},{"$f":"'(Intermediate Computations)'!AD95","v":"Mar 2012"},{"$f":"'(Intermediate Computations)'!AE95","v":"Apr 2012"},{"$f":"'(Intermediate Computations)'!AF95","v":"May 2012"},{"$f":"'(Intermediate Computations)'!AG95","v":"Jun 2012"},{"$f":"'(Intermediate Computations)'!AH95","v":"Jul 2012"},{"$f":"'(Intermediate Computations)'!AI95","v":"Aug 2012"},{"$f":"'(Intermediate Computations)'!AJ95","v":"Sep 2012"},{"$f":"'(Intermediate Computations)'!AK95","v":"Oct 2012"},{"$f":"'(Intermediate Computations)'!AL95","v":"Nov 2012"},{"$f":"'(Intermediate Computations)'!AM95","v":"Dec 2012"},{"$f":"'(Intermediate Computations)'!AO95","v":"Jan 2013"},{"$f":"'(Intermediate Computations)'!AP95","v":"Feb 2013"},{"$f":"'(Intermediate Computations)'!AQ95","v":"Mar 2013"},{"$f":"'(Intermediate Computations)'!AR95","v":"Apr 2013"},{"$f":"'(Intermediate Computations)'!AS95","v":"May 2013"},{"$f":"'(Intermediate Computations)'!AT95","v":"Jun 2013"},{"$f":"'(Intermediate Computations)'!AU95","v":"Jul 2013"},{"$f":"'(Intermediate Computations)'!AV95","v":"Aug 2013"},{"$f":"'(Intermediate Computations)'!AW95","v":"Sep 2013"},{"$f":"'(Intermediate Computations)'!AX95","v":"Oct 2013"},{"$f":"'(Intermediate Computations)'!AY95","v":"Nov 2013"},{"$f":"'(Intermediate Computations)'!AZ95","v":"Dec 2013"},{"$f":"'(Intermediate Computations)'!BB95","v":"Jan 2014"},{"$f":"'(Intermediate Computations)'!BC95","v":"Feb 2014"},{"$f":"'(Intermediate Computations)'!BD95","v":"Mar 2014"},{"$f":"'(Intermediate Computations)'!BE95","v":"Apr 2014"},{"$f":"'(Intermediate Computations)'!BF95","v":"May 2014"},{"$f":"'(Intermediate Computations)'!BG95","v":"Jun 2014"},{"$f":"'(Intermediate Computations)'!BH95","v":"Jul 2014"},{"$f":"'(Intermediate Computations)'!BI95","v":"Aug 2014"},{"$f":"'(Intermediate Computations)'!BJ95","v":"Sep 2014"},{"$f":"'(Intermediate Computations)'!BK95","v":"Oct 2014"},{"$f":"'(Intermediate Computations)'!BL95","v":"Nov 2014"},{"$f":"'(Intermediate Computations)'!BM95","v":"Dec 2014"},{"$f":"'(Intermediate Computations)'!BO95","v":"Jan 2015"},{"$f":"'(Intermediate Computations)'!BP95","v":"Feb 2015"},{"$f":"'(Intermediate Computations)'!BQ95","v":"Mar 2015"},{"$f":"'(Intermediate Computations)'!BR95","v":"Apr 2015"},{"$f":"'(Intermediate Computations)'!BS95","v":"May 2015"},{"$f":"'(Intermediate Computations)'!BT95","v":"Jun 2015"},{"$f":"'(Intermediate Computations)'!BU95","v":"Jul 2015"},{"$f":"'(Intermediate Computations)'!BV95","v":"Aug 2015"},{"$f":"'(Intermediate Computations)'!BW95","v":"Sep 2015"},{"$f":"'(Intermediate Computations)'!BX95","v":"Oct 2015"},{"$f":"'(Intermediate Computations)'!BY95","v":"Nov 2015"},{"$f":"'(Intermediate Computations)'!BZ95","v":"Dec 2015"},{"$f":"'(Intermediate Computations)'!CB95","v":"Jan 2016"},{"$f":"'(Intermediate Computations)'!CC95","v":"Feb 2016"},{"$f":"'(Intermediate Computations)'!CD95","v":"Mar 2016"},{"$f":"'(Intermediate Computations)'!CE95","v":"Apr 2016"},{"$f":"'(Intermediate Computations)'!CF95","v":"May 2016"},{"$f":"'(Intermediate Computations)'!CG95","v":"Jun 2016"},{"$f":"'(Intermediate Computations)'!CH95","v":"Jul 2016"},{"$f":"'(Intermediate Computations)'!CI95","v":"Aug 2016"},{"$f":"'(Intermediate Computations)'!CJ95","v":"Sep 2016"},{"$f":"'(Intermediate Computations)'!CK95","v":"Oct 2016"},{"$f":"'(Intermediate Computations)'!CL95","v":"Nov 2016"},{"$f":"'(Intermediate Computations)'!CM95","v":"Dec 2016"},{"$f":"'(Intermediate Computations)'!CO95","v":"Jan 2017"},{"$f":"'(Intermediate Computations)'!CP95","v":"Feb 2017"},{"$f":"'(Intermediate Computations)'!CQ95","v":"Mar 2017"},{"$f":"'(Intermediate Computations)'!CR95","v":"Apr 2017"},{"$f":"'(Intermediate Computations)'!CS95","v":"May 2017"},{"$f":"'(Intermediate Computations)'!CT95","v":"Jun 2017"},{"$f":"'(Intermediate Computations)'!CU95","v":"Jul 2017"},{"$f":"'(Intermediate Computations)'!CV95","v":"Aug 2017"},{"$f":"'(Intermediate Computations)'!CW95","v":"Sep 2017"},{"$f":"'(Intermediate Computations)'!CX95","v":"Oct 2017"},{"$f":"'(Intermediate Computations)'!CY95","v":"Nov 2017"},{"$f":"'(Intermediate Computations)'!CZ95","v":"Dec 2017"},{"$f":"'(Intermediate Computations)'!DB95","v":"Jan 2018"},{"$f":"'(Intermediate Computations)'!DC95","v":"Feb 2018"},{"$f":"'(Intermediate Computations)'!DD95","v":"Mar 2018"},{"$f":"'(Intermediate Computations)'!DE95","v":"Apr 2018"},{"$f":"'(Intermediate Computations)'!DF95","v":"May 2018"},{"$f":"'(Intermediate Computations)'!DG95","v":"Jun 2018"},{"$f":"'(Intermediate Computations)'!DH95","v":"Jul 2018"},{"$f":"'(Intermediate Computations)'!DI95","v":"Aug 2018"},{"$f":"'(Intermediate Computations)'!DJ95","v":"Sep 2018"},{"$f":"'(Intermediate Computations)'!DK95","v":"Oct 2018"},{"$f":"'(Intermediate Computations)'!DL95","v":"Nov 2018"},{"$f":"'(Intermediate Computations)'!DM95","v":"Dec 2018"},{"$f":"'(Intermediate Computations)'!DO95","v":"Jan 2019"},{"$f":"'(Intermediate Computations)'!DP95","v":"Feb 2019"},{"$f":"'(Intermediate Computations)'!DQ95","v":"Mar 2019"},{"$f":"'(Intermediate Computations)'!DR95","v":"Apr 2019"},{"$f":"'(Intermediate Computations)'!DS95","v":"May 2019"},{"$f":"'(Intermediate Computations)'!DT95","v":"Jun 2019"},{"$f":"'(Intermediate Computations)'!DU95","v":"Jul 2019"},{"$f":"'(Intermediate Computations)'!DV95","v":"Aug 2019"},{"$f":"'(Intermediate Computations)'!DW95","v":"Sep 2019"},{"$f":"'(Intermediate Computations)'!DX95","v":"Oct 2019"},{"$f":"'(Intermediate Computations)'!DY95","v":"Nov 2019"},{"$f":"'(Intermediate Computations)'!DZ95","v":"Dec 2019"},{"$f":"'(Intermediate Computations)'!EB95","v":"Jan 2020"},{"$f":"'(Intermediate Computations)'!EC95","v":"Feb 2020"},{"$f":"'(Intermediate Computations)'!ED95","v":"Mar 2020"},{"$f":"'(Intermediate Computations)'!EE95","v":"Apr 2020"},{"$f":"'(Intermediate Computations)'!EF95","v":"May 2020"},{"$f":"'(Intermediate Computations)'!EG95","v":"Jun 2020"},{"$f":"'(Intermediate Computations)'!EH95","v":"Jul 2020"},{"$f":"'(Intermediate Computations)'!EI95","v":"Aug 2020"},{"$f":"'(Intermediate Computations)'!EJ95","v":"Sep 2020"},{"$f":"'(Intermediate Computations)'!EK95","v":"Oct 2020"},{"$f":"'(Intermediate Computations)'!EL95","v":"Nov 2020"},{"$f":"'(Intermediate Computations)'!EM95","v":"Dec 2020"}]
[{"$f":"'(Intermediate Computations)'!B92","v":"2010-01-01"},{"$f":"'(Intermediate Computations)'!C92","v":"2010-02-01"},{"$f":"'(Intermediate Computations)'!D92","v":"2010-03-01"},{"$f":"'(Intermediate Computations)'!E92","v":"2010-04-01"},{"$f":"'(Intermediate Computations)'!F92","v":"2010-05-01"},{"$f":"'(Intermediate Computations)'!G92","v":"2010-06-01"},{"$f":"'(Intermediate Computations)'!H92","v":"2010-07-01"},{"$f":"'(Intermediate Computations)'!I92","v":"2010-08-01"},{"$f":"'(Intermediate Computations)'!J92","v":"2010-09-01"},{"$f":"'(Intermediate Computations)'!K92","v":"2010-10-01"},{"$f":"'(Intermediate Computations)'!L92","v":"2010-11-01"},{"$f":"'(Intermediate Computations)'!M92","v":"2010-12-01"},{"$f":"'(Intermediate Computations)'!O92","v":"2011-01-01"},{"$f":"'(Intermediate Computations)'!P92","v":"2011-02-01"},{"$f":"'(Intermediate Computations)'!Q92","v":"2011-03-01"},{"$f":"'(Intermediate Computations)'!R92","v":"2011-04-01"},{"$f":"'(Intermediate Computations)'!S92","v":"2011-05-01"},{"$f":"'(Intermediate Computations)'!T92","v":"2011-06-01"},{"$f":"'(Intermediate Computations)'!U92","v":"2011-07-01"},{"$f":"'(Intermediate Computations)'!V92","v":"2011-08-01"},{"$f":"'(Intermediate Computations)'!W92","v":"2011-09-01"},{"$f":"'(Intermediate Computations)'!X92","v":"2011-10-01"},{"$f":"'(Intermediate Computations)'!Y92","v":"2011-11-01"},{"$f":"'(Intermediate Computations)'!Z92","v":"2011-12-01"},{"$f":"'(Intermediate Computations)'!AB92","v":"2012-01-01"},{"$f":"'(Intermediate Computations)'!AC92","v":"2012-02-01"},{"$f":"'(Intermediate Computations)'!AD92","v":"2012-03-01"},{"$f":"'(Intermediate Computations)'!AE92","v":"2012-04-01"},{"$f":"'(Intermediate Computations)'!AF92","v":"2012-05-01"},{"$f":"'(Intermediate Computations)'!AG92","v":"2012-06-01"},{"$f":"'(Intermediate Computations)'!AH92","v":"2012-07-01"},{"$f":"'(Intermediate Computations)'!AI92","v":"2012-08-01"},{"$f":"'(Intermediate Computations)'!AJ92","v":"2012-09-01"},{"$f":"'(Intermediate Computations)'!AK92","v":"2012-10-01"},{"$f":"'(Intermediate Computations)'!AL92","v":"2012-11-01"},{"$f":"'(Intermediate Computations)'!AM92","v":"2012-12-01"},{"$f":"'(Intermediate Computations)'!AO92","v":"2013-01-01"},{"$f":"'(Intermediate Computations)'!AP92","v":"2013-02-01"},{"$f":"'(Intermediate Computations)'!AQ92","v":"2013-03-01"},{"$f":"'(Intermediate Computations)'!AR92","v":"2013-04-01"},{"$f":"'(Intermediate Computations)'!AS92","v":"2013-05-01"},{"$f":"'(Intermediate Computations)'!AT92","v":"2013-06-01"},{"$f":"'(Intermediate Computations)'!AU92","v":"2013-07-01"},{"$f":"'(Intermediate Computations)'!AV92","v":"2013-08-01"},{"$f":"'(Intermediate Computations)'!AW92","v":"2013-09-01"},{"$f":"'(Intermediate Computations)'!AX92","v":"2013-10-01"},{"$f":"'(Intermediate Computations)'!AY92","v":"2013-11-01"},{"$f":"'(Intermediate Computations)'!AZ92","v":"2013-12-01"},{"$f":"'(Intermediate Computations)'!BB92","v":"2014-01-01"},{"$f":"'(Intermediate Computations)'!BC92","v":"2014-02-01"},{"$f":"'(Intermediate Computations)'!BD92","v":"2014-03-01"},{"$f":"'(Intermediate Computations)'!BE92","v":"2014-04-01"},{"$f":"'(Intermediate Computations)'!BF92","v":"2014-05-01"},{"$f":"'(Intermediate Computations)'!BG92","v":"2014-06-01"},{"$f":"'(Intermediate Computations)'!BH92","v":"2014-07-01"},{"$f":"'(Intermediate Computations)'!BI92","v":"2014-08-01"},{"$f":"'(Intermediate Computations)'!BJ92","v":"2014-09-01"},{"$f":"'(Intermediate Computations)'!BK92","v":"2014-10-01"},{"$f":"'(Intermediate Computations)'!BL92","v":"2014-11-01"},{"$f":"'(Intermediate Computations)'!BM92","v":"2014-12-01"},{"$f":"'(Intermediate Computations)'!BO92","v":"2015-01-01"},{"$f":"'(Intermediate Computations)'!BP92","v":"2015-02-01"},{"$f":"'(Intermediate Computations)'!BQ92","v":"2015-03-01"},{"$f":"'(Intermediate Computations)'!BR92","v":"2015-04-01"},{"$f":"'(Intermediate Computations)'!BS92","v":"2015-05-01"},{"$f":"'(Intermediate Computations)'!BT92","v":"2015-06-01"},{"$f":"'(Intermediate Computations)'!BU92","v":"2015-07-01"},{"$f":"'(Intermediate Computations)'!BV92","v":"2015-08-01"},{"$f":"'(Intermediate Computations)'!BW92","v":"2015-09-01"},{"$f":"'(Intermediate Computations)'!BX92","v":"2015-10-01"},{"$f":"'(Intermediate Computations)'!BY92","v":"2015-11-01"},{"$f":"'(Intermediate Computations)'!BZ92","v":"2015-12-01"},{"$f":"'(Intermediate Computations)'!CB92","v":"2016-01-01"},{"$f":"'(Intermediate Computations)'!CC92","v":"2016-02-01"},{"$f":"'(Intermediate Computations)'!CD92","v":"2016-03-01"},{"$f":"'(Intermediate Computations)'!CE92","v":"2016-04-01"},{"$f":"'(Intermediate Computations)'!CF92","v":"2016-05-01"},{"$f":"'(Intermediate Computations)'!CG92","v":"2016-06-01"},{"$f":"'(Intermediate Computations)'!CH92","v":"2016-07-01"},{"$f":"'(Intermediate Computations)'!CI92","v":"2016-08-01"},{"$f":"'(Intermediate Computations)'!CJ92","v":"2016-09-01"},{"$f":"'(Intermediate Computations)'!CK92","v":"2016-10-01"},{"$f":"'(Intermediate Computations)'!CL92","v":"2016-11-01"},{"$f":"'(Intermediate Computations)'!CM92","v":"2016-12-01"},{"$f":"'(Intermediate Computations)'!CO92","v":"2017-01-01"},{"$f":"'(Intermediate Computations)'!CP92","v":"2017-02-01"},{"$f":"'(Intermediate Computations)'!CQ92","v":"2017-03-01"},{"$f":"'(Intermediate Computations)'!CR92","v":"2017-04-01"},{"$f":"'(Intermediate Computations)'!CS92","v":"2017-05-01"},{"$f":"'(Intermediate Computations)'!CT92","v":"2017-06-01"},{"$f":"'(Intermediate Computations)'!CU92","v":"2017-07-01"},{"$f":"'(Intermediate Computations)'!CV92","v":"2017-08-01"},{"$f":"'(Intermediate Computations)'!CW92","v":"2017-09-01"},{"$f":"'(Intermediate Computations)'!CX92","v":"2017-10-01"},{"$f":"'(Intermediate Computations)'!CY92","v":"2017-11-01"},{"$f":"'(Intermediate Computations)'!CZ92","v":"2017-12-01"},{"$f":"'(Intermediate Computations)'!DB92","v":"2018-01-01"},{"$f":"'(Intermediate Computations)'!DC92","v":"2018-02-01"},{"$f":"'(Intermediate Computations)'!DD92","v":"2018-03-01"},{"$f":"'(Intermediate Computations)'!DE92","v":"2018-04-01"},{"$f":"'(Intermediate Computations)'!DF92","v":"2018-05-01"},{"$f":"'(Intermediate Computations)'!DG92","v":"2018-06-01"},{"$f":"'(Intermediate Computations)'!DH92","v":"2018-07-01"},{"$f":"'(Intermediate Computations)'!DI92","v":"2018-08-01"},{"$f":"'(Intermediate Computations)'!DJ92","v":"2018-09-01"},{"$f":"'(Intermediate Computations)'!DK92","v":"2018-10-01"},{"$f":"'(Intermediate Computations)'!DL92","v":"2018-11-01"},{"$f":"'(Intermediate Computations)'!DM92","v":"2018-12-01"},{"$f":"'(Intermediate Computations)'!DO92","v":"2019-01-01"},{"$f":"'(Intermediate Computations)'!DP92","v":"2019-02-01"},{"$f":"'(Intermediate Computations)'!DQ92","v":"2019-03-01"},{"$f":"'(Intermediate Computations)'!DR92","v":"2019-04-01"},{"$f":"'(Intermediate Computations)'!DS92","v":"2019-05-01"},{"$f":"'(Intermediate Computations)'!DT92","v":"2019-06-01"},{"$f":"'(Intermediate Computations)'!DU92","v":"2019-07-01"},{"$f":"'(Intermediate Computations)'!DV92","v":"2019-08-01"},{"$f":"'(Intermediate Computations)'!DW92","v":"2019-09-01"},{"$f":"'(Intermediate Computations)'!DX92","v":"2019-10-01"},{"$f":"'(Intermediate Computations)'!DY92","v":"2019-11-01"},{"$f":"'(Intermediate Computations)'!DZ92","v":"2019-12-01"},{"$f":"'(Intermediate Computations)'!EB92","v":"2020-01-01"},{"$f":"'(Intermediate Computations)'!EC92","v":"2020-02-01"},{"$f":"'(Intermediate Computations)'!ED92","v":"2020-03-01"},{"$f":"'(Intermediate Computations)'!EE92","v":"2020-04-01"},{"$f":"'(Intermediate Computations)'!EF92","v":"2020-05-01"},{"$f":"'(Intermediate Computations)'!EG92","v":"2020-06-01"},{"$f":"'(Intermediate Computations)'!EH92","v":"2020-07-01"},{"$f":"'(Intermediate Computations)'!EI92","v":"2020-08-01"},{"$f":"'(Intermediate Computations)'!EJ92","v":"2020-09-01"},{"$f":"'(Intermediate Computations)'!EK92","v":"2020-10-01"},{"$f":"'(Intermediate Computations)'!EL92","v":"2020-11-01"},{"$f":"'(Intermediate Computations)'!EM92","v":"2020-12-01"}]
[{"$f":"'Statistical Moments'!B14","v":{"v":1166666.6666666667,"d":"$1,166,667"}},{"$f":"'Statistical Moments'!C14","v":{"v":1163472.4654572825,"d":"$1,163,472"}},{"$f":"'Statistical Moments'!D14","v":{"v":1160522.3697831214,"d":"$1,160,522"}},{"$f":"'Statistical Moments'!E14","v":{"v":1157874.5012081484,"d":"$1,157,875"}},{"$f":"'Statistical Moments'!F14","v":{"v":1155366.6640570285,"d":"$1,155,367"}},{"$f":"'Statistical Moments'!G14","v":{"v":1153029.2619466684,"d":"$1,153,029"}},{"$f":"'Statistical Moments'!H14","v":{"v":1150531.6128185894,"d":"$1,150,532"}},{"$f":"'Statistical Moments'!I14","v":{"v":1147809.3685147427,"d":"$1,147,809"}},{"$f":"'Statistical Moments'!J14","v":{"v":1145238.7804152255,"d":"$1,145,239"}},{"$f":"'Statistical Moments'!K14","v":{"v":1142718.3154218465,"d":"$1,142,718"}},{"$f":"'Statistical Moments'!L14","v":{"v":1140228.2751589091,"d":"$1,140,228"}},{"$f":"'Statistical Moments'!M14","v":{"v":1137737.8553539952,"d":"$1,137,738"}},{"$f":"'Statistical Moments'!O14","v":{"v":1135191.9095235942,"d":"$1,135,192"}},{"$f":"'Statistical Moments'!P14","v":{"v":1132835.2696507676,"d":"$1,132,835"}},{"$f":"'Statistical Moments'!Q14","v":{"v":1130459.3009420962,"d":"$1,130,459"}},{"$f":"'Statistical Moments'!R14","v":{"v":1128172.494152508,"d":"$1,128,172"}},{"$f":"'Statistical Moments'!S14","v":{"v":1125975.2139592355,"d":"$1,125,975"}},{"$f":"'Statistical Moments'!T14","v":{"v":1123263.670212971,"d":"$1,123,264"}},{"$f":"'Statistical Moments'!U14","v":{"v":1121041.7316366287,"d":"$1,121,042"}},{"$f":"'Statistical Moments'!V14","v":{"v":1118522.7147797262,"d":"$1,118,523"}},{"$f":"'Statistical Moments'!W14","v":{"v":1116070.7613643599,"d":"$1,116,071"}},{"$f":"'Statistical Moments'!X14","v":{"v":1114025.4052115497,"d":"$1,114,025"}},{"$f":"'Statistical Moments'!Y14","v":{"v":1111699.5291998314,"d":"$1,111,700"}},{"$f":"'Statistical Moments'!Z14","v":{"v":1109426.7685189538,"d":"$1,109,427"}},{"$f":"'Statistical Moments'!AB14","v":{"v":1106874.577826982,"d":"$1,106,875"}},{"$f":"'Statistical Moments'!AC14","v":{"v":1104703.1036209299,"d":"$1,104,703"}},{"$f":"'Statistical Moments'!AD14","v":{"v":1102691.3872495315,"d":"$1,102,691"}},{"$f":"'Statistical Moments'!AE14","v":{"v":1100602.2231032439,"d":"$1,100,602"}},{"$f":"'Statistical Moments'!AF14","v":{"v":1098491.548505513,"d":"$1,098,492"}},{"$f":"'Statistical Moments'!AG14","v":{"v":1096178.614471129,"d":"$1,096,179"}},{"$f":"'Statistical Moments'!AH14","v":{"v":1094205.0999580212,"d":"$1,094,205"}},{"$f":"'Statistical Moments'!AI14","v":{"v":1092382.0158582907,"d":"$1,092,382"}},{"$f":"'Statistical Moments'!AJ14","v":{"v":1090117.8980848184,"d":"$1,090,118"}},{"$f":"'Statistical Moments'!AK14","v":{"v":1088156.8799656227,"d":"$1,088,157"}},{"$f":"'Statistical Moments'!AL14","v":{"v":1086279.738899562,"d":"$1,086,280"}},{"$f":"'Statistical Moments'!AM14","v":{"v":1084473.175137477,"d":"$1,084,473"}},{"$f":"'Statistical Moments'!AO14","v":{"v":1082393.2643151532,"d":"$1,082,393"}},{"$f":"'Statistical Moments'!AP14","v":{"v":1080492.8756093956,"d":"$1,080,493"}},{"$f":"'Statistical Moments'!AQ14","v":{"v":1078789.0551953623,"d":"$1,078,789"}},{"$f":"'Statistical Moments'!AR14","v":{"v":1076779.5119518775,"d":"$1,076,780"}},{"$f":"'Statistical Moments'!AS14","v":{"v":1074903.055359904,"d":"$1,074,903"}},{"$f":"'Statistical Moments'!AT14","v":{"v":1073230.9203500766,"d":"$1,073,231"}},{"$f":"'Statistical Moments'!AU14","v":{"v":1071394.0478619118,"d":"$1,071,394"}},{"$f":"'Statistical Moments'!AV14","v":{"v":1069524.0978178226,"d":"$1,069,524"}},{"$f":"'Statistical Moments'!AW14","v":{"v":1067760.3689996079,"d":"$1,067,760"}},{"$f":"'Statistical Moments'!AX14","v":{"v":1065813.9898951775,"d":"$1,065,814"}},{"$f":"'Statistical Moments'!AY14","v":{"v":1064006.4494751745,"d":"$1,064,006"}},{"$f":"'Statistical Moments'!AZ14","v":{"v":1062303.482071132,"d":"$1,062,303"}},{"$f":"'Statistical Moments'!BB14","v":{"v":1060362.9245503996,"d":"$1,060,363"}},{"$f":"'Statistical Moments'!BC14","v":{"v":1058474.427565867,"d":"$1,058,474"}},{"$f":"'Statistical Moments'!BD14","v":{"v":1056742.5225554435,"d":"$1,056,743"}},{"$f":"'Statistical Moments'!BE14","v":{"v":1055087.3754556393,"d":"$1,055,087"}},{"$f":"'Statistical Moments'!BF14","v":{"v":1053393.3464215088,"d":"$1,053,393"}},{"$f":"'Statistical Moments'!BG14","v":{"v":1051835.5718224575,"d":"$1,051,836"}},{"$f":"'Statistical Moments'!BH14","v":{"v":1050293.0826967796,"d":"$1,050,293"}},{"$f":"'Statistical Moments'!BI14","v":{"v":1048488.4656752835,"d":"$1,048,488"}},{"$f":"'Statistical Moments'!BJ14","v":{"v":1046816.3765017544,"d":"$1,046,816"}},{"$f":"'Statistical Moments'!BK14","v":{"v":1045353.2773204893,"d":"$1,045,353"}},{"$f":"'Statistical Moments'!BL14","v":{"v":1043749.5328733224,"d":"$1,043,750"}},{"$f":"'Statistical Moments'!BM14","v":{"v":1042321.1017005816,"d":"$1,042,321"}},{"$f":"'Statistical Moments'!BO14","v":{"v":1040772.8947537144,"d":"$1,040,773"}},{"$f":"'Statistical Moments'!BP14","v":{"v":1039224.9518770598,"d":"$1,039,225"}},{"$f":"'Statistical Moments'!BQ14","v":{"v":1037780.637145037,"d":"$1,037,781"}},{"$f":"'Statistical Moments'!BR14","v":{"v":1036497.0967470652,"d":"$1,036,497"}},{"$f":"'Statistical Moments'!BS14","v":{"v":1035178.2348599512,"d":"$1,035,178"}},{"$f":"'Statistical Moments'!BT14","v":{"v":1033637.1254522157,"d":"$1,033,637"}},{"$f":"'Statistical Moments'!BU14","v":{"v":1032466.1066317835,"d":"$1,032,466"}},{"$f":"'Statistical Moments'!BV14","v":{"v":1030929.807638033,"d":"$1,030,930"}},{"$f":"'Statistical Moments'!BW14","v":{"v":1029498.7579374934,"d":"$1,029,499"}},{"$f":"'Statistical Moments'!BX14","v":{"v":1028313.6885280177,"d":"$1,028,314"}},{"$f":"'Statistical Moments'!BY14","v":{"v":1026803.6883520976,"d":"$1,026,804"}},{"$f":"'Statistical Moments'!BZ14","v":{"v":1025608.1407500622,"d":"$1,025,608"}},{"$f":"'Statistical Moments'!CB14","v":{"v":1024274.088710268,"d":"$1,024,274"}},{"$f":"'Statistical Moments'!CC14","v":{"v":1022907.8017294331,"d":"$1,022,908"}},{"$f":"'Statistical Moments'!CD14","v":{"v":1021523.7095800248,"d":"$1,021,524"}},{"$f":"'Statistical Moments'!CE14","v":{"v":1020314.2279611821,"d":"$1,020,314"}},{"$f":"'Statistical Moments'!CF14","v":{"v":1018869.7401340588,"d":"$1,018,870"}},{"$f":"'Statistical Moments'!CG14","v":{"v":1017565.5872395128,"d":"$1,017,566"}},{"$f":"'Statistical Moments'!CH14","v":{"v":1016680.3024538547,"d":"$1,016,680"}},{"$f":"'Statistical Moments'!CI14","v":{"v":1015471.5455688635,"d":"$1,015,472"}},{"$f":"'Statistical Moments'!CJ14","v":{"v":1014353.8927885761,"d":"$1,014,354"}},{"$f":"'Statistical Moments'!CK14","v":{"v":1013188.3622744814,"d":"$1,013,188"}},{"$f":"'Statistical Moments'!CL14","v":{"v":1012222.6345702595,"d":"$1,012,223"}},{"$f":"'Statistical Moments'!CM14","v":{"v":1010973.4827141089,"d":"$1,010,973"}},{"$f":"'Statistical Moments'!CO14","v":{"v":1009994.6121352902,"d":"$1,009,995"}},{"$f":"'Statistical Moments'!CP14","v":{"v":1008905.0024089209,"d":"$1,008,905"}},{"$f":"'Statistical Moments'!CQ14","v":{"v":1007835.2059067243,"d":"$1,007,835"}},{"$f":"'Statistical Moments'!CR14","v":{"v":1006753.4925091097,"d":"$1,006,753"}},{"$f":"'Statistical Moments'!CS14","v":{"v":1005601.0428524544,"d":"$1,005,601"}},{"$f":"'Statistical Moments'!CT14","v":{"v":1004150.0759841934,"d":"$1,004,150"}},{"$f":"'Statistical Moments'!CU14","v":{"v":1002856.8588981284,"d":"$1,002,857"}},{"$f":"'Statistical Moments'!CV14","v":{"v":1002051.0808977115,"d":"$1,002,051"}},{"$f":"'Statistical Moments'!CW14","v":{"v":1000870.7629586691,"d":"$1,000,871"}},{"$f":"'Statistical Moments'!CX14","v":{"v":999728.3983769296,"d":"$999,728"}},{"$f":"'Statistical Moments'!CY14","v":{"v":998536.8512086811,"d":"$998,537"}},{"$f":"'Statistical Moments'!CZ14","v":{"v":997541.3316172452,"d":"$997,541"}},{"$f":"'Statistical Moments'!DB14","v":{"v":996391.7394675836,"d":"$996,392"}},{"$f":"'Statistical Moments'!DC14","v":{"v":995445.3464201365,"d":"$995,445"}},{"$f":"'Statistical Moments'!DD14","v":{"v":994206.3906829086,"d":"$994,206"}},{"$f":"'Statistical Moments'!DE14","v":{"v":993077.0574418316,"d":"$993,077"}},{"$f":"'Statistical Moments'!DF14","v":{"v":992122.8580380579,"d":"$992,123"}},{"$f":"'Statistical Moments'!DG14","v":{"v":991074.5531860976,"d":"$991,075"}},{"$f":"'Statistical Moments'!DH14","v":{"v":989990.125291132,"d":"$989,990"}},{"$f":"'Statistical Moments'!DI14","v":{"v":988884.4813721232,"d":"$988,884"}},{"$f":"'Statistical Moments'!DJ14","v":{"v":987742.9749696418,"d":"$987,743"}},{"$f":"'Statistical Moments'!DK14","v":{"v":986731.8957007569,"d":"$986,732"}},{"$f":"'Statistical Moments'!DL14","v":{"v":985696.5063364933,"d":"$985,697"}},{"$f":"'Statistical Moments'!DM14","v":{"v":984568.0883795258,"d":"$984,568"}},{"$f":"'Statistical Moments'!DO14","v":{"v":983491.8523000629,"d":"$983,492"}},{"$f":"'Statistical Moments'!DP14","v":{"v":982652.0308705065,"d":"$982,652"}},{"$f":"'Statistical Moments'!DQ14","v":{"v":981597.020080049,"d":"$981,597"}},{"$f":"'Statistical Moments'!DR14","v":{"v":980840.8055311218,"d":"$980,841"}},{"$f":"'Statistical Moments'!DS14","v":{"v":979917.6098015407,"d":"$979,918"}},{"$f":"'Statistical Moments'!DT14","v":{"v":978978.3615975452,"d":"$978,978"}},{"$f":"'Statistical Moments'!DU14","v":{"v":978226.9298156946,"d":"$978,227"}},{"$f":"'Statistical Moments'!DV14","v":{"v":977361.7121015734,"d":"$977,362"}},{"$f":"'Statistical Moments'!DW14","v":{"v":976555.7187117478,"d":"$976,556"}},{"$f":"'Statistical Moments'!DX14","v":{"v":975677.6468446684,"d":"$975,678"}},{"$f":"'Statistical Moments'!DY14","v":{"v":974777.0325246982,"d":"$974,777"}},{"$f":"'Statistical Moments'!DZ14","v":{"v":973899.3756570386,"d":"$973,899"}},{"$f":"'Statistical Moments'!EB14","v":{"v":972791.3832977981,"d":"$972,791"}},{"$f":"'Statistical Moments'!EC14","v":{"v":971992.230024295,"d":"$971,992"}},{"$f":"'Statistical Moments'!ED14","v":{"v":970922.8592425796,"d":"$970,923"}},{"$f":"'Statistical Moments'!EE14","v":{"v":969946.1485109014,"d":"$969,946"}},{"$f":"'Statistical Moments'!EF14","v":{"v":969104.591766805,"d":"$969,105"}},{"$f":"'Statistical Moments'!EG14","v":{"v":968293.7877681083,"d":"$968,294"}},{"$f":"'Statistical Moments'!EH14","v":{"v":967298.1083454415,"d":"$967,298"}},{"$f":"'Statistical Moments'!EI14","v":{"v":966368.5499572617,"d":"$966,369"}},{"$f":"'Statistical Moments'!EJ14","v":{"v":965188.3084926297,"d":"$965,188"}},{"$f":"'Statistical Moments'!EK14","v":{"v":964279.6442725786,"d":"$964,280"}},{"$f":"'Statistical Moments'!EL14","v":{"v":963531.0108056855,"d":"$963,531"}},{"$f":"'Statistical Moments'!EM14","v":{"v":962599.8638239858,"d":"$962,600"}}]
[{"$f":"'(Intermediate Computations)'!B101","v":"Jan 2010"},{"$f":"'(Intermediate Computations)'!C101","v":"Feb 2010"},{"$f":"'(Intermediate Computations)'!D101","v":"Mar 2010"},{"$f":"'(Intermediate Computations)'!E101","v":"Apr 2010"},{"$f":"'(Intermediate Computations)'!F101","v":"May 2010"},{"$f":"'(Intermediate Computations)'!G101","v":"Jun 2010"},{"$f":"'(Intermediate Computations)'!H101","v":"Jul 2010"},{"$f":"'(Intermediate Computations)'!I101","v":"Aug 2010"},{"$f":"'(Intermediate Computations)'!J101","v":"Sep 2010"},{"$f":"'(Intermediate Computations)'!K101","v":"Oct 2010"},{"$f":"'(Intermediate Computations)'!L101","v":"Nov 2010"},{"$f":"'(Intermediate Computations)'!M101","v":"Dec 2010"},{"$f":"'(Intermediate Computations)'!O101","v":"Jan 2011"},{"$f":"'(Intermediate Computations)'!P101","v":"Feb 2011"},{"$f":"'(Intermediate Computations)'!Q101","v":"Mar 2011"},{"$f":"'(Intermediate Computations)'!R101","v":"Apr 2011"},{"$f":"'(Intermediate Computations)'!S101","v":"May 2011"},{"$f":"'(Intermediate Computations)'!T101","v":"Jun 2011"},{"$f":"'(Intermediate Computations)'!U101","v":"Jul 2011"},{"$f":"'(Intermediate Computations)'!V101","v":"Aug 2011"},{"$f":"'(Intermediate Computations)'!W101","v":"Sep 2011"},{"$f":"'(Intermediate Computations)'!X101","v":"Oct 2011"},{"$f":"'(Intermediate Computations)'!Y101","v":"Nov 2011"},{"$f":"'(Intermediate Computations)'!Z101","v":"Dec 2011"},{"$f":"'(Intermediate Computations)'!AB101","v":"Jan 2012"},{"$f":"'(Intermediate Computations)'!AC101","v":"Feb 2012"},{"$f":"'(Intermediate Computations)'!AD101","v":"Mar 2012"},{"$f":"'(Intermediate Computations)'!AE101","v":"Apr 2012"},{"$f":"'(Intermediate Computations)'!AF101","v":"May 2012"},{"$f":"'(Intermediate Computations)'!AG101","v":"Jun 2012"},{"$f":"'(Intermediate Computations)'!AH101","v":"Jul 2012"},{"$f":"'(Intermediate Computations)'!AI101","v":"Aug 2012"},{"$f":"'(Intermediate Computations)'!AJ101","v":"Sep 2012"},{"$f":"'(Intermediate Computations)'!AK101","v":"Oct 2012"},{"$f":"'(Intermediate Computations)'!AL101","v":"Nov 2012"},{"$f":"'(Intermediate Computations)'!AM101","v":"Dec 2012"},{"$f":"'(Intermediate Computations)'!AO101","v":"Jan 2013"},{"$f":"'(Intermediate Computations)'!AP101","v":"Feb 2013"},{"$f":"'(Intermediate Computations)'!AQ101","v":"Mar 2013"},{"$f":"'(Intermediate Computations)'!AR101","v":"Apr 2013"},{"$f":"'(Intermediate Computations)'!AS101","v":"May 2013"},{"$f":"'(Intermediate Computations)'!AT101","v":"Jun 2013"},{"$f":"'(Intermediate Computations)'!AU101","v":"Jul 2013"},{"$f":"'(Intermediate Computations)'!AV101","v":"Aug 2013"},{"$f":"'(Intermediate Computations)'!AW101","v":"Sep 2013"},{"$f":"'(Intermediate Computations)'!AX101","v":"Oct 2013"},{"$f":"'(Intermediate Computations)'!AY101","v":"Nov 2013"},{"$f":"'(Intermediate Computations)'!AZ101","v":"Dec 2013"},{"$f":"'(Intermediate Computations)'!BB101","v":"Jan 2014"},{"$f":"'(Intermediate Computations)'!BC101","v":"Feb 2014"},{"$f":"'(Intermediate Computations)'!BD101","v":"Mar 2014"},{"$f":"'(Intermediate Computations)'!BE101","v":"Apr 2014"},{"$f":"'(Intermediate Computations)'!BF101","v":"May 2014"},{"$f":"'(Intermediate Computations)'!BG101","v":"Jun 2014"},{"$f":"'(Intermediate Computations)'!BH101","v":"Jul 2014"},{"$f":"'(Intermediate Computations)'!BI101","v":"Aug 2014"},{"$f":"'(Intermediate Computations)'!BJ101","v":"Sep 2014"},{"$f":"'(Intermediate Computations)'!BK101","v":"Oct 2014"},{"$f":"'(Intermediate Computations)'!BL101","v":"Nov 2014"},{"$f":"'(Intermediate Computations)'!BM101","v":"Dec 2014"},{"$f":"'(Intermediate Computations)'!BO101","v":"Jan 2015"},{"$f":"'(Intermediate Computations)'!BP101","v":"Feb 2015"},{"$f":"'(Intermediate Computations)'!BQ101","v":"Mar 2015"},{"$f":"'(Intermediate Computations)'!BR101","v":"Apr 2015"},{"$f":"'(Intermediate Computations)'!BS101","v":"May 2015"},{"$f":"'(Intermediate Computations)'!BT101","v":"Jun 2015"},{"$f":"'(Intermediate Computations)'!BU101","v":"Jul 2015"},{"$f":"'(Intermediate Computations)'!BV101","v":"Aug 2015"},{"$f":"'(Intermediate Computations)'!BW101","v":"Sep 2015"},{"$f":"'(Intermediate Computations)'!BX101","v":"Oct 2015"},{"$f":"'(Intermediate Computations)'!BY101","v":"Nov 2015"},{"$f":"'(Intermediate Computations)'!BZ101","v":"Dec 2015"},{"$f":"'(Intermediate Computations)'!CB101","v":"Jan 2016"},{"$f":"'(Intermediate Computations)'!CC101","v":"Feb 2016"},{"$f":"'(Intermediate Computations)'!CD101","v":"Mar 2016"},{"$f":"'(Intermediate Computations)'!CE101","v":"Apr 2016"},{"$f":"'(Intermediate Computations)'!CF101","v":"May 2016"},{"$f":"'(Intermediate Computations)'!CG101","v":"Jun 2016"},{"$f":"'(Intermediate Computations)'!CH101","v":"Jul 2016"},{"$f":"'(Intermediate Computations)'!CI101","v":"Aug 2016"},{"$f":"'(Intermediate Computations)'!CJ101","v":"Sep 2016"},{"$f":"'(Intermediate Computations)'!CK101","v":"Oct 2016"},{"$f":"'(Intermediate Computations)'!CL101","v":"Nov 2016"},{"$f":"'(Intermediate Computations)'!CM101","v":"Dec 2016"},{"$f":"'(Intermediate Computations)'!CO101","v":"Jan 2017"},{"$f":"'(Intermediate Computations)'!CP101","v":"Feb 2017"},{"$f":"'(Intermediate Computations)'!CQ101","v":"Mar 2017"},{"$f":"'(Intermediate Computations)'!CR101","v":"Apr 2017"},{"$f":"'(Intermediate Computations)'!CS101","v":"May 2017"},{"$f":"'(Intermediate Computations)'!CT101","v":"Jun 2017"},{"$f":"'(Intermediate Computations)'!CU101","v":"Jul 2017"},{"$f":"'(Intermediate Computations)'!CV101","v":"Aug 2017"},{"$f":"'(Intermediate Computations)'!CW101","v":"Sep 2017"},{"$f":"'(Intermediate Computations)'!CX101","v":"Oct 2017"},{"$f":"'(Intermediate Computations)'!CY101","v":"Nov 2017"},{"$f":"'(Intermediate Computations)'!CZ101","v":"Dec 2017"},{"$f":"'(Intermediate Computations)'!DB101","v":"Jan 2018"},{"$f":"'(Intermediate Computations)'!DC101","v":"Feb 2018"},{"$f":"'(Intermediate Computations)'!DD101","v":"Mar 2018"},{"$f":"'(Intermediate Computations)'!DE101","v":"Apr 2018"},{"$f":"'(Intermediate Computations)'!DF101","v":"May 2018"},{"$f":"'(Intermediate Computations)'!DG101","v":"Jun 2018"},{"$f":"'(Intermediate Computations)'!DH101","v":"Jul 2018"},{"$f":"'(Intermediate Computations)'!DI101","v":"Aug 2018"},{"$f":"'(Intermediate Computations)'!DJ101","v":"Sep 2018"},{"$f":"'(Intermediate Computations)'!DK101","v":"Oct 2018"},{"$f":"'(Intermediate Computations)'!DL101","v":"Nov 2018"},{"$f":"'(Intermediate Computations)'!DM101","v":"Dec 2018"},{"$f":"'(Intermediate Computations)'!DO101","v":"Jan 2019"},{"$f":"'(Intermediate Computations)'!DP101","v":"Feb 2019"},{"$f":"'(Intermediate Computations)'!DQ101","v":"Mar 2019"},{"$f":"'(Intermediate Computations)'!DR101","v":"Apr 2019"},{"$f":"'(Intermediate Computations)'!DS101","v":"May 2019"},{"$f":"'(Intermediate Computations)'!DT101","v":"Jun 2019"},{"$f":"'(Intermediate Computations)'!DU101","v":"Jul 2019"},{"$f":"'(Intermediate Computations)'!DV101","v":"Aug 2019"},{"$f":"'(Intermediate Computations)'!DW101","v":"Sep 2019"},{"$f":"'(Intermediate Computations)'!DX101","v":"Oct 2019"},{"$f":"'(Intermediate Computations)'!DY101","v":"Nov 2019"},{"$f":"'(Intermediate Computations)'!DZ101","v":"Dec 2019"},{"$f":"'(Intermediate Computations)'!EB101","v":"Jan 2020"},{"$f":"'(Intermediate Computations)'!EC101","v":"Feb 2020"},{"$f":"'(Intermediate Computations)'!ED101","v":"Mar 2020"},{"$f":"'(Intermediate Computations)'!EE101","v":"Apr 2020"},{"$f":"'(Intermediate Computations)'!EF101","v":"May 2020"},{"$f":"'(Intermediate Computations)'!EG101","v":"Jun 2020"},{"$f":"'(Intermediate Computations)'!EH101","v":"Jul 2020"},{"$f":"'(Intermediate Computations)'!EI101","v":"Aug 2020"},{"$f":"'(Intermediate Computations)'!EJ101","v":"Sep 2020"},{"$f":"'(Intermediate Computations)'!EK101","v":"Oct 2020"},{"$f":"'(Intermediate Computations)'!EL101","v":"Nov 2020"},{"$f":"'(Intermediate Computations)'!EM101","v":"Dec 2020"}]
[{"$f":"'(Intermediate Computations)'!B98","v":"2010-01-01"},{"$f":"'(Intermediate Computations)'!C98","v":"2010-02-01"},{"$f":"'(Intermediate Computations)'!D98","v":"2010-03-01"},{"$f":"'(Intermediate Computations)'!E98","v":"2010-04-01"},{"$f":"'(Intermediate Computations)'!F98","v":"2010-05-01"},{"$f":"'(Intermediate Computations)'!G98","v":"2010-06-01"},{"$f":"'(Intermediate Computations)'!H98","v":"2010-07-01"},{"$f":"'(Intermediate Computations)'!I98","v":"2010-08-01"},{"$f":"'(Intermediate Computations)'!J98","v":"2010-09-01"},{"$f":"'(Intermediate Computations)'!K98","v":"2010-10-01"},{"$f":"'(Intermediate Computations)'!L98","v":"2010-11-01"},{"$f":"'(Intermediate Computations)'!M98","v":"2010-12-01"},{"$f":"'(Intermediate Computations)'!O98","v":"2011-01-01"},{"$f":"'(Intermediate Computations)'!P98","v":"2011-02-01"},{"$f":"'(Intermediate Computations)'!Q98","v":"2011-03-01"},{"$f":"'(Intermediate Computations)'!R98","v":"2011-04-01"},{"$f":"'(Intermediate Computations)'!S98","v":"2011-05-01"},{"$f":"'(Intermediate Computations)'!T98","v":"2011-06-01"},{"$f":"'(Intermediate Computations)'!U98","v":"2011-07-01"},{"$f":"'(Intermediate Computations)'!V98","v":"2011-08-01"},{"$f":"'(Intermediate Computations)'!W98","v":"2011-09-01"},{"$f":"'(Intermediate Computations)'!X98","v":"2011-10-01"},{"$f":"'(Intermediate Computations)'!Y98","v":"2011-11-01"},{"$f":"'(Intermediate Computations)'!Z98","v":"2011-12-01"},{"$f":"'(Intermediate Computations)'!AB98","v":"2012-01-01"},{"$f":"'(Intermediate Computations)'!AC98","v":"2012-02-01"},{"$f":"'(Intermediate Computations)'!AD98","v":"2012-03-01"},{"$f":"'(Intermediate Computations)'!AE98","v":"2012-04-01"},{"$f":"'(Intermediate Computations)'!AF98","v":"2012-05-01"},{"$f":"'(Intermediate Computations)'!AG98","v":"2012-06-01"},{"$f":"'(Intermediate Computations)'!AH98","v":"2012-07-01"},{"$f":"'(Intermediate Computations)'!AI98","v":"2012-08-01"},{"$f":"'(Intermediate Computations)'!AJ98","v":"2012-09-01"},{"$f":"'(Intermediate Computations)'!AK98","v":"2012-10-01"},{"$f":"'(Intermediate Computations)'!AL98","v":"2012-11-01"},{"$f":"'(Intermediate Computations)'!AM98","v":"2012-12-01"},{"$f":"'(Intermediate Computations)'!AO98","v":"2013-01-01"},{"$f":"'(Intermediate Computations)'!AP98","v":"2013-02-01"},{"$f":"'(Intermediate Computations)'!AQ98","v":"2013-03-01"},{"$f":"'(Intermediate Computations)'!AR98","v":"2013-04-01"},{"$f":"'(Intermediate Computations)'!AS98","v":"2013-05-01"},{"$f":"'(Intermediate Computations)'!AT98","v":"2013-06-01"},{"$f":"'(Intermediate Computations)'!AU98","v":"2013-07-01"},{"$f":"'(Intermediate Computations)'!AV98","v":"2013-08-01"},{"$f":"'(Intermediate Computations)'!AW98","v":"2013-09-01"},{"$f":"'(Intermediate Computations)'!AX98","v":"2013-10-01"},{"$f":"'(Intermediate Computations)'!AY98","v":"2013-11-01"},{"$f":"'(Intermediate Computations)'!AZ98","v":"2013-12-01"},{"$f":"'(Intermediate Computations)'!BB98","v":"2014-01-01"},{"$f":"'(Intermediate Computations)'!BC98","v":"2014-02-01"},{"$f":"'(Intermediate Computations)'!BD98","v":"2014-03-01"},{"$f":"'(Intermediate Computations)'!BE98","v":"2014-04-01"},{"$f":"'(Intermediate Computations)'!BF98","v":"2014-05-01"},{"$f":"'(Intermediate Computations)'!BG98","v":"2014-06-01"},{"$f":"'(Intermediate Computations)'!BH98","v":"2014-07-01"},{"$f":"'(Intermediate Computations)'!BI98","v":"2014-08-01"},{"$f":"'(Intermediate Computations)'!BJ98","v":"2014-09-01"},{"$f":"'(Intermediate Computations)'!BK98","v":"2014-10-01"},{"$f":"'(Intermediate Computations)'!BL98","v":"2014-11-01"},{"$f":"'(Intermediate Computations)'!BM98","v":"2014-12-01"},{"$f":"'(Intermediate Computations)'!BO98","v":"2015-01-01"},{"$f":"'(Intermediate Computations)'!BP98","v":"2015-02-01"},{"$f":"'(Intermediate Computations)'!BQ98","v":"2015-03-01"},{"$f":"'(Intermediate Computations)'!BR98","v":"2015-04-01"},{"$f":"'(Intermediate Computations)'!BS98","v":"2015-05-01"},{"$f":"'(Intermediate Computations)'!BT98","v":"2015-06-01"},{"$f":"'(Intermediate Computations)'!BU98","v":"2015-07-01"},{"$f":"'(Intermediate Computations)'!BV98","v":"2015-08-01"},{"$f":"'(Intermediate Computations)'!BW98","v":"2015-09-01"},{"$f":"'(Intermediate Computations)'!BX98","v":"2015-10-01"},{"$f":"'(Intermediate Computations)'!BY98","v":"2015-11-01"},{"$f":"'(Intermediate Computations)'!BZ98","v":"2015-12-01"},{"$f":"'(Intermediate Computations)'!CB98","v":"2016-01-01"},{"$f":"'(Intermediate Computations)'!CC98","v":"2016-02-01"},{"$f":"'(Intermediate Computations)'!CD98","v":"2016-03-01"},{"$f":"'(Intermediate Computations)'!CE98","v":"2016-04-01"},{"$f":"'(Intermediate Computations)'!CF98","v":"2016-05-01"},{"$f":"'(Intermediate Computations)'!CG98","v":"2016-06-01"},{"$f":"'(Intermediate Computations)'!CH98","v":"2016-07-01"},{"$f":"'(Intermediate Computations)'!CI98","v":"2016-08-01"},{"$f":"'(Intermediate Computations)'!CJ98","v":"2016-09-01"},{"$f":"'(Intermediate Computations)'!CK98","v":"2016-10-01"},{"$f":"'(Intermediate Computations)'!CL98","v":"2016-11-01"},{"$f":"'(Intermediate Computations)'!CM98","v":"2016-12-01"},{"$f":"'(Intermediate Computations)'!CO98","v":"2017-01-01"},{"$f":"'(Intermediate Computations)'!CP98","v":"2017-02-01"},{"$f":"'(Intermediate Computations)'!CQ98","v":"2017-03-01"},{"$f":"'(Intermediate Computations)'!CR98","v":"2017-04-01"},{"$f":"'(Intermediate Computations)'!CS98","v":"2017-05-01"},{"$f":"'(Intermediate Computations)'!CT98","v":"2017-06-01"},{"$f":"'(Intermediate Computations)'!CU98","v":"2017-07-01"},{"$f":"'(Intermediate Computations)'!CV98","v":"2017-08-01"},{"$f":"'(Intermediate Computations)'!CW98","v":"2017-09-01"},{"$f":"'(Intermediate Computations)'!CX98","v":"2017-10-01"},{"$f":"'(Intermediate Computations)'!CY98","v":"2017-11-01"},{"$f":"'(Intermediate Computations)'!CZ98","v":"2017-12-01"},{"$f":"'(Intermediate Computations)'!DB98","v":"2018-01-01"},{"$f":"'(Intermediate Computations)'!DC98","v":"2018-02-01"},{"$f":"'(Intermediate Computations)'!DD98","v":"2018-03-01"},{"$f":"'(Intermediate Computations)'!DE98","v":"2018-04-01"},{"$f":"'(Intermediate Computations)'!DF98","v":"2018-05-01"},{"$f":"'(Intermediate Computations)'!DG98","v":"2018-06-01"},{"$f":"'(Intermediate Computations)'!DH98","v":"2018-07-01"},{"$f":"'(Intermediate Computations)'!DI98","v":"2018-08-01"},{"$f":"'(Intermediate Computations)'!DJ98","v":"2018-09-01"},{"$f":"'(Intermediate Computations)'!DK98","v":"2018-10-01"},{"$f":"'(Intermediate Computations)'!DL98","v":"2018-11-01"},{"$f":"'(Intermediate Computations)'!DM98","v":"2018-12-01"},{"$f":"'(Intermediate Computations)'!DO98","v":"2019-01-01"},{"$f":"'(Intermediate Computations)'!DP98","v":"2019-02-01"},{"$f":"'(Intermediate Computations)'!DQ98","v":"2019-03-01"},{"$f":"'(Intermediate Computations)'!DR98","v":"2019-04-01"},{"$f":"'(Intermediate Computations)'!DS98","v":"2019-05-01"},{"$f":"'(Intermediate Computations)'!DT98","v":"2019-06-01"},{"$f":"'(Intermediate Computations)'!DU98","v":"2019-07-01"},{"$f":"'(Intermediate Computations)'!DV98","v":"2019-08-01"},{"$f":"'(Intermediate Computations)'!DW98","v":"2019-09-01"},{"$f":"'(Intermediate Computations)'!DX98","v":"2019-10-01"},{"$f":"'(Intermediate Computations)'!DY98","v":"2019-11-01"},{"$f":"'(Intermediate Computations)'!DZ98","v":"2019-12-01"},{"$f":"'(Intermediate Computations)'!EB98","v":"2020-01-01"},{"$f":"'(Intermediate Computations)'!EC98","v":"2020-02-01"},{"$f":"'(Intermediate Computations)'!ED98","v":"2020-03-01"},{"$f":"'(Intermediate Computations)'!EE98","v":"2020-04-01"},{"$f":"'(Intermediate Computations)'!EF98","v":"2020-05-01"},{"$f":"'(Intermediate Computations)'!EG98","v":"2020-06-01"},{"$f":"'(Intermediate Computations)'!EH98","v":"2020-07-01"},{"$f":"'(Intermediate Computations)'!EI98","v":"2020-08-01"},{"$f":"'(Intermediate Computations)'!EJ98","v":"2020-09-01"},{"$f":"'(Intermediate Computations)'!EK98","v":"2020-10-01"},{"$f":"'(Intermediate Computations)'!EL98","v":"2020-11-01"},{"$f":"'(Intermediate Computations)'!EM98","v":"2020-12-01"}]
[{"$f":"'Statistical Moments'!B15","v":{"v":0,"d":"$0"}},{"$f":"'Statistical Moments'!C15","v":{"v":283.7365030979665,"d":"$284"}},{"$f":"'Statistical Moments'!D15","v":{"v":400.05916912139463,"d":"$400"}},{"$f":"'Statistical Moments'!E15","v":{"v":523.079830256535,"d":"$523"}},{"$f":"'Statistical Moments'!F15","v":{"v":576.7427385395644,"d":"$577"}},{"$f":"'Statistical Moments'!G15","v":{"v":762.0103967390627,"d":"$762"}},{"$f":"'Statistical Moments'!H15","v":{"v":929.704876853681,"d":"$930"}},{"$f":"'Statistical Moments'!I15","v":{"v":951.3158876814849,"d":"$951"}},{"$f":"'Statistical Moments'!J15","v":{"v":1050.8721246254775,"d":"$1,051"}},{"$f":"'Statistical Moments'!K15","v":{"v":873.0342427181854,"d":"$873"}},{"$f":"'Statistical Moments'!L15","v":{"v":1051.8174562863446,"d":"$1,052"}},{"$f":"'Statistical Moments'!M15","v":{"v":1305.5100628285147,"d":"$1,306"}},{"$f":"'Statistical Moments'!O15","v":{"v":1419.3167275339604,"d":"$1,419"}},{"$f":"'Statistical Moments'!P15","v":{"v":1457.4336048656176,"d":"$1,457"}},{"$f":"'Statistical Moments'!Q15","v":{"v":1441.873681131355,"d":"$1,442"}},{"$f":"'Statistical Moments'!R15","v":{"v":1387.1265743077145,"d":"$1,387"}},{"$f":"'Statistical Moments'!S15","v":{"v":1492.284107492312,"d":"$1,492"}},{"$f":"'Statistical Moments'!T15","v":{"v":1564.8060844890495,"d":"$1,565"}},{"$f":"'Statistical Moments'!U15","v":{"v":1440.2243340149291,"d":"$1,440"}},{"$f":"'Statistical Moments'!V15","v":{"v":1402.4524813071257,"d":"$1,402"}},{"$f":"'Statistical Moments'!W15","v":{"v":1531.8682677134084,"d":"$1,532"}},{"$f":"'Statistical Moments'!X15","v":{"v":1604.2061829507775,"d":"$1,604"}},{"$f":"'Statistical Moments'!Y15","v":{"v":1808.3437660704003,"d":"$1,808"}},{"$f":"'Statistical Moments'!Z15","v":{"v":1928.7455869754335,"d":"$1,929"}},{"$f":"'Statistical Moments'!AB15","v":{"v":1744.2878287982771,"d":"$1,744"}},{"$f":"'Statistical Moments'!AC15","v":{"v":1532.3122758985578,"d":"$1,532"}},{"$f":"'Statistical Moments'!AD15","v":{"v":1572.3273525587852,"d":"$1,572"}},{"$f":"'Statistical Moments'!AE15","v":{"v":1732.8236835954553,"d":"$1,733"}},{"$f":"'Statistical Moments'!AF15","v":{"v":1869.149737492268,"d":"$1,869"}},{"$f":"'Statistical Moments'!AG15","v":{"v":2060.235491986884,"d":"$2,060"}},{"$f":"'Statistical Moments'!AH15","v":{"v":2040.785187543905,"d":"$2,041"}},{"$f":"'Statistical Moments'!AI15","v":{"v":2103.6420830491993,"d":"$2,104"}},{"$f":"'Statistical Moments'!AJ15","v":{"v":2053.58914686416,"d":"$2,054"}},{"$f":"'Statistical Moments'!AK15","v":{"v":1993.5363226315,"d":"$1,994"}},{"$f":"'Statistical Moments'!AL15","v":{"v":1961.281818421411,"d":"$1,961"}},{"$f":"'Statistical Moments'!AM15","v":{"v":2048.849323874287,"d":"$2,049"}},{"$f":"'Statistical Moments'!AO15","v":{"v":2333.4001696605446,"d":"$2,333"}},{"$f":"'Statistical Moments'!AP15","v":{"v":2249.55002451364,"d":"$2,250"}},{"$f":"'Statistical Moments'!AQ15","v":{"v":2180.7287947933805,"d":"$2,181"}},{"$f":"'Statistical Moments'!AR15","v":{"v":2230.8419847189284,"d":"$2,231"}},{"$f":"'Statistical Moments'!AS15","v":{"v":2360.2574082376977,"d":"$2,360"}},{"$f":"'Statistical Moments'!AT15","v":{"v":2349.2505555850294,"d":"$2,349"}},{"$f":"'Statistical Moments'!AU15","v":{"v":2206.8649903283554,"d":"$2,207"}},{"$f":"'Statistical Moments'!AV15","v":{"v":2016.5956353528798,"d":"$2,017"}},{"$f":"'Statistical Moments'!AW15","v":{"v":1964.275251363971,"d":"$1,964"}},{"$f":"'Statistical Moments'!AX15","v":{"v":1850.955811732724,"d":"$1,851"}},{"$f":"'Statistical Moments'!AY15","v":{"v":1776.6419716440064,"d":"$1,777"}},{"$f":"'Statistical Moments'!AZ15","v":{"v":1883.9833066206586,"d":"$1,884"}},{"$f":"'Statistical Moments'!BB15","v":{"v":2082.559260510404,"d":"$2,083"}},{"$f":"'Statistical Moments'!BC15","v":{"v":1719.065719731403,"d":"$1,719"}},{"$f":"'Statistical Moments'!BD15","v":{"v":1748.8556209604417,"d":"$1,749"}},{"$f":"'Statistical Moments'!BE15","v":{"v":1953.162251995567,"d":"$1,953"}},{"$f":"'Statistical Moments'!BF15","v":{"v":2050.748781386044,"d":"$2,051"}},{"$f":"'Statistical Moments'!BG15","v":{"v":2201.1526174577984,"d":"$2,201"}},{"$f":"'Statistical Moments'!BH15","v":{"v":2379.9136417923964,"d":"$2,380"}},{"$f":"'Statistical Moments'!BI15","v":{"v":2562.1303240499496,"d":"$2,562"}},{"$f":"'Statistical Moments'!BJ15","v":{"v":2414.3162155169475,"d":"$2,414"}},{"$f":"'Statistical Moments'!BK15","v":{"v":2495.8590077930103,"d":"$2,496"}},{"$f":"'Statistical Moments'!BL15","v":{"v":2351.9015463363,"d":"$2,352"}},{"$f":"'Statistical Moments'!BM15","v":{"v":2140.0292549503956,"d":"$2,140"}},{"$f":"'Statistical Moments'!BO15","v":{"v":2013.4136846606027,"d":"$2,013"}},{"$f":"'Statistical Moments'!BP15","v":{"v":1960.4602058549558,"d":"$1,960"}},{"$f":"'Statistical Moments'!BQ15","v":{"v":1972.5996672746362,"d":"$1,973"}},{"$f":"'Statistical Moments'!BR15","v":{"v":2237.213433355734,"d":"$2,237"}},{"$f":"'Statistical Moments'!BS15","v":{"v":2393.179274894914,"d":"$2,393"}},{"$f":"'Statistical Moments'!BT15","v":{"v":2526.154260061538,"d":"$2,526"}},{"$f":"'Statistical Moments'!BU15","v":{"v":2399.143738280796,"d":"$2,399"}},{"$f":"'Statistical Moments'!BV15","v":{"v":2506.4524881653056,"d":"$2,506"}},{"$f":"'Statistical Moments'!BW15","v":{"v":2705.2909821392404,"d":"$2,705"}},{"$f":"'Statistical Moments'!BX15","v":{"v":2876.1807916363173,"d":"$2,876"}},{"$f":"'Statistical Moments'!BY15","v":{"v":3015.861459521408,"d":"$3,016"}},{"$f":"'Statistical Moments'!BZ15","v":{"v":2786.417071750368,"d":"$2,786"}},{"$f":"'Statistical Moments'!CB15","v":{"v":2641.5901118602546,"d":"$2,642"}},{"$f":"'Statistical Moments'!CC15","v":{"v":2562.8542831505124,"d":"$2,563"}},{"$f":"'Statistical Moments'!CD15","v":{"v":2530.7590846362145,"d":"$2,531"}},{"$f":"'Statistical Moments'!CE15","v":{"v":2467.8520161049287,"d":"$2,468"}},{"$f":"'Statistical Moments'!CF15","v":{"v":2431.8468726364117,"d":"$2,432"}},{"$f":"'Statistical Moments'!CG15","v":{"v":2379.3975755986025,"d":"$2,379"}},{"$f":"'Statistical Moments'!CH15","v":{"v":2611.990498079961,"d":"$2,612"}},{"$f":"'Statistical Moments'!CI15","v":{"v":2431.326843478862,"d":"$2,431"}},{"$f":"'Statistical Moments'!CJ15","v":{"v":2242.140006307145,"d":"$2,242"}},{"$f":"'Statistical Moments'!CK15","v":{"v":2232.5289801310864,"d":"$2,233"}},{"$f":"'Statistical Moments'!CL15","v":{"v":2262.7255694420373,"d":"$2,263"}},{"$f":"'Statistical Moments'!CM15","v":{"v":2099.18346778633,"d":"$2,099"}},{"$f":"'Statistical Moments'!CO15","v":{"v":2262.144535032595,"d":"$2,262"}},{"$f":"'Statistical Moments'!CP15","v":{"v":2457.156580002537,"d":"$2,457"}},{"$f":"'Statistical Moments'!CQ15","v":{"v":2425.7733662108276,"d":"$2,426"}},{"$f":"'Statistical Moments'!CR15","v":{"v":2534.139590900525,"d":"$2,534"}},{"$f":"'Statistical Moments'!CS15","v":{"v":2578.580947608541,"d":"$2,579"}},{"$f":"'Statistical Moments'!CT15","v":{"v":2369.186622744893,"d":"$2,369"}},{"$f":"'Statistical Moments'!CU15","v":{"v":2415.6231339551073,"d":"$2,416"}},{"$f":"'Statistical Moments'!CV15","v":{"v":2534.8367241898986,"d":"$2,535"}},{"$f":"'Statistical Moments'!CW15","v":{"v":2413.9212544894917,"d":"$2,414"}},{"$f":"'Statistical Moments'!CX15","v":{"v":2409.4114475797583,"d":"$2,409"}},{"$f":"'Statistical Moments'!CY15","v":{"v":2518.9263045910247,"d":"$2,519"}},{"$f":"'Statistical Moments'!CZ15","v":{"v":2521.5837657718157,"d":"$2,522"}},{"$f":"'Statistical Moments'!DB15","v":{"v":2443.7892253950226,"d":"$2,444"}},{"$f":"'Statistical Moments'!DC15","v":{"v":2760.74353007984,"d":"$2,761"}},{"$f":"'Statistical Moments'!DD15","v":{"v":2653.0794606456757,"d":"$2,653"}},{"$f":"'Statistical Moments'!DE15","v":{"v":2480.4423643370255,"d":"$2,480"}},{"$f":"'Statistical Moments'!DF15","v":{"v":2299.8686711783394,"d":"$2,300"}},{"$f":"'Statistical Moments'!DG15","v":{"v":2141.678744505591,"d":"$2,142"}},{"$f":"'Statistical Moments'!DH15","v":{"v":1977.0838694525241,"d":"$1,977"}},{"$f":"'Statistical Moments'!DI15","v":{"v":1920.7271167485164,"d":"$1,921"}},{"$f":"'Statistical Moments'!DJ15","v":{"v":1743.0936996440807,"d":"$1,743"}},{"$f":"'Statistical Moments'!DK15","v":{"v":1914.988841869885,"d":"$1,915"}},{"$f":"'Statistical Moments'!DL15","v":{"v":1738.7321130564978,"d":"$1,739"}},{"$f":"'Statistical Moments'!DM15","v":{"v":2012.2092387713035,"d":"$2,012"}},{"$f":"'Statistical Moments'!DO15","v":{"v":2014.9603766330317,"d":"$2,015"}},{"$f":"'Statistical Moments'!DP15","v":{"v":1627.6936459054675,"d":"$1,628"}},{"$f":"'Statistical Moments'!DQ15","v":{"v":1575.2509257508993,"d":"$1,575"}},{"$f":"'Statistical Moments'!DR15","v":{"v":1793.2249483430626,"d":"$1,793"}},{"$f":"'Statistical Moments'!DS15","v":{"v":2043.217626291714,"d":"$2,043"}},{"$f":"'Statistical Moments'!DT15","v":{"v":2105.921361782548,"d":"$2,106"}},{"$f":"'Statistical Moments'!DU15","v":{"v":2314.2207543305317,"d":"$2,314"}},{"$f":"'Statistical Moments'!DV15","v":{"v":2339.1987755116315,"d":"$2,339"}},{"$f":"'Statistical Moments'!DW15","v":{"v":2276.2611838387247,"d":"$2,276"}},{"$f":"'Statistical Moments'!DX15","v":{"v":2380.0304065041596,"d":"$2,380"}},{"$f":"'Statistical Moments'!DY15","v":{"v":2111.5470220932334,"d":"$2,112"}},{"$f":"'Statistical Moments'!DZ15","v":{"v":2171.937166400794,"d":"$2,172"}},{"$f":"'Statistical Moments'!EB15","v":{"v":2386.4299472171647,"d":"$2,386"}},{"$f":"'Statistical Moments'!EC15","v":{"v":2036.1407855859848,"d":"$2,036"}},{"$f":"'Statistical Moments'!ED15","v":{"v":1833.534033134758,"d":"$1,834"}},{"$f":"'Statistical Moments'!EE15","v":{"v":2001.3384536405915,"d":"$2,001"}},{"$f":"'Statistical Moments'!EF15","v":{"v":2049.3785230588846,"d":"$2,049"}},{"$f":"'Statistical Moments'!EG15","v":{"v":1985.5801301602294,"d":"$1,986"}},{"$f":"'Statistical Moments'!EH15","v":{"v":2232.1326128808178,"d":"$2,232"}},{"$f":"'Statistical Moments'!EI15","v":{"v":2515.339472342722,"d":"$2,515"}},{"$f":"'Statistical Moments'!EJ15","v":{"v":2427.5555362487935,"d":"$2,428"}},{"$f":"'Statistical Moments'!EK15","v":{"v":2360.941444309083,"d":"$2,361"}},{"$f":"'Statistical Moments'!EL15","v":{"v":2414.01363866201,"d":"$2,414"}},{"$f":"'Statistical Moments'!EM15","v":{"v":2163.2399538507525,"d":"$2,163"}}]
[{"$f":"'(Intermediate Computations)'!B107","v":"Jan 2010"},{"$f":"'(Intermediate Computations)'!C107","v":"Feb 2010"},{"$f":"'(Intermediate Computations)'!D107","v":"Mar 2010"},{"$f":"'(Intermediate Computations)'!E107","v":"Apr 2010"},{"$f":"'(Intermediate Computations)'!F107","v":"May 2010"},{"$f":"'(Intermediate Computations)'!G107","v":"Jun 2010"},{"$f":"'(Intermediate Computations)'!H107","v":"Jul 2010"},{"$f":"'(Intermediate Computations)'!I107","v":"Aug 2010"},{"$f":"'(Intermediate Computations)'!J107","v":"Sep 2010"},{"$f":"'(Intermediate Computations)'!K107","v":"Oct 2010"},{"$f":"'(Intermediate Computations)'!L107","v":"Nov 2010"},{"$f":"'(Intermediate Computations)'!M107","v":"Dec 2010"},{"$f":"'(Intermediate Computations)'!O107","v":"Jan 2011"},{"$f":"'(Intermediate Computations)'!P107","v":"Feb 2011"},{"$f":"'(Intermediate Computations)'!Q107","v":"Mar 2011"},{"$f":"'(Intermediate Computations)'!R107","v":"Apr 2011"},{"$f":"'(Intermediate Computations)'!S107","v":"May 2011"},{"$f":"'(Intermediate Computations)'!T107","v":"Jun 2011"},{"$f":"'(Intermediate Computations)'!U107","v":"Jul 2011"},{"$f":"'(Intermediate Computations)'!V107","v":"Aug 2011"},{"$f":"'(Intermediate Computations)'!W107","v":"Sep 2011"},{"$f":"'(Intermediate Computations)'!X107","v":"Oct 2011"},{"$f":"'(Intermediate Computations)'!Y107","v":"Nov 2011"},{"$f":"'(Intermediate Computations)'!Z107","v":"Dec 2011"},{"$f":"'(Intermediate Computations)'!AB107","v":"Jan 2012"},{"$f":"'(Intermediate Computations)'!AC107","v":"Feb 2012"},{"$f":"'(Intermediate Computations)'!AD107","v":"Mar 2012"},{"$f":"'(Intermediate Computations)'!AE107","v":"Apr 2012"},{"$f":"'(Intermediate Computations)'!AF107","v":"May 2012"},{"$f":"'(Intermediate Computations)'!AG107","v":"Jun 2012"},{"$f":"'(Intermediate Computations)'!AH107","v":"Jul 2012"},{"$f":"'(Intermediate Computations)'!AI107","v":"Aug 2012"},{"$f":"'(Intermediate Computations)'!AJ107","v":"Sep 2012"},{"$f":"'(Intermediate Computations)'!AK107","v":"Oct 2012"},{"$f":"'(Intermediate Computations)'!AL107","v":"Nov 2012"},{"$f":"'(Intermediate Computations)'!AM107","v":"Dec 2012"},{"$f":"'(Intermediate Computations)'!AO107","v":"Jan 2013"},{"$f":"'(Intermediate Computations)'!AP107","v":"Feb 2013"},{"$f":"'(Intermediate Computations)'!AQ107","v":"Mar 2013"},{"$f":"'(Intermediate Computations)'!AR107","v":"Apr 2013"},{"$f":"'(Intermediate Computations)'!AS107","v":"May 2013"},{"$f":"'(Intermediate Computations)'!AT107","v":"Jun 2013"},{"$f":"'(Intermediate Computations)'!AU107","v":"Jul 2013"},{"$f":"'(Intermediate Computations)'!AV107","v":"Aug 2013"},{"$f":"'(Intermediate Computations)'!AW107","v":"Sep 2013"},{"$f":"'(Intermediate Computations)'!AX107","v":"Oct 2013"},{"$f":"'(Intermediate Computations)'!AY107","v":"Nov 2013"},{"$f":"'(Intermediate Computations)'!AZ107","v":"Dec 2013"},{"$f":"'(Intermediate Computations)'!BB107","v":"Jan 2014"},{"$f":"'(Intermediate Computations)'!BC107","v":"Feb 2014"},{"$f":"'(Intermediate Computations)'!BD107","v":"Mar 2014"},{"$f":"'(Intermediate Computations)'!BE107","v":"Apr 2014"},{"$f":"'(Intermediate Computations)'!BF107","v":"May 2014"},{"$f":"'(Intermediate Computations)'!BG107","v":"Jun 2014"},{"$f":"'(Intermediate Computations)'!BH107","v":"Jul 2014"},{"$f":"'(Intermediate Computations)'!BI107","v":"Aug 2014"},{"$f":"'(Intermediate Computations)'!BJ107","v":"Sep 2014"},{"$f":"'(Intermediate Computations)'!BK107","v":"Oct 2014"},{"$f":"'(Intermediate Computations)'!BL107","v":"Nov 2014"},{"$f":"'(Intermediate Computations)'!BM107","v":"Dec 2014"},{"$f":"'(Intermediate Computations)'!BO107","v":"Jan 2015"},{"$f":"'(Intermediate Computations)'!BP107","v":"Feb 2015"},{"$f":"'(Intermediate Computations)'!BQ107","v":"Mar 2015"},{"$f":"'(Intermediate Computations)'!BR107","v":"Apr 2015"},{"$f":"'(Intermediate Computations)'!BS107","v":"May 2015"},{"$f":"'(Intermediate Computations)'!BT107","v":"Jun 2015"},{"$f":"'(Intermediate Computations)'!BU107","v":"Jul 2015"},{"$f":"'(Intermediate Computations)'!BV107","v":"Aug 2015"},{"$f":"'(Intermediate Computations)'!BW107","v":"Sep 2015"},{"$f":"'(Intermediate Computations)'!BX107","v":"Oct 2015"},{"$f":"'(Intermediate Computations)'!BY107","v":"Nov 2015"},{"$f":"'(Intermediate Computations)'!BZ107","v":"Dec 2015"},{"$f":"'(Intermediate Computations)'!CB107","v":"Jan 2016"},{"$f":"'(Intermediate Computations)'!CC107","v":"Feb 2016"},{"$f":"'(Intermediate Computations)'!CD107","v":"Mar 2016"},{"$f":"'(Intermediate Computations)'!CE107","v":"Apr 2016"},{"$f":"'(Intermediate Computations)'!CF107","v":"May 2016"},{"$f":"'(Intermediate Computations)'!CG107","v":"Jun 2016"},{"$f":"'(Intermediate Computations)'!CH107","v":"Jul 2016"},{"$f":"'(Intermediate Computations)'!CI107","v":"Aug 2016"},{"$f":"'(Intermediate Computations)'!CJ107","v":"Sep 2016"},{"$f":"'(Intermediate Computations)'!CK107","v":"Oct 2016"},{"$f":"'(Intermediate Computations)'!CL107","v":"Nov 2016"},{"$f":"'(Intermediate Computations)'!CM107","v":"Dec 2016"},{"$f":"'(Intermediate Computations)'!CO107","v":"Jan 2017"},{"$f":"'(Intermediate Computations)'!CP107","v":"Feb 2017"},{"$f":"'(Intermediate Computations)'!CQ107","v":"Mar 2017"},{"$f":"'(Intermediate Computations)'!CR107","v":"Apr 2017"},{"$f":"'(Intermediate Computations)'!CS107","v":"May 2017"},{"$f":"'(Intermediate Computations)'!CT107","v":"Jun 2017"},{"$f":"'(Intermediate Computations)'!CU107","v":"Jul 2017"},{"$f":"'(Intermediate Computations)'!CV107","v":"Aug 2017"},{"$f":"'(Intermediate Computations)'!CW107","v":"Sep 2017"},{"$f":"'(Intermediate Computations)'!CX107","v":"Oct 2017"},{"$f":"'(Intermediate Computations)'!CY107","v":"Nov 2017"},{"$f":"'(Intermediate Computations)'!CZ107","v":"Dec 2017"},{"$f":"'(Intermediate Computations)'!DB107","v":"Jan 2018"},{"$f":"'(Intermediate Computations)'!DC107","v":"Feb 2018"},{"$f":"'(Intermediate Computations)'!DD107","v":"Mar 2018"},{"$f":"'(Intermediate Computations)'!DE107","v":"Apr 2018"},{"$f":"'(Intermediate Computations)'!DF107","v":"May 2018"},{"$f":"'(Intermediate Computations)'!DG107","v":"Jun 2018"},{"$f":"'(Intermediate Computations)'!DH107","v":"Jul 2018"},{"$f":"'(Intermediate Computations)'!DI107","v":"Aug 2018"},{"$f":"'(Intermediate Computations)'!DJ107","v":"Sep 2018"},{"$f":"'(Intermediate Computations)'!DK107","v":"Oct 2018"},{"$f":"'(Intermediate Computations)'!DL107","v":"Nov 2018"},{"$f":"'(Intermediate Computations)'!DM107","v":"Dec 2018"},{"$f":"'(Intermediate Computations)'!DO107","v":"Jan 2019"},{"$f":"'(Intermediate Computations)'!DP107","v":"Feb 2019"},{"$f":"'(Intermediate Computations)'!DQ107","v":"Mar 2019"},{"$f":"'(Intermediate Computations)'!DR107","v":"Apr 2019"},{"$f":"'(Intermediate Computations)'!DS107","v":"May 2019"},{"$f":"'(Intermediate Computations)'!DT107","v":"Jun 2019"},{"$f":"'(Intermediate Computations)'!DU107","v":"Jul 2019"},{"$f":"'(Intermediate Computations)'!DV107","v":"Aug 2019"},{"$f":"'(Intermediate Computations)'!DW107","v":"Sep 2019"},{"$f":"'(Intermediate Computations)'!DX107","v":"Oct 2019"},{"$f":"'(Intermediate Computations)'!DY107","v":"Nov 2019"},{"$f":"'(Intermediate Computations)'!DZ107","v":"Dec 2019"},{"$f":"'(Intermediate Computations)'!EB107","v":"Jan 2020"},{"$f":"'(Intermediate Computations)'!EC107","v":"Feb 2020"},{"$f":"'(Intermediate Computations)'!ED107","v":"Mar 2020"},{"$f":"'(Intermediate Computations)'!EE107","v":"Apr 2020"},{"$f":"'(Intermediate Computations)'!EF107","v":"May 2020"},{"$f":"'(Intermediate Computations)'!EG107","v":"Jun 2020"},{"$f":"'(Intermediate Computations)'!EH107","v":"Jul 2020"},{"$f":"'(Intermediate Computations)'!EI107","v":"Aug 2020"},{"$f":"'(Intermediate Computations)'!EJ107","v":"Sep 2020"},{"$f":"'(Intermediate Computations)'!EK107","v":"Oct 2020"},{"$f":"'(Intermediate Computations)'!EL107","v":"Nov 2020"},{"$f":"'(Intermediate Computations)'!EM107","v":"Dec 2020"}]
[{"$f":"'(Intermediate Computations)'!B104","v":"2010-01-01"},{"$f":"'(Intermediate Computations)'!C104","v":"2010-02-01"},{"$f":"'(Intermediate Computations)'!D104","v":"2010-03-01"},{"$f":"'(Intermediate Computations)'!E104","v":"2010-04-01"},{"$f":"'(Intermediate Computations)'!F104","v":"2010-05-01"},{"$f":"'(Intermediate Computations)'!G104","v":"2010-06-01"},{"$f":"'(Intermediate Computations)'!H104","v":"2010-07-01"},{"$f":"'(Intermediate Computations)'!I104","v":"2010-08-01"},{"$f":"'(Intermediate Computations)'!J104","v":"2010-09-01"},{"$f":"'(Intermediate Computations)'!K104","v":"2010-10-01"},{"$f":"'(Intermediate Computations)'!L104","v":"2010-11-01"},{"$f":"'(Intermediate Computations)'!M104","v":"2010-12-01"},{"$f":"'(Intermediate Computations)'!O104","v":"2011-01-01"},{"$f":"'(Intermediate Computations)'!P104","v":"2011-02-01"},{"$f":"'(Intermediate Computations)'!Q104","v":"2011-03-01"},{"$f":"'(Intermediate Computations)'!R104","v":"2011-04-01"},{"$f":"'(Intermediate Computations)'!S104","v":"2011-05-01"},{"$f":"'(Intermediate Computations)'!T104","v":"2011-06-01"},{"$f":"'(Intermediate Computations)'!U104","v":"2011-07-01"},{"$f":"'(Intermediate Computations)'!V104","v":"2011-08-01"},{"$f":"'(Intermediate Computations)'!W104","v":"2011-09-01"},{"$f":"'(Intermediate Computations)'!X104","v":"2011-10-01"},{"$f":"'(Intermediate Computations)'!Y104","v":"2011-11-01"},{"$f":"'(Intermediate Computations)'!Z104","v":"2011-12-01"},{"$f":"'(Intermediate Computations)'!AB104","v":"2012-01-01"},{"$f":"'(Intermediate Computations)'!AC104","v":"2012-02-01"},{"$f":"'(Intermediate Computations)'!AD104","v":"2012-03-01"},{"$f":"'(Intermediate Computations)'!AE104","v":"2012-04-01"},{"$f":"'(Intermediate Computations)'!AF104","v":"2012-05-01"},{"$f":"'(Intermediate Computations)'!AG104","v":"2012-06-01"},{"$f":"'(Intermediate Computations)'!AH104","v":"2012-07-01"},{"$f":"'(Intermediate Computations)'!AI104","v":"2012-08-01"},{"$f":"'(Intermediate Computations)'!AJ104","v":"2012-09-01"},{"$f":"'(Intermediate Computations)'!AK104","v":"2012-10-01"},{"$f":"'(Intermediate Computations)'!AL104","v":"2012-11-01"},{"$f":"'(Intermediate Computations)'!AM104","v":"2012-12-01"},{"$f":"'(Intermediate Computations)'!AO104","v":"2013-01-01"},{"$f":"'(Intermediate Computations)'!AP104","v":"2013-02-01"},{"$f":"'(Intermediate Computations)'!AQ104","v":"2013-03-01"},{"$f":"'(Intermediate Computations)'!AR104","v":"2013-04-01"},{"$f":"'(Intermediate Computations)'!AS104","v":"2013-05-01"},{"$f":"'(Intermediate Computations)'!AT104","v":"2013-06-01"},{"$f":"'(Intermediate Computations)'!AU104","v":"2013-07-01"},{"$f":"'(Intermediate Computations)'!AV104","v":"2013-08-01"},{"$f":"'(Intermediate Computations)'!AW104","v":"2013-09-01"},{"$f":"'(Intermediate Computations)'!AX104","v":"2013-10-01"},{"$f":"'(Intermediate Computations)'!AY104","v":"2013-11-01"},{"$f":"'(Intermediate Computations)'!AZ104","v":"2013-12-01"},{"$f":"'(Intermediate Computations)'!BB104","v":"2014-01-01"},{"$f":"'(Intermediate Computations)'!BC104","v":"2014-02-01"},{"$f":"'(Intermediate Computations)'!BD104","v":"2014-03-01"},{"$f":"'(Intermediate Computations)'!BE104","v":"2014-04-01"},{"$f":"'(Intermediate Computations)'!BF104","v":"2014-05-01"},{"$f":"'(Intermediate Computations)'!BG104","v":"2014-06-01"},{"$f":"'(Intermediate Computations)'!BH104","v":"2014-07-01"},{"$f":"'(Intermediate Computations)'!BI104","v":"2014-08-01"},{"$f":"'(Intermediate Computations)'!BJ104","v":"2014-09-01"},{"$f":"'(Intermediate Computations)'!BK104","v":"2014-10-01"},{"$f":"'(Intermediate Computations)'!BL104","v":"2014-11-01"},{"$f":"'(Intermediate Computations)'!BM104","v":"2014-12-01"},{"$f":"'(Intermediate Computations)'!BO104","v":"2015-01-01"},{"$f":"'(Intermediate Computations)'!BP104","v":"2015-02-01"},{"$f":"'(Intermediate Computations)'!BQ104","v":"2015-03-01"},{"$f":"'(Intermediate Computations)'!BR104","v":"2015-04-01"},{"$f":"'(Intermediate Computations)'!BS104","v":"2015-05-01"},{"$f":"'(Intermediate Computations)'!BT104","v":"2015-06-01"},{"$f":"'(Intermediate Computations)'!BU104","v":"2015-07-01"},{"$f":"'(Intermediate Computations)'!BV104","v":"2015-08-01"},{"$f":"'(Intermediate Computations)'!BW104","v":"2015-09-01"},{"$f":"'(Intermediate Computations)'!BX104","v":"2015-10-01"},{"$f":"'(Intermediate Computations)'!BY104","v":"2015-11-01"},{"$f":"'(Intermediate Computations)'!BZ104","v":"2015-12-01"},{"$f":"'(Intermediate Computations)'!CB104","v":"2016-01-01"},{"$f":"'(Intermediate Computations)'!CC104","v":"2016-02-01"},{"$f":"'(Intermediate Computations)'!CD104","v":"2016-03-01"},{"$f":"'(Intermediate Computations)'!CE104","v":"2016-04-01"},{"$f":"'(Intermediate Computations)'!CF104","v":"2016-05-01"},{"$f":"'(Intermediate Computations)'!CG104","v":"2016-06-01"},{"$f":"'(Intermediate Computations)'!CH104","v":"2016-07-01"},{"$f":"'(Intermediate Computations)'!CI104","v":"2016-08-01"},{"$f":"'(Intermediate Computations)'!CJ104","v":"2016-09-01"},{"$f":"'(Intermediate Computations)'!CK104","v":"2016-10-01"},{"$f":"'(Intermediate Computations)'!CL104","v":"2016-11-01"},{"$f":"'(Intermediate Computations)'!CM104","v":"2016-12-01"},{"$f":"'(Intermediate Computations)'!CO104","v":"2017-01-01"},{"$f":"'(Intermediate Computations)'!CP104","v":"2017-02-01"},{"$f":"'(Intermediate Computations)'!CQ104","v":"2017-03-01"},{"$f":"'(Intermediate Computations)'!CR104","v":"2017-04-01"},{"$f":"'(Intermediate Computations)'!CS104","v":"2017-05-01"},{"$f":"'(Intermediate Computations)'!CT104","v":"2017-06-01"},{"$f":"'(Intermediate Computations)'!CU104","v":"2017-07-01"},{"$f":"'(Intermediate Computations)'!CV104","v":"2017-08-01"},{"$f":"'(Intermediate Computations)'!CW104","v":"2017-09-01"},{"$f":"'(Intermediate Computations)'!CX104","v":"2017-10-01"},{"$f":"'(Intermediate Computations)'!CY104","v":"2017-11-01"},{"$f":"'(Intermediate Computations)'!CZ104","v":"2017-12-01"},{"$f":"'(Intermediate Computations)'!DB104","v":"2018-01-01"},{"$f":"'(Intermediate Computations)'!DC104","v":"2018-02-01"},{"$f":"'(Intermediate Computations)'!DD104","v":"2018-03-01"},{"$f":"'(Intermediate Computations)'!DE104","v":"2018-04-01"},{"$f":"'(Intermediate Computations)'!DF104","v":"2018-05-01"},{"$f":"'(Intermediate Computations)'!DG104","v":"2018-06-01"},{"$f":"'(Intermediate Computations)'!DH104","v":"2018-07-01"},{"$f":"'(Intermediate Computations)'!DI104","v":"2018-08-01"},{"$f":"'(Intermediate Computations)'!DJ104","v":"2018-09-01"},{"$f":"'(Intermediate Computations)'!DK104","v":"2018-10-01"},{"$f":"'(Intermediate Computations)'!DL104","v":"2018-11-01"},{"$f":"'(Intermediate Computations)'!DM104","v":"2018-12-01"},{"$f":"'(Intermediate Computations)'!DO104","v":"2019-01-01"},{"$f":"'(Intermediate Computations)'!DP104","v":"2019-02-01"},{"$f":"'(Intermediate Computations)'!DQ104","v":"2019-03-01"},{"$f":"'(Intermediate Computations)'!DR104","v":"2019-04-01"},{"$f":"'(Intermediate Computations)'!DS104","v":"2019-05-01"},{"$f":"'(Intermediate Computations)'!DT104","v":"2019-06-01"},{"$f":"'(Intermediate Computations)'!DU104","v":"2019-07-01"},{"$f":"'(Intermediate Computations)'!DV104","v":"2019-08-01"},{"$f":"'(Intermediate Computations)'!DW104","v":"2019-09-01"},{"$f":"'(Intermediate Computations)'!DX104","v":"2019-10-01"},{"$f":"'(Intermediate Computations)'!DY104","v":"2019-11-01"},{"$f":"'(Intermediate Computations)'!DZ104","v":"2019-12-01"},{"$f":"'(Intermediate Computations)'!EB104","v":"2020-01-01"},{"$f":"'(Intermediate Computations)'!EC104","v":"2020-02-01"},{"$f":"'(Intermediate Computations)'!ED104","v":"2020-03-01"},{"$f":"'(Intermediate Computations)'!EE104","v":"2020-04-01"},{"$f":"'(Intermediate Computations)'!EF104","v":"2020-05-01"},{"$f":"'(Intermediate Computations)'!EG104","v":"2020-06-01"},{"$f":"'(Intermediate Computations)'!EH104","v":"2020-07-01"},{"$f":"'(Intermediate Computations)'!EI104","v":"2020-08-01"},{"$f":"'(Intermediate Computations)'!EJ104","v":"2020-09-01"},{"$f":"'(Intermediate Computations)'!EK104","v":"2020-10-01"},{"$f":"'(Intermediate Computations)'!EL104","v":"2020-11-01"},{"$f":"'(Intermediate Computations)'!EM104","v":"2020-12-01"}]
[{"$f":"'Statistical Moments'!B16","v":{"v":1166666.6666666667,"d":"$1,166,667"}},{"$f":"'Statistical Moments'!C16","v":{"v":1166134.299798436,"d":"$1,166,134"}},{"$f":"'Statistical Moments'!D16","v":{"v":1165636.4555325084,"d":"$1,165,636"}},{"$f":"'Statistical Moments'!E16","v":{"v":1165183.3059418895,"d":"$1,165,183"}},{"$f":"'Statistical Moments'!F16","v":{"v":1164748.4145538933,"d":"$1,164,748"}},{"$f":"'Statistical Moments'!G16","v":{"v":1164337.1305204607,"d":"$1,164,337"}},{"$f":"'Statistical Moments'!H16","v":{"v":1163894.6800440822,"d":"$1,163,895"}},{"$f":"'Statistical Moments'!I16","v":{"v":1163410.039634123,"d":"$1,163,410"}},{"$f":"'Statistical Moments'!J16","v":{"v":1162945.4956195753,"d":"$1,162,945"}},{"$f":"'Statistical Moments'!K16","v":{"v":1162484.430354002,"d":"$1,162,484"}},{"$f":"'Statistical Moments'!L16","v":{"v":1162023.6687478363,"d":"$1,162,024"}},{"$f":"'Statistical Moments'!M16","v":{"v":1161558.1464803764,"d":"$1,161,558"}},{"$f":"'Statistical Moments'!O16","v":{"v":1161078.682612517,"d":"$1,161,079"}},{"$f":"'Statistical Moments'!P16","v":{"v":1160625.986214525,"d":"$1,160,626"}},{"$f":"'Statistical Moments'!Q16","v":{"v":1160165.6610673305,"d":"$1,160,166"}},{"$f":"'Statistical Moments'!R16","v":{"v":1159715.761879887,"d":"$1,159,716"}},{"$f":"'Statistical Moments'!S16","v":{"v":1159276.5316908984,"d":"$1,159,277"}},{"$f":"'Statistical Moments'!T16","v":{"v":1158747.5213495495,"d":"$1,158,748"}},{"$f":"'Statistical Moments'!U16","v":{"v":1158295.059709195,"d":"$1,158,295"}},{"$f":"'Statistical Moments'!V16","v":{"v":1157788.9890106542,"d":"$1,157,789"}},{"$f":"'Statistical Moments'!W16","v":{"v":1157289.4359547808,"d":"$1,157,289"}},{"$f":"'Statistical Moments'!X16","v":{"v":1156853.129664057,"d":"$1,156,853"}},{"$f":"'Statistical Moments'!Y16","v":{"v":1156366.3454110562,"d":"$1,156,366"}},{"$f":"'Statistical Moments'!Z16","v":{"v":1155884.156556347,"d":"$1,155,884"}},{"$f":"'Statistical Moments'!AB16","v":{"v":1155351.2511909318,"d":"$1,155,351"}},{"$f":"'Statistical Moments'!AC16","v":{"v":1154877.1243015807,"d":"$1,154,877"}},{"$f":"'Statistical Moments'!AD16","v":{"v":1154425.6946732905,"d":"$1,154,426"}},{"$f":"'Statistical Moments'!AE16","v":{"v":1153957.7453076506,"d":"$1,153,958"}},{"$f":"'Statistical Moments'!AF16","v":{"v":1153482.4580547782,"d":"$1,153,482"}},{"$f":"'Statistical Moments'!AG16","v":{"v":1152969.6752769426,"d":"$1,152,970"}},{"$f":"'Statistical Moments'!AH16","v":{"v":1152509.2954025222,"d":"$1,152,509"}},{"$f":"'Statistical Moments'!AI16","v":{"v":1152070.4846371864,"d":"$1,152,070"}},{"$f":"'Statistical Moments'!AJ16","v":{"v":1151554.963923138,"d":"$1,151,555"}},{"$f":"'Statistical Moments'!AK16","v":{"v":1151085.9121397575,"d":"$1,151,086"}},{"$f":"'Statistical Moments'!AL16","v":{"v":1150627.3862394553,"d":"$1,150,627"}},{"$f":"'Statistical Moments'!AM16","v":{"v":1150177.339391747,"d":"$1,150,177"}},{"$f":"'Statistical Moments'!AO16","v":{"v":1149678.5946152154,"d":"$1,149,679"}},{"$f":"'Statistical Moments'!AP16","v":{"v":1149206.1100848576,"d":"$1,149,206"}},{"$f":"'Statistical Moments'!AQ16","v":{"v":1148763.0816027145,"d":"$1,148,763"}},{"$f":"'Statistical Moments'!AR16","v":{"v":1148266.1808158203,"d":"$1,148,266"}},{"$f":"'Statistical Moments'!AS16","v":{"v":1147787.9596503433,"d":"$1,147,788"}},{"$f":"'Statistical Moments'!AT16","v":{"v":1147340.555425811,"d":"$1,147,341"}},{"$f":"'Statistical Moments'!AU16","v":{"v":1146862.859929923,"d":"$1,146,863"}},{"$f":"'Statistical Moments'!AV16","v":{"v":1146376.50526501,"d":"$1,146,377"}},{"$f":"'Statistical Moments'!AW16","v":{"v":1145904.6513706613,"d":"$1,145,905"}},{"$f":"'Statistical Moments'!AX16","v":{"v":1145399.3653107306,"d":"$1,145,399"}},{"$f":"'Statistical Moments'!AY16","v":{"v":1144913.883168009,"d":"$1,144,914"}},{"$f":"'Statistical Moments'!AZ16","v":{"v":1144442.7695411944,"d":"$1,144,443"}},{"$f":"'Statistical Moments'!BB16","v":{"v":1143929.206048225,"d":"$1,143,929"}},{"$f":"'Statistical Moments'!BC16","v":{"v":1143421.0160843728,"d":"$1,143,421"}},{"$f":"'Statistical Moments'!BD16","v":{"v":1142935.7296277315,"d":"$1,142,936"}},{"$f":"'Statistical Moments'!BE16","v":{"v":1142460.3504650965,"d":"$1,142,460"}},{"$f":"'Statistical Moments'!BF16","v":{"v":1141975.7600357754,"d":"$1,141,976"}},{"$f":"'Statistical Moments'!BG16","v":{"v":1141511.079052567,"d":"$1,141,511"}},{"$f":"'Statistical Moments'!BH16","v":{"v":1141046.4153389584,"d":"$1,141,046"}},{"$f":"'Statistical Moments'!BI16","v":{"v":1140535.568676482,"d":"$1,140,536"}},{"$f":"'Statistical Moments'!BJ16","v":{"v":1140043.8151498723,"d":"$1,140,044"}},{"$f":"'Statistical Moments'!BK16","v":{"v":1139584.1610301982,"d":"$1,139,584"}},{"$f":"'Statistical Moments'!BL16","v":{"v":1139098.7432433793,"d":"$1,139,099"}},{"$f":"'Statistical Moments'!BM16","v":{"v":1138639.9556165102,"d":"$1,138,640"}},{"$f":"'Statistical Moments'!BO16","v":{"v":1138158.9608153752,"d":"$1,138,159"}},{"$f":"'Statistical Moments'!BP16","v":{"v":1137675.5396274568,"d":"$1,137,676"}},{"$f":"'Statistical Moments'!BQ16","v":{"v":1137206.9256264013,"d":"$1,137,207"}},{"$f":"'Statistical Moments'!BR16","v":{"v":1136762.8487811806,"d":"$1,136,763"}},{"$f":"'Statistical Moments'!BS16","v":{"v":1136310.9418184343,"d":"$1,136,311"}},{"$f":"'Statistical Moments'!BT16","v":{"v":1135819.9867621486,"d":"$1,135,820"}},{"$f":"'Statistical Moments'!BU16","v":{"v":1135388.2825575627,"d":"$1,135,388"}},{"$f":"'Statistical Moments'!BV16","v":{"v":1134893.986947665,"d":"$1,134,894"}},{"$f":"'Statistical Moments'!BW16","v":{"v":1134414.8208417657,"d":"$1,134,415"}},{"$f":"'Statistical Moments'!BX16","v":{"v":1133974.448016797,"d":"$1,133,974"}},{"$f":"'Statistical Moments'!BY16","v":{"v":1133478.1962294013,"d":"$1,133,478"}},{"$f":"'Statistical Moments'!BZ16","v":{"v":1133032.0065645312,"d":"$1,133,032"}},{"$f":"'Statistical Moments'!CB16","v":{"v":1132560.9982018468,"d":"$1,132,561"}},{"$f":"'Statistical Moments'!CC16","v":{"v":1132082.6195626992,"d":"$1,132,083"}},{"$f":"'Statistical Moments'!CD16","v":{"v":1131599.218052073,"d":"$1,131,599"}},{"$f":"'Statistical Moments'!CE16","v":{"v":1131142.8333645063,"d":"$1,131,143"}},{"$f":"'Statistical Moments'!CF16","v":{"v":1130645.5376956263,"d":"$1,130,646"}},{"$f":"'Statistical Moments'!CG16","v":{"v":1130169.438607735,"d":"$1,130,169"}},{"$f":"'Statistical Moments'!CH16","v":{"v":1129761.2340801065,"d":"$1,129,761"}},{"$f":"'Statistical Moments'!CI16","v":{"v":1129298.0131834731,"d":"$1,129,298"}},{"$f":"'Statistical Moments'!CJ16","v":{"v":1128848.2505265397,"d":"$1,128,848"}},{"$f":"'Statistical Moments'!CK16","v":{"v":1128388.9622053527,"d":"$1,128,389"}},{"$f":"'Statistical Moments'!CL16","v":{"v":1127961.3395325867,"d":"$1,127,961"}},{"$f":"'Statistical Moments'!CM16","v":{"v":1127485.2338876673,"d":"$1,127,485"}},{"$f":"'Statistical Moments'!CO16","v":{"v":1127052.385663481,"d":"$1,127,052"}},{"$f":"'Statistical Moments'!CP16","v":{"v":1126599.8169740671,"d":"$1,126,600"}},{"$f":"'Statistical Moments'!CQ16","v":{"v":1126149.075856652,"d":"$1,126,149"}},{"$f":"'Statistical Moments'!CR16","v":{"v":1125694.9155914248,"d":"$1,125,695"}},{"$f":"'Statistical Moments'!CS16","v":{"v":1125227.5132804029,"d":"$1,125,228"}},{"$f":"'Statistical Moments'!CT16","v":{"v":1124708.7723430353,"d":"$1,124,709"}},{"$f":"'Statistical Moments'!CU16","v":{"v":1124214.1651056383,"d":"$1,124,214"}},{"$f":"'Statistical Moments'!CV16","v":{"v":1123798.9490819403,"d":"$1,123,799"}},{"$f":"'Statistical Moments'!CW16","v":{"v":1123320.4056564881,"d":"$1,123,320"}},{"$f":"'Statistical Moments'!CX16","v":{"v":1122846.563312546,"d":"$1,122,847"}},{"$f":"'Statistical Moments'!CY16","v":{"v":1122362.9763656722,"d":"$1,122,363"}},{"$f":"'Statistical Moments'!CZ16","v":{"v":1121910.4218847917,"d":"$1,121,910"}},{"$f":"'Statistical Moments'!DB16","v":{"v":1121430.931780525,"d":"$1,121,431"}},{"$f":"'Statistical Moments'!DC16","v":{"v":1120983.757031152,"d":"$1,120,984"}},{"$f":"'Statistical Moments'!DD16","v":{"v":1120486.6662355703,"d":"$1,120,487"}},{"$f":"'Statistical Moments'!DE16","v":{"v":1120006.1285760556,"d":"$1,120,006"}},{"$f":"'Statistical Moments'!DF16","v":{"v":1119553.2780478012,"d":"$1,119,553"}},{"$f":"'Statistical Moments'!DG16","v":{"v":1119083.582748378,"d":"$1,119,084"}},{"$f":"'Statistical Moments'!DH16","v":{"v":1118606.5275678227,"d":"$1,118,607"}},{"$f":"'Statistical Moments'!DI16","v":{"v":1118124.5304279032,"d":"$1,118,125"}},{"$f":"'Statistical Moments'!DJ16","v":{"v":1117635.1125806011,"d":"$1,117,635"}},{"$f":"'Statistical Moments'!DK16","v":{"v":1117165.9231246505,"d":"$1,117,166"}},{"$f":"'Statistical Moments'!DL16","v":{"v":1116691.4276115699,"d":"$1,116,691"}},{"$f":"'Statistical Moments'!DM16","v":{"v":1116200.128967642,"d":"$1,116,200"}},{"$f":"'Statistical Moments'!DO16","v":{"v":1115716.052490074,"d":"$1,115,716"}},{"$f":"'Statistical Moments'!DP16","v":{"v":1115270.0077143377,"d":"$1,115,270"}},{"$f":"'Statistical Moments'!DQ16","v":{"v":1114787.186525086,"d":"$1,114,787"}},{"$f":"'Statistical Moments'!DR16","v":{"v":1114352.8401964568,"d":"$1,114,353"}},{"$f":"'Statistical Moments'!DS16","v":{"v":1113889.9186057271,"d":"$1,113,890"}},{"$f":"'Statistical Moments'!DT16","v":{"v":1113423.2561531996,"d":"$1,113,423"}},{"$f":"'Statistical Moments'!DU16","v":{"v":1112986.8024891978,"d":"$1,112,987"}},{"$f":"'Statistical Moments'!DV16","v":{"v":1112530.6553871369,"d":"$1,112,531"}},{"$f":"'Statistical Moments'!DW16","v":{"v":1112083.4320830791,"d":"$1,112,083"}},{"$f":"'Statistical Moments'!DX16","v":{"v":1111623.3652131693,"d":"$1,111,623"}},{"$f":"'Statistical Moments'!DY16","v":{"v":1111158.5736636175,"d":"$1,111,159"}},{"$f":"'Statistical Moments'!DZ16","v":{"v":1110696.5995071118,"d":"$1,110,697"}},{"$f":"'Statistical Moments'!EB16","v":{"v":1110195.2738735112,"d":"$1,110,195"}},{"$f":"'Statistical Moments'!EC16","v":{"v":1109744.017099743,"d":"$1,109,744"}},{"$f":"'Statistical Moments'!ED16","v":{"v":1109246.9187586345,"d":"$1,109,247"}},{"$f":"'Statistical Moments'!EE16","v":{"v":1108763.939054475,"d":"$1,108,764"}},{"$f":"'Statistical Moments'!EF16","v":{"v":1108302.3421190153,"d":"$1,108,302"}},{"$f":"'Statistical Moments'!EG16","v":{"v":1107844.9911045283,"d":"$1,107,845"}},{"$f":"'Statistical Moments'!EH16","v":{"v":1107356.0093411754,"d":"$1,107,356"}},{"$f":"'Statistical Moments'!EI16","v":{"v":1106876.874838989,"d":"$1,106,877"}},{"$f":"'Statistical Moments'!EJ16","v":{"v":1106354.9171761756,"d":"$1,106,355"}},{"$f":"'Statistical Moments'!EK16","v":{"v":1105876.6985823626,"d":"$1,105,877"}},{"$f":"'Statistical Moments'!EL16","v":{"v":1105424.1553788302,"d":"$1,105,424"}},{"$f":"'Statistical Moments'!EM16","v":{"v":1104940.5078620347,"d":"$1,104,941"}}]
[{"$f":"'(Intermediate Computations)'!B113","v":"Jan 2010"},{"$f":"'(Intermediate Computations)'!C113","v":"Feb 2010"},{"$f":"'(Intermediate Computations)'!D113","v":"Mar 2010"},{"$f":"'(Intermediate Computations)'!E113","v":"Apr 2010"},{"$f":"'(Intermediate Computations)'!F113","v":"May 2010"},{"$f":"'(Intermediate Computations)'!G113","v":"Jun 2010"},{"$f":"'(Intermediate Computations)'!H113","v":"Jul 2010"},{"$f":"'(Intermediate Computations)'!I113","v":"Aug 2010"},{"$f":"'(Intermediate Computations)'!J113","v":"Sep 2010"},{"$f":"'(Intermediate Computations)'!K113","v":"Oct 2010"},{"$f":"'(Intermediate Computations)'!L113","v":"Nov 2010"},{"$f":"'(Intermediate Computations)'!M113","v":"Dec 2010"},{"$f":"'(Intermediate Computations)'!O113","v":"Jan 2011"},{"$f":"'(Intermediate Computations)'!P113","v":"Feb 2011"},{"$f":"'(Intermediate Computations)'!Q113","v":"Mar 2011"},{"$f":"'(Intermediate Computations)'!R113","v":"Apr 2011"},{"$f":"'(Intermediate Computations)'!S113","v":"May 2011"},{"$f":"'(Intermediate Computations)'!T113","v":"Jun 2011"},{"$f":"'(Intermediate Computations)'!U113","v":"Jul 2011"},{"$f":"'(Intermediate Computations)'!V113","v":"Aug 2011"},{"$f":"'(Intermediate Computations)'!W113","v":"Sep 2011"},{"$f":"'(Intermediate Computations)'!X113","v":"Oct 2011"},{"$f":"'(Intermediate Computations)'!Y113","v":"Nov 2011"},{"$f":"'(Intermediate Computations)'!Z113","v":"Dec 2011"},{"$f":"'(Intermediate Computations)'!AB113","v":"Jan 2012"},{"$f":"'(Intermediate Computations)'!AC113","v":"Feb 2012"},{"$f":"'(Intermediate Computations)'!AD113","v":"Mar 2012"},{"$f":"'(Intermediate Computations)'!AE113","v":"Apr 2012"},{"$f":"'(Intermediate Computations)'!AF113","v":"May 2012"},{"$f":"'(Intermediate Computations)'!AG113","v":"Jun 2012"},{"$f":"'(Intermediate Computations)'!AH113","v":"Jul 2012"},{"$f":"'(Intermediate Computations)'!AI113","v":"Aug 2012"},{"$f":"'(Intermediate Computations)'!AJ113","v":"Sep 2012"},{"$f":"'(Intermediate Computations)'!AK113","v":"Oct 2012"},{"$f":"'(Intermediate Computations)'!AL113","v":"Nov 2012"},{"$f":"'(Intermediate Computations)'!AM113","v":"Dec 2012"},{"$f":"'(Intermediate Computations)'!AO113","v":"Jan 2013"},{"$f":"'(Intermediate Computations)'!AP113","v":"Feb 2013"},{"$f":"'(Intermediate Computations)'!AQ113","v":"Mar 2013"},{"$f":"'(Intermediate Computations)'!AR113","v":"Apr 2013"},{"$f":"'(Intermediate Computations)'!AS113","v":"May 2013"},{"$f":"'(Intermediate Computations)'!AT113","v":"Jun 2013"},{"$f":"'(Intermediate Computations)'!AU113","v":"Jul 2013"},{"$f":"'(Intermediate Computations)'!AV113","v":"Aug 2013"},{"$f":"'(Intermediate Computations)'!AW113","v":"Sep 2013"},{"$f":"'(Intermediate Computations)'!AX113","v":"Oct 2013"},{"$f":"'(Intermediate Computations)'!AY113","v":"Nov 2013"},{"$f":"'(Intermediate Computations)'!AZ113","v":"Dec 2013"},{"$f":"'(Intermediate Computations)'!BB113","v":"Jan 2014"},{"$f":"'(Intermediate Computations)'!BC113","v":"Feb 2014"},{"$f":"'(Intermediate Computations)'!BD113","v":"Mar 2014"},{"$f":"'(Intermediate Computations)'!BE113","v":"Apr 2014"},{"$f":"'(Intermediate Computations)'!BF113","v":"May 2014"},{"$f":"'(Intermediate Computations)'!BG113","v":"Jun 2014"},{"$f":"'(Intermediate Computations)'!BH113","v":"Jul 2014"},{"$f":"'(Intermediate Computations)'!BI113","v":"Aug 2014"},{"$f":"'(Intermediate Computations)'!BJ113","v":"Sep 2014"},{"$f":"'(Intermediate Computations)'!BK113","v":"Oct 2014"},{"$f":"'(Intermediate Computations)'!BL113","v":"Nov 2014"},{"$f":"'(Intermediate Computations)'!BM113","v":"Dec 2014"},{"$f":"'(Intermediate Computations)'!BO113","v":"Jan 2015"},{"$f":"'(Intermediate Computations)'!BP113","v":"Feb 2015"},{"$f":"'(Intermediate Computations)'!BQ113","v":"Mar 2015"},{"$f":"'(Intermediate Computations)'!BR113","v":"Apr 2015"},{"$f":"'(Intermediate Computations)'!BS113","v":"May 2015"},{"$f":"'(Intermediate Computations)'!BT113","v":"Jun 2015"},{"$f":"'(Intermediate Computations)'!BU113","v":"Jul 2015"},{"$f":"'(Intermediate Computations)'!BV113","v":"Aug 2015"},{"$f":"'(Intermediate Computations)'!BW113","v":"Sep 2015"},{"$f":"'(Intermediate Computations)'!BX113","v":"Oct 2015"},{"$f":"'(Intermediate Computations)'!BY113","v":"Nov 2015"},{"$f":"'(Intermediate Computations)'!BZ113","v":"Dec 2015"},{"$f":"'(Intermediate Computations)'!CB113","v":"Jan 2016"},{"$f":"'(Intermediate Computations)'!CC113","v":"Feb 2016"},{"$f":"'(Intermediate Computations)'!CD113","v":"Mar 2016"},{"$f":"'(Intermediate Computations)'!CE113","v":"Apr 2016"},{"$f":"'(Intermediate Computations)'!CF113","v":"May 2016"},{"$f":"'(Intermediate Computations)'!CG113","v":"Jun 2016"},{"$f":"'(Intermediate Computations)'!CH113","v":"Jul 2016"},{"$f":"'(Intermediate Computations)'!CI113","v":"Aug 2016"},{"$f":"'(Intermediate Computations)'!CJ113","v":"Sep 2016"},{"$f":"'(Intermediate Computations)'!CK113","v":"Oct 2016"},{"$f":"'(Intermediate Computations)'!CL113","v":"Nov 2016"},{"$f":"'(Intermediate Computations)'!CM113","v":"Dec 2016"},{"$f":"'(Intermediate Computations)'!CO113","v":"Jan 2017"},{"$f":"'(Intermediate Computations)'!CP113","v":"Feb 2017"},{"$f":"'(Intermediate Computations)'!CQ113","v":"Mar 2017"},{"$f":"'(Intermediate Computations)'!CR113","v":"Apr 2017"},{"$f":"'(Intermediate Computations)'!CS113","v":"May 2017"},{"$f":"'(Intermediate Computations)'!CT113","v":"Jun 2017"},{"$f":"'(Intermediate Computations)'!CU113","v":"Jul 2017"},{"$f":"'(Intermediate Computations)'!CV113","v":"Aug 2017"},{"$f":"'(Intermediate Computations)'!CW113","v":"Sep 2017"},{"$f":"'(Intermediate Computations)'!CX113","v":"Oct 2017"},{"$f":"'(Intermediate Computations)'!CY113","v":"Nov 2017"},{"$f":"'(Intermediate Computations)'!CZ113","v":"Dec 2017"},{"$f":"'(Intermediate Computations)'!DB113","v":"Jan 2018"},{"$f":"'(Intermediate Computations)'!DC113","v":"Feb 2018"},{"$f":"'(Intermediate Computations)'!DD113","v":"Mar 2018"},{"$f":"'(Intermediate Computations)'!DE113","v":"Apr 2018"},{"$f":"'(Intermediate Computations)'!DF113","v":"May 2018"},{"$f":"'(Intermediate Computations)'!DG113","v":"Jun 2018"},{"$f":"'(Intermediate Computations)'!DH113","v":"Jul 2018"},{"$f":"'(Intermediate Computations)'!DI113","v":"Aug 2018"},{"$f":"'(Intermediate Computations)'!DJ113","v":"Sep 2018"},{"$f":"'(Intermediate Computations)'!DK113","v":"Oct 2018"},{"$f":"'(Intermediate Computations)'!DL113","v":"Nov 2018"},{"$f":"'(Intermediate Computations)'!DM113","v":"Dec 2018"},{"$f":"'(Intermediate Computations)'!DO113","v":"Jan 2019"},{"$f":"'(Intermediate Computations)'!DP113","v":"Feb 2019"},{"$f":"'(Intermediate Computations)'!DQ113","v":"Mar 2019"},{"$f":"'(Intermediate Computations)'!DR113","v":"Apr 2019"},{"$f":"'(Intermediate Computations)'!DS113","v":"May 2019"},{"$f":"'(Intermediate Computations)'!DT113","v":"Jun 2019"},{"$f":"'(Intermediate Computations)'!DU113","v":"Jul 2019"},{"$f":"'(Intermediate Computations)'!DV113","v":"Aug 2019"},{"$f":"'(Intermediate Computations)'!DW113","v":"Sep 2019"},{"$f":"'(Intermediate Computations)'!DX113","v":"Oct 2019"},{"$f":"'(Intermediate Computations)'!DY113","v":"Nov 2019"},{"$f":"'(Intermediate Computations)'!DZ113","v":"Dec 2019"},{"$f":"'(Intermediate Computations)'!EB113","v":"Jan 2020"},{"$f":"'(Intermediate Computations)'!EC113","v":"Feb 2020"},{"$f":"'(Intermediate Computations)'!ED113","v":"Mar 2020"},{"$f":"'(Intermediate Computations)'!EE113","v":"Apr 2020"},{"$f":"'(Intermediate Computations)'!EF113","v":"May 2020"},{"$f":"'(Intermediate Computations)'!EG113","v":"Jun 2020"},{"$f":"'(Intermediate Computations)'!EH113","v":"Jul 2020"},{"$f":"'(Intermediate Computations)'!EI113","v":"Aug 2020"},{"$f":"'(Intermediate Computations)'!EJ113","v":"Sep 2020"},{"$f":"'(Intermediate Computations)'!EK113","v":"Oct 2020"},{"$f":"'(Intermediate Computations)'!EL113","v":"Nov 2020"},{"$f":"'(Intermediate Computations)'!EM113","v":"Dec 2020"}]
[{"$f":"'(Intermediate Computations)'!B110","v":"2010-01-01"},{"$f":"'(Intermediate Computations)'!C110","v":"2010-02-01"},{"$f":"'(Intermediate Computations)'!D110","v":"2010-03-01"},{"$f":"'(Intermediate Computations)'!E110","v":"2010-04-01"},{"$f":"'(Intermediate Computations)'!F110","v":"2010-05-01"},{"$f":"'(Intermediate Computations)'!G110","v":"2010-06-01"},{"$f":"'(Intermediate Computations)'!H110","v":"2010-07-01"},{"$f":"'(Intermediate Computations)'!I110","v":"2010-08-01"},{"$f":"'(Intermediate Computations)'!J110","v":"2010-09-01"},{"$f":"'(Intermediate Computations)'!K110","v":"2010-10-01"},{"$f":"'(Intermediate Computations)'!L110","v":"2010-11-01"},{"$f":"'(Intermediate Computations)'!M110","v":"2010-12-01"},{"$f":"'(Intermediate Computations)'!O110","v":"2011-01-01"},{"$f":"'(Intermediate Computations)'!P110","v":"2011-02-01"},{"$f":"'(Intermediate Computations)'!Q110","v":"2011-03-01"},{"$f":"'(Intermediate Computations)'!R110","v":"2011-04-01"},{"$f":"'(Intermediate Computations)'!S110","v":"2011-05-01"},{"$f":"'(Intermediate Computations)'!T110","v":"2011-06-01"},{"$f":"'(Intermediate Computations)'!U110","v":"2011-07-01"},{"$f":"'(Intermediate Computations)'!V110","v":"2011-08-01"},{"$f":"'(Intermediate Computations)'!W110","v":"2011-09-01"},{"$f":"'(Intermediate Computations)'!X110","v":"2011-10-01"},{"$f":"'(Intermediate Computations)'!Y110","v":"2011-11-01"},{"$f":"'(Intermediate Computations)'!Z110","v":"2011-12-01"},{"$f":"'(Intermediate Computations)'!AB110","v":"2012-01-01"},{"$f":"'(Intermediate Computations)'!AC110","v":"2012-02-01"},{"$f":"'(Intermediate Computations)'!AD110","v":"2012-03-01"},{"$f":"'(Intermediate Computations)'!AE110","v":"2012-04-01"},{"$f":"'(Intermediate Computations)'!AF110","v":"2012-05-01"},{"$f":"'(Intermediate Computations)'!AG110","v":"2012-06-01"},{"$f":"'(Intermediate Computations)'!AH110","v":"2012-07-01"},{"$f":"'(Intermediate Computations)'!AI110","v":"2012-08-01"},{"$f":"'(Intermediate Computations)'!AJ110","v":"2012-09-01"},{"$f":"'(Intermediate Computations)'!AK110","v":"2012-10-01"},{"$f":"'(Intermediate Computations)'!AL110","v":"2012-11-01"},{"$f":"'(Intermediate Computations)'!AM110","v":"2012-12-01"},{"$f":"'(Intermediate Computations)'!AO110","v":"2013-01-01"},{"$f":"'(Intermediate Computations)'!AP110","v":"2013-02-01"},{"$f":"'(Intermediate Computations)'!AQ110","v":"2013-03-01"},{"$f":"'(Intermediate Computations)'!AR110","v":"2013-04-01"},{"$f":"'(Intermediate Computations)'!AS110","v":"2013-05-01"},{"$f":"'(Intermediate Computations)'!AT110","v":"2013-06-01"},{"$f":"'(Intermediate Computations)'!AU110","v":"2013-07-01"},{"$f":"'(Intermediate Computations)'!AV110","v":"2013-08-01"},{"$f":"'(Intermediate Computations)'!AW110","v":"2013-09-01"},{"$f":"'(Intermediate Computations)'!AX110","v":"2013-10-01"},{"$f":"'(Intermediate Computations)'!AY110","v":"2013-11-01"},{"$f":"'(Intermediate Computations)'!AZ110","v":"2013-12-01"},{"$f":"'(Intermediate Computations)'!BB110","v":"2014-01-01"},{"$f":"'(Intermediate Computations)'!BC110","v":"2014-02-01"},{"$f":"'(Intermediate Computations)'!BD110","v":"2014-03-01"},{"$f":"'(Intermediate Computations)'!BE110","v":"2014-04-01"},{"$f":"'(Intermediate Computations)'!BF110","v":"2014-05-01"},{"$f":"'(Intermediate Computations)'!BG110","v":"2014-06-01"},{"$f":"'(Intermediate Computations)'!BH110","v":"2014-07-01"},{"$f":"'(Intermediate Computations)'!BI110","v":"2014-08-01"},{"$f":"'(Intermediate Computations)'!BJ110","v":"2014-09-01"},{"$f":"'(Intermediate Computations)'!BK110","v":"2014-10-01"},{"$f":"'(Intermediate Computations)'!BL110","v":"2014-11-01"},{"$f":"'(Intermediate Computations)'!BM110","v":"2014-12-01"},{"$f":"'(Intermediate Computations)'!BO110","v":"2015-01-01"},{"$f":"'(Intermediate Computations)'!BP110","v":"2015-02-01"},{"$f":"'(Intermediate Computations)'!BQ110","v":"2015-03-01"},{"$f":"'(Intermediate Computations)'!BR110","v":"2015-04-01"},{"$f":"'(Intermediate Computations)'!BS110","v":"2015-05-01"},{"$f":"'(Intermediate Computations)'!BT110","v":"2015-06-01"},{"$f":"'(Intermediate Computations)'!BU110","v":"2015-07-01"},{"$f":"'(Intermediate Computations)'!BV110","v":"2015-08-01"},{"$f":"'(Intermediate Computations)'!BW110","v":"2015-09-01"},{"$f":"'(Intermediate Computations)'!BX110","v":"2015-10-01"},{"$f":"'(Intermediate Computations)'!BY110","v":"2015-11-01"},{"$f":"'(Intermediate Computations)'!BZ110","v":"2015-12-01"},{"$f":"'(Intermediate Computations)'!CB110","v":"2016-01-01"},{"$f":"'(Intermediate Computations)'!CC110","v":"2016-02-01"},{"$f":"'(Intermediate Computations)'!CD110","v":"2016-03-01"},{"$f":"'(Intermediate Computations)'!CE110","v":"2016-04-01"},{"$f":"'(Intermediate Computations)'!CF110","v":"2016-05-01"},{"$f":"'(Intermediate Computations)'!CG110","v":"2016-06-01"},{"$f":"'(Intermediate Computations)'!CH110","v":"2016-07-01"},{"$f":"'(Intermediate Computations)'!CI110","v":"2016-08-01"},{"$f":"'(Intermediate Computations)'!CJ110","v":"2016-09-01"},{"$f":"'(Intermediate Computations)'!CK110","v":"2016-10-01"},{"$f":"'(Intermediate Computations)'!CL110","v":"2016-11-01"},{"$f":"'(Intermediate Computations)'!CM110","v":"2016-12-01"},{"$f":"'(Intermediate Computations)'!CO110","v":"2017-01-01"},{"$f":"'(Intermediate Computations)'!CP110","v":"2017-02-01"},{"$f":"'(Intermediate Computations)'!CQ110","v":"2017-03-01"},{"$f":"'(Intermediate Computations)'!CR110","v":"2017-04-01"},{"$f":"'(Intermediate Computations)'!CS110","v":"2017-05-01"},{"$f":"'(Intermediate Computations)'!CT110","v":"2017-06-01"},{"$f":"'(Intermediate Computations)'!CU110","v":"2017-07-01"},{"$f":"'(Intermediate Computations)'!CV110","v":"2017-08-01"},{"$f":"'(Intermediate Computations)'!CW110","v":"2017-09-01"},{"$f":"'(Intermediate Computations)'!CX110","v":"2017-10-01"},{"$f":"'(Intermediate Computations)'!CY110","v":"2017-11-01"},{"$f":"'(Intermediate Computations)'!CZ110","v":"2017-12-01"},{"$f":"'(Intermediate Computations)'!DB110","v":"2018-01-01"},{"$f":"'(Intermediate Computations)'!DC110","v":"2018-02-01"},{"$f":"'(Intermediate Computations)'!DD110","v":"2018-03-01"},{"$f":"'(Intermediate Computations)'!DE110","v":"2018-04-01"},{"$f":"'(Intermediate Computations)'!DF110","v":"2018-05-01"},{"$f":"'(Intermediate Computations)'!DG110","v":"2018-06-01"},{"$f":"'(Intermediate Computations)'!DH110","v":"2018-07-01"},{"$f":"'(Intermediate Computations)'!DI110","v":"2018-08-01"},{"$f":"'(Intermediate Computations)'!DJ110","v":"2018-09-01"},{"$f":"'(Intermediate Computations)'!DK110","v":"2018-10-01"},{"$f":"'(Intermediate Computations)'!DL110","v":"2018-11-01"},{"$f":"'(Intermediate Computations)'!DM110","v":"2018-12-01"},{"$f":"'(Intermediate Computations)'!DO110","v":"2019-01-01"},{"$f":"'(Intermediate Computations)'!DP110","v":"2019-02-01"},{"$f":"'(Intermediate Computations)'!DQ110","v":"2019-03-01"},{"$f":"'(Intermediate Computations)'!DR110","v":"2019-04-01"},{"$f":"'(Intermediate Computations)'!DS110","v":"2019-05-01"},{"$f":"'(Intermediate Computations)'!DT110","v":"2019-06-01"},{"$f":"'(Intermediate Computations)'!DU110","v":"2019-07-01"},{"$f":"'(Intermediate Computations)'!DV110","v":"2019-08-01"},{"$f":"'(Intermediate Computations)'!DW110","v":"2019-09-01"},{"$f":"'(Intermediate Computations)'!DX110","v":"2019-10-01"},{"$f":"'(Intermediate Computations)'!DY110","v":"2019-11-01"},{"$f":"'(Intermediate Computations)'!DZ110","v":"2019-12-01"},{"$f":"'(Intermediate Computations)'!EB110","v":"2020-01-01"},{"$f":"'(Intermediate Computations)'!EC110","v":"2020-02-01"},{"$f":"'(Intermediate Computations)'!ED110","v":"2020-03-01"},{"$f":"'(Intermediate Computations)'!EE110","v":"2020-04-01"},{"$f":"'(Intermediate Computations)'!EF110","v":"2020-05-01"},{"$f":"'(Intermediate Computations)'!EG110","v":"2020-06-01"},{"$f":"'(Intermediate Computations)'!EH110","v":"2020-07-01"},{"$f":"'(Intermediate Computations)'!EI110","v":"2020-08-01"},{"$f":"'(Intermediate Computations)'!EJ110","v":"2020-09-01"},{"$f":"'(Intermediate Computations)'!EK110","v":"2020-10-01"},{"$f":"'(Intermediate Computations)'!EL110","v":"2020-11-01"},{"$f":"'(Intermediate Computations)'!EM110","v":"2020-12-01"}]
[{"$f":"'Statistical Moments'!B17","v":{"v":0,"d":"$0.0"}},{"$f":"'Statistical Moments'!C17","v":{"v":47.289417182975626,"d":"$47.3"}},{"$f":"'Statistical Moments'!D17","v":{"v":66.74019928681241,"d":"$66.7"}},{"$f":"'Statistical Moments'!E17","v":{"v":87.95059233552026,"d":"$88.0"}},{"$f":"'Statistical Moments'!F17","v":{"v":97.50151541882079,"d":"$97.5"}},{"$f":"'Statistical Moments'!G17","v":{"v":129.30098587241028,"d":"$129.3"}},{"$f":"'Statistical Moments'!H17","v":{"v":158.08175598421715,"d":"$158.1"}},{"$f":"'Statistical Moments'!I17","v":{"v":163.55655263708059,"d":"$163.6"}},{"$f":"'Statistical Moments'!J17","v":{"v":180.9467267545437,"d":"$180.9"}},{"$f":"'Statistical Moments'!K17","v":{"v":153.30925627494793,"d":"$153.3"}},{"$f":"'Statistical Moments'!L17","v":{"v":184.99705499473788,"d":"$185.0"}},{"$f":"'Statistical Moments'!M17","v":{"v":228.79120159133757,"d":"$228.8"}},{"$f":"'Statistical Moments'!O17","v":{"v":250.00543536577652,"d":"$250.0"}},{"$f":"'Statistical Moments'!P17","v":{"v":258.69968011205907,"d":"$258.7"}},{"$f":"'Statistical Moments'!Q17","v":{"v":259.55748263867474,"d":"$259.6"}},{"$f":"'Statistical Moments'!R17","v":{"v":251.6362388916896,"d":"$251.6"}},{"$f":"'Statistical Moments'!S17","v":{"v":271.7445894445003,"d":"$271.7"}},{"$f":"'Statistical Moments'!T17","v":{"v":285.94808569934935,"d":"$285.9"}},{"$f":"'Statistical Moments'!U17","v":{"v":265.9195537750691,"d":"$265.9"}},{"$f":"'Statistical Moments'!V17","v":{"v":260.0785466593811,"d":"$260.1"}},{"$f":"'Statistical Moments'!W17","v":{"v":281.14388090681564,"d":"$281.1"}},{"$f":"'Statistical Moments'!X17","v":{"v":292.5483142098799,"d":"$292.5"}},{"$f":"'Statistical Moments'!Y17","v":{"v":330.87866901056384,"d":"$330.9"}},{"$f":"'Statistical Moments'!Z17","v":{"v":354.55107886688364,"d":"$354.6"}},{"$f":"'Statistical Moments'!AB17","v":{"v":327.74012989845323,"d":"$327.7"}},{"$f":"'Statistical Moments'!AC17","v":{"v":295.62192511963804,"d":"$295.6"}},{"$f":"'Statistical Moments'!AD17","v":{"v":306.83057683653857,"d":"$306.8"}},{"$f":"'Statistical Moments'!AE17","v":{"v":332.0003400392201,"d":"$332.0"}},{"$f":"'Statistical Moments'!AF17","v":{"v":360.45977532763277,"d":"$360.5"}},{"$f":"'Statistical Moments'!AG17","v":{"v":395.5619448454726,"d":"$395.6"}},{"$f":"'Statistical Moments'!AH17","v":{"v":396.8325003439961,"d":"$396.8"}},{"$f":"'Statistical Moments'!AI17","v":{"v":410.9307949255596,"d":"$410.9"}},{"$f":"'Statistical Moments'!AJ17","v":{"v":406.75428512626564,"d":"$406.8"}},{"$f":"'Statistical Moments'!AK17","v":{"v":401.92232823976525,"d":"$401.9"}},{"$f":"'Statistical Moments'!AL17","v":{"v":400.3638697709337,"d":"$400.4"}},{"$f":"'Statistical Moments'!AM17","v":{"v":417.03823929739343,"d":"$417.0"}},{"$f":"'Statistical Moments'!AO17","v":{"v":465.6203163782962,"d":"$465.6"}},{"$f":"'Statistical Moments'!AP17","v":{"v":452.92640115187135,"d":"$452.9"}},{"$f":"'Statistical Moments'!AQ17","v":{"v":446.4660101331512,"d":"$446.5"}},{"$f":"'Statistical Moments'!AR17","v":{"v":459.216041611828,"d":"$459.2"}},{"$f":"'Statistical Moments'!AS17","v":{"v":486.9642107311272,"d":"$487.0"}},{"$f":"'Statistical Moments'!AT17","v":{"v":490.7427719263745,"d":"$490.7"}},{"$f":"'Statistical Moments'!AU17","v":{"v":471.17426514421743,"d":"$471.2"}},{"$f":"'Statistical Moments'!AV17","v":{"v":442.56814927386836,"d":"$442.6"}},{"$f":"'Statistical Moments'!AW17","v":{"v":437.1776071650671,"d":"$437.2"}},{"$f":"'Statistical Moments'!AX17","v":{"v":422.78894827282045,"d":"$422.8"}},{"$f":"'Statistical Moments'!AY17","v":{"v":412.33348955893473,"d":"$412.3"}},{"$f":"'Statistical Moments'!AZ17","v":{"v":428.84039858616796,"d":"$428.8"}},{"$f":"'Statistical Moments'!BB17","v":{"v":461.1451420358866,"d":"$461.1"}},{"$f":"'Statistical Moments'!BC17","v":{"v":406.33366721617165,"d":"$406.3"}},{"$f":"'Statistical Moments'!BD17","v":{"v":405.58758695378185,"d":"$405.6"}},{"$f":"'Statistical Moments'!BE17","v":{"v":439.38599250895095,"d":"$439.4"}},{"$f":"'Statistical Moments'!BF17","v":{"v":452.9815259283855,"d":"$453.0"}},{"$f":"'Statistical Moments'!BG17","v":{"v":481.4766129991568,"d":"$481.5"}},{"$f":"'Statistical Moments'!BH17","v":{"v":514.256676762626,"d":"$514.3"}},{"$f":"'Statistical Moments'!BI17","v":{"v":550.7491626301247,"d":"$550.7"}},{"$f":"'Statistical Moments'!BJ17","v":{"v":531.4135005621778,"d":"$531.4"}},{"$f":"'Statistical Moments'!BK17","v":{"v":549.069986544564,"d":"$549.1"}},{"$f":"'Statistical Moments'!BL17","v":{"v":523.2977502661527,"d":"$523.3"}},{"$f":"'Statistical Moments'!BM17","v":{"v":484.7804701506286,"d":"$484.8"}},{"$f":"'Statistical Moments'!BO17","v":{"v":469.9077815452599,"d":"$469.9"}},{"$f":"'Statistical Moments'!BP17","v":{"v":450.267536698899,"d":"$450.3"}},{"$f":"'Statistical Moments'!BQ17","v":{"v":431.03230879405385,"d":"$431.0"}},{"$f":"'Statistical Moments'!BR17","v":{"v":473.1220498649781,"d":"$473.1"}},{"$f":"'Statistical Moments'!BS17","v":{"v":502.5962325816477,"d":"$502.6"}},{"$f":"'Statistical Moments'!BT17","v":{"v":526.5044347618148,"d":"$526.5"}},{"$f":"'Statistical Moments'!BU17","v":{"v":510.2168150483862,"d":"$510.2"}},{"$f":"'Statistical Moments'!BV17","v":{"v":538.0004644364618,"d":"$538.0"}},{"$f":"'Statistical Moments'!BW17","v":{"v":573.3031446684718,"d":"$573.3"}},{"$f":"'Statistical Moments'!BX17","v":{"v":613.8041069397069,"d":"$613.8"}},{"$f":"'Statistical Moments'!BY17","v":{"v":626.7491584411847,"d":"$626.7"}},{"$f":"'Statistical Moments'!BZ17","v":{"v":586.9055242369443,"d":"$586.9"}},{"$f":"'Statistical Moments'!CB17","v":{"v":561.572192620838,"d":"$561.6"}},{"$f":"'Statistical Moments'!CC17","v":{"v":555.6279362238708,"d":"$555.6"}},{"$f":"'Statistical Moments'!CD17","v":{"v":553.3724850620555,"d":"$553.4"}},{"$f":"'Statistical Moments'!CE17","v":{"v":561.3594444576119,"d":"$561.4"}},{"$f":"'Statistical Moments'!CF17","v":{"v":551.6287729329056,"d":"$551.6"}},{"$f":"'Statistical Moments'!CG17","v":{"v":542.0778759611879,"d":"$542.1"}},{"$f":"'Statistical Moments'!CH17","v":{"v":579.2940706898313,"d":"$579.3"}},{"$f":"'Statistical Moments'!CI17","v":{"v":542.859008694393,"d":"$542.9"}},{"$f":"'Statistical Moments'!CJ17","v":{"v":511.14845784788616,"d":"$511.1"}},{"$f":"'Statistical Moments'!CK17","v":{"v":525.9211824253739,"d":"$525.9"}},{"$f":"'Statistical Moments'!CL17","v":{"v":526.2840731632449,"d":"$526.3"}},{"$f":"'Statistical Moments'!CM17","v":{"v":509.84348812687904,"d":"$509.8"}},{"$f":"'Statistical Moments'!CO17","v":{"v":539.8047538477095,"d":"$539.8"}},{"$f":"'Statistical Moments'!CP17","v":{"v":576.1928100358821,"d":"$576.2"}},{"$f":"'Statistical Moments'!CQ17","v":{"v":579.1965760268716,"d":"$579.2"}},{"$f":"'Statistical Moments'!CR17","v":{"v":588.385917183472,"d":"$588.4"}},{"$f":"'Statistical Moments'!CS17","v":{"v":602.9821988354938,"d":"$603.0"}},{"$f":"'Statistical Moments'!CT17","v":{"v":572.3340670526728,"d":"$572.3"}},{"$f":"'Statistical Moments'!CU17","v":{"v":585.6681579623455,"d":"$585.7"}},{"$f":"'Statistical Moments'!CV17","v":{"v":600.4267996488433,"d":"$600.4"}},{"$f":"'Statistical Moments'!CW17","v":{"v":583.5191429239993,"d":"$583.5"}},{"$f":"'Statistical Moments'!CX17","v":{"v":577.8264294056056,"d":"$577.8"}},{"$f":"'Statistical Moments'!CY17","v":{"v":604.5961459479782,"d":"$604.6"}},{"$f":"'Statistical Moments'!CZ17","v":{"v":611.0355974345948,"d":"$611.0"}},{"$f":"'Statistical Moments'!DB17","v":{"v":594.375348868677,"d":"$594.4"}},{"$f":"'Statistical Moments'!DC17","v":{"v":660.4636804662966,"d":"$660.5"}},{"$f":"'Statistical Moments'!DD17","v":{"v":660.3000544406791,"d":"$660.3"}},{"$f":"'Statistical Moments'!DE17","v":{"v":634.097092378026,"d":"$634.1"}},{"$f":"'Statistical Moments'!DF17","v":{"v":612.8971509735903,"d":"$612.9"}},{"$f":"'Statistical Moments'!DG17","v":{"v":593.7379566254668,"d":"$593.7"}},{"$f":"'Statistical Moments'!DH17","v":{"v":561.6634056457127,"d":"$561.7"}},{"$f":"'Statistical Moments'!DI17","v":{"v":548.0117204499774,"d":"$548.0"}},{"$f":"'Statistical Moments'!DJ17","v":{"v":510.5028751844289,"d":"$510.5"}},{"$f":"'Statistical Moments'!DK17","v":{"v":538.72210049958,"d":"$538.7"}},{"$f":"'Statistical Moments'!DL17","v":{"v":512.717992870656,"d":"$512.7"}},{"$f":"'Statistical Moments'!DM17","v":{"v":548.9135892613787,"d":"$548.9"}},{"$f":"'Statistical Moments'!DO17","v":{"v":552.8239934224771,"d":"$552.8"}},{"$f":"'Statistical Moments'!DP17","v":{"v":494.3072335682119,"d":"$494.3"}},{"$f":"'Statistical Moments'!DQ17","v":{"v":461.5480545353933,"d":"$461.5"}},{"$f":"'Statistical Moments'!DR17","v":{"v":486.63631461743375,"d":"$486.6"}},{"$f":"'Statistical Moments'!DS17","v":{"v":521.1669780974353,"d":"$521.2"}},{"$f":"'Statistical Moments'!DT17","v":{"v":519.5588663843309,"d":"$519.6"}},{"$f":"'Statistical Moments'!DU17","v":{"v":542.5934028051466,"d":"$542.6"}},{"$f":"'Statistical Moments'!DV17","v":{"v":565.4107030945289,"d":"$565.4"}},{"$f":"'Statistical Moments'!DW17","v":{"v":565.0423221379694,"d":"$565.0"}},{"$f":"'Statistical Moments'!DX17","v":{"v":597.9916029083744,"d":"$598.0"}},{"$f":"'Statistical Moments'!DY17","v":{"v":550.4061868886083,"d":"$550.4"}},{"$f":"'Statistical Moments'!DZ17","v":{"v":556.5698141154743,"d":"$556.6"}},{"$f":"'Statistical Moments'!EB17","v":{"v":581.1783617523697,"d":"$581.2"}},{"$f":"'Statistical Moments'!EC17","v":{"v":538.3261379241659,"d":"$538.3"}},{"$f":"'Statistical Moments'!ED17","v":{"v":514.4147780417953,"d":"$514.4"}},{"$f":"'Statistical Moments'!EE17","v":{"v":549.0922416735565,"d":"$549.1"}},{"$f":"'Statistical Moments'!EF17","v":{"v":546.0963280553758,"d":"$546.1"}},{"$f":"'Statistical Moments'!EG17","v":{"v":515.7545813937336,"d":"$515.8"}},{"$f":"'Statistical Moments'!EH17","v":{"v":548.6888136313246,"d":"$548.7"}},{"$f":"'Statistical Moments'!EI17","v":{"v":588.0708097676328,"d":"$588.1"}},{"$f":"'Statistical Moments'!EJ17","v":{"v":597.8737025147351,"d":"$597.9"}},{"$f":"'Statistical Moments'!EK17","v":{"v":618.5574511464089,"d":"$618.6"}},{"$f":"'Statistical Moments'!EL17","v":{"v":609.9773699284777,"d":"$610.0"}},{"$f":"'Statistical Moments'!EM17","v":{"v":575.2242892106259,"d":"$575.2"}}]
[{"$f":"'(Intermediate Computations)'!B119","v":"Jan 2010"},{"$f":"'(Intermediate Computations)'!C119","v":"Feb 2010"},{"$f":"'(Intermediate Computations)'!D119","v":"Mar 2010"},{"$f":"'(Intermediate Computations)'!E119","v":"Apr 2010"},{"$f":"'(Intermediate Computations)'!F119","v":"May 2010"},{"$f":"'(Intermediate Computations)'!G119","v":"Jun 2010"},{"$f":"'(Intermediate Computations)'!H119","v":"Jul 2010"},{"$f":"'(Intermediate Computations)'!I119","v":"Aug 2010"},{"$f":"'(Intermediate Computations)'!J119","v":"Sep 2010"},{"$f":"'(Intermediate Computations)'!K119","v":"Oct 2010"},{"$f":"'(Intermediate Computations)'!L119","v":"Nov 2010"},{"$f":"'(Intermediate Computations)'!M119","v":"Dec 2010"},{"$f":"'(Intermediate Computations)'!O119","v":"Jan 2011"},{"$f":"'(Intermediate Computations)'!P119","v":"Feb 2011"},{"$f":"'(Intermediate Computations)'!Q119","v":"Mar 2011"},{"$f":"'(Intermediate Computations)'!R119","v":"Apr 2011"},{"$f":"'(Intermediate Computations)'!S119","v":"May 2011"},{"$f":"'(Intermediate Computations)'!T119","v":"Jun 2011"},{"$f":"'(Intermediate Computations)'!U119","v":"Jul 2011"},{"$f":"'(Intermediate Computations)'!V119","v":"Aug 2011"},{"$f":"'(Intermediate Computations)'!W119","v":"Sep 2011"},{"$f":"'(Intermediate Computations)'!X119","v":"Oct 2011"},{"$f":"'(Intermediate Computations)'!Y119","v":"Nov 2011"},{"$f":"'(Intermediate Computations)'!Z119","v":"Dec 2011"},{"$f":"'(Intermediate Computations)'!AB119","v":"Jan 2012"},{"$f":"'(Intermediate Computations)'!AC119","v":"Feb 2012"},{"$f":"'(Intermediate Computations)'!AD119","v":"Mar 2012"},{"$f":"'(Intermediate Computations)'!AE119","v":"Apr 2012"},{"$f":"'(Intermediate Computations)'!AF119","v":"May 2012"},{"$f":"'(Intermediate Computations)'!AG119","v":"Jun 2012"},{"$f":"'(Intermediate Computations)'!AH119","v":"Jul 2012"},{"$f":"'(Intermediate Computations)'!AI119","v":"Aug 2012"},{"$f":"'(Intermediate Computations)'!AJ119","v":"Sep 2012"},{"$f":"'(Intermediate Computations)'!AK119","v":"Oct 2012"},{"$f":"'(Intermediate Computations)'!AL119","v":"Nov 2012"},{"$f":"'(Intermediate Computations)'!AM119","v":"Dec 2012"},{"$f":"'(Intermediate Computations)'!AO119","v":"Jan 2013"},{"$f":"'(Intermediate Computations)'!AP119","v":"Feb 2013"},{"$f":"'(Intermediate Computations)'!AQ119","v":"Mar 2013"},{"$f":"'(Intermediate Computations)'!AR119","v":"Apr 2013"},{"$f":"'(Intermediate Computations)'!AS119","v":"May 2013"},{"$f":"'(Intermediate Computations)'!AT119","v":"Jun 2013"},{"$f":"'(Intermediate Computations)'!AU119","v":"Jul 2013"},{"$f":"'(Intermediate Computations)'!AV119","v":"Aug 2013"},{"$f":"'(Intermediate Computations)'!AW119","v":"Sep 2013"},{"$f":"'(Intermediate Computations)'!AX119","v":"Oct 2013"},{"$f":"'(Intermediate Computations)'!AY119","v":"Nov 2013"},{"$f":"'(Intermediate Computations)'!AZ119","v":"Dec 2013"},{"$f":"'(Intermediate Computations)'!BB119","v":"Jan 2014"},{"$f":"'(Intermediate Computations)'!BC119","v":"Feb 2014"},{"$f":"'(Intermediate Computations)'!BD119","v":"Mar 2014"},{"$f":"'(Intermediate Computations)'!BE119","v":"Apr 2014"},{"$f":"'(Intermediate Computations)'!BF119","v":"May 2014"},{"$f":"'(Intermediate Computations)'!BG119","v":"Jun 2014"},{"$f":"'(Intermediate Computations)'!BH119","v":"Jul 2014"},{"$f":"'(Intermediate Computations)'!BI119","v":"Aug 2014"},{"$f":"'(Intermediate Computations)'!BJ119","v":"Sep 2014"},{"$f":"'(Intermediate Computations)'!BK119","v":"Oct 2014"},{"$f":"'(Intermediate Computations)'!BL119","v":"Nov 2014"},{"$f":"'(Intermediate Computations)'!BM119","v":"Dec 2014"},{"$f":"'(Intermediate Computations)'!BO119","v":"Jan 2015"},{"$f":"'(Intermediate Computations)'!BP119","v":"Feb 2015"},{"$f":"'(Intermediate Computations)'!BQ119","v":"Mar 2015"},{"$f":"'(Intermediate Computations)'!BR119","v":"Apr 2015"},{"$f":"'(Intermediate Computations)'!BS119","v":"May 2015"},{"$f":"'(Intermediate Computations)'!BT119","v":"Jun 2015"},{"$f":"'(Intermediate Computations)'!BU119","v":"Jul 2015"},{"$f":"'(Intermediate Computations)'!BV119","v":"Aug 2015"},{"$f":"'(Intermediate Computations)'!BW119","v":"Sep 2015"},{"$f":"'(Intermediate Computations)'!BX119","v":"Oct 2015"},{"$f":"'(Intermediate Computations)'!BY119","v":"Nov 2015"},{"$f":"'(Intermediate Computations)'!BZ119","v":"Dec 2015"},{"$f":"'(Intermediate Computations)'!CB119","v":"Jan 2016"},{"$f":"'(Intermediate Computations)'!CC119","v":"Feb 2016"},{"$f":"'(Intermediate Computations)'!CD119","v":"Mar 2016"},{"$f":"'(Intermediate Computations)'!CE119","v":"Apr 2016"},{"$f":"'(Intermediate Computations)'!CF119","v":"May 2016"},{"$f":"'(Intermediate Computations)'!CG119","v":"Jun 2016"},{"$f":"'(Intermediate Computations)'!CH119","v":"Jul 2016"},{"$f":"'(Intermediate Computations)'!CI119","v":"Aug 2016"},{"$f":"'(Intermediate Computations)'!CJ119","v":"Sep 2016"},{"$f":"'(Intermediate Computations)'!CK119","v":"Oct 2016"},{"$f":"'(Intermediate Computations)'!CL119","v":"Nov 2016"},{"$f":"'(Intermediate Computations)'!CM119","v":"Dec 2016"},{"$f":"'(Intermediate Computations)'!CO119","v":"Jan 2017"},{"$f":"'(Intermediate Computations)'!CP119","v":"Feb 2017"},{"$f":"'(Intermediate Computations)'!CQ119","v":"Mar 2017"},{"$f":"'(Intermediate Computations)'!CR119","v":"Apr 2017"},{"$f":"'(Intermediate Computations)'!CS119","v":"May 2017"},{"$f":"'(Intermediate Computations)'!CT119","v":"Jun 2017"},{"$f":"'(Intermediate Computations)'!CU119","v":"Jul 2017"},{"$f":"'(Intermediate Computations)'!CV119","v":"Aug 2017"},{"$f":"'(Intermediate Computations)'!CW119","v":"Sep 2017"},{"$f":"'(Intermediate Computations)'!CX119","v":"Oct 2017"},{"$f":"'(Intermediate Computations)'!CY119","v":"Nov 2017"},{"$f":"'(Intermediate Computations)'!CZ119","v":"Dec 2017"},{"$f":"'(Intermediate Computations)'!DB119","v":"Jan 2018"},{"$f":"'(Intermediate Computations)'!DC119","v":"Feb 2018"},{"$f":"'(Intermediate Computations)'!DD119","v":"Mar 2018"},{"$f":"'(Intermediate Computations)'!DE119","v":"Apr 2018"},{"$f":"'(Intermediate Computations)'!DF119","v":"May 2018"},{"$f":"'(Intermediate Computations)'!DG119","v":"Jun 2018"},{"$f":"'(Intermediate Computations)'!DH119","v":"Jul 2018"},{"$f":"'(Intermediate Computations)'!DI119","v":"Aug 2018"},{"$f":"'(Intermediate Computations)'!DJ119","v":"Sep 2018"},{"$f":"'(Intermediate Computations)'!DK119","v":"Oct 2018"},{"$f":"'(Intermediate Computations)'!DL119","v":"Nov 2018"},{"$f":"'(Intermediate Computations)'!DM119","v":"Dec 2018"},{"$f":"'(Intermediate Computations)'!DO119","v":"Jan 2019"},{"$f":"'(Intermediate Computations)'!DP119","v":"Feb 2019"},{"$f":"'(Intermediate Computations)'!DQ119","v":"Mar 2019"},{"$f":"'(Intermediate Computations)'!DR119","v":"Apr 2019"},{"$f":"'(Intermediate Computations)'!DS119","v":"May 2019"},{"$f":"'(Intermediate Computations)'!DT119","v":"Jun 2019"},{"$f":"'(Intermediate Computations)'!DU119","v":"Jul 2019"},{"$f":"'(Intermediate Computations)'!DV119","v":"Aug 2019"},{"$f":"'(Intermediate Computations)'!DW119","v":"Sep 2019"},{"$f":"'(Intermediate Computations)'!DX119","v":"Oct 2019"},{"$f":"'(Intermediate Computations)'!DY119","v":"Nov 2019"},{"$f":"'(Intermediate Computations)'!DZ119","v":"Dec 2019"},{"$f":"'(Intermediate Computations)'!EB119","v":"Jan 2020"},{"$f":"'(Intermediate Computations)'!EC119","v":"Feb 2020"},{"$f":"'(Intermediate Computations)'!ED119","v":"Mar 2020"},{"$f":"'(Intermediate Computations)'!EE119","v":"Apr 2020"},{"$f":"'(Intermediate Computations)'!EF119","v":"May 2020"},{"$f":"'(Intermediate Computations)'!EG119","v":"Jun 2020"},{"$f":"'(Intermediate Computations)'!EH119","v":"Jul 2020"},{"$f":"'(Intermediate Computations)'!EI119","v":"Aug 2020"},{"$f":"'(Intermediate Computations)'!EJ119","v":"Sep 2020"},{"$f":"'(Intermediate Computations)'!EK119","v":"Oct 2020"},{"$f":"'(Intermediate Computations)'!EL119","v":"Nov 2020"},{"$f":"'(Intermediate Computations)'!EM119","v":"Dec 2020"}]
[{"$f":"'(Intermediate Computations)'!B116","v":"2010-01-01"},{"$f":"'(Intermediate Computations)'!C116","v":"2010-02-01"},{"$f":"'(Intermediate Computations)'!D116","v":"2010-03-01"},{"$f":"'(Intermediate Computations)'!E116","v":"2010-04-01"},{"$f":"'(Intermediate Computations)'!F116","v":"2010-05-01"},{"$f":"'(Intermediate Computations)'!G116","v":"2010-06-01"},{"$f":"'(Intermediate Computations)'!H116","v":"2010-07-01"},{"$f":"'(Intermediate Computations)'!I116","v":"2010-08-01"},{"$f":"'(Intermediate Computations)'!J116","v":"2010-09-01"},{"$f":"'(Intermediate Computations)'!K116","v":"2010-10-01"},{"$f":"'(Intermediate Computations)'!L116","v":"2010-11-01"},{"$f":"'(Intermediate Computations)'!M116","v":"2010-12-01"},{"$f":"'(Intermediate Computations)'!O116","v":"2011-01-01"},{"$f":"'(Intermediate Computations)'!P116","v":"2011-02-01"},{"$f":"'(Intermediate Computations)'!Q116","v":"2011-03-01"},{"$f":"'(Intermediate Computations)'!R116","v":"2011-04-01"},{"$f":"'(Intermediate Computations)'!S116","v":"2011-05-01"},{"$f":"'(Intermediate Computations)'!T116","v":"2011-06-01"},{"$f":"'(Intermediate Computations)'!U116","v":"2011-07-01"},{"$f":"'(Intermediate Computations)'!V116","v":"2011-08-01"},{"$f":"'(Intermediate Computations)'!W116","v":"2011-09-01"},{"$f":"'(Intermediate Computations)'!X116","v":"2011-10-01"},{"$f":"'(Intermediate Computations)'!Y116","v":"2011-11-01"},{"$f":"'(Intermediate Computations)'!Z116","v":"2011-12-01"},{"$f":"'(Intermediate Computations)'!AB116","v":"2012-01-01"},{"$f":"'(Intermediate Computations)'!AC116","v":"2012-02-01"},{"$f":"'(Intermediate Computations)'!AD116","v":"2012-03-01"},{"$f":"'(Intermediate Computations)'!AE116","v":"2012-04-01"},{"$f":"'(Intermediate Computations)'!AF116","v":"2012-05-01"},{"$f":"'(Intermediate Computations)'!AG116","v":"2012-06-01"},{"$f":"'(Intermediate Computations)'!AH116","v":"2012-07-01"},{"$f":"'(Intermediate Computations)'!AI116","v":"2012-08-01"},{"$f":"'(Intermediate Computations)'!AJ116","v":"2012-09-01"},{"$f":"'(Intermediate Computations)'!AK116","v":"2012-10-01"},{"$f":"'(Intermediate Computations)'!AL116","v":"2012-11-01"},{"$f":"'(Intermediate Computations)'!AM116","v":"2012-12-01"},{"$f":"'(Intermediate Computations)'!AO116","v":"2013-01-01"},{"$f":"'(Intermediate Computations)'!AP116","v":"2013-02-01"},{"$f":"'(Intermediate Computations)'!AQ116","v":"2013-03-01"},{"$f":"'(Intermediate Computations)'!AR116","v":"2013-04-01"},{"$f":"'(Intermediate Computations)'!AS116","v":"2013-05-01"},{"$f":"'(Intermediate Computations)'!AT116","v":"2013-06-01"},{"$f":"'(Intermediate Computations)'!AU116","v":"2013-07-01"},{"$f":"'(Intermediate Computations)'!AV116","v":"2013-08-01"},{"$f":"'(Intermediate Computations)'!AW116","v":"2013-09-01"},{"$f":"'(Intermediate Computations)'!AX116","v":"2013-10-01"},{"$f":"'(Intermediate Computations)'!AY116","v":"2013-11-01"},{"$f":"'(Intermediate Computations)'!AZ116","v":"2013-12-01"},{"$f":"'(Intermediate Computations)'!BB116","v":"2014-01-01"},{"$f":"'(Intermediate Computations)'!BC116","v":"2014-02-01"},{"$f":"'(Intermediate Computations)'!BD116","v":"2014-03-01"},{"$f":"'(Intermediate Computations)'!BE116","v":"2014-04-01"},{"$f":"'(Intermediate Computations)'!BF116","v":"2014-05-01"},{"$f":"'(Intermediate Computations)'!BG116","v":"2014-06-01"},{"$f":"'(Intermediate Computations)'!BH116","v":"2014-07-01"},{"$f":"'(Intermediate Computations)'!BI116","v":"2014-08-01"},{"$f":"'(Intermediate Computations)'!BJ116","v":"2014-09-01"},{"$f":"'(Intermediate Computations)'!BK116","v":"2014-10-01"},{"$f":"'(Intermediate Computations)'!BL116","v":"2014-11-01"},{"$f":"'(Intermediate Computations)'!BM116","v":"2014-12-01"},{"$f":"'(Intermediate Computations)'!BO116","v":"2015-01-01"},{"$f":"'(Intermediate Computations)'!BP116","v":"2015-02-01"},{"$f":"'(Intermediate Computations)'!BQ116","v":"2015-03-01"},{"$f":"'(Intermediate Computations)'!BR116","v":"2015-04-01"},{"$f":"'(Intermediate Computations)'!BS116","v":"2015-05-01"},{"$f":"'(Intermediate Computations)'!BT116","v":"2015-06-01"},{"$f":"'(Intermediate Computations)'!BU116","v":"2015-07-01"},{"$f":"'(Intermediate Computations)'!BV116","v":"2015-08-01"},{"$f":"'(Intermediate Computations)'!BW116","v":"2015-09-01"},{"$f":"'(Intermediate Computations)'!BX116","v":"2015-10-01"},{"$f":"'(Intermediate Computations)'!BY116","v":"2015-11-01"},{"$f":"'(Intermediate Computations)'!BZ116","v":"2015-12-01"},{"$f":"'(Intermediate Computations)'!CB116","v":"2016-01-01"},{"$f":"'(Intermediate Computations)'!CC116","v":"2016-02-01"},{"$f":"'(Intermediate Computations)'!CD116","v":"2016-03-01"},{"$f":"'(Intermediate Computations)'!CE116","v":"2016-04-01"},{"$f":"'(Intermediate Computations)'!CF116","v":"2016-05-01"},{"$f":"'(Intermediate Computations)'!CG116","v":"2016-06-01"},{"$f":"'(Intermediate Computations)'!CH116","v":"2016-07-01"},{"$f":"'(Intermediate Computations)'!CI116","v":"2016-08-01"},{"$f":"'(Intermediate Computations)'!CJ116","v":"2016-09-01"},{"$f":"'(Intermediate Computations)'!CK116","v":"2016-10-01"},{"$f":"'(Intermediate Computations)'!CL116","v":"2016-11-01"},{"$f":"'(Intermediate Computations)'!CM116","v":"2016-12-01"},{"$f":"'(Intermediate Computations)'!CO116","v":"2017-01-01"},{"$f":"'(Intermediate Computations)'!CP116","v":"2017-02-01"},{"$f":"'(Intermediate Computations)'!CQ116","v":"2017-03-01"},{"$f":"'(Intermediate Computations)'!CR116","v":"2017-04-01"},{"$f":"'(Intermediate Computations)'!CS116","v":"2017-05-01"},{"$f":"'(Intermediate Computations)'!CT116","v":"2017-06-01"},{"$f":"'(Intermediate Computations)'!CU116","v":"2017-07-01"},{"$f":"'(Intermediate Computations)'!CV116","v":"2017-08-01"},{"$f":"'(Intermediate Computations)'!CW116","v":"2017-09-01"},{"$f":"'(Intermediate Computations)'!CX116","v":"2017-10-01"},{"$f":"'(Intermediate Computations)'!CY116","v":"2017-11-01"},{"$f":"'(Intermediate Computations)'!CZ116","v":"2017-12-01"},{"$f":"'(Intermediate Computations)'!DB116","v":"2018-01-01"},{"$f":"'(Intermediate Computations)'!DC116","v":"2018-02-01"},{"$f":"'(Intermediate Computations)'!DD116","v":"2018-03-01"},{"$f":"'(Intermediate Computations)'!DE116","v":"2018-04-01"},{"$f":"'(Intermediate Computations)'!DF116","v":"2018-05-01"},{"$f":"'(Intermediate Computations)'!DG116","v":"2018-06-01"},{"$f":"'(Intermediate Computations)'!DH116","v":"2018-07-01"},{"$f":"'(Intermediate Computations)'!DI116","v":"2018-08-01"},{"$f":"'(Intermediate Computations)'!DJ116","v":"2018-09-01"},{"$f":"'(Intermediate Computations)'!DK116","v":"2018-10-01"},{"$f":"'(Intermediate Computations)'!DL116","v":"2018-11-01"},{"$f":"'(Intermediate Computations)'!DM116","v":"2018-12-01"},{"$f":"'(Intermediate Computations)'!DO116","v":"2019-01-01"},{"$f":"'(Intermediate Computations)'!DP116","v":"2019-02-01"},{"$f":"'(Intermediate Computations)'!DQ116","v":"2019-03-01"},{"$f":"'(Intermediate Computations)'!DR116","v":"2019-04-01"},{"$f":"'(Intermediate Computations)'!DS116","v":"2019-05-01"},{"$f":"'(Intermediate Computations)'!DT116","v":"2019-06-01"},{"$f":"'(Intermediate Computations)'!DU116","v":"2019-07-01"},{"$f":"'(Intermediate Computations)'!DV116","v":"2019-08-01"},{"$f":"'(Intermediate Computations)'!DW116","v":"2019-09-01"},{"$f":"'(Intermediate Computations)'!DX116","v":"2019-10-01"},{"$f":"'(Intermediate Computations)'!DY116","v":"2019-11-01"},{"$f":"'(Intermediate Computations)'!DZ116","v":"2019-12-01"},{"$f":"'(Intermediate Computations)'!EB116","v":"2020-01-01"},{"$f":"'(Intermediate Computations)'!EC116","v":"2020-02-01"},{"$f":"'(Intermediate Computations)'!ED116","v":"2020-03-01"},{"$f":"'(Intermediate Computations)'!EE116","v":"2020-04-01"},{"$f":"'(Intermediate Computations)'!EF116","v":"2020-05-01"},{"$f":"'(Intermediate Computations)'!EG116","v":"2020-06-01"},{"$f":"'(Intermediate Computations)'!EH116","v":"2020-07-01"},{"$f":"'(Intermediate Computations)'!EI116","v":"2020-08-01"},{"$f":"'(Intermediate Computations)'!EJ116","v":"2020-09-01"},{"$f":"'(Intermediate Computations)'!EK116","v":"2020-10-01"},{"$f":"'(Intermediate Computations)'!EL116","v":"2020-11-01"},{"$f":"'(Intermediate Computations)'!EM116","v":"2020-12-01"}]
[{"$f":"'Statistical Moments'!B18","v":{"v":728000,"d":"$728,000"}},{"$f":"'Statistical Moments'!C18","v":{"v":727800.7123496904,"d":"$727,801"}},{"$f":"'Statistical Moments'!D18","v":{"v":727582.4440852882,"d":"$727,582"}},{"$f":"'Statistical Moments'!E18","v":{"v":727362.7200188412,"d":"$727,363"}},{"$f":"'Statistical Moments'!F18","v":{"v":727116.0199523218,"d":"$727,116"}},{"$f":"'Statistical Moments'!G18","v":{"v":726871.259877423,"d":"$726,871"}},{"$f":"'Statistical Moments'!H18","v":{"v":726636.287861942,"d":"$726,636"}},{"$f":"'Statistical Moments'!I18","v":{"v":726440.2495438296,"d":"$726,440"}},{"$f":"'Statistical Moments'!J18","v":{"v":726207.1439031675,"d":"$726,207"}},{"$f":"'Statistical Moments'!K18","v":{"v":725997.9923168216,"d":"$725,998"}},{"$f":"'Statistical Moments'!L18","v":{"v":725756.177899149,"d":"$725,756"}},{"$f":"'Statistical Moments'!M18","v":{"v":725536.5233561283,"d":"$725,537"}},{"$f":"'Statistical Moments'!O18","v":{"v":725314.7738187597,"d":"$725,315"}},{"$f":"'Statistical Moments'!P18","v":{"v":725066.1258779757,"d":"$725,066"}},{"$f":"'Statistical Moments'!Q18","v":{"v":724836.8835156768,"d":"$724,837"}},{"$f":"'Statistical Moments'!R18","v":{"v":724625.4771069966,"d":"$724,625"}},{"$f":"'Statistical Moments'!S18","v":{"v":724391.5246313968,"d":"$724,392"}},{"$f":"'Statistical Moments'!T18","v":{"v":724161.1561394188,"d":"$724,161"}},{"$f":"'Statistical Moments'!U18","v":{"v":723922.4554800983,"d":"$723,922"}},{"$f":"'Statistical Moments'!V18","v":{"v":723668.6964044013,"d":"$723,669"}},{"$f":"'Statistical Moments'!W18","v":{"v":723435.3503976171,"d":"$723,435"}},{"$f":"'Statistical Moments'!X18","v":{"v":723181.8250135919,"d":"$723,182"}},{"$f":"'Statistical Moments'!Y18","v":{"v":722939.3260512995,"d":"$722,939"}},{"$f":"'Statistical Moments'!Z18","v":{"v":722674.5135189146,"d":"$722,675"}},{"$f":"'Statistical Moments'!AB18","v":{"v":722434.4655767641,"d":"$722,434"}},{"$f":"'Statistical Moments'!AC18","v":{"v":722165.0161110087,"d":"$722,165"}},{"$f":"'Statistical Moments'!AD18","v":{"v":721904.4990202046,"d":"$721,904"}},{"$f":"'Statistical Moments'!AE18","v":{"v":721673.0355145236,"d":"$721,673"}},{"$f":"'Statistical Moments'!AF18","v":{"v":721388.6833553142,"d":"$721,389"}},{"$f":"'Statistical Moments'!AG18","v":{"v":721131.6357207587,"d":"$721,132"}},{"$f":"'Statistical Moments'!AH18","v":{"v":720875.2692993308,"d":"$720,875"}},{"$f":"'Statistical Moments'!AI18","v":{"v":720624.7744628737,"d":"$720,625"}},{"$f":"'Statistical Moments'!AJ18","v":{"v":720331.0538070984,"d":"$720,331"}},{"$f":"'Statistical Moments'!AK18","v":{"v":720070.0714104436,"d":"$720,070"}},{"$f":"'Statistical Moments'!AL18","v":{"v":719812.4575272608,"d":"$719,812"}},{"$f":"'Statistical Moments'!AM18","v":{"v":719534.6272359039,"d":"$719,535"}},{"$f":"'Statistical Moments'!AO18","v":{"v":719278.140620868,"d":"$719,278"}},{"$f":"'Statistical Moments'!AP18","v":{"v":718976.7165510196,"d":"$718,977"}},{"$f":"'Statistical Moments'!AQ18","v":{"v":718685.3911928067,"d":"$718,685"}},{"$f":"'Statistical Moments'!AR18","v":{"v":718427.535395639,"d":"$718,428"}},{"$f":"'Statistical Moments'!AS18","v":{"v":718151.4281146605,"d":"$718,151"}},{"$f":"'Statistical Moments'!AT18","v":{"v":717843.3141440724,"d":"$717,843"}},{"$f":"'Statistical Moments'!AU18","v":{"v":717534.9857641238,"d":"$717,535"}},{"$f":"'Statistical Moments'!AV18","v":{"v":717273.72079949,"d":"$717,274"}},{"$f":"'Statistical Moments'!AW18","v":{"v":717012.3424688856,"d":"$717,012"}},{"$f":"'Statistical Moments'!AX18","v":{"v":716715.5635761365,"d":"$716,716"}},{"$f":"'Statistical Moments'!AY18","v":{"v":716437.658975695,"d":"$716,438"}},{"$f":"'Statistical Moments'!AZ18","v":{"v":716144.3483492634,"d":"$716,144"}},{"$f":"'Statistical Moments'!BB18","v":{"v":715860.4484609849,"d":"$715,860"}},{"$f":"'Statistical Moments'!BC18","v":{"v":715568.3868998257,"d":"$715,568"}},{"$f":"'Statistical Moments'!BD18","v":{"v":715300.8701945222,"d":"$715,301"}},{"$f":"'Statistical Moments'!BE18","v":{"v":715040.7270922003,"d":"$715,041"}},{"$f":"'Statistical Moments'!BF18","v":{"v":714755.8436335239,"d":"$714,756"}},{"$f":"'Statistical Moments'!BG18","v":{"v":714456.3619126849,"d":"$714,456"}},{"$f":"'Statistical Moments'!BH18","v":{"v":714153.9935828637,"d":"$714,154"}},{"$f":"'Statistical Moments'!BI18","v":{"v":713883.5109766076,"d":"$713,884"}},{"$f":"'Statistical Moments'!BJ18","v":{"v":713578.2246789221,"d":"$713,578"}},{"$f":"'Statistical Moments'!BK18","v":{"v":713282.6116283406,"d":"$713,283"}},{"$f":"'Statistical Moments'!BL18","v":{"v":712987.7176741263,"d":"$712,988"}},{"$f":"'Statistical Moments'!BM18","v":{"v":712679.9948326761,"d":"$712,680"}},{"$f":"'Statistical Moments'!BO18","v":{"v":712365.558929696,"d":"$712,366"}},{"$f":"'Statistical Moments'!BP18","v":{"v":712033.1770834926,"d":"$712,033"}},{"$f":"'Statistical Moments'!BQ18","v":{"v":711749.047431031,"d":"$711,749"}},{"$f":"'Statistical Moments'!BR18","v":{"v":711438.3597297922,"d":"$711,438"}},{"$f":"'Statistical Moments'!BS18","v":{"v":711167.3935221498,"d":"$711,167"}},{"$f":"'Statistical Moments'!BT18","v":{"v":710860.7440344957,"d":"$710,861"}},{"$f":"'Statistical Moments'!BU18","v":{"v":710568.781015389,"d":"$710,569"}},{"$f":"'Statistical Moments'!BV18","v":{"v":710248.8900689058,"d":"$710,249"}},{"$f":"'Statistical Moments'!BW18","v":{"v":709926.2703622803,"d":"$709,926"}},{"$f":"'Statistical Moments'!BX18","v":{"v":709642.2443355691,"d":"$709,642"}},{"$f":"'Statistical Moments'!BY18","v":{"v":709307.2892431028,"d":"$709,307"}},{"$f":"'Statistical Moments'!BZ18","v":{"v":709005.9294185683,"d":"$709,006"}},{"$f":"'Statistical Moments'!CB18","v":{"v":708697.3465081593,"d":"$708,697"}},{"$f":"'Statistical Moments'!CC18","v":{"v":708384.4633180042,"d":"$708,384"}},{"$f":"'Statistical Moments'!CD18","v":{"v":708072.2583211806,"d":"$708,072"}},{"$f":"'Statistical Moments'!CE18","v":{"v":707731.214511697,"d":"$707,731"}},{"$f":"'Statistical Moments'!CF18","v":{"v":707395.2756546568,"d":"$707,395"}},{"$f":"'Statistical Moments'!CG18","v":{"v":707071.581187184,"d":"$707,072"}},{"$f":"'Statistical Moments'!CH18","v":{"v":706754.8191051749,"d":"$706,755"}},{"$f":"'Statistical Moments'!CI18","v":{"v":706418.3128632524,"d":"$706,418"}},{"$f":"'Statistical Moments'!CJ18","v":{"v":706092.0669914432,"d":"$706,092"}},{"$f":"'Statistical Moments'!CK18","v":{"v":705795.1623623876,"d":"$705,795"}},{"$f":"'Statistical Moments'!CL18","v":{"v":705475.4310022373,"d":"$705,475"}},{"$f":"'Statistical Moments'!CM18","v":{"v":705142.4768614583,"d":"$705,142"}},{"$f":"'Statistical Moments'!CO18","v":{"v":704784.5627324845,"d":"$704,785"}},{"$f":"'Statistical Moments'!CP18","v":{"v":704453.0520187833,"d":"$704,453"}},{"$f":"'Statistical Moments'!CQ18","v":{"v":704114.1428390461,"d":"$704,114"}},{"$f":"'Statistical Moments'!CR18","v":{"v":703791.7719348022,"d":"$703,792"}},{"$f":"'Statistical Moments'!CS18","v":{"v":703456.0042121932,"d":"$703,456"}},{"$f":"'Statistical Moments'!CT18","v":{"v":703132.2754412111,"d":"$703,132"}},{"$f":"'Statistical Moments'!CU18","v":{"v":702795.7449556916,"d":"$702,796"}},{"$f":"'Statistical Moments'!CV18","v":{"v":702475.7733011559,"d":"$702,476"}},{"$f":"'Statistical Moments'!CW18","v":{"v":702143.5398685419,"d":"$702,144"}},{"$f":"'Statistical Moments'!CX18","v":{"v":701790.8124744918,"d":"$701,791"}},{"$f":"'Statistical Moments'!CY18","v":{"v":701469.086619325,"d":"$701,469"}},{"$f":"'Statistical Moments'!CZ18","v":{"v":701152.4018590387,"d":"$701,152"}},{"$f":"'Statistical Moments'!DB18","v":{"v":700841.926153955,"d":"$700,842"}},{"$f":"'Statistical Moments'!DC18","v":{"v":700498.0859181304,"d":"$700,498"}},{"$f":"'Statistical Moments'!DD18","v":{"v":700158.3218206435,"d":"$700,158"}},{"$f":"'Statistical Moments'!DE18","v":{"v":699817.1729665193,"d":"$699,817"}},{"$f":"'Statistical Moments'!DF18","v":{"v":699494.9038858438,"d":"$699,495"}},{"$f":"'Statistical Moments'!DG18","v":{"v":699163.289607698,"d":"$699,163"}},{"$f":"'Statistical Moments'!DH18","v":{"v":698806.5373187145,"d":"$698,807"}},{"$f":"'Statistical Moments'!DI18","v":{"v":698478.7337396822,"d":"$698,479"}},{"$f":"'Statistical Moments'!DJ18","v":{"v":698140.0557992512,"d":"$698,140"}},{"$f":"'Statistical Moments'!DK18","v":{"v":697816.3125983675,"d":"$697,816"}},{"$f":"'Statistical Moments'!DL18","v":{"v":697485.5820814322,"d":"$697,486"}},{"$f":"'Statistical Moments'!DM18","v":{"v":697128.6943708502,"d":"$697,129"}},{"$f":"'Statistical Moments'!DO18","v":{"v":696803.0550274279,"d":"$696,803"}},{"$f":"'Statistical Moments'!DP18","v":{"v":696476.0143487848,"d":"$696,476"}},{"$f":"'Statistical Moments'!DQ18","v":{"v":696127.0268472577,"d":"$696,127"}},{"$f":"'Statistical Moments'!DR18","v":{"v":695793.1443574538,"d":"$695,793"}},{"$f":"'Statistical Moments'!DS18","v":{"v":695445.9777356562,"d":"$695,446"}},{"$f":"'Statistical Moments'!DT18","v":{"v":695113.1923308298,"d":"$695,113"}},{"$f":"'Statistical Moments'!DU18","v":{"v":694760.2429695901,"d":"$694,760"}},{"$f":"'Statistical Moments'!DV18","v":{"v":694424.8160677108,"d":"$694,425"}},{"$f":"'Statistical Moments'!DW18","v":{"v":694048.2218543922,"d":"$694,048"}},{"$f":"'Statistical Moments'!DX18","v":{"v":693719.5937698265,"d":"$693,720"}},{"$f":"'Statistical Moments'!DY18","v":{"v":693370.4622373345,"d":"$693,370"}},{"$f":"'Statistical Moments'!DZ18","v":{"v":693030.7524458382,"d":"$693,031"}},{"$f":"'Statistical Moments'!EB18","v":{"v":692678.946127899,"d":"$692,679"}},{"$f":"'Statistical Moments'!EC18","v":{"v":692348.0022499972,"d":"$692,348"}},{"$f":"'Statistical Moments'!ED18","v":{"v":692013.7325849422,"d":"$692,014"}},{"$f":"'Statistical Moments'!EE18","v":{"v":691633.4239585643,"d":"$691,633"}},{"$f":"'Statistical Moments'!EF18","v":{"v":691288.9783956995,"d":"$691,289"}},{"$f":"'Statistical Moments'!EG18","v":{"v":690937.4786395014,"d":"$690,937"}},{"$f":"'Statistical Moments'!EH18","v":{"v":690583.9743285367,"d":"$690,584"}},{"$f":"'Statistical Moments'!EI18","v":{"v":690239.0399622844,"d":"$690,239"}},{"$f":"'Statistical Moments'!EJ18","v":{"v":689889.9554993217,"d":"$689,890"}},{"$f":"'Statistical Moments'!EK18","v":{"v":689544.6279246763,"d":"$689,545"}},{"$f":"'Statistical Moments'!EL18","v":{"v":689179.3453595592,"d":"$689,179"}},{"$f":"'Statistical Moments'!EM18","v":{"v":688828.9000941879,"d":"$688,829"}}]
[{"$f":"'(Intermediate Computations)'!B125","v":"Jan 2010"},{"$f":"'(Intermediate Computations)'!C125","v":"Feb 2010"},{"$f":"'(Intermediate Computations)'!D125","v":"Mar 2010"},{"$f":"'(Intermediate Computations)'!E125","v":"Apr 2010"},{"$f":"'(Intermediate Computations)'!F125","v":"May 2010"},{"$f":"'(Intermediate Computations)'!G125","v":"Jun 2010"},{"$f":"'(Intermediate Computations)'!H125","v":"Jul 2010"},{"$f":"'(Intermediate Computations)'!I125","v":"Aug 2010"},{"$f":"'(Intermediate Computations)'!J125","v":"Sep 2010"},{"$f":"'(Intermediate Computations)'!K125","v":"Oct 2010"},{"$f":"'(Intermediate Computations)'!L125","v":"Nov 2010"},{"$f":"'(Intermediate Computations)'!M125","v":"Dec 2010"},{"$f":"'(Intermediate Computations)'!O125","v":"Jan 2011"},{"$f":"'(Intermediate Computations)'!P125","v":"Feb 2011"},{"$f":"'(Intermediate Computations)'!Q125","v":"Mar 2011"},{"$f":"'(Intermediate Computations)'!R125","v":"Apr 2011"},{"$f":"'(Intermediate Computations)'!S125","v":"May 2011"},{"$f":"'(Intermediate Computations)'!T125","v":"Jun 2011"},{"$f":"'(Intermediate Computations)'!U125","v":"Jul 2011"},{"$f":"'(Intermediate Computations)'!V125","v":"Aug 2011"},{"$f":"'(Intermediate Computations)'!W125","v":"Sep 2011"},{"$f":"'(Intermediate Computations)'!X125","v":"Oct 2011"},{"$f":"'(Intermediate Computations)'!Y125","v":"Nov 2011"},{"$f":"'(Intermediate Computations)'!Z125","v":"Dec 2011"},{"$f":"'(Intermediate Computations)'!AB125","v":"Jan 2012"},{"$f":"'(Intermediate Computations)'!AC125","v":"Feb 2012"},{"$f":"'(Intermediate Computations)'!AD125","v":"Mar 2012"},{"$f":"'(Intermediate Computations)'!AE125","v":"Apr 2012"},{"$f":"'(Intermediate Computations)'!AF125","v":"May 2012"},{"$f":"'(Intermediate Computations)'!AG125","v":"Jun 2012"},{"$f":"'(Intermediate Computations)'!AH125","v":"Jul 2012"},{"$f":"'(Intermediate Computations)'!AI125","v":"Aug 2012"},{"$f":"'(Intermediate Computations)'!AJ125","v":"Sep 2012"},{"$f":"'(Intermediate Computations)'!AK125","v":"Oct 2012"},{"$f":"'(Intermediate Computations)'!AL125","v":"Nov 2012"},{"$f":"'(Intermediate Computations)'!AM125","v":"Dec 2012"},{"$f":"'(Intermediate Computations)'!AO125","v":"Jan 2013"},{"$f":"'(Intermediate Computations)'!AP125","v":"Feb 2013"},{"$f":"'(Intermediate Computations)'!AQ125","v":"Mar 2013"},{"$f":"'(Intermediate Computations)'!AR125","v":"Apr 2013"},{"$f":"'(Intermediate Computations)'!AS125","v":"May 2013"},{"$f":"'(Intermediate Computations)'!AT125","v":"Jun 2013"},{"$f":"'(Intermediate Computations)'!AU125","v":"Jul 2013"},{"$f":"'(Intermediate Computations)'!AV125","v":"Aug 2013"},{"$f":"'(Intermediate Computations)'!AW125","v":"Sep 2013"},{"$f":"'(Intermediate Computations)'!AX125","v":"Oct 2013"},{"$f":"'(Intermediate Computations)'!AY125","v":"Nov 2013"},{"$f":"'(Intermediate Computations)'!AZ125","v":"Dec 2013"},{"$f":"'(Intermediate Computations)'!BB125","v":"Jan 2014"},{"$f":"'(Intermediate Computations)'!BC125","v":"Feb 2014"},{"$f":"'(Intermediate Computations)'!BD125","v":"Mar 2014"},{"$f":"'(Intermediate Computations)'!BE125","v":"Apr 2014"},{"$f":"'(Intermediate Computations)'!BF125","v":"May 2014"},{"$f":"'(Intermediate Computations)'!BG125","v":"Jun 2014"},{"$f":"'(Intermediate Computations)'!BH125","v":"Jul 2014"},{"$f":"'(Intermediate Computations)'!BI125","v":"Aug 2014"},{"$f":"'(Intermediate Computations)'!BJ125","v":"Sep 2014"},{"$f":"'(Intermediate Computations)'!BK125","v":"Oct 2014"},{"$f":"'(Intermediate Computations)'!BL125","v":"Nov 2014"},{"$f":"'(Intermediate Computations)'!BM125","v":"Dec 2014"},{"$f":"'(Intermediate Computations)'!BO125","v":"Jan 2015"},{"$f":"'(Intermediate Computations)'!BP125","v":"Feb 2015"},{"$f":"'(Intermediate Computations)'!BQ125","v":"Mar 2015"},{"$f":"'(Intermediate Computations)'!BR125","v":"Apr 2015"},{"$f":"'(Intermediate Computations)'!BS125","v":"May 2015"},{"$f":"'(Intermediate Computations)'!BT125","v":"Jun 2015"},{"$f":"'(Intermediate Computations)'!BU125","v":"Jul 2015"},{"$f":"'(Intermediate Computations)'!BV125","v":"Aug 2015"},{"$f":"'(Intermediate Computations)'!BW125","v":"Sep 2015"},{"$f":"'(Intermediate Computations)'!BX125","v":"Oct 2015"},{"$f":"'(Intermediate Computations)'!BY125","v":"Nov 2015"},{"$f":"'(Intermediate Computations)'!BZ125","v":"Dec 2015"},{"$f":"'(Intermediate Computations)'!CB125","v":"Jan 2016"},{"$f":"'(Intermediate Computations)'!CC125","v":"Feb 2016"},{"$f":"'(Intermediate Computations)'!CD125","v":"Mar 2016"},{"$f":"'(Intermediate Computations)'!CE125","v":"Apr 2016"},{"$f":"'(Intermediate Computations)'!CF125","v":"May 2016"},{"$f":"'(Intermediate Computations)'!CG125","v":"Jun 2016"},{"$f":"'(Intermediate Computations)'!CH125","v":"Jul 2016"},{"$f":"'(Intermediate Computations)'!CI125","v":"Aug 2016"},{"$f":"'(Intermediate Computations)'!CJ125","v":"Sep 2016"},{"$f":"'(Intermediate Computations)'!CK125","v":"Oct 2016"},{"$f":"'(Intermediate Computations)'!CL125","v":"Nov 2016"},{"$f":"'(Intermediate Computations)'!CM125","v":"Dec 2016"},{"$f":"'(Intermediate Computations)'!CO125","v":"Jan 2017"},{"$f":"'(Intermediate Computations)'!CP125","v":"Feb 2017"},{"$f":"'(Intermediate Computations)'!CQ125","v":"Mar 2017"},{"$f":"'(Intermediate Computations)'!CR125","v":"Apr 2017"},{"$f":"'(Intermediate Computations)'!CS125","v":"May 2017"},{"$f":"'(Intermediate Computations)'!CT125","v":"Jun 2017"},{"$f":"'(Intermediate Computations)'!CU125","v":"Jul 2017"},{"$f":"'(Intermediate Computations)'!CV125","v":"Aug 2017"},{"$f":"'(Intermediate Computations)'!CW125","v":"Sep 2017"},{"$f":"'(Intermediate Computations)'!CX125","v":"Oct 2017"},{"$f":"'(Intermediate Computations)'!CY125","v":"Nov 2017"},{"$f":"'(Intermediate Computations)'!CZ125","v":"Dec 2017"},{"$f":"'(Intermediate Computations)'!DB125","v":"Jan 2018"},{"$f":"'(Intermediate Computations)'!DC125","v":"Feb 2018"},{"$f":"'(Intermediate Computations)'!DD125","v":"Mar 2018"},{"$f":"'(Intermediate Computations)'!DE125","v":"Apr 2018"},{"$f":"'(Intermediate Computations)'!DF125","v":"May 2018"},{"$f":"'(Intermediate Computations)'!DG125","v":"Jun 2018"},{"$f":"'(Intermediate Computations)'!DH125","v":"Jul 2018"},{"$f":"'(Intermediate Computations)'!DI125","v":"Aug 2018"},{"$f":"'(Intermediate Computations)'!DJ125","v":"Sep 2018"},{"$f":"'(Intermediate Computations)'!DK125","v":"Oct 2018"},{"$f":"'(Intermediate Computations)'!DL125","v":"Nov 2018"},{"$f":"'(Intermediate Computations)'!DM125","v":"Dec 2018"},{"$f":"'(Intermediate Computations)'!DO125","v":"Jan 2019"},{"$f":"'(Intermediate Computations)'!DP125","v":"Feb 2019"},{"$f":"'(Intermediate Computations)'!DQ125","v":"Mar 2019"},{"$f":"'(Intermediate Computations)'!DR125","v":"Apr 2019"},{"$f":"'(Intermediate Computations)'!DS125","v":"May 2019"},{"$f":"'(Intermediate Computations)'!DT125","v":"Jun 2019"},{"$f":"'(Intermediate Computations)'!DU125","v":"Jul 2019"},{"$f":"'(Intermediate Computations)'!DV125","v":"Aug 2019"},{"$f":"'(Intermediate Computations)'!DW125","v":"Sep 2019"},{"$f":"'(Intermediate Computations)'!DX125","v":"Oct 2019"},{"$f":"'(Intermediate Computations)'!DY125","v":"Nov 2019"},{"$f":"'(Intermediate Computations)'!DZ125","v":"Dec 2019"},{"$f":"'(Intermediate Computations)'!EB125","v":"Jan 2020"},{"$f":"'(Intermediate Computations)'!EC125","v":"Feb 2020"},{"$f":"'(Intermediate Computations)'!ED125","v":"Mar 2020"},{"$f":"'(Intermediate Computations)'!EE125","v":"Apr 2020"},{"$f":"'(Intermediate Computations)'!EF125","v":"May 2020"},{"$f":"'(Intermediate Computations)'!EG125","v":"Jun 2020"},{"$f":"'(Intermediate Computations)'!EH125","v":"Jul 2020"},{"$f":"'(Intermediate Computations)'!EI125","v":"Aug 2020"},{"$f":"'(Intermediate Computations)'!EJ125","v":"Sep 2020"},{"$f":"'(Intermediate Computations)'!EK125","v":"Oct 2020"},{"$f":"'(Intermediate Computations)'!EL125","v":"Nov 2020"},{"$f":"'(Intermediate Computations)'!EM125","v":"Dec 2020"}]
[{"$f":"'(Intermediate Computations)'!B122","v":"2010-01-01"},{"$f":"'(Intermediate Computations)'!C122","v":"2010-02-01"},{"$f":"'(Intermediate Computations)'!D122","v":"2010-03-01"},{"$f":"'(Intermediate Computations)'!E122","v":"2010-04-01"},{"$f":"'(Intermediate Computations)'!F122","v":"2010-05-01"},{"$f":"'(Intermediate Computations)'!G122","v":"2010-06-01"},{"$f":"'(Intermediate Computations)'!H122","v":"2010-07-01"},{"$f":"'(Intermediate Computations)'!I122","v":"2010-08-01"},{"$f":"'(Intermediate Computations)'!J122","v":"2010-09-01"},{"$f":"'(Intermediate Computations)'!K122","v":"2010-10-01"},{"$f":"'(Intermediate Computations)'!L122","v":"2010-11-01"},{"$f":"'(Intermediate Computations)'!M122","v":"2010-12-01"},{"$f":"'(Intermediate Computations)'!O122","v":"2011-01-01"},{"$f":"'(Intermediate Computations)'!P122","v":"2011-02-01"},{"$f":"'(Intermediate Computations)'!Q122","v":"2011-03-01"},{"$f":"'(Intermediate Computations)'!R122","v":"2011-04-01"},{"$f":"'(Intermediate Computations)'!S122","v":"2011-05-01"},{"$f":"'(Intermediate Computations)'!T122","v":"2011-06-01"},{"$f":"'(Intermediate Computations)'!U122","v":"2011-07-01"},{"$f":"'(Intermediate Computations)'!V122","v":"2011-08-01"},{"$f":"'(Intermediate Computations)'!W122","v":"2011-09-01"},{"$f":"'(Intermediate Computations)'!X122","v":"2011-10-01"},{"$f":"'(Intermediate Computations)'!Y122","v":"2011-11-01"},{"$f":"'(Intermediate Computations)'!Z122","v":"2011-12-01"},{"$f":"'(Intermediate Computations)'!AB122","v":"2012-01-01"},{"$f":"'(Intermediate Computations)'!AC122","v":"2012-02-01"},{"$f":"'(Intermediate Computations)'!AD122","v":"2012-03-01"},{"$f":"'(Intermediate Computations)'!AE122","v":"2012-04-01"},{"$f":"'(Intermediate Computations)'!AF122","v":"2012-05-01"},{"$f":"'(Intermediate Computations)'!AG122","v":"2012-06-01"},{"$f":"'(Intermediate Computations)'!AH122","v":"2012-07-01"},{"$f":"'(Intermediate Computations)'!AI122","v":"2012-08-01"},{"$f":"'(Intermediate Computations)'!AJ122","v":"2012-09-01"},{"$f":"'(Intermediate Computations)'!AK122","v":"2012-10-01"},{"$f":"'(Intermediate Computations)'!AL122","v":"2012-11-01"},{"$f":"'(Intermediate Computations)'!AM122","v":"2012-12-01"},{"$f":"'(Intermediate Computations)'!AO122","v":"2013-01-01"},{"$f":"'(Intermediate Computations)'!AP122","v":"2013-02-01"},{"$f":"'(Intermediate Computations)'!AQ122","v":"2013-03-01"},{"$f":"'(Intermediate Computations)'!AR122","v":"2013-04-01"},{"$f":"'(Intermediate Computations)'!AS122","v":"2013-05-01"},{"$f":"'(Intermediate Computations)'!AT122","v":"2013-06-01"},{"$f":"'(Intermediate Computations)'!AU122","v":"2013-07-01"},{"$f":"'(Intermediate Computations)'!AV122","v":"2013-08-01"},{"$f":"'(Intermediate Computations)'!AW122","v":"2013-09-01"},{"$f":"'(Intermediate Computations)'!AX122","v":"2013-10-01"},{"$f":"'(Intermediate Computations)'!AY122","v":"2013-11-01"},{"$f":"'(Intermediate Computations)'!AZ122","v":"2013-12-01"},{"$f":"'(Intermediate Computations)'!BB122","v":"2014-01-01"},{"$f":"'(Intermediate Computations)'!BC122","v":"2014-02-01"},{"$f":"'(Intermediate Computations)'!BD122","v":"2014-03-01"},{"$f":"'(Intermediate Computations)'!BE122","v":"2014-04-01"},{"$f":"'(Intermediate Computations)'!BF122","v":"2014-05-01"},{"$f":"'(Intermediate Computations)'!BG122","v":"2014-06-01"},{"$f":"'(Intermediate Computations)'!BH122","v":"2014-07-01"},{"$f":"'(Intermediate Computations)'!BI122","v":"2014-08-01"},{"$f":"'(Intermediate Computations)'!BJ122","v":"2014-09-01"},{"$f":"'(Intermediate Computations)'!BK122","v":"2014-10-01"},{"$f":"'(Intermediate Computations)'!BL122","v":"2014-11-01"},{"$f":"'(Intermediate Computations)'!BM122","v":"2014-12-01"},{"$f":"'(Intermediate Computations)'!BO122","v":"2015-01-01"},{"$f":"'(Intermediate Computations)'!BP122","v":"2015-02-01"},{"$f":"'(Intermediate Computations)'!BQ122","v":"2015-03-01"},{"$f":"'(Intermediate Computations)'!BR122","v":"2015-04-01"},{"$f":"'(Intermediate Computations)'!BS122","v":"2015-05-01"},{"$f":"'(Intermediate Computations)'!BT122","v":"2015-06-01"},{"$f":"'(Intermediate Computations)'!BU122","v":"2015-07-01"},{"$f":"'(Intermediate Computations)'!BV122","v":"2015-08-01"},{"$f":"'(Intermediate Computations)'!BW122","v":"2015-09-01"},{"$f":"'(Intermediate Computations)'!BX122","v":"2015-10-01"},{"$f":"'(Intermediate Computations)'!BY122","v":"2015-11-01"},{"$f":"'(Intermediate Computations)'!BZ122","v":"2015-12-01"},{"$f":"'(Intermediate Computations)'!CB122","v":"2016-01-01"},{"$f":"'(Intermediate Computations)'!CC122","v":"2016-02-01"},{"$f":"'(Intermediate Computations)'!CD122","v":"2016-03-01"},{"$f":"'(Intermediate Computations)'!CE122","v":"2016-04-01"},{"$f":"'(Intermediate Computations)'!CF122","v":"2016-05-01"},{"$f":"'(Intermediate Computations)'!CG122","v":"2016-06-01"},{"$f":"'(Intermediate Computations)'!CH122","v":"2016-07-01"},{"$f":"'(Intermediate Computations)'!CI122","v":"2016-08-01"},{"$f":"'(Intermediate Computations)'!CJ122","v":"2016-09-01"},{"$f":"'(Intermediate Computations)'!CK122","v":"2016-10-01"},{"$f":"'(Intermediate Computations)'!CL122","v":"2016-11-01"},{"$f":"'(Intermediate Computations)'!CM122","v":"2016-12-01"},{"$f":"'(Intermediate Computations)'!CO122","v":"2017-01-01"},{"$f":"'(Intermediate Computations)'!CP122","v":"2017-02-01"},{"$f":"'(Intermediate Computations)'!CQ122","v":"2017-03-01"},{"$f":"'(Intermediate Computations)'!CR122","v":"2017-04-01"},{"$f":"'(Intermediate Computations)'!CS122","v":"2017-05-01"},{"$f":"'(Intermediate Computations)'!CT122","v":"2017-06-01"},{"$f":"'(Intermediate Computations)'!CU122","v":"2017-07-01"},{"$f":"'(Intermediate Computations)'!CV122","v":"2017-08-01"},{"$f":"'(Intermediate Computations)'!CW122","v":"2017-09-01"},{"$f":"'(Intermediate Computations)'!CX122","v":"2017-10-01"},{"$f":"'(Intermediate Computations)'!CY122","v":"2017-11-01"},{"$f":"'(Intermediate Computations)'!CZ122","v":"2017-12-01"},{"$f":"'(Intermediate Computations)'!DB122","v":"2018-01-01"},{"$f":"'(Intermediate Computations)'!DC122","v":"2018-02-01"},{"$f":"'(Intermediate Computations)'!DD122","v":"2018-03-01"},{"$f":"'(Intermediate Computations)'!DE122","v":"2018-04-01"},{"$f":"'(Intermediate Computations)'!DF122","v":"2018-05-01"},{"$f":"'(Intermediate Computations)'!DG122","v":"2018-06-01"},{"$f":"'(Intermediate Computations)'!DH122","v":"2018-07-01"},{"$f":"'(Intermediate Computations)'!DI122","v":"2018-08-01"},{"$f":"'(Intermediate Computations)'!DJ122","v":"2018-09-01"},{"$f":"'(Intermediate Computations)'!DK122","v":"2018-10-01"},{"$f":"'(Intermediate Computations)'!DL122","v":"2018-11-01"},{"$f":"'(Intermediate Computations)'!DM122","v":"2018-12-01"},{"$f":"'(Intermediate Computations)'!DO122","v":"2019-01-01"},{"$f":"'(Intermediate Computations)'!DP122","v":"2019-02-01"},{"$f":"'(Intermediate Computations)'!DQ122","v":"2019-03-01"},{"$f":"'(Intermediate Computations)'!DR122","v":"2019-04-01"},{"$f":"'(Intermediate Computations)'!DS122","v":"2019-05-01"},{"$f":"'(Intermediate Computations)'!DT122","v":"2019-06-01"},{"$f":"'(Intermediate Computations)'!DU122","v":"2019-07-01"},{"$f":"'(Intermediate Computations)'!DV122","v":"2019-08-01"},{"$f":"'(Intermediate Computations)'!DW122","v":"2019-09-01"},{"$f":"'(Intermediate Computations)'!DX122","v":"2019-10-01"},{"$f":"'(Intermediate Computations)'!DY122","v":"2019-11-01"},{"$f":"'(Intermediate Computations)'!DZ122","v":"2019-12-01"},{"$f":"'(Intermediate Computations)'!EB122","v":"2020-01-01"},{"$f":"'(Intermediate Computations)'!EC122","v":"2020-02-01"},{"$f":"'(Intermediate Computations)'!ED122","v":"2020-03-01"},{"$f":"'(Intermediate Computations)'!EE122","v":"2020-04-01"},{"$f":"'(Intermediate Computations)'!EF122","v":"2020-05-01"},{"$f":"'(Intermediate Computations)'!EG122","v":"2020-06-01"},{"$f":"'(Intermediate Computations)'!EH122","v":"2020-07-01"},{"$f":"'(Intermediate Computations)'!EI122","v":"2020-08-01"},{"$f":"'(Intermediate Computations)'!EJ122","v":"2020-09-01"},{"$f":"'(Intermediate Computations)'!EK122","v":"2020-10-01"},{"$f":"'(Intermediate Computations)'!EL122","v":"2020-11-01"},{"$f":"'(Intermediate Computations)'!EM122","v":"2020-12-01"}]
[{"$f":"'Statistical Moments'!B19","v":{"v":0,"d":"$0"}},{"$f":"'Statistical Moments'!C19","v":{"v":32.33529606086942,"d":"$32"}},{"$f":"'Statistical Moments'!D19","v":{"v":89.24570156576942,"d":"$89"}},{"$f":"'Statistical Moments'!E19","v":{"v":86.6107463102038,"d":"$87"}},{"$f":"'Statistical Moments'!F19","v":{"v":81.26013048222903,"d":"$81"}},{"$f":"'Statistical Moments'!G19","v":{"v":92.81529837098076,"d":"$93"}},{"$f":"'Statistical Moments'!H19","v":{"v":122.3505583762839,"d":"$122"}},{"$f":"'Statistical Moments'!I19","v":{"v":127.55586144213535,"d":"$128"}},{"$f":"'Statistical Moments'!J19","v":{"v":126.79642958657777,"d":"$127"}},{"$f":"'Statistical Moments'!K19","v":{"v":141.47280531979177,"d":"$141"}},{"$f":"'Statistical Moments'!L19","v":{"v":127.82368113429118,"d":"$128"}},{"$f":"'Statistical Moments'!M19","v":{"v":121.81342136944616,"d":"$122"}},{"$f":"'Statistical Moments'!O19","v":{"v":147.48538195977616,"d":"$147"}},{"$f":"'Statistical Moments'!P19","v":{"v":154.92987144452465,"d":"$155"}},{"$f":"'Statistical Moments'!Q19","v":{"v":135.13185121343352,"d":"$135"}},{"$f":"'Statistical Moments'!R19","v":{"v":144.44925449498768,"d":"$144"}},{"$f":"'Statistical Moments'!S19","v":{"v":169.57900570541355,"d":"$170"}},{"$f":"'Statistical Moments'!T19","v":{"v":192.4088460452401,"d":"$192"}},{"$f":"'Statistical Moments'!U19","v":{"v":140.13040771084377,"d":"$140"}},{"$f":"'Statistical Moments'!V19","v":{"v":132.6951059937648,"d":"$133"}},{"$f":"'Statistical Moments'!W19","v":{"v":134.03246600873342,"d":"$134"}},{"$f":"'Statistical Moments'!X19","v":{"v":133.83067556946415,"d":"$134"}},{"$f":"'Statistical Moments'!Y19","v":{"v":148.90678099107583,"d":"$149"}},{"$f":"'Statistical Moments'!Z19","v":{"v":148.85507438042725,"d":"$149"}},{"$f":"'Statistical Moments'!AB19","v":{"v":142.61909457914388,"d":"$143"}},{"$f":"'Statistical Moments'!AC19","v":{"v":164.1598786056562,"d":"$164"}},{"$f":"'Statistical Moments'!AD19","v":{"v":163.65941131289878,"d":"$164"}},{"$f":"'Statistical Moments'!AE19","v":{"v":146.48925783242188,"d":"$146"}},{"$f":"'Statistical Moments'!AF19","v":{"v":148.1236284394394,"d":"$148"}},{"$f":"'Statistical Moments'!AG19","v":{"v":183.0530704714972,"d":"$183"}},{"$f":"'Statistical Moments'!AH19","v":{"v":182.32974387941957,"d":"$182"}},{"$f":"'Statistical Moments'!AI19","v":{"v":182.3664320070848,"d":"$182"}},{"$f":"'Statistical Moments'!AJ19","v":{"v":175.49625544784223,"d":"$175"}},{"$f":"'Statistical Moments'!AK19","v":{"v":140.90378265356125,"d":"$141"}},{"$f":"'Statistical Moments'!AL19","v":{"v":123.6670379777387,"d":"$124"}},{"$f":"'Statistical Moments'!AM19","v":{"v":118.09840774779244,"d":"$118"}},{"$f":"'Statistical Moments'!AO19","v":{"v":127.83106711259725,"d":"$128"}},{"$f":"'Statistical Moments'!AP19","v":{"v":107.45828811802632,"d":"$107"}},{"$f":"'Statistical Moments'!AQ19","v":{"v":112.23047896367873,"d":"$112"}},{"$f":"'Statistical Moments'!AR19","v":{"v":132.7441480398686,"d":"$133"}},{"$f":"'Statistical Moments'!AS19","v":{"v":111.81676105685067,"d":"$112"}},{"$f":"'Statistical Moments'!AT19","v":{"v":127.0724703486592,"d":"$127"}},{"$f":"'Statistical Moments'!AU19","v":{"v":136.2428913887102,"d":"$136"}},{"$f":"'Statistical Moments'!AV19","v":{"v":140.64986888628394,"d":"$141"}},{"$f":"'Statistical Moments'!AW19","v":{"v":147.05335669243516,"d":"$147"}},{"$f":"'Statistical Moments'!AX19","v":{"v":139.69500457281575,"d":"$140"}},{"$f":"'Statistical Moments'!AY19","v":{"v":177.70313102730745,"d":"$178"}},{"$f":"'Statistical Moments'!AZ19","v":{"v":174.5603795486065,"d":"$175"}},{"$f":"'Statistical Moments'!BB19","v":{"v":161.40664612597755,"d":"$161"}},{"$f":"'Statistical Moments'!BC19","v":{"v":188.82520703093826,"d":"$189"}},{"$f":"'Statistical Moments'!BD19","v":{"v":207.45929190394102,"d":"$207"}},{"$f":"'Statistical Moments'!BE19","v":{"v":201.91518566727746,"d":"$202"}},{"$f":"'Statistical Moments'!BF19","v":{"v":207.50409073290604,"d":"$208"}},{"$f":"'Statistical Moments'!BG19","v":{"v":204.7710300661745,"d":"$205"}},{"$f":"'Statistical Moments'!BH19","v":{"v":215.34584240901285,"d":"$215"}},{"$f":"'Statistical Moments'!BI19","v":{"v":225.5425195219659,"d":"$226"}},{"$f":"'Statistical Moments'!BJ19","v":{"v":241.48884153461373,"d":"$241"}},{"$f":"'Statistical Moments'!BK19","v":{"v":227.39782215214112,"d":"$227"}},{"$f":"'Statistical Moments'!BL19","v":{"v":224.25106520024167,"d":"$224"}},{"$f":"'Statistical Moments'!BM19","v":{"v":257.68144744640574,"d":"$258"}},{"$f":"'Statistical Moments'!BO19","v":{"v":218.84901429162375,"d":"$219"}},{"$f":"'Statistical Moments'!BP19","v":{"v":245.0816913937451,"d":"$245"}},{"$f":"'Statistical Moments'!BQ19","v":{"v":261.5027628608851,"d":"$262"}},{"$f":"'Statistical Moments'!BR19","v":{"v":272.0722248113782,"d":"$272"}},{"$f":"'Statistical Moments'!BS19","v":{"v":274.34127362527653,"d":"$274"}},{"$f":"'Statistical Moments'!BT19","v":{"v":278.9982563205331,"d":"$279"}},{"$f":"'Statistical Moments'!BU19","v":{"v":306.2604817354701,"d":"$306"}},{"$f":"'Statistical Moments'!BV19","v":{"v":297.59247281416214,"d":"$298"}},{"$f":"'Statistical Moments'!BW19","v":{"v":294.244304621195,"d":"$294"}},{"$f":"'Statistical Moments'!BX19","v":{"v":309.5197778974288,"d":"$310"}},{"$f":"'Statistical Moments'!BY19","v":{"v":312.04541882591604,"d":"$312"}},{"$f":"'Statistical Moments'!BZ19","v":{"v":299.8285362115654,"d":"$300"}},{"$f":"'Statistical Moments'!CB19","v":{"v":292.5949783475521,"d":"$293"}},{"$f":"'Statistical Moments'!CC19","v":{"v":261.2878672863892,"d":"$261"}},{"$f":"'Statistical Moments'!CD19","v":{"v":257.4065423337463,"d":"$257"}},{"$f":"'Statistical Moments'!CE19","v":{"v":259.12489340231656,"d":"$259"}},{"$f":"'Statistical Moments'!CF19","v":{"v":269.8791125776547,"d":"$270"}},{"$f":"'Statistical Moments'!CG19","v":{"v":280.0736097708775,"d":"$280"}},{"$f":"'Statistical Moments'!CH19","v":{"v":265.4082328793286,"d":"$265"}},{"$f":"'Statistical Moments'!CI19","v":{"v":250.73504033884038,"d":"$251"}},{"$f":"'Statistical Moments'!CJ19","v":{"v":234.65839031193715,"d":"$235"}},{"$f":"'Statistical Moments'!CK19","v":{"v":222.67919406216586,"d":"$223"}},{"$f":"'Statistical Moments'!CL19","v":{"v":234.68742556584002,"d":"$235"}},{"$f":"'Statistical Moments'!CM19","v":{"v":243.22683363076757,"d":"$243"}},{"$f":"'Statistical Moments'!CO19","v":{"v":230.76716994842118,"d":"$231"}},{"$f":"'Statistical Moments'!CP19","v":{"v":230.13893762331114,"d":"$230"}},{"$f":"'Statistical Moments'!CQ19","v":{"v":228.30928045172809,"d":"$228"}},{"$f":"'Statistical Moments'!CR19","v":{"v":241.09610719725214,"d":"$241"}},{"$f":"'Statistical Moments'!CS19","v":{"v":231.10198246620737,"d":"$231"}},{"$f":"'Statistical Moments'!CT19","v":{"v":227.04197285604766,"d":"$227"}},{"$f":"'Statistical Moments'!CU19","v":{"v":249.90242547807938,"d":"$250"}},{"$f":"'Statistical Moments'!CV19","v":{"v":249.7325294102306,"d":"$250"}},{"$f":"'Statistical Moments'!CW19","v":{"v":264.22421354371005,"d":"$264"}},{"$f":"'Statistical Moments'!CX19","v":{"v":234.59707877371213,"d":"$235"}},{"$f":"'Statistical Moments'!CY19","v":{"v":237.17886895034962,"d":"$237"}},{"$f":"'Statistical Moments'!CZ19","v":{"v":240.95399969358826,"d":"$241"}},{"$f":"'Statistical Moments'!DB19","v":{"v":256.505374405033,"d":"$257"}},{"$f":"'Statistical Moments'!DC19","v":{"v":260.7006039744992,"d":"$261"}},{"$f":"'Statistical Moments'!DD19","v":{"v":259.06109091945984,"d":"$259"}},{"$f":"'Statistical Moments'!DE19","v":{"v":269.3475224294249,"d":"$269"}},{"$f":"'Statistical Moments'!DF19","v":{"v":291.0572924315278,"d":"$291"}},{"$f":"'Statistical Moments'!DG19","v":{"v":262.82466061102593,"d":"$263"}},{"$f":"'Statistical Moments'!DH19","v":{"v":266.4723764259026,"d":"$266"}},{"$f":"'Statistical Moments'!DI19","v":{"v":289.6218096333547,"d":"$290"}},{"$f":"'Statistical Moments'!DJ19","v":{"v":281.74421302274266,"d":"$282"}},{"$f":"'Statistical Moments'!DK19","v":{"v":322.5632016314057,"d":"$323"}},{"$f":"'Statistical Moments'!DL19","v":{"v":337.35526678053657,"d":"$337"}},{"$f":"'Statistical Moments'!DM19","v":{"v":350.29092457636705,"d":"$350"}},{"$f":"'Statistical Moments'!DO19","v":{"v":364.57804229249143,"d":"$365"}},{"$f":"'Statistical Moments'!DP19","v":{"v":359.3345154958146,"d":"$359"}},{"$f":"'Statistical Moments'!DQ19","v":{"v":354.939452649002,"d":"$355"}},{"$f":"'Statistical Moments'!DR19","v":{"v":377.91379672284904,"d":"$378"}},{"$f":"'Statistical Moments'!DS19","v":{"v":387.83851747698867,"d":"$388"}},{"$f":"'Statistical Moments'!DT19","v":{"v":406.30866409926,"d":"$406"}},{"$f":"'Statistical Moments'!DU19","v":{"v":419.381417440614,"d":"$419"}},{"$f":"'Statistical Moments'!DV19","v":{"v":433.4986826526988,"d":"$433"}},{"$f":"'Statistical Moments'!DW19","v":{"v":432.5467779268212,"d":"$433"}},{"$f":"'Statistical Moments'!DX19","v":{"v":423.4599179481706,"d":"$423"}},{"$f":"'Statistical Moments'!DY19","v":{"v":431.88548381058695,"d":"$432"}},{"$f":"'Statistical Moments'!DZ19","v":{"v":470.92999481289115,"d":"$471"}},{"$f":"'Statistical Moments'!EB19","v":{"v":471.38424443860515,"d":"$471"}},{"$f":"'Statistical Moments'!EC19","v":{"v":482.5102602874338,"d":"$483"}},{"$f":"'Statistical Moments'!ED19","v":{"v":457.284836985804,"d":"$457"}},{"$f":"'Statistical Moments'!EE19","v":{"v":461.9209619551268,"d":"$462"}},{"$f":"'Statistical Moments'!EF19","v":{"v":457.29996126751985,"d":"$457"}},{"$f":"'Statistical Moments'!EG19","v":{"v":468.73543377929025,"d":"$469"}},{"$f":"'Statistical Moments'!EH19","v":{"v":473.17022191626955,"d":"$473"}},{"$f":"'Statistical Moments'!EI19","v":{"v":456.55447019317523,"d":"$457"}},{"$f":"'Statistical Moments'!EJ19","v":{"v":470.62732519246305,"d":"$471"}},{"$f":"'Statistical Moments'!EK19","v":{"v":459.3465046083257,"d":"$459"}},{"$f":"'Statistical Moments'!EL19","v":{"v":474.6533187229048,"d":"$475"}},{"$f":"'Statistical Moments'!EM19","v":{"v":453.74733641195627,"d":"$454"}}]
[{"$f":"'(Intermediate Computations)'!B131","v":"Jan 2010"},{"$f":"'(Intermediate Computations)'!C131","v":"Feb 2010"},{"$f":"'(Intermediate Computations)'!D131","v":"Mar 2010"},{"$f":"'(Intermediate Computations)'!E131","v":"Apr 2010"},{"$f":"'(Intermediate Computations)'!F131","v":"May 2010"},{"$f":"'(Intermediate Computations)'!G131","v":"Jun 2010"},{"$f":"'(Intermediate Computations)'!H131","v":"Jul 2010"},{"$f":"'(Intermediate Computations)'!I131","v":"Aug 2010"},{"$f":"'(Intermediate Computations)'!J131","v":"Sep 2010"},{"$f":"'(Intermediate Computations)'!K131","v":"Oct 2010"},{"$f":"'(Intermediate Computations)'!L131","v":"Nov 2010"},{"$f":"'(Intermediate Computations)'!M131","v":"Dec 2010"},{"$f":"'(Intermediate Computations)'!O131","v":"Jan 2011"},{"$f":"'(Intermediate Computations)'!P131","v":"Feb 2011"},{"$f":"'(Intermediate Computations)'!Q131","v":"Mar 2011"},{"$f":"'(Intermediate Computations)'!R131","v":"Apr 2011"},{"$f":"'(Intermediate Computations)'!S131","v":"May 2011"},{"$f":"'(Intermediate Computations)'!T131","v":"Jun 2011"},{"$f":"'(Intermediate Computations)'!U131","v":"Jul 2011"},{"$f":"'(Intermediate Computations)'!V131","v":"Aug 2011"},{"$f":"'(Intermediate Computations)'!W131","v":"Sep 2011"},{"$f":"'(Intermediate Computations)'!X131","v":"Oct 2011"},{"$f":"'(Intermediate Computations)'!Y131","v":"Nov 2011"},{"$f":"'(Intermediate Computations)'!Z131","v":"Dec 2011"},{"$f":"'(Intermediate Computations)'!AB131","v":"Jan 2012"},{"$f":"'(Intermediate Computations)'!AC131","v":"Feb 2012"},{"$f":"'(Intermediate Computations)'!AD131","v":"Mar 2012"},{"$f":"'(Intermediate Computations)'!AE131","v":"Apr 2012"},{"$f":"'(Intermediate Computations)'!AF131","v":"May 2012"},{"$f":"'(Intermediate Computations)'!AG131","v":"Jun 2012"},{"$f":"'(Intermediate Computations)'!AH131","v":"Jul 2012"},{"$f":"'(Intermediate Computations)'!AI131","v":"Aug 2012"},{"$f":"'(Intermediate Computations)'!AJ131","v":"Sep 2012"},{"$f":"'(Intermediate Computations)'!AK131","v":"Oct 2012"},{"$f":"'(Intermediate Computations)'!AL131","v":"Nov 2012"},{"$f":"'(Intermediate Computations)'!AM131","v":"Dec 2012"},{"$f":"'(Intermediate Computations)'!AO131","v":"Jan 2013"},{"$f":"'(Intermediate Computations)'!AP131","v":"Feb 2013"},{"$f":"'(Intermediate Computations)'!AQ131","v":"Mar 2013"},{"$f":"'(Intermediate Computations)'!AR131","v":"Apr 2013"},{"$f":"'(Intermediate Computations)'!AS131","v":"May 2013"},{"$f":"'(Intermediate Computations)'!AT131","v":"Jun 2013"},{"$f":"'(Intermediate Computations)'!AU131","v":"Jul 2013"},{"$f":"'(Intermediate Computations)'!AV131","v":"Aug 2013"},{"$f":"'(Intermediate Computations)'!AW131","v":"Sep 2013"},{"$f":"'(Intermediate Computations)'!AX131","v":"Oct 2013"},{"$f":"'(Intermediate Computations)'!AY131","v":"Nov 2013"},{"$f":"'(Intermediate Computations)'!AZ131","v":"Dec 2013"},{"$f":"'(Intermediate Computations)'!BB131","v":"Jan 2014"},{"$f":"'(Intermediate Computations)'!BC131","v":"Feb 2014"},{"$f":"'(Intermediate Computations)'!BD131","v":"Mar 2014"},{"$f":"'(Intermediate Computations)'!BE131","v":"Apr 2014"},{"$f":"'(Intermediate Computations)'!BF131","v":"May 2014"},{"$f":"'(Intermediate Computations)'!BG131","v":"Jun 2014"},{"$f":"'(Intermediate Computations)'!BH131","v":"Jul 2014"},{"$f":"'(Intermediate Computations)'!BI131","v":"Aug 2014"},{"$f":"'(Intermediate Computations)'!BJ131","v":"Sep 2014"},{"$f":"'(Intermediate Computations)'!BK131","v":"Oct 2014"},{"$f":"'(Intermediate Computations)'!BL131","v":"Nov 2014"},{"$f":"'(Intermediate Computations)'!BM131","v":"Dec 2014"},{"$f":"'(Intermediate Computations)'!BO131","v":"Jan 2015"},{"$f":"'(Intermediate Computations)'!BP131","v":"Feb 2015"},{"$f":"'(Intermediate Computations)'!BQ131","v":"Mar 2015"},{"$f":"'(Intermediate Computations)'!BR131","v":"Apr 2015"},{"$f":"'(Intermediate Computations)'!BS131","v":"May 2015"},{"$f":"'(Intermediate Computations)'!BT131","v":"Jun 2015"},{"$f":"'(Intermediate Computations)'!BU131","v":"Jul 2015"},{"$f":"'(Intermediate Computations)'!BV131","v":"Aug 2015"},{"$f":"'(Intermediate Computations)'!BW131","v":"Sep 2015"},{"$f":"'(Intermediate Computations)'!BX131","v":"Oct 2015"},{"$f":"'(Intermediate Computations)'!BY131","v":"Nov 2015"},{"$f":"'(Intermediate Computations)'!BZ131","v":"Dec 2015"},{"$f":"'(Intermediate Computations)'!CB131","v":"Jan 2016"},{"$f":"'(Intermediate Computations)'!CC131","v":"Feb 2016"},{"$f":"'(Intermediate Computations)'!CD131","v":"Mar 2016"},{"$f":"'(Intermediate Computations)'!CE131","v":"Apr 2016"},{"$f":"'(Intermediate Computations)'!CF131","v":"May 2016"},{"$f":"'(Intermediate Computations)'!CG131","v":"Jun 2016"},{"$f":"'(Intermediate Computations)'!CH131","v":"Jul 2016"},{"$f":"'(Intermediate Computations)'!CI131","v":"Aug 2016"},{"$f":"'(Intermediate Computations)'!CJ131","v":"Sep 2016"},{"$f":"'(Intermediate Computations)'!CK131","v":"Oct 2016"},{"$f":"'(Intermediate Computations)'!CL131","v":"Nov 2016"},{"$f":"'(Intermediate Computations)'!CM131","v":"Dec 2016"},{"$f":"'(Intermediate Computations)'!CO131","v":"Jan 2017"},{"$f":"'(Intermediate Computations)'!CP131","v":"Feb 2017"},{"$f":"'(Intermediate Computations)'!CQ131","v":"Mar 2017"},{"$f":"'(Intermediate Computations)'!CR131","v":"Apr 2017"},{"$f":"'(Intermediate Computations)'!CS131","v":"May 2017"},{"$f":"'(Intermediate Computations)'!CT131","v":"Jun 2017"},{"$f":"'(Intermediate Computations)'!CU131","v":"Jul 2017"},{"$f":"'(Intermediate Computations)'!CV131","v":"Aug 2017"},{"$f":"'(Intermediate Computations)'!CW131","v":"Sep 2017"},{"$f":"'(Intermediate Computations)'!CX131","v":"Oct 2017"},{"$f":"'(Intermediate Computations)'!CY131","v":"Nov 2017"},{"$f":"'(Intermediate Computations)'!CZ131","v":"Dec 2017"},{"$f":"'(Intermediate Computations)'!DB131","v":"Jan 2018"},{"$f":"'(Intermediate Computations)'!DC131","v":"Feb 2018"},{"$f":"'(Intermediate Computations)'!DD131","v":"Mar 2018"},{"$f":"'(Intermediate Computations)'!DE131","v":"Apr 2018"},{"$f":"'(Intermediate Computations)'!DF131","v":"May 2018"},{"$f":"'(Intermediate Computations)'!DG131","v":"Jun 2018"},{"$f":"'(Intermediate Computations)'!DH131","v":"Jul 2018"},{"$f":"'(Intermediate Computations)'!DI131","v":"Aug 2018"},{"$f":"'(Intermediate Computations)'!DJ131","v":"Sep 2018"},{"$f":"'(Intermediate Computations)'!DK131","v":"Oct 2018"},{"$f":"'(Intermediate Computations)'!DL131","v":"Nov 2018"},{"$f":"'(Intermediate Computations)'!DM131","v":"Dec 2018"},{"$f":"'(Intermediate Computations)'!DO131","v":"Jan 2019"},{"$f":"'(Intermediate Computations)'!DP131","v":"Feb 2019"},{"$f":"'(Intermediate Computations)'!DQ131","v":"Mar 2019"},{"$f":"'(Intermediate Computations)'!DR131","v":"Apr 2019"},{"$f":"'(Intermediate Computations)'!DS131","v":"May 2019"},{"$f":"'(Intermediate Computations)'!DT131","v":"Jun 2019"},{"$f":"'(Intermediate Computations)'!DU131","v":"Jul 2019"},{"$f":"'(Intermediate Computations)'!DV131","v":"Aug 2019"},{"$f":"'(Intermediate Computations)'!DW131","v":"Sep 2019"},{"$f":"'(Intermediate Computations)'!DX131","v":"Oct 2019"},{"$f":"'(Intermediate Computations)'!DY131","v":"Nov 2019"},{"$f":"'(Intermediate Computations)'!DZ131","v":"Dec 2019"},{"$f":"'(Intermediate Computations)'!EB131","v":"Jan 2020"},{"$f":"'(Intermediate Computations)'!EC131","v":"Feb 2020"},{"$f":"'(Intermediate Computations)'!ED131","v":"Mar 2020"},{"$f":"'(Intermediate Computations)'!EE131","v":"Apr 2020"},{"$f":"'(Intermediate Computations)'!EF131","v":"May 2020"},{"$f":"'(Intermediate Computations)'!EG131","v":"Jun 2020"},{"$f":"'(Intermediate Computations)'!EH131","v":"Jul 2020"},{"$f":"'(Intermediate Computations)'!EI131","v":"Aug 2020"},{"$f":"'(Intermediate Computations)'!EJ131","v":"Sep 2020"},{"$f":"'(Intermediate Computations)'!EK131","v":"Oct 2020"},{"$f":"'(Intermediate Computations)'!EL131","v":"Nov 2020"},{"$f":"'(Intermediate Computations)'!EM131","v":"Dec 2020"}]
[{"$f":"'(Intermediate Computations)'!B128","v":"2010-01-01"},{"$f":"'(Intermediate Computations)'!C128","v":"2010-02-01"},{"$f":"'(Intermediate Computations)'!D128","v":"2010-03-01"},{"$f":"'(Intermediate Computations)'!E128","v":"2010-04-01"},{"$f":"'(Intermediate Computations)'!F128","v":"2010-05-01"},{"$f":"'(Intermediate Computations)'!G128","v":"2010-06-01"},{"$f":"'(Intermediate Computations)'!H128","v":"2010-07-01"},{"$f":"'(Intermediate Computations)'!I128","v":"2010-08-01"},{"$f":"'(Intermediate Computations)'!J128","v":"2010-09-01"},{"$f":"'(Intermediate Computations)'!K128","v":"2010-10-01"},{"$f":"'(Intermediate Computations)'!L128","v":"2010-11-01"},{"$f":"'(Intermediate Computations)'!M128","v":"2010-12-01"},{"$f":"'(Intermediate Computations)'!O128","v":"2011-01-01"},{"$f":"'(Intermediate Computations)'!P128","v":"2011-02-01"},{"$f":"'(Intermediate Computations)'!Q128","v":"2011-03-01"},{"$f":"'(Intermediate Computations)'!R128","v":"2011-04-01"},{"$f":"'(Intermediate Computations)'!S128","v":"2011-05-01"},{"$f":"'(Intermediate Computations)'!T128","v":"2011-06-01"},{"$f":"'(Intermediate Computations)'!U128","v":"2011-07-01"},{"$f":"'(Intermediate Computations)'!V128","v":"2011-08-01"},{"$f":"'(Intermediate Computations)'!W128","v":"2011-09-01"},{"$f":"'(Intermediate Computations)'!X128","v":"2011-10-01"},{"$f":"'(Intermediate Computations)'!Y128","v":"2011-11-01"},{"$f":"'(Intermediate Computations)'!Z128","v":"2011-12-01"},{"$f":"'(Intermediate Computations)'!AB128","v":"2012-01-01"},{"$f":"'(Intermediate Computations)'!AC128","v":"2012-02-01"},{"$f":"'(Intermediate Computations)'!AD128","v":"2012-03-01"},{"$f":"'(Intermediate Computations)'!AE128","v":"2012-04-01"},{"$f":"'(Intermediate Computations)'!AF128","v":"2012-05-01"},{"$f":"'(Intermediate Computations)'!AG128","v":"2012-06-01"},{"$f":"'(Intermediate Computations)'!AH128","v":"2012-07-01"},{"$f":"'(Intermediate Computations)'!AI128","v":"2012-08-01"},{"$f":"'(Intermediate Computations)'!AJ128","v":"2012-09-01"},{"$f":"'(Intermediate Computations)'!AK128","v":"2012-10-01"},{"$f":"'(Intermediate Computations)'!AL128","v":"2012-11-01"},{"$f":"'(Intermediate Computations)'!AM128","v":"2012-12-01"},{"$f":"'(Intermediate Computations)'!AO128","v":"2013-01-01"},{"$f":"'(Intermediate Computations)'!AP128","v":"2013-02-01"},{"$f":"'(Intermediate Computations)'!AQ128","v":"2013-03-01"},{"$f":"'(Intermediate Computations)'!AR128","v":"2013-04-01"},{"$f":"'(Intermediate Computations)'!AS128","v":"2013-05-01"},{"$f":"'(Intermediate Computations)'!AT128","v":"2013-06-01"},{"$f":"'(Intermediate Computations)'!AU128","v":"2013-07-01"},{"$f":"'(Intermediate Computations)'!AV128","v":"2013-08-01"},{"$f":"'(Intermediate Computations)'!AW128","v":"2013-09-01"},{"$f":"'(Intermediate Computations)'!AX128","v":"2013-10-01"},{"$f":"'(Intermediate Computations)'!AY128","v":"2013-11-01"},{"$f":"'(Intermediate Computations)'!AZ128","v":"2013-12-01"},{"$f":"'(Intermediate Computations)'!BB128","v":"2014-01-01"},{"$f":"'(Intermediate Computations)'!BC128","v":"2014-02-01"},{"$f":"'(Intermediate Computations)'!BD128","v":"2014-03-01"},{"$f":"'(Intermediate Computations)'!BE128","v":"2014-04-01"},{"$f":"'(Intermediate Computations)'!BF128","v":"2014-05-01"},{"$f":"'(Intermediate Computations)'!BG128","v":"2014-06-01"},{"$f":"'(Intermediate Computations)'!BH128","v":"2014-07-01"},{"$f":"'(Intermediate Computations)'!BI128","v":"2014-08-01"},{"$f":"'(Intermediate Computations)'!BJ128","v":"2014-09-01"},{"$f":"'(Intermediate Computations)'!BK128","v":"2014-10-01"},{"$f":"'(Intermediate Computations)'!BL128","v":"2014-11-01"},{"$f":"'(Intermediate Computations)'!BM128","v":"2014-12-01"},{"$f":"'(Intermediate Computations)'!BO128","v":"2015-01-01"},{"$f":"'(Intermediate Computations)'!BP128","v":"2015-02-01"},{"$f":"'(Intermediate Computations)'!BQ128","v":"2015-03-01"},{"$f":"'(Intermediate Computations)'!BR128","v":"2015-04-01"},{"$f":"'(Intermediate Computations)'!BS128","v":"2015-05-01"},{"$f":"'(Intermediate Computations)'!BT128","v":"2015-06-01"},{"$f":"'(Intermediate Computations)'!BU128","v":"2015-07-01"},{"$f":"'(Intermediate Computations)'!BV128","v":"2015-08-01"},{"$f":"'(Intermediate Computations)'!BW128","v":"2015-09-01"},{"$f":"'(Intermediate Computations)'!BX128","v":"2015-10-01"},{"$f":"'(Intermediate Computations)'!BY128","v":"2015-11-01"},{"$f":"'(Intermediate Computations)'!BZ128","v":"2015-12-01"},{"$f":"'(Intermediate Computations)'!CB128","v":"2016-01-01"},{"$f":"'(Intermediate Computations)'!CC128","v":"2016-02-01"},{"$f":"'(Intermediate Computations)'!CD128","v":"2016-03-01"},{"$f":"'(Intermediate Computations)'!CE128","v":"2016-04-01"},{"$f":"'(Intermediate Computations)'!CF128","v":"2016-05-01"},{"$f":"'(Intermediate Computations)'!CG128","v":"2016-06-01"},{"$f":"'(Intermediate Computations)'!CH128","v":"2016-07-01"},{"$f":"'(Intermediate Computations)'!CI128","v":"2016-08-01"},{"$f":"'(Intermediate Computations)'!CJ128","v":"2016-09-01"},{"$f":"'(Intermediate Computations)'!CK128","v":"2016-10-01"},{"$f":"'(Intermediate Computations)'!CL128","v":"2016-11-01"},{"$f":"'(Intermediate Computations)'!CM128","v":"2016-12-01"},{"$f":"'(Intermediate Computations)'!CO128","v":"2017-01-01"},{"$f":"'(Intermediate Computations)'!CP128","v":"2017-02-01"},{"$f":"'(Intermediate Computations)'!CQ128","v":"2017-03-01"},{"$f":"'(Intermediate Computations)'!CR128","v":"2017-04-01"},{"$f":"'(Intermediate Computations)'!CS128","v":"2017-05-01"},{"$f":"'(Intermediate Computations)'!CT128","v":"2017-06-01"},{"$f":"'(Intermediate Computations)'!CU128","v":"2017-07-01"},{"$f":"'(Intermediate Computations)'!CV128","v":"2017-08-01"},{"$f":"'(Intermediate Computations)'!CW128","v":"2017-09-01"},{"$f":"'(Intermediate Computations)'!CX128","v":"2017-10-01"},{"$f":"'(Intermediate Computations)'!CY128","v":"2017-11-01"},{"$f":"'(Intermediate Computations)'!CZ128","v":"2017-12-01"},{"$f":"'(Intermediate Computations)'!DB128","v":"2018-01-01"},{"$f":"'(Intermediate Computations)'!DC128","v":"2018-02-01"},{"$f":"'(Intermediate Computations)'!DD128","v":"2018-03-01"},{"$f":"'(Intermediate Computations)'!DE128","v":"2018-04-01"},{"$f":"'(Intermediate Computations)'!DF128","v":"2018-05-01"},{"$f":"'(Intermediate Computations)'!DG128","v":"2018-06-01"},{"$f":"'(Intermediate Computations)'!DH128","v":"2018-07-01"},{"$f":"'(Intermediate Computations)'!DI128","v":"2018-08-01"},{"$f":"'(Intermediate Computations)'!DJ128","v":"2018-09-01"},{"$f":"'(Intermediate Computations)'!DK128","v":"2018-10-01"},{"$f":"'(Intermediate Computations)'!DL128","v":"2018-11-01"},{"$f":"'(Intermediate Computations)'!DM128","v":"2018-12-01"},{"$f":"'(Intermediate Computations)'!DO128","v":"2019-01-01"},{"$f":"'(Intermediate Computations)'!DP128","v":"2019-02-01"},{"$f":"'(Intermediate Computations)'!DQ128","v":"2019-03-01"},{"$f":"'(Intermediate Computations)'!DR128","v":"2019-04-01"},{"$f":"'(Intermediate Computations)'!DS128","v":"2019-05-01"},{"$f":"'(Intermediate Computations)'!DT128","v":"2019-06-01"},{"$f":"'(Intermediate Computations)'!DU128","v":"2019-07-01"},{"$f":"'(Intermediate Computations)'!DV128","v":"2019-08-01"},{"$f":"'(Intermediate Computations)'!DW128","v":"2019-09-01"},{"$f":"'(Intermediate Computations)'!DX128","v":"2019-10-01"},{"$f":"'(Intermediate Computations)'!DY128","v":"2019-11-01"},{"$f":"'(Intermediate Computations)'!DZ128","v":"2019-12-01"},{"$f":"'(Intermediate Computations)'!EB128","v":"2020-01-01"},{"$f":"'(Intermediate Computations)'!EC128","v":"2020-02-01"},{"$f":"'(Intermediate Computations)'!ED128","v":"2020-03-01"},{"$f":"'(Intermediate Computations)'!EE128","v":"2020-04-01"},{"$f":"'(Intermediate Computations)'!EF128","v":"2020-05-01"},{"$f":"'(Intermediate Computations)'!EG128","v":"2020-06-01"},{"$f":"'(Intermediate Computations)'!EH128","v":"2020-07-01"},{"$f":"'(Intermediate Computations)'!EI128","v":"2020-08-01"},{"$f":"'(Intermediate Computations)'!EJ128","v":"2020-09-01"},{"$f":"'(Intermediate Computations)'!EK128","v":"2020-10-01"},{"$f":"'(Intermediate Computations)'!EL128","v":"2020-11-01"},{"$f":"'(Intermediate Computations)'!EM128","v":"2020-12-01"}]
[{"$f":"'Statistical Moments'!B25","v":{"v":34645298.421926446,"d":"$34,645,298"}},{"$f":"'Statistical Moments'!C25","v":{"v":34645298.421926446,"d":"$34,645,298"}},{"$f":"'Statistical Moments'!D25","v":{"v":34644859.278854564,"d":"$34,644,859"}},{"$f":"'Statistical Moments'!E25","v":{"v":34644021.668411784,"d":"$34,644,022"}},{"$f":"'Statistical Moments'!F25","v":{"v":34642833.52724011,"d":"$34,642,834"}},{"$f":"'Statistical Moments'!G25","v":{"v":34641319.65327754,"d":"$34,641,320"}},{"$f":"'Statistical Moments'!H25","v":{"v":34639508.568082,"d":"$34,639,509"}},{"$f":"'Statistical Moments'!I25","v":{"v":34637382.818694465,"d":"$34,637,383"}},{"$f":"'Statistical Moments'!J25","v":{"v":34634916.34381461,"d":"$34,634,916"}},{"$f":"'Statistical Moments'!K25","v":{"v":34632135.185316004,"d":"$34,632,135"}},{"$f":"'Statistical Moments'!L25","v":{"v":34629050.95398875,"d":"$34,629,051"}},{"$f":"'Statistical Moments'!M25","v":{"v":34625672.319007576,"d":"$34,625,672"}},{"$f":"'Statistical Moments'!O25","v":{"v":34622003.531239085,"d":"$34,622,004"}},{"$f":"'Statistical Moments'!P25","v":{"v":34618041.15022326,"d":"$34,618,041"}},{"$f":"'Statistical Moments'!Q25","v":{"v":34613815.41149432,"d":"$34,613,815"}},{"$f":"'Statistical Moments'!R25","v":{"v":34609327.33768017,"d":"$34,609,327"}},{"$f":"'Statistical Moments'!S25","v":{"v":34604592.81611621,"d":"$34,604,593"}},{"$f":"'Statistical Moments'!T25","v":{"v":34599627.49330267,"d":"$34,599,627"}},{"$f":"'Statistical Moments'!U25","v":{"v":34594363.72180989,"d":"$34,594,364"}},{"$f":"'Statistical Moments'!V25","v":{"v":34588872.93598822,"d":"$34,588,873"}},{"$f":"'Statistical Moments'!W25","v":{"v":34583117.220319375,"d":"$34,583,117"}},{"$f":"'Statistical Moments'!X25","v":{"v":34577109.310291365,"d":"$34,577,109"}},{"$f":"'Statistical Moments'!Y25","v":{"v":34570908.38280433,"d":"$34,570,908"}},{"$f":"'Statistical Moments'!Z25","v":{"v":34564478.16078607,"d":"$34,564,478"}},{"$f":"'Statistical Moments'!AB25","v":{"v":34557828.804218315,"d":"$34,557,829"}},{"$f":"'Statistical Moments'!AC25","v":{"v":34550924.56472787,"d":"$34,550,925"}},{"$f":"'Statistical Moments'!AD25","v":{"v":34543821.00805887,"d":"$34,543,821"}},{"$f":"'Statistical Moments'!AE25","v":{"v":34536542.393499196,"d":"$34,536,542"}},{"$f":"'Statistical Moments'!AF25","v":{"v":34529079.956833996,"d":"$34,529,080"}},{"$f":"'Statistical Moments'!AG25","v":{"v":34521432.751297295,"d":"$34,521,433"}},{"$f":"'Statistical Moments'!AH25","v":{"v":34513574.979747005,"d":"$34,513,575"}},{"$f":"'Statistical Moments'!AI25","v":{"v":34505555.71776827,"d":"$34,505,556"}},{"$f":"'Statistical Moments'!AJ25","v":{"v":34497397.243306816,"d":"$34,497,397"}},{"$f":"'Statistical Moments'!AK25","v":{"v":34489040.14625546,"d":"$34,489,040"}},{"$f":"'Statistical Moments'!AL25","v":{"v":34480528.27557434,"d":"$34,480,528"}},{"$f":"'Statistical Moments'!AM25","v":{"v":34471874.61320618,"d":"$34,471,875"}},{"$f":"'Statistical Moments'!AO25","v":{"v":34463090.09207817,"d":"$34,463,090"}},{"$f":"'Statistical Moments'!AP25","v":{"v":34454138.17681596,"d":"$34,454,138"}},{"$f":"'Statistical Moments'!AQ25","v":{"v":34445045.17902006,"d":"$34,445,045"}},{"$f":"'Statistical Moments'!AR25","v":{"v":34435839.31559216,"d":"$34,435,839"}},{"$f":"'Statistical Moments'!AS25","v":{"v":34426479.283067845,"d":"$34,426,479"}},{"$f":"'Statistical Moments'!AT25","v":{"v":34416984.772518665,"d":"$34,416,985"}},{"$f":"'Statistical Moments'!AU25","v":{"v":34407384.939971864,"d":"$34,407,385"}},{"$f":"'Statistical Moments'!AV25","v":{"v":34397657.7241305,"d":"$34,397,658"}},{"$f":"'Statistical Moments'!AW25","v":{"v":34387799.52057429,"d":"$34,387,800"}},{"$f":"'Statistical Moments'!AX25","v":{"v":34377825.92936333,"d":"$34,377,826"}},{"$f":"'Statistical Moments'!AY25","v":{"v":34367712.577916145,"d":"$34,367,713"}},{"$f":"'Statistical Moments'!AZ25","v":{"v":34357479.684476316,"d":"$34,357,480"}},{"$f":"'Statistical Moments'!BB25","v":{"v":34347142.42207191,"d":"$34,347,142"}},{"$f":"'Statistical Moments'!BC25","v":{"v":34336668.6734532,"d":"$34,336,669"}},{"$f":"'Statistical Moments'!BD25","v":{"v":34326066.66246392,"d":"$34,326,067"}},{"$f":"'Statistical Moments'!BE25","v":{"v":34315358.844777256,"d":"$34,315,359"}},{"$f":"'Statistical Moments'!BF25","v":{"v":34304556.33187667,"d":"$34,304,556"}},{"$f":"'Statistical Moments'!BG25","v":{"v":34293654.15592086,"d":"$34,293,654"}},{"$f":"'Statistical Moments'!BH25","v":{"v":34282671.50839238,"d":"$34,282,672"}},{"$f":"'Statistical Moments'!BI25","v":{"v":34271610.63885818,"d":"$34,271,611"}},{"$f":"'Statistical Moments'!BJ25","v":{"v":34260435.62438874,"d":"$34,260,436"}},{"$f":"'Statistical Moments'!BK25","v":{"v":34249165.38537648,"d":"$34,249,165"}},{"$f":"'Statistical Moments'!BL25","v":{"v":34237829.045365036,"d":"$34,237,829"}},{"$f":"'Statistical Moments'!BM25","v":{"v":34226407.18835192,"d":"$34,226,407"}},{"$f":"'Statistical Moments'!BO25","v":{"v":34214924.15671031,"d":"$34,214,924"}},{"$f":"'Statistical Moments'!BP25","v":{"v":34203363.33130261,"d":"$34,203,363"}},{"$f":"'Statistical Moments'!BQ25","v":{"v":34191724.871569276,"d":"$34,191,725"}},{"$f":"'Statistical Moments'!BR25","v":{"v":34180023.148290955,"d":"$34,180,023"}},{"$f":"'Statistical Moments'!BS25","v":{"v":34168280.15919517,"d":"$34,168,280"}},{"$f":"'Statistical Moments'!BT25","v":{"v":34156490.59158419,"d":"$34,156,491"}},{"$f":"'Statistical Moments'!BU25","v":{"v":34144623.52899963,"d":"$34,144,624"}},{"$f":"'Statistical Moments'!BV25","v":{"v":34132729.9993996,"d":"$34,132,730"}},{"$f":"'Statistical Moments'!BW25","v":{"v":34120759.10707624,"d":"$34,120,759"}},{"$f":"'Statistical Moments'!BX25","v":{"v":34108725.48114125,"d":"$34,108,725"}},{"$f":"'Statistical Moments'!BY25","v":{"v":34096662.8643091,"d":"$34,096,663"}},{"$f":"'Statistical Moments'!BZ25","v":{"v":34084525.96799372,"d":"$34,084,526"}},{"$f":"'Statistical Moments'!CB25","v":{"v":34072358.15116109,"d":"$34,072,358"}},{"$f":"'Statistical Moments'!CC25","v":{"v":34060139.80006704,"d":"$34,060,140"}},{"$f":"'Statistical Moments'!CD25","v":{"v":34047866.23878802,"d":"$34,047,866"}},{"$f":"'Statistical Moments'!CE25","v":{"v":34035534.85763357,"d":"$34,035,535"}},{"$f":"'Statistical Moments'!CF25","v":{"v":34023169.548566066,"d":"$34,023,170"}},{"$f":"'Statistical Moments'!CG25","v":{"v":34010737.507047586,"d":"$34,010,738"}},{"$f":"'Statistical Moments'!CH25","v":{"v":33998258.07156387,"d":"$33,998,258"}},{"$f":"'Statistical Moments'!CI25","v":{"v":33985788.56402588,"d":"$33,985,789"}},{"$f":"'Statistical Moments'!CJ25","v":{"v":33973283.326311596,"d":"$33,973,283"}},{"$f":"'Statistical Moments'!CK25","v":{"v":33960754.45246711,"d":"$33,960,754"}},{"$f":"'Statistical Moments'!CL25","v":{"v":33948194.7414449,"d":"$33,948,195"}},{"$f":"'Statistical Moments'!CM25","v":{"v":33935631.17044847,"d":"$33,935,631"}},{"$f":"'Statistical Moments'!CO25","v":{"v":33923023.85367459,"d":"$33,923,024"}},{"$f":"'Statistical Moments'!CP25","v":{"v":33910409.68881352,"d":"$33,910,410"}},{"$f":"'Statistical Moments'!CQ25","v":{"v":33897772.598913655,"d":"$33,897,773"}},{"$f":"'Statistical Moments'!CR25","v":{"v":33885114.728323914,"d":"$33,885,115"}},{"$f":"'Statistical Moments'!CS25","v":{"v":33872433.833871506,"d":"$33,872,434"}},{"$f":"'Statistical Moments'!CT25","v":{"v":33859719.63190273,"d":"$33,859,720"}},{"$f":"'Statistical Moments'!CU25","v":{"v":33846930.699006625,"d":"$33,846,931"}},{"$f":"'Statistical Moments'!CV25","v":{"v":33834089.01864315,"d":"$33,834,089"}},{"$f":"'Statistical Moments'!CW25","v":{"v":33821261.544883795,"d":"$33,821,262"}},{"$f":"'Statistical Moments'!CX25","v":{"v":33808395.64508326,"d":"$33,808,396"}},{"$f":"'Statistical Moments'!CY25","v":{"v":33795496.26449756,"d":"$33,795,496"}},{"$f":"'Statistical Moments'!CZ25","v":{"v":33782556.29494192,"d":"$33,782,556"}},{"$f":"'Statistical Moments'!DB25","v":{"v":33769602.462198325,"d":"$33,769,602"}},{"$f":"'Statistical Moments'!DC25","v":{"v":33756612.93248128,"d":"$33,756,613"}},{"$f":"'Statistical Moments'!DD25","v":{"v":33743615.3539237,"d":"$33,743,615"}},{"$f":"'Statistical Moments'!DE25","v":{"v":33730568.7749541,"d":"$33,730,569"}},{"$f":"'Statistical Moments'!DF25","v":{"v":33717488.21117927,"d":"$33,717,488"}},{"$f":"'Statistical Moments'!DG25","v":{"v":33704397.445405535,"d":"$33,704,397"}},{"$f":"'Statistical Moments'!DH25","v":{"v":33691282.86597116,"d":"$33,691,283"}},{"$f":"'Statistical Moments'!DI25","v":{"v":33678139.06328868,"d":"$33,678,139"}},{"$f":"'Statistical Moments'!DJ25","v":{"v":33664962.77255172,"d":"$33,664,963"}},{"$f":"'Statistical Moments'!DK25","v":{"v":33651748.77495334,"d":"$33,651,749"}},{"$f":"'Statistical Moments'!DL25","v":{"v":33638514.80406481,"d":"$33,638,515"}},{"$f":"'Statistical Moments'!DM25","v":{"v":33625257.03779657,"d":"$33,625,257"}},{"$f":"'Statistical Moments'!DO25","v":{"v":33611962.27642945,"d":"$33,611,962"}},{"$f":"'Statistical Moments'!DP25","v":{"v":33598637.50508385,"d":"$33,598,638"}},{"$f":"'Statistical Moments'!DQ25","v":{"v":33585314.92926693,"d":"$33,585,315"}},{"$f":"'Statistical Moments'!DR25","v":{"v":33571964.15156749,"d":"$33,571,964"}},{"$f":"'Statistical Moments'!DS25","v":{"v":33558625.941704765,"d":"$33,558,626"}},{"$f":"'Statistical Moments'!DT25","v":{"v":33545276.379179727,"d":"$33,545,276"}},{"$f":"'Statistical Moments'!DU25","v":{"v":33531912.69355189,"d":"$33,531,913"}},{"$f":"'Statistical Moments'!DV25","v":{"v":33518560.19599856,"d":"$33,518,560"}},{"$f":"'Statistical Moments'!DW25","v":{"v":33505202.330858015,"d":"$33,505,202"}},{"$f":"'Statistical Moments'!DX25","v":{"v":33491846.608364306,"d":"$33,491,847"}},{"$f":"'Statistical Moments'!DY25","v":{"v":33478482.374495365,"d":"$33,478,482"}},{"$f":"'Statistical Moments'!DZ25","v":{"v":33465105.96834648,"d":"$33,465,106"}},{"$f":"'Statistical Moments'!EB25","v":{"v":33451720.052070413,"d":"$33,451,720"}},{"$f":"'Statistical Moments'!EC25","v":{"v":33438292.429273862,"d":"$33,438,292"}},{"$f":"'Statistical Moments'!ED25","v":{"v":33424865.559675813,"d":"$33,424,866"}},{"$f":"'Statistical Moments'!EE25","v":{"v":33411401.60819264,"d":"$33,411,402"}},{"$f":"'Statistical Moments'!EF25","v":{"v":33397913.25117173,"d":"$33,397,913"}},{"$f":"'Statistical Moments'!EG25","v":{"v":33384418.80493521,"d":"$33,384,419"}},{"$f":"'Statistical Moments'!EH25","v":{"v":33370921.941037472,"d":"$33,370,922"}},{"$f":"'Statistical Moments'!EI25","v":{"v":33357396.634808782,"d":"$33,357,397"}},{"$f":"'Statistical Moments'!EJ25","v":{"v":33343851.799202017,"d":"$33,343,852"}},{"$f":"'Statistical Moments'!EK25","v":{"v":33330252.65238611,"d":"$33,330,253"}},{"$f":"'Statistical Moments'!EL25","v":{"v":33316636.782841437,"d":"$33,316,637"}},{"$f":"'Statistical Moments'!EM25","v":{"v":33303025.83441105,"d":"$33,303,026"}}]
[{"$f":"'(Intermediate Computations)'!B137","v":"Jan 2010"},{"$f":"'(Intermediate Computations)'!C137","v":"Feb 2010"},{"$f":"'(Intermediate Computations)'!D137","v":"Mar 2010"},{"$f":"'(Intermediate Computations)'!E137","v":"Apr 2010"},{"$f":"'(Intermediate Computations)'!F137","v":"May 2010"},{"$f":"'(Intermediate Computations)'!G137","v":"Jun 2010"},{"$f":"'(Intermediate Computations)'!H137","v":"Jul 2010"},{"$f":"'(Intermediate Computations)'!I137","v":"Aug 2010"},{"$f":"'(Intermediate Computations)'!J137","v":"Sep 2010"},{"$f":"'(Intermediate Computations)'!K137","v":"Oct 2010"},{"$f":"'(Intermediate Computations)'!L137","v":"Nov 2010"},{"$f":"'(Intermediate Computations)'!M137","v":"Dec 2010"},{"$f":"'(Intermediate Computations)'!O137","v":"Jan 2011"},{"$f":"'(Intermediate Computations)'!P137","v":"Feb 2011"},{"$f":"'(Intermediate Computations)'!Q137","v":"Mar 2011"},{"$f":"'(Intermediate Computations)'!R137","v":"Apr 2011"},{"$f":"'(Intermediate Computations)'!S137","v":"May 2011"},{"$f":"'(Intermediate Computations)'!T137","v":"Jun 2011"},{"$f":"'(Intermediate Computations)'!U137","v":"Jul 2011"},{"$f":"'(Intermediate Computations)'!V137","v":"Aug 2011"},{"$f":"'(Intermediate Computations)'!W137","v":"Sep 2011"},{"$f":"'(Intermediate Computations)'!X137","v":"Oct 2011"},{"$f":"'(Intermediate Computations)'!Y137","v":"Nov 2011"},{"$f":"'(Intermediate Computations)'!Z137","v":"Dec 2011"},{"$f":"'(Intermediate Computations)'!AB137","v":"Jan 2012"},{"$f":"'(Intermediate Computations)'!AC137","v":"Feb 2012"},{"$f":"'(Intermediate Computations)'!AD137","v":"Mar 2012"},{"$f":"'(Intermediate Computations)'!AE137","v":"Apr 2012"},{"$f":"'(Intermediate Computations)'!AF137","v":"May 2012"},{"$f":"'(Intermediate Computations)'!AG137","v":"Jun 2012"},{"$f":"'(Intermediate Computations)'!AH137","v":"Jul 2012"},{"$f":"'(Intermediate Computations)'!AI137","v":"Aug 2012"},{"$f":"'(Intermediate Computations)'!AJ137","v":"Sep 2012"},{"$f":"'(Intermediate Computations)'!AK137","v":"Oct 2012"},{"$f":"'(Intermediate Computations)'!AL137","v":"Nov 2012"},{"$f":"'(Intermediate Computations)'!AM137","v":"Dec 2012"},{"$f":"'(Intermediate Computations)'!AO137","v":"Jan 2013"},{"$f":"'(Intermediate Computations)'!AP137","v":"Feb 2013"},{"$f":"'(Intermediate Computations)'!AQ137","v":"Mar 2013"},{"$f":"'(Intermediate Computations)'!AR137","v":"Apr 2013"},{"$f":"'(Intermediate Computations)'!AS137","v":"May 2013"},{"$f":"'(Intermediate Computations)'!AT137","v":"Jun 2013"},{"$f":"'(Intermediate Computations)'!AU137","v":"Jul 2013"},{"$f":"'(Intermediate Computations)'!AV137","v":"Aug 2013"},{"$f":"'(Intermediate Computations)'!AW137","v":"Sep 2013"},{"$f":"'(Intermediate Computations)'!AX137","v":"Oct 2013"},{"$f":"'(Intermediate Computations)'!AY137","v":"Nov 2013"},{"$f":"'(Intermediate Computations)'!AZ137","v":"Dec 2013"},{"$f":"'(Intermediate Computations)'!BB137","v":"Jan 2014"},{"$f":"'(Intermediate Computations)'!BC137","v":"Feb 2014"},{"$f":"'(Intermediate Computations)'!BD137","v":"Mar 2014"},{"$f":"'(Intermediate Computations)'!BE137","v":"Apr 2014"},{"$f":"'(Intermediate Computations)'!BF137","v":"May 2014"},{"$f":"'(Intermediate Computations)'!BG137","v":"Jun 2014"},{"$f":"'(Intermediate Computations)'!BH137","v":"Jul 2014"},{"$f":"'(Intermediate Computations)'!BI137","v":"Aug 2014"},{"$f":"'(Intermediate Computations)'!BJ137","v":"Sep 2014"},{"$f":"'(Intermediate Computations)'!BK137","v":"Oct 2014"},{"$f":"'(Intermediate Computations)'!BL137","v":"Nov 2014"},{"$f":"'(Intermediate Computations)'!BM137","v":"Dec 2014"},{"$f":"'(Intermediate Computations)'!BO137","v":"Jan 2015"},{"$f":"'(Intermediate Computations)'!BP137","v":"Feb 2015"},{"$f":"'(Intermediate Computations)'!BQ137","v":"Mar 2015"},{"$f":"'(Intermediate Computations)'!BR137","v":"Apr 2015"},{"$f":"'(Intermediate Computations)'!BS137","v":"May 2015"},{"$f":"'(Intermediate Computations)'!BT137","v":"Jun 2015"},{"$f":"'(Intermediate Computations)'!BU137","v":"Jul 2015"},{"$f":"'(Intermediate Computations)'!BV137","v":"Aug 2015"},{"$f":"'(Intermediate Computations)'!BW137","v":"Sep 2015"},{"$f":"'(Intermediate Computations)'!BX137","v":"Oct 2015"},{"$f":"'(Intermediate Computations)'!BY137","v":"Nov 2015"},{"$f":"'(Intermediate Computations)'!BZ137","v":"Dec 2015"},{"$f":"'(Intermediate Computations)'!CB137","v":"Jan 2016"},{"$f":"'(Intermediate Computations)'!CC137","v":"Feb 2016"},{"$f":"'(Intermediate Computations)'!CD137","v":"Mar 2016"},{"$f":"'(Intermediate Computations)'!CE137","v":"Apr 2016"},{"$f":"'(Intermediate Computations)'!CF137","v":"May 2016"},{"$f":"'(Intermediate Computations)'!CG137","v":"Jun 2016"},{"$f":"'(Intermediate Computations)'!CH137","v":"Jul 2016"},{"$f":"'(Intermediate Computations)'!CI137","v":"Aug 2016"},{"$f":"'(Intermediate Computations)'!CJ137","v":"Sep 2016"},{"$f":"'(Intermediate Computations)'!CK137","v":"Oct 2016"},{"$f":"'(Intermediate Computations)'!CL137","v":"Nov 2016"},{"$f":"'(Intermediate Computations)'!CM137","v":"Dec 2016"},{"$f":"'(Intermediate Computations)'!CO137","v":"Jan 2017"},{"$f":"'(Intermediate Computations)'!CP137","v":"Feb 2017"},{"$f":"'(Intermediate Computations)'!CQ137","v":"Mar 2017"},{"$f":"'(Intermediate Computations)'!CR137","v":"Apr 2017"},{"$f":"'(Intermediate Computations)'!CS137","v":"May 2017"},{"$f":"'(Intermediate Computations)'!CT137","v":"Jun 2017"},{"$f":"'(Intermediate Computations)'!CU137","v":"Jul 2017"},{"$f":"'(Intermediate Computations)'!CV137","v":"Aug 2017"},{"$f":"'(Intermediate Computations)'!CW137","v":"Sep 2017"},{"$f":"'(Intermediate Computations)'!CX137","v":"Oct 2017"},{"$f":"'(Intermediate Computations)'!CY137","v":"Nov 2017"},{"$f":"'(Intermediate Computations)'!CZ137","v":"Dec 2017"},{"$f":"'(Intermediate Computations)'!DB137","v":"Jan 2018"},{"$f":"'(Intermediate Computations)'!DC137","v":"Feb 2018"},{"$f":"'(Intermediate Computations)'!DD137","v":"Mar 2018"},{"$f":"'(Intermediate Computations)'!DE137","v":"Apr 2018"},{"$f":"'(Intermediate Computations)'!DF137","v":"May 2018"},{"$f":"'(Intermediate Computations)'!DG137","v":"Jun 2018"},{"$f":"'(Intermediate Computations)'!DH137","v":"Jul 2018"},{"$f":"'(Intermediate Computations)'!DI137","v":"Aug 2018"},{"$f":"'(Intermediate Computations)'!DJ137","v":"Sep 2018"},{"$f":"'(Intermediate Computations)'!DK137","v":"Oct 2018"},{"$f":"'(Intermediate Computations)'!DL137","v":"Nov 2018"},{"$f":"'(Intermediate Computations)'!DM137","v":"Dec 2018"},{"$f":"'(Intermediate Computations)'!DO137","v":"Jan 2019"},{"$f":"'(Intermediate Computations)'!DP137","v":"Feb 2019"},{"$f":"'(Intermediate Computations)'!DQ137","v":"Mar 2019"},{"$f":"'(Intermediate Computations)'!DR137","v":"Apr 2019"},{"$f":"'(Intermediate Computations)'!DS137","v":"May 2019"},{"$f":"'(Intermediate Computations)'!DT137","v":"Jun 2019"},{"$f":"'(Intermediate Computations)'!DU137","v":"Jul 2019"},{"$f":"'(Intermediate Computations)'!DV137","v":"Aug 2019"},{"$f":"'(Intermediate Computations)'!DW137","v":"Sep 2019"},{"$f":"'(Intermediate Computations)'!DX137","v":"Oct 2019"},{"$f":"'(Intermediate Computations)'!DY137","v":"Nov 2019"},{"$f":"'(Intermediate Computations)'!DZ137","v":"Dec 2019"},{"$f":"'(Intermediate Computations)'!EB137","v":"Jan 2020"},{"$f":"'(Intermediate Computations)'!EC137","v":"Feb 2020"},{"$f":"'(Intermediate Computations)'!ED137","v":"Mar 2020"},{"$f":"'(Intermediate Computations)'!EE137","v":"Apr 2020"},{"$f":"'(Intermediate Computations)'!EF137","v":"May 2020"},{"$f":"'(Intermediate Computations)'!EG137","v":"Jun 2020"},{"$f":"'(Intermediate Computations)'!EH137","v":"Jul 2020"},{"$f":"'(Intermediate Computations)'!EI137","v":"Aug 2020"},{"$f":"'(Intermediate Computations)'!EJ137","v":"Sep 2020"},{"$f":"'(Intermediate Computations)'!EK137","v":"Oct 2020"},{"$f":"'(Intermediate Computations)'!EL137","v":"Nov 2020"},{"$f":"'(Intermediate Computations)'!EM137","v":"Dec 2020"}]
[{"$f":"'(Intermediate Computations)'!B134","v":"2010-01-01"},{"$f":"'(Intermediate Computations)'!C134","v":"2010-02-01"},{"$f":"'(Intermediate Computations)'!D134","v":"2010-03-01"},{"$f":"'(Intermediate Computations)'!E134","v":"2010-04-01"},{"$f":"'(Intermediate Computations)'!F134","v":"2010-05-01"},{"$f":"'(Intermediate Computations)'!G134","v":"2010-06-01"},{"$f":"'(Intermediate Computations)'!H134","v":"2010-07-01"},{"$f":"'(Intermediate Computations)'!I134","v":"2010-08-01"},{"$f":"'(Intermediate Computations)'!J134","v":"2010-09-01"},{"$f":"'(Intermediate Computations)'!K134","v":"2010-10-01"},{"$f":"'(Intermediate Computations)'!L134","v":"2010-11-01"},{"$f":"'(Intermediate Computations)'!M134","v":"2010-12-01"},{"$f":"'(Intermediate Computations)'!O134","v":"2011-01-01"},{"$f":"'(Intermediate Computations)'!P134","v":"2011-02-01"},{"$f":"'(Intermediate Computations)'!Q134","v":"2011-03-01"},{"$f":"'(Intermediate Computations)'!R134","v":"2011-04-01"},{"$f":"'(Intermediate Computations)'!S134","v":"2011-05-01"},{"$f":"'(Intermediate Computations)'!T134","v":"2011-06-01"},{"$f":"'(Intermediate Computations)'!U134","v":"2011-07-01"},{"$f":"'(Intermediate Computations)'!V134","v":"2011-08-01"},{"$f":"'(Intermediate Computations)'!W134","v":"2011-09-01"},{"$f":"'(Intermediate Computations)'!X134","v":"2011-10-01"},{"$f":"'(Intermediate Computations)'!Y134","v":"2011-11-01"},{"$f":"'(Intermediate Computations)'!Z134","v":"2011-12-01"},{"$f":"'(Intermediate Computations)'!AB134","v":"2012-01-01"},{"$f":"'(Intermediate Computations)'!AC134","v":"2012-02-01"},{"$f":"'(Intermediate Computations)'!AD134","v":"2012-03-01"},{"$f":"'(Intermediate Computations)'!AE134","v":"2012-04-01"},{"$f":"'(Intermediate Computations)'!AF134","v":"2012-05-01"},{"$f":"'(Intermediate Computations)'!AG134","v":"2012-06-01"},{"$f":"'(Intermediate Computations)'!AH134","v":"2012-07-01"},{"$f":"'(Intermediate Computations)'!AI134","v":"2012-08-01"},{"$f":"'(Intermediate Computations)'!AJ134","v":"2012-09-01"},{"$f":"'(Intermediate Computations)'!AK134","v":"2012-10-01"},{"$f":"'(Intermediate Computations)'!AL134","v":"2012-11-01"},{"$f":"'(Intermediate Computations)'!AM134","v":"2012-12-01"},{"$f":"'(Intermediate Computations)'!AO134","v":"2013-01-01"},{"$f":"'(Intermediate Computations)'!AP134","v":"2013-02-01"},{"$f":"'(Intermediate Computations)'!AQ134","v":"2013-03-01"},{"$f":"'(Intermediate Computations)'!AR134","v":"2013-04-01"},{"$f":"'(Intermediate Computations)'!AS134","v":"2013-05-01"},{"$f":"'(Intermediate Computations)'!AT134","v":"2013-06-01"},{"$f":"'(Intermediate Computations)'!AU134","v":"2013-07-01"},{"$f":"'(Intermediate Computations)'!AV134","v":"2013-08-01"},{"$f":"'(Intermediate Computations)'!AW134","v":"2013-09-01"},{"$f":"'(Intermediate Computations)'!AX134","v":"2013-10-01"},{"$f":"'(Intermediate Computations)'!AY134","v":"2013-11-01"},{"$f":"'(Intermediate Computations)'!AZ134","v":"2013-12-01"},{"$f":"'(Intermediate Computations)'!BB134","v":"2014-01-01"},{"$f":"'(Intermediate Computations)'!BC134","v":"2014-02-01"},{"$f":"'(Intermediate Computations)'!BD134","v":"2014-03-01"},{"$f":"'(Intermediate Computations)'!BE134","v":"2014-04-01"},{"$f":"'(Intermediate Computations)'!BF134","v":"2014-05-01"},{"$f":"'(Intermediate Computations)'!BG134","v":"2014-06-01"},{"$f":"'(Intermediate Computations)'!BH134","v":"2014-07-01"},{"$f":"'(Intermediate Computations)'!BI134","v":"2014-08-01"},{"$f":"'(Intermediate Computations)'!BJ134","v":"2014-09-01"},{"$f":"'(Intermediate Computations)'!BK134","v":"2014-10-01"},{"$f":"'(Intermediate Computations)'!BL134","v":"2014-11-01"},{"$f":"'(Intermediate Computations)'!BM134","v":"2014-12-01"},{"$f":"'(Intermediate Computations)'!BO134","v":"2015-01-01"},{"$f":"'(Intermediate Computations)'!BP134","v":"2015-02-01"},{"$f":"'(Intermediate Computations)'!BQ134","v":"2015-03-01"},{"$f":"'(Intermediate Computations)'!BR134","v":"2015-04-01"},{"$f":"'(Intermediate Computations)'!BS134","v":"2015-05-01"},{"$f":"'(Intermediate Computations)'!BT134","v":"2015-06-01"},{"$f":"'(Intermediate Computations)'!BU134","v":"2015-07-01"},{"$f":"'(Intermediate Computations)'!BV134","v":"2015-08-01"},{"$f":"'(Intermediate Computations)'!BW134","v":"2015-09-01"},{"$f":"'(Intermediate Computations)'!BX134","v":"2015-10-01"},{"$f":"'(Intermediate Computations)'!BY134","v":"2015-11-01"},{"$f":"'(Intermediate Computations)'!BZ134","v":"2015-12-01"},{"$f":"'(Intermediate Computations)'!CB134","v":"2016-01-01"},{"$f":"'(Intermediate Computations)'!CC134","v":"2016-02-01"},{"$f":"'(Intermediate Computations)'!CD134","v":"2016-03-01"},{"$f":"'(Intermediate Computations)'!CE134","v":"2016-04-01"},{"$f":"'(Intermediate Computations)'!CF134","v":"2016-05-01"},{"$f":"'(Intermediate Computations)'!CG134","v":"2016-06-01"},{"$f":"'(Intermediate Computations)'!CH134","v":"2016-07-01"},{"$f":"'(Intermediate Computations)'!CI134","v":"2016-08-01"},{"$f":"'(Intermediate Computations)'!CJ134","v":"2016-09-01"},{"$f":"'(Intermediate Computations)'!CK134","v":"2016-10-01"},{"$f":"'(Intermediate Computations)'!CL134","v":"2016-11-01"},{"$f":"'(Intermediate Computations)'!CM134","v":"2016-12-01"},{"$f":"'(Intermediate Computations)'!CO134","v":"2017-01-01"},{"$f":"'(Intermediate Computations)'!CP134","v":"2017-02-01"},{"$f":"'(Intermediate Computations)'!CQ134","v":"2017-03-01"},{"$f":"'(Intermediate Computations)'!CR134","v":"2017-04-01"},{"$f":"'(Intermediate Computations)'!CS134","v":"2017-05-01"},{"$f":"'(Intermediate Computations)'!CT134","v":"2017-06-01"},{"$f":"'(Intermediate Computations)'!CU134","v":"2017-07-01"},{"$f":"'(Intermediate Computations)'!CV134","v":"2017-08-01"},{"$f":"'(Intermediate Computations)'!CW134","v":"2017-09-01"},{"$f":"'(Intermediate Computations)'!CX134","v":"2017-10-01"},{"$f":"'(Intermediate Computations)'!CY134","v":"2017-11-01"},{"$f":"'(Intermediate Computations)'!CZ134","v":"2017-12-01"},{"$f":"'(Intermediate Computations)'!DB134","v":"2018-01-01"},{"$f":"'(Intermediate Computations)'!DC134","v":"2018-02-01"},{"$f":"'(Intermediate Computations)'!DD134","v":"2018-03-01"},{"$f":"'(Intermediate Computations)'!DE134","v":"2018-04-01"},{"$f":"'(Intermediate Computations)'!DF134","v":"2018-05-01"},{"$f":"'(Intermediate Computations)'!DG134","v":"2018-06-01"},{"$f":"'(Intermediate Computations)'!DH134","v":"2018-07-01"},{"$f":"'(Intermediate Computations)'!DI134","v":"2018-08-01"},{"$f":"'(Intermediate Computations)'!DJ134","v":"2018-09-01"},{"$f":"'(Intermediate Computations)'!DK134","v":"2018-10-01"},{"$f":"'(Intermediate Computations)'!DL134","v":"2018-11-01"},{"$f":"'(Intermediate Computations)'!DM134","v":"2018-12-01"},{"$f":"'(Intermediate Computations)'!DO134","v":"2019-01-01"},{"$f":"'(Intermediate Computations)'!DP134","v":"2019-02-01"},{"$f":"'(Intermediate Computations)'!DQ134","v":"2019-03-01"},{"$f":"'(Intermediate Computations)'!DR134","v":"2019-04-01"},{"$f":"'(Intermediate Computations)'!DS134","v":"2019-05-01"},{"$f":"'(Intermediate Computations)'!DT134","v":"2019-06-01"},{"$f":"'(Intermediate Computations)'!DU134","v":"2019-07-01"},{"$f":"'(Intermediate Computations)'!DV134","v":"2019-08-01"},{"$f":"'(Intermediate Computations)'!DW134","v":"2019-09-01"},{"$f":"'(Intermediate Computations)'!DX134","v":"2019-10-01"},{"$f":"'(Intermediate Computations)'!DY134","v":"2019-11-01"},{"$f":"'(Intermediate Computations)'!DZ134","v":"2019-12-01"},{"$f":"'(Intermediate Computations)'!EB134","v":"2020-01-01"},{"$f":"'(Intermediate Computations)'!EC134","v":"2020-02-01"},{"$f":"'(Intermediate Computations)'!ED134","v":"2020-03-01"},{"$f":"'(Intermediate Computations)'!EE134","v":"2020-04-01"},{"$f":"'(Intermediate Computations)'!EF134","v":"2020-05-01"},{"$f":"'(Intermediate Computations)'!EG134","v":"2020-06-01"},{"$f":"'(Intermediate Computations)'!EH134","v":"2020-07-01"},{"$f":"'(Intermediate Computations)'!EI134","v":"2020-08-01"},{"$f":"'(Intermediate Computations)'!EJ134","v":"2020-09-01"},{"$f":"'(Intermediate Computations)'!EK134","v":"2020-10-01"},{"$f":"'(Intermediate Computations)'!EL134","v":"2020-11-01"},{"$f":"'(Intermediate Computations)'!EM134","v":"2020-12-01"}]
[{"$f":"'Statistical Moments'!B26","v":{"v":7.9650056932098984E-9,"d":"$0"}},{"$f":"'Statistical Moments'!C26","v":{"v":7.9650056932098984E-9,"d":"$0"}},{"$f":"'Statistical Moments'!D26","v":{"v":39.008475487475785,"d":"$39"}},{"$f":"'Statistical Moments'!E26","v":{"v":70.5110759424264,"d":"$71"}},{"$f":"'Statistical Moments'!F26","v":{"v":133.0697649661099,"d":"$133"}},{"$f":"'Statistical Moments'!G26","v":{"v":196.16423673054845,"d":"$196"}},{"$f":"'Statistical Moments'!H26","v":{"v":285.3144822905499,"d":"$285"}},{"$f":"'Statistical Moments'!I26","v":{"v":387.29293804168213,"d":"$387"}},{"$f":"'Statistical Moments'!J26","v":{"v":502.019592365925,"d":"$502"}},{"$f":"'Statistical Moments'!K26","v":{"v":615.4416258663592,"d":"$615"}},{"$f":"'Statistical Moments'!L26","v":{"v":712.4134722278781,"d":"$712"}},{"$f":"'Statistical Moments'!M26","v":{"v":837.3657710874372,"d":"$837"}},{"$f":"'Statistical Moments'!O26","v":{"v":990.1628409714398,"d":"$990"}},{"$f":"'Statistical Moments'!P26","v":{"v":1156.7250234964351,"d":"$1,157"}},{"$f":"'Statistical Moments'!Q26","v":{"v":1325.6531459057328,"d":"$1,326"}},{"$f":"'Statistical Moments'!R26","v":{"v":1499.5566898007003,"d":"$1,500"}},{"$f":"'Statistical Moments'!S26","v":{"v":1651.2334180266914,"d":"$1,651"}},{"$f":"'Statistical Moments'!T26","v":{"v":1817.29489700605,"d":"$1,817"}},{"$f":"'Statistical Moments'!U26","v":{"v":1987.69245828591,"d":"$1,988"}},{"$f":"'Statistical Moments'!V26","v":{"v":2127.788470153327,"d":"$2,128"}},{"$f":"'Statistical Moments'!W26","v":{"v":2251.731699375813,"d":"$2,252"}},{"$f":"'Statistical Moments'!X26","v":{"v":2375.1285454993863,"d":"$2,375"}},{"$f":"'Statistical Moments'!Y26","v":{"v":2490.7745737574724,"d":"$2,491"}},{"$f":"'Statistical Moments'!Z26","v":{"v":2644.857673595992,"d":"$2,645"}},{"$f":"'Statistical Moments'!AB26","v":{"v":2820.735177927785,"d":"$2,821"}},{"$f":"'Statistical Moments'!AC26","v":{"v":2981.419125070171,"d":"$2,981"}},{"$f":"'Statistical Moments'!AD26","v":{"v":3118.6319936283758,"d":"$3,119"}},{"$f":"'Statistical Moments'!AE26","v":{"v":3269.578781812573,"d":"$3,270"}},{"$f":"'Statistical Moments'!AF26","v":{"v":3419.852954275891,"d":"$3,420"}},{"$f":"'Statistical Moments'!AG26","v":{"v":3601.7505623777024,"d":"$3,602"}},{"$f":"'Statistical Moments'!AH26","v":{"v":3806.866529545866,"d":"$3,807"}},{"$f":"'Statistical Moments'!AI26","v":{"v":4013.11827140755,"d":"$4,013"}},{"$f":"'Statistical Moments'!AJ26","v":{"v":4226.325914777574,"d":"$4,226"}},{"$f":"'Statistical Moments'!AK26","v":{"v":4433.088255060201,"d":"$4,433"}},{"$f":"'Statistical Moments'!AL26","v":{"v":4635.8674138011875,"d":"$4,636"}},{"$f":"'Statistical Moments'!AM26","v":{"v":4832.166592769931,"d":"$4,832"}},{"$f":"'Statistical Moments'!AO26","v":{"v":5032.3087796790805,"d":"$5,032"}},{"$f":"'Statistical Moments'!AP26","v":{"v":5258.106365409052,"d":"$5,258"}},{"$f":"'Statistical Moments'!AQ26","v":{"v":5460.329225391675,"d":"$5,460"}},{"$f":"'Statistical Moments'!AR26","v":{"v":5656.83848934592,"d":"$5,657"}},{"$f":"'Statistical Moments'!AS26","v":{"v":5861.742652561319,"d":"$5,862"}},{"$f":"'Statistical Moments'!AT26","v":{"v":6090.970903097862,"d":"$6,091"}},{"$f":"'Statistical Moments'!AU26","v":{"v":6321.451466327158,"d":"$6,321"}},{"$f":"'Statistical Moments'!AV26","v":{"v":6529.241667369705,"d":"$6,529"}},{"$f":"'Statistical Moments'!AW26","v":{"v":6706.149210511623,"d":"$6,706"}},{"$f":"'Statistical Moments'!AX26","v":{"v":6874.154742388922,"d":"$6,874"}},{"$f":"'Statistical Moments'!AY26","v":{"v":7028.170856974633,"d":"$7,028"}},{"$f":"'Statistical Moments'!AZ26","v":{"v":7166.262614511534,"d":"$7,166"}},{"$f":"'Statistical Moments'!BB26","v":{"v":7306.052773174261,"d":"$7,306"}},{"$f":"'Statistical Moments'!BC26","v":{"v":7460.8110516956285,"d":"$7,461"}},{"$f":"'Statistical Moments'!BD26","v":{"v":7574.641732533732,"d":"$7,575"}},{"$f":"'Statistical Moments'!BE26","v":{"v":7670.58792373566,"d":"$7,671"}},{"$f":"'Statistical Moments'!BF26","v":{"v":7784.415294515889,"d":"$7,784"}},{"$f":"'Statistical Moments'!BG26","v":{"v":7896.161291290406,"d":"$7,896"}},{"$f":"'Statistical Moments'!BH26","v":{"v":8028.0571343817855,"d":"$8,028"}},{"$f":"'Statistical Moments'!BI26","v":{"v":8181.364408178037,"d":"$8,181"}},{"$f":"'Statistical Moments'!BJ26","v":{"v":8364.986874674765,"d":"$8,365"}},{"$f":"'Statistical Moments'!BK26","v":{"v":8534.51445231449,"d":"$8,535"}},{"$f":"'Statistical Moments'!BL26","v":{"v":8716.012881076551,"d":"$8,716"}},{"$f":"'Statistical Moments'!BM26","v":{"v":8865.196264736496,"d":"$8,865"}},{"$f":"'Statistical Moments'!BO26","v":{"v":8973.720721335072,"d":"$8,974"}},{"$f":"'Statistical Moments'!BP26","v":{"v":9075.545766973208,"d":"$9,076"}},{"$f":"'Statistical Moments'!BQ26","v":{"v":9141.573486570927,"d":"$9,142"}},{"$f":"'Statistical Moments'!BR26","v":{"v":9160.9678222171,"d":"$9,161"}},{"$f":"'Statistical Moments'!BS26","v":{"v":9199.686941978258,"d":"$9,200"}},{"$f":"'Statistical Moments'!BT26","v":{"v":9260.11575463199,"d":"$9,260"}},{"$f":"'Statistical Moments'!BU26","v":{"v":9333.359547227212,"d":"$9,333"}},{"$f":"'Statistical Moments'!BV26","v":{"v":9404.130957948191,"d":"$9,404"}},{"$f":"'Statistical Moments'!BW26","v":{"v":9505.554516570162,"d":"$9,506"}},{"$f":"'Statistical Moments'!BX26","v":{"v":9629.732834232223,"d":"$9,630"}},{"$f":"'Statistical Moments'!BY26","v":{"v":9796.578098678347,"d":"$9,797"}},{"$f":"'Statistical Moments'!BZ26","v":{"v":9944.234774328284,"d":"$9,944"}},{"$f":"'Statistical Moments'!CB26","v":{"v":10058.738503793082,"d":"$10,059"}},{"$f":"'Statistical Moments'!CC26","v":{"v":10152.02545107801,"d":"$10,152"}},{"$f":"'Statistical Moments'!CD26","v":{"v":10249.623662117141,"d":"$10,250"}},{"$f":"'Statistical Moments'!CE26","v":{"v":10346.606570717227,"d":"$10,347"}},{"$f":"'Statistical Moments'!CF26","v":{"v":10471.112367913835,"d":"$10,471"}},{"$f":"'Statistical Moments'!CG26","v":{"v":10578.758193588035,"d":"$10,579"}},{"$f":"'Statistical Moments'!CH26","v":{"v":10674.625988432952,"d":"$10,675"}},{"$f":"'Statistical Moments'!CI26","v":{"v":10788.208432596588,"d":"$10,788"}},{"$f":"'Statistical Moments'!CJ26","v":{"v":10865.253975381456,"d":"$10,865"}},{"$f":"'Statistical Moments'!CK26","v":{"v":10917.774396864192,"d":"$10,918"}},{"$f":"'Statistical Moments'!CL26","v":{"v":10998.613926142682,"d":"$10,999"}},{"$f":"'Statistical Moments'!CM26","v":{"v":11070.096944453564,"d":"$11,070"}},{"$f":"'Statistical Moments'!CO26","v":{"v":11138.190600439553,"d":"$11,138"}},{"$f":"'Statistical Moments'!CP26","v":{"v":11225.242038923336,"d":"$11,225"}},{"$f":"'Statistical Moments'!CQ26","v":{"v":11337.920564758559,"d":"$11,338"}},{"$f":"'Statistical Moments'!CR26","v":{"v":11457.026116942108,"d":"$11,457"}},{"$f":"'Statistical Moments'!CS26","v":{"v":11566.544683525179,"d":"$11,567"}},{"$f":"'Statistical Moments'!CT26","v":{"v":11689.44456193932,"d":"$11,689"}},{"$f":"'Statistical Moments'!CU26","v":{"v":11789.77116033651,"d":"$11,790"}},{"$f":"'Statistical Moments'!CV26","v":{"v":11902.061368464923,"d":"$11,902"}},{"$f":"'Statistical Moments'!CW26","v":{"v":12012.125783426676,"d":"$12,012"}},{"$f":"'Statistical Moments'!CX26","v":{"v":12110.648554872729,"d":"$12,111"}},{"$f":"'Statistical Moments'!CY26","v":{"v":12193.744997871534,"d":"$12,194"}},{"$f":"'Statistical Moments'!CZ26","v":{"v":12302.91523025562,"d":"$12,303"}},{"$f":"'Statistical Moments'!DB26","v":{"v":12422.45095330782,"d":"$12,422"}},{"$f":"'Statistical Moments'!DC26","v":{"v":12518.124943686395,"d":"$12,518"}},{"$f":"'Statistical Moments'!DD26","v":{"v":12671.97148610417,"d":"$12,672"}},{"$f":"'Statistical Moments'!DE26","v":{"v":12839.654506358658,"d":"$12,840"}},{"$f":"'Statistical Moments'!DF26","v":{"v":12982.224722404053,"d":"$12,982"}},{"$f":"'Statistical Moments'!DG26","v":{"v":13109.71167161186,"d":"$13,110"}},{"$f":"'Statistical Moments'!DH26","v":{"v":13221.86545860692,"d":"$13,222"}},{"$f":"'Statistical Moments'!DI26","v":{"v":13302.519178570255,"d":"$13,303"}},{"$f":"'Statistical Moments'!DJ26","v":{"v":13367.527184709461,"d":"$13,368"}},{"$f":"'Statistical Moments'!DK26","v":{"v":13395.990234978432,"d":"$13,396"}},{"$f":"'Statistical Moments'!DL26","v":{"v":13441.374041896092,"d":"$13,441"}},{"$f":"'Statistical Moments'!DM26","v":{"v":13469.035378854482,"d":"$13,469"}},{"$f":"'Statistical Moments'!DO26","v":{"v":13513.626107935328,"d":"$13,514"}},{"$f":"'Statistical Moments'!DP26","v":{"v":13561.052203669129,"d":"$13,561"}},{"$f":"'Statistical Moments'!DQ26","v":{"v":13568.824346327508,"d":"$13,569"}},{"$f":"'Statistical Moments'!DR26","v":{"v":13537.754910554635,"d":"$13,538"}},{"$f":"'Statistical Moments'!DS26","v":{"v":13516.6467683992,"d":"$13,517"}},{"$f":"'Statistical Moments'!DT26","v":{"v":13513.601045747282,"d":"$13,514"}},{"$f":"'Statistical Moments'!DU26","v":{"v":13499.475540661635,"d":"$13,499"}},{"$f":"'Statistical Moments'!DV26","v":{"v":13490.465680251826,"d":"$13,490"}},{"$f":"'Statistical Moments'!DW26","v":{"v":13513.081350480756,"d":"$13,513"}},{"$f":"'Statistical Moments'!DX26","v":{"v":13545.139376514584,"d":"$13,545"}},{"$f":"'Statistical Moments'!DY26","v":{"v":13610.865809877425,"d":"$13,611"}},{"$f":"'Statistical Moments'!DZ26","v":{"v":13640.787637810457,"d":"$13,641"}},{"$f":"'Statistical Moments'!EB26","v":{"v":13670.546571434246,"d":"$13,671"}},{"$f":"'Statistical Moments'!EC26","v":{"v":13704.343888607522,"d":"$13,704"}},{"$f":"'Statistical Moments'!ED26","v":{"v":13722.167658566814,"d":"$13,722"}},{"$f":"'Statistical Moments'!EE26","v":{"v":13731.538491063413,"d":"$13,732"}},{"$f":"'Statistical Moments'!EF26","v":{"v":13767.472234231496,"d":"$13,767"}},{"$f":"'Statistical Moments'!EG26","v":{"v":13791.585552947527,"d":"$13,792"}},{"$f":"'Statistical Moments'!EH26","v":{"v":13781.46073117703,"d":"$13,781"}},{"$f":"'Statistical Moments'!EI26","v":{"v":13785.706621785162,"d":"$13,786"}},{"$f":"'Statistical Moments'!EJ26","v":{"v":13806.19955267777,"d":"$13,806"}},{"$f":"'Statistical Moments'!EK26","v":{"v":13853.512812288653,"d":"$13,854"}},{"$f":"'Statistical Moments'!EL26","v":{"v":13937.792609466278,"d":"$13,938"}},{"$f":"'Statistical Moments'!EM26","v":{"v":13995.431888502417,"d":"$13,995"}}]
[{"$f":"'(Intermediate Computations)'!B143","v":"Jan 2010"},{"$f":"'(Intermediate Computations)'!C143","v":"Feb 2010"},{"$f":"'(Intermediate Computations)'!D143","v":"Mar 2010"},{"$f":"'(Intermediate Computations)'!E143","v":"Apr 2010"},{"$f":"'(Intermediate Computations)'!F143","v":"May 2010"},{"$f":"'(Intermediate Computations)'!G143","v":"Jun 2010"},{"$f":"'(Intermediate Computations)'!H143","v":"Jul 2010"},{"$f":"'(Intermediate Computations)'!I143","v":"Aug 2010"},{"$f":"'(Intermediate Computations)'!J143","v":"Sep 2010"},{"$f":"'(Intermediate Computations)'!K143","v":"Oct 2010"},{"$f":"'(Intermediate Computations)'!L143","v":"Nov 2010"},{"$f":"'(Intermediate Computations)'!M143","v":"Dec 2010"},{"$f":"'(Intermediate Computations)'!O143","v":"Jan 2011"},{"$f":"'(Intermediate Computations)'!P143","v":"Feb 2011"},{"$f":"'(Intermediate Computations)'!Q143","v":"Mar 2011"},{"$f":"'(Intermediate Computations)'!R143","v":"Apr 2011"},{"$f":"'(Intermediate Computations)'!S143","v":"May 2011"},{"$f":"'(Intermediate Computations)'!T143","v":"Jun 2011"},{"$f":"'(Intermediate Computations)'!U143","v":"Jul 2011"},{"$f":"'(Intermediate Computations)'!V143","v":"Aug 2011"},{"$f":"'(Intermediate Computations)'!W143","v":"Sep 2011"},{"$f":"'(Intermediate Computations)'!X143","v":"Oct 2011"},{"$f":"'(Intermediate Computations)'!Y143","v":"Nov 2011"},{"$f":"'(Intermediate Computations)'!Z143","v":"Dec 2011"},{"$f":"'(Intermediate Computations)'!AB143","v":"Jan 2012"},{"$f":"'(Intermediate Computations)'!AC143","v":"Feb 2012"},{"$f":"'(Intermediate Computations)'!AD143","v":"Mar 2012"},{"$f":"'(Intermediate Computations)'!AE143","v":"Apr 2012"},{"$f":"'(Intermediate Computations)'!AF143","v":"May 2012"},{"$f":"'(Intermediate Computations)'!AG143","v":"Jun 2012"},{"$f":"'(Intermediate Computations)'!AH143","v":"Jul 2012"},{"$f":"'(Intermediate Computations)'!AI143","v":"Aug 2012"},{"$f":"'(Intermediate Computations)'!AJ143","v":"Sep 2012"},{"$f":"'(Intermediate Computations)'!AK143","v":"Oct 2012"},{"$f":"'(Intermediate Computations)'!AL143","v":"Nov 2012"},{"$f":"'(Intermediate Computations)'!AM143","v":"Dec 2012"},{"$f":"'(Intermediate Computations)'!AO143","v":"Jan 2013"},{"$f":"'(Intermediate Computations)'!AP143","v":"Feb 2013"},{"$f":"'(Intermediate Computations)'!AQ143","v":"Mar 2013"},{"$f":"'(Intermediate Computations)'!AR143","v":"Apr 2013"},{"$f":"'(Intermediate Computations)'!AS143","v":"May 2013"},{"$f":"'(Intermediate Computations)'!AT143","v":"Jun 2013"},{"$f":"'(Intermediate Computations)'!AU143","v":"Jul 2013"},{"$f":"'(Intermediate Computations)'!AV143","v":"Aug 2013"},{"$f":"'(Intermediate Computations)'!AW143","v":"Sep 2013"},{"$f":"'(Intermediate Computations)'!AX143","v":"Oct 2013"},{"$f":"'(Intermediate Computations)'!AY143","v":"Nov 2013"},{"$f":"'(Intermediate Computations)'!AZ143","v":"Dec 2013"},{"$f":"'(Intermediate Computations)'!BB143","v":"Jan 2014"},{"$f":"'(Intermediate Computations)'!BC143","v":"Feb 2014"},{"$f":"'(Intermediate Computations)'!BD143","v":"Mar 2014"},{"$f":"'(Intermediate Computations)'!BE143","v":"Apr 2014"},{"$f":"'(Intermediate Computations)'!BF143","v":"May 2014"},{"$f":"'(Intermediate Computations)'!BG143","v":"Jun 2014"},{"$f":"'(Intermediate Computations)'!BH143","v":"Jul 2014"},{"$f":"'(Intermediate Computations)'!BI143","v":"Aug 2014"},{"$f":"'(Intermediate Computations)'!BJ143","v":"Sep 2014"},{"$f":"'(Intermediate Computations)'!BK143","v":"Oct 2014"},{"$f":"'(Intermediate Computations)'!BL143","v":"Nov 2014"},{"$f":"'(Intermediate Computations)'!BM143","v":"Dec 2014"},{"$f":"'(Intermediate Computations)'!BO143","v":"Jan 2015"},{"$f":"'(Intermediate Computations)'!BP143","v":"Feb 2015"},{"$f":"'(Intermediate Computations)'!BQ143","v":"Mar 2015"},{"$f":"'(Intermediate Computations)'!BR143","v":"Apr 2015"},{"$f":"'(Intermediate Computations)'!BS143","v":"May 2015"},{"$f":"'(Intermediate Computations)'!BT143","v":"Jun 2015"},{"$f":"'(Intermediate Computations)'!BU143","v":"Jul 2015"},{"$f":"'(Intermediate Computations)'!BV143","v":"Aug 2015"},{"$f":"'(Intermediate Computations)'!BW143","v":"Sep 2015"},{"$f":"'(Intermediate Computations)'!BX143","v":"Oct 2015"},{"$f":"'(Intermediate Computations)'!BY143","v":"Nov 2015"},{"$f":"'(Intermediate Computations)'!BZ143","v":"Dec 2015"},{"$f":"'(Intermediate Computations)'!CB143","v":"Jan 2016"},{"$f":"'(Intermediate Computations)'!CC143","v":"Feb 2016"},{"$f":"'(Intermediate Computations)'!CD143","v":"Mar 2016"},{"$f":"'(Intermediate Computations)'!CE143","v":"Apr 2016"},{"$f":"'(Intermediate Computations)'!CF143","v":"May 2016"},{"$f":"'(Intermediate Computations)'!CG143","v":"Jun 2016"},{"$f":"'(Intermediate Computations)'!CH143","v":"Jul 2016"},{"$f":"'(Intermediate Computations)'!CI143","v":"Aug 2016"},{"$f":"'(Intermediate Computations)'!CJ143","v":"Sep 2016"},{"$f":"'(Intermediate Computations)'!CK143","v":"Oct 2016"},{"$f":"'(Intermediate Computations)'!CL143","v":"Nov 2016"},{"$f":"'(Intermediate Computations)'!CM143","v":"Dec 2016"},{"$f":"'(Intermediate Computations)'!CO143","v":"Jan 2017"},{"$f":"'(Intermediate Computations)'!CP143","v":"Feb 2017"},{"$f":"'(Intermediate Computations)'!CQ143","v":"Mar 2017"},{"$f":"'(Intermediate Computations)'!CR143","v":"Apr 2017"},{"$f":"'(Intermediate Computations)'!CS143","v":"May 2017"},{"$f":"'(Intermediate Computations)'!CT143","v":"Jun 2017"},{"$f":"'(Intermediate Computations)'!CU143","v":"Jul 2017"},{"$f":"'(Intermediate Computations)'!CV143","v":"Aug 2017"},{"$f":"'(Intermediate Computations)'!CW143","v":"Sep 2017"},{"$f":"'(Intermediate Computations)'!CX143","v":"Oct 2017"},{"$f":"'(Intermediate Computations)'!CY143","v":"Nov 2017"},{"$f":"'(Intermediate Computations)'!CZ143","v":"Dec 2017"},{"$f":"'(Intermediate Computations)'!DB143","v":"Jan 2018"},{"$f":"'(Intermediate Computations)'!DC143","v":"Feb 2018"},{"$f":"'(Intermediate Computations)'!DD143","v":"Mar 2018"},{"$f":"'(Intermediate Computations)'!DE143","v":"Apr 2018"},{"$f":"'(Intermediate Computations)'!DF143","v":"May 2018"},{"$f":"'(Intermediate Computations)'!DG143","v":"Jun 2018"},{"$f":"'(Intermediate Computations)'!DH143","v":"Jul 2018"},{"$f":"'(Intermediate Computations)'!DI143","v":"Aug 2018"},{"$f":"'(Intermediate Computations)'!DJ143","v":"Sep 2018"},{"$f":"'(Intermediate Computations)'!DK143","v":"Oct 2018"},{"$f":"'(Intermediate Computations)'!DL143","v":"Nov 2018"},{"$f":"'(Intermediate Computations)'!DM143","v":"Dec 2018"},{"$f":"'(Intermediate Computations)'!DO143","v":"Jan 2019"},{"$f":"'(Intermediate Computations)'!DP143","v":"Feb 2019"},{"$f":"'(Intermediate Computations)'!DQ143","v":"Mar 2019"},{"$f":"'(Intermediate Computations)'!DR143","v":"Apr 2019"},{"$f":"'(Intermediate Computations)'!DS143","v":"May 2019"},{"$f":"'(Intermediate Computations)'!DT143","v":"Jun 2019"},{"$f":"'(Intermediate Computations)'!DU143","v":"Jul 2019"},{"$f":"'(Intermediate Computations)'!DV143","v":"Aug 2019"},{"$f":"'(Intermediate Computations)'!DW143","v":"Sep 2019"},{"$f":"'(Intermediate Computations)'!DX143","v":"Oct 2019"},{"$f":"'(Intermediate Computations)'!DY143","v":"Nov 2019"},{"$f":"'(Intermediate Computations)'!DZ143","v":"Dec 2019"},{"$f":"'(Intermediate Computations)'!EB143","v":"Jan 2020"},{"$f":"'(Intermediate Computations)'!EC143","v":"Feb 2020"},{"$f":"'(Intermediate Computations)'!ED143","v":"Mar 2020"},{"$f":"'(Intermediate Computations)'!EE143","v":"Apr 2020"},{"$f":"'(Intermediate Computations)'!EF143","v":"May 2020"},{"$f":"'(Intermediate Computations)'!EG143","v":"Jun 2020"},{"$f":"'(Intermediate Computations)'!EH143","v":"Jul 2020"},{"$f":"'(Intermediate Computations)'!EI143","v":"Aug 2020"},{"$f":"'(Intermediate Computations)'!EJ143","v":"Sep 2020"},{"$f":"'(Intermediate Computations)'!EK143","v":"Oct 2020"},{"$f":"'(Intermediate Computations)'!EL143","v":"Nov 2020"},{"$f":"'(Intermediate Computations)'!EM143","v":"Dec 2020"}]
[{"$f":"'(Intermediate Computations)'!B140","v":"2010-01-01"},{"$f":"'(Intermediate Computations)'!C140","v":"2010-02-01"},{"$f":"'(Intermediate Computations)'!D140","v":"2010-03-01"},{"$f":"'(Intermediate Computations)'!E140","v":"2010-04-01"},{"$f":"'(Intermediate Computations)'!F140","v":"2010-05-01"},{"$f":"'(Intermediate Computations)'!G140","v":"2010-06-01"},{"$f":"'(Intermediate Computations)'!H140","v":"2010-07-01"},{"$f":"'(Intermediate Computations)'!I140","v":"2010-08-01"},{"$f":"'(Intermediate Computations)'!J140","v":"2010-09-01"},{"$f":"'(Intermediate Computations)'!K140","v":"2010-10-01"},{"$f":"'(Intermediate Computations)'!L140","v":"2010-11-01"},{"$f":"'(Intermediate Computations)'!M140","v":"2010-12-01"},{"$f":"'(Intermediate Computations)'!O140","v":"2011-01-01"},{"$f":"'(Intermediate Computations)'!P140","v":"2011-02-01"},{"$f":"'(Intermediate Computations)'!Q140","v":"2011-03-01"},{"$f":"'(Intermediate Computations)'!R140","v":"2011-04-01"},{"$f":"'(Intermediate Computations)'!S140","v":"2011-05-01"},{"$f":"'(Intermediate Computations)'!T140","v":"2011-06-01"},{"$f":"'(Intermediate Computations)'!U140","v":"2011-07-01"},{"$f":"'(Intermediate Computations)'!V140","v":"2011-08-01"},{"$f":"'(Intermediate Computations)'!W140","v":"2011-09-01"},{"$f":"'(Intermediate Computations)'!X140","v":"2011-10-01"},{"$f":"'(Intermediate Computations)'!Y140","v":"2011-11-01"},{"$f":"'(Intermediate Computations)'!Z140","v":"2011-12-01"},{"$f":"'(Intermediate Computations)'!AB140","v":"2012-01-01"},{"$f":"'(Intermediate Computations)'!AC140","v":"2012-02-01"},{"$f":"'(Intermediate Computations)'!AD140","v":"2012-03-01"},{"$f":"'(Intermediate Computations)'!AE140","v":"2012-04-01"},{"$f":"'(Intermediate Computations)'!AF140","v":"2012-05-01"},{"$f":"'(Intermediate Computations)'!AG140","v":"2012-06-01"},{"$f":"'(Intermediate Computations)'!AH140","v":"2012-07-01"},{"$f":"'(Intermediate Computations)'!AI140","v":"2012-08-01"},{"$f":"'(Intermediate Computations)'!AJ140","v":"2012-09-01"},{"$f":"'(Intermediate Computations)'!AK140","v":"2012-10-01"},{"$f":"'(Intermediate Computations)'!AL140","v":"2012-11-01"},{"$f":"'(Intermediate Computations)'!AM140","v":"2012-12-01"},{"$f":"'(Intermediate Computations)'!AO140","v":"2013-01-01"},{"$f":"'(Intermediate Computations)'!AP140","v":"2013-02-01"},{"$f":"'(Intermediate Computations)'!AQ140","v":"2013-03-01"},{"$f":"'(Intermediate Computations)'!AR140","v":"2013-04-01"},{"$f":"'(Intermediate Computations)'!AS140","v":"2013-05-01"},{"$f":"'(Intermediate Computations)'!AT140","v":"2013-06-01"},{"$f":"'(Intermediate Computations)'!AU140","v":"2013-07-01"},{"$f":"'(Intermediate Computations)'!AV140","v":"2013-08-01"},{"$f":"'(Intermediate Computations)'!AW140","v":"2013-09-01"},{"$f":"'(Intermediate Computations)'!AX140","v":"2013-10-01"},{"$f":"'(Intermediate Computations)'!AY140","v":"2013-11-01"},{"$f":"'(Intermediate Computations)'!AZ140","v":"2013-12-01"},{"$f":"'(Intermediate Computations)'!BB140","v":"2014-01-01"},{"$f":"'(Intermediate Computations)'!BC140","v":"2014-02-01"},{"$f":"'(Intermediate Computations)'!BD140","v":"2014-03-01"},{"$f":"'(Intermediate Computations)'!BE140","v":"2014-04-01"},{"$f":"'(Intermediate Computations)'!BF140","v":"2014-05-01"},{"$f":"'(Intermediate Computations)'!BG140","v":"2014-06-01"},{"$f":"'(Intermediate Computations)'!BH140","v":"2014-07-01"},{"$f":"'(Intermediate Computations)'!BI140","v":"2014-08-01"},{"$f":"'(Intermediate Computations)'!BJ140","v":"2014-09-01"},{"$f":"'(Intermediate Computations)'!BK140","v":"2014-10-01"},{"$f":"'(Intermediate Computations)'!BL140","v":"2014-11-01"},{"$f":"'(Intermediate Computations)'!BM140","v":"2014-12-01"},{"$f":"'(Intermediate Computations)'!BO140","v":"2015-01-01"},{"$f":"'(Intermediate Computations)'!BP140","v":"2015-02-01"},{"$f":"'(Intermediate Computations)'!BQ140","v":"2015-03-01"},{"$f":"'(Intermediate Computations)'!BR140","v":"2015-04-01"},{"$f":"'(Intermediate Computations)'!BS140","v":"2015-05-01"},{"$f":"'(Intermediate Computations)'!BT140","v":"2015-06-01"},{"$f":"'(Intermediate Computations)'!BU140","v":"2015-07-01"},{"$f":"'(Intermediate Computations)'!BV140","v":"2015-08-01"},{"$f":"'(Intermediate Computations)'!BW140","v":"2015-09-01"},{"$f":"'(Intermediate Computations)'!BX140","v":"2015-10-01"},{"$f":"'(Intermediate Computations)'!BY140","v":"2015-11-01"},{"$f":"'(Intermediate Computations)'!BZ140","v":"2015-12-01"},{"$f":"'(Intermediate Computations)'!CB140","v":"2016-01-01"},{"$f":"'(Intermediate Computations)'!CC140","v":"2016-02-01"},{"$f":"'(Intermediate Computations)'!CD140","v":"2016-03-01"},{"$f":"'(Intermediate Computations)'!CE140","v":"2016-04-01"},{"$f":"'(Intermediate Computations)'!CF140","v":"2016-05-01"},{"$f":"'(Intermediate Computations)'!CG140","v":"2016-06-01"},{"$f":"'(Intermediate Computations)'!CH140","v":"2016-07-01"},{"$f":"'(Intermediate Computations)'!CI140","v":"2016-08-01"},{"$f":"'(Intermediate Computations)'!CJ140","v":"2016-09-01"},{"$f":"'(Intermediate Computations)'!CK140","v":"2016-10-01"},{"$f":"'(Intermediate Computations)'!CL140","v":"2016-11-01"},{"$f":"'(Intermediate Computations)'!CM140","v":"2016-12-01"},{"$f":"'(Intermediate Computations)'!CO140","v":"2017-01-01"},{"$f":"'(Intermediate Computations)'!CP140","v":"2017-02-01"},{"$f":"'(Intermediate Computations)'!CQ140","v":"2017-03-01"},{"$f":"'(Intermediate Computations)'!CR140","v":"2017-04-01"},{"$f":"'(Intermediate Computations)'!CS140","v":"2017-05-01"},{"$f":"'(Intermediate Computations)'!CT140","v":"2017-06-01"},{"$f":"'(Intermediate Computations)'!CU140","v":"2017-07-01"},{"$f":"'(Intermediate Computations)'!CV140","v":"2017-08-01"},{"$f":"'(Intermediate Computations)'!CW140","v":"2017-09-01"},{"$f":"'(Intermediate Computations)'!CX140","v":"2017-10-01"},{"$f":"'(Intermediate Computations)'!CY140","v":"2017-11-01"},{"$f":"'(Intermediate Computations)'!CZ140","v":"2017-12-01"},{"$f":"'(Intermediate Computations)'!DB140","v":"2018-01-01"},{"$f":"'(Intermediate Computations)'!DC140","v":"2018-02-01"},{"$f":"'(Intermediate Computations)'!DD140","v":"2018-03-01"},{"$f":"'(Intermediate Computations)'!DE140","v":"2018-04-01"},{"$f":"'(Intermediate Computations)'!DF140","v":"2018-05-01"},{"$f":"'(Intermediate Computations)'!DG140","v":"2018-06-01"},{"$f":"'(Intermediate Computations)'!DH140","v":"2018-07-01"},{"$f":"'(Intermediate Computations)'!DI140","v":"2018-08-01"},{"$f":"'(Intermediate Computations)'!DJ140","v":"2018-09-01"},{"$f":"'(Intermediate Computations)'!DK140","v":"2018-10-01"},{"$f":"'(Intermediate Computations)'!DL140","v":"2018-11-01"},{"$f":"'(Intermediate Computations)'!DM140","v":"2018-12-01"},{"$f":"'(Intermediate Computations)'!DO140","v":"2019-01-01"},{"$f":"'(Intermediate Computations)'!DP140","v":"2019-02-01"},{"$f":"'(Intermediate Computations)'!DQ140","v":"2019-03-01"},{"$f":"'(Intermediate Computations)'!DR140","v":"2019-04-01"},{"$f":"'(Intermediate Computations)'!DS140","v":"2019-05-01"},{"$f":"'(Intermediate Computations)'!DT140","v":"2019-06-01"},{"$f":"'(Intermediate Computations)'!DU140","v":"2019-07-01"},{"$f":"'(Intermediate Computations)'!DV140","v":"2019-08-01"},{"$f":"'(Intermediate Computations)'!DW140","v":"2019-09-01"},{"$f":"'(Intermediate Computations)'!DX140","v":"2019-10-01"},{"$f":"'(Intermediate Computations)'!DY140","v":"2019-11-01"},{"$f":"'(Intermediate Computations)'!DZ140","v":"2019-12-01"},{"$f":"'(Intermediate Computations)'!EB140","v":"2020-01-01"},{"$f":"'(Intermediate Computations)'!EC140","v":"2020-02-01"},{"$f":"'(Intermediate Computations)'!ED140","v":"2020-03-01"},{"$f":"'(Intermediate Computations)'!EE140","v":"2020-04-01"},{"$f":"'(Intermediate Computations)'!EF140","v":"2020-05-01"},{"$f":"'(Intermediate Computations)'!EG140","v":"2020-06-01"},{"$f":"'(Intermediate Computations)'!EH140","v":"2020-07-01"},{"$f":"'(Intermediate Computations)'!EI140","v":"2020-08-01"},{"$f":"'(Intermediate Computations)'!EJ140","v":"2020-09-01"},{"$f":"'(Intermediate Computations)'!EK140","v":"2020-10-01"},{"$f":"'(Intermediate Computations)'!EL140","v":"2020-11-01"},{"$f":"'(Intermediate Computations)'!EM140","v":"2020-12-01"}]
[{"$f":"'Statistical Moments'!B32","v":{"v":34645298.421926446,"d":"$34,645,298"}},{"$f":"'Statistical Moments'!C32","v":{"v":34629489.27133805,"d":"$34,629,489"}},{"$f":"'Statistical Moments'!D32","v":{"v":34614705.30291459,"d":"$34,614,705"}},{"$f":"'Statistical Moments'!E32","v":{"v":34601248.58623164,"d":"$34,601,249"}},{"$f":"'Statistical Moments'!F32","v":{"v":34588334.06458742,"d":"$34,588,334"}},{"$f":"'Statistical Moments'!G32","v":{"v":34576120.5862379,"d":"$34,576,121"}},{"$f":"'Statistical Moments'!H32","v":{"v":34562981.59013129,"d":"$34,562,982"}},{"$f":"'Statistical Moments'!I32","v":{"v":34548589.72301954,"d":"$34,548,590"}},{"$f":"'Statistical Moments'!J32","v":{"v":34534794.637864575,"d":"$34,534,795"}},{"$f":"'Statistical Moments'!K32","v":{"v":34521102.85753506,"d":"$34,521,103"}},{"$f":"'Statistical Moments'!L32","v":{"v":34507420.09466622,"d":"$34,507,420"}},{"$f":"'Statistical Moments'!M32","v":{"v":34493595.95934205,"d":"$34,493,596"}},{"$f":"'Statistical Moments'!O32","v":{"v":34479357.8146696,"d":"$34,479,358"}},{"$f":"'Statistical Moments'!P32","v":{"v":34465914.55598135,"d":"$34,465,915"}},{"$f":"'Statistical Moments'!Q32","v":{"v":34452244.75418506,"d":"$34,452,245"}},{"$f":"'Statistical Moments'!R32","v":{"v":34438884.561377555,"d":"$34,438,885"}},{"$f":"'Statistical Moments'!S32","v":{"v":34425841.1948289,"d":"$34,425,841"}},{"$f":"'Statistical Moments'!T32","v":{"v":34410131.719562344,"d":"$34,410,132"}},{"$f":"'Statistical Moments'!U32","v":{"v":34396695.43222986,"d":"$34,396,695"}},{"$f":"'Statistical Moments'!V32","v":{"v":34381667.1719097,"d":"$34,381,667"}},{"$f":"'Statistical Moments'!W32","v":{"v":34366832.459311135,"d":"$34,366,832"}},{"$f":"'Statistical Moments'!X32","v":{"v":34353875.92075785,"d":"$34,353,876"}},{"$f":"'Statistical Moments'!Y32","v":{"v":34339420.39014731,"d":"$34,339,420"}},{"$f":"'Statistical Moments'!Z32","v":{"v":34325101.32434691,"d":"$34,325,101"}},{"$f":"'Statistical Moments'!AB32","v":{"v":34309276.18256224,"d":"$34,309,276"}},{"$f":"'Statistical Moments'!AC32","v":{"v":34295196.524643876,"d":"$34,295,197"}},{"$f":"'Statistical Moments'!AD32","v":{"v":34281790.88391077,"d":"$34,281,791"}},{"$f":"'Statistical Moments'!AE32","v":{"v":34267894.67355168,"d":"$34,267,895"}},{"$f":"'Statistical Moments'!AF32","v":{"v":34253780.557512894,"d":"$34,253,781"}},{"$f":"'Statistical Moments'!AG32","v":{"v":34238552.97548683,"d":"$34,238,553"}},{"$f":"'Statistical Moments'!AH32","v":{"v":34224881.54851249,"d":"$34,224,882"}},{"$f":"'Statistical Moments'!AI32","v":{"v":34211850.63715608,"d":"$34,211,851"}},{"$f":"'Statistical Moments'!AJ32","v":{"v":34196541.749458164,"d":"$34,196,542"}},{"$f":"'Statistical Moments'!AK32","v":{"v":34182612.801734835,"d":"$34,182,613"}},{"$f":"'Statistical Moments'!AL32","v":{"v":34168996.43032042,"d":"$34,168,996"}},{"$f":"'Statistical Moments'!AM32","v":{"v":34155631.8525981,"d":"$34,155,632"}},{"$f":"'Statistical Moments'!AO32","v":{"v":34140821.1426387,"d":"$34,140,821"}},{"$f":"'Statistical Moments'!AP32","v":{"v":34126790.25616384,"d":"$34,126,790"}},{"$f":"'Statistical Moments'!AQ32","v":{"v":34113634.095615335,"d":"$34,113,634"}},{"$f":"'Statistical Moments'!AR32","v":{"v":34098878.14471702,"d":"$34,098,878"}},{"$f":"'Statistical Moments'!AS32","v":{"v":34084676.903297335,"d":"$34,084,677"}},{"$f":"'Statistical Moments'!AT32","v":{"v":34071390.80083377,"d":"$34,071,391"}},{"$f":"'Statistical Moments'!AU32","v":{"v":34057205.16968247,"d":"$34,057,205"}},{"$f":"'Statistical Moments'!AV32","v":{"v":34042762.39610692,"d":"$34,042,762"}},{"$f":"'Statistical Moments'!AW32","v":{"v":34028750.23698013,"d":"$34,028,750"}},{"$f":"'Statistical Moments'!AX32","v":{"v":34013745.27726464,"d":"$34,013,745"}},{"$f":"'Statistical Moments'!AY32","v":{"v":33999328.414081976,"d":"$33,999,328"}},{"$f":"'Statistical Moments'!AZ32","v":{"v":33985338.23791772,"d":"$33,985,338"}},{"$f":"'Statistical Moments'!BB32","v":{"v":33970087.471798405,"d":"$33,970,087"}},{"$f":"'Statistical Moments'!BC32","v":{"v":33954996.27783896,"d":"$33,954,996"}},{"$f":"'Statistical Moments'!BD32","v":{"v":33940585.22574428,"d":"$33,940,585"}},{"$f":"'Statistical Moments'!BE32","v":{"v":33926468.38035596,"d":"$33,926,468"}},{"$f":"'Statistical Moments'!BF32","v":{"v":33912077.99746775,"d":"$33,912,078"}},{"$f":"'Statistical Moments'!BG32","v":{"v":33898278.844895534,"d":"$33,898,279"}},{"$f":"'Statistical Moments'!BH32","v":{"v":33884480.20516084,"d":"$33,884,480"}},{"$f":"'Statistical Moments'!BI32","v":{"v":33869310.117958546,"d":"$33,869,310"}},{"$f":"'Statistical Moments'!BJ32","v":{"v":33854707.01994761,"d":"$33,854,707"}},{"$f":"'Statistical Moments'!BK32","v":{"v":33841057.144964494,"d":"$33,841,057"}},{"$f":"'Statistical Moments'!BL32","v":{"v":33826642.19289279,"d":"$33,826,642"}},{"$f":"'Statistical Moments'!BM32","v":{"v":33813018.049254075,"d":"$33,813,018"}},{"$f":"'Statistical Moments'!BO32","v":{"v":33798734.44203289,"d":"$33,798,734"}},{"$f":"'Statistical Moments'!BP32","v":{"v":33784378.780902386,"d":"$33,784,379"}},{"$f":"'Statistical Moments'!BQ32","v":{"v":33770462.83354987,"d":"$33,770,463"}},{"$f":"'Statistical Moments'!BR32","v":{"v":33757275.54084278,"d":"$33,757,276"}},{"$f":"'Statistical Moments'!BS32","v":{"v":33743855.72519996,"d":"$33,743,856"}},{"$f":"'Statistical Moments'!BT32","v":{"v":33729276.338539876,"d":"$33,729,276"}},{"$f":"'Statistical Moments'!BU32","v":{"v":33716456.463398844,"d":"$33,716,456"}},{"$f":"'Statistical Moments'!BV32","v":{"v":33701777.87575865,"d":"$33,701,778"}},{"$f":"'Statistical Moments'!BW32","v":{"v":33687548.573416464,"d":"$33,687,549"}},{"$f":"'Statistical Moments'!BX32","v":{"v":33674471.27518393,"d":"$33,674,471"}},{"$f":"'Statistical Moments'!BY32","v":{"v":33659734.5969553,"d":"$33,659,735"}},{"$f":"'Statistical Moments'!BZ32","v":{"v":33646484.562019125,"d":"$33,646,485"}},{"$f":"'Statistical Moments'!CB32","v":{"v":33632497.51177533,"d":"$33,632,498"}},{"$f":"'Statistical Moments'!CC32","v":{"v":33618291.594022244,"d":"$33,618,292"}},{"$f":"'Statistical Moments'!CD32","v":{"v":33603936.517228015,"d":"$33,603,937"}},{"$f":"'Statistical Moments'!CE32","v":{"v":33590383.73120292,"d":"$33,590,384"}},{"$f":"'Statistical Moments'!CF32","v":{"v":33575616.053900965,"d":"$33,575,616"}},{"$f":"'Statistical Moments'!CG32","v":{"v":33561477.82963378,"d":"$33,561,478"}},{"$f":"'Statistical Moments'!CH32","v":{"v":33549355.800196454,"d":"$33,549,356"}},{"$f":"'Statistical Moments'!CI32","v":{"v":33535600.00631148,"d":"$33,535,600"}},{"$f":"'Statistical Moments'!CJ32","v":{"v":33522243.867909905,"d":"$33,522,244"}},{"$f":"'Statistical Moments'!CK32","v":{"v":33508604.85566771,"d":"$33,508,605"}},{"$f":"'Statistical Moments'!CL32","v":{"v":33495906.185573462,"d":"$33,495,906"}},{"$f":"'Statistical Moments'!CM32","v":{"v":33481767.766588952,"d":"$33,481,768"}},{"$f":"'Statistical Moments'!CO32","v":{"v":33468913.918676093,"d":"$33,468,914"}},{"$f":"'Statistical Moments'!CP32","v":{"v":33455474.45241795,"d":"$33,455,474"}},{"$f":"'Statistical Moments'!CQ32","v":{"v":33442089.2576832,"d":"$33,442,089"}},{"$f":"'Statistical Moments'!CR32","v":{"v":33428602.528037332,"d":"$33,428,603"}},{"$f":"'Statistical Moments'!CS32","v":{"v":33414722.56299579,"d":"$33,414,723"}},{"$f":"'Statistical Moments'!CT32","v":{"v":33399318.047642566,"d":"$33,399,318"}},{"$f":"'Statistical Moments'!CU32","v":{"v":33384630.205921486,"d":"$33,384,630"}},{"$f":"'Statistical Moments'!CV32","v":{"v":33372299.963306695,"d":"$33,372,300"}},{"$f":"'Statistical Moments'!CW32","v":{"v":33358089.15206444,"d":"$33,358,089"}},{"$f":"'Statistical Moments'!CX32","v":{"v":33344017.943998016,"d":"$33,344,018"}},{"$f":"'Statistical Moments'!CY32","v":{"v":33329657.360494535,"d":"$33,329,657"}},{"$f":"'Statistical Moments'!CZ32","v":{"v":33316218.31617259,"d":"$33,316,218"}},{"$f":"'Statistical Moments'!DB32","v":{"v":33301979.392384574,"d":"$33,301,979"}},{"$f":"'Statistical Moments'!DC32","v":{"v":33288700.104408477,"d":"$33,288,700"}},{"$f":"'Statistical Moments'!DD32","v":{"v":33273938.51101785,"d":"$33,273,939"}},{"$f":"'Statistical Moments'!DE32","v":{"v":33259668.479060553,"d":"$33,259,668"}},{"$f":"'Statistical Moments'!DF32","v":{"v":33246220.643324632,"d":"$33,246,221"}},{"$f":"'Statistical Moments'!DG32","v":{"v":33232272.585768152,"d":"$33,232,273"}},{"$f":"'Statistical Moments'!DH32","v":{"v":33218105.969401814,"d":"$33,218,106"}},{"$f":"'Statistical Moments'!DI32","v":{"v":33203792.596758068,"d":"$33,203,793"}},{"$f":"'Statistical Moments'!DJ32","v":{"v":33189258.859009963,"d":"$33,189,259"}},{"$f":"'Statistical Moments'!DK32","v":{"v":33175325.822966106,"d":"$33,175,326"}},{"$f":"'Statistical Moments'!DL32","v":{"v":33161235.218408495,"d":"$33,161,235"}},{"$f":"'Statistical Moments'!DM32","v":{"v":33146645.628580075,"d":"$33,146,646"}},{"$f":"'Statistical Moments'!DO32","v":{"v":33132270.507987745,"d":"$33,132,271"}},{"$f":"'Statistical Moments'!DP32","v":{"v":33119024.77567495,"d":"$33,119,025"}},{"$f":"'Statistical Moments'!DQ32","v":{"v":33104686.9320869,"d":"$33,104,687"}},{"$f":"'Statistical Moments'!DR32","v":{"v":33091788.596509337,"d":"$33,091,789"}},{"$f":"'Statistical Moments'!DS32","v":{"v":33078041.690803528,"d":"$33,078,042"}},{"$f":"'Statistical Moments'!DT32","v":{"v":33064183.69657771,"d":"$33,064,184"}},{"$f":"'Statistical Moments'!DU32","v":{"v":33051222.781631973,"d":"$33,051,223"}},{"$f":"'Statistical Moments'!DV32","v":{"v":33037677.05093895,"d":"$33,037,677"}},{"$f":"'Statistical Moments'!DW32","v":{"v":33024396.321084384,"d":"$33,024,396"}},{"$f":"'Statistical Moments'!DX32","v":{"v":33010734.18908261,"d":"$33,010,734"}},{"$f":"'Statistical Moments'!DY32","v":{"v":32996931.753135573,"d":"$32,996,932"}},{"$f":"'Statistical Moments'!DZ32","v":{"v":32983212.98240813,"d":"$32,983,213"}},{"$f":"'Statistical Moments'!EB32","v":{"v":32968325.63139443,"d":"$32,968,326"}},{"$f":"'Statistical Moments'!EC32","v":{"v":32954925.12374404,"d":"$32,954,925"}},{"$f":"'Statistical Moments'!ED32","v":{"v":32940163.306281675,"d":"$32,940,163"}},{"$f":"'Statistical Moments'!EE32","v":{"v":32925820.755439673,"d":"$32,925,821"}},{"$f":"'Statistical Moments'!EF32","v":{"v":32912113.186657123,"d":"$32,912,113"}},{"$f":"'Statistical Moments'!EG32","v":{"v":32898531.704616718,"d":"$32,898,532"}},{"$f":"'Statistical Moments'!EH32","v":{"v":32884010.916804515,"d":"$32,884,011"}},{"$f":"'Statistical Moments'!EI32","v":{"v":32869782.552965228,"d":"$32,869,783"}},{"$f":"'Statistical Moments'!EJ32","v":{"v":32854282.51382942,"d":"$32,854,283"}},{"$f":"'Statistical Moments'!EK32","v":{"v":32840081.348777797,"d":"$32,840,081"}},{"$f":"'Statistical Moments'!EL32","v":{"v":32826642.63934762,"d":"$32,826,643"}},{"$f":"'Statistical Moments'!EM32","v":{"v":32812280.257161573,"d":"$32,812,280"}}]
[{"$f":"'(Intermediate Computations)'!B149","v":"Jan 2010"},{"$f":"'(Intermediate Computations)'!C149","v":"Feb 2010"},{"$f":"'(Intermediate Computations)'!D149","v":"Mar 2010"},{"$f":"'(Intermediate Computations)'!E149","v":"Apr 2010"},{"$f":"'(Intermediate Computations)'!F149","v":"May 2010"},{"$f":"'(Intermediate Computations)'!G149","v":"Jun 2010"},{"$f":"'(Intermediate Computations)'!H149","v":"Jul 2010"},{"$f":"'(Intermediate Computations)'!I149","v":"Aug 2010"},{"$f":"'(Intermediate Computations)'!J149","v":"Sep 2010"},{"$f":"'(Intermediate Computations)'!K149","v":"Oct 2010"},{"$f":"'(Intermediate Computations)'!L149","v":"Nov 2010"},{"$f":"'(Intermediate Computations)'!M149","v":"Dec 2010"},{"$f":"'(Intermediate Computations)'!O149","v":"Jan 2011"},{"$f":"'(Intermediate Computations)'!P149","v":"Feb 2011"},{"$f":"'(Intermediate Computations)'!Q149","v":"Mar 2011"},{"$f":"'(Intermediate Computations)'!R149","v":"Apr 2011"},{"$f":"'(Intermediate Computations)'!S149","v":"May 2011"},{"$f":"'(Intermediate Computations)'!T149","v":"Jun 2011"},{"$f":"'(Intermediate Computations)'!U149","v":"Jul 2011"},{"$f":"'(Intermediate Computations)'!V149","v":"Aug 2011"},{"$f":"'(Intermediate Computations)'!W149","v":"Sep 2011"},{"$f":"'(Intermediate Computations)'!X149","v":"Oct 2011"},{"$f":"'(Intermediate Computations)'!Y149","v":"Nov 2011"},{"$f":"'(Intermediate Computations)'!Z149","v":"Dec 2011"},{"$f":"'(Intermediate Computations)'!AB149","v":"Jan 2012"},{"$f":"'(Intermediate Computations)'!AC149","v":"Feb 2012"},{"$f":"'(Intermediate Computations)'!AD149","v":"Mar 2012"},{"$f":"'(Intermediate Computations)'!AE149","v":"Apr 2012"},{"$f":"'(Intermediate Computations)'!AF149","v":"May 2012"},{"$f":"'(Intermediate Computations)'!AG149","v":"Jun 2012"},{"$f":"'(Intermediate Computations)'!AH149","v":"Jul 2012"},{"$f":"'(Intermediate Computations)'!AI149","v":"Aug 2012"},{"$f":"'(Intermediate Computations)'!AJ149","v":"Sep 2012"},{"$f":"'(Intermediate Computations)'!AK149","v":"Oct 2012"},{"$f":"'(Intermediate Computations)'!AL149","v":"Nov 2012"},{"$f":"'(Intermediate Computations)'!AM149","v":"Dec 2012"},{"$f":"'(Intermediate Computations)'!AO149","v":"Jan 2013"},{"$f":"'(Intermediate Computations)'!AP149","v":"Feb 2013"},{"$f":"'(Intermediate Computations)'!AQ149","v":"Mar 2013"},{"$f":"'(Intermediate Computations)'!AR149","v":"Apr 2013"},{"$f":"'(Intermediate Computations)'!AS149","v":"May 2013"},{"$f":"'(Intermediate Computations)'!AT149","v":"Jun 2013"},{"$f":"'(Intermediate Computations)'!AU149","v":"Jul 2013"},{"$f":"'(Intermediate Computations)'!AV149","v":"Aug 2013"},{"$f":"'(Intermediate Computations)'!AW149","v":"Sep 2013"},{"$f":"'(Intermediate Computations)'!AX149","v":"Oct 2013"},{"$f":"'(Intermediate Computations)'!AY149","v":"Nov 2013"},{"$f":"'(Intermediate Computations)'!AZ149","v":"Dec 2013"},{"$f":"'(Intermediate Computations)'!BB149","v":"Jan 2014"},{"$f":"'(Intermediate Computations)'!BC149","v":"Feb 2014"},{"$f":"'(Intermediate Computations)'!BD149","v":"Mar 2014"},{"$f":"'(Intermediate Computations)'!BE149","v":"Apr 2014"},{"$f":"'(Intermediate Computations)'!BF149","v":"May 2014"},{"$f":"'(Intermediate Computations)'!BG149","v":"Jun 2014"},{"$f":"'(Intermediate Computations)'!BH149","v":"Jul 2014"},{"$f":"'(Intermediate Computations)'!BI149","v":"Aug 2014"},{"$f":"'(Intermediate Computations)'!BJ149","v":"Sep 2014"},{"$f":"'(Intermediate Computations)'!BK149","v":"Oct 2014"},{"$f":"'(Intermediate Computations)'!BL149","v":"Nov 2014"},{"$f":"'(Intermediate Computations)'!BM149","v":"Dec 2014"},{"$f":"'(Intermediate Computations)'!BO149","v":"Jan 2015"},{"$f":"'(Intermediate Computations)'!BP149","v":"Feb 2015"},{"$f":"'(Intermediate Computations)'!BQ149","v":"Mar 2015"},{"$f":"'(Intermediate Computations)'!BR149","v":"Apr 2015"},{"$f":"'(Intermediate Computations)'!BS149","v":"May 2015"},{"$f":"'(Intermediate Computations)'!BT149","v":"Jun 2015"},{"$f":"'(Intermediate Computations)'!BU149","v":"Jul 2015"},{"$f":"'(Intermediate Computations)'!BV149","v":"Aug 2015"},{"$f":"'(Intermediate Computations)'!BW149","v":"Sep 2015"},{"$f":"'(Intermediate Computations)'!BX149","v":"Oct 2015"},{"$f":"'(Intermediate Computations)'!BY149","v":"Nov 2015"},{"$f":"'(Intermediate Computations)'!BZ149","v":"Dec 2015"},{"$f":"'(Intermediate Computations)'!CB149","v":"Jan 2016"},{"$f":"'(Intermediate Computations)'!CC149","v":"Feb 2016"},{"$f":"'(Intermediate Computations)'!CD149","v":"Mar 2016"},{"$f":"'(Intermediate Computations)'!CE149","v":"Apr 2016"},{"$f":"'(Intermediate Computations)'!CF149","v":"May 2016"},{"$f":"'(Intermediate Computations)'!CG149","v":"Jun 2016"},{"$f":"'(Intermediate Computations)'!CH149","v":"Jul 2016"},{"$f":"'(Intermediate Computations)'!CI149","v":"Aug 2016"},{"$f":"'(Intermediate Computations)'!CJ149","v":"Sep 2016"},{"$f":"'(Intermediate Computations)'!CK149","v":"Oct 2016"},{"$f":"'(Intermediate Computations)'!CL149","v":"Nov 2016"},{"$f":"'(Intermediate Computations)'!CM149","v":"Dec 2016"},{"$f":"'(Intermediate Computations)'!CO149","v":"Jan 2017"},{"$f":"'(Intermediate Computations)'!CP149","v":"Feb 2017"},{"$f":"'(Intermediate Computations)'!CQ149","v":"Mar 2017"},{"$f":"'(Intermediate Computations)'!CR149","v":"Apr 2017"},{"$f":"'(Intermediate Computations)'!CS149","v":"May 2017"},{"$f":"'(Intermediate Computations)'!CT149","v":"Jun 2017"},{"$f":"'(Intermediate Computations)'!CU149","v":"Jul 2017"},{"$f":"'(Intermediate Computations)'!CV149","v":"Aug 2017"},{"$f":"'(Intermediate Computations)'!CW149","v":"Sep 2017"},{"$f":"'(Intermediate Computations)'!CX149","v":"Oct 2017"},{"$f":"'(Intermediate Computations)'!CY149","v":"Nov 2017"},{"$f":"'(Intermediate Computations)'!CZ149","v":"Dec 2017"},{"$f":"'(Intermediate Computations)'!DB149","v":"Jan 2018"},{"$f":"'(Intermediate Computations)'!DC149","v":"Feb 2018"},{"$f":"'(Intermediate Computations)'!DD149","v":"Mar 2018"},{"$f":"'(Intermediate Computations)'!DE149","v":"Apr 2018"},{"$f":"'(Intermediate Computations)'!DF149","v":"May 2018"},{"$f":"'(Intermediate Computations)'!DG149","v":"Jun 2018"},{"$f":"'(Intermediate Computations)'!DH149","v":"Jul 2018"},{"$f":"'(Intermediate Computations)'!DI149","v":"Aug 2018"},{"$f":"'(Intermediate Computations)'!DJ149","v":"Sep 2018"},{"$f":"'(Intermediate Computations)'!DK149","v":"Oct 2018"},{"$f":"'(Intermediate Computations)'!DL149","v":"Nov 2018"},{"$f":"'(Intermediate Computations)'!DM149","v":"Dec 2018"},{"$f":"'(Intermediate Computations)'!DO149","v":"Jan 2019"},{"$f":"'(Intermediate Computations)'!DP149","v":"Feb 2019"},{"$f":"'(Intermediate Computations)'!DQ149","v":"Mar 2019"},{"$f":"'(Intermediate Computations)'!DR149","v":"Apr 2019"},{"$f":"'(Intermediate Computations)'!DS149","v":"May 2019"},{"$f":"'(Intermediate Computations)'!DT149","v":"Jun 2019"},{"$f":"'(Intermediate Computations)'!DU149","v":"Jul 2019"},{"$f":"'(Intermediate Computations)'!DV149","v":"Aug 2019"},{"$f":"'(Intermediate Computations)'!DW149","v":"Sep 2019"},{"$f":"'(Intermediate Computations)'!DX149","v":"Oct 2019"},{"$f":"'(Intermediate Computations)'!DY149","v":"Nov 2019"},{"$f":"'(Intermediate Computations)'!DZ149","v":"Dec 2019"},{"$f":"'(Intermediate Computations)'!EB149","v":"Jan 2020"},{"$f":"'(Intermediate Computations)'!EC149","v":"Feb 2020"},{"$f":"'(Intermediate Computations)'!ED149","v":"Mar 2020"},{"$f":"'(Intermediate Computations)'!EE149","v":"Apr 2020"},{"$f":"'(Intermediate Computations)'!EF149","v":"May 2020"},{"$f":"'(Intermediate Computations)'!EG149","v":"Jun 2020"},{"$f":"'(Intermediate Computations)'!EH149","v":"Jul 2020"},{"$f":"'(Intermediate Computations)'!EI149","v":"Aug 2020"},{"$f":"'(Intermediate Computations)'!EJ149","v":"Sep 2020"},{"$f":"'(Intermediate Computations)'!EK149","v":"Oct 2020"},{"$f":"'(Intermediate Computations)'!EL149","v":"Nov 2020"},{"$f":"'(Intermediate Computations)'!EM149","v":"Dec 2020"}]
[{"$f":"'(Intermediate Computations)'!B146","v":"2010-01-01"},{"$f":"'(Intermediate Computations)'!C146","v":"2010-02-01"},{"$f":"'(Intermediate Computations)'!D146","v":"2010-03-01"},{"$f":"'(Intermediate Computations)'!E146","v":"2010-04-01"},{"$f":"'(Intermediate Computations)'!F146","v":"2010-05-01"},{"$f":"'(Intermediate Computations)'!G146","v":"2010-06-01"},{"$f":"'(Intermediate Computations)'!H146","v":"2010-07-01"},{"$f":"'(Intermediate Computations)'!I146","v":"2010-08-01"},{"$f":"'(Intermediate Computations)'!J146","v":"2010-09-01"},{"$f":"'(Intermediate Computations)'!K146","v":"2010-10-01"},{"$f":"'(Intermediate Computations)'!L146","v":"2010-11-01"},{"$f":"'(Intermediate Computations)'!M146","v":"2010-12-01"},{"$f":"'(Intermediate Computations)'!O146","v":"2011-01-01"},{"$f":"'(Intermediate Computations)'!P146","v":"2011-02-01"},{"$f":"'(Intermediate Computations)'!Q146","v":"2011-03-01"},{"$f":"'(Intermediate Computations)'!R146","v":"2011-04-01"},{"$f":"'(Intermediate Computations)'!S146","v":"2011-05-01"},{"$f":"'(Intermediate Computations)'!T146","v":"2011-06-01"},{"$f":"'(Intermediate Computations)'!U146","v":"2011-07-01"},{"$f":"'(Intermediate Computations)'!V146","v":"2011-08-01"},{"$f":"'(Intermediate Computations)'!W146","v":"2011-09-01"},{"$f":"'(Intermediate Computations)'!X146","v":"2011-10-01"},{"$f":"'(Intermediate Computations)'!Y146","v":"2011-11-01"},{"$f":"'(Intermediate Computations)'!Z146","v":"2011-12-01"},{"$f":"'(Intermediate Computations)'!AB146","v":"2012-01-01"},{"$f":"'(Intermediate Computations)'!AC146","v":"2012-02-01"},{"$f":"'(Intermediate Computations)'!AD146","v":"2012-03-01"},{"$f":"'(Intermediate Computations)'!AE146","v":"2012-04-01"},{"$f":"'(Intermediate Computations)'!AF146","v":"2012-05-01"},{"$f":"'(Intermediate Computations)'!AG146","v":"2012-06-01"},{"$f":"'(Intermediate Computations)'!AH146","v":"2012-07-01"},{"$f":"'(Intermediate Computations)'!AI146","v":"2012-08-01"},{"$f":"'(Intermediate Computations)'!AJ146","v":"2012-09-01"},{"$f":"'(Intermediate Computations)'!AK146","v":"2012-10-01"},{"$f":"'(Intermediate Computations)'!AL146","v":"2012-11-01"},{"$f":"'(Intermediate Computations)'!AM146","v":"2012-12-01"},{"$f":"'(Intermediate Computations)'!AO146","v":"2013-01-01"},{"$f":"'(Intermediate Computations)'!AP146","v":"2013-02-01"},{"$f":"'(Intermediate Computations)'!AQ146","v":"2013-03-01"},{"$f":"'(Intermediate Computations)'!AR146","v":"2013-04-01"},{"$f":"'(Intermediate Computations)'!AS146","v":"2013-05-01"},{"$f":"'(Intermediate Computations)'!AT146","v":"2013-06-01"},{"$f":"'(Intermediate Computations)'!AU146","v":"2013-07-01"},{"$f":"'(Intermediate Computations)'!AV146","v":"2013-08-01"},{"$f":"'(Intermediate Computations)'!AW146","v":"2013-09-01"},{"$f":"'(Intermediate Computations)'!AX146","v":"2013-10-01"},{"$f":"'(Intermediate Computations)'!AY146","v":"2013-11-01"},{"$f":"'(Intermediate Computations)'!AZ146","v":"2013-12-01"},{"$f":"'(Intermediate Computations)'!BB146","v":"2014-01-01"},{"$f":"'(Intermediate Computations)'!BC146","v":"2014-02-01"},{"$f":"'(Intermediate Computations)'!BD146","v":"2014-03-01"},{"$f":"'(Intermediate Computations)'!BE146","v":"2014-04-01"},{"$f":"'(Intermediate Computations)'!BF146","v":"2014-05-01"},{"$f":"'(Intermediate Computations)'!BG146","v":"2014-06-01"},{"$f":"'(Intermediate Computations)'!BH146","v":"2014-07-01"},{"$f":"'(Intermediate Computations)'!BI146","v":"2014-08-01"},{"$f":"'(Intermediate Computations)'!BJ146","v":"2014-09-01"},{"$f":"'(Intermediate Computations)'!BK146","v":"2014-10-01"},{"$f":"'(Intermediate Computations)'!BL146","v":"2014-11-01"},{"$f":"'(Intermediate Computations)'!BM146","v":"2014-12-01"},{"$f":"'(Intermediate Computations)'!BO146","v":"2015-01-01"},{"$f":"'(Intermediate Computations)'!BP146","v":"2015-02-01"},{"$f":"'(Intermediate Computations)'!BQ146","v":"2015-03-01"},{"$f":"'(Intermediate Computations)'!BR146","v":"2015-04-01"},{"$f":"'(Intermediate Computations)'!BS146","v":"2015-05-01"},{"$f":"'(Intermediate Computations)'!BT146","v":"2015-06-01"},{"$f":"'(Intermediate Computations)'!BU146","v":"2015-07-01"},{"$f":"'(Intermediate Computations)'!BV146","v":"2015-08-01"},{"$f":"'(Intermediate Computations)'!BW146","v":"2015-09-01"},{"$f":"'(Intermediate Computations)'!BX146","v":"2015-10-01"},{"$f":"'(Intermediate Computations)'!BY146","v":"2015-11-01"},{"$f":"'(Intermediate Computations)'!BZ146","v":"2015-12-01"},{"$f":"'(Intermediate Computations)'!CB146","v":"2016-01-01"},{"$f":"'(Intermediate Computations)'!CC146","v":"2016-02-01"},{"$f":"'(Intermediate Computations)'!CD146","v":"2016-03-01"},{"$f":"'(Intermediate Computations)'!CE146","v":"2016-04-01"},{"$f":"'(Intermediate Computations)'!CF146","v":"2016-05-01"},{"$f":"'(Intermediate Computations)'!CG146","v":"2016-06-01"},{"$f":"'(Intermediate Computations)'!CH146","v":"2016-07-01"},{"$f":"'(Intermediate Computations)'!CI146","v":"2016-08-01"},{"$f":"'(Intermediate Computations)'!CJ146","v":"2016-09-01"},{"$f":"'(Intermediate Computations)'!CK146","v":"2016-10-01"},{"$f":"'(Intermediate Computations)'!CL146","v":"2016-11-01"},{"$f":"'(Intermediate Computations)'!CM146","v":"2016-12-01"},{"$f":"'(Intermediate Computations)'!CO146","v":"2017-01-01"},{"$f":"'(Intermediate Computations)'!CP146","v":"2017-02-01"},{"$f":"'(Intermediate Computations)'!CQ146","v":"2017-03-01"},{"$f":"'(Intermediate Computations)'!CR146","v":"2017-04-01"},{"$f":"'(Intermediate Computations)'!CS146","v":"2017-05-01"},{"$f":"'(Intermediate Computations)'!CT146","v":"2017-06-01"},{"$f":"'(Intermediate Computations)'!CU146","v":"2017-07-01"},{"$f":"'(Intermediate Computations)'!CV146","v":"2017-08-01"},{"$f":"'(Intermediate Computations)'!CW146","v":"2017-09-01"},{"$f":"'(Intermediate Computations)'!CX146","v":"2017-10-01"},{"$f":"'(Intermediate Computations)'!CY146","v":"2017-11-01"},{"$f":"'(Intermediate Computations)'!CZ146","v":"2017-12-01"},{"$f":"'(Intermediate Computations)'!DB146","v":"2018-01-01"},{"$f":"'(Intermediate Computations)'!DC146","v":"2018-02-01"},{"$f":"'(Intermediate Computations)'!DD146","v":"2018-03-01"},{"$f":"'(Intermediate Computations)'!DE146","v":"2018-04-01"},{"$f":"'(Intermediate Computations)'!DF146","v":"2018-05-01"},{"$f":"'(Intermediate Computations)'!DG146","v":"2018-06-01"},{"$f":"'(Intermediate Computations)'!DH146","v":"2018-07-01"},{"$f":"'(Intermediate Computations)'!DI146","v":"2018-08-01"},{"$f":"'(Intermediate Computations)'!DJ146","v":"2018-09-01"},{"$f":"'(Intermediate Computations)'!DK146","v":"2018-10-01"},{"$f":"'(Intermediate Computations)'!DL146","v":"2018-11-01"},{"$f":"'(Intermediate Computations)'!DM146","v":"2018-12-01"},{"$f":"'(Intermediate Computations)'!DO146","v":"2019-01-01"},{"$f":"'(Intermediate Computations)'!DP146","v":"2019-02-01"},{"$f":"'(Intermediate Computations)'!DQ146","v":"2019-03-01"},{"$f":"'(Intermediate Computations)'!DR146","v":"2019-04-01"},{"$f":"'(Intermediate Computations)'!DS146","v":"2019-05-01"},{"$f":"'(Intermediate Computations)'!DT146","v":"2019-06-01"},{"$f":"'(Intermediate Computations)'!DU146","v":"2019-07-01"},{"$f":"'(Intermediate Computations)'!DV146","v":"2019-08-01"},{"$f":"'(Intermediate Computations)'!DW146","v":"2019-09-01"},{"$f":"'(Intermediate Computations)'!DX146","v":"2019-10-01"},{"$f":"'(Intermediate Computations)'!DY146","v":"2019-11-01"},{"$f":"'(Intermediate Computations)'!DZ146","v":"2019-12-01"},{"$f":"'(Intermediate Computations)'!EB146","v":"2020-01-01"},{"$f":"'(Intermediate Computations)'!EC146","v":"2020-02-01"},{"$f":"'(Intermediate Computations)'!ED146","v":"2020-03-01"},{"$f":"'(Intermediate Computations)'!EE146","v":"2020-04-01"},{"$f":"'(Intermediate Computations)'!EF146","v":"2020-05-01"},{"$f":"'(Intermediate Computations)'!EG146","v":"2020-06-01"},{"$f":"'(Intermediate Computations)'!EH146","v":"2020-07-01"},{"$f":"'(Intermediate Computations)'!EI146","v":"2020-08-01"},{"$f":"'(Intermediate Computations)'!EJ146","v":"2020-09-01"},{"$f":"'(Intermediate Computations)'!EK146","v":"2020-10-01"},{"$f":"'(Intermediate Computations)'!EL146","v":"2020-11-01"},{"$f":"'(Intermediate Computations)'!EM146","v":"2020-12-01"}]
[{"$f":"'Statistical Moments'!B33","v":{"v":7.9650056932098984E-9,"d":"$0"}},{"$f":"'Statistical Moments'!C33","v":{"v":1404.3051175733958,"d":"$1,404"}},{"$f":"'Statistical Moments'!D33","v":{"v":1981.9149608844639,"d":"$1,982"}},{"$f":"'Statistical Moments'!E33","v":{"v":2611.7781581581758,"d":"$2,612"}},{"$f":"'Statistical Moments'!F33","v":{"v":2895.4020842364394,"d":"$2,895"}},{"$f":"'Statistical Moments'!G33","v":{"v":3839.718207256217,"d":"$3,840"}},{"$f":"'Statistical Moments'!H33","v":{"v":4694.391095258154,"d":"$4,694"}},{"$f":"'Statistical Moments'!I33","v":{"v":4856.970492835085,"d":"$4,857"}},{"$f":"'Statistical Moments'!J33","v":{"v":5373.388583040883,"d":"$5,373"}},{"$f":"'Statistical Moments'!K33","v":{"v":4552.66708670663,"d":"$4,553"}},{"$f":"'Statistical Moments'!L33","v":{"v":5493.667009260315,"d":"$5,494"}},{"$f":"'Statistical Moments'!M33","v":{"v":6794.1766760948885,"d":"$6,794"}},{"$f":"'Statistical Moments'!O33","v":{"v":7424.153927443079,"d":"$7,424"}},{"$f":"'Statistical Moments'!P33","v":{"v":7682.337959262187,"d":"$7,682"}},{"$f":"'Statistical Moments'!Q33","v":{"v":7707.811237423816,"d":"$7,708"}},{"$f":"'Statistical Moments'!R33","v":{"v":7472.582220148569,"d":"$7,473"}},{"$f":"'Statistical Moments'!S33","v":{"v":8069.71919644121,"d":"$8,070"}},{"$f":"'Statistical Moments'!T33","v":{"v":8491.505796200147,"d":"$8,492"}},{"$f":"'Statistical Moments'!U33","v":{"v":7896.7391115093305,"d":"$7,897"}},{"$f":"'Statistical Moments'!V33","v":{"v":7723.284738990731,"d":"$7,723"}},{"$f":"'Statistical Moments'!W33","v":{"v":8348.840274442571,"d":"$8,349"}},{"$f":"'Statistical Moments'!X33","v":{"v":8687.50598454338,"d":"$8,688"}},{"$f":"'Statistical Moments'!Y33","v":{"v":9825.763053703015,"d":"$9,826"}},{"$f":"'Statistical Moments'!Z33","v":{"v":10528.738228421542,"d":"$10,529"}},{"$f":"'Statistical Moments'!AB33","v":{"v":9732.561090147694,"d":"$9,733"}},{"$f":"'Statistical Moments'!AC33","v":{"v":8778.77984214392,"d":"$8,779"}},{"$f":"'Statistical Moments'!AD33","v":{"v":9111.63162811988,"d":"$9,112"}},{"$f":"'Statistical Moments'!AE33","v":{"v":9859.072163003995,"d":"$9,859"}},{"$f":"'Statistical Moments'!AF33","v":{"v":10704.202701707822,"d":"$10,704"}},{"$f":"'Statistical Moments'!AG33","v":{"v":11746.595677309495,"d":"$11,747"}},{"$f":"'Statistical Moments'!AH33","v":{"v":11784.3260553744,"d":"$11,784"}},{"$f":"'Statistical Moments'!AI33","v":{"v":12202.988589389426,"d":"$12,203"}},{"$f":"'Statistical Moments'!AJ33","v":{"v":12078.963079367875,"d":"$12,079"}},{"$f":"'Statistical Moments'!AK33","v":{"v":11935.473432259585,"d":"$11,935"}},{"$f":"'Statistical Moments'!AL33","v":{"v":11889.193496204296,"d":"$11,889"}},{"$f":"'Statistical Moments'!AM33","v":{"v":12384.35507469697,"d":"$12,384"}},{"$f":"'Statistical Moments'!AO33","v":{"v":13827.046981918793,"d":"$13,827"}},{"$f":"'Statistical Moments'!AP33","v":{"v":13450.088855208283,"d":"$13,450"}},{"$f":"'Statistical Moments'!AQ33","v":{"v":13258.241276837363,"d":"$13,258"}},{"$f":"'Statistical Moments'!AR33","v":{"v":13636.865830093962,"d":"$13,637"}},{"$f":"'Statistical Moments'!AS33","v":{"v":14460.874629925394,"d":"$14,461"}},{"$f":"'Statistical Moments'!AT33","v":{"v":14573.082670108346,"d":"$14,573"}},{"$f":"'Statistical Moments'!AU33","v":{"v":13991.97687827466,"d":"$13,992"}},{"$f":"'Statistical Moments'!AV33","v":{"v":13142.490517399825,"d":"$13,142"}},{"$f":"'Statistical Moments'!AW33","v":{"v":12982.413140243727,"d":"$12,982"}},{"$f":"'Statistical Moments'!AX33","v":{"v":12555.127956346585,"d":"$12,555"}},{"$f":"'Statistical Moments'!AY33","v":{"v":12244.642967248928,"d":"$12,245"}},{"$f":"'Statistical Moments'!AZ33","v":{"v":12734.83164376842,"d":"$12,735"}},{"$f":"'Statistical Moments'!BB33","v":{"v":13694.152338561427,"d":"$13,694"}},{"$f":"'Statistical Moments'!BC33","v":{"v":12066.472422498642,"d":"$12,066"}},{"$f":"'Statistical Moments'!BD33","v":{"v":12044.316845350011,"d":"$12,044"}},{"$f":"'Statistical Moments'!BE33","v":{"v":13047.993285332104,"d":"$13,048"}},{"$f":"'Statistical Moments'!BF33","v":{"v":13451.725838921231,"d":"$13,452"}},{"$f":"'Statistical Moments'!BG33","v":{"v":14297.915091887606,"d":"$14,298"}},{"$f":"'Statistical Moments'!BH33","v":{"v":15271.35088449503,"d":"$15,271"}},{"$f":"'Statistical Moments'!BI33","v":{"v":16355.030652810332,"d":"$16,355"}},{"$f":"'Statistical Moments'!BJ33","v":{"v":15780.839410641851,"d":"$15,781"}},{"$f":"'Statistical Moments'!BK33","v":{"v":16305.165890022487,"d":"$16,305"}},{"$f":"'Statistical Moments'!BL33","v":{"v":15539.834332710354,"d":"$15,540"}},{"$f":"'Statistical Moments'!BM33","v":{"v":14396.026334992574,"d":"$14,396"}},{"$f":"'Statistical Moments'!BO33","v":{"v":13954.367419217479,"d":"$13,954"}},{"$f":"'Statistical Moments'!BP33","v":{"v":13371.131295976347,"d":"$13,371"}},{"$f":"'Statistical Moments'!BQ33","v":{"v":12799.922543709443,"d":"$12,800"}},{"$f":"'Statistical Moments'!BR33","v":{"v":14049.818235056742,"d":"$14,050"}},{"$f":"'Statistical Moments'!BS33","v":{"v":14925.082683023742,"d":"$14,925"}},{"$f":"'Statistical Moments'!BT33","v":{"v":15635.059939534312,"d":"$15,635"}},{"$f":"'Statistical Moments'!BU33","v":{"v":15151.383271915762,"d":"$15,151"}},{"$f":"'Statistical Moments'!BV33","v":{"v":15976.445692745156,"d":"$15,976"}},{"$f":"'Statistical Moments'!BW33","v":{"v":17024.793028516066,"d":"$17,025"}},{"$f":"'Statistical Moments'!BX33","v":{"v":18227.50839216903,"d":"$18,228"}},{"$f":"'Statistical Moments'!BY33","v":{"v":18611.924254188114,"d":"$18,612"}},{"$f":"'Statistical Moments'!BZ33","v":{"v":17428.72888514267,"d":"$17,429"}},{"$f":"'Statistical Moments'!CB33","v":{"v":16676.431027547784,"d":"$16,676"}},{"$f":"'Statistical Moments'!CC33","v":{"v":16499.910567460076,"d":"$16,500"}},{"$f":"'Statistical Moments'!CD33","v":{"v":16432.932757248305,"d":"$16,433"}},{"$f":"'Statistical Moments'!CE33","v":{"v":16670.11326445737,"d":"$16,670"}},{"$f":"'Statistical Moments'!CF33","v":{"v":16381.151534041146,"d":"$16,381"}},{"$f":"'Statistical Moments'!CG33","v":{"v":16097.528383370767,"d":"$16,098"}},{"$f":"'Statistical Moments'!CH33","v":{"v":17202.699388373323,"d":"$17,203"}},{"$f":"'Statistical Moments'!CI33","v":{"v":16120.72487764151,"d":"$16,121"}},{"$f":"'Statistical Moments'!CJ33","v":{"v":15179.049308611624,"d":"$15,179"}},{"$f":"'Statistical Moments'!CK33","v":{"v":15617.739695605203,"d":"$15,618"}},{"$f":"'Statistical Moments'!CL33","v":{"v":15628.516088097917,"d":"$15,629"}},{"$f":"'Statistical Moments'!CM33","v":{"v":15140.296966827598,"d":"$15,140"}},{"$f":"'Statistical Moments'!CO33","v":{"v":16030.02581710981,"d":"$16,030"}},{"$f":"'Statistical Moments'!CP33","v":{"v":17110.604444795394,"d":"$17,111"}},{"$f":"'Statistical Moments'!CQ33","v":{"v":17199.804189779145,"d":"$17,200"}},{"$f":"'Statistical Moments'!CR33","v":{"v":17472.690589783037,"d":"$17,473"}},{"$f":"'Statistical Moments'!CS33","v":{"v":17906.14133294121,"d":"$17,906"}},{"$f":"'Statistical Moments'!CT33","v":{"v":16996.01532863618,"d":"$16,996"}},{"$f":"'Statistical Moments'!CU33","v":{"v":17391.98409327916,"d":"$17,392"}},{"$f":"'Statistical Moments'!CV33","v":{"v":17830.256275161933,"d":"$17,830"}},{"$f":"'Statistical Moments'!CW33","v":{"v":17328.1670070073,"d":"$17,328"}},{"$f":"'Statistical Moments'!CX33","v":{"v":17159.116356713792,"d":"$17,159"}},{"$f":"'Statistical Moments'!CY33","v":{"v":17954.06905809762,"d":"$17,954"}},{"$f":"'Statistical Moments'!CZ33","v":{"v":18145.29481675027,"d":"$18,145"}},{"$f":"'Statistical Moments'!DB33","v":{"v":17650.55257387956,"d":"$17,651"}},{"$f":"'Statistical Moments'!DC33","v":{"v":19613.109691370188,"d":"$19,613"}},{"$f":"'Statistical Moments'!DD33","v":{"v":19608.250657809873,"d":"$19,608"}},{"$f":"'Statistical Moments'!DE33","v":{"v":18830.1282804967,"d":"$18,830"}},{"$f":"'Statistical Moments'!DF33","v":{"v":18200.5754549385,"d":"$18,201"}},{"$f":"'Statistical Moments'!DG33","v":{"v":17631.624592897126,"d":"$17,632"}},{"$f":"'Statistical Moments'!DH33","v":{"v":16679.13968680407,"d":"$16,679"}},{"$f":"'Statistical Moments'!DI33","v":{"v":16273.739651745003,"d":"$16,274"}},{"$f":"'Statistical Moments'!DJ33","v":{"v":15159.8781051569,"d":"$15,160"}},{"$f":"'Statistical Moments'!DK33","v":{"v":15997.875375681228,"d":"$15,998"}},{"$f":"'Statistical Moments'!DL33","v":{"v":15225.65817368143,"d":"$15,226"}},{"$f":"'Statistical Moments'!DM33","v":{"v":16300.52152098151,"d":"$16,301"}},{"$f":"'Statistical Moments'!DO33","v":{"v":16416.644765933783,"d":"$16,417"}},{"$f":"'Statistical Moments'!DP33","v":{"v":14678.932816360782,"d":"$14,679"}},{"$f":"'Statistical Moments'!DQ33","v":{"v":13706.117216090519,"d":"$13,706"}},{"$f":"'Statistical Moments'!DR33","v":{"v":14451.13743674272,"d":"$14,451"}},{"$f":"'Statistical Moments'!DS33","v":{"v":15476.558986148451,"d":"$15,477"}},{"$f":"'Statistical Moments'!DT33","v":{"v":15428.80454883705,"d":"$15,429"}},{"$f":"'Statistical Moments'!DU33","v":{"v":16112.837453102888,"d":"$16,113"}},{"$f":"'Statistical Moments'!DV33","v":{"v":16790.4193197093,"d":"$16,790"}},{"$f":"'Statistical Moments'!DW33","v":{"v":16779.47988984661,"d":"$16,779"}},{"$f":"'Statistical Moments'!DX33","v":{"v":17757.940745628643,"d":"$17,758"}},{"$f":"'Statistical Moments'!DY33","v":{"v":16344.845655454797,"d":"$16,345"}},{"$f":"'Statistical Moments'!DZ33","v":{"v":16527.880545143482,"d":"$16,528"}},{"$f":"'Statistical Moments'!EB33","v":{"v":17258.655239380514,"d":"$17,259"}},{"$f":"'Statistical Moments'!EC33","v":{"v":15986.11688289082,"d":"$15,986"}},{"$f":"'Statistical Moments'!ED33","v":{"v":15276.04585534862,"d":"$15,276"}},{"$f":"'Statistical Moments'!EE33","v":{"v":16305.82677766709,"d":"$16,306"}},{"$f":"'Statistical Moments'!EF33","v":{"v":16216.860216511704,"d":"$16,217"}},{"$f":"'Statistical Moments'!EG33","v":{"v":15315.832615595775,"d":"$15,316"}},{"$f":"'Statistical Moments'!EH33","v":{"v":16293.84659059721,"d":"$16,294"}},{"$f":"'Statistical Moments'!EI33","v":{"v":17463.333169391186,"d":"$17,463"}},{"$f":"'Statistical Moments'!EJ33","v":{"v":17754.439579067013,"d":"$17,754"}},{"$f":"'Statistical Moments'!EK33","v":{"v":18368.66355949115,"d":"$18,369"}},{"$f":"'Statistical Moments'!EL33","v":{"v":18113.86972439434,"d":"$18,114"}},{"$f":"'Statistical Moments'!EM33","v":{"v":17081.843279350884,"d":"$17,082"}}]
[{"$f":"'(Intermediate Computations)'!B155","v":"Jan 2010"},{"$f":"'(Intermediate Computations)'!C155","v":"Feb 2010"},{"$f":"'(Intermediate Computations)'!D155","v":"Mar 2010"},{"$f":"'(Intermediate Computations)'!E155","v":"Apr 2010"},{"$f":"'(Intermediate Computations)'!F155","v":"May 2010"},{"$f":"'(Intermediate Computations)'!G155","v":"Jun 2010"},{"$f":"'(Intermediate Computations)'!H155","v":"Jul 2010"},{"$f":"'(Intermediate Computations)'!I155","v":"Aug 2010"},{"$f":"'(Intermediate Computations)'!J155","v":"Sep 2010"},{"$f":"'(Intermediate Computations)'!K155","v":"Oct 2010"},{"$f":"'(Intermediate Computations)'!L155","v":"Nov 2010"},{"$f":"'(Intermediate Computations)'!M155","v":"Dec 2010"},{"$f":"'(Intermediate Computations)'!O155","v":"Jan 2011"},{"$f":"'(Intermediate Computations)'!P155","v":"Feb 2011"},{"$f":"'(Intermediate Computations)'!Q155","v":"Mar 2011"},{"$f":"'(Intermediate Computations)'!R155","v":"Apr 2011"},{"$f":"'(Intermediate Computations)'!S155","v":"May 2011"},{"$f":"'(Intermediate Computations)'!T155","v":"Jun 2011"},{"$f":"'(Intermediate Computations)'!U155","v":"Jul 2011"},{"$f":"'(Intermediate Computations)'!V155","v":"Aug 2011"},{"$f":"'(Intermediate Computations)'!W155","v":"Sep 2011"},{"$f":"'(Intermediate Computations)'!X155","v":"Oct 2011"},{"$f":"'(Intermediate Computations)'!Y155","v":"Nov 2011"},{"$f":"'(Intermediate Computations)'!Z155","v":"Dec 2011"},{"$f":"'(Intermediate Computations)'!AB155","v":"Jan 2012"},{"$f":"'(Intermediate Computations)'!AC155","v":"Feb 2012"},{"$f":"'(Intermediate Computations)'!AD155","v":"Mar 2012"},{"$f":"'(Intermediate Computations)'!AE155","v":"Apr 2012"},{"$f":"'(Intermediate Computations)'!AF155","v":"May 2012"},{"$f":"'(Intermediate Computations)'!AG155","v":"Jun 2012"},{"$f":"'(Intermediate Computations)'!AH155","v":"Jul 2012"},{"$f":"'(Intermediate Computations)'!AI155","v":"Aug 2012"},{"$f":"'(Intermediate Computations)'!AJ155","v":"Sep 2012"},{"$f":"'(Intermediate Computations)'!AK155","v":"Oct 2012"},{"$f":"'(Intermediate Computations)'!AL155","v":"Nov 2012"},{"$f":"'(Intermediate Computations)'!AM155","v":"Dec 2012"},{"$f":"'(Intermediate Computations)'!AO155","v":"Jan 2013"},{"$f":"'(Intermediate Computations)'!AP155","v":"Feb 2013"},{"$f":"'(Intermediate Computations)'!AQ155","v":"Mar 2013"},{"$f":"'(Intermediate Computations)'!AR155","v":"Apr 2013"},{"$f":"'(Intermediate Computations)'!AS155","v":"May 2013"},{"$f":"'(Intermediate Computations)'!AT155","v":"Jun 2013"},{"$f":"'(Intermediate Computations)'!AU155","v":"Jul 2013"},{"$f":"'(Intermediate Computations)'!AV155","v":"Aug 2013"},{"$f":"'(Intermediate Computations)'!AW155","v":"Sep 2013"},{"$f":"'(Intermediate Computations)'!AX155","v":"Oct 2013"},{"$f":"'(Intermediate Computations)'!AY155","v":"Nov 2013"},{"$f":"'(Intermediate Computations)'!AZ155","v":"Dec 2013"},{"$f":"'(Intermediate Computations)'!BB155","v":"Jan 2014"},{"$f":"'(Intermediate Computations)'!BC155","v":"Feb 2014"},{"$f":"'(Intermediate Computations)'!BD155","v":"Mar 2014"},{"$f":"'(Intermediate Computations)'!BE155","v":"Apr 2014"},{"$f":"'(Intermediate Computations)'!BF155","v":"May 2014"},{"$f":"'(Intermediate Computations)'!BG155","v":"Jun 2014"},{"$f":"'(Intermediate Computations)'!BH155","v":"Jul 2014"},{"$f":"'(Intermediate Computations)'!BI155","v":"Aug 2014"},{"$f":"'(Intermediate Computations)'!BJ155","v":"Sep 2014"},{"$f":"'(Intermediate Computations)'!BK155","v":"Oct 2014"},{"$f":"'(Intermediate Computations)'!BL155","v":"Nov 2014"},{"$f":"'(Intermediate Computations)'!BM155","v":"Dec 2014"},{"$f":"'(Intermediate Computations)'!BO155","v":"Jan 2015"},{"$f":"'(Intermediate Computations)'!BP155","v":"Feb 2015"},{"$f":"'(Intermediate Computations)'!BQ155","v":"Mar 2015"},{"$f":"'(Intermediate Computations)'!BR155","v":"Apr 2015"},{"$f":"'(Intermediate Computations)'!BS155","v":"May 2015"},{"$f":"'(Intermediate Computations)'!BT155","v":"Jun 2015"},{"$f":"'(Intermediate Computations)'!BU155","v":"Jul 2015"},{"$f":"'(Intermediate Computations)'!BV155","v":"Aug 2015"},{"$f":"'(Intermediate Computations)'!BW155","v":"Sep 2015"},{"$f":"'(Intermediate Computations)'!BX155","v":"Oct 2015"},{"$f":"'(Intermediate Computations)'!BY155","v":"Nov 2015"},{"$f":"'(Intermediate Computations)'!BZ155","v":"Dec 2015"},{"$f":"'(Intermediate Computations)'!CB155","v":"Jan 2016"},{"$f":"'(Intermediate Computations)'!CC155","v":"Feb 2016"},{"$f":"'(Intermediate Computations)'!CD155","v":"Mar 2016"},{"$f":"'(Intermediate Computations)'!CE155","v":"Apr 2016"},{"$f":"'(Intermediate Computations)'!CF155","v":"May 2016"},{"$f":"'(Intermediate Computations)'!CG155","v":"Jun 2016"},{"$f":"'(Intermediate Computations)'!CH155","v":"Jul 2016"},{"$f":"'(Intermediate Computations)'!CI155","v":"Aug 2016"},{"$f":"'(Intermediate Computations)'!CJ155","v":"Sep 2016"},{"$f":"'(Intermediate Computations)'!CK155","v":"Oct 2016"},{"$f":"'(Intermediate Computations)'!CL155","v":"Nov 2016"},{"$f":"'(Intermediate Computations)'!CM155","v":"Dec 2016"},{"$f":"'(Intermediate Computations)'!CO155","v":"Jan 2017"},{"$f":"'(Intermediate Computations)'!CP155","v":"Feb 2017"},{"$f":"'(Intermediate Computations)'!CQ155","v":"Mar 2017"},{"$f":"'(Intermediate Computations)'!CR155","v":"Apr 2017"},{"$f":"'(Intermediate Computations)'!CS155","v":"May 2017"},{"$f":"'(Intermediate Computations)'!CT155","v":"Jun 2017"},{"$f":"'(Intermediate Computations)'!CU155","v":"Jul 2017"},{"$f":"'(Intermediate Computations)'!CV155","v":"Aug 2017"},{"$f":"'(Intermediate Computations)'!CW155","v":"Sep 2017"},{"$f":"'(Intermediate Computations)'!CX155","v":"Oct 2017"},{"$f":"'(Intermediate Computations)'!CY155","v":"Nov 2017"},{"$f":"'(Intermediate Computations)'!CZ155","v":"Dec 2017"},{"$f":"'(Intermediate Computations)'!DB155","v":"Jan 2018"},{"$f":"'(Intermediate Computations)'!DC155","v":"Feb 2018"},{"$f":"'(Intermediate Computations)'!DD155","v":"Mar 2018"},{"$f":"'(Intermediate Computations)'!DE155","v":"Apr 2018"},{"$f":"'(Intermediate Computations)'!DF155","v":"May 2018"},{"$f":"'(Intermediate Computations)'!DG155","v":"Jun 2018"},{"$f":"'(Intermediate Computations)'!DH155","v":"Jul 2018"},{"$f":"'(Intermediate Computations)'!DI155","v":"Aug 2018"},{"$f":"'(Intermediate Computations)'!DJ155","v":"Sep 2018"},{"$f":"'(Intermediate Computations)'!DK155","v":"Oct 2018"},{"$f":"'(Intermediate Computations)'!DL155","v":"Nov 2018"},{"$f":"'(Intermediate Computations)'!DM155","v":"Dec 2018"},{"$f":"'(Intermediate Computations)'!DO155","v":"Jan 2019"},{"$f":"'(Intermediate Computations)'!DP155","v":"Feb 2019"},{"$f":"'(Intermediate Computations)'!DQ155","v":"Mar 2019"},{"$f":"'(Intermediate Computations)'!DR155","v":"Apr 2019"},{"$f":"'(Intermediate Computations)'!DS155","v":"May 2019"},{"$f":"'(Intermediate Computations)'!DT155","v":"Jun 2019"},{"$f":"'(Intermediate Computations)'!DU155","v":"Jul 2019"},{"$f":"'(Intermediate Computations)'!DV155","v":"Aug 2019"},{"$f":"'(Intermediate Computations)'!DW155","v":"Sep 2019"},{"$f":"'(Intermediate Computations)'!DX155","v":"Oct 2019"},{"$f":"'(Intermediate Computations)'!DY155","v":"Nov 2019"},{"$f":"'(Intermediate Computations)'!DZ155","v":"Dec 2019"},{"$f":"'(Intermediate Computations)'!EB155","v":"Jan 2020"},{"$f":"'(Intermediate Computations)'!EC155","v":"Feb 2020"},{"$f":"'(Intermediate Computations)'!ED155","v":"Mar 2020"},{"$f":"'(Intermediate Computations)'!EE155","v":"Apr 2020"},{"$f":"'(Intermediate Computations)'!EF155","v":"May 2020"},{"$f":"'(Intermediate Computations)'!EG155","v":"Jun 2020"},{"$f":"'(Intermediate Computations)'!EH155","v":"Jul 2020"},{"$f":"'(Intermediate Computations)'!EI155","v":"Aug 2020"},{"$f":"'(Intermediate Computations)'!EJ155","v":"Sep 2020"},{"$f":"'(Intermediate Computations)'!EK155","v":"Oct 2020"},{"$f":"'(Intermediate Computations)'!EL155","v":"Nov 2020"},{"$f":"'(Intermediate Computations)'!EM155","v":"Dec 2020"}]
[{"$f":"'(Intermediate Computations)'!B152","v":"2010-01-01"},{"$f":"'(Intermediate Computations)'!C152","v":"2010-02-01"},{"$f":"'(Intermediate Computations)'!D152","v":"2010-03-01"},{"$f":"'(Intermediate Computations)'!E152","v":"2010-04-01"},{"$f":"'(Intermediate Computations)'!F152","v":"2010-05-01"},{"$f":"'(Intermediate Computations)'!G152","v":"2010-06-01"},{"$f":"'(Intermediate Computations)'!H152","v":"2010-07-01"},{"$f":"'(Intermediate Computations)'!I152","v":"2010-08-01"},{"$f":"'(Intermediate Computations)'!J152","v":"2010-09-01"},{"$f":"'(Intermediate Computations)'!K152","v":"2010-10-01"},{"$f":"'(Intermediate Computations)'!L152","v":"2010-11-01"},{"$f":"'(Intermediate Computations)'!M152","v":"2010-12-01"},{"$f":"'(Intermediate Computations)'!O152","v":"2011-01-01"},{"$f":"'(Intermediate Computations)'!P152","v":"2011-02-01"},{"$f":"'(Intermediate Computations)'!Q152","v":"2011-03-01"},{"$f":"'(Intermediate Computations)'!R152","v":"2011-04-01"},{"$f":"'(Intermediate Computations)'!S152","v":"2011-05-01"},{"$f":"'(Intermediate Computations)'!T152","v":"2011-06-01"},{"$f":"'(Intermediate Computations)'!U152","v":"2011-07-01"},{"$f":"'(Intermediate Computations)'!V152","v":"2011-08-01"},{"$f":"'(Intermediate Computations)'!W152","v":"2011-09-01"},{"$f":"'(Intermediate Computations)'!X152","v":"2011-10-01"},{"$f":"'(Intermediate Computations)'!Y152","v":"2011-11-01"},{"$f":"'(Intermediate Computations)'!Z152","v":"2011-12-01"},{"$f":"'(Intermediate Computations)'!AB152","v":"2012-01-01"},{"$f":"'(Intermediate Computations)'!AC152","v":"2012-02-01"},{"$f":"'(Intermediate Computations)'!AD152","v":"2012-03-01"},{"$f":"'(Intermediate Computations)'!AE152","v":"2012-04-01"},{"$f":"'(Intermediate Computations)'!AF152","v":"2012-05-01"},{"$f":"'(Intermediate Computations)'!AG152","v":"2012-06-01"},{"$f":"'(Intermediate Computations)'!AH152","v":"2012-07-01"},{"$f":"'(Intermediate Computations)'!AI152","v":"2012-08-01"},{"$f":"'(Intermediate Computations)'!AJ152","v":"2012-09-01"},{"$f":"'(Intermediate Computations)'!AK152","v":"2012-10-01"},{"$f":"'(Intermediate Computations)'!AL152","v":"2012-11-01"},{"$f":"'(Intermediate Computations)'!AM152","v":"2012-12-01"},{"$f":"'(Intermediate Computations)'!AO152","v":"2013-01-01"},{"$f":"'(Intermediate Computations)'!AP152","v":"2013-02-01"},{"$f":"'(Intermediate Computations)'!AQ152","v":"2013-03-01"},{"$f":"'(Intermediate Computations)'!AR152","v":"2013-04-01"},{"$f":"'(Intermediate Computations)'!AS152","v":"2013-05-01"},{"$f":"'(Intermediate Computations)'!AT152","v":"2013-06-01"},{"$f":"'(Intermediate Computations)'!AU152","v":"2013-07-01"},{"$f":"'(Intermediate Computations)'!AV152","v":"2013-08-01"},{"$f":"'(Intermediate Computations)'!AW152","v":"2013-09-01"},{"$f":"'(Intermediate Computations)'!AX152","v":"2013-10-01"},{"$f":"'(Intermediate Computations)'!AY152","v":"2013-11-01"},{"$f":"'(Intermediate Computations)'!AZ152","v":"2013-12-01"},{"$f":"'(Intermediate Computations)'!BB152","v":"2014-01-01"},{"$f":"'(Intermediate Computations)'!BC152","v":"2014-02-01"},{"$f":"'(Intermediate Computations)'!BD152","v":"2014-03-01"},{"$f":"'(Intermediate Computations)'!BE152","v":"2014-04-01"},{"$f":"'(Intermediate Computations)'!BF152","v":"2014-05-01"},{"$f":"'(Intermediate Computations)'!BG152","v":"2014-06-01"},{"$f":"'(Intermediate Computations)'!BH152","v":"2014-07-01"},{"$f":"'(Intermediate Computations)'!BI152","v":"2014-08-01"},{"$f":"'(Intermediate Computations)'!BJ152","v":"2014-09-01"},{"$f":"'(Intermediate Computations)'!BK152","v":"2014-10-01"},{"$f":"'(Intermediate Computations)'!BL152","v":"2014-11-01"},{"$f":"'(Intermediate Computations)'!BM152","v":"2014-12-01"},{"$f":"'(Intermediate Computations)'!BO152","v":"2015-01-01"},{"$f":"'(Intermediate Computations)'!BP152","v":"2015-02-01"},{"$f":"'(Intermediate Computations)'!BQ152","v":"2015-03-01"},{"$f":"'(Intermediate Computations)'!BR152","v":"2015-04-01"},{"$f":"'(Intermediate Computations)'!BS152","v":"2015-05-01"},{"$f":"'(Intermediate Computations)'!BT152","v":"2015-06-01"},{"$f":"'(Intermediate Computations)'!BU152","v":"2015-07-01"},{"$f":"'(Intermediate Computations)'!BV152","v":"2015-08-01"},{"$f":"'(Intermediate Computations)'!BW152","v":"2015-09-01"},{"$f":"'(Intermediate Computations)'!BX152","v":"2015-10-01"},{"$f":"'(Intermediate Computations)'!BY152","v":"2015-11-01"},{"$f":"'(Intermediate Computations)'!BZ152","v":"2015-12-01"},{"$f":"'(Intermediate Computations)'!CB152","v":"2016-01-01"},{"$f":"'(Intermediate Computations)'!CC152","v":"2016-02-01"},{"$f":"'(Intermediate Computations)'!CD152","v":"2016-03-01"},{"$f":"'(Intermediate Computations)'!CE152","v":"2016-04-01"},{"$f":"'(Intermediate Computations)'!CF152","v":"2016-05-01"},{"$f":"'(Intermediate Computations)'!CG152","v":"2016-06-01"},{"$f":"'(Intermediate Computations)'!CH152","v":"2016-07-01"},{"$f":"'(Intermediate Computations)'!CI152","v":"2016-08-01"},{"$f":"'(Intermediate Computations)'!CJ152","v":"2016-09-01"},{"$f":"'(Intermediate Computations)'!CK152","v":"2016-10-01"},{"$f":"'(Intermediate Computations)'!CL152","v":"2016-11-01"},{"$f":"'(Intermediate Computations)'!CM152","v":"2016-12-01"},{"$f":"'(Intermediate Computations)'!CO152","v":"2017-01-01"},{"$f":"'(Intermediate Computations)'!CP152","v":"2017-02-01"},{"$f":"'(Intermediate Computations)'!CQ152","v":"2017-03-01"},{"$f":"'(Intermediate Computations)'!CR152","v":"2017-04-01"},{"$f":"'(Intermediate Computations)'!CS152","v":"2017-05-01"},{"$f":"'(Intermediate Computations)'!CT152","v":"2017-06-01"},{"$f":"'(Intermediate Computations)'!CU152","v":"2017-07-01"},{"$f":"'(Intermediate Computations)'!CV152","v":"2017-08-01"},{"$f":"'(Intermediate Computations)'!CW152","v":"2017-09-01"},{"$f":"'(Intermediate Computations)'!CX152","v":"2017-10-01"},{"$f":"'(Intermediate Computations)'!CY152","v":"2017-11-01"},{"$f":"'(Intermediate Computations)'!CZ152","v":"2017-12-01"},{"$f":"'(Intermediate Computations)'!DB152","v":"2018-01-01"},{"$f":"'(Intermediate Computations)'!DC152","v":"2018-02-01"},{"$f":"'(Intermediate Computations)'!DD152","v":"2018-03-01"},{"$f":"'(Intermediate Computations)'!DE152","v":"2018-04-01"},{"$f":"'(Intermediate Computations)'!DF152","v":"2018-05-01"},{"$f":"'(Intermediate Computations)'!DG152","v":"2018-06-01"},{"$f":"'(Intermediate Computations)'!DH152","v":"2018-07-01"},{"$f":"'(Intermediate Computations)'!DI152","v":"2018-08-01"},{"$f":"'(Intermediate Computations)'!DJ152","v":"2018-09-01"},{"$f":"'(Intermediate Computations)'!DK152","v":"2018-10-01"},{"$f":"'(Intermediate Computations)'!DL152","v":"2018-11-01"},{"$f":"'(Intermediate Computations)'!DM152","v":"2018-12-01"},{"$f":"'(Intermediate Computations)'!DO152","v":"2019-01-01"},{"$f":"'(Intermediate Computations)'!DP152","v":"2019-02-01"},{"$f":"'(Intermediate Computations)'!DQ152","v":"2019-03-01"},{"$f":"'(Intermediate Computations)'!DR152","v":"2019-04-01"},{"$f":"'(Intermediate Computations)'!DS152","v":"2019-05-01"},{"$f":"'(Intermediate Computations)'!DT152","v":"2019-06-01"},{"$f":"'(Intermediate Computations)'!DU152","v":"2019-07-01"},{"$f":"'(Intermediate Computations)'!DV152","v":"2019-08-01"},{"$f":"'(Intermediate Computations)'!DW152","v":"2019-09-01"},{"$f":"'(Intermediate Computations)'!DX152","v":"2019-10-01"},{"$f":"'(Intermediate Computations)'!DY152","v":"2019-11-01"},{"$f":"'(Intermediate Computations)'!DZ152","v":"2019-12-01"},{"$f":"'(Intermediate Computations)'!EB152","v":"2020-01-01"},{"$f":"'(Intermediate Computations)'!EC152","v":"2020-02-01"},{"$f":"'(Intermediate Computations)'!ED152","v":"2020-03-01"},{"$f":"'(Intermediate Computations)'!EE152","v":"2020-04-01"},{"$f":"'(Intermediate Computations)'!EF152","v":"2020-05-01"},{"$f":"'(Intermediate Computations)'!EG152","v":"2020-06-01"},{"$f":"'(Intermediate Computations)'!EH152","v":"2020-07-01"},{"$f":"'(Intermediate Computations)'!EI152","v":"2020-08-01"},{"$f":"'(Intermediate Computations)'!EJ152","v":"2020-09-01"},{"$f":"'(Intermediate Computations)'!EK152","v":"2020-10-01"},{"$f":"'(Intermediate Computations)'!EL152","v":"2020-11-01"},{"$f":"'(Intermediate Computations)'!EM152","v":"2020-12-01"}]
[{"$f":"'Statistical Moments'!B39","v":{"v":140,"d":"140.00"}},{"$f":"'Statistical Moments'!C39","v":{"v":140,"d":"140.00"}},{"$f":"'Statistical Moments'!D39","v":{"v":139.99334541414711,"d":"139.99"}},{"$f":"'Statistical Moments'!E39","v":{"v":139.9806603266441,"d":"139.98"}},{"$f":"'Statistical Moments'!F39","v":{"v":139.9626790734902,"d":"139.96"}},{"$f":"'Statistical Moments'!G39","v":{"v":139.9397853341387,"d":"139.94"}},{"$f":"'Statistical Moments'!H39","v":{"v":139.9124194678099,"d":"139.91"}},{"$f":"'Statistical Moments'!I39","v":{"v":139.8803252676436,"d":"139.88"}},{"$f":"'Statistical Moments'!J39","v":{"v":139.84311691615272,"d":"139.84"}},{"$f":"'Statistical Moments'!K39","v":{"v":139.80119915111234,"d":"139.80"}},{"$f":"'Statistical Moments'!L39","v":{"v":139.75475815631216,"d":"139.75"}},{"$f":"'Statistical Moments'!M39","v":{"v":139.7039358449017,"d":"139.70"}},{"$f":"'Statistical Moments'!O39","v":{"v":139.64880749069295,"d":"139.65"}},{"$f":"'Statistical Moments'!P39","v":{"v":139.58933217215372,"d":"139.59"}},{"$f":"'Statistical Moments'!Q39","v":{"v":139.52597974482626,"d":"139.53"}},{"$f":"'Statistical Moments'!R39","v":{"v":139.45877725121903,"d":"139.46"}},{"$f":"'Statistical Moments'!S39","v":{"v":139.38797728675866,"d":"139.39"}},{"$f":"'Statistical Moments'!T39","v":{"v":139.31382882127863,"d":"139.31"}},{"$f":"'Statistical Moments'!U39","v":{"v":139.23531860607514,"d":"139.24"}},{"$f":"'Statistical Moments'!V39","v":{"v":139.15354237674038,"d":"139.15"}},{"$f":"'Statistical Moments'!W39","v":{"v":139.06793792182418,"d":"139.07"}},{"$f":"'Statistical Moments'!X39","v":{"v":138.97871141907936,"d":"138.98"}},{"$f":"'Statistical Moments'!Y39","v":{"v":138.8867728289111,"d":"138.89"}},{"$f":"'Statistical Moments'!Z39","v":{"v":138.7915848197977,"d":"138.79"}},{"$f":"'Statistical Moments'!AB39","v":{"v":138.6933144622018,"d":"138.69"}},{"$f":"'Statistical Moments'!AC39","v":{"v":138.59143312326148,"d":"138.59"}},{"$f":"'Statistical Moments'!AD39","v":{"v":138.4867966529707,"d":"138.49"}},{"$f":"'Statistical Moments'!AE39","v":{"v":138.37978571229314,"d":"138.38"}},{"$f":"'Statistical Moments'!AF39","v":{"v":138.270280175142,"d":"138.27"}},{"$f":"'Statistical Moments'!AG39","v":{"v":138.1582785370434,"d":"138.16"}},{"$f":"'Statistical Moments'!AH39","v":{"v":138.04340275925682,"d":"138.04"}},{"$f":"'Statistical Moments'!AI39","v":{"v":137.92640986404336,"d":"137.93"}},{"$f":"'Statistical Moments'!AJ39","v":{"v":137.8076500036085,"d":"137.81"}},{"$f":"'Statistical Moments'!AK39","v":{"v":137.68623503427813,"d":"137.69"}},{"$f":"'Statistical Moments'!AL39","v":{"v":137.56284250930582,"d":"137.56"}},{"$f":"'Statistical Moments'!AM39","v":{"v":137.43768150511556,"d":"137.44"}},{"$f":"'Statistical Moments'!AO39","v":{"v":137.3109297605215,"d":"137.31"}},{"$f":"'Statistical Moments'!AP39","v":{"v":137.18204541950234,"d":"137.18"}},{"$f":"'Statistical Moments'!AQ39","v":{"v":137.0514395107111,"d":"137.05"}},{"$f":"'Statistical Moments'!AR39","v":{"v":136.91955143975161,"d":"136.92"}},{"$f":"'Statistical Moments'!AS39","v":{"v":136.78576654382232,"d":"136.79"}},{"$f":"'Statistical Moments'!AT39","v":{"v":136.65039501776965,"d":"136.65"}},{"$f":"'Statistical Moments'!AU39","v":{"v":136.51389007721826,"d":"136.51"}},{"$f":"'Statistical Moments'!AV39","v":{"v":136.3759281964233,"d":"136.38"}},{"$f":"'Statistical Moments'!AW39","v":{"v":136.23646575791145,"d":"136.24"}},{"$f":"'Statistical Moments'!AX39","v":{"v":136.09575010725246,"d":"136.10"}},{"$f":"'Statistical Moments'!AY39","v":{"v":135.95342248017204,"d":"135.95"}},{"$f":"'Statistical Moments'!AZ39","v":{"v":135.80980010963123,"d":"135.81"}},{"$f":"'Statistical Moments'!BB39","v":{"v":135.665123334265,"d":"135.67"}},{"$f":"'Statistical Moments'!BC39","v":{"v":135.51891548030287,"d":"135.52"}},{"$f":"'Statistical Moments'!BD39","v":{"v":135.37131158842095,"d":"135.37"}},{"$f":"'Statistical Moments'!BE39","v":{"v":135.22266212866805,"d":"135.22"}},{"$f":"'Statistical Moments'!BF39","v":{"v":135.07314516557793,"d":"135.07"}},{"$f":"'Statistical Moments'!BG39","v":{"v":134.92269475594256,"d":"134.92"}},{"$f":"'Statistical Moments'!BH39","v":{"v":134.77161096883754,"d":"134.77"}},{"$f":"'Statistical Moments'!BI39","v":{"v":134.61993664513574,"d":"134.62"}},{"$f":"'Statistical Moments'!BJ39","v":{"v":134.46713593742564,"d":"134.47"}},{"$f":"'Statistical Moments'!BK39","v":{"v":134.31350450066844,"d":"134.31"}},{"$f":"'Statistical Moments'!BL39","v":{"v":134.15949215306063,"d":"134.16"}},{"$f":"'Statistical Moments'!BM39","v":{"v":134.00481249666723,"d":"134.00"}},{"$f":"'Statistical Moments'!BO39","v":{"v":133.84984235269852,"d":"133.85"}},{"$f":"'Statistical Moments'!BP39","v":{"v":133.69433723147884,"d":"133.69"}},{"$f":"'Statistical Moments'!BQ39","v":{"v":133.53830697095398,"d":"133.54"}},{"$f":"'Statistical Moments'!BR39","v":{"v":133.38197658009375,"d":"133.38"}},{"$f":"'Statistical Moments'!BS39","v":{"v":133.22568621602352,"d":"133.23"}},{"$f":"'Statistical Moments'!BT39","v":{"v":133.069361597398,"d":"133.07"}},{"$f":"'Statistical Moments'!BU39","v":{"v":132.91254030324643,"d":"132.91"}},{"$f":"'Statistical Moments'!BV39","v":{"v":132.7560019784646,"d":"132.76"}},{"$f":"'Statistical Moments'!BW39","v":{"v":132.5989807100288,"d":"132.60"}},{"$f":"'Statistical Moments'!BX39","v":{"v":132.44170415173838,"d":"132.44"}},{"$f":"'Statistical Moments'!BY39","v":{"v":132.28468919464854,"d":"132.28"}},{"$f":"'Statistical Moments'!BZ39","v":{"v":132.12725435797495,"d":"132.13"}},{"$f":"'Statistical Moments'!CB39","v":{"v":131.97006204082277,"d":"131.97"}},{"$f":"'Statistical Moments'!CC39","v":{"v":131.81281948187151,"d":"131.81"}},{"$f":"'Statistical Moments'!CD39","v":{"v":131.65546039724754,"d":"131.66"}},{"$f":"'Statistical Moments'!CE39","v":{"v":131.49794971586485,"d":"131.50"}},{"$f":"'Statistical Moments'!CF39","v":{"v":131.34065384155022,"d":"131.34"}},{"$f":"'Statistical Moments'!CG39","v":{"v":131.18307944874704,"d":"131.18"}},{"$f":"'Statistical Moments'!CH39","v":{"v":131.0255237372886,"d":"131.03"}},{"$f":"'Statistical Moments'!CI39","v":{"v":130.86885902473955,"d":"130.87"}},{"$f":"'Statistical Moments'!CJ39","v":{"v":130.71239594216183,"d":"130.71"}},{"$f":"'Statistical Moments'!CK39","v":{"v":130.55632078925328,"d":"130.56"}},{"$f":"'Statistical Moments'!CL39","v":{"v":130.40052708584503,"d":"130.40"}},{"$f":"'Statistical Moments'!CM39","v":{"v":130.24542620151493,"d":"130.25"}},{"$f":"'Statistical Moments'!CO39","v":{"v":130.0904156411708,"d":"130.09"}},{"$f":"'Statistical Moments'!CP39","v":{"v":129.93605692268233,"d":"129.94"}},{"$f":"'Statistical Moments'!CQ39","v":{"v":129.78210802279327,"d":"129.78"}},{"$f":"'Statistical Moments'!CR39","v":{"v":129.62860310414763,"d":"129.63"}},{"$f":"'Statistical Moments'!CS39","v":{"v":129.4755096318724,"d":"129.48"}},{"$f":"'Statistical Moments'!CT39","v":{"v":129.322673095595,"d":"129.32"}},{"$f":"'Statistical Moments'!CU39","v":{"v":129.16946712376355,"d":"129.17"}},{"$f":"'Statistical Moments'!CV39","v":{"v":129.01622677556932,"d":"129.02"}},{"$f":"'Statistical Moments'!CW39","v":{"v":128.86396814591922,"d":"128.86"}},{"$f":"'Statistical Moments'!CX39","v":{"v":128.7118938995498,"d":"128.71"}},{"$f":"'Statistical Moments'!CY39","v":{"v":128.56007990485676,"d":"128.56"}},{"$f":"'Statistical Moments'!CZ39","v":{"v":128.40841917986,"d":"128.41"}},{"$f":"'Statistical Moments'!DB39","v":{"v":128.25731745441223,"d":"128.26"}},{"$f":"'Statistical Moments'!DC39","v":{"v":128.10644403916396,"d":"128.11"}},{"$f":"'Statistical Moments'!DD39","v":{"v":127.95621830185928,"d":"127.96"}},{"$f":"'Statistical Moments'!DE39","v":{"v":127.80601949248586,"d":"127.81"}},{"$f":"'Statistical Moments'!DF39","v":{"v":127.65607552374512,"d":"127.66"}},{"$f":"'Statistical Moments'!DG39","v":{"v":127.50674683348163,"d":"127.51"}},{"$f":"'Statistical Moments'!DH39","v":{"v":127.35782668676029,"d":"127.36"}},{"$f":"'Statistical Moments'!DI39","v":{"v":127.20923273447167,"d":"127.21"}},{"$f":"'Statistical Moments'!DJ39","v":{"v":127.06091511346789,"d":"127.06"}},{"$f":"'Statistical Moments'!DK39","v":{"v":126.9127943128236,"d":"126.91"}},{"$f":"'Statistical Moments'!DL39","v":{"v":126.76513863871367,"d":"126.77"}},{"$f":"'Statistical Moments'!DM39","v":{"v":126.61788936999257,"d":"126.62"}},{"$f":"'Statistical Moments'!DO39","v":{"v":126.4708456414431,"d":"126.47"}},{"$f":"'Statistical Moments'!DP39","v":{"v":126.32411259690429,"d":"126.32"}},{"$f":"'Statistical Moments'!DQ39","v":{"v":126.17817737307716,"d":"126.18"}},{"$f":"'Statistical Moments'!DR39","v":{"v":126.0325778077391,"d":"126.03"}},{"$f":"'Statistical Moments'!DS39","v":{"v":125.8879305656557,"d":"125.89"}},{"$f":"'Statistical Moments'!DT39","v":{"v":125.74387123597738,"d":"125.74"}},{"$f":"'Statistical Moments'!DU39","v":{"v":125.60035616923655,"d":"125.60"}},{"$f":"'Statistical Moments'!DV39","v":{"v":125.45776720063665,"d":"125.46"}},{"$f":"'Statistical Moments'!DW39","v":{"v":125.31585119805945,"d":"125.32"}},{"$f":"'Statistical Moments'!DX39","v":{"v":125.17471986207593,"d":"125.17"}},{"$f":"'Statistical Moments'!DY39","v":{"v":125.03420940650796,"d":"125.03"}},{"$f":"'Statistical Moments'!DZ39","v":{"v":124.8942620887381,"d":"124.89"}},{"$f":"'Statistical Moments'!EB39","v":{"v":124.75491596009412,"d":"124.75"}},{"$f":"'Statistical Moments'!EC39","v":{"v":124.61568071765733,"d":"124.62"}},{"$f":"'Statistical Moments'!ED39","v":{"v":124.47719785108195,"d":"124.48"}},{"$f":"'Statistical Moments'!EE39","v":{"v":124.33889134514493,"d":"124.34"}},{"$f":"'Statistical Moments'!EF39","v":{"v":124.20095117980055,"d":"124.20"}},{"$f":"'Statistical Moments'!EG39","v":{"v":124.06365256577654,"d":"124.06"}},{"$f":"'Statistical Moments'!EH39","v":{"v":123.92704843324869,"d":"123.93"}},{"$f":"'Statistical Moments'!EI39","v":{"v":123.79074156811335,"d":"123.79"}},{"$f":"'Statistical Moments'!EJ39","v":{"v":123.65486456163346,"d":"123.65"}},{"$f":"'Statistical Moments'!EK39","v":{"v":123.51888769457585,"d":"123.52"}},{"$f":"'Statistical Moments'!EL39","v":{"v":123.38337848655733,"d":"123.38"}},{"$f":"'Statistical Moments'!EM39","v":{"v":123.24866221589977,"d":"123.25"}}]
[{"$f":"'(Intermediate Computations)'!B161","v":"Jan 2010"},{"$f":"'(Intermediate Computations)'!C161","v":"Feb 2010"},{"$f":"'(Intermediate Computations)'!D161","v":"Mar 2010"},{"$f":"'(Intermediate Computations)'!E161","v":"Apr 2010"},{"$f":"'(Intermediate Computations)'!F161","v":"May 2010"},{"$f":"'(Intermediate Computations)'!G161","v":"Jun 2010"},{"$f":"'(Intermediate Computations)'!H161","v":"Jul 2010"},{"$f":"'(Intermediate Computations)'!I161","v":"Aug 2010"},{"$f":"'(Intermediate Computations)'!J161","v":"Sep 2010"},{"$f":"'(Intermediate Computations)'!K161","v":"Oct 2010"},{"$f":"'(Intermediate Computations)'!L161","v":"Nov 2010"},{"$f":"'(Intermediate Computations)'!M161","v":"Dec 2010"},{"$f":"'(Intermediate Computations)'!O161","v":"Jan 2011"},{"$f":"'(Intermediate Computations)'!P161","v":"Feb 2011"},{"$f":"'(Intermediate Computations)'!Q161","v":"Mar 2011"},{"$f":"'(Intermediate Computations)'!R161","v":"Apr 2011"},{"$f":"'(Intermediate Computations)'!S161","v":"May 2011"},{"$f":"'(Intermediate Computations)'!T161","v":"Jun 2011"},{"$f":"'(Intermediate Computations)'!U161","v":"Jul 2011"},{"$f":"'(Intermediate Computations)'!V161","v":"Aug 2011"},{"$f":"'(Intermediate Computations)'!W161","v":"Sep 2011"},{"$f":"'(Intermediate Computations)'!X161","v":"Oct 2011"},{"$f":"'(Intermediate Computations)'!Y161","v":"Nov 2011"},{"$f":"'(Intermediate Computations)'!Z161","v":"Dec 2011"},{"$f":"'(Intermediate Computations)'!AB161","v":"Jan 2012"},{"$f":"'(Intermediate Computations)'!AC161","v":"Feb 2012"},{"$f":"'(Intermediate Computations)'!AD161","v":"Mar 2012"},{"$f":"'(Intermediate Computations)'!AE161","v":"Apr 2012"},{"$f":"'(Intermediate Computations)'!AF161","v":"May 2012"},{"$f":"'(Intermediate Computations)'!AG161","v":"Jun 2012"},{"$f":"'(Intermediate Computations)'!AH161","v":"Jul 2012"},{"$f":"'(Intermediate Computations)'!AI161","v":"Aug 2012"},{"$f":"'(Intermediate Computations)'!AJ161","v":"Sep 2012"},{"$f":"'(Intermediate Computations)'!AK161","v":"Oct 2012"},{"$f":"'(Intermediate Computations)'!AL161","v":"Nov 2012"},{"$f":"'(Intermediate Computations)'!AM161","v":"Dec 2012"},{"$f":"'(Intermediate Computations)'!AO161","v":"Jan 2013"},{"$f":"'(Intermediate Computations)'!AP161","v":"Feb 2013"},{"$f":"'(Intermediate Computations)'!AQ161","v":"Mar 2013"},{"$f":"'(Intermediate Computations)'!AR161","v":"Apr 2013"},{"$f":"'(Intermediate Computations)'!AS161","v":"May 2013"},{"$f":"'(Intermediate Computations)'!AT161","v":"Jun 2013"},{"$f":"'(Intermediate Computations)'!AU161","v":"Jul 2013"},{"$f":"'(Intermediate Computations)'!AV161","v":"Aug 2013"},{"$f":"'(Intermediate Computations)'!AW161","v":"Sep 2013"},{"$f":"'(Intermediate Computations)'!AX161","v":"Oct 2013"},{"$f":"'(Intermediate Computations)'!AY161","v":"Nov 2013"},{"$f":"'(Intermediate Computations)'!AZ161","v":"Dec 2013"},{"$f":"'(Intermediate Computations)'!BB161","v":"Jan 2014"},{"$f":"'(Intermediate Computations)'!BC161","v":"Feb 2014"},{"$f":"'(Intermediate Computations)'!BD161","v":"Mar 2014"},{"$f":"'(Intermediate Computations)'!BE161","v":"Apr 2014"},{"$f":"'(Intermediate Computations)'!BF161","v":"May 2014"},{"$f":"'(Intermediate Computations)'!BG161","v":"Jun 2014"},{"$f":"'(Intermediate Computations)'!BH161","v":"Jul 2014"},{"$f":"'(Intermediate Computations)'!BI161","v":"Aug 2014"},{"$f":"'(Intermediate Computations)'!BJ161","v":"Sep 2014"},{"$f":"'(Intermediate Computations)'!BK161","v":"Oct 2014"},{"$f":"'(Intermediate Computations)'!BL161","v":"Nov 2014"},{"$f":"'(Intermediate Computations)'!BM161","v":"Dec 2014"},{"$f":"'(Intermediate Computations)'!BO161","v":"Jan 2015"},{"$f":"'(Intermediate Computations)'!BP161","v":"Feb 2015"},{"$f":"'(Intermediate Computations)'!BQ161","v":"Mar 2015"},{"$f":"'(Intermediate Computations)'!BR161","v":"Apr 2015"},{"$f":"'(Intermediate Computations)'!BS161","v":"May 2015"},{"$f":"'(Intermediate Computations)'!BT161","v":"Jun 2015"},{"$f":"'(Intermediate Computations)'!BU161","v":"Jul 2015"},{"$f":"'(Intermediate Computations)'!BV161","v":"Aug 2015"},{"$f":"'(Intermediate Computations)'!BW161","v":"Sep 2015"},{"$f":"'(Intermediate Computations)'!BX161","v":"Oct 2015"},{"$f":"'(Intermediate Computations)'!BY161","v":"Nov 2015"},{"$f":"'(Intermediate Computations)'!BZ161","v":"Dec 2015"},{"$f":"'(Intermediate Computations)'!CB161","v":"Jan 2016"},{"$f":"'(Intermediate Computations)'!CC161","v":"Feb 2016"},{"$f":"'(Intermediate Computations)'!CD161","v":"Mar 2016"},{"$f":"'(Intermediate Computations)'!CE161","v":"Apr 2016"},{"$f":"'(Intermediate Computations)'!CF161","v":"May 2016"},{"$f":"'(Intermediate Computations)'!CG161","v":"Jun 2016"},{"$f":"'(Intermediate Computations)'!CH161","v":"Jul 2016"},{"$f":"'(Intermediate Computations)'!CI161","v":"Aug 2016"},{"$f":"'(Intermediate Computations)'!CJ161","v":"Sep 2016"},{"$f":"'(Intermediate Computations)'!CK161","v":"Oct 2016"},{"$f":"'(Intermediate Computations)'!CL161","v":"Nov 2016"},{"$f":"'(Intermediate Computations)'!CM161","v":"Dec 2016"},{"$f":"'(Intermediate Computations)'!CO161","v":"Jan 2017"},{"$f":"'(Intermediate Computations)'!CP161","v":"Feb 2017"},{"$f":"'(Intermediate Computations)'!CQ161","v":"Mar 2017"},{"$f":"'(Intermediate Computations)'!CR161","v":"Apr 2017"},{"$f":"'(Intermediate Computations)'!CS161","v":"May 2017"},{"$f":"'(Intermediate Computations)'!CT161","v":"Jun 2017"},{"$f":"'(Intermediate Computations)'!CU161","v":"Jul 2017"},{"$f":"'(Intermediate Computations)'!CV161","v":"Aug 2017"},{"$f":"'(Intermediate Computations)'!CW161","v":"Sep 2017"},{"$f":"'(Intermediate Computations)'!CX161","v":"Oct 2017"},{"$f":"'(Intermediate Computations)'!CY161","v":"Nov 2017"},{"$f":"'(Intermediate Computations)'!CZ161","v":"Dec 2017"},{"$f":"'(Intermediate Computations)'!DB161","v":"Jan 2018"},{"$f":"'(Intermediate Computations)'!DC161","v":"Feb 2018"},{"$f":"'(Intermediate Computations)'!DD161","v":"Mar 2018"},{"$f":"'(Intermediate Computations)'!DE161","v":"Apr 2018"},{"$f":"'(Intermediate Computations)'!DF161","v":"May 2018"},{"$f":"'(Intermediate Computations)'!DG161","v":"Jun 2018"},{"$f":"'(Intermediate Computations)'!DH161","v":"Jul 2018"},{"$f":"'(Intermediate Computations)'!DI161","v":"Aug 2018"},{"$f":"'(Intermediate Computations)'!DJ161","v":"Sep 2018"},{"$f":"'(Intermediate Computations)'!DK161","v":"Oct 2018"},{"$f":"'(Intermediate Computations)'!DL161","v":"Nov 2018"},{"$f":"'(Intermediate Computations)'!DM161","v":"Dec 2018"},{"$f":"'(Intermediate Computations)'!DO161","v":"Jan 2019"},{"$f":"'(Intermediate Computations)'!DP161","v":"Feb 2019"},{"$f":"'(Intermediate Computations)'!DQ161","v":"Mar 2019"},{"$f":"'(Intermediate Computations)'!DR161","v":"Apr 2019"},{"$f":"'(Intermediate Computations)'!DS161","v":"May 2019"},{"$f":"'(Intermediate Computations)'!DT161","v":"Jun 2019"},{"$f":"'(Intermediate Computations)'!DU161","v":"Jul 2019"},{"$f":"'(Intermediate Computations)'!DV161","v":"Aug 2019"},{"$f":"'(Intermediate Computations)'!DW161","v":"Sep 2019"},{"$f":"'(Intermediate Computations)'!DX161","v":"Oct 2019"},{"$f":"'(Intermediate Computations)'!DY161","v":"Nov 2019"},{"$f":"'(Intermediate Computations)'!DZ161","v":"Dec 2019"},{"$f":"'(Intermediate Computations)'!EB161","v":"Jan 2020"},{"$f":"'(Intermediate Computations)'!EC161","v":"Feb 2020"},{"$f":"'(Intermediate Computations)'!ED161","v":"Mar 2020"},{"$f":"'(Intermediate Computations)'!EE161","v":"Apr 2020"},{"$f":"'(Intermediate Computations)'!EF161","v":"May 2020"},{"$f":"'(Intermediate Computations)'!EG161","v":"Jun 2020"},{"$f":"'(Intermediate Computations)'!EH161","v":"Jul 2020"},{"$f":"'(Intermediate Computations)'!EI161","v":"Aug 2020"},{"$f":"'(Intermediate Computations)'!EJ161","v":"Sep 2020"},{"$f":"'(Intermediate Computations)'!EK161","v":"Oct 2020"},{"$f":"'(Intermediate Computations)'!EL161","v":"Nov 2020"},{"$f":"'(Intermediate Computations)'!EM161","v":"Dec 2020"}]
[{"$f":"'(Intermediate Computations)'!B158","v":"2010-01-01"},{"$f":"'(Intermediate Computations)'!C158","v":"2010-02-01"},{"$f":"'(Intermediate Computations)'!D158","v":"2010-03-01"},{"$f":"'(Intermediate Computations)'!E158","v":"2010-04-01"},{"$f":"'(Intermediate Computations)'!F158","v":"2010-05-01"},{"$f":"'(Intermediate Computations)'!G158","v":"2010-06-01"},{"$f":"'(Intermediate Computations)'!H158","v":"2010-07-01"},{"$f":"'(Intermediate Computations)'!I158","v":"2010-08-01"},{"$f":"'(Intermediate Computations)'!J158","v":"2010-09-01"},{"$f":"'(Intermediate Computations)'!K158","v":"2010-10-01"},{"$f":"'(Intermediate Computations)'!L158","v":"2010-11-01"},{"$f":"'(Intermediate Computations)'!M158","v":"2010-12-01"},{"$f":"'(Intermediate Computations)'!O158","v":"2011-01-01"},{"$f":"'(Intermediate Computations)'!P158","v":"2011-02-01"},{"$f":"'(Intermediate Computations)'!Q158","v":"2011-03-01"},{"$f":"'(Intermediate Computations)'!R158","v":"2011-04-01"},{"$f":"'(Intermediate Computations)'!S158","v":"2011-05-01"},{"$f":"'(Intermediate Computations)'!T158","v":"2011-06-01"},{"$f":"'(Intermediate Computations)'!U158","v":"2011-07-01"},{"$f":"'(Intermediate Computations)'!V158","v":"2011-08-01"},{"$f":"'(Intermediate Computations)'!W158","v":"2011-09-01"},{"$f":"'(Intermediate Computations)'!X158","v":"2011-10-01"},{"$f":"'(Intermediate Computations)'!Y158","v":"2011-11-01"},{"$f":"'(Intermediate Computations)'!Z158","v":"2011-12-01"},{"$f":"'(Intermediate Computations)'!AB158","v":"2012-01-01"},{"$f":"'(Intermediate Computations)'!AC158","v":"2012-02-01"},{"$f":"'(Intermediate Computations)'!AD158","v":"2012-03-01"},{"$f":"'(Intermediate Computations)'!AE158","v":"2012-04-01"},{"$f":"'(Intermediate Computations)'!AF158","v":"2012-05-01"},{"$f":"'(Intermediate Computations)'!AG158","v":"2012-06-01"},{"$f":"'(Intermediate Computations)'!AH158","v":"2012-07-01"},{"$f":"'(Intermediate Computations)'!AI158","v":"2012-08-01"},{"$f":"'(Intermediate Computations)'!AJ158","v":"2012-09-01"},{"$f":"'(Intermediate Computations)'!AK158","v":"2012-10-01"},{"$f":"'(Intermediate Computations)'!AL158","v":"2012-11-01"},{"$f":"'(Intermediate Computations)'!AM158","v":"2012-12-01"},{"$f":"'(Intermediate Computations)'!AO158","v":"2013-01-01"},{"$f":"'(Intermediate Computations)'!AP158","v":"2013-02-01"},{"$f":"'(Intermediate Computations)'!AQ158","v":"2013-03-01"},{"$f":"'(Intermediate Computations)'!AR158","v":"2013-04-01"},{"$f":"'(Intermediate Computations)'!AS158","v":"2013-05-01"},{"$f":"'(Intermediate Computations)'!AT158","v":"2013-06-01"},{"$f":"'(Intermediate Computations)'!AU158","v":"2013-07-01"},{"$f":"'(Intermediate Computations)'!AV158","v":"2013-08-01"},{"$f":"'(Intermediate Computations)'!AW158","v":"2013-09-01"},{"$f":"'(Intermediate Computations)'!AX158","v":"2013-10-01"},{"$f":"'(Intermediate Computations)'!AY158","v":"2013-11-01"},{"$f":"'(Intermediate Computations)'!AZ158","v":"2013-12-01"},{"$f":"'(Intermediate Computations)'!BB158","v":"2014-01-01"},{"$f":"'(Intermediate Computations)'!BC158","v":"2014-02-01"},{"$f":"'(Intermediate Computations)'!BD158","v":"2014-03-01"},{"$f":"'(Intermediate Computations)'!BE158","v":"2014-04-01"},{"$f":"'(Intermediate Computations)'!BF158","v":"2014-05-01"},{"$f":"'(Intermediate Computations)'!BG158","v":"2014-06-01"},{"$f":"'(Intermediate Computations)'!BH158","v":"2014-07-01"},{"$f":"'(Intermediate Computations)'!BI158","v":"2014-08-01"},{"$f":"'(Intermediate Computations)'!BJ158","v":"2014-09-01"},{"$f":"'(Intermediate Computations)'!BK158","v":"2014-10-01"},{"$f":"'(Intermediate Computations)'!BL158","v":"2014-11-01"},{"$f":"'(Intermediate Computations)'!BM158","v":"2014-12-01"},{"$f":"'(Intermediate Computations)'!BO158","v":"2015-01-01"},{"$f":"'(Intermediate Computations)'!BP158","v":"2015-02-01"},{"$f":"'(Intermediate Computations)'!BQ158","v":"2015-03-01"},{"$f":"'(Intermediate Computations)'!BR158","v":"2015-04-01"},{"$f":"'(Intermediate Computations)'!BS158","v":"2015-05-01"},{"$f":"'(Intermediate Computations)'!BT158","v":"2015-06-01"},{"$f":"'(Intermediate Computations)'!BU158","v":"2015-07-01"},{"$f":"'(Intermediate Computations)'!BV158","v":"2015-08-01"},{"$f":"'(Intermediate Computations)'!BW158","v":"2015-09-01"},{"$f":"'(Intermediate Computations)'!BX158","v":"2015-10-01"},{"$f":"'(Intermediate Computations)'!BY158","v":"2015-11-01"},{"$f":"'(Intermediate Computations)'!BZ158","v":"2015-12-01"},{"$f":"'(Intermediate Computations)'!CB158","v":"2016-01-01"},{"$f":"'(Intermediate Computations)'!CC158","v":"2016-02-01"},{"$f":"'(Intermediate Computations)'!CD158","v":"2016-03-01"},{"$f":"'(Intermediate Computations)'!CE158","v":"2016-04-01"},{"$f":"'(Intermediate Computations)'!CF158","v":"2016-05-01"},{"$f":"'(Intermediate Computations)'!CG158","v":"2016-06-01"},{"$f":"'(Intermediate Computations)'!CH158","v":"2016-07-01"},{"$f":"'(Intermediate Computations)'!CI158","v":"2016-08-01"},{"$f":"'(Intermediate Computations)'!CJ158","v":"2016-09-01"},{"$f":"'(Intermediate Computations)'!CK158","v":"2016-10-01"},{"$f":"'(Intermediate Computations)'!CL158","v":"2016-11-01"},{"$f":"'(Intermediate Computations)'!CM158","v":"2016-12-01"},{"$f":"'(Intermediate Computations)'!CO158","v":"2017-01-01"},{"$f":"'(Intermediate Computations)'!CP158","v":"2017-02-01"},{"$f":"'(Intermediate Computations)'!CQ158","v":"2017-03-01"},{"$f":"'(Intermediate Computations)'!CR158","v":"2017-04-01"},{"$f":"'(Intermediate Computations)'!CS158","v":"2017-05-01"},{"$f":"'(Intermediate Computations)'!CT158","v":"2017-06-01"},{"$f":"'(Intermediate Computations)'!CU158","v":"2017-07-01"},{"$f":"'(Intermediate Computations)'!CV158","v":"2017-08-01"},{"$f":"'(Intermediate Computations)'!CW158","v":"2017-09-01"},{"$f":"'(Intermediate Computations)'!CX158","v":"2017-10-01"},{"$f":"'(Intermediate Computations)'!CY158","v":"2017-11-01"},{"$f":"'(Intermediate Computations)'!CZ158","v":"2017-12-01"},{"$f":"'(Intermediate Computations)'!DB158","v":"2018-01-01"},{"$f":"'(Intermediate Computations)'!DC158","v":"2018-02-01"},{"$f":"'(Intermediate Computations)'!DD158","v":"2018-03-01"},{"$f":"'(Intermediate Computations)'!DE158","v":"2018-04-01"},{"$f":"'(Intermediate Computations)'!DF158","v":"2018-05-01"},{"$f":"'(Intermediate Computations)'!DG158","v":"2018-06-01"},{"$f":"'(Intermediate Computations)'!DH158","v":"2018-07-01"},{"$f":"'(Intermediate Computations)'!DI158","v":"2018-08-01"},{"$f":"'(Intermediate Computations)'!DJ158","v":"2018-09-01"},{"$f":"'(Intermediate Computations)'!DK158","v":"2018-10-01"},{"$f":"'(Intermediate Computations)'!DL158","v":"2018-11-01"},{"$f":"'(Intermediate Computations)'!DM158","v":"2018-12-01"},{"$f":"'(Intermediate Computations)'!DO158","v":"2019-01-01"},{"$f":"'(Intermediate Computations)'!DP158","v":"2019-02-01"},{"$f":"'(Intermediate Computations)'!DQ158","v":"2019-03-01"},{"$f":"'(Intermediate Computations)'!DR158","v":"2019-04-01"},{"$f":"'(Intermediate Computations)'!DS158","v":"2019-05-01"},{"$f":"'(Intermediate Computations)'!DT158","v":"2019-06-01"},{"$f":"'(Intermediate Computations)'!DU158","v":"2019-07-01"},{"$f":"'(Intermediate Computations)'!DV158","v":"2019-08-01"},{"$f":"'(Intermediate Computations)'!DW158","v":"2019-09-01"},{"$f":"'(Intermediate Computations)'!DX158","v":"2019-10-01"},{"$f":"'(Intermediate Computations)'!DY158","v":"2019-11-01"},{"$f":"'(Intermediate Computations)'!DZ158","v":"2019-12-01"},{"$f":"'(Intermediate Computations)'!EB158","v":"2020-01-01"},{"$f":"'(Intermediate Computations)'!EC158","v":"2020-02-01"},{"$f":"'(Intermediate Computations)'!ED158","v":"2020-03-01"},{"$f":"'(Intermediate Computations)'!EE158","v":"2020-04-01"},{"$f":"'(Intermediate Computations)'!EF158","v":"2020-05-01"},{"$f":"'(Intermediate Computations)'!EG158","v":"2020-06-01"},{"$f":"'(Intermediate Computations)'!EH158","v":"2020-07-01"},{"$f":"'(Intermediate Computations)'!EI158","v":"2020-08-01"},{"$f":"'(Intermediate Computations)'!EJ158","v":"2020-09-01"},{"$f":"'(Intermediate Computations)'!EK158","v":"2020-10-01"},{"$f":"'(Intermediate Computations)'!EL158","v":"2020-11-01"},{"$f":"'(Intermediate Computations)'!EM158","v":"2020-12-01"}]
[{"$f":"'Statistical Moments'!B40","v":{"v":0,"d":"0.00"}},{"$f":"'Statistical Moments'!C40","v":{"v":0,"d":"0.00"}},{"$f":"'Statistical Moments'!D40","v":{"v":5.9111771478653709E-4,"d":"0.00"}},{"$f":"'Statistical Moments'!E40","v":{"v":1.068062464344918E-3,"d":"0.00"}},{"$f":"'Statistical Moments'!F40","v":{"v":0.002014930219709678,"d":"0.00"}},{"$f":"'Statistical Moments'!G40","v":{"v":2.968527007967842E-3,"d":"0.00"}},{"$f":"'Statistical Moments'!H40","v":{"v":0.004315861294986556,"d":"0.00"}},{"$f":"'Statistical Moments'!I40","v":{"v":0.005855999485373567,"d":"0.01"}},{"$f":"'Statistical Moments'!J40","v":{"v":0.007586994413287442,"d":"0.01"}},{"$f":"'Statistical Moments'!K40","v":{"v":0.009295867793995842,"d":"0.01"}},{"$f":"'Statistical Moments'!L40","v":{"v":0.010751735161736518,"d":"0.01"}},{"$f":"'Statistical Moments'!M40","v":{"v":0.01262886243628564,"d":"0.01"}},{"$f":"'Statistical Moments'!O40","v":{"v":0.01492439053022593,"d":"0.01"}},{"$f":"'Statistical Moments'!P40","v":{"v":0.01742455595248652,"d":"0.02"}},{"$f":"'Statistical Moments'!Q40","v":{"v":0.01995638131485522,"d":"0.02"}},{"$f":"'Statistical Moments'!R40","v":{"v":0.02255794720095348,"d":"0.02"}},{"$f":"'Statistical Moments'!S40","v":{"v":0.02481666276194261,"d":"0.02"}},{"$f":"'Statistical Moments'!T40","v":{"v":0.027288722434009795,"d":"0.03"}},{"$f":"'Statistical Moments'!U40","v":{"v":0.029821262176536068,"d":"0.03"}},{"$f":"'Statistical Moments'!V40","v":{"v":0.03188949992553029,"d":"0.03"}},{"$f":"'Statistical Moments'!W40","v":{"v":0.03370797476165954,"d":"0.03"}},{"$f":"'Statistical Moments'!X40","v":{"v":0.035514266709270895,"d":"0.04"}},{"$f":"'Statistical Moments'!Y40","v":{"v":0.03719914230138663,"d":"0.04"}},{"$f":"'Statistical Moments'!Z40","v":{"v":0.03946321219643316,"d":"0.04"}},{"$f":"'Statistical Moments'!AB40","v":{"v":0.042053120036219575,"d":"0.04"}},{"$f":"'Statistical Moments'!AC40","v":{"v":0.0444055013939222,"d":"0.04"}},{"$f":"'Statistical Moments'!AD40","v":{"v":0.04639494921572967,"d":"0.05"}},{"$f":"'Statistical Moments'!AE40","v":{"v":0.04858278371352872,"d":"0.05"}},{"$f":"'Statistical Moments'!AF40","v":{"v":0.05075772179499166,"d":"0.05"}},{"$f":"'Statistical Moments'!AG40","v":{"v":0.053404373629601536,"d":"0.05"}},{"$f":"'Statistical Moments'!AH40","v":{"v":0.056393141098704455,"d":"0.06"}},{"$f":"'Statistical Moments'!AI40","v":{"v":0.05938998185521823,"d":"0.06"}},{"$f":"'Statistical Moments'!AJ40","v":{"v":0.0624839688916306,"d":"0.06"}},{"$f":"'Statistical Moments'!AK40","v":{"v":0.06546983809453584,"d":"0.07"}},{"$f":"'Statistical Moments'!AL40","v":{"v":0.06838197134278394,"d":"0.07"}},{"$f":"'Statistical Moments'!AM40","v":{"v":0.07118252695429612,"d":"0.07"}},{"$f":"'Statistical Moments'!AO40","v":{"v":0.07403279990250862,"d":"0.07"}},{"$f":"'Statistical Moments'!AP40","v":{"v":0.07726555580845226,"d":"0.08"}},{"$f":"'Statistical Moments'!AQ40","v":{"v":0.08013318538248283,"d":"0.08"}},{"$f":"'Statistical Moments'!AR40","v":{"v":0.08289955877599768,"d":"0.08"}},{"$f":"'Statistical Moments'!AS40","v":{"v":0.08578588731178635,"d":"0.09"}},{"$f":"'Statistical Moments'!AT40","v":{"v":0.08902984441696364,"d":"0.09"}},{"$f":"'Statistical Moments'!AU40","v":{"v":0.09227999894965747,"d":"0.09"}},{"$f":"'Statistical Moments'!AV40","v":{"v":0.09517045924108382,"d":"0.10"}},{"$f":"'Statistical Moments'!AW40","v":{"v":0.09758016363096224,"d":"0.10"}},{"$f":"'Statistical Moments'!AX40","v":{"v":0.09984650108391784,"d":"0.10"}},{"$f":"'Statistical Moments'!AY40","v":{"v":0.10188821270779705,"d":"0.10"}},{"$f":"'Statistical Moments'!AZ40","v":{"v":0.10367244048040453,"d":"0.10"}},{"$f":"'Statistical Moments'!BB40","v":{"v":0.10547634018838788,"d":"0.11"}},{"$f":"'Statistical Moments'!BC40","v":{"v":0.10750608435756688,"d":"0.11"}},{"$f":"'Statistical Moments'!BD40","v":{"v":0.10890203260325693,"d":"0.11"}},{"$f":"'Statistical Moments'!BE40","v":{"v":0.11001586238401025,"d":"0.11"}},{"$f":"'Statistical Moments'!BF40","v":{"v":0.11139306551234368,"d":"0.11"}},{"$f":"'Statistical Moments'!BG40","v":{"v":0.11273388533481947,"d":"0.11"}},{"$f":"'Statistical Moments'!BH40","v":{"v":0.11437528585597953,"d":"0.11"}},{"$f":"'Statistical Moments'!BI40","v":{"v":0.11633743662893954,"d":"0.12"}},{"$f":"'Statistical Moments'!BJ40","v":{"v":0.11875441608947471,"d":"0.12"}},{"$f":"'Statistical Moments'!BK40","v":{"v":0.12094637468712592,"d":"0.12"}},{"$f":"'Statistical Moments'!BL40","v":{"v":0.1233212315727578,"d":"0.12"}},{"$f":"'Statistical Moments'!BM40","v":{"v":0.12520442975277052,"d":"0.13"}},{"$f":"'Statistical Moments'!BO40","v":{"v":0.12646588737121195,"d":"0.13"}},{"$f":"'Statistical Moments'!BP40","v":{"v":0.12761301089630703,"d":"0.13"}},{"$f":"'Statistical Moments'!BQ40","v":{"v":0.12821174066666766,"d":"0.13"}},{"$f":"'Statistical Moments'!BR40","v":{"v":0.12811031951501084,"d":"0.13"}},{"$f":"'Statistical Moments'!BS40","v":{"v":0.128313934911641,"d":"0.13"}},{"$f":"'Statistical Moments'!BT40","v":{"v":0.1288577095810877,"d":"0.13"}},{"$f":"'Statistical Moments'!BU40","v":{"v":0.12959109541198788,"d":"0.13"}},{"$f":"'Statistical Moments'!BV40","v":{"v":0.13029135942141865,"d":"0.13"}},{"$f":"'Statistical Moments'!BW40","v":{"v":0.13145441744719277,"d":"0.13"}},{"$f":"'Statistical Moments'!BX40","v":{"v":0.13298511052965412,"d":"0.13"}},{"$f":"'Statistical Moments'!BY40","v":{"v":0.13515697597880144,"d":"0.14"}},{"$f":"'Statistical Moments'!BZ40","v":{"v":0.13706570560946638,"d":"0.14"}},{"$f":"'Statistical Moments'!CB40","v":{"v":0.13847460678369697,"d":"0.14"}},{"$f":"'Statistical Moments'!CC40","v":{"v":0.13956674694164925,"d":"0.14"}},{"$f":"'Statistical Moments'!CD40","v":{"v":0.14071505617866342,"d":"0.14"}},{"$f":"'Statistical Moments'!CE40","v":{"v":0.1418513430613571,"d":"0.14"}},{"$f":"'Statistical Moments'!CF40","v":{"v":0.1433665521844824,"d":"0.14"}},{"$f":"'Statistical Moments'!CG40","v":{"v":0.14464063663293328,"d":"0.14"}},{"$f":"'Statistical Moments'!CH40","v":{"v":0.14574060243301543,"d":"0.15"}},{"$f":"'Statistical Moments'!CI40","v":{"v":0.14712893190994075,"d":"0.15"}},{"$f":"'Statistical Moments'!CJ40","v":{"v":0.14796828042450547,"d":"0.15"}},{"$f":"'Statistical Moments'!CK40","v":{"v":0.14841077973236763,"d":"0.15"}},{"$f":"'Statistical Moments'!CL40","v":{"v":0.14926575385315177,"d":"0.15"}},{"$f":"'Statistical Moments'!CM40","v":{"v":0.14998649517498644,"d":"0.15"}},{"$f":"'Statistical Moments'!CO40","v":{"v":0.15060605005429784,"d":"0.15"}},{"$f":"'Statistical Moments'!CP40","v":{"v":0.15150425305076945,"d":"0.15"}},{"$f":"'Statistical Moments'!CQ40","v":{"v":0.15279766218065002,"d":"0.15"}},{"$f":"'Statistical Moments'!CR40","v":{"v":0.15416171517519076,"d":"0.15"}},{"$f":"'Statistical Moments'!CS40","v":{"v":0.15541569417025275,"d":"0.16"}},{"$f":"'Statistical Moments'!CT40","v":{"v":0.15685152366750316,"d":"0.16"}},{"$f":"'Statistical Moments'!CU40","v":{"v":0.15791129593869788,"d":"0.16"}},{"$f":"'Statistical Moments'!CV40","v":{"v":0.15915113426311484,"d":"0.16"}},{"$f":"'Statistical Moments'!CW40","v":{"v":0.16036279490909483,"d":"0.16"}},{"$f":"'Statistical Moments'!CX40","v":{"v":0.16139855049240756,"d":"0.16"}},{"$f":"'Statistical Moments'!CY40","v":{"v":0.16219332277285425,"d":"0.16"}},{"$f":"'Statistical Moments'!CZ40","v":{"v":0.16339382012276482,"d":"0.16"}},{"$f":"'Statistical Moments'!DB40","v":{"v":0.1647926304902982,"d":"0.16"}},{"$f":"'Statistical Moments'!DC40","v":{"v":0.16579380094044097,"d":"0.17"}},{"$f":"'Statistical Moments'!DD40","v":{"v":0.1676787215314186,"d":"0.17"}},{"$f":"'Statistical Moments'!DE40","v":{"v":0.16972496810388535,"d":"0.17"}},{"$f":"'Statistical Moments'!DF40","v":{"v":0.17137211380826764,"d":"0.17"}},{"$f":"'Statistical Moments'!DG40","v":{"v":0.17274384517550276,"d":"0.17"}},{"$f":"'Statistical Moments'!DH40","v":{"v":0.17384782920876665,"d":"0.17"}},{"$f":"'Statistical Moments'!DI40","v":{"v":0.17450870561817436,"d":"0.17"}},{"$f":"'Statistical Moments'!DJ40","v":{"v":0.1749688532151081,"d":"0.17"}},{"$f":"'Statistical Moments'!DK40","v":{"v":0.17487577036517768,"d":"0.17"}},{"$f":"'Statistical Moments'!DL40","v":{"v":0.175039800548153,"d":"0.18"}},{"$f":"'Statistical Moments'!DM40","v":{"v":0.1749266766055141,"d":"0.17"}},{"$f":"'Statistical Moments'!DO40","v":{"v":0.1751035701837319,"d":"0.18"}},{"$f":"'Statistical Moments'!DP40","v":{"v":0.1753062940316722,"d":"0.18"}},{"$f":"'Statistical Moments'!DQ40","v":{"v":0.17485803260325947,"d":"0.17"}},{"$f":"'Statistical Moments'!DR40","v":{"v":0.17384038529113705,"d":"0.17"}},{"$f":"'Statistical Moments'!DS40","v":{"v":0.17303045645881712,"d":"0.17"}},{"$f":"'Statistical Moments'!DT40","v":{"v":0.17257499800512519,"d":"0.17"}},{"$f":"'Statistical Moments'!DU40","v":{"v":0.17198139352817288,"d":"0.17"}},{"$f":"'Statistical Moments'!DV40","v":{"v":0.17155818680688772,"d":"0.17"}},{"$f":"'Statistical Moments'!DW40","v":{"v":0.17160021059288394,"d":"0.17"}},{"$f":"'Statistical Moments'!DX40","v":{"v":0.17177387651790327,"d":"0.17"}},{"$f":"'Statistical Moments'!DY40","v":{"v":0.17242803892723366,"d":"0.17"}},{"$f":"'Statistical Moments'!DZ40","v":{"v":0.172517122831962,"d":"0.17"}},{"$f":"'Statistical Moments'!EB40","v":{"v":0.1726305040245342,"d":"0.17"}},{"$f":"'Statistical Moments'!EC40","v":{"v":0.17285945760076138,"d":"0.17"}},{"$f":"'Statistical Moments'!ED40","v":{"v":0.17274286193400862,"d":"0.17"}},{"$f":"'Statistical Moments'!EE40","v":{"v":0.17247408948525955,"d":"0.17"}},{"$f":"'Statistical Moments'!EF40","v":{"v":0.1725970541267645,"d":"0.17"}},{"$f":"'Statistical Moments'!EG40","v":{"v":0.17257220369795653,"d":"0.17"}},{"$f":"'Statistical Moments'!EH40","v":{"v":0.17207697276591485,"d":"0.17"}},{"$f":"'Statistical Moments'!EI40","v":{"v":0.1718857207437655,"d":"0.17"}},{"$f":"'Statistical Moments'!EJ40","v":{"v":0.1720225335965253,"d":"0.17"}},{"$f":"'Statistical Moments'!EK40","v":{"v":0.17246956186420248,"d":"0.17"}},{"$f":"'Statistical Moments'!EL40","v":{"v":0.1733337172971975,"d":"0.17"}},{"$f":"'Statistical Moments'!EM40","v":{"v":0.17380348914584623,"d":"0.17"}}]
[{"$f":"'(Intermediate Computations)'!B167","v":"Jan 2010"},{"$f":"'(Intermediate Computations)'!C167","v":"Feb 2010"},{"$f":"'(Intermediate Computations)'!D167","v":"Mar 2010"},{"$f":"'(Intermediate Computations)'!E167","v":"Apr 2010"},{"$f":"'(Intermediate Computations)'!F167","v":"May 2010"},{"$f":"'(Intermediate Computations)'!G167","v":"Jun 2010"},{"$f":"'(Intermediate Computations)'!H167","v":"Jul 2010"},{"$f":"'(Intermediate Computations)'!I167","v":"Aug 2010"},{"$f":"'(Intermediate Computations)'!J167","v":"Sep 2010"},{"$f":"'(Intermediate Computations)'!K167","v":"Oct 2010"},{"$f":"'(Intermediate Computations)'!L167","v":"Nov 2010"},{"$f":"'(Intermediate Computations)'!M167","v":"Dec 2010"},{"$f":"'(Intermediate Computations)'!O167","v":"Jan 2011"},{"$f":"'(Intermediate Computations)'!P167","v":"Feb 2011"},{"$f":"'(Intermediate Computations)'!Q167","v":"Mar 2011"},{"$f":"'(Intermediate Computations)'!R167","v":"Apr 2011"},{"$f":"'(Intermediate Computations)'!S167","v":"May 2011"},{"$f":"'(Intermediate Computations)'!T167","v":"Jun 2011"},{"$f":"'(Intermediate Computations)'!U167","v":"Jul 2011"},{"$f":"'(Intermediate Computations)'!V167","v":"Aug 2011"},{"$f":"'(Intermediate Computations)'!W167","v":"Sep 2011"},{"$f":"'(Intermediate Computations)'!X167","v":"Oct 2011"},{"$f":"'(Intermediate Computations)'!Y167","v":"Nov 2011"},{"$f":"'(Intermediate Computations)'!Z167","v":"Dec 2011"},{"$f":"'(Intermediate Computations)'!AB167","v":"Jan 2012"},{"$f":"'(Intermediate Computations)'!AC167","v":"Feb 2012"},{"$f":"'(Intermediate Computations)'!AD167","v":"Mar 2012"},{"$f":"'(Intermediate Computations)'!AE167","v":"Apr 2012"},{"$f":"'(Intermediate Computations)'!AF167","v":"May 2012"},{"$f":"'(Intermediate Computations)'!AG167","v":"Jun 2012"},{"$f":"'(Intermediate Computations)'!AH167","v":"Jul 2012"},{"$f":"'(Intermediate Computations)'!AI167","v":"Aug 2012"},{"$f":"'(Intermediate Computations)'!AJ167","v":"Sep 2012"},{"$f":"'(Intermediate Computations)'!AK167","v":"Oct 2012"},{"$f":"'(Intermediate Computations)'!AL167","v":"Nov 2012"},{"$f":"'(Intermediate Computations)'!AM167","v":"Dec 2012"},{"$f":"'(Intermediate Computations)'!AO167","v":"Jan 2013"},{"$f":"'(Intermediate Computations)'!AP167","v":"Feb 2013"},{"$f":"'(Intermediate Computations)'!AQ167","v":"Mar 2013"},{"$f":"'(Intermediate Computations)'!AR167","v":"Apr 2013"},{"$f":"'(Intermediate Computations)'!AS167","v":"May 2013"},{"$f":"'(Intermediate Computations)'!AT167","v":"Jun 2013"},{"$f":"'(Intermediate Computations)'!AU167","v":"Jul 2013"},{"$f":"'(Intermediate Computations)'!AV167","v":"Aug 2013"},{"$f":"'(Intermediate Computations)'!AW167","v":"Sep 2013"},{"$f":"'(Intermediate Computations)'!AX167","v":"Oct 2013"},{"$f":"'(Intermediate Computations)'!AY167","v":"Nov 2013"},{"$f":"'(Intermediate Computations)'!AZ167","v":"Dec 2013"},{"$f":"'(Intermediate Computations)'!BB167","v":"Jan 2014"},{"$f":"'(Intermediate Computations)'!BC167","v":"Feb 2014"},{"$f":"'(Intermediate Computations)'!BD167","v":"Mar 2014"},{"$f":"'(Intermediate Computations)'!BE167","v":"Apr 2014"},{"$f":"'(Intermediate Computations)'!BF167","v":"May 2014"},{"$f":"'(Intermediate Computations)'!BG167","v":"Jun 2014"},{"$f":"'(Intermediate Computations)'!BH167","v":"Jul 2014"},{"$f":"'(Intermediate Computations)'!BI167","v":"Aug 2014"},{"$f":"'(Intermediate Computations)'!BJ167","v":"Sep 2014"},{"$f":"'(Intermediate Computations)'!BK167","v":"Oct 2014"},{"$f":"'(Intermediate Computations)'!BL167","v":"Nov 2014"},{"$f":"'(Intermediate Computations)'!BM167","v":"Dec 2014"},{"$f":"'(Intermediate Computations)'!BO167","v":"Jan 2015"},{"$f":"'(Intermediate Computations)'!BP167","v":"Feb 2015"},{"$f":"'(Intermediate Computations)'!BQ167","v":"Mar 2015"},{"$f":"'(Intermediate Computations)'!BR167","v":"Apr 2015"},{"$f":"'(Intermediate Computations)'!BS167","v":"May 2015"},{"$f":"'(Intermediate Computations)'!BT167","v":"Jun 2015"},{"$f":"'(Intermediate Computations)'!BU167","v":"Jul 2015"},{"$f":"'(Intermediate Computations)'!BV167","v":"Aug 2015"},{"$f":"'(Intermediate Computations)'!BW167","v":"Sep 2015"},{"$f":"'(Intermediate Computations)'!BX167","v":"Oct 2015"},{"$f":"'(Intermediate Computations)'!BY167","v":"Nov 2015"},{"$f":"'(Intermediate Computations)'!BZ167","v":"Dec 2015"},{"$f":"'(Intermediate Computations)'!CB167","v":"Jan 2016"},{"$f":"'(Intermediate Computations)'!CC167","v":"Feb 2016"},{"$f":"'(Intermediate Computations)'!CD167","v":"Mar 2016"},{"$f":"'(Intermediate Computations)'!CE167","v":"Apr 2016"},{"$f":"'(Intermediate Computations)'!CF167","v":"May 2016"},{"$f":"'(Intermediate Computations)'!CG167","v":"Jun 2016"},{"$f":"'(Intermediate Computations)'!CH167","v":"Jul 2016"},{"$f":"'(Intermediate Computations)'!CI167","v":"Aug 2016"},{"$f":"'(Intermediate Computations)'!CJ167","v":"Sep 2016"},{"$f":"'(Intermediate Computations)'!CK167","v":"Oct 2016"},{"$f":"'(Intermediate Computations)'!CL167","v":"Nov 2016"},{"$f":"'(Intermediate Computations)'!CM167","v":"Dec 2016"},{"$f":"'(Intermediate Computations)'!CO167","v":"Jan 2017"},{"$f":"'(Intermediate Computations)'!CP167","v":"Feb 2017"},{"$f":"'(Intermediate Computations)'!CQ167","v":"Mar 2017"},{"$f":"'(Intermediate Computations)'!CR167","v":"Apr 2017"},{"$f":"'(Intermediate Computations)'!CS167","v":"May 2017"},{"$f":"'(Intermediate Computations)'!CT167","v":"Jun 2017"},{"$f":"'(Intermediate Computations)'!CU167","v":"Jul 2017"},{"$f":"'(Intermediate Computations)'!CV167","v":"Aug 2017"},{"$f":"'(Intermediate Computations)'!CW167","v":"Sep 2017"},{"$f":"'(Intermediate Computations)'!CX167","v":"Oct 2017"},{"$f":"'(Intermediate Computations)'!CY167","v":"Nov 2017"},{"$f":"'(Intermediate Computations)'!CZ167","v":"Dec 2017"},{"$f":"'(Intermediate Computations)'!DB167","v":"Jan 2018"},{"$f":"'(Intermediate Computations)'!DC167","v":"Feb 2018"},{"$f":"'(Intermediate Computations)'!DD167","v":"Mar 2018"},{"$f":"'(Intermediate Computations)'!DE167","v":"Apr 2018"},{"$f":"'(Intermediate Computations)'!DF167","v":"May 2018"},{"$f":"'(Intermediate Computations)'!DG167","v":"Jun 2018"},{"$f":"'(Intermediate Computations)'!DH167","v":"Jul 2018"},{"$f":"'(Intermediate Computations)'!DI167","v":"Aug 2018"},{"$f":"'(Intermediate Computations)'!DJ167","v":"Sep 2018"},{"$f":"'(Intermediate Computations)'!DK167","v":"Oct 2018"},{"$f":"'(Intermediate Computations)'!DL167","v":"Nov 2018"},{"$f":"'(Intermediate Computations)'!DM167","v":"Dec 2018"},{"$f":"'(Intermediate Computations)'!DO167","v":"Jan 2019"},{"$f":"'(Intermediate Computations)'!DP167","v":"Feb 2019"},{"$f":"'(Intermediate Computations)'!DQ167","v":"Mar 2019"},{"$f":"'(Intermediate Computations)'!DR167","v":"Apr 2019"},{"$f":"'(Intermediate Computations)'!DS167","v":"May 2019"},{"$f":"'(Intermediate Computations)'!DT167","v":"Jun 2019"},{"$f":"'(Intermediate Computations)'!DU167","v":"Jul 2019"},{"$f":"'(Intermediate Computations)'!DV167","v":"Aug 2019"},{"$f":"'(Intermediate Computations)'!DW167","v":"Sep 2019"},{"$f":"'(Intermediate Computations)'!DX167","v":"Oct 2019"},{"$f":"'(Intermediate Computations)'!DY167","v":"Nov 2019"},{"$f":"'(Intermediate Computations)'!DZ167","v":"Dec 2019"},{"$f":"'(Intermediate Computations)'!EB167","v":"Jan 2020"},{"$f":"'(Intermediate Computations)'!EC167","v":"Feb 2020"},{"$f":"'(Intermediate Computations)'!ED167","v":"Mar 2020"},{"$f":"'(Intermediate Computations)'!EE167","v":"Apr 2020"},{"$f":"'(Intermediate Computations)'!EF167","v":"May 2020"},{"$f":"'(Intermediate Computations)'!EG167","v":"Jun 2020"},{"$f":"'(Intermediate Computations)'!EH167","v":"Jul 2020"},{"$f":"'(Intermediate Computations)'!EI167","v":"Aug 2020"},{"$f":"'(Intermediate Computations)'!EJ167","v":"Sep 2020"},{"$f":"'(Intermediate Computations)'!EK167","v":"Oct 2020"},{"$f":"'(Intermediate Computations)'!EL167","v":"Nov 2020"},{"$f":"'(Intermediate Computations)'!EM167","v":"Dec 2020"}]
[{"$f":"'(Intermediate Computations)'!B164","v":"2010-01-01"},{"$f":"'(Intermediate Computations)'!C164","v":"2010-02-01"},{"$f":"'(Intermediate Computations)'!D164","v":"2010-03-01"},{"$f":"'(Intermediate Computations)'!E164","v":"2010-04-01"},{"$f":"'(Intermediate Computations)'!F164","v":"2010-05-01"},{"$f":"'(Intermediate Computations)'!G164","v":"2010-06-01"},{"$f":"'(Intermediate Computations)'!H164","v":"2010-07-01"},{"$f":"'(Intermediate Computations)'!I164","v":"2010-08-01"},{"$f":"'(Intermediate Computations)'!J164","v":"2010-09-01"},{"$f":"'(Intermediate Computations)'!K164","v":"2010-10-01"},{"$f":"'(Intermediate Computations)'!L164","v":"2010-11-01"},{"$f":"'(Intermediate Computations)'!M164","v":"2010-12-01"},{"$f":"'(Intermediate Computations)'!O164","v":"2011-01-01"},{"$f":"'(Intermediate Computations)'!P164","v":"2011-02-01"},{"$f":"'(Intermediate Computations)'!Q164","v":"2011-03-01"},{"$f":"'(Intermediate Computations)'!R164","v":"2011-04-01"},{"$f":"'(Intermediate Computations)'!S164","v":"2011-05-01"},{"$f":"'(Intermediate Computations)'!T164","v":"2011-06-01"},{"$f":"'(Intermediate Computations)'!U164","v":"2011-07-01"},{"$f":"'(Intermediate Computations)'!V164","v":"2011-08-01"},{"$f":"'(Intermediate Computations)'!W164","v":"2011-09-01"},{"$f":"'(Intermediate Computations)'!X164","v":"2011-10-01"},{"$f":"'(Intermediate Computations)'!Y164","v":"2011-11-01"},{"$f":"'(Intermediate Computations)'!Z164","v":"2011-12-01"},{"$f":"'(Intermediate Computations)'!AB164","v":"2012-01-01"},{"$f":"'(Intermediate Computations)'!AC164","v":"2012-02-01"},{"$f":"'(Intermediate Computations)'!AD164","v":"2012-03-01"},{"$f":"'(Intermediate Computations)'!AE164","v":"2012-04-01"},{"$f":"'(Intermediate Computations)'!AF164","v":"2012-05-01"},{"$f":"'(Intermediate Computations)'!AG164","v":"2012-06-01"},{"$f":"'(Intermediate Computations)'!AH164","v":"2012-07-01"},{"$f":"'(Intermediate Computations)'!AI164","v":"2012-08-01"},{"$f":"'(Intermediate Computations)'!AJ164","v":"2012-09-01"},{"$f":"'(Intermediate Computations)'!AK164","v":"2012-10-01"},{"$f":"'(Intermediate Computations)'!AL164","v":"2012-11-01"},{"$f":"'(Intermediate Computations)'!AM164","v":"2012-12-01"},{"$f":"'(Intermediate Computations)'!AO164","v":"2013-01-01"},{"$f":"'(Intermediate Computations)'!AP164","v":"2013-02-01"},{"$f":"'(Intermediate Computations)'!AQ164","v":"2013-03-01"},{"$f":"'(Intermediate Computations)'!AR164","v":"2013-04-01"},{"$f":"'(Intermediate Computations)'!AS164","v":"2013-05-01"},{"$f":"'(Intermediate Computations)'!AT164","v":"2013-06-01"},{"$f":"'(Intermediate Computations)'!AU164","v":"2013-07-01"},{"$f":"'(Intermediate Computations)'!AV164","v":"2013-08-01"},{"$f":"'(Intermediate Computations)'!AW164","v":"2013-09-01"},{"$f":"'(Intermediate Computations)'!AX164","v":"2013-10-01"},{"$f":"'(Intermediate Computations)'!AY164","v":"2013-11-01"},{"$f":"'(Intermediate Computations)'!AZ164","v":"2013-12-01"},{"$f":"'(Intermediate Computations)'!BB164","v":"2014-01-01"},{"$f":"'(Intermediate Computations)'!BC164","v":"2014-02-01"},{"$f":"'(Intermediate Computations)'!BD164","v":"2014-03-01"},{"$f":"'(Intermediate Computations)'!BE164","v":"2014-04-01"},{"$f":"'(Intermediate Computations)'!BF164","v":"2014-05-01"},{"$f":"'(Intermediate Computations)'!BG164","v":"2014-06-01"},{"$f":"'(Intermediate Computations)'!BH164","v":"2014-07-01"},{"$f":"'(Intermediate Computations)'!BI164","v":"2014-08-01"},{"$f":"'(Intermediate Computations)'!BJ164","v":"2014-09-01"},{"$f":"'(Intermediate Computations)'!BK164","v":"2014-10-01"},{"$f":"'(Intermediate Computations)'!BL164","v":"2014-11-01"},{"$f":"'(Intermediate Computations)'!BM164","v":"2014-12-01"},{"$f":"'(Intermediate Computations)'!BO164","v":"2015-01-01"},{"$f":"'(Intermediate Computations)'!BP164","v":"2015-02-01"},{"$f":"'(Intermediate Computations)'!BQ164","v":"2015-03-01"},{"$f":"'(Intermediate Computations)'!BR164","v":"2015-04-01"},{"$f":"'(Intermediate Computations)'!BS164","v":"2015-05-01"},{"$f":"'(Intermediate Computations)'!BT164","v":"2015-06-01"},{"$f":"'(Intermediate Computations)'!BU164","v":"2015-07-01"},{"$f":"'(Intermediate Computations)'!BV164","v":"2015-08-01"},{"$f":"'(Intermediate Computations)'!BW164","v":"2015-09-01"},{"$f":"'(Intermediate Computations)'!BX164","v":"2015-10-01"},{"$f":"'(Intermediate Computations)'!BY164","v":"2015-11-01"},{"$f":"'(Intermediate Computations)'!BZ164","v":"2015-12-01"},{"$f":"'(Intermediate Computations)'!CB164","v":"2016-01-01"},{"$f":"'(Intermediate Computations)'!CC164","v":"2016-02-01"},{"$f":"'(Intermediate Computations)'!CD164","v":"2016-03-01"},{"$f":"'(Intermediate Computations)'!CE164","v":"2016-04-01"},{"$f":"'(Intermediate Computations)'!CF164","v":"2016-05-01"},{"$f":"'(Intermediate Computations)'!CG164","v":"2016-06-01"},{"$f":"'(Intermediate Computations)'!CH164","v":"2016-07-01"},{"$f":"'(Intermediate Computations)'!CI164","v":"2016-08-01"},{"$f":"'(Intermediate Computations)'!CJ164","v":"2016-09-01"},{"$f":"'(Intermediate Computations)'!CK164","v":"2016-10-01"},{"$f":"'(Intermediate Computations)'!CL164","v":"2016-11-01"},{"$f":"'(Intermediate Computations)'!CM164","v":"2016-12-01"},{"$f":"'(Intermediate Computations)'!CO164","v":"2017-01-01"},{"$f":"'(Intermediate Computations)'!CP164","v":"2017-02-01"},{"$f":"'(Intermediate Computations)'!CQ164","v":"2017-03-01"},{"$f":"'(Intermediate Computations)'!CR164","v":"2017-04-01"},{"$f":"'(Intermediate Computations)'!CS164","v":"2017-05-01"},{"$f":"'(Intermediate Computations)'!CT164","v":"2017-06-01"},{"$f":"'(Intermediate Computations)'!CU164","v":"2017-07-01"},{"$f":"'(Intermediate Computations)'!CV164","v":"2017-08-01"},{"$f":"'(Intermediate Computations)'!CW164","v":"2017-09-01"},{"$f":"'(Intermediate Computations)'!CX164","v":"2017-10-01"},{"$f":"'(Intermediate Computations)'!CY164","v":"2017-11-01"},{"$f":"'(Intermediate Computations)'!CZ164","v":"2017-12-01"},{"$f":"'(Intermediate Computations)'!DB164","v":"2018-01-01"},{"$f":"'(Intermediate Computations)'!DC164","v":"2018-02-01"},{"$f":"'(Intermediate Computations)'!DD164","v":"2018-03-01"},{"$f":"'(Intermediate Computations)'!DE164","v":"2018-04-01"},{"$f":"'(Intermediate Computations)'!DF164","v":"2018-05-01"},{"$f":"'(Intermediate Computations)'!DG164","v":"2018-06-01"},{"$f":"'(Intermediate Computations)'!DH164","v":"2018-07-01"},{"$f":"'(Intermediate Computations)'!DI164","v":"2018-08-01"},{"$f":"'(Intermediate Computations)'!DJ164","v":"2018-09-01"},{"$f":"'(Intermediate Computations)'!DK164","v":"2018-10-01"},{"$f":"'(Intermediate Computations)'!DL164","v":"2018-11-01"},{"$f":"'(Intermediate Computations)'!DM164","v":"2018-12-01"},{"$f":"'(Intermediate Computations)'!DO164","v":"2019-01-01"},{"$f":"'(Intermediate Computations)'!DP164","v":"2019-02-01"},{"$f":"'(Intermediate Computations)'!DQ164","v":"2019-03-01"},{"$f":"'(Intermediate Computations)'!DR164","v":"2019-04-01"},{"$f":"'(Intermediate Computations)'!DS164","v":"2019-05-01"},{"$f":"'(Intermediate Computations)'!DT164","v":"2019-06-01"},{"$f":"'(Intermediate Computations)'!DU164","v":"2019-07-01"},{"$f":"'(Intermediate Computations)'!DV164","v":"2019-08-01"},{"$f":"'(Intermediate Computations)'!DW164","v":"2019-09-01"},{"$f":"'(Intermediate Computations)'!DX164","v":"2019-10-01"},{"$f":"'(Intermediate Computations)'!DY164","v":"2019-11-01"},{"$f":"'(Intermediate Computations)'!DZ164","v":"2019-12-01"},{"$f":"'(Intermediate Computations)'!EB164","v":"2020-01-01"},{"$f":"'(Intermediate Computations)'!EC164","v":"2020-02-01"},{"$f":"'(Intermediate Computations)'!ED164","v":"2020-03-01"},{"$f":"'(Intermediate Computations)'!EE164","v":"2020-04-01"},{"$f":"'(Intermediate Computations)'!EF164","v":"2020-05-01"},{"$f":"'(Intermediate Computations)'!EG164","v":"2020-06-01"},{"$f":"'(Intermediate Computations)'!EH164","v":"2020-07-01"},{"$f":"'(Intermediate Computations)'!EI164","v":"2020-08-01"},{"$f":"'(Intermediate Computations)'!EJ164","v":"2020-09-01"},{"$f":"'(Intermediate Computations)'!EK164","v":"2020-10-01"},{"$f":"'(Intermediate Computations)'!EL164","v":"2020-11-01"},{"$f":"'(Intermediate Computations)'!EM164","v":"2020-12-01"}]
[{"$f":"'Statistical Moments'!B42","v":{"v":140,"d":"140.00"}},{"$f":"'Statistical Moments'!C42","v":{"v":139.6166958548739,"d":"139.62"}},{"$f":"'Statistical Moments'!D42","v":{"v":139.26268437397457,"d":"139.26"}},{"$f":"'Statistical Moments'!E42","v":{"v":138.94494014497783,"d":"138.94"}},{"$f":"'Statistical Moments'!F42","v":{"v":138.64399968684342,"d":"138.64"}},{"$f":"'Statistical Moments'!G42","v":{"v":138.3635114336002,"d":"138.36"}},{"$f":"'Statistical Moments'!H42","v":{"v":138.06379353823073,"d":"138.06"}},{"$f":"'Statistical Moments'!I42","v":{"v":137.7371242217691,"d":"137.74"}},{"$f":"'Statistical Moments'!J42","v":{"v":137.42865364982708,"d":"137.43"}},{"$f":"'Statistical Moments'!K42","v":{"v":137.12619785062157,"d":"137.13"}},{"$f":"'Statistical Moments'!L42","v":{"v":136.82739301906912,"d":"136.83"}},{"$f":"'Statistical Moments'!M42","v":{"v":136.52854264247944,"d":"136.53"}},{"$f":"'Statistical Moments'!O42","v":{"v":136.2230291428313,"d":"136.22"}},{"$f":"'Statistical Moments'!P42","v":{"v":135.9402323580921,"d":"135.94"}},{"$f":"'Statistical Moments'!Q42","v":{"v":135.65511611305155,"d":"135.66"}},{"$f":"'Statistical Moments'!R42","v":{"v":135.38069929830095,"d":"135.38"}},{"$f":"'Statistical Moments'!S42","v":{"v":135.11702567510824,"d":"135.12"}},{"$f":"'Statistical Moments'!T42","v":{"v":134.79164042555655,"d":"134.79"}},{"$f":"'Statistical Moments'!U42","v":{"v":134.52500779639544,"d":"134.53"}},{"$f":"'Statistical Moments'!V42","v":{"v":134.22272577356716,"d":"134.22"}},{"$f":"'Statistical Moments'!W42","v":{"v":133.9284913637232,"d":"133.93"}},{"$f":"'Statistical Moments'!X42","v":{"v":133.683048625386,"d":"133.68"}},{"$f":"'Statistical Moments'!Y42","v":{"v":133.4039435039798,"d":"133.40"}},{"$f":"'Statistical Moments'!Z42","v":{"v":133.13121222227446,"d":"133.13"}},{"$f":"'Statistical Moments'!AB42","v":{"v":132.8249493392378,"d":"132.82"}},{"$f":"'Statistical Moments'!AC42","v":{"v":132.5643724345116,"d":"132.56"}},{"$f":"'Statistical Moments'!AD42","v":{"v":132.32296646994376,"d":"132.32"}},{"$f":"'Statistical Moments'!AE42","v":{"v":132.07226677238924,"d":"132.07"}},{"$f":"'Statistical Moments'!AF42","v":{"v":131.81898582066157,"d":"131.82"}},{"$f":"'Statistical Moments'!AG42","v":{"v":131.54143373653542,"d":"131.54"}},{"$f":"'Statistical Moments'!AH42","v":{"v":131.30461199496253,"d":"131.30"}},{"$f":"'Statistical Moments'!AI42","v":{"v":131.0858419029949,"d":"131.09"}},{"$f":"'Statistical Moments'!AJ42","v":{"v":130.8141477701782,"d":"130.81"}},{"$f":"'Statistical Moments'!AK42","v":{"v":130.57882559587475,"d":"130.58"}},{"$f":"'Statistical Moments'!AL42","v":{"v":130.35356866794743,"d":"130.35"}},{"$f":"'Statistical Moments'!AM42","v":{"v":130.13678101649722,"d":"130.14"}},{"$f":"'Statistical Moments'!AO42","v":{"v":129.88719171781838,"d":"129.89"}},{"$f":"'Statistical Moments'!AP42","v":{"v":129.65914507312746,"d":"129.66"}},{"$f":"'Statistical Moments'!AQ42","v":{"v":129.45468662344348,"d":"129.45"}},{"$f":"'Statistical Moments'!AR42","v":{"v":129.2135414342253,"d":"129.21"}},{"$f":"'Statistical Moments'!AS42","v":{"v":128.9883666431885,"d":"128.99"}},{"$f":"'Statistical Moments'!AT42","v":{"v":128.7877104420092,"d":"128.79"}},{"$f":"'Statistical Moments'!AU42","v":{"v":128.56728574342944,"d":"128.57"}},{"$f":"'Statistical Moments'!AV42","v":{"v":128.34289173813872,"d":"128.34"}},{"$f":"'Statistical Moments'!AW42","v":{"v":128.13124427995297,"d":"128.13"}},{"$f":"'Statistical Moments'!AX42","v":{"v":127.89767878742131,"d":"127.90"}},{"$f":"'Statistical Moments'!AY42","v":{"v":127.68077393702094,"d":"127.68"}},{"$f":"'Statistical Moments'!AZ42","v":{"v":127.47641784853582,"d":"127.48"}},{"$f":"'Statistical Moments'!BB42","v":{"v":127.24355094604795,"d":"127.24"}},{"$f":"'Statistical Moments'!BC42","v":{"v":127.01693130790406,"d":"127.02"}},{"$f":"'Statistical Moments'!BD42","v":{"v":126.8091027066532,"d":"126.81"}},{"$f":"'Statistical Moments'!BE42","v":{"v":126.61048505467672,"d":"126.61"}},{"$f":"'Statistical Moments'!BF42","v":{"v":126.40720157058104,"d":"126.41"}},{"$f":"'Statistical Moments'!BG42","v":{"v":126.22026861869489,"d":"126.22"}},{"$f":"'Statistical Moments'!BH42","v":{"v":126.03516992361355,"d":"126.04"}},{"$f":"'Statistical Moments'!BI42","v":{"v":125.81861588103399,"d":"125.82"}},{"$f":"'Statistical Moments'!BJ42","v":{"v":125.61796518021053,"d":"125.62"}},{"$f":"'Statistical Moments'!BK42","v":{"v":125.44239327845872,"d":"125.44"}},{"$f":"'Statistical Moments'!BL42","v":{"v":125.2499439447987,"d":"125.25"}},{"$f":"'Statistical Moments'!BM42","v":{"v":125.07853220406979,"d":"125.08"}},{"$f":"'Statistical Moments'!BO42","v":{"v":124.89274737044573,"d":"124.89"}},{"$f":"'Statistical Moments'!BP42","v":{"v":124.70699422524716,"d":"124.71"}},{"$f":"'Statistical Moments'!BQ42","v":{"v":124.53367645740443,"d":"124.53"}},{"$f":"'Statistical Moments'!BR42","v":{"v":124.37965160964784,"d":"124.38"}},{"$f":"'Statistical Moments'!BS42","v":{"v":124.22138818319415,"d":"124.22"}},{"$f":"'Statistical Moments'!BT42","v":{"v":124.0364550542659,"d":"124.04"}},{"$f":"'Statistical Moments'!BU42","v":{"v":123.89593279581402,"d":"123.90"}},{"$f":"'Statistical Moments'!BV42","v":{"v":123.71157691656396,"d":"123.71"}},{"$f":"'Statistical Moments'!BW42","v":{"v":123.5398509524992,"d":"123.54"}},{"$f":"'Statistical Moments'!BX42","v":{"v":123.39764262336212,"d":"123.40"}},{"$f":"'Statistical Moments'!BY42","v":{"v":123.21644260225173,"d":"123.22"}},{"$f":"'Statistical Moments'!BZ42","v":{"v":123.07297689000747,"d":"123.07"}},{"$f":"'Statistical Moments'!CB42","v":{"v":122.91289064523217,"d":"122.91"}},{"$f":"'Statistical Moments'!CC42","v":{"v":122.74893620753198,"d":"122.75"}},{"$f":"'Statistical Moments'!CD42","v":{"v":122.58284514960297,"d":"122.58"}},{"$f":"'Statistical Moments'!CE42","v":{"v":122.43770735534184,"d":"122.44"}},{"$f":"'Statistical Moments'!CF42","v":{"v":122.26436881608703,"d":"122.26"}},{"$f":"'Statistical Moments'!CG42","v":{"v":122.10787046874154,"d":"122.11"}},{"$f":"'Statistical Moments'!CH42","v":{"v":122.00163629446259,"d":"122.00"}},{"$f":"'Statistical Moments'!CI42","v":{"v":121.85658546826363,"d":"121.86"}},{"$f":"'Statistical Moments'!CJ42","v":{"v":121.72246713462911,"d":"121.72"}},{"$f":"'Statistical Moments'!CK42","v":{"v":121.5826034729378,"d":"121.58"}},{"$f":"'Statistical Moments'!CL42","v":{"v":121.46671614843115,"d":"121.47"}},{"$f":"'Statistical Moments'!CM42","v":{"v":121.31681792569307,"d":"121.32"}},{"$f":"'Statistical Moments'!CO42","v":{"v":121.19935345623483,"d":"121.20"}},{"$f":"'Statistical Moments'!CP42","v":{"v":121.06860028907053,"d":"121.07"}},{"$f":"'Statistical Moments'!CQ42","v":{"v":120.94022470880691,"d":"120.94"}},{"$f":"'Statistical Moments'!CR42","v":{"v":120.81041910109317,"d":"120.81"}},{"$f":"'Statistical Moments'!CS42","v":{"v":120.67212514229453,"d":"120.67"}},{"$f":"'Statistical Moments'!CT42","v":{"v":120.4980091181032,"d":"120.50"}},{"$f":"'Statistical Moments'!CU42","v":{"v":120.34282306777541,"d":"120.34"}},{"$f":"'Statistical Moments'!CV42","v":{"v":120.24612970772537,"d":"120.25"}},{"$f":"'Statistical Moments'!CW42","v":{"v":120.10449155504028,"d":"120.10"}},{"$f":"'Statistical Moments'!CX42","v":{"v":119.96740780523153,"d":"119.97"}},{"$f":"'Statistical Moments'!CY42","v":{"v":119.82442214504172,"d":"119.82"}},{"$f":"'Statistical Moments'!CZ42","v":{"v":119.70495979406944,"d":"119.70"}},{"$f":"'Statistical Moments'!DB42","v":{"v":119.56700873611001,"d":"119.57"}},{"$f":"'Statistical Moments'!DC42","v":{"v":119.45344157041639,"d":"119.45"}},{"$f":"'Statistical Moments'!DD42","v":{"v":119.30476688194904,"d":"119.30"}},{"$f":"'Statistical Moments'!DE42","v":{"v":119.1692468930198,"d":"119.17"}},{"$f":"'Statistical Moments'!DF42","v":{"v":119.05474296456693,"d":"119.05"}},{"$f":"'Statistical Moments'!DG42","v":{"v":118.92894638233172,"d":"118.93"}},{"$f":"'Statistical Moments'!DH42","v":{"v":118.79881503493583,"d":"118.80"}},{"$f":"'Statistical Moments'!DI42","v":{"v":118.6661377646548,"d":"118.67"}},{"$f":"'Statistical Moments'!DJ42","v":{"v":118.529156996357,"d":"118.53"}},{"$f":"'Statistical Moments'!DK42","v":{"v":118.40782748409083,"d":"118.41"}},{"$f":"'Statistical Moments'!DL42","v":{"v":118.2835807603792,"d":"118.28"}},{"$f":"'Statistical Moments'!DM42","v":{"v":118.14817060554311,"d":"118.15"}},{"$f":"'Statistical Moments'!DO42","v":{"v":118.01902227600755,"d":"118.02"}},{"$f":"'Statistical Moments'!DP42","v":{"v":117.91824370446079,"d":"117.92"}},{"$f":"'Statistical Moments'!DQ42","v":{"v":117.79164240960588,"d":"117.79"}},{"$f":"'Statistical Moments'!DR42","v":{"v":117.70089666373462,"d":"117.70"}},{"$f":"'Statistical Moments'!DS42","v":{"v":117.59011317618489,"d":"117.59"}},{"$f":"'Statistical Moments'!DT42","v":{"v":117.47740339170544,"d":"117.48"}},{"$f":"'Statistical Moments'!DU42","v":{"v":117.38723157788334,"d":"117.39"}},{"$f":"'Statistical Moments'!DV42","v":{"v":117.2834054521888,"d":"117.28"}},{"$f":"'Statistical Moments'!DW42","v":{"v":117.18668624540975,"d":"117.19"}},{"$f":"'Statistical Moments'!DX42","v":{"v":117.0813176213602,"d":"117.08"}},{"$f":"'Statistical Moments'!DY42","v":{"v":116.97324390296379,"d":"116.97"}},{"$f":"'Statistical Moments'!DZ42","v":{"v":116.8679250788446,"d":"116.87"}},{"$f":"'Statistical Moments'!EB42","v":{"v":116.73496599573578,"d":"116.73"}},{"$f":"'Statistical Moments'!EC42","v":{"v":116.6390676029154,"d":"116.64"}},{"$f":"'Statistical Moments'!ED42","v":{"v":116.51074310910954,"d":"116.51"}},{"$f":"'Statistical Moments'!EE42","v":{"v":116.39353782130817,"d":"116.39"}},{"$f":"'Statistical Moments'!EF42","v":{"v":116.29255101201662,"d":"116.29"}},{"$f":"'Statistical Moments'!EG42","v":{"v":116.19525453217297,"d":"116.20"}},{"$f":"'Statistical Moments'!EH42","v":{"v":116.07577300145297,"d":"116.08"}},{"$f":"'Statistical Moments'!EI42","v":{"v":115.96422599487141,"d":"115.96"}},{"$f":"'Statistical Moments'!EJ42","v":{"v":115.82259701911555,"d":"115.82"}},{"$f":"'Statistical Moments'!EK42","v":{"v":115.71355731270941,"d":"115.71"}},{"$f":"'Statistical Moments'!EL42","v":{"v":115.62372129668228,"d":"115.62"}},{"$f":"'Statistical Moments'!EM42","v":{"v":115.5119836588783,"d":"115.51"}}]
[{"$f":"'(Intermediate Computations)'!B173","v":"Jan 2010"},{"$f":"'(Intermediate Computations)'!C173","v":"Feb 2010"},{"$f":"'(Intermediate Computations)'!D173","v":"Mar 2010"},{"$f":"'(Intermediate Computations)'!E173","v":"Apr 2010"},{"$f":"'(Intermediate Computations)'!F173","v":"May 2010"},{"$f":"'(Intermediate Computations)'!G173","v":"Jun 2010"},{"$f":"'(Intermediate Computations)'!H173","v":"Jul 2010"},{"$f":"'(Intermediate Computations)'!I173","v":"Aug 2010"},{"$f":"'(Intermediate Computations)'!J173","v":"Sep 2010"},{"$f":"'(Intermediate Computations)'!K173","v":"Oct 2010"},{"$f":"'(Intermediate Computations)'!L173","v":"Nov 2010"},{"$f":"'(Intermediate Computations)'!M173","v":"Dec 2010"},{"$f":"'(Intermediate Computations)'!O173","v":"Jan 2011"},{"$f":"'(Intermediate Computations)'!P173","v":"Feb 2011"},{"$f":"'(Intermediate Computations)'!Q173","v":"Mar 2011"},{"$f":"'(Intermediate Computations)'!R173","v":"Apr 2011"},{"$f":"'(Intermediate Computations)'!S173","v":"May 2011"},{"$f":"'(Intermediate Computations)'!T173","v":"Jun 2011"},{"$f":"'(Intermediate Computations)'!U173","v":"Jul 2011"},{"$f":"'(Intermediate Computations)'!V173","v":"Aug 2011"},{"$f":"'(Intermediate Computations)'!W173","v":"Sep 2011"},{"$f":"'(Intermediate Computations)'!X173","v":"Oct 2011"},{"$f":"'(Intermediate Computations)'!Y173","v":"Nov 2011"},{"$f":"'(Intermediate Computations)'!Z173","v":"Dec 2011"},{"$f":"'(Intermediate Computations)'!AB173","v":"Jan 2012"},{"$f":"'(Intermediate Computations)'!AC173","v":"Feb 2012"},{"$f":"'(Intermediate Computations)'!AD173","v":"Mar 2012"},{"$f":"'(Intermediate Computations)'!AE173","v":"Apr 2012"},{"$f":"'(Intermediate Computations)'!AF173","v":"May 2012"},{"$f":"'(Intermediate Computations)'!AG173","v":"Jun 2012"},{"$f":"'(Intermediate Computations)'!AH173","v":"Jul 2012"},{"$f":"'(Intermediate Computations)'!AI173","v":"Aug 2012"},{"$f":"'(Intermediate Computations)'!AJ173","v":"Sep 2012"},{"$f":"'(Intermediate Computations)'!AK173","v":"Oct 2012"},{"$f":"'(Intermediate Computations)'!AL173","v":"Nov 2012"},{"$f":"'(Intermediate Computations)'!AM173","v":"Dec 2012"},{"$f":"'(Intermediate Computations)'!AO173","v":"Jan 2013"},{"$f":"'(Intermediate Computations)'!AP173","v":"Feb 2013"},{"$f":"'(Intermediate Computations)'!AQ173","v":"Mar 2013"},{"$f":"'(Intermediate Computations)'!AR173","v":"Apr 2013"},{"$f":"'(Intermediate Computations)'!AS173","v":"May 2013"},{"$f":"'(Intermediate Computations)'!AT173","v":"Jun 2013"},{"$f":"'(Intermediate Computations)'!AU173","v":"Jul 2013"},{"$f":"'(Intermediate Computations)'!AV173","v":"Aug 2013"},{"$f":"'(Intermediate Computations)'!AW173","v":"Sep 2013"},{"$f":"'(Intermediate Computations)'!AX173","v":"Oct 2013"},{"$f":"'(Intermediate Computations)'!AY173","v":"Nov 2013"},{"$f":"'(Intermediate Computations)'!AZ173","v":"Dec 2013"},{"$f":"'(Intermediate Computations)'!BB173","v":"Jan 2014"},{"$f":"'(Intermediate Computations)'!BC173","v":"Feb 2014"},{"$f":"'(Intermediate Computations)'!BD173","v":"Mar 2014"},{"$f":"'(Intermediate Computations)'!BE173","v":"Apr 2014"},{"$f":"'(Intermediate Computations)'!BF173","v":"May 2014"},{"$f":"'(Intermediate Computations)'!BG173","v":"Jun 2014"},{"$f":"'(Intermediate Computations)'!BH173","v":"Jul 2014"},{"$f":"'(Intermediate Computations)'!BI173","v":"Aug 2014"},{"$f":"'(Intermediate Computations)'!BJ173","v":"Sep 2014"},{"$f":"'(Intermediate Computations)'!BK173","v":"Oct 2014"},{"$f":"'(Intermediate Computations)'!BL173","v":"Nov 2014"},{"$f":"'(Intermediate Computations)'!BM173","v":"Dec 2014"},{"$f":"'(Intermediate Computations)'!BO173","v":"Jan 2015"},{"$f":"'(Intermediate Computations)'!BP173","v":"Feb 2015"},{"$f":"'(Intermediate Computations)'!BQ173","v":"Mar 2015"},{"$f":"'(Intermediate Computations)'!BR173","v":"Apr 2015"},{"$f":"'(Intermediate Computations)'!BS173","v":"May 2015"},{"$f":"'(Intermediate Computations)'!BT173","v":"Jun 2015"},{"$f":"'(Intermediate Computations)'!BU173","v":"Jul 2015"},{"$f":"'(Intermediate Computations)'!BV173","v":"Aug 2015"},{"$f":"'(Intermediate Computations)'!BW173","v":"Sep 2015"},{"$f":"'(Intermediate Computations)'!BX173","v":"Oct 2015"},{"$f":"'(Intermediate Computations)'!BY173","v":"Nov 2015"},{"$f":"'(Intermediate Computations)'!BZ173","v":"Dec 2015"},{"$f":"'(Intermediate Computations)'!CB173","v":"Jan 2016"},{"$f":"'(Intermediate Computations)'!CC173","v":"Feb 2016"},{"$f":"'(Intermediate Computations)'!CD173","v":"Mar 2016"},{"$f":"'(Intermediate Computations)'!CE173","v":"Apr 2016"},{"$f":"'(Intermediate Computations)'!CF173","v":"May 2016"},{"$f":"'(Intermediate Computations)'!CG173","v":"Jun 2016"},{"$f":"'(Intermediate Computations)'!CH173","v":"Jul 2016"},{"$f":"'(Intermediate Computations)'!CI173","v":"Aug 2016"},{"$f":"'(Intermediate Computations)'!CJ173","v":"Sep 2016"},{"$f":"'(Intermediate Computations)'!CK173","v":"Oct 2016"},{"$f":"'(Intermediate Computations)'!CL173","v":"Nov 2016"},{"$f":"'(Intermediate Computations)'!CM173","v":"Dec 2016"},{"$f":"'(Intermediate Computations)'!CO173","v":"Jan 2017"},{"$f":"'(Intermediate Computations)'!CP173","v":"Feb 2017"},{"$f":"'(Intermediate Computations)'!CQ173","v":"Mar 2017"},{"$f":"'(Intermediate Computations)'!CR173","v":"Apr 2017"},{"$f":"'(Intermediate Computations)'!CS173","v":"May 2017"},{"$f":"'(Intermediate Computations)'!CT173","v":"Jun 2017"},{"$f":"'(Intermediate Computations)'!CU173","v":"Jul 2017"},{"$f":"'(Intermediate Computations)'!CV173","v":"Aug 2017"},{"$f":"'(Intermediate Computations)'!CW173","v":"Sep 2017"},{"$f":"'(Intermediate Computations)'!CX173","v":"Oct 2017"},{"$f":"'(Intermediate Computations)'!CY173","v":"Nov 2017"},{"$f":"'(Intermediate Computations)'!CZ173","v":"Dec 2017"},{"$f":"'(Intermediate Computations)'!DB173","v":"Jan 2018"},{"$f":"'(Intermediate Computations)'!DC173","v":"Feb 2018"},{"$f":"'(Intermediate Computations)'!DD173","v":"Mar 2018"},{"$f":"'(Intermediate Computations)'!DE173","v":"Apr 2018"},{"$f":"'(Intermediate Computations)'!DF173","v":"May 2018"},{"$f":"'(Intermediate Computations)'!DG173","v":"Jun 2018"},{"$f":"'(Intermediate Computations)'!DH173","v":"Jul 2018"},{"$f":"'(Intermediate Computations)'!DI173","v":"Aug 2018"},{"$f":"'(Intermediate Computations)'!DJ173","v":"Sep 2018"},{"$f":"'(Intermediate Computations)'!DK173","v":"Oct 2018"},{"$f":"'(Intermediate Computations)'!DL173","v":"Nov 2018"},{"$f":"'(Intermediate Computations)'!DM173","v":"Dec 2018"},{"$f":"'(Intermediate Computations)'!DO173","v":"Jan 2019"},{"$f":"'(Intermediate Computations)'!DP173","v":"Feb 2019"},{"$f":"'(Intermediate Computations)'!DQ173","v":"Mar 2019"},{"$f":"'(Intermediate Computations)'!DR173","v":"Apr 2019"},{"$f":"'(Intermediate Computations)'!DS173","v":"May 2019"},{"$f":"'(Intermediate Computations)'!DT173","v":"Jun 2019"},{"$f":"'(Intermediate Computations)'!DU173","v":"Jul 2019"},{"$f":"'(Intermediate Computations)'!DV173","v":"Aug 2019"},{"$f":"'(Intermediate Computations)'!DW173","v":"Sep 2019"},{"$f":"'(Intermediate Computations)'!DX173","v":"Oct 2019"},{"$f":"'(Intermediate Computations)'!DY173","v":"Nov 2019"},{"$f":"'(Intermediate Computations)'!DZ173","v":"Dec 2019"},{"$f":"'(Intermediate Computations)'!EB173","v":"Jan 2020"},{"$f":"'(Intermediate Computations)'!EC173","v":"Feb 2020"},{"$f":"'(Intermediate Computations)'!ED173","v":"Mar 2020"},{"$f":"'(Intermediate Computations)'!EE173","v":"Apr 2020"},{"$f":"'(Intermediate Computations)'!EF173","v":"May 2020"},{"$f":"'(Intermediate Computations)'!EG173","v":"Jun 2020"},{"$f":"'(Intermediate Computations)'!EH173","v":"Jul 2020"},{"$f":"'(Intermediate Computations)'!EI173","v":"Aug 2020"},{"$f":"'(Intermediate Computations)'!EJ173","v":"Sep 2020"},{"$f":"'(Intermediate Computations)'!EK173","v":"Oct 2020"},{"$f":"'(Intermediate Computations)'!EL173","v":"Nov 2020"},{"$f":"'(Intermediate Computations)'!EM173","v":"Dec 2020"}]
[{"$f":"'(Intermediate Computations)'!B170","v":"2010-01-01"},{"$f":"'(Intermediate Computations)'!C170","v":"2010-02-01"},{"$f":"'(Intermediate Computations)'!D170","v":"2010-03-01"},{"$f":"'(Intermediate Computations)'!E170","v":"2010-04-01"},{"$f":"'(Intermediate Computations)'!F170","v":"2010-05-01"},{"$f":"'(Intermediate Computations)'!G170","v":"2010-06-01"},{"$f":"'(Intermediate Computations)'!H170","v":"2010-07-01"},{"$f":"'(Intermediate Computations)'!I170","v":"2010-08-01"},{"$f":"'(Intermediate Computations)'!J170","v":"2010-09-01"},{"$f":"'(Intermediate Computations)'!K170","v":"2010-10-01"},{"$f":"'(Intermediate Computations)'!L170","v":"2010-11-01"},{"$f":"'(Intermediate Computations)'!M170","v":"2010-12-01"},{"$f":"'(Intermediate Computations)'!O170","v":"2011-01-01"},{"$f":"'(Intermediate Computations)'!P170","v":"2011-02-01"},{"$f":"'(Intermediate Computations)'!Q170","v":"2011-03-01"},{"$f":"'(Intermediate Computations)'!R170","v":"2011-04-01"},{"$f":"'(Intermediate Computations)'!S170","v":"2011-05-01"},{"$f":"'(Intermediate Computations)'!T170","v":"2011-06-01"},{"$f":"'(Intermediate Computations)'!U170","v":"2011-07-01"},{"$f":"'(Intermediate Computations)'!V170","v":"2011-08-01"},{"$f":"'(Intermediate Computations)'!W170","v":"2011-09-01"},{"$f":"'(Intermediate Computations)'!X170","v":"2011-10-01"},{"$f":"'(Intermediate Computations)'!Y170","v":"2011-11-01"},{"$f":"'(Intermediate Computations)'!Z170","v":"2011-12-01"},{"$f":"'(Intermediate Computations)'!AB170","v":"2012-01-01"},{"$f":"'(Intermediate Computations)'!AC170","v":"2012-02-01"},{"$f":"'(Intermediate Computations)'!AD170","v":"2012-03-01"},{"$f":"'(Intermediate Computations)'!AE170","v":"2012-04-01"},{"$f":"'(Intermediate Computations)'!AF170","v":"2012-05-01"},{"$f":"'(Intermediate Computations)'!AG170","v":"2012-06-01"},{"$f":"'(Intermediate Computations)'!AH170","v":"2012-07-01"},{"$f":"'(Intermediate Computations)'!AI170","v":"2012-08-01"},{"$f":"'(Intermediate Computations)'!AJ170","v":"2012-09-01"},{"$f":"'(Intermediate Computations)'!AK170","v":"2012-10-01"},{"$f":"'(Intermediate Computations)'!AL170","v":"2012-11-01"},{"$f":"'(Intermediate Computations)'!AM170","v":"2012-12-01"},{"$f":"'(Intermediate Computations)'!AO170","v":"2013-01-01"},{"$f":"'(Intermediate Computations)'!AP170","v":"2013-02-01"},{"$f":"'(Intermediate Computations)'!AQ170","v":"2013-03-01"},{"$f":"'(Intermediate Computations)'!AR170","v":"2013-04-01"},{"$f":"'(Intermediate Computations)'!AS170","v":"2013-05-01"},{"$f":"'(Intermediate Computations)'!AT170","v":"2013-06-01"},{"$f":"'(Intermediate Computations)'!AU170","v":"2013-07-01"},{"$f":"'(Intermediate Computations)'!AV170","v":"2013-08-01"},{"$f":"'(Intermediate Computations)'!AW170","v":"2013-09-01"},{"$f":"'(Intermediate Computations)'!AX170","v":"2013-10-01"},{"$f":"'(Intermediate Computations)'!AY170","v":"2013-11-01"},{"$f":"'(Intermediate Computations)'!AZ170","v":"2013-12-01"},{"$f":"'(Intermediate Computations)'!BB170","v":"2014-01-01"},{"$f":"'(Intermediate Computations)'!BC170","v":"2014-02-01"},{"$f":"'(Intermediate Computations)'!BD170","v":"2014-03-01"},{"$f":"'(Intermediate Computations)'!BE170","v":"2014-04-01"},{"$f":"'(Intermediate Computations)'!BF170","v":"2014-05-01"},{"$f":"'(Intermediate Computations)'!BG170","v":"2014-06-01"},{"$f":"'(Intermediate Computations)'!BH170","v":"2014-07-01"},{"$f":"'(Intermediate Computations)'!BI170","v":"2014-08-01"},{"$f":"'(Intermediate Computations)'!BJ170","v":"2014-09-01"},{"$f":"'(Intermediate Computations)'!BK170","v":"2014-10-01"},{"$f":"'(Intermediate Computations)'!BL170","v":"2014-11-01"},{"$f":"'(Intermediate Computations)'!BM170","v":"2014-12-01"},{"$f":"'(Intermediate Computations)'!BO170","v":"2015-01-01"},{"$f":"'(Intermediate Computations)'!BP170","v":"2015-02-01"},{"$f":"'(Intermediate Computations)'!BQ170","v":"2015-03-01"},{"$f":"'(Intermediate Computations)'!BR170","v":"2015-04-01"},{"$f":"'(Intermediate Computations)'!BS170","v":"2015-05-01"},{"$f":"'(Intermediate Computations)'!BT170","v":"2015-06-01"},{"$f":"'(Intermediate Computations)'!BU170","v":"2015-07-01"},{"$f":"'(Intermediate Computations)'!BV170","v":"2015-08-01"},{"$f":"'(Intermediate Computations)'!BW170","v":"2015-09-01"},{"$f":"'(Intermediate Computations)'!BX170","v":"2015-10-01"},{"$f":"'(Intermediate Computations)'!BY170","v":"2015-11-01"},{"$f":"'(Intermediate Computations)'!BZ170","v":"2015-12-01"},{"$f":"'(Intermediate Computations)'!CB170","v":"2016-01-01"},{"$f":"'(Intermediate Computations)'!CC170","v":"2016-02-01"},{"$f":"'(Intermediate Computations)'!CD170","v":"2016-03-01"},{"$f":"'(Intermediate Computations)'!CE170","v":"2016-04-01"},{"$f":"'(Intermediate Computations)'!CF170","v":"2016-05-01"},{"$f":"'(Intermediate Computations)'!CG170","v":"2016-06-01"},{"$f":"'(Intermediate Computations)'!CH170","v":"2016-07-01"},{"$f":"'(Intermediate Computations)'!CI170","v":"2016-08-01"},{"$f":"'(Intermediate Computations)'!CJ170","v":"2016-09-01"},{"$f":"'(Intermediate Computations)'!CK170","v":"2016-10-01"},{"$f":"'(Intermediate Computations)'!CL170","v":"2016-11-01"},{"$f":"'(Intermediate Computations)'!CM170","v":"2016-12-01"},{"$f":"'(Intermediate Computations)'!CO170","v":"2017-01-01"},{"$f":"'(Intermediate Computations)'!CP170","v":"2017-02-01"},{"$f":"'(Intermediate Computations)'!CQ170","v":"2017-03-01"},{"$f":"'(Intermediate Computations)'!CR170","v":"2017-04-01"},{"$f":"'(Intermediate Computations)'!CS170","v":"2017-05-01"},{"$f":"'(Intermediate Computations)'!CT170","v":"2017-06-01"},{"$f":"'(Intermediate Computations)'!CU170","v":"2017-07-01"},{"$f":"'(Intermediate Computations)'!CV170","v":"2017-08-01"},{"$f":"'(Intermediate Computations)'!CW170","v":"2017-09-01"},{"$f":"'(Intermediate Computations)'!CX170","v":"2017-10-01"},{"$f":"'(Intermediate Computations)'!CY170","v":"2017-11-01"},{"$f":"'(Intermediate Computations)'!CZ170","v":"2017-12-01"},{"$f":"'(Intermediate Computations)'!DB170","v":"2018-01-01"},{"$f":"'(Intermediate Computations)'!DC170","v":"2018-02-01"},{"$f":"'(Intermediate Computations)'!DD170","v":"2018-03-01"},{"$f":"'(Intermediate Computations)'!DE170","v":"2018-04-01"},{"$f":"'(Intermediate Computations)'!DF170","v":"2018-05-01"},{"$f":"'(Intermediate Computations)'!DG170","v":"2018-06-01"},{"$f":"'(Intermediate Computations)'!DH170","v":"2018-07-01"},{"$f":"'(Intermediate Computations)'!DI170","v":"2018-08-01"},{"$f":"'(Intermediate Computations)'!DJ170","v":"2018-09-01"},{"$f":"'(Intermediate Computations)'!DK170","v":"2018-10-01"},{"$f":"'(Intermediate Computations)'!DL170","v":"2018-11-01"},{"$f":"'(Intermediate Computations)'!DM170","v":"2018-12-01"},{"$f":"'(Intermediate Computations)'!DO170","v":"2019-01-01"},{"$f":"'(Intermediate Computations)'!DP170","v":"2019-02-01"},{"$f":"'(Intermediate Computations)'!DQ170","v":"2019-03-01"},{"$f":"'(Intermediate Computations)'!DR170","v":"2019-04-01"},{"$f":"'(Intermediate Computations)'!DS170","v":"2019-05-01"},{"$f":"'(Intermediate Computations)'!DT170","v":"2019-06-01"},{"$f":"'(Intermediate Computations)'!DU170","v":"2019-07-01"},{"$f":"'(Intermediate Computations)'!DV170","v":"2019-08-01"},{"$f":"'(Intermediate Computations)'!DW170","v":"2019-09-01"},{"$f":"'(Intermediate Computations)'!DX170","v":"2019-10-01"},{"$f":"'(Intermediate Computations)'!DY170","v":"2019-11-01"},{"$f":"'(Intermediate Computations)'!DZ170","v":"2019-12-01"},{"$f":"'(Intermediate Computations)'!EB170","v":"2020-01-01"},{"$f":"'(Intermediate Computations)'!EC170","v":"2020-02-01"},{"$f":"'(Intermediate Computations)'!ED170","v":"2020-03-01"},{"$f":"'(Intermediate Computations)'!EE170","v":"2020-04-01"},{"$f":"'(Intermediate Computations)'!EF170","v":"2020-05-01"},{"$f":"'(Intermediate Computations)'!EG170","v":"2020-06-01"},{"$f":"'(Intermediate Computations)'!EH170","v":"2020-07-01"},{"$f":"'(Intermediate Computations)'!EI170","v":"2020-08-01"},{"$f":"'(Intermediate Computations)'!EJ170","v":"2020-09-01"},{"$f":"'(Intermediate Computations)'!EK170","v":"2020-10-01"},{"$f":"'(Intermediate Computations)'!EL170","v":"2020-11-01"},{"$f":"'(Intermediate Computations)'!EM170","v":"2020-12-01"}]
[{"$f":"'Statistical Moments'!B43","v":{"v":0,"d":"0.00"}},{"$f":"'Statistical Moments'!C43","v":{"v":0.03404838037176295,"d":"0.03"}},{"$f":"'Statistical Moments'!D43","v":{"v":0.048007100294570074,"d":"0.05"}},{"$f":"'Statistical Moments'!E43","v":{"v":0.06276957963078089,"d":"0.06"}},{"$f":"'Statistical Moments'!F43","v":{"v":0.06920912862475001,"d":"0.07"}},{"$f":"'Statistical Moments'!G43","v":{"v":0.0914412476086859,"d":"0.09"}},{"$f":"'Statistical Moments'!H43","v":{"v":0.1115645852224395,"d":"0.11"}},{"$f":"'Statistical Moments'!I43","v":{"v":0.1141579065217803,"d":"0.11"}},{"$f":"'Statistical Moments'!J43","v":{"v":0.12610465495505463,"d":"0.13"}},{"$f":"'Statistical Moments'!K43","v":{"v":0.10476410912617878,"d":"0.10"}},{"$f":"'Statistical Moments'!L43","v":{"v":0.12621809475436097,"d":"0.13"}},{"$f":"'Statistical Moments'!M43","v":{"v":0.15666120753941556,"d":"0.16"}},{"$f":"'Statistical Moments'!O43","v":{"v":0.17031800730408234,"d":"0.17"}},{"$f":"'Statistical Moments'!P43","v":{"v":0.1748920325838754,"d":"0.17"}},{"$f":"'Statistical Moments'!Q43","v":{"v":0.17302484173576446,"d":"0.17"}},{"$f":"'Statistical Moments'!R43","v":{"v":0.16645518891692232,"d":"0.17"}},{"$f":"'Statistical Moments'!S43","v":{"v":0.17907409289907492,"d":"0.18"}},{"$f":"'Statistical Moments'!T43","v":{"v":0.18777673013868257,"d":"0.19"}},{"$f":"'Statistical Moments'!U43","v":{"v":0.1728269200817858,"d":"0.17"}},{"$f":"'Statistical Moments'!V43","v":{"v":0.16829429775684765,"d":"0.17"}},{"$f":"'Statistical Moments'!W43","v":{"v":0.1838241921256044,"d":"0.18"}},{"$f":"'Statistical Moments'!X43","v":{"v":0.19250474195408834,"d":"0.19"}},{"$f":"'Statistical Moments'!Y43","v":{"v":0.21700125192844985,"d":"0.22"}},{"$f":"'Statistical Moments'!Z43","v":{"v":0.23144947043705136,"d":"0.23"}},{"$f":"'Statistical Moments'!AB43","v":{"v":0.20931453945578934,"d":"0.21"}},{"$f":"'Statistical Moments'!AC43","v":{"v":0.18387747310782,"d":"0.18"}},{"$f":"'Statistical Moments'!AD43","v":{"v":0.18867928230705433,"d":"0.19"}},{"$f":"'Statistical Moments'!AE43","v":{"v":0.20793884203145171,"d":"0.21"}},{"$f":"'Statistical Moments'!AF43","v":{"v":0.2242979684990685,"d":"0.22"}},{"$f":"'Statistical Moments'!AG43","v":{"v":0.24722825903843249,"d":"0.25"}},{"$f":"'Statistical Moments'!AH43","v":{"v":0.24489422250527043,"d":"0.24"}},{"$f":"'Statistical Moments'!AI43","v":{"v":0.2524370499659054,"d":"0.25"}},{"$f":"'Statistical Moments'!AJ43","v":{"v":0.24643069762369663,"d":"0.25"}},{"$f":"'Statistical Moments'!AK43","v":{"v":0.23922435871577802,"d":"0.24"}},{"$f":"'Statistical Moments'!AL43","v":{"v":0.2353538182105709,"d":"0.24"}},{"$f":"'Statistical Moments'!AM43","v":{"v":0.24586191886491415,"d":"0.25"}},{"$f":"'Statistical Moments'!AO43","v":{"v":0.28000802035926536,"d":"0.28"}},{"$f":"'Statistical Moments'!AP43","v":{"v":0.2699460029416443,"d":"0.27"}},{"$f":"'Statistical Moments'!AQ43","v":{"v":0.2616874553752056,"d":"0.26"}},{"$f":"'Statistical Moments'!AR43","v":{"v":0.26770103816626717,"d":"0.27"}},{"$f":"'Statistical Moments'!AS43","v":{"v":0.2832308889885237,"d":"0.28"}},{"$f":"'Statistical Moments'!AT43","v":{"v":0.28191006667020524,"d":"0.28"}},{"$f":"'Statistical Moments'!AU43","v":{"v":0.26482379883939505,"d":"0.26"}},{"$f":"'Statistical Moments'!AV43","v":{"v":0.24199147624235148,"d":"0.24"}},{"$f":"'Statistical Moments'!AW43","v":{"v":0.23571303016368034,"d":"0.24"}},{"$f":"'Statistical Moments'!AX43","v":{"v":0.22211469740792605,"d":"0.22"}},{"$f":"'Statistical Moments'!AY43","v":{"v":0.2131970365972799,"d":"0.21"}},{"$f":"'Statistical Moments'!AZ43","v":{"v":0.22607799679448076,"d":"0.23"}},{"$f":"'Statistical Moments'!BB43","v":{"v":0.24990711126125034,"d":"0.25"}},{"$f":"'Statistical Moments'!BC43","v":{"v":0.2062878863677657,"d":"0.21"}},{"$f":"'Statistical Moments'!BD43","v":{"v":0.20986267451525278,"d":"0.21"}},{"$f":"'Statistical Moments'!BE43","v":{"v":0.23437947023946745,"d":"0.23"}},{"$f":"'Statistical Moments'!BF43","v":{"v":0.24608985376632647,"d":"0.25"}},{"$f":"'Statistical Moments'!BG43","v":{"v":0.26413831409493604,"d":"0.26"}},{"$f":"'Statistical Moments'!BH43","v":{"v":0.28558963701508927,"d":"0.29"}},{"$f":"'Statistical Moments'!BI43","v":{"v":0.307455638885997,"d":"0.31"}},{"$f":"'Statistical Moments'!BJ43","v":{"v":0.2897179458620327,"d":"0.29"}},{"$f":"'Statistical Moments'!BK43","v":{"v":0.2995030809351639,"d":"0.30"}},{"$f":"'Statistical Moments'!BL43","v":{"v":0.2822281855603609,"d":"0.28"}},{"$f":"'Statistical Moments'!BM43","v":{"v":0.25680351059404677,"d":"0.26"}},{"$f":"'Statistical Moments'!BO43","v":{"v":0.24160964215927178,"d":"0.24"}},{"$f":"'Statistical Moments'!BP43","v":{"v":0.23525522470259277,"d":"0.24"}},{"$f":"'Statistical Moments'!BQ43","v":{"v":0.236711960072961,"d":"0.24"}},{"$f":"'Statistical Moments'!BR43","v":{"v":0.26846561200268954,"d":"0.27"}},{"$f":"'Statistical Moments'!BS43","v":{"v":0.2871815129873897,"d":"0.29"}},{"$f":"'Statistical Moments'!BT43","v":{"v":0.30313851120738544,"d":"0.30"}},{"$f":"'Statistical Moments'!BU43","v":{"v":0.2878972485936912,"d":"0.29"}},{"$f":"'Statistical Moments'!BV43","v":{"v":0.3007742985798358,"d":"0.30"}},{"$f":"'Statistical Moments'!BW43","v":{"v":0.32463491785670995,"d":"0.32"}},{"$f":"'Statistical Moments'!BX43","v":{"v":0.3451416949963582,"d":"0.35"}},{"$f":"'Statistical Moments'!BY43","v":{"v":0.36190337514256715,"d":"0.36"}},{"$f":"'Statistical Moments'!BZ43","v":{"v":0.3343700486100444,"d":"0.33"}},{"$f":"'Statistical Moments'!CB43","v":{"v":0.3169908134232305,"d":"0.32"}},{"$f":"'Statistical Moments'!CC43","v":{"v":0.30754251397805943,"d":"0.31"}},{"$f":"'Statistical Moments'!CD43","v":{"v":0.3036910901563428,"d":"0.30"}},{"$f":"'Statistical Moments'!CE43","v":{"v":0.29614224193258964,"d":"0.30"}},{"$f":"'Statistical Moments'!CF43","v":{"v":0.29182162471637424,"d":"0.29"}},{"$f":"'Statistical Moments'!CG43","v":{"v":0.28552770907183267,"d":"0.29"}},{"$f":"'Statistical Moments'!CH43","v":{"v":0.31343885976959507,"d":"0.31"}},{"$f":"'Statistical Moments'!CI43","v":{"v":0.29175922121746284,"d":"0.29"}},{"$f":"'Statistical Moments'!CJ43","v":{"v":0.26905680075685473,"d":"0.27"}},{"$f":"'Statistical Moments'!CK43","v":{"v":0.2679034776157277,"d":"0.27"}},{"$f":"'Statistical Moments'!CL43","v":{"v":0.27152706833304335,"d":"0.27"}},{"$f":"'Statistical Moments'!CM43","v":{"v":0.2519020161343582,"d":"0.25"}},{"$f":"'Statistical Moments'!CO43","v":{"v":0.27145734420390927,"d":"0.27"}},{"$f":"'Statistical Moments'!CP43","v":{"v":0.29485878960030804,"d":"0.29"}},{"$f":"'Statistical Moments'!CQ43","v":{"v":0.2910928039452948,"d":"0.29"}},{"$f":"'Statistical Moments'!CR43","v":{"v":0.3040967509080632,"d":"0.30"}},{"$f":"'Statistical Moments'!CS43","v":{"v":0.309429713713025,"d":"0.31"}},{"$f":"'Statistical Moments'!CT43","v":{"v":0.2843023947293825,"d":"0.28"}},{"$f":"'Statistical Moments'!CU43","v":{"v":0.289874776074609,"d":"0.29"}},{"$f":"'Statistical Moments'!CV43","v":{"v":0.30418040690278186,"d":"0.30"}},{"$f":"'Statistical Moments'!CW43","v":{"v":0.2896705505387364,"d":"0.29"}},{"$f":"'Statistical Moments'!CX43","v":{"v":0.28912937370956693,"d":"0.29"}},{"$f":"'Statistical Moments'!CY43","v":{"v":0.3022711565509214,"d":"0.30"}},{"$f":"'Statistical Moments'!CZ43","v":{"v":0.30259005189261673,"d":"0.30"}},{"$f":"'Statistical Moments'!DB43","v":{"v":0.2932547070474038,"d":"0.29"}},{"$f":"'Statistical Moments'!DC43","v":{"v":0.3312892236095838,"d":"0.33"}},{"$f":"'Statistical Moments'!DD43","v":{"v":0.3183695352774834,"d":"0.32"}},{"$f":"'Statistical Moments'!DE43","v":{"v":0.297653083720445,"d":"0.30"}},{"$f":"'Statistical Moments'!DF43","v":{"v":0.275984240541402,"d":"0.28"}},{"$f":"'Statistical Moments'!DG43","v":{"v":0.25700144934067043,"d":"0.26"}},{"$f":"'Statistical Moments'!DH43","v":{"v":0.23725006433430124,"d":"0.24"}},{"$f":"'Statistical Moments'!DI43","v":{"v":0.23048725400981576,"d":"0.23"}},{"$f":"'Statistical Moments'!DJ43","v":{"v":0.2091712439572926,"d":"0.21"}},{"$f":"'Statistical Moments'!DK43","v":{"v":0.22979866102438615,"d":"0.23"}},{"$f":"'Statistical Moments'!DL43","v":{"v":0.20864785356677834,"d":"0.21"}},{"$f":"'Statistical Moments'!DM43","v":{"v":0.2414651086525561,"d":"0.24"}},{"$f":"'Statistical Moments'!DO43","v":{"v":0.2417952451959647,"d":"0.24"}},{"$f":"'Statistical Moments'!DP43","v":{"v":0.19532323750865535,"d":"0.20"}},{"$f":"'Statistical Moments'!DQ43","v":{"v":0.18903011109010992,"d":"0.19"}},{"$f":"'Statistical Moments'!DR43","v":{"v":0.21518699380116751,"d":"0.22"}},{"$f":"'Statistical Moments'!DS43","v":{"v":0.24518611515500408,"d":"0.25"}},{"$f":"'Statistical Moments'!DT43","v":{"v":0.2527105634139037,"d":"0.25"}},{"$f":"'Statistical Moments'!DU43","v":{"v":0.2777064905196618,"d":"0.28"}},{"$f":"'Statistical Moments'!DV43","v":{"v":0.2807038530613941,"d":"0.28"}},{"$f":"'Statistical Moments'!DW43","v":{"v":0.2731513420606415,"d":"0.27"}},{"$f":"'Statistical Moments'!DX43","v":{"v":0.28560364878049593,"d":"0.29"}},{"$f":"'Statistical Moments'!DY43","v":{"v":0.25338564265118635,"d":"0.25"}},{"$f":"'Statistical Moments'!DZ43","v":{"v":0.2606324599680921,"d":"0.26"}},{"$f":"'Statistical Moments'!EB43","v":{"v":0.28637159366606213,"d":"0.29"}},{"$f":"'Statistical Moments'!EC43","v":{"v":0.24433689427032704,"d":"0.24"}},{"$f":"'Statistical Moments'!ED43","v":{"v":0.22002408397617162,"d":"0.22"}},{"$f":"'Statistical Moments'!EE43","v":{"v":0.24016061443687073,"d":"0.24"}},{"$f":"'Statistical Moments'!EF43","v":{"v":0.24592542276706483,"d":"0.25"}},{"$f":"'Statistical Moments'!EG43","v":{"v":0.23826961561922996,"d":"0.24"}},{"$f":"'Statistical Moments'!EH43","v":{"v":0.26785591354569876,"d":"0.27"}},{"$f":"'Statistical Moments'!EI43","v":{"v":0.30184073668112443,"d":"0.30"}},{"$f":"'Statistical Moments'!EJ43","v":{"v":0.2913066643498601,"d":"0.29"}},{"$f":"'Statistical Moments'!EK43","v":{"v":0.2833129733170898,"d":"0.28"}},{"$f":"'Statistical Moments'!EL43","v":{"v":0.28968163663944013,"d":"0.29"}},{"$f":"'Statistical Moments'!EM43","v":{"v":0.2595887944620912,"d":"0.26"}}]
[{"$f":"'(Intermediate Computations)'!B179","v":"Jan 2010"},{"$f":"'(Intermediate Computations)'!C179","v":"Feb 2010"},{"$f":"'(Intermediate Computations)'!D179","v":"Mar 2010"},{"$f":"'(Intermediate Computations)'!E179","v":"Apr 2010"},{"$f":"'(Intermediate Computations)'!F179","v":"May 2010"},{"$f":"'(Intermediate Computations)'!G179","v":"Jun 2010"},{"$f":"'(Intermediate Computations)'!H179","v":"Jul 2010"},{"$f":"'(Intermediate Computations)'!I179","v":"Aug 2010"},{"$f":"'(Intermediate Computations)'!J179","v":"Sep 2010"},{"$f":"'(Intermediate Computations)'!K179","v":"Oct 2010"},{"$f":"'(Intermediate Computations)'!L179","v":"Nov 2010"},{"$f":"'(Intermediate Computations)'!M179","v":"Dec 2010"},{"$f":"'(Intermediate Computations)'!O179","v":"Jan 2011"},{"$f":"'(Intermediate Computations)'!P179","v":"Feb 2011"},{"$f":"'(Intermediate Computations)'!Q179","v":"Mar 2011"},{"$f":"'(Intermediate Computations)'!R179","v":"Apr 2011"},{"$f":"'(Intermediate Computations)'!S179","v":"May 2011"},{"$f":"'(Intermediate Computations)'!T179","v":"Jun 2011"},{"$f":"'(Intermediate Computations)'!U179","v":"Jul 2011"},{"$f":"'(Intermediate Computations)'!V179","v":"Aug 2011"},{"$f":"'(Intermediate Computations)'!W179","v":"Sep 2011"},{"$f":"'(Intermediate Computations)'!X179","v":"Oct 2011"},{"$f":"'(Intermediate Computations)'!Y179","v":"Nov 2011"},{"$f":"'(Intermediate Computations)'!Z179","v":"Dec 2011"},{"$f":"'(Intermediate Computations)'!AB179","v":"Jan 2012"},{"$f":"'(Intermediate Computations)'!AC179","v":"Feb 2012"},{"$f":"'(Intermediate Computations)'!AD179","v":"Mar 2012"},{"$f":"'(Intermediate Computations)'!AE179","v":"Apr 2012"},{"$f":"'(Intermediate Computations)'!AF179","v":"May 2012"},{"$f":"'(Intermediate Computations)'!AG179","v":"Jun 2012"},{"$f":"'(Intermediate Computations)'!AH179","v":"Jul 2012"},{"$f":"'(Intermediate Computations)'!AI179","v":"Aug 2012"},{"$f":"'(Intermediate Computations)'!AJ179","v":"Sep 2012"},{"$f":"'(Intermediate Computations)'!AK179","v":"Oct 2012"},{"$f":"'(Intermediate Computations)'!AL179","v":"Nov 2012"},{"$f":"'(Intermediate Computations)'!AM179","v":"Dec 2012"},{"$f":"'(Intermediate Computations)'!AO179","v":"Jan 2013"},{"$f":"'(Intermediate Computations)'!AP179","v":"Feb 2013"},{"$f":"'(Intermediate Computations)'!AQ179","v":"Mar 2013"},{"$f":"'(Intermediate Computations)'!AR179","v":"Apr 2013"},{"$f":"'(Intermediate Computations)'!AS179","v":"May 2013"},{"$f":"'(Intermediate Computations)'!AT179","v":"Jun 2013"},{"$f":"'(Intermediate Computations)'!AU179","v":"Jul 2013"},{"$f":"'(Intermediate Computations)'!AV179","v":"Aug 2013"},{"$f":"'(Intermediate Computations)'!AW179","v":"Sep 2013"},{"$f":"'(Intermediate Computations)'!AX179","v":"Oct 2013"},{"$f":"'(Intermediate Computations)'!AY179","v":"Nov 2013"},{"$f":"'(Intermediate Computations)'!AZ179","v":"Dec 2013"},{"$f":"'(Intermediate Computations)'!BB179","v":"Jan 2014"},{"$f":"'(Intermediate Computations)'!BC179","v":"Feb 2014"},{"$f":"'(Intermediate Computations)'!BD179","v":"Mar 2014"},{"$f":"'(Intermediate Computations)'!BE179","v":"Apr 2014"},{"$f":"'(Intermediate Computations)'!BF179","v":"May 2014"},{"$f":"'(Intermediate Computations)'!BG179","v":"Jun 2014"},{"$f":"'(Intermediate Computations)'!BH179","v":"Jul 2014"},{"$f":"'(Intermediate Computations)'!BI179","v":"Aug 2014"},{"$f":"'(Intermediate Computations)'!BJ179","v":"Sep 2014"},{"$f":"'(Intermediate Computations)'!BK179","v":"Oct 2014"},{"$f":"'(Intermediate Computations)'!BL179","v":"Nov 2014"},{"$f":"'(Intermediate Computations)'!BM179","v":"Dec 2014"},{"$f":"'(Intermediate Computations)'!BO179","v":"Jan 2015"},{"$f":"'(Intermediate Computations)'!BP179","v":"Feb 2015"},{"$f":"'(Intermediate Computations)'!BQ179","v":"Mar 2015"},{"$f":"'(Intermediate Computations)'!BR179","v":"Apr 2015"},{"$f":"'(Intermediate Computations)'!BS179","v":"May 2015"},{"$f":"'(Intermediate Computations)'!BT179","v":"Jun 2015"},{"$f":"'(Intermediate Computations)'!BU179","v":"Jul 2015"},{"$f":"'(Intermediate Computations)'!BV179","v":"Aug 2015"},{"$f":"'(Intermediate Computations)'!BW179","v":"Sep 2015"},{"$f":"'(Intermediate Computations)'!BX179","v":"Oct 2015"},{"$f":"'(Intermediate Computations)'!BY179","v":"Nov 2015"},{"$f":"'(Intermediate Computations)'!BZ179","v":"Dec 2015"},{"$f":"'(Intermediate Computations)'!CB179","v":"Jan 2016"},{"$f":"'(Intermediate Computations)'!CC179","v":"Feb 2016"},{"$f":"'(Intermediate Computations)'!CD179","v":"Mar 2016"},{"$f":"'(Intermediate Computations)'!CE179","v":"Apr 2016"},{"$f":"'(Intermediate Computations)'!CF179","v":"May 2016"},{"$f":"'(Intermediate Computations)'!CG179","v":"Jun 2016"},{"$f":"'(Intermediate Computations)'!CH179","v":"Jul 2016"},{"$f":"'(Intermediate Computations)'!CI179","v":"Aug 2016"},{"$f":"'(Intermediate Computations)'!CJ179","v":"Sep 2016"},{"$f":"'(Intermediate Computations)'!CK179","v":"Oct 2016"},{"$f":"'(Intermediate Computations)'!CL179","v":"Nov 2016"},{"$f":"'(Intermediate Computations)'!CM179","v":"Dec 2016"},{"$f":"'(Intermediate Computations)'!CO179","v":"Jan 2017"},{"$f":"'(Intermediate Computations)'!CP179","v":"Feb 2017"},{"$f":"'(Intermediate Computations)'!CQ179","v":"Mar 2017"},{"$f":"'(Intermediate Computations)'!CR179","v":"Apr 2017"},{"$f":"'(Intermediate Computations)'!CS179","v":"May 2017"},{"$f":"'(Intermediate Computations)'!CT179","v":"Jun 2017"},{"$f":"'(Intermediate Computations)'!CU179","v":"Jul 2017"},{"$f":"'(Intermediate Computations)'!CV179","v":"Aug 2017"},{"$f":"'(Intermediate Computations)'!CW179","v":"Sep 2017"},{"$f":"'(Intermediate Computations)'!CX179","v":"Oct 2017"},{"$f":"'(Intermediate Computations)'!CY179","v":"Nov 2017"},{"$f":"'(Intermediate Computations)'!CZ179","v":"Dec 2017"},{"$f":"'(Intermediate Computations)'!DB179","v":"Jan 2018"},{"$f":"'(Intermediate Computations)'!DC179","v":"Feb 2018"},{"$f":"'(Intermediate Computations)'!DD179","v":"Mar 2018"},{"$f":"'(Intermediate Computations)'!DE179","v":"Apr 2018"},{"$f":"'(Intermediate Computations)'!DF179","v":"May 2018"},{"$f":"'(Intermediate Computations)'!DG179","v":"Jun 2018"},{"$f":"'(Intermediate Computations)'!DH179","v":"Jul 2018"},{"$f":"'(Intermediate Computations)'!DI179","v":"Aug 2018"},{"$f":"'(Intermediate Computations)'!DJ179","v":"Sep 2018"},{"$f":"'(Intermediate Computations)'!DK179","v":"Oct 2018"},{"$f":"'(Intermediate Computations)'!DL179","v":"Nov 2018"},{"$f":"'(Intermediate Computations)'!DM179","v":"Dec 2018"},{"$f":"'(Intermediate Computations)'!DO179","v":"Jan 2019"},{"$f":"'(Intermediate Computations)'!DP179","v":"Feb 2019"},{"$f":"'(Intermediate Computations)'!DQ179","v":"Mar 2019"},{"$f":"'(Intermediate Computations)'!DR179","v":"Apr 2019"},{"$f":"'(Intermediate Computations)'!DS179","v":"May 2019"},{"$f":"'(Intermediate Computations)'!DT179","v":"Jun 2019"},{"$f":"'(Intermediate Computations)'!DU179","v":"Jul 2019"},{"$f":"'(Intermediate Computations)'!DV179","v":"Aug 2019"},{"$f":"'(Intermediate Computations)'!DW179","v":"Sep 2019"},{"$f":"'(Intermediate Computations)'!DX179","v":"Oct 2019"},{"$f":"'(Intermediate Computations)'!DY179","v":"Nov 2019"},{"$f":"'(Intermediate Computations)'!DZ179","v":"Dec 2019"},{"$f":"'(Intermediate Computations)'!EB179","v":"Jan 2020"},{"$f":"'(Intermediate Computations)'!EC179","v":"Feb 2020"},{"$f":"'(Intermediate Computations)'!ED179","v":"Mar 2020"},{"$f":"'(Intermediate Computations)'!EE179","v":"Apr 2020"},{"$f":"'(Intermediate Computations)'!EF179","v":"May 2020"},{"$f":"'(Intermediate Computations)'!EG179","v":"Jun 2020"},{"$f":"'(Intermediate Computations)'!EH179","v":"Jul 2020"},{"$f":"'(Intermediate Computations)'!EI179","v":"Aug 2020"},{"$f":"'(Intermediate Computations)'!EJ179","v":"Sep 2020"},{"$f":"'(Intermediate Computations)'!EK179","v":"Oct 2020"},{"$f":"'(Intermediate Computations)'!EL179","v":"Nov 2020"},{"$f":"'(Intermediate Computations)'!EM179","v":"Dec 2020"}]
[{"$f":"'(Intermediate Computations)'!B176","v":"2010-01-01"},{"$f":"'(Intermediate Computations)'!C176","v":"2010-02-01"},{"$f":"'(Intermediate Computations)'!D176","v":"2010-03-01"},{"$f":"'(Intermediate Computations)'!E176","v":"2010-04-01"},{"$f":"'(Intermediate Computations)'!F176","v":"2010-05-01"},{"$f":"'(Intermediate Computations)'!G176","v":"2010-06-01"},{"$f":"'(Intermediate Computations)'!H176","v":"2010-07-01"},{"$f":"'(Intermediate Computations)'!I176","v":"2010-08-01"},{"$f":"'(Intermediate Computations)'!J176","v":"2010-09-01"},{"$f":"'(Intermediate Computations)'!K176","v":"2010-10-01"},{"$f":"'(Intermediate Computations)'!L176","v":"2010-11-01"},{"$f":"'(Intermediate Computations)'!M176","v":"2010-12-01"},{"$f":"'(Intermediate Computations)'!O176","v":"2011-01-01"},{"$f":"'(Intermediate Computations)'!P176","v":"2011-02-01"},{"$f":"'(Intermediate Computations)'!Q176","v":"2011-03-01"},{"$f":"'(Intermediate Computations)'!R176","v":"2011-04-01"},{"$f":"'(Intermediate Computations)'!S176","v":"2011-05-01"},{"$f":"'(Intermediate Computations)'!T176","v":"2011-06-01"},{"$f":"'(Intermediate Computations)'!U176","v":"2011-07-01"},{"$f":"'(Intermediate Computations)'!V176","v":"2011-08-01"},{"$f":"'(Intermediate Computations)'!W176","v":"2011-09-01"},{"$f":"'(Intermediate Computations)'!X176","v":"2011-10-01"},{"$f":"'(Intermediate Computations)'!Y176","v":"2011-11-01"},{"$f":"'(Intermediate Computations)'!Z176","v":"2011-12-01"},{"$f":"'(Intermediate Computations)'!AB176","v":"2012-01-01"},{"$f":"'(Intermediate Computations)'!AC176","v":"2012-02-01"},{"$f":"'(Intermediate Computations)'!AD176","v":"2012-03-01"},{"$f":"'(Intermediate Computations)'!AE176","v":"2012-04-01"},{"$f":"'(Intermediate Computations)'!AF176","v":"2012-05-01"},{"$f":"'(Intermediate Computations)'!AG176","v":"2012-06-01"},{"$f":"'(Intermediate Computations)'!AH176","v":"2012-07-01"},{"$f":"'(Intermediate Computations)'!AI176","v":"2012-08-01"},{"$f":"'(Intermediate Computations)'!AJ176","v":"2012-09-01"},{"$f":"'(Intermediate Computations)'!AK176","v":"2012-10-01"},{"$f":"'(Intermediate Computations)'!AL176","v":"2012-11-01"},{"$f":"'(Intermediate Computations)'!AM176","v":"2012-12-01"},{"$f":"'(Intermediate Computations)'!AO176","v":"2013-01-01"},{"$f":"'(Intermediate Computations)'!AP176","v":"2013-02-01"},{"$f":"'(Intermediate Computations)'!AQ176","v":"2013-03-01"},{"$f":"'(Intermediate Computations)'!AR176","v":"2013-04-01"},{"$f":"'(Intermediate Computations)'!AS176","v":"2013-05-01"},{"$f":"'(Intermediate Computations)'!AT176","v":"2013-06-01"},{"$f":"'(Intermediate Computations)'!AU176","v":"2013-07-01"},{"$f":"'(Intermediate Computations)'!AV176","v":"2013-08-01"},{"$f":"'(Intermediate Computations)'!AW176","v":"2013-09-01"},{"$f":"'(Intermediate Computations)'!AX176","v":"2013-10-01"},{"$f":"'(Intermediate Computations)'!AY176","v":"2013-11-01"},{"$f":"'(Intermediate Computations)'!AZ176","v":"2013-12-01"},{"$f":"'(Intermediate Computations)'!BB176","v":"2014-01-01"},{"$f":"'(Intermediate Computations)'!BC176","v":"2014-02-01"},{"$f":"'(Intermediate Computations)'!BD176","v":"2014-03-01"},{"$f":"'(Intermediate Computations)'!BE176","v":"2014-04-01"},{"$f":"'(Intermediate Computations)'!BF176","v":"2014-05-01"},{"$f":"'(Intermediate Computations)'!BG176","v":"2014-06-01"},{"$f":"'(Intermediate Computations)'!BH176","v":"2014-07-01"},{"$f":"'(Intermediate Computations)'!BI176","v":"2014-08-01"},{"$f":"'(Intermediate Computations)'!BJ176","v":"2014-09-01"},{"$f":"'(Intermediate Computations)'!BK176","v":"2014-10-01"},{"$f":"'(Intermediate Computations)'!BL176","v":"2014-11-01"},{"$f":"'(Intermediate Computations)'!BM176","v":"2014-12-01"},{"$f":"'(Intermediate Computations)'!BO176","v":"2015-01-01"},{"$f":"'(Intermediate Computations)'!BP176","v":"2015-02-01"},{"$f":"'(Intermediate Computations)'!BQ176","v":"2015-03-01"},{"$f":"'(Intermediate Computations)'!BR176","v":"2015-04-01"},{"$f":"'(Intermediate Computations)'!BS176","v":"2015-05-01"},{"$f":"'(Intermediate Computations)'!BT176","v":"2015-06-01"},{"$f":"'(Intermediate Computations)'!BU176","v":"2015-07-01"},{"$f":"'(Intermediate Computations)'!BV176","v":"2015-08-01"},{"$f":"'(Intermediate Computations)'!BW176","v":"2015-09-01"},{"$f":"'(Intermediate Computations)'!BX176","v":"2015-10-01"},{"$f":"'(Intermediate Computations)'!BY176","v":"2015-11-01"},{"$f":"'(Intermediate Computations)'!BZ176","v":"2015-12-01"},{"$f":"'(Intermediate Computations)'!CB176","v":"2016-01-01"},{"$f":"'(Intermediate Computations)'!CC176","v":"2016-02-01"},{"$f":"'(Intermediate Computations)'!CD176","v":"2016-03-01"},{"$f":"'(Intermediate Computations)'!CE176","v":"2016-04-01"},{"$f":"'(Intermediate Computations)'!CF176","v":"2016-05-01"},{"$f":"'(Intermediate Computations)'!CG176","v":"2016-06-01"},{"$f":"'(Intermediate Computations)'!CH176","v":"2016-07-01"},{"$f":"'(Intermediate Computations)'!CI176","v":"2016-08-01"},{"$f":"'(Intermediate Computations)'!CJ176","v":"2016-09-01"},{"$f":"'(Intermediate Computations)'!CK176","v":"2016-10-01"},{"$f":"'(Intermediate Computations)'!CL176","v":"2016-11-01"},{"$f":"'(Intermediate Computations)'!CM176","v":"2016-12-01"},{"$f":"'(Intermediate Computations)'!CO176","v":"2017-01-01"},{"$f":"'(Intermediate Computations)'!CP176","v":"2017-02-01"},{"$f":"'(Intermediate Computations)'!CQ176","v":"2017-03-01"},{"$f":"'(Intermediate Computations)'!CR176","v":"2017-04-01"},{"$f":"'(Intermediate Computations)'!CS176","v":"2017-05-01"},{"$f":"'(Intermediate Computations)'!CT176","v":"2017-06-01"},{"$f":"'(Intermediate Computations)'!CU176","v":"2017-07-01"},{"$f":"'(Intermediate Computations)'!CV176","v":"2017-08-01"},{"$f":"'(Intermediate Computations)'!CW176","v":"2017-09-01"},{"$f":"'(Intermediate Computations)'!CX176","v":"2017-10-01"},{"$f":"'(Intermediate Computations)'!CY176","v":"2017-11-01"},{"$f":"'(Intermediate Computations)'!CZ176","v":"2017-12-01"},{"$f":"'(Intermediate Computations)'!DB176","v":"2018-01-01"},{"$f":"'(Intermediate Computations)'!DC176","v":"2018-02-01"},{"$f":"'(Intermediate Computations)'!DD176","v":"2018-03-01"},{"$f":"'(Intermediate Computations)'!DE176","v":"2018-04-01"},{"$f":"'(Intermediate Computations)'!DF176","v":"2018-05-01"},{"$f":"'(Intermediate Computations)'!DG176","v":"2018-06-01"},{"$f":"'(Intermediate Computations)'!DH176","v":"2018-07-01"},{"$f":"'(Intermediate Computations)'!DI176","v":"2018-08-01"},{"$f":"'(Intermediate Computations)'!DJ176","v":"2018-09-01"},{"$f":"'(Intermediate Computations)'!DK176","v":"2018-10-01"},{"$f":"'(Intermediate Computations)'!DL176","v":"2018-11-01"},{"$f":"'(Intermediate Computations)'!DM176","v":"2018-12-01"},{"$f":"'(Intermediate Computations)'!DO176","v":"2019-01-01"},{"$f":"'(Intermediate Computations)'!DP176","v":"2019-02-01"},{"$f":"'(Intermediate Computations)'!DQ176","v":"2019-03-01"},{"$f":"'(Intermediate Computations)'!DR176","v":"2019-04-01"},{"$f":"'(Intermediate Computations)'!DS176","v":"2019-05-01"},{"$f":"'(Intermediate Computations)'!DT176","v":"2019-06-01"},{"$f":"'(Intermediate Computations)'!DU176","v":"2019-07-01"},{"$f":"'(Intermediate Computations)'!DV176","v":"2019-08-01"},{"$f":"'(Intermediate Computations)'!DW176","v":"2019-09-01"},{"$f":"'(Intermediate Computations)'!DX176","v":"2019-10-01"},{"$f":"'(Intermediate Computations)'!DY176","v":"2019-11-01"},{"$f":"'(Intermediate Computations)'!DZ176","v":"2019-12-01"},{"$f":"'(Intermediate Computations)'!EB176","v":"2020-01-01"},{"$f":"'(Intermediate Computations)'!EC176","v":"2020-02-01"},{"$f":"'(Intermediate Computations)'!ED176","v":"2020-03-01"},{"$f":"'(Intermediate Computations)'!EE176","v":"2020-04-01"},{"$f":"'(Intermediate Computations)'!EF176","v":"2020-05-01"},{"$f":"'(Intermediate Computations)'!EG176","v":"2020-06-01"},{"$f":"'(Intermediate Computations)'!EH176","v":"2020-07-01"},{"$f":"'(Intermediate Computations)'!EI176","v":"2020-08-01"},{"$f":"'(Intermediate Computations)'!EJ176","v":"2020-09-01"},{"$f":"'(Intermediate Computations)'!EK176","v":"2020-10-01"},{"$f":"'(Intermediate Computations)'!EL176","v":"2020-11-01"},{"$f":"'(Intermediate Computations)'!EM176","v":"2020-12-01"}]
[{"$f":"'Statistical Moments'!B49","v":{"v":841354.4178057668,"d":"$841,354"}},{"$f":"'Statistical Moments'!C49","v":{"v":832338.6373909429,"d":"$832,339"}},{"$f":"'Statistical Moments'!D49","v":{"v":831386.897646623,"d":"$831,387"}},{"$f":"'Statistical Moments'!E49","v":{"v":818654.7385535685,"d":"$818,655"}},{"$f":"'Statistical Moments'!F49","v":{"v":819233.837165151,"d":"$819,234"}},{"$f":"'Statistical Moments'!G49","v":{"v":823437.6080823254,"d":"$823,438"}},{"$f":"'Statistical Moments'!H49","v":{"v":841105.7606942111,"d":"$841,106"}},{"$f":"'Statistical Moments'!I49","v":{"v":823746.4344941636,"d":"$823,746"}},{"$f":"'Statistical Moments'!J49","v":{"v":834503.2984854834,"d":"$834,503"}},{"$f":"'Statistical Moments'!K49","v":{"v":819160.0025060202,"d":"$819,160"}},{"$f":"'Statistical Moments'!L49","v":{"v":829077.618476485,"d":"$829,078"}},{"$f":"'Statistical Moments'!M49","v":{"v":827829.0896197938,"d":"$827,829"}},{"$f":"'Statistical Moments'!O49","v":{"v":815130.147610999,"d":"$815,130"}},{"$f":"'Statistical Moments'!P49","v":{"v":823767.7890389154,"d":"$823,768"}},{"$f":"'Statistical Moments'!Q49","v":{"v":831705.8671676426,"d":"$831,706"}},{"$f":"'Statistical Moments'!R49","v":{"v":821028.9562705846,"d":"$821,029"}},{"$f":"'Statistical Moments'!S49","v":{"v":822383.1634863393,"d":"$822,383"}},{"$f":"'Statistical Moments'!T49","v":{"v":818242.2035692999,"d":"$818,242"}},{"$f":"'Statistical Moments'!U49","v":{"v":810986.13875532,"d":"$810,986"}},{"$f":"'Statistical Moments'!V49","v":{"v":820082.2230283489,"d":"$820,082"}},{"$f":"'Statistical Moments'!W49","v":{"v":810469.5027545285,"d":"$810,470"}},{"$f":"'Statistical Moments'!X49","v":{"v":815233.5879337615,"d":"$815,234"}},{"$f":"'Statistical Moments'!Y49","v":{"v":804624.121016357,"d":"$804,624"}},{"$f":"'Statistical Moments'!Z49","v":{"v":815714.4286471204,"d":"$815,714"}},{"$f":"'Statistical Moments'!AB49","v":{"v":801836.7409035952,"d":"$801,837"}},{"$f":"'Statistical Moments'!AC49","v":{"v":805613.9274634963,"d":"$805,614"}},{"$f":"'Statistical Moments'!AD49","v":{"v":818689.2781731401,"d":"$818,689"}},{"$f":"'Statistical Moments'!AE49","v":{"v":793982.3823065864,"d":"$793,982"}},{"$f":"'Statistical Moments'!AF49","v":{"v":806219.9165581124,"d":"$806,220"}},{"$f":"'Statistical Moments'!AG49","v":{"v":806204.7743676082,"d":"$806,205"}},{"$f":"'Statistical Moments'!AH49","v":{"v":808586.0617625333,"d":"$808,586"}},{"$f":"'Statistical Moments'!AI49","v":{"v":788314.5363894183,"d":"$788,315"}},{"$f":"'Statistical Moments'!AJ49","v":{"v":803047.9371940404,"d":"$803,048"}},{"$f":"'Statistical Moments'!AK49","v":{"v":804268.0429034352,"d":"$804,268"}},{"$f":"'Statistical Moments'!AL49","v":{"v":794607.1187676721,"d":"$794,607"}},{"$f":"'Statistical Moments'!AM49","v":{"v":804101.8536191108,"d":"$804,102"}},{"$f":"'Statistical Moments'!AO49","v":{"v":783032.6608659799,"d":"$783,033"}},{"$f":"'Statistical Moments'!AP49","v":{"v":787307.1635825565,"d":"$787,307"}},{"$f":"'Statistical Moments'!AQ49","v":{"v":802381.1592467398,"d":"$802,381"}},{"$f":"'Statistical Moments'!AR49","v":{"v":793626.8131326119,"d":"$793,627"}},{"$f":"'Statistical Moments'!AS49","v":{"v":778500.5111574568,"d":"$778,501"}},{"$f":"'Statistical Moments'!AT49","v":{"v":778006.5350803168,"d":"$778,007"}},{"$f":"'Statistical Moments'!AU49","v":{"v":799332.818584517,"d":"$799,333"}},{"$f":"'Statistical Moments'!AV49","v":{"v":798945.5407460565,"d":"$798,946"}},{"$f":"'Statistical Moments'!AW49","v":{"v":782271.7193322998,"d":"$782,272"}},{"$f":"'Statistical Moments'!AX49","v":{"v":790602.4454067072,"d":"$790,602"}},{"$f":"'Statistical Moments'!AY49","v":{"v":783135.6839234595,"d":"$783,136"}},{"$f":"'Statistical Moments'!AZ49","v":{"v":787103.0622679569,"d":"$787,103"}},{"$f":"'Statistical Moments'!BB49","v":{"v":782972.1621073153,"d":"$782,972"}},{"$f":"'Statistical Moments'!BC49","v":{"v":793926.1192186634,"d":"$793,926"}},{"$f":"'Statistical Moments'!BD49","v":{"v":796986.3504597582,"d":"$796,986"}},{"$f":"'Statistical Moments'!BE49","v":{"v":785234.2076521941,"d":"$785,234"}},{"$f":"'Statistical Moments'!BF49","v":{"v":778131.312989056,"d":"$778,131"}},{"$f":"'Statistical Moments'!BG49","v":{"v":776415.0809962744,"d":"$776,415"}},{"$f":"'Statistical Moments'!BH49","v":{"v":790743.9170905573,"d":"$790,744"}},{"$f":"'Statistical Moments'!BI49","v":{"v":774333.9023203136,"d":"$774,334"}},{"$f":"'Statistical Moments'!BJ49","v":{"v":778407.0852173371,"d":"$778,407"}},{"$f":"'Statistical Moments'!BK49","v":{"v":778359.9847580128,"d":"$778,360"}},{"$f":"'Statistical Moments'!BL49","v":{"v":772060.8907077427,"d":"$772,061"}},{"$f":"'Statistical Moments'!BM49","v":{"v":768568.0381535902,"d":"$768,568"}},{"$f":"'Statistical Moments'!BO49","v":{"v":759882.1721750029,"d":"$759,882"}},{"$f":"'Statistical Moments'!BP49","v":{"v":781726.2848683542,"d":"$781,726"}},{"$f":"'Statistical Moments'!BQ49","v":{"v":769104.4551090504,"d":"$769,104"}},{"$f":"'Statistical Moments'!BR49","v":{"v":787039.1345878935,"d":"$787,039"}},{"$f":"'Statistical Moments'!BS49","v":{"v":770222.5358546562,"d":"$770,223"}},{"$f":"'Statistical Moments'!BT49","v":{"v":776607.7655847849,"d":"$776,608"}},{"$f":"'Statistical Moments'!BU49","v":{"v":763343.6413864498,"d":"$763,344"}},{"$f":"'Statistical Moments'!BV49","v":{"v":761674.0970303646,"d":"$761,674"}},{"$f":"'Statistical Moments'!BW49","v":{"v":779072.9496747527,"d":"$779,073"}},{"$f":"'Statistical Moments'!BX49","v":{"v":755203.0910867605,"d":"$755,203"}},{"$f":"'Statistical Moments'!BY49","v":{"v":770279.1697572717,"d":"$770,279"}},{"$f":"'Statistical Moments'!BZ49","v":{"v":766559.0790658081,"d":"$766,559"}},{"$f":"'Statistical Moments'!CB49","v":{"v":764178.7154516856,"d":"$764,179"}},{"$f":"'Statistical Moments'!CC49","v":{"v":764090.5954634219,"d":"$764,091"}},{"$f":"'Statistical Moments'!CD49","v":{"v":750380.1114192893,"d":"$750,380"}},{"$f":"'Statistical Moments'!CE49","v":{"v":752299.0076631994,"d":"$752,299"}},{"$f":"'Statistical Moments'!CF49","v":{"v":757519.5735441415,"d":"$757,520"}},{"$f":"'Statistical Moments'!CG49","v":{"v":760304.1431588627,"d":"$760,304"}},{"$f":"'Statistical Moments'!CH49","v":{"v":750785.3487347059,"d":"$750,785"}},{"$f":"'Statistical Moments'!CI49","v":{"v":755089.4859127937,"d":"$755,089"}},{"$f":"'Statistical Moments'!CJ49","v":{"v":768213.3340147072,"d":"$768,213"}},{"$f":"'Statistical Moments'!CK49","v":{"v":757297.2727028602,"d":"$757,297"}},{"$f":"'Statistical Moments'!CL49","v":{"v":750784.5388740369,"d":"$750,785"}},{"$f":"'Statistical Moments'!CM49","v":{"v":738837.6800396962,"d":"$738,838"}},{"$f":"'Statistical Moments'!CO49","v":{"v":750565.007435903,"d":"$750,565"}},{"$f":"'Statistical Moments'!CP49","v":{"v":746725.3170685028,"d":"$746,725"}},{"$f":"'Statistical Moments'!CQ49","v":{"v":753923.8683477791,"d":"$753,924"}},{"$f":"'Statistical Moments'!CR49","v":{"v":747327.4253789254,"d":"$747,327"}},{"$f":"'Statistical Moments'!CS49","v":{"v":752453.3931520696,"d":"$752,453"}},{"$f":"'Statistical Moments'!CT49","v":{"v":746129.8726335695,"d":"$746,130"}},{"$f":"'Statistical Moments'!CU49","v":{"v":753340.9606702961,"d":"$753,341"}},{"$f":"'Statistical Moments'!CV49","v":{"v":747271.4584104088,"d":"$747,271"}},{"$f":"'Statistical Moments'!CW49","v":{"v":737386.7666801598,"d":"$737,387"}},{"$f":"'Statistical Moments'!CX49","v":{"v":751242.954633903,"d":"$751,243"}},{"$f":"'Statistical Moments'!CY49","v":{"v":753157.1447644049,"d":"$753,157"}},{"$f":"'Statistical Moments'!CZ49","v":{"v":755616.8564473431,"d":"$755,617"}},{"$f":"'Statistical Moments'!DB49","v":{"v":739819.7964834173,"d":"$739,820"}},{"$f":"'Statistical Moments'!DC49","v":{"v":741260.270285664,"d":"$741,260"}},{"$f":"'Statistical Moments'!DD49","v":{"v":740185.5568409793,"d":"$740,186"}},{"$f":"'Statistical Moments'!DE49","v":{"v":748461.9281068735,"d":"$748,462"}},{"$f":"'Statistical Moments'!DF49","v":{"v":743735.594555538,"d":"$743,736"}},{"$f":"'Statistical Moments'!DG49","v":{"v":731708.2891970492,"d":"$731,708"}},{"$f":"'Statistical Moments'!DH49","v":{"v":744611.857521902,"d":"$744,612"}},{"$f":"'Statistical Moments'!DI49","v":{"v":739172.6604928715,"d":"$739,173"}},{"$f":"'Statistical Moments'!DJ49","v":{"v":745631.4147194368,"d":"$745,631"}},{"$f":"'Statistical Moments'!DK49","v":{"v":741991.4442328848,"d":"$741,991"}},{"$f":"'Statistical Moments'!DL49","v":{"v":729494.8798358494,"d":"$729,495"}},{"$f":"'Statistical Moments'!DM49","v":{"v":743459.6547932567,"d":"$743,460"}},{"$f":"'Statistical Moments'!DO49","v":{"v":742395.3983538069,"d":"$742,395"}},{"$f":"'Statistical Moments'!DP49","v":{"v":731846.8125629011,"d":"$731,847"}},{"$f":"'Statistical Moments'!DQ49","v":{"v":738370.9365613407,"d":"$738,371"}},{"$f":"'Statistical Moments'!DR49","v":{"v":731811.744243983,"d":"$731,812"}},{"$f":"'Statistical Moments'!DS49","v":{"v":738004.1435873457,"d":"$738,004"}},{"$f":"'Statistical Moments'!DT49","v":{"v":728271.0542110051,"d":"$728,271"}},{"$f":"'Statistical Moments'!DU49","v":{"v":735905.8439653184,"d":"$735,906"}},{"$f":"'Statistical Moments'!DV49","v":{"v":716475.5118885372,"d":"$716,476"}},{"$f":"'Statistical Moments'!DW49","v":{"v":738130.9120650236,"d":"$738,131"}},{"$f":"'Statistical Moments'!DX49","v":{"v":728246.4641957878,"d":"$728,246"}},{"$f":"'Statistical Moments'!DY49","v":{"v":732147.355511092,"d":"$732,147"}},{"$f":"'Statistical Moments'!DZ49","v":{"v":726128.8179329697,"d":"$726,129"}},{"$f":"'Statistical Moments'!EB49","v":{"v":735306.6026708673,"d":"$735,307"}},{"$f":"'Statistical Moments'!EC49","v":{"v":733347.3369617941,"d":"$733,347"}},{"$f":"'Statistical Moments'!ED49","v":{"v":711670.0347294335,"d":"$711,670"}},{"$f":"'Statistical Moments'!EE49","v":{"v":727734.6427271056,"d":"$727,735"}},{"$f":"'Statistical Moments'!EF49","v":{"v":724037.2643133405,"d":"$724,037"}},{"$f":"'Statistical Moments'!EG49","v":{"v":722661.4444772452,"d":"$722,661"}},{"$f":"'Statistical Moments'!EH49","v":{"v":726163.5929201178,"d":"$726,164"}},{"$f":"'Statistical Moments'!EI49","v":{"v":723805.9401227208,"d":"$723,806"}},{"$f":"'Statistical Moments'!EJ49","v":{"v":725092.344393536,"d":"$725,092"}},{"$f":"'Statistical Moments'!EK49","v":{"v":715439.6211314132,"d":"$715,440"}},{"$f":"'Statistical Moments'!EL49","v":{"v":721819.2946486165,"d":"$721,819"}},{"$f":"'Statistical Moments'!EM49","v":{"v":729874.0155119057,"d":"$729,874"}}]
[{"$f":"'(Intermediate Computations)'!B185","v":"Jan 2010"},{"$f":"'(Intermediate Computations)'!C185","v":"Feb 2010"},{"$f":"'(Intermediate Computations)'!D185","v":"Mar 2010"},{"$f":"'(Intermediate Computations)'!E185","v":"Apr 2010"},{"$f":"'(Intermediate Computations)'!F185","v":"May 2010"},{"$f":"'(Intermediate Computations)'!G185","v":"Jun 2010"},{"$f":"'(Intermediate Computations)'!H185","v":"Jul 2010"},{"$f":"'(Intermediate Computations)'!I185","v":"Aug 2010"},{"$f":"'(Intermediate Computations)'!J185","v":"Sep 2010"},{"$f":"'(Intermediate Computations)'!K185","v":"Oct 2010"},{"$f":"'(Intermediate Computations)'!L185","v":"Nov 2010"},{"$f":"'(Intermediate Computations)'!M185","v":"Dec 2010"},{"$f":"'(Intermediate Computations)'!O185","v":"Jan 2011"},{"$f":"'(Intermediate Computations)'!P185","v":"Feb 2011"},{"$f":"'(Intermediate Computations)'!Q185","v":"Mar 2011"},{"$f":"'(Intermediate Computations)'!R185","v":"Apr 2011"},{"$f":"'(Intermediate Computations)'!S185","v":"May 2011"},{"$f":"'(Intermediate Computations)'!T185","v":"Jun 2011"},{"$f":"'(Intermediate Computations)'!U185","v":"Jul 2011"},{"$f":"'(Intermediate Computations)'!V185","v":"Aug 2011"},{"$f":"'(Intermediate Computations)'!W185","v":"Sep 2011"},{"$f":"'(Intermediate Computations)'!X185","v":"Oct 2011"},{"$f":"'(Intermediate Computations)'!Y185","v":"Nov 2011"},{"$f":"'(Intermediate Computations)'!Z185","v":"Dec 2011"},{"$f":"'(Intermediate Computations)'!AB185","v":"Jan 2012"},{"$f":"'(Intermediate Computations)'!AC185","v":"Feb 2012"},{"$f":"'(Intermediate Computations)'!AD185","v":"Mar 2012"},{"$f":"'(Intermediate Computations)'!AE185","v":"Apr 2012"},{"$f":"'(Intermediate Computations)'!AF185","v":"May 2012"},{"$f":"'(Intermediate Computations)'!AG185","v":"Jun 2012"},{"$f":"'(Intermediate Computations)'!AH185","v":"Jul 2012"},{"$f":"'(Intermediate Computations)'!AI185","v":"Aug 2012"},{"$f":"'(Intermediate Computations)'!AJ185","v":"Sep 2012"},{"$f":"'(Intermediate Computations)'!AK185","v":"Oct 2012"},{"$f":"'(Intermediate Computations)'!AL185","v":"Nov 2012"},{"$f":"'(Intermediate Computations)'!AM185","v":"Dec 2012"},{"$f":"'(Intermediate Computations)'!AO185","v":"Jan 2013"},{"$f":"'(Intermediate Computations)'!AP185","v":"Feb 2013"},{"$f":"'(Intermediate Computations)'!AQ185","v":"Mar 2013"},{"$f":"'(Intermediate Computations)'!AR185","v":"Apr 2013"},{"$f":"'(Intermediate Computations)'!AS185","v":"May 2013"},{"$f":"'(Intermediate Computations)'!AT185","v":"Jun 2013"},{"$f":"'(Intermediate Computations)'!AU185","v":"Jul 2013"},{"$f":"'(Intermediate Computations)'!AV185","v":"Aug 2013"},{"$f":"'(Intermediate Computations)'!AW185","v":"Sep 2013"},{"$f":"'(Intermediate Computations)'!AX185","v":"Oct 2013"},{"$f":"'(Intermediate Computations)'!AY185","v":"Nov 2013"},{"$f":"'(Intermediate Computations)'!AZ185","v":"Dec 2013"},{"$f":"'(Intermediate Computations)'!BB185","v":"Jan 2014"},{"$f":"'(Intermediate Computations)'!BC185","v":"Feb 2014"},{"$f":"'(Intermediate Computations)'!BD185","v":"Mar 2014"},{"$f":"'(Intermediate Computations)'!BE185","v":"Apr 2014"},{"$f":"'(Intermediate Computations)'!BF185","v":"May 2014"},{"$f":"'(Intermediate Computations)'!BG185","v":"Jun 2014"},{"$f":"'(Intermediate Computations)'!BH185","v":"Jul 2014"},{"$f":"'(Intermediate Computations)'!BI185","v":"Aug 2014"},{"$f":"'(Intermediate Computations)'!BJ185","v":"Sep 2014"},{"$f":"'(Intermediate Computations)'!BK185","v":"Oct 2014"},{"$f":"'(Intermediate Computations)'!BL185","v":"Nov 2014"},{"$f":"'(Intermediate Computations)'!BM185","v":"Dec 2014"},{"$f":"'(Intermediate Computations)'!BO185","v":"Jan 2015"},{"$f":"'(Intermediate Computations)'!BP185","v":"Feb 2015"},{"$f":"'(Intermediate Computations)'!BQ185","v":"Mar 2015"},{"$f":"'(Intermediate Computations)'!BR185","v":"Apr 2015"},{"$f":"'(Intermediate Computations)'!BS185","v":"May 2015"},{"$f":"'(Intermediate Computations)'!BT185","v":"Jun 2015"},{"$f":"'(Intermediate Computations)'!BU185","v":"Jul 2015"},{"$f":"'(Intermediate Computations)'!BV185","v":"Aug 2015"},{"$f":"'(Intermediate Computations)'!BW185","v":"Sep 2015"},{"$f":"'(Intermediate Computations)'!BX185","v":"Oct 2015"},{"$f":"'(Intermediate Computations)'!BY185","v":"Nov 2015"},{"$f":"'(Intermediate Computations)'!BZ185","v":"Dec 2015"},{"$f":"'(Intermediate Computations)'!CB185","v":"Jan 2016"},{"$f":"'(Intermediate Computations)'!CC185","v":"Feb 2016"},{"$f":"'(Intermediate Computations)'!CD185","v":"Mar 2016"},{"$f":"'(Intermediate Computations)'!CE185","v":"Apr 2016"},{"$f":"'(Intermediate Computations)'!CF185","v":"May 2016"},{"$f":"'(Intermediate Computations)'!CG185","v":"Jun 2016"},{"$f":"'(Intermediate Computations)'!CH185","v":"Jul 2016"},{"$f":"'(Intermediate Computations)'!CI185","v":"Aug 2016"},{"$f":"'(Intermediate Computations)'!CJ185","v":"Sep 2016"},{"$f":"'(Intermediate Computations)'!CK185","v":"Oct 2016"},{"$f":"'(Intermediate Computations)'!CL185","v":"Nov 2016"},{"$f":"'(Intermediate Computations)'!CM185","v":"Dec 2016"},{"$f":"'(Intermediate Computations)'!CO185","v":"Jan 2017"},{"$f":"'(Intermediate Computations)'!CP185","v":"Feb 2017"},{"$f":"'(Intermediate Computations)'!CQ185","v":"Mar 2017"},{"$f":"'(Intermediate Computations)'!CR185","v":"Apr 2017"},{"$f":"'(Intermediate Computations)'!CS185","v":"May 2017"},{"$f":"'(Intermediate Computations)'!CT185","v":"Jun 2017"},{"$f":"'(Intermediate Computations)'!CU185","v":"Jul 2017"},{"$f":"'(Intermediate Computations)'!CV185","v":"Aug 2017"},{"$f":"'(Intermediate Computations)'!CW185","v":"Sep 2017"},{"$f":"'(Intermediate Computations)'!CX185","v":"Oct 2017"},{"$f":"'(Intermediate Computations)'!CY185","v":"Nov 2017"},{"$f":"'(Intermediate Computations)'!CZ185","v":"Dec 2017"},{"$f":"'(Intermediate Computations)'!DB185","v":"Jan 2018"},{"$f":"'(Intermediate Computations)'!DC185","v":"Feb 2018"},{"$f":"'(Intermediate Computations)'!DD185","v":"Mar 2018"},{"$f":"'(Intermediate Computations)'!DE185","v":"Apr 2018"},{"$f":"'(Intermediate Computations)'!DF185","v":"May 2018"},{"$f":"'(Intermediate Computations)'!DG185","v":"Jun 2018"},{"$f":"'(Intermediate Computations)'!DH185","v":"Jul 2018"},{"$f":"'(Intermediate Computations)'!DI185","v":"Aug 2018"},{"$f":"'(Intermediate Computations)'!DJ185","v":"Sep 2018"},{"$f":"'(Intermediate Computations)'!DK185","v":"Oct 2018"},{"$f":"'(Intermediate Computations)'!DL185","v":"Nov 2018"},{"$f":"'(Intermediate Computations)'!DM185","v":"Dec 2018"},{"$f":"'(Intermediate Computations)'!DO185","v":"Jan 2019"},{"$f":"'(Intermediate Computations)'!DP185","v":"Feb 2019"},{"$f":"'(Intermediate Computations)'!DQ185","v":"Mar 2019"},{"$f":"'(Intermediate Computations)'!DR185","v":"Apr 2019"},{"$f":"'(Intermediate Computations)'!DS185","v":"May 2019"},{"$f":"'(Intermediate Computations)'!DT185","v":"Jun 2019"},{"$f":"'(Intermediate Computations)'!DU185","v":"Jul 2019"},{"$f":"'(Intermediate Computations)'!DV185","v":"Aug 2019"},{"$f":"'(Intermediate Computations)'!DW185","v":"Sep 2019"},{"$f":"'(Intermediate Computations)'!DX185","v":"Oct 2019"},{"$f":"'(Intermediate Computations)'!DY185","v":"Nov 2019"},{"$f":"'(Intermediate Computations)'!DZ185","v":"Dec 2019"},{"$f":"'(Intermediate Computations)'!EB185","v":"Jan 2020"},{"$f":"'(Intermediate Computations)'!EC185","v":"Feb 2020"},{"$f":"'(Intermediate Computations)'!ED185","v":"Mar 2020"},{"$f":"'(Intermediate Computations)'!EE185","v":"Apr 2020"},{"$f":"'(Intermediate Computations)'!EF185","v":"May 2020"},{"$f":"'(Intermediate Computations)'!EG185","v":"Jun 2020"},{"$f":"'(Intermediate Computations)'!EH185","v":"Jul 2020"},{"$f":"'(Intermediate Computations)'!EI185","v":"Aug 2020"},{"$f":"'(Intermediate Computations)'!EJ185","v":"Sep 2020"},{"$f":"'(Intermediate Computations)'!EK185","v":"Oct 2020"},{"$f":"'(Intermediate Computations)'!EL185","v":"Nov 2020"},{"$f":"'(Intermediate Computations)'!EM185","v":"Dec 2020"}]
[{"$f":"'(Intermediate Computations)'!B182","v":"2010-01-01"},{"$f":"'(Intermediate Computations)'!C182","v":"2010-02-01"},{"$f":"'(Intermediate Computations)'!D182","v":"2010-03-01"},{"$f":"'(Intermediate Computations)'!E182","v":"2010-04-01"},{"$f":"'(Intermediate Computations)'!F182","v":"2010-05-01"},{"$f":"'(Intermediate Computations)'!G182","v":"2010-06-01"},{"$f":"'(Intermediate Computations)'!H182","v":"2010-07-01"},{"$f":"'(Intermediate Computations)'!I182","v":"2010-08-01"},{"$f":"'(Intermediate Computations)'!J182","v":"2010-09-01"},{"$f":"'(Intermediate Computations)'!K182","v":"2010-10-01"},{"$f":"'(Intermediate Computations)'!L182","v":"2010-11-01"},{"$f":"'(Intermediate Computations)'!M182","v":"2010-12-01"},{"$f":"'(Intermediate Computations)'!O182","v":"2011-01-01"},{"$f":"'(Intermediate Computations)'!P182","v":"2011-02-01"},{"$f":"'(Intermediate Computations)'!Q182","v":"2011-03-01"},{"$f":"'(Intermediate Computations)'!R182","v":"2011-04-01"},{"$f":"'(Intermediate Computations)'!S182","v":"2011-05-01"},{"$f":"'(Intermediate Computations)'!T182","v":"2011-06-01"},{"$f":"'(Intermediate Computations)'!U182","v":"2011-07-01"},{"$f":"'(Intermediate Computations)'!V182","v":"2011-08-01"},{"$f":"'(Intermediate Computations)'!W182","v":"2011-09-01"},{"$f":"'(Intermediate Computations)'!X182","v":"2011-10-01"},{"$f":"'(Intermediate Computations)'!Y182","v":"2011-11-01"},{"$f":"'(Intermediate Computations)'!Z182","v":"2011-12-01"},{"$f":"'(Intermediate Computations)'!AB182","v":"2012-01-01"},{"$f":"'(Intermediate Computations)'!AC182","v":"2012-02-01"},{"$f":"'(Intermediate Computations)'!AD182","v":"2012-03-01"},{"$f":"'(Intermediate Computations)'!AE182","v":"2012-04-01"},{"$f":"'(Intermediate Computations)'!AF182","v":"2012-05-01"},{"$f":"'(Intermediate Computations)'!AG182","v":"2012-06-01"},{"$f":"'(Intermediate Computations)'!AH182","v":"2012-07-01"},{"$f":"'(Intermediate Computations)'!AI182","v":"2012-08-01"},{"$f":"'(Intermediate Computations)'!AJ182","v":"2012-09-01"},{"$f":"'(Intermediate Computations)'!AK182","v":"2012-10-01"},{"$f":"'(Intermediate Computations)'!AL182","v":"2012-11-01"},{"$f":"'(Intermediate Computations)'!AM182","v":"2012-12-01"},{"$f":"'(Intermediate Computations)'!AO182","v":"2013-01-01"},{"$f":"'(Intermediate Computations)'!AP182","v":"2013-02-01"},{"$f":"'(Intermediate Computations)'!AQ182","v":"2013-03-01"},{"$f":"'(Intermediate Computations)'!AR182","v":"2013-04-01"},{"$f":"'(Intermediate Computations)'!AS182","v":"2013-05-01"},{"$f":"'(Intermediate Computations)'!AT182","v":"2013-06-01"},{"$f":"'(Intermediate Computations)'!AU182","v":"2013-07-01"},{"$f":"'(Intermediate Computations)'!AV182","v":"2013-08-01"},{"$f":"'(Intermediate Computations)'!AW182","v":"2013-09-01"},{"$f":"'(Intermediate Computations)'!AX182","v":"2013-10-01"},{"$f":"'(Intermediate Computations)'!AY182","v":"2013-11-01"},{"$f":"'(Intermediate Computations)'!AZ182","v":"2013-12-01"},{"$f":"'(Intermediate Computations)'!BB182","v":"2014-01-01"},{"$f":"'(Intermediate Computations)'!BC182","v":"2014-02-01"},{"$f":"'(Intermediate Computations)'!BD182","v":"2014-03-01"},{"$f":"'(Intermediate Computations)'!BE182","v":"2014-04-01"},{"$f":"'(Intermediate Computations)'!BF182","v":"2014-05-01"},{"$f":"'(Intermediate Computations)'!BG182","v":"2014-06-01"},{"$f":"'(Intermediate Computations)'!BH182","v":"2014-07-01"},{"$f":"'(Intermediate Computations)'!BI182","v":"2014-08-01"},{"$f":"'(Intermediate Computations)'!BJ182","v":"2014-09-01"},{"$f":"'(Intermediate Computations)'!BK182","v":"2014-10-01"},{"$f":"'(Intermediate Computations)'!BL182","v":"2014-11-01"},{"$f":"'(Intermediate Computations)'!BM182","v":"2014-12-01"},{"$f":"'(Intermediate Computations)'!BO182","v":"2015-01-01"},{"$f":"'(Intermediate Computations)'!BP182","v":"2015-02-01"},{"$f":"'(Intermediate Computations)'!BQ182","v":"2015-03-01"},{"$f":"'(Intermediate Computations)'!BR182","v":"2015-04-01"},{"$f":"'(Intermediate Computations)'!BS182","v":"2015-05-01"},{"$f":"'(Intermediate Computations)'!BT182","v":"2015-06-01"},{"$f":"'(Intermediate Computations)'!BU182","v":"2015-07-01"},{"$f":"'(Intermediate Computations)'!BV182","v":"2015-08-01"},{"$f":"'(Intermediate Computations)'!BW182","v":"2015-09-01"},{"$f":"'(Intermediate Computations)'!BX182","v":"2015-10-01"},{"$f":"'(Intermediate Computations)'!BY182","v":"2015-11-01"},{"$f":"'(Intermediate Computations)'!BZ182","v":"2015-12-01"},{"$f":"'(Intermediate Computations)'!CB182","v":"2016-01-01"},{"$f":"'(Intermediate Computations)'!CC182","v":"2016-02-01"},{"$f":"'(Intermediate Computations)'!CD182","v":"2016-03-01"},{"$f":"'(Intermediate Computations)'!CE182","v":"2016-04-01"},{"$f":"'(Intermediate Computations)'!CF182","v":"2016-05-01"},{"$f":"'(Intermediate Computations)'!CG182","v":"2016-06-01"},{"$f":"'(Intermediate Computations)'!CH182","v":"2016-07-01"},{"$f":"'(Intermediate Computations)'!CI182","v":"2016-08-01"},{"$f":"'(Intermediate Computations)'!CJ182","v":"2016-09-01"},{"$f":"'(Intermediate Computations)'!CK182","v":"2016-10-01"},{"$f":"'(Intermediate Computations)'!CL182","v":"2016-11-01"},{"$f":"'(Intermediate Computations)'!CM182","v":"2016-12-01"},{"$f":"'(Intermediate Computations)'!CO182","v":"2017-01-01"},{"$f":"'(Intermediate Computations)'!CP182","v":"2017-02-01"},{"$f":"'(Intermediate Computations)'!CQ182","v":"2017-03-01"},{"$f":"'(Intermediate Computations)'!CR182","v":"2017-04-01"},{"$f":"'(Intermediate Computations)'!CS182","v":"2017-05-01"},{"$f":"'(Intermediate Computations)'!CT182","v":"2017-06-01"},{"$f":"'(Intermediate Computations)'!CU182","v":"2017-07-01"},{"$f":"'(Intermediate Computations)'!CV182","v":"2017-08-01"},{"$f":"'(Intermediate Computations)'!CW182","v":"2017-09-01"},{"$f":"'(Intermediate Computations)'!CX182","v":"2017-10-01"},{"$f":"'(Intermediate Computations)'!CY182","v":"2017-11-01"},{"$f":"'(Intermediate Computations)'!CZ182","v":"2017-12-01"},{"$f":"'(Intermediate Computations)'!DB182","v":"2018-01-01"},{"$f":"'(Intermediate Computations)'!DC182","v":"2018-02-01"},{"$f":"'(Intermediate Computations)'!DD182","v":"2018-03-01"},{"$f":"'(Intermediate Computations)'!DE182","v":"2018-04-01"},{"$f":"'(Intermediate Computations)'!DF182","v":"2018-05-01"},{"$f":"'(Intermediate Computations)'!DG182","v":"2018-06-01"},{"$f":"'(Intermediate Computations)'!DH182","v":"2018-07-01"},{"$f":"'(Intermediate Computations)'!DI182","v":"2018-08-01"},{"$f":"'(Intermediate Computations)'!DJ182","v":"2018-09-01"},{"$f":"'(Intermediate Computations)'!DK182","v":"2018-10-01"},{"$f":"'(Intermediate Computations)'!DL182","v":"2018-11-01"},{"$f":"'(Intermediate Computations)'!DM182","v":"2018-12-01"},{"$f":"'(Intermediate Computations)'!DO182","v":"2019-01-01"},{"$f":"'(Intermediate Computations)'!DP182","v":"2019-02-01"},{"$f":"'(Intermediate Computations)'!DQ182","v":"2019-03-01"},{"$f":"'(Intermediate Computations)'!DR182","v":"2019-04-01"},{"$f":"'(Intermediate Computations)'!DS182","v":"2019-05-01"},{"$f":"'(Intermediate Computations)'!DT182","v":"2019-06-01"},{"$f":"'(Intermediate Computations)'!DU182","v":"2019-07-01"},{"$f":"'(Intermediate Computations)'!DV182","v":"2019-08-01"},{"$f":"'(Intermediate Computations)'!DW182","v":"2019-09-01"},{"$f":"'(Intermediate Computations)'!DX182","v":"2019-10-01"},{"$f":"'(Intermediate Computations)'!DY182","v":"2019-11-01"},{"$f":"'(Intermediate Computations)'!DZ182","v":"2019-12-01"},{"$f":"'(Intermediate Computations)'!EB182","v":"2020-01-01"},{"$f":"'(Intermediate Computations)'!EC182","v":"2020-02-01"},{"$f":"'(Intermediate Computations)'!ED182","v":"2020-03-01"},{"$f":"'(Intermediate Computations)'!EE182","v":"2020-04-01"},{"$f":"'(Intermediate Computations)'!EF182","v":"2020-05-01"},{"$f":"'(Intermediate Computations)'!EG182","v":"2020-06-01"},{"$f":"'(Intermediate Computations)'!EH182","v":"2020-07-01"},{"$f":"'(Intermediate Computations)'!EI182","v":"2020-08-01"},{"$f":"'(Intermediate Computations)'!EJ182","v":"2020-09-01"},{"$f":"'(Intermediate Computations)'!EK182","v":"2020-10-01"},{"$f":"'(Intermediate Computations)'!EL182","v":"2020-11-01"},{"$f":"'(Intermediate Computations)'!EM182","v":"2020-12-01"}]
[{"$f":"'Statistical Moments'!B50","v":{"v":14923.982797323237,"d":"$14,924"}},{"$f":"'Statistical Moments'!C50","v":{"v":35328.43276577123,"d":"$35,328"}},{"$f":"'Statistical Moments'!D50","v":{"v":14960.386199875518,"d":"$14,960"}},{"$f":"'Statistical Moments'!E50","v":{"v":14652.55508196153,"d":"$14,653"}},{"$f":"'Statistical Moments'!F50","v":{"v":21303.474276769226,"d":"$21,303"}},{"$f":"'Statistical Moments'!G50","v":{"v":20012.802471924293,"d":"$20,013"}},{"$f":"'Statistical Moments'!H50","v":{"v":17171.144559246888,"d":"$17,171"}},{"$f":"'Statistical Moments'!I50","v":{"v":21233.780306027445,"d":"$21,234"}},{"$f":"'Statistical Moments'!J50","v":{"v":20212.01988987605,"d":"$20,212"}},{"$f":"'Statistical Moments'!K50","v":{"v":16723.349163436633,"d":"$16,723"}},{"$f":"'Statistical Moments'!L50","v":{"v":15975.582785635288,"d":"$15,976"}},{"$f":"'Statistical Moments'!M50","v":{"v":23191.976182377126,"d":"$23,192"}},{"$f":"'Statistical Moments'!O50","v":{"v":16215.005003032551,"d":"$16,215"}},{"$f":"'Statistical Moments'!P50","v":{"v":16487.753834645377,"d":"$16,488"}},{"$f":"'Statistical Moments'!Q50","v":{"v":20132.273391591832,"d":"$20,132"}},{"$f":"'Statistical Moments'!R50","v":{"v":27870.383136495224,"d":"$27,870"}},{"$f":"'Statistical Moments'!S50","v":{"v":22134.706739377863,"d":"$22,135"}},{"$f":"'Statistical Moments'!T50","v":{"v":31711.878002853744,"d":"$31,712"}},{"$f":"'Statistical Moments'!U50","v":{"v":17183.990031847614,"d":"$17,184"}},{"$f":"'Statistical Moments'!V50","v":{"v":16543.712799242126,"d":"$16,544"}},{"$f":"'Statistical Moments'!W50","v":{"v":23146.69202957143,"d":"$23,147"}},{"$f":"'Statistical Moments'!X50","v":{"v":9221.258887220576,"d":"$9,221"}},{"$f":"'Statistical Moments'!Y50","v":{"v":26473.827845061427,"d":"$26,474"}},{"$f":"'Statistical Moments'!Z50","v":{"v":17306.294473253587,"d":"$17,306"}},{"$f":"'Statistical Moments'!AB50","v":{"v":18699.777713585197,"d":"$18,700"}},{"$f":"'Statistical Moments'!AC50","v":{"v":22633.994748993395,"d":"$22,634"}},{"$f":"'Statistical Moments'!AD50","v":{"v":15700.142516423532,"d":"$15,700"}},{"$f":"'Statistical Moments'!AE50","v":{"v":12660.642914770413,"d":"$12,661"}},{"$f":"'Statistical Moments'!AF50","v":{"v":29175.122828947526,"d":"$29,175"}},{"$f":"'Statistical Moments'!AG50","v":{"v":13633.970095970386,"d":"$13,634"}},{"$f":"'Statistical Moments'!AH50","v":{"v":18959.54124717386,"d":"$18,960"}},{"$f":"'Statistical Moments'!AI50","v":{"v":11621.89051471296,"d":"$11,622"}},{"$f":"'Statistical Moments'!AJ50","v":{"v":27350.208499314598,"d":"$27,350"}},{"$f":"'Statistical Moments'!AK50","v":{"v":18727.69188015499,"d":"$18,728"}},{"$f":"'Statistical Moments'!AL50","v":{"v":20428.253544323496,"d":"$20,428"}},{"$f":"'Statistical Moments'!AM50","v":{"v":27419.030020264174,"d":"$27,419"}},{"$f":"'Statistical Moments'!AO50","v":{"v":19675.649371013387,"d":"$19,676"}},{"$f":"'Statistical Moments'!AP50","v":{"v":8574.65615302416,"d":"$8,575"}},{"$f":"'Statistical Moments'!AQ50","v":{"v":19633.655449971542,"d":"$19,634"}},{"$f":"'Statistical Moments'!AR50","v":{"v":25889.363379949176,"d":"$25,889"}},{"$f":"'Statistical Moments'!AS50","v":{"v":16552.825374463337,"d":"$16,553"}},{"$f":"'Statistical Moments'!AT50","v":{"v":17549.862239093054,"d":"$17,550"}},{"$f":"'Statistical Moments'!AU50","v":{"v":14902.558695190864,"d":"$14,903"}},{"$f":"'Statistical Moments'!AV50","v":{"v":11075.346704944352,"d":"$11,075"}},{"$f":"'Statistical Moments'!AW50","v":{"v":23126.856524993254,"d":"$23,127"}},{"$f":"'Statistical Moments'!AX50","v":{"v":23122.70017160981,"d":"$23,123"}},{"$f":"'Statistical Moments'!AY50","v":{"v":19882.45524678498,"d":"$19,882"}},{"$f":"'Statistical Moments'!AZ50","v":{"v":22427.46446851438,"d":"$22,427"}},{"$f":"'Statistical Moments'!BB50","v":{"v":22464.01198568926,"d":"$22,464"}},{"$f":"'Statistical Moments'!BC50","v":{"v":14055.81755090033,"d":"$14,056"}},{"$f":"'Statistical Moments'!BD50","v":{"v":21274.895885985712,"d":"$21,275"}},{"$f":"'Statistical Moments'!BE50","v":{"v":13440.688885305564,"d":"$13,441"}},{"$f":"'Statistical Moments'!BF50","v":{"v":17053.8589982658,"d":"$17,054"}},{"$f":"'Statistical Moments'!BG50","v":{"v":17464.253770776908,"d":"$17,464"}},{"$f":"'Statistical Moments'!BH50","v":{"v":21120.4812563349,"d":"$21,120"}},{"$f":"'Statistical Moments'!BI50","v":{"v":23861.114082322252,"d":"$23,861"}},{"$f":"'Statistical Moments'!BJ50","v":{"v":18256.688209001688,"d":"$18,257"}},{"$f":"'Statistical Moments'!BK50","v":{"v":27226.764034902193,"d":"$27,227"}},{"$f":"'Statistical Moments'!BL50","v":{"v":20198.345120408132,"d":"$20,198"}},{"$f":"'Statistical Moments'!BM50","v":{"v":22885.328987425735,"d":"$22,885"}},{"$f":"'Statistical Moments'!BO50","v":{"v":20227.763228302385,"d":"$20,228"}},{"$f":"'Statistical Moments'!BP50","v":{"v":18844.474307007713,"d":"$18,844"}},{"$f":"'Statistical Moments'!BQ50","v":{"v":14534.073438945474,"d":"$14,534"}},{"$f":"'Statistical Moments'!BR50","v":{"v":18605.366230300413,"d":"$18,605"}},{"$f":"'Statistical Moments'!BS50","v":{"v":17195.555402045928,"d":"$17,196"}},{"$f":"'Statistical Moments'!BT50","v":{"v":22803.25356313862,"d":"$22,803"}},{"$f":"'Statistical Moments'!BU50","v":{"v":18317.593078843667,"d":"$18,318"}},{"$f":"'Statistical Moments'!BV50","v":{"v":20848.473938841904,"d":"$20,848"}},{"$f":"'Statistical Moments'!BW50","v":{"v":10435.455929324338,"d":"$10,435"}},{"$f":"'Statistical Moments'!BX50","v":{"v":19650.758151691156,"d":"$19,651"}},{"$f":"'Statistical Moments'!BY50","v":{"v":14191.362222769701,"d":"$14,191"}},{"$f":"'Statistical Moments'!BZ50","v":{"v":14235.116880504016,"d":"$14,235"}},{"$f":"'Statistical Moments'!CB50","v":{"v":20451.372485541408,"d":"$20,451"}},{"$f":"'Statistical Moments'!CC50","v":{"v":17088.695374319585,"d":"$17,089"}},{"$f":"'Statistical Moments'!CD50","v":{"v":19392.89529671477,"d":"$19,393"}},{"$f":"'Statistical Moments'!CE50","v":{"v":15067.185702677778,"d":"$15,067"}},{"$f":"'Statistical Moments'!CF50","v":{"v":18793.98871523312,"d":"$18,794"}},{"$f":"'Statistical Moments'!CG50","v":{"v":14928.976463857733,"d":"$14,929"}},{"$f":"'Statistical Moments'!CH50","v":{"v":29121.167903759066,"d":"$29,121"}},{"$f":"'Statistical Moments'!CI50","v":{"v":23657.424853184297,"d":"$23,657"}},{"$f":"'Statistical Moments'!CJ50","v":{"v":20468.368626765412,"d":"$20,468"}},{"$f":"'Statistical Moments'!CK50","v":{"v":18819.411246403022,"d":"$18,819"}},{"$f":"'Statistical Moments'!CL50","v":{"v":17828.348080253738,"d":"$17,828"}},{"$f":"'Statistical Moments'!CM50","v":{"v":19434.193166464098,"d":"$19,434"}},{"$f":"'Statistical Moments'!CO50","v":{"v":19064.937260243387,"d":"$19,065"}},{"$f":"'Statistical Moments'!CP50","v":{"v":16263.211513973807,"d":"$16,263"}},{"$f":"'Statistical Moments'!CQ50","v":{"v":23996.429691206547,"d":"$23,996"}},{"$f":"'Statistical Moments'!CR50","v":{"v":15806.016340518658,"d":"$15,806"}},{"$f":"'Statistical Moments'!CS50","v":{"v":17931.15394415934,"d":"$17,931"}},{"$f":"'Statistical Moments'!CT50","v":{"v":24443.322913340126,"d":"$24,443"}},{"$f":"'Statistical Moments'!CU50","v":{"v":19130.76297046092,"d":"$19,131"}},{"$f":"'Statistical Moments'!CV50","v":{"v":19286.954691350416,"d":"$19,287"}},{"$f":"'Statistical Moments'!CW50","v":{"v":16225.998491462942,"d":"$16,226"}},{"$f":"'Statistical Moments'!CX50","v":{"v":27055.189604252257,"d":"$27,055"}},{"$f":"'Statistical Moments'!CY50","v":{"v":19082.99843817931,"d":"$19,083"}},{"$f":"'Statistical Moments'!CZ50","v":{"v":15312.662472506441,"d":"$15,313"}},{"$f":"'Statistical Moments'!DB50","v":{"v":18240.776493826383,"d":"$18,241"}},{"$f":"'Statistical Moments'!DC50","v":{"v":21044.417494136527,"d":"$21,044"}},{"$f":"'Statistical Moments'!DD50","v":{"v":12750.277272672432,"d":"$12,750"}},{"$f":"'Statistical Moments'!DE50","v":{"v":23882.41131459649,"d":"$23,882"}},{"$f":"'Statistical Moments'!DF50","v":{"v":19411.36806412387,"d":"$19,411"}},{"$f":"'Statistical Moments'!DG50","v":{"v":12220.500724667438,"d":"$12,221"}},{"$f":"'Statistical Moments'!DH50","v":{"v":18815.76524965993,"d":"$18,816"}},{"$f":"'Statistical Moments'!DI50","v":{"v":14580.750208489815,"d":"$14,581"}},{"$f":"'Statistical Moments'!DJ50","v":{"v":27422.76074710784,"d":"$27,423"}},{"$f":"'Statistical Moments'!DK50","v":{"v":20055.22657495395,"d":"$20,055"}},{"$f":"'Statistical Moments'!DL50","v":{"v":23535.24999984055,"d":"$23,535"}},{"$f":"'Statistical Moments'!DM50","v":{"v":19433.19786674556,"d":"$19,433"}},{"$f":"'Statistical Moments'!DO50","v":{"v":23270.85387734897,"d":"$23,271"}},{"$f":"'Statistical Moments'!DP50","v":{"v":22955.07069194898,"d":"$22,955"}},{"$f":"'Statistical Moments'!DQ50","v":{"v":18699.63491899898,"d":"$18,700"}},{"$f":"'Statistical Moments'!DR50","v":{"v":20373.2108404641,"d":"$20,373"}},{"$f":"'Statistical Moments'!DS50","v":{"v":18808.94855301141,"d":"$18,809"}},{"$f":"'Statistical Moments'!DT50","v":{"v":20138.209654264498,"d":"$20,138"}},{"$f":"'Statistical Moments'!DU50","v":{"v":22613.42019704105,"d":"$22,613"}},{"$f":"'Statistical Moments'!DV50","v":{"v":20407.434975736098,"d":"$20,407"}},{"$f":"'Statistical Moments'!DW50","v":{"v":16104.821167112781,"d":"$16,105"}},{"$f":"'Statistical Moments'!DX50","v":{"v":19043.3325915609,"d":"$19,043"}},{"$f":"'Statistical Moments'!DY50","v":{"v":25711.58665747231,"d":"$25,712"}},{"$f":"'Statistical Moments'!DZ50","v":{"v":11452.815829643754,"d":"$11,453"}},{"$f":"'Statistical Moments'!EB50","v":{"v":16321.647820760583,"d":"$16,322"}},{"$f":"'Statistical Moments'!EC50","v":{"v":24331.578006568405,"d":"$24,332"}},{"$f":"'Statistical Moments'!ED50","v":{"v":17334.538502223517,"d":"$17,335"}},{"$f":"'Statistical Moments'!EE50","v":{"v":24062.042602739504,"d":"$24,062"}},{"$f":"'Statistical Moments'!EF50","v":{"v":19842.73876683749,"d":"$19,843"}},{"$f":"'Statistical Moments'!EG50","v":{"v":19105.207898045508,"d":"$19,105"}},{"$f":"'Statistical Moments'!EH50","v":{"v":19994.102746195276,"d":"$19,994"}},{"$f":"'Statistical Moments'!EI50","v":{"v":29236.282124037374,"d":"$29,236"}},{"$f":"'Statistical Moments'!EJ50","v":{"v":19722.978735317436,"d":"$19,723"}},{"$f":"'Statistical Moments'!EK50","v":{"v":14447.35908927138,"d":"$14,447"}},{"$f":"'Statistical Moments'!EL50","v":{"v":20682.510056539468,"d":"$20,683"}},{"$f":"'Statistical Moments'!EM50","v":{"v":17639.223558801412,"d":"$17,639"}}]
[{"$f":"'(Intermediate Computations)'!B191","v":"Jan 2010"},{"$f":"'(Intermediate Computations)'!C191","v":"Feb 2010"},{"$f":"'(Intermediate Computations)'!D191","v":"Mar 2010"},{"$f":"'(Intermediate Computations)'!E191","v":"Apr 2010"},{"$f":"'(Intermediate Computations)'!F191","v":"May 2010"},{"$f":"'(Intermediate Computations)'!G191","v":"Jun 2010"},{"$f":"'(Intermediate Computations)'!H191","v":"Jul 2010"},{"$f":"'(Intermediate Computations)'!I191","v":"Aug 2010"},{"$f":"'(Intermediate Computations)'!J191","v":"Sep 2010"},{"$f":"'(Intermediate Computations)'!K191","v":"Oct 2010"},{"$f":"'(Intermediate Computations)'!L191","v":"Nov 2010"},{"$f":"'(Intermediate Computations)'!M191","v":"Dec 2010"},{"$f":"'(Intermediate Computations)'!O191","v":"Jan 2011"},{"$f":"'(Intermediate Computations)'!P191","v":"Feb 2011"},{"$f":"'(Intermediate Computations)'!Q191","v":"Mar 2011"},{"$f":"'(Intermediate Computations)'!R191","v":"Apr 2011"},{"$f":"'(Intermediate Computations)'!S191","v":"May 2011"},{"$f":"'(Intermediate Computations)'!T191","v":"Jun 2011"},{"$f":"'(Intermediate Computations)'!U191","v":"Jul 2011"},{"$f":"'(Intermediate Computations)'!V191","v":"Aug 2011"},{"$f":"'(Intermediate Computations)'!W191","v":"Sep 2011"},{"$f":"'(Intermediate Computations)'!X191","v":"Oct 2011"},{"$f":"'(Intermediate Computations)'!Y191","v":"Nov 2011"},{"$f":"'(Intermediate Computations)'!Z191","v":"Dec 2011"},{"$f":"'(Intermediate Computations)'!AB191","v":"Jan 2012"},{"$f":"'(Intermediate Computations)'!AC191","v":"Feb 2012"},{"$f":"'(Intermediate Computations)'!AD191","v":"Mar 2012"},{"$f":"'(Intermediate Computations)'!AE191","v":"Apr 2012"},{"$f":"'(Intermediate Computations)'!AF191","v":"May 2012"},{"$f":"'(Intermediate Computations)'!AG191","v":"Jun 2012"},{"$f":"'(Intermediate Computations)'!AH191","v":"Jul 2012"},{"$f":"'(Intermediate Computations)'!AI191","v":"Aug 2012"},{"$f":"'(Intermediate Computations)'!AJ191","v":"Sep 2012"},{"$f":"'(Intermediate Computations)'!AK191","v":"Oct 2012"},{"$f":"'(Intermediate Computations)'!AL191","v":"Nov 2012"},{"$f":"'(Intermediate Computations)'!AM191","v":"Dec 2012"},{"$f":"'(Intermediate Computations)'!AO191","v":"Jan 2013"},{"$f":"'(Intermediate Computations)'!AP191","v":"Feb 2013"},{"$f":"'(Intermediate Computations)'!AQ191","v":"Mar 2013"},{"$f":"'(Intermediate Computations)'!AR191","v":"Apr 2013"},{"$f":"'(Intermediate Computations)'!AS191","v":"May 2013"},{"$f":"'(Intermediate Computations)'!AT191","v":"Jun 2013"},{"$f":"'(Intermediate Computations)'!AU191","v":"Jul 2013"},{"$f":"'(Intermediate Computations)'!AV191","v":"Aug 2013"},{"$f":"'(Intermediate Computations)'!AW191","v":"Sep 2013"},{"$f":"'(Intermediate Computations)'!AX191","v":"Oct 2013"},{"$f":"'(Intermediate Computations)'!AY191","v":"Nov 2013"},{"$f":"'(Intermediate Computations)'!AZ191","v":"Dec 2013"},{"$f":"'(Intermediate Computations)'!BB191","v":"Jan 2014"},{"$f":"'(Intermediate Computations)'!BC191","v":"Feb 2014"},{"$f":"'(Intermediate Computations)'!BD191","v":"Mar 2014"},{"$f":"'(Intermediate Computations)'!BE191","v":"Apr 2014"},{"$f":"'(Intermediate Computations)'!BF191","v":"May 2014"},{"$f":"'(Intermediate Computations)'!BG191","v":"Jun 2014"},{"$f":"'(Intermediate Computations)'!BH191","v":"Jul 2014"},{"$f":"'(Intermediate Computations)'!BI191","v":"Aug 2014"},{"$f":"'(Intermediate Computations)'!BJ191","v":"Sep 2014"},{"$f":"'(Intermediate Computations)'!BK191","v":"Oct 2014"},{"$f":"'(Intermediate Computations)'!BL191","v":"Nov 2014"},{"$f":"'(Intermediate Computations)'!BM191","v":"Dec 2014"},{"$f":"'(Intermediate Computations)'!BO191","v":"Jan 2015"},{"$f":"'(Intermediate Computations)'!BP191","v":"Feb 2015"},{"$f":"'(Intermediate Computations)'!BQ191","v":"Mar 2015"},{"$f":"'(Intermediate Computations)'!BR191","v":"Apr 2015"},{"$f":"'(Intermediate Computations)'!BS191","v":"May 2015"},{"$f":"'(Intermediate Computations)'!BT191","v":"Jun 2015"},{"$f":"'(Intermediate Computations)'!BU191","v":"Jul 2015"},{"$f":"'(Intermediate Computations)'!BV191","v":"Aug 2015"},{"$f":"'(Intermediate Computations)'!BW191","v":"Sep 2015"},{"$f":"'(Intermediate Computations)'!BX191","v":"Oct 2015"},{"$f":"'(Intermediate Computations)'!BY191","v":"Nov 2015"},{"$f":"'(Intermediate Computations)'!BZ191","v":"Dec 2015"},{"$f":"'(Intermediate Computations)'!CB191","v":"Jan 2016"},{"$f":"'(Intermediate Computations)'!CC191","v":"Feb 2016"},{"$f":"'(Intermediate Computations)'!CD191","v":"Mar 2016"},{"$f":"'(Intermediate Computations)'!CE191","v":"Apr 2016"},{"$f":"'(Intermediate Computations)'!CF191","v":"May 2016"},{"$f":"'(Intermediate Computations)'!CG191","v":"Jun 2016"},{"$f":"'(Intermediate Computations)'!CH191","v":"Jul 2016"},{"$f":"'(Intermediate Computations)'!CI191","v":"Aug 2016"},{"$f":"'(Intermediate Computations)'!CJ191","v":"Sep 2016"},{"$f":"'(Intermediate Computations)'!CK191","v":"Oct 2016"},{"$f":"'(Intermediate Computations)'!CL191","v":"Nov 2016"},{"$f":"'(Intermediate Computations)'!CM191","v":"Dec 2016"},{"$f":"'(Intermediate Computations)'!CO191","v":"Jan 2017"},{"$f":"'(Intermediate Computations)'!CP191","v":"Feb 2017"},{"$f":"'(Intermediate Computations)'!CQ191","v":"Mar 2017"},{"$f":"'(Intermediate Computations)'!CR191","v":"Apr 2017"},{"$f":"'(Intermediate Computations)'!CS191","v":"May 2017"},{"$f":"'(Intermediate Computations)'!CT191","v":"Jun 2017"},{"$f":"'(Intermediate Computations)'!CU191","v":"Jul 2017"},{"$f":"'(Intermediate Computations)'!CV191","v":"Aug 2017"},{"$f":"'(Intermediate Computations)'!CW191","v":"Sep 2017"},{"$f":"'(Intermediate Computations)'!CX191","v":"Oct 2017"},{"$f":"'(Intermediate Computations)'!CY191","v":"Nov 2017"},{"$f":"'(Intermediate Computations)'!CZ191","v":"Dec 2017"},{"$f":"'(Intermediate Computations)'!DB191","v":"Jan 2018"},{"$f":"'(Intermediate Computations)'!DC191","v":"Feb 2018"},{"$f":"'(Intermediate Computations)'!DD191","v":"Mar 2018"},{"$f":"'(Intermediate Computations)'!DE191","v":"Apr 2018"},{"$f":"'(Intermediate Computations)'!DF191","v":"May 2018"},{"$f":"'(Intermediate Computations)'!DG191","v":"Jun 2018"},{"$f":"'(Intermediate Computations)'!DH191","v":"Jul 2018"},{"$f":"'(Intermediate Computations)'!DI191","v":"Aug 2018"},{"$f":"'(Intermediate Computations)'!DJ191","v":"Sep 2018"},{"$f":"'(Intermediate Computations)'!DK191","v":"Oct 2018"},{"$f":"'(Intermediate Computations)'!DL191","v":"Nov 2018"},{"$f":"'(Intermediate Computations)'!DM191","v":"Dec 2018"},{"$f":"'(Intermediate Computations)'!DO191","v":"Jan 2019"},{"$f":"'(Intermediate Computations)'!DP191","v":"Feb 2019"},{"$f":"'(Intermediate Computations)'!DQ191","v":"Mar 2019"},{"$f":"'(Intermediate Computations)'!DR191","v":"Apr 2019"},{"$f":"'(Intermediate Computations)'!DS191","v":"May 2019"},{"$f":"'(Intermediate Computations)'!DT191","v":"Jun 2019"},{"$f":"'(Intermediate Computations)'!DU191","v":"Jul 2019"},{"$f":"'(Intermediate Computations)'!DV191","v":"Aug 2019"},{"$f":"'(Intermediate Computations)'!DW191","v":"Sep 2019"},{"$f":"'(Intermediate Computations)'!DX191","v":"Oct 2019"},{"$f":"'(Intermediate Computations)'!DY191","v":"Nov 2019"},{"$f":"'(Intermediate Computations)'!DZ191","v":"Dec 2019"},{"$f":"'(Intermediate Computations)'!EB191","v":"Jan 2020"},{"$f":"'(Intermediate Computations)'!EC191","v":"Feb 2020"},{"$f":"'(Intermediate Computations)'!ED191","v":"Mar 2020"},{"$f":"'(Intermediate Computations)'!EE191","v":"Apr 2020"},{"$f":"'(Intermediate Computations)'!EF191","v":"May 2020"},{"$f":"'(Intermediate Computations)'!EG191","v":"Jun 2020"},{"$f":"'(Intermediate Computations)'!EH191","v":"Jul 2020"},{"$f":"'(Intermediate Computations)'!EI191","v":"Aug 2020"},{"$f":"'(Intermediate Computations)'!EJ191","v":"Sep 2020"},{"$f":"'(Intermediate Computations)'!EK191","v":"Oct 2020"},{"$f":"'(Intermediate Computations)'!EL191","v":"Nov 2020"},{"$f":"'(Intermediate Computations)'!EM191","v":"Dec 2020"}]
[{"$f":"'(Intermediate Computations)'!B188","v":"2010-01-01"},{"$f":"'(Intermediate Computations)'!C188","v":"2010-02-01"},{"$f":"'(Intermediate Computations)'!D188","v":"2010-03-01"},{"$f":"'(Intermediate Computations)'!E188","v":"2010-04-01"},{"$f":"'(Intermediate Computations)'!F188","v":"2010-05-01"},{"$f":"'(Intermediate Computations)'!G188","v":"2010-06-01"},{"$f":"'(Intermediate Computations)'!H188","v":"2010-07-01"},{"$f":"'(Intermediate Computations)'!I188","v":"2010-08-01"},{"$f":"'(Intermediate Computations)'!J188","v":"2010-09-01"},{"$f":"'(Intermediate Computations)'!K188","v":"2010-10-01"},{"$f":"'(Intermediate Computations)'!L188","v":"2010-11-01"},{"$f":"'(Intermediate Computations)'!M188","v":"2010-12-01"},{"$f":"'(Intermediate Computations)'!O188","v":"2011-01-01"},{"$f":"'(Intermediate Computations)'!P188","v":"2011-02-01"},{"$f":"'(Intermediate Computations)'!Q188","v":"2011-03-01"},{"$f":"'(Intermediate Computations)'!R188","v":"2011-04-01"},{"$f":"'(Intermediate Computations)'!S188","v":"2011-05-01"},{"$f":"'(Intermediate Computations)'!T188","v":"2011-06-01"},{"$f":"'(Intermediate Computations)'!U188","v":"2011-07-01"},{"$f":"'(Intermediate Computations)'!V188","v":"2011-08-01"},{"$f":"'(Intermediate Computations)'!W188","v":"2011-09-01"},{"$f":"'(Intermediate Computations)'!X188","v":"2011-10-01"},{"$f":"'(Intermediate Computations)'!Y188","v":"2011-11-01"},{"$f":"'(Intermediate Computations)'!Z188","v":"2011-12-01"},{"$f":"'(Intermediate Computations)'!AB188","v":"2012-01-01"},{"$f":"'(Intermediate Computations)'!AC188","v":"2012-02-01"},{"$f":"'(Intermediate Computations)'!AD188","v":"2012-03-01"},{"$f":"'(Intermediate Computations)'!AE188","v":"2012-04-01"},{"$f":"'(Intermediate Computations)'!AF188","v":"2012-05-01"},{"$f":"'(Intermediate Computations)'!AG188","v":"2012-06-01"},{"$f":"'(Intermediate Computations)'!AH188","v":"2012-07-01"},{"$f":"'(Intermediate Computations)'!AI188","v":"2012-08-01"},{"$f":"'(Intermediate Computations)'!AJ188","v":"2012-09-01"},{"$f":"'(Intermediate Computations)'!AK188","v":"2012-10-01"},{"$f":"'(Intermediate Computations)'!AL188","v":"2012-11-01"},{"$f":"'(Intermediate Computations)'!AM188","v":"2012-12-01"},{"$f":"'(Intermediate Computations)'!AO188","v":"2013-01-01"},{"$f":"'(Intermediate Computations)'!AP188","v":"2013-02-01"},{"$f":"'(Intermediate Computations)'!AQ188","v":"2013-03-01"},{"$f":"'(Intermediate Computations)'!AR188","v":"2013-04-01"},{"$f":"'(Intermediate Computations)'!AS188","v":"2013-05-01"},{"$f":"'(Intermediate Computations)'!AT188","v":"2013-06-01"},{"$f":"'(Intermediate Computations)'!AU188","v":"2013-07-01"},{"$f":"'(Intermediate Computations)'!AV188","v":"2013-08-01"},{"$f":"'(Intermediate Computations)'!AW188","v":"2013-09-01"},{"$f":"'(Intermediate Computations)'!AX188","v":"2013-10-01"},{"$f":"'(Intermediate Computations)'!AY188","v":"2013-11-01"},{"$f":"'(Intermediate Computations)'!AZ188","v":"2013-12-01"},{"$f":"'(Intermediate Computations)'!BB188","v":"2014-01-01"},{"$f":"'(Intermediate Computations)'!BC188","v":"2014-02-01"},{"$f":"'(Intermediate Computations)'!BD188","v":"2014-03-01"},{"$f":"'(Intermediate Computations)'!BE188","v":"2014-04-01"},{"$f":"'(Intermediate Computations)'!BF188","v":"2014-05-01"},{"$f":"'(Intermediate Computations)'!BG188","v":"2014-06-01"},{"$f":"'(Intermediate Computations)'!BH188","v":"2014-07-01"},{"$f":"'(Intermediate Computations)'!BI188","v":"2014-08-01"},{"$f":"'(Intermediate Computations)'!BJ188","v":"2014-09-01"},{"$f":"'(Intermediate Computations)'!BK188","v":"2014-10-01"},{"$f":"'(Intermediate Computations)'!BL188","v":"2014-11-01"},{"$f":"'(Intermediate Computations)'!BM188","v":"2014-12-01"},{"$f":"'(Intermediate Computations)'!BO188","v":"2015-01-01"},{"$f":"'(Intermediate Computations)'!BP188","v":"2015-02-01"},{"$f":"'(Intermediate Computations)'!BQ188","v":"2015-03-01"},{"$f":"'(Intermediate Computations)'!BR188","v":"2015-04-01"},{"$f":"'(Intermediate Computations)'!BS188","v":"2015-05-01"},{"$f":"'(Intermediate Computations)'!BT188","v":"2015-06-01"},{"$f":"'(Intermediate Computations)'!BU188","v":"2015-07-01"},{"$f":"'(Intermediate Computations)'!BV188","v":"2015-08-01"},{"$f":"'(Intermediate Computations)'!BW188","v":"2015-09-01"},{"$f":"'(Intermediate Computations)'!BX188","v":"2015-10-01"},{"$f":"'(Intermediate Computations)'!BY188","v":"2015-11-01"},{"$f":"'(Intermediate Computations)'!BZ188","v":"2015-12-01"},{"$f":"'(Intermediate Computations)'!CB188","v":"2016-01-01"},{"$f":"'(Intermediate Computations)'!CC188","v":"2016-02-01"},{"$f":"'(Intermediate Computations)'!CD188","v":"2016-03-01"},{"$f":"'(Intermediate Computations)'!CE188","v":"2016-04-01"},{"$f":"'(Intermediate Computations)'!CF188","v":"2016-05-01"},{"$f":"'(Intermediate Computations)'!CG188","v":"2016-06-01"},{"$f":"'(Intermediate Computations)'!CH188","v":"2016-07-01"},{"$f":"'(Intermediate Computations)'!CI188","v":"2016-08-01"},{"$f":"'(Intermediate Computations)'!CJ188","v":"2016-09-01"},{"$f":"'(Intermediate Computations)'!CK188","v":"2016-10-01"},{"$f":"'(Intermediate Computations)'!CL188","v":"2016-11-01"},{"$f":"'(Intermediate Computations)'!CM188","v":"2016-12-01"},{"$f":"'(Intermediate Computations)'!CO188","v":"2017-01-01"},{"$f":"'(Intermediate Computations)'!CP188","v":"2017-02-01"},{"$f":"'(Intermediate Computations)'!CQ188","v":"2017-03-01"},{"$f":"'(Intermediate Computations)'!CR188","v":"2017-04-01"},{"$f":"'(Intermediate Computations)'!CS188","v":"2017-05-01"},{"$f":"'(Intermediate Computations)'!CT188","v":"2017-06-01"},{"$f":"'(Intermediate Computations)'!CU188","v":"2017-07-01"},{"$f":"'(Intermediate Computations)'!CV188","v":"2017-08-01"},{"$f":"'(Intermediate Computations)'!CW188","v":"2017-09-01"},{"$f":"'(Intermediate Computations)'!CX188","v":"2017-10-01"},{"$f":"'(Intermediate Computations)'!CY188","v":"2017-11-01"},{"$f":"'(Intermediate Computations)'!CZ188","v":"2017-12-01"},{"$f":"'(Intermediate Computations)'!DB188","v":"2018-01-01"},{"$f":"'(Intermediate Computations)'!DC188","v":"2018-02-01"},{"$f":"'(Intermediate Computations)'!DD188","v":"2018-03-01"},{"$f":"'(Intermediate Computations)'!DE188","v":"2018-04-01"},{"$f":"'(Intermediate Computations)'!DF188","v":"2018-05-01"},{"$f":"'(Intermediate Computations)'!DG188","v":"2018-06-01"},{"$f":"'(Intermediate Computations)'!DH188","v":"2018-07-01"},{"$f":"'(Intermediate Computations)'!DI188","v":"2018-08-01"},{"$f":"'(Intermediate Computations)'!DJ188","v":"2018-09-01"},{"$f":"'(Intermediate Computations)'!DK188","v":"2018-10-01"},{"$f":"'(Intermediate Computations)'!DL188","v":"2018-11-01"},{"$f":"'(Intermediate Computations)'!DM188","v":"2018-12-01"},{"$f":"'(Intermediate Computations)'!DO188","v":"2019-01-01"},{"$f":"'(Intermediate Computations)'!DP188","v":"2019-02-01"},{"$f":"'(Intermediate Computations)'!DQ188","v":"2019-03-01"},{"$f":"'(Intermediate Computations)'!DR188","v":"2019-04-01"},{"$f":"'(Intermediate Computations)'!DS188","v":"2019-05-01"},{"$f":"'(Intermediate Computations)'!DT188","v":"2019-06-01"},{"$f":"'(Intermediate Computations)'!DU188","v":"2019-07-01"},{"$f":"'(Intermediate Computations)'!DV188","v":"2019-08-01"},{"$f":"'(Intermediate Computations)'!DW188","v":"2019-09-01"},{"$f":"'(Intermediate Computations)'!DX188","v":"2019-10-01"},{"$f":"'(Intermediate Computations)'!DY188","v":"2019-11-01"},{"$f":"'(Intermediate Computations)'!DZ188","v":"2019-12-01"},{"$f":"'(Intermediate Computations)'!EB188","v":"2020-01-01"},{"$f":"'(Intermediate Computations)'!EC188","v":"2020-02-01"},{"$f":"'(Intermediate Computations)'!ED188","v":"2020-03-01"},{"$f":"'(Intermediate Computations)'!EE188","v":"2020-04-01"},{"$f":"'(Intermediate Computations)'!EF188","v":"2020-05-01"},{"$f":"'(Intermediate Computations)'!EG188","v":"2020-06-01"},{"$f":"'(Intermediate Computations)'!EH188","v":"2020-07-01"},{"$f":"'(Intermediate Computations)'!EI188","v":"2020-08-01"},{"$f":"'(Intermediate Computations)'!EJ188","v":"2020-09-01"},{"$f":"'(Intermediate Computations)'!EK188","v":"2020-10-01"},{"$f":"'(Intermediate Computations)'!EL188","v":"2020-11-01"},{"$f":"'(Intermediate Computations)'!EM188","v":"2020-12-01"}]
[{"$f":"'Statistical Moments'!B51","v":{"v":963388.6810828953,"d":"$963,389"}},{"$f":"'Statistical Moments'!C51","v":{"v":962750.2503606859,"d":"$962,750"}},{"$f":"'Statistical Moments'!D51","v":{"v":962133.5147254069,"d":"$962,134"}},{"$f":"'Statistical Moments'!E51","v":{"v":961560.6459832097,"d":"$961,561"}},{"$f":"'Statistical Moments'!F51","v":{"v":960983.2273493409,"d":"$960,983"}},{"$f":"'Statistical Moments'!G51","v":{"v":960434.1837725926,"d":"$960,434"}},{"$f":"'Statistical Moments'!H51","v":{"v":959875.5364105982,"d":"$959,876"}},{"$f":"'Statistical Moments'!I51","v":{"v":959327.9923311251,"d":"$959,328"}},{"$f":"'Statistical Moments'!J51","v":{"v":958767.5498015464,"d":"$958,768"}},{"$f":"'Statistical Moments'!K51","v":{"v":958240.6439884696,"d":"$958,241"}},{"$f":"'Statistical Moments'!L51","v":{"v":957687.8714019913,"d":"$957,688"}},{"$f":"'Statistical Moments'!M51","v":{"v":957159.7055518602,"d":"$957,160"}},{"$f":"'Statistical Moments'!O51","v":{"v":956624.2518446522,"d":"$956,624"}},{"$f":"'Statistical Moments'!P51","v":{"v":956090.408168314,"d":"$956,090"}},{"$f":"'Statistical Moments'!Q51","v":{"v":955575.2451195263,"d":"$955,575"}},{"$f":"'Statistical Moments'!R51","v":{"v":955092.2377543105,"d":"$955,092"}},{"$f":"'Statistical Moments'!S51","v":{"v":954600.7693040518,"d":"$954,601"}},{"$f":"'Statistical Moments'!T51","v":{"v":954043.7704568473,"d":"$954,044"}},{"$f":"'Statistical Moments'!U51","v":{"v":953548.4999757088,"d":"$953,548"}},{"$f":"'Statistical Moments'!V51","v":{"v":952998.4790796597,"d":"$952,998"}},{"$f":"'Statistical Moments'!W51","v":{"v":952480.2554647782,"d":"$952,480"}},{"$f":"'Statistical Moments'!X51","v":{"v":951999.4524094032,"d":"$951,999"}},{"$f":"'Statistical Moments'!Y51","v":{"v":951491.8975466881,"d":"$951,492"}},{"$f":"'Statistical Moments'!Z51","v":{"v":950971.0401821383,"d":"$950,971"}},{"$f":"'Statistical Moments'!AB51","v":{"v":950437.8341862344,"d":"$950,438"}},{"$f":"'Statistical Moments'!AC51","v":{"v":949929.4880385462,"d":"$949,929"}},{"$f":"'Statistical Moments'!AD51","v":{"v":949452.8163934392,"d":"$949,453"}},{"$f":"'Statistical Moments'!AE51","v":{"v":948995.2477068079,"d":"$948,995"}},{"$f":"'Statistical Moments'!AF51","v":{"v":948482.8015894456,"d":"$948,483"}},{"$f":"'Statistical Moments'!AG51","v":{"v":947970.7686754323,"d":"$947,971"}},{"$f":"'Statistical Moments'!AH51","v":{"v":947507.3927449828,"d":"$947,507"}},{"$f":"'Statistical Moments'!AI51","v":{"v":947070.9129761085,"d":"$947,071"}},{"$f":"'Statistical Moments'!AJ51","v":{"v":946530.8360281772,"d":"$946,531"}},{"$f":"'Statistical Moments'!AK51","v":{"v":946066.51765376,"d":"$946,067"}},{"$f":"'Statistical Moments'!AL51","v":{"v":945617.367458236,"d":"$945,617"}},{"$f":"'Statistical Moments'!AM51","v":{"v":945158.0125101301,"d":"$945,158"}},{"$f":"'Statistical Moments'!AO51","v":{"v":944682.6218658398,"d":"$944,683"}},{"$f":"'Statistical Moments'!AP51","v":{"v":944187.8264460688,"d":"$944,188"}},{"$f":"'Statistical Moments'!AQ51","v":{"v":943730.3502459447,"d":"$943,730"}},{"$f":"'Statistical Moments'!AR51","v":{"v":943264.2003654967,"d":"$943,264"}},{"$f":"'Statistical Moments'!AS51","v":{"v":942798.8182535283,"d":"$942,799"}},{"$f":"'Statistical Moments'!AT51","v":{"v":942329.6678060069,"d":"$942,330"}},{"$f":"'Statistical Moments'!AU51","v":{"v":941837.4411877439,"d":"$941,837"}},{"$f":"'Statistical Moments'!AV51","v":{"v":941388.0466478742,"d":"$941,388"}},{"$f":"'Statistical Moments'!AW51","v":{"v":940953.3805682374,"d":"$940,953"}},{"$f":"'Statistical Moments'!AX51","v":{"v":940458.1616561784,"d":"$940,458"}},{"$f":"'Statistical Moments'!AY51","v":{"v":940001.3484487338,"d":"$940,001"}},{"$f":"'Statistical Moments'!AZ51","v":{"v":939543.4703372162,"d":"$939,543"}},{"$f":"'Statistical Moments'!BB51","v":{"v":939062.1741546355,"d":"$939,062"}},{"$f":"'Statistical Moments'!BC51","v":{"v":938580.3188990647,"d":"$938,580"}},{"$f":"'Statistical Moments'!BD51","v":{"v":938144.651754611,"d":"$938,145"}},{"$f":"'Statistical Moments'!BE51","v":{"v":937726.7062300843,"d":"$937,727"}},{"$f":"'Statistical Moments'!BF51","v":{"v":937278.4227061566,"d":"$937,278"}},{"$f":"'Statistical Moments'!BG51","v":{"v":936834.1687406122,"d":"$936,834"}},{"$f":"'Statistical Moments'!BH51","v":{"v":936388.6845005642,"d":"$936,389"}},{"$f":"'Statistical Moments'!BI51","v":{"v":935938.6840571282,"d":"$935,939"}},{"$f":"'Statistical Moments'!BJ51","v":{"v":935472.3347074911,"d":"$935,472"}},{"$f":"'Statistical Moments'!BK51","v":{"v":935044.1027144484,"d":"$935,044"}},{"$f":"'Statistical Moments'!BL51","v":{"v":934596.607002535,"d":"$934,597"}},{"$f":"'Statistical Moments'!BM51","v":{"v":934160.2313182423,"d":"$934,160"}},{"$f":"'Statistical Moments'!BO51","v":{"v":933700.0144050367,"d":"$933,700"}},{"$f":"'Statistical Moments'!BP51","v":{"v":933221.6468543811,"d":"$933,222"}},{"$f":"'Statistical Moments'!BQ51","v":{"v":932805.4392199919,"d":"$932,805"}},{"$f":"'Statistical Moments'!BR51","v":{"v":932384.2091552553,"d":"$932,384"}},{"$f":"'Statistical Moments'!BS51","v":{"v":931997.0113176656,"d":"$931,997"}},{"$f":"'Statistical Moments'!BT51","v":{"v":931542.9681118072,"d":"$931,543"}},{"$f":"'Statistical Moments'!BU51","v":{"v":931154.3620795588,"d":"$931,154"}},{"$f":"'Statistical Moments'!BV51","v":{"v":930686.4711324484,"d":"$930,686"}},{"$f":"'Statistical Moments'!BW51","v":{"v":930230.322995141,"d":"$930,230"}},{"$f":"'Statistical Moments'!BX51","v":{"v":929846.0507598277,"d":"$929,846"}},{"$f":"'Statistical Moments'!BY51","v":{"v":929365.187458322,"d":"$929,365"}},{"$f":"'Statistical Moments'!BZ51","v":{"v":928961.1058258757,"d":"$928,961"}},{"$f":"'Statistical Moments'!CB51","v":{"v":928529.7452235968,"d":"$928,530"}},{"$f":"'Statistical Moments'!CC51","v":{"v":928089.2243673218,"d":"$928,089"}},{"$f":"'Statistical Moments'!CD51","v":{"v":927646.471214754,"d":"$927,646"}},{"$f":"'Statistical Moments'!CE51","v":{"v":927198.4425798216,"d":"$927,198"}},{"$f":"'Statistical Moments'!CF51","v":{"v":926722.3701935249,"d":"$926,722"}},{"$f":"'Statistical Moments'!CG51","v":{"v":926277.6787306459,"d":"$926,278"}},{"$f":"'Statistical Moments'!CH51","v":{"v":925896.8443472361,"d":"$925,897"}},{"$f":"'Statistical Moments'!CI51","v":{"v":925450.3255749387,"d":"$925,450"}},{"$f":"'Statistical Moments'!CJ51","v":{"v":925026.2203137727,"d":"$925,026"}},{"$f":"'Statistical Moments'!CK51","v":{"v":924624.0425682277,"d":"$924,624"}},{"$f":"'Statistical Moments'!CL51","v":{"v":924225.8746038269,"d":"$924,226"}},{"$f":"'Statistical Moments'!CM51","v":{"v":923774.4145009451,"d":"$923,774"}},{"$f":"'Statistical Moments'!CO51","v":{"v":923334.8691240845,"d":"$923,335"}},{"$f":"'Statistical Moments'!CP51","v":{"v":922905.3898193502,"d":"$922,905"}},{"$f":"'Statistical Moments'!CQ51","v":{"v":922470.6156351062,"d":"$922,471"}},{"$f":"'Statistical Moments'!CR51","v":{"v":922050.0000949785,"d":"$922,050"}},{"$f":"'Statistical Moments'!CS51","v":{"v":921605.5803882086,"d":"$921,606"}},{"$f":"'Statistical Moments'!CT51","v":{"v":921131.6391752828,"d":"$921,132"}},{"$f":"'Statistical Moments'!CU51","v":{"v":920666.6814487794,"d":"$920,667"}},{"$f":"'Statistical Moments'!CV51","v":{"v":920284.7917978019,"d":"$920,285"}},{"$f":"'Statistical Moments'!CW51","v":{"v":919837.6937504038,"d":"$919,838"}},{"$f":"'Statistical Moments'!CX51","v":{"v":919375.1315607181,"d":"$919,375"}},{"$f":"'Statistical Moments'!CY51","v":{"v":918936.2339987048,"d":"$918,936"}},{"$f":"'Statistical Moments'!CZ51","v":{"v":918528.9040231694,"d":"$918,529"}},{"$f":"'Statistical Moments'!DB51","v":{"v":918105.7077163223,"d":"$918,106"}},{"$f":"'Statistical Moments'!DC51","v":{"v":917676.7124926853,"d":"$917,677"}},{"$f":"'Statistical Moments'!DD51","v":{"v":917210.629353901,"d":"$917,211"}},{"$f":"'Statistical Moments'!DE51","v":{"v":916758.12915553,"d":"$916,758"}},{"$f":"'Statistical Moments'!DF51","v":{"v":916347.9998677829,"d":"$916,348"}},{"$f":"'Statistical Moments'!DG51","v":{"v":915914.7114303457,"d":"$915,915"}},{"$f":"'Statistical Moments'!DH51","v":{"v":915450.8146684086,"d":"$915,451"}},{"$f":"'Statistical Moments'!DI51","v":{"v":915012.4600620728,"d":"$915,012"}},{"$f":"'Statistical Moments'!DJ51","v":{"v":914557.838339492,"d":"$914,558"}},{"$f":"'Statistical Moments'!DK51","v":{"v":914135.6915464505,"d":"$914,136"}},{"$f":"'Statistical Moments'!DL51","v":{"v":913702.5109022093,"d":"$913,703"}},{"$f":"'Statistical Moments'!DM51","v":{"v":913229.8544564919,"d":"$913,230"}},{"$f":"'Statistical Moments'!DO51","v":{"v":912795.2898591852,"d":"$912,795"}},{"$f":"'Statistical Moments'!DP51","v":{"v":912391.3092249036,"d":"$912,391"}},{"$f":"'Statistical Moments'!DQ51","v":{"v":911934.8057256925,"d":"$911,935"}},{"$f":"'Statistical Moments'!DR51","v":{"v":911534.1900260783,"d":"$911,534"}},{"$f":"'Statistical Moments'!DS51","v":{"v":911096.201827095,"d":"$911,096"}},{"$f":"'Statistical Moments'!DT51","v":{"v":910669.8992131434,"d":"$910,670"}},{"$f":"'Statistical Moments'!DU51","v":{"v":910248.6762447098,"d":"$910,249"}},{"$f":"'Statistical Moments'!DV51","v":{"v":909828.3360078317,"d":"$909,828"}},{"$f":"'Statistical Moments'!DW51","v":{"v":909374.4052892431,"d":"$909,374"}},{"$f":"'Statistical Moments'!DX51","v":{"v":908957.7547274263,"d":"$908,958"}},{"$f":"'Statistical Moments'!DY51","v":{"v":908516.9525668103,"d":"$908,517"}},{"$f":"'Statistical Moments'!DZ51","v":{"v":908088.1836370071,"d":"$908,088"}},{"$f":"'Statistical Moments'!EB51","v":{"v":907615.0493334059,"d":"$907,615"}},{"$f":"'Statistical Moments'!EC51","v":{"v":907205.1805809372,"d":"$907,205"}},{"$f":"'Statistical Moments'!ED51","v":{"v":906753.9027045923,"d":"$906,754"}},{"$f":"'Statistical Moments'!EE51","v":{"v":906269.2666976237,"d":"$906,269"}},{"$f":"'Statistical Moments'!EF51","v":{"v":905838.5893508055,"d":"$905,839"}},{"$f":"'Statistical Moments'!EG51","v":{"v":905404.3840939781,"d":"$905,404"}},{"$f":"'Statistical Moments'!EH51","v":{"v":904942.1133673148,"d":"$904,942"}},{"$f":"'Statistical Moments'!EI51","v":{"v":904497.3111474088,"d":"$904,497"}},{"$f":"'Statistical Moments'!EJ51","v":{"v":904013.4077001354,"d":"$904,013"}},{"$f":"'Statistical Moments'!EK51","v":{"v":903570.7333752511,"d":"$903,571"}},{"$f":"'Statistical Moments'!EL51","v":{"v":903129.42462195,"d":"$903,129"}},{"$f":"'Statistical Moments'!EM51","v":{"v":902677.0593541712,"d":"$902,677"}}]
[{"$f":"'(Intermediate Computations)'!B197","v":"Jan 2010"},{"$f":"'(Intermediate Computations)'!C197","v":"Feb 2010"},{"$f":"'(Intermediate Computations)'!D197","v":"Mar 2010"},{"$f":"'(Intermediate Computations)'!E197","v":"Apr 2010"},{"$f":"'(Intermediate Computations)'!F197","v":"May 2010"},{"$f":"'(Intermediate Computations)'!G197","v":"Jun 2010"},{"$f":"'(Intermediate Computations)'!H197","v":"Jul 2010"},{"$f":"'(Intermediate Computations)'!I197","v":"Aug 2010"},{"$f":"'(Intermediate Computations)'!J197","v":"Sep 2010"},{"$f":"'(Intermediate Computations)'!K197","v":"Oct 2010"},{"$f":"'(Intermediate Computations)'!L197","v":"Nov 2010"},{"$f":"'(Intermediate Computations)'!M197","v":"Dec 2010"},{"$f":"'(Intermediate Computations)'!O197","v":"Jan 2011"},{"$f":"'(Intermediate Computations)'!P197","v":"Feb 2011"},{"$f":"'(Intermediate Computations)'!Q197","v":"Mar 2011"},{"$f":"'(Intermediate Computations)'!R197","v":"Apr 2011"},{"$f":"'(Intermediate Computations)'!S197","v":"May 2011"},{"$f":"'(Intermediate Computations)'!T197","v":"Jun 2011"},{"$f":"'(Intermediate Computations)'!U197","v":"Jul 2011"},{"$f":"'(Intermediate Computations)'!V197","v":"Aug 2011"},{"$f":"'(Intermediate Computations)'!W197","v":"Sep 2011"},{"$f":"'(Intermediate Computations)'!X197","v":"Oct 2011"},{"$f":"'(Intermediate Computations)'!Y197","v":"Nov 2011"},{"$f":"'(Intermediate Computations)'!Z197","v":"Dec 2011"},{"$f":"'(Intermediate Computations)'!AB197","v":"Jan 2012"},{"$f":"'(Intermediate Computations)'!AC197","v":"Feb 2012"},{"$f":"'(Intermediate Computations)'!AD197","v":"Mar 2012"},{"$f":"'(Intermediate Computations)'!AE197","v":"Apr 2012"},{"$f":"'(Intermediate Computations)'!AF197","v":"May 2012"},{"$f":"'(Intermediate Computations)'!AG197","v":"Jun 2012"},{"$f":"'(Intermediate Computations)'!AH197","v":"Jul 2012"},{"$f":"'(Intermediate Computations)'!AI197","v":"Aug 2012"},{"$f":"'(Intermediate Computations)'!AJ197","v":"Sep 2012"},{"$f":"'(Intermediate Computations)'!AK197","v":"Oct 2012"},{"$f":"'(Intermediate Computations)'!AL197","v":"Nov 2012"},{"$f":"'(Intermediate Computations)'!AM197","v":"Dec 2012"},{"$f":"'(Intermediate Computations)'!AO197","v":"Jan 2013"},{"$f":"'(Intermediate Computations)'!AP197","v":"Feb 2013"},{"$f":"'(Intermediate Computations)'!AQ197","v":"Mar 2013"},{"$f":"'(Intermediate Computations)'!AR197","v":"Apr 2013"},{"$f":"'(Intermediate Computations)'!AS197","v":"May 2013"},{"$f":"'(Intermediate Computations)'!AT197","v":"Jun 2013"},{"$f":"'(Intermediate Computations)'!AU197","v":"Jul 2013"},{"$f":"'(Intermediate Computations)'!AV197","v":"Aug 2013"},{"$f":"'(Intermediate Computations)'!AW197","v":"Sep 2013"},{"$f":"'(Intermediate Computations)'!AX197","v":"Oct 2013"},{"$f":"'(Intermediate Computations)'!AY197","v":"Nov 2013"},{"$f":"'(Intermediate Computations)'!AZ197","v":"Dec 2013"},{"$f":"'(Intermediate Computations)'!BB197","v":"Jan 2014"},{"$f":"'(Intermediate Computations)'!BC197","v":"Feb 2014"},{"$f":"'(Intermediate Computations)'!BD197","v":"Mar 2014"},{"$f":"'(Intermediate Computations)'!BE197","v":"Apr 2014"},{"$f":"'(Intermediate Computations)'!BF197","v":"May 2014"},{"$f":"'(Intermediate Computations)'!BG197","v":"Jun 2014"},{"$f":"'(Intermediate Computations)'!BH197","v":"Jul 2014"},{"$f":"'(Intermediate Computations)'!BI197","v":"Aug 2014"},{"$f":"'(Intermediate Computations)'!BJ197","v":"Sep 2014"},{"$f":"'(Intermediate Computations)'!BK197","v":"Oct 2014"},{"$f":"'(Intermediate Computations)'!BL197","v":"Nov 2014"},{"$f":"'(Intermediate Computations)'!BM197","v":"Dec 2014"},{"$f":"'(Intermediate Computations)'!BO197","v":"Jan 2015"},{"$f":"'(Intermediate Computations)'!BP197","v":"Feb 2015"},{"$f":"'(Intermediate Computations)'!BQ197","v":"Mar 2015"},{"$f":"'(Intermediate Computations)'!BR197","v":"Apr 2015"},{"$f":"'(Intermediate Computations)'!BS197","v":"May 2015"},{"$f":"'(Intermediate Computations)'!BT197","v":"Jun 2015"},{"$f":"'(Intermediate Computations)'!BU197","v":"Jul 2015"},{"$f":"'(Intermediate Computations)'!BV197","v":"Aug 2015"},{"$f":"'(Intermediate Computations)'!BW197","v":"Sep 2015"},{"$f":"'(Intermediate Computations)'!BX197","v":"Oct 2015"},{"$f":"'(Intermediate Computations)'!BY197","v":"Nov 2015"},{"$f":"'(Intermediate Computations)'!BZ197","v":"Dec 2015"},{"$f":"'(Intermediate Computations)'!CB197","v":"Jan 2016"},{"$f":"'(Intermediate Computations)'!CC197","v":"Feb 2016"},{"$f":"'(Intermediate Computations)'!CD197","v":"Mar 2016"},{"$f":"'(Intermediate Computations)'!CE197","v":"Apr 2016"},{"$f":"'(Intermediate Computations)'!CF197","v":"May 2016"},{"$f":"'(Intermediate Computations)'!CG197","v":"Jun 2016"},{"$f":"'(Intermediate Computations)'!CH197","v":"Jul 2016"},{"$f":"'(Intermediate Computations)'!CI197","v":"Aug 2016"},{"$f":"'(Intermediate Computations)'!CJ197","v":"Sep 2016"},{"$f":"'(Intermediate Computations)'!CK197","v":"Oct 2016"},{"$f":"'(Intermediate Computations)'!CL197","v":"Nov 2016"},{"$f":"'(Intermediate Computations)'!CM197","v":"Dec 2016"},{"$f":"'(Intermediate Computations)'!CO197","v":"Jan 2017"},{"$f":"'(Intermediate Computations)'!CP197","v":"Feb 2017"},{"$f":"'(Intermediate Computations)'!CQ197","v":"Mar 2017"},{"$f":"'(Intermediate Computations)'!CR197","v":"Apr 2017"},{"$f":"'(Intermediate Computations)'!CS197","v":"May 2017"},{"$f":"'(Intermediate Computations)'!CT197","v":"Jun 2017"},{"$f":"'(Intermediate Computations)'!CU197","v":"Jul 2017"},{"$f":"'(Intermediate Computations)'!CV197","v":"Aug 2017"},{"$f":"'(Intermediate Computations)'!CW197","v":"Sep 2017"},{"$f":"'(Intermediate Computations)'!CX197","v":"Oct 2017"},{"$f":"'(Intermediate Computations)'!CY197","v":"Nov 2017"},{"$f":"'(Intermediate Computations)'!CZ197","v":"Dec 2017"},{"$f":"'(Intermediate Computations)'!DB197","v":"Jan 2018"},{"$f":"'(Intermediate Computations)'!DC197","v":"Feb 2018"},{"$f":"'(Intermediate Computations)'!DD197","v":"Mar 2018"},{"$f":"'(Intermediate Computations)'!DE197","v":"Apr 2018"},{"$f":"'(Intermediate Computations)'!DF197","v":"May 2018"},{"$f":"'(Intermediate Computations)'!DG197","v":"Jun 2018"},{"$f":"'(Intermediate Computations)'!DH197","v":"Jul 2018"},{"$f":"'(Intermediate Computations)'!DI197","v":"Aug 2018"},{"$f":"'(Intermediate Computations)'!DJ197","v":"Sep 2018"},{"$f":"'(Intermediate Computations)'!DK197","v":"Oct 2018"},{"$f":"'(Intermediate Computations)'!DL197","v":"Nov 2018"},{"$f":"'(Intermediate Computations)'!DM197","v":"Dec 2018"},{"$f":"'(Intermediate Computations)'!DO197","v":"Jan 2019"},{"$f":"'(Intermediate Computations)'!DP197","v":"Feb 2019"},{"$f":"'(Intermediate Computations)'!DQ197","v":"Mar 2019"},{"$f":"'(Intermediate Computations)'!DR197","v":"Apr 2019"},{"$f":"'(Intermediate Computations)'!DS197","v":"May 2019"},{"$f":"'(Intermediate Computations)'!DT197","v":"Jun 2019"},{"$f":"'(Intermediate Computations)'!DU197","v":"Jul 2019"},{"$f":"'(Intermediate Computations)'!DV197","v":"Aug 2019"},{"$f":"'(Intermediate Computations)'!DW197","v":"Sep 2019"},{"$f":"'(Intermediate Computations)'!DX197","v":"Oct 2019"},{"$f":"'(Intermediate Computations)'!DY197","v":"Nov 2019"},{"$f":"'(Intermediate Computations)'!DZ197","v":"Dec 2019"},{"$f":"'(Intermediate Computations)'!EB197","v":"Jan 2020"},{"$f":"'(Intermediate Computations)'!EC197","v":"Feb 2020"},{"$f":"'(Intermediate Computations)'!ED197","v":"Mar 2020"},{"$f":"'(Intermediate Computations)'!EE197","v":"Apr 2020"},{"$f":"'(Intermediate Computations)'!EF197","v":"May 2020"},{"$f":"'(Intermediate Computations)'!EG197","v":"Jun 2020"},{"$f":"'(Intermediate Computations)'!EH197","v":"Jul 2020"},{"$f":"'(Intermediate Computations)'!EI197","v":"Aug 2020"},{"$f":"'(Intermediate Computations)'!EJ197","v":"Sep 2020"},{"$f":"'(Intermediate Computations)'!EK197","v":"Oct 2020"},{"$f":"'(Intermediate Computations)'!EL197","v":"Nov 2020"},{"$f":"'(Intermediate Computations)'!EM197","v":"Dec 2020"}]
[{"$f":"'(Intermediate Computations)'!B194","v":"2010-01-01"},{"$f":"'(Intermediate Computations)'!C194","v":"2010-02-01"},{"$f":"'(Intermediate Computations)'!D194","v":"2010-03-01"},{"$f":"'(Intermediate Computations)'!E194","v":"2010-04-01"},{"$f":"'(Intermediate Computations)'!F194","v":"2010-05-01"},{"$f":"'(Intermediate Computations)'!G194","v":"2010-06-01"},{"$f":"'(Intermediate Computations)'!H194","v":"2010-07-01"},{"$f":"'(Intermediate Computations)'!I194","v":"2010-08-01"},{"$f":"'(Intermediate Computations)'!J194","v":"2010-09-01"},{"$f":"'(Intermediate Computations)'!K194","v":"2010-10-01"},{"$f":"'(Intermediate Computations)'!L194","v":"2010-11-01"},{"$f":"'(Intermediate Computations)'!M194","v":"2010-12-01"},{"$f":"'(Intermediate Computations)'!O194","v":"2011-01-01"},{"$f":"'(Intermediate Computations)'!P194","v":"2011-02-01"},{"$f":"'(Intermediate Computations)'!Q194","v":"2011-03-01"},{"$f":"'(Intermediate Computations)'!R194","v":"2011-04-01"},{"$f":"'(Intermediate Computations)'!S194","v":"2011-05-01"},{"$f":"'(Intermediate Computations)'!T194","v":"2011-06-01"},{"$f":"'(Intermediate Computations)'!U194","v":"2011-07-01"},{"$f":"'(Intermediate Computations)'!V194","v":"2011-08-01"},{"$f":"'(Intermediate Computations)'!W194","v":"2011-09-01"},{"$f":"'(Intermediate Computations)'!X194","v":"2011-10-01"},{"$f":"'(Intermediate Computations)'!Y194","v":"2011-11-01"},{"$f":"'(Intermediate Computations)'!Z194","v":"2011-12-01"},{"$f":"'(Intermediate Computations)'!AB194","v":"2012-01-01"},{"$f":"'(Intermediate Computations)'!AC194","v":"2012-02-01"},{"$f":"'(Intermediate Computations)'!AD194","v":"2012-03-01"},{"$f":"'(Intermediate Computations)'!AE194","v":"2012-04-01"},{"$f":"'(Intermediate Computations)'!AF194","v":"2012-05-01"},{"$f":"'(Intermediate Computations)'!AG194","v":"2012-06-01"},{"$f":"'(Intermediate Computations)'!AH194","v":"2012-07-01"},{"$f":"'(Intermediate Computations)'!AI194","v":"2012-08-01"},{"$f":"'(Intermediate Computations)'!AJ194","v":"2012-09-01"},{"$f":"'(Intermediate Computations)'!AK194","v":"2012-10-01"},{"$f":"'(Intermediate Computations)'!AL194","v":"2012-11-01"},{"$f":"'(Intermediate Computations)'!AM194","v":"2012-12-01"},{"$f":"'(Intermediate Computations)'!AO194","v":"2013-01-01"},{"$f":"'(Intermediate Computations)'!AP194","v":"2013-02-01"},{"$f":"'(Intermediate Computations)'!AQ194","v":"2013-03-01"},{"$f":"'(Intermediate Computations)'!AR194","v":"2013-04-01"},{"$f":"'(Intermediate Computations)'!AS194","v":"2013-05-01"},{"$f":"'(Intermediate Computations)'!AT194","v":"2013-06-01"},{"$f":"'(Intermediate Computations)'!AU194","v":"2013-07-01"},{"$f":"'(Intermediate Computations)'!AV194","v":"2013-08-01"},{"$f":"'(Intermediate Computations)'!AW194","v":"2013-09-01"},{"$f":"'(Intermediate Computations)'!AX194","v":"2013-10-01"},{"$f":"'(Intermediate Computations)'!AY194","v":"2013-11-01"},{"$f":"'(Intermediate Computations)'!AZ194","v":"2013-12-01"},{"$f":"'(Intermediate Computations)'!BB194","v":"2014-01-01"},{"$f":"'(Intermediate Computations)'!BC194","v":"2014-02-01"},{"$f":"'(Intermediate Computations)'!BD194","v":"2014-03-01"},{"$f":"'(Intermediate Computations)'!BE194","v":"2014-04-01"},{"$f":"'(Intermediate Computations)'!BF194","v":"2014-05-01"},{"$f":"'(Intermediate Computations)'!BG194","v":"2014-06-01"},{"$f":"'(Intermediate Computations)'!BH194","v":"2014-07-01"},{"$f":"'(Intermediate Computations)'!BI194","v":"2014-08-01"},{"$f":"'(Intermediate Computations)'!BJ194","v":"2014-09-01"},{"$f":"'(Intermediate Computations)'!BK194","v":"2014-10-01"},{"$f":"'(Intermediate Computations)'!BL194","v":"2014-11-01"},{"$f":"'(Intermediate Computations)'!BM194","v":"2014-12-01"},{"$f":"'(Intermediate Computations)'!BO194","v":"2015-01-01"},{"$f":"'(Intermediate Computations)'!BP194","v":"2015-02-01"},{"$f":"'(Intermediate Computations)'!BQ194","v":"2015-03-01"},{"$f":"'(Intermediate Computations)'!BR194","v":"2015-04-01"},{"$f":"'(Intermediate Computations)'!BS194","v":"2015-05-01"},{"$f":"'(Intermediate Computations)'!BT194","v":"2015-06-01"},{"$f":"'(Intermediate Computations)'!BU194","v":"2015-07-01"},{"$f":"'(Intermediate Computations)'!BV194","v":"2015-08-01"},{"$f":"'(Intermediate Computations)'!BW194","v":"2015-09-01"},{"$f":"'(Intermediate Computations)'!BX194","v":"2015-10-01"},{"$f":"'(Intermediate Computations)'!BY194","v":"2015-11-01"},{"$f":"'(Intermediate Computations)'!BZ194","v":"2015-12-01"},{"$f":"'(Intermediate Computations)'!CB194","v":"2016-01-01"},{"$f":"'(Intermediate Computations)'!CC194","v":"2016-02-01"},{"$f":"'(Intermediate Computations)'!CD194","v":"2016-03-01"},{"$f":"'(Intermediate Computations)'!CE194","v":"2016-04-01"},{"$f":"'(Intermediate Computations)'!CF194","v":"2016-05-01"},{"$f":"'(Intermediate Computations)'!CG194","v":"2016-06-01"},{"$f":"'(Intermediate Computations)'!CH194","v":"2016-07-01"},{"$f":"'(Intermediate Computations)'!CI194","v":"2016-08-01"},{"$f":"'(Intermediate Computations)'!CJ194","v":"2016-09-01"},{"$f":"'(Intermediate Computations)'!CK194","v":"2016-10-01"},{"$f":"'(Intermediate Computations)'!CL194","v":"2016-11-01"},{"$f":"'(Intermediate Computations)'!CM194","v":"2016-12-01"},{"$f":"'(Intermediate Computations)'!CO194","v":"2017-01-01"},{"$f":"'(Intermediate Computations)'!CP194","v":"2017-02-01"},{"$f":"'(Intermediate Computations)'!CQ194","v":"2017-03-01"},{"$f":"'(Intermediate Computations)'!CR194","v":"2017-04-01"},{"$f":"'(Intermediate Computations)'!CS194","v":"2017-05-01"},{"$f":"'(Intermediate Computations)'!CT194","v":"2017-06-01"},{"$f":"'(Intermediate Computations)'!CU194","v":"2017-07-01"},{"$f":"'(Intermediate Computations)'!CV194","v":"2017-08-01"},{"$f":"'(Intermediate Computations)'!CW194","v":"2017-09-01"},{"$f":"'(Intermediate Computations)'!CX194","v":"2017-10-01"},{"$f":"'(Intermediate Computations)'!CY194","v":"2017-11-01"},{"$f":"'(Intermediate Computations)'!CZ194","v":"2017-12-01"},{"$f":"'(Intermediate Computations)'!DB194","v":"2018-01-01"},{"$f":"'(Intermediate Computations)'!DC194","v":"2018-02-01"},{"$f":"'(Intermediate Computations)'!DD194","v":"2018-03-01"},{"$f":"'(Intermediate Computations)'!DE194","v":"2018-04-01"},{"$f":"'(Intermediate Computations)'!DF194","v":"2018-05-01"},{"$f":"'(Intermediate Computations)'!DG194","v":"2018-06-01"},{"$f":"'(Intermediate Computations)'!DH194","v":"2018-07-01"},{"$f":"'(Intermediate Computations)'!DI194","v":"2018-08-01"},{"$f":"'(Intermediate Computations)'!DJ194","v":"2018-09-01"},{"$f":"'(Intermediate Computations)'!DK194","v":"2018-10-01"},{"$f":"'(Intermediate Computations)'!DL194","v":"2018-11-01"},{"$f":"'(Intermediate Computations)'!DM194","v":"2018-12-01"},{"$f":"'(Intermediate Computations)'!DO194","v":"2019-01-01"},{"$f":"'(Intermediate Computations)'!DP194","v":"2019-02-01"},{"$f":"'(Intermediate Computations)'!DQ194","v":"2019-03-01"},{"$f":"'(Intermediate Computations)'!DR194","v":"2019-04-01"},{"$f":"'(Intermediate Computations)'!DS194","v":"2019-05-01"},{"$f":"'(Intermediate Computations)'!DT194","v":"2019-06-01"},{"$f":"'(Intermediate Computations)'!DU194","v":"2019-07-01"},{"$f":"'(Intermediate Computations)'!DV194","v":"2019-08-01"},{"$f":"'(Intermediate Computations)'!DW194","v":"2019-09-01"},{"$f":"'(Intermediate Computations)'!DX194","v":"2019-10-01"},{"$f":"'(Intermediate Computations)'!DY194","v":"2019-11-01"},{"$f":"'(Intermediate Computations)'!DZ194","v":"2019-12-01"},{"$f":"'(Intermediate Computations)'!EB194","v":"2020-01-01"},{"$f":"'(Intermediate Computations)'!EC194","v":"2020-02-01"},{"$f":"'(Intermediate Computations)'!ED194","v":"2020-03-01"},{"$f":"'(Intermediate Computations)'!EE194","v":"2020-04-01"},{"$f":"'(Intermediate Computations)'!EF194","v":"2020-05-01"},{"$f":"'(Intermediate Computations)'!EG194","v":"2020-06-01"},{"$f":"'(Intermediate Computations)'!EH194","v":"2020-07-01"},{"$f":"'(Intermediate Computations)'!EI194","v":"2020-08-01"},{"$f":"'(Intermediate Computations)'!EJ194","v":"2020-09-01"},{"$f":"'(Intermediate Computations)'!EK194","v":"2020-10-01"},{"$f":"'(Intermediate Computations)'!EL194","v":"2020-11-01"},{"$f":"'(Intermediate Computations)'!EM194","v":"2020-12-01"}]
[{"$f":"'Statistical Moments'!B52","v":{"v":2.489064279128093e-10,"d":"$0"}},{"$f":"'Statistical Moments'!C52","v":{"v":56.88887383830726,"d":"$57"}},{"$f":"'Statistical Moments'!D52","v":{"v":120.79408462209551,"d":"$121"}},{"$f":"'Statistical Moments'!E52","v":{"v":111.37041494168572,"d":"$111"}},{"$f":"'Statistical Moments'!F52","v":{"v":123.03672896311113,"d":"$123"}},{"$f":"'Statistical Moments'!G52","v":{"v":137.65836315844578,"d":"$138"}},{"$f":"'Statistical Moments'!H52","v":{"v":183.95383148287334,"d":"$184"}},{"$f":"'Statistical Moments'!I52","v":{"v":171.0485022916471,"d":"$171"}},{"$f":"'Statistical Moments'!J52","v":{"v":169.0909054601834,"d":"$169"}},{"$f":"'Statistical Moments'!K52","v":{"v":160.72260234277834,"d":"$161"}},{"$f":"'Statistical Moments'!L52","v":{"v":177.0762405520875,"d":"$177"}},{"$f":"'Statistical Moments'!M52","v":{"v":181.96829026348087,"d":"$182"}},{"$f":"'Statistical Moments'!O52","v":{"v":226.6511538683332,"d":"$227"}},{"$f":"'Statistical Moments'!P52","v":{"v":199.72640897282608,"d":"$200"}},{"$f":"'Statistical Moments'!Q52","v":{"v":215.91999192745803,"d":"$216"}},{"$f":"'Statistical Moments'!R52","v":{"v":212.3966523114863,"d":"$212"}},{"$f":"'Statistical Moments'!S52","v":{"v":239.62757395643402,"d":"$240"}},{"$f":"'Statistical Moments'!T52","v":{"v":264.2545081918767,"d":"$264"}},{"$f":"'Statistical Moments'!U52","v":{"v":196.19549770231478,"d":"$196"}},{"$f":"'Statistical Moments'!V52","v":{"v":167.37049165592936,"d":"$167"}},{"$f":"'Statistical Moments'!W52","v":{"v":211.40578005862588,"d":"$211"}},{"$f":"'Statistical Moments'!X52","v":{"v":213.9232605805049,"d":"$214"}},{"$f":"'Statistical Moments'!Y52","v":{"v":234.94174378503746,"d":"$235"}},{"$f":"'Statistical Moments'!Z52","v":{"v":221.524743446729,"d":"$222"}},{"$f":"'Statistical Moments'!AB52","v":{"v":215.16075026994835,"d":"$215"}},{"$f":"'Statistical Moments'!AC52","v":{"v":177.19965874803353,"d":"$177"}},{"$f":"'Statistical Moments'!AD52","v":{"v":195.73672715990338,"d":"$196"}},{"$f":"'Statistical Moments'!AE52","v":{"v":205.02604350536603,"d":"$205"}},{"$f":"'Statistical Moments'!AF52","v":{"v":247.52114585729134,"d":"$248"}},{"$f":"'Statistical Moments'!AG52","v":{"v":321.9731836891446,"d":"$322"}},{"$f":"'Statistical Moments'!AH52","v":{"v":340.02731146958234,"d":"$340"}},{"$f":"'Statistical Moments'!AI52","v":{"v":333.31044759669635,"d":"$333"}},{"$f":"'Statistical Moments'!AJ52","v":{"v":310.962303255573,"d":"$311"}},{"$f":"'Statistical Moments'!AK52","v":{"v":287.1464355244931,"d":"$287"}},{"$f":"'Statistical Moments'!AL52","v":{"v":285.90482740593757,"d":"$286"}},{"$f":"'Statistical Moments'!AM52","v":{"v":285.7466475705727,"d":"$286"}},{"$f":"'Statistical Moments'!AO52","v":{"v":290.7782356011218,"d":"$291"}},{"$f":"'Statistical Moments'!AP52","v":{"v":287.65415513051653,"d":"$288"}},{"$f":"'Statistical Moments'!AQ52","v":{"v":277.49840887479905,"d":"$277"}},{"$f":"'Statistical Moments'!AR52","v":{"v":303.36383134126714,"d":"$303"}},{"$f":"'Statistical Moments'!AS52","v":{"v":300.30862564052563,"d":"$300"}},{"$f":"'Statistical Moments'!AT52","v":{"v":301.24543421554864,"d":"$301"}},{"$f":"'Statistical Moments'!AU52","v":{"v":272.5413103802794,"d":"$273"}},{"$f":"'Statistical Moments'!AV52","v":{"v":242.34909747887383,"d":"$242"}},{"$f":"'Statistical Moments'!AW52","v":{"v":245.19983983059814,"d":"$245"}},{"$f":"'Statistical Moments'!AX52","v":{"v":243.71379242200825,"d":"$244"}},{"$f":"'Statistical Moments'!AY52","v":{"v":274.5533063655923,"d":"$275"}},{"$f":"'Statistical Moments'!AZ52","v":{"v":282.56276198922444,"d":"$283"}},{"$f":"'Statistical Moments'!BB52","v":{"v":291.92659617167305,"d":"$292"}},{"$f":"'Statistical Moments'!BC52","v":{"v":263.14043179853667,"d":"$263"}},{"$f":"'Statistical Moments'!BD52","v":{"v":268.26286286930025,"d":"$268"}},{"$f":"'Statistical Moments'!BE52","v":{"v":319.38826708279583,"d":"$319"}},{"$f":"'Statistical Moments'!BF52","v":{"v":295.31925058811777,"d":"$295"}},{"$f":"'Statistical Moments'!BG52","v":{"v":322.0777637217131,"d":"$322"}},{"$f":"'Statistical Moments'!BH52","v":{"v":336.33724326195977,"d":"$336"}},{"$f":"'Statistical Moments'!BI52","v":{"v":339.5929718497153,"d":"$340"}},{"$f":"'Statistical Moments'!BJ52","v":{"v":364.58801136625027,"d":"$365"}},{"$f":"'Statistical Moments'!BK52","v":{"v":378.6143309125548,"d":"$379"}},{"$f":"'Statistical Moments'!BL52","v":{"v":365.7254596431,"d":"$366"}},{"$f":"'Statistical Moments'!BM52","v":{"v":369.9412849966547,"d":"$370"}},{"$f":"'Statistical Moments'!BO52","v":{"v":338.2904480047821,"d":"$338"}},{"$f":"'Statistical Moments'!BP52","v":{"v":357.80092357560255,"d":"$358"}},{"$f":"'Statistical Moments'!BQ52","v":{"v":393.02701625324966,"d":"$393"}},{"$f":"'Statistical Moments'!BR52","v":{"v":425.07655976146947,"d":"$425"}},{"$f":"'Statistical Moments'!BS52","v":{"v":456.0526793319255,"d":"$456"}},{"$f":"'Statistical Moments'!BT52","v":{"v":480.09631698079744,"d":"$480"}},{"$f":"'Statistical Moments'!BU52","v":{"v":465.90979407356883,"d":"$466"}},{"$f":"'Statistical Moments'!BV52","v":{"v":484.82090322074305,"d":"$485"}},{"$f":"'Statistical Moments'!BW52","v":{"v":485.727289837634,"d":"$486"}},{"$f":"'Statistical Moments'!BX52","v":{"v":519.3160583174044,"d":"$519"}},{"$f":"'Statistical Moments'!BY52","v":{"v":511.9701482560691,"d":"$512"}},{"$f":"'Statistical Moments'!BZ52","v":{"v":462.0002511981331,"d":"$462"}},{"$f":"'Statistical Moments'!CB52","v":{"v":446.7746363613361,"d":"$447"}},{"$f":"'Statistical Moments'!CC52","v":{"v":402.01397260824706,"d":"$402"}},{"$f":"'Statistical Moments'!CD52","v":{"v":390.60295432275825,"d":"$391"}},{"$f":"'Statistical Moments'!CE52","v":{"v":394.4464791484732,"d":"$394"}},{"$f":"'Statistical Moments'!CF52","v":{"v":391.39045146515605,"d":"$391"}},{"$f":"'Statistical Moments'!CG52","v":{"v":390.95241759095165,"d":"$391"}},{"$f":"'Statistical Moments'!CH52","v":{"v":404.4974511525706,"d":"$404"}},{"$f":"'Statistical Moments'!CI52","v":{"v":413.2447831867476,"d":"$413"}},{"$f":"'Statistical Moments'!CJ52","v":{"v":397.04881922699036,"d":"$397"}},{"$f":"'Statistical Moments'!CK52","v":{"v":392.9471091125655,"d":"$393"}},{"$f":"'Statistical Moments'!CL52","v":{"v":371.4441217407805,"d":"$371"}},{"$f":"'Statistical Moments'!CM52","v":{"v":381.1710217914653,"d":"$381"}},{"$f":"'Statistical Moments'!CO52","v":{"v":381.03402894270965,"d":"$381"}},{"$f":"'Statistical Moments'!CP52","v":{"v":391.1890832043689,"d":"$391"}},{"$f":"'Statistical Moments'!CQ52","v":{"v":390.22675122571206,"d":"$390"}},{"$f":"'Statistical Moments'!CR52","v":{"v":385.4846681972258,"d":"$385"}},{"$f":"'Statistical Moments'!CS52","v":{"v":390.71150255377427,"d":"$391"}},{"$f":"'Statistical Moments'!CT52","v":{"v":357.35081345993933,"d":"$357"}},{"$f":"'Statistical Moments'!CU52","v":{"v":391.77672487290283,"d":"$392"}},{"$f":"'Statistical Moments'!CV52","v":{"v":410.7669536005111,"d":"$411"}},{"$f":"'Statistical Moments'!CW52","v":{"v":421.8398050281915,"d":"$422"}},{"$f":"'Statistical Moments'!CX52","v":{"v":366.38728758367563,"d":"$366"}},{"$f":"'Statistical Moments'!CY52","v":{"v":401.32183731928893,"d":"$401"}},{"$f":"'Statistical Moments'!CZ52","v":{"v":410.3142789049142,"d":"$410"}},{"$f":"'Statistical Moments'!DB52","v":{"v":429.68469999328994,"d":"$430"}},{"$f":"'Statistical Moments'!DC52","v":{"v":482.76273622194526,"d":"$483"}},{"$f":"'Statistical Moments'!DD52","v":{"v":459.6071293435954,"d":"$460"}},{"$f":"'Statistical Moments'!DE52","v":{"v":431.18470577985903,"d":"$431"}},{"$f":"'Statistical Moments'!DF52","v":{"v":441.43031535830517,"d":"$441"}},{"$f":"'Statistical Moments'!DG52","v":{"v":421.1134376915701,"d":"$421"}},{"$f":"'Statistical Moments'!DH52","v":{"v":402.82919571924475,"d":"$403"}},{"$f":"'Statistical Moments'!DI52","v":{"v":402.4197515079129,"d":"$402"}},{"$f":"'Statistical Moments'!DJ52","v":{"v":358.9523650319524,"d":"$359"}},{"$f":"'Statistical Moments'!DK52","v":{"v":434.3051494866773,"d":"$434"}},{"$f":"'Statistical Moments'!DL52","v":{"v":447.4081581441609,"d":"$447"}},{"$f":"'Statistical Moments'!DM52","v":{"v":491.7867526920739,"d":"$492"}},{"$f":"'Statistical Moments'!DO52","v":{"v":509.2558678986047,"d":"$509"}},{"$f":"'Statistical Moments'!DP52","v":{"v":484.6110759269364,"d":"$485"}},{"$f":"'Statistical Moments'!DQ52","v":{"v":469.0991751600427,"d":"$469"}},{"$f":"'Statistical Moments'!DR52","v":{"v":514.4510403756943,"d":"$514"}},{"$f":"'Statistical Moments'!DS52","v":{"v":530.9000226310546,"d":"$531"}},{"$f":"'Statistical Moments'!DT52","v":{"v":537.377867886199,"d":"$537"}},{"$f":"'Statistical Moments'!DU52","v":{"v":570.376528788728,"d":"$570"}},{"$f":"'Statistical Moments'!DV52","v":{"v":592.7892300584191,"d":"$593"}},{"$f":"'Statistical Moments'!DW52","v":{"v":586.278218233067,"d":"$586"}},{"$f":"'Statistical Moments'!DX52","v":{"v":594.7458466720984,"d":"$595"}},{"$f":"'Statistical Moments'!DY52","v":{"v":571.470613641497,"d":"$571"}},{"$f":"'Statistical Moments'!DZ52","v":{"v":615.89473775493,"d":"$616"}},{"$f":"'Statistical Moments'!EB52","v":{"v":626.9464335948028,"d":"$627"}},{"$f":"'Statistical Moments'!EC52","v":{"v":600.459600208114,"d":"$600"}},{"$f":"'Statistical Moments'!ED52","v":{"v":545.3157763664942,"d":"$545"}},{"$f":"'Statistical Moments'!EE52","v":{"v":594.0865834548407,"d":"$594"}},{"$f":"'Statistical Moments'!EF52","v":{"v":565.3441083699805,"d":"$565"}},{"$f":"'Statistical Moments'!EG52","v":{"v":547.6327188455039,"d":"$548"}},{"$f":"'Statistical Moments'!EH52","v":{"v":556.7115053752622,"d":"$557"}},{"$f":"'Statistical Moments'!EI52","v":{"v":587.7912252011321,"d":"$588"}},{"$f":"'Statistical Moments'!EJ52","v":{"v":600.1211851465309,"d":"$600"}},{"$f":"'Statistical Moments'!EK52","v":{"v":608.3577460261379,"d":"$608"}},{"$f":"'Statistical Moments'!EL52","v":{"v":616.1174739849602,"d":"$616"}},{"$f":"'Statistical Moments'!EM52","v":{"v":561.1388670279695,"d":"$561"}}]
[{"$f":"'(Intermediate Computations)'!B203","v":"Jan 2010"},{"$f":"'(Intermediate Computations)'!C203","v":"Feb 2010"},{"$f":"'(Intermediate Computations)'!D203","v":"Mar 2010"},{"$f":"'(Intermediate Computations)'!E203","v":"Apr 2010"},{"$f":"'(Intermediate Computations)'!F203","v":"May 2010"},{"$f":"'(Intermediate Computations)'!G203","v":"Jun 2010"},{"$f":"'(Intermediate Computations)'!H203","v":"Jul 2010"},{"$f":"'(Intermediate Computations)'!I203","v":"Aug 2010"},{"$f":"'(Intermediate Computations)'!J203","v":"Sep 2010"},{"$f":"'(Intermediate Computations)'!K203","v":"Oct 2010"},{"$f":"'(Intermediate Computations)'!L203","v":"Nov 2010"},{"$f":"'(Intermediate Computations)'!M203","v":"Dec 2010"},{"$f":"'(Intermediate Computations)'!O203","v":"Jan 2011"},{"$f":"'(Intermediate Computations)'!P203","v":"Feb 2011"},{"$f":"'(Intermediate Computations)'!Q203","v":"Mar 2011"},{"$f":"'(Intermediate Computations)'!R203","v":"Apr 2011"},{"$f":"'(Intermediate Computations)'!S203","v":"May 2011"},{"$f":"'(Intermediate Computations)'!T203","v":"Jun 2011"},{"$f":"'(Intermediate Computations)'!U203","v":"Jul 2011"},{"$f":"'(Intermediate Computations)'!V203","v":"Aug 2011"},{"$f":"'(Intermediate Computations)'!W203","v":"Sep 2011"},{"$f":"'(Intermediate Computations)'!X203","v":"Oct 2011"},{"$f":"'(Intermediate Computations)'!Y203","v":"Nov 2011"},{"$f":"'(Intermediate Computations)'!Z203","v":"Dec 2011"},{"$f":"'(Intermediate Computations)'!AB203","v":"Jan 2012"},{"$f":"'(Intermediate Computations)'!AC203","v":"Feb 2012"},{"$f":"'(Intermediate Computations)'!AD203","v":"Mar 2012"},{"$f":"'(Intermediate Computations)'!AE203","v":"Apr 2012"},{"$f":"'(Intermediate Computations)'!AF203","v":"May 2012"},{"$f":"'(Intermediate Computations)'!AG203","v":"Jun 2012"},{"$f":"'(Intermediate Computations)'!AH203","v":"Jul 2012"},{"$f":"'(Intermediate Computations)'!AI203","v":"Aug 2012"},{"$f":"'(Intermediate Computations)'!AJ203","v":"Sep 2012"},{"$f":"'(Intermediate Computations)'!AK203","v":"Oct 2012"},{"$f":"'(Intermediate Computations)'!AL203","v":"Nov 2012"},{"$f":"'(Intermediate Computations)'!AM203","v":"Dec 2012"},{"$f":"'(Intermediate Computations)'!AO203","v":"Jan 2013"},{"$f":"'(Intermediate Computations)'!AP203","v":"Feb 2013"},{"$f":"'(Intermediate Computations)'!AQ203","v":"Mar 2013"},{"$f":"'(Intermediate Computations)'!AR203","v":"Apr 2013"},{"$f":"'(Intermediate Computations)'!AS203","v":"May 2013"},{"$f":"'(Intermediate Computations)'!AT203","v":"Jun 2013"},{"$f":"'(Intermediate Computations)'!AU203","v":"Jul 2013"},{"$f":"'(Intermediate Computations)'!AV203","v":"Aug 2013"},{"$f":"'(Intermediate Computations)'!AW203","v":"Sep 2013"},{"$f":"'(Intermediate Computations)'!AX203","v":"Oct 2013"},{"$f":"'(Intermediate Computations)'!AY203","v":"Nov 2013"},{"$f":"'(Intermediate Computations)'!AZ203","v":"Dec 2013"},{"$f":"'(Intermediate Computations)'!BB203","v":"Jan 2014"},{"$f":"'(Intermediate Computations)'!BC203","v":"Feb 2014"},{"$f":"'(Intermediate Computations)'!BD203","v":"Mar 2014"},{"$f":"'(Intermediate Computations)'!BE203","v":"Apr 2014"},{"$f":"'(Intermediate Computations)'!BF203","v":"May 2014"},{"$f":"'(Intermediate Computations)'!BG203","v":"Jun 2014"},{"$f":"'(Intermediate Computations)'!BH203","v":"Jul 2014"},{"$f":"'(Intermediate Computations)'!BI203","v":"Aug 2014"},{"$f":"'(Intermediate Computations)'!BJ203","v":"Sep 2014"},{"$f":"'(Intermediate Computations)'!BK203","v":"Oct 2014"},{"$f":"'(Intermediate Computations)'!BL203","v":"Nov 2014"},{"$f":"'(Intermediate Computations)'!BM203","v":"Dec 2014"},{"$f":"'(Intermediate Computations)'!BO203","v":"Jan 2015"},{"$f":"'(Intermediate Computations)'!BP203","v":"Feb 2015"},{"$f":"'(Intermediate Computations)'!BQ203","v":"Mar 2015"},{"$f":"'(Intermediate Computations)'!BR203","v":"Apr 2015"},{"$f":"'(Intermediate Computations)'!BS203","v":"May 2015"},{"$f":"'(Intermediate Computations)'!BT203","v":"Jun 2015"},{"$f":"'(Intermediate Computations)'!BU203","v":"Jul 2015"},{"$f":"'(Intermediate Computations)'!BV203","v":"Aug 2015"},{"$f":"'(Intermediate Computations)'!BW203","v":"Sep 2015"},{"$f":"'(Intermediate Computations)'!BX203","v":"Oct 2015"},{"$f":"'(Intermediate Computations)'!BY203","v":"Nov 2015"},{"$f":"'(Intermediate Computations)'!BZ203","v":"Dec 2015"},{"$f":"'(Intermediate Computations)'!CB203","v":"Jan 2016"},{"$f":"'(Intermediate Computations)'!CC203","v":"Feb 2016"},{"$f":"'(Intermediate Computations)'!CD203","v":"Mar 2016"},{"$f":"'(Intermediate Computations)'!CE203","v":"Apr 2016"},{"$f":"'(Intermediate Computations)'!CF203","v":"May 2016"},{"$f":"'(Intermediate Computations)'!CG203","v":"Jun 2016"},{"$f":"'(Intermediate Computations)'!CH203","v":"Jul 2016"},{"$f":"'(Intermediate Computations)'!CI203","v":"Aug 2016"},{"$f":"'(Intermediate Computations)'!CJ203","v":"Sep 2016"},{"$f":"'(Intermediate Computations)'!CK203","v":"Oct 2016"},{"$f":"'(Intermediate Computations)'!CL203","v":"Nov 2016"},{"$f":"'(Intermediate Computations)'!CM203","v":"Dec 2016"},{"$f":"'(Intermediate Computations)'!CO203","v":"Jan 2017"},{"$f":"'(Intermediate Computations)'!CP203","v":"Feb 2017"},{"$f":"'(Intermediate Computations)'!CQ203","v":"Mar 2017"},{"$f":"'(Intermediate Computations)'!CR203","v":"Apr 2017"},{"$f":"'(Intermediate Computations)'!CS203","v":"May 2017"},{"$f":"'(Intermediate Computations)'!CT203","v":"Jun 2017"},{"$f":"'(Intermediate Computations)'!CU203","v":"Jul 2017"},{"$f":"'(Intermediate Computations)'!CV203","v":"Aug 2017"},{"$f":"'(Intermediate Computations)'!CW203","v":"Sep 2017"},{"$f":"'(Intermediate Computations)'!CX203","v":"Oct 2017"},{"$f":"'(Intermediate Computations)'!CY203","v":"Nov 2017"},{"$f":"'(Intermediate Computations)'!CZ203","v":"Dec 2017"},{"$f":"'(Intermediate Computations)'!DB203","v":"Jan 2018"},{"$f":"'(Intermediate Computations)'!DC203","v":"Feb 2018"},{"$f":"'(Intermediate Computations)'!DD203","v":"Mar 2018"},{"$f":"'(Intermediate Computations)'!DE203","v":"Apr 2018"},{"$f":"'(Intermediate Computations)'!DF203","v":"May 2018"},{"$f":"'(Intermediate Computations)'!DG203","v":"Jun 2018"},{"$f":"'(Intermediate Computations)'!DH203","v":"Jul 2018"},{"$f":"'(Intermediate Computations)'!DI203","v":"Aug 2018"},{"$f":"'(Intermediate Computations)'!DJ203","v":"Sep 2018"},{"$f":"'(Intermediate Computations)'!DK203","v":"Oct 2018"},{"$f":"'(Intermediate Computations)'!DL203","v":"Nov 2018"},{"$f":"'(Intermediate Computations)'!DM203","v":"Dec 2018"},{"$f":"'(Intermediate Computations)'!DO203","v":"Jan 2019"},{"$f":"'(Intermediate Computations)'!DP203","v":"Feb 2019"},{"$f":"'(Intermediate Computations)'!DQ203","v":"Mar 2019"},{"$f":"'(Intermediate Computations)'!DR203","v":"Apr 2019"},{"$f":"'(Intermediate Computations)'!DS203","v":"May 2019"},{"$f":"'(Intermediate Computations)'!DT203","v":"Jun 2019"},{"$f":"'(Intermediate Computations)'!DU203","v":"Jul 2019"},{"$f":"'(Intermediate Computations)'!DV203","v":"Aug 2019"},{"$f":"'(Intermediate Computations)'!DW203","v":"Sep 2019"},{"$f":"'(Intermediate Computations)'!DX203","v":"Oct 2019"},{"$f":"'(Intermediate Computations)'!DY203","v":"Nov 2019"},{"$f":"'(Intermediate Computations)'!DZ203","v":"Dec 2019"},{"$f":"'(Intermediate Computations)'!EB203","v":"Jan 2020"},{"$f":"'(Intermediate Computations)'!EC203","v":"Feb 2020"},{"$f":"'(Intermediate Computations)'!ED203","v":"Mar 2020"},{"$f":"'(Intermediate Computations)'!EE203","v":"Apr 2020"},{"$f":"'(Intermediate Computations)'!EF203","v":"May 2020"},{"$f":"'(Intermediate Computations)'!EG203","v":"Jun 2020"},{"$f":"'(Intermediate Computations)'!EH203","v":"Jul 2020"},{"$f":"'(Intermediate Computations)'!EI203","v":"Aug 2020"},{"$f":"'(Intermediate Computations)'!EJ203","v":"Sep 2020"},{"$f":"'(Intermediate Computations)'!EK203","v":"Oct 2020"},{"$f":"'(Intermediate Computations)'!EL203","v":"Nov 2020"},{"$f":"'(Intermediate Computations)'!EM203","v":"Dec 2020"}]
[{"$f":"'(Intermediate Computations)'!B200","v":"2010-01-01"},{"$f":"'(Intermediate Computations)'!C200","v":"2010-02-01"},{"$f":"'(Intermediate Computations)'!D200","v":"2010-03-01"},{"$f":"'(Intermediate Computations)'!E200","v":"2010-04-01"},{"$f":"'(Intermediate Computations)'!F200","v":"2010-05-01"},{"$f":"'(Intermediate Computations)'!G200","v":"2010-06-01"},{"$f":"'(Intermediate Computations)'!H200","v":"2010-07-01"},{"$f":"'(Intermediate Computations)'!I200","v":"2010-08-01"},{"$f":"'(Intermediate Computations)'!J200","v":"2010-09-01"},{"$f":"'(Intermediate Computations)'!K200","v":"2010-10-01"},{"$f":"'(Intermediate Computations)'!L200","v":"2010-11-01"},{"$f":"'(Intermediate Computations)'!M200","v":"2010-12-01"},{"$f":"'(Intermediate Computations)'!O200","v":"2011-01-01"},{"$f":"'(Intermediate Computations)'!P200","v":"2011-02-01"},{"$f":"'(Intermediate Computations)'!Q200","v":"2011-03-01"},{"$f":"'(Intermediate Computations)'!R200","v":"2011-04-01"},{"$f":"'(Intermediate Computations)'!S200","v":"2011-05-01"},{"$f":"'(Intermediate Computations)'!T200","v":"2011-06-01"},{"$f":"'(Intermediate Computations)'!U200","v":"2011-07-01"},{"$f":"'(Intermediate Computations)'!V200","v":"2011-08-01"},{"$f":"'(Intermediate Computations)'!W200","v":"2011-09-01"},{"$f":"'(Intermediate Computations)'!X200","v":"2011-10-01"},{"$f":"'(Intermediate Computations)'!Y200","v":"2011-11-01"},{"$f":"'(Intermediate Computations)'!Z200","v":"2011-12-01"},{"$f":"'(Intermediate Computations)'!AB200","v":"2012-01-01"},{"$f":"'(Intermediate Computations)'!AC200","v":"2012-02-01"},{"$f":"'(Intermediate Computations)'!AD200","v":"2012-03-01"},{"$f":"'(Intermediate Computations)'!AE200","v":"2012-04-01"},{"$f":"'(Intermediate Computations)'!AF200","v":"2012-05-01"},{"$f":"'(Intermediate Computations)'!AG200","v":"2012-06-01"},{"$f":"'(Intermediate Computations)'!AH200","v":"2012-07-01"},{"$f":"'(Intermediate Computations)'!AI200","v":"2012-08-01"},{"$f":"'(Intermediate Computations)'!AJ200","v":"2012-09-01"},{"$f":"'(Intermediate Computations)'!AK200","v":"2012-10-01"},{"$f":"'(Intermediate Computations)'!AL200","v":"2012-11-01"},{"$f":"'(Intermediate Computations)'!AM200","v":"2012-12-01"},{"$f":"'(Intermediate Computations)'!AO200","v":"2013-01-01"},{"$f":"'(Intermediate Computations)'!AP200","v":"2013-02-01"},{"$f":"'(Intermediate Computations)'!AQ200","v":"2013-03-01"},{"$f":"'(Intermediate Computations)'!AR200","v":"2013-04-01"},{"$f":"'(Intermediate Computations)'!AS200","v":"2013-05-01"},{"$f":"'(Intermediate Computations)'!AT200","v":"2013-06-01"},{"$f":"'(Intermediate Computations)'!AU200","v":"2013-07-01"},{"$f":"'(Intermediate Computations)'!AV200","v":"2013-08-01"},{"$f":"'(Intermediate Computations)'!AW200","v":"2013-09-01"},{"$f":"'(Intermediate Computations)'!AX200","v":"2013-10-01"},{"$f":"'(Intermediate Computations)'!AY200","v":"2013-11-01"},{"$f":"'(Intermediate Computations)'!AZ200","v":"2013-12-01"},{"$f":"'(Intermediate Computations)'!BB200","v":"2014-01-01"},{"$f":"'(Intermediate Computations)'!BC200","v":"2014-02-01"},{"$f":"'(Intermediate Computations)'!BD200","v":"2014-03-01"},{"$f":"'(Intermediate Computations)'!BE200","v":"2014-04-01"},{"$f":"'(Intermediate Computations)'!BF200","v":"2014-05-01"},{"$f":"'(Intermediate Computations)'!BG200","v":"2014-06-01"},{"$f":"'(Intermediate Computations)'!BH200","v":"2014-07-01"},{"$f":"'(Intermediate Computations)'!BI200","v":"2014-08-01"},{"$f":"'(Intermediate Computations)'!BJ200","v":"2014-09-01"},{"$f":"'(Intermediate Computations)'!BK200","v":"2014-10-01"},{"$f":"'(Intermediate Computations)'!BL200","v":"2014-11-01"},{"$f":"'(Intermediate Computations)'!BM200","v":"2014-12-01"},{"$f":"'(Intermediate Computations)'!BO200","v":"2015-01-01"},{"$f":"'(Intermediate Computations)'!BP200","v":"2015-02-01"},{"$f":"'(Intermediate Computations)'!BQ200","v":"2015-03-01"},{"$f":"'(Intermediate Computations)'!BR200","v":"2015-04-01"},{"$f":"'(Intermediate Computations)'!BS200","v":"2015-05-01"},{"$f":"'(Intermediate Computations)'!BT200","v":"2015-06-01"},{"$f":"'(Intermediate Computations)'!BU200","v":"2015-07-01"},{"$f":"'(Intermediate Computations)'!BV200","v":"2015-08-01"},{"$f":"'(Intermediate Computations)'!BW200","v":"2015-09-01"},{"$f":"'(Intermediate Computations)'!BX200","v":"2015-10-01"},{"$f":"'(Intermediate Computations)'!BY200","v":"2015-11-01"},{"$f":"'(Intermediate Computations)'!BZ200","v":"2015-12-01"},{"$f":"'(Intermediate Computations)'!CB200","v":"2016-01-01"},{"$f":"'(Intermediate Computations)'!CC200","v":"2016-02-01"},{"$f":"'(Intermediate Computations)'!CD200","v":"2016-03-01"},{"$f":"'(Intermediate Computations)'!CE200","v":"2016-04-01"},{"$f":"'(Intermediate Computations)'!CF200","v":"2016-05-01"},{"$f":"'(Intermediate Computations)'!CG200","v":"2016-06-01"},{"$f":"'(Intermediate Computations)'!CH200","v":"2016-07-01"},{"$f":"'(Intermediate Computations)'!CI200","v":"2016-08-01"},{"$f":"'(Intermediate Computations)'!CJ200","v":"2016-09-01"},{"$f":"'(Intermediate Computations)'!CK200","v":"2016-10-01"},{"$f":"'(Intermediate Computations)'!CL200","v":"2016-11-01"},{"$f":"'(Intermediate Computations)'!CM200","v":"2016-12-01"},{"$f":"'(Intermediate Computations)'!CO200","v":"2017-01-01"},{"$f":"'(Intermediate Computations)'!CP200","v":"2017-02-01"},{"$f":"'(Intermediate Computations)'!CQ200","v":"2017-03-01"},{"$f":"'(Intermediate Computations)'!CR200","v":"2017-04-01"},{"$f":"'(Intermediate Computations)'!CS200","v":"2017-05-01"},{"$f":"'(Intermediate Computations)'!CT200","v":"2017-06-01"},{"$f":"'(Intermediate Computations)'!CU200","v":"2017-07-01"},{"$f":"'(Intermediate Computations)'!CV200","v":"2017-08-01"},{"$f":"'(Intermediate Computations)'!CW200","v":"2017-09-01"},{"$f":"'(Intermediate Computations)'!CX200","v":"2017-10-01"},{"$f":"'(Intermediate Computations)'!CY200","v":"2017-11-01"},{"$f":"'(Intermediate Computations)'!CZ200","v":"2017-12-01"},{"$f":"'(Intermediate Computations)'!DB200","v":"2018-01-01"},{"$f":"'(Intermediate Computations)'!DC200","v":"2018-02-01"},{"$f":"'(Intermediate Computations)'!DD200","v":"2018-03-01"},{"$f":"'(Intermediate Computations)'!DE200","v":"2018-04-01"},{"$f":"'(Intermediate Computations)'!DF200","v":"2018-05-01"},{"$f":"'(Intermediate Computations)'!DG200","v":"2018-06-01"},{"$f":"'(Intermediate Computations)'!DH200","v":"2018-07-01"},{"$f":"'(Intermediate Computations)'!DI200","v":"2018-08-01"},{"$f":"'(Intermediate Computations)'!DJ200","v":"2018-09-01"},{"$f":"'(Intermediate Computations)'!DK200","v":"2018-10-01"},{"$f":"'(Intermediate Computations)'!DL200","v":"2018-11-01"},{"$f":"'(Intermediate Computations)'!DM200","v":"2018-12-01"},{"$f":"'(Intermediate Computations)'!DO200","v":"2019-01-01"},{"$f":"'(Intermediate Computations)'!DP200","v":"2019-02-01"},{"$f":"'(Intermediate Computations)'!DQ200","v":"2019-03-01"},{"$f":"'(Intermediate Computations)'!DR200","v":"2019-04-01"},{"$f":"'(Intermediate Computations)'!DS200","v":"2019-05-01"},{"$f":"'(Intermediate Computations)'!DT200","v":"2019-06-01"},{"$f":"'(Intermediate Computations)'!DU200","v":"2019-07-01"},{"$f":"'(Intermediate Computations)'!DV200","v":"2019-08-01"},{"$f":"'(Intermediate Computations)'!DW200","v":"2019-09-01"},{"$f":"'(Intermediate Computations)'!DX200","v":"2019-10-01"},{"$f":"'(Intermediate Computations)'!DY200","v":"2019-11-01"},{"$f":"'(Intermediate Computations)'!DZ200","v":"2019-12-01"},{"$f":"'(Intermediate Computations)'!EB200","v":"2020-01-01"},{"$f":"'(Intermediate Computations)'!EC200","v":"2020-02-01"},{"$f":"'(Intermediate Computations)'!ED200","v":"2020-03-01"},{"$f":"'(Intermediate Computations)'!EE200","v":"2020-04-01"},{"$f":"'(Intermediate Computations)'!EF200","v":"2020-05-01"},{"$f":"'(Intermediate Computations)'!EG200","v":"2020-06-01"},{"$f":"'(Intermediate Computations)'!EH200","v":"2020-07-01"},{"$f":"'(Intermediate Computations)'!EI200","v":"2020-08-01"},{"$f":"'(Intermediate Computations)'!EJ200","v":"2020-09-01"},{"$f":"'(Intermediate Computations)'!EK200","v":"2020-10-01"},{"$f":"'(Intermediate Computations)'!EL200","v":"2020-11-01"},{"$f":"'(Intermediate Computations)'!EM200","v":"2020-12-01"}]
[{"$f":"'Statistical Moments'!B54","v":{"v":933333.3333333333,"d":"$933,333"}},{"$f":"'Statistical Moments'!C54","v":{"v":933077.8363457569,"d":"$933,078"}},{"$f":"'Statistical Moments'!D54","v":{"v":932798.005237549,"d":"$932,798"}},{"$f":"'Statistical Moments'!E54","v":{"v":932516.3077164631,"d":"$932,516"}},{"$f":"'Statistical Moments'!F54","v":{"v":932200.0255798995,"d":"$932,200"}},{"$f":"'Statistical Moments'!G54","v":{"v":931886.2306120808,"d":"$931,886"}},{"$f":"'Statistical Moments'!H54","v":{"v":931584.984438387,"d":"$931,585"}},{"$f":"'Statistical Moments'!I54","v":{"v":931333.6532613199,"d":"$931,334"}},{"$f":"'Statistical Moments'!J54","v":{"v":931034.7998758556,"d":"$931,035"}},{"$f":"'Statistical Moments'!K54","v":{"v":930766.6568164378,"d":"$930,767"}},{"$f":"'Statistical Moments'!L54","v":{"v":930456.6383322421,"d":"$930,457"}},{"$f":"'Statistical Moments'!M54","v":{"v":930175.029943754,"d":"$930,175"}},{"$f":"'Statistical Moments'!O54","v":{"v":929890.7356650764,"d":"$929,891"}},{"$f":"'Statistical Moments'!P54","v":{"v":929571.956253815,"d":"$929,572"}},{"$f":"'Statistical Moments'!Q54","v":{"v":929278.0557893293,"d":"$929,278"}},{"$f":"'Statistical Moments'!R54","v":{"v":929007.0219320467,"d":"$929,007"}},{"$f":"'Statistical Moments'!S54","v":{"v":928707.0828607649,"d":"$928,707"}},{"$f":"'Statistical Moments'!T54","v":{"v":928411.7386402804,"d":"$928,412"}},{"$f":"'Statistical Moments'!U54","v":{"v":928105.7121539722,"d":"$928,106"}},{"$f":"'Statistical Moments'!V54","v":{"v":927780.3800056424,"d":"$927,780"}},{"$f":"'Statistical Moments'!W54","v":{"v":927481.2184584833,"d":"$927,481"}},{"$f":"'Statistical Moments'!X54","v":{"v":927156.1859148613,"d":"$927,156"}},{"$f":"'Statistical Moments'!Y54","v":{"v":926845.2898093581,"d":"$926,845"}},{"$f":"'Statistical Moments'!Z54","v":{"v":926505.7865627111,"d":"$926,506"}},{"$f":"'Statistical Moments'!AB54","v":{"v":926198.0327907234,"d":"$926,198"}},{"$f":"'Statistical Moments'!AC54","v":{"v":925852.5847577035,"d":"$925,853"}},{"$f":"'Statistical Moments'!AD54","v":{"v":925518.5884874418,"d":"$925,519"}},{"$f":"'Statistical Moments'!AE54","v":{"v":925221.8404032353,"d":"$925,222"}},{"$f":"'Statistical Moments'!AF54","v":{"v":924857.2863529669,"d":"$924,857"}},{"$f":"'Statistical Moments'!AG54","v":{"v":924527.7381035367,"d":"$924,528"}},{"$f":"'Statistical Moments'!AH54","v":{"v":924199.0632042702,"d":"$924,199"}},{"$f":"'Statistical Moments'!AI54","v":{"v":923877.9159780432,"d":"$923,878"}},{"$f":"'Statistical Moments'!AJ54","v":{"v":923501.3510347414,"d":"$923,501"}},{"$f":"'Statistical Moments'!AK54","v":{"v":923166.7582185172,"d":"$923,167"}},{"$f":"'Statistical Moments'!AL54","v":{"v":922836.4840093087,"d":"$922,836"}},{"$f":"'Statistical Moments'!AM54","v":{"v":922480.291328082,"d":"$922,480"}},{"$f":"'Statistical Moments'!AO54","v":{"v":922151.462334446,"d":"$922,151"}},{"$f":"'Statistical Moments'!AP54","v":{"v":921765.0212192559,"d":"$921,765"}},{"$f":"'Statistical Moments'!AQ54","v":{"v":921391.5271702649,"d":"$921,392"}},{"$f":"'Statistical Moments'!AR54","v":{"v":921060.9428149218,"d":"$921,061"}},{"$f":"'Statistical Moments'!AS54","v":{"v":920706.9591213599,"d":"$920,707"}},{"$f":"'Statistical Moments'!AT54","v":{"v":920311.941210349,"d":"$920,312"}},{"$f":"'Statistical Moments'!AU54","v":{"v":919916.6484155434,"d":"$919,917"}},{"$f":"'Statistical Moments'!AV54","v":{"v":919581.6933326793,"d":"$919,582"}},{"$f":"'Statistical Moments'!AW54","v":{"v":919246.5929088277,"d":"$919,247"}},{"$f":"'Statistical Moments'!AX54","v":{"v":918866.1071488928,"d":"$918,866"}},{"$f":"'Statistical Moments'!AY54","v":{"v":918509.8191996091,"d":"$918,510"}},{"$f":"'Statistical Moments'!AZ54","v":{"v":918133.779934953,"d":"$918,134"}},{"$f":"'Statistical Moments'!BB54","v":{"v":917769.8057192113,"d":"$917,770"}},{"$f":"'Statistical Moments'!BC54","v":{"v":917395.3678202895,"d":"$917,395"}},{"$f":"'Statistical Moments'!BD54","v":{"v":917052.3976852848,"d":"$917,052"}},{"$f":"'Statistical Moments'!BE54","v":{"v":916718.8808874363,"d":"$916,719"}},{"$f":"'Statistical Moments'!BF54","v":{"v":916353.6456840051,"d":"$916,354"}},{"$f":"'Statistical Moments'!BG54","v":{"v":915969.6947598524,"d":"$915,970"}},{"$f":"'Statistical Moments'!BH54","v":{"v":915582.0430549537,"d":"$915,582"}},{"$f":"'Statistical Moments'!BI54","v":{"v":915235.2704828304,"d":"$915,235"}},{"$f":"'Statistical Moments'!BJ54","v":{"v":914843.8777934901,"d":"$914,844"}},{"$f":"'Statistical Moments'!BK54","v":{"v":914464.8867030008,"d":"$914,465"}},{"$f":"'Statistical Moments'!BL54","v":{"v":914086.8175309312,"d":"$914,087"}},{"$f":"'Statistical Moments'!BM54","v":{"v":913692.3010675334,"d":"$913,692"}},{"$f":"'Statistical Moments'!BO54","v":{"v":913289.1781149949,"d":"$913,289"}},{"$f":"'Statistical Moments'!BP54","v":{"v":912863.0475429392,"d":"$912,863"}},{"$f":"'Statistical Moments'!BQ54","v":{"v":912498.778757732,"d":"$912,499"}},{"$f":"'Statistical Moments'!BR54","v":{"v":912100.4611920413,"d":"$912,100"}},{"$f":"'Statistical Moments'!BS54","v":{"v":911753.0686181408,"d":"$911,753"}},{"$f":"'Statistical Moments'!BT54","v":{"v":911359.9282493533,"d":"$911,360"}},{"$f":"'Statistical Moments'!BU54","v":{"v":910985.6166863962,"d":"$910,986"}},{"$f":"'Statistical Moments'!BV54","v":{"v":910575.5000883408,"d":"$910,576"}},{"$f":"'Statistical Moments'!BW54","v":{"v":910161.8850798465,"d":"$910,162"}},{"$f":"'Statistical Moments'!BX54","v":{"v":909797.7491481656,"d":"$909,798"}},{"$f":"'Statistical Moments'!BY54","v":{"v":909368.3195424394,"d":"$909,368"}},{"$f":"'Statistical Moments'!BZ54","v":{"v":908981.9607930362,"d":"$908,982"}},{"$f":"'Statistical Moments'!CB54","v":{"v":908586.3416771273,"d":"$908,586"}},{"$f":"'Statistical Moments'!CC54","v":{"v":908185.2093820566,"d":"$908,185"}},{"$f":"'Statistical Moments'!CD54","v":{"v":907784.946565616,"d":"$907,785"}},{"$f":"'Statistical Moments'!CE54","v":{"v":907347.7109124318,"d":"$907,348"}},{"$f":"'Statistical Moments'!CF54","v":{"v":906917.0200700727,"d":"$906,917"}},{"$f":"'Statistical Moments'!CG54","v":{"v":906502.0271630562,"d":"$906,502"}},{"$f":"'Statistical Moments'!CH54","v":{"v":906095.9219297114,"d":"$906,096"}},{"$f":"'Statistical Moments'!CI54","v":{"v":905664.5036708362,"d":"$905,665"}},{"$f":"'Statistical Moments'!CJ54","v":{"v":905246.2397326195,"d":"$905,246"}},{"$f":"'Statistical Moments'!CK54","v":{"v":904865.592772292,"d":"$904,866"}},{"$f":"'Statistical Moments'!CL54","v":{"v":904455.6807720991,"d":"$904,456"}},{"$f":"'Statistical Moments'!CM54","v":{"v":904028.816489049,"d":"$904,029"}},{"$f":"'Statistical Moments'!CO54","v":{"v":903569.952221134,"d":"$903,570"}},{"$f":"'Statistical Moments'!CP54","v":{"v":903144.9384856195,"d":"$903,145"}},{"$f":"'Statistical Moments'!CQ54","v":{"v":902710.4395372387,"d":"$902,710"}},{"$f":"'Statistical Moments'!CR54","v":{"v":902297.1435061569,"d":"$902,297"}},{"$f":"'Statistical Moments'!CS54","v":{"v":901866.6720669145,"d":"$901,867"}},{"$f":"'Statistical Moments'!CT54","v":{"v":901451.6351810399,"d":"$901,452"}},{"$f":"'Statistical Moments'!CU54","v":{"v":901020.1858406302,"d":"$901,020"}},{"$f":"'Statistical Moments'!CV54","v":{"v":900609.9657707126,"d":"$900,610"}},{"$f":"'Statistical Moments'!CW54","v":{"v":900184.0254724897,"d":"$900,184"}},{"$f":"'Statistical Moments'!CX54","v":{"v":899731.810864733,"d":"$899,732"}},{"$f":"'Statistical Moments'!CY54","v":{"v":899319.3418196474,"d":"$899,319"}},{"$f":"'Statistical Moments'!CZ54","v":{"v":898913.3357167162,"d":"$898,913"}},{"$f":"'Statistical Moments'!DB54","v":{"v":898515.2899409679,"d":"$898,515"}},{"$f":"'Statistical Moments'!DC54","v":{"v":898074.469125808,"d":"$898,074"}},{"$f":"'Statistical Moments'!DD54","v":{"v":897638.8741290299,"d":"$897,639"}},{"$f":"'Statistical Moments'!DE54","v":{"v":897201.5038032299,"d":"$897,202"}},{"$f":"'Statistical Moments'!DF54","v":{"v":896788.3383151845,"d":"$896,788"}},{"$f":"'Statistical Moments'!DG54","v":{"v":896363.1918047409,"d":"$896,363"}},{"$f":"'Statistical Moments'!DH54","v":{"v":895905.8170752751,"d":"$895,906"}},{"$f":"'Statistical Moments'!DI54","v":{"v":895485.5560765157,"d":"$895,486"}},{"$f":"'Statistical Moments'!DJ54","v":{"v":895051.3535887834,"d":"$895,051"}},{"$f":"'Statistical Moments'!DK54","v":{"v":894636.2982030351,"d":"$894,636"}},{"$f":"'Statistical Moments'!DL54","v":{"v":894212.2847197849,"d":"$894,212"}},{"$f":"'Statistical Moments'!DM54","v":{"v":893754.736372885,"d":"$893,755"}},{"$f":"'Statistical Moments'!DO54","v":{"v":893337.2500351637,"d":"$893,337"}},{"$f":"'Statistical Moments'!DP54","v":{"v":892917.9671138267,"d":"$892,918"}},{"$f":"'Statistical Moments'!DQ54","v":{"v":892470.5472400741,"d":"$892,471"}},{"$f":"'Statistical Moments'!DR54","v":{"v":892042.4927659666,"d":"$892,042"}},{"$f":"'Statistical Moments'!DS54","v":{"v":891597.4073534055,"d":"$891,597"}},{"$f":"'Statistical Moments'!DT54","v":{"v":891170.7593984997,"d":"$891,171"}},{"$f":"'Statistical Moments'!DU54","v":{"v":890718.2602174233,"d":"$890,718"}},{"$f":"'Statistical Moments'!DV54","v":{"v":890288.2257278343,"d":"$890,288"}},{"$f":"'Statistical Moments'!DW54","v":{"v":889805.412633836,"d":"$889,805"}},{"$f":"'Statistical Moments'!DX54","v":{"v":889384.0945767006,"d":"$889,384"}},{"$f":"'Statistical Moments'!DY54","v":{"v":888936.4900478647,"d":"$888,936"}},{"$f":"'Statistical Moments'!DZ54","v":{"v":888500.9646741515,"d":"$888,501"}},{"$f":"'Statistical Moments'!EB54","v":{"v":888049.9309332038,"d":"$888,050"}},{"$f":"'Statistical Moments'!EC54","v":{"v":887625.6439102527,"d":"$887,626"}},{"$f":"'Statistical Moments'!ED54","v":{"v":887197.093057618,"d":"$887,197"}},{"$f":"'Statistical Moments'!EE54","v":{"v":886709.5178955955,"d":"$886,710"}},{"$f":"'Statistical Moments'!EF54","v":{"v":886267.9210201274,"d":"$886,268"}},{"$f":"'Statistical Moments'!EG54","v":{"v":885817.280307053,"d":"$885,817"}},{"$f":"'Statistical Moments'!EH54","v":{"v":885364.0696519703,"d":"$885,364"}},{"$f":"'Statistical Moments'!EI54","v":{"v":884921.8461054927,"d":"$884,922"}},{"$f":"'Statistical Moments'!EJ54","v":{"v":884474.3019222075,"d":"$884,474"}},{"$f":"'Statistical Moments'!EK54","v":{"v":884031.5742624055,"d":"$884,032"}},{"$f":"'Statistical Moments'!EL54","v":{"v":883563.263281486,"d":"$883,563"}},{"$f":"'Statistical Moments'!EM54","v":{"v":883113.9744797279,"d":"$883,114"}}]
[{"$f":"'(Intermediate Computations)'!B209","v":"Jan 2010"},{"$f":"'(Intermediate Computations)'!C209","v":"Feb 2010"},{"$f":"'(Intermediate Computations)'!D209","v":"Mar 2010"},{"$f":"'(Intermediate Computations)'!E209","v":"Apr 2010"},{"$f":"'(Intermediate Computations)'!F209","v":"May 2010"},{"$f":"'(Intermediate Computations)'!G209","v":"Jun 2010"},{"$f":"'(Intermediate Computations)'!H209","v":"Jul 2010"},{"$f":"'(Intermediate Computations)'!I209","v":"Aug 2010"},{"$f":"'(Intermediate Computations)'!J209","v":"Sep 2010"},{"$f":"'(Intermediate Computations)'!K209","v":"Oct 2010"},{"$f":"'(Intermediate Computations)'!L209","v":"Nov 2010"},{"$f":"'(Intermediate Computations)'!M209","v":"Dec 2010"},{"$f":"'(Intermediate Computations)'!O209","v":"Jan 2011"},{"$f":"'(Intermediate Computations)'!P209","v":"Feb 2011"},{"$f":"'(Intermediate Computations)'!Q209","v":"Mar 2011"},{"$f":"'(Intermediate Computations)'!R209","v":"Apr 2011"},{"$f":"'(Intermediate Computations)'!S209","v":"May 2011"},{"$f":"'(Intermediate Computations)'!T209","v":"Jun 2011"},{"$f":"'(Intermediate Computations)'!U209","v":"Jul 2011"},{"$f":"'(Intermediate Computations)'!V209","v":"Aug 2011"},{"$f":"'(Intermediate Computations)'!W209","v":"Sep 2011"},{"$f":"'(Intermediate Computations)'!X209","v":"Oct 2011"},{"$f":"'(Intermediate Computations)'!Y209","v":"Nov 2011"},{"$f":"'(Intermediate Computations)'!Z209","v":"Dec 2011"},{"$f":"'(Intermediate Computations)'!AB209","v":"Jan 2012"},{"$f":"'(Intermediate Computations)'!AC209","v":"Feb 2012"},{"$f":"'(Intermediate Computations)'!AD209","v":"Mar 2012"},{"$f":"'(Intermediate Computations)'!AE209","v":"Apr 2012"},{"$f":"'(Intermediate Computations)'!AF209","v":"May 2012"},{"$f":"'(Intermediate Computations)'!AG209","v":"Jun 2012"},{"$f":"'(Intermediate Computations)'!AH209","v":"Jul 2012"},{"$f":"'(Intermediate Computations)'!AI209","v":"Aug 2012"},{"$f":"'(Intermediate Computations)'!AJ209","v":"Sep 2012"},{"$f":"'(Intermediate Computations)'!AK209","v":"Oct 2012"},{"$f":"'(Intermediate Computations)'!AL209","v":"Nov 2012"},{"$f":"'(Intermediate Computations)'!AM209","v":"Dec 2012"},{"$f":"'(Intermediate Computations)'!AO209","v":"Jan 2013"},{"$f":"'(Intermediate Computations)'!AP209","v":"Feb 2013"},{"$f":"'(Intermediate Computations)'!AQ209","v":"Mar 2013"},{"$f":"'(Intermediate Computations)'!AR209","v":"Apr 2013"},{"$f":"'(Intermediate Computations)'!AS209","v":"May 2013"},{"$f":"'(Intermediate Computations)'!AT209","v":"Jun 2013"},{"$f":"'(Intermediate Computations)'!AU209","v":"Jul 2013"},{"$f":"'(Intermediate Computations)'!AV209","v":"Aug 2013"},{"$f":"'(Intermediate Computations)'!AW209","v":"Sep 2013"},{"$f":"'(Intermediate Computations)'!AX209","v":"Oct 2013"},{"$f":"'(Intermediate Computations)'!AY209","v":"Nov 2013"},{"$f":"'(Intermediate Computations)'!AZ209","v":"Dec 2013"},{"$f":"'(Intermediate Computations)'!BB209","v":"Jan 2014"},{"$f":"'(Intermediate Computations)'!BC209","v":"Feb 2014"},{"$f":"'(Intermediate Computations)'!BD209","v":"Mar 2014"},{"$f":"'(Intermediate Computations)'!BE209","v":"Apr 2014"},{"$f":"'(Intermediate Computations)'!BF209","v":"May 2014"},{"$f":"'(Intermediate Computations)'!BG209","v":"Jun 2014"},{"$f":"'(Intermediate Computations)'!BH209","v":"Jul 2014"},{"$f":"'(Intermediate Computations)'!BI209","v":"Aug 2014"},{"$f":"'(Intermediate Computations)'!BJ209","v":"Sep 2014"},{"$f":"'(Intermediate Computations)'!BK209","v":"Oct 2014"},{"$f":"'(Intermediate Computations)'!BL209","v":"Nov 2014"},{"$f":"'(Intermediate Computations)'!BM209","v":"Dec 2014"},{"$f":"'(Intermediate Computations)'!BO209","v":"Jan 2015"},{"$f":"'(Intermediate Computations)'!BP209","v":"Feb 2015"},{"$f":"'(Intermediate Computations)'!BQ209","v":"Mar 2015"},{"$f":"'(Intermediate Computations)'!BR209","v":"Apr 2015"},{"$f":"'(Intermediate Computations)'!BS209","v":"May 2015"},{"$f":"'(Intermediate Computations)'!BT209","v":"Jun 2015"},{"$f":"'(Intermediate Computations)'!BU209","v":"Jul 2015"},{"$f":"'(Intermediate Computations)'!BV209","v":"Aug 2015"},{"$f":"'(Intermediate Computations)'!BW209","v":"Sep 2015"},{"$f":"'(Intermediate Computations)'!BX209","v":"Oct 2015"},{"$f":"'(Intermediate Computations)'!BY209","v":"Nov 2015"},{"$f":"'(Intermediate Computations)'!BZ209","v":"Dec 2015"},{"$f":"'(Intermediate Computations)'!CB209","v":"Jan 2016"},{"$f":"'(Intermediate Computations)'!CC209","v":"Feb 2016"},{"$f":"'(Intermediate Computations)'!CD209","v":"Mar 2016"},{"$f":"'(Intermediate Computations)'!CE209","v":"Apr 2016"},{"$f":"'(Intermediate Computations)'!CF209","v":"May 2016"},{"$f":"'(Intermediate Computations)'!CG209","v":"Jun 2016"},{"$f":"'(Intermediate Computations)'!CH209","v":"Jul 2016"},{"$f":"'(Intermediate Computations)'!CI209","v":"Aug 2016"},{"$f":"'(Intermediate Computations)'!CJ209","v":"Sep 2016"},{"$f":"'(Intermediate Computations)'!CK209","v":"Oct 2016"},{"$f":"'(Intermediate Computations)'!CL209","v":"Nov 2016"},{"$f":"'(Intermediate Computations)'!CM209","v":"Dec 2016"},{"$f":"'(Intermediate Computations)'!CO209","v":"Jan 2017"},{"$f":"'(Intermediate Computations)'!CP209","v":"Feb 2017"},{"$f":"'(Intermediate Computations)'!CQ209","v":"Mar 2017"},{"$f":"'(Intermediate Computations)'!CR209","v":"Apr 2017"},{"$f":"'(Intermediate Computations)'!CS209","v":"May 2017"},{"$f":"'(Intermediate Computations)'!CT209","v":"Jun 2017"},{"$f":"'(Intermediate Computations)'!CU209","v":"Jul 2017"},{"$f":"'(Intermediate Computations)'!CV209","v":"Aug 2017"},{"$f":"'(Intermediate Computations)'!CW209","v":"Sep 2017"},{"$f":"'(Intermediate Computations)'!CX209","v":"Oct 2017"},{"$f":"'(Intermediate Computations)'!CY209","v":"Nov 2017"},{"$f":"'(Intermediate Computations)'!CZ209","v":"Dec 2017"},{"$f":"'(Intermediate Computations)'!DB209","v":"Jan 2018"},{"$f":"'(Intermediate Computations)'!DC209","v":"Feb 2018"},{"$f":"'(Intermediate Computations)'!DD209","v":"Mar 2018"},{"$f":"'(Intermediate Computations)'!DE209","v":"Apr 2018"},{"$f":"'(Intermediate Computations)'!DF209","v":"May 2018"},{"$f":"'(Intermediate Computations)'!DG209","v":"Jun 2018"},{"$f":"'(Intermediate Computations)'!DH209","v":"Jul 2018"},{"$f":"'(Intermediate Computations)'!DI209","v":"Aug 2018"},{"$f":"'(Intermediate Computations)'!DJ209","v":"Sep 2018"},{"$f":"'(Intermediate Computations)'!DK209","v":"Oct 2018"},{"$f":"'(Intermediate Computations)'!DL209","v":"Nov 2018"},{"$f":"'(Intermediate Computations)'!DM209","v":"Dec 2018"},{"$f":"'(Intermediate Computations)'!DO209","v":"Jan 2019"},{"$f":"'(Intermediate Computations)'!DP209","v":"Feb 2019"},{"$f":"'(Intermediate Computations)'!DQ209","v":"Mar 2019"},{"$f":"'(Intermediate Computations)'!DR209","v":"Apr 2019"},{"$f":"'(Intermediate Computations)'!DS209","v":"May 2019"},{"$f":"'(Intermediate Computations)'!DT209","v":"Jun 2019"},{"$f":"'(Intermediate Computations)'!DU209","v":"Jul 2019"},{"$f":"'(Intermediate Computations)'!DV209","v":"Aug 2019"},{"$f":"'(Intermediate Computations)'!DW209","v":"Sep 2019"},{"$f":"'(Intermediate Computations)'!DX209","v":"Oct 2019"},{"$f":"'(Intermediate Computations)'!DY209","v":"Nov 2019"},{"$f":"'(Intermediate Computations)'!DZ209","v":"Dec 2019"},{"$f":"'(Intermediate Computations)'!EB209","v":"Jan 2020"},{"$f":"'(Intermediate Computations)'!EC209","v":"Feb 2020"},{"$f":"'(Intermediate Computations)'!ED209","v":"Mar 2020"},{"$f":"'(Intermediate Computations)'!EE209","v":"Apr 2020"},{"$f":"'(Intermediate Computations)'!EF209","v":"May 2020"},{"$f":"'(Intermediate Computations)'!EG209","v":"Jun 2020"},{"$f":"'(Intermediate Computations)'!EH209","v":"Jul 2020"},{"$f":"'(Intermediate Computations)'!EI209","v":"Aug 2020"},{"$f":"'(Intermediate Computations)'!EJ209","v":"Sep 2020"},{"$f":"'(Intermediate Computations)'!EK209","v":"Oct 2020"},{"$f":"'(Intermediate Computations)'!EL209","v":"Nov 2020"},{"$f":"'(Intermediate Computations)'!EM209","v":"Dec 2020"}]
[{"$f":"'(Intermediate Computations)'!B206","v":"2010-01-01"},{"$f":"'(Intermediate Computations)'!C206","v":"2010-02-01"},{"$f":"'(Intermediate Computations)'!D206","v":"2010-03-01"},{"$f":"'(Intermediate Computations)'!E206","v":"2010-04-01"},{"$f":"'(Intermediate Computations)'!F206","v":"2010-05-01"},{"$f":"'(Intermediate Computations)'!G206","v":"2010-06-01"},{"$f":"'(Intermediate Computations)'!H206","v":"2010-07-01"},{"$f":"'(Intermediate Computations)'!I206","v":"2010-08-01"},{"$f":"'(Intermediate Computations)'!J206","v":"2010-09-01"},{"$f":"'(Intermediate Computations)'!K206","v":"2010-10-01"},{"$f":"'(Intermediate Computations)'!L206","v":"2010-11-01"},{"$f":"'(Intermediate Computations)'!M206","v":"2010-12-01"},{"$f":"'(Intermediate Computations)'!O206","v":"2011-01-01"},{"$f":"'(Intermediate Computations)'!P206","v":"2011-02-01"},{"$f":"'(Intermediate Computations)'!Q206","v":"2011-03-01"},{"$f":"'(Intermediate Computations)'!R206","v":"2011-04-01"},{"$f":"'(Intermediate Computations)'!S206","v":"2011-05-01"},{"$f":"'(Intermediate Computations)'!T206","v":"2011-06-01"},{"$f":"'(Intermediate Computations)'!U206","v":"2011-07-01"},{"$f":"'(Intermediate Computations)'!V206","v":"2011-08-01"},{"$f":"'(Intermediate Computations)'!W206","v":"2011-09-01"},{"$f":"'(Intermediate Computations)'!X206","v":"2011-10-01"},{"$f":"'(Intermediate Computations)'!Y206","v":"2011-11-01"},{"$f":"'(Intermediate Computations)'!Z206","v":"2011-12-01"},{"$f":"'(Intermediate Computations)'!AB206","v":"2012-01-01"},{"$f":"'(Intermediate Computations)'!AC206","v":"2012-02-01"},{"$f":"'(Intermediate Computations)'!AD206","v":"2012-03-01"},{"$f":"'(Intermediate Computations)'!AE206","v":"2012-04-01"},{"$f":"'(Intermediate Computations)'!AF206","v":"2012-05-01"},{"$f":"'(Intermediate Computations)'!AG206","v":"2012-06-01"},{"$f":"'(Intermediate Computations)'!AH206","v":"2012-07-01"},{"$f":"'(Intermediate Computations)'!AI206","v":"2012-08-01"},{"$f":"'(Intermediate Computations)'!AJ206","v":"2012-09-01"},{"$f":"'(Intermediate Computations)'!AK206","v":"2012-10-01"},{"$f":"'(Intermediate Computations)'!AL206","v":"2012-11-01"},{"$f":"'(Intermediate Computations)'!AM206","v":"2012-12-01"},{"$f":"'(Intermediate Computations)'!AO206","v":"2013-01-01"},{"$f":"'(Intermediate Computations)'!AP206","v":"2013-02-01"},{"$f":"'(Intermediate Computations)'!AQ206","v":"2013-03-01"},{"$f":"'(Intermediate Computations)'!AR206","v":"2013-04-01"},{"$f":"'(Intermediate Computations)'!AS206","v":"2013-05-01"},{"$f":"'(Intermediate Computations)'!AT206","v":"2013-06-01"},{"$f":"'(Intermediate Computations)'!AU206","v":"2013-07-01"},{"$f":"'(Intermediate Computations)'!AV206","v":"2013-08-01"},{"$f":"'(Intermediate Computations)'!AW206","v":"2013-09-01"},{"$f":"'(Intermediate Computations)'!AX206","v":"2013-10-01"},{"$f":"'(Intermediate Computations)'!AY206","v":"2013-11-01"},{"$f":"'(Intermediate Computations)'!AZ206","v":"2013-12-01"},{"$f":"'(Intermediate Computations)'!BB206","v":"2014-01-01"},{"$f":"'(Intermediate Computations)'!BC206","v":"2014-02-01"},{"$f":"'(Intermediate Computations)'!BD206","v":"2014-03-01"},{"$f":"'(Intermediate Computations)'!BE206","v":"2014-04-01"},{"$f":"'(Intermediate Computations)'!BF206","v":"2014-05-01"},{"$f":"'(Intermediate Computations)'!BG206","v":"2014-06-01"},{"$f":"'(Intermediate Computations)'!BH206","v":"2014-07-01"},{"$f":"'(Intermediate Computations)'!BI206","v":"2014-08-01"},{"$f":"'(Intermediate Computations)'!BJ206","v":"2014-09-01"},{"$f":"'(Intermediate Computations)'!BK206","v":"2014-10-01"},{"$f":"'(Intermediate Computations)'!BL206","v":"2014-11-01"},{"$f":"'(Intermediate Computations)'!BM206","v":"2014-12-01"},{"$f":"'(Intermediate Computations)'!BO206","v":"2015-01-01"},{"$f":"'(Intermediate Computations)'!BP206","v":"2015-02-01"},{"$f":"'(Intermediate Computations)'!BQ206","v":"2015-03-01"},{"$f":"'(Intermediate Computations)'!BR206","v":"2015-04-01"},{"$f":"'(Intermediate Computations)'!BS206","v":"2015-05-01"},{"$f":"'(Intermediate Computations)'!BT206","v":"2015-06-01"},{"$f":"'(Intermediate Computations)'!BU206","v":"2015-07-01"},{"$f":"'(Intermediate Computations)'!BV206","v":"2015-08-01"},{"$f":"'(Intermediate Computations)'!BW206","v":"2015-09-01"},{"$f":"'(Intermediate Computations)'!BX206","v":"2015-10-01"},{"$f":"'(Intermediate Computations)'!BY206","v":"2015-11-01"},{"$f":"'(Intermediate Computations)'!BZ206","v":"2015-12-01"},{"$f":"'(Intermediate Computations)'!CB206","v":"2016-01-01"},{"$f":"'(Intermediate Computations)'!CC206","v":"2016-02-01"},{"$f":"'(Intermediate Computations)'!CD206","v":"2016-03-01"},{"$f":"'(Intermediate Computations)'!CE206","v":"2016-04-01"},{"$f":"'(Intermediate Computations)'!CF206","v":"2016-05-01"},{"$f":"'(Intermediate Computations)'!CG206","v":"2016-06-01"},{"$f":"'(Intermediate Computations)'!CH206","v":"2016-07-01"},{"$f":"'(Intermediate Computations)'!CI206","v":"2016-08-01"},{"$f":"'(Intermediate Computations)'!CJ206","v":"2016-09-01"},{"$f":"'(Intermediate Computations)'!CK206","v":"2016-10-01"},{"$f":"'(Intermediate Computations)'!CL206","v":"2016-11-01"},{"$f":"'(Intermediate Computations)'!CM206","v":"2016-12-01"},{"$f":"'(Intermediate Computations)'!CO206","v":"2017-01-01"},{"$f":"'(Intermediate Computations)'!CP206","v":"2017-02-01"},{"$f":"'(Intermediate Computations)'!CQ206","v":"2017-03-01"},{"$f":"'(Intermediate Computations)'!CR206","v":"2017-04-01"},{"$f":"'(Intermediate Computations)'!CS206","v":"2017-05-01"},{"$f":"'(Intermediate Computations)'!CT206","v":"2017-06-01"},{"$f":"'(Intermediate Computations)'!CU206","v":"2017-07-01"},{"$f":"'(Intermediate Computations)'!CV206","v":"2017-08-01"},{"$f":"'(Intermediate Computations)'!CW206","v":"2017-09-01"},{"$f":"'(Intermediate Computations)'!CX206","v":"2017-10-01"},{"$f":"'(Intermediate Computations)'!CY206","v":"2017-11-01"},{"$f":"'(Intermediate Computations)'!CZ206","v":"2017-12-01"},{"$f":"'(Intermediate Computations)'!DB206","v":"2018-01-01"},{"$f":"'(Intermediate Computations)'!DC206","v":"2018-02-01"},{"$f":"'(Intermediate Computations)'!DD206","v":"2018-03-01"},{"$f":"'(Intermediate Computations)'!DE206","v":"2018-04-01"},{"$f":"'(Intermediate Computations)'!DF206","v":"2018-05-01"},{"$f":"'(Intermediate Computations)'!DG206","v":"2018-06-01"},{"$f":"'(Intermediate Computations)'!DH206","v":"2018-07-01"},{"$f":"'(Intermediate Computations)'!DI206","v":"2018-08-01"},{"$f":"'(Intermediate Computations)'!DJ206","v":"2018-09-01"},{"$f":"'(Intermediate Computations)'!DK206","v":"2018-10-01"},{"$f":"'(Intermediate Computations)'!DL206","v":"2018-11-01"},{"$f":"'(Intermediate Computations)'!DM206","v":"2018-12-01"},{"$f":"'(Intermediate Computations)'!DO206","v":"2019-01-01"},{"$f":"'(Intermediate Computations)'!DP206","v":"2019-02-01"},{"$f":"'(Intermediate Computations)'!DQ206","v":"2019-03-01"},{"$f":"'(Intermediate Computations)'!DR206","v":"2019-04-01"},{"$f":"'(Intermediate Computations)'!DS206","v":"2019-05-01"},{"$f":"'(Intermediate Computations)'!DT206","v":"2019-06-01"},{"$f":"'(Intermediate Computations)'!DU206","v":"2019-07-01"},{"$f":"'(Intermediate Computations)'!DV206","v":"2019-08-01"},{"$f":"'(Intermediate Computations)'!DW206","v":"2019-09-01"},{"$f":"'(Intermediate Computations)'!DX206","v":"2019-10-01"},{"$f":"'(Intermediate Computations)'!DY206","v":"2019-11-01"},{"$f":"'(Intermediate Computations)'!DZ206","v":"2019-12-01"},{"$f":"'(Intermediate Computations)'!EB206","v":"2020-01-01"},{"$f":"'(Intermediate Computations)'!EC206","v":"2020-02-01"},{"$f":"'(Intermediate Computations)'!ED206","v":"2020-03-01"},{"$f":"'(Intermediate Computations)'!EE206","v":"2020-04-01"},{"$f":"'(Intermediate Computations)'!EF206","v":"2020-05-01"},{"$f":"'(Intermediate Computations)'!EG206","v":"2020-06-01"},{"$f":"'(Intermediate Computations)'!EH206","v":"2020-07-01"},{"$f":"'(Intermediate Computations)'!EI206","v":"2020-08-01"},{"$f":"'(Intermediate Computations)'!EJ206","v":"2020-09-01"},{"$f":"'(Intermediate Computations)'!EK206","v":"2020-10-01"},{"$f":"'(Intermediate Computations)'!EL206","v":"2020-11-01"},{"$f":"'(Intermediate Computations)'!EM206","v":"2020-12-01"}]
[{"$f":"'Statistical Moments'!B55","v":{"v":1.2445321395640466E-10,"d":"$0"}},{"$f":"'Statistical Moments'!C55","v":{"v":41.45550777033323,"d":"$41"}},{"$f":"'Statistical Moments'!D55","v":{"v":114.41756610997014,"d":"$114"}},{"$f":"'Statistical Moments'!E55","v":{"v":111.0394183464082,"d":"$111"}},{"$f":"'Statistical Moments'!F55","v":{"v":104.17965446440736,"d":"$104"}},{"$f":"'Statistical Moments'!G55","v":{"v":118.99397227047909,"d":"$119"}},{"$f":"'Statistical Moments'!H55","v":{"v":156.85969022598834,"d":"$157"}},{"$f":"'Statistical Moments'!I55","v":{"v":163.5331556950461,"d":"$164"}},{"$f":"'Statistical Moments'!J55","v":{"v":162.55952511100665,"d":"$163"}},{"$f":"'Statistical Moments'!K55","v":{"v":181.3753914356374,"d":"$181"}},{"$f":"'Statistical Moments'!L55","v":{"v":163.87651427474478,"d":"$164"}},{"$f":"'Statistical Moments'!M55","v":{"v":156.1710530377386,"d":"$156"}},{"$f":"'Statistical Moments'!O55","v":{"v":189.08382302536586,"d":"$189"}},{"$f":"'Statistical Moments'!P55","v":{"v":198.62804031349629,"d":"$199"}},{"$f":"'Statistical Moments'!Q55","v":{"v":173.2459630941377,"d":"$173"}},{"$f":"'Statistical Moments'!R55","v":{"v":185.19135191667368,"d":"$185"}},{"$f":"'Statistical Moments'!S55","v":{"v":217.40898167361132,"d":"$217"}},{"$f":"'Statistical Moments'!T55","v":{"v":246.67800775028897,"d":"$247"}},{"$f":"'Statistical Moments'!U55","v":{"v":179.65436886003172,"d":"$180"}},{"$f":"'Statistical Moments'!V55","v":{"v":170.1219307612429,"d":"$170"}},{"$f":"'Statistical Moments'!W55","v":{"v":171.83649488299545,"d":"$172"}},{"$f":"'Statistical Moments'!X55","v":{"v":171.57778919162158,"d":"$172"}},{"$f":"'Statistical Moments'!Y55","v":{"v":190.90612947574135,"d":"$191"}},{"$f":"'Statistical Moments'!Z55","v":{"v":190.83983894929995,"d":"$191"}},{"$f":"'Statistical Moments'!AB55","v":{"v":182.84499305018764,"d":"$183"}},{"$f":"'Statistical Moments'!AC55","v":{"v":210.46138282777056,"d":"$210"}},{"$f":"'Statistical Moments'!AD55","v":{"v":209.8197580934473,"d":"$210"}},{"$f":"'Statistical Moments'!AE55","v":{"v":187.80674081079178,"d":"$188"}},{"$f":"'Statistical Moments'!AF55","v":{"v":189.90208774288988,"d":"$190"}},{"$f":"'Statistical Moments'!AG55","v":{"v":234.68342368142322,"d":"$235"}},{"$f":"'Statistical Moments'!AH55","v":{"v":233.75608189669737,"d":"$234"}},{"$f":"'Statistical Moments'!AI55","v":{"v":233.80311795779957,"d":"$234"}},{"$f":"'Statistical Moments'!AJ55","v":{"v":224.99519929210757,"d":"$225"}},{"$f":"'Statistical Moments'!AK55","v":{"v":180.64587519686862,"d":"$181"}},{"$f":"'Statistical Moments'!AL55","v":{"v":158.54748458684955,"d":"$159"}},{"$f":"'Statistical Moments'!AM55","v":{"v":151.40821506125704,"d":"$151"}},{"$f":"'Statistical Moments'!AO55","v":{"v":163.88598347767626,"d":"$164"}},{"$f":"'Statistical Moments'!AP55","v":{"v":137.767036048757,"d":"$138"}},{"$f":"'Statistical Moments'!AQ55","v":{"v":143.88522944063317,"d":"$144"}},{"$f":"'Statistical Moments'!AR55","v":{"v":170.1848051793232,"d":"$170"}},{"$f":"'Statistical Moments'!AS55","v":{"v":143.3548218677737,"d":"$143"}},{"$f":"'Statistical Moments'!AT55","v":{"v":162.91342352390615,"d":"$163"}},{"$f":"'Statistical Moments'!AU55","v":{"v":174.67037357527877,"d":"$175"}},{"$f":"'Statistical Moments'!AV55","v":{"v":180.32034472601418,"d":"$180"}},{"$f":"'Statistical Moments'!AW55","v":{"v":188.52994447745692,"d":"$189"}},{"$f":"'Statistical Moments'!AX55","v":{"v":179.09615970873529,"d":"$179"}},{"$f":"'Statistical Moments'!AY55","v":{"v":227.8245269581217,"d":"$228"}},{"$f":"'Statistical Moments'!AZ55","v":{"v":223.79535839566125,"d":"$224"}},{"$f":"'Statistical Moments'!BB55","v":{"v":206.93159759740658,"d":"$207"}},{"$f":"'Statistical Moments'!BC55","v":{"v":242.0835987576204,"d":"$242"}},{"$f":"'Statistical Moments'!BD55","v":{"v":265.9734511589238,"d":"$266"}},{"$f":"'Statistical Moments'!BE55","v":{"v":258.8656226503505,"d":"$259"}},{"$f":"'Statistical Moments'!BF55","v":{"v":266.03088555500915,"d":"$266"}},{"$f":"'Statistical Moments'!BG55","v":{"v":262.52696162331915,"d":"$263"}},{"$f":"'Statistical Moments'!BH55","v":{"v":276.0844133449012,"d":"$276"}},{"$f":"'Statistical Moments'!BI55","v":{"v":289.15707631021553,"d":"$289"}},{"$f":"'Statistical Moments'!BJ55","v":{"v":309.6010788905379,"d":"$310"}},{"$f":"'Statistical Moments'!BK55","v":{"v":291.5356694258108,"d":"$292"}},{"$f":"'Statistical Moments'!BL55","v":{"v":287.5013656413788,"d":"$288"}},{"$f":"'Statistical Moments'!BM55","v":{"v":330.3608300594905,"d":"$330"}},{"$f":"'Statistical Moments'!BO55","v":{"v":280.5756593482222,"d":"$281"}},{"$f":"'Statistical Moments'!BP55","v":{"v":314.20729665867253,"d":"$314"}},{"$f":"'Statistical Moments'!BQ55","v":{"v":335.2599523857692,"d":"$335"}},{"$f":"'Statistical Moments'!BR55","v":{"v":348.81054462996883,"d":"$349"}},{"$f":"'Statistical Moments'!BS55","v":{"v":351.7195815708881,"d":"$352"}},{"$f":"'Statistical Moments'!BT55","v":{"v":357.690072205812,"d":"$358"}},{"$f":"'Statistical Moments'!BU55","v":{"v":392.6416432506042,"d":"$393"}},{"$f":"'Statistical Moments'!BV55","v":{"v":381.52881130021547,"d":"$382"}},{"$f":"'Statistical Moments'!BW55","v":{"v":377.23628797589333,"d":"$377"}},{"$f":"'Statistical Moments'!BX55","v":{"v":396.8202280736347,"d":"$397"}},{"$f":"'Statistical Moments'!BY55","v":{"v":400.0582292639988,"d":"$400"}},{"$f":"'Statistical Moments'!BZ55","v":{"v":384.3955592456223,"d":"$384"}},{"$f":"'Statistical Moments'!CB55","v":{"v":375.1217671122752,"d":"$375"}},{"$f":"'Statistical Moments'!CC55","v":{"v":334.98444523897285,"d":"$335"}},{"$f":"'Statistical Moments'!CD55","v":{"v":330.0083876073715,"d":"$330"}},{"$f":"'Statistical Moments'!CE55","v":{"v":332.2114017978219,"d":"$332"}},{"$f":"'Statistical Moments'!CF55","v":{"v":345.9988622790392,"d":"$346"}},{"$f":"'Statistical Moments'!CG55","v":{"v":359.06873047550306,"d":"$359"}},{"$f":"'Statistical Moments'!CH55","v":{"v":340.26696522991307,"d":"$340"}},{"$f":"'Statistical Moments'!CI55","v":{"v":321.4551799215566,"d":"$321"}},{"$f":"'Statistical Moments'!CJ55","v":{"v":300.8440901435296,"d":"$301"}},{"$f":"'Statistical Moments'!CK55","v":{"v":285.48614623353063,"d":"$285"}},{"$f":"'Statistical Moments'!CL55","v":{"v":300.8813148280264,"d":"$301"}},{"$f":"'Statistical Moments'!CM55","v":{"v":311.8292738856358,"d":"$312"}},{"$f":"'Statistical Moments'!CO55","v":{"v":295.8553460877437,"d":"$296"}},{"$f":"'Statistical Moments'!CP55","v":{"v":295.04992002990275,"d":"$295"}},{"$f":"'Statistical Moments'!CQ55","v":{"v":292.7042057073333,"d":"$293"}},{"$f":"'Statistical Moments'!CR55","v":{"v":309.09757332979893,"d":"$309"}},{"$f":"'Statistical Moments'!CS55","v":{"v":296.28459290541315,"d":"$296"}},{"$f":"'Statistical Moments'!CT55","v":{"v":291.0794523795495,"d":"$291"}},{"$f":"'Statistical Moments'!CU55","v":{"v":320.3877249719015,"d":"$320"}},{"$f":"'Statistical Moments'!CV55","v":{"v":320.1699095003318,"d":"$320"}},{"$f":"'Statistical Moments'!CW55","v":{"v":338.7489917227194,"d":"$339"}},{"$f":"'Statistical Moments'!CX55","v":{"v":300.76548560730714,"d":"$301"}},{"$f":"'Statistical Moments'!CY55","v":{"v":304.0754730132756,"d":"$304"}},{"$f":"'Statistical Moments'!CZ55","v":{"v":308.91538422258486,"d":"$309"}},{"$f":"'Statistical Moments'!DB55","v":{"v":328.85304410903325,"d":"$329"}},{"$f":"'Statistical Moments'!DC55","v":{"v":334.23154355706214,"d":"$334"}},{"$f":"'Statistical Moments'!DD55","v":{"v":332.1296037428973,"d":"$332"}},{"$f":"'Statistical Moments'!DE55","v":{"v":345.31733644796276,"d":"$345"}},{"$f":"'Statistical Moments'!DF55","v":{"v":373.15037491222785,"d":"$373"}},{"$f":"'Statistical Moments'!DG55","v":{"v":336.95469309105283,"d":"$337"}},{"$f":"'Statistical Moments'!DH55","v":{"v":341.63125182807585,"d":"$342"}},{"$f":"'Statistical Moments'!DI55","v":{"v":371.310012350417,"d":"$371"}},{"$f":"'Statistical Moments'!DJ55","v":{"v":361.2105295163429,"d":"$361"}},{"$f":"'Statistical Moments'!DK55","v":{"v":413.5425661941103,"d":"$414"}},{"$f":"'Statistical Moments'!DL55","v":{"v":432.5067522827243,"d":"$433"}},{"$f":"'Statistical Moments'!DM55","v":{"v":449.0909289440781,"d":"$449"}},{"$f":"'Statistical Moments'!DO55","v":{"v":467.4077465288297,"d":"$467"}},{"$f":"'Statistical Moments'!DP55","v":{"v":460.68527627670096,"d":"$461"}},{"$f":"'Statistical Moments'!DQ55","v":{"v":455.05058031921465,"d":"$455"}},{"$f":"'Statistical Moments'!DR55","v":{"v":484.5048675933888,"d":"$485"}},{"$f":"'Statistical Moments'!DS55","v":{"v":497.22886856026673,"d":"$497"}},{"$f":"'Statistical Moments'!DT55","v":{"v":520.9085437169986,"d":"$521"}},{"$f":"'Statistical Moments'!DU55","v":{"v":537.6684838982393,"d":"$538"}},{"$f":"'Statistical Moments'!DV55","v":{"v":555.7675418624103,"d":"$556"}},{"$f":"'Statistical Moments'!DW55","v":{"v":554.5471511882587,"d":"$555"}},{"$f":"'Statistical Moments'!DX55","v":{"v":542.8973307027841,"d":"$543"}},{"$f":"'Statistical Moments'!DY55","v":{"v":553.6993382187029,"d":"$554"}},{"$f":"'Statistical Moments'!DZ55","v":{"v":603.7564036062329,"d":"$604"}},{"$f":"'Statistical Moments'!EB55","v":{"v":604.3387749212816,"d":"$604"}},{"$f":"'Statistical Moments'!EC55","v":{"v":618.6028978044234,"d":"$619"}},{"$f":"'Statistical Moments'!ED55","v":{"v":586.2626115202524,"d":"$586"}},{"$f":"'Statistical Moments'!EE55","v":{"v":592.2063614809166,"d":"$592"}},{"$f":"'Statistical Moments'!EF55","v":{"v":586.2820016250243,"d":"$586"}},{"$f":"'Statistical Moments'!EG55","v":{"v":600.9428638196083,"d":"$601"}},{"$f":"'Statistical Moments'!EH55","v":{"v":606.6284896362442,"d":"$607"}},{"$f":"'Statistical Moments'!EI55","v":{"v":585.3262438373808,"d":"$585"}},{"$f":"'Statistical Moments'!EJ55","v":{"v":603.3683656313975,"d":"$603"}},{"$f":"'Statistical Moments'!EK55","v":{"v":588.9057751388877,"d":"$589"}},{"$f":"'Statistical Moments'!EL55","v":{"v":608.5298957985901,"d":"$609"}},{"$f":"'Statistical Moments'!EM55","v":{"v":581.7273543742899,"d":"$582"}}]
[{"$f":"'(Intermediate Computations)'!B215","v":"Jan 2010"},{"$f":"'(Intermediate Computations)'!C215","v":"Feb 2010"},{"$f":"'(Intermediate Computations)'!D215","v":"Mar 2010"},{"$f":"'(Intermediate Computations)'!E215","v":"Apr 2010"},{"$f":"'(Intermediate Computations)'!F215","v":"May 2010"},{"$f":"'(Intermediate Computations)'!G215","v":"Jun 2010"},{"$f":"'(Intermediate Computations)'!H215","v":"Jul 2010"},{"$f":"'(Intermediate Computations)'!I215","v":"Aug 2010"},{"$f":"'(Intermediate Computations)'!J215","v":"Sep 2010"},{"$f":"'(Intermediate Computations)'!K215","v":"Oct 2010"},{"$f":"'(Intermediate Computations)'!L215","v":"Nov 2010"},{"$f":"'(Intermediate Computations)'!M215","v":"Dec 2010"},{"$f":"'(Intermediate Computations)'!O215","v":"Jan 2011"},{"$f":"'(Intermediate Computations)'!P215","v":"Feb 2011"},{"$f":"'(Intermediate Computations)'!Q215","v":"Mar 2011"},{"$f":"'(Intermediate Computations)'!R215","v":"Apr 2011"},{"$f":"'(Intermediate Computations)'!S215","v":"May 2011"},{"$f":"'(Intermediate Computations)'!T215","v":"Jun 2011"},{"$f":"'(Intermediate Computations)'!U215","v":"Jul 2011"},{"$f":"'(Intermediate Computations)'!V215","v":"Aug 2011"},{"$f":"'(Intermediate Computations)'!W215","v":"Sep 2011"},{"$f":"'(Intermediate Computations)'!X215","v":"Oct 2011"},{"$f":"'(Intermediate Computations)'!Y215","v":"Nov 2011"},{"$f":"'(Intermediate Computations)'!Z215","v":"Dec 2011"},{"$f":"'(Intermediate Computations)'!AB215","v":"Jan 2012"},{"$f":"'(Intermediate Computations)'!AC215","v":"Feb 2012"},{"$f":"'(Intermediate Computations)'!AD215","v":"Mar 2012"},{"$f":"'(Intermediate Computations)'!AE215","v":"Apr 2012"},{"$f":"'(Intermediate Computations)'!AF215","v":"May 2012"},{"$f":"'(Intermediate Computations)'!AG215","v":"Jun 2012"},{"$f":"'(Intermediate Computations)'!AH215","v":"Jul 2012"},{"$f":"'(Intermediate Computations)'!AI215","v":"Aug 2012"},{"$f":"'(Intermediate Computations)'!AJ215","v":"Sep 2012"},{"$f":"'(Intermediate Computations)'!AK215","v":"Oct 2012"},{"$f":"'(Intermediate Computations)'!AL215","v":"Nov 2012"},{"$f":"'(Intermediate Computations)'!AM215","v":"Dec 2012"},{"$f":"'(Intermediate Computations)'!AO215","v":"Jan 2013"},{"$f":"'(Intermediate Computations)'!AP215","v":"Feb 2013"},{"$f":"'(Intermediate Computations)'!AQ215","v":"Mar 2013"},{"$f":"'(Intermediate Computations)'!AR215","v":"Apr 2013"},{"$f":"'(Intermediate Computations)'!AS215","v":"May 2013"},{"$f":"'(Intermediate Computations)'!AT215","v":"Jun 2013"},{"$f":"'(Intermediate Computations)'!AU215","v":"Jul 2013"},{"$f":"'(Intermediate Computations)'!AV215","v":"Aug 2013"},{"$f":"'(Intermediate Computations)'!AW215","v":"Sep 2013"},{"$f":"'(Intermediate Computations)'!AX215","v":"Oct 2013"},{"$f":"'(Intermediate Computations)'!AY215","v":"Nov 2013"},{"$f":"'(Intermediate Computations)'!AZ215","v":"Dec 2013"},{"$f":"'(Intermediate Computations)'!BB215","v":"Jan 2014"},{"$f":"'(Intermediate Computations)'!BC215","v":"Feb 2014"},{"$f":"'(Intermediate Computations)'!BD215","v":"Mar 2014"},{"$f":"'(Intermediate Computations)'!BE215","v":"Apr 2014"},{"$f":"'(Intermediate Computations)'!BF215","v":"May 2014"},{"$f":"'(Intermediate Computations)'!BG215","v":"Jun 2014"},{"$f":"'(Intermediate Computations)'!BH215","v":"Jul 2014"},{"$f":"'(Intermediate Computations)'!BI215","v":"Aug 2014"},{"$f":"'(Intermediate Computations)'!BJ215","v":"Sep 2014"},{"$f":"'(Intermediate Computations)'!BK215","v":"Oct 2014"},{"$f":"'(Intermediate Computations)'!BL215","v":"Nov 2014"},{"$f":"'(Intermediate Computations)'!BM215","v":"Dec 2014"},{"$f":"'(Intermediate Computations)'!BO215","v":"Jan 2015"},{"$f":"'(Intermediate Computations)'!BP215","v":"Feb 2015"},{"$f":"'(Intermediate Computations)'!BQ215","v":"Mar 2015"},{"$f":"'(Intermediate Computations)'!BR215","v":"Apr 2015"},{"$f":"'(Intermediate Computations)'!BS215","v":"May 2015"},{"$f":"'(Intermediate Computations)'!BT215","v":"Jun 2015"},{"$f":"'(Intermediate Computations)'!BU215","v":"Jul 2015"},{"$f":"'(Intermediate Computations)'!BV215","v":"Aug 2015"},{"$f":"'(Intermediate Computations)'!BW215","v":"Sep 2015"},{"$f":"'(Intermediate Computations)'!BX215","v":"Oct 2015"},{"$f":"'(Intermediate Computations)'!BY215","v":"Nov 2015"},{"$f":"'(Intermediate Computations)'!BZ215","v":"Dec 2015"},{"$f":"'(Intermediate Computations)'!CB215","v":"Jan 2016"},{"$f":"'(Intermediate Computations)'!CC215","v":"Feb 2016"},{"$f":"'(Intermediate Computations)'!CD215","v":"Mar 2016"},{"$f":"'(Intermediate Computations)'!CE215","v":"Apr 2016"},{"$f":"'(Intermediate Computations)'!CF215","v":"May 2016"},{"$f":"'(Intermediate Computations)'!CG215","v":"Jun 2016"},{"$f":"'(Intermediate Computations)'!CH215","v":"Jul 2016"},{"$f":"'(Intermediate Computations)'!CI215","v":"Aug 2016"},{"$f":"'(Intermediate Computations)'!CJ215","v":"Sep 2016"},{"$f":"'(Intermediate Computations)'!CK215","v":"Oct 2016"},{"$f":"'(Intermediate Computations)'!CL215","v":"Nov 2016"},{"$f":"'(Intermediate Computations)'!CM215","v":"Dec 2016"},{"$f":"'(Intermediate Computations)'!CO215","v":"Jan 2017"},{"$f":"'(Intermediate Computations)'!CP215","v":"Feb 2017"},{"$f":"'(Intermediate Computations)'!CQ215","v":"Mar 2017"},{"$f":"'(Intermediate Computations)'!CR215","v":"Apr 2017"},{"$f":"'(Intermediate Computations)'!CS215","v":"May 2017"},{"$f":"'(Intermediate Computations)'!CT215","v":"Jun 2017"},{"$f":"'(Intermediate Computations)'!CU215","v":"Jul 2017"},{"$f":"'(Intermediate Computations)'!CV215","v":"Aug 2017"},{"$f":"'(Intermediate Computations)'!CW215","v":"Sep 2017"},{"$f":"'(Intermediate Computations)'!CX215","v":"Oct 2017"},{"$f":"'(Intermediate Computations)'!CY215","v":"Nov 2017"},{"$f":"'(Intermediate Computations)'!CZ215","v":"Dec 2017"},{"$f":"'(Intermediate Computations)'!DB215","v":"Jan 2018"},{"$f":"'(Intermediate Computations)'!DC215","v":"Feb 2018"},{"$f":"'(Intermediate Computations)'!DD215","v":"Mar 2018"},{"$f":"'(Intermediate Computations)'!DE215","v":"Apr 2018"},{"$f":"'(Intermediate Computations)'!DF215","v":"May 2018"},{"$f":"'(Intermediate Computations)'!DG215","v":"Jun 2018"},{"$f":"'(Intermediate Computations)'!DH215","v":"Jul 2018"},{"$f":"'(Intermediate Computations)'!DI215","v":"Aug 2018"},{"$f":"'(Intermediate Computations)'!DJ215","v":"Sep 2018"},{"$f":"'(Intermediate Computations)'!DK215","v":"Oct 2018"},{"$f":"'(Intermediate Computations)'!DL215","v":"Nov 2018"},{"$f":"'(Intermediate Computations)'!DM215","v":"Dec 2018"},{"$f":"'(Intermediate Computations)'!DO215","v":"Jan 2019"},{"$f":"'(Intermediate Computations)'!DP215","v":"Feb 2019"},{"$f":"'(Intermediate Computations)'!DQ215","v":"Mar 2019"},{"$f":"'(Intermediate Computations)'!DR215","v":"Apr 2019"},{"$f":"'(Intermediate Computations)'!DS215","v":"May 2019"},{"$f":"'(Intermediate Computations)'!DT215","v":"Jun 2019"},{"$f":"'(Intermediate Computations)'!DU215","v":"Jul 2019"},{"$f":"'(Intermediate Computations)'!DV215","v":"Aug 2019"},{"$f":"'(Intermediate Computations)'!DW215","v":"Sep 2019"},{"$f":"'(Intermediate Computations)'!DX215","v":"Oct 2019"},{"$f":"'(Intermediate Computations)'!DY215","v":"Nov 2019"},{"$f":"'(Intermediate Computations)'!DZ215","v":"Dec 2019"},{"$f":"'(Intermediate Computations)'!EB215","v":"Jan 2020"},{"$f":"'(Intermediate Computations)'!EC215","v":"Feb 2020"},{"$f":"'(Intermediate Computations)'!ED215","v":"Mar 2020"},{"$f":"'(Intermediate Computations)'!EE215","v":"Apr 2020"},{"$f":"'(Intermediate Computations)'!EF215","v":"May 2020"},{"$f":"'(Intermediate Computations)'!EG215","v":"Jun 2020"},{"$f":"'(Intermediate Computations)'!EH215","v":"Jul 2020"},{"$f":"'(Intermediate Computations)'!EI215","v":"Aug 2020"},{"$f":"'(Intermediate Computations)'!EJ215","v":"Sep 2020"},{"$f":"'(Intermediate Computations)'!EK215","v":"Oct 2020"},{"$f":"'(Intermediate Computations)'!EL215","v":"Nov 2020"},{"$f":"'(Intermediate Computations)'!EM215","v":"Dec 2020"}]
[{"$f":"'(Intermediate Computations)'!B212","v":"2010-01-01"},{"$f":"'(Intermediate Computations)'!C212","v":"2010-02-01"},{"$f":"'(Intermediate Computations)'!D212","v":"2010-03-01"},{"$f":"'(Intermediate Computations)'!E212","v":"2010-04-01"},{"$f":"'(Intermediate Computations)'!F212","v":"2010-05-01"},{"$f":"'(Intermediate Computations)'!G212","v":"2010-06-01"},{"$f":"'(Intermediate Computations)'!H212","v":"2010-07-01"},{"$f":"'(Intermediate Computations)'!I212","v":"2010-08-01"},{"$f":"'(Intermediate Computations)'!J212","v":"2010-09-01"},{"$f":"'(Intermediate Computations)'!K212","v":"2010-10-01"},{"$f":"'(Intermediate Computations)'!L212","v":"2010-11-01"},{"$f":"'(Intermediate Computations)'!M212","v":"2010-12-01"},{"$f":"'(Intermediate Computations)'!O212","v":"2011-01-01"},{"$f":"'(Intermediate Computations)'!P212","v":"2011-02-01"},{"$f":"'(Intermediate Computations)'!Q212","v":"2011-03-01"},{"$f":"'(Intermediate Computations)'!R212","v":"2011-04-01"},{"$f":"'(Intermediate Computations)'!S212","v":"2011-05-01"},{"$f":"'(Intermediate Computations)'!T212","v":"2011-06-01"},{"$f":"'(Intermediate Computations)'!U212","v":"2011-07-01"},{"$f":"'(Intermediate Computations)'!V212","v":"2011-08-01"},{"$f":"'(Intermediate Computations)'!W212","v":"2011-09-01"},{"$f":"'(Intermediate Computations)'!X212","v":"2011-10-01"},{"$f":"'(Intermediate Computations)'!Y212","v":"2011-11-01"},{"$f":"'(Intermediate Computations)'!Z212","v":"2011-12-01"},{"$f":"'(Intermediate Computations)'!AB212","v":"2012-01-01"},{"$f":"'(Intermediate Computations)'!AC212","v":"2012-02-01"},{"$f":"'(Intermediate Computations)'!AD212","v":"2012-03-01"},{"$f":"'(Intermediate Computations)'!AE212","v":"2012-04-01"},{"$f":"'(Intermediate Computations)'!AF212","v":"2012-05-01"},{"$f":"'(Intermediate Computations)'!AG212","v":"2012-06-01"},{"$f":"'(Intermediate Computations)'!AH212","v":"2012-07-01"},{"$f":"'(Intermediate Computations)'!AI212","v":"2012-08-01"},{"$f":"'(Intermediate Computations)'!AJ212","v":"2012-09-01"},{"$f":"'(Intermediate Computations)'!AK212","v":"2012-10-01"},{"$f":"'(Intermediate Computations)'!AL212","v":"2012-11-01"},{"$f":"'(Intermediate Computations)'!AM212","v":"2012-12-01"},{"$f":"'(Intermediate Computations)'!AO212","v":"2013-01-01"},{"$f":"'(Intermediate Computations)'!AP212","v":"2013-02-01"},{"$f":"'(Intermediate Computations)'!AQ212","v":"2013-03-01"},{"$f":"'(Intermediate Computations)'!AR212","v":"2013-04-01"},{"$f":"'(Intermediate Computations)'!AS212","v":"2013-05-01"},{"$f":"'(Intermediate Computations)'!AT212","v":"2013-06-01"},{"$f":"'(Intermediate Computations)'!AU212","v":"2013-07-01"},{"$f":"'(Intermediate Computations)'!AV212","v":"2013-08-01"},{"$f":"'(Intermediate Computations)'!AW212","v":"2013-09-01"},{"$f":"'(Intermediate Computations)'!AX212","v":"2013-10-01"},{"$f":"'(Intermediate Computations)'!AY212","v":"2013-11-01"},{"$f":"'(Intermediate Computations)'!AZ212","v":"2013-12-01"},{"$f":"'(Intermediate Computations)'!BB212","v":"2014-01-01"},{"$f":"'(Intermediate Computations)'!BC212","v":"2014-02-01"},{"$f":"'(Intermediate Computations)'!BD212","v":"2014-03-01"},{"$f":"'(Intermediate Computations)'!BE212","v":"2014-04-01"},{"$f":"'(Intermediate Computations)'!BF212","v":"2014-05-01"},{"$f":"'(Intermediate Computations)'!BG212","v":"2014-06-01"},{"$f":"'(Intermediate Computations)'!BH212","v":"2014-07-01"},{"$f":"'(Intermediate Computations)'!BI212","v":"2014-08-01"},{"$f":"'(Intermediate Computations)'!BJ212","v":"2014-09-01"},{"$f":"'(Intermediate Computations)'!BK212","v":"2014-10-01"},{"$f":"'(Intermediate Computations)'!BL212","v":"2014-11-01"},{"$f":"'(Intermediate Computations)'!BM212","v":"2014-12-01"},{"$f":"'(Intermediate Computations)'!BO212","v":"2015-01-01"},{"$f":"'(Intermediate Computations)'!BP212","v":"2015-02-01"},{"$f":"'(Intermediate Computations)'!BQ212","v":"2015-03-01"},{"$f":"'(Intermediate Computations)'!BR212","v":"2015-04-01"},{"$f":"'(Intermediate Computations)'!BS212","v":"2015-05-01"},{"$f":"'(Intermediate Computations)'!BT212","v":"2015-06-01"},{"$f":"'(Intermediate Computations)'!BU212","v":"2015-07-01"},{"$f":"'(Intermediate Computations)'!BV212","v":"2015-08-01"},{"$f":"'(Intermediate Computations)'!BW212","v":"2015-09-01"},{"$f":"'(Intermediate Computations)'!BX212","v":"2015-10-01"},{"$f":"'(Intermediate Computations)'!BY212","v":"2015-11-01"},{"$f":"'(Intermediate Computations)'!BZ212","v":"2015-12-01"},{"$f":"'(Intermediate Computations)'!CB212","v":"2016-01-01"},{"$f":"'(Intermediate Computations)'!CC212","v":"2016-02-01"},{"$f":"'(Intermediate Computations)'!CD212","v":"2016-03-01"},{"$f":"'(Intermediate Computations)'!CE212","v":"2016-04-01"},{"$f":"'(Intermediate Computations)'!CF212","v":"2016-05-01"},{"$f":"'(Intermediate Computations)'!CG212","v":"2016-06-01"},{"$f":"'(Intermediate Computations)'!CH212","v":"2016-07-01"},{"$f":"'(Intermediate Computations)'!CI212","v":"2016-08-01"},{"$f":"'(Intermediate Computations)'!CJ212","v":"2016-09-01"},{"$f":"'(Intermediate Computations)'!CK212","v":"2016-10-01"},{"$f":"'(Intermediate Computations)'!CL212","v":"2016-11-01"},{"$f":"'(Intermediate Computations)'!CM212","v":"2016-12-01"},{"$f":"'(Intermediate Computations)'!CO212","v":"2017-01-01"},{"$f":"'(Intermediate Computations)'!CP212","v":"2017-02-01"},{"$f":"'(Intermediate Computations)'!CQ212","v":"2017-03-01"},{"$f":"'(Intermediate Computations)'!CR212","v":"2017-04-01"},{"$f":"'(Intermediate Computations)'!CS212","v":"2017-05-01"},{"$f":"'(Intermediate Computations)'!CT212","v":"2017-06-01"},{"$f":"'(Intermediate Computations)'!CU212","v":"2017-07-01"},{"$f":"'(Intermediate Computations)'!CV212","v":"2017-08-01"},{"$f":"'(Intermediate Computations)'!CW212","v":"2017-09-01"},{"$f":"'(Intermediate Computations)'!CX212","v":"2017-10-01"},{"$f":"'(Intermediate Computations)'!CY212","v":"2017-11-01"},{"$f":"'(Intermediate Computations)'!CZ212","v":"2017-12-01"},{"$f":"'(Intermediate Computations)'!DB212","v":"2018-01-01"},{"$f":"'(Intermediate Computations)'!DC212","v":"2018-02-01"},{"$f":"'(Intermediate Computations)'!DD212","v":"2018-03-01"},{"$f":"'(Intermediate Computations)'!DE212","v":"2018-04-01"},{"$f":"'(Intermediate Computations)'!DF212","v":"2018-05-01"},{"$f":"'(Intermediate Computations)'!DG212","v":"2018-06-01"},{"$f":"'(Intermediate Computations)'!DH212","v":"2018-07-01"},{"$f":"'(Intermediate Computations)'!DI212","v":"2018-08-01"},{"$f":"'(Intermediate Computations)'!DJ212","v":"2018-09-01"},{"$f":"'(Intermediate Computations)'!DK212","v":"2018-10-01"},{"$f":"'(Intermediate Computations)'!DL212","v":"2018-11-01"},{"$f":"'(Intermediate Computations)'!DM212","v":"2018-12-01"},{"$f":"'(Intermediate Computations)'!DO212","v":"2019-01-01"},{"$f":"'(Intermediate Computations)'!DP212","v":"2019-02-01"},{"$f":"'(Intermediate Computations)'!DQ212","v":"2019-03-01"},{"$f":"'(Intermediate Computations)'!DR212","v":"2019-04-01"},{"$f":"'(Intermediate Computations)'!DS212","v":"2019-05-01"},{"$f":"'(Intermediate Computations)'!DT212","v":"2019-06-01"},{"$f":"'(Intermediate Computations)'!DU212","v":"2019-07-01"},{"$f":"'(Intermediate Computations)'!DV212","v":"2019-08-01"},{"$f":"'(Intermediate Computations)'!DW212","v":"2019-09-01"},{"$f":"'(Intermediate Computations)'!DX212","v":"2019-10-01"},{"$f":"'(Intermediate Computations)'!DY212","v":"2019-11-01"},{"$f":"'(Intermediate Computations)'!DZ212","v":"2019-12-01"},{"$f":"'(Intermediate Computations)'!EB212","v":"2020-01-01"},{"$f":"'(Intermediate Computations)'!EC212","v":"2020-02-01"},{"$f":"'(Intermediate Computations)'!ED212","v":"2020-03-01"},{"$f":"'(Intermediate Computations)'!EE212","v":"2020-04-01"},{"$f":"'(Intermediate Computations)'!EF212","v":"2020-05-01"},{"$f":"'(Intermediate Computations)'!EG212","v":"2020-06-01"},{"$f":"'(Intermediate Computations)'!EH212","v":"2020-07-01"},{"$f":"'(Intermediate Computations)'!EI212","v":"2020-08-01"},{"$f":"'(Intermediate Computations)'!EJ212","v":"2020-09-01"},{"$f":"'(Intermediate Computations)'!EK212","v":"2020-10-01"},{"$f":"'(Intermediate Computations)'!EL212","v":"2020-11-01"},{"$f":"'(Intermediate Computations)'!EM212","v":"2020-12-01"}]
[{"$f":"'Statistical Moments'!B61","v":{"v":1181101.5492463335,"d":"$1,181,102"}},{"$f":"'Statistical Moments'!C61","v":{"v":1168221.8629394423,"d":"$1,168,222"}},{"$f":"'Statistical Moments'!D61","v":{"v":1166862.234733271,"d":"$1,166,862"}},{"$f":"'Statistical Moments'!E61","v":{"v":1148673.4360289073,"d":"$1,148,673"}},{"$f":"'Statistical Moments'!F61","v":{"v":1149500.7197597395,"d":"$1,149,501"}},{"$f":"'Statistical Moments'!G61","v":{"v":1155506.1067842743,"d":"$1,155,506"}},{"$f":"'Statistical Moments'!H61","v":{"v":1180746.324801254,"d":"$1,180,746"}},{"$f":"'Statistical Moments'!I61","v":{"v":1155947.2873726145,"d":"$1,155,947"}},{"$f":"'Statistical Moments'!J61","v":{"v":1171314.2359316428,"d":"$1,171,314"}},{"$f":"'Statistical Moments'!K61","v":{"v":1149395.241675267,"d":"$1,149,395"}},{"$f":"'Statistical Moments'!L61","v":{"v":1163563.2644902165,"d":"$1,163,563"}},{"$f":"'Statistical Moments'!M61","v":{"v":1161779.6518378006,"d":"$1,161,780"}},{"$f":"'Statistical Moments'!O61","v":{"v":1143638.3061109511,"d":"$1,143,638"}},{"$f":"'Statistical Moments'!P61","v":{"v":1155977.7938651172,"d":"$1,155,978"}},{"$f":"'Statistical Moments'!Q61","v":{"v":1167317.9054775846,"d":"$1,167,318"}},{"$f":"'Statistical Moments'!R61","v":{"v":1152065.175624645,"d":"$1,152,065"}},{"$f":"'Statistical Moments'!S61","v":{"v":1153999.7573614372,"d":"$1,154,000"}},{"$f":"'Statistical Moments'!T61","v":{"v":1148084.1003370949,"d":"$1,148,084"}},{"$f":"'Statistical Moments'!U61","v":{"v":1137718.2934599807,"d":"$1,137,718"}},{"$f":"'Statistical Moments'!V61","v":{"v":1150712.699564308,"d":"$1,150,713"}},{"$f":"'Statistical Moments'!W61","v":{"v":1136980.242030279,"d":"$1,136,980"}},{"$f":"'Statistical Moments'!X61","v":{"v":1143786.0780006119,"d":"$1,143,786"}},{"$f":"'Statistical Moments'!Y61","v":{"v":1128629.696690034,"d":"$1,128,630"}},{"$f":"'Statistical Moments'!Z61","v":{"v":1144472.9933054103,"d":"$1,144,473"}},{"$f":"'Statistical Moments'!AB61","v":{"v":1124647.7251003743,"d":"$1,124,648"}},{"$f":"'Statistical Moments'!AC61","v":{"v":1130043.7059002328,"d":"$1,130,044"}},{"$f":"'Statistical Moments'!AD61","v":{"v":1148722.7783425811,"d":"$1,148,723"}},{"$f":"'Statistical Moments'!AE61","v":{"v":1113427.2128189327,"d":"$1,113,427"}},{"$f":"'Statistical Moments'!AF61","v":{"v":1130909.404606827,"d":"$1,130,909"}},{"$f":"'Statistical Moments'!AG61","v":{"v":1130887.772906107,"d":"$1,130,888"}},{"$f":"'Statistical Moments'!AH61","v":{"v":1134289.6120417141,"d":"$1,134,290"}},{"$f":"'Statistical Moments'!AI61","v":{"v":1105330.2900801215,"d":"$1,105,330"}},{"$f":"'Statistical Moments'!AJ61","v":{"v":1126378.0055152958,"d":"$1,126,378"}},{"$f":"'Statistical Moments'!AK61","v":{"v":1128121.013671574,"d":"$1,128,121"}},{"$f":"'Statistical Moments'!AL61","v":{"v":1114319.693477627,"d":"$1,114,320"}},{"$f":"'Statistical Moments'!AM61","v":{"v":1127883.6004082535,"d":"$1,127,884"}},{"$f":"'Statistical Moments'!AO61","v":{"v":1097784.7536180664,"d":"$1,097,785"}},{"$f":"'Statistical Moments'!AP61","v":{"v":1103891.1860703188,"d":"$1,103,891"}},{"$f":"'Statistical Moments'!AQ61","v":{"v":1125425.4655905806,"d":"$1,125,425"}},{"$f":"'Statistical Moments'!AR61","v":{"v":1112919.2568561123,"d":"$1,112,919"}},{"$f":"'Statistical Moments'!AS61","v":{"v":1091310.2540344622,"d":"$1,091,310"}},{"$f":"'Statistical Moments'!AT61","v":{"v":1090604.5739242623,"d":"$1,090,605"}},{"$f":"'Statistical Moments'!AU61","v":{"v":1121070.6932159767,"d":"$1,121,071"}},{"$f":"'Statistical Moments'!AV61","v":{"v":1120517.4391610331,"d":"$1,120,517"}},{"$f":"'Statistical Moments'!AW61","v":{"v":1096697.694284238,"d":"$1,096,698"}},{"$f":"'Statistical Moments'!AX61","v":{"v":1108598.7315333914,"d":"$1,108,599"}},{"$f":"'Statistical Moments'!AY61","v":{"v":1097931.929414466,"d":"$1,097,932"}},{"$f":"'Statistical Moments'!AZ61","v":{"v":1103599.612763748,"d":"$1,103,600"}},{"$f":"'Statistical Moments'!BB61","v":{"v":1097698.3268199742,"d":"$1,097,698"}},{"$f":"'Statistical Moments'!BC61","v":{"v":1113346.836979043,"d":"$1,113,347"}},{"$f":"'Statistical Moments'!BD61","v":{"v":1117718.5958948922,"d":"$1,117,719"}},{"$f":"'Statistical Moments'!BE61","v":{"v":1100929.8204555155,"d":"$1,100,930"}},{"$f":"'Statistical Moments'!BF61","v":{"v":1090782.8280796036,"d":"$1,090,783"}},{"$f":"'Statistical Moments'!BG61","v":{"v":1088331.068089916,"d":"$1,088,331"}},{"$f":"'Statistical Moments'!BH61","v":{"v":1108800.8339388913,"d":"$1,108,801"}},{"$f":"'Statistical Moments'!BI61","v":{"v":1085357.955695686,"d":"$1,085,358"}},{"$f":"'Statistical Moments'!BJ61","v":{"v":1091176.7884057197,"d":"$1,091,177"}},{"$f":"'Statistical Moments'!BK61","v":{"v":1091109.5020352565,"d":"$1,091,110"}},{"$f":"'Statistical Moments'!BL61","v":{"v":1082110.7962491561,"d":"$1,082,111"}},{"$f":"'Statistical Moments'!BM61","v":{"v":1077121.0068860813,"d":"$1,077,121"}},{"$f":"'Statistical Moments'!BO61","v":{"v":1064712.6269166707,"d":"$1,064,713"}},{"$f":"'Statistical Moments'!BP61","v":{"v":1095918.502192887,"d":"$1,095,919"}},{"$f":"'Statistical Moments'!BQ61","v":{"v":1077887.3168224532,"d":"$1,077,887"}},{"$f":"'Statistical Moments'!BR61","v":{"v":1103508.2875065145,"d":"$1,103,508"}},{"$f":"'Statistical Moments'!BS61","v":{"v":1079484.5750304614,"d":"$1,079,485"}},{"$f":"'Statistical Moments'!BT61","v":{"v":1088606.3317877878,"d":"$1,088,606"}},{"$f":"'Statistical Moments'!BU61","v":{"v":1069657.5829330233,"d":"$1,069,658"}},{"$f":"'Statistical Moments'!BV61","v":{"v":1067272.5195671874,"d":"$1,067,273"}},{"$f":"'Statistical Moments'!BW61","v":{"v":1092128.0233448846,"d":"$1,092,128"}},{"$f":"'Statistical Moments'!BX61","v":{"v":1058028.225362039,"d":"$1,058,028"}},{"$f":"'Statistical Moments'!BY61","v":{"v":1079565.480605626,"d":"$1,079,565"}},{"$f":"'Statistical Moments'!BZ61","v":{"v":1074251.0653321068,"d":"$1,074,251"}},{"$f":"'Statistical Moments'!CB61","v":{"v":1070850.5458833603,"d":"$1,070,851"}},{"$f":"'Statistical Moments'!CC61","v":{"v":1070724.660185841,"d":"$1,070,725"}},{"$f":"'Statistical Moments'!CD61","v":{"v":1051138.2544085083,"d":"$1,051,138"}},{"$f":"'Statistical Moments'!CE61","v":{"v":1053879.5347569515,"d":"$1,053,880"}},{"$f":"'Statistical Moments'!CF61","v":{"v":1061337.4860154404,"d":"$1,061,337"}},{"$f":"'Statistical Moments'!CG61","v":{"v":1065315.4426078992,"d":"$1,065,315"}},{"$f":"'Statistical Moments'!CH61","v":{"v":1051717.164859104,"d":"$1,051,717"}},{"$f":"'Statistical Moments'!CI61","v":{"v":1057865.932256372,"d":"$1,057,866"}},{"$f":"'Statistical Moments'!CJ61","v":{"v":1076614.286687677,"d":"$1,076,614"}},{"$f":"'Statistical Moments'!CK61","v":{"v":1061019.9133850383,"d":"$1,061,020"}},{"$f":"'Statistical Moments'!CL61","v":{"v":1051716.007915291,"d":"$1,051,716"}},{"$f":"'Statistical Moments'!CM61","v":{"v":1034649.0667233755,"d":"$1,034,649"}},{"$f":"'Statistical Moments'!CO61","v":{"v":1051402.3915750994,"d":"$1,051,402"}},{"$f":"'Statistical Moments'!CP61","v":{"v":1045917.1196216706,"d":"$1,045,917"}},{"$f":"'Statistical Moments'!CQ61","v":{"v":1056200.764306351,"d":"$1,056,201"}},{"$f":"'Statistical Moments'!CR61","v":{"v":1046777.274350846,"d":"$1,046,777"}},{"$f":"'Statistical Moments'!CS61","v":{"v":1054100.0854553375,"d":"$1,054,100"}},{"$f":"'Statistical Moments'!CT61","v":{"v":1045066.4847146232,"d":"$1,045,066"}},{"$f":"'Statistical Moments'!CU61","v":{"v":1055368.0390528038,"d":"$1,055,368"}},{"$f":"'Statistical Moments'!CV61","v":{"v":1046697.3215386793,"d":"$1,046,697"}},{"$f":"'Statistical Moments'!CW61","v":{"v":1032576.3333526092,"d":"$1,032,576"}},{"$f":"'Statistical Moments'!CX61","v":{"v":1052370.8875722424,"d":"$1,052,371"}},{"$f":"'Statistical Moments'!CY61","v":{"v":1055105.4449015309,"d":"$1,055,105"}},{"$f":"'Statistical Moments'!CZ61","v":{"v":1058619.3187342996,"d":"$1,058,619"}},{"$f":"'Statistical Moments'!DB61","v":{"v":1036052.0902144057,"d":"$1,036,052"}},{"$f":"'Statistical Moments'!DC61","v":{"v":1038109.9099319009,"d":"$1,038,110"}},{"$f":"'Statistical Moments'!DD61","v":{"v":1036574.6050109228,"d":"$1,036,575"}},{"$f":"'Statistical Moments'!DE61","v":{"v":1048397.9925336291,"d":"$1,048,398"}},{"$f":"'Statistical Moments'!DF61","v":{"v":1041646.0874602922,"d":"$1,041,646"}},{"$f":"'Statistical Moments'!DG61","v":{"v":1024464.2226624513,"d":"$1,024,464"}},{"$f":"'Statistical Moments'!DH61","v":{"v":1042897.8916979553,"d":"$1,042,898"}},{"$f":"'Statistical Moments'!DI61","v":{"v":1035127.6102279116,"d":"$1,035,128"}},{"$f":"'Statistical Moments'!DJ61","v":{"v":1044354.4019801478,"d":"$1,044,354"}},{"$f":"'Statistical Moments'!DK61","v":{"v":1039154.4441422164,"d":"$1,039,154"}},{"$f":"'Statistical Moments'!DL61","v":{"v":1021302.2092893089,"d":"$1,021,302"}},{"$f":"'Statistical Moments'!DM61","v":{"v":1041251.8877998906,"d":"$1,041,252"}},{"$f":"'Statistical Moments'!DO61","v":{"v":1039731.5214578196,"d":"$1,039,732"}},{"$f":"'Statistical Moments'!DP61","v":{"v":1024662.113185097,"d":"$1,024,662"}},{"$f":"'Statistical Moments'!DQ61","v":{"v":1033982.2903257248,"d":"$1,033,982"}},{"$f":"'Statistical Moments'!DR61","v":{"v":1024612.0155866423,"d":"$1,024,612"}},{"$f":"'Statistical Moments'!DS61","v":{"v":1033458.3003628751,"d":"$1,033,458"}},{"$f":"'Statistical Moments'!DT61","v":{"v":1019553.8869681025,"d":"$1,019,554"}},{"$f":"'Statistical Moments'!DU61","v":{"v":1030460.7294742643,"d":"$1,030,461"}},{"$f":"'Statistical Moments'!DV61","v":{"v":1002703.1122217198,"d":"$1,002,703"}},{"$f":"'Statistical Moments'!DW61","v":{"v":1033639.3981881288,"d":"$1,033,639"}},{"$f":"'Statistical Moments'!DX61","v":{"v":1019518.758374935,"d":"$1,019,519"}},{"$f":"'Statistical Moments'!DY61","v":{"v":1025091.460253941,"d":"$1,025,091"}},{"$f":"'Statistical Moments'!DZ61","v":{"v":1016493.5494280518,"d":"$1,016,494"}},{"$f":"'Statistical Moments'!EB61","v":{"v":1029604.6704821916,"d":"$1,029,605"}},{"$f":"'Statistical Moments'!EC61","v":{"v":1026805.7194692295,"d":"$1,026,806"}},{"$f":"'Statistical Moments'!ED61","v":{"v":995838.1448515716,"d":"$995,838"}},{"$f":"'Statistical Moments'!EE61","v":{"v":1018787.584848246,"d":"$1,018,788"}},{"$f":"'Statistical Moments'!EF61","v":{"v":1013505.6156857247,"d":"$1,013,506"}},{"$f":"'Statistical Moments'!EG61","v":{"v":1011540.1587770169,"d":"$1,011,540"}},{"$f":"'Statistical Moments'!EH61","v":{"v":1016543.2279811206,"d":"$1,016,543"}},{"$f":"'Statistical Moments'!EI61","v":{"v":1013175.1525562679,"d":"$1,013,175"}},{"$f":"'Statistical Moments'!EJ61","v":{"v":1015012.8729431467,"d":"$1,015,013"}},{"$f":"'Statistical Moments'!EK61","v":{"v":1001223.2682829713,"d":"$1,001,223"}},{"$f":"'Statistical Moments'!EL61","v":{"v":1010337.0875932617,"d":"$1,010,337"}},{"$f":"'Statistical Moments'!EM61","v":{"v":1021843.8316836747,"d":"$1,021,844"}}]
[{"$f":"'(Intermediate Computations)'!B221","v":"Jan 2010"},{"$f":"'(Intermediate Computations)'!C221","v":"Feb 2010"},{"$f":"'(Intermediate Computations)'!D221","v":"Mar 2010"},{"$f":"'(Intermediate Computations)'!E221","v":"Apr 2010"},{"$f":"'(Intermediate Computations)'!F221","v":"May 2010"},{"$f":"'(Intermediate Computations)'!G221","v":"Jun 2010"},{"$f":"'(Intermediate Computations)'!H221","v":"Jul 2010"},{"$f":"'(Intermediate Computations)'!I221","v":"Aug 2010"},{"$f":"'(Intermediate Computations)'!J221","v":"Sep 2010"},{"$f":"'(Intermediate Computations)'!K221","v":"Oct 2010"},{"$f":"'(Intermediate Computations)'!L221","v":"Nov 2010"},{"$f":"'(Intermediate Computations)'!M221","v":"Dec 2010"},{"$f":"'(Intermediate Computations)'!O221","v":"Jan 2011"},{"$f":"'(Intermediate Computations)'!P221","v":"Feb 2011"},{"$f":"'(Intermediate Computations)'!Q221","v":"Mar 2011"},{"$f":"'(Intermediate Computations)'!R221","v":"Apr 2011"},{"$f":"'(Intermediate Computations)'!S221","v":"May 2011"},{"$f":"'(Intermediate Computations)'!T221","v":"Jun 2011"},{"$f":"'(Intermediate Computations)'!U221","v":"Jul 2011"},{"$f":"'(Intermediate Computations)'!V221","v":"Aug 2011"},{"$f":"'(Intermediate Computations)'!W221","v":"Sep 2011"},{"$f":"'(Intermediate Computations)'!X221","v":"Oct 2011"},{"$f":"'(Intermediate Computations)'!Y221","v":"Nov 2011"},{"$f":"'(Intermediate Computations)'!Z221","v":"Dec 2011"},{"$f":"'(Intermediate Computations)'!AB221","v":"Jan 2012"},{"$f":"'(Intermediate Computations)'!AC221","v":"Feb 2012"},{"$f":"'(Intermediate Computations)'!AD221","v":"Mar 2012"},{"$f":"'(Intermediate Computations)'!AE221","v":"Apr 2012"},{"$f":"'(Intermediate Computations)'!AF221","v":"May 2012"},{"$f":"'(Intermediate Computations)'!AG221","v":"Jun 2012"},{"$f":"'(Intermediate Computations)'!AH221","v":"Jul 2012"},{"$f":"'(Intermediate Computations)'!AI221","v":"Aug 2012"},{"$f":"'(Intermediate Computations)'!AJ221","v":"Sep 2012"},{"$f":"'(Intermediate Computations)'!AK221","v":"Oct 2012"},{"$f":"'(Intermediate Computations)'!AL221","v":"Nov 2012"},{"$f":"'(Intermediate Computations)'!AM221","v":"Dec 2012"},{"$f":"'(Intermediate Computations)'!AO221","v":"Jan 2013"},{"$f":"'(Intermediate Computations)'!AP221","v":"Feb 2013"},{"$f":"'(Intermediate Computations)'!AQ221","v":"Mar 2013"},{"$f":"'(Intermediate Computations)'!AR221","v":"Apr 2013"},{"$f":"'(Intermediate Computations)'!AS221","v":"May 2013"},{"$f":"'(Intermediate Computations)'!AT221","v":"Jun 2013"},{"$f":"'(Intermediate Computations)'!AU221","v":"Jul 2013"},{"$f":"'(Intermediate Computations)'!AV221","v":"Aug 2013"},{"$f":"'(Intermediate Computations)'!AW221","v":"Sep 2013"},{"$f":"'(Intermediate Computations)'!AX221","v":"Oct 2013"},{"$f":"'(Intermediate Computations)'!AY221","v":"Nov 2013"},{"$f":"'(Intermediate Computations)'!AZ221","v":"Dec 2013"},{"$f":"'(Intermediate Computations)'!BB221","v":"Jan 2014"},{"$f":"'(Intermediate Computations)'!BC221","v":"Feb 2014"},{"$f":"'(Intermediate Computations)'!BD221","v":"Mar 2014"},{"$f":"'(Intermediate Computations)'!BE221","v":"Apr 2014"},{"$f":"'(Intermediate Computations)'!BF221","v":"May 2014"},{"$f":"'(Intermediate Computations)'!BG221","v":"Jun 2014"},{"$f":"'(Intermediate Computations)'!BH221","v":"Jul 2014"},{"$f":"'(Intermediate Computations)'!BI221","v":"Aug 2014"},{"$f":"'(Intermediate Computations)'!BJ221","v":"Sep 2014"},{"$f":"'(Intermediate Computations)'!BK221","v":"Oct 2014"},{"$f":"'(Intermediate Computations)'!BL221","v":"Nov 2014"},{"$f":"'(Intermediate Computations)'!BM221","v":"Dec 2014"},{"$f":"'(Intermediate Computations)'!BO221","v":"Jan 2015"},{"$f":"'(Intermediate Computations)'!BP221","v":"Feb 2015"},{"$f":"'(Intermediate Computations)'!BQ221","v":"Mar 2015"},{"$f":"'(Intermediate Computations)'!BR221","v":"Apr 2015"},{"$f":"'(Intermediate Computations)'!BS221","v":"May 2015"},{"$f":"'(Intermediate Computations)'!BT221","v":"Jun 2015"},{"$f":"'(Intermediate Computations)'!BU221","v":"Jul 2015"},{"$f":"'(Intermediate Computations)'!BV221","v":"Aug 2015"},{"$f":"'(Intermediate Computations)'!BW221","v":"Sep 2015"},{"$f":"'(Intermediate Computations)'!BX221","v":"Oct 2015"},{"$f":"'(Intermediate Computations)'!BY221","v":"Nov 2015"},{"$f":"'(Intermediate Computations)'!BZ221","v":"Dec 2015"},{"$f":"'(Intermediate Computations)'!CB221","v":"Jan 2016"},{"$f":"'(Intermediate Computations)'!CC221","v":"Feb 2016"},{"$f":"'(Intermediate Computations)'!CD221","v":"Mar 2016"},{"$f":"'(Intermediate Computations)'!CE221","v":"Apr 2016"},{"$f":"'(Intermediate Computations)'!CF221","v":"May 2016"},{"$f":"'(Intermediate Computations)'!CG221","v":"Jun 2016"},{"$f":"'(Intermediate Computations)'!CH221","v":"Jul 2016"},{"$f":"'(Intermediate Computations)'!CI221","v":"Aug 2016"},{"$f":"'(Intermediate Computations)'!CJ221","v":"Sep 2016"},{"$f":"'(Intermediate Computations)'!CK221","v":"Oct 2016"},{"$f":"'(Intermediate Computations)'!CL221","v":"Nov 2016"},{"$f":"'(Intermediate Computations)'!CM221","v":"Dec 2016"},{"$f":"'(Intermediate Computations)'!CO221","v":"Jan 2017"},{"$f":"'(Intermediate Computations)'!CP221","v":"Feb 2017"},{"$f":"'(Intermediate Computations)'!CQ221","v":"Mar 2017"},{"$f":"'(Intermediate Computations)'!CR221","v":"Apr 2017"},{"$f":"'(Intermediate Computations)'!CS221","v":"May 2017"},{"$f":"'(Intermediate Computations)'!CT221","v":"Jun 2017"},{"$f":"'(Intermediate Computations)'!CU221","v":"Jul 2017"},{"$f":"'(Intermediate Computations)'!CV221","v":"Aug 2017"},{"$f":"'(Intermediate Computations)'!CW221","v":"Sep 2017"},{"$f":"'(Intermediate Computations)'!CX221","v":"Oct 2017"},{"$f":"'(Intermediate Computations)'!CY221","v":"Nov 2017"},{"$f":"'(Intermediate Computations)'!CZ221","v":"Dec 2017"},{"$f":"'(Intermediate Computations)'!DB221","v":"Jan 2018"},{"$f":"'(Intermediate Computations)'!DC221","v":"Feb 2018"},{"$f":"'(Intermediate Computations)'!DD221","v":"Mar 2018"},{"$f":"'(Intermediate Computations)'!DE221","v":"Apr 2018"},{"$f":"'(Intermediate Computations)'!DF221","v":"May 2018"},{"$f":"'(Intermediate Computations)'!DG221","v":"Jun 2018"},{"$f":"'(Intermediate Computations)'!DH221","v":"Jul 2018"},{"$f":"'(Intermediate Computations)'!DI221","v":"Aug 2018"},{"$f":"'(Intermediate Computations)'!DJ221","v":"Sep 2018"},{"$f":"'(Intermediate Computations)'!DK221","v":"Oct 2018"},{"$f":"'(Intermediate Computations)'!DL221","v":"Nov 2018"},{"$f":"'(Intermediate Computations)'!DM221","v":"Dec 2018"},{"$f":"'(Intermediate Computations)'!DO221","v":"Jan 2019"},{"$f":"'(Intermediate Computations)'!DP221","v":"Feb 2019"},{"$f":"'(Intermediate Computations)'!DQ221","v":"Mar 2019"},{"$f":"'(Intermediate Computations)'!DR221","v":"Apr 2019"},{"$f":"'(Intermediate Computations)'!DS221","v":"May 2019"},{"$f":"'(Intermediate Computations)'!DT221","v":"Jun 2019"},{"$f":"'(Intermediate Computations)'!DU221","v":"Jul 2019"},{"$f":"'(Intermediate Computations)'!DV221","v":"Aug 2019"},{"$f":"'(Intermediate Computations)'!DW221","v":"Sep 2019"},{"$f":"'(Intermediate Computations)'!DX221","v":"Oct 2019"},{"$f":"'(Intermediate Computations)'!DY221","v":"Nov 2019"},{"$f":"'(Intermediate Computations)'!DZ221","v":"Dec 2019"},{"$f":"'(Intermediate Computations)'!EB221","v":"Jan 2020"},{"$f":"'(Intermediate Computations)'!EC221","v":"Feb 2020"},{"$f":"'(Intermediate Computations)'!ED221","v":"Mar 2020"},{"$f":"'(Intermediate Computations)'!EE221","v":"Apr 2020"},{"$f":"'(Intermediate Computations)'!EF221","v":"May 2020"},{"$f":"'(Intermediate Computations)'!EG221","v":"Jun 2020"},{"$f":"'(Intermediate Computations)'!EH221","v":"Jul 2020"},{"$f":"'(Intermediate Computations)'!EI221","v":"Aug 2020"},{"$f":"'(Intermediate Computations)'!EJ221","v":"Sep 2020"},{"$f":"'(Intermediate Computations)'!EK221","v":"Oct 2020"},{"$f":"'(Intermediate Computations)'!EL221","v":"Nov 2020"},{"$f":"'(Intermediate Computations)'!EM221","v":"Dec 2020"}]
[{"$f":"'(Intermediate Computations)'!B218","v":"2010-01-01"},{"$f":"'(Intermediate Computations)'!C218","v":"2010-02-01"},{"$f":"'(Intermediate Computations)'!D218","v":"2010-03-01"},{"$f":"'(Intermediate Computations)'!E218","v":"2010-04-01"},{"$f":"'(Intermediate Computations)'!F218","v":"2010-05-01"},{"$f":"'(Intermediate Computations)'!G218","v":"2010-06-01"},{"$f":"'(Intermediate Computations)'!H218","v":"2010-07-01"},{"$f":"'(Intermediate Computations)'!I218","v":"2010-08-01"},{"$f":"'(Intermediate Computations)'!J218","v":"2010-09-01"},{"$f":"'(Intermediate Computations)'!K218","v":"2010-10-01"},{"$f":"'(Intermediate Computations)'!L218","v":"2010-11-01"},{"$f":"'(Intermediate Computations)'!M218","v":"2010-12-01"},{"$f":"'(Intermediate Computations)'!O218","v":"2011-01-01"},{"$f":"'(Intermediate Computations)'!P218","v":"2011-02-01"},{"$f":"'(Intermediate Computations)'!Q218","v":"2011-03-01"},{"$f":"'(Intermediate Computations)'!R218","v":"2011-04-01"},{"$f":"'(Intermediate Computations)'!S218","v":"2011-05-01"},{"$f":"'(Intermediate Computations)'!T218","v":"2011-06-01"},{"$f":"'(Intermediate Computations)'!U218","v":"2011-07-01"},{"$f":"'(Intermediate Computations)'!V218","v":"2011-08-01"},{"$f":"'(Intermediate Computations)'!W218","v":"2011-09-01"},{"$f":"'(Intermediate Computations)'!X218","v":"2011-10-01"},{"$f":"'(Intermediate Computations)'!Y218","v":"2011-11-01"},{"$f":"'(Intermediate Computations)'!Z218","v":"2011-12-01"},{"$f":"'(Intermediate Computations)'!AB218","v":"2012-01-01"},{"$f":"'(Intermediate Computations)'!AC218","v":"2012-02-01"},{"$f":"'(Intermediate Computations)'!AD218","v":"2012-03-01"},{"$f":"'(Intermediate Computations)'!AE218","v":"2012-04-01"},{"$f":"'(Intermediate Computations)'!AF218","v":"2012-05-01"},{"$f":"'(Intermediate Computations)'!AG218","v":"2012-06-01"},{"$f":"'(Intermediate Computations)'!AH218","v":"2012-07-01"},{"$f":"'(Intermediate Computations)'!AI218","v":"2012-08-01"},{"$f":"'(Intermediate Computations)'!AJ218","v":"2012-09-01"},{"$f":"'(Intermediate Computations)'!AK218","v":"2012-10-01"},{"$f":"'(Intermediate Computations)'!AL218","v":"2012-11-01"},{"$f":"'(Intermediate Computations)'!AM218","v":"2012-12-01"},{"$f":"'(Intermediate Computations)'!AO218","v":"2013-01-01"},{"$f":"'(Intermediate Computations)'!AP218","v":"2013-02-01"},{"$f":"'(Intermediate Computations)'!AQ218","v":"2013-03-01"},{"$f":"'(Intermediate Computations)'!AR218","v":"2013-04-01"},{"$f":"'(Intermediate Computations)'!AS218","v":"2013-05-01"},{"$f":"'(Intermediate Computations)'!AT218","v":"2013-06-01"},{"$f":"'(Intermediate Computations)'!AU218","v":"2013-07-01"},{"$f":"'(Intermediate Computations)'!AV218","v":"2013-08-01"},{"$f":"'(Intermediate Computations)'!AW218","v":"2013-09-01"},{"$f":"'(Intermediate Computations)'!AX218","v":"2013-10-01"},{"$f":"'(Intermediate Computations)'!AY218","v":"2013-11-01"},{"$f":"'(Intermediate Computations)'!AZ218","v":"2013-12-01"},{"$f":"'(Intermediate Computations)'!BB218","v":"2014-01-01"},{"$f":"'(Intermediate Computations)'!BC218","v":"2014-02-01"},{"$f":"'(Intermediate Computations)'!BD218","v":"2014-03-01"},{"$f":"'(Intermediate Computations)'!BE218","v":"2014-04-01"},{"$f":"'(Intermediate Computations)'!BF218","v":"2014-05-01"},{"$f":"'(Intermediate Computations)'!BG218","v":"2014-06-01"},{"$f":"'(Intermediate Computations)'!BH218","v":"2014-07-01"},{"$f":"'(Intermediate Computations)'!BI218","v":"2014-08-01"},{"$f":"'(Intermediate Computations)'!BJ218","v":"2014-09-01"},{"$f":"'(Intermediate Computations)'!BK218","v":"2014-10-01"},{"$f":"'(Intermediate Computations)'!BL218","v":"2014-11-01"},{"$f":"'(Intermediate Computations)'!BM218","v":"2014-12-01"},{"$f":"'(Intermediate Computations)'!BO218","v":"2015-01-01"},{"$f":"'(Intermediate Computations)'!BP218","v":"2015-02-01"},{"$f":"'(Intermediate Computations)'!BQ218","v":"2015-03-01"},{"$f":"'(Intermediate Computations)'!BR218","v":"2015-04-01"},{"$f":"'(Intermediate Computations)'!BS218","v":"2015-05-01"},{"$f":"'(Intermediate Computations)'!BT218","v":"2015-06-01"},{"$f":"'(Intermediate Computations)'!BU218","v":"2015-07-01"},{"$f":"'(Intermediate Computations)'!BV218","v":"2015-08-01"},{"$f":"'(Intermediate Computations)'!BW218","v":"2015-09-01"},{"$f":"'(Intermediate Computations)'!BX218","v":"2015-10-01"},{"$f":"'(Intermediate Computations)'!BY218","v":"2015-11-01"},{"$f":"'(Intermediate Computations)'!BZ218","v":"2015-12-01"},{"$f":"'(Intermediate Computations)'!CB218","v":"2016-01-01"},{"$f":"'(Intermediate Computations)'!CC218","v":"2016-02-01"},{"$f":"'(Intermediate Computations)'!CD218","v":"2016-03-01"},{"$f":"'(Intermediate Computations)'!CE218","v":"2016-04-01"},{"$f":"'(Intermediate Computations)'!CF218","v":"2016-05-01"},{"$f":"'(Intermediate Computations)'!CG218","v":"2016-06-01"},{"$f":"'(Intermediate Computations)'!CH218","v":"2016-07-01"},{"$f":"'(Intermediate Computations)'!CI218","v":"2016-08-01"},{"$f":"'(Intermediate Computations)'!CJ218","v":"2016-09-01"},{"$f":"'(Intermediate Computations)'!CK218","v":"2016-10-01"},{"$f":"'(Intermediate Computations)'!CL218","v":"2016-11-01"},{"$f":"'(Intermediate Computations)'!CM218","v":"2016-12-01"},{"$f":"'(Intermediate Computations)'!CO218","v":"2017-01-01"},{"$f":"'(Intermediate Computations)'!CP218","v":"2017-02-01"},{"$f":"'(Intermediate Computations)'!CQ218","v":"2017-03-01"},{"$f":"'(Intermediate Computations)'!CR218","v":"2017-04-01"},{"$f":"'(Intermediate Computations)'!CS218","v":"2017-05-01"},{"$f":"'(Intermediate Computations)'!CT218","v":"2017-06-01"},{"$f":"'(Intermediate Computations)'!CU218","v":"2017-07-01"},{"$f":"'(Intermediate Computations)'!CV218","v":"2017-08-01"},{"$f":"'(Intermediate Computations)'!CW218","v":"2017-09-01"},{"$f":"'(Intermediate Computations)'!CX218","v":"2017-10-01"},{"$f":"'(Intermediate Computations)'!CY218","v":"2017-11-01"},{"$f":"'(Intermediate Computations)'!CZ218","v":"2017-12-01"},{"$f":"'(Intermediate Computations)'!DB218","v":"2018-01-01"},{"$f":"'(Intermediate Computations)'!DC218","v":"2018-02-01"},{"$f":"'(Intermediate Computations)'!DD218","v":"2018-03-01"},{"$f":"'(Intermediate Computations)'!DE218","v":"2018-04-01"},{"$f":"'(Intermediate Computations)'!DF218","v":"2018-05-01"},{"$f":"'(Intermediate Computations)'!DG218","v":"2018-06-01"},{"$f":"'(Intermediate Computations)'!DH218","v":"2018-07-01"},{"$f":"'(Intermediate Computations)'!DI218","v":"2018-08-01"},{"$f":"'(Intermediate Computations)'!DJ218","v":"2018-09-01"},{"$f":"'(Intermediate Computations)'!DK218","v":"2018-10-01"},{"$f":"'(Intermediate Computations)'!DL218","v":"2018-11-01"},{"$f":"'(Intermediate Computations)'!DM218","v":"2018-12-01"},{"$f":"'(Intermediate Computations)'!DO218","v":"2019-01-01"},{"$f":"'(Intermediate Computations)'!DP218","v":"2019-02-01"},{"$f":"'(Intermediate Computations)'!DQ218","v":"2019-03-01"},{"$f":"'(Intermediate Computations)'!DR218","v":"2019-04-01"},{"$f":"'(Intermediate Computations)'!DS218","v":"2019-05-01"},{"$f":"'(Intermediate Computations)'!DT218","v":"2019-06-01"},{"$f":"'(Intermediate Computations)'!DU218","v":"2019-07-01"},{"$f":"'(Intermediate Computations)'!DV218","v":"2019-08-01"},{"$f":"'(Intermediate Computations)'!DW218","v":"2019-09-01"},{"$f":"'(Intermediate Computations)'!DX218","v":"2019-10-01"},{"$f":"'(Intermediate Computations)'!DY218","v":"2019-11-01"},{"$f":"'(Intermediate Computations)'!DZ218","v":"2019-12-01"},{"$f":"'(Intermediate Computations)'!EB218","v":"2020-01-01"},{"$f":"'(Intermediate Computations)'!EC218","v":"2020-02-01"},{"$f":"'(Intermediate Computations)'!ED218","v":"2020-03-01"},{"$f":"'(Intermediate Computations)'!EE218","v":"2020-04-01"},{"$f":"'(Intermediate Computations)'!EF218","v":"2020-05-01"},{"$f":"'(Intermediate Computations)'!EG218","v":"2020-06-01"},{"$f":"'(Intermediate Computations)'!EH218","v":"2020-07-01"},{"$f":"'(Intermediate Computations)'!EI218","v":"2020-08-01"},{"$f":"'(Intermediate Computations)'!EJ218","v":"2020-09-01"},{"$f":"'(Intermediate Computations)'!EK218","v":"2020-10-01"},{"$f":"'(Intermediate Computations)'!EL218","v":"2020-11-01"},{"$f":"'(Intermediate Computations)'!EM218","v":"2020-12-01"}]
[{"$f":"'Statistical Moments'!B62","v":{"v":21319.975424747514,"d":"$21,320"}},{"$f":"'Statistical Moments'!C62","v":{"v":50469.189665387494,"d":"$50,469"}},{"$f":"'Statistical Moments'!D62","v":{"v":21371.980285536443,"d":"$21,372"}},{"$f":"'Statistical Moments'!E62","v":{"v":20932.221545659333,"d":"$20,932"}},{"$f":"'Statistical Moments'!F62","v":{"v":30433.53468109891,"d":"$30,434"}},{"$f":"'Statistical Moments'!G62","v":{"v":28589.717817034754,"d":"$28,590"}},{"$f":"'Statistical Moments'!H62","v":{"v":24530.20651320982,"d":"$24,530"}},{"$f":"'Statistical Moments'!I62","v":{"v":30333.97186575351,"d":"$30,334"}},{"$f":"'Statistical Moments'!J62","v":{"v":28874.314128394344,"d":"$28,874"}},{"$f":"'Statistical Moments'!K62","v":{"v":23890.49880490944,"d":"$23,890"}},{"$f":"'Statistical Moments'!L62","v":{"v":22822.261122336095,"d":"$22,822"}},{"$f":"'Statistical Moments'!M62","v":{"v":33131.394546253054,"d":"$33,131"}},{"$f":"'Statistical Moments'!O62","v":{"v":23164.29286147506,"d":"$23,164"}},{"$f":"'Statistical Moments'!P62","v":{"v":23553.93404949341,"d":"$23,554"}},{"$f":"'Statistical Moments'!Q62","v":{"v":28760.390559416905,"d":"$28,760"}},{"$f":"'Statistical Moments'!R62","v":{"v":39814.83305213603,"d":"$39,815"}},{"$f":"'Statistical Moments'!S62","v":{"v":31621.009627682644,"d":"$31,621"}},{"$f":"'Statistical Moments'!T62","v":{"v":45302.68286121964,"d":"$45,303"}},{"$f":"'Statistical Moments'!U62","v":{"v":24548.55718835369,"d":"$24,549"}},{"$f":"'Statistical Moments'!V62","v":{"v":23633.87542748879,"d":"$23,634"}},{"$f":"'Statistical Moments'!W62","v":{"v":33066.70289938777,"d":"$33,067"}},{"$f":"'Statistical Moments'!X62","v":{"v":13173.226981743657,"d":"$13,173"}},{"$f":"'Statistical Moments'!Y62","v":{"v":37819.75406437344,"d":"$37,820"}},{"$f":"'Statistical Moments'!Z62","v":{"v":24723.277818933715,"d":"$24,723"}},{"$f":"'Statistical Moments'!AB62","v":{"v":26713.96816226458,"d":"$26,714"}},{"$f":"'Statistical Moments'!AC62","v":{"v":32334.278212847752,"d":"$32,334"}},{"$f":"'Statistical Moments'!AD62","v":{"v":22428.775023462196,"d":"$22,429"}},{"$f":"'Statistical Moments'!AE62","v":{"v":18086.632735386294,"d":"$18,087"}},{"$f":"'Statistical Moments'!AF62","v":{"v":41678.74689849651,"d":"$41,679"}},{"$f":"'Statistical Moments'!AG62","v":{"v":19477.10013710054,"d":"$19,477"}},{"$f":"'Statistical Moments'!AH62","v":{"v":27085.058924534103,"d":"$27,085"}},{"$f":"'Statistical Moments'!AI62","v":{"v":16602.700735304214,"d":"$16,603"}},{"$f":"'Statistical Moments'!AJ62","v":{"v":39071.72642759227,"d":"$39,072"}},{"$f":"'Statistical Moments'!AK62","v":{"v":26753.84554307851,"d":"$26,754"}},{"$f":"'Statistical Moments'!AL62","v":{"v":29183.219349033563,"d":"$29,183"}},{"$f":"'Statistical Moments'!AM62","v":{"v":39170.0428860917,"d":"$39,170"}},{"$f":"'Statistical Moments'!AO62","v":{"v":28108.070530019137,"d":"$28,108"}},{"$f":"'Statistical Moments'!AP62","v":{"v":12249.508790034564,"d":"$12,250"}},{"$f":"'Statistical Moments'!AQ62","v":{"v":28048.079214245092,"d":"$28,048"}},{"$f":"'Statistical Moments'!AR62","v":{"v":36984.80482849881,"d":"$36,985"}},{"$f":"'Statistical Moments'!AS62","v":{"v":23646.89339209051,"d":"$23,647"}},{"$f":"'Statistical Moments'!AT62","v":{"v":25071.23177013291,"d":"$25,071"}},{"$f":"'Statistical Moments'!AU62","v":{"v":21289.369564558394,"d":"$21,289"}},{"$f":"'Statistical Moments'!AV62","v":{"v":15821.923864206221,"d":"$15,822"}},{"$f":"'Statistical Moments'!AW62","v":{"v":33038.36646427607,"d":"$33,038"}},{"$f":"'Statistical Moments'!AX62","v":{"v":33032.42881658542,"d":"$33,032"}},{"$f":"'Statistical Moments'!AY62","v":{"v":28403.507495407077,"d":"$28,404"}},{"$f":"'Statistical Moments'!AZ62","v":{"v":32039.234955020533,"d":"$32,039"}},{"$f":"'Statistical Moments'!BB62","v":{"v":32091.445693841804,"d":"$32,091"}},{"$f":"'Statistical Moments'!BC62","v":{"v":20079.739358429077,"d":"$20,080"}},{"$f":"'Statistical Moments'!BD62","v":{"v":30392.708408550978,"d":"$30,393"}},{"$f":"'Statistical Moments'!BE62","v":{"v":19200.984121865094,"d":"$19,201"}},{"$f":"'Statistical Moments'!BF62","v":{"v":24362.655711808307,"d":"$24,363"}},{"$f":"'Statistical Moments'!BG62","v":{"v":24948.93395825272,"d":"$24,949"}},{"$f":"'Statistical Moments'!BH62","v":{"v":30172.11608047846,"d":"$30,172"}},{"$f":"'Statistical Moments'!BI62","v":{"v":34087.30583188891,"d":"$34,087"}},{"$f":"'Statistical Moments'!BJ62","v":{"v":26080.983155716658,"d":"$26,081"}},{"$f":"'Statistical Moments'!BK62","v":{"v":38895.37719271741,"d":"$38,895"}},{"$f":"'Statistical Moments'!BL62","v":{"v":28854.778743440173,"d":"$28,855"}},{"$f":"'Statistical Moments'!BM62","v":{"v":32693.327124893873,"d":"$32,693"}},{"$f":"'Statistical Moments'!BO62","v":{"v":28896.80461186058,"d":"$28,897"}},{"$f":"'Statistical Moments'!BP62","v":{"v":26920.677581439588,"d":"$26,921"}},{"$f":"'Statistical Moments'!BQ62","v":{"v":20762.962055636388,"d":"$20,763"}},{"$f":"'Statistical Moments'!BR62","v":{"v":26579.09461471486,"d":"$26,579"}},{"$f":"'Statistical Moments'!BS62","v":{"v":24565.07914577985,"d":"$24,565"}},{"$f":"'Statistical Moments'!BT62","v":{"v":32576.0765187694,"d":"$32,576"}},{"$f":"'Statistical Moments'!BU62","v":{"v":26167.99011263381,"d":"$26,168"}},{"$f":"'Statistical Moments'!BV62","v":{"v":29783.534198345566,"d":"$29,784"}},{"$f":"'Statistical Moments'!BW62","v":{"v":14907.794184749058,"d":"$14,908"}},{"$f":"'Statistical Moments'!BX62","v":{"v":28072.511645273094,"d":"$28,073"}},{"$f":"'Statistical Moments'!BY62","v":{"v":20273.374603956727,"d":"$20,273"}},{"$f":"'Statistical Moments'!BZ62","v":{"v":20335.881257862868,"d":"$20,336"}},{"$f":"'Statistical Moments'!CB62","v":{"v":29216.246407916322,"d":"$29,216"}},{"$f":"'Statistical Moments'!CC62","v":{"v":24412.42196331368,"d":"$24,412"}},{"$f":"'Statistical Moments'!CD62","v":{"v":27704.13613816392,"d":"$27,704"}},{"$f":"'Statistical Moments'!CE62","v":{"v":21524.55100382539,"d":"$21,525"}},{"$f":"'Statistical Moments'!CF62","v":{"v":26848.555307475923,"d":"$26,849"}},{"$f":"'Statistical Moments'!CG62","v":{"v":21327.10923408253,"d":"$21,327"}},{"$f":"'Statistical Moments'!CH62","v":{"v":41601.66843394155,"d":"$41,602"}},{"$f":"'Statistical Moments'!CI62","v":{"v":33796.32121883473,"d":"$33,796"}},{"$f":"'Statistical Moments'!CJ62","v":{"v":29240.52660966491,"d":"$29,241"}},{"$f":"'Statistical Moments'!CK62","v":{"v":26884.873209147172,"d":"$26,885"}},{"$f":"'Statistical Moments'!CL62","v":{"v":25469.068686076756,"d":"$25,469"}},{"$f":"'Statistical Moments'!CM62","v":{"v":27763.1330949487,"d":"$27,763"}},{"$f":"'Statistical Moments'!CO62","v":{"v":27235.624657490593,"d":"$27,236"}},{"$f":"'Statistical Moments'!CP62","v":{"v":23233.159305676847,"d":"$23,233"}},{"$f":"'Statistical Moments'!CQ62","v":{"v":34280.61384458074,"d":"$34,281"}},{"$f":"'Statistical Moments'!CR62","v":{"v":22580.023343598074,"d":"$22,580"}},{"$f":"'Statistical Moments'!CS62","v":{"v":25615.934205941907,"d":"$25,616"}},{"$f":"'Statistical Moments'!CT62","v":{"v":34919.032733342996,"d":"$34,919"}},{"$f":"'Statistical Moments'!CU62","v":{"v":27329.66138637273,"d":"$27,330"}},{"$f":"'Statistical Moments'!CV62","v":{"v":27552.79241621489,"d":"$27,553"}},{"$f":"'Statistical Moments'!CW62","v":{"v":23179.99784494706,"d":"$23,180"}},{"$f":"'Statistical Moments'!CX62","v":{"v":38650.270863217505,"d":"$38,650"}},{"$f":"'Statistical Moments'!CY62","v":{"v":27261.426340256177,"d":"$27,261"}},{"$f":"'Statistical Moments'!CZ62","v":{"v":21875.23210358061,"d":"$21,875"}},{"$f":"'Statistical Moments'!DB62","v":{"v":26058.252134037677,"d":"$26,058"}},{"$f":"'Statistical Moments'!DC62","v":{"v":30063.453563052186,"d":"$30,063"}},{"$f":"'Statistical Moments'!DD62","v":{"v":18214.681818103483,"d":"$18,215"}},{"$f":"'Statistical Moments'!DE62","v":{"v":34117.73044942355,"d":"$34,118"}},{"$f":"'Statistical Moments'!DF62","v":{"v":27730.525805891226,"d":"$27,731"}},{"$f":"'Statistical Moments'!DG62","v":{"v":17457.85817809632,"d":"$17,458"}},{"$f":"'Statistical Moments'!DH62","v":{"v":26879.664642371332,"d":"$26,880"}},{"$f":"'Statistical Moments'!DI62","v":{"v":20829.643154985457,"d":"$20,830"}},{"$f":"'Statistical Moments'!DJ62","v":{"v":39175.37249586833,"d":"$39,175"}},{"$f":"'Statistical Moments'!DK62","v":{"v":28650.32367850566,"d":"$28,650"}},{"$f":"'Statistical Moments'!DL62","v":{"v":33621.785714057936,"d":"$33,622"}},{"$f":"'Statistical Moments'!DM62","v":{"v":27761.711238207947,"d":"$27,762"}},{"$f":"'Statistical Moments'!DO62","v":{"v":33244.07696764136,"d":"$33,244"}},{"$f":"'Statistical Moments'!DP62","v":{"v":32792.95813135568,"d":"$32,793"}},{"$f":"'Statistical Moments'!DQ62","v":{"v":26713.76416999854,"d":"$26,714"}},{"$f":"'Statistical Moments'!DR62","v":{"v":29104.586914948715,"d":"$29,105"}},{"$f":"'Statistical Moments'!DS62","v":{"v":26869.926504301962,"d":"$26,870"}},{"$f":"'Statistical Moments'!DT62","v":{"v":28768.87093466357,"d":"$28,769"}},{"$f":"'Statistical Moments'!DU62","v":{"v":32304.885995772907,"d":"$32,305"}},{"$f":"'Statistical Moments'!DV62","v":{"v":29153.478536765884,"d":"$29,153"}},{"$f":"'Statistical Moments'!DW62","v":{"v":23006.887381589735,"d":"$23,007"}},{"$f":"'Statistical Moments'!DX62","v":{"v":27204.760845086977,"d":"$27,205"}},{"$f":"'Statistical Moments'!DY62","v":{"v":36730.83808210329,"d":"$36,731"}},{"$f":"'Statistical Moments'!DZ62","v":{"v":16361.165470919657,"d":"$16,361"}},{"$f":"'Statistical Moments'!EB62","v":{"v":23316.639743943702,"d":"$23,317"}},{"$f":"'Statistical Moments'!EC62","v":{"v":34759.39715224059,"d":"$34,759"}},{"$f":"'Statistical Moments'!ED62","v":{"v":24763.626431747896,"d":"$24,764"}},{"$f":"'Statistical Moments'!EE62","v":{"v":34374.3465753421,"d":"$34,374"}},{"$f":"'Statistical Moments'!EF62","v":{"v":28346.769666910728,"d":"$28,347"}},{"$f":"'Statistical Moments'!EG62","v":{"v":27293.154140065024,"d":"$27,293"}},{"$f":"'Statistical Moments'!EH62","v":{"v":28563.00392313609,"d":"$28,563"}},{"$f":"'Statistical Moments'!EI62","v":{"v":41766.11732005336,"d":"$41,766"}},{"$f":"'Statistical Moments'!EJ62","v":{"v":28175.683907596318,"d":"$28,176"}},{"$f":"'Statistical Moments'!EK62","v":{"v":20639.0844132449,"d":"$20,639"}},{"$f":"'Statistical Moments'!EL62","v":{"v":29546.442937913504,"d":"$29,546"}},{"$f":"'Statistical Moments'!EM62","v":{"v":25198.890798287703,"d":"$25,199"}}]
[{"$f":"'(Intermediate Computations)'!B227","v":"Jan 2010"},{"$f":"'(Intermediate Computations)'!C227","v":"Feb 2010"},{"$f":"'(Intermediate Computations)'!D227","v":"Mar 2010"},{"$f":"'(Intermediate Computations)'!E227","v":"Apr 2010"},{"$f":"'(Intermediate Computations)'!F227","v":"May 2010"},{"$f":"'(Intermediate Computations)'!G227","v":"Jun 2010"},{"$f":"'(Intermediate Computations)'!H227","v":"Jul 2010"},{"$f":"'(Intermediate Computations)'!I227","v":"Aug 2010"},{"$f":"'(Intermediate Computations)'!J227","v":"Sep 2010"},{"$f":"'(Intermediate Computations)'!K227","v":"Oct 2010"},{"$f":"'(Intermediate Computations)'!L227","v":"Nov 2010"},{"$f":"'(Intermediate Computations)'!M227","v":"Dec 2010"},{"$f":"'(Intermediate Computations)'!O227","v":"Jan 2011"},{"$f":"'(Intermediate Computations)'!P227","v":"Feb 2011"},{"$f":"'(Intermediate Computations)'!Q227","v":"Mar 2011"},{"$f":"'(Intermediate Computations)'!R227","v":"Apr 2011"},{"$f":"'(Intermediate Computations)'!S227","v":"May 2011"},{"$f":"'(Intermediate Computations)'!T227","v":"Jun 2011"},{"$f":"'(Intermediate Computations)'!U227","v":"Jul 2011"},{"$f":"'(Intermediate Computations)'!V227","v":"Aug 2011"},{"$f":"'(Intermediate Computations)'!W227","v":"Sep 2011"},{"$f":"'(Intermediate Computations)'!X227","v":"Oct 2011"},{"$f":"'(Intermediate Computations)'!Y227","v":"Nov 2011"},{"$f":"'(Intermediate Computations)'!Z227","v":"Dec 2011"},{"$f":"'(Intermediate Computations)'!AB227","v":"Jan 2012"},{"$f":"'(Intermediate Computations)'!AC227","v":"Feb 2012"},{"$f":"'(Intermediate Computations)'!AD227","v":"Mar 2012"},{"$f":"'(Intermediate Computations)'!AE227","v":"Apr 2012"},{"$f":"'(Intermediate Computations)'!AF227","v":"May 2012"},{"$f":"'(Intermediate Computations)'!AG227","v":"Jun 2012"},{"$f":"'(Intermediate Computations)'!AH227","v":"Jul 2012"},{"$f":"'(Intermediate Computations)'!AI227","v":"Aug 2012"},{"$f":"'(Intermediate Computations)'!AJ227","v":"Sep 2012"},{"$f":"'(Intermediate Computations)'!AK227","v":"Oct 2012"},{"$f":"'(Intermediate Computations)'!AL227","v":"Nov 2012"},{"$f":"'(Intermediate Computations)'!AM227","v":"Dec 2012"},{"$f":"'(Intermediate Computations)'!AO227","v":"Jan 2013"},{"$f":"'(Intermediate Computations)'!AP227","v":"Feb 2013"},{"$f":"'(Intermediate Computations)'!AQ227","v":"Mar 2013"},{"$f":"'(Intermediate Computations)'!AR227","v":"Apr 2013"},{"$f":"'(Intermediate Computations)'!AS227","v":"May 2013"},{"$f":"'(Intermediate Computations)'!AT227","v":"Jun 2013"},{"$f":"'(Intermediate Computations)'!AU227","v":"Jul 2013"},{"$f":"'(Intermediate Computations)'!AV227","v":"Aug 2013"},{"$f":"'(Intermediate Computations)'!AW227","v":"Sep 2013"},{"$f":"'(Intermediate Computations)'!AX227","v":"Oct 2013"},{"$f":"'(Intermediate Computations)'!AY227","v":"Nov 2013"},{"$f":"'(Intermediate Computations)'!AZ227","v":"Dec 2013"},{"$f":"'(Intermediate Computations)'!BB227","v":"Jan 2014"},{"$f":"'(Intermediate Computations)'!BC227","v":"Feb 2014"},{"$f":"'(Intermediate Computations)'!BD227","v":"Mar 2014"},{"$f":"'(Intermediate Computations)'!BE227","v":"Apr 2014"},{"$f":"'(Intermediate Computations)'!BF227","v":"May 2014"},{"$f":"'(Intermediate Computations)'!BG227","v":"Jun 2014"},{"$f":"'(Intermediate Computations)'!BH227","v":"Jul 2014"},{"$f":"'(Intermediate Computations)'!BI227","v":"Aug 2014"},{"$f":"'(Intermediate Computations)'!BJ227","v":"Sep 2014"},{"$f":"'(Intermediate Computations)'!BK227","v":"Oct 2014"},{"$f":"'(Intermediate Computations)'!BL227","v":"Nov 2014"},{"$f":"'(Intermediate Computations)'!BM227","v":"Dec 2014"},{"$f":"'(Intermediate Computations)'!BO227","v":"Jan 2015"},{"$f":"'(Intermediate Computations)'!BP227","v":"Feb 2015"},{"$f":"'(Intermediate Computations)'!BQ227","v":"Mar 2015"},{"$f":"'(Intermediate Computations)'!BR227","v":"Apr 2015"},{"$f":"'(Intermediate Computations)'!BS227","v":"May 2015"},{"$f":"'(Intermediate Computations)'!BT227","v":"Jun 2015"},{"$f":"'(Intermediate Computations)'!BU227","v":"Jul 2015"},{"$f":"'(Intermediate Computations)'!BV227","v":"Aug 2015"},{"$f":"'(Intermediate Computations)'!BW227","v":"Sep 2015"},{"$f":"'(Intermediate Computations)'!BX227","v":"Oct 2015"},{"$f":"'(Intermediate Computations)'!BY227","v":"Nov 2015"},{"$f":"'(Intermediate Computations)'!BZ227","v":"Dec 2015"},{"$f":"'(Intermediate Computations)'!CB227","v":"Jan 2016"},{"$f":"'(Intermediate Computations)'!CC227","v":"Feb 2016"},{"$f":"'(Intermediate Computations)'!CD227","v":"Mar 2016"},{"$f":"'(Intermediate Computations)'!CE227","v":"Apr 2016"},{"$f":"'(Intermediate Computations)'!CF227","v":"May 2016"},{"$f":"'(Intermediate Computations)'!CG227","v":"Jun 2016"},{"$f":"'(Intermediate Computations)'!CH227","v":"Jul 2016"},{"$f":"'(Intermediate Computations)'!CI227","v":"Aug 2016"},{"$f":"'(Intermediate Computations)'!CJ227","v":"Sep 2016"},{"$f":"'(Intermediate Computations)'!CK227","v":"Oct 2016"},{"$f":"'(Intermediate Computations)'!CL227","v":"Nov 2016"},{"$f":"'(Intermediate Computations)'!CM227","v":"Dec 2016"},{"$f":"'(Intermediate Computations)'!CO227","v":"Jan 2017"},{"$f":"'(Intermediate Computations)'!CP227","v":"Feb 2017"},{"$f":"'(Intermediate Computations)'!CQ227","v":"Mar 2017"},{"$f":"'(Intermediate Computations)'!CR227","v":"Apr 2017"},{"$f":"'(Intermediate Computations)'!CS227","v":"May 2017"},{"$f":"'(Intermediate Computations)'!CT227","v":"Jun 2017"},{"$f":"'(Intermediate Computations)'!CU227","v":"Jul 2017"},{"$f":"'(Intermediate Computations)'!CV227","v":"Aug 2017"},{"$f":"'(Intermediate Computations)'!CW227","v":"Sep 2017"},{"$f":"'(Intermediate Computations)'!CX227","v":"Oct 2017"},{"$f":"'(Intermediate Computations)'!CY227","v":"Nov 2017"},{"$f":"'(Intermediate Computations)'!CZ227","v":"Dec 2017"},{"$f":"'(Intermediate Computations)'!DB227","v":"Jan 2018"},{"$f":"'(Intermediate Computations)'!DC227","v":"Feb 2018"},{"$f":"'(Intermediate Computations)'!DD227","v":"Mar 2018"},{"$f":"'(Intermediate Computations)'!DE227","v":"Apr 2018"},{"$f":"'(Intermediate Computations)'!DF227","v":"May 2018"},{"$f":"'(Intermediate Computations)'!DG227","v":"Jun 2018"},{"$f":"'(Intermediate Computations)'!DH227","v":"Jul 2018"},{"$f":"'(Intermediate Computations)'!DI227","v":"Aug 2018"},{"$f":"'(Intermediate Computations)'!DJ227","v":"Sep 2018"},{"$f":"'(Intermediate Computations)'!DK227","v":"Oct 2018"},{"$f":"'(Intermediate Computations)'!DL227","v":"Nov 2018"},{"$f":"'(Intermediate Computations)'!DM227","v":"Dec 2018"},{"$f":"'(Intermediate Computations)'!DO227","v":"Jan 2019"},{"$f":"'(Intermediate Computations)'!DP227","v":"Feb 2019"},{"$f":"'(Intermediate Computations)'!DQ227","v":"Mar 2019"},{"$f":"'(Intermediate Computations)'!DR227","v":"Apr 2019"},{"$f":"'(Intermediate Computations)'!DS227","v":"May 2019"},{"$f":"'(Intermediate Computations)'!DT227","v":"Jun 2019"},{"$f":"'(Intermediate Computations)'!DU227","v":"Jul 2019"},{"$f":"'(Intermediate Computations)'!DV227","v":"Aug 2019"},{"$f":"'(Intermediate Computations)'!DW227","v":"Sep 2019"},{"$f":"'(Intermediate Computations)'!DX227","v":"Oct 2019"},{"$f":"'(Intermediate Computations)'!DY227","v":"Nov 2019"},{"$f":"'(Intermediate Computations)'!DZ227","v":"Dec 2019"},{"$f":"'(Intermediate Computations)'!EB227","v":"Jan 2020"},{"$f":"'(Intermediate Computations)'!EC227","v":"Feb 2020"},{"$f":"'(Intermediate Computations)'!ED227","v":"Mar 2020"},{"$f":"'(Intermediate Computations)'!EE227","v":"Apr 2020"},{"$f":"'(Intermediate Computations)'!EF227","v":"May 2020"},{"$f":"'(Intermediate Computations)'!EG227","v":"Jun 2020"},{"$f":"'(Intermediate Computations)'!EH227","v":"Jul 2020"},{"$f":"'(Intermediate Computations)'!EI227","v":"Aug 2020"},{"$f":"'(Intermediate Computations)'!EJ227","v":"Sep 2020"},{"$f":"'(Intermediate Computations)'!EK227","v":"Oct 2020"},{"$f":"'(Intermediate Computations)'!EL227","v":"Nov 2020"},{"$f":"'(Intermediate Computations)'!EM227","v":"Dec 2020"}]
[{"$f":"'(Intermediate Computations)'!B224","v":"2010-01-01"},{"$f":"'(Intermediate Computations)'!C224","v":"2010-02-01"},{"$f":"'(Intermediate Computations)'!D224","v":"2010-03-01"},{"$f":"'(Intermediate Computations)'!E224","v":"2010-04-01"},{"$f":"'(Intermediate Computations)'!F224","v":"2010-05-01"},{"$f":"'(Intermediate Computations)'!G224","v":"2010-06-01"},{"$f":"'(Intermediate Computations)'!H224","v":"2010-07-01"},{"$f":"'(Intermediate Computations)'!I224","v":"2010-08-01"},{"$f":"'(Intermediate Computations)'!J224","v":"2010-09-01"},{"$f":"'(Intermediate Computations)'!K224","v":"2010-10-01"},{"$f":"'(Intermediate Computations)'!L224","v":"2010-11-01"},{"$f":"'(Intermediate Computations)'!M224","v":"2010-12-01"},{"$f":"'(Intermediate Computations)'!O224","v":"2011-01-01"},{"$f":"'(Intermediate Computations)'!P224","v":"2011-02-01"},{"$f":"'(Intermediate Computations)'!Q224","v":"2011-03-01"},{"$f":"'(Intermediate Computations)'!R224","v":"2011-04-01"},{"$f":"'(Intermediate Computations)'!S224","v":"2011-05-01"},{"$f":"'(Intermediate Computations)'!T224","v":"2011-06-01"},{"$f":"'(Intermediate Computations)'!U224","v":"2011-07-01"},{"$f":"'(Intermediate Computations)'!V224","v":"2011-08-01"},{"$f":"'(Intermediate Computations)'!W224","v":"2011-09-01"},{"$f":"'(Intermediate Computations)'!X224","v":"2011-10-01"},{"$f":"'(Intermediate Computations)'!Y224","v":"2011-11-01"},{"$f":"'(Intermediate Computations)'!Z224","v":"2011-12-01"},{"$f":"'(Intermediate Computations)'!AB224","v":"2012-01-01"},{"$f":"'(Intermediate Computations)'!AC224","v":"2012-02-01"},{"$f":"'(Intermediate Computations)'!AD224","v":"2012-03-01"},{"$f":"'(Intermediate Computations)'!AE224","v":"2012-04-01"},{"$f":"'(Intermediate Computations)'!AF224","v":"2012-05-01"},{"$f":"'(Intermediate Computations)'!AG224","v":"2012-06-01"},{"$f":"'(Intermediate Computations)'!AH224","v":"2012-07-01"},{"$f":"'(Intermediate Computations)'!AI224","v":"2012-08-01"},{"$f":"'(Intermediate Computations)'!AJ224","v":"2012-09-01"},{"$f":"'(Intermediate Computations)'!AK224","v":"2012-10-01"},{"$f":"'(Intermediate Computations)'!AL224","v":"2012-11-01"},{"$f":"'(Intermediate Computations)'!AM224","v":"2012-12-01"},{"$f":"'(Intermediate Computations)'!AO224","v":"2013-01-01"},{"$f":"'(Intermediate Computations)'!AP224","v":"2013-02-01"},{"$f":"'(Intermediate Computations)'!AQ224","v":"2013-03-01"},{"$f":"'(Intermediate Computations)'!AR224","v":"2013-04-01"},{"$f":"'(Intermediate Computations)'!AS224","v":"2013-05-01"},{"$f":"'(Intermediate Computations)'!AT224","v":"2013-06-01"},{"$f":"'(Intermediate Computations)'!AU224","v":"2013-07-01"},{"$f":"'(Intermediate Computations)'!AV224","v":"2013-08-01"},{"$f":"'(Intermediate Computations)'!AW224","v":"2013-09-01"},{"$f":"'(Intermediate Computations)'!AX224","v":"2013-10-01"},{"$f":"'(Intermediate Computations)'!AY224","v":"2013-11-01"},{"$f":"'(Intermediate Computations)'!AZ224","v":"2013-12-01"},{"$f":"'(Intermediate Computations)'!BB224","v":"2014-01-01"},{"$f":"'(Intermediate Computations)'!BC224","v":"2014-02-01"},{"$f":"'(Intermediate Computations)'!BD224","v":"2014-03-01"},{"$f":"'(Intermediate Computations)'!BE224","v":"2014-04-01"},{"$f":"'(Intermediate Computations)'!BF224","v":"2014-05-01"},{"$f":"'(Intermediate Computations)'!BG224","v":"2014-06-01"},{"$f":"'(Intermediate Computations)'!BH224","v":"2014-07-01"},{"$f":"'(Intermediate Computations)'!BI224","v":"2014-08-01"},{"$f":"'(Intermediate Computations)'!BJ224","v":"2014-09-01"},{"$f":"'(Intermediate Computations)'!BK224","v":"2014-10-01"},{"$f":"'(Intermediate Computations)'!BL224","v":"2014-11-01"},{"$f":"'(Intermediate Computations)'!BM224","v":"2014-12-01"},{"$f":"'(Intermediate Computations)'!BO224","v":"2015-01-01"},{"$f":"'(Intermediate Computations)'!BP224","v":"2015-02-01"},{"$f":"'(Intermediate Computations)'!BQ224","v":"2015-03-01"},{"$f":"'(Intermediate Computations)'!BR224","v":"2015-04-01"},{"$f":"'(Intermediate Computations)'!BS224","v":"2015-05-01"},{"$f":"'(Intermediate Computations)'!BT224","v":"2015-06-01"},{"$f":"'(Intermediate Computations)'!BU224","v":"2015-07-01"},{"$f":"'(Intermediate Computations)'!BV224","v":"2015-08-01"},{"$f":"'(Intermediate Computations)'!BW224","v":"2015-09-01"},{"$f":"'(Intermediate Computations)'!BX224","v":"2015-10-01"},{"$f":"'(Intermediate Computations)'!BY224","v":"2015-11-01"},{"$f":"'(Intermediate Computations)'!BZ224","v":"2015-12-01"},{"$f":"'(Intermediate Computations)'!CB224","v":"2016-01-01"},{"$f":"'(Intermediate Computations)'!CC224","v":"2016-02-01"},{"$f":"'(Intermediate Computations)'!CD224","v":"2016-03-01"},{"$f":"'(Intermediate Computations)'!CE224","v":"2016-04-01"},{"$f":"'(Intermediate Computations)'!CF224","v":"2016-05-01"},{"$f":"'(Intermediate Computations)'!CG224","v":"2016-06-01"},{"$f":"'(Intermediate Computations)'!CH224","v":"2016-07-01"},{"$f":"'(Intermediate Computations)'!CI224","v":"2016-08-01"},{"$f":"'(Intermediate Computations)'!CJ224","v":"2016-09-01"},{"$f":"'(Intermediate Computations)'!CK224","v":"2016-10-01"},{"$f":"'(Intermediate Computations)'!CL224","v":"2016-11-01"},{"$f":"'(Intermediate Computations)'!CM224","v":"2016-12-01"},{"$f":"'(Intermediate Computations)'!CO224","v":"2017-01-01"},{"$f":"'(Intermediate Computations)'!CP224","v":"2017-02-01"},{"$f":"'(Intermediate Computations)'!CQ224","v":"2017-03-01"},{"$f":"'(Intermediate Computations)'!CR224","v":"2017-04-01"},{"$f":"'(Intermediate Computations)'!CS224","v":"2017-05-01"},{"$f":"'(Intermediate Computations)'!CT224","v":"2017-06-01"},{"$f":"'(Intermediate Computations)'!CU224","v":"2017-07-01"},{"$f":"'(Intermediate Computations)'!CV224","v":"2017-08-01"},{"$f":"'(Intermediate Computations)'!CW224","v":"2017-09-01"},{"$f":"'(Intermediate Computations)'!CX224","v":"2017-10-01"},{"$f":"'(Intermediate Computations)'!CY224","v":"2017-11-01"},{"$f":"'(Intermediate Computations)'!CZ224","v":"2017-12-01"},{"$f":"'(Intermediate Computations)'!DB224","v":"2018-01-01"},{"$f":"'(Intermediate Computations)'!DC224","v":"2018-02-01"},{"$f":"'(Intermediate Computations)'!DD224","v":"2018-03-01"},{"$f":"'(Intermediate Computations)'!DE224","v":"2018-04-01"},{"$f":"'(Intermediate Computations)'!DF224","v":"2018-05-01"},{"$f":"'(Intermediate Computations)'!DG224","v":"2018-06-01"},{"$f":"'(Intermediate Computations)'!DH224","v":"2018-07-01"},{"$f":"'(Intermediate Computations)'!DI224","v":"2018-08-01"},{"$f":"'(Intermediate Computations)'!DJ224","v":"2018-09-01"},{"$f":"'(Intermediate Computations)'!DK224","v":"2018-10-01"},{"$f":"'(Intermediate Computations)'!DL224","v":"2018-11-01"},{"$f":"'(Intermediate Computations)'!DM224","v":"2018-12-01"},{"$f":"'(Intermediate Computations)'!DO224","v":"2019-01-01"},{"$f":"'(Intermediate Computations)'!DP224","v":"2019-02-01"},{"$f":"'(Intermediate Computations)'!DQ224","v":"2019-03-01"},{"$f":"'(Intermediate Computations)'!DR224","v":"2019-04-01"},{"$f":"'(Intermediate Computations)'!DS224","v":"2019-05-01"},{"$f":"'(Intermediate Computations)'!DT224","v":"2019-06-01"},{"$f":"'(Intermediate Computations)'!DU224","v":"2019-07-01"},{"$f":"'(Intermediate Computations)'!DV224","v":"2019-08-01"},{"$f":"'(Intermediate Computations)'!DW224","v":"2019-09-01"},{"$f":"'(Intermediate Computations)'!DX224","v":"2019-10-01"},{"$f":"'(Intermediate Computations)'!DY224","v":"2019-11-01"},{"$f":"'(Intermediate Computations)'!DZ224","v":"2019-12-01"},{"$f":"'(Intermediate Computations)'!EB224","v":"2020-01-01"},{"$f":"'(Intermediate Computations)'!EC224","v":"2020-02-01"},{"$f":"'(Intermediate Computations)'!ED224","v":"2020-03-01"},{"$f":"'(Intermediate Computations)'!EE224","v":"2020-04-01"},{"$f":"'(Intermediate Computations)'!EF224","v":"2020-05-01"},{"$f":"'(Intermediate Computations)'!EG224","v":"2020-06-01"},{"$f":"'(Intermediate Computations)'!EH224","v":"2020-07-01"},{"$f":"'(Intermediate Computations)'!EI224","v":"2020-08-01"},{"$f":"'(Intermediate Computations)'!EJ224","v":"2020-09-01"},{"$f":"'(Intermediate Computations)'!EK224","v":"2020-10-01"},{"$f":"'(Intermediate Computations)'!EL224","v":"2020-11-01"},{"$f":"'(Intermediate Computations)'!EM224","v":"2020-12-01"}]
[{"$f":"'Statistical Moments'!B64","v":{"v":1166666.6666666667,"d":"$1,166,667"}},{"$f":"'Statistical Moments'!C64","v":{"v":1166666.6666666667,"d":"$1,166,667"}},{"$f":"'Statistical Moments'!D64","v":{"v":1166621.37837913,"d":"$1,166,621"}},{"$f":"'Statistical Moments'!E64","v":{"v":1166535.044041092,"d":"$1,166,535"}},{"$f":"'Statistical Moments'!F64","v":{"v":1166412.6555998365,"d":"$1,166,413"}},{"$f":"'Statistical Moments'!G64","v":{"v":1166256.8182448721,"d":"$1,166,257"}},{"$f":"'Statistical Moments'!H64","v":{"v":1166070.5225373115,"d":"$1,166,071"}},{"$f":"'Statistical Moments'!I64","v":{"v":1165852.01787095,"d":"$1,165,852"}},{"$f":"'Statistical Moments'!J64","v":{"v":1165598.6703948225,"d":"$1,165,599"}},{"$f":"'Statistical Moments'!K64","v":{"v":1165313.2260320869,"d":"$1,165,313"}},{"$f":"'Statistical Moments'!L64","v":{"v":1164996.9429274949,"d":"$1,164,997"}},{"$f":"'Statistical Moments'!M64","v":{"v":1164650.777471938,"d":"$1,164,651"}},{"$f":"'Statistical Moments'!O64","v":{"v":1164275.232072961,"d":"$1,164,275"}},{"$f":"'Statistical Moments'!P64","v":{"v":1163870.0176627093,"d":"$1,163,870"}},{"$f":"'Statistical Moments'!Q64","v":{"v":1163438.32210435,"d":"$1,163,438"}},{"$f":"'Statistical Moments'!R64","v":{"v":1162980.3187172767,"d":"$1,162,980"}},{"$f":"'Statistical Moments'!S64","v":{"v":1162497.716334135,"d":"$1,162,498"}},{"$f":"'Statistical Moments'!T64","v":{"v":1161992.1991568855,"d":"$1,161,992"}},{"$f":"'Statistical Moments'!U64","v":{"v":1161456.855822748,"d":"$1,161,457"}},{"$f":"'Statistical Moments'!V64","v":{"v":1160899.1356113895,"d":"$1,160,899"}},{"$f":"'Statistical Moments'!W64","v":{"v":1160315.1975825094,"d":"$1,160,315"}},{"$f":"'Statistical Moments'!X64","v":{"v":1159706.4329539072,"d":"$1,159,706"}},{"$f":"'Statistical Moments'!Y64","v":{"v":1159079.0275352944,"d":"$1,159,079"}},{"$f":"'Statistical Moments'!Z64","v":{"v":1158429.3091423227,"d":"$1,158,429"}},{"$f":"'Statistical Moments'!AB64","v":{"v":1157758.4033603612,"d":"$1,157,758"}},{"$f":"'Statistical Moments'!AC64","v":{"v":1157062.695552829,"d":"$1,157,063"}},{"$f":"'Statistical Moments'!AD64","v":{"v":1156348.0038761464,"d":"$1,156,348"}},{"$f":"'Statistical Moments'!AE64","v":{"v":1155616.9101870607,"d":"$1,155,617"}},{"$f":"'Statistical Moments'!AF64","v":{"v":1154868.5842499633,"d":"$1,154,869"}},{"$f":"'Statistical Moments'!AG64","v":{"v":1154103.0037373574,"d":"$1,154,103"}},{"$f":"'Statistical Moments'!AH64","v":{"v":1153317.5793788945,"d":"$1,153,318"}},{"$f":"'Statistical Moments'!AI64","v":{"v":1152517.4594529674,"d":"$1,152,517"}},{"$f":"'Statistical Moments'!AJ64","v":{"v":1151705.0202469807,"d":"$1,151,705"}},{"$f":"'Statistical Moments'!AK64","v":{"v":1150874.1947532527,"d":"$1,150,874"}},{"$f":"'Statistical Moments'!AL64","v":{"v":1150029.5911350686,"d":"$1,150,030"}},{"$f":"'Statistical Moments'!AM64","v":{"v":1149172.624437654,"d":"$1,149,173"}},{"$f":"'Statistical Moments'!AO64","v":{"v":1148304.4965910306,"d":"$1,148,304"}},{"$f":"'Statistical Moments'!AP64","v":{"v":1147421.5006055604,"d":"$1,147,422"}},{"$f":"'Statistical Moments'!AQ64","v":{"v":1146526.4297849294,"d":"$1,146,526"}},{"$f":"'Statistical Moments'!AR64","v":{"v":1145622.2722052778,"d":"$1,145,622"}},{"$f":"'Statistical Moments'!AS64","v":{"v":1144704.8236269574,"d":"$1,144,705"}},{"$f":"'Statistical Moments'!AT64","v":{"v":1143776.1903509395,"d":"$1,143,776"}},{"$f":"'Statistical Moments'!AU64","v":{"v":1142839.456515132,"d":"$1,142,839"}},{"$f":"'Statistical Moments'!AV64","v":{"v":1141892.4049065895,"d":"$1,141,892"}},{"$f":"'Statistical Moments'!AW64","v":{"v":1140934.728283146,"d":"$1,140,935"}},{"$f":"'Statistical Moments'!AX64","v":{"v":1139968.1060601617,"d":"$1,139,968"}},{"$f":"'Statistical Moments'!AY64","v":{"v":1138990.0791129563,"d":"$1,138,990"}},{"$f":"'Statistical Moments'!AZ64","v":{"v":1138002.804578253,"d":"$1,138,003"}},{"$f":"'Statistical Moments'!BB64","v":{"v":1137007.9154118071,"d":"$1,137,008"}},{"$f":"'Statistical Moments'!BC64","v":{"v":1136002.1464735006,"d":"$1,136,002"}},{"$f":"'Statistical Moments'!BD64","v":{"v":1134986.4115544965,"d":"$1,134,986"}},{"$f":"'Statistical Moments'!BE64","v":{"v":1133963.0967024455,"d":"$1,133,963"}},{"$f":"'Statistical Moments'!BF64","v":{"v":1132933.410892067,"d":"$1,132,933"}},{"$f":"'Statistical Moments'!BG64","v":{"v":1131896.8962961996,"d":"$1,131,897"}},{"$f":"'Statistical Moments'!BH64","v":{"v":1130855.597060017,"d":"$1,130,856"}},{"$f":"'Statistical Moments'!BI64","v":{"v":1129809.7998983152,"d":"$1,129,810"}},{"$f":"'Statistical Moments'!BJ64","v":{"v":1128755.8339442373,"d":"$1,128,756"}},{"$f":"'Statistical Moments'!BK64","v":{"v":1127695.7142483715,"d":"$1,127,696"}},{"$f":"'Statistical Moments'!BL64","v":{"v":1126632.5111690902,"d":"$1,126,633"}},{"$f":"'Statistical Moments'!BM64","v":{"v":1125564.2606005038,"d":"$1,125,564"}},{"$f":"'Statistical Moments'!BO64","v":{"v":1124493.5353837013,"d":"$1,124,494"}},{"$f":"'Statistical Moments'!BP64","v":{"v":1123418.657410862,"d":"$1,123,419"}},{"$f":"'Statistical Moments'!BQ64","v":{"v":1122339.689120129,"d":"$1,122,340"}},{"$f":"'Statistical Moments'!BR64","v":{"v":1121258.1659467854,"d":"$1,121,258"}},{"$f":"'Statistical Moments'!BS64","v":{"v":1120176.4120247413,"d":"$1,120,176"}},{"$f":"'Statistical Moments'!BT64","v":{"v":1119093.9157793752,"d":"$1,119,094"}},{"$f":"'Statistical Moments'!BU64","v":{"v":1118007.5072458822,"d":"$1,118,008"}},{"$f":"'Statistical Moments'!BV64","v":{"v":1116922.5225283252,"d":"$1,116,923"}},{"$f":"'Statistical Moments'!BW64","v":{"v":1115833.7124529749,"d":"$1,115,834"}},{"$f":"'Statistical Moments'!BX64","v":{"v":1114742.6326753611,"d":"$1,114,743"}},{"$f":"'Statistical Moments'!BY64","v":{"v":1113652.821786778,"d":"$1,113,653"}},{"$f":"'Statistical Moments'!BZ64","v":{"v":1112559.6083128823,"d":"$1,112,560"}},{"$f":"'Statistical Moments'!CB64","v":{"v":1111467.5293314354,"d":"$1,111,468"}},{"$f":"'Statistical Moments'!CC64","v":{"v":1110374.5763440272,"d":"$1,110,375"}},{"$f":"'Statistical Moments'!CD64","v":{"v":1109280.292387057,"d":"$1,109,280"}},{"$f":"'Statistical Moments'!CE64","v":{"v":1108184.4346770612,"d":"$1,108,184"}},{"$f":"'Statistical Moments'!CF64","v":{"v":1107089.513596755,"d":"$1,107,090"}},{"$f":"'Statistical Moments'!CG64","v":{"v":1105992.1446072338,"d":"$1,105,992"}},{"$f":"'Statistical Moments'!CH64","v":{"v":1104894.3640284906,"d":"$1,104,894"}},{"$f":"'Statistical Moments'!CI64","v":{"v":1103802.1555117776,"d":"$1,103,802"}},{"$f":"'Statistical Moments'!CJ64","v":{"v":1102710.790595593,"d":"$1,102,711"}},{"$f":"'Statistical Moments'!CK64","v":{"v":1101621.5472619294,"d":"$1,101,622"}},{"$f":"'Statistical Moments'!CL64","v":{"v":1100533.6940510795,"d":"$1,100,534"}},{"$f":"'Statistical Moments'!CM64","v":{"v":1099450.0555759193,"d":"$1,099,450"}},{"$f":"'Statistical Moments'!CO64","v":{"v":1098366.4962361264,"d":"$1,098,366"}},{"$f":"'Statistical Moments'!CP64","v":{"v":1097286.8713281825,"d":"$1,097,287"}},{"$f":"'Statistical Moments'!CQ64","v":{"v":1096209.5199027753,"d":"$1,096,210"}},{"$f":"'Statistical Moments'!CR64","v":{"v":1095134.6776662152,"d":"$1,095,135"}},{"$f":"'Statistical Moments'!CS64","v":{"v":1094062.1221812165,"d":"$1,094,062"}},{"$f":"'Statistical Moments'!CT64","v":{"v":1092990.7924487346,"d":"$1,092,991"}},{"$f":"'Statistical Moments'!CU64","v":{"v":1091916.3848691885,"d":"$1,091,916"}},{"$f":"'Statistical Moments'!CV64","v":{"v":1090841.2002258254,"d":"$1,090,841"}},{"$f":"'Statistical Moments'!CW64","v":{"v":1089772.2230604086,"d":"$1,089,772"}},{"$f":"'Statistical Moments'!CX64","v":{"v":1088703.9748792974,"d":"$1,088,704"}},{"$f":"'Statistical Moments'!CY64","v":{"v":1087636.9779095028,"d":"$1,087,637"}},{"$f":"'Statistical Moments'!CZ64","v":{"v":1086570.4966298812,"d":"$1,086,570"}},{"$f":"'Statistical Moments'!DB64","v":{"v":1085507.3223032958,"d":"$1,085,507"}},{"$f":"'Statistical Moments'!DC64","v":{"v":1084445.1826982815,"d":"$1,084,445"}},{"$f":"'Statistical Moments'!DD64","v":{"v":1083386.9626313227,"d":"$1,083,387"}},{"$f":"'Statistical Moments'!DE64","v":{"v":1082328.3939435205,"d":"$1,082,328"}},{"$f":"'Statistical Moments'!DF64","v":{"v":1081271.0459358008,"d":"$1,081,271"}},{"$f":"'Statistical Moments'!DG64","v":{"v":1080217.400415312,"d":"$1,080,217"}},{"$f":"'Statistical Moments'!DH64","v":{"v":1079166.036724349,"d":"$1,079,166"}},{"$f":"'Statistical Moments'!DI64","v":{"v":1078116.3898743235,"d":"$1,078,116"}},{"$f":"'Statistical Moments'!DJ64","v":{"v":1077068.117855563,"d":"$1,077,068"}},{"$f":"'Statistical Moments'!DK64","v":{"v":1076020.67494709,"d":"$1,076,021"}},{"$f":"'Statistical Moments'!DL64","v":{"v":1074975.9094295641,"d":"$1,074,976"}},{"$f":"'Statistical Moments'!DM64","v":{"v":1073933.4195251553,"d":"$1,073,933"}},{"$f":"'Statistical Moments'!DO64","v":{"v":1072891.8228627068,"d":"$1,072,892"}},{"$f":"'Statistical Moments'!DP64","v":{"v":1071851.8455536813,"d":"$1,071,852"}},{"$f":"'Statistical Moments'!DQ64","v":{"v":1070816.8468901848,"d":"$1,070,817"}},{"$f":"'Statistical Moments'!DR64","v":{"v":1069783.645036544,"d":"$1,069,784"}},{"$f":"'Statistical Moments'!DS64","v":{"v":1068756.4916289267,"d":"$1,068,756"}},{"$f":"'Statistical Moments'!DT64","v":{"v":1067732.878420567,"d":"$1,067,733"}},{"$f":"'Statistical Moments'!DU64","v":{"v":1066712.5078797368,"d":"$1,066,713"}},{"$f":"'Statistical Moments'!DV64","v":{"v":1065698.015359618,"d":"$1,065,698"}},{"$f":"'Statistical Moments'!DW64","v":{"v":1064687.659007265,"d":"$1,064,688"}},{"$f":"'Statistical Moments'!DX64","v":{"v":1063682.2128787334,"d":"$1,063,682"}},{"$f":"'Statistical Moments'!DY64","v":{"v":1062680.5505307298,"d":"$1,062,681"}},{"$f":"'Statistical Moments'!DZ64","v":{"v":1061682.27789173,"d":"$1,061,682"}},{"$f":"'Statistical Moments'!EB64","v":{"v":1060687.6599623135,"d":"$1,060,688"}},{"$f":"'Statistical Moments'!EC64","v":{"v":1059693.3164808638,"d":"$1,059,693"}},{"$f":"'Statistical Moments'!ED64","v":{"v":1058703.6769062513,"d":"$1,058,704"}},{"$f":"'Statistical Moments'!EE64","v":{"v":1057714.7689094036,"d":"$1,057,715"}},{"$f":"'Statistical Moments'!EF64","v":{"v":1056727.905348257,"d":"$1,056,728"}},{"$f":"'Statistical Moments'!EG64","v":{"v":1055744.9893767512,"d":"$1,055,745"}},{"$f":"'Statistical Moments'!EH64","v":{"v":1054766.3902333812,"d":"$1,054,766"}},{"$f":"'Statistical Moments'!EI64","v":{"v":1053789.3677036404,"d":"$1,053,789"}},{"$f":"'Statistical Moments'!EJ64","v":{"v":1052814.8399381586,"d":"$1,052,815"}},{"$f":"'Statistical Moments'!EK64","v":{"v":1051839.1509220735,"d":"$1,051,839"}},{"$f":"'Statistical Moments'!EL64","v":{"v":1050866.2223126153,"d":"$1,050,866"}},{"$f":"'Statistical Moments'!EM64","v":{"v":1049898.3051935695,"d":"$1,049,898"}}]
[{"$f":"'(Intermediate Computations)'!B233","v":"Jan 2010"},{"$f":"'(Intermediate Computations)'!C233","v":"Feb 2010"},{"$f":"'(Intermediate Computations)'!D233","v":"Mar 2010"},{"$f":"'(Intermediate Computations)'!E233","v":"Apr 2010"},{"$f":"'(Intermediate Computations)'!F233","v":"May 2010"},{"$f":"'(Intermediate Computations)'!G233","v":"Jun 2010"},{"$f":"'(Intermediate Computations)'!H233","v":"Jul 2010"},{"$f":"'(Intermediate Computations)'!I233","v":"Aug 2010"},{"$f":"'(Intermediate Computations)'!J233","v":"Sep 2010"},{"$f":"'(Intermediate Computations)'!K233","v":"Oct 2010"},{"$f":"'(Intermediate Computations)'!L233","v":"Nov 2010"},{"$f":"'(Intermediate Computations)'!M233","v":"Dec 2010"},{"$f":"'(Intermediate Computations)'!O233","v":"Jan 2011"},{"$f":"'(Intermediate Computations)'!P233","v":"Feb 2011"},{"$f":"'(Intermediate Computations)'!Q233","v":"Mar 2011"},{"$f":"'(Intermediate Computations)'!R233","v":"Apr 2011"},{"$f":"'(Intermediate Computations)'!S233","v":"May 2011"},{"$f":"'(Intermediate Computations)'!T233","v":"Jun 2011"},{"$f":"'(Intermediate Computations)'!U233","v":"Jul 2011"},{"$f":"'(Intermediate Computations)'!V233","v":"Aug 2011"},{"$f":"'(Intermediate Computations)'!W233","v":"Sep 2011"},{"$f":"'(Intermediate Computations)'!X233","v":"Oct 2011"},{"$f":"'(Intermediate Computations)'!Y233","v":"Nov 2011"},{"$f":"'(Intermediate Computations)'!Z233","v":"Dec 2011"},{"$f":"'(Intermediate Computations)'!AB233","v":"Jan 2012"},{"$f":"'(Intermediate Computations)'!AC233","v":"Feb 2012"},{"$f":"'(Intermediate Computations)'!AD233","v":"Mar 2012"},{"$f":"'(Intermediate Computations)'!AE233","v":"Apr 2012"},{"$f":"'(Intermediate Computations)'!AF233","v":"May 2012"},{"$f":"'(Intermediate Computations)'!AG233","v":"Jun 2012"},{"$f":"'(Intermediate Computations)'!AH233","v":"Jul 2012"},{"$f":"'(Intermediate Computations)'!AI233","v":"Aug 2012"},{"$f":"'(Intermediate Computations)'!AJ233","v":"Sep 2012"},{"$f":"'(Intermediate Computations)'!AK233","v":"Oct 2012"},{"$f":"'(Intermediate Computations)'!AL233","v":"Nov 2012"},{"$f":"'(Intermediate Computations)'!AM233","v":"Dec 2012"},{"$f":"'(Intermediate Computations)'!AO233","v":"Jan 2013"},{"$f":"'(Intermediate Computations)'!AP233","v":"Feb 2013"},{"$f":"'(Intermediate Computations)'!AQ233","v":"Mar 2013"},{"$f":"'(Intermediate Computations)'!AR233","v":"Apr 2013"},{"$f":"'(Intermediate Computations)'!AS233","v":"May 2013"},{"$f":"'(Intermediate Computations)'!AT233","v":"Jun 2013"},{"$f":"'(Intermediate Computations)'!AU233","v":"Jul 2013"},{"$f":"'(Intermediate Computations)'!AV233","v":"Aug 2013"},{"$f":"'(Intermediate Computations)'!AW233","v":"Sep 2013"},{"$f":"'(Intermediate Computations)'!AX233","v":"Oct 2013"},{"$f":"'(Intermediate Computations)'!AY233","v":"Nov 2013"},{"$f":"'(Intermediate Computations)'!AZ233","v":"Dec 2013"},{"$f":"'(Intermediate Computations)'!BB233","v":"Jan 2014"},{"$f":"'(Intermediate Computations)'!BC233","v":"Feb 2014"},{"$f":"'(Intermediate Computations)'!BD233","v":"Mar 2014"},{"$f":"'(Intermediate Computations)'!BE233","v":"Apr 2014"},{"$f":"'(Intermediate Computations)'!BF233","v":"May 2014"},{"$f":"'(Intermediate Computations)'!BG233","v":"Jun 2014"},{"$f":"'(Intermediate Computations)'!BH233","v":"Jul 2014"},{"$f":"'(Intermediate Computations)'!BI233","v":"Aug 2014"},{"$f":"'(Intermediate Computations)'!BJ233","v":"Sep 2014"},{"$f":"'(Intermediate Computations)'!BK233","v":"Oct 2014"},{"$f":"'(Intermediate Computations)'!BL233","v":"Nov 2014"},{"$f":"'(Intermediate Computations)'!BM233","v":"Dec 2014"},{"$f":"'(Intermediate Computations)'!BO233","v":"Jan 2015"},{"$f":"'(Intermediate Computations)'!BP233","v":"Feb 2015"},{"$f":"'(Intermediate Computations)'!BQ233","v":"Mar 2015"},{"$f":"'(Intermediate Computations)'!BR233","v":"Apr 2015"},{"$f":"'(Intermediate Computations)'!BS233","v":"May 2015"},{"$f":"'(Intermediate Computations)'!BT233","v":"Jun 2015"},{"$f":"'(Intermediate Computations)'!BU233","v":"Jul 2015"},{"$f":"'(Intermediate Computations)'!BV233","v":"Aug 2015"},{"$f":"'(Intermediate Computations)'!BW233","v":"Sep 2015"},{"$f":"'(Intermediate Computations)'!BX233","v":"Oct 2015"},{"$f":"'(Intermediate Computations)'!BY233","v":"Nov 2015"},{"$f":"'(Intermediate Computations)'!BZ233","v":"Dec 2015"},{"$f":"'(Intermediate Computations)'!CB233","v":"Jan 2016"},{"$f":"'(Intermediate Computations)'!CC233","v":"Feb 2016"},{"$f":"'(Intermediate Computations)'!CD233","v":"Mar 2016"},{"$f":"'(Intermediate Computations)'!CE233","v":"Apr 2016"},{"$f":"'(Intermediate Computations)'!CF233","v":"May 2016"},{"$f":"'(Intermediate Computations)'!CG233","v":"Jun 2016"},{"$f":"'(Intermediate Computations)'!CH233","v":"Jul 2016"},{"$f":"'(Intermediate Computations)'!CI233","v":"Aug 2016"},{"$f":"'(Intermediate Computations)'!CJ233","v":"Sep 2016"},{"$f":"'(Intermediate Computations)'!CK233","v":"Oct 2016"},{"$f":"'(Intermediate Computations)'!CL233","v":"Nov 2016"},{"$f":"'(Intermediate Computations)'!CM233","v":"Dec 2016"},{"$f":"'(Intermediate Computations)'!CO233","v":"Jan 2017"},{"$f":"'(Intermediate Computations)'!CP233","v":"Feb 2017"},{"$f":"'(Intermediate Computations)'!CQ233","v":"Mar 2017"},{"$f":"'(Intermediate Computations)'!CR233","v":"Apr 2017"},{"$f":"'(Intermediate Computations)'!CS233","v":"May 2017"},{"$f":"'(Intermediate Computations)'!CT233","v":"Jun 2017"},{"$f":"'(Intermediate Computations)'!CU233","v":"Jul 2017"},{"$f":"'(Intermediate Computations)'!CV233","v":"Aug 2017"},{"$f":"'(Intermediate Computations)'!CW233","v":"Sep 2017"},{"$f":"'(Intermediate Computations)'!CX233","v":"Oct 2017"},{"$f":"'(Intermediate Computations)'!CY233","v":"Nov 2017"},{"$f":"'(Intermediate Computations)'!CZ233","v":"Dec 2017"},{"$f":"'(Intermediate Computations)'!DB233","v":"Jan 2018"},{"$f":"'(Intermediate Computations)'!DC233","v":"Feb 2018"},{"$f":"'(Intermediate Computations)'!DD233","v":"Mar 2018"},{"$f":"'(Intermediate Computations)'!DE233","v":"Apr 2018"},{"$f":"'(Intermediate Computations)'!DF233","v":"May 2018"},{"$f":"'(Intermediate Computations)'!DG233","v":"Jun 2018"},{"$f":"'(Intermediate Computations)'!DH233","v":"Jul 2018"},{"$f":"'(Intermediate Computations)'!DI233","v":"Aug 2018"},{"$f":"'(Intermediate Computations)'!DJ233","v":"Sep 2018"},{"$f":"'(Intermediate Computations)'!DK233","v":"Oct 2018"},{"$f":"'(Intermediate Computations)'!DL233","v":"Nov 2018"},{"$f":"'(Intermediate Computations)'!DM233","v":"Dec 2018"},{"$f":"'(Intermediate Computations)'!DO233","v":"Jan 2019"},{"$f":"'(Intermediate Computations)'!DP233","v":"Feb 2019"},{"$f":"'(Intermediate Computations)'!DQ233","v":"Mar 2019"},{"$f":"'(Intermediate Computations)'!DR233","v":"Apr 2019"},{"$f":"'(Intermediate Computations)'!DS233","v":"May 2019"},{"$f":"'(Intermediate Computations)'!DT233","v":"Jun 2019"},{"$f":"'(Intermediate Computations)'!DU233","v":"Jul 2019"},{"$f":"'(Intermediate Computations)'!DV233","v":"Aug 2019"},{"$f":"'(Intermediate Computations)'!DW233","v":"Sep 2019"},{"$f":"'(Intermediate Computations)'!DX233","v":"Oct 2019"},{"$f":"'(Intermediate Computations)'!DY233","v":"Nov 2019"},{"$f":"'(Intermediate Computations)'!DZ233","v":"Dec 2019"},{"$f":"'(Intermediate Computations)'!EB233","v":"Jan 2020"},{"$f":"'(Intermediate Computations)'!EC233","v":"Feb 2020"},{"$f":"'(Intermediate Computations)'!ED233","v":"Mar 2020"},{"$f":"'(Intermediate Computations)'!EE233","v":"Apr 2020"},{"$f":"'(Intermediate Computations)'!EF233","v":"May 2020"},{"$f":"'(Intermediate Computations)'!EG233","v":"Jun 2020"},{"$f":"'(Intermediate Computations)'!EH233","v":"Jul 2020"},{"$f":"'(Intermediate Computations)'!EI233","v":"Aug 2020"},{"$f":"'(Intermediate Computations)'!EJ233","v":"Sep 2020"},{"$f":"'(Intermediate Computations)'!EK233","v":"Oct 2020"},{"$f":"'(Intermediate Computations)'!EL233","v":"Nov 2020"},{"$f":"'(Intermediate Computations)'!EM233","v":"Dec 2020"}]
[{"$f":"'(Intermediate Computations)'!B230","v":"2010-01-01"},{"$f":"'(Intermediate Computations)'!C230","v":"2010-02-01"},{"$f":"'(Intermediate Computations)'!D230","v":"2010-03-01"},{"$f":"'(Intermediate Computations)'!E230","v":"2010-04-01"},{"$f":"'(Intermediate Computations)'!F230","v":"2010-05-01"},{"$f":"'(Intermediate Computations)'!G230","v":"2010-06-01"},{"$f":"'(Intermediate Computations)'!H230","v":"2010-07-01"},{"$f":"'(Intermediate Computations)'!I230","v":"2010-08-01"},{"$f":"'(Intermediate Computations)'!J230","v":"2010-09-01"},{"$f":"'(Intermediate Computations)'!K230","v":"2010-10-01"},{"$f":"'(Intermediate Computations)'!L230","v":"2010-11-01"},{"$f":"'(Intermediate Computations)'!M230","v":"2010-12-01"},{"$f":"'(Intermediate Computations)'!O230","v":"2011-01-01"},{"$f":"'(Intermediate Computations)'!P230","v":"2011-02-01"},{"$f":"'(Intermediate Computations)'!Q230","v":"2011-03-01"},{"$f":"'(Intermediate Computations)'!R230","v":"2011-04-01"},{"$f":"'(Intermediate Computations)'!S230","v":"2011-05-01"},{"$f":"'(Intermediate Computations)'!T230","v":"2011-06-01"},{"$f":"'(Intermediate Computations)'!U230","v":"2011-07-01"},{"$f":"'(Intermediate Computations)'!V230","v":"2011-08-01"},{"$f":"'(Intermediate Computations)'!W230","v":"2011-09-01"},{"$f":"'(Intermediate Computations)'!X230","v":"2011-10-01"},{"$f":"'(Intermediate Computations)'!Y230","v":"2011-11-01"},{"$f":"'(Intermediate Computations)'!Z230","v":"2011-12-01"},{"$f":"'(Intermediate Computations)'!AB230","v":"2012-01-01"},{"$f":"'(Intermediate Computations)'!AC230","v":"2012-02-01"},{"$f":"'(Intermediate Computations)'!AD230","v":"2012-03-01"},{"$f":"'(Intermediate Computations)'!AE230","v":"2012-04-01"},{"$f":"'(Intermediate Computations)'!AF230","v":"2012-05-01"},{"$f":"'(Intermediate Computations)'!AG230","v":"2012-06-01"},{"$f":"'(Intermediate Computations)'!AH230","v":"2012-07-01"},{"$f":"'(Intermediate Computations)'!AI230","v":"2012-08-01"},{"$f":"'(Intermediate Computations)'!AJ230","v":"2012-09-01"},{"$f":"'(Intermediate Computations)'!AK230","v":"2012-10-01"},{"$f":"'(Intermediate Computations)'!AL230","v":"2012-11-01"},{"$f":"'(Intermediate Computations)'!AM230","v":"2012-12-01"},{"$f":"'(Intermediate Computations)'!AO230","v":"2013-01-01"},{"$f":"'(Intermediate Computations)'!AP230","v":"2013-02-01"},{"$f":"'(Intermediate Computations)'!AQ230","v":"2013-03-01"},{"$f":"'(Intermediate Computations)'!AR230","v":"2013-04-01"},{"$f":"'(Intermediate Computations)'!AS230","v":"2013-05-01"},{"$f":"'(Intermediate Computations)'!AT230","v":"2013-06-01"},{"$f":"'(Intermediate Computations)'!AU230","v":"2013-07-01"},{"$f":"'(Intermediate Computations)'!AV230","v":"2013-08-01"},{"$f":"'(Intermediate Computations)'!AW230","v":"2013-09-01"},{"$f":"'(Intermediate Computations)'!AX230","v":"2013-10-01"},{"$f":"'(Intermediate Computations)'!AY230","v":"2013-11-01"},{"$f":"'(Intermediate Computations)'!AZ230","v":"2013-12-01"},{"$f":"'(Intermediate Computations)'!BB230","v":"2014-01-01"},{"$f":"'(Intermediate Computations)'!BC230","v":"2014-02-01"},{"$f":"'(Intermediate Computations)'!BD230","v":"2014-03-01"},{"$f":"'(Intermediate Computations)'!BE230","v":"2014-04-01"},{"$f":"'(Intermediate Computations)'!BF230","v":"2014-05-01"},{"$f":"'(Intermediate Computations)'!BG230","v":"2014-06-01"},{"$f":"'(Intermediate Computations)'!BH230","v":"2014-07-01"},{"$f":"'(Intermediate Computations)'!BI230","v":"2014-08-01"},{"$f":"'(Intermediate Computations)'!BJ230","v":"2014-09-01"},{"$f":"'(Intermediate Computations)'!BK230","v":"2014-10-01"},{"$f":"'(Intermediate Computations)'!BL230","v":"2014-11-01"},{"$f":"'(Intermediate Computations)'!BM230","v":"2014-12-01"},{"$f":"'(Intermediate Computations)'!BO230","v":"2015-01-01"},{"$f":"'(Intermediate Computations)'!BP230","v":"2015-02-01"},{"$f":"'(Intermediate Computations)'!BQ230","v":"2015-03-01"},{"$f":"'(Intermediate Computations)'!BR230","v":"2015-04-01"},{"$f":"'(Intermediate Computations)'!BS230","v":"2015-05-01"},{"$f":"'(Intermediate Computations)'!BT230","v":"2015-06-01"},{"$f":"'(Intermediate Computations)'!BU230","v":"2015-07-01"},{"$f":"'(Intermediate Computations)'!BV230","v":"2015-08-01"},{"$f":"'(Intermediate Computations)'!BW230","v":"2015-09-01"},{"$f":"'(Intermediate Computations)'!BX230","v":"2015-10-01"},{"$f":"'(Intermediate Computations)'!BY230","v":"2015-11-01"},{"$f":"'(Intermediate Computations)'!BZ230","v":"2015-12-01"},{"$f":"'(Intermediate Computations)'!CB230","v":"2016-01-01"},{"$f":"'(Intermediate Computations)'!CC230","v":"2016-02-01"},{"$f":"'(Intermediate Computations)'!CD230","v":"2016-03-01"},{"$f":"'(Intermediate Computations)'!CE230","v":"2016-04-01"},{"$f":"'(Intermediate Computations)'!CF230","v":"2016-05-01"},{"$f":"'(Intermediate Computations)'!CG230","v":"2016-06-01"},{"$f":"'(Intermediate Computations)'!CH230","v":"2016-07-01"},{"$f":"'(Intermediate Computations)'!CI230","v":"2016-08-01"},{"$f":"'(Intermediate Computations)'!CJ230","v":"2016-09-01"},{"$f":"'(Intermediate Computations)'!CK230","v":"2016-10-01"},{"$f":"'(Intermediate Computations)'!CL230","v":"2016-11-01"},{"$f":"'(Intermediate Computations)'!CM230","v":"2016-12-01"},{"$f":"'(Intermediate Computations)'!CO230","v":"2017-01-01"},{"$f":"'(Intermediate Computations)'!CP230","v":"2017-02-01"},{"$f":"'(Intermediate Computations)'!CQ230","v":"2017-03-01"},{"$f":"'(Intermediate Computations)'!CR230","v":"2017-04-01"},{"$f":"'(Intermediate Computations)'!CS230","v":"2017-05-01"},{"$f":"'(Intermediate Computations)'!CT230","v":"2017-06-01"},{"$f":"'(Intermediate Computations)'!CU230","v":"2017-07-01"},{"$f":"'(Intermediate Computations)'!CV230","v":"2017-08-01"},{"$f":"'(Intermediate Computations)'!CW230","v":"2017-09-01"},{"$f":"'(Intermediate Computations)'!CX230","v":"2017-10-01"},{"$f":"'(Intermediate Computations)'!CY230","v":"2017-11-01"},{"$f":"'(Intermediate Computations)'!CZ230","v":"2017-12-01"},{"$f":"'(Intermediate Computations)'!DB230","v":"2018-01-01"},{"$f":"'(Intermediate Computations)'!DC230","v":"2018-02-01"},{"$f":"'(Intermediate Computations)'!DD230","v":"2018-03-01"},{"$f":"'(Intermediate Computations)'!DE230","v":"2018-04-01"},{"$f":"'(Intermediate Computations)'!DF230","v":"2018-05-01"},{"$f":"'(Intermediate Computations)'!DG230","v":"2018-06-01"},{"$f":"'(Intermediate Computations)'!DH230","v":"2018-07-01"},{"$f":"'(Intermediate Computations)'!DI230","v":"2018-08-01"},{"$f":"'(Intermediate Computations)'!DJ230","v":"2018-09-01"},{"$f":"'(Intermediate Computations)'!DK230","v":"2018-10-01"},{"$f":"'(Intermediate Computations)'!DL230","v":"2018-11-01"},{"$f":"'(Intermediate Computations)'!DM230","v":"2018-12-01"},{"$f":"'(Intermediate Computations)'!DO230","v":"2019-01-01"},{"$f":"'(Intermediate Computations)'!DP230","v":"2019-02-01"},{"$f":"'(Intermediate Computations)'!DQ230","v":"2019-03-01"},{"$f":"'(Intermediate Computations)'!DR230","v":"2019-04-01"},{"$f":"'(Intermediate Computations)'!DS230","v":"2019-05-01"},{"$f":"'(Intermediate Computations)'!DT230","v":"2019-06-01"},{"$f":"'(Intermediate Computations)'!DU230","v":"2019-07-01"},{"$f":"'(Intermediate Computations)'!DV230","v":"2019-08-01"},{"$f":"'(Intermediate Computations)'!DW230","v":"2019-09-01"},{"$f":"'(Intermediate Computations)'!DX230","v":"2019-10-01"},{"$f":"'(Intermediate Computations)'!DY230","v":"2019-11-01"},{"$f":"'(Intermediate Computations)'!DZ230","v":"2019-12-01"},{"$f":"'(Intermediate Computations)'!EB230","v":"2020-01-01"},{"$f":"'(Intermediate Computations)'!EC230","v":"2020-02-01"},{"$f":"'(Intermediate Computations)'!ED230","v":"2020-03-01"},{"$f":"'(Intermediate Computations)'!EE230","v":"2020-04-01"},{"$f":"'(Intermediate Computations)'!EF230","v":"2020-05-01"},{"$f":"'(Intermediate Computations)'!EG230","v":"2020-06-01"},{"$f":"'(Intermediate Computations)'!EH230","v":"2020-07-01"},{"$f":"'(Intermediate Computations)'!EI230","v":"2020-08-01"},{"$f":"'(Intermediate Computations)'!EJ230","v":"2020-09-01"},{"$f":"'(Intermediate Computations)'!EK230","v":"2020-10-01"},{"$f":"'(Intermediate Computations)'!EL230","v":"2020-11-01"},{"$f":"'(Intermediate Computations)'!EM230","v":"2020-12-01"}]
[{"$f":"'Statistical Moments'!B65","v":{"v":0,"d":"$0"}},{"$f":"'Statistical Moments'!C65","v":{"v":0,"d":"$0"}},{"$f":"'Statistical Moments'!D65","v":{"v":4.022907883725507,"d":"$4"}},{"$f":"'Statistical Moments'!E65","v":{"v":7.269122217040802,"d":"$7"}},{"$f":"'Statistical Moments'!F65","v":{"v":13.714026637998513,"d":"$14"}},{"$f":"'Statistical Moments'!G65","v":{"v":20.205795720540657,"d":"$20"}},{"$f":"'Statistical Moments'!H65","v":{"v":29.37835769810151,"d":"$29"}},{"$f":"'Statistical Moments'!I65","v":{"v":39.86471172403395,"d":"$40"}},{"$f":"'Statistical Moments'!J65","v":{"v":51.65226218875439,"d":"$52"}},{"$f":"'Statistical Moments'!K65","v":{"v":63.29156212691315,"d":"$63"}},{"$f":"'Statistical Moments'!L65","v":{"v":73.21179476588321,"d":"$73"}},{"$f":"'Statistical Moments'!M65","v":{"v":86.0023427767988,"d":"$86"}},{"$f":"'Statistical Moments'!O65","v":{"v":101.64469768124314,"d":"$102"}},{"$f":"'Statistical Moments'!P65","v":{"v":118.68434280554402,"d":"$119"}},{"$f":"'Statistical Moments'!Q65","v":{"v":135.94416676065853,"d":"$136"}},{"$f":"'Statistical Moments'!R65","v":{"v":153.68439001851524,"d":"$154"}},{"$f":"'Statistical Moments'!S65","v":{"v":169.09619226701207,"d":"$169"}},{"$f":"'Statistical Moments'!T65","v":{"v":185.96582596938674,"d":"$186"}},{"$f":"'Statistical Moments'!U65","v":{"v":203.25330448343033,"d":"$203"}},{"$f":"'Statistical Moments'!V65","v":{"v":217.3843673756505,"d":"$217"}},{"$f":"'Statistical Moments'!W65","v":{"v":229.8197174608685,"d":"$230"}},{"$f":"'Statistical Moments'!X65","v":{"v":242.17675506143976,"d":"$242"}},{"$f":"'Statistical Moments'!Y65","v":{"v":253.71124601831116,"d":"$254"}},{"$f":"'Statistical Moments'!Z65","v":{"v":269.1959323845245,"d":"$269"}},{"$f":"'Statistical Moments'!AB65","v":{"v":286.90615001031057,"d":"$287"}},{"$f":"'Statistical Moments'!AC65","v":{"v":303.0058818097305,"d":"$303"}},{"$f":"'Statistical Moments'!AD65","v":{"v":316.6401743928326,"d":"$317"}},{"$f":"'Statistical Moments'!AE65","v":{"v":331.63515380016366,"d":"$332"}},{"$f":"'Statistical Moments'!AF65","v":{"v":346.547077012685,"d":"$347"}},{"$f":"'Statistical Moments'!AG65","v":{"v":364.68235908882644,"d":"$365"}},{"$f":"'Statistical Moments'!AH65","v":{"v":385.1599046714466,"d":"$385"}},{"$f":"'Statistical Moments'!AI65","v":{"v":405.7022504618092,"d":"$406"}},{"$f":"'Statistical Moments'!AJ65","v":{"v":426.9164149834739,"d":"$427"}},{"$f":"'Statistical Moments'!AK65","v":{"v":447.4045619203129,"d":"$447"}},{"$f":"'Statistical Moments'!AL65","v":{"v":467.40252200132875,"d":"$467"}},{"$f":"'Statistical Moments'!AM65","v":{"v":486.651902795301,"d":"$487"}},{"$f":"'Statistical Moments'!AO65","v":{"v":506.25013874633146,"d":"$506"}},{"$f":"'Statistical Moments'!AP65","v":{"v":528.4667929130071,"d":"$528"}},{"$f":"'Statistical Moments'!AQ65","v":{"v":548.2023578738472,"d":"$548"}},{"$f":"'Statistical Moments'!AR65","v":{"v":567.2604607263642,"d":"$567"}},{"$f":"'Statistical Moments'!AS65","v":{"v":587.1463275271332,"d":"$587"}},{"$f":"'Statistical Moments'!AT65","v":{"v":609.4846909184353,"d":"$609"}},{"$f":"'Statistical Moments'!AU65","v":{"v":631.8780561743689,"d":"$632"}},{"$f":"'Statistical Moments'!AV65","v":{"v":651.8306760727494,"d":"$652"}},{"$f":"'Statistical Moments'!AW65","v":{"v":668.5132750987277,"d":"$669"}},{"$f":"'Statistical Moments'!AX65","v":{"v":684.2261823523172,"d":"$684"}},{"$f":"'Statistical Moments'!AY65","v":{"v":698.41649949753,"d":"$698"}},{"$f":"'Statistical Moments'!AZ65","v":{"v":710.8617185601312,"d":"$711"}},{"$f":"'Statistical Moments'!BB65","v":{"v":723.4485690174525,"d":"$723"}},{"$f":"'Statistical Moments'!BC65","v":{"v":737.5830943939833,"d":"$738"}},{"$f":"'Statistical Moments'!BD65","v":{"v":747.3981246063461,"d":"$747"}},{"$f":"'Statistical Moments'!BE65","v":{"v":755.2941888314207,"d":"$755"}},{"$f":"'Statistical Moments'!BF65","v":{"v":764.9975991847881,"d":"$765"}},{"$f":"'Statistical Moments'!BG65","v":{"v":774.4578769048434,"d":"$774"}},{"$f":"'Statistical Moments'!BH65","v":{"v":785.9788324883395,"d":"$786"}},{"$f":"'Statistical Moments'!BI65","v":{"v":799.697967270653,"d":"$800"}},{"$f":"'Statistical Moments'!BJ65","v":{"v":816.5345284581338,"d":"$817"}},{"$f":"'Statistical Moments'!BK65","v":{"v":831.8429313388519,"d":"$832"}},{"$f":"'Statistical Moments'!BL65","v":{"v":848.4058649737327,"d":"$848"}},{"$f":"'Statistical Moments'!BM65","v":{"v":861.6102551649952,"d":"$862"}},{"$f":"'Statistical Moments'!BO65","v":{"v":870.566545704327,"d":"$871"}},{"$f":"'Statistical Moments'!BP65","v":{"v":878.7494086473894,"d":"$879"}},{"$f":"'Statistical Moments'!BQ65","v":{"v":883.1836995948757,"d":"$883"}},{"$f":"'Statistical Moments'!BR65","v":{"v":882.8215209523203,"d":"$883"}},{"$f":"'Statistical Moments'!BS65","v":{"v":884.5400978979957,"d":"$885"}},{"$f":"'Statistical Moments'!BT65","v":{"v":888.581599041592,"d":"$889"}},{"$f":"'Statistical Moments'!BU65","v":{"v":893.9249526915366,"d":"$894"}},{"$f":"'Statistical Moments'!BV65","v":{"v":899.0391044740086,"d":"$899"}},{"$f":"'Statistical Moments'!BW65","v":{"v":907.3257518829471,"d":"$907"}},{"$f":"'Statistical Moments'!BX65","v":{"v":918.1200774477974,"d":"$918"}},{"$f":"'Statistical Moments'!BY65","v":{"v":933.3136859495272,"d":"$933"}},{"$f":"'Statistical Moments'!BZ65","v":{"v":946.6909522703039,"d":"$947"}},{"$f":"'Statistical Moments'!CB65","v":{"v":956.6431326541436,"d":"$957"}},{"$f":"'Statistical Moments'!CC65","v":{"v":964.422814053997,"d":"$964"}},{"$f":"'Statistical Moments'!CD65","v":{"v":972.5945715143365,"d":"$973"}},{"$f":"'Statistical Moments'!CE65","v":{"v":980.6867107340393,"d":"$981"}},{"$f":"'Statistical Moments'!CF65","v":{"v":991.401982822265,"d":"$991"}},{"$f":"'Statistical Moments'!CG65","v":{"v":1000.4569713856447,"d":"$1,000"}},{"$f":"'Statistical Moments'!CH65","v":{"v":1008.3162721346495,"d":"$1,008"}},{"$f":"'Statistical Moments'!CI65","v":{"v":1018.143375064436,"d":"$1,018"}},{"$f":"'Statistical Moments'!CJ65","v":{"v":1024.2006037242277,"d":"$1,024"}},{"$f":"'Statistical Moments'!CK65","v":{"v":1027.54845112631,"d":"$1,028"}},{"$f":"'Statistical Moments'!CL65","v":{"v":1033.7376661721291,"d":"$1,034"}},{"$f":"'Statistical Moments'!CM65","v":{"v":1039.0003832904947,"d":"$1,039"}},{"$f":"'Statistical Moments'!CO65","v":{"v":1043.5977525524884,"d":"$1,044"}},{"$f":"'Statistical Moments'!CP65","v":{"v":1050.1137552830585,"d":"$1,050"}},{"$f":"'Statistical Moments'!CQ65","v":{"v":1059.341011004724,"d":"$1,059"}},{"$f":"'Statistical Moments'!CR65","v":{"v":1069.0704918075453,"d":"$1,069"}},{"$f":"'Statistical Moments'!CS65","v":{"v":1078.0237246816532,"d":"$1,078"}},{"$f":"'Statistical Moments'!CT65","v":{"v":1088.2402520590424,"d":"$1,088"}},{"$f":"'Statistical Moments'!CU65","v":{"v":1095.8946043586764,"d":"$1,096"}},{"$f":"'Statistical Moments'!CV65","v":{"v":1104.7891367892794,"d":"$1,105"}},{"$f":"'Statistical Moments'!CW65","v":{"v":1113.4865532213057,"d":"$1,113"}},{"$f":"'Statistical Moments'!CX65","v":{"v":1120.9758289426961,"d":"$1,121"}},{"$f":"'Statistical Moments'!CY65","v":{"v":1126.813410703117,"d":"$1,127"}},{"$f":"'Statistical Moments'!CZ65","v":{"v":1135.435671738351,"d":"$1,135"}},{"$f":"'Statistical Moments'!DB65","v":{"v":1145.398066938498,"d":"$1,145"}},{"$f":"'Statistical Moments'!DC65","v":{"v":1152.6466019375307,"d":"$1,153"}},{"$f":"'Statistical Moments'!DD65","v":{"v":1165.9766628733578,"d":"$1,166"}},{"$f":"'Statistical Moments'!DE65","v":{"v":1180.4500424212752,"d":"$1,180"}},{"$f":"'Statistical Moments'!DF65","v":{"v":1192.189985706333,"d":"$1,192"}},{"$f":"'Statistical Moments'!DG65","v":{"v":1202.0634116674971,"d":"$1,202"}},{"$f":"'Statistical Moments'!DH65","v":{"v":1210.1155485191314,"d":"$1,210"}},{"$f":"'Statistical Moments'!DI65","v":{"v":1215.0959116858426,"d":"$1,215"}},{"$f":"'Statistical Moments'!DJ65","v":{"v":1218.6719071215273,"d":"$1,219"}},{"$f":"'Statistical Moments'!DK65","v":{"v":1218.4358022314648,"d":"$1,218"}},{"$f":"'Statistical Moments'!DL65","v":{"v":1219.9685686276346,"d":"$1,220"}},{"$f":"'Statistical Moments'!DM65","v":{"v":1219.5951631854357,"d":"$1,220"}},{"$f":"'Statistical Moments'!DO65","v":{"v":1221.1973963953335,"d":"$1,221"}},{"$f":"'Statistical Moments'!DP65","v":{"v":1222.9871175309295,"d":"$1,223"}},{"$f":"'Statistical Moments'!DQ65","v":{"v":1220.317966661347,"d":"$1,220"}},{"$f":"'Statistical Moments'!DR65","v":{"v":1213.7081943105927,"d":"$1,214"}},{"$f":"'Statistical Moments'!DS65","v":{"v":1208.4914514772347,"d":"$1,208"}},{"$f":"'Statistical Moments'!DT65","v":{"v":1205.6662177642322,"d":"$1,206"}},{"$f":"'Statistical Moments'!DU65","v":{"v":1201.8669954348395,"d":"$1,202"}},{"$f":"'Statistical Moments'!DV65","v":{"v":1199.1821065608156,"d":"$1,199"}},{"$f":"'Statistical Moments'!DW65","v":{"v":1199.7134982155362,"d":"$1,200"}},{"$f":"'Statistical Moments'!DX65","v":{"v":1201.1589011345534,"d":"$1,201"}},{"$f":"'Statistical Moments'!DY65","v":{"v":1205.9388455615394,"d":"$1,206"}},{"$f":"'Statistical Moments'!DZ65","v":{"v":1206.8311704161436,"d":"$1,207"}},{"$f":"'Statistical Moments'!EB65","v":{"v":1207.8730442351512,"d":"$1,208"}},{"$f":"'Statistical Moments'!EC65","v":{"v":1209.6783303880118,"d":"$1,210"}},{"$f":"'Statistical Moments'!ED65","v":{"v":1209.160666532331,"d":"$1,209"}},{"$f":"'Statistical Moments'!EE65","v":{"v":1207.6060958560797,"d":"$1,208"}},{"$f":"'Statistical Moments'!EF65","v":{"v":1208.763283895228,"d":"$1,209"}},{"$f":"'Statistical Moments'!EG65","v":{"v":1208.8784265070587,"d":"$1,209"}},{"$f":"'Statistical Moments'!EH65","v":{"v":1205.7100939853249,"d":"$1,206"}},{"$f":"'Statistical Moments'!EI65","v":{"v":1204.587449296813,"d":"$1,205"}},{"$f":"'Statistical Moments'!EJ65","v":{"v":1205.67945244226,"d":"$1,206"}},{"$f":"'Statistical Moments'!EK65","v":{"v":1208.9775548064315,"d":"$1,209"}},{"$f":"'Statistical Moments'!EL65","v":{"v":1215.2506556951619,"d":"$1,215"}},{"$f":"'Statistical Moments'!EM65","v":{"v":1218.7905918682147,"d":"$1,219"}}]
[{"$f":"'(Intermediate Computations)'!B239","v":"Jan 2010"},{"$f":"'(Intermediate Computations)'!C239","v":"Feb 2010"},{"$f":"'(Intermediate Computations)'!D239","v":"Mar 2010"},{"$f":"'(Intermediate Computations)'!E239","v":"Apr 2010"},{"$f":"'(Intermediate Computations)'!F239","v":"May 2010"},{"$f":"'(Intermediate Computations)'!G239","v":"Jun 2010"},{"$f":"'(Intermediate Computations)'!H239","v":"Jul 2010"},{"$f":"'(Intermediate Computations)'!I239","v":"Aug 2010"},{"$f":"'(Intermediate Computations)'!J239","v":"Sep 2010"},{"$f":"'(Intermediate Computations)'!K239","v":"Oct 2010"},{"$f":"'(Intermediate Computations)'!L239","v":"Nov 2010"},{"$f":"'(Intermediate Computations)'!M239","v":"Dec 2010"},{"$f":"'(Intermediate Computations)'!O239","v":"Jan 2011"},{"$f":"'(Intermediate Computations)'!P239","v":"Feb 2011"},{"$f":"'(Intermediate Computations)'!Q239","v":"Mar 2011"},{"$f":"'(Intermediate Computations)'!R239","v":"Apr 2011"},{"$f":"'(Intermediate Computations)'!S239","v":"May 2011"},{"$f":"'(Intermediate Computations)'!T239","v":"Jun 2011"},{"$f":"'(Intermediate Computations)'!U239","v":"Jul 2011"},{"$f":"'(Intermediate Computations)'!V239","v":"Aug 2011"},{"$f":"'(Intermediate Computations)'!W239","v":"Sep 2011"},{"$f":"'(Intermediate Computations)'!X239","v":"Oct 2011"},{"$f":"'(Intermediate Computations)'!Y239","v":"Nov 2011"},{"$f":"'(Intermediate Computations)'!Z239","v":"Dec 2011"},{"$f":"'(Intermediate Computations)'!AB239","v":"Jan 2012"},{"$f":"'(Intermediate Computations)'!AC239","v":"Feb 2012"},{"$f":"'(Intermediate Computations)'!AD239","v":"Mar 2012"},{"$f":"'(Intermediate Computations)'!AE239","v":"Apr 2012"},{"$f":"'(Intermediate Computations)'!AF239","v":"May 2012"},{"$f":"'(Intermediate Computations)'!AG239","v":"Jun 2012"},{"$f":"'(Intermediate Computations)'!AH239","v":"Jul 2012"},{"$f":"'(Intermediate Computations)'!AI239","v":"Aug 2012"},{"$f":"'(Intermediate Computations)'!AJ239","v":"Sep 2012"},{"$f":"'(Intermediate Computations)'!AK239","v":"Oct 2012"},{"$f":"'(Intermediate Computations)'!AL239","v":"Nov 2012"},{"$f":"'(Intermediate Computations)'!AM239","v":"Dec 2012"},{"$f":"'(Intermediate Computations)'!AO239","v":"Jan 2013"},{"$f":"'(Intermediate Computations)'!AP239","v":"Feb 2013"},{"$f":"'(Intermediate Computations)'!AQ239","v":"Mar 2013"},{"$f":"'(Intermediate Computations)'!AR239","v":"Apr 2013"},{"$f":"'(Intermediate Computations)'!AS239","v":"May 2013"},{"$f":"'(Intermediate Computations)'!AT239","v":"Jun 2013"},{"$f":"'(Intermediate Computations)'!AU239","v":"Jul 2013"},{"$f":"'(Intermediate Computations)'!AV239","v":"Aug 2013"},{"$f":"'(Intermediate Computations)'!AW239","v":"Sep 2013"},{"$f":"'(Intermediate Computations)'!AX239","v":"Oct 2013"},{"$f":"'(Intermediate Computations)'!AY239","v":"Nov 2013"},{"$f":"'(Intermediate Computations)'!AZ239","v":"Dec 2013"},{"$f":"'(Intermediate Computations)'!BB239","v":"Jan 2014"},{"$f":"'(Intermediate Computations)'!BC239","v":"Feb 2014"},{"$f":"'(Intermediate Computations)'!BD239","v":"Mar 2014"},{"$f":"'(Intermediate Computations)'!BE239","v":"Apr 2014"},{"$f":"'(Intermediate Computations)'!BF239","v":"May 2014"},{"$f":"'(Intermediate Computations)'!BG239","v":"Jun 2014"},{"$f":"'(Intermediate Computations)'!BH239","v":"Jul 2014"},{"$f":"'(Intermediate Computations)'!BI239","v":"Aug 2014"},{"$f":"'(Intermediate Computations)'!BJ239","v":"Sep 2014"},{"$f":"'(Intermediate Computations)'!BK239","v":"Oct 2014"},{"$f":"'(Intermediate Computations)'!BL239","v":"Nov 2014"},{"$f":"'(Intermediate Computations)'!BM239","v":"Dec 2014"},{"$f":"'(Intermediate Computations)'!BO239","v":"Jan 2015"},{"$f":"'(Intermediate Computations)'!BP239","v":"Feb 2015"},{"$f":"'(Intermediate Computations)'!BQ239","v":"Mar 2015"},{"$f":"'(Intermediate Computations)'!BR239","v":"Apr 2015"},{"$f":"'(Intermediate Computations)'!BS239","v":"May 2015"},{"$f":"'(Intermediate Computations)'!BT239","v":"Jun 2015"},{"$f":"'(Intermediate Computations)'!BU239","v":"Jul 2015"},{"$f":"'(Intermediate Computations)'!BV239","v":"Aug 2015"},{"$f":"'(Intermediate Computations)'!BW239","v":"Sep 2015"},{"$f":"'(Intermediate Computations)'!BX239","v":"Oct 2015"},{"$f":"'(Intermediate Computations)'!BY239","v":"Nov 2015"},{"$f":"'(Intermediate Computations)'!BZ239","v":"Dec 2015"},{"$f":"'(Intermediate Computations)'!CB239","v":"Jan 2016"},{"$f":"'(Intermediate Computations)'!CC239","v":"Feb 2016"},{"$f":"'(Intermediate Computations)'!CD239","v":"Mar 2016"},{"$f":"'(Intermediate Computations)'!CE239","v":"Apr 2016"},{"$f":"'(Intermediate Computations)'!CF239","v":"May 2016"},{"$f":"'(Intermediate Computations)'!CG239","v":"Jun 2016"},{"$f":"'(Intermediate Computations)'!CH239","v":"Jul 2016"},{"$f":"'(Intermediate Computations)'!CI239","v":"Aug 2016"},{"$f":"'(Intermediate Computations)'!CJ239","v":"Sep 2016"},{"$f":"'(Intermediate Computations)'!CK239","v":"Oct 2016"},{"$f":"'(Intermediate Computations)'!CL239","v":"Nov 2016"},{"$f":"'(Intermediate Computations)'!CM239","v":"Dec 2016"},{"$f":"'(Intermediate Computations)'!CO239","v":"Jan 2017"},{"$f":"'(Intermediate Computations)'!CP239","v":"Feb 2017"},{"$f":"'(Intermediate Computations)'!CQ239","v":"Mar 2017"},{"$f":"'(Intermediate Computations)'!CR239","v":"Apr 2017"},{"$f":"'(Intermediate Computations)'!CS239","v":"May 2017"},{"$f":"'(Intermediate Computations)'!CT239","v":"Jun 2017"},{"$f":"'(Intermediate Computations)'!CU239","v":"Jul 2017"},{"$f":"'(Intermediate Computations)'!CV239","v":"Aug 2017"},{"$f":"'(Intermediate Computations)'!CW239","v":"Sep 2017"},{"$f":"'(Intermediate Computations)'!CX239","v":"Oct 2017"},{"$f":"'(Intermediate Computations)'!CY239","v":"Nov 2017"},{"$f":"'(Intermediate Computations)'!CZ239","v":"Dec 2017"},{"$f":"'(Intermediate Computations)'!DB239","v":"Jan 2018"},{"$f":"'(Intermediate Computations)'!DC239","v":"Feb 2018"},{"$f":"'(Intermediate Computations)'!DD239","v":"Mar 2018"},{"$f":"'(Intermediate Computations)'!DE239","v":"Apr 2018"},{"$f":"'(Intermediate Computations)'!DF239","v":"May 2018"},{"$f":"'(Intermediate Computations)'!DG239","v":"Jun 2018"},{"$f":"'(Intermediate Computations)'!DH239","v":"Jul 2018"},{"$f":"'(Intermediate Computations)'!DI239","v":"Aug 2018"},{"$f":"'(Intermediate Computations)'!DJ239","v":"Sep 2018"},{"$f":"'(Intermediate Computations)'!DK239","v":"Oct 2018"},{"$f":"'(Intermediate Computations)'!DL239","v":"Nov 2018"},{"$f":"'(Intermediate Computations)'!DM239","v":"Dec 2018"},{"$f":"'(Intermediate Computations)'!DO239","v":"Jan 2019"},{"$f":"'(Intermediate Computations)'!DP239","v":"Feb 2019"},{"$f":"'(Intermediate Computations)'!DQ239","v":"Mar 2019"},{"$f":"'(Intermediate Computations)'!DR239","v":"Apr 2019"},{"$f":"'(Intermediate Computations)'!DS239","v":"May 2019"},{"$f":"'(Intermediate Computations)'!DT239","v":"Jun 2019"},{"$f":"'(Intermediate Computations)'!DU239","v":"Jul 2019"},{"$f":"'(Intermediate Computations)'!DV239","v":"Aug 2019"},{"$f":"'(Intermediate Computations)'!DW239","v":"Sep 2019"},{"$f":"'(Intermediate Computations)'!DX239","v":"Oct 2019"},{"$f":"'(Intermediate Computations)'!DY239","v":"Nov 2019"},{"$f":"'(Intermediate Computations)'!DZ239","v":"Dec 2019"},{"$f":"'(Intermediate Computations)'!EB239","v":"Jan 2020"},{"$f":"'(Intermediate Computations)'!EC239","v":"Feb 2020"},{"$f":"'(Intermediate Computations)'!ED239","v":"Mar 2020"},{"$f":"'(Intermediate Computations)'!EE239","v":"Apr 2020"},{"$f":"'(Intermediate Computations)'!EF239","v":"May 2020"},{"$f":"'(Intermediate Computations)'!EG239","v":"Jun 2020"},{"$f":"'(Intermediate Computations)'!EH239","v":"Jul 2020"},{"$f":"'(Intermediate Computations)'!EI239","v":"Aug 2020"},{"$f":"'(Intermediate Computations)'!EJ239","v":"Sep 2020"},{"$f":"'(Intermediate Computations)'!EK239","v":"Oct 2020"},{"$f":"'(Intermediate Computations)'!EL239","v":"Nov 2020"},{"$f":"'(Intermediate Computations)'!EM239","v":"Dec 2020"}]
[{"$f":"'(Intermediate Computations)'!B236","v":"2010-01-01"},{"$f":"'(Intermediate Computations)'!C236","v":"2010-02-01"},{"$f":"'(Intermediate Computations)'!D236","v":"2010-03-01"},{"$f":"'(Intermediate Computations)'!E236","v":"2010-04-01"},{"$f":"'(Intermediate Computations)'!F236","v":"2010-05-01"},{"$f":"'(Intermediate Computations)'!G236","v":"2010-06-01"},{"$f":"'(Intermediate Computations)'!H236","v":"2010-07-01"},{"$f":"'(Intermediate Computations)'!I236","v":"2010-08-01"},{"$f":"'(Intermediate Computations)'!J236","v":"2010-09-01"},{"$f":"'(Intermediate Computations)'!K236","v":"2010-10-01"},{"$f":"'(Intermediate Computations)'!L236","v":"2010-11-01"},{"$f":"'(Intermediate Computations)'!M236","v":"2010-12-01"},{"$f":"'(Intermediate Computations)'!O236","v":"2011-01-01"},{"$f":"'(Intermediate Computations)'!P236","v":"2011-02-01"},{"$f":"'(Intermediate Computations)'!Q236","v":"2011-03-01"},{"$f":"'(Intermediate Computations)'!R236","v":"2011-04-01"},{"$f":"'(Intermediate Computations)'!S236","v":"2011-05-01"},{"$f":"'(Intermediate Computations)'!T236","v":"2011-06-01"},{"$f":"'(Intermediate Computations)'!U236","v":"2011-07-01"},{"$f":"'(Intermediate Computations)'!V236","v":"2011-08-01"},{"$f":"'(Intermediate Computations)'!W236","v":"2011-09-01"},{"$f":"'(Intermediate Computations)'!X236","v":"2011-10-01"},{"$f":"'(Intermediate Computations)'!Y236","v":"2011-11-01"},{"$f":"'(Intermediate Computations)'!Z236","v":"2011-12-01"},{"$f":"'(Intermediate Computations)'!AB236","v":"2012-01-01"},{"$f":"'(Intermediate Computations)'!AC236","v":"2012-02-01"},{"$f":"'(Intermediate Computations)'!AD236","v":"2012-03-01"},{"$f":"'(Intermediate Computations)'!AE236","v":"2012-04-01"},{"$f":"'(Intermediate Computations)'!AF236","v":"2012-05-01"},{"$f":"'(Intermediate Computations)'!AG236","v":"2012-06-01"},{"$f":"'(Intermediate Computations)'!AH236","v":"2012-07-01"},{"$f":"'(Intermediate Computations)'!AI236","v":"2012-08-01"},{"$f":"'(Intermediate Computations)'!AJ236","v":"2012-09-01"},{"$f":"'(Intermediate Computations)'!AK236","v":"2012-10-01"},{"$f":"'(Intermediate Computations)'!AL236","v":"2012-11-01"},{"$f":"'(Intermediate Computations)'!AM236","v":"2012-12-01"},{"$f":"'(Intermediate Computations)'!AO236","v":"2013-01-01"},{"$f":"'(Intermediate Computations)'!AP236","v":"2013-02-01"},{"$f":"'(Intermediate Computations)'!AQ236","v":"2013-03-01"},{"$f":"'(Intermediate Computations)'!AR236","v":"2013-04-01"},{"$f":"'(Intermediate Computations)'!AS236","v":"2013-05-01"},{"$f":"'(Intermediate Computations)'!AT236","v":"2013-06-01"},{"$f":"'(Intermediate Computations)'!AU236","v":"2013-07-01"},{"$f":"'(Intermediate Computations)'!AV236","v":"2013-08-01"},{"$f":"'(Intermediate Computations)'!AW236","v":"2013-09-01"},{"$f":"'(Intermediate Computations)'!AX236","v":"2013-10-01"},{"$f":"'(Intermediate Computations)'!AY236","v":"2013-11-01"},{"$f":"'(Intermediate Computations)'!AZ236","v":"2013-12-01"},{"$f":"'(Intermediate Computations)'!BB236","v":"2014-01-01"},{"$f":"'(Intermediate Computations)'!BC236","v":"2014-02-01"},{"$f":"'(Intermediate Computations)'!BD236","v":"2014-03-01"},{"$f":"'(Intermediate Computations)'!BE236","v":"2014-04-01"},{"$f":"'(Intermediate Computations)'!BF236","v":"2014-05-01"},{"$f":"'(Intermediate Computations)'!BG236","v":"2014-06-01"},{"$f":"'(Intermediate Computations)'!BH236","v":"2014-07-01"},{"$f":"'(Intermediate Computations)'!BI236","v":"2014-08-01"},{"$f":"'(Intermediate Computations)'!BJ236","v":"2014-09-01"},{"$f":"'(Intermediate Computations)'!BK236","v":"2014-10-01"},{"$f":"'(Intermediate Computations)'!BL236","v":"2014-11-01"},{"$f":"'(Intermediate Computations)'!BM236","v":"2014-12-01"},{"$f":"'(Intermediate Computations)'!BO236","v":"2015-01-01"},{"$f":"'(Intermediate Computations)'!BP236","v":"2015-02-01"},{"$f":"'(Intermediate Computations)'!BQ236","v":"2015-03-01"},{"$f":"'(Intermediate Computations)'!BR236","v":"2015-04-01"},{"$f":"'(Intermediate Computations)'!BS236","v":"2015-05-01"},{"$f":"'(Intermediate Computations)'!BT236","v":"2015-06-01"},{"$f":"'(Intermediate Computations)'!BU236","v":"2015-07-01"},{"$f":"'(Intermediate Computations)'!BV236","v":"2015-08-01"},{"$f":"'(Intermediate Computations)'!BW236","v":"2015-09-01"},{"$f":"'(Intermediate Computations)'!BX236","v":"2015-10-01"},{"$f":"'(Intermediate Computations)'!BY236","v":"2015-11-01"},{"$f":"'(Intermediate Computations)'!BZ236","v":"2015-12-01"},{"$f":"'(Intermediate Computations)'!CB236","v":"2016-01-01"},{"$f":"'(Intermediate Computations)'!CC236","v":"2016-02-01"},{"$f":"'(Intermediate Computations)'!CD236","v":"2016-03-01"},{"$f":"'(Intermediate Computations)'!CE236","v":"2016-04-01"},{"$f":"'(Intermediate Computations)'!CF236","v":"2016-05-01"},{"$f":"'(Intermediate Computations)'!CG236","v":"2016-06-01"},{"$f":"'(Intermediate Computations)'!CH236","v":"2016-07-01"},{"$f":"'(Intermediate Computations)'!CI236","v":"2016-08-01"},{"$f":"'(Intermediate Computations)'!CJ236","v":"2016-09-01"},{"$f":"'(Intermediate Computations)'!CK236","v":"2016-10-01"},{"$f":"'(Intermediate Computations)'!CL236","v":"2016-11-01"},{"$f":"'(Intermediate Computations)'!CM236","v":"2016-12-01"},{"$f":"'(Intermediate Computations)'!CO236","v":"2017-01-01"},{"$f":"'(Intermediate Computations)'!CP236","v":"2017-02-01"},{"$f":"'(Intermediate Computations)'!CQ236","v":"2017-03-01"},{"$f":"'(Intermediate Computations)'!CR236","v":"2017-04-01"},{"$f":"'(Intermediate Computations)'!CS236","v":"2017-05-01"},{"$f":"'(Intermediate Computations)'!CT236","v":"2017-06-01"},{"$f":"'(Intermediate Computations)'!CU236","v":"2017-07-01"},{"$f":"'(Intermediate Computations)'!CV236","v":"2017-08-01"},{"$f":"'(Intermediate Computations)'!CW236","v":"2017-09-01"},{"$f":"'(Intermediate Computations)'!CX236","v":"2017-10-01"},{"$f":"'(Intermediate Computations)'!CY236","v":"2017-11-01"},{"$f":"'(Intermediate Computations)'!CZ236","v":"2017-12-01"},{"$f":"'(Intermediate Computations)'!DB236","v":"2018-01-01"},{"$f":"'(Intermediate Computations)'!DC236","v":"2018-02-01"},{"$f":"'(Intermediate Computations)'!DD236","v":"2018-03-01"},{"$f":"'(Intermediate Computations)'!DE236","v":"2018-04-01"},{"$f":"'(Intermediate Computations)'!DF236","v":"2018-05-01"},{"$f":"'(Intermediate Computations)'!DG236","v":"2018-06-01"},{"$f":"'(Intermediate Computations)'!DH236","v":"2018-07-01"},{"$f":"'(Intermediate Computations)'!DI236","v":"2018-08-01"},{"$f":"'(Intermediate Computations)'!DJ236","v":"2018-09-01"},{"$f":"'(Intermediate Computations)'!DK236","v":"2018-10-01"},{"$f":"'(Intermediate Computations)'!DL236","v":"2018-11-01"},{"$f":"'(Intermediate Computations)'!DM236","v":"2018-12-01"},{"$f":"'(Intermediate Computations)'!DO236","v":"2019-01-01"},{"$f":"'(Intermediate Computations)'!DP236","v":"2019-02-01"},{"$f":"'(Intermediate Computations)'!DQ236","v":"2019-03-01"},{"$f":"'(Intermediate Computations)'!DR236","v":"2019-04-01"},{"$f":"'(Intermediate Computations)'!DS236","v":"2019-05-01"},{"$f":"'(Intermediate Computations)'!DT236","v":"2019-06-01"},{"$f":"'(Intermediate Computations)'!DU236","v":"2019-07-01"},{"$f":"'(Intermediate Computations)'!DV236","v":"2019-08-01"},{"$f":"'(Intermediate Computations)'!DW236","v":"2019-09-01"},{"$f":"'(Intermediate Computations)'!DX236","v":"2019-10-01"},{"$f":"'(Intermediate Computations)'!DY236","v":"2019-11-01"},{"$f":"'(Intermediate Computations)'!DZ236","v":"2019-12-01"},{"$f":"'(Intermediate Computations)'!EB236","v":"2020-01-01"},{"$f":"'(Intermediate Computations)'!EC236","v":"2020-02-01"},{"$f":"'(Intermediate Computations)'!ED236","v":"2020-03-01"},{"$f":"'(Intermediate Computations)'!EE236","v":"2020-04-01"},{"$f":"'(Intermediate Computations)'!EF236","v":"2020-05-01"},{"$f":"'(Intermediate Computations)'!EG236","v":"2020-06-01"},{"$f":"'(Intermediate Computations)'!EH236","v":"2020-07-01"},{"$f":"'(Intermediate Computations)'!EI236","v":"2020-08-01"},{"$f":"'(Intermediate Computations)'!EJ236","v":"2020-09-01"},{"$f":"'(Intermediate Computations)'!EK236","v":"2020-10-01"},{"$f":"'(Intermediate Computations)'!EL236","v":"2020-11-01"},{"$f":"'(Intermediate Computations)'!EM236","v":"2020-12-01"}]
[]
["ZZZ_Ranges!Demand_Aggregate_mean"]
["ZZZ_Ranges!Demand_Aggregate_mean_Time_Period"]
["ZZZ_Ranges!Demand_Aggregate_mean_Date"]
["ZZZ_Ranges!Demand_Aggregate_Trials_Trial_01"]
["ZZZ_Ranges!Demand_Aggregate_Trials_Trial_02"]
["ZZZ_Ranges!Demand_Aggregate_Trials_Trial_03"]
["ZZZ_Ranges!Demand_Aggregate_Trials_Trial_04"]
["ZZZ_Ranges!Demand_Aggregate_Trials_Trial_05"]
["ZZZ_Ranges!Demand_Aggregate_Trials_Trial_06"]
["ZZZ_Ranges!Demand_Aggregate_Trials_Trial_07"]
["ZZZ_Ranges!Demand_Aggregate_Trials_Trial_08"]
["ZZZ_Ranges!Demand_Aggregate_Trials"]
["ZZZ_Ranges!Demand_Aggregate_Time_Period"]
["ZZZ_Ranges!Demand_Aggregate_Date"]
["ZZZ_Ranges!Final_Sales_Trials_Trial_01"]
["ZZZ_Ranges!Final_Sales_Trials_Trial_02"]
["ZZZ_Ranges!Final_Sales_Trials_Trial_03"]
["ZZZ_Ranges!Final_Sales_Trials_Trial_04"]
["ZZZ_Ranges!Final_Sales_Trials_Trial_05"]
["ZZZ_Ranges!Final_Sales_Trials_Trial_06"]
["ZZZ_Ranges!Final_Sales_Trials_Trial_07"]
["ZZZ_Ranges!Final_Sales_Trials_Trial_08"]
["ZZZ_Ranges!Final_Sales_Trials"]
["ZZZ_Ranges!Final_Sales_Time_Period"]
["ZZZ_Ranges!Final_Sales_Date"]
["ZZZ_Ranges!Consumption_Trials_Trial_01"]
["ZZZ_Ranges!Consumption_Trials_Trial_02"]
["ZZZ_Ranges!Consumption_Trials_Trial_03"]
["ZZZ_Ranges!Consumption_Trials_Trial_04"]
["ZZZ_Ranges!Consumption_Trials_Trial_05"]
["ZZZ_Ranges!Consumption_Trials_Trial_06"]
["ZZZ_Ranges!Consumption_Trials_Trial_07"]
["ZZZ_Ranges!Consumption_Trials_Trial_08"]
["ZZZ_Ranges!Consumption_Trials"]
["ZZZ_Ranges!Consumption_Time_Period"]
["ZZZ_Ranges!Consumption_Date"]
["ZZZ_Ranges!Income_Permanent_Trials_Trial_01"]
["ZZZ_Ranges!Income_Permanent_Trials_Trial_02"]
["ZZZ_Ranges!Income_Permanent_Trials_Trial_03"]
["ZZZ_Ranges!Income_Permanent_Trials_Trial_04"]
["ZZZ_Ranges!Income_Permanent_Trials_Trial_05"]
["ZZZ_Ranges!Income_Permanent_Trials_Trial_06"]
["ZZZ_Ranges!Income_Permanent_Trials_Trial_07"]
["ZZZ_Ranges!Income_Permanent_Trials_Trial_08"]
["ZZZ_Ranges!Income_Permanent_Trials"]
["ZZZ_Ranges!Income_Permanent_Time_Period"]
["ZZZ_Ranges!Income_Permanent_Date"]
["ZZZ_Ranges!Income_Current_Disposable_Trials_Trial_01"]
["ZZZ_Ranges!Income_Current_Disposable_Trials_Trial_02"]
["ZZZ_Ranges!Income_Current_Disposable_Trials_Trial_03"]
["ZZZ_Ranges!Income_Current_Disposable_Trials_Trial_04"]
["ZZZ_Ranges!Income_Current_Disposable_Trials_Trial_05"]
["ZZZ_Ranges!Income_Current_Disposable_Trials_Trial_06"]
["ZZZ_Ranges!Income_Current_Disposable_Trials_Trial_07"]
["ZZZ_Ranges!Income_Current_Disposable_Trials_Trial_08"]
["ZZZ_Ranges!Income_Current_Disposable_Trials"]
["ZZZ_Ranges!Income_Current_Disposable_Time_Period"]
["ZZZ_Ranges!Income_Current_Disposable_Date"]
["ZZZ_Ranges!Output_Trials_Trial_01"]
["ZZZ_Ranges!Output_Trials_Trial_02"]
["ZZZ_Ranges!Output_Trials_Trial_03"]
["ZZZ_Ranges!Output_Trials_Trial_04"]
["ZZZ_Ranges!Output_Trials_Trial_05"]
["ZZZ_Ranges!Output_Trials_Trial_06"]
["ZZZ_Ranges!Output_Trials_Trial_07"]
["ZZZ_Ranges!Output_Trials_Trial_08"]
["ZZZ_Ranges!Output_Trials"]
["ZZZ_Ranges!Output_Time_Period"]
["ZZZ_Ranges!Output_Date"]
["ZZZ_Ranges!Output_Potential_Trials_Trial_01"]
["ZZZ_Ranges!Output_Potential_Trials_Trial_02"]
["ZZZ_Ranges!Output_Potential_Trials_Trial_03"]
["ZZZ_Ranges!Output_Potential_Trials_Trial_04"]
["ZZZ_Ranges!Output_Potential_Trials_Trial_05"]
["ZZZ_Ranges!Output_Potential_Trials_Trial_06"]
["ZZZ_Ranges!Output_Potential_Trials_Trial_07"]
["ZZZ_Ranges!Output_Potential_Trials_Trial_08"]
["ZZZ_Ranges!Output_Potential_Trials"]
["ZZZ_Ranges!Output_Potential_Time_Period"]
["ZZZ_Ranges!Output_Potential_Date"]
["ZZZ_Ranges!Employment_Trials_Trial_01"]
["ZZZ_Ranges!Employment_Trials_Trial_02"]
["ZZZ_Ranges!Employment_Trials_Trial_03"]
["ZZZ_Ranges!Employment_Trials_Trial_04"]
["ZZZ_Ranges!Employment_Trials_Trial_05"]
["ZZZ_Ranges!Employment_Trials_Trial_06"]
["ZZZ_Ranges!Employment_Trials_Trial_07"]
["ZZZ_Ranges!Employment_Trials_Trial_08"]
["ZZZ_Ranges!Employment_Trials"]
["ZZZ_Ranges!Employment_Time_Period"]
["ZZZ_Ranges!Employment_Date"]
["ZZZ_Ranges!Employment_Desired_Trials_Trial_01"]
["ZZZ_Ranges!Employment_Desired_Trials_Trial_02"]
["ZZZ_Ranges!Employment_Desired_Trials_Trial_03"]
["ZZZ_Ranges!Employment_Desired_Trials_Trial_04"]
["ZZZ_Ranges!Employment_Desired_Trials_Trial_05"]
["ZZZ_Ranges!Employment_Desired_Trials_Trial_06"]
["ZZZ_Ranges!Employment_Desired_Trials_Trial_07"]
["ZZZ_Ranges!Employment_Desired_Trials_Trial_08"]
["ZZZ_Ranges!Employment_Desired_Trials"]
["ZZZ_Ranges!Employment_Desired_Time_Period"]
["ZZZ_Ranges!Employment_Desired_Date"]
["ZZZ_Ranges!Demand_Expected_Short_Trials_Trial_01"]
["ZZZ_Ranges!Demand_Expected_Short_Trials_Trial_02"]
["ZZZ_Ranges!Demand_Expected_Short_Trials_Trial_03"]
["ZZZ_Ranges!Demand_Expected_Short_Trials_Trial_04"]
["ZZZ_Ranges!Demand_Expected_Short_Trials_Trial_05"]
["ZZZ_Ranges!Demand_Expected_Short_Trials_Trial_06"]
["ZZZ_Ranges!Demand_Expected_Short_Trials_Trial_07"]
["ZZZ_Ranges!Demand_Expected_Short_Trials_Trial_08"]
["ZZZ_Ranges!Demand_Expected_Short_Trials"]
["ZZZ_Ranges!Demand_Expected_Short_Time_Period"]
["ZZZ_Ranges!Demand_Expected_Short_Date"]
["ZZZ_Ranges!Capital_Trials_Trial_01"]
["ZZZ_Ranges!Capital_Trials_Trial_02"]
["ZZZ_Ranges!Capital_Trials_Trial_03"]
["ZZZ_Ranges!Capital_Trials_Trial_04"]
["ZZZ_Ranges!Capital_Trials_Trial_05"]
["ZZZ_Ranges!Capital_Trials_Trial_06"]
["ZZZ_Ranges!Capital_Trials_Trial_07"]
["ZZZ_Ranges!Capital_Trials_Trial_08"]
["ZZZ_Ranges!Capital_Trials"]
["ZZZ_Ranges!Capital_Time_Period"]
["ZZZ_Ranges!Capital_Date"]
["ZZZ_Ranges!Capital_Desired_Trials_Trial_01"]
["ZZZ_Ranges!Capital_Desired_Trials_Trial_02"]
["ZZZ_Ranges!Capital_Desired_Trials_Trial_03"]
["ZZZ_Ranges!Capital_Desired_Trials_Trial_04"]
["ZZZ_Ranges!Capital_Desired_Trials_Trial_05"]
["ZZZ_Ranges!Capital_Desired_Trials_Trial_06"]
["ZZZ_Ranges!Capital_Desired_Trials_Trial_07"]
["ZZZ_Ranges!Capital_Desired_Trials_Trial_08"]
["ZZZ_Ranges!Capital_Desired_Trials"]
["ZZZ_Ranges!Capital_Desired_Time_Period"]
["ZZZ_Ranges!Capital_Desired_Date"]
["ZZZ_Ranges!Demand_Expected_Long_Trials_Trial_01"]
["ZZZ_Ranges!Demand_Expected_Long_Trials_Trial_02"]
["ZZZ_Ranges!Demand_Expected_Long_Trials_Trial_03"]
["ZZZ_Ranges!Demand_Expected_Long_Trials_Trial_04"]
["ZZZ_Ranges!Demand_Expected_Long_Trials_Trial_05"]
["ZZZ_Ranges!Demand_Expected_Long_Trials_Trial_06"]
["ZZZ_Ranges!Demand_Expected_Long_Trials_Trial_07"]
["ZZZ_Ranges!Demand_Expected_Long_Trials_Trial_08"]
["ZZZ_Ranges!Demand_Expected_Long_Trials"]
["ZZZ_Ranges!Demand_Expected_Long_Time_Period"]
["ZZZ_Ranges!Demand_Expected_Long_Date"]
["ZZZ_Ranges!Demand_Aggregate_stdev"]
["ZZZ_Ranges!Demand_Aggregate_stdev_Time_Period"]
["ZZZ_Ranges!Demand_Aggregate_stdev_Date"]
["ZZZ_Ranges!Demand_Expected_Short_mean"]
["ZZZ_Ranges!Demand_Expected_Short_mean_Time_Period"]
["ZZZ_Ranges!Demand_Expected_Short_mean_Date"]
["ZZZ_Ranges!Demand_Expected_Short_stdev"]
["ZZZ_Ranges!Demand_Expected_Short_stdev_Time_Period"]
["ZZZ_Ranges!Demand_Expected_Short_stdev_Date"]
["ZZZ_Ranges!Demand_Expected_Long_mean"]
["ZZZ_Ranges!Demand_Expected_Long_mean_Time_Period"]
["ZZZ_Ranges!Demand_Expected_Long_mean_Date"]
["ZZZ_Ranges!Demand_Expected_Long_stdev"]
["ZZZ_Ranges!Demand_Expected_Long_stdev_Time_Period"]
["ZZZ_Ranges!Demand_Expected_Long_stdev_Date"]
["ZZZ_Ranges!Consumption_mean"]
["ZZZ_Ranges!Consumption_mean_Time_Period"]
["ZZZ_Ranges!Consumption_mean_Date"]
["ZZZ_Ranges!Consumption_stdev"]
["ZZZ_Ranges!Consumption_stdev_Time_Period"]
["ZZZ_Ranges!Consumption_stdev_Date"]
["ZZZ_Ranges!Capital_mean"]
["ZZZ_Ranges!Capital_mean_Time_Period"]
["ZZZ_Ranges!Capital_mean_Date"]
["ZZZ_Ranges!Capital_stdev"]
["ZZZ_Ranges!Capital_stdev_Time_Period"]
["ZZZ_Ranges!Capital_stdev_Date"]
["ZZZ_Ranges!Capital_Desired_mean"]
["ZZZ_Ranges!Capital_Desired_mean_Time_Period"]
["ZZZ_Ranges!Capital_Desired_mean_Date"]
["ZZZ_Ranges!Capital_Desired_stdev"]
["ZZZ_Ranges!Capital_Desired_stdev_Time_Period"]
["ZZZ_Ranges!Capital_Desired_stdev_Date"]
["ZZZ_Ranges!Employment_mean"]
["ZZZ_Ranges!Employment_mean_Time_Period"]
["ZZZ_Ranges!Employment_mean_Date"]
["ZZZ_Ranges!Employment_stdev"]
["ZZZ_Ranges!Employment_stdev_Time_Period"]
["ZZZ_Ranges!Employment_stdev_Date"]
["ZZZ_Ranges!Employment_Desired_mean"]
["ZZZ_Ranges!Employment_Desired_mean_Time_Period"]
["ZZZ_Ranges!Employment_Desired_mean_Date"]
["ZZZ_Ranges!Employment_Desired_stdev"]
["ZZZ_Ranges!Employment_Desired_stdev_Time_Period"]
["ZZZ_Ranges!Employment_Desired_stdev_Date"]
["ZZZ_Ranges!Income_Current_Disposable_mean"]
["ZZZ_Ranges!Income_Current_Disposable_mean_Time_Period"]
["ZZZ_Ranges!Income_Current_Disposable_mean_Date"]
["ZZZ_Ranges!Income_Current_Disposable_stdev"]
["ZZZ_Ranges!Income_Current_Disposable_stdev_Time_Period"]
["ZZZ_Ranges!Income_Current_Disposable_stdev_Date"]
["ZZZ_Ranges!Final_Sales_mean"]
["ZZZ_Ranges!Final_Sales_mean_Time_Period"]
["ZZZ_Ranges!Final_Sales_mean_Date"]
["ZZZ_Ranges!Final_Sales_stdev"]
["ZZZ_Ranges!Final_Sales_stdev_Time_Period"]
["ZZZ_Ranges!Final_Sales_stdev_Date"]
["ZZZ_Ranges!Income_Permanent_mean"]
["ZZZ_Ranges!Income_Permanent_mean_Time_Period"]
["ZZZ_Ranges!Income_Permanent_mean_Date"]
["ZZZ_Ranges!Income_Permanent_stdev"]
["ZZZ_Ranges!Income_Permanent_stdev_Time_Period"]
["ZZZ_Ranges!Income_Permanent_stdev_Date"]
["ZZZ_Ranges!Output_mean"]
["ZZZ_Ranges!Output_mean_Time_Period"]
["ZZZ_Ranges!Output_mean_Date"]
["ZZZ_Ranges!Output_stdev"]
["ZZZ_Ranges!Output_stdev_Time_Period"]
["ZZZ_Ranges!Output_stdev_Date"]
["ZZZ_Ranges!Output_Potential_mean"]
["ZZZ_Ranges!Output_Potential_mean_Time_Period"]
["ZZZ_Ranges!Output_Potential_mean_Date"]
["ZZZ_Ranges!Output_Potential_stdev"]
["ZZZ_Ranges!Output_Potential_stdev_Time_Period"]
["ZZZ_Ranges!Output_Potential_stdev_Date"]

{"sheet":"ZZZ_Import","index":18,"n_rows":8,"n_cols":64,"rows_kept":8,"hidden":true}
[":A:0:Employment",{"$f":"Labels!B38","v":"Employment"},":A:-1:Employment",{"$f":"Labels!E38","v":"The level of employment in each time period (expressed in millions of full-time-equivalent man-periods)"},":A:0:Demand_Expected_Short",{"$f":"Labels!B34","v":"Short Expected Demand"},":A:-1:Demand_Expected_Short",{"$f":"Labels!E34","v":"Short-term expected demand for goods and services per time period, in each time period (in millions)"},":A:0:Demand_Expected_Long",{"$f":"Labels!B31","v":"Long Expected Demand"},":A:-1:Demand_Expected_Long",{"$f":"Labels!E31","v":"The long-term expected demand for goods and services per time period, in each time period (in millions)"},":A:0:Capital",{"$f":"Labels!B9","v":"Capital"},":A:-1:Capital",{"$f":"Labels!E9","v":"The capital stock, in each time period (expressed in millions). The net capital investment in the previous time period determines the change in capital in each time period, to avoid circularity"},":A:0:Income_Permanent",{"$f":"Labels!B58","v":"Permanent Income"},":A:-1:Income_Permanent",{"$f":"Labels!E58","v":"Consumers' expectation of their permanent income per time period, in each time period (in $ millions). This variable enters into consumers' decisions about how much of their income to spend."},":A:0:Output",{"$f":"Labels!B64","v":"Output"},":A:-1:Output",{"$f":"Labels!E64","v":"The total output per time period, in each time period (in millions)"},":A:0:Output_Potential",{"$f":"Labels!B68","v":"Potential Output"},":A:-1:Output_Potential",{"$f":"Labels!E68","v":"Potential output per time period given capital and labor inputs, in each time period (in millions). Output generally is lower than this level because capital is not flexible enough to be fully redeployed in response to fluctuations of demand.\n\nThis production function assumes that the economy has no scale effect; that is, doubling inputs to the economy doubles output."},":A:0:dt",{"$f":"Labels!B37","v":"dt"},":A:-1:dt",{"$f":"Labels!E37","v":"The length of each time period in model time, expressed in years"},":A:0:Output_Equilib",{"$f":"Labels!B65","v":"Equilibrium Output"},":A:-1:Output_Equilib",{"$f":"Labels!E65","v":"Equilibrium output per time period (in millions)"},":A:0:Consumption_Avg_Propensity",{"$f":"Labels!B25","v":"Avg Propensity Consume"},":A:-1:Consumption_Avg_Propensity",{"$f":"Labels!E25","v":"The propensity to consume, expressed as a percent of output, in each time period"},":A:0:Time_Smooth_Income",{"$f":"Labels!B90","v":"Time Smooth Income"},":A:-1:Time_Smooth_Income",{"$f":"Labels!E90","v":"The characteristic time needed for consumers to adjust their expectation of permanent income as their incomes change, expressed in years"},":A:0:Time_Smooth_Short_Demand",{"$f":"Labels!B92","v":"Time Smooth Short Demand"},":A:-1:Time_Smooth_Short_Demand",{"$f":"Labels!E92","v":"The characteristic time needed for short-term expected demand to adjust to changes in aggregate demand, expressed in years"},":A:0:Time_Smooth_Long_Demand",{"$f":"Labels!B91","v":"Time Smooth Long Demand"},":A:-1:Time_Smooth_Long_Demand",{"$f":"Labels!E91","v":"The characteristic time needed for long-term expected demand to adjust to changes in aggregate demand, expressed in years"},":A:0:Employment_Equilib",{"$f":"Labels!B42","v":"Equilibrium Employment"},":A:-1:Employment_Equilib",{"$f":"Labels!E42","v":"The equilibrium level of employment (in millions of full-time-equivalent man-periods)"},":A:0:Real_Wage_Equilib",{"$f":"Labels!B72","v":"Equilib Real Wage"},":A:-1:Real_Wage_Equilib",{"$f":"Labels!E72","v":"The real wage per time period when the economy is in equilibrium (expressed in $ millions per million full time equivalent man-periods)"},":A:0:Time_Adjust_Employment",{"$f":"Labels!B89","v":"Time Adjust Employment"},":A:-1:Time_Adjust_Employment",{"$f":"Labels!E89","v":"The characteristic time needed for the level of employment to respond to changes in demand, expressed in years"}]
[":A:0:Capital_Expon",{"$f":"Labels!B18","v":"Capital Exponent"},":A:-1:Capital_Expon",{"$f":"Labels!E18","v":"The capital productivity exponent used in the production function"},":A:0:Interest_Rate_Long",{"$f":"Labels!B61","v":"Long Interest Rate"},":A:-1:Interest_Rate_Long",{"$f":"Labels!E61","v":"The long-term interest rate per period on debt"},":A:0:Capital_Avg_Life",{"$f":"Labels!B10","v":"Avg Life Capital"},":A:-1:Capital_Avg_Life",{"$f":"Labels!E10","v":"The average lifetime of capital stock expressed in years, in each time period"},":A:0:Capital_Equilib",{"$f":"Labels!B17","v":"Equilib Capital"},":A:-1:Capital_Equilib",{"$f":"Labels!E17","v":"This is a numerical input parameter of the model."},":A:0:Time_Adjust_Capital",{"$f":"Labels!B88","v":"Time Adjust Capital"},":A:-1:Time_Adjust_Capital",{"$f":"Labels!E88","v":"The characteristic time needed for the stock of capital to adjust to changes in demand, expressed in years"},":A:0:Flexibility_Capacity_Utilization",{"$f":"Labels!B48","v":"Flexibility Capacity Utilization"},":A:-1:Flexibility_Capacity_Utilization",{"$f":"Labels!E48","v":"Flexibility of capacity unitlization. Measures how well the capital stock responds to short-term changes in demand."},":A:0:Gov_Spend_Equilib",{"$f":"Labels!B49","v":"Equilib Gov Spending"},":A:-1:Gov_Spend_Equilib",{"$f":"Labels!E49","v":"Government spending when the economy is in equilibrium"},":A:0:Gov_Transfers_Equilib",{"$f":"Labels!B53","v":"Equilib Gov Transfers"},":A:-1:Gov_Transfers_Equilib",{"$f":"Labels!E53","v":"The equilibrium level of government transfer payments in each time period, given current policies (in millions)"},":A:0:Tax_Rate",{"$f":"Labels!B85","v":"Tax Rate"},":A:-1:Tax_Rate",{"$f":"Labels!E85","v":"The average rate of taxation of all kinds including local, state and federal. This is a numerical input parameter of the model."},":A:0:Employment_Desired",{"$f":"Labels!B39","v":"Desired Employment"},":A:-1:Employment_Desired",{"$f":"Labels!E39","v":"The desired level of employment in each time period (expressed in millions of full-time-equivalent man-periods)"},":A:0:Demand_Aggregate",{"$f":"Labels!B28","v":"Aggregate Demand"},":A:-1:Demand_Aggregate",{"$f":"Labels!E28","v":"The aggregate demand for goods and services in the economy, in each time period"},":A:0:Shock_Aggregate_Demand",{"$f":"Labels!B74","v":"Aggregate Demand Shock"},":A:-1:Shock_Aggregate_Demand",{"$f":"Labels!E74","v":"A random shock to the aggregate demand of the economy, in each time period"},":A:0:Shock_Output",{"$f":"Labels!B78","v":"Output Shock"},":A:-1:Shock_Output",{"$f":"Labels!E78","v":"A random shock to the output of the economy, in each time period"},":A:0:Final_Sales",{"$f":"Labels!B45","v":"Final Sales"},":A:-1:Final_Sales",{"$f":"Labels!E45","v":"The amount of goods and services sold in the economy, in each time period (in millions)"},":A:0:Consumption",{"$f":"Labels!B24","v":"Consumption"},":A:-1:Consumption",{"$f":"Labels!E24","v":"Consumption spending, in each time period (in millions)"},":A:0:Income_Current_Disposable",{"$f":"Labels!B55","v":"Current Disposable Income"},":A:-1:Income_Current_Disposable",{"$f":"Labels!E55","v":"Current disposable income, in each time period (in millions)"}]
[":A:0:Gov_Transfers",{"$f":"Labels!B52","v":"Gov Transfers"},":A:-1:Gov_Transfers",{"$f":"Labels!E52","v":"Total government transfer payments, in each time period (in millions)"},":A:0:Capital_Investment",{"$f":"Labels!B19","v":"Capital Investment"},":A:-1:Capital_Investment",{"$f":"Labels!E19","v":"Capital investmnent in each time period (in millions)"},":A:0:Capital_Depreciation",{"$f":"Labels!B11","v":"Capital Depreciation"},":A:-1:Capital_Depreciation",{"$f":"Labels!E11","v":"The capital depreciation expense in each time period (in millions)"},":A:0:Capital_Desired",{"$f":"Labels!B14","v":"Desired Capital"},":A:-1:Capital_Desired",{"$f":"Labels!E14","v":"The desired capital stock in each time period (in millions)"},":A:0:Tax",{"$f":"Labels!B83","v":"Tax"},":A:-1:Tax",{"$f":"Labels!E83","v":"Total taxes in the economy (in $ millions), in each time period"},":A:0:Gov_Spending",{"$f":"Labels!B51","v":"Gov Spending"},":A:-1:Gov_Spending",{"$f":"Labels!E51","v":"Total government spending, in each time period (in millions)"},":A:0:Shock_Std_Dev",{"$f":"Labels!B81","v":"Shock_Std_Dev"},":A:-1:Shock_Std_Dev",{"$f":"Labels!E81","v":"The standard deviation of all the random shock terms in the model. The std dev changes as the sqrt of the time period because it is a \"Gauss-Wiener process\", which generalizes a Gaussian random walk to time steps of all sizes."},":A:0:Gov_Spend_Equilib_pct",{"$f":"Labels!B50","v":"Equilibrium Gov Spend %"},":A:-1:Gov_Spend_Equilib_pct",{"$f":"Labels!E50","v":"The ratio (equilibrium government spending) / (equilibrium output). This is a numerical input to the model."},":A:0:Gov_Transfers_Equilib_pct",{"$f":"Labels!B54","v":"Equilibrium Gov Transfers %"},":A:-1:Gov_Transfers_Equilib_pct",{"$f":"Labels!E54","v":"The ratio (equilibrium government transfer payments) / (equilibrium output). This is a numerical input to the model."},":A:0:Real_Wage_Equilib_pct",{"$f":"Labels!B73","v":"Equilibrium Real Wage %"},":A:-1:Real_Wage_Equilib_pct",{"$f":"Labels!E73","v":"The ratio (equilibrium real wage) / (national income). This is a numerical input parameter of the model."},":A:0:Shock_Std_Dev_pct",{"$f":"Labels!B82","v":"Shock Std Deviation %"},":A:-1:Shock_Std_Dev_pct",{"$f":"Labels!E82","v":"The ratio (std dev of random shock) / (national income). This parameter does not depend on time because the model is based on an equilibrium economy with random shocks. This is a numerical input parameter of the model."},":A:0:Time",{"$f":"Labels!B87","v":"Time"},":A:-1:Time",{"$f":"Labels!E87","v":"Time in years from the beginning of Model Time"},":A:0:Model_Name",{"$f":"Labels!B63","v":"Model Name"},":A:-1:Model_Name",{"$f":"Labels!E63","v":"Name by which this model is known, as it appears at the top of each worksheet"},":A:0:Interest_Rate_Long_Yr",{"$f":"Labels!B62","v":"Long Annual Interest Rate"},":A:-1:Interest_Rate_Long_Yr",{"$f":"Labels!E62","v":"The long-term annual interest rate on debt. This is a numerical input parameter of the model."},":A:0:Output_Equilib_Yr",{"$f":"Labels!B66","v":"Equilibrium Annual Output"},":A:-1:Output_Equilib_Yr",{"$f":"Labels!E66","v":"Equilibrium annual output (in millions)"},":A:0:Shock_Cutoff",{"$f":"Labels!B77","v":"Shock_Cutoff"},":A:-1:Shock_Cutoff",{"$f":"Labels!E77","v":"The limit in outliers for random shocks, expressed in terms of the cumulative tail probability below which shocks are not allowed."}]
[":A:0:Capital_mean",{"$f":"Labels!B22","v":"Capital"},":A:-1:Capital_mean",{"$f":"Labels!E22","v":"Mean value over trials of the capital stock, in each time period (expressed in millions). The net capital investment in the previous time period determines the change in capital in each time period, to avoid circularity"},":A:0:Capital_stdev",{"$f":"Labels!B23","v":"Capital std dev"},":A:-1:Capital_stdev",{"$f":"Labels!E23","v":"Standard deviation over trials of the capital stock, in each time period (expressed in millions). The net capital investment in the previous time period determines the change in capital in each time period, to avoid circularity"},":A:0:Consumption_mean",{"$f":"Labels!B26","v":"Consumption"},":A:-1:Consumption_mean",{"$f":"Labels!E26","v":"Mean value over trials of Consumption spending, in each time period (in millions)"},":A:0:Consumption_stdev",{"$f":"Labels!B27","v":"Consumption std dev"},":A:-1:Consumption_stdev",{"$f":"Labels!E27","v":"Standard deviation over trials of Consumption spending, in each time period (in millions)"},":A:0:Employment_mean",{"$f":"Labels!B43","v":"Employment"},":A:-1:Employment_mean",{"$f":"Labels!E43","v":"Mean value over trials of Employment in each time period (expressed in millions of full-time-equivalent man-periods)"},":A:0:Employment_stdev",{"$f":"Labels!B44","v":"Employment std dev"},":A:-1:Employment_stdev",{"$f":"Labels!E44","v":"Standard deviation over trials of Employment in each time period (expressed in millions of full-time-equivalent man-periods)"},":A:0:Demand_Aggregate_mean",{"$f":"Labels!B29","v":"Aggregate Demand"},":A:-1:Demand_Aggregate_mean",{"$f":"Labels!E29","v":"Mean value over trials of aggregate demand for goods and services, in each time period"},":A:0:Demand_Aggregate_stdev",{"$f":"Labels!B30","v":"Aggregate Demand std dev"},":A:-1:Demand_Aggregate_stdev",{"$f":"Labels!E30","v":"Standard deviation over trials of aggregate demand for goods and services, in each time period"},":A:0:Demand_Expected_Long_mean",{"$f":"Labels!B32","v":"Long Expected Demand"},":A:-1:Demand_Expected_Long_mean",{"$f":"Labels!E32","v":"Mean value over trials of long-term expected demand for goods and services per time period, in each time period (in millions)"},":A:0:Demand_Expected_Long_stdev",{"$f":"Labels!B33","v":"Long Expected Demand std dev"},":A:-1:Demand_Expected_Long_stdev",{"$f":"Labels!E33","v":"Standard deviation over trials of long-term expected demand for goods and services per time period, in each time period (in millions)"},":A:0:Demand_Expected_Short_mean",{"$f":"Labels!B35","v":"Short Expected Demand"},":A:-1:Demand_Expected_Short_mean",{"$f":"Labels!E35","v":"Mean value over trials of short-term expected demand for goods and services per time period, in each time period (in millions)"},":A:0:Demand_Expected_Short_stdev",{"$f":"Labels!B36","v":"Short Expected Demand std dev"},":A:-1:Demand_Expected_Short_stdev",{"$f":"Labels!E36","v":"Standard deviation over trials of short-term expected demand for goods and services per time period, in each time period (in millions)"},":A:0:Shock_Aggregate_Demand_mean",{"$f":"Labels!B75","v":"Aggregate Demand Shock"},":A:-1:Shock_Aggregate_Demand_mean",{"$f":"Labels!E75","v":"Mean value over trials of shocks to the aggregate demand of the economy, in each time period"},":A:0:Shock_Aggregate_Demand_stdev",{"$f":"Labels!B76","v":"Aggregate Demand Shock std dev"},":A:-1:Shock_Aggregate_Demand_stdev",{"$f":"Labels!E76","v":"Standard deviation over trials of shocks to the aggregate demand of the economy, in each time period"},":A:0:Income_Current_Disposable_mean",{"$f":"Labels!B56","v":"Current Disposable Income"},":A:-1:Income_Current_Disposable_mean",{"$f":"Labels!E56","v":"Mean value over trials of Current disposable income, in each time period (in millions)"},":A:0:Income_Current_Disposable_stdev",{"$f":"Labels!B57","v":"Cur Disposable Income std dev"},":A:-1:Income_Current_Disposable_stdev",{"$f":"Labels!E57","v":"Standard deviation over trials of Current disposable income, in each time period (in millions)"}]
[":A:0:Final_Sales_mean",{"$f":"Labels!B46","v":"Final Sales"},":A:-1:Final_Sales_mean",{"$f":"Labels!E46","v":"Mean value over trials of the amount of goods and services sold in the economy, in each time period (in millions)"},":A:0:Final_Sales_stdev",{"$f":"Labels!B47","v":"Final Sales std dev"},":A:-1:Final_Sales_stdev",{"$f":"Labels!E47","v":"Standard deviation over trials of the amount of goods and services sold in the economy, in each time period (in millions)"},":A:0:Output_mean",{"$f":"Labels!B67","v":"Output"},":A:-1:Output_mean",{"$f":"Labels!E67","v":"Mean value over trials of total output per time period, in each time period (in millions)"},":A:0:Output_stdev",{"$f":"Labels!B71","v":"Output std dev"},":A:-1:Output_stdev",{"$f":"Labels!E71","v":"Standard deviation over trials of total output per time period, in each time period (in millions)"},":A:0:Shock_Output_mean",{"$f":"Labels!B79","v":"Output Shock"},":A:-1:Shock_Output_mean",{"$f":"Labels!E79","v":"Mean value over trials of random shock to the output of the economy, in each time period"},":A:0:Shock_Output_stdev",{"$f":"Labels!B80","v":"Output Shock std dev"},":A:-1:Shock_Output_stdev",{"$f":"Labels!E80","v":"Standard deviation over trials of random shock to the output of the economy, in each time period"},":A:0:Capital_Investment_mean",{"$f":"Labels!B20","v":"Capital Investment"},":A:-1:Capital_Investment_mean",{"$f":"Labels!E20","v":"Mean value over trials of Capital investmnent in each time period (in millions)"},":A:0:Capital_Investment_stdev",{"$f":"Labels!B21","v":"Capital Investment std dev"},":A:-1:Capital_Investment_stdev",{"$f":"Labels!E21","v":"Standard deviation over trials of Capital investmnent in each time period (in millions)"},":A:0:Tax_mean",{"$f":"Labels!B84","v":"Tax"},":A:-1:Tax_mean",{"$f":"Labels!E84","v":"Mean value over trials of total taxes (in millions), in each time period"},":A:0:Tax_stdev",{"$f":"Labels!B86","v":"Tax std dev"},":A:-1:Tax_stdev",{"$f":"Labels!E86","v":"Standard deviation over trials of total taxes (in millions), in each time period"},":A:0:Capital_Depreciation_stdev",{"$f":"Labels!B13","v":"Capital Depreciation std dev"},":A:-1:Capital_Depreciation_stdev",{"$f":"Labels!E13","v":"Standard deviation of capital depreciation expense in each time period (in millions)"},":A:0:Capital_Depreciation_mean",{"$f":"Labels!B12","v":"Capital Depreciation"},":A:-1:Capital_Depreciation_mean",{"$f":"Labels!E12","v":"Average over trials of capital depreciation expense in each time period (in millions)"},":A:0:Capital_Desired_mean",{"$f":"Labels!B15","v":"Desired Capital"},":A:-1:Capital_Desired_mean",{"$f":"Labels!E15","v":"Average over trials of desired capital stock in each time period (in millions)"},":A:0:Capital_Desired_stdev",{"$f":"Labels!B16","v":"Desired Capital std dev"},":A:-1:Capital_Desired_stdev",{"$f":"Labels!E16","v":"Standard deviation over trials of desired capital stock in each time period (in millions)"},":A:0:Employment_Desired_mean",{"$f":"Labels!B40","v":"Desired Employment"},":A:-1:Employment_Desired_mean",{"$f":"Labels!E40","v":"Average over trials of desired level of employment in each time period (expressed in millions of full-time-equivalent man-periods)"},":A:0:Employment_Desired_stdev",{"$f":"Labels!B41","v":"Desired Employment std dev"},":A:-1:Employment_Desired_stdev",{"$f":"Labels!E41","v":"Standard deviation over trials of desired level of employment in each time period (expressed in millions of full-time-equivalent man-periods)"}]
[":A:0:Income_Permanent_mean",{"$f":"Labels!B59","v":"Permanent Income"},":A:-1:Income_Permanent_mean",{"$f":"Labels!E59","v":"Average over trials of consumers' expectation of their permanent income per time period, in each time period (in $ millions). This variable enters into consumers' decisions about how much of their income to spend."},":A:0:Income_Permanent_stdev",{"$f":"Labels!B60","v":"Permanent Income std dev"},":A:-1:Income_Permanent_stdev",{"$f":"Labels!E60","v":"Standard deviation over trials of consumers' expectation of their permanent income per time period, in each time period (in $ millions). This variable enters into consumers' decisions about how much of their income to spend."},":A:0:Output_Potential_mean",{"$f":"Labels!B69","v":"Potential Output"},":A:-1:Output_Potential_mean",{"$f":"Labels!E69","v":"Average over trials of potential output per time period given capital and labor inputs, in each time period (in millions). Output generally is lower than this level because capital is not flexible enough to be fully redeployed in response to fluctuations of demand.\n\nThis production function assumes that the economy has no scale effect; that is, doubling inputs to the economy doubles output."},":A:0:Output_Potential_stdev",{"$f":"Labels!B70","v":"Potential Output std dev"},":A:-1:Output_Potential_stdev",{"$f":"Labels!E70","v":"Standard deviation over trials of potential output per time period given capital and labor inputs, in each time period (in millions). Output generally is lower than this level because capital is not flexible enough to be fully redeployed in response to fluctuations of demand.\n\nThis production function assumes that the economy has no scale effect; that is, doubling inputs to the economy doubles output."},":D:-1:Trials",{"$f":"Labels!E95","v":0},":D:0:Trials",{"$f":"Labels!B95","v":"Trials"},":D:2:Trials",{"$f":"Labels!D95","v":"Trials"},":D:1:Trials",{"$f":"Labels!C95","v":"Total"},":D:0:Trials.Trial_01",{"$f":"Labels!B96","v":"Trial 01"},":D:2:Trials.Trial_01",{"$f":"Labels!D96","v":"Trials"},":D:0:Trials.Trial_02",{"$f":"Labels!B97","v":"Trial 02"},":D:0:Trials.Trial_03",{"$f":"Labels!B98","v":"Trial 03"},":D:0:Trials.Trial_04",{"$f":"Labels!B99","v":"Trial 04"},":D:0:Trials.Trial_05",{"$f":"Labels!B100","v":"Trial 05"},":D:0:Trials.Trial_06",{"$f":"Labels!B101","v":"Trial 06"},":D:0:Trials.Trial_07",{"$f":"Labels!B102","v":"Trial 07"},":D:0:Trials.Trial_08",{"$f":"Labels!B103","v":"Trial 08"},":SD:0:1/1/2010",{"$f":"Labels!B6","v":40179}]
[":WS:Output1",{"$f":"Graphs!A1","v":0},":WS:",{"$f":"Inputs!A1","v":"Equilibrium Economy with Shocks"},":WS:",{"$f":"'Statistical Moments'!A1","v":"Equilibrium Economy with Shocks"},":WS:",{"$f":"'Trial 1'!A1","v":"Equilibrium Economy with Shocks"},":WS:",{"$f":"'Trial 2'!A1","v":"Equilibrium Economy with Shocks"},":WS:",{"$f":"'Trial 3'!A1","v":"Equilibrium Economy with Shocks"},":WS:",{"$f":"'Trial 4'!A1","v":"Equilibrium Economy with Shocks"},":WS:",{"$f":"'Trial 5'!A1","v":"Equilibrium Economy with Shocks"},":WS:",{"$f":"'Trial 6'!A1","v":"Equilibrium Economy with Shocks"},":WS:",{"$f":"'Trial 7'!A1","v":"Equilibrium Economy with Shocks"},":WS:",{"$f":"'Trial 8'!A1","v":"Equilibrium Economy with Shocks"},":WS:",{"$f":"Formulas!A1","v":"Equilibrium Economy with Shocks"},":WS:",{"$f":"'(Intermediate Computations)'!A1","v":"Equilibrium Economy with Shocks"},":WS:",{"$f":"'(Other Computations)'!A1","v":"Equilibrium Economy with Shocks"},":WS:",{"$f":"Labels!A1","v":"Equilibrium Economy with Shocks"},":WS:",{"$f":"ZZZ__FnCalls!A1","v":"Equilibrium Economy with Shocks"},":WS:",{"$f":"ZZZ_Ranges!A1","v":936684.1795910058},":WS:",{"$f":"ZZZ_Import!A1","v":":A:0:Employment"}]
["Model_Name[]|",{"$f":"Inputs!B8","v":"Test Model"},"Time_Smooth_Long_Demand[]|",{"$f":"Inputs!B13","v":3},"Time_Smooth_Short_Demand[]|",{"$f":"Inputs!B14","v":0.5},"Capital_Avg_Life[]|",{"$f":"Inputs!B19","v":14},"Capital_Expon[]|",{"$f":"Inputs!B20","v":0.25},"Flexibility_Capacity_Utilization[]|",{"$f":"Inputs!B21","v":0.5},"Time_Adjust_Capital[]|",{"$f":"Inputs!B22","v":3},"Employment_Equilib[]|",{"$f":"Inputs!B27","v":140},"Time_Adjust_Employment[]|",{"$f":"Inputs!B28","v":0.4},"Real_Wage_Equilib_pct[]|",{"$f":"Inputs!B29","v":0.75},"Consumption_Avg_Propensity[]|",{"$f":"Inputs!B34","v":0.78},"Time_Smooth_Income[]|",{"$f":"Inputs!B35","v":2.5},"Output_Equilib_Yr[]|=14*10^6",{"$f":"Inputs!B40","v":14000000},"Interest_Rate_Long_Yr[]|",{"$f":"Inputs!B45","v":0.03},"Gov_Spend_Equilib_pct[]|",{"$f":"Inputs!B50","v":0.2},"Gov_Transfers_Equilib_pct[]|",{"$f":"Inputs!B51","v":0.1},"Tax_Rate[]|=('(Other Computations)'!B11+'(Other Computations)'!B14)/'(Other Computations)'!B8",{"$f":"Inputs!B52","v":0.30000000000000004},"Shock_Std_Dev_pct[]|",{"$f":"Inputs!B57","v":0.1},"Shock_Cutoff[]|",{"$f":"Inputs!B58","v":0.03}]